{"text_format":"1","workbook":"xlsx","n_sheets":21,"sheets":["Instructions","Customer Information","Terms & Conditions","Project Information","Project Summary","PI_Print","HVAC","Refrigeration","Kitchen Equipment","Compressed Air","IT & Data Center","Additional Measures","Project Report","Equipment Efficiency Tables","F.A.Q.","Ref","Debug","CI Table","Equipment Lookups","Equipment Lookup Tables","Deemed Lookup Tables"],"not_rendered":{"charts":0,"images":31,"macros":1,"external_links":1,"defined_names":235,"comments":9,"pivot_tables":0},"unopened":[],"bounds":{"document_bytes":16777216,"sheet_cells":100000,"rows_first":2000,"rows_last":500,"rows_between":2000,"halvings":0,"cell_chars":16384,"cell_head_chars":4096},"cells_cut":0,"cells_raw":0,"read":"whole","date_system":"1900"}

{"sheet":"Instructions","index":0,"n_rows":58,"n_cols":10,"rows_kept":58,"cut":false,"hidden":false,"merged":[[1,9,2,11],[5,9,5,11],[7,2,9,7],[7,9,9,11],[19,2,19,7],[16,2,16,5],[16,6,17,7],[17,2,17,5],[53,2,54,7],[50,2,50,7],[49,2,49,7],[42,2,43,5],[47,2,47,7],[48,2,48,7],[46,2,46,7],[44,2,44,5],[51,2,52,7],[40,2,40,5],[41,2,41,5],[20,2,39,7],[2,3,2,7],[3,3,3,7],[4,2,4,7],[5,2,5,7],[6,2,6,7],[14,2,14,5],[14,6,15,7],[15,2,15,5],[10,2,10,7],[11,6,11,7],[12,2,12,5],[12,6,13,7],[13,2,13,5]]}
[]
[null,null,null,null,null,null,null,null,null,"HIDE"]
[null,null,null,{"$f":"\"FY\"&MID(Ref!$B$1,3,2)&\" SRP Business Solutions Standard Non-Lighting\"","v":"FY21 SRP Business Solutions Standard Non-Lighting"}]
[null,null,null,{"$f":"'Customer Information'!$AE$4","v":"Evaluation Application"}]
[null,null,{"$f":"CONCATENATE(\"Non-Lighting \",IF(ISNUMBER(SEARCH(\"Preliminary\",'Customer Information'!$L$10,1)),\"Rebate Reservation Request\",\"Rebate Application\"),\" Instructions\")","v":"Non-Lighting Rebate Application Instructions"}]
[null,null,{"$f":"SUBSTITUTE($J6,\"XX\",MID(Ref!$B$1,3,2))","v":"This application packet contains the forms, instructions, eligibility requirements, and rebate amounts for qualifying equipment under the FY21 SRP Business Solutions Standard Program. Please read the following sections carefully to ensure that you purchase and install qualifying equipment."},null,null,null,null,null,null,"This application packet contains the forms, instructions, eligibility requirements, and rebate amounts for qualifying equipment under the FYXX SRP Business Solutions Standard Program. Please read the following sections carefully to ensure that you purchase and install qualifying equipment."]
[null,null,{"$f":"IF('Customer Information'!$L$10=\"\",\"An application type has not been selected. To proceed with this application, please select an application type at the top of the Customer Information tab.\",IF(ISNUMBER(SEARCH(\"Preliminary\",'Customer Information'!$L$10,1)),Ref!$B$6,Ref!$B$7))","v":"Sending this application confirms that all measures have been fully installed and all of the required supporting documents have been collected. If clarification regarding the submitted information is not submitted within  14-days of being requested, any funds reserved for this rebate application may be released and the rebate application may be canceled. You may resubmit the application once all required information becomes available."}]
[null,null,{"$f":"SUBSTITUTE(SUBSTITUTE($J8,\"XXXX\",1999+MID(Ref!$B$1,3,2)),\"YYYY\",2000+MID(Ref!$B$1,3,2))","v":"In order to be eligible for rebates through the SRP Business Solutions Standard Program all equipment must meet the following requirements:\n• Equipment must be purchased on or after May 1, 2020. Applications for post-purchase measures purchased during the eligible period between May 1, 2020 and April 30, 2021 must be received no later than July 31, 2021 to be eligible for rebates (subject to rebate availability). Rebate eligibility is determined based on the eligibility rules in place on the purchase date.\n• Equipment must be new and installed in a manner that meets or exceeds code requirements.\n• Replaced equipment must be disposed of in accordance with local, state, or federal codes and regulations and cannot be re-installed elsewhere"},null,null,null,null,null,null,"In order to be eligible for rebates through the SRP Business Solutions Standard Program all equipment must meet the following requirements:\n• Equipment must be purchased on or after May 1, XXXX. Applications for post-purchase measures purchased during the eligible period between May 1, XXXX and April 30, YYYY must be received no later than July 31, YYYY to be eligible for rebates (subject to rebate availability). Rebate eligibility is determined based on the eligibility rules in place on the purchase date.\n• Equipment must be new and installed in a manner that meets or exceeds code requirements.\n• Replaced equipment must be disposed of in accordance with local, state, or federal codes and regulations and cannot be re-installed elsewhere"]
[]
[]
[null,null,"Pre-qualification of eligible measures under the SRP Business Solutions Standard Program is not required except for Retrofit Lighting Equipment and sensors. To participate in this rebate program, please review the following steps:"]
[null,null,null,null,null,null,"Completed?"]
[null,null,"Step 1: Complete SRP Customer Information Page",null,null,null,{"$f":"'Customer Information'!$BL$4","v":"MI: Facility Information"}]
[null,null,"(Go to Customer Information Page)"]
[null,null,"Step 2: Read and Sign the Terms and Conditions Page",null,null,null,{"$f":"'Terms & Conditions'!$V$5","v":"MI: Application Acknowledgement"}]
[null,null,"(Go to Terms and Conditions Page)"]
[null,null,"Step 3: Select and Complete Measure Information",null,null,null,{"$f":"'Project Information'!$Y$401","v":"No Measures Selected"}]
[null,null,"(Go to Project Information Page)"]
[]
[null,null,"Available Measures:"]
[null,null,"- HVAC\n     - Unitary Air-Conditioning Equipment (Packaged, Split, VRF, PTAC, VTAC)\n     - Unitary Heat Pump Equipment (Packaged, Split, VRF, PTHP, VTHP)\n     - Evaporative Cooler             - Chiller\n     - Economizer                      - Carbon Dioxide Sensor        - Hotel Room Occ Control\n     - Other (VFD - HVAC, VFD - Pump, ECM, EMS, Smart Thermostat, Carbon Monoxide Sensor,\n       Advanced Rooftop Control)\n- Refrigeration\n     - Discus Compressor            - Refrigerated Compressor\n     - Other (Walk-In Auto-Closer, Gasket, Strip Curtain, Dock-Door Seal, Fast-Acting Door,\n        HE Open Case, ECM, ASH Control, Floating Head-Pressure Control, Refrigeration Occupancy\n        Control, Evaporative Condenser, VFD - Evap/Cond, Refrigerated Suction Pipe Insulation)\n- Kitchen Equipment\n    - All (Griddle, Elect. Steam Cooker, Dishwasher, Hot Food Holding Cabinet, Ice Maker, Ref.\n      Beverage Vending Machine, Elect. Convection Oven, Elect. Vat Fryer, Combination Oven,\n      HE Pre-Rinse Spray Valve, VFD - Kitchen Exhaust)\n- Compressed Air\n     - All (Additional Received Capacity, Desiccant Dryer, Low Pressure-Drop Filter, Refrigerated\n        Cycling Dryer, VFD Compressor, Zero-Loss Condensate Drain)\n- IT & Data Center\n     - Computer Room Air Conditioner\n     - Other (Computer Power Management, ECM, Server Virtualization, HE Server Replacement)\n- Additional Measures\n     - All (Heat Pump Water Heater, VFD Pool Pump, Window Film, Shade Screen)"]
[]
[]
[]
[]
[]
[]
[]
[]
[]
[]
[]
[]
[]
[]
[]
[]
[]
[]
[]
[null,null,"Step 4: Review Project Report"]
[null,null,"(Go to Project Report Page)"]
[null,null,"Step 5: Collect all project invoices/payment applications and other required documentation and submit with this application. "]
[]
[]
[null,null,"Completed Applications May Be Sent to Any of the Following:"]
[null,null,"SRP Business Solutions Standard Program"]
[null,null,"3100 W Ray Rd, Suite 230"]
[null,null,"Chandler, AZ 85226"]
[null,null,"Fax: (480) 345-7601"]
[null,null,"Email: savewithsrpbiz@srpnet.com"]
[null,null,{"$f":"\"Important: Please allow \" & IF(ISNUMBER(SEARCH(\"Preliminary\",'Customer Information'!$L10,1)),7,14) & \" days for \" & IF(ISNUMBER(SEARCH(\"Preliminary\",'Customer Information'!$L10,1)),\"reservation request\",\"application\") & \" review following complete documentation submittal. Rebates will not be paid for ineligible or incomplete applications.\"","v":"Important: Please allow 14 days for application review following complete documentation submittal. Rebates will not be paid for ineligible or incomplete applications."}]
[]
[null,null,"For More Information about the SRP Business Solutions Standard Program, measure eligibility, rebates, or other SRP programs please contact us:"]
[]
[null,null,"Online at:","www.savewithsrpbiz.com"]
[null,null,"By phone:","(602) 236-3054 "]
[null,null,"Email: ","savewithsrpbiz@srpnet.com"]

{"sheet":"Customer Information","index":1,"n_rows":38,"n_cols":66,"rows_kept":38,"cut":false,"hidden":false,"merged":[[16,63,16,64],[17,63,17,64],[13,63,13,64],[3,52,3,61],[1,29,2,61],[3,30,3,51],[4,52,4,61],[10,11,10,30],[8,33,8,42],[9,33,9,42],[8,43,8,52],[9,43,9,52],[11,33,11,42],[11,43,11,52],[2,63,2,65],[3,63,3,65],[7,63,7,64],[8,63,8,64],[7,3,7,30],[10,43,10,52],[10,33,10,42],[15,3,15,30],[9,25,9,30],[9,11,9,24],[10,3,10,10],[0,63,0,65],[9,63,9,64],[10,63,10,64],[11,63,11,64],[15,63,15,64],[11,11,11,30],[13,11,13,30],[12,11,12,19],[12,24,12,30],[12,20,12,23],[8,3,8,10],[11,3,11,10],[12,3,12,10],[13,3,13,10],[8,11,8,30],[9,3,9,10],[7,33,7,52],[16,3,16,10],[16,11,16,30],[19,11,19,22],[20,11,20,18],[19,23,19,30],[20,19,20,30],[18,3,18,10],[18,11,18,19],[18,20,18,23],[18,24,18,30],[19,3,19,10],[17,3,17,10],[17,11,17,30],[20,3,20,10],[21,3,21,10],[21,11,21,30],[19,55,19,60],[19,49,19,54],[19,33,19,38],[19,39,19,48],[21,55,21,60],[21,43,21,54],[21,39,21,42],[21,33,21,38],[37,3,37,10],[37,11,37,19],[37,20,37,23],[37,24,37,30],[34,3,34,10],[34,11,34,22],[34,23,34,30],[31,3,31,30],[36,3,36,10],[36,11,36,30],[35,3,35,10],[32,19,32,30],[32,3,32,18],[35,11,35,30],[33,3,33,18],[33,19,33,30],[29,3,29,10],[29,11,29,18],[29,19,29,30],[23,3,23,30],[24,3,24,18],[24,19,24,30],[25,3,25,10],[25,11,25,30],[26,3,26,10],[27,20,27,23],[27,24,27,30],[28,3,28,10],[28,11,28,22],[28,23,28,30],[26,11,26,30],[27,3,27,10],[27,11,27,19],[23,33,23,60],[24,51,24,60],[24,45,24,50],[12,33,12,42],[12,43,12,52],[20,43,20,54],[20,33,20,38],[20,39,20,42],[20,55,20,60],[15,54,15,60],[15,47,15,53],[15,40,15,46],[15,33,15,39],[18,33,18,60],[16,33,16,39],[16,40,16,46],[16,47,16,53],[16,54,16,60],[14,33,14,60],[25,34,25,43],[26,34,26,43],[27,34,27,43],[28,34,28,43],[31,43,31,44],[28,45,28,50],[28,51,28,60],[29,45,29,50],[29,51,29,60],[30,45,30,50],[30,51,30,60],[25,45,25,50],[25,51,25,60],[26,45,26,50],[26,51,26,60],[27,45,27,50],[27,51,27,60],[32,45,32,50],[32,51,32,60],[29,34,29,43],[31,37,31,38],[30,37,30,38],[30,33,30,36],[31,33,31,36],[31,39,31,42],[30,39,30,42],[30,43,30,44],[31,45,31,50],[31,51,31,60]]}
[null,null,null,null,null,null,null,null,null,null,null,null,null,null,null,null,null,null,null,null,null,null,null,null,null,null,null,null,null,null,null,null,null,null,null,null,null,null,null,null,null,null,null,null,null,null,null,null,null,null,null,null,null,null,null,null,null,null,null,null,null,null,null,"HIDE"]
[null,null,null,null,null,null,null,null,null,null,null,null,null,null,null,null,null,null,null,null,null,null,null,null,null,null,null,null,null,{"$f":"Instructions!$D$3","v":"FY21 SRP Business Solutions Standard Non-Lighting"}]
[null,null,null,null,null,null,null,null,null,null,null,null,null,null,null,null,null,null,null,null,null,null,null,null,null,null,null,null,null,null,null,null,null,null,null,null,null,null,null,null,null,null,null,null,null,null,null,null,null,null,null,null,null,null,null,null,null,null,null,null,null,null,null,"Complete?"]
[null,null,null,null,null,null,null,null,null,null,null,null,null,null,null,null,null,null,null,null,null,null,null,null,null,null,null,null,null,null,{"$f":"IF($Z$10=\" \",\"\",IF($Z10=\"(Reservation)\",\"Reservation \",IF(Z$10=\"(Installed)\",\"Installation \",\"Evaluation \")&\"Application\"))","v":"Evaluation Application"},null,null,null,null,null,null,null,null,null,null,null,null,null,null,null,null,null,null,null,null,null,{"$f":"Ref!$B$1","v":"FY21.4"},null,null,null,null,null,null,null,null,null,null,{"$f":"IF(AND($BN$8:$BN$18),\"Complete\",\"MI: \" & INDIRECT(\"'Customer Information'!BL\" & MATCH(FALSE,$BN$8:$BN$18,0) + 7))","v":"MI: Facility Information"}]
[null,null,null,null,null,null,null,null,null,null,null,null,null,null,null,null,null,null,null,null,null,null,null,null,null,null,null,null,null,null,null,null,null,null,null,null,null,null,null,null,null,null,null,null,null,null,null,null,null,null,null,null,{"$f":"Ref!$B$2","v":"Version 20200616"}]
[]
[]
[null,null,null,"Project Information",null,null,null,null,null,null,null,null,null,null,null,null,null,null,null,null,null,null,null,null,null,null,null,null,null,null,null,null,null,"Processing Information",null,null,null,null,null,null,null,null,null,null,null,null,null,null,null,null,null,null,null,null,null,null,null,null,null,null,null,null,null,"Project Information",null,{"$f":"IF(COUNTA($L$9:$AE$14)=9,TRUE,IF($Z$10=\"(Evaluation)\",TRUE,FALSE))","v":true}]
[null,null,null,"Project Name",null,null,null,null,null,null,null,null,null,null,null,null,null,null,null,null,null,null,null,null,null,null,null,null,null,null,null,null,null,"SRP Reference Number",null,null,null,null,null,null,null,null,null,null,null,null,null,null,null,null,null,null,null,null,null,null,null,null,null,null,null,null,null,"Participant Information",null,{"$f":"IF(COUNTA($L$17:$AE$21)=9,TRUE,IF($Z$10=\"(Evaluation)\",TRUE,FALSE))","v":true}]
[null,null,null,"Project Type",null,null,null,null,null,null,null,"Evaluation - Retro",null,null,null,null,null,null,null,null,null,null,null,null,null,{"$f":"IF(Project_Type<>\"\",IF(ISNUMBER(SEARCH(\"Evaluation\",Project_Type,1)),\"(Evaluation)\",IF(ISNUMBER(SEARCH(\"Preliminary\",Project_Type,1)),\"(Reservation)\",\"(Installed)\")),\" \")","v":"(Evaluation)"},null,null,null,null,null,null,null,"Application Prepared by",null,null,null,null,null,null,null,null,null,null,null,null,null,null,null,null,null,null,null,null,null,null,null,null,null,null,null,null,null,"Installer Information",null,{"$f":"IF(OR($T$25=\"Yes\",COUNTA($L$26:$AE$30)=9),TRUE,IF($Z$10=\"(Evaluation)\",TRUE,FALSE))","v":true}]
[null,null,null,"Project Bus. Name",null,null,null,null,null,null,null,null,null,null,null,null,null,null,null,null,null,null,null,null,null,null,null,null,null,null,null,null,null,"Estimated Installation Date",null,null,null,null,null,null,null,null,null,null,null,null,null,null,null,null,null,null,null,null,null,null,null,null,null,null,null,null,null,"Payee Information",null,{"$f":"IF(AND(RebateAddressedTo<>\"\",OR(RebateAddressedTo<>\"Other: Please Specify\",COUNTA($L$35:$AE$38)=7)),TRUE,IF($Z$10=\"(Evaluation)\",TRUE,FALSE))","v":true}]
[null,null,null,"Installation Address",null,null,null,null,null,null,null,null,null,null,null,null,null,null,null,null,null,null,null,null,null,null,null,null,null,null,null,null,null,"Invoice Date"]
[null,null,null,"City, State, Zip",null,null,null,null,null,null,null,null,null,null,null,null,null,null,null,null,"AZ",null,null,null,null,null,null,null,null,null,null,null,null,"How did you hear about us?"]
[null,null,null,"Account Number",null,null,null,null,null,null,null,null,null,null,null,null,null,null,null,null,null,null,null,null,null,null,null,null,null,null,null,null,null,null,null,null,null,null,null,null,null,null,null,null,null,null,null,null,null,null,null,null,null,null,null,null,null,null,null,null,null,null,null,"Reference Information",null,{"$f":"IF(COUNTA($AR$10:$BA$13)=4,TRUE,IF($Z$10=\"(Evaluation)\",TRUE,FALSE))","v":true}]
[null,null,null,null,null,null,null,null,null,null,null,null,null,null,null,null,null,null,null,null,null,null,null,null,null,null,null,null,null,null,null,null,null,"Project Cost"]
[null,null,null,"Participant Information",null,null,null,null,null,null,null,null,null,null,null,null,null,null,null,null,null,null,null,null,null,null,null,null,null,null,null,null,null,"Material",null,null,null,null,null,null,"Labor",null,null,null,null,null,null,"Other",null,null,null,null,null,null,"Total Project Cost",null,null,null,null,null,null,null,null,"Project Cost",null,{"$f":"IF(COUNTA($AH$17:$BB$17)>0,TRUE,IF($Z$10=\"(Evaluation)\",TRUE,FALSE))","v":true}]
[null,null,null,"Business Name",null,null,null,null,null,null,null,null,null,null,null,null,null,null,null,null,null,null,null,null,null,null,null,null,null,null,null,null,null,null,null,null,null,null,null,null,null,null,null,null,null,null,null,null,null,null,null,null,null,null,{"$f":"SUM($AH$17,$AO$17,$AV$17)","v":0},null,null,null,null,null,null,null,null,"Facility Information",null,{"$f":"IF(COUNTA($AH$20:$BI$22)=12,TRUE,FALSE)","v":false}]
[null,null,null,"Address",null,null,null,null,null,null,null,null,null,null,null,null,null,null,null,null,null,null,null,null,null,null,null,null,null,null,null,null,null,null,null,null,null,null,null,null,null,null,null,null,null,null,null,null,null,null,null,null,null,null,null,null,null,null,null,null,null,null,null,"Operating Schedule",null,{"$f":"IF(COUNTA($AH$25:$BI$33)=31,TRUE,FALSE)","v":false}]
[null,null,null,"City, State, Zip",null,null,null,null,null,null,null,null,null,null,null,null,null,null,null,null,null,null,null,null,null,null,null,null,null,null,null,null,null,"Facility Information"]
[null,null,null,"Contact, Title",null,null,null,null,null,null,null,null,null,null,null,null,null,null,null,null,null,null,null,null,null,null,null,null,null,null,null,null,null,"Facility Type",null,null,null,null,null,null,null,null,null,null,null,null,null,null,null,"Facility Sq. Ft.",null,null,null,null,null,null,null,null,null,null,null,null,null,"Defaults (Evaluation Only)"]
[null,null,null,"Phone, Email",null,null,null,null,null,null,null,null,null,null,null,null,null,null,null,null,null,null,null,null,null,null,null,null,null,null,null,null,null,"# of Floors",null,null,null,null,null,null,null,null,null,"Percent Conditioned",null,null,null,null,null,null,null,null,null,null,null,null,null,null,null,null,null,null,null,"Office","(BldgType)"]
[null,null,null,"Participant Is",null,null,null,null,null,null,null,null,null,null,null,null,null,null,null,null,null,null,null,null,null,null,null,null,null,null,null,null,null,"Year Built",null,null,null,null,null,null,null,null,null,"SRP Billing Rate"]
[]
[null,null,null,"Installer/Trade Ally Information",null,null,null,null,null,null,null,null,null,null,null,null,null,null,null,null,null,null,null,null,null,null,null,null,null,null,null,null,null,"Operating Schedule",null,null,null,null,null,null,null,null,null,null,null,null,null,null,null,null,null,null,null,null,null,null,null,null,null,null,null,null,null,"Defaults (Evaluation Only)"]
[null,null,null,"Self-Installed (No Trade Ally)?",null,null,null,null,null,null,null,null,null,null,null,null,null,null,null,null,null,null,null,null,null,null,null,null,null,null,null,null,null,null,null,null,null,null,null,null,null,null,null,null,null,"Day of Week",null,null,null,null,null,"Operating Hours",null,null,null,null,null,null,null,null,null,null,null,52,"Weeks/year"]
[null,null,null,"Business Name",null,null,null,null,null,null,null,null,null,null,null,null,null,null,null,null,null,null,null,null,null,null,null,null,null,null,null,null,null,null,"Weeks Per Year",null,null,null,null,null,null,null,null,null,null,"Monday",null,null,null,null,null,null,null,null,null,null,null,null,null,null,null,null,null,8,"Holidays"]
[null,null,null,"Address",null,null,null,null,null,null,null,null,null,null,null,null,null,null,null,null,null,null,null,null,null,null,null,null,null,null,null,null,null,null,null,null,null,null,null,null,null,null,null,null,null,"Tuesday"]
[null,null,null,"City, State, Zip",null,null,null,null,null,null,null,null,null,null,null,null,null,null,null,null,null,null,null,null,null,null,null,null,null,null,null,null,null,null,"Number of Holidays",null,null,null,null,null,null,null,null,null,null,"Wednesday",null,null,null,null,null,null,null,null,null,null,null,null,null,null,null,null,null,85,"Unocc Clg"]
[null,null,null,"Contact, Title",null,null,null,null,null,null,null,null,null,null,null,null,null,null,null,null,null,null,null,null,null,null,null,null,null,null,null,null,null,null,null,null,null,null,null,null,null,null,null,null,null,"Thursday",null,null,null,null,null,null,null,null,null,null,null,null,null,null,null,null,null,76,"Occ Clg"]
[null,null,null,"Phone, Email",null,null,null,null,null,null,null,null,null,null,null,null,null,null,null,"",null,null,null,null,null,null,null,null,null,null,null,null,null,null,"Temperature Set Points",null,null,null,null,null,null,null,null,null,null,"Friday",null,null,null,null,null,null,null,null,null,null,null,null,null,null,null,null,null,74,"Occ Htg"]
[null,null,null,null,null,null,null,null,null,null,null,null,null,null,null,null,null,null,null,null,null,null,null,null,null,null,null,null,null,null,null,null,null,"Occ Clg",null,null,null,null,null,"Unocc Clg",null,null,null,null,null,"Saturday",null,null,null,null,null,null,null,null,null,null,null,null,null,null,null,null,null,65,"Unocc Htg"]
[null,null,null,"Rebate Payee Information",null,null,null,null,null,null,null,null,null,null,null,null,null,null,null,null,null,null,null,null,null,null,null,null,null,null,null,null,null,"Occ Htg",null,null,null,null,null,"Unocc Htg",null,null,null,null,null,"Sunday"]
[null,null,null,"Rebate Should be Addressed To",null,null,null,null,null,null,null,null,null,null,null,null,null,null,null,null,null,null,null,null,null,null,null,null,null,null,null,null,null,null,null,null,null,null,null,null,null,null,null,null,null,"Total",null,null,null,null,null,{"$f":"ROUND(SUM($AZ$26:$BI$32)/7*$AI27/52*365-$AI$29*SUM($AZ$26:$BI$30)/5,0)","v":0},null,null,null,null,null,null,null,null,null,null,null,{"$f":"ROUND(45/7*$BL$25/52*365-BL26*45/7,0)","v":2295},"Op hours/year"]
[null,null,null,"Rebate Check Memo (30 characters or less)"]
[null,null,null,"Attention, Phone"]
[null,null,null,"Business Name"]
[null,null,null,"Address"]
[null,null,null,"City, State, Zip"]

{"sheet":"Terms & Conditions","index":2,"n_rows":149,"n_cols":22,"rows_kept":149,"cut":false,"hidden":false,"merged":[[126,3,130,17],[131,3,137,17],[138,3,142,17],[143,3,147,17],[148,3,151,17],[120,3,125,17],[71,4,72,17],[73,4,73,17],[74,3,75,17],[76,3,78,17],[79,3,79,17],[80,3,81,17],[82,3,88,17],[89,3,97,17],[98,3,103,17],[104,3,112,17],[113,3,119,17],[69,4,70,17],[42,2,42,17],[43,2,45,17],[46,3,49,17],[50,3,51,17],[58,3,60,17],[61,3,64,17],[65,3,65,17],[66,4,66,17],[67,4,68,17],[50,19,51,22],[52,3,57,17],[52,19,57,22],[38,2,38,7],[38,9,38,14],[38,16,38,17],[39,9,39,14],[40,2,40,17],[41,2,41,17],[26,19,27,22],[28,3,29,17],[28,19,29,22],[30,3,33,17],[37,2,37,7],[37,9,37,14],[37,16,37,17],[26,3,27,17],[21,2,21,10],[21,11,21,17],[22,2,22,17],[24,2,24,17],[25,3,25,17],[19,2,19,10],[19,11,19,13],[19,14,19,15],[19,16,19,17],[20,2,20,10],[20,11,20,17],[13,19,14,22],[15,2,15,17],[15,19,16,22],[16,2,16,17],[17,2,17,17],[18,2,18,10],[18,11,18,13],[18,14,18,15],[18,16,18,17],[9,3,9,17],[10,2,10,17],[11,2,11,17],[12,2,12,8],[12,9,13,14],[12,15,13,17],[13,2,13,8],[8,3,8,17],[8,19,8,20],[1,19,2,22],[4,2,4,17],[4,19,4,20],[6,2,7,17],[7,19,7,20]]}
[]
[null,null,null,null,null,null,null,null,null,null,null,null,null,null,null,null,null,null,null,"HIDE"]
[null,null,{"$f":"Instructions!$D$3","v":"FY21 SRP Business Solutions Standard Non-Lighting"},null,null,null,null,null,null,null,null,null,null,null,null,null,null,"Terms and Conditions"]
[]
[null,null,"W-9 Tax Form Required",null,null,null,null,null,null,null,null,null,null,null,null,null,null,null,null,"Complete?",null,{"$f":"IF(AND($V$8:$V$9),\"Complete\",\"MI: \"&INDIRECT(\"T\"&MATCH(FALSE,$V$8:$V$9,0)+7))","v":"MI: Application Acknowledgement"}]
[]
[null,null,"Customers receiving the benefit of Business Solutions incentives, in an amount of $600 or more per calendar year, whether paid directly to the customer or assigned by the customer to a third party, will be issued a Form 1099 unless the customer is a corporation or otherwise exempt under the IRS regulations "]
[null,null,null,null,null,null,null,null,null,null,null,null,null,null,null,null,null,null,null,"Application Acknowledgement",null,{"$f":"COUNTA($C$38,$Q$38)=2","v":false}]
[null,null,null,"Important:  This link redirects you to the location of the W-9 form on the IRS website. The form has to be downloaded and filled as part of the application. ",null,null,null,null,null,null,null,null,null,null,null,null,null,null,null,"Payment Release",null,{"$f":"IF(OR(RebateAddressedTo<>\"\",RebateAddressedTo=\"Participant Address\",RebateAddressedTo=\"Installation Address\"),COUNTA($C$18,$C$20:$R$20,$C$22:$R$22)=7,TRUE)","v":true}]
[null,null,null,"Click here to access and download a copy of the W-9 form "]
[]
[null,null,"PROJECT INFORMATION  "]
[null,null,"Facility/Project name: ",null,null,null,null,null,null,"Bill account number – nine digits:\n (If multiple meters at site only enter one)",null,null,null,null,null,{"$f":"IF(Project_AcctNum=\"\",\"\",Project_AcctNum)","v":""}]
[null,null,{"$f":"IF(Project_SBSName=\"\",\"\",Project_SBSName)","v":""}]
[]
[null,null,"PAYMENT RELEASE  (Complete only if incentive is to be assigned to someone other than participant)"]
[null,null,"Check should be made out to:"]
[null,null,{"$f":"IF(OR(RebateAddressedTo=\"\",RebateAddressedTo=\"Participant Address\", RebateAddressedTo=\"Installation Address\"),\"\",Payee_Name)","v":""}]
[null,null,"Mailing address:",null,null,null,null,null,null,null,null,"City:",null,null,"State:",null,"Zip:"]
[null,null,{"$f":"IF(OR(RebateAddressedTo=\"\",RebateAddressedTo=\"Participant Address\", RebateAddressedTo=\"Installation Address\"),\"\",Payee_Address1)","v":""},null,null,null,null,null,null,null,null,{"$f":"IF(OR(RebateAddressedTo=\"\",RebateAddressedTo=\"Participant Address\", RebateAddressedTo=\"Installation Address\"),\"\",Payee_Address2)","v":""},null,null,{"$f":"IF(OR(RebateAddressedTo=\"\",RebateAddressedTo=\"Participant Address\", RebateAddressedTo=\"Installation Address\"),\"\",Payee_Address3)","v":""},null,{"$f":"IF(OR(RebateAddressedTo=\"\",RebateAddressedTo=\"Participant Address\", RebateAddressedTo=\"Installation Address\"),\"\",Payee_Address4)","v":""}]
[null,null,"Contact name:",null,null,null,null,null,null,null,null,"Contact telephone:"]
[null,null,{"$f":"IF(OR(RebateAddressedTo=\"\",RebateAddressedTo=\"Participant Address\", RebateAddressedTo=\"Installation Address\"),\"\",Payee_Attn)","v":""},null,null,null,null,null,null,null,null,{"$f":"IF(OR(RebateAddressedTo=\"\",RebateAddressedTo=\"Participant Address\", RebateAddressedTo=\"Installation Address\"),\"\",Payee_Phone)","v":""}]
[null,null,"APPLICATION ACKNOWLEDGEMENT"]
[]
[null,null,"By signing below, I certify that:"]
[null,null,"1.","As the Customer Representative, I have the authority to bind the Customer to these Terms and Conditions."]
[null,null,"2.",{"$f":"SUBSTITUTE(SUBSTITUTE(SUBSTITUTE($T27,\"XX\",MID(Ref!$B$1,3,2),1),\"YYYY\",2000+MID(Ref!$B$1,3,2)-1,1),\"ZZZZ\",2000+MID(Ref!$B$1,3,2),1)","v":"I have read, understand, and agree to be bound by and comply with the terms set forth herein and the FY21 SRP Standard Business Solutions Program Manual;"},null,null,null,null,null,null,null,null,null,null,null,null,null,null,null,"I have read, understand, and agree to be bound by and comply with the terms set forth herein and the FYXX SRP Standard Business Solutions Program Manual;"]
[]
[null,null,"3.",{"$f":"SUBSTITUTE(SUBSTITUTE(SUBSTITUTE($T29,\"XX\",MID(Ref!$B$1,3,2),1),\"YYYY\",2000+MID(Ref!$B$1,3,2)-1,1),\"ZZZZ\",2000+MID(Ref!$B$1,3,2),1)","v":"All information provided by Customer in the SRP FY21 Standard Business Solutions Program Rebate Application, including attachments, is accurate and complete and I will notify SRP and Nexant immediately of any changes to the information."},null,null,null,null,null,null,null,null,null,null,null,null,null,null,null,"All information provided by Customer in the SRP FYXX Standard Business Solutions Program Rebate Application, including attachments, is accurate and complete and I will notify SRP and Nexant immediately of any changes to the information."]
[]
[null,null,"4.","If payment release section is filled out above, I AM AUTHORIZING SRP TO ISSUE THE REBATE PAYMENT TO THE THIRD PARTY NAMED ABOVE AND I UNDERSTAND THAT I WILL NOT BE RECEIVING THE REBATE PAYMENT CHECK FROM SRP. I ALSO UNDERSTAND THAT MY RELEASE OF PAYMENT TO THE THIRD PARTY DOES NOT EXEMPT CUSTOMER FROM THE REBATE REQUIREMENTS OUTLINED IN THE TERMS AND CONDITIONS AND MAY NOT AFFECT CUSTOMER’S TAX LIABILITY FOR REBATES PAID BY THE PROGRAM. "]
[]
[]
[]
[]
[]
[]
[]
[null,null,"Signatory name & title (please print)",null,null,null,null,null,null,"Participant signature",null,null,null,null,null,null,"Date"]
[null,null,null,null,null,null,null,null,null,"(Ink signature required)"]
[null,null,"TERMS AND CONDITIONS"]
[]
[null,null,"Important:  This form is to be read, signed and submitted with the Application."]
[null,null,"Salt River Project offers the SRP Business Solutions Standard Program (“SBS Program”) to provide customers with rebates to facilitate the installation of qualifying energy efficient equipment. The following terms and conditions apply to the program:"]
[]
[]
[null,null,"1.","SRP has contracted Nexant, Inc. (“Nexant”) to act as the Program Administrator and authorizes Nexant to administer the SRP Business Solutions programs including such activities, but not limited to; review, processing, and approval of customer applications; pre and post inspections of customer facilities and project information requests from customer; measurement and verification activities; and issuing rebate checks.\n\n"]
[]
[]
[]
[null,null,"2.",{"$f":"SUBSTITUTE(SUBSTITUTE(SUBSTITUTE($T51,\"XX\",MID(Ref!$B$1,3,2),1),\"YYYY\",2000+MID(Ref!$B$1,3,2)-1,1),\"ZZZZ\",2000+MID(Ref!$B$1,3,2),1)","v":"Funds are limited and SBS Program applications are accepted on a first-come, first-served basis.  The FY21 SBS Program is effective from May 1, 2020 through April 30, 2021 (“Effective Period”). "},null,null,null,null,null,null,null,null,null,null,null,null,null,null,null,"Funds are limited and SBS Program applications are accepted on a first-come, first-served basis.  The FYXX SBS Program is effective from May 1, YYYY through April 30, ZZZZ (“Effective Period”). "]
[]
[null,null,"3.",{"$f":"SUBSTITUTE(SUBSTITUTE(SUBSTITUTE($T53,\"XX\",MID(Ref!$B$1,3,2),1),\"YYYY\",2000+MID(Ref!$B$1,3,2)-1,1),\"ZZZZ\",2000+MID(Ref!$B$1,3,2),1)","v":"SRP allows customers to participate in multiple programs subject to an annual rebate cap, which is the maximum rebate amount a customer is eligible to be paid for the program year.  For FY21, the rebate cap is $300,000 per customer for all SRP Business Solutions programs in aggregate.  A customer is defined as a holder of a single account, multiple accounts in aggregate or corporate accounts.  For purposes of rebate caps, a customer who is the holder of multiple accounts or corporate accounts with a single SRP customer identification number will be considered\na single customer. "},null,null,null,null,null,null,null,null,null,null,null,null,null,null,null,"SRP allows customers to participate in multiple programs subject to an annual rebate cap, which is the maximum rebate amount a customer is eligible to be paid for the program year.  For FYXX, the rebate cap is $300,000 per customer for all SRP Business Solutions programs in aggregate.  A customer is defined as a holder of a single account, multiple accounts in aggregate or corporate accounts.  For purposes of rebate caps, a customer who is the holder of multiple accounts or corporate accounts with a single SRP customer identification number will be considered\na single customer. "]
[]
[]
[]
[]
[]
[null,null,"4.","Rebates pursuant to participation in the SBS Program may result in taxable income to the Customer, even if Customer does not directly receive a payment.  Customer should consult his or her own tax advisor with respect to the tax treatment of rebates provided pursuant to participation in the SBS Program."]
[]
[]
[null,null,"5.","The SRP Business Solutions Standard Program Manual (“Program Manual”) describes the customer and equipment eligibility requirements, rebate information, and program participation process for customers participating in the SBS Program. Customer must read and comply with the Program Manual available at http://www.srpnet.com/energy/powerwise/business/nexant.aspx and incorporated herein by reference."]
[]
[]
[]
[null,null,"6.","To be eligible for rebates through the SBS Program, the participant must:"]
[null,null,null,"a.","Be a current SRP non-residential retail electric customer."]
[null,null,null,"b.","Submit a completed Non-Lighting Application and any supplemental documentation that may be requested to verify energy efficiency measures."]
[]
[null,null,null,"c.","Purchase, install and commission qualifying equipment as specified in the SRP Business Solutions Standard Program Manual and/or as instructed by SRP."]
[]
[null,null,null,"d.","Abide by the program rules, eligibility requirements, and rebate levels in effect at the date of equipment installation."]
[]
[null,null,null,"e.","Provide a valid W9 form."]
[null,null,"7.","Failure to provide any of the required information, including signatures, forms, or other requested documentation, will result in the return of the Lighting Application."]
[]
[null,null,"8.","Rebates requested by the Lighting Application may exceed the amount reserved by the Rebate Reservation Request only when funds remain in the program budget and no projects have been placed on a waitlist for program participation.  In no instance will the rebate amount issued exceed the rebate amount reserved by more than 120%."]
[]
[]
[null,null,"9.","One rebate check will be issued per approved Lighting Application to the person specified on the application."]
[null,null,"10.","Qualifying equipment as defined in the Program Manual receiving rebates under the SBS Program may not receive purchase and installation rebates or credits under any other SRP programs."]
[]
[null,null,"11.","SRP reserves the right to inspect the installed equipment for compliance with the program requirements. Inspection may include a telephone survey, site visit, and/or the installation of temporary monitoring equipment at any time up to two years after installation for quality control. Within 14 days of the request, Customer shall allow SRP and Nexant reasonable access to and egress from the installation site during normal business hours, and make available at least one person familiar with the facility and measures installed.  If selected for inspection, the rebate will be withheld pending outcome of the inspection. If the equipment is found to be in compliance with the program requirements, the rebate will be paid. If the equipment is not in compliance, the customer will be notified."]
[]
[]
[]
[]
[]
[]
[null,null,"12.","In exchange for any approved equipment and/or service rebates for energy efficiency measures, the Customer hereby sells, transfers and conveys to SRP all Environmental Attributes and Environmental Attributes Reporting Rights, as such terms are defined below, associated with the energy savings attributable to the qualifying measure(s) or its operation. “Environmental Attributes” means those aspects, claims, characteristics and benefits of avoided energy use associated with the measure(s), as well as any and all fuel, emissions, air quality, or other environmental characteristics, including, but not limited to, white and green energy tags, renewable energy credits, energy efficiency credits, carbon credits, or certificates attributable to the energy savings or avoided use associated with the qualifying measure(s). \"Environmental Attributes Reporting Rights\" means all rights to report ownership of the Environmental Attributes to any person or entity under Section 1605(b) of the Energy Policy Act of 1992, any successor or replacement statutes, or otherwise."]
[]
[]
[]
[]
[]
[]
[]
[]
[null,null,"13.","As a convenience to customers, SRP provides a list of contractors, distributors, manufacturers, and other organizations (“Alliance Participants”) who may assist customers with SRP programs. Customer acknowledges that Alliance Participants are independent contractors with respect to the SBS Program, and that Alliance Participants are not authorized to make representations or incur obligations on behalf of SRP. Participation in the SBS Program as an Alliance Participant does not constitute an endorsement by SRP, nor does it certify or guarantee the quality of work performed."]
[]
[]
[]
[]
[]
[null,null,"14.","Customer is solely responsible for the selection of equipment or measures to be installed or implemented and for the selection of a third party service provider or Alliance Participant (“Customer Contractor”) to complete the installation and implementation of any equipment or measures.  SRP and Nexant make no representations and provide no warranty or guaranty with respect to the design, manufacture, construction, safety, performance or effectiveness of the newly installed equipment, including any warranties of merchantability or fitness for a particular purpose. Responsibility for delivery and workmanship related to any equipment or services the customer procures exclusively rests with the contractor or retailer selected by the customer. SRP and Nexant assume no responsibility for oversight of contractor services or for any claims the Customer might have against the Customer Contractor, the manufacturer, or the retailer with regard to the energy efficiency services or measures implemented under the SBS Program."]
[]
[]
[]
[]
[]
[]
[]
[]
[null,null,"15.","Customer hereby authorizes and acknowledges that SRP may disclose Customer’s information relating to a Customer Application (including the entirety of its contents), and any other information related to the Customer’s participation in the Program to Nexant and Alliance Participants, as applicable, and any other third party utilized by SRP for the purposes of processing the Customer’s Application, to verify or audit program records or system installation, operation and results, or as required to comply with state and/or federal law, fraud prevention, regulation, and other legal action. In those cases, SRP, Nexant, and authorized third parties shall comply with all legal requirements of the jurisdiction of the individual whose Customer data would be disclosed before making such disclosure."]
[]
[]
[]
[]
[]
[]
[null,null,"16.","Any person who knowingly files an application containing any materially false information or who purposely or misleadingly conceals information subjects such person to criminal and civil penalties.  Any and all funds determined to have been acquired on the basis of inaccurate or fraudulent information must be returned to SRP.  Any customer found to be engaged in fraudulent activity or misrepresentation of any kind will be removed from the SBS Program.  This section shall not limit other remedies that may be available for the filing of a false or fraudulent application, including, but not limited to, referral to law enforcement authorities."]
[]
[]
[]
[]
[]
[null,null,"17.","Notwithstanding anything in these Terms and Conditions to the contrary, in no event will SRP, Nexant, or their agents, consultants or subcontractors be liable hereunder for any type of damages, whether indirect, special, incidental, consequential, exemplary, reliance or punitive (even if advised of the possibility of such damages), including, without limitation, loss of use or loss of profits, whether in contract, indemnity, warranty, strict liability or tort, including negligence of any kind.  Customer waives any claims it might have against SRP or Nexant. "]
[]
[]
[]
[]
[null,null,"18.","Customer shall defend, protect, indemnify and hold harmless SRP, Nexant and their respective parent company, subsidiaries, board members, employees, subcontractors, and agents (collectively, the “Indemnified Parties”) against all claims, losses, costs, expenses, attorney’s fees, damages, demands, judgments, causes of action, suits, and liability of every kind and character whatsoever (\"Claims\") arising out of or incident to, or related in any way to, directly or indirectly, Customer’s participation in the  SBS Program; provided however, that Customer shall not be required to indemnify and hold harmless any Indemnified Party member against claims adjudicated to have been caused by an Indemnified Party’s gross negligence or willful misconduct."]
[]
[]
[]
[]
[]
[]
[null,null,"19.","Customer, at its own expense, is responsible for meeting all requirements and complying with all local and state laws and codes concerning the SBS Program, including without limitation, the installation and maintenance of eligible equipment. Customer shall, at its own expense, obtain and maintain licenses and permits needed to install eligible equipment. Failure to obtain and maintain necessary licenses and permits constitutes a material breach of Customer’s obligations under these Terms and Conditions."]
[]
[]
[]
[]
[null,null,"20.","SRP, Nexant, or their respective agents, consultants, and subcontractors shall not have any responsibility for the discovery, presence, handling, removal, or disposal of or exposure of persons to hazardous materials of any kind in connection with Customer's facility, including without limitation, asbestos, asbestos products, PCBs, or other toxic substances.  Customer shall dispose of replaced equipment in accordance with local, state, or federal codes and regulations and cannot reinstall the equipment in another location."]
[]
[]
[]
[]
[null,null,"21.","The terms and conditions set forth herein constitute a complete statement of the Terms and Conditions applicable to this promotion, and supersede all prior representations or understandings, whether written or oral. SRP shall not be bound by or be liable for any statement, representation, promise, inducement or understanding of any kind that is not set forth herein. SRP reserves the right to change or cancel this promotion or its terms and conditions at any time."]

{"sheet":"Project Information","index":3,"n_rows":401,"n_cols":25,"rows_kept":401,"cut":false,"hidden":false,"merged":[]}
[1,2,3,4,5,6,7,8,9,10,11,12,13,14,15,16,17,18,null,null,19,null,null,20,21]
["Line No.","Measure","List 1","List 2","List 3","Size","Input 1","Input 2","Input 3","Input 4","Quantity","Manufacturer","Model Number","Serial Number(s)","Notes","Hide:\nFormula Name","Rebate","Hide:\nIncremental Cost","Hide:\nBaseline kWh","Hide:\nProposed kWh","Annual kWh","Hide:\nBaseline kW","Hide:\nProposed kW","Peak kW","Hide:\nMissing Information"]
[{"$f":"IF(Table_PI[[#This Row],[Hide:\nFormula Name]]<>\"\",MAX($A$2:A2)+1,\"\")","v":""},null,null,null,null,null,null,null,null,null,null,null,null,null,null,{"$f":"IFERROR(VLOOKUP(Table_PI[[#This Row],[Measure]],'Equipment Lookups'!$C$3:$D$23,2,FALSE),\"\")","v":""},{"$f":"IF(Table_PI[[#This Row],[Hide:\nFormula Name]]<>\"\",IFERROR(IF(MeasureCalc(Table_PI[[#This Row],[Hide:\nFormula Name]],Table_PI[[#This Row],[Quantity]],Table_PI[[#This Row],[List 1]],Table_PI[[#This Row],[List 2]],Table_PI[[#This Row],[List 3]],Table_PI[[#This Row],[Size]],Table_PI[[#This Row],[Input 1]],Table_PI[[#This Row],[Input 2]],Table_PI[[#This Row],[Input 3]],Table_PI[[#This Row],[Input 4]],'Customer Information'!$AR$12,1,ROW())>0,MeasureCalc(Table_PI[[#This Row],[Hide:\nFormula Name]],Table_PI[[#This Row],[Quantity]],Table_PI[[#This Row],[List 1]],Table_PI[[#This Row],[List 2]],Table_PI[[#This Row],[List 3]],Table_PI[[#This Row],[Size]],Table_PI[[#This Row],[Input 1]],Table_PI[[#This Row],[Input 2]],Table_PI[[#This Row],[Input 3]],Table_PI[[#This Row],[Input 4]],'Customer Information'!$AR$12,1,ROW()),\"No Rebate\"),\"No Rebate\"),0)","v":0},{"$f":"IF(Table_PI[[#This Row],[Hide:\nFormula Name]]<>\"\",IFERROR(IF(MeasureCalc(Table_PI[[#This Row],[Hide:\nFormula Name]],Table_PI[[#This Row],[Quantity]],Table_PI[[#This Row],[List 1]],Table_PI[[#This Row],[List 2]],Table_PI[[#This Row],[List 3]],Table_PI[[#This Row],[Size]],Table_PI[[#This Row],[Input 1]],Table_PI[[#This Row],[Input 2]],Table_PI[[#This Row],[Input 3]],Table_PI[[#This Row],[Input 4]],'Customer Information'!$AR$12,1,ROW())>0,MeasureCalc(Table_PI[[#This Row],[Hide:\nFormula Name]],Table_PI[[#This Row],[Quantity]],Table_PI[[#This Row],[List 1]],Table_PI[[#This Row],[List 2]],Table_PI[[#This Row],[List 3]],Table_PI[[#This Row],[Size]],Table_PI[[#This Row],[Input 1]],Table_PI[[#This Row],[Input 2]],Table_PI[[#This Row],[Input 3]],Table_PI[[#This Row],[Input 4]],'Customer Information'!$AR$12,2,ROW()),\"No Rebate\"),\"No Rebate\"),0)","v":0},{"$f":"IF(Table_PI[[#This Row],[Hide:\nFormula Name]]<>\"\",IFERROR(IF(MeasureCalc(Table_PI[[#This Row],[Hide:\nFormula Name]],Table_PI[[#This Row],[Quantity]],Table_PI[[#This Row],[List 1]],Table_PI[[#This Row],[List 2]],Table_PI[[#This Row],[List 3]],Table_PI[[#This Row],[Size]],Table_PI[[#This Row],[Input 1]],Table_PI[[#This Row],[Input 2]],Table_PI[[#This Row],[Input 3]],Table_PI[[#This Row],[Input 4]],'Customer Information'!$AR$12,1,ROW())>0,MeasureCalc(Table_PI[[#This Row],[Hide:\nFormula Name]],Table_PI[[#This Row],[Quantity]],Table_PI[[#This Row],[List 1]],Table_PI[[#This Row],[List 2]],Table_PI[[#This Row],[List 3]],Table_PI[[#This Row],[Size]],Table_PI[[#This Row],[Input 1]],Table_PI[[#This Row],[Input 2]],Table_PI[[#This Row],[Input 3]],Table_PI[[#This Row],[Input 4]],'Customer Information'!$AR$12,3,ROW()),\"No Rebate\"),\"No Rebate\"),0)","v":0},{"$f":"IF(Table_PI[[#This Row],[Hide:\nFormula Name]]<>\"\",IFERROR(IF(MeasureCalc(Table_PI[[#This Row],[Hide:\nFormula Name]],Table_PI[[#This Row],[Quantity]],Table_PI[[#This Row],[List 1]],Table_PI[[#This Row],[List 2]],Table_PI[[#This Row],[List 3]],Table_PI[[#This Row],[Size]],Table_PI[[#This Row],[Input 1]],Table_PI[[#This Row],[Input 2]],Table_PI[[#This Row],[Input 3]],Table_PI[[#This Row],[Input 4]],'Customer Information'!$AR$12,1,ROW())>0,MeasureCalc(Table_PI[[#This Row],[Hide:\nFormula Name]],Table_PI[[#This Row],[Quantity]],Table_PI[[#This Row],[List 1]],Table_PI[[#This Row],[List 2]],Table_PI[[#This Row],[List 3]],Table_PI[[#This Row],[Size]],Table_PI[[#This Row],[Input 1]],Table_PI[[#This Row],[Input 2]],Table_PI[[#This Row],[Input 3]],Table_PI[[#This Row],[Input 4]],'Customer Information'!$AR$12,4,ROW()),\"No Rebate\"),\"No Rebate\"),0)","v":0},{"$f":"IF(Table_PI[[#This Row],[Hide:\nFormula Name]]<>\"\",IFERROR(IF(MeasureCalc(Table_PI[[#This Row],[Hide:\nFormula Name]],Table_PI[[#This Row],[Quantity]],Table_PI[[#This Row],[List 1]],Table_PI[[#This Row],[List 2]],Table_PI[[#This Row],[List 3]],Table_PI[[#This Row],[Size]],Table_PI[[#This Row],[Input 1]],Table_PI[[#This Row],[Input 2]],Table_PI[[#This Row],[Input 3]],Table_PI[[#This Row],[Input 4]],'Customer Information'!$AR$12,1,ROW())>0,MeasureCalc(Table_PI[[#This Row],[Hide:\nFormula Name]],Table_PI[[#This Row],[Quantity]],Table_PI[[#This Row],[List 1]],Table_PI[[#This Row],[List 2]],Table_PI[[#This Row],[List 3]],Table_PI[[#This Row],[Size]],Table_PI[[#This Row],[Input 1]],Table_PI[[#This Row],[Input 2]],Table_PI[[#This Row],[Input 3]],Table_PI[[#This Row],[Input 4]],'Customer Information'!$AR$12,5,ROW()),\"No Rebate\"),\"No Rebate\"),0)","v":0},{"$f":"IF(Table_PI[[#This Row],[Hide:\nFormula Name]]<>\"\",IFERROR(IF(MeasureCalc(Table_PI[[#This Row],[Hide:\nFormula Name]],Table_PI[[#This Row],[Quantity]],Table_PI[[#This Row],[List 1]],Table_PI[[#This Row],[List 2]],Table_PI[[#This Row],[List 3]],Table_PI[[#This Row],[Size]],Table_PI[[#This Row],[Input 1]],Table_PI[[#This Row],[Input 2]],Table_PI[[#This Row],[Input 3]],Table_PI[[#This Row],[Input 4]],'Customer Information'!$AR$12,1,ROW())>0,MeasureCalc(Table_PI[[#This Row],[Hide:\nFormula Name]],Table_PI[[#This Row],[Quantity]],Table_PI[[#This Row],[List 1]],Table_PI[[#This Row],[List 2]],Table_PI[[#This Row],[List 3]],Table_PI[[#This Row],[Size]],Table_PI[[#This Row],[Input 1]],Table_PI[[#This Row],[Input 2]],Table_PI[[#This Row],[Input 3]],Table_PI[[#This Row],[Input 4]],'Customer Information'!$AR$12,6,ROW()),\"No Rebate\"),\"No Rebate\"),0)","v":0},{"$f":"IF(Table_PI[[#This Row],[Hide:\nFormula Name]]<>\"\",IFERROR(IF(MeasureCalc(Table_PI[[#This Row],[Hide:\nFormula Name]],Table_PI[[#This Row],[Quantity]],Table_PI[[#This Row],[List 1]],Table_PI[[#This Row],[List 2]],Table_PI[[#This Row],[List 3]],Table_PI[[#This Row],[Size]],Table_PI[[#This Row],[Input 1]],Table_PI[[#This Row],[Input 2]],Table_PI[[#This Row],[Input 3]],Table_PI[[#This Row],[Input 4]],'Customer Information'!$AR$12,1,ROW())>0,MeasureCalc(Table_PI[[#This Row],[Hide:\nFormula Name]],Table_PI[[#This Row],[Quantity]],Table_PI[[#This Row],[List 1]],Table_PI[[#This Row],[List 2]],Table_PI[[#This Row],[List 3]],Table_PI[[#This Row],[Size]],Table_PI[[#This Row],[Input 1]],Table_PI[[#This Row],[Input 2]],Table_PI[[#This Row],[Input 3]],Table_PI[[#This Row],[Input 4]],'Customer Information'!$AR$12,7,ROW()),\"No Rebate\"),\"No Rebate\"),0)","v":0},{"$f":"IF(Table_PI[[#This Row],[Hide:\nFormula Name]]<>\"\",IFERROR(IF(MeasureCalc(Table_PI[[#This Row],[Hide:\nFormula Name]],Table_PI[[#This Row],[Quantity]],Table_PI[[#This Row],[List 1]],Table_PI[[#This Row],[List 2]],Table_PI[[#This Row],[List 3]],Table_PI[[#This Row],[Size]],Table_PI[[#This Row],[Input 1]],Table_PI[[#This Row],[Input 2]],Table_PI[[#This Row],[Input 3]],Table_PI[[#This Row],[Input 4]],'Customer Information'!$AR$12,1,ROW())>0,MeasureCalc(Table_PI[[#This Row],[Hide:\nFormula Name]],Table_PI[[#This Row],[Quantity]],Table_PI[[#This Row],[List 1]],Table_PI[[#This Row],[List 2]],Table_PI[[#This Row],[List 3]],Table_PI[[#This Row],[Size]],Table_PI[[#This Row],[Input 1]],Table_PI[[#This Row],[Input 2]],Table_PI[[#This Row],[Input 3]],Table_PI[[#This Row],[Input 4]],'Customer Information'!$AR$12,8,ROW()),\"No Rebate\"),\"No Rebate\"),0)","v":0},{"$f":"IF(Table_PI[[#This Row],[Hide:\nFormula Name]]<>\"\",IF(AND(Table_PI[[#This Row],[Hide:\nFormula Name]]<>\"\",OR(Table_PI[[#This Row],[Rebate]]>0,Table_PI[[#This Row],[Rebate]]=\"No Rebate\")),TRUE,\"MI: Line Item \" & $A3),\"\")","v":""}]
[{"$f":"IF(Table_PI[[#This Row],[Hide:\nFormula Name]]<>\"\",MAX($A$2:A3)+1,\"\")","v":""},null,null,null,null,null,null,null,null,null,null,null,null,null,null,{"$f":"IFERROR(VLOOKUP(Table_PI[[#This Row],[Measure]],'Equipment Lookups'!$C$3:$D$23,2,FALSE),\"\")","v":""},{"$f":"IF(Table_PI[[#This Row],[Hide:\nFormula Name]]<>\"\",IFERROR(IF(MeasureCalc(Table_PI[[#This Row],[Hide:\nFormula Name]],Table_PI[[#This Row],[Quantity]],Table_PI[[#This Row],[List 1]],Table_PI[[#This Row],[List 2]],Table_PI[[#This Row],[List 3]],Table_PI[[#This Row],[Size]],Table_PI[[#This Row],[Input 1]],Table_PI[[#This Row],[Input 2]],Table_PI[[#This Row],[Input 3]],Table_PI[[#This Row],[Input 4]],'Customer Information'!$AR$12,1,ROW())>0,MeasureCalc(Table_PI[[#This Row],[Hide:\nFormula Name]],Table_PI[[#This Row],[Quantity]],Table_PI[[#This Row],[List 1]],Table_PI[[#This Row],[List 2]],Table_PI[[#This Row],[List 3]],Table_PI[[#This Row],[Size]],Table_PI[[#This Row],[Input 1]],Table_PI[[#This Row],[Input 2]],Table_PI[[#This Row],[Input 3]],Table_PI[[#This Row],[Input 4]],'Customer Information'!$AR$12,1,ROW()),\"No Rebate\"),\"No Rebate\"),0)","v":0},{"$f":"IF(Table_PI[[#This Row],[Hide:\nFormula Name]]<>\"\",IFERROR(IF(MeasureCalc(Table_PI[[#This Row],[Hide:\nFormula Name]],Table_PI[[#This Row],[Quantity]],Table_PI[[#This Row],[List 1]],Table_PI[[#This Row],[List 2]],Table_PI[[#This Row],[List 3]],Table_PI[[#This Row],[Size]],Table_PI[[#This Row],[Input 1]],Table_PI[[#This Row],[Input 2]],Table_PI[[#This Row],[Input 3]],Table_PI[[#This Row],[Input 4]],'Customer Information'!$AR$12,1,ROW())>0,MeasureCalc(Table_PI[[#This Row],[Hide:\nFormula Name]],Table_PI[[#This Row],[Quantity]],Table_PI[[#This Row],[List 1]],Table_PI[[#This Row],[List 2]],Table_PI[[#This Row],[List 3]],Table_PI[[#This Row],[Size]],Table_PI[[#This Row],[Input 1]],Table_PI[[#This Row],[Input 2]],Table_PI[[#This Row],[Input 3]],Table_PI[[#This Row],[Input 4]],'Customer Information'!$AR$12,2,ROW()),\"No Rebate\"),\"No Rebate\"),0)","v":0},{"$f":"IF(Table_PI[[#This Row],[Hide:\nFormula Name]]<>\"\",IFERROR(IF(MeasureCalc(Table_PI[[#This Row],[Hide:\nFormula Name]],Table_PI[[#This Row],[Quantity]],Table_PI[[#This Row],[List 1]],Table_PI[[#This Row],[List 2]],Table_PI[[#This Row],[List 3]],Table_PI[[#This Row],[Size]],Table_PI[[#This Row],[Input 1]],Table_PI[[#This Row],[Input 2]],Table_PI[[#This Row],[Input 3]],Table_PI[[#This Row],[Input 4]],'Customer Information'!$AR$12,1,ROW())>0,MeasureCalc(Table_PI[[#This Row],[Hide:\nFormula Name]],Table_PI[[#This Row],[Quantity]],Table_PI[[#This Row],[List 1]],Table_PI[[#This Row],[List 2]],Table_PI[[#This Row],[List 3]],Table_PI[[#This Row],[Size]],Table_PI[[#This Row],[Input 1]],Table_PI[[#This Row],[Input 2]],Table_PI[[#This Row],[Input 3]],Table_PI[[#This Row],[Input 4]],'Customer Information'!$AR$12,3,ROW()),\"No Rebate\"),\"No Rebate\"),0)","v":0},{"$f":"IF(Table_PI[[#This Row],[Hide:\nFormula Name]]<>\"\",IFERROR(IF(MeasureCalc(Table_PI[[#This Row],[Hide:\nFormula Name]],Table_PI[[#This Row],[Quantity]],Table_PI[[#This Row],[List 1]],Table_PI[[#This Row],[List 2]],Table_PI[[#This Row],[List 3]],Table_PI[[#This Row],[Size]],Table_PI[[#This Row],[Input 1]],Table_PI[[#This Row],[Input 2]],Table_PI[[#This Row],[Input 3]],Table_PI[[#This Row],[Input 4]],'Customer Information'!$AR$12,1,ROW())>0,MeasureCalc(Table_PI[[#This Row],[Hide:\nFormula Name]],Table_PI[[#This Row],[Quantity]],Table_PI[[#This Row],[List 1]],Table_PI[[#This Row],[List 2]],Table_PI[[#This Row],[List 3]],Table_PI[[#This Row],[Size]],Table_PI[[#This Row],[Input 1]],Table_PI[[#This Row],[Input 2]],Table_PI[[#This Row],[Input 3]],Table_PI[[#This Row],[Input 4]],'Customer Information'!$AR$12,4,ROW()),\"No Rebate\"),\"No Rebate\"),0)","v":0},{"$f":"IF(Table_PI[[#This Row],[Hide:\nFormula Name]]<>\"\",IFERROR(IF(MeasureCalc(Table_PI[[#This Row],[Hide:\nFormula Name]],Table_PI[[#This Row],[Quantity]],Table_PI[[#This Row],[List 1]],Table_PI[[#This Row],[List 2]],Table_PI[[#This Row],[List 3]],Table_PI[[#This Row],[Size]],Table_PI[[#This Row],[Input 1]],Table_PI[[#This Row],[Input 2]],Table_PI[[#This Row],[Input 3]],Table_PI[[#This Row],[Input 4]],'Customer Information'!$AR$12,1,ROW())>0,MeasureCalc(Table_PI[[#This Row],[Hide:\nFormula Name]],Table_PI[[#This Row],[Quantity]],Table_PI[[#This Row],[List 1]],Table_PI[[#This Row],[List 2]],Table_PI[[#This Row],[List 3]],Table_PI[[#This Row],[Size]],Table_PI[[#This Row],[Input 1]],Table_PI[[#This Row],[Input 2]],Table_PI[[#This Row],[Input 3]],Table_PI[[#This Row],[Input 4]],'Customer Information'!$AR$12,5,ROW()),\"No Rebate\"),\"No Rebate\"),0)","v":0},{"$f":"IF(Table_PI[[#This Row],[Hide:\nFormula Name]]<>\"\",IFERROR(IF(MeasureCalc(Table_PI[[#This Row],[Hide:\nFormula Name]],Table_PI[[#This Row],[Quantity]],Table_PI[[#This Row],[List 1]],Table_PI[[#This Row],[List 2]],Table_PI[[#This Row],[List 3]],Table_PI[[#This Row],[Size]],Table_PI[[#This Row],[Input 1]],Table_PI[[#This Row],[Input 2]],Table_PI[[#This Row],[Input 3]],Table_PI[[#This Row],[Input 4]],'Customer Information'!$AR$12,1,ROW())>0,MeasureCalc(Table_PI[[#This Row],[Hide:\nFormula Name]],Table_PI[[#This Row],[Quantity]],Table_PI[[#This Row],[List 1]],Table_PI[[#This Row],[List 2]],Table_PI[[#This Row],[List 3]],Table_PI[[#This Row],[Size]],Table_PI[[#This Row],[Input 1]],Table_PI[[#This Row],[Input 2]],Table_PI[[#This Row],[Input 3]],Table_PI[[#This Row],[Input 4]],'Customer Information'!$AR$12,6,ROW()),\"No Rebate\"),\"No Rebate\"),0)","v":0},{"$f":"IF(Table_PI[[#This Row],[Hide:\nFormula Name]]<>\"\",IFERROR(IF(MeasureCalc(Table_PI[[#This Row],[Hide:\nFormula Name]],Table_PI[[#This Row],[Quantity]],Table_PI[[#This Row],[List 1]],Table_PI[[#This Row],[List 2]],Table_PI[[#This Row],[List 3]],Table_PI[[#This Row],[Size]],Table_PI[[#This Row],[Input 1]],Table_PI[[#This Row],[Input 2]],Table_PI[[#This Row],[Input 3]],Table_PI[[#This Row],[Input 4]],'Customer Information'!$AR$12,1,ROW())>0,MeasureCalc(Table_PI[[#This Row],[Hide:\nFormula Name]],Table_PI[[#This Row],[Quantity]],Table_PI[[#This Row],[List 1]],Table_PI[[#This Row],[List 2]],Table_PI[[#This Row],[List 3]],Table_PI[[#This Row],[Size]],Table_PI[[#This Row],[Input 1]],Table_PI[[#This Row],[Input 2]],Table_PI[[#This Row],[Input 3]],Table_PI[[#This Row],[Input 4]],'Customer Information'!$AR$12,7,ROW()),\"No Rebate\"),\"No Rebate\"),0)","v":0},{"$f":"IF(Table_PI[[#This Row],[Hide:\nFormula Name]]<>\"\",IFERROR(IF(MeasureCalc(Table_PI[[#This Row],[Hide:\nFormula Name]],Table_PI[[#This Row],[Quantity]],Table_PI[[#This Row],[List 1]],Table_PI[[#This Row],[List 2]],Table_PI[[#This Row],[List 3]],Table_PI[[#This Row],[Size]],Table_PI[[#This Row],[Input 1]],Table_PI[[#This Row],[Input 2]],Table_PI[[#This Row],[Input 3]],Table_PI[[#This Row],[Input 4]],'Customer Information'!$AR$12,1,ROW())>0,MeasureCalc(Table_PI[[#This Row],[Hide:\nFormula Name]],Table_PI[[#This Row],[Quantity]],Table_PI[[#This Row],[List 1]],Table_PI[[#This Row],[List 2]],Table_PI[[#This Row],[List 3]],Table_PI[[#This Row],[Size]],Table_PI[[#This Row],[Input 1]],Table_PI[[#This Row],[Input 2]],Table_PI[[#This Row],[Input 3]],Table_PI[[#This Row],[Input 4]],'Customer Information'!$AR$12,8,ROW()),\"No Rebate\"),\"No Rebate\"),0)","v":0},{"$f":"IF(Table_PI[[#This Row],[Hide:\nFormula Name]]<>\"\",IF(AND(Table_PI[[#This Row],[Hide:\nFormula Name]]<>\"\",OR(Table_PI[[#This Row],[Rebate]]>0,Table_PI[[#This Row],[Rebate]]=\"No Rebate\")),TRUE,\"MI: Line Item \" & $A4),\"\")","v":""}]
[{"$f":"IF(Table_PI[[#This Row],[Hide:\nFormula Name]]<>\"\",MAX($A$2:A4)+1,\"\")","v":""},null,null,null,null,null,null,null,null,null,null,null,null,null,null,{"$f":"IFERROR(VLOOKUP(Table_PI[[#This Row],[Measure]],'Equipment Lookups'!$C$3:$D$23,2,FALSE),\"\")","v":""},{"$f":"IF(Table_PI[[#This Row],[Hide:\nFormula Name]]<>\"\",IFERROR(IF(MeasureCalc(Table_PI[[#This Row],[Hide:\nFormula Name]],Table_PI[[#This Row],[Quantity]],Table_PI[[#This Row],[List 1]],Table_PI[[#This Row],[List 2]],Table_PI[[#This Row],[List 3]],Table_PI[[#This Row],[Size]],Table_PI[[#This Row],[Input 1]],Table_PI[[#This Row],[Input 2]],Table_PI[[#This Row],[Input 3]],Table_PI[[#This Row],[Input 4]],'Customer Information'!$AR$12,1,ROW())>0,MeasureCalc(Table_PI[[#This Row],[Hide:\nFormula Name]],Table_PI[[#This Row],[Quantity]],Table_PI[[#This Row],[List 1]],Table_PI[[#This Row],[List 2]],Table_PI[[#This Row],[List 3]],Table_PI[[#This Row],[Size]],Table_PI[[#This Row],[Input 1]],Table_PI[[#This Row],[Input 2]],Table_PI[[#This Row],[Input 3]],Table_PI[[#This Row],[Input 4]],'Customer Information'!$AR$12,1,ROW()),\"No Rebate\"),\"No Rebate\"),0)","v":0},{"$f":"IF(Table_PI[[#This Row],[Hide:\nFormula Name]]<>\"\",IFERROR(IF(MeasureCalc(Table_PI[[#This Row],[Hide:\nFormula Name]],Table_PI[[#This Row],[Quantity]],Table_PI[[#This Row],[List 1]],Table_PI[[#This Row],[List 2]],Table_PI[[#This Row],[List 3]],Table_PI[[#This Row],[Size]],Table_PI[[#This Row],[Input 1]],Table_PI[[#This Row],[Input 2]],Table_PI[[#This Row],[Input 3]],Table_PI[[#This Row],[Input 4]],'Customer Information'!$AR$12,1,ROW())>0,MeasureCalc(Table_PI[[#This Row],[Hide:\nFormula Name]],Table_PI[[#This Row],[Quantity]],Table_PI[[#This Row],[List 1]],Table_PI[[#This Row],[List 2]],Table_PI[[#This Row],[List 3]],Table_PI[[#This Row],[Size]],Table_PI[[#This Row],[Input 1]],Table_PI[[#This Row],[Input 2]],Table_PI[[#This Row],[Input 3]],Table_PI[[#This Row],[Input 4]],'Customer Information'!$AR$12,2,ROW()),\"No Rebate\"),\"No Rebate\"),0)","v":0},{"$f":"IF(Table_PI[[#This Row],[Hide:\nFormula Name]]<>\"\",IFERROR(IF(MeasureCalc(Table_PI[[#This Row],[Hide:\nFormula Name]],Table_PI[[#This Row],[Quantity]],Table_PI[[#This Row],[List 1]],Table_PI[[#This Row],[List 2]],Table_PI[[#This Row],[List 3]],Table_PI[[#This Row],[Size]],Table_PI[[#This Row],[Input 1]],Table_PI[[#This Row],[Input 2]],Table_PI[[#This Row],[Input 3]],Table_PI[[#This Row],[Input 4]],'Customer Information'!$AR$12,1,ROW())>0,MeasureCalc(Table_PI[[#This Row],[Hide:\nFormula Name]],Table_PI[[#This Row],[Quantity]],Table_PI[[#This Row],[List 1]],Table_PI[[#This Row],[List 2]],Table_PI[[#This Row],[List 3]],Table_PI[[#This Row],[Size]],Table_PI[[#This Row],[Input 1]],Table_PI[[#This Row],[Input 2]],Table_PI[[#This Row],[Input 3]],Table_PI[[#This Row],[Input 4]],'Customer Information'!$AR$12,3,ROW()),\"No Rebate\"),\"No Rebate\"),0)","v":0},{"$f":"IF(Table_PI[[#This Row],[Hide:\nFormula Name]]<>\"\",IFERROR(IF(MeasureCalc(Table_PI[[#This Row],[Hide:\nFormula Name]],Table_PI[[#This Row],[Quantity]],Table_PI[[#This Row],[List 1]],Table_PI[[#This Row],[List 2]],Table_PI[[#This Row],[List 3]],Table_PI[[#This Row],[Size]],Table_PI[[#This Row],[Input 1]],Table_PI[[#This Row],[Input 2]],Table_PI[[#This Row],[Input 3]],Table_PI[[#This Row],[Input 4]],'Customer Information'!$AR$12,1,ROW())>0,MeasureCalc(Table_PI[[#This Row],[Hide:\nFormula Name]],Table_PI[[#This Row],[Quantity]],Table_PI[[#This Row],[List 1]],Table_PI[[#This Row],[List 2]],Table_PI[[#This Row],[List 3]],Table_PI[[#This Row],[Size]],Table_PI[[#This Row],[Input 1]],Table_PI[[#This Row],[Input 2]],Table_PI[[#This Row],[Input 3]],Table_PI[[#This Row],[Input 4]],'Customer Information'!$AR$12,4,ROW()),\"No Rebate\"),\"No Rebate\"),0)","v":0},{"$f":"IF(Table_PI[[#This Row],[Hide:\nFormula Name]]<>\"\",IFERROR(IF(MeasureCalc(Table_PI[[#This Row],[Hide:\nFormula Name]],Table_PI[[#This Row],[Quantity]],Table_PI[[#This Row],[List 1]],Table_PI[[#This Row],[List 2]],Table_PI[[#This Row],[List 3]],Table_PI[[#This Row],[Size]],Table_PI[[#This Row],[Input 1]],Table_PI[[#This Row],[Input 2]],Table_PI[[#This Row],[Input 3]],Table_PI[[#This Row],[Input 4]],'Customer Information'!$AR$12,1,ROW())>0,MeasureCalc(Table_PI[[#This Row],[Hide:\nFormula Name]],Table_PI[[#This Row],[Quantity]],Table_PI[[#This Row],[List 1]],Table_PI[[#This Row],[List 2]],Table_PI[[#This Row],[List 3]],Table_PI[[#This Row],[Size]],Table_PI[[#This Row],[Input 1]],Table_PI[[#This Row],[Input 2]],Table_PI[[#This Row],[Input 3]],Table_PI[[#This Row],[Input 4]],'Customer Information'!$AR$12,5,ROW()),\"No Rebate\"),\"No Rebate\"),0)","v":0},{"$f":"IF(Table_PI[[#This Row],[Hide:\nFormula Name]]<>\"\",IFERROR(IF(MeasureCalc(Table_PI[[#This Row],[Hide:\nFormula Name]],Table_PI[[#This Row],[Quantity]],Table_PI[[#This Row],[List 1]],Table_PI[[#This Row],[List 2]],Table_PI[[#This Row],[List 3]],Table_PI[[#This Row],[Size]],Table_PI[[#This Row],[Input 1]],Table_PI[[#This Row],[Input 2]],Table_PI[[#This Row],[Input 3]],Table_PI[[#This Row],[Input 4]],'Customer Information'!$AR$12,1,ROW())>0,MeasureCalc(Table_PI[[#This Row],[Hide:\nFormula Name]],Table_PI[[#This Row],[Quantity]],Table_PI[[#This Row],[List 1]],Table_PI[[#This Row],[List 2]],Table_PI[[#This Row],[List 3]],Table_PI[[#This Row],[Size]],Table_PI[[#This Row],[Input 1]],Table_PI[[#This Row],[Input 2]],Table_PI[[#This Row],[Input 3]],Table_PI[[#This Row],[Input 4]],'Customer Information'!$AR$12,6,ROW()),\"No Rebate\"),\"No Rebate\"),0)","v":0},{"$f":"IF(Table_PI[[#This Row],[Hide:\nFormula Name]]<>\"\",IFERROR(IF(MeasureCalc(Table_PI[[#This Row],[Hide:\nFormula Name]],Table_PI[[#This Row],[Quantity]],Table_PI[[#This Row],[List 1]],Table_PI[[#This Row],[List 2]],Table_PI[[#This Row],[List 3]],Table_PI[[#This Row],[Size]],Table_PI[[#This Row],[Input 1]],Table_PI[[#This Row],[Input 2]],Table_PI[[#This Row],[Input 3]],Table_PI[[#This Row],[Input 4]],'Customer Information'!$AR$12,1,ROW())>0,MeasureCalc(Table_PI[[#This Row],[Hide:\nFormula Name]],Table_PI[[#This Row],[Quantity]],Table_PI[[#This Row],[List 1]],Table_PI[[#This Row],[List 2]],Table_PI[[#This Row],[List 3]],Table_PI[[#This Row],[Size]],Table_PI[[#This Row],[Input 1]],Table_PI[[#This Row],[Input 2]],Table_PI[[#This Row],[Input 3]],Table_PI[[#This Row],[Input 4]],'Customer Information'!$AR$12,7,ROW()),\"No Rebate\"),\"No Rebate\"),0)","v":0},{"$f":"IF(Table_PI[[#This Row],[Hide:\nFormula Name]]<>\"\",IFERROR(IF(MeasureCalc(Table_PI[[#This Row],[Hide:\nFormula Name]],Table_PI[[#This Row],[Quantity]],Table_PI[[#This Row],[List 1]],Table_PI[[#This Row],[List 2]],Table_PI[[#This Row],[List 3]],Table_PI[[#This Row],[Size]],Table_PI[[#This Row],[Input 1]],Table_PI[[#This Row],[Input 2]],Table_PI[[#This Row],[Input 3]],Table_PI[[#This Row],[Input 4]],'Customer Information'!$AR$12,1,ROW())>0,MeasureCalc(Table_PI[[#This Row],[Hide:\nFormula Name]],Table_PI[[#This Row],[Quantity]],Table_PI[[#This Row],[List 1]],Table_PI[[#This Row],[List 2]],Table_PI[[#This Row],[List 3]],Table_PI[[#This Row],[Size]],Table_PI[[#This Row],[Input 1]],Table_PI[[#This Row],[Input 2]],Table_PI[[#This Row],[Input 3]],Table_PI[[#This Row],[Input 4]],'Customer Information'!$AR$12,8,ROW()),\"No Rebate\"),\"No Rebate\"),0)","v":0},{"$f":"IF(Table_PI[[#This Row],[Hide:\nFormula Name]]<>\"\",IF(AND(Table_PI[[#This Row],[Hide:\nFormula Name]]<>\"\",OR(Table_PI[[#This Row],[Rebate]]>0,Table_PI[[#This Row],[Rebate]]=\"No Rebate\")),TRUE,\"MI: Line Item \" & $A5),\"\")","v":""}]
[{"$f":"IF(Table_PI[[#This Row],[Hide:\nFormula Name]]<>\"\",MAX($A$2:A5)+1,\"\")","v":""},null,null,null,null,null,null,null,null,null,null,null,null,null,null,{"$f":"IFERROR(VLOOKUP(Table_PI[[#This Row],[Measure]],'Equipment Lookups'!$C$3:$D$23,2,FALSE),\"\")","v":""},{"$f":"IF(Table_PI[[#This Row],[Hide:\nFormula Name]]<>\"\",IFERROR(IF(MeasureCalc(Table_PI[[#This Row],[Hide:\nFormula Name]],Table_PI[[#This Row],[Quantity]],Table_PI[[#This Row],[List 1]],Table_PI[[#This Row],[List 2]],Table_PI[[#This Row],[List 3]],Table_PI[[#This Row],[Size]],Table_PI[[#This Row],[Input 1]],Table_PI[[#This Row],[Input 2]],Table_PI[[#This Row],[Input 3]],Table_PI[[#This Row],[Input 4]],'Customer Information'!$AR$12,1,ROW())>0,MeasureCalc(Table_PI[[#This Row],[Hide:\nFormula Name]],Table_PI[[#This Row],[Quantity]],Table_PI[[#This Row],[List 1]],Table_PI[[#This Row],[List 2]],Table_PI[[#This Row],[List 3]],Table_PI[[#This Row],[Size]],Table_PI[[#This Row],[Input 1]],Table_PI[[#This Row],[Input 2]],Table_PI[[#This Row],[Input 3]],Table_PI[[#This Row],[Input 4]],'Customer Information'!$AR$12,1,ROW()),\"No Rebate\"),\"No Rebate\"),0)","v":0},{"$f":"IF(Table_PI[[#This Row],[Hide:\nFormula Name]]<>\"\",IFERROR(IF(MeasureCalc(Table_PI[[#This Row],[Hide:\nFormula Name]],Table_PI[[#This Row],[Quantity]],Table_PI[[#This Row],[List 1]],Table_PI[[#This Row],[List 2]],Table_PI[[#This Row],[List 3]],Table_PI[[#This Row],[Size]],Table_PI[[#This Row],[Input 1]],Table_PI[[#This Row],[Input 2]],Table_PI[[#This Row],[Input 3]],Table_PI[[#This Row],[Input 4]],'Customer Information'!$AR$12,1,ROW())>0,MeasureCalc(Table_PI[[#This Row],[Hide:\nFormula Name]],Table_PI[[#This Row],[Quantity]],Table_PI[[#This Row],[List 1]],Table_PI[[#This Row],[List 2]],Table_PI[[#This Row],[List 3]],Table_PI[[#This Row],[Size]],Table_PI[[#This Row],[Input 1]],Table_PI[[#This Row],[Input 2]],Table_PI[[#This Row],[Input 3]],Table_PI[[#This Row],[Input 4]],'Customer Information'!$AR$12,2,ROW()),\"No Rebate\"),\"No Rebate\"),0)","v":0},{"$f":"IF(Table_PI[[#This Row],[Hide:\nFormula Name]]<>\"\",IFERROR(IF(MeasureCalc(Table_PI[[#This Row],[Hide:\nFormula Name]],Table_PI[[#This Row],[Quantity]],Table_PI[[#This Row],[List 1]],Table_PI[[#This Row],[List 2]],Table_PI[[#This Row],[List 3]],Table_PI[[#This Row],[Size]],Table_PI[[#This Row],[Input 1]],Table_PI[[#This Row],[Input 2]],Table_PI[[#This Row],[Input 3]],Table_PI[[#This Row],[Input 4]],'Customer Information'!$AR$12,1,ROW())>0,MeasureCalc(Table_PI[[#This Row],[Hide:\nFormula Name]],Table_PI[[#This Row],[Quantity]],Table_PI[[#This Row],[List 1]],Table_PI[[#This Row],[List 2]],Table_PI[[#This Row],[List 3]],Table_PI[[#This Row],[Size]],Table_PI[[#This Row],[Input 1]],Table_PI[[#This Row],[Input 2]],Table_PI[[#This Row],[Input 3]],Table_PI[[#This Row],[Input 4]],'Customer Information'!$AR$12,3,ROW()),\"No Rebate\"),\"No Rebate\"),0)","v":0},{"$f":"IF(Table_PI[[#This Row],[Hide:\nFormula Name]]<>\"\",IFERROR(IF(MeasureCalc(Table_PI[[#This Row],[Hide:\nFormula Name]],Table_PI[[#This Row],[Quantity]],Table_PI[[#This Row],[List 1]],Table_PI[[#This Row],[List 2]],Table_PI[[#This Row],[List 3]],Table_PI[[#This Row],[Size]],Table_PI[[#This Row],[Input 1]],Table_PI[[#This Row],[Input 2]],Table_PI[[#This Row],[Input 3]],Table_PI[[#This Row],[Input 4]],'Customer Information'!$AR$12,1,ROW())>0,MeasureCalc(Table_PI[[#This Row],[Hide:\nFormula Name]],Table_PI[[#This Row],[Quantity]],Table_PI[[#This Row],[List 1]],Table_PI[[#This Row],[List 2]],Table_PI[[#This Row],[List 3]],Table_PI[[#This Row],[Size]],Table_PI[[#This Row],[Input 1]],Table_PI[[#This Row],[Input 2]],Table_PI[[#This Row],[Input 3]],Table_PI[[#This Row],[Input 4]],'Customer Information'!$AR$12,4,ROW()),\"No Rebate\"),\"No Rebate\"),0)","v":0},{"$f":"IF(Table_PI[[#This Row],[Hide:\nFormula Name]]<>\"\",IFERROR(IF(MeasureCalc(Table_PI[[#This Row],[Hide:\nFormula Name]],Table_PI[[#This Row],[Quantity]],Table_PI[[#This Row],[List 1]],Table_PI[[#This Row],[List 2]],Table_PI[[#This Row],[List 3]],Table_PI[[#This Row],[Size]],Table_PI[[#This Row],[Input 1]],Table_PI[[#This Row],[Input 2]],Table_PI[[#This Row],[Input 3]],Table_PI[[#This Row],[Input 4]],'Customer Information'!$AR$12,1,ROW())>0,MeasureCalc(Table_PI[[#This Row],[Hide:\nFormula Name]],Table_PI[[#This Row],[Quantity]],Table_PI[[#This Row],[List 1]],Table_PI[[#This Row],[List 2]],Table_PI[[#This Row],[List 3]],Table_PI[[#This Row],[Size]],Table_PI[[#This Row],[Input 1]],Table_PI[[#This Row],[Input 2]],Table_PI[[#This Row],[Input 3]],Table_PI[[#This Row],[Input 4]],'Customer Information'!$AR$12,5,ROW()),\"No Rebate\"),\"No Rebate\"),0)","v":0},{"$f":"IF(Table_PI[[#This Row],[Hide:\nFormula Name]]<>\"\",IFERROR(IF(MeasureCalc(Table_PI[[#This Row],[Hide:\nFormula Name]],Table_PI[[#This Row],[Quantity]],Table_PI[[#This Row],[List 1]],Table_PI[[#This Row],[List 2]],Table_PI[[#This Row],[List 3]],Table_PI[[#This Row],[Size]],Table_PI[[#This Row],[Input 1]],Table_PI[[#This Row],[Input 2]],Table_PI[[#This Row],[Input 3]],Table_PI[[#This Row],[Input 4]],'Customer Information'!$AR$12,1,ROW())>0,MeasureCalc(Table_PI[[#This Row],[Hide:\nFormula Name]],Table_PI[[#This Row],[Quantity]],Table_PI[[#This Row],[List 1]],Table_PI[[#This Row],[List 2]],Table_PI[[#This Row],[List 3]],Table_PI[[#This Row],[Size]],Table_PI[[#This Row],[Input 1]],Table_PI[[#This Row],[Input 2]],Table_PI[[#This Row],[Input 3]],Table_PI[[#This Row],[Input 4]],'Customer Information'!$AR$12,6,ROW()),\"No Rebate\"),\"No Rebate\"),0)","v":0},{"$f":"IF(Table_PI[[#This Row],[Hide:\nFormula Name]]<>\"\",IFERROR(IF(MeasureCalc(Table_PI[[#This Row],[Hide:\nFormula Name]],Table_PI[[#This Row],[Quantity]],Table_PI[[#This Row],[List 1]],Table_PI[[#This Row],[List 2]],Table_PI[[#This Row],[List 3]],Table_PI[[#This Row],[Size]],Table_PI[[#This Row],[Input 1]],Table_PI[[#This Row],[Input 2]],Table_PI[[#This Row],[Input 3]],Table_PI[[#This Row],[Input 4]],'Customer Information'!$AR$12,1,ROW())>0,MeasureCalc(Table_PI[[#This Row],[Hide:\nFormula Name]],Table_PI[[#This Row],[Quantity]],Table_PI[[#This Row],[List 1]],Table_PI[[#This Row],[List 2]],Table_PI[[#This Row],[List 3]],Table_PI[[#This Row],[Size]],Table_PI[[#This Row],[Input 1]],Table_PI[[#This Row],[Input 2]],Table_PI[[#This Row],[Input 3]],Table_PI[[#This Row],[Input 4]],'Customer Information'!$AR$12,7,ROW()),\"No Rebate\"),\"No Rebate\"),0)","v":0},{"$f":"IF(Table_PI[[#This Row],[Hide:\nFormula Name]]<>\"\",IFERROR(IF(MeasureCalc(Table_PI[[#This Row],[Hide:\nFormula Name]],Table_PI[[#This Row],[Quantity]],Table_PI[[#This Row],[List 1]],Table_PI[[#This Row],[List 2]],Table_PI[[#This Row],[List 3]],Table_PI[[#This Row],[Size]],Table_PI[[#This Row],[Input 1]],Table_PI[[#This Row],[Input 2]],Table_PI[[#This Row],[Input 3]],Table_PI[[#This Row],[Input 4]],'Customer Information'!$AR$12,1,ROW())>0,MeasureCalc(Table_PI[[#This Row],[Hide:\nFormula Name]],Table_PI[[#This Row],[Quantity]],Table_PI[[#This Row],[List 1]],Table_PI[[#This Row],[List 2]],Table_PI[[#This Row],[List 3]],Table_PI[[#This Row],[Size]],Table_PI[[#This Row],[Input 1]],Table_PI[[#This Row],[Input 2]],Table_PI[[#This Row],[Input 3]],Table_PI[[#This Row],[Input 4]],'Customer Information'!$AR$12,8,ROW()),\"No Rebate\"),\"No Rebate\"),0)","v":0},{"$f":"IF(Table_PI[[#This Row],[Hide:\nFormula Name]]<>\"\",IF(AND(Table_PI[[#This Row],[Hide:\nFormula Name]]<>\"\",OR(Table_PI[[#This Row],[Rebate]]>0,Table_PI[[#This Row],[Rebate]]=\"No Rebate\")),TRUE,\"MI: Line Item \" & $A6),\"\")","v":""}]
[{"$f":"IF(Table_PI[[#This Row],[Hide:\nFormula Name]]<>\"\",MAX($A$2:A6)+1,\"\")","v":""},null,null,null,null,null,null,null,null,null,null,null,null,null,null,{"$f":"IFERROR(VLOOKUP(Table_PI[[#This Row],[Measure]],'Equipment Lookups'!$C$3:$D$23,2,FALSE),\"\")","v":""},{"$f":"IF(Table_PI[[#This Row],[Hide:\nFormula Name]]<>\"\",IFERROR(IF(MeasureCalc(Table_PI[[#This Row],[Hide:\nFormula Name]],Table_PI[[#This Row],[Quantity]],Table_PI[[#This Row],[List 1]],Table_PI[[#This Row],[List 2]],Table_PI[[#This Row],[List 3]],Table_PI[[#This Row],[Size]],Table_PI[[#This Row],[Input 1]],Table_PI[[#This Row],[Input 2]],Table_PI[[#This Row],[Input 3]],Table_PI[[#This Row],[Input 4]],'Customer Information'!$AR$12,1,ROW())>0,MeasureCalc(Table_PI[[#This Row],[Hide:\nFormula Name]],Table_PI[[#This Row],[Quantity]],Table_PI[[#This Row],[List 1]],Table_PI[[#This Row],[List 2]],Table_PI[[#This Row],[List 3]],Table_PI[[#This Row],[Size]],Table_PI[[#This Row],[Input 1]],Table_PI[[#This Row],[Input 2]],Table_PI[[#This Row],[Input 3]],Table_PI[[#This Row],[Input 4]],'Customer Information'!$AR$12,1,ROW()),\"No Rebate\"),\"No Rebate\"),0)","v":0},{"$f":"IF(Table_PI[[#This Row],[Hide:\nFormula Name]]<>\"\",IFERROR(IF(MeasureCalc(Table_PI[[#This Row],[Hide:\nFormula Name]],Table_PI[[#This Row],[Quantity]],Table_PI[[#This Row],[List 1]],Table_PI[[#This Row],[List 2]],Table_PI[[#This Row],[List 3]],Table_PI[[#This Row],[Size]],Table_PI[[#This Row],[Input 1]],Table_PI[[#This Row],[Input 2]],Table_PI[[#This Row],[Input 3]],Table_PI[[#This Row],[Input 4]],'Customer Information'!$AR$12,1,ROW())>0,MeasureCalc(Table_PI[[#This Row],[Hide:\nFormula Name]],Table_PI[[#This Row],[Quantity]],Table_PI[[#This Row],[List 1]],Table_PI[[#This Row],[List 2]],Table_PI[[#This Row],[List 3]],Table_PI[[#This Row],[Size]],Table_PI[[#This Row],[Input 1]],Table_PI[[#This Row],[Input 2]],Table_PI[[#This Row],[Input 3]],Table_PI[[#This Row],[Input 4]],'Customer Information'!$AR$12,2,ROW()),\"No Rebate\"),\"No Rebate\"),0)","v":0},{"$f":"IF(Table_PI[[#This Row],[Hide:\nFormula Name]]<>\"\",IFERROR(IF(MeasureCalc(Table_PI[[#This Row],[Hide:\nFormula Name]],Table_PI[[#This Row],[Quantity]],Table_PI[[#This Row],[List 1]],Table_PI[[#This Row],[List 2]],Table_PI[[#This Row],[List 3]],Table_PI[[#This Row],[Size]],Table_PI[[#This Row],[Input 1]],Table_PI[[#This Row],[Input 2]],Table_PI[[#This Row],[Input 3]],Table_PI[[#This Row],[Input 4]],'Customer Information'!$AR$12,1,ROW())>0,MeasureCalc(Table_PI[[#This Row],[Hide:\nFormula Name]],Table_PI[[#This Row],[Quantity]],Table_PI[[#This Row],[List 1]],Table_PI[[#This Row],[List 2]],Table_PI[[#This Row],[List 3]],Table_PI[[#This Row],[Size]],Table_PI[[#This Row],[Input 1]],Table_PI[[#This Row],[Input 2]],Table_PI[[#This Row],[Input 3]],Table_PI[[#This Row],[Input 4]],'Customer Information'!$AR$12,3,ROW()),\"No Rebate\"),\"No Rebate\"),0)","v":0},{"$f":"IF(Table_PI[[#This Row],[Hide:\nFormula Name]]<>\"\",IFERROR(IF(MeasureCalc(Table_PI[[#This Row],[Hide:\nFormula Name]],Table_PI[[#This Row],[Quantity]],Table_PI[[#This Row],[List 1]],Table_PI[[#This Row],[List 2]],Table_PI[[#This Row],[List 3]],Table_PI[[#This Row],[Size]],Table_PI[[#This Row],[Input 1]],Table_PI[[#This Row],[Input 2]],Table_PI[[#This Row],[Input 3]],Table_PI[[#This Row],[Input 4]],'Customer Information'!$AR$12,1,ROW())>0,MeasureCalc(Table_PI[[#This Row],[Hide:\nFormula Name]],Table_PI[[#This Row],[Quantity]],Table_PI[[#This Row],[List 1]],Table_PI[[#This Row],[List 2]],Table_PI[[#This Row],[List 3]],Table_PI[[#This Row],[Size]],Table_PI[[#This Row],[Input 1]],Table_PI[[#This Row],[Input 2]],Table_PI[[#This Row],[Input 3]],Table_PI[[#This Row],[Input 4]],'Customer Information'!$AR$12,4,ROW()),\"No Rebate\"),\"No Rebate\"),0)","v":0},{"$f":"IF(Table_PI[[#This Row],[Hide:\nFormula Name]]<>\"\",IFERROR(IF(MeasureCalc(Table_PI[[#This Row],[Hide:\nFormula Name]],Table_PI[[#This Row],[Quantity]],Table_PI[[#This Row],[List 1]],Table_PI[[#This Row],[List 2]],Table_PI[[#This Row],[List 3]],Table_PI[[#This Row],[Size]],Table_PI[[#This Row],[Input 1]],Table_PI[[#This Row],[Input 2]],Table_PI[[#This Row],[Input 3]],Table_PI[[#This Row],[Input 4]],'Customer Information'!$AR$12,1,ROW())>0,MeasureCalc(Table_PI[[#This Row],[Hide:\nFormula Name]],Table_PI[[#This Row],[Quantity]],Table_PI[[#This Row],[List 1]],Table_PI[[#This Row],[List 2]],Table_PI[[#This Row],[List 3]],Table_PI[[#This Row],[Size]],Table_PI[[#This Row],[Input 1]],Table_PI[[#This Row],[Input 2]],Table_PI[[#This Row],[Input 3]],Table_PI[[#This Row],[Input 4]],'Customer Information'!$AR$12,5,ROW()),\"No Rebate\"),\"No Rebate\"),0)","v":0},{"$f":"IF(Table_PI[[#This Row],[Hide:\nFormula Name]]<>\"\",IFERROR(IF(MeasureCalc(Table_PI[[#This Row],[Hide:\nFormula Name]],Table_PI[[#This Row],[Quantity]],Table_PI[[#This Row],[List 1]],Table_PI[[#This Row],[List 2]],Table_PI[[#This Row],[List 3]],Table_PI[[#This Row],[Size]],Table_PI[[#This Row],[Input 1]],Table_PI[[#This Row],[Input 2]],Table_PI[[#This Row],[Input 3]],Table_PI[[#This Row],[Input 4]],'Customer Information'!$AR$12,1,ROW())>0,MeasureCalc(Table_PI[[#This Row],[Hide:\nFormula Name]],Table_PI[[#This Row],[Quantity]],Table_PI[[#This Row],[List 1]],Table_PI[[#This Row],[List 2]],Table_PI[[#This Row],[List 3]],Table_PI[[#This Row],[Size]],Table_PI[[#This Row],[Input 1]],Table_PI[[#This Row],[Input 2]],Table_PI[[#This Row],[Input 3]],Table_PI[[#This Row],[Input 4]],'Customer Information'!$AR$12,6,ROW()),\"No Rebate\"),\"No Rebate\"),0)","v":0},{"$f":"IF(Table_PI[[#This Row],[Hide:\nFormula Name]]<>\"\",IFERROR(IF(MeasureCalc(Table_PI[[#This Row],[Hide:\nFormula Name]],Table_PI[[#This Row],[Quantity]],Table_PI[[#This Row],[List 1]],Table_PI[[#This Row],[List 2]],Table_PI[[#This Row],[List 3]],Table_PI[[#This Row],[Size]],Table_PI[[#This Row],[Input 1]],Table_PI[[#This Row],[Input 2]],Table_PI[[#This Row],[Input 3]],Table_PI[[#This Row],[Input 4]],'Customer Information'!$AR$12,1,ROW())>0,MeasureCalc(Table_PI[[#This Row],[Hide:\nFormula Name]],Table_PI[[#This Row],[Quantity]],Table_PI[[#This Row],[List 1]],Table_PI[[#This Row],[List 2]],Table_PI[[#This Row],[List 3]],Table_PI[[#This Row],[Size]],Table_PI[[#This Row],[Input 1]],Table_PI[[#This Row],[Input 2]],Table_PI[[#This Row],[Input 3]],Table_PI[[#This Row],[Input 4]],'Customer Information'!$AR$12,7,ROW()),\"No Rebate\"),\"No Rebate\"),0)","v":0},{"$f":"IF(Table_PI[[#This Row],[Hide:\nFormula Name]]<>\"\",IFERROR(IF(MeasureCalc(Table_PI[[#This Row],[Hide:\nFormula Name]],Table_PI[[#This Row],[Quantity]],Table_PI[[#This Row],[List 1]],Table_PI[[#This Row],[List 2]],Table_PI[[#This Row],[List 3]],Table_PI[[#This Row],[Size]],Table_PI[[#This Row],[Input 1]],Table_PI[[#This Row],[Input 2]],Table_PI[[#This Row],[Input 3]],Table_PI[[#This Row],[Input 4]],'Customer Information'!$AR$12,1,ROW())>0,MeasureCalc(Table_PI[[#This Row],[Hide:\nFormula Name]],Table_PI[[#This Row],[Quantity]],Table_PI[[#This Row],[List 1]],Table_PI[[#This Row],[List 2]],Table_PI[[#This Row],[List 3]],Table_PI[[#This Row],[Size]],Table_PI[[#This Row],[Input 1]],Table_PI[[#This Row],[Input 2]],Table_PI[[#This Row],[Input 3]],Table_PI[[#This Row],[Input 4]],'Customer Information'!$AR$12,8,ROW()),\"No Rebate\"),\"No Rebate\"),0)","v":0},{"$f":"IF(Table_PI[[#This Row],[Hide:\nFormula Name]]<>\"\",IF(AND(Table_PI[[#This Row],[Hide:\nFormula Name]]<>\"\",OR(Table_PI[[#This Row],[Rebate]]>0,Table_PI[[#This Row],[Rebate]]=\"No Rebate\")),TRUE,\"MI: Line Item \" & $A7),\"\")","v":""}]
[{"$f":"IF(Table_PI[[#This Row],[Hide:\nFormula Name]]<>\"\",MAX($A$2:A7)+1,\"\")","v":""},null,null,null,null,null,null,null,null,null,null,null,null,null,null,{"$f":"IFERROR(VLOOKUP(Table_PI[[#This Row],[Measure]],'Equipment Lookups'!$C$3:$D$23,2,FALSE),\"\")","v":""},{"$f":"IF(Table_PI[[#This Row],[Hide:\nFormula Name]]<>\"\",IFERROR(IF(MeasureCalc(Table_PI[[#This Row],[Hide:\nFormula Name]],Table_PI[[#This Row],[Quantity]],Table_PI[[#This Row],[List 1]],Table_PI[[#This Row],[List 2]],Table_PI[[#This Row],[List 3]],Table_PI[[#This Row],[Size]],Table_PI[[#This Row],[Input 1]],Table_PI[[#This Row],[Input 2]],Table_PI[[#This Row],[Input 3]],Table_PI[[#This Row],[Input 4]],'Customer Information'!$AR$12,1,ROW())>0,MeasureCalc(Table_PI[[#This Row],[Hide:\nFormula Name]],Table_PI[[#This Row],[Quantity]],Table_PI[[#This Row],[List 1]],Table_PI[[#This Row],[List 2]],Table_PI[[#This Row],[List 3]],Table_PI[[#This Row],[Size]],Table_PI[[#This Row],[Input 1]],Table_PI[[#This Row],[Input 2]],Table_PI[[#This Row],[Input 3]],Table_PI[[#This Row],[Input 4]],'Customer Information'!$AR$12,1,ROW()),\"No Rebate\"),\"No Rebate\"),0)","v":0},{"$f":"IF(Table_PI[[#This Row],[Hide:\nFormula Name]]<>\"\",IFERROR(IF(MeasureCalc(Table_PI[[#This Row],[Hide:\nFormula Name]],Table_PI[[#This Row],[Quantity]],Table_PI[[#This Row],[List 1]],Table_PI[[#This Row],[List 2]],Table_PI[[#This Row],[List 3]],Table_PI[[#This Row],[Size]],Table_PI[[#This Row],[Input 1]],Table_PI[[#This Row],[Input 2]],Table_PI[[#This Row],[Input 3]],Table_PI[[#This Row],[Input 4]],'Customer Information'!$AR$12,1,ROW())>0,MeasureCalc(Table_PI[[#This Row],[Hide:\nFormula Name]],Table_PI[[#This Row],[Quantity]],Table_PI[[#This Row],[List 1]],Table_PI[[#This Row],[List 2]],Table_PI[[#This Row],[List 3]],Table_PI[[#This Row],[Size]],Table_PI[[#This Row],[Input 1]],Table_PI[[#This Row],[Input 2]],Table_PI[[#This Row],[Input 3]],Table_PI[[#This Row],[Input 4]],'Customer Information'!$AR$12,2,ROW()),\"No Rebate\"),\"No Rebate\"),0)","v":0},{"$f":"IF(Table_PI[[#This Row],[Hide:\nFormula Name]]<>\"\",IFERROR(IF(MeasureCalc(Table_PI[[#This Row],[Hide:\nFormula Name]],Table_PI[[#This Row],[Quantity]],Table_PI[[#This Row],[List 1]],Table_PI[[#This Row],[List 2]],Table_PI[[#This Row],[List 3]],Table_PI[[#This Row],[Size]],Table_PI[[#This Row],[Input 1]],Table_PI[[#This Row],[Input 2]],Table_PI[[#This Row],[Input 3]],Table_PI[[#This Row],[Input 4]],'Customer Information'!$AR$12,1,ROW())>0,MeasureCalc(Table_PI[[#This Row],[Hide:\nFormula Name]],Table_PI[[#This Row],[Quantity]],Table_PI[[#This Row],[List 1]],Table_PI[[#This Row],[List 2]],Table_PI[[#This Row],[List 3]],Table_PI[[#This Row],[Size]],Table_PI[[#This Row],[Input 1]],Table_PI[[#This Row],[Input 2]],Table_PI[[#This Row],[Input 3]],Table_PI[[#This Row],[Input 4]],'Customer Information'!$AR$12,3,ROW()),\"No Rebate\"),\"No Rebate\"),0)","v":0},{"$f":"IF(Table_PI[[#This Row],[Hide:\nFormula Name]]<>\"\",IFERROR(IF(MeasureCalc(Table_PI[[#This Row],[Hide:\nFormula Name]],Table_PI[[#This Row],[Quantity]],Table_PI[[#This Row],[List 1]],Table_PI[[#This Row],[List 2]],Table_PI[[#This Row],[List 3]],Table_PI[[#This Row],[Size]],Table_PI[[#This Row],[Input 1]],Table_PI[[#This Row],[Input 2]],Table_PI[[#This Row],[Input 3]],Table_PI[[#This Row],[Input 4]],'Customer Information'!$AR$12,1,ROW())>0,MeasureCalc(Table_PI[[#This Row],[Hide:\nFormula Name]],Table_PI[[#This Row],[Quantity]],Table_PI[[#This Row],[List 1]],Table_PI[[#This Row],[List 2]],Table_PI[[#This Row],[List 3]],Table_PI[[#This Row],[Size]],Table_PI[[#This Row],[Input 1]],Table_PI[[#This Row],[Input 2]],Table_PI[[#This Row],[Input 3]],Table_PI[[#This Row],[Input 4]],'Customer Information'!$AR$12,4,ROW()),\"No Rebate\"),\"No Rebate\"),0)","v":0},{"$f":"IF(Table_PI[[#This Row],[Hide:\nFormula Name]]<>\"\",IFERROR(IF(MeasureCalc(Table_PI[[#This Row],[Hide:\nFormula Name]],Table_PI[[#This Row],[Quantity]],Table_PI[[#This Row],[List 1]],Table_PI[[#This Row],[List 2]],Table_PI[[#This Row],[List 3]],Table_PI[[#This Row],[Size]],Table_PI[[#This Row],[Input 1]],Table_PI[[#This Row],[Input 2]],Table_PI[[#This Row],[Input 3]],Table_PI[[#This Row],[Input 4]],'Customer Information'!$AR$12,1,ROW())>0,MeasureCalc(Table_PI[[#This Row],[Hide:\nFormula Name]],Table_PI[[#This Row],[Quantity]],Table_PI[[#This Row],[List 1]],Table_PI[[#This Row],[List 2]],Table_PI[[#This Row],[List 3]],Table_PI[[#This Row],[Size]],Table_PI[[#This Row],[Input 1]],Table_PI[[#This Row],[Input 2]],Table_PI[[#This Row],[Input 3]],Table_PI[[#This Row],[Input 4]],'Customer Information'!$AR$12,5,ROW()),\"No Rebate\"),\"No Rebate\"),0)","v":0},{"$f":"IF(Table_PI[[#This Row],[Hide:\nFormula Name]]<>\"\",IFERROR(IF(MeasureCalc(Table_PI[[#This Row],[Hide:\nFormula Name]],Table_PI[[#This Row],[Quantity]],Table_PI[[#This Row],[List 1]],Table_PI[[#This Row],[List 2]],Table_PI[[#This Row],[List 3]],Table_PI[[#This Row],[Size]],Table_PI[[#This Row],[Input 1]],Table_PI[[#This Row],[Input 2]],Table_PI[[#This Row],[Input 3]],Table_PI[[#This Row],[Input 4]],'Customer Information'!$AR$12,1,ROW())>0,MeasureCalc(Table_PI[[#This Row],[Hide:\nFormula Name]],Table_PI[[#This Row],[Quantity]],Table_PI[[#This Row],[List 1]],Table_PI[[#This Row],[List 2]],Table_PI[[#This Row],[List 3]],Table_PI[[#This Row],[Size]],Table_PI[[#This Row],[Input 1]],Table_PI[[#This Row],[Input 2]],Table_PI[[#This Row],[Input 3]],Table_PI[[#This Row],[Input 4]],'Customer Information'!$AR$12,6,ROW()),\"No Rebate\"),\"No Rebate\"),0)","v":0},{"$f":"IF(Table_PI[[#This Row],[Hide:\nFormula Name]]<>\"\",IFERROR(IF(MeasureCalc(Table_PI[[#This Row],[Hide:\nFormula Name]],Table_PI[[#This Row],[Quantity]],Table_PI[[#This Row],[List 1]],Table_PI[[#This Row],[List 2]],Table_PI[[#This Row],[List 3]],Table_PI[[#This Row],[Size]],Table_PI[[#This Row],[Input 1]],Table_PI[[#This Row],[Input 2]],Table_PI[[#This Row],[Input 3]],Table_PI[[#This Row],[Input 4]],'Customer Information'!$AR$12,1,ROW())>0,MeasureCalc(Table_PI[[#This Row],[Hide:\nFormula Name]],Table_PI[[#This Row],[Quantity]],Table_PI[[#This Row],[List 1]],Table_PI[[#This Row],[List 2]],Table_PI[[#This Row],[List 3]],Table_PI[[#This Row],[Size]],Table_PI[[#This Row],[Input 1]],Table_PI[[#This Row],[Input 2]],Table_PI[[#This Row],[Input 3]],Table_PI[[#This Row],[Input 4]],'Customer Information'!$AR$12,7,ROW()),\"No Rebate\"),\"No Rebate\"),0)","v":0},{"$f":"IF(Table_PI[[#This Row],[Hide:\nFormula Name]]<>\"\",IFERROR(IF(MeasureCalc(Table_PI[[#This Row],[Hide:\nFormula Name]],Table_PI[[#This Row],[Quantity]],Table_PI[[#This Row],[List 1]],Table_PI[[#This Row],[List 2]],Table_PI[[#This Row],[List 3]],Table_PI[[#This Row],[Size]],Table_PI[[#This Row],[Input 1]],Table_PI[[#This Row],[Input 2]],Table_PI[[#This Row],[Input 3]],Table_PI[[#This Row],[Input 4]],'Customer Information'!$AR$12,1,ROW())>0,MeasureCalc(Table_PI[[#This Row],[Hide:\nFormula Name]],Table_PI[[#This Row],[Quantity]],Table_PI[[#This Row],[List 1]],Table_PI[[#This Row],[List 2]],Table_PI[[#This Row],[List 3]],Table_PI[[#This Row],[Size]],Table_PI[[#This Row],[Input 1]],Table_PI[[#This Row],[Input 2]],Table_PI[[#This Row],[Input 3]],Table_PI[[#This Row],[Input 4]],'Customer Information'!$AR$12,8,ROW()),\"No Rebate\"),\"No Rebate\"),0)","v":0},{"$f":"IF(Table_PI[[#This Row],[Hide:\nFormula Name]]<>\"\",IF(AND(Table_PI[[#This Row],[Hide:\nFormula Name]]<>\"\",OR(Table_PI[[#This Row],[Rebate]]>0,Table_PI[[#This Row],[Rebate]]=\"No Rebate\")),TRUE,\"MI: Line Item \" & $A8),\"\")","v":""}]
[{"$f":"IF(Table_PI[[#This Row],[Hide:\nFormula Name]]<>\"\",MAX($A$2:A8)+1,\"\")","v":""},null,null,null,null,null,null,null,null,null,null,null,null,null,null,{"$f":"IFERROR(VLOOKUP(Table_PI[[#This Row],[Measure]],'Equipment Lookups'!$C$3:$D$23,2,FALSE),\"\")","v":""},{"$f":"IF(Table_PI[[#This Row],[Hide:\nFormula Name]]<>\"\",IFERROR(IF(MeasureCalc(Table_PI[[#This Row],[Hide:\nFormula Name]],Table_PI[[#This Row],[Quantity]],Table_PI[[#This Row],[List 1]],Table_PI[[#This Row],[List 2]],Table_PI[[#This Row],[List 3]],Table_PI[[#This Row],[Size]],Table_PI[[#This Row],[Input 1]],Table_PI[[#This Row],[Input 2]],Table_PI[[#This Row],[Input 3]],Table_PI[[#This Row],[Input 4]],'Customer Information'!$AR$12,1,ROW())>0,MeasureCalc(Table_PI[[#This Row],[Hide:\nFormula Name]],Table_PI[[#This Row],[Quantity]],Table_PI[[#This Row],[List 1]],Table_PI[[#This Row],[List 2]],Table_PI[[#This Row],[List 3]],Table_PI[[#This Row],[Size]],Table_PI[[#This Row],[Input 1]],Table_PI[[#This Row],[Input 2]],Table_PI[[#This Row],[Input 3]],Table_PI[[#This Row],[Input 4]],'Customer Information'!$AR$12,1,ROW()),\"No Rebate\"),\"No Rebate\"),0)","v":0},{"$f":"IF(Table_PI[[#This Row],[Hide:\nFormula Name]]<>\"\",IFERROR(IF(MeasureCalc(Table_PI[[#This Row],[Hide:\nFormula Name]],Table_PI[[#This Row],[Quantity]],Table_PI[[#This Row],[List 1]],Table_PI[[#This Row],[List 2]],Table_PI[[#This Row],[List 3]],Table_PI[[#This Row],[Size]],Table_PI[[#This Row],[Input 1]],Table_PI[[#This Row],[Input 2]],Table_PI[[#This Row],[Input 3]],Table_PI[[#This Row],[Input 4]],'Customer Information'!$AR$12,1,ROW())>0,MeasureCalc(Table_PI[[#This Row],[Hide:\nFormula Name]],Table_PI[[#This Row],[Quantity]],Table_PI[[#This Row],[List 1]],Table_PI[[#This Row],[List 2]],Table_PI[[#This Row],[List 3]],Table_PI[[#This Row],[Size]],Table_PI[[#This Row],[Input 1]],Table_PI[[#This Row],[Input 2]],Table_PI[[#This Row],[Input 3]],Table_PI[[#This Row],[Input 4]],'Customer Information'!$AR$12,2,ROW()),\"No Rebate\"),\"No Rebate\"),0)","v":0},{"$f":"IF(Table_PI[[#This Row],[Hide:\nFormula Name]]<>\"\",IFERROR(IF(MeasureCalc(Table_PI[[#This Row],[Hide:\nFormula Name]],Table_PI[[#This Row],[Quantity]],Table_PI[[#This Row],[List 1]],Table_PI[[#This Row],[List 2]],Table_PI[[#This Row],[List 3]],Table_PI[[#This Row],[Size]],Table_PI[[#This Row],[Input 1]],Table_PI[[#This Row],[Input 2]],Table_PI[[#This Row],[Input 3]],Table_PI[[#This Row],[Input 4]],'Customer Information'!$AR$12,1,ROW())>0,MeasureCalc(Table_PI[[#This Row],[Hide:\nFormula Name]],Table_PI[[#This Row],[Quantity]],Table_PI[[#This Row],[List 1]],Table_PI[[#This Row],[List 2]],Table_PI[[#This Row],[List 3]],Table_PI[[#This Row],[Size]],Table_PI[[#This Row],[Input 1]],Table_PI[[#This Row],[Input 2]],Table_PI[[#This Row],[Input 3]],Table_PI[[#This Row],[Input 4]],'Customer Information'!$AR$12,3,ROW()),\"No Rebate\"),\"No Rebate\"),0)","v":0},{"$f":"IF(Table_PI[[#This Row],[Hide:\nFormula Name]]<>\"\",IFERROR(IF(MeasureCalc(Table_PI[[#This Row],[Hide:\nFormula Name]],Table_PI[[#This Row],[Quantity]],Table_PI[[#This Row],[List 1]],Table_PI[[#This Row],[List 2]],Table_PI[[#This Row],[List 3]],Table_PI[[#This Row],[Size]],Table_PI[[#This Row],[Input 1]],Table_PI[[#This Row],[Input 2]],Table_PI[[#This Row],[Input 3]],Table_PI[[#This Row],[Input 4]],'Customer Information'!$AR$12,1,ROW())>0,MeasureCalc(Table_PI[[#This Row],[Hide:\nFormula Name]],Table_PI[[#This Row],[Quantity]],Table_PI[[#This Row],[List 1]],Table_PI[[#This Row],[List 2]],Table_PI[[#This Row],[List 3]],Table_PI[[#This Row],[Size]],Table_PI[[#This Row],[Input 1]],Table_PI[[#This Row],[Input 2]],Table_PI[[#This Row],[Input 3]],Table_PI[[#This Row],[Input 4]],'Customer Information'!$AR$12,4,ROW()),\"No Rebate\"),\"No Rebate\"),0)","v":0},{"$f":"IF(Table_PI[[#This Row],[Hide:\nFormula Name]]<>\"\",IFERROR(IF(MeasureCalc(Table_PI[[#This Row],[Hide:\nFormula Name]],Table_PI[[#This Row],[Quantity]],Table_PI[[#This Row],[List 1]],Table_PI[[#This Row],[List 2]],Table_PI[[#This Row],[List 3]],Table_PI[[#This Row],[Size]],Table_PI[[#This Row],[Input 1]],Table_PI[[#This Row],[Input 2]],Table_PI[[#This Row],[Input 3]],Table_PI[[#This Row],[Input 4]],'Customer Information'!$AR$12,1,ROW())>0,MeasureCalc(Table_PI[[#This Row],[Hide:\nFormula Name]],Table_PI[[#This Row],[Quantity]],Table_PI[[#This Row],[List 1]],Table_PI[[#This Row],[List 2]],Table_PI[[#This Row],[List 3]],Table_PI[[#This Row],[Size]],Table_PI[[#This Row],[Input 1]],Table_PI[[#This Row],[Input 2]],Table_PI[[#This Row],[Input 3]],Table_PI[[#This Row],[Input 4]],'Customer Information'!$AR$12,5,ROW()),\"No Rebate\"),\"No Rebate\"),0)","v":0},{"$f":"IF(Table_PI[[#This Row],[Hide:\nFormula Name]]<>\"\",IFERROR(IF(MeasureCalc(Table_PI[[#This Row],[Hide:\nFormula Name]],Table_PI[[#This Row],[Quantity]],Table_PI[[#This Row],[List 1]],Table_PI[[#This Row],[List 2]],Table_PI[[#This Row],[List 3]],Table_PI[[#This Row],[Size]],Table_PI[[#This Row],[Input 1]],Table_PI[[#This Row],[Input 2]],Table_PI[[#This Row],[Input 3]],Table_PI[[#This Row],[Input 4]],'Customer Information'!$AR$12,1,ROW())>0,MeasureCalc(Table_PI[[#This Row],[Hide:\nFormula Name]],Table_PI[[#This Row],[Quantity]],Table_PI[[#This Row],[List 1]],Table_PI[[#This Row],[List 2]],Table_PI[[#This Row],[List 3]],Table_PI[[#This Row],[Size]],Table_PI[[#This Row],[Input 1]],Table_PI[[#This Row],[Input 2]],Table_PI[[#This Row],[Input 3]],Table_PI[[#This Row],[Input 4]],'Customer Information'!$AR$12,6,ROW()),\"No Rebate\"),\"No Rebate\"),0)","v":0},{"$f":"IF(Table_PI[[#This Row],[Hide:\nFormula Name]]<>\"\",IFERROR(IF(MeasureCalc(Table_PI[[#This Row],[Hide:\nFormula Name]],Table_PI[[#This Row],[Quantity]],Table_PI[[#This Row],[List 1]],Table_PI[[#This Row],[List 2]],Table_PI[[#This Row],[List 3]],Table_PI[[#This Row],[Size]],Table_PI[[#This Row],[Input 1]],Table_PI[[#This Row],[Input 2]],Table_PI[[#This Row],[Input 3]],Table_PI[[#This Row],[Input 4]],'Customer Information'!$AR$12,1,ROW())>0,MeasureCalc(Table_PI[[#This Row],[Hide:\nFormula Name]],Table_PI[[#This Row],[Quantity]],Table_PI[[#This Row],[List 1]],Table_PI[[#This Row],[List 2]],Table_PI[[#This Row],[List 3]],Table_PI[[#This Row],[Size]],Table_PI[[#This Row],[Input 1]],Table_PI[[#This Row],[Input 2]],Table_PI[[#This Row],[Input 3]],Table_PI[[#This Row],[Input 4]],'Customer Information'!$AR$12,7,ROW()),\"No Rebate\"),\"No Rebate\"),0)","v":0},{"$f":"IF(Table_PI[[#This Row],[Hide:\nFormula Name]]<>\"\",IFERROR(IF(MeasureCalc(Table_PI[[#This Row],[Hide:\nFormula Name]],Table_PI[[#This Row],[Quantity]],Table_PI[[#This Row],[List 1]],Table_PI[[#This Row],[List 2]],Table_PI[[#This Row],[List 3]],Table_PI[[#This Row],[Size]],Table_PI[[#This Row],[Input 1]],Table_PI[[#This Row],[Input 2]],Table_PI[[#This Row],[Input 3]],Table_PI[[#This Row],[Input 4]],'Customer Information'!$AR$12,1,ROW())>0,MeasureCalc(Table_PI[[#This Row],[Hide:\nFormula Name]],Table_PI[[#This Row],[Quantity]],Table_PI[[#This Row],[List 1]],Table_PI[[#This Row],[List 2]],Table_PI[[#This Row],[List 3]],Table_PI[[#This Row],[Size]],Table_PI[[#This Row],[Input 1]],Table_PI[[#This Row],[Input 2]],Table_PI[[#This Row],[Input 3]],Table_PI[[#This Row],[Input 4]],'Customer Information'!$AR$12,8,ROW()),\"No Rebate\"),\"No Rebate\"),0)","v":0},{"$f":"IF(Table_PI[[#This Row],[Hide:\nFormula Name]]<>\"\",IF(AND(Table_PI[[#This Row],[Hide:\nFormula Name]]<>\"\",OR(Table_PI[[#This Row],[Rebate]]>0,Table_PI[[#This Row],[Rebate]]=\"No Rebate\")),TRUE,\"MI: Line Item \" & $A9),\"\")","v":""}]
[{"$f":"IF(Table_PI[[#This Row],[Hide:\nFormula Name]]<>\"\",MAX($A$2:A9)+1,\"\")","v":""},null,null,null,null,null,null,null,null,null,null,null,null,null,null,{"$f":"IFERROR(VLOOKUP(Table_PI[[#This Row],[Measure]],'Equipment Lookups'!$C$3:$D$23,2,FALSE),\"\")","v":""},{"$f":"IF(Table_PI[[#This Row],[Hide:\nFormula Name]]<>\"\",IFERROR(IF(MeasureCalc(Table_PI[[#This Row],[Hide:\nFormula Name]],Table_PI[[#This Row],[Quantity]],Table_PI[[#This Row],[List 1]],Table_PI[[#This Row],[List 2]],Table_PI[[#This Row],[List 3]],Table_PI[[#This Row],[Size]],Table_PI[[#This Row],[Input 1]],Table_PI[[#This Row],[Input 2]],Table_PI[[#This Row],[Input 3]],Table_PI[[#This Row],[Input 4]],'Customer Information'!$AR$12,1,ROW())>0,MeasureCalc(Table_PI[[#This Row],[Hide:\nFormula Name]],Table_PI[[#This Row],[Quantity]],Table_PI[[#This Row],[List 1]],Table_PI[[#This Row],[List 2]],Table_PI[[#This Row],[List 3]],Table_PI[[#This Row],[Size]],Table_PI[[#This Row],[Input 1]],Table_PI[[#This Row],[Input 2]],Table_PI[[#This Row],[Input 3]],Table_PI[[#This Row],[Input 4]],'Customer Information'!$AR$12,1,ROW()),\"No Rebate\"),\"No Rebate\"),0)","v":0},{"$f":"IF(Table_PI[[#This Row],[Hide:\nFormula Name]]<>\"\",IFERROR(IF(MeasureCalc(Table_PI[[#This Row],[Hide:\nFormula Name]],Table_PI[[#This Row],[Quantity]],Table_PI[[#This Row],[List 1]],Table_PI[[#This Row],[List 2]],Table_PI[[#This Row],[List 3]],Table_PI[[#This Row],[Size]],Table_PI[[#This Row],[Input 1]],Table_PI[[#This Row],[Input 2]],Table_PI[[#This Row],[Input 3]],Table_PI[[#This Row],[Input 4]],'Customer Information'!$AR$12,1,ROW())>0,MeasureCalc(Table_PI[[#This Row],[Hide:\nFormula Name]],Table_PI[[#This Row],[Quantity]],Table_PI[[#This Row],[List 1]],Table_PI[[#This Row],[List 2]],Table_PI[[#This Row],[List 3]],Table_PI[[#This Row],[Size]],Table_PI[[#This Row],[Input 1]],Table_PI[[#This Row],[Input 2]],Table_PI[[#This Row],[Input 3]],Table_PI[[#This Row],[Input 4]],'Customer Information'!$AR$12,2,ROW()),\"No Rebate\"),\"No Rebate\"),0)","v":0},{"$f":"IF(Table_PI[[#This Row],[Hide:\nFormula Name]]<>\"\",IFERROR(IF(MeasureCalc(Table_PI[[#This Row],[Hide:\nFormula Name]],Table_PI[[#This Row],[Quantity]],Table_PI[[#This Row],[List 1]],Table_PI[[#This Row],[List 2]],Table_PI[[#This Row],[List 3]],Table_PI[[#This Row],[Size]],Table_PI[[#This Row],[Input 1]],Table_PI[[#This Row],[Input 2]],Table_PI[[#This Row],[Input 3]],Table_PI[[#This Row],[Input 4]],'Customer Information'!$AR$12,1,ROW())>0,MeasureCalc(Table_PI[[#This Row],[Hide:\nFormula Name]],Table_PI[[#This Row],[Quantity]],Table_PI[[#This Row],[List 1]],Table_PI[[#This Row],[List 2]],Table_PI[[#This Row],[List 3]],Table_PI[[#This Row],[Size]],Table_PI[[#This Row],[Input 1]],Table_PI[[#This Row],[Input 2]],Table_PI[[#This Row],[Input 3]],Table_PI[[#This Row],[Input 4]],'Customer Information'!$AR$12,3,ROW()),\"No Rebate\"),\"No Rebate\"),0)","v":0},{"$f":"IF(Table_PI[[#This Row],[Hide:\nFormula Name]]<>\"\",IFERROR(IF(MeasureCalc(Table_PI[[#This Row],[Hide:\nFormula Name]],Table_PI[[#This Row],[Quantity]],Table_PI[[#This Row],[List 1]],Table_PI[[#This Row],[List 2]],Table_PI[[#This Row],[List 3]],Table_PI[[#This Row],[Size]],Table_PI[[#This Row],[Input 1]],Table_PI[[#This Row],[Input 2]],Table_PI[[#This Row],[Input 3]],Table_PI[[#This Row],[Input 4]],'Customer Information'!$AR$12,1,ROW())>0,MeasureCalc(Table_PI[[#This Row],[Hide:\nFormula Name]],Table_PI[[#This Row],[Quantity]],Table_PI[[#This Row],[List 1]],Table_PI[[#This Row],[List 2]],Table_PI[[#This Row],[List 3]],Table_PI[[#This Row],[Size]],Table_PI[[#This Row],[Input 1]],Table_PI[[#This Row],[Input 2]],Table_PI[[#This Row],[Input 3]],Table_PI[[#This Row],[Input 4]],'Customer Information'!$AR$12,4,ROW()),\"No Rebate\"),\"No Rebate\"),0)","v":0},{"$f":"IF(Table_PI[[#This Row],[Hide:\nFormula Name]]<>\"\",IFERROR(IF(MeasureCalc(Table_PI[[#This Row],[Hide:\nFormula Name]],Table_PI[[#This Row],[Quantity]],Table_PI[[#This Row],[List 1]],Table_PI[[#This Row],[List 2]],Table_PI[[#This Row],[List 3]],Table_PI[[#This Row],[Size]],Table_PI[[#This Row],[Input 1]],Table_PI[[#This Row],[Input 2]],Table_PI[[#This Row],[Input 3]],Table_PI[[#This Row],[Input 4]],'Customer Information'!$AR$12,1,ROW())>0,MeasureCalc(Table_PI[[#This Row],[Hide:\nFormula Name]],Table_PI[[#This Row],[Quantity]],Table_PI[[#This Row],[List 1]],Table_PI[[#This Row],[List 2]],Table_PI[[#This Row],[List 3]],Table_PI[[#This Row],[Size]],Table_PI[[#This Row],[Input 1]],Table_PI[[#This Row],[Input 2]],Table_PI[[#This Row],[Input 3]],Table_PI[[#This Row],[Input 4]],'Customer Information'!$AR$12,5,ROW()),\"No Rebate\"),\"No Rebate\"),0)","v":0},{"$f":"IF(Table_PI[[#This Row],[Hide:\nFormula Name]]<>\"\",IFERROR(IF(MeasureCalc(Table_PI[[#This Row],[Hide:\nFormula Name]],Table_PI[[#This Row],[Quantity]],Table_PI[[#This Row],[List 1]],Table_PI[[#This Row],[List 2]],Table_PI[[#This Row],[List 3]],Table_PI[[#This Row],[Size]],Table_PI[[#This Row],[Input 1]],Table_PI[[#This Row],[Input 2]],Table_PI[[#This Row],[Input 3]],Table_PI[[#This Row],[Input 4]],'Customer Information'!$AR$12,1,ROW())>0,MeasureCalc(Table_PI[[#This Row],[Hide:\nFormula Name]],Table_PI[[#This Row],[Quantity]],Table_PI[[#This Row],[List 1]],Table_PI[[#This Row],[List 2]],Table_PI[[#This Row],[List 3]],Table_PI[[#This Row],[Size]],Table_PI[[#This Row],[Input 1]],Table_PI[[#This Row],[Input 2]],Table_PI[[#This Row],[Input 3]],Table_PI[[#This Row],[Input 4]],'Customer Information'!$AR$12,6,ROW()),\"No Rebate\"),\"No Rebate\"),0)","v":0},{"$f":"IF(Table_PI[[#This Row],[Hide:\nFormula Name]]<>\"\",IFERROR(IF(MeasureCalc(Table_PI[[#This Row],[Hide:\nFormula Name]],Table_PI[[#This Row],[Quantity]],Table_PI[[#This Row],[List 1]],Table_PI[[#This Row],[List 2]],Table_PI[[#This Row],[List 3]],Table_PI[[#This Row],[Size]],Table_PI[[#This Row],[Input 1]],Table_PI[[#This Row],[Input 2]],Table_PI[[#This Row],[Input 3]],Table_PI[[#This Row],[Input 4]],'Customer Information'!$AR$12,1,ROW())>0,MeasureCalc(Table_PI[[#This Row],[Hide:\nFormula Name]],Table_PI[[#This Row],[Quantity]],Table_PI[[#This Row],[List 1]],Table_PI[[#This Row],[List 2]],Table_PI[[#This Row],[List 3]],Table_PI[[#This Row],[Size]],Table_PI[[#This Row],[Input 1]],Table_PI[[#This Row],[Input 2]],Table_PI[[#This Row],[Input 3]],Table_PI[[#This Row],[Input 4]],'Customer Information'!$AR$12,7,ROW()),\"No Rebate\"),\"No Rebate\"),0)","v":0},{"$f":"IF(Table_PI[[#This Row],[Hide:\nFormula Name]]<>\"\",IFERROR(IF(MeasureCalc(Table_PI[[#This Row],[Hide:\nFormula Name]],Table_PI[[#This Row],[Quantity]],Table_PI[[#This Row],[List 1]],Table_PI[[#This Row],[List 2]],Table_PI[[#This Row],[List 3]],Table_PI[[#This Row],[Size]],Table_PI[[#This Row],[Input 1]],Table_PI[[#This Row],[Input 2]],Table_PI[[#This Row],[Input 3]],Table_PI[[#This Row],[Input 4]],'Customer Information'!$AR$12,1,ROW())>0,MeasureCalc(Table_PI[[#This Row],[Hide:\nFormula Name]],Table_PI[[#This Row],[Quantity]],Table_PI[[#This Row],[List 1]],Table_PI[[#This Row],[List 2]],Table_PI[[#This Row],[List 3]],Table_PI[[#This Row],[Size]],Table_PI[[#This Row],[Input 1]],Table_PI[[#This Row],[Input 2]],Table_PI[[#This Row],[Input 3]],Table_PI[[#This Row],[Input 4]],'Customer Information'!$AR$12,8,ROW()),\"No Rebate\"),\"No Rebate\"),0)","v":0},{"$f":"IF(Table_PI[[#This Row],[Hide:\nFormula Name]]<>\"\",IF(AND(Table_PI[[#This Row],[Hide:\nFormula Name]]<>\"\",OR(Table_PI[[#This Row],[Rebate]]>0,Table_PI[[#This Row],[Rebate]]=\"No Rebate\")),TRUE,\"MI: Line Item \" & $A10),\"\")","v":""}]
[{"$f":"IF(Table_PI[[#This Row],[Hide:\nFormula Name]]<>\"\",MAX($A$2:A10)+1,\"\")","v":""},null,null,null,null,null,null,null,null,null,null,null,null,null,null,{"$f":"IFERROR(VLOOKUP(Table_PI[[#This Row],[Measure]],'Equipment Lookups'!$C$3:$D$23,2,FALSE),\"\")","v":""},{"$f":"IF(Table_PI[[#This Row],[Hide:\nFormula Name]]<>\"\",IFERROR(IF(MeasureCalc(Table_PI[[#This Row],[Hide:\nFormula Name]],Table_PI[[#This Row],[Quantity]],Table_PI[[#This Row],[List 1]],Table_PI[[#This Row],[List 2]],Table_PI[[#This Row],[List 3]],Table_PI[[#This Row],[Size]],Table_PI[[#This Row],[Input 1]],Table_PI[[#This Row],[Input 2]],Table_PI[[#This Row],[Input 3]],Table_PI[[#This Row],[Input 4]],'Customer Information'!$AR$12,1,ROW())>0,MeasureCalc(Table_PI[[#This Row],[Hide:\nFormula Name]],Table_PI[[#This Row],[Quantity]],Table_PI[[#This Row],[List 1]],Table_PI[[#This Row],[List 2]],Table_PI[[#This Row],[List 3]],Table_PI[[#This Row],[Size]],Table_PI[[#This Row],[Input 1]],Table_PI[[#This Row],[Input 2]],Table_PI[[#This Row],[Input 3]],Table_PI[[#This Row],[Input 4]],'Customer Information'!$AR$12,1,ROW()),\"No Rebate\"),\"No Rebate\"),0)","v":0},{"$f":"IF(Table_PI[[#This Row],[Hide:\nFormula Name]]<>\"\",IFERROR(IF(MeasureCalc(Table_PI[[#This Row],[Hide:\nFormula Name]],Table_PI[[#This Row],[Quantity]],Table_PI[[#This Row],[List 1]],Table_PI[[#This Row],[List 2]],Table_PI[[#This Row],[List 3]],Table_PI[[#This Row],[Size]],Table_PI[[#This Row],[Input 1]],Table_PI[[#This Row],[Input 2]],Table_PI[[#This Row],[Input 3]],Table_PI[[#This Row],[Input 4]],'Customer Information'!$AR$12,1,ROW())>0,MeasureCalc(Table_PI[[#This Row],[Hide:\nFormula Name]],Table_PI[[#This Row],[Quantity]],Table_PI[[#This Row],[List 1]],Table_PI[[#This Row],[List 2]],Table_PI[[#This Row],[List 3]],Table_PI[[#This Row],[Size]],Table_PI[[#This Row],[Input 1]],Table_PI[[#This Row],[Input 2]],Table_PI[[#This Row],[Input 3]],Table_PI[[#This Row],[Input 4]],'Customer Information'!$AR$12,2,ROW()),\"No Rebate\"),\"No Rebate\"),0)","v":0},{"$f":"IF(Table_PI[[#This Row],[Hide:\nFormula Name]]<>\"\",IFERROR(IF(MeasureCalc(Table_PI[[#This Row],[Hide:\nFormula Name]],Table_PI[[#This Row],[Quantity]],Table_PI[[#This Row],[List 1]],Table_PI[[#This Row],[List 2]],Table_PI[[#This Row],[List 3]],Table_PI[[#This Row],[Size]],Table_PI[[#This Row],[Input 1]],Table_PI[[#This Row],[Input 2]],Table_PI[[#This Row],[Input 3]],Table_PI[[#This Row],[Input 4]],'Customer Information'!$AR$12,1,ROW())>0,MeasureCalc(Table_PI[[#This Row],[Hide:\nFormula Name]],Table_PI[[#This Row],[Quantity]],Table_PI[[#This Row],[List 1]],Table_PI[[#This Row],[List 2]],Table_PI[[#This Row],[List 3]],Table_PI[[#This Row],[Size]],Table_PI[[#This Row],[Input 1]],Table_PI[[#This Row],[Input 2]],Table_PI[[#This Row],[Input 3]],Table_PI[[#This Row],[Input 4]],'Customer Information'!$AR$12,3,ROW()),\"No Rebate\"),\"No Rebate\"),0)","v":0},{"$f":"IF(Table_PI[[#This Row],[Hide:\nFormula Name]]<>\"\",IFERROR(IF(MeasureCalc(Table_PI[[#This Row],[Hide:\nFormula Name]],Table_PI[[#This Row],[Quantity]],Table_PI[[#This Row],[List 1]],Table_PI[[#This Row],[List 2]],Table_PI[[#This Row],[List 3]],Table_PI[[#This Row],[Size]],Table_PI[[#This Row],[Input 1]],Table_PI[[#This Row],[Input 2]],Table_PI[[#This Row],[Input 3]],Table_PI[[#This Row],[Input 4]],'Customer Information'!$AR$12,1,ROW())>0,MeasureCalc(Table_PI[[#This Row],[Hide:\nFormula Name]],Table_PI[[#This Row],[Quantity]],Table_PI[[#This Row],[List 1]],Table_PI[[#This Row],[List 2]],Table_PI[[#This Row],[List 3]],Table_PI[[#This Row],[Size]],Table_PI[[#This Row],[Input 1]],Table_PI[[#This Row],[Input 2]],Table_PI[[#This Row],[Input 3]],Table_PI[[#This Row],[Input 4]],'Customer Information'!$AR$12,4,ROW()),\"No Rebate\"),\"No Rebate\"),0)","v":0},{"$f":"IF(Table_PI[[#This Row],[Hide:\nFormula Name]]<>\"\",IFERROR(IF(MeasureCalc(Table_PI[[#This Row],[Hide:\nFormula Name]],Table_PI[[#This Row],[Quantity]],Table_PI[[#This Row],[List 1]],Table_PI[[#This Row],[List 2]],Table_PI[[#This Row],[List 3]],Table_PI[[#This Row],[Size]],Table_PI[[#This Row],[Input 1]],Table_PI[[#This Row],[Input 2]],Table_PI[[#This Row],[Input 3]],Table_PI[[#This Row],[Input 4]],'Customer Information'!$AR$12,1,ROW())>0,MeasureCalc(Table_PI[[#This Row],[Hide:\nFormula Name]],Table_PI[[#This Row],[Quantity]],Table_PI[[#This Row],[List 1]],Table_PI[[#This Row],[List 2]],Table_PI[[#This Row],[List 3]],Table_PI[[#This Row],[Size]],Table_PI[[#This Row],[Input 1]],Table_PI[[#This Row],[Input 2]],Table_PI[[#This Row],[Input 3]],Table_PI[[#This Row],[Input 4]],'Customer Information'!$AR$12,5,ROW()),\"No Rebate\"),\"No Rebate\"),0)","v":0},{"$f":"IF(Table_PI[[#This Row],[Hide:\nFormula Name]]<>\"\",IFERROR(IF(MeasureCalc(Table_PI[[#This Row],[Hide:\nFormula Name]],Table_PI[[#This Row],[Quantity]],Table_PI[[#This Row],[List 1]],Table_PI[[#This Row],[List 2]],Table_PI[[#This Row],[List 3]],Table_PI[[#This Row],[Size]],Table_PI[[#This Row],[Input 1]],Table_PI[[#This Row],[Input 2]],Table_PI[[#This Row],[Input 3]],Table_PI[[#This Row],[Input 4]],'Customer Information'!$AR$12,1,ROW())>0,MeasureCalc(Table_PI[[#This Row],[Hide:\nFormula Name]],Table_PI[[#This Row],[Quantity]],Table_PI[[#This Row],[List 1]],Table_PI[[#This Row],[List 2]],Table_PI[[#This Row],[List 3]],Table_PI[[#This Row],[Size]],Table_PI[[#This Row],[Input 1]],Table_PI[[#This Row],[Input 2]],Table_PI[[#This Row],[Input 3]],Table_PI[[#This Row],[Input 4]],'Customer Information'!$AR$12,6,ROW()),\"No Rebate\"),\"No Rebate\"),0)","v":0},{"$f":"IF(Table_PI[[#This Row],[Hide:\nFormula Name]]<>\"\",IFERROR(IF(MeasureCalc(Table_PI[[#This Row],[Hide:\nFormula Name]],Table_PI[[#This Row],[Quantity]],Table_PI[[#This Row],[List 1]],Table_PI[[#This Row],[List 2]],Table_PI[[#This Row],[List 3]],Table_PI[[#This Row],[Size]],Table_PI[[#This Row],[Input 1]],Table_PI[[#This Row],[Input 2]],Table_PI[[#This Row],[Input 3]],Table_PI[[#This Row],[Input 4]],'Customer Information'!$AR$12,1,ROW())>0,MeasureCalc(Table_PI[[#This Row],[Hide:\nFormula Name]],Table_PI[[#This Row],[Quantity]],Table_PI[[#This Row],[List 1]],Table_PI[[#This Row],[List 2]],Table_PI[[#This Row],[List 3]],Table_PI[[#This Row],[Size]],Table_PI[[#This Row],[Input 1]],Table_PI[[#This Row],[Input 2]],Table_PI[[#This Row],[Input 3]],Table_PI[[#This Row],[Input 4]],'Customer Information'!$AR$12,7,ROW()),\"No Rebate\"),\"No Rebate\"),0)","v":0},{"$f":"IF(Table_PI[[#This Row],[Hide:\nFormula Name]]<>\"\",IFERROR(IF(MeasureCalc(Table_PI[[#This Row],[Hide:\nFormula Name]],Table_PI[[#This Row],[Quantity]],Table_PI[[#This Row],[List 1]],Table_PI[[#This Row],[List 2]],Table_PI[[#This Row],[List 3]],Table_PI[[#This Row],[Size]],Table_PI[[#This Row],[Input 1]],Table_PI[[#This Row],[Input 2]],Table_PI[[#This Row],[Input 3]],Table_PI[[#This Row],[Input 4]],'Customer Information'!$AR$12,1,ROW())>0,MeasureCalc(Table_PI[[#This Row],[Hide:\nFormula Name]],Table_PI[[#This Row],[Quantity]],Table_PI[[#This Row],[List 1]],Table_PI[[#This Row],[List 2]],Table_PI[[#This Row],[List 3]],Table_PI[[#This Row],[Size]],Table_PI[[#This Row],[Input 1]],Table_PI[[#This Row],[Input 2]],Table_PI[[#This Row],[Input 3]],Table_PI[[#This Row],[Input 4]],'Customer Information'!$AR$12,8,ROW()),\"No Rebate\"),\"No Rebate\"),0)","v":0},{"$f":"IF(Table_PI[[#This Row],[Hide:\nFormula Name]]<>\"\",IF(AND(Table_PI[[#This Row],[Hide:\nFormula Name]]<>\"\",OR(Table_PI[[#This Row],[Rebate]]>0,Table_PI[[#This Row],[Rebate]]=\"No Rebate\")),TRUE,\"MI: Line Item \" & $A11),\"\")","v":""}]
[{"$f":"IF(Table_PI[[#This Row],[Hide:\nFormula Name]]<>\"\",MAX($A$2:A11)+1,\"\")","v":""},null,null,null,null,null,null,null,null,null,null,null,null,null,null,{"$f":"IFERROR(VLOOKUP(Table_PI[[#This Row],[Measure]],'Equipment Lookups'!$C$3:$D$23,2,FALSE),\"\")","v":""},{"$f":"IF(Table_PI[[#This Row],[Hide:\nFormula Name]]<>\"\",IFERROR(IF(MeasureCalc(Table_PI[[#This Row],[Hide:\nFormula Name]],Table_PI[[#This Row],[Quantity]],Table_PI[[#This Row],[List 1]],Table_PI[[#This Row],[List 2]],Table_PI[[#This Row],[List 3]],Table_PI[[#This Row],[Size]],Table_PI[[#This Row],[Input 1]],Table_PI[[#This Row],[Input 2]],Table_PI[[#This Row],[Input 3]],Table_PI[[#This Row],[Input 4]],'Customer Information'!$AR$12,1,ROW())>0,MeasureCalc(Table_PI[[#This Row],[Hide:\nFormula Name]],Table_PI[[#This Row],[Quantity]],Table_PI[[#This Row],[List 1]],Table_PI[[#This Row],[List 2]],Table_PI[[#This Row],[List 3]],Table_PI[[#This Row],[Size]],Table_PI[[#This Row],[Input 1]],Table_PI[[#This Row],[Input 2]],Table_PI[[#This Row],[Input 3]],Table_PI[[#This Row],[Input 4]],'Customer Information'!$AR$12,1,ROW()),\"No Rebate\"),\"No Rebate\"),0)","v":0},{"$f":"IF(Table_PI[[#This Row],[Hide:\nFormula Name]]<>\"\",IFERROR(IF(MeasureCalc(Table_PI[[#This Row],[Hide:\nFormula Name]],Table_PI[[#This Row],[Quantity]],Table_PI[[#This Row],[List 1]],Table_PI[[#This Row],[List 2]],Table_PI[[#This Row],[List 3]],Table_PI[[#This Row],[Size]],Table_PI[[#This Row],[Input 1]],Table_PI[[#This Row],[Input 2]],Table_PI[[#This Row],[Input 3]],Table_PI[[#This Row],[Input 4]],'Customer Information'!$AR$12,1,ROW())>0,MeasureCalc(Table_PI[[#This Row],[Hide:\nFormula Name]],Table_PI[[#This Row],[Quantity]],Table_PI[[#This Row],[List 1]],Table_PI[[#This Row],[List 2]],Table_PI[[#This Row],[List 3]],Table_PI[[#This Row],[Size]],Table_PI[[#This Row],[Input 1]],Table_PI[[#This Row],[Input 2]],Table_PI[[#This Row],[Input 3]],Table_PI[[#This Row],[Input 4]],'Customer Information'!$AR$12,2,ROW()),\"No Rebate\"),\"No Rebate\"),0)","v":0},{"$f":"IF(Table_PI[[#This Row],[Hide:\nFormula Name]]<>\"\",IFERROR(IF(MeasureCalc(Table_PI[[#This Row],[Hide:\nFormula Name]],Table_PI[[#This Row],[Quantity]],Table_PI[[#This Row],[List 1]],Table_PI[[#This Row],[List 2]],Table_PI[[#This Row],[List 3]],Table_PI[[#This Row],[Size]],Table_PI[[#This Row],[Input 1]],Table_PI[[#This Row],[Input 2]],Table_PI[[#This Row],[Input 3]],Table_PI[[#This Row],[Input 4]],'Customer Information'!$AR$12,1,ROW())>0,MeasureCalc(Table_PI[[#This Row],[Hide:\nFormula Name]],Table_PI[[#This Row],[Quantity]],Table_PI[[#This Row],[List 1]],Table_PI[[#This Row],[List 2]],Table_PI[[#This Row],[List 3]],Table_PI[[#This Row],[Size]],Table_PI[[#This Row],[Input 1]],Table_PI[[#This Row],[Input 2]],Table_PI[[#This Row],[Input 3]],Table_PI[[#This Row],[Input 4]],'Customer Information'!$AR$12,3,ROW()),\"No Rebate\"),\"No Rebate\"),0)","v":0},{"$f":"IF(Table_PI[[#This Row],[Hide:\nFormula Name]]<>\"\",IFERROR(IF(MeasureCalc(Table_PI[[#This Row],[Hide:\nFormula Name]],Table_PI[[#This Row],[Quantity]],Table_PI[[#This Row],[List 1]],Table_PI[[#This Row],[List 2]],Table_PI[[#This Row],[List 3]],Table_PI[[#This Row],[Size]],Table_PI[[#This Row],[Input 1]],Table_PI[[#This Row],[Input 2]],Table_PI[[#This Row],[Input 3]],Table_PI[[#This Row],[Input 4]],'Customer Information'!$AR$12,1,ROW())>0,MeasureCalc(Table_PI[[#This Row],[Hide:\nFormula Name]],Table_PI[[#This Row],[Quantity]],Table_PI[[#This Row],[List 1]],Table_PI[[#This Row],[List 2]],Table_PI[[#This Row],[List 3]],Table_PI[[#This Row],[Size]],Table_PI[[#This Row],[Input 1]],Table_PI[[#This Row],[Input 2]],Table_PI[[#This Row],[Input 3]],Table_PI[[#This Row],[Input 4]],'Customer Information'!$AR$12,4,ROW()),\"No Rebate\"),\"No Rebate\"),0)","v":0},{"$f":"IF(Table_PI[[#This Row],[Hide:\nFormula Name]]<>\"\",IFERROR(IF(MeasureCalc(Table_PI[[#This Row],[Hide:\nFormula Name]],Table_PI[[#This Row],[Quantity]],Table_PI[[#This Row],[List 1]],Table_PI[[#This Row],[List 2]],Table_PI[[#This Row],[List 3]],Table_PI[[#This Row],[Size]],Table_PI[[#This Row],[Input 1]],Table_PI[[#This Row],[Input 2]],Table_PI[[#This Row],[Input 3]],Table_PI[[#This Row],[Input 4]],'Customer Information'!$AR$12,1,ROW())>0,MeasureCalc(Table_PI[[#This Row],[Hide:\nFormula Name]],Table_PI[[#This Row],[Quantity]],Table_PI[[#This Row],[List 1]],Table_PI[[#This Row],[List 2]],Table_PI[[#This Row],[List 3]],Table_PI[[#This Row],[Size]],Table_PI[[#This Row],[Input 1]],Table_PI[[#This Row],[Input 2]],Table_PI[[#This Row],[Input 3]],Table_PI[[#This Row],[Input 4]],'Customer Information'!$AR$12,5,ROW()),\"No Rebate\"),\"No Rebate\"),0)","v":0},{"$f":"IF(Table_PI[[#This Row],[Hide:\nFormula Name]]<>\"\",IFERROR(IF(MeasureCalc(Table_PI[[#This Row],[Hide:\nFormula Name]],Table_PI[[#This Row],[Quantity]],Table_PI[[#This Row],[List 1]],Table_PI[[#This Row],[List 2]],Table_PI[[#This Row],[List 3]],Table_PI[[#This Row],[Size]],Table_PI[[#This Row],[Input 1]],Table_PI[[#This Row],[Input 2]],Table_PI[[#This Row],[Input 3]],Table_PI[[#This Row],[Input 4]],'Customer Information'!$AR$12,1,ROW())>0,MeasureCalc(Table_PI[[#This Row],[Hide:\nFormula Name]],Table_PI[[#This Row],[Quantity]],Table_PI[[#This Row],[List 1]],Table_PI[[#This Row],[List 2]],Table_PI[[#This Row],[List 3]],Table_PI[[#This Row],[Size]],Table_PI[[#This Row],[Input 1]],Table_PI[[#This Row],[Input 2]],Table_PI[[#This Row],[Input 3]],Table_PI[[#This Row],[Input 4]],'Customer Information'!$AR$12,6,ROW()),\"No Rebate\"),\"No Rebate\"),0)","v":0},{"$f":"IF(Table_PI[[#This Row],[Hide:\nFormula Name]]<>\"\",IFERROR(IF(MeasureCalc(Table_PI[[#This Row],[Hide:\nFormula Name]],Table_PI[[#This Row],[Quantity]],Table_PI[[#This Row],[List 1]],Table_PI[[#This Row],[List 2]],Table_PI[[#This Row],[List 3]],Table_PI[[#This Row],[Size]],Table_PI[[#This Row],[Input 1]],Table_PI[[#This Row],[Input 2]],Table_PI[[#This Row],[Input 3]],Table_PI[[#This Row],[Input 4]],'Customer Information'!$AR$12,1,ROW())>0,MeasureCalc(Table_PI[[#This Row],[Hide:\nFormula Name]],Table_PI[[#This Row],[Quantity]],Table_PI[[#This Row],[List 1]],Table_PI[[#This Row],[List 2]],Table_PI[[#This Row],[List 3]],Table_PI[[#This Row],[Size]],Table_PI[[#This Row],[Input 1]],Table_PI[[#This Row],[Input 2]],Table_PI[[#This Row],[Input 3]],Table_PI[[#This Row],[Input 4]],'Customer Information'!$AR$12,7,ROW()),\"No Rebate\"),\"No Rebate\"),0)","v":0},{"$f":"IF(Table_PI[[#This Row],[Hide:\nFormula Name]]<>\"\",IFERROR(IF(MeasureCalc(Table_PI[[#This Row],[Hide:\nFormula Name]],Table_PI[[#This Row],[Quantity]],Table_PI[[#This Row],[List 1]],Table_PI[[#This Row],[List 2]],Table_PI[[#This Row],[List 3]],Table_PI[[#This Row],[Size]],Table_PI[[#This Row],[Input 1]],Table_PI[[#This Row],[Input 2]],Table_PI[[#This Row],[Input 3]],Table_PI[[#This Row],[Input 4]],'Customer Information'!$AR$12,1,ROW())>0,MeasureCalc(Table_PI[[#This Row],[Hide:\nFormula Name]],Table_PI[[#This Row],[Quantity]],Table_PI[[#This Row],[List 1]],Table_PI[[#This Row],[List 2]],Table_PI[[#This Row],[List 3]],Table_PI[[#This Row],[Size]],Table_PI[[#This Row],[Input 1]],Table_PI[[#This Row],[Input 2]],Table_PI[[#This Row],[Input 3]],Table_PI[[#This Row],[Input 4]],'Customer Information'!$AR$12,8,ROW()),\"No Rebate\"),\"No Rebate\"),0)","v":0},{"$f":"IF(Table_PI[[#This Row],[Hide:\nFormula Name]]<>\"\",IF(AND(Table_PI[[#This Row],[Hide:\nFormula Name]]<>\"\",OR(Table_PI[[#This Row],[Rebate]]>0,Table_PI[[#This Row],[Rebate]]=\"No Rebate\")),TRUE,\"MI: Line Item \" & $A12),\"\")","v":""}]
[{"$f":"IF(Table_PI[[#This Row],[Hide:\nFormula Name]]<>\"\",MAX($A$2:A12)+1,\"\")","v":""},null,null,null,null,null,null,null,null,null,null,null,null,null,null,{"$f":"IFERROR(VLOOKUP(Table_PI[[#This Row],[Measure]],'Equipment Lookups'!$C$3:$D$23,2,FALSE),\"\")","v":""},{"$f":"IF(Table_PI[[#This Row],[Hide:\nFormula Name]]<>\"\",IFERROR(IF(MeasureCalc(Table_PI[[#This Row],[Hide:\nFormula Name]],Table_PI[[#This Row],[Quantity]],Table_PI[[#This Row],[List 1]],Table_PI[[#This Row],[List 2]],Table_PI[[#This Row],[List 3]],Table_PI[[#This Row],[Size]],Table_PI[[#This Row],[Input 1]],Table_PI[[#This Row],[Input 2]],Table_PI[[#This Row],[Input 3]],Table_PI[[#This Row],[Input 4]],'Customer Information'!$AR$12,1,ROW())>0,MeasureCalc(Table_PI[[#This Row],[Hide:\nFormula Name]],Table_PI[[#This Row],[Quantity]],Table_PI[[#This Row],[List 1]],Table_PI[[#This Row],[List 2]],Table_PI[[#This Row],[List 3]],Table_PI[[#This Row],[Size]],Table_PI[[#This Row],[Input 1]],Table_PI[[#This Row],[Input 2]],Table_PI[[#This Row],[Input 3]],Table_PI[[#This Row],[Input 4]],'Customer Information'!$AR$12,1,ROW()),\"No Rebate\"),\"No Rebate\"),0)","v":0},{"$f":"IF(Table_PI[[#This Row],[Hide:\nFormula Name]]<>\"\",IFERROR(IF(MeasureCalc(Table_PI[[#This Row],[Hide:\nFormula Name]],Table_PI[[#This Row],[Quantity]],Table_PI[[#This Row],[List 1]],Table_PI[[#This Row],[List 2]],Table_PI[[#This Row],[List 3]],Table_PI[[#This Row],[Size]],Table_PI[[#This Row],[Input 1]],Table_PI[[#This Row],[Input 2]],Table_PI[[#This Row],[Input 3]],Table_PI[[#This Row],[Input 4]],'Customer Information'!$AR$12,1,ROW())>0,MeasureCalc(Table_PI[[#This Row],[Hide:\nFormula Name]],Table_PI[[#This Row],[Quantity]],Table_PI[[#This Row],[List 1]],Table_PI[[#This Row],[List 2]],Table_PI[[#This Row],[List 3]],Table_PI[[#This Row],[Size]],Table_PI[[#This Row],[Input 1]],Table_PI[[#This Row],[Input 2]],Table_PI[[#This Row],[Input 3]],Table_PI[[#This Row],[Input 4]],'Customer Information'!$AR$12,2,ROW()),\"No Rebate\"),\"No Rebate\"),0)","v":0},{"$f":"IF(Table_PI[[#This Row],[Hide:\nFormula Name]]<>\"\",IFERROR(IF(MeasureCalc(Table_PI[[#This Row],[Hide:\nFormula Name]],Table_PI[[#This Row],[Quantity]],Table_PI[[#This Row],[List 1]],Table_PI[[#This Row],[List 2]],Table_PI[[#This Row],[List 3]],Table_PI[[#This Row],[Size]],Table_PI[[#This Row],[Input 1]],Table_PI[[#This Row],[Input 2]],Table_PI[[#This Row],[Input 3]],Table_PI[[#This Row],[Input 4]],'Customer Information'!$AR$12,1,ROW())>0,MeasureCalc(Table_PI[[#This Row],[Hide:\nFormula Name]],Table_PI[[#This Row],[Quantity]],Table_PI[[#This Row],[List 1]],Table_PI[[#This Row],[List 2]],Table_PI[[#This Row],[List 3]],Table_PI[[#This Row],[Size]],Table_PI[[#This Row],[Input 1]],Table_PI[[#This Row],[Input 2]],Table_PI[[#This Row],[Input 3]],Table_PI[[#This Row],[Input 4]],'Customer Information'!$AR$12,3,ROW()),\"No Rebate\"),\"No Rebate\"),0)","v":0},{"$f":"IF(Table_PI[[#This Row],[Hide:\nFormula Name]]<>\"\",IFERROR(IF(MeasureCalc(Table_PI[[#This Row],[Hide:\nFormula Name]],Table_PI[[#This Row],[Quantity]],Table_PI[[#This Row],[List 1]],Table_PI[[#This Row],[List 2]],Table_PI[[#This Row],[List 3]],Table_PI[[#This Row],[Size]],Table_PI[[#This Row],[Input 1]],Table_PI[[#This Row],[Input 2]],Table_PI[[#This Row],[Input 3]],Table_PI[[#This Row],[Input 4]],'Customer Information'!$AR$12,1,ROW())>0,MeasureCalc(Table_PI[[#This Row],[Hide:\nFormula Name]],Table_PI[[#This Row],[Quantity]],Table_PI[[#This Row],[List 1]],Table_PI[[#This Row],[List 2]],Table_PI[[#This Row],[List 3]],Table_PI[[#This Row],[Size]],Table_PI[[#This Row],[Input 1]],Table_PI[[#This Row],[Input 2]],Table_PI[[#This Row],[Input 3]],Table_PI[[#This Row],[Input 4]],'Customer Information'!$AR$12,4,ROW()),\"No Rebate\"),\"No Rebate\"),0)","v":0},{"$f":"IF(Table_PI[[#This Row],[Hide:\nFormula Name]]<>\"\",IFERROR(IF(MeasureCalc(Table_PI[[#This Row],[Hide:\nFormula Name]],Table_PI[[#This Row],[Quantity]],Table_PI[[#This Row],[List 1]],Table_PI[[#This Row],[List 2]],Table_PI[[#This Row],[List 3]],Table_PI[[#This Row],[Size]],Table_PI[[#This Row],[Input 1]],Table_PI[[#This Row],[Input 2]],Table_PI[[#This Row],[Input 3]],Table_PI[[#This Row],[Input 4]],'Customer Information'!$AR$12,1,ROW())>0,MeasureCalc(Table_PI[[#This Row],[Hide:\nFormula Name]],Table_PI[[#This Row],[Quantity]],Table_PI[[#This Row],[List 1]],Table_PI[[#This Row],[List 2]],Table_PI[[#This Row],[List 3]],Table_PI[[#This Row],[Size]],Table_PI[[#This Row],[Input 1]],Table_PI[[#This Row],[Input 2]],Table_PI[[#This Row],[Input 3]],Table_PI[[#This Row],[Input 4]],'Customer Information'!$AR$12,5,ROW()),\"No Rebate\"),\"No Rebate\"),0)","v":0},{"$f":"IF(Table_PI[[#This Row],[Hide:\nFormula Name]]<>\"\",IFERROR(IF(MeasureCalc(Table_PI[[#This Row],[Hide:\nFormula Name]],Table_PI[[#This Row],[Quantity]],Table_PI[[#This Row],[List 1]],Table_PI[[#This Row],[List 2]],Table_PI[[#This Row],[List 3]],Table_PI[[#This Row],[Size]],Table_PI[[#This Row],[Input 1]],Table_PI[[#This Row],[Input 2]],Table_PI[[#This Row],[Input 3]],Table_PI[[#This Row],[Input 4]],'Customer Information'!$AR$12,1,ROW())>0,MeasureCalc(Table_PI[[#This Row],[Hide:\nFormula Name]],Table_PI[[#This Row],[Quantity]],Table_PI[[#This Row],[List 1]],Table_PI[[#This Row],[List 2]],Table_PI[[#This Row],[List 3]],Table_PI[[#This Row],[Size]],Table_PI[[#This Row],[Input 1]],Table_PI[[#This Row],[Input 2]],Table_PI[[#This Row],[Input 3]],Table_PI[[#This Row],[Input 4]],'Customer Information'!$AR$12,6,ROW()),\"No Rebate\"),\"No Rebate\"),0)","v":0},{"$f":"IF(Table_PI[[#This Row],[Hide:\nFormula Name]]<>\"\",IFERROR(IF(MeasureCalc(Table_PI[[#This Row],[Hide:\nFormula Name]],Table_PI[[#This Row],[Quantity]],Table_PI[[#This Row],[List 1]],Table_PI[[#This Row],[List 2]],Table_PI[[#This Row],[List 3]],Table_PI[[#This Row],[Size]],Table_PI[[#This Row],[Input 1]],Table_PI[[#This Row],[Input 2]],Table_PI[[#This Row],[Input 3]],Table_PI[[#This Row],[Input 4]],'Customer Information'!$AR$12,1,ROW())>0,MeasureCalc(Table_PI[[#This Row],[Hide:\nFormula Name]],Table_PI[[#This Row],[Quantity]],Table_PI[[#This Row],[List 1]],Table_PI[[#This Row],[List 2]],Table_PI[[#This Row],[List 3]],Table_PI[[#This Row],[Size]],Table_PI[[#This Row],[Input 1]],Table_PI[[#This Row],[Input 2]],Table_PI[[#This Row],[Input 3]],Table_PI[[#This Row],[Input 4]],'Customer Information'!$AR$12,7,ROW()),\"No Rebate\"),\"No Rebate\"),0)","v":0},{"$f":"IF(Table_PI[[#This Row],[Hide:\nFormula Name]]<>\"\",IFERROR(IF(MeasureCalc(Table_PI[[#This Row],[Hide:\nFormula Name]],Table_PI[[#This Row],[Quantity]],Table_PI[[#This Row],[List 1]],Table_PI[[#This Row],[List 2]],Table_PI[[#This Row],[List 3]],Table_PI[[#This Row],[Size]],Table_PI[[#This Row],[Input 1]],Table_PI[[#This Row],[Input 2]],Table_PI[[#This Row],[Input 3]],Table_PI[[#This Row],[Input 4]],'Customer Information'!$AR$12,1,ROW())>0,MeasureCalc(Table_PI[[#This Row],[Hide:\nFormula Name]],Table_PI[[#This Row],[Quantity]],Table_PI[[#This Row],[List 1]],Table_PI[[#This Row],[List 2]],Table_PI[[#This Row],[List 3]],Table_PI[[#This Row],[Size]],Table_PI[[#This Row],[Input 1]],Table_PI[[#This Row],[Input 2]],Table_PI[[#This Row],[Input 3]],Table_PI[[#This Row],[Input 4]],'Customer Information'!$AR$12,8,ROW()),\"No Rebate\"),\"No Rebate\"),0)","v":0},{"$f":"IF(Table_PI[[#This Row],[Hide:\nFormula Name]]<>\"\",IF(AND(Table_PI[[#This Row],[Hide:\nFormula Name]]<>\"\",OR(Table_PI[[#This Row],[Rebate]]>0,Table_PI[[#This Row],[Rebate]]=\"No Rebate\")),TRUE,\"MI: Line Item \" & $A13),\"\")","v":""}]
[{"$f":"IF(Table_PI[[#This Row],[Hide:\nFormula Name]]<>\"\",MAX($A$2:A13)+1,\"\")","v":""},null,null,null,null,null,null,null,null,null,null,null,null,null,null,{"$f":"IFERROR(VLOOKUP(Table_PI[[#This Row],[Measure]],'Equipment Lookups'!$C$3:$D$23,2,FALSE),\"\")","v":""},{"$f":"IF(Table_PI[[#This Row],[Hide:\nFormula Name]]<>\"\",IFERROR(IF(MeasureCalc(Table_PI[[#This Row],[Hide:\nFormula Name]],Table_PI[[#This Row],[Quantity]],Table_PI[[#This Row],[List 1]],Table_PI[[#This Row],[List 2]],Table_PI[[#This Row],[List 3]],Table_PI[[#This Row],[Size]],Table_PI[[#This Row],[Input 1]],Table_PI[[#This Row],[Input 2]],Table_PI[[#This Row],[Input 3]],Table_PI[[#This Row],[Input 4]],'Customer Information'!$AR$12,1,ROW())>0,MeasureCalc(Table_PI[[#This Row],[Hide:\nFormula Name]],Table_PI[[#This Row],[Quantity]],Table_PI[[#This Row],[List 1]],Table_PI[[#This Row],[List 2]],Table_PI[[#This Row],[List 3]],Table_PI[[#This Row],[Size]],Table_PI[[#This Row],[Input 1]],Table_PI[[#This Row],[Input 2]],Table_PI[[#This Row],[Input 3]],Table_PI[[#This Row],[Input 4]],'Customer Information'!$AR$12,1,ROW()),\"No Rebate\"),\"No Rebate\"),0)","v":0},{"$f":"IF(Table_PI[[#This Row],[Hide:\nFormula Name]]<>\"\",IFERROR(IF(MeasureCalc(Table_PI[[#This Row],[Hide:\nFormula Name]],Table_PI[[#This Row],[Quantity]],Table_PI[[#This Row],[List 1]],Table_PI[[#This Row],[List 2]],Table_PI[[#This Row],[List 3]],Table_PI[[#This Row],[Size]],Table_PI[[#This Row],[Input 1]],Table_PI[[#This Row],[Input 2]],Table_PI[[#This Row],[Input 3]],Table_PI[[#This Row],[Input 4]],'Customer Information'!$AR$12,1,ROW())>0,MeasureCalc(Table_PI[[#This Row],[Hide:\nFormula Name]],Table_PI[[#This Row],[Quantity]],Table_PI[[#This Row],[List 1]],Table_PI[[#This Row],[List 2]],Table_PI[[#This Row],[List 3]],Table_PI[[#This Row],[Size]],Table_PI[[#This Row],[Input 1]],Table_PI[[#This Row],[Input 2]],Table_PI[[#This Row],[Input 3]],Table_PI[[#This Row],[Input 4]],'Customer Information'!$AR$12,2,ROW()),\"No Rebate\"),\"No Rebate\"),0)","v":0},{"$f":"IF(Table_PI[[#This Row],[Hide:\nFormula Name]]<>\"\",IFERROR(IF(MeasureCalc(Table_PI[[#This Row],[Hide:\nFormula Name]],Table_PI[[#This Row],[Quantity]],Table_PI[[#This Row],[List 1]],Table_PI[[#This Row],[List 2]],Table_PI[[#This Row],[List 3]],Table_PI[[#This Row],[Size]],Table_PI[[#This Row],[Input 1]],Table_PI[[#This Row],[Input 2]],Table_PI[[#This Row],[Input 3]],Table_PI[[#This Row],[Input 4]],'Customer Information'!$AR$12,1,ROW())>0,MeasureCalc(Table_PI[[#This Row],[Hide:\nFormula Name]],Table_PI[[#This Row],[Quantity]],Table_PI[[#This Row],[List 1]],Table_PI[[#This Row],[List 2]],Table_PI[[#This Row],[List 3]],Table_PI[[#This Row],[Size]],Table_PI[[#This Row],[Input 1]],Table_PI[[#This Row],[Input 2]],Table_PI[[#This Row],[Input 3]],Table_PI[[#This Row],[Input 4]],'Customer Information'!$AR$12,3,ROW()),\"No Rebate\"),\"No Rebate\"),0)","v":0},{"$f":"IF(Table_PI[[#This Row],[Hide:\nFormula Name]]<>\"\",IFERROR(IF(MeasureCalc(Table_PI[[#This Row],[Hide:\nFormula Name]],Table_PI[[#This Row],[Quantity]],Table_PI[[#This Row],[List 1]],Table_PI[[#This Row],[List 2]],Table_PI[[#This Row],[List 3]],Table_PI[[#This Row],[Size]],Table_PI[[#This Row],[Input 1]],Table_PI[[#This Row],[Input 2]],Table_PI[[#This Row],[Input 3]],Table_PI[[#This Row],[Input 4]],'Customer Information'!$AR$12,1,ROW())>0,MeasureCalc(Table_PI[[#This Row],[Hide:\nFormula Name]],Table_PI[[#This Row],[Quantity]],Table_PI[[#This Row],[List 1]],Table_PI[[#This Row],[List 2]],Table_PI[[#This Row],[List 3]],Table_PI[[#This Row],[Size]],Table_PI[[#This Row],[Input 1]],Table_PI[[#This Row],[Input 2]],Table_PI[[#This Row],[Input 3]],Table_PI[[#This Row],[Input 4]],'Customer Information'!$AR$12,4,ROW()),\"No Rebate\"),\"No Rebate\"),0)","v":0},{"$f":"IF(Table_PI[[#This Row],[Hide:\nFormula Name]]<>\"\",IFERROR(IF(MeasureCalc(Table_PI[[#This Row],[Hide:\nFormula Name]],Table_PI[[#This Row],[Quantity]],Table_PI[[#This Row],[List 1]],Table_PI[[#This Row],[List 2]],Table_PI[[#This Row],[List 3]],Table_PI[[#This Row],[Size]],Table_PI[[#This Row],[Input 1]],Table_PI[[#This Row],[Input 2]],Table_PI[[#This Row],[Input 3]],Table_PI[[#This Row],[Input 4]],'Customer Information'!$AR$12,1,ROW())>0,MeasureCalc(Table_PI[[#This Row],[Hide:\nFormula Name]],Table_PI[[#This Row],[Quantity]],Table_PI[[#This Row],[List 1]],Table_PI[[#This Row],[List 2]],Table_PI[[#This Row],[List 3]],Table_PI[[#This Row],[Size]],Table_PI[[#This Row],[Input 1]],Table_PI[[#This Row],[Input 2]],Table_PI[[#This Row],[Input 3]],Table_PI[[#This Row],[Input 4]],'Customer Information'!$AR$12,5,ROW()),\"No Rebate\"),\"No Rebate\"),0)","v":0},{"$f":"IF(Table_PI[[#This Row],[Hide:\nFormula Name]]<>\"\",IFERROR(IF(MeasureCalc(Table_PI[[#This Row],[Hide:\nFormula Name]],Table_PI[[#This Row],[Quantity]],Table_PI[[#This Row],[List 1]],Table_PI[[#This Row],[List 2]],Table_PI[[#This Row],[List 3]],Table_PI[[#This Row],[Size]],Table_PI[[#This Row],[Input 1]],Table_PI[[#This Row],[Input 2]],Table_PI[[#This Row],[Input 3]],Table_PI[[#This Row],[Input 4]],'Customer Information'!$AR$12,1,ROW())>0,MeasureCalc(Table_PI[[#This Row],[Hide:\nFormula Name]],Table_PI[[#This Row],[Quantity]],Table_PI[[#This Row],[List 1]],Table_PI[[#This Row],[List 2]],Table_PI[[#This Row],[List 3]],Table_PI[[#This Row],[Size]],Table_PI[[#This Row],[Input 1]],Table_PI[[#This Row],[Input 2]],Table_PI[[#This Row],[Input 3]],Table_PI[[#This Row],[Input 4]],'Customer Information'!$AR$12,6,ROW()),\"No Rebate\"),\"No Rebate\"),0)","v":0},{"$f":"IF(Table_PI[[#This Row],[Hide:\nFormula Name]]<>\"\",IFERROR(IF(MeasureCalc(Table_PI[[#This Row],[Hide:\nFormula Name]],Table_PI[[#This Row],[Quantity]],Table_PI[[#This Row],[List 1]],Table_PI[[#This Row],[List 2]],Table_PI[[#This Row],[List 3]],Table_PI[[#This Row],[Size]],Table_PI[[#This Row],[Input 1]],Table_PI[[#This Row],[Input 2]],Table_PI[[#This Row],[Input 3]],Table_PI[[#This Row],[Input 4]],'Customer Information'!$AR$12,1,ROW())>0,MeasureCalc(Table_PI[[#This Row],[Hide:\nFormula Name]],Table_PI[[#This Row],[Quantity]],Table_PI[[#This Row],[List 1]],Table_PI[[#This Row],[List 2]],Table_PI[[#This Row],[List 3]],Table_PI[[#This Row],[Size]],Table_PI[[#This Row],[Input 1]],Table_PI[[#This Row],[Input 2]],Table_PI[[#This Row],[Input 3]],Table_PI[[#This Row],[Input 4]],'Customer Information'!$AR$12,7,ROW()),\"No Rebate\"),\"No Rebate\"),0)","v":0},{"$f":"IF(Table_PI[[#This Row],[Hide:\nFormula Name]]<>\"\",IFERROR(IF(MeasureCalc(Table_PI[[#This Row],[Hide:\nFormula Name]],Table_PI[[#This Row],[Quantity]],Table_PI[[#This Row],[List 1]],Table_PI[[#This Row],[List 2]],Table_PI[[#This Row],[List 3]],Table_PI[[#This Row],[Size]],Table_PI[[#This Row],[Input 1]],Table_PI[[#This Row],[Input 2]],Table_PI[[#This Row],[Input 3]],Table_PI[[#This Row],[Input 4]],'Customer Information'!$AR$12,1,ROW())>0,MeasureCalc(Table_PI[[#This Row],[Hide:\nFormula Name]],Table_PI[[#This Row],[Quantity]],Table_PI[[#This Row],[List 1]],Table_PI[[#This Row],[List 2]],Table_PI[[#This Row],[List 3]],Table_PI[[#This Row],[Size]],Table_PI[[#This Row],[Input 1]],Table_PI[[#This Row],[Input 2]],Table_PI[[#This Row],[Input 3]],Table_PI[[#This Row],[Input 4]],'Customer Information'!$AR$12,8,ROW()),\"No Rebate\"),\"No Rebate\"),0)","v":0},{"$f":"IF(Table_PI[[#This Row],[Hide:\nFormula Name]]<>\"\",IF(AND(Table_PI[[#This Row],[Hide:\nFormula Name]]<>\"\",OR(Table_PI[[#This Row],[Rebate]]>0,Table_PI[[#This Row],[Rebate]]=\"No Rebate\")),TRUE,\"MI: Line Item \" & $A14),\"\")","v":""}]
[{"$f":"IF(Table_PI[[#This Row],[Hide:\nFormula Name]]<>\"\",MAX($A$2:A14)+1,\"\")","v":""},null,null,null,null,null,null,null,null,null,null,null,null,null,null,{"$f":"IFERROR(VLOOKUP(Table_PI[[#This Row],[Measure]],'Equipment Lookups'!$C$3:$D$23,2,FALSE),\"\")","v":""},{"$f":"IF(Table_PI[[#This Row],[Hide:\nFormula Name]]<>\"\",IFERROR(IF(MeasureCalc(Table_PI[[#This Row],[Hide:\nFormula Name]],Table_PI[[#This Row],[Quantity]],Table_PI[[#This Row],[List 1]],Table_PI[[#This Row],[List 2]],Table_PI[[#This Row],[List 3]],Table_PI[[#This Row],[Size]],Table_PI[[#This Row],[Input 1]],Table_PI[[#This Row],[Input 2]],Table_PI[[#This Row],[Input 3]],Table_PI[[#This Row],[Input 4]],'Customer Information'!$AR$12,1,ROW())>0,MeasureCalc(Table_PI[[#This Row],[Hide:\nFormula Name]],Table_PI[[#This Row],[Quantity]],Table_PI[[#This Row],[List 1]],Table_PI[[#This Row],[List 2]],Table_PI[[#This Row],[List 3]],Table_PI[[#This Row],[Size]],Table_PI[[#This Row],[Input 1]],Table_PI[[#This Row],[Input 2]],Table_PI[[#This Row],[Input 3]],Table_PI[[#This Row],[Input 4]],'Customer Information'!$AR$12,1,ROW()),\"No Rebate\"),\"No Rebate\"),0)","v":0},{"$f":"IF(Table_PI[[#This Row],[Hide:\nFormula Name]]<>\"\",IFERROR(IF(MeasureCalc(Table_PI[[#This Row],[Hide:\nFormula Name]],Table_PI[[#This Row],[Quantity]],Table_PI[[#This Row],[List 1]],Table_PI[[#This Row],[List 2]],Table_PI[[#This Row],[List 3]],Table_PI[[#This Row],[Size]],Table_PI[[#This Row],[Input 1]],Table_PI[[#This Row],[Input 2]],Table_PI[[#This Row],[Input 3]],Table_PI[[#This Row],[Input 4]],'Customer Information'!$AR$12,1,ROW())>0,MeasureCalc(Table_PI[[#This Row],[Hide:\nFormula Name]],Table_PI[[#This Row],[Quantity]],Table_PI[[#This Row],[List 1]],Table_PI[[#This Row],[List 2]],Table_PI[[#This Row],[List 3]],Table_PI[[#This Row],[Size]],Table_PI[[#This Row],[Input 1]],Table_PI[[#This Row],[Input 2]],Table_PI[[#This Row],[Input 3]],Table_PI[[#This Row],[Input 4]],'Customer Information'!$AR$12,2,ROW()),\"No Rebate\"),\"No Rebate\"),0)","v":0},{"$f":"IF(Table_PI[[#This Row],[Hide:\nFormula Name]]<>\"\",IFERROR(IF(MeasureCalc(Table_PI[[#This Row],[Hide:\nFormula Name]],Table_PI[[#This Row],[Quantity]],Table_PI[[#This Row],[List 1]],Table_PI[[#This Row],[List 2]],Table_PI[[#This Row],[List 3]],Table_PI[[#This Row],[Size]],Table_PI[[#This Row],[Input 1]],Table_PI[[#This Row],[Input 2]],Table_PI[[#This Row],[Input 3]],Table_PI[[#This Row],[Input 4]],'Customer Information'!$AR$12,1,ROW())>0,MeasureCalc(Table_PI[[#This Row],[Hide:\nFormula Name]],Table_PI[[#This Row],[Quantity]],Table_PI[[#This Row],[List 1]],Table_PI[[#This Row],[List 2]],Table_PI[[#This Row],[List 3]],Table_PI[[#This Row],[Size]],Table_PI[[#This Row],[Input 1]],Table_PI[[#This Row],[Input 2]],Table_PI[[#This Row],[Input 3]],Table_PI[[#This Row],[Input 4]],'Customer Information'!$AR$12,3,ROW()),\"No Rebate\"),\"No Rebate\"),0)","v":0},{"$f":"IF(Table_PI[[#This Row],[Hide:\nFormula Name]]<>\"\",IFERROR(IF(MeasureCalc(Table_PI[[#This Row],[Hide:\nFormula Name]],Table_PI[[#This Row],[Quantity]],Table_PI[[#This Row],[List 1]],Table_PI[[#This Row],[List 2]],Table_PI[[#This Row],[List 3]],Table_PI[[#This Row],[Size]],Table_PI[[#This Row],[Input 1]],Table_PI[[#This Row],[Input 2]],Table_PI[[#This Row],[Input 3]],Table_PI[[#This Row],[Input 4]],'Customer Information'!$AR$12,1,ROW())>0,MeasureCalc(Table_PI[[#This Row],[Hide:\nFormula Name]],Table_PI[[#This Row],[Quantity]],Table_PI[[#This Row],[List 1]],Table_PI[[#This Row],[List 2]],Table_PI[[#This Row],[List 3]],Table_PI[[#This Row],[Size]],Table_PI[[#This Row],[Input 1]],Table_PI[[#This Row],[Input 2]],Table_PI[[#This Row],[Input 3]],Table_PI[[#This Row],[Input 4]],'Customer Information'!$AR$12,4,ROW()),\"No Rebate\"),\"No Rebate\"),0)","v":0},{"$f":"IF(Table_PI[[#This Row],[Hide:\nFormula Name]]<>\"\",IFERROR(IF(MeasureCalc(Table_PI[[#This Row],[Hide:\nFormula Name]],Table_PI[[#This Row],[Quantity]],Table_PI[[#This Row],[List 1]],Table_PI[[#This Row],[List 2]],Table_PI[[#This Row],[List 3]],Table_PI[[#This Row],[Size]],Table_PI[[#This Row],[Input 1]],Table_PI[[#This Row],[Input 2]],Table_PI[[#This Row],[Input 3]],Table_PI[[#This Row],[Input 4]],'Customer Information'!$AR$12,1,ROW())>0,MeasureCalc(Table_PI[[#This Row],[Hide:\nFormula Name]],Table_PI[[#This Row],[Quantity]],Table_PI[[#This Row],[List 1]],Table_PI[[#This Row],[List 2]],Table_PI[[#This Row],[List 3]],Table_PI[[#This Row],[Size]],Table_PI[[#This Row],[Input 1]],Table_PI[[#This Row],[Input 2]],Table_PI[[#This Row],[Input 3]],Table_PI[[#This Row],[Input 4]],'Customer Information'!$AR$12,5,ROW()),\"No Rebate\"),\"No Rebate\"),0)","v":0},{"$f":"IF(Table_PI[[#This Row],[Hide:\nFormula Name]]<>\"\",IFERROR(IF(MeasureCalc(Table_PI[[#This Row],[Hide:\nFormula Name]],Table_PI[[#This Row],[Quantity]],Table_PI[[#This Row],[List 1]],Table_PI[[#This Row],[List 2]],Table_PI[[#This Row],[List 3]],Table_PI[[#This Row],[Size]],Table_PI[[#This Row],[Input 1]],Table_PI[[#This Row],[Input 2]],Table_PI[[#This Row],[Input 3]],Table_PI[[#This Row],[Input 4]],'Customer Information'!$AR$12,1,ROW())>0,MeasureCalc(Table_PI[[#This Row],[Hide:\nFormula Name]],Table_PI[[#This Row],[Quantity]],Table_PI[[#This Row],[List 1]],Table_PI[[#This Row],[List 2]],Table_PI[[#This Row],[List 3]],Table_PI[[#This Row],[Size]],Table_PI[[#This Row],[Input 1]],Table_PI[[#This Row],[Input 2]],Table_PI[[#This Row],[Input 3]],Table_PI[[#This Row],[Input 4]],'Customer Information'!$AR$12,6,ROW()),\"No Rebate\"),\"No Rebate\"),0)","v":0},{"$f":"IF(Table_PI[[#This Row],[Hide:\nFormula Name]]<>\"\",IFERROR(IF(MeasureCalc(Table_PI[[#This Row],[Hide:\nFormula Name]],Table_PI[[#This Row],[Quantity]],Table_PI[[#This Row],[List 1]],Table_PI[[#This Row],[List 2]],Table_PI[[#This Row],[List 3]],Table_PI[[#This Row],[Size]],Table_PI[[#This Row],[Input 1]],Table_PI[[#This Row],[Input 2]],Table_PI[[#This Row],[Input 3]],Table_PI[[#This Row],[Input 4]],'Customer Information'!$AR$12,1,ROW())>0,MeasureCalc(Table_PI[[#This Row],[Hide:\nFormula Name]],Table_PI[[#This Row],[Quantity]],Table_PI[[#This Row],[List 1]],Table_PI[[#This Row],[List 2]],Table_PI[[#This Row],[List 3]],Table_PI[[#This Row],[Size]],Table_PI[[#This Row],[Input 1]],Table_PI[[#This Row],[Input 2]],Table_PI[[#This Row],[Input 3]],Table_PI[[#This Row],[Input 4]],'Customer Information'!$AR$12,7,ROW()),\"No Rebate\"),\"No Rebate\"),0)","v":0},{"$f":"IF(Table_PI[[#This Row],[Hide:\nFormula Name]]<>\"\",IFERROR(IF(MeasureCalc(Table_PI[[#This Row],[Hide:\nFormula Name]],Table_PI[[#This Row],[Quantity]],Table_PI[[#This Row],[List 1]],Table_PI[[#This Row],[List 2]],Table_PI[[#This Row],[List 3]],Table_PI[[#This Row],[Size]],Table_PI[[#This Row],[Input 1]],Table_PI[[#This Row],[Input 2]],Table_PI[[#This Row],[Input 3]],Table_PI[[#This Row],[Input 4]],'Customer Information'!$AR$12,1,ROW())>0,MeasureCalc(Table_PI[[#This Row],[Hide:\nFormula Name]],Table_PI[[#This Row],[Quantity]],Table_PI[[#This Row],[List 1]],Table_PI[[#This Row],[List 2]],Table_PI[[#This Row],[List 3]],Table_PI[[#This Row],[Size]],Table_PI[[#This Row],[Input 1]],Table_PI[[#This Row],[Input 2]],Table_PI[[#This Row],[Input 3]],Table_PI[[#This Row],[Input 4]],'Customer Information'!$AR$12,8,ROW()),\"No Rebate\"),\"No Rebate\"),0)","v":0},{"$f":"IF(Table_PI[[#This Row],[Hide:\nFormula Name]]<>\"\",IF(AND(Table_PI[[#This Row],[Hide:\nFormula Name]]<>\"\",OR(Table_PI[[#This Row],[Rebate]]>0,Table_PI[[#This Row],[Rebate]]=\"No Rebate\")),TRUE,\"MI: Line Item \" & $A15),\"\")","v":""}]
[{"$f":"IF(Table_PI[[#This Row],[Hide:\nFormula Name]]<>\"\",MAX($A$2:A15)+1,\"\")","v":""},null,null,null,null,null,null,null,null,null,null,null,null,null,null,{"$f":"IFERROR(VLOOKUP(Table_PI[[#This Row],[Measure]],'Equipment Lookups'!$C$3:$D$23,2,FALSE),\"\")","v":""},{"$f":"IF(Table_PI[[#This Row],[Hide:\nFormula Name]]<>\"\",IFERROR(IF(MeasureCalc(Table_PI[[#This Row],[Hide:\nFormula Name]],Table_PI[[#This Row],[Quantity]],Table_PI[[#This Row],[List 1]],Table_PI[[#This Row],[List 2]],Table_PI[[#This Row],[List 3]],Table_PI[[#This Row],[Size]],Table_PI[[#This Row],[Input 1]],Table_PI[[#This Row],[Input 2]],Table_PI[[#This Row],[Input 3]],Table_PI[[#This Row],[Input 4]],'Customer Information'!$AR$12,1,ROW())>0,MeasureCalc(Table_PI[[#This Row],[Hide:\nFormula Name]],Table_PI[[#This Row],[Quantity]],Table_PI[[#This Row],[List 1]],Table_PI[[#This Row],[List 2]],Table_PI[[#This Row],[List 3]],Table_PI[[#This Row],[Size]],Table_PI[[#This Row],[Input 1]],Table_PI[[#This Row],[Input 2]],Table_PI[[#This Row],[Input 3]],Table_PI[[#This Row],[Input 4]],'Customer Information'!$AR$12,1,ROW()),\"No Rebate\"),\"No Rebate\"),0)","v":0},{"$f":"IF(Table_PI[[#This Row],[Hide:\nFormula Name]]<>\"\",IFERROR(IF(MeasureCalc(Table_PI[[#This Row],[Hide:\nFormula Name]],Table_PI[[#This Row],[Quantity]],Table_PI[[#This Row],[List 1]],Table_PI[[#This Row],[List 2]],Table_PI[[#This Row],[List 3]],Table_PI[[#This Row],[Size]],Table_PI[[#This Row],[Input 1]],Table_PI[[#This Row],[Input 2]],Table_PI[[#This Row],[Input 3]],Table_PI[[#This Row],[Input 4]],'Customer Information'!$AR$12,1,ROW())>0,MeasureCalc(Table_PI[[#This Row],[Hide:\nFormula Name]],Table_PI[[#This Row],[Quantity]],Table_PI[[#This Row],[List 1]],Table_PI[[#This Row],[List 2]],Table_PI[[#This Row],[List 3]],Table_PI[[#This Row],[Size]],Table_PI[[#This Row],[Input 1]],Table_PI[[#This Row],[Input 2]],Table_PI[[#This Row],[Input 3]],Table_PI[[#This Row],[Input 4]],'Customer Information'!$AR$12,2,ROW()),\"No Rebate\"),\"No Rebate\"),0)","v":0},{"$f":"IF(Table_PI[[#This Row],[Hide:\nFormula Name]]<>\"\",IFERROR(IF(MeasureCalc(Table_PI[[#This Row],[Hide:\nFormula Name]],Table_PI[[#This Row],[Quantity]],Table_PI[[#This Row],[List 1]],Table_PI[[#This Row],[List 2]],Table_PI[[#This Row],[List 3]],Table_PI[[#This Row],[Size]],Table_PI[[#This Row],[Input 1]],Table_PI[[#This Row],[Input 2]],Table_PI[[#This Row],[Input 3]],Table_PI[[#This Row],[Input 4]],'Customer Information'!$AR$12,1,ROW())>0,MeasureCalc(Table_PI[[#This Row],[Hide:\nFormula Name]],Table_PI[[#This Row],[Quantity]],Table_PI[[#This Row],[List 1]],Table_PI[[#This Row],[List 2]],Table_PI[[#This Row],[List 3]],Table_PI[[#This Row],[Size]],Table_PI[[#This Row],[Input 1]],Table_PI[[#This Row],[Input 2]],Table_PI[[#This Row],[Input 3]],Table_PI[[#This Row],[Input 4]],'Customer Information'!$AR$12,3,ROW()),\"No Rebate\"),\"No Rebate\"),0)","v":0},{"$f":"IF(Table_PI[[#This Row],[Hide:\nFormula Name]]<>\"\",IFERROR(IF(MeasureCalc(Table_PI[[#This Row],[Hide:\nFormula Name]],Table_PI[[#This Row],[Quantity]],Table_PI[[#This Row],[List 1]],Table_PI[[#This Row],[List 2]],Table_PI[[#This Row],[List 3]],Table_PI[[#This Row],[Size]],Table_PI[[#This Row],[Input 1]],Table_PI[[#This Row],[Input 2]],Table_PI[[#This Row],[Input 3]],Table_PI[[#This Row],[Input 4]],'Customer Information'!$AR$12,1,ROW())>0,MeasureCalc(Table_PI[[#This Row],[Hide:\nFormula Name]],Table_PI[[#This Row],[Quantity]],Table_PI[[#This Row],[List 1]],Table_PI[[#This Row],[List 2]],Table_PI[[#This Row],[List 3]],Table_PI[[#This Row],[Size]],Table_PI[[#This Row],[Input 1]],Table_PI[[#This Row],[Input 2]],Table_PI[[#This Row],[Input 3]],Table_PI[[#This Row],[Input 4]],'Customer Information'!$AR$12,4,ROW()),\"No Rebate\"),\"No Rebate\"),0)","v":0},{"$f":"IF(Table_PI[[#This Row],[Hide:\nFormula Name]]<>\"\",IFERROR(IF(MeasureCalc(Table_PI[[#This Row],[Hide:\nFormula Name]],Table_PI[[#This Row],[Quantity]],Table_PI[[#This Row],[List 1]],Table_PI[[#This Row],[List 2]],Table_PI[[#This Row],[List 3]],Table_PI[[#This Row],[Size]],Table_PI[[#This Row],[Input 1]],Table_PI[[#This Row],[Input 2]],Table_PI[[#This Row],[Input 3]],Table_PI[[#This Row],[Input 4]],'Customer Information'!$AR$12,1,ROW())>0,MeasureCalc(Table_PI[[#This Row],[Hide:\nFormula Name]],Table_PI[[#This Row],[Quantity]],Table_PI[[#This Row],[List 1]],Table_PI[[#This Row],[List 2]],Table_PI[[#This Row],[List 3]],Table_PI[[#This Row],[Size]],Table_PI[[#This Row],[Input 1]],Table_PI[[#This Row],[Input 2]],Table_PI[[#This Row],[Input 3]],Table_PI[[#This Row],[Input 4]],'Customer Information'!$AR$12,5,ROW()),\"No Rebate\"),\"No Rebate\"),0)","v":0},{"$f":"IF(Table_PI[[#This Row],[Hide:\nFormula Name]]<>\"\",IFERROR(IF(MeasureCalc(Table_PI[[#This Row],[Hide:\nFormula Name]],Table_PI[[#This Row],[Quantity]],Table_PI[[#This Row],[List 1]],Table_PI[[#This Row],[List 2]],Table_PI[[#This Row],[List 3]],Table_PI[[#This Row],[Size]],Table_PI[[#This Row],[Input 1]],Table_PI[[#This Row],[Input 2]],Table_PI[[#This Row],[Input 3]],Table_PI[[#This Row],[Input 4]],'Customer Information'!$AR$12,1,ROW())>0,MeasureCalc(Table_PI[[#This Row],[Hide:\nFormula Name]],Table_PI[[#This Row],[Quantity]],Table_PI[[#This Row],[List 1]],Table_PI[[#This Row],[List 2]],Table_PI[[#This Row],[List 3]],Table_PI[[#This Row],[Size]],Table_PI[[#This Row],[Input 1]],Table_PI[[#This Row],[Input 2]],Table_PI[[#This Row],[Input 3]],Table_PI[[#This Row],[Input 4]],'Customer Information'!$AR$12,6,ROW()),\"No Rebate\"),\"No Rebate\"),0)","v":0},{"$f":"IF(Table_PI[[#This Row],[Hide:\nFormula Name]]<>\"\",IFERROR(IF(MeasureCalc(Table_PI[[#This Row],[Hide:\nFormula Name]],Table_PI[[#This Row],[Quantity]],Table_PI[[#This Row],[List 1]],Table_PI[[#This Row],[List 2]],Table_PI[[#This Row],[List 3]],Table_PI[[#This Row],[Size]],Table_PI[[#This Row],[Input 1]],Table_PI[[#This Row],[Input 2]],Table_PI[[#This Row],[Input 3]],Table_PI[[#This Row],[Input 4]],'Customer Information'!$AR$12,1,ROW())>0,MeasureCalc(Table_PI[[#This Row],[Hide:\nFormula Name]],Table_PI[[#This Row],[Quantity]],Table_PI[[#This Row],[List 1]],Table_PI[[#This Row],[List 2]],Table_PI[[#This Row],[List 3]],Table_PI[[#This Row],[Size]],Table_PI[[#This Row],[Input 1]],Table_PI[[#This Row],[Input 2]],Table_PI[[#This Row],[Input 3]],Table_PI[[#This Row],[Input 4]],'Customer Information'!$AR$12,7,ROW()),\"No Rebate\"),\"No Rebate\"),0)","v":0},{"$f":"IF(Table_PI[[#This Row],[Hide:\nFormula Name]]<>\"\",IFERROR(IF(MeasureCalc(Table_PI[[#This Row],[Hide:\nFormula Name]],Table_PI[[#This Row],[Quantity]],Table_PI[[#This Row],[List 1]],Table_PI[[#This Row],[List 2]],Table_PI[[#This Row],[List 3]],Table_PI[[#This Row],[Size]],Table_PI[[#This Row],[Input 1]],Table_PI[[#This Row],[Input 2]],Table_PI[[#This Row],[Input 3]],Table_PI[[#This Row],[Input 4]],'Customer Information'!$AR$12,1,ROW())>0,MeasureCalc(Table_PI[[#This Row],[Hide:\nFormula Name]],Table_PI[[#This Row],[Quantity]],Table_PI[[#This Row],[List 1]],Table_PI[[#This Row],[List 2]],Table_PI[[#This Row],[List 3]],Table_PI[[#This Row],[Size]],Table_PI[[#This Row],[Input 1]],Table_PI[[#This Row],[Input 2]],Table_PI[[#This Row],[Input 3]],Table_PI[[#This Row],[Input 4]],'Customer Information'!$AR$12,8,ROW()),\"No Rebate\"),\"No Rebate\"),0)","v":0},{"$f":"IF(Table_PI[[#This Row],[Hide:\nFormula Name]]<>\"\",IF(AND(Table_PI[[#This Row],[Hide:\nFormula Name]]<>\"\",OR(Table_PI[[#This Row],[Rebate]]>0,Table_PI[[#This Row],[Rebate]]=\"No Rebate\")),TRUE,\"MI: Line Item \" & $A16),\"\")","v":""}]
[{"$f":"IF(Table_PI[[#This Row],[Hide:\nFormula Name]]<>\"\",MAX($A$2:A16)+1,\"\")","v":""},null,null,null,null,null,null,null,null,null,null,null,null,null,null,{"$f":"IFERROR(VLOOKUP(Table_PI[[#This Row],[Measure]],'Equipment Lookups'!$C$3:$D$23,2,FALSE),\"\")","v":""},{"$f":"IF(Table_PI[[#This Row],[Hide:\nFormula Name]]<>\"\",IFERROR(IF(MeasureCalc(Table_PI[[#This Row],[Hide:\nFormula Name]],Table_PI[[#This Row],[Quantity]],Table_PI[[#This Row],[List 1]],Table_PI[[#This Row],[List 2]],Table_PI[[#This Row],[List 3]],Table_PI[[#This Row],[Size]],Table_PI[[#This Row],[Input 1]],Table_PI[[#This Row],[Input 2]],Table_PI[[#This Row],[Input 3]],Table_PI[[#This Row],[Input 4]],'Customer Information'!$AR$12,1,ROW())>0,MeasureCalc(Table_PI[[#This Row],[Hide:\nFormula Name]],Table_PI[[#This Row],[Quantity]],Table_PI[[#This Row],[List 1]],Table_PI[[#This Row],[List 2]],Table_PI[[#This Row],[List 3]],Table_PI[[#This Row],[Size]],Table_PI[[#This Row],[Input 1]],Table_PI[[#This Row],[Input 2]],Table_PI[[#This Row],[Input 3]],Table_PI[[#This Row],[Input 4]],'Customer Information'!$AR$12,1,ROW()),\"No Rebate\"),\"No Rebate\"),0)","v":0},{"$f":"IF(Table_PI[[#This Row],[Hide:\nFormula Name]]<>\"\",IFERROR(IF(MeasureCalc(Table_PI[[#This Row],[Hide:\nFormula Name]],Table_PI[[#This Row],[Quantity]],Table_PI[[#This Row],[List 1]],Table_PI[[#This Row],[List 2]],Table_PI[[#This Row],[List 3]],Table_PI[[#This Row],[Size]],Table_PI[[#This Row],[Input 1]],Table_PI[[#This Row],[Input 2]],Table_PI[[#This Row],[Input 3]],Table_PI[[#This Row],[Input 4]],'Customer Information'!$AR$12,1,ROW())>0,MeasureCalc(Table_PI[[#This Row],[Hide:\nFormula Name]],Table_PI[[#This Row],[Quantity]],Table_PI[[#This Row],[List 1]],Table_PI[[#This Row],[List 2]],Table_PI[[#This Row],[List 3]],Table_PI[[#This Row],[Size]],Table_PI[[#This Row],[Input 1]],Table_PI[[#This Row],[Input 2]],Table_PI[[#This Row],[Input 3]],Table_PI[[#This Row],[Input 4]],'Customer Information'!$AR$12,2,ROW()),\"No Rebate\"),\"No Rebate\"),0)","v":0},{"$f":"IF(Table_PI[[#This Row],[Hide:\nFormula Name]]<>\"\",IFERROR(IF(MeasureCalc(Table_PI[[#This Row],[Hide:\nFormula Name]],Table_PI[[#This Row],[Quantity]],Table_PI[[#This Row],[List 1]],Table_PI[[#This Row],[List 2]],Table_PI[[#This Row],[List 3]],Table_PI[[#This Row],[Size]],Table_PI[[#This Row],[Input 1]],Table_PI[[#This Row],[Input 2]],Table_PI[[#This Row],[Input 3]],Table_PI[[#This Row],[Input 4]],'Customer Information'!$AR$12,1,ROW())>0,MeasureCalc(Table_PI[[#This Row],[Hide:\nFormula Name]],Table_PI[[#This Row],[Quantity]],Table_PI[[#This Row],[List 1]],Table_PI[[#This Row],[List 2]],Table_PI[[#This Row],[List 3]],Table_PI[[#This Row],[Size]],Table_PI[[#This Row],[Input 1]],Table_PI[[#This Row],[Input 2]],Table_PI[[#This Row],[Input 3]],Table_PI[[#This Row],[Input 4]],'Customer Information'!$AR$12,3,ROW()),\"No Rebate\"),\"No Rebate\"),0)","v":0},{"$f":"IF(Table_PI[[#This Row],[Hide:\nFormula Name]]<>\"\",IFERROR(IF(MeasureCalc(Table_PI[[#This Row],[Hide:\nFormula Name]],Table_PI[[#This Row],[Quantity]],Table_PI[[#This Row],[List 1]],Table_PI[[#This Row],[List 2]],Table_PI[[#This Row],[List 3]],Table_PI[[#This Row],[Size]],Table_PI[[#This Row],[Input 1]],Table_PI[[#This Row],[Input 2]],Table_PI[[#This Row],[Input 3]],Table_PI[[#This Row],[Input 4]],'Customer Information'!$AR$12,1,ROW())>0,MeasureCalc(Table_PI[[#This Row],[Hide:\nFormula Name]],Table_PI[[#This Row],[Quantity]],Table_PI[[#This Row],[List 1]],Table_PI[[#This Row],[List 2]],Table_PI[[#This Row],[List 3]],Table_PI[[#This Row],[Size]],Table_PI[[#This Row],[Input 1]],Table_PI[[#This Row],[Input 2]],Table_PI[[#This Row],[Input 3]],Table_PI[[#This Row],[Input 4]],'Customer Information'!$AR$12,4,ROW()),\"No Rebate\"),\"No Rebate\"),0)","v":0},{"$f":"IF(Table_PI[[#This Row],[Hide:\nFormula Name]]<>\"\",IFERROR(IF(MeasureCalc(Table_PI[[#This Row],[Hide:\nFormula Name]],Table_PI[[#This Row],[Quantity]],Table_PI[[#This Row],[List 1]],Table_PI[[#This Row],[List 2]],Table_PI[[#This Row],[List 3]],Table_PI[[#This Row],[Size]],Table_PI[[#This Row],[Input 1]],Table_PI[[#This Row],[Input 2]],Table_PI[[#This Row],[Input 3]],Table_PI[[#This Row],[Input 4]],'Customer Information'!$AR$12,1,ROW())>0,MeasureCalc(Table_PI[[#This Row],[Hide:\nFormula Name]],Table_PI[[#This Row],[Quantity]],Table_PI[[#This Row],[List 1]],Table_PI[[#This Row],[List 2]],Table_PI[[#This Row],[List 3]],Table_PI[[#This Row],[Size]],Table_PI[[#This Row],[Input 1]],Table_PI[[#This Row],[Input 2]],Table_PI[[#This Row],[Input 3]],Table_PI[[#This Row],[Input 4]],'Customer Information'!$AR$12,5,ROW()),\"No Rebate\"),\"No Rebate\"),0)","v":0},{"$f":"IF(Table_PI[[#This Row],[Hide:\nFormula Name]]<>\"\",IFERROR(IF(MeasureCalc(Table_PI[[#This Row],[Hide:\nFormula Name]],Table_PI[[#This Row],[Quantity]],Table_PI[[#This Row],[List 1]],Table_PI[[#This Row],[List 2]],Table_PI[[#This Row],[List 3]],Table_PI[[#This Row],[Size]],Table_PI[[#This Row],[Input 1]],Table_PI[[#This Row],[Input 2]],Table_PI[[#This Row],[Input 3]],Table_PI[[#This Row],[Input 4]],'Customer Information'!$AR$12,1,ROW())>0,MeasureCalc(Table_PI[[#This Row],[Hide:\nFormula Name]],Table_PI[[#This Row],[Quantity]],Table_PI[[#This Row],[List 1]],Table_PI[[#This Row],[List 2]],Table_PI[[#This Row],[List 3]],Table_PI[[#This Row],[Size]],Table_PI[[#This Row],[Input 1]],Table_PI[[#This Row],[Input 2]],Table_PI[[#This Row],[Input 3]],Table_PI[[#This Row],[Input 4]],'Customer Information'!$AR$12,6,ROW()),\"No Rebate\"),\"No Rebate\"),0)","v":0},{"$f":"IF(Table_PI[[#This Row],[Hide:\nFormula Name]]<>\"\",IFERROR(IF(MeasureCalc(Table_PI[[#This Row],[Hide:\nFormula Name]],Table_PI[[#This Row],[Quantity]],Table_PI[[#This Row],[List 1]],Table_PI[[#This Row],[List 2]],Table_PI[[#This Row],[List 3]],Table_PI[[#This Row],[Size]],Table_PI[[#This Row],[Input 1]],Table_PI[[#This Row],[Input 2]],Table_PI[[#This Row],[Input 3]],Table_PI[[#This Row],[Input 4]],'Customer Information'!$AR$12,1,ROW())>0,MeasureCalc(Table_PI[[#This Row],[Hide:\nFormula Name]],Table_PI[[#This Row],[Quantity]],Table_PI[[#This Row],[List 1]],Table_PI[[#This Row],[List 2]],Table_PI[[#This Row],[List 3]],Table_PI[[#This Row],[Size]],Table_PI[[#This Row],[Input 1]],Table_PI[[#This Row],[Input 2]],Table_PI[[#This Row],[Input 3]],Table_PI[[#This Row],[Input 4]],'Customer Information'!$AR$12,7,ROW()),\"No Rebate\"),\"No Rebate\"),0)","v":0},{"$f":"IF(Table_PI[[#This Row],[Hide:\nFormula Name]]<>\"\",IFERROR(IF(MeasureCalc(Table_PI[[#This Row],[Hide:\nFormula Name]],Table_PI[[#This Row],[Quantity]],Table_PI[[#This Row],[List 1]],Table_PI[[#This Row],[List 2]],Table_PI[[#This Row],[List 3]],Table_PI[[#This Row],[Size]],Table_PI[[#This Row],[Input 1]],Table_PI[[#This Row],[Input 2]],Table_PI[[#This Row],[Input 3]],Table_PI[[#This Row],[Input 4]],'Customer Information'!$AR$12,1,ROW())>0,MeasureCalc(Table_PI[[#This Row],[Hide:\nFormula Name]],Table_PI[[#This Row],[Quantity]],Table_PI[[#This Row],[List 1]],Table_PI[[#This Row],[List 2]],Table_PI[[#This Row],[List 3]],Table_PI[[#This Row],[Size]],Table_PI[[#This Row],[Input 1]],Table_PI[[#This Row],[Input 2]],Table_PI[[#This Row],[Input 3]],Table_PI[[#This Row],[Input 4]],'Customer Information'!$AR$12,8,ROW()),\"No Rebate\"),\"No Rebate\"),0)","v":0},{"$f":"IF(Table_PI[[#This Row],[Hide:\nFormula Name]]<>\"\",IF(AND(Table_PI[[#This Row],[Hide:\nFormula Name]]<>\"\",OR(Table_PI[[#This Row],[Rebate]]>0,Table_PI[[#This Row],[Rebate]]=\"No Rebate\")),TRUE,\"MI: Line Item \" & $A17),\"\")","v":""}]
[{"$f":"IF(Table_PI[[#This Row],[Hide:\nFormula Name]]<>\"\",MAX($A$2:A17)+1,\"\")","v":""},null,null,null,null,null,null,null,null,null,null,null,null,null,null,{"$f":"IFERROR(VLOOKUP(Table_PI[[#This Row],[Measure]],'Equipment Lookups'!$C$3:$D$23,2,FALSE),\"\")","v":""},{"$f":"IF(Table_PI[[#This Row],[Hide:\nFormula Name]]<>\"\",IFERROR(IF(MeasureCalc(Table_PI[[#This Row],[Hide:\nFormula Name]],Table_PI[[#This Row],[Quantity]],Table_PI[[#This Row],[List 1]],Table_PI[[#This Row],[List 2]],Table_PI[[#This Row],[List 3]],Table_PI[[#This Row],[Size]],Table_PI[[#This Row],[Input 1]],Table_PI[[#This Row],[Input 2]],Table_PI[[#This Row],[Input 3]],Table_PI[[#This Row],[Input 4]],'Customer Information'!$AR$12,1,ROW())>0,MeasureCalc(Table_PI[[#This Row],[Hide:\nFormula Name]],Table_PI[[#This Row],[Quantity]],Table_PI[[#This Row],[List 1]],Table_PI[[#This Row],[List 2]],Table_PI[[#This Row],[List 3]],Table_PI[[#This Row],[Size]],Table_PI[[#This Row],[Input 1]],Table_PI[[#This Row],[Input 2]],Table_PI[[#This Row],[Input 3]],Table_PI[[#This Row],[Input 4]],'Customer Information'!$AR$12,1,ROW()),\"No Rebate\"),\"No Rebate\"),0)","v":0},{"$f":"IF(Table_PI[[#This Row],[Hide:\nFormula Name]]<>\"\",IFERROR(IF(MeasureCalc(Table_PI[[#This Row],[Hide:\nFormula Name]],Table_PI[[#This Row],[Quantity]],Table_PI[[#This Row],[List 1]],Table_PI[[#This Row],[List 2]],Table_PI[[#This Row],[List 3]],Table_PI[[#This Row],[Size]],Table_PI[[#This Row],[Input 1]],Table_PI[[#This Row],[Input 2]],Table_PI[[#This Row],[Input 3]],Table_PI[[#This Row],[Input 4]],'Customer Information'!$AR$12,1,ROW())>0,MeasureCalc(Table_PI[[#This Row],[Hide:\nFormula Name]],Table_PI[[#This Row],[Quantity]],Table_PI[[#This Row],[List 1]],Table_PI[[#This Row],[List 2]],Table_PI[[#This Row],[List 3]],Table_PI[[#This Row],[Size]],Table_PI[[#This Row],[Input 1]],Table_PI[[#This Row],[Input 2]],Table_PI[[#This Row],[Input 3]],Table_PI[[#This Row],[Input 4]],'Customer Information'!$AR$12,2,ROW()),\"No Rebate\"),\"No Rebate\"),0)","v":0},{"$f":"IF(Table_PI[[#This Row],[Hide:\nFormula Name]]<>\"\",IFERROR(IF(MeasureCalc(Table_PI[[#This Row],[Hide:\nFormula Name]],Table_PI[[#This Row],[Quantity]],Table_PI[[#This Row],[List 1]],Table_PI[[#This Row],[List 2]],Table_PI[[#This Row],[List 3]],Table_PI[[#This Row],[Size]],Table_PI[[#This Row],[Input 1]],Table_PI[[#This Row],[Input 2]],Table_PI[[#This Row],[Input 3]],Table_PI[[#This Row],[Input 4]],'Customer Information'!$AR$12,1,ROW())>0,MeasureCalc(Table_PI[[#This Row],[Hide:\nFormula Name]],Table_PI[[#This Row],[Quantity]],Table_PI[[#This Row],[List 1]],Table_PI[[#This Row],[List 2]],Table_PI[[#This Row],[List 3]],Table_PI[[#This Row],[Size]],Table_PI[[#This Row],[Input 1]],Table_PI[[#This Row],[Input 2]],Table_PI[[#This Row],[Input 3]],Table_PI[[#This Row],[Input 4]],'Customer Information'!$AR$12,3,ROW()),\"No Rebate\"),\"No Rebate\"),0)","v":0},{"$f":"IF(Table_PI[[#This Row],[Hide:\nFormula Name]]<>\"\",IFERROR(IF(MeasureCalc(Table_PI[[#This Row],[Hide:\nFormula Name]],Table_PI[[#This Row],[Quantity]],Table_PI[[#This Row],[List 1]],Table_PI[[#This Row],[List 2]],Table_PI[[#This Row],[List 3]],Table_PI[[#This Row],[Size]],Table_PI[[#This Row],[Input 1]],Table_PI[[#This Row],[Input 2]],Table_PI[[#This Row],[Input 3]],Table_PI[[#This Row],[Input 4]],'Customer Information'!$AR$12,1,ROW())>0,MeasureCalc(Table_PI[[#This Row],[Hide:\nFormula Name]],Table_PI[[#This Row],[Quantity]],Table_PI[[#This Row],[List 1]],Table_PI[[#This Row],[List 2]],Table_PI[[#This Row],[List 3]],Table_PI[[#This Row],[Size]],Table_PI[[#This Row],[Input 1]],Table_PI[[#This Row],[Input 2]],Table_PI[[#This Row],[Input 3]],Table_PI[[#This Row],[Input 4]],'Customer Information'!$AR$12,4,ROW()),\"No Rebate\"),\"No Rebate\"),0)","v":0},{"$f":"IF(Table_PI[[#This Row],[Hide:\nFormula Name]]<>\"\",IFERROR(IF(MeasureCalc(Table_PI[[#This Row],[Hide:\nFormula Name]],Table_PI[[#This Row],[Quantity]],Table_PI[[#This Row],[List 1]],Table_PI[[#This Row],[List 2]],Table_PI[[#This Row],[List 3]],Table_PI[[#This Row],[Size]],Table_PI[[#This Row],[Input 1]],Table_PI[[#This Row],[Input 2]],Table_PI[[#This Row],[Input 3]],Table_PI[[#This Row],[Input 4]],'Customer Information'!$AR$12,1,ROW())>0,MeasureCalc(Table_PI[[#This Row],[Hide:\nFormula Name]],Table_PI[[#This Row],[Quantity]],Table_PI[[#This Row],[List 1]],Table_PI[[#This Row],[List 2]],Table_PI[[#This Row],[List 3]],Table_PI[[#This Row],[Size]],Table_PI[[#This Row],[Input 1]],Table_PI[[#This Row],[Input 2]],Table_PI[[#This Row],[Input 3]],Table_PI[[#This Row],[Input 4]],'Customer Information'!$AR$12,5,ROW()),\"No Rebate\"),\"No Rebate\"),0)","v":0},{"$f":"IF(Table_PI[[#This Row],[Hide:\nFormula Name]]<>\"\",IFERROR(IF(MeasureCalc(Table_PI[[#This Row],[Hide:\nFormula Name]],Table_PI[[#This Row],[Quantity]],Table_PI[[#This Row],[List 1]],Table_PI[[#This Row],[List 2]],Table_PI[[#This Row],[List 3]],Table_PI[[#This Row],[Size]],Table_PI[[#This Row],[Input 1]],Table_PI[[#This Row],[Input 2]],Table_PI[[#This Row],[Input 3]],Table_PI[[#This Row],[Input 4]],'Customer Information'!$AR$12,1,ROW())>0,MeasureCalc(Table_PI[[#This Row],[Hide:\nFormula Name]],Table_PI[[#This Row],[Quantity]],Table_PI[[#This Row],[List 1]],Table_PI[[#This Row],[List 2]],Table_PI[[#This Row],[List 3]],Table_PI[[#This Row],[Size]],Table_PI[[#This Row],[Input 1]],Table_PI[[#This Row],[Input 2]],Table_PI[[#This Row],[Input 3]],Table_PI[[#This Row],[Input 4]],'Customer Information'!$AR$12,6,ROW()),\"No Rebate\"),\"No Rebate\"),0)","v":0},{"$f":"IF(Table_PI[[#This Row],[Hide:\nFormula Name]]<>\"\",IFERROR(IF(MeasureCalc(Table_PI[[#This Row],[Hide:\nFormula Name]],Table_PI[[#This Row],[Quantity]],Table_PI[[#This Row],[List 1]],Table_PI[[#This Row],[List 2]],Table_PI[[#This Row],[List 3]],Table_PI[[#This Row],[Size]],Table_PI[[#This Row],[Input 1]],Table_PI[[#This Row],[Input 2]],Table_PI[[#This Row],[Input 3]],Table_PI[[#This Row],[Input 4]],'Customer Information'!$AR$12,1,ROW())>0,MeasureCalc(Table_PI[[#This Row],[Hide:\nFormula Name]],Table_PI[[#This Row],[Quantity]],Table_PI[[#This Row],[List 1]],Table_PI[[#This Row],[List 2]],Table_PI[[#This Row],[List 3]],Table_PI[[#This Row],[Size]],Table_PI[[#This Row],[Input 1]],Table_PI[[#This Row],[Input 2]],Table_PI[[#This Row],[Input 3]],Table_PI[[#This Row],[Input 4]],'Customer Information'!$AR$12,7,ROW()),\"No Rebate\"),\"No Rebate\"),0)","v":0},{"$f":"IF(Table_PI[[#This Row],[Hide:\nFormula Name]]<>\"\",IFERROR(IF(MeasureCalc(Table_PI[[#This Row],[Hide:\nFormula Name]],Table_PI[[#This Row],[Quantity]],Table_PI[[#This Row],[List 1]],Table_PI[[#This Row],[List 2]],Table_PI[[#This Row],[List 3]],Table_PI[[#This Row],[Size]],Table_PI[[#This Row],[Input 1]],Table_PI[[#This Row],[Input 2]],Table_PI[[#This Row],[Input 3]],Table_PI[[#This Row],[Input 4]],'Customer Information'!$AR$12,1,ROW())>0,MeasureCalc(Table_PI[[#This Row],[Hide:\nFormula Name]],Table_PI[[#This Row],[Quantity]],Table_PI[[#This Row],[List 1]],Table_PI[[#This Row],[List 2]],Table_PI[[#This Row],[List 3]],Table_PI[[#This Row],[Size]],Table_PI[[#This Row],[Input 1]],Table_PI[[#This Row],[Input 2]],Table_PI[[#This Row],[Input 3]],Table_PI[[#This Row],[Input 4]],'Customer Information'!$AR$12,8,ROW()),\"No Rebate\"),\"No Rebate\"),0)","v":0},{"$f":"IF(Table_PI[[#This Row],[Hide:\nFormula Name]]<>\"\",IF(AND(Table_PI[[#This Row],[Hide:\nFormula Name]]<>\"\",OR(Table_PI[[#This Row],[Rebate]]>0,Table_PI[[#This Row],[Rebate]]=\"No Rebate\")),TRUE,\"MI: Line Item \" & $A18),\"\")","v":""}]
[{"$f":"IF(Table_PI[[#This Row],[Hide:\nFormula Name]]<>\"\",MAX($A$2:A18)+1,\"\")","v":""},null,null,null,null,null,null,null,null,null,null,null,null,null,null,{"$f":"IFERROR(VLOOKUP(Table_PI[[#This Row],[Measure]],'Equipment Lookups'!$C$3:$D$23,2,FALSE),\"\")","v":""},{"$f":"IF(Table_PI[[#This Row],[Hide:\nFormula Name]]<>\"\",IFERROR(IF(MeasureCalc(Table_PI[[#This Row],[Hide:\nFormula Name]],Table_PI[[#This Row],[Quantity]],Table_PI[[#This Row],[List 1]],Table_PI[[#This Row],[List 2]],Table_PI[[#This Row],[List 3]],Table_PI[[#This Row],[Size]],Table_PI[[#This Row],[Input 1]],Table_PI[[#This Row],[Input 2]],Table_PI[[#This Row],[Input 3]],Table_PI[[#This Row],[Input 4]],'Customer Information'!$AR$12,1,ROW())>0,MeasureCalc(Table_PI[[#This Row],[Hide:\nFormula Name]],Table_PI[[#This Row],[Quantity]],Table_PI[[#This Row],[List 1]],Table_PI[[#This Row],[List 2]],Table_PI[[#This Row],[List 3]],Table_PI[[#This Row],[Size]],Table_PI[[#This Row],[Input 1]],Table_PI[[#This Row],[Input 2]],Table_PI[[#This Row],[Input 3]],Table_PI[[#This Row],[Input 4]],'Customer Information'!$AR$12,1,ROW()),\"No Rebate\"),\"No Rebate\"),0)","v":0},{"$f":"IF(Table_PI[[#This Row],[Hide:\nFormula Name]]<>\"\",IFERROR(IF(MeasureCalc(Table_PI[[#This Row],[Hide:\nFormula Name]],Table_PI[[#This Row],[Quantity]],Table_PI[[#This Row],[List 1]],Table_PI[[#This Row],[List 2]],Table_PI[[#This Row],[List 3]],Table_PI[[#This Row],[Size]],Table_PI[[#This Row],[Input 1]],Table_PI[[#This Row],[Input 2]],Table_PI[[#This Row],[Input 3]],Table_PI[[#This Row],[Input 4]],'Customer Information'!$AR$12,1,ROW())>0,MeasureCalc(Table_PI[[#This Row],[Hide:\nFormula Name]],Table_PI[[#This Row],[Quantity]],Table_PI[[#This Row],[List 1]],Table_PI[[#This Row],[List 2]],Table_PI[[#This Row],[List 3]],Table_PI[[#This Row],[Size]],Table_PI[[#This Row],[Input 1]],Table_PI[[#This Row],[Input 2]],Table_PI[[#This Row],[Input 3]],Table_PI[[#This Row],[Input 4]],'Customer Information'!$AR$12,2,ROW()),\"No Rebate\"),\"No Rebate\"),0)","v":0},{"$f":"IF(Table_PI[[#This Row],[Hide:\nFormula Name]]<>\"\",IFERROR(IF(MeasureCalc(Table_PI[[#This Row],[Hide:\nFormula Name]],Table_PI[[#This Row],[Quantity]],Table_PI[[#This Row],[List 1]],Table_PI[[#This Row],[List 2]],Table_PI[[#This Row],[List 3]],Table_PI[[#This Row],[Size]],Table_PI[[#This Row],[Input 1]],Table_PI[[#This Row],[Input 2]],Table_PI[[#This Row],[Input 3]],Table_PI[[#This Row],[Input 4]],'Customer Information'!$AR$12,1,ROW())>0,MeasureCalc(Table_PI[[#This Row],[Hide:\nFormula Name]],Table_PI[[#This Row],[Quantity]],Table_PI[[#This Row],[List 1]],Table_PI[[#This Row],[List 2]],Table_PI[[#This Row],[List 3]],Table_PI[[#This Row],[Size]],Table_PI[[#This Row],[Input 1]],Table_PI[[#This Row],[Input 2]],Table_PI[[#This Row],[Input 3]],Table_PI[[#This Row],[Input 4]],'Customer Information'!$AR$12,3,ROW()),\"No Rebate\"),\"No Rebate\"),0)","v":0},{"$f":"IF(Table_PI[[#This Row],[Hide:\nFormula Name]]<>\"\",IFERROR(IF(MeasureCalc(Table_PI[[#This Row],[Hide:\nFormula Name]],Table_PI[[#This Row],[Quantity]],Table_PI[[#This Row],[List 1]],Table_PI[[#This Row],[List 2]],Table_PI[[#This Row],[List 3]],Table_PI[[#This Row],[Size]],Table_PI[[#This Row],[Input 1]],Table_PI[[#This Row],[Input 2]],Table_PI[[#This Row],[Input 3]],Table_PI[[#This Row],[Input 4]],'Customer Information'!$AR$12,1,ROW())>0,MeasureCalc(Table_PI[[#This Row],[Hide:\nFormula Name]],Table_PI[[#This Row],[Quantity]],Table_PI[[#This Row],[List 1]],Table_PI[[#This Row],[List 2]],Table_PI[[#This Row],[List 3]],Table_PI[[#This Row],[Size]],Table_PI[[#This Row],[Input 1]],Table_PI[[#This Row],[Input 2]],Table_PI[[#This Row],[Input 3]],Table_PI[[#This Row],[Input 4]],'Customer Information'!$AR$12,4,ROW()),\"No Rebate\"),\"No Rebate\"),0)","v":0},{"$f":"IF(Table_PI[[#This Row],[Hide:\nFormula Name]]<>\"\",IFERROR(IF(MeasureCalc(Table_PI[[#This Row],[Hide:\nFormula Name]],Table_PI[[#This Row],[Quantity]],Table_PI[[#This Row],[List 1]],Table_PI[[#This Row],[List 2]],Table_PI[[#This Row],[List 3]],Table_PI[[#This Row],[Size]],Table_PI[[#This Row],[Input 1]],Table_PI[[#This Row],[Input 2]],Table_PI[[#This Row],[Input 3]],Table_PI[[#This Row],[Input 4]],'Customer Information'!$AR$12,1,ROW())>0,MeasureCalc(Table_PI[[#This Row],[Hide:\nFormula Name]],Table_PI[[#This Row],[Quantity]],Table_PI[[#This Row],[List 1]],Table_PI[[#This Row],[List 2]],Table_PI[[#This Row],[List 3]],Table_PI[[#This Row],[Size]],Table_PI[[#This Row],[Input 1]],Table_PI[[#This Row],[Input 2]],Table_PI[[#This Row],[Input 3]],Table_PI[[#This Row],[Input 4]],'Customer Information'!$AR$12,5,ROW()),\"No Rebate\"),\"No Rebate\"),0)","v":0},{"$f":"IF(Table_PI[[#This Row],[Hide:\nFormula Name]]<>\"\",IFERROR(IF(MeasureCalc(Table_PI[[#This Row],[Hide:\nFormula Name]],Table_PI[[#This Row],[Quantity]],Table_PI[[#This Row],[List 1]],Table_PI[[#This Row],[List 2]],Table_PI[[#This Row],[List 3]],Table_PI[[#This Row],[Size]],Table_PI[[#This Row],[Input 1]],Table_PI[[#This Row],[Input 2]],Table_PI[[#This Row],[Input 3]],Table_PI[[#This Row],[Input 4]],'Customer Information'!$AR$12,1,ROW())>0,MeasureCalc(Table_PI[[#This Row],[Hide:\nFormula Name]],Table_PI[[#This Row],[Quantity]],Table_PI[[#This Row],[List 1]],Table_PI[[#This Row],[List 2]],Table_PI[[#This Row],[List 3]],Table_PI[[#This Row],[Size]],Table_PI[[#This Row],[Input 1]],Table_PI[[#This Row],[Input 2]],Table_PI[[#This Row],[Input 3]],Table_PI[[#This Row],[Input 4]],'Customer Information'!$AR$12,6,ROW()),\"No Rebate\"),\"No Rebate\"),0)","v":0},{"$f":"IF(Table_PI[[#This Row],[Hide:\nFormula Name]]<>\"\",IFERROR(IF(MeasureCalc(Table_PI[[#This Row],[Hide:\nFormula Name]],Table_PI[[#This Row],[Quantity]],Table_PI[[#This Row],[List 1]],Table_PI[[#This Row],[List 2]],Table_PI[[#This Row],[List 3]],Table_PI[[#This Row],[Size]],Table_PI[[#This Row],[Input 1]],Table_PI[[#This Row],[Input 2]],Table_PI[[#This Row],[Input 3]],Table_PI[[#This Row],[Input 4]],'Customer Information'!$AR$12,1,ROW())>0,MeasureCalc(Table_PI[[#This Row],[Hide:\nFormula Name]],Table_PI[[#This Row],[Quantity]],Table_PI[[#This Row],[List 1]],Table_PI[[#This Row],[List 2]],Table_PI[[#This Row],[List 3]],Table_PI[[#This Row],[Size]],Table_PI[[#This Row],[Input 1]],Table_PI[[#This Row],[Input 2]],Table_PI[[#This Row],[Input 3]],Table_PI[[#This Row],[Input 4]],'Customer Information'!$AR$12,7,ROW()),\"No Rebate\"),\"No Rebate\"),0)","v":0},{"$f":"IF(Table_PI[[#This Row],[Hide:\nFormula Name]]<>\"\",IFERROR(IF(MeasureCalc(Table_PI[[#This Row],[Hide:\nFormula Name]],Table_PI[[#This Row],[Quantity]],Table_PI[[#This Row],[List 1]],Table_PI[[#This Row],[List 2]],Table_PI[[#This Row],[List 3]],Table_PI[[#This Row],[Size]],Table_PI[[#This Row],[Input 1]],Table_PI[[#This Row],[Input 2]],Table_PI[[#This Row],[Input 3]],Table_PI[[#This Row],[Input 4]],'Customer Information'!$AR$12,1,ROW())>0,MeasureCalc(Table_PI[[#This Row],[Hide:\nFormula Name]],Table_PI[[#This Row],[Quantity]],Table_PI[[#This Row],[List 1]],Table_PI[[#This Row],[List 2]],Table_PI[[#This Row],[List 3]],Table_PI[[#This Row],[Size]],Table_PI[[#This Row],[Input 1]],Table_PI[[#This Row],[Input 2]],Table_PI[[#This Row],[Input 3]],Table_PI[[#This Row],[Input 4]],'Customer Information'!$AR$12,8,ROW()),\"No Rebate\"),\"No Rebate\"),0)","v":0},{"$f":"IF(Table_PI[[#This Row],[Hide:\nFormula Name]]<>\"\",IF(AND(Table_PI[[#This Row],[Hide:\nFormula Name]]<>\"\",OR(Table_PI[[#This Row],[Rebate]]>0,Table_PI[[#This Row],[Rebate]]=\"No Rebate\")),TRUE,\"MI: Line Item \" & $A19),\"\")","v":""}]
[{"$f":"IF(Table_PI[[#This Row],[Hide:\nFormula Name]]<>\"\",MAX($A$2:A19)+1,\"\")","v":""},null,null,null,null,null,null,null,null,null,null,null,null,null,null,{"$f":"IFERROR(VLOOKUP(Table_PI[[#This Row],[Measure]],'Equipment Lookups'!$C$3:$D$23,2,FALSE),\"\")","v":""},{"$f":"IF(Table_PI[[#This Row],[Hide:\nFormula Name]]<>\"\",IFERROR(IF(MeasureCalc(Table_PI[[#This Row],[Hide:\nFormula Name]],Table_PI[[#This Row],[Quantity]],Table_PI[[#This Row],[List 1]],Table_PI[[#This Row],[List 2]],Table_PI[[#This Row],[List 3]],Table_PI[[#This Row],[Size]],Table_PI[[#This Row],[Input 1]],Table_PI[[#This Row],[Input 2]],Table_PI[[#This Row],[Input 3]],Table_PI[[#This Row],[Input 4]],'Customer Information'!$AR$12,1,ROW())>0,MeasureCalc(Table_PI[[#This Row],[Hide:\nFormula Name]],Table_PI[[#This Row],[Quantity]],Table_PI[[#This Row],[List 1]],Table_PI[[#This Row],[List 2]],Table_PI[[#This Row],[List 3]],Table_PI[[#This Row],[Size]],Table_PI[[#This Row],[Input 1]],Table_PI[[#This Row],[Input 2]],Table_PI[[#This Row],[Input 3]],Table_PI[[#This Row],[Input 4]],'Customer Information'!$AR$12,1,ROW()),\"No Rebate\"),\"No Rebate\"),0)","v":0},{"$f":"IF(Table_PI[[#This Row],[Hide:\nFormula Name]]<>\"\",IFERROR(IF(MeasureCalc(Table_PI[[#This Row],[Hide:\nFormula Name]],Table_PI[[#This Row],[Quantity]],Table_PI[[#This Row],[List 1]],Table_PI[[#This Row],[List 2]],Table_PI[[#This Row],[List 3]],Table_PI[[#This Row],[Size]],Table_PI[[#This Row],[Input 1]],Table_PI[[#This Row],[Input 2]],Table_PI[[#This Row],[Input 3]],Table_PI[[#This Row],[Input 4]],'Customer Information'!$AR$12,1,ROW())>0,MeasureCalc(Table_PI[[#This Row],[Hide:\nFormula Name]],Table_PI[[#This Row],[Quantity]],Table_PI[[#This Row],[List 1]],Table_PI[[#This Row],[List 2]],Table_PI[[#This Row],[List 3]],Table_PI[[#This Row],[Size]],Table_PI[[#This Row],[Input 1]],Table_PI[[#This Row],[Input 2]],Table_PI[[#This Row],[Input 3]],Table_PI[[#This Row],[Input 4]],'Customer Information'!$AR$12,2,ROW()),\"No Rebate\"),\"No Rebate\"),0)","v":0},{"$f":"IF(Table_PI[[#This Row],[Hide:\nFormula Name]]<>\"\",IFERROR(IF(MeasureCalc(Table_PI[[#This Row],[Hide:\nFormula Name]],Table_PI[[#This Row],[Quantity]],Table_PI[[#This Row],[List 1]],Table_PI[[#This Row],[List 2]],Table_PI[[#This Row],[List 3]],Table_PI[[#This Row],[Size]],Table_PI[[#This Row],[Input 1]],Table_PI[[#This Row],[Input 2]],Table_PI[[#This Row],[Input 3]],Table_PI[[#This Row],[Input 4]],'Customer Information'!$AR$12,1,ROW())>0,MeasureCalc(Table_PI[[#This Row],[Hide:\nFormula Name]],Table_PI[[#This Row],[Quantity]],Table_PI[[#This Row],[List 1]],Table_PI[[#This Row],[List 2]],Table_PI[[#This Row],[List 3]],Table_PI[[#This Row],[Size]],Table_PI[[#This Row],[Input 1]],Table_PI[[#This Row],[Input 2]],Table_PI[[#This Row],[Input 3]],Table_PI[[#This Row],[Input 4]],'Customer Information'!$AR$12,3,ROW()),\"No Rebate\"),\"No Rebate\"),0)","v":0},{"$f":"IF(Table_PI[[#This Row],[Hide:\nFormula Name]]<>\"\",IFERROR(IF(MeasureCalc(Table_PI[[#This Row],[Hide:\nFormula Name]],Table_PI[[#This Row],[Quantity]],Table_PI[[#This Row],[List 1]],Table_PI[[#This Row],[List 2]],Table_PI[[#This Row],[List 3]],Table_PI[[#This Row],[Size]],Table_PI[[#This Row],[Input 1]],Table_PI[[#This Row],[Input 2]],Table_PI[[#This Row],[Input 3]],Table_PI[[#This Row],[Input 4]],'Customer Information'!$AR$12,1,ROW())>0,MeasureCalc(Table_PI[[#This Row],[Hide:\nFormula Name]],Table_PI[[#This Row],[Quantity]],Table_PI[[#This Row],[List 1]],Table_PI[[#This Row],[List 2]],Table_PI[[#This Row],[List 3]],Table_PI[[#This Row],[Size]],Table_PI[[#This Row],[Input 1]],Table_PI[[#This Row],[Input 2]],Table_PI[[#This Row],[Input 3]],Table_PI[[#This Row],[Input 4]],'Customer Information'!$AR$12,4,ROW()),\"No Rebate\"),\"No Rebate\"),0)","v":0},{"$f":"IF(Table_PI[[#This Row],[Hide:\nFormula Name]]<>\"\",IFERROR(IF(MeasureCalc(Table_PI[[#This Row],[Hide:\nFormula Name]],Table_PI[[#This Row],[Quantity]],Table_PI[[#This Row],[List 1]],Table_PI[[#This Row],[List 2]],Table_PI[[#This Row],[List 3]],Table_PI[[#This Row],[Size]],Table_PI[[#This Row],[Input 1]],Table_PI[[#This Row],[Input 2]],Table_PI[[#This Row],[Input 3]],Table_PI[[#This Row],[Input 4]],'Customer Information'!$AR$12,1,ROW())>0,MeasureCalc(Table_PI[[#This Row],[Hide:\nFormula Name]],Table_PI[[#This Row],[Quantity]],Table_PI[[#This Row],[List 1]],Table_PI[[#This Row],[List 2]],Table_PI[[#This Row],[List 3]],Table_PI[[#This Row],[Size]],Table_PI[[#This Row],[Input 1]],Table_PI[[#This Row],[Input 2]],Table_PI[[#This Row],[Input 3]],Table_PI[[#This Row],[Input 4]],'Customer Information'!$AR$12,5,ROW()),\"No Rebate\"),\"No Rebate\"),0)","v":0},{"$f":"IF(Table_PI[[#This Row],[Hide:\nFormula Name]]<>\"\",IFERROR(IF(MeasureCalc(Table_PI[[#This Row],[Hide:\nFormula Name]],Table_PI[[#This Row],[Quantity]],Table_PI[[#This Row],[List 1]],Table_PI[[#This Row],[List 2]],Table_PI[[#This Row],[List 3]],Table_PI[[#This Row],[Size]],Table_PI[[#This Row],[Input 1]],Table_PI[[#This Row],[Input 2]],Table_PI[[#This Row],[Input 3]],Table_PI[[#This Row],[Input 4]],'Customer Information'!$AR$12,1,ROW())>0,MeasureCalc(Table_PI[[#This Row],[Hide:\nFormula Name]],Table_PI[[#This Row],[Quantity]],Table_PI[[#This Row],[List 1]],Table_PI[[#This Row],[List 2]],Table_PI[[#This Row],[List 3]],Table_PI[[#This Row],[Size]],Table_PI[[#This Row],[Input 1]],Table_PI[[#This Row],[Input 2]],Table_PI[[#This Row],[Input 3]],Table_PI[[#This Row],[Input 4]],'Customer Information'!$AR$12,6,ROW()),\"No Rebate\"),\"No Rebate\"),0)","v":0},{"$f":"IF(Table_PI[[#This Row],[Hide:\nFormula Name]]<>\"\",IFERROR(IF(MeasureCalc(Table_PI[[#This Row],[Hide:\nFormula Name]],Table_PI[[#This Row],[Quantity]],Table_PI[[#This Row],[List 1]],Table_PI[[#This Row],[List 2]],Table_PI[[#This Row],[List 3]],Table_PI[[#This Row],[Size]],Table_PI[[#This Row],[Input 1]],Table_PI[[#This Row],[Input 2]],Table_PI[[#This Row],[Input 3]],Table_PI[[#This Row],[Input 4]],'Customer Information'!$AR$12,1,ROW())>0,MeasureCalc(Table_PI[[#This Row],[Hide:\nFormula Name]],Table_PI[[#This Row],[Quantity]],Table_PI[[#This Row],[List 1]],Table_PI[[#This Row],[List 2]],Table_PI[[#This Row],[List 3]],Table_PI[[#This Row],[Size]],Table_PI[[#This Row],[Input 1]],Table_PI[[#This Row],[Input 2]],Table_PI[[#This Row],[Input 3]],Table_PI[[#This Row],[Input 4]],'Customer Information'!$AR$12,7,ROW()),\"No Rebate\"),\"No Rebate\"),0)","v":0},{"$f":"IF(Table_PI[[#This Row],[Hide:\nFormula Name]]<>\"\",IFERROR(IF(MeasureCalc(Table_PI[[#This Row],[Hide:\nFormula Name]],Table_PI[[#This Row],[Quantity]],Table_PI[[#This Row],[List 1]],Table_PI[[#This Row],[List 2]],Table_PI[[#This Row],[List 3]],Table_PI[[#This Row],[Size]],Table_PI[[#This Row],[Input 1]],Table_PI[[#This Row],[Input 2]],Table_PI[[#This Row],[Input 3]],Table_PI[[#This Row],[Input 4]],'Customer Information'!$AR$12,1,ROW())>0,MeasureCalc(Table_PI[[#This Row],[Hide:\nFormula Name]],Table_PI[[#This Row],[Quantity]],Table_PI[[#This Row],[List 1]],Table_PI[[#This Row],[List 2]],Table_PI[[#This Row],[List 3]],Table_PI[[#This Row],[Size]],Table_PI[[#This Row],[Input 1]],Table_PI[[#This Row],[Input 2]],Table_PI[[#This Row],[Input 3]],Table_PI[[#This Row],[Input 4]],'Customer Information'!$AR$12,8,ROW()),\"No Rebate\"),\"No Rebate\"),0)","v":0},{"$f":"IF(Table_PI[[#This Row],[Hide:\nFormula Name]]<>\"\",IF(AND(Table_PI[[#This Row],[Hide:\nFormula Name]]<>\"\",OR(Table_PI[[#This Row],[Rebate]]>0,Table_PI[[#This Row],[Rebate]]=\"No Rebate\")),TRUE,\"MI: Line Item \" & $A20),\"\")","v":""}]
[{"$f":"IF(Table_PI[[#This Row],[Hide:\nFormula Name]]<>\"\",MAX($A$2:A20)+1,\"\")","v":""},null,null,null,null,null,null,null,null,null,null,null,null,null,null,{"$f":"IFERROR(VLOOKUP(Table_PI[[#This Row],[Measure]],'Equipment Lookups'!$C$3:$D$23,2,FALSE),\"\")","v":""},{"$f":"IF(Table_PI[[#This Row],[Hide:\nFormula Name]]<>\"\",IFERROR(IF(MeasureCalc(Table_PI[[#This Row],[Hide:\nFormula Name]],Table_PI[[#This Row],[Quantity]],Table_PI[[#This Row],[List 1]],Table_PI[[#This Row],[List 2]],Table_PI[[#This Row],[List 3]],Table_PI[[#This Row],[Size]],Table_PI[[#This Row],[Input 1]],Table_PI[[#This Row],[Input 2]],Table_PI[[#This Row],[Input 3]],Table_PI[[#This Row],[Input 4]],'Customer Information'!$AR$12,1,ROW())>0,MeasureCalc(Table_PI[[#This Row],[Hide:\nFormula Name]],Table_PI[[#This Row],[Quantity]],Table_PI[[#This Row],[List 1]],Table_PI[[#This Row],[List 2]],Table_PI[[#This Row],[List 3]],Table_PI[[#This Row],[Size]],Table_PI[[#This Row],[Input 1]],Table_PI[[#This Row],[Input 2]],Table_PI[[#This Row],[Input 3]],Table_PI[[#This Row],[Input 4]],'Customer Information'!$AR$12,1,ROW()),\"No Rebate\"),\"No Rebate\"),0)","v":0},{"$f":"IF(Table_PI[[#This Row],[Hide:\nFormula Name]]<>\"\",IFERROR(IF(MeasureCalc(Table_PI[[#This Row],[Hide:\nFormula Name]],Table_PI[[#This Row],[Quantity]],Table_PI[[#This Row],[List 1]],Table_PI[[#This Row],[List 2]],Table_PI[[#This Row],[List 3]],Table_PI[[#This Row],[Size]],Table_PI[[#This Row],[Input 1]],Table_PI[[#This Row],[Input 2]],Table_PI[[#This Row],[Input 3]],Table_PI[[#This Row],[Input 4]],'Customer Information'!$AR$12,1,ROW())>0,MeasureCalc(Table_PI[[#This Row],[Hide:\nFormula Name]],Table_PI[[#This Row],[Quantity]],Table_PI[[#This Row],[List 1]],Table_PI[[#This Row],[List 2]],Table_PI[[#This Row],[List 3]],Table_PI[[#This Row],[Size]],Table_PI[[#This Row],[Input 1]],Table_PI[[#This Row],[Input 2]],Table_PI[[#This Row],[Input 3]],Table_PI[[#This Row],[Input 4]],'Customer Information'!$AR$12,2,ROW()),\"No Rebate\"),\"No Rebate\"),0)","v":0},{"$f":"IF(Table_PI[[#This Row],[Hide:\nFormula Name]]<>\"\",IFERROR(IF(MeasureCalc(Table_PI[[#This Row],[Hide:\nFormula Name]],Table_PI[[#This Row],[Quantity]],Table_PI[[#This Row],[List 1]],Table_PI[[#This Row],[List 2]],Table_PI[[#This Row],[List 3]],Table_PI[[#This Row],[Size]],Table_PI[[#This Row],[Input 1]],Table_PI[[#This Row],[Input 2]],Table_PI[[#This Row],[Input 3]],Table_PI[[#This Row],[Input 4]],'Customer Information'!$AR$12,1,ROW())>0,MeasureCalc(Table_PI[[#This Row],[Hide:\nFormula Name]],Table_PI[[#This Row],[Quantity]],Table_PI[[#This Row],[List 1]],Table_PI[[#This Row],[List 2]],Table_PI[[#This Row],[List 3]],Table_PI[[#This Row],[Size]],Table_PI[[#This Row],[Input 1]],Table_PI[[#This Row],[Input 2]],Table_PI[[#This Row],[Input 3]],Table_PI[[#This Row],[Input 4]],'Customer Information'!$AR$12,3,ROW()),\"No Rebate\"),\"No Rebate\"),0)","v":0},{"$f":"IF(Table_PI[[#This Row],[Hide:\nFormula Name]]<>\"\",IFERROR(IF(MeasureCalc(Table_PI[[#This Row],[Hide:\nFormula Name]],Table_PI[[#This Row],[Quantity]],Table_PI[[#This Row],[List 1]],Table_PI[[#This Row],[List 2]],Table_PI[[#This Row],[List 3]],Table_PI[[#This Row],[Size]],Table_PI[[#This Row],[Input 1]],Table_PI[[#This Row],[Input 2]],Table_PI[[#This Row],[Input 3]],Table_PI[[#This Row],[Input 4]],'Customer Information'!$AR$12,1,ROW())>0,MeasureCalc(Table_PI[[#This Row],[Hide:\nFormula Name]],Table_PI[[#This Row],[Quantity]],Table_PI[[#This Row],[List 1]],Table_PI[[#This Row],[List 2]],Table_PI[[#This Row],[List 3]],Table_PI[[#This Row],[Size]],Table_PI[[#This Row],[Input 1]],Table_PI[[#This Row],[Input 2]],Table_PI[[#This Row],[Input 3]],Table_PI[[#This Row],[Input 4]],'Customer Information'!$AR$12,4,ROW()),\"No Rebate\"),\"No Rebate\"),0)","v":0},{"$f":"IF(Table_PI[[#This Row],[Hide:\nFormula Name]]<>\"\",IFERROR(IF(MeasureCalc(Table_PI[[#This Row],[Hide:\nFormula Name]],Table_PI[[#This Row],[Quantity]],Table_PI[[#This Row],[List 1]],Table_PI[[#This Row],[List 2]],Table_PI[[#This Row],[List 3]],Table_PI[[#This Row],[Size]],Table_PI[[#This Row],[Input 1]],Table_PI[[#This Row],[Input 2]],Table_PI[[#This Row],[Input 3]],Table_PI[[#This Row],[Input 4]],'Customer Information'!$AR$12,1,ROW())>0,MeasureCalc(Table_PI[[#This Row],[Hide:\nFormula Name]],Table_PI[[#This Row],[Quantity]],Table_PI[[#This Row],[List 1]],Table_PI[[#This Row],[List 2]],Table_PI[[#This Row],[List 3]],Table_PI[[#This Row],[Size]],Table_PI[[#This Row],[Input 1]],Table_PI[[#This Row],[Input 2]],Table_PI[[#This Row],[Input 3]],Table_PI[[#This Row],[Input 4]],'Customer Information'!$AR$12,5,ROW()),\"No Rebate\"),\"No Rebate\"),0)","v":0},{"$f":"IF(Table_PI[[#This Row],[Hide:\nFormula Name]]<>\"\",IFERROR(IF(MeasureCalc(Table_PI[[#This Row],[Hide:\nFormula Name]],Table_PI[[#This Row],[Quantity]],Table_PI[[#This Row],[List 1]],Table_PI[[#This Row],[List 2]],Table_PI[[#This Row],[List 3]],Table_PI[[#This Row],[Size]],Table_PI[[#This Row],[Input 1]],Table_PI[[#This Row],[Input 2]],Table_PI[[#This Row],[Input 3]],Table_PI[[#This Row],[Input 4]],'Customer Information'!$AR$12,1,ROW())>0,MeasureCalc(Table_PI[[#This Row],[Hide:\nFormula Name]],Table_PI[[#This Row],[Quantity]],Table_PI[[#This Row],[List 1]],Table_PI[[#This Row],[List 2]],Table_PI[[#This Row],[List 3]],Table_PI[[#This Row],[Size]],Table_PI[[#This Row],[Input 1]],Table_PI[[#This Row],[Input 2]],Table_PI[[#This Row],[Input 3]],Table_PI[[#This Row],[Input 4]],'Customer Information'!$AR$12,6,ROW()),\"No Rebate\"),\"No Rebate\"),0)","v":0},{"$f":"IF(Table_PI[[#This Row],[Hide:\nFormula Name]]<>\"\",IFERROR(IF(MeasureCalc(Table_PI[[#This Row],[Hide:\nFormula Name]],Table_PI[[#This Row],[Quantity]],Table_PI[[#This Row],[List 1]],Table_PI[[#This Row],[List 2]],Table_PI[[#This Row],[List 3]],Table_PI[[#This Row],[Size]],Table_PI[[#This Row],[Input 1]],Table_PI[[#This Row],[Input 2]],Table_PI[[#This Row],[Input 3]],Table_PI[[#This Row],[Input 4]],'Customer Information'!$AR$12,1,ROW())>0,MeasureCalc(Table_PI[[#This Row],[Hide:\nFormula Name]],Table_PI[[#This Row],[Quantity]],Table_PI[[#This Row],[List 1]],Table_PI[[#This Row],[List 2]],Table_PI[[#This Row],[List 3]],Table_PI[[#This Row],[Size]],Table_PI[[#This Row],[Input 1]],Table_PI[[#This Row],[Input 2]],Table_PI[[#This Row],[Input 3]],Table_PI[[#This Row],[Input 4]],'Customer Information'!$AR$12,7,ROW()),\"No Rebate\"),\"No Rebate\"),0)","v":0},{"$f":"IF(Table_PI[[#This Row],[Hide:\nFormula Name]]<>\"\",IFERROR(IF(MeasureCalc(Table_PI[[#This Row],[Hide:\nFormula Name]],Table_PI[[#This Row],[Quantity]],Table_PI[[#This Row],[List 1]],Table_PI[[#This Row],[List 2]],Table_PI[[#This Row],[List 3]],Table_PI[[#This Row],[Size]],Table_PI[[#This Row],[Input 1]],Table_PI[[#This Row],[Input 2]],Table_PI[[#This Row],[Input 3]],Table_PI[[#This Row],[Input 4]],'Customer Information'!$AR$12,1,ROW())>0,MeasureCalc(Table_PI[[#This Row],[Hide:\nFormula Name]],Table_PI[[#This Row],[Quantity]],Table_PI[[#This Row],[List 1]],Table_PI[[#This Row],[List 2]],Table_PI[[#This Row],[List 3]],Table_PI[[#This Row],[Size]],Table_PI[[#This Row],[Input 1]],Table_PI[[#This Row],[Input 2]],Table_PI[[#This Row],[Input 3]],Table_PI[[#This Row],[Input 4]],'Customer Information'!$AR$12,8,ROW()),\"No Rebate\"),\"No Rebate\"),0)","v":0},{"$f":"IF(Table_PI[[#This Row],[Hide:\nFormula Name]]<>\"\",IF(AND(Table_PI[[#This Row],[Hide:\nFormula Name]]<>\"\",OR(Table_PI[[#This Row],[Rebate]]>0,Table_PI[[#This Row],[Rebate]]=\"No Rebate\")),TRUE,\"MI: Line Item \" & $A21),\"\")","v":""}]
[{"$f":"IF(Table_PI[[#This Row],[Hide:\nFormula Name]]<>\"\",MAX($A$2:A21)+1,\"\")","v":""},null,null,null,null,null,null,null,null,null,null,null,null,null,null,{"$f":"IFERROR(VLOOKUP(Table_PI[[#This Row],[Measure]],'Equipment Lookups'!$C$3:$D$23,2,FALSE),\"\")","v":""},{"$f":"IF(Table_PI[[#This Row],[Hide:\nFormula Name]]<>\"\",IFERROR(IF(MeasureCalc(Table_PI[[#This Row],[Hide:\nFormula Name]],Table_PI[[#This Row],[Quantity]],Table_PI[[#This Row],[List 1]],Table_PI[[#This Row],[List 2]],Table_PI[[#This Row],[List 3]],Table_PI[[#This Row],[Size]],Table_PI[[#This Row],[Input 1]],Table_PI[[#This Row],[Input 2]],Table_PI[[#This Row],[Input 3]],Table_PI[[#This Row],[Input 4]],'Customer Information'!$AR$12,1,ROW())>0,MeasureCalc(Table_PI[[#This Row],[Hide:\nFormula Name]],Table_PI[[#This Row],[Quantity]],Table_PI[[#This Row],[List 1]],Table_PI[[#This Row],[List 2]],Table_PI[[#This Row],[List 3]],Table_PI[[#This Row],[Size]],Table_PI[[#This Row],[Input 1]],Table_PI[[#This Row],[Input 2]],Table_PI[[#This Row],[Input 3]],Table_PI[[#This Row],[Input 4]],'Customer Information'!$AR$12,1,ROW()),\"No Rebate\"),\"No Rebate\"),0)","v":0},{"$f":"IF(Table_PI[[#This Row],[Hide:\nFormula Name]]<>\"\",IFERROR(IF(MeasureCalc(Table_PI[[#This Row],[Hide:\nFormula Name]],Table_PI[[#This Row],[Quantity]],Table_PI[[#This Row],[List 1]],Table_PI[[#This Row],[List 2]],Table_PI[[#This Row],[List 3]],Table_PI[[#This Row],[Size]],Table_PI[[#This Row],[Input 1]],Table_PI[[#This Row],[Input 2]],Table_PI[[#This Row],[Input 3]],Table_PI[[#This Row],[Input 4]],'Customer Information'!$AR$12,1,ROW())>0,MeasureCalc(Table_PI[[#This Row],[Hide:\nFormula Name]],Table_PI[[#This Row],[Quantity]],Table_PI[[#This Row],[List 1]],Table_PI[[#This Row],[List 2]],Table_PI[[#This Row],[List 3]],Table_PI[[#This Row],[Size]],Table_PI[[#This Row],[Input 1]],Table_PI[[#This Row],[Input 2]],Table_PI[[#This Row],[Input 3]],Table_PI[[#This Row],[Input 4]],'Customer Information'!$AR$12,2,ROW()),\"No Rebate\"),\"No Rebate\"),0)","v":0},{"$f":"IF(Table_PI[[#This Row],[Hide:\nFormula Name]]<>\"\",IFERROR(IF(MeasureCalc(Table_PI[[#This Row],[Hide:\nFormula Name]],Table_PI[[#This Row],[Quantity]],Table_PI[[#This Row],[List 1]],Table_PI[[#This Row],[List 2]],Table_PI[[#This Row],[List 3]],Table_PI[[#This Row],[Size]],Table_PI[[#This Row],[Input 1]],Table_PI[[#This Row],[Input 2]],Table_PI[[#This Row],[Input 3]],Table_PI[[#This Row],[Input 4]],'Customer Information'!$AR$12,1,ROW())>0,MeasureCalc(Table_PI[[#This Row],[Hide:\nFormula Name]],Table_PI[[#This Row],[Quantity]],Table_PI[[#This Row],[List 1]],Table_PI[[#This Row],[List 2]],Table_PI[[#This Row],[List 3]],Table_PI[[#This Row],[Size]],Table_PI[[#This Row],[Input 1]],Table_PI[[#This Row],[Input 2]],Table_PI[[#This Row],[Input 3]],Table_PI[[#This Row],[Input 4]],'Customer Information'!$AR$12,3,ROW()),\"No Rebate\"),\"No Rebate\"),0)","v":0},{"$f":"IF(Table_PI[[#This Row],[Hide:\nFormula Name]]<>\"\",IFERROR(IF(MeasureCalc(Table_PI[[#This Row],[Hide:\nFormula Name]],Table_PI[[#This Row],[Quantity]],Table_PI[[#This Row],[List 1]],Table_PI[[#This Row],[List 2]],Table_PI[[#This Row],[List 3]],Table_PI[[#This Row],[Size]],Table_PI[[#This Row],[Input 1]],Table_PI[[#This Row],[Input 2]],Table_PI[[#This Row],[Input 3]],Table_PI[[#This Row],[Input 4]],'Customer Information'!$AR$12,1,ROW())>0,MeasureCalc(Table_PI[[#This Row],[Hide:\nFormula Name]],Table_PI[[#This Row],[Quantity]],Table_PI[[#This Row],[List 1]],Table_PI[[#This Row],[List 2]],Table_PI[[#This Row],[List 3]],Table_PI[[#This Row],[Size]],Table_PI[[#This Row],[Input 1]],Table_PI[[#This Row],[Input 2]],Table_PI[[#This Row],[Input 3]],Table_PI[[#This Row],[Input 4]],'Customer Information'!$AR$12,4,ROW()),\"No Rebate\"),\"No Rebate\"),0)","v":0},{"$f":"IF(Table_PI[[#This Row],[Hide:\nFormula Name]]<>\"\",IFERROR(IF(MeasureCalc(Table_PI[[#This Row],[Hide:\nFormula Name]],Table_PI[[#This Row],[Quantity]],Table_PI[[#This Row],[List 1]],Table_PI[[#This Row],[List 2]],Table_PI[[#This Row],[List 3]],Table_PI[[#This Row],[Size]],Table_PI[[#This Row],[Input 1]],Table_PI[[#This Row],[Input 2]],Table_PI[[#This Row],[Input 3]],Table_PI[[#This Row],[Input 4]],'Customer Information'!$AR$12,1,ROW())>0,MeasureCalc(Table_PI[[#This Row],[Hide:\nFormula Name]],Table_PI[[#This Row],[Quantity]],Table_PI[[#This Row],[List 1]],Table_PI[[#This Row],[List 2]],Table_PI[[#This Row],[List 3]],Table_PI[[#This Row],[Size]],Table_PI[[#This Row],[Input 1]],Table_PI[[#This Row],[Input 2]],Table_PI[[#This Row],[Input 3]],Table_PI[[#This Row],[Input 4]],'Customer Information'!$AR$12,5,ROW()),\"No Rebate\"),\"No Rebate\"),0)","v":0},{"$f":"IF(Table_PI[[#This Row],[Hide:\nFormula Name]]<>\"\",IFERROR(IF(MeasureCalc(Table_PI[[#This Row],[Hide:\nFormula Name]],Table_PI[[#This Row],[Quantity]],Table_PI[[#This Row],[List 1]],Table_PI[[#This Row],[List 2]],Table_PI[[#This Row],[List 3]],Table_PI[[#This Row],[Size]],Table_PI[[#This Row],[Input 1]],Table_PI[[#This Row],[Input 2]],Table_PI[[#This Row],[Input 3]],Table_PI[[#This Row],[Input 4]],'Customer Information'!$AR$12,1,ROW())>0,MeasureCalc(Table_PI[[#This Row],[Hide:\nFormula Name]],Table_PI[[#This Row],[Quantity]],Table_PI[[#This Row],[List 1]],Table_PI[[#This Row],[List 2]],Table_PI[[#This Row],[List 3]],Table_PI[[#This Row],[Size]],Table_PI[[#This Row],[Input 1]],Table_PI[[#This Row],[Input 2]],Table_PI[[#This Row],[Input 3]],Table_PI[[#This Row],[Input 4]],'Customer Information'!$AR$12,6,ROW()),\"No Rebate\"),\"No Rebate\"),0)","v":0},{"$f":"IF(Table_PI[[#This Row],[Hide:\nFormula Name]]<>\"\",IFERROR(IF(MeasureCalc(Table_PI[[#This Row],[Hide:\nFormula Name]],Table_PI[[#This Row],[Quantity]],Table_PI[[#This Row],[List 1]],Table_PI[[#This Row],[List 2]],Table_PI[[#This Row],[List 3]],Table_PI[[#This Row],[Size]],Table_PI[[#This Row],[Input 1]],Table_PI[[#This Row],[Input 2]],Table_PI[[#This Row],[Input 3]],Table_PI[[#This Row],[Input 4]],'Customer Information'!$AR$12,1,ROW())>0,MeasureCalc(Table_PI[[#This Row],[Hide:\nFormula Name]],Table_PI[[#This Row],[Quantity]],Table_PI[[#This Row],[List 1]],Table_PI[[#This Row],[List 2]],Table_PI[[#This Row],[List 3]],Table_PI[[#This Row],[Size]],Table_PI[[#This Row],[Input 1]],Table_PI[[#This Row],[Input 2]],Table_PI[[#This Row],[Input 3]],Table_PI[[#This Row],[Input 4]],'Customer Information'!$AR$12,7,ROW()),\"No Rebate\"),\"No Rebate\"),0)","v":0},{"$f":"IF(Table_PI[[#This Row],[Hide:\nFormula Name]]<>\"\",IFERROR(IF(MeasureCalc(Table_PI[[#This Row],[Hide:\nFormula Name]],Table_PI[[#This Row],[Quantity]],Table_PI[[#This Row],[List 1]],Table_PI[[#This Row],[List 2]],Table_PI[[#This Row],[List 3]],Table_PI[[#This Row],[Size]],Table_PI[[#This Row],[Input 1]],Table_PI[[#This Row],[Input 2]],Table_PI[[#This Row],[Input 3]],Table_PI[[#This Row],[Input 4]],'Customer Information'!$AR$12,1,ROW())>0,MeasureCalc(Table_PI[[#This Row],[Hide:\nFormula Name]],Table_PI[[#This Row],[Quantity]],Table_PI[[#This Row],[List 1]],Table_PI[[#This Row],[List 2]],Table_PI[[#This Row],[List 3]],Table_PI[[#This Row],[Size]],Table_PI[[#This Row],[Input 1]],Table_PI[[#This Row],[Input 2]],Table_PI[[#This Row],[Input 3]],Table_PI[[#This Row],[Input 4]],'Customer Information'!$AR$12,8,ROW()),\"No Rebate\"),\"No Rebate\"),0)","v":0},{"$f":"IF(Table_PI[[#This Row],[Hide:\nFormula Name]]<>\"\",IF(AND(Table_PI[[#This Row],[Hide:\nFormula Name]]<>\"\",OR(Table_PI[[#This Row],[Rebate]]>0,Table_PI[[#This Row],[Rebate]]=\"No Rebate\")),TRUE,\"MI: Line Item \" & $A22),\"\")","v":""}]
[{"$f":"IF(Table_PI[[#This Row],[Hide:\nFormula Name]]<>\"\",MAX($A$2:A22)+1,\"\")","v":""},null,null,null,null,null,null,null,null,null,null,null,null,null,null,{"$f":"IFERROR(VLOOKUP(Table_PI[[#This Row],[Measure]],'Equipment Lookups'!$C$3:$D$23,2,FALSE),\"\")","v":""},{"$f":"IF(Table_PI[[#This Row],[Hide:\nFormula Name]]<>\"\",IFERROR(IF(MeasureCalc(Table_PI[[#This Row],[Hide:\nFormula Name]],Table_PI[[#This Row],[Quantity]],Table_PI[[#This Row],[List 1]],Table_PI[[#This Row],[List 2]],Table_PI[[#This Row],[List 3]],Table_PI[[#This Row],[Size]],Table_PI[[#This Row],[Input 1]],Table_PI[[#This Row],[Input 2]],Table_PI[[#This Row],[Input 3]],Table_PI[[#This Row],[Input 4]],'Customer Information'!$AR$12,1,ROW())>0,MeasureCalc(Table_PI[[#This Row],[Hide:\nFormula Name]],Table_PI[[#This Row],[Quantity]],Table_PI[[#This Row],[List 1]],Table_PI[[#This Row],[List 2]],Table_PI[[#This Row],[List 3]],Table_PI[[#This Row],[Size]],Table_PI[[#This Row],[Input 1]],Table_PI[[#This Row],[Input 2]],Table_PI[[#This Row],[Input 3]],Table_PI[[#This Row],[Input 4]],'Customer Information'!$AR$12,1,ROW()),\"No Rebate\"),\"No Rebate\"),0)","v":0},{"$f":"IF(Table_PI[[#This Row],[Hide:\nFormula Name]]<>\"\",IFERROR(IF(MeasureCalc(Table_PI[[#This Row],[Hide:\nFormula Name]],Table_PI[[#This Row],[Quantity]],Table_PI[[#This Row],[List 1]],Table_PI[[#This Row],[List 2]],Table_PI[[#This Row],[List 3]],Table_PI[[#This Row],[Size]],Table_PI[[#This Row],[Input 1]],Table_PI[[#This Row],[Input 2]],Table_PI[[#This Row],[Input 3]],Table_PI[[#This Row],[Input 4]],'Customer Information'!$AR$12,1,ROW())>0,MeasureCalc(Table_PI[[#This Row],[Hide:\nFormula Name]],Table_PI[[#This Row],[Quantity]],Table_PI[[#This Row],[List 1]],Table_PI[[#This Row],[List 2]],Table_PI[[#This Row],[List 3]],Table_PI[[#This Row],[Size]],Table_PI[[#This Row],[Input 1]],Table_PI[[#This Row],[Input 2]],Table_PI[[#This Row],[Input 3]],Table_PI[[#This Row],[Input 4]],'Customer Information'!$AR$12,2,ROW()),\"No Rebate\"),\"No Rebate\"),0)","v":0},{"$f":"IF(Table_PI[[#This Row],[Hide:\nFormula Name]]<>\"\",IFERROR(IF(MeasureCalc(Table_PI[[#This Row],[Hide:\nFormula Name]],Table_PI[[#This Row],[Quantity]],Table_PI[[#This Row],[List 1]],Table_PI[[#This Row],[List 2]],Table_PI[[#This Row],[List 3]],Table_PI[[#This Row],[Size]],Table_PI[[#This Row],[Input 1]],Table_PI[[#This Row],[Input 2]],Table_PI[[#This Row],[Input 3]],Table_PI[[#This Row],[Input 4]],'Customer Information'!$AR$12,1,ROW())>0,MeasureCalc(Table_PI[[#This Row],[Hide:\nFormula Name]],Table_PI[[#This Row],[Quantity]],Table_PI[[#This Row],[List 1]],Table_PI[[#This Row],[List 2]],Table_PI[[#This Row],[List 3]],Table_PI[[#This Row],[Size]],Table_PI[[#This Row],[Input 1]],Table_PI[[#This Row],[Input 2]],Table_PI[[#This Row],[Input 3]],Table_PI[[#This Row],[Input 4]],'Customer Information'!$AR$12,3,ROW()),\"No Rebate\"),\"No Rebate\"),0)","v":0},{"$f":"IF(Table_PI[[#This Row],[Hide:\nFormula Name]]<>\"\",IFERROR(IF(MeasureCalc(Table_PI[[#This Row],[Hide:\nFormula Name]],Table_PI[[#This Row],[Quantity]],Table_PI[[#This Row],[List 1]],Table_PI[[#This Row],[List 2]],Table_PI[[#This Row],[List 3]],Table_PI[[#This Row],[Size]],Table_PI[[#This Row],[Input 1]],Table_PI[[#This Row],[Input 2]],Table_PI[[#This Row],[Input 3]],Table_PI[[#This Row],[Input 4]],'Customer Information'!$AR$12,1,ROW())>0,MeasureCalc(Table_PI[[#This Row],[Hide:\nFormula Name]],Table_PI[[#This Row],[Quantity]],Table_PI[[#This Row],[List 1]],Table_PI[[#This Row],[List 2]],Table_PI[[#This Row],[List 3]],Table_PI[[#This Row],[Size]],Table_PI[[#This Row],[Input 1]],Table_PI[[#This Row],[Input 2]],Table_PI[[#This Row],[Input 3]],Table_PI[[#This Row],[Input 4]],'Customer Information'!$AR$12,4,ROW()),\"No Rebate\"),\"No Rebate\"),0)","v":0},{"$f":"IF(Table_PI[[#This Row],[Hide:\nFormula Name]]<>\"\",IFERROR(IF(MeasureCalc(Table_PI[[#This Row],[Hide:\nFormula Name]],Table_PI[[#This Row],[Quantity]],Table_PI[[#This Row],[List 1]],Table_PI[[#This Row],[List 2]],Table_PI[[#This Row],[List 3]],Table_PI[[#This Row],[Size]],Table_PI[[#This Row],[Input 1]],Table_PI[[#This Row],[Input 2]],Table_PI[[#This Row],[Input 3]],Table_PI[[#This Row],[Input 4]],'Customer Information'!$AR$12,1,ROW())>0,MeasureCalc(Table_PI[[#This Row],[Hide:\nFormula Name]],Table_PI[[#This Row],[Quantity]],Table_PI[[#This Row],[List 1]],Table_PI[[#This Row],[List 2]],Table_PI[[#This Row],[List 3]],Table_PI[[#This Row],[Size]],Table_PI[[#This Row],[Input 1]],Table_PI[[#This Row],[Input 2]],Table_PI[[#This Row],[Input 3]],Table_PI[[#This Row],[Input 4]],'Customer Information'!$AR$12,5,ROW()),\"No Rebate\"),\"No Rebate\"),0)","v":0},{"$f":"IF(Table_PI[[#This Row],[Hide:\nFormula Name]]<>\"\",IFERROR(IF(MeasureCalc(Table_PI[[#This Row],[Hide:\nFormula Name]],Table_PI[[#This Row],[Quantity]],Table_PI[[#This Row],[List 1]],Table_PI[[#This Row],[List 2]],Table_PI[[#This Row],[List 3]],Table_PI[[#This Row],[Size]],Table_PI[[#This Row],[Input 1]],Table_PI[[#This Row],[Input 2]],Table_PI[[#This Row],[Input 3]],Table_PI[[#This Row],[Input 4]],'Customer Information'!$AR$12,1,ROW())>0,MeasureCalc(Table_PI[[#This Row],[Hide:\nFormula Name]],Table_PI[[#This Row],[Quantity]],Table_PI[[#This Row],[List 1]],Table_PI[[#This Row],[List 2]],Table_PI[[#This Row],[List 3]],Table_PI[[#This Row],[Size]],Table_PI[[#This Row],[Input 1]],Table_PI[[#This Row],[Input 2]],Table_PI[[#This Row],[Input 3]],Table_PI[[#This Row],[Input 4]],'Customer Information'!$AR$12,6,ROW()),\"No Rebate\"),\"No Rebate\"),0)","v":0},{"$f":"IF(Table_PI[[#This Row],[Hide:\nFormula Name]]<>\"\",IFERROR(IF(MeasureCalc(Table_PI[[#This Row],[Hide:\nFormula Name]],Table_PI[[#This Row],[Quantity]],Table_PI[[#This Row],[List 1]],Table_PI[[#This Row],[List 2]],Table_PI[[#This Row],[List 3]],Table_PI[[#This Row],[Size]],Table_PI[[#This Row],[Input 1]],Table_PI[[#This Row],[Input 2]],Table_PI[[#This Row],[Input 3]],Table_PI[[#This Row],[Input 4]],'Customer Information'!$AR$12,1,ROW())>0,MeasureCalc(Table_PI[[#This Row],[Hide:\nFormula Name]],Table_PI[[#This Row],[Quantity]],Table_PI[[#This Row],[List 1]],Table_PI[[#This Row],[List 2]],Table_PI[[#This Row],[List 3]],Table_PI[[#This Row],[Size]],Table_PI[[#This Row],[Input 1]],Table_PI[[#This Row],[Input 2]],Table_PI[[#This Row],[Input 3]],Table_PI[[#This Row],[Input 4]],'Customer Information'!$AR$12,7,ROW()),\"No Rebate\"),\"No Rebate\"),0)","v":0},{"$f":"IF(Table_PI[[#This Row],[Hide:\nFormula Name]]<>\"\",IFERROR(IF(MeasureCalc(Table_PI[[#This Row],[Hide:\nFormula Name]],Table_PI[[#This Row],[Quantity]],Table_PI[[#This Row],[List 1]],Table_PI[[#This Row],[List 2]],Table_PI[[#This Row],[List 3]],Table_PI[[#This Row],[Size]],Table_PI[[#This Row],[Input 1]],Table_PI[[#This Row],[Input 2]],Table_PI[[#This Row],[Input 3]],Table_PI[[#This Row],[Input 4]],'Customer Information'!$AR$12,1,ROW())>0,MeasureCalc(Table_PI[[#This Row],[Hide:\nFormula Name]],Table_PI[[#This Row],[Quantity]],Table_PI[[#This Row],[List 1]],Table_PI[[#This Row],[List 2]],Table_PI[[#This Row],[List 3]],Table_PI[[#This Row],[Size]],Table_PI[[#This Row],[Input 1]],Table_PI[[#This Row],[Input 2]],Table_PI[[#This Row],[Input 3]],Table_PI[[#This Row],[Input 4]],'Customer Information'!$AR$12,8,ROW()),\"No Rebate\"),\"No Rebate\"),0)","v":0},{"$f":"IF(Table_PI[[#This Row],[Hide:\nFormula Name]]<>\"\",IF(AND(Table_PI[[#This Row],[Hide:\nFormula Name]]<>\"\",OR(Table_PI[[#This Row],[Rebate]]>0,Table_PI[[#This Row],[Rebate]]=\"No Rebate\")),TRUE,\"MI: Line Item \" & $A23),\"\")","v":""}]
[{"$f":"IF(Table_PI[[#This Row],[Hide:\nFormula Name]]<>\"\",MAX($A$2:A23)+1,\"\")","v":""},null,null,null,null,null,null,null,null,null,null,null,null,null,null,{"$f":"IFERROR(VLOOKUP(Table_PI[[#This Row],[Measure]],'Equipment Lookups'!$C$3:$D$23,2,FALSE),\"\")","v":""},{"$f":"IF(Table_PI[[#This Row],[Hide:\nFormula Name]]<>\"\",IFERROR(IF(MeasureCalc(Table_PI[[#This Row],[Hide:\nFormula Name]],Table_PI[[#This Row],[Quantity]],Table_PI[[#This Row],[List 1]],Table_PI[[#This Row],[List 2]],Table_PI[[#This Row],[List 3]],Table_PI[[#This Row],[Size]],Table_PI[[#This Row],[Input 1]],Table_PI[[#This Row],[Input 2]],Table_PI[[#This Row],[Input 3]],Table_PI[[#This Row],[Input 4]],'Customer Information'!$AR$12,1,ROW())>0,MeasureCalc(Table_PI[[#This Row],[Hide:\nFormula Name]],Table_PI[[#This Row],[Quantity]],Table_PI[[#This Row],[List 1]],Table_PI[[#This Row],[List 2]],Table_PI[[#This Row],[List 3]],Table_PI[[#This Row],[Size]],Table_PI[[#This Row],[Input 1]],Table_PI[[#This Row],[Input 2]],Table_PI[[#This Row],[Input 3]],Table_PI[[#This Row],[Input 4]],'Customer Information'!$AR$12,1,ROW()),\"No Rebate\"),\"No Rebate\"),0)","v":0},{"$f":"IF(Table_PI[[#This Row],[Hide:\nFormula Name]]<>\"\",IFERROR(IF(MeasureCalc(Table_PI[[#This Row],[Hide:\nFormula Name]],Table_PI[[#This Row],[Quantity]],Table_PI[[#This Row],[List 1]],Table_PI[[#This Row],[List 2]],Table_PI[[#This Row],[List 3]],Table_PI[[#This Row],[Size]],Table_PI[[#This Row],[Input 1]],Table_PI[[#This Row],[Input 2]],Table_PI[[#This Row],[Input 3]],Table_PI[[#This Row],[Input 4]],'Customer Information'!$AR$12,1,ROW())>0,MeasureCalc(Table_PI[[#This Row],[Hide:\nFormula Name]],Table_PI[[#This Row],[Quantity]],Table_PI[[#This Row],[List 1]],Table_PI[[#This Row],[List 2]],Table_PI[[#This Row],[List 3]],Table_PI[[#This Row],[Size]],Table_PI[[#This Row],[Input 1]],Table_PI[[#This Row],[Input 2]],Table_PI[[#This Row],[Input 3]],Table_PI[[#This Row],[Input 4]],'Customer Information'!$AR$12,2,ROW()),\"No Rebate\"),\"No Rebate\"),0)","v":0},{"$f":"IF(Table_PI[[#This Row],[Hide:\nFormula Name]]<>\"\",IFERROR(IF(MeasureCalc(Table_PI[[#This Row],[Hide:\nFormula Name]],Table_PI[[#This Row],[Quantity]],Table_PI[[#This Row],[List 1]],Table_PI[[#This Row],[List 2]],Table_PI[[#This Row],[List 3]],Table_PI[[#This Row],[Size]],Table_PI[[#This Row],[Input 1]],Table_PI[[#This Row],[Input 2]],Table_PI[[#This Row],[Input 3]],Table_PI[[#This Row],[Input 4]],'Customer Information'!$AR$12,1,ROW())>0,MeasureCalc(Table_PI[[#This Row],[Hide:\nFormula Name]],Table_PI[[#This Row],[Quantity]],Table_PI[[#This Row],[List 1]],Table_PI[[#This Row],[List 2]],Table_PI[[#This Row],[List 3]],Table_PI[[#This Row],[Size]],Table_PI[[#This Row],[Input 1]],Table_PI[[#This Row],[Input 2]],Table_PI[[#This Row],[Input 3]],Table_PI[[#This Row],[Input 4]],'Customer Information'!$AR$12,3,ROW()),\"No Rebate\"),\"No Rebate\"),0)","v":0},{"$f":"IF(Table_PI[[#This Row],[Hide:\nFormula Name]]<>\"\",IFERROR(IF(MeasureCalc(Table_PI[[#This Row],[Hide:\nFormula Name]],Table_PI[[#This Row],[Quantity]],Table_PI[[#This Row],[List 1]],Table_PI[[#This Row],[List 2]],Table_PI[[#This Row],[List 3]],Table_PI[[#This Row],[Size]],Table_PI[[#This Row],[Input 1]],Table_PI[[#This Row],[Input 2]],Table_PI[[#This Row],[Input 3]],Table_PI[[#This Row],[Input 4]],'Customer Information'!$AR$12,1,ROW())>0,MeasureCalc(Table_PI[[#This Row],[Hide:\nFormula Name]],Table_PI[[#This Row],[Quantity]],Table_PI[[#This Row],[List 1]],Table_PI[[#This Row],[List 2]],Table_PI[[#This Row],[List 3]],Table_PI[[#This Row],[Size]],Table_PI[[#This Row],[Input 1]],Table_PI[[#This Row],[Input 2]],Table_PI[[#This Row],[Input 3]],Table_PI[[#This Row],[Input 4]],'Customer Information'!$AR$12,4,ROW()),\"No Rebate\"),\"No Rebate\"),0)","v":0},{"$f":"IF(Table_PI[[#This Row],[Hide:\nFormula Name]]<>\"\",IFERROR(IF(MeasureCalc(Table_PI[[#This Row],[Hide:\nFormula Name]],Table_PI[[#This Row],[Quantity]],Table_PI[[#This Row],[List 1]],Table_PI[[#This Row],[List 2]],Table_PI[[#This Row],[List 3]],Table_PI[[#This Row],[Size]],Table_PI[[#This Row],[Input 1]],Table_PI[[#This Row],[Input 2]],Table_PI[[#This Row],[Input 3]],Table_PI[[#This Row],[Input 4]],'Customer Information'!$AR$12,1,ROW())>0,MeasureCalc(Table_PI[[#This Row],[Hide:\nFormula Name]],Table_PI[[#This Row],[Quantity]],Table_PI[[#This Row],[List 1]],Table_PI[[#This Row],[List 2]],Table_PI[[#This Row],[List 3]],Table_PI[[#This Row],[Size]],Table_PI[[#This Row],[Input 1]],Table_PI[[#This Row],[Input 2]],Table_PI[[#This Row],[Input 3]],Table_PI[[#This Row],[Input 4]],'Customer Information'!$AR$12,5,ROW()),\"No Rebate\"),\"No Rebate\"),0)","v":0},{"$f":"IF(Table_PI[[#This Row],[Hide:\nFormula Name]]<>\"\",IFERROR(IF(MeasureCalc(Table_PI[[#This Row],[Hide:\nFormula Name]],Table_PI[[#This Row],[Quantity]],Table_PI[[#This Row],[List 1]],Table_PI[[#This Row],[List 2]],Table_PI[[#This Row],[List 3]],Table_PI[[#This Row],[Size]],Table_PI[[#This Row],[Input 1]],Table_PI[[#This Row],[Input 2]],Table_PI[[#This Row],[Input 3]],Table_PI[[#This Row],[Input 4]],'Customer Information'!$AR$12,1,ROW())>0,MeasureCalc(Table_PI[[#This Row],[Hide:\nFormula Name]],Table_PI[[#This Row],[Quantity]],Table_PI[[#This Row],[List 1]],Table_PI[[#This Row],[List 2]],Table_PI[[#This Row],[List 3]],Table_PI[[#This Row],[Size]],Table_PI[[#This Row],[Input 1]],Table_PI[[#This Row],[Input 2]],Table_PI[[#This Row],[Input 3]],Table_PI[[#This Row],[Input 4]],'Customer Information'!$AR$12,6,ROW()),\"No Rebate\"),\"No Rebate\"),0)","v":0},{"$f":"IF(Table_PI[[#This Row],[Hide:\nFormula Name]]<>\"\",IFERROR(IF(MeasureCalc(Table_PI[[#This Row],[Hide:\nFormula Name]],Table_PI[[#This Row],[Quantity]],Table_PI[[#This Row],[List 1]],Table_PI[[#This Row],[List 2]],Table_PI[[#This Row],[List 3]],Table_PI[[#This Row],[Size]],Table_PI[[#This Row],[Input 1]],Table_PI[[#This Row],[Input 2]],Table_PI[[#This Row],[Input 3]],Table_PI[[#This Row],[Input 4]],'Customer Information'!$AR$12,1,ROW())>0,MeasureCalc(Table_PI[[#This Row],[Hide:\nFormula Name]],Table_PI[[#This Row],[Quantity]],Table_PI[[#This Row],[List 1]],Table_PI[[#This Row],[List 2]],Table_PI[[#This Row],[List 3]],Table_PI[[#This Row],[Size]],Table_PI[[#This Row],[Input 1]],Table_PI[[#This Row],[Input 2]],Table_PI[[#This Row],[Input 3]],Table_PI[[#This Row],[Input 4]],'Customer Information'!$AR$12,7,ROW()),\"No Rebate\"),\"No Rebate\"),0)","v":0},{"$f":"IF(Table_PI[[#This Row],[Hide:\nFormula Name]]<>\"\",IFERROR(IF(MeasureCalc(Table_PI[[#This Row],[Hide:\nFormula Name]],Table_PI[[#This Row],[Quantity]],Table_PI[[#This Row],[List 1]],Table_PI[[#This Row],[List 2]],Table_PI[[#This Row],[List 3]],Table_PI[[#This Row],[Size]],Table_PI[[#This Row],[Input 1]],Table_PI[[#This Row],[Input 2]],Table_PI[[#This Row],[Input 3]],Table_PI[[#This Row],[Input 4]],'Customer Information'!$AR$12,1,ROW())>0,MeasureCalc(Table_PI[[#This Row],[Hide:\nFormula Name]],Table_PI[[#This Row],[Quantity]],Table_PI[[#This Row],[List 1]],Table_PI[[#This Row],[List 2]],Table_PI[[#This Row],[List 3]],Table_PI[[#This Row],[Size]],Table_PI[[#This Row],[Input 1]],Table_PI[[#This Row],[Input 2]],Table_PI[[#This Row],[Input 3]],Table_PI[[#This Row],[Input 4]],'Customer Information'!$AR$12,8,ROW()),\"No Rebate\"),\"No Rebate\"),0)","v":0},{"$f":"IF(Table_PI[[#This Row],[Hide:\nFormula Name]]<>\"\",IF(AND(Table_PI[[#This Row],[Hide:\nFormula Name]]<>\"\",OR(Table_PI[[#This Row],[Rebate]]>0,Table_PI[[#This Row],[Rebate]]=\"No Rebate\")),TRUE,\"MI: Line Item \" & $A24),\"\")","v":""}]
[{"$f":"IF(Table_PI[[#This Row],[Hide:\nFormula Name]]<>\"\",MAX($A$2:A24)+1,\"\")","v":""},null,null,null,null,null,null,null,null,null,null,null,null,null,null,{"$f":"IFERROR(VLOOKUP(Table_PI[[#This Row],[Measure]],'Equipment Lookups'!$C$3:$D$23,2,FALSE),\"\")","v":""},{"$f":"IF(Table_PI[[#This Row],[Hide:\nFormula Name]]<>\"\",IFERROR(IF(MeasureCalc(Table_PI[[#This Row],[Hide:\nFormula Name]],Table_PI[[#This Row],[Quantity]],Table_PI[[#This Row],[List 1]],Table_PI[[#This Row],[List 2]],Table_PI[[#This Row],[List 3]],Table_PI[[#This Row],[Size]],Table_PI[[#This Row],[Input 1]],Table_PI[[#This Row],[Input 2]],Table_PI[[#This Row],[Input 3]],Table_PI[[#This Row],[Input 4]],'Customer Information'!$AR$12,1,ROW())>0,MeasureCalc(Table_PI[[#This Row],[Hide:\nFormula Name]],Table_PI[[#This Row],[Quantity]],Table_PI[[#This Row],[List 1]],Table_PI[[#This Row],[List 2]],Table_PI[[#This Row],[List 3]],Table_PI[[#This Row],[Size]],Table_PI[[#This Row],[Input 1]],Table_PI[[#This Row],[Input 2]],Table_PI[[#This Row],[Input 3]],Table_PI[[#This Row],[Input 4]],'Customer Information'!$AR$12,1,ROW()),\"No Rebate\"),\"No Rebate\"),0)","v":0},{"$f":"IF(Table_PI[[#This Row],[Hide:\nFormula Name]]<>\"\",IFERROR(IF(MeasureCalc(Table_PI[[#This Row],[Hide:\nFormula Name]],Table_PI[[#This Row],[Quantity]],Table_PI[[#This Row],[List 1]],Table_PI[[#This Row],[List 2]],Table_PI[[#This Row],[List 3]],Table_PI[[#This Row],[Size]],Table_PI[[#This Row],[Input 1]],Table_PI[[#This Row],[Input 2]],Table_PI[[#This Row],[Input 3]],Table_PI[[#This Row],[Input 4]],'Customer Information'!$AR$12,1,ROW())>0,MeasureCalc(Table_PI[[#This Row],[Hide:\nFormula Name]],Table_PI[[#This Row],[Quantity]],Table_PI[[#This Row],[List 1]],Table_PI[[#This Row],[List 2]],Table_PI[[#This Row],[List 3]],Table_PI[[#This Row],[Size]],Table_PI[[#This Row],[Input 1]],Table_PI[[#This Row],[Input 2]],Table_PI[[#This Row],[Input 3]],Table_PI[[#This Row],[Input 4]],'Customer Information'!$AR$12,2,ROW()),\"No Rebate\"),\"No Rebate\"),0)","v":0},{"$f":"IF(Table_PI[[#This Row],[Hide:\nFormula Name]]<>\"\",IFERROR(IF(MeasureCalc(Table_PI[[#This Row],[Hide:\nFormula Name]],Table_PI[[#This Row],[Quantity]],Table_PI[[#This Row],[List 1]],Table_PI[[#This Row],[List 2]],Table_PI[[#This Row],[List 3]],Table_PI[[#This Row],[Size]],Table_PI[[#This Row],[Input 1]],Table_PI[[#This Row],[Input 2]],Table_PI[[#This Row],[Input 3]],Table_PI[[#This Row],[Input 4]],'Customer Information'!$AR$12,1,ROW())>0,MeasureCalc(Table_PI[[#This Row],[Hide:\nFormula Name]],Table_PI[[#This Row],[Quantity]],Table_PI[[#This Row],[List 1]],Table_PI[[#This Row],[List 2]],Table_PI[[#This Row],[List 3]],Table_PI[[#This Row],[Size]],Table_PI[[#This Row],[Input 1]],Table_PI[[#This Row],[Input 2]],Table_PI[[#This Row],[Input 3]],Table_PI[[#This Row],[Input 4]],'Customer Information'!$AR$12,3,ROW()),\"No Rebate\"),\"No Rebate\"),0)","v":0},{"$f":"IF(Table_PI[[#This Row],[Hide:\nFormula Name]]<>\"\",IFERROR(IF(MeasureCalc(Table_PI[[#This Row],[Hide:\nFormula Name]],Table_PI[[#This Row],[Quantity]],Table_PI[[#This Row],[List 1]],Table_PI[[#This Row],[List 2]],Table_PI[[#This Row],[List 3]],Table_PI[[#This Row],[Size]],Table_PI[[#This Row],[Input 1]],Table_PI[[#This Row],[Input 2]],Table_PI[[#This Row],[Input 3]],Table_PI[[#This Row],[Input 4]],'Customer Information'!$AR$12,1,ROW())>0,MeasureCalc(Table_PI[[#This Row],[Hide:\nFormula Name]],Table_PI[[#This Row],[Quantity]],Table_PI[[#This Row],[List 1]],Table_PI[[#This Row],[List 2]],Table_PI[[#This Row],[List 3]],Table_PI[[#This Row],[Size]],Table_PI[[#This Row],[Input 1]],Table_PI[[#This Row],[Input 2]],Table_PI[[#This Row],[Input 3]],Table_PI[[#This Row],[Input 4]],'Customer Information'!$AR$12,4,ROW()),\"No Rebate\"),\"No Rebate\"),0)","v":0},{"$f":"IF(Table_PI[[#This Row],[Hide:\nFormula Name]]<>\"\",IFERROR(IF(MeasureCalc(Table_PI[[#This Row],[Hide:\nFormula Name]],Table_PI[[#This Row],[Quantity]],Table_PI[[#This Row],[List 1]],Table_PI[[#This Row],[List 2]],Table_PI[[#This Row],[List 3]],Table_PI[[#This Row],[Size]],Table_PI[[#This Row],[Input 1]],Table_PI[[#This Row],[Input 2]],Table_PI[[#This Row],[Input 3]],Table_PI[[#This Row],[Input 4]],'Customer Information'!$AR$12,1,ROW())>0,MeasureCalc(Table_PI[[#This Row],[Hide:\nFormula Name]],Table_PI[[#This Row],[Quantity]],Table_PI[[#This Row],[List 1]],Table_PI[[#This Row],[List 2]],Table_PI[[#This Row],[List 3]],Table_PI[[#This Row],[Size]],Table_PI[[#This Row],[Input 1]],Table_PI[[#This Row],[Input 2]],Table_PI[[#This Row],[Input 3]],Table_PI[[#This Row],[Input 4]],'Customer Information'!$AR$12,5,ROW()),\"No Rebate\"),\"No Rebate\"),0)","v":0},{"$f":"IF(Table_PI[[#This Row],[Hide:\nFormula Name]]<>\"\",IFERROR(IF(MeasureCalc(Table_PI[[#This Row],[Hide:\nFormula Name]],Table_PI[[#This Row],[Quantity]],Table_PI[[#This Row],[List 1]],Table_PI[[#This Row],[List 2]],Table_PI[[#This Row],[List 3]],Table_PI[[#This Row],[Size]],Table_PI[[#This Row],[Input 1]],Table_PI[[#This Row],[Input 2]],Table_PI[[#This Row],[Input 3]],Table_PI[[#This Row],[Input 4]],'Customer Information'!$AR$12,1,ROW())>0,MeasureCalc(Table_PI[[#This Row],[Hide:\nFormula Name]],Table_PI[[#This Row],[Quantity]],Table_PI[[#This Row],[List 1]],Table_PI[[#This Row],[List 2]],Table_PI[[#This Row],[List 3]],Table_PI[[#This Row],[Size]],Table_PI[[#This Row],[Input 1]],Table_PI[[#This Row],[Input 2]],Table_PI[[#This Row],[Input 3]],Table_PI[[#This Row],[Input 4]],'Customer Information'!$AR$12,6,ROW()),\"No Rebate\"),\"No Rebate\"),0)","v":0},{"$f":"IF(Table_PI[[#This Row],[Hide:\nFormula Name]]<>\"\",IFERROR(IF(MeasureCalc(Table_PI[[#This Row],[Hide:\nFormula Name]],Table_PI[[#This Row],[Quantity]],Table_PI[[#This Row],[List 1]],Table_PI[[#This Row],[List 2]],Table_PI[[#This Row],[List 3]],Table_PI[[#This Row],[Size]],Table_PI[[#This Row],[Input 1]],Table_PI[[#This Row],[Input 2]],Table_PI[[#This Row],[Input 3]],Table_PI[[#This Row],[Input 4]],'Customer Information'!$AR$12,1,ROW())>0,MeasureCalc(Table_PI[[#This Row],[Hide:\nFormula Name]],Table_PI[[#This Row],[Quantity]],Table_PI[[#This Row],[List 1]],Table_PI[[#This Row],[List 2]],Table_PI[[#This Row],[List 3]],Table_PI[[#This Row],[Size]],Table_PI[[#This Row],[Input 1]],Table_PI[[#This Row],[Input 2]],Table_PI[[#This Row],[Input 3]],Table_PI[[#This Row],[Input 4]],'Customer Information'!$AR$12,7,ROW()),\"No Rebate\"),\"No Rebate\"),0)","v":0},{"$f":"IF(Table_PI[[#This Row],[Hide:\nFormula Name]]<>\"\",IFERROR(IF(MeasureCalc(Table_PI[[#This Row],[Hide:\nFormula Name]],Table_PI[[#This Row],[Quantity]],Table_PI[[#This Row],[List 1]],Table_PI[[#This Row],[List 2]],Table_PI[[#This Row],[List 3]],Table_PI[[#This Row],[Size]],Table_PI[[#This Row],[Input 1]],Table_PI[[#This Row],[Input 2]],Table_PI[[#This Row],[Input 3]],Table_PI[[#This Row],[Input 4]],'Customer Information'!$AR$12,1,ROW())>0,MeasureCalc(Table_PI[[#This Row],[Hide:\nFormula Name]],Table_PI[[#This Row],[Quantity]],Table_PI[[#This Row],[List 1]],Table_PI[[#This Row],[List 2]],Table_PI[[#This Row],[List 3]],Table_PI[[#This Row],[Size]],Table_PI[[#This Row],[Input 1]],Table_PI[[#This Row],[Input 2]],Table_PI[[#This Row],[Input 3]],Table_PI[[#This Row],[Input 4]],'Customer Information'!$AR$12,8,ROW()),\"No Rebate\"),\"No Rebate\"),0)","v":0},{"$f":"IF(Table_PI[[#This Row],[Hide:\nFormula Name]]<>\"\",IF(AND(Table_PI[[#This Row],[Hide:\nFormula Name]]<>\"\",OR(Table_PI[[#This Row],[Rebate]]>0,Table_PI[[#This Row],[Rebate]]=\"No Rebate\")),TRUE,\"MI: Line Item \" & $A25),\"\")","v":""}]
[{"$f":"IF(Table_PI[[#This Row],[Hide:\nFormula Name]]<>\"\",MAX($A$2:A25)+1,\"\")","v":""},null,null,null,null,null,null,null,null,null,null,null,null,null,null,{"$f":"IFERROR(VLOOKUP(Table_PI[[#This Row],[Measure]],'Equipment Lookups'!$C$3:$D$23,2,FALSE),\"\")","v":""},{"$f":"IF(Table_PI[[#This Row],[Hide:\nFormula Name]]<>\"\",IFERROR(IF(MeasureCalc(Table_PI[[#This Row],[Hide:\nFormula Name]],Table_PI[[#This Row],[Quantity]],Table_PI[[#This Row],[List 1]],Table_PI[[#This Row],[List 2]],Table_PI[[#This Row],[List 3]],Table_PI[[#This Row],[Size]],Table_PI[[#This Row],[Input 1]],Table_PI[[#This Row],[Input 2]],Table_PI[[#This Row],[Input 3]],Table_PI[[#This Row],[Input 4]],'Customer Information'!$AR$12,1,ROW())>0,MeasureCalc(Table_PI[[#This Row],[Hide:\nFormula Name]],Table_PI[[#This Row],[Quantity]],Table_PI[[#This Row],[List 1]],Table_PI[[#This Row],[List 2]],Table_PI[[#This Row],[List 3]],Table_PI[[#This Row],[Size]],Table_PI[[#This Row],[Input 1]],Table_PI[[#This Row],[Input 2]],Table_PI[[#This Row],[Input 3]],Table_PI[[#This Row],[Input 4]],'Customer Information'!$AR$12,1,ROW()),\"No Rebate\"),\"No Rebate\"),0)","v":0},{"$f":"IF(Table_PI[[#This Row],[Hide:\nFormula Name]]<>\"\",IFERROR(IF(MeasureCalc(Table_PI[[#This Row],[Hide:\nFormula Name]],Table_PI[[#This Row],[Quantity]],Table_PI[[#This Row],[List 1]],Table_PI[[#This Row],[List 2]],Table_PI[[#This Row],[List 3]],Table_PI[[#This Row],[Size]],Table_PI[[#This Row],[Input 1]],Table_PI[[#This Row],[Input 2]],Table_PI[[#This Row],[Input 3]],Table_PI[[#This Row],[Input 4]],'Customer Information'!$AR$12,1,ROW())>0,MeasureCalc(Table_PI[[#This Row],[Hide:\nFormula Name]],Table_PI[[#This Row],[Quantity]],Table_PI[[#This Row],[List 1]],Table_PI[[#This Row],[List 2]],Table_PI[[#This Row],[List 3]],Table_PI[[#This Row],[Size]],Table_PI[[#This Row],[Input 1]],Table_PI[[#This Row],[Input 2]],Table_PI[[#This Row],[Input 3]],Table_PI[[#This Row],[Input 4]],'Customer Information'!$AR$12,2,ROW()),\"No Rebate\"),\"No Rebate\"),0)","v":0},{"$f":"IF(Table_PI[[#This Row],[Hide:\nFormula Name]]<>\"\",IFERROR(IF(MeasureCalc(Table_PI[[#This Row],[Hide:\nFormula Name]],Table_PI[[#This Row],[Quantity]],Table_PI[[#This Row],[List 1]],Table_PI[[#This Row],[List 2]],Table_PI[[#This Row],[List 3]],Table_PI[[#This Row],[Size]],Table_PI[[#This Row],[Input 1]],Table_PI[[#This Row],[Input 2]],Table_PI[[#This Row],[Input 3]],Table_PI[[#This Row],[Input 4]],'Customer Information'!$AR$12,1,ROW())>0,MeasureCalc(Table_PI[[#This Row],[Hide:\nFormula Name]],Table_PI[[#This Row],[Quantity]],Table_PI[[#This Row],[List 1]],Table_PI[[#This Row],[List 2]],Table_PI[[#This Row],[List 3]],Table_PI[[#This Row],[Size]],Table_PI[[#This Row],[Input 1]],Table_PI[[#This Row],[Input 2]],Table_PI[[#This Row],[Input 3]],Table_PI[[#This Row],[Input 4]],'Customer Information'!$AR$12,3,ROW()),\"No Rebate\"),\"No Rebate\"),0)","v":0},{"$f":"IF(Table_PI[[#This Row],[Hide:\nFormula Name]]<>\"\",IFERROR(IF(MeasureCalc(Table_PI[[#This Row],[Hide:\nFormula Name]],Table_PI[[#This Row],[Quantity]],Table_PI[[#This Row],[List 1]],Table_PI[[#This Row],[List 2]],Table_PI[[#This Row],[List 3]],Table_PI[[#This Row],[Size]],Table_PI[[#This Row],[Input 1]],Table_PI[[#This Row],[Input 2]],Table_PI[[#This Row],[Input 3]],Table_PI[[#This Row],[Input 4]],'Customer Information'!$AR$12,1,ROW())>0,MeasureCalc(Table_PI[[#This Row],[Hide:\nFormula Name]],Table_PI[[#This Row],[Quantity]],Table_PI[[#This Row],[List 1]],Table_PI[[#This Row],[List 2]],Table_PI[[#This Row],[List 3]],Table_PI[[#This Row],[Size]],Table_PI[[#This Row],[Input 1]],Table_PI[[#This Row],[Input 2]],Table_PI[[#This Row],[Input 3]],Table_PI[[#This Row],[Input 4]],'Customer Information'!$AR$12,4,ROW()),\"No Rebate\"),\"No Rebate\"),0)","v":0},{"$f":"IF(Table_PI[[#This Row],[Hide:\nFormula Name]]<>\"\",IFERROR(IF(MeasureCalc(Table_PI[[#This Row],[Hide:\nFormula Name]],Table_PI[[#This Row],[Quantity]],Table_PI[[#This Row],[List 1]],Table_PI[[#This Row],[List 2]],Table_PI[[#This Row],[List 3]],Table_PI[[#This Row],[Size]],Table_PI[[#This Row],[Input 1]],Table_PI[[#This Row],[Input 2]],Table_PI[[#This Row],[Input 3]],Table_PI[[#This Row],[Input 4]],'Customer Information'!$AR$12,1,ROW())>0,MeasureCalc(Table_PI[[#This Row],[Hide:\nFormula Name]],Table_PI[[#This Row],[Quantity]],Table_PI[[#This Row],[List 1]],Table_PI[[#This Row],[List 2]],Table_PI[[#This Row],[List 3]],Table_PI[[#This Row],[Size]],Table_PI[[#This Row],[Input 1]],Table_PI[[#This Row],[Input 2]],Table_PI[[#This Row],[Input 3]],Table_PI[[#This Row],[Input 4]],'Customer Information'!$AR$12,5,ROW()),\"No Rebate\"),\"No Rebate\"),0)","v":0},{"$f":"IF(Table_PI[[#This Row],[Hide:\nFormula Name]]<>\"\",IFERROR(IF(MeasureCalc(Table_PI[[#This Row],[Hide:\nFormula Name]],Table_PI[[#This Row],[Quantity]],Table_PI[[#This Row],[List 1]],Table_PI[[#This Row],[List 2]],Table_PI[[#This Row],[List 3]],Table_PI[[#This Row],[Size]],Table_PI[[#This Row],[Input 1]],Table_PI[[#This Row],[Input 2]],Table_PI[[#This Row],[Input 3]],Table_PI[[#This Row],[Input 4]],'Customer Information'!$AR$12,1,ROW())>0,MeasureCalc(Table_PI[[#This Row],[Hide:\nFormula Name]],Table_PI[[#This Row],[Quantity]],Table_PI[[#This Row],[List 1]],Table_PI[[#This Row],[List 2]],Table_PI[[#This Row],[List 3]],Table_PI[[#This Row],[Size]],Table_PI[[#This Row],[Input 1]],Table_PI[[#This Row],[Input 2]],Table_PI[[#This Row],[Input 3]],Table_PI[[#This Row],[Input 4]],'Customer Information'!$AR$12,6,ROW()),\"No Rebate\"),\"No Rebate\"),0)","v":0},{"$f":"IF(Table_PI[[#This Row],[Hide:\nFormula Name]]<>\"\",IFERROR(IF(MeasureCalc(Table_PI[[#This Row],[Hide:\nFormula Name]],Table_PI[[#This Row],[Quantity]],Table_PI[[#This Row],[List 1]],Table_PI[[#This Row],[List 2]],Table_PI[[#This Row],[List 3]],Table_PI[[#This Row],[Size]],Table_PI[[#This Row],[Input 1]],Table_PI[[#This Row],[Input 2]],Table_PI[[#This Row],[Input 3]],Table_PI[[#This Row],[Input 4]],'Customer Information'!$AR$12,1,ROW())>0,MeasureCalc(Table_PI[[#This Row],[Hide:\nFormula Name]],Table_PI[[#This Row],[Quantity]],Table_PI[[#This Row],[List 1]],Table_PI[[#This Row],[List 2]],Table_PI[[#This Row],[List 3]],Table_PI[[#This Row],[Size]],Table_PI[[#This Row],[Input 1]],Table_PI[[#This Row],[Input 2]],Table_PI[[#This Row],[Input 3]],Table_PI[[#This Row],[Input 4]],'Customer Information'!$AR$12,7,ROW()),\"No Rebate\"),\"No Rebate\"),0)","v":0},{"$f":"IF(Table_PI[[#This Row],[Hide:\nFormula Name]]<>\"\",IFERROR(IF(MeasureCalc(Table_PI[[#This Row],[Hide:\nFormula Name]],Table_PI[[#This Row],[Quantity]],Table_PI[[#This Row],[List 1]],Table_PI[[#This Row],[List 2]],Table_PI[[#This Row],[List 3]],Table_PI[[#This Row],[Size]],Table_PI[[#This Row],[Input 1]],Table_PI[[#This Row],[Input 2]],Table_PI[[#This Row],[Input 3]],Table_PI[[#This Row],[Input 4]],'Customer Information'!$AR$12,1,ROW())>0,MeasureCalc(Table_PI[[#This Row],[Hide:\nFormula Name]],Table_PI[[#This Row],[Quantity]],Table_PI[[#This Row],[List 1]],Table_PI[[#This Row],[List 2]],Table_PI[[#This Row],[List 3]],Table_PI[[#This Row],[Size]],Table_PI[[#This Row],[Input 1]],Table_PI[[#This Row],[Input 2]],Table_PI[[#This Row],[Input 3]],Table_PI[[#This Row],[Input 4]],'Customer Information'!$AR$12,8,ROW()),\"No Rebate\"),\"No Rebate\"),0)","v":0},{"$f":"IF(Table_PI[[#This Row],[Hide:\nFormula Name]]<>\"\",IF(AND(Table_PI[[#This Row],[Hide:\nFormula Name]]<>\"\",OR(Table_PI[[#This Row],[Rebate]]>0,Table_PI[[#This Row],[Rebate]]=\"No Rebate\")),TRUE,\"MI: Line Item \" & $A26),\"\")","v":""}]
[{"$f":"IF(Table_PI[[#This Row],[Hide:\nFormula Name]]<>\"\",MAX($A$2:A26)+1,\"\")","v":""},null,null,null,null,null,null,null,null,null,null,null,null,null,null,{"$f":"IFERROR(VLOOKUP(Table_PI[[#This Row],[Measure]],'Equipment Lookups'!$C$3:$D$23,2,FALSE),\"\")","v":""},{"$f":"IF(Table_PI[[#This Row],[Hide:\nFormula Name]]<>\"\",IFERROR(IF(MeasureCalc(Table_PI[[#This Row],[Hide:\nFormula Name]],Table_PI[[#This Row],[Quantity]],Table_PI[[#This Row],[List 1]],Table_PI[[#This Row],[List 2]],Table_PI[[#This Row],[List 3]],Table_PI[[#This Row],[Size]],Table_PI[[#This Row],[Input 1]],Table_PI[[#This Row],[Input 2]],Table_PI[[#This Row],[Input 3]],Table_PI[[#This Row],[Input 4]],'Customer Information'!$AR$12,1,ROW())>0,MeasureCalc(Table_PI[[#This Row],[Hide:\nFormula Name]],Table_PI[[#This Row],[Quantity]],Table_PI[[#This Row],[List 1]],Table_PI[[#This Row],[List 2]],Table_PI[[#This Row],[List 3]],Table_PI[[#This Row],[Size]],Table_PI[[#This Row],[Input 1]],Table_PI[[#This Row],[Input 2]],Table_PI[[#This Row],[Input 3]],Table_PI[[#This Row],[Input 4]],'Customer Information'!$AR$12,1,ROW()),\"No Rebate\"),\"No Rebate\"),0)","v":0},{"$f":"IF(Table_PI[[#This Row],[Hide:\nFormula Name]]<>\"\",IFERROR(IF(MeasureCalc(Table_PI[[#This Row],[Hide:\nFormula Name]],Table_PI[[#This Row],[Quantity]],Table_PI[[#This Row],[List 1]],Table_PI[[#This Row],[List 2]],Table_PI[[#This Row],[List 3]],Table_PI[[#This Row],[Size]],Table_PI[[#This Row],[Input 1]],Table_PI[[#This Row],[Input 2]],Table_PI[[#This Row],[Input 3]],Table_PI[[#This Row],[Input 4]],'Customer Information'!$AR$12,1,ROW())>0,MeasureCalc(Table_PI[[#This Row],[Hide:\nFormula Name]],Table_PI[[#This Row],[Quantity]],Table_PI[[#This Row],[List 1]],Table_PI[[#This Row],[List 2]],Table_PI[[#This Row],[List 3]],Table_PI[[#This Row],[Size]],Table_PI[[#This Row],[Input 1]],Table_PI[[#This Row],[Input 2]],Table_PI[[#This Row],[Input 3]],Table_PI[[#This Row],[Input 4]],'Customer Information'!$AR$12,2,ROW()),\"No Rebate\"),\"No Rebate\"),0)","v":0},{"$f":"IF(Table_PI[[#This Row],[Hide:\nFormula Name]]<>\"\",IFERROR(IF(MeasureCalc(Table_PI[[#This Row],[Hide:\nFormula Name]],Table_PI[[#This Row],[Quantity]],Table_PI[[#This Row],[List 1]],Table_PI[[#This Row],[List 2]],Table_PI[[#This Row],[List 3]],Table_PI[[#This Row],[Size]],Table_PI[[#This Row],[Input 1]],Table_PI[[#This Row],[Input 2]],Table_PI[[#This Row],[Input 3]],Table_PI[[#This Row],[Input 4]],'Customer Information'!$AR$12,1,ROW())>0,MeasureCalc(Table_PI[[#This Row],[Hide:\nFormula Name]],Table_PI[[#This Row],[Quantity]],Table_PI[[#This Row],[List 1]],Table_PI[[#This Row],[List 2]],Table_PI[[#This Row],[List 3]],Table_PI[[#This Row],[Size]],Table_PI[[#This Row],[Input 1]],Table_PI[[#This Row],[Input 2]],Table_PI[[#This Row],[Input 3]],Table_PI[[#This Row],[Input 4]],'Customer Information'!$AR$12,3,ROW()),\"No Rebate\"),\"No Rebate\"),0)","v":0},{"$f":"IF(Table_PI[[#This Row],[Hide:\nFormula Name]]<>\"\",IFERROR(IF(MeasureCalc(Table_PI[[#This Row],[Hide:\nFormula Name]],Table_PI[[#This Row],[Quantity]],Table_PI[[#This Row],[List 1]],Table_PI[[#This Row],[List 2]],Table_PI[[#This Row],[List 3]],Table_PI[[#This Row],[Size]],Table_PI[[#This Row],[Input 1]],Table_PI[[#This Row],[Input 2]],Table_PI[[#This Row],[Input 3]],Table_PI[[#This Row],[Input 4]],'Customer Information'!$AR$12,1,ROW())>0,MeasureCalc(Table_PI[[#This Row],[Hide:\nFormula Name]],Table_PI[[#This Row],[Quantity]],Table_PI[[#This Row],[List 1]],Table_PI[[#This Row],[List 2]],Table_PI[[#This Row],[List 3]],Table_PI[[#This Row],[Size]],Table_PI[[#This Row],[Input 1]],Table_PI[[#This Row],[Input 2]],Table_PI[[#This Row],[Input 3]],Table_PI[[#This Row],[Input 4]],'Customer Information'!$AR$12,4,ROW()),\"No Rebate\"),\"No Rebate\"),0)","v":0},{"$f":"IF(Table_PI[[#This Row],[Hide:\nFormula Name]]<>\"\",IFERROR(IF(MeasureCalc(Table_PI[[#This Row],[Hide:\nFormula Name]],Table_PI[[#This Row],[Quantity]],Table_PI[[#This Row],[List 1]],Table_PI[[#This Row],[List 2]],Table_PI[[#This Row],[List 3]],Table_PI[[#This Row],[Size]],Table_PI[[#This Row],[Input 1]],Table_PI[[#This Row],[Input 2]],Table_PI[[#This Row],[Input 3]],Table_PI[[#This Row],[Input 4]],'Customer Information'!$AR$12,1,ROW())>0,MeasureCalc(Table_PI[[#This Row],[Hide:\nFormula Name]],Table_PI[[#This Row],[Quantity]],Table_PI[[#This Row],[List 1]],Table_PI[[#This Row],[List 2]],Table_PI[[#This Row],[List 3]],Table_PI[[#This Row],[Size]],Table_PI[[#This Row],[Input 1]],Table_PI[[#This Row],[Input 2]],Table_PI[[#This Row],[Input 3]],Table_PI[[#This Row],[Input 4]],'Customer Information'!$AR$12,5,ROW()),\"No Rebate\"),\"No Rebate\"),0)","v":0},{"$f":"IF(Table_PI[[#This Row],[Hide:\nFormula Name]]<>\"\",IFERROR(IF(MeasureCalc(Table_PI[[#This Row],[Hide:\nFormula Name]],Table_PI[[#This Row],[Quantity]],Table_PI[[#This Row],[List 1]],Table_PI[[#This Row],[List 2]],Table_PI[[#This Row],[List 3]],Table_PI[[#This Row],[Size]],Table_PI[[#This Row],[Input 1]],Table_PI[[#This Row],[Input 2]],Table_PI[[#This Row],[Input 3]],Table_PI[[#This Row],[Input 4]],'Customer Information'!$AR$12,1,ROW())>0,MeasureCalc(Table_PI[[#This Row],[Hide:\nFormula Name]],Table_PI[[#This Row],[Quantity]],Table_PI[[#This Row],[List 1]],Table_PI[[#This Row],[List 2]],Table_PI[[#This Row],[List 3]],Table_PI[[#This Row],[Size]],Table_PI[[#This Row],[Input 1]],Table_PI[[#This Row],[Input 2]],Table_PI[[#This Row],[Input 3]],Table_PI[[#This Row],[Input 4]],'Customer Information'!$AR$12,6,ROW()),\"No Rebate\"),\"No Rebate\"),0)","v":0},{"$f":"IF(Table_PI[[#This Row],[Hide:\nFormula Name]]<>\"\",IFERROR(IF(MeasureCalc(Table_PI[[#This Row],[Hide:\nFormula Name]],Table_PI[[#This Row],[Quantity]],Table_PI[[#This Row],[List 1]],Table_PI[[#This Row],[List 2]],Table_PI[[#This Row],[List 3]],Table_PI[[#This Row],[Size]],Table_PI[[#This Row],[Input 1]],Table_PI[[#This Row],[Input 2]],Table_PI[[#This Row],[Input 3]],Table_PI[[#This Row],[Input 4]],'Customer Information'!$AR$12,1,ROW())>0,MeasureCalc(Table_PI[[#This Row],[Hide:\nFormula Name]],Table_PI[[#This Row],[Quantity]],Table_PI[[#This Row],[List 1]],Table_PI[[#This Row],[List 2]],Table_PI[[#This Row],[List 3]],Table_PI[[#This Row],[Size]],Table_PI[[#This Row],[Input 1]],Table_PI[[#This Row],[Input 2]],Table_PI[[#This Row],[Input 3]],Table_PI[[#This Row],[Input 4]],'Customer Information'!$AR$12,7,ROW()),\"No Rebate\"),\"No Rebate\"),0)","v":0},{"$f":"IF(Table_PI[[#This Row],[Hide:\nFormula Name]]<>\"\",IFERROR(IF(MeasureCalc(Table_PI[[#This Row],[Hide:\nFormula Name]],Table_PI[[#This Row],[Quantity]],Table_PI[[#This Row],[List 1]],Table_PI[[#This Row],[List 2]],Table_PI[[#This Row],[List 3]],Table_PI[[#This Row],[Size]],Table_PI[[#This Row],[Input 1]],Table_PI[[#This Row],[Input 2]],Table_PI[[#This Row],[Input 3]],Table_PI[[#This Row],[Input 4]],'Customer Information'!$AR$12,1,ROW())>0,MeasureCalc(Table_PI[[#This Row],[Hide:\nFormula Name]],Table_PI[[#This Row],[Quantity]],Table_PI[[#This Row],[List 1]],Table_PI[[#This Row],[List 2]],Table_PI[[#This Row],[List 3]],Table_PI[[#This Row],[Size]],Table_PI[[#This Row],[Input 1]],Table_PI[[#This Row],[Input 2]],Table_PI[[#This Row],[Input 3]],Table_PI[[#This Row],[Input 4]],'Customer Information'!$AR$12,8,ROW()),\"No Rebate\"),\"No Rebate\"),0)","v":0},{"$f":"IF(Table_PI[[#This Row],[Hide:\nFormula Name]]<>\"\",IF(AND(Table_PI[[#This Row],[Hide:\nFormula Name]]<>\"\",OR(Table_PI[[#This Row],[Rebate]]>0,Table_PI[[#This Row],[Rebate]]=\"No Rebate\")),TRUE,\"MI: Line Item \" & $A27),\"\")","v":""}]
[{"$f":"IF(Table_PI[[#This Row],[Hide:\nFormula Name]]<>\"\",MAX($A$2:A27)+1,\"\")","v":""},null,null,null,null,null,null,null,null,null,null,null,null,null,null,{"$f":"IFERROR(VLOOKUP(Table_PI[[#This Row],[Measure]],'Equipment Lookups'!$C$3:$D$23,2,FALSE),\"\")","v":""},{"$f":"IF(Table_PI[[#This Row],[Hide:\nFormula Name]]<>\"\",IFERROR(IF(MeasureCalc(Table_PI[[#This Row],[Hide:\nFormula Name]],Table_PI[[#This Row],[Quantity]],Table_PI[[#This Row],[List 1]],Table_PI[[#This Row],[List 2]],Table_PI[[#This Row],[List 3]],Table_PI[[#This Row],[Size]],Table_PI[[#This Row],[Input 1]],Table_PI[[#This Row],[Input 2]],Table_PI[[#This Row],[Input 3]],Table_PI[[#This Row],[Input 4]],'Customer Information'!$AR$12,1,ROW())>0,MeasureCalc(Table_PI[[#This Row],[Hide:\nFormula Name]],Table_PI[[#This Row],[Quantity]],Table_PI[[#This Row],[List 1]],Table_PI[[#This Row],[List 2]],Table_PI[[#This Row],[List 3]],Table_PI[[#This Row],[Size]],Table_PI[[#This Row],[Input 1]],Table_PI[[#This Row],[Input 2]],Table_PI[[#This Row],[Input 3]],Table_PI[[#This Row],[Input 4]],'Customer Information'!$AR$12,1,ROW()),\"No Rebate\"),\"No Rebate\"),0)","v":0},{"$f":"IF(Table_PI[[#This Row],[Hide:\nFormula Name]]<>\"\",IFERROR(IF(MeasureCalc(Table_PI[[#This Row],[Hide:\nFormula Name]],Table_PI[[#This Row],[Quantity]],Table_PI[[#This Row],[List 1]],Table_PI[[#This Row],[List 2]],Table_PI[[#This Row],[List 3]],Table_PI[[#This Row],[Size]],Table_PI[[#This Row],[Input 1]],Table_PI[[#This Row],[Input 2]],Table_PI[[#This Row],[Input 3]],Table_PI[[#This Row],[Input 4]],'Customer Information'!$AR$12,1,ROW())>0,MeasureCalc(Table_PI[[#This Row],[Hide:\nFormula Name]],Table_PI[[#This Row],[Quantity]],Table_PI[[#This Row],[List 1]],Table_PI[[#This Row],[List 2]],Table_PI[[#This Row],[List 3]],Table_PI[[#This Row],[Size]],Table_PI[[#This Row],[Input 1]],Table_PI[[#This Row],[Input 2]],Table_PI[[#This Row],[Input 3]],Table_PI[[#This Row],[Input 4]],'Customer Information'!$AR$12,2,ROW()),\"No Rebate\"),\"No Rebate\"),0)","v":0},{"$f":"IF(Table_PI[[#This Row],[Hide:\nFormula Name]]<>\"\",IFERROR(IF(MeasureCalc(Table_PI[[#This Row],[Hide:\nFormula Name]],Table_PI[[#This Row],[Quantity]],Table_PI[[#This Row],[List 1]],Table_PI[[#This Row],[List 2]],Table_PI[[#This Row],[List 3]],Table_PI[[#This Row],[Size]],Table_PI[[#This Row],[Input 1]],Table_PI[[#This Row],[Input 2]],Table_PI[[#This Row],[Input 3]],Table_PI[[#This Row],[Input 4]],'Customer Information'!$AR$12,1,ROW())>0,MeasureCalc(Table_PI[[#This Row],[Hide:\nFormula Name]],Table_PI[[#This Row],[Quantity]],Table_PI[[#This Row],[List 1]],Table_PI[[#This Row],[List 2]],Table_PI[[#This Row],[List 3]],Table_PI[[#This Row],[Size]],Table_PI[[#This Row],[Input 1]],Table_PI[[#This Row],[Input 2]],Table_PI[[#This Row],[Input 3]],Table_PI[[#This Row],[Input 4]],'Customer Information'!$AR$12,3,ROW()),\"No Rebate\"),\"No Rebate\"),0)","v":0},{"$f":"IF(Table_PI[[#This Row],[Hide:\nFormula Name]]<>\"\",IFERROR(IF(MeasureCalc(Table_PI[[#This Row],[Hide:\nFormula Name]],Table_PI[[#This Row],[Quantity]],Table_PI[[#This Row],[List 1]],Table_PI[[#This Row],[List 2]],Table_PI[[#This Row],[List 3]],Table_PI[[#This Row],[Size]],Table_PI[[#This Row],[Input 1]],Table_PI[[#This Row],[Input 2]],Table_PI[[#This Row],[Input 3]],Table_PI[[#This Row],[Input 4]],'Customer Information'!$AR$12,1,ROW())>0,MeasureCalc(Table_PI[[#This Row],[Hide:\nFormula Name]],Table_PI[[#This Row],[Quantity]],Table_PI[[#This Row],[List 1]],Table_PI[[#This Row],[List 2]],Table_PI[[#This Row],[List 3]],Table_PI[[#This Row],[Size]],Table_PI[[#This Row],[Input 1]],Table_PI[[#This Row],[Input 2]],Table_PI[[#This Row],[Input 3]],Table_PI[[#This Row],[Input 4]],'Customer Information'!$AR$12,4,ROW()),\"No Rebate\"),\"No Rebate\"),0)","v":0},{"$f":"IF(Table_PI[[#This Row],[Hide:\nFormula Name]]<>\"\",IFERROR(IF(MeasureCalc(Table_PI[[#This Row],[Hide:\nFormula Name]],Table_PI[[#This Row],[Quantity]],Table_PI[[#This Row],[List 1]],Table_PI[[#This Row],[List 2]],Table_PI[[#This Row],[List 3]],Table_PI[[#This Row],[Size]],Table_PI[[#This Row],[Input 1]],Table_PI[[#This Row],[Input 2]],Table_PI[[#This Row],[Input 3]],Table_PI[[#This Row],[Input 4]],'Customer Information'!$AR$12,1,ROW())>0,MeasureCalc(Table_PI[[#This Row],[Hide:\nFormula Name]],Table_PI[[#This Row],[Quantity]],Table_PI[[#This Row],[List 1]],Table_PI[[#This Row],[List 2]],Table_PI[[#This Row],[List 3]],Table_PI[[#This Row],[Size]],Table_PI[[#This Row],[Input 1]],Table_PI[[#This Row],[Input 2]],Table_PI[[#This Row],[Input 3]],Table_PI[[#This Row],[Input 4]],'Customer Information'!$AR$12,5,ROW()),\"No Rebate\"),\"No Rebate\"),0)","v":0},{"$f":"IF(Table_PI[[#This Row],[Hide:\nFormula Name]]<>\"\",IFERROR(IF(MeasureCalc(Table_PI[[#This Row],[Hide:\nFormula Name]],Table_PI[[#This Row],[Quantity]],Table_PI[[#This Row],[List 1]],Table_PI[[#This Row],[List 2]],Table_PI[[#This Row],[List 3]],Table_PI[[#This Row],[Size]],Table_PI[[#This Row],[Input 1]],Table_PI[[#This Row],[Input 2]],Table_PI[[#This Row],[Input 3]],Table_PI[[#This Row],[Input 4]],'Customer Information'!$AR$12,1,ROW())>0,MeasureCalc(Table_PI[[#This Row],[Hide:\nFormula Name]],Table_PI[[#This Row],[Quantity]],Table_PI[[#This Row],[List 1]],Table_PI[[#This Row],[List 2]],Table_PI[[#This Row],[List 3]],Table_PI[[#This Row],[Size]],Table_PI[[#This Row],[Input 1]],Table_PI[[#This Row],[Input 2]],Table_PI[[#This Row],[Input 3]],Table_PI[[#This Row],[Input 4]],'Customer Information'!$AR$12,6,ROW()),\"No Rebate\"),\"No Rebate\"),0)","v":0},{"$f":"IF(Table_PI[[#This Row],[Hide:\nFormula Name]]<>\"\",IFERROR(IF(MeasureCalc(Table_PI[[#This Row],[Hide:\nFormula Name]],Table_PI[[#This Row],[Quantity]],Table_PI[[#This Row],[List 1]],Table_PI[[#This Row],[List 2]],Table_PI[[#This Row],[List 3]],Table_PI[[#This Row],[Size]],Table_PI[[#This Row],[Input 1]],Table_PI[[#This Row],[Input 2]],Table_PI[[#This Row],[Input 3]],Table_PI[[#This Row],[Input 4]],'Customer Information'!$AR$12,1,ROW())>0,MeasureCalc(Table_PI[[#This Row],[Hide:\nFormula Name]],Table_PI[[#This Row],[Quantity]],Table_PI[[#This Row],[List 1]],Table_PI[[#This Row],[List 2]],Table_PI[[#This Row],[List 3]],Table_PI[[#This Row],[Size]],Table_PI[[#This Row],[Input 1]],Table_PI[[#This Row],[Input 2]],Table_PI[[#This Row],[Input 3]],Table_PI[[#This Row],[Input 4]],'Customer Information'!$AR$12,7,ROW()),\"No Rebate\"),\"No Rebate\"),0)","v":0},{"$f":"IF(Table_PI[[#This Row],[Hide:\nFormula Name]]<>\"\",IFERROR(IF(MeasureCalc(Table_PI[[#This Row],[Hide:\nFormula Name]],Table_PI[[#This Row],[Quantity]],Table_PI[[#This Row],[List 1]],Table_PI[[#This Row],[List 2]],Table_PI[[#This Row],[List 3]],Table_PI[[#This Row],[Size]],Table_PI[[#This Row],[Input 1]],Table_PI[[#This Row],[Input 2]],Table_PI[[#This Row],[Input 3]],Table_PI[[#This Row],[Input 4]],'Customer Information'!$AR$12,1,ROW())>0,MeasureCalc(Table_PI[[#This Row],[Hide:\nFormula Name]],Table_PI[[#This Row],[Quantity]],Table_PI[[#This Row],[List 1]],Table_PI[[#This Row],[List 2]],Table_PI[[#This Row],[List 3]],Table_PI[[#This Row],[Size]],Table_PI[[#This Row],[Input 1]],Table_PI[[#This Row],[Input 2]],Table_PI[[#This Row],[Input 3]],Table_PI[[#This Row],[Input 4]],'Customer Information'!$AR$12,8,ROW()),\"No Rebate\"),\"No Rebate\"),0)","v":0},{"$f":"IF(Table_PI[[#This Row],[Hide:\nFormula Name]]<>\"\",IF(AND(Table_PI[[#This Row],[Hide:\nFormula Name]]<>\"\",OR(Table_PI[[#This Row],[Rebate]]>0,Table_PI[[#This Row],[Rebate]]=\"No Rebate\")),TRUE,\"MI: Line Item \" & $A28),\"\")","v":""}]
[{"$f":"IF(Table_PI[[#This Row],[Hide:\nFormula Name]]<>\"\",MAX($A$2:A28)+1,\"\")","v":""},null,null,null,null,null,null,null,null,null,null,null,null,null,null,{"$f":"IFERROR(VLOOKUP(Table_PI[[#This Row],[Measure]],'Equipment Lookups'!$C$3:$D$23,2,FALSE),\"\")","v":""},{"$f":"IF(Table_PI[[#This Row],[Hide:\nFormula Name]]<>\"\",IFERROR(IF(MeasureCalc(Table_PI[[#This Row],[Hide:\nFormula Name]],Table_PI[[#This Row],[Quantity]],Table_PI[[#This Row],[List 1]],Table_PI[[#This Row],[List 2]],Table_PI[[#This Row],[List 3]],Table_PI[[#This Row],[Size]],Table_PI[[#This Row],[Input 1]],Table_PI[[#This Row],[Input 2]],Table_PI[[#This Row],[Input 3]],Table_PI[[#This Row],[Input 4]],'Customer Information'!$AR$12,1,ROW())>0,MeasureCalc(Table_PI[[#This Row],[Hide:\nFormula Name]],Table_PI[[#This Row],[Quantity]],Table_PI[[#This Row],[List 1]],Table_PI[[#This Row],[List 2]],Table_PI[[#This Row],[List 3]],Table_PI[[#This Row],[Size]],Table_PI[[#This Row],[Input 1]],Table_PI[[#This Row],[Input 2]],Table_PI[[#This Row],[Input 3]],Table_PI[[#This Row],[Input 4]],'Customer Information'!$AR$12,1,ROW()),\"No Rebate\"),\"No Rebate\"),0)","v":0},{"$f":"IF(Table_PI[[#This Row],[Hide:\nFormula Name]]<>\"\",IFERROR(IF(MeasureCalc(Table_PI[[#This Row],[Hide:\nFormula Name]],Table_PI[[#This Row],[Quantity]],Table_PI[[#This Row],[List 1]],Table_PI[[#This Row],[List 2]],Table_PI[[#This Row],[List 3]],Table_PI[[#This Row],[Size]],Table_PI[[#This Row],[Input 1]],Table_PI[[#This Row],[Input 2]],Table_PI[[#This Row],[Input 3]],Table_PI[[#This Row],[Input 4]],'Customer Information'!$AR$12,1,ROW())>0,MeasureCalc(Table_PI[[#This Row],[Hide:\nFormula Name]],Table_PI[[#This Row],[Quantity]],Table_PI[[#This Row],[List 1]],Table_PI[[#This Row],[List 2]],Table_PI[[#This Row],[List 3]],Table_PI[[#This Row],[Size]],Table_PI[[#This Row],[Input 1]],Table_PI[[#This Row],[Input 2]],Table_PI[[#This Row],[Input 3]],Table_PI[[#This Row],[Input 4]],'Customer Information'!$AR$12,2,ROW()),\"No Rebate\"),\"No Rebate\"),0)","v":0},{"$f":"IF(Table_PI[[#This Row],[Hide:\nFormula Name]]<>\"\",IFERROR(IF(MeasureCalc(Table_PI[[#This Row],[Hide:\nFormula Name]],Table_PI[[#This Row],[Quantity]],Table_PI[[#This Row],[List 1]],Table_PI[[#This Row],[List 2]],Table_PI[[#This Row],[List 3]],Table_PI[[#This Row],[Size]],Table_PI[[#This Row],[Input 1]],Table_PI[[#This Row],[Input 2]],Table_PI[[#This Row],[Input 3]],Table_PI[[#This Row],[Input 4]],'Customer Information'!$AR$12,1,ROW())>0,MeasureCalc(Table_PI[[#This Row],[Hide:\nFormula Name]],Table_PI[[#This Row],[Quantity]],Table_PI[[#This Row],[List 1]],Table_PI[[#This Row],[List 2]],Table_PI[[#This Row],[List 3]],Table_PI[[#This Row],[Size]],Table_PI[[#This Row],[Input 1]],Table_PI[[#This Row],[Input 2]],Table_PI[[#This Row],[Input 3]],Table_PI[[#This Row],[Input 4]],'Customer Information'!$AR$12,3,ROW()),\"No Rebate\"),\"No Rebate\"),0)","v":0},{"$f":"IF(Table_PI[[#This Row],[Hide:\nFormula Name]]<>\"\",IFERROR(IF(MeasureCalc(Table_PI[[#This Row],[Hide:\nFormula Name]],Table_PI[[#This Row],[Quantity]],Table_PI[[#This Row],[List 1]],Table_PI[[#This Row],[List 2]],Table_PI[[#This Row],[List 3]],Table_PI[[#This Row],[Size]],Table_PI[[#This Row],[Input 1]],Table_PI[[#This Row],[Input 2]],Table_PI[[#This Row],[Input 3]],Table_PI[[#This Row],[Input 4]],'Customer Information'!$AR$12,1,ROW())>0,MeasureCalc(Table_PI[[#This Row],[Hide:\nFormula Name]],Table_PI[[#This Row],[Quantity]],Table_PI[[#This Row],[List 1]],Table_PI[[#This Row],[List 2]],Table_PI[[#This Row],[List 3]],Table_PI[[#This Row],[Size]],Table_PI[[#This Row],[Input 1]],Table_PI[[#This Row],[Input 2]],Table_PI[[#This Row],[Input 3]],Table_PI[[#This Row],[Input 4]],'Customer Information'!$AR$12,4,ROW()),\"No Rebate\"),\"No Rebate\"),0)","v":0},{"$f":"IF(Table_PI[[#This Row],[Hide:\nFormula Name]]<>\"\",IFERROR(IF(MeasureCalc(Table_PI[[#This Row],[Hide:\nFormula Name]],Table_PI[[#This Row],[Quantity]],Table_PI[[#This Row],[List 1]],Table_PI[[#This Row],[List 2]],Table_PI[[#This Row],[List 3]],Table_PI[[#This Row],[Size]],Table_PI[[#This Row],[Input 1]],Table_PI[[#This Row],[Input 2]],Table_PI[[#This Row],[Input 3]],Table_PI[[#This Row],[Input 4]],'Customer Information'!$AR$12,1,ROW())>0,MeasureCalc(Table_PI[[#This Row],[Hide:\nFormula Name]],Table_PI[[#This Row],[Quantity]],Table_PI[[#This Row],[List 1]],Table_PI[[#This Row],[List 2]],Table_PI[[#This Row],[List 3]],Table_PI[[#This Row],[Size]],Table_PI[[#This Row],[Input 1]],Table_PI[[#This Row],[Input 2]],Table_PI[[#This Row],[Input 3]],Table_PI[[#This Row],[Input 4]],'Customer Information'!$AR$12,5,ROW()),\"No Rebate\"),\"No Rebate\"),0)","v":0},{"$f":"IF(Table_PI[[#This Row],[Hide:\nFormula Name]]<>\"\",IFERROR(IF(MeasureCalc(Table_PI[[#This Row],[Hide:\nFormula Name]],Table_PI[[#This Row],[Quantity]],Table_PI[[#This Row],[List 1]],Table_PI[[#This Row],[List 2]],Table_PI[[#This Row],[List 3]],Table_PI[[#This Row],[Size]],Table_PI[[#This Row],[Input 1]],Table_PI[[#This Row],[Input 2]],Table_PI[[#This Row],[Input 3]],Table_PI[[#This Row],[Input 4]],'Customer Information'!$AR$12,1,ROW())>0,MeasureCalc(Table_PI[[#This Row],[Hide:\nFormula Name]],Table_PI[[#This Row],[Quantity]],Table_PI[[#This Row],[List 1]],Table_PI[[#This Row],[List 2]],Table_PI[[#This Row],[List 3]],Table_PI[[#This Row],[Size]],Table_PI[[#This Row],[Input 1]],Table_PI[[#This Row],[Input 2]],Table_PI[[#This Row],[Input 3]],Table_PI[[#This Row],[Input 4]],'Customer Information'!$AR$12,6,ROW()),\"No Rebate\"),\"No Rebate\"),0)","v":0},{"$f":"IF(Table_PI[[#This Row],[Hide:\nFormula Name]]<>\"\",IFERROR(IF(MeasureCalc(Table_PI[[#This Row],[Hide:\nFormula Name]],Table_PI[[#This Row],[Quantity]],Table_PI[[#This Row],[List 1]],Table_PI[[#This Row],[List 2]],Table_PI[[#This Row],[List 3]],Table_PI[[#This Row],[Size]],Table_PI[[#This Row],[Input 1]],Table_PI[[#This Row],[Input 2]],Table_PI[[#This Row],[Input 3]],Table_PI[[#This Row],[Input 4]],'Customer Information'!$AR$12,1,ROW())>0,MeasureCalc(Table_PI[[#This Row],[Hide:\nFormula Name]],Table_PI[[#This Row],[Quantity]],Table_PI[[#This Row],[List 1]],Table_PI[[#This Row],[List 2]],Table_PI[[#This Row],[List 3]],Table_PI[[#This Row],[Size]],Table_PI[[#This Row],[Input 1]],Table_PI[[#This Row],[Input 2]],Table_PI[[#This Row],[Input 3]],Table_PI[[#This Row],[Input 4]],'Customer Information'!$AR$12,7,ROW()),\"No Rebate\"),\"No Rebate\"),0)","v":0},{"$f":"IF(Table_PI[[#This Row],[Hide:\nFormula Name]]<>\"\",IFERROR(IF(MeasureCalc(Table_PI[[#This Row],[Hide:\nFormula Name]],Table_PI[[#This Row],[Quantity]],Table_PI[[#This Row],[List 1]],Table_PI[[#This Row],[List 2]],Table_PI[[#This Row],[List 3]],Table_PI[[#This Row],[Size]],Table_PI[[#This Row],[Input 1]],Table_PI[[#This Row],[Input 2]],Table_PI[[#This Row],[Input 3]],Table_PI[[#This Row],[Input 4]],'Customer Information'!$AR$12,1,ROW())>0,MeasureCalc(Table_PI[[#This Row],[Hide:\nFormula Name]],Table_PI[[#This Row],[Quantity]],Table_PI[[#This Row],[List 1]],Table_PI[[#This Row],[List 2]],Table_PI[[#This Row],[List 3]],Table_PI[[#This Row],[Size]],Table_PI[[#This Row],[Input 1]],Table_PI[[#This Row],[Input 2]],Table_PI[[#This Row],[Input 3]],Table_PI[[#This Row],[Input 4]],'Customer Information'!$AR$12,8,ROW()),\"No Rebate\"),\"No Rebate\"),0)","v":0},{"$f":"IF(Table_PI[[#This Row],[Hide:\nFormula Name]]<>\"\",IF(AND(Table_PI[[#This Row],[Hide:\nFormula Name]]<>\"\",OR(Table_PI[[#This Row],[Rebate]]>0,Table_PI[[#This Row],[Rebate]]=\"No Rebate\")),TRUE,\"MI: Line Item \" & $A29),\"\")","v":""}]
[{"$f":"IF(Table_PI[[#This Row],[Hide:\nFormula Name]]<>\"\",MAX($A$2:A29)+1,\"\")","v":""},null,null,null,null,null,null,null,null,null,null,null,null,null,null,{"$f":"IFERROR(VLOOKUP(Table_PI[[#This Row],[Measure]],'Equipment Lookups'!$C$3:$D$23,2,FALSE),\"\")","v":""},{"$f":"IF(Table_PI[[#This Row],[Hide:\nFormula Name]]<>\"\",IFERROR(IF(MeasureCalc(Table_PI[[#This Row],[Hide:\nFormula Name]],Table_PI[[#This Row],[Quantity]],Table_PI[[#This Row],[List 1]],Table_PI[[#This Row],[List 2]],Table_PI[[#This Row],[List 3]],Table_PI[[#This Row],[Size]],Table_PI[[#This Row],[Input 1]],Table_PI[[#This Row],[Input 2]],Table_PI[[#This Row],[Input 3]],Table_PI[[#This Row],[Input 4]],'Customer Information'!$AR$12,1,ROW())>0,MeasureCalc(Table_PI[[#This Row],[Hide:\nFormula Name]],Table_PI[[#This Row],[Quantity]],Table_PI[[#This Row],[List 1]],Table_PI[[#This Row],[List 2]],Table_PI[[#This Row],[List 3]],Table_PI[[#This Row],[Size]],Table_PI[[#This Row],[Input 1]],Table_PI[[#This Row],[Input 2]],Table_PI[[#This Row],[Input 3]],Table_PI[[#This Row],[Input 4]],'Customer Information'!$AR$12,1,ROW()),\"No Rebate\"),\"No Rebate\"),0)","v":0},{"$f":"IF(Table_PI[[#This Row],[Hide:\nFormula Name]]<>\"\",IFERROR(IF(MeasureCalc(Table_PI[[#This Row],[Hide:\nFormula Name]],Table_PI[[#This Row],[Quantity]],Table_PI[[#This Row],[List 1]],Table_PI[[#This Row],[List 2]],Table_PI[[#This Row],[List 3]],Table_PI[[#This Row],[Size]],Table_PI[[#This Row],[Input 1]],Table_PI[[#This Row],[Input 2]],Table_PI[[#This Row],[Input 3]],Table_PI[[#This Row],[Input 4]],'Customer Information'!$AR$12,1,ROW())>0,MeasureCalc(Table_PI[[#This Row],[Hide:\nFormula Name]],Table_PI[[#This Row],[Quantity]],Table_PI[[#This Row],[List 1]],Table_PI[[#This Row],[List 2]],Table_PI[[#This Row],[List 3]],Table_PI[[#This Row],[Size]],Table_PI[[#This Row],[Input 1]],Table_PI[[#This Row],[Input 2]],Table_PI[[#This Row],[Input 3]],Table_PI[[#This Row],[Input 4]],'Customer Information'!$AR$12,2,ROW()),\"No Rebate\"),\"No Rebate\"),0)","v":0},{"$f":"IF(Table_PI[[#This Row],[Hide:\nFormula Name]]<>\"\",IFERROR(IF(MeasureCalc(Table_PI[[#This Row],[Hide:\nFormula Name]],Table_PI[[#This Row],[Quantity]],Table_PI[[#This Row],[List 1]],Table_PI[[#This Row],[List 2]],Table_PI[[#This Row],[List 3]],Table_PI[[#This Row],[Size]],Table_PI[[#This Row],[Input 1]],Table_PI[[#This Row],[Input 2]],Table_PI[[#This Row],[Input 3]],Table_PI[[#This Row],[Input 4]],'Customer Information'!$AR$12,1,ROW())>0,MeasureCalc(Table_PI[[#This Row],[Hide:\nFormula Name]],Table_PI[[#This Row],[Quantity]],Table_PI[[#This Row],[List 1]],Table_PI[[#This Row],[List 2]],Table_PI[[#This Row],[List 3]],Table_PI[[#This Row],[Size]],Table_PI[[#This Row],[Input 1]],Table_PI[[#This Row],[Input 2]],Table_PI[[#This Row],[Input 3]],Table_PI[[#This Row],[Input 4]],'Customer Information'!$AR$12,3,ROW()),\"No Rebate\"),\"No Rebate\"),0)","v":0},{"$f":"IF(Table_PI[[#This Row],[Hide:\nFormula Name]]<>\"\",IFERROR(IF(MeasureCalc(Table_PI[[#This Row],[Hide:\nFormula Name]],Table_PI[[#This Row],[Quantity]],Table_PI[[#This Row],[List 1]],Table_PI[[#This Row],[List 2]],Table_PI[[#This Row],[List 3]],Table_PI[[#This Row],[Size]],Table_PI[[#This Row],[Input 1]],Table_PI[[#This Row],[Input 2]],Table_PI[[#This Row],[Input 3]],Table_PI[[#This Row],[Input 4]],'Customer Information'!$AR$12,1,ROW())>0,MeasureCalc(Table_PI[[#This Row],[Hide:\nFormula Name]],Table_PI[[#This Row],[Quantity]],Table_PI[[#This Row],[List 1]],Table_PI[[#This Row],[List 2]],Table_PI[[#This Row],[List 3]],Table_PI[[#This Row],[Size]],Table_PI[[#This Row],[Input 1]],Table_PI[[#This Row],[Input 2]],Table_PI[[#This Row],[Input 3]],Table_PI[[#This Row],[Input 4]],'Customer Information'!$AR$12,4,ROW()),\"No Rebate\"),\"No Rebate\"),0)","v":0},{"$f":"IF(Table_PI[[#This Row],[Hide:\nFormula Name]]<>\"\",IFERROR(IF(MeasureCalc(Table_PI[[#This Row],[Hide:\nFormula Name]],Table_PI[[#This Row],[Quantity]],Table_PI[[#This Row],[List 1]],Table_PI[[#This Row],[List 2]],Table_PI[[#This Row],[List 3]],Table_PI[[#This Row],[Size]],Table_PI[[#This Row],[Input 1]],Table_PI[[#This Row],[Input 2]],Table_PI[[#This Row],[Input 3]],Table_PI[[#This Row],[Input 4]],'Customer Information'!$AR$12,1,ROW())>0,MeasureCalc(Table_PI[[#This Row],[Hide:\nFormula Name]],Table_PI[[#This Row],[Quantity]],Table_PI[[#This Row],[List 1]],Table_PI[[#This Row],[List 2]],Table_PI[[#This Row],[List 3]],Table_PI[[#This Row],[Size]],Table_PI[[#This Row],[Input 1]],Table_PI[[#This Row],[Input 2]],Table_PI[[#This Row],[Input 3]],Table_PI[[#This Row],[Input 4]],'Customer Information'!$AR$12,5,ROW()),\"No Rebate\"),\"No Rebate\"),0)","v":0},{"$f":"IF(Table_PI[[#This Row],[Hide:\nFormula Name]]<>\"\",IFERROR(IF(MeasureCalc(Table_PI[[#This Row],[Hide:\nFormula Name]],Table_PI[[#This Row],[Quantity]],Table_PI[[#This Row],[List 1]],Table_PI[[#This Row],[List 2]],Table_PI[[#This Row],[List 3]],Table_PI[[#This Row],[Size]],Table_PI[[#This Row],[Input 1]],Table_PI[[#This Row],[Input 2]],Table_PI[[#This Row],[Input 3]],Table_PI[[#This Row],[Input 4]],'Customer Information'!$AR$12,1,ROW())>0,MeasureCalc(Table_PI[[#This Row],[Hide:\nFormula Name]],Table_PI[[#This Row],[Quantity]],Table_PI[[#This Row],[List 1]],Table_PI[[#This Row],[List 2]],Table_PI[[#This Row],[List 3]],Table_PI[[#This Row],[Size]],Table_PI[[#This Row],[Input 1]],Table_PI[[#This Row],[Input 2]],Table_PI[[#This Row],[Input 3]],Table_PI[[#This Row],[Input 4]],'Customer Information'!$AR$12,6,ROW()),\"No Rebate\"),\"No Rebate\"),0)","v":0},{"$f":"IF(Table_PI[[#This Row],[Hide:\nFormula Name]]<>\"\",IFERROR(IF(MeasureCalc(Table_PI[[#This Row],[Hide:\nFormula Name]],Table_PI[[#This Row],[Quantity]],Table_PI[[#This Row],[List 1]],Table_PI[[#This Row],[List 2]],Table_PI[[#This Row],[List 3]],Table_PI[[#This Row],[Size]],Table_PI[[#This Row],[Input 1]],Table_PI[[#This Row],[Input 2]],Table_PI[[#This Row],[Input 3]],Table_PI[[#This Row],[Input 4]],'Customer Information'!$AR$12,1,ROW())>0,MeasureCalc(Table_PI[[#This Row],[Hide:\nFormula Name]],Table_PI[[#This Row],[Quantity]],Table_PI[[#This Row],[List 1]],Table_PI[[#This Row],[List 2]],Table_PI[[#This Row],[List 3]],Table_PI[[#This Row],[Size]],Table_PI[[#This Row],[Input 1]],Table_PI[[#This Row],[Input 2]],Table_PI[[#This Row],[Input 3]],Table_PI[[#This Row],[Input 4]],'Customer Information'!$AR$12,7,ROW()),\"No Rebate\"),\"No Rebate\"),0)","v":0},{"$f":"IF(Table_PI[[#This Row],[Hide:\nFormula Name]]<>\"\",IFERROR(IF(MeasureCalc(Table_PI[[#This Row],[Hide:\nFormula Name]],Table_PI[[#This Row],[Quantity]],Table_PI[[#This Row],[List 1]],Table_PI[[#This Row],[List 2]],Table_PI[[#This Row],[List 3]],Table_PI[[#This Row],[Size]],Table_PI[[#This Row],[Input 1]],Table_PI[[#This Row],[Input 2]],Table_PI[[#This Row],[Input 3]],Table_PI[[#This Row],[Input 4]],'Customer Information'!$AR$12,1,ROW())>0,MeasureCalc(Table_PI[[#This Row],[Hide:\nFormula Name]],Table_PI[[#This Row],[Quantity]],Table_PI[[#This Row],[List 1]],Table_PI[[#This Row],[List 2]],Table_PI[[#This Row],[List 3]],Table_PI[[#This Row],[Size]],Table_PI[[#This Row],[Input 1]],Table_PI[[#This Row],[Input 2]],Table_PI[[#This Row],[Input 3]],Table_PI[[#This Row],[Input 4]],'Customer Information'!$AR$12,8,ROW()),\"No Rebate\"),\"No Rebate\"),0)","v":0},{"$f":"IF(Table_PI[[#This Row],[Hide:\nFormula Name]]<>\"\",IF(AND(Table_PI[[#This Row],[Hide:\nFormula Name]]<>\"\",OR(Table_PI[[#This Row],[Rebate]]>0,Table_PI[[#This Row],[Rebate]]=\"No Rebate\")),TRUE,\"MI: Line Item \" & $A30),\"\")","v":""}]
[{"$f":"IF(Table_PI[[#This Row],[Hide:\nFormula Name]]<>\"\",MAX($A$2:A30)+1,\"\")","v":""},null,null,null,null,null,null,null,null,null,null,null,null,null,null,{"$f":"IFERROR(VLOOKUP(Table_PI[[#This Row],[Measure]],'Equipment Lookups'!$C$3:$D$23,2,FALSE),\"\")","v":""},{"$f":"IF(Table_PI[[#This Row],[Hide:\nFormula Name]]<>\"\",IFERROR(IF(MeasureCalc(Table_PI[[#This Row],[Hide:\nFormula Name]],Table_PI[[#This Row],[Quantity]],Table_PI[[#This Row],[List 1]],Table_PI[[#This Row],[List 2]],Table_PI[[#This Row],[List 3]],Table_PI[[#This Row],[Size]],Table_PI[[#This Row],[Input 1]],Table_PI[[#This Row],[Input 2]],Table_PI[[#This Row],[Input 3]],Table_PI[[#This Row],[Input 4]],'Customer Information'!$AR$12,1,ROW())>0,MeasureCalc(Table_PI[[#This Row],[Hide:\nFormula Name]],Table_PI[[#This Row],[Quantity]],Table_PI[[#This Row],[List 1]],Table_PI[[#This Row],[List 2]],Table_PI[[#This Row],[List 3]],Table_PI[[#This Row],[Size]],Table_PI[[#This Row],[Input 1]],Table_PI[[#This Row],[Input 2]],Table_PI[[#This Row],[Input 3]],Table_PI[[#This Row],[Input 4]],'Customer Information'!$AR$12,1,ROW()),\"No Rebate\"),\"No Rebate\"),0)","v":0},{"$f":"IF(Table_PI[[#This Row],[Hide:\nFormula Name]]<>\"\",IFERROR(IF(MeasureCalc(Table_PI[[#This Row],[Hide:\nFormula Name]],Table_PI[[#This Row],[Quantity]],Table_PI[[#This Row],[List 1]],Table_PI[[#This Row],[List 2]],Table_PI[[#This Row],[List 3]],Table_PI[[#This Row],[Size]],Table_PI[[#This Row],[Input 1]],Table_PI[[#This Row],[Input 2]],Table_PI[[#This Row],[Input 3]],Table_PI[[#This Row],[Input 4]],'Customer Information'!$AR$12,1,ROW())>0,MeasureCalc(Table_PI[[#This Row],[Hide:\nFormula Name]],Table_PI[[#This Row],[Quantity]],Table_PI[[#This Row],[List 1]],Table_PI[[#This Row],[List 2]],Table_PI[[#This Row],[List 3]],Table_PI[[#This Row],[Size]],Table_PI[[#This Row],[Input 1]],Table_PI[[#This Row],[Input 2]],Table_PI[[#This Row],[Input 3]],Table_PI[[#This Row],[Input 4]],'Customer Information'!$AR$12,2,ROW()),\"No Rebate\"),\"No Rebate\"),0)","v":0},{"$f":"IF(Table_PI[[#This Row],[Hide:\nFormula Name]]<>\"\",IFERROR(IF(MeasureCalc(Table_PI[[#This Row],[Hide:\nFormula Name]],Table_PI[[#This Row],[Quantity]],Table_PI[[#This Row],[List 1]],Table_PI[[#This Row],[List 2]],Table_PI[[#This Row],[List 3]],Table_PI[[#This Row],[Size]],Table_PI[[#This Row],[Input 1]],Table_PI[[#This Row],[Input 2]],Table_PI[[#This Row],[Input 3]],Table_PI[[#This Row],[Input 4]],'Customer Information'!$AR$12,1,ROW())>0,MeasureCalc(Table_PI[[#This Row],[Hide:\nFormula Name]],Table_PI[[#This Row],[Quantity]],Table_PI[[#This Row],[List 1]],Table_PI[[#This Row],[List 2]],Table_PI[[#This Row],[List 3]],Table_PI[[#This Row],[Size]],Table_PI[[#This Row],[Input 1]],Table_PI[[#This Row],[Input 2]],Table_PI[[#This Row],[Input 3]],Table_PI[[#This Row],[Input 4]],'Customer Information'!$AR$12,3,ROW()),\"No Rebate\"),\"No Rebate\"),0)","v":0},{"$f":"IF(Table_PI[[#This Row],[Hide:\nFormula Name]]<>\"\",IFERROR(IF(MeasureCalc(Table_PI[[#This Row],[Hide:\nFormula Name]],Table_PI[[#This Row],[Quantity]],Table_PI[[#This Row],[List 1]],Table_PI[[#This Row],[List 2]],Table_PI[[#This Row],[List 3]],Table_PI[[#This Row],[Size]],Table_PI[[#This Row],[Input 1]],Table_PI[[#This Row],[Input 2]],Table_PI[[#This Row],[Input 3]],Table_PI[[#This Row],[Input 4]],'Customer Information'!$AR$12,1,ROW())>0,MeasureCalc(Table_PI[[#This Row],[Hide:\nFormula Name]],Table_PI[[#This Row],[Quantity]],Table_PI[[#This Row],[List 1]],Table_PI[[#This Row],[List 2]],Table_PI[[#This Row],[List 3]],Table_PI[[#This Row],[Size]],Table_PI[[#This Row],[Input 1]],Table_PI[[#This Row],[Input 2]],Table_PI[[#This Row],[Input 3]],Table_PI[[#This Row],[Input 4]],'Customer Information'!$AR$12,4,ROW()),\"No Rebate\"),\"No Rebate\"),0)","v":0},{"$f":"IF(Table_PI[[#This Row],[Hide:\nFormula Name]]<>\"\",IFERROR(IF(MeasureCalc(Table_PI[[#This Row],[Hide:\nFormula Name]],Table_PI[[#This Row],[Quantity]],Table_PI[[#This Row],[List 1]],Table_PI[[#This Row],[List 2]],Table_PI[[#This Row],[List 3]],Table_PI[[#This Row],[Size]],Table_PI[[#This Row],[Input 1]],Table_PI[[#This Row],[Input 2]],Table_PI[[#This Row],[Input 3]],Table_PI[[#This Row],[Input 4]],'Customer Information'!$AR$12,1,ROW())>0,MeasureCalc(Table_PI[[#This Row],[Hide:\nFormula Name]],Table_PI[[#This Row],[Quantity]],Table_PI[[#This Row],[List 1]],Table_PI[[#This Row],[List 2]],Table_PI[[#This Row],[List 3]],Table_PI[[#This Row],[Size]],Table_PI[[#This Row],[Input 1]],Table_PI[[#This Row],[Input 2]],Table_PI[[#This Row],[Input 3]],Table_PI[[#This Row],[Input 4]],'Customer Information'!$AR$12,5,ROW()),\"No Rebate\"),\"No Rebate\"),0)","v":0},{"$f":"IF(Table_PI[[#This Row],[Hide:\nFormula Name]]<>\"\",IFERROR(IF(MeasureCalc(Table_PI[[#This Row],[Hide:\nFormula Name]],Table_PI[[#This Row],[Quantity]],Table_PI[[#This Row],[List 1]],Table_PI[[#This Row],[List 2]],Table_PI[[#This Row],[List 3]],Table_PI[[#This Row],[Size]],Table_PI[[#This Row],[Input 1]],Table_PI[[#This Row],[Input 2]],Table_PI[[#This Row],[Input 3]],Table_PI[[#This Row],[Input 4]],'Customer Information'!$AR$12,1,ROW())>0,MeasureCalc(Table_PI[[#This Row],[Hide:\nFormula Name]],Table_PI[[#This Row],[Quantity]],Table_PI[[#This Row],[List 1]],Table_PI[[#This Row],[List 2]],Table_PI[[#This Row],[List 3]],Table_PI[[#This Row],[Size]],Table_PI[[#This Row],[Input 1]],Table_PI[[#This Row],[Input 2]],Table_PI[[#This Row],[Input 3]],Table_PI[[#This Row],[Input 4]],'Customer Information'!$AR$12,6,ROW()),\"No Rebate\"),\"No Rebate\"),0)","v":0},{"$f":"IF(Table_PI[[#This Row],[Hide:\nFormula Name]]<>\"\",IFERROR(IF(MeasureCalc(Table_PI[[#This Row],[Hide:\nFormula Name]],Table_PI[[#This Row],[Quantity]],Table_PI[[#This Row],[List 1]],Table_PI[[#This Row],[List 2]],Table_PI[[#This Row],[List 3]],Table_PI[[#This Row],[Size]],Table_PI[[#This Row],[Input 1]],Table_PI[[#This Row],[Input 2]],Table_PI[[#This Row],[Input 3]],Table_PI[[#This Row],[Input 4]],'Customer Information'!$AR$12,1,ROW())>0,MeasureCalc(Table_PI[[#This Row],[Hide:\nFormula Name]],Table_PI[[#This Row],[Quantity]],Table_PI[[#This Row],[List 1]],Table_PI[[#This Row],[List 2]],Table_PI[[#This Row],[List 3]],Table_PI[[#This Row],[Size]],Table_PI[[#This Row],[Input 1]],Table_PI[[#This Row],[Input 2]],Table_PI[[#This Row],[Input 3]],Table_PI[[#This Row],[Input 4]],'Customer Information'!$AR$12,7,ROW()),\"No Rebate\"),\"No Rebate\"),0)","v":0},{"$f":"IF(Table_PI[[#This Row],[Hide:\nFormula Name]]<>\"\",IFERROR(IF(MeasureCalc(Table_PI[[#This Row],[Hide:\nFormula Name]],Table_PI[[#This Row],[Quantity]],Table_PI[[#This Row],[List 1]],Table_PI[[#This Row],[List 2]],Table_PI[[#This Row],[List 3]],Table_PI[[#This Row],[Size]],Table_PI[[#This Row],[Input 1]],Table_PI[[#This Row],[Input 2]],Table_PI[[#This Row],[Input 3]],Table_PI[[#This Row],[Input 4]],'Customer Information'!$AR$12,1,ROW())>0,MeasureCalc(Table_PI[[#This Row],[Hide:\nFormula Name]],Table_PI[[#This Row],[Quantity]],Table_PI[[#This Row],[List 1]],Table_PI[[#This Row],[List 2]],Table_PI[[#This Row],[List 3]],Table_PI[[#This Row],[Size]],Table_PI[[#This Row],[Input 1]],Table_PI[[#This Row],[Input 2]],Table_PI[[#This Row],[Input 3]],Table_PI[[#This Row],[Input 4]],'Customer Information'!$AR$12,8,ROW()),\"No Rebate\"),\"No Rebate\"),0)","v":0},{"$f":"IF(Table_PI[[#This Row],[Hide:\nFormula Name]]<>\"\",IF(AND(Table_PI[[#This Row],[Hide:\nFormula Name]]<>\"\",OR(Table_PI[[#This Row],[Rebate]]>0,Table_PI[[#This Row],[Rebate]]=\"No Rebate\")),TRUE,\"MI: Line Item \" & $A31),\"\")","v":""}]
[{"$f":"IF(Table_PI[[#This Row],[Hide:\nFormula Name]]<>\"\",MAX($A$2:A31)+1,\"\")","v":""},null,null,null,null,null,null,null,null,null,null,null,null,null,null,{"$f":"IFERROR(VLOOKUP(Table_PI[[#This Row],[Measure]],'Equipment Lookups'!$C$3:$D$23,2,FALSE),\"\")","v":""},{"$f":"IF(Table_PI[[#This Row],[Hide:\nFormula Name]]<>\"\",IFERROR(IF(MeasureCalc(Table_PI[[#This Row],[Hide:\nFormula Name]],Table_PI[[#This Row],[Quantity]],Table_PI[[#This Row],[List 1]],Table_PI[[#This Row],[List 2]],Table_PI[[#This Row],[List 3]],Table_PI[[#This Row],[Size]],Table_PI[[#This Row],[Input 1]],Table_PI[[#This Row],[Input 2]],Table_PI[[#This Row],[Input 3]],Table_PI[[#This Row],[Input 4]],'Customer Information'!$AR$12,1,ROW())>0,MeasureCalc(Table_PI[[#This Row],[Hide:\nFormula Name]],Table_PI[[#This Row],[Quantity]],Table_PI[[#This Row],[List 1]],Table_PI[[#This Row],[List 2]],Table_PI[[#This Row],[List 3]],Table_PI[[#This Row],[Size]],Table_PI[[#This Row],[Input 1]],Table_PI[[#This Row],[Input 2]],Table_PI[[#This Row],[Input 3]],Table_PI[[#This Row],[Input 4]],'Customer Information'!$AR$12,1,ROW()),\"No Rebate\"),\"No Rebate\"),0)","v":0},{"$f":"IF(Table_PI[[#This Row],[Hide:\nFormula Name]]<>\"\",IFERROR(IF(MeasureCalc(Table_PI[[#This Row],[Hide:\nFormula Name]],Table_PI[[#This Row],[Quantity]],Table_PI[[#This Row],[List 1]],Table_PI[[#This Row],[List 2]],Table_PI[[#This Row],[List 3]],Table_PI[[#This Row],[Size]],Table_PI[[#This Row],[Input 1]],Table_PI[[#This Row],[Input 2]],Table_PI[[#This Row],[Input 3]],Table_PI[[#This Row],[Input 4]],'Customer Information'!$AR$12,1,ROW())>0,MeasureCalc(Table_PI[[#This Row],[Hide:\nFormula Name]],Table_PI[[#This Row],[Quantity]],Table_PI[[#This Row],[List 1]],Table_PI[[#This Row],[List 2]],Table_PI[[#This Row],[List 3]],Table_PI[[#This Row],[Size]],Table_PI[[#This Row],[Input 1]],Table_PI[[#This Row],[Input 2]],Table_PI[[#This Row],[Input 3]],Table_PI[[#This Row],[Input 4]],'Customer Information'!$AR$12,2,ROW()),\"No Rebate\"),\"No Rebate\"),0)","v":0},{"$f":"IF(Table_PI[[#This Row],[Hide:\nFormula Name]]<>\"\",IFERROR(IF(MeasureCalc(Table_PI[[#This Row],[Hide:\nFormula Name]],Table_PI[[#This Row],[Quantity]],Table_PI[[#This Row],[List 1]],Table_PI[[#This Row],[List 2]],Table_PI[[#This Row],[List 3]],Table_PI[[#This Row],[Size]],Table_PI[[#This Row],[Input 1]],Table_PI[[#This Row],[Input 2]],Table_PI[[#This Row],[Input 3]],Table_PI[[#This Row],[Input 4]],'Customer Information'!$AR$12,1,ROW())>0,MeasureCalc(Table_PI[[#This Row],[Hide:\nFormula Name]],Table_PI[[#This Row],[Quantity]],Table_PI[[#This Row],[List 1]],Table_PI[[#This Row],[List 2]],Table_PI[[#This Row],[List 3]],Table_PI[[#This Row],[Size]],Table_PI[[#This Row],[Input 1]],Table_PI[[#This Row],[Input 2]],Table_PI[[#This Row],[Input 3]],Table_PI[[#This Row],[Input 4]],'Customer Information'!$AR$12,3,ROW()),\"No Rebate\"),\"No Rebate\"),0)","v":0},{"$f":"IF(Table_PI[[#This Row],[Hide:\nFormula Name]]<>\"\",IFERROR(IF(MeasureCalc(Table_PI[[#This Row],[Hide:\nFormula Name]],Table_PI[[#This Row],[Quantity]],Table_PI[[#This Row],[List 1]],Table_PI[[#This Row],[List 2]],Table_PI[[#This Row],[List 3]],Table_PI[[#This Row],[Size]],Table_PI[[#This Row],[Input 1]],Table_PI[[#This Row],[Input 2]],Table_PI[[#This Row],[Input 3]],Table_PI[[#This Row],[Input 4]],'Customer Information'!$AR$12,1,ROW())>0,MeasureCalc(Table_PI[[#This Row],[Hide:\nFormula Name]],Table_PI[[#This Row],[Quantity]],Table_PI[[#This Row],[List 1]],Table_PI[[#This Row],[List 2]],Table_PI[[#This Row],[List 3]],Table_PI[[#This Row],[Size]],Table_PI[[#This Row],[Input 1]],Table_PI[[#This Row],[Input 2]],Table_PI[[#This Row],[Input 3]],Table_PI[[#This Row],[Input 4]],'Customer Information'!$AR$12,4,ROW()),\"No Rebate\"),\"No Rebate\"),0)","v":0},{"$f":"IF(Table_PI[[#This Row],[Hide:\nFormula Name]]<>\"\",IFERROR(IF(MeasureCalc(Table_PI[[#This Row],[Hide:\nFormula Name]],Table_PI[[#This Row],[Quantity]],Table_PI[[#This Row],[List 1]],Table_PI[[#This Row],[List 2]],Table_PI[[#This Row],[List 3]],Table_PI[[#This Row],[Size]],Table_PI[[#This Row],[Input 1]],Table_PI[[#This Row],[Input 2]],Table_PI[[#This Row],[Input 3]],Table_PI[[#This Row],[Input 4]],'Customer Information'!$AR$12,1,ROW())>0,MeasureCalc(Table_PI[[#This Row],[Hide:\nFormula Name]],Table_PI[[#This Row],[Quantity]],Table_PI[[#This Row],[List 1]],Table_PI[[#This Row],[List 2]],Table_PI[[#This Row],[List 3]],Table_PI[[#This Row],[Size]],Table_PI[[#This Row],[Input 1]],Table_PI[[#This Row],[Input 2]],Table_PI[[#This Row],[Input 3]],Table_PI[[#This Row],[Input 4]],'Customer Information'!$AR$12,5,ROW()),\"No Rebate\"),\"No Rebate\"),0)","v":0},{"$f":"IF(Table_PI[[#This Row],[Hide:\nFormula Name]]<>\"\",IFERROR(IF(MeasureCalc(Table_PI[[#This Row],[Hide:\nFormula Name]],Table_PI[[#This Row],[Quantity]],Table_PI[[#This Row],[List 1]],Table_PI[[#This Row],[List 2]],Table_PI[[#This Row],[List 3]],Table_PI[[#This Row],[Size]],Table_PI[[#This Row],[Input 1]],Table_PI[[#This Row],[Input 2]],Table_PI[[#This Row],[Input 3]],Table_PI[[#This Row],[Input 4]],'Customer Information'!$AR$12,1,ROW())>0,MeasureCalc(Table_PI[[#This Row],[Hide:\nFormula Name]],Table_PI[[#This Row],[Quantity]],Table_PI[[#This Row],[List 1]],Table_PI[[#This Row],[List 2]],Table_PI[[#This Row],[List 3]],Table_PI[[#This Row],[Size]],Table_PI[[#This Row],[Input 1]],Table_PI[[#This Row],[Input 2]],Table_PI[[#This Row],[Input 3]],Table_PI[[#This Row],[Input 4]],'Customer Information'!$AR$12,6,ROW()),\"No Rebate\"),\"No Rebate\"),0)","v":0},{"$f":"IF(Table_PI[[#This Row],[Hide:\nFormula Name]]<>\"\",IFERROR(IF(MeasureCalc(Table_PI[[#This Row],[Hide:\nFormula Name]],Table_PI[[#This Row],[Quantity]],Table_PI[[#This Row],[List 1]],Table_PI[[#This Row],[List 2]],Table_PI[[#This Row],[List 3]],Table_PI[[#This Row],[Size]],Table_PI[[#This Row],[Input 1]],Table_PI[[#This Row],[Input 2]],Table_PI[[#This Row],[Input 3]],Table_PI[[#This Row],[Input 4]],'Customer Information'!$AR$12,1,ROW())>0,MeasureCalc(Table_PI[[#This Row],[Hide:\nFormula Name]],Table_PI[[#This Row],[Quantity]],Table_PI[[#This Row],[List 1]],Table_PI[[#This Row],[List 2]],Table_PI[[#This Row],[List 3]],Table_PI[[#This Row],[Size]],Table_PI[[#This Row],[Input 1]],Table_PI[[#This Row],[Input 2]],Table_PI[[#This Row],[Input 3]],Table_PI[[#This Row],[Input 4]],'Customer Information'!$AR$12,7,ROW()),\"No Rebate\"),\"No Rebate\"),0)","v":0},{"$f":"IF(Table_PI[[#This Row],[Hide:\nFormula Name]]<>\"\",IFERROR(IF(MeasureCalc(Table_PI[[#This Row],[Hide:\nFormula Name]],Table_PI[[#This Row],[Quantity]],Table_PI[[#This Row],[List 1]],Table_PI[[#This Row],[List 2]],Table_PI[[#This Row],[List 3]],Table_PI[[#This Row],[Size]],Table_PI[[#This Row],[Input 1]],Table_PI[[#This Row],[Input 2]],Table_PI[[#This Row],[Input 3]],Table_PI[[#This Row],[Input 4]],'Customer Information'!$AR$12,1,ROW())>0,MeasureCalc(Table_PI[[#This Row],[Hide:\nFormula Name]],Table_PI[[#This Row],[Quantity]],Table_PI[[#This Row],[List 1]],Table_PI[[#This Row],[List 2]],Table_PI[[#This Row],[List 3]],Table_PI[[#This Row],[Size]],Table_PI[[#This Row],[Input 1]],Table_PI[[#This Row],[Input 2]],Table_PI[[#This Row],[Input 3]],Table_PI[[#This Row],[Input 4]],'Customer Information'!$AR$12,8,ROW()),\"No Rebate\"),\"No Rebate\"),0)","v":0},{"$f":"IF(Table_PI[[#This Row],[Hide:\nFormula Name]]<>\"\",IF(AND(Table_PI[[#This Row],[Hide:\nFormula Name]]<>\"\",OR(Table_PI[[#This Row],[Rebate]]>0,Table_PI[[#This Row],[Rebate]]=\"No Rebate\")),TRUE,\"MI: Line Item \" & $A32),\"\")","v":""}]
[{"$f":"IF(Table_PI[[#This Row],[Hide:\nFormula Name]]<>\"\",MAX($A$2:A32)+1,\"\")","v":""},null,null,null,null,null,null,null,null,null,null,null,null,null,null,{"$f":"IFERROR(VLOOKUP(Table_PI[[#This Row],[Measure]],'Equipment Lookups'!$C$3:$D$23,2,FALSE),\"\")","v":""},{"$f":"IF(Table_PI[[#This Row],[Hide:\nFormula Name]]<>\"\",IFERROR(IF(MeasureCalc(Table_PI[[#This Row],[Hide:\nFormula Name]],Table_PI[[#This Row],[Quantity]],Table_PI[[#This Row],[List 1]],Table_PI[[#This Row],[List 2]],Table_PI[[#This Row],[List 3]],Table_PI[[#This Row],[Size]],Table_PI[[#This Row],[Input 1]],Table_PI[[#This Row],[Input 2]],Table_PI[[#This Row],[Input 3]],Table_PI[[#This Row],[Input 4]],'Customer Information'!$AR$12,1,ROW())>0,MeasureCalc(Table_PI[[#This Row],[Hide:\nFormula Name]],Table_PI[[#This Row],[Quantity]],Table_PI[[#This Row],[List 1]],Table_PI[[#This Row],[List 2]],Table_PI[[#This Row],[List 3]],Table_PI[[#This Row],[Size]],Table_PI[[#This Row],[Input 1]],Table_PI[[#This Row],[Input 2]],Table_PI[[#This Row],[Input 3]],Table_PI[[#This Row],[Input 4]],'Customer Information'!$AR$12,1,ROW()),\"No Rebate\"),\"No Rebate\"),0)","v":0},{"$f":"IF(Table_PI[[#This Row],[Hide:\nFormula Name]]<>\"\",IFERROR(IF(MeasureCalc(Table_PI[[#This Row],[Hide:\nFormula Name]],Table_PI[[#This Row],[Quantity]],Table_PI[[#This Row],[List 1]],Table_PI[[#This Row],[List 2]],Table_PI[[#This Row],[List 3]],Table_PI[[#This Row],[Size]],Table_PI[[#This Row],[Input 1]],Table_PI[[#This Row],[Input 2]],Table_PI[[#This Row],[Input 3]],Table_PI[[#This Row],[Input 4]],'Customer Information'!$AR$12,1,ROW())>0,MeasureCalc(Table_PI[[#This Row],[Hide:\nFormula Name]],Table_PI[[#This Row],[Quantity]],Table_PI[[#This Row],[List 1]],Table_PI[[#This Row],[List 2]],Table_PI[[#This Row],[List 3]],Table_PI[[#This Row],[Size]],Table_PI[[#This Row],[Input 1]],Table_PI[[#This Row],[Input 2]],Table_PI[[#This Row],[Input 3]],Table_PI[[#This Row],[Input 4]],'Customer Information'!$AR$12,2,ROW()),\"No Rebate\"),\"No Rebate\"),0)","v":0},{"$f":"IF(Table_PI[[#This Row],[Hide:\nFormula Name]]<>\"\",IFERROR(IF(MeasureCalc(Table_PI[[#This Row],[Hide:\nFormula Name]],Table_PI[[#This Row],[Quantity]],Table_PI[[#This Row],[List 1]],Table_PI[[#This Row],[List 2]],Table_PI[[#This Row],[List 3]],Table_PI[[#This Row],[Size]],Table_PI[[#This Row],[Input 1]],Table_PI[[#This Row],[Input 2]],Table_PI[[#This Row],[Input 3]],Table_PI[[#This Row],[Input 4]],'Customer Information'!$AR$12,1,ROW())>0,MeasureCalc(Table_PI[[#This Row],[Hide:\nFormula Name]],Table_PI[[#This Row],[Quantity]],Table_PI[[#This Row],[List 1]],Table_PI[[#This Row],[List 2]],Table_PI[[#This Row],[List 3]],Table_PI[[#This Row],[Size]],Table_PI[[#This Row],[Input 1]],Table_PI[[#This Row],[Input 2]],Table_PI[[#This Row],[Input 3]],Table_PI[[#This Row],[Input 4]],'Customer Information'!$AR$12,3,ROW()),\"No Rebate\"),\"No Rebate\"),0)","v":0},{"$f":"IF(Table_PI[[#This Row],[Hide:\nFormula Name]]<>\"\",IFERROR(IF(MeasureCalc(Table_PI[[#This Row],[Hide:\nFormula Name]],Table_PI[[#This Row],[Quantity]],Table_PI[[#This Row],[List 1]],Table_PI[[#This Row],[List 2]],Table_PI[[#This Row],[List 3]],Table_PI[[#This Row],[Size]],Table_PI[[#This Row],[Input 1]],Table_PI[[#This Row],[Input 2]],Table_PI[[#This Row],[Input 3]],Table_PI[[#This Row],[Input 4]],'Customer Information'!$AR$12,1,ROW())>0,MeasureCalc(Table_PI[[#This Row],[Hide:\nFormula Name]],Table_PI[[#This Row],[Quantity]],Table_PI[[#This Row],[List 1]],Table_PI[[#This Row],[List 2]],Table_PI[[#This Row],[List 3]],Table_PI[[#This Row],[Size]],Table_PI[[#This Row],[Input 1]],Table_PI[[#This Row],[Input 2]],Table_PI[[#This Row],[Input 3]],Table_PI[[#This Row],[Input 4]],'Customer Information'!$AR$12,4,ROW()),\"No Rebate\"),\"No Rebate\"),0)","v":0},{"$f":"IF(Table_PI[[#This Row],[Hide:\nFormula Name]]<>\"\",IFERROR(IF(MeasureCalc(Table_PI[[#This Row],[Hide:\nFormula Name]],Table_PI[[#This Row],[Quantity]],Table_PI[[#This Row],[List 1]],Table_PI[[#This Row],[List 2]],Table_PI[[#This Row],[List 3]],Table_PI[[#This Row],[Size]],Table_PI[[#This Row],[Input 1]],Table_PI[[#This Row],[Input 2]],Table_PI[[#This Row],[Input 3]],Table_PI[[#This Row],[Input 4]],'Customer Information'!$AR$12,1,ROW())>0,MeasureCalc(Table_PI[[#This Row],[Hide:\nFormula Name]],Table_PI[[#This Row],[Quantity]],Table_PI[[#This Row],[List 1]],Table_PI[[#This Row],[List 2]],Table_PI[[#This Row],[List 3]],Table_PI[[#This Row],[Size]],Table_PI[[#This Row],[Input 1]],Table_PI[[#This Row],[Input 2]],Table_PI[[#This Row],[Input 3]],Table_PI[[#This Row],[Input 4]],'Customer Information'!$AR$12,5,ROW()),\"No Rebate\"),\"No Rebate\"),0)","v":0},{"$f":"IF(Table_PI[[#This Row],[Hide:\nFormula Name]]<>\"\",IFERROR(IF(MeasureCalc(Table_PI[[#This Row],[Hide:\nFormula Name]],Table_PI[[#This Row],[Quantity]],Table_PI[[#This Row],[List 1]],Table_PI[[#This Row],[List 2]],Table_PI[[#This Row],[List 3]],Table_PI[[#This Row],[Size]],Table_PI[[#This Row],[Input 1]],Table_PI[[#This Row],[Input 2]],Table_PI[[#This Row],[Input 3]],Table_PI[[#This Row],[Input 4]],'Customer Information'!$AR$12,1,ROW())>0,MeasureCalc(Table_PI[[#This Row],[Hide:\nFormula Name]],Table_PI[[#This Row],[Quantity]],Table_PI[[#This Row],[List 1]],Table_PI[[#This Row],[List 2]],Table_PI[[#This Row],[List 3]],Table_PI[[#This Row],[Size]],Table_PI[[#This Row],[Input 1]],Table_PI[[#This Row],[Input 2]],Table_PI[[#This Row],[Input 3]],Table_PI[[#This Row],[Input 4]],'Customer Information'!$AR$12,6,ROW()),\"No Rebate\"),\"No Rebate\"),0)","v":0},{"$f":"IF(Table_PI[[#This Row],[Hide:\nFormula Name]]<>\"\",IFERROR(IF(MeasureCalc(Table_PI[[#This Row],[Hide:\nFormula Name]],Table_PI[[#This Row],[Quantity]],Table_PI[[#This Row],[List 1]],Table_PI[[#This Row],[List 2]],Table_PI[[#This Row],[List 3]],Table_PI[[#This Row],[Size]],Table_PI[[#This Row],[Input 1]],Table_PI[[#This Row],[Input 2]],Table_PI[[#This Row],[Input 3]],Table_PI[[#This Row],[Input 4]],'Customer Information'!$AR$12,1,ROW())>0,MeasureCalc(Table_PI[[#This Row],[Hide:\nFormula Name]],Table_PI[[#This Row],[Quantity]],Table_PI[[#This Row],[List 1]],Table_PI[[#This Row],[List 2]],Table_PI[[#This Row],[List 3]],Table_PI[[#This Row],[Size]],Table_PI[[#This Row],[Input 1]],Table_PI[[#This Row],[Input 2]],Table_PI[[#This Row],[Input 3]],Table_PI[[#This Row],[Input 4]],'Customer Information'!$AR$12,7,ROW()),\"No Rebate\"),\"No Rebate\"),0)","v":0},{"$f":"IF(Table_PI[[#This Row],[Hide:\nFormula Name]]<>\"\",IFERROR(IF(MeasureCalc(Table_PI[[#This Row],[Hide:\nFormula Name]],Table_PI[[#This Row],[Quantity]],Table_PI[[#This Row],[List 1]],Table_PI[[#This Row],[List 2]],Table_PI[[#This Row],[List 3]],Table_PI[[#This Row],[Size]],Table_PI[[#This Row],[Input 1]],Table_PI[[#This Row],[Input 2]],Table_PI[[#This Row],[Input 3]],Table_PI[[#This Row],[Input 4]],'Customer Information'!$AR$12,1,ROW())>0,MeasureCalc(Table_PI[[#This Row],[Hide:\nFormula Name]],Table_PI[[#This Row],[Quantity]],Table_PI[[#This Row],[List 1]],Table_PI[[#This Row],[List 2]],Table_PI[[#This Row],[List 3]],Table_PI[[#This Row],[Size]],Table_PI[[#This Row],[Input 1]],Table_PI[[#This Row],[Input 2]],Table_PI[[#This Row],[Input 3]],Table_PI[[#This Row],[Input 4]],'Customer Information'!$AR$12,8,ROW()),\"No Rebate\"),\"No Rebate\"),0)","v":0},{"$f":"IF(Table_PI[[#This Row],[Hide:\nFormula Name]]<>\"\",IF(AND(Table_PI[[#This Row],[Hide:\nFormula Name]]<>\"\",OR(Table_PI[[#This Row],[Rebate]]>0,Table_PI[[#This Row],[Rebate]]=\"No Rebate\")),TRUE,\"MI: Line Item \" & $A33),\"\")","v":""}]
[{"$f":"IF(Table_PI[[#This Row],[Hide:\nFormula Name]]<>\"\",MAX($A$2:A33)+1,\"\")","v":""},null,null,null,null,null,null,null,null,null,null,null,null,null,null,{"$f":"IFERROR(VLOOKUP(Table_PI[[#This Row],[Measure]],'Equipment Lookups'!$C$3:$D$23,2,FALSE),\"\")","v":""},{"$f":"IF(Table_PI[[#This Row],[Hide:\nFormula Name]]<>\"\",IFERROR(IF(MeasureCalc(Table_PI[[#This Row],[Hide:\nFormula Name]],Table_PI[[#This Row],[Quantity]],Table_PI[[#This Row],[List 1]],Table_PI[[#This Row],[List 2]],Table_PI[[#This Row],[List 3]],Table_PI[[#This Row],[Size]],Table_PI[[#This Row],[Input 1]],Table_PI[[#This Row],[Input 2]],Table_PI[[#This Row],[Input 3]],Table_PI[[#This Row],[Input 4]],'Customer Information'!$AR$12,1,ROW())>0,MeasureCalc(Table_PI[[#This Row],[Hide:\nFormula Name]],Table_PI[[#This Row],[Quantity]],Table_PI[[#This Row],[List 1]],Table_PI[[#This Row],[List 2]],Table_PI[[#This Row],[List 3]],Table_PI[[#This Row],[Size]],Table_PI[[#This Row],[Input 1]],Table_PI[[#This Row],[Input 2]],Table_PI[[#This Row],[Input 3]],Table_PI[[#This Row],[Input 4]],'Customer Information'!$AR$12,1,ROW()),\"No Rebate\"),\"No Rebate\"),0)","v":0},{"$f":"IF(Table_PI[[#This Row],[Hide:\nFormula Name]]<>\"\",IFERROR(IF(MeasureCalc(Table_PI[[#This Row],[Hide:\nFormula Name]],Table_PI[[#This Row],[Quantity]],Table_PI[[#This Row],[List 1]],Table_PI[[#This Row],[List 2]],Table_PI[[#This Row],[List 3]],Table_PI[[#This Row],[Size]],Table_PI[[#This Row],[Input 1]],Table_PI[[#This Row],[Input 2]],Table_PI[[#This Row],[Input 3]],Table_PI[[#This Row],[Input 4]],'Customer Information'!$AR$12,1,ROW())>0,MeasureCalc(Table_PI[[#This Row],[Hide:\nFormula Name]],Table_PI[[#This Row],[Quantity]],Table_PI[[#This Row],[List 1]],Table_PI[[#This Row],[List 2]],Table_PI[[#This Row],[List 3]],Table_PI[[#This Row],[Size]],Table_PI[[#This Row],[Input 1]],Table_PI[[#This Row],[Input 2]],Table_PI[[#This Row],[Input 3]],Table_PI[[#This Row],[Input 4]],'Customer Information'!$AR$12,2,ROW()),\"No Rebate\"),\"No Rebate\"),0)","v":0},{"$f":"IF(Table_PI[[#This Row],[Hide:\nFormula Name]]<>\"\",IFERROR(IF(MeasureCalc(Table_PI[[#This Row],[Hide:\nFormula Name]],Table_PI[[#This Row],[Quantity]],Table_PI[[#This Row],[List 1]],Table_PI[[#This Row],[List 2]],Table_PI[[#This Row],[List 3]],Table_PI[[#This Row],[Size]],Table_PI[[#This Row],[Input 1]],Table_PI[[#This Row],[Input 2]],Table_PI[[#This Row],[Input 3]],Table_PI[[#This Row],[Input 4]],'Customer Information'!$AR$12,1,ROW())>0,MeasureCalc(Table_PI[[#This Row],[Hide:\nFormula Name]],Table_PI[[#This Row],[Quantity]],Table_PI[[#This Row],[List 1]],Table_PI[[#This Row],[List 2]],Table_PI[[#This Row],[List 3]],Table_PI[[#This Row],[Size]],Table_PI[[#This Row],[Input 1]],Table_PI[[#This Row],[Input 2]],Table_PI[[#This Row],[Input 3]],Table_PI[[#This Row],[Input 4]],'Customer Information'!$AR$12,3,ROW()),\"No Rebate\"),\"No Rebate\"),0)","v":0},{"$f":"IF(Table_PI[[#This Row],[Hide:\nFormula Name]]<>\"\",IFERROR(IF(MeasureCalc(Table_PI[[#This Row],[Hide:\nFormula Name]],Table_PI[[#This Row],[Quantity]],Table_PI[[#This Row],[List 1]],Table_PI[[#This Row],[List 2]],Table_PI[[#This Row],[List 3]],Table_PI[[#This Row],[Size]],Table_PI[[#This Row],[Input 1]],Table_PI[[#This Row],[Input 2]],Table_PI[[#This Row],[Input 3]],Table_PI[[#This Row],[Input 4]],'Customer Information'!$AR$12,1,ROW())>0,MeasureCalc(Table_PI[[#This Row],[Hide:\nFormula Name]],Table_PI[[#This Row],[Quantity]],Table_PI[[#This Row],[List 1]],Table_PI[[#This Row],[List 2]],Table_PI[[#This Row],[List 3]],Table_PI[[#This Row],[Size]],Table_PI[[#This Row],[Input 1]],Table_PI[[#This Row],[Input 2]],Table_PI[[#This Row],[Input 3]],Table_PI[[#This Row],[Input 4]],'Customer Information'!$AR$12,4,ROW()),\"No Rebate\"),\"No Rebate\"),0)","v":0},{"$f":"IF(Table_PI[[#This Row],[Hide:\nFormula Name]]<>\"\",IFERROR(IF(MeasureCalc(Table_PI[[#This Row],[Hide:\nFormula Name]],Table_PI[[#This Row],[Quantity]],Table_PI[[#This Row],[List 1]],Table_PI[[#This Row],[List 2]],Table_PI[[#This Row],[List 3]],Table_PI[[#This Row],[Size]],Table_PI[[#This Row],[Input 1]],Table_PI[[#This Row],[Input 2]],Table_PI[[#This Row],[Input 3]],Table_PI[[#This Row],[Input 4]],'Customer Information'!$AR$12,1,ROW())>0,MeasureCalc(Table_PI[[#This Row],[Hide:\nFormula Name]],Table_PI[[#This Row],[Quantity]],Table_PI[[#This Row],[List 1]],Table_PI[[#This Row],[List 2]],Table_PI[[#This Row],[List 3]],Table_PI[[#This Row],[Size]],Table_PI[[#This Row],[Input 1]],Table_PI[[#This Row],[Input 2]],Table_PI[[#This Row],[Input 3]],Table_PI[[#This Row],[Input 4]],'Customer Information'!$AR$12,5,ROW()),\"No Rebate\"),\"No Rebate\"),0)","v":0},{"$f":"IF(Table_PI[[#This Row],[Hide:\nFormula Name]]<>\"\",IFERROR(IF(MeasureCalc(Table_PI[[#This Row],[Hide:\nFormula Name]],Table_PI[[#This Row],[Quantity]],Table_PI[[#This Row],[List 1]],Table_PI[[#This Row],[List 2]],Table_PI[[#This Row],[List 3]],Table_PI[[#This Row],[Size]],Table_PI[[#This Row],[Input 1]],Table_PI[[#This Row],[Input 2]],Table_PI[[#This Row],[Input 3]],Table_PI[[#This Row],[Input 4]],'Customer Information'!$AR$12,1,ROW())>0,MeasureCalc(Table_PI[[#This Row],[Hide:\nFormula Name]],Table_PI[[#This Row],[Quantity]],Table_PI[[#This Row],[List 1]],Table_PI[[#This Row],[List 2]],Table_PI[[#This Row],[List 3]],Table_PI[[#This Row],[Size]],Table_PI[[#This Row],[Input 1]],Table_PI[[#This Row],[Input 2]],Table_PI[[#This Row],[Input 3]],Table_PI[[#This Row],[Input 4]],'Customer Information'!$AR$12,6,ROW()),\"No Rebate\"),\"No Rebate\"),0)","v":0},{"$f":"IF(Table_PI[[#This Row],[Hide:\nFormula Name]]<>\"\",IFERROR(IF(MeasureCalc(Table_PI[[#This Row],[Hide:\nFormula Name]],Table_PI[[#This Row],[Quantity]],Table_PI[[#This Row],[List 1]],Table_PI[[#This Row],[List 2]],Table_PI[[#This Row],[List 3]],Table_PI[[#This Row],[Size]],Table_PI[[#This Row],[Input 1]],Table_PI[[#This Row],[Input 2]],Table_PI[[#This Row],[Input 3]],Table_PI[[#This Row],[Input 4]],'Customer Information'!$AR$12,1,ROW())>0,MeasureCalc(Table_PI[[#This Row],[Hide:\nFormula Name]],Table_PI[[#This Row],[Quantity]],Table_PI[[#This Row],[List 1]],Table_PI[[#This Row],[List 2]],Table_PI[[#This Row],[List 3]],Table_PI[[#This Row],[Size]],Table_PI[[#This Row],[Input 1]],Table_PI[[#This Row],[Input 2]],Table_PI[[#This Row],[Input 3]],Table_PI[[#This Row],[Input 4]],'Customer Information'!$AR$12,7,ROW()),\"No Rebate\"),\"No Rebate\"),0)","v":0},{"$f":"IF(Table_PI[[#This Row],[Hide:\nFormula Name]]<>\"\",IFERROR(IF(MeasureCalc(Table_PI[[#This Row],[Hide:\nFormula Name]],Table_PI[[#This Row],[Quantity]],Table_PI[[#This Row],[List 1]],Table_PI[[#This Row],[List 2]],Table_PI[[#This Row],[List 3]],Table_PI[[#This Row],[Size]],Table_PI[[#This Row],[Input 1]],Table_PI[[#This Row],[Input 2]],Table_PI[[#This Row],[Input 3]],Table_PI[[#This Row],[Input 4]],'Customer Information'!$AR$12,1,ROW())>0,MeasureCalc(Table_PI[[#This Row],[Hide:\nFormula Name]],Table_PI[[#This Row],[Quantity]],Table_PI[[#This Row],[List 1]],Table_PI[[#This Row],[List 2]],Table_PI[[#This Row],[List 3]],Table_PI[[#This Row],[Size]],Table_PI[[#This Row],[Input 1]],Table_PI[[#This Row],[Input 2]],Table_PI[[#This Row],[Input 3]],Table_PI[[#This Row],[Input 4]],'Customer Information'!$AR$12,8,ROW()),\"No Rebate\"),\"No Rebate\"),0)","v":0},{"$f":"IF(Table_PI[[#This Row],[Hide:\nFormula Name]]<>\"\",IF(AND(Table_PI[[#This Row],[Hide:\nFormula Name]]<>\"\",OR(Table_PI[[#This Row],[Rebate]]>0,Table_PI[[#This Row],[Rebate]]=\"No Rebate\")),TRUE,\"MI: Line Item \" & $A34),\"\")","v":""}]
[{"$f":"IF(Table_PI[[#This Row],[Hide:\nFormula Name]]<>\"\",MAX($A$2:A34)+1,\"\")","v":""},null,null,null,null,null,null,null,null,null,null,null,null,null,null,{"$f":"IFERROR(VLOOKUP(Table_PI[[#This Row],[Measure]],'Equipment Lookups'!$C$3:$D$23,2,FALSE),\"\")","v":""},{"$f":"IF(Table_PI[[#This Row],[Hide:\nFormula Name]]<>\"\",IFERROR(IF(MeasureCalc(Table_PI[[#This Row],[Hide:\nFormula Name]],Table_PI[[#This Row],[Quantity]],Table_PI[[#This Row],[List 1]],Table_PI[[#This Row],[List 2]],Table_PI[[#This Row],[List 3]],Table_PI[[#This Row],[Size]],Table_PI[[#This Row],[Input 1]],Table_PI[[#This Row],[Input 2]],Table_PI[[#This Row],[Input 3]],Table_PI[[#This Row],[Input 4]],'Customer Information'!$AR$12,1,ROW())>0,MeasureCalc(Table_PI[[#This Row],[Hide:\nFormula Name]],Table_PI[[#This Row],[Quantity]],Table_PI[[#This Row],[List 1]],Table_PI[[#This Row],[List 2]],Table_PI[[#This Row],[List 3]],Table_PI[[#This Row],[Size]],Table_PI[[#This Row],[Input 1]],Table_PI[[#This Row],[Input 2]],Table_PI[[#This Row],[Input 3]],Table_PI[[#This Row],[Input 4]],'Customer Information'!$AR$12,1,ROW()),\"No Rebate\"),\"No Rebate\"),0)","v":0},{"$f":"IF(Table_PI[[#This Row],[Hide:\nFormula Name]]<>\"\",IFERROR(IF(MeasureCalc(Table_PI[[#This Row],[Hide:\nFormula Name]],Table_PI[[#This Row],[Quantity]],Table_PI[[#This Row],[List 1]],Table_PI[[#This Row],[List 2]],Table_PI[[#This Row],[List 3]],Table_PI[[#This Row],[Size]],Table_PI[[#This Row],[Input 1]],Table_PI[[#This Row],[Input 2]],Table_PI[[#This Row],[Input 3]],Table_PI[[#This Row],[Input 4]],'Customer Information'!$AR$12,1,ROW())>0,MeasureCalc(Table_PI[[#This Row],[Hide:\nFormula Name]],Table_PI[[#This Row],[Quantity]],Table_PI[[#This Row],[List 1]],Table_PI[[#This Row],[List 2]],Table_PI[[#This Row],[List 3]],Table_PI[[#This Row],[Size]],Table_PI[[#This Row],[Input 1]],Table_PI[[#This Row],[Input 2]],Table_PI[[#This Row],[Input 3]],Table_PI[[#This Row],[Input 4]],'Customer Information'!$AR$12,2,ROW()),\"No Rebate\"),\"No Rebate\"),0)","v":0},{"$f":"IF(Table_PI[[#This Row],[Hide:\nFormula Name]]<>\"\",IFERROR(IF(MeasureCalc(Table_PI[[#This Row],[Hide:\nFormula Name]],Table_PI[[#This Row],[Quantity]],Table_PI[[#This Row],[List 1]],Table_PI[[#This Row],[List 2]],Table_PI[[#This Row],[List 3]],Table_PI[[#This Row],[Size]],Table_PI[[#This Row],[Input 1]],Table_PI[[#This Row],[Input 2]],Table_PI[[#This Row],[Input 3]],Table_PI[[#This Row],[Input 4]],'Customer Information'!$AR$12,1,ROW())>0,MeasureCalc(Table_PI[[#This Row],[Hide:\nFormula Name]],Table_PI[[#This Row],[Quantity]],Table_PI[[#This Row],[List 1]],Table_PI[[#This Row],[List 2]],Table_PI[[#This Row],[List 3]],Table_PI[[#This Row],[Size]],Table_PI[[#This Row],[Input 1]],Table_PI[[#This Row],[Input 2]],Table_PI[[#This Row],[Input 3]],Table_PI[[#This Row],[Input 4]],'Customer Information'!$AR$12,3,ROW()),\"No Rebate\"),\"No Rebate\"),0)","v":0},{"$f":"IF(Table_PI[[#This Row],[Hide:\nFormula Name]]<>\"\",IFERROR(IF(MeasureCalc(Table_PI[[#This Row],[Hide:\nFormula Name]],Table_PI[[#This Row],[Quantity]],Table_PI[[#This Row],[List 1]],Table_PI[[#This Row],[List 2]],Table_PI[[#This Row],[List 3]],Table_PI[[#This Row],[Size]],Table_PI[[#This Row],[Input 1]],Table_PI[[#This Row],[Input 2]],Table_PI[[#This Row],[Input 3]],Table_PI[[#This Row],[Input 4]],'Customer Information'!$AR$12,1,ROW())>0,MeasureCalc(Table_PI[[#This Row],[Hide:\nFormula Name]],Table_PI[[#This Row],[Quantity]],Table_PI[[#This Row],[List 1]],Table_PI[[#This Row],[List 2]],Table_PI[[#This Row],[List 3]],Table_PI[[#This Row],[Size]],Table_PI[[#This Row],[Input 1]],Table_PI[[#This Row],[Input 2]],Table_PI[[#This Row],[Input 3]],Table_PI[[#This Row],[Input 4]],'Customer Information'!$AR$12,4,ROW()),\"No Rebate\"),\"No Rebate\"),0)","v":0},{"$f":"IF(Table_PI[[#This Row],[Hide:\nFormula Name]]<>\"\",IFERROR(IF(MeasureCalc(Table_PI[[#This Row],[Hide:\nFormula Name]],Table_PI[[#This Row],[Quantity]],Table_PI[[#This Row],[List 1]],Table_PI[[#This Row],[List 2]],Table_PI[[#This Row],[List 3]],Table_PI[[#This Row],[Size]],Table_PI[[#This Row],[Input 1]],Table_PI[[#This Row],[Input 2]],Table_PI[[#This Row],[Input 3]],Table_PI[[#This Row],[Input 4]],'Customer Information'!$AR$12,1,ROW())>0,MeasureCalc(Table_PI[[#This Row],[Hide:\nFormula Name]],Table_PI[[#This Row],[Quantity]],Table_PI[[#This Row],[List 1]],Table_PI[[#This Row],[List 2]],Table_PI[[#This Row],[List 3]],Table_PI[[#This Row],[Size]],Table_PI[[#This Row],[Input 1]],Table_PI[[#This Row],[Input 2]],Table_PI[[#This Row],[Input 3]],Table_PI[[#This Row],[Input 4]],'Customer Information'!$AR$12,5,ROW()),\"No Rebate\"),\"No Rebate\"),0)","v":0},{"$f":"IF(Table_PI[[#This Row],[Hide:\nFormula Name]]<>\"\",IFERROR(IF(MeasureCalc(Table_PI[[#This Row],[Hide:\nFormula Name]],Table_PI[[#This Row],[Quantity]],Table_PI[[#This Row],[List 1]],Table_PI[[#This Row],[List 2]],Table_PI[[#This Row],[List 3]],Table_PI[[#This Row],[Size]],Table_PI[[#This Row],[Input 1]],Table_PI[[#This Row],[Input 2]],Table_PI[[#This Row],[Input 3]],Table_PI[[#This Row],[Input 4]],'Customer Information'!$AR$12,1,ROW())>0,MeasureCalc(Table_PI[[#This Row],[Hide:\nFormula Name]],Table_PI[[#This Row],[Quantity]],Table_PI[[#This Row],[List 1]],Table_PI[[#This Row],[List 2]],Table_PI[[#This Row],[List 3]],Table_PI[[#This Row],[Size]],Table_PI[[#This Row],[Input 1]],Table_PI[[#This Row],[Input 2]],Table_PI[[#This Row],[Input 3]],Table_PI[[#This Row],[Input 4]],'Customer Information'!$AR$12,6,ROW()),\"No Rebate\"),\"No Rebate\"),0)","v":0},{"$f":"IF(Table_PI[[#This Row],[Hide:\nFormula Name]]<>\"\",IFERROR(IF(MeasureCalc(Table_PI[[#This Row],[Hide:\nFormula Name]],Table_PI[[#This Row],[Quantity]],Table_PI[[#This Row],[List 1]],Table_PI[[#This Row],[List 2]],Table_PI[[#This Row],[List 3]],Table_PI[[#This Row],[Size]],Table_PI[[#This Row],[Input 1]],Table_PI[[#This Row],[Input 2]],Table_PI[[#This Row],[Input 3]],Table_PI[[#This Row],[Input 4]],'Customer Information'!$AR$12,1,ROW())>0,MeasureCalc(Table_PI[[#This Row],[Hide:\nFormula Name]],Table_PI[[#This Row],[Quantity]],Table_PI[[#This Row],[List 1]],Table_PI[[#This Row],[List 2]],Table_PI[[#This Row],[List 3]],Table_PI[[#This Row],[Size]],Table_PI[[#This Row],[Input 1]],Table_PI[[#This Row],[Input 2]],Table_PI[[#This Row],[Input 3]],Table_PI[[#This Row],[Input 4]],'Customer Information'!$AR$12,7,ROW()),\"No Rebate\"),\"No Rebate\"),0)","v":0},{"$f":"IF(Table_PI[[#This Row],[Hide:\nFormula Name]]<>\"\",IFERROR(IF(MeasureCalc(Table_PI[[#This Row],[Hide:\nFormula Name]],Table_PI[[#This Row],[Quantity]],Table_PI[[#This Row],[List 1]],Table_PI[[#This Row],[List 2]],Table_PI[[#This Row],[List 3]],Table_PI[[#This Row],[Size]],Table_PI[[#This Row],[Input 1]],Table_PI[[#This Row],[Input 2]],Table_PI[[#This Row],[Input 3]],Table_PI[[#This Row],[Input 4]],'Customer Information'!$AR$12,1,ROW())>0,MeasureCalc(Table_PI[[#This Row],[Hide:\nFormula Name]],Table_PI[[#This Row],[Quantity]],Table_PI[[#This Row],[List 1]],Table_PI[[#This Row],[List 2]],Table_PI[[#This Row],[List 3]],Table_PI[[#This Row],[Size]],Table_PI[[#This Row],[Input 1]],Table_PI[[#This Row],[Input 2]],Table_PI[[#This Row],[Input 3]],Table_PI[[#This Row],[Input 4]],'Customer Information'!$AR$12,8,ROW()),\"No Rebate\"),\"No Rebate\"),0)","v":0},{"$f":"IF(Table_PI[[#This Row],[Hide:\nFormula Name]]<>\"\",IF(AND(Table_PI[[#This Row],[Hide:\nFormula Name]]<>\"\",OR(Table_PI[[#This Row],[Rebate]]>0,Table_PI[[#This Row],[Rebate]]=\"No Rebate\")),TRUE,\"MI: Line Item \" & $A35),\"\")","v":""}]
[{"$f":"IF(Table_PI[[#This Row],[Hide:\nFormula Name]]<>\"\",MAX($A$2:A35)+1,\"\")","v":""},null,null,null,null,null,null,null,null,null,null,null,null,null,null,{"$f":"IFERROR(VLOOKUP(Table_PI[[#This Row],[Measure]],'Equipment Lookups'!$C$3:$D$23,2,FALSE),\"\")","v":""},{"$f":"IF(Table_PI[[#This Row],[Hide:\nFormula Name]]<>\"\",IFERROR(IF(MeasureCalc(Table_PI[[#This Row],[Hide:\nFormula Name]],Table_PI[[#This Row],[Quantity]],Table_PI[[#This Row],[List 1]],Table_PI[[#This Row],[List 2]],Table_PI[[#This Row],[List 3]],Table_PI[[#This Row],[Size]],Table_PI[[#This Row],[Input 1]],Table_PI[[#This Row],[Input 2]],Table_PI[[#This Row],[Input 3]],Table_PI[[#This Row],[Input 4]],'Customer Information'!$AR$12,1,ROW())>0,MeasureCalc(Table_PI[[#This Row],[Hide:\nFormula Name]],Table_PI[[#This Row],[Quantity]],Table_PI[[#This Row],[List 1]],Table_PI[[#This Row],[List 2]],Table_PI[[#This Row],[List 3]],Table_PI[[#This Row],[Size]],Table_PI[[#This Row],[Input 1]],Table_PI[[#This Row],[Input 2]],Table_PI[[#This Row],[Input 3]],Table_PI[[#This Row],[Input 4]],'Customer Information'!$AR$12,1,ROW()),\"No Rebate\"),\"No Rebate\"),0)","v":0},{"$f":"IF(Table_PI[[#This Row],[Hide:\nFormula Name]]<>\"\",IFERROR(IF(MeasureCalc(Table_PI[[#This Row],[Hide:\nFormula Name]],Table_PI[[#This Row],[Quantity]],Table_PI[[#This Row],[List 1]],Table_PI[[#This Row],[List 2]],Table_PI[[#This Row],[List 3]],Table_PI[[#This Row],[Size]],Table_PI[[#This Row],[Input 1]],Table_PI[[#This Row],[Input 2]],Table_PI[[#This Row],[Input 3]],Table_PI[[#This Row],[Input 4]],'Customer Information'!$AR$12,1,ROW())>0,MeasureCalc(Table_PI[[#This Row],[Hide:\nFormula Name]],Table_PI[[#This Row],[Quantity]],Table_PI[[#This Row],[List 1]],Table_PI[[#This Row],[List 2]],Table_PI[[#This Row],[List 3]],Table_PI[[#This Row],[Size]],Table_PI[[#This Row],[Input 1]],Table_PI[[#This Row],[Input 2]],Table_PI[[#This Row],[Input 3]],Table_PI[[#This Row],[Input 4]],'Customer Information'!$AR$12,2,ROW()),\"No Rebate\"),\"No Rebate\"),0)","v":0},{"$f":"IF(Table_PI[[#This Row],[Hide:\nFormula Name]]<>\"\",IFERROR(IF(MeasureCalc(Table_PI[[#This Row],[Hide:\nFormula Name]],Table_PI[[#This Row],[Quantity]],Table_PI[[#This Row],[List 1]],Table_PI[[#This Row],[List 2]],Table_PI[[#This Row],[List 3]],Table_PI[[#This Row],[Size]],Table_PI[[#This Row],[Input 1]],Table_PI[[#This Row],[Input 2]],Table_PI[[#This Row],[Input 3]],Table_PI[[#This Row],[Input 4]],'Customer Information'!$AR$12,1,ROW())>0,MeasureCalc(Table_PI[[#This Row],[Hide:\nFormula Name]],Table_PI[[#This Row],[Quantity]],Table_PI[[#This Row],[List 1]],Table_PI[[#This Row],[List 2]],Table_PI[[#This Row],[List 3]],Table_PI[[#This Row],[Size]],Table_PI[[#This Row],[Input 1]],Table_PI[[#This Row],[Input 2]],Table_PI[[#This Row],[Input 3]],Table_PI[[#This Row],[Input 4]],'Customer Information'!$AR$12,3,ROW()),\"No Rebate\"),\"No Rebate\"),0)","v":0},{"$f":"IF(Table_PI[[#This Row],[Hide:\nFormula Name]]<>\"\",IFERROR(IF(MeasureCalc(Table_PI[[#This Row],[Hide:\nFormula Name]],Table_PI[[#This Row],[Quantity]],Table_PI[[#This Row],[List 1]],Table_PI[[#This Row],[List 2]],Table_PI[[#This Row],[List 3]],Table_PI[[#This Row],[Size]],Table_PI[[#This Row],[Input 1]],Table_PI[[#This Row],[Input 2]],Table_PI[[#This Row],[Input 3]],Table_PI[[#This Row],[Input 4]],'Customer Information'!$AR$12,1,ROW())>0,MeasureCalc(Table_PI[[#This Row],[Hide:\nFormula Name]],Table_PI[[#This Row],[Quantity]],Table_PI[[#This Row],[List 1]],Table_PI[[#This Row],[List 2]],Table_PI[[#This Row],[List 3]],Table_PI[[#This Row],[Size]],Table_PI[[#This Row],[Input 1]],Table_PI[[#This Row],[Input 2]],Table_PI[[#This Row],[Input 3]],Table_PI[[#This Row],[Input 4]],'Customer Information'!$AR$12,4,ROW()),\"No Rebate\"),\"No Rebate\"),0)","v":0},{"$f":"IF(Table_PI[[#This Row],[Hide:\nFormula Name]]<>\"\",IFERROR(IF(MeasureCalc(Table_PI[[#This Row],[Hide:\nFormula Name]],Table_PI[[#This Row],[Quantity]],Table_PI[[#This Row],[List 1]],Table_PI[[#This Row],[List 2]],Table_PI[[#This Row],[List 3]],Table_PI[[#This Row],[Size]],Table_PI[[#This Row],[Input 1]],Table_PI[[#This Row],[Input 2]],Table_PI[[#This Row],[Input 3]],Table_PI[[#This Row],[Input 4]],'Customer Information'!$AR$12,1,ROW())>0,MeasureCalc(Table_PI[[#This Row],[Hide:\nFormula Name]],Table_PI[[#This Row],[Quantity]],Table_PI[[#This Row],[List 1]],Table_PI[[#This Row],[List 2]],Table_PI[[#This Row],[List 3]],Table_PI[[#This Row],[Size]],Table_PI[[#This Row],[Input 1]],Table_PI[[#This Row],[Input 2]],Table_PI[[#This Row],[Input 3]],Table_PI[[#This Row],[Input 4]],'Customer Information'!$AR$12,5,ROW()),\"No Rebate\"),\"No Rebate\"),0)","v":0},{"$f":"IF(Table_PI[[#This Row],[Hide:\nFormula Name]]<>\"\",IFERROR(IF(MeasureCalc(Table_PI[[#This Row],[Hide:\nFormula Name]],Table_PI[[#This Row],[Quantity]],Table_PI[[#This Row],[List 1]],Table_PI[[#This Row],[List 2]],Table_PI[[#This Row],[List 3]],Table_PI[[#This Row],[Size]],Table_PI[[#This Row],[Input 1]],Table_PI[[#This Row],[Input 2]],Table_PI[[#This Row],[Input 3]],Table_PI[[#This Row],[Input 4]],'Customer Information'!$AR$12,1,ROW())>0,MeasureCalc(Table_PI[[#This Row],[Hide:\nFormula Name]],Table_PI[[#This Row],[Quantity]],Table_PI[[#This Row],[List 1]],Table_PI[[#This Row],[List 2]],Table_PI[[#This Row],[List 3]],Table_PI[[#This Row],[Size]],Table_PI[[#This Row],[Input 1]],Table_PI[[#This Row],[Input 2]],Table_PI[[#This Row],[Input 3]],Table_PI[[#This Row],[Input 4]],'Customer Information'!$AR$12,6,ROW()),\"No Rebate\"),\"No Rebate\"),0)","v":0},{"$f":"IF(Table_PI[[#This Row],[Hide:\nFormula Name]]<>\"\",IFERROR(IF(MeasureCalc(Table_PI[[#This Row],[Hide:\nFormula Name]],Table_PI[[#This Row],[Quantity]],Table_PI[[#This Row],[List 1]],Table_PI[[#This Row],[List 2]],Table_PI[[#This Row],[List 3]],Table_PI[[#This Row],[Size]],Table_PI[[#This Row],[Input 1]],Table_PI[[#This Row],[Input 2]],Table_PI[[#This Row],[Input 3]],Table_PI[[#This Row],[Input 4]],'Customer Information'!$AR$12,1,ROW())>0,MeasureCalc(Table_PI[[#This Row],[Hide:\nFormula Name]],Table_PI[[#This Row],[Quantity]],Table_PI[[#This Row],[List 1]],Table_PI[[#This Row],[List 2]],Table_PI[[#This Row],[List 3]],Table_PI[[#This Row],[Size]],Table_PI[[#This Row],[Input 1]],Table_PI[[#This Row],[Input 2]],Table_PI[[#This Row],[Input 3]],Table_PI[[#This Row],[Input 4]],'Customer Information'!$AR$12,7,ROW()),\"No Rebate\"),\"No Rebate\"),0)","v":0},{"$f":"IF(Table_PI[[#This Row],[Hide:\nFormula Name]]<>\"\",IFERROR(IF(MeasureCalc(Table_PI[[#This Row],[Hide:\nFormula Name]],Table_PI[[#This Row],[Quantity]],Table_PI[[#This Row],[List 1]],Table_PI[[#This Row],[List 2]],Table_PI[[#This Row],[List 3]],Table_PI[[#This Row],[Size]],Table_PI[[#This Row],[Input 1]],Table_PI[[#This Row],[Input 2]],Table_PI[[#This Row],[Input 3]],Table_PI[[#This Row],[Input 4]],'Customer Information'!$AR$12,1,ROW())>0,MeasureCalc(Table_PI[[#This Row],[Hide:\nFormula Name]],Table_PI[[#This Row],[Quantity]],Table_PI[[#This Row],[List 1]],Table_PI[[#This Row],[List 2]],Table_PI[[#This Row],[List 3]],Table_PI[[#This Row],[Size]],Table_PI[[#This Row],[Input 1]],Table_PI[[#This Row],[Input 2]],Table_PI[[#This Row],[Input 3]],Table_PI[[#This Row],[Input 4]],'Customer Information'!$AR$12,8,ROW()),\"No Rebate\"),\"No Rebate\"),0)","v":0},{"$f":"IF(Table_PI[[#This Row],[Hide:\nFormula Name]]<>\"\",IF(AND(Table_PI[[#This Row],[Hide:\nFormula Name]]<>\"\",OR(Table_PI[[#This Row],[Rebate]]>0,Table_PI[[#This Row],[Rebate]]=\"No Rebate\")),TRUE,\"MI: Line Item \" & $A36),\"\")","v":""}]
[{"$f":"IF(Table_PI[[#This Row],[Hide:\nFormula Name]]<>\"\",MAX($A$2:A36)+1,\"\")","v":""},null,null,null,null,null,null,null,null,null,null,null,null,null,null,{"$f":"IFERROR(VLOOKUP(Table_PI[[#This Row],[Measure]],'Equipment Lookups'!$C$3:$D$23,2,FALSE),\"\")","v":""},{"$f":"IF(Table_PI[[#This Row],[Hide:\nFormula Name]]<>\"\",IFERROR(IF(MeasureCalc(Table_PI[[#This Row],[Hide:\nFormula Name]],Table_PI[[#This Row],[Quantity]],Table_PI[[#This Row],[List 1]],Table_PI[[#This Row],[List 2]],Table_PI[[#This Row],[List 3]],Table_PI[[#This Row],[Size]],Table_PI[[#This Row],[Input 1]],Table_PI[[#This Row],[Input 2]],Table_PI[[#This Row],[Input 3]],Table_PI[[#This Row],[Input 4]],'Customer Information'!$AR$12,1,ROW())>0,MeasureCalc(Table_PI[[#This Row],[Hide:\nFormula Name]],Table_PI[[#This Row],[Quantity]],Table_PI[[#This Row],[List 1]],Table_PI[[#This Row],[List 2]],Table_PI[[#This Row],[List 3]],Table_PI[[#This Row],[Size]],Table_PI[[#This Row],[Input 1]],Table_PI[[#This Row],[Input 2]],Table_PI[[#This Row],[Input 3]],Table_PI[[#This Row],[Input 4]],'Customer Information'!$AR$12,1,ROW()),\"No Rebate\"),\"No Rebate\"),0)","v":0},{"$f":"IF(Table_PI[[#This Row],[Hide:\nFormula Name]]<>\"\",IFERROR(IF(MeasureCalc(Table_PI[[#This Row],[Hide:\nFormula Name]],Table_PI[[#This Row],[Quantity]],Table_PI[[#This Row],[List 1]],Table_PI[[#This Row],[List 2]],Table_PI[[#This Row],[List 3]],Table_PI[[#This Row],[Size]],Table_PI[[#This Row],[Input 1]],Table_PI[[#This Row],[Input 2]],Table_PI[[#This Row],[Input 3]],Table_PI[[#This Row],[Input 4]],'Customer Information'!$AR$12,1,ROW())>0,MeasureCalc(Table_PI[[#This Row],[Hide:\nFormula Name]],Table_PI[[#This Row],[Quantity]],Table_PI[[#This Row],[List 1]],Table_PI[[#This Row],[List 2]],Table_PI[[#This Row],[List 3]],Table_PI[[#This Row],[Size]],Table_PI[[#This Row],[Input 1]],Table_PI[[#This Row],[Input 2]],Table_PI[[#This Row],[Input 3]],Table_PI[[#This Row],[Input 4]],'Customer Information'!$AR$12,2,ROW()),\"No Rebate\"),\"No Rebate\"),0)","v":0},{"$f":"IF(Table_PI[[#This Row],[Hide:\nFormula Name]]<>\"\",IFERROR(IF(MeasureCalc(Table_PI[[#This Row],[Hide:\nFormula Name]],Table_PI[[#This Row],[Quantity]],Table_PI[[#This Row],[List 1]],Table_PI[[#This Row],[List 2]],Table_PI[[#This Row],[List 3]],Table_PI[[#This Row],[Size]],Table_PI[[#This Row],[Input 1]],Table_PI[[#This Row],[Input 2]],Table_PI[[#This Row],[Input 3]],Table_PI[[#This Row],[Input 4]],'Customer Information'!$AR$12,1,ROW())>0,MeasureCalc(Table_PI[[#This Row],[Hide:\nFormula Name]],Table_PI[[#This Row],[Quantity]],Table_PI[[#This Row],[List 1]],Table_PI[[#This Row],[List 2]],Table_PI[[#This Row],[List 3]],Table_PI[[#This Row],[Size]],Table_PI[[#This Row],[Input 1]],Table_PI[[#This Row],[Input 2]],Table_PI[[#This Row],[Input 3]],Table_PI[[#This Row],[Input 4]],'Customer Information'!$AR$12,3,ROW()),\"No Rebate\"),\"No Rebate\"),0)","v":0},{"$f":"IF(Table_PI[[#This Row],[Hide:\nFormula Name]]<>\"\",IFERROR(IF(MeasureCalc(Table_PI[[#This Row],[Hide:\nFormula Name]],Table_PI[[#This Row],[Quantity]],Table_PI[[#This Row],[List 1]],Table_PI[[#This Row],[List 2]],Table_PI[[#This Row],[List 3]],Table_PI[[#This Row],[Size]],Table_PI[[#This Row],[Input 1]],Table_PI[[#This Row],[Input 2]],Table_PI[[#This Row],[Input 3]],Table_PI[[#This Row],[Input 4]],'Customer Information'!$AR$12,1,ROW())>0,MeasureCalc(Table_PI[[#This Row],[Hide:\nFormula Name]],Table_PI[[#This Row],[Quantity]],Table_PI[[#This Row],[List 1]],Table_PI[[#This Row],[List 2]],Table_PI[[#This Row],[List 3]],Table_PI[[#This Row],[Size]],Table_PI[[#This Row],[Input 1]],Table_PI[[#This Row],[Input 2]],Table_PI[[#This Row],[Input 3]],Table_PI[[#This Row],[Input 4]],'Customer Information'!$AR$12,4,ROW()),\"No Rebate\"),\"No Rebate\"),0)","v":0},{"$f":"IF(Table_PI[[#This Row],[Hide:\nFormula Name]]<>\"\",IFERROR(IF(MeasureCalc(Table_PI[[#This Row],[Hide:\nFormula Name]],Table_PI[[#This Row],[Quantity]],Table_PI[[#This Row],[List 1]],Table_PI[[#This Row],[List 2]],Table_PI[[#This Row],[List 3]],Table_PI[[#This Row],[Size]],Table_PI[[#This Row],[Input 1]],Table_PI[[#This Row],[Input 2]],Table_PI[[#This Row],[Input 3]],Table_PI[[#This Row],[Input 4]],'Customer Information'!$AR$12,1,ROW())>0,MeasureCalc(Table_PI[[#This Row],[Hide:\nFormula Name]],Table_PI[[#This Row],[Quantity]],Table_PI[[#This Row],[List 1]],Table_PI[[#This Row],[List 2]],Table_PI[[#This Row],[List 3]],Table_PI[[#This Row],[Size]],Table_PI[[#This Row],[Input 1]],Table_PI[[#This Row],[Input 2]],Table_PI[[#This Row],[Input 3]],Table_PI[[#This Row],[Input 4]],'Customer Information'!$AR$12,5,ROW()),\"No Rebate\"),\"No Rebate\"),0)","v":0},{"$f":"IF(Table_PI[[#This Row],[Hide:\nFormula Name]]<>\"\",IFERROR(IF(MeasureCalc(Table_PI[[#This Row],[Hide:\nFormula Name]],Table_PI[[#This Row],[Quantity]],Table_PI[[#This Row],[List 1]],Table_PI[[#This Row],[List 2]],Table_PI[[#This Row],[List 3]],Table_PI[[#This Row],[Size]],Table_PI[[#This Row],[Input 1]],Table_PI[[#This Row],[Input 2]],Table_PI[[#This Row],[Input 3]],Table_PI[[#This Row],[Input 4]],'Customer Information'!$AR$12,1,ROW())>0,MeasureCalc(Table_PI[[#This Row],[Hide:\nFormula Name]],Table_PI[[#This Row],[Quantity]],Table_PI[[#This Row],[List 1]],Table_PI[[#This Row],[List 2]],Table_PI[[#This Row],[List 3]],Table_PI[[#This Row],[Size]],Table_PI[[#This Row],[Input 1]],Table_PI[[#This Row],[Input 2]],Table_PI[[#This Row],[Input 3]],Table_PI[[#This Row],[Input 4]],'Customer Information'!$AR$12,6,ROW()),\"No Rebate\"),\"No Rebate\"),0)","v":0},{"$f":"IF(Table_PI[[#This Row],[Hide:\nFormula Name]]<>\"\",IFERROR(IF(MeasureCalc(Table_PI[[#This Row],[Hide:\nFormula Name]],Table_PI[[#This Row],[Quantity]],Table_PI[[#This Row],[List 1]],Table_PI[[#This Row],[List 2]],Table_PI[[#This Row],[List 3]],Table_PI[[#This Row],[Size]],Table_PI[[#This Row],[Input 1]],Table_PI[[#This Row],[Input 2]],Table_PI[[#This Row],[Input 3]],Table_PI[[#This Row],[Input 4]],'Customer Information'!$AR$12,1,ROW())>0,MeasureCalc(Table_PI[[#This Row],[Hide:\nFormula Name]],Table_PI[[#This Row],[Quantity]],Table_PI[[#This Row],[List 1]],Table_PI[[#This Row],[List 2]],Table_PI[[#This Row],[List 3]],Table_PI[[#This Row],[Size]],Table_PI[[#This Row],[Input 1]],Table_PI[[#This Row],[Input 2]],Table_PI[[#This Row],[Input 3]],Table_PI[[#This Row],[Input 4]],'Customer Information'!$AR$12,7,ROW()),\"No Rebate\"),\"No Rebate\"),0)","v":0},{"$f":"IF(Table_PI[[#This Row],[Hide:\nFormula Name]]<>\"\",IFERROR(IF(MeasureCalc(Table_PI[[#This Row],[Hide:\nFormula Name]],Table_PI[[#This Row],[Quantity]],Table_PI[[#This Row],[List 1]],Table_PI[[#This Row],[List 2]],Table_PI[[#This Row],[List 3]],Table_PI[[#This Row],[Size]],Table_PI[[#This Row],[Input 1]],Table_PI[[#This Row],[Input 2]],Table_PI[[#This Row],[Input 3]],Table_PI[[#This Row],[Input 4]],'Customer Information'!$AR$12,1,ROW())>0,MeasureCalc(Table_PI[[#This Row],[Hide:\nFormula Name]],Table_PI[[#This Row],[Quantity]],Table_PI[[#This Row],[List 1]],Table_PI[[#This Row],[List 2]],Table_PI[[#This Row],[List 3]],Table_PI[[#This Row],[Size]],Table_PI[[#This Row],[Input 1]],Table_PI[[#This Row],[Input 2]],Table_PI[[#This Row],[Input 3]],Table_PI[[#This Row],[Input 4]],'Customer Information'!$AR$12,8,ROW()),\"No Rebate\"),\"No Rebate\"),0)","v":0},{"$f":"IF(Table_PI[[#This Row],[Hide:\nFormula Name]]<>\"\",IF(AND(Table_PI[[#This Row],[Hide:\nFormula Name]]<>\"\",OR(Table_PI[[#This Row],[Rebate]]>0,Table_PI[[#This Row],[Rebate]]=\"No Rebate\")),TRUE,\"MI: Line Item \" & $A37),\"\")","v":""}]
[{"$f":"IF(Table_PI[[#This Row],[Hide:\nFormula Name]]<>\"\",MAX($A$2:A37)+1,\"\")","v":""},null,null,null,null,null,null,null,null,null,null,null,null,null,null,{"$f":"IFERROR(VLOOKUP(Table_PI[[#This Row],[Measure]],'Equipment Lookups'!$C$3:$D$23,2,FALSE),\"\")","v":""},{"$f":"IF(Table_PI[[#This Row],[Hide:\nFormula Name]]<>\"\",IFERROR(IF(MeasureCalc(Table_PI[[#This Row],[Hide:\nFormula Name]],Table_PI[[#This Row],[Quantity]],Table_PI[[#This Row],[List 1]],Table_PI[[#This Row],[List 2]],Table_PI[[#This Row],[List 3]],Table_PI[[#This Row],[Size]],Table_PI[[#This Row],[Input 1]],Table_PI[[#This Row],[Input 2]],Table_PI[[#This Row],[Input 3]],Table_PI[[#This Row],[Input 4]],'Customer Information'!$AR$12,1,ROW())>0,MeasureCalc(Table_PI[[#This Row],[Hide:\nFormula Name]],Table_PI[[#This Row],[Quantity]],Table_PI[[#This Row],[List 1]],Table_PI[[#This Row],[List 2]],Table_PI[[#This Row],[List 3]],Table_PI[[#This Row],[Size]],Table_PI[[#This Row],[Input 1]],Table_PI[[#This Row],[Input 2]],Table_PI[[#This Row],[Input 3]],Table_PI[[#This Row],[Input 4]],'Customer Information'!$AR$12,1,ROW()),\"No Rebate\"),\"No Rebate\"),0)","v":0},{"$f":"IF(Table_PI[[#This Row],[Hide:\nFormula Name]]<>\"\",IFERROR(IF(MeasureCalc(Table_PI[[#This Row],[Hide:\nFormula Name]],Table_PI[[#This Row],[Quantity]],Table_PI[[#This Row],[List 1]],Table_PI[[#This Row],[List 2]],Table_PI[[#This Row],[List 3]],Table_PI[[#This Row],[Size]],Table_PI[[#This Row],[Input 1]],Table_PI[[#This Row],[Input 2]],Table_PI[[#This Row],[Input 3]],Table_PI[[#This Row],[Input 4]],'Customer Information'!$AR$12,1,ROW())>0,MeasureCalc(Table_PI[[#This Row],[Hide:\nFormula Name]],Table_PI[[#This Row],[Quantity]],Table_PI[[#This Row],[List 1]],Table_PI[[#This Row],[List 2]],Table_PI[[#This Row],[List 3]],Table_PI[[#This Row],[Size]],Table_PI[[#This Row],[Input 1]],Table_PI[[#This Row],[Input 2]],Table_PI[[#This Row],[Input 3]],Table_PI[[#This Row],[Input 4]],'Customer Information'!$AR$12,2,ROW()),\"No Rebate\"),\"No Rebate\"),0)","v":0},{"$f":"IF(Table_PI[[#This Row],[Hide:\nFormula Name]]<>\"\",IFERROR(IF(MeasureCalc(Table_PI[[#This Row],[Hide:\nFormula Name]],Table_PI[[#This Row],[Quantity]],Table_PI[[#This Row],[List 1]],Table_PI[[#This Row],[List 2]],Table_PI[[#This Row],[List 3]],Table_PI[[#This Row],[Size]],Table_PI[[#This Row],[Input 1]],Table_PI[[#This Row],[Input 2]],Table_PI[[#This Row],[Input 3]],Table_PI[[#This Row],[Input 4]],'Customer Information'!$AR$12,1,ROW())>0,MeasureCalc(Table_PI[[#This Row],[Hide:\nFormula Name]],Table_PI[[#This Row],[Quantity]],Table_PI[[#This Row],[List 1]],Table_PI[[#This Row],[List 2]],Table_PI[[#This Row],[List 3]],Table_PI[[#This Row],[Size]],Table_PI[[#This Row],[Input 1]],Table_PI[[#This Row],[Input 2]],Table_PI[[#This Row],[Input 3]],Table_PI[[#This Row],[Input 4]],'Customer Information'!$AR$12,3,ROW()),\"No Rebate\"),\"No Rebate\"),0)","v":0},{"$f":"IF(Table_PI[[#This Row],[Hide:\nFormula Name]]<>\"\",IFERROR(IF(MeasureCalc(Table_PI[[#This Row],[Hide:\nFormula Name]],Table_PI[[#This Row],[Quantity]],Table_PI[[#This Row],[List 1]],Table_PI[[#This Row],[List 2]],Table_PI[[#This Row],[List 3]],Table_PI[[#This Row],[Size]],Table_PI[[#This Row],[Input 1]],Table_PI[[#This Row],[Input 2]],Table_PI[[#This Row],[Input 3]],Table_PI[[#This Row],[Input 4]],'Customer Information'!$AR$12,1,ROW())>0,MeasureCalc(Table_PI[[#This Row],[Hide:\nFormula Name]],Table_PI[[#This Row],[Quantity]],Table_PI[[#This Row],[List 1]],Table_PI[[#This Row],[List 2]],Table_PI[[#This Row],[List 3]],Table_PI[[#This Row],[Size]],Table_PI[[#This Row],[Input 1]],Table_PI[[#This Row],[Input 2]],Table_PI[[#This Row],[Input 3]],Table_PI[[#This Row],[Input 4]],'Customer Information'!$AR$12,4,ROW()),\"No Rebate\"),\"No Rebate\"),0)","v":0},{"$f":"IF(Table_PI[[#This Row],[Hide:\nFormula Name]]<>\"\",IFERROR(IF(MeasureCalc(Table_PI[[#This Row],[Hide:\nFormula Name]],Table_PI[[#This Row],[Quantity]],Table_PI[[#This Row],[List 1]],Table_PI[[#This Row],[List 2]],Table_PI[[#This Row],[List 3]],Table_PI[[#This Row],[Size]],Table_PI[[#This Row],[Input 1]],Table_PI[[#This Row],[Input 2]],Table_PI[[#This Row],[Input 3]],Table_PI[[#This Row],[Input 4]],'Customer Information'!$AR$12,1,ROW())>0,MeasureCalc(Table_PI[[#This Row],[Hide:\nFormula Name]],Table_PI[[#This Row],[Quantity]],Table_PI[[#This Row],[List 1]],Table_PI[[#This Row],[List 2]],Table_PI[[#This Row],[List 3]],Table_PI[[#This Row],[Size]],Table_PI[[#This Row],[Input 1]],Table_PI[[#This Row],[Input 2]],Table_PI[[#This Row],[Input 3]],Table_PI[[#This Row],[Input 4]],'Customer Information'!$AR$12,5,ROW()),\"No Rebate\"),\"No Rebate\"),0)","v":0},{"$f":"IF(Table_PI[[#This Row],[Hide:\nFormula Name]]<>\"\",IFERROR(IF(MeasureCalc(Table_PI[[#This Row],[Hide:\nFormula Name]],Table_PI[[#This Row],[Quantity]],Table_PI[[#This Row],[List 1]],Table_PI[[#This Row],[List 2]],Table_PI[[#This Row],[List 3]],Table_PI[[#This Row],[Size]],Table_PI[[#This Row],[Input 1]],Table_PI[[#This Row],[Input 2]],Table_PI[[#This Row],[Input 3]],Table_PI[[#This Row],[Input 4]],'Customer Information'!$AR$12,1,ROW())>0,MeasureCalc(Table_PI[[#This Row],[Hide:\nFormula Name]],Table_PI[[#This Row],[Quantity]],Table_PI[[#This Row],[List 1]],Table_PI[[#This Row],[List 2]],Table_PI[[#This Row],[List 3]],Table_PI[[#This Row],[Size]],Table_PI[[#This Row],[Input 1]],Table_PI[[#This Row],[Input 2]],Table_PI[[#This Row],[Input 3]],Table_PI[[#This Row],[Input 4]],'Customer Information'!$AR$12,6,ROW()),\"No Rebate\"),\"No Rebate\"),0)","v":0},{"$f":"IF(Table_PI[[#This Row],[Hide:\nFormula Name]]<>\"\",IFERROR(IF(MeasureCalc(Table_PI[[#This Row],[Hide:\nFormula Name]],Table_PI[[#This Row],[Quantity]],Table_PI[[#This Row],[List 1]],Table_PI[[#This Row],[List 2]],Table_PI[[#This Row],[List 3]],Table_PI[[#This Row],[Size]],Table_PI[[#This Row],[Input 1]],Table_PI[[#This Row],[Input 2]],Table_PI[[#This Row],[Input 3]],Table_PI[[#This Row],[Input 4]],'Customer Information'!$AR$12,1,ROW())>0,MeasureCalc(Table_PI[[#This Row],[Hide:\nFormula Name]],Table_PI[[#This Row],[Quantity]],Table_PI[[#This Row],[List 1]],Table_PI[[#This Row],[List 2]],Table_PI[[#This Row],[List 3]],Table_PI[[#This Row],[Size]],Table_PI[[#This Row],[Input 1]],Table_PI[[#This Row],[Input 2]],Table_PI[[#This Row],[Input 3]],Table_PI[[#This Row],[Input 4]],'Customer Information'!$AR$12,7,ROW()),\"No Rebate\"),\"No Rebate\"),0)","v":0},{"$f":"IF(Table_PI[[#This Row],[Hide:\nFormula Name]]<>\"\",IFERROR(IF(MeasureCalc(Table_PI[[#This Row],[Hide:\nFormula Name]],Table_PI[[#This Row],[Quantity]],Table_PI[[#This Row],[List 1]],Table_PI[[#This Row],[List 2]],Table_PI[[#This Row],[List 3]],Table_PI[[#This Row],[Size]],Table_PI[[#This Row],[Input 1]],Table_PI[[#This Row],[Input 2]],Table_PI[[#This Row],[Input 3]],Table_PI[[#This Row],[Input 4]],'Customer Information'!$AR$12,1,ROW())>0,MeasureCalc(Table_PI[[#This Row],[Hide:\nFormula Name]],Table_PI[[#This Row],[Quantity]],Table_PI[[#This Row],[List 1]],Table_PI[[#This Row],[List 2]],Table_PI[[#This Row],[List 3]],Table_PI[[#This Row],[Size]],Table_PI[[#This Row],[Input 1]],Table_PI[[#This Row],[Input 2]],Table_PI[[#This Row],[Input 3]],Table_PI[[#This Row],[Input 4]],'Customer Information'!$AR$12,8,ROW()),\"No Rebate\"),\"No Rebate\"),0)","v":0},{"$f":"IF(Table_PI[[#This Row],[Hide:\nFormula Name]]<>\"\",IF(AND(Table_PI[[#This Row],[Hide:\nFormula Name]]<>\"\",OR(Table_PI[[#This Row],[Rebate]]>0,Table_PI[[#This Row],[Rebate]]=\"No Rebate\")),TRUE,\"MI: Line Item \" & $A38),\"\")","v":""}]
[{"$f":"IF(Table_PI[[#This Row],[Hide:\nFormula Name]]<>\"\",MAX($A$2:A38)+1,\"\")","v":""},null,null,null,null,null,null,null,null,null,null,null,null,null,null,{"$f":"IFERROR(VLOOKUP(Table_PI[[#This Row],[Measure]],'Equipment Lookups'!$C$3:$D$23,2,FALSE),\"\")","v":""},{"$f":"IF(Table_PI[[#This Row],[Hide:\nFormula Name]]<>\"\",IFERROR(IF(MeasureCalc(Table_PI[[#This Row],[Hide:\nFormula Name]],Table_PI[[#This Row],[Quantity]],Table_PI[[#This Row],[List 1]],Table_PI[[#This Row],[List 2]],Table_PI[[#This Row],[List 3]],Table_PI[[#This Row],[Size]],Table_PI[[#This Row],[Input 1]],Table_PI[[#This Row],[Input 2]],Table_PI[[#This Row],[Input 3]],Table_PI[[#This Row],[Input 4]],'Customer Information'!$AR$12,1,ROW())>0,MeasureCalc(Table_PI[[#This Row],[Hide:\nFormula Name]],Table_PI[[#This Row],[Quantity]],Table_PI[[#This Row],[List 1]],Table_PI[[#This Row],[List 2]],Table_PI[[#This Row],[List 3]],Table_PI[[#This Row],[Size]],Table_PI[[#This Row],[Input 1]],Table_PI[[#This Row],[Input 2]],Table_PI[[#This Row],[Input 3]],Table_PI[[#This Row],[Input 4]],'Customer Information'!$AR$12,1,ROW()),\"No Rebate\"),\"No Rebate\"),0)","v":0},{"$f":"IF(Table_PI[[#This Row],[Hide:\nFormula Name]]<>\"\",IFERROR(IF(MeasureCalc(Table_PI[[#This Row],[Hide:\nFormula Name]],Table_PI[[#This Row],[Quantity]],Table_PI[[#This Row],[List 1]],Table_PI[[#This Row],[List 2]],Table_PI[[#This Row],[List 3]],Table_PI[[#This Row],[Size]],Table_PI[[#This Row],[Input 1]],Table_PI[[#This Row],[Input 2]],Table_PI[[#This Row],[Input 3]],Table_PI[[#This Row],[Input 4]],'Customer Information'!$AR$12,1,ROW())>0,MeasureCalc(Table_PI[[#This Row],[Hide:\nFormula Name]],Table_PI[[#This Row],[Quantity]],Table_PI[[#This Row],[List 1]],Table_PI[[#This Row],[List 2]],Table_PI[[#This Row],[List 3]],Table_PI[[#This Row],[Size]],Table_PI[[#This Row],[Input 1]],Table_PI[[#This Row],[Input 2]],Table_PI[[#This Row],[Input 3]],Table_PI[[#This Row],[Input 4]],'Customer Information'!$AR$12,2,ROW()),\"No Rebate\"),\"No Rebate\"),0)","v":0},{"$f":"IF(Table_PI[[#This Row],[Hide:\nFormula Name]]<>\"\",IFERROR(IF(MeasureCalc(Table_PI[[#This Row],[Hide:\nFormula Name]],Table_PI[[#This Row],[Quantity]],Table_PI[[#This Row],[List 1]],Table_PI[[#This Row],[List 2]],Table_PI[[#This Row],[List 3]],Table_PI[[#This Row],[Size]],Table_PI[[#This Row],[Input 1]],Table_PI[[#This Row],[Input 2]],Table_PI[[#This Row],[Input 3]],Table_PI[[#This Row],[Input 4]],'Customer Information'!$AR$12,1,ROW())>0,MeasureCalc(Table_PI[[#This Row],[Hide:\nFormula Name]],Table_PI[[#This Row],[Quantity]],Table_PI[[#This Row],[List 1]],Table_PI[[#This Row],[List 2]],Table_PI[[#This Row],[List 3]],Table_PI[[#This Row],[Size]],Table_PI[[#This Row],[Input 1]],Table_PI[[#This Row],[Input 2]],Table_PI[[#This Row],[Input 3]],Table_PI[[#This Row],[Input 4]],'Customer Information'!$AR$12,3,ROW()),\"No Rebate\"),\"No Rebate\"),0)","v":0},{"$f":"IF(Table_PI[[#This Row],[Hide:\nFormula Name]]<>\"\",IFERROR(IF(MeasureCalc(Table_PI[[#This Row],[Hide:\nFormula Name]],Table_PI[[#This Row],[Quantity]],Table_PI[[#This Row],[List 1]],Table_PI[[#This Row],[List 2]],Table_PI[[#This Row],[List 3]],Table_PI[[#This Row],[Size]],Table_PI[[#This Row],[Input 1]],Table_PI[[#This Row],[Input 2]],Table_PI[[#This Row],[Input 3]],Table_PI[[#This Row],[Input 4]],'Customer Information'!$AR$12,1,ROW())>0,MeasureCalc(Table_PI[[#This Row],[Hide:\nFormula Name]],Table_PI[[#This Row],[Quantity]],Table_PI[[#This Row],[List 1]],Table_PI[[#This Row],[List 2]],Table_PI[[#This Row],[List 3]],Table_PI[[#This Row],[Size]],Table_PI[[#This Row],[Input 1]],Table_PI[[#This Row],[Input 2]],Table_PI[[#This Row],[Input 3]],Table_PI[[#This Row],[Input 4]],'Customer Information'!$AR$12,4,ROW()),\"No Rebate\"),\"No Rebate\"),0)","v":0},{"$f":"IF(Table_PI[[#This Row],[Hide:\nFormula Name]]<>\"\",IFERROR(IF(MeasureCalc(Table_PI[[#This Row],[Hide:\nFormula Name]],Table_PI[[#This Row],[Quantity]],Table_PI[[#This Row],[List 1]],Table_PI[[#This Row],[List 2]],Table_PI[[#This Row],[List 3]],Table_PI[[#This Row],[Size]],Table_PI[[#This Row],[Input 1]],Table_PI[[#This Row],[Input 2]],Table_PI[[#This Row],[Input 3]],Table_PI[[#This Row],[Input 4]],'Customer Information'!$AR$12,1,ROW())>0,MeasureCalc(Table_PI[[#This Row],[Hide:\nFormula Name]],Table_PI[[#This Row],[Quantity]],Table_PI[[#This Row],[List 1]],Table_PI[[#This Row],[List 2]],Table_PI[[#This Row],[List 3]],Table_PI[[#This Row],[Size]],Table_PI[[#This Row],[Input 1]],Table_PI[[#This Row],[Input 2]],Table_PI[[#This Row],[Input 3]],Table_PI[[#This Row],[Input 4]],'Customer Information'!$AR$12,5,ROW()),\"No Rebate\"),\"No Rebate\"),0)","v":0},{"$f":"IF(Table_PI[[#This Row],[Hide:\nFormula Name]]<>\"\",IFERROR(IF(MeasureCalc(Table_PI[[#This Row],[Hide:\nFormula Name]],Table_PI[[#This Row],[Quantity]],Table_PI[[#This Row],[List 1]],Table_PI[[#This Row],[List 2]],Table_PI[[#This Row],[List 3]],Table_PI[[#This Row],[Size]],Table_PI[[#This Row],[Input 1]],Table_PI[[#This Row],[Input 2]],Table_PI[[#This Row],[Input 3]],Table_PI[[#This Row],[Input 4]],'Customer Information'!$AR$12,1,ROW())>0,MeasureCalc(Table_PI[[#This Row],[Hide:\nFormula Name]],Table_PI[[#This Row],[Quantity]],Table_PI[[#This Row],[List 1]],Table_PI[[#This Row],[List 2]],Table_PI[[#This Row],[List 3]],Table_PI[[#This Row],[Size]],Table_PI[[#This Row],[Input 1]],Table_PI[[#This Row],[Input 2]],Table_PI[[#This Row],[Input 3]],Table_PI[[#This Row],[Input 4]],'Customer Information'!$AR$12,6,ROW()),\"No Rebate\"),\"No Rebate\"),0)","v":0},{"$f":"IF(Table_PI[[#This Row],[Hide:\nFormula Name]]<>\"\",IFERROR(IF(MeasureCalc(Table_PI[[#This Row],[Hide:\nFormula Name]],Table_PI[[#This Row],[Quantity]],Table_PI[[#This Row],[List 1]],Table_PI[[#This Row],[List 2]],Table_PI[[#This Row],[List 3]],Table_PI[[#This Row],[Size]],Table_PI[[#This Row],[Input 1]],Table_PI[[#This Row],[Input 2]],Table_PI[[#This Row],[Input 3]],Table_PI[[#This Row],[Input 4]],'Customer Information'!$AR$12,1,ROW())>0,MeasureCalc(Table_PI[[#This Row],[Hide:\nFormula Name]],Table_PI[[#This Row],[Quantity]],Table_PI[[#This Row],[List 1]],Table_PI[[#This Row],[List 2]],Table_PI[[#This Row],[List 3]],Table_PI[[#This Row],[Size]],Table_PI[[#This Row],[Input 1]],Table_PI[[#This Row],[Input 2]],Table_PI[[#This Row],[Input 3]],Table_PI[[#This Row],[Input 4]],'Customer Information'!$AR$12,7,ROW()),\"No Rebate\"),\"No Rebate\"),0)","v":0},{"$f":"IF(Table_PI[[#This Row],[Hide:\nFormula Name]]<>\"\",IFERROR(IF(MeasureCalc(Table_PI[[#This Row],[Hide:\nFormula Name]],Table_PI[[#This Row],[Quantity]],Table_PI[[#This Row],[List 1]],Table_PI[[#This Row],[List 2]],Table_PI[[#This Row],[List 3]],Table_PI[[#This Row],[Size]],Table_PI[[#This Row],[Input 1]],Table_PI[[#This Row],[Input 2]],Table_PI[[#This Row],[Input 3]],Table_PI[[#This Row],[Input 4]],'Customer Information'!$AR$12,1,ROW())>0,MeasureCalc(Table_PI[[#This Row],[Hide:\nFormula Name]],Table_PI[[#This Row],[Quantity]],Table_PI[[#This Row],[List 1]],Table_PI[[#This Row],[List 2]],Table_PI[[#This Row],[List 3]],Table_PI[[#This Row],[Size]],Table_PI[[#This Row],[Input 1]],Table_PI[[#This Row],[Input 2]],Table_PI[[#This Row],[Input 3]],Table_PI[[#This Row],[Input 4]],'Customer Information'!$AR$12,8,ROW()),\"No Rebate\"),\"No Rebate\"),0)","v":0},{"$f":"IF(Table_PI[[#This Row],[Hide:\nFormula Name]]<>\"\",IF(AND(Table_PI[[#This Row],[Hide:\nFormula Name]]<>\"\",OR(Table_PI[[#This Row],[Rebate]]>0,Table_PI[[#This Row],[Rebate]]=\"No Rebate\")),TRUE,\"MI: Line Item \" & $A39),\"\")","v":""}]
[{"$f":"IF(Table_PI[[#This Row],[Hide:\nFormula Name]]<>\"\",MAX($A$2:A39)+1,\"\")","v":""},null,null,null,null,null,null,null,null,null,null,null,null,null,null,{"$f":"IFERROR(VLOOKUP(Table_PI[[#This Row],[Measure]],'Equipment Lookups'!$C$3:$D$23,2,FALSE),\"\")","v":""},{"$f":"IF(Table_PI[[#This Row],[Hide:\nFormula Name]]<>\"\",IFERROR(IF(MeasureCalc(Table_PI[[#This Row],[Hide:\nFormula Name]],Table_PI[[#This Row],[Quantity]],Table_PI[[#This Row],[List 1]],Table_PI[[#This Row],[List 2]],Table_PI[[#This Row],[List 3]],Table_PI[[#This Row],[Size]],Table_PI[[#This Row],[Input 1]],Table_PI[[#This Row],[Input 2]],Table_PI[[#This Row],[Input 3]],Table_PI[[#This Row],[Input 4]],'Customer Information'!$AR$12,1,ROW())>0,MeasureCalc(Table_PI[[#This Row],[Hide:\nFormula Name]],Table_PI[[#This Row],[Quantity]],Table_PI[[#This Row],[List 1]],Table_PI[[#This Row],[List 2]],Table_PI[[#This Row],[List 3]],Table_PI[[#This Row],[Size]],Table_PI[[#This Row],[Input 1]],Table_PI[[#This Row],[Input 2]],Table_PI[[#This Row],[Input 3]],Table_PI[[#This Row],[Input 4]],'Customer Information'!$AR$12,1,ROW()),\"No Rebate\"),\"No Rebate\"),0)","v":0},{"$f":"IF(Table_PI[[#This Row],[Hide:\nFormula Name]]<>\"\",IFERROR(IF(MeasureCalc(Table_PI[[#This Row],[Hide:\nFormula Name]],Table_PI[[#This Row],[Quantity]],Table_PI[[#This Row],[List 1]],Table_PI[[#This Row],[List 2]],Table_PI[[#This Row],[List 3]],Table_PI[[#This Row],[Size]],Table_PI[[#This Row],[Input 1]],Table_PI[[#This Row],[Input 2]],Table_PI[[#This Row],[Input 3]],Table_PI[[#This Row],[Input 4]],'Customer Information'!$AR$12,1,ROW())>0,MeasureCalc(Table_PI[[#This Row],[Hide:\nFormula Name]],Table_PI[[#This Row],[Quantity]],Table_PI[[#This Row],[List 1]],Table_PI[[#This Row],[List 2]],Table_PI[[#This Row],[List 3]],Table_PI[[#This Row],[Size]],Table_PI[[#This Row],[Input 1]],Table_PI[[#This Row],[Input 2]],Table_PI[[#This Row],[Input 3]],Table_PI[[#This Row],[Input 4]],'Customer Information'!$AR$12,2,ROW()),\"No Rebate\"),\"No Rebate\"),0)","v":0},{"$f":"IF(Table_PI[[#This Row],[Hide:\nFormula Name]]<>\"\",IFERROR(IF(MeasureCalc(Table_PI[[#This Row],[Hide:\nFormula Name]],Table_PI[[#This Row],[Quantity]],Table_PI[[#This Row],[List 1]],Table_PI[[#This Row],[List 2]],Table_PI[[#This Row],[List 3]],Table_PI[[#This Row],[Size]],Table_PI[[#This Row],[Input 1]],Table_PI[[#This Row],[Input 2]],Table_PI[[#This Row],[Input 3]],Table_PI[[#This Row],[Input 4]],'Customer Information'!$AR$12,1,ROW())>0,MeasureCalc(Table_PI[[#This Row],[Hide:\nFormula Name]],Table_PI[[#This Row],[Quantity]],Table_PI[[#This Row],[List 1]],Table_PI[[#This Row],[List 2]],Table_PI[[#This Row],[List 3]],Table_PI[[#This Row],[Size]],Table_PI[[#This Row],[Input 1]],Table_PI[[#This Row],[Input 2]],Table_PI[[#This Row],[Input 3]],Table_PI[[#This Row],[Input 4]],'Customer Information'!$AR$12,3,ROW()),\"No Rebate\"),\"No Rebate\"),0)","v":0},{"$f":"IF(Table_PI[[#This Row],[Hide:\nFormula Name]]<>\"\",IFERROR(IF(MeasureCalc(Table_PI[[#This Row],[Hide:\nFormula Name]],Table_PI[[#This Row],[Quantity]],Table_PI[[#This Row],[List 1]],Table_PI[[#This Row],[List 2]],Table_PI[[#This Row],[List 3]],Table_PI[[#This Row],[Size]],Table_PI[[#This Row],[Input 1]],Table_PI[[#This Row],[Input 2]],Table_PI[[#This Row],[Input 3]],Table_PI[[#This Row],[Input 4]],'Customer Information'!$AR$12,1,ROW())>0,MeasureCalc(Table_PI[[#This Row],[Hide:\nFormula Name]],Table_PI[[#This Row],[Quantity]],Table_PI[[#This Row],[List 1]],Table_PI[[#This Row],[List 2]],Table_PI[[#This Row],[List 3]],Table_PI[[#This Row],[Size]],Table_PI[[#This Row],[Input 1]],Table_PI[[#This Row],[Input 2]],Table_PI[[#This Row],[Input 3]],Table_PI[[#This Row],[Input 4]],'Customer Information'!$AR$12,4,ROW()),\"No Rebate\"),\"No Rebate\"),0)","v":0},{"$f":"IF(Table_PI[[#This Row],[Hide:\nFormula Name]]<>\"\",IFERROR(IF(MeasureCalc(Table_PI[[#This Row],[Hide:\nFormula Name]],Table_PI[[#This Row],[Quantity]],Table_PI[[#This Row],[List 1]],Table_PI[[#This Row],[List 2]],Table_PI[[#This Row],[List 3]],Table_PI[[#This Row],[Size]],Table_PI[[#This Row],[Input 1]],Table_PI[[#This Row],[Input 2]],Table_PI[[#This Row],[Input 3]],Table_PI[[#This Row],[Input 4]],'Customer Information'!$AR$12,1,ROW())>0,MeasureCalc(Table_PI[[#This Row],[Hide:\nFormula Name]],Table_PI[[#This Row],[Quantity]],Table_PI[[#This Row],[List 1]],Table_PI[[#This Row],[List 2]],Table_PI[[#This Row],[List 3]],Table_PI[[#This Row],[Size]],Table_PI[[#This Row],[Input 1]],Table_PI[[#This Row],[Input 2]],Table_PI[[#This Row],[Input 3]],Table_PI[[#This Row],[Input 4]],'Customer Information'!$AR$12,5,ROW()),\"No Rebate\"),\"No Rebate\"),0)","v":0},{"$f":"IF(Table_PI[[#This Row],[Hide:\nFormula Name]]<>\"\",IFERROR(IF(MeasureCalc(Table_PI[[#This Row],[Hide:\nFormula Name]],Table_PI[[#This Row],[Quantity]],Table_PI[[#This Row],[List 1]],Table_PI[[#This Row],[List 2]],Table_PI[[#This Row],[List 3]],Table_PI[[#This Row],[Size]],Table_PI[[#This Row],[Input 1]],Table_PI[[#This Row],[Input 2]],Table_PI[[#This Row],[Input 3]],Table_PI[[#This Row],[Input 4]],'Customer Information'!$AR$12,1,ROW())>0,MeasureCalc(Table_PI[[#This Row],[Hide:\nFormula Name]],Table_PI[[#This Row],[Quantity]],Table_PI[[#This Row],[List 1]],Table_PI[[#This Row],[List 2]],Table_PI[[#This Row],[List 3]],Table_PI[[#This Row],[Size]],Table_PI[[#This Row],[Input 1]],Table_PI[[#This Row],[Input 2]],Table_PI[[#This Row],[Input 3]],Table_PI[[#This Row],[Input 4]],'Customer Information'!$AR$12,6,ROW()),\"No Rebate\"),\"No Rebate\"),0)","v":0},{"$f":"IF(Table_PI[[#This Row],[Hide:\nFormula Name]]<>\"\",IFERROR(IF(MeasureCalc(Table_PI[[#This Row],[Hide:\nFormula Name]],Table_PI[[#This Row],[Quantity]],Table_PI[[#This Row],[List 1]],Table_PI[[#This Row],[List 2]],Table_PI[[#This Row],[List 3]],Table_PI[[#This Row],[Size]],Table_PI[[#This Row],[Input 1]],Table_PI[[#This Row],[Input 2]],Table_PI[[#This Row],[Input 3]],Table_PI[[#This Row],[Input 4]],'Customer Information'!$AR$12,1,ROW())>0,MeasureCalc(Table_PI[[#This Row],[Hide:\nFormula Name]],Table_PI[[#This Row],[Quantity]],Table_PI[[#This Row],[List 1]],Table_PI[[#This Row],[List 2]],Table_PI[[#This Row],[List 3]],Table_PI[[#This Row],[Size]],Table_PI[[#This Row],[Input 1]],Table_PI[[#This Row],[Input 2]],Table_PI[[#This Row],[Input 3]],Table_PI[[#This Row],[Input 4]],'Customer Information'!$AR$12,7,ROW()),\"No Rebate\"),\"No Rebate\"),0)","v":0},{"$f":"IF(Table_PI[[#This Row],[Hide:\nFormula Name]]<>\"\",IFERROR(IF(MeasureCalc(Table_PI[[#This Row],[Hide:\nFormula Name]],Table_PI[[#This Row],[Quantity]],Table_PI[[#This Row],[List 1]],Table_PI[[#This Row],[List 2]],Table_PI[[#This Row],[List 3]],Table_PI[[#This Row],[Size]],Table_PI[[#This Row],[Input 1]],Table_PI[[#This Row],[Input 2]],Table_PI[[#This Row],[Input 3]],Table_PI[[#This Row],[Input 4]],'Customer Information'!$AR$12,1,ROW())>0,MeasureCalc(Table_PI[[#This Row],[Hide:\nFormula Name]],Table_PI[[#This Row],[Quantity]],Table_PI[[#This Row],[List 1]],Table_PI[[#This Row],[List 2]],Table_PI[[#This Row],[List 3]],Table_PI[[#This Row],[Size]],Table_PI[[#This Row],[Input 1]],Table_PI[[#This Row],[Input 2]],Table_PI[[#This Row],[Input 3]],Table_PI[[#This Row],[Input 4]],'Customer Information'!$AR$12,8,ROW()),\"No Rebate\"),\"No Rebate\"),0)","v":0},{"$f":"IF(Table_PI[[#This Row],[Hide:\nFormula Name]]<>\"\",IF(AND(Table_PI[[#This Row],[Hide:\nFormula Name]]<>\"\",OR(Table_PI[[#This Row],[Rebate]]>0,Table_PI[[#This Row],[Rebate]]=\"No Rebate\")),TRUE,\"MI: Line Item \" & $A40),\"\")","v":""}]
[{"$f":"IF(Table_PI[[#This Row],[Hide:\nFormula Name]]<>\"\",MAX($A$2:A40)+1,\"\")","v":""},null,null,null,null,null,null,null,null,null,null,null,null,null,null,{"$f":"IFERROR(VLOOKUP(Table_PI[[#This Row],[Measure]],'Equipment Lookups'!$C$3:$D$23,2,FALSE),\"\")","v":""},{"$f":"IF(Table_PI[[#This Row],[Hide:\nFormula Name]]<>\"\",IFERROR(IF(MeasureCalc(Table_PI[[#This Row],[Hide:\nFormula Name]],Table_PI[[#This Row],[Quantity]],Table_PI[[#This Row],[List 1]],Table_PI[[#This Row],[List 2]],Table_PI[[#This Row],[List 3]],Table_PI[[#This Row],[Size]],Table_PI[[#This Row],[Input 1]],Table_PI[[#This Row],[Input 2]],Table_PI[[#This Row],[Input 3]],Table_PI[[#This Row],[Input 4]],'Customer Information'!$AR$12,1,ROW())>0,MeasureCalc(Table_PI[[#This Row],[Hide:\nFormula Name]],Table_PI[[#This Row],[Quantity]],Table_PI[[#This Row],[List 1]],Table_PI[[#This Row],[List 2]],Table_PI[[#This Row],[List 3]],Table_PI[[#This Row],[Size]],Table_PI[[#This Row],[Input 1]],Table_PI[[#This Row],[Input 2]],Table_PI[[#This Row],[Input 3]],Table_PI[[#This Row],[Input 4]],'Customer Information'!$AR$12,1,ROW()),\"No Rebate\"),\"No Rebate\"),0)","v":0},{"$f":"IF(Table_PI[[#This Row],[Hide:\nFormula Name]]<>\"\",IFERROR(IF(MeasureCalc(Table_PI[[#This Row],[Hide:\nFormula Name]],Table_PI[[#This Row],[Quantity]],Table_PI[[#This Row],[List 1]],Table_PI[[#This Row],[List 2]],Table_PI[[#This Row],[List 3]],Table_PI[[#This Row],[Size]],Table_PI[[#This Row],[Input 1]],Table_PI[[#This Row],[Input 2]],Table_PI[[#This Row],[Input 3]],Table_PI[[#This Row],[Input 4]],'Customer Information'!$AR$12,1,ROW())>0,MeasureCalc(Table_PI[[#This Row],[Hide:\nFormula Name]],Table_PI[[#This Row],[Quantity]],Table_PI[[#This Row],[List 1]],Table_PI[[#This Row],[List 2]],Table_PI[[#This Row],[List 3]],Table_PI[[#This Row],[Size]],Table_PI[[#This Row],[Input 1]],Table_PI[[#This Row],[Input 2]],Table_PI[[#This Row],[Input 3]],Table_PI[[#This Row],[Input 4]],'Customer Information'!$AR$12,2,ROW()),\"No Rebate\"),\"No Rebate\"),0)","v":0},{"$f":"IF(Table_PI[[#This Row],[Hide:\nFormula Name]]<>\"\",IFERROR(IF(MeasureCalc(Table_PI[[#This Row],[Hide:\nFormula Name]],Table_PI[[#This Row],[Quantity]],Table_PI[[#This Row],[List 1]],Table_PI[[#This Row],[List 2]],Table_PI[[#This Row],[List 3]],Table_PI[[#This Row],[Size]],Table_PI[[#This Row],[Input 1]],Table_PI[[#This Row],[Input 2]],Table_PI[[#This Row],[Input 3]],Table_PI[[#This Row],[Input 4]],'Customer Information'!$AR$12,1,ROW())>0,MeasureCalc(Table_PI[[#This Row],[Hide:\nFormula Name]],Table_PI[[#This Row],[Quantity]],Table_PI[[#This Row],[List 1]],Table_PI[[#This Row],[List 2]],Table_PI[[#This Row],[List 3]],Table_PI[[#This Row],[Size]],Table_PI[[#This Row],[Input 1]],Table_PI[[#This Row],[Input 2]],Table_PI[[#This Row],[Input 3]],Table_PI[[#This Row],[Input 4]],'Customer Information'!$AR$12,3,ROW()),\"No Rebate\"),\"No Rebate\"),0)","v":0},{"$f":"IF(Table_PI[[#This Row],[Hide:\nFormula Name]]<>\"\",IFERROR(IF(MeasureCalc(Table_PI[[#This Row],[Hide:\nFormula Name]],Table_PI[[#This Row],[Quantity]],Table_PI[[#This Row],[List 1]],Table_PI[[#This Row],[List 2]],Table_PI[[#This Row],[List 3]],Table_PI[[#This Row],[Size]],Table_PI[[#This Row],[Input 1]],Table_PI[[#This Row],[Input 2]],Table_PI[[#This Row],[Input 3]],Table_PI[[#This Row],[Input 4]],'Customer Information'!$AR$12,1,ROW())>0,MeasureCalc(Table_PI[[#This Row],[Hide:\nFormula Name]],Table_PI[[#This Row],[Quantity]],Table_PI[[#This Row],[List 1]],Table_PI[[#This Row],[List 2]],Table_PI[[#This Row],[List 3]],Table_PI[[#This Row],[Size]],Table_PI[[#This Row],[Input 1]],Table_PI[[#This Row],[Input 2]],Table_PI[[#This Row],[Input 3]],Table_PI[[#This Row],[Input 4]],'Customer Information'!$AR$12,4,ROW()),\"No Rebate\"),\"No Rebate\"),0)","v":0},{"$f":"IF(Table_PI[[#This Row],[Hide:\nFormula Name]]<>\"\",IFERROR(IF(MeasureCalc(Table_PI[[#This Row],[Hide:\nFormula Name]],Table_PI[[#This Row],[Quantity]],Table_PI[[#This Row],[List 1]],Table_PI[[#This Row],[List 2]],Table_PI[[#This Row],[List 3]],Table_PI[[#This Row],[Size]],Table_PI[[#This Row],[Input 1]],Table_PI[[#This Row],[Input 2]],Table_PI[[#This Row],[Input 3]],Table_PI[[#This Row],[Input 4]],'Customer Information'!$AR$12,1,ROW())>0,MeasureCalc(Table_PI[[#This Row],[Hide:\nFormula Name]],Table_PI[[#This Row],[Quantity]],Table_PI[[#This Row],[List 1]],Table_PI[[#This Row],[List 2]],Table_PI[[#This Row],[List 3]],Table_PI[[#This Row],[Size]],Table_PI[[#This Row],[Input 1]],Table_PI[[#This Row],[Input 2]],Table_PI[[#This Row],[Input 3]],Table_PI[[#This Row],[Input 4]],'Customer Information'!$AR$12,5,ROW()),\"No Rebate\"),\"No Rebate\"),0)","v":0},{"$f":"IF(Table_PI[[#This Row],[Hide:\nFormula Name]]<>\"\",IFERROR(IF(MeasureCalc(Table_PI[[#This Row],[Hide:\nFormula Name]],Table_PI[[#This Row],[Quantity]],Table_PI[[#This Row],[List 1]],Table_PI[[#This Row],[List 2]],Table_PI[[#This Row],[List 3]],Table_PI[[#This Row],[Size]],Table_PI[[#This Row],[Input 1]],Table_PI[[#This Row],[Input 2]],Table_PI[[#This Row],[Input 3]],Table_PI[[#This Row],[Input 4]],'Customer Information'!$AR$12,1,ROW())>0,MeasureCalc(Table_PI[[#This Row],[Hide:\nFormula Name]],Table_PI[[#This Row],[Quantity]],Table_PI[[#This Row],[List 1]],Table_PI[[#This Row],[List 2]],Table_PI[[#This Row],[List 3]],Table_PI[[#This Row],[Size]],Table_PI[[#This Row],[Input 1]],Table_PI[[#This Row],[Input 2]],Table_PI[[#This Row],[Input 3]],Table_PI[[#This Row],[Input 4]],'Customer Information'!$AR$12,6,ROW()),\"No Rebate\"),\"No Rebate\"),0)","v":0},{"$f":"IF(Table_PI[[#This Row],[Hide:\nFormula Name]]<>\"\",IFERROR(IF(MeasureCalc(Table_PI[[#This Row],[Hide:\nFormula Name]],Table_PI[[#This Row],[Quantity]],Table_PI[[#This Row],[List 1]],Table_PI[[#This Row],[List 2]],Table_PI[[#This Row],[List 3]],Table_PI[[#This Row],[Size]],Table_PI[[#This Row],[Input 1]],Table_PI[[#This Row],[Input 2]],Table_PI[[#This Row],[Input 3]],Table_PI[[#This Row],[Input 4]],'Customer Information'!$AR$12,1,ROW())>0,MeasureCalc(Table_PI[[#This Row],[Hide:\nFormula Name]],Table_PI[[#This Row],[Quantity]],Table_PI[[#This Row],[List 1]],Table_PI[[#This Row],[List 2]],Table_PI[[#This Row],[List 3]],Table_PI[[#This Row],[Size]],Table_PI[[#This Row],[Input 1]],Table_PI[[#This Row],[Input 2]],Table_PI[[#This Row],[Input 3]],Table_PI[[#This Row],[Input 4]],'Customer Information'!$AR$12,7,ROW()),\"No Rebate\"),\"No Rebate\"),0)","v":0},{"$f":"IF(Table_PI[[#This Row],[Hide:\nFormula Name]]<>\"\",IFERROR(IF(MeasureCalc(Table_PI[[#This Row],[Hide:\nFormula Name]],Table_PI[[#This Row],[Quantity]],Table_PI[[#This Row],[List 1]],Table_PI[[#This Row],[List 2]],Table_PI[[#This Row],[List 3]],Table_PI[[#This Row],[Size]],Table_PI[[#This Row],[Input 1]],Table_PI[[#This Row],[Input 2]],Table_PI[[#This Row],[Input 3]],Table_PI[[#This Row],[Input 4]],'Customer Information'!$AR$12,1,ROW())>0,MeasureCalc(Table_PI[[#This Row],[Hide:\nFormula Name]],Table_PI[[#This Row],[Quantity]],Table_PI[[#This Row],[List 1]],Table_PI[[#This Row],[List 2]],Table_PI[[#This Row],[List 3]],Table_PI[[#This Row],[Size]],Table_PI[[#This Row],[Input 1]],Table_PI[[#This Row],[Input 2]],Table_PI[[#This Row],[Input 3]],Table_PI[[#This Row],[Input 4]],'Customer Information'!$AR$12,8,ROW()),\"No Rebate\"),\"No Rebate\"),0)","v":0},{"$f":"IF(Table_PI[[#This Row],[Hide:\nFormula Name]]<>\"\",IF(AND(Table_PI[[#This Row],[Hide:\nFormula Name]]<>\"\",OR(Table_PI[[#This Row],[Rebate]]>0,Table_PI[[#This Row],[Rebate]]=\"No Rebate\")),TRUE,\"MI: Line Item \" & $A41),\"\")","v":""}]
[{"$f":"IF(Table_PI[[#This Row],[Hide:\nFormula Name]]<>\"\",MAX($A$2:A41)+1,\"\")","v":""},null,null,null,null,null,null,null,null,null,null,null,null,null,null,{"$f":"IFERROR(VLOOKUP(Table_PI[[#This Row],[Measure]],'Equipment Lookups'!$C$3:$D$23,2,FALSE),\"\")","v":""},{"$f":"IF(Table_PI[[#This Row],[Hide:\nFormula Name]]<>\"\",IFERROR(IF(MeasureCalc(Table_PI[[#This Row],[Hide:\nFormula Name]],Table_PI[[#This Row],[Quantity]],Table_PI[[#This Row],[List 1]],Table_PI[[#This Row],[List 2]],Table_PI[[#This Row],[List 3]],Table_PI[[#This Row],[Size]],Table_PI[[#This Row],[Input 1]],Table_PI[[#This Row],[Input 2]],Table_PI[[#This Row],[Input 3]],Table_PI[[#This Row],[Input 4]],'Customer Information'!$AR$12,1,ROW())>0,MeasureCalc(Table_PI[[#This Row],[Hide:\nFormula Name]],Table_PI[[#This Row],[Quantity]],Table_PI[[#This Row],[List 1]],Table_PI[[#This Row],[List 2]],Table_PI[[#This Row],[List 3]],Table_PI[[#This Row],[Size]],Table_PI[[#This Row],[Input 1]],Table_PI[[#This Row],[Input 2]],Table_PI[[#This Row],[Input 3]],Table_PI[[#This Row],[Input 4]],'Customer Information'!$AR$12,1,ROW()),\"No Rebate\"),\"No Rebate\"),0)","v":0},{"$f":"IF(Table_PI[[#This Row],[Hide:\nFormula Name]]<>\"\",IFERROR(IF(MeasureCalc(Table_PI[[#This Row],[Hide:\nFormula Name]],Table_PI[[#This Row],[Quantity]],Table_PI[[#This Row],[List 1]],Table_PI[[#This Row],[List 2]],Table_PI[[#This Row],[List 3]],Table_PI[[#This Row],[Size]],Table_PI[[#This Row],[Input 1]],Table_PI[[#This Row],[Input 2]],Table_PI[[#This Row],[Input 3]],Table_PI[[#This Row],[Input 4]],'Customer Information'!$AR$12,1,ROW())>0,MeasureCalc(Table_PI[[#This Row],[Hide:\nFormula Name]],Table_PI[[#This Row],[Quantity]],Table_PI[[#This Row],[List 1]],Table_PI[[#This Row],[List 2]],Table_PI[[#This Row],[List 3]],Table_PI[[#This Row],[Size]],Table_PI[[#This Row],[Input 1]],Table_PI[[#This Row],[Input 2]],Table_PI[[#This Row],[Input 3]],Table_PI[[#This Row],[Input 4]],'Customer Information'!$AR$12,2,ROW()),\"No Rebate\"),\"No Rebate\"),0)","v":0},{"$f":"IF(Table_PI[[#This Row],[Hide:\nFormula Name]]<>\"\",IFERROR(IF(MeasureCalc(Table_PI[[#This Row],[Hide:\nFormula Name]],Table_PI[[#This Row],[Quantity]],Table_PI[[#This Row],[List 1]],Table_PI[[#This Row],[List 2]],Table_PI[[#This Row],[List 3]],Table_PI[[#This Row],[Size]],Table_PI[[#This Row],[Input 1]],Table_PI[[#This Row],[Input 2]],Table_PI[[#This Row],[Input 3]],Table_PI[[#This Row],[Input 4]],'Customer Information'!$AR$12,1,ROW())>0,MeasureCalc(Table_PI[[#This Row],[Hide:\nFormula Name]],Table_PI[[#This Row],[Quantity]],Table_PI[[#This Row],[List 1]],Table_PI[[#This Row],[List 2]],Table_PI[[#This Row],[List 3]],Table_PI[[#This Row],[Size]],Table_PI[[#This Row],[Input 1]],Table_PI[[#This Row],[Input 2]],Table_PI[[#This Row],[Input 3]],Table_PI[[#This Row],[Input 4]],'Customer Information'!$AR$12,3,ROW()),\"No Rebate\"),\"No Rebate\"),0)","v":0},{"$f":"IF(Table_PI[[#This Row],[Hide:\nFormula Name]]<>\"\",IFERROR(IF(MeasureCalc(Table_PI[[#This Row],[Hide:\nFormula Name]],Table_PI[[#This Row],[Quantity]],Table_PI[[#This Row],[List 1]],Table_PI[[#This Row],[List 2]],Table_PI[[#This Row],[List 3]],Table_PI[[#This Row],[Size]],Table_PI[[#This Row],[Input 1]],Table_PI[[#This Row],[Input 2]],Table_PI[[#This Row],[Input 3]],Table_PI[[#This Row],[Input 4]],'Customer Information'!$AR$12,1,ROW())>0,MeasureCalc(Table_PI[[#This Row],[Hide:\nFormula Name]],Table_PI[[#This Row],[Quantity]],Table_PI[[#This Row],[List 1]],Table_PI[[#This Row],[List 2]],Table_PI[[#This Row],[List 3]],Table_PI[[#This Row],[Size]],Table_PI[[#This Row],[Input 1]],Table_PI[[#This Row],[Input 2]],Table_PI[[#This Row],[Input 3]],Table_PI[[#This Row],[Input 4]],'Customer Information'!$AR$12,4,ROW()),\"No Rebate\"),\"No Rebate\"),0)","v":0},{"$f":"IF(Table_PI[[#This Row],[Hide:\nFormula Name]]<>\"\",IFERROR(IF(MeasureCalc(Table_PI[[#This Row],[Hide:\nFormula Name]],Table_PI[[#This Row],[Quantity]],Table_PI[[#This Row],[List 1]],Table_PI[[#This Row],[List 2]],Table_PI[[#This Row],[List 3]],Table_PI[[#This Row],[Size]],Table_PI[[#This Row],[Input 1]],Table_PI[[#This Row],[Input 2]],Table_PI[[#This Row],[Input 3]],Table_PI[[#This Row],[Input 4]],'Customer Information'!$AR$12,1,ROW())>0,MeasureCalc(Table_PI[[#This Row],[Hide:\nFormula Name]],Table_PI[[#This Row],[Quantity]],Table_PI[[#This Row],[List 1]],Table_PI[[#This Row],[List 2]],Table_PI[[#This Row],[List 3]],Table_PI[[#This Row],[Size]],Table_PI[[#This Row],[Input 1]],Table_PI[[#This Row],[Input 2]],Table_PI[[#This Row],[Input 3]],Table_PI[[#This Row],[Input 4]],'Customer Information'!$AR$12,5,ROW()),\"No Rebate\"),\"No Rebate\"),0)","v":0},{"$f":"IF(Table_PI[[#This Row],[Hide:\nFormula Name]]<>\"\",IFERROR(IF(MeasureCalc(Table_PI[[#This Row],[Hide:\nFormula Name]],Table_PI[[#This Row],[Quantity]],Table_PI[[#This Row],[List 1]],Table_PI[[#This Row],[List 2]],Table_PI[[#This Row],[List 3]],Table_PI[[#This Row],[Size]],Table_PI[[#This Row],[Input 1]],Table_PI[[#This Row],[Input 2]],Table_PI[[#This Row],[Input 3]],Table_PI[[#This Row],[Input 4]],'Customer Information'!$AR$12,1,ROW())>0,MeasureCalc(Table_PI[[#This Row],[Hide:\nFormula Name]],Table_PI[[#This Row],[Quantity]],Table_PI[[#This Row],[List 1]],Table_PI[[#This Row],[List 2]],Table_PI[[#This Row],[List 3]],Table_PI[[#This Row],[Size]],Table_PI[[#This Row],[Input 1]],Table_PI[[#This Row],[Input 2]],Table_PI[[#This Row],[Input 3]],Table_PI[[#This Row],[Input 4]],'Customer Information'!$AR$12,6,ROW()),\"No Rebate\"),\"No Rebate\"),0)","v":0},{"$f":"IF(Table_PI[[#This Row],[Hide:\nFormula Name]]<>\"\",IFERROR(IF(MeasureCalc(Table_PI[[#This Row],[Hide:\nFormula Name]],Table_PI[[#This Row],[Quantity]],Table_PI[[#This Row],[List 1]],Table_PI[[#This Row],[List 2]],Table_PI[[#This Row],[List 3]],Table_PI[[#This Row],[Size]],Table_PI[[#This Row],[Input 1]],Table_PI[[#This Row],[Input 2]],Table_PI[[#This Row],[Input 3]],Table_PI[[#This Row],[Input 4]],'Customer Information'!$AR$12,1,ROW())>0,MeasureCalc(Table_PI[[#This Row],[Hide:\nFormula Name]],Table_PI[[#This Row],[Quantity]],Table_PI[[#This Row],[List 1]],Table_PI[[#This Row],[List 2]],Table_PI[[#This Row],[List 3]],Table_PI[[#This Row],[Size]],Table_PI[[#This Row],[Input 1]],Table_PI[[#This Row],[Input 2]],Table_PI[[#This Row],[Input 3]],Table_PI[[#This Row],[Input 4]],'Customer Information'!$AR$12,7,ROW()),\"No Rebate\"),\"No Rebate\"),0)","v":0},{"$f":"IF(Table_PI[[#This Row],[Hide:\nFormula Name]]<>\"\",IFERROR(IF(MeasureCalc(Table_PI[[#This Row],[Hide:\nFormula Name]],Table_PI[[#This Row],[Quantity]],Table_PI[[#This Row],[List 1]],Table_PI[[#This Row],[List 2]],Table_PI[[#This Row],[List 3]],Table_PI[[#This Row],[Size]],Table_PI[[#This Row],[Input 1]],Table_PI[[#This Row],[Input 2]],Table_PI[[#This Row],[Input 3]],Table_PI[[#This Row],[Input 4]],'Customer Information'!$AR$12,1,ROW())>0,MeasureCalc(Table_PI[[#This Row],[Hide:\nFormula Name]],Table_PI[[#This Row],[Quantity]],Table_PI[[#This Row],[List 1]],Table_PI[[#This Row],[List 2]],Table_PI[[#This Row],[List 3]],Table_PI[[#This Row],[Size]],Table_PI[[#This Row],[Input 1]],Table_PI[[#This Row],[Input 2]],Table_PI[[#This Row],[Input 3]],Table_PI[[#This Row],[Input 4]],'Customer Information'!$AR$12,8,ROW()),\"No Rebate\"),\"No Rebate\"),0)","v":0},{"$f":"IF(Table_PI[[#This Row],[Hide:\nFormula Name]]<>\"\",IF(AND(Table_PI[[#This Row],[Hide:\nFormula Name]]<>\"\",OR(Table_PI[[#This Row],[Rebate]]>0,Table_PI[[#This Row],[Rebate]]=\"No Rebate\")),TRUE,\"MI: Line Item \" & $A42),\"\")","v":""}]
[{"$f":"IF(Table_PI[[#This Row],[Hide:\nFormula Name]]<>\"\",MAX($A$2:A42)+1,\"\")","v":""},null,null,null,null,null,null,null,null,null,null,null,null,null,null,{"$f":"IFERROR(VLOOKUP(Table_PI[[#This Row],[Measure]],'Equipment Lookups'!$C$3:$D$23,2,FALSE),\"\")","v":""},{"$f":"IF(Table_PI[[#This Row],[Hide:\nFormula Name]]<>\"\",IFERROR(IF(MeasureCalc(Table_PI[[#This Row],[Hide:\nFormula Name]],Table_PI[[#This Row],[Quantity]],Table_PI[[#This Row],[List 1]],Table_PI[[#This Row],[List 2]],Table_PI[[#This Row],[List 3]],Table_PI[[#This Row],[Size]],Table_PI[[#This Row],[Input 1]],Table_PI[[#This Row],[Input 2]],Table_PI[[#This Row],[Input 3]],Table_PI[[#This Row],[Input 4]],'Customer Information'!$AR$12,1,ROW())>0,MeasureCalc(Table_PI[[#This Row],[Hide:\nFormula Name]],Table_PI[[#This Row],[Quantity]],Table_PI[[#This Row],[List 1]],Table_PI[[#This Row],[List 2]],Table_PI[[#This Row],[List 3]],Table_PI[[#This Row],[Size]],Table_PI[[#This Row],[Input 1]],Table_PI[[#This Row],[Input 2]],Table_PI[[#This Row],[Input 3]],Table_PI[[#This Row],[Input 4]],'Customer Information'!$AR$12,1,ROW()),\"No Rebate\"),\"No Rebate\"),0)","v":0},{"$f":"IF(Table_PI[[#This Row],[Hide:\nFormula Name]]<>\"\",IFERROR(IF(MeasureCalc(Table_PI[[#This Row],[Hide:\nFormula Name]],Table_PI[[#This Row],[Quantity]],Table_PI[[#This Row],[List 1]],Table_PI[[#This Row],[List 2]],Table_PI[[#This Row],[List 3]],Table_PI[[#This Row],[Size]],Table_PI[[#This Row],[Input 1]],Table_PI[[#This Row],[Input 2]],Table_PI[[#This Row],[Input 3]],Table_PI[[#This Row],[Input 4]],'Customer Information'!$AR$12,1,ROW())>0,MeasureCalc(Table_PI[[#This Row],[Hide:\nFormula Name]],Table_PI[[#This Row],[Quantity]],Table_PI[[#This Row],[List 1]],Table_PI[[#This Row],[List 2]],Table_PI[[#This Row],[List 3]],Table_PI[[#This Row],[Size]],Table_PI[[#This Row],[Input 1]],Table_PI[[#This Row],[Input 2]],Table_PI[[#This Row],[Input 3]],Table_PI[[#This Row],[Input 4]],'Customer Information'!$AR$12,2,ROW()),\"No Rebate\"),\"No Rebate\"),0)","v":0},{"$f":"IF(Table_PI[[#This Row],[Hide:\nFormula Name]]<>\"\",IFERROR(IF(MeasureCalc(Table_PI[[#This Row],[Hide:\nFormula Name]],Table_PI[[#This Row],[Quantity]],Table_PI[[#This Row],[List 1]],Table_PI[[#This Row],[List 2]],Table_PI[[#This Row],[List 3]],Table_PI[[#This Row],[Size]],Table_PI[[#This Row],[Input 1]],Table_PI[[#This Row],[Input 2]],Table_PI[[#This Row],[Input 3]],Table_PI[[#This Row],[Input 4]],'Customer Information'!$AR$12,1,ROW())>0,MeasureCalc(Table_PI[[#This Row],[Hide:\nFormula Name]],Table_PI[[#This Row],[Quantity]],Table_PI[[#This Row],[List 1]],Table_PI[[#This Row],[List 2]],Table_PI[[#This Row],[List 3]],Table_PI[[#This Row],[Size]],Table_PI[[#This Row],[Input 1]],Table_PI[[#This Row],[Input 2]],Table_PI[[#This Row],[Input 3]],Table_PI[[#This Row],[Input 4]],'Customer Information'!$AR$12,3,ROW()),\"No Rebate\"),\"No Rebate\"),0)","v":0},{"$f":"IF(Table_PI[[#This Row],[Hide:\nFormula Name]]<>\"\",IFERROR(IF(MeasureCalc(Table_PI[[#This Row],[Hide:\nFormula Name]],Table_PI[[#This Row],[Quantity]],Table_PI[[#This Row],[List 1]],Table_PI[[#This Row],[List 2]],Table_PI[[#This Row],[List 3]],Table_PI[[#This Row],[Size]],Table_PI[[#This Row],[Input 1]],Table_PI[[#This Row],[Input 2]],Table_PI[[#This Row],[Input 3]],Table_PI[[#This Row],[Input 4]],'Customer Information'!$AR$12,1,ROW())>0,MeasureCalc(Table_PI[[#This Row],[Hide:\nFormula Name]],Table_PI[[#This Row],[Quantity]],Table_PI[[#This Row],[List 1]],Table_PI[[#This Row],[List 2]],Table_PI[[#This Row],[List 3]],Table_PI[[#This Row],[Size]],Table_PI[[#This Row],[Input 1]],Table_PI[[#This Row],[Input 2]],Table_PI[[#This Row],[Input 3]],Table_PI[[#This Row],[Input 4]],'Customer Information'!$AR$12,4,ROW()),\"No Rebate\"),\"No Rebate\"),0)","v":0},{"$f":"IF(Table_PI[[#This Row],[Hide:\nFormula Name]]<>\"\",IFERROR(IF(MeasureCalc(Table_PI[[#This Row],[Hide:\nFormula Name]],Table_PI[[#This Row],[Quantity]],Table_PI[[#This Row],[List 1]],Table_PI[[#This Row],[List 2]],Table_PI[[#This Row],[List 3]],Table_PI[[#This Row],[Size]],Table_PI[[#This Row],[Input 1]],Table_PI[[#This Row],[Input 2]],Table_PI[[#This Row],[Input 3]],Table_PI[[#This Row],[Input 4]],'Customer Information'!$AR$12,1,ROW())>0,MeasureCalc(Table_PI[[#This Row],[Hide:\nFormula Name]],Table_PI[[#This Row],[Quantity]],Table_PI[[#This Row],[List 1]],Table_PI[[#This Row],[List 2]],Table_PI[[#This Row],[List 3]],Table_PI[[#This Row],[Size]],Table_PI[[#This Row],[Input 1]],Table_PI[[#This Row],[Input 2]],Table_PI[[#This Row],[Input 3]],Table_PI[[#This Row],[Input 4]],'Customer Information'!$AR$12,5,ROW()),\"No Rebate\"),\"No Rebate\"),0)","v":0},{"$f":"IF(Table_PI[[#This Row],[Hide:\nFormula Name]]<>\"\",IFERROR(IF(MeasureCalc(Table_PI[[#This Row],[Hide:\nFormula Name]],Table_PI[[#This Row],[Quantity]],Table_PI[[#This Row],[List 1]],Table_PI[[#This Row],[List 2]],Table_PI[[#This Row],[List 3]],Table_PI[[#This Row],[Size]],Table_PI[[#This Row],[Input 1]],Table_PI[[#This Row],[Input 2]],Table_PI[[#This Row],[Input 3]],Table_PI[[#This Row],[Input 4]],'Customer Information'!$AR$12,1,ROW())>0,MeasureCalc(Table_PI[[#This Row],[Hide:\nFormula Name]],Table_PI[[#This Row],[Quantity]],Table_PI[[#This Row],[List 1]],Table_PI[[#This Row],[List 2]],Table_PI[[#This Row],[List 3]],Table_PI[[#This Row],[Size]],Table_PI[[#This Row],[Input 1]],Table_PI[[#This Row],[Input 2]],Table_PI[[#This Row],[Input 3]],Table_PI[[#This Row],[Input 4]],'Customer Information'!$AR$12,6,ROW()),\"No Rebate\"),\"No Rebate\"),0)","v":0},{"$f":"IF(Table_PI[[#This Row],[Hide:\nFormula Name]]<>\"\",IFERROR(IF(MeasureCalc(Table_PI[[#This Row],[Hide:\nFormula Name]],Table_PI[[#This Row],[Quantity]],Table_PI[[#This Row],[List 1]],Table_PI[[#This Row],[List 2]],Table_PI[[#This Row],[List 3]],Table_PI[[#This Row],[Size]],Table_PI[[#This Row],[Input 1]],Table_PI[[#This Row],[Input 2]],Table_PI[[#This Row],[Input 3]],Table_PI[[#This Row],[Input 4]],'Customer Information'!$AR$12,1,ROW())>0,MeasureCalc(Table_PI[[#This Row],[Hide:\nFormula Name]],Table_PI[[#This Row],[Quantity]],Table_PI[[#This Row],[List 1]],Table_PI[[#This Row],[List 2]],Table_PI[[#This Row],[List 3]],Table_PI[[#This Row],[Size]],Table_PI[[#This Row],[Input 1]],Table_PI[[#This Row],[Input 2]],Table_PI[[#This Row],[Input 3]],Table_PI[[#This Row],[Input 4]],'Customer Information'!$AR$12,7,ROW()),\"No Rebate\"),\"No Rebate\"),0)","v":0},{"$f":"IF(Table_PI[[#This Row],[Hide:\nFormula Name]]<>\"\",IFERROR(IF(MeasureCalc(Table_PI[[#This Row],[Hide:\nFormula Name]],Table_PI[[#This Row],[Quantity]],Table_PI[[#This Row],[List 1]],Table_PI[[#This Row],[List 2]],Table_PI[[#This Row],[List 3]],Table_PI[[#This Row],[Size]],Table_PI[[#This Row],[Input 1]],Table_PI[[#This Row],[Input 2]],Table_PI[[#This Row],[Input 3]],Table_PI[[#This Row],[Input 4]],'Customer Information'!$AR$12,1,ROW())>0,MeasureCalc(Table_PI[[#This Row],[Hide:\nFormula Name]],Table_PI[[#This Row],[Quantity]],Table_PI[[#This Row],[List 1]],Table_PI[[#This Row],[List 2]],Table_PI[[#This Row],[List 3]],Table_PI[[#This Row],[Size]],Table_PI[[#This Row],[Input 1]],Table_PI[[#This Row],[Input 2]],Table_PI[[#This Row],[Input 3]],Table_PI[[#This Row],[Input 4]],'Customer Information'!$AR$12,8,ROW()),\"No Rebate\"),\"No Rebate\"),0)","v":0},{"$f":"IF(Table_PI[[#This Row],[Hide:\nFormula Name]]<>\"\",IF(AND(Table_PI[[#This Row],[Hide:\nFormula Name]]<>\"\",OR(Table_PI[[#This Row],[Rebate]]>0,Table_PI[[#This Row],[Rebate]]=\"No Rebate\")),TRUE,\"MI: Line Item \" & $A43),\"\")","v":""}]
[{"$f":"IF(Table_PI[[#This Row],[Hide:\nFormula Name]]<>\"\",MAX($A$2:A43)+1,\"\")","v":""},null,null,null,null,null,null,null,null,null,null,null,null,null,null,{"$f":"IFERROR(VLOOKUP(Table_PI[[#This Row],[Measure]],'Equipment Lookups'!$C$3:$D$23,2,FALSE),\"\")","v":""},{"$f":"IF(Table_PI[[#This Row],[Hide:\nFormula Name]]<>\"\",IFERROR(IF(MeasureCalc(Table_PI[[#This Row],[Hide:\nFormula Name]],Table_PI[[#This Row],[Quantity]],Table_PI[[#This Row],[List 1]],Table_PI[[#This Row],[List 2]],Table_PI[[#This Row],[List 3]],Table_PI[[#This Row],[Size]],Table_PI[[#This Row],[Input 1]],Table_PI[[#This Row],[Input 2]],Table_PI[[#This Row],[Input 3]],Table_PI[[#This Row],[Input 4]],'Customer Information'!$AR$12,1,ROW())>0,MeasureCalc(Table_PI[[#This Row],[Hide:\nFormula Name]],Table_PI[[#This Row],[Quantity]],Table_PI[[#This Row],[List 1]],Table_PI[[#This Row],[List 2]],Table_PI[[#This Row],[List 3]],Table_PI[[#This Row],[Size]],Table_PI[[#This Row],[Input 1]],Table_PI[[#This Row],[Input 2]],Table_PI[[#This Row],[Input 3]],Table_PI[[#This Row],[Input 4]],'Customer Information'!$AR$12,1,ROW()),\"No Rebate\"),\"No Rebate\"),0)","v":0},{"$f":"IF(Table_PI[[#This Row],[Hide:\nFormula Name]]<>\"\",IFERROR(IF(MeasureCalc(Table_PI[[#This Row],[Hide:\nFormula Name]],Table_PI[[#This Row],[Quantity]],Table_PI[[#This Row],[List 1]],Table_PI[[#This Row],[List 2]],Table_PI[[#This Row],[List 3]],Table_PI[[#This Row],[Size]],Table_PI[[#This Row],[Input 1]],Table_PI[[#This Row],[Input 2]],Table_PI[[#This Row],[Input 3]],Table_PI[[#This Row],[Input 4]],'Customer Information'!$AR$12,1,ROW())>0,MeasureCalc(Table_PI[[#This Row],[Hide:\nFormula Name]],Table_PI[[#This Row],[Quantity]],Table_PI[[#This Row],[List 1]],Table_PI[[#This Row],[List 2]],Table_PI[[#This Row],[List 3]],Table_PI[[#This Row],[Size]],Table_PI[[#This Row],[Input 1]],Table_PI[[#This Row],[Input 2]],Table_PI[[#This Row],[Input 3]],Table_PI[[#This Row],[Input 4]],'Customer Information'!$AR$12,2,ROW()),\"No Rebate\"),\"No Rebate\"),0)","v":0},{"$f":"IF(Table_PI[[#This Row],[Hide:\nFormula Name]]<>\"\",IFERROR(IF(MeasureCalc(Table_PI[[#This Row],[Hide:\nFormula Name]],Table_PI[[#This Row],[Quantity]],Table_PI[[#This Row],[List 1]],Table_PI[[#This Row],[List 2]],Table_PI[[#This Row],[List 3]],Table_PI[[#This Row],[Size]],Table_PI[[#This Row],[Input 1]],Table_PI[[#This Row],[Input 2]],Table_PI[[#This Row],[Input 3]],Table_PI[[#This Row],[Input 4]],'Customer Information'!$AR$12,1,ROW())>0,MeasureCalc(Table_PI[[#This Row],[Hide:\nFormula Name]],Table_PI[[#This Row],[Quantity]],Table_PI[[#This Row],[List 1]],Table_PI[[#This Row],[List 2]],Table_PI[[#This Row],[List 3]],Table_PI[[#This Row],[Size]],Table_PI[[#This Row],[Input 1]],Table_PI[[#This Row],[Input 2]],Table_PI[[#This Row],[Input 3]],Table_PI[[#This Row],[Input 4]],'Customer Information'!$AR$12,3,ROW()),\"No Rebate\"),\"No Rebate\"),0)","v":0},{"$f":"IF(Table_PI[[#This Row],[Hide:\nFormula Name]]<>\"\",IFERROR(IF(MeasureCalc(Table_PI[[#This Row],[Hide:\nFormula Name]],Table_PI[[#This Row],[Quantity]],Table_PI[[#This Row],[List 1]],Table_PI[[#This Row],[List 2]],Table_PI[[#This Row],[List 3]],Table_PI[[#This Row],[Size]],Table_PI[[#This Row],[Input 1]],Table_PI[[#This Row],[Input 2]],Table_PI[[#This Row],[Input 3]],Table_PI[[#This Row],[Input 4]],'Customer Information'!$AR$12,1,ROW())>0,MeasureCalc(Table_PI[[#This Row],[Hide:\nFormula Name]],Table_PI[[#This Row],[Quantity]],Table_PI[[#This Row],[List 1]],Table_PI[[#This Row],[List 2]],Table_PI[[#This Row],[List 3]],Table_PI[[#This Row],[Size]],Table_PI[[#This Row],[Input 1]],Table_PI[[#This Row],[Input 2]],Table_PI[[#This Row],[Input 3]],Table_PI[[#This Row],[Input 4]],'Customer Information'!$AR$12,4,ROW()),\"No Rebate\"),\"No Rebate\"),0)","v":0},{"$f":"IF(Table_PI[[#This Row],[Hide:\nFormula Name]]<>\"\",IFERROR(IF(MeasureCalc(Table_PI[[#This Row],[Hide:\nFormula Name]],Table_PI[[#This Row],[Quantity]],Table_PI[[#This Row],[List 1]],Table_PI[[#This Row],[List 2]],Table_PI[[#This Row],[List 3]],Table_PI[[#This Row],[Size]],Table_PI[[#This Row],[Input 1]],Table_PI[[#This Row],[Input 2]],Table_PI[[#This Row],[Input 3]],Table_PI[[#This Row],[Input 4]],'Customer Information'!$AR$12,1,ROW())>0,MeasureCalc(Table_PI[[#This Row],[Hide:\nFormula Name]],Table_PI[[#This Row],[Quantity]],Table_PI[[#This Row],[List 1]],Table_PI[[#This Row],[List 2]],Table_PI[[#This Row],[List 3]],Table_PI[[#This Row],[Size]],Table_PI[[#This Row],[Input 1]],Table_PI[[#This Row],[Input 2]],Table_PI[[#This Row],[Input 3]],Table_PI[[#This Row],[Input 4]],'Customer Information'!$AR$12,5,ROW()),\"No Rebate\"),\"No Rebate\"),0)","v":0},{"$f":"IF(Table_PI[[#This Row],[Hide:\nFormula Name]]<>\"\",IFERROR(IF(MeasureCalc(Table_PI[[#This Row],[Hide:\nFormula Name]],Table_PI[[#This Row],[Quantity]],Table_PI[[#This Row],[List 1]],Table_PI[[#This Row],[List 2]],Table_PI[[#This Row],[List 3]],Table_PI[[#This Row],[Size]],Table_PI[[#This Row],[Input 1]],Table_PI[[#This Row],[Input 2]],Table_PI[[#This Row],[Input 3]],Table_PI[[#This Row],[Input 4]],'Customer Information'!$AR$12,1,ROW())>0,MeasureCalc(Table_PI[[#This Row],[Hide:\nFormula Name]],Table_PI[[#This Row],[Quantity]],Table_PI[[#This Row],[List 1]],Table_PI[[#This Row],[List 2]],Table_PI[[#This Row],[List 3]],Table_PI[[#This Row],[Size]],Table_PI[[#This Row],[Input 1]],Table_PI[[#This Row],[Input 2]],Table_PI[[#This Row],[Input 3]],Table_PI[[#This Row],[Input 4]],'Customer Information'!$AR$12,6,ROW()),\"No Rebate\"),\"No Rebate\"),0)","v":0},{"$f":"IF(Table_PI[[#This Row],[Hide:\nFormula Name]]<>\"\",IFERROR(IF(MeasureCalc(Table_PI[[#This Row],[Hide:\nFormula Name]],Table_PI[[#This Row],[Quantity]],Table_PI[[#This Row],[List 1]],Table_PI[[#This Row],[List 2]],Table_PI[[#This Row],[List 3]],Table_PI[[#This Row],[Size]],Table_PI[[#This Row],[Input 1]],Table_PI[[#This Row],[Input 2]],Table_PI[[#This Row],[Input 3]],Table_PI[[#This Row],[Input 4]],'Customer Information'!$AR$12,1,ROW())>0,MeasureCalc(Table_PI[[#This Row],[Hide:\nFormula Name]],Table_PI[[#This Row],[Quantity]],Table_PI[[#This Row],[List 1]],Table_PI[[#This Row],[List 2]],Table_PI[[#This Row],[List 3]],Table_PI[[#This Row],[Size]],Table_PI[[#This Row],[Input 1]],Table_PI[[#This Row],[Input 2]],Table_PI[[#This Row],[Input 3]],Table_PI[[#This Row],[Input 4]],'Customer Information'!$AR$12,7,ROW()),\"No Rebate\"),\"No Rebate\"),0)","v":0},{"$f":"IF(Table_PI[[#This Row],[Hide:\nFormula Name]]<>\"\",IFERROR(IF(MeasureCalc(Table_PI[[#This Row],[Hide:\nFormula Name]],Table_PI[[#This Row],[Quantity]],Table_PI[[#This Row],[List 1]],Table_PI[[#This Row],[List 2]],Table_PI[[#This Row],[List 3]],Table_PI[[#This Row],[Size]],Table_PI[[#This Row],[Input 1]],Table_PI[[#This Row],[Input 2]],Table_PI[[#This Row],[Input 3]],Table_PI[[#This Row],[Input 4]],'Customer Information'!$AR$12,1,ROW())>0,MeasureCalc(Table_PI[[#This Row],[Hide:\nFormula Name]],Table_PI[[#This Row],[Quantity]],Table_PI[[#This Row],[List 1]],Table_PI[[#This Row],[List 2]],Table_PI[[#This Row],[List 3]],Table_PI[[#This Row],[Size]],Table_PI[[#This Row],[Input 1]],Table_PI[[#This Row],[Input 2]],Table_PI[[#This Row],[Input 3]],Table_PI[[#This Row],[Input 4]],'Customer Information'!$AR$12,8,ROW()),\"No Rebate\"),\"No Rebate\"),0)","v":0},{"$f":"IF(Table_PI[[#This Row],[Hide:\nFormula Name]]<>\"\",IF(AND(Table_PI[[#This Row],[Hide:\nFormula Name]]<>\"\",OR(Table_PI[[#This Row],[Rebate]]>0,Table_PI[[#This Row],[Rebate]]=\"No Rebate\")),TRUE,\"MI: Line Item \" & $A44),\"\")","v":""}]
[{"$f":"IF(Table_PI[[#This Row],[Hide:\nFormula Name]]<>\"\",MAX($A$2:A44)+1,\"\")","v":""},null,null,null,null,null,null,null,null,null,null,null,null,null,null,{"$f":"IFERROR(VLOOKUP(Table_PI[[#This Row],[Measure]],'Equipment Lookups'!$C$3:$D$23,2,FALSE),\"\")","v":""},{"$f":"IF(Table_PI[[#This Row],[Hide:\nFormula Name]]<>\"\",IFERROR(IF(MeasureCalc(Table_PI[[#This Row],[Hide:\nFormula Name]],Table_PI[[#This Row],[Quantity]],Table_PI[[#This Row],[List 1]],Table_PI[[#This Row],[List 2]],Table_PI[[#This Row],[List 3]],Table_PI[[#This Row],[Size]],Table_PI[[#This Row],[Input 1]],Table_PI[[#This Row],[Input 2]],Table_PI[[#This Row],[Input 3]],Table_PI[[#This Row],[Input 4]],'Customer Information'!$AR$12,1,ROW())>0,MeasureCalc(Table_PI[[#This Row],[Hide:\nFormula Name]],Table_PI[[#This Row],[Quantity]],Table_PI[[#This Row],[List 1]],Table_PI[[#This Row],[List 2]],Table_PI[[#This Row],[List 3]],Table_PI[[#This Row],[Size]],Table_PI[[#This Row],[Input 1]],Table_PI[[#This Row],[Input 2]],Table_PI[[#This Row],[Input 3]],Table_PI[[#This Row],[Input 4]],'Customer Information'!$AR$12,1,ROW()),\"No Rebate\"),\"No Rebate\"),0)","v":0},{"$f":"IF(Table_PI[[#This Row],[Hide:\nFormula Name]]<>\"\",IFERROR(IF(MeasureCalc(Table_PI[[#This Row],[Hide:\nFormula Name]],Table_PI[[#This Row],[Quantity]],Table_PI[[#This Row],[List 1]],Table_PI[[#This Row],[List 2]],Table_PI[[#This Row],[List 3]],Table_PI[[#This Row],[Size]],Table_PI[[#This Row],[Input 1]],Table_PI[[#This Row],[Input 2]],Table_PI[[#This Row],[Input 3]],Table_PI[[#This Row],[Input 4]],'Customer Information'!$AR$12,1,ROW())>0,MeasureCalc(Table_PI[[#This Row],[Hide:\nFormula Name]],Table_PI[[#This Row],[Quantity]],Table_PI[[#This Row],[List 1]],Table_PI[[#This Row],[List 2]],Table_PI[[#This Row],[List 3]],Table_PI[[#This Row],[Size]],Table_PI[[#This Row],[Input 1]],Table_PI[[#This Row],[Input 2]],Table_PI[[#This Row],[Input 3]],Table_PI[[#This Row],[Input 4]],'Customer Information'!$AR$12,2,ROW()),\"No Rebate\"),\"No Rebate\"),0)","v":0},{"$f":"IF(Table_PI[[#This Row],[Hide:\nFormula Name]]<>\"\",IFERROR(IF(MeasureCalc(Table_PI[[#This Row],[Hide:\nFormula Name]],Table_PI[[#This Row],[Quantity]],Table_PI[[#This Row],[List 1]],Table_PI[[#This Row],[List 2]],Table_PI[[#This Row],[List 3]],Table_PI[[#This Row],[Size]],Table_PI[[#This Row],[Input 1]],Table_PI[[#This Row],[Input 2]],Table_PI[[#This Row],[Input 3]],Table_PI[[#This Row],[Input 4]],'Customer Information'!$AR$12,1,ROW())>0,MeasureCalc(Table_PI[[#This Row],[Hide:\nFormula Name]],Table_PI[[#This Row],[Quantity]],Table_PI[[#This Row],[List 1]],Table_PI[[#This Row],[List 2]],Table_PI[[#This Row],[List 3]],Table_PI[[#This Row],[Size]],Table_PI[[#This Row],[Input 1]],Table_PI[[#This Row],[Input 2]],Table_PI[[#This Row],[Input 3]],Table_PI[[#This Row],[Input 4]],'Customer Information'!$AR$12,3,ROW()),\"No Rebate\"),\"No Rebate\"),0)","v":0},{"$f":"IF(Table_PI[[#This Row],[Hide:\nFormula Name]]<>\"\",IFERROR(IF(MeasureCalc(Table_PI[[#This Row],[Hide:\nFormula Name]],Table_PI[[#This Row],[Quantity]],Table_PI[[#This Row],[List 1]],Table_PI[[#This Row],[List 2]],Table_PI[[#This Row],[List 3]],Table_PI[[#This Row],[Size]],Table_PI[[#This Row],[Input 1]],Table_PI[[#This Row],[Input 2]],Table_PI[[#This Row],[Input 3]],Table_PI[[#This Row],[Input 4]],'Customer Information'!$AR$12,1,ROW())>0,MeasureCalc(Table_PI[[#This Row],[Hide:\nFormula Name]],Table_PI[[#This Row],[Quantity]],Table_PI[[#This Row],[List 1]],Table_PI[[#This Row],[List 2]],Table_PI[[#This Row],[List 3]],Table_PI[[#This Row],[Size]],Table_PI[[#This Row],[Input 1]],Table_PI[[#This Row],[Input 2]],Table_PI[[#This Row],[Input 3]],Table_PI[[#This Row],[Input 4]],'Customer Information'!$AR$12,4,ROW()),\"No Rebate\"),\"No Rebate\"),0)","v":0},{"$f":"IF(Table_PI[[#This Row],[Hide:\nFormula Name]]<>\"\",IFERROR(IF(MeasureCalc(Table_PI[[#This Row],[Hide:\nFormula Name]],Table_PI[[#This Row],[Quantity]],Table_PI[[#This Row],[List 1]],Table_PI[[#This Row],[List 2]],Table_PI[[#This Row],[List 3]],Table_PI[[#This Row],[Size]],Table_PI[[#This Row],[Input 1]],Table_PI[[#This Row],[Input 2]],Table_PI[[#This Row],[Input 3]],Table_PI[[#This Row],[Input 4]],'Customer Information'!$AR$12,1,ROW())>0,MeasureCalc(Table_PI[[#This Row],[Hide:\nFormula Name]],Table_PI[[#This Row],[Quantity]],Table_PI[[#This Row],[List 1]],Table_PI[[#This Row],[List 2]],Table_PI[[#This Row],[List 3]],Table_PI[[#This Row],[Size]],Table_PI[[#This Row],[Input 1]],Table_PI[[#This Row],[Input 2]],Table_PI[[#This Row],[Input 3]],Table_PI[[#This Row],[Input 4]],'Customer Information'!$AR$12,5,ROW()),\"No Rebate\"),\"No Rebate\"),0)","v":0},{"$f":"IF(Table_PI[[#This Row],[Hide:\nFormula Name]]<>\"\",IFERROR(IF(MeasureCalc(Table_PI[[#This Row],[Hide:\nFormula Name]],Table_PI[[#This Row],[Quantity]],Table_PI[[#This Row],[List 1]],Table_PI[[#This Row],[List 2]],Table_PI[[#This Row],[List 3]],Table_PI[[#This Row],[Size]],Table_PI[[#This Row],[Input 1]],Table_PI[[#This Row],[Input 2]],Table_PI[[#This Row],[Input 3]],Table_PI[[#This Row],[Input 4]],'Customer Information'!$AR$12,1,ROW())>0,MeasureCalc(Table_PI[[#This Row],[Hide:\nFormula Name]],Table_PI[[#This Row],[Quantity]],Table_PI[[#This Row],[List 1]],Table_PI[[#This Row],[List 2]],Table_PI[[#This Row],[List 3]],Table_PI[[#This Row],[Size]],Table_PI[[#This Row],[Input 1]],Table_PI[[#This Row],[Input 2]],Table_PI[[#This Row],[Input 3]],Table_PI[[#This Row],[Input 4]],'Customer Information'!$AR$12,6,ROW()),\"No Rebate\"),\"No Rebate\"),0)","v":0},{"$f":"IF(Table_PI[[#This Row],[Hide:\nFormula Name]]<>\"\",IFERROR(IF(MeasureCalc(Table_PI[[#This Row],[Hide:\nFormula Name]],Table_PI[[#This Row],[Quantity]],Table_PI[[#This Row],[List 1]],Table_PI[[#This Row],[List 2]],Table_PI[[#This Row],[List 3]],Table_PI[[#This Row],[Size]],Table_PI[[#This Row],[Input 1]],Table_PI[[#This Row],[Input 2]],Table_PI[[#This Row],[Input 3]],Table_PI[[#This Row],[Input 4]],'Customer Information'!$AR$12,1,ROW())>0,MeasureCalc(Table_PI[[#This Row],[Hide:\nFormula Name]],Table_PI[[#This Row],[Quantity]],Table_PI[[#This Row],[List 1]],Table_PI[[#This Row],[List 2]],Table_PI[[#This Row],[List 3]],Table_PI[[#This Row],[Size]],Table_PI[[#This Row],[Input 1]],Table_PI[[#This Row],[Input 2]],Table_PI[[#This Row],[Input 3]],Table_PI[[#This Row],[Input 4]],'Customer Information'!$AR$12,7,ROW()),\"No Rebate\"),\"No Rebate\"),0)","v":0},{"$f":"IF(Table_PI[[#This Row],[Hide:\nFormula Name]]<>\"\",IFERROR(IF(MeasureCalc(Table_PI[[#This Row],[Hide:\nFormula Name]],Table_PI[[#This Row],[Quantity]],Table_PI[[#This Row],[List 1]],Table_PI[[#This Row],[List 2]],Table_PI[[#This Row],[List 3]],Table_PI[[#This Row],[Size]],Table_PI[[#This Row],[Input 1]],Table_PI[[#This Row],[Input 2]],Table_PI[[#This Row],[Input 3]],Table_PI[[#This Row],[Input 4]],'Customer Information'!$AR$12,1,ROW())>0,MeasureCalc(Table_PI[[#This Row],[Hide:\nFormula Name]],Table_PI[[#This Row],[Quantity]],Table_PI[[#This Row],[List 1]],Table_PI[[#This Row],[List 2]],Table_PI[[#This Row],[List 3]],Table_PI[[#This Row],[Size]],Table_PI[[#This Row],[Input 1]],Table_PI[[#This Row],[Input 2]],Table_PI[[#This Row],[Input 3]],Table_PI[[#This Row],[Input 4]],'Customer Information'!$AR$12,8,ROW()),\"No Rebate\"),\"No Rebate\"),0)","v":0},{"$f":"IF(Table_PI[[#This Row],[Hide:\nFormula Name]]<>\"\",IF(AND(Table_PI[[#This Row],[Hide:\nFormula Name]]<>\"\",OR(Table_PI[[#This Row],[Rebate]]>0,Table_PI[[#This Row],[Rebate]]=\"No Rebate\")),TRUE,\"MI: Line Item \" & $A45),\"\")","v":""}]
[{"$f":"IF(Table_PI[[#This Row],[Hide:\nFormula Name]]<>\"\",MAX($A$2:A45)+1,\"\")","v":""},null,null,null,null,null,null,null,null,null,null,null,null,null,null,{"$f":"IFERROR(VLOOKUP(Table_PI[[#This Row],[Measure]],'Equipment Lookups'!$C$3:$D$23,2,FALSE),\"\")","v":""},{"$f":"IF(Table_PI[[#This Row],[Hide:\nFormula Name]]<>\"\",IFERROR(IF(MeasureCalc(Table_PI[[#This Row],[Hide:\nFormula Name]],Table_PI[[#This Row],[Quantity]],Table_PI[[#This Row],[List 1]],Table_PI[[#This Row],[List 2]],Table_PI[[#This Row],[List 3]],Table_PI[[#This Row],[Size]],Table_PI[[#This Row],[Input 1]],Table_PI[[#This Row],[Input 2]],Table_PI[[#This Row],[Input 3]],Table_PI[[#This Row],[Input 4]],'Customer Information'!$AR$12,1,ROW())>0,MeasureCalc(Table_PI[[#This Row],[Hide:\nFormula Name]],Table_PI[[#This Row],[Quantity]],Table_PI[[#This Row],[List 1]],Table_PI[[#This Row],[List 2]],Table_PI[[#This Row],[List 3]],Table_PI[[#This Row],[Size]],Table_PI[[#This Row],[Input 1]],Table_PI[[#This Row],[Input 2]],Table_PI[[#This Row],[Input 3]],Table_PI[[#This Row],[Input 4]],'Customer Information'!$AR$12,1,ROW()),\"No Rebate\"),\"No Rebate\"),0)","v":0},{"$f":"IF(Table_PI[[#This Row],[Hide:\nFormula Name]]<>\"\",IFERROR(IF(MeasureCalc(Table_PI[[#This Row],[Hide:\nFormula Name]],Table_PI[[#This Row],[Quantity]],Table_PI[[#This Row],[List 1]],Table_PI[[#This Row],[List 2]],Table_PI[[#This Row],[List 3]],Table_PI[[#This Row],[Size]],Table_PI[[#This Row],[Input 1]],Table_PI[[#This Row],[Input 2]],Table_PI[[#This Row],[Input 3]],Table_PI[[#This Row],[Input 4]],'Customer Information'!$AR$12,1,ROW())>0,MeasureCalc(Table_PI[[#This Row],[Hide:\nFormula Name]],Table_PI[[#This Row],[Quantity]],Table_PI[[#This Row],[List 1]],Table_PI[[#This Row],[List 2]],Table_PI[[#This Row],[List 3]],Table_PI[[#This Row],[Size]],Table_PI[[#This Row],[Input 1]],Table_PI[[#This Row],[Input 2]],Table_PI[[#This Row],[Input 3]],Table_PI[[#This Row],[Input 4]],'Customer Information'!$AR$12,2,ROW()),\"No Rebate\"),\"No Rebate\"),0)","v":0},{"$f":"IF(Table_PI[[#This Row],[Hide:\nFormula Name]]<>\"\",IFERROR(IF(MeasureCalc(Table_PI[[#This Row],[Hide:\nFormula Name]],Table_PI[[#This Row],[Quantity]],Table_PI[[#This Row],[List 1]],Table_PI[[#This Row],[List 2]],Table_PI[[#This Row],[List 3]],Table_PI[[#This Row],[Size]],Table_PI[[#This Row],[Input 1]],Table_PI[[#This Row],[Input 2]],Table_PI[[#This Row],[Input 3]],Table_PI[[#This Row],[Input 4]],'Customer Information'!$AR$12,1,ROW())>0,MeasureCalc(Table_PI[[#This Row],[Hide:\nFormula Name]],Table_PI[[#This Row],[Quantity]],Table_PI[[#This Row],[List 1]],Table_PI[[#This Row],[List 2]],Table_PI[[#This Row],[List 3]],Table_PI[[#This Row],[Size]],Table_PI[[#This Row],[Input 1]],Table_PI[[#This Row],[Input 2]],Table_PI[[#This Row],[Input 3]],Table_PI[[#This Row],[Input 4]],'Customer Information'!$AR$12,3,ROW()),\"No Rebate\"),\"No Rebate\"),0)","v":0},{"$f":"IF(Table_PI[[#This Row],[Hide:\nFormula Name]]<>\"\",IFERROR(IF(MeasureCalc(Table_PI[[#This Row],[Hide:\nFormula Name]],Table_PI[[#This Row],[Quantity]],Table_PI[[#This Row],[List 1]],Table_PI[[#This Row],[List 2]],Table_PI[[#This Row],[List 3]],Table_PI[[#This Row],[Size]],Table_PI[[#This Row],[Input 1]],Table_PI[[#This Row],[Input 2]],Table_PI[[#This Row],[Input 3]],Table_PI[[#This Row],[Input 4]],'Customer Information'!$AR$12,1,ROW())>0,MeasureCalc(Table_PI[[#This Row],[Hide:\nFormula Name]],Table_PI[[#This Row],[Quantity]],Table_PI[[#This Row],[List 1]],Table_PI[[#This Row],[List 2]],Table_PI[[#This Row],[List 3]],Table_PI[[#This Row],[Size]],Table_PI[[#This Row],[Input 1]],Table_PI[[#This Row],[Input 2]],Table_PI[[#This Row],[Input 3]],Table_PI[[#This Row],[Input 4]],'Customer Information'!$AR$12,4,ROW()),\"No Rebate\"),\"No Rebate\"),0)","v":0},{"$f":"IF(Table_PI[[#This Row],[Hide:\nFormula Name]]<>\"\",IFERROR(IF(MeasureCalc(Table_PI[[#This Row],[Hide:\nFormula Name]],Table_PI[[#This Row],[Quantity]],Table_PI[[#This Row],[List 1]],Table_PI[[#This Row],[List 2]],Table_PI[[#This Row],[List 3]],Table_PI[[#This Row],[Size]],Table_PI[[#This Row],[Input 1]],Table_PI[[#This Row],[Input 2]],Table_PI[[#This Row],[Input 3]],Table_PI[[#This Row],[Input 4]],'Customer Information'!$AR$12,1,ROW())>0,MeasureCalc(Table_PI[[#This Row],[Hide:\nFormula Name]],Table_PI[[#This Row],[Quantity]],Table_PI[[#This Row],[List 1]],Table_PI[[#This Row],[List 2]],Table_PI[[#This Row],[List 3]],Table_PI[[#This Row],[Size]],Table_PI[[#This Row],[Input 1]],Table_PI[[#This Row],[Input 2]],Table_PI[[#This Row],[Input 3]],Table_PI[[#This Row],[Input 4]],'Customer Information'!$AR$12,5,ROW()),\"No Rebate\"),\"No Rebate\"),0)","v":0},{"$f":"IF(Table_PI[[#This Row],[Hide:\nFormula Name]]<>\"\",IFERROR(IF(MeasureCalc(Table_PI[[#This Row],[Hide:\nFormula Name]],Table_PI[[#This Row],[Quantity]],Table_PI[[#This Row],[List 1]],Table_PI[[#This Row],[List 2]],Table_PI[[#This Row],[List 3]],Table_PI[[#This Row],[Size]],Table_PI[[#This Row],[Input 1]],Table_PI[[#This Row],[Input 2]],Table_PI[[#This Row],[Input 3]],Table_PI[[#This Row],[Input 4]],'Customer Information'!$AR$12,1,ROW())>0,MeasureCalc(Table_PI[[#This Row],[Hide:\nFormula Name]],Table_PI[[#This Row],[Quantity]],Table_PI[[#This Row],[List 1]],Table_PI[[#This Row],[List 2]],Table_PI[[#This Row],[List 3]],Table_PI[[#This Row],[Size]],Table_PI[[#This Row],[Input 1]],Table_PI[[#This Row],[Input 2]],Table_PI[[#This Row],[Input 3]],Table_PI[[#This Row],[Input 4]],'Customer Information'!$AR$12,6,ROW()),\"No Rebate\"),\"No Rebate\"),0)","v":0},{"$f":"IF(Table_PI[[#This Row],[Hide:\nFormula Name]]<>\"\",IFERROR(IF(MeasureCalc(Table_PI[[#This Row],[Hide:\nFormula Name]],Table_PI[[#This Row],[Quantity]],Table_PI[[#This Row],[List 1]],Table_PI[[#This Row],[List 2]],Table_PI[[#This Row],[List 3]],Table_PI[[#This Row],[Size]],Table_PI[[#This Row],[Input 1]],Table_PI[[#This Row],[Input 2]],Table_PI[[#This Row],[Input 3]],Table_PI[[#This Row],[Input 4]],'Customer Information'!$AR$12,1,ROW())>0,MeasureCalc(Table_PI[[#This Row],[Hide:\nFormula Name]],Table_PI[[#This Row],[Quantity]],Table_PI[[#This Row],[List 1]],Table_PI[[#This Row],[List 2]],Table_PI[[#This Row],[List 3]],Table_PI[[#This Row],[Size]],Table_PI[[#This Row],[Input 1]],Table_PI[[#This Row],[Input 2]],Table_PI[[#This Row],[Input 3]],Table_PI[[#This Row],[Input 4]],'Customer Information'!$AR$12,7,ROW()),\"No Rebate\"),\"No Rebate\"),0)","v":0},{"$f":"IF(Table_PI[[#This Row],[Hide:\nFormula Name]]<>\"\",IFERROR(IF(MeasureCalc(Table_PI[[#This Row],[Hide:\nFormula Name]],Table_PI[[#This Row],[Quantity]],Table_PI[[#This Row],[List 1]],Table_PI[[#This Row],[List 2]],Table_PI[[#This Row],[List 3]],Table_PI[[#This Row],[Size]],Table_PI[[#This Row],[Input 1]],Table_PI[[#This Row],[Input 2]],Table_PI[[#This Row],[Input 3]],Table_PI[[#This Row],[Input 4]],'Customer Information'!$AR$12,1,ROW())>0,MeasureCalc(Table_PI[[#This Row],[Hide:\nFormula Name]],Table_PI[[#This Row],[Quantity]],Table_PI[[#This Row],[List 1]],Table_PI[[#This Row],[List 2]],Table_PI[[#This Row],[List 3]],Table_PI[[#This Row],[Size]],Table_PI[[#This Row],[Input 1]],Table_PI[[#This Row],[Input 2]],Table_PI[[#This Row],[Input 3]],Table_PI[[#This Row],[Input 4]],'Customer Information'!$AR$12,8,ROW()),\"No Rebate\"),\"No Rebate\"),0)","v":0},{"$f":"IF(Table_PI[[#This Row],[Hide:\nFormula Name]]<>\"\",IF(AND(Table_PI[[#This Row],[Hide:\nFormula Name]]<>\"\",OR(Table_PI[[#This Row],[Rebate]]>0,Table_PI[[#This Row],[Rebate]]=\"No Rebate\")),TRUE,\"MI: Line Item \" & $A46),\"\")","v":""}]
[{"$f":"IF(Table_PI[[#This Row],[Hide:\nFormula Name]]<>\"\",MAX($A$2:A46)+1,\"\")","v":""},null,null,null,null,null,null,null,null,null,null,null,null,null,null,{"$f":"IFERROR(VLOOKUP(Table_PI[[#This Row],[Measure]],'Equipment Lookups'!$C$3:$D$23,2,FALSE),\"\")","v":""},{"$f":"IF(Table_PI[[#This Row],[Hide:\nFormula Name]]<>\"\",IFERROR(IF(MeasureCalc(Table_PI[[#This Row],[Hide:\nFormula Name]],Table_PI[[#This Row],[Quantity]],Table_PI[[#This Row],[List 1]],Table_PI[[#This Row],[List 2]],Table_PI[[#This Row],[List 3]],Table_PI[[#This Row],[Size]],Table_PI[[#This Row],[Input 1]],Table_PI[[#This Row],[Input 2]],Table_PI[[#This Row],[Input 3]],Table_PI[[#This Row],[Input 4]],'Customer Information'!$AR$12,1,ROW())>0,MeasureCalc(Table_PI[[#This Row],[Hide:\nFormula Name]],Table_PI[[#This Row],[Quantity]],Table_PI[[#This Row],[List 1]],Table_PI[[#This Row],[List 2]],Table_PI[[#This Row],[List 3]],Table_PI[[#This Row],[Size]],Table_PI[[#This Row],[Input 1]],Table_PI[[#This Row],[Input 2]],Table_PI[[#This Row],[Input 3]],Table_PI[[#This Row],[Input 4]],'Customer Information'!$AR$12,1,ROW()),\"No Rebate\"),\"No Rebate\"),0)","v":0},{"$f":"IF(Table_PI[[#This Row],[Hide:\nFormula Name]]<>\"\",IFERROR(IF(MeasureCalc(Table_PI[[#This Row],[Hide:\nFormula Name]],Table_PI[[#This Row],[Quantity]],Table_PI[[#This Row],[List 1]],Table_PI[[#This Row],[List 2]],Table_PI[[#This Row],[List 3]],Table_PI[[#This Row],[Size]],Table_PI[[#This Row],[Input 1]],Table_PI[[#This Row],[Input 2]],Table_PI[[#This Row],[Input 3]],Table_PI[[#This Row],[Input 4]],'Customer Information'!$AR$12,1,ROW())>0,MeasureCalc(Table_PI[[#This Row],[Hide:\nFormula Name]],Table_PI[[#This Row],[Quantity]],Table_PI[[#This Row],[List 1]],Table_PI[[#This Row],[List 2]],Table_PI[[#This Row],[List 3]],Table_PI[[#This Row],[Size]],Table_PI[[#This Row],[Input 1]],Table_PI[[#This Row],[Input 2]],Table_PI[[#This Row],[Input 3]],Table_PI[[#This Row],[Input 4]],'Customer Information'!$AR$12,2,ROW()),\"No Rebate\"),\"No Rebate\"),0)","v":0},{"$f":"IF(Table_PI[[#This Row],[Hide:\nFormula Name]]<>\"\",IFERROR(IF(MeasureCalc(Table_PI[[#This Row],[Hide:\nFormula Name]],Table_PI[[#This Row],[Quantity]],Table_PI[[#This Row],[List 1]],Table_PI[[#This Row],[List 2]],Table_PI[[#This Row],[List 3]],Table_PI[[#This Row],[Size]],Table_PI[[#This Row],[Input 1]],Table_PI[[#This Row],[Input 2]],Table_PI[[#This Row],[Input 3]],Table_PI[[#This Row],[Input 4]],'Customer Information'!$AR$12,1,ROW())>0,MeasureCalc(Table_PI[[#This Row],[Hide:\nFormula Name]],Table_PI[[#This Row],[Quantity]],Table_PI[[#This Row],[List 1]],Table_PI[[#This Row],[List 2]],Table_PI[[#This Row],[List 3]],Table_PI[[#This Row],[Size]],Table_PI[[#This Row],[Input 1]],Table_PI[[#This Row],[Input 2]],Table_PI[[#This Row],[Input 3]],Table_PI[[#This Row],[Input 4]],'Customer Information'!$AR$12,3,ROW()),\"No Rebate\"),\"No Rebate\"),0)","v":0},{"$f":"IF(Table_PI[[#This Row],[Hide:\nFormula Name]]<>\"\",IFERROR(IF(MeasureCalc(Table_PI[[#This Row],[Hide:\nFormula Name]],Table_PI[[#This Row],[Quantity]],Table_PI[[#This Row],[List 1]],Table_PI[[#This Row],[List 2]],Table_PI[[#This Row],[List 3]],Table_PI[[#This Row],[Size]],Table_PI[[#This Row],[Input 1]],Table_PI[[#This Row],[Input 2]],Table_PI[[#This Row],[Input 3]],Table_PI[[#This Row],[Input 4]],'Customer Information'!$AR$12,1,ROW())>0,MeasureCalc(Table_PI[[#This Row],[Hide:\nFormula Name]],Table_PI[[#This Row],[Quantity]],Table_PI[[#This Row],[List 1]],Table_PI[[#This Row],[List 2]],Table_PI[[#This Row],[List 3]],Table_PI[[#This Row],[Size]],Table_PI[[#This Row],[Input 1]],Table_PI[[#This Row],[Input 2]],Table_PI[[#This Row],[Input 3]],Table_PI[[#This Row],[Input 4]],'Customer Information'!$AR$12,4,ROW()),\"No Rebate\"),\"No Rebate\"),0)","v":0},{"$f":"IF(Table_PI[[#This Row],[Hide:\nFormula Name]]<>\"\",IFERROR(IF(MeasureCalc(Table_PI[[#This Row],[Hide:\nFormula Name]],Table_PI[[#This Row],[Quantity]],Table_PI[[#This Row],[List 1]],Table_PI[[#This Row],[List 2]],Table_PI[[#This Row],[List 3]],Table_PI[[#This Row],[Size]],Table_PI[[#This Row],[Input 1]],Table_PI[[#This Row],[Input 2]],Table_PI[[#This Row],[Input 3]],Table_PI[[#This Row],[Input 4]],'Customer Information'!$AR$12,1,ROW())>0,MeasureCalc(Table_PI[[#This Row],[Hide:\nFormula Name]],Table_PI[[#This Row],[Quantity]],Table_PI[[#This Row],[List 1]],Table_PI[[#This Row],[List 2]],Table_PI[[#This Row],[List 3]],Table_PI[[#This Row],[Size]],Table_PI[[#This Row],[Input 1]],Table_PI[[#This Row],[Input 2]],Table_PI[[#This Row],[Input 3]],Table_PI[[#This Row],[Input 4]],'Customer Information'!$AR$12,5,ROW()),\"No Rebate\"),\"No Rebate\"),0)","v":0},{"$f":"IF(Table_PI[[#This Row],[Hide:\nFormula Name]]<>\"\",IFERROR(IF(MeasureCalc(Table_PI[[#This Row],[Hide:\nFormula Name]],Table_PI[[#This Row],[Quantity]],Table_PI[[#This Row],[List 1]],Table_PI[[#This Row],[List 2]],Table_PI[[#This Row],[List 3]],Table_PI[[#This Row],[Size]],Table_PI[[#This Row],[Input 1]],Table_PI[[#This Row],[Input 2]],Table_PI[[#This Row],[Input 3]],Table_PI[[#This Row],[Input 4]],'Customer Information'!$AR$12,1,ROW())>0,MeasureCalc(Table_PI[[#This Row],[Hide:\nFormula Name]],Table_PI[[#This Row],[Quantity]],Table_PI[[#This Row],[List 1]],Table_PI[[#This Row],[List 2]],Table_PI[[#This Row],[List 3]],Table_PI[[#This Row],[Size]],Table_PI[[#This Row],[Input 1]],Table_PI[[#This Row],[Input 2]],Table_PI[[#This Row],[Input 3]],Table_PI[[#This Row],[Input 4]],'Customer Information'!$AR$12,6,ROW()),\"No Rebate\"),\"No Rebate\"),0)","v":0},{"$f":"IF(Table_PI[[#This Row],[Hide:\nFormula Name]]<>\"\",IFERROR(IF(MeasureCalc(Table_PI[[#This Row],[Hide:\nFormula Name]],Table_PI[[#This Row],[Quantity]],Table_PI[[#This Row],[List 1]],Table_PI[[#This Row],[List 2]],Table_PI[[#This Row],[List 3]],Table_PI[[#This Row],[Size]],Table_PI[[#This Row],[Input 1]],Table_PI[[#This Row],[Input 2]],Table_PI[[#This Row],[Input 3]],Table_PI[[#This Row],[Input 4]],'Customer Information'!$AR$12,1,ROW())>0,MeasureCalc(Table_PI[[#This Row],[Hide:\nFormula Name]],Table_PI[[#This Row],[Quantity]],Table_PI[[#This Row],[List 1]],Table_PI[[#This Row],[List 2]],Table_PI[[#This Row],[List 3]],Table_PI[[#This Row],[Size]],Table_PI[[#This Row],[Input 1]],Table_PI[[#This Row],[Input 2]],Table_PI[[#This Row],[Input 3]],Table_PI[[#This Row],[Input 4]],'Customer Information'!$AR$12,7,ROW()),\"No Rebate\"),\"No Rebate\"),0)","v":0},{"$f":"IF(Table_PI[[#This Row],[Hide:\nFormula Name]]<>\"\",IFERROR(IF(MeasureCalc(Table_PI[[#This Row],[Hide:\nFormula Name]],Table_PI[[#This Row],[Quantity]],Table_PI[[#This Row],[List 1]],Table_PI[[#This Row],[List 2]],Table_PI[[#This Row],[List 3]],Table_PI[[#This Row],[Size]],Table_PI[[#This Row],[Input 1]],Table_PI[[#This Row],[Input 2]],Table_PI[[#This Row],[Input 3]],Table_PI[[#This Row],[Input 4]],'Customer Information'!$AR$12,1,ROW())>0,MeasureCalc(Table_PI[[#This Row],[Hide:\nFormula Name]],Table_PI[[#This Row],[Quantity]],Table_PI[[#This Row],[List 1]],Table_PI[[#This Row],[List 2]],Table_PI[[#This Row],[List 3]],Table_PI[[#This Row],[Size]],Table_PI[[#This Row],[Input 1]],Table_PI[[#This Row],[Input 2]],Table_PI[[#This Row],[Input 3]],Table_PI[[#This Row],[Input 4]],'Customer Information'!$AR$12,8,ROW()),\"No Rebate\"),\"No Rebate\"),0)","v":0},{"$f":"IF(Table_PI[[#This Row],[Hide:\nFormula Name]]<>\"\",IF(AND(Table_PI[[#This Row],[Hide:\nFormula Name]]<>\"\",OR(Table_PI[[#This Row],[Rebate]]>0,Table_PI[[#This Row],[Rebate]]=\"No Rebate\")),TRUE,\"MI: Line Item \" & $A47),\"\")","v":""}]
[{"$f":"IF(Table_PI[[#This Row],[Hide:\nFormula Name]]<>\"\",MAX($A$2:A47)+1,\"\")","v":""},null,null,null,null,null,null,null,null,null,null,null,null,null,null,{"$f":"IFERROR(VLOOKUP(Table_PI[[#This Row],[Measure]],'Equipment Lookups'!$C$3:$D$23,2,FALSE),\"\")","v":""},{"$f":"IF(Table_PI[[#This Row],[Hide:\nFormula Name]]<>\"\",IFERROR(IF(MeasureCalc(Table_PI[[#This Row],[Hide:\nFormula Name]],Table_PI[[#This Row],[Quantity]],Table_PI[[#This Row],[List 1]],Table_PI[[#This Row],[List 2]],Table_PI[[#This Row],[List 3]],Table_PI[[#This Row],[Size]],Table_PI[[#This Row],[Input 1]],Table_PI[[#This Row],[Input 2]],Table_PI[[#This Row],[Input 3]],Table_PI[[#This Row],[Input 4]],'Customer Information'!$AR$12,1,ROW())>0,MeasureCalc(Table_PI[[#This Row],[Hide:\nFormula Name]],Table_PI[[#This Row],[Quantity]],Table_PI[[#This Row],[List 1]],Table_PI[[#This Row],[List 2]],Table_PI[[#This Row],[List 3]],Table_PI[[#This Row],[Size]],Table_PI[[#This Row],[Input 1]],Table_PI[[#This Row],[Input 2]],Table_PI[[#This Row],[Input 3]],Table_PI[[#This Row],[Input 4]],'Customer Information'!$AR$12,1,ROW()),\"No Rebate\"),\"No Rebate\"),0)","v":0},{"$f":"IF(Table_PI[[#This Row],[Hide:\nFormula Name]]<>\"\",IFERROR(IF(MeasureCalc(Table_PI[[#This Row],[Hide:\nFormula Name]],Table_PI[[#This Row],[Quantity]],Table_PI[[#This Row],[List 1]],Table_PI[[#This Row],[List 2]],Table_PI[[#This Row],[List 3]],Table_PI[[#This Row],[Size]],Table_PI[[#This Row],[Input 1]],Table_PI[[#This Row],[Input 2]],Table_PI[[#This Row],[Input 3]],Table_PI[[#This Row],[Input 4]],'Customer Information'!$AR$12,1,ROW())>0,MeasureCalc(Table_PI[[#This Row],[Hide:\nFormula Name]],Table_PI[[#This Row],[Quantity]],Table_PI[[#This Row],[List 1]],Table_PI[[#This Row],[List 2]],Table_PI[[#This Row],[List 3]],Table_PI[[#This Row],[Size]],Table_PI[[#This Row],[Input 1]],Table_PI[[#This Row],[Input 2]],Table_PI[[#This Row],[Input 3]],Table_PI[[#This Row],[Input 4]],'Customer Information'!$AR$12,2,ROW()),\"No Rebate\"),\"No Rebate\"),0)","v":0},{"$f":"IF(Table_PI[[#This Row],[Hide:\nFormula Name]]<>\"\",IFERROR(IF(MeasureCalc(Table_PI[[#This Row],[Hide:\nFormula Name]],Table_PI[[#This Row],[Quantity]],Table_PI[[#This Row],[List 1]],Table_PI[[#This Row],[List 2]],Table_PI[[#This Row],[List 3]],Table_PI[[#This Row],[Size]],Table_PI[[#This Row],[Input 1]],Table_PI[[#This Row],[Input 2]],Table_PI[[#This Row],[Input 3]],Table_PI[[#This Row],[Input 4]],'Customer Information'!$AR$12,1,ROW())>0,MeasureCalc(Table_PI[[#This Row],[Hide:\nFormula Name]],Table_PI[[#This Row],[Quantity]],Table_PI[[#This Row],[List 1]],Table_PI[[#This Row],[List 2]],Table_PI[[#This Row],[List 3]],Table_PI[[#This Row],[Size]],Table_PI[[#This Row],[Input 1]],Table_PI[[#This Row],[Input 2]],Table_PI[[#This Row],[Input 3]],Table_PI[[#This Row],[Input 4]],'Customer Information'!$AR$12,3,ROW()),\"No Rebate\"),\"No Rebate\"),0)","v":0},{"$f":"IF(Table_PI[[#This Row],[Hide:\nFormula Name]]<>\"\",IFERROR(IF(MeasureCalc(Table_PI[[#This Row],[Hide:\nFormula Name]],Table_PI[[#This Row],[Quantity]],Table_PI[[#This Row],[List 1]],Table_PI[[#This Row],[List 2]],Table_PI[[#This Row],[List 3]],Table_PI[[#This Row],[Size]],Table_PI[[#This Row],[Input 1]],Table_PI[[#This Row],[Input 2]],Table_PI[[#This Row],[Input 3]],Table_PI[[#This Row],[Input 4]],'Customer Information'!$AR$12,1,ROW())>0,MeasureCalc(Table_PI[[#This Row],[Hide:\nFormula Name]],Table_PI[[#This Row],[Quantity]],Table_PI[[#This Row],[List 1]],Table_PI[[#This Row],[List 2]],Table_PI[[#This Row],[List 3]],Table_PI[[#This Row],[Size]],Table_PI[[#This Row],[Input 1]],Table_PI[[#This Row],[Input 2]],Table_PI[[#This Row],[Input 3]],Table_PI[[#This Row],[Input 4]],'Customer Information'!$AR$12,4,ROW()),\"No Rebate\"),\"No Rebate\"),0)","v":0},{"$f":"IF(Table_PI[[#This Row],[Hide:\nFormula Name]]<>\"\",IFERROR(IF(MeasureCalc(Table_PI[[#This Row],[Hide:\nFormula Name]],Table_PI[[#This Row],[Quantity]],Table_PI[[#This Row],[List 1]],Table_PI[[#This Row],[List 2]],Table_PI[[#This Row],[List 3]],Table_PI[[#This Row],[Size]],Table_PI[[#This Row],[Input 1]],Table_PI[[#This Row],[Input 2]],Table_PI[[#This Row],[Input 3]],Table_PI[[#This Row],[Input 4]],'Customer Information'!$AR$12,1,ROW())>0,MeasureCalc(Table_PI[[#This Row],[Hide:\nFormula Name]],Table_PI[[#This Row],[Quantity]],Table_PI[[#This Row],[List 1]],Table_PI[[#This Row],[List 2]],Table_PI[[#This Row],[List 3]],Table_PI[[#This Row],[Size]],Table_PI[[#This Row],[Input 1]],Table_PI[[#This Row],[Input 2]],Table_PI[[#This Row],[Input 3]],Table_PI[[#This Row],[Input 4]],'Customer Information'!$AR$12,5,ROW()),\"No Rebate\"),\"No Rebate\"),0)","v":0},{"$f":"IF(Table_PI[[#This Row],[Hide:\nFormula Name]]<>\"\",IFERROR(IF(MeasureCalc(Table_PI[[#This Row],[Hide:\nFormula Name]],Table_PI[[#This Row],[Quantity]],Table_PI[[#This Row],[List 1]],Table_PI[[#This Row],[List 2]],Table_PI[[#This Row],[List 3]],Table_PI[[#This Row],[Size]],Table_PI[[#This Row],[Input 1]],Table_PI[[#This Row],[Input 2]],Table_PI[[#This Row],[Input 3]],Table_PI[[#This Row],[Input 4]],'Customer Information'!$AR$12,1,ROW())>0,MeasureCalc(Table_PI[[#This Row],[Hide:\nFormula Name]],Table_PI[[#This Row],[Quantity]],Table_PI[[#This Row],[List 1]],Table_PI[[#This Row],[List 2]],Table_PI[[#This Row],[List 3]],Table_PI[[#This Row],[Size]],Table_PI[[#This Row],[Input 1]],Table_PI[[#This Row],[Input 2]],Table_PI[[#This Row],[Input 3]],Table_PI[[#This Row],[Input 4]],'Customer Information'!$AR$12,6,ROW()),\"No Rebate\"),\"No Rebate\"),0)","v":0},{"$f":"IF(Table_PI[[#This Row],[Hide:\nFormula Name]]<>\"\",IFERROR(IF(MeasureCalc(Table_PI[[#This Row],[Hide:\nFormula Name]],Table_PI[[#This Row],[Quantity]],Table_PI[[#This Row],[List 1]],Table_PI[[#This Row],[List 2]],Table_PI[[#This Row],[List 3]],Table_PI[[#This Row],[Size]],Table_PI[[#This Row],[Input 1]],Table_PI[[#This Row],[Input 2]],Table_PI[[#This Row],[Input 3]],Table_PI[[#This Row],[Input 4]],'Customer Information'!$AR$12,1,ROW())>0,MeasureCalc(Table_PI[[#This Row],[Hide:\nFormula Name]],Table_PI[[#This Row],[Quantity]],Table_PI[[#This Row],[List 1]],Table_PI[[#This Row],[List 2]],Table_PI[[#This Row],[List 3]],Table_PI[[#This Row],[Size]],Table_PI[[#This Row],[Input 1]],Table_PI[[#This Row],[Input 2]],Table_PI[[#This Row],[Input 3]],Table_PI[[#This Row],[Input 4]],'Customer Information'!$AR$12,7,ROW()),\"No Rebate\"),\"No Rebate\"),0)","v":0},{"$f":"IF(Table_PI[[#This Row],[Hide:\nFormula Name]]<>\"\",IFERROR(IF(MeasureCalc(Table_PI[[#This Row],[Hide:\nFormula Name]],Table_PI[[#This Row],[Quantity]],Table_PI[[#This Row],[List 1]],Table_PI[[#This Row],[List 2]],Table_PI[[#This Row],[List 3]],Table_PI[[#This Row],[Size]],Table_PI[[#This Row],[Input 1]],Table_PI[[#This Row],[Input 2]],Table_PI[[#This Row],[Input 3]],Table_PI[[#This Row],[Input 4]],'Customer Information'!$AR$12,1,ROW())>0,MeasureCalc(Table_PI[[#This Row],[Hide:\nFormula Name]],Table_PI[[#This Row],[Quantity]],Table_PI[[#This Row],[List 1]],Table_PI[[#This Row],[List 2]],Table_PI[[#This Row],[List 3]],Table_PI[[#This Row],[Size]],Table_PI[[#This Row],[Input 1]],Table_PI[[#This Row],[Input 2]],Table_PI[[#This Row],[Input 3]],Table_PI[[#This Row],[Input 4]],'Customer Information'!$AR$12,8,ROW()),\"No Rebate\"),\"No Rebate\"),0)","v":0},{"$f":"IF(Table_PI[[#This Row],[Hide:\nFormula Name]]<>\"\",IF(AND(Table_PI[[#This Row],[Hide:\nFormula Name]]<>\"\",OR(Table_PI[[#This Row],[Rebate]]>0,Table_PI[[#This Row],[Rebate]]=\"No Rebate\")),TRUE,\"MI: Line Item \" & $A48),\"\")","v":""}]
[{"$f":"IF(Table_PI[[#This Row],[Hide:\nFormula Name]]<>\"\",MAX($A$2:A48)+1,\"\")","v":""},null,null,null,null,null,null,null,null,null,null,null,null,null,null,{"$f":"IFERROR(VLOOKUP(Table_PI[[#This Row],[Measure]],'Equipment Lookups'!$C$3:$D$23,2,FALSE),\"\")","v":""},{"$f":"IF(Table_PI[[#This Row],[Hide:\nFormula Name]]<>\"\",IFERROR(IF(MeasureCalc(Table_PI[[#This Row],[Hide:\nFormula Name]],Table_PI[[#This Row],[Quantity]],Table_PI[[#This Row],[List 1]],Table_PI[[#This Row],[List 2]],Table_PI[[#This Row],[List 3]],Table_PI[[#This Row],[Size]],Table_PI[[#This Row],[Input 1]],Table_PI[[#This Row],[Input 2]],Table_PI[[#This Row],[Input 3]],Table_PI[[#This Row],[Input 4]],'Customer Information'!$AR$12,1,ROW())>0,MeasureCalc(Table_PI[[#This Row],[Hide:\nFormula Name]],Table_PI[[#This Row],[Quantity]],Table_PI[[#This Row],[List 1]],Table_PI[[#This Row],[List 2]],Table_PI[[#This Row],[List 3]],Table_PI[[#This Row],[Size]],Table_PI[[#This Row],[Input 1]],Table_PI[[#This Row],[Input 2]],Table_PI[[#This Row],[Input 3]],Table_PI[[#This Row],[Input 4]],'Customer Information'!$AR$12,1,ROW()),\"No Rebate\"),\"No Rebate\"),0)","v":0},{"$f":"IF(Table_PI[[#This Row],[Hide:\nFormula Name]]<>\"\",IFERROR(IF(MeasureCalc(Table_PI[[#This Row],[Hide:\nFormula Name]],Table_PI[[#This Row],[Quantity]],Table_PI[[#This Row],[List 1]],Table_PI[[#This Row],[List 2]],Table_PI[[#This Row],[List 3]],Table_PI[[#This Row],[Size]],Table_PI[[#This Row],[Input 1]],Table_PI[[#This Row],[Input 2]],Table_PI[[#This Row],[Input 3]],Table_PI[[#This Row],[Input 4]],'Customer Information'!$AR$12,1,ROW())>0,MeasureCalc(Table_PI[[#This Row],[Hide:\nFormula Name]],Table_PI[[#This Row],[Quantity]],Table_PI[[#This Row],[List 1]],Table_PI[[#This Row],[List 2]],Table_PI[[#This Row],[List 3]],Table_PI[[#This Row],[Size]],Table_PI[[#This Row],[Input 1]],Table_PI[[#This Row],[Input 2]],Table_PI[[#This Row],[Input 3]],Table_PI[[#This Row],[Input 4]],'Customer Information'!$AR$12,2,ROW()),\"No Rebate\"),\"No Rebate\"),0)","v":0},{"$f":"IF(Table_PI[[#This Row],[Hide:\nFormula Name]]<>\"\",IFERROR(IF(MeasureCalc(Table_PI[[#This Row],[Hide:\nFormula Name]],Table_PI[[#This Row],[Quantity]],Table_PI[[#This Row],[List 1]],Table_PI[[#This Row],[List 2]],Table_PI[[#This Row],[List 3]],Table_PI[[#This Row],[Size]],Table_PI[[#This Row],[Input 1]],Table_PI[[#This Row],[Input 2]],Table_PI[[#This Row],[Input 3]],Table_PI[[#This Row],[Input 4]],'Customer Information'!$AR$12,1,ROW())>0,MeasureCalc(Table_PI[[#This Row],[Hide:\nFormula Name]],Table_PI[[#This Row],[Quantity]],Table_PI[[#This Row],[List 1]],Table_PI[[#This Row],[List 2]],Table_PI[[#This Row],[List 3]],Table_PI[[#This Row],[Size]],Table_PI[[#This Row],[Input 1]],Table_PI[[#This Row],[Input 2]],Table_PI[[#This Row],[Input 3]],Table_PI[[#This Row],[Input 4]],'Customer Information'!$AR$12,3,ROW()),\"No Rebate\"),\"No Rebate\"),0)","v":0},{"$f":"IF(Table_PI[[#This Row],[Hide:\nFormula Name]]<>\"\",IFERROR(IF(MeasureCalc(Table_PI[[#This Row],[Hide:\nFormula Name]],Table_PI[[#This Row],[Quantity]],Table_PI[[#This Row],[List 1]],Table_PI[[#This Row],[List 2]],Table_PI[[#This Row],[List 3]],Table_PI[[#This Row],[Size]],Table_PI[[#This Row],[Input 1]],Table_PI[[#This Row],[Input 2]],Table_PI[[#This Row],[Input 3]],Table_PI[[#This Row],[Input 4]],'Customer Information'!$AR$12,1,ROW())>0,MeasureCalc(Table_PI[[#This Row],[Hide:\nFormula Name]],Table_PI[[#This Row],[Quantity]],Table_PI[[#This Row],[List 1]],Table_PI[[#This Row],[List 2]],Table_PI[[#This Row],[List 3]],Table_PI[[#This Row],[Size]],Table_PI[[#This Row],[Input 1]],Table_PI[[#This Row],[Input 2]],Table_PI[[#This Row],[Input 3]],Table_PI[[#This Row],[Input 4]],'Customer Information'!$AR$12,4,ROW()),\"No Rebate\"),\"No Rebate\"),0)","v":0},{"$f":"IF(Table_PI[[#This Row],[Hide:\nFormula Name]]<>\"\",IFERROR(IF(MeasureCalc(Table_PI[[#This Row],[Hide:\nFormula Name]],Table_PI[[#This Row],[Quantity]],Table_PI[[#This Row],[List 1]],Table_PI[[#This Row],[List 2]],Table_PI[[#This Row],[List 3]],Table_PI[[#This Row],[Size]],Table_PI[[#This Row],[Input 1]],Table_PI[[#This Row],[Input 2]],Table_PI[[#This Row],[Input 3]],Table_PI[[#This Row],[Input 4]],'Customer Information'!$AR$12,1,ROW())>0,MeasureCalc(Table_PI[[#This Row],[Hide:\nFormula Name]],Table_PI[[#This Row],[Quantity]],Table_PI[[#This Row],[List 1]],Table_PI[[#This Row],[List 2]],Table_PI[[#This Row],[List 3]],Table_PI[[#This Row],[Size]],Table_PI[[#This Row],[Input 1]],Table_PI[[#This Row],[Input 2]],Table_PI[[#This Row],[Input 3]],Table_PI[[#This Row],[Input 4]],'Customer Information'!$AR$12,5,ROW()),\"No Rebate\"),\"No Rebate\"),0)","v":0},{"$f":"IF(Table_PI[[#This Row],[Hide:\nFormula Name]]<>\"\",IFERROR(IF(MeasureCalc(Table_PI[[#This Row],[Hide:\nFormula Name]],Table_PI[[#This Row],[Quantity]],Table_PI[[#This Row],[List 1]],Table_PI[[#This Row],[List 2]],Table_PI[[#This Row],[List 3]],Table_PI[[#This Row],[Size]],Table_PI[[#This Row],[Input 1]],Table_PI[[#This Row],[Input 2]],Table_PI[[#This Row],[Input 3]],Table_PI[[#This Row],[Input 4]],'Customer Information'!$AR$12,1,ROW())>0,MeasureCalc(Table_PI[[#This Row],[Hide:\nFormula Name]],Table_PI[[#This Row],[Quantity]],Table_PI[[#This Row],[List 1]],Table_PI[[#This Row],[List 2]],Table_PI[[#This Row],[List 3]],Table_PI[[#This Row],[Size]],Table_PI[[#This Row],[Input 1]],Table_PI[[#This Row],[Input 2]],Table_PI[[#This Row],[Input 3]],Table_PI[[#This Row],[Input 4]],'Customer Information'!$AR$12,6,ROW()),\"No Rebate\"),\"No Rebate\"),0)","v":0},{"$f":"IF(Table_PI[[#This Row],[Hide:\nFormula Name]]<>\"\",IFERROR(IF(MeasureCalc(Table_PI[[#This Row],[Hide:\nFormula Name]],Table_PI[[#This Row],[Quantity]],Table_PI[[#This Row],[List 1]],Table_PI[[#This Row],[List 2]],Table_PI[[#This Row],[List 3]],Table_PI[[#This Row],[Size]],Table_PI[[#This Row],[Input 1]],Table_PI[[#This Row],[Input 2]],Table_PI[[#This Row],[Input 3]],Table_PI[[#This Row],[Input 4]],'Customer Information'!$AR$12,1,ROW())>0,MeasureCalc(Table_PI[[#This Row],[Hide:\nFormula Name]],Table_PI[[#This Row],[Quantity]],Table_PI[[#This Row],[List 1]],Table_PI[[#This Row],[List 2]],Table_PI[[#This Row],[List 3]],Table_PI[[#This Row],[Size]],Table_PI[[#This Row],[Input 1]],Table_PI[[#This Row],[Input 2]],Table_PI[[#This Row],[Input 3]],Table_PI[[#This Row],[Input 4]],'Customer Information'!$AR$12,7,ROW()),\"No Rebate\"),\"No Rebate\"),0)","v":0},{"$f":"IF(Table_PI[[#This Row],[Hide:\nFormula Name]]<>\"\",IFERROR(IF(MeasureCalc(Table_PI[[#This Row],[Hide:\nFormula Name]],Table_PI[[#This Row],[Quantity]],Table_PI[[#This Row],[List 1]],Table_PI[[#This Row],[List 2]],Table_PI[[#This Row],[List 3]],Table_PI[[#This Row],[Size]],Table_PI[[#This Row],[Input 1]],Table_PI[[#This Row],[Input 2]],Table_PI[[#This Row],[Input 3]],Table_PI[[#This Row],[Input 4]],'Customer Information'!$AR$12,1,ROW())>0,MeasureCalc(Table_PI[[#This Row],[Hide:\nFormula Name]],Table_PI[[#This Row],[Quantity]],Table_PI[[#This Row],[List 1]],Table_PI[[#This Row],[List 2]],Table_PI[[#This Row],[List 3]],Table_PI[[#This Row],[Size]],Table_PI[[#This Row],[Input 1]],Table_PI[[#This Row],[Input 2]],Table_PI[[#This Row],[Input 3]],Table_PI[[#This Row],[Input 4]],'Customer Information'!$AR$12,8,ROW()),\"No Rebate\"),\"No Rebate\"),0)","v":0},{"$f":"IF(Table_PI[[#This Row],[Hide:\nFormula Name]]<>\"\",IF(AND(Table_PI[[#This Row],[Hide:\nFormula Name]]<>\"\",OR(Table_PI[[#This Row],[Rebate]]>0,Table_PI[[#This Row],[Rebate]]=\"No Rebate\")),TRUE,\"MI: Line Item \" & $A49),\"\")","v":""}]
[{"$f":"IF(Table_PI[[#This Row],[Hide:\nFormula Name]]<>\"\",MAX($A$2:A49)+1,\"\")","v":""},null,null,null,null,null,null,null,null,null,null,null,null,null,null,{"$f":"IFERROR(VLOOKUP(Table_PI[[#This Row],[Measure]],'Equipment Lookups'!$C$3:$D$23,2,FALSE),\"\")","v":""},{"$f":"IF(Table_PI[[#This Row],[Hide:\nFormula Name]]<>\"\",IFERROR(IF(MeasureCalc(Table_PI[[#This Row],[Hide:\nFormula Name]],Table_PI[[#This Row],[Quantity]],Table_PI[[#This Row],[List 1]],Table_PI[[#This Row],[List 2]],Table_PI[[#This Row],[List 3]],Table_PI[[#This Row],[Size]],Table_PI[[#This Row],[Input 1]],Table_PI[[#This Row],[Input 2]],Table_PI[[#This Row],[Input 3]],Table_PI[[#This Row],[Input 4]],'Customer Information'!$AR$12,1,ROW())>0,MeasureCalc(Table_PI[[#This Row],[Hide:\nFormula Name]],Table_PI[[#This Row],[Quantity]],Table_PI[[#This Row],[List 1]],Table_PI[[#This Row],[List 2]],Table_PI[[#This Row],[List 3]],Table_PI[[#This Row],[Size]],Table_PI[[#This Row],[Input 1]],Table_PI[[#This Row],[Input 2]],Table_PI[[#This Row],[Input 3]],Table_PI[[#This Row],[Input 4]],'Customer Information'!$AR$12,1,ROW()),\"No Rebate\"),\"No Rebate\"),0)","v":0},{"$f":"IF(Table_PI[[#This Row],[Hide:\nFormula Name]]<>\"\",IFERROR(IF(MeasureCalc(Table_PI[[#This Row],[Hide:\nFormula Name]],Table_PI[[#This Row],[Quantity]],Table_PI[[#This Row],[List 1]],Table_PI[[#This Row],[List 2]],Table_PI[[#This Row],[List 3]],Table_PI[[#This Row],[Size]],Table_PI[[#This Row],[Input 1]],Table_PI[[#This Row],[Input 2]],Table_PI[[#This Row],[Input 3]],Table_PI[[#This Row],[Input 4]],'Customer Information'!$AR$12,1,ROW())>0,MeasureCalc(Table_PI[[#This Row],[Hide:\nFormula Name]],Table_PI[[#This Row],[Quantity]],Table_PI[[#This Row],[List 1]],Table_PI[[#This Row],[List 2]],Table_PI[[#This Row],[List 3]],Table_PI[[#This Row],[Size]],Table_PI[[#This Row],[Input 1]],Table_PI[[#This Row],[Input 2]],Table_PI[[#This Row],[Input 3]],Table_PI[[#This Row],[Input 4]],'Customer Information'!$AR$12,2,ROW()),\"No Rebate\"),\"No Rebate\"),0)","v":0},{"$f":"IF(Table_PI[[#This Row],[Hide:\nFormula Name]]<>\"\",IFERROR(IF(MeasureCalc(Table_PI[[#This Row],[Hide:\nFormula Name]],Table_PI[[#This Row],[Quantity]],Table_PI[[#This Row],[List 1]],Table_PI[[#This Row],[List 2]],Table_PI[[#This Row],[List 3]],Table_PI[[#This Row],[Size]],Table_PI[[#This Row],[Input 1]],Table_PI[[#This Row],[Input 2]],Table_PI[[#This Row],[Input 3]],Table_PI[[#This Row],[Input 4]],'Customer Information'!$AR$12,1,ROW())>0,MeasureCalc(Table_PI[[#This Row],[Hide:\nFormula Name]],Table_PI[[#This Row],[Quantity]],Table_PI[[#This Row],[List 1]],Table_PI[[#This Row],[List 2]],Table_PI[[#This Row],[List 3]],Table_PI[[#This Row],[Size]],Table_PI[[#This Row],[Input 1]],Table_PI[[#This Row],[Input 2]],Table_PI[[#This Row],[Input 3]],Table_PI[[#This Row],[Input 4]],'Customer Information'!$AR$12,3,ROW()),\"No Rebate\"),\"No Rebate\"),0)","v":0},{"$f":"IF(Table_PI[[#This Row],[Hide:\nFormula Name]]<>\"\",IFERROR(IF(MeasureCalc(Table_PI[[#This Row],[Hide:\nFormula Name]],Table_PI[[#This Row],[Quantity]],Table_PI[[#This Row],[List 1]],Table_PI[[#This Row],[List 2]],Table_PI[[#This Row],[List 3]],Table_PI[[#This Row],[Size]],Table_PI[[#This Row],[Input 1]],Table_PI[[#This Row],[Input 2]],Table_PI[[#This Row],[Input 3]],Table_PI[[#This Row],[Input 4]],'Customer Information'!$AR$12,1,ROW())>0,MeasureCalc(Table_PI[[#This Row],[Hide:\nFormula Name]],Table_PI[[#This Row],[Quantity]],Table_PI[[#This Row],[List 1]],Table_PI[[#This Row],[List 2]],Table_PI[[#This Row],[List 3]],Table_PI[[#This Row],[Size]],Table_PI[[#This Row],[Input 1]],Table_PI[[#This Row],[Input 2]],Table_PI[[#This Row],[Input 3]],Table_PI[[#This Row],[Input 4]],'Customer Information'!$AR$12,4,ROW()),\"No Rebate\"),\"No Rebate\"),0)","v":0},{"$f":"IF(Table_PI[[#This Row],[Hide:\nFormula Name]]<>\"\",IFERROR(IF(MeasureCalc(Table_PI[[#This Row],[Hide:\nFormula Name]],Table_PI[[#This Row],[Quantity]],Table_PI[[#This Row],[List 1]],Table_PI[[#This Row],[List 2]],Table_PI[[#This Row],[List 3]],Table_PI[[#This Row],[Size]],Table_PI[[#This Row],[Input 1]],Table_PI[[#This Row],[Input 2]],Table_PI[[#This Row],[Input 3]],Table_PI[[#This Row],[Input 4]],'Customer Information'!$AR$12,1,ROW())>0,MeasureCalc(Table_PI[[#This Row],[Hide:\nFormula Name]],Table_PI[[#This Row],[Quantity]],Table_PI[[#This Row],[List 1]],Table_PI[[#This Row],[List 2]],Table_PI[[#This Row],[List 3]],Table_PI[[#This Row],[Size]],Table_PI[[#This Row],[Input 1]],Table_PI[[#This Row],[Input 2]],Table_PI[[#This Row],[Input 3]],Table_PI[[#This Row],[Input 4]],'Customer Information'!$AR$12,5,ROW()),\"No Rebate\"),\"No Rebate\"),0)","v":0},{"$f":"IF(Table_PI[[#This Row],[Hide:\nFormula Name]]<>\"\",IFERROR(IF(MeasureCalc(Table_PI[[#This Row],[Hide:\nFormula Name]],Table_PI[[#This Row],[Quantity]],Table_PI[[#This Row],[List 1]],Table_PI[[#This Row],[List 2]],Table_PI[[#This Row],[List 3]],Table_PI[[#This Row],[Size]],Table_PI[[#This Row],[Input 1]],Table_PI[[#This Row],[Input 2]],Table_PI[[#This Row],[Input 3]],Table_PI[[#This Row],[Input 4]],'Customer Information'!$AR$12,1,ROW())>0,MeasureCalc(Table_PI[[#This Row],[Hide:\nFormula Name]],Table_PI[[#This Row],[Quantity]],Table_PI[[#This Row],[List 1]],Table_PI[[#This Row],[List 2]],Table_PI[[#This Row],[List 3]],Table_PI[[#This Row],[Size]],Table_PI[[#This Row],[Input 1]],Table_PI[[#This Row],[Input 2]],Table_PI[[#This Row],[Input 3]],Table_PI[[#This Row],[Input 4]],'Customer Information'!$AR$12,6,ROW()),\"No Rebate\"),\"No Rebate\"),0)","v":0},{"$f":"IF(Table_PI[[#This Row],[Hide:\nFormula Name]]<>\"\",IFERROR(IF(MeasureCalc(Table_PI[[#This Row],[Hide:\nFormula Name]],Table_PI[[#This Row],[Quantity]],Table_PI[[#This Row],[List 1]],Table_PI[[#This Row],[List 2]],Table_PI[[#This Row],[List 3]],Table_PI[[#This Row],[Size]],Table_PI[[#This Row],[Input 1]],Table_PI[[#This Row],[Input 2]],Table_PI[[#This Row],[Input 3]],Table_PI[[#This Row],[Input 4]],'Customer Information'!$AR$12,1,ROW())>0,MeasureCalc(Table_PI[[#This Row],[Hide:\nFormula Name]],Table_PI[[#This Row],[Quantity]],Table_PI[[#This Row],[List 1]],Table_PI[[#This Row],[List 2]],Table_PI[[#This Row],[List 3]],Table_PI[[#This Row],[Size]],Table_PI[[#This Row],[Input 1]],Table_PI[[#This Row],[Input 2]],Table_PI[[#This Row],[Input 3]],Table_PI[[#This Row],[Input 4]],'Customer Information'!$AR$12,7,ROW()),\"No Rebate\"),\"No Rebate\"),0)","v":0},{"$f":"IF(Table_PI[[#This Row],[Hide:\nFormula Name]]<>\"\",IFERROR(IF(MeasureCalc(Table_PI[[#This Row],[Hide:\nFormula Name]],Table_PI[[#This Row],[Quantity]],Table_PI[[#This Row],[List 1]],Table_PI[[#This Row],[List 2]],Table_PI[[#This Row],[List 3]],Table_PI[[#This Row],[Size]],Table_PI[[#This Row],[Input 1]],Table_PI[[#This Row],[Input 2]],Table_PI[[#This Row],[Input 3]],Table_PI[[#This Row],[Input 4]],'Customer Information'!$AR$12,1,ROW())>0,MeasureCalc(Table_PI[[#This Row],[Hide:\nFormula Name]],Table_PI[[#This Row],[Quantity]],Table_PI[[#This Row],[List 1]],Table_PI[[#This Row],[List 2]],Table_PI[[#This Row],[List 3]],Table_PI[[#This Row],[Size]],Table_PI[[#This Row],[Input 1]],Table_PI[[#This Row],[Input 2]],Table_PI[[#This Row],[Input 3]],Table_PI[[#This Row],[Input 4]],'Customer Information'!$AR$12,8,ROW()),\"No Rebate\"),\"No Rebate\"),0)","v":0},{"$f":"IF(Table_PI[[#This Row],[Hide:\nFormula Name]]<>\"\",IF(AND(Table_PI[[#This Row],[Hide:\nFormula Name]]<>\"\",OR(Table_PI[[#This Row],[Rebate]]>0,Table_PI[[#This Row],[Rebate]]=\"No Rebate\")),TRUE,\"MI: Line Item \" & $A50),\"\")","v":""}]
[{"$f":"IF(Table_PI[[#This Row],[Hide:\nFormula Name]]<>\"\",MAX($A$2:A50)+1,\"\")","v":""},null,null,null,null,null,null,null,null,null,null,null,null,null,null,{"$f":"IFERROR(VLOOKUP(Table_PI[[#This Row],[Measure]],'Equipment Lookups'!$C$3:$D$23,2,FALSE),\"\")","v":""},{"$f":"IF(Table_PI[[#This Row],[Hide:\nFormula Name]]<>\"\",IFERROR(IF(MeasureCalc(Table_PI[[#This Row],[Hide:\nFormula Name]],Table_PI[[#This Row],[Quantity]],Table_PI[[#This Row],[List 1]],Table_PI[[#This Row],[List 2]],Table_PI[[#This Row],[List 3]],Table_PI[[#This Row],[Size]],Table_PI[[#This Row],[Input 1]],Table_PI[[#This Row],[Input 2]],Table_PI[[#This Row],[Input 3]],Table_PI[[#This Row],[Input 4]],'Customer Information'!$AR$12,1,ROW())>0,MeasureCalc(Table_PI[[#This Row],[Hide:\nFormula Name]],Table_PI[[#This Row],[Quantity]],Table_PI[[#This Row],[List 1]],Table_PI[[#This Row],[List 2]],Table_PI[[#This Row],[List 3]],Table_PI[[#This Row],[Size]],Table_PI[[#This Row],[Input 1]],Table_PI[[#This Row],[Input 2]],Table_PI[[#This Row],[Input 3]],Table_PI[[#This Row],[Input 4]],'Customer Information'!$AR$12,1,ROW()),\"No Rebate\"),\"No Rebate\"),0)","v":0},{"$f":"IF(Table_PI[[#This Row],[Hide:\nFormula Name]]<>\"\",IFERROR(IF(MeasureCalc(Table_PI[[#This Row],[Hide:\nFormula Name]],Table_PI[[#This Row],[Quantity]],Table_PI[[#This Row],[List 1]],Table_PI[[#This Row],[List 2]],Table_PI[[#This Row],[List 3]],Table_PI[[#This Row],[Size]],Table_PI[[#This Row],[Input 1]],Table_PI[[#This Row],[Input 2]],Table_PI[[#This Row],[Input 3]],Table_PI[[#This Row],[Input 4]],'Customer Information'!$AR$12,1,ROW())>0,MeasureCalc(Table_PI[[#This Row],[Hide:\nFormula Name]],Table_PI[[#This Row],[Quantity]],Table_PI[[#This Row],[List 1]],Table_PI[[#This Row],[List 2]],Table_PI[[#This Row],[List 3]],Table_PI[[#This Row],[Size]],Table_PI[[#This Row],[Input 1]],Table_PI[[#This Row],[Input 2]],Table_PI[[#This Row],[Input 3]],Table_PI[[#This Row],[Input 4]],'Customer Information'!$AR$12,2,ROW()),\"No Rebate\"),\"No Rebate\"),0)","v":0},{"$f":"IF(Table_PI[[#This Row],[Hide:\nFormula Name]]<>\"\",IFERROR(IF(MeasureCalc(Table_PI[[#This Row],[Hide:\nFormula Name]],Table_PI[[#This Row],[Quantity]],Table_PI[[#This Row],[List 1]],Table_PI[[#This Row],[List 2]],Table_PI[[#This Row],[List 3]],Table_PI[[#This Row],[Size]],Table_PI[[#This Row],[Input 1]],Table_PI[[#This Row],[Input 2]],Table_PI[[#This Row],[Input 3]],Table_PI[[#This Row],[Input 4]],'Customer Information'!$AR$12,1,ROW())>0,MeasureCalc(Table_PI[[#This Row],[Hide:\nFormula Name]],Table_PI[[#This Row],[Quantity]],Table_PI[[#This Row],[List 1]],Table_PI[[#This Row],[List 2]],Table_PI[[#This Row],[List 3]],Table_PI[[#This Row],[Size]],Table_PI[[#This Row],[Input 1]],Table_PI[[#This Row],[Input 2]],Table_PI[[#This Row],[Input 3]],Table_PI[[#This Row],[Input 4]],'Customer Information'!$AR$12,3,ROW()),\"No Rebate\"),\"No Rebate\"),0)","v":0},{"$f":"IF(Table_PI[[#This Row],[Hide:\nFormula Name]]<>\"\",IFERROR(IF(MeasureCalc(Table_PI[[#This Row],[Hide:\nFormula Name]],Table_PI[[#This Row],[Quantity]],Table_PI[[#This Row],[List 1]],Table_PI[[#This Row],[List 2]],Table_PI[[#This Row],[List 3]],Table_PI[[#This Row],[Size]],Table_PI[[#This Row],[Input 1]],Table_PI[[#This Row],[Input 2]],Table_PI[[#This Row],[Input 3]],Table_PI[[#This Row],[Input 4]],'Customer Information'!$AR$12,1,ROW())>0,MeasureCalc(Table_PI[[#This Row],[Hide:\nFormula Name]],Table_PI[[#This Row],[Quantity]],Table_PI[[#This Row],[List 1]],Table_PI[[#This Row],[List 2]],Table_PI[[#This Row],[List 3]],Table_PI[[#This Row],[Size]],Table_PI[[#This Row],[Input 1]],Table_PI[[#This Row],[Input 2]],Table_PI[[#This Row],[Input 3]],Table_PI[[#This Row],[Input 4]],'Customer Information'!$AR$12,4,ROW()),\"No Rebate\"),\"No Rebate\"),0)","v":0},{"$f":"IF(Table_PI[[#This Row],[Hide:\nFormula Name]]<>\"\",IFERROR(IF(MeasureCalc(Table_PI[[#This Row],[Hide:\nFormula Name]],Table_PI[[#This Row],[Quantity]],Table_PI[[#This Row],[List 1]],Table_PI[[#This Row],[List 2]],Table_PI[[#This Row],[List 3]],Table_PI[[#This Row],[Size]],Table_PI[[#This Row],[Input 1]],Table_PI[[#This Row],[Input 2]],Table_PI[[#This Row],[Input 3]],Table_PI[[#This Row],[Input 4]],'Customer Information'!$AR$12,1,ROW())>0,MeasureCalc(Table_PI[[#This Row],[Hide:\nFormula Name]],Table_PI[[#This Row],[Quantity]],Table_PI[[#This Row],[List 1]],Table_PI[[#This Row],[List 2]],Table_PI[[#This Row],[List 3]],Table_PI[[#This Row],[Size]],Table_PI[[#This Row],[Input 1]],Table_PI[[#This Row],[Input 2]],Table_PI[[#This Row],[Input 3]],Table_PI[[#This Row],[Input 4]],'Customer Information'!$AR$12,5,ROW()),\"No Rebate\"),\"No Rebate\"),0)","v":0},{"$f":"IF(Table_PI[[#This Row],[Hide:\nFormula Name]]<>\"\",IFERROR(IF(MeasureCalc(Table_PI[[#This Row],[Hide:\nFormula Name]],Table_PI[[#This Row],[Quantity]],Table_PI[[#This Row],[List 1]],Table_PI[[#This Row],[List 2]],Table_PI[[#This Row],[List 3]],Table_PI[[#This Row],[Size]],Table_PI[[#This Row],[Input 1]],Table_PI[[#This Row],[Input 2]],Table_PI[[#This Row],[Input 3]],Table_PI[[#This Row],[Input 4]],'Customer Information'!$AR$12,1,ROW())>0,MeasureCalc(Table_PI[[#This Row],[Hide:\nFormula Name]],Table_PI[[#This Row],[Quantity]],Table_PI[[#This Row],[List 1]],Table_PI[[#This Row],[List 2]],Table_PI[[#This Row],[List 3]],Table_PI[[#This Row],[Size]],Table_PI[[#This Row],[Input 1]],Table_PI[[#This Row],[Input 2]],Table_PI[[#This Row],[Input 3]],Table_PI[[#This Row],[Input 4]],'Customer Information'!$AR$12,6,ROW()),\"No Rebate\"),\"No Rebate\"),0)","v":0},{"$f":"IF(Table_PI[[#This Row],[Hide:\nFormula Name]]<>\"\",IFERROR(IF(MeasureCalc(Table_PI[[#This Row],[Hide:\nFormula Name]],Table_PI[[#This Row],[Quantity]],Table_PI[[#This Row],[List 1]],Table_PI[[#This Row],[List 2]],Table_PI[[#This Row],[List 3]],Table_PI[[#This Row],[Size]],Table_PI[[#This Row],[Input 1]],Table_PI[[#This Row],[Input 2]],Table_PI[[#This Row],[Input 3]],Table_PI[[#This Row],[Input 4]],'Customer Information'!$AR$12,1,ROW())>0,MeasureCalc(Table_PI[[#This Row],[Hide:\nFormula Name]],Table_PI[[#This Row],[Quantity]],Table_PI[[#This Row],[List 1]],Table_PI[[#This Row],[List 2]],Table_PI[[#This Row],[List 3]],Table_PI[[#This Row],[Size]],Table_PI[[#This Row],[Input 1]],Table_PI[[#This Row],[Input 2]],Table_PI[[#This Row],[Input 3]],Table_PI[[#This Row],[Input 4]],'Customer Information'!$AR$12,7,ROW()),\"No Rebate\"),\"No Rebate\"),0)","v":0},{"$f":"IF(Table_PI[[#This Row],[Hide:\nFormula Name]]<>\"\",IFERROR(IF(MeasureCalc(Table_PI[[#This Row],[Hide:\nFormula Name]],Table_PI[[#This Row],[Quantity]],Table_PI[[#This Row],[List 1]],Table_PI[[#This Row],[List 2]],Table_PI[[#This Row],[List 3]],Table_PI[[#This Row],[Size]],Table_PI[[#This Row],[Input 1]],Table_PI[[#This Row],[Input 2]],Table_PI[[#This Row],[Input 3]],Table_PI[[#This Row],[Input 4]],'Customer Information'!$AR$12,1,ROW())>0,MeasureCalc(Table_PI[[#This Row],[Hide:\nFormula Name]],Table_PI[[#This Row],[Quantity]],Table_PI[[#This Row],[List 1]],Table_PI[[#This Row],[List 2]],Table_PI[[#This Row],[List 3]],Table_PI[[#This Row],[Size]],Table_PI[[#This Row],[Input 1]],Table_PI[[#This Row],[Input 2]],Table_PI[[#This Row],[Input 3]],Table_PI[[#This Row],[Input 4]],'Customer Information'!$AR$12,8,ROW()),\"No Rebate\"),\"No Rebate\"),0)","v":0},{"$f":"IF(Table_PI[[#This Row],[Hide:\nFormula Name]]<>\"\",IF(AND(Table_PI[[#This Row],[Hide:\nFormula Name]]<>\"\",OR(Table_PI[[#This Row],[Rebate]]>0,Table_PI[[#This Row],[Rebate]]=\"No Rebate\")),TRUE,\"MI: Line Item \" & $A51),\"\")","v":""}]
[{"$f":"IF(Table_PI[[#This Row],[Hide:\nFormula Name]]<>\"\",MAX($A$2:A51)+1,\"\")","v":""},null,null,null,null,null,null,null,null,null,null,null,null,null,null,{"$f":"IFERROR(VLOOKUP(Table_PI[[#This Row],[Measure]],'Equipment Lookups'!$C$3:$D$23,2,FALSE),\"\")","v":""},{"$f":"IF(Table_PI[[#This Row],[Hide:\nFormula Name]]<>\"\",IFERROR(IF(MeasureCalc(Table_PI[[#This Row],[Hide:\nFormula Name]],Table_PI[[#This Row],[Quantity]],Table_PI[[#This Row],[List 1]],Table_PI[[#This Row],[List 2]],Table_PI[[#This Row],[List 3]],Table_PI[[#This Row],[Size]],Table_PI[[#This Row],[Input 1]],Table_PI[[#This Row],[Input 2]],Table_PI[[#This Row],[Input 3]],Table_PI[[#This Row],[Input 4]],'Customer Information'!$AR$12,1,ROW())>0,MeasureCalc(Table_PI[[#This Row],[Hide:\nFormula Name]],Table_PI[[#This Row],[Quantity]],Table_PI[[#This Row],[List 1]],Table_PI[[#This Row],[List 2]],Table_PI[[#This Row],[List 3]],Table_PI[[#This Row],[Size]],Table_PI[[#This Row],[Input 1]],Table_PI[[#This Row],[Input 2]],Table_PI[[#This Row],[Input 3]],Table_PI[[#This Row],[Input 4]],'Customer Information'!$AR$12,1,ROW()),\"No Rebate\"),\"No Rebate\"),0)","v":0},{"$f":"IF(Table_PI[[#This Row],[Hide:\nFormula Name]]<>\"\",IFERROR(IF(MeasureCalc(Table_PI[[#This Row],[Hide:\nFormula Name]],Table_PI[[#This Row],[Quantity]],Table_PI[[#This Row],[List 1]],Table_PI[[#This Row],[List 2]],Table_PI[[#This Row],[List 3]],Table_PI[[#This Row],[Size]],Table_PI[[#This Row],[Input 1]],Table_PI[[#This Row],[Input 2]],Table_PI[[#This Row],[Input 3]],Table_PI[[#This Row],[Input 4]],'Customer Information'!$AR$12,1,ROW())>0,MeasureCalc(Table_PI[[#This Row],[Hide:\nFormula Name]],Table_PI[[#This Row],[Quantity]],Table_PI[[#This Row],[List 1]],Table_PI[[#This Row],[List 2]],Table_PI[[#This Row],[List 3]],Table_PI[[#This Row],[Size]],Table_PI[[#This Row],[Input 1]],Table_PI[[#This Row],[Input 2]],Table_PI[[#This Row],[Input 3]],Table_PI[[#This Row],[Input 4]],'Customer Information'!$AR$12,2,ROW()),\"No Rebate\"),\"No Rebate\"),0)","v":0},{"$f":"IF(Table_PI[[#This Row],[Hide:\nFormula Name]]<>\"\",IFERROR(IF(MeasureCalc(Table_PI[[#This Row],[Hide:\nFormula Name]],Table_PI[[#This Row],[Quantity]],Table_PI[[#This Row],[List 1]],Table_PI[[#This Row],[List 2]],Table_PI[[#This Row],[List 3]],Table_PI[[#This Row],[Size]],Table_PI[[#This Row],[Input 1]],Table_PI[[#This Row],[Input 2]],Table_PI[[#This Row],[Input 3]],Table_PI[[#This Row],[Input 4]],'Customer Information'!$AR$12,1,ROW())>0,MeasureCalc(Table_PI[[#This Row],[Hide:\nFormula Name]],Table_PI[[#This Row],[Quantity]],Table_PI[[#This Row],[List 1]],Table_PI[[#This Row],[List 2]],Table_PI[[#This Row],[List 3]],Table_PI[[#This Row],[Size]],Table_PI[[#This Row],[Input 1]],Table_PI[[#This Row],[Input 2]],Table_PI[[#This Row],[Input 3]],Table_PI[[#This Row],[Input 4]],'Customer Information'!$AR$12,3,ROW()),\"No Rebate\"),\"No Rebate\"),0)","v":0},{"$f":"IF(Table_PI[[#This Row],[Hide:\nFormula Name]]<>\"\",IFERROR(IF(MeasureCalc(Table_PI[[#This Row],[Hide:\nFormula Name]],Table_PI[[#This Row],[Quantity]],Table_PI[[#This Row],[List 1]],Table_PI[[#This Row],[List 2]],Table_PI[[#This Row],[List 3]],Table_PI[[#This Row],[Size]],Table_PI[[#This Row],[Input 1]],Table_PI[[#This Row],[Input 2]],Table_PI[[#This Row],[Input 3]],Table_PI[[#This Row],[Input 4]],'Customer Information'!$AR$12,1,ROW())>0,MeasureCalc(Table_PI[[#This Row],[Hide:\nFormula Name]],Table_PI[[#This Row],[Quantity]],Table_PI[[#This Row],[List 1]],Table_PI[[#This Row],[List 2]],Table_PI[[#This Row],[List 3]],Table_PI[[#This Row],[Size]],Table_PI[[#This Row],[Input 1]],Table_PI[[#This Row],[Input 2]],Table_PI[[#This Row],[Input 3]],Table_PI[[#This Row],[Input 4]],'Customer Information'!$AR$12,4,ROW()),\"No Rebate\"),\"No Rebate\"),0)","v":0},{"$f":"IF(Table_PI[[#This Row],[Hide:\nFormula Name]]<>\"\",IFERROR(IF(MeasureCalc(Table_PI[[#This Row],[Hide:\nFormula Name]],Table_PI[[#This Row],[Quantity]],Table_PI[[#This Row],[List 1]],Table_PI[[#This Row],[List 2]],Table_PI[[#This Row],[List 3]],Table_PI[[#This Row],[Size]],Table_PI[[#This Row],[Input 1]],Table_PI[[#This Row],[Input 2]],Table_PI[[#This Row],[Input 3]],Table_PI[[#This Row],[Input 4]],'Customer Information'!$AR$12,1,ROW())>0,MeasureCalc(Table_PI[[#This Row],[Hide:\nFormula Name]],Table_PI[[#This Row],[Quantity]],Table_PI[[#This Row],[List 1]],Table_PI[[#This Row],[List 2]],Table_PI[[#This Row],[List 3]],Table_PI[[#This Row],[Size]],Table_PI[[#This Row],[Input 1]],Table_PI[[#This Row],[Input 2]],Table_PI[[#This Row],[Input 3]],Table_PI[[#This Row],[Input 4]],'Customer Information'!$AR$12,5,ROW()),\"No Rebate\"),\"No Rebate\"),0)","v":0},{"$f":"IF(Table_PI[[#This Row],[Hide:\nFormula Name]]<>\"\",IFERROR(IF(MeasureCalc(Table_PI[[#This Row],[Hide:\nFormula Name]],Table_PI[[#This Row],[Quantity]],Table_PI[[#This Row],[List 1]],Table_PI[[#This Row],[List 2]],Table_PI[[#This Row],[List 3]],Table_PI[[#This Row],[Size]],Table_PI[[#This Row],[Input 1]],Table_PI[[#This Row],[Input 2]],Table_PI[[#This Row],[Input 3]],Table_PI[[#This Row],[Input 4]],'Customer Information'!$AR$12,1,ROW())>0,MeasureCalc(Table_PI[[#This Row],[Hide:\nFormula Name]],Table_PI[[#This Row],[Quantity]],Table_PI[[#This Row],[List 1]],Table_PI[[#This Row],[List 2]],Table_PI[[#This Row],[List 3]],Table_PI[[#This Row],[Size]],Table_PI[[#This Row],[Input 1]],Table_PI[[#This Row],[Input 2]],Table_PI[[#This Row],[Input 3]],Table_PI[[#This Row],[Input 4]],'Customer Information'!$AR$12,6,ROW()),\"No Rebate\"),\"No Rebate\"),0)","v":0},{"$f":"IF(Table_PI[[#This Row],[Hide:\nFormula Name]]<>\"\",IFERROR(IF(MeasureCalc(Table_PI[[#This Row],[Hide:\nFormula Name]],Table_PI[[#This Row],[Quantity]],Table_PI[[#This Row],[List 1]],Table_PI[[#This Row],[List 2]],Table_PI[[#This Row],[List 3]],Table_PI[[#This Row],[Size]],Table_PI[[#This Row],[Input 1]],Table_PI[[#This Row],[Input 2]],Table_PI[[#This Row],[Input 3]],Table_PI[[#This Row],[Input 4]],'Customer Information'!$AR$12,1,ROW())>0,MeasureCalc(Table_PI[[#This Row],[Hide:\nFormula Name]],Table_PI[[#This Row],[Quantity]],Table_PI[[#This Row],[List 1]],Table_PI[[#This Row],[List 2]],Table_PI[[#This Row],[List 3]],Table_PI[[#This Row],[Size]],Table_PI[[#This Row],[Input 1]],Table_PI[[#This Row],[Input 2]],Table_PI[[#This Row],[Input 3]],Table_PI[[#This Row],[Input 4]],'Customer Information'!$AR$12,7,ROW()),\"No Rebate\"),\"No Rebate\"),0)","v":0},{"$f":"IF(Table_PI[[#This Row],[Hide:\nFormula Name]]<>\"\",IFERROR(IF(MeasureCalc(Table_PI[[#This Row],[Hide:\nFormula Name]],Table_PI[[#This Row],[Quantity]],Table_PI[[#This Row],[List 1]],Table_PI[[#This Row],[List 2]],Table_PI[[#This Row],[List 3]],Table_PI[[#This Row],[Size]],Table_PI[[#This Row],[Input 1]],Table_PI[[#This Row],[Input 2]],Table_PI[[#This Row],[Input 3]],Table_PI[[#This Row],[Input 4]],'Customer Information'!$AR$12,1,ROW())>0,MeasureCalc(Table_PI[[#This Row],[Hide:\nFormula Name]],Table_PI[[#This Row],[Quantity]],Table_PI[[#This Row],[List 1]],Table_PI[[#This Row],[List 2]],Table_PI[[#This Row],[List 3]],Table_PI[[#This Row],[Size]],Table_PI[[#This Row],[Input 1]],Table_PI[[#This Row],[Input 2]],Table_PI[[#This Row],[Input 3]],Table_PI[[#This Row],[Input 4]],'Customer Information'!$AR$12,8,ROW()),\"No Rebate\"),\"No Rebate\"),0)","v":0},{"$f":"IF(Table_PI[[#This Row],[Hide:\nFormula Name]]<>\"\",IF(AND(Table_PI[[#This Row],[Hide:\nFormula Name]]<>\"\",OR(Table_PI[[#This Row],[Rebate]]>0,Table_PI[[#This Row],[Rebate]]=\"No Rebate\")),TRUE,\"MI: Line Item \" & $A52),\"\")","v":""}]
[{"$f":"IF(Table_PI[[#This Row],[Hide:\nFormula Name]]<>\"\",MAX($A$2:A52)+1,\"\")","v":""},null,null,null,null,null,null,null,null,null,null,null,null,null,null,{"$f":"IFERROR(VLOOKUP(Table_PI[[#This Row],[Measure]],'Equipment Lookups'!$C$3:$D$23,2,FALSE),\"\")","v":""},{"$f":"IF(Table_PI[[#This Row],[Hide:\nFormula Name]]<>\"\",IFERROR(IF(MeasureCalc(Table_PI[[#This Row],[Hide:\nFormula Name]],Table_PI[[#This Row],[Quantity]],Table_PI[[#This Row],[List 1]],Table_PI[[#This Row],[List 2]],Table_PI[[#This Row],[List 3]],Table_PI[[#This Row],[Size]],Table_PI[[#This Row],[Input 1]],Table_PI[[#This Row],[Input 2]],Table_PI[[#This Row],[Input 3]],Table_PI[[#This Row],[Input 4]],'Customer Information'!$AR$12,1,ROW())>0,MeasureCalc(Table_PI[[#This Row],[Hide:\nFormula Name]],Table_PI[[#This Row],[Quantity]],Table_PI[[#This Row],[List 1]],Table_PI[[#This Row],[List 2]],Table_PI[[#This Row],[List 3]],Table_PI[[#This Row],[Size]],Table_PI[[#This Row],[Input 1]],Table_PI[[#This Row],[Input 2]],Table_PI[[#This Row],[Input 3]],Table_PI[[#This Row],[Input 4]],'Customer Information'!$AR$12,1,ROW()),\"No Rebate\"),\"No Rebate\"),0)","v":0},{"$f":"IF(Table_PI[[#This Row],[Hide:\nFormula Name]]<>\"\",IFERROR(IF(MeasureCalc(Table_PI[[#This Row],[Hide:\nFormula Name]],Table_PI[[#This Row],[Quantity]],Table_PI[[#This Row],[List 1]],Table_PI[[#This Row],[List 2]],Table_PI[[#This Row],[List 3]],Table_PI[[#This Row],[Size]],Table_PI[[#This Row],[Input 1]],Table_PI[[#This Row],[Input 2]],Table_PI[[#This Row],[Input 3]],Table_PI[[#This Row],[Input 4]],'Customer Information'!$AR$12,1,ROW())>0,MeasureCalc(Table_PI[[#This Row],[Hide:\nFormula Name]],Table_PI[[#This Row],[Quantity]],Table_PI[[#This Row],[List 1]],Table_PI[[#This Row],[List 2]],Table_PI[[#This Row],[List 3]],Table_PI[[#This Row],[Size]],Table_PI[[#This Row],[Input 1]],Table_PI[[#This Row],[Input 2]],Table_PI[[#This Row],[Input 3]],Table_PI[[#This Row],[Input 4]],'Customer Information'!$AR$12,2,ROW()),\"No Rebate\"),\"No Rebate\"),0)","v":0},{"$f":"IF(Table_PI[[#This Row],[Hide:\nFormula Name]]<>\"\",IFERROR(IF(MeasureCalc(Table_PI[[#This Row],[Hide:\nFormula Name]],Table_PI[[#This Row],[Quantity]],Table_PI[[#This Row],[List 1]],Table_PI[[#This Row],[List 2]],Table_PI[[#This Row],[List 3]],Table_PI[[#This Row],[Size]],Table_PI[[#This Row],[Input 1]],Table_PI[[#This Row],[Input 2]],Table_PI[[#This Row],[Input 3]],Table_PI[[#This Row],[Input 4]],'Customer Information'!$AR$12,1,ROW())>0,MeasureCalc(Table_PI[[#This Row],[Hide:\nFormula Name]],Table_PI[[#This Row],[Quantity]],Table_PI[[#This Row],[List 1]],Table_PI[[#This Row],[List 2]],Table_PI[[#This Row],[List 3]],Table_PI[[#This Row],[Size]],Table_PI[[#This Row],[Input 1]],Table_PI[[#This Row],[Input 2]],Table_PI[[#This Row],[Input 3]],Table_PI[[#This Row],[Input 4]],'Customer Information'!$AR$12,3,ROW()),\"No Rebate\"),\"No Rebate\"),0)","v":0},{"$f":"IF(Table_PI[[#This Row],[Hide:\nFormula Name]]<>\"\",IFERROR(IF(MeasureCalc(Table_PI[[#This Row],[Hide:\nFormula Name]],Table_PI[[#This Row],[Quantity]],Table_PI[[#This Row],[List 1]],Table_PI[[#This Row],[List 2]],Table_PI[[#This Row],[List 3]],Table_PI[[#This Row],[Size]],Table_PI[[#This Row],[Input 1]],Table_PI[[#This Row],[Input 2]],Table_PI[[#This Row],[Input 3]],Table_PI[[#This Row],[Input 4]],'Customer Information'!$AR$12,1,ROW())>0,MeasureCalc(Table_PI[[#This Row],[Hide:\nFormula Name]],Table_PI[[#This Row],[Quantity]],Table_PI[[#This Row],[List 1]],Table_PI[[#This Row],[List 2]],Table_PI[[#This Row],[List 3]],Table_PI[[#This Row],[Size]],Table_PI[[#This Row],[Input 1]],Table_PI[[#This Row],[Input 2]],Table_PI[[#This Row],[Input 3]],Table_PI[[#This Row],[Input 4]],'Customer Information'!$AR$12,4,ROW()),\"No Rebate\"),\"No Rebate\"),0)","v":0},{"$f":"IF(Table_PI[[#This Row],[Hide:\nFormula Name]]<>\"\",IFERROR(IF(MeasureCalc(Table_PI[[#This Row],[Hide:\nFormula Name]],Table_PI[[#This Row],[Quantity]],Table_PI[[#This Row],[List 1]],Table_PI[[#This Row],[List 2]],Table_PI[[#This Row],[List 3]],Table_PI[[#This Row],[Size]],Table_PI[[#This Row],[Input 1]],Table_PI[[#This Row],[Input 2]],Table_PI[[#This Row],[Input 3]],Table_PI[[#This Row],[Input 4]],'Customer Information'!$AR$12,1,ROW())>0,MeasureCalc(Table_PI[[#This Row],[Hide:\nFormula Name]],Table_PI[[#This Row],[Quantity]],Table_PI[[#This Row],[List 1]],Table_PI[[#This Row],[List 2]],Table_PI[[#This Row],[List 3]],Table_PI[[#This Row],[Size]],Table_PI[[#This Row],[Input 1]],Table_PI[[#This Row],[Input 2]],Table_PI[[#This Row],[Input 3]],Table_PI[[#This Row],[Input 4]],'Customer Information'!$AR$12,5,ROW()),\"No Rebate\"),\"No Rebate\"),0)","v":0},{"$f":"IF(Table_PI[[#This Row],[Hide:\nFormula Name]]<>\"\",IFERROR(IF(MeasureCalc(Table_PI[[#This Row],[Hide:\nFormula Name]],Table_PI[[#This Row],[Quantity]],Table_PI[[#This Row],[List 1]],Table_PI[[#This Row],[List 2]],Table_PI[[#This Row],[List 3]],Table_PI[[#This Row],[Size]],Table_PI[[#This Row],[Input 1]],Table_PI[[#This Row],[Input 2]],Table_PI[[#This Row],[Input 3]],Table_PI[[#This Row],[Input 4]],'Customer Information'!$AR$12,1,ROW())>0,MeasureCalc(Table_PI[[#This Row],[Hide:\nFormula Name]],Table_PI[[#This Row],[Quantity]],Table_PI[[#This Row],[List 1]],Table_PI[[#This Row],[List 2]],Table_PI[[#This Row],[List 3]],Table_PI[[#This Row],[Size]],Table_PI[[#This Row],[Input 1]],Table_PI[[#This Row],[Input 2]],Table_PI[[#This Row],[Input 3]],Table_PI[[#This Row],[Input 4]],'Customer Information'!$AR$12,6,ROW()),\"No Rebate\"),\"No Rebate\"),0)","v":0},{"$f":"IF(Table_PI[[#This Row],[Hide:\nFormula Name]]<>\"\",IFERROR(IF(MeasureCalc(Table_PI[[#This Row],[Hide:\nFormula Name]],Table_PI[[#This Row],[Quantity]],Table_PI[[#This Row],[List 1]],Table_PI[[#This Row],[List 2]],Table_PI[[#This Row],[List 3]],Table_PI[[#This Row],[Size]],Table_PI[[#This Row],[Input 1]],Table_PI[[#This Row],[Input 2]],Table_PI[[#This Row],[Input 3]],Table_PI[[#This Row],[Input 4]],'Customer Information'!$AR$12,1,ROW())>0,MeasureCalc(Table_PI[[#This Row],[Hide:\nFormula Name]],Table_PI[[#This Row],[Quantity]],Table_PI[[#This Row],[List 1]],Table_PI[[#This Row],[List 2]],Table_PI[[#This Row],[List 3]],Table_PI[[#This Row],[Size]],Table_PI[[#This Row],[Input 1]],Table_PI[[#This Row],[Input 2]],Table_PI[[#This Row],[Input 3]],Table_PI[[#This Row],[Input 4]],'Customer Information'!$AR$12,7,ROW()),\"No Rebate\"),\"No Rebate\"),0)","v":0},{"$f":"IF(Table_PI[[#This Row],[Hide:\nFormula Name]]<>\"\",IFERROR(IF(MeasureCalc(Table_PI[[#This Row],[Hide:\nFormula Name]],Table_PI[[#This Row],[Quantity]],Table_PI[[#This Row],[List 1]],Table_PI[[#This Row],[List 2]],Table_PI[[#This Row],[List 3]],Table_PI[[#This Row],[Size]],Table_PI[[#This Row],[Input 1]],Table_PI[[#This Row],[Input 2]],Table_PI[[#This Row],[Input 3]],Table_PI[[#This Row],[Input 4]],'Customer Information'!$AR$12,1,ROW())>0,MeasureCalc(Table_PI[[#This Row],[Hide:\nFormula Name]],Table_PI[[#This Row],[Quantity]],Table_PI[[#This Row],[List 1]],Table_PI[[#This Row],[List 2]],Table_PI[[#This Row],[List 3]],Table_PI[[#This Row],[Size]],Table_PI[[#This Row],[Input 1]],Table_PI[[#This Row],[Input 2]],Table_PI[[#This Row],[Input 3]],Table_PI[[#This Row],[Input 4]],'Customer Information'!$AR$12,8,ROW()),\"No Rebate\"),\"No Rebate\"),0)","v":0},{"$f":"IF(Table_PI[[#This Row],[Hide:\nFormula Name]]<>\"\",IF(AND(Table_PI[[#This Row],[Hide:\nFormula Name]]<>\"\",OR(Table_PI[[#This Row],[Rebate]]>0,Table_PI[[#This Row],[Rebate]]=\"No Rebate\")),TRUE,\"MI: Line Item \" & $A53),\"\")","v":""}]
[{"$f":"IF(Table_PI[[#This Row],[Hide:\nFormula Name]]<>\"\",MAX($A$2:A53)+1,\"\")","v":""},null,null,null,null,null,null,null,null,null,null,null,null,null,null,{"$f":"IFERROR(VLOOKUP(Table_PI[[#This Row],[Measure]],'Equipment Lookups'!$C$3:$D$23,2,FALSE),\"\")","v":""},{"$f":"IF(Table_PI[[#This Row],[Hide:\nFormula Name]]<>\"\",IFERROR(IF(MeasureCalc(Table_PI[[#This Row],[Hide:\nFormula Name]],Table_PI[[#This Row],[Quantity]],Table_PI[[#This Row],[List 1]],Table_PI[[#This Row],[List 2]],Table_PI[[#This Row],[List 3]],Table_PI[[#This Row],[Size]],Table_PI[[#This Row],[Input 1]],Table_PI[[#This Row],[Input 2]],Table_PI[[#This Row],[Input 3]],Table_PI[[#This Row],[Input 4]],'Customer Information'!$AR$12,1,ROW())>0,MeasureCalc(Table_PI[[#This Row],[Hide:\nFormula Name]],Table_PI[[#This Row],[Quantity]],Table_PI[[#This Row],[List 1]],Table_PI[[#This Row],[List 2]],Table_PI[[#This Row],[List 3]],Table_PI[[#This Row],[Size]],Table_PI[[#This Row],[Input 1]],Table_PI[[#This Row],[Input 2]],Table_PI[[#This Row],[Input 3]],Table_PI[[#This Row],[Input 4]],'Customer Information'!$AR$12,1,ROW()),\"No Rebate\"),\"No Rebate\"),0)","v":0},{"$f":"IF(Table_PI[[#This Row],[Hide:\nFormula Name]]<>\"\",IFERROR(IF(MeasureCalc(Table_PI[[#This Row],[Hide:\nFormula Name]],Table_PI[[#This Row],[Quantity]],Table_PI[[#This Row],[List 1]],Table_PI[[#This Row],[List 2]],Table_PI[[#This Row],[List 3]],Table_PI[[#This Row],[Size]],Table_PI[[#This Row],[Input 1]],Table_PI[[#This Row],[Input 2]],Table_PI[[#This Row],[Input 3]],Table_PI[[#This Row],[Input 4]],'Customer Information'!$AR$12,1,ROW())>0,MeasureCalc(Table_PI[[#This Row],[Hide:\nFormula Name]],Table_PI[[#This Row],[Quantity]],Table_PI[[#This Row],[List 1]],Table_PI[[#This Row],[List 2]],Table_PI[[#This Row],[List 3]],Table_PI[[#This Row],[Size]],Table_PI[[#This Row],[Input 1]],Table_PI[[#This Row],[Input 2]],Table_PI[[#This Row],[Input 3]],Table_PI[[#This Row],[Input 4]],'Customer Information'!$AR$12,2,ROW()),\"No Rebate\"),\"No Rebate\"),0)","v":0},{"$f":"IF(Table_PI[[#This Row],[Hide:\nFormula Name]]<>\"\",IFERROR(IF(MeasureCalc(Table_PI[[#This Row],[Hide:\nFormula Name]],Table_PI[[#This Row],[Quantity]],Table_PI[[#This Row],[List 1]],Table_PI[[#This Row],[List 2]],Table_PI[[#This Row],[List 3]],Table_PI[[#This Row],[Size]],Table_PI[[#This Row],[Input 1]],Table_PI[[#This Row],[Input 2]],Table_PI[[#This Row],[Input 3]],Table_PI[[#This Row],[Input 4]],'Customer Information'!$AR$12,1,ROW())>0,MeasureCalc(Table_PI[[#This Row],[Hide:\nFormula Name]],Table_PI[[#This Row],[Quantity]],Table_PI[[#This Row],[List 1]],Table_PI[[#This Row],[List 2]],Table_PI[[#This Row],[List 3]],Table_PI[[#This Row],[Size]],Table_PI[[#This Row],[Input 1]],Table_PI[[#This Row],[Input 2]],Table_PI[[#This Row],[Input 3]],Table_PI[[#This Row],[Input 4]],'Customer Information'!$AR$12,3,ROW()),\"No Rebate\"),\"No Rebate\"),0)","v":0},{"$f":"IF(Table_PI[[#This Row],[Hide:\nFormula Name]]<>\"\",IFERROR(IF(MeasureCalc(Table_PI[[#This Row],[Hide:\nFormula Name]],Table_PI[[#This Row],[Quantity]],Table_PI[[#This Row],[List 1]],Table_PI[[#This Row],[List 2]],Table_PI[[#This Row],[List 3]],Table_PI[[#This Row],[Size]],Table_PI[[#This Row],[Input 1]],Table_PI[[#This Row],[Input 2]],Table_PI[[#This Row],[Input 3]],Table_PI[[#This Row],[Input 4]],'Customer Information'!$AR$12,1,ROW())>0,MeasureCalc(Table_PI[[#This Row],[Hide:\nFormula Name]],Table_PI[[#This Row],[Quantity]],Table_PI[[#This Row],[List 1]],Table_PI[[#This Row],[List 2]],Table_PI[[#This Row],[List 3]],Table_PI[[#This Row],[Size]],Table_PI[[#This Row],[Input 1]],Table_PI[[#This Row],[Input 2]],Table_PI[[#This Row],[Input 3]],Table_PI[[#This Row],[Input 4]],'Customer Information'!$AR$12,4,ROW()),\"No Rebate\"),\"No Rebate\"),0)","v":0},{"$f":"IF(Table_PI[[#This Row],[Hide:\nFormula Name]]<>\"\",IFERROR(IF(MeasureCalc(Table_PI[[#This Row],[Hide:\nFormula Name]],Table_PI[[#This Row],[Quantity]],Table_PI[[#This Row],[List 1]],Table_PI[[#This Row],[List 2]],Table_PI[[#This Row],[List 3]],Table_PI[[#This Row],[Size]],Table_PI[[#This Row],[Input 1]],Table_PI[[#This Row],[Input 2]],Table_PI[[#This Row],[Input 3]],Table_PI[[#This Row],[Input 4]],'Customer Information'!$AR$12,1,ROW())>0,MeasureCalc(Table_PI[[#This Row],[Hide:\nFormula Name]],Table_PI[[#This Row],[Quantity]],Table_PI[[#This Row],[List 1]],Table_PI[[#This Row],[List 2]],Table_PI[[#This Row],[List 3]],Table_PI[[#This Row],[Size]],Table_PI[[#This Row],[Input 1]],Table_PI[[#This Row],[Input 2]],Table_PI[[#This Row],[Input 3]],Table_PI[[#This Row],[Input 4]],'Customer Information'!$AR$12,5,ROW()),\"No Rebate\"),\"No Rebate\"),0)","v":0},{"$f":"IF(Table_PI[[#This Row],[Hide:\nFormula Name]]<>\"\",IFERROR(IF(MeasureCalc(Table_PI[[#This Row],[Hide:\nFormula Name]],Table_PI[[#This Row],[Quantity]],Table_PI[[#This Row],[List 1]],Table_PI[[#This Row],[List 2]],Table_PI[[#This Row],[List 3]],Table_PI[[#This Row],[Size]],Table_PI[[#This Row],[Input 1]],Table_PI[[#This Row],[Input 2]],Table_PI[[#This Row],[Input 3]],Table_PI[[#This Row],[Input 4]],'Customer Information'!$AR$12,1,ROW())>0,MeasureCalc(Table_PI[[#This Row],[Hide:\nFormula Name]],Table_PI[[#This Row],[Quantity]],Table_PI[[#This Row],[List 1]],Table_PI[[#This Row],[List 2]],Table_PI[[#This Row],[List 3]],Table_PI[[#This Row],[Size]],Table_PI[[#This Row],[Input 1]],Table_PI[[#This Row],[Input 2]],Table_PI[[#This Row],[Input 3]],Table_PI[[#This Row],[Input 4]],'Customer Information'!$AR$12,6,ROW()),\"No Rebate\"),\"No Rebate\"),0)","v":0},{"$f":"IF(Table_PI[[#This Row],[Hide:\nFormula Name]]<>\"\",IFERROR(IF(MeasureCalc(Table_PI[[#This Row],[Hide:\nFormula Name]],Table_PI[[#This Row],[Quantity]],Table_PI[[#This Row],[List 1]],Table_PI[[#This Row],[List 2]],Table_PI[[#This Row],[List 3]],Table_PI[[#This Row],[Size]],Table_PI[[#This Row],[Input 1]],Table_PI[[#This Row],[Input 2]],Table_PI[[#This Row],[Input 3]],Table_PI[[#This Row],[Input 4]],'Customer Information'!$AR$12,1,ROW())>0,MeasureCalc(Table_PI[[#This Row],[Hide:\nFormula Name]],Table_PI[[#This Row],[Quantity]],Table_PI[[#This Row],[List 1]],Table_PI[[#This Row],[List 2]],Table_PI[[#This Row],[List 3]],Table_PI[[#This Row],[Size]],Table_PI[[#This Row],[Input 1]],Table_PI[[#This Row],[Input 2]],Table_PI[[#This Row],[Input 3]],Table_PI[[#This Row],[Input 4]],'Customer Information'!$AR$12,7,ROW()),\"No Rebate\"),\"No Rebate\"),0)","v":0},{"$f":"IF(Table_PI[[#This Row],[Hide:\nFormula Name]]<>\"\",IFERROR(IF(MeasureCalc(Table_PI[[#This Row],[Hide:\nFormula Name]],Table_PI[[#This Row],[Quantity]],Table_PI[[#This Row],[List 1]],Table_PI[[#This Row],[List 2]],Table_PI[[#This Row],[List 3]],Table_PI[[#This Row],[Size]],Table_PI[[#This Row],[Input 1]],Table_PI[[#This Row],[Input 2]],Table_PI[[#This Row],[Input 3]],Table_PI[[#This Row],[Input 4]],'Customer Information'!$AR$12,1,ROW())>0,MeasureCalc(Table_PI[[#This Row],[Hide:\nFormula Name]],Table_PI[[#This Row],[Quantity]],Table_PI[[#This Row],[List 1]],Table_PI[[#This Row],[List 2]],Table_PI[[#This Row],[List 3]],Table_PI[[#This Row],[Size]],Table_PI[[#This Row],[Input 1]],Table_PI[[#This Row],[Input 2]],Table_PI[[#This Row],[Input 3]],Table_PI[[#This Row],[Input 4]],'Customer Information'!$AR$12,8,ROW()),\"No Rebate\"),\"No Rebate\"),0)","v":0},{"$f":"IF(Table_PI[[#This Row],[Hide:\nFormula Name]]<>\"\",IF(AND(Table_PI[[#This Row],[Hide:\nFormula Name]]<>\"\",OR(Table_PI[[#This Row],[Rebate]]>0,Table_PI[[#This Row],[Rebate]]=\"No Rebate\")),TRUE,\"MI: Line Item \" & $A54),\"\")","v":""}]
[{"$f":"IF(Table_PI[[#This Row],[Hide:\nFormula Name]]<>\"\",MAX($A$2:A54)+1,\"\")","v":""},null,null,null,null,null,null,null,null,null,null,null,null,null,null,{"$f":"IFERROR(VLOOKUP(Table_PI[[#This Row],[Measure]],'Equipment Lookups'!$C$3:$D$23,2,FALSE),\"\")","v":""},{"$f":"IF(Table_PI[[#This Row],[Hide:\nFormula Name]]<>\"\",IFERROR(IF(MeasureCalc(Table_PI[[#This Row],[Hide:\nFormula Name]],Table_PI[[#This Row],[Quantity]],Table_PI[[#This Row],[List 1]],Table_PI[[#This Row],[List 2]],Table_PI[[#This Row],[List 3]],Table_PI[[#This Row],[Size]],Table_PI[[#This Row],[Input 1]],Table_PI[[#This Row],[Input 2]],Table_PI[[#This Row],[Input 3]],Table_PI[[#This Row],[Input 4]],'Customer Information'!$AR$12,1,ROW())>0,MeasureCalc(Table_PI[[#This Row],[Hide:\nFormula Name]],Table_PI[[#This Row],[Quantity]],Table_PI[[#This Row],[List 1]],Table_PI[[#This Row],[List 2]],Table_PI[[#This Row],[List 3]],Table_PI[[#This Row],[Size]],Table_PI[[#This Row],[Input 1]],Table_PI[[#This Row],[Input 2]],Table_PI[[#This Row],[Input 3]],Table_PI[[#This Row],[Input 4]],'Customer Information'!$AR$12,1,ROW()),\"No Rebate\"),\"No Rebate\"),0)","v":0},{"$f":"IF(Table_PI[[#This Row],[Hide:\nFormula Name]]<>\"\",IFERROR(IF(MeasureCalc(Table_PI[[#This Row],[Hide:\nFormula Name]],Table_PI[[#This Row],[Quantity]],Table_PI[[#This Row],[List 1]],Table_PI[[#This Row],[List 2]],Table_PI[[#This Row],[List 3]],Table_PI[[#This Row],[Size]],Table_PI[[#This Row],[Input 1]],Table_PI[[#This Row],[Input 2]],Table_PI[[#This Row],[Input 3]],Table_PI[[#This Row],[Input 4]],'Customer Information'!$AR$12,1,ROW())>0,MeasureCalc(Table_PI[[#This Row],[Hide:\nFormula Name]],Table_PI[[#This Row],[Quantity]],Table_PI[[#This Row],[List 1]],Table_PI[[#This Row],[List 2]],Table_PI[[#This Row],[List 3]],Table_PI[[#This Row],[Size]],Table_PI[[#This Row],[Input 1]],Table_PI[[#This Row],[Input 2]],Table_PI[[#This Row],[Input 3]],Table_PI[[#This Row],[Input 4]],'Customer Information'!$AR$12,2,ROW()),\"No Rebate\"),\"No Rebate\"),0)","v":0},{"$f":"IF(Table_PI[[#This Row],[Hide:\nFormula Name]]<>\"\",IFERROR(IF(MeasureCalc(Table_PI[[#This Row],[Hide:\nFormula Name]],Table_PI[[#This Row],[Quantity]],Table_PI[[#This Row],[List 1]],Table_PI[[#This Row],[List 2]],Table_PI[[#This Row],[List 3]],Table_PI[[#This Row],[Size]],Table_PI[[#This Row],[Input 1]],Table_PI[[#This Row],[Input 2]],Table_PI[[#This Row],[Input 3]],Table_PI[[#This Row],[Input 4]],'Customer Information'!$AR$12,1,ROW())>0,MeasureCalc(Table_PI[[#This Row],[Hide:\nFormula Name]],Table_PI[[#This Row],[Quantity]],Table_PI[[#This Row],[List 1]],Table_PI[[#This Row],[List 2]],Table_PI[[#This Row],[List 3]],Table_PI[[#This Row],[Size]],Table_PI[[#This Row],[Input 1]],Table_PI[[#This Row],[Input 2]],Table_PI[[#This Row],[Input 3]],Table_PI[[#This Row],[Input 4]],'Customer Information'!$AR$12,3,ROW()),\"No Rebate\"),\"No Rebate\"),0)","v":0},{"$f":"IF(Table_PI[[#This Row],[Hide:\nFormula Name]]<>\"\",IFERROR(IF(MeasureCalc(Table_PI[[#This Row],[Hide:\nFormula Name]],Table_PI[[#This Row],[Quantity]],Table_PI[[#This Row],[List 1]],Table_PI[[#This Row],[List 2]],Table_PI[[#This Row],[List 3]],Table_PI[[#This Row],[Size]],Table_PI[[#This Row],[Input 1]],Table_PI[[#This Row],[Input 2]],Table_PI[[#This Row],[Input 3]],Table_PI[[#This Row],[Input 4]],'Customer Information'!$AR$12,1,ROW())>0,MeasureCalc(Table_PI[[#This Row],[Hide:\nFormula Name]],Table_PI[[#This Row],[Quantity]],Table_PI[[#This Row],[List 1]],Table_PI[[#This Row],[List 2]],Table_PI[[#This Row],[List 3]],Table_PI[[#This Row],[Size]],Table_PI[[#This Row],[Input 1]],Table_PI[[#This Row],[Input 2]],Table_PI[[#This Row],[Input 3]],Table_PI[[#This Row],[Input 4]],'Customer Information'!$AR$12,4,ROW()),\"No Rebate\"),\"No Rebate\"),0)","v":0},{"$f":"IF(Table_PI[[#This Row],[Hide:\nFormula Name]]<>\"\",IFERROR(IF(MeasureCalc(Table_PI[[#This Row],[Hide:\nFormula Name]],Table_PI[[#This Row],[Quantity]],Table_PI[[#This Row],[List 1]],Table_PI[[#This Row],[List 2]],Table_PI[[#This Row],[List 3]],Table_PI[[#This Row],[Size]],Table_PI[[#This Row],[Input 1]],Table_PI[[#This Row],[Input 2]],Table_PI[[#This Row],[Input 3]],Table_PI[[#This Row],[Input 4]],'Customer Information'!$AR$12,1,ROW())>0,MeasureCalc(Table_PI[[#This Row],[Hide:\nFormula Name]],Table_PI[[#This Row],[Quantity]],Table_PI[[#This Row],[List 1]],Table_PI[[#This Row],[List 2]],Table_PI[[#This Row],[List 3]],Table_PI[[#This Row],[Size]],Table_PI[[#This Row],[Input 1]],Table_PI[[#This Row],[Input 2]],Table_PI[[#This Row],[Input 3]],Table_PI[[#This Row],[Input 4]],'Customer Information'!$AR$12,5,ROW()),\"No Rebate\"),\"No Rebate\"),0)","v":0},{"$f":"IF(Table_PI[[#This Row],[Hide:\nFormula Name]]<>\"\",IFERROR(IF(MeasureCalc(Table_PI[[#This Row],[Hide:\nFormula Name]],Table_PI[[#This Row],[Quantity]],Table_PI[[#This Row],[List 1]],Table_PI[[#This Row],[List 2]],Table_PI[[#This Row],[List 3]],Table_PI[[#This Row],[Size]],Table_PI[[#This Row],[Input 1]],Table_PI[[#This Row],[Input 2]],Table_PI[[#This Row],[Input 3]],Table_PI[[#This Row],[Input 4]],'Customer Information'!$AR$12,1,ROW())>0,MeasureCalc(Table_PI[[#This Row],[Hide:\nFormula Name]],Table_PI[[#This Row],[Quantity]],Table_PI[[#This Row],[List 1]],Table_PI[[#This Row],[List 2]],Table_PI[[#This Row],[List 3]],Table_PI[[#This Row],[Size]],Table_PI[[#This Row],[Input 1]],Table_PI[[#This Row],[Input 2]],Table_PI[[#This Row],[Input 3]],Table_PI[[#This Row],[Input 4]],'Customer Information'!$AR$12,6,ROW()),\"No Rebate\"),\"No Rebate\"),0)","v":0},{"$f":"IF(Table_PI[[#This Row],[Hide:\nFormula Name]]<>\"\",IFERROR(IF(MeasureCalc(Table_PI[[#This Row],[Hide:\nFormula Name]],Table_PI[[#This Row],[Quantity]],Table_PI[[#This Row],[List 1]],Table_PI[[#This Row],[List 2]],Table_PI[[#This Row],[List 3]],Table_PI[[#This Row],[Size]],Table_PI[[#This Row],[Input 1]],Table_PI[[#This Row],[Input 2]],Table_PI[[#This Row],[Input 3]],Table_PI[[#This Row],[Input 4]],'Customer Information'!$AR$12,1,ROW())>0,MeasureCalc(Table_PI[[#This Row],[Hide:\nFormula Name]],Table_PI[[#This Row],[Quantity]],Table_PI[[#This Row],[List 1]],Table_PI[[#This Row],[List 2]],Table_PI[[#This Row],[List 3]],Table_PI[[#This Row],[Size]],Table_PI[[#This Row],[Input 1]],Table_PI[[#This Row],[Input 2]],Table_PI[[#This Row],[Input 3]],Table_PI[[#This Row],[Input 4]],'Customer Information'!$AR$12,7,ROW()),\"No Rebate\"),\"No Rebate\"),0)","v":0},{"$f":"IF(Table_PI[[#This Row],[Hide:\nFormula Name]]<>\"\",IFERROR(IF(MeasureCalc(Table_PI[[#This Row],[Hide:\nFormula Name]],Table_PI[[#This Row],[Quantity]],Table_PI[[#This Row],[List 1]],Table_PI[[#This Row],[List 2]],Table_PI[[#This Row],[List 3]],Table_PI[[#This Row],[Size]],Table_PI[[#This Row],[Input 1]],Table_PI[[#This Row],[Input 2]],Table_PI[[#This Row],[Input 3]],Table_PI[[#This Row],[Input 4]],'Customer Information'!$AR$12,1,ROW())>0,MeasureCalc(Table_PI[[#This Row],[Hide:\nFormula Name]],Table_PI[[#This Row],[Quantity]],Table_PI[[#This Row],[List 1]],Table_PI[[#This Row],[List 2]],Table_PI[[#This Row],[List 3]],Table_PI[[#This Row],[Size]],Table_PI[[#This Row],[Input 1]],Table_PI[[#This Row],[Input 2]],Table_PI[[#This Row],[Input 3]],Table_PI[[#This Row],[Input 4]],'Customer Information'!$AR$12,8,ROW()),\"No Rebate\"),\"No Rebate\"),0)","v":0},{"$f":"IF(Table_PI[[#This Row],[Hide:\nFormula Name]]<>\"\",IF(AND(Table_PI[[#This Row],[Hide:\nFormula Name]]<>\"\",OR(Table_PI[[#This Row],[Rebate]]>0,Table_PI[[#This Row],[Rebate]]=\"No Rebate\")),TRUE,\"MI: Line Item \" & $A55),\"\")","v":""}]
[{"$f":"IF(Table_PI[[#This Row],[Hide:\nFormula Name]]<>\"\",MAX($A$2:A55)+1,\"\")","v":""},null,null,null,null,null,null,null,null,null,null,null,null,null,null,{"$f":"IFERROR(VLOOKUP(Table_PI[[#This Row],[Measure]],'Equipment Lookups'!$C$3:$D$23,2,FALSE),\"\")","v":""},{"$f":"IF(Table_PI[[#This Row],[Hide:\nFormula Name]]<>\"\",IFERROR(IF(MeasureCalc(Table_PI[[#This Row],[Hide:\nFormula Name]],Table_PI[[#This Row],[Quantity]],Table_PI[[#This Row],[List 1]],Table_PI[[#This Row],[List 2]],Table_PI[[#This Row],[List 3]],Table_PI[[#This Row],[Size]],Table_PI[[#This Row],[Input 1]],Table_PI[[#This Row],[Input 2]],Table_PI[[#This Row],[Input 3]],Table_PI[[#This Row],[Input 4]],'Customer Information'!$AR$12,1,ROW())>0,MeasureCalc(Table_PI[[#This Row],[Hide:\nFormula Name]],Table_PI[[#This Row],[Quantity]],Table_PI[[#This Row],[List 1]],Table_PI[[#This Row],[List 2]],Table_PI[[#This Row],[List 3]],Table_PI[[#This Row],[Size]],Table_PI[[#This Row],[Input 1]],Table_PI[[#This Row],[Input 2]],Table_PI[[#This Row],[Input 3]],Table_PI[[#This Row],[Input 4]],'Customer Information'!$AR$12,1,ROW()),\"No Rebate\"),\"No Rebate\"),0)","v":0},{"$f":"IF(Table_PI[[#This Row],[Hide:\nFormula Name]]<>\"\",IFERROR(IF(MeasureCalc(Table_PI[[#This Row],[Hide:\nFormula Name]],Table_PI[[#This Row],[Quantity]],Table_PI[[#This Row],[List 1]],Table_PI[[#This Row],[List 2]],Table_PI[[#This Row],[List 3]],Table_PI[[#This Row],[Size]],Table_PI[[#This Row],[Input 1]],Table_PI[[#This Row],[Input 2]],Table_PI[[#This Row],[Input 3]],Table_PI[[#This Row],[Input 4]],'Customer Information'!$AR$12,1,ROW())>0,MeasureCalc(Table_PI[[#This Row],[Hide:\nFormula Name]],Table_PI[[#This Row],[Quantity]],Table_PI[[#This Row],[List 1]],Table_PI[[#This Row],[List 2]],Table_PI[[#This Row],[List 3]],Table_PI[[#This Row],[Size]],Table_PI[[#This Row],[Input 1]],Table_PI[[#This Row],[Input 2]],Table_PI[[#This Row],[Input 3]],Table_PI[[#This Row],[Input 4]],'Customer Information'!$AR$12,2,ROW()),\"No Rebate\"),\"No Rebate\"),0)","v":0},{"$f":"IF(Table_PI[[#This Row],[Hide:\nFormula Name]]<>\"\",IFERROR(IF(MeasureCalc(Table_PI[[#This Row],[Hide:\nFormula Name]],Table_PI[[#This Row],[Quantity]],Table_PI[[#This Row],[List 1]],Table_PI[[#This Row],[List 2]],Table_PI[[#This Row],[List 3]],Table_PI[[#This Row],[Size]],Table_PI[[#This Row],[Input 1]],Table_PI[[#This Row],[Input 2]],Table_PI[[#This Row],[Input 3]],Table_PI[[#This Row],[Input 4]],'Customer Information'!$AR$12,1,ROW())>0,MeasureCalc(Table_PI[[#This Row],[Hide:\nFormula Name]],Table_PI[[#This Row],[Quantity]],Table_PI[[#This Row],[List 1]],Table_PI[[#This Row],[List 2]],Table_PI[[#This Row],[List 3]],Table_PI[[#This Row],[Size]],Table_PI[[#This Row],[Input 1]],Table_PI[[#This Row],[Input 2]],Table_PI[[#This Row],[Input 3]],Table_PI[[#This Row],[Input 4]],'Customer Information'!$AR$12,3,ROW()),\"No Rebate\"),\"No Rebate\"),0)","v":0},{"$f":"IF(Table_PI[[#This Row],[Hide:\nFormula Name]]<>\"\",IFERROR(IF(MeasureCalc(Table_PI[[#This Row],[Hide:\nFormula Name]],Table_PI[[#This Row],[Quantity]],Table_PI[[#This Row],[List 1]],Table_PI[[#This Row],[List 2]],Table_PI[[#This Row],[List 3]],Table_PI[[#This Row],[Size]],Table_PI[[#This Row],[Input 1]],Table_PI[[#This Row],[Input 2]],Table_PI[[#This Row],[Input 3]],Table_PI[[#This Row],[Input 4]],'Customer Information'!$AR$12,1,ROW())>0,MeasureCalc(Table_PI[[#This Row],[Hide:\nFormula Name]],Table_PI[[#This Row],[Quantity]],Table_PI[[#This Row],[List 1]],Table_PI[[#This Row],[List 2]],Table_PI[[#This Row],[List 3]],Table_PI[[#This Row],[Size]],Table_PI[[#This Row],[Input 1]],Table_PI[[#This Row],[Input 2]],Table_PI[[#This Row],[Input 3]],Table_PI[[#This Row],[Input 4]],'Customer Information'!$AR$12,4,ROW()),\"No Rebate\"),\"No Rebate\"),0)","v":0},{"$f":"IF(Table_PI[[#This Row],[Hide:\nFormula Name]]<>\"\",IFERROR(IF(MeasureCalc(Table_PI[[#This Row],[Hide:\nFormula Name]],Table_PI[[#This Row],[Quantity]],Table_PI[[#This Row],[List 1]],Table_PI[[#This Row],[List 2]],Table_PI[[#This Row],[List 3]],Table_PI[[#This Row],[Size]],Table_PI[[#This Row],[Input 1]],Table_PI[[#This Row],[Input 2]],Table_PI[[#This Row],[Input 3]],Table_PI[[#This Row],[Input 4]],'Customer Information'!$AR$12,1,ROW())>0,MeasureCalc(Table_PI[[#This Row],[Hide:\nFormula Name]],Table_PI[[#This Row],[Quantity]],Table_PI[[#This Row],[List 1]],Table_PI[[#This Row],[List 2]],Table_PI[[#This Row],[List 3]],Table_PI[[#This Row],[Size]],Table_PI[[#This Row],[Input 1]],Table_PI[[#This Row],[Input 2]],Table_PI[[#This Row],[Input 3]],Table_PI[[#This Row],[Input 4]],'Customer Information'!$AR$12,5,ROW()),\"No Rebate\"),\"No Rebate\"),0)","v":0},{"$f":"IF(Table_PI[[#This Row],[Hide:\nFormula Name]]<>\"\",IFERROR(IF(MeasureCalc(Table_PI[[#This Row],[Hide:\nFormula Name]],Table_PI[[#This Row],[Quantity]],Table_PI[[#This Row],[List 1]],Table_PI[[#This Row],[List 2]],Table_PI[[#This Row],[List 3]],Table_PI[[#This Row],[Size]],Table_PI[[#This Row],[Input 1]],Table_PI[[#This Row],[Input 2]],Table_PI[[#This Row],[Input 3]],Table_PI[[#This Row],[Input 4]],'Customer Information'!$AR$12,1,ROW())>0,MeasureCalc(Table_PI[[#This Row],[Hide:\nFormula Name]],Table_PI[[#This Row],[Quantity]],Table_PI[[#This Row],[List 1]],Table_PI[[#This Row],[List 2]],Table_PI[[#This Row],[List 3]],Table_PI[[#This Row],[Size]],Table_PI[[#This Row],[Input 1]],Table_PI[[#This Row],[Input 2]],Table_PI[[#This Row],[Input 3]],Table_PI[[#This Row],[Input 4]],'Customer Information'!$AR$12,6,ROW()),\"No Rebate\"),\"No Rebate\"),0)","v":0},{"$f":"IF(Table_PI[[#This Row],[Hide:\nFormula Name]]<>\"\",IFERROR(IF(MeasureCalc(Table_PI[[#This Row],[Hide:\nFormula Name]],Table_PI[[#This Row],[Quantity]],Table_PI[[#This Row],[List 1]],Table_PI[[#This Row],[List 2]],Table_PI[[#This Row],[List 3]],Table_PI[[#This Row],[Size]],Table_PI[[#This Row],[Input 1]],Table_PI[[#This Row],[Input 2]],Table_PI[[#This Row],[Input 3]],Table_PI[[#This Row],[Input 4]],'Customer Information'!$AR$12,1,ROW())>0,MeasureCalc(Table_PI[[#This Row],[Hide:\nFormula Name]],Table_PI[[#This Row],[Quantity]],Table_PI[[#This Row],[List 1]],Table_PI[[#This Row],[List 2]],Table_PI[[#This Row],[List 3]],Table_PI[[#This Row],[Size]],Table_PI[[#This Row],[Input 1]],Table_PI[[#This Row],[Input 2]],Table_PI[[#This Row],[Input 3]],Table_PI[[#This Row],[Input 4]],'Customer Information'!$AR$12,7,ROW()),\"No Rebate\"),\"No Rebate\"),0)","v":0},{"$f":"IF(Table_PI[[#This Row],[Hide:\nFormula Name]]<>\"\",IFERROR(IF(MeasureCalc(Table_PI[[#This Row],[Hide:\nFormula Name]],Table_PI[[#This Row],[Quantity]],Table_PI[[#This Row],[List 1]],Table_PI[[#This Row],[List 2]],Table_PI[[#This Row],[List 3]],Table_PI[[#This Row],[Size]],Table_PI[[#This Row],[Input 1]],Table_PI[[#This Row],[Input 2]],Table_PI[[#This Row],[Input 3]],Table_PI[[#This Row],[Input 4]],'Customer Information'!$AR$12,1,ROW())>0,MeasureCalc(Table_PI[[#This Row],[Hide:\nFormula Name]],Table_PI[[#This Row],[Quantity]],Table_PI[[#This Row],[List 1]],Table_PI[[#This Row],[List 2]],Table_PI[[#This Row],[List 3]],Table_PI[[#This Row],[Size]],Table_PI[[#This Row],[Input 1]],Table_PI[[#This Row],[Input 2]],Table_PI[[#This Row],[Input 3]],Table_PI[[#This Row],[Input 4]],'Customer Information'!$AR$12,8,ROW()),\"No Rebate\"),\"No Rebate\"),0)","v":0},{"$f":"IF(Table_PI[[#This Row],[Hide:\nFormula Name]]<>\"\",IF(AND(Table_PI[[#This Row],[Hide:\nFormula Name]]<>\"\",OR(Table_PI[[#This Row],[Rebate]]>0,Table_PI[[#This Row],[Rebate]]=\"No Rebate\")),TRUE,\"MI: Line Item \" & $A56),\"\")","v":""}]
[{"$f":"IF(Table_PI[[#This Row],[Hide:\nFormula Name]]<>\"\",MAX($A$2:A56)+1,\"\")","v":""},null,null,null,null,null,null,null,null,null,null,null,null,null,null,{"$f":"IFERROR(VLOOKUP(Table_PI[[#This Row],[Measure]],'Equipment Lookups'!$C$3:$D$23,2,FALSE),\"\")","v":""},{"$f":"IF(Table_PI[[#This Row],[Hide:\nFormula Name]]<>\"\",IFERROR(IF(MeasureCalc(Table_PI[[#This Row],[Hide:\nFormula Name]],Table_PI[[#This Row],[Quantity]],Table_PI[[#This Row],[List 1]],Table_PI[[#This Row],[List 2]],Table_PI[[#This Row],[List 3]],Table_PI[[#This Row],[Size]],Table_PI[[#This Row],[Input 1]],Table_PI[[#This Row],[Input 2]],Table_PI[[#This Row],[Input 3]],Table_PI[[#This Row],[Input 4]],'Customer Information'!$AR$12,1,ROW())>0,MeasureCalc(Table_PI[[#This Row],[Hide:\nFormula Name]],Table_PI[[#This Row],[Quantity]],Table_PI[[#This Row],[List 1]],Table_PI[[#This Row],[List 2]],Table_PI[[#This Row],[List 3]],Table_PI[[#This Row],[Size]],Table_PI[[#This Row],[Input 1]],Table_PI[[#This Row],[Input 2]],Table_PI[[#This Row],[Input 3]],Table_PI[[#This Row],[Input 4]],'Customer Information'!$AR$12,1,ROW()),\"No Rebate\"),\"No Rebate\"),0)","v":0},{"$f":"IF(Table_PI[[#This Row],[Hide:\nFormula Name]]<>\"\",IFERROR(IF(MeasureCalc(Table_PI[[#This Row],[Hide:\nFormula Name]],Table_PI[[#This Row],[Quantity]],Table_PI[[#This Row],[List 1]],Table_PI[[#This Row],[List 2]],Table_PI[[#This Row],[List 3]],Table_PI[[#This Row],[Size]],Table_PI[[#This Row],[Input 1]],Table_PI[[#This Row],[Input 2]],Table_PI[[#This Row],[Input 3]],Table_PI[[#This Row],[Input 4]],'Customer Information'!$AR$12,1,ROW())>0,MeasureCalc(Table_PI[[#This Row],[Hide:\nFormula Name]],Table_PI[[#This Row],[Quantity]],Table_PI[[#This Row],[List 1]],Table_PI[[#This Row],[List 2]],Table_PI[[#This Row],[List 3]],Table_PI[[#This Row],[Size]],Table_PI[[#This Row],[Input 1]],Table_PI[[#This Row],[Input 2]],Table_PI[[#This Row],[Input 3]],Table_PI[[#This Row],[Input 4]],'Customer Information'!$AR$12,2,ROW()),\"No Rebate\"),\"No Rebate\"),0)","v":0},{"$f":"IF(Table_PI[[#This Row],[Hide:\nFormula Name]]<>\"\",IFERROR(IF(MeasureCalc(Table_PI[[#This Row],[Hide:\nFormula Name]],Table_PI[[#This Row],[Quantity]],Table_PI[[#This Row],[List 1]],Table_PI[[#This Row],[List 2]],Table_PI[[#This Row],[List 3]],Table_PI[[#This Row],[Size]],Table_PI[[#This Row],[Input 1]],Table_PI[[#This Row],[Input 2]],Table_PI[[#This Row],[Input 3]],Table_PI[[#This Row],[Input 4]],'Customer Information'!$AR$12,1,ROW())>0,MeasureCalc(Table_PI[[#This Row],[Hide:\nFormula Name]],Table_PI[[#This Row],[Quantity]],Table_PI[[#This Row],[List 1]],Table_PI[[#This Row],[List 2]],Table_PI[[#This Row],[List 3]],Table_PI[[#This Row],[Size]],Table_PI[[#This Row],[Input 1]],Table_PI[[#This Row],[Input 2]],Table_PI[[#This Row],[Input 3]],Table_PI[[#This Row],[Input 4]],'Customer Information'!$AR$12,3,ROW()),\"No Rebate\"),\"No Rebate\"),0)","v":0},{"$f":"IF(Table_PI[[#This Row],[Hide:\nFormula Name]]<>\"\",IFERROR(IF(MeasureCalc(Table_PI[[#This Row],[Hide:\nFormula Name]],Table_PI[[#This Row],[Quantity]],Table_PI[[#This Row],[List 1]],Table_PI[[#This Row],[List 2]],Table_PI[[#This Row],[List 3]],Table_PI[[#This Row],[Size]],Table_PI[[#This Row],[Input 1]],Table_PI[[#This Row],[Input 2]],Table_PI[[#This Row],[Input 3]],Table_PI[[#This Row],[Input 4]],'Customer Information'!$AR$12,1,ROW())>0,MeasureCalc(Table_PI[[#This Row],[Hide:\nFormula Name]],Table_PI[[#This Row],[Quantity]],Table_PI[[#This Row],[List 1]],Table_PI[[#This Row],[List 2]],Table_PI[[#This Row],[List 3]],Table_PI[[#This Row],[Size]],Table_PI[[#This Row],[Input 1]],Table_PI[[#This Row],[Input 2]],Table_PI[[#This Row],[Input 3]],Table_PI[[#This Row],[Input 4]],'Customer Information'!$AR$12,4,ROW()),\"No Rebate\"),\"No Rebate\"),0)","v":0},{"$f":"IF(Table_PI[[#This Row],[Hide:\nFormula Name]]<>\"\",IFERROR(IF(MeasureCalc(Table_PI[[#This Row],[Hide:\nFormula Name]],Table_PI[[#This Row],[Quantity]],Table_PI[[#This Row],[List 1]],Table_PI[[#This Row],[List 2]],Table_PI[[#This Row],[List 3]],Table_PI[[#This Row],[Size]],Table_PI[[#This Row],[Input 1]],Table_PI[[#This Row],[Input 2]],Table_PI[[#This Row],[Input 3]],Table_PI[[#This Row],[Input 4]],'Customer Information'!$AR$12,1,ROW())>0,MeasureCalc(Table_PI[[#This Row],[Hide:\nFormula Name]],Table_PI[[#This Row],[Quantity]],Table_PI[[#This Row],[List 1]],Table_PI[[#This Row],[List 2]],Table_PI[[#This Row],[List 3]],Table_PI[[#This Row],[Size]],Table_PI[[#This Row],[Input 1]],Table_PI[[#This Row],[Input 2]],Table_PI[[#This Row],[Input 3]],Table_PI[[#This Row],[Input 4]],'Customer Information'!$AR$12,5,ROW()),\"No Rebate\"),\"No Rebate\"),0)","v":0},{"$f":"IF(Table_PI[[#This Row],[Hide:\nFormula Name]]<>\"\",IFERROR(IF(MeasureCalc(Table_PI[[#This Row],[Hide:\nFormula Name]],Table_PI[[#This Row],[Quantity]],Table_PI[[#This Row],[List 1]],Table_PI[[#This Row],[List 2]],Table_PI[[#This Row],[List 3]],Table_PI[[#This Row],[Size]],Table_PI[[#This Row],[Input 1]],Table_PI[[#This Row],[Input 2]],Table_PI[[#This Row],[Input 3]],Table_PI[[#This Row],[Input 4]],'Customer Information'!$AR$12,1,ROW())>0,MeasureCalc(Table_PI[[#This Row],[Hide:\nFormula Name]],Table_PI[[#This Row],[Quantity]],Table_PI[[#This Row],[List 1]],Table_PI[[#This Row],[List 2]],Table_PI[[#This Row],[List 3]],Table_PI[[#This Row],[Size]],Table_PI[[#This Row],[Input 1]],Table_PI[[#This Row],[Input 2]],Table_PI[[#This Row],[Input 3]],Table_PI[[#This Row],[Input 4]],'Customer Information'!$AR$12,6,ROW()),\"No Rebate\"),\"No Rebate\"),0)","v":0},{"$f":"IF(Table_PI[[#This Row],[Hide:\nFormula Name]]<>\"\",IFERROR(IF(MeasureCalc(Table_PI[[#This Row],[Hide:\nFormula Name]],Table_PI[[#This Row],[Quantity]],Table_PI[[#This Row],[List 1]],Table_PI[[#This Row],[List 2]],Table_PI[[#This Row],[List 3]],Table_PI[[#This Row],[Size]],Table_PI[[#This Row],[Input 1]],Table_PI[[#This Row],[Input 2]],Table_PI[[#This Row],[Input 3]],Table_PI[[#This Row],[Input 4]],'Customer Information'!$AR$12,1,ROW())>0,MeasureCalc(Table_PI[[#This Row],[Hide:\nFormula Name]],Table_PI[[#This Row],[Quantity]],Table_PI[[#This Row],[List 1]],Table_PI[[#This Row],[List 2]],Table_PI[[#This Row],[List 3]],Table_PI[[#This Row],[Size]],Table_PI[[#This Row],[Input 1]],Table_PI[[#This Row],[Input 2]],Table_PI[[#This Row],[Input 3]],Table_PI[[#This Row],[Input 4]],'Customer Information'!$AR$12,7,ROW()),\"No Rebate\"),\"No Rebate\"),0)","v":0},{"$f":"IF(Table_PI[[#This Row],[Hide:\nFormula Name]]<>\"\",IFERROR(IF(MeasureCalc(Table_PI[[#This Row],[Hide:\nFormula Name]],Table_PI[[#This Row],[Quantity]],Table_PI[[#This Row],[List 1]],Table_PI[[#This Row],[List 2]],Table_PI[[#This Row],[List 3]],Table_PI[[#This Row],[Size]],Table_PI[[#This Row],[Input 1]],Table_PI[[#This Row],[Input 2]],Table_PI[[#This Row],[Input 3]],Table_PI[[#This Row],[Input 4]],'Customer Information'!$AR$12,1,ROW())>0,MeasureCalc(Table_PI[[#This Row],[Hide:\nFormula Name]],Table_PI[[#This Row],[Quantity]],Table_PI[[#This Row],[List 1]],Table_PI[[#This Row],[List 2]],Table_PI[[#This Row],[List 3]],Table_PI[[#This Row],[Size]],Table_PI[[#This Row],[Input 1]],Table_PI[[#This Row],[Input 2]],Table_PI[[#This Row],[Input 3]],Table_PI[[#This Row],[Input 4]],'Customer Information'!$AR$12,8,ROW()),\"No Rebate\"),\"No Rebate\"),0)","v":0},{"$f":"IF(Table_PI[[#This Row],[Hide:\nFormula Name]]<>\"\",IF(AND(Table_PI[[#This Row],[Hide:\nFormula Name]]<>\"\",OR(Table_PI[[#This Row],[Rebate]]>0,Table_PI[[#This Row],[Rebate]]=\"No Rebate\")),TRUE,\"MI: Line Item \" & $A57),\"\")","v":""}]
[{"$f":"IF(Table_PI[[#This Row],[Hide:\nFormula Name]]<>\"\",MAX($A$2:A57)+1,\"\")","v":""},null,null,null,null,null,null,null,null,null,null,null,null,null,null,{"$f":"IFERROR(VLOOKUP(Table_PI[[#This Row],[Measure]],'Equipment Lookups'!$C$3:$D$23,2,FALSE),\"\")","v":""},{"$f":"IF(Table_PI[[#This Row],[Hide:\nFormula Name]]<>\"\",IFERROR(IF(MeasureCalc(Table_PI[[#This Row],[Hide:\nFormula Name]],Table_PI[[#This Row],[Quantity]],Table_PI[[#This Row],[List 1]],Table_PI[[#This Row],[List 2]],Table_PI[[#This Row],[List 3]],Table_PI[[#This Row],[Size]],Table_PI[[#This Row],[Input 1]],Table_PI[[#This Row],[Input 2]],Table_PI[[#This Row],[Input 3]],Table_PI[[#This Row],[Input 4]],'Customer Information'!$AR$12,1,ROW())>0,MeasureCalc(Table_PI[[#This Row],[Hide:\nFormula Name]],Table_PI[[#This Row],[Quantity]],Table_PI[[#This Row],[List 1]],Table_PI[[#This Row],[List 2]],Table_PI[[#This Row],[List 3]],Table_PI[[#This Row],[Size]],Table_PI[[#This Row],[Input 1]],Table_PI[[#This Row],[Input 2]],Table_PI[[#This Row],[Input 3]],Table_PI[[#This Row],[Input 4]],'Customer Information'!$AR$12,1,ROW()),\"No Rebate\"),\"No Rebate\"),0)","v":0},{"$f":"IF(Table_PI[[#This Row],[Hide:\nFormula Name]]<>\"\",IFERROR(IF(MeasureCalc(Table_PI[[#This Row],[Hide:\nFormula Name]],Table_PI[[#This Row],[Quantity]],Table_PI[[#This Row],[List 1]],Table_PI[[#This Row],[List 2]],Table_PI[[#This Row],[List 3]],Table_PI[[#This Row],[Size]],Table_PI[[#This Row],[Input 1]],Table_PI[[#This Row],[Input 2]],Table_PI[[#This Row],[Input 3]],Table_PI[[#This Row],[Input 4]],'Customer Information'!$AR$12,1,ROW())>0,MeasureCalc(Table_PI[[#This Row],[Hide:\nFormula Name]],Table_PI[[#This Row],[Quantity]],Table_PI[[#This Row],[List 1]],Table_PI[[#This Row],[List 2]],Table_PI[[#This Row],[List 3]],Table_PI[[#This Row],[Size]],Table_PI[[#This Row],[Input 1]],Table_PI[[#This Row],[Input 2]],Table_PI[[#This Row],[Input 3]],Table_PI[[#This Row],[Input 4]],'Customer Information'!$AR$12,2,ROW()),\"No Rebate\"),\"No Rebate\"),0)","v":0},{"$f":"IF(Table_PI[[#This Row],[Hide:\nFormula Name]]<>\"\",IFERROR(IF(MeasureCalc(Table_PI[[#This Row],[Hide:\nFormula Name]],Table_PI[[#This Row],[Quantity]],Table_PI[[#This Row],[List 1]],Table_PI[[#This Row],[List 2]],Table_PI[[#This Row],[List 3]],Table_PI[[#This Row],[Size]],Table_PI[[#This Row],[Input 1]],Table_PI[[#This Row],[Input 2]],Table_PI[[#This Row],[Input 3]],Table_PI[[#This Row],[Input 4]],'Customer Information'!$AR$12,1,ROW())>0,MeasureCalc(Table_PI[[#This Row],[Hide:\nFormula Name]],Table_PI[[#This Row],[Quantity]],Table_PI[[#This Row],[List 1]],Table_PI[[#This Row],[List 2]],Table_PI[[#This Row],[List 3]],Table_PI[[#This Row],[Size]],Table_PI[[#This Row],[Input 1]],Table_PI[[#This Row],[Input 2]],Table_PI[[#This Row],[Input 3]],Table_PI[[#This Row],[Input 4]],'Customer Information'!$AR$12,3,ROW()),\"No Rebate\"),\"No Rebate\"),0)","v":0},{"$f":"IF(Table_PI[[#This Row],[Hide:\nFormula Name]]<>\"\",IFERROR(IF(MeasureCalc(Table_PI[[#This Row],[Hide:\nFormula Name]],Table_PI[[#This Row],[Quantity]],Table_PI[[#This Row],[List 1]],Table_PI[[#This Row],[List 2]],Table_PI[[#This Row],[List 3]],Table_PI[[#This Row],[Size]],Table_PI[[#This Row],[Input 1]],Table_PI[[#This Row],[Input 2]],Table_PI[[#This Row],[Input 3]],Table_PI[[#This Row],[Input 4]],'Customer Information'!$AR$12,1,ROW())>0,MeasureCalc(Table_PI[[#This Row],[Hide:\nFormula Name]],Table_PI[[#This Row],[Quantity]],Table_PI[[#This Row],[List 1]],Table_PI[[#This Row],[List 2]],Table_PI[[#This Row],[List 3]],Table_PI[[#This Row],[Size]],Table_PI[[#This Row],[Input 1]],Table_PI[[#This Row],[Input 2]],Table_PI[[#This Row],[Input 3]],Table_PI[[#This Row],[Input 4]],'Customer Information'!$AR$12,4,ROW()),\"No Rebate\"),\"No Rebate\"),0)","v":0},{"$f":"IF(Table_PI[[#This Row],[Hide:\nFormula Name]]<>\"\",IFERROR(IF(MeasureCalc(Table_PI[[#This Row],[Hide:\nFormula Name]],Table_PI[[#This Row],[Quantity]],Table_PI[[#This Row],[List 1]],Table_PI[[#This Row],[List 2]],Table_PI[[#This Row],[List 3]],Table_PI[[#This Row],[Size]],Table_PI[[#This Row],[Input 1]],Table_PI[[#This Row],[Input 2]],Table_PI[[#This Row],[Input 3]],Table_PI[[#This Row],[Input 4]],'Customer Information'!$AR$12,1,ROW())>0,MeasureCalc(Table_PI[[#This Row],[Hide:\nFormula Name]],Table_PI[[#This Row],[Quantity]],Table_PI[[#This Row],[List 1]],Table_PI[[#This Row],[List 2]],Table_PI[[#This Row],[List 3]],Table_PI[[#This Row],[Size]],Table_PI[[#This Row],[Input 1]],Table_PI[[#This Row],[Input 2]],Table_PI[[#This Row],[Input 3]],Table_PI[[#This Row],[Input 4]],'Customer Information'!$AR$12,5,ROW()),\"No Rebate\"),\"No Rebate\"),0)","v":0},{"$f":"IF(Table_PI[[#This Row],[Hide:\nFormula Name]]<>\"\",IFERROR(IF(MeasureCalc(Table_PI[[#This Row],[Hide:\nFormula Name]],Table_PI[[#This Row],[Quantity]],Table_PI[[#This Row],[List 1]],Table_PI[[#This Row],[List 2]],Table_PI[[#This Row],[List 3]],Table_PI[[#This Row],[Size]],Table_PI[[#This Row],[Input 1]],Table_PI[[#This Row],[Input 2]],Table_PI[[#This Row],[Input 3]],Table_PI[[#This Row],[Input 4]],'Customer Information'!$AR$12,1,ROW())>0,MeasureCalc(Table_PI[[#This Row],[Hide:\nFormula Name]],Table_PI[[#This Row],[Quantity]],Table_PI[[#This Row],[List 1]],Table_PI[[#This Row],[List 2]],Table_PI[[#This Row],[List 3]],Table_PI[[#This Row],[Size]],Table_PI[[#This Row],[Input 1]],Table_PI[[#This Row],[Input 2]],Table_PI[[#This Row],[Input 3]],Table_PI[[#This Row],[Input 4]],'Customer Information'!$AR$12,6,ROW()),\"No Rebate\"),\"No Rebate\"),0)","v":0},{"$f":"IF(Table_PI[[#This Row],[Hide:\nFormula Name]]<>\"\",IFERROR(IF(MeasureCalc(Table_PI[[#This Row],[Hide:\nFormula Name]],Table_PI[[#This Row],[Quantity]],Table_PI[[#This Row],[List 1]],Table_PI[[#This Row],[List 2]],Table_PI[[#This Row],[List 3]],Table_PI[[#This Row],[Size]],Table_PI[[#This Row],[Input 1]],Table_PI[[#This Row],[Input 2]],Table_PI[[#This Row],[Input 3]],Table_PI[[#This Row],[Input 4]],'Customer Information'!$AR$12,1,ROW())>0,MeasureCalc(Table_PI[[#This Row],[Hide:\nFormula Name]],Table_PI[[#This Row],[Quantity]],Table_PI[[#This Row],[List 1]],Table_PI[[#This Row],[List 2]],Table_PI[[#This Row],[List 3]],Table_PI[[#This Row],[Size]],Table_PI[[#This Row],[Input 1]],Table_PI[[#This Row],[Input 2]],Table_PI[[#This Row],[Input 3]],Table_PI[[#This Row],[Input 4]],'Customer Information'!$AR$12,7,ROW()),\"No Rebate\"),\"No Rebate\"),0)","v":0},{"$f":"IF(Table_PI[[#This Row],[Hide:\nFormula Name]]<>\"\",IFERROR(IF(MeasureCalc(Table_PI[[#This Row],[Hide:\nFormula Name]],Table_PI[[#This Row],[Quantity]],Table_PI[[#This Row],[List 1]],Table_PI[[#This Row],[List 2]],Table_PI[[#This Row],[List 3]],Table_PI[[#This Row],[Size]],Table_PI[[#This Row],[Input 1]],Table_PI[[#This Row],[Input 2]],Table_PI[[#This Row],[Input 3]],Table_PI[[#This Row],[Input 4]],'Customer Information'!$AR$12,1,ROW())>0,MeasureCalc(Table_PI[[#This Row],[Hide:\nFormula Name]],Table_PI[[#This Row],[Quantity]],Table_PI[[#This Row],[List 1]],Table_PI[[#This Row],[List 2]],Table_PI[[#This Row],[List 3]],Table_PI[[#This Row],[Size]],Table_PI[[#This Row],[Input 1]],Table_PI[[#This Row],[Input 2]],Table_PI[[#This Row],[Input 3]],Table_PI[[#This Row],[Input 4]],'Customer Information'!$AR$12,8,ROW()),\"No Rebate\"),\"No Rebate\"),0)","v":0},{"$f":"IF(Table_PI[[#This Row],[Hide:\nFormula Name]]<>\"\",IF(AND(Table_PI[[#This Row],[Hide:\nFormula Name]]<>\"\",OR(Table_PI[[#This Row],[Rebate]]>0,Table_PI[[#This Row],[Rebate]]=\"No Rebate\")),TRUE,\"MI: Line Item \" & $A58),\"\")","v":""}]
[{"$f":"IF(Table_PI[[#This Row],[Hide:\nFormula Name]]<>\"\",MAX($A$2:A58)+1,\"\")","v":""},null,null,null,null,null,null,null,null,null,null,null,null,null,null,{"$f":"IFERROR(VLOOKUP(Table_PI[[#This Row],[Measure]],'Equipment Lookups'!$C$3:$D$23,2,FALSE),\"\")","v":""},{"$f":"IF(Table_PI[[#This Row],[Hide:\nFormula Name]]<>\"\",IFERROR(IF(MeasureCalc(Table_PI[[#This Row],[Hide:\nFormula Name]],Table_PI[[#This Row],[Quantity]],Table_PI[[#This Row],[List 1]],Table_PI[[#This Row],[List 2]],Table_PI[[#This Row],[List 3]],Table_PI[[#This Row],[Size]],Table_PI[[#This Row],[Input 1]],Table_PI[[#This Row],[Input 2]],Table_PI[[#This Row],[Input 3]],Table_PI[[#This Row],[Input 4]],'Customer Information'!$AR$12,1,ROW())>0,MeasureCalc(Table_PI[[#This Row],[Hide:\nFormula Name]],Table_PI[[#This Row],[Quantity]],Table_PI[[#This Row],[List 1]],Table_PI[[#This Row],[List 2]],Table_PI[[#This Row],[List 3]],Table_PI[[#This Row],[Size]],Table_PI[[#This Row],[Input 1]],Table_PI[[#This Row],[Input 2]],Table_PI[[#This Row],[Input 3]],Table_PI[[#This Row],[Input 4]],'Customer Information'!$AR$12,1,ROW()),\"No Rebate\"),\"No Rebate\"),0)","v":0},{"$f":"IF(Table_PI[[#This Row],[Hide:\nFormula Name]]<>\"\",IFERROR(IF(MeasureCalc(Table_PI[[#This Row],[Hide:\nFormula Name]],Table_PI[[#This Row],[Quantity]],Table_PI[[#This Row],[List 1]],Table_PI[[#This Row],[List 2]],Table_PI[[#This Row],[List 3]],Table_PI[[#This Row],[Size]],Table_PI[[#This Row],[Input 1]],Table_PI[[#This Row],[Input 2]],Table_PI[[#This Row],[Input 3]],Table_PI[[#This Row],[Input 4]],'Customer Information'!$AR$12,1,ROW())>0,MeasureCalc(Table_PI[[#This Row],[Hide:\nFormula Name]],Table_PI[[#This Row],[Quantity]],Table_PI[[#This Row],[List 1]],Table_PI[[#This Row],[List 2]],Table_PI[[#This Row],[List 3]],Table_PI[[#This Row],[Size]],Table_PI[[#This Row],[Input 1]],Table_PI[[#This Row],[Input 2]],Table_PI[[#This Row],[Input 3]],Table_PI[[#This Row],[Input 4]],'Customer Information'!$AR$12,2,ROW()),\"No Rebate\"),\"No Rebate\"),0)","v":0},{"$f":"IF(Table_PI[[#This Row],[Hide:\nFormula Name]]<>\"\",IFERROR(IF(MeasureCalc(Table_PI[[#This Row],[Hide:\nFormula Name]],Table_PI[[#This Row],[Quantity]],Table_PI[[#This Row],[List 1]],Table_PI[[#This Row],[List 2]],Table_PI[[#This Row],[List 3]],Table_PI[[#This Row],[Size]],Table_PI[[#This Row],[Input 1]],Table_PI[[#This Row],[Input 2]],Table_PI[[#This Row],[Input 3]],Table_PI[[#This Row],[Input 4]],'Customer Information'!$AR$12,1,ROW())>0,MeasureCalc(Table_PI[[#This Row],[Hide:\nFormula Name]],Table_PI[[#This Row],[Quantity]],Table_PI[[#This Row],[List 1]],Table_PI[[#This Row],[List 2]],Table_PI[[#This Row],[List 3]],Table_PI[[#This Row],[Size]],Table_PI[[#This Row],[Input 1]],Table_PI[[#This Row],[Input 2]],Table_PI[[#This Row],[Input 3]],Table_PI[[#This Row],[Input 4]],'Customer Information'!$AR$12,3,ROW()),\"No Rebate\"),\"No Rebate\"),0)","v":0},{"$f":"IF(Table_PI[[#This Row],[Hide:\nFormula Name]]<>\"\",IFERROR(IF(MeasureCalc(Table_PI[[#This Row],[Hide:\nFormula Name]],Table_PI[[#This Row],[Quantity]],Table_PI[[#This Row],[List 1]],Table_PI[[#This Row],[List 2]],Table_PI[[#This Row],[List 3]],Table_PI[[#This Row],[Size]],Table_PI[[#This Row],[Input 1]],Table_PI[[#This Row],[Input 2]],Table_PI[[#This Row],[Input 3]],Table_PI[[#This Row],[Input 4]],'Customer Information'!$AR$12,1,ROW())>0,MeasureCalc(Table_PI[[#This Row],[Hide:\nFormula Name]],Table_PI[[#This Row],[Quantity]],Table_PI[[#This Row],[List 1]],Table_PI[[#This Row],[List 2]],Table_PI[[#This Row],[List 3]],Table_PI[[#This Row],[Size]],Table_PI[[#This Row],[Input 1]],Table_PI[[#This Row],[Input 2]],Table_PI[[#This Row],[Input 3]],Table_PI[[#This Row],[Input 4]],'Customer Information'!$AR$12,4,ROW()),\"No Rebate\"),\"No Rebate\"),0)","v":0},{"$f":"IF(Table_PI[[#This Row],[Hide:\nFormula Name]]<>\"\",IFERROR(IF(MeasureCalc(Table_PI[[#This Row],[Hide:\nFormula Name]],Table_PI[[#This Row],[Quantity]],Table_PI[[#This Row],[List 1]],Table_PI[[#This Row],[List 2]],Table_PI[[#This Row],[List 3]],Table_PI[[#This Row],[Size]],Table_PI[[#This Row],[Input 1]],Table_PI[[#This Row],[Input 2]],Table_PI[[#This Row],[Input 3]],Table_PI[[#This Row],[Input 4]],'Customer Information'!$AR$12,1,ROW())>0,MeasureCalc(Table_PI[[#This Row],[Hide:\nFormula Name]],Table_PI[[#This Row],[Quantity]],Table_PI[[#This Row],[List 1]],Table_PI[[#This Row],[List 2]],Table_PI[[#This Row],[List 3]],Table_PI[[#This Row],[Size]],Table_PI[[#This Row],[Input 1]],Table_PI[[#This Row],[Input 2]],Table_PI[[#This Row],[Input 3]],Table_PI[[#This Row],[Input 4]],'Customer Information'!$AR$12,5,ROW()),\"No Rebate\"),\"No Rebate\"),0)","v":0},{"$f":"IF(Table_PI[[#This Row],[Hide:\nFormula Name]]<>\"\",IFERROR(IF(MeasureCalc(Table_PI[[#This Row],[Hide:\nFormula Name]],Table_PI[[#This Row],[Quantity]],Table_PI[[#This Row],[List 1]],Table_PI[[#This Row],[List 2]],Table_PI[[#This Row],[List 3]],Table_PI[[#This Row],[Size]],Table_PI[[#This Row],[Input 1]],Table_PI[[#This Row],[Input 2]],Table_PI[[#This Row],[Input 3]],Table_PI[[#This Row],[Input 4]],'Customer Information'!$AR$12,1,ROW())>0,MeasureCalc(Table_PI[[#This Row],[Hide:\nFormula Name]],Table_PI[[#This Row],[Quantity]],Table_PI[[#This Row],[List 1]],Table_PI[[#This Row],[List 2]],Table_PI[[#This Row],[List 3]],Table_PI[[#This Row],[Size]],Table_PI[[#This Row],[Input 1]],Table_PI[[#This Row],[Input 2]],Table_PI[[#This Row],[Input 3]],Table_PI[[#This Row],[Input 4]],'Customer Information'!$AR$12,6,ROW()),\"No Rebate\"),\"No Rebate\"),0)","v":0},{"$f":"IF(Table_PI[[#This Row],[Hide:\nFormula Name]]<>\"\",IFERROR(IF(MeasureCalc(Table_PI[[#This Row],[Hide:\nFormula Name]],Table_PI[[#This Row],[Quantity]],Table_PI[[#This Row],[List 1]],Table_PI[[#This Row],[List 2]],Table_PI[[#This Row],[List 3]],Table_PI[[#This Row],[Size]],Table_PI[[#This Row],[Input 1]],Table_PI[[#This Row],[Input 2]],Table_PI[[#This Row],[Input 3]],Table_PI[[#This Row],[Input 4]],'Customer Information'!$AR$12,1,ROW())>0,MeasureCalc(Table_PI[[#This Row],[Hide:\nFormula Name]],Table_PI[[#This Row],[Quantity]],Table_PI[[#This Row],[List 1]],Table_PI[[#This Row],[List 2]],Table_PI[[#This Row],[List 3]],Table_PI[[#This Row],[Size]],Table_PI[[#This Row],[Input 1]],Table_PI[[#This Row],[Input 2]],Table_PI[[#This Row],[Input 3]],Table_PI[[#This Row],[Input 4]],'Customer Information'!$AR$12,7,ROW()),\"No Rebate\"),\"No Rebate\"),0)","v":0},{"$f":"IF(Table_PI[[#This Row],[Hide:\nFormula Name]]<>\"\",IFERROR(IF(MeasureCalc(Table_PI[[#This Row],[Hide:\nFormula Name]],Table_PI[[#This Row],[Quantity]],Table_PI[[#This Row],[List 1]],Table_PI[[#This Row],[List 2]],Table_PI[[#This Row],[List 3]],Table_PI[[#This Row],[Size]],Table_PI[[#This Row],[Input 1]],Table_PI[[#This Row],[Input 2]],Table_PI[[#This Row],[Input 3]],Table_PI[[#This Row],[Input 4]],'Customer Information'!$AR$12,1,ROW())>0,MeasureCalc(Table_PI[[#This Row],[Hide:\nFormula Name]],Table_PI[[#This Row],[Quantity]],Table_PI[[#This Row],[List 1]],Table_PI[[#This Row],[List 2]],Table_PI[[#This Row],[List 3]],Table_PI[[#This Row],[Size]],Table_PI[[#This Row],[Input 1]],Table_PI[[#This Row],[Input 2]],Table_PI[[#This Row],[Input 3]],Table_PI[[#This Row],[Input 4]],'Customer Information'!$AR$12,8,ROW()),\"No Rebate\"),\"No Rebate\"),0)","v":0},{"$f":"IF(Table_PI[[#This Row],[Hide:\nFormula Name]]<>\"\",IF(AND(Table_PI[[#This Row],[Hide:\nFormula Name]]<>\"\",OR(Table_PI[[#This Row],[Rebate]]>0,Table_PI[[#This Row],[Rebate]]=\"No Rebate\")),TRUE,\"MI: Line Item \" & $A59),\"\")","v":""}]
[{"$f":"IF(Table_PI[[#This Row],[Hide:\nFormula Name]]<>\"\",MAX($A$2:A59)+1,\"\")","v":""},null,null,null,null,null,null,null,null,null,null,null,null,null,null,{"$f":"IFERROR(VLOOKUP(Table_PI[[#This Row],[Measure]],'Equipment Lookups'!$C$3:$D$23,2,FALSE),\"\")","v":""},{"$f":"IF(Table_PI[[#This Row],[Hide:\nFormula Name]]<>\"\",IFERROR(IF(MeasureCalc(Table_PI[[#This Row],[Hide:\nFormula Name]],Table_PI[[#This Row],[Quantity]],Table_PI[[#This Row],[List 1]],Table_PI[[#This Row],[List 2]],Table_PI[[#This Row],[List 3]],Table_PI[[#This Row],[Size]],Table_PI[[#This Row],[Input 1]],Table_PI[[#This Row],[Input 2]],Table_PI[[#This Row],[Input 3]],Table_PI[[#This Row],[Input 4]],'Customer Information'!$AR$12,1,ROW())>0,MeasureCalc(Table_PI[[#This Row],[Hide:\nFormula Name]],Table_PI[[#This Row],[Quantity]],Table_PI[[#This Row],[List 1]],Table_PI[[#This Row],[List 2]],Table_PI[[#This Row],[List 3]],Table_PI[[#This Row],[Size]],Table_PI[[#This Row],[Input 1]],Table_PI[[#This Row],[Input 2]],Table_PI[[#This Row],[Input 3]],Table_PI[[#This Row],[Input 4]],'Customer Information'!$AR$12,1,ROW()),\"No Rebate\"),\"No Rebate\"),0)","v":0},{"$f":"IF(Table_PI[[#This Row],[Hide:\nFormula Name]]<>\"\",IFERROR(IF(MeasureCalc(Table_PI[[#This Row],[Hide:\nFormula Name]],Table_PI[[#This Row],[Quantity]],Table_PI[[#This Row],[List 1]],Table_PI[[#This Row],[List 2]],Table_PI[[#This Row],[List 3]],Table_PI[[#This Row],[Size]],Table_PI[[#This Row],[Input 1]],Table_PI[[#This Row],[Input 2]],Table_PI[[#This Row],[Input 3]],Table_PI[[#This Row],[Input 4]],'Customer Information'!$AR$12,1,ROW())>0,MeasureCalc(Table_PI[[#This Row],[Hide:\nFormula Name]],Table_PI[[#This Row],[Quantity]],Table_PI[[#This Row],[List 1]],Table_PI[[#This Row],[List 2]],Table_PI[[#This Row],[List 3]],Table_PI[[#This Row],[Size]],Table_PI[[#This Row],[Input 1]],Table_PI[[#This Row],[Input 2]],Table_PI[[#This Row],[Input 3]],Table_PI[[#This Row],[Input 4]],'Customer Information'!$AR$12,2,ROW()),\"No Rebate\"),\"No Rebate\"),0)","v":0},{"$f":"IF(Table_PI[[#This Row],[Hide:\nFormula Name]]<>\"\",IFERROR(IF(MeasureCalc(Table_PI[[#This Row],[Hide:\nFormula Name]],Table_PI[[#This Row],[Quantity]],Table_PI[[#This Row],[List 1]],Table_PI[[#This Row],[List 2]],Table_PI[[#This Row],[List 3]],Table_PI[[#This Row],[Size]],Table_PI[[#This Row],[Input 1]],Table_PI[[#This Row],[Input 2]],Table_PI[[#This Row],[Input 3]],Table_PI[[#This Row],[Input 4]],'Customer Information'!$AR$12,1,ROW())>0,MeasureCalc(Table_PI[[#This Row],[Hide:\nFormula Name]],Table_PI[[#This Row],[Quantity]],Table_PI[[#This Row],[List 1]],Table_PI[[#This Row],[List 2]],Table_PI[[#This Row],[List 3]],Table_PI[[#This Row],[Size]],Table_PI[[#This Row],[Input 1]],Table_PI[[#This Row],[Input 2]],Table_PI[[#This Row],[Input 3]],Table_PI[[#This Row],[Input 4]],'Customer Information'!$AR$12,3,ROW()),\"No Rebate\"),\"No Rebate\"),0)","v":0},{"$f":"IF(Table_PI[[#This Row],[Hide:\nFormula Name]]<>\"\",IFERROR(IF(MeasureCalc(Table_PI[[#This Row],[Hide:\nFormula Name]],Table_PI[[#This Row],[Quantity]],Table_PI[[#This Row],[List 1]],Table_PI[[#This Row],[List 2]],Table_PI[[#This Row],[List 3]],Table_PI[[#This Row],[Size]],Table_PI[[#This Row],[Input 1]],Table_PI[[#This Row],[Input 2]],Table_PI[[#This Row],[Input 3]],Table_PI[[#This Row],[Input 4]],'Customer Information'!$AR$12,1,ROW())>0,MeasureCalc(Table_PI[[#This Row],[Hide:\nFormula Name]],Table_PI[[#This Row],[Quantity]],Table_PI[[#This Row],[List 1]],Table_PI[[#This Row],[List 2]],Table_PI[[#This Row],[List 3]],Table_PI[[#This Row],[Size]],Table_PI[[#This Row],[Input 1]],Table_PI[[#This Row],[Input 2]],Table_PI[[#This Row],[Input 3]],Table_PI[[#This Row],[Input 4]],'Customer Information'!$AR$12,4,ROW()),\"No Rebate\"),\"No Rebate\"),0)","v":0},{"$f":"IF(Table_PI[[#This Row],[Hide:\nFormula Name]]<>\"\",IFERROR(IF(MeasureCalc(Table_PI[[#This Row],[Hide:\nFormula Name]],Table_PI[[#This Row],[Quantity]],Table_PI[[#This Row],[List 1]],Table_PI[[#This Row],[List 2]],Table_PI[[#This Row],[List 3]],Table_PI[[#This Row],[Size]],Table_PI[[#This Row],[Input 1]],Table_PI[[#This Row],[Input 2]],Table_PI[[#This Row],[Input 3]],Table_PI[[#This Row],[Input 4]],'Customer Information'!$AR$12,1,ROW())>0,MeasureCalc(Table_PI[[#This Row],[Hide:\nFormula Name]],Table_PI[[#This Row],[Quantity]],Table_PI[[#This Row],[List 1]],Table_PI[[#This Row],[List 2]],Table_PI[[#This Row],[List 3]],Table_PI[[#This Row],[Size]],Table_PI[[#This Row],[Input 1]],Table_PI[[#This Row],[Input 2]],Table_PI[[#This Row],[Input 3]],Table_PI[[#This Row],[Input 4]],'Customer Information'!$AR$12,5,ROW()),\"No Rebate\"),\"No Rebate\"),0)","v":0},{"$f":"IF(Table_PI[[#This Row],[Hide:\nFormula Name]]<>\"\",IFERROR(IF(MeasureCalc(Table_PI[[#This Row],[Hide:\nFormula Name]],Table_PI[[#This Row],[Quantity]],Table_PI[[#This Row],[List 1]],Table_PI[[#This Row],[List 2]],Table_PI[[#This Row],[List 3]],Table_PI[[#This Row],[Size]],Table_PI[[#This Row],[Input 1]],Table_PI[[#This Row],[Input 2]],Table_PI[[#This Row],[Input 3]],Table_PI[[#This Row],[Input 4]],'Customer Information'!$AR$12,1,ROW())>0,MeasureCalc(Table_PI[[#This Row],[Hide:\nFormula Name]],Table_PI[[#This Row],[Quantity]],Table_PI[[#This Row],[List 1]],Table_PI[[#This Row],[List 2]],Table_PI[[#This Row],[List 3]],Table_PI[[#This Row],[Size]],Table_PI[[#This Row],[Input 1]],Table_PI[[#This Row],[Input 2]],Table_PI[[#This Row],[Input 3]],Table_PI[[#This Row],[Input 4]],'Customer Information'!$AR$12,6,ROW()),\"No Rebate\"),\"No Rebate\"),0)","v":0},{"$f":"IF(Table_PI[[#This Row],[Hide:\nFormula Name]]<>\"\",IFERROR(IF(MeasureCalc(Table_PI[[#This Row],[Hide:\nFormula Name]],Table_PI[[#This Row],[Quantity]],Table_PI[[#This Row],[List 1]],Table_PI[[#This Row],[List 2]],Table_PI[[#This Row],[List 3]],Table_PI[[#This Row],[Size]],Table_PI[[#This Row],[Input 1]],Table_PI[[#This Row],[Input 2]],Table_PI[[#This Row],[Input 3]],Table_PI[[#This Row],[Input 4]],'Customer Information'!$AR$12,1,ROW())>0,MeasureCalc(Table_PI[[#This Row],[Hide:\nFormula Name]],Table_PI[[#This Row],[Quantity]],Table_PI[[#This Row],[List 1]],Table_PI[[#This Row],[List 2]],Table_PI[[#This Row],[List 3]],Table_PI[[#This Row],[Size]],Table_PI[[#This Row],[Input 1]],Table_PI[[#This Row],[Input 2]],Table_PI[[#This Row],[Input 3]],Table_PI[[#This Row],[Input 4]],'Customer Information'!$AR$12,7,ROW()),\"No Rebate\"),\"No Rebate\"),0)","v":0},{"$f":"IF(Table_PI[[#This Row],[Hide:\nFormula Name]]<>\"\",IFERROR(IF(MeasureCalc(Table_PI[[#This Row],[Hide:\nFormula Name]],Table_PI[[#This Row],[Quantity]],Table_PI[[#This Row],[List 1]],Table_PI[[#This Row],[List 2]],Table_PI[[#This Row],[List 3]],Table_PI[[#This Row],[Size]],Table_PI[[#This Row],[Input 1]],Table_PI[[#This Row],[Input 2]],Table_PI[[#This Row],[Input 3]],Table_PI[[#This Row],[Input 4]],'Customer Information'!$AR$12,1,ROW())>0,MeasureCalc(Table_PI[[#This Row],[Hide:\nFormula Name]],Table_PI[[#This Row],[Quantity]],Table_PI[[#This Row],[List 1]],Table_PI[[#This Row],[List 2]],Table_PI[[#This Row],[List 3]],Table_PI[[#This Row],[Size]],Table_PI[[#This Row],[Input 1]],Table_PI[[#This Row],[Input 2]],Table_PI[[#This Row],[Input 3]],Table_PI[[#This Row],[Input 4]],'Customer Information'!$AR$12,8,ROW()),\"No Rebate\"),\"No Rebate\"),0)","v":0},{"$f":"IF(Table_PI[[#This Row],[Hide:\nFormula Name]]<>\"\",IF(AND(Table_PI[[#This Row],[Hide:\nFormula Name]]<>\"\",OR(Table_PI[[#This Row],[Rebate]]>0,Table_PI[[#This Row],[Rebate]]=\"No Rebate\")),TRUE,\"MI: Line Item \" & $A60),\"\")","v":""}]
[{"$f":"IF(Table_PI[[#This Row],[Hide:\nFormula Name]]<>\"\",MAX($A$2:A60)+1,\"\")","v":""},null,null,null,null,null,null,null,null,null,null,null,null,null,null,{"$f":"IFERROR(VLOOKUP(Table_PI[[#This Row],[Measure]],'Equipment Lookups'!$C$3:$D$23,2,FALSE),\"\")","v":""},{"$f":"IF(Table_PI[[#This Row],[Hide:\nFormula Name]]<>\"\",IFERROR(IF(MeasureCalc(Table_PI[[#This Row],[Hide:\nFormula Name]],Table_PI[[#This Row],[Quantity]],Table_PI[[#This Row],[List 1]],Table_PI[[#This Row],[List 2]],Table_PI[[#This Row],[List 3]],Table_PI[[#This Row],[Size]],Table_PI[[#This Row],[Input 1]],Table_PI[[#This Row],[Input 2]],Table_PI[[#This Row],[Input 3]],Table_PI[[#This Row],[Input 4]],'Customer Information'!$AR$12,1,ROW())>0,MeasureCalc(Table_PI[[#This Row],[Hide:\nFormula Name]],Table_PI[[#This Row],[Quantity]],Table_PI[[#This Row],[List 1]],Table_PI[[#This Row],[List 2]],Table_PI[[#This Row],[List 3]],Table_PI[[#This Row],[Size]],Table_PI[[#This Row],[Input 1]],Table_PI[[#This Row],[Input 2]],Table_PI[[#This Row],[Input 3]],Table_PI[[#This Row],[Input 4]],'Customer Information'!$AR$12,1,ROW()),\"No Rebate\"),\"No Rebate\"),0)","v":0},{"$f":"IF(Table_PI[[#This Row],[Hide:\nFormula Name]]<>\"\",IFERROR(IF(MeasureCalc(Table_PI[[#This Row],[Hide:\nFormula Name]],Table_PI[[#This Row],[Quantity]],Table_PI[[#This Row],[List 1]],Table_PI[[#This Row],[List 2]],Table_PI[[#This Row],[List 3]],Table_PI[[#This Row],[Size]],Table_PI[[#This Row],[Input 1]],Table_PI[[#This Row],[Input 2]],Table_PI[[#This Row],[Input 3]],Table_PI[[#This Row],[Input 4]],'Customer Information'!$AR$12,1,ROW())>0,MeasureCalc(Table_PI[[#This Row],[Hide:\nFormula Name]],Table_PI[[#This Row],[Quantity]],Table_PI[[#This Row],[List 1]],Table_PI[[#This Row],[List 2]],Table_PI[[#This Row],[List 3]],Table_PI[[#This Row],[Size]],Table_PI[[#This Row],[Input 1]],Table_PI[[#This Row],[Input 2]],Table_PI[[#This Row],[Input 3]],Table_PI[[#This Row],[Input 4]],'Customer Information'!$AR$12,2,ROW()),\"No Rebate\"),\"No Rebate\"),0)","v":0},{"$f":"IF(Table_PI[[#This Row],[Hide:\nFormula Name]]<>\"\",IFERROR(IF(MeasureCalc(Table_PI[[#This Row],[Hide:\nFormula Name]],Table_PI[[#This Row],[Quantity]],Table_PI[[#This Row],[List 1]],Table_PI[[#This Row],[List 2]],Table_PI[[#This Row],[List 3]],Table_PI[[#This Row],[Size]],Table_PI[[#This Row],[Input 1]],Table_PI[[#This Row],[Input 2]],Table_PI[[#This Row],[Input 3]],Table_PI[[#This Row],[Input 4]],'Customer Information'!$AR$12,1,ROW())>0,MeasureCalc(Table_PI[[#This Row],[Hide:\nFormula Name]],Table_PI[[#This Row],[Quantity]],Table_PI[[#This Row],[List 1]],Table_PI[[#This Row],[List 2]],Table_PI[[#This Row],[List 3]],Table_PI[[#This Row],[Size]],Table_PI[[#This Row],[Input 1]],Table_PI[[#This Row],[Input 2]],Table_PI[[#This Row],[Input 3]],Table_PI[[#This Row],[Input 4]],'Customer Information'!$AR$12,3,ROW()),\"No Rebate\"),\"No Rebate\"),0)","v":0},{"$f":"IF(Table_PI[[#This Row],[Hide:\nFormula Name]]<>\"\",IFERROR(IF(MeasureCalc(Table_PI[[#This Row],[Hide:\nFormula Name]],Table_PI[[#This Row],[Quantity]],Table_PI[[#This Row],[List 1]],Table_PI[[#This Row],[List 2]],Table_PI[[#This Row],[List 3]],Table_PI[[#This Row],[Size]],Table_PI[[#This Row],[Input 1]],Table_PI[[#This Row],[Input 2]],Table_PI[[#This Row],[Input 3]],Table_PI[[#This Row],[Input 4]],'Customer Information'!$AR$12,1,ROW())>0,MeasureCalc(Table_PI[[#This Row],[Hide:\nFormula Name]],Table_PI[[#This Row],[Quantity]],Table_PI[[#This Row],[List 1]],Table_PI[[#This Row],[List 2]],Table_PI[[#This Row],[List 3]],Table_PI[[#This Row],[Size]],Table_PI[[#This Row],[Input 1]],Table_PI[[#This Row],[Input 2]],Table_PI[[#This Row],[Input 3]],Table_PI[[#This Row],[Input 4]],'Customer Information'!$AR$12,4,ROW()),\"No Rebate\"),\"No Rebate\"),0)","v":0},{"$f":"IF(Table_PI[[#This Row],[Hide:\nFormula Name]]<>\"\",IFERROR(IF(MeasureCalc(Table_PI[[#This Row],[Hide:\nFormula Name]],Table_PI[[#This Row],[Quantity]],Table_PI[[#This Row],[List 1]],Table_PI[[#This Row],[List 2]],Table_PI[[#This Row],[List 3]],Table_PI[[#This Row],[Size]],Table_PI[[#This Row],[Input 1]],Table_PI[[#This Row],[Input 2]],Table_PI[[#This Row],[Input 3]],Table_PI[[#This Row],[Input 4]],'Customer Information'!$AR$12,1,ROW())>0,MeasureCalc(Table_PI[[#This Row],[Hide:\nFormula Name]],Table_PI[[#This Row],[Quantity]],Table_PI[[#This Row],[List 1]],Table_PI[[#This Row],[List 2]],Table_PI[[#This Row],[List 3]],Table_PI[[#This Row],[Size]],Table_PI[[#This Row],[Input 1]],Table_PI[[#This Row],[Input 2]],Table_PI[[#This Row],[Input 3]],Table_PI[[#This Row],[Input 4]],'Customer Information'!$AR$12,5,ROW()),\"No Rebate\"),\"No Rebate\"),0)","v":0},{"$f":"IF(Table_PI[[#This Row],[Hide:\nFormula Name]]<>\"\",IFERROR(IF(MeasureCalc(Table_PI[[#This Row],[Hide:\nFormula Name]],Table_PI[[#This Row],[Quantity]],Table_PI[[#This Row],[List 1]],Table_PI[[#This Row],[List 2]],Table_PI[[#This Row],[List 3]],Table_PI[[#This Row],[Size]],Table_PI[[#This Row],[Input 1]],Table_PI[[#This Row],[Input 2]],Table_PI[[#This Row],[Input 3]],Table_PI[[#This Row],[Input 4]],'Customer Information'!$AR$12,1,ROW())>0,MeasureCalc(Table_PI[[#This Row],[Hide:\nFormula Name]],Table_PI[[#This Row],[Quantity]],Table_PI[[#This Row],[List 1]],Table_PI[[#This Row],[List 2]],Table_PI[[#This Row],[List 3]],Table_PI[[#This Row],[Size]],Table_PI[[#This Row],[Input 1]],Table_PI[[#This Row],[Input 2]],Table_PI[[#This Row],[Input 3]],Table_PI[[#This Row],[Input 4]],'Customer Information'!$AR$12,6,ROW()),\"No Rebate\"),\"No Rebate\"),0)","v":0},{"$f":"IF(Table_PI[[#This Row],[Hide:\nFormula Name]]<>\"\",IFERROR(IF(MeasureCalc(Table_PI[[#This Row],[Hide:\nFormula Name]],Table_PI[[#This Row],[Quantity]],Table_PI[[#This Row],[List 1]],Table_PI[[#This Row],[List 2]],Table_PI[[#This Row],[List 3]],Table_PI[[#This Row],[Size]],Table_PI[[#This Row],[Input 1]],Table_PI[[#This Row],[Input 2]],Table_PI[[#This Row],[Input 3]],Table_PI[[#This Row],[Input 4]],'Customer Information'!$AR$12,1,ROW())>0,MeasureCalc(Table_PI[[#This Row],[Hide:\nFormula Name]],Table_PI[[#This Row],[Quantity]],Table_PI[[#This Row],[List 1]],Table_PI[[#This Row],[List 2]],Table_PI[[#This Row],[List 3]],Table_PI[[#This Row],[Size]],Table_PI[[#This Row],[Input 1]],Table_PI[[#This Row],[Input 2]],Table_PI[[#This Row],[Input 3]],Table_PI[[#This Row],[Input 4]],'Customer Information'!$AR$12,7,ROW()),\"No Rebate\"),\"No Rebate\"),0)","v":0},{"$f":"IF(Table_PI[[#This Row],[Hide:\nFormula Name]]<>\"\",IFERROR(IF(MeasureCalc(Table_PI[[#This Row],[Hide:\nFormula Name]],Table_PI[[#This Row],[Quantity]],Table_PI[[#This Row],[List 1]],Table_PI[[#This Row],[List 2]],Table_PI[[#This Row],[List 3]],Table_PI[[#This Row],[Size]],Table_PI[[#This Row],[Input 1]],Table_PI[[#This Row],[Input 2]],Table_PI[[#This Row],[Input 3]],Table_PI[[#This Row],[Input 4]],'Customer Information'!$AR$12,1,ROW())>0,MeasureCalc(Table_PI[[#This Row],[Hide:\nFormula Name]],Table_PI[[#This Row],[Quantity]],Table_PI[[#This Row],[List 1]],Table_PI[[#This Row],[List 2]],Table_PI[[#This Row],[List 3]],Table_PI[[#This Row],[Size]],Table_PI[[#This Row],[Input 1]],Table_PI[[#This Row],[Input 2]],Table_PI[[#This Row],[Input 3]],Table_PI[[#This Row],[Input 4]],'Customer Information'!$AR$12,8,ROW()),\"No Rebate\"),\"No Rebate\"),0)","v":0},{"$f":"IF(Table_PI[[#This Row],[Hide:\nFormula Name]]<>\"\",IF(AND(Table_PI[[#This Row],[Hide:\nFormula Name]]<>\"\",OR(Table_PI[[#This Row],[Rebate]]>0,Table_PI[[#This Row],[Rebate]]=\"No Rebate\")),TRUE,\"MI: Line Item \" & $A61),\"\")","v":""}]
[{"$f":"IF(Table_PI[[#This Row],[Hide:\nFormula Name]]<>\"\",MAX($A$2:A61)+1,\"\")","v":""},null,null,null,null,null,null,null,null,null,null,null,null,null,null,{"$f":"IFERROR(VLOOKUP(Table_PI[[#This Row],[Measure]],'Equipment Lookups'!$C$3:$D$23,2,FALSE),\"\")","v":""},{"$f":"IF(Table_PI[[#This Row],[Hide:\nFormula Name]]<>\"\",IFERROR(IF(MeasureCalc(Table_PI[[#This Row],[Hide:\nFormula Name]],Table_PI[[#This Row],[Quantity]],Table_PI[[#This Row],[List 1]],Table_PI[[#This Row],[List 2]],Table_PI[[#This Row],[List 3]],Table_PI[[#This Row],[Size]],Table_PI[[#This Row],[Input 1]],Table_PI[[#This Row],[Input 2]],Table_PI[[#This Row],[Input 3]],Table_PI[[#This Row],[Input 4]],'Customer Information'!$AR$12,1,ROW())>0,MeasureCalc(Table_PI[[#This Row],[Hide:\nFormula Name]],Table_PI[[#This Row],[Quantity]],Table_PI[[#This Row],[List 1]],Table_PI[[#This Row],[List 2]],Table_PI[[#This Row],[List 3]],Table_PI[[#This Row],[Size]],Table_PI[[#This Row],[Input 1]],Table_PI[[#This Row],[Input 2]],Table_PI[[#This Row],[Input 3]],Table_PI[[#This Row],[Input 4]],'Customer Information'!$AR$12,1,ROW()),\"No Rebate\"),\"No Rebate\"),0)","v":0},{"$f":"IF(Table_PI[[#This Row],[Hide:\nFormula Name]]<>\"\",IFERROR(IF(MeasureCalc(Table_PI[[#This Row],[Hide:\nFormula Name]],Table_PI[[#This Row],[Quantity]],Table_PI[[#This Row],[List 1]],Table_PI[[#This Row],[List 2]],Table_PI[[#This Row],[List 3]],Table_PI[[#This Row],[Size]],Table_PI[[#This Row],[Input 1]],Table_PI[[#This Row],[Input 2]],Table_PI[[#This Row],[Input 3]],Table_PI[[#This Row],[Input 4]],'Customer Information'!$AR$12,1,ROW())>0,MeasureCalc(Table_PI[[#This Row],[Hide:\nFormula Name]],Table_PI[[#This Row],[Quantity]],Table_PI[[#This Row],[List 1]],Table_PI[[#This Row],[List 2]],Table_PI[[#This Row],[List 3]],Table_PI[[#This Row],[Size]],Table_PI[[#This Row],[Input 1]],Table_PI[[#This Row],[Input 2]],Table_PI[[#This Row],[Input 3]],Table_PI[[#This Row],[Input 4]],'Customer Information'!$AR$12,2,ROW()),\"No Rebate\"),\"No Rebate\"),0)","v":0},{"$f":"IF(Table_PI[[#This Row],[Hide:\nFormula Name]]<>\"\",IFERROR(IF(MeasureCalc(Table_PI[[#This Row],[Hide:\nFormula Name]],Table_PI[[#This Row],[Quantity]],Table_PI[[#This Row],[List 1]],Table_PI[[#This Row],[List 2]],Table_PI[[#This Row],[List 3]],Table_PI[[#This Row],[Size]],Table_PI[[#This Row],[Input 1]],Table_PI[[#This Row],[Input 2]],Table_PI[[#This Row],[Input 3]],Table_PI[[#This Row],[Input 4]],'Customer Information'!$AR$12,1,ROW())>0,MeasureCalc(Table_PI[[#This Row],[Hide:\nFormula Name]],Table_PI[[#This Row],[Quantity]],Table_PI[[#This Row],[List 1]],Table_PI[[#This Row],[List 2]],Table_PI[[#This Row],[List 3]],Table_PI[[#This Row],[Size]],Table_PI[[#This Row],[Input 1]],Table_PI[[#This Row],[Input 2]],Table_PI[[#This Row],[Input 3]],Table_PI[[#This Row],[Input 4]],'Customer Information'!$AR$12,3,ROW()),\"No Rebate\"),\"No Rebate\"),0)","v":0},{"$f":"IF(Table_PI[[#This Row],[Hide:\nFormula Name]]<>\"\",IFERROR(IF(MeasureCalc(Table_PI[[#This Row],[Hide:\nFormula Name]],Table_PI[[#This Row],[Quantity]],Table_PI[[#This Row],[List 1]],Table_PI[[#This Row],[List 2]],Table_PI[[#This Row],[List 3]],Table_PI[[#This Row],[Size]],Table_PI[[#This Row],[Input 1]],Table_PI[[#This Row],[Input 2]],Table_PI[[#This Row],[Input 3]],Table_PI[[#This Row],[Input 4]],'Customer Information'!$AR$12,1,ROW())>0,MeasureCalc(Table_PI[[#This Row],[Hide:\nFormula Name]],Table_PI[[#This Row],[Quantity]],Table_PI[[#This Row],[List 1]],Table_PI[[#This Row],[List 2]],Table_PI[[#This Row],[List 3]],Table_PI[[#This Row],[Size]],Table_PI[[#This Row],[Input 1]],Table_PI[[#This Row],[Input 2]],Table_PI[[#This Row],[Input 3]],Table_PI[[#This Row],[Input 4]],'Customer Information'!$AR$12,4,ROW()),\"No Rebate\"),\"No Rebate\"),0)","v":0},{"$f":"IF(Table_PI[[#This Row],[Hide:\nFormula Name]]<>\"\",IFERROR(IF(MeasureCalc(Table_PI[[#This Row],[Hide:\nFormula Name]],Table_PI[[#This Row],[Quantity]],Table_PI[[#This Row],[List 1]],Table_PI[[#This Row],[List 2]],Table_PI[[#This Row],[List 3]],Table_PI[[#This Row],[Size]],Table_PI[[#This Row],[Input 1]],Table_PI[[#This Row],[Input 2]],Table_PI[[#This Row],[Input 3]],Table_PI[[#This Row],[Input 4]],'Customer Information'!$AR$12,1,ROW())>0,MeasureCalc(Table_PI[[#This Row],[Hide:\nFormula Name]],Table_PI[[#This Row],[Quantity]],Table_PI[[#This Row],[List 1]],Table_PI[[#This Row],[List 2]],Table_PI[[#This Row],[List 3]],Table_PI[[#This Row],[Size]],Table_PI[[#This Row],[Input 1]],Table_PI[[#This Row],[Input 2]],Table_PI[[#This Row],[Input 3]],Table_PI[[#This Row],[Input 4]],'Customer Information'!$AR$12,5,ROW()),\"No Rebate\"),\"No Rebate\"),0)","v":0},{"$f":"IF(Table_PI[[#This Row],[Hide:\nFormula Name]]<>\"\",IFERROR(IF(MeasureCalc(Table_PI[[#This Row],[Hide:\nFormula Name]],Table_PI[[#This Row],[Quantity]],Table_PI[[#This Row],[List 1]],Table_PI[[#This Row],[List 2]],Table_PI[[#This Row],[List 3]],Table_PI[[#This Row],[Size]],Table_PI[[#This Row],[Input 1]],Table_PI[[#This Row],[Input 2]],Table_PI[[#This Row],[Input 3]],Table_PI[[#This Row],[Input 4]],'Customer Information'!$AR$12,1,ROW())>0,MeasureCalc(Table_PI[[#This Row],[Hide:\nFormula Name]],Table_PI[[#This Row],[Quantity]],Table_PI[[#This Row],[List 1]],Table_PI[[#This Row],[List 2]],Table_PI[[#This Row],[List 3]],Table_PI[[#This Row],[Size]],Table_PI[[#This Row],[Input 1]],Table_PI[[#This Row],[Input 2]],Table_PI[[#This Row],[Input 3]],Table_PI[[#This Row],[Input 4]],'Customer Information'!$AR$12,6,ROW()),\"No Rebate\"),\"No Rebate\"),0)","v":0},{"$f":"IF(Table_PI[[#This Row],[Hide:\nFormula Name]]<>\"\",IFERROR(IF(MeasureCalc(Table_PI[[#This Row],[Hide:\nFormula Name]],Table_PI[[#This Row],[Quantity]],Table_PI[[#This Row],[List 1]],Table_PI[[#This Row],[List 2]],Table_PI[[#This Row],[List 3]],Table_PI[[#This Row],[Size]],Table_PI[[#This Row],[Input 1]],Table_PI[[#This Row],[Input 2]],Table_PI[[#This Row],[Input 3]],Table_PI[[#This Row],[Input 4]],'Customer Information'!$AR$12,1,ROW())>0,MeasureCalc(Table_PI[[#This Row],[Hide:\nFormula Name]],Table_PI[[#This Row],[Quantity]],Table_PI[[#This Row],[List 1]],Table_PI[[#This Row],[List 2]],Table_PI[[#This Row],[List 3]],Table_PI[[#This Row],[Size]],Table_PI[[#This Row],[Input 1]],Table_PI[[#This Row],[Input 2]],Table_PI[[#This Row],[Input 3]],Table_PI[[#This Row],[Input 4]],'Customer Information'!$AR$12,7,ROW()),\"No Rebate\"),\"No Rebate\"),0)","v":0},{"$f":"IF(Table_PI[[#This Row],[Hide:\nFormula Name]]<>\"\",IFERROR(IF(MeasureCalc(Table_PI[[#This Row],[Hide:\nFormula Name]],Table_PI[[#This Row],[Quantity]],Table_PI[[#This Row],[List 1]],Table_PI[[#This Row],[List 2]],Table_PI[[#This Row],[List 3]],Table_PI[[#This Row],[Size]],Table_PI[[#This Row],[Input 1]],Table_PI[[#This Row],[Input 2]],Table_PI[[#This Row],[Input 3]],Table_PI[[#This Row],[Input 4]],'Customer Information'!$AR$12,1,ROW())>0,MeasureCalc(Table_PI[[#This Row],[Hide:\nFormula Name]],Table_PI[[#This Row],[Quantity]],Table_PI[[#This Row],[List 1]],Table_PI[[#This Row],[List 2]],Table_PI[[#This Row],[List 3]],Table_PI[[#This Row],[Size]],Table_PI[[#This Row],[Input 1]],Table_PI[[#This Row],[Input 2]],Table_PI[[#This Row],[Input 3]],Table_PI[[#This Row],[Input 4]],'Customer Information'!$AR$12,8,ROW()),\"No Rebate\"),\"No Rebate\"),0)","v":0},{"$f":"IF(Table_PI[[#This Row],[Hide:\nFormula Name]]<>\"\",IF(AND(Table_PI[[#This Row],[Hide:\nFormula Name]]<>\"\",OR(Table_PI[[#This Row],[Rebate]]>0,Table_PI[[#This Row],[Rebate]]=\"No Rebate\")),TRUE,\"MI: Line Item \" & $A62),\"\")","v":""}]
[{"$f":"IF(Table_PI[[#This Row],[Hide:\nFormula Name]]<>\"\",MAX($A$2:A62)+1,\"\")","v":""},null,null,null,null,null,null,null,null,null,null,null,null,null,null,{"$f":"IFERROR(VLOOKUP(Table_PI[[#This Row],[Measure]],'Equipment Lookups'!$C$3:$D$23,2,FALSE),\"\")","v":""},{"$f":"IF(Table_PI[[#This Row],[Hide:\nFormula Name]]<>\"\",IFERROR(IF(MeasureCalc(Table_PI[[#This Row],[Hide:\nFormula Name]],Table_PI[[#This Row],[Quantity]],Table_PI[[#This Row],[List 1]],Table_PI[[#This Row],[List 2]],Table_PI[[#This Row],[List 3]],Table_PI[[#This Row],[Size]],Table_PI[[#This Row],[Input 1]],Table_PI[[#This Row],[Input 2]],Table_PI[[#This Row],[Input 3]],Table_PI[[#This Row],[Input 4]],'Customer Information'!$AR$12,1,ROW())>0,MeasureCalc(Table_PI[[#This Row],[Hide:\nFormula Name]],Table_PI[[#This Row],[Quantity]],Table_PI[[#This Row],[List 1]],Table_PI[[#This Row],[List 2]],Table_PI[[#This Row],[List 3]],Table_PI[[#This Row],[Size]],Table_PI[[#This Row],[Input 1]],Table_PI[[#This Row],[Input 2]],Table_PI[[#This Row],[Input 3]],Table_PI[[#This Row],[Input 4]],'Customer Information'!$AR$12,1,ROW()),\"No Rebate\"),\"No Rebate\"),0)","v":0},{"$f":"IF(Table_PI[[#This Row],[Hide:\nFormula Name]]<>\"\",IFERROR(IF(MeasureCalc(Table_PI[[#This Row],[Hide:\nFormula Name]],Table_PI[[#This Row],[Quantity]],Table_PI[[#This Row],[List 1]],Table_PI[[#This Row],[List 2]],Table_PI[[#This Row],[List 3]],Table_PI[[#This Row],[Size]],Table_PI[[#This Row],[Input 1]],Table_PI[[#This Row],[Input 2]],Table_PI[[#This Row],[Input 3]],Table_PI[[#This Row],[Input 4]],'Customer Information'!$AR$12,1,ROW())>0,MeasureCalc(Table_PI[[#This Row],[Hide:\nFormula Name]],Table_PI[[#This Row],[Quantity]],Table_PI[[#This Row],[List 1]],Table_PI[[#This Row],[List 2]],Table_PI[[#This Row],[List 3]],Table_PI[[#This Row],[Size]],Table_PI[[#This Row],[Input 1]],Table_PI[[#This Row],[Input 2]],Table_PI[[#This Row],[Input 3]],Table_PI[[#This Row],[Input 4]],'Customer Information'!$AR$12,2,ROW()),\"No Rebate\"),\"No Rebate\"),0)","v":0},{"$f":"IF(Table_PI[[#This Row],[Hide:\nFormula Name]]<>\"\",IFERROR(IF(MeasureCalc(Table_PI[[#This Row],[Hide:\nFormula Name]],Table_PI[[#This Row],[Quantity]],Table_PI[[#This Row],[List 1]],Table_PI[[#This Row],[List 2]],Table_PI[[#This Row],[List 3]],Table_PI[[#This Row],[Size]],Table_PI[[#This Row],[Input 1]],Table_PI[[#This Row],[Input 2]],Table_PI[[#This Row],[Input 3]],Table_PI[[#This Row],[Input 4]],'Customer Information'!$AR$12,1,ROW())>0,MeasureCalc(Table_PI[[#This Row],[Hide:\nFormula Name]],Table_PI[[#This Row],[Quantity]],Table_PI[[#This Row],[List 1]],Table_PI[[#This Row],[List 2]],Table_PI[[#This Row],[List 3]],Table_PI[[#This Row],[Size]],Table_PI[[#This Row],[Input 1]],Table_PI[[#This Row],[Input 2]],Table_PI[[#This Row],[Input 3]],Table_PI[[#This Row],[Input 4]],'Customer Information'!$AR$12,3,ROW()),\"No Rebate\"),\"No Rebate\"),0)","v":0},{"$f":"IF(Table_PI[[#This Row],[Hide:\nFormula Name]]<>\"\",IFERROR(IF(MeasureCalc(Table_PI[[#This Row],[Hide:\nFormula Name]],Table_PI[[#This Row],[Quantity]],Table_PI[[#This Row],[List 1]],Table_PI[[#This Row],[List 2]],Table_PI[[#This Row],[List 3]],Table_PI[[#This Row],[Size]],Table_PI[[#This Row],[Input 1]],Table_PI[[#This Row],[Input 2]],Table_PI[[#This Row],[Input 3]],Table_PI[[#This Row],[Input 4]],'Customer Information'!$AR$12,1,ROW())>0,MeasureCalc(Table_PI[[#This Row],[Hide:\nFormula Name]],Table_PI[[#This Row],[Quantity]],Table_PI[[#This Row],[List 1]],Table_PI[[#This Row],[List 2]],Table_PI[[#This Row],[List 3]],Table_PI[[#This Row],[Size]],Table_PI[[#This Row],[Input 1]],Table_PI[[#This Row],[Input 2]],Table_PI[[#This Row],[Input 3]],Table_PI[[#This Row],[Input 4]],'Customer Information'!$AR$12,4,ROW()),\"No Rebate\"),\"No Rebate\"),0)","v":0},{"$f":"IF(Table_PI[[#This Row],[Hide:\nFormula Name]]<>\"\",IFERROR(IF(MeasureCalc(Table_PI[[#This Row],[Hide:\nFormula Name]],Table_PI[[#This Row],[Quantity]],Table_PI[[#This Row],[List 1]],Table_PI[[#This Row],[List 2]],Table_PI[[#This Row],[List 3]],Table_PI[[#This Row],[Size]],Table_PI[[#This Row],[Input 1]],Table_PI[[#This Row],[Input 2]],Table_PI[[#This Row],[Input 3]],Table_PI[[#This Row],[Input 4]],'Customer Information'!$AR$12,1,ROW())>0,MeasureCalc(Table_PI[[#This Row],[Hide:\nFormula Name]],Table_PI[[#This Row],[Quantity]],Table_PI[[#This Row],[List 1]],Table_PI[[#This Row],[List 2]],Table_PI[[#This Row],[List 3]],Table_PI[[#This Row],[Size]],Table_PI[[#This Row],[Input 1]],Table_PI[[#This Row],[Input 2]],Table_PI[[#This Row],[Input 3]],Table_PI[[#This Row],[Input 4]],'Customer Information'!$AR$12,5,ROW()),\"No Rebate\"),\"No Rebate\"),0)","v":0},{"$f":"IF(Table_PI[[#This Row],[Hide:\nFormula Name]]<>\"\",IFERROR(IF(MeasureCalc(Table_PI[[#This Row],[Hide:\nFormula Name]],Table_PI[[#This Row],[Quantity]],Table_PI[[#This Row],[List 1]],Table_PI[[#This Row],[List 2]],Table_PI[[#This Row],[List 3]],Table_PI[[#This Row],[Size]],Table_PI[[#This Row],[Input 1]],Table_PI[[#This Row],[Input 2]],Table_PI[[#This Row],[Input 3]],Table_PI[[#This Row],[Input 4]],'Customer Information'!$AR$12,1,ROW())>0,MeasureCalc(Table_PI[[#This Row],[Hide:\nFormula Name]],Table_PI[[#This Row],[Quantity]],Table_PI[[#This Row],[List 1]],Table_PI[[#This Row],[List 2]],Table_PI[[#This Row],[List 3]],Table_PI[[#This Row],[Size]],Table_PI[[#This Row],[Input 1]],Table_PI[[#This Row],[Input 2]],Table_PI[[#This Row],[Input 3]],Table_PI[[#This Row],[Input 4]],'Customer Information'!$AR$12,6,ROW()),\"No Rebate\"),\"No Rebate\"),0)","v":0},{"$f":"IF(Table_PI[[#This Row],[Hide:\nFormula Name]]<>\"\",IFERROR(IF(MeasureCalc(Table_PI[[#This Row],[Hide:\nFormula Name]],Table_PI[[#This Row],[Quantity]],Table_PI[[#This Row],[List 1]],Table_PI[[#This Row],[List 2]],Table_PI[[#This Row],[List 3]],Table_PI[[#This Row],[Size]],Table_PI[[#This Row],[Input 1]],Table_PI[[#This Row],[Input 2]],Table_PI[[#This Row],[Input 3]],Table_PI[[#This Row],[Input 4]],'Customer Information'!$AR$12,1,ROW())>0,MeasureCalc(Table_PI[[#This Row],[Hide:\nFormula Name]],Table_PI[[#This Row],[Quantity]],Table_PI[[#This Row],[List 1]],Table_PI[[#This Row],[List 2]],Table_PI[[#This Row],[List 3]],Table_PI[[#This Row],[Size]],Table_PI[[#This Row],[Input 1]],Table_PI[[#This Row],[Input 2]],Table_PI[[#This Row],[Input 3]],Table_PI[[#This Row],[Input 4]],'Customer Information'!$AR$12,7,ROW()),\"No Rebate\"),\"No Rebate\"),0)","v":0},{"$f":"IF(Table_PI[[#This Row],[Hide:\nFormula Name]]<>\"\",IFERROR(IF(MeasureCalc(Table_PI[[#This Row],[Hide:\nFormula Name]],Table_PI[[#This Row],[Quantity]],Table_PI[[#This Row],[List 1]],Table_PI[[#This Row],[List 2]],Table_PI[[#This Row],[List 3]],Table_PI[[#This Row],[Size]],Table_PI[[#This Row],[Input 1]],Table_PI[[#This Row],[Input 2]],Table_PI[[#This Row],[Input 3]],Table_PI[[#This Row],[Input 4]],'Customer Information'!$AR$12,1,ROW())>0,MeasureCalc(Table_PI[[#This Row],[Hide:\nFormula Name]],Table_PI[[#This Row],[Quantity]],Table_PI[[#This Row],[List 1]],Table_PI[[#This Row],[List 2]],Table_PI[[#This Row],[List 3]],Table_PI[[#This Row],[Size]],Table_PI[[#This Row],[Input 1]],Table_PI[[#This Row],[Input 2]],Table_PI[[#This Row],[Input 3]],Table_PI[[#This Row],[Input 4]],'Customer Information'!$AR$12,8,ROW()),\"No Rebate\"),\"No Rebate\"),0)","v":0},{"$f":"IF(Table_PI[[#This Row],[Hide:\nFormula Name]]<>\"\",IF(AND(Table_PI[[#This Row],[Hide:\nFormula Name]]<>\"\",OR(Table_PI[[#This Row],[Rebate]]>0,Table_PI[[#This Row],[Rebate]]=\"No Rebate\")),TRUE,\"MI: Line Item \" & $A63),\"\")","v":""}]
[{"$f":"IF(Table_PI[[#This Row],[Hide:\nFormula Name]]<>\"\",MAX($A$2:A63)+1,\"\")","v":""},null,null,null,null,null,null,null,null,null,null,null,null,null,null,{"$f":"IFERROR(VLOOKUP(Table_PI[[#This Row],[Measure]],'Equipment Lookups'!$C$3:$D$23,2,FALSE),\"\")","v":""},{"$f":"IF(Table_PI[[#This Row],[Hide:\nFormula Name]]<>\"\",IFERROR(IF(MeasureCalc(Table_PI[[#This Row],[Hide:\nFormula Name]],Table_PI[[#This Row],[Quantity]],Table_PI[[#This Row],[List 1]],Table_PI[[#This Row],[List 2]],Table_PI[[#This Row],[List 3]],Table_PI[[#This Row],[Size]],Table_PI[[#This Row],[Input 1]],Table_PI[[#This Row],[Input 2]],Table_PI[[#This Row],[Input 3]],Table_PI[[#This Row],[Input 4]],'Customer Information'!$AR$12,1,ROW())>0,MeasureCalc(Table_PI[[#This Row],[Hide:\nFormula Name]],Table_PI[[#This Row],[Quantity]],Table_PI[[#This Row],[List 1]],Table_PI[[#This Row],[List 2]],Table_PI[[#This Row],[List 3]],Table_PI[[#This Row],[Size]],Table_PI[[#This Row],[Input 1]],Table_PI[[#This Row],[Input 2]],Table_PI[[#This Row],[Input 3]],Table_PI[[#This Row],[Input 4]],'Customer Information'!$AR$12,1,ROW()),\"No Rebate\"),\"No Rebate\"),0)","v":0},{"$f":"IF(Table_PI[[#This Row],[Hide:\nFormula Name]]<>\"\",IFERROR(IF(MeasureCalc(Table_PI[[#This Row],[Hide:\nFormula Name]],Table_PI[[#This Row],[Quantity]],Table_PI[[#This Row],[List 1]],Table_PI[[#This Row],[List 2]],Table_PI[[#This Row],[List 3]],Table_PI[[#This Row],[Size]],Table_PI[[#This Row],[Input 1]],Table_PI[[#This Row],[Input 2]],Table_PI[[#This Row],[Input 3]],Table_PI[[#This Row],[Input 4]],'Customer Information'!$AR$12,1,ROW())>0,MeasureCalc(Table_PI[[#This Row],[Hide:\nFormula Name]],Table_PI[[#This Row],[Quantity]],Table_PI[[#This Row],[List 1]],Table_PI[[#This Row],[List 2]],Table_PI[[#This Row],[List 3]],Table_PI[[#This Row],[Size]],Table_PI[[#This Row],[Input 1]],Table_PI[[#This Row],[Input 2]],Table_PI[[#This Row],[Input 3]],Table_PI[[#This Row],[Input 4]],'Customer Information'!$AR$12,2,ROW()),\"No Rebate\"),\"No Rebate\"),0)","v":0},{"$f":"IF(Table_PI[[#This Row],[Hide:\nFormula Name]]<>\"\",IFERROR(IF(MeasureCalc(Table_PI[[#This Row],[Hide:\nFormula Name]],Table_PI[[#This Row],[Quantity]],Table_PI[[#This Row],[List 1]],Table_PI[[#This Row],[List 2]],Table_PI[[#This Row],[List 3]],Table_PI[[#This Row],[Size]],Table_PI[[#This Row],[Input 1]],Table_PI[[#This Row],[Input 2]],Table_PI[[#This Row],[Input 3]],Table_PI[[#This Row],[Input 4]],'Customer Information'!$AR$12,1,ROW())>0,MeasureCalc(Table_PI[[#This Row],[Hide:\nFormula Name]],Table_PI[[#This Row],[Quantity]],Table_PI[[#This Row],[List 1]],Table_PI[[#This Row],[List 2]],Table_PI[[#This Row],[List 3]],Table_PI[[#This Row],[Size]],Table_PI[[#This Row],[Input 1]],Table_PI[[#This Row],[Input 2]],Table_PI[[#This Row],[Input 3]],Table_PI[[#This Row],[Input 4]],'Customer Information'!$AR$12,3,ROW()),\"No Rebate\"),\"No Rebate\"),0)","v":0},{"$f":"IF(Table_PI[[#This Row],[Hide:\nFormula Name]]<>\"\",IFERROR(IF(MeasureCalc(Table_PI[[#This Row],[Hide:\nFormula Name]],Table_PI[[#This Row],[Quantity]],Table_PI[[#This Row],[List 1]],Table_PI[[#This Row],[List 2]],Table_PI[[#This Row],[List 3]],Table_PI[[#This Row],[Size]],Table_PI[[#This Row],[Input 1]],Table_PI[[#This Row],[Input 2]],Table_PI[[#This Row],[Input 3]],Table_PI[[#This Row],[Input 4]],'Customer Information'!$AR$12,1,ROW())>0,MeasureCalc(Table_PI[[#This Row],[Hide:\nFormula Name]],Table_PI[[#This Row],[Quantity]],Table_PI[[#This Row],[List 1]],Table_PI[[#This Row],[List 2]],Table_PI[[#This Row],[List 3]],Table_PI[[#This Row],[Size]],Table_PI[[#This Row],[Input 1]],Table_PI[[#This Row],[Input 2]],Table_PI[[#This Row],[Input 3]],Table_PI[[#This Row],[Input 4]],'Customer Information'!$AR$12,4,ROW()),\"No Rebate\"),\"No Rebate\"),0)","v":0},{"$f":"IF(Table_PI[[#This Row],[Hide:\nFormula Name]]<>\"\",IFERROR(IF(MeasureCalc(Table_PI[[#This Row],[Hide:\nFormula Name]],Table_PI[[#This Row],[Quantity]],Table_PI[[#This Row],[List 1]],Table_PI[[#This Row],[List 2]],Table_PI[[#This Row],[List 3]],Table_PI[[#This Row],[Size]],Table_PI[[#This Row],[Input 1]],Table_PI[[#This Row],[Input 2]],Table_PI[[#This Row],[Input 3]],Table_PI[[#This Row],[Input 4]],'Customer Information'!$AR$12,1,ROW())>0,MeasureCalc(Table_PI[[#This Row],[Hide:\nFormula Name]],Table_PI[[#This Row],[Quantity]],Table_PI[[#This Row],[List 1]],Table_PI[[#This Row],[List 2]],Table_PI[[#This Row],[List 3]],Table_PI[[#This Row],[Size]],Table_PI[[#This Row],[Input 1]],Table_PI[[#This Row],[Input 2]],Table_PI[[#This Row],[Input 3]],Table_PI[[#This Row],[Input 4]],'Customer Information'!$AR$12,5,ROW()),\"No Rebate\"),\"No Rebate\"),0)","v":0},{"$f":"IF(Table_PI[[#This Row],[Hide:\nFormula Name]]<>\"\",IFERROR(IF(MeasureCalc(Table_PI[[#This Row],[Hide:\nFormula Name]],Table_PI[[#This Row],[Quantity]],Table_PI[[#This Row],[List 1]],Table_PI[[#This Row],[List 2]],Table_PI[[#This Row],[List 3]],Table_PI[[#This Row],[Size]],Table_PI[[#This Row],[Input 1]],Table_PI[[#This Row],[Input 2]],Table_PI[[#This Row],[Input 3]],Table_PI[[#This Row],[Input 4]],'Customer Information'!$AR$12,1,ROW())>0,MeasureCalc(Table_PI[[#This Row],[Hide:\nFormula Name]],Table_PI[[#This Row],[Quantity]],Table_PI[[#This Row],[List 1]],Table_PI[[#This Row],[List 2]],Table_PI[[#This Row],[List 3]],Table_PI[[#This Row],[Size]],Table_PI[[#This Row],[Input 1]],Table_PI[[#This Row],[Input 2]],Table_PI[[#This Row],[Input 3]],Table_PI[[#This Row],[Input 4]],'Customer Information'!$AR$12,6,ROW()),\"No Rebate\"),\"No Rebate\"),0)","v":0},{"$f":"IF(Table_PI[[#This Row],[Hide:\nFormula Name]]<>\"\",IFERROR(IF(MeasureCalc(Table_PI[[#This Row],[Hide:\nFormula Name]],Table_PI[[#This Row],[Quantity]],Table_PI[[#This Row],[List 1]],Table_PI[[#This Row],[List 2]],Table_PI[[#This Row],[List 3]],Table_PI[[#This Row],[Size]],Table_PI[[#This Row],[Input 1]],Table_PI[[#This Row],[Input 2]],Table_PI[[#This Row],[Input 3]],Table_PI[[#This Row],[Input 4]],'Customer Information'!$AR$12,1,ROW())>0,MeasureCalc(Table_PI[[#This Row],[Hide:\nFormula Name]],Table_PI[[#This Row],[Quantity]],Table_PI[[#This Row],[List 1]],Table_PI[[#This Row],[List 2]],Table_PI[[#This Row],[List 3]],Table_PI[[#This Row],[Size]],Table_PI[[#This Row],[Input 1]],Table_PI[[#This Row],[Input 2]],Table_PI[[#This Row],[Input 3]],Table_PI[[#This Row],[Input 4]],'Customer Information'!$AR$12,7,ROW()),\"No Rebate\"),\"No Rebate\"),0)","v":0},{"$f":"IF(Table_PI[[#This Row],[Hide:\nFormula Name]]<>\"\",IFERROR(IF(MeasureCalc(Table_PI[[#This Row],[Hide:\nFormula Name]],Table_PI[[#This Row],[Quantity]],Table_PI[[#This Row],[List 1]],Table_PI[[#This Row],[List 2]],Table_PI[[#This Row],[List 3]],Table_PI[[#This Row],[Size]],Table_PI[[#This Row],[Input 1]],Table_PI[[#This Row],[Input 2]],Table_PI[[#This Row],[Input 3]],Table_PI[[#This Row],[Input 4]],'Customer Information'!$AR$12,1,ROW())>0,MeasureCalc(Table_PI[[#This Row],[Hide:\nFormula Name]],Table_PI[[#This Row],[Quantity]],Table_PI[[#This Row],[List 1]],Table_PI[[#This Row],[List 2]],Table_PI[[#This Row],[List 3]],Table_PI[[#This Row],[Size]],Table_PI[[#This Row],[Input 1]],Table_PI[[#This Row],[Input 2]],Table_PI[[#This Row],[Input 3]],Table_PI[[#This Row],[Input 4]],'Customer Information'!$AR$12,8,ROW()),\"No Rebate\"),\"No Rebate\"),0)","v":0},{"$f":"IF(Table_PI[[#This Row],[Hide:\nFormula Name]]<>\"\",IF(AND(Table_PI[[#This Row],[Hide:\nFormula Name]]<>\"\",OR(Table_PI[[#This Row],[Rebate]]>0,Table_PI[[#This Row],[Rebate]]=\"No Rebate\")),TRUE,\"MI: Line Item \" & $A64),\"\")","v":""}]
[{"$f":"IF(Table_PI[[#This Row],[Hide:\nFormula Name]]<>\"\",MAX($A$2:A64)+1,\"\")","v":""},null,null,null,null,null,null,null,null,null,null,null,null,null,null,{"$f":"IFERROR(VLOOKUP(Table_PI[[#This Row],[Measure]],'Equipment Lookups'!$C$3:$D$23,2,FALSE),\"\")","v":""},{"$f":"IF(Table_PI[[#This Row],[Hide:\nFormula Name]]<>\"\",IFERROR(IF(MeasureCalc(Table_PI[[#This Row],[Hide:\nFormula Name]],Table_PI[[#This Row],[Quantity]],Table_PI[[#This Row],[List 1]],Table_PI[[#This Row],[List 2]],Table_PI[[#This Row],[List 3]],Table_PI[[#This Row],[Size]],Table_PI[[#This Row],[Input 1]],Table_PI[[#This Row],[Input 2]],Table_PI[[#This Row],[Input 3]],Table_PI[[#This Row],[Input 4]],'Customer Information'!$AR$12,1,ROW())>0,MeasureCalc(Table_PI[[#This Row],[Hide:\nFormula Name]],Table_PI[[#This Row],[Quantity]],Table_PI[[#This Row],[List 1]],Table_PI[[#This Row],[List 2]],Table_PI[[#This Row],[List 3]],Table_PI[[#This Row],[Size]],Table_PI[[#This Row],[Input 1]],Table_PI[[#This Row],[Input 2]],Table_PI[[#This Row],[Input 3]],Table_PI[[#This Row],[Input 4]],'Customer Information'!$AR$12,1,ROW()),\"No Rebate\"),\"No Rebate\"),0)","v":0},{"$f":"IF(Table_PI[[#This Row],[Hide:\nFormula Name]]<>\"\",IFERROR(IF(MeasureCalc(Table_PI[[#This Row],[Hide:\nFormula Name]],Table_PI[[#This Row],[Quantity]],Table_PI[[#This Row],[List 1]],Table_PI[[#This Row],[List 2]],Table_PI[[#This Row],[List 3]],Table_PI[[#This Row],[Size]],Table_PI[[#This Row],[Input 1]],Table_PI[[#This Row],[Input 2]],Table_PI[[#This Row],[Input 3]],Table_PI[[#This Row],[Input 4]],'Customer Information'!$AR$12,1,ROW())>0,MeasureCalc(Table_PI[[#This Row],[Hide:\nFormula Name]],Table_PI[[#This Row],[Quantity]],Table_PI[[#This Row],[List 1]],Table_PI[[#This Row],[List 2]],Table_PI[[#This Row],[List 3]],Table_PI[[#This Row],[Size]],Table_PI[[#This Row],[Input 1]],Table_PI[[#This Row],[Input 2]],Table_PI[[#This Row],[Input 3]],Table_PI[[#This Row],[Input 4]],'Customer Information'!$AR$12,2,ROW()),\"No Rebate\"),\"No Rebate\"),0)","v":0},{"$f":"IF(Table_PI[[#This Row],[Hide:\nFormula Name]]<>\"\",IFERROR(IF(MeasureCalc(Table_PI[[#This Row],[Hide:\nFormula Name]],Table_PI[[#This Row],[Quantity]],Table_PI[[#This Row],[List 1]],Table_PI[[#This Row],[List 2]],Table_PI[[#This Row],[List 3]],Table_PI[[#This Row],[Size]],Table_PI[[#This Row],[Input 1]],Table_PI[[#This Row],[Input 2]],Table_PI[[#This Row],[Input 3]],Table_PI[[#This Row],[Input 4]],'Customer Information'!$AR$12,1,ROW())>0,MeasureCalc(Table_PI[[#This Row],[Hide:\nFormula Name]],Table_PI[[#This Row],[Quantity]],Table_PI[[#This Row],[List 1]],Table_PI[[#This Row],[List 2]],Table_PI[[#This Row],[List 3]],Table_PI[[#This Row],[Size]],Table_PI[[#This Row],[Input 1]],Table_PI[[#This Row],[Input 2]],Table_PI[[#This Row],[Input 3]],Table_PI[[#This Row],[Input 4]],'Customer Information'!$AR$12,3,ROW()),\"No Rebate\"),\"No Rebate\"),0)","v":0},{"$f":"IF(Table_PI[[#This Row],[Hide:\nFormula Name]]<>\"\",IFERROR(IF(MeasureCalc(Table_PI[[#This Row],[Hide:\nFormula Name]],Table_PI[[#This Row],[Quantity]],Table_PI[[#This Row],[List 1]],Table_PI[[#This Row],[List 2]],Table_PI[[#This Row],[List 3]],Table_PI[[#This Row],[Size]],Table_PI[[#This Row],[Input 1]],Table_PI[[#This Row],[Input 2]],Table_PI[[#This Row],[Input 3]],Table_PI[[#This Row],[Input 4]],'Customer Information'!$AR$12,1,ROW())>0,MeasureCalc(Table_PI[[#This Row],[Hide:\nFormula Name]],Table_PI[[#This Row],[Quantity]],Table_PI[[#This Row],[List 1]],Table_PI[[#This Row],[List 2]],Table_PI[[#This Row],[List 3]],Table_PI[[#This Row],[Size]],Table_PI[[#This Row],[Input 1]],Table_PI[[#This Row],[Input 2]],Table_PI[[#This Row],[Input 3]],Table_PI[[#This Row],[Input 4]],'Customer Information'!$AR$12,4,ROW()),\"No Rebate\"),\"No Rebate\"),0)","v":0},{"$f":"IF(Table_PI[[#This Row],[Hide:\nFormula Name]]<>\"\",IFERROR(IF(MeasureCalc(Table_PI[[#This Row],[Hide:\nFormula Name]],Table_PI[[#This Row],[Quantity]],Table_PI[[#This Row],[List 1]],Table_PI[[#This Row],[List 2]],Table_PI[[#This Row],[List 3]],Table_PI[[#This Row],[Size]],Table_PI[[#This Row],[Input 1]],Table_PI[[#This Row],[Input 2]],Table_PI[[#This Row],[Input 3]],Table_PI[[#This Row],[Input 4]],'Customer Information'!$AR$12,1,ROW())>0,MeasureCalc(Table_PI[[#This Row],[Hide:\nFormula Name]],Table_PI[[#This Row],[Quantity]],Table_PI[[#This Row],[List 1]],Table_PI[[#This Row],[List 2]],Table_PI[[#This Row],[List 3]],Table_PI[[#This Row],[Size]],Table_PI[[#This Row],[Input 1]],Table_PI[[#This Row],[Input 2]],Table_PI[[#This Row],[Input 3]],Table_PI[[#This Row],[Input 4]],'Customer Information'!$AR$12,5,ROW()),\"No Rebate\"),\"No Rebate\"),0)","v":0},{"$f":"IF(Table_PI[[#This Row],[Hide:\nFormula Name]]<>\"\",IFERROR(IF(MeasureCalc(Table_PI[[#This Row],[Hide:\nFormula Name]],Table_PI[[#This Row],[Quantity]],Table_PI[[#This Row],[List 1]],Table_PI[[#This Row],[List 2]],Table_PI[[#This Row],[List 3]],Table_PI[[#This Row],[Size]],Table_PI[[#This Row],[Input 1]],Table_PI[[#This Row],[Input 2]],Table_PI[[#This Row],[Input 3]],Table_PI[[#This Row],[Input 4]],'Customer Information'!$AR$12,1,ROW())>0,MeasureCalc(Table_PI[[#This Row],[Hide:\nFormula Name]],Table_PI[[#This Row],[Quantity]],Table_PI[[#This Row],[List 1]],Table_PI[[#This Row],[List 2]],Table_PI[[#This Row],[List 3]],Table_PI[[#This Row],[Size]],Table_PI[[#This Row],[Input 1]],Table_PI[[#This Row],[Input 2]],Table_PI[[#This Row],[Input 3]],Table_PI[[#This Row],[Input 4]],'Customer Information'!$AR$12,6,ROW()),\"No Rebate\"),\"No Rebate\"),0)","v":0},{"$f":"IF(Table_PI[[#This Row],[Hide:\nFormula Name]]<>\"\",IFERROR(IF(MeasureCalc(Table_PI[[#This Row],[Hide:\nFormula Name]],Table_PI[[#This Row],[Quantity]],Table_PI[[#This Row],[List 1]],Table_PI[[#This Row],[List 2]],Table_PI[[#This Row],[List 3]],Table_PI[[#This Row],[Size]],Table_PI[[#This Row],[Input 1]],Table_PI[[#This Row],[Input 2]],Table_PI[[#This Row],[Input 3]],Table_PI[[#This Row],[Input 4]],'Customer Information'!$AR$12,1,ROW())>0,MeasureCalc(Table_PI[[#This Row],[Hide:\nFormula Name]],Table_PI[[#This Row],[Quantity]],Table_PI[[#This Row],[List 1]],Table_PI[[#This Row],[List 2]],Table_PI[[#This Row],[List 3]],Table_PI[[#This Row],[Size]],Table_PI[[#This Row],[Input 1]],Table_PI[[#This Row],[Input 2]],Table_PI[[#This Row],[Input 3]],Table_PI[[#This Row],[Input 4]],'Customer Information'!$AR$12,7,ROW()),\"No Rebate\"),\"No Rebate\"),0)","v":0},{"$f":"IF(Table_PI[[#This Row],[Hide:\nFormula Name]]<>\"\",IFERROR(IF(MeasureCalc(Table_PI[[#This Row],[Hide:\nFormula Name]],Table_PI[[#This Row],[Quantity]],Table_PI[[#This Row],[List 1]],Table_PI[[#This Row],[List 2]],Table_PI[[#This Row],[List 3]],Table_PI[[#This Row],[Size]],Table_PI[[#This Row],[Input 1]],Table_PI[[#This Row],[Input 2]],Table_PI[[#This Row],[Input 3]],Table_PI[[#This Row],[Input 4]],'Customer Information'!$AR$12,1,ROW())>0,MeasureCalc(Table_PI[[#This Row],[Hide:\nFormula Name]],Table_PI[[#This Row],[Quantity]],Table_PI[[#This Row],[List 1]],Table_PI[[#This Row],[List 2]],Table_PI[[#This Row],[List 3]],Table_PI[[#This Row],[Size]],Table_PI[[#This Row],[Input 1]],Table_PI[[#This Row],[Input 2]],Table_PI[[#This Row],[Input 3]],Table_PI[[#This Row],[Input 4]],'Customer Information'!$AR$12,8,ROW()),\"No Rebate\"),\"No Rebate\"),0)","v":0},{"$f":"IF(Table_PI[[#This Row],[Hide:\nFormula Name]]<>\"\",IF(AND(Table_PI[[#This Row],[Hide:\nFormula Name]]<>\"\",OR(Table_PI[[#This Row],[Rebate]]>0,Table_PI[[#This Row],[Rebate]]=\"No Rebate\")),TRUE,\"MI: Line Item \" & $A65),\"\")","v":""}]
[{"$f":"IF(Table_PI[[#This Row],[Hide:\nFormula Name]]<>\"\",MAX($A$2:A65)+1,\"\")","v":""},null,null,null,null,null,null,null,null,null,null,null,null,null,null,{"$f":"IFERROR(VLOOKUP(Table_PI[[#This Row],[Measure]],'Equipment Lookups'!$C$3:$D$23,2,FALSE),\"\")","v":""},{"$f":"IF(Table_PI[[#This Row],[Hide:\nFormula Name]]<>\"\",IFERROR(IF(MeasureCalc(Table_PI[[#This Row],[Hide:\nFormula Name]],Table_PI[[#This Row],[Quantity]],Table_PI[[#This Row],[List 1]],Table_PI[[#This Row],[List 2]],Table_PI[[#This Row],[List 3]],Table_PI[[#This Row],[Size]],Table_PI[[#This Row],[Input 1]],Table_PI[[#This Row],[Input 2]],Table_PI[[#This Row],[Input 3]],Table_PI[[#This Row],[Input 4]],'Customer Information'!$AR$12,1,ROW())>0,MeasureCalc(Table_PI[[#This Row],[Hide:\nFormula Name]],Table_PI[[#This Row],[Quantity]],Table_PI[[#This Row],[List 1]],Table_PI[[#This Row],[List 2]],Table_PI[[#This Row],[List 3]],Table_PI[[#This Row],[Size]],Table_PI[[#This Row],[Input 1]],Table_PI[[#This Row],[Input 2]],Table_PI[[#This Row],[Input 3]],Table_PI[[#This Row],[Input 4]],'Customer Information'!$AR$12,1,ROW()),\"No Rebate\"),\"No Rebate\"),0)","v":0},{"$f":"IF(Table_PI[[#This Row],[Hide:\nFormula Name]]<>\"\",IFERROR(IF(MeasureCalc(Table_PI[[#This Row],[Hide:\nFormula Name]],Table_PI[[#This Row],[Quantity]],Table_PI[[#This Row],[List 1]],Table_PI[[#This Row],[List 2]],Table_PI[[#This Row],[List 3]],Table_PI[[#This Row],[Size]],Table_PI[[#This Row],[Input 1]],Table_PI[[#This Row],[Input 2]],Table_PI[[#This Row],[Input 3]],Table_PI[[#This Row],[Input 4]],'Customer Information'!$AR$12,1,ROW())>0,MeasureCalc(Table_PI[[#This Row],[Hide:\nFormula Name]],Table_PI[[#This Row],[Quantity]],Table_PI[[#This Row],[List 1]],Table_PI[[#This Row],[List 2]],Table_PI[[#This Row],[List 3]],Table_PI[[#This Row],[Size]],Table_PI[[#This Row],[Input 1]],Table_PI[[#This Row],[Input 2]],Table_PI[[#This Row],[Input 3]],Table_PI[[#This Row],[Input 4]],'Customer Information'!$AR$12,2,ROW()),\"No Rebate\"),\"No Rebate\"),0)","v":0},{"$f":"IF(Table_PI[[#This Row],[Hide:\nFormula Name]]<>\"\",IFERROR(IF(MeasureCalc(Table_PI[[#This Row],[Hide:\nFormula Name]],Table_PI[[#This Row],[Quantity]],Table_PI[[#This Row],[List 1]],Table_PI[[#This Row],[List 2]],Table_PI[[#This Row],[List 3]],Table_PI[[#This Row],[Size]],Table_PI[[#This Row],[Input 1]],Table_PI[[#This Row],[Input 2]],Table_PI[[#This Row],[Input 3]],Table_PI[[#This Row],[Input 4]],'Customer Information'!$AR$12,1,ROW())>0,MeasureCalc(Table_PI[[#This Row],[Hide:\nFormula Name]],Table_PI[[#This Row],[Quantity]],Table_PI[[#This Row],[List 1]],Table_PI[[#This Row],[List 2]],Table_PI[[#This Row],[List 3]],Table_PI[[#This Row],[Size]],Table_PI[[#This Row],[Input 1]],Table_PI[[#This Row],[Input 2]],Table_PI[[#This Row],[Input 3]],Table_PI[[#This Row],[Input 4]],'Customer Information'!$AR$12,3,ROW()),\"No Rebate\"),\"No Rebate\"),0)","v":0},{"$f":"IF(Table_PI[[#This Row],[Hide:\nFormula Name]]<>\"\",IFERROR(IF(MeasureCalc(Table_PI[[#This Row],[Hide:\nFormula Name]],Table_PI[[#This Row],[Quantity]],Table_PI[[#This Row],[List 1]],Table_PI[[#This Row],[List 2]],Table_PI[[#This Row],[List 3]],Table_PI[[#This Row],[Size]],Table_PI[[#This Row],[Input 1]],Table_PI[[#This Row],[Input 2]],Table_PI[[#This Row],[Input 3]],Table_PI[[#This Row],[Input 4]],'Customer Information'!$AR$12,1,ROW())>0,MeasureCalc(Table_PI[[#This Row],[Hide:\nFormula Name]],Table_PI[[#This Row],[Quantity]],Table_PI[[#This Row],[List 1]],Table_PI[[#This Row],[List 2]],Table_PI[[#This Row],[List 3]],Table_PI[[#This Row],[Size]],Table_PI[[#This Row],[Input 1]],Table_PI[[#This Row],[Input 2]],Table_PI[[#This Row],[Input 3]],Table_PI[[#This Row],[Input 4]],'Customer Information'!$AR$12,4,ROW()),\"No Rebate\"),\"No Rebate\"),0)","v":0},{"$f":"IF(Table_PI[[#This Row],[Hide:\nFormula Name]]<>\"\",IFERROR(IF(MeasureCalc(Table_PI[[#This Row],[Hide:\nFormula Name]],Table_PI[[#This Row],[Quantity]],Table_PI[[#This Row],[List 1]],Table_PI[[#This Row],[List 2]],Table_PI[[#This Row],[List 3]],Table_PI[[#This Row],[Size]],Table_PI[[#This Row],[Input 1]],Table_PI[[#This Row],[Input 2]],Table_PI[[#This Row],[Input 3]],Table_PI[[#This Row],[Input 4]],'Customer Information'!$AR$12,1,ROW())>0,MeasureCalc(Table_PI[[#This Row],[Hide:\nFormula Name]],Table_PI[[#This Row],[Quantity]],Table_PI[[#This Row],[List 1]],Table_PI[[#This Row],[List 2]],Table_PI[[#This Row],[List 3]],Table_PI[[#This Row],[Size]],Table_PI[[#This Row],[Input 1]],Table_PI[[#This Row],[Input 2]],Table_PI[[#This Row],[Input 3]],Table_PI[[#This Row],[Input 4]],'Customer Information'!$AR$12,5,ROW()),\"No Rebate\"),\"No Rebate\"),0)","v":0},{"$f":"IF(Table_PI[[#This Row],[Hide:\nFormula Name]]<>\"\",IFERROR(IF(MeasureCalc(Table_PI[[#This Row],[Hide:\nFormula Name]],Table_PI[[#This Row],[Quantity]],Table_PI[[#This Row],[List 1]],Table_PI[[#This Row],[List 2]],Table_PI[[#This Row],[List 3]],Table_PI[[#This Row],[Size]],Table_PI[[#This Row],[Input 1]],Table_PI[[#This Row],[Input 2]],Table_PI[[#This Row],[Input 3]],Table_PI[[#This Row],[Input 4]],'Customer Information'!$AR$12,1,ROW())>0,MeasureCalc(Table_PI[[#This Row],[Hide:\nFormula Name]],Table_PI[[#This Row],[Quantity]],Table_PI[[#This Row],[List 1]],Table_PI[[#This Row],[List 2]],Table_PI[[#This Row],[List 3]],Table_PI[[#This Row],[Size]],Table_PI[[#This Row],[Input 1]],Table_PI[[#This Row],[Input 2]],Table_PI[[#This Row],[Input 3]],Table_PI[[#This Row],[Input 4]],'Customer Information'!$AR$12,6,ROW()),\"No Rebate\"),\"No Rebate\"),0)","v":0},{"$f":"IF(Table_PI[[#This Row],[Hide:\nFormula Name]]<>\"\",IFERROR(IF(MeasureCalc(Table_PI[[#This Row],[Hide:\nFormula Name]],Table_PI[[#This Row],[Quantity]],Table_PI[[#This Row],[List 1]],Table_PI[[#This Row],[List 2]],Table_PI[[#This Row],[List 3]],Table_PI[[#This Row],[Size]],Table_PI[[#This Row],[Input 1]],Table_PI[[#This Row],[Input 2]],Table_PI[[#This Row],[Input 3]],Table_PI[[#This Row],[Input 4]],'Customer Information'!$AR$12,1,ROW())>0,MeasureCalc(Table_PI[[#This Row],[Hide:\nFormula Name]],Table_PI[[#This Row],[Quantity]],Table_PI[[#This Row],[List 1]],Table_PI[[#This Row],[List 2]],Table_PI[[#This Row],[List 3]],Table_PI[[#This Row],[Size]],Table_PI[[#This Row],[Input 1]],Table_PI[[#This Row],[Input 2]],Table_PI[[#This Row],[Input 3]],Table_PI[[#This Row],[Input 4]],'Customer Information'!$AR$12,7,ROW()),\"No Rebate\"),\"No Rebate\"),0)","v":0},{"$f":"IF(Table_PI[[#This Row],[Hide:\nFormula Name]]<>\"\",IFERROR(IF(MeasureCalc(Table_PI[[#This Row],[Hide:\nFormula Name]],Table_PI[[#This Row],[Quantity]],Table_PI[[#This Row],[List 1]],Table_PI[[#This Row],[List 2]],Table_PI[[#This Row],[List 3]],Table_PI[[#This Row],[Size]],Table_PI[[#This Row],[Input 1]],Table_PI[[#This Row],[Input 2]],Table_PI[[#This Row],[Input 3]],Table_PI[[#This Row],[Input 4]],'Customer Information'!$AR$12,1,ROW())>0,MeasureCalc(Table_PI[[#This Row],[Hide:\nFormula Name]],Table_PI[[#This Row],[Quantity]],Table_PI[[#This Row],[List 1]],Table_PI[[#This Row],[List 2]],Table_PI[[#This Row],[List 3]],Table_PI[[#This Row],[Size]],Table_PI[[#This Row],[Input 1]],Table_PI[[#This Row],[Input 2]],Table_PI[[#This Row],[Input 3]],Table_PI[[#This Row],[Input 4]],'Customer Information'!$AR$12,8,ROW()),\"No Rebate\"),\"No Rebate\"),0)","v":0},{"$f":"IF(Table_PI[[#This Row],[Hide:\nFormula Name]]<>\"\",IF(AND(Table_PI[[#This Row],[Hide:\nFormula Name]]<>\"\",OR(Table_PI[[#This Row],[Rebate]]>0,Table_PI[[#This Row],[Rebate]]=\"No Rebate\")),TRUE,\"MI: Line Item \" & $A66),\"\")","v":""}]
[{"$f":"IF(Table_PI[[#This Row],[Hide:\nFormula Name]]<>\"\",MAX($A$2:A66)+1,\"\")","v":""},null,null,null,null,null,null,null,null,null,null,null,null,null,null,{"$f":"IFERROR(VLOOKUP(Table_PI[[#This Row],[Measure]],'Equipment Lookups'!$C$3:$D$23,2,FALSE),\"\")","v":""},{"$f":"IF(Table_PI[[#This Row],[Hide:\nFormula Name]]<>\"\",IFERROR(IF(MeasureCalc(Table_PI[[#This Row],[Hide:\nFormula Name]],Table_PI[[#This Row],[Quantity]],Table_PI[[#This Row],[List 1]],Table_PI[[#This Row],[List 2]],Table_PI[[#This Row],[List 3]],Table_PI[[#This Row],[Size]],Table_PI[[#This Row],[Input 1]],Table_PI[[#This Row],[Input 2]],Table_PI[[#This Row],[Input 3]],Table_PI[[#This Row],[Input 4]],'Customer Information'!$AR$12,1,ROW())>0,MeasureCalc(Table_PI[[#This Row],[Hide:\nFormula Name]],Table_PI[[#This Row],[Quantity]],Table_PI[[#This Row],[List 1]],Table_PI[[#This Row],[List 2]],Table_PI[[#This Row],[List 3]],Table_PI[[#This Row],[Size]],Table_PI[[#This Row],[Input 1]],Table_PI[[#This Row],[Input 2]],Table_PI[[#This Row],[Input 3]],Table_PI[[#This Row],[Input 4]],'Customer Information'!$AR$12,1,ROW()),\"No Rebate\"),\"No Rebate\"),0)","v":0},{"$f":"IF(Table_PI[[#This Row],[Hide:\nFormula Name]]<>\"\",IFERROR(IF(MeasureCalc(Table_PI[[#This Row],[Hide:\nFormula Name]],Table_PI[[#This Row],[Quantity]],Table_PI[[#This Row],[List 1]],Table_PI[[#This Row],[List 2]],Table_PI[[#This Row],[List 3]],Table_PI[[#This Row],[Size]],Table_PI[[#This Row],[Input 1]],Table_PI[[#This Row],[Input 2]],Table_PI[[#This Row],[Input 3]],Table_PI[[#This Row],[Input 4]],'Customer Information'!$AR$12,1,ROW())>0,MeasureCalc(Table_PI[[#This Row],[Hide:\nFormula Name]],Table_PI[[#This Row],[Quantity]],Table_PI[[#This Row],[List 1]],Table_PI[[#This Row],[List 2]],Table_PI[[#This Row],[List 3]],Table_PI[[#This Row],[Size]],Table_PI[[#This Row],[Input 1]],Table_PI[[#This Row],[Input 2]],Table_PI[[#This Row],[Input 3]],Table_PI[[#This Row],[Input 4]],'Customer Information'!$AR$12,2,ROW()),\"No Rebate\"),\"No Rebate\"),0)","v":0},{"$f":"IF(Table_PI[[#This Row],[Hide:\nFormula Name]]<>\"\",IFERROR(IF(MeasureCalc(Table_PI[[#This Row],[Hide:\nFormula Name]],Table_PI[[#This Row],[Quantity]],Table_PI[[#This Row],[List 1]],Table_PI[[#This Row],[List 2]],Table_PI[[#This Row],[List 3]],Table_PI[[#This Row],[Size]],Table_PI[[#This Row],[Input 1]],Table_PI[[#This Row],[Input 2]],Table_PI[[#This Row],[Input 3]],Table_PI[[#This Row],[Input 4]],'Customer Information'!$AR$12,1,ROW())>0,MeasureCalc(Table_PI[[#This Row],[Hide:\nFormula Name]],Table_PI[[#This Row],[Quantity]],Table_PI[[#This Row],[List 1]],Table_PI[[#This Row],[List 2]],Table_PI[[#This Row],[List 3]],Table_PI[[#This Row],[Size]],Table_PI[[#This Row],[Input 1]],Table_PI[[#This Row],[Input 2]],Table_PI[[#This Row],[Input 3]],Table_PI[[#This Row],[Input 4]],'Customer Information'!$AR$12,3,ROW()),\"No Rebate\"),\"No Rebate\"),0)","v":0},{"$f":"IF(Table_PI[[#This Row],[Hide:\nFormula Name]]<>\"\",IFERROR(IF(MeasureCalc(Table_PI[[#This Row],[Hide:\nFormula Name]],Table_PI[[#This Row],[Quantity]],Table_PI[[#This Row],[List 1]],Table_PI[[#This Row],[List 2]],Table_PI[[#This Row],[List 3]],Table_PI[[#This Row],[Size]],Table_PI[[#This Row],[Input 1]],Table_PI[[#This Row],[Input 2]],Table_PI[[#This Row],[Input 3]],Table_PI[[#This Row],[Input 4]],'Customer Information'!$AR$12,1,ROW())>0,MeasureCalc(Table_PI[[#This Row],[Hide:\nFormula Name]],Table_PI[[#This Row],[Quantity]],Table_PI[[#This Row],[List 1]],Table_PI[[#This Row],[List 2]],Table_PI[[#This Row],[List 3]],Table_PI[[#This Row],[Size]],Table_PI[[#This Row],[Input 1]],Table_PI[[#This Row],[Input 2]],Table_PI[[#This Row],[Input 3]],Table_PI[[#This Row],[Input 4]],'Customer Information'!$AR$12,4,ROW()),\"No Rebate\"),\"No Rebate\"),0)","v":0},{"$f":"IF(Table_PI[[#This Row],[Hide:\nFormula Name]]<>\"\",IFERROR(IF(MeasureCalc(Table_PI[[#This Row],[Hide:\nFormula Name]],Table_PI[[#This Row],[Quantity]],Table_PI[[#This Row],[List 1]],Table_PI[[#This Row],[List 2]],Table_PI[[#This Row],[List 3]],Table_PI[[#This Row],[Size]],Table_PI[[#This Row],[Input 1]],Table_PI[[#This Row],[Input 2]],Table_PI[[#This Row],[Input 3]],Table_PI[[#This Row],[Input 4]],'Customer Information'!$AR$12,1,ROW())>0,MeasureCalc(Table_PI[[#This Row],[Hide:\nFormula Name]],Table_PI[[#This Row],[Quantity]],Table_PI[[#This Row],[List 1]],Table_PI[[#This Row],[List 2]],Table_PI[[#This Row],[List 3]],Table_PI[[#This Row],[Size]],Table_PI[[#This Row],[Input 1]],Table_PI[[#This Row],[Input 2]],Table_PI[[#This Row],[Input 3]],Table_PI[[#This Row],[Input 4]],'Customer Information'!$AR$12,5,ROW()),\"No Rebate\"),\"No Rebate\"),0)","v":0},{"$f":"IF(Table_PI[[#This Row],[Hide:\nFormula Name]]<>\"\",IFERROR(IF(MeasureCalc(Table_PI[[#This Row],[Hide:\nFormula Name]],Table_PI[[#This Row],[Quantity]],Table_PI[[#This Row],[List 1]],Table_PI[[#This Row],[List 2]],Table_PI[[#This Row],[List 3]],Table_PI[[#This Row],[Size]],Table_PI[[#This Row],[Input 1]],Table_PI[[#This Row],[Input 2]],Table_PI[[#This Row],[Input 3]],Table_PI[[#This Row],[Input 4]],'Customer Information'!$AR$12,1,ROW())>0,MeasureCalc(Table_PI[[#This Row],[Hide:\nFormula Name]],Table_PI[[#This Row],[Quantity]],Table_PI[[#This Row],[List 1]],Table_PI[[#This Row],[List 2]],Table_PI[[#This Row],[List 3]],Table_PI[[#This Row],[Size]],Table_PI[[#This Row],[Input 1]],Table_PI[[#This Row],[Input 2]],Table_PI[[#This Row],[Input 3]],Table_PI[[#This Row],[Input 4]],'Customer Information'!$AR$12,6,ROW()),\"No Rebate\"),\"No Rebate\"),0)","v":0},{"$f":"IF(Table_PI[[#This Row],[Hide:\nFormula Name]]<>\"\",IFERROR(IF(MeasureCalc(Table_PI[[#This Row],[Hide:\nFormula Name]],Table_PI[[#This Row],[Quantity]],Table_PI[[#This Row],[List 1]],Table_PI[[#This Row],[List 2]],Table_PI[[#This Row],[List 3]],Table_PI[[#This Row],[Size]],Table_PI[[#This Row],[Input 1]],Table_PI[[#This Row],[Input 2]],Table_PI[[#This Row],[Input 3]],Table_PI[[#This Row],[Input 4]],'Customer Information'!$AR$12,1,ROW())>0,MeasureCalc(Table_PI[[#This Row],[Hide:\nFormula Name]],Table_PI[[#This Row],[Quantity]],Table_PI[[#This Row],[List 1]],Table_PI[[#This Row],[List 2]],Table_PI[[#This Row],[List 3]],Table_PI[[#This Row],[Size]],Table_PI[[#This Row],[Input 1]],Table_PI[[#This Row],[Input 2]],Table_PI[[#This Row],[Input 3]],Table_PI[[#This Row],[Input 4]],'Customer Information'!$AR$12,7,ROW()),\"No Rebate\"),\"No Rebate\"),0)","v":0},{"$f":"IF(Table_PI[[#This Row],[Hide:\nFormula Name]]<>\"\",IFERROR(IF(MeasureCalc(Table_PI[[#This Row],[Hide:\nFormula Name]],Table_PI[[#This Row],[Quantity]],Table_PI[[#This Row],[List 1]],Table_PI[[#This Row],[List 2]],Table_PI[[#This Row],[List 3]],Table_PI[[#This Row],[Size]],Table_PI[[#This Row],[Input 1]],Table_PI[[#This Row],[Input 2]],Table_PI[[#This Row],[Input 3]],Table_PI[[#This Row],[Input 4]],'Customer Information'!$AR$12,1,ROW())>0,MeasureCalc(Table_PI[[#This Row],[Hide:\nFormula Name]],Table_PI[[#This Row],[Quantity]],Table_PI[[#This Row],[List 1]],Table_PI[[#This Row],[List 2]],Table_PI[[#This Row],[List 3]],Table_PI[[#This Row],[Size]],Table_PI[[#This Row],[Input 1]],Table_PI[[#This Row],[Input 2]],Table_PI[[#This Row],[Input 3]],Table_PI[[#This Row],[Input 4]],'Customer Information'!$AR$12,8,ROW()),\"No Rebate\"),\"No Rebate\"),0)","v":0},{"$f":"IF(Table_PI[[#This Row],[Hide:\nFormula Name]]<>\"\",IF(AND(Table_PI[[#This Row],[Hide:\nFormula Name]]<>\"\",OR(Table_PI[[#This Row],[Rebate]]>0,Table_PI[[#This Row],[Rebate]]=\"No Rebate\")),TRUE,\"MI: Line Item \" & $A67),\"\")","v":""}]
[{"$f":"IF(Table_PI[[#This Row],[Hide:\nFormula Name]]<>\"\",MAX($A$2:A67)+1,\"\")","v":""},null,null,null,null,null,null,null,null,null,null,null,null,null,null,{"$f":"IFERROR(VLOOKUP(Table_PI[[#This Row],[Measure]],'Equipment Lookups'!$C$3:$D$23,2,FALSE),\"\")","v":""},{"$f":"IF(Table_PI[[#This Row],[Hide:\nFormula Name]]<>\"\",IFERROR(IF(MeasureCalc(Table_PI[[#This Row],[Hide:\nFormula Name]],Table_PI[[#This Row],[Quantity]],Table_PI[[#This Row],[List 1]],Table_PI[[#This Row],[List 2]],Table_PI[[#This Row],[List 3]],Table_PI[[#This Row],[Size]],Table_PI[[#This Row],[Input 1]],Table_PI[[#This Row],[Input 2]],Table_PI[[#This Row],[Input 3]],Table_PI[[#This Row],[Input 4]],'Customer Information'!$AR$12,1,ROW())>0,MeasureCalc(Table_PI[[#This Row],[Hide:\nFormula Name]],Table_PI[[#This Row],[Quantity]],Table_PI[[#This Row],[List 1]],Table_PI[[#This Row],[List 2]],Table_PI[[#This Row],[List 3]],Table_PI[[#This Row],[Size]],Table_PI[[#This Row],[Input 1]],Table_PI[[#This Row],[Input 2]],Table_PI[[#This Row],[Input 3]],Table_PI[[#This Row],[Input 4]],'Customer Information'!$AR$12,1,ROW()),\"No Rebate\"),\"No Rebate\"),0)","v":0},{"$f":"IF(Table_PI[[#This Row],[Hide:\nFormula Name]]<>\"\",IFERROR(IF(MeasureCalc(Table_PI[[#This Row],[Hide:\nFormula Name]],Table_PI[[#This Row],[Quantity]],Table_PI[[#This Row],[List 1]],Table_PI[[#This Row],[List 2]],Table_PI[[#This Row],[List 3]],Table_PI[[#This Row],[Size]],Table_PI[[#This Row],[Input 1]],Table_PI[[#This Row],[Input 2]],Table_PI[[#This Row],[Input 3]],Table_PI[[#This Row],[Input 4]],'Customer Information'!$AR$12,1,ROW())>0,MeasureCalc(Table_PI[[#This Row],[Hide:\nFormula Name]],Table_PI[[#This Row],[Quantity]],Table_PI[[#This Row],[List 1]],Table_PI[[#This Row],[List 2]],Table_PI[[#This Row],[List 3]],Table_PI[[#This Row],[Size]],Table_PI[[#This Row],[Input 1]],Table_PI[[#This Row],[Input 2]],Table_PI[[#This Row],[Input 3]],Table_PI[[#This Row],[Input 4]],'Customer Information'!$AR$12,2,ROW()),\"No Rebate\"),\"No Rebate\"),0)","v":0},{"$f":"IF(Table_PI[[#This Row],[Hide:\nFormula Name]]<>\"\",IFERROR(IF(MeasureCalc(Table_PI[[#This Row],[Hide:\nFormula Name]],Table_PI[[#This Row],[Quantity]],Table_PI[[#This Row],[List 1]],Table_PI[[#This Row],[List 2]],Table_PI[[#This Row],[List 3]],Table_PI[[#This Row],[Size]],Table_PI[[#This Row],[Input 1]],Table_PI[[#This Row],[Input 2]],Table_PI[[#This Row],[Input 3]],Table_PI[[#This Row],[Input 4]],'Customer Information'!$AR$12,1,ROW())>0,MeasureCalc(Table_PI[[#This Row],[Hide:\nFormula Name]],Table_PI[[#This Row],[Quantity]],Table_PI[[#This Row],[List 1]],Table_PI[[#This Row],[List 2]],Table_PI[[#This Row],[List 3]],Table_PI[[#This Row],[Size]],Table_PI[[#This Row],[Input 1]],Table_PI[[#This Row],[Input 2]],Table_PI[[#This Row],[Input 3]],Table_PI[[#This Row],[Input 4]],'Customer Information'!$AR$12,3,ROW()),\"No Rebate\"),\"No Rebate\"),0)","v":0},{"$f":"IF(Table_PI[[#This Row],[Hide:\nFormula Name]]<>\"\",IFERROR(IF(MeasureCalc(Table_PI[[#This Row],[Hide:\nFormula Name]],Table_PI[[#This Row],[Quantity]],Table_PI[[#This Row],[List 1]],Table_PI[[#This Row],[List 2]],Table_PI[[#This Row],[List 3]],Table_PI[[#This Row],[Size]],Table_PI[[#This Row],[Input 1]],Table_PI[[#This Row],[Input 2]],Table_PI[[#This Row],[Input 3]],Table_PI[[#This Row],[Input 4]],'Customer Information'!$AR$12,1,ROW())>0,MeasureCalc(Table_PI[[#This Row],[Hide:\nFormula Name]],Table_PI[[#This Row],[Quantity]],Table_PI[[#This Row],[List 1]],Table_PI[[#This Row],[List 2]],Table_PI[[#This Row],[List 3]],Table_PI[[#This Row],[Size]],Table_PI[[#This Row],[Input 1]],Table_PI[[#This Row],[Input 2]],Table_PI[[#This Row],[Input 3]],Table_PI[[#This Row],[Input 4]],'Customer Information'!$AR$12,4,ROW()),\"No Rebate\"),\"No Rebate\"),0)","v":0},{"$f":"IF(Table_PI[[#This Row],[Hide:\nFormula Name]]<>\"\",IFERROR(IF(MeasureCalc(Table_PI[[#This Row],[Hide:\nFormula Name]],Table_PI[[#This Row],[Quantity]],Table_PI[[#This Row],[List 1]],Table_PI[[#This Row],[List 2]],Table_PI[[#This Row],[List 3]],Table_PI[[#This Row],[Size]],Table_PI[[#This Row],[Input 1]],Table_PI[[#This Row],[Input 2]],Table_PI[[#This Row],[Input 3]],Table_PI[[#This Row],[Input 4]],'Customer Information'!$AR$12,1,ROW())>0,MeasureCalc(Table_PI[[#This Row],[Hide:\nFormula Name]],Table_PI[[#This Row],[Quantity]],Table_PI[[#This Row],[List 1]],Table_PI[[#This Row],[List 2]],Table_PI[[#This Row],[List 3]],Table_PI[[#This Row],[Size]],Table_PI[[#This Row],[Input 1]],Table_PI[[#This Row],[Input 2]],Table_PI[[#This Row],[Input 3]],Table_PI[[#This Row],[Input 4]],'Customer Information'!$AR$12,5,ROW()),\"No Rebate\"),\"No Rebate\"),0)","v":0},{"$f":"IF(Table_PI[[#This Row],[Hide:\nFormula Name]]<>\"\",IFERROR(IF(MeasureCalc(Table_PI[[#This Row],[Hide:\nFormula Name]],Table_PI[[#This Row],[Quantity]],Table_PI[[#This Row],[List 1]],Table_PI[[#This Row],[List 2]],Table_PI[[#This Row],[List 3]],Table_PI[[#This Row],[Size]],Table_PI[[#This Row],[Input 1]],Table_PI[[#This Row],[Input 2]],Table_PI[[#This Row],[Input 3]],Table_PI[[#This Row],[Input 4]],'Customer Information'!$AR$12,1,ROW())>0,MeasureCalc(Table_PI[[#This Row],[Hide:\nFormula Name]],Table_PI[[#This Row],[Quantity]],Table_PI[[#This Row],[List 1]],Table_PI[[#This Row],[List 2]],Table_PI[[#This Row],[List 3]],Table_PI[[#This Row],[Size]],Table_PI[[#This Row],[Input 1]],Table_PI[[#This Row],[Input 2]],Table_PI[[#This Row],[Input 3]],Table_PI[[#This Row],[Input 4]],'Customer Information'!$AR$12,6,ROW()),\"No Rebate\"),\"No Rebate\"),0)","v":0},{"$f":"IF(Table_PI[[#This Row],[Hide:\nFormula Name]]<>\"\",IFERROR(IF(MeasureCalc(Table_PI[[#This Row],[Hide:\nFormula Name]],Table_PI[[#This Row],[Quantity]],Table_PI[[#This Row],[List 1]],Table_PI[[#This Row],[List 2]],Table_PI[[#This Row],[List 3]],Table_PI[[#This Row],[Size]],Table_PI[[#This Row],[Input 1]],Table_PI[[#This Row],[Input 2]],Table_PI[[#This Row],[Input 3]],Table_PI[[#This Row],[Input 4]],'Customer Information'!$AR$12,1,ROW())>0,MeasureCalc(Table_PI[[#This Row],[Hide:\nFormula Name]],Table_PI[[#This Row],[Quantity]],Table_PI[[#This Row],[List 1]],Table_PI[[#This Row],[List 2]],Table_PI[[#This Row],[List 3]],Table_PI[[#This Row],[Size]],Table_PI[[#This Row],[Input 1]],Table_PI[[#This Row],[Input 2]],Table_PI[[#This Row],[Input 3]],Table_PI[[#This Row],[Input 4]],'Customer Information'!$AR$12,7,ROW()),\"No Rebate\"),\"No Rebate\"),0)","v":0},{"$f":"IF(Table_PI[[#This Row],[Hide:\nFormula Name]]<>\"\",IFERROR(IF(MeasureCalc(Table_PI[[#This Row],[Hide:\nFormula Name]],Table_PI[[#This Row],[Quantity]],Table_PI[[#This Row],[List 1]],Table_PI[[#This Row],[List 2]],Table_PI[[#This Row],[List 3]],Table_PI[[#This Row],[Size]],Table_PI[[#This Row],[Input 1]],Table_PI[[#This Row],[Input 2]],Table_PI[[#This Row],[Input 3]],Table_PI[[#This Row],[Input 4]],'Customer Information'!$AR$12,1,ROW())>0,MeasureCalc(Table_PI[[#This Row],[Hide:\nFormula Name]],Table_PI[[#This Row],[Quantity]],Table_PI[[#This Row],[List 1]],Table_PI[[#This Row],[List 2]],Table_PI[[#This Row],[List 3]],Table_PI[[#This Row],[Size]],Table_PI[[#This Row],[Input 1]],Table_PI[[#This Row],[Input 2]],Table_PI[[#This Row],[Input 3]],Table_PI[[#This Row],[Input 4]],'Customer Information'!$AR$12,8,ROW()),\"No Rebate\"),\"No Rebate\"),0)","v":0},{"$f":"IF(Table_PI[[#This Row],[Hide:\nFormula Name]]<>\"\",IF(AND(Table_PI[[#This Row],[Hide:\nFormula Name]]<>\"\",OR(Table_PI[[#This Row],[Rebate]]>0,Table_PI[[#This Row],[Rebate]]=\"No Rebate\")),TRUE,\"MI: Line Item \" & $A68),\"\")","v":""}]
[{"$f":"IF(Table_PI[[#This Row],[Hide:\nFormula Name]]<>\"\",MAX($A$2:A68)+1,\"\")","v":""},null,null,null,null,null,null,null,null,null,null,null,null,null,null,{"$f":"IFERROR(VLOOKUP(Table_PI[[#This Row],[Measure]],'Equipment Lookups'!$C$3:$D$23,2,FALSE),\"\")","v":""},{"$f":"IF(Table_PI[[#This Row],[Hide:\nFormula Name]]<>\"\",IFERROR(IF(MeasureCalc(Table_PI[[#This Row],[Hide:\nFormula Name]],Table_PI[[#This Row],[Quantity]],Table_PI[[#This Row],[List 1]],Table_PI[[#This Row],[List 2]],Table_PI[[#This Row],[List 3]],Table_PI[[#This Row],[Size]],Table_PI[[#This Row],[Input 1]],Table_PI[[#This Row],[Input 2]],Table_PI[[#This Row],[Input 3]],Table_PI[[#This Row],[Input 4]],'Customer Information'!$AR$12,1,ROW())>0,MeasureCalc(Table_PI[[#This Row],[Hide:\nFormula Name]],Table_PI[[#This Row],[Quantity]],Table_PI[[#This Row],[List 1]],Table_PI[[#This Row],[List 2]],Table_PI[[#This Row],[List 3]],Table_PI[[#This Row],[Size]],Table_PI[[#This Row],[Input 1]],Table_PI[[#This Row],[Input 2]],Table_PI[[#This Row],[Input 3]],Table_PI[[#This Row],[Input 4]],'Customer Information'!$AR$12,1,ROW()),\"No Rebate\"),\"No Rebate\"),0)","v":0},{"$f":"IF(Table_PI[[#This Row],[Hide:\nFormula Name]]<>\"\",IFERROR(IF(MeasureCalc(Table_PI[[#This Row],[Hide:\nFormula Name]],Table_PI[[#This Row],[Quantity]],Table_PI[[#This Row],[List 1]],Table_PI[[#This Row],[List 2]],Table_PI[[#This Row],[List 3]],Table_PI[[#This Row],[Size]],Table_PI[[#This Row],[Input 1]],Table_PI[[#This Row],[Input 2]],Table_PI[[#This Row],[Input 3]],Table_PI[[#This Row],[Input 4]],'Customer Information'!$AR$12,1,ROW())>0,MeasureCalc(Table_PI[[#This Row],[Hide:\nFormula Name]],Table_PI[[#This Row],[Quantity]],Table_PI[[#This Row],[List 1]],Table_PI[[#This Row],[List 2]],Table_PI[[#This Row],[List 3]],Table_PI[[#This Row],[Size]],Table_PI[[#This Row],[Input 1]],Table_PI[[#This Row],[Input 2]],Table_PI[[#This Row],[Input 3]],Table_PI[[#This Row],[Input 4]],'Customer Information'!$AR$12,2,ROW()),\"No Rebate\"),\"No Rebate\"),0)","v":0},{"$f":"IF(Table_PI[[#This Row],[Hide:\nFormula Name]]<>\"\",IFERROR(IF(MeasureCalc(Table_PI[[#This Row],[Hide:\nFormula Name]],Table_PI[[#This Row],[Quantity]],Table_PI[[#This Row],[List 1]],Table_PI[[#This Row],[List 2]],Table_PI[[#This Row],[List 3]],Table_PI[[#This Row],[Size]],Table_PI[[#This Row],[Input 1]],Table_PI[[#This Row],[Input 2]],Table_PI[[#This Row],[Input 3]],Table_PI[[#This Row],[Input 4]],'Customer Information'!$AR$12,1,ROW())>0,MeasureCalc(Table_PI[[#This Row],[Hide:\nFormula Name]],Table_PI[[#This Row],[Quantity]],Table_PI[[#This Row],[List 1]],Table_PI[[#This Row],[List 2]],Table_PI[[#This Row],[List 3]],Table_PI[[#This Row],[Size]],Table_PI[[#This Row],[Input 1]],Table_PI[[#This Row],[Input 2]],Table_PI[[#This Row],[Input 3]],Table_PI[[#This Row],[Input 4]],'Customer Information'!$AR$12,3,ROW()),\"No Rebate\"),\"No Rebate\"),0)","v":0},{"$f":"IF(Table_PI[[#This Row],[Hide:\nFormula Name]]<>\"\",IFERROR(IF(MeasureCalc(Table_PI[[#This Row],[Hide:\nFormula Name]],Table_PI[[#This Row],[Quantity]],Table_PI[[#This Row],[List 1]],Table_PI[[#This Row],[List 2]],Table_PI[[#This Row],[List 3]],Table_PI[[#This Row],[Size]],Table_PI[[#This Row],[Input 1]],Table_PI[[#This Row],[Input 2]],Table_PI[[#This Row],[Input 3]],Table_PI[[#This Row],[Input 4]],'Customer Information'!$AR$12,1,ROW())>0,MeasureCalc(Table_PI[[#This Row],[Hide:\nFormula Name]],Table_PI[[#This Row],[Quantity]],Table_PI[[#This Row],[List 1]],Table_PI[[#This Row],[List 2]],Table_PI[[#This Row],[List 3]],Table_PI[[#This Row],[Size]],Table_PI[[#This Row],[Input 1]],Table_PI[[#This Row],[Input 2]],Table_PI[[#This Row],[Input 3]],Table_PI[[#This Row],[Input 4]],'Customer Information'!$AR$12,4,ROW()),\"No Rebate\"),\"No Rebate\"),0)","v":0},{"$f":"IF(Table_PI[[#This Row],[Hide:\nFormula Name]]<>\"\",IFERROR(IF(MeasureCalc(Table_PI[[#This Row],[Hide:\nFormula Name]],Table_PI[[#This Row],[Quantity]],Table_PI[[#This Row],[List 1]],Table_PI[[#This Row],[List 2]],Table_PI[[#This Row],[List 3]],Table_PI[[#This Row],[Size]],Table_PI[[#This Row],[Input 1]],Table_PI[[#This Row],[Input 2]],Table_PI[[#This Row],[Input 3]],Table_PI[[#This Row],[Input 4]],'Customer Information'!$AR$12,1,ROW())>0,MeasureCalc(Table_PI[[#This Row],[Hide:\nFormula Name]],Table_PI[[#This Row],[Quantity]],Table_PI[[#This Row],[List 1]],Table_PI[[#This Row],[List 2]],Table_PI[[#This Row],[List 3]],Table_PI[[#This Row],[Size]],Table_PI[[#This Row],[Input 1]],Table_PI[[#This Row],[Input 2]],Table_PI[[#This Row],[Input 3]],Table_PI[[#This Row],[Input 4]],'Customer Information'!$AR$12,5,ROW()),\"No Rebate\"),\"No Rebate\"),0)","v":0},{"$f":"IF(Table_PI[[#This Row],[Hide:\nFormula Name]]<>\"\",IFERROR(IF(MeasureCalc(Table_PI[[#This Row],[Hide:\nFormula Name]],Table_PI[[#This Row],[Quantity]],Table_PI[[#This Row],[List 1]],Table_PI[[#This Row],[List 2]],Table_PI[[#This Row],[List 3]],Table_PI[[#This Row],[Size]],Table_PI[[#This Row],[Input 1]],Table_PI[[#This Row],[Input 2]],Table_PI[[#This Row],[Input 3]],Table_PI[[#This Row],[Input 4]],'Customer Information'!$AR$12,1,ROW())>0,MeasureCalc(Table_PI[[#This Row],[Hide:\nFormula Name]],Table_PI[[#This Row],[Quantity]],Table_PI[[#This Row],[List 1]],Table_PI[[#This Row],[List 2]],Table_PI[[#This Row],[List 3]],Table_PI[[#This Row],[Size]],Table_PI[[#This Row],[Input 1]],Table_PI[[#This Row],[Input 2]],Table_PI[[#This Row],[Input 3]],Table_PI[[#This Row],[Input 4]],'Customer Information'!$AR$12,6,ROW()),\"No Rebate\"),\"No Rebate\"),0)","v":0},{"$f":"IF(Table_PI[[#This Row],[Hide:\nFormula Name]]<>\"\",IFERROR(IF(MeasureCalc(Table_PI[[#This Row],[Hide:\nFormula Name]],Table_PI[[#This Row],[Quantity]],Table_PI[[#This Row],[List 1]],Table_PI[[#This Row],[List 2]],Table_PI[[#This Row],[List 3]],Table_PI[[#This Row],[Size]],Table_PI[[#This Row],[Input 1]],Table_PI[[#This Row],[Input 2]],Table_PI[[#This Row],[Input 3]],Table_PI[[#This Row],[Input 4]],'Customer Information'!$AR$12,1,ROW())>0,MeasureCalc(Table_PI[[#This Row],[Hide:\nFormula Name]],Table_PI[[#This Row],[Quantity]],Table_PI[[#This Row],[List 1]],Table_PI[[#This Row],[List 2]],Table_PI[[#This Row],[List 3]],Table_PI[[#This Row],[Size]],Table_PI[[#This Row],[Input 1]],Table_PI[[#This Row],[Input 2]],Table_PI[[#This Row],[Input 3]],Table_PI[[#This Row],[Input 4]],'Customer Information'!$AR$12,7,ROW()),\"No Rebate\"),\"No Rebate\"),0)","v":0},{"$f":"IF(Table_PI[[#This Row],[Hide:\nFormula Name]]<>\"\",IFERROR(IF(MeasureCalc(Table_PI[[#This Row],[Hide:\nFormula Name]],Table_PI[[#This Row],[Quantity]],Table_PI[[#This Row],[List 1]],Table_PI[[#This Row],[List 2]],Table_PI[[#This Row],[List 3]],Table_PI[[#This Row],[Size]],Table_PI[[#This Row],[Input 1]],Table_PI[[#This Row],[Input 2]],Table_PI[[#This Row],[Input 3]],Table_PI[[#This Row],[Input 4]],'Customer Information'!$AR$12,1,ROW())>0,MeasureCalc(Table_PI[[#This Row],[Hide:\nFormula Name]],Table_PI[[#This Row],[Quantity]],Table_PI[[#This Row],[List 1]],Table_PI[[#This Row],[List 2]],Table_PI[[#This Row],[List 3]],Table_PI[[#This Row],[Size]],Table_PI[[#This Row],[Input 1]],Table_PI[[#This Row],[Input 2]],Table_PI[[#This Row],[Input 3]],Table_PI[[#This Row],[Input 4]],'Customer Information'!$AR$12,8,ROW()),\"No Rebate\"),\"No Rebate\"),0)","v":0},{"$f":"IF(Table_PI[[#This Row],[Hide:\nFormula Name]]<>\"\",IF(AND(Table_PI[[#This Row],[Hide:\nFormula Name]]<>\"\",OR(Table_PI[[#This Row],[Rebate]]>0,Table_PI[[#This Row],[Rebate]]=\"No Rebate\")),TRUE,\"MI: Line Item \" & $A69),\"\")","v":""}]
[{"$f":"IF(Table_PI[[#This Row],[Hide:\nFormula Name]]<>\"\",MAX($A$2:A69)+1,\"\")","v":""},null,null,null,null,null,null,null,null,null,null,null,null,null,null,{"$f":"IFERROR(VLOOKUP(Table_PI[[#This Row],[Measure]],'Equipment Lookups'!$C$3:$D$23,2,FALSE),\"\")","v":""},{"$f":"IF(Table_PI[[#This Row],[Hide:\nFormula Name]]<>\"\",IFERROR(IF(MeasureCalc(Table_PI[[#This Row],[Hide:\nFormula Name]],Table_PI[[#This Row],[Quantity]],Table_PI[[#This Row],[List 1]],Table_PI[[#This Row],[List 2]],Table_PI[[#This Row],[List 3]],Table_PI[[#This Row],[Size]],Table_PI[[#This Row],[Input 1]],Table_PI[[#This Row],[Input 2]],Table_PI[[#This Row],[Input 3]],Table_PI[[#This Row],[Input 4]],'Customer Information'!$AR$12,1,ROW())>0,MeasureCalc(Table_PI[[#This Row],[Hide:\nFormula Name]],Table_PI[[#This Row],[Quantity]],Table_PI[[#This Row],[List 1]],Table_PI[[#This Row],[List 2]],Table_PI[[#This Row],[List 3]],Table_PI[[#This Row],[Size]],Table_PI[[#This Row],[Input 1]],Table_PI[[#This Row],[Input 2]],Table_PI[[#This Row],[Input 3]],Table_PI[[#This Row],[Input 4]],'Customer Information'!$AR$12,1,ROW()),\"No Rebate\"),\"No Rebate\"),0)","v":0},{"$f":"IF(Table_PI[[#This Row],[Hide:\nFormula Name]]<>\"\",IFERROR(IF(MeasureCalc(Table_PI[[#This Row],[Hide:\nFormula Name]],Table_PI[[#This Row],[Quantity]],Table_PI[[#This Row],[List 1]],Table_PI[[#This Row],[List 2]],Table_PI[[#This Row],[List 3]],Table_PI[[#This Row],[Size]],Table_PI[[#This Row],[Input 1]],Table_PI[[#This Row],[Input 2]],Table_PI[[#This Row],[Input 3]],Table_PI[[#This Row],[Input 4]],'Customer Information'!$AR$12,1,ROW())>0,MeasureCalc(Table_PI[[#This Row],[Hide:\nFormula Name]],Table_PI[[#This Row],[Quantity]],Table_PI[[#This Row],[List 1]],Table_PI[[#This Row],[List 2]],Table_PI[[#This Row],[List 3]],Table_PI[[#This Row],[Size]],Table_PI[[#This Row],[Input 1]],Table_PI[[#This Row],[Input 2]],Table_PI[[#This Row],[Input 3]],Table_PI[[#This Row],[Input 4]],'Customer Information'!$AR$12,2,ROW()),\"No Rebate\"),\"No Rebate\"),0)","v":0},{"$f":"IF(Table_PI[[#This Row],[Hide:\nFormula Name]]<>\"\",IFERROR(IF(MeasureCalc(Table_PI[[#This Row],[Hide:\nFormula Name]],Table_PI[[#This Row],[Quantity]],Table_PI[[#This Row],[List 1]],Table_PI[[#This Row],[List 2]],Table_PI[[#This Row],[List 3]],Table_PI[[#This Row],[Size]],Table_PI[[#This Row],[Input 1]],Table_PI[[#This Row],[Input 2]],Table_PI[[#This Row],[Input 3]],Table_PI[[#This Row],[Input 4]],'Customer Information'!$AR$12,1,ROW())>0,MeasureCalc(Table_PI[[#This Row],[Hide:\nFormula Name]],Table_PI[[#This Row],[Quantity]],Table_PI[[#This Row],[List 1]],Table_PI[[#This Row],[List 2]],Table_PI[[#This Row],[List 3]],Table_PI[[#This Row],[Size]],Table_PI[[#This Row],[Input 1]],Table_PI[[#This Row],[Input 2]],Table_PI[[#This Row],[Input 3]],Table_PI[[#This Row],[Input 4]],'Customer Information'!$AR$12,3,ROW()),\"No Rebate\"),\"No Rebate\"),0)","v":0},{"$f":"IF(Table_PI[[#This Row],[Hide:\nFormula Name]]<>\"\",IFERROR(IF(MeasureCalc(Table_PI[[#This Row],[Hide:\nFormula Name]],Table_PI[[#This Row],[Quantity]],Table_PI[[#This Row],[List 1]],Table_PI[[#This Row],[List 2]],Table_PI[[#This Row],[List 3]],Table_PI[[#This Row],[Size]],Table_PI[[#This Row],[Input 1]],Table_PI[[#This Row],[Input 2]],Table_PI[[#This Row],[Input 3]],Table_PI[[#This Row],[Input 4]],'Customer Information'!$AR$12,1,ROW())>0,MeasureCalc(Table_PI[[#This Row],[Hide:\nFormula Name]],Table_PI[[#This Row],[Quantity]],Table_PI[[#This Row],[List 1]],Table_PI[[#This Row],[List 2]],Table_PI[[#This Row],[List 3]],Table_PI[[#This Row],[Size]],Table_PI[[#This Row],[Input 1]],Table_PI[[#This Row],[Input 2]],Table_PI[[#This Row],[Input 3]],Table_PI[[#This Row],[Input 4]],'Customer Information'!$AR$12,4,ROW()),\"No Rebate\"),\"No Rebate\"),0)","v":0},{"$f":"IF(Table_PI[[#This Row],[Hide:\nFormula Name]]<>\"\",IFERROR(IF(MeasureCalc(Table_PI[[#This Row],[Hide:\nFormula Name]],Table_PI[[#This Row],[Quantity]],Table_PI[[#This Row],[List 1]],Table_PI[[#This Row],[List 2]],Table_PI[[#This Row],[List 3]],Table_PI[[#This Row],[Size]],Table_PI[[#This Row],[Input 1]],Table_PI[[#This Row],[Input 2]],Table_PI[[#This Row],[Input 3]],Table_PI[[#This Row],[Input 4]],'Customer Information'!$AR$12,1,ROW())>0,MeasureCalc(Table_PI[[#This Row],[Hide:\nFormula Name]],Table_PI[[#This Row],[Quantity]],Table_PI[[#This Row],[List 1]],Table_PI[[#This Row],[List 2]],Table_PI[[#This Row],[List 3]],Table_PI[[#This Row],[Size]],Table_PI[[#This Row],[Input 1]],Table_PI[[#This Row],[Input 2]],Table_PI[[#This Row],[Input 3]],Table_PI[[#This Row],[Input 4]],'Customer Information'!$AR$12,5,ROW()),\"No Rebate\"),\"No Rebate\"),0)","v":0},{"$f":"IF(Table_PI[[#This Row],[Hide:\nFormula Name]]<>\"\",IFERROR(IF(MeasureCalc(Table_PI[[#This Row],[Hide:\nFormula Name]],Table_PI[[#This Row],[Quantity]],Table_PI[[#This Row],[List 1]],Table_PI[[#This Row],[List 2]],Table_PI[[#This Row],[List 3]],Table_PI[[#This Row],[Size]],Table_PI[[#This Row],[Input 1]],Table_PI[[#This Row],[Input 2]],Table_PI[[#This Row],[Input 3]],Table_PI[[#This Row],[Input 4]],'Customer Information'!$AR$12,1,ROW())>0,MeasureCalc(Table_PI[[#This Row],[Hide:\nFormula Name]],Table_PI[[#This Row],[Quantity]],Table_PI[[#This Row],[List 1]],Table_PI[[#This Row],[List 2]],Table_PI[[#This Row],[List 3]],Table_PI[[#This Row],[Size]],Table_PI[[#This Row],[Input 1]],Table_PI[[#This Row],[Input 2]],Table_PI[[#This Row],[Input 3]],Table_PI[[#This Row],[Input 4]],'Customer Information'!$AR$12,6,ROW()),\"No Rebate\"),\"No Rebate\"),0)","v":0},{"$f":"IF(Table_PI[[#This Row],[Hide:\nFormula Name]]<>\"\",IFERROR(IF(MeasureCalc(Table_PI[[#This Row],[Hide:\nFormula Name]],Table_PI[[#This Row],[Quantity]],Table_PI[[#This Row],[List 1]],Table_PI[[#This Row],[List 2]],Table_PI[[#This Row],[List 3]],Table_PI[[#This Row],[Size]],Table_PI[[#This Row],[Input 1]],Table_PI[[#This Row],[Input 2]],Table_PI[[#This Row],[Input 3]],Table_PI[[#This Row],[Input 4]],'Customer Information'!$AR$12,1,ROW())>0,MeasureCalc(Table_PI[[#This Row],[Hide:\nFormula Name]],Table_PI[[#This Row],[Quantity]],Table_PI[[#This Row],[List 1]],Table_PI[[#This Row],[List 2]],Table_PI[[#This Row],[List 3]],Table_PI[[#This Row],[Size]],Table_PI[[#This Row],[Input 1]],Table_PI[[#This Row],[Input 2]],Table_PI[[#This Row],[Input 3]],Table_PI[[#This Row],[Input 4]],'Customer Information'!$AR$12,7,ROW()),\"No Rebate\"),\"No Rebate\"),0)","v":0},{"$f":"IF(Table_PI[[#This Row],[Hide:\nFormula Name]]<>\"\",IFERROR(IF(MeasureCalc(Table_PI[[#This Row],[Hide:\nFormula Name]],Table_PI[[#This Row],[Quantity]],Table_PI[[#This Row],[List 1]],Table_PI[[#This Row],[List 2]],Table_PI[[#This Row],[List 3]],Table_PI[[#This Row],[Size]],Table_PI[[#This Row],[Input 1]],Table_PI[[#This Row],[Input 2]],Table_PI[[#This Row],[Input 3]],Table_PI[[#This Row],[Input 4]],'Customer Information'!$AR$12,1,ROW())>0,MeasureCalc(Table_PI[[#This Row],[Hide:\nFormula Name]],Table_PI[[#This Row],[Quantity]],Table_PI[[#This Row],[List 1]],Table_PI[[#This Row],[List 2]],Table_PI[[#This Row],[List 3]],Table_PI[[#This Row],[Size]],Table_PI[[#This Row],[Input 1]],Table_PI[[#This Row],[Input 2]],Table_PI[[#This Row],[Input 3]],Table_PI[[#This Row],[Input 4]],'Customer Information'!$AR$12,8,ROW()),\"No Rebate\"),\"No Rebate\"),0)","v":0},{"$f":"IF(Table_PI[[#This Row],[Hide:\nFormula Name]]<>\"\",IF(AND(Table_PI[[#This Row],[Hide:\nFormula Name]]<>\"\",OR(Table_PI[[#This Row],[Rebate]]>0,Table_PI[[#This Row],[Rebate]]=\"No Rebate\")),TRUE,\"MI: Line Item \" & $A70),\"\")","v":""}]
[{"$f":"IF(Table_PI[[#This Row],[Hide:\nFormula Name]]<>\"\",MAX($A$2:A70)+1,\"\")","v":""},null,null,null,null,null,null,null,null,null,null,null,null,null,null,{"$f":"IFERROR(VLOOKUP(Table_PI[[#This Row],[Measure]],'Equipment Lookups'!$C$3:$D$23,2,FALSE),\"\")","v":""},{"$f":"IF(Table_PI[[#This Row],[Hide:\nFormula Name]]<>\"\",IFERROR(IF(MeasureCalc(Table_PI[[#This Row],[Hide:\nFormula Name]],Table_PI[[#This Row],[Quantity]],Table_PI[[#This Row],[List 1]],Table_PI[[#This Row],[List 2]],Table_PI[[#This Row],[List 3]],Table_PI[[#This Row],[Size]],Table_PI[[#This Row],[Input 1]],Table_PI[[#This Row],[Input 2]],Table_PI[[#This Row],[Input 3]],Table_PI[[#This Row],[Input 4]],'Customer Information'!$AR$12,1,ROW())>0,MeasureCalc(Table_PI[[#This Row],[Hide:\nFormula Name]],Table_PI[[#This Row],[Quantity]],Table_PI[[#This Row],[List 1]],Table_PI[[#This Row],[List 2]],Table_PI[[#This Row],[List 3]],Table_PI[[#This Row],[Size]],Table_PI[[#This Row],[Input 1]],Table_PI[[#This Row],[Input 2]],Table_PI[[#This Row],[Input 3]],Table_PI[[#This Row],[Input 4]],'Customer Information'!$AR$12,1,ROW()),\"No Rebate\"),\"No Rebate\"),0)","v":0},{"$f":"IF(Table_PI[[#This Row],[Hide:\nFormula Name]]<>\"\",IFERROR(IF(MeasureCalc(Table_PI[[#This Row],[Hide:\nFormula Name]],Table_PI[[#This Row],[Quantity]],Table_PI[[#This Row],[List 1]],Table_PI[[#This Row],[List 2]],Table_PI[[#This Row],[List 3]],Table_PI[[#This Row],[Size]],Table_PI[[#This Row],[Input 1]],Table_PI[[#This Row],[Input 2]],Table_PI[[#This Row],[Input 3]],Table_PI[[#This Row],[Input 4]],'Customer Information'!$AR$12,1,ROW())>0,MeasureCalc(Table_PI[[#This Row],[Hide:\nFormula Name]],Table_PI[[#This Row],[Quantity]],Table_PI[[#This Row],[List 1]],Table_PI[[#This Row],[List 2]],Table_PI[[#This Row],[List 3]],Table_PI[[#This Row],[Size]],Table_PI[[#This Row],[Input 1]],Table_PI[[#This Row],[Input 2]],Table_PI[[#This Row],[Input 3]],Table_PI[[#This Row],[Input 4]],'Customer Information'!$AR$12,2,ROW()),\"No Rebate\"),\"No Rebate\"),0)","v":0},{"$f":"IF(Table_PI[[#This Row],[Hide:\nFormula Name]]<>\"\",IFERROR(IF(MeasureCalc(Table_PI[[#This Row],[Hide:\nFormula Name]],Table_PI[[#This Row],[Quantity]],Table_PI[[#This Row],[List 1]],Table_PI[[#This Row],[List 2]],Table_PI[[#This Row],[List 3]],Table_PI[[#This Row],[Size]],Table_PI[[#This Row],[Input 1]],Table_PI[[#This Row],[Input 2]],Table_PI[[#This Row],[Input 3]],Table_PI[[#This Row],[Input 4]],'Customer Information'!$AR$12,1,ROW())>0,MeasureCalc(Table_PI[[#This Row],[Hide:\nFormula Name]],Table_PI[[#This Row],[Quantity]],Table_PI[[#This Row],[List 1]],Table_PI[[#This Row],[List 2]],Table_PI[[#This Row],[List 3]],Table_PI[[#This Row],[Size]],Table_PI[[#This Row],[Input 1]],Table_PI[[#This Row],[Input 2]],Table_PI[[#This Row],[Input 3]],Table_PI[[#This Row],[Input 4]],'Customer Information'!$AR$12,3,ROW()),\"No Rebate\"),\"No Rebate\"),0)","v":0},{"$f":"IF(Table_PI[[#This Row],[Hide:\nFormula Name]]<>\"\",IFERROR(IF(MeasureCalc(Table_PI[[#This Row],[Hide:\nFormula Name]],Table_PI[[#This Row],[Quantity]],Table_PI[[#This Row],[List 1]],Table_PI[[#This Row],[List 2]],Table_PI[[#This Row],[List 3]],Table_PI[[#This Row],[Size]],Table_PI[[#This Row],[Input 1]],Table_PI[[#This Row],[Input 2]],Table_PI[[#This Row],[Input 3]],Table_PI[[#This Row],[Input 4]],'Customer Information'!$AR$12,1,ROW())>0,MeasureCalc(Table_PI[[#This Row],[Hide:\nFormula Name]],Table_PI[[#This Row],[Quantity]],Table_PI[[#This Row],[List 1]],Table_PI[[#This Row],[List 2]],Table_PI[[#This Row],[List 3]],Table_PI[[#This Row],[Size]],Table_PI[[#This Row],[Input 1]],Table_PI[[#This Row],[Input 2]],Table_PI[[#This Row],[Input 3]],Table_PI[[#This Row],[Input 4]],'Customer Information'!$AR$12,4,ROW()),\"No Rebate\"),\"No Rebate\"),0)","v":0},{"$f":"IF(Table_PI[[#This Row],[Hide:\nFormula Name]]<>\"\",IFERROR(IF(MeasureCalc(Table_PI[[#This Row],[Hide:\nFormula Name]],Table_PI[[#This Row],[Quantity]],Table_PI[[#This Row],[List 1]],Table_PI[[#This Row],[List 2]],Table_PI[[#This Row],[List 3]],Table_PI[[#This Row],[Size]],Table_PI[[#This Row],[Input 1]],Table_PI[[#This Row],[Input 2]],Table_PI[[#This Row],[Input 3]],Table_PI[[#This Row],[Input 4]],'Customer Information'!$AR$12,1,ROW())>0,MeasureCalc(Table_PI[[#This Row],[Hide:\nFormula Name]],Table_PI[[#This Row],[Quantity]],Table_PI[[#This Row],[List 1]],Table_PI[[#This Row],[List 2]],Table_PI[[#This Row],[List 3]],Table_PI[[#This Row],[Size]],Table_PI[[#This Row],[Input 1]],Table_PI[[#This Row],[Input 2]],Table_PI[[#This Row],[Input 3]],Table_PI[[#This Row],[Input 4]],'Customer Information'!$AR$12,5,ROW()),\"No Rebate\"),\"No Rebate\"),0)","v":0},{"$f":"IF(Table_PI[[#This Row],[Hide:\nFormula Name]]<>\"\",IFERROR(IF(MeasureCalc(Table_PI[[#This Row],[Hide:\nFormula Name]],Table_PI[[#This Row],[Quantity]],Table_PI[[#This Row],[List 1]],Table_PI[[#This Row],[List 2]],Table_PI[[#This Row],[List 3]],Table_PI[[#This Row],[Size]],Table_PI[[#This Row],[Input 1]],Table_PI[[#This Row],[Input 2]],Table_PI[[#This Row],[Input 3]],Table_PI[[#This Row],[Input 4]],'Customer Information'!$AR$12,1,ROW())>0,MeasureCalc(Table_PI[[#This Row],[Hide:\nFormula Name]],Table_PI[[#This Row],[Quantity]],Table_PI[[#This Row],[List 1]],Table_PI[[#This Row],[List 2]],Table_PI[[#This Row],[List 3]],Table_PI[[#This Row],[Size]],Table_PI[[#This Row],[Input 1]],Table_PI[[#This Row],[Input 2]],Table_PI[[#This Row],[Input 3]],Table_PI[[#This Row],[Input 4]],'Customer Information'!$AR$12,6,ROW()),\"No Rebate\"),\"No Rebate\"),0)","v":0},{"$f":"IF(Table_PI[[#This Row],[Hide:\nFormula Name]]<>\"\",IFERROR(IF(MeasureCalc(Table_PI[[#This Row],[Hide:\nFormula Name]],Table_PI[[#This Row],[Quantity]],Table_PI[[#This Row],[List 1]],Table_PI[[#This Row],[List 2]],Table_PI[[#This Row],[List 3]],Table_PI[[#This Row],[Size]],Table_PI[[#This Row],[Input 1]],Table_PI[[#This Row],[Input 2]],Table_PI[[#This Row],[Input 3]],Table_PI[[#This Row],[Input 4]],'Customer Information'!$AR$12,1,ROW())>0,MeasureCalc(Table_PI[[#This Row],[Hide:\nFormula Name]],Table_PI[[#This Row],[Quantity]],Table_PI[[#This Row],[List 1]],Table_PI[[#This Row],[List 2]],Table_PI[[#This Row],[List 3]],Table_PI[[#This Row],[Size]],Table_PI[[#This Row],[Input 1]],Table_PI[[#This Row],[Input 2]],Table_PI[[#This Row],[Input 3]],Table_PI[[#This Row],[Input 4]],'Customer Information'!$AR$12,7,ROW()),\"No Rebate\"),\"No Rebate\"),0)","v":0},{"$f":"IF(Table_PI[[#This Row],[Hide:\nFormula Name]]<>\"\",IFERROR(IF(MeasureCalc(Table_PI[[#This Row],[Hide:\nFormula Name]],Table_PI[[#This Row],[Quantity]],Table_PI[[#This Row],[List 1]],Table_PI[[#This Row],[List 2]],Table_PI[[#This Row],[List 3]],Table_PI[[#This Row],[Size]],Table_PI[[#This Row],[Input 1]],Table_PI[[#This Row],[Input 2]],Table_PI[[#This Row],[Input 3]],Table_PI[[#This Row],[Input 4]],'Customer Information'!$AR$12,1,ROW())>0,MeasureCalc(Table_PI[[#This Row],[Hide:\nFormula Name]],Table_PI[[#This Row],[Quantity]],Table_PI[[#This Row],[List 1]],Table_PI[[#This Row],[List 2]],Table_PI[[#This Row],[List 3]],Table_PI[[#This Row],[Size]],Table_PI[[#This Row],[Input 1]],Table_PI[[#This Row],[Input 2]],Table_PI[[#This Row],[Input 3]],Table_PI[[#This Row],[Input 4]],'Customer Information'!$AR$12,8,ROW()),\"No Rebate\"),\"No Rebate\"),0)","v":0},{"$f":"IF(Table_PI[[#This Row],[Hide:\nFormula Name]]<>\"\",IF(AND(Table_PI[[#This Row],[Hide:\nFormula Name]]<>\"\",OR(Table_PI[[#This Row],[Rebate]]>0,Table_PI[[#This Row],[Rebate]]=\"No Rebate\")),TRUE,\"MI: Line Item \" & $A71),\"\")","v":""}]
[{"$f":"IF(Table_PI[[#This Row],[Hide:\nFormula Name]]<>\"\",MAX($A$2:A71)+1,\"\")","v":""},null,null,null,null,null,null,null,null,null,null,null,null,null,null,{"$f":"IFERROR(VLOOKUP(Table_PI[[#This Row],[Measure]],'Equipment Lookups'!$C$3:$D$23,2,FALSE),\"\")","v":""},{"$f":"IF(Table_PI[[#This Row],[Hide:\nFormula Name]]<>\"\",IFERROR(IF(MeasureCalc(Table_PI[[#This Row],[Hide:\nFormula Name]],Table_PI[[#This Row],[Quantity]],Table_PI[[#This Row],[List 1]],Table_PI[[#This Row],[List 2]],Table_PI[[#This Row],[List 3]],Table_PI[[#This Row],[Size]],Table_PI[[#This Row],[Input 1]],Table_PI[[#This Row],[Input 2]],Table_PI[[#This Row],[Input 3]],Table_PI[[#This Row],[Input 4]],'Customer Information'!$AR$12,1,ROW())>0,MeasureCalc(Table_PI[[#This Row],[Hide:\nFormula Name]],Table_PI[[#This Row],[Quantity]],Table_PI[[#This Row],[List 1]],Table_PI[[#This Row],[List 2]],Table_PI[[#This Row],[List 3]],Table_PI[[#This Row],[Size]],Table_PI[[#This Row],[Input 1]],Table_PI[[#This Row],[Input 2]],Table_PI[[#This Row],[Input 3]],Table_PI[[#This Row],[Input 4]],'Customer Information'!$AR$12,1,ROW()),\"No Rebate\"),\"No Rebate\"),0)","v":0},{"$f":"IF(Table_PI[[#This Row],[Hide:\nFormula Name]]<>\"\",IFERROR(IF(MeasureCalc(Table_PI[[#This Row],[Hide:\nFormula Name]],Table_PI[[#This Row],[Quantity]],Table_PI[[#This Row],[List 1]],Table_PI[[#This Row],[List 2]],Table_PI[[#This Row],[List 3]],Table_PI[[#This Row],[Size]],Table_PI[[#This Row],[Input 1]],Table_PI[[#This Row],[Input 2]],Table_PI[[#This Row],[Input 3]],Table_PI[[#This Row],[Input 4]],'Customer Information'!$AR$12,1,ROW())>0,MeasureCalc(Table_PI[[#This Row],[Hide:\nFormula Name]],Table_PI[[#This Row],[Quantity]],Table_PI[[#This Row],[List 1]],Table_PI[[#This Row],[List 2]],Table_PI[[#This Row],[List 3]],Table_PI[[#This Row],[Size]],Table_PI[[#This Row],[Input 1]],Table_PI[[#This Row],[Input 2]],Table_PI[[#This Row],[Input 3]],Table_PI[[#This Row],[Input 4]],'Customer Information'!$AR$12,2,ROW()),\"No Rebate\"),\"No Rebate\"),0)","v":0},{"$f":"IF(Table_PI[[#This Row],[Hide:\nFormula Name]]<>\"\",IFERROR(IF(MeasureCalc(Table_PI[[#This Row],[Hide:\nFormula Name]],Table_PI[[#This Row],[Quantity]],Table_PI[[#This Row],[List 1]],Table_PI[[#This Row],[List 2]],Table_PI[[#This Row],[List 3]],Table_PI[[#This Row],[Size]],Table_PI[[#This Row],[Input 1]],Table_PI[[#This Row],[Input 2]],Table_PI[[#This Row],[Input 3]],Table_PI[[#This Row],[Input 4]],'Customer Information'!$AR$12,1,ROW())>0,MeasureCalc(Table_PI[[#This Row],[Hide:\nFormula Name]],Table_PI[[#This Row],[Quantity]],Table_PI[[#This Row],[List 1]],Table_PI[[#This Row],[List 2]],Table_PI[[#This Row],[List 3]],Table_PI[[#This Row],[Size]],Table_PI[[#This Row],[Input 1]],Table_PI[[#This Row],[Input 2]],Table_PI[[#This Row],[Input 3]],Table_PI[[#This Row],[Input 4]],'Customer Information'!$AR$12,3,ROW()),\"No Rebate\"),\"No Rebate\"),0)","v":0},{"$f":"IF(Table_PI[[#This Row],[Hide:\nFormula Name]]<>\"\",IFERROR(IF(MeasureCalc(Table_PI[[#This Row],[Hide:\nFormula Name]],Table_PI[[#This Row],[Quantity]],Table_PI[[#This Row],[List 1]],Table_PI[[#This Row],[List 2]],Table_PI[[#This Row],[List 3]],Table_PI[[#This Row],[Size]],Table_PI[[#This Row],[Input 1]],Table_PI[[#This Row],[Input 2]],Table_PI[[#This Row],[Input 3]],Table_PI[[#This Row],[Input 4]],'Customer Information'!$AR$12,1,ROW())>0,MeasureCalc(Table_PI[[#This Row],[Hide:\nFormula Name]],Table_PI[[#This Row],[Quantity]],Table_PI[[#This Row],[List 1]],Table_PI[[#This Row],[List 2]],Table_PI[[#This Row],[List 3]],Table_PI[[#This Row],[Size]],Table_PI[[#This Row],[Input 1]],Table_PI[[#This Row],[Input 2]],Table_PI[[#This Row],[Input 3]],Table_PI[[#This Row],[Input 4]],'Customer Information'!$AR$12,4,ROW()),\"No Rebate\"),\"No Rebate\"),0)","v":0},{"$f":"IF(Table_PI[[#This Row],[Hide:\nFormula Name]]<>\"\",IFERROR(IF(MeasureCalc(Table_PI[[#This Row],[Hide:\nFormula Name]],Table_PI[[#This Row],[Quantity]],Table_PI[[#This Row],[List 1]],Table_PI[[#This Row],[List 2]],Table_PI[[#This Row],[List 3]],Table_PI[[#This Row],[Size]],Table_PI[[#This Row],[Input 1]],Table_PI[[#This Row],[Input 2]],Table_PI[[#This Row],[Input 3]],Table_PI[[#This Row],[Input 4]],'Customer Information'!$AR$12,1,ROW())>0,MeasureCalc(Table_PI[[#This Row],[Hide:\nFormula Name]],Table_PI[[#This Row],[Quantity]],Table_PI[[#This Row],[List 1]],Table_PI[[#This Row],[List 2]],Table_PI[[#This Row],[List 3]],Table_PI[[#This Row],[Size]],Table_PI[[#This Row],[Input 1]],Table_PI[[#This Row],[Input 2]],Table_PI[[#This Row],[Input 3]],Table_PI[[#This Row],[Input 4]],'Customer Information'!$AR$12,5,ROW()),\"No Rebate\"),\"No Rebate\"),0)","v":0},{"$f":"IF(Table_PI[[#This Row],[Hide:\nFormula Name]]<>\"\",IFERROR(IF(MeasureCalc(Table_PI[[#This Row],[Hide:\nFormula Name]],Table_PI[[#This Row],[Quantity]],Table_PI[[#This Row],[List 1]],Table_PI[[#This Row],[List 2]],Table_PI[[#This Row],[List 3]],Table_PI[[#This Row],[Size]],Table_PI[[#This Row],[Input 1]],Table_PI[[#This Row],[Input 2]],Table_PI[[#This Row],[Input 3]],Table_PI[[#This Row],[Input 4]],'Customer Information'!$AR$12,1,ROW())>0,MeasureCalc(Table_PI[[#This Row],[Hide:\nFormula Name]],Table_PI[[#This Row],[Quantity]],Table_PI[[#This Row],[List 1]],Table_PI[[#This Row],[List 2]],Table_PI[[#This Row],[List 3]],Table_PI[[#This Row],[Size]],Table_PI[[#This Row],[Input 1]],Table_PI[[#This Row],[Input 2]],Table_PI[[#This Row],[Input 3]],Table_PI[[#This Row],[Input 4]],'Customer Information'!$AR$12,6,ROW()),\"No Rebate\"),\"No Rebate\"),0)","v":0},{"$f":"IF(Table_PI[[#This Row],[Hide:\nFormula Name]]<>\"\",IFERROR(IF(MeasureCalc(Table_PI[[#This Row],[Hide:\nFormula Name]],Table_PI[[#This Row],[Quantity]],Table_PI[[#This Row],[List 1]],Table_PI[[#This Row],[List 2]],Table_PI[[#This Row],[List 3]],Table_PI[[#This Row],[Size]],Table_PI[[#This Row],[Input 1]],Table_PI[[#This Row],[Input 2]],Table_PI[[#This Row],[Input 3]],Table_PI[[#This Row],[Input 4]],'Customer Information'!$AR$12,1,ROW())>0,MeasureCalc(Table_PI[[#This Row],[Hide:\nFormula Name]],Table_PI[[#This Row],[Quantity]],Table_PI[[#This Row],[List 1]],Table_PI[[#This Row],[List 2]],Table_PI[[#This Row],[List 3]],Table_PI[[#This Row],[Size]],Table_PI[[#This Row],[Input 1]],Table_PI[[#This Row],[Input 2]],Table_PI[[#This Row],[Input 3]],Table_PI[[#This Row],[Input 4]],'Customer Information'!$AR$12,7,ROW()),\"No Rebate\"),\"No Rebate\"),0)","v":0},{"$f":"IF(Table_PI[[#This Row],[Hide:\nFormula Name]]<>\"\",IFERROR(IF(MeasureCalc(Table_PI[[#This Row],[Hide:\nFormula Name]],Table_PI[[#This Row],[Quantity]],Table_PI[[#This Row],[List 1]],Table_PI[[#This Row],[List 2]],Table_PI[[#This Row],[List 3]],Table_PI[[#This Row],[Size]],Table_PI[[#This Row],[Input 1]],Table_PI[[#This Row],[Input 2]],Table_PI[[#This Row],[Input 3]],Table_PI[[#This Row],[Input 4]],'Customer Information'!$AR$12,1,ROW())>0,MeasureCalc(Table_PI[[#This Row],[Hide:\nFormula Name]],Table_PI[[#This Row],[Quantity]],Table_PI[[#This Row],[List 1]],Table_PI[[#This Row],[List 2]],Table_PI[[#This Row],[List 3]],Table_PI[[#This Row],[Size]],Table_PI[[#This Row],[Input 1]],Table_PI[[#This Row],[Input 2]],Table_PI[[#This Row],[Input 3]],Table_PI[[#This Row],[Input 4]],'Customer Information'!$AR$12,8,ROW()),\"No Rebate\"),\"No Rebate\"),0)","v":0},{"$f":"IF(Table_PI[[#This Row],[Hide:\nFormula Name]]<>\"\",IF(AND(Table_PI[[#This Row],[Hide:\nFormula Name]]<>\"\",OR(Table_PI[[#This Row],[Rebate]]>0,Table_PI[[#This Row],[Rebate]]=\"No Rebate\")),TRUE,\"MI: Line Item \" & $A72),\"\")","v":""}]
[{"$f":"IF(Table_PI[[#This Row],[Hide:\nFormula Name]]<>\"\",MAX($A$2:A72)+1,\"\")","v":""},null,null,null,null,null,null,null,null,null,null,null,null,null,null,{"$f":"IFERROR(VLOOKUP(Table_PI[[#This Row],[Measure]],'Equipment Lookups'!$C$3:$D$23,2,FALSE),\"\")","v":""},{"$f":"IF(Table_PI[[#This Row],[Hide:\nFormula Name]]<>\"\",IFERROR(IF(MeasureCalc(Table_PI[[#This Row],[Hide:\nFormula Name]],Table_PI[[#This Row],[Quantity]],Table_PI[[#This Row],[List 1]],Table_PI[[#This Row],[List 2]],Table_PI[[#This Row],[List 3]],Table_PI[[#This Row],[Size]],Table_PI[[#This Row],[Input 1]],Table_PI[[#This Row],[Input 2]],Table_PI[[#This Row],[Input 3]],Table_PI[[#This Row],[Input 4]],'Customer Information'!$AR$12,1,ROW())>0,MeasureCalc(Table_PI[[#This Row],[Hide:\nFormula Name]],Table_PI[[#This Row],[Quantity]],Table_PI[[#This Row],[List 1]],Table_PI[[#This Row],[List 2]],Table_PI[[#This Row],[List 3]],Table_PI[[#This Row],[Size]],Table_PI[[#This Row],[Input 1]],Table_PI[[#This Row],[Input 2]],Table_PI[[#This Row],[Input 3]],Table_PI[[#This Row],[Input 4]],'Customer Information'!$AR$12,1,ROW()),\"No Rebate\"),\"No Rebate\"),0)","v":0},{"$f":"IF(Table_PI[[#This Row],[Hide:\nFormula Name]]<>\"\",IFERROR(IF(MeasureCalc(Table_PI[[#This Row],[Hide:\nFormula Name]],Table_PI[[#This Row],[Quantity]],Table_PI[[#This Row],[List 1]],Table_PI[[#This Row],[List 2]],Table_PI[[#This Row],[List 3]],Table_PI[[#This Row],[Size]],Table_PI[[#This Row],[Input 1]],Table_PI[[#This Row],[Input 2]],Table_PI[[#This Row],[Input 3]],Table_PI[[#This Row],[Input 4]],'Customer Information'!$AR$12,1,ROW())>0,MeasureCalc(Table_PI[[#This Row],[Hide:\nFormula Name]],Table_PI[[#This Row],[Quantity]],Table_PI[[#This Row],[List 1]],Table_PI[[#This Row],[List 2]],Table_PI[[#This Row],[List 3]],Table_PI[[#This Row],[Size]],Table_PI[[#This Row],[Input 1]],Table_PI[[#This Row],[Input 2]],Table_PI[[#This Row],[Input 3]],Table_PI[[#This Row],[Input 4]],'Customer Information'!$AR$12,2,ROW()),\"No Rebate\"),\"No Rebate\"),0)","v":0},{"$f":"IF(Table_PI[[#This Row],[Hide:\nFormula Name]]<>\"\",IFERROR(IF(MeasureCalc(Table_PI[[#This Row],[Hide:\nFormula Name]],Table_PI[[#This Row],[Quantity]],Table_PI[[#This Row],[List 1]],Table_PI[[#This Row],[List 2]],Table_PI[[#This Row],[List 3]],Table_PI[[#This Row],[Size]],Table_PI[[#This Row],[Input 1]],Table_PI[[#This Row],[Input 2]],Table_PI[[#This Row],[Input 3]],Table_PI[[#This Row],[Input 4]],'Customer Information'!$AR$12,1,ROW())>0,MeasureCalc(Table_PI[[#This Row],[Hide:\nFormula Name]],Table_PI[[#This Row],[Quantity]],Table_PI[[#This Row],[List 1]],Table_PI[[#This Row],[List 2]],Table_PI[[#This Row],[List 3]],Table_PI[[#This Row],[Size]],Table_PI[[#This Row],[Input 1]],Table_PI[[#This Row],[Input 2]],Table_PI[[#This Row],[Input 3]],Table_PI[[#This Row],[Input 4]],'Customer Information'!$AR$12,3,ROW()),\"No Rebate\"),\"No Rebate\"),0)","v":0},{"$f":"IF(Table_PI[[#This Row],[Hide:\nFormula Name]]<>\"\",IFERROR(IF(MeasureCalc(Table_PI[[#This Row],[Hide:\nFormula Name]],Table_PI[[#This Row],[Quantity]],Table_PI[[#This Row],[List 1]],Table_PI[[#This Row],[List 2]],Table_PI[[#This Row],[List 3]],Table_PI[[#This Row],[Size]],Table_PI[[#This Row],[Input 1]],Table_PI[[#This Row],[Input 2]],Table_PI[[#This Row],[Input 3]],Table_PI[[#This Row],[Input 4]],'Customer Information'!$AR$12,1,ROW())>0,MeasureCalc(Table_PI[[#This Row],[Hide:\nFormula Name]],Table_PI[[#This Row],[Quantity]],Table_PI[[#This Row],[List 1]],Table_PI[[#This Row],[List 2]],Table_PI[[#This Row],[List 3]],Table_PI[[#This Row],[Size]],Table_PI[[#This Row],[Input 1]],Table_PI[[#This Row],[Input 2]],Table_PI[[#This Row],[Input 3]],Table_PI[[#This Row],[Input 4]],'Customer Information'!$AR$12,4,ROW()),\"No Rebate\"),\"No Rebate\"),0)","v":0},{"$f":"IF(Table_PI[[#This Row],[Hide:\nFormula Name]]<>\"\",IFERROR(IF(MeasureCalc(Table_PI[[#This Row],[Hide:\nFormula Name]],Table_PI[[#This Row],[Quantity]],Table_PI[[#This Row],[List 1]],Table_PI[[#This Row],[List 2]],Table_PI[[#This Row],[List 3]],Table_PI[[#This Row],[Size]],Table_PI[[#This Row],[Input 1]],Table_PI[[#This Row],[Input 2]],Table_PI[[#This Row],[Input 3]],Table_PI[[#This Row],[Input 4]],'Customer Information'!$AR$12,1,ROW())>0,MeasureCalc(Table_PI[[#This Row],[Hide:\nFormula Name]],Table_PI[[#This Row],[Quantity]],Table_PI[[#This Row],[List 1]],Table_PI[[#This Row],[List 2]],Table_PI[[#This Row],[List 3]],Table_PI[[#This Row],[Size]],Table_PI[[#This Row],[Input 1]],Table_PI[[#This Row],[Input 2]],Table_PI[[#This Row],[Input 3]],Table_PI[[#This Row],[Input 4]],'Customer Information'!$AR$12,5,ROW()),\"No Rebate\"),\"No Rebate\"),0)","v":0},{"$f":"IF(Table_PI[[#This Row],[Hide:\nFormula Name]]<>\"\",IFERROR(IF(MeasureCalc(Table_PI[[#This Row],[Hide:\nFormula Name]],Table_PI[[#This Row],[Quantity]],Table_PI[[#This Row],[List 1]],Table_PI[[#This Row],[List 2]],Table_PI[[#This Row],[List 3]],Table_PI[[#This Row],[Size]],Table_PI[[#This Row],[Input 1]],Table_PI[[#This Row],[Input 2]],Table_PI[[#This Row],[Input 3]],Table_PI[[#This Row],[Input 4]],'Customer Information'!$AR$12,1,ROW())>0,MeasureCalc(Table_PI[[#This Row],[Hide:\nFormula Name]],Table_PI[[#This Row],[Quantity]],Table_PI[[#This Row],[List 1]],Table_PI[[#This Row],[List 2]],Table_PI[[#This Row],[List 3]],Table_PI[[#This Row],[Size]],Table_PI[[#This Row],[Input 1]],Table_PI[[#This Row],[Input 2]],Table_PI[[#This Row],[Input 3]],Table_PI[[#This Row],[Input 4]],'Customer Information'!$AR$12,6,ROW()),\"No Rebate\"),\"No Rebate\"),0)","v":0},{"$f":"IF(Table_PI[[#This Row],[Hide:\nFormula Name]]<>\"\",IFERROR(IF(MeasureCalc(Table_PI[[#This Row],[Hide:\nFormula Name]],Table_PI[[#This Row],[Quantity]],Table_PI[[#This Row],[List 1]],Table_PI[[#This Row],[List 2]],Table_PI[[#This Row],[List 3]],Table_PI[[#This Row],[Size]],Table_PI[[#This Row],[Input 1]],Table_PI[[#This Row],[Input 2]],Table_PI[[#This Row],[Input 3]],Table_PI[[#This Row],[Input 4]],'Customer Information'!$AR$12,1,ROW())>0,MeasureCalc(Table_PI[[#This Row],[Hide:\nFormula Name]],Table_PI[[#This Row],[Quantity]],Table_PI[[#This Row],[List 1]],Table_PI[[#This Row],[List 2]],Table_PI[[#This Row],[List 3]],Table_PI[[#This Row],[Size]],Table_PI[[#This Row],[Input 1]],Table_PI[[#This Row],[Input 2]],Table_PI[[#This Row],[Input 3]],Table_PI[[#This Row],[Input 4]],'Customer Information'!$AR$12,7,ROW()),\"No Rebate\"),\"No Rebate\"),0)","v":0},{"$f":"IF(Table_PI[[#This Row],[Hide:\nFormula Name]]<>\"\",IFERROR(IF(MeasureCalc(Table_PI[[#This Row],[Hide:\nFormula Name]],Table_PI[[#This Row],[Quantity]],Table_PI[[#This Row],[List 1]],Table_PI[[#This Row],[List 2]],Table_PI[[#This Row],[List 3]],Table_PI[[#This Row],[Size]],Table_PI[[#This Row],[Input 1]],Table_PI[[#This Row],[Input 2]],Table_PI[[#This Row],[Input 3]],Table_PI[[#This Row],[Input 4]],'Customer Information'!$AR$12,1,ROW())>0,MeasureCalc(Table_PI[[#This Row],[Hide:\nFormula Name]],Table_PI[[#This Row],[Quantity]],Table_PI[[#This Row],[List 1]],Table_PI[[#This Row],[List 2]],Table_PI[[#This Row],[List 3]],Table_PI[[#This Row],[Size]],Table_PI[[#This Row],[Input 1]],Table_PI[[#This Row],[Input 2]],Table_PI[[#This Row],[Input 3]],Table_PI[[#This Row],[Input 4]],'Customer Information'!$AR$12,8,ROW()),\"No Rebate\"),\"No Rebate\"),0)","v":0},{"$f":"IF(Table_PI[[#This Row],[Hide:\nFormula Name]]<>\"\",IF(AND(Table_PI[[#This Row],[Hide:\nFormula Name]]<>\"\",OR(Table_PI[[#This Row],[Rebate]]>0,Table_PI[[#This Row],[Rebate]]=\"No Rebate\")),TRUE,\"MI: Line Item \" & $A73),\"\")","v":""}]
[{"$f":"IF(Table_PI[[#This Row],[Hide:\nFormula Name]]<>\"\",MAX($A$2:A73)+1,\"\")","v":""},null,null,null,null,null,null,null,null,null,null,null,null,null,null,{"$f":"IFERROR(VLOOKUP(Table_PI[[#This Row],[Measure]],'Equipment Lookups'!$C$3:$D$23,2,FALSE),\"\")","v":""},{"$f":"IF(Table_PI[[#This Row],[Hide:\nFormula Name]]<>\"\",IFERROR(IF(MeasureCalc(Table_PI[[#This Row],[Hide:\nFormula Name]],Table_PI[[#This Row],[Quantity]],Table_PI[[#This Row],[List 1]],Table_PI[[#This Row],[List 2]],Table_PI[[#This Row],[List 3]],Table_PI[[#This Row],[Size]],Table_PI[[#This Row],[Input 1]],Table_PI[[#This Row],[Input 2]],Table_PI[[#This Row],[Input 3]],Table_PI[[#This Row],[Input 4]],'Customer Information'!$AR$12,1,ROW())>0,MeasureCalc(Table_PI[[#This Row],[Hide:\nFormula Name]],Table_PI[[#This Row],[Quantity]],Table_PI[[#This Row],[List 1]],Table_PI[[#This Row],[List 2]],Table_PI[[#This Row],[List 3]],Table_PI[[#This Row],[Size]],Table_PI[[#This Row],[Input 1]],Table_PI[[#This Row],[Input 2]],Table_PI[[#This Row],[Input 3]],Table_PI[[#This Row],[Input 4]],'Customer Information'!$AR$12,1,ROW()),\"No Rebate\"),\"No Rebate\"),0)","v":0},{"$f":"IF(Table_PI[[#This Row],[Hide:\nFormula Name]]<>\"\",IFERROR(IF(MeasureCalc(Table_PI[[#This Row],[Hide:\nFormula Name]],Table_PI[[#This Row],[Quantity]],Table_PI[[#This Row],[List 1]],Table_PI[[#This Row],[List 2]],Table_PI[[#This Row],[List 3]],Table_PI[[#This Row],[Size]],Table_PI[[#This Row],[Input 1]],Table_PI[[#This Row],[Input 2]],Table_PI[[#This Row],[Input 3]],Table_PI[[#This Row],[Input 4]],'Customer Information'!$AR$12,1,ROW())>0,MeasureCalc(Table_PI[[#This Row],[Hide:\nFormula Name]],Table_PI[[#This Row],[Quantity]],Table_PI[[#This Row],[List 1]],Table_PI[[#This Row],[List 2]],Table_PI[[#This Row],[List 3]],Table_PI[[#This Row],[Size]],Table_PI[[#This Row],[Input 1]],Table_PI[[#This Row],[Input 2]],Table_PI[[#This Row],[Input 3]],Table_PI[[#This Row],[Input 4]],'Customer Information'!$AR$12,2,ROW()),\"No Rebate\"),\"No Rebate\"),0)","v":0},{"$f":"IF(Table_PI[[#This Row],[Hide:\nFormula Name]]<>\"\",IFERROR(IF(MeasureCalc(Table_PI[[#This Row],[Hide:\nFormula Name]],Table_PI[[#This Row],[Quantity]],Table_PI[[#This Row],[List 1]],Table_PI[[#This Row],[List 2]],Table_PI[[#This Row],[List 3]],Table_PI[[#This Row],[Size]],Table_PI[[#This Row],[Input 1]],Table_PI[[#This Row],[Input 2]],Table_PI[[#This Row],[Input 3]],Table_PI[[#This Row],[Input 4]],'Customer Information'!$AR$12,1,ROW())>0,MeasureCalc(Table_PI[[#This Row],[Hide:\nFormula Name]],Table_PI[[#This Row],[Quantity]],Table_PI[[#This Row],[List 1]],Table_PI[[#This Row],[List 2]],Table_PI[[#This Row],[List 3]],Table_PI[[#This Row],[Size]],Table_PI[[#This Row],[Input 1]],Table_PI[[#This Row],[Input 2]],Table_PI[[#This Row],[Input 3]],Table_PI[[#This Row],[Input 4]],'Customer Information'!$AR$12,3,ROW()),\"No Rebate\"),\"No Rebate\"),0)","v":0},{"$f":"IF(Table_PI[[#This Row],[Hide:\nFormula Name]]<>\"\",IFERROR(IF(MeasureCalc(Table_PI[[#This Row],[Hide:\nFormula Name]],Table_PI[[#This Row],[Quantity]],Table_PI[[#This Row],[List 1]],Table_PI[[#This Row],[List 2]],Table_PI[[#This Row],[List 3]],Table_PI[[#This Row],[Size]],Table_PI[[#This Row],[Input 1]],Table_PI[[#This Row],[Input 2]],Table_PI[[#This Row],[Input 3]],Table_PI[[#This Row],[Input 4]],'Customer Information'!$AR$12,1,ROW())>0,MeasureCalc(Table_PI[[#This Row],[Hide:\nFormula Name]],Table_PI[[#This Row],[Quantity]],Table_PI[[#This Row],[List 1]],Table_PI[[#This Row],[List 2]],Table_PI[[#This Row],[List 3]],Table_PI[[#This Row],[Size]],Table_PI[[#This Row],[Input 1]],Table_PI[[#This Row],[Input 2]],Table_PI[[#This Row],[Input 3]],Table_PI[[#This Row],[Input 4]],'Customer Information'!$AR$12,4,ROW()),\"No Rebate\"),\"No Rebate\"),0)","v":0},{"$f":"IF(Table_PI[[#This Row],[Hide:\nFormula Name]]<>\"\",IFERROR(IF(MeasureCalc(Table_PI[[#This Row],[Hide:\nFormula Name]],Table_PI[[#This Row],[Quantity]],Table_PI[[#This Row],[List 1]],Table_PI[[#This Row],[List 2]],Table_PI[[#This Row],[List 3]],Table_PI[[#This Row],[Size]],Table_PI[[#This Row],[Input 1]],Table_PI[[#This Row],[Input 2]],Table_PI[[#This Row],[Input 3]],Table_PI[[#This Row],[Input 4]],'Customer Information'!$AR$12,1,ROW())>0,MeasureCalc(Table_PI[[#This Row],[Hide:\nFormula Name]],Table_PI[[#This Row],[Quantity]],Table_PI[[#This Row],[List 1]],Table_PI[[#This Row],[List 2]],Table_PI[[#This Row],[List 3]],Table_PI[[#This Row],[Size]],Table_PI[[#This Row],[Input 1]],Table_PI[[#This Row],[Input 2]],Table_PI[[#This Row],[Input 3]],Table_PI[[#This Row],[Input 4]],'Customer Information'!$AR$12,5,ROW()),\"No Rebate\"),\"No Rebate\"),0)","v":0},{"$f":"IF(Table_PI[[#This Row],[Hide:\nFormula Name]]<>\"\",IFERROR(IF(MeasureCalc(Table_PI[[#This Row],[Hide:\nFormula Name]],Table_PI[[#This Row],[Quantity]],Table_PI[[#This Row],[List 1]],Table_PI[[#This Row],[List 2]],Table_PI[[#This Row],[List 3]],Table_PI[[#This Row],[Size]],Table_PI[[#This Row],[Input 1]],Table_PI[[#This Row],[Input 2]],Table_PI[[#This Row],[Input 3]],Table_PI[[#This Row],[Input 4]],'Customer Information'!$AR$12,1,ROW())>0,MeasureCalc(Table_PI[[#This Row],[Hide:\nFormula Name]],Table_PI[[#This Row],[Quantity]],Table_PI[[#This Row],[List 1]],Table_PI[[#This Row],[List 2]],Table_PI[[#This Row],[List 3]],Table_PI[[#This Row],[Size]],Table_PI[[#This Row],[Input 1]],Table_PI[[#This Row],[Input 2]],Table_PI[[#This Row],[Input 3]],Table_PI[[#This Row],[Input 4]],'Customer Information'!$AR$12,6,ROW()),\"No Rebate\"),\"No Rebate\"),0)","v":0},{"$f":"IF(Table_PI[[#This Row],[Hide:\nFormula Name]]<>\"\",IFERROR(IF(MeasureCalc(Table_PI[[#This Row],[Hide:\nFormula Name]],Table_PI[[#This Row],[Quantity]],Table_PI[[#This Row],[List 1]],Table_PI[[#This Row],[List 2]],Table_PI[[#This Row],[List 3]],Table_PI[[#This Row],[Size]],Table_PI[[#This Row],[Input 1]],Table_PI[[#This Row],[Input 2]],Table_PI[[#This Row],[Input 3]],Table_PI[[#This Row],[Input 4]],'Customer Information'!$AR$12,1,ROW())>0,MeasureCalc(Table_PI[[#This Row],[Hide:\nFormula Name]],Table_PI[[#This Row],[Quantity]],Table_PI[[#This Row],[List 1]],Table_PI[[#This Row],[List 2]],Table_PI[[#This Row],[List 3]],Table_PI[[#This Row],[Size]],Table_PI[[#This Row],[Input 1]],Table_PI[[#This Row],[Input 2]],Table_PI[[#This Row],[Input 3]],Table_PI[[#This Row],[Input 4]],'Customer Information'!$AR$12,7,ROW()),\"No Rebate\"),\"No Rebate\"),0)","v":0},{"$f":"IF(Table_PI[[#This Row],[Hide:\nFormula Name]]<>\"\",IFERROR(IF(MeasureCalc(Table_PI[[#This Row],[Hide:\nFormula Name]],Table_PI[[#This Row],[Quantity]],Table_PI[[#This Row],[List 1]],Table_PI[[#This Row],[List 2]],Table_PI[[#This Row],[List 3]],Table_PI[[#This Row],[Size]],Table_PI[[#This Row],[Input 1]],Table_PI[[#This Row],[Input 2]],Table_PI[[#This Row],[Input 3]],Table_PI[[#This Row],[Input 4]],'Customer Information'!$AR$12,1,ROW())>0,MeasureCalc(Table_PI[[#This Row],[Hide:\nFormula Name]],Table_PI[[#This Row],[Quantity]],Table_PI[[#This Row],[List 1]],Table_PI[[#This Row],[List 2]],Table_PI[[#This Row],[List 3]],Table_PI[[#This Row],[Size]],Table_PI[[#This Row],[Input 1]],Table_PI[[#This Row],[Input 2]],Table_PI[[#This Row],[Input 3]],Table_PI[[#This Row],[Input 4]],'Customer Information'!$AR$12,8,ROW()),\"No Rebate\"),\"No Rebate\"),0)","v":0},{"$f":"IF(Table_PI[[#This Row],[Hide:\nFormula Name]]<>\"\",IF(AND(Table_PI[[#This Row],[Hide:\nFormula Name]]<>\"\",OR(Table_PI[[#This Row],[Rebate]]>0,Table_PI[[#This Row],[Rebate]]=\"No Rebate\")),TRUE,\"MI: Line Item \" & $A74),\"\")","v":""}]
[{"$f":"IF(Table_PI[[#This Row],[Hide:\nFormula Name]]<>\"\",MAX($A$2:A74)+1,\"\")","v":""},null,null,null,null,null,null,null,null,null,null,null,null,null,null,{"$f":"IFERROR(VLOOKUP(Table_PI[[#This Row],[Measure]],'Equipment Lookups'!$C$3:$D$23,2,FALSE),\"\")","v":""},{"$f":"IF(Table_PI[[#This Row],[Hide:\nFormula Name]]<>\"\",IFERROR(IF(MeasureCalc(Table_PI[[#This Row],[Hide:\nFormula Name]],Table_PI[[#This Row],[Quantity]],Table_PI[[#This Row],[List 1]],Table_PI[[#This Row],[List 2]],Table_PI[[#This Row],[List 3]],Table_PI[[#This Row],[Size]],Table_PI[[#This Row],[Input 1]],Table_PI[[#This Row],[Input 2]],Table_PI[[#This Row],[Input 3]],Table_PI[[#This Row],[Input 4]],'Customer Information'!$AR$12,1,ROW())>0,MeasureCalc(Table_PI[[#This Row],[Hide:\nFormula Name]],Table_PI[[#This Row],[Quantity]],Table_PI[[#This Row],[List 1]],Table_PI[[#This Row],[List 2]],Table_PI[[#This Row],[List 3]],Table_PI[[#This Row],[Size]],Table_PI[[#This Row],[Input 1]],Table_PI[[#This Row],[Input 2]],Table_PI[[#This Row],[Input 3]],Table_PI[[#This Row],[Input 4]],'Customer Information'!$AR$12,1,ROW()),\"No Rebate\"),\"No Rebate\"),0)","v":0},{"$f":"IF(Table_PI[[#This Row],[Hide:\nFormula Name]]<>\"\",IFERROR(IF(MeasureCalc(Table_PI[[#This Row],[Hide:\nFormula Name]],Table_PI[[#This Row],[Quantity]],Table_PI[[#This Row],[List 1]],Table_PI[[#This Row],[List 2]],Table_PI[[#This Row],[List 3]],Table_PI[[#This Row],[Size]],Table_PI[[#This Row],[Input 1]],Table_PI[[#This Row],[Input 2]],Table_PI[[#This Row],[Input 3]],Table_PI[[#This Row],[Input 4]],'Customer Information'!$AR$12,1,ROW())>0,MeasureCalc(Table_PI[[#This Row],[Hide:\nFormula Name]],Table_PI[[#This Row],[Quantity]],Table_PI[[#This Row],[List 1]],Table_PI[[#This Row],[List 2]],Table_PI[[#This Row],[List 3]],Table_PI[[#This Row],[Size]],Table_PI[[#This Row],[Input 1]],Table_PI[[#This Row],[Input 2]],Table_PI[[#This Row],[Input 3]],Table_PI[[#This Row],[Input 4]],'Customer Information'!$AR$12,2,ROW()),\"No Rebate\"),\"No Rebate\"),0)","v":0},{"$f":"IF(Table_PI[[#This Row],[Hide:\nFormula Name]]<>\"\",IFERROR(IF(MeasureCalc(Table_PI[[#This Row],[Hide:\nFormula Name]],Table_PI[[#This Row],[Quantity]],Table_PI[[#This Row],[List 1]],Table_PI[[#This Row],[List 2]],Table_PI[[#This Row],[List 3]],Table_PI[[#This Row],[Size]],Table_PI[[#This Row],[Input 1]],Table_PI[[#This Row],[Input 2]],Table_PI[[#This Row],[Input 3]],Table_PI[[#This Row],[Input 4]],'Customer Information'!$AR$12,1,ROW())>0,MeasureCalc(Table_PI[[#This Row],[Hide:\nFormula Name]],Table_PI[[#This Row],[Quantity]],Table_PI[[#This Row],[List 1]],Table_PI[[#This Row],[List 2]],Table_PI[[#This Row],[List 3]],Table_PI[[#This Row],[Size]],Table_PI[[#This Row],[Input 1]],Table_PI[[#This Row],[Input 2]],Table_PI[[#This Row],[Input 3]],Table_PI[[#This Row],[Input 4]],'Customer Information'!$AR$12,3,ROW()),\"No Rebate\"),\"No Rebate\"),0)","v":0},{"$f":"IF(Table_PI[[#This Row],[Hide:\nFormula Name]]<>\"\",IFERROR(IF(MeasureCalc(Table_PI[[#This Row],[Hide:\nFormula Name]],Table_PI[[#This Row],[Quantity]],Table_PI[[#This Row],[List 1]],Table_PI[[#This Row],[List 2]],Table_PI[[#This Row],[List 3]],Table_PI[[#This Row],[Size]],Table_PI[[#This Row],[Input 1]],Table_PI[[#This Row],[Input 2]],Table_PI[[#This Row],[Input 3]],Table_PI[[#This Row],[Input 4]],'Customer Information'!$AR$12,1,ROW())>0,MeasureCalc(Table_PI[[#This Row],[Hide:\nFormula Name]],Table_PI[[#This Row],[Quantity]],Table_PI[[#This Row],[List 1]],Table_PI[[#This Row],[List 2]],Table_PI[[#This Row],[List 3]],Table_PI[[#This Row],[Size]],Table_PI[[#This Row],[Input 1]],Table_PI[[#This Row],[Input 2]],Table_PI[[#This Row],[Input 3]],Table_PI[[#This Row],[Input 4]],'Customer Information'!$AR$12,4,ROW()),\"No Rebate\"),\"No Rebate\"),0)","v":0},{"$f":"IF(Table_PI[[#This Row],[Hide:\nFormula Name]]<>\"\",IFERROR(IF(MeasureCalc(Table_PI[[#This Row],[Hide:\nFormula Name]],Table_PI[[#This Row],[Quantity]],Table_PI[[#This Row],[List 1]],Table_PI[[#This Row],[List 2]],Table_PI[[#This Row],[List 3]],Table_PI[[#This Row],[Size]],Table_PI[[#This Row],[Input 1]],Table_PI[[#This Row],[Input 2]],Table_PI[[#This Row],[Input 3]],Table_PI[[#This Row],[Input 4]],'Customer Information'!$AR$12,1,ROW())>0,MeasureCalc(Table_PI[[#This Row],[Hide:\nFormula Name]],Table_PI[[#This Row],[Quantity]],Table_PI[[#This Row],[List 1]],Table_PI[[#This Row],[List 2]],Table_PI[[#This Row],[List 3]],Table_PI[[#This Row],[Size]],Table_PI[[#This Row],[Input 1]],Table_PI[[#This Row],[Input 2]],Table_PI[[#This Row],[Input 3]],Table_PI[[#This Row],[Input 4]],'Customer Information'!$AR$12,5,ROW()),\"No Rebate\"),\"No Rebate\"),0)","v":0},{"$f":"IF(Table_PI[[#This Row],[Hide:\nFormula Name]]<>\"\",IFERROR(IF(MeasureCalc(Table_PI[[#This Row],[Hide:\nFormula Name]],Table_PI[[#This Row],[Quantity]],Table_PI[[#This Row],[List 1]],Table_PI[[#This Row],[List 2]],Table_PI[[#This Row],[List 3]],Table_PI[[#This Row],[Size]],Table_PI[[#This Row],[Input 1]],Table_PI[[#This Row],[Input 2]],Table_PI[[#This Row],[Input 3]],Table_PI[[#This Row],[Input 4]],'Customer Information'!$AR$12,1,ROW())>0,MeasureCalc(Table_PI[[#This Row],[Hide:\nFormula Name]],Table_PI[[#This Row],[Quantity]],Table_PI[[#This Row],[List 1]],Table_PI[[#This Row],[List 2]],Table_PI[[#This Row],[List 3]],Table_PI[[#This Row],[Size]],Table_PI[[#This Row],[Input 1]],Table_PI[[#This Row],[Input 2]],Table_PI[[#This Row],[Input 3]],Table_PI[[#This Row],[Input 4]],'Customer Information'!$AR$12,6,ROW()),\"No Rebate\"),\"No Rebate\"),0)","v":0},{"$f":"IF(Table_PI[[#This Row],[Hide:\nFormula Name]]<>\"\",IFERROR(IF(MeasureCalc(Table_PI[[#This Row],[Hide:\nFormula Name]],Table_PI[[#This Row],[Quantity]],Table_PI[[#This Row],[List 1]],Table_PI[[#This Row],[List 2]],Table_PI[[#This Row],[List 3]],Table_PI[[#This Row],[Size]],Table_PI[[#This Row],[Input 1]],Table_PI[[#This Row],[Input 2]],Table_PI[[#This Row],[Input 3]],Table_PI[[#This Row],[Input 4]],'Customer Information'!$AR$12,1,ROW())>0,MeasureCalc(Table_PI[[#This Row],[Hide:\nFormula Name]],Table_PI[[#This Row],[Quantity]],Table_PI[[#This Row],[List 1]],Table_PI[[#This Row],[List 2]],Table_PI[[#This Row],[List 3]],Table_PI[[#This Row],[Size]],Table_PI[[#This Row],[Input 1]],Table_PI[[#This Row],[Input 2]],Table_PI[[#This Row],[Input 3]],Table_PI[[#This Row],[Input 4]],'Customer Information'!$AR$12,7,ROW()),\"No Rebate\"),\"No Rebate\"),0)","v":0},{"$f":"IF(Table_PI[[#This Row],[Hide:\nFormula Name]]<>\"\",IFERROR(IF(MeasureCalc(Table_PI[[#This Row],[Hide:\nFormula Name]],Table_PI[[#This Row],[Quantity]],Table_PI[[#This Row],[List 1]],Table_PI[[#This Row],[List 2]],Table_PI[[#This Row],[List 3]],Table_PI[[#This Row],[Size]],Table_PI[[#This Row],[Input 1]],Table_PI[[#This Row],[Input 2]],Table_PI[[#This Row],[Input 3]],Table_PI[[#This Row],[Input 4]],'Customer Information'!$AR$12,1,ROW())>0,MeasureCalc(Table_PI[[#This Row],[Hide:\nFormula Name]],Table_PI[[#This Row],[Quantity]],Table_PI[[#This Row],[List 1]],Table_PI[[#This Row],[List 2]],Table_PI[[#This Row],[List 3]],Table_PI[[#This Row],[Size]],Table_PI[[#This Row],[Input 1]],Table_PI[[#This Row],[Input 2]],Table_PI[[#This Row],[Input 3]],Table_PI[[#This Row],[Input 4]],'Customer Information'!$AR$12,8,ROW()),\"No Rebate\"),\"No Rebate\"),0)","v":0},{"$f":"IF(Table_PI[[#This Row],[Hide:\nFormula Name]]<>\"\",IF(AND(Table_PI[[#This Row],[Hide:\nFormula Name]]<>\"\",OR(Table_PI[[#This Row],[Rebate]]>0,Table_PI[[#This Row],[Rebate]]=\"No Rebate\")),TRUE,\"MI: Line Item \" & $A75),\"\")","v":""}]
[{"$f":"IF(Table_PI[[#This Row],[Hide:\nFormula Name]]<>\"\",MAX($A$2:A75)+1,\"\")","v":""},null,null,null,null,null,null,null,null,null,null,null,null,null,null,{"$f":"IFERROR(VLOOKUP(Table_PI[[#This Row],[Measure]],'Equipment Lookups'!$C$3:$D$23,2,FALSE),\"\")","v":""},{"$f":"IF(Table_PI[[#This Row],[Hide:\nFormula Name]]<>\"\",IFERROR(IF(MeasureCalc(Table_PI[[#This Row],[Hide:\nFormula Name]],Table_PI[[#This Row],[Quantity]],Table_PI[[#This Row],[List 1]],Table_PI[[#This Row],[List 2]],Table_PI[[#This Row],[List 3]],Table_PI[[#This Row],[Size]],Table_PI[[#This Row],[Input 1]],Table_PI[[#This Row],[Input 2]],Table_PI[[#This Row],[Input 3]],Table_PI[[#This Row],[Input 4]],'Customer Information'!$AR$12,1,ROW())>0,MeasureCalc(Table_PI[[#This Row],[Hide:\nFormula Name]],Table_PI[[#This Row],[Quantity]],Table_PI[[#This Row],[List 1]],Table_PI[[#This Row],[List 2]],Table_PI[[#This Row],[List 3]],Table_PI[[#This Row],[Size]],Table_PI[[#This Row],[Input 1]],Table_PI[[#This Row],[Input 2]],Table_PI[[#This Row],[Input 3]],Table_PI[[#This Row],[Input 4]],'Customer Information'!$AR$12,1,ROW()),\"No Rebate\"),\"No Rebate\"),0)","v":0},{"$f":"IF(Table_PI[[#This Row],[Hide:\nFormula Name]]<>\"\",IFERROR(IF(MeasureCalc(Table_PI[[#This Row],[Hide:\nFormula Name]],Table_PI[[#This Row],[Quantity]],Table_PI[[#This Row],[List 1]],Table_PI[[#This Row],[List 2]],Table_PI[[#This Row],[List 3]],Table_PI[[#This Row],[Size]],Table_PI[[#This Row],[Input 1]],Table_PI[[#This Row],[Input 2]],Table_PI[[#This Row],[Input 3]],Table_PI[[#This Row],[Input 4]],'Customer Information'!$AR$12,1,ROW())>0,MeasureCalc(Table_PI[[#This Row],[Hide:\nFormula Name]],Table_PI[[#This Row],[Quantity]],Table_PI[[#This Row],[List 1]],Table_PI[[#This Row],[List 2]],Table_PI[[#This Row],[List 3]],Table_PI[[#This Row],[Size]],Table_PI[[#This Row],[Input 1]],Table_PI[[#This Row],[Input 2]],Table_PI[[#This Row],[Input 3]],Table_PI[[#This Row],[Input 4]],'Customer Information'!$AR$12,2,ROW()),\"No Rebate\"),\"No Rebate\"),0)","v":0},{"$f":"IF(Table_PI[[#This Row],[Hide:\nFormula Name]]<>\"\",IFERROR(IF(MeasureCalc(Table_PI[[#This Row],[Hide:\nFormula Name]],Table_PI[[#This Row],[Quantity]],Table_PI[[#This Row],[List 1]],Table_PI[[#This Row],[List 2]],Table_PI[[#This Row],[List 3]],Table_PI[[#This Row],[Size]],Table_PI[[#This Row],[Input 1]],Table_PI[[#This Row],[Input 2]],Table_PI[[#This Row],[Input 3]],Table_PI[[#This Row],[Input 4]],'Customer Information'!$AR$12,1,ROW())>0,MeasureCalc(Table_PI[[#This Row],[Hide:\nFormula Name]],Table_PI[[#This Row],[Quantity]],Table_PI[[#This Row],[List 1]],Table_PI[[#This Row],[List 2]],Table_PI[[#This Row],[List 3]],Table_PI[[#This Row],[Size]],Table_PI[[#This Row],[Input 1]],Table_PI[[#This Row],[Input 2]],Table_PI[[#This Row],[Input 3]],Table_PI[[#This Row],[Input 4]],'Customer Information'!$AR$12,3,ROW()),\"No Rebate\"),\"No Rebate\"),0)","v":0},{"$f":"IF(Table_PI[[#This Row],[Hide:\nFormula Name]]<>\"\",IFERROR(IF(MeasureCalc(Table_PI[[#This Row],[Hide:\nFormula Name]],Table_PI[[#This Row],[Quantity]],Table_PI[[#This Row],[List 1]],Table_PI[[#This Row],[List 2]],Table_PI[[#This Row],[List 3]],Table_PI[[#This Row],[Size]],Table_PI[[#This Row],[Input 1]],Table_PI[[#This Row],[Input 2]],Table_PI[[#This Row],[Input 3]],Table_PI[[#This Row],[Input 4]],'Customer Information'!$AR$12,1,ROW())>0,MeasureCalc(Table_PI[[#This Row],[Hide:\nFormula Name]],Table_PI[[#This Row],[Quantity]],Table_PI[[#This Row],[List 1]],Table_PI[[#This Row],[List 2]],Table_PI[[#This Row],[List 3]],Table_PI[[#This Row],[Size]],Table_PI[[#This Row],[Input 1]],Table_PI[[#This Row],[Input 2]],Table_PI[[#This Row],[Input 3]],Table_PI[[#This Row],[Input 4]],'Customer Information'!$AR$12,4,ROW()),\"No Rebate\"),\"No Rebate\"),0)","v":0},{"$f":"IF(Table_PI[[#This Row],[Hide:\nFormula Name]]<>\"\",IFERROR(IF(MeasureCalc(Table_PI[[#This Row],[Hide:\nFormula Name]],Table_PI[[#This Row],[Quantity]],Table_PI[[#This Row],[List 1]],Table_PI[[#This Row],[List 2]],Table_PI[[#This Row],[List 3]],Table_PI[[#This Row],[Size]],Table_PI[[#This Row],[Input 1]],Table_PI[[#This Row],[Input 2]],Table_PI[[#This Row],[Input 3]],Table_PI[[#This Row],[Input 4]],'Customer Information'!$AR$12,1,ROW())>0,MeasureCalc(Table_PI[[#This Row],[Hide:\nFormula Name]],Table_PI[[#This Row],[Quantity]],Table_PI[[#This Row],[List 1]],Table_PI[[#This Row],[List 2]],Table_PI[[#This Row],[List 3]],Table_PI[[#This Row],[Size]],Table_PI[[#This Row],[Input 1]],Table_PI[[#This Row],[Input 2]],Table_PI[[#This Row],[Input 3]],Table_PI[[#This Row],[Input 4]],'Customer Information'!$AR$12,5,ROW()),\"No Rebate\"),\"No Rebate\"),0)","v":0},{"$f":"IF(Table_PI[[#This Row],[Hide:\nFormula Name]]<>\"\",IFERROR(IF(MeasureCalc(Table_PI[[#This Row],[Hide:\nFormula Name]],Table_PI[[#This Row],[Quantity]],Table_PI[[#This Row],[List 1]],Table_PI[[#This Row],[List 2]],Table_PI[[#This Row],[List 3]],Table_PI[[#This Row],[Size]],Table_PI[[#This Row],[Input 1]],Table_PI[[#This Row],[Input 2]],Table_PI[[#This Row],[Input 3]],Table_PI[[#This Row],[Input 4]],'Customer Information'!$AR$12,1,ROW())>0,MeasureCalc(Table_PI[[#This Row],[Hide:\nFormula Name]],Table_PI[[#This Row],[Quantity]],Table_PI[[#This Row],[List 1]],Table_PI[[#This Row],[List 2]],Table_PI[[#This Row],[List 3]],Table_PI[[#This Row],[Size]],Table_PI[[#This Row],[Input 1]],Table_PI[[#This Row],[Input 2]],Table_PI[[#This Row],[Input 3]],Table_PI[[#This Row],[Input 4]],'Customer Information'!$AR$12,6,ROW()),\"No Rebate\"),\"No Rebate\"),0)","v":0},{"$f":"IF(Table_PI[[#This Row],[Hide:\nFormula Name]]<>\"\",IFERROR(IF(MeasureCalc(Table_PI[[#This Row],[Hide:\nFormula Name]],Table_PI[[#This Row],[Quantity]],Table_PI[[#This Row],[List 1]],Table_PI[[#This Row],[List 2]],Table_PI[[#This Row],[List 3]],Table_PI[[#This Row],[Size]],Table_PI[[#This Row],[Input 1]],Table_PI[[#This Row],[Input 2]],Table_PI[[#This Row],[Input 3]],Table_PI[[#This Row],[Input 4]],'Customer Information'!$AR$12,1,ROW())>0,MeasureCalc(Table_PI[[#This Row],[Hide:\nFormula Name]],Table_PI[[#This Row],[Quantity]],Table_PI[[#This Row],[List 1]],Table_PI[[#This Row],[List 2]],Table_PI[[#This Row],[List 3]],Table_PI[[#This Row],[Size]],Table_PI[[#This Row],[Input 1]],Table_PI[[#This Row],[Input 2]],Table_PI[[#This Row],[Input 3]],Table_PI[[#This Row],[Input 4]],'Customer Information'!$AR$12,7,ROW()),\"No Rebate\"),\"No Rebate\"),0)","v":0},{"$f":"IF(Table_PI[[#This Row],[Hide:\nFormula Name]]<>\"\",IFERROR(IF(MeasureCalc(Table_PI[[#This Row],[Hide:\nFormula Name]],Table_PI[[#This Row],[Quantity]],Table_PI[[#This Row],[List 1]],Table_PI[[#This Row],[List 2]],Table_PI[[#This Row],[List 3]],Table_PI[[#This Row],[Size]],Table_PI[[#This Row],[Input 1]],Table_PI[[#This Row],[Input 2]],Table_PI[[#This Row],[Input 3]],Table_PI[[#This Row],[Input 4]],'Customer Information'!$AR$12,1,ROW())>0,MeasureCalc(Table_PI[[#This Row],[Hide:\nFormula Name]],Table_PI[[#This Row],[Quantity]],Table_PI[[#This Row],[List 1]],Table_PI[[#This Row],[List 2]],Table_PI[[#This Row],[List 3]],Table_PI[[#This Row],[Size]],Table_PI[[#This Row],[Input 1]],Table_PI[[#This Row],[Input 2]],Table_PI[[#This Row],[Input 3]],Table_PI[[#This Row],[Input 4]],'Customer Information'!$AR$12,8,ROW()),\"No Rebate\"),\"No Rebate\"),0)","v":0},{"$f":"IF(Table_PI[[#This Row],[Hide:\nFormula Name]]<>\"\",IF(AND(Table_PI[[#This Row],[Hide:\nFormula Name]]<>\"\",OR(Table_PI[[#This Row],[Rebate]]>0,Table_PI[[#This Row],[Rebate]]=\"No Rebate\")),TRUE,\"MI: Line Item \" & $A76),\"\")","v":""}]
[{"$f":"IF(Table_PI[[#This Row],[Hide:\nFormula Name]]<>\"\",MAX($A$2:A76)+1,\"\")","v":""},null,null,null,null,null,null,null,null,null,null,null,null,null,null,{"$f":"IFERROR(VLOOKUP(Table_PI[[#This Row],[Measure]],'Equipment Lookups'!$C$3:$D$23,2,FALSE),\"\")","v":""},{"$f":"IF(Table_PI[[#This Row],[Hide:\nFormula Name]]<>\"\",IFERROR(IF(MeasureCalc(Table_PI[[#This Row],[Hide:\nFormula Name]],Table_PI[[#This Row],[Quantity]],Table_PI[[#This Row],[List 1]],Table_PI[[#This Row],[List 2]],Table_PI[[#This Row],[List 3]],Table_PI[[#This Row],[Size]],Table_PI[[#This Row],[Input 1]],Table_PI[[#This Row],[Input 2]],Table_PI[[#This Row],[Input 3]],Table_PI[[#This Row],[Input 4]],'Customer Information'!$AR$12,1,ROW())>0,MeasureCalc(Table_PI[[#This Row],[Hide:\nFormula Name]],Table_PI[[#This Row],[Quantity]],Table_PI[[#This Row],[List 1]],Table_PI[[#This Row],[List 2]],Table_PI[[#This Row],[List 3]],Table_PI[[#This Row],[Size]],Table_PI[[#This Row],[Input 1]],Table_PI[[#This Row],[Input 2]],Table_PI[[#This Row],[Input 3]],Table_PI[[#This Row],[Input 4]],'Customer Information'!$AR$12,1,ROW()),\"No Rebate\"),\"No Rebate\"),0)","v":0},{"$f":"IF(Table_PI[[#This Row],[Hide:\nFormula Name]]<>\"\",IFERROR(IF(MeasureCalc(Table_PI[[#This Row],[Hide:\nFormula Name]],Table_PI[[#This Row],[Quantity]],Table_PI[[#This Row],[List 1]],Table_PI[[#This Row],[List 2]],Table_PI[[#This Row],[List 3]],Table_PI[[#This Row],[Size]],Table_PI[[#This Row],[Input 1]],Table_PI[[#This Row],[Input 2]],Table_PI[[#This Row],[Input 3]],Table_PI[[#This Row],[Input 4]],'Customer Information'!$AR$12,1,ROW())>0,MeasureCalc(Table_PI[[#This Row],[Hide:\nFormula Name]],Table_PI[[#This Row],[Quantity]],Table_PI[[#This Row],[List 1]],Table_PI[[#This Row],[List 2]],Table_PI[[#This Row],[List 3]],Table_PI[[#This Row],[Size]],Table_PI[[#This Row],[Input 1]],Table_PI[[#This Row],[Input 2]],Table_PI[[#This Row],[Input 3]],Table_PI[[#This Row],[Input 4]],'Customer Information'!$AR$12,2,ROW()),\"No Rebate\"),\"No Rebate\"),0)","v":0},{"$f":"IF(Table_PI[[#This Row],[Hide:\nFormula Name]]<>\"\",IFERROR(IF(MeasureCalc(Table_PI[[#This Row],[Hide:\nFormula Name]],Table_PI[[#This Row],[Quantity]],Table_PI[[#This Row],[List 1]],Table_PI[[#This Row],[List 2]],Table_PI[[#This Row],[List 3]],Table_PI[[#This Row],[Size]],Table_PI[[#This Row],[Input 1]],Table_PI[[#This Row],[Input 2]],Table_PI[[#This Row],[Input 3]],Table_PI[[#This Row],[Input 4]],'Customer Information'!$AR$12,1,ROW())>0,MeasureCalc(Table_PI[[#This Row],[Hide:\nFormula Name]],Table_PI[[#This Row],[Quantity]],Table_PI[[#This Row],[List 1]],Table_PI[[#This Row],[List 2]],Table_PI[[#This Row],[List 3]],Table_PI[[#This Row],[Size]],Table_PI[[#This Row],[Input 1]],Table_PI[[#This Row],[Input 2]],Table_PI[[#This Row],[Input 3]],Table_PI[[#This Row],[Input 4]],'Customer Information'!$AR$12,3,ROW()),\"No Rebate\"),\"No Rebate\"),0)","v":0},{"$f":"IF(Table_PI[[#This Row],[Hide:\nFormula Name]]<>\"\",IFERROR(IF(MeasureCalc(Table_PI[[#This Row],[Hide:\nFormula Name]],Table_PI[[#This Row],[Quantity]],Table_PI[[#This Row],[List 1]],Table_PI[[#This Row],[List 2]],Table_PI[[#This Row],[List 3]],Table_PI[[#This Row],[Size]],Table_PI[[#This Row],[Input 1]],Table_PI[[#This Row],[Input 2]],Table_PI[[#This Row],[Input 3]],Table_PI[[#This Row],[Input 4]],'Customer Information'!$AR$12,1,ROW())>0,MeasureCalc(Table_PI[[#This Row],[Hide:\nFormula Name]],Table_PI[[#This Row],[Quantity]],Table_PI[[#This Row],[List 1]],Table_PI[[#This Row],[List 2]],Table_PI[[#This Row],[List 3]],Table_PI[[#This Row],[Size]],Table_PI[[#This Row],[Input 1]],Table_PI[[#This Row],[Input 2]],Table_PI[[#This Row],[Input 3]],Table_PI[[#This Row],[Input 4]],'Customer Information'!$AR$12,4,ROW()),\"No Rebate\"),\"No Rebate\"),0)","v":0},{"$f":"IF(Table_PI[[#This Row],[Hide:\nFormula Name]]<>\"\",IFERROR(IF(MeasureCalc(Table_PI[[#This Row],[Hide:\nFormula Name]],Table_PI[[#This Row],[Quantity]],Table_PI[[#This Row],[List 1]],Table_PI[[#This Row],[List 2]],Table_PI[[#This Row],[List 3]],Table_PI[[#This Row],[Size]],Table_PI[[#This Row],[Input 1]],Table_PI[[#This Row],[Input 2]],Table_PI[[#This Row],[Input 3]],Table_PI[[#This Row],[Input 4]],'Customer Information'!$AR$12,1,ROW())>0,MeasureCalc(Table_PI[[#This Row],[Hide:\nFormula Name]],Table_PI[[#This Row],[Quantity]],Table_PI[[#This Row],[List 1]],Table_PI[[#This Row],[List 2]],Table_PI[[#This Row],[List 3]],Table_PI[[#This Row],[Size]],Table_PI[[#This Row],[Input 1]],Table_PI[[#This Row],[Input 2]],Table_PI[[#This Row],[Input 3]],Table_PI[[#This Row],[Input 4]],'Customer Information'!$AR$12,5,ROW()),\"No Rebate\"),\"No Rebate\"),0)","v":0},{"$f":"IF(Table_PI[[#This Row],[Hide:\nFormula Name]]<>\"\",IFERROR(IF(MeasureCalc(Table_PI[[#This Row],[Hide:\nFormula Name]],Table_PI[[#This Row],[Quantity]],Table_PI[[#This Row],[List 1]],Table_PI[[#This Row],[List 2]],Table_PI[[#This Row],[List 3]],Table_PI[[#This Row],[Size]],Table_PI[[#This Row],[Input 1]],Table_PI[[#This Row],[Input 2]],Table_PI[[#This Row],[Input 3]],Table_PI[[#This Row],[Input 4]],'Customer Information'!$AR$12,1,ROW())>0,MeasureCalc(Table_PI[[#This Row],[Hide:\nFormula Name]],Table_PI[[#This Row],[Quantity]],Table_PI[[#This Row],[List 1]],Table_PI[[#This Row],[List 2]],Table_PI[[#This Row],[List 3]],Table_PI[[#This Row],[Size]],Table_PI[[#This Row],[Input 1]],Table_PI[[#This Row],[Input 2]],Table_PI[[#This Row],[Input 3]],Table_PI[[#This Row],[Input 4]],'Customer Information'!$AR$12,6,ROW()),\"No Rebate\"),\"No Rebate\"),0)","v":0},{"$f":"IF(Table_PI[[#This Row],[Hide:\nFormula Name]]<>\"\",IFERROR(IF(MeasureCalc(Table_PI[[#This Row],[Hide:\nFormula Name]],Table_PI[[#This Row],[Quantity]],Table_PI[[#This Row],[List 1]],Table_PI[[#This Row],[List 2]],Table_PI[[#This Row],[List 3]],Table_PI[[#This Row],[Size]],Table_PI[[#This Row],[Input 1]],Table_PI[[#This Row],[Input 2]],Table_PI[[#This Row],[Input 3]],Table_PI[[#This Row],[Input 4]],'Customer Information'!$AR$12,1,ROW())>0,MeasureCalc(Table_PI[[#This Row],[Hide:\nFormula Name]],Table_PI[[#This Row],[Quantity]],Table_PI[[#This Row],[List 1]],Table_PI[[#This Row],[List 2]],Table_PI[[#This Row],[List 3]],Table_PI[[#This Row],[Size]],Table_PI[[#This Row],[Input 1]],Table_PI[[#This Row],[Input 2]],Table_PI[[#This Row],[Input 3]],Table_PI[[#This Row],[Input 4]],'Customer Information'!$AR$12,7,ROW()),\"No Rebate\"),\"No Rebate\"),0)","v":0},{"$f":"IF(Table_PI[[#This Row],[Hide:\nFormula Name]]<>\"\",IFERROR(IF(MeasureCalc(Table_PI[[#This Row],[Hide:\nFormula Name]],Table_PI[[#This Row],[Quantity]],Table_PI[[#This Row],[List 1]],Table_PI[[#This Row],[List 2]],Table_PI[[#This Row],[List 3]],Table_PI[[#This Row],[Size]],Table_PI[[#This Row],[Input 1]],Table_PI[[#This Row],[Input 2]],Table_PI[[#This Row],[Input 3]],Table_PI[[#This Row],[Input 4]],'Customer Information'!$AR$12,1,ROW())>0,MeasureCalc(Table_PI[[#This Row],[Hide:\nFormula Name]],Table_PI[[#This Row],[Quantity]],Table_PI[[#This Row],[List 1]],Table_PI[[#This Row],[List 2]],Table_PI[[#This Row],[List 3]],Table_PI[[#This Row],[Size]],Table_PI[[#This Row],[Input 1]],Table_PI[[#This Row],[Input 2]],Table_PI[[#This Row],[Input 3]],Table_PI[[#This Row],[Input 4]],'Customer Information'!$AR$12,8,ROW()),\"No Rebate\"),\"No Rebate\"),0)","v":0},{"$f":"IF(Table_PI[[#This Row],[Hide:\nFormula Name]]<>\"\",IF(AND(Table_PI[[#This Row],[Hide:\nFormula Name]]<>\"\",OR(Table_PI[[#This Row],[Rebate]]>0,Table_PI[[#This Row],[Rebate]]=\"No Rebate\")),TRUE,\"MI: Line Item \" & $A77),\"\")","v":""}]
[{"$f":"IF(Table_PI[[#This Row],[Hide:\nFormula Name]]<>\"\",MAX($A$2:A77)+1,\"\")","v":""},null,null,null,null,null,null,null,null,null,null,null,null,null,null,{"$f":"IFERROR(VLOOKUP(Table_PI[[#This Row],[Measure]],'Equipment Lookups'!$C$3:$D$23,2,FALSE),\"\")","v":""},{"$f":"IF(Table_PI[[#This Row],[Hide:\nFormula Name]]<>\"\",IFERROR(IF(MeasureCalc(Table_PI[[#This Row],[Hide:\nFormula Name]],Table_PI[[#This Row],[Quantity]],Table_PI[[#This Row],[List 1]],Table_PI[[#This Row],[List 2]],Table_PI[[#This Row],[List 3]],Table_PI[[#This Row],[Size]],Table_PI[[#This Row],[Input 1]],Table_PI[[#This Row],[Input 2]],Table_PI[[#This Row],[Input 3]],Table_PI[[#This Row],[Input 4]],'Customer Information'!$AR$12,1,ROW())>0,MeasureCalc(Table_PI[[#This Row],[Hide:\nFormula Name]],Table_PI[[#This Row],[Quantity]],Table_PI[[#This Row],[List 1]],Table_PI[[#This Row],[List 2]],Table_PI[[#This Row],[List 3]],Table_PI[[#This Row],[Size]],Table_PI[[#This Row],[Input 1]],Table_PI[[#This Row],[Input 2]],Table_PI[[#This Row],[Input 3]],Table_PI[[#This Row],[Input 4]],'Customer Information'!$AR$12,1,ROW()),\"No Rebate\"),\"No Rebate\"),0)","v":0},{"$f":"IF(Table_PI[[#This Row],[Hide:\nFormula Name]]<>\"\",IFERROR(IF(MeasureCalc(Table_PI[[#This Row],[Hide:\nFormula Name]],Table_PI[[#This Row],[Quantity]],Table_PI[[#This Row],[List 1]],Table_PI[[#This Row],[List 2]],Table_PI[[#This Row],[List 3]],Table_PI[[#This Row],[Size]],Table_PI[[#This Row],[Input 1]],Table_PI[[#This Row],[Input 2]],Table_PI[[#This Row],[Input 3]],Table_PI[[#This Row],[Input 4]],'Customer Information'!$AR$12,1,ROW())>0,MeasureCalc(Table_PI[[#This Row],[Hide:\nFormula Name]],Table_PI[[#This Row],[Quantity]],Table_PI[[#This Row],[List 1]],Table_PI[[#This Row],[List 2]],Table_PI[[#This Row],[List 3]],Table_PI[[#This Row],[Size]],Table_PI[[#This Row],[Input 1]],Table_PI[[#This Row],[Input 2]],Table_PI[[#This Row],[Input 3]],Table_PI[[#This Row],[Input 4]],'Customer Information'!$AR$12,2,ROW()),\"No Rebate\"),\"No Rebate\"),0)","v":0},{"$f":"IF(Table_PI[[#This Row],[Hide:\nFormula Name]]<>\"\",IFERROR(IF(MeasureCalc(Table_PI[[#This Row],[Hide:\nFormula Name]],Table_PI[[#This Row],[Quantity]],Table_PI[[#This Row],[List 1]],Table_PI[[#This Row],[List 2]],Table_PI[[#This Row],[List 3]],Table_PI[[#This Row],[Size]],Table_PI[[#This Row],[Input 1]],Table_PI[[#This Row],[Input 2]],Table_PI[[#This Row],[Input 3]],Table_PI[[#This Row],[Input 4]],'Customer Information'!$AR$12,1,ROW())>0,MeasureCalc(Table_PI[[#This Row],[Hide:\nFormula Name]],Table_PI[[#This Row],[Quantity]],Table_PI[[#This Row],[List 1]],Table_PI[[#This Row],[List 2]],Table_PI[[#This Row],[List 3]],Table_PI[[#This Row],[Size]],Table_PI[[#This Row],[Input 1]],Table_PI[[#This Row],[Input 2]],Table_PI[[#This Row],[Input 3]],Table_PI[[#This Row],[Input 4]],'Customer Information'!$AR$12,3,ROW()),\"No Rebate\"),\"No Rebate\"),0)","v":0},{"$f":"IF(Table_PI[[#This Row],[Hide:\nFormula Name]]<>\"\",IFERROR(IF(MeasureCalc(Table_PI[[#This Row],[Hide:\nFormula Name]],Table_PI[[#This Row],[Quantity]],Table_PI[[#This Row],[List 1]],Table_PI[[#This Row],[List 2]],Table_PI[[#This Row],[List 3]],Table_PI[[#This Row],[Size]],Table_PI[[#This Row],[Input 1]],Table_PI[[#This Row],[Input 2]],Table_PI[[#This Row],[Input 3]],Table_PI[[#This Row],[Input 4]],'Customer Information'!$AR$12,1,ROW())>0,MeasureCalc(Table_PI[[#This Row],[Hide:\nFormula Name]],Table_PI[[#This Row],[Quantity]],Table_PI[[#This Row],[List 1]],Table_PI[[#This Row],[List 2]],Table_PI[[#This Row],[List 3]],Table_PI[[#This Row],[Size]],Table_PI[[#This Row],[Input 1]],Table_PI[[#This Row],[Input 2]],Table_PI[[#This Row],[Input 3]],Table_PI[[#This Row],[Input 4]],'Customer Information'!$AR$12,4,ROW()),\"No Rebate\"),\"No Rebate\"),0)","v":0},{"$f":"IF(Table_PI[[#This Row],[Hide:\nFormula Name]]<>\"\",IFERROR(IF(MeasureCalc(Table_PI[[#This Row],[Hide:\nFormula Name]],Table_PI[[#This Row],[Quantity]],Table_PI[[#This Row],[List 1]],Table_PI[[#This Row],[List 2]],Table_PI[[#This Row],[List 3]],Table_PI[[#This Row],[Size]],Table_PI[[#This Row],[Input 1]],Table_PI[[#This Row],[Input 2]],Table_PI[[#This Row],[Input 3]],Table_PI[[#This Row],[Input 4]],'Customer Information'!$AR$12,1,ROW())>0,MeasureCalc(Table_PI[[#This Row],[Hide:\nFormula Name]],Table_PI[[#This Row],[Quantity]],Table_PI[[#This Row],[List 1]],Table_PI[[#This Row],[List 2]],Table_PI[[#This Row],[List 3]],Table_PI[[#This Row],[Size]],Table_PI[[#This Row],[Input 1]],Table_PI[[#This Row],[Input 2]],Table_PI[[#This Row],[Input 3]],Table_PI[[#This Row],[Input 4]],'Customer Information'!$AR$12,5,ROW()),\"No Rebate\"),\"No Rebate\"),0)","v":0},{"$f":"IF(Table_PI[[#This Row],[Hide:\nFormula Name]]<>\"\",IFERROR(IF(MeasureCalc(Table_PI[[#This Row],[Hide:\nFormula Name]],Table_PI[[#This Row],[Quantity]],Table_PI[[#This Row],[List 1]],Table_PI[[#This Row],[List 2]],Table_PI[[#This Row],[List 3]],Table_PI[[#This Row],[Size]],Table_PI[[#This Row],[Input 1]],Table_PI[[#This Row],[Input 2]],Table_PI[[#This Row],[Input 3]],Table_PI[[#This Row],[Input 4]],'Customer Information'!$AR$12,1,ROW())>0,MeasureCalc(Table_PI[[#This Row],[Hide:\nFormula Name]],Table_PI[[#This Row],[Quantity]],Table_PI[[#This Row],[List 1]],Table_PI[[#This Row],[List 2]],Table_PI[[#This Row],[List 3]],Table_PI[[#This Row],[Size]],Table_PI[[#This Row],[Input 1]],Table_PI[[#This Row],[Input 2]],Table_PI[[#This Row],[Input 3]],Table_PI[[#This Row],[Input 4]],'Customer Information'!$AR$12,6,ROW()),\"No Rebate\"),\"No Rebate\"),0)","v":0},{"$f":"IF(Table_PI[[#This Row],[Hide:\nFormula Name]]<>\"\",IFERROR(IF(MeasureCalc(Table_PI[[#This Row],[Hide:\nFormula Name]],Table_PI[[#This Row],[Quantity]],Table_PI[[#This Row],[List 1]],Table_PI[[#This Row],[List 2]],Table_PI[[#This Row],[List 3]],Table_PI[[#This Row],[Size]],Table_PI[[#This Row],[Input 1]],Table_PI[[#This Row],[Input 2]],Table_PI[[#This Row],[Input 3]],Table_PI[[#This Row],[Input 4]],'Customer Information'!$AR$12,1,ROW())>0,MeasureCalc(Table_PI[[#This Row],[Hide:\nFormula Name]],Table_PI[[#This Row],[Quantity]],Table_PI[[#This Row],[List 1]],Table_PI[[#This Row],[List 2]],Table_PI[[#This Row],[List 3]],Table_PI[[#This Row],[Size]],Table_PI[[#This Row],[Input 1]],Table_PI[[#This Row],[Input 2]],Table_PI[[#This Row],[Input 3]],Table_PI[[#This Row],[Input 4]],'Customer Information'!$AR$12,7,ROW()),\"No Rebate\"),\"No Rebate\"),0)","v":0},{"$f":"IF(Table_PI[[#This Row],[Hide:\nFormula Name]]<>\"\",IFERROR(IF(MeasureCalc(Table_PI[[#This Row],[Hide:\nFormula Name]],Table_PI[[#This Row],[Quantity]],Table_PI[[#This Row],[List 1]],Table_PI[[#This Row],[List 2]],Table_PI[[#This Row],[List 3]],Table_PI[[#This Row],[Size]],Table_PI[[#This Row],[Input 1]],Table_PI[[#This Row],[Input 2]],Table_PI[[#This Row],[Input 3]],Table_PI[[#This Row],[Input 4]],'Customer Information'!$AR$12,1,ROW())>0,MeasureCalc(Table_PI[[#This Row],[Hide:\nFormula Name]],Table_PI[[#This Row],[Quantity]],Table_PI[[#This Row],[List 1]],Table_PI[[#This Row],[List 2]],Table_PI[[#This Row],[List 3]],Table_PI[[#This Row],[Size]],Table_PI[[#This Row],[Input 1]],Table_PI[[#This Row],[Input 2]],Table_PI[[#This Row],[Input 3]],Table_PI[[#This Row],[Input 4]],'Customer Information'!$AR$12,8,ROW()),\"No Rebate\"),\"No Rebate\"),0)","v":0},{"$f":"IF(Table_PI[[#This Row],[Hide:\nFormula Name]]<>\"\",IF(AND(Table_PI[[#This Row],[Hide:\nFormula Name]]<>\"\",OR(Table_PI[[#This Row],[Rebate]]>0,Table_PI[[#This Row],[Rebate]]=\"No Rebate\")),TRUE,\"MI: Line Item \" & $A78),\"\")","v":""}]
[{"$f":"IF(Table_PI[[#This Row],[Hide:\nFormula Name]]<>\"\",MAX($A$2:A78)+1,\"\")","v":""},null,null,null,null,null,null,null,null,null,null,null,null,null,null,{"$f":"IFERROR(VLOOKUP(Table_PI[[#This Row],[Measure]],'Equipment Lookups'!$C$3:$D$23,2,FALSE),\"\")","v":""},{"$f":"IF(Table_PI[[#This Row],[Hide:\nFormula Name]]<>\"\",IFERROR(IF(MeasureCalc(Table_PI[[#This Row],[Hide:\nFormula Name]],Table_PI[[#This Row],[Quantity]],Table_PI[[#This Row],[List 1]],Table_PI[[#This Row],[List 2]],Table_PI[[#This Row],[List 3]],Table_PI[[#This Row],[Size]],Table_PI[[#This Row],[Input 1]],Table_PI[[#This Row],[Input 2]],Table_PI[[#This Row],[Input 3]],Table_PI[[#This Row],[Input 4]],'Customer Information'!$AR$12,1,ROW())>0,MeasureCalc(Table_PI[[#This Row],[Hide:\nFormula Name]],Table_PI[[#This Row],[Quantity]],Table_PI[[#This Row],[List 1]],Table_PI[[#This Row],[List 2]],Table_PI[[#This Row],[List 3]],Table_PI[[#This Row],[Size]],Table_PI[[#This Row],[Input 1]],Table_PI[[#This Row],[Input 2]],Table_PI[[#This Row],[Input 3]],Table_PI[[#This Row],[Input 4]],'Customer Information'!$AR$12,1,ROW()),\"No Rebate\"),\"No Rebate\"),0)","v":0},{"$f":"IF(Table_PI[[#This Row],[Hide:\nFormula Name]]<>\"\",IFERROR(IF(MeasureCalc(Table_PI[[#This Row],[Hide:\nFormula Name]],Table_PI[[#This Row],[Quantity]],Table_PI[[#This Row],[List 1]],Table_PI[[#This Row],[List 2]],Table_PI[[#This Row],[List 3]],Table_PI[[#This Row],[Size]],Table_PI[[#This Row],[Input 1]],Table_PI[[#This Row],[Input 2]],Table_PI[[#This Row],[Input 3]],Table_PI[[#This Row],[Input 4]],'Customer Information'!$AR$12,1,ROW())>0,MeasureCalc(Table_PI[[#This Row],[Hide:\nFormula Name]],Table_PI[[#This Row],[Quantity]],Table_PI[[#This Row],[List 1]],Table_PI[[#This Row],[List 2]],Table_PI[[#This Row],[List 3]],Table_PI[[#This Row],[Size]],Table_PI[[#This Row],[Input 1]],Table_PI[[#This Row],[Input 2]],Table_PI[[#This Row],[Input 3]],Table_PI[[#This Row],[Input 4]],'Customer Information'!$AR$12,2,ROW()),\"No Rebate\"),\"No Rebate\"),0)","v":0},{"$f":"IF(Table_PI[[#This Row],[Hide:\nFormula Name]]<>\"\",IFERROR(IF(MeasureCalc(Table_PI[[#This Row],[Hide:\nFormula Name]],Table_PI[[#This Row],[Quantity]],Table_PI[[#This Row],[List 1]],Table_PI[[#This Row],[List 2]],Table_PI[[#This Row],[List 3]],Table_PI[[#This Row],[Size]],Table_PI[[#This Row],[Input 1]],Table_PI[[#This Row],[Input 2]],Table_PI[[#This Row],[Input 3]],Table_PI[[#This Row],[Input 4]],'Customer Information'!$AR$12,1,ROW())>0,MeasureCalc(Table_PI[[#This Row],[Hide:\nFormula Name]],Table_PI[[#This Row],[Quantity]],Table_PI[[#This Row],[List 1]],Table_PI[[#This Row],[List 2]],Table_PI[[#This Row],[List 3]],Table_PI[[#This Row],[Size]],Table_PI[[#This Row],[Input 1]],Table_PI[[#This Row],[Input 2]],Table_PI[[#This Row],[Input 3]],Table_PI[[#This Row],[Input 4]],'Customer Information'!$AR$12,3,ROW()),\"No Rebate\"),\"No Rebate\"),0)","v":0},{"$f":"IF(Table_PI[[#This Row],[Hide:\nFormula Name]]<>\"\",IFERROR(IF(MeasureCalc(Table_PI[[#This Row],[Hide:\nFormula Name]],Table_PI[[#This Row],[Quantity]],Table_PI[[#This Row],[List 1]],Table_PI[[#This Row],[List 2]],Table_PI[[#This Row],[List 3]],Table_PI[[#This Row],[Size]],Table_PI[[#This Row],[Input 1]],Table_PI[[#This Row],[Input 2]],Table_PI[[#This Row],[Input 3]],Table_PI[[#This Row],[Input 4]],'Customer Information'!$AR$12,1,ROW())>0,MeasureCalc(Table_PI[[#This Row],[Hide:\nFormula Name]],Table_PI[[#This Row],[Quantity]],Table_PI[[#This Row],[List 1]],Table_PI[[#This Row],[List 2]],Table_PI[[#This Row],[List 3]],Table_PI[[#This Row],[Size]],Table_PI[[#This Row],[Input 1]],Table_PI[[#This Row],[Input 2]],Table_PI[[#This Row],[Input 3]],Table_PI[[#This Row],[Input 4]],'Customer Information'!$AR$12,4,ROW()),\"No Rebate\"),\"No Rebate\"),0)","v":0},{"$f":"IF(Table_PI[[#This Row],[Hide:\nFormula Name]]<>\"\",IFERROR(IF(MeasureCalc(Table_PI[[#This Row],[Hide:\nFormula Name]],Table_PI[[#This Row],[Quantity]],Table_PI[[#This Row],[List 1]],Table_PI[[#This Row],[List 2]],Table_PI[[#This Row],[List 3]],Table_PI[[#This Row],[Size]],Table_PI[[#This Row],[Input 1]],Table_PI[[#This Row],[Input 2]],Table_PI[[#This Row],[Input 3]],Table_PI[[#This Row],[Input 4]],'Customer Information'!$AR$12,1,ROW())>0,MeasureCalc(Table_PI[[#This Row],[Hide:\nFormula Name]],Table_PI[[#This Row],[Quantity]],Table_PI[[#This Row],[List 1]],Table_PI[[#This Row],[List 2]],Table_PI[[#This Row],[List 3]],Table_PI[[#This Row],[Size]],Table_PI[[#This Row],[Input 1]],Table_PI[[#This Row],[Input 2]],Table_PI[[#This Row],[Input 3]],Table_PI[[#This Row],[Input 4]],'Customer Information'!$AR$12,5,ROW()),\"No Rebate\"),\"No Rebate\"),0)","v":0},{"$f":"IF(Table_PI[[#This Row],[Hide:\nFormula Name]]<>\"\",IFERROR(IF(MeasureCalc(Table_PI[[#This Row],[Hide:\nFormula Name]],Table_PI[[#This Row],[Quantity]],Table_PI[[#This Row],[List 1]],Table_PI[[#This Row],[List 2]],Table_PI[[#This Row],[List 3]],Table_PI[[#This Row],[Size]],Table_PI[[#This Row],[Input 1]],Table_PI[[#This Row],[Input 2]],Table_PI[[#This Row],[Input 3]],Table_PI[[#This Row],[Input 4]],'Customer Information'!$AR$12,1,ROW())>0,MeasureCalc(Table_PI[[#This Row],[Hide:\nFormula Name]],Table_PI[[#This Row],[Quantity]],Table_PI[[#This Row],[List 1]],Table_PI[[#This Row],[List 2]],Table_PI[[#This Row],[List 3]],Table_PI[[#This Row],[Size]],Table_PI[[#This Row],[Input 1]],Table_PI[[#This Row],[Input 2]],Table_PI[[#This Row],[Input 3]],Table_PI[[#This Row],[Input 4]],'Customer Information'!$AR$12,6,ROW()),\"No Rebate\"),\"No Rebate\"),0)","v":0},{"$f":"IF(Table_PI[[#This Row],[Hide:\nFormula Name]]<>\"\",IFERROR(IF(MeasureCalc(Table_PI[[#This Row],[Hide:\nFormula Name]],Table_PI[[#This Row],[Quantity]],Table_PI[[#This Row],[List 1]],Table_PI[[#This Row],[List 2]],Table_PI[[#This Row],[List 3]],Table_PI[[#This Row],[Size]],Table_PI[[#This Row],[Input 1]],Table_PI[[#This Row],[Input 2]],Table_PI[[#This Row],[Input 3]],Table_PI[[#This Row],[Input 4]],'Customer Information'!$AR$12,1,ROW())>0,MeasureCalc(Table_PI[[#This Row],[Hide:\nFormula Name]],Table_PI[[#This Row],[Quantity]],Table_PI[[#This Row],[List 1]],Table_PI[[#This Row],[List 2]],Table_PI[[#This Row],[List 3]],Table_PI[[#This Row],[Size]],Table_PI[[#This Row],[Input 1]],Table_PI[[#This Row],[Input 2]],Table_PI[[#This Row],[Input 3]],Table_PI[[#This Row],[Input 4]],'Customer Information'!$AR$12,7,ROW()),\"No Rebate\"),\"No Rebate\"),0)","v":0},{"$f":"IF(Table_PI[[#This Row],[Hide:\nFormula Name]]<>\"\",IFERROR(IF(MeasureCalc(Table_PI[[#This Row],[Hide:\nFormula Name]],Table_PI[[#This Row],[Quantity]],Table_PI[[#This Row],[List 1]],Table_PI[[#This Row],[List 2]],Table_PI[[#This Row],[List 3]],Table_PI[[#This Row],[Size]],Table_PI[[#This Row],[Input 1]],Table_PI[[#This Row],[Input 2]],Table_PI[[#This Row],[Input 3]],Table_PI[[#This Row],[Input 4]],'Customer Information'!$AR$12,1,ROW())>0,MeasureCalc(Table_PI[[#This Row],[Hide:\nFormula Name]],Table_PI[[#This Row],[Quantity]],Table_PI[[#This Row],[List 1]],Table_PI[[#This Row],[List 2]],Table_PI[[#This Row],[List 3]],Table_PI[[#This Row],[Size]],Table_PI[[#This Row],[Input 1]],Table_PI[[#This Row],[Input 2]],Table_PI[[#This Row],[Input 3]],Table_PI[[#This Row],[Input 4]],'Customer Information'!$AR$12,8,ROW()),\"No Rebate\"),\"No Rebate\"),0)","v":0},{"$f":"IF(Table_PI[[#This Row],[Hide:\nFormula Name]]<>\"\",IF(AND(Table_PI[[#This Row],[Hide:\nFormula Name]]<>\"\",OR(Table_PI[[#This Row],[Rebate]]>0,Table_PI[[#This Row],[Rebate]]=\"No Rebate\")),TRUE,\"MI: Line Item \" & $A79),\"\")","v":""}]
[{"$f":"IF(Table_PI[[#This Row],[Hide:\nFormula Name]]<>\"\",MAX($A$2:A79)+1,\"\")","v":""},null,null,null,null,null,null,null,null,null,null,null,null,null,null,{"$f":"IFERROR(VLOOKUP(Table_PI[[#This Row],[Measure]],'Equipment Lookups'!$C$3:$D$23,2,FALSE),\"\")","v":""},{"$f":"IF(Table_PI[[#This Row],[Hide:\nFormula Name]]<>\"\",IFERROR(IF(MeasureCalc(Table_PI[[#This Row],[Hide:\nFormula Name]],Table_PI[[#This Row],[Quantity]],Table_PI[[#This Row],[List 1]],Table_PI[[#This Row],[List 2]],Table_PI[[#This Row],[List 3]],Table_PI[[#This Row],[Size]],Table_PI[[#This Row],[Input 1]],Table_PI[[#This Row],[Input 2]],Table_PI[[#This Row],[Input 3]],Table_PI[[#This Row],[Input 4]],'Customer Information'!$AR$12,1,ROW())>0,MeasureCalc(Table_PI[[#This Row],[Hide:\nFormula Name]],Table_PI[[#This Row],[Quantity]],Table_PI[[#This Row],[List 1]],Table_PI[[#This Row],[List 2]],Table_PI[[#This Row],[List 3]],Table_PI[[#This Row],[Size]],Table_PI[[#This Row],[Input 1]],Table_PI[[#This Row],[Input 2]],Table_PI[[#This Row],[Input 3]],Table_PI[[#This Row],[Input 4]],'Customer Information'!$AR$12,1,ROW()),\"No Rebate\"),\"No Rebate\"),0)","v":0},{"$f":"IF(Table_PI[[#This Row],[Hide:\nFormula Name]]<>\"\",IFERROR(IF(MeasureCalc(Table_PI[[#This Row],[Hide:\nFormula Name]],Table_PI[[#This Row],[Quantity]],Table_PI[[#This Row],[List 1]],Table_PI[[#This Row],[List 2]],Table_PI[[#This Row],[List 3]],Table_PI[[#This Row],[Size]],Table_PI[[#This Row],[Input 1]],Table_PI[[#This Row],[Input 2]],Table_PI[[#This Row],[Input 3]],Table_PI[[#This Row],[Input 4]],'Customer Information'!$AR$12,1,ROW())>0,MeasureCalc(Table_PI[[#This Row],[Hide:\nFormula Name]],Table_PI[[#This Row],[Quantity]],Table_PI[[#This Row],[List 1]],Table_PI[[#This Row],[List 2]],Table_PI[[#This Row],[List 3]],Table_PI[[#This Row],[Size]],Table_PI[[#This Row],[Input 1]],Table_PI[[#This Row],[Input 2]],Table_PI[[#This Row],[Input 3]],Table_PI[[#This Row],[Input 4]],'Customer Information'!$AR$12,2,ROW()),\"No Rebate\"),\"No Rebate\"),0)","v":0},{"$f":"IF(Table_PI[[#This Row],[Hide:\nFormula Name]]<>\"\",IFERROR(IF(MeasureCalc(Table_PI[[#This Row],[Hide:\nFormula Name]],Table_PI[[#This Row],[Quantity]],Table_PI[[#This Row],[List 1]],Table_PI[[#This Row],[List 2]],Table_PI[[#This Row],[List 3]],Table_PI[[#This Row],[Size]],Table_PI[[#This Row],[Input 1]],Table_PI[[#This Row],[Input 2]],Table_PI[[#This Row],[Input 3]],Table_PI[[#This Row],[Input 4]],'Customer Information'!$AR$12,1,ROW())>0,MeasureCalc(Table_PI[[#This Row],[Hide:\nFormula Name]],Table_PI[[#This Row],[Quantity]],Table_PI[[#This Row],[List 1]],Table_PI[[#This Row],[List 2]],Table_PI[[#This Row],[List 3]],Table_PI[[#This Row],[Size]],Table_PI[[#This Row],[Input 1]],Table_PI[[#This Row],[Input 2]],Table_PI[[#This Row],[Input 3]],Table_PI[[#This Row],[Input 4]],'Customer Information'!$AR$12,3,ROW()),\"No Rebate\"),\"No Rebate\"),0)","v":0},{"$f":"IF(Table_PI[[#This Row],[Hide:\nFormula Name]]<>\"\",IFERROR(IF(MeasureCalc(Table_PI[[#This Row],[Hide:\nFormula Name]],Table_PI[[#This Row],[Quantity]],Table_PI[[#This Row],[List 1]],Table_PI[[#This Row],[List 2]],Table_PI[[#This Row],[List 3]],Table_PI[[#This Row],[Size]],Table_PI[[#This Row],[Input 1]],Table_PI[[#This Row],[Input 2]],Table_PI[[#This Row],[Input 3]],Table_PI[[#This Row],[Input 4]],'Customer Information'!$AR$12,1,ROW())>0,MeasureCalc(Table_PI[[#This Row],[Hide:\nFormula Name]],Table_PI[[#This Row],[Quantity]],Table_PI[[#This Row],[List 1]],Table_PI[[#This Row],[List 2]],Table_PI[[#This Row],[List 3]],Table_PI[[#This Row],[Size]],Table_PI[[#This Row],[Input 1]],Table_PI[[#This Row],[Input 2]],Table_PI[[#This Row],[Input 3]],Table_PI[[#This Row],[Input 4]],'Customer Information'!$AR$12,4,ROW()),\"No Rebate\"),\"No Rebate\"),0)","v":0},{"$f":"IF(Table_PI[[#This Row],[Hide:\nFormula Name]]<>\"\",IFERROR(IF(MeasureCalc(Table_PI[[#This Row],[Hide:\nFormula Name]],Table_PI[[#This Row],[Quantity]],Table_PI[[#This Row],[List 1]],Table_PI[[#This Row],[List 2]],Table_PI[[#This Row],[List 3]],Table_PI[[#This Row],[Size]],Table_PI[[#This Row],[Input 1]],Table_PI[[#This Row],[Input 2]],Table_PI[[#This Row],[Input 3]],Table_PI[[#This Row],[Input 4]],'Customer Information'!$AR$12,1,ROW())>0,MeasureCalc(Table_PI[[#This Row],[Hide:\nFormula Name]],Table_PI[[#This Row],[Quantity]],Table_PI[[#This Row],[List 1]],Table_PI[[#This Row],[List 2]],Table_PI[[#This Row],[List 3]],Table_PI[[#This Row],[Size]],Table_PI[[#This Row],[Input 1]],Table_PI[[#This Row],[Input 2]],Table_PI[[#This Row],[Input 3]],Table_PI[[#This Row],[Input 4]],'Customer Information'!$AR$12,5,ROW()),\"No Rebate\"),\"No Rebate\"),0)","v":0},{"$f":"IF(Table_PI[[#This Row],[Hide:\nFormula Name]]<>\"\",IFERROR(IF(MeasureCalc(Table_PI[[#This Row],[Hide:\nFormula Name]],Table_PI[[#This Row],[Quantity]],Table_PI[[#This Row],[List 1]],Table_PI[[#This Row],[List 2]],Table_PI[[#This Row],[List 3]],Table_PI[[#This Row],[Size]],Table_PI[[#This Row],[Input 1]],Table_PI[[#This Row],[Input 2]],Table_PI[[#This Row],[Input 3]],Table_PI[[#This Row],[Input 4]],'Customer Information'!$AR$12,1,ROW())>0,MeasureCalc(Table_PI[[#This Row],[Hide:\nFormula Name]],Table_PI[[#This Row],[Quantity]],Table_PI[[#This Row],[List 1]],Table_PI[[#This Row],[List 2]],Table_PI[[#This Row],[List 3]],Table_PI[[#This Row],[Size]],Table_PI[[#This Row],[Input 1]],Table_PI[[#This Row],[Input 2]],Table_PI[[#This Row],[Input 3]],Table_PI[[#This Row],[Input 4]],'Customer Information'!$AR$12,6,ROW()),\"No Rebate\"),\"No Rebate\"),0)","v":0},{"$f":"IF(Table_PI[[#This Row],[Hide:\nFormula Name]]<>\"\",IFERROR(IF(MeasureCalc(Table_PI[[#This Row],[Hide:\nFormula Name]],Table_PI[[#This Row],[Quantity]],Table_PI[[#This Row],[List 1]],Table_PI[[#This Row],[List 2]],Table_PI[[#This Row],[List 3]],Table_PI[[#This Row],[Size]],Table_PI[[#This Row],[Input 1]],Table_PI[[#This Row],[Input 2]],Table_PI[[#This Row],[Input 3]],Table_PI[[#This Row],[Input 4]],'Customer Information'!$AR$12,1,ROW())>0,MeasureCalc(Table_PI[[#This Row],[Hide:\nFormula Name]],Table_PI[[#This Row],[Quantity]],Table_PI[[#This Row],[List 1]],Table_PI[[#This Row],[List 2]],Table_PI[[#This Row],[List 3]],Table_PI[[#This Row],[Size]],Table_PI[[#This Row],[Input 1]],Table_PI[[#This Row],[Input 2]],Table_PI[[#This Row],[Input 3]],Table_PI[[#This Row],[Input 4]],'Customer Information'!$AR$12,7,ROW()),\"No Rebate\"),\"No Rebate\"),0)","v":0},{"$f":"IF(Table_PI[[#This Row],[Hide:\nFormula Name]]<>\"\",IFERROR(IF(MeasureCalc(Table_PI[[#This Row],[Hide:\nFormula Name]],Table_PI[[#This Row],[Quantity]],Table_PI[[#This Row],[List 1]],Table_PI[[#This Row],[List 2]],Table_PI[[#This Row],[List 3]],Table_PI[[#This Row],[Size]],Table_PI[[#This Row],[Input 1]],Table_PI[[#This Row],[Input 2]],Table_PI[[#This Row],[Input 3]],Table_PI[[#This Row],[Input 4]],'Customer Information'!$AR$12,1,ROW())>0,MeasureCalc(Table_PI[[#This Row],[Hide:\nFormula Name]],Table_PI[[#This Row],[Quantity]],Table_PI[[#This Row],[List 1]],Table_PI[[#This Row],[List 2]],Table_PI[[#This Row],[List 3]],Table_PI[[#This Row],[Size]],Table_PI[[#This Row],[Input 1]],Table_PI[[#This Row],[Input 2]],Table_PI[[#This Row],[Input 3]],Table_PI[[#This Row],[Input 4]],'Customer Information'!$AR$12,8,ROW()),\"No Rebate\"),\"No Rebate\"),0)","v":0},{"$f":"IF(Table_PI[[#This Row],[Hide:\nFormula Name]]<>\"\",IF(AND(Table_PI[[#This Row],[Hide:\nFormula Name]]<>\"\",OR(Table_PI[[#This Row],[Rebate]]>0,Table_PI[[#This Row],[Rebate]]=\"No Rebate\")),TRUE,\"MI: Line Item \" & $A80),\"\")","v":""}]
[{"$f":"IF(Table_PI[[#This Row],[Hide:\nFormula Name]]<>\"\",MAX($A$2:A80)+1,\"\")","v":""},null,null,null,null,null,null,null,null,null,null,null,null,null,null,{"$f":"IFERROR(VLOOKUP(Table_PI[[#This Row],[Measure]],'Equipment Lookups'!$C$3:$D$23,2,FALSE),\"\")","v":""},{"$f":"IF(Table_PI[[#This Row],[Hide:\nFormula Name]]<>\"\",IFERROR(IF(MeasureCalc(Table_PI[[#This Row],[Hide:\nFormula Name]],Table_PI[[#This Row],[Quantity]],Table_PI[[#This Row],[List 1]],Table_PI[[#This Row],[List 2]],Table_PI[[#This Row],[List 3]],Table_PI[[#This Row],[Size]],Table_PI[[#This Row],[Input 1]],Table_PI[[#This Row],[Input 2]],Table_PI[[#This Row],[Input 3]],Table_PI[[#This Row],[Input 4]],'Customer Information'!$AR$12,1,ROW())>0,MeasureCalc(Table_PI[[#This Row],[Hide:\nFormula Name]],Table_PI[[#This Row],[Quantity]],Table_PI[[#This Row],[List 1]],Table_PI[[#This Row],[List 2]],Table_PI[[#This Row],[List 3]],Table_PI[[#This Row],[Size]],Table_PI[[#This Row],[Input 1]],Table_PI[[#This Row],[Input 2]],Table_PI[[#This Row],[Input 3]],Table_PI[[#This Row],[Input 4]],'Customer Information'!$AR$12,1,ROW()),\"No Rebate\"),\"No Rebate\"),0)","v":0},{"$f":"IF(Table_PI[[#This Row],[Hide:\nFormula Name]]<>\"\",IFERROR(IF(MeasureCalc(Table_PI[[#This Row],[Hide:\nFormula Name]],Table_PI[[#This Row],[Quantity]],Table_PI[[#This Row],[List 1]],Table_PI[[#This Row],[List 2]],Table_PI[[#This Row],[List 3]],Table_PI[[#This Row],[Size]],Table_PI[[#This Row],[Input 1]],Table_PI[[#This Row],[Input 2]],Table_PI[[#This Row],[Input 3]],Table_PI[[#This Row],[Input 4]],'Customer Information'!$AR$12,1,ROW())>0,MeasureCalc(Table_PI[[#This Row],[Hide:\nFormula Name]],Table_PI[[#This Row],[Quantity]],Table_PI[[#This Row],[List 1]],Table_PI[[#This Row],[List 2]],Table_PI[[#This Row],[List 3]],Table_PI[[#This Row],[Size]],Table_PI[[#This Row],[Input 1]],Table_PI[[#This Row],[Input 2]],Table_PI[[#This Row],[Input 3]],Table_PI[[#This Row],[Input 4]],'Customer Information'!$AR$12,2,ROW()),\"No Rebate\"),\"No Rebate\"),0)","v":0},{"$f":"IF(Table_PI[[#This Row],[Hide:\nFormula Name]]<>\"\",IFERROR(IF(MeasureCalc(Table_PI[[#This Row],[Hide:\nFormula Name]],Table_PI[[#This Row],[Quantity]],Table_PI[[#This Row],[List 1]],Table_PI[[#This Row],[List 2]],Table_PI[[#This Row],[List 3]],Table_PI[[#This Row],[Size]],Table_PI[[#This Row],[Input 1]],Table_PI[[#This Row],[Input 2]],Table_PI[[#This Row],[Input 3]],Table_PI[[#This Row],[Input 4]],'Customer Information'!$AR$12,1,ROW())>0,MeasureCalc(Table_PI[[#This Row],[Hide:\nFormula Name]],Table_PI[[#This Row],[Quantity]],Table_PI[[#This Row],[List 1]],Table_PI[[#This Row],[List 2]],Table_PI[[#This Row],[List 3]],Table_PI[[#This Row],[Size]],Table_PI[[#This Row],[Input 1]],Table_PI[[#This Row],[Input 2]],Table_PI[[#This Row],[Input 3]],Table_PI[[#This Row],[Input 4]],'Customer Information'!$AR$12,3,ROW()),\"No Rebate\"),\"No Rebate\"),0)","v":0},{"$f":"IF(Table_PI[[#This Row],[Hide:\nFormula Name]]<>\"\",IFERROR(IF(MeasureCalc(Table_PI[[#This Row],[Hide:\nFormula Name]],Table_PI[[#This Row],[Quantity]],Table_PI[[#This Row],[List 1]],Table_PI[[#This Row],[List 2]],Table_PI[[#This Row],[List 3]],Table_PI[[#This Row],[Size]],Table_PI[[#This Row],[Input 1]],Table_PI[[#This Row],[Input 2]],Table_PI[[#This Row],[Input 3]],Table_PI[[#This Row],[Input 4]],'Customer Information'!$AR$12,1,ROW())>0,MeasureCalc(Table_PI[[#This Row],[Hide:\nFormula Name]],Table_PI[[#This Row],[Quantity]],Table_PI[[#This Row],[List 1]],Table_PI[[#This Row],[List 2]],Table_PI[[#This Row],[List 3]],Table_PI[[#This Row],[Size]],Table_PI[[#This Row],[Input 1]],Table_PI[[#This Row],[Input 2]],Table_PI[[#This Row],[Input 3]],Table_PI[[#This Row],[Input 4]],'Customer Information'!$AR$12,4,ROW()),\"No Rebate\"),\"No Rebate\"),0)","v":0},{"$f":"IF(Table_PI[[#This Row],[Hide:\nFormula Name]]<>\"\",IFERROR(IF(MeasureCalc(Table_PI[[#This Row],[Hide:\nFormula Name]],Table_PI[[#This Row],[Quantity]],Table_PI[[#This Row],[List 1]],Table_PI[[#This Row],[List 2]],Table_PI[[#This Row],[List 3]],Table_PI[[#This Row],[Size]],Table_PI[[#This Row],[Input 1]],Table_PI[[#This Row],[Input 2]],Table_PI[[#This Row],[Input 3]],Table_PI[[#This Row],[Input 4]],'Customer Information'!$AR$12,1,ROW())>0,MeasureCalc(Table_PI[[#This Row],[Hide:\nFormula Name]],Table_PI[[#This Row],[Quantity]],Table_PI[[#This Row],[List 1]],Table_PI[[#This Row],[List 2]],Table_PI[[#This Row],[List 3]],Table_PI[[#This Row],[Size]],Table_PI[[#This Row],[Input 1]],Table_PI[[#This Row],[Input 2]],Table_PI[[#This Row],[Input 3]],Table_PI[[#This Row],[Input 4]],'Customer Information'!$AR$12,5,ROW()),\"No Rebate\"),\"No Rebate\"),0)","v":0},{"$f":"IF(Table_PI[[#This Row],[Hide:\nFormula Name]]<>\"\",IFERROR(IF(MeasureCalc(Table_PI[[#This Row],[Hide:\nFormula Name]],Table_PI[[#This Row],[Quantity]],Table_PI[[#This Row],[List 1]],Table_PI[[#This Row],[List 2]],Table_PI[[#This Row],[List 3]],Table_PI[[#This Row],[Size]],Table_PI[[#This Row],[Input 1]],Table_PI[[#This Row],[Input 2]],Table_PI[[#This Row],[Input 3]],Table_PI[[#This Row],[Input 4]],'Customer Information'!$AR$12,1,ROW())>0,MeasureCalc(Table_PI[[#This Row],[Hide:\nFormula Name]],Table_PI[[#This Row],[Quantity]],Table_PI[[#This Row],[List 1]],Table_PI[[#This Row],[List 2]],Table_PI[[#This Row],[List 3]],Table_PI[[#This Row],[Size]],Table_PI[[#This Row],[Input 1]],Table_PI[[#This Row],[Input 2]],Table_PI[[#This Row],[Input 3]],Table_PI[[#This Row],[Input 4]],'Customer Information'!$AR$12,6,ROW()),\"No Rebate\"),\"No Rebate\"),0)","v":0},{"$f":"IF(Table_PI[[#This Row],[Hide:\nFormula Name]]<>\"\",IFERROR(IF(MeasureCalc(Table_PI[[#This Row],[Hide:\nFormula Name]],Table_PI[[#This Row],[Quantity]],Table_PI[[#This Row],[List 1]],Table_PI[[#This Row],[List 2]],Table_PI[[#This Row],[List 3]],Table_PI[[#This Row],[Size]],Table_PI[[#This Row],[Input 1]],Table_PI[[#This Row],[Input 2]],Table_PI[[#This Row],[Input 3]],Table_PI[[#This Row],[Input 4]],'Customer Information'!$AR$12,1,ROW())>0,MeasureCalc(Table_PI[[#This Row],[Hide:\nFormula Name]],Table_PI[[#This Row],[Quantity]],Table_PI[[#This Row],[List 1]],Table_PI[[#This Row],[List 2]],Table_PI[[#This Row],[List 3]],Table_PI[[#This Row],[Size]],Table_PI[[#This Row],[Input 1]],Table_PI[[#This Row],[Input 2]],Table_PI[[#This Row],[Input 3]],Table_PI[[#This Row],[Input 4]],'Customer Information'!$AR$12,7,ROW()),\"No Rebate\"),\"No Rebate\"),0)","v":0},{"$f":"IF(Table_PI[[#This Row],[Hide:\nFormula Name]]<>\"\",IFERROR(IF(MeasureCalc(Table_PI[[#This Row],[Hide:\nFormula Name]],Table_PI[[#This Row],[Quantity]],Table_PI[[#This Row],[List 1]],Table_PI[[#This Row],[List 2]],Table_PI[[#This Row],[List 3]],Table_PI[[#This Row],[Size]],Table_PI[[#This Row],[Input 1]],Table_PI[[#This Row],[Input 2]],Table_PI[[#This Row],[Input 3]],Table_PI[[#This Row],[Input 4]],'Customer Information'!$AR$12,1,ROW())>0,MeasureCalc(Table_PI[[#This Row],[Hide:\nFormula Name]],Table_PI[[#This Row],[Quantity]],Table_PI[[#This Row],[List 1]],Table_PI[[#This Row],[List 2]],Table_PI[[#This Row],[List 3]],Table_PI[[#This Row],[Size]],Table_PI[[#This Row],[Input 1]],Table_PI[[#This Row],[Input 2]],Table_PI[[#This Row],[Input 3]],Table_PI[[#This Row],[Input 4]],'Customer Information'!$AR$12,8,ROW()),\"No Rebate\"),\"No Rebate\"),0)","v":0},{"$f":"IF(Table_PI[[#This Row],[Hide:\nFormula Name]]<>\"\",IF(AND(Table_PI[[#This Row],[Hide:\nFormula Name]]<>\"\",OR(Table_PI[[#This Row],[Rebate]]>0,Table_PI[[#This Row],[Rebate]]=\"No Rebate\")),TRUE,\"MI: Line Item \" & $A81),\"\")","v":""}]
[{"$f":"IF(Table_PI[[#This Row],[Hide:\nFormula Name]]<>\"\",MAX($A$2:A81)+1,\"\")","v":""},null,null,null,null,null,null,null,null,null,null,null,null,null,null,{"$f":"IFERROR(VLOOKUP(Table_PI[[#This Row],[Measure]],'Equipment Lookups'!$C$3:$D$23,2,FALSE),\"\")","v":""},{"$f":"IF(Table_PI[[#This Row],[Hide:\nFormula Name]]<>\"\",IFERROR(IF(MeasureCalc(Table_PI[[#This Row],[Hide:\nFormula Name]],Table_PI[[#This Row],[Quantity]],Table_PI[[#This Row],[List 1]],Table_PI[[#This Row],[List 2]],Table_PI[[#This Row],[List 3]],Table_PI[[#This Row],[Size]],Table_PI[[#This Row],[Input 1]],Table_PI[[#This Row],[Input 2]],Table_PI[[#This Row],[Input 3]],Table_PI[[#This Row],[Input 4]],'Customer Information'!$AR$12,1,ROW())>0,MeasureCalc(Table_PI[[#This Row],[Hide:\nFormula Name]],Table_PI[[#This Row],[Quantity]],Table_PI[[#This Row],[List 1]],Table_PI[[#This Row],[List 2]],Table_PI[[#This Row],[List 3]],Table_PI[[#This Row],[Size]],Table_PI[[#This Row],[Input 1]],Table_PI[[#This Row],[Input 2]],Table_PI[[#This Row],[Input 3]],Table_PI[[#This Row],[Input 4]],'Customer Information'!$AR$12,1,ROW()),\"No Rebate\"),\"No Rebate\"),0)","v":0},{"$f":"IF(Table_PI[[#This Row],[Hide:\nFormula Name]]<>\"\",IFERROR(IF(MeasureCalc(Table_PI[[#This Row],[Hide:\nFormula Name]],Table_PI[[#This Row],[Quantity]],Table_PI[[#This Row],[List 1]],Table_PI[[#This Row],[List 2]],Table_PI[[#This Row],[List 3]],Table_PI[[#This Row],[Size]],Table_PI[[#This Row],[Input 1]],Table_PI[[#This Row],[Input 2]],Table_PI[[#This Row],[Input 3]],Table_PI[[#This Row],[Input 4]],'Customer Information'!$AR$12,1,ROW())>0,MeasureCalc(Table_PI[[#This Row],[Hide:\nFormula Name]],Table_PI[[#This Row],[Quantity]],Table_PI[[#This Row],[List 1]],Table_PI[[#This Row],[List 2]],Table_PI[[#This Row],[List 3]],Table_PI[[#This Row],[Size]],Table_PI[[#This Row],[Input 1]],Table_PI[[#This Row],[Input 2]],Table_PI[[#This Row],[Input 3]],Table_PI[[#This Row],[Input 4]],'Customer Information'!$AR$12,2,ROW()),\"No Rebate\"),\"No Rebate\"),0)","v":0},{"$f":"IF(Table_PI[[#This Row],[Hide:\nFormula Name]]<>\"\",IFERROR(IF(MeasureCalc(Table_PI[[#This Row],[Hide:\nFormula Name]],Table_PI[[#This Row],[Quantity]],Table_PI[[#This Row],[List 1]],Table_PI[[#This Row],[List 2]],Table_PI[[#This Row],[List 3]],Table_PI[[#This Row],[Size]],Table_PI[[#This Row],[Input 1]],Table_PI[[#This Row],[Input 2]],Table_PI[[#This Row],[Input 3]],Table_PI[[#This Row],[Input 4]],'Customer Information'!$AR$12,1,ROW())>0,MeasureCalc(Table_PI[[#This Row],[Hide:\nFormula Name]],Table_PI[[#This Row],[Quantity]],Table_PI[[#This Row],[List 1]],Table_PI[[#This Row],[List 2]],Table_PI[[#This Row],[List 3]],Table_PI[[#This Row],[Size]],Table_PI[[#This Row],[Input 1]],Table_PI[[#This Row],[Input 2]],Table_PI[[#This Row],[Input 3]],Table_PI[[#This Row],[Input 4]],'Customer Information'!$AR$12,3,ROW()),\"No Rebate\"),\"No Rebate\"),0)","v":0},{"$f":"IF(Table_PI[[#This Row],[Hide:\nFormula Name]]<>\"\",IFERROR(IF(MeasureCalc(Table_PI[[#This Row],[Hide:\nFormula Name]],Table_PI[[#This Row],[Quantity]],Table_PI[[#This Row],[List 1]],Table_PI[[#This Row],[List 2]],Table_PI[[#This Row],[List 3]],Table_PI[[#This Row],[Size]],Table_PI[[#This Row],[Input 1]],Table_PI[[#This Row],[Input 2]],Table_PI[[#This Row],[Input 3]],Table_PI[[#This Row],[Input 4]],'Customer Information'!$AR$12,1,ROW())>0,MeasureCalc(Table_PI[[#This Row],[Hide:\nFormula Name]],Table_PI[[#This Row],[Quantity]],Table_PI[[#This Row],[List 1]],Table_PI[[#This Row],[List 2]],Table_PI[[#This Row],[List 3]],Table_PI[[#This Row],[Size]],Table_PI[[#This Row],[Input 1]],Table_PI[[#This Row],[Input 2]],Table_PI[[#This Row],[Input 3]],Table_PI[[#This Row],[Input 4]],'Customer Information'!$AR$12,4,ROW()),\"No Rebate\"),\"No Rebate\"),0)","v":0},{"$f":"IF(Table_PI[[#This Row],[Hide:\nFormula Name]]<>\"\",IFERROR(IF(MeasureCalc(Table_PI[[#This Row],[Hide:\nFormula Name]],Table_PI[[#This Row],[Quantity]],Table_PI[[#This Row],[List 1]],Table_PI[[#This Row],[List 2]],Table_PI[[#This Row],[List 3]],Table_PI[[#This Row],[Size]],Table_PI[[#This Row],[Input 1]],Table_PI[[#This Row],[Input 2]],Table_PI[[#This Row],[Input 3]],Table_PI[[#This Row],[Input 4]],'Customer Information'!$AR$12,1,ROW())>0,MeasureCalc(Table_PI[[#This Row],[Hide:\nFormula Name]],Table_PI[[#This Row],[Quantity]],Table_PI[[#This Row],[List 1]],Table_PI[[#This Row],[List 2]],Table_PI[[#This Row],[List 3]],Table_PI[[#This Row],[Size]],Table_PI[[#This Row],[Input 1]],Table_PI[[#This Row],[Input 2]],Table_PI[[#This Row],[Input 3]],Table_PI[[#This Row],[Input 4]],'Customer Information'!$AR$12,5,ROW()),\"No Rebate\"),\"No Rebate\"),0)","v":0},{"$f":"IF(Table_PI[[#This Row],[Hide:\nFormula Name]]<>\"\",IFERROR(IF(MeasureCalc(Table_PI[[#This Row],[Hide:\nFormula Name]],Table_PI[[#This Row],[Quantity]],Table_PI[[#This Row],[List 1]],Table_PI[[#This Row],[List 2]],Table_PI[[#This Row],[List 3]],Table_PI[[#This Row],[Size]],Table_PI[[#This Row],[Input 1]],Table_PI[[#This Row],[Input 2]],Table_PI[[#This Row],[Input 3]],Table_PI[[#This Row],[Input 4]],'Customer Information'!$AR$12,1,ROW())>0,MeasureCalc(Table_PI[[#This Row],[Hide:\nFormula Name]],Table_PI[[#This Row],[Quantity]],Table_PI[[#This Row],[List 1]],Table_PI[[#This Row],[List 2]],Table_PI[[#This Row],[List 3]],Table_PI[[#This Row],[Size]],Table_PI[[#This Row],[Input 1]],Table_PI[[#This Row],[Input 2]],Table_PI[[#This Row],[Input 3]],Table_PI[[#This Row],[Input 4]],'Customer Information'!$AR$12,6,ROW()),\"No Rebate\"),\"No Rebate\"),0)","v":0},{"$f":"IF(Table_PI[[#This Row],[Hide:\nFormula Name]]<>\"\",IFERROR(IF(MeasureCalc(Table_PI[[#This Row],[Hide:\nFormula Name]],Table_PI[[#This Row],[Quantity]],Table_PI[[#This Row],[List 1]],Table_PI[[#This Row],[List 2]],Table_PI[[#This Row],[List 3]],Table_PI[[#This Row],[Size]],Table_PI[[#This Row],[Input 1]],Table_PI[[#This Row],[Input 2]],Table_PI[[#This Row],[Input 3]],Table_PI[[#This Row],[Input 4]],'Customer Information'!$AR$12,1,ROW())>0,MeasureCalc(Table_PI[[#This Row],[Hide:\nFormula Name]],Table_PI[[#This Row],[Quantity]],Table_PI[[#This Row],[List 1]],Table_PI[[#This Row],[List 2]],Table_PI[[#This Row],[List 3]],Table_PI[[#This Row],[Size]],Table_PI[[#This Row],[Input 1]],Table_PI[[#This Row],[Input 2]],Table_PI[[#This Row],[Input 3]],Table_PI[[#This Row],[Input 4]],'Customer Information'!$AR$12,7,ROW()),\"No Rebate\"),\"No Rebate\"),0)","v":0},{"$f":"IF(Table_PI[[#This Row],[Hide:\nFormula Name]]<>\"\",IFERROR(IF(MeasureCalc(Table_PI[[#This Row],[Hide:\nFormula Name]],Table_PI[[#This Row],[Quantity]],Table_PI[[#This Row],[List 1]],Table_PI[[#This Row],[List 2]],Table_PI[[#This Row],[List 3]],Table_PI[[#This Row],[Size]],Table_PI[[#This Row],[Input 1]],Table_PI[[#This Row],[Input 2]],Table_PI[[#This Row],[Input 3]],Table_PI[[#This Row],[Input 4]],'Customer Information'!$AR$12,1,ROW())>0,MeasureCalc(Table_PI[[#This Row],[Hide:\nFormula Name]],Table_PI[[#This Row],[Quantity]],Table_PI[[#This Row],[List 1]],Table_PI[[#This Row],[List 2]],Table_PI[[#This Row],[List 3]],Table_PI[[#This Row],[Size]],Table_PI[[#This Row],[Input 1]],Table_PI[[#This Row],[Input 2]],Table_PI[[#This Row],[Input 3]],Table_PI[[#This Row],[Input 4]],'Customer Information'!$AR$12,8,ROW()),\"No Rebate\"),\"No Rebate\"),0)","v":0},{"$f":"IF(Table_PI[[#This Row],[Hide:\nFormula Name]]<>\"\",IF(AND(Table_PI[[#This Row],[Hide:\nFormula Name]]<>\"\",OR(Table_PI[[#This Row],[Rebate]]>0,Table_PI[[#This Row],[Rebate]]=\"No Rebate\")),TRUE,\"MI: Line Item \" & $A82),\"\")","v":""}]
[{"$f":"IF(Table_PI[[#This Row],[Hide:\nFormula Name]]<>\"\",MAX($A$2:A82)+1,\"\")","v":""},null,null,null,null,null,null,null,null,null,null,null,null,null,null,{"$f":"IFERROR(VLOOKUP(Table_PI[[#This Row],[Measure]],'Equipment Lookups'!$C$3:$D$23,2,FALSE),\"\")","v":""},{"$f":"IF(Table_PI[[#This Row],[Hide:\nFormula Name]]<>\"\",IFERROR(IF(MeasureCalc(Table_PI[[#This Row],[Hide:\nFormula Name]],Table_PI[[#This Row],[Quantity]],Table_PI[[#This Row],[List 1]],Table_PI[[#This Row],[List 2]],Table_PI[[#This Row],[List 3]],Table_PI[[#This Row],[Size]],Table_PI[[#This Row],[Input 1]],Table_PI[[#This Row],[Input 2]],Table_PI[[#This Row],[Input 3]],Table_PI[[#This Row],[Input 4]],'Customer Information'!$AR$12,1,ROW())>0,MeasureCalc(Table_PI[[#This Row],[Hide:\nFormula Name]],Table_PI[[#This Row],[Quantity]],Table_PI[[#This Row],[List 1]],Table_PI[[#This Row],[List 2]],Table_PI[[#This Row],[List 3]],Table_PI[[#This Row],[Size]],Table_PI[[#This Row],[Input 1]],Table_PI[[#This Row],[Input 2]],Table_PI[[#This Row],[Input 3]],Table_PI[[#This Row],[Input 4]],'Customer Information'!$AR$12,1,ROW()),\"No Rebate\"),\"No Rebate\"),0)","v":0},{"$f":"IF(Table_PI[[#This Row],[Hide:\nFormula Name]]<>\"\",IFERROR(IF(MeasureCalc(Table_PI[[#This Row],[Hide:\nFormula Name]],Table_PI[[#This Row],[Quantity]],Table_PI[[#This Row],[List 1]],Table_PI[[#This Row],[List 2]],Table_PI[[#This Row],[List 3]],Table_PI[[#This Row],[Size]],Table_PI[[#This Row],[Input 1]],Table_PI[[#This Row],[Input 2]],Table_PI[[#This Row],[Input 3]],Table_PI[[#This Row],[Input 4]],'Customer Information'!$AR$12,1,ROW())>0,MeasureCalc(Table_PI[[#This Row],[Hide:\nFormula Name]],Table_PI[[#This Row],[Quantity]],Table_PI[[#This Row],[List 1]],Table_PI[[#This Row],[List 2]],Table_PI[[#This Row],[List 3]],Table_PI[[#This Row],[Size]],Table_PI[[#This Row],[Input 1]],Table_PI[[#This Row],[Input 2]],Table_PI[[#This Row],[Input 3]],Table_PI[[#This Row],[Input 4]],'Customer Information'!$AR$12,2,ROW()),\"No Rebate\"),\"No Rebate\"),0)","v":0},{"$f":"IF(Table_PI[[#This Row],[Hide:\nFormula Name]]<>\"\",IFERROR(IF(MeasureCalc(Table_PI[[#This Row],[Hide:\nFormula Name]],Table_PI[[#This Row],[Quantity]],Table_PI[[#This Row],[List 1]],Table_PI[[#This Row],[List 2]],Table_PI[[#This Row],[List 3]],Table_PI[[#This Row],[Size]],Table_PI[[#This Row],[Input 1]],Table_PI[[#This Row],[Input 2]],Table_PI[[#This Row],[Input 3]],Table_PI[[#This Row],[Input 4]],'Customer Information'!$AR$12,1,ROW())>0,MeasureCalc(Table_PI[[#This Row],[Hide:\nFormula Name]],Table_PI[[#This Row],[Quantity]],Table_PI[[#This Row],[List 1]],Table_PI[[#This Row],[List 2]],Table_PI[[#This Row],[List 3]],Table_PI[[#This Row],[Size]],Table_PI[[#This Row],[Input 1]],Table_PI[[#This Row],[Input 2]],Table_PI[[#This Row],[Input 3]],Table_PI[[#This Row],[Input 4]],'Customer Information'!$AR$12,3,ROW()),\"No Rebate\"),\"No Rebate\"),0)","v":0},{"$f":"IF(Table_PI[[#This Row],[Hide:\nFormula Name]]<>\"\",IFERROR(IF(MeasureCalc(Table_PI[[#This Row],[Hide:\nFormula Name]],Table_PI[[#This Row],[Quantity]],Table_PI[[#This Row],[List 1]],Table_PI[[#This Row],[List 2]],Table_PI[[#This Row],[List 3]],Table_PI[[#This Row],[Size]],Table_PI[[#This Row],[Input 1]],Table_PI[[#This Row],[Input 2]],Table_PI[[#This Row],[Input 3]],Table_PI[[#This Row],[Input 4]],'Customer Information'!$AR$12,1,ROW())>0,MeasureCalc(Table_PI[[#This Row],[Hide:\nFormula Name]],Table_PI[[#This Row],[Quantity]],Table_PI[[#This Row],[List 1]],Table_PI[[#This Row],[List 2]],Table_PI[[#This Row],[List 3]],Table_PI[[#This Row],[Size]],Table_PI[[#This Row],[Input 1]],Table_PI[[#This Row],[Input 2]],Table_PI[[#This Row],[Input 3]],Table_PI[[#This Row],[Input 4]],'Customer Information'!$AR$12,4,ROW()),\"No Rebate\"),\"No Rebate\"),0)","v":0},{"$f":"IF(Table_PI[[#This Row],[Hide:\nFormula Name]]<>\"\",IFERROR(IF(MeasureCalc(Table_PI[[#This Row],[Hide:\nFormula Name]],Table_PI[[#This Row],[Quantity]],Table_PI[[#This Row],[List 1]],Table_PI[[#This Row],[List 2]],Table_PI[[#This Row],[List 3]],Table_PI[[#This Row],[Size]],Table_PI[[#This Row],[Input 1]],Table_PI[[#This Row],[Input 2]],Table_PI[[#This Row],[Input 3]],Table_PI[[#This Row],[Input 4]],'Customer Information'!$AR$12,1,ROW())>0,MeasureCalc(Table_PI[[#This Row],[Hide:\nFormula Name]],Table_PI[[#This Row],[Quantity]],Table_PI[[#This Row],[List 1]],Table_PI[[#This Row],[List 2]],Table_PI[[#This Row],[List 3]],Table_PI[[#This Row],[Size]],Table_PI[[#This Row],[Input 1]],Table_PI[[#This Row],[Input 2]],Table_PI[[#This Row],[Input 3]],Table_PI[[#This Row],[Input 4]],'Customer Information'!$AR$12,5,ROW()),\"No Rebate\"),\"No Rebate\"),0)","v":0},{"$f":"IF(Table_PI[[#This Row],[Hide:\nFormula Name]]<>\"\",IFERROR(IF(MeasureCalc(Table_PI[[#This Row],[Hide:\nFormula Name]],Table_PI[[#This Row],[Quantity]],Table_PI[[#This Row],[List 1]],Table_PI[[#This Row],[List 2]],Table_PI[[#This Row],[List 3]],Table_PI[[#This Row],[Size]],Table_PI[[#This Row],[Input 1]],Table_PI[[#This Row],[Input 2]],Table_PI[[#This Row],[Input 3]],Table_PI[[#This Row],[Input 4]],'Customer Information'!$AR$12,1,ROW())>0,MeasureCalc(Table_PI[[#This Row],[Hide:\nFormula Name]],Table_PI[[#This Row],[Quantity]],Table_PI[[#This Row],[List 1]],Table_PI[[#This Row],[List 2]],Table_PI[[#This Row],[List 3]],Table_PI[[#This Row],[Size]],Table_PI[[#This Row],[Input 1]],Table_PI[[#This Row],[Input 2]],Table_PI[[#This Row],[Input 3]],Table_PI[[#This Row],[Input 4]],'Customer Information'!$AR$12,6,ROW()),\"No Rebate\"),\"No Rebate\"),0)","v":0},{"$f":"IF(Table_PI[[#This Row],[Hide:\nFormula Name]]<>\"\",IFERROR(IF(MeasureCalc(Table_PI[[#This Row],[Hide:\nFormula Name]],Table_PI[[#This Row],[Quantity]],Table_PI[[#This Row],[List 1]],Table_PI[[#This Row],[List 2]],Table_PI[[#This Row],[List 3]],Table_PI[[#This Row],[Size]],Table_PI[[#This Row],[Input 1]],Table_PI[[#This Row],[Input 2]],Table_PI[[#This Row],[Input 3]],Table_PI[[#This Row],[Input 4]],'Customer Information'!$AR$12,1,ROW())>0,MeasureCalc(Table_PI[[#This Row],[Hide:\nFormula Name]],Table_PI[[#This Row],[Quantity]],Table_PI[[#This Row],[List 1]],Table_PI[[#This Row],[List 2]],Table_PI[[#This Row],[List 3]],Table_PI[[#This Row],[Size]],Table_PI[[#This Row],[Input 1]],Table_PI[[#This Row],[Input 2]],Table_PI[[#This Row],[Input 3]],Table_PI[[#This Row],[Input 4]],'Customer Information'!$AR$12,7,ROW()),\"No Rebate\"),\"No Rebate\"),0)","v":0},{"$f":"IF(Table_PI[[#This Row],[Hide:\nFormula Name]]<>\"\",IFERROR(IF(MeasureCalc(Table_PI[[#This Row],[Hide:\nFormula Name]],Table_PI[[#This Row],[Quantity]],Table_PI[[#This Row],[List 1]],Table_PI[[#This Row],[List 2]],Table_PI[[#This Row],[List 3]],Table_PI[[#This Row],[Size]],Table_PI[[#This Row],[Input 1]],Table_PI[[#This Row],[Input 2]],Table_PI[[#This Row],[Input 3]],Table_PI[[#This Row],[Input 4]],'Customer Information'!$AR$12,1,ROW())>0,MeasureCalc(Table_PI[[#This Row],[Hide:\nFormula Name]],Table_PI[[#This Row],[Quantity]],Table_PI[[#This Row],[List 1]],Table_PI[[#This Row],[List 2]],Table_PI[[#This Row],[List 3]],Table_PI[[#This Row],[Size]],Table_PI[[#This Row],[Input 1]],Table_PI[[#This Row],[Input 2]],Table_PI[[#This Row],[Input 3]],Table_PI[[#This Row],[Input 4]],'Customer Information'!$AR$12,8,ROW()),\"No Rebate\"),\"No Rebate\"),0)","v":0},{"$f":"IF(Table_PI[[#This Row],[Hide:\nFormula Name]]<>\"\",IF(AND(Table_PI[[#This Row],[Hide:\nFormula Name]]<>\"\",OR(Table_PI[[#This Row],[Rebate]]>0,Table_PI[[#This Row],[Rebate]]=\"No Rebate\")),TRUE,\"MI: Line Item \" & $A83),\"\")","v":""}]
[{"$f":"IF(Table_PI[[#This Row],[Hide:\nFormula Name]]<>\"\",MAX($A$2:A83)+1,\"\")","v":""},null,null,null,null,null,null,null,null,null,null,null,null,null,null,{"$f":"IFERROR(VLOOKUP(Table_PI[[#This Row],[Measure]],'Equipment Lookups'!$C$3:$D$23,2,FALSE),\"\")","v":""},{"$f":"IF(Table_PI[[#This Row],[Hide:\nFormula Name]]<>\"\",IFERROR(IF(MeasureCalc(Table_PI[[#This Row],[Hide:\nFormula Name]],Table_PI[[#This Row],[Quantity]],Table_PI[[#This Row],[List 1]],Table_PI[[#This Row],[List 2]],Table_PI[[#This Row],[List 3]],Table_PI[[#This Row],[Size]],Table_PI[[#This Row],[Input 1]],Table_PI[[#This Row],[Input 2]],Table_PI[[#This Row],[Input 3]],Table_PI[[#This Row],[Input 4]],'Customer Information'!$AR$12,1,ROW())>0,MeasureCalc(Table_PI[[#This Row],[Hide:\nFormula Name]],Table_PI[[#This Row],[Quantity]],Table_PI[[#This Row],[List 1]],Table_PI[[#This Row],[List 2]],Table_PI[[#This Row],[List 3]],Table_PI[[#This Row],[Size]],Table_PI[[#This Row],[Input 1]],Table_PI[[#This Row],[Input 2]],Table_PI[[#This Row],[Input 3]],Table_PI[[#This Row],[Input 4]],'Customer Information'!$AR$12,1,ROW()),\"No Rebate\"),\"No Rebate\"),0)","v":0},{"$f":"IF(Table_PI[[#This Row],[Hide:\nFormula Name]]<>\"\",IFERROR(IF(MeasureCalc(Table_PI[[#This Row],[Hide:\nFormula Name]],Table_PI[[#This Row],[Quantity]],Table_PI[[#This Row],[List 1]],Table_PI[[#This Row],[List 2]],Table_PI[[#This Row],[List 3]],Table_PI[[#This Row],[Size]],Table_PI[[#This Row],[Input 1]],Table_PI[[#This Row],[Input 2]],Table_PI[[#This Row],[Input 3]],Table_PI[[#This Row],[Input 4]],'Customer Information'!$AR$12,1,ROW())>0,MeasureCalc(Table_PI[[#This Row],[Hide:\nFormula Name]],Table_PI[[#This Row],[Quantity]],Table_PI[[#This Row],[List 1]],Table_PI[[#This Row],[List 2]],Table_PI[[#This Row],[List 3]],Table_PI[[#This Row],[Size]],Table_PI[[#This Row],[Input 1]],Table_PI[[#This Row],[Input 2]],Table_PI[[#This Row],[Input 3]],Table_PI[[#This Row],[Input 4]],'Customer Information'!$AR$12,2,ROW()),\"No Rebate\"),\"No Rebate\"),0)","v":0},{"$f":"IF(Table_PI[[#This Row],[Hide:\nFormula Name]]<>\"\",IFERROR(IF(MeasureCalc(Table_PI[[#This Row],[Hide:\nFormula Name]],Table_PI[[#This Row],[Quantity]],Table_PI[[#This Row],[List 1]],Table_PI[[#This Row],[List 2]],Table_PI[[#This Row],[List 3]],Table_PI[[#This Row],[Size]],Table_PI[[#This Row],[Input 1]],Table_PI[[#This Row],[Input 2]],Table_PI[[#This Row],[Input 3]],Table_PI[[#This Row],[Input 4]],'Customer Information'!$AR$12,1,ROW())>0,MeasureCalc(Table_PI[[#This Row],[Hide:\nFormula Name]],Table_PI[[#This Row],[Quantity]],Table_PI[[#This Row],[List 1]],Table_PI[[#This Row],[List 2]],Table_PI[[#This Row],[List 3]],Table_PI[[#This Row],[Size]],Table_PI[[#This Row],[Input 1]],Table_PI[[#This Row],[Input 2]],Table_PI[[#This Row],[Input 3]],Table_PI[[#This Row],[Input 4]],'Customer Information'!$AR$12,3,ROW()),\"No Rebate\"),\"No Rebate\"),0)","v":0},{"$f":"IF(Table_PI[[#This Row],[Hide:\nFormula Name]]<>\"\",IFERROR(IF(MeasureCalc(Table_PI[[#This Row],[Hide:\nFormula Name]],Table_PI[[#This Row],[Quantity]],Table_PI[[#This Row],[List 1]],Table_PI[[#This Row],[List 2]],Table_PI[[#This Row],[List 3]],Table_PI[[#This Row],[Size]],Table_PI[[#This Row],[Input 1]],Table_PI[[#This Row],[Input 2]],Table_PI[[#This Row],[Input 3]],Table_PI[[#This Row],[Input 4]],'Customer Information'!$AR$12,1,ROW())>0,MeasureCalc(Table_PI[[#This Row],[Hide:\nFormula Name]],Table_PI[[#This Row],[Quantity]],Table_PI[[#This Row],[List 1]],Table_PI[[#This Row],[List 2]],Table_PI[[#This Row],[List 3]],Table_PI[[#This Row],[Size]],Table_PI[[#This Row],[Input 1]],Table_PI[[#This Row],[Input 2]],Table_PI[[#This Row],[Input 3]],Table_PI[[#This Row],[Input 4]],'Customer Information'!$AR$12,4,ROW()),\"No Rebate\"),\"No Rebate\"),0)","v":0},{"$f":"IF(Table_PI[[#This Row],[Hide:\nFormula Name]]<>\"\",IFERROR(IF(MeasureCalc(Table_PI[[#This Row],[Hide:\nFormula Name]],Table_PI[[#This Row],[Quantity]],Table_PI[[#This Row],[List 1]],Table_PI[[#This Row],[List 2]],Table_PI[[#This Row],[List 3]],Table_PI[[#This Row],[Size]],Table_PI[[#This Row],[Input 1]],Table_PI[[#This Row],[Input 2]],Table_PI[[#This Row],[Input 3]],Table_PI[[#This Row],[Input 4]],'Customer Information'!$AR$12,1,ROW())>0,MeasureCalc(Table_PI[[#This Row],[Hide:\nFormula Name]],Table_PI[[#This Row],[Quantity]],Table_PI[[#This Row],[List 1]],Table_PI[[#This Row],[List 2]],Table_PI[[#This Row],[List 3]],Table_PI[[#This Row],[Size]],Table_PI[[#This Row],[Input 1]],Table_PI[[#This Row],[Input 2]],Table_PI[[#This Row],[Input 3]],Table_PI[[#This Row],[Input 4]],'Customer Information'!$AR$12,5,ROW()),\"No Rebate\"),\"No Rebate\"),0)","v":0},{"$f":"IF(Table_PI[[#This Row],[Hide:\nFormula Name]]<>\"\",IFERROR(IF(MeasureCalc(Table_PI[[#This Row],[Hide:\nFormula Name]],Table_PI[[#This Row],[Quantity]],Table_PI[[#This Row],[List 1]],Table_PI[[#This Row],[List 2]],Table_PI[[#This Row],[List 3]],Table_PI[[#This Row],[Size]],Table_PI[[#This Row],[Input 1]],Table_PI[[#This Row],[Input 2]],Table_PI[[#This Row],[Input 3]],Table_PI[[#This Row],[Input 4]],'Customer Information'!$AR$12,1,ROW())>0,MeasureCalc(Table_PI[[#This Row],[Hide:\nFormula Name]],Table_PI[[#This Row],[Quantity]],Table_PI[[#This Row],[List 1]],Table_PI[[#This Row],[List 2]],Table_PI[[#This Row],[List 3]],Table_PI[[#This Row],[Size]],Table_PI[[#This Row],[Input 1]],Table_PI[[#This Row],[Input 2]],Table_PI[[#This Row],[Input 3]],Table_PI[[#This Row],[Input 4]],'Customer Information'!$AR$12,6,ROW()),\"No Rebate\"),\"No Rebate\"),0)","v":0},{"$f":"IF(Table_PI[[#This Row],[Hide:\nFormula Name]]<>\"\",IFERROR(IF(MeasureCalc(Table_PI[[#This Row],[Hide:\nFormula Name]],Table_PI[[#This Row],[Quantity]],Table_PI[[#This Row],[List 1]],Table_PI[[#This Row],[List 2]],Table_PI[[#This Row],[List 3]],Table_PI[[#This Row],[Size]],Table_PI[[#This Row],[Input 1]],Table_PI[[#This Row],[Input 2]],Table_PI[[#This Row],[Input 3]],Table_PI[[#This Row],[Input 4]],'Customer Information'!$AR$12,1,ROW())>0,MeasureCalc(Table_PI[[#This Row],[Hide:\nFormula Name]],Table_PI[[#This Row],[Quantity]],Table_PI[[#This Row],[List 1]],Table_PI[[#This Row],[List 2]],Table_PI[[#This Row],[List 3]],Table_PI[[#This Row],[Size]],Table_PI[[#This Row],[Input 1]],Table_PI[[#This Row],[Input 2]],Table_PI[[#This Row],[Input 3]],Table_PI[[#This Row],[Input 4]],'Customer Information'!$AR$12,7,ROW()),\"No Rebate\"),\"No Rebate\"),0)","v":0},{"$f":"IF(Table_PI[[#This Row],[Hide:\nFormula Name]]<>\"\",IFERROR(IF(MeasureCalc(Table_PI[[#This Row],[Hide:\nFormula Name]],Table_PI[[#This Row],[Quantity]],Table_PI[[#This Row],[List 1]],Table_PI[[#This Row],[List 2]],Table_PI[[#This Row],[List 3]],Table_PI[[#This Row],[Size]],Table_PI[[#This Row],[Input 1]],Table_PI[[#This Row],[Input 2]],Table_PI[[#This Row],[Input 3]],Table_PI[[#This Row],[Input 4]],'Customer Information'!$AR$12,1,ROW())>0,MeasureCalc(Table_PI[[#This Row],[Hide:\nFormula Name]],Table_PI[[#This Row],[Quantity]],Table_PI[[#This Row],[List 1]],Table_PI[[#This Row],[List 2]],Table_PI[[#This Row],[List 3]],Table_PI[[#This Row],[Size]],Table_PI[[#This Row],[Input 1]],Table_PI[[#This Row],[Input 2]],Table_PI[[#This Row],[Input 3]],Table_PI[[#This Row],[Input 4]],'Customer Information'!$AR$12,8,ROW()),\"No Rebate\"),\"No Rebate\"),0)","v":0},{"$f":"IF(Table_PI[[#This Row],[Hide:\nFormula Name]]<>\"\",IF(AND(Table_PI[[#This Row],[Hide:\nFormula Name]]<>\"\",OR(Table_PI[[#This Row],[Rebate]]>0,Table_PI[[#This Row],[Rebate]]=\"No Rebate\")),TRUE,\"MI: Line Item \" & $A84),\"\")","v":""}]
[{"$f":"IF(Table_PI[[#This Row],[Hide:\nFormula Name]]<>\"\",MAX($A$2:A84)+1,\"\")","v":""},null,null,null,null,null,null,null,null,null,null,null,null,null,null,{"$f":"IFERROR(VLOOKUP(Table_PI[[#This Row],[Measure]],'Equipment Lookups'!$C$3:$D$23,2,FALSE),\"\")","v":""},{"$f":"IF(Table_PI[[#This Row],[Hide:\nFormula Name]]<>\"\",IFERROR(IF(MeasureCalc(Table_PI[[#This Row],[Hide:\nFormula Name]],Table_PI[[#This Row],[Quantity]],Table_PI[[#This Row],[List 1]],Table_PI[[#This Row],[List 2]],Table_PI[[#This Row],[List 3]],Table_PI[[#This Row],[Size]],Table_PI[[#This Row],[Input 1]],Table_PI[[#This Row],[Input 2]],Table_PI[[#This Row],[Input 3]],Table_PI[[#This Row],[Input 4]],'Customer Information'!$AR$12,1,ROW())>0,MeasureCalc(Table_PI[[#This Row],[Hide:\nFormula Name]],Table_PI[[#This Row],[Quantity]],Table_PI[[#This Row],[List 1]],Table_PI[[#This Row],[List 2]],Table_PI[[#This Row],[List 3]],Table_PI[[#This Row],[Size]],Table_PI[[#This Row],[Input 1]],Table_PI[[#This Row],[Input 2]],Table_PI[[#This Row],[Input 3]],Table_PI[[#This Row],[Input 4]],'Customer Information'!$AR$12,1,ROW()),\"No Rebate\"),\"No Rebate\"),0)","v":0},{"$f":"IF(Table_PI[[#This Row],[Hide:\nFormula Name]]<>\"\",IFERROR(IF(MeasureCalc(Table_PI[[#This Row],[Hide:\nFormula Name]],Table_PI[[#This Row],[Quantity]],Table_PI[[#This Row],[List 1]],Table_PI[[#This Row],[List 2]],Table_PI[[#This Row],[List 3]],Table_PI[[#This Row],[Size]],Table_PI[[#This Row],[Input 1]],Table_PI[[#This Row],[Input 2]],Table_PI[[#This Row],[Input 3]],Table_PI[[#This Row],[Input 4]],'Customer Information'!$AR$12,1,ROW())>0,MeasureCalc(Table_PI[[#This Row],[Hide:\nFormula Name]],Table_PI[[#This Row],[Quantity]],Table_PI[[#This Row],[List 1]],Table_PI[[#This Row],[List 2]],Table_PI[[#This Row],[List 3]],Table_PI[[#This Row],[Size]],Table_PI[[#This Row],[Input 1]],Table_PI[[#This Row],[Input 2]],Table_PI[[#This Row],[Input 3]],Table_PI[[#This Row],[Input 4]],'Customer Information'!$AR$12,2,ROW()),\"No Rebate\"),\"No Rebate\"),0)","v":0},{"$f":"IF(Table_PI[[#This Row],[Hide:\nFormula Name]]<>\"\",IFERROR(IF(MeasureCalc(Table_PI[[#This Row],[Hide:\nFormula Name]],Table_PI[[#This Row],[Quantity]],Table_PI[[#This Row],[List 1]],Table_PI[[#This Row],[List 2]],Table_PI[[#This Row],[List 3]],Table_PI[[#This Row],[Size]],Table_PI[[#This Row],[Input 1]],Table_PI[[#This Row],[Input 2]],Table_PI[[#This Row],[Input 3]],Table_PI[[#This Row],[Input 4]],'Customer Information'!$AR$12,1,ROW())>0,MeasureCalc(Table_PI[[#This Row],[Hide:\nFormula Name]],Table_PI[[#This Row],[Quantity]],Table_PI[[#This Row],[List 1]],Table_PI[[#This Row],[List 2]],Table_PI[[#This Row],[List 3]],Table_PI[[#This Row],[Size]],Table_PI[[#This Row],[Input 1]],Table_PI[[#This Row],[Input 2]],Table_PI[[#This Row],[Input 3]],Table_PI[[#This Row],[Input 4]],'Customer Information'!$AR$12,3,ROW()),\"No Rebate\"),\"No Rebate\"),0)","v":0},{"$f":"IF(Table_PI[[#This Row],[Hide:\nFormula Name]]<>\"\",IFERROR(IF(MeasureCalc(Table_PI[[#This Row],[Hide:\nFormula Name]],Table_PI[[#This Row],[Quantity]],Table_PI[[#This Row],[List 1]],Table_PI[[#This Row],[List 2]],Table_PI[[#This Row],[List 3]],Table_PI[[#This Row],[Size]],Table_PI[[#This Row],[Input 1]],Table_PI[[#This Row],[Input 2]],Table_PI[[#This Row],[Input 3]],Table_PI[[#This Row],[Input 4]],'Customer Information'!$AR$12,1,ROW())>0,MeasureCalc(Table_PI[[#This Row],[Hide:\nFormula Name]],Table_PI[[#This Row],[Quantity]],Table_PI[[#This Row],[List 1]],Table_PI[[#This Row],[List 2]],Table_PI[[#This Row],[List 3]],Table_PI[[#This Row],[Size]],Table_PI[[#This Row],[Input 1]],Table_PI[[#This Row],[Input 2]],Table_PI[[#This Row],[Input 3]],Table_PI[[#This Row],[Input 4]],'Customer Information'!$AR$12,4,ROW()),\"No Rebate\"),\"No Rebate\"),0)","v":0},{"$f":"IF(Table_PI[[#This Row],[Hide:\nFormula Name]]<>\"\",IFERROR(IF(MeasureCalc(Table_PI[[#This Row],[Hide:\nFormula Name]],Table_PI[[#This Row],[Quantity]],Table_PI[[#This Row],[List 1]],Table_PI[[#This Row],[List 2]],Table_PI[[#This Row],[List 3]],Table_PI[[#This Row],[Size]],Table_PI[[#This Row],[Input 1]],Table_PI[[#This Row],[Input 2]],Table_PI[[#This Row],[Input 3]],Table_PI[[#This Row],[Input 4]],'Customer Information'!$AR$12,1,ROW())>0,MeasureCalc(Table_PI[[#This Row],[Hide:\nFormula Name]],Table_PI[[#This Row],[Quantity]],Table_PI[[#This Row],[List 1]],Table_PI[[#This Row],[List 2]],Table_PI[[#This Row],[List 3]],Table_PI[[#This Row],[Size]],Table_PI[[#This Row],[Input 1]],Table_PI[[#This Row],[Input 2]],Table_PI[[#This Row],[Input 3]],Table_PI[[#This Row],[Input 4]],'Customer Information'!$AR$12,5,ROW()),\"No Rebate\"),\"No Rebate\"),0)","v":0},{"$f":"IF(Table_PI[[#This Row],[Hide:\nFormula Name]]<>\"\",IFERROR(IF(MeasureCalc(Table_PI[[#This Row],[Hide:\nFormula Name]],Table_PI[[#This Row],[Quantity]],Table_PI[[#This Row],[List 1]],Table_PI[[#This Row],[List 2]],Table_PI[[#This Row],[List 3]],Table_PI[[#This Row],[Size]],Table_PI[[#This Row],[Input 1]],Table_PI[[#This Row],[Input 2]],Table_PI[[#This Row],[Input 3]],Table_PI[[#This Row],[Input 4]],'Customer Information'!$AR$12,1,ROW())>0,MeasureCalc(Table_PI[[#This Row],[Hide:\nFormula Name]],Table_PI[[#This Row],[Quantity]],Table_PI[[#This Row],[List 1]],Table_PI[[#This Row],[List 2]],Table_PI[[#This Row],[List 3]],Table_PI[[#This Row],[Size]],Table_PI[[#This Row],[Input 1]],Table_PI[[#This Row],[Input 2]],Table_PI[[#This Row],[Input 3]],Table_PI[[#This Row],[Input 4]],'Customer Information'!$AR$12,6,ROW()),\"No Rebate\"),\"No Rebate\"),0)","v":0},{"$f":"IF(Table_PI[[#This Row],[Hide:\nFormula Name]]<>\"\",IFERROR(IF(MeasureCalc(Table_PI[[#This Row],[Hide:\nFormula Name]],Table_PI[[#This Row],[Quantity]],Table_PI[[#This Row],[List 1]],Table_PI[[#This Row],[List 2]],Table_PI[[#This Row],[List 3]],Table_PI[[#This Row],[Size]],Table_PI[[#This Row],[Input 1]],Table_PI[[#This Row],[Input 2]],Table_PI[[#This Row],[Input 3]],Table_PI[[#This Row],[Input 4]],'Customer Information'!$AR$12,1,ROW())>0,MeasureCalc(Table_PI[[#This Row],[Hide:\nFormula Name]],Table_PI[[#This Row],[Quantity]],Table_PI[[#This Row],[List 1]],Table_PI[[#This Row],[List 2]],Table_PI[[#This Row],[List 3]],Table_PI[[#This Row],[Size]],Table_PI[[#This Row],[Input 1]],Table_PI[[#This Row],[Input 2]],Table_PI[[#This Row],[Input 3]],Table_PI[[#This Row],[Input 4]],'Customer Information'!$AR$12,7,ROW()),\"No Rebate\"),\"No Rebate\"),0)","v":0},{"$f":"IF(Table_PI[[#This Row],[Hide:\nFormula Name]]<>\"\",IFERROR(IF(MeasureCalc(Table_PI[[#This Row],[Hide:\nFormula Name]],Table_PI[[#This Row],[Quantity]],Table_PI[[#This Row],[List 1]],Table_PI[[#This Row],[List 2]],Table_PI[[#This Row],[List 3]],Table_PI[[#This Row],[Size]],Table_PI[[#This Row],[Input 1]],Table_PI[[#This Row],[Input 2]],Table_PI[[#This Row],[Input 3]],Table_PI[[#This Row],[Input 4]],'Customer Information'!$AR$12,1,ROW())>0,MeasureCalc(Table_PI[[#This Row],[Hide:\nFormula Name]],Table_PI[[#This Row],[Quantity]],Table_PI[[#This Row],[List 1]],Table_PI[[#This Row],[List 2]],Table_PI[[#This Row],[List 3]],Table_PI[[#This Row],[Size]],Table_PI[[#This Row],[Input 1]],Table_PI[[#This Row],[Input 2]],Table_PI[[#This Row],[Input 3]],Table_PI[[#This Row],[Input 4]],'Customer Information'!$AR$12,8,ROW()),\"No Rebate\"),\"No Rebate\"),0)","v":0},{"$f":"IF(Table_PI[[#This Row],[Hide:\nFormula Name]]<>\"\",IF(AND(Table_PI[[#This Row],[Hide:\nFormula Name]]<>\"\",OR(Table_PI[[#This Row],[Rebate]]>0,Table_PI[[#This Row],[Rebate]]=\"No Rebate\")),TRUE,\"MI: Line Item \" & $A85),\"\")","v":""}]
[{"$f":"IF(Table_PI[[#This Row],[Hide:\nFormula Name]]<>\"\",MAX($A$2:A85)+1,\"\")","v":""},null,null,null,null,null,null,null,null,null,null,null,null,null,null,{"$f":"IFERROR(VLOOKUP(Table_PI[[#This Row],[Measure]],'Equipment Lookups'!$C$3:$D$23,2,FALSE),\"\")","v":""},{"$f":"IF(Table_PI[[#This Row],[Hide:\nFormula Name]]<>\"\",IFERROR(IF(MeasureCalc(Table_PI[[#This Row],[Hide:\nFormula Name]],Table_PI[[#This Row],[Quantity]],Table_PI[[#This Row],[List 1]],Table_PI[[#This Row],[List 2]],Table_PI[[#This Row],[List 3]],Table_PI[[#This Row],[Size]],Table_PI[[#This Row],[Input 1]],Table_PI[[#This Row],[Input 2]],Table_PI[[#This Row],[Input 3]],Table_PI[[#This Row],[Input 4]],'Customer Information'!$AR$12,1,ROW())>0,MeasureCalc(Table_PI[[#This Row],[Hide:\nFormula Name]],Table_PI[[#This Row],[Quantity]],Table_PI[[#This Row],[List 1]],Table_PI[[#This Row],[List 2]],Table_PI[[#This Row],[List 3]],Table_PI[[#This Row],[Size]],Table_PI[[#This Row],[Input 1]],Table_PI[[#This Row],[Input 2]],Table_PI[[#This Row],[Input 3]],Table_PI[[#This Row],[Input 4]],'Customer Information'!$AR$12,1,ROW()),\"No Rebate\"),\"No Rebate\"),0)","v":0},{"$f":"IF(Table_PI[[#This Row],[Hide:\nFormula Name]]<>\"\",IFERROR(IF(MeasureCalc(Table_PI[[#This Row],[Hide:\nFormula Name]],Table_PI[[#This Row],[Quantity]],Table_PI[[#This Row],[List 1]],Table_PI[[#This Row],[List 2]],Table_PI[[#This Row],[List 3]],Table_PI[[#This Row],[Size]],Table_PI[[#This Row],[Input 1]],Table_PI[[#This Row],[Input 2]],Table_PI[[#This Row],[Input 3]],Table_PI[[#This Row],[Input 4]],'Customer Information'!$AR$12,1,ROW())>0,MeasureCalc(Table_PI[[#This Row],[Hide:\nFormula Name]],Table_PI[[#This Row],[Quantity]],Table_PI[[#This Row],[List 1]],Table_PI[[#This Row],[List 2]],Table_PI[[#This Row],[List 3]],Table_PI[[#This Row],[Size]],Table_PI[[#This Row],[Input 1]],Table_PI[[#This Row],[Input 2]],Table_PI[[#This Row],[Input 3]],Table_PI[[#This Row],[Input 4]],'Customer Information'!$AR$12,2,ROW()),\"No Rebate\"),\"No Rebate\"),0)","v":0},{"$f":"IF(Table_PI[[#This Row],[Hide:\nFormula Name]]<>\"\",IFERROR(IF(MeasureCalc(Table_PI[[#This Row],[Hide:\nFormula Name]],Table_PI[[#This Row],[Quantity]],Table_PI[[#This Row],[List 1]],Table_PI[[#This Row],[List 2]],Table_PI[[#This Row],[List 3]],Table_PI[[#This Row],[Size]],Table_PI[[#This Row],[Input 1]],Table_PI[[#This Row],[Input 2]],Table_PI[[#This Row],[Input 3]],Table_PI[[#This Row],[Input 4]],'Customer Information'!$AR$12,1,ROW())>0,MeasureCalc(Table_PI[[#This Row],[Hide:\nFormula Name]],Table_PI[[#This Row],[Quantity]],Table_PI[[#This Row],[List 1]],Table_PI[[#This Row],[List 2]],Table_PI[[#This Row],[List 3]],Table_PI[[#This Row],[Size]],Table_PI[[#This Row],[Input 1]],Table_PI[[#This Row],[Input 2]],Table_PI[[#This Row],[Input 3]],Table_PI[[#This Row],[Input 4]],'Customer Information'!$AR$12,3,ROW()),\"No Rebate\"),\"No Rebate\"),0)","v":0},{"$f":"IF(Table_PI[[#This Row],[Hide:\nFormula Name]]<>\"\",IFERROR(IF(MeasureCalc(Table_PI[[#This Row],[Hide:\nFormula Name]],Table_PI[[#This Row],[Quantity]],Table_PI[[#This Row],[List 1]],Table_PI[[#This Row],[List 2]],Table_PI[[#This Row],[List 3]],Table_PI[[#This Row],[Size]],Table_PI[[#This Row],[Input 1]],Table_PI[[#This Row],[Input 2]],Table_PI[[#This Row],[Input 3]],Table_PI[[#This Row],[Input 4]],'Customer Information'!$AR$12,1,ROW())>0,MeasureCalc(Table_PI[[#This Row],[Hide:\nFormula Name]],Table_PI[[#This Row],[Quantity]],Table_PI[[#This Row],[List 1]],Table_PI[[#This Row],[List 2]],Table_PI[[#This Row],[List 3]],Table_PI[[#This Row],[Size]],Table_PI[[#This Row],[Input 1]],Table_PI[[#This Row],[Input 2]],Table_PI[[#This Row],[Input 3]],Table_PI[[#This Row],[Input 4]],'Customer Information'!$AR$12,4,ROW()),\"No Rebate\"),\"No Rebate\"),0)","v":0},{"$f":"IF(Table_PI[[#This Row],[Hide:\nFormula Name]]<>\"\",IFERROR(IF(MeasureCalc(Table_PI[[#This Row],[Hide:\nFormula Name]],Table_PI[[#This Row],[Quantity]],Table_PI[[#This Row],[List 1]],Table_PI[[#This Row],[List 2]],Table_PI[[#This Row],[List 3]],Table_PI[[#This Row],[Size]],Table_PI[[#This Row],[Input 1]],Table_PI[[#This Row],[Input 2]],Table_PI[[#This Row],[Input 3]],Table_PI[[#This Row],[Input 4]],'Customer Information'!$AR$12,1,ROW())>0,MeasureCalc(Table_PI[[#This Row],[Hide:\nFormula Name]],Table_PI[[#This Row],[Quantity]],Table_PI[[#This Row],[List 1]],Table_PI[[#This Row],[List 2]],Table_PI[[#This Row],[List 3]],Table_PI[[#This Row],[Size]],Table_PI[[#This Row],[Input 1]],Table_PI[[#This Row],[Input 2]],Table_PI[[#This Row],[Input 3]],Table_PI[[#This Row],[Input 4]],'Customer Information'!$AR$12,5,ROW()),\"No Rebate\"),\"No Rebate\"),0)","v":0},{"$f":"IF(Table_PI[[#This Row],[Hide:\nFormula Name]]<>\"\",IFERROR(IF(MeasureCalc(Table_PI[[#This Row],[Hide:\nFormula Name]],Table_PI[[#This Row],[Quantity]],Table_PI[[#This Row],[List 1]],Table_PI[[#This Row],[List 2]],Table_PI[[#This Row],[List 3]],Table_PI[[#This Row],[Size]],Table_PI[[#This Row],[Input 1]],Table_PI[[#This Row],[Input 2]],Table_PI[[#This Row],[Input 3]],Table_PI[[#This Row],[Input 4]],'Customer Information'!$AR$12,1,ROW())>0,MeasureCalc(Table_PI[[#This Row],[Hide:\nFormula Name]],Table_PI[[#This Row],[Quantity]],Table_PI[[#This Row],[List 1]],Table_PI[[#This Row],[List 2]],Table_PI[[#This Row],[List 3]],Table_PI[[#This Row],[Size]],Table_PI[[#This Row],[Input 1]],Table_PI[[#This Row],[Input 2]],Table_PI[[#This Row],[Input 3]],Table_PI[[#This Row],[Input 4]],'Customer Information'!$AR$12,6,ROW()),\"No Rebate\"),\"No Rebate\"),0)","v":0},{"$f":"IF(Table_PI[[#This Row],[Hide:\nFormula Name]]<>\"\",IFERROR(IF(MeasureCalc(Table_PI[[#This Row],[Hide:\nFormula Name]],Table_PI[[#This Row],[Quantity]],Table_PI[[#This Row],[List 1]],Table_PI[[#This Row],[List 2]],Table_PI[[#This Row],[List 3]],Table_PI[[#This Row],[Size]],Table_PI[[#This Row],[Input 1]],Table_PI[[#This Row],[Input 2]],Table_PI[[#This Row],[Input 3]],Table_PI[[#This Row],[Input 4]],'Customer Information'!$AR$12,1,ROW())>0,MeasureCalc(Table_PI[[#This Row],[Hide:\nFormula Name]],Table_PI[[#This Row],[Quantity]],Table_PI[[#This Row],[List 1]],Table_PI[[#This Row],[List 2]],Table_PI[[#This Row],[List 3]],Table_PI[[#This Row],[Size]],Table_PI[[#This Row],[Input 1]],Table_PI[[#This Row],[Input 2]],Table_PI[[#This Row],[Input 3]],Table_PI[[#This Row],[Input 4]],'Customer Information'!$AR$12,7,ROW()),\"No Rebate\"),\"No Rebate\"),0)","v":0},{"$f":"IF(Table_PI[[#This Row],[Hide:\nFormula Name]]<>\"\",IFERROR(IF(MeasureCalc(Table_PI[[#This Row],[Hide:\nFormula Name]],Table_PI[[#This Row],[Quantity]],Table_PI[[#This Row],[List 1]],Table_PI[[#This Row],[List 2]],Table_PI[[#This Row],[List 3]],Table_PI[[#This Row],[Size]],Table_PI[[#This Row],[Input 1]],Table_PI[[#This Row],[Input 2]],Table_PI[[#This Row],[Input 3]],Table_PI[[#This Row],[Input 4]],'Customer Information'!$AR$12,1,ROW())>0,MeasureCalc(Table_PI[[#This Row],[Hide:\nFormula Name]],Table_PI[[#This Row],[Quantity]],Table_PI[[#This Row],[List 1]],Table_PI[[#This Row],[List 2]],Table_PI[[#This Row],[List 3]],Table_PI[[#This Row],[Size]],Table_PI[[#This Row],[Input 1]],Table_PI[[#This Row],[Input 2]],Table_PI[[#This Row],[Input 3]],Table_PI[[#This Row],[Input 4]],'Customer Information'!$AR$12,8,ROW()),\"No Rebate\"),\"No Rebate\"),0)","v":0},{"$f":"IF(Table_PI[[#This Row],[Hide:\nFormula Name]]<>\"\",IF(AND(Table_PI[[#This Row],[Hide:\nFormula Name]]<>\"\",OR(Table_PI[[#This Row],[Rebate]]>0,Table_PI[[#This Row],[Rebate]]=\"No Rebate\")),TRUE,\"MI: Line Item \" & $A86),\"\")","v":""}]
[{"$f":"IF(Table_PI[[#This Row],[Hide:\nFormula Name]]<>\"\",MAX($A$2:A86)+1,\"\")","v":""},null,null,null,null,null,null,null,null,null,null,null,null,null,null,{"$f":"IFERROR(VLOOKUP(Table_PI[[#This Row],[Measure]],'Equipment Lookups'!$C$3:$D$23,2,FALSE),\"\")","v":""},{"$f":"IF(Table_PI[[#This Row],[Hide:\nFormula Name]]<>\"\",IFERROR(IF(MeasureCalc(Table_PI[[#This Row],[Hide:\nFormula Name]],Table_PI[[#This Row],[Quantity]],Table_PI[[#This Row],[List 1]],Table_PI[[#This Row],[List 2]],Table_PI[[#This Row],[List 3]],Table_PI[[#This Row],[Size]],Table_PI[[#This Row],[Input 1]],Table_PI[[#This Row],[Input 2]],Table_PI[[#This Row],[Input 3]],Table_PI[[#This Row],[Input 4]],'Customer Information'!$AR$12,1,ROW())>0,MeasureCalc(Table_PI[[#This Row],[Hide:\nFormula Name]],Table_PI[[#This Row],[Quantity]],Table_PI[[#This Row],[List 1]],Table_PI[[#This Row],[List 2]],Table_PI[[#This Row],[List 3]],Table_PI[[#This Row],[Size]],Table_PI[[#This Row],[Input 1]],Table_PI[[#This Row],[Input 2]],Table_PI[[#This Row],[Input 3]],Table_PI[[#This Row],[Input 4]],'Customer Information'!$AR$12,1,ROW()),\"No Rebate\"),\"No Rebate\"),0)","v":0},{"$f":"IF(Table_PI[[#This Row],[Hide:\nFormula Name]]<>\"\",IFERROR(IF(MeasureCalc(Table_PI[[#This Row],[Hide:\nFormula Name]],Table_PI[[#This Row],[Quantity]],Table_PI[[#This Row],[List 1]],Table_PI[[#This Row],[List 2]],Table_PI[[#This Row],[List 3]],Table_PI[[#This Row],[Size]],Table_PI[[#This Row],[Input 1]],Table_PI[[#This Row],[Input 2]],Table_PI[[#This Row],[Input 3]],Table_PI[[#This Row],[Input 4]],'Customer Information'!$AR$12,1,ROW())>0,MeasureCalc(Table_PI[[#This Row],[Hide:\nFormula Name]],Table_PI[[#This Row],[Quantity]],Table_PI[[#This Row],[List 1]],Table_PI[[#This Row],[List 2]],Table_PI[[#This Row],[List 3]],Table_PI[[#This Row],[Size]],Table_PI[[#This Row],[Input 1]],Table_PI[[#This Row],[Input 2]],Table_PI[[#This Row],[Input 3]],Table_PI[[#This Row],[Input 4]],'Customer Information'!$AR$12,2,ROW()),\"No Rebate\"),\"No Rebate\"),0)","v":0},{"$f":"IF(Table_PI[[#This Row],[Hide:\nFormula Name]]<>\"\",IFERROR(IF(MeasureCalc(Table_PI[[#This Row],[Hide:\nFormula Name]],Table_PI[[#This Row],[Quantity]],Table_PI[[#This Row],[List 1]],Table_PI[[#This Row],[List 2]],Table_PI[[#This Row],[List 3]],Table_PI[[#This Row],[Size]],Table_PI[[#This Row],[Input 1]],Table_PI[[#This Row],[Input 2]],Table_PI[[#This Row],[Input 3]],Table_PI[[#This Row],[Input 4]],'Customer Information'!$AR$12,1,ROW())>0,MeasureCalc(Table_PI[[#This Row],[Hide:\nFormula Name]],Table_PI[[#This Row],[Quantity]],Table_PI[[#This Row],[List 1]],Table_PI[[#This Row],[List 2]],Table_PI[[#This Row],[List 3]],Table_PI[[#This Row],[Size]],Table_PI[[#This Row],[Input 1]],Table_PI[[#This Row],[Input 2]],Table_PI[[#This Row],[Input 3]],Table_PI[[#This Row],[Input 4]],'Customer Information'!$AR$12,3,ROW()),\"No Rebate\"),\"No Rebate\"),0)","v":0},{"$f":"IF(Table_PI[[#This Row],[Hide:\nFormula Name]]<>\"\",IFERROR(IF(MeasureCalc(Table_PI[[#This Row],[Hide:\nFormula Name]],Table_PI[[#This Row],[Quantity]],Table_PI[[#This Row],[List 1]],Table_PI[[#This Row],[List 2]],Table_PI[[#This Row],[List 3]],Table_PI[[#This Row],[Size]],Table_PI[[#This Row],[Input 1]],Table_PI[[#This Row],[Input 2]],Table_PI[[#This Row],[Input 3]],Table_PI[[#This Row],[Input 4]],'Customer Information'!$AR$12,1,ROW())>0,MeasureCalc(Table_PI[[#This Row],[Hide:\nFormula Name]],Table_PI[[#This Row],[Quantity]],Table_PI[[#This Row],[List 1]],Table_PI[[#This Row],[List 2]],Table_PI[[#This Row],[List 3]],Table_PI[[#This Row],[Size]],Table_PI[[#This Row],[Input 1]],Table_PI[[#This Row],[Input 2]],Table_PI[[#This Row],[Input 3]],Table_PI[[#This Row],[Input 4]],'Customer Information'!$AR$12,4,ROW()),\"No Rebate\"),\"No Rebate\"),0)","v":0},{"$f":"IF(Table_PI[[#This Row],[Hide:\nFormula Name]]<>\"\",IFERROR(IF(MeasureCalc(Table_PI[[#This Row],[Hide:\nFormula Name]],Table_PI[[#This Row],[Quantity]],Table_PI[[#This Row],[List 1]],Table_PI[[#This Row],[List 2]],Table_PI[[#This Row],[List 3]],Table_PI[[#This Row],[Size]],Table_PI[[#This Row],[Input 1]],Table_PI[[#This Row],[Input 2]],Table_PI[[#This Row],[Input 3]],Table_PI[[#This Row],[Input 4]],'Customer Information'!$AR$12,1,ROW())>0,MeasureCalc(Table_PI[[#This Row],[Hide:\nFormula Name]],Table_PI[[#This Row],[Quantity]],Table_PI[[#This Row],[List 1]],Table_PI[[#This Row],[List 2]],Table_PI[[#This Row],[List 3]],Table_PI[[#This Row],[Size]],Table_PI[[#This Row],[Input 1]],Table_PI[[#This Row],[Input 2]],Table_PI[[#This Row],[Input 3]],Table_PI[[#This Row],[Input 4]],'Customer Information'!$AR$12,5,ROW()),\"No Rebate\"),\"No Rebate\"),0)","v":0},{"$f":"IF(Table_PI[[#This Row],[Hide:\nFormula Name]]<>\"\",IFERROR(IF(MeasureCalc(Table_PI[[#This Row],[Hide:\nFormula Name]],Table_PI[[#This Row],[Quantity]],Table_PI[[#This Row],[List 1]],Table_PI[[#This Row],[List 2]],Table_PI[[#This Row],[List 3]],Table_PI[[#This Row],[Size]],Table_PI[[#This Row],[Input 1]],Table_PI[[#This Row],[Input 2]],Table_PI[[#This Row],[Input 3]],Table_PI[[#This Row],[Input 4]],'Customer Information'!$AR$12,1,ROW())>0,MeasureCalc(Table_PI[[#This Row],[Hide:\nFormula Name]],Table_PI[[#This Row],[Quantity]],Table_PI[[#This Row],[List 1]],Table_PI[[#This Row],[List 2]],Table_PI[[#This Row],[List 3]],Table_PI[[#This Row],[Size]],Table_PI[[#This Row],[Input 1]],Table_PI[[#This Row],[Input 2]],Table_PI[[#This Row],[Input 3]],Table_PI[[#This Row],[Input 4]],'Customer Information'!$AR$12,6,ROW()),\"No Rebate\"),\"No Rebate\"),0)","v":0},{"$f":"IF(Table_PI[[#This Row],[Hide:\nFormula Name]]<>\"\",IFERROR(IF(MeasureCalc(Table_PI[[#This Row],[Hide:\nFormula Name]],Table_PI[[#This Row],[Quantity]],Table_PI[[#This Row],[List 1]],Table_PI[[#This Row],[List 2]],Table_PI[[#This Row],[List 3]],Table_PI[[#This Row],[Size]],Table_PI[[#This Row],[Input 1]],Table_PI[[#This Row],[Input 2]],Table_PI[[#This Row],[Input 3]],Table_PI[[#This Row],[Input 4]],'Customer Information'!$AR$12,1,ROW())>0,MeasureCalc(Table_PI[[#This Row],[Hide:\nFormula Name]],Table_PI[[#This Row],[Quantity]],Table_PI[[#This Row],[List 1]],Table_PI[[#This Row],[List 2]],Table_PI[[#This Row],[List 3]],Table_PI[[#This Row],[Size]],Table_PI[[#This Row],[Input 1]],Table_PI[[#This Row],[Input 2]],Table_PI[[#This Row],[Input 3]],Table_PI[[#This Row],[Input 4]],'Customer Information'!$AR$12,7,ROW()),\"No Rebate\"),\"No Rebate\"),0)","v":0},{"$f":"IF(Table_PI[[#This Row],[Hide:\nFormula Name]]<>\"\",IFERROR(IF(MeasureCalc(Table_PI[[#This Row],[Hide:\nFormula Name]],Table_PI[[#This Row],[Quantity]],Table_PI[[#This Row],[List 1]],Table_PI[[#This Row],[List 2]],Table_PI[[#This Row],[List 3]],Table_PI[[#This Row],[Size]],Table_PI[[#This Row],[Input 1]],Table_PI[[#This Row],[Input 2]],Table_PI[[#This Row],[Input 3]],Table_PI[[#This Row],[Input 4]],'Customer Information'!$AR$12,1,ROW())>0,MeasureCalc(Table_PI[[#This Row],[Hide:\nFormula Name]],Table_PI[[#This Row],[Quantity]],Table_PI[[#This Row],[List 1]],Table_PI[[#This Row],[List 2]],Table_PI[[#This Row],[List 3]],Table_PI[[#This Row],[Size]],Table_PI[[#This Row],[Input 1]],Table_PI[[#This Row],[Input 2]],Table_PI[[#This Row],[Input 3]],Table_PI[[#This Row],[Input 4]],'Customer Information'!$AR$12,8,ROW()),\"No Rebate\"),\"No Rebate\"),0)","v":0},{"$f":"IF(Table_PI[[#This Row],[Hide:\nFormula Name]]<>\"\",IF(AND(Table_PI[[#This Row],[Hide:\nFormula Name]]<>\"\",OR(Table_PI[[#This Row],[Rebate]]>0,Table_PI[[#This Row],[Rebate]]=\"No Rebate\")),TRUE,\"MI: Line Item \" & $A87),\"\")","v":""}]
[{"$f":"IF(Table_PI[[#This Row],[Hide:\nFormula Name]]<>\"\",MAX($A$2:A87)+1,\"\")","v":""},null,null,null,null,null,null,null,null,null,null,null,null,null,null,{"$f":"IFERROR(VLOOKUP(Table_PI[[#This Row],[Measure]],'Equipment Lookups'!$C$3:$D$23,2,FALSE),\"\")","v":""},{"$f":"IF(Table_PI[[#This Row],[Hide:\nFormula Name]]<>\"\",IFERROR(IF(MeasureCalc(Table_PI[[#This Row],[Hide:\nFormula Name]],Table_PI[[#This Row],[Quantity]],Table_PI[[#This Row],[List 1]],Table_PI[[#This Row],[List 2]],Table_PI[[#This Row],[List 3]],Table_PI[[#This Row],[Size]],Table_PI[[#This Row],[Input 1]],Table_PI[[#This Row],[Input 2]],Table_PI[[#This Row],[Input 3]],Table_PI[[#This Row],[Input 4]],'Customer Information'!$AR$12,1,ROW())>0,MeasureCalc(Table_PI[[#This Row],[Hide:\nFormula Name]],Table_PI[[#This Row],[Quantity]],Table_PI[[#This Row],[List 1]],Table_PI[[#This Row],[List 2]],Table_PI[[#This Row],[List 3]],Table_PI[[#This Row],[Size]],Table_PI[[#This Row],[Input 1]],Table_PI[[#This Row],[Input 2]],Table_PI[[#This Row],[Input 3]],Table_PI[[#This Row],[Input 4]],'Customer Information'!$AR$12,1,ROW()),\"No Rebate\"),\"No Rebate\"),0)","v":0},{"$f":"IF(Table_PI[[#This Row],[Hide:\nFormula Name]]<>\"\",IFERROR(IF(MeasureCalc(Table_PI[[#This Row],[Hide:\nFormula Name]],Table_PI[[#This Row],[Quantity]],Table_PI[[#This Row],[List 1]],Table_PI[[#This Row],[List 2]],Table_PI[[#This Row],[List 3]],Table_PI[[#This Row],[Size]],Table_PI[[#This Row],[Input 1]],Table_PI[[#This Row],[Input 2]],Table_PI[[#This Row],[Input 3]],Table_PI[[#This Row],[Input 4]],'Customer Information'!$AR$12,1,ROW())>0,MeasureCalc(Table_PI[[#This Row],[Hide:\nFormula Name]],Table_PI[[#This Row],[Quantity]],Table_PI[[#This Row],[List 1]],Table_PI[[#This Row],[List 2]],Table_PI[[#This Row],[List 3]],Table_PI[[#This Row],[Size]],Table_PI[[#This Row],[Input 1]],Table_PI[[#This Row],[Input 2]],Table_PI[[#This Row],[Input 3]],Table_PI[[#This Row],[Input 4]],'Customer Information'!$AR$12,2,ROW()),\"No Rebate\"),\"No Rebate\"),0)","v":0},{"$f":"IF(Table_PI[[#This Row],[Hide:\nFormula Name]]<>\"\",IFERROR(IF(MeasureCalc(Table_PI[[#This Row],[Hide:\nFormula Name]],Table_PI[[#This Row],[Quantity]],Table_PI[[#This Row],[List 1]],Table_PI[[#This Row],[List 2]],Table_PI[[#This Row],[List 3]],Table_PI[[#This Row],[Size]],Table_PI[[#This Row],[Input 1]],Table_PI[[#This Row],[Input 2]],Table_PI[[#This Row],[Input 3]],Table_PI[[#This Row],[Input 4]],'Customer Information'!$AR$12,1,ROW())>0,MeasureCalc(Table_PI[[#This Row],[Hide:\nFormula Name]],Table_PI[[#This Row],[Quantity]],Table_PI[[#This Row],[List 1]],Table_PI[[#This Row],[List 2]],Table_PI[[#This Row],[List 3]],Table_PI[[#This Row],[Size]],Table_PI[[#This Row],[Input 1]],Table_PI[[#This Row],[Input 2]],Table_PI[[#This Row],[Input 3]],Table_PI[[#This Row],[Input 4]],'Customer Information'!$AR$12,3,ROW()),\"No Rebate\"),\"No Rebate\"),0)","v":0},{"$f":"IF(Table_PI[[#This Row],[Hide:\nFormula Name]]<>\"\",IFERROR(IF(MeasureCalc(Table_PI[[#This Row],[Hide:\nFormula Name]],Table_PI[[#This Row],[Quantity]],Table_PI[[#This Row],[List 1]],Table_PI[[#This Row],[List 2]],Table_PI[[#This Row],[List 3]],Table_PI[[#This Row],[Size]],Table_PI[[#This Row],[Input 1]],Table_PI[[#This Row],[Input 2]],Table_PI[[#This Row],[Input 3]],Table_PI[[#This Row],[Input 4]],'Customer Information'!$AR$12,1,ROW())>0,MeasureCalc(Table_PI[[#This Row],[Hide:\nFormula Name]],Table_PI[[#This Row],[Quantity]],Table_PI[[#This Row],[List 1]],Table_PI[[#This Row],[List 2]],Table_PI[[#This Row],[List 3]],Table_PI[[#This Row],[Size]],Table_PI[[#This Row],[Input 1]],Table_PI[[#This Row],[Input 2]],Table_PI[[#This Row],[Input 3]],Table_PI[[#This Row],[Input 4]],'Customer Information'!$AR$12,4,ROW()),\"No Rebate\"),\"No Rebate\"),0)","v":0},{"$f":"IF(Table_PI[[#This Row],[Hide:\nFormula Name]]<>\"\",IFERROR(IF(MeasureCalc(Table_PI[[#This Row],[Hide:\nFormula Name]],Table_PI[[#This Row],[Quantity]],Table_PI[[#This Row],[List 1]],Table_PI[[#This Row],[List 2]],Table_PI[[#This Row],[List 3]],Table_PI[[#This Row],[Size]],Table_PI[[#This Row],[Input 1]],Table_PI[[#This Row],[Input 2]],Table_PI[[#This Row],[Input 3]],Table_PI[[#This Row],[Input 4]],'Customer Information'!$AR$12,1,ROW())>0,MeasureCalc(Table_PI[[#This Row],[Hide:\nFormula Name]],Table_PI[[#This Row],[Quantity]],Table_PI[[#This Row],[List 1]],Table_PI[[#This Row],[List 2]],Table_PI[[#This Row],[List 3]],Table_PI[[#This Row],[Size]],Table_PI[[#This Row],[Input 1]],Table_PI[[#This Row],[Input 2]],Table_PI[[#This Row],[Input 3]],Table_PI[[#This Row],[Input 4]],'Customer Information'!$AR$12,5,ROW()),\"No Rebate\"),\"No Rebate\"),0)","v":0},{"$f":"IF(Table_PI[[#This Row],[Hide:\nFormula Name]]<>\"\",IFERROR(IF(MeasureCalc(Table_PI[[#This Row],[Hide:\nFormula Name]],Table_PI[[#This Row],[Quantity]],Table_PI[[#This Row],[List 1]],Table_PI[[#This Row],[List 2]],Table_PI[[#This Row],[List 3]],Table_PI[[#This Row],[Size]],Table_PI[[#This Row],[Input 1]],Table_PI[[#This Row],[Input 2]],Table_PI[[#This Row],[Input 3]],Table_PI[[#This Row],[Input 4]],'Customer Information'!$AR$12,1,ROW())>0,MeasureCalc(Table_PI[[#This Row],[Hide:\nFormula Name]],Table_PI[[#This Row],[Quantity]],Table_PI[[#This Row],[List 1]],Table_PI[[#This Row],[List 2]],Table_PI[[#This Row],[List 3]],Table_PI[[#This Row],[Size]],Table_PI[[#This Row],[Input 1]],Table_PI[[#This Row],[Input 2]],Table_PI[[#This Row],[Input 3]],Table_PI[[#This Row],[Input 4]],'Customer Information'!$AR$12,6,ROW()),\"No Rebate\"),\"No Rebate\"),0)","v":0},{"$f":"IF(Table_PI[[#This Row],[Hide:\nFormula Name]]<>\"\",IFERROR(IF(MeasureCalc(Table_PI[[#This Row],[Hide:\nFormula Name]],Table_PI[[#This Row],[Quantity]],Table_PI[[#This Row],[List 1]],Table_PI[[#This Row],[List 2]],Table_PI[[#This Row],[List 3]],Table_PI[[#This Row],[Size]],Table_PI[[#This Row],[Input 1]],Table_PI[[#This Row],[Input 2]],Table_PI[[#This Row],[Input 3]],Table_PI[[#This Row],[Input 4]],'Customer Information'!$AR$12,1,ROW())>0,MeasureCalc(Table_PI[[#This Row],[Hide:\nFormula Name]],Table_PI[[#This Row],[Quantity]],Table_PI[[#This Row],[List 1]],Table_PI[[#This Row],[List 2]],Table_PI[[#This Row],[List 3]],Table_PI[[#This Row],[Size]],Table_PI[[#This Row],[Input 1]],Table_PI[[#This Row],[Input 2]],Table_PI[[#This Row],[Input 3]],Table_PI[[#This Row],[Input 4]],'Customer Information'!$AR$12,7,ROW()),\"No Rebate\"),\"No Rebate\"),0)","v":0},{"$f":"IF(Table_PI[[#This Row],[Hide:\nFormula Name]]<>\"\",IFERROR(IF(MeasureCalc(Table_PI[[#This Row],[Hide:\nFormula Name]],Table_PI[[#This Row],[Quantity]],Table_PI[[#This Row],[List 1]],Table_PI[[#This Row],[List 2]],Table_PI[[#This Row],[List 3]],Table_PI[[#This Row],[Size]],Table_PI[[#This Row],[Input 1]],Table_PI[[#This Row],[Input 2]],Table_PI[[#This Row],[Input 3]],Table_PI[[#This Row],[Input 4]],'Customer Information'!$AR$12,1,ROW())>0,MeasureCalc(Table_PI[[#This Row],[Hide:\nFormula Name]],Table_PI[[#This Row],[Quantity]],Table_PI[[#This Row],[List 1]],Table_PI[[#This Row],[List 2]],Table_PI[[#This Row],[List 3]],Table_PI[[#This Row],[Size]],Table_PI[[#This Row],[Input 1]],Table_PI[[#This Row],[Input 2]],Table_PI[[#This Row],[Input 3]],Table_PI[[#This Row],[Input 4]],'Customer Information'!$AR$12,8,ROW()),\"No Rebate\"),\"No Rebate\"),0)","v":0},{"$f":"IF(Table_PI[[#This Row],[Hide:\nFormula Name]]<>\"\",IF(AND(Table_PI[[#This Row],[Hide:\nFormula Name]]<>\"\",OR(Table_PI[[#This Row],[Rebate]]>0,Table_PI[[#This Row],[Rebate]]=\"No Rebate\")),TRUE,\"MI: Line Item \" & $A88),\"\")","v":""}]
[{"$f":"IF(Table_PI[[#This Row],[Hide:\nFormula Name]]<>\"\",MAX($A$2:A88)+1,\"\")","v":""},null,null,null,null,null,null,null,null,null,null,null,null,null,null,{"$f":"IFERROR(VLOOKUP(Table_PI[[#This Row],[Measure]],'Equipment Lookups'!$C$3:$D$23,2,FALSE),\"\")","v":""},{"$f":"IF(Table_PI[[#This Row],[Hide:\nFormula Name]]<>\"\",IFERROR(IF(MeasureCalc(Table_PI[[#This Row],[Hide:\nFormula Name]],Table_PI[[#This Row],[Quantity]],Table_PI[[#This Row],[List 1]],Table_PI[[#This Row],[List 2]],Table_PI[[#This Row],[List 3]],Table_PI[[#This Row],[Size]],Table_PI[[#This Row],[Input 1]],Table_PI[[#This Row],[Input 2]],Table_PI[[#This Row],[Input 3]],Table_PI[[#This Row],[Input 4]],'Customer Information'!$AR$12,1,ROW())>0,MeasureCalc(Table_PI[[#This Row],[Hide:\nFormula Name]],Table_PI[[#This Row],[Quantity]],Table_PI[[#This Row],[List 1]],Table_PI[[#This Row],[List 2]],Table_PI[[#This Row],[List 3]],Table_PI[[#This Row],[Size]],Table_PI[[#This Row],[Input 1]],Table_PI[[#This Row],[Input 2]],Table_PI[[#This Row],[Input 3]],Table_PI[[#This Row],[Input 4]],'Customer Information'!$AR$12,1,ROW()),\"No Rebate\"),\"No Rebate\"),0)","v":0},{"$f":"IF(Table_PI[[#This Row],[Hide:\nFormula Name]]<>\"\",IFERROR(IF(MeasureCalc(Table_PI[[#This Row],[Hide:\nFormula Name]],Table_PI[[#This Row],[Quantity]],Table_PI[[#This Row],[List 1]],Table_PI[[#This Row],[List 2]],Table_PI[[#This Row],[List 3]],Table_PI[[#This Row],[Size]],Table_PI[[#This Row],[Input 1]],Table_PI[[#This Row],[Input 2]],Table_PI[[#This Row],[Input 3]],Table_PI[[#This Row],[Input 4]],'Customer Information'!$AR$12,1,ROW())>0,MeasureCalc(Table_PI[[#This Row],[Hide:\nFormula Name]],Table_PI[[#This Row],[Quantity]],Table_PI[[#This Row],[List 1]],Table_PI[[#This Row],[List 2]],Table_PI[[#This Row],[List 3]],Table_PI[[#This Row],[Size]],Table_PI[[#This Row],[Input 1]],Table_PI[[#This Row],[Input 2]],Table_PI[[#This Row],[Input 3]],Table_PI[[#This Row],[Input 4]],'Customer Information'!$AR$12,2,ROW()),\"No Rebate\"),\"No Rebate\"),0)","v":0},{"$f":"IF(Table_PI[[#This Row],[Hide:\nFormula Name]]<>\"\",IFERROR(IF(MeasureCalc(Table_PI[[#This Row],[Hide:\nFormula Name]],Table_PI[[#This Row],[Quantity]],Table_PI[[#This Row],[List 1]],Table_PI[[#This Row],[List 2]],Table_PI[[#This Row],[List 3]],Table_PI[[#This Row],[Size]],Table_PI[[#This Row],[Input 1]],Table_PI[[#This Row],[Input 2]],Table_PI[[#This Row],[Input 3]],Table_PI[[#This Row],[Input 4]],'Customer Information'!$AR$12,1,ROW())>0,MeasureCalc(Table_PI[[#This Row],[Hide:\nFormula Name]],Table_PI[[#This Row],[Quantity]],Table_PI[[#This Row],[List 1]],Table_PI[[#This Row],[List 2]],Table_PI[[#This Row],[List 3]],Table_PI[[#This Row],[Size]],Table_PI[[#This Row],[Input 1]],Table_PI[[#This Row],[Input 2]],Table_PI[[#This Row],[Input 3]],Table_PI[[#This Row],[Input 4]],'Customer Information'!$AR$12,3,ROW()),\"No Rebate\"),\"No Rebate\"),0)","v":0},{"$f":"IF(Table_PI[[#This Row],[Hide:\nFormula Name]]<>\"\",IFERROR(IF(MeasureCalc(Table_PI[[#This Row],[Hide:\nFormula Name]],Table_PI[[#This Row],[Quantity]],Table_PI[[#This Row],[List 1]],Table_PI[[#This Row],[List 2]],Table_PI[[#This Row],[List 3]],Table_PI[[#This Row],[Size]],Table_PI[[#This Row],[Input 1]],Table_PI[[#This Row],[Input 2]],Table_PI[[#This Row],[Input 3]],Table_PI[[#This Row],[Input 4]],'Customer Information'!$AR$12,1,ROW())>0,MeasureCalc(Table_PI[[#This Row],[Hide:\nFormula Name]],Table_PI[[#This Row],[Quantity]],Table_PI[[#This Row],[List 1]],Table_PI[[#This Row],[List 2]],Table_PI[[#This Row],[List 3]],Table_PI[[#This Row],[Size]],Table_PI[[#This Row],[Input 1]],Table_PI[[#This Row],[Input 2]],Table_PI[[#This Row],[Input 3]],Table_PI[[#This Row],[Input 4]],'Customer Information'!$AR$12,4,ROW()),\"No Rebate\"),\"No Rebate\"),0)","v":0},{"$f":"IF(Table_PI[[#This Row],[Hide:\nFormula Name]]<>\"\",IFERROR(IF(MeasureCalc(Table_PI[[#This Row],[Hide:\nFormula Name]],Table_PI[[#This Row],[Quantity]],Table_PI[[#This Row],[List 1]],Table_PI[[#This Row],[List 2]],Table_PI[[#This Row],[List 3]],Table_PI[[#This Row],[Size]],Table_PI[[#This Row],[Input 1]],Table_PI[[#This Row],[Input 2]],Table_PI[[#This Row],[Input 3]],Table_PI[[#This Row],[Input 4]],'Customer Information'!$AR$12,1,ROW())>0,MeasureCalc(Table_PI[[#This Row],[Hide:\nFormula Name]],Table_PI[[#This Row],[Quantity]],Table_PI[[#This Row],[List 1]],Table_PI[[#This Row],[List 2]],Table_PI[[#This Row],[List 3]],Table_PI[[#This Row],[Size]],Table_PI[[#This Row],[Input 1]],Table_PI[[#This Row],[Input 2]],Table_PI[[#This Row],[Input 3]],Table_PI[[#This Row],[Input 4]],'Customer Information'!$AR$12,5,ROW()),\"No Rebate\"),\"No Rebate\"),0)","v":0},{"$f":"IF(Table_PI[[#This Row],[Hide:\nFormula Name]]<>\"\",IFERROR(IF(MeasureCalc(Table_PI[[#This Row],[Hide:\nFormula Name]],Table_PI[[#This Row],[Quantity]],Table_PI[[#This Row],[List 1]],Table_PI[[#This Row],[List 2]],Table_PI[[#This Row],[List 3]],Table_PI[[#This Row],[Size]],Table_PI[[#This Row],[Input 1]],Table_PI[[#This Row],[Input 2]],Table_PI[[#This Row],[Input 3]],Table_PI[[#This Row],[Input 4]],'Customer Information'!$AR$12,1,ROW())>0,MeasureCalc(Table_PI[[#This Row],[Hide:\nFormula Name]],Table_PI[[#This Row],[Quantity]],Table_PI[[#This Row],[List 1]],Table_PI[[#This Row],[List 2]],Table_PI[[#This Row],[List 3]],Table_PI[[#This Row],[Size]],Table_PI[[#This Row],[Input 1]],Table_PI[[#This Row],[Input 2]],Table_PI[[#This Row],[Input 3]],Table_PI[[#This Row],[Input 4]],'Customer Information'!$AR$12,6,ROW()),\"No Rebate\"),\"No Rebate\"),0)","v":0},{"$f":"IF(Table_PI[[#This Row],[Hide:\nFormula Name]]<>\"\",IFERROR(IF(MeasureCalc(Table_PI[[#This Row],[Hide:\nFormula Name]],Table_PI[[#This Row],[Quantity]],Table_PI[[#This Row],[List 1]],Table_PI[[#This Row],[List 2]],Table_PI[[#This Row],[List 3]],Table_PI[[#This Row],[Size]],Table_PI[[#This Row],[Input 1]],Table_PI[[#This Row],[Input 2]],Table_PI[[#This Row],[Input 3]],Table_PI[[#This Row],[Input 4]],'Customer Information'!$AR$12,1,ROW())>0,MeasureCalc(Table_PI[[#This Row],[Hide:\nFormula Name]],Table_PI[[#This Row],[Quantity]],Table_PI[[#This Row],[List 1]],Table_PI[[#This Row],[List 2]],Table_PI[[#This Row],[List 3]],Table_PI[[#This Row],[Size]],Table_PI[[#This Row],[Input 1]],Table_PI[[#This Row],[Input 2]],Table_PI[[#This Row],[Input 3]],Table_PI[[#This Row],[Input 4]],'Customer Information'!$AR$12,7,ROW()),\"No Rebate\"),\"No Rebate\"),0)","v":0},{"$f":"IF(Table_PI[[#This Row],[Hide:\nFormula Name]]<>\"\",IFERROR(IF(MeasureCalc(Table_PI[[#This Row],[Hide:\nFormula Name]],Table_PI[[#This Row],[Quantity]],Table_PI[[#This Row],[List 1]],Table_PI[[#This Row],[List 2]],Table_PI[[#This Row],[List 3]],Table_PI[[#This Row],[Size]],Table_PI[[#This Row],[Input 1]],Table_PI[[#This Row],[Input 2]],Table_PI[[#This Row],[Input 3]],Table_PI[[#This Row],[Input 4]],'Customer Information'!$AR$12,1,ROW())>0,MeasureCalc(Table_PI[[#This Row],[Hide:\nFormula Name]],Table_PI[[#This Row],[Quantity]],Table_PI[[#This Row],[List 1]],Table_PI[[#This Row],[List 2]],Table_PI[[#This Row],[List 3]],Table_PI[[#This Row],[Size]],Table_PI[[#This Row],[Input 1]],Table_PI[[#This Row],[Input 2]],Table_PI[[#This Row],[Input 3]],Table_PI[[#This Row],[Input 4]],'Customer Information'!$AR$12,8,ROW()),\"No Rebate\"),\"No Rebate\"),0)","v":0},{"$f":"IF(Table_PI[[#This Row],[Hide:\nFormula Name]]<>\"\",IF(AND(Table_PI[[#This Row],[Hide:\nFormula Name]]<>\"\",OR(Table_PI[[#This Row],[Rebate]]>0,Table_PI[[#This Row],[Rebate]]=\"No Rebate\")),TRUE,\"MI: Line Item \" & $A89),\"\")","v":""}]
[{"$f":"IF(Table_PI[[#This Row],[Hide:\nFormula Name]]<>\"\",MAX($A$2:A89)+1,\"\")","v":""},null,null,null,null,null,null,null,null,null,null,null,null,null,null,{"$f":"IFERROR(VLOOKUP(Table_PI[[#This Row],[Measure]],'Equipment Lookups'!$C$3:$D$23,2,FALSE),\"\")","v":""},{"$f":"IF(Table_PI[[#This Row],[Hide:\nFormula Name]]<>\"\",IFERROR(IF(MeasureCalc(Table_PI[[#This Row],[Hide:\nFormula Name]],Table_PI[[#This Row],[Quantity]],Table_PI[[#This Row],[List 1]],Table_PI[[#This Row],[List 2]],Table_PI[[#This Row],[List 3]],Table_PI[[#This Row],[Size]],Table_PI[[#This Row],[Input 1]],Table_PI[[#This Row],[Input 2]],Table_PI[[#This Row],[Input 3]],Table_PI[[#This Row],[Input 4]],'Customer Information'!$AR$12,1,ROW())>0,MeasureCalc(Table_PI[[#This Row],[Hide:\nFormula Name]],Table_PI[[#This Row],[Quantity]],Table_PI[[#This Row],[List 1]],Table_PI[[#This Row],[List 2]],Table_PI[[#This Row],[List 3]],Table_PI[[#This Row],[Size]],Table_PI[[#This Row],[Input 1]],Table_PI[[#This Row],[Input 2]],Table_PI[[#This Row],[Input 3]],Table_PI[[#This Row],[Input 4]],'Customer Information'!$AR$12,1,ROW()),\"No Rebate\"),\"No Rebate\"),0)","v":0},{"$f":"IF(Table_PI[[#This Row],[Hide:\nFormula Name]]<>\"\",IFERROR(IF(MeasureCalc(Table_PI[[#This Row],[Hide:\nFormula Name]],Table_PI[[#This Row],[Quantity]],Table_PI[[#This Row],[List 1]],Table_PI[[#This Row],[List 2]],Table_PI[[#This Row],[List 3]],Table_PI[[#This Row],[Size]],Table_PI[[#This Row],[Input 1]],Table_PI[[#This Row],[Input 2]],Table_PI[[#This Row],[Input 3]],Table_PI[[#This Row],[Input 4]],'Customer Information'!$AR$12,1,ROW())>0,MeasureCalc(Table_PI[[#This Row],[Hide:\nFormula Name]],Table_PI[[#This Row],[Quantity]],Table_PI[[#This Row],[List 1]],Table_PI[[#This Row],[List 2]],Table_PI[[#This Row],[List 3]],Table_PI[[#This Row],[Size]],Table_PI[[#This Row],[Input 1]],Table_PI[[#This Row],[Input 2]],Table_PI[[#This Row],[Input 3]],Table_PI[[#This Row],[Input 4]],'Customer Information'!$AR$12,2,ROW()),\"No Rebate\"),\"No Rebate\"),0)","v":0},{"$f":"IF(Table_PI[[#This Row],[Hide:\nFormula Name]]<>\"\",IFERROR(IF(MeasureCalc(Table_PI[[#This Row],[Hide:\nFormula Name]],Table_PI[[#This Row],[Quantity]],Table_PI[[#This Row],[List 1]],Table_PI[[#This Row],[List 2]],Table_PI[[#This Row],[List 3]],Table_PI[[#This Row],[Size]],Table_PI[[#This Row],[Input 1]],Table_PI[[#This Row],[Input 2]],Table_PI[[#This Row],[Input 3]],Table_PI[[#This Row],[Input 4]],'Customer Information'!$AR$12,1,ROW())>0,MeasureCalc(Table_PI[[#This Row],[Hide:\nFormula Name]],Table_PI[[#This Row],[Quantity]],Table_PI[[#This Row],[List 1]],Table_PI[[#This Row],[List 2]],Table_PI[[#This Row],[List 3]],Table_PI[[#This Row],[Size]],Table_PI[[#This Row],[Input 1]],Table_PI[[#This Row],[Input 2]],Table_PI[[#This Row],[Input 3]],Table_PI[[#This Row],[Input 4]],'Customer Information'!$AR$12,3,ROW()),\"No Rebate\"),\"No Rebate\"),0)","v":0},{"$f":"IF(Table_PI[[#This Row],[Hide:\nFormula Name]]<>\"\",IFERROR(IF(MeasureCalc(Table_PI[[#This Row],[Hide:\nFormula Name]],Table_PI[[#This Row],[Quantity]],Table_PI[[#This Row],[List 1]],Table_PI[[#This Row],[List 2]],Table_PI[[#This Row],[List 3]],Table_PI[[#This Row],[Size]],Table_PI[[#This Row],[Input 1]],Table_PI[[#This Row],[Input 2]],Table_PI[[#This Row],[Input 3]],Table_PI[[#This Row],[Input 4]],'Customer Information'!$AR$12,1,ROW())>0,MeasureCalc(Table_PI[[#This Row],[Hide:\nFormula Name]],Table_PI[[#This Row],[Quantity]],Table_PI[[#This Row],[List 1]],Table_PI[[#This Row],[List 2]],Table_PI[[#This Row],[List 3]],Table_PI[[#This Row],[Size]],Table_PI[[#This Row],[Input 1]],Table_PI[[#This Row],[Input 2]],Table_PI[[#This Row],[Input 3]],Table_PI[[#This Row],[Input 4]],'Customer Information'!$AR$12,4,ROW()),\"No Rebate\"),\"No Rebate\"),0)","v":0},{"$f":"IF(Table_PI[[#This Row],[Hide:\nFormula Name]]<>\"\",IFERROR(IF(MeasureCalc(Table_PI[[#This Row],[Hide:\nFormula Name]],Table_PI[[#This Row],[Quantity]],Table_PI[[#This Row],[List 1]],Table_PI[[#This Row],[List 2]],Table_PI[[#This Row],[List 3]],Table_PI[[#This Row],[Size]],Table_PI[[#This Row],[Input 1]],Table_PI[[#This Row],[Input 2]],Table_PI[[#This Row],[Input 3]],Table_PI[[#This Row],[Input 4]],'Customer Information'!$AR$12,1,ROW())>0,MeasureCalc(Table_PI[[#This Row],[Hide:\nFormula Name]],Table_PI[[#This Row],[Quantity]],Table_PI[[#This Row],[List 1]],Table_PI[[#This Row],[List 2]],Table_PI[[#This Row],[List 3]],Table_PI[[#This Row],[Size]],Table_PI[[#This Row],[Input 1]],Table_PI[[#This Row],[Input 2]],Table_PI[[#This Row],[Input 3]],Table_PI[[#This Row],[Input 4]],'Customer Information'!$AR$12,5,ROW()),\"No Rebate\"),\"No Rebate\"),0)","v":0},{"$f":"IF(Table_PI[[#This Row],[Hide:\nFormula Name]]<>\"\",IFERROR(IF(MeasureCalc(Table_PI[[#This Row],[Hide:\nFormula Name]],Table_PI[[#This Row],[Quantity]],Table_PI[[#This Row],[List 1]],Table_PI[[#This Row],[List 2]],Table_PI[[#This Row],[List 3]],Table_PI[[#This Row],[Size]],Table_PI[[#This Row],[Input 1]],Table_PI[[#This Row],[Input 2]],Table_PI[[#This Row],[Input 3]],Table_PI[[#This Row],[Input 4]],'Customer Information'!$AR$12,1,ROW())>0,MeasureCalc(Table_PI[[#This Row],[Hide:\nFormula Name]],Table_PI[[#This Row],[Quantity]],Table_PI[[#This Row],[List 1]],Table_PI[[#This Row],[List 2]],Table_PI[[#This Row],[List 3]],Table_PI[[#This Row],[Size]],Table_PI[[#This Row],[Input 1]],Table_PI[[#This Row],[Input 2]],Table_PI[[#This Row],[Input 3]],Table_PI[[#This Row],[Input 4]],'Customer Information'!$AR$12,6,ROW()),\"No Rebate\"),\"No Rebate\"),0)","v":0},{"$f":"IF(Table_PI[[#This Row],[Hide:\nFormula Name]]<>\"\",IFERROR(IF(MeasureCalc(Table_PI[[#This Row],[Hide:\nFormula Name]],Table_PI[[#This Row],[Quantity]],Table_PI[[#This Row],[List 1]],Table_PI[[#This Row],[List 2]],Table_PI[[#This Row],[List 3]],Table_PI[[#This Row],[Size]],Table_PI[[#This Row],[Input 1]],Table_PI[[#This Row],[Input 2]],Table_PI[[#This Row],[Input 3]],Table_PI[[#This Row],[Input 4]],'Customer Information'!$AR$12,1,ROW())>0,MeasureCalc(Table_PI[[#This Row],[Hide:\nFormula Name]],Table_PI[[#This Row],[Quantity]],Table_PI[[#This Row],[List 1]],Table_PI[[#This Row],[List 2]],Table_PI[[#This Row],[List 3]],Table_PI[[#This Row],[Size]],Table_PI[[#This Row],[Input 1]],Table_PI[[#This Row],[Input 2]],Table_PI[[#This Row],[Input 3]],Table_PI[[#This Row],[Input 4]],'Customer Information'!$AR$12,7,ROW()),\"No Rebate\"),\"No Rebate\"),0)","v":0},{"$f":"IF(Table_PI[[#This Row],[Hide:\nFormula Name]]<>\"\",IFERROR(IF(MeasureCalc(Table_PI[[#This Row],[Hide:\nFormula Name]],Table_PI[[#This Row],[Quantity]],Table_PI[[#This Row],[List 1]],Table_PI[[#This Row],[List 2]],Table_PI[[#This Row],[List 3]],Table_PI[[#This Row],[Size]],Table_PI[[#This Row],[Input 1]],Table_PI[[#This Row],[Input 2]],Table_PI[[#This Row],[Input 3]],Table_PI[[#This Row],[Input 4]],'Customer Information'!$AR$12,1,ROW())>0,MeasureCalc(Table_PI[[#This Row],[Hide:\nFormula Name]],Table_PI[[#This Row],[Quantity]],Table_PI[[#This Row],[List 1]],Table_PI[[#This Row],[List 2]],Table_PI[[#This Row],[List 3]],Table_PI[[#This Row],[Size]],Table_PI[[#This Row],[Input 1]],Table_PI[[#This Row],[Input 2]],Table_PI[[#This Row],[Input 3]],Table_PI[[#This Row],[Input 4]],'Customer Information'!$AR$12,8,ROW()),\"No Rebate\"),\"No Rebate\"),0)","v":0},{"$f":"IF(Table_PI[[#This Row],[Hide:\nFormula Name]]<>\"\",IF(AND(Table_PI[[#This Row],[Hide:\nFormula Name]]<>\"\",OR(Table_PI[[#This Row],[Rebate]]>0,Table_PI[[#This Row],[Rebate]]=\"No Rebate\")),TRUE,\"MI: Line Item \" & $A90),\"\")","v":""}]
[{"$f":"IF(Table_PI[[#This Row],[Hide:\nFormula Name]]<>\"\",MAX($A$2:A90)+1,\"\")","v":""},null,null,null,null,null,null,null,null,null,null,null,null,null,null,{"$f":"IFERROR(VLOOKUP(Table_PI[[#This Row],[Measure]],'Equipment Lookups'!$C$3:$D$23,2,FALSE),\"\")","v":""},{"$f":"IF(Table_PI[[#This Row],[Hide:\nFormula Name]]<>\"\",IFERROR(IF(MeasureCalc(Table_PI[[#This Row],[Hide:\nFormula Name]],Table_PI[[#This Row],[Quantity]],Table_PI[[#This Row],[List 1]],Table_PI[[#This Row],[List 2]],Table_PI[[#This Row],[List 3]],Table_PI[[#This Row],[Size]],Table_PI[[#This Row],[Input 1]],Table_PI[[#This Row],[Input 2]],Table_PI[[#This Row],[Input 3]],Table_PI[[#This Row],[Input 4]],'Customer Information'!$AR$12,1,ROW())>0,MeasureCalc(Table_PI[[#This Row],[Hide:\nFormula Name]],Table_PI[[#This Row],[Quantity]],Table_PI[[#This Row],[List 1]],Table_PI[[#This Row],[List 2]],Table_PI[[#This Row],[List 3]],Table_PI[[#This Row],[Size]],Table_PI[[#This Row],[Input 1]],Table_PI[[#This Row],[Input 2]],Table_PI[[#This Row],[Input 3]],Table_PI[[#This Row],[Input 4]],'Customer Information'!$AR$12,1,ROW()),\"No Rebate\"),\"No Rebate\"),0)","v":0},{"$f":"IF(Table_PI[[#This Row],[Hide:\nFormula Name]]<>\"\",IFERROR(IF(MeasureCalc(Table_PI[[#This Row],[Hide:\nFormula Name]],Table_PI[[#This Row],[Quantity]],Table_PI[[#This Row],[List 1]],Table_PI[[#This Row],[List 2]],Table_PI[[#This Row],[List 3]],Table_PI[[#This Row],[Size]],Table_PI[[#This Row],[Input 1]],Table_PI[[#This Row],[Input 2]],Table_PI[[#This Row],[Input 3]],Table_PI[[#This Row],[Input 4]],'Customer Information'!$AR$12,1,ROW())>0,MeasureCalc(Table_PI[[#This Row],[Hide:\nFormula Name]],Table_PI[[#This Row],[Quantity]],Table_PI[[#This Row],[List 1]],Table_PI[[#This Row],[List 2]],Table_PI[[#This Row],[List 3]],Table_PI[[#This Row],[Size]],Table_PI[[#This Row],[Input 1]],Table_PI[[#This Row],[Input 2]],Table_PI[[#This Row],[Input 3]],Table_PI[[#This Row],[Input 4]],'Customer Information'!$AR$12,2,ROW()),\"No Rebate\"),\"No Rebate\"),0)","v":0},{"$f":"IF(Table_PI[[#This Row],[Hide:\nFormula Name]]<>\"\",IFERROR(IF(MeasureCalc(Table_PI[[#This Row],[Hide:\nFormula Name]],Table_PI[[#This Row],[Quantity]],Table_PI[[#This Row],[List 1]],Table_PI[[#This Row],[List 2]],Table_PI[[#This Row],[List 3]],Table_PI[[#This Row],[Size]],Table_PI[[#This Row],[Input 1]],Table_PI[[#This Row],[Input 2]],Table_PI[[#This Row],[Input 3]],Table_PI[[#This Row],[Input 4]],'Customer Information'!$AR$12,1,ROW())>0,MeasureCalc(Table_PI[[#This Row],[Hide:\nFormula Name]],Table_PI[[#This Row],[Quantity]],Table_PI[[#This Row],[List 1]],Table_PI[[#This Row],[List 2]],Table_PI[[#This Row],[List 3]],Table_PI[[#This Row],[Size]],Table_PI[[#This Row],[Input 1]],Table_PI[[#This Row],[Input 2]],Table_PI[[#This Row],[Input 3]],Table_PI[[#This Row],[Input 4]],'Customer Information'!$AR$12,3,ROW()),\"No Rebate\"),\"No Rebate\"),0)","v":0},{"$f":"IF(Table_PI[[#This Row],[Hide:\nFormula Name]]<>\"\",IFERROR(IF(MeasureCalc(Table_PI[[#This Row],[Hide:\nFormula Name]],Table_PI[[#This Row],[Quantity]],Table_PI[[#This Row],[List 1]],Table_PI[[#This Row],[List 2]],Table_PI[[#This Row],[List 3]],Table_PI[[#This Row],[Size]],Table_PI[[#This Row],[Input 1]],Table_PI[[#This Row],[Input 2]],Table_PI[[#This Row],[Input 3]],Table_PI[[#This Row],[Input 4]],'Customer Information'!$AR$12,1,ROW())>0,MeasureCalc(Table_PI[[#This Row],[Hide:\nFormula Name]],Table_PI[[#This Row],[Quantity]],Table_PI[[#This Row],[List 1]],Table_PI[[#This Row],[List 2]],Table_PI[[#This Row],[List 3]],Table_PI[[#This Row],[Size]],Table_PI[[#This Row],[Input 1]],Table_PI[[#This Row],[Input 2]],Table_PI[[#This Row],[Input 3]],Table_PI[[#This Row],[Input 4]],'Customer Information'!$AR$12,4,ROW()),\"No Rebate\"),\"No Rebate\"),0)","v":0},{"$f":"IF(Table_PI[[#This Row],[Hide:\nFormula Name]]<>\"\",IFERROR(IF(MeasureCalc(Table_PI[[#This Row],[Hide:\nFormula Name]],Table_PI[[#This Row],[Quantity]],Table_PI[[#This Row],[List 1]],Table_PI[[#This Row],[List 2]],Table_PI[[#This Row],[List 3]],Table_PI[[#This Row],[Size]],Table_PI[[#This Row],[Input 1]],Table_PI[[#This Row],[Input 2]],Table_PI[[#This Row],[Input 3]],Table_PI[[#This Row],[Input 4]],'Customer Information'!$AR$12,1,ROW())>0,MeasureCalc(Table_PI[[#This Row],[Hide:\nFormula Name]],Table_PI[[#This Row],[Quantity]],Table_PI[[#This Row],[List 1]],Table_PI[[#This Row],[List 2]],Table_PI[[#This Row],[List 3]],Table_PI[[#This Row],[Size]],Table_PI[[#This Row],[Input 1]],Table_PI[[#This Row],[Input 2]],Table_PI[[#This Row],[Input 3]],Table_PI[[#This Row],[Input 4]],'Customer Information'!$AR$12,5,ROW()),\"No Rebate\"),\"No Rebate\"),0)","v":0},{"$f":"IF(Table_PI[[#This Row],[Hide:\nFormula Name]]<>\"\",IFERROR(IF(MeasureCalc(Table_PI[[#This Row],[Hide:\nFormula Name]],Table_PI[[#This Row],[Quantity]],Table_PI[[#This Row],[List 1]],Table_PI[[#This Row],[List 2]],Table_PI[[#This Row],[List 3]],Table_PI[[#This Row],[Size]],Table_PI[[#This Row],[Input 1]],Table_PI[[#This Row],[Input 2]],Table_PI[[#This Row],[Input 3]],Table_PI[[#This Row],[Input 4]],'Customer Information'!$AR$12,1,ROW())>0,MeasureCalc(Table_PI[[#This Row],[Hide:\nFormula Name]],Table_PI[[#This Row],[Quantity]],Table_PI[[#This Row],[List 1]],Table_PI[[#This Row],[List 2]],Table_PI[[#This Row],[List 3]],Table_PI[[#This Row],[Size]],Table_PI[[#This Row],[Input 1]],Table_PI[[#This Row],[Input 2]],Table_PI[[#This Row],[Input 3]],Table_PI[[#This Row],[Input 4]],'Customer Information'!$AR$12,6,ROW()),\"No Rebate\"),\"No Rebate\"),0)","v":0},{"$f":"IF(Table_PI[[#This Row],[Hide:\nFormula Name]]<>\"\",IFERROR(IF(MeasureCalc(Table_PI[[#This Row],[Hide:\nFormula Name]],Table_PI[[#This Row],[Quantity]],Table_PI[[#This Row],[List 1]],Table_PI[[#This Row],[List 2]],Table_PI[[#This Row],[List 3]],Table_PI[[#This Row],[Size]],Table_PI[[#This Row],[Input 1]],Table_PI[[#This Row],[Input 2]],Table_PI[[#This Row],[Input 3]],Table_PI[[#This Row],[Input 4]],'Customer Information'!$AR$12,1,ROW())>0,MeasureCalc(Table_PI[[#This Row],[Hide:\nFormula Name]],Table_PI[[#This Row],[Quantity]],Table_PI[[#This Row],[List 1]],Table_PI[[#This Row],[List 2]],Table_PI[[#This Row],[List 3]],Table_PI[[#This Row],[Size]],Table_PI[[#This Row],[Input 1]],Table_PI[[#This Row],[Input 2]],Table_PI[[#This Row],[Input 3]],Table_PI[[#This Row],[Input 4]],'Customer Information'!$AR$12,7,ROW()),\"No Rebate\"),\"No Rebate\"),0)","v":0},{"$f":"IF(Table_PI[[#This Row],[Hide:\nFormula Name]]<>\"\",IFERROR(IF(MeasureCalc(Table_PI[[#This Row],[Hide:\nFormula Name]],Table_PI[[#This Row],[Quantity]],Table_PI[[#This Row],[List 1]],Table_PI[[#This Row],[List 2]],Table_PI[[#This Row],[List 3]],Table_PI[[#This Row],[Size]],Table_PI[[#This Row],[Input 1]],Table_PI[[#This Row],[Input 2]],Table_PI[[#This Row],[Input 3]],Table_PI[[#This Row],[Input 4]],'Customer Information'!$AR$12,1,ROW())>0,MeasureCalc(Table_PI[[#This Row],[Hide:\nFormula Name]],Table_PI[[#This Row],[Quantity]],Table_PI[[#This Row],[List 1]],Table_PI[[#This Row],[List 2]],Table_PI[[#This Row],[List 3]],Table_PI[[#This Row],[Size]],Table_PI[[#This Row],[Input 1]],Table_PI[[#This Row],[Input 2]],Table_PI[[#This Row],[Input 3]],Table_PI[[#This Row],[Input 4]],'Customer Information'!$AR$12,8,ROW()),\"No Rebate\"),\"No Rebate\"),0)","v":0},{"$f":"IF(Table_PI[[#This Row],[Hide:\nFormula Name]]<>\"\",IF(AND(Table_PI[[#This Row],[Hide:\nFormula Name]]<>\"\",OR(Table_PI[[#This Row],[Rebate]]>0,Table_PI[[#This Row],[Rebate]]=\"No Rebate\")),TRUE,\"MI: Line Item \" & $A91),\"\")","v":""}]
[{"$f":"IF(Table_PI[[#This Row],[Hide:\nFormula Name]]<>\"\",MAX($A$2:A91)+1,\"\")","v":""},null,null,null,null,null,null,null,null,null,null,null,null,null,null,{"$f":"IFERROR(VLOOKUP(Table_PI[[#This Row],[Measure]],'Equipment Lookups'!$C$3:$D$23,2,FALSE),\"\")","v":""},{"$f":"IF(Table_PI[[#This Row],[Hide:\nFormula Name]]<>\"\",IFERROR(IF(MeasureCalc(Table_PI[[#This Row],[Hide:\nFormula Name]],Table_PI[[#This Row],[Quantity]],Table_PI[[#This Row],[List 1]],Table_PI[[#This Row],[List 2]],Table_PI[[#This Row],[List 3]],Table_PI[[#This Row],[Size]],Table_PI[[#This Row],[Input 1]],Table_PI[[#This Row],[Input 2]],Table_PI[[#This Row],[Input 3]],Table_PI[[#This Row],[Input 4]],'Customer Information'!$AR$12,1,ROW())>0,MeasureCalc(Table_PI[[#This Row],[Hide:\nFormula Name]],Table_PI[[#This Row],[Quantity]],Table_PI[[#This Row],[List 1]],Table_PI[[#This Row],[List 2]],Table_PI[[#This Row],[List 3]],Table_PI[[#This Row],[Size]],Table_PI[[#This Row],[Input 1]],Table_PI[[#This Row],[Input 2]],Table_PI[[#This Row],[Input 3]],Table_PI[[#This Row],[Input 4]],'Customer Information'!$AR$12,1,ROW()),\"No Rebate\"),\"No Rebate\"),0)","v":0},{"$f":"IF(Table_PI[[#This Row],[Hide:\nFormula Name]]<>\"\",IFERROR(IF(MeasureCalc(Table_PI[[#This Row],[Hide:\nFormula Name]],Table_PI[[#This Row],[Quantity]],Table_PI[[#This Row],[List 1]],Table_PI[[#This Row],[List 2]],Table_PI[[#This Row],[List 3]],Table_PI[[#This Row],[Size]],Table_PI[[#This Row],[Input 1]],Table_PI[[#This Row],[Input 2]],Table_PI[[#This Row],[Input 3]],Table_PI[[#This Row],[Input 4]],'Customer Information'!$AR$12,1,ROW())>0,MeasureCalc(Table_PI[[#This Row],[Hide:\nFormula Name]],Table_PI[[#This Row],[Quantity]],Table_PI[[#This Row],[List 1]],Table_PI[[#This Row],[List 2]],Table_PI[[#This Row],[List 3]],Table_PI[[#This Row],[Size]],Table_PI[[#This Row],[Input 1]],Table_PI[[#This Row],[Input 2]],Table_PI[[#This Row],[Input 3]],Table_PI[[#This Row],[Input 4]],'Customer Information'!$AR$12,2,ROW()),\"No Rebate\"),\"No Rebate\"),0)","v":0},{"$f":"IF(Table_PI[[#This Row],[Hide:\nFormula Name]]<>\"\",IFERROR(IF(MeasureCalc(Table_PI[[#This Row],[Hide:\nFormula Name]],Table_PI[[#This Row],[Quantity]],Table_PI[[#This Row],[List 1]],Table_PI[[#This Row],[List 2]],Table_PI[[#This Row],[List 3]],Table_PI[[#This Row],[Size]],Table_PI[[#This Row],[Input 1]],Table_PI[[#This Row],[Input 2]],Table_PI[[#This Row],[Input 3]],Table_PI[[#This Row],[Input 4]],'Customer Information'!$AR$12,1,ROW())>0,MeasureCalc(Table_PI[[#This Row],[Hide:\nFormula Name]],Table_PI[[#This Row],[Quantity]],Table_PI[[#This Row],[List 1]],Table_PI[[#This Row],[List 2]],Table_PI[[#This Row],[List 3]],Table_PI[[#This Row],[Size]],Table_PI[[#This Row],[Input 1]],Table_PI[[#This Row],[Input 2]],Table_PI[[#This Row],[Input 3]],Table_PI[[#This Row],[Input 4]],'Customer Information'!$AR$12,3,ROW()),\"No Rebate\"),\"No Rebate\"),0)","v":0},{"$f":"IF(Table_PI[[#This Row],[Hide:\nFormula Name]]<>\"\",IFERROR(IF(MeasureCalc(Table_PI[[#This Row],[Hide:\nFormula Name]],Table_PI[[#This Row],[Quantity]],Table_PI[[#This Row],[List 1]],Table_PI[[#This Row],[List 2]],Table_PI[[#This Row],[List 3]],Table_PI[[#This Row],[Size]],Table_PI[[#This Row],[Input 1]],Table_PI[[#This Row],[Input 2]],Table_PI[[#This Row],[Input 3]],Table_PI[[#This Row],[Input 4]],'Customer Information'!$AR$12,1,ROW())>0,MeasureCalc(Table_PI[[#This Row],[Hide:\nFormula Name]],Table_PI[[#This Row],[Quantity]],Table_PI[[#This Row],[List 1]],Table_PI[[#This Row],[List 2]],Table_PI[[#This Row],[List 3]],Table_PI[[#This Row],[Size]],Table_PI[[#This Row],[Input 1]],Table_PI[[#This Row],[Input 2]],Table_PI[[#This Row],[Input 3]],Table_PI[[#This Row],[Input 4]],'Customer Information'!$AR$12,4,ROW()),\"No Rebate\"),\"No Rebate\"),0)","v":0},{"$f":"IF(Table_PI[[#This Row],[Hide:\nFormula Name]]<>\"\",IFERROR(IF(MeasureCalc(Table_PI[[#This Row],[Hide:\nFormula Name]],Table_PI[[#This Row],[Quantity]],Table_PI[[#This Row],[List 1]],Table_PI[[#This Row],[List 2]],Table_PI[[#This Row],[List 3]],Table_PI[[#This Row],[Size]],Table_PI[[#This Row],[Input 1]],Table_PI[[#This Row],[Input 2]],Table_PI[[#This Row],[Input 3]],Table_PI[[#This Row],[Input 4]],'Customer Information'!$AR$12,1,ROW())>0,MeasureCalc(Table_PI[[#This Row],[Hide:\nFormula Name]],Table_PI[[#This Row],[Quantity]],Table_PI[[#This Row],[List 1]],Table_PI[[#This Row],[List 2]],Table_PI[[#This Row],[List 3]],Table_PI[[#This Row],[Size]],Table_PI[[#This Row],[Input 1]],Table_PI[[#This Row],[Input 2]],Table_PI[[#This Row],[Input 3]],Table_PI[[#This Row],[Input 4]],'Customer Information'!$AR$12,5,ROW()),\"No Rebate\"),\"No Rebate\"),0)","v":0},{"$f":"IF(Table_PI[[#This Row],[Hide:\nFormula Name]]<>\"\",IFERROR(IF(MeasureCalc(Table_PI[[#This Row],[Hide:\nFormula Name]],Table_PI[[#This Row],[Quantity]],Table_PI[[#This Row],[List 1]],Table_PI[[#This Row],[List 2]],Table_PI[[#This Row],[List 3]],Table_PI[[#This Row],[Size]],Table_PI[[#This Row],[Input 1]],Table_PI[[#This Row],[Input 2]],Table_PI[[#This Row],[Input 3]],Table_PI[[#This Row],[Input 4]],'Customer Information'!$AR$12,1,ROW())>0,MeasureCalc(Table_PI[[#This Row],[Hide:\nFormula Name]],Table_PI[[#This Row],[Quantity]],Table_PI[[#This Row],[List 1]],Table_PI[[#This Row],[List 2]],Table_PI[[#This Row],[List 3]],Table_PI[[#This Row],[Size]],Table_PI[[#This Row],[Input 1]],Table_PI[[#This Row],[Input 2]],Table_PI[[#This Row],[Input 3]],Table_PI[[#This Row],[Input 4]],'Customer Information'!$AR$12,6,ROW()),\"No Rebate\"),\"No Rebate\"),0)","v":0},{"$f":"IF(Table_PI[[#This Row],[Hide:\nFormula Name]]<>\"\",IFERROR(IF(MeasureCalc(Table_PI[[#This Row],[Hide:\nFormula Name]],Table_PI[[#This Row],[Quantity]],Table_PI[[#This Row],[List 1]],Table_PI[[#This Row],[List 2]],Table_PI[[#This Row],[List 3]],Table_PI[[#This Row],[Size]],Table_PI[[#This Row],[Input 1]],Table_PI[[#This Row],[Input 2]],Table_PI[[#This Row],[Input 3]],Table_PI[[#This Row],[Input 4]],'Customer Information'!$AR$12,1,ROW())>0,MeasureCalc(Table_PI[[#This Row],[Hide:\nFormula Name]],Table_PI[[#This Row],[Quantity]],Table_PI[[#This Row],[List 1]],Table_PI[[#This Row],[List 2]],Table_PI[[#This Row],[List 3]],Table_PI[[#This Row],[Size]],Table_PI[[#This Row],[Input 1]],Table_PI[[#This Row],[Input 2]],Table_PI[[#This Row],[Input 3]],Table_PI[[#This Row],[Input 4]],'Customer Information'!$AR$12,7,ROW()),\"No Rebate\"),\"No Rebate\"),0)","v":0},{"$f":"IF(Table_PI[[#This Row],[Hide:\nFormula Name]]<>\"\",IFERROR(IF(MeasureCalc(Table_PI[[#This Row],[Hide:\nFormula Name]],Table_PI[[#This Row],[Quantity]],Table_PI[[#This Row],[List 1]],Table_PI[[#This Row],[List 2]],Table_PI[[#This Row],[List 3]],Table_PI[[#This Row],[Size]],Table_PI[[#This Row],[Input 1]],Table_PI[[#This Row],[Input 2]],Table_PI[[#This Row],[Input 3]],Table_PI[[#This Row],[Input 4]],'Customer Information'!$AR$12,1,ROW())>0,MeasureCalc(Table_PI[[#This Row],[Hide:\nFormula Name]],Table_PI[[#This Row],[Quantity]],Table_PI[[#This Row],[List 1]],Table_PI[[#This Row],[List 2]],Table_PI[[#This Row],[List 3]],Table_PI[[#This Row],[Size]],Table_PI[[#This Row],[Input 1]],Table_PI[[#This Row],[Input 2]],Table_PI[[#This Row],[Input 3]],Table_PI[[#This Row],[Input 4]],'Customer Information'!$AR$12,8,ROW()),\"No Rebate\"),\"No Rebate\"),0)","v":0},{"$f":"IF(Table_PI[[#This Row],[Hide:\nFormula Name]]<>\"\",IF(AND(Table_PI[[#This Row],[Hide:\nFormula Name]]<>\"\",OR(Table_PI[[#This Row],[Rebate]]>0,Table_PI[[#This Row],[Rebate]]=\"No Rebate\")),TRUE,\"MI: Line Item \" & $A92),\"\")","v":""}]
[{"$f":"IF(Table_PI[[#This Row],[Hide:\nFormula Name]]<>\"\",MAX($A$2:A92)+1,\"\")","v":""},null,null,null,null,null,null,null,null,null,null,null,null,null,null,{"$f":"IFERROR(VLOOKUP(Table_PI[[#This Row],[Measure]],'Equipment Lookups'!$C$3:$D$23,2,FALSE),\"\")","v":""},{"$f":"IF(Table_PI[[#This Row],[Hide:\nFormula Name]]<>\"\",IFERROR(IF(MeasureCalc(Table_PI[[#This Row],[Hide:\nFormula Name]],Table_PI[[#This Row],[Quantity]],Table_PI[[#This Row],[List 1]],Table_PI[[#This Row],[List 2]],Table_PI[[#This Row],[List 3]],Table_PI[[#This Row],[Size]],Table_PI[[#This Row],[Input 1]],Table_PI[[#This Row],[Input 2]],Table_PI[[#This Row],[Input 3]],Table_PI[[#This Row],[Input 4]],'Customer Information'!$AR$12,1,ROW())>0,MeasureCalc(Table_PI[[#This Row],[Hide:\nFormula Name]],Table_PI[[#This Row],[Quantity]],Table_PI[[#This Row],[List 1]],Table_PI[[#This Row],[List 2]],Table_PI[[#This Row],[List 3]],Table_PI[[#This Row],[Size]],Table_PI[[#This Row],[Input 1]],Table_PI[[#This Row],[Input 2]],Table_PI[[#This Row],[Input 3]],Table_PI[[#This Row],[Input 4]],'Customer Information'!$AR$12,1,ROW()),\"No Rebate\"),\"No Rebate\"),0)","v":0},{"$f":"IF(Table_PI[[#This Row],[Hide:\nFormula Name]]<>\"\",IFERROR(IF(MeasureCalc(Table_PI[[#This Row],[Hide:\nFormula Name]],Table_PI[[#This Row],[Quantity]],Table_PI[[#This Row],[List 1]],Table_PI[[#This Row],[List 2]],Table_PI[[#This Row],[List 3]],Table_PI[[#This Row],[Size]],Table_PI[[#This Row],[Input 1]],Table_PI[[#This Row],[Input 2]],Table_PI[[#This Row],[Input 3]],Table_PI[[#This Row],[Input 4]],'Customer Information'!$AR$12,1,ROW())>0,MeasureCalc(Table_PI[[#This Row],[Hide:\nFormula Name]],Table_PI[[#This Row],[Quantity]],Table_PI[[#This Row],[List 1]],Table_PI[[#This Row],[List 2]],Table_PI[[#This Row],[List 3]],Table_PI[[#This Row],[Size]],Table_PI[[#This Row],[Input 1]],Table_PI[[#This Row],[Input 2]],Table_PI[[#This Row],[Input 3]],Table_PI[[#This Row],[Input 4]],'Customer Information'!$AR$12,2,ROW()),\"No Rebate\"),\"No Rebate\"),0)","v":0},{"$f":"IF(Table_PI[[#This Row],[Hide:\nFormula Name]]<>\"\",IFERROR(IF(MeasureCalc(Table_PI[[#This Row],[Hide:\nFormula Name]],Table_PI[[#This Row],[Quantity]],Table_PI[[#This Row],[List 1]],Table_PI[[#This Row],[List 2]],Table_PI[[#This Row],[List 3]],Table_PI[[#This Row],[Size]],Table_PI[[#This Row],[Input 1]],Table_PI[[#This Row],[Input 2]],Table_PI[[#This Row],[Input 3]],Table_PI[[#This Row],[Input 4]],'Customer Information'!$AR$12,1,ROW())>0,MeasureCalc(Table_PI[[#This Row],[Hide:\nFormula Name]],Table_PI[[#This Row],[Quantity]],Table_PI[[#This Row],[List 1]],Table_PI[[#This Row],[List 2]],Table_PI[[#This Row],[List 3]],Table_PI[[#This Row],[Size]],Table_PI[[#This Row],[Input 1]],Table_PI[[#This Row],[Input 2]],Table_PI[[#This Row],[Input 3]],Table_PI[[#This Row],[Input 4]],'Customer Information'!$AR$12,3,ROW()),\"No Rebate\"),\"No Rebate\"),0)","v":0},{"$f":"IF(Table_PI[[#This Row],[Hide:\nFormula Name]]<>\"\",IFERROR(IF(MeasureCalc(Table_PI[[#This Row],[Hide:\nFormula Name]],Table_PI[[#This Row],[Quantity]],Table_PI[[#This Row],[List 1]],Table_PI[[#This Row],[List 2]],Table_PI[[#This Row],[List 3]],Table_PI[[#This Row],[Size]],Table_PI[[#This Row],[Input 1]],Table_PI[[#This Row],[Input 2]],Table_PI[[#This Row],[Input 3]],Table_PI[[#This Row],[Input 4]],'Customer Information'!$AR$12,1,ROW())>0,MeasureCalc(Table_PI[[#This Row],[Hide:\nFormula Name]],Table_PI[[#This Row],[Quantity]],Table_PI[[#This Row],[List 1]],Table_PI[[#This Row],[List 2]],Table_PI[[#This Row],[List 3]],Table_PI[[#This Row],[Size]],Table_PI[[#This Row],[Input 1]],Table_PI[[#This Row],[Input 2]],Table_PI[[#This Row],[Input 3]],Table_PI[[#This Row],[Input 4]],'Customer Information'!$AR$12,4,ROW()),\"No Rebate\"),\"No Rebate\"),0)","v":0},{"$f":"IF(Table_PI[[#This Row],[Hide:\nFormula Name]]<>\"\",IFERROR(IF(MeasureCalc(Table_PI[[#This Row],[Hide:\nFormula Name]],Table_PI[[#This Row],[Quantity]],Table_PI[[#This Row],[List 1]],Table_PI[[#This Row],[List 2]],Table_PI[[#This Row],[List 3]],Table_PI[[#This Row],[Size]],Table_PI[[#This Row],[Input 1]],Table_PI[[#This Row],[Input 2]],Table_PI[[#This Row],[Input 3]],Table_PI[[#This Row],[Input 4]],'Customer Information'!$AR$12,1,ROW())>0,MeasureCalc(Table_PI[[#This Row],[Hide:\nFormula Name]],Table_PI[[#This Row],[Quantity]],Table_PI[[#This Row],[List 1]],Table_PI[[#This Row],[List 2]],Table_PI[[#This Row],[List 3]],Table_PI[[#This Row],[Size]],Table_PI[[#This Row],[Input 1]],Table_PI[[#This Row],[Input 2]],Table_PI[[#This Row],[Input 3]],Table_PI[[#This Row],[Input 4]],'Customer Information'!$AR$12,5,ROW()),\"No Rebate\"),\"No Rebate\"),0)","v":0},{"$f":"IF(Table_PI[[#This Row],[Hide:\nFormula Name]]<>\"\",IFERROR(IF(MeasureCalc(Table_PI[[#This Row],[Hide:\nFormula Name]],Table_PI[[#This Row],[Quantity]],Table_PI[[#This Row],[List 1]],Table_PI[[#This Row],[List 2]],Table_PI[[#This Row],[List 3]],Table_PI[[#This Row],[Size]],Table_PI[[#This Row],[Input 1]],Table_PI[[#This Row],[Input 2]],Table_PI[[#This Row],[Input 3]],Table_PI[[#This Row],[Input 4]],'Customer Information'!$AR$12,1,ROW())>0,MeasureCalc(Table_PI[[#This Row],[Hide:\nFormula Name]],Table_PI[[#This Row],[Quantity]],Table_PI[[#This Row],[List 1]],Table_PI[[#This Row],[List 2]],Table_PI[[#This Row],[List 3]],Table_PI[[#This Row],[Size]],Table_PI[[#This Row],[Input 1]],Table_PI[[#This Row],[Input 2]],Table_PI[[#This Row],[Input 3]],Table_PI[[#This Row],[Input 4]],'Customer Information'!$AR$12,6,ROW()),\"No Rebate\"),\"No Rebate\"),0)","v":0},{"$f":"IF(Table_PI[[#This Row],[Hide:\nFormula Name]]<>\"\",IFERROR(IF(MeasureCalc(Table_PI[[#This Row],[Hide:\nFormula Name]],Table_PI[[#This Row],[Quantity]],Table_PI[[#This Row],[List 1]],Table_PI[[#This Row],[List 2]],Table_PI[[#This Row],[List 3]],Table_PI[[#This Row],[Size]],Table_PI[[#This Row],[Input 1]],Table_PI[[#This Row],[Input 2]],Table_PI[[#This Row],[Input 3]],Table_PI[[#This Row],[Input 4]],'Customer Information'!$AR$12,1,ROW())>0,MeasureCalc(Table_PI[[#This Row],[Hide:\nFormula Name]],Table_PI[[#This Row],[Quantity]],Table_PI[[#This Row],[List 1]],Table_PI[[#This Row],[List 2]],Table_PI[[#This Row],[List 3]],Table_PI[[#This Row],[Size]],Table_PI[[#This Row],[Input 1]],Table_PI[[#This Row],[Input 2]],Table_PI[[#This Row],[Input 3]],Table_PI[[#This Row],[Input 4]],'Customer Information'!$AR$12,7,ROW()),\"No Rebate\"),\"No Rebate\"),0)","v":0},{"$f":"IF(Table_PI[[#This Row],[Hide:\nFormula Name]]<>\"\",IFERROR(IF(MeasureCalc(Table_PI[[#This Row],[Hide:\nFormula Name]],Table_PI[[#This Row],[Quantity]],Table_PI[[#This Row],[List 1]],Table_PI[[#This Row],[List 2]],Table_PI[[#This Row],[List 3]],Table_PI[[#This Row],[Size]],Table_PI[[#This Row],[Input 1]],Table_PI[[#This Row],[Input 2]],Table_PI[[#This Row],[Input 3]],Table_PI[[#This Row],[Input 4]],'Customer Information'!$AR$12,1,ROW())>0,MeasureCalc(Table_PI[[#This Row],[Hide:\nFormula Name]],Table_PI[[#This Row],[Quantity]],Table_PI[[#This Row],[List 1]],Table_PI[[#This Row],[List 2]],Table_PI[[#This Row],[List 3]],Table_PI[[#This Row],[Size]],Table_PI[[#This Row],[Input 1]],Table_PI[[#This Row],[Input 2]],Table_PI[[#This Row],[Input 3]],Table_PI[[#This Row],[Input 4]],'Customer Information'!$AR$12,8,ROW()),\"No Rebate\"),\"No Rebate\"),0)","v":0},{"$f":"IF(Table_PI[[#This Row],[Hide:\nFormula Name]]<>\"\",IF(AND(Table_PI[[#This Row],[Hide:\nFormula Name]]<>\"\",OR(Table_PI[[#This Row],[Rebate]]>0,Table_PI[[#This Row],[Rebate]]=\"No Rebate\")),TRUE,\"MI: Line Item \" & $A93),\"\")","v":""}]
[{"$f":"IF(Table_PI[[#This Row],[Hide:\nFormula Name]]<>\"\",MAX($A$2:A93)+1,\"\")","v":""},null,null,null,null,null,null,null,null,null,null,null,null,null,null,{"$f":"IFERROR(VLOOKUP(Table_PI[[#This Row],[Measure]],'Equipment Lookups'!$C$3:$D$23,2,FALSE),\"\")","v":""},{"$f":"IF(Table_PI[[#This Row],[Hide:\nFormula Name]]<>\"\",IFERROR(IF(MeasureCalc(Table_PI[[#This Row],[Hide:\nFormula Name]],Table_PI[[#This Row],[Quantity]],Table_PI[[#This Row],[List 1]],Table_PI[[#This Row],[List 2]],Table_PI[[#This Row],[List 3]],Table_PI[[#This Row],[Size]],Table_PI[[#This Row],[Input 1]],Table_PI[[#This Row],[Input 2]],Table_PI[[#This Row],[Input 3]],Table_PI[[#This Row],[Input 4]],'Customer Information'!$AR$12,1,ROW())>0,MeasureCalc(Table_PI[[#This Row],[Hide:\nFormula Name]],Table_PI[[#This Row],[Quantity]],Table_PI[[#This Row],[List 1]],Table_PI[[#This Row],[List 2]],Table_PI[[#This Row],[List 3]],Table_PI[[#This Row],[Size]],Table_PI[[#This Row],[Input 1]],Table_PI[[#This Row],[Input 2]],Table_PI[[#This Row],[Input 3]],Table_PI[[#This Row],[Input 4]],'Customer Information'!$AR$12,1,ROW()),\"No Rebate\"),\"No Rebate\"),0)","v":0},{"$f":"IF(Table_PI[[#This Row],[Hide:\nFormula Name]]<>\"\",IFERROR(IF(MeasureCalc(Table_PI[[#This Row],[Hide:\nFormula Name]],Table_PI[[#This Row],[Quantity]],Table_PI[[#This Row],[List 1]],Table_PI[[#This Row],[List 2]],Table_PI[[#This Row],[List 3]],Table_PI[[#This Row],[Size]],Table_PI[[#This Row],[Input 1]],Table_PI[[#This Row],[Input 2]],Table_PI[[#This Row],[Input 3]],Table_PI[[#This Row],[Input 4]],'Customer Information'!$AR$12,1,ROW())>0,MeasureCalc(Table_PI[[#This Row],[Hide:\nFormula Name]],Table_PI[[#This Row],[Quantity]],Table_PI[[#This Row],[List 1]],Table_PI[[#This Row],[List 2]],Table_PI[[#This Row],[List 3]],Table_PI[[#This Row],[Size]],Table_PI[[#This Row],[Input 1]],Table_PI[[#This Row],[Input 2]],Table_PI[[#This Row],[Input 3]],Table_PI[[#This Row],[Input 4]],'Customer Information'!$AR$12,2,ROW()),\"No Rebate\"),\"No Rebate\"),0)","v":0},{"$f":"IF(Table_PI[[#This Row],[Hide:\nFormula Name]]<>\"\",IFERROR(IF(MeasureCalc(Table_PI[[#This Row],[Hide:\nFormula Name]],Table_PI[[#This Row],[Quantity]],Table_PI[[#This Row],[List 1]],Table_PI[[#This Row],[List 2]],Table_PI[[#This Row],[List 3]],Table_PI[[#This Row],[Size]],Table_PI[[#This Row],[Input 1]],Table_PI[[#This Row],[Input 2]],Table_PI[[#This Row],[Input 3]],Table_PI[[#This Row],[Input 4]],'Customer Information'!$AR$12,1,ROW())>0,MeasureCalc(Table_PI[[#This Row],[Hide:\nFormula Name]],Table_PI[[#This Row],[Quantity]],Table_PI[[#This Row],[List 1]],Table_PI[[#This Row],[List 2]],Table_PI[[#This Row],[List 3]],Table_PI[[#This Row],[Size]],Table_PI[[#This Row],[Input 1]],Table_PI[[#This Row],[Input 2]],Table_PI[[#This Row],[Input 3]],Table_PI[[#This Row],[Input 4]],'Customer Information'!$AR$12,3,ROW()),\"No Rebate\"),\"No Rebate\"),0)","v":0},{"$f":"IF(Table_PI[[#This Row],[Hide:\nFormula Name]]<>\"\",IFERROR(IF(MeasureCalc(Table_PI[[#This Row],[Hide:\nFormula Name]],Table_PI[[#This Row],[Quantity]],Table_PI[[#This Row],[List 1]],Table_PI[[#This Row],[List 2]],Table_PI[[#This Row],[List 3]],Table_PI[[#This Row],[Size]],Table_PI[[#This Row],[Input 1]],Table_PI[[#This Row],[Input 2]],Table_PI[[#This Row],[Input 3]],Table_PI[[#This Row],[Input 4]],'Customer Information'!$AR$12,1,ROW())>0,MeasureCalc(Table_PI[[#This Row],[Hide:\nFormula Name]],Table_PI[[#This Row],[Quantity]],Table_PI[[#This Row],[List 1]],Table_PI[[#This Row],[List 2]],Table_PI[[#This Row],[List 3]],Table_PI[[#This Row],[Size]],Table_PI[[#This Row],[Input 1]],Table_PI[[#This Row],[Input 2]],Table_PI[[#This Row],[Input 3]],Table_PI[[#This Row],[Input 4]],'Customer Information'!$AR$12,4,ROW()),\"No Rebate\"),\"No Rebate\"),0)","v":0},{"$f":"IF(Table_PI[[#This Row],[Hide:\nFormula Name]]<>\"\",IFERROR(IF(MeasureCalc(Table_PI[[#This Row],[Hide:\nFormula Name]],Table_PI[[#This Row],[Quantity]],Table_PI[[#This Row],[List 1]],Table_PI[[#This Row],[List 2]],Table_PI[[#This Row],[List 3]],Table_PI[[#This Row],[Size]],Table_PI[[#This Row],[Input 1]],Table_PI[[#This Row],[Input 2]],Table_PI[[#This Row],[Input 3]],Table_PI[[#This Row],[Input 4]],'Customer Information'!$AR$12,1,ROW())>0,MeasureCalc(Table_PI[[#This Row],[Hide:\nFormula Name]],Table_PI[[#This Row],[Quantity]],Table_PI[[#This Row],[List 1]],Table_PI[[#This Row],[List 2]],Table_PI[[#This Row],[List 3]],Table_PI[[#This Row],[Size]],Table_PI[[#This Row],[Input 1]],Table_PI[[#This Row],[Input 2]],Table_PI[[#This Row],[Input 3]],Table_PI[[#This Row],[Input 4]],'Customer Information'!$AR$12,5,ROW()),\"No Rebate\"),\"No Rebate\"),0)","v":0},{"$f":"IF(Table_PI[[#This Row],[Hide:\nFormula Name]]<>\"\",IFERROR(IF(MeasureCalc(Table_PI[[#This Row],[Hide:\nFormula Name]],Table_PI[[#This Row],[Quantity]],Table_PI[[#This Row],[List 1]],Table_PI[[#This Row],[List 2]],Table_PI[[#This Row],[List 3]],Table_PI[[#This Row],[Size]],Table_PI[[#This Row],[Input 1]],Table_PI[[#This Row],[Input 2]],Table_PI[[#This Row],[Input 3]],Table_PI[[#This Row],[Input 4]],'Customer Information'!$AR$12,1,ROW())>0,MeasureCalc(Table_PI[[#This Row],[Hide:\nFormula Name]],Table_PI[[#This Row],[Quantity]],Table_PI[[#This Row],[List 1]],Table_PI[[#This Row],[List 2]],Table_PI[[#This Row],[List 3]],Table_PI[[#This Row],[Size]],Table_PI[[#This Row],[Input 1]],Table_PI[[#This Row],[Input 2]],Table_PI[[#This Row],[Input 3]],Table_PI[[#This Row],[Input 4]],'Customer Information'!$AR$12,6,ROW()),\"No Rebate\"),\"No Rebate\"),0)","v":0},{"$f":"IF(Table_PI[[#This Row],[Hide:\nFormula Name]]<>\"\",IFERROR(IF(MeasureCalc(Table_PI[[#This Row],[Hide:\nFormula Name]],Table_PI[[#This Row],[Quantity]],Table_PI[[#This Row],[List 1]],Table_PI[[#This Row],[List 2]],Table_PI[[#This Row],[List 3]],Table_PI[[#This Row],[Size]],Table_PI[[#This Row],[Input 1]],Table_PI[[#This Row],[Input 2]],Table_PI[[#This Row],[Input 3]],Table_PI[[#This Row],[Input 4]],'Customer Information'!$AR$12,1,ROW())>0,MeasureCalc(Table_PI[[#This Row],[Hide:\nFormula Name]],Table_PI[[#This Row],[Quantity]],Table_PI[[#This Row],[List 1]],Table_PI[[#This Row],[List 2]],Table_PI[[#This Row],[List 3]],Table_PI[[#This Row],[Size]],Table_PI[[#This Row],[Input 1]],Table_PI[[#This Row],[Input 2]],Table_PI[[#This Row],[Input 3]],Table_PI[[#This Row],[Input 4]],'Customer Information'!$AR$12,7,ROW()),\"No Rebate\"),\"No Rebate\"),0)","v":0},{"$f":"IF(Table_PI[[#This Row],[Hide:\nFormula Name]]<>\"\",IFERROR(IF(MeasureCalc(Table_PI[[#This Row],[Hide:\nFormula Name]],Table_PI[[#This Row],[Quantity]],Table_PI[[#This Row],[List 1]],Table_PI[[#This Row],[List 2]],Table_PI[[#This Row],[List 3]],Table_PI[[#This Row],[Size]],Table_PI[[#This Row],[Input 1]],Table_PI[[#This Row],[Input 2]],Table_PI[[#This Row],[Input 3]],Table_PI[[#This Row],[Input 4]],'Customer Information'!$AR$12,1,ROW())>0,MeasureCalc(Table_PI[[#This Row],[Hide:\nFormula Name]],Table_PI[[#This Row],[Quantity]],Table_PI[[#This Row],[List 1]],Table_PI[[#This Row],[List 2]],Table_PI[[#This Row],[List 3]],Table_PI[[#This Row],[Size]],Table_PI[[#This Row],[Input 1]],Table_PI[[#This Row],[Input 2]],Table_PI[[#This Row],[Input 3]],Table_PI[[#This Row],[Input 4]],'Customer Information'!$AR$12,8,ROW()),\"No Rebate\"),\"No Rebate\"),0)","v":0},{"$f":"IF(Table_PI[[#This Row],[Hide:\nFormula Name]]<>\"\",IF(AND(Table_PI[[#This Row],[Hide:\nFormula Name]]<>\"\",OR(Table_PI[[#This Row],[Rebate]]>0,Table_PI[[#This Row],[Rebate]]=\"No Rebate\")),TRUE,\"MI: Line Item \" & $A94),\"\")","v":""}]
[{"$f":"IF(Table_PI[[#This Row],[Hide:\nFormula Name]]<>\"\",MAX($A$2:A94)+1,\"\")","v":""},null,null,null,null,null,null,null,null,null,null,null,null,null,null,{"$f":"IFERROR(VLOOKUP(Table_PI[[#This Row],[Measure]],'Equipment Lookups'!$C$3:$D$23,2,FALSE),\"\")","v":""},{"$f":"IF(Table_PI[[#This Row],[Hide:\nFormula Name]]<>\"\",IFERROR(IF(MeasureCalc(Table_PI[[#This Row],[Hide:\nFormula Name]],Table_PI[[#This Row],[Quantity]],Table_PI[[#This Row],[List 1]],Table_PI[[#This Row],[List 2]],Table_PI[[#This Row],[List 3]],Table_PI[[#This Row],[Size]],Table_PI[[#This Row],[Input 1]],Table_PI[[#This Row],[Input 2]],Table_PI[[#This Row],[Input 3]],Table_PI[[#This Row],[Input 4]],'Customer Information'!$AR$12,1,ROW())>0,MeasureCalc(Table_PI[[#This Row],[Hide:\nFormula Name]],Table_PI[[#This Row],[Quantity]],Table_PI[[#This Row],[List 1]],Table_PI[[#This Row],[List 2]],Table_PI[[#This Row],[List 3]],Table_PI[[#This Row],[Size]],Table_PI[[#This Row],[Input 1]],Table_PI[[#This Row],[Input 2]],Table_PI[[#This Row],[Input 3]],Table_PI[[#This Row],[Input 4]],'Customer Information'!$AR$12,1,ROW()),\"No Rebate\"),\"No Rebate\"),0)","v":0},{"$f":"IF(Table_PI[[#This Row],[Hide:\nFormula Name]]<>\"\",IFERROR(IF(MeasureCalc(Table_PI[[#This Row],[Hide:\nFormula Name]],Table_PI[[#This Row],[Quantity]],Table_PI[[#This Row],[List 1]],Table_PI[[#This Row],[List 2]],Table_PI[[#This Row],[List 3]],Table_PI[[#This Row],[Size]],Table_PI[[#This Row],[Input 1]],Table_PI[[#This Row],[Input 2]],Table_PI[[#This Row],[Input 3]],Table_PI[[#This Row],[Input 4]],'Customer Information'!$AR$12,1,ROW())>0,MeasureCalc(Table_PI[[#This Row],[Hide:\nFormula Name]],Table_PI[[#This Row],[Quantity]],Table_PI[[#This Row],[List 1]],Table_PI[[#This Row],[List 2]],Table_PI[[#This Row],[List 3]],Table_PI[[#This Row],[Size]],Table_PI[[#This Row],[Input 1]],Table_PI[[#This Row],[Input 2]],Table_PI[[#This Row],[Input 3]],Table_PI[[#This Row],[Input 4]],'Customer Information'!$AR$12,2,ROW()),\"No Rebate\"),\"No Rebate\"),0)","v":0},{"$f":"IF(Table_PI[[#This Row],[Hide:\nFormula Name]]<>\"\",IFERROR(IF(MeasureCalc(Table_PI[[#This Row],[Hide:\nFormula Name]],Table_PI[[#This Row],[Quantity]],Table_PI[[#This Row],[List 1]],Table_PI[[#This Row],[List 2]],Table_PI[[#This Row],[List 3]],Table_PI[[#This Row],[Size]],Table_PI[[#This Row],[Input 1]],Table_PI[[#This Row],[Input 2]],Table_PI[[#This Row],[Input 3]],Table_PI[[#This Row],[Input 4]],'Customer Information'!$AR$12,1,ROW())>0,MeasureCalc(Table_PI[[#This Row],[Hide:\nFormula Name]],Table_PI[[#This Row],[Quantity]],Table_PI[[#This Row],[List 1]],Table_PI[[#This Row],[List 2]],Table_PI[[#This Row],[List 3]],Table_PI[[#This Row],[Size]],Table_PI[[#This Row],[Input 1]],Table_PI[[#This Row],[Input 2]],Table_PI[[#This Row],[Input 3]],Table_PI[[#This Row],[Input 4]],'Customer Information'!$AR$12,3,ROW()),\"No Rebate\"),\"No Rebate\"),0)","v":0},{"$f":"IF(Table_PI[[#This Row],[Hide:\nFormula Name]]<>\"\",IFERROR(IF(MeasureCalc(Table_PI[[#This Row],[Hide:\nFormula Name]],Table_PI[[#This Row],[Quantity]],Table_PI[[#This Row],[List 1]],Table_PI[[#This Row],[List 2]],Table_PI[[#This Row],[List 3]],Table_PI[[#This Row],[Size]],Table_PI[[#This Row],[Input 1]],Table_PI[[#This Row],[Input 2]],Table_PI[[#This Row],[Input 3]],Table_PI[[#This Row],[Input 4]],'Customer Information'!$AR$12,1,ROW())>0,MeasureCalc(Table_PI[[#This Row],[Hide:\nFormula Name]],Table_PI[[#This Row],[Quantity]],Table_PI[[#This Row],[List 1]],Table_PI[[#This Row],[List 2]],Table_PI[[#This Row],[List 3]],Table_PI[[#This Row],[Size]],Table_PI[[#This Row],[Input 1]],Table_PI[[#This Row],[Input 2]],Table_PI[[#This Row],[Input 3]],Table_PI[[#This Row],[Input 4]],'Customer Information'!$AR$12,4,ROW()),\"No Rebate\"),\"No Rebate\"),0)","v":0},{"$f":"IF(Table_PI[[#This Row],[Hide:\nFormula Name]]<>\"\",IFERROR(IF(MeasureCalc(Table_PI[[#This Row],[Hide:\nFormula Name]],Table_PI[[#This Row],[Quantity]],Table_PI[[#This Row],[List 1]],Table_PI[[#This Row],[List 2]],Table_PI[[#This Row],[List 3]],Table_PI[[#This Row],[Size]],Table_PI[[#This Row],[Input 1]],Table_PI[[#This Row],[Input 2]],Table_PI[[#This Row],[Input 3]],Table_PI[[#This Row],[Input 4]],'Customer Information'!$AR$12,1,ROW())>0,MeasureCalc(Table_PI[[#This Row],[Hide:\nFormula Name]],Table_PI[[#This Row],[Quantity]],Table_PI[[#This Row],[List 1]],Table_PI[[#This Row],[List 2]],Table_PI[[#This Row],[List 3]],Table_PI[[#This Row],[Size]],Table_PI[[#This Row],[Input 1]],Table_PI[[#This Row],[Input 2]],Table_PI[[#This Row],[Input 3]],Table_PI[[#This Row],[Input 4]],'Customer Information'!$AR$12,5,ROW()),\"No Rebate\"),\"No Rebate\"),0)","v":0},{"$f":"IF(Table_PI[[#This Row],[Hide:\nFormula Name]]<>\"\",IFERROR(IF(MeasureCalc(Table_PI[[#This Row],[Hide:\nFormula Name]],Table_PI[[#This Row],[Quantity]],Table_PI[[#This Row],[List 1]],Table_PI[[#This Row],[List 2]],Table_PI[[#This Row],[List 3]],Table_PI[[#This Row],[Size]],Table_PI[[#This Row],[Input 1]],Table_PI[[#This Row],[Input 2]],Table_PI[[#This Row],[Input 3]],Table_PI[[#This Row],[Input 4]],'Customer Information'!$AR$12,1,ROW())>0,MeasureCalc(Table_PI[[#This Row],[Hide:\nFormula Name]],Table_PI[[#This Row],[Quantity]],Table_PI[[#This Row],[List 1]],Table_PI[[#This Row],[List 2]],Table_PI[[#This Row],[List 3]],Table_PI[[#This Row],[Size]],Table_PI[[#This Row],[Input 1]],Table_PI[[#This Row],[Input 2]],Table_PI[[#This Row],[Input 3]],Table_PI[[#This Row],[Input 4]],'Customer Information'!$AR$12,6,ROW()),\"No Rebate\"),\"No Rebate\"),0)","v":0},{"$f":"IF(Table_PI[[#This Row],[Hide:\nFormula Name]]<>\"\",IFERROR(IF(MeasureCalc(Table_PI[[#This Row],[Hide:\nFormula Name]],Table_PI[[#This Row],[Quantity]],Table_PI[[#This Row],[List 1]],Table_PI[[#This Row],[List 2]],Table_PI[[#This Row],[List 3]],Table_PI[[#This Row],[Size]],Table_PI[[#This Row],[Input 1]],Table_PI[[#This Row],[Input 2]],Table_PI[[#This Row],[Input 3]],Table_PI[[#This Row],[Input 4]],'Customer Information'!$AR$12,1,ROW())>0,MeasureCalc(Table_PI[[#This Row],[Hide:\nFormula Name]],Table_PI[[#This Row],[Quantity]],Table_PI[[#This Row],[List 1]],Table_PI[[#This Row],[List 2]],Table_PI[[#This Row],[List 3]],Table_PI[[#This Row],[Size]],Table_PI[[#This Row],[Input 1]],Table_PI[[#This Row],[Input 2]],Table_PI[[#This Row],[Input 3]],Table_PI[[#This Row],[Input 4]],'Customer Information'!$AR$12,7,ROW()),\"No Rebate\"),\"No Rebate\"),0)","v":0},{"$f":"IF(Table_PI[[#This Row],[Hide:\nFormula Name]]<>\"\",IFERROR(IF(MeasureCalc(Table_PI[[#This Row],[Hide:\nFormula Name]],Table_PI[[#This Row],[Quantity]],Table_PI[[#This Row],[List 1]],Table_PI[[#This Row],[List 2]],Table_PI[[#This Row],[List 3]],Table_PI[[#This Row],[Size]],Table_PI[[#This Row],[Input 1]],Table_PI[[#This Row],[Input 2]],Table_PI[[#This Row],[Input 3]],Table_PI[[#This Row],[Input 4]],'Customer Information'!$AR$12,1,ROW())>0,MeasureCalc(Table_PI[[#This Row],[Hide:\nFormula Name]],Table_PI[[#This Row],[Quantity]],Table_PI[[#This Row],[List 1]],Table_PI[[#This Row],[List 2]],Table_PI[[#This Row],[List 3]],Table_PI[[#This Row],[Size]],Table_PI[[#This Row],[Input 1]],Table_PI[[#This Row],[Input 2]],Table_PI[[#This Row],[Input 3]],Table_PI[[#This Row],[Input 4]],'Customer Information'!$AR$12,8,ROW()),\"No Rebate\"),\"No Rebate\"),0)","v":0},{"$f":"IF(Table_PI[[#This Row],[Hide:\nFormula Name]]<>\"\",IF(AND(Table_PI[[#This Row],[Hide:\nFormula Name]]<>\"\",OR(Table_PI[[#This Row],[Rebate]]>0,Table_PI[[#This Row],[Rebate]]=\"No Rebate\")),TRUE,\"MI: Line Item \" & $A95),\"\")","v":""}]
[{"$f":"IF(Table_PI[[#This Row],[Hide:\nFormula Name]]<>\"\",MAX($A$2:A95)+1,\"\")","v":""},null,null,null,null,null,null,null,null,null,null,null,null,null,null,{"$f":"IFERROR(VLOOKUP(Table_PI[[#This Row],[Measure]],'Equipment Lookups'!$C$3:$D$23,2,FALSE),\"\")","v":""},{"$f":"IF(Table_PI[[#This Row],[Hide:\nFormula Name]]<>\"\",IFERROR(IF(MeasureCalc(Table_PI[[#This Row],[Hide:\nFormula Name]],Table_PI[[#This Row],[Quantity]],Table_PI[[#This Row],[List 1]],Table_PI[[#This Row],[List 2]],Table_PI[[#This Row],[List 3]],Table_PI[[#This Row],[Size]],Table_PI[[#This Row],[Input 1]],Table_PI[[#This Row],[Input 2]],Table_PI[[#This Row],[Input 3]],Table_PI[[#This Row],[Input 4]],'Customer Information'!$AR$12,1,ROW())>0,MeasureCalc(Table_PI[[#This Row],[Hide:\nFormula Name]],Table_PI[[#This Row],[Quantity]],Table_PI[[#This Row],[List 1]],Table_PI[[#This Row],[List 2]],Table_PI[[#This Row],[List 3]],Table_PI[[#This Row],[Size]],Table_PI[[#This Row],[Input 1]],Table_PI[[#This Row],[Input 2]],Table_PI[[#This Row],[Input 3]],Table_PI[[#This Row],[Input 4]],'Customer Information'!$AR$12,1,ROW()),\"No Rebate\"),\"No Rebate\"),0)","v":0},{"$f":"IF(Table_PI[[#This Row],[Hide:\nFormula Name]]<>\"\",IFERROR(IF(MeasureCalc(Table_PI[[#This Row],[Hide:\nFormula Name]],Table_PI[[#This Row],[Quantity]],Table_PI[[#This Row],[List 1]],Table_PI[[#This Row],[List 2]],Table_PI[[#This Row],[List 3]],Table_PI[[#This Row],[Size]],Table_PI[[#This Row],[Input 1]],Table_PI[[#This Row],[Input 2]],Table_PI[[#This Row],[Input 3]],Table_PI[[#This Row],[Input 4]],'Customer Information'!$AR$12,1,ROW())>0,MeasureCalc(Table_PI[[#This Row],[Hide:\nFormula Name]],Table_PI[[#This Row],[Quantity]],Table_PI[[#This Row],[List 1]],Table_PI[[#This Row],[List 2]],Table_PI[[#This Row],[List 3]],Table_PI[[#This Row],[Size]],Table_PI[[#This Row],[Input 1]],Table_PI[[#This Row],[Input 2]],Table_PI[[#This Row],[Input 3]],Table_PI[[#This Row],[Input 4]],'Customer Information'!$AR$12,2,ROW()),\"No Rebate\"),\"No Rebate\"),0)","v":0},{"$f":"IF(Table_PI[[#This Row],[Hide:\nFormula Name]]<>\"\",IFERROR(IF(MeasureCalc(Table_PI[[#This Row],[Hide:\nFormula Name]],Table_PI[[#This Row],[Quantity]],Table_PI[[#This Row],[List 1]],Table_PI[[#This Row],[List 2]],Table_PI[[#This Row],[List 3]],Table_PI[[#This Row],[Size]],Table_PI[[#This Row],[Input 1]],Table_PI[[#This Row],[Input 2]],Table_PI[[#This Row],[Input 3]],Table_PI[[#This Row],[Input 4]],'Customer Information'!$AR$12,1,ROW())>0,MeasureCalc(Table_PI[[#This Row],[Hide:\nFormula Name]],Table_PI[[#This Row],[Quantity]],Table_PI[[#This Row],[List 1]],Table_PI[[#This Row],[List 2]],Table_PI[[#This Row],[List 3]],Table_PI[[#This Row],[Size]],Table_PI[[#This Row],[Input 1]],Table_PI[[#This Row],[Input 2]],Table_PI[[#This Row],[Input 3]],Table_PI[[#This Row],[Input 4]],'Customer Information'!$AR$12,3,ROW()),\"No Rebate\"),\"No Rebate\"),0)","v":0},{"$f":"IF(Table_PI[[#This Row],[Hide:\nFormula Name]]<>\"\",IFERROR(IF(MeasureCalc(Table_PI[[#This Row],[Hide:\nFormula Name]],Table_PI[[#This Row],[Quantity]],Table_PI[[#This Row],[List 1]],Table_PI[[#This Row],[List 2]],Table_PI[[#This Row],[List 3]],Table_PI[[#This Row],[Size]],Table_PI[[#This Row],[Input 1]],Table_PI[[#This Row],[Input 2]],Table_PI[[#This Row],[Input 3]],Table_PI[[#This Row],[Input 4]],'Customer Information'!$AR$12,1,ROW())>0,MeasureCalc(Table_PI[[#This Row],[Hide:\nFormula Name]],Table_PI[[#This Row],[Quantity]],Table_PI[[#This Row],[List 1]],Table_PI[[#This Row],[List 2]],Table_PI[[#This Row],[List 3]],Table_PI[[#This Row],[Size]],Table_PI[[#This Row],[Input 1]],Table_PI[[#This Row],[Input 2]],Table_PI[[#This Row],[Input 3]],Table_PI[[#This Row],[Input 4]],'Customer Information'!$AR$12,4,ROW()),\"No Rebate\"),\"No Rebate\"),0)","v":0},{"$f":"IF(Table_PI[[#This Row],[Hide:\nFormula Name]]<>\"\",IFERROR(IF(MeasureCalc(Table_PI[[#This Row],[Hide:\nFormula Name]],Table_PI[[#This Row],[Quantity]],Table_PI[[#This Row],[List 1]],Table_PI[[#This Row],[List 2]],Table_PI[[#This Row],[List 3]],Table_PI[[#This Row],[Size]],Table_PI[[#This Row],[Input 1]],Table_PI[[#This Row],[Input 2]],Table_PI[[#This Row],[Input 3]],Table_PI[[#This Row],[Input 4]],'Customer Information'!$AR$12,1,ROW())>0,MeasureCalc(Table_PI[[#This Row],[Hide:\nFormula Name]],Table_PI[[#This Row],[Quantity]],Table_PI[[#This Row],[List 1]],Table_PI[[#This Row],[List 2]],Table_PI[[#This Row],[List 3]],Table_PI[[#This Row],[Size]],Table_PI[[#This Row],[Input 1]],Table_PI[[#This Row],[Input 2]],Table_PI[[#This Row],[Input 3]],Table_PI[[#This Row],[Input 4]],'Customer Information'!$AR$12,5,ROW()),\"No Rebate\"),\"No Rebate\"),0)","v":0},{"$f":"IF(Table_PI[[#This Row],[Hide:\nFormula Name]]<>\"\",IFERROR(IF(MeasureCalc(Table_PI[[#This Row],[Hide:\nFormula Name]],Table_PI[[#This Row],[Quantity]],Table_PI[[#This Row],[List 1]],Table_PI[[#This Row],[List 2]],Table_PI[[#This Row],[List 3]],Table_PI[[#This Row],[Size]],Table_PI[[#This Row],[Input 1]],Table_PI[[#This Row],[Input 2]],Table_PI[[#This Row],[Input 3]],Table_PI[[#This Row],[Input 4]],'Customer Information'!$AR$12,1,ROW())>0,MeasureCalc(Table_PI[[#This Row],[Hide:\nFormula Name]],Table_PI[[#This Row],[Quantity]],Table_PI[[#This Row],[List 1]],Table_PI[[#This Row],[List 2]],Table_PI[[#This Row],[List 3]],Table_PI[[#This Row],[Size]],Table_PI[[#This Row],[Input 1]],Table_PI[[#This Row],[Input 2]],Table_PI[[#This Row],[Input 3]],Table_PI[[#This Row],[Input 4]],'Customer Information'!$AR$12,6,ROW()),\"No Rebate\"),\"No Rebate\"),0)","v":0},{"$f":"IF(Table_PI[[#This Row],[Hide:\nFormula Name]]<>\"\",IFERROR(IF(MeasureCalc(Table_PI[[#This Row],[Hide:\nFormula Name]],Table_PI[[#This Row],[Quantity]],Table_PI[[#This Row],[List 1]],Table_PI[[#This Row],[List 2]],Table_PI[[#This Row],[List 3]],Table_PI[[#This Row],[Size]],Table_PI[[#This Row],[Input 1]],Table_PI[[#This Row],[Input 2]],Table_PI[[#This Row],[Input 3]],Table_PI[[#This Row],[Input 4]],'Customer Information'!$AR$12,1,ROW())>0,MeasureCalc(Table_PI[[#This Row],[Hide:\nFormula Name]],Table_PI[[#This Row],[Quantity]],Table_PI[[#This Row],[List 1]],Table_PI[[#This Row],[List 2]],Table_PI[[#This Row],[List 3]],Table_PI[[#This Row],[Size]],Table_PI[[#This Row],[Input 1]],Table_PI[[#This Row],[Input 2]],Table_PI[[#This Row],[Input 3]],Table_PI[[#This Row],[Input 4]],'Customer Information'!$AR$12,7,ROW()),\"No Rebate\"),\"No Rebate\"),0)","v":0},{"$f":"IF(Table_PI[[#This Row],[Hide:\nFormula Name]]<>\"\",IFERROR(IF(MeasureCalc(Table_PI[[#This Row],[Hide:\nFormula Name]],Table_PI[[#This Row],[Quantity]],Table_PI[[#This Row],[List 1]],Table_PI[[#This Row],[List 2]],Table_PI[[#This Row],[List 3]],Table_PI[[#This Row],[Size]],Table_PI[[#This Row],[Input 1]],Table_PI[[#This Row],[Input 2]],Table_PI[[#This Row],[Input 3]],Table_PI[[#This Row],[Input 4]],'Customer Information'!$AR$12,1,ROW())>0,MeasureCalc(Table_PI[[#This Row],[Hide:\nFormula Name]],Table_PI[[#This Row],[Quantity]],Table_PI[[#This Row],[List 1]],Table_PI[[#This Row],[List 2]],Table_PI[[#This Row],[List 3]],Table_PI[[#This Row],[Size]],Table_PI[[#This Row],[Input 1]],Table_PI[[#This Row],[Input 2]],Table_PI[[#This Row],[Input 3]],Table_PI[[#This Row],[Input 4]],'Customer Information'!$AR$12,8,ROW()),\"No Rebate\"),\"No Rebate\"),0)","v":0},{"$f":"IF(Table_PI[[#This Row],[Hide:\nFormula Name]]<>\"\",IF(AND(Table_PI[[#This Row],[Hide:\nFormula Name]]<>\"\",OR(Table_PI[[#This Row],[Rebate]]>0,Table_PI[[#This Row],[Rebate]]=\"No Rebate\")),TRUE,\"MI: Line Item \" & $A96),\"\")","v":""}]
[{"$f":"IF(Table_PI[[#This Row],[Hide:\nFormula Name]]<>\"\",MAX($A$2:A96)+1,\"\")","v":""},null,null,null,null,null,null,null,null,null,null,null,null,null,null,{"$f":"IFERROR(VLOOKUP(Table_PI[[#This Row],[Measure]],'Equipment Lookups'!$C$3:$D$23,2,FALSE),\"\")","v":""},{"$f":"IF(Table_PI[[#This Row],[Hide:\nFormula Name]]<>\"\",IFERROR(IF(MeasureCalc(Table_PI[[#This Row],[Hide:\nFormula Name]],Table_PI[[#This Row],[Quantity]],Table_PI[[#This Row],[List 1]],Table_PI[[#This Row],[List 2]],Table_PI[[#This Row],[List 3]],Table_PI[[#This Row],[Size]],Table_PI[[#This Row],[Input 1]],Table_PI[[#This Row],[Input 2]],Table_PI[[#This Row],[Input 3]],Table_PI[[#This Row],[Input 4]],'Customer Information'!$AR$12,1,ROW())>0,MeasureCalc(Table_PI[[#This Row],[Hide:\nFormula Name]],Table_PI[[#This Row],[Quantity]],Table_PI[[#This Row],[List 1]],Table_PI[[#This Row],[List 2]],Table_PI[[#This Row],[List 3]],Table_PI[[#This Row],[Size]],Table_PI[[#This Row],[Input 1]],Table_PI[[#This Row],[Input 2]],Table_PI[[#This Row],[Input 3]],Table_PI[[#This Row],[Input 4]],'Customer Information'!$AR$12,1,ROW()),\"No Rebate\"),\"No Rebate\"),0)","v":0},{"$f":"IF(Table_PI[[#This Row],[Hide:\nFormula Name]]<>\"\",IFERROR(IF(MeasureCalc(Table_PI[[#This Row],[Hide:\nFormula Name]],Table_PI[[#This Row],[Quantity]],Table_PI[[#This Row],[List 1]],Table_PI[[#This Row],[List 2]],Table_PI[[#This Row],[List 3]],Table_PI[[#This Row],[Size]],Table_PI[[#This Row],[Input 1]],Table_PI[[#This Row],[Input 2]],Table_PI[[#This Row],[Input 3]],Table_PI[[#This Row],[Input 4]],'Customer Information'!$AR$12,1,ROW())>0,MeasureCalc(Table_PI[[#This Row],[Hide:\nFormula Name]],Table_PI[[#This Row],[Quantity]],Table_PI[[#This Row],[List 1]],Table_PI[[#This Row],[List 2]],Table_PI[[#This Row],[List 3]],Table_PI[[#This Row],[Size]],Table_PI[[#This Row],[Input 1]],Table_PI[[#This Row],[Input 2]],Table_PI[[#This Row],[Input 3]],Table_PI[[#This Row],[Input 4]],'Customer Information'!$AR$12,2,ROW()),\"No Rebate\"),\"No Rebate\"),0)","v":0},{"$f":"IF(Table_PI[[#This Row],[Hide:\nFormula Name]]<>\"\",IFERROR(IF(MeasureCalc(Table_PI[[#This Row],[Hide:\nFormula Name]],Table_PI[[#This Row],[Quantity]],Table_PI[[#This Row],[List 1]],Table_PI[[#This Row],[List 2]],Table_PI[[#This Row],[List 3]],Table_PI[[#This Row],[Size]],Table_PI[[#This Row],[Input 1]],Table_PI[[#This Row],[Input 2]],Table_PI[[#This Row],[Input 3]],Table_PI[[#This Row],[Input 4]],'Customer Information'!$AR$12,1,ROW())>0,MeasureCalc(Table_PI[[#This Row],[Hide:\nFormula Name]],Table_PI[[#This Row],[Quantity]],Table_PI[[#This Row],[List 1]],Table_PI[[#This Row],[List 2]],Table_PI[[#This Row],[List 3]],Table_PI[[#This Row],[Size]],Table_PI[[#This Row],[Input 1]],Table_PI[[#This Row],[Input 2]],Table_PI[[#This Row],[Input 3]],Table_PI[[#This Row],[Input 4]],'Customer Information'!$AR$12,3,ROW()),\"No Rebate\"),\"No Rebate\"),0)","v":0},{"$f":"IF(Table_PI[[#This Row],[Hide:\nFormula Name]]<>\"\",IFERROR(IF(MeasureCalc(Table_PI[[#This Row],[Hide:\nFormula Name]],Table_PI[[#This Row],[Quantity]],Table_PI[[#This Row],[List 1]],Table_PI[[#This Row],[List 2]],Table_PI[[#This Row],[List 3]],Table_PI[[#This Row],[Size]],Table_PI[[#This Row],[Input 1]],Table_PI[[#This Row],[Input 2]],Table_PI[[#This Row],[Input 3]],Table_PI[[#This Row],[Input 4]],'Customer Information'!$AR$12,1,ROW())>0,MeasureCalc(Table_PI[[#This Row],[Hide:\nFormula Name]],Table_PI[[#This Row],[Quantity]],Table_PI[[#This Row],[List 1]],Table_PI[[#This Row],[List 2]],Table_PI[[#This Row],[List 3]],Table_PI[[#This Row],[Size]],Table_PI[[#This Row],[Input 1]],Table_PI[[#This Row],[Input 2]],Table_PI[[#This Row],[Input 3]],Table_PI[[#This Row],[Input 4]],'Customer Information'!$AR$12,4,ROW()),\"No Rebate\"),\"No Rebate\"),0)","v":0},{"$f":"IF(Table_PI[[#This Row],[Hide:\nFormula Name]]<>\"\",IFERROR(IF(MeasureCalc(Table_PI[[#This Row],[Hide:\nFormula Name]],Table_PI[[#This Row],[Quantity]],Table_PI[[#This Row],[List 1]],Table_PI[[#This Row],[List 2]],Table_PI[[#This Row],[List 3]],Table_PI[[#This Row],[Size]],Table_PI[[#This Row],[Input 1]],Table_PI[[#This Row],[Input 2]],Table_PI[[#This Row],[Input 3]],Table_PI[[#This Row],[Input 4]],'Customer Information'!$AR$12,1,ROW())>0,MeasureCalc(Table_PI[[#This Row],[Hide:\nFormula Name]],Table_PI[[#This Row],[Quantity]],Table_PI[[#This Row],[List 1]],Table_PI[[#This Row],[List 2]],Table_PI[[#This Row],[List 3]],Table_PI[[#This Row],[Size]],Table_PI[[#This Row],[Input 1]],Table_PI[[#This Row],[Input 2]],Table_PI[[#This Row],[Input 3]],Table_PI[[#This Row],[Input 4]],'Customer Information'!$AR$12,5,ROW()),\"No Rebate\"),\"No Rebate\"),0)","v":0},{"$f":"IF(Table_PI[[#This Row],[Hide:\nFormula Name]]<>\"\",IFERROR(IF(MeasureCalc(Table_PI[[#This Row],[Hide:\nFormula Name]],Table_PI[[#This Row],[Quantity]],Table_PI[[#This Row],[List 1]],Table_PI[[#This Row],[List 2]],Table_PI[[#This Row],[List 3]],Table_PI[[#This Row],[Size]],Table_PI[[#This Row],[Input 1]],Table_PI[[#This Row],[Input 2]],Table_PI[[#This Row],[Input 3]],Table_PI[[#This Row],[Input 4]],'Customer Information'!$AR$12,1,ROW())>0,MeasureCalc(Table_PI[[#This Row],[Hide:\nFormula Name]],Table_PI[[#This Row],[Quantity]],Table_PI[[#This Row],[List 1]],Table_PI[[#This Row],[List 2]],Table_PI[[#This Row],[List 3]],Table_PI[[#This Row],[Size]],Table_PI[[#This Row],[Input 1]],Table_PI[[#This Row],[Input 2]],Table_PI[[#This Row],[Input 3]],Table_PI[[#This Row],[Input 4]],'Customer Information'!$AR$12,6,ROW()),\"No Rebate\"),\"No Rebate\"),0)","v":0},{"$f":"IF(Table_PI[[#This Row],[Hide:\nFormula Name]]<>\"\",IFERROR(IF(MeasureCalc(Table_PI[[#This Row],[Hide:\nFormula Name]],Table_PI[[#This Row],[Quantity]],Table_PI[[#This Row],[List 1]],Table_PI[[#This Row],[List 2]],Table_PI[[#This Row],[List 3]],Table_PI[[#This Row],[Size]],Table_PI[[#This Row],[Input 1]],Table_PI[[#This Row],[Input 2]],Table_PI[[#This Row],[Input 3]],Table_PI[[#This Row],[Input 4]],'Customer Information'!$AR$12,1,ROW())>0,MeasureCalc(Table_PI[[#This Row],[Hide:\nFormula Name]],Table_PI[[#This Row],[Quantity]],Table_PI[[#This Row],[List 1]],Table_PI[[#This Row],[List 2]],Table_PI[[#This Row],[List 3]],Table_PI[[#This Row],[Size]],Table_PI[[#This Row],[Input 1]],Table_PI[[#This Row],[Input 2]],Table_PI[[#This Row],[Input 3]],Table_PI[[#This Row],[Input 4]],'Customer Information'!$AR$12,7,ROW()),\"No Rebate\"),\"No Rebate\"),0)","v":0},{"$f":"IF(Table_PI[[#This Row],[Hide:\nFormula Name]]<>\"\",IFERROR(IF(MeasureCalc(Table_PI[[#This Row],[Hide:\nFormula Name]],Table_PI[[#This Row],[Quantity]],Table_PI[[#This Row],[List 1]],Table_PI[[#This Row],[List 2]],Table_PI[[#This Row],[List 3]],Table_PI[[#This Row],[Size]],Table_PI[[#This Row],[Input 1]],Table_PI[[#This Row],[Input 2]],Table_PI[[#This Row],[Input 3]],Table_PI[[#This Row],[Input 4]],'Customer Information'!$AR$12,1,ROW())>0,MeasureCalc(Table_PI[[#This Row],[Hide:\nFormula Name]],Table_PI[[#This Row],[Quantity]],Table_PI[[#This Row],[List 1]],Table_PI[[#This Row],[List 2]],Table_PI[[#This Row],[List 3]],Table_PI[[#This Row],[Size]],Table_PI[[#This Row],[Input 1]],Table_PI[[#This Row],[Input 2]],Table_PI[[#This Row],[Input 3]],Table_PI[[#This Row],[Input 4]],'Customer Information'!$AR$12,8,ROW()),\"No Rebate\"),\"No Rebate\"),0)","v":0},{"$f":"IF(Table_PI[[#This Row],[Hide:\nFormula Name]]<>\"\",IF(AND(Table_PI[[#This Row],[Hide:\nFormula Name]]<>\"\",OR(Table_PI[[#This Row],[Rebate]]>0,Table_PI[[#This Row],[Rebate]]=\"No Rebate\")),TRUE,\"MI: Line Item \" & $A97),\"\")","v":""}]
[{"$f":"IF(Table_PI[[#This Row],[Hide:\nFormula Name]]<>\"\",MAX($A$2:A97)+1,\"\")","v":""},null,null,null,null,null,null,null,null,null,null,null,null,null,null,{"$f":"IFERROR(VLOOKUP(Table_PI[[#This Row],[Measure]],'Equipment Lookups'!$C$3:$D$23,2,FALSE),\"\")","v":""},{"$f":"IF(Table_PI[[#This Row],[Hide:\nFormula Name]]<>\"\",IFERROR(IF(MeasureCalc(Table_PI[[#This Row],[Hide:\nFormula Name]],Table_PI[[#This Row],[Quantity]],Table_PI[[#This Row],[List 1]],Table_PI[[#This Row],[List 2]],Table_PI[[#This Row],[List 3]],Table_PI[[#This Row],[Size]],Table_PI[[#This Row],[Input 1]],Table_PI[[#This Row],[Input 2]],Table_PI[[#This Row],[Input 3]],Table_PI[[#This Row],[Input 4]],'Customer Information'!$AR$12,1,ROW())>0,MeasureCalc(Table_PI[[#This Row],[Hide:\nFormula Name]],Table_PI[[#This Row],[Quantity]],Table_PI[[#This Row],[List 1]],Table_PI[[#This Row],[List 2]],Table_PI[[#This Row],[List 3]],Table_PI[[#This Row],[Size]],Table_PI[[#This Row],[Input 1]],Table_PI[[#This Row],[Input 2]],Table_PI[[#This Row],[Input 3]],Table_PI[[#This Row],[Input 4]],'Customer Information'!$AR$12,1,ROW()),\"No Rebate\"),\"No Rebate\"),0)","v":0},{"$f":"IF(Table_PI[[#This Row],[Hide:\nFormula Name]]<>\"\",IFERROR(IF(MeasureCalc(Table_PI[[#This Row],[Hide:\nFormula Name]],Table_PI[[#This Row],[Quantity]],Table_PI[[#This Row],[List 1]],Table_PI[[#This Row],[List 2]],Table_PI[[#This Row],[List 3]],Table_PI[[#This Row],[Size]],Table_PI[[#This Row],[Input 1]],Table_PI[[#This Row],[Input 2]],Table_PI[[#This Row],[Input 3]],Table_PI[[#This Row],[Input 4]],'Customer Information'!$AR$12,1,ROW())>0,MeasureCalc(Table_PI[[#This Row],[Hide:\nFormula Name]],Table_PI[[#This Row],[Quantity]],Table_PI[[#This Row],[List 1]],Table_PI[[#This Row],[List 2]],Table_PI[[#This Row],[List 3]],Table_PI[[#This Row],[Size]],Table_PI[[#This Row],[Input 1]],Table_PI[[#This Row],[Input 2]],Table_PI[[#This Row],[Input 3]],Table_PI[[#This Row],[Input 4]],'Customer Information'!$AR$12,2,ROW()),\"No Rebate\"),\"No Rebate\"),0)","v":0},{"$f":"IF(Table_PI[[#This Row],[Hide:\nFormula Name]]<>\"\",IFERROR(IF(MeasureCalc(Table_PI[[#This Row],[Hide:\nFormula Name]],Table_PI[[#This Row],[Quantity]],Table_PI[[#This Row],[List 1]],Table_PI[[#This Row],[List 2]],Table_PI[[#This Row],[List 3]],Table_PI[[#This Row],[Size]],Table_PI[[#This Row],[Input 1]],Table_PI[[#This Row],[Input 2]],Table_PI[[#This Row],[Input 3]],Table_PI[[#This Row],[Input 4]],'Customer Information'!$AR$12,1,ROW())>0,MeasureCalc(Table_PI[[#This Row],[Hide:\nFormula Name]],Table_PI[[#This Row],[Quantity]],Table_PI[[#This Row],[List 1]],Table_PI[[#This Row],[List 2]],Table_PI[[#This Row],[List 3]],Table_PI[[#This Row],[Size]],Table_PI[[#This Row],[Input 1]],Table_PI[[#This Row],[Input 2]],Table_PI[[#This Row],[Input 3]],Table_PI[[#This Row],[Input 4]],'Customer Information'!$AR$12,3,ROW()),\"No Rebate\"),\"No Rebate\"),0)","v":0},{"$f":"IF(Table_PI[[#This Row],[Hide:\nFormula Name]]<>\"\",IFERROR(IF(MeasureCalc(Table_PI[[#This Row],[Hide:\nFormula Name]],Table_PI[[#This Row],[Quantity]],Table_PI[[#This Row],[List 1]],Table_PI[[#This Row],[List 2]],Table_PI[[#This Row],[List 3]],Table_PI[[#This Row],[Size]],Table_PI[[#This Row],[Input 1]],Table_PI[[#This Row],[Input 2]],Table_PI[[#This Row],[Input 3]],Table_PI[[#This Row],[Input 4]],'Customer Information'!$AR$12,1,ROW())>0,MeasureCalc(Table_PI[[#This Row],[Hide:\nFormula Name]],Table_PI[[#This Row],[Quantity]],Table_PI[[#This Row],[List 1]],Table_PI[[#This Row],[List 2]],Table_PI[[#This Row],[List 3]],Table_PI[[#This Row],[Size]],Table_PI[[#This Row],[Input 1]],Table_PI[[#This Row],[Input 2]],Table_PI[[#This Row],[Input 3]],Table_PI[[#This Row],[Input 4]],'Customer Information'!$AR$12,4,ROW()),\"No Rebate\"),\"No Rebate\"),0)","v":0},{"$f":"IF(Table_PI[[#This Row],[Hide:\nFormula Name]]<>\"\",IFERROR(IF(MeasureCalc(Table_PI[[#This Row],[Hide:\nFormula Name]],Table_PI[[#This Row],[Quantity]],Table_PI[[#This Row],[List 1]],Table_PI[[#This Row],[List 2]],Table_PI[[#This Row],[List 3]],Table_PI[[#This Row],[Size]],Table_PI[[#This Row],[Input 1]],Table_PI[[#This Row],[Input 2]],Table_PI[[#This Row],[Input 3]],Table_PI[[#This Row],[Input 4]],'Customer Information'!$AR$12,1,ROW())>0,MeasureCalc(Table_PI[[#This Row],[Hide:\nFormula Name]],Table_PI[[#This Row],[Quantity]],Table_PI[[#This Row],[List 1]],Table_PI[[#This Row],[List 2]],Table_PI[[#This Row],[List 3]],Table_PI[[#This Row],[Size]],Table_PI[[#This Row],[Input 1]],Table_PI[[#This Row],[Input 2]],Table_PI[[#This Row],[Input 3]],Table_PI[[#This Row],[Input 4]],'Customer Information'!$AR$12,5,ROW()),\"No Rebate\"),\"No Rebate\"),0)","v":0},{"$f":"IF(Table_PI[[#This Row],[Hide:\nFormula Name]]<>\"\",IFERROR(IF(MeasureCalc(Table_PI[[#This Row],[Hide:\nFormula Name]],Table_PI[[#This Row],[Quantity]],Table_PI[[#This Row],[List 1]],Table_PI[[#This Row],[List 2]],Table_PI[[#This Row],[List 3]],Table_PI[[#This Row],[Size]],Table_PI[[#This Row],[Input 1]],Table_PI[[#This Row],[Input 2]],Table_PI[[#This Row],[Input 3]],Table_PI[[#This Row],[Input 4]],'Customer Information'!$AR$12,1,ROW())>0,MeasureCalc(Table_PI[[#This Row],[Hide:\nFormula Name]],Table_PI[[#This Row],[Quantity]],Table_PI[[#This Row],[List 1]],Table_PI[[#This Row],[List 2]],Table_PI[[#This Row],[List 3]],Table_PI[[#This Row],[Size]],Table_PI[[#This Row],[Input 1]],Table_PI[[#This Row],[Input 2]],Table_PI[[#This Row],[Input 3]],Table_PI[[#This Row],[Input 4]],'Customer Information'!$AR$12,6,ROW()),\"No Rebate\"),\"No Rebate\"),0)","v":0},{"$f":"IF(Table_PI[[#This Row],[Hide:\nFormula Name]]<>\"\",IFERROR(IF(MeasureCalc(Table_PI[[#This Row],[Hide:\nFormula Name]],Table_PI[[#This Row],[Quantity]],Table_PI[[#This Row],[List 1]],Table_PI[[#This Row],[List 2]],Table_PI[[#This Row],[List 3]],Table_PI[[#This Row],[Size]],Table_PI[[#This Row],[Input 1]],Table_PI[[#This Row],[Input 2]],Table_PI[[#This Row],[Input 3]],Table_PI[[#This Row],[Input 4]],'Customer Information'!$AR$12,1,ROW())>0,MeasureCalc(Table_PI[[#This Row],[Hide:\nFormula Name]],Table_PI[[#This Row],[Quantity]],Table_PI[[#This Row],[List 1]],Table_PI[[#This Row],[List 2]],Table_PI[[#This Row],[List 3]],Table_PI[[#This Row],[Size]],Table_PI[[#This Row],[Input 1]],Table_PI[[#This Row],[Input 2]],Table_PI[[#This Row],[Input 3]],Table_PI[[#This Row],[Input 4]],'Customer Information'!$AR$12,7,ROW()),\"No Rebate\"),\"No Rebate\"),0)","v":0},{"$f":"IF(Table_PI[[#This Row],[Hide:\nFormula Name]]<>\"\",IFERROR(IF(MeasureCalc(Table_PI[[#This Row],[Hide:\nFormula Name]],Table_PI[[#This Row],[Quantity]],Table_PI[[#This Row],[List 1]],Table_PI[[#This Row],[List 2]],Table_PI[[#This Row],[List 3]],Table_PI[[#This Row],[Size]],Table_PI[[#This Row],[Input 1]],Table_PI[[#This Row],[Input 2]],Table_PI[[#This Row],[Input 3]],Table_PI[[#This Row],[Input 4]],'Customer Information'!$AR$12,1,ROW())>0,MeasureCalc(Table_PI[[#This Row],[Hide:\nFormula Name]],Table_PI[[#This Row],[Quantity]],Table_PI[[#This Row],[List 1]],Table_PI[[#This Row],[List 2]],Table_PI[[#This Row],[List 3]],Table_PI[[#This Row],[Size]],Table_PI[[#This Row],[Input 1]],Table_PI[[#This Row],[Input 2]],Table_PI[[#This Row],[Input 3]],Table_PI[[#This Row],[Input 4]],'Customer Information'!$AR$12,8,ROW()),\"No Rebate\"),\"No Rebate\"),0)","v":0},{"$f":"IF(Table_PI[[#This Row],[Hide:\nFormula Name]]<>\"\",IF(AND(Table_PI[[#This Row],[Hide:\nFormula Name]]<>\"\",OR(Table_PI[[#This Row],[Rebate]]>0,Table_PI[[#This Row],[Rebate]]=\"No Rebate\")),TRUE,\"MI: Line Item \" & $A98),\"\")","v":""}]
[{"$f":"IF(Table_PI[[#This Row],[Hide:\nFormula Name]]<>\"\",MAX($A$2:A98)+1,\"\")","v":""},null,null,null,null,null,null,null,null,null,null,null,null,null,null,{"$f":"IFERROR(VLOOKUP(Table_PI[[#This Row],[Measure]],'Equipment Lookups'!$C$3:$D$23,2,FALSE),\"\")","v":""},{"$f":"IF(Table_PI[[#This Row],[Hide:\nFormula Name]]<>\"\",IFERROR(IF(MeasureCalc(Table_PI[[#This Row],[Hide:\nFormula Name]],Table_PI[[#This Row],[Quantity]],Table_PI[[#This Row],[List 1]],Table_PI[[#This Row],[List 2]],Table_PI[[#This Row],[List 3]],Table_PI[[#This Row],[Size]],Table_PI[[#This Row],[Input 1]],Table_PI[[#This Row],[Input 2]],Table_PI[[#This Row],[Input 3]],Table_PI[[#This Row],[Input 4]],'Customer Information'!$AR$12,1,ROW())>0,MeasureCalc(Table_PI[[#This Row],[Hide:\nFormula Name]],Table_PI[[#This Row],[Quantity]],Table_PI[[#This Row],[List 1]],Table_PI[[#This Row],[List 2]],Table_PI[[#This Row],[List 3]],Table_PI[[#This Row],[Size]],Table_PI[[#This Row],[Input 1]],Table_PI[[#This Row],[Input 2]],Table_PI[[#This Row],[Input 3]],Table_PI[[#This Row],[Input 4]],'Customer Information'!$AR$12,1,ROW()),\"No Rebate\"),\"No Rebate\"),0)","v":0},{"$f":"IF(Table_PI[[#This Row],[Hide:\nFormula Name]]<>\"\",IFERROR(IF(MeasureCalc(Table_PI[[#This Row],[Hide:\nFormula Name]],Table_PI[[#This Row],[Quantity]],Table_PI[[#This Row],[List 1]],Table_PI[[#This Row],[List 2]],Table_PI[[#This Row],[List 3]],Table_PI[[#This Row],[Size]],Table_PI[[#This Row],[Input 1]],Table_PI[[#This Row],[Input 2]],Table_PI[[#This Row],[Input 3]],Table_PI[[#This Row],[Input 4]],'Customer Information'!$AR$12,1,ROW())>0,MeasureCalc(Table_PI[[#This Row],[Hide:\nFormula Name]],Table_PI[[#This Row],[Quantity]],Table_PI[[#This Row],[List 1]],Table_PI[[#This Row],[List 2]],Table_PI[[#This Row],[List 3]],Table_PI[[#This Row],[Size]],Table_PI[[#This Row],[Input 1]],Table_PI[[#This Row],[Input 2]],Table_PI[[#This Row],[Input 3]],Table_PI[[#This Row],[Input 4]],'Customer Information'!$AR$12,2,ROW()),\"No Rebate\"),\"No Rebate\"),0)","v":0},{"$f":"IF(Table_PI[[#This Row],[Hide:\nFormula Name]]<>\"\",IFERROR(IF(MeasureCalc(Table_PI[[#This Row],[Hide:\nFormula Name]],Table_PI[[#This Row],[Quantity]],Table_PI[[#This Row],[List 1]],Table_PI[[#This Row],[List 2]],Table_PI[[#This Row],[List 3]],Table_PI[[#This Row],[Size]],Table_PI[[#This Row],[Input 1]],Table_PI[[#This Row],[Input 2]],Table_PI[[#This Row],[Input 3]],Table_PI[[#This Row],[Input 4]],'Customer Information'!$AR$12,1,ROW())>0,MeasureCalc(Table_PI[[#This Row],[Hide:\nFormula Name]],Table_PI[[#This Row],[Quantity]],Table_PI[[#This Row],[List 1]],Table_PI[[#This Row],[List 2]],Table_PI[[#This Row],[List 3]],Table_PI[[#This Row],[Size]],Table_PI[[#This Row],[Input 1]],Table_PI[[#This Row],[Input 2]],Table_PI[[#This Row],[Input 3]],Table_PI[[#This Row],[Input 4]],'Customer Information'!$AR$12,3,ROW()),\"No Rebate\"),\"No Rebate\"),0)","v":0},{"$f":"IF(Table_PI[[#This Row],[Hide:\nFormula Name]]<>\"\",IFERROR(IF(MeasureCalc(Table_PI[[#This Row],[Hide:\nFormula Name]],Table_PI[[#This Row],[Quantity]],Table_PI[[#This Row],[List 1]],Table_PI[[#This Row],[List 2]],Table_PI[[#This Row],[List 3]],Table_PI[[#This Row],[Size]],Table_PI[[#This Row],[Input 1]],Table_PI[[#This Row],[Input 2]],Table_PI[[#This Row],[Input 3]],Table_PI[[#This Row],[Input 4]],'Customer Information'!$AR$12,1,ROW())>0,MeasureCalc(Table_PI[[#This Row],[Hide:\nFormula Name]],Table_PI[[#This Row],[Quantity]],Table_PI[[#This Row],[List 1]],Table_PI[[#This Row],[List 2]],Table_PI[[#This Row],[List 3]],Table_PI[[#This Row],[Size]],Table_PI[[#This Row],[Input 1]],Table_PI[[#This Row],[Input 2]],Table_PI[[#This Row],[Input 3]],Table_PI[[#This Row],[Input 4]],'Customer Information'!$AR$12,4,ROW()),\"No Rebate\"),\"No Rebate\"),0)","v":0},{"$f":"IF(Table_PI[[#This Row],[Hide:\nFormula Name]]<>\"\",IFERROR(IF(MeasureCalc(Table_PI[[#This Row],[Hide:\nFormula Name]],Table_PI[[#This Row],[Quantity]],Table_PI[[#This Row],[List 1]],Table_PI[[#This Row],[List 2]],Table_PI[[#This Row],[List 3]],Table_PI[[#This Row],[Size]],Table_PI[[#This Row],[Input 1]],Table_PI[[#This Row],[Input 2]],Table_PI[[#This Row],[Input 3]],Table_PI[[#This Row],[Input 4]],'Customer Information'!$AR$12,1,ROW())>0,MeasureCalc(Table_PI[[#This Row],[Hide:\nFormula Name]],Table_PI[[#This Row],[Quantity]],Table_PI[[#This Row],[List 1]],Table_PI[[#This Row],[List 2]],Table_PI[[#This Row],[List 3]],Table_PI[[#This Row],[Size]],Table_PI[[#This Row],[Input 1]],Table_PI[[#This Row],[Input 2]],Table_PI[[#This Row],[Input 3]],Table_PI[[#This Row],[Input 4]],'Customer Information'!$AR$12,5,ROW()),\"No Rebate\"),\"No Rebate\"),0)","v":0},{"$f":"IF(Table_PI[[#This Row],[Hide:\nFormula Name]]<>\"\",IFERROR(IF(MeasureCalc(Table_PI[[#This Row],[Hide:\nFormula Name]],Table_PI[[#This Row],[Quantity]],Table_PI[[#This Row],[List 1]],Table_PI[[#This Row],[List 2]],Table_PI[[#This Row],[List 3]],Table_PI[[#This Row],[Size]],Table_PI[[#This Row],[Input 1]],Table_PI[[#This Row],[Input 2]],Table_PI[[#This Row],[Input 3]],Table_PI[[#This Row],[Input 4]],'Customer Information'!$AR$12,1,ROW())>0,MeasureCalc(Table_PI[[#This Row],[Hide:\nFormula Name]],Table_PI[[#This Row],[Quantity]],Table_PI[[#This Row],[List 1]],Table_PI[[#This Row],[List 2]],Table_PI[[#This Row],[List 3]],Table_PI[[#This Row],[Size]],Table_PI[[#This Row],[Input 1]],Table_PI[[#This Row],[Input 2]],Table_PI[[#This Row],[Input 3]],Table_PI[[#This Row],[Input 4]],'Customer Information'!$AR$12,6,ROW()),\"No Rebate\"),\"No Rebate\"),0)","v":0},{"$f":"IF(Table_PI[[#This Row],[Hide:\nFormula Name]]<>\"\",IFERROR(IF(MeasureCalc(Table_PI[[#This Row],[Hide:\nFormula Name]],Table_PI[[#This Row],[Quantity]],Table_PI[[#This Row],[List 1]],Table_PI[[#This Row],[List 2]],Table_PI[[#This Row],[List 3]],Table_PI[[#This Row],[Size]],Table_PI[[#This Row],[Input 1]],Table_PI[[#This Row],[Input 2]],Table_PI[[#This Row],[Input 3]],Table_PI[[#This Row],[Input 4]],'Customer Information'!$AR$12,1,ROW())>0,MeasureCalc(Table_PI[[#This Row],[Hide:\nFormula Name]],Table_PI[[#This Row],[Quantity]],Table_PI[[#This Row],[List 1]],Table_PI[[#This Row],[List 2]],Table_PI[[#This Row],[List 3]],Table_PI[[#This Row],[Size]],Table_PI[[#This Row],[Input 1]],Table_PI[[#This Row],[Input 2]],Table_PI[[#This Row],[Input 3]],Table_PI[[#This Row],[Input 4]],'Customer Information'!$AR$12,7,ROW()),\"No Rebate\"),\"No Rebate\"),0)","v":0},{"$f":"IF(Table_PI[[#This Row],[Hide:\nFormula Name]]<>\"\",IFERROR(IF(MeasureCalc(Table_PI[[#This Row],[Hide:\nFormula Name]],Table_PI[[#This Row],[Quantity]],Table_PI[[#This Row],[List 1]],Table_PI[[#This Row],[List 2]],Table_PI[[#This Row],[List 3]],Table_PI[[#This Row],[Size]],Table_PI[[#This Row],[Input 1]],Table_PI[[#This Row],[Input 2]],Table_PI[[#This Row],[Input 3]],Table_PI[[#This Row],[Input 4]],'Customer Information'!$AR$12,1,ROW())>0,MeasureCalc(Table_PI[[#This Row],[Hide:\nFormula Name]],Table_PI[[#This Row],[Quantity]],Table_PI[[#This Row],[List 1]],Table_PI[[#This Row],[List 2]],Table_PI[[#This Row],[List 3]],Table_PI[[#This Row],[Size]],Table_PI[[#This Row],[Input 1]],Table_PI[[#This Row],[Input 2]],Table_PI[[#This Row],[Input 3]],Table_PI[[#This Row],[Input 4]],'Customer Information'!$AR$12,8,ROW()),\"No Rebate\"),\"No Rebate\"),0)","v":0},{"$f":"IF(Table_PI[[#This Row],[Hide:\nFormula Name]]<>\"\",IF(AND(Table_PI[[#This Row],[Hide:\nFormula Name]]<>\"\",OR(Table_PI[[#This Row],[Rebate]]>0,Table_PI[[#This Row],[Rebate]]=\"No Rebate\")),TRUE,\"MI: Line Item \" & $A99),\"\")","v":""}]
[{"$f":"IF(Table_PI[[#This Row],[Hide:\nFormula Name]]<>\"\",MAX($A$2:A99)+1,\"\")","v":""},null,null,null,null,null,null,null,null,null,null,null,null,null,null,{"$f":"IFERROR(VLOOKUP(Table_PI[[#This Row],[Measure]],'Equipment Lookups'!$C$3:$D$23,2,FALSE),\"\")","v":""},{"$f":"IF(Table_PI[[#This Row],[Hide:\nFormula Name]]<>\"\",IFERROR(IF(MeasureCalc(Table_PI[[#This Row],[Hide:\nFormula Name]],Table_PI[[#This Row],[Quantity]],Table_PI[[#This Row],[List 1]],Table_PI[[#This Row],[List 2]],Table_PI[[#This Row],[List 3]],Table_PI[[#This Row],[Size]],Table_PI[[#This Row],[Input 1]],Table_PI[[#This Row],[Input 2]],Table_PI[[#This Row],[Input 3]],Table_PI[[#This Row],[Input 4]],'Customer Information'!$AR$12,1,ROW())>0,MeasureCalc(Table_PI[[#This Row],[Hide:\nFormula Name]],Table_PI[[#This Row],[Quantity]],Table_PI[[#This Row],[List 1]],Table_PI[[#This Row],[List 2]],Table_PI[[#This Row],[List 3]],Table_PI[[#This Row],[Size]],Table_PI[[#This Row],[Input 1]],Table_PI[[#This Row],[Input 2]],Table_PI[[#This Row],[Input 3]],Table_PI[[#This Row],[Input 4]],'Customer Information'!$AR$12,1,ROW()),\"No Rebate\"),\"No Rebate\"),0)","v":0},{"$f":"IF(Table_PI[[#This Row],[Hide:\nFormula Name]]<>\"\",IFERROR(IF(MeasureCalc(Table_PI[[#This Row],[Hide:\nFormula Name]],Table_PI[[#This Row],[Quantity]],Table_PI[[#This Row],[List 1]],Table_PI[[#This Row],[List 2]],Table_PI[[#This Row],[List 3]],Table_PI[[#This Row],[Size]],Table_PI[[#This Row],[Input 1]],Table_PI[[#This Row],[Input 2]],Table_PI[[#This Row],[Input 3]],Table_PI[[#This Row],[Input 4]],'Customer Information'!$AR$12,1,ROW())>0,MeasureCalc(Table_PI[[#This Row],[Hide:\nFormula Name]],Table_PI[[#This Row],[Quantity]],Table_PI[[#This Row],[List 1]],Table_PI[[#This Row],[List 2]],Table_PI[[#This Row],[List 3]],Table_PI[[#This Row],[Size]],Table_PI[[#This Row],[Input 1]],Table_PI[[#This Row],[Input 2]],Table_PI[[#This Row],[Input 3]],Table_PI[[#This Row],[Input 4]],'Customer Information'!$AR$12,2,ROW()),\"No Rebate\"),\"No Rebate\"),0)","v":0},{"$f":"IF(Table_PI[[#This Row],[Hide:\nFormula Name]]<>\"\",IFERROR(IF(MeasureCalc(Table_PI[[#This Row],[Hide:\nFormula Name]],Table_PI[[#This Row],[Quantity]],Table_PI[[#This Row],[List 1]],Table_PI[[#This Row],[List 2]],Table_PI[[#This Row],[List 3]],Table_PI[[#This Row],[Size]],Table_PI[[#This Row],[Input 1]],Table_PI[[#This Row],[Input 2]],Table_PI[[#This Row],[Input 3]],Table_PI[[#This Row],[Input 4]],'Customer Information'!$AR$12,1,ROW())>0,MeasureCalc(Table_PI[[#This Row],[Hide:\nFormula Name]],Table_PI[[#This Row],[Quantity]],Table_PI[[#This Row],[List 1]],Table_PI[[#This Row],[List 2]],Table_PI[[#This Row],[List 3]],Table_PI[[#This Row],[Size]],Table_PI[[#This Row],[Input 1]],Table_PI[[#This Row],[Input 2]],Table_PI[[#This Row],[Input 3]],Table_PI[[#This Row],[Input 4]],'Customer Information'!$AR$12,3,ROW()),\"No Rebate\"),\"No Rebate\"),0)","v":0},{"$f":"IF(Table_PI[[#This Row],[Hide:\nFormula Name]]<>\"\",IFERROR(IF(MeasureCalc(Table_PI[[#This Row],[Hide:\nFormula Name]],Table_PI[[#This Row],[Quantity]],Table_PI[[#This Row],[List 1]],Table_PI[[#This Row],[List 2]],Table_PI[[#This Row],[List 3]],Table_PI[[#This Row],[Size]],Table_PI[[#This Row],[Input 1]],Table_PI[[#This Row],[Input 2]],Table_PI[[#This Row],[Input 3]],Table_PI[[#This Row],[Input 4]],'Customer Information'!$AR$12,1,ROW())>0,MeasureCalc(Table_PI[[#This Row],[Hide:\nFormula Name]],Table_PI[[#This Row],[Quantity]],Table_PI[[#This Row],[List 1]],Table_PI[[#This Row],[List 2]],Table_PI[[#This Row],[List 3]],Table_PI[[#This Row],[Size]],Table_PI[[#This Row],[Input 1]],Table_PI[[#This Row],[Input 2]],Table_PI[[#This Row],[Input 3]],Table_PI[[#This Row],[Input 4]],'Customer Information'!$AR$12,4,ROW()),\"No Rebate\"),\"No Rebate\"),0)","v":0},{"$f":"IF(Table_PI[[#This Row],[Hide:\nFormula Name]]<>\"\",IFERROR(IF(MeasureCalc(Table_PI[[#This Row],[Hide:\nFormula Name]],Table_PI[[#This Row],[Quantity]],Table_PI[[#This Row],[List 1]],Table_PI[[#This Row],[List 2]],Table_PI[[#This Row],[List 3]],Table_PI[[#This Row],[Size]],Table_PI[[#This Row],[Input 1]],Table_PI[[#This Row],[Input 2]],Table_PI[[#This Row],[Input 3]],Table_PI[[#This Row],[Input 4]],'Customer Information'!$AR$12,1,ROW())>0,MeasureCalc(Table_PI[[#This Row],[Hide:\nFormula Name]],Table_PI[[#This Row],[Quantity]],Table_PI[[#This Row],[List 1]],Table_PI[[#This Row],[List 2]],Table_PI[[#This Row],[List 3]],Table_PI[[#This Row],[Size]],Table_PI[[#This Row],[Input 1]],Table_PI[[#This Row],[Input 2]],Table_PI[[#This Row],[Input 3]],Table_PI[[#This Row],[Input 4]],'Customer Information'!$AR$12,5,ROW()),\"No Rebate\"),\"No Rebate\"),0)","v":0},{"$f":"IF(Table_PI[[#This Row],[Hide:\nFormula Name]]<>\"\",IFERROR(IF(MeasureCalc(Table_PI[[#This Row],[Hide:\nFormula Name]],Table_PI[[#This Row],[Quantity]],Table_PI[[#This Row],[List 1]],Table_PI[[#This Row],[List 2]],Table_PI[[#This Row],[List 3]],Table_PI[[#This Row],[Size]],Table_PI[[#This Row],[Input 1]],Table_PI[[#This Row],[Input 2]],Table_PI[[#This Row],[Input 3]],Table_PI[[#This Row],[Input 4]],'Customer Information'!$AR$12,1,ROW())>0,MeasureCalc(Table_PI[[#This Row],[Hide:\nFormula Name]],Table_PI[[#This Row],[Quantity]],Table_PI[[#This Row],[List 1]],Table_PI[[#This Row],[List 2]],Table_PI[[#This Row],[List 3]],Table_PI[[#This Row],[Size]],Table_PI[[#This Row],[Input 1]],Table_PI[[#This Row],[Input 2]],Table_PI[[#This Row],[Input 3]],Table_PI[[#This Row],[Input 4]],'Customer Information'!$AR$12,6,ROW()),\"No Rebate\"),\"No Rebate\"),0)","v":0},{"$f":"IF(Table_PI[[#This Row],[Hide:\nFormula Name]]<>\"\",IFERROR(IF(MeasureCalc(Table_PI[[#This Row],[Hide:\nFormula Name]],Table_PI[[#This Row],[Quantity]],Table_PI[[#This Row],[List 1]],Table_PI[[#This Row],[List 2]],Table_PI[[#This Row],[List 3]],Table_PI[[#This Row],[Size]],Table_PI[[#This Row],[Input 1]],Table_PI[[#This Row],[Input 2]],Table_PI[[#This Row],[Input 3]],Table_PI[[#This Row],[Input 4]],'Customer Information'!$AR$12,1,ROW())>0,MeasureCalc(Table_PI[[#This Row],[Hide:\nFormula Name]],Table_PI[[#This Row],[Quantity]],Table_PI[[#This Row],[List 1]],Table_PI[[#This Row],[List 2]],Table_PI[[#This Row],[List 3]],Table_PI[[#This Row],[Size]],Table_PI[[#This Row],[Input 1]],Table_PI[[#This Row],[Input 2]],Table_PI[[#This Row],[Input 3]],Table_PI[[#This Row],[Input 4]],'Customer Information'!$AR$12,7,ROW()),\"No Rebate\"),\"No Rebate\"),0)","v":0},{"$f":"IF(Table_PI[[#This Row],[Hide:\nFormula Name]]<>\"\",IFERROR(IF(MeasureCalc(Table_PI[[#This Row],[Hide:\nFormula Name]],Table_PI[[#This Row],[Quantity]],Table_PI[[#This Row],[List 1]],Table_PI[[#This Row],[List 2]],Table_PI[[#This Row],[List 3]],Table_PI[[#This Row],[Size]],Table_PI[[#This Row],[Input 1]],Table_PI[[#This Row],[Input 2]],Table_PI[[#This Row],[Input 3]],Table_PI[[#This Row],[Input 4]],'Customer Information'!$AR$12,1,ROW())>0,MeasureCalc(Table_PI[[#This Row],[Hide:\nFormula Name]],Table_PI[[#This Row],[Quantity]],Table_PI[[#This Row],[List 1]],Table_PI[[#This Row],[List 2]],Table_PI[[#This Row],[List 3]],Table_PI[[#This Row],[Size]],Table_PI[[#This Row],[Input 1]],Table_PI[[#This Row],[Input 2]],Table_PI[[#This Row],[Input 3]],Table_PI[[#This Row],[Input 4]],'Customer Information'!$AR$12,8,ROW()),\"No Rebate\"),\"No Rebate\"),0)","v":0},{"$f":"IF(Table_PI[[#This Row],[Hide:\nFormula Name]]<>\"\",IF(AND(Table_PI[[#This Row],[Hide:\nFormula Name]]<>\"\",OR(Table_PI[[#This Row],[Rebate]]>0,Table_PI[[#This Row],[Rebate]]=\"No Rebate\")),TRUE,\"MI: Line Item \" & $A100),\"\")","v":""}]
[{"$f":"IF(Table_PI[[#This Row],[Hide:\nFormula Name]]<>\"\",MAX($A$2:A100)+1,\"\")","v":""},null,null,null,null,null,null,null,null,null,null,null,null,null,null,{"$f":"IFERROR(VLOOKUP(Table_PI[[#This Row],[Measure]],'Equipment Lookups'!$C$3:$D$23,2,FALSE),\"\")","v":""},{"$f":"IF(Table_PI[[#This Row],[Hide:\nFormula Name]]<>\"\",IFERROR(IF(MeasureCalc(Table_PI[[#This Row],[Hide:\nFormula Name]],Table_PI[[#This Row],[Quantity]],Table_PI[[#This Row],[List 1]],Table_PI[[#This Row],[List 2]],Table_PI[[#This Row],[List 3]],Table_PI[[#This Row],[Size]],Table_PI[[#This Row],[Input 1]],Table_PI[[#This Row],[Input 2]],Table_PI[[#This Row],[Input 3]],Table_PI[[#This Row],[Input 4]],'Customer Information'!$AR$12,1,ROW())>0,MeasureCalc(Table_PI[[#This Row],[Hide:\nFormula Name]],Table_PI[[#This Row],[Quantity]],Table_PI[[#This Row],[List 1]],Table_PI[[#This Row],[List 2]],Table_PI[[#This Row],[List 3]],Table_PI[[#This Row],[Size]],Table_PI[[#This Row],[Input 1]],Table_PI[[#This Row],[Input 2]],Table_PI[[#This Row],[Input 3]],Table_PI[[#This Row],[Input 4]],'Customer Information'!$AR$12,1,ROW()),\"No Rebate\"),\"No Rebate\"),0)","v":0},{"$f":"IF(Table_PI[[#This Row],[Hide:\nFormula Name]]<>\"\",IFERROR(IF(MeasureCalc(Table_PI[[#This Row],[Hide:\nFormula Name]],Table_PI[[#This Row],[Quantity]],Table_PI[[#This Row],[List 1]],Table_PI[[#This Row],[List 2]],Table_PI[[#This Row],[List 3]],Table_PI[[#This Row],[Size]],Table_PI[[#This Row],[Input 1]],Table_PI[[#This Row],[Input 2]],Table_PI[[#This Row],[Input 3]],Table_PI[[#This Row],[Input 4]],'Customer Information'!$AR$12,1,ROW())>0,MeasureCalc(Table_PI[[#This Row],[Hide:\nFormula Name]],Table_PI[[#This Row],[Quantity]],Table_PI[[#This Row],[List 1]],Table_PI[[#This Row],[List 2]],Table_PI[[#This Row],[List 3]],Table_PI[[#This Row],[Size]],Table_PI[[#This Row],[Input 1]],Table_PI[[#This Row],[Input 2]],Table_PI[[#This Row],[Input 3]],Table_PI[[#This Row],[Input 4]],'Customer Information'!$AR$12,2,ROW()),\"No Rebate\"),\"No Rebate\"),0)","v":0},{"$f":"IF(Table_PI[[#This Row],[Hide:\nFormula Name]]<>\"\",IFERROR(IF(MeasureCalc(Table_PI[[#This Row],[Hide:\nFormula Name]],Table_PI[[#This Row],[Quantity]],Table_PI[[#This Row],[List 1]],Table_PI[[#This Row],[List 2]],Table_PI[[#This Row],[List 3]],Table_PI[[#This Row],[Size]],Table_PI[[#This Row],[Input 1]],Table_PI[[#This Row],[Input 2]],Table_PI[[#This Row],[Input 3]],Table_PI[[#This Row],[Input 4]],'Customer Information'!$AR$12,1,ROW())>0,MeasureCalc(Table_PI[[#This Row],[Hide:\nFormula Name]],Table_PI[[#This Row],[Quantity]],Table_PI[[#This Row],[List 1]],Table_PI[[#This Row],[List 2]],Table_PI[[#This Row],[List 3]],Table_PI[[#This Row],[Size]],Table_PI[[#This Row],[Input 1]],Table_PI[[#This Row],[Input 2]],Table_PI[[#This Row],[Input 3]],Table_PI[[#This Row],[Input 4]],'Customer Information'!$AR$12,3,ROW()),\"No Rebate\"),\"No Rebate\"),0)","v":0},{"$f":"IF(Table_PI[[#This Row],[Hide:\nFormula Name]]<>\"\",IFERROR(IF(MeasureCalc(Table_PI[[#This Row],[Hide:\nFormula Name]],Table_PI[[#This Row],[Quantity]],Table_PI[[#This Row],[List 1]],Table_PI[[#This Row],[List 2]],Table_PI[[#This Row],[List 3]],Table_PI[[#This Row],[Size]],Table_PI[[#This Row],[Input 1]],Table_PI[[#This Row],[Input 2]],Table_PI[[#This Row],[Input 3]],Table_PI[[#This Row],[Input 4]],'Customer Information'!$AR$12,1,ROW())>0,MeasureCalc(Table_PI[[#This Row],[Hide:\nFormula Name]],Table_PI[[#This Row],[Quantity]],Table_PI[[#This Row],[List 1]],Table_PI[[#This Row],[List 2]],Table_PI[[#This Row],[List 3]],Table_PI[[#This Row],[Size]],Table_PI[[#This Row],[Input 1]],Table_PI[[#This Row],[Input 2]],Table_PI[[#This Row],[Input 3]],Table_PI[[#This Row],[Input 4]],'Customer Information'!$AR$12,4,ROW()),\"No Rebate\"),\"No Rebate\"),0)","v":0},{"$f":"IF(Table_PI[[#This Row],[Hide:\nFormula Name]]<>\"\",IFERROR(IF(MeasureCalc(Table_PI[[#This Row],[Hide:\nFormula Name]],Table_PI[[#This Row],[Quantity]],Table_PI[[#This Row],[List 1]],Table_PI[[#This Row],[List 2]],Table_PI[[#This Row],[List 3]],Table_PI[[#This Row],[Size]],Table_PI[[#This Row],[Input 1]],Table_PI[[#This Row],[Input 2]],Table_PI[[#This Row],[Input 3]],Table_PI[[#This Row],[Input 4]],'Customer Information'!$AR$12,1,ROW())>0,MeasureCalc(Table_PI[[#This Row],[Hide:\nFormula Name]],Table_PI[[#This Row],[Quantity]],Table_PI[[#This Row],[List 1]],Table_PI[[#This Row],[List 2]],Table_PI[[#This Row],[List 3]],Table_PI[[#This Row],[Size]],Table_PI[[#This Row],[Input 1]],Table_PI[[#This Row],[Input 2]],Table_PI[[#This Row],[Input 3]],Table_PI[[#This Row],[Input 4]],'Customer Information'!$AR$12,5,ROW()),\"No Rebate\"),\"No Rebate\"),0)","v":0},{"$f":"IF(Table_PI[[#This Row],[Hide:\nFormula Name]]<>\"\",IFERROR(IF(MeasureCalc(Table_PI[[#This Row],[Hide:\nFormula Name]],Table_PI[[#This Row],[Quantity]],Table_PI[[#This Row],[List 1]],Table_PI[[#This Row],[List 2]],Table_PI[[#This Row],[List 3]],Table_PI[[#This Row],[Size]],Table_PI[[#This Row],[Input 1]],Table_PI[[#This Row],[Input 2]],Table_PI[[#This Row],[Input 3]],Table_PI[[#This Row],[Input 4]],'Customer Information'!$AR$12,1,ROW())>0,MeasureCalc(Table_PI[[#This Row],[Hide:\nFormula Name]],Table_PI[[#This Row],[Quantity]],Table_PI[[#This Row],[List 1]],Table_PI[[#This Row],[List 2]],Table_PI[[#This Row],[List 3]],Table_PI[[#This Row],[Size]],Table_PI[[#This Row],[Input 1]],Table_PI[[#This Row],[Input 2]],Table_PI[[#This Row],[Input 3]],Table_PI[[#This Row],[Input 4]],'Customer Information'!$AR$12,6,ROW()),\"No Rebate\"),\"No Rebate\"),0)","v":0},{"$f":"IF(Table_PI[[#This Row],[Hide:\nFormula Name]]<>\"\",IFERROR(IF(MeasureCalc(Table_PI[[#This Row],[Hide:\nFormula Name]],Table_PI[[#This Row],[Quantity]],Table_PI[[#This Row],[List 1]],Table_PI[[#This Row],[List 2]],Table_PI[[#This Row],[List 3]],Table_PI[[#This Row],[Size]],Table_PI[[#This Row],[Input 1]],Table_PI[[#This Row],[Input 2]],Table_PI[[#This Row],[Input 3]],Table_PI[[#This Row],[Input 4]],'Customer Information'!$AR$12,1,ROW())>0,MeasureCalc(Table_PI[[#This Row],[Hide:\nFormula Name]],Table_PI[[#This Row],[Quantity]],Table_PI[[#This Row],[List 1]],Table_PI[[#This Row],[List 2]],Table_PI[[#This Row],[List 3]],Table_PI[[#This Row],[Size]],Table_PI[[#This Row],[Input 1]],Table_PI[[#This Row],[Input 2]],Table_PI[[#This Row],[Input 3]],Table_PI[[#This Row],[Input 4]],'Customer Information'!$AR$12,7,ROW()),\"No Rebate\"),\"No Rebate\"),0)","v":0},{"$f":"IF(Table_PI[[#This Row],[Hide:\nFormula Name]]<>\"\",IFERROR(IF(MeasureCalc(Table_PI[[#This Row],[Hide:\nFormula Name]],Table_PI[[#This Row],[Quantity]],Table_PI[[#This Row],[List 1]],Table_PI[[#This Row],[List 2]],Table_PI[[#This Row],[List 3]],Table_PI[[#This Row],[Size]],Table_PI[[#This Row],[Input 1]],Table_PI[[#This Row],[Input 2]],Table_PI[[#This Row],[Input 3]],Table_PI[[#This Row],[Input 4]],'Customer Information'!$AR$12,1,ROW())>0,MeasureCalc(Table_PI[[#This Row],[Hide:\nFormula Name]],Table_PI[[#This Row],[Quantity]],Table_PI[[#This Row],[List 1]],Table_PI[[#This Row],[List 2]],Table_PI[[#This Row],[List 3]],Table_PI[[#This Row],[Size]],Table_PI[[#This Row],[Input 1]],Table_PI[[#This Row],[Input 2]],Table_PI[[#This Row],[Input 3]],Table_PI[[#This Row],[Input 4]],'Customer Information'!$AR$12,8,ROW()),\"No Rebate\"),\"No Rebate\"),0)","v":0},{"$f":"IF(Table_PI[[#This Row],[Hide:\nFormula Name]]<>\"\",IF(AND(Table_PI[[#This Row],[Hide:\nFormula Name]]<>\"\",OR(Table_PI[[#This Row],[Rebate]]>0,Table_PI[[#This Row],[Rebate]]=\"No Rebate\")),TRUE,\"MI: Line Item \" & $A101),\"\")","v":""}]
[{"$f":"IF(Table_PI[[#This Row],[Hide:\nFormula Name]]<>\"\",MAX($A$2:A101)+1,\"\")","v":""},null,null,null,null,null,null,null,null,null,null,null,null,null,null,{"$f":"IFERROR(VLOOKUP(Table_PI[[#This Row],[Measure]],'Equipment Lookups'!$C$3:$D$23,2,FALSE),\"\")","v":""},{"$f":"IF(Table_PI[[#This Row],[Hide:\nFormula Name]]<>\"\",IFERROR(IF(MeasureCalc(Table_PI[[#This Row],[Hide:\nFormula Name]],Table_PI[[#This Row],[Quantity]],Table_PI[[#This Row],[List 1]],Table_PI[[#This Row],[List 2]],Table_PI[[#This Row],[List 3]],Table_PI[[#This Row],[Size]],Table_PI[[#This Row],[Input 1]],Table_PI[[#This Row],[Input 2]],Table_PI[[#This Row],[Input 3]],Table_PI[[#This Row],[Input 4]],'Customer Information'!$AR$12,1,ROW())>0,MeasureCalc(Table_PI[[#This Row],[Hide:\nFormula Name]],Table_PI[[#This Row],[Quantity]],Table_PI[[#This Row],[List 1]],Table_PI[[#This Row],[List 2]],Table_PI[[#This Row],[List 3]],Table_PI[[#This Row],[Size]],Table_PI[[#This Row],[Input 1]],Table_PI[[#This Row],[Input 2]],Table_PI[[#This Row],[Input 3]],Table_PI[[#This Row],[Input 4]],'Customer Information'!$AR$12,1,ROW()),\"No Rebate\"),\"No Rebate\"),0)","v":0},{"$f":"IF(Table_PI[[#This Row],[Hide:\nFormula Name]]<>\"\",IFERROR(IF(MeasureCalc(Table_PI[[#This Row],[Hide:\nFormula Name]],Table_PI[[#This Row],[Quantity]],Table_PI[[#This Row],[List 1]],Table_PI[[#This Row],[List 2]],Table_PI[[#This Row],[List 3]],Table_PI[[#This Row],[Size]],Table_PI[[#This Row],[Input 1]],Table_PI[[#This Row],[Input 2]],Table_PI[[#This Row],[Input 3]],Table_PI[[#This Row],[Input 4]],'Customer Information'!$AR$12,1,ROW())>0,MeasureCalc(Table_PI[[#This Row],[Hide:\nFormula Name]],Table_PI[[#This Row],[Quantity]],Table_PI[[#This Row],[List 1]],Table_PI[[#This Row],[List 2]],Table_PI[[#This Row],[List 3]],Table_PI[[#This Row],[Size]],Table_PI[[#This Row],[Input 1]],Table_PI[[#This Row],[Input 2]],Table_PI[[#This Row],[Input 3]],Table_PI[[#This Row],[Input 4]],'Customer Information'!$AR$12,2,ROW()),\"No Rebate\"),\"No Rebate\"),0)","v":0},{"$f":"IF(Table_PI[[#This Row],[Hide:\nFormula Name]]<>\"\",IFERROR(IF(MeasureCalc(Table_PI[[#This Row],[Hide:\nFormula Name]],Table_PI[[#This Row],[Quantity]],Table_PI[[#This Row],[List 1]],Table_PI[[#This Row],[List 2]],Table_PI[[#This Row],[List 3]],Table_PI[[#This Row],[Size]],Table_PI[[#This Row],[Input 1]],Table_PI[[#This Row],[Input 2]],Table_PI[[#This Row],[Input 3]],Table_PI[[#This Row],[Input 4]],'Customer Information'!$AR$12,1,ROW())>0,MeasureCalc(Table_PI[[#This Row],[Hide:\nFormula Name]],Table_PI[[#This Row],[Quantity]],Table_PI[[#This Row],[List 1]],Table_PI[[#This Row],[List 2]],Table_PI[[#This Row],[List 3]],Table_PI[[#This Row],[Size]],Table_PI[[#This Row],[Input 1]],Table_PI[[#This Row],[Input 2]],Table_PI[[#This Row],[Input 3]],Table_PI[[#This Row],[Input 4]],'Customer Information'!$AR$12,3,ROW()),\"No Rebate\"),\"No Rebate\"),0)","v":0},{"$f":"IF(Table_PI[[#This Row],[Hide:\nFormula Name]]<>\"\",IFERROR(IF(MeasureCalc(Table_PI[[#This Row],[Hide:\nFormula Name]],Table_PI[[#This Row],[Quantity]],Table_PI[[#This Row],[List 1]],Table_PI[[#This Row],[List 2]],Table_PI[[#This Row],[List 3]],Table_PI[[#This Row],[Size]],Table_PI[[#This Row],[Input 1]],Table_PI[[#This Row],[Input 2]],Table_PI[[#This Row],[Input 3]],Table_PI[[#This Row],[Input 4]],'Customer Information'!$AR$12,1,ROW())>0,MeasureCalc(Table_PI[[#This Row],[Hide:\nFormula Name]],Table_PI[[#This Row],[Quantity]],Table_PI[[#This Row],[List 1]],Table_PI[[#This Row],[List 2]],Table_PI[[#This Row],[List 3]],Table_PI[[#This Row],[Size]],Table_PI[[#This Row],[Input 1]],Table_PI[[#This Row],[Input 2]],Table_PI[[#This Row],[Input 3]],Table_PI[[#This Row],[Input 4]],'Customer Information'!$AR$12,4,ROW()),\"No Rebate\"),\"No Rebate\"),0)","v":0},{"$f":"IF(Table_PI[[#This Row],[Hide:\nFormula Name]]<>\"\",IFERROR(IF(MeasureCalc(Table_PI[[#This Row],[Hide:\nFormula Name]],Table_PI[[#This Row],[Quantity]],Table_PI[[#This Row],[List 1]],Table_PI[[#This Row],[List 2]],Table_PI[[#This Row],[List 3]],Table_PI[[#This Row],[Size]],Table_PI[[#This Row],[Input 1]],Table_PI[[#This Row],[Input 2]],Table_PI[[#This Row],[Input 3]],Table_PI[[#This Row],[Input 4]],'Customer Information'!$AR$12,1,ROW())>0,MeasureCalc(Table_PI[[#This Row],[Hide:\nFormula Name]],Table_PI[[#This Row],[Quantity]],Table_PI[[#This Row],[List 1]],Table_PI[[#This Row],[List 2]],Table_PI[[#This Row],[List 3]],Table_PI[[#This Row],[Size]],Table_PI[[#This Row],[Input 1]],Table_PI[[#This Row],[Input 2]],Table_PI[[#This Row],[Input 3]],Table_PI[[#This Row],[Input 4]],'Customer Information'!$AR$12,5,ROW()),\"No Rebate\"),\"No Rebate\"),0)","v":0},{"$f":"IF(Table_PI[[#This Row],[Hide:\nFormula Name]]<>\"\",IFERROR(IF(MeasureCalc(Table_PI[[#This Row],[Hide:\nFormula Name]],Table_PI[[#This Row],[Quantity]],Table_PI[[#This Row],[List 1]],Table_PI[[#This Row],[List 2]],Table_PI[[#This Row],[List 3]],Table_PI[[#This Row],[Size]],Table_PI[[#This Row],[Input 1]],Table_PI[[#This Row],[Input 2]],Table_PI[[#This Row],[Input 3]],Table_PI[[#This Row],[Input 4]],'Customer Information'!$AR$12,1,ROW())>0,MeasureCalc(Table_PI[[#This Row],[Hide:\nFormula Name]],Table_PI[[#This Row],[Quantity]],Table_PI[[#This Row],[List 1]],Table_PI[[#This Row],[List 2]],Table_PI[[#This Row],[List 3]],Table_PI[[#This Row],[Size]],Table_PI[[#This Row],[Input 1]],Table_PI[[#This Row],[Input 2]],Table_PI[[#This Row],[Input 3]],Table_PI[[#This Row],[Input 4]],'Customer Information'!$AR$12,6,ROW()),\"No Rebate\"),\"No Rebate\"),0)","v":0},{"$f":"IF(Table_PI[[#This Row],[Hide:\nFormula Name]]<>\"\",IFERROR(IF(MeasureCalc(Table_PI[[#This Row],[Hide:\nFormula Name]],Table_PI[[#This Row],[Quantity]],Table_PI[[#This Row],[List 1]],Table_PI[[#This Row],[List 2]],Table_PI[[#This Row],[List 3]],Table_PI[[#This Row],[Size]],Table_PI[[#This Row],[Input 1]],Table_PI[[#This Row],[Input 2]],Table_PI[[#This Row],[Input 3]],Table_PI[[#This Row],[Input 4]],'Customer Information'!$AR$12,1,ROW())>0,MeasureCalc(Table_PI[[#This Row],[Hide:\nFormula Name]],Table_PI[[#This Row],[Quantity]],Table_PI[[#This Row],[List 1]],Table_PI[[#This Row],[List 2]],Table_PI[[#This Row],[List 3]],Table_PI[[#This Row],[Size]],Table_PI[[#This Row],[Input 1]],Table_PI[[#This Row],[Input 2]],Table_PI[[#This Row],[Input 3]],Table_PI[[#This Row],[Input 4]],'Customer Information'!$AR$12,7,ROW()),\"No Rebate\"),\"No Rebate\"),0)","v":0},{"$f":"IF(Table_PI[[#This Row],[Hide:\nFormula Name]]<>\"\",IFERROR(IF(MeasureCalc(Table_PI[[#This Row],[Hide:\nFormula Name]],Table_PI[[#This Row],[Quantity]],Table_PI[[#This Row],[List 1]],Table_PI[[#This Row],[List 2]],Table_PI[[#This Row],[List 3]],Table_PI[[#This Row],[Size]],Table_PI[[#This Row],[Input 1]],Table_PI[[#This Row],[Input 2]],Table_PI[[#This Row],[Input 3]],Table_PI[[#This Row],[Input 4]],'Customer Information'!$AR$12,1,ROW())>0,MeasureCalc(Table_PI[[#This Row],[Hide:\nFormula Name]],Table_PI[[#This Row],[Quantity]],Table_PI[[#This Row],[List 1]],Table_PI[[#This Row],[List 2]],Table_PI[[#This Row],[List 3]],Table_PI[[#This Row],[Size]],Table_PI[[#This Row],[Input 1]],Table_PI[[#This Row],[Input 2]],Table_PI[[#This Row],[Input 3]],Table_PI[[#This Row],[Input 4]],'Customer Information'!$AR$12,8,ROW()),\"No Rebate\"),\"No Rebate\"),0)","v":0},{"$f":"IF(Table_PI[[#This Row],[Hide:\nFormula Name]]<>\"\",IF(AND(Table_PI[[#This Row],[Hide:\nFormula Name]]<>\"\",OR(Table_PI[[#This Row],[Rebate]]>0,Table_PI[[#This Row],[Rebate]]=\"No Rebate\")),TRUE,\"MI: Line Item \" & $A102),\"\")","v":""}]
[{"$f":"IF(Table_PI[[#This Row],[Hide:\nFormula Name]]<>\"\",MAX($A$2:A102)+1,\"\")","v":""},null,null,null,null,null,null,null,null,null,null,null,null,null,null,{"$f":"IFERROR(VLOOKUP(Table_PI[[#This Row],[Measure]],'Equipment Lookups'!$C$3:$D$23,2,FALSE),\"\")","v":""},{"$f":"IF(Table_PI[[#This Row],[Hide:\nFormula Name]]<>\"\",IFERROR(IF(MeasureCalc(Table_PI[[#This Row],[Hide:\nFormula Name]],Table_PI[[#This Row],[Quantity]],Table_PI[[#This Row],[List 1]],Table_PI[[#This Row],[List 2]],Table_PI[[#This Row],[List 3]],Table_PI[[#This Row],[Size]],Table_PI[[#This Row],[Input 1]],Table_PI[[#This Row],[Input 2]],Table_PI[[#This Row],[Input 3]],Table_PI[[#This Row],[Input 4]],'Customer Information'!$AR$12,1,ROW())>0,MeasureCalc(Table_PI[[#This Row],[Hide:\nFormula Name]],Table_PI[[#This Row],[Quantity]],Table_PI[[#This Row],[List 1]],Table_PI[[#This Row],[List 2]],Table_PI[[#This Row],[List 3]],Table_PI[[#This Row],[Size]],Table_PI[[#This Row],[Input 1]],Table_PI[[#This Row],[Input 2]],Table_PI[[#This Row],[Input 3]],Table_PI[[#This Row],[Input 4]],'Customer Information'!$AR$12,1,ROW()),\"No Rebate\"),\"No Rebate\"),0)","v":0},{"$f":"IF(Table_PI[[#This Row],[Hide:\nFormula Name]]<>\"\",IFERROR(IF(MeasureCalc(Table_PI[[#This Row],[Hide:\nFormula Name]],Table_PI[[#This Row],[Quantity]],Table_PI[[#This Row],[List 1]],Table_PI[[#This Row],[List 2]],Table_PI[[#This Row],[List 3]],Table_PI[[#This Row],[Size]],Table_PI[[#This Row],[Input 1]],Table_PI[[#This Row],[Input 2]],Table_PI[[#This Row],[Input 3]],Table_PI[[#This Row],[Input 4]],'Customer Information'!$AR$12,1,ROW())>0,MeasureCalc(Table_PI[[#This Row],[Hide:\nFormula Name]],Table_PI[[#This Row],[Quantity]],Table_PI[[#This Row],[List 1]],Table_PI[[#This Row],[List 2]],Table_PI[[#This Row],[List 3]],Table_PI[[#This Row],[Size]],Table_PI[[#This Row],[Input 1]],Table_PI[[#This Row],[Input 2]],Table_PI[[#This Row],[Input 3]],Table_PI[[#This Row],[Input 4]],'Customer Information'!$AR$12,2,ROW()),\"No Rebate\"),\"No Rebate\"),0)","v":0},{"$f":"IF(Table_PI[[#This Row],[Hide:\nFormula Name]]<>\"\",IFERROR(IF(MeasureCalc(Table_PI[[#This Row],[Hide:\nFormula Name]],Table_PI[[#This Row],[Quantity]],Table_PI[[#This Row],[List 1]],Table_PI[[#This Row],[List 2]],Table_PI[[#This Row],[List 3]],Table_PI[[#This Row],[Size]],Table_PI[[#This Row],[Input 1]],Table_PI[[#This Row],[Input 2]],Table_PI[[#This Row],[Input 3]],Table_PI[[#This Row],[Input 4]],'Customer Information'!$AR$12,1,ROW())>0,MeasureCalc(Table_PI[[#This Row],[Hide:\nFormula Name]],Table_PI[[#This Row],[Quantity]],Table_PI[[#This Row],[List 1]],Table_PI[[#This Row],[List 2]],Table_PI[[#This Row],[List 3]],Table_PI[[#This Row],[Size]],Table_PI[[#This Row],[Input 1]],Table_PI[[#This Row],[Input 2]],Table_PI[[#This Row],[Input 3]],Table_PI[[#This Row],[Input 4]],'Customer Information'!$AR$12,3,ROW()),\"No Rebate\"),\"No Rebate\"),0)","v":0},{"$f":"IF(Table_PI[[#This Row],[Hide:\nFormula Name]]<>\"\",IFERROR(IF(MeasureCalc(Table_PI[[#This Row],[Hide:\nFormula Name]],Table_PI[[#This Row],[Quantity]],Table_PI[[#This Row],[List 1]],Table_PI[[#This Row],[List 2]],Table_PI[[#This Row],[List 3]],Table_PI[[#This Row],[Size]],Table_PI[[#This Row],[Input 1]],Table_PI[[#This Row],[Input 2]],Table_PI[[#This Row],[Input 3]],Table_PI[[#This Row],[Input 4]],'Customer Information'!$AR$12,1,ROW())>0,MeasureCalc(Table_PI[[#This Row],[Hide:\nFormula Name]],Table_PI[[#This Row],[Quantity]],Table_PI[[#This Row],[List 1]],Table_PI[[#This Row],[List 2]],Table_PI[[#This Row],[List 3]],Table_PI[[#This Row],[Size]],Table_PI[[#This Row],[Input 1]],Table_PI[[#This Row],[Input 2]],Table_PI[[#This Row],[Input 3]],Table_PI[[#This Row],[Input 4]],'Customer Information'!$AR$12,4,ROW()),\"No Rebate\"),\"No Rebate\"),0)","v":0},{"$f":"IF(Table_PI[[#This Row],[Hide:\nFormula Name]]<>\"\",IFERROR(IF(MeasureCalc(Table_PI[[#This Row],[Hide:\nFormula Name]],Table_PI[[#This Row],[Quantity]],Table_PI[[#This Row],[List 1]],Table_PI[[#This Row],[List 2]],Table_PI[[#This Row],[List 3]],Table_PI[[#This Row],[Size]],Table_PI[[#This Row],[Input 1]],Table_PI[[#This Row],[Input 2]],Table_PI[[#This Row],[Input 3]],Table_PI[[#This Row],[Input 4]],'Customer Information'!$AR$12,1,ROW())>0,MeasureCalc(Table_PI[[#This Row],[Hide:\nFormula Name]],Table_PI[[#This Row],[Quantity]],Table_PI[[#This Row],[List 1]],Table_PI[[#This Row],[List 2]],Table_PI[[#This Row],[List 3]],Table_PI[[#This Row],[Size]],Table_PI[[#This Row],[Input 1]],Table_PI[[#This Row],[Input 2]],Table_PI[[#This Row],[Input 3]],Table_PI[[#This Row],[Input 4]],'Customer Information'!$AR$12,5,ROW()),\"No Rebate\"),\"No Rebate\"),0)","v":0},{"$f":"IF(Table_PI[[#This Row],[Hide:\nFormula Name]]<>\"\",IFERROR(IF(MeasureCalc(Table_PI[[#This Row],[Hide:\nFormula Name]],Table_PI[[#This Row],[Quantity]],Table_PI[[#This Row],[List 1]],Table_PI[[#This Row],[List 2]],Table_PI[[#This Row],[List 3]],Table_PI[[#This Row],[Size]],Table_PI[[#This Row],[Input 1]],Table_PI[[#This Row],[Input 2]],Table_PI[[#This Row],[Input 3]],Table_PI[[#This Row],[Input 4]],'Customer Information'!$AR$12,1,ROW())>0,MeasureCalc(Table_PI[[#This Row],[Hide:\nFormula Name]],Table_PI[[#This Row],[Quantity]],Table_PI[[#This Row],[List 1]],Table_PI[[#This Row],[List 2]],Table_PI[[#This Row],[List 3]],Table_PI[[#This Row],[Size]],Table_PI[[#This Row],[Input 1]],Table_PI[[#This Row],[Input 2]],Table_PI[[#This Row],[Input 3]],Table_PI[[#This Row],[Input 4]],'Customer Information'!$AR$12,6,ROW()),\"No Rebate\"),\"No Rebate\"),0)","v":0},{"$f":"IF(Table_PI[[#This Row],[Hide:\nFormula Name]]<>\"\",IFERROR(IF(MeasureCalc(Table_PI[[#This Row],[Hide:\nFormula Name]],Table_PI[[#This Row],[Quantity]],Table_PI[[#This Row],[List 1]],Table_PI[[#This Row],[List 2]],Table_PI[[#This Row],[List 3]],Table_PI[[#This Row],[Size]],Table_PI[[#This Row],[Input 1]],Table_PI[[#This Row],[Input 2]],Table_PI[[#This Row],[Input 3]],Table_PI[[#This Row],[Input 4]],'Customer Information'!$AR$12,1,ROW())>0,MeasureCalc(Table_PI[[#This Row],[Hide:\nFormula Name]],Table_PI[[#This Row],[Quantity]],Table_PI[[#This Row],[List 1]],Table_PI[[#This Row],[List 2]],Table_PI[[#This Row],[List 3]],Table_PI[[#This Row],[Size]],Table_PI[[#This Row],[Input 1]],Table_PI[[#This Row],[Input 2]],Table_PI[[#This Row],[Input 3]],Table_PI[[#This Row],[Input 4]],'Customer Information'!$AR$12,7,ROW()),\"No Rebate\"),\"No Rebate\"),0)","v":0},{"$f":"IF(Table_PI[[#This Row],[Hide:\nFormula Name]]<>\"\",IFERROR(IF(MeasureCalc(Table_PI[[#This Row],[Hide:\nFormula Name]],Table_PI[[#This Row],[Quantity]],Table_PI[[#This Row],[List 1]],Table_PI[[#This Row],[List 2]],Table_PI[[#This Row],[List 3]],Table_PI[[#This Row],[Size]],Table_PI[[#This Row],[Input 1]],Table_PI[[#This Row],[Input 2]],Table_PI[[#This Row],[Input 3]],Table_PI[[#This Row],[Input 4]],'Customer Information'!$AR$12,1,ROW())>0,MeasureCalc(Table_PI[[#This Row],[Hide:\nFormula Name]],Table_PI[[#This Row],[Quantity]],Table_PI[[#This Row],[List 1]],Table_PI[[#This Row],[List 2]],Table_PI[[#This Row],[List 3]],Table_PI[[#This Row],[Size]],Table_PI[[#This Row],[Input 1]],Table_PI[[#This Row],[Input 2]],Table_PI[[#This Row],[Input 3]],Table_PI[[#This Row],[Input 4]],'Customer Information'!$AR$12,8,ROW()),\"No Rebate\"),\"No Rebate\"),0)","v":0},{"$f":"IF(Table_PI[[#This Row],[Hide:\nFormula Name]]<>\"\",IF(AND(Table_PI[[#This Row],[Hide:\nFormula Name]]<>\"\",OR(Table_PI[[#This Row],[Rebate]]>0,Table_PI[[#This Row],[Rebate]]=\"No Rebate\")),TRUE,\"MI: Line Item \" & $A103),\"\")","v":""}]
[{"$f":"IF(Table_PI[[#This Row],[Hide:\nFormula Name]]<>\"\",MAX($A$2:A103)+1,\"\")","v":""},null,null,null,null,null,null,null,null,null,null,null,null,null,null,{"$f":"IFERROR(VLOOKUP(Table_PI[[#This Row],[Measure]],'Equipment Lookups'!$C$3:$D$23,2,FALSE),\"\")","v":""},{"$f":"IF(Table_PI[[#This Row],[Hide:\nFormula Name]]<>\"\",IFERROR(IF(MeasureCalc(Table_PI[[#This Row],[Hide:\nFormula Name]],Table_PI[[#This Row],[Quantity]],Table_PI[[#This Row],[List 1]],Table_PI[[#This Row],[List 2]],Table_PI[[#This Row],[List 3]],Table_PI[[#This Row],[Size]],Table_PI[[#This Row],[Input 1]],Table_PI[[#This Row],[Input 2]],Table_PI[[#This Row],[Input 3]],Table_PI[[#This Row],[Input 4]],'Customer Information'!$AR$12,1,ROW())>0,MeasureCalc(Table_PI[[#This Row],[Hide:\nFormula Name]],Table_PI[[#This Row],[Quantity]],Table_PI[[#This Row],[List 1]],Table_PI[[#This Row],[List 2]],Table_PI[[#This Row],[List 3]],Table_PI[[#This Row],[Size]],Table_PI[[#This Row],[Input 1]],Table_PI[[#This Row],[Input 2]],Table_PI[[#This Row],[Input 3]],Table_PI[[#This Row],[Input 4]],'Customer Information'!$AR$12,1,ROW()),\"No Rebate\"),\"No Rebate\"),0)","v":0},{"$f":"IF(Table_PI[[#This Row],[Hide:\nFormula Name]]<>\"\",IFERROR(IF(MeasureCalc(Table_PI[[#This Row],[Hide:\nFormula Name]],Table_PI[[#This Row],[Quantity]],Table_PI[[#This Row],[List 1]],Table_PI[[#This Row],[List 2]],Table_PI[[#This Row],[List 3]],Table_PI[[#This Row],[Size]],Table_PI[[#This Row],[Input 1]],Table_PI[[#This Row],[Input 2]],Table_PI[[#This Row],[Input 3]],Table_PI[[#This Row],[Input 4]],'Customer Information'!$AR$12,1,ROW())>0,MeasureCalc(Table_PI[[#This Row],[Hide:\nFormula Name]],Table_PI[[#This Row],[Quantity]],Table_PI[[#This Row],[List 1]],Table_PI[[#This Row],[List 2]],Table_PI[[#This Row],[List 3]],Table_PI[[#This Row],[Size]],Table_PI[[#This Row],[Input 1]],Table_PI[[#This Row],[Input 2]],Table_PI[[#This Row],[Input 3]],Table_PI[[#This Row],[Input 4]],'Customer Information'!$AR$12,2,ROW()),\"No Rebate\"),\"No Rebate\"),0)","v":0},{"$f":"IF(Table_PI[[#This Row],[Hide:\nFormula Name]]<>\"\",IFERROR(IF(MeasureCalc(Table_PI[[#This Row],[Hide:\nFormula Name]],Table_PI[[#This Row],[Quantity]],Table_PI[[#This Row],[List 1]],Table_PI[[#This Row],[List 2]],Table_PI[[#This Row],[List 3]],Table_PI[[#This Row],[Size]],Table_PI[[#This Row],[Input 1]],Table_PI[[#This Row],[Input 2]],Table_PI[[#This Row],[Input 3]],Table_PI[[#This Row],[Input 4]],'Customer Information'!$AR$12,1,ROW())>0,MeasureCalc(Table_PI[[#This Row],[Hide:\nFormula Name]],Table_PI[[#This Row],[Quantity]],Table_PI[[#This Row],[List 1]],Table_PI[[#This Row],[List 2]],Table_PI[[#This Row],[List 3]],Table_PI[[#This Row],[Size]],Table_PI[[#This Row],[Input 1]],Table_PI[[#This Row],[Input 2]],Table_PI[[#This Row],[Input 3]],Table_PI[[#This Row],[Input 4]],'Customer Information'!$AR$12,3,ROW()),\"No Rebate\"),\"No Rebate\"),0)","v":0},{"$f":"IF(Table_PI[[#This Row],[Hide:\nFormula Name]]<>\"\",IFERROR(IF(MeasureCalc(Table_PI[[#This Row],[Hide:\nFormula Name]],Table_PI[[#This Row],[Quantity]],Table_PI[[#This Row],[List 1]],Table_PI[[#This Row],[List 2]],Table_PI[[#This Row],[List 3]],Table_PI[[#This Row],[Size]],Table_PI[[#This Row],[Input 1]],Table_PI[[#This Row],[Input 2]],Table_PI[[#This Row],[Input 3]],Table_PI[[#This Row],[Input 4]],'Customer Information'!$AR$12,1,ROW())>0,MeasureCalc(Table_PI[[#This Row],[Hide:\nFormula Name]],Table_PI[[#This Row],[Quantity]],Table_PI[[#This Row],[List 1]],Table_PI[[#This Row],[List 2]],Table_PI[[#This Row],[List 3]],Table_PI[[#This Row],[Size]],Table_PI[[#This Row],[Input 1]],Table_PI[[#This Row],[Input 2]],Table_PI[[#This Row],[Input 3]],Table_PI[[#This Row],[Input 4]],'Customer Information'!$AR$12,4,ROW()),\"No Rebate\"),\"No Rebate\"),0)","v":0},{"$f":"IF(Table_PI[[#This Row],[Hide:\nFormula Name]]<>\"\",IFERROR(IF(MeasureCalc(Table_PI[[#This Row],[Hide:\nFormula Name]],Table_PI[[#This Row],[Quantity]],Table_PI[[#This Row],[List 1]],Table_PI[[#This Row],[List 2]],Table_PI[[#This Row],[List 3]],Table_PI[[#This Row],[Size]],Table_PI[[#This Row],[Input 1]],Table_PI[[#This Row],[Input 2]],Table_PI[[#This Row],[Input 3]],Table_PI[[#This Row],[Input 4]],'Customer Information'!$AR$12,1,ROW())>0,MeasureCalc(Table_PI[[#This Row],[Hide:\nFormula Name]],Table_PI[[#This Row],[Quantity]],Table_PI[[#This Row],[List 1]],Table_PI[[#This Row],[List 2]],Table_PI[[#This Row],[List 3]],Table_PI[[#This Row],[Size]],Table_PI[[#This Row],[Input 1]],Table_PI[[#This Row],[Input 2]],Table_PI[[#This Row],[Input 3]],Table_PI[[#This Row],[Input 4]],'Customer Information'!$AR$12,5,ROW()),\"No Rebate\"),\"No Rebate\"),0)","v":0},{"$f":"IF(Table_PI[[#This Row],[Hide:\nFormula Name]]<>\"\",IFERROR(IF(MeasureCalc(Table_PI[[#This Row],[Hide:\nFormula Name]],Table_PI[[#This Row],[Quantity]],Table_PI[[#This Row],[List 1]],Table_PI[[#This Row],[List 2]],Table_PI[[#This Row],[List 3]],Table_PI[[#This Row],[Size]],Table_PI[[#This Row],[Input 1]],Table_PI[[#This Row],[Input 2]],Table_PI[[#This Row],[Input 3]],Table_PI[[#This Row],[Input 4]],'Customer Information'!$AR$12,1,ROW())>0,MeasureCalc(Table_PI[[#This Row],[Hide:\nFormula Name]],Table_PI[[#This Row],[Quantity]],Table_PI[[#This Row],[List 1]],Table_PI[[#This Row],[List 2]],Table_PI[[#This Row],[List 3]],Table_PI[[#This Row],[Size]],Table_PI[[#This Row],[Input 1]],Table_PI[[#This Row],[Input 2]],Table_PI[[#This Row],[Input 3]],Table_PI[[#This Row],[Input 4]],'Customer Information'!$AR$12,6,ROW()),\"No Rebate\"),\"No Rebate\"),0)","v":0},{"$f":"IF(Table_PI[[#This Row],[Hide:\nFormula Name]]<>\"\",IFERROR(IF(MeasureCalc(Table_PI[[#This Row],[Hide:\nFormula Name]],Table_PI[[#This Row],[Quantity]],Table_PI[[#This Row],[List 1]],Table_PI[[#This Row],[List 2]],Table_PI[[#This Row],[List 3]],Table_PI[[#This Row],[Size]],Table_PI[[#This Row],[Input 1]],Table_PI[[#This Row],[Input 2]],Table_PI[[#This Row],[Input 3]],Table_PI[[#This Row],[Input 4]],'Customer Information'!$AR$12,1,ROW())>0,MeasureCalc(Table_PI[[#This Row],[Hide:\nFormula Name]],Table_PI[[#This Row],[Quantity]],Table_PI[[#This Row],[List 1]],Table_PI[[#This Row],[List 2]],Table_PI[[#This Row],[List 3]],Table_PI[[#This Row],[Size]],Table_PI[[#This Row],[Input 1]],Table_PI[[#This Row],[Input 2]],Table_PI[[#This Row],[Input 3]],Table_PI[[#This Row],[Input 4]],'Customer Information'!$AR$12,7,ROW()),\"No Rebate\"),\"No Rebate\"),0)","v":0},{"$f":"IF(Table_PI[[#This Row],[Hide:\nFormula Name]]<>\"\",IFERROR(IF(MeasureCalc(Table_PI[[#This Row],[Hide:\nFormula Name]],Table_PI[[#This Row],[Quantity]],Table_PI[[#This Row],[List 1]],Table_PI[[#This Row],[List 2]],Table_PI[[#This Row],[List 3]],Table_PI[[#This Row],[Size]],Table_PI[[#This Row],[Input 1]],Table_PI[[#This Row],[Input 2]],Table_PI[[#This Row],[Input 3]],Table_PI[[#This Row],[Input 4]],'Customer Information'!$AR$12,1,ROW())>0,MeasureCalc(Table_PI[[#This Row],[Hide:\nFormula Name]],Table_PI[[#This Row],[Quantity]],Table_PI[[#This Row],[List 1]],Table_PI[[#This Row],[List 2]],Table_PI[[#This Row],[List 3]],Table_PI[[#This Row],[Size]],Table_PI[[#This Row],[Input 1]],Table_PI[[#This Row],[Input 2]],Table_PI[[#This Row],[Input 3]],Table_PI[[#This Row],[Input 4]],'Customer Information'!$AR$12,8,ROW()),\"No Rebate\"),\"No Rebate\"),0)","v":0},{"$f":"IF(Table_PI[[#This Row],[Hide:\nFormula Name]]<>\"\",IF(AND(Table_PI[[#This Row],[Hide:\nFormula Name]]<>\"\",OR(Table_PI[[#This Row],[Rebate]]>0,Table_PI[[#This Row],[Rebate]]=\"No Rebate\")),TRUE,\"MI: Line Item \" & $A104),\"\")","v":""}]
[{"$f":"IF(Table_PI[[#This Row],[Hide:\nFormula Name]]<>\"\",MAX($A$2:A104)+1,\"\")","v":""},null,null,null,null,null,null,null,null,null,null,null,null,null,null,{"$f":"IFERROR(VLOOKUP(Table_PI[[#This Row],[Measure]],'Equipment Lookups'!$C$3:$D$23,2,FALSE),\"\")","v":""},{"$f":"IF(Table_PI[[#This Row],[Hide:\nFormula Name]]<>\"\",IFERROR(IF(MeasureCalc(Table_PI[[#This Row],[Hide:\nFormula Name]],Table_PI[[#This Row],[Quantity]],Table_PI[[#This Row],[List 1]],Table_PI[[#This Row],[List 2]],Table_PI[[#This Row],[List 3]],Table_PI[[#This Row],[Size]],Table_PI[[#This Row],[Input 1]],Table_PI[[#This Row],[Input 2]],Table_PI[[#This Row],[Input 3]],Table_PI[[#This Row],[Input 4]],'Customer Information'!$AR$12,1,ROW())>0,MeasureCalc(Table_PI[[#This Row],[Hide:\nFormula Name]],Table_PI[[#This Row],[Quantity]],Table_PI[[#This Row],[List 1]],Table_PI[[#This Row],[List 2]],Table_PI[[#This Row],[List 3]],Table_PI[[#This Row],[Size]],Table_PI[[#This Row],[Input 1]],Table_PI[[#This Row],[Input 2]],Table_PI[[#This Row],[Input 3]],Table_PI[[#This Row],[Input 4]],'Customer Information'!$AR$12,1,ROW()),\"No Rebate\"),\"No Rebate\"),0)","v":0},{"$f":"IF(Table_PI[[#This Row],[Hide:\nFormula Name]]<>\"\",IFERROR(IF(MeasureCalc(Table_PI[[#This Row],[Hide:\nFormula Name]],Table_PI[[#This Row],[Quantity]],Table_PI[[#This Row],[List 1]],Table_PI[[#This Row],[List 2]],Table_PI[[#This Row],[List 3]],Table_PI[[#This Row],[Size]],Table_PI[[#This Row],[Input 1]],Table_PI[[#This Row],[Input 2]],Table_PI[[#This Row],[Input 3]],Table_PI[[#This Row],[Input 4]],'Customer Information'!$AR$12,1,ROW())>0,MeasureCalc(Table_PI[[#This Row],[Hide:\nFormula Name]],Table_PI[[#This Row],[Quantity]],Table_PI[[#This Row],[List 1]],Table_PI[[#This Row],[List 2]],Table_PI[[#This Row],[List 3]],Table_PI[[#This Row],[Size]],Table_PI[[#This Row],[Input 1]],Table_PI[[#This Row],[Input 2]],Table_PI[[#This Row],[Input 3]],Table_PI[[#This Row],[Input 4]],'Customer Information'!$AR$12,2,ROW()),\"No Rebate\"),\"No Rebate\"),0)","v":0},{"$f":"IF(Table_PI[[#This Row],[Hide:\nFormula Name]]<>\"\",IFERROR(IF(MeasureCalc(Table_PI[[#This Row],[Hide:\nFormula Name]],Table_PI[[#This Row],[Quantity]],Table_PI[[#This Row],[List 1]],Table_PI[[#This Row],[List 2]],Table_PI[[#This Row],[List 3]],Table_PI[[#This Row],[Size]],Table_PI[[#This Row],[Input 1]],Table_PI[[#This Row],[Input 2]],Table_PI[[#This Row],[Input 3]],Table_PI[[#This Row],[Input 4]],'Customer Information'!$AR$12,1,ROW())>0,MeasureCalc(Table_PI[[#This Row],[Hide:\nFormula Name]],Table_PI[[#This Row],[Quantity]],Table_PI[[#This Row],[List 1]],Table_PI[[#This Row],[List 2]],Table_PI[[#This Row],[List 3]],Table_PI[[#This Row],[Size]],Table_PI[[#This Row],[Input 1]],Table_PI[[#This Row],[Input 2]],Table_PI[[#This Row],[Input 3]],Table_PI[[#This Row],[Input 4]],'Customer Information'!$AR$12,3,ROW()),\"No Rebate\"),\"No Rebate\"),0)","v":0},{"$f":"IF(Table_PI[[#This Row],[Hide:\nFormula Name]]<>\"\",IFERROR(IF(MeasureCalc(Table_PI[[#This Row],[Hide:\nFormula Name]],Table_PI[[#This Row],[Quantity]],Table_PI[[#This Row],[List 1]],Table_PI[[#This Row],[List 2]],Table_PI[[#This Row],[List 3]],Table_PI[[#This Row],[Size]],Table_PI[[#This Row],[Input 1]],Table_PI[[#This Row],[Input 2]],Table_PI[[#This Row],[Input 3]],Table_PI[[#This Row],[Input 4]],'Customer Information'!$AR$12,1,ROW())>0,MeasureCalc(Table_PI[[#This Row],[Hide:\nFormula Name]],Table_PI[[#This Row],[Quantity]],Table_PI[[#This Row],[List 1]],Table_PI[[#This Row],[List 2]],Table_PI[[#This Row],[List 3]],Table_PI[[#This Row],[Size]],Table_PI[[#This Row],[Input 1]],Table_PI[[#This Row],[Input 2]],Table_PI[[#This Row],[Input 3]],Table_PI[[#This Row],[Input 4]],'Customer Information'!$AR$12,4,ROW()),\"No Rebate\"),\"No Rebate\"),0)","v":0},{"$f":"IF(Table_PI[[#This Row],[Hide:\nFormula Name]]<>\"\",IFERROR(IF(MeasureCalc(Table_PI[[#This Row],[Hide:\nFormula Name]],Table_PI[[#This Row],[Quantity]],Table_PI[[#This Row],[List 1]],Table_PI[[#This Row],[List 2]],Table_PI[[#This Row],[List 3]],Table_PI[[#This Row],[Size]],Table_PI[[#This Row],[Input 1]],Table_PI[[#This Row],[Input 2]],Table_PI[[#This Row],[Input 3]],Table_PI[[#This Row],[Input 4]],'Customer Information'!$AR$12,1,ROW())>0,MeasureCalc(Table_PI[[#This Row],[Hide:\nFormula Name]],Table_PI[[#This Row],[Quantity]],Table_PI[[#This Row],[List 1]],Table_PI[[#This Row],[List 2]],Table_PI[[#This Row],[List 3]],Table_PI[[#This Row],[Size]],Table_PI[[#This Row],[Input 1]],Table_PI[[#This Row],[Input 2]],Table_PI[[#This Row],[Input 3]],Table_PI[[#This Row],[Input 4]],'Customer Information'!$AR$12,5,ROW()),\"No Rebate\"),\"No Rebate\"),0)","v":0},{"$f":"IF(Table_PI[[#This Row],[Hide:\nFormula Name]]<>\"\",IFERROR(IF(MeasureCalc(Table_PI[[#This Row],[Hide:\nFormula Name]],Table_PI[[#This Row],[Quantity]],Table_PI[[#This Row],[List 1]],Table_PI[[#This Row],[List 2]],Table_PI[[#This Row],[List 3]],Table_PI[[#This Row],[Size]],Table_PI[[#This Row],[Input 1]],Table_PI[[#This Row],[Input 2]],Table_PI[[#This Row],[Input 3]],Table_PI[[#This Row],[Input 4]],'Customer Information'!$AR$12,1,ROW())>0,MeasureCalc(Table_PI[[#This Row],[Hide:\nFormula Name]],Table_PI[[#This Row],[Quantity]],Table_PI[[#This Row],[List 1]],Table_PI[[#This Row],[List 2]],Table_PI[[#This Row],[List 3]],Table_PI[[#This Row],[Size]],Table_PI[[#This Row],[Input 1]],Table_PI[[#This Row],[Input 2]],Table_PI[[#This Row],[Input 3]],Table_PI[[#This Row],[Input 4]],'Customer Information'!$AR$12,6,ROW()),\"No Rebate\"),\"No Rebate\"),0)","v":0},{"$f":"IF(Table_PI[[#This Row],[Hide:\nFormula Name]]<>\"\",IFERROR(IF(MeasureCalc(Table_PI[[#This Row],[Hide:\nFormula Name]],Table_PI[[#This Row],[Quantity]],Table_PI[[#This Row],[List 1]],Table_PI[[#This Row],[List 2]],Table_PI[[#This Row],[List 3]],Table_PI[[#This Row],[Size]],Table_PI[[#This Row],[Input 1]],Table_PI[[#This Row],[Input 2]],Table_PI[[#This Row],[Input 3]],Table_PI[[#This Row],[Input 4]],'Customer Information'!$AR$12,1,ROW())>0,MeasureCalc(Table_PI[[#This Row],[Hide:\nFormula Name]],Table_PI[[#This Row],[Quantity]],Table_PI[[#This Row],[List 1]],Table_PI[[#This Row],[List 2]],Table_PI[[#This Row],[List 3]],Table_PI[[#This Row],[Size]],Table_PI[[#This Row],[Input 1]],Table_PI[[#This Row],[Input 2]],Table_PI[[#This Row],[Input 3]],Table_PI[[#This Row],[Input 4]],'Customer Information'!$AR$12,7,ROW()),\"No Rebate\"),\"No Rebate\"),0)","v":0},{"$f":"IF(Table_PI[[#This Row],[Hide:\nFormula Name]]<>\"\",IFERROR(IF(MeasureCalc(Table_PI[[#This Row],[Hide:\nFormula Name]],Table_PI[[#This Row],[Quantity]],Table_PI[[#This Row],[List 1]],Table_PI[[#This Row],[List 2]],Table_PI[[#This Row],[List 3]],Table_PI[[#This Row],[Size]],Table_PI[[#This Row],[Input 1]],Table_PI[[#This Row],[Input 2]],Table_PI[[#This Row],[Input 3]],Table_PI[[#This Row],[Input 4]],'Customer Information'!$AR$12,1,ROW())>0,MeasureCalc(Table_PI[[#This Row],[Hide:\nFormula Name]],Table_PI[[#This Row],[Quantity]],Table_PI[[#This Row],[List 1]],Table_PI[[#This Row],[List 2]],Table_PI[[#This Row],[List 3]],Table_PI[[#This Row],[Size]],Table_PI[[#This Row],[Input 1]],Table_PI[[#This Row],[Input 2]],Table_PI[[#This Row],[Input 3]],Table_PI[[#This Row],[Input 4]],'Customer Information'!$AR$12,8,ROW()),\"No Rebate\"),\"No Rebate\"),0)","v":0},{"$f":"IF(Table_PI[[#This Row],[Hide:\nFormula Name]]<>\"\",IF(AND(Table_PI[[#This Row],[Hide:\nFormula Name]]<>\"\",OR(Table_PI[[#This Row],[Rebate]]>0,Table_PI[[#This Row],[Rebate]]=\"No Rebate\")),TRUE,\"MI: Line Item \" & $A105),\"\")","v":""}]
[{"$f":"IF(Table_PI[[#This Row],[Hide:\nFormula Name]]<>\"\",MAX($A$2:A105)+1,\"\")","v":""},null,null,null,null,null,null,null,null,null,null,null,null,null,null,{"$f":"IFERROR(VLOOKUP(Table_PI[[#This Row],[Measure]],'Equipment Lookups'!$C$3:$D$23,2,FALSE),\"\")","v":""},{"$f":"IF(Table_PI[[#This Row],[Hide:\nFormula Name]]<>\"\",IFERROR(IF(MeasureCalc(Table_PI[[#This Row],[Hide:\nFormula Name]],Table_PI[[#This Row],[Quantity]],Table_PI[[#This Row],[List 1]],Table_PI[[#This Row],[List 2]],Table_PI[[#This Row],[List 3]],Table_PI[[#This Row],[Size]],Table_PI[[#This Row],[Input 1]],Table_PI[[#This Row],[Input 2]],Table_PI[[#This Row],[Input 3]],Table_PI[[#This Row],[Input 4]],'Customer Information'!$AR$12,1,ROW())>0,MeasureCalc(Table_PI[[#This Row],[Hide:\nFormula Name]],Table_PI[[#This Row],[Quantity]],Table_PI[[#This Row],[List 1]],Table_PI[[#This Row],[List 2]],Table_PI[[#This Row],[List 3]],Table_PI[[#This Row],[Size]],Table_PI[[#This Row],[Input 1]],Table_PI[[#This Row],[Input 2]],Table_PI[[#This Row],[Input 3]],Table_PI[[#This Row],[Input 4]],'Customer Information'!$AR$12,1,ROW()),\"No Rebate\"),\"No Rebate\"),0)","v":0},{"$f":"IF(Table_PI[[#This Row],[Hide:\nFormula Name]]<>\"\",IFERROR(IF(MeasureCalc(Table_PI[[#This Row],[Hide:\nFormula Name]],Table_PI[[#This Row],[Quantity]],Table_PI[[#This Row],[List 1]],Table_PI[[#This Row],[List 2]],Table_PI[[#This Row],[List 3]],Table_PI[[#This Row],[Size]],Table_PI[[#This Row],[Input 1]],Table_PI[[#This Row],[Input 2]],Table_PI[[#This Row],[Input 3]],Table_PI[[#This Row],[Input 4]],'Customer Information'!$AR$12,1,ROW())>0,MeasureCalc(Table_PI[[#This Row],[Hide:\nFormula Name]],Table_PI[[#This Row],[Quantity]],Table_PI[[#This Row],[List 1]],Table_PI[[#This Row],[List 2]],Table_PI[[#This Row],[List 3]],Table_PI[[#This Row],[Size]],Table_PI[[#This Row],[Input 1]],Table_PI[[#This Row],[Input 2]],Table_PI[[#This Row],[Input 3]],Table_PI[[#This Row],[Input 4]],'Customer Information'!$AR$12,2,ROW()),\"No Rebate\"),\"No Rebate\"),0)","v":0},{"$f":"IF(Table_PI[[#This Row],[Hide:\nFormula Name]]<>\"\",IFERROR(IF(MeasureCalc(Table_PI[[#This Row],[Hide:\nFormula Name]],Table_PI[[#This Row],[Quantity]],Table_PI[[#This Row],[List 1]],Table_PI[[#This Row],[List 2]],Table_PI[[#This Row],[List 3]],Table_PI[[#This Row],[Size]],Table_PI[[#This Row],[Input 1]],Table_PI[[#This Row],[Input 2]],Table_PI[[#This Row],[Input 3]],Table_PI[[#This Row],[Input 4]],'Customer Information'!$AR$12,1,ROW())>0,MeasureCalc(Table_PI[[#This Row],[Hide:\nFormula Name]],Table_PI[[#This Row],[Quantity]],Table_PI[[#This Row],[List 1]],Table_PI[[#This Row],[List 2]],Table_PI[[#This Row],[List 3]],Table_PI[[#This Row],[Size]],Table_PI[[#This Row],[Input 1]],Table_PI[[#This Row],[Input 2]],Table_PI[[#This Row],[Input 3]],Table_PI[[#This Row],[Input 4]],'Customer Information'!$AR$12,3,ROW()),\"No Rebate\"),\"No Rebate\"),0)","v":0},{"$f":"IF(Table_PI[[#This Row],[Hide:\nFormula Name]]<>\"\",IFERROR(IF(MeasureCalc(Table_PI[[#This Row],[Hide:\nFormula Name]],Table_PI[[#This Row],[Quantity]],Table_PI[[#This Row],[List 1]],Table_PI[[#This Row],[List 2]],Table_PI[[#This Row],[List 3]],Table_PI[[#This Row],[Size]],Table_PI[[#This Row],[Input 1]],Table_PI[[#This Row],[Input 2]],Table_PI[[#This Row],[Input 3]],Table_PI[[#This Row],[Input 4]],'Customer Information'!$AR$12,1,ROW())>0,MeasureCalc(Table_PI[[#This Row],[Hide:\nFormula Name]],Table_PI[[#This Row],[Quantity]],Table_PI[[#This Row],[List 1]],Table_PI[[#This Row],[List 2]],Table_PI[[#This Row],[List 3]],Table_PI[[#This Row],[Size]],Table_PI[[#This Row],[Input 1]],Table_PI[[#This Row],[Input 2]],Table_PI[[#This Row],[Input 3]],Table_PI[[#This Row],[Input 4]],'Customer Information'!$AR$12,4,ROW()),\"No Rebate\"),\"No Rebate\"),0)","v":0},{"$f":"IF(Table_PI[[#This Row],[Hide:\nFormula Name]]<>\"\",IFERROR(IF(MeasureCalc(Table_PI[[#This Row],[Hide:\nFormula Name]],Table_PI[[#This Row],[Quantity]],Table_PI[[#This Row],[List 1]],Table_PI[[#This Row],[List 2]],Table_PI[[#This Row],[List 3]],Table_PI[[#This Row],[Size]],Table_PI[[#This Row],[Input 1]],Table_PI[[#This Row],[Input 2]],Table_PI[[#This Row],[Input 3]],Table_PI[[#This Row],[Input 4]],'Customer Information'!$AR$12,1,ROW())>0,MeasureCalc(Table_PI[[#This Row],[Hide:\nFormula Name]],Table_PI[[#This Row],[Quantity]],Table_PI[[#This Row],[List 1]],Table_PI[[#This Row],[List 2]],Table_PI[[#This Row],[List 3]],Table_PI[[#This Row],[Size]],Table_PI[[#This Row],[Input 1]],Table_PI[[#This Row],[Input 2]],Table_PI[[#This Row],[Input 3]],Table_PI[[#This Row],[Input 4]],'Customer Information'!$AR$12,5,ROW()),\"No Rebate\"),\"No Rebate\"),0)","v":0},{"$f":"IF(Table_PI[[#This Row],[Hide:\nFormula Name]]<>\"\",IFERROR(IF(MeasureCalc(Table_PI[[#This Row],[Hide:\nFormula Name]],Table_PI[[#This Row],[Quantity]],Table_PI[[#This Row],[List 1]],Table_PI[[#This Row],[List 2]],Table_PI[[#This Row],[List 3]],Table_PI[[#This Row],[Size]],Table_PI[[#This Row],[Input 1]],Table_PI[[#This Row],[Input 2]],Table_PI[[#This Row],[Input 3]],Table_PI[[#This Row],[Input 4]],'Customer Information'!$AR$12,1,ROW())>0,MeasureCalc(Table_PI[[#This Row],[Hide:\nFormula Name]],Table_PI[[#This Row],[Quantity]],Table_PI[[#This Row],[List 1]],Table_PI[[#This Row],[List 2]],Table_PI[[#This Row],[List 3]],Table_PI[[#This Row],[Size]],Table_PI[[#This Row],[Input 1]],Table_PI[[#This Row],[Input 2]],Table_PI[[#This Row],[Input 3]],Table_PI[[#This Row],[Input 4]],'Customer Information'!$AR$12,6,ROW()),\"No Rebate\"),\"No Rebate\"),0)","v":0},{"$f":"IF(Table_PI[[#This Row],[Hide:\nFormula Name]]<>\"\",IFERROR(IF(MeasureCalc(Table_PI[[#This Row],[Hide:\nFormula Name]],Table_PI[[#This Row],[Quantity]],Table_PI[[#This Row],[List 1]],Table_PI[[#This Row],[List 2]],Table_PI[[#This Row],[List 3]],Table_PI[[#This Row],[Size]],Table_PI[[#This Row],[Input 1]],Table_PI[[#This Row],[Input 2]],Table_PI[[#This Row],[Input 3]],Table_PI[[#This Row],[Input 4]],'Customer Information'!$AR$12,1,ROW())>0,MeasureCalc(Table_PI[[#This Row],[Hide:\nFormula Name]],Table_PI[[#This Row],[Quantity]],Table_PI[[#This Row],[List 1]],Table_PI[[#This Row],[List 2]],Table_PI[[#This Row],[List 3]],Table_PI[[#This Row],[Size]],Table_PI[[#This Row],[Input 1]],Table_PI[[#This Row],[Input 2]],Table_PI[[#This Row],[Input 3]],Table_PI[[#This Row],[Input 4]],'Customer Information'!$AR$12,7,ROW()),\"No Rebate\"),\"No Rebate\"),0)","v":0},{"$f":"IF(Table_PI[[#This Row],[Hide:\nFormula Name]]<>\"\",IFERROR(IF(MeasureCalc(Table_PI[[#This Row],[Hide:\nFormula Name]],Table_PI[[#This Row],[Quantity]],Table_PI[[#This Row],[List 1]],Table_PI[[#This Row],[List 2]],Table_PI[[#This Row],[List 3]],Table_PI[[#This Row],[Size]],Table_PI[[#This Row],[Input 1]],Table_PI[[#This Row],[Input 2]],Table_PI[[#This Row],[Input 3]],Table_PI[[#This Row],[Input 4]],'Customer Information'!$AR$12,1,ROW())>0,MeasureCalc(Table_PI[[#This Row],[Hide:\nFormula Name]],Table_PI[[#This Row],[Quantity]],Table_PI[[#This Row],[List 1]],Table_PI[[#This Row],[List 2]],Table_PI[[#This Row],[List 3]],Table_PI[[#This Row],[Size]],Table_PI[[#This Row],[Input 1]],Table_PI[[#This Row],[Input 2]],Table_PI[[#This Row],[Input 3]],Table_PI[[#This Row],[Input 4]],'Customer Information'!$AR$12,8,ROW()),\"No Rebate\"),\"No Rebate\"),0)","v":0},{"$f":"IF(Table_PI[[#This Row],[Hide:\nFormula Name]]<>\"\",IF(AND(Table_PI[[#This Row],[Hide:\nFormula Name]]<>\"\",OR(Table_PI[[#This Row],[Rebate]]>0,Table_PI[[#This Row],[Rebate]]=\"No Rebate\")),TRUE,\"MI: Line Item \" & $A106),\"\")","v":""}]
[{"$f":"IF(Table_PI[[#This Row],[Hide:\nFormula Name]]<>\"\",MAX($A$2:A106)+1,\"\")","v":""},null,null,null,null,null,null,null,null,null,null,null,null,null,null,{"$f":"IFERROR(VLOOKUP(Table_PI[[#This Row],[Measure]],'Equipment Lookups'!$C$3:$D$23,2,FALSE),\"\")","v":""},{"$f":"IF(Table_PI[[#This Row],[Hide:\nFormula Name]]<>\"\",IFERROR(IF(MeasureCalc(Table_PI[[#This Row],[Hide:\nFormula Name]],Table_PI[[#This Row],[Quantity]],Table_PI[[#This Row],[List 1]],Table_PI[[#This Row],[List 2]],Table_PI[[#This Row],[List 3]],Table_PI[[#This Row],[Size]],Table_PI[[#This Row],[Input 1]],Table_PI[[#This Row],[Input 2]],Table_PI[[#This Row],[Input 3]],Table_PI[[#This Row],[Input 4]],'Customer Information'!$AR$12,1,ROW())>0,MeasureCalc(Table_PI[[#This Row],[Hide:\nFormula Name]],Table_PI[[#This Row],[Quantity]],Table_PI[[#This Row],[List 1]],Table_PI[[#This Row],[List 2]],Table_PI[[#This Row],[List 3]],Table_PI[[#This Row],[Size]],Table_PI[[#This Row],[Input 1]],Table_PI[[#This Row],[Input 2]],Table_PI[[#This Row],[Input 3]],Table_PI[[#This Row],[Input 4]],'Customer Information'!$AR$12,1,ROW()),\"No Rebate\"),\"No Rebate\"),0)","v":0},{"$f":"IF(Table_PI[[#This Row],[Hide:\nFormula Name]]<>\"\",IFERROR(IF(MeasureCalc(Table_PI[[#This Row],[Hide:\nFormula Name]],Table_PI[[#This Row],[Quantity]],Table_PI[[#This Row],[List 1]],Table_PI[[#This Row],[List 2]],Table_PI[[#This Row],[List 3]],Table_PI[[#This Row],[Size]],Table_PI[[#This Row],[Input 1]],Table_PI[[#This Row],[Input 2]],Table_PI[[#This Row],[Input 3]],Table_PI[[#This Row],[Input 4]],'Customer Information'!$AR$12,1,ROW())>0,MeasureCalc(Table_PI[[#This Row],[Hide:\nFormula Name]],Table_PI[[#This Row],[Quantity]],Table_PI[[#This Row],[List 1]],Table_PI[[#This Row],[List 2]],Table_PI[[#This Row],[List 3]],Table_PI[[#This Row],[Size]],Table_PI[[#This Row],[Input 1]],Table_PI[[#This Row],[Input 2]],Table_PI[[#This Row],[Input 3]],Table_PI[[#This Row],[Input 4]],'Customer Information'!$AR$12,2,ROW()),\"No Rebate\"),\"No Rebate\"),0)","v":0},{"$f":"IF(Table_PI[[#This Row],[Hide:\nFormula Name]]<>\"\",IFERROR(IF(MeasureCalc(Table_PI[[#This Row],[Hide:\nFormula Name]],Table_PI[[#This Row],[Quantity]],Table_PI[[#This Row],[List 1]],Table_PI[[#This Row],[List 2]],Table_PI[[#This Row],[List 3]],Table_PI[[#This Row],[Size]],Table_PI[[#This Row],[Input 1]],Table_PI[[#This Row],[Input 2]],Table_PI[[#This Row],[Input 3]],Table_PI[[#This Row],[Input 4]],'Customer Information'!$AR$12,1,ROW())>0,MeasureCalc(Table_PI[[#This Row],[Hide:\nFormula Name]],Table_PI[[#This Row],[Quantity]],Table_PI[[#This Row],[List 1]],Table_PI[[#This Row],[List 2]],Table_PI[[#This Row],[List 3]],Table_PI[[#This Row],[Size]],Table_PI[[#This Row],[Input 1]],Table_PI[[#This Row],[Input 2]],Table_PI[[#This Row],[Input 3]],Table_PI[[#This Row],[Input 4]],'Customer Information'!$AR$12,3,ROW()),\"No Rebate\"),\"No Rebate\"),0)","v":0},{"$f":"IF(Table_PI[[#This Row],[Hide:\nFormula Name]]<>\"\",IFERROR(IF(MeasureCalc(Table_PI[[#This Row],[Hide:\nFormula Name]],Table_PI[[#This Row],[Quantity]],Table_PI[[#This Row],[List 1]],Table_PI[[#This Row],[List 2]],Table_PI[[#This Row],[List 3]],Table_PI[[#This Row],[Size]],Table_PI[[#This Row],[Input 1]],Table_PI[[#This Row],[Input 2]],Table_PI[[#This Row],[Input 3]],Table_PI[[#This Row],[Input 4]],'Customer Information'!$AR$12,1,ROW())>0,MeasureCalc(Table_PI[[#This Row],[Hide:\nFormula Name]],Table_PI[[#This Row],[Quantity]],Table_PI[[#This Row],[List 1]],Table_PI[[#This Row],[List 2]],Table_PI[[#This Row],[List 3]],Table_PI[[#This Row],[Size]],Table_PI[[#This Row],[Input 1]],Table_PI[[#This Row],[Input 2]],Table_PI[[#This Row],[Input 3]],Table_PI[[#This Row],[Input 4]],'Customer Information'!$AR$12,4,ROW()),\"No Rebate\"),\"No Rebate\"),0)","v":0},{"$f":"IF(Table_PI[[#This Row],[Hide:\nFormula Name]]<>\"\",IFERROR(IF(MeasureCalc(Table_PI[[#This Row],[Hide:\nFormula Name]],Table_PI[[#This Row],[Quantity]],Table_PI[[#This Row],[List 1]],Table_PI[[#This Row],[List 2]],Table_PI[[#This Row],[List 3]],Table_PI[[#This Row],[Size]],Table_PI[[#This Row],[Input 1]],Table_PI[[#This Row],[Input 2]],Table_PI[[#This Row],[Input 3]],Table_PI[[#This Row],[Input 4]],'Customer Information'!$AR$12,1,ROW())>0,MeasureCalc(Table_PI[[#This Row],[Hide:\nFormula Name]],Table_PI[[#This Row],[Quantity]],Table_PI[[#This Row],[List 1]],Table_PI[[#This Row],[List 2]],Table_PI[[#This Row],[List 3]],Table_PI[[#This Row],[Size]],Table_PI[[#This Row],[Input 1]],Table_PI[[#This Row],[Input 2]],Table_PI[[#This Row],[Input 3]],Table_PI[[#This Row],[Input 4]],'Customer Information'!$AR$12,5,ROW()),\"No Rebate\"),\"No Rebate\"),0)","v":0},{"$f":"IF(Table_PI[[#This Row],[Hide:\nFormula Name]]<>\"\",IFERROR(IF(MeasureCalc(Table_PI[[#This Row],[Hide:\nFormula Name]],Table_PI[[#This Row],[Quantity]],Table_PI[[#This Row],[List 1]],Table_PI[[#This Row],[List 2]],Table_PI[[#This Row],[List 3]],Table_PI[[#This Row],[Size]],Table_PI[[#This Row],[Input 1]],Table_PI[[#This Row],[Input 2]],Table_PI[[#This Row],[Input 3]],Table_PI[[#This Row],[Input 4]],'Customer Information'!$AR$12,1,ROW())>0,MeasureCalc(Table_PI[[#This Row],[Hide:\nFormula Name]],Table_PI[[#This Row],[Quantity]],Table_PI[[#This Row],[List 1]],Table_PI[[#This Row],[List 2]],Table_PI[[#This Row],[List 3]],Table_PI[[#This Row],[Size]],Table_PI[[#This Row],[Input 1]],Table_PI[[#This Row],[Input 2]],Table_PI[[#This Row],[Input 3]],Table_PI[[#This Row],[Input 4]],'Customer Information'!$AR$12,6,ROW()),\"No Rebate\"),\"No Rebate\"),0)","v":0},{"$f":"IF(Table_PI[[#This Row],[Hide:\nFormula Name]]<>\"\",IFERROR(IF(MeasureCalc(Table_PI[[#This Row],[Hide:\nFormula Name]],Table_PI[[#This Row],[Quantity]],Table_PI[[#This Row],[List 1]],Table_PI[[#This Row],[List 2]],Table_PI[[#This Row],[List 3]],Table_PI[[#This Row],[Size]],Table_PI[[#This Row],[Input 1]],Table_PI[[#This Row],[Input 2]],Table_PI[[#This Row],[Input 3]],Table_PI[[#This Row],[Input 4]],'Customer Information'!$AR$12,1,ROW())>0,MeasureCalc(Table_PI[[#This Row],[Hide:\nFormula Name]],Table_PI[[#This Row],[Quantity]],Table_PI[[#This Row],[List 1]],Table_PI[[#This Row],[List 2]],Table_PI[[#This Row],[List 3]],Table_PI[[#This Row],[Size]],Table_PI[[#This Row],[Input 1]],Table_PI[[#This Row],[Input 2]],Table_PI[[#This Row],[Input 3]],Table_PI[[#This Row],[Input 4]],'Customer Information'!$AR$12,7,ROW()),\"No Rebate\"),\"No Rebate\"),0)","v":0},{"$f":"IF(Table_PI[[#This Row],[Hide:\nFormula Name]]<>\"\",IFERROR(IF(MeasureCalc(Table_PI[[#This Row],[Hide:\nFormula Name]],Table_PI[[#This Row],[Quantity]],Table_PI[[#This Row],[List 1]],Table_PI[[#This Row],[List 2]],Table_PI[[#This Row],[List 3]],Table_PI[[#This Row],[Size]],Table_PI[[#This Row],[Input 1]],Table_PI[[#This Row],[Input 2]],Table_PI[[#This Row],[Input 3]],Table_PI[[#This Row],[Input 4]],'Customer Information'!$AR$12,1,ROW())>0,MeasureCalc(Table_PI[[#This Row],[Hide:\nFormula Name]],Table_PI[[#This Row],[Quantity]],Table_PI[[#This Row],[List 1]],Table_PI[[#This Row],[List 2]],Table_PI[[#This Row],[List 3]],Table_PI[[#This Row],[Size]],Table_PI[[#This Row],[Input 1]],Table_PI[[#This Row],[Input 2]],Table_PI[[#This Row],[Input 3]],Table_PI[[#This Row],[Input 4]],'Customer Information'!$AR$12,8,ROW()),\"No Rebate\"),\"No Rebate\"),0)","v":0},{"$f":"IF(Table_PI[[#This Row],[Hide:\nFormula Name]]<>\"\",IF(AND(Table_PI[[#This Row],[Hide:\nFormula Name]]<>\"\",OR(Table_PI[[#This Row],[Rebate]]>0,Table_PI[[#This Row],[Rebate]]=\"No Rebate\")),TRUE,\"MI: Line Item \" & $A107),\"\")","v":""}]
[{"$f":"IF(Table_PI[[#This Row],[Hide:\nFormula Name]]<>\"\",MAX($A$2:A107)+1,\"\")","v":""},null,null,null,null,null,null,null,null,null,null,null,null,null,null,{"$f":"IFERROR(VLOOKUP(Table_PI[[#This Row],[Measure]],'Equipment Lookups'!$C$3:$D$23,2,FALSE),\"\")","v":""},{"$f":"IF(Table_PI[[#This Row],[Hide:\nFormula Name]]<>\"\",IFERROR(IF(MeasureCalc(Table_PI[[#This Row],[Hide:\nFormula Name]],Table_PI[[#This Row],[Quantity]],Table_PI[[#This Row],[List 1]],Table_PI[[#This Row],[List 2]],Table_PI[[#This Row],[List 3]],Table_PI[[#This Row],[Size]],Table_PI[[#This Row],[Input 1]],Table_PI[[#This Row],[Input 2]],Table_PI[[#This Row],[Input 3]],Table_PI[[#This Row],[Input 4]],'Customer Information'!$AR$12,1,ROW())>0,MeasureCalc(Table_PI[[#This Row],[Hide:\nFormula Name]],Table_PI[[#This Row],[Quantity]],Table_PI[[#This Row],[List 1]],Table_PI[[#This Row],[List 2]],Table_PI[[#This Row],[List 3]],Table_PI[[#This Row],[Size]],Table_PI[[#This Row],[Input 1]],Table_PI[[#This Row],[Input 2]],Table_PI[[#This Row],[Input 3]],Table_PI[[#This Row],[Input 4]],'Customer Information'!$AR$12,1,ROW()),\"No Rebate\"),\"No Rebate\"),0)","v":0},{"$f":"IF(Table_PI[[#This Row],[Hide:\nFormula Name]]<>\"\",IFERROR(IF(MeasureCalc(Table_PI[[#This Row],[Hide:\nFormula Name]],Table_PI[[#This Row],[Quantity]],Table_PI[[#This Row],[List 1]],Table_PI[[#This Row],[List 2]],Table_PI[[#This Row],[List 3]],Table_PI[[#This Row],[Size]],Table_PI[[#This Row],[Input 1]],Table_PI[[#This Row],[Input 2]],Table_PI[[#This Row],[Input 3]],Table_PI[[#This Row],[Input 4]],'Customer Information'!$AR$12,1,ROW())>0,MeasureCalc(Table_PI[[#This Row],[Hide:\nFormula Name]],Table_PI[[#This Row],[Quantity]],Table_PI[[#This Row],[List 1]],Table_PI[[#This Row],[List 2]],Table_PI[[#This Row],[List 3]],Table_PI[[#This Row],[Size]],Table_PI[[#This Row],[Input 1]],Table_PI[[#This Row],[Input 2]],Table_PI[[#This Row],[Input 3]],Table_PI[[#This Row],[Input 4]],'Customer Information'!$AR$12,2,ROW()),\"No Rebate\"),\"No Rebate\"),0)","v":0},{"$f":"IF(Table_PI[[#This Row],[Hide:\nFormula Name]]<>\"\",IFERROR(IF(MeasureCalc(Table_PI[[#This Row],[Hide:\nFormula Name]],Table_PI[[#This Row],[Quantity]],Table_PI[[#This Row],[List 1]],Table_PI[[#This Row],[List 2]],Table_PI[[#This Row],[List 3]],Table_PI[[#This Row],[Size]],Table_PI[[#This Row],[Input 1]],Table_PI[[#This Row],[Input 2]],Table_PI[[#This Row],[Input 3]],Table_PI[[#This Row],[Input 4]],'Customer Information'!$AR$12,1,ROW())>0,MeasureCalc(Table_PI[[#This Row],[Hide:\nFormula Name]],Table_PI[[#This Row],[Quantity]],Table_PI[[#This Row],[List 1]],Table_PI[[#This Row],[List 2]],Table_PI[[#This Row],[List 3]],Table_PI[[#This Row],[Size]],Table_PI[[#This Row],[Input 1]],Table_PI[[#This Row],[Input 2]],Table_PI[[#This Row],[Input 3]],Table_PI[[#This Row],[Input 4]],'Customer Information'!$AR$12,3,ROW()),\"No Rebate\"),\"No Rebate\"),0)","v":0},{"$f":"IF(Table_PI[[#This Row],[Hide:\nFormula Name]]<>\"\",IFERROR(IF(MeasureCalc(Table_PI[[#This Row],[Hide:\nFormula Name]],Table_PI[[#This Row],[Quantity]],Table_PI[[#This Row],[List 1]],Table_PI[[#This Row],[List 2]],Table_PI[[#This Row],[List 3]],Table_PI[[#This Row],[Size]],Table_PI[[#This Row],[Input 1]],Table_PI[[#This Row],[Input 2]],Table_PI[[#This Row],[Input 3]],Table_PI[[#This Row],[Input 4]],'Customer Information'!$AR$12,1,ROW())>0,MeasureCalc(Table_PI[[#This Row],[Hide:\nFormula Name]],Table_PI[[#This Row],[Quantity]],Table_PI[[#This Row],[List 1]],Table_PI[[#This Row],[List 2]],Table_PI[[#This Row],[List 3]],Table_PI[[#This Row],[Size]],Table_PI[[#This Row],[Input 1]],Table_PI[[#This Row],[Input 2]],Table_PI[[#This Row],[Input 3]],Table_PI[[#This Row],[Input 4]],'Customer Information'!$AR$12,4,ROW()),\"No Rebate\"),\"No Rebate\"),0)","v":0},{"$f":"IF(Table_PI[[#This Row],[Hide:\nFormula Name]]<>\"\",IFERROR(IF(MeasureCalc(Table_PI[[#This Row],[Hide:\nFormula Name]],Table_PI[[#This Row],[Quantity]],Table_PI[[#This Row],[List 1]],Table_PI[[#This Row],[List 2]],Table_PI[[#This Row],[List 3]],Table_PI[[#This Row],[Size]],Table_PI[[#This Row],[Input 1]],Table_PI[[#This Row],[Input 2]],Table_PI[[#This Row],[Input 3]],Table_PI[[#This Row],[Input 4]],'Customer Information'!$AR$12,1,ROW())>0,MeasureCalc(Table_PI[[#This Row],[Hide:\nFormula Name]],Table_PI[[#This Row],[Quantity]],Table_PI[[#This Row],[List 1]],Table_PI[[#This Row],[List 2]],Table_PI[[#This Row],[List 3]],Table_PI[[#This Row],[Size]],Table_PI[[#This Row],[Input 1]],Table_PI[[#This Row],[Input 2]],Table_PI[[#This Row],[Input 3]],Table_PI[[#This Row],[Input 4]],'Customer Information'!$AR$12,5,ROW()),\"No Rebate\"),\"No Rebate\"),0)","v":0},{"$f":"IF(Table_PI[[#This Row],[Hide:\nFormula Name]]<>\"\",IFERROR(IF(MeasureCalc(Table_PI[[#This Row],[Hide:\nFormula Name]],Table_PI[[#This Row],[Quantity]],Table_PI[[#This Row],[List 1]],Table_PI[[#This Row],[List 2]],Table_PI[[#This Row],[List 3]],Table_PI[[#This Row],[Size]],Table_PI[[#This Row],[Input 1]],Table_PI[[#This Row],[Input 2]],Table_PI[[#This Row],[Input 3]],Table_PI[[#This Row],[Input 4]],'Customer Information'!$AR$12,1,ROW())>0,MeasureCalc(Table_PI[[#This Row],[Hide:\nFormula Name]],Table_PI[[#This Row],[Quantity]],Table_PI[[#This Row],[List 1]],Table_PI[[#This Row],[List 2]],Table_PI[[#This Row],[List 3]],Table_PI[[#This Row],[Size]],Table_PI[[#This Row],[Input 1]],Table_PI[[#This Row],[Input 2]],Table_PI[[#This Row],[Input 3]],Table_PI[[#This Row],[Input 4]],'Customer Information'!$AR$12,6,ROW()),\"No Rebate\"),\"No Rebate\"),0)","v":0},{"$f":"IF(Table_PI[[#This Row],[Hide:\nFormula Name]]<>\"\",IFERROR(IF(MeasureCalc(Table_PI[[#This Row],[Hide:\nFormula Name]],Table_PI[[#This Row],[Quantity]],Table_PI[[#This Row],[List 1]],Table_PI[[#This Row],[List 2]],Table_PI[[#This Row],[List 3]],Table_PI[[#This Row],[Size]],Table_PI[[#This Row],[Input 1]],Table_PI[[#This Row],[Input 2]],Table_PI[[#This Row],[Input 3]],Table_PI[[#This Row],[Input 4]],'Customer Information'!$AR$12,1,ROW())>0,MeasureCalc(Table_PI[[#This Row],[Hide:\nFormula Name]],Table_PI[[#This Row],[Quantity]],Table_PI[[#This Row],[List 1]],Table_PI[[#This Row],[List 2]],Table_PI[[#This Row],[List 3]],Table_PI[[#This Row],[Size]],Table_PI[[#This Row],[Input 1]],Table_PI[[#This Row],[Input 2]],Table_PI[[#This Row],[Input 3]],Table_PI[[#This Row],[Input 4]],'Customer Information'!$AR$12,7,ROW()),\"No Rebate\"),\"No Rebate\"),0)","v":0},{"$f":"IF(Table_PI[[#This Row],[Hide:\nFormula Name]]<>\"\",IFERROR(IF(MeasureCalc(Table_PI[[#This Row],[Hide:\nFormula Name]],Table_PI[[#This Row],[Quantity]],Table_PI[[#This Row],[List 1]],Table_PI[[#This Row],[List 2]],Table_PI[[#This Row],[List 3]],Table_PI[[#This Row],[Size]],Table_PI[[#This Row],[Input 1]],Table_PI[[#This Row],[Input 2]],Table_PI[[#This Row],[Input 3]],Table_PI[[#This Row],[Input 4]],'Customer Information'!$AR$12,1,ROW())>0,MeasureCalc(Table_PI[[#This Row],[Hide:\nFormula Name]],Table_PI[[#This Row],[Quantity]],Table_PI[[#This Row],[List 1]],Table_PI[[#This Row],[List 2]],Table_PI[[#This Row],[List 3]],Table_PI[[#This Row],[Size]],Table_PI[[#This Row],[Input 1]],Table_PI[[#This Row],[Input 2]],Table_PI[[#This Row],[Input 3]],Table_PI[[#This Row],[Input 4]],'Customer Information'!$AR$12,8,ROW()),\"No Rebate\"),\"No Rebate\"),0)","v":0},{"$f":"IF(Table_PI[[#This Row],[Hide:\nFormula Name]]<>\"\",IF(AND(Table_PI[[#This Row],[Hide:\nFormula Name]]<>\"\",OR(Table_PI[[#This Row],[Rebate]]>0,Table_PI[[#This Row],[Rebate]]=\"No Rebate\")),TRUE,\"MI: Line Item \" & $A108),\"\")","v":""}]
[{"$f":"IF(Table_PI[[#This Row],[Hide:\nFormula Name]]<>\"\",MAX($A$2:A108)+1,\"\")","v":""},null,null,null,null,null,null,null,null,null,null,null,null,null,null,{"$f":"IFERROR(VLOOKUP(Table_PI[[#This Row],[Measure]],'Equipment Lookups'!$C$3:$D$23,2,FALSE),\"\")","v":""},{"$f":"IF(Table_PI[[#This Row],[Hide:\nFormula Name]]<>\"\",IFERROR(IF(MeasureCalc(Table_PI[[#This Row],[Hide:\nFormula Name]],Table_PI[[#This Row],[Quantity]],Table_PI[[#This Row],[List 1]],Table_PI[[#This Row],[List 2]],Table_PI[[#This Row],[List 3]],Table_PI[[#This Row],[Size]],Table_PI[[#This Row],[Input 1]],Table_PI[[#This Row],[Input 2]],Table_PI[[#This Row],[Input 3]],Table_PI[[#This Row],[Input 4]],'Customer Information'!$AR$12,1,ROW())>0,MeasureCalc(Table_PI[[#This Row],[Hide:\nFormula Name]],Table_PI[[#This Row],[Quantity]],Table_PI[[#This Row],[List 1]],Table_PI[[#This Row],[List 2]],Table_PI[[#This Row],[List 3]],Table_PI[[#This Row],[Size]],Table_PI[[#This Row],[Input 1]],Table_PI[[#This Row],[Input 2]],Table_PI[[#This Row],[Input 3]],Table_PI[[#This Row],[Input 4]],'Customer Information'!$AR$12,1,ROW()),\"No Rebate\"),\"No Rebate\"),0)","v":0},{"$f":"IF(Table_PI[[#This Row],[Hide:\nFormula Name]]<>\"\",IFERROR(IF(MeasureCalc(Table_PI[[#This Row],[Hide:\nFormula Name]],Table_PI[[#This Row],[Quantity]],Table_PI[[#This Row],[List 1]],Table_PI[[#This Row],[List 2]],Table_PI[[#This Row],[List 3]],Table_PI[[#This Row],[Size]],Table_PI[[#This Row],[Input 1]],Table_PI[[#This Row],[Input 2]],Table_PI[[#This Row],[Input 3]],Table_PI[[#This Row],[Input 4]],'Customer Information'!$AR$12,1,ROW())>0,MeasureCalc(Table_PI[[#This Row],[Hide:\nFormula Name]],Table_PI[[#This Row],[Quantity]],Table_PI[[#This Row],[List 1]],Table_PI[[#This Row],[List 2]],Table_PI[[#This Row],[List 3]],Table_PI[[#This Row],[Size]],Table_PI[[#This Row],[Input 1]],Table_PI[[#This Row],[Input 2]],Table_PI[[#This Row],[Input 3]],Table_PI[[#This Row],[Input 4]],'Customer Information'!$AR$12,2,ROW()),\"No Rebate\"),\"No Rebate\"),0)","v":0},{"$f":"IF(Table_PI[[#This Row],[Hide:\nFormula Name]]<>\"\",IFERROR(IF(MeasureCalc(Table_PI[[#This Row],[Hide:\nFormula Name]],Table_PI[[#This Row],[Quantity]],Table_PI[[#This Row],[List 1]],Table_PI[[#This Row],[List 2]],Table_PI[[#This Row],[List 3]],Table_PI[[#This Row],[Size]],Table_PI[[#This Row],[Input 1]],Table_PI[[#This Row],[Input 2]],Table_PI[[#This Row],[Input 3]],Table_PI[[#This Row],[Input 4]],'Customer Information'!$AR$12,1,ROW())>0,MeasureCalc(Table_PI[[#This Row],[Hide:\nFormula Name]],Table_PI[[#This Row],[Quantity]],Table_PI[[#This Row],[List 1]],Table_PI[[#This Row],[List 2]],Table_PI[[#This Row],[List 3]],Table_PI[[#This Row],[Size]],Table_PI[[#This Row],[Input 1]],Table_PI[[#This Row],[Input 2]],Table_PI[[#This Row],[Input 3]],Table_PI[[#This Row],[Input 4]],'Customer Information'!$AR$12,3,ROW()),\"No Rebate\"),\"No Rebate\"),0)","v":0},{"$f":"IF(Table_PI[[#This Row],[Hide:\nFormula Name]]<>\"\",IFERROR(IF(MeasureCalc(Table_PI[[#This Row],[Hide:\nFormula Name]],Table_PI[[#This Row],[Quantity]],Table_PI[[#This Row],[List 1]],Table_PI[[#This Row],[List 2]],Table_PI[[#This Row],[List 3]],Table_PI[[#This Row],[Size]],Table_PI[[#This Row],[Input 1]],Table_PI[[#This Row],[Input 2]],Table_PI[[#This Row],[Input 3]],Table_PI[[#This Row],[Input 4]],'Customer Information'!$AR$12,1,ROW())>0,MeasureCalc(Table_PI[[#This Row],[Hide:\nFormula Name]],Table_PI[[#This Row],[Quantity]],Table_PI[[#This Row],[List 1]],Table_PI[[#This Row],[List 2]],Table_PI[[#This Row],[List 3]],Table_PI[[#This Row],[Size]],Table_PI[[#This Row],[Input 1]],Table_PI[[#This Row],[Input 2]],Table_PI[[#This Row],[Input 3]],Table_PI[[#This Row],[Input 4]],'Customer Information'!$AR$12,4,ROW()),\"No Rebate\"),\"No Rebate\"),0)","v":0},{"$f":"IF(Table_PI[[#This Row],[Hide:\nFormula Name]]<>\"\",IFERROR(IF(MeasureCalc(Table_PI[[#This Row],[Hide:\nFormula Name]],Table_PI[[#This Row],[Quantity]],Table_PI[[#This Row],[List 1]],Table_PI[[#This Row],[List 2]],Table_PI[[#This Row],[List 3]],Table_PI[[#This Row],[Size]],Table_PI[[#This Row],[Input 1]],Table_PI[[#This Row],[Input 2]],Table_PI[[#This Row],[Input 3]],Table_PI[[#This Row],[Input 4]],'Customer Information'!$AR$12,1,ROW())>0,MeasureCalc(Table_PI[[#This Row],[Hide:\nFormula Name]],Table_PI[[#This Row],[Quantity]],Table_PI[[#This Row],[List 1]],Table_PI[[#This Row],[List 2]],Table_PI[[#This Row],[List 3]],Table_PI[[#This Row],[Size]],Table_PI[[#This Row],[Input 1]],Table_PI[[#This Row],[Input 2]],Table_PI[[#This Row],[Input 3]],Table_PI[[#This Row],[Input 4]],'Customer Information'!$AR$12,5,ROW()),\"No Rebate\"),\"No Rebate\"),0)","v":0},{"$f":"IF(Table_PI[[#This Row],[Hide:\nFormula Name]]<>\"\",IFERROR(IF(MeasureCalc(Table_PI[[#This Row],[Hide:\nFormula Name]],Table_PI[[#This Row],[Quantity]],Table_PI[[#This Row],[List 1]],Table_PI[[#This Row],[List 2]],Table_PI[[#This Row],[List 3]],Table_PI[[#This Row],[Size]],Table_PI[[#This Row],[Input 1]],Table_PI[[#This Row],[Input 2]],Table_PI[[#This Row],[Input 3]],Table_PI[[#This Row],[Input 4]],'Customer Information'!$AR$12,1,ROW())>0,MeasureCalc(Table_PI[[#This Row],[Hide:\nFormula Name]],Table_PI[[#This Row],[Quantity]],Table_PI[[#This Row],[List 1]],Table_PI[[#This Row],[List 2]],Table_PI[[#This Row],[List 3]],Table_PI[[#This Row],[Size]],Table_PI[[#This Row],[Input 1]],Table_PI[[#This Row],[Input 2]],Table_PI[[#This Row],[Input 3]],Table_PI[[#This Row],[Input 4]],'Customer Information'!$AR$12,6,ROW()),\"No Rebate\"),\"No Rebate\"),0)","v":0},{"$f":"IF(Table_PI[[#This Row],[Hide:\nFormula Name]]<>\"\",IFERROR(IF(MeasureCalc(Table_PI[[#This Row],[Hide:\nFormula Name]],Table_PI[[#This Row],[Quantity]],Table_PI[[#This Row],[List 1]],Table_PI[[#This Row],[List 2]],Table_PI[[#This Row],[List 3]],Table_PI[[#This Row],[Size]],Table_PI[[#This Row],[Input 1]],Table_PI[[#This Row],[Input 2]],Table_PI[[#This Row],[Input 3]],Table_PI[[#This Row],[Input 4]],'Customer Information'!$AR$12,1,ROW())>0,MeasureCalc(Table_PI[[#This Row],[Hide:\nFormula Name]],Table_PI[[#This Row],[Quantity]],Table_PI[[#This Row],[List 1]],Table_PI[[#This Row],[List 2]],Table_PI[[#This Row],[List 3]],Table_PI[[#This Row],[Size]],Table_PI[[#This Row],[Input 1]],Table_PI[[#This Row],[Input 2]],Table_PI[[#This Row],[Input 3]],Table_PI[[#This Row],[Input 4]],'Customer Information'!$AR$12,7,ROW()),\"No Rebate\"),\"No Rebate\"),0)","v":0},{"$f":"IF(Table_PI[[#This Row],[Hide:\nFormula Name]]<>\"\",IFERROR(IF(MeasureCalc(Table_PI[[#This Row],[Hide:\nFormula Name]],Table_PI[[#This Row],[Quantity]],Table_PI[[#This Row],[List 1]],Table_PI[[#This Row],[List 2]],Table_PI[[#This Row],[List 3]],Table_PI[[#This Row],[Size]],Table_PI[[#This Row],[Input 1]],Table_PI[[#This Row],[Input 2]],Table_PI[[#This Row],[Input 3]],Table_PI[[#This Row],[Input 4]],'Customer Information'!$AR$12,1,ROW())>0,MeasureCalc(Table_PI[[#This Row],[Hide:\nFormula Name]],Table_PI[[#This Row],[Quantity]],Table_PI[[#This Row],[List 1]],Table_PI[[#This Row],[List 2]],Table_PI[[#This Row],[List 3]],Table_PI[[#This Row],[Size]],Table_PI[[#This Row],[Input 1]],Table_PI[[#This Row],[Input 2]],Table_PI[[#This Row],[Input 3]],Table_PI[[#This Row],[Input 4]],'Customer Information'!$AR$12,8,ROW()),\"No Rebate\"),\"No Rebate\"),0)","v":0},{"$f":"IF(Table_PI[[#This Row],[Hide:\nFormula Name]]<>\"\",IF(AND(Table_PI[[#This Row],[Hide:\nFormula Name]]<>\"\",OR(Table_PI[[#This Row],[Rebate]]>0,Table_PI[[#This Row],[Rebate]]=\"No Rebate\")),TRUE,\"MI: Line Item \" & $A109),\"\")","v":""}]
[{"$f":"IF(Table_PI[[#This Row],[Hide:\nFormula Name]]<>\"\",MAX($A$2:A109)+1,\"\")","v":""},null,null,null,null,null,null,null,null,null,null,null,null,null,null,{"$f":"IFERROR(VLOOKUP(Table_PI[[#This Row],[Measure]],'Equipment Lookups'!$C$3:$D$23,2,FALSE),\"\")","v":""},{"$f":"IF(Table_PI[[#This Row],[Hide:\nFormula Name]]<>\"\",IFERROR(IF(MeasureCalc(Table_PI[[#This Row],[Hide:\nFormula Name]],Table_PI[[#This Row],[Quantity]],Table_PI[[#This Row],[List 1]],Table_PI[[#This Row],[List 2]],Table_PI[[#This Row],[List 3]],Table_PI[[#This Row],[Size]],Table_PI[[#This Row],[Input 1]],Table_PI[[#This Row],[Input 2]],Table_PI[[#This Row],[Input 3]],Table_PI[[#This Row],[Input 4]],'Customer Information'!$AR$12,1,ROW())>0,MeasureCalc(Table_PI[[#This Row],[Hide:\nFormula Name]],Table_PI[[#This Row],[Quantity]],Table_PI[[#This Row],[List 1]],Table_PI[[#This Row],[List 2]],Table_PI[[#This Row],[List 3]],Table_PI[[#This Row],[Size]],Table_PI[[#This Row],[Input 1]],Table_PI[[#This Row],[Input 2]],Table_PI[[#This Row],[Input 3]],Table_PI[[#This Row],[Input 4]],'Customer Information'!$AR$12,1,ROW()),\"No Rebate\"),\"No Rebate\"),0)","v":0},{"$f":"IF(Table_PI[[#This Row],[Hide:\nFormula Name]]<>\"\",IFERROR(IF(MeasureCalc(Table_PI[[#This Row],[Hide:\nFormula Name]],Table_PI[[#This Row],[Quantity]],Table_PI[[#This Row],[List 1]],Table_PI[[#This Row],[List 2]],Table_PI[[#This Row],[List 3]],Table_PI[[#This Row],[Size]],Table_PI[[#This Row],[Input 1]],Table_PI[[#This Row],[Input 2]],Table_PI[[#This Row],[Input 3]],Table_PI[[#This Row],[Input 4]],'Customer Information'!$AR$12,1,ROW())>0,MeasureCalc(Table_PI[[#This Row],[Hide:\nFormula Name]],Table_PI[[#This Row],[Quantity]],Table_PI[[#This Row],[List 1]],Table_PI[[#This Row],[List 2]],Table_PI[[#This Row],[List 3]],Table_PI[[#This Row],[Size]],Table_PI[[#This Row],[Input 1]],Table_PI[[#This Row],[Input 2]],Table_PI[[#This Row],[Input 3]],Table_PI[[#This Row],[Input 4]],'Customer Information'!$AR$12,2,ROW()),\"No Rebate\"),\"No Rebate\"),0)","v":0},{"$f":"IF(Table_PI[[#This Row],[Hide:\nFormula Name]]<>\"\",IFERROR(IF(MeasureCalc(Table_PI[[#This Row],[Hide:\nFormula Name]],Table_PI[[#This Row],[Quantity]],Table_PI[[#This Row],[List 1]],Table_PI[[#This Row],[List 2]],Table_PI[[#This Row],[List 3]],Table_PI[[#This Row],[Size]],Table_PI[[#This Row],[Input 1]],Table_PI[[#This Row],[Input 2]],Table_PI[[#This Row],[Input 3]],Table_PI[[#This Row],[Input 4]],'Customer Information'!$AR$12,1,ROW())>0,MeasureCalc(Table_PI[[#This Row],[Hide:\nFormula Name]],Table_PI[[#This Row],[Quantity]],Table_PI[[#This Row],[List 1]],Table_PI[[#This Row],[List 2]],Table_PI[[#This Row],[List 3]],Table_PI[[#This Row],[Size]],Table_PI[[#This Row],[Input 1]],Table_PI[[#This Row],[Input 2]],Table_PI[[#This Row],[Input 3]],Table_PI[[#This Row],[Input 4]],'Customer Information'!$AR$12,3,ROW()),\"No Rebate\"),\"No Rebate\"),0)","v":0},{"$f":"IF(Table_PI[[#This Row],[Hide:\nFormula Name]]<>\"\",IFERROR(IF(MeasureCalc(Table_PI[[#This Row],[Hide:\nFormula Name]],Table_PI[[#This Row],[Quantity]],Table_PI[[#This Row],[List 1]],Table_PI[[#This Row],[List 2]],Table_PI[[#This Row],[List 3]],Table_PI[[#This Row],[Size]],Table_PI[[#This Row],[Input 1]],Table_PI[[#This Row],[Input 2]],Table_PI[[#This Row],[Input 3]],Table_PI[[#This Row],[Input 4]],'Customer Information'!$AR$12,1,ROW())>0,MeasureCalc(Table_PI[[#This Row],[Hide:\nFormula Name]],Table_PI[[#This Row],[Quantity]],Table_PI[[#This Row],[List 1]],Table_PI[[#This Row],[List 2]],Table_PI[[#This Row],[List 3]],Table_PI[[#This Row],[Size]],Table_PI[[#This Row],[Input 1]],Table_PI[[#This Row],[Input 2]],Table_PI[[#This Row],[Input 3]],Table_PI[[#This Row],[Input 4]],'Customer Information'!$AR$12,4,ROW()),\"No Rebate\"),\"No Rebate\"),0)","v":0},{"$f":"IF(Table_PI[[#This Row],[Hide:\nFormula Name]]<>\"\",IFERROR(IF(MeasureCalc(Table_PI[[#This Row],[Hide:\nFormula Name]],Table_PI[[#This Row],[Quantity]],Table_PI[[#This Row],[List 1]],Table_PI[[#This Row],[List 2]],Table_PI[[#This Row],[List 3]],Table_PI[[#This Row],[Size]],Table_PI[[#This Row],[Input 1]],Table_PI[[#This Row],[Input 2]],Table_PI[[#This Row],[Input 3]],Table_PI[[#This Row],[Input 4]],'Customer Information'!$AR$12,1,ROW())>0,MeasureCalc(Table_PI[[#This Row],[Hide:\nFormula Name]],Table_PI[[#This Row],[Quantity]],Table_PI[[#This Row],[List 1]],Table_PI[[#This Row],[List 2]],Table_PI[[#This Row],[List 3]],Table_PI[[#This Row],[Size]],Table_PI[[#This Row],[Input 1]],Table_PI[[#This Row],[Input 2]],Table_PI[[#This Row],[Input 3]],Table_PI[[#This Row],[Input 4]],'Customer Information'!$AR$12,5,ROW()),\"No Rebate\"),\"No Rebate\"),0)","v":0},{"$f":"IF(Table_PI[[#This Row],[Hide:\nFormula Name]]<>\"\",IFERROR(IF(MeasureCalc(Table_PI[[#This Row],[Hide:\nFormula Name]],Table_PI[[#This Row],[Quantity]],Table_PI[[#This Row],[List 1]],Table_PI[[#This Row],[List 2]],Table_PI[[#This Row],[List 3]],Table_PI[[#This Row],[Size]],Table_PI[[#This Row],[Input 1]],Table_PI[[#This Row],[Input 2]],Table_PI[[#This Row],[Input 3]],Table_PI[[#This Row],[Input 4]],'Customer Information'!$AR$12,1,ROW())>0,MeasureCalc(Table_PI[[#This Row],[Hide:\nFormula Name]],Table_PI[[#This Row],[Quantity]],Table_PI[[#This Row],[List 1]],Table_PI[[#This Row],[List 2]],Table_PI[[#This Row],[List 3]],Table_PI[[#This Row],[Size]],Table_PI[[#This Row],[Input 1]],Table_PI[[#This Row],[Input 2]],Table_PI[[#This Row],[Input 3]],Table_PI[[#This Row],[Input 4]],'Customer Information'!$AR$12,6,ROW()),\"No Rebate\"),\"No Rebate\"),0)","v":0},{"$f":"IF(Table_PI[[#This Row],[Hide:\nFormula Name]]<>\"\",IFERROR(IF(MeasureCalc(Table_PI[[#This Row],[Hide:\nFormula Name]],Table_PI[[#This Row],[Quantity]],Table_PI[[#This Row],[List 1]],Table_PI[[#This Row],[List 2]],Table_PI[[#This Row],[List 3]],Table_PI[[#This Row],[Size]],Table_PI[[#This Row],[Input 1]],Table_PI[[#This Row],[Input 2]],Table_PI[[#This Row],[Input 3]],Table_PI[[#This Row],[Input 4]],'Customer Information'!$AR$12,1,ROW())>0,MeasureCalc(Table_PI[[#This Row],[Hide:\nFormula Name]],Table_PI[[#This Row],[Quantity]],Table_PI[[#This Row],[List 1]],Table_PI[[#This Row],[List 2]],Table_PI[[#This Row],[List 3]],Table_PI[[#This Row],[Size]],Table_PI[[#This Row],[Input 1]],Table_PI[[#This Row],[Input 2]],Table_PI[[#This Row],[Input 3]],Table_PI[[#This Row],[Input 4]],'Customer Information'!$AR$12,7,ROW()),\"No Rebate\"),\"No Rebate\"),0)","v":0},{"$f":"IF(Table_PI[[#This Row],[Hide:\nFormula Name]]<>\"\",IFERROR(IF(MeasureCalc(Table_PI[[#This Row],[Hide:\nFormula Name]],Table_PI[[#This Row],[Quantity]],Table_PI[[#This Row],[List 1]],Table_PI[[#This Row],[List 2]],Table_PI[[#This Row],[List 3]],Table_PI[[#This Row],[Size]],Table_PI[[#This Row],[Input 1]],Table_PI[[#This Row],[Input 2]],Table_PI[[#This Row],[Input 3]],Table_PI[[#This Row],[Input 4]],'Customer Information'!$AR$12,1,ROW())>0,MeasureCalc(Table_PI[[#This Row],[Hide:\nFormula Name]],Table_PI[[#This Row],[Quantity]],Table_PI[[#This Row],[List 1]],Table_PI[[#This Row],[List 2]],Table_PI[[#This Row],[List 3]],Table_PI[[#This Row],[Size]],Table_PI[[#This Row],[Input 1]],Table_PI[[#This Row],[Input 2]],Table_PI[[#This Row],[Input 3]],Table_PI[[#This Row],[Input 4]],'Customer Information'!$AR$12,8,ROW()),\"No Rebate\"),\"No Rebate\"),0)","v":0},{"$f":"IF(Table_PI[[#This Row],[Hide:\nFormula Name]]<>\"\",IF(AND(Table_PI[[#This Row],[Hide:\nFormula Name]]<>\"\",OR(Table_PI[[#This Row],[Rebate]]>0,Table_PI[[#This Row],[Rebate]]=\"No Rebate\")),TRUE,\"MI: Line Item \" & $A110),\"\")","v":""}]
[{"$f":"IF(Table_PI[[#This Row],[Hide:\nFormula Name]]<>\"\",MAX($A$2:A110)+1,\"\")","v":""},null,null,null,null,null,null,null,null,null,null,null,null,null,null,{"$f":"IFERROR(VLOOKUP(Table_PI[[#This Row],[Measure]],'Equipment Lookups'!$C$3:$D$23,2,FALSE),\"\")","v":""},{"$f":"IF(Table_PI[[#This Row],[Hide:\nFormula Name]]<>\"\",IFERROR(IF(MeasureCalc(Table_PI[[#This Row],[Hide:\nFormula Name]],Table_PI[[#This Row],[Quantity]],Table_PI[[#This Row],[List 1]],Table_PI[[#This Row],[List 2]],Table_PI[[#This Row],[List 3]],Table_PI[[#This Row],[Size]],Table_PI[[#This Row],[Input 1]],Table_PI[[#This Row],[Input 2]],Table_PI[[#This Row],[Input 3]],Table_PI[[#This Row],[Input 4]],'Customer Information'!$AR$12,1,ROW())>0,MeasureCalc(Table_PI[[#This Row],[Hide:\nFormula Name]],Table_PI[[#This Row],[Quantity]],Table_PI[[#This Row],[List 1]],Table_PI[[#This Row],[List 2]],Table_PI[[#This Row],[List 3]],Table_PI[[#This Row],[Size]],Table_PI[[#This Row],[Input 1]],Table_PI[[#This Row],[Input 2]],Table_PI[[#This Row],[Input 3]],Table_PI[[#This Row],[Input 4]],'Customer Information'!$AR$12,1,ROW()),\"No Rebate\"),\"No Rebate\"),0)","v":0},{"$f":"IF(Table_PI[[#This Row],[Hide:\nFormula Name]]<>\"\",IFERROR(IF(MeasureCalc(Table_PI[[#This Row],[Hide:\nFormula Name]],Table_PI[[#This Row],[Quantity]],Table_PI[[#This Row],[List 1]],Table_PI[[#This Row],[List 2]],Table_PI[[#This Row],[List 3]],Table_PI[[#This Row],[Size]],Table_PI[[#This Row],[Input 1]],Table_PI[[#This Row],[Input 2]],Table_PI[[#This Row],[Input 3]],Table_PI[[#This Row],[Input 4]],'Customer Information'!$AR$12,1,ROW())>0,MeasureCalc(Table_PI[[#This Row],[Hide:\nFormula Name]],Table_PI[[#This Row],[Quantity]],Table_PI[[#This Row],[List 1]],Table_PI[[#This Row],[List 2]],Table_PI[[#This Row],[List 3]],Table_PI[[#This Row],[Size]],Table_PI[[#This Row],[Input 1]],Table_PI[[#This Row],[Input 2]],Table_PI[[#This Row],[Input 3]],Table_PI[[#This Row],[Input 4]],'Customer Information'!$AR$12,2,ROW()),\"No Rebate\"),\"No Rebate\"),0)","v":0},{"$f":"IF(Table_PI[[#This Row],[Hide:\nFormula Name]]<>\"\",IFERROR(IF(MeasureCalc(Table_PI[[#This Row],[Hide:\nFormula Name]],Table_PI[[#This Row],[Quantity]],Table_PI[[#This Row],[List 1]],Table_PI[[#This Row],[List 2]],Table_PI[[#This Row],[List 3]],Table_PI[[#This Row],[Size]],Table_PI[[#This Row],[Input 1]],Table_PI[[#This Row],[Input 2]],Table_PI[[#This Row],[Input 3]],Table_PI[[#This Row],[Input 4]],'Customer Information'!$AR$12,1,ROW())>0,MeasureCalc(Table_PI[[#This Row],[Hide:\nFormula Name]],Table_PI[[#This Row],[Quantity]],Table_PI[[#This Row],[List 1]],Table_PI[[#This Row],[List 2]],Table_PI[[#This Row],[List 3]],Table_PI[[#This Row],[Size]],Table_PI[[#This Row],[Input 1]],Table_PI[[#This Row],[Input 2]],Table_PI[[#This Row],[Input 3]],Table_PI[[#This Row],[Input 4]],'Customer Information'!$AR$12,3,ROW()),\"No Rebate\"),\"No Rebate\"),0)","v":0},{"$f":"IF(Table_PI[[#This Row],[Hide:\nFormula Name]]<>\"\",IFERROR(IF(MeasureCalc(Table_PI[[#This Row],[Hide:\nFormula Name]],Table_PI[[#This Row],[Quantity]],Table_PI[[#This Row],[List 1]],Table_PI[[#This Row],[List 2]],Table_PI[[#This Row],[List 3]],Table_PI[[#This Row],[Size]],Table_PI[[#This Row],[Input 1]],Table_PI[[#This Row],[Input 2]],Table_PI[[#This Row],[Input 3]],Table_PI[[#This Row],[Input 4]],'Customer Information'!$AR$12,1,ROW())>0,MeasureCalc(Table_PI[[#This Row],[Hide:\nFormula Name]],Table_PI[[#This Row],[Quantity]],Table_PI[[#This Row],[List 1]],Table_PI[[#This Row],[List 2]],Table_PI[[#This Row],[List 3]],Table_PI[[#This Row],[Size]],Table_PI[[#This Row],[Input 1]],Table_PI[[#This Row],[Input 2]],Table_PI[[#This Row],[Input 3]],Table_PI[[#This Row],[Input 4]],'Customer Information'!$AR$12,4,ROW()),\"No Rebate\"),\"No Rebate\"),0)","v":0},{"$f":"IF(Table_PI[[#This Row],[Hide:\nFormula Name]]<>\"\",IFERROR(IF(MeasureCalc(Table_PI[[#This Row],[Hide:\nFormula Name]],Table_PI[[#This Row],[Quantity]],Table_PI[[#This Row],[List 1]],Table_PI[[#This Row],[List 2]],Table_PI[[#This Row],[List 3]],Table_PI[[#This Row],[Size]],Table_PI[[#This Row],[Input 1]],Table_PI[[#This Row],[Input 2]],Table_PI[[#This Row],[Input 3]],Table_PI[[#This Row],[Input 4]],'Customer Information'!$AR$12,1,ROW())>0,MeasureCalc(Table_PI[[#This Row],[Hide:\nFormula Name]],Table_PI[[#This Row],[Quantity]],Table_PI[[#This Row],[List 1]],Table_PI[[#This Row],[List 2]],Table_PI[[#This Row],[List 3]],Table_PI[[#This Row],[Size]],Table_PI[[#This Row],[Input 1]],Table_PI[[#This Row],[Input 2]],Table_PI[[#This Row],[Input 3]],Table_PI[[#This Row],[Input 4]],'Customer Information'!$AR$12,5,ROW()),\"No Rebate\"),\"No Rebate\"),0)","v":0},{"$f":"IF(Table_PI[[#This Row],[Hide:\nFormula Name]]<>\"\",IFERROR(IF(MeasureCalc(Table_PI[[#This Row],[Hide:\nFormula Name]],Table_PI[[#This Row],[Quantity]],Table_PI[[#This Row],[List 1]],Table_PI[[#This Row],[List 2]],Table_PI[[#This Row],[List 3]],Table_PI[[#This Row],[Size]],Table_PI[[#This Row],[Input 1]],Table_PI[[#This Row],[Input 2]],Table_PI[[#This Row],[Input 3]],Table_PI[[#This Row],[Input 4]],'Customer Information'!$AR$12,1,ROW())>0,MeasureCalc(Table_PI[[#This Row],[Hide:\nFormula Name]],Table_PI[[#This Row],[Quantity]],Table_PI[[#This Row],[List 1]],Table_PI[[#This Row],[List 2]],Table_PI[[#This Row],[List 3]],Table_PI[[#This Row],[Size]],Table_PI[[#This Row],[Input 1]],Table_PI[[#This Row],[Input 2]],Table_PI[[#This Row],[Input 3]],Table_PI[[#This Row],[Input 4]],'Customer Information'!$AR$12,6,ROW()),\"No Rebate\"),\"No Rebate\"),0)","v":0},{"$f":"IF(Table_PI[[#This Row],[Hide:\nFormula Name]]<>\"\",IFERROR(IF(MeasureCalc(Table_PI[[#This Row],[Hide:\nFormula Name]],Table_PI[[#This Row],[Quantity]],Table_PI[[#This Row],[List 1]],Table_PI[[#This Row],[List 2]],Table_PI[[#This Row],[List 3]],Table_PI[[#This Row],[Size]],Table_PI[[#This Row],[Input 1]],Table_PI[[#This Row],[Input 2]],Table_PI[[#This Row],[Input 3]],Table_PI[[#This Row],[Input 4]],'Customer Information'!$AR$12,1,ROW())>0,MeasureCalc(Table_PI[[#This Row],[Hide:\nFormula Name]],Table_PI[[#This Row],[Quantity]],Table_PI[[#This Row],[List 1]],Table_PI[[#This Row],[List 2]],Table_PI[[#This Row],[List 3]],Table_PI[[#This Row],[Size]],Table_PI[[#This Row],[Input 1]],Table_PI[[#This Row],[Input 2]],Table_PI[[#This Row],[Input 3]],Table_PI[[#This Row],[Input 4]],'Customer Information'!$AR$12,7,ROW()),\"No Rebate\"),\"No Rebate\"),0)","v":0},{"$f":"IF(Table_PI[[#This Row],[Hide:\nFormula Name]]<>\"\",IFERROR(IF(MeasureCalc(Table_PI[[#This Row],[Hide:\nFormula Name]],Table_PI[[#This Row],[Quantity]],Table_PI[[#This Row],[List 1]],Table_PI[[#This Row],[List 2]],Table_PI[[#This Row],[List 3]],Table_PI[[#This Row],[Size]],Table_PI[[#This Row],[Input 1]],Table_PI[[#This Row],[Input 2]],Table_PI[[#This Row],[Input 3]],Table_PI[[#This Row],[Input 4]],'Customer Information'!$AR$12,1,ROW())>0,MeasureCalc(Table_PI[[#This Row],[Hide:\nFormula Name]],Table_PI[[#This Row],[Quantity]],Table_PI[[#This Row],[List 1]],Table_PI[[#This Row],[List 2]],Table_PI[[#This Row],[List 3]],Table_PI[[#This Row],[Size]],Table_PI[[#This Row],[Input 1]],Table_PI[[#This Row],[Input 2]],Table_PI[[#This Row],[Input 3]],Table_PI[[#This Row],[Input 4]],'Customer Information'!$AR$12,8,ROW()),\"No Rebate\"),\"No Rebate\"),0)","v":0},{"$f":"IF(Table_PI[[#This Row],[Hide:\nFormula Name]]<>\"\",IF(AND(Table_PI[[#This Row],[Hide:\nFormula Name]]<>\"\",OR(Table_PI[[#This Row],[Rebate]]>0,Table_PI[[#This Row],[Rebate]]=\"No Rebate\")),TRUE,\"MI: Line Item \" & $A111),\"\")","v":""}]
[{"$f":"IF(Table_PI[[#This Row],[Hide:\nFormula Name]]<>\"\",MAX($A$2:A111)+1,\"\")","v":""},null,null,null,null,null,null,null,null,null,null,null,null,null,null,{"$f":"IFERROR(VLOOKUP(Table_PI[[#This Row],[Measure]],'Equipment Lookups'!$C$3:$D$23,2,FALSE),\"\")","v":""},{"$f":"IF(Table_PI[[#This Row],[Hide:\nFormula Name]]<>\"\",IFERROR(IF(MeasureCalc(Table_PI[[#This Row],[Hide:\nFormula Name]],Table_PI[[#This Row],[Quantity]],Table_PI[[#This Row],[List 1]],Table_PI[[#This Row],[List 2]],Table_PI[[#This Row],[List 3]],Table_PI[[#This Row],[Size]],Table_PI[[#This Row],[Input 1]],Table_PI[[#This Row],[Input 2]],Table_PI[[#This Row],[Input 3]],Table_PI[[#This Row],[Input 4]],'Customer Information'!$AR$12,1,ROW())>0,MeasureCalc(Table_PI[[#This Row],[Hide:\nFormula Name]],Table_PI[[#This Row],[Quantity]],Table_PI[[#This Row],[List 1]],Table_PI[[#This Row],[List 2]],Table_PI[[#This Row],[List 3]],Table_PI[[#This Row],[Size]],Table_PI[[#This Row],[Input 1]],Table_PI[[#This Row],[Input 2]],Table_PI[[#This Row],[Input 3]],Table_PI[[#This Row],[Input 4]],'Customer Information'!$AR$12,1,ROW()),\"No Rebate\"),\"No Rebate\"),0)","v":0},{"$f":"IF(Table_PI[[#This Row],[Hide:\nFormula Name]]<>\"\",IFERROR(IF(MeasureCalc(Table_PI[[#This Row],[Hide:\nFormula Name]],Table_PI[[#This Row],[Quantity]],Table_PI[[#This Row],[List 1]],Table_PI[[#This Row],[List 2]],Table_PI[[#This Row],[List 3]],Table_PI[[#This Row],[Size]],Table_PI[[#This Row],[Input 1]],Table_PI[[#This Row],[Input 2]],Table_PI[[#This Row],[Input 3]],Table_PI[[#This Row],[Input 4]],'Customer Information'!$AR$12,1,ROW())>0,MeasureCalc(Table_PI[[#This Row],[Hide:\nFormula Name]],Table_PI[[#This Row],[Quantity]],Table_PI[[#This Row],[List 1]],Table_PI[[#This Row],[List 2]],Table_PI[[#This Row],[List 3]],Table_PI[[#This Row],[Size]],Table_PI[[#This Row],[Input 1]],Table_PI[[#This Row],[Input 2]],Table_PI[[#This Row],[Input 3]],Table_PI[[#This Row],[Input 4]],'Customer Information'!$AR$12,2,ROW()),\"No Rebate\"),\"No Rebate\"),0)","v":0},{"$f":"IF(Table_PI[[#This Row],[Hide:\nFormula Name]]<>\"\",IFERROR(IF(MeasureCalc(Table_PI[[#This Row],[Hide:\nFormula Name]],Table_PI[[#This Row],[Quantity]],Table_PI[[#This Row],[List 1]],Table_PI[[#This Row],[List 2]],Table_PI[[#This Row],[List 3]],Table_PI[[#This Row],[Size]],Table_PI[[#This Row],[Input 1]],Table_PI[[#This Row],[Input 2]],Table_PI[[#This Row],[Input 3]],Table_PI[[#This Row],[Input 4]],'Customer Information'!$AR$12,1,ROW())>0,MeasureCalc(Table_PI[[#This Row],[Hide:\nFormula Name]],Table_PI[[#This Row],[Quantity]],Table_PI[[#This Row],[List 1]],Table_PI[[#This Row],[List 2]],Table_PI[[#This Row],[List 3]],Table_PI[[#This Row],[Size]],Table_PI[[#This Row],[Input 1]],Table_PI[[#This Row],[Input 2]],Table_PI[[#This Row],[Input 3]],Table_PI[[#This Row],[Input 4]],'Customer Information'!$AR$12,3,ROW()),\"No Rebate\"),\"No Rebate\"),0)","v":0},{"$f":"IF(Table_PI[[#This Row],[Hide:\nFormula Name]]<>\"\",IFERROR(IF(MeasureCalc(Table_PI[[#This Row],[Hide:\nFormula Name]],Table_PI[[#This Row],[Quantity]],Table_PI[[#This Row],[List 1]],Table_PI[[#This Row],[List 2]],Table_PI[[#This Row],[List 3]],Table_PI[[#This Row],[Size]],Table_PI[[#This Row],[Input 1]],Table_PI[[#This Row],[Input 2]],Table_PI[[#This Row],[Input 3]],Table_PI[[#This Row],[Input 4]],'Customer Information'!$AR$12,1,ROW())>0,MeasureCalc(Table_PI[[#This Row],[Hide:\nFormula Name]],Table_PI[[#This Row],[Quantity]],Table_PI[[#This Row],[List 1]],Table_PI[[#This Row],[List 2]],Table_PI[[#This Row],[List 3]],Table_PI[[#This Row],[Size]],Table_PI[[#This Row],[Input 1]],Table_PI[[#This Row],[Input 2]],Table_PI[[#This Row],[Input 3]],Table_PI[[#This Row],[Input 4]],'Customer Information'!$AR$12,4,ROW()),\"No Rebate\"),\"No Rebate\"),0)","v":0},{"$f":"IF(Table_PI[[#This Row],[Hide:\nFormula Name]]<>\"\",IFERROR(IF(MeasureCalc(Table_PI[[#This Row],[Hide:\nFormula Name]],Table_PI[[#This Row],[Quantity]],Table_PI[[#This Row],[List 1]],Table_PI[[#This Row],[List 2]],Table_PI[[#This Row],[List 3]],Table_PI[[#This Row],[Size]],Table_PI[[#This Row],[Input 1]],Table_PI[[#This Row],[Input 2]],Table_PI[[#This Row],[Input 3]],Table_PI[[#This Row],[Input 4]],'Customer Information'!$AR$12,1,ROW())>0,MeasureCalc(Table_PI[[#This Row],[Hide:\nFormula Name]],Table_PI[[#This Row],[Quantity]],Table_PI[[#This Row],[List 1]],Table_PI[[#This Row],[List 2]],Table_PI[[#This Row],[List 3]],Table_PI[[#This Row],[Size]],Table_PI[[#This Row],[Input 1]],Table_PI[[#This Row],[Input 2]],Table_PI[[#This Row],[Input 3]],Table_PI[[#This Row],[Input 4]],'Customer Information'!$AR$12,5,ROW()),\"No Rebate\"),\"No Rebate\"),0)","v":0},{"$f":"IF(Table_PI[[#This Row],[Hide:\nFormula Name]]<>\"\",IFERROR(IF(MeasureCalc(Table_PI[[#This Row],[Hide:\nFormula Name]],Table_PI[[#This Row],[Quantity]],Table_PI[[#This Row],[List 1]],Table_PI[[#This Row],[List 2]],Table_PI[[#This Row],[List 3]],Table_PI[[#This Row],[Size]],Table_PI[[#This Row],[Input 1]],Table_PI[[#This Row],[Input 2]],Table_PI[[#This Row],[Input 3]],Table_PI[[#This Row],[Input 4]],'Customer Information'!$AR$12,1,ROW())>0,MeasureCalc(Table_PI[[#This Row],[Hide:\nFormula Name]],Table_PI[[#This Row],[Quantity]],Table_PI[[#This Row],[List 1]],Table_PI[[#This Row],[List 2]],Table_PI[[#This Row],[List 3]],Table_PI[[#This Row],[Size]],Table_PI[[#This Row],[Input 1]],Table_PI[[#This Row],[Input 2]],Table_PI[[#This Row],[Input 3]],Table_PI[[#This Row],[Input 4]],'Customer Information'!$AR$12,6,ROW()),\"No Rebate\"),\"No Rebate\"),0)","v":0},{"$f":"IF(Table_PI[[#This Row],[Hide:\nFormula Name]]<>\"\",IFERROR(IF(MeasureCalc(Table_PI[[#This Row],[Hide:\nFormula Name]],Table_PI[[#This Row],[Quantity]],Table_PI[[#This Row],[List 1]],Table_PI[[#This Row],[List 2]],Table_PI[[#This Row],[List 3]],Table_PI[[#This Row],[Size]],Table_PI[[#This Row],[Input 1]],Table_PI[[#This Row],[Input 2]],Table_PI[[#This Row],[Input 3]],Table_PI[[#This Row],[Input 4]],'Customer Information'!$AR$12,1,ROW())>0,MeasureCalc(Table_PI[[#This Row],[Hide:\nFormula Name]],Table_PI[[#This Row],[Quantity]],Table_PI[[#This Row],[List 1]],Table_PI[[#This Row],[List 2]],Table_PI[[#This Row],[List 3]],Table_PI[[#This Row],[Size]],Table_PI[[#This Row],[Input 1]],Table_PI[[#This Row],[Input 2]],Table_PI[[#This Row],[Input 3]],Table_PI[[#This Row],[Input 4]],'Customer Information'!$AR$12,7,ROW()),\"No Rebate\"),\"No Rebate\"),0)","v":0},{"$f":"IF(Table_PI[[#This Row],[Hide:\nFormula Name]]<>\"\",IFERROR(IF(MeasureCalc(Table_PI[[#This Row],[Hide:\nFormula Name]],Table_PI[[#This Row],[Quantity]],Table_PI[[#This Row],[List 1]],Table_PI[[#This Row],[List 2]],Table_PI[[#This Row],[List 3]],Table_PI[[#This Row],[Size]],Table_PI[[#This Row],[Input 1]],Table_PI[[#This Row],[Input 2]],Table_PI[[#This Row],[Input 3]],Table_PI[[#This Row],[Input 4]],'Customer Information'!$AR$12,1,ROW())>0,MeasureCalc(Table_PI[[#This Row],[Hide:\nFormula Name]],Table_PI[[#This Row],[Quantity]],Table_PI[[#This Row],[List 1]],Table_PI[[#This Row],[List 2]],Table_PI[[#This Row],[List 3]],Table_PI[[#This Row],[Size]],Table_PI[[#This Row],[Input 1]],Table_PI[[#This Row],[Input 2]],Table_PI[[#This Row],[Input 3]],Table_PI[[#This Row],[Input 4]],'Customer Information'!$AR$12,8,ROW()),\"No Rebate\"),\"No Rebate\"),0)","v":0},{"$f":"IF(Table_PI[[#This Row],[Hide:\nFormula Name]]<>\"\",IF(AND(Table_PI[[#This Row],[Hide:\nFormula Name]]<>\"\",OR(Table_PI[[#This Row],[Rebate]]>0,Table_PI[[#This Row],[Rebate]]=\"No Rebate\")),TRUE,\"MI: Line Item \" & $A112),\"\")","v":""}]
[{"$f":"IF(Table_PI[[#This Row],[Hide:\nFormula Name]]<>\"\",MAX($A$2:A112)+1,\"\")","v":""},null,null,null,null,null,null,null,null,null,null,null,null,null,null,{"$f":"IFERROR(VLOOKUP(Table_PI[[#This Row],[Measure]],'Equipment Lookups'!$C$3:$D$23,2,FALSE),\"\")","v":""},{"$f":"IF(Table_PI[[#This Row],[Hide:\nFormula Name]]<>\"\",IFERROR(IF(MeasureCalc(Table_PI[[#This Row],[Hide:\nFormula Name]],Table_PI[[#This Row],[Quantity]],Table_PI[[#This Row],[List 1]],Table_PI[[#This Row],[List 2]],Table_PI[[#This Row],[List 3]],Table_PI[[#This Row],[Size]],Table_PI[[#This Row],[Input 1]],Table_PI[[#This Row],[Input 2]],Table_PI[[#This Row],[Input 3]],Table_PI[[#This Row],[Input 4]],'Customer Information'!$AR$12,1,ROW())>0,MeasureCalc(Table_PI[[#This Row],[Hide:\nFormula Name]],Table_PI[[#This Row],[Quantity]],Table_PI[[#This Row],[List 1]],Table_PI[[#This Row],[List 2]],Table_PI[[#This Row],[List 3]],Table_PI[[#This Row],[Size]],Table_PI[[#This Row],[Input 1]],Table_PI[[#This Row],[Input 2]],Table_PI[[#This Row],[Input 3]],Table_PI[[#This Row],[Input 4]],'Customer Information'!$AR$12,1,ROW()),\"No Rebate\"),\"No Rebate\"),0)","v":0},{"$f":"IF(Table_PI[[#This Row],[Hide:\nFormula Name]]<>\"\",IFERROR(IF(MeasureCalc(Table_PI[[#This Row],[Hide:\nFormula Name]],Table_PI[[#This Row],[Quantity]],Table_PI[[#This Row],[List 1]],Table_PI[[#This Row],[List 2]],Table_PI[[#This Row],[List 3]],Table_PI[[#This Row],[Size]],Table_PI[[#This Row],[Input 1]],Table_PI[[#This Row],[Input 2]],Table_PI[[#This Row],[Input 3]],Table_PI[[#This Row],[Input 4]],'Customer Information'!$AR$12,1,ROW())>0,MeasureCalc(Table_PI[[#This Row],[Hide:\nFormula Name]],Table_PI[[#This Row],[Quantity]],Table_PI[[#This Row],[List 1]],Table_PI[[#This Row],[List 2]],Table_PI[[#This Row],[List 3]],Table_PI[[#This Row],[Size]],Table_PI[[#This Row],[Input 1]],Table_PI[[#This Row],[Input 2]],Table_PI[[#This Row],[Input 3]],Table_PI[[#This Row],[Input 4]],'Customer Information'!$AR$12,2,ROW()),\"No Rebate\"),\"No Rebate\"),0)","v":0},{"$f":"IF(Table_PI[[#This Row],[Hide:\nFormula Name]]<>\"\",IFERROR(IF(MeasureCalc(Table_PI[[#This Row],[Hide:\nFormula Name]],Table_PI[[#This Row],[Quantity]],Table_PI[[#This Row],[List 1]],Table_PI[[#This Row],[List 2]],Table_PI[[#This Row],[List 3]],Table_PI[[#This Row],[Size]],Table_PI[[#This Row],[Input 1]],Table_PI[[#This Row],[Input 2]],Table_PI[[#This Row],[Input 3]],Table_PI[[#This Row],[Input 4]],'Customer Information'!$AR$12,1,ROW())>0,MeasureCalc(Table_PI[[#This Row],[Hide:\nFormula Name]],Table_PI[[#This Row],[Quantity]],Table_PI[[#This Row],[List 1]],Table_PI[[#This Row],[List 2]],Table_PI[[#This Row],[List 3]],Table_PI[[#This Row],[Size]],Table_PI[[#This Row],[Input 1]],Table_PI[[#This Row],[Input 2]],Table_PI[[#This Row],[Input 3]],Table_PI[[#This Row],[Input 4]],'Customer Information'!$AR$12,3,ROW()),\"No Rebate\"),\"No Rebate\"),0)","v":0},{"$f":"IF(Table_PI[[#This Row],[Hide:\nFormula Name]]<>\"\",IFERROR(IF(MeasureCalc(Table_PI[[#This Row],[Hide:\nFormula Name]],Table_PI[[#This Row],[Quantity]],Table_PI[[#This Row],[List 1]],Table_PI[[#This Row],[List 2]],Table_PI[[#This Row],[List 3]],Table_PI[[#This Row],[Size]],Table_PI[[#This Row],[Input 1]],Table_PI[[#This Row],[Input 2]],Table_PI[[#This Row],[Input 3]],Table_PI[[#This Row],[Input 4]],'Customer Information'!$AR$12,1,ROW())>0,MeasureCalc(Table_PI[[#This Row],[Hide:\nFormula Name]],Table_PI[[#This Row],[Quantity]],Table_PI[[#This Row],[List 1]],Table_PI[[#This Row],[List 2]],Table_PI[[#This Row],[List 3]],Table_PI[[#This Row],[Size]],Table_PI[[#This Row],[Input 1]],Table_PI[[#This Row],[Input 2]],Table_PI[[#This Row],[Input 3]],Table_PI[[#This Row],[Input 4]],'Customer Information'!$AR$12,4,ROW()),\"No Rebate\"),\"No Rebate\"),0)","v":0},{"$f":"IF(Table_PI[[#This Row],[Hide:\nFormula Name]]<>\"\",IFERROR(IF(MeasureCalc(Table_PI[[#This Row],[Hide:\nFormula Name]],Table_PI[[#This Row],[Quantity]],Table_PI[[#This Row],[List 1]],Table_PI[[#This Row],[List 2]],Table_PI[[#This Row],[List 3]],Table_PI[[#This Row],[Size]],Table_PI[[#This Row],[Input 1]],Table_PI[[#This Row],[Input 2]],Table_PI[[#This Row],[Input 3]],Table_PI[[#This Row],[Input 4]],'Customer Information'!$AR$12,1,ROW())>0,MeasureCalc(Table_PI[[#This Row],[Hide:\nFormula Name]],Table_PI[[#This Row],[Quantity]],Table_PI[[#This Row],[List 1]],Table_PI[[#This Row],[List 2]],Table_PI[[#This Row],[List 3]],Table_PI[[#This Row],[Size]],Table_PI[[#This Row],[Input 1]],Table_PI[[#This Row],[Input 2]],Table_PI[[#This Row],[Input 3]],Table_PI[[#This Row],[Input 4]],'Customer Information'!$AR$12,5,ROW()),\"No Rebate\"),\"No Rebate\"),0)","v":0},{"$f":"IF(Table_PI[[#This Row],[Hide:\nFormula Name]]<>\"\",IFERROR(IF(MeasureCalc(Table_PI[[#This Row],[Hide:\nFormula Name]],Table_PI[[#This Row],[Quantity]],Table_PI[[#This Row],[List 1]],Table_PI[[#This Row],[List 2]],Table_PI[[#This Row],[List 3]],Table_PI[[#This Row],[Size]],Table_PI[[#This Row],[Input 1]],Table_PI[[#This Row],[Input 2]],Table_PI[[#This Row],[Input 3]],Table_PI[[#This Row],[Input 4]],'Customer Information'!$AR$12,1,ROW())>0,MeasureCalc(Table_PI[[#This Row],[Hide:\nFormula Name]],Table_PI[[#This Row],[Quantity]],Table_PI[[#This Row],[List 1]],Table_PI[[#This Row],[List 2]],Table_PI[[#This Row],[List 3]],Table_PI[[#This Row],[Size]],Table_PI[[#This Row],[Input 1]],Table_PI[[#This Row],[Input 2]],Table_PI[[#This Row],[Input 3]],Table_PI[[#This Row],[Input 4]],'Customer Information'!$AR$12,6,ROW()),\"No Rebate\"),\"No Rebate\"),0)","v":0},{"$f":"IF(Table_PI[[#This Row],[Hide:\nFormula Name]]<>\"\",IFERROR(IF(MeasureCalc(Table_PI[[#This Row],[Hide:\nFormula Name]],Table_PI[[#This Row],[Quantity]],Table_PI[[#This Row],[List 1]],Table_PI[[#This Row],[List 2]],Table_PI[[#This Row],[List 3]],Table_PI[[#This Row],[Size]],Table_PI[[#This Row],[Input 1]],Table_PI[[#This Row],[Input 2]],Table_PI[[#This Row],[Input 3]],Table_PI[[#This Row],[Input 4]],'Customer Information'!$AR$12,1,ROW())>0,MeasureCalc(Table_PI[[#This Row],[Hide:\nFormula Name]],Table_PI[[#This Row],[Quantity]],Table_PI[[#This Row],[List 1]],Table_PI[[#This Row],[List 2]],Table_PI[[#This Row],[List 3]],Table_PI[[#This Row],[Size]],Table_PI[[#This Row],[Input 1]],Table_PI[[#This Row],[Input 2]],Table_PI[[#This Row],[Input 3]],Table_PI[[#This Row],[Input 4]],'Customer Information'!$AR$12,7,ROW()),\"No Rebate\"),\"No Rebate\"),0)","v":0},{"$f":"IF(Table_PI[[#This Row],[Hide:\nFormula Name]]<>\"\",IFERROR(IF(MeasureCalc(Table_PI[[#This Row],[Hide:\nFormula Name]],Table_PI[[#This Row],[Quantity]],Table_PI[[#This Row],[List 1]],Table_PI[[#This Row],[List 2]],Table_PI[[#This Row],[List 3]],Table_PI[[#This Row],[Size]],Table_PI[[#This Row],[Input 1]],Table_PI[[#This Row],[Input 2]],Table_PI[[#This Row],[Input 3]],Table_PI[[#This Row],[Input 4]],'Customer Information'!$AR$12,1,ROW())>0,MeasureCalc(Table_PI[[#This Row],[Hide:\nFormula Name]],Table_PI[[#This Row],[Quantity]],Table_PI[[#This Row],[List 1]],Table_PI[[#This Row],[List 2]],Table_PI[[#This Row],[List 3]],Table_PI[[#This Row],[Size]],Table_PI[[#This Row],[Input 1]],Table_PI[[#This Row],[Input 2]],Table_PI[[#This Row],[Input 3]],Table_PI[[#This Row],[Input 4]],'Customer Information'!$AR$12,8,ROW()),\"No Rebate\"),\"No Rebate\"),0)","v":0},{"$f":"IF(Table_PI[[#This Row],[Hide:\nFormula Name]]<>\"\",IF(AND(Table_PI[[#This Row],[Hide:\nFormula Name]]<>\"\",OR(Table_PI[[#This Row],[Rebate]]>0,Table_PI[[#This Row],[Rebate]]=\"No Rebate\")),TRUE,\"MI: Line Item \" & $A113),\"\")","v":""}]
[{"$f":"IF(Table_PI[[#This Row],[Hide:\nFormula Name]]<>\"\",MAX($A$2:A113)+1,\"\")","v":""},null,null,null,null,null,null,null,null,null,null,null,null,null,null,{"$f":"IFERROR(VLOOKUP(Table_PI[[#This Row],[Measure]],'Equipment Lookups'!$C$3:$D$23,2,FALSE),\"\")","v":""},{"$f":"IF(Table_PI[[#This Row],[Hide:\nFormula Name]]<>\"\",IFERROR(IF(MeasureCalc(Table_PI[[#This Row],[Hide:\nFormula Name]],Table_PI[[#This Row],[Quantity]],Table_PI[[#This Row],[List 1]],Table_PI[[#This Row],[List 2]],Table_PI[[#This Row],[List 3]],Table_PI[[#This Row],[Size]],Table_PI[[#This Row],[Input 1]],Table_PI[[#This Row],[Input 2]],Table_PI[[#This Row],[Input 3]],Table_PI[[#This Row],[Input 4]],'Customer Information'!$AR$12,1,ROW())>0,MeasureCalc(Table_PI[[#This Row],[Hide:\nFormula Name]],Table_PI[[#This Row],[Quantity]],Table_PI[[#This Row],[List 1]],Table_PI[[#This Row],[List 2]],Table_PI[[#This Row],[List 3]],Table_PI[[#This Row],[Size]],Table_PI[[#This Row],[Input 1]],Table_PI[[#This Row],[Input 2]],Table_PI[[#This Row],[Input 3]],Table_PI[[#This Row],[Input 4]],'Customer Information'!$AR$12,1,ROW()),\"No Rebate\"),\"No Rebate\"),0)","v":0},{"$f":"IF(Table_PI[[#This Row],[Hide:\nFormula Name]]<>\"\",IFERROR(IF(MeasureCalc(Table_PI[[#This Row],[Hide:\nFormula Name]],Table_PI[[#This Row],[Quantity]],Table_PI[[#This Row],[List 1]],Table_PI[[#This Row],[List 2]],Table_PI[[#This Row],[List 3]],Table_PI[[#This Row],[Size]],Table_PI[[#This Row],[Input 1]],Table_PI[[#This Row],[Input 2]],Table_PI[[#This Row],[Input 3]],Table_PI[[#This Row],[Input 4]],'Customer Information'!$AR$12,1,ROW())>0,MeasureCalc(Table_PI[[#This Row],[Hide:\nFormula Name]],Table_PI[[#This Row],[Quantity]],Table_PI[[#This Row],[List 1]],Table_PI[[#This Row],[List 2]],Table_PI[[#This Row],[List 3]],Table_PI[[#This Row],[Size]],Table_PI[[#This Row],[Input 1]],Table_PI[[#This Row],[Input 2]],Table_PI[[#This Row],[Input 3]],Table_PI[[#This Row],[Input 4]],'Customer Information'!$AR$12,2,ROW()),\"No Rebate\"),\"No Rebate\"),0)","v":0},{"$f":"IF(Table_PI[[#This Row],[Hide:\nFormula Name]]<>\"\",IFERROR(IF(MeasureCalc(Table_PI[[#This Row],[Hide:\nFormula Name]],Table_PI[[#This Row],[Quantity]],Table_PI[[#This Row],[List 1]],Table_PI[[#This Row],[List 2]],Table_PI[[#This Row],[List 3]],Table_PI[[#This Row],[Size]],Table_PI[[#This Row],[Input 1]],Table_PI[[#This Row],[Input 2]],Table_PI[[#This Row],[Input 3]],Table_PI[[#This Row],[Input 4]],'Customer Information'!$AR$12,1,ROW())>0,MeasureCalc(Table_PI[[#This Row],[Hide:\nFormula Name]],Table_PI[[#This Row],[Quantity]],Table_PI[[#This Row],[List 1]],Table_PI[[#This Row],[List 2]],Table_PI[[#This Row],[List 3]],Table_PI[[#This Row],[Size]],Table_PI[[#This Row],[Input 1]],Table_PI[[#This Row],[Input 2]],Table_PI[[#This Row],[Input 3]],Table_PI[[#This Row],[Input 4]],'Customer Information'!$AR$12,3,ROW()),\"No Rebate\"),\"No Rebate\"),0)","v":0},{"$f":"IF(Table_PI[[#This Row],[Hide:\nFormula Name]]<>\"\",IFERROR(IF(MeasureCalc(Table_PI[[#This Row],[Hide:\nFormula Name]],Table_PI[[#This Row],[Quantity]],Table_PI[[#This Row],[List 1]],Table_PI[[#This Row],[List 2]],Table_PI[[#This Row],[List 3]],Table_PI[[#This Row],[Size]],Table_PI[[#This Row],[Input 1]],Table_PI[[#This Row],[Input 2]],Table_PI[[#This Row],[Input 3]],Table_PI[[#This Row],[Input 4]],'Customer Information'!$AR$12,1,ROW())>0,MeasureCalc(Table_PI[[#This Row],[Hide:\nFormula Name]],Table_PI[[#This Row],[Quantity]],Table_PI[[#This Row],[List 1]],Table_PI[[#This Row],[List 2]],Table_PI[[#This Row],[List 3]],Table_PI[[#This Row],[Size]],Table_PI[[#This Row],[Input 1]],Table_PI[[#This Row],[Input 2]],Table_PI[[#This Row],[Input 3]],Table_PI[[#This Row],[Input 4]],'Customer Information'!$AR$12,4,ROW()),\"No Rebate\"),\"No Rebate\"),0)","v":0},{"$f":"IF(Table_PI[[#This Row],[Hide:\nFormula Name]]<>\"\",IFERROR(IF(MeasureCalc(Table_PI[[#This Row],[Hide:\nFormula Name]],Table_PI[[#This Row],[Quantity]],Table_PI[[#This Row],[List 1]],Table_PI[[#This Row],[List 2]],Table_PI[[#This Row],[List 3]],Table_PI[[#This Row],[Size]],Table_PI[[#This Row],[Input 1]],Table_PI[[#This Row],[Input 2]],Table_PI[[#This Row],[Input 3]],Table_PI[[#This Row],[Input 4]],'Customer Information'!$AR$12,1,ROW())>0,MeasureCalc(Table_PI[[#This Row],[Hide:\nFormula Name]],Table_PI[[#This Row],[Quantity]],Table_PI[[#This Row],[List 1]],Table_PI[[#This Row],[List 2]],Table_PI[[#This Row],[List 3]],Table_PI[[#This Row],[Size]],Table_PI[[#This Row],[Input 1]],Table_PI[[#This Row],[Input 2]],Table_PI[[#This Row],[Input 3]],Table_PI[[#This Row],[Input 4]],'Customer Information'!$AR$12,5,ROW()),\"No Rebate\"),\"No Rebate\"),0)","v":0},{"$f":"IF(Table_PI[[#This Row],[Hide:\nFormula Name]]<>\"\",IFERROR(IF(MeasureCalc(Table_PI[[#This Row],[Hide:\nFormula Name]],Table_PI[[#This Row],[Quantity]],Table_PI[[#This Row],[List 1]],Table_PI[[#This Row],[List 2]],Table_PI[[#This Row],[List 3]],Table_PI[[#This Row],[Size]],Table_PI[[#This Row],[Input 1]],Table_PI[[#This Row],[Input 2]],Table_PI[[#This Row],[Input 3]],Table_PI[[#This Row],[Input 4]],'Customer Information'!$AR$12,1,ROW())>0,MeasureCalc(Table_PI[[#This Row],[Hide:\nFormula Name]],Table_PI[[#This Row],[Quantity]],Table_PI[[#This Row],[List 1]],Table_PI[[#This Row],[List 2]],Table_PI[[#This Row],[List 3]],Table_PI[[#This Row],[Size]],Table_PI[[#This Row],[Input 1]],Table_PI[[#This Row],[Input 2]],Table_PI[[#This Row],[Input 3]],Table_PI[[#This Row],[Input 4]],'Customer Information'!$AR$12,6,ROW()),\"No Rebate\"),\"No Rebate\"),0)","v":0},{"$f":"IF(Table_PI[[#This Row],[Hide:\nFormula Name]]<>\"\",IFERROR(IF(MeasureCalc(Table_PI[[#This Row],[Hide:\nFormula Name]],Table_PI[[#This Row],[Quantity]],Table_PI[[#This Row],[List 1]],Table_PI[[#This Row],[List 2]],Table_PI[[#This Row],[List 3]],Table_PI[[#This Row],[Size]],Table_PI[[#This Row],[Input 1]],Table_PI[[#This Row],[Input 2]],Table_PI[[#This Row],[Input 3]],Table_PI[[#This Row],[Input 4]],'Customer Information'!$AR$12,1,ROW())>0,MeasureCalc(Table_PI[[#This Row],[Hide:\nFormula Name]],Table_PI[[#This Row],[Quantity]],Table_PI[[#This Row],[List 1]],Table_PI[[#This Row],[List 2]],Table_PI[[#This Row],[List 3]],Table_PI[[#This Row],[Size]],Table_PI[[#This Row],[Input 1]],Table_PI[[#This Row],[Input 2]],Table_PI[[#This Row],[Input 3]],Table_PI[[#This Row],[Input 4]],'Customer Information'!$AR$12,7,ROW()),\"No Rebate\"),\"No Rebate\"),0)","v":0},{"$f":"IF(Table_PI[[#This Row],[Hide:\nFormula Name]]<>\"\",IFERROR(IF(MeasureCalc(Table_PI[[#This Row],[Hide:\nFormula Name]],Table_PI[[#This Row],[Quantity]],Table_PI[[#This Row],[List 1]],Table_PI[[#This Row],[List 2]],Table_PI[[#This Row],[List 3]],Table_PI[[#This Row],[Size]],Table_PI[[#This Row],[Input 1]],Table_PI[[#This Row],[Input 2]],Table_PI[[#This Row],[Input 3]],Table_PI[[#This Row],[Input 4]],'Customer Information'!$AR$12,1,ROW())>0,MeasureCalc(Table_PI[[#This Row],[Hide:\nFormula Name]],Table_PI[[#This Row],[Quantity]],Table_PI[[#This Row],[List 1]],Table_PI[[#This Row],[List 2]],Table_PI[[#This Row],[List 3]],Table_PI[[#This Row],[Size]],Table_PI[[#This Row],[Input 1]],Table_PI[[#This Row],[Input 2]],Table_PI[[#This Row],[Input 3]],Table_PI[[#This Row],[Input 4]],'Customer Information'!$AR$12,8,ROW()),\"No Rebate\"),\"No Rebate\"),0)","v":0},{"$f":"IF(Table_PI[[#This Row],[Hide:\nFormula Name]]<>\"\",IF(AND(Table_PI[[#This Row],[Hide:\nFormula Name]]<>\"\",OR(Table_PI[[#This Row],[Rebate]]>0,Table_PI[[#This Row],[Rebate]]=\"No Rebate\")),TRUE,\"MI: Line Item \" & $A114),\"\")","v":""}]
[{"$f":"IF(Table_PI[[#This Row],[Hide:\nFormula Name]]<>\"\",MAX($A$2:A114)+1,\"\")","v":""},null,null,null,null,null,null,null,null,null,null,null,null,null,null,{"$f":"IFERROR(VLOOKUP(Table_PI[[#This Row],[Measure]],'Equipment Lookups'!$C$3:$D$23,2,FALSE),\"\")","v":""},{"$f":"IF(Table_PI[[#This Row],[Hide:\nFormula Name]]<>\"\",IFERROR(IF(MeasureCalc(Table_PI[[#This Row],[Hide:\nFormula Name]],Table_PI[[#This Row],[Quantity]],Table_PI[[#This Row],[List 1]],Table_PI[[#This Row],[List 2]],Table_PI[[#This Row],[List 3]],Table_PI[[#This Row],[Size]],Table_PI[[#This Row],[Input 1]],Table_PI[[#This Row],[Input 2]],Table_PI[[#This Row],[Input 3]],Table_PI[[#This Row],[Input 4]],'Customer Information'!$AR$12,1,ROW())>0,MeasureCalc(Table_PI[[#This Row],[Hide:\nFormula Name]],Table_PI[[#This Row],[Quantity]],Table_PI[[#This Row],[List 1]],Table_PI[[#This Row],[List 2]],Table_PI[[#This Row],[List 3]],Table_PI[[#This Row],[Size]],Table_PI[[#This Row],[Input 1]],Table_PI[[#This Row],[Input 2]],Table_PI[[#This Row],[Input 3]],Table_PI[[#This Row],[Input 4]],'Customer Information'!$AR$12,1,ROW()),\"No Rebate\"),\"No Rebate\"),0)","v":0},{"$f":"IF(Table_PI[[#This Row],[Hide:\nFormula Name]]<>\"\",IFERROR(IF(MeasureCalc(Table_PI[[#This Row],[Hide:\nFormula Name]],Table_PI[[#This Row],[Quantity]],Table_PI[[#This Row],[List 1]],Table_PI[[#This Row],[List 2]],Table_PI[[#This Row],[List 3]],Table_PI[[#This Row],[Size]],Table_PI[[#This Row],[Input 1]],Table_PI[[#This Row],[Input 2]],Table_PI[[#This Row],[Input 3]],Table_PI[[#This Row],[Input 4]],'Customer Information'!$AR$12,1,ROW())>0,MeasureCalc(Table_PI[[#This Row],[Hide:\nFormula Name]],Table_PI[[#This Row],[Quantity]],Table_PI[[#This Row],[List 1]],Table_PI[[#This Row],[List 2]],Table_PI[[#This Row],[List 3]],Table_PI[[#This Row],[Size]],Table_PI[[#This Row],[Input 1]],Table_PI[[#This Row],[Input 2]],Table_PI[[#This Row],[Input 3]],Table_PI[[#This Row],[Input 4]],'Customer Information'!$AR$12,2,ROW()),\"No Rebate\"),\"No Rebate\"),0)","v":0},{"$f":"IF(Table_PI[[#This Row],[Hide:\nFormula Name]]<>\"\",IFERROR(IF(MeasureCalc(Table_PI[[#This Row],[Hide:\nFormula Name]],Table_PI[[#This Row],[Quantity]],Table_PI[[#This Row],[List 1]],Table_PI[[#This Row],[List 2]],Table_PI[[#This Row],[List 3]],Table_PI[[#This Row],[Size]],Table_PI[[#This Row],[Input 1]],Table_PI[[#This Row],[Input 2]],Table_PI[[#This Row],[Input 3]],Table_PI[[#This Row],[Input 4]],'Customer Information'!$AR$12,1,ROW())>0,MeasureCalc(Table_PI[[#This Row],[Hide:\nFormula Name]],Table_PI[[#This Row],[Quantity]],Table_PI[[#This Row],[List 1]],Table_PI[[#This Row],[List 2]],Table_PI[[#This Row],[List 3]],Table_PI[[#This Row],[Size]],Table_PI[[#This Row],[Input 1]],Table_PI[[#This Row],[Input 2]],Table_PI[[#This Row],[Input 3]],Table_PI[[#This Row],[Input 4]],'Customer Information'!$AR$12,3,ROW()),\"No Rebate\"),\"No Rebate\"),0)","v":0},{"$f":"IF(Table_PI[[#This Row],[Hide:\nFormula Name]]<>\"\",IFERROR(IF(MeasureCalc(Table_PI[[#This Row],[Hide:\nFormula Name]],Table_PI[[#This Row],[Quantity]],Table_PI[[#This Row],[List 1]],Table_PI[[#This Row],[List 2]],Table_PI[[#This Row],[List 3]],Table_PI[[#This Row],[Size]],Table_PI[[#This Row],[Input 1]],Table_PI[[#This Row],[Input 2]],Table_PI[[#This Row],[Input 3]],Table_PI[[#This Row],[Input 4]],'Customer Information'!$AR$12,1,ROW())>0,MeasureCalc(Table_PI[[#This Row],[Hide:\nFormula Name]],Table_PI[[#This Row],[Quantity]],Table_PI[[#This Row],[List 1]],Table_PI[[#This Row],[List 2]],Table_PI[[#This Row],[List 3]],Table_PI[[#This Row],[Size]],Table_PI[[#This Row],[Input 1]],Table_PI[[#This Row],[Input 2]],Table_PI[[#This Row],[Input 3]],Table_PI[[#This Row],[Input 4]],'Customer Information'!$AR$12,4,ROW()),\"No Rebate\"),\"No Rebate\"),0)","v":0},{"$f":"IF(Table_PI[[#This Row],[Hide:\nFormula Name]]<>\"\",IFERROR(IF(MeasureCalc(Table_PI[[#This Row],[Hide:\nFormula Name]],Table_PI[[#This Row],[Quantity]],Table_PI[[#This Row],[List 1]],Table_PI[[#This Row],[List 2]],Table_PI[[#This Row],[List 3]],Table_PI[[#This Row],[Size]],Table_PI[[#This Row],[Input 1]],Table_PI[[#This Row],[Input 2]],Table_PI[[#This Row],[Input 3]],Table_PI[[#This Row],[Input 4]],'Customer Information'!$AR$12,1,ROW())>0,MeasureCalc(Table_PI[[#This Row],[Hide:\nFormula Name]],Table_PI[[#This Row],[Quantity]],Table_PI[[#This Row],[List 1]],Table_PI[[#This Row],[List 2]],Table_PI[[#This Row],[List 3]],Table_PI[[#This Row],[Size]],Table_PI[[#This Row],[Input 1]],Table_PI[[#This Row],[Input 2]],Table_PI[[#This Row],[Input 3]],Table_PI[[#This Row],[Input 4]],'Customer Information'!$AR$12,5,ROW()),\"No Rebate\"),\"No Rebate\"),0)","v":0},{"$f":"IF(Table_PI[[#This Row],[Hide:\nFormula Name]]<>\"\",IFERROR(IF(MeasureCalc(Table_PI[[#This Row],[Hide:\nFormula Name]],Table_PI[[#This Row],[Quantity]],Table_PI[[#This Row],[List 1]],Table_PI[[#This Row],[List 2]],Table_PI[[#This Row],[List 3]],Table_PI[[#This Row],[Size]],Table_PI[[#This Row],[Input 1]],Table_PI[[#This Row],[Input 2]],Table_PI[[#This Row],[Input 3]],Table_PI[[#This Row],[Input 4]],'Customer Information'!$AR$12,1,ROW())>0,MeasureCalc(Table_PI[[#This Row],[Hide:\nFormula Name]],Table_PI[[#This Row],[Quantity]],Table_PI[[#This Row],[List 1]],Table_PI[[#This Row],[List 2]],Table_PI[[#This Row],[List 3]],Table_PI[[#This Row],[Size]],Table_PI[[#This Row],[Input 1]],Table_PI[[#This Row],[Input 2]],Table_PI[[#This Row],[Input 3]],Table_PI[[#This Row],[Input 4]],'Customer Information'!$AR$12,6,ROW()),\"No Rebate\"),\"No Rebate\"),0)","v":0},{"$f":"IF(Table_PI[[#This Row],[Hide:\nFormula Name]]<>\"\",IFERROR(IF(MeasureCalc(Table_PI[[#This Row],[Hide:\nFormula Name]],Table_PI[[#This Row],[Quantity]],Table_PI[[#This Row],[List 1]],Table_PI[[#This Row],[List 2]],Table_PI[[#This Row],[List 3]],Table_PI[[#This Row],[Size]],Table_PI[[#This Row],[Input 1]],Table_PI[[#This Row],[Input 2]],Table_PI[[#This Row],[Input 3]],Table_PI[[#This Row],[Input 4]],'Customer Information'!$AR$12,1,ROW())>0,MeasureCalc(Table_PI[[#This Row],[Hide:\nFormula Name]],Table_PI[[#This Row],[Quantity]],Table_PI[[#This Row],[List 1]],Table_PI[[#This Row],[List 2]],Table_PI[[#This Row],[List 3]],Table_PI[[#This Row],[Size]],Table_PI[[#This Row],[Input 1]],Table_PI[[#This Row],[Input 2]],Table_PI[[#This Row],[Input 3]],Table_PI[[#This Row],[Input 4]],'Customer Information'!$AR$12,7,ROW()),\"No Rebate\"),\"No Rebate\"),0)","v":0},{"$f":"IF(Table_PI[[#This Row],[Hide:\nFormula Name]]<>\"\",IFERROR(IF(MeasureCalc(Table_PI[[#This Row],[Hide:\nFormula Name]],Table_PI[[#This Row],[Quantity]],Table_PI[[#This Row],[List 1]],Table_PI[[#This Row],[List 2]],Table_PI[[#This Row],[List 3]],Table_PI[[#This Row],[Size]],Table_PI[[#This Row],[Input 1]],Table_PI[[#This Row],[Input 2]],Table_PI[[#This Row],[Input 3]],Table_PI[[#This Row],[Input 4]],'Customer Information'!$AR$12,1,ROW())>0,MeasureCalc(Table_PI[[#This Row],[Hide:\nFormula Name]],Table_PI[[#This Row],[Quantity]],Table_PI[[#This Row],[List 1]],Table_PI[[#This Row],[List 2]],Table_PI[[#This Row],[List 3]],Table_PI[[#This Row],[Size]],Table_PI[[#This Row],[Input 1]],Table_PI[[#This Row],[Input 2]],Table_PI[[#This Row],[Input 3]],Table_PI[[#This Row],[Input 4]],'Customer Information'!$AR$12,8,ROW()),\"No Rebate\"),\"No Rebate\"),0)","v":0},{"$f":"IF(Table_PI[[#This Row],[Hide:\nFormula Name]]<>\"\",IF(AND(Table_PI[[#This Row],[Hide:\nFormula Name]]<>\"\",OR(Table_PI[[#This Row],[Rebate]]>0,Table_PI[[#This Row],[Rebate]]=\"No Rebate\")),TRUE,\"MI: Line Item \" & $A115),\"\")","v":""}]
[{"$f":"IF(Table_PI[[#This Row],[Hide:\nFormula Name]]<>\"\",MAX($A$2:A115)+1,\"\")","v":""},null,null,null,null,null,null,null,null,null,null,null,null,null,null,{"$f":"IFERROR(VLOOKUP(Table_PI[[#This Row],[Measure]],'Equipment Lookups'!$C$3:$D$23,2,FALSE),\"\")","v":""},{"$f":"IF(Table_PI[[#This Row],[Hide:\nFormula Name]]<>\"\",IFERROR(IF(MeasureCalc(Table_PI[[#This Row],[Hide:\nFormula Name]],Table_PI[[#This Row],[Quantity]],Table_PI[[#This Row],[List 1]],Table_PI[[#This Row],[List 2]],Table_PI[[#This Row],[List 3]],Table_PI[[#This Row],[Size]],Table_PI[[#This Row],[Input 1]],Table_PI[[#This Row],[Input 2]],Table_PI[[#This Row],[Input 3]],Table_PI[[#This Row],[Input 4]],'Customer Information'!$AR$12,1,ROW())>0,MeasureCalc(Table_PI[[#This Row],[Hide:\nFormula Name]],Table_PI[[#This Row],[Quantity]],Table_PI[[#This Row],[List 1]],Table_PI[[#This Row],[List 2]],Table_PI[[#This Row],[List 3]],Table_PI[[#This Row],[Size]],Table_PI[[#This Row],[Input 1]],Table_PI[[#This Row],[Input 2]],Table_PI[[#This Row],[Input 3]],Table_PI[[#This Row],[Input 4]],'Customer Information'!$AR$12,1,ROW()),\"No Rebate\"),\"No Rebate\"),0)","v":0},{"$f":"IF(Table_PI[[#This Row],[Hide:\nFormula Name]]<>\"\",IFERROR(IF(MeasureCalc(Table_PI[[#This Row],[Hide:\nFormula Name]],Table_PI[[#This Row],[Quantity]],Table_PI[[#This Row],[List 1]],Table_PI[[#This Row],[List 2]],Table_PI[[#This Row],[List 3]],Table_PI[[#This Row],[Size]],Table_PI[[#This Row],[Input 1]],Table_PI[[#This Row],[Input 2]],Table_PI[[#This Row],[Input 3]],Table_PI[[#This Row],[Input 4]],'Customer Information'!$AR$12,1,ROW())>0,MeasureCalc(Table_PI[[#This Row],[Hide:\nFormula Name]],Table_PI[[#This Row],[Quantity]],Table_PI[[#This Row],[List 1]],Table_PI[[#This Row],[List 2]],Table_PI[[#This Row],[List 3]],Table_PI[[#This Row],[Size]],Table_PI[[#This Row],[Input 1]],Table_PI[[#This Row],[Input 2]],Table_PI[[#This Row],[Input 3]],Table_PI[[#This Row],[Input 4]],'Customer Information'!$AR$12,2,ROW()),\"No Rebate\"),\"No Rebate\"),0)","v":0},{"$f":"IF(Table_PI[[#This Row],[Hide:\nFormula Name]]<>\"\",IFERROR(IF(MeasureCalc(Table_PI[[#This Row],[Hide:\nFormula Name]],Table_PI[[#This Row],[Quantity]],Table_PI[[#This Row],[List 1]],Table_PI[[#This Row],[List 2]],Table_PI[[#This Row],[List 3]],Table_PI[[#This Row],[Size]],Table_PI[[#This Row],[Input 1]],Table_PI[[#This Row],[Input 2]],Table_PI[[#This Row],[Input 3]],Table_PI[[#This Row],[Input 4]],'Customer Information'!$AR$12,1,ROW())>0,MeasureCalc(Table_PI[[#This Row],[Hide:\nFormula Name]],Table_PI[[#This Row],[Quantity]],Table_PI[[#This Row],[List 1]],Table_PI[[#This Row],[List 2]],Table_PI[[#This Row],[List 3]],Table_PI[[#This Row],[Size]],Table_PI[[#This Row],[Input 1]],Table_PI[[#This Row],[Input 2]],Table_PI[[#This Row],[Input 3]],Table_PI[[#This Row],[Input 4]],'Customer Information'!$AR$12,3,ROW()),\"No Rebate\"),\"No Rebate\"),0)","v":0},{"$f":"IF(Table_PI[[#This Row],[Hide:\nFormula Name]]<>\"\",IFERROR(IF(MeasureCalc(Table_PI[[#This Row],[Hide:\nFormula Name]],Table_PI[[#This Row],[Quantity]],Table_PI[[#This Row],[List 1]],Table_PI[[#This Row],[List 2]],Table_PI[[#This Row],[List 3]],Table_PI[[#This Row],[Size]],Table_PI[[#This Row],[Input 1]],Table_PI[[#This Row],[Input 2]],Table_PI[[#This Row],[Input 3]],Table_PI[[#This Row],[Input 4]],'Customer Information'!$AR$12,1,ROW())>0,MeasureCalc(Table_PI[[#This Row],[Hide:\nFormula Name]],Table_PI[[#This Row],[Quantity]],Table_PI[[#This Row],[List 1]],Table_PI[[#This Row],[List 2]],Table_PI[[#This Row],[List 3]],Table_PI[[#This Row],[Size]],Table_PI[[#This Row],[Input 1]],Table_PI[[#This Row],[Input 2]],Table_PI[[#This Row],[Input 3]],Table_PI[[#This Row],[Input 4]],'Customer Information'!$AR$12,4,ROW()),\"No Rebate\"),\"No Rebate\"),0)","v":0},{"$f":"IF(Table_PI[[#This Row],[Hide:\nFormula Name]]<>\"\",IFERROR(IF(MeasureCalc(Table_PI[[#This Row],[Hide:\nFormula Name]],Table_PI[[#This Row],[Quantity]],Table_PI[[#This Row],[List 1]],Table_PI[[#This Row],[List 2]],Table_PI[[#This Row],[List 3]],Table_PI[[#This Row],[Size]],Table_PI[[#This Row],[Input 1]],Table_PI[[#This Row],[Input 2]],Table_PI[[#This Row],[Input 3]],Table_PI[[#This Row],[Input 4]],'Customer Information'!$AR$12,1,ROW())>0,MeasureCalc(Table_PI[[#This Row],[Hide:\nFormula Name]],Table_PI[[#This Row],[Quantity]],Table_PI[[#This Row],[List 1]],Table_PI[[#This Row],[List 2]],Table_PI[[#This Row],[List 3]],Table_PI[[#This Row],[Size]],Table_PI[[#This Row],[Input 1]],Table_PI[[#This Row],[Input 2]],Table_PI[[#This Row],[Input 3]],Table_PI[[#This Row],[Input 4]],'Customer Information'!$AR$12,5,ROW()),\"No Rebate\"),\"No Rebate\"),0)","v":0},{"$f":"IF(Table_PI[[#This Row],[Hide:\nFormula Name]]<>\"\",IFERROR(IF(MeasureCalc(Table_PI[[#This Row],[Hide:\nFormula Name]],Table_PI[[#This Row],[Quantity]],Table_PI[[#This Row],[List 1]],Table_PI[[#This Row],[List 2]],Table_PI[[#This Row],[List 3]],Table_PI[[#This Row],[Size]],Table_PI[[#This Row],[Input 1]],Table_PI[[#This Row],[Input 2]],Table_PI[[#This Row],[Input 3]],Table_PI[[#This Row],[Input 4]],'Customer Information'!$AR$12,1,ROW())>0,MeasureCalc(Table_PI[[#This Row],[Hide:\nFormula Name]],Table_PI[[#This Row],[Quantity]],Table_PI[[#This Row],[List 1]],Table_PI[[#This Row],[List 2]],Table_PI[[#This Row],[List 3]],Table_PI[[#This Row],[Size]],Table_PI[[#This Row],[Input 1]],Table_PI[[#This Row],[Input 2]],Table_PI[[#This Row],[Input 3]],Table_PI[[#This Row],[Input 4]],'Customer Information'!$AR$12,6,ROW()),\"No Rebate\"),\"No Rebate\"),0)","v":0},{"$f":"IF(Table_PI[[#This Row],[Hide:\nFormula Name]]<>\"\",IFERROR(IF(MeasureCalc(Table_PI[[#This Row],[Hide:\nFormula Name]],Table_PI[[#This Row],[Quantity]],Table_PI[[#This Row],[List 1]],Table_PI[[#This Row],[List 2]],Table_PI[[#This Row],[List 3]],Table_PI[[#This Row],[Size]],Table_PI[[#This Row],[Input 1]],Table_PI[[#This Row],[Input 2]],Table_PI[[#This Row],[Input 3]],Table_PI[[#This Row],[Input 4]],'Customer Information'!$AR$12,1,ROW())>0,MeasureCalc(Table_PI[[#This Row],[Hide:\nFormula Name]],Table_PI[[#This Row],[Quantity]],Table_PI[[#This Row],[List 1]],Table_PI[[#This Row],[List 2]],Table_PI[[#This Row],[List 3]],Table_PI[[#This Row],[Size]],Table_PI[[#This Row],[Input 1]],Table_PI[[#This Row],[Input 2]],Table_PI[[#This Row],[Input 3]],Table_PI[[#This Row],[Input 4]],'Customer Information'!$AR$12,7,ROW()),\"No Rebate\"),\"No Rebate\"),0)","v":0},{"$f":"IF(Table_PI[[#This Row],[Hide:\nFormula Name]]<>\"\",IFERROR(IF(MeasureCalc(Table_PI[[#This Row],[Hide:\nFormula Name]],Table_PI[[#This Row],[Quantity]],Table_PI[[#This Row],[List 1]],Table_PI[[#This Row],[List 2]],Table_PI[[#This Row],[List 3]],Table_PI[[#This Row],[Size]],Table_PI[[#This Row],[Input 1]],Table_PI[[#This Row],[Input 2]],Table_PI[[#This Row],[Input 3]],Table_PI[[#This Row],[Input 4]],'Customer Information'!$AR$12,1,ROW())>0,MeasureCalc(Table_PI[[#This Row],[Hide:\nFormula Name]],Table_PI[[#This Row],[Quantity]],Table_PI[[#This Row],[List 1]],Table_PI[[#This Row],[List 2]],Table_PI[[#This Row],[List 3]],Table_PI[[#This Row],[Size]],Table_PI[[#This Row],[Input 1]],Table_PI[[#This Row],[Input 2]],Table_PI[[#This Row],[Input 3]],Table_PI[[#This Row],[Input 4]],'Customer Information'!$AR$12,8,ROW()),\"No Rebate\"),\"No Rebate\"),0)","v":0},{"$f":"IF(Table_PI[[#This Row],[Hide:\nFormula Name]]<>\"\",IF(AND(Table_PI[[#This Row],[Hide:\nFormula Name]]<>\"\",OR(Table_PI[[#This Row],[Rebate]]>0,Table_PI[[#This Row],[Rebate]]=\"No Rebate\")),TRUE,\"MI: Line Item \" & $A116),\"\")","v":""}]
[{"$f":"IF(Table_PI[[#This Row],[Hide:\nFormula Name]]<>\"\",MAX($A$2:A116)+1,\"\")","v":""},null,null,null,null,null,null,null,null,null,null,null,null,null,null,{"$f":"IFERROR(VLOOKUP(Table_PI[[#This Row],[Measure]],'Equipment Lookups'!$C$3:$D$23,2,FALSE),\"\")","v":""},{"$f":"IF(Table_PI[[#This Row],[Hide:\nFormula Name]]<>\"\",IFERROR(IF(MeasureCalc(Table_PI[[#This Row],[Hide:\nFormula Name]],Table_PI[[#This Row],[Quantity]],Table_PI[[#This Row],[List 1]],Table_PI[[#This Row],[List 2]],Table_PI[[#This Row],[List 3]],Table_PI[[#This Row],[Size]],Table_PI[[#This Row],[Input 1]],Table_PI[[#This Row],[Input 2]],Table_PI[[#This Row],[Input 3]],Table_PI[[#This Row],[Input 4]],'Customer Information'!$AR$12,1,ROW())>0,MeasureCalc(Table_PI[[#This Row],[Hide:\nFormula Name]],Table_PI[[#This Row],[Quantity]],Table_PI[[#This Row],[List 1]],Table_PI[[#This Row],[List 2]],Table_PI[[#This Row],[List 3]],Table_PI[[#This Row],[Size]],Table_PI[[#This Row],[Input 1]],Table_PI[[#This Row],[Input 2]],Table_PI[[#This Row],[Input 3]],Table_PI[[#This Row],[Input 4]],'Customer Information'!$AR$12,1,ROW()),\"No Rebate\"),\"No Rebate\"),0)","v":0},{"$f":"IF(Table_PI[[#This Row],[Hide:\nFormula Name]]<>\"\",IFERROR(IF(MeasureCalc(Table_PI[[#This Row],[Hide:\nFormula Name]],Table_PI[[#This Row],[Quantity]],Table_PI[[#This Row],[List 1]],Table_PI[[#This Row],[List 2]],Table_PI[[#This Row],[List 3]],Table_PI[[#This Row],[Size]],Table_PI[[#This Row],[Input 1]],Table_PI[[#This Row],[Input 2]],Table_PI[[#This Row],[Input 3]],Table_PI[[#This Row],[Input 4]],'Customer Information'!$AR$12,1,ROW())>0,MeasureCalc(Table_PI[[#This Row],[Hide:\nFormula Name]],Table_PI[[#This Row],[Quantity]],Table_PI[[#This Row],[List 1]],Table_PI[[#This Row],[List 2]],Table_PI[[#This Row],[List 3]],Table_PI[[#This Row],[Size]],Table_PI[[#This Row],[Input 1]],Table_PI[[#This Row],[Input 2]],Table_PI[[#This Row],[Input 3]],Table_PI[[#This Row],[Input 4]],'Customer Information'!$AR$12,2,ROW()),\"No Rebate\"),\"No Rebate\"),0)","v":0},{"$f":"IF(Table_PI[[#This Row],[Hide:\nFormula Name]]<>\"\",IFERROR(IF(MeasureCalc(Table_PI[[#This Row],[Hide:\nFormula Name]],Table_PI[[#This Row],[Quantity]],Table_PI[[#This Row],[List 1]],Table_PI[[#This Row],[List 2]],Table_PI[[#This Row],[List 3]],Table_PI[[#This Row],[Size]],Table_PI[[#This Row],[Input 1]],Table_PI[[#This Row],[Input 2]],Table_PI[[#This Row],[Input 3]],Table_PI[[#This Row],[Input 4]],'Customer Information'!$AR$12,1,ROW())>0,MeasureCalc(Table_PI[[#This Row],[Hide:\nFormula Name]],Table_PI[[#This Row],[Quantity]],Table_PI[[#This Row],[List 1]],Table_PI[[#This Row],[List 2]],Table_PI[[#This Row],[List 3]],Table_PI[[#This Row],[Size]],Table_PI[[#This Row],[Input 1]],Table_PI[[#This Row],[Input 2]],Table_PI[[#This Row],[Input 3]],Table_PI[[#This Row],[Input 4]],'Customer Information'!$AR$12,3,ROW()),\"No Rebate\"),\"No Rebate\"),0)","v":0},{"$f":"IF(Table_PI[[#This Row],[Hide:\nFormula Name]]<>\"\",IFERROR(IF(MeasureCalc(Table_PI[[#This Row],[Hide:\nFormula Name]],Table_PI[[#This Row],[Quantity]],Table_PI[[#This Row],[List 1]],Table_PI[[#This Row],[List 2]],Table_PI[[#This Row],[List 3]],Table_PI[[#This Row],[Size]],Table_PI[[#This Row],[Input 1]],Table_PI[[#This Row],[Input 2]],Table_PI[[#This Row],[Input 3]],Table_PI[[#This Row],[Input 4]],'Customer Information'!$AR$12,1,ROW())>0,MeasureCalc(Table_PI[[#This Row],[Hide:\nFormula Name]],Table_PI[[#This Row],[Quantity]],Table_PI[[#This Row],[List 1]],Table_PI[[#This Row],[List 2]],Table_PI[[#This Row],[List 3]],Table_PI[[#This Row],[Size]],Table_PI[[#This Row],[Input 1]],Table_PI[[#This Row],[Input 2]],Table_PI[[#This Row],[Input 3]],Table_PI[[#This Row],[Input 4]],'Customer Information'!$AR$12,4,ROW()),\"No Rebate\"),\"No Rebate\"),0)","v":0},{"$f":"IF(Table_PI[[#This Row],[Hide:\nFormula Name]]<>\"\",IFERROR(IF(MeasureCalc(Table_PI[[#This Row],[Hide:\nFormula Name]],Table_PI[[#This Row],[Quantity]],Table_PI[[#This Row],[List 1]],Table_PI[[#This Row],[List 2]],Table_PI[[#This Row],[List 3]],Table_PI[[#This Row],[Size]],Table_PI[[#This Row],[Input 1]],Table_PI[[#This Row],[Input 2]],Table_PI[[#This Row],[Input 3]],Table_PI[[#This Row],[Input 4]],'Customer Information'!$AR$12,1,ROW())>0,MeasureCalc(Table_PI[[#This Row],[Hide:\nFormula Name]],Table_PI[[#This Row],[Quantity]],Table_PI[[#This Row],[List 1]],Table_PI[[#This Row],[List 2]],Table_PI[[#This Row],[List 3]],Table_PI[[#This Row],[Size]],Table_PI[[#This Row],[Input 1]],Table_PI[[#This Row],[Input 2]],Table_PI[[#This Row],[Input 3]],Table_PI[[#This Row],[Input 4]],'Customer Information'!$AR$12,5,ROW()),\"No Rebate\"),\"No Rebate\"),0)","v":0},{"$f":"IF(Table_PI[[#This Row],[Hide:\nFormula Name]]<>\"\",IFERROR(IF(MeasureCalc(Table_PI[[#This Row],[Hide:\nFormula Name]],Table_PI[[#This Row],[Quantity]],Table_PI[[#This Row],[List 1]],Table_PI[[#This Row],[List 2]],Table_PI[[#This Row],[List 3]],Table_PI[[#This Row],[Size]],Table_PI[[#This Row],[Input 1]],Table_PI[[#This Row],[Input 2]],Table_PI[[#This Row],[Input 3]],Table_PI[[#This Row],[Input 4]],'Customer Information'!$AR$12,1,ROW())>0,MeasureCalc(Table_PI[[#This Row],[Hide:\nFormula Name]],Table_PI[[#This Row],[Quantity]],Table_PI[[#This Row],[List 1]],Table_PI[[#This Row],[List 2]],Table_PI[[#This Row],[List 3]],Table_PI[[#This Row],[Size]],Table_PI[[#This Row],[Input 1]],Table_PI[[#This Row],[Input 2]],Table_PI[[#This Row],[Input 3]],Table_PI[[#This Row],[Input 4]],'Customer Information'!$AR$12,6,ROW()),\"No Rebate\"),\"No Rebate\"),0)","v":0},{"$f":"IF(Table_PI[[#This Row],[Hide:\nFormula Name]]<>\"\",IFERROR(IF(MeasureCalc(Table_PI[[#This Row],[Hide:\nFormula Name]],Table_PI[[#This Row],[Quantity]],Table_PI[[#This Row],[List 1]],Table_PI[[#This Row],[List 2]],Table_PI[[#This Row],[List 3]],Table_PI[[#This Row],[Size]],Table_PI[[#This Row],[Input 1]],Table_PI[[#This Row],[Input 2]],Table_PI[[#This Row],[Input 3]],Table_PI[[#This Row],[Input 4]],'Customer Information'!$AR$12,1,ROW())>0,MeasureCalc(Table_PI[[#This Row],[Hide:\nFormula Name]],Table_PI[[#This Row],[Quantity]],Table_PI[[#This Row],[List 1]],Table_PI[[#This Row],[List 2]],Table_PI[[#This Row],[List 3]],Table_PI[[#This Row],[Size]],Table_PI[[#This Row],[Input 1]],Table_PI[[#This Row],[Input 2]],Table_PI[[#This Row],[Input 3]],Table_PI[[#This Row],[Input 4]],'Customer Information'!$AR$12,7,ROW()),\"No Rebate\"),\"No Rebate\"),0)","v":0},{"$f":"IF(Table_PI[[#This Row],[Hide:\nFormula Name]]<>\"\",IFERROR(IF(MeasureCalc(Table_PI[[#This Row],[Hide:\nFormula Name]],Table_PI[[#This Row],[Quantity]],Table_PI[[#This Row],[List 1]],Table_PI[[#This Row],[List 2]],Table_PI[[#This Row],[List 3]],Table_PI[[#This Row],[Size]],Table_PI[[#This Row],[Input 1]],Table_PI[[#This Row],[Input 2]],Table_PI[[#This Row],[Input 3]],Table_PI[[#This Row],[Input 4]],'Customer Information'!$AR$12,1,ROW())>0,MeasureCalc(Table_PI[[#This Row],[Hide:\nFormula Name]],Table_PI[[#This Row],[Quantity]],Table_PI[[#This Row],[List 1]],Table_PI[[#This Row],[List 2]],Table_PI[[#This Row],[List 3]],Table_PI[[#This Row],[Size]],Table_PI[[#This Row],[Input 1]],Table_PI[[#This Row],[Input 2]],Table_PI[[#This Row],[Input 3]],Table_PI[[#This Row],[Input 4]],'Customer Information'!$AR$12,8,ROW()),\"No Rebate\"),\"No Rebate\"),0)","v":0},{"$f":"IF(Table_PI[[#This Row],[Hide:\nFormula Name]]<>\"\",IF(AND(Table_PI[[#This Row],[Hide:\nFormula Name]]<>\"\",OR(Table_PI[[#This Row],[Rebate]]>0,Table_PI[[#This Row],[Rebate]]=\"No Rebate\")),TRUE,\"MI: Line Item \" & $A117),\"\")","v":""}]
[{"$f":"IF(Table_PI[[#This Row],[Hide:\nFormula Name]]<>\"\",MAX($A$2:A117)+1,\"\")","v":""},null,null,null,null,null,null,null,null,null,null,null,null,null,null,{"$f":"IFERROR(VLOOKUP(Table_PI[[#This Row],[Measure]],'Equipment Lookups'!$C$3:$D$23,2,FALSE),\"\")","v":""},{"$f":"IF(Table_PI[[#This Row],[Hide:\nFormula Name]]<>\"\",IFERROR(IF(MeasureCalc(Table_PI[[#This Row],[Hide:\nFormula Name]],Table_PI[[#This Row],[Quantity]],Table_PI[[#This Row],[List 1]],Table_PI[[#This Row],[List 2]],Table_PI[[#This Row],[List 3]],Table_PI[[#This Row],[Size]],Table_PI[[#This Row],[Input 1]],Table_PI[[#This Row],[Input 2]],Table_PI[[#This Row],[Input 3]],Table_PI[[#This Row],[Input 4]],'Customer Information'!$AR$12,1,ROW())>0,MeasureCalc(Table_PI[[#This Row],[Hide:\nFormula Name]],Table_PI[[#This Row],[Quantity]],Table_PI[[#This Row],[List 1]],Table_PI[[#This Row],[List 2]],Table_PI[[#This Row],[List 3]],Table_PI[[#This Row],[Size]],Table_PI[[#This Row],[Input 1]],Table_PI[[#This Row],[Input 2]],Table_PI[[#This Row],[Input 3]],Table_PI[[#This Row],[Input 4]],'Customer Information'!$AR$12,1,ROW()),\"No Rebate\"),\"No Rebate\"),0)","v":0},{"$f":"IF(Table_PI[[#This Row],[Hide:\nFormula Name]]<>\"\",IFERROR(IF(MeasureCalc(Table_PI[[#This Row],[Hide:\nFormula Name]],Table_PI[[#This Row],[Quantity]],Table_PI[[#This Row],[List 1]],Table_PI[[#This Row],[List 2]],Table_PI[[#This Row],[List 3]],Table_PI[[#This Row],[Size]],Table_PI[[#This Row],[Input 1]],Table_PI[[#This Row],[Input 2]],Table_PI[[#This Row],[Input 3]],Table_PI[[#This Row],[Input 4]],'Customer Information'!$AR$12,1,ROW())>0,MeasureCalc(Table_PI[[#This Row],[Hide:\nFormula Name]],Table_PI[[#This Row],[Quantity]],Table_PI[[#This Row],[List 1]],Table_PI[[#This Row],[List 2]],Table_PI[[#This Row],[List 3]],Table_PI[[#This Row],[Size]],Table_PI[[#This Row],[Input 1]],Table_PI[[#This Row],[Input 2]],Table_PI[[#This Row],[Input 3]],Table_PI[[#This Row],[Input 4]],'Customer Information'!$AR$12,2,ROW()),\"No Rebate\"),\"No Rebate\"),0)","v":0},{"$f":"IF(Table_PI[[#This Row],[Hide:\nFormula Name]]<>\"\",IFERROR(IF(MeasureCalc(Table_PI[[#This Row],[Hide:\nFormula Name]],Table_PI[[#This Row],[Quantity]],Table_PI[[#This Row],[List 1]],Table_PI[[#This Row],[List 2]],Table_PI[[#This Row],[List 3]],Table_PI[[#This Row],[Size]],Table_PI[[#This Row],[Input 1]],Table_PI[[#This Row],[Input 2]],Table_PI[[#This Row],[Input 3]],Table_PI[[#This Row],[Input 4]],'Customer Information'!$AR$12,1,ROW())>0,MeasureCalc(Table_PI[[#This Row],[Hide:\nFormula Name]],Table_PI[[#This Row],[Quantity]],Table_PI[[#This Row],[List 1]],Table_PI[[#This Row],[List 2]],Table_PI[[#This Row],[List 3]],Table_PI[[#This Row],[Size]],Table_PI[[#This Row],[Input 1]],Table_PI[[#This Row],[Input 2]],Table_PI[[#This Row],[Input 3]],Table_PI[[#This Row],[Input 4]],'Customer Information'!$AR$12,3,ROW()),\"No Rebate\"),\"No Rebate\"),0)","v":0},{"$f":"IF(Table_PI[[#This Row],[Hide:\nFormula Name]]<>\"\",IFERROR(IF(MeasureCalc(Table_PI[[#This Row],[Hide:\nFormula Name]],Table_PI[[#This Row],[Quantity]],Table_PI[[#This Row],[List 1]],Table_PI[[#This Row],[List 2]],Table_PI[[#This Row],[List 3]],Table_PI[[#This Row],[Size]],Table_PI[[#This Row],[Input 1]],Table_PI[[#This Row],[Input 2]],Table_PI[[#This Row],[Input 3]],Table_PI[[#This Row],[Input 4]],'Customer Information'!$AR$12,1,ROW())>0,MeasureCalc(Table_PI[[#This Row],[Hide:\nFormula Name]],Table_PI[[#This Row],[Quantity]],Table_PI[[#This Row],[List 1]],Table_PI[[#This Row],[List 2]],Table_PI[[#This Row],[List 3]],Table_PI[[#This Row],[Size]],Table_PI[[#This Row],[Input 1]],Table_PI[[#This Row],[Input 2]],Table_PI[[#This Row],[Input 3]],Table_PI[[#This Row],[Input 4]],'Customer Information'!$AR$12,4,ROW()),\"No Rebate\"),\"No Rebate\"),0)","v":0},{"$f":"IF(Table_PI[[#This Row],[Hide:\nFormula Name]]<>\"\",IFERROR(IF(MeasureCalc(Table_PI[[#This Row],[Hide:\nFormula Name]],Table_PI[[#This Row],[Quantity]],Table_PI[[#This Row],[List 1]],Table_PI[[#This Row],[List 2]],Table_PI[[#This Row],[List 3]],Table_PI[[#This Row],[Size]],Table_PI[[#This Row],[Input 1]],Table_PI[[#This Row],[Input 2]],Table_PI[[#This Row],[Input 3]],Table_PI[[#This Row],[Input 4]],'Customer Information'!$AR$12,1,ROW())>0,MeasureCalc(Table_PI[[#This Row],[Hide:\nFormula Name]],Table_PI[[#This Row],[Quantity]],Table_PI[[#This Row],[List 1]],Table_PI[[#This Row],[List 2]],Table_PI[[#This Row],[List 3]],Table_PI[[#This Row],[Size]],Table_PI[[#This Row],[Input 1]],Table_PI[[#This Row],[Input 2]],Table_PI[[#This Row],[Input 3]],Table_PI[[#This Row],[Input 4]],'Customer Information'!$AR$12,5,ROW()),\"No Rebate\"),\"No Rebate\"),0)","v":0},{"$f":"IF(Table_PI[[#This Row],[Hide:\nFormula Name]]<>\"\",IFERROR(IF(MeasureCalc(Table_PI[[#This Row],[Hide:\nFormula Name]],Table_PI[[#This Row],[Quantity]],Table_PI[[#This Row],[List 1]],Table_PI[[#This Row],[List 2]],Table_PI[[#This Row],[List 3]],Table_PI[[#This Row],[Size]],Table_PI[[#This Row],[Input 1]],Table_PI[[#This Row],[Input 2]],Table_PI[[#This Row],[Input 3]],Table_PI[[#This Row],[Input 4]],'Customer Information'!$AR$12,1,ROW())>0,MeasureCalc(Table_PI[[#This Row],[Hide:\nFormula Name]],Table_PI[[#This Row],[Quantity]],Table_PI[[#This Row],[List 1]],Table_PI[[#This Row],[List 2]],Table_PI[[#This Row],[List 3]],Table_PI[[#This Row],[Size]],Table_PI[[#This Row],[Input 1]],Table_PI[[#This Row],[Input 2]],Table_PI[[#This Row],[Input 3]],Table_PI[[#This Row],[Input 4]],'Customer Information'!$AR$12,6,ROW()),\"No Rebate\"),\"No Rebate\"),0)","v":0},{"$f":"IF(Table_PI[[#This Row],[Hide:\nFormula Name]]<>\"\",IFERROR(IF(MeasureCalc(Table_PI[[#This Row],[Hide:\nFormula Name]],Table_PI[[#This Row],[Quantity]],Table_PI[[#This Row],[List 1]],Table_PI[[#This Row],[List 2]],Table_PI[[#This Row],[List 3]],Table_PI[[#This Row],[Size]],Table_PI[[#This Row],[Input 1]],Table_PI[[#This Row],[Input 2]],Table_PI[[#This Row],[Input 3]],Table_PI[[#This Row],[Input 4]],'Customer Information'!$AR$12,1,ROW())>0,MeasureCalc(Table_PI[[#This Row],[Hide:\nFormula Name]],Table_PI[[#This Row],[Quantity]],Table_PI[[#This Row],[List 1]],Table_PI[[#This Row],[List 2]],Table_PI[[#This Row],[List 3]],Table_PI[[#This Row],[Size]],Table_PI[[#This Row],[Input 1]],Table_PI[[#This Row],[Input 2]],Table_PI[[#This Row],[Input 3]],Table_PI[[#This Row],[Input 4]],'Customer Information'!$AR$12,7,ROW()),\"No Rebate\"),\"No Rebate\"),0)","v":0},{"$f":"IF(Table_PI[[#This Row],[Hide:\nFormula Name]]<>\"\",IFERROR(IF(MeasureCalc(Table_PI[[#This Row],[Hide:\nFormula Name]],Table_PI[[#This Row],[Quantity]],Table_PI[[#This Row],[List 1]],Table_PI[[#This Row],[List 2]],Table_PI[[#This Row],[List 3]],Table_PI[[#This Row],[Size]],Table_PI[[#This Row],[Input 1]],Table_PI[[#This Row],[Input 2]],Table_PI[[#This Row],[Input 3]],Table_PI[[#This Row],[Input 4]],'Customer Information'!$AR$12,1,ROW())>0,MeasureCalc(Table_PI[[#This Row],[Hide:\nFormula Name]],Table_PI[[#This Row],[Quantity]],Table_PI[[#This Row],[List 1]],Table_PI[[#This Row],[List 2]],Table_PI[[#This Row],[List 3]],Table_PI[[#This Row],[Size]],Table_PI[[#This Row],[Input 1]],Table_PI[[#This Row],[Input 2]],Table_PI[[#This Row],[Input 3]],Table_PI[[#This Row],[Input 4]],'Customer Information'!$AR$12,8,ROW()),\"No Rebate\"),\"No Rebate\"),0)","v":0},{"$f":"IF(Table_PI[[#This Row],[Hide:\nFormula Name]]<>\"\",IF(AND(Table_PI[[#This Row],[Hide:\nFormula Name]]<>\"\",OR(Table_PI[[#This Row],[Rebate]]>0,Table_PI[[#This Row],[Rebate]]=\"No Rebate\")),TRUE,\"MI: Line Item \" & $A118),\"\")","v":""}]
[{"$f":"IF(Table_PI[[#This Row],[Hide:\nFormula Name]]<>\"\",MAX($A$2:A118)+1,\"\")","v":""},null,null,null,null,null,null,null,null,null,null,null,null,null,null,{"$f":"IFERROR(VLOOKUP(Table_PI[[#This Row],[Measure]],'Equipment Lookups'!$C$3:$D$23,2,FALSE),\"\")","v":""},{"$f":"IF(Table_PI[[#This Row],[Hide:\nFormula Name]]<>\"\",IFERROR(IF(MeasureCalc(Table_PI[[#This Row],[Hide:\nFormula Name]],Table_PI[[#This Row],[Quantity]],Table_PI[[#This Row],[List 1]],Table_PI[[#This Row],[List 2]],Table_PI[[#This Row],[List 3]],Table_PI[[#This Row],[Size]],Table_PI[[#This Row],[Input 1]],Table_PI[[#This Row],[Input 2]],Table_PI[[#This Row],[Input 3]],Table_PI[[#This Row],[Input 4]],'Customer Information'!$AR$12,1,ROW())>0,MeasureCalc(Table_PI[[#This Row],[Hide:\nFormula Name]],Table_PI[[#This Row],[Quantity]],Table_PI[[#This Row],[List 1]],Table_PI[[#This Row],[List 2]],Table_PI[[#This Row],[List 3]],Table_PI[[#This Row],[Size]],Table_PI[[#This Row],[Input 1]],Table_PI[[#This Row],[Input 2]],Table_PI[[#This Row],[Input 3]],Table_PI[[#This Row],[Input 4]],'Customer Information'!$AR$12,1,ROW()),\"No Rebate\"),\"No Rebate\"),0)","v":0},{"$f":"IF(Table_PI[[#This Row],[Hide:\nFormula Name]]<>\"\",IFERROR(IF(MeasureCalc(Table_PI[[#This Row],[Hide:\nFormula Name]],Table_PI[[#This Row],[Quantity]],Table_PI[[#This Row],[List 1]],Table_PI[[#This Row],[List 2]],Table_PI[[#This Row],[List 3]],Table_PI[[#This Row],[Size]],Table_PI[[#This Row],[Input 1]],Table_PI[[#This Row],[Input 2]],Table_PI[[#This Row],[Input 3]],Table_PI[[#This Row],[Input 4]],'Customer Information'!$AR$12,1,ROW())>0,MeasureCalc(Table_PI[[#This Row],[Hide:\nFormula Name]],Table_PI[[#This Row],[Quantity]],Table_PI[[#This Row],[List 1]],Table_PI[[#This Row],[List 2]],Table_PI[[#This Row],[List 3]],Table_PI[[#This Row],[Size]],Table_PI[[#This Row],[Input 1]],Table_PI[[#This Row],[Input 2]],Table_PI[[#This Row],[Input 3]],Table_PI[[#This Row],[Input 4]],'Customer Information'!$AR$12,2,ROW()),\"No Rebate\"),\"No Rebate\"),0)","v":0},{"$f":"IF(Table_PI[[#This Row],[Hide:\nFormula Name]]<>\"\",IFERROR(IF(MeasureCalc(Table_PI[[#This Row],[Hide:\nFormula Name]],Table_PI[[#This Row],[Quantity]],Table_PI[[#This Row],[List 1]],Table_PI[[#This Row],[List 2]],Table_PI[[#This Row],[List 3]],Table_PI[[#This Row],[Size]],Table_PI[[#This Row],[Input 1]],Table_PI[[#This Row],[Input 2]],Table_PI[[#This Row],[Input 3]],Table_PI[[#This Row],[Input 4]],'Customer Information'!$AR$12,1,ROW())>0,MeasureCalc(Table_PI[[#This Row],[Hide:\nFormula Name]],Table_PI[[#This Row],[Quantity]],Table_PI[[#This Row],[List 1]],Table_PI[[#This Row],[List 2]],Table_PI[[#This Row],[List 3]],Table_PI[[#This Row],[Size]],Table_PI[[#This Row],[Input 1]],Table_PI[[#This Row],[Input 2]],Table_PI[[#This Row],[Input 3]],Table_PI[[#This Row],[Input 4]],'Customer Information'!$AR$12,3,ROW()),\"No Rebate\"),\"No Rebate\"),0)","v":0},{"$f":"IF(Table_PI[[#This Row],[Hide:\nFormula Name]]<>\"\",IFERROR(IF(MeasureCalc(Table_PI[[#This Row],[Hide:\nFormula Name]],Table_PI[[#This Row],[Quantity]],Table_PI[[#This Row],[List 1]],Table_PI[[#This Row],[List 2]],Table_PI[[#This Row],[List 3]],Table_PI[[#This Row],[Size]],Table_PI[[#This Row],[Input 1]],Table_PI[[#This Row],[Input 2]],Table_PI[[#This Row],[Input 3]],Table_PI[[#This Row],[Input 4]],'Customer Information'!$AR$12,1,ROW())>0,MeasureCalc(Table_PI[[#This Row],[Hide:\nFormula Name]],Table_PI[[#This Row],[Quantity]],Table_PI[[#This Row],[List 1]],Table_PI[[#This Row],[List 2]],Table_PI[[#This Row],[List 3]],Table_PI[[#This Row],[Size]],Table_PI[[#This Row],[Input 1]],Table_PI[[#This Row],[Input 2]],Table_PI[[#This Row],[Input 3]],Table_PI[[#This Row],[Input 4]],'Customer Information'!$AR$12,4,ROW()),\"No Rebate\"),\"No Rebate\"),0)","v":0},{"$f":"IF(Table_PI[[#This Row],[Hide:\nFormula Name]]<>\"\",IFERROR(IF(MeasureCalc(Table_PI[[#This Row],[Hide:\nFormula Name]],Table_PI[[#This Row],[Quantity]],Table_PI[[#This Row],[List 1]],Table_PI[[#This Row],[List 2]],Table_PI[[#This Row],[List 3]],Table_PI[[#This Row],[Size]],Table_PI[[#This Row],[Input 1]],Table_PI[[#This Row],[Input 2]],Table_PI[[#This Row],[Input 3]],Table_PI[[#This Row],[Input 4]],'Customer Information'!$AR$12,1,ROW())>0,MeasureCalc(Table_PI[[#This Row],[Hide:\nFormula Name]],Table_PI[[#This Row],[Quantity]],Table_PI[[#This Row],[List 1]],Table_PI[[#This Row],[List 2]],Table_PI[[#This Row],[List 3]],Table_PI[[#This Row],[Size]],Table_PI[[#This Row],[Input 1]],Table_PI[[#This Row],[Input 2]],Table_PI[[#This Row],[Input 3]],Table_PI[[#This Row],[Input 4]],'Customer Information'!$AR$12,5,ROW()),\"No Rebate\"),\"No Rebate\"),0)","v":0},{"$f":"IF(Table_PI[[#This Row],[Hide:\nFormula Name]]<>\"\",IFERROR(IF(MeasureCalc(Table_PI[[#This Row],[Hide:\nFormula Name]],Table_PI[[#This Row],[Quantity]],Table_PI[[#This Row],[List 1]],Table_PI[[#This Row],[List 2]],Table_PI[[#This Row],[List 3]],Table_PI[[#This Row],[Size]],Table_PI[[#This Row],[Input 1]],Table_PI[[#This Row],[Input 2]],Table_PI[[#This Row],[Input 3]],Table_PI[[#This Row],[Input 4]],'Customer Information'!$AR$12,1,ROW())>0,MeasureCalc(Table_PI[[#This Row],[Hide:\nFormula Name]],Table_PI[[#This Row],[Quantity]],Table_PI[[#This Row],[List 1]],Table_PI[[#This Row],[List 2]],Table_PI[[#This Row],[List 3]],Table_PI[[#This Row],[Size]],Table_PI[[#This Row],[Input 1]],Table_PI[[#This Row],[Input 2]],Table_PI[[#This Row],[Input 3]],Table_PI[[#This Row],[Input 4]],'Customer Information'!$AR$12,6,ROW()),\"No Rebate\"),\"No Rebate\"),0)","v":0},{"$f":"IF(Table_PI[[#This Row],[Hide:\nFormula Name]]<>\"\",IFERROR(IF(MeasureCalc(Table_PI[[#This Row],[Hide:\nFormula Name]],Table_PI[[#This Row],[Quantity]],Table_PI[[#This Row],[List 1]],Table_PI[[#This Row],[List 2]],Table_PI[[#This Row],[List 3]],Table_PI[[#This Row],[Size]],Table_PI[[#This Row],[Input 1]],Table_PI[[#This Row],[Input 2]],Table_PI[[#This Row],[Input 3]],Table_PI[[#This Row],[Input 4]],'Customer Information'!$AR$12,1,ROW())>0,MeasureCalc(Table_PI[[#This Row],[Hide:\nFormula Name]],Table_PI[[#This Row],[Quantity]],Table_PI[[#This Row],[List 1]],Table_PI[[#This Row],[List 2]],Table_PI[[#This Row],[List 3]],Table_PI[[#This Row],[Size]],Table_PI[[#This Row],[Input 1]],Table_PI[[#This Row],[Input 2]],Table_PI[[#This Row],[Input 3]],Table_PI[[#This Row],[Input 4]],'Customer Information'!$AR$12,7,ROW()),\"No Rebate\"),\"No Rebate\"),0)","v":0},{"$f":"IF(Table_PI[[#This Row],[Hide:\nFormula Name]]<>\"\",IFERROR(IF(MeasureCalc(Table_PI[[#This Row],[Hide:\nFormula Name]],Table_PI[[#This Row],[Quantity]],Table_PI[[#This Row],[List 1]],Table_PI[[#This Row],[List 2]],Table_PI[[#This Row],[List 3]],Table_PI[[#This Row],[Size]],Table_PI[[#This Row],[Input 1]],Table_PI[[#This Row],[Input 2]],Table_PI[[#This Row],[Input 3]],Table_PI[[#This Row],[Input 4]],'Customer Information'!$AR$12,1,ROW())>0,MeasureCalc(Table_PI[[#This Row],[Hide:\nFormula Name]],Table_PI[[#This Row],[Quantity]],Table_PI[[#This Row],[List 1]],Table_PI[[#This Row],[List 2]],Table_PI[[#This Row],[List 3]],Table_PI[[#This Row],[Size]],Table_PI[[#This Row],[Input 1]],Table_PI[[#This Row],[Input 2]],Table_PI[[#This Row],[Input 3]],Table_PI[[#This Row],[Input 4]],'Customer Information'!$AR$12,8,ROW()),\"No Rebate\"),\"No Rebate\"),0)","v":0},{"$f":"IF(Table_PI[[#This Row],[Hide:\nFormula Name]]<>\"\",IF(AND(Table_PI[[#This Row],[Hide:\nFormula Name]]<>\"\",OR(Table_PI[[#This Row],[Rebate]]>0,Table_PI[[#This Row],[Rebate]]=\"No Rebate\")),TRUE,\"MI: Line Item \" & $A119),\"\")","v":""}]
[{"$f":"IF(Table_PI[[#This Row],[Hide:\nFormula Name]]<>\"\",MAX($A$2:A119)+1,\"\")","v":""},null,null,null,null,null,null,null,null,null,null,null,null,null,null,{"$f":"IFERROR(VLOOKUP(Table_PI[[#This Row],[Measure]],'Equipment Lookups'!$C$3:$D$23,2,FALSE),\"\")","v":""},{"$f":"IF(Table_PI[[#This Row],[Hide:\nFormula Name]]<>\"\",IFERROR(IF(MeasureCalc(Table_PI[[#This Row],[Hide:\nFormula Name]],Table_PI[[#This Row],[Quantity]],Table_PI[[#This Row],[List 1]],Table_PI[[#This Row],[List 2]],Table_PI[[#This Row],[List 3]],Table_PI[[#This Row],[Size]],Table_PI[[#This Row],[Input 1]],Table_PI[[#This Row],[Input 2]],Table_PI[[#This Row],[Input 3]],Table_PI[[#This Row],[Input 4]],'Customer Information'!$AR$12,1,ROW())>0,MeasureCalc(Table_PI[[#This Row],[Hide:\nFormula Name]],Table_PI[[#This Row],[Quantity]],Table_PI[[#This Row],[List 1]],Table_PI[[#This Row],[List 2]],Table_PI[[#This Row],[List 3]],Table_PI[[#This Row],[Size]],Table_PI[[#This Row],[Input 1]],Table_PI[[#This Row],[Input 2]],Table_PI[[#This Row],[Input 3]],Table_PI[[#This Row],[Input 4]],'Customer Information'!$AR$12,1,ROW()),\"No Rebate\"),\"No Rebate\"),0)","v":0},{"$f":"IF(Table_PI[[#This Row],[Hide:\nFormula Name]]<>\"\",IFERROR(IF(MeasureCalc(Table_PI[[#This Row],[Hide:\nFormula Name]],Table_PI[[#This Row],[Quantity]],Table_PI[[#This Row],[List 1]],Table_PI[[#This Row],[List 2]],Table_PI[[#This Row],[List 3]],Table_PI[[#This Row],[Size]],Table_PI[[#This Row],[Input 1]],Table_PI[[#This Row],[Input 2]],Table_PI[[#This Row],[Input 3]],Table_PI[[#This Row],[Input 4]],'Customer Information'!$AR$12,1,ROW())>0,MeasureCalc(Table_PI[[#This Row],[Hide:\nFormula Name]],Table_PI[[#This Row],[Quantity]],Table_PI[[#This Row],[List 1]],Table_PI[[#This Row],[List 2]],Table_PI[[#This Row],[List 3]],Table_PI[[#This Row],[Size]],Table_PI[[#This Row],[Input 1]],Table_PI[[#This Row],[Input 2]],Table_PI[[#This Row],[Input 3]],Table_PI[[#This Row],[Input 4]],'Customer Information'!$AR$12,2,ROW()),\"No Rebate\"),\"No Rebate\"),0)","v":0},{"$f":"IF(Table_PI[[#This Row],[Hide:\nFormula Name]]<>\"\",IFERROR(IF(MeasureCalc(Table_PI[[#This Row],[Hide:\nFormula Name]],Table_PI[[#This Row],[Quantity]],Table_PI[[#This Row],[List 1]],Table_PI[[#This Row],[List 2]],Table_PI[[#This Row],[List 3]],Table_PI[[#This Row],[Size]],Table_PI[[#This Row],[Input 1]],Table_PI[[#This Row],[Input 2]],Table_PI[[#This Row],[Input 3]],Table_PI[[#This Row],[Input 4]],'Customer Information'!$AR$12,1,ROW())>0,MeasureCalc(Table_PI[[#This Row],[Hide:\nFormula Name]],Table_PI[[#This Row],[Quantity]],Table_PI[[#This Row],[List 1]],Table_PI[[#This Row],[List 2]],Table_PI[[#This Row],[List 3]],Table_PI[[#This Row],[Size]],Table_PI[[#This Row],[Input 1]],Table_PI[[#This Row],[Input 2]],Table_PI[[#This Row],[Input 3]],Table_PI[[#This Row],[Input 4]],'Customer Information'!$AR$12,3,ROW()),\"No Rebate\"),\"No Rebate\"),0)","v":0},{"$f":"IF(Table_PI[[#This Row],[Hide:\nFormula Name]]<>\"\",IFERROR(IF(MeasureCalc(Table_PI[[#This Row],[Hide:\nFormula Name]],Table_PI[[#This Row],[Quantity]],Table_PI[[#This Row],[List 1]],Table_PI[[#This Row],[List 2]],Table_PI[[#This Row],[List 3]],Table_PI[[#This Row],[Size]],Table_PI[[#This Row],[Input 1]],Table_PI[[#This Row],[Input 2]],Table_PI[[#This Row],[Input 3]],Table_PI[[#This Row],[Input 4]],'Customer Information'!$AR$12,1,ROW())>0,MeasureCalc(Table_PI[[#This Row],[Hide:\nFormula Name]],Table_PI[[#This Row],[Quantity]],Table_PI[[#This Row],[List 1]],Table_PI[[#This Row],[List 2]],Table_PI[[#This Row],[List 3]],Table_PI[[#This Row],[Size]],Table_PI[[#This Row],[Input 1]],Table_PI[[#This Row],[Input 2]],Table_PI[[#This Row],[Input 3]],Table_PI[[#This Row],[Input 4]],'Customer Information'!$AR$12,4,ROW()),\"No Rebate\"),\"No Rebate\"),0)","v":0},{"$f":"IF(Table_PI[[#This Row],[Hide:\nFormula Name]]<>\"\",IFERROR(IF(MeasureCalc(Table_PI[[#This Row],[Hide:\nFormula Name]],Table_PI[[#This Row],[Quantity]],Table_PI[[#This Row],[List 1]],Table_PI[[#This Row],[List 2]],Table_PI[[#This Row],[List 3]],Table_PI[[#This Row],[Size]],Table_PI[[#This Row],[Input 1]],Table_PI[[#This Row],[Input 2]],Table_PI[[#This Row],[Input 3]],Table_PI[[#This Row],[Input 4]],'Customer Information'!$AR$12,1,ROW())>0,MeasureCalc(Table_PI[[#This Row],[Hide:\nFormula Name]],Table_PI[[#This Row],[Quantity]],Table_PI[[#This Row],[List 1]],Table_PI[[#This Row],[List 2]],Table_PI[[#This Row],[List 3]],Table_PI[[#This Row],[Size]],Table_PI[[#This Row],[Input 1]],Table_PI[[#This Row],[Input 2]],Table_PI[[#This Row],[Input 3]],Table_PI[[#This Row],[Input 4]],'Customer Information'!$AR$12,5,ROW()),\"No Rebate\"),\"No Rebate\"),0)","v":0},{"$f":"IF(Table_PI[[#This Row],[Hide:\nFormula Name]]<>\"\",IFERROR(IF(MeasureCalc(Table_PI[[#This Row],[Hide:\nFormula Name]],Table_PI[[#This Row],[Quantity]],Table_PI[[#This Row],[List 1]],Table_PI[[#This Row],[List 2]],Table_PI[[#This Row],[List 3]],Table_PI[[#This Row],[Size]],Table_PI[[#This Row],[Input 1]],Table_PI[[#This Row],[Input 2]],Table_PI[[#This Row],[Input 3]],Table_PI[[#This Row],[Input 4]],'Customer Information'!$AR$12,1,ROW())>0,MeasureCalc(Table_PI[[#This Row],[Hide:\nFormula Name]],Table_PI[[#This Row],[Quantity]],Table_PI[[#This Row],[List 1]],Table_PI[[#This Row],[List 2]],Table_PI[[#This Row],[List 3]],Table_PI[[#This Row],[Size]],Table_PI[[#This Row],[Input 1]],Table_PI[[#This Row],[Input 2]],Table_PI[[#This Row],[Input 3]],Table_PI[[#This Row],[Input 4]],'Customer Information'!$AR$12,6,ROW()),\"No Rebate\"),\"No Rebate\"),0)","v":0},{"$f":"IF(Table_PI[[#This Row],[Hide:\nFormula Name]]<>\"\",IFERROR(IF(MeasureCalc(Table_PI[[#This Row],[Hide:\nFormula Name]],Table_PI[[#This Row],[Quantity]],Table_PI[[#This Row],[List 1]],Table_PI[[#This Row],[List 2]],Table_PI[[#This Row],[List 3]],Table_PI[[#This Row],[Size]],Table_PI[[#This Row],[Input 1]],Table_PI[[#This Row],[Input 2]],Table_PI[[#This Row],[Input 3]],Table_PI[[#This Row],[Input 4]],'Customer Information'!$AR$12,1,ROW())>0,MeasureCalc(Table_PI[[#This Row],[Hide:\nFormula Name]],Table_PI[[#This Row],[Quantity]],Table_PI[[#This Row],[List 1]],Table_PI[[#This Row],[List 2]],Table_PI[[#This Row],[List 3]],Table_PI[[#This Row],[Size]],Table_PI[[#This Row],[Input 1]],Table_PI[[#This Row],[Input 2]],Table_PI[[#This Row],[Input 3]],Table_PI[[#This Row],[Input 4]],'Customer Information'!$AR$12,7,ROW()),\"No Rebate\"),\"No Rebate\"),0)","v":0},{"$f":"IF(Table_PI[[#This Row],[Hide:\nFormula Name]]<>\"\",IFERROR(IF(MeasureCalc(Table_PI[[#This Row],[Hide:\nFormula Name]],Table_PI[[#This Row],[Quantity]],Table_PI[[#This Row],[List 1]],Table_PI[[#This Row],[List 2]],Table_PI[[#This Row],[List 3]],Table_PI[[#This Row],[Size]],Table_PI[[#This Row],[Input 1]],Table_PI[[#This Row],[Input 2]],Table_PI[[#This Row],[Input 3]],Table_PI[[#This Row],[Input 4]],'Customer Information'!$AR$12,1,ROW())>0,MeasureCalc(Table_PI[[#This Row],[Hide:\nFormula Name]],Table_PI[[#This Row],[Quantity]],Table_PI[[#This Row],[List 1]],Table_PI[[#This Row],[List 2]],Table_PI[[#This Row],[List 3]],Table_PI[[#This Row],[Size]],Table_PI[[#This Row],[Input 1]],Table_PI[[#This Row],[Input 2]],Table_PI[[#This Row],[Input 3]],Table_PI[[#This Row],[Input 4]],'Customer Information'!$AR$12,8,ROW()),\"No Rebate\"),\"No Rebate\"),0)","v":0},{"$f":"IF(Table_PI[[#This Row],[Hide:\nFormula Name]]<>\"\",IF(AND(Table_PI[[#This Row],[Hide:\nFormula Name]]<>\"\",OR(Table_PI[[#This Row],[Rebate]]>0,Table_PI[[#This Row],[Rebate]]=\"No Rebate\")),TRUE,\"MI: Line Item \" & $A120),\"\")","v":""}]
[{"$f":"IF(Table_PI[[#This Row],[Hide:\nFormula Name]]<>\"\",MAX($A$2:A120)+1,\"\")","v":""},null,null,null,null,null,null,null,null,null,null,null,null,null,null,{"$f":"IFERROR(VLOOKUP(Table_PI[[#This Row],[Measure]],'Equipment Lookups'!$C$3:$D$23,2,FALSE),\"\")","v":""},{"$f":"IF(Table_PI[[#This Row],[Hide:\nFormula Name]]<>\"\",IFERROR(IF(MeasureCalc(Table_PI[[#This Row],[Hide:\nFormula Name]],Table_PI[[#This Row],[Quantity]],Table_PI[[#This Row],[List 1]],Table_PI[[#This Row],[List 2]],Table_PI[[#This Row],[List 3]],Table_PI[[#This Row],[Size]],Table_PI[[#This Row],[Input 1]],Table_PI[[#This Row],[Input 2]],Table_PI[[#This Row],[Input 3]],Table_PI[[#This Row],[Input 4]],'Customer Information'!$AR$12,1,ROW())>0,MeasureCalc(Table_PI[[#This Row],[Hide:\nFormula Name]],Table_PI[[#This Row],[Quantity]],Table_PI[[#This Row],[List 1]],Table_PI[[#This Row],[List 2]],Table_PI[[#This Row],[List 3]],Table_PI[[#This Row],[Size]],Table_PI[[#This Row],[Input 1]],Table_PI[[#This Row],[Input 2]],Table_PI[[#This Row],[Input 3]],Table_PI[[#This Row],[Input 4]],'Customer Information'!$AR$12,1,ROW()),\"No Rebate\"),\"No Rebate\"),0)","v":0},{"$f":"IF(Table_PI[[#This Row],[Hide:\nFormula Name]]<>\"\",IFERROR(IF(MeasureCalc(Table_PI[[#This Row],[Hide:\nFormula Name]],Table_PI[[#This Row],[Quantity]],Table_PI[[#This Row],[List 1]],Table_PI[[#This Row],[List 2]],Table_PI[[#This Row],[List 3]],Table_PI[[#This Row],[Size]],Table_PI[[#This Row],[Input 1]],Table_PI[[#This Row],[Input 2]],Table_PI[[#This Row],[Input 3]],Table_PI[[#This Row],[Input 4]],'Customer Information'!$AR$12,1,ROW())>0,MeasureCalc(Table_PI[[#This Row],[Hide:\nFormula Name]],Table_PI[[#This Row],[Quantity]],Table_PI[[#This Row],[List 1]],Table_PI[[#This Row],[List 2]],Table_PI[[#This Row],[List 3]],Table_PI[[#This Row],[Size]],Table_PI[[#This Row],[Input 1]],Table_PI[[#This Row],[Input 2]],Table_PI[[#This Row],[Input 3]],Table_PI[[#This Row],[Input 4]],'Customer Information'!$AR$12,2,ROW()),\"No Rebate\"),\"No Rebate\"),0)","v":0},{"$f":"IF(Table_PI[[#This Row],[Hide:\nFormula Name]]<>\"\",IFERROR(IF(MeasureCalc(Table_PI[[#This Row],[Hide:\nFormula Name]],Table_PI[[#This Row],[Quantity]],Table_PI[[#This Row],[List 1]],Table_PI[[#This Row],[List 2]],Table_PI[[#This Row],[List 3]],Table_PI[[#This Row],[Size]],Table_PI[[#This Row],[Input 1]],Table_PI[[#This Row],[Input 2]],Table_PI[[#This Row],[Input 3]],Table_PI[[#This Row],[Input 4]],'Customer Information'!$AR$12,1,ROW())>0,MeasureCalc(Table_PI[[#This Row],[Hide:\nFormula Name]],Table_PI[[#This Row],[Quantity]],Table_PI[[#This Row],[List 1]],Table_PI[[#This Row],[List 2]],Table_PI[[#This Row],[List 3]],Table_PI[[#This Row],[Size]],Table_PI[[#This Row],[Input 1]],Table_PI[[#This Row],[Input 2]],Table_PI[[#This Row],[Input 3]],Table_PI[[#This Row],[Input 4]],'Customer Information'!$AR$12,3,ROW()),\"No Rebate\"),\"No Rebate\"),0)","v":0},{"$f":"IF(Table_PI[[#This Row],[Hide:\nFormula Name]]<>\"\",IFERROR(IF(MeasureCalc(Table_PI[[#This Row],[Hide:\nFormula Name]],Table_PI[[#This Row],[Quantity]],Table_PI[[#This Row],[List 1]],Table_PI[[#This Row],[List 2]],Table_PI[[#This Row],[List 3]],Table_PI[[#This Row],[Size]],Table_PI[[#This Row],[Input 1]],Table_PI[[#This Row],[Input 2]],Table_PI[[#This Row],[Input 3]],Table_PI[[#This Row],[Input 4]],'Customer Information'!$AR$12,1,ROW())>0,MeasureCalc(Table_PI[[#This Row],[Hide:\nFormula Name]],Table_PI[[#This Row],[Quantity]],Table_PI[[#This Row],[List 1]],Table_PI[[#This Row],[List 2]],Table_PI[[#This Row],[List 3]],Table_PI[[#This Row],[Size]],Table_PI[[#This Row],[Input 1]],Table_PI[[#This Row],[Input 2]],Table_PI[[#This Row],[Input 3]],Table_PI[[#This Row],[Input 4]],'Customer Information'!$AR$12,4,ROW()),\"No Rebate\"),\"No Rebate\"),0)","v":0},{"$f":"IF(Table_PI[[#This Row],[Hide:\nFormula Name]]<>\"\",IFERROR(IF(MeasureCalc(Table_PI[[#This Row],[Hide:\nFormula Name]],Table_PI[[#This Row],[Quantity]],Table_PI[[#This Row],[List 1]],Table_PI[[#This Row],[List 2]],Table_PI[[#This Row],[List 3]],Table_PI[[#This Row],[Size]],Table_PI[[#This Row],[Input 1]],Table_PI[[#This Row],[Input 2]],Table_PI[[#This Row],[Input 3]],Table_PI[[#This Row],[Input 4]],'Customer Information'!$AR$12,1,ROW())>0,MeasureCalc(Table_PI[[#This Row],[Hide:\nFormula Name]],Table_PI[[#This Row],[Quantity]],Table_PI[[#This Row],[List 1]],Table_PI[[#This Row],[List 2]],Table_PI[[#This Row],[List 3]],Table_PI[[#This Row],[Size]],Table_PI[[#This Row],[Input 1]],Table_PI[[#This Row],[Input 2]],Table_PI[[#This Row],[Input 3]],Table_PI[[#This Row],[Input 4]],'Customer Information'!$AR$12,5,ROW()),\"No Rebate\"),\"No Rebate\"),0)","v":0},{"$f":"IF(Table_PI[[#This Row],[Hide:\nFormula Name]]<>\"\",IFERROR(IF(MeasureCalc(Table_PI[[#This Row],[Hide:\nFormula Name]],Table_PI[[#This Row],[Quantity]],Table_PI[[#This Row],[List 1]],Table_PI[[#This Row],[List 2]],Table_PI[[#This Row],[List 3]],Table_PI[[#This Row],[Size]],Table_PI[[#This Row],[Input 1]],Table_PI[[#This Row],[Input 2]],Table_PI[[#This Row],[Input 3]],Table_PI[[#This Row],[Input 4]],'Customer Information'!$AR$12,1,ROW())>0,MeasureCalc(Table_PI[[#This Row],[Hide:\nFormula Name]],Table_PI[[#This Row],[Quantity]],Table_PI[[#This Row],[List 1]],Table_PI[[#This Row],[List 2]],Table_PI[[#This Row],[List 3]],Table_PI[[#This Row],[Size]],Table_PI[[#This Row],[Input 1]],Table_PI[[#This Row],[Input 2]],Table_PI[[#This Row],[Input 3]],Table_PI[[#This Row],[Input 4]],'Customer Information'!$AR$12,6,ROW()),\"No Rebate\"),\"No Rebate\"),0)","v":0},{"$f":"IF(Table_PI[[#This Row],[Hide:\nFormula Name]]<>\"\",IFERROR(IF(MeasureCalc(Table_PI[[#This Row],[Hide:\nFormula Name]],Table_PI[[#This Row],[Quantity]],Table_PI[[#This Row],[List 1]],Table_PI[[#This Row],[List 2]],Table_PI[[#This Row],[List 3]],Table_PI[[#This Row],[Size]],Table_PI[[#This Row],[Input 1]],Table_PI[[#This Row],[Input 2]],Table_PI[[#This Row],[Input 3]],Table_PI[[#This Row],[Input 4]],'Customer Information'!$AR$12,1,ROW())>0,MeasureCalc(Table_PI[[#This Row],[Hide:\nFormula Name]],Table_PI[[#This Row],[Quantity]],Table_PI[[#This Row],[List 1]],Table_PI[[#This Row],[List 2]],Table_PI[[#This Row],[List 3]],Table_PI[[#This Row],[Size]],Table_PI[[#This Row],[Input 1]],Table_PI[[#This Row],[Input 2]],Table_PI[[#This Row],[Input 3]],Table_PI[[#This Row],[Input 4]],'Customer Information'!$AR$12,7,ROW()),\"No Rebate\"),\"No Rebate\"),0)","v":0},{"$f":"IF(Table_PI[[#This Row],[Hide:\nFormula Name]]<>\"\",IFERROR(IF(MeasureCalc(Table_PI[[#This Row],[Hide:\nFormula Name]],Table_PI[[#This Row],[Quantity]],Table_PI[[#This Row],[List 1]],Table_PI[[#This Row],[List 2]],Table_PI[[#This Row],[List 3]],Table_PI[[#This Row],[Size]],Table_PI[[#This Row],[Input 1]],Table_PI[[#This Row],[Input 2]],Table_PI[[#This Row],[Input 3]],Table_PI[[#This Row],[Input 4]],'Customer Information'!$AR$12,1,ROW())>0,MeasureCalc(Table_PI[[#This Row],[Hide:\nFormula Name]],Table_PI[[#This Row],[Quantity]],Table_PI[[#This Row],[List 1]],Table_PI[[#This Row],[List 2]],Table_PI[[#This Row],[List 3]],Table_PI[[#This Row],[Size]],Table_PI[[#This Row],[Input 1]],Table_PI[[#This Row],[Input 2]],Table_PI[[#This Row],[Input 3]],Table_PI[[#This Row],[Input 4]],'Customer Information'!$AR$12,8,ROW()),\"No Rebate\"),\"No Rebate\"),0)","v":0},{"$f":"IF(Table_PI[[#This Row],[Hide:\nFormula Name]]<>\"\",IF(AND(Table_PI[[#This Row],[Hide:\nFormula Name]]<>\"\",OR(Table_PI[[#This Row],[Rebate]]>0,Table_PI[[#This Row],[Rebate]]=\"No Rebate\")),TRUE,\"MI: Line Item \" & $A121),\"\")","v":""}]
[{"$f":"IF(Table_PI[[#This Row],[Hide:\nFormula Name]]<>\"\",MAX($A$2:A121)+1,\"\")","v":""},null,null,null,null,null,null,null,null,null,null,null,null,null,null,{"$f":"IFERROR(VLOOKUP(Table_PI[[#This Row],[Measure]],'Equipment Lookups'!$C$3:$D$23,2,FALSE),\"\")","v":""},{"$f":"IF(Table_PI[[#This Row],[Hide:\nFormula Name]]<>\"\",IFERROR(IF(MeasureCalc(Table_PI[[#This Row],[Hide:\nFormula Name]],Table_PI[[#This Row],[Quantity]],Table_PI[[#This Row],[List 1]],Table_PI[[#This Row],[List 2]],Table_PI[[#This Row],[List 3]],Table_PI[[#This Row],[Size]],Table_PI[[#This Row],[Input 1]],Table_PI[[#This Row],[Input 2]],Table_PI[[#This Row],[Input 3]],Table_PI[[#This Row],[Input 4]],'Customer Information'!$AR$12,1,ROW())>0,MeasureCalc(Table_PI[[#This Row],[Hide:\nFormula Name]],Table_PI[[#This Row],[Quantity]],Table_PI[[#This Row],[List 1]],Table_PI[[#This Row],[List 2]],Table_PI[[#This Row],[List 3]],Table_PI[[#This Row],[Size]],Table_PI[[#This Row],[Input 1]],Table_PI[[#This Row],[Input 2]],Table_PI[[#This Row],[Input 3]],Table_PI[[#This Row],[Input 4]],'Customer Information'!$AR$12,1,ROW()),\"No Rebate\"),\"No Rebate\"),0)","v":0},{"$f":"IF(Table_PI[[#This Row],[Hide:\nFormula Name]]<>\"\",IFERROR(IF(MeasureCalc(Table_PI[[#This Row],[Hide:\nFormula Name]],Table_PI[[#This Row],[Quantity]],Table_PI[[#This Row],[List 1]],Table_PI[[#This Row],[List 2]],Table_PI[[#This Row],[List 3]],Table_PI[[#This Row],[Size]],Table_PI[[#This Row],[Input 1]],Table_PI[[#This Row],[Input 2]],Table_PI[[#This Row],[Input 3]],Table_PI[[#This Row],[Input 4]],'Customer Information'!$AR$12,1,ROW())>0,MeasureCalc(Table_PI[[#This Row],[Hide:\nFormula Name]],Table_PI[[#This Row],[Quantity]],Table_PI[[#This Row],[List 1]],Table_PI[[#This Row],[List 2]],Table_PI[[#This Row],[List 3]],Table_PI[[#This Row],[Size]],Table_PI[[#This Row],[Input 1]],Table_PI[[#This Row],[Input 2]],Table_PI[[#This Row],[Input 3]],Table_PI[[#This Row],[Input 4]],'Customer Information'!$AR$12,2,ROW()),\"No Rebate\"),\"No Rebate\"),0)","v":0},{"$f":"IF(Table_PI[[#This Row],[Hide:\nFormula Name]]<>\"\",IFERROR(IF(MeasureCalc(Table_PI[[#This Row],[Hide:\nFormula Name]],Table_PI[[#This Row],[Quantity]],Table_PI[[#This Row],[List 1]],Table_PI[[#This Row],[List 2]],Table_PI[[#This Row],[List 3]],Table_PI[[#This Row],[Size]],Table_PI[[#This Row],[Input 1]],Table_PI[[#This Row],[Input 2]],Table_PI[[#This Row],[Input 3]],Table_PI[[#This Row],[Input 4]],'Customer Information'!$AR$12,1,ROW())>0,MeasureCalc(Table_PI[[#This Row],[Hide:\nFormula Name]],Table_PI[[#This Row],[Quantity]],Table_PI[[#This Row],[List 1]],Table_PI[[#This Row],[List 2]],Table_PI[[#This Row],[List 3]],Table_PI[[#This Row],[Size]],Table_PI[[#This Row],[Input 1]],Table_PI[[#This Row],[Input 2]],Table_PI[[#This Row],[Input 3]],Table_PI[[#This Row],[Input 4]],'Customer Information'!$AR$12,3,ROW()),\"No Rebate\"),\"No Rebate\"),0)","v":0},{"$f":"IF(Table_PI[[#This Row],[Hide:\nFormula Name]]<>\"\",IFERROR(IF(MeasureCalc(Table_PI[[#This Row],[Hide:\nFormula Name]],Table_PI[[#This Row],[Quantity]],Table_PI[[#This Row],[List 1]],Table_PI[[#This Row],[List 2]],Table_PI[[#This Row],[List 3]],Table_PI[[#This Row],[Size]],Table_PI[[#This Row],[Input 1]],Table_PI[[#This Row],[Input 2]],Table_PI[[#This Row],[Input 3]],Table_PI[[#This Row],[Input 4]],'Customer Information'!$AR$12,1,ROW())>0,MeasureCalc(Table_PI[[#This Row],[Hide:\nFormula Name]],Table_PI[[#This Row],[Quantity]],Table_PI[[#This Row],[List 1]],Table_PI[[#This Row],[List 2]],Table_PI[[#This Row],[List 3]],Table_PI[[#This Row],[Size]],Table_PI[[#This Row],[Input 1]],Table_PI[[#This Row],[Input 2]],Table_PI[[#This Row],[Input 3]],Table_PI[[#This Row],[Input 4]],'Customer Information'!$AR$12,4,ROW()),\"No Rebate\"),\"No Rebate\"),0)","v":0},{"$f":"IF(Table_PI[[#This Row],[Hide:\nFormula Name]]<>\"\",IFERROR(IF(MeasureCalc(Table_PI[[#This Row],[Hide:\nFormula Name]],Table_PI[[#This Row],[Quantity]],Table_PI[[#This Row],[List 1]],Table_PI[[#This Row],[List 2]],Table_PI[[#This Row],[List 3]],Table_PI[[#This Row],[Size]],Table_PI[[#This Row],[Input 1]],Table_PI[[#This Row],[Input 2]],Table_PI[[#This Row],[Input 3]],Table_PI[[#This Row],[Input 4]],'Customer Information'!$AR$12,1,ROW())>0,MeasureCalc(Table_PI[[#This Row],[Hide:\nFormula Name]],Table_PI[[#This Row],[Quantity]],Table_PI[[#This Row],[List 1]],Table_PI[[#This Row],[List 2]],Table_PI[[#This Row],[List 3]],Table_PI[[#This Row],[Size]],Table_PI[[#This Row],[Input 1]],Table_PI[[#This Row],[Input 2]],Table_PI[[#This Row],[Input 3]],Table_PI[[#This Row],[Input 4]],'Customer Information'!$AR$12,5,ROW()),\"No Rebate\"),\"No Rebate\"),0)","v":0},{"$f":"IF(Table_PI[[#This Row],[Hide:\nFormula Name]]<>\"\",IFERROR(IF(MeasureCalc(Table_PI[[#This Row],[Hide:\nFormula Name]],Table_PI[[#This Row],[Quantity]],Table_PI[[#This Row],[List 1]],Table_PI[[#This Row],[List 2]],Table_PI[[#This Row],[List 3]],Table_PI[[#This Row],[Size]],Table_PI[[#This Row],[Input 1]],Table_PI[[#This Row],[Input 2]],Table_PI[[#This Row],[Input 3]],Table_PI[[#This Row],[Input 4]],'Customer Information'!$AR$12,1,ROW())>0,MeasureCalc(Table_PI[[#This Row],[Hide:\nFormula Name]],Table_PI[[#This Row],[Quantity]],Table_PI[[#This Row],[List 1]],Table_PI[[#This Row],[List 2]],Table_PI[[#This Row],[List 3]],Table_PI[[#This Row],[Size]],Table_PI[[#This Row],[Input 1]],Table_PI[[#This Row],[Input 2]],Table_PI[[#This Row],[Input 3]],Table_PI[[#This Row],[Input 4]],'Customer Information'!$AR$12,6,ROW()),\"No Rebate\"),\"No Rebate\"),0)","v":0},{"$f":"IF(Table_PI[[#This Row],[Hide:\nFormula Name]]<>\"\",IFERROR(IF(MeasureCalc(Table_PI[[#This Row],[Hide:\nFormula Name]],Table_PI[[#This Row],[Quantity]],Table_PI[[#This Row],[List 1]],Table_PI[[#This Row],[List 2]],Table_PI[[#This Row],[List 3]],Table_PI[[#This Row],[Size]],Table_PI[[#This Row],[Input 1]],Table_PI[[#This Row],[Input 2]],Table_PI[[#This Row],[Input 3]],Table_PI[[#This Row],[Input 4]],'Customer Information'!$AR$12,1,ROW())>0,MeasureCalc(Table_PI[[#This Row],[Hide:\nFormula Name]],Table_PI[[#This Row],[Quantity]],Table_PI[[#This Row],[List 1]],Table_PI[[#This Row],[List 2]],Table_PI[[#This Row],[List 3]],Table_PI[[#This Row],[Size]],Table_PI[[#This Row],[Input 1]],Table_PI[[#This Row],[Input 2]],Table_PI[[#This Row],[Input 3]],Table_PI[[#This Row],[Input 4]],'Customer Information'!$AR$12,7,ROW()),\"No Rebate\"),\"No Rebate\"),0)","v":0},{"$f":"IF(Table_PI[[#This Row],[Hide:\nFormula Name]]<>\"\",IFERROR(IF(MeasureCalc(Table_PI[[#This Row],[Hide:\nFormula Name]],Table_PI[[#This Row],[Quantity]],Table_PI[[#This Row],[List 1]],Table_PI[[#This Row],[List 2]],Table_PI[[#This Row],[List 3]],Table_PI[[#This Row],[Size]],Table_PI[[#This Row],[Input 1]],Table_PI[[#This Row],[Input 2]],Table_PI[[#This Row],[Input 3]],Table_PI[[#This Row],[Input 4]],'Customer Information'!$AR$12,1,ROW())>0,MeasureCalc(Table_PI[[#This Row],[Hide:\nFormula Name]],Table_PI[[#This Row],[Quantity]],Table_PI[[#This Row],[List 1]],Table_PI[[#This Row],[List 2]],Table_PI[[#This Row],[List 3]],Table_PI[[#This Row],[Size]],Table_PI[[#This Row],[Input 1]],Table_PI[[#This Row],[Input 2]],Table_PI[[#This Row],[Input 3]],Table_PI[[#This Row],[Input 4]],'Customer Information'!$AR$12,8,ROW()),\"No Rebate\"),\"No Rebate\"),0)","v":0},{"$f":"IF(Table_PI[[#This Row],[Hide:\nFormula Name]]<>\"\",IF(AND(Table_PI[[#This Row],[Hide:\nFormula Name]]<>\"\",OR(Table_PI[[#This Row],[Rebate]]>0,Table_PI[[#This Row],[Rebate]]=\"No Rebate\")),TRUE,\"MI: Line Item \" & $A122),\"\")","v":""}]
[{"$f":"IF(Table_PI[[#This Row],[Hide:\nFormula Name]]<>\"\",MAX($A$2:A122)+1,\"\")","v":""},null,null,null,null,null,null,null,null,null,null,null,null,null,null,{"$f":"IFERROR(VLOOKUP(Table_PI[[#This Row],[Measure]],'Equipment Lookups'!$C$3:$D$23,2,FALSE),\"\")","v":""},{"$f":"IF(Table_PI[[#This Row],[Hide:\nFormula Name]]<>\"\",IFERROR(IF(MeasureCalc(Table_PI[[#This Row],[Hide:\nFormula Name]],Table_PI[[#This Row],[Quantity]],Table_PI[[#This Row],[List 1]],Table_PI[[#This Row],[List 2]],Table_PI[[#This Row],[List 3]],Table_PI[[#This Row],[Size]],Table_PI[[#This Row],[Input 1]],Table_PI[[#This Row],[Input 2]],Table_PI[[#This Row],[Input 3]],Table_PI[[#This Row],[Input 4]],'Customer Information'!$AR$12,1,ROW())>0,MeasureCalc(Table_PI[[#This Row],[Hide:\nFormula Name]],Table_PI[[#This Row],[Quantity]],Table_PI[[#This Row],[List 1]],Table_PI[[#This Row],[List 2]],Table_PI[[#This Row],[List 3]],Table_PI[[#This Row],[Size]],Table_PI[[#This Row],[Input 1]],Table_PI[[#This Row],[Input 2]],Table_PI[[#This Row],[Input 3]],Table_PI[[#This Row],[Input 4]],'Customer Information'!$AR$12,1,ROW()),\"No Rebate\"),\"No Rebate\"),0)","v":0},{"$f":"IF(Table_PI[[#This Row],[Hide:\nFormula Name]]<>\"\",IFERROR(IF(MeasureCalc(Table_PI[[#This Row],[Hide:\nFormula Name]],Table_PI[[#This Row],[Quantity]],Table_PI[[#This Row],[List 1]],Table_PI[[#This Row],[List 2]],Table_PI[[#This Row],[List 3]],Table_PI[[#This Row],[Size]],Table_PI[[#This Row],[Input 1]],Table_PI[[#This Row],[Input 2]],Table_PI[[#This Row],[Input 3]],Table_PI[[#This Row],[Input 4]],'Customer Information'!$AR$12,1,ROW())>0,MeasureCalc(Table_PI[[#This Row],[Hide:\nFormula Name]],Table_PI[[#This Row],[Quantity]],Table_PI[[#This Row],[List 1]],Table_PI[[#This Row],[List 2]],Table_PI[[#This Row],[List 3]],Table_PI[[#This Row],[Size]],Table_PI[[#This Row],[Input 1]],Table_PI[[#This Row],[Input 2]],Table_PI[[#This Row],[Input 3]],Table_PI[[#This Row],[Input 4]],'Customer Information'!$AR$12,2,ROW()),\"No Rebate\"),\"No Rebate\"),0)","v":0},{"$f":"IF(Table_PI[[#This Row],[Hide:\nFormula Name]]<>\"\",IFERROR(IF(MeasureCalc(Table_PI[[#This Row],[Hide:\nFormula Name]],Table_PI[[#This Row],[Quantity]],Table_PI[[#This Row],[List 1]],Table_PI[[#This Row],[List 2]],Table_PI[[#This Row],[List 3]],Table_PI[[#This Row],[Size]],Table_PI[[#This Row],[Input 1]],Table_PI[[#This Row],[Input 2]],Table_PI[[#This Row],[Input 3]],Table_PI[[#This Row],[Input 4]],'Customer Information'!$AR$12,1,ROW())>0,MeasureCalc(Table_PI[[#This Row],[Hide:\nFormula Name]],Table_PI[[#This Row],[Quantity]],Table_PI[[#This Row],[List 1]],Table_PI[[#This Row],[List 2]],Table_PI[[#This Row],[List 3]],Table_PI[[#This Row],[Size]],Table_PI[[#This Row],[Input 1]],Table_PI[[#This Row],[Input 2]],Table_PI[[#This Row],[Input 3]],Table_PI[[#This Row],[Input 4]],'Customer Information'!$AR$12,3,ROW()),\"No Rebate\"),\"No Rebate\"),0)","v":0},{"$f":"IF(Table_PI[[#This Row],[Hide:\nFormula Name]]<>\"\",IFERROR(IF(MeasureCalc(Table_PI[[#This Row],[Hide:\nFormula Name]],Table_PI[[#This Row],[Quantity]],Table_PI[[#This Row],[List 1]],Table_PI[[#This Row],[List 2]],Table_PI[[#This Row],[List 3]],Table_PI[[#This Row],[Size]],Table_PI[[#This Row],[Input 1]],Table_PI[[#This Row],[Input 2]],Table_PI[[#This Row],[Input 3]],Table_PI[[#This Row],[Input 4]],'Customer Information'!$AR$12,1,ROW())>0,MeasureCalc(Table_PI[[#This Row],[Hide:\nFormula Name]],Table_PI[[#This Row],[Quantity]],Table_PI[[#This Row],[List 1]],Table_PI[[#This Row],[List 2]],Table_PI[[#This Row],[List 3]],Table_PI[[#This Row],[Size]],Table_PI[[#This Row],[Input 1]],Table_PI[[#This Row],[Input 2]],Table_PI[[#This Row],[Input 3]],Table_PI[[#This Row],[Input 4]],'Customer Information'!$AR$12,4,ROW()),\"No Rebate\"),\"No Rebate\"),0)","v":0},{"$f":"IF(Table_PI[[#This Row],[Hide:\nFormula Name]]<>\"\",IFERROR(IF(MeasureCalc(Table_PI[[#This Row],[Hide:\nFormula Name]],Table_PI[[#This Row],[Quantity]],Table_PI[[#This Row],[List 1]],Table_PI[[#This Row],[List 2]],Table_PI[[#This Row],[List 3]],Table_PI[[#This Row],[Size]],Table_PI[[#This Row],[Input 1]],Table_PI[[#This Row],[Input 2]],Table_PI[[#This Row],[Input 3]],Table_PI[[#This Row],[Input 4]],'Customer Information'!$AR$12,1,ROW())>0,MeasureCalc(Table_PI[[#This Row],[Hide:\nFormula Name]],Table_PI[[#This Row],[Quantity]],Table_PI[[#This Row],[List 1]],Table_PI[[#This Row],[List 2]],Table_PI[[#This Row],[List 3]],Table_PI[[#This Row],[Size]],Table_PI[[#This Row],[Input 1]],Table_PI[[#This Row],[Input 2]],Table_PI[[#This Row],[Input 3]],Table_PI[[#This Row],[Input 4]],'Customer Information'!$AR$12,5,ROW()),\"No Rebate\"),\"No Rebate\"),0)","v":0},{"$f":"IF(Table_PI[[#This Row],[Hide:\nFormula Name]]<>\"\",IFERROR(IF(MeasureCalc(Table_PI[[#This Row],[Hide:\nFormula Name]],Table_PI[[#This Row],[Quantity]],Table_PI[[#This Row],[List 1]],Table_PI[[#This Row],[List 2]],Table_PI[[#This Row],[List 3]],Table_PI[[#This Row],[Size]],Table_PI[[#This Row],[Input 1]],Table_PI[[#This Row],[Input 2]],Table_PI[[#This Row],[Input 3]],Table_PI[[#This Row],[Input 4]],'Customer Information'!$AR$12,1,ROW())>0,MeasureCalc(Table_PI[[#This Row],[Hide:\nFormula Name]],Table_PI[[#This Row],[Quantity]],Table_PI[[#This Row],[List 1]],Table_PI[[#This Row],[List 2]],Table_PI[[#This Row],[List 3]],Table_PI[[#This Row],[Size]],Table_PI[[#This Row],[Input 1]],Table_PI[[#This Row],[Input 2]],Table_PI[[#This Row],[Input 3]],Table_PI[[#This Row],[Input 4]],'Customer Information'!$AR$12,6,ROW()),\"No Rebate\"),\"No Rebate\"),0)","v":0},{"$f":"IF(Table_PI[[#This Row],[Hide:\nFormula Name]]<>\"\",IFERROR(IF(MeasureCalc(Table_PI[[#This Row],[Hide:\nFormula Name]],Table_PI[[#This Row],[Quantity]],Table_PI[[#This Row],[List 1]],Table_PI[[#This Row],[List 2]],Table_PI[[#This Row],[List 3]],Table_PI[[#This Row],[Size]],Table_PI[[#This Row],[Input 1]],Table_PI[[#This Row],[Input 2]],Table_PI[[#This Row],[Input 3]],Table_PI[[#This Row],[Input 4]],'Customer Information'!$AR$12,1,ROW())>0,MeasureCalc(Table_PI[[#This Row],[Hide:\nFormula Name]],Table_PI[[#This Row],[Quantity]],Table_PI[[#This Row],[List 1]],Table_PI[[#This Row],[List 2]],Table_PI[[#This Row],[List 3]],Table_PI[[#This Row],[Size]],Table_PI[[#This Row],[Input 1]],Table_PI[[#This Row],[Input 2]],Table_PI[[#This Row],[Input 3]],Table_PI[[#This Row],[Input 4]],'Customer Information'!$AR$12,7,ROW()),\"No Rebate\"),\"No Rebate\"),0)","v":0},{"$f":"IF(Table_PI[[#This Row],[Hide:\nFormula Name]]<>\"\",IFERROR(IF(MeasureCalc(Table_PI[[#This Row],[Hide:\nFormula Name]],Table_PI[[#This Row],[Quantity]],Table_PI[[#This Row],[List 1]],Table_PI[[#This Row],[List 2]],Table_PI[[#This Row],[List 3]],Table_PI[[#This Row],[Size]],Table_PI[[#This Row],[Input 1]],Table_PI[[#This Row],[Input 2]],Table_PI[[#This Row],[Input 3]],Table_PI[[#This Row],[Input 4]],'Customer Information'!$AR$12,1,ROW())>0,MeasureCalc(Table_PI[[#This Row],[Hide:\nFormula Name]],Table_PI[[#This Row],[Quantity]],Table_PI[[#This Row],[List 1]],Table_PI[[#This Row],[List 2]],Table_PI[[#This Row],[List 3]],Table_PI[[#This Row],[Size]],Table_PI[[#This Row],[Input 1]],Table_PI[[#This Row],[Input 2]],Table_PI[[#This Row],[Input 3]],Table_PI[[#This Row],[Input 4]],'Customer Information'!$AR$12,8,ROW()),\"No Rebate\"),\"No Rebate\"),0)","v":0},{"$f":"IF(Table_PI[[#This Row],[Hide:\nFormula Name]]<>\"\",IF(AND(Table_PI[[#This Row],[Hide:\nFormula Name]]<>\"\",OR(Table_PI[[#This Row],[Rebate]]>0,Table_PI[[#This Row],[Rebate]]=\"No Rebate\")),TRUE,\"MI: Line Item \" & $A123),\"\")","v":""}]
[{"$f":"IF(Table_PI[[#This Row],[Hide:\nFormula Name]]<>\"\",MAX($A$2:A123)+1,\"\")","v":""},null,null,null,null,null,null,null,null,null,null,null,null,null,null,{"$f":"IFERROR(VLOOKUP(Table_PI[[#This Row],[Measure]],'Equipment Lookups'!$C$3:$D$23,2,FALSE),\"\")","v":""},{"$f":"IF(Table_PI[[#This Row],[Hide:\nFormula Name]]<>\"\",IFERROR(IF(MeasureCalc(Table_PI[[#This Row],[Hide:\nFormula Name]],Table_PI[[#This Row],[Quantity]],Table_PI[[#This Row],[List 1]],Table_PI[[#This Row],[List 2]],Table_PI[[#This Row],[List 3]],Table_PI[[#This Row],[Size]],Table_PI[[#This Row],[Input 1]],Table_PI[[#This Row],[Input 2]],Table_PI[[#This Row],[Input 3]],Table_PI[[#This Row],[Input 4]],'Customer Information'!$AR$12,1,ROW())>0,MeasureCalc(Table_PI[[#This Row],[Hide:\nFormula Name]],Table_PI[[#This Row],[Quantity]],Table_PI[[#This Row],[List 1]],Table_PI[[#This Row],[List 2]],Table_PI[[#This Row],[List 3]],Table_PI[[#This Row],[Size]],Table_PI[[#This Row],[Input 1]],Table_PI[[#This Row],[Input 2]],Table_PI[[#This Row],[Input 3]],Table_PI[[#This Row],[Input 4]],'Customer Information'!$AR$12,1,ROW()),\"No Rebate\"),\"No Rebate\"),0)","v":0},{"$f":"IF(Table_PI[[#This Row],[Hide:\nFormula Name]]<>\"\",IFERROR(IF(MeasureCalc(Table_PI[[#This Row],[Hide:\nFormula Name]],Table_PI[[#This Row],[Quantity]],Table_PI[[#This Row],[List 1]],Table_PI[[#This Row],[List 2]],Table_PI[[#This Row],[List 3]],Table_PI[[#This Row],[Size]],Table_PI[[#This Row],[Input 1]],Table_PI[[#This Row],[Input 2]],Table_PI[[#This Row],[Input 3]],Table_PI[[#This Row],[Input 4]],'Customer Information'!$AR$12,1,ROW())>0,MeasureCalc(Table_PI[[#This Row],[Hide:\nFormula Name]],Table_PI[[#This Row],[Quantity]],Table_PI[[#This Row],[List 1]],Table_PI[[#This Row],[List 2]],Table_PI[[#This Row],[List 3]],Table_PI[[#This Row],[Size]],Table_PI[[#This Row],[Input 1]],Table_PI[[#This Row],[Input 2]],Table_PI[[#This Row],[Input 3]],Table_PI[[#This Row],[Input 4]],'Customer Information'!$AR$12,2,ROW()),\"No Rebate\"),\"No Rebate\"),0)","v":0},{"$f":"IF(Table_PI[[#This Row],[Hide:\nFormula Name]]<>\"\",IFERROR(IF(MeasureCalc(Table_PI[[#This Row],[Hide:\nFormula Name]],Table_PI[[#This Row],[Quantity]],Table_PI[[#This Row],[List 1]],Table_PI[[#This Row],[List 2]],Table_PI[[#This Row],[List 3]],Table_PI[[#This Row],[Size]],Table_PI[[#This Row],[Input 1]],Table_PI[[#This Row],[Input 2]],Table_PI[[#This Row],[Input 3]],Table_PI[[#This Row],[Input 4]],'Customer Information'!$AR$12,1,ROW())>0,MeasureCalc(Table_PI[[#This Row],[Hide:\nFormula Name]],Table_PI[[#This Row],[Quantity]],Table_PI[[#This Row],[List 1]],Table_PI[[#This Row],[List 2]],Table_PI[[#This Row],[List 3]],Table_PI[[#This Row],[Size]],Table_PI[[#This Row],[Input 1]],Table_PI[[#This Row],[Input 2]],Table_PI[[#This Row],[Input 3]],Table_PI[[#This Row],[Input 4]],'Customer Information'!$AR$12,3,ROW()),\"No Rebate\"),\"No Rebate\"),0)","v":0},{"$f":"IF(Table_PI[[#This Row],[Hide:\nFormula Name]]<>\"\",IFERROR(IF(MeasureCalc(Table_PI[[#This Row],[Hide:\nFormula Name]],Table_PI[[#This Row],[Quantity]],Table_PI[[#This Row],[List 1]],Table_PI[[#This Row],[List 2]],Table_PI[[#This Row],[List 3]],Table_PI[[#This Row],[Size]],Table_PI[[#This Row],[Input 1]],Table_PI[[#This Row],[Input 2]],Table_PI[[#This Row],[Input 3]],Table_PI[[#This Row],[Input 4]],'Customer Information'!$AR$12,1,ROW())>0,MeasureCalc(Table_PI[[#This Row],[Hide:\nFormula Name]],Table_PI[[#This Row],[Quantity]],Table_PI[[#This Row],[List 1]],Table_PI[[#This Row],[List 2]],Table_PI[[#This Row],[List 3]],Table_PI[[#This Row],[Size]],Table_PI[[#This Row],[Input 1]],Table_PI[[#This Row],[Input 2]],Table_PI[[#This Row],[Input 3]],Table_PI[[#This Row],[Input 4]],'Customer Information'!$AR$12,4,ROW()),\"No Rebate\"),\"No Rebate\"),0)","v":0},{"$f":"IF(Table_PI[[#This Row],[Hide:\nFormula Name]]<>\"\",IFERROR(IF(MeasureCalc(Table_PI[[#This Row],[Hide:\nFormula Name]],Table_PI[[#This Row],[Quantity]],Table_PI[[#This Row],[List 1]],Table_PI[[#This Row],[List 2]],Table_PI[[#This Row],[List 3]],Table_PI[[#This Row],[Size]],Table_PI[[#This Row],[Input 1]],Table_PI[[#This Row],[Input 2]],Table_PI[[#This Row],[Input 3]],Table_PI[[#This Row],[Input 4]],'Customer Information'!$AR$12,1,ROW())>0,MeasureCalc(Table_PI[[#This Row],[Hide:\nFormula Name]],Table_PI[[#This Row],[Quantity]],Table_PI[[#This Row],[List 1]],Table_PI[[#This Row],[List 2]],Table_PI[[#This Row],[List 3]],Table_PI[[#This Row],[Size]],Table_PI[[#This Row],[Input 1]],Table_PI[[#This Row],[Input 2]],Table_PI[[#This Row],[Input 3]],Table_PI[[#This Row],[Input 4]],'Customer Information'!$AR$12,5,ROW()),\"No Rebate\"),\"No Rebate\"),0)","v":0},{"$f":"IF(Table_PI[[#This Row],[Hide:\nFormula Name]]<>\"\",IFERROR(IF(MeasureCalc(Table_PI[[#This Row],[Hide:\nFormula Name]],Table_PI[[#This Row],[Quantity]],Table_PI[[#This Row],[List 1]],Table_PI[[#This Row],[List 2]],Table_PI[[#This Row],[List 3]],Table_PI[[#This Row],[Size]],Table_PI[[#This Row],[Input 1]],Table_PI[[#This Row],[Input 2]],Table_PI[[#This Row],[Input 3]],Table_PI[[#This Row],[Input 4]],'Customer Information'!$AR$12,1,ROW())>0,MeasureCalc(Table_PI[[#This Row],[Hide:\nFormula Name]],Table_PI[[#This Row],[Quantity]],Table_PI[[#This Row],[List 1]],Table_PI[[#This Row],[List 2]],Table_PI[[#This Row],[List 3]],Table_PI[[#This Row],[Size]],Table_PI[[#This Row],[Input 1]],Table_PI[[#This Row],[Input 2]],Table_PI[[#This Row],[Input 3]],Table_PI[[#This Row],[Input 4]],'Customer Information'!$AR$12,6,ROW()),\"No Rebate\"),\"No Rebate\"),0)","v":0},{"$f":"IF(Table_PI[[#This Row],[Hide:\nFormula Name]]<>\"\",IFERROR(IF(MeasureCalc(Table_PI[[#This Row],[Hide:\nFormula Name]],Table_PI[[#This Row],[Quantity]],Table_PI[[#This Row],[List 1]],Table_PI[[#This Row],[List 2]],Table_PI[[#This Row],[List 3]],Table_PI[[#This Row],[Size]],Table_PI[[#This Row],[Input 1]],Table_PI[[#This Row],[Input 2]],Table_PI[[#This Row],[Input 3]],Table_PI[[#This Row],[Input 4]],'Customer Information'!$AR$12,1,ROW())>0,MeasureCalc(Table_PI[[#This Row],[Hide:\nFormula Name]],Table_PI[[#This Row],[Quantity]],Table_PI[[#This Row],[List 1]],Table_PI[[#This Row],[List 2]],Table_PI[[#This Row],[List 3]],Table_PI[[#This Row],[Size]],Table_PI[[#This Row],[Input 1]],Table_PI[[#This Row],[Input 2]],Table_PI[[#This Row],[Input 3]],Table_PI[[#This Row],[Input 4]],'Customer Information'!$AR$12,7,ROW()),\"No Rebate\"),\"No Rebate\"),0)","v":0},{"$f":"IF(Table_PI[[#This Row],[Hide:\nFormula Name]]<>\"\",IFERROR(IF(MeasureCalc(Table_PI[[#This Row],[Hide:\nFormula Name]],Table_PI[[#This Row],[Quantity]],Table_PI[[#This Row],[List 1]],Table_PI[[#This Row],[List 2]],Table_PI[[#This Row],[List 3]],Table_PI[[#This Row],[Size]],Table_PI[[#This Row],[Input 1]],Table_PI[[#This Row],[Input 2]],Table_PI[[#This Row],[Input 3]],Table_PI[[#This Row],[Input 4]],'Customer Information'!$AR$12,1,ROW())>0,MeasureCalc(Table_PI[[#This Row],[Hide:\nFormula Name]],Table_PI[[#This Row],[Quantity]],Table_PI[[#This Row],[List 1]],Table_PI[[#This Row],[List 2]],Table_PI[[#This Row],[List 3]],Table_PI[[#This Row],[Size]],Table_PI[[#This Row],[Input 1]],Table_PI[[#This Row],[Input 2]],Table_PI[[#This Row],[Input 3]],Table_PI[[#This Row],[Input 4]],'Customer Information'!$AR$12,8,ROW()),\"No Rebate\"),\"No Rebate\"),0)","v":0},{"$f":"IF(Table_PI[[#This Row],[Hide:\nFormula Name]]<>\"\",IF(AND(Table_PI[[#This Row],[Hide:\nFormula Name]]<>\"\",OR(Table_PI[[#This Row],[Rebate]]>0,Table_PI[[#This Row],[Rebate]]=\"No Rebate\")),TRUE,\"MI: Line Item \" & $A124),\"\")","v":""}]
[{"$f":"IF(Table_PI[[#This Row],[Hide:\nFormula Name]]<>\"\",MAX($A$2:A124)+1,\"\")","v":""},null,null,null,null,null,null,null,null,null,null,null,null,null,null,{"$f":"IFERROR(VLOOKUP(Table_PI[[#This Row],[Measure]],'Equipment Lookups'!$C$3:$D$23,2,FALSE),\"\")","v":""},{"$f":"IF(Table_PI[[#This Row],[Hide:\nFormula Name]]<>\"\",IFERROR(IF(MeasureCalc(Table_PI[[#This Row],[Hide:\nFormula Name]],Table_PI[[#This Row],[Quantity]],Table_PI[[#This Row],[List 1]],Table_PI[[#This Row],[List 2]],Table_PI[[#This Row],[List 3]],Table_PI[[#This Row],[Size]],Table_PI[[#This Row],[Input 1]],Table_PI[[#This Row],[Input 2]],Table_PI[[#This Row],[Input 3]],Table_PI[[#This Row],[Input 4]],'Customer Information'!$AR$12,1,ROW())>0,MeasureCalc(Table_PI[[#This Row],[Hide:\nFormula Name]],Table_PI[[#This Row],[Quantity]],Table_PI[[#This Row],[List 1]],Table_PI[[#This Row],[List 2]],Table_PI[[#This Row],[List 3]],Table_PI[[#This Row],[Size]],Table_PI[[#This Row],[Input 1]],Table_PI[[#This Row],[Input 2]],Table_PI[[#This Row],[Input 3]],Table_PI[[#This Row],[Input 4]],'Customer Information'!$AR$12,1,ROW()),\"No Rebate\"),\"No Rebate\"),0)","v":0},{"$f":"IF(Table_PI[[#This Row],[Hide:\nFormula Name]]<>\"\",IFERROR(IF(MeasureCalc(Table_PI[[#This Row],[Hide:\nFormula Name]],Table_PI[[#This Row],[Quantity]],Table_PI[[#This Row],[List 1]],Table_PI[[#This Row],[List 2]],Table_PI[[#This Row],[List 3]],Table_PI[[#This Row],[Size]],Table_PI[[#This Row],[Input 1]],Table_PI[[#This Row],[Input 2]],Table_PI[[#This Row],[Input 3]],Table_PI[[#This Row],[Input 4]],'Customer Information'!$AR$12,1,ROW())>0,MeasureCalc(Table_PI[[#This Row],[Hide:\nFormula Name]],Table_PI[[#This Row],[Quantity]],Table_PI[[#This Row],[List 1]],Table_PI[[#This Row],[List 2]],Table_PI[[#This Row],[List 3]],Table_PI[[#This Row],[Size]],Table_PI[[#This Row],[Input 1]],Table_PI[[#This Row],[Input 2]],Table_PI[[#This Row],[Input 3]],Table_PI[[#This Row],[Input 4]],'Customer Information'!$AR$12,2,ROW()),\"No Rebate\"),\"No Rebate\"),0)","v":0},{"$f":"IF(Table_PI[[#This Row],[Hide:\nFormula Name]]<>\"\",IFERROR(IF(MeasureCalc(Table_PI[[#This Row],[Hide:\nFormula Name]],Table_PI[[#This Row],[Quantity]],Table_PI[[#This Row],[List 1]],Table_PI[[#This Row],[List 2]],Table_PI[[#This Row],[List 3]],Table_PI[[#This Row],[Size]],Table_PI[[#This Row],[Input 1]],Table_PI[[#This Row],[Input 2]],Table_PI[[#This Row],[Input 3]],Table_PI[[#This Row],[Input 4]],'Customer Information'!$AR$12,1,ROW())>0,MeasureCalc(Table_PI[[#This Row],[Hide:\nFormula Name]],Table_PI[[#This Row],[Quantity]],Table_PI[[#This Row],[List 1]],Table_PI[[#This Row],[List 2]],Table_PI[[#This Row],[List 3]],Table_PI[[#This Row],[Size]],Table_PI[[#This Row],[Input 1]],Table_PI[[#This Row],[Input 2]],Table_PI[[#This Row],[Input 3]],Table_PI[[#This Row],[Input 4]],'Customer Information'!$AR$12,3,ROW()),\"No Rebate\"),\"No Rebate\"),0)","v":0},{"$f":"IF(Table_PI[[#This Row],[Hide:\nFormula Name]]<>\"\",IFERROR(IF(MeasureCalc(Table_PI[[#This Row],[Hide:\nFormula Name]],Table_PI[[#This Row],[Quantity]],Table_PI[[#This Row],[List 1]],Table_PI[[#This Row],[List 2]],Table_PI[[#This Row],[List 3]],Table_PI[[#This Row],[Size]],Table_PI[[#This Row],[Input 1]],Table_PI[[#This Row],[Input 2]],Table_PI[[#This Row],[Input 3]],Table_PI[[#This Row],[Input 4]],'Customer Information'!$AR$12,1,ROW())>0,MeasureCalc(Table_PI[[#This Row],[Hide:\nFormula Name]],Table_PI[[#This Row],[Quantity]],Table_PI[[#This Row],[List 1]],Table_PI[[#This Row],[List 2]],Table_PI[[#This Row],[List 3]],Table_PI[[#This Row],[Size]],Table_PI[[#This Row],[Input 1]],Table_PI[[#This Row],[Input 2]],Table_PI[[#This Row],[Input 3]],Table_PI[[#This Row],[Input 4]],'Customer Information'!$AR$12,4,ROW()),\"No Rebate\"),\"No Rebate\"),0)","v":0},{"$f":"IF(Table_PI[[#This Row],[Hide:\nFormula Name]]<>\"\",IFERROR(IF(MeasureCalc(Table_PI[[#This Row],[Hide:\nFormula Name]],Table_PI[[#This Row],[Quantity]],Table_PI[[#This Row],[List 1]],Table_PI[[#This Row],[List 2]],Table_PI[[#This Row],[List 3]],Table_PI[[#This Row],[Size]],Table_PI[[#This Row],[Input 1]],Table_PI[[#This Row],[Input 2]],Table_PI[[#This Row],[Input 3]],Table_PI[[#This Row],[Input 4]],'Customer Information'!$AR$12,1,ROW())>0,MeasureCalc(Table_PI[[#This Row],[Hide:\nFormula Name]],Table_PI[[#This Row],[Quantity]],Table_PI[[#This Row],[List 1]],Table_PI[[#This Row],[List 2]],Table_PI[[#This Row],[List 3]],Table_PI[[#This Row],[Size]],Table_PI[[#This Row],[Input 1]],Table_PI[[#This Row],[Input 2]],Table_PI[[#This Row],[Input 3]],Table_PI[[#This Row],[Input 4]],'Customer Information'!$AR$12,5,ROW()),\"No Rebate\"),\"No Rebate\"),0)","v":0},{"$f":"IF(Table_PI[[#This Row],[Hide:\nFormula Name]]<>\"\",IFERROR(IF(MeasureCalc(Table_PI[[#This Row],[Hide:\nFormula Name]],Table_PI[[#This Row],[Quantity]],Table_PI[[#This Row],[List 1]],Table_PI[[#This Row],[List 2]],Table_PI[[#This Row],[List 3]],Table_PI[[#This Row],[Size]],Table_PI[[#This Row],[Input 1]],Table_PI[[#This Row],[Input 2]],Table_PI[[#This Row],[Input 3]],Table_PI[[#This Row],[Input 4]],'Customer Information'!$AR$12,1,ROW())>0,MeasureCalc(Table_PI[[#This Row],[Hide:\nFormula Name]],Table_PI[[#This Row],[Quantity]],Table_PI[[#This Row],[List 1]],Table_PI[[#This Row],[List 2]],Table_PI[[#This Row],[List 3]],Table_PI[[#This Row],[Size]],Table_PI[[#This Row],[Input 1]],Table_PI[[#This Row],[Input 2]],Table_PI[[#This Row],[Input 3]],Table_PI[[#This Row],[Input 4]],'Customer Information'!$AR$12,6,ROW()),\"No Rebate\"),\"No Rebate\"),0)","v":0},{"$f":"IF(Table_PI[[#This Row],[Hide:\nFormula Name]]<>\"\",IFERROR(IF(MeasureCalc(Table_PI[[#This Row],[Hide:\nFormula Name]],Table_PI[[#This Row],[Quantity]],Table_PI[[#This Row],[List 1]],Table_PI[[#This Row],[List 2]],Table_PI[[#This Row],[List 3]],Table_PI[[#This Row],[Size]],Table_PI[[#This Row],[Input 1]],Table_PI[[#This Row],[Input 2]],Table_PI[[#This Row],[Input 3]],Table_PI[[#This Row],[Input 4]],'Customer Information'!$AR$12,1,ROW())>0,MeasureCalc(Table_PI[[#This Row],[Hide:\nFormula Name]],Table_PI[[#This Row],[Quantity]],Table_PI[[#This Row],[List 1]],Table_PI[[#This Row],[List 2]],Table_PI[[#This Row],[List 3]],Table_PI[[#This Row],[Size]],Table_PI[[#This Row],[Input 1]],Table_PI[[#This Row],[Input 2]],Table_PI[[#This Row],[Input 3]],Table_PI[[#This Row],[Input 4]],'Customer Information'!$AR$12,7,ROW()),\"No Rebate\"),\"No Rebate\"),0)","v":0},{"$f":"IF(Table_PI[[#This Row],[Hide:\nFormula Name]]<>\"\",IFERROR(IF(MeasureCalc(Table_PI[[#This Row],[Hide:\nFormula Name]],Table_PI[[#This Row],[Quantity]],Table_PI[[#This Row],[List 1]],Table_PI[[#This Row],[List 2]],Table_PI[[#This Row],[List 3]],Table_PI[[#This Row],[Size]],Table_PI[[#This Row],[Input 1]],Table_PI[[#This Row],[Input 2]],Table_PI[[#This Row],[Input 3]],Table_PI[[#This Row],[Input 4]],'Customer Information'!$AR$12,1,ROW())>0,MeasureCalc(Table_PI[[#This Row],[Hide:\nFormula Name]],Table_PI[[#This Row],[Quantity]],Table_PI[[#This Row],[List 1]],Table_PI[[#This Row],[List 2]],Table_PI[[#This Row],[List 3]],Table_PI[[#This Row],[Size]],Table_PI[[#This Row],[Input 1]],Table_PI[[#This Row],[Input 2]],Table_PI[[#This Row],[Input 3]],Table_PI[[#This Row],[Input 4]],'Customer Information'!$AR$12,8,ROW()),\"No Rebate\"),\"No Rebate\"),0)","v":0},{"$f":"IF(Table_PI[[#This Row],[Hide:\nFormula Name]]<>\"\",IF(AND(Table_PI[[#This Row],[Hide:\nFormula Name]]<>\"\",OR(Table_PI[[#This Row],[Rebate]]>0,Table_PI[[#This Row],[Rebate]]=\"No Rebate\")),TRUE,\"MI: Line Item \" & $A125),\"\")","v":""}]
[{"$f":"IF(Table_PI[[#This Row],[Hide:\nFormula Name]]<>\"\",MAX($A$2:A125)+1,\"\")","v":""},null,null,null,null,null,null,null,null,null,null,null,null,null,null,{"$f":"IFERROR(VLOOKUP(Table_PI[[#This Row],[Measure]],'Equipment Lookups'!$C$3:$D$23,2,FALSE),\"\")","v":""},{"$f":"IF(Table_PI[[#This Row],[Hide:\nFormula Name]]<>\"\",IFERROR(IF(MeasureCalc(Table_PI[[#This Row],[Hide:\nFormula Name]],Table_PI[[#This Row],[Quantity]],Table_PI[[#This Row],[List 1]],Table_PI[[#This Row],[List 2]],Table_PI[[#This Row],[List 3]],Table_PI[[#This Row],[Size]],Table_PI[[#This Row],[Input 1]],Table_PI[[#This Row],[Input 2]],Table_PI[[#This Row],[Input 3]],Table_PI[[#This Row],[Input 4]],'Customer Information'!$AR$12,1,ROW())>0,MeasureCalc(Table_PI[[#This Row],[Hide:\nFormula Name]],Table_PI[[#This Row],[Quantity]],Table_PI[[#This Row],[List 1]],Table_PI[[#This Row],[List 2]],Table_PI[[#This Row],[List 3]],Table_PI[[#This Row],[Size]],Table_PI[[#This Row],[Input 1]],Table_PI[[#This Row],[Input 2]],Table_PI[[#This Row],[Input 3]],Table_PI[[#This Row],[Input 4]],'Customer Information'!$AR$12,1,ROW()),\"No Rebate\"),\"No Rebate\"),0)","v":0},{"$f":"IF(Table_PI[[#This Row],[Hide:\nFormula Name]]<>\"\",IFERROR(IF(MeasureCalc(Table_PI[[#This Row],[Hide:\nFormula Name]],Table_PI[[#This Row],[Quantity]],Table_PI[[#This Row],[List 1]],Table_PI[[#This Row],[List 2]],Table_PI[[#This Row],[List 3]],Table_PI[[#This Row],[Size]],Table_PI[[#This Row],[Input 1]],Table_PI[[#This Row],[Input 2]],Table_PI[[#This Row],[Input 3]],Table_PI[[#This Row],[Input 4]],'Customer Information'!$AR$12,1,ROW())>0,MeasureCalc(Table_PI[[#This Row],[Hide:\nFormula Name]],Table_PI[[#This Row],[Quantity]],Table_PI[[#This Row],[List 1]],Table_PI[[#This Row],[List 2]],Table_PI[[#This Row],[List 3]],Table_PI[[#This Row],[Size]],Table_PI[[#This Row],[Input 1]],Table_PI[[#This Row],[Input 2]],Table_PI[[#This Row],[Input 3]],Table_PI[[#This Row],[Input 4]],'Customer Information'!$AR$12,2,ROW()),\"No Rebate\"),\"No Rebate\"),0)","v":0},{"$f":"IF(Table_PI[[#This Row],[Hide:\nFormula Name]]<>\"\",IFERROR(IF(MeasureCalc(Table_PI[[#This Row],[Hide:\nFormula Name]],Table_PI[[#This Row],[Quantity]],Table_PI[[#This Row],[List 1]],Table_PI[[#This Row],[List 2]],Table_PI[[#This Row],[List 3]],Table_PI[[#This Row],[Size]],Table_PI[[#This Row],[Input 1]],Table_PI[[#This Row],[Input 2]],Table_PI[[#This Row],[Input 3]],Table_PI[[#This Row],[Input 4]],'Customer Information'!$AR$12,1,ROW())>0,MeasureCalc(Table_PI[[#This Row],[Hide:\nFormula Name]],Table_PI[[#This Row],[Quantity]],Table_PI[[#This Row],[List 1]],Table_PI[[#This Row],[List 2]],Table_PI[[#This Row],[List 3]],Table_PI[[#This Row],[Size]],Table_PI[[#This Row],[Input 1]],Table_PI[[#This Row],[Input 2]],Table_PI[[#This Row],[Input 3]],Table_PI[[#This Row],[Input 4]],'Customer Information'!$AR$12,3,ROW()),\"No Rebate\"),\"No Rebate\"),0)","v":0},{"$f":"IF(Table_PI[[#This Row],[Hide:\nFormula Name]]<>\"\",IFERROR(IF(MeasureCalc(Table_PI[[#This Row],[Hide:\nFormula Name]],Table_PI[[#This Row],[Quantity]],Table_PI[[#This Row],[List 1]],Table_PI[[#This Row],[List 2]],Table_PI[[#This Row],[List 3]],Table_PI[[#This Row],[Size]],Table_PI[[#This Row],[Input 1]],Table_PI[[#This Row],[Input 2]],Table_PI[[#This Row],[Input 3]],Table_PI[[#This Row],[Input 4]],'Customer Information'!$AR$12,1,ROW())>0,MeasureCalc(Table_PI[[#This Row],[Hide:\nFormula Name]],Table_PI[[#This Row],[Quantity]],Table_PI[[#This Row],[List 1]],Table_PI[[#This Row],[List 2]],Table_PI[[#This Row],[List 3]],Table_PI[[#This Row],[Size]],Table_PI[[#This Row],[Input 1]],Table_PI[[#This Row],[Input 2]],Table_PI[[#This Row],[Input 3]],Table_PI[[#This Row],[Input 4]],'Customer Information'!$AR$12,4,ROW()),\"No Rebate\"),\"No Rebate\"),0)","v":0},{"$f":"IF(Table_PI[[#This Row],[Hide:\nFormula Name]]<>\"\",IFERROR(IF(MeasureCalc(Table_PI[[#This Row],[Hide:\nFormula Name]],Table_PI[[#This Row],[Quantity]],Table_PI[[#This Row],[List 1]],Table_PI[[#This Row],[List 2]],Table_PI[[#This Row],[List 3]],Table_PI[[#This Row],[Size]],Table_PI[[#This Row],[Input 1]],Table_PI[[#This Row],[Input 2]],Table_PI[[#This Row],[Input 3]],Table_PI[[#This Row],[Input 4]],'Customer Information'!$AR$12,1,ROW())>0,MeasureCalc(Table_PI[[#This Row],[Hide:\nFormula Name]],Table_PI[[#This Row],[Quantity]],Table_PI[[#This Row],[List 1]],Table_PI[[#This Row],[List 2]],Table_PI[[#This Row],[List 3]],Table_PI[[#This Row],[Size]],Table_PI[[#This Row],[Input 1]],Table_PI[[#This Row],[Input 2]],Table_PI[[#This Row],[Input 3]],Table_PI[[#This Row],[Input 4]],'Customer Information'!$AR$12,5,ROW()),\"No Rebate\"),\"No Rebate\"),0)","v":0},{"$f":"IF(Table_PI[[#This Row],[Hide:\nFormula Name]]<>\"\",IFERROR(IF(MeasureCalc(Table_PI[[#This Row],[Hide:\nFormula Name]],Table_PI[[#This Row],[Quantity]],Table_PI[[#This Row],[List 1]],Table_PI[[#This Row],[List 2]],Table_PI[[#This Row],[List 3]],Table_PI[[#This Row],[Size]],Table_PI[[#This Row],[Input 1]],Table_PI[[#This Row],[Input 2]],Table_PI[[#This Row],[Input 3]],Table_PI[[#This Row],[Input 4]],'Customer Information'!$AR$12,1,ROW())>0,MeasureCalc(Table_PI[[#This Row],[Hide:\nFormula Name]],Table_PI[[#This Row],[Quantity]],Table_PI[[#This Row],[List 1]],Table_PI[[#This Row],[List 2]],Table_PI[[#This Row],[List 3]],Table_PI[[#This Row],[Size]],Table_PI[[#This Row],[Input 1]],Table_PI[[#This Row],[Input 2]],Table_PI[[#This Row],[Input 3]],Table_PI[[#This Row],[Input 4]],'Customer Information'!$AR$12,6,ROW()),\"No Rebate\"),\"No Rebate\"),0)","v":0},{"$f":"IF(Table_PI[[#This Row],[Hide:\nFormula Name]]<>\"\",IFERROR(IF(MeasureCalc(Table_PI[[#This Row],[Hide:\nFormula Name]],Table_PI[[#This Row],[Quantity]],Table_PI[[#This Row],[List 1]],Table_PI[[#This Row],[List 2]],Table_PI[[#This Row],[List 3]],Table_PI[[#This Row],[Size]],Table_PI[[#This Row],[Input 1]],Table_PI[[#This Row],[Input 2]],Table_PI[[#This Row],[Input 3]],Table_PI[[#This Row],[Input 4]],'Customer Information'!$AR$12,1,ROW())>0,MeasureCalc(Table_PI[[#This Row],[Hide:\nFormula Name]],Table_PI[[#This Row],[Quantity]],Table_PI[[#This Row],[List 1]],Table_PI[[#This Row],[List 2]],Table_PI[[#This Row],[List 3]],Table_PI[[#This Row],[Size]],Table_PI[[#This Row],[Input 1]],Table_PI[[#This Row],[Input 2]],Table_PI[[#This Row],[Input 3]],Table_PI[[#This Row],[Input 4]],'Customer Information'!$AR$12,7,ROW()),\"No Rebate\"),\"No Rebate\"),0)","v":0},{"$f":"IF(Table_PI[[#This Row],[Hide:\nFormula Name]]<>\"\",IFERROR(IF(MeasureCalc(Table_PI[[#This Row],[Hide:\nFormula Name]],Table_PI[[#This Row],[Quantity]],Table_PI[[#This Row],[List 1]],Table_PI[[#This Row],[List 2]],Table_PI[[#This Row],[List 3]],Table_PI[[#This Row],[Size]],Table_PI[[#This Row],[Input 1]],Table_PI[[#This Row],[Input 2]],Table_PI[[#This Row],[Input 3]],Table_PI[[#This Row],[Input 4]],'Customer Information'!$AR$12,1,ROW())>0,MeasureCalc(Table_PI[[#This Row],[Hide:\nFormula Name]],Table_PI[[#This Row],[Quantity]],Table_PI[[#This Row],[List 1]],Table_PI[[#This Row],[List 2]],Table_PI[[#This Row],[List 3]],Table_PI[[#This Row],[Size]],Table_PI[[#This Row],[Input 1]],Table_PI[[#This Row],[Input 2]],Table_PI[[#This Row],[Input 3]],Table_PI[[#This Row],[Input 4]],'Customer Information'!$AR$12,8,ROW()),\"No Rebate\"),\"No Rebate\"),0)","v":0},{"$f":"IF(Table_PI[[#This Row],[Hide:\nFormula Name]]<>\"\",IF(AND(Table_PI[[#This Row],[Hide:\nFormula Name]]<>\"\",OR(Table_PI[[#This Row],[Rebate]]>0,Table_PI[[#This Row],[Rebate]]=\"No Rebate\")),TRUE,\"MI: Line Item \" & $A126),\"\")","v":""}]
[{"$f":"IF(Table_PI[[#This Row],[Hide:\nFormula Name]]<>\"\",MAX($A$2:A126)+1,\"\")","v":""},null,null,null,null,null,null,null,null,null,null,null,null,null,null,{"$f":"IFERROR(VLOOKUP(Table_PI[[#This Row],[Measure]],'Equipment Lookups'!$C$3:$D$23,2,FALSE),\"\")","v":""},{"$f":"IF(Table_PI[[#This Row],[Hide:\nFormula Name]]<>\"\",IFERROR(IF(MeasureCalc(Table_PI[[#This Row],[Hide:\nFormula Name]],Table_PI[[#This Row],[Quantity]],Table_PI[[#This Row],[List 1]],Table_PI[[#This Row],[List 2]],Table_PI[[#This Row],[List 3]],Table_PI[[#This Row],[Size]],Table_PI[[#This Row],[Input 1]],Table_PI[[#This Row],[Input 2]],Table_PI[[#This Row],[Input 3]],Table_PI[[#This Row],[Input 4]],'Customer Information'!$AR$12,1,ROW())>0,MeasureCalc(Table_PI[[#This Row],[Hide:\nFormula Name]],Table_PI[[#This Row],[Quantity]],Table_PI[[#This Row],[List 1]],Table_PI[[#This Row],[List 2]],Table_PI[[#This Row],[List 3]],Table_PI[[#This Row],[Size]],Table_PI[[#This Row],[Input 1]],Table_PI[[#This Row],[Input 2]],Table_PI[[#This Row],[Input 3]],Table_PI[[#This Row],[Input 4]],'Customer Information'!$AR$12,1,ROW()),\"No Rebate\"),\"No Rebate\"),0)","v":0},{"$f":"IF(Table_PI[[#This Row],[Hide:\nFormula Name]]<>\"\",IFERROR(IF(MeasureCalc(Table_PI[[#This Row],[Hide:\nFormula Name]],Table_PI[[#This Row],[Quantity]],Table_PI[[#This Row],[List 1]],Table_PI[[#This Row],[List 2]],Table_PI[[#This Row],[List 3]],Table_PI[[#This Row],[Size]],Table_PI[[#This Row],[Input 1]],Table_PI[[#This Row],[Input 2]],Table_PI[[#This Row],[Input 3]],Table_PI[[#This Row],[Input 4]],'Customer Information'!$AR$12,1,ROW())>0,MeasureCalc(Table_PI[[#This Row],[Hide:\nFormula Name]],Table_PI[[#This Row],[Quantity]],Table_PI[[#This Row],[List 1]],Table_PI[[#This Row],[List 2]],Table_PI[[#This Row],[List 3]],Table_PI[[#This Row],[Size]],Table_PI[[#This Row],[Input 1]],Table_PI[[#This Row],[Input 2]],Table_PI[[#This Row],[Input 3]],Table_PI[[#This Row],[Input 4]],'Customer Information'!$AR$12,2,ROW()),\"No Rebate\"),\"No Rebate\"),0)","v":0},{"$f":"IF(Table_PI[[#This Row],[Hide:\nFormula Name]]<>\"\",IFERROR(IF(MeasureCalc(Table_PI[[#This Row],[Hide:\nFormula Name]],Table_PI[[#This Row],[Quantity]],Table_PI[[#This Row],[List 1]],Table_PI[[#This Row],[List 2]],Table_PI[[#This Row],[List 3]],Table_PI[[#This Row],[Size]],Table_PI[[#This Row],[Input 1]],Table_PI[[#This Row],[Input 2]],Table_PI[[#This Row],[Input 3]],Table_PI[[#This Row],[Input 4]],'Customer Information'!$AR$12,1,ROW())>0,MeasureCalc(Table_PI[[#This Row],[Hide:\nFormula Name]],Table_PI[[#This Row],[Quantity]],Table_PI[[#This Row],[List 1]],Table_PI[[#This Row],[List 2]],Table_PI[[#This Row],[List 3]],Table_PI[[#This Row],[Size]],Table_PI[[#This Row],[Input 1]],Table_PI[[#This Row],[Input 2]],Table_PI[[#This Row],[Input 3]],Table_PI[[#This Row],[Input 4]],'Customer Information'!$AR$12,3,ROW()),\"No Rebate\"),\"No Rebate\"),0)","v":0},{"$f":"IF(Table_PI[[#This Row],[Hide:\nFormula Name]]<>\"\",IFERROR(IF(MeasureCalc(Table_PI[[#This Row],[Hide:\nFormula Name]],Table_PI[[#This Row],[Quantity]],Table_PI[[#This Row],[List 1]],Table_PI[[#This Row],[List 2]],Table_PI[[#This Row],[List 3]],Table_PI[[#This Row],[Size]],Table_PI[[#This Row],[Input 1]],Table_PI[[#This Row],[Input 2]],Table_PI[[#This Row],[Input 3]],Table_PI[[#This Row],[Input 4]],'Customer Information'!$AR$12,1,ROW())>0,MeasureCalc(Table_PI[[#This Row],[Hide:\nFormula Name]],Table_PI[[#This Row],[Quantity]],Table_PI[[#This Row],[List 1]],Table_PI[[#This Row],[List 2]],Table_PI[[#This Row],[List 3]],Table_PI[[#This Row],[Size]],Table_PI[[#This Row],[Input 1]],Table_PI[[#This Row],[Input 2]],Table_PI[[#This Row],[Input 3]],Table_PI[[#This Row],[Input 4]],'Customer Information'!$AR$12,4,ROW()),\"No Rebate\"),\"No Rebate\"),0)","v":0},{"$f":"IF(Table_PI[[#This Row],[Hide:\nFormula Name]]<>\"\",IFERROR(IF(MeasureCalc(Table_PI[[#This Row],[Hide:\nFormula Name]],Table_PI[[#This Row],[Quantity]],Table_PI[[#This Row],[List 1]],Table_PI[[#This Row],[List 2]],Table_PI[[#This Row],[List 3]],Table_PI[[#This Row],[Size]],Table_PI[[#This Row],[Input 1]],Table_PI[[#This Row],[Input 2]],Table_PI[[#This Row],[Input 3]],Table_PI[[#This Row],[Input 4]],'Customer Information'!$AR$12,1,ROW())>0,MeasureCalc(Table_PI[[#This Row],[Hide:\nFormula Name]],Table_PI[[#This Row],[Quantity]],Table_PI[[#This Row],[List 1]],Table_PI[[#This Row],[List 2]],Table_PI[[#This Row],[List 3]],Table_PI[[#This Row],[Size]],Table_PI[[#This Row],[Input 1]],Table_PI[[#This Row],[Input 2]],Table_PI[[#This Row],[Input 3]],Table_PI[[#This Row],[Input 4]],'Customer Information'!$AR$12,5,ROW()),\"No Rebate\"),\"No Rebate\"),0)","v":0},{"$f":"IF(Table_PI[[#This Row],[Hide:\nFormula Name]]<>\"\",IFERROR(IF(MeasureCalc(Table_PI[[#This Row],[Hide:\nFormula Name]],Table_PI[[#This Row],[Quantity]],Table_PI[[#This Row],[List 1]],Table_PI[[#This Row],[List 2]],Table_PI[[#This Row],[List 3]],Table_PI[[#This Row],[Size]],Table_PI[[#This Row],[Input 1]],Table_PI[[#This Row],[Input 2]],Table_PI[[#This Row],[Input 3]],Table_PI[[#This Row],[Input 4]],'Customer Information'!$AR$12,1,ROW())>0,MeasureCalc(Table_PI[[#This Row],[Hide:\nFormula Name]],Table_PI[[#This Row],[Quantity]],Table_PI[[#This Row],[List 1]],Table_PI[[#This Row],[List 2]],Table_PI[[#This Row],[List 3]],Table_PI[[#This Row],[Size]],Table_PI[[#This Row],[Input 1]],Table_PI[[#This Row],[Input 2]],Table_PI[[#This Row],[Input 3]],Table_PI[[#This Row],[Input 4]],'Customer Information'!$AR$12,6,ROW()),\"No Rebate\"),\"No Rebate\"),0)","v":0},{"$f":"IF(Table_PI[[#This Row],[Hide:\nFormula Name]]<>\"\",IFERROR(IF(MeasureCalc(Table_PI[[#This Row],[Hide:\nFormula Name]],Table_PI[[#This Row],[Quantity]],Table_PI[[#This Row],[List 1]],Table_PI[[#This Row],[List 2]],Table_PI[[#This Row],[List 3]],Table_PI[[#This Row],[Size]],Table_PI[[#This Row],[Input 1]],Table_PI[[#This Row],[Input 2]],Table_PI[[#This Row],[Input 3]],Table_PI[[#This Row],[Input 4]],'Customer Information'!$AR$12,1,ROW())>0,MeasureCalc(Table_PI[[#This Row],[Hide:\nFormula Name]],Table_PI[[#This Row],[Quantity]],Table_PI[[#This Row],[List 1]],Table_PI[[#This Row],[List 2]],Table_PI[[#This Row],[List 3]],Table_PI[[#This Row],[Size]],Table_PI[[#This Row],[Input 1]],Table_PI[[#This Row],[Input 2]],Table_PI[[#This Row],[Input 3]],Table_PI[[#This Row],[Input 4]],'Customer Information'!$AR$12,7,ROW()),\"No Rebate\"),\"No Rebate\"),0)","v":0},{"$f":"IF(Table_PI[[#This Row],[Hide:\nFormula Name]]<>\"\",IFERROR(IF(MeasureCalc(Table_PI[[#This Row],[Hide:\nFormula Name]],Table_PI[[#This Row],[Quantity]],Table_PI[[#This Row],[List 1]],Table_PI[[#This Row],[List 2]],Table_PI[[#This Row],[List 3]],Table_PI[[#This Row],[Size]],Table_PI[[#This Row],[Input 1]],Table_PI[[#This Row],[Input 2]],Table_PI[[#This Row],[Input 3]],Table_PI[[#This Row],[Input 4]],'Customer Information'!$AR$12,1,ROW())>0,MeasureCalc(Table_PI[[#This Row],[Hide:\nFormula Name]],Table_PI[[#This Row],[Quantity]],Table_PI[[#This Row],[List 1]],Table_PI[[#This Row],[List 2]],Table_PI[[#This Row],[List 3]],Table_PI[[#This Row],[Size]],Table_PI[[#This Row],[Input 1]],Table_PI[[#This Row],[Input 2]],Table_PI[[#This Row],[Input 3]],Table_PI[[#This Row],[Input 4]],'Customer Information'!$AR$12,8,ROW()),\"No Rebate\"),\"No Rebate\"),0)","v":0},{"$f":"IF(Table_PI[[#This Row],[Hide:\nFormula Name]]<>\"\",IF(AND(Table_PI[[#This Row],[Hide:\nFormula Name]]<>\"\",OR(Table_PI[[#This Row],[Rebate]]>0,Table_PI[[#This Row],[Rebate]]=\"No Rebate\")),TRUE,\"MI: Line Item \" & $A127),\"\")","v":""}]
[{"$f":"IF(Table_PI[[#This Row],[Hide:\nFormula Name]]<>\"\",MAX($A$2:A127)+1,\"\")","v":""},null,null,null,null,null,null,null,null,null,null,null,null,null,null,{"$f":"IFERROR(VLOOKUP(Table_PI[[#This Row],[Measure]],'Equipment Lookups'!$C$3:$D$23,2,FALSE),\"\")","v":""},{"$f":"IF(Table_PI[[#This Row],[Hide:\nFormula Name]]<>\"\",IFERROR(IF(MeasureCalc(Table_PI[[#This Row],[Hide:\nFormula Name]],Table_PI[[#This Row],[Quantity]],Table_PI[[#This Row],[List 1]],Table_PI[[#This Row],[List 2]],Table_PI[[#This Row],[List 3]],Table_PI[[#This Row],[Size]],Table_PI[[#This Row],[Input 1]],Table_PI[[#This Row],[Input 2]],Table_PI[[#This Row],[Input 3]],Table_PI[[#This Row],[Input 4]],'Customer Information'!$AR$12,1,ROW())>0,MeasureCalc(Table_PI[[#This Row],[Hide:\nFormula Name]],Table_PI[[#This Row],[Quantity]],Table_PI[[#This Row],[List 1]],Table_PI[[#This Row],[List 2]],Table_PI[[#This Row],[List 3]],Table_PI[[#This Row],[Size]],Table_PI[[#This Row],[Input 1]],Table_PI[[#This Row],[Input 2]],Table_PI[[#This Row],[Input 3]],Table_PI[[#This Row],[Input 4]],'Customer Information'!$AR$12,1,ROW()),\"No Rebate\"),\"No Rebate\"),0)","v":0},{"$f":"IF(Table_PI[[#This Row],[Hide:\nFormula Name]]<>\"\",IFERROR(IF(MeasureCalc(Table_PI[[#This Row],[Hide:\nFormula Name]],Table_PI[[#This Row],[Quantity]],Table_PI[[#This Row],[List 1]],Table_PI[[#This Row],[List 2]],Table_PI[[#This Row],[List 3]],Table_PI[[#This Row],[Size]],Table_PI[[#This Row],[Input 1]],Table_PI[[#This Row],[Input 2]],Table_PI[[#This Row],[Input 3]],Table_PI[[#This Row],[Input 4]],'Customer Information'!$AR$12,1,ROW())>0,MeasureCalc(Table_PI[[#This Row],[Hide:\nFormula Name]],Table_PI[[#This Row],[Quantity]],Table_PI[[#This Row],[List 1]],Table_PI[[#This Row],[List 2]],Table_PI[[#This Row],[List 3]],Table_PI[[#This Row],[Size]],Table_PI[[#This Row],[Input 1]],Table_PI[[#This Row],[Input 2]],Table_PI[[#This Row],[Input 3]],Table_PI[[#This Row],[Input 4]],'Customer Information'!$AR$12,2,ROW()),\"No Rebate\"),\"No Rebate\"),0)","v":0},{"$f":"IF(Table_PI[[#This Row],[Hide:\nFormula Name]]<>\"\",IFERROR(IF(MeasureCalc(Table_PI[[#This Row],[Hide:\nFormula Name]],Table_PI[[#This Row],[Quantity]],Table_PI[[#This Row],[List 1]],Table_PI[[#This Row],[List 2]],Table_PI[[#This Row],[List 3]],Table_PI[[#This Row],[Size]],Table_PI[[#This Row],[Input 1]],Table_PI[[#This Row],[Input 2]],Table_PI[[#This Row],[Input 3]],Table_PI[[#This Row],[Input 4]],'Customer Information'!$AR$12,1,ROW())>0,MeasureCalc(Table_PI[[#This Row],[Hide:\nFormula Name]],Table_PI[[#This Row],[Quantity]],Table_PI[[#This Row],[List 1]],Table_PI[[#This Row],[List 2]],Table_PI[[#This Row],[List 3]],Table_PI[[#This Row],[Size]],Table_PI[[#This Row],[Input 1]],Table_PI[[#This Row],[Input 2]],Table_PI[[#This Row],[Input 3]],Table_PI[[#This Row],[Input 4]],'Customer Information'!$AR$12,3,ROW()),\"No Rebate\"),\"No Rebate\"),0)","v":0},{"$f":"IF(Table_PI[[#This Row],[Hide:\nFormula Name]]<>\"\",IFERROR(IF(MeasureCalc(Table_PI[[#This Row],[Hide:\nFormula Name]],Table_PI[[#This Row],[Quantity]],Table_PI[[#This Row],[List 1]],Table_PI[[#This Row],[List 2]],Table_PI[[#This Row],[List 3]],Table_PI[[#This Row],[Size]],Table_PI[[#This Row],[Input 1]],Table_PI[[#This Row],[Input 2]],Table_PI[[#This Row],[Input 3]],Table_PI[[#This Row],[Input 4]],'Customer Information'!$AR$12,1,ROW())>0,MeasureCalc(Table_PI[[#This Row],[Hide:\nFormula Name]],Table_PI[[#This Row],[Quantity]],Table_PI[[#This Row],[List 1]],Table_PI[[#This Row],[List 2]],Table_PI[[#This Row],[List 3]],Table_PI[[#This Row],[Size]],Table_PI[[#This Row],[Input 1]],Table_PI[[#This Row],[Input 2]],Table_PI[[#This Row],[Input 3]],Table_PI[[#This Row],[Input 4]],'Customer Information'!$AR$12,4,ROW()),\"No Rebate\"),\"No Rebate\"),0)","v":0},{"$f":"IF(Table_PI[[#This Row],[Hide:\nFormula Name]]<>\"\",IFERROR(IF(MeasureCalc(Table_PI[[#This Row],[Hide:\nFormula Name]],Table_PI[[#This Row],[Quantity]],Table_PI[[#This Row],[List 1]],Table_PI[[#This Row],[List 2]],Table_PI[[#This Row],[List 3]],Table_PI[[#This Row],[Size]],Table_PI[[#This Row],[Input 1]],Table_PI[[#This Row],[Input 2]],Table_PI[[#This Row],[Input 3]],Table_PI[[#This Row],[Input 4]],'Customer Information'!$AR$12,1,ROW())>0,MeasureCalc(Table_PI[[#This Row],[Hide:\nFormula Name]],Table_PI[[#This Row],[Quantity]],Table_PI[[#This Row],[List 1]],Table_PI[[#This Row],[List 2]],Table_PI[[#This Row],[List 3]],Table_PI[[#This Row],[Size]],Table_PI[[#This Row],[Input 1]],Table_PI[[#This Row],[Input 2]],Table_PI[[#This Row],[Input 3]],Table_PI[[#This Row],[Input 4]],'Customer Information'!$AR$12,5,ROW()),\"No Rebate\"),\"No Rebate\"),0)","v":0},{"$f":"IF(Table_PI[[#This Row],[Hide:\nFormula Name]]<>\"\",IFERROR(IF(MeasureCalc(Table_PI[[#This Row],[Hide:\nFormula Name]],Table_PI[[#This Row],[Quantity]],Table_PI[[#This Row],[List 1]],Table_PI[[#This Row],[List 2]],Table_PI[[#This Row],[List 3]],Table_PI[[#This Row],[Size]],Table_PI[[#This Row],[Input 1]],Table_PI[[#This Row],[Input 2]],Table_PI[[#This Row],[Input 3]],Table_PI[[#This Row],[Input 4]],'Customer Information'!$AR$12,1,ROW())>0,MeasureCalc(Table_PI[[#This Row],[Hide:\nFormula Name]],Table_PI[[#This Row],[Quantity]],Table_PI[[#This Row],[List 1]],Table_PI[[#This Row],[List 2]],Table_PI[[#This Row],[List 3]],Table_PI[[#This Row],[Size]],Table_PI[[#This Row],[Input 1]],Table_PI[[#This Row],[Input 2]],Table_PI[[#This Row],[Input 3]],Table_PI[[#This Row],[Input 4]],'Customer Information'!$AR$12,6,ROW()),\"No Rebate\"),\"No Rebate\"),0)","v":0},{"$f":"IF(Table_PI[[#This Row],[Hide:\nFormula Name]]<>\"\",IFERROR(IF(MeasureCalc(Table_PI[[#This Row],[Hide:\nFormula Name]],Table_PI[[#This Row],[Quantity]],Table_PI[[#This Row],[List 1]],Table_PI[[#This Row],[List 2]],Table_PI[[#This Row],[List 3]],Table_PI[[#This Row],[Size]],Table_PI[[#This Row],[Input 1]],Table_PI[[#This Row],[Input 2]],Table_PI[[#This Row],[Input 3]],Table_PI[[#This Row],[Input 4]],'Customer Information'!$AR$12,1,ROW())>0,MeasureCalc(Table_PI[[#This Row],[Hide:\nFormula Name]],Table_PI[[#This Row],[Quantity]],Table_PI[[#This Row],[List 1]],Table_PI[[#This Row],[List 2]],Table_PI[[#This Row],[List 3]],Table_PI[[#This Row],[Size]],Table_PI[[#This Row],[Input 1]],Table_PI[[#This Row],[Input 2]],Table_PI[[#This Row],[Input 3]],Table_PI[[#This Row],[Input 4]],'Customer Information'!$AR$12,7,ROW()),\"No Rebate\"),\"No Rebate\"),0)","v":0},{"$f":"IF(Table_PI[[#This Row],[Hide:\nFormula Name]]<>\"\",IFERROR(IF(MeasureCalc(Table_PI[[#This Row],[Hide:\nFormula Name]],Table_PI[[#This Row],[Quantity]],Table_PI[[#This Row],[List 1]],Table_PI[[#This Row],[List 2]],Table_PI[[#This Row],[List 3]],Table_PI[[#This Row],[Size]],Table_PI[[#This Row],[Input 1]],Table_PI[[#This Row],[Input 2]],Table_PI[[#This Row],[Input 3]],Table_PI[[#This Row],[Input 4]],'Customer Information'!$AR$12,1,ROW())>0,MeasureCalc(Table_PI[[#This Row],[Hide:\nFormula Name]],Table_PI[[#This Row],[Quantity]],Table_PI[[#This Row],[List 1]],Table_PI[[#This Row],[List 2]],Table_PI[[#This Row],[List 3]],Table_PI[[#This Row],[Size]],Table_PI[[#This Row],[Input 1]],Table_PI[[#This Row],[Input 2]],Table_PI[[#This Row],[Input 3]],Table_PI[[#This Row],[Input 4]],'Customer Information'!$AR$12,8,ROW()),\"No Rebate\"),\"No Rebate\"),0)","v":0},{"$f":"IF(Table_PI[[#This Row],[Hide:\nFormula Name]]<>\"\",IF(AND(Table_PI[[#This Row],[Hide:\nFormula Name]]<>\"\",OR(Table_PI[[#This Row],[Rebate]]>0,Table_PI[[#This Row],[Rebate]]=\"No Rebate\")),TRUE,\"MI: Line Item \" & $A128),\"\")","v":""}]
[{"$f":"IF(Table_PI[[#This Row],[Hide:\nFormula Name]]<>\"\",MAX($A$2:A128)+1,\"\")","v":""},null,null,null,null,null,null,null,null,null,null,null,null,null,null,{"$f":"IFERROR(VLOOKUP(Table_PI[[#This Row],[Measure]],'Equipment Lookups'!$C$3:$D$23,2,FALSE),\"\")","v":""},{"$f":"IF(Table_PI[[#This Row],[Hide:\nFormula Name]]<>\"\",IFERROR(IF(MeasureCalc(Table_PI[[#This Row],[Hide:\nFormula Name]],Table_PI[[#This Row],[Quantity]],Table_PI[[#This Row],[List 1]],Table_PI[[#This Row],[List 2]],Table_PI[[#This Row],[List 3]],Table_PI[[#This Row],[Size]],Table_PI[[#This Row],[Input 1]],Table_PI[[#This Row],[Input 2]],Table_PI[[#This Row],[Input 3]],Table_PI[[#This Row],[Input 4]],'Customer Information'!$AR$12,1,ROW())>0,MeasureCalc(Table_PI[[#This Row],[Hide:\nFormula Name]],Table_PI[[#This Row],[Quantity]],Table_PI[[#This Row],[List 1]],Table_PI[[#This Row],[List 2]],Table_PI[[#This Row],[List 3]],Table_PI[[#This Row],[Size]],Table_PI[[#This Row],[Input 1]],Table_PI[[#This Row],[Input 2]],Table_PI[[#This Row],[Input 3]],Table_PI[[#This Row],[Input 4]],'Customer Information'!$AR$12,1,ROW()),\"No Rebate\"),\"No Rebate\"),0)","v":0},{"$f":"IF(Table_PI[[#This Row],[Hide:\nFormula Name]]<>\"\",IFERROR(IF(MeasureCalc(Table_PI[[#This Row],[Hide:\nFormula Name]],Table_PI[[#This Row],[Quantity]],Table_PI[[#This Row],[List 1]],Table_PI[[#This Row],[List 2]],Table_PI[[#This Row],[List 3]],Table_PI[[#This Row],[Size]],Table_PI[[#This Row],[Input 1]],Table_PI[[#This Row],[Input 2]],Table_PI[[#This Row],[Input 3]],Table_PI[[#This Row],[Input 4]],'Customer Information'!$AR$12,1,ROW())>0,MeasureCalc(Table_PI[[#This Row],[Hide:\nFormula Name]],Table_PI[[#This Row],[Quantity]],Table_PI[[#This Row],[List 1]],Table_PI[[#This Row],[List 2]],Table_PI[[#This Row],[List 3]],Table_PI[[#This Row],[Size]],Table_PI[[#This Row],[Input 1]],Table_PI[[#This Row],[Input 2]],Table_PI[[#This Row],[Input 3]],Table_PI[[#This Row],[Input 4]],'Customer Information'!$AR$12,2,ROW()),\"No Rebate\"),\"No Rebate\"),0)","v":0},{"$f":"IF(Table_PI[[#This Row],[Hide:\nFormula Name]]<>\"\",IFERROR(IF(MeasureCalc(Table_PI[[#This Row],[Hide:\nFormula Name]],Table_PI[[#This Row],[Quantity]],Table_PI[[#This Row],[List 1]],Table_PI[[#This Row],[List 2]],Table_PI[[#This Row],[List 3]],Table_PI[[#This Row],[Size]],Table_PI[[#This Row],[Input 1]],Table_PI[[#This Row],[Input 2]],Table_PI[[#This Row],[Input 3]],Table_PI[[#This Row],[Input 4]],'Customer Information'!$AR$12,1,ROW())>0,MeasureCalc(Table_PI[[#This Row],[Hide:\nFormula Name]],Table_PI[[#This Row],[Quantity]],Table_PI[[#This Row],[List 1]],Table_PI[[#This Row],[List 2]],Table_PI[[#This Row],[List 3]],Table_PI[[#This Row],[Size]],Table_PI[[#This Row],[Input 1]],Table_PI[[#This Row],[Input 2]],Table_PI[[#This Row],[Input 3]],Table_PI[[#This Row],[Input 4]],'Customer Information'!$AR$12,3,ROW()),\"No Rebate\"),\"No Rebate\"),0)","v":0},{"$f":"IF(Table_PI[[#This Row],[Hide:\nFormula Name]]<>\"\",IFERROR(IF(MeasureCalc(Table_PI[[#This Row],[Hide:\nFormula Name]],Table_PI[[#This Row],[Quantity]],Table_PI[[#This Row],[List 1]],Table_PI[[#This Row],[List 2]],Table_PI[[#This Row],[List 3]],Table_PI[[#This Row],[Size]],Table_PI[[#This Row],[Input 1]],Table_PI[[#This Row],[Input 2]],Table_PI[[#This Row],[Input 3]],Table_PI[[#This Row],[Input 4]],'Customer Information'!$AR$12,1,ROW())>0,MeasureCalc(Table_PI[[#This Row],[Hide:\nFormula Name]],Table_PI[[#This Row],[Quantity]],Table_PI[[#This Row],[List 1]],Table_PI[[#This Row],[List 2]],Table_PI[[#This Row],[List 3]],Table_PI[[#This Row],[Size]],Table_PI[[#This Row],[Input 1]],Table_PI[[#This Row],[Input 2]],Table_PI[[#This Row],[Input 3]],Table_PI[[#This Row],[Input 4]],'Customer Information'!$AR$12,4,ROW()),\"No Rebate\"),\"No Rebate\"),0)","v":0},{"$f":"IF(Table_PI[[#This Row],[Hide:\nFormula Name]]<>\"\",IFERROR(IF(MeasureCalc(Table_PI[[#This Row],[Hide:\nFormula Name]],Table_PI[[#This Row],[Quantity]],Table_PI[[#This Row],[List 1]],Table_PI[[#This Row],[List 2]],Table_PI[[#This Row],[List 3]],Table_PI[[#This Row],[Size]],Table_PI[[#This Row],[Input 1]],Table_PI[[#This Row],[Input 2]],Table_PI[[#This Row],[Input 3]],Table_PI[[#This Row],[Input 4]],'Customer Information'!$AR$12,1,ROW())>0,MeasureCalc(Table_PI[[#This Row],[Hide:\nFormula Name]],Table_PI[[#This Row],[Quantity]],Table_PI[[#This Row],[List 1]],Table_PI[[#This Row],[List 2]],Table_PI[[#This Row],[List 3]],Table_PI[[#This Row],[Size]],Table_PI[[#This Row],[Input 1]],Table_PI[[#This Row],[Input 2]],Table_PI[[#This Row],[Input 3]],Table_PI[[#This Row],[Input 4]],'Customer Information'!$AR$12,5,ROW()),\"No Rebate\"),\"No Rebate\"),0)","v":0},{"$f":"IF(Table_PI[[#This Row],[Hide:\nFormula Name]]<>\"\",IFERROR(IF(MeasureCalc(Table_PI[[#This Row],[Hide:\nFormula Name]],Table_PI[[#This Row],[Quantity]],Table_PI[[#This Row],[List 1]],Table_PI[[#This Row],[List 2]],Table_PI[[#This Row],[List 3]],Table_PI[[#This Row],[Size]],Table_PI[[#This Row],[Input 1]],Table_PI[[#This Row],[Input 2]],Table_PI[[#This Row],[Input 3]],Table_PI[[#This Row],[Input 4]],'Customer Information'!$AR$12,1,ROW())>0,MeasureCalc(Table_PI[[#This Row],[Hide:\nFormula Name]],Table_PI[[#This Row],[Quantity]],Table_PI[[#This Row],[List 1]],Table_PI[[#This Row],[List 2]],Table_PI[[#This Row],[List 3]],Table_PI[[#This Row],[Size]],Table_PI[[#This Row],[Input 1]],Table_PI[[#This Row],[Input 2]],Table_PI[[#This Row],[Input 3]],Table_PI[[#This Row],[Input 4]],'Customer Information'!$AR$12,6,ROW()),\"No Rebate\"),\"No Rebate\"),0)","v":0},{"$f":"IF(Table_PI[[#This Row],[Hide:\nFormula Name]]<>\"\",IFERROR(IF(MeasureCalc(Table_PI[[#This Row],[Hide:\nFormula Name]],Table_PI[[#This Row],[Quantity]],Table_PI[[#This Row],[List 1]],Table_PI[[#This Row],[List 2]],Table_PI[[#This Row],[List 3]],Table_PI[[#This Row],[Size]],Table_PI[[#This Row],[Input 1]],Table_PI[[#This Row],[Input 2]],Table_PI[[#This Row],[Input 3]],Table_PI[[#This Row],[Input 4]],'Customer Information'!$AR$12,1,ROW())>0,MeasureCalc(Table_PI[[#This Row],[Hide:\nFormula Name]],Table_PI[[#This Row],[Quantity]],Table_PI[[#This Row],[List 1]],Table_PI[[#This Row],[List 2]],Table_PI[[#This Row],[List 3]],Table_PI[[#This Row],[Size]],Table_PI[[#This Row],[Input 1]],Table_PI[[#This Row],[Input 2]],Table_PI[[#This Row],[Input 3]],Table_PI[[#This Row],[Input 4]],'Customer Information'!$AR$12,7,ROW()),\"No Rebate\"),\"No Rebate\"),0)","v":0},{"$f":"IF(Table_PI[[#This Row],[Hide:\nFormula Name]]<>\"\",IFERROR(IF(MeasureCalc(Table_PI[[#This Row],[Hide:\nFormula Name]],Table_PI[[#This Row],[Quantity]],Table_PI[[#This Row],[List 1]],Table_PI[[#This Row],[List 2]],Table_PI[[#This Row],[List 3]],Table_PI[[#This Row],[Size]],Table_PI[[#This Row],[Input 1]],Table_PI[[#This Row],[Input 2]],Table_PI[[#This Row],[Input 3]],Table_PI[[#This Row],[Input 4]],'Customer Information'!$AR$12,1,ROW())>0,MeasureCalc(Table_PI[[#This Row],[Hide:\nFormula Name]],Table_PI[[#This Row],[Quantity]],Table_PI[[#This Row],[List 1]],Table_PI[[#This Row],[List 2]],Table_PI[[#This Row],[List 3]],Table_PI[[#This Row],[Size]],Table_PI[[#This Row],[Input 1]],Table_PI[[#This Row],[Input 2]],Table_PI[[#This Row],[Input 3]],Table_PI[[#This Row],[Input 4]],'Customer Information'!$AR$12,8,ROW()),\"No Rebate\"),\"No Rebate\"),0)","v":0},{"$f":"IF(Table_PI[[#This Row],[Hide:\nFormula Name]]<>\"\",IF(AND(Table_PI[[#This Row],[Hide:\nFormula Name]]<>\"\",OR(Table_PI[[#This Row],[Rebate]]>0,Table_PI[[#This Row],[Rebate]]=\"No Rebate\")),TRUE,\"MI: Line Item \" & $A129),\"\")","v":""}]
[{"$f":"IF(Table_PI[[#This Row],[Hide:\nFormula Name]]<>\"\",MAX($A$2:A129)+1,\"\")","v":""},null,null,null,null,null,null,null,null,null,null,null,null,null,null,{"$f":"IFERROR(VLOOKUP(Table_PI[[#This Row],[Measure]],'Equipment Lookups'!$C$3:$D$23,2,FALSE),\"\")","v":""},{"$f":"IF(Table_PI[[#This Row],[Hide:\nFormula Name]]<>\"\",IFERROR(IF(MeasureCalc(Table_PI[[#This Row],[Hide:\nFormula Name]],Table_PI[[#This Row],[Quantity]],Table_PI[[#This Row],[List 1]],Table_PI[[#This Row],[List 2]],Table_PI[[#This Row],[List 3]],Table_PI[[#This Row],[Size]],Table_PI[[#This Row],[Input 1]],Table_PI[[#This Row],[Input 2]],Table_PI[[#This Row],[Input 3]],Table_PI[[#This Row],[Input 4]],'Customer Information'!$AR$12,1,ROW())>0,MeasureCalc(Table_PI[[#This Row],[Hide:\nFormula Name]],Table_PI[[#This Row],[Quantity]],Table_PI[[#This Row],[List 1]],Table_PI[[#This Row],[List 2]],Table_PI[[#This Row],[List 3]],Table_PI[[#This Row],[Size]],Table_PI[[#This Row],[Input 1]],Table_PI[[#This Row],[Input 2]],Table_PI[[#This Row],[Input 3]],Table_PI[[#This Row],[Input 4]],'Customer Information'!$AR$12,1,ROW()),\"No Rebate\"),\"No Rebate\"),0)","v":0},{"$f":"IF(Table_PI[[#This Row],[Hide:\nFormula Name]]<>\"\",IFERROR(IF(MeasureCalc(Table_PI[[#This Row],[Hide:\nFormula Name]],Table_PI[[#This Row],[Quantity]],Table_PI[[#This Row],[List 1]],Table_PI[[#This Row],[List 2]],Table_PI[[#This Row],[List 3]],Table_PI[[#This Row],[Size]],Table_PI[[#This Row],[Input 1]],Table_PI[[#This Row],[Input 2]],Table_PI[[#This Row],[Input 3]],Table_PI[[#This Row],[Input 4]],'Customer Information'!$AR$12,1,ROW())>0,MeasureCalc(Table_PI[[#This Row],[Hide:\nFormula Name]],Table_PI[[#This Row],[Quantity]],Table_PI[[#This Row],[List 1]],Table_PI[[#This Row],[List 2]],Table_PI[[#This Row],[List 3]],Table_PI[[#This Row],[Size]],Table_PI[[#This Row],[Input 1]],Table_PI[[#This Row],[Input 2]],Table_PI[[#This Row],[Input 3]],Table_PI[[#This Row],[Input 4]],'Customer Information'!$AR$12,2,ROW()),\"No Rebate\"),\"No Rebate\"),0)","v":0},{"$f":"IF(Table_PI[[#This Row],[Hide:\nFormula Name]]<>\"\",IFERROR(IF(MeasureCalc(Table_PI[[#This Row],[Hide:\nFormula Name]],Table_PI[[#This Row],[Quantity]],Table_PI[[#This Row],[List 1]],Table_PI[[#This Row],[List 2]],Table_PI[[#This Row],[List 3]],Table_PI[[#This Row],[Size]],Table_PI[[#This Row],[Input 1]],Table_PI[[#This Row],[Input 2]],Table_PI[[#This Row],[Input 3]],Table_PI[[#This Row],[Input 4]],'Customer Information'!$AR$12,1,ROW())>0,MeasureCalc(Table_PI[[#This Row],[Hide:\nFormula Name]],Table_PI[[#This Row],[Quantity]],Table_PI[[#This Row],[List 1]],Table_PI[[#This Row],[List 2]],Table_PI[[#This Row],[List 3]],Table_PI[[#This Row],[Size]],Table_PI[[#This Row],[Input 1]],Table_PI[[#This Row],[Input 2]],Table_PI[[#This Row],[Input 3]],Table_PI[[#This Row],[Input 4]],'Customer Information'!$AR$12,3,ROW()),\"No Rebate\"),\"No Rebate\"),0)","v":0},{"$f":"IF(Table_PI[[#This Row],[Hide:\nFormula Name]]<>\"\",IFERROR(IF(MeasureCalc(Table_PI[[#This Row],[Hide:\nFormula Name]],Table_PI[[#This Row],[Quantity]],Table_PI[[#This Row],[List 1]],Table_PI[[#This Row],[List 2]],Table_PI[[#This Row],[List 3]],Table_PI[[#This Row],[Size]],Table_PI[[#This Row],[Input 1]],Table_PI[[#This Row],[Input 2]],Table_PI[[#This Row],[Input 3]],Table_PI[[#This Row],[Input 4]],'Customer Information'!$AR$12,1,ROW())>0,MeasureCalc(Table_PI[[#This Row],[Hide:\nFormula Name]],Table_PI[[#This Row],[Quantity]],Table_PI[[#This Row],[List 1]],Table_PI[[#This Row],[List 2]],Table_PI[[#This Row],[List 3]],Table_PI[[#This Row],[Size]],Table_PI[[#This Row],[Input 1]],Table_PI[[#This Row],[Input 2]],Table_PI[[#This Row],[Input 3]],Table_PI[[#This Row],[Input 4]],'Customer Information'!$AR$12,4,ROW()),\"No Rebate\"),\"No Rebate\"),0)","v":0},{"$f":"IF(Table_PI[[#This Row],[Hide:\nFormula Name]]<>\"\",IFERROR(IF(MeasureCalc(Table_PI[[#This Row],[Hide:\nFormula Name]],Table_PI[[#This Row],[Quantity]],Table_PI[[#This Row],[List 1]],Table_PI[[#This Row],[List 2]],Table_PI[[#This Row],[List 3]],Table_PI[[#This Row],[Size]],Table_PI[[#This Row],[Input 1]],Table_PI[[#This Row],[Input 2]],Table_PI[[#This Row],[Input 3]],Table_PI[[#This Row],[Input 4]],'Customer Information'!$AR$12,1,ROW())>0,MeasureCalc(Table_PI[[#This Row],[Hide:\nFormula Name]],Table_PI[[#This Row],[Quantity]],Table_PI[[#This Row],[List 1]],Table_PI[[#This Row],[List 2]],Table_PI[[#This Row],[List 3]],Table_PI[[#This Row],[Size]],Table_PI[[#This Row],[Input 1]],Table_PI[[#This Row],[Input 2]],Table_PI[[#This Row],[Input 3]],Table_PI[[#This Row],[Input 4]],'Customer Information'!$AR$12,5,ROW()),\"No Rebate\"),\"No Rebate\"),0)","v":0},{"$f":"IF(Table_PI[[#This Row],[Hide:\nFormula Name]]<>\"\",IFERROR(IF(MeasureCalc(Table_PI[[#This Row],[Hide:\nFormula Name]],Table_PI[[#This Row],[Quantity]],Table_PI[[#This Row],[List 1]],Table_PI[[#This Row],[List 2]],Table_PI[[#This Row],[List 3]],Table_PI[[#This Row],[Size]],Table_PI[[#This Row],[Input 1]],Table_PI[[#This Row],[Input 2]],Table_PI[[#This Row],[Input 3]],Table_PI[[#This Row],[Input 4]],'Customer Information'!$AR$12,1,ROW())>0,MeasureCalc(Table_PI[[#This Row],[Hide:\nFormula Name]],Table_PI[[#This Row],[Quantity]],Table_PI[[#This Row],[List 1]],Table_PI[[#This Row],[List 2]],Table_PI[[#This Row],[List 3]],Table_PI[[#This Row],[Size]],Table_PI[[#This Row],[Input 1]],Table_PI[[#This Row],[Input 2]],Table_PI[[#This Row],[Input 3]],Table_PI[[#This Row],[Input 4]],'Customer Information'!$AR$12,6,ROW()),\"No Rebate\"),\"No Rebate\"),0)","v":0},{"$f":"IF(Table_PI[[#This Row],[Hide:\nFormula Name]]<>\"\",IFERROR(IF(MeasureCalc(Table_PI[[#This Row],[Hide:\nFormula Name]],Table_PI[[#This Row],[Quantity]],Table_PI[[#This Row],[List 1]],Table_PI[[#This Row],[List 2]],Table_PI[[#This Row],[List 3]],Table_PI[[#This Row],[Size]],Table_PI[[#This Row],[Input 1]],Table_PI[[#This Row],[Input 2]],Table_PI[[#This Row],[Input 3]],Table_PI[[#This Row],[Input 4]],'Customer Information'!$AR$12,1,ROW())>0,MeasureCalc(Table_PI[[#This Row],[Hide:\nFormula Name]],Table_PI[[#This Row],[Quantity]],Table_PI[[#This Row],[List 1]],Table_PI[[#This Row],[List 2]],Table_PI[[#This Row],[List 3]],Table_PI[[#This Row],[Size]],Table_PI[[#This Row],[Input 1]],Table_PI[[#This Row],[Input 2]],Table_PI[[#This Row],[Input 3]],Table_PI[[#This Row],[Input 4]],'Customer Information'!$AR$12,7,ROW()),\"No Rebate\"),\"No Rebate\"),0)","v":0},{"$f":"IF(Table_PI[[#This Row],[Hide:\nFormula Name]]<>\"\",IFERROR(IF(MeasureCalc(Table_PI[[#This Row],[Hide:\nFormula Name]],Table_PI[[#This Row],[Quantity]],Table_PI[[#This Row],[List 1]],Table_PI[[#This Row],[List 2]],Table_PI[[#This Row],[List 3]],Table_PI[[#This Row],[Size]],Table_PI[[#This Row],[Input 1]],Table_PI[[#This Row],[Input 2]],Table_PI[[#This Row],[Input 3]],Table_PI[[#This Row],[Input 4]],'Customer Information'!$AR$12,1,ROW())>0,MeasureCalc(Table_PI[[#This Row],[Hide:\nFormula Name]],Table_PI[[#This Row],[Quantity]],Table_PI[[#This Row],[List 1]],Table_PI[[#This Row],[List 2]],Table_PI[[#This Row],[List 3]],Table_PI[[#This Row],[Size]],Table_PI[[#This Row],[Input 1]],Table_PI[[#This Row],[Input 2]],Table_PI[[#This Row],[Input 3]],Table_PI[[#This Row],[Input 4]],'Customer Information'!$AR$12,8,ROW()),\"No Rebate\"),\"No Rebate\"),0)","v":0},{"$f":"IF(Table_PI[[#This Row],[Hide:\nFormula Name]]<>\"\",IF(AND(Table_PI[[#This Row],[Hide:\nFormula Name]]<>\"\",OR(Table_PI[[#This Row],[Rebate]]>0,Table_PI[[#This Row],[Rebate]]=\"No Rebate\")),TRUE,\"MI: Line Item \" & $A130),\"\")","v":""}]
[{"$f":"IF(Table_PI[[#This Row],[Hide:\nFormula Name]]<>\"\",MAX($A$2:A130)+1,\"\")","v":""},null,null,null,null,null,null,null,null,null,null,null,null,null,null,{"$f":"IFERROR(VLOOKUP(Table_PI[[#This Row],[Measure]],'Equipment Lookups'!$C$3:$D$23,2,FALSE),\"\")","v":""},{"$f":"IF(Table_PI[[#This Row],[Hide:\nFormula Name]]<>\"\",IFERROR(IF(MeasureCalc(Table_PI[[#This Row],[Hide:\nFormula Name]],Table_PI[[#This Row],[Quantity]],Table_PI[[#This Row],[List 1]],Table_PI[[#This Row],[List 2]],Table_PI[[#This Row],[List 3]],Table_PI[[#This Row],[Size]],Table_PI[[#This Row],[Input 1]],Table_PI[[#This Row],[Input 2]],Table_PI[[#This Row],[Input 3]],Table_PI[[#This Row],[Input 4]],'Customer Information'!$AR$12,1,ROW())>0,MeasureCalc(Table_PI[[#This Row],[Hide:\nFormula Name]],Table_PI[[#This Row],[Quantity]],Table_PI[[#This Row],[List 1]],Table_PI[[#This Row],[List 2]],Table_PI[[#This Row],[List 3]],Table_PI[[#This Row],[Size]],Table_PI[[#This Row],[Input 1]],Table_PI[[#This Row],[Input 2]],Table_PI[[#This Row],[Input 3]],Table_PI[[#This Row],[Input 4]],'Customer Information'!$AR$12,1,ROW()),\"No Rebate\"),\"No Rebate\"),0)","v":0},{"$f":"IF(Table_PI[[#This Row],[Hide:\nFormula Name]]<>\"\",IFERROR(IF(MeasureCalc(Table_PI[[#This Row],[Hide:\nFormula Name]],Table_PI[[#This Row],[Quantity]],Table_PI[[#This Row],[List 1]],Table_PI[[#This Row],[List 2]],Table_PI[[#This Row],[List 3]],Table_PI[[#This Row],[Size]],Table_PI[[#This Row],[Input 1]],Table_PI[[#This Row],[Input 2]],Table_PI[[#This Row],[Input 3]],Table_PI[[#This Row],[Input 4]],'Customer Information'!$AR$12,1,ROW())>0,MeasureCalc(Table_PI[[#This Row],[Hide:\nFormula Name]],Table_PI[[#This Row],[Quantity]],Table_PI[[#This Row],[List 1]],Table_PI[[#This Row],[List 2]],Table_PI[[#This Row],[List 3]],Table_PI[[#This Row],[Size]],Table_PI[[#This Row],[Input 1]],Table_PI[[#This Row],[Input 2]],Table_PI[[#This Row],[Input 3]],Table_PI[[#This Row],[Input 4]],'Customer Information'!$AR$12,2,ROW()),\"No Rebate\"),\"No Rebate\"),0)","v":0},{"$f":"IF(Table_PI[[#This Row],[Hide:\nFormula Name]]<>\"\",IFERROR(IF(MeasureCalc(Table_PI[[#This Row],[Hide:\nFormula Name]],Table_PI[[#This Row],[Quantity]],Table_PI[[#This Row],[List 1]],Table_PI[[#This Row],[List 2]],Table_PI[[#This Row],[List 3]],Table_PI[[#This Row],[Size]],Table_PI[[#This Row],[Input 1]],Table_PI[[#This Row],[Input 2]],Table_PI[[#This Row],[Input 3]],Table_PI[[#This Row],[Input 4]],'Customer Information'!$AR$12,1,ROW())>0,MeasureCalc(Table_PI[[#This Row],[Hide:\nFormula Name]],Table_PI[[#This Row],[Quantity]],Table_PI[[#This Row],[List 1]],Table_PI[[#This Row],[List 2]],Table_PI[[#This Row],[List 3]],Table_PI[[#This Row],[Size]],Table_PI[[#This Row],[Input 1]],Table_PI[[#This Row],[Input 2]],Table_PI[[#This Row],[Input 3]],Table_PI[[#This Row],[Input 4]],'Customer Information'!$AR$12,3,ROW()),\"No Rebate\"),\"No Rebate\"),0)","v":0},{"$f":"IF(Table_PI[[#This Row],[Hide:\nFormula Name]]<>\"\",IFERROR(IF(MeasureCalc(Table_PI[[#This Row],[Hide:\nFormula Name]],Table_PI[[#This Row],[Quantity]],Table_PI[[#This Row],[List 1]],Table_PI[[#This Row],[List 2]],Table_PI[[#This Row],[List 3]],Table_PI[[#This Row],[Size]],Table_PI[[#This Row],[Input 1]],Table_PI[[#This Row],[Input 2]],Table_PI[[#This Row],[Input 3]],Table_PI[[#This Row],[Input 4]],'Customer Information'!$AR$12,1,ROW())>0,MeasureCalc(Table_PI[[#This Row],[Hide:\nFormula Name]],Table_PI[[#This Row],[Quantity]],Table_PI[[#This Row],[List 1]],Table_PI[[#This Row],[List 2]],Table_PI[[#This Row],[List 3]],Table_PI[[#This Row],[Size]],Table_PI[[#This Row],[Input 1]],Table_PI[[#This Row],[Input 2]],Table_PI[[#This Row],[Input 3]],Table_PI[[#This Row],[Input 4]],'Customer Information'!$AR$12,4,ROW()),\"No Rebate\"),\"No Rebate\"),0)","v":0},{"$f":"IF(Table_PI[[#This Row],[Hide:\nFormula Name]]<>\"\",IFERROR(IF(MeasureCalc(Table_PI[[#This Row],[Hide:\nFormula Name]],Table_PI[[#This Row],[Quantity]],Table_PI[[#This Row],[List 1]],Table_PI[[#This Row],[List 2]],Table_PI[[#This Row],[List 3]],Table_PI[[#This Row],[Size]],Table_PI[[#This Row],[Input 1]],Table_PI[[#This Row],[Input 2]],Table_PI[[#This Row],[Input 3]],Table_PI[[#This Row],[Input 4]],'Customer Information'!$AR$12,1,ROW())>0,MeasureCalc(Table_PI[[#This Row],[Hide:\nFormula Name]],Table_PI[[#This Row],[Quantity]],Table_PI[[#This Row],[List 1]],Table_PI[[#This Row],[List 2]],Table_PI[[#This Row],[List 3]],Table_PI[[#This Row],[Size]],Table_PI[[#This Row],[Input 1]],Table_PI[[#This Row],[Input 2]],Table_PI[[#This Row],[Input 3]],Table_PI[[#This Row],[Input 4]],'Customer Information'!$AR$12,5,ROW()),\"No Rebate\"),\"No Rebate\"),0)","v":0},{"$f":"IF(Table_PI[[#This Row],[Hide:\nFormula Name]]<>\"\",IFERROR(IF(MeasureCalc(Table_PI[[#This Row],[Hide:\nFormula Name]],Table_PI[[#This Row],[Quantity]],Table_PI[[#This Row],[List 1]],Table_PI[[#This Row],[List 2]],Table_PI[[#This Row],[List 3]],Table_PI[[#This Row],[Size]],Table_PI[[#This Row],[Input 1]],Table_PI[[#This Row],[Input 2]],Table_PI[[#This Row],[Input 3]],Table_PI[[#This Row],[Input 4]],'Customer Information'!$AR$12,1,ROW())>0,MeasureCalc(Table_PI[[#This Row],[Hide:\nFormula Name]],Table_PI[[#This Row],[Quantity]],Table_PI[[#This Row],[List 1]],Table_PI[[#This Row],[List 2]],Table_PI[[#This Row],[List 3]],Table_PI[[#This Row],[Size]],Table_PI[[#This Row],[Input 1]],Table_PI[[#This Row],[Input 2]],Table_PI[[#This Row],[Input 3]],Table_PI[[#This Row],[Input 4]],'Customer Information'!$AR$12,6,ROW()),\"No Rebate\"),\"No Rebate\"),0)","v":0},{"$f":"IF(Table_PI[[#This Row],[Hide:\nFormula Name]]<>\"\",IFERROR(IF(MeasureCalc(Table_PI[[#This Row],[Hide:\nFormula Name]],Table_PI[[#This Row],[Quantity]],Table_PI[[#This Row],[List 1]],Table_PI[[#This Row],[List 2]],Table_PI[[#This Row],[List 3]],Table_PI[[#This Row],[Size]],Table_PI[[#This Row],[Input 1]],Table_PI[[#This Row],[Input 2]],Table_PI[[#This Row],[Input 3]],Table_PI[[#This Row],[Input 4]],'Customer Information'!$AR$12,1,ROW())>0,MeasureCalc(Table_PI[[#This Row],[Hide:\nFormula Name]],Table_PI[[#This Row],[Quantity]],Table_PI[[#This Row],[List 1]],Table_PI[[#This Row],[List 2]],Table_PI[[#This Row],[List 3]],Table_PI[[#This Row],[Size]],Table_PI[[#This Row],[Input 1]],Table_PI[[#This Row],[Input 2]],Table_PI[[#This Row],[Input 3]],Table_PI[[#This Row],[Input 4]],'Customer Information'!$AR$12,7,ROW()),\"No Rebate\"),\"No Rebate\"),0)","v":0},{"$f":"IF(Table_PI[[#This Row],[Hide:\nFormula Name]]<>\"\",IFERROR(IF(MeasureCalc(Table_PI[[#This Row],[Hide:\nFormula Name]],Table_PI[[#This Row],[Quantity]],Table_PI[[#This Row],[List 1]],Table_PI[[#This Row],[List 2]],Table_PI[[#This Row],[List 3]],Table_PI[[#This Row],[Size]],Table_PI[[#This Row],[Input 1]],Table_PI[[#This Row],[Input 2]],Table_PI[[#This Row],[Input 3]],Table_PI[[#This Row],[Input 4]],'Customer Information'!$AR$12,1,ROW())>0,MeasureCalc(Table_PI[[#This Row],[Hide:\nFormula Name]],Table_PI[[#This Row],[Quantity]],Table_PI[[#This Row],[List 1]],Table_PI[[#This Row],[List 2]],Table_PI[[#This Row],[List 3]],Table_PI[[#This Row],[Size]],Table_PI[[#This Row],[Input 1]],Table_PI[[#This Row],[Input 2]],Table_PI[[#This Row],[Input 3]],Table_PI[[#This Row],[Input 4]],'Customer Information'!$AR$12,8,ROW()),\"No Rebate\"),\"No Rebate\"),0)","v":0},{"$f":"IF(Table_PI[[#This Row],[Hide:\nFormula Name]]<>\"\",IF(AND(Table_PI[[#This Row],[Hide:\nFormula Name]]<>\"\",OR(Table_PI[[#This Row],[Rebate]]>0,Table_PI[[#This Row],[Rebate]]=\"No Rebate\")),TRUE,\"MI: Line Item \" & $A131),\"\")","v":""}]
[{"$f":"IF(Table_PI[[#This Row],[Hide:\nFormula Name]]<>\"\",MAX($A$2:A131)+1,\"\")","v":""},null,null,null,null,null,null,null,null,null,null,null,null,null,null,{"$f":"IFERROR(VLOOKUP(Table_PI[[#This Row],[Measure]],'Equipment Lookups'!$C$3:$D$23,2,FALSE),\"\")","v":""},{"$f":"IF(Table_PI[[#This Row],[Hide:\nFormula Name]]<>\"\",IFERROR(IF(MeasureCalc(Table_PI[[#This Row],[Hide:\nFormula Name]],Table_PI[[#This Row],[Quantity]],Table_PI[[#This Row],[List 1]],Table_PI[[#This Row],[List 2]],Table_PI[[#This Row],[List 3]],Table_PI[[#This Row],[Size]],Table_PI[[#This Row],[Input 1]],Table_PI[[#This Row],[Input 2]],Table_PI[[#This Row],[Input 3]],Table_PI[[#This Row],[Input 4]],'Customer Information'!$AR$12,1,ROW())>0,MeasureCalc(Table_PI[[#This Row],[Hide:\nFormula Name]],Table_PI[[#This Row],[Quantity]],Table_PI[[#This Row],[List 1]],Table_PI[[#This Row],[List 2]],Table_PI[[#This Row],[List 3]],Table_PI[[#This Row],[Size]],Table_PI[[#This Row],[Input 1]],Table_PI[[#This Row],[Input 2]],Table_PI[[#This Row],[Input 3]],Table_PI[[#This Row],[Input 4]],'Customer Information'!$AR$12,1,ROW()),\"No Rebate\"),\"No Rebate\"),0)","v":0},{"$f":"IF(Table_PI[[#This Row],[Hide:\nFormula Name]]<>\"\",IFERROR(IF(MeasureCalc(Table_PI[[#This Row],[Hide:\nFormula Name]],Table_PI[[#This Row],[Quantity]],Table_PI[[#This Row],[List 1]],Table_PI[[#This Row],[List 2]],Table_PI[[#This Row],[List 3]],Table_PI[[#This Row],[Size]],Table_PI[[#This Row],[Input 1]],Table_PI[[#This Row],[Input 2]],Table_PI[[#This Row],[Input 3]],Table_PI[[#This Row],[Input 4]],'Customer Information'!$AR$12,1,ROW())>0,MeasureCalc(Table_PI[[#This Row],[Hide:\nFormula Name]],Table_PI[[#This Row],[Quantity]],Table_PI[[#This Row],[List 1]],Table_PI[[#This Row],[List 2]],Table_PI[[#This Row],[List 3]],Table_PI[[#This Row],[Size]],Table_PI[[#This Row],[Input 1]],Table_PI[[#This Row],[Input 2]],Table_PI[[#This Row],[Input 3]],Table_PI[[#This Row],[Input 4]],'Customer Information'!$AR$12,2,ROW()),\"No Rebate\"),\"No Rebate\"),0)","v":0},{"$f":"IF(Table_PI[[#This Row],[Hide:\nFormula Name]]<>\"\",IFERROR(IF(MeasureCalc(Table_PI[[#This Row],[Hide:\nFormula Name]],Table_PI[[#This Row],[Quantity]],Table_PI[[#This Row],[List 1]],Table_PI[[#This Row],[List 2]],Table_PI[[#This Row],[List 3]],Table_PI[[#This Row],[Size]],Table_PI[[#This Row],[Input 1]],Table_PI[[#This Row],[Input 2]],Table_PI[[#This Row],[Input 3]],Table_PI[[#This Row],[Input 4]],'Customer Information'!$AR$12,1,ROW())>0,MeasureCalc(Table_PI[[#This Row],[Hide:\nFormula Name]],Table_PI[[#This Row],[Quantity]],Table_PI[[#This Row],[List 1]],Table_PI[[#This Row],[List 2]],Table_PI[[#This Row],[List 3]],Table_PI[[#This Row],[Size]],Table_PI[[#This Row],[Input 1]],Table_PI[[#This Row],[Input 2]],Table_PI[[#This Row],[Input 3]],Table_PI[[#This Row],[Input 4]],'Customer Information'!$AR$12,3,ROW()),\"No Rebate\"),\"No Rebate\"),0)","v":0},{"$f":"IF(Table_PI[[#This Row],[Hide:\nFormula Name]]<>\"\",IFERROR(IF(MeasureCalc(Table_PI[[#This Row],[Hide:\nFormula Name]],Table_PI[[#This Row],[Quantity]],Table_PI[[#This Row],[List 1]],Table_PI[[#This Row],[List 2]],Table_PI[[#This Row],[List 3]],Table_PI[[#This Row],[Size]],Table_PI[[#This Row],[Input 1]],Table_PI[[#This Row],[Input 2]],Table_PI[[#This Row],[Input 3]],Table_PI[[#This Row],[Input 4]],'Customer Information'!$AR$12,1,ROW())>0,MeasureCalc(Table_PI[[#This Row],[Hide:\nFormula Name]],Table_PI[[#This Row],[Quantity]],Table_PI[[#This Row],[List 1]],Table_PI[[#This Row],[List 2]],Table_PI[[#This Row],[List 3]],Table_PI[[#This Row],[Size]],Table_PI[[#This Row],[Input 1]],Table_PI[[#This Row],[Input 2]],Table_PI[[#This Row],[Input 3]],Table_PI[[#This Row],[Input 4]],'Customer Information'!$AR$12,4,ROW()),\"No Rebate\"),\"No Rebate\"),0)","v":0},{"$f":"IF(Table_PI[[#This Row],[Hide:\nFormula Name]]<>\"\",IFERROR(IF(MeasureCalc(Table_PI[[#This Row],[Hide:\nFormula Name]],Table_PI[[#This Row],[Quantity]],Table_PI[[#This Row],[List 1]],Table_PI[[#This Row],[List 2]],Table_PI[[#This Row],[List 3]],Table_PI[[#This Row],[Size]],Table_PI[[#This Row],[Input 1]],Table_PI[[#This Row],[Input 2]],Table_PI[[#This Row],[Input 3]],Table_PI[[#This Row],[Input 4]],'Customer Information'!$AR$12,1,ROW())>0,MeasureCalc(Table_PI[[#This Row],[Hide:\nFormula Name]],Table_PI[[#This Row],[Quantity]],Table_PI[[#This Row],[List 1]],Table_PI[[#This Row],[List 2]],Table_PI[[#This Row],[List 3]],Table_PI[[#This Row],[Size]],Table_PI[[#This Row],[Input 1]],Table_PI[[#This Row],[Input 2]],Table_PI[[#This Row],[Input 3]],Table_PI[[#This Row],[Input 4]],'Customer Information'!$AR$12,5,ROW()),\"No Rebate\"),\"No Rebate\"),0)","v":0},{"$f":"IF(Table_PI[[#This Row],[Hide:\nFormula Name]]<>\"\",IFERROR(IF(MeasureCalc(Table_PI[[#This Row],[Hide:\nFormula Name]],Table_PI[[#This Row],[Quantity]],Table_PI[[#This Row],[List 1]],Table_PI[[#This Row],[List 2]],Table_PI[[#This Row],[List 3]],Table_PI[[#This Row],[Size]],Table_PI[[#This Row],[Input 1]],Table_PI[[#This Row],[Input 2]],Table_PI[[#This Row],[Input 3]],Table_PI[[#This Row],[Input 4]],'Customer Information'!$AR$12,1,ROW())>0,MeasureCalc(Table_PI[[#This Row],[Hide:\nFormula Name]],Table_PI[[#This Row],[Quantity]],Table_PI[[#This Row],[List 1]],Table_PI[[#This Row],[List 2]],Table_PI[[#This Row],[List 3]],Table_PI[[#This Row],[Size]],Table_PI[[#This Row],[Input 1]],Table_PI[[#This Row],[Input 2]],Table_PI[[#This Row],[Input 3]],Table_PI[[#This Row],[Input 4]],'Customer Information'!$AR$12,6,ROW()),\"No Rebate\"),\"No Rebate\"),0)","v":0},{"$f":"IF(Table_PI[[#This Row],[Hide:\nFormula Name]]<>\"\",IFERROR(IF(MeasureCalc(Table_PI[[#This Row],[Hide:\nFormula Name]],Table_PI[[#This Row],[Quantity]],Table_PI[[#This Row],[List 1]],Table_PI[[#This Row],[List 2]],Table_PI[[#This Row],[List 3]],Table_PI[[#This Row],[Size]],Table_PI[[#This Row],[Input 1]],Table_PI[[#This Row],[Input 2]],Table_PI[[#This Row],[Input 3]],Table_PI[[#This Row],[Input 4]],'Customer Information'!$AR$12,1,ROW())>0,MeasureCalc(Table_PI[[#This Row],[Hide:\nFormula Name]],Table_PI[[#This Row],[Quantity]],Table_PI[[#This Row],[List 1]],Table_PI[[#This Row],[List 2]],Table_PI[[#This Row],[List 3]],Table_PI[[#This Row],[Size]],Table_PI[[#This Row],[Input 1]],Table_PI[[#This Row],[Input 2]],Table_PI[[#This Row],[Input 3]],Table_PI[[#This Row],[Input 4]],'Customer Information'!$AR$12,7,ROW()),\"No Rebate\"),\"No Rebate\"),0)","v":0},{"$f":"IF(Table_PI[[#This Row],[Hide:\nFormula Name]]<>\"\",IFERROR(IF(MeasureCalc(Table_PI[[#This Row],[Hide:\nFormula Name]],Table_PI[[#This Row],[Quantity]],Table_PI[[#This Row],[List 1]],Table_PI[[#This Row],[List 2]],Table_PI[[#This Row],[List 3]],Table_PI[[#This Row],[Size]],Table_PI[[#This Row],[Input 1]],Table_PI[[#This Row],[Input 2]],Table_PI[[#This Row],[Input 3]],Table_PI[[#This Row],[Input 4]],'Customer Information'!$AR$12,1,ROW())>0,MeasureCalc(Table_PI[[#This Row],[Hide:\nFormula Name]],Table_PI[[#This Row],[Quantity]],Table_PI[[#This Row],[List 1]],Table_PI[[#This Row],[List 2]],Table_PI[[#This Row],[List 3]],Table_PI[[#This Row],[Size]],Table_PI[[#This Row],[Input 1]],Table_PI[[#This Row],[Input 2]],Table_PI[[#This Row],[Input 3]],Table_PI[[#This Row],[Input 4]],'Customer Information'!$AR$12,8,ROW()),\"No Rebate\"),\"No Rebate\"),0)","v":0},{"$f":"IF(Table_PI[[#This Row],[Hide:\nFormula Name]]<>\"\",IF(AND(Table_PI[[#This Row],[Hide:\nFormula Name]]<>\"\",OR(Table_PI[[#This Row],[Rebate]]>0,Table_PI[[#This Row],[Rebate]]=\"No Rebate\")),TRUE,\"MI: Line Item \" & $A132),\"\")","v":""}]
[{"$f":"IF(Table_PI[[#This Row],[Hide:\nFormula Name]]<>\"\",MAX($A$2:A132)+1,\"\")","v":""},null,null,null,null,null,null,null,null,null,null,null,null,null,null,{"$f":"IFERROR(VLOOKUP(Table_PI[[#This Row],[Measure]],'Equipment Lookups'!$C$3:$D$23,2,FALSE),\"\")","v":""},{"$f":"IF(Table_PI[[#This Row],[Hide:\nFormula Name]]<>\"\",IFERROR(IF(MeasureCalc(Table_PI[[#This Row],[Hide:\nFormula Name]],Table_PI[[#This Row],[Quantity]],Table_PI[[#This Row],[List 1]],Table_PI[[#This Row],[List 2]],Table_PI[[#This Row],[List 3]],Table_PI[[#This Row],[Size]],Table_PI[[#This Row],[Input 1]],Table_PI[[#This Row],[Input 2]],Table_PI[[#This Row],[Input 3]],Table_PI[[#This Row],[Input 4]],'Customer Information'!$AR$12,1,ROW())>0,MeasureCalc(Table_PI[[#This Row],[Hide:\nFormula Name]],Table_PI[[#This Row],[Quantity]],Table_PI[[#This Row],[List 1]],Table_PI[[#This Row],[List 2]],Table_PI[[#This Row],[List 3]],Table_PI[[#This Row],[Size]],Table_PI[[#This Row],[Input 1]],Table_PI[[#This Row],[Input 2]],Table_PI[[#This Row],[Input 3]],Table_PI[[#This Row],[Input 4]],'Customer Information'!$AR$12,1,ROW()),\"No Rebate\"),\"No Rebate\"),0)","v":0},{"$f":"IF(Table_PI[[#This Row],[Hide:\nFormula Name]]<>\"\",IFERROR(IF(MeasureCalc(Table_PI[[#This Row],[Hide:\nFormula Name]],Table_PI[[#This Row],[Quantity]],Table_PI[[#This Row],[List 1]],Table_PI[[#This Row],[List 2]],Table_PI[[#This Row],[List 3]],Table_PI[[#This Row],[Size]],Table_PI[[#This Row],[Input 1]],Table_PI[[#This Row],[Input 2]],Table_PI[[#This Row],[Input 3]],Table_PI[[#This Row],[Input 4]],'Customer Information'!$AR$12,1,ROW())>0,MeasureCalc(Table_PI[[#This Row],[Hide:\nFormula Name]],Table_PI[[#This Row],[Quantity]],Table_PI[[#This Row],[List 1]],Table_PI[[#This Row],[List 2]],Table_PI[[#This Row],[List 3]],Table_PI[[#This Row],[Size]],Table_PI[[#This Row],[Input 1]],Table_PI[[#This Row],[Input 2]],Table_PI[[#This Row],[Input 3]],Table_PI[[#This Row],[Input 4]],'Customer Information'!$AR$12,2,ROW()),\"No Rebate\"),\"No Rebate\"),0)","v":0},{"$f":"IF(Table_PI[[#This Row],[Hide:\nFormula Name]]<>\"\",IFERROR(IF(MeasureCalc(Table_PI[[#This Row],[Hide:\nFormula Name]],Table_PI[[#This Row],[Quantity]],Table_PI[[#This Row],[List 1]],Table_PI[[#This Row],[List 2]],Table_PI[[#This Row],[List 3]],Table_PI[[#This Row],[Size]],Table_PI[[#This Row],[Input 1]],Table_PI[[#This Row],[Input 2]],Table_PI[[#This Row],[Input 3]],Table_PI[[#This Row],[Input 4]],'Customer Information'!$AR$12,1,ROW())>0,MeasureCalc(Table_PI[[#This Row],[Hide:\nFormula Name]],Table_PI[[#This Row],[Quantity]],Table_PI[[#This Row],[List 1]],Table_PI[[#This Row],[List 2]],Table_PI[[#This Row],[List 3]],Table_PI[[#This Row],[Size]],Table_PI[[#This Row],[Input 1]],Table_PI[[#This Row],[Input 2]],Table_PI[[#This Row],[Input 3]],Table_PI[[#This Row],[Input 4]],'Customer Information'!$AR$12,3,ROW()),\"No Rebate\"),\"No Rebate\"),0)","v":0},{"$f":"IF(Table_PI[[#This Row],[Hide:\nFormula Name]]<>\"\",IFERROR(IF(MeasureCalc(Table_PI[[#This Row],[Hide:\nFormula Name]],Table_PI[[#This Row],[Quantity]],Table_PI[[#This Row],[List 1]],Table_PI[[#This Row],[List 2]],Table_PI[[#This Row],[List 3]],Table_PI[[#This Row],[Size]],Table_PI[[#This Row],[Input 1]],Table_PI[[#This Row],[Input 2]],Table_PI[[#This Row],[Input 3]],Table_PI[[#This Row],[Input 4]],'Customer Information'!$AR$12,1,ROW())>0,MeasureCalc(Table_PI[[#This Row],[Hide:\nFormula Name]],Table_PI[[#This Row],[Quantity]],Table_PI[[#This Row],[List 1]],Table_PI[[#This Row],[List 2]],Table_PI[[#This Row],[List 3]],Table_PI[[#This Row],[Size]],Table_PI[[#This Row],[Input 1]],Table_PI[[#This Row],[Input 2]],Table_PI[[#This Row],[Input 3]],Table_PI[[#This Row],[Input 4]],'Customer Information'!$AR$12,4,ROW()),\"No Rebate\"),\"No Rebate\"),0)","v":0},{"$f":"IF(Table_PI[[#This Row],[Hide:\nFormula Name]]<>\"\",IFERROR(IF(MeasureCalc(Table_PI[[#This Row],[Hide:\nFormula Name]],Table_PI[[#This Row],[Quantity]],Table_PI[[#This Row],[List 1]],Table_PI[[#This Row],[List 2]],Table_PI[[#This Row],[List 3]],Table_PI[[#This Row],[Size]],Table_PI[[#This Row],[Input 1]],Table_PI[[#This Row],[Input 2]],Table_PI[[#This Row],[Input 3]],Table_PI[[#This Row],[Input 4]],'Customer Information'!$AR$12,1,ROW())>0,MeasureCalc(Table_PI[[#This Row],[Hide:\nFormula Name]],Table_PI[[#This Row],[Quantity]],Table_PI[[#This Row],[List 1]],Table_PI[[#This Row],[List 2]],Table_PI[[#This Row],[List 3]],Table_PI[[#This Row],[Size]],Table_PI[[#This Row],[Input 1]],Table_PI[[#This Row],[Input 2]],Table_PI[[#This Row],[Input 3]],Table_PI[[#This Row],[Input 4]],'Customer Information'!$AR$12,5,ROW()),\"No Rebate\"),\"No Rebate\"),0)","v":0},{"$f":"IF(Table_PI[[#This Row],[Hide:\nFormula Name]]<>\"\",IFERROR(IF(MeasureCalc(Table_PI[[#This Row],[Hide:\nFormula Name]],Table_PI[[#This Row],[Quantity]],Table_PI[[#This Row],[List 1]],Table_PI[[#This Row],[List 2]],Table_PI[[#This Row],[List 3]],Table_PI[[#This Row],[Size]],Table_PI[[#This Row],[Input 1]],Table_PI[[#This Row],[Input 2]],Table_PI[[#This Row],[Input 3]],Table_PI[[#This Row],[Input 4]],'Customer Information'!$AR$12,1,ROW())>0,MeasureCalc(Table_PI[[#This Row],[Hide:\nFormula Name]],Table_PI[[#This Row],[Quantity]],Table_PI[[#This Row],[List 1]],Table_PI[[#This Row],[List 2]],Table_PI[[#This Row],[List 3]],Table_PI[[#This Row],[Size]],Table_PI[[#This Row],[Input 1]],Table_PI[[#This Row],[Input 2]],Table_PI[[#This Row],[Input 3]],Table_PI[[#This Row],[Input 4]],'Customer Information'!$AR$12,6,ROW()),\"No Rebate\"),\"No Rebate\"),0)","v":0},{"$f":"IF(Table_PI[[#This Row],[Hide:\nFormula Name]]<>\"\",IFERROR(IF(MeasureCalc(Table_PI[[#This Row],[Hide:\nFormula Name]],Table_PI[[#This Row],[Quantity]],Table_PI[[#This Row],[List 1]],Table_PI[[#This Row],[List 2]],Table_PI[[#This Row],[List 3]],Table_PI[[#This Row],[Size]],Table_PI[[#This Row],[Input 1]],Table_PI[[#This Row],[Input 2]],Table_PI[[#This Row],[Input 3]],Table_PI[[#This Row],[Input 4]],'Customer Information'!$AR$12,1,ROW())>0,MeasureCalc(Table_PI[[#This Row],[Hide:\nFormula Name]],Table_PI[[#This Row],[Quantity]],Table_PI[[#This Row],[List 1]],Table_PI[[#This Row],[List 2]],Table_PI[[#This Row],[List 3]],Table_PI[[#This Row],[Size]],Table_PI[[#This Row],[Input 1]],Table_PI[[#This Row],[Input 2]],Table_PI[[#This Row],[Input 3]],Table_PI[[#This Row],[Input 4]],'Customer Information'!$AR$12,7,ROW()),\"No Rebate\"),\"No Rebate\"),0)","v":0},{"$f":"IF(Table_PI[[#This Row],[Hide:\nFormula Name]]<>\"\",IFERROR(IF(MeasureCalc(Table_PI[[#This Row],[Hide:\nFormula Name]],Table_PI[[#This Row],[Quantity]],Table_PI[[#This Row],[List 1]],Table_PI[[#This Row],[List 2]],Table_PI[[#This Row],[List 3]],Table_PI[[#This Row],[Size]],Table_PI[[#This Row],[Input 1]],Table_PI[[#This Row],[Input 2]],Table_PI[[#This Row],[Input 3]],Table_PI[[#This Row],[Input 4]],'Customer Information'!$AR$12,1,ROW())>0,MeasureCalc(Table_PI[[#This Row],[Hide:\nFormula Name]],Table_PI[[#This Row],[Quantity]],Table_PI[[#This Row],[List 1]],Table_PI[[#This Row],[List 2]],Table_PI[[#This Row],[List 3]],Table_PI[[#This Row],[Size]],Table_PI[[#This Row],[Input 1]],Table_PI[[#This Row],[Input 2]],Table_PI[[#This Row],[Input 3]],Table_PI[[#This Row],[Input 4]],'Customer Information'!$AR$12,8,ROW()),\"No Rebate\"),\"No Rebate\"),0)","v":0},{"$f":"IF(Table_PI[[#This Row],[Hide:\nFormula Name]]<>\"\",IF(AND(Table_PI[[#This Row],[Hide:\nFormula Name]]<>\"\",OR(Table_PI[[#This Row],[Rebate]]>0,Table_PI[[#This Row],[Rebate]]=\"No Rebate\")),TRUE,\"MI: Line Item \" & $A133),\"\")","v":""}]
[{"$f":"IF(Table_PI[[#This Row],[Hide:\nFormula Name]]<>\"\",MAX($A$2:A133)+1,\"\")","v":""},null,null,null,null,null,null,null,null,null,null,null,null,null,null,{"$f":"IFERROR(VLOOKUP(Table_PI[[#This Row],[Measure]],'Equipment Lookups'!$C$3:$D$23,2,FALSE),\"\")","v":""},{"$f":"IF(Table_PI[[#This Row],[Hide:\nFormula Name]]<>\"\",IFERROR(IF(MeasureCalc(Table_PI[[#This Row],[Hide:\nFormula Name]],Table_PI[[#This Row],[Quantity]],Table_PI[[#This Row],[List 1]],Table_PI[[#This Row],[List 2]],Table_PI[[#This Row],[List 3]],Table_PI[[#This Row],[Size]],Table_PI[[#This Row],[Input 1]],Table_PI[[#This Row],[Input 2]],Table_PI[[#This Row],[Input 3]],Table_PI[[#This Row],[Input 4]],'Customer Information'!$AR$12,1,ROW())>0,MeasureCalc(Table_PI[[#This Row],[Hide:\nFormula Name]],Table_PI[[#This Row],[Quantity]],Table_PI[[#This Row],[List 1]],Table_PI[[#This Row],[List 2]],Table_PI[[#This Row],[List 3]],Table_PI[[#This Row],[Size]],Table_PI[[#This Row],[Input 1]],Table_PI[[#This Row],[Input 2]],Table_PI[[#This Row],[Input 3]],Table_PI[[#This Row],[Input 4]],'Customer Information'!$AR$12,1,ROW()),\"No Rebate\"),\"No Rebate\"),0)","v":0},{"$f":"IF(Table_PI[[#This Row],[Hide:\nFormula Name]]<>\"\",IFERROR(IF(MeasureCalc(Table_PI[[#This Row],[Hide:\nFormula Name]],Table_PI[[#This Row],[Quantity]],Table_PI[[#This Row],[List 1]],Table_PI[[#This Row],[List 2]],Table_PI[[#This Row],[List 3]],Table_PI[[#This Row],[Size]],Table_PI[[#This Row],[Input 1]],Table_PI[[#This Row],[Input 2]],Table_PI[[#This Row],[Input 3]],Table_PI[[#This Row],[Input 4]],'Customer Information'!$AR$12,1,ROW())>0,MeasureCalc(Table_PI[[#This Row],[Hide:\nFormula Name]],Table_PI[[#This Row],[Quantity]],Table_PI[[#This Row],[List 1]],Table_PI[[#This Row],[List 2]],Table_PI[[#This Row],[List 3]],Table_PI[[#This Row],[Size]],Table_PI[[#This Row],[Input 1]],Table_PI[[#This Row],[Input 2]],Table_PI[[#This Row],[Input 3]],Table_PI[[#This Row],[Input 4]],'Customer Information'!$AR$12,2,ROW()),\"No Rebate\"),\"No Rebate\"),0)","v":0},{"$f":"IF(Table_PI[[#This Row],[Hide:\nFormula Name]]<>\"\",IFERROR(IF(MeasureCalc(Table_PI[[#This Row],[Hide:\nFormula Name]],Table_PI[[#This Row],[Quantity]],Table_PI[[#This Row],[List 1]],Table_PI[[#This Row],[List 2]],Table_PI[[#This Row],[List 3]],Table_PI[[#This Row],[Size]],Table_PI[[#This Row],[Input 1]],Table_PI[[#This Row],[Input 2]],Table_PI[[#This Row],[Input 3]],Table_PI[[#This Row],[Input 4]],'Customer Information'!$AR$12,1,ROW())>0,MeasureCalc(Table_PI[[#This Row],[Hide:\nFormula Name]],Table_PI[[#This Row],[Quantity]],Table_PI[[#This Row],[List 1]],Table_PI[[#This Row],[List 2]],Table_PI[[#This Row],[List 3]],Table_PI[[#This Row],[Size]],Table_PI[[#This Row],[Input 1]],Table_PI[[#This Row],[Input 2]],Table_PI[[#This Row],[Input 3]],Table_PI[[#This Row],[Input 4]],'Customer Information'!$AR$12,3,ROW()),\"No Rebate\"),\"No Rebate\"),0)","v":0},{"$f":"IF(Table_PI[[#This Row],[Hide:\nFormula Name]]<>\"\",IFERROR(IF(MeasureCalc(Table_PI[[#This Row],[Hide:\nFormula Name]],Table_PI[[#This Row],[Quantity]],Table_PI[[#This Row],[List 1]],Table_PI[[#This Row],[List 2]],Table_PI[[#This Row],[List 3]],Table_PI[[#This Row],[Size]],Table_PI[[#This Row],[Input 1]],Table_PI[[#This Row],[Input 2]],Table_PI[[#This Row],[Input 3]],Table_PI[[#This Row],[Input 4]],'Customer Information'!$AR$12,1,ROW())>0,MeasureCalc(Table_PI[[#This Row],[Hide:\nFormula Name]],Table_PI[[#This Row],[Quantity]],Table_PI[[#This Row],[List 1]],Table_PI[[#This Row],[List 2]],Table_PI[[#This Row],[List 3]],Table_PI[[#This Row],[Size]],Table_PI[[#This Row],[Input 1]],Table_PI[[#This Row],[Input 2]],Table_PI[[#This Row],[Input 3]],Table_PI[[#This Row],[Input 4]],'Customer Information'!$AR$12,4,ROW()),\"No Rebate\"),\"No Rebate\"),0)","v":0},{"$f":"IF(Table_PI[[#This Row],[Hide:\nFormula Name]]<>\"\",IFERROR(IF(MeasureCalc(Table_PI[[#This Row],[Hide:\nFormula Name]],Table_PI[[#This Row],[Quantity]],Table_PI[[#This Row],[List 1]],Table_PI[[#This Row],[List 2]],Table_PI[[#This Row],[List 3]],Table_PI[[#This Row],[Size]],Table_PI[[#This Row],[Input 1]],Table_PI[[#This Row],[Input 2]],Table_PI[[#This Row],[Input 3]],Table_PI[[#This Row],[Input 4]],'Customer Information'!$AR$12,1,ROW())>0,MeasureCalc(Table_PI[[#This Row],[Hide:\nFormula Name]],Table_PI[[#This Row],[Quantity]],Table_PI[[#This Row],[List 1]],Table_PI[[#This Row],[List 2]],Table_PI[[#This Row],[List 3]],Table_PI[[#This Row],[Size]],Table_PI[[#This Row],[Input 1]],Table_PI[[#This Row],[Input 2]],Table_PI[[#This Row],[Input 3]],Table_PI[[#This Row],[Input 4]],'Customer Information'!$AR$12,5,ROW()),\"No Rebate\"),\"No Rebate\"),0)","v":0},{"$f":"IF(Table_PI[[#This Row],[Hide:\nFormula Name]]<>\"\",IFERROR(IF(MeasureCalc(Table_PI[[#This Row],[Hide:\nFormula Name]],Table_PI[[#This Row],[Quantity]],Table_PI[[#This Row],[List 1]],Table_PI[[#This Row],[List 2]],Table_PI[[#This Row],[List 3]],Table_PI[[#This Row],[Size]],Table_PI[[#This Row],[Input 1]],Table_PI[[#This Row],[Input 2]],Table_PI[[#This Row],[Input 3]],Table_PI[[#This Row],[Input 4]],'Customer Information'!$AR$12,1,ROW())>0,MeasureCalc(Table_PI[[#This Row],[Hide:\nFormula Name]],Table_PI[[#This Row],[Quantity]],Table_PI[[#This Row],[List 1]],Table_PI[[#This Row],[List 2]],Table_PI[[#This Row],[List 3]],Table_PI[[#This Row],[Size]],Table_PI[[#This Row],[Input 1]],Table_PI[[#This Row],[Input 2]],Table_PI[[#This Row],[Input 3]],Table_PI[[#This Row],[Input 4]],'Customer Information'!$AR$12,6,ROW()),\"No Rebate\"),\"No Rebate\"),0)","v":0},{"$f":"IF(Table_PI[[#This Row],[Hide:\nFormula Name]]<>\"\",IFERROR(IF(MeasureCalc(Table_PI[[#This Row],[Hide:\nFormula Name]],Table_PI[[#This Row],[Quantity]],Table_PI[[#This Row],[List 1]],Table_PI[[#This Row],[List 2]],Table_PI[[#This Row],[List 3]],Table_PI[[#This Row],[Size]],Table_PI[[#This Row],[Input 1]],Table_PI[[#This Row],[Input 2]],Table_PI[[#This Row],[Input 3]],Table_PI[[#This Row],[Input 4]],'Customer Information'!$AR$12,1,ROW())>0,MeasureCalc(Table_PI[[#This Row],[Hide:\nFormula Name]],Table_PI[[#This Row],[Quantity]],Table_PI[[#This Row],[List 1]],Table_PI[[#This Row],[List 2]],Table_PI[[#This Row],[List 3]],Table_PI[[#This Row],[Size]],Table_PI[[#This Row],[Input 1]],Table_PI[[#This Row],[Input 2]],Table_PI[[#This Row],[Input 3]],Table_PI[[#This Row],[Input 4]],'Customer Information'!$AR$12,7,ROW()),\"No Rebate\"),\"No Rebate\"),0)","v":0},{"$f":"IF(Table_PI[[#This Row],[Hide:\nFormula Name]]<>\"\",IFERROR(IF(MeasureCalc(Table_PI[[#This Row],[Hide:\nFormula Name]],Table_PI[[#This Row],[Quantity]],Table_PI[[#This Row],[List 1]],Table_PI[[#This Row],[List 2]],Table_PI[[#This Row],[List 3]],Table_PI[[#This Row],[Size]],Table_PI[[#This Row],[Input 1]],Table_PI[[#This Row],[Input 2]],Table_PI[[#This Row],[Input 3]],Table_PI[[#This Row],[Input 4]],'Customer Information'!$AR$12,1,ROW())>0,MeasureCalc(Table_PI[[#This Row],[Hide:\nFormula Name]],Table_PI[[#This Row],[Quantity]],Table_PI[[#This Row],[List 1]],Table_PI[[#This Row],[List 2]],Table_PI[[#This Row],[List 3]],Table_PI[[#This Row],[Size]],Table_PI[[#This Row],[Input 1]],Table_PI[[#This Row],[Input 2]],Table_PI[[#This Row],[Input 3]],Table_PI[[#This Row],[Input 4]],'Customer Information'!$AR$12,8,ROW()),\"No Rebate\"),\"No Rebate\"),0)","v":0},{"$f":"IF(Table_PI[[#This Row],[Hide:\nFormula Name]]<>\"\",IF(AND(Table_PI[[#This Row],[Hide:\nFormula Name]]<>\"\",OR(Table_PI[[#This Row],[Rebate]]>0,Table_PI[[#This Row],[Rebate]]=\"No Rebate\")),TRUE,\"MI: Line Item \" & $A134),\"\")","v":""}]
[{"$f":"IF(Table_PI[[#This Row],[Hide:\nFormula Name]]<>\"\",MAX($A$2:A134)+1,\"\")","v":""},null,null,null,null,null,null,null,null,null,null,null,null,null,null,{"$f":"IFERROR(VLOOKUP(Table_PI[[#This Row],[Measure]],'Equipment Lookups'!$C$3:$D$23,2,FALSE),\"\")","v":""},{"$f":"IF(Table_PI[[#This Row],[Hide:\nFormula Name]]<>\"\",IFERROR(IF(MeasureCalc(Table_PI[[#This Row],[Hide:\nFormula Name]],Table_PI[[#This Row],[Quantity]],Table_PI[[#This Row],[List 1]],Table_PI[[#This Row],[List 2]],Table_PI[[#This Row],[List 3]],Table_PI[[#This Row],[Size]],Table_PI[[#This Row],[Input 1]],Table_PI[[#This Row],[Input 2]],Table_PI[[#This Row],[Input 3]],Table_PI[[#This Row],[Input 4]],'Customer Information'!$AR$12,1,ROW())>0,MeasureCalc(Table_PI[[#This Row],[Hide:\nFormula Name]],Table_PI[[#This Row],[Quantity]],Table_PI[[#This Row],[List 1]],Table_PI[[#This Row],[List 2]],Table_PI[[#This Row],[List 3]],Table_PI[[#This Row],[Size]],Table_PI[[#This Row],[Input 1]],Table_PI[[#This Row],[Input 2]],Table_PI[[#This Row],[Input 3]],Table_PI[[#This Row],[Input 4]],'Customer Information'!$AR$12,1,ROW()),\"No Rebate\"),\"No Rebate\"),0)","v":0},{"$f":"IF(Table_PI[[#This Row],[Hide:\nFormula Name]]<>\"\",IFERROR(IF(MeasureCalc(Table_PI[[#This Row],[Hide:\nFormula Name]],Table_PI[[#This Row],[Quantity]],Table_PI[[#This Row],[List 1]],Table_PI[[#This Row],[List 2]],Table_PI[[#This Row],[List 3]],Table_PI[[#This Row],[Size]],Table_PI[[#This Row],[Input 1]],Table_PI[[#This Row],[Input 2]],Table_PI[[#This Row],[Input 3]],Table_PI[[#This Row],[Input 4]],'Customer Information'!$AR$12,1,ROW())>0,MeasureCalc(Table_PI[[#This Row],[Hide:\nFormula Name]],Table_PI[[#This Row],[Quantity]],Table_PI[[#This Row],[List 1]],Table_PI[[#This Row],[List 2]],Table_PI[[#This Row],[List 3]],Table_PI[[#This Row],[Size]],Table_PI[[#This Row],[Input 1]],Table_PI[[#This Row],[Input 2]],Table_PI[[#This Row],[Input 3]],Table_PI[[#This Row],[Input 4]],'Customer Information'!$AR$12,2,ROW()),\"No Rebate\"),\"No Rebate\"),0)","v":0},{"$f":"IF(Table_PI[[#This Row],[Hide:\nFormula Name]]<>\"\",IFERROR(IF(MeasureCalc(Table_PI[[#This Row],[Hide:\nFormula Name]],Table_PI[[#This Row],[Quantity]],Table_PI[[#This Row],[List 1]],Table_PI[[#This Row],[List 2]],Table_PI[[#This Row],[List 3]],Table_PI[[#This Row],[Size]],Table_PI[[#This Row],[Input 1]],Table_PI[[#This Row],[Input 2]],Table_PI[[#This Row],[Input 3]],Table_PI[[#This Row],[Input 4]],'Customer Information'!$AR$12,1,ROW())>0,MeasureCalc(Table_PI[[#This Row],[Hide:\nFormula Name]],Table_PI[[#This Row],[Quantity]],Table_PI[[#This Row],[List 1]],Table_PI[[#This Row],[List 2]],Table_PI[[#This Row],[List 3]],Table_PI[[#This Row],[Size]],Table_PI[[#This Row],[Input 1]],Table_PI[[#This Row],[Input 2]],Table_PI[[#This Row],[Input 3]],Table_PI[[#This Row],[Input 4]],'Customer Information'!$AR$12,3,ROW()),\"No Rebate\"),\"No Rebate\"),0)","v":0},{"$f":"IF(Table_PI[[#This Row],[Hide:\nFormula Name]]<>\"\",IFERROR(IF(MeasureCalc(Table_PI[[#This Row],[Hide:\nFormula Name]],Table_PI[[#This Row],[Quantity]],Table_PI[[#This Row],[List 1]],Table_PI[[#This Row],[List 2]],Table_PI[[#This Row],[List 3]],Table_PI[[#This Row],[Size]],Table_PI[[#This Row],[Input 1]],Table_PI[[#This Row],[Input 2]],Table_PI[[#This Row],[Input 3]],Table_PI[[#This Row],[Input 4]],'Customer Information'!$AR$12,1,ROW())>0,MeasureCalc(Table_PI[[#This Row],[Hide:\nFormula Name]],Table_PI[[#This Row],[Quantity]],Table_PI[[#This Row],[List 1]],Table_PI[[#This Row],[List 2]],Table_PI[[#This Row],[List 3]],Table_PI[[#This Row],[Size]],Table_PI[[#This Row],[Input 1]],Table_PI[[#This Row],[Input 2]],Table_PI[[#This Row],[Input 3]],Table_PI[[#This Row],[Input 4]],'Customer Information'!$AR$12,4,ROW()),\"No Rebate\"),\"No Rebate\"),0)","v":0},{"$f":"IF(Table_PI[[#This Row],[Hide:\nFormula Name]]<>\"\",IFERROR(IF(MeasureCalc(Table_PI[[#This Row],[Hide:\nFormula Name]],Table_PI[[#This Row],[Quantity]],Table_PI[[#This Row],[List 1]],Table_PI[[#This Row],[List 2]],Table_PI[[#This Row],[List 3]],Table_PI[[#This Row],[Size]],Table_PI[[#This Row],[Input 1]],Table_PI[[#This Row],[Input 2]],Table_PI[[#This Row],[Input 3]],Table_PI[[#This Row],[Input 4]],'Customer Information'!$AR$12,1,ROW())>0,MeasureCalc(Table_PI[[#This Row],[Hide:\nFormula Name]],Table_PI[[#This Row],[Quantity]],Table_PI[[#This Row],[List 1]],Table_PI[[#This Row],[List 2]],Table_PI[[#This Row],[List 3]],Table_PI[[#This Row],[Size]],Table_PI[[#This Row],[Input 1]],Table_PI[[#This Row],[Input 2]],Table_PI[[#This Row],[Input 3]],Table_PI[[#This Row],[Input 4]],'Customer Information'!$AR$12,5,ROW()),\"No Rebate\"),\"No Rebate\"),0)","v":0},{"$f":"IF(Table_PI[[#This Row],[Hide:\nFormula Name]]<>\"\",IFERROR(IF(MeasureCalc(Table_PI[[#This Row],[Hide:\nFormula Name]],Table_PI[[#This Row],[Quantity]],Table_PI[[#This Row],[List 1]],Table_PI[[#This Row],[List 2]],Table_PI[[#This Row],[List 3]],Table_PI[[#This Row],[Size]],Table_PI[[#This Row],[Input 1]],Table_PI[[#This Row],[Input 2]],Table_PI[[#This Row],[Input 3]],Table_PI[[#This Row],[Input 4]],'Customer Information'!$AR$12,1,ROW())>0,MeasureCalc(Table_PI[[#This Row],[Hide:\nFormula Name]],Table_PI[[#This Row],[Quantity]],Table_PI[[#This Row],[List 1]],Table_PI[[#This Row],[List 2]],Table_PI[[#This Row],[List 3]],Table_PI[[#This Row],[Size]],Table_PI[[#This Row],[Input 1]],Table_PI[[#This Row],[Input 2]],Table_PI[[#This Row],[Input 3]],Table_PI[[#This Row],[Input 4]],'Customer Information'!$AR$12,6,ROW()),\"No Rebate\"),\"No Rebate\"),0)","v":0},{"$f":"IF(Table_PI[[#This Row],[Hide:\nFormula Name]]<>\"\",IFERROR(IF(MeasureCalc(Table_PI[[#This Row],[Hide:\nFormula Name]],Table_PI[[#This Row],[Quantity]],Table_PI[[#This Row],[List 1]],Table_PI[[#This Row],[List 2]],Table_PI[[#This Row],[List 3]],Table_PI[[#This Row],[Size]],Table_PI[[#This Row],[Input 1]],Table_PI[[#This Row],[Input 2]],Table_PI[[#This Row],[Input 3]],Table_PI[[#This Row],[Input 4]],'Customer Information'!$AR$12,1,ROW())>0,MeasureCalc(Table_PI[[#This Row],[Hide:\nFormula Name]],Table_PI[[#This Row],[Quantity]],Table_PI[[#This Row],[List 1]],Table_PI[[#This Row],[List 2]],Table_PI[[#This Row],[List 3]],Table_PI[[#This Row],[Size]],Table_PI[[#This Row],[Input 1]],Table_PI[[#This Row],[Input 2]],Table_PI[[#This Row],[Input 3]],Table_PI[[#This Row],[Input 4]],'Customer Information'!$AR$12,7,ROW()),\"No Rebate\"),\"No Rebate\"),0)","v":0},{"$f":"IF(Table_PI[[#This Row],[Hide:\nFormula Name]]<>\"\",IFERROR(IF(MeasureCalc(Table_PI[[#This Row],[Hide:\nFormula Name]],Table_PI[[#This Row],[Quantity]],Table_PI[[#This Row],[List 1]],Table_PI[[#This Row],[List 2]],Table_PI[[#This Row],[List 3]],Table_PI[[#This Row],[Size]],Table_PI[[#This Row],[Input 1]],Table_PI[[#This Row],[Input 2]],Table_PI[[#This Row],[Input 3]],Table_PI[[#This Row],[Input 4]],'Customer Information'!$AR$12,1,ROW())>0,MeasureCalc(Table_PI[[#This Row],[Hide:\nFormula Name]],Table_PI[[#This Row],[Quantity]],Table_PI[[#This Row],[List 1]],Table_PI[[#This Row],[List 2]],Table_PI[[#This Row],[List 3]],Table_PI[[#This Row],[Size]],Table_PI[[#This Row],[Input 1]],Table_PI[[#This Row],[Input 2]],Table_PI[[#This Row],[Input 3]],Table_PI[[#This Row],[Input 4]],'Customer Information'!$AR$12,8,ROW()),\"No Rebate\"),\"No Rebate\"),0)","v":0},{"$f":"IF(Table_PI[[#This Row],[Hide:\nFormula Name]]<>\"\",IF(AND(Table_PI[[#This Row],[Hide:\nFormula Name]]<>\"\",OR(Table_PI[[#This Row],[Rebate]]>0,Table_PI[[#This Row],[Rebate]]=\"No Rebate\")),TRUE,\"MI: Line Item \" & $A135),\"\")","v":""}]
[{"$f":"IF(Table_PI[[#This Row],[Hide:\nFormula Name]]<>\"\",MAX($A$2:A135)+1,\"\")","v":""},null,null,null,null,null,null,null,null,null,null,null,null,null,null,{"$f":"IFERROR(VLOOKUP(Table_PI[[#This Row],[Measure]],'Equipment Lookups'!$C$3:$D$23,2,FALSE),\"\")","v":""},{"$f":"IF(Table_PI[[#This Row],[Hide:\nFormula Name]]<>\"\",IFERROR(IF(MeasureCalc(Table_PI[[#This Row],[Hide:\nFormula Name]],Table_PI[[#This Row],[Quantity]],Table_PI[[#This Row],[List 1]],Table_PI[[#This Row],[List 2]],Table_PI[[#This Row],[List 3]],Table_PI[[#This Row],[Size]],Table_PI[[#This Row],[Input 1]],Table_PI[[#This Row],[Input 2]],Table_PI[[#This Row],[Input 3]],Table_PI[[#This Row],[Input 4]],'Customer Information'!$AR$12,1,ROW())>0,MeasureCalc(Table_PI[[#This Row],[Hide:\nFormula Name]],Table_PI[[#This Row],[Quantity]],Table_PI[[#This Row],[List 1]],Table_PI[[#This Row],[List 2]],Table_PI[[#This Row],[List 3]],Table_PI[[#This Row],[Size]],Table_PI[[#This Row],[Input 1]],Table_PI[[#This Row],[Input 2]],Table_PI[[#This Row],[Input 3]],Table_PI[[#This Row],[Input 4]],'Customer Information'!$AR$12,1,ROW()),\"No Rebate\"),\"No Rebate\"),0)","v":0},{"$f":"IF(Table_PI[[#This Row],[Hide:\nFormula Name]]<>\"\",IFERROR(IF(MeasureCalc(Table_PI[[#This Row],[Hide:\nFormula Name]],Table_PI[[#This Row],[Quantity]],Table_PI[[#This Row],[List 1]],Table_PI[[#This Row],[List 2]],Table_PI[[#This Row],[List 3]],Table_PI[[#This Row],[Size]],Table_PI[[#This Row],[Input 1]],Table_PI[[#This Row],[Input 2]],Table_PI[[#This Row],[Input 3]],Table_PI[[#This Row],[Input 4]],'Customer Information'!$AR$12,1,ROW())>0,MeasureCalc(Table_PI[[#This Row],[Hide:\nFormula Name]],Table_PI[[#This Row],[Quantity]],Table_PI[[#This Row],[List 1]],Table_PI[[#This Row],[List 2]],Table_PI[[#This Row],[List 3]],Table_PI[[#This Row],[Size]],Table_PI[[#This Row],[Input 1]],Table_PI[[#This Row],[Input 2]],Table_PI[[#This Row],[Input 3]],Table_PI[[#This Row],[Input 4]],'Customer Information'!$AR$12,2,ROW()),\"No Rebate\"),\"No Rebate\"),0)","v":0},{"$f":"IF(Table_PI[[#This Row],[Hide:\nFormula Name]]<>\"\",IFERROR(IF(MeasureCalc(Table_PI[[#This Row],[Hide:\nFormula Name]],Table_PI[[#This Row],[Quantity]],Table_PI[[#This Row],[List 1]],Table_PI[[#This Row],[List 2]],Table_PI[[#This Row],[List 3]],Table_PI[[#This Row],[Size]],Table_PI[[#This Row],[Input 1]],Table_PI[[#This Row],[Input 2]],Table_PI[[#This Row],[Input 3]],Table_PI[[#This Row],[Input 4]],'Customer Information'!$AR$12,1,ROW())>0,MeasureCalc(Table_PI[[#This Row],[Hide:\nFormula Name]],Table_PI[[#This Row],[Quantity]],Table_PI[[#This Row],[List 1]],Table_PI[[#This Row],[List 2]],Table_PI[[#This Row],[List 3]],Table_PI[[#This Row],[Size]],Table_PI[[#This Row],[Input 1]],Table_PI[[#This Row],[Input 2]],Table_PI[[#This Row],[Input 3]],Table_PI[[#This Row],[Input 4]],'Customer Information'!$AR$12,3,ROW()),\"No Rebate\"),\"No Rebate\"),0)","v":0},{"$f":"IF(Table_PI[[#This Row],[Hide:\nFormula Name]]<>\"\",IFERROR(IF(MeasureCalc(Table_PI[[#This Row],[Hide:\nFormula Name]],Table_PI[[#This Row],[Quantity]],Table_PI[[#This Row],[List 1]],Table_PI[[#This Row],[List 2]],Table_PI[[#This Row],[List 3]],Table_PI[[#This Row],[Size]],Table_PI[[#This Row],[Input 1]],Table_PI[[#This Row],[Input 2]],Table_PI[[#This Row],[Input 3]],Table_PI[[#This Row],[Input 4]],'Customer Information'!$AR$12,1,ROW())>0,MeasureCalc(Table_PI[[#This Row],[Hide:\nFormula Name]],Table_PI[[#This Row],[Quantity]],Table_PI[[#This Row],[List 1]],Table_PI[[#This Row],[List 2]],Table_PI[[#This Row],[List 3]],Table_PI[[#This Row],[Size]],Table_PI[[#This Row],[Input 1]],Table_PI[[#This Row],[Input 2]],Table_PI[[#This Row],[Input 3]],Table_PI[[#This Row],[Input 4]],'Customer Information'!$AR$12,4,ROW()),\"No Rebate\"),\"No Rebate\"),0)","v":0},{"$f":"IF(Table_PI[[#This Row],[Hide:\nFormula Name]]<>\"\",IFERROR(IF(MeasureCalc(Table_PI[[#This Row],[Hide:\nFormula Name]],Table_PI[[#This Row],[Quantity]],Table_PI[[#This Row],[List 1]],Table_PI[[#This Row],[List 2]],Table_PI[[#This Row],[List 3]],Table_PI[[#This Row],[Size]],Table_PI[[#This Row],[Input 1]],Table_PI[[#This Row],[Input 2]],Table_PI[[#This Row],[Input 3]],Table_PI[[#This Row],[Input 4]],'Customer Information'!$AR$12,1,ROW())>0,MeasureCalc(Table_PI[[#This Row],[Hide:\nFormula Name]],Table_PI[[#This Row],[Quantity]],Table_PI[[#This Row],[List 1]],Table_PI[[#This Row],[List 2]],Table_PI[[#This Row],[List 3]],Table_PI[[#This Row],[Size]],Table_PI[[#This Row],[Input 1]],Table_PI[[#This Row],[Input 2]],Table_PI[[#This Row],[Input 3]],Table_PI[[#This Row],[Input 4]],'Customer Information'!$AR$12,5,ROW()),\"No Rebate\"),\"No Rebate\"),0)","v":0},{"$f":"IF(Table_PI[[#This Row],[Hide:\nFormula Name]]<>\"\",IFERROR(IF(MeasureCalc(Table_PI[[#This Row],[Hide:\nFormula Name]],Table_PI[[#This Row],[Quantity]],Table_PI[[#This Row],[List 1]],Table_PI[[#This Row],[List 2]],Table_PI[[#This Row],[List 3]],Table_PI[[#This Row],[Size]],Table_PI[[#This Row],[Input 1]],Table_PI[[#This Row],[Input 2]],Table_PI[[#This Row],[Input 3]],Table_PI[[#This Row],[Input 4]],'Customer Information'!$AR$12,1,ROW())>0,MeasureCalc(Table_PI[[#This Row],[Hide:\nFormula Name]],Table_PI[[#This Row],[Quantity]],Table_PI[[#This Row],[List 1]],Table_PI[[#This Row],[List 2]],Table_PI[[#This Row],[List 3]],Table_PI[[#This Row],[Size]],Table_PI[[#This Row],[Input 1]],Table_PI[[#This Row],[Input 2]],Table_PI[[#This Row],[Input 3]],Table_PI[[#This Row],[Input 4]],'Customer Information'!$AR$12,6,ROW()),\"No Rebate\"),\"No Rebate\"),0)","v":0},{"$f":"IF(Table_PI[[#This Row],[Hide:\nFormula Name]]<>\"\",IFERROR(IF(MeasureCalc(Table_PI[[#This Row],[Hide:\nFormula Name]],Table_PI[[#This Row],[Quantity]],Table_PI[[#This Row],[List 1]],Table_PI[[#This Row],[List 2]],Table_PI[[#This Row],[List 3]],Table_PI[[#This Row],[Size]],Table_PI[[#This Row],[Input 1]],Table_PI[[#This Row],[Input 2]],Table_PI[[#This Row],[Input 3]],Table_PI[[#This Row],[Input 4]],'Customer Information'!$AR$12,1,ROW())>0,MeasureCalc(Table_PI[[#This Row],[Hide:\nFormula Name]],Table_PI[[#This Row],[Quantity]],Table_PI[[#This Row],[List 1]],Table_PI[[#This Row],[List 2]],Table_PI[[#This Row],[List 3]],Table_PI[[#This Row],[Size]],Table_PI[[#This Row],[Input 1]],Table_PI[[#This Row],[Input 2]],Table_PI[[#This Row],[Input 3]],Table_PI[[#This Row],[Input 4]],'Customer Information'!$AR$12,7,ROW()),\"No Rebate\"),\"No Rebate\"),0)","v":0},{"$f":"IF(Table_PI[[#This Row],[Hide:\nFormula Name]]<>\"\",IFERROR(IF(MeasureCalc(Table_PI[[#This Row],[Hide:\nFormula Name]],Table_PI[[#This Row],[Quantity]],Table_PI[[#This Row],[List 1]],Table_PI[[#This Row],[List 2]],Table_PI[[#This Row],[List 3]],Table_PI[[#This Row],[Size]],Table_PI[[#This Row],[Input 1]],Table_PI[[#This Row],[Input 2]],Table_PI[[#This Row],[Input 3]],Table_PI[[#This Row],[Input 4]],'Customer Information'!$AR$12,1,ROW())>0,MeasureCalc(Table_PI[[#This Row],[Hide:\nFormula Name]],Table_PI[[#This Row],[Quantity]],Table_PI[[#This Row],[List 1]],Table_PI[[#This Row],[List 2]],Table_PI[[#This Row],[List 3]],Table_PI[[#This Row],[Size]],Table_PI[[#This Row],[Input 1]],Table_PI[[#This Row],[Input 2]],Table_PI[[#This Row],[Input 3]],Table_PI[[#This Row],[Input 4]],'Customer Information'!$AR$12,8,ROW()),\"No Rebate\"),\"No Rebate\"),0)","v":0},{"$f":"IF(Table_PI[[#This Row],[Hide:\nFormula Name]]<>\"\",IF(AND(Table_PI[[#This Row],[Hide:\nFormula Name]]<>\"\",OR(Table_PI[[#This Row],[Rebate]]>0,Table_PI[[#This Row],[Rebate]]=\"No Rebate\")),TRUE,\"MI: Line Item \" & $A136),\"\")","v":""}]
[{"$f":"IF(Table_PI[[#This Row],[Hide:\nFormula Name]]<>\"\",MAX($A$2:A136)+1,\"\")","v":""},null,null,null,null,null,null,null,null,null,null,null,null,null,null,{"$f":"IFERROR(VLOOKUP(Table_PI[[#This Row],[Measure]],'Equipment Lookups'!$C$3:$D$23,2,FALSE),\"\")","v":""},{"$f":"IF(Table_PI[[#This Row],[Hide:\nFormula Name]]<>\"\",IFERROR(IF(MeasureCalc(Table_PI[[#This Row],[Hide:\nFormula Name]],Table_PI[[#This Row],[Quantity]],Table_PI[[#This Row],[List 1]],Table_PI[[#This Row],[List 2]],Table_PI[[#This Row],[List 3]],Table_PI[[#This Row],[Size]],Table_PI[[#This Row],[Input 1]],Table_PI[[#This Row],[Input 2]],Table_PI[[#This Row],[Input 3]],Table_PI[[#This Row],[Input 4]],'Customer Information'!$AR$12,1,ROW())>0,MeasureCalc(Table_PI[[#This Row],[Hide:\nFormula Name]],Table_PI[[#This Row],[Quantity]],Table_PI[[#This Row],[List 1]],Table_PI[[#This Row],[List 2]],Table_PI[[#This Row],[List 3]],Table_PI[[#This Row],[Size]],Table_PI[[#This Row],[Input 1]],Table_PI[[#This Row],[Input 2]],Table_PI[[#This Row],[Input 3]],Table_PI[[#This Row],[Input 4]],'Customer Information'!$AR$12,1,ROW()),\"No Rebate\"),\"No Rebate\"),0)","v":0},{"$f":"IF(Table_PI[[#This Row],[Hide:\nFormula Name]]<>\"\",IFERROR(IF(MeasureCalc(Table_PI[[#This Row],[Hide:\nFormula Name]],Table_PI[[#This Row],[Quantity]],Table_PI[[#This Row],[List 1]],Table_PI[[#This Row],[List 2]],Table_PI[[#This Row],[List 3]],Table_PI[[#This Row],[Size]],Table_PI[[#This Row],[Input 1]],Table_PI[[#This Row],[Input 2]],Table_PI[[#This Row],[Input 3]],Table_PI[[#This Row],[Input 4]],'Customer Information'!$AR$12,1,ROW())>0,MeasureCalc(Table_PI[[#This Row],[Hide:\nFormula Name]],Table_PI[[#This Row],[Quantity]],Table_PI[[#This Row],[List 1]],Table_PI[[#This Row],[List 2]],Table_PI[[#This Row],[List 3]],Table_PI[[#This Row],[Size]],Table_PI[[#This Row],[Input 1]],Table_PI[[#This Row],[Input 2]],Table_PI[[#This Row],[Input 3]],Table_PI[[#This Row],[Input 4]],'Customer Information'!$AR$12,2,ROW()),\"No Rebate\"),\"No Rebate\"),0)","v":0},{"$f":"IF(Table_PI[[#This Row],[Hide:\nFormula Name]]<>\"\",IFERROR(IF(MeasureCalc(Table_PI[[#This Row],[Hide:\nFormula Name]],Table_PI[[#This Row],[Quantity]],Table_PI[[#This Row],[List 1]],Table_PI[[#This Row],[List 2]],Table_PI[[#This Row],[List 3]],Table_PI[[#This Row],[Size]],Table_PI[[#This Row],[Input 1]],Table_PI[[#This Row],[Input 2]],Table_PI[[#This Row],[Input 3]],Table_PI[[#This Row],[Input 4]],'Customer Information'!$AR$12,1,ROW())>0,MeasureCalc(Table_PI[[#This Row],[Hide:\nFormula Name]],Table_PI[[#This Row],[Quantity]],Table_PI[[#This Row],[List 1]],Table_PI[[#This Row],[List 2]],Table_PI[[#This Row],[List 3]],Table_PI[[#This Row],[Size]],Table_PI[[#This Row],[Input 1]],Table_PI[[#This Row],[Input 2]],Table_PI[[#This Row],[Input 3]],Table_PI[[#This Row],[Input 4]],'Customer Information'!$AR$12,3,ROW()),\"No Rebate\"),\"No Rebate\"),0)","v":0},{"$f":"IF(Table_PI[[#This Row],[Hide:\nFormula Name]]<>\"\",IFERROR(IF(MeasureCalc(Table_PI[[#This Row],[Hide:\nFormula Name]],Table_PI[[#This Row],[Quantity]],Table_PI[[#This Row],[List 1]],Table_PI[[#This Row],[List 2]],Table_PI[[#This Row],[List 3]],Table_PI[[#This Row],[Size]],Table_PI[[#This Row],[Input 1]],Table_PI[[#This Row],[Input 2]],Table_PI[[#This Row],[Input 3]],Table_PI[[#This Row],[Input 4]],'Customer Information'!$AR$12,1,ROW())>0,MeasureCalc(Table_PI[[#This Row],[Hide:\nFormula Name]],Table_PI[[#This Row],[Quantity]],Table_PI[[#This Row],[List 1]],Table_PI[[#This Row],[List 2]],Table_PI[[#This Row],[List 3]],Table_PI[[#This Row],[Size]],Table_PI[[#This Row],[Input 1]],Table_PI[[#This Row],[Input 2]],Table_PI[[#This Row],[Input 3]],Table_PI[[#This Row],[Input 4]],'Customer Information'!$AR$12,4,ROW()),\"No Rebate\"),\"No Rebate\"),0)","v":0},{"$f":"IF(Table_PI[[#This Row],[Hide:\nFormula Name]]<>\"\",IFERROR(IF(MeasureCalc(Table_PI[[#This Row],[Hide:\nFormula Name]],Table_PI[[#This Row],[Quantity]],Table_PI[[#This Row],[List 1]],Table_PI[[#This Row],[List 2]],Table_PI[[#This Row],[List 3]],Table_PI[[#This Row],[Size]],Table_PI[[#This Row],[Input 1]],Table_PI[[#This Row],[Input 2]],Table_PI[[#This Row],[Input 3]],Table_PI[[#This Row],[Input 4]],'Customer Information'!$AR$12,1,ROW())>0,MeasureCalc(Table_PI[[#This Row],[Hide:\nFormula Name]],Table_PI[[#This Row],[Quantity]],Table_PI[[#This Row],[List 1]],Table_PI[[#This Row],[List 2]],Table_PI[[#This Row],[List 3]],Table_PI[[#This Row],[Size]],Table_PI[[#This Row],[Input 1]],Table_PI[[#This Row],[Input 2]],Table_PI[[#This Row],[Input 3]],Table_PI[[#This Row],[Input 4]],'Customer Information'!$AR$12,5,ROW()),\"No Rebate\"),\"No Rebate\"),0)","v":0},{"$f":"IF(Table_PI[[#This Row],[Hide:\nFormula Name]]<>\"\",IFERROR(IF(MeasureCalc(Table_PI[[#This Row],[Hide:\nFormula Name]],Table_PI[[#This Row],[Quantity]],Table_PI[[#This Row],[List 1]],Table_PI[[#This Row],[List 2]],Table_PI[[#This Row],[List 3]],Table_PI[[#This Row],[Size]],Table_PI[[#This Row],[Input 1]],Table_PI[[#This Row],[Input 2]],Table_PI[[#This Row],[Input 3]],Table_PI[[#This Row],[Input 4]],'Customer Information'!$AR$12,1,ROW())>0,MeasureCalc(Table_PI[[#This Row],[Hide:\nFormula Name]],Table_PI[[#This Row],[Quantity]],Table_PI[[#This Row],[List 1]],Table_PI[[#This Row],[List 2]],Table_PI[[#This Row],[List 3]],Table_PI[[#This Row],[Size]],Table_PI[[#This Row],[Input 1]],Table_PI[[#This Row],[Input 2]],Table_PI[[#This Row],[Input 3]],Table_PI[[#This Row],[Input 4]],'Customer Information'!$AR$12,6,ROW()),\"No Rebate\"),\"No Rebate\"),0)","v":0},{"$f":"IF(Table_PI[[#This Row],[Hide:\nFormula Name]]<>\"\",IFERROR(IF(MeasureCalc(Table_PI[[#This Row],[Hide:\nFormula Name]],Table_PI[[#This Row],[Quantity]],Table_PI[[#This Row],[List 1]],Table_PI[[#This Row],[List 2]],Table_PI[[#This Row],[List 3]],Table_PI[[#This Row],[Size]],Table_PI[[#This Row],[Input 1]],Table_PI[[#This Row],[Input 2]],Table_PI[[#This Row],[Input 3]],Table_PI[[#This Row],[Input 4]],'Customer Information'!$AR$12,1,ROW())>0,MeasureCalc(Table_PI[[#This Row],[Hide:\nFormula Name]],Table_PI[[#This Row],[Quantity]],Table_PI[[#This Row],[List 1]],Table_PI[[#This Row],[List 2]],Table_PI[[#This Row],[List 3]],Table_PI[[#This Row],[Size]],Table_PI[[#This Row],[Input 1]],Table_PI[[#This Row],[Input 2]],Table_PI[[#This Row],[Input 3]],Table_PI[[#This Row],[Input 4]],'Customer Information'!$AR$12,7,ROW()),\"No Rebate\"),\"No Rebate\"),0)","v":0},{"$f":"IF(Table_PI[[#This Row],[Hide:\nFormula Name]]<>\"\",IFERROR(IF(MeasureCalc(Table_PI[[#This Row],[Hide:\nFormula Name]],Table_PI[[#This Row],[Quantity]],Table_PI[[#This Row],[List 1]],Table_PI[[#This Row],[List 2]],Table_PI[[#This Row],[List 3]],Table_PI[[#This Row],[Size]],Table_PI[[#This Row],[Input 1]],Table_PI[[#This Row],[Input 2]],Table_PI[[#This Row],[Input 3]],Table_PI[[#This Row],[Input 4]],'Customer Information'!$AR$12,1,ROW())>0,MeasureCalc(Table_PI[[#This Row],[Hide:\nFormula Name]],Table_PI[[#This Row],[Quantity]],Table_PI[[#This Row],[List 1]],Table_PI[[#This Row],[List 2]],Table_PI[[#This Row],[List 3]],Table_PI[[#This Row],[Size]],Table_PI[[#This Row],[Input 1]],Table_PI[[#This Row],[Input 2]],Table_PI[[#This Row],[Input 3]],Table_PI[[#This Row],[Input 4]],'Customer Information'!$AR$12,8,ROW()),\"No Rebate\"),\"No Rebate\"),0)","v":0},{"$f":"IF(Table_PI[[#This Row],[Hide:\nFormula Name]]<>\"\",IF(AND(Table_PI[[#This Row],[Hide:\nFormula Name]]<>\"\",OR(Table_PI[[#This Row],[Rebate]]>0,Table_PI[[#This Row],[Rebate]]=\"No Rebate\")),TRUE,\"MI: Line Item \" & $A137),\"\")","v":""}]
[{"$f":"IF(Table_PI[[#This Row],[Hide:\nFormula Name]]<>\"\",MAX($A$2:A137)+1,\"\")","v":""},null,null,null,null,null,null,null,null,null,null,null,null,null,null,{"$f":"IFERROR(VLOOKUP(Table_PI[[#This Row],[Measure]],'Equipment Lookups'!$C$3:$D$23,2,FALSE),\"\")","v":""},{"$f":"IF(Table_PI[[#This Row],[Hide:\nFormula Name]]<>\"\",IFERROR(IF(MeasureCalc(Table_PI[[#This Row],[Hide:\nFormula Name]],Table_PI[[#This Row],[Quantity]],Table_PI[[#This Row],[List 1]],Table_PI[[#This Row],[List 2]],Table_PI[[#This Row],[List 3]],Table_PI[[#This Row],[Size]],Table_PI[[#This Row],[Input 1]],Table_PI[[#This Row],[Input 2]],Table_PI[[#This Row],[Input 3]],Table_PI[[#This Row],[Input 4]],'Customer Information'!$AR$12,1,ROW())>0,MeasureCalc(Table_PI[[#This Row],[Hide:\nFormula Name]],Table_PI[[#This Row],[Quantity]],Table_PI[[#This Row],[List 1]],Table_PI[[#This Row],[List 2]],Table_PI[[#This Row],[List 3]],Table_PI[[#This Row],[Size]],Table_PI[[#This Row],[Input 1]],Table_PI[[#This Row],[Input 2]],Table_PI[[#This Row],[Input 3]],Table_PI[[#This Row],[Input 4]],'Customer Information'!$AR$12,1,ROW()),\"No Rebate\"),\"No Rebate\"),0)","v":0},{"$f":"IF(Table_PI[[#This Row],[Hide:\nFormula Name]]<>\"\",IFERROR(IF(MeasureCalc(Table_PI[[#This Row],[Hide:\nFormula Name]],Table_PI[[#This Row],[Quantity]],Table_PI[[#This Row],[List 1]],Table_PI[[#This Row],[List 2]],Table_PI[[#This Row],[List 3]],Table_PI[[#This Row],[Size]],Table_PI[[#This Row],[Input 1]],Table_PI[[#This Row],[Input 2]],Table_PI[[#This Row],[Input 3]],Table_PI[[#This Row],[Input 4]],'Customer Information'!$AR$12,1,ROW())>0,MeasureCalc(Table_PI[[#This Row],[Hide:\nFormula Name]],Table_PI[[#This Row],[Quantity]],Table_PI[[#This Row],[List 1]],Table_PI[[#This Row],[List 2]],Table_PI[[#This Row],[List 3]],Table_PI[[#This Row],[Size]],Table_PI[[#This Row],[Input 1]],Table_PI[[#This Row],[Input 2]],Table_PI[[#This Row],[Input 3]],Table_PI[[#This Row],[Input 4]],'Customer Information'!$AR$12,2,ROW()),\"No Rebate\"),\"No Rebate\"),0)","v":0},{"$f":"IF(Table_PI[[#This Row],[Hide:\nFormula Name]]<>\"\",IFERROR(IF(MeasureCalc(Table_PI[[#This Row],[Hide:\nFormula Name]],Table_PI[[#This Row],[Quantity]],Table_PI[[#This Row],[List 1]],Table_PI[[#This Row],[List 2]],Table_PI[[#This Row],[List 3]],Table_PI[[#This Row],[Size]],Table_PI[[#This Row],[Input 1]],Table_PI[[#This Row],[Input 2]],Table_PI[[#This Row],[Input 3]],Table_PI[[#This Row],[Input 4]],'Customer Information'!$AR$12,1,ROW())>0,MeasureCalc(Table_PI[[#This Row],[Hide:\nFormula Name]],Table_PI[[#This Row],[Quantity]],Table_PI[[#This Row],[List 1]],Table_PI[[#This Row],[List 2]],Table_PI[[#This Row],[List 3]],Table_PI[[#This Row],[Size]],Table_PI[[#This Row],[Input 1]],Table_PI[[#This Row],[Input 2]],Table_PI[[#This Row],[Input 3]],Table_PI[[#This Row],[Input 4]],'Customer Information'!$AR$12,3,ROW()),\"No Rebate\"),\"No Rebate\"),0)","v":0},{"$f":"IF(Table_PI[[#This Row],[Hide:\nFormula Name]]<>\"\",IFERROR(IF(MeasureCalc(Table_PI[[#This Row],[Hide:\nFormula Name]],Table_PI[[#This Row],[Quantity]],Table_PI[[#This Row],[List 1]],Table_PI[[#This Row],[List 2]],Table_PI[[#This Row],[List 3]],Table_PI[[#This Row],[Size]],Table_PI[[#This Row],[Input 1]],Table_PI[[#This Row],[Input 2]],Table_PI[[#This Row],[Input 3]],Table_PI[[#This Row],[Input 4]],'Customer Information'!$AR$12,1,ROW())>0,MeasureCalc(Table_PI[[#This Row],[Hide:\nFormula Name]],Table_PI[[#This Row],[Quantity]],Table_PI[[#This Row],[List 1]],Table_PI[[#This Row],[List 2]],Table_PI[[#This Row],[List 3]],Table_PI[[#This Row],[Size]],Table_PI[[#This Row],[Input 1]],Table_PI[[#This Row],[Input 2]],Table_PI[[#This Row],[Input 3]],Table_PI[[#This Row],[Input 4]],'Customer Information'!$AR$12,4,ROW()),\"No Rebate\"),\"No Rebate\"),0)","v":0},{"$f":"IF(Table_PI[[#This Row],[Hide:\nFormula Name]]<>\"\",IFERROR(IF(MeasureCalc(Table_PI[[#This Row],[Hide:\nFormula Name]],Table_PI[[#This Row],[Quantity]],Table_PI[[#This Row],[List 1]],Table_PI[[#This Row],[List 2]],Table_PI[[#This Row],[List 3]],Table_PI[[#This Row],[Size]],Table_PI[[#This Row],[Input 1]],Table_PI[[#This Row],[Input 2]],Table_PI[[#This Row],[Input 3]],Table_PI[[#This Row],[Input 4]],'Customer Information'!$AR$12,1,ROW())>0,MeasureCalc(Table_PI[[#This Row],[Hide:\nFormula Name]],Table_PI[[#This Row],[Quantity]],Table_PI[[#This Row],[List 1]],Table_PI[[#This Row],[List 2]],Table_PI[[#This Row],[List 3]],Table_PI[[#This Row],[Size]],Table_PI[[#This Row],[Input 1]],Table_PI[[#This Row],[Input 2]],Table_PI[[#This Row],[Input 3]],Table_PI[[#This Row],[Input 4]],'Customer Information'!$AR$12,5,ROW()),\"No Rebate\"),\"No Rebate\"),0)","v":0},{"$f":"IF(Table_PI[[#This Row],[Hide:\nFormula Name]]<>\"\",IFERROR(IF(MeasureCalc(Table_PI[[#This Row],[Hide:\nFormula Name]],Table_PI[[#This Row],[Quantity]],Table_PI[[#This Row],[List 1]],Table_PI[[#This Row],[List 2]],Table_PI[[#This Row],[List 3]],Table_PI[[#This Row],[Size]],Table_PI[[#This Row],[Input 1]],Table_PI[[#This Row],[Input 2]],Table_PI[[#This Row],[Input 3]],Table_PI[[#This Row],[Input 4]],'Customer Information'!$AR$12,1,ROW())>0,MeasureCalc(Table_PI[[#This Row],[Hide:\nFormula Name]],Table_PI[[#This Row],[Quantity]],Table_PI[[#This Row],[List 1]],Table_PI[[#This Row],[List 2]],Table_PI[[#This Row],[List 3]],Table_PI[[#This Row],[Size]],Table_PI[[#This Row],[Input 1]],Table_PI[[#This Row],[Input 2]],Table_PI[[#This Row],[Input 3]],Table_PI[[#This Row],[Input 4]],'Customer Information'!$AR$12,6,ROW()),\"No Rebate\"),\"No Rebate\"),0)","v":0},{"$f":"IF(Table_PI[[#This Row],[Hide:\nFormula Name]]<>\"\",IFERROR(IF(MeasureCalc(Table_PI[[#This Row],[Hide:\nFormula Name]],Table_PI[[#This Row],[Quantity]],Table_PI[[#This Row],[List 1]],Table_PI[[#This Row],[List 2]],Table_PI[[#This Row],[List 3]],Table_PI[[#This Row],[Size]],Table_PI[[#This Row],[Input 1]],Table_PI[[#This Row],[Input 2]],Table_PI[[#This Row],[Input 3]],Table_PI[[#This Row],[Input 4]],'Customer Information'!$AR$12,1,ROW())>0,MeasureCalc(Table_PI[[#This Row],[Hide:\nFormula Name]],Table_PI[[#This Row],[Quantity]],Table_PI[[#This Row],[List 1]],Table_PI[[#This Row],[List 2]],Table_PI[[#This Row],[List 3]],Table_PI[[#This Row],[Size]],Table_PI[[#This Row],[Input 1]],Table_PI[[#This Row],[Input 2]],Table_PI[[#This Row],[Input 3]],Table_PI[[#This Row],[Input 4]],'Customer Information'!$AR$12,7,ROW()),\"No Rebate\"),\"No Rebate\"),0)","v":0},{"$f":"IF(Table_PI[[#This Row],[Hide:\nFormula Name]]<>\"\",IFERROR(IF(MeasureCalc(Table_PI[[#This Row],[Hide:\nFormula Name]],Table_PI[[#This Row],[Quantity]],Table_PI[[#This Row],[List 1]],Table_PI[[#This Row],[List 2]],Table_PI[[#This Row],[List 3]],Table_PI[[#This Row],[Size]],Table_PI[[#This Row],[Input 1]],Table_PI[[#This Row],[Input 2]],Table_PI[[#This Row],[Input 3]],Table_PI[[#This Row],[Input 4]],'Customer Information'!$AR$12,1,ROW())>0,MeasureCalc(Table_PI[[#This Row],[Hide:\nFormula Name]],Table_PI[[#This Row],[Quantity]],Table_PI[[#This Row],[List 1]],Table_PI[[#This Row],[List 2]],Table_PI[[#This Row],[List 3]],Table_PI[[#This Row],[Size]],Table_PI[[#This Row],[Input 1]],Table_PI[[#This Row],[Input 2]],Table_PI[[#This Row],[Input 3]],Table_PI[[#This Row],[Input 4]],'Customer Information'!$AR$12,8,ROW()),\"No Rebate\"),\"No Rebate\"),0)","v":0},{"$f":"IF(Table_PI[[#This Row],[Hide:\nFormula Name]]<>\"\",IF(AND(Table_PI[[#This Row],[Hide:\nFormula Name]]<>\"\",OR(Table_PI[[#This Row],[Rebate]]>0,Table_PI[[#This Row],[Rebate]]=\"No Rebate\")),TRUE,\"MI: Line Item \" & $A138),\"\")","v":""}]
[{"$f":"IF(Table_PI[[#This Row],[Hide:\nFormula Name]]<>\"\",MAX($A$2:A138)+1,\"\")","v":""},null,null,null,null,null,null,null,null,null,null,null,null,null,null,{"$f":"IFERROR(VLOOKUP(Table_PI[[#This Row],[Measure]],'Equipment Lookups'!$C$3:$D$23,2,FALSE),\"\")","v":""},{"$f":"IF(Table_PI[[#This Row],[Hide:\nFormula Name]]<>\"\",IFERROR(IF(MeasureCalc(Table_PI[[#This Row],[Hide:\nFormula Name]],Table_PI[[#This Row],[Quantity]],Table_PI[[#This Row],[List 1]],Table_PI[[#This Row],[List 2]],Table_PI[[#This Row],[List 3]],Table_PI[[#This Row],[Size]],Table_PI[[#This Row],[Input 1]],Table_PI[[#This Row],[Input 2]],Table_PI[[#This Row],[Input 3]],Table_PI[[#This Row],[Input 4]],'Customer Information'!$AR$12,1,ROW())>0,MeasureCalc(Table_PI[[#This Row],[Hide:\nFormula Name]],Table_PI[[#This Row],[Quantity]],Table_PI[[#This Row],[List 1]],Table_PI[[#This Row],[List 2]],Table_PI[[#This Row],[List 3]],Table_PI[[#This Row],[Size]],Table_PI[[#This Row],[Input 1]],Table_PI[[#This Row],[Input 2]],Table_PI[[#This Row],[Input 3]],Table_PI[[#This Row],[Input 4]],'Customer Information'!$AR$12,1,ROW()),\"No Rebate\"),\"No Rebate\"),0)","v":0},{"$f":"IF(Table_PI[[#This Row],[Hide:\nFormula Name]]<>\"\",IFERROR(IF(MeasureCalc(Table_PI[[#This Row],[Hide:\nFormula Name]],Table_PI[[#This Row],[Quantity]],Table_PI[[#This Row],[List 1]],Table_PI[[#This Row],[List 2]],Table_PI[[#This Row],[List 3]],Table_PI[[#This Row],[Size]],Table_PI[[#This Row],[Input 1]],Table_PI[[#This Row],[Input 2]],Table_PI[[#This Row],[Input 3]],Table_PI[[#This Row],[Input 4]],'Customer Information'!$AR$12,1,ROW())>0,MeasureCalc(Table_PI[[#This Row],[Hide:\nFormula Name]],Table_PI[[#This Row],[Quantity]],Table_PI[[#This Row],[List 1]],Table_PI[[#This Row],[List 2]],Table_PI[[#This Row],[List 3]],Table_PI[[#This Row],[Size]],Table_PI[[#This Row],[Input 1]],Table_PI[[#This Row],[Input 2]],Table_PI[[#This Row],[Input 3]],Table_PI[[#This Row],[Input 4]],'Customer Information'!$AR$12,2,ROW()),\"No Rebate\"),\"No Rebate\"),0)","v":0},{"$f":"IF(Table_PI[[#This Row],[Hide:\nFormula Name]]<>\"\",IFERROR(IF(MeasureCalc(Table_PI[[#This Row],[Hide:\nFormula Name]],Table_PI[[#This Row],[Quantity]],Table_PI[[#This Row],[List 1]],Table_PI[[#This Row],[List 2]],Table_PI[[#This Row],[List 3]],Table_PI[[#This Row],[Size]],Table_PI[[#This Row],[Input 1]],Table_PI[[#This Row],[Input 2]],Table_PI[[#This Row],[Input 3]],Table_PI[[#This Row],[Input 4]],'Customer Information'!$AR$12,1,ROW())>0,MeasureCalc(Table_PI[[#This Row],[Hide:\nFormula Name]],Table_PI[[#This Row],[Quantity]],Table_PI[[#This Row],[List 1]],Table_PI[[#This Row],[List 2]],Table_PI[[#This Row],[List 3]],Table_PI[[#This Row],[Size]],Table_PI[[#This Row],[Input 1]],Table_PI[[#This Row],[Input 2]],Table_PI[[#This Row],[Input 3]],Table_PI[[#This Row],[Input 4]],'Customer Information'!$AR$12,3,ROW()),\"No Rebate\"),\"No Rebate\"),0)","v":0},{"$f":"IF(Table_PI[[#This Row],[Hide:\nFormula Name]]<>\"\",IFERROR(IF(MeasureCalc(Table_PI[[#This Row],[Hide:\nFormula Name]],Table_PI[[#This Row],[Quantity]],Table_PI[[#This Row],[List 1]],Table_PI[[#This Row],[List 2]],Table_PI[[#This Row],[List 3]],Table_PI[[#This Row],[Size]],Table_PI[[#This Row],[Input 1]],Table_PI[[#This Row],[Input 2]],Table_PI[[#This Row],[Input 3]],Table_PI[[#This Row],[Input 4]],'Customer Information'!$AR$12,1,ROW())>0,MeasureCalc(Table_PI[[#This Row],[Hide:\nFormula Name]],Table_PI[[#This Row],[Quantity]],Table_PI[[#This Row],[List 1]],Table_PI[[#This Row],[List 2]],Table_PI[[#This Row],[List 3]],Table_PI[[#This Row],[Size]],Table_PI[[#This Row],[Input 1]],Table_PI[[#This Row],[Input 2]],Table_PI[[#This Row],[Input 3]],Table_PI[[#This Row],[Input 4]],'Customer Information'!$AR$12,4,ROW()),\"No Rebate\"),\"No Rebate\"),0)","v":0},{"$f":"IF(Table_PI[[#This Row],[Hide:\nFormula Name]]<>\"\",IFERROR(IF(MeasureCalc(Table_PI[[#This Row],[Hide:\nFormula Name]],Table_PI[[#This Row],[Quantity]],Table_PI[[#This Row],[List 1]],Table_PI[[#This Row],[List 2]],Table_PI[[#This Row],[List 3]],Table_PI[[#This Row],[Size]],Table_PI[[#This Row],[Input 1]],Table_PI[[#This Row],[Input 2]],Table_PI[[#This Row],[Input 3]],Table_PI[[#This Row],[Input 4]],'Customer Information'!$AR$12,1,ROW())>0,MeasureCalc(Table_PI[[#This Row],[Hide:\nFormula Name]],Table_PI[[#This Row],[Quantity]],Table_PI[[#This Row],[List 1]],Table_PI[[#This Row],[List 2]],Table_PI[[#This Row],[List 3]],Table_PI[[#This Row],[Size]],Table_PI[[#This Row],[Input 1]],Table_PI[[#This Row],[Input 2]],Table_PI[[#This Row],[Input 3]],Table_PI[[#This Row],[Input 4]],'Customer Information'!$AR$12,5,ROW()),\"No Rebate\"),\"No Rebate\"),0)","v":0},{"$f":"IF(Table_PI[[#This Row],[Hide:\nFormula Name]]<>\"\",IFERROR(IF(MeasureCalc(Table_PI[[#This Row],[Hide:\nFormula Name]],Table_PI[[#This Row],[Quantity]],Table_PI[[#This Row],[List 1]],Table_PI[[#This Row],[List 2]],Table_PI[[#This Row],[List 3]],Table_PI[[#This Row],[Size]],Table_PI[[#This Row],[Input 1]],Table_PI[[#This Row],[Input 2]],Table_PI[[#This Row],[Input 3]],Table_PI[[#This Row],[Input 4]],'Customer Information'!$AR$12,1,ROW())>0,MeasureCalc(Table_PI[[#This Row],[Hide:\nFormula Name]],Table_PI[[#This Row],[Quantity]],Table_PI[[#This Row],[List 1]],Table_PI[[#This Row],[List 2]],Table_PI[[#This Row],[List 3]],Table_PI[[#This Row],[Size]],Table_PI[[#This Row],[Input 1]],Table_PI[[#This Row],[Input 2]],Table_PI[[#This Row],[Input 3]],Table_PI[[#This Row],[Input 4]],'Customer Information'!$AR$12,6,ROW()),\"No Rebate\"),\"No Rebate\"),0)","v":0},{"$f":"IF(Table_PI[[#This Row],[Hide:\nFormula Name]]<>\"\",IFERROR(IF(MeasureCalc(Table_PI[[#This Row],[Hide:\nFormula Name]],Table_PI[[#This Row],[Quantity]],Table_PI[[#This Row],[List 1]],Table_PI[[#This Row],[List 2]],Table_PI[[#This Row],[List 3]],Table_PI[[#This Row],[Size]],Table_PI[[#This Row],[Input 1]],Table_PI[[#This Row],[Input 2]],Table_PI[[#This Row],[Input 3]],Table_PI[[#This Row],[Input 4]],'Customer Information'!$AR$12,1,ROW())>0,MeasureCalc(Table_PI[[#This Row],[Hide:\nFormula Name]],Table_PI[[#This Row],[Quantity]],Table_PI[[#This Row],[List 1]],Table_PI[[#This Row],[List 2]],Table_PI[[#This Row],[List 3]],Table_PI[[#This Row],[Size]],Table_PI[[#This Row],[Input 1]],Table_PI[[#This Row],[Input 2]],Table_PI[[#This Row],[Input 3]],Table_PI[[#This Row],[Input 4]],'Customer Information'!$AR$12,7,ROW()),\"No Rebate\"),\"No Rebate\"),0)","v":0},{"$f":"IF(Table_PI[[#This Row],[Hide:\nFormula Name]]<>\"\",IFERROR(IF(MeasureCalc(Table_PI[[#This Row],[Hide:\nFormula Name]],Table_PI[[#This Row],[Quantity]],Table_PI[[#This Row],[List 1]],Table_PI[[#This Row],[List 2]],Table_PI[[#This Row],[List 3]],Table_PI[[#This Row],[Size]],Table_PI[[#This Row],[Input 1]],Table_PI[[#This Row],[Input 2]],Table_PI[[#This Row],[Input 3]],Table_PI[[#This Row],[Input 4]],'Customer Information'!$AR$12,1,ROW())>0,MeasureCalc(Table_PI[[#This Row],[Hide:\nFormula Name]],Table_PI[[#This Row],[Quantity]],Table_PI[[#This Row],[List 1]],Table_PI[[#This Row],[List 2]],Table_PI[[#This Row],[List 3]],Table_PI[[#This Row],[Size]],Table_PI[[#This Row],[Input 1]],Table_PI[[#This Row],[Input 2]],Table_PI[[#This Row],[Input 3]],Table_PI[[#This Row],[Input 4]],'Customer Information'!$AR$12,8,ROW()),\"No Rebate\"),\"No Rebate\"),0)","v":0},{"$f":"IF(Table_PI[[#This Row],[Hide:\nFormula Name]]<>\"\",IF(AND(Table_PI[[#This Row],[Hide:\nFormula Name]]<>\"\",OR(Table_PI[[#This Row],[Rebate]]>0,Table_PI[[#This Row],[Rebate]]=\"No Rebate\")),TRUE,\"MI: Line Item \" & $A139),\"\")","v":""}]
[{"$f":"IF(Table_PI[[#This Row],[Hide:\nFormula Name]]<>\"\",MAX($A$2:A139)+1,\"\")","v":""},null,null,null,null,null,null,null,null,null,null,null,null,null,null,{"$f":"IFERROR(VLOOKUP(Table_PI[[#This Row],[Measure]],'Equipment Lookups'!$C$3:$D$23,2,FALSE),\"\")","v":""},{"$f":"IF(Table_PI[[#This Row],[Hide:\nFormula Name]]<>\"\",IFERROR(IF(MeasureCalc(Table_PI[[#This Row],[Hide:\nFormula Name]],Table_PI[[#This Row],[Quantity]],Table_PI[[#This Row],[List 1]],Table_PI[[#This Row],[List 2]],Table_PI[[#This Row],[List 3]],Table_PI[[#This Row],[Size]],Table_PI[[#This Row],[Input 1]],Table_PI[[#This Row],[Input 2]],Table_PI[[#This Row],[Input 3]],Table_PI[[#This Row],[Input 4]],'Customer Information'!$AR$12,1,ROW())>0,MeasureCalc(Table_PI[[#This Row],[Hide:\nFormula Name]],Table_PI[[#This Row],[Quantity]],Table_PI[[#This Row],[List 1]],Table_PI[[#This Row],[List 2]],Table_PI[[#This Row],[List 3]],Table_PI[[#This Row],[Size]],Table_PI[[#This Row],[Input 1]],Table_PI[[#This Row],[Input 2]],Table_PI[[#This Row],[Input 3]],Table_PI[[#This Row],[Input 4]],'Customer Information'!$AR$12,1,ROW()),\"No Rebate\"),\"No Rebate\"),0)","v":0},{"$f":"IF(Table_PI[[#This Row],[Hide:\nFormula Name]]<>\"\",IFERROR(IF(MeasureCalc(Table_PI[[#This Row],[Hide:\nFormula Name]],Table_PI[[#This Row],[Quantity]],Table_PI[[#This Row],[List 1]],Table_PI[[#This Row],[List 2]],Table_PI[[#This Row],[List 3]],Table_PI[[#This Row],[Size]],Table_PI[[#This Row],[Input 1]],Table_PI[[#This Row],[Input 2]],Table_PI[[#This Row],[Input 3]],Table_PI[[#This Row],[Input 4]],'Customer Information'!$AR$12,1,ROW())>0,MeasureCalc(Table_PI[[#This Row],[Hide:\nFormula Name]],Table_PI[[#This Row],[Quantity]],Table_PI[[#This Row],[List 1]],Table_PI[[#This Row],[List 2]],Table_PI[[#This Row],[List 3]],Table_PI[[#This Row],[Size]],Table_PI[[#This Row],[Input 1]],Table_PI[[#This Row],[Input 2]],Table_PI[[#This Row],[Input 3]],Table_PI[[#This Row],[Input 4]],'Customer Information'!$AR$12,2,ROW()),\"No Rebate\"),\"No Rebate\"),0)","v":0},{"$f":"IF(Table_PI[[#This Row],[Hide:\nFormula Name]]<>\"\",IFERROR(IF(MeasureCalc(Table_PI[[#This Row],[Hide:\nFormula Name]],Table_PI[[#This Row],[Quantity]],Table_PI[[#This Row],[List 1]],Table_PI[[#This Row],[List 2]],Table_PI[[#This Row],[List 3]],Table_PI[[#This Row],[Size]],Table_PI[[#This Row],[Input 1]],Table_PI[[#This Row],[Input 2]],Table_PI[[#This Row],[Input 3]],Table_PI[[#This Row],[Input 4]],'Customer Information'!$AR$12,1,ROW())>0,MeasureCalc(Table_PI[[#This Row],[Hide:\nFormula Name]],Table_PI[[#This Row],[Quantity]],Table_PI[[#This Row],[List 1]],Table_PI[[#This Row],[List 2]],Table_PI[[#This Row],[List 3]],Table_PI[[#This Row],[Size]],Table_PI[[#This Row],[Input 1]],Table_PI[[#This Row],[Input 2]],Table_PI[[#This Row],[Input 3]],Table_PI[[#This Row],[Input 4]],'Customer Information'!$AR$12,3,ROW()),\"No Rebate\"),\"No Rebate\"),0)","v":0},{"$f":"IF(Table_PI[[#This Row],[Hide:\nFormula Name]]<>\"\",IFERROR(IF(MeasureCalc(Table_PI[[#This Row],[Hide:\nFormula Name]],Table_PI[[#This Row],[Quantity]],Table_PI[[#This Row],[List 1]],Table_PI[[#This Row],[List 2]],Table_PI[[#This Row],[List 3]],Table_PI[[#This Row],[Size]],Table_PI[[#This Row],[Input 1]],Table_PI[[#This Row],[Input 2]],Table_PI[[#This Row],[Input 3]],Table_PI[[#This Row],[Input 4]],'Customer Information'!$AR$12,1,ROW())>0,MeasureCalc(Table_PI[[#This Row],[Hide:\nFormula Name]],Table_PI[[#This Row],[Quantity]],Table_PI[[#This Row],[List 1]],Table_PI[[#This Row],[List 2]],Table_PI[[#This Row],[List 3]],Table_PI[[#This Row],[Size]],Table_PI[[#This Row],[Input 1]],Table_PI[[#This Row],[Input 2]],Table_PI[[#This Row],[Input 3]],Table_PI[[#This Row],[Input 4]],'Customer Information'!$AR$12,4,ROW()),\"No Rebate\"),\"No Rebate\"),0)","v":0},{"$f":"IF(Table_PI[[#This Row],[Hide:\nFormula Name]]<>\"\",IFERROR(IF(MeasureCalc(Table_PI[[#This Row],[Hide:\nFormula Name]],Table_PI[[#This Row],[Quantity]],Table_PI[[#This Row],[List 1]],Table_PI[[#This Row],[List 2]],Table_PI[[#This Row],[List 3]],Table_PI[[#This Row],[Size]],Table_PI[[#This Row],[Input 1]],Table_PI[[#This Row],[Input 2]],Table_PI[[#This Row],[Input 3]],Table_PI[[#This Row],[Input 4]],'Customer Information'!$AR$12,1,ROW())>0,MeasureCalc(Table_PI[[#This Row],[Hide:\nFormula Name]],Table_PI[[#This Row],[Quantity]],Table_PI[[#This Row],[List 1]],Table_PI[[#This Row],[List 2]],Table_PI[[#This Row],[List 3]],Table_PI[[#This Row],[Size]],Table_PI[[#This Row],[Input 1]],Table_PI[[#This Row],[Input 2]],Table_PI[[#This Row],[Input 3]],Table_PI[[#This Row],[Input 4]],'Customer Information'!$AR$12,5,ROW()),\"No Rebate\"),\"No Rebate\"),0)","v":0},{"$f":"IF(Table_PI[[#This Row],[Hide:\nFormula Name]]<>\"\",IFERROR(IF(MeasureCalc(Table_PI[[#This Row],[Hide:\nFormula Name]],Table_PI[[#This Row],[Quantity]],Table_PI[[#This Row],[List 1]],Table_PI[[#This Row],[List 2]],Table_PI[[#This Row],[List 3]],Table_PI[[#This Row],[Size]],Table_PI[[#This Row],[Input 1]],Table_PI[[#This Row],[Input 2]],Table_PI[[#This Row],[Input 3]],Table_PI[[#This Row],[Input 4]],'Customer Information'!$AR$12,1,ROW())>0,MeasureCalc(Table_PI[[#This Row],[Hide:\nFormula Name]],Table_PI[[#This Row],[Quantity]],Table_PI[[#This Row],[List 1]],Table_PI[[#This Row],[List 2]],Table_PI[[#This Row],[List 3]],Table_PI[[#This Row],[Size]],Table_PI[[#This Row],[Input 1]],Table_PI[[#This Row],[Input 2]],Table_PI[[#This Row],[Input 3]],Table_PI[[#This Row],[Input 4]],'Customer Information'!$AR$12,6,ROW()),\"No Rebate\"),\"No Rebate\"),0)","v":0},{"$f":"IF(Table_PI[[#This Row],[Hide:\nFormula Name]]<>\"\",IFERROR(IF(MeasureCalc(Table_PI[[#This Row],[Hide:\nFormula Name]],Table_PI[[#This Row],[Quantity]],Table_PI[[#This Row],[List 1]],Table_PI[[#This Row],[List 2]],Table_PI[[#This Row],[List 3]],Table_PI[[#This Row],[Size]],Table_PI[[#This Row],[Input 1]],Table_PI[[#This Row],[Input 2]],Table_PI[[#This Row],[Input 3]],Table_PI[[#This Row],[Input 4]],'Customer Information'!$AR$12,1,ROW())>0,MeasureCalc(Table_PI[[#This Row],[Hide:\nFormula Name]],Table_PI[[#This Row],[Quantity]],Table_PI[[#This Row],[List 1]],Table_PI[[#This Row],[List 2]],Table_PI[[#This Row],[List 3]],Table_PI[[#This Row],[Size]],Table_PI[[#This Row],[Input 1]],Table_PI[[#This Row],[Input 2]],Table_PI[[#This Row],[Input 3]],Table_PI[[#This Row],[Input 4]],'Customer Information'!$AR$12,7,ROW()),\"No Rebate\"),\"No Rebate\"),0)","v":0},{"$f":"IF(Table_PI[[#This Row],[Hide:\nFormula Name]]<>\"\",IFERROR(IF(MeasureCalc(Table_PI[[#This Row],[Hide:\nFormula Name]],Table_PI[[#This Row],[Quantity]],Table_PI[[#This Row],[List 1]],Table_PI[[#This Row],[List 2]],Table_PI[[#This Row],[List 3]],Table_PI[[#This Row],[Size]],Table_PI[[#This Row],[Input 1]],Table_PI[[#This Row],[Input 2]],Table_PI[[#This Row],[Input 3]],Table_PI[[#This Row],[Input 4]],'Customer Information'!$AR$12,1,ROW())>0,MeasureCalc(Table_PI[[#This Row],[Hide:\nFormula Name]],Table_PI[[#This Row],[Quantity]],Table_PI[[#This Row],[List 1]],Table_PI[[#This Row],[List 2]],Table_PI[[#This Row],[List 3]],Table_PI[[#This Row],[Size]],Table_PI[[#This Row],[Input 1]],Table_PI[[#This Row],[Input 2]],Table_PI[[#This Row],[Input 3]],Table_PI[[#This Row],[Input 4]],'Customer Information'!$AR$12,8,ROW()),\"No Rebate\"),\"No Rebate\"),0)","v":0},{"$f":"IF(Table_PI[[#This Row],[Hide:\nFormula Name]]<>\"\",IF(AND(Table_PI[[#This Row],[Hide:\nFormula Name]]<>\"\",OR(Table_PI[[#This Row],[Rebate]]>0,Table_PI[[#This Row],[Rebate]]=\"No Rebate\")),TRUE,\"MI: Line Item \" & $A140),\"\")","v":""}]
[{"$f":"IF(Table_PI[[#This Row],[Hide:\nFormula Name]]<>\"\",MAX($A$2:A140)+1,\"\")","v":""},null,null,null,null,null,null,null,null,null,null,null,null,null,null,{"$f":"IFERROR(VLOOKUP(Table_PI[[#This Row],[Measure]],'Equipment Lookups'!$C$3:$D$23,2,FALSE),\"\")","v":""},{"$f":"IF(Table_PI[[#This Row],[Hide:\nFormula Name]]<>\"\",IFERROR(IF(MeasureCalc(Table_PI[[#This Row],[Hide:\nFormula Name]],Table_PI[[#This Row],[Quantity]],Table_PI[[#This Row],[List 1]],Table_PI[[#This Row],[List 2]],Table_PI[[#This Row],[List 3]],Table_PI[[#This Row],[Size]],Table_PI[[#This Row],[Input 1]],Table_PI[[#This Row],[Input 2]],Table_PI[[#This Row],[Input 3]],Table_PI[[#This Row],[Input 4]],'Customer Information'!$AR$12,1,ROW())>0,MeasureCalc(Table_PI[[#This Row],[Hide:\nFormula Name]],Table_PI[[#This Row],[Quantity]],Table_PI[[#This Row],[List 1]],Table_PI[[#This Row],[List 2]],Table_PI[[#This Row],[List 3]],Table_PI[[#This Row],[Size]],Table_PI[[#This Row],[Input 1]],Table_PI[[#This Row],[Input 2]],Table_PI[[#This Row],[Input 3]],Table_PI[[#This Row],[Input 4]],'Customer Information'!$AR$12,1,ROW()),\"No Rebate\"),\"No Rebate\"),0)","v":0},{"$f":"IF(Table_PI[[#This Row],[Hide:\nFormula Name]]<>\"\",IFERROR(IF(MeasureCalc(Table_PI[[#This Row],[Hide:\nFormula Name]],Table_PI[[#This Row],[Quantity]],Table_PI[[#This Row],[List 1]],Table_PI[[#This Row],[List 2]],Table_PI[[#This Row],[List 3]],Table_PI[[#This Row],[Size]],Table_PI[[#This Row],[Input 1]],Table_PI[[#This Row],[Input 2]],Table_PI[[#This Row],[Input 3]],Table_PI[[#This Row],[Input 4]],'Customer Information'!$AR$12,1,ROW())>0,MeasureCalc(Table_PI[[#This Row],[Hide:\nFormula Name]],Table_PI[[#This Row],[Quantity]],Table_PI[[#This Row],[List 1]],Table_PI[[#This Row],[List 2]],Table_PI[[#This Row],[List 3]],Table_PI[[#This Row],[Size]],Table_PI[[#This Row],[Input 1]],Table_PI[[#This Row],[Input 2]],Table_PI[[#This Row],[Input 3]],Table_PI[[#This Row],[Input 4]],'Customer Information'!$AR$12,2,ROW()),\"No Rebate\"),\"No Rebate\"),0)","v":0},{"$f":"IF(Table_PI[[#This Row],[Hide:\nFormula Name]]<>\"\",IFERROR(IF(MeasureCalc(Table_PI[[#This Row],[Hide:\nFormula Name]],Table_PI[[#This Row],[Quantity]],Table_PI[[#This Row],[List 1]],Table_PI[[#This Row],[List 2]],Table_PI[[#This Row],[List 3]],Table_PI[[#This Row],[Size]],Table_PI[[#This Row],[Input 1]],Table_PI[[#This Row],[Input 2]],Table_PI[[#This Row],[Input 3]],Table_PI[[#This Row],[Input 4]],'Customer Information'!$AR$12,1,ROW())>0,MeasureCalc(Table_PI[[#This Row],[Hide:\nFormula Name]],Table_PI[[#This Row],[Quantity]],Table_PI[[#This Row],[List 1]],Table_PI[[#This Row],[List 2]],Table_PI[[#This Row],[List 3]],Table_PI[[#This Row],[Size]],Table_PI[[#This Row],[Input 1]],Table_PI[[#This Row],[Input 2]],Table_PI[[#This Row],[Input 3]],Table_PI[[#This Row],[Input 4]],'Customer Information'!$AR$12,3,ROW()),\"No Rebate\"),\"No Rebate\"),0)","v":0},{"$f":"IF(Table_PI[[#This Row],[Hide:\nFormula Name]]<>\"\",IFERROR(IF(MeasureCalc(Table_PI[[#This Row],[Hide:\nFormula Name]],Table_PI[[#This Row],[Quantity]],Table_PI[[#This Row],[List 1]],Table_PI[[#This Row],[List 2]],Table_PI[[#This Row],[List 3]],Table_PI[[#This Row],[Size]],Table_PI[[#This Row],[Input 1]],Table_PI[[#This Row],[Input 2]],Table_PI[[#This Row],[Input 3]],Table_PI[[#This Row],[Input 4]],'Customer Information'!$AR$12,1,ROW())>0,MeasureCalc(Table_PI[[#This Row],[Hide:\nFormula Name]],Table_PI[[#This Row],[Quantity]],Table_PI[[#This Row],[List 1]],Table_PI[[#This Row],[List 2]],Table_PI[[#This Row],[List 3]],Table_PI[[#This Row],[Size]],Table_PI[[#This Row],[Input 1]],Table_PI[[#This Row],[Input 2]],Table_PI[[#This Row],[Input 3]],Table_PI[[#This Row],[Input 4]],'Customer Information'!$AR$12,4,ROW()),\"No Rebate\"),\"No Rebate\"),0)","v":0},{"$f":"IF(Table_PI[[#This Row],[Hide:\nFormula Name]]<>\"\",IFERROR(IF(MeasureCalc(Table_PI[[#This Row],[Hide:\nFormula Name]],Table_PI[[#This Row],[Quantity]],Table_PI[[#This Row],[List 1]],Table_PI[[#This Row],[List 2]],Table_PI[[#This Row],[List 3]],Table_PI[[#This Row],[Size]],Table_PI[[#This Row],[Input 1]],Table_PI[[#This Row],[Input 2]],Table_PI[[#This Row],[Input 3]],Table_PI[[#This Row],[Input 4]],'Customer Information'!$AR$12,1,ROW())>0,MeasureCalc(Table_PI[[#This Row],[Hide:\nFormula Name]],Table_PI[[#This Row],[Quantity]],Table_PI[[#This Row],[List 1]],Table_PI[[#This Row],[List 2]],Table_PI[[#This Row],[List 3]],Table_PI[[#This Row],[Size]],Table_PI[[#This Row],[Input 1]],Table_PI[[#This Row],[Input 2]],Table_PI[[#This Row],[Input 3]],Table_PI[[#This Row],[Input 4]],'Customer Information'!$AR$12,5,ROW()),\"No Rebate\"),\"No Rebate\"),0)","v":0},{"$f":"IF(Table_PI[[#This Row],[Hide:\nFormula Name]]<>\"\",IFERROR(IF(MeasureCalc(Table_PI[[#This Row],[Hide:\nFormula Name]],Table_PI[[#This Row],[Quantity]],Table_PI[[#This Row],[List 1]],Table_PI[[#This Row],[List 2]],Table_PI[[#This Row],[List 3]],Table_PI[[#This Row],[Size]],Table_PI[[#This Row],[Input 1]],Table_PI[[#This Row],[Input 2]],Table_PI[[#This Row],[Input 3]],Table_PI[[#This Row],[Input 4]],'Customer Information'!$AR$12,1,ROW())>0,MeasureCalc(Table_PI[[#This Row],[Hide:\nFormula Name]],Table_PI[[#This Row],[Quantity]],Table_PI[[#This Row],[List 1]],Table_PI[[#This Row],[List 2]],Table_PI[[#This Row],[List 3]],Table_PI[[#This Row],[Size]],Table_PI[[#This Row],[Input 1]],Table_PI[[#This Row],[Input 2]],Table_PI[[#This Row],[Input 3]],Table_PI[[#This Row],[Input 4]],'Customer Information'!$AR$12,6,ROW()),\"No Rebate\"),\"No Rebate\"),0)","v":0},{"$f":"IF(Table_PI[[#This Row],[Hide:\nFormula Name]]<>\"\",IFERROR(IF(MeasureCalc(Table_PI[[#This Row],[Hide:\nFormula Name]],Table_PI[[#This Row],[Quantity]],Table_PI[[#This Row],[List 1]],Table_PI[[#This Row],[List 2]],Table_PI[[#This Row],[List 3]],Table_PI[[#This Row],[Size]],Table_PI[[#This Row],[Input 1]],Table_PI[[#This Row],[Input 2]],Table_PI[[#This Row],[Input 3]],Table_PI[[#This Row],[Input 4]],'Customer Information'!$AR$12,1,ROW())>0,MeasureCalc(Table_PI[[#This Row],[Hide:\nFormula Name]],Table_PI[[#This Row],[Quantity]],Table_PI[[#This Row],[List 1]],Table_PI[[#This Row],[List 2]],Table_PI[[#This Row],[List 3]],Table_PI[[#This Row],[Size]],Table_PI[[#This Row],[Input 1]],Table_PI[[#This Row],[Input 2]],Table_PI[[#This Row],[Input 3]],Table_PI[[#This Row],[Input 4]],'Customer Information'!$AR$12,7,ROW()),\"No Rebate\"),\"No Rebate\"),0)","v":0},{"$f":"IF(Table_PI[[#This Row],[Hide:\nFormula Name]]<>\"\",IFERROR(IF(MeasureCalc(Table_PI[[#This Row],[Hide:\nFormula Name]],Table_PI[[#This Row],[Quantity]],Table_PI[[#This Row],[List 1]],Table_PI[[#This Row],[List 2]],Table_PI[[#This Row],[List 3]],Table_PI[[#This Row],[Size]],Table_PI[[#This Row],[Input 1]],Table_PI[[#This Row],[Input 2]],Table_PI[[#This Row],[Input 3]],Table_PI[[#This Row],[Input 4]],'Customer Information'!$AR$12,1,ROW())>0,MeasureCalc(Table_PI[[#This Row],[Hide:\nFormula Name]],Table_PI[[#This Row],[Quantity]],Table_PI[[#This Row],[List 1]],Table_PI[[#This Row],[List 2]],Table_PI[[#This Row],[List 3]],Table_PI[[#This Row],[Size]],Table_PI[[#This Row],[Input 1]],Table_PI[[#This Row],[Input 2]],Table_PI[[#This Row],[Input 3]],Table_PI[[#This Row],[Input 4]],'Customer Information'!$AR$12,8,ROW()),\"No Rebate\"),\"No Rebate\"),0)","v":0},{"$f":"IF(Table_PI[[#This Row],[Hide:\nFormula Name]]<>\"\",IF(AND(Table_PI[[#This Row],[Hide:\nFormula Name]]<>\"\",OR(Table_PI[[#This Row],[Rebate]]>0,Table_PI[[#This Row],[Rebate]]=\"No Rebate\")),TRUE,\"MI: Line Item \" & $A141),\"\")","v":""}]
[{"$f":"IF(Table_PI[[#This Row],[Hide:\nFormula Name]]<>\"\",MAX($A$2:A141)+1,\"\")","v":""},null,null,null,null,null,null,null,null,null,null,null,null,null,null,{"$f":"IFERROR(VLOOKUP(Table_PI[[#This Row],[Measure]],'Equipment Lookups'!$C$3:$D$23,2,FALSE),\"\")","v":""},{"$f":"IF(Table_PI[[#This Row],[Hide:\nFormula Name]]<>\"\",IFERROR(IF(MeasureCalc(Table_PI[[#This Row],[Hide:\nFormula Name]],Table_PI[[#This Row],[Quantity]],Table_PI[[#This Row],[List 1]],Table_PI[[#This Row],[List 2]],Table_PI[[#This Row],[List 3]],Table_PI[[#This Row],[Size]],Table_PI[[#This Row],[Input 1]],Table_PI[[#This Row],[Input 2]],Table_PI[[#This Row],[Input 3]],Table_PI[[#This Row],[Input 4]],'Customer Information'!$AR$12,1,ROW())>0,MeasureCalc(Table_PI[[#This Row],[Hide:\nFormula Name]],Table_PI[[#This Row],[Quantity]],Table_PI[[#This Row],[List 1]],Table_PI[[#This Row],[List 2]],Table_PI[[#This Row],[List 3]],Table_PI[[#This Row],[Size]],Table_PI[[#This Row],[Input 1]],Table_PI[[#This Row],[Input 2]],Table_PI[[#This Row],[Input 3]],Table_PI[[#This Row],[Input 4]],'Customer Information'!$AR$12,1,ROW()),\"No Rebate\"),\"No Rebate\"),0)","v":0},{"$f":"IF(Table_PI[[#This Row],[Hide:\nFormula Name]]<>\"\",IFERROR(IF(MeasureCalc(Table_PI[[#This Row],[Hide:\nFormula Name]],Table_PI[[#This Row],[Quantity]],Table_PI[[#This Row],[List 1]],Table_PI[[#This Row],[List 2]],Table_PI[[#This Row],[List 3]],Table_PI[[#This Row],[Size]],Table_PI[[#This Row],[Input 1]],Table_PI[[#This Row],[Input 2]],Table_PI[[#This Row],[Input 3]],Table_PI[[#This Row],[Input 4]],'Customer Information'!$AR$12,1,ROW())>0,MeasureCalc(Table_PI[[#This Row],[Hide:\nFormula Name]],Table_PI[[#This Row],[Quantity]],Table_PI[[#This Row],[List 1]],Table_PI[[#This Row],[List 2]],Table_PI[[#This Row],[List 3]],Table_PI[[#This Row],[Size]],Table_PI[[#This Row],[Input 1]],Table_PI[[#This Row],[Input 2]],Table_PI[[#This Row],[Input 3]],Table_PI[[#This Row],[Input 4]],'Customer Information'!$AR$12,2,ROW()),\"No Rebate\"),\"No Rebate\"),0)","v":0},{"$f":"IF(Table_PI[[#This Row],[Hide:\nFormula Name]]<>\"\",IFERROR(IF(MeasureCalc(Table_PI[[#This Row],[Hide:\nFormula Name]],Table_PI[[#This Row],[Quantity]],Table_PI[[#This Row],[List 1]],Table_PI[[#This Row],[List 2]],Table_PI[[#This Row],[List 3]],Table_PI[[#This Row],[Size]],Table_PI[[#This Row],[Input 1]],Table_PI[[#This Row],[Input 2]],Table_PI[[#This Row],[Input 3]],Table_PI[[#This Row],[Input 4]],'Customer Information'!$AR$12,1,ROW())>0,MeasureCalc(Table_PI[[#This Row],[Hide:\nFormula Name]],Table_PI[[#This Row],[Quantity]],Table_PI[[#This Row],[List 1]],Table_PI[[#This Row],[List 2]],Table_PI[[#This Row],[List 3]],Table_PI[[#This Row],[Size]],Table_PI[[#This Row],[Input 1]],Table_PI[[#This Row],[Input 2]],Table_PI[[#This Row],[Input 3]],Table_PI[[#This Row],[Input 4]],'Customer Information'!$AR$12,3,ROW()),\"No Rebate\"),\"No Rebate\"),0)","v":0},{"$f":"IF(Table_PI[[#This Row],[Hide:\nFormula Name]]<>\"\",IFERROR(IF(MeasureCalc(Table_PI[[#This Row],[Hide:\nFormula Name]],Table_PI[[#This Row],[Quantity]],Table_PI[[#This Row],[List 1]],Table_PI[[#This Row],[List 2]],Table_PI[[#This Row],[List 3]],Table_PI[[#This Row],[Size]],Table_PI[[#This Row],[Input 1]],Table_PI[[#This Row],[Input 2]],Table_PI[[#This Row],[Input 3]],Table_PI[[#This Row],[Input 4]],'Customer Information'!$AR$12,1,ROW())>0,MeasureCalc(Table_PI[[#This Row],[Hide:\nFormula Name]],Table_PI[[#This Row],[Quantity]],Table_PI[[#This Row],[List 1]],Table_PI[[#This Row],[List 2]],Table_PI[[#This Row],[List 3]],Table_PI[[#This Row],[Size]],Table_PI[[#This Row],[Input 1]],Table_PI[[#This Row],[Input 2]],Table_PI[[#This Row],[Input 3]],Table_PI[[#This Row],[Input 4]],'Customer Information'!$AR$12,4,ROW()),\"No Rebate\"),\"No Rebate\"),0)","v":0},{"$f":"IF(Table_PI[[#This Row],[Hide:\nFormula Name]]<>\"\",IFERROR(IF(MeasureCalc(Table_PI[[#This Row],[Hide:\nFormula Name]],Table_PI[[#This Row],[Quantity]],Table_PI[[#This Row],[List 1]],Table_PI[[#This Row],[List 2]],Table_PI[[#This Row],[List 3]],Table_PI[[#This Row],[Size]],Table_PI[[#This Row],[Input 1]],Table_PI[[#This Row],[Input 2]],Table_PI[[#This Row],[Input 3]],Table_PI[[#This Row],[Input 4]],'Customer Information'!$AR$12,1,ROW())>0,MeasureCalc(Table_PI[[#This Row],[Hide:\nFormula Name]],Table_PI[[#This Row],[Quantity]],Table_PI[[#This Row],[List 1]],Table_PI[[#This Row],[List 2]],Table_PI[[#This Row],[List 3]],Table_PI[[#This Row],[Size]],Table_PI[[#This Row],[Input 1]],Table_PI[[#This Row],[Input 2]],Table_PI[[#This Row],[Input 3]],Table_PI[[#This Row],[Input 4]],'Customer Information'!$AR$12,5,ROW()),\"No Rebate\"),\"No Rebate\"),0)","v":0},{"$f":"IF(Table_PI[[#This Row],[Hide:\nFormula Name]]<>\"\",IFERROR(IF(MeasureCalc(Table_PI[[#This Row],[Hide:\nFormula Name]],Table_PI[[#This Row],[Quantity]],Table_PI[[#This Row],[List 1]],Table_PI[[#This Row],[List 2]],Table_PI[[#This Row],[List 3]],Table_PI[[#This Row],[Size]],Table_PI[[#This Row],[Input 1]],Table_PI[[#This Row],[Input 2]],Table_PI[[#This Row],[Input 3]],Table_PI[[#This Row],[Input 4]],'Customer Information'!$AR$12,1,ROW())>0,MeasureCalc(Table_PI[[#This Row],[Hide:\nFormula Name]],Table_PI[[#This Row],[Quantity]],Table_PI[[#This Row],[List 1]],Table_PI[[#This Row],[List 2]],Table_PI[[#This Row],[List 3]],Table_PI[[#This Row],[Size]],Table_PI[[#This Row],[Input 1]],Table_PI[[#This Row],[Input 2]],Table_PI[[#This Row],[Input 3]],Table_PI[[#This Row],[Input 4]],'Customer Information'!$AR$12,6,ROW()),\"No Rebate\"),\"No Rebate\"),0)","v":0},{"$f":"IF(Table_PI[[#This Row],[Hide:\nFormula Name]]<>\"\",IFERROR(IF(MeasureCalc(Table_PI[[#This Row],[Hide:\nFormula Name]],Table_PI[[#This Row],[Quantity]],Table_PI[[#This Row],[List 1]],Table_PI[[#This Row],[List 2]],Table_PI[[#This Row],[List 3]],Table_PI[[#This Row],[Size]],Table_PI[[#This Row],[Input 1]],Table_PI[[#This Row],[Input 2]],Table_PI[[#This Row],[Input 3]],Table_PI[[#This Row],[Input 4]],'Customer Information'!$AR$12,1,ROW())>0,MeasureCalc(Table_PI[[#This Row],[Hide:\nFormula Name]],Table_PI[[#This Row],[Quantity]],Table_PI[[#This Row],[List 1]],Table_PI[[#This Row],[List 2]],Table_PI[[#This Row],[List 3]],Table_PI[[#This Row],[Size]],Table_PI[[#This Row],[Input 1]],Table_PI[[#This Row],[Input 2]],Table_PI[[#This Row],[Input 3]],Table_PI[[#This Row],[Input 4]],'Customer Information'!$AR$12,7,ROW()),\"No Rebate\"),\"No Rebate\"),0)","v":0},{"$f":"IF(Table_PI[[#This Row],[Hide:\nFormula Name]]<>\"\",IFERROR(IF(MeasureCalc(Table_PI[[#This Row],[Hide:\nFormula Name]],Table_PI[[#This Row],[Quantity]],Table_PI[[#This Row],[List 1]],Table_PI[[#This Row],[List 2]],Table_PI[[#This Row],[List 3]],Table_PI[[#This Row],[Size]],Table_PI[[#This Row],[Input 1]],Table_PI[[#This Row],[Input 2]],Table_PI[[#This Row],[Input 3]],Table_PI[[#This Row],[Input 4]],'Customer Information'!$AR$12,1,ROW())>0,MeasureCalc(Table_PI[[#This Row],[Hide:\nFormula Name]],Table_PI[[#This Row],[Quantity]],Table_PI[[#This Row],[List 1]],Table_PI[[#This Row],[List 2]],Table_PI[[#This Row],[List 3]],Table_PI[[#This Row],[Size]],Table_PI[[#This Row],[Input 1]],Table_PI[[#This Row],[Input 2]],Table_PI[[#This Row],[Input 3]],Table_PI[[#This Row],[Input 4]],'Customer Information'!$AR$12,8,ROW()),\"No Rebate\"),\"No Rebate\"),0)","v":0},{"$f":"IF(Table_PI[[#This Row],[Hide:\nFormula Name]]<>\"\",IF(AND(Table_PI[[#This Row],[Hide:\nFormula Name]]<>\"\",OR(Table_PI[[#This Row],[Rebate]]>0,Table_PI[[#This Row],[Rebate]]=\"No Rebate\")),TRUE,\"MI: Line Item \" & $A142),\"\")","v":""}]
[{"$f":"IF(Table_PI[[#This Row],[Hide:\nFormula Name]]<>\"\",MAX($A$2:A142)+1,\"\")","v":""},null,null,null,null,null,null,null,null,null,null,null,null,null,null,{"$f":"IFERROR(VLOOKUP(Table_PI[[#This Row],[Measure]],'Equipment Lookups'!$C$3:$D$23,2,FALSE),\"\")","v":""},{"$f":"IF(Table_PI[[#This Row],[Hide:\nFormula Name]]<>\"\",IFERROR(IF(MeasureCalc(Table_PI[[#This Row],[Hide:\nFormula Name]],Table_PI[[#This Row],[Quantity]],Table_PI[[#This Row],[List 1]],Table_PI[[#This Row],[List 2]],Table_PI[[#This Row],[List 3]],Table_PI[[#This Row],[Size]],Table_PI[[#This Row],[Input 1]],Table_PI[[#This Row],[Input 2]],Table_PI[[#This Row],[Input 3]],Table_PI[[#This Row],[Input 4]],'Customer Information'!$AR$12,1,ROW())>0,MeasureCalc(Table_PI[[#This Row],[Hide:\nFormula Name]],Table_PI[[#This Row],[Quantity]],Table_PI[[#This Row],[List 1]],Table_PI[[#This Row],[List 2]],Table_PI[[#This Row],[List 3]],Table_PI[[#This Row],[Size]],Table_PI[[#This Row],[Input 1]],Table_PI[[#This Row],[Input 2]],Table_PI[[#This Row],[Input 3]],Table_PI[[#This Row],[Input 4]],'Customer Information'!$AR$12,1,ROW()),\"No Rebate\"),\"No Rebate\"),0)","v":0},{"$f":"IF(Table_PI[[#This Row],[Hide:\nFormula Name]]<>\"\",IFERROR(IF(MeasureCalc(Table_PI[[#This Row],[Hide:\nFormula Name]],Table_PI[[#This Row],[Quantity]],Table_PI[[#This Row],[List 1]],Table_PI[[#This Row],[List 2]],Table_PI[[#This Row],[List 3]],Table_PI[[#This Row],[Size]],Table_PI[[#This Row],[Input 1]],Table_PI[[#This Row],[Input 2]],Table_PI[[#This Row],[Input 3]],Table_PI[[#This Row],[Input 4]],'Customer Information'!$AR$12,1,ROW())>0,MeasureCalc(Table_PI[[#This Row],[Hide:\nFormula Name]],Table_PI[[#This Row],[Quantity]],Table_PI[[#This Row],[List 1]],Table_PI[[#This Row],[List 2]],Table_PI[[#This Row],[List 3]],Table_PI[[#This Row],[Size]],Table_PI[[#This Row],[Input 1]],Table_PI[[#This Row],[Input 2]],Table_PI[[#This Row],[Input 3]],Table_PI[[#This Row],[Input 4]],'Customer Information'!$AR$12,2,ROW()),\"No Rebate\"),\"No Rebate\"),0)","v":0},{"$f":"IF(Table_PI[[#This Row],[Hide:\nFormula Name]]<>\"\",IFERROR(IF(MeasureCalc(Table_PI[[#This Row],[Hide:\nFormula Name]],Table_PI[[#This Row],[Quantity]],Table_PI[[#This Row],[List 1]],Table_PI[[#This Row],[List 2]],Table_PI[[#This Row],[List 3]],Table_PI[[#This Row],[Size]],Table_PI[[#This Row],[Input 1]],Table_PI[[#This Row],[Input 2]],Table_PI[[#This Row],[Input 3]],Table_PI[[#This Row],[Input 4]],'Customer Information'!$AR$12,1,ROW())>0,MeasureCalc(Table_PI[[#This Row],[Hide:\nFormula Name]],Table_PI[[#This Row],[Quantity]],Table_PI[[#This Row],[List 1]],Table_PI[[#This Row],[List 2]],Table_PI[[#This Row],[List 3]],Table_PI[[#This Row],[Size]],Table_PI[[#This Row],[Input 1]],Table_PI[[#This Row],[Input 2]],Table_PI[[#This Row],[Input 3]],Table_PI[[#This Row],[Input 4]],'Customer Information'!$AR$12,3,ROW()),\"No Rebate\"),\"No Rebate\"),0)","v":0},{"$f":"IF(Table_PI[[#This Row],[Hide:\nFormula Name]]<>\"\",IFERROR(IF(MeasureCalc(Table_PI[[#This Row],[Hide:\nFormula Name]],Table_PI[[#This Row],[Quantity]],Table_PI[[#This Row],[List 1]],Table_PI[[#This Row],[List 2]],Table_PI[[#This Row],[List 3]],Table_PI[[#This Row],[Size]],Table_PI[[#This Row],[Input 1]],Table_PI[[#This Row],[Input 2]],Table_PI[[#This Row],[Input 3]],Table_PI[[#This Row],[Input 4]],'Customer Information'!$AR$12,1,ROW())>0,MeasureCalc(Table_PI[[#This Row],[Hide:\nFormula Name]],Table_PI[[#This Row],[Quantity]],Table_PI[[#This Row],[List 1]],Table_PI[[#This Row],[List 2]],Table_PI[[#This Row],[List 3]],Table_PI[[#This Row],[Size]],Table_PI[[#This Row],[Input 1]],Table_PI[[#This Row],[Input 2]],Table_PI[[#This Row],[Input 3]],Table_PI[[#This Row],[Input 4]],'Customer Information'!$AR$12,4,ROW()),\"No Rebate\"),\"No Rebate\"),0)","v":0},{"$f":"IF(Table_PI[[#This Row],[Hide:\nFormula Name]]<>\"\",IFERROR(IF(MeasureCalc(Table_PI[[#This Row],[Hide:\nFormula Name]],Table_PI[[#This Row],[Quantity]],Table_PI[[#This Row],[List 1]],Table_PI[[#This Row],[List 2]],Table_PI[[#This Row],[List 3]],Table_PI[[#This Row],[Size]],Table_PI[[#This Row],[Input 1]],Table_PI[[#This Row],[Input 2]],Table_PI[[#This Row],[Input 3]],Table_PI[[#This Row],[Input 4]],'Customer Information'!$AR$12,1,ROW())>0,MeasureCalc(Table_PI[[#This Row],[Hide:\nFormula Name]],Table_PI[[#This Row],[Quantity]],Table_PI[[#This Row],[List 1]],Table_PI[[#This Row],[List 2]],Table_PI[[#This Row],[List 3]],Table_PI[[#This Row],[Size]],Table_PI[[#This Row],[Input 1]],Table_PI[[#This Row],[Input 2]],Table_PI[[#This Row],[Input 3]],Table_PI[[#This Row],[Input 4]],'Customer Information'!$AR$12,5,ROW()),\"No Rebate\"),\"No Rebate\"),0)","v":0},{"$f":"IF(Table_PI[[#This Row],[Hide:\nFormula Name]]<>\"\",IFERROR(IF(MeasureCalc(Table_PI[[#This Row],[Hide:\nFormula Name]],Table_PI[[#This Row],[Quantity]],Table_PI[[#This Row],[List 1]],Table_PI[[#This Row],[List 2]],Table_PI[[#This Row],[List 3]],Table_PI[[#This Row],[Size]],Table_PI[[#This Row],[Input 1]],Table_PI[[#This Row],[Input 2]],Table_PI[[#This Row],[Input 3]],Table_PI[[#This Row],[Input 4]],'Customer Information'!$AR$12,1,ROW())>0,MeasureCalc(Table_PI[[#This Row],[Hide:\nFormula Name]],Table_PI[[#This Row],[Quantity]],Table_PI[[#This Row],[List 1]],Table_PI[[#This Row],[List 2]],Table_PI[[#This Row],[List 3]],Table_PI[[#This Row],[Size]],Table_PI[[#This Row],[Input 1]],Table_PI[[#This Row],[Input 2]],Table_PI[[#This Row],[Input 3]],Table_PI[[#This Row],[Input 4]],'Customer Information'!$AR$12,6,ROW()),\"No Rebate\"),\"No Rebate\"),0)","v":0},{"$f":"IF(Table_PI[[#This Row],[Hide:\nFormula Name]]<>\"\",IFERROR(IF(MeasureCalc(Table_PI[[#This Row],[Hide:\nFormula Name]],Table_PI[[#This Row],[Quantity]],Table_PI[[#This Row],[List 1]],Table_PI[[#This Row],[List 2]],Table_PI[[#This Row],[List 3]],Table_PI[[#This Row],[Size]],Table_PI[[#This Row],[Input 1]],Table_PI[[#This Row],[Input 2]],Table_PI[[#This Row],[Input 3]],Table_PI[[#This Row],[Input 4]],'Customer Information'!$AR$12,1,ROW())>0,MeasureCalc(Table_PI[[#This Row],[Hide:\nFormula Name]],Table_PI[[#This Row],[Quantity]],Table_PI[[#This Row],[List 1]],Table_PI[[#This Row],[List 2]],Table_PI[[#This Row],[List 3]],Table_PI[[#This Row],[Size]],Table_PI[[#This Row],[Input 1]],Table_PI[[#This Row],[Input 2]],Table_PI[[#This Row],[Input 3]],Table_PI[[#This Row],[Input 4]],'Customer Information'!$AR$12,7,ROW()),\"No Rebate\"),\"No Rebate\"),0)","v":0},{"$f":"IF(Table_PI[[#This Row],[Hide:\nFormula Name]]<>\"\",IFERROR(IF(MeasureCalc(Table_PI[[#This Row],[Hide:\nFormula Name]],Table_PI[[#This Row],[Quantity]],Table_PI[[#This Row],[List 1]],Table_PI[[#This Row],[List 2]],Table_PI[[#This Row],[List 3]],Table_PI[[#This Row],[Size]],Table_PI[[#This Row],[Input 1]],Table_PI[[#This Row],[Input 2]],Table_PI[[#This Row],[Input 3]],Table_PI[[#This Row],[Input 4]],'Customer Information'!$AR$12,1,ROW())>0,MeasureCalc(Table_PI[[#This Row],[Hide:\nFormula Name]],Table_PI[[#This Row],[Quantity]],Table_PI[[#This Row],[List 1]],Table_PI[[#This Row],[List 2]],Table_PI[[#This Row],[List 3]],Table_PI[[#This Row],[Size]],Table_PI[[#This Row],[Input 1]],Table_PI[[#This Row],[Input 2]],Table_PI[[#This Row],[Input 3]],Table_PI[[#This Row],[Input 4]],'Customer Information'!$AR$12,8,ROW()),\"No Rebate\"),\"No Rebate\"),0)","v":0},{"$f":"IF(Table_PI[[#This Row],[Hide:\nFormula Name]]<>\"\",IF(AND(Table_PI[[#This Row],[Hide:\nFormula Name]]<>\"\",OR(Table_PI[[#This Row],[Rebate]]>0,Table_PI[[#This Row],[Rebate]]=\"No Rebate\")),TRUE,\"MI: Line Item \" & $A143),\"\")","v":""}]
[{"$f":"IF(Table_PI[[#This Row],[Hide:\nFormula Name]]<>\"\",MAX($A$2:A143)+1,\"\")","v":""},null,null,null,null,null,null,null,null,null,null,null,null,null,null,{"$f":"IFERROR(VLOOKUP(Table_PI[[#This Row],[Measure]],'Equipment Lookups'!$C$3:$D$23,2,FALSE),\"\")","v":""},{"$f":"IF(Table_PI[[#This Row],[Hide:\nFormula Name]]<>\"\",IFERROR(IF(MeasureCalc(Table_PI[[#This Row],[Hide:\nFormula Name]],Table_PI[[#This Row],[Quantity]],Table_PI[[#This Row],[List 1]],Table_PI[[#This Row],[List 2]],Table_PI[[#This Row],[List 3]],Table_PI[[#This Row],[Size]],Table_PI[[#This Row],[Input 1]],Table_PI[[#This Row],[Input 2]],Table_PI[[#This Row],[Input 3]],Table_PI[[#This Row],[Input 4]],'Customer Information'!$AR$12,1,ROW())>0,MeasureCalc(Table_PI[[#This Row],[Hide:\nFormula Name]],Table_PI[[#This Row],[Quantity]],Table_PI[[#This Row],[List 1]],Table_PI[[#This Row],[List 2]],Table_PI[[#This Row],[List 3]],Table_PI[[#This Row],[Size]],Table_PI[[#This Row],[Input 1]],Table_PI[[#This Row],[Input 2]],Table_PI[[#This Row],[Input 3]],Table_PI[[#This Row],[Input 4]],'Customer Information'!$AR$12,1,ROW()),\"No Rebate\"),\"No Rebate\"),0)","v":0},{"$f":"IF(Table_PI[[#This Row],[Hide:\nFormula Name]]<>\"\",IFERROR(IF(MeasureCalc(Table_PI[[#This Row],[Hide:\nFormula Name]],Table_PI[[#This Row],[Quantity]],Table_PI[[#This Row],[List 1]],Table_PI[[#This Row],[List 2]],Table_PI[[#This Row],[List 3]],Table_PI[[#This Row],[Size]],Table_PI[[#This Row],[Input 1]],Table_PI[[#This Row],[Input 2]],Table_PI[[#This Row],[Input 3]],Table_PI[[#This Row],[Input 4]],'Customer Information'!$AR$12,1,ROW())>0,MeasureCalc(Table_PI[[#This Row],[Hide:\nFormula Name]],Table_PI[[#This Row],[Quantity]],Table_PI[[#This Row],[List 1]],Table_PI[[#This Row],[List 2]],Table_PI[[#This Row],[List 3]],Table_PI[[#This Row],[Size]],Table_PI[[#This Row],[Input 1]],Table_PI[[#This Row],[Input 2]],Table_PI[[#This Row],[Input 3]],Table_PI[[#This Row],[Input 4]],'Customer Information'!$AR$12,2,ROW()),\"No Rebate\"),\"No Rebate\"),0)","v":0},{"$f":"IF(Table_PI[[#This Row],[Hide:\nFormula Name]]<>\"\",IFERROR(IF(MeasureCalc(Table_PI[[#This Row],[Hide:\nFormula Name]],Table_PI[[#This Row],[Quantity]],Table_PI[[#This Row],[List 1]],Table_PI[[#This Row],[List 2]],Table_PI[[#This Row],[List 3]],Table_PI[[#This Row],[Size]],Table_PI[[#This Row],[Input 1]],Table_PI[[#This Row],[Input 2]],Table_PI[[#This Row],[Input 3]],Table_PI[[#This Row],[Input 4]],'Customer Information'!$AR$12,1,ROW())>0,MeasureCalc(Table_PI[[#This Row],[Hide:\nFormula Name]],Table_PI[[#This Row],[Quantity]],Table_PI[[#This Row],[List 1]],Table_PI[[#This Row],[List 2]],Table_PI[[#This Row],[List 3]],Table_PI[[#This Row],[Size]],Table_PI[[#This Row],[Input 1]],Table_PI[[#This Row],[Input 2]],Table_PI[[#This Row],[Input 3]],Table_PI[[#This Row],[Input 4]],'Customer Information'!$AR$12,3,ROW()),\"No Rebate\"),\"No Rebate\"),0)","v":0},{"$f":"IF(Table_PI[[#This Row],[Hide:\nFormula Name]]<>\"\",IFERROR(IF(MeasureCalc(Table_PI[[#This Row],[Hide:\nFormula Name]],Table_PI[[#This Row],[Quantity]],Table_PI[[#This Row],[List 1]],Table_PI[[#This Row],[List 2]],Table_PI[[#This Row],[List 3]],Table_PI[[#This Row],[Size]],Table_PI[[#This Row],[Input 1]],Table_PI[[#This Row],[Input 2]],Table_PI[[#This Row],[Input 3]],Table_PI[[#This Row],[Input 4]],'Customer Information'!$AR$12,1,ROW())>0,MeasureCalc(Table_PI[[#This Row],[Hide:\nFormula Name]],Table_PI[[#This Row],[Quantity]],Table_PI[[#This Row],[List 1]],Table_PI[[#This Row],[List 2]],Table_PI[[#This Row],[List 3]],Table_PI[[#This Row],[Size]],Table_PI[[#This Row],[Input 1]],Table_PI[[#This Row],[Input 2]],Table_PI[[#This Row],[Input 3]],Table_PI[[#This Row],[Input 4]],'Customer Information'!$AR$12,4,ROW()),\"No Rebate\"),\"No Rebate\"),0)","v":0},{"$f":"IF(Table_PI[[#This Row],[Hide:\nFormula Name]]<>\"\",IFERROR(IF(MeasureCalc(Table_PI[[#This Row],[Hide:\nFormula Name]],Table_PI[[#This Row],[Quantity]],Table_PI[[#This Row],[List 1]],Table_PI[[#This Row],[List 2]],Table_PI[[#This Row],[List 3]],Table_PI[[#This Row],[Size]],Table_PI[[#This Row],[Input 1]],Table_PI[[#This Row],[Input 2]],Table_PI[[#This Row],[Input 3]],Table_PI[[#This Row],[Input 4]],'Customer Information'!$AR$12,1,ROW())>0,MeasureCalc(Table_PI[[#This Row],[Hide:\nFormula Name]],Table_PI[[#This Row],[Quantity]],Table_PI[[#This Row],[List 1]],Table_PI[[#This Row],[List 2]],Table_PI[[#This Row],[List 3]],Table_PI[[#This Row],[Size]],Table_PI[[#This Row],[Input 1]],Table_PI[[#This Row],[Input 2]],Table_PI[[#This Row],[Input 3]],Table_PI[[#This Row],[Input 4]],'Customer Information'!$AR$12,5,ROW()),\"No Rebate\"),\"No Rebate\"),0)","v":0},{"$f":"IF(Table_PI[[#This Row],[Hide:\nFormula Name]]<>\"\",IFERROR(IF(MeasureCalc(Table_PI[[#This Row],[Hide:\nFormula Name]],Table_PI[[#This Row],[Quantity]],Table_PI[[#This Row],[List 1]],Table_PI[[#This Row],[List 2]],Table_PI[[#This Row],[List 3]],Table_PI[[#This Row],[Size]],Table_PI[[#This Row],[Input 1]],Table_PI[[#This Row],[Input 2]],Table_PI[[#This Row],[Input 3]],Table_PI[[#This Row],[Input 4]],'Customer Information'!$AR$12,1,ROW())>0,MeasureCalc(Table_PI[[#This Row],[Hide:\nFormula Name]],Table_PI[[#This Row],[Quantity]],Table_PI[[#This Row],[List 1]],Table_PI[[#This Row],[List 2]],Table_PI[[#This Row],[List 3]],Table_PI[[#This Row],[Size]],Table_PI[[#This Row],[Input 1]],Table_PI[[#This Row],[Input 2]],Table_PI[[#This Row],[Input 3]],Table_PI[[#This Row],[Input 4]],'Customer Information'!$AR$12,6,ROW()),\"No Rebate\"),\"No Rebate\"),0)","v":0},{"$f":"IF(Table_PI[[#This Row],[Hide:\nFormula Name]]<>\"\",IFERROR(IF(MeasureCalc(Table_PI[[#This Row],[Hide:\nFormula Name]],Table_PI[[#This Row],[Quantity]],Table_PI[[#This Row],[List 1]],Table_PI[[#This Row],[List 2]],Table_PI[[#This Row],[List 3]],Table_PI[[#This Row],[Size]],Table_PI[[#This Row],[Input 1]],Table_PI[[#This Row],[Input 2]],Table_PI[[#This Row],[Input 3]],Table_PI[[#This Row],[Input 4]],'Customer Information'!$AR$12,1,ROW())>0,MeasureCalc(Table_PI[[#This Row],[Hide:\nFormula Name]],Table_PI[[#This Row],[Quantity]],Table_PI[[#This Row],[List 1]],Table_PI[[#This Row],[List 2]],Table_PI[[#This Row],[List 3]],Table_PI[[#This Row],[Size]],Table_PI[[#This Row],[Input 1]],Table_PI[[#This Row],[Input 2]],Table_PI[[#This Row],[Input 3]],Table_PI[[#This Row],[Input 4]],'Customer Information'!$AR$12,7,ROW()),\"No Rebate\"),\"No Rebate\"),0)","v":0},{"$f":"IF(Table_PI[[#This Row],[Hide:\nFormula Name]]<>\"\",IFERROR(IF(MeasureCalc(Table_PI[[#This Row],[Hide:\nFormula Name]],Table_PI[[#This Row],[Quantity]],Table_PI[[#This Row],[List 1]],Table_PI[[#This Row],[List 2]],Table_PI[[#This Row],[List 3]],Table_PI[[#This Row],[Size]],Table_PI[[#This Row],[Input 1]],Table_PI[[#This Row],[Input 2]],Table_PI[[#This Row],[Input 3]],Table_PI[[#This Row],[Input 4]],'Customer Information'!$AR$12,1,ROW())>0,MeasureCalc(Table_PI[[#This Row],[Hide:\nFormula Name]],Table_PI[[#This Row],[Quantity]],Table_PI[[#This Row],[List 1]],Table_PI[[#This Row],[List 2]],Table_PI[[#This Row],[List 3]],Table_PI[[#This Row],[Size]],Table_PI[[#This Row],[Input 1]],Table_PI[[#This Row],[Input 2]],Table_PI[[#This Row],[Input 3]],Table_PI[[#This Row],[Input 4]],'Customer Information'!$AR$12,8,ROW()),\"No Rebate\"),\"No Rebate\"),0)","v":0},{"$f":"IF(Table_PI[[#This Row],[Hide:\nFormula Name]]<>\"\",IF(AND(Table_PI[[#This Row],[Hide:\nFormula Name]]<>\"\",OR(Table_PI[[#This Row],[Rebate]]>0,Table_PI[[#This Row],[Rebate]]=\"No Rebate\")),TRUE,\"MI: Line Item \" & $A144),\"\")","v":""}]
[{"$f":"IF(Table_PI[[#This Row],[Hide:\nFormula Name]]<>\"\",MAX($A$2:A144)+1,\"\")","v":""},null,null,null,null,null,null,null,null,null,null,null,null,null,null,{"$f":"IFERROR(VLOOKUP(Table_PI[[#This Row],[Measure]],'Equipment Lookups'!$C$3:$D$23,2,FALSE),\"\")","v":""},{"$f":"IF(Table_PI[[#This Row],[Hide:\nFormula Name]]<>\"\",IFERROR(IF(MeasureCalc(Table_PI[[#This Row],[Hide:\nFormula Name]],Table_PI[[#This Row],[Quantity]],Table_PI[[#This Row],[List 1]],Table_PI[[#This Row],[List 2]],Table_PI[[#This Row],[List 3]],Table_PI[[#This Row],[Size]],Table_PI[[#This Row],[Input 1]],Table_PI[[#This Row],[Input 2]],Table_PI[[#This Row],[Input 3]],Table_PI[[#This Row],[Input 4]],'Customer Information'!$AR$12,1,ROW())>0,MeasureCalc(Table_PI[[#This Row],[Hide:\nFormula Name]],Table_PI[[#This Row],[Quantity]],Table_PI[[#This Row],[List 1]],Table_PI[[#This Row],[List 2]],Table_PI[[#This Row],[List 3]],Table_PI[[#This Row],[Size]],Table_PI[[#This Row],[Input 1]],Table_PI[[#This Row],[Input 2]],Table_PI[[#This Row],[Input 3]],Table_PI[[#This Row],[Input 4]],'Customer Information'!$AR$12,1,ROW()),\"No Rebate\"),\"No Rebate\"),0)","v":0},{"$f":"IF(Table_PI[[#This Row],[Hide:\nFormula Name]]<>\"\",IFERROR(IF(MeasureCalc(Table_PI[[#This Row],[Hide:\nFormula Name]],Table_PI[[#This Row],[Quantity]],Table_PI[[#This Row],[List 1]],Table_PI[[#This Row],[List 2]],Table_PI[[#This Row],[List 3]],Table_PI[[#This Row],[Size]],Table_PI[[#This Row],[Input 1]],Table_PI[[#This Row],[Input 2]],Table_PI[[#This Row],[Input 3]],Table_PI[[#This Row],[Input 4]],'Customer Information'!$AR$12,1,ROW())>0,MeasureCalc(Table_PI[[#This Row],[Hide:\nFormula Name]],Table_PI[[#This Row],[Quantity]],Table_PI[[#This Row],[List 1]],Table_PI[[#This Row],[List 2]],Table_PI[[#This Row],[List 3]],Table_PI[[#This Row],[Size]],Table_PI[[#This Row],[Input 1]],Table_PI[[#This Row],[Input 2]],Table_PI[[#This Row],[Input 3]],Table_PI[[#This Row],[Input 4]],'Customer Information'!$AR$12,2,ROW()),\"No Rebate\"),\"No Rebate\"),0)","v":0},{"$f":"IF(Table_PI[[#This Row],[Hide:\nFormula Name]]<>\"\",IFERROR(IF(MeasureCalc(Table_PI[[#This Row],[Hide:\nFormula Name]],Table_PI[[#This Row],[Quantity]],Table_PI[[#This Row],[List 1]],Table_PI[[#This Row],[List 2]],Table_PI[[#This Row],[List 3]],Table_PI[[#This Row],[Size]],Table_PI[[#This Row],[Input 1]],Table_PI[[#This Row],[Input 2]],Table_PI[[#This Row],[Input 3]],Table_PI[[#This Row],[Input 4]],'Customer Information'!$AR$12,1,ROW())>0,MeasureCalc(Table_PI[[#This Row],[Hide:\nFormula Name]],Table_PI[[#This Row],[Quantity]],Table_PI[[#This Row],[List 1]],Table_PI[[#This Row],[List 2]],Table_PI[[#This Row],[List 3]],Table_PI[[#This Row],[Size]],Table_PI[[#This Row],[Input 1]],Table_PI[[#This Row],[Input 2]],Table_PI[[#This Row],[Input 3]],Table_PI[[#This Row],[Input 4]],'Customer Information'!$AR$12,3,ROW()),\"No Rebate\"),\"No Rebate\"),0)","v":0},{"$f":"IF(Table_PI[[#This Row],[Hide:\nFormula Name]]<>\"\",IFERROR(IF(MeasureCalc(Table_PI[[#This Row],[Hide:\nFormula Name]],Table_PI[[#This Row],[Quantity]],Table_PI[[#This Row],[List 1]],Table_PI[[#This Row],[List 2]],Table_PI[[#This Row],[List 3]],Table_PI[[#This Row],[Size]],Table_PI[[#This Row],[Input 1]],Table_PI[[#This Row],[Input 2]],Table_PI[[#This Row],[Input 3]],Table_PI[[#This Row],[Input 4]],'Customer Information'!$AR$12,1,ROW())>0,MeasureCalc(Table_PI[[#This Row],[Hide:\nFormula Name]],Table_PI[[#This Row],[Quantity]],Table_PI[[#This Row],[List 1]],Table_PI[[#This Row],[List 2]],Table_PI[[#This Row],[List 3]],Table_PI[[#This Row],[Size]],Table_PI[[#This Row],[Input 1]],Table_PI[[#This Row],[Input 2]],Table_PI[[#This Row],[Input 3]],Table_PI[[#This Row],[Input 4]],'Customer Information'!$AR$12,4,ROW()),\"No Rebate\"),\"No Rebate\"),0)","v":0},{"$f":"IF(Table_PI[[#This Row],[Hide:\nFormula Name]]<>\"\",IFERROR(IF(MeasureCalc(Table_PI[[#This Row],[Hide:\nFormula Name]],Table_PI[[#This Row],[Quantity]],Table_PI[[#This Row],[List 1]],Table_PI[[#This Row],[List 2]],Table_PI[[#This Row],[List 3]],Table_PI[[#This Row],[Size]],Table_PI[[#This Row],[Input 1]],Table_PI[[#This Row],[Input 2]],Table_PI[[#This Row],[Input 3]],Table_PI[[#This Row],[Input 4]],'Customer Information'!$AR$12,1,ROW())>0,MeasureCalc(Table_PI[[#This Row],[Hide:\nFormula Name]],Table_PI[[#This Row],[Quantity]],Table_PI[[#This Row],[List 1]],Table_PI[[#This Row],[List 2]],Table_PI[[#This Row],[List 3]],Table_PI[[#This Row],[Size]],Table_PI[[#This Row],[Input 1]],Table_PI[[#This Row],[Input 2]],Table_PI[[#This Row],[Input 3]],Table_PI[[#This Row],[Input 4]],'Customer Information'!$AR$12,5,ROW()),\"No Rebate\"),\"No Rebate\"),0)","v":0},{"$f":"IF(Table_PI[[#This Row],[Hide:\nFormula Name]]<>\"\",IFERROR(IF(MeasureCalc(Table_PI[[#This Row],[Hide:\nFormula Name]],Table_PI[[#This Row],[Quantity]],Table_PI[[#This Row],[List 1]],Table_PI[[#This Row],[List 2]],Table_PI[[#This Row],[List 3]],Table_PI[[#This Row],[Size]],Table_PI[[#This Row],[Input 1]],Table_PI[[#This Row],[Input 2]],Table_PI[[#This Row],[Input 3]],Table_PI[[#This Row],[Input 4]],'Customer Information'!$AR$12,1,ROW())>0,MeasureCalc(Table_PI[[#This Row],[Hide:\nFormula Name]],Table_PI[[#This Row],[Quantity]],Table_PI[[#This Row],[List 1]],Table_PI[[#This Row],[List 2]],Table_PI[[#This Row],[List 3]],Table_PI[[#This Row],[Size]],Table_PI[[#This Row],[Input 1]],Table_PI[[#This Row],[Input 2]],Table_PI[[#This Row],[Input 3]],Table_PI[[#This Row],[Input 4]],'Customer Information'!$AR$12,6,ROW()),\"No Rebate\"),\"No Rebate\"),0)","v":0},{"$f":"IF(Table_PI[[#This Row],[Hide:\nFormula Name]]<>\"\",IFERROR(IF(MeasureCalc(Table_PI[[#This Row],[Hide:\nFormula Name]],Table_PI[[#This Row],[Quantity]],Table_PI[[#This Row],[List 1]],Table_PI[[#This Row],[List 2]],Table_PI[[#This Row],[List 3]],Table_PI[[#This Row],[Size]],Table_PI[[#This Row],[Input 1]],Table_PI[[#This Row],[Input 2]],Table_PI[[#This Row],[Input 3]],Table_PI[[#This Row],[Input 4]],'Customer Information'!$AR$12,1,ROW())>0,MeasureCalc(Table_PI[[#This Row],[Hide:\nFormula Name]],Table_PI[[#This Row],[Quantity]],Table_PI[[#This Row],[List 1]],Table_PI[[#This Row],[List 2]],Table_PI[[#This Row],[List 3]],Table_PI[[#This Row],[Size]],Table_PI[[#This Row],[Input 1]],Table_PI[[#This Row],[Input 2]],Table_PI[[#This Row],[Input 3]],Table_PI[[#This Row],[Input 4]],'Customer Information'!$AR$12,7,ROW()),\"No Rebate\"),\"No Rebate\"),0)","v":0},{"$f":"IF(Table_PI[[#This Row],[Hide:\nFormula Name]]<>\"\",IFERROR(IF(MeasureCalc(Table_PI[[#This Row],[Hide:\nFormula Name]],Table_PI[[#This Row],[Quantity]],Table_PI[[#This Row],[List 1]],Table_PI[[#This Row],[List 2]],Table_PI[[#This Row],[List 3]],Table_PI[[#This Row],[Size]],Table_PI[[#This Row],[Input 1]],Table_PI[[#This Row],[Input 2]],Table_PI[[#This Row],[Input 3]],Table_PI[[#This Row],[Input 4]],'Customer Information'!$AR$12,1,ROW())>0,MeasureCalc(Table_PI[[#This Row],[Hide:\nFormula Name]],Table_PI[[#This Row],[Quantity]],Table_PI[[#This Row],[List 1]],Table_PI[[#This Row],[List 2]],Table_PI[[#This Row],[List 3]],Table_PI[[#This Row],[Size]],Table_PI[[#This Row],[Input 1]],Table_PI[[#This Row],[Input 2]],Table_PI[[#This Row],[Input 3]],Table_PI[[#This Row],[Input 4]],'Customer Information'!$AR$12,8,ROW()),\"No Rebate\"),\"No Rebate\"),0)","v":0},{"$f":"IF(Table_PI[[#This Row],[Hide:\nFormula Name]]<>\"\",IF(AND(Table_PI[[#This Row],[Hide:\nFormula Name]]<>\"\",OR(Table_PI[[#This Row],[Rebate]]>0,Table_PI[[#This Row],[Rebate]]=\"No Rebate\")),TRUE,\"MI: Line Item \" & $A145),\"\")","v":""}]
[{"$f":"IF(Table_PI[[#This Row],[Hide:\nFormula Name]]<>\"\",MAX($A$2:A145)+1,\"\")","v":""},null,null,null,null,null,null,null,null,null,null,null,null,null,null,{"$f":"IFERROR(VLOOKUP(Table_PI[[#This Row],[Measure]],'Equipment Lookups'!$C$3:$D$23,2,FALSE),\"\")","v":""},{"$f":"IF(Table_PI[[#This Row],[Hide:\nFormula Name]]<>\"\",IFERROR(IF(MeasureCalc(Table_PI[[#This Row],[Hide:\nFormula Name]],Table_PI[[#This Row],[Quantity]],Table_PI[[#This Row],[List 1]],Table_PI[[#This Row],[List 2]],Table_PI[[#This Row],[List 3]],Table_PI[[#This Row],[Size]],Table_PI[[#This Row],[Input 1]],Table_PI[[#This Row],[Input 2]],Table_PI[[#This Row],[Input 3]],Table_PI[[#This Row],[Input 4]],'Customer Information'!$AR$12,1,ROW())>0,MeasureCalc(Table_PI[[#This Row],[Hide:\nFormula Name]],Table_PI[[#This Row],[Quantity]],Table_PI[[#This Row],[List 1]],Table_PI[[#This Row],[List 2]],Table_PI[[#This Row],[List 3]],Table_PI[[#This Row],[Size]],Table_PI[[#This Row],[Input 1]],Table_PI[[#This Row],[Input 2]],Table_PI[[#This Row],[Input 3]],Table_PI[[#This Row],[Input 4]],'Customer Information'!$AR$12,1,ROW()),\"No Rebate\"),\"No Rebate\"),0)","v":0},{"$f":"IF(Table_PI[[#This Row],[Hide:\nFormula Name]]<>\"\",IFERROR(IF(MeasureCalc(Table_PI[[#This Row],[Hide:\nFormula Name]],Table_PI[[#This Row],[Quantity]],Table_PI[[#This Row],[List 1]],Table_PI[[#This Row],[List 2]],Table_PI[[#This Row],[List 3]],Table_PI[[#This Row],[Size]],Table_PI[[#This Row],[Input 1]],Table_PI[[#This Row],[Input 2]],Table_PI[[#This Row],[Input 3]],Table_PI[[#This Row],[Input 4]],'Customer Information'!$AR$12,1,ROW())>0,MeasureCalc(Table_PI[[#This Row],[Hide:\nFormula Name]],Table_PI[[#This Row],[Quantity]],Table_PI[[#This Row],[List 1]],Table_PI[[#This Row],[List 2]],Table_PI[[#This Row],[List 3]],Table_PI[[#This Row],[Size]],Table_PI[[#This Row],[Input 1]],Table_PI[[#This Row],[Input 2]],Table_PI[[#This Row],[Input 3]],Table_PI[[#This Row],[Input 4]],'Customer Information'!$AR$12,2,ROW()),\"No Rebate\"),\"No Rebate\"),0)","v":0},{"$f":"IF(Table_PI[[#This Row],[Hide:\nFormula Name]]<>\"\",IFERROR(IF(MeasureCalc(Table_PI[[#This Row],[Hide:\nFormula Name]],Table_PI[[#This Row],[Quantity]],Table_PI[[#This Row],[List 1]],Table_PI[[#This Row],[List 2]],Table_PI[[#This Row],[List 3]],Table_PI[[#This Row],[Size]],Table_PI[[#This Row],[Input 1]],Table_PI[[#This Row],[Input 2]],Table_PI[[#This Row],[Input 3]],Table_PI[[#This Row],[Input 4]],'Customer Information'!$AR$12,1,ROW())>0,MeasureCalc(Table_PI[[#This Row],[Hide:\nFormula Name]],Table_PI[[#This Row],[Quantity]],Table_PI[[#This Row],[List 1]],Table_PI[[#This Row],[List 2]],Table_PI[[#This Row],[List 3]],Table_PI[[#This Row],[Size]],Table_PI[[#This Row],[Input 1]],Table_PI[[#This Row],[Input 2]],Table_PI[[#This Row],[Input 3]],Table_PI[[#This Row],[Input 4]],'Customer Information'!$AR$12,3,ROW()),\"No Rebate\"),\"No Rebate\"),0)","v":0},{"$f":"IF(Table_PI[[#This Row],[Hide:\nFormula Name]]<>\"\",IFERROR(IF(MeasureCalc(Table_PI[[#This Row],[Hide:\nFormula Name]],Table_PI[[#This Row],[Quantity]],Table_PI[[#This Row],[List 1]],Table_PI[[#This Row],[List 2]],Table_PI[[#This Row],[List 3]],Table_PI[[#This Row],[Size]],Table_PI[[#This Row],[Input 1]],Table_PI[[#This Row],[Input 2]],Table_PI[[#This Row],[Input 3]],Table_PI[[#This Row],[Input 4]],'Customer Information'!$AR$12,1,ROW())>0,MeasureCalc(Table_PI[[#This Row],[Hide:\nFormula Name]],Table_PI[[#This Row],[Quantity]],Table_PI[[#This Row],[List 1]],Table_PI[[#This Row],[List 2]],Table_PI[[#This Row],[List 3]],Table_PI[[#This Row],[Size]],Table_PI[[#This Row],[Input 1]],Table_PI[[#This Row],[Input 2]],Table_PI[[#This Row],[Input 3]],Table_PI[[#This Row],[Input 4]],'Customer Information'!$AR$12,4,ROW()),\"No Rebate\"),\"No Rebate\"),0)","v":0},{"$f":"IF(Table_PI[[#This Row],[Hide:\nFormula Name]]<>\"\",IFERROR(IF(MeasureCalc(Table_PI[[#This Row],[Hide:\nFormula Name]],Table_PI[[#This Row],[Quantity]],Table_PI[[#This Row],[List 1]],Table_PI[[#This Row],[List 2]],Table_PI[[#This Row],[List 3]],Table_PI[[#This Row],[Size]],Table_PI[[#This Row],[Input 1]],Table_PI[[#This Row],[Input 2]],Table_PI[[#This Row],[Input 3]],Table_PI[[#This Row],[Input 4]],'Customer Information'!$AR$12,1,ROW())>0,MeasureCalc(Table_PI[[#This Row],[Hide:\nFormula Name]],Table_PI[[#This Row],[Quantity]],Table_PI[[#This Row],[List 1]],Table_PI[[#This Row],[List 2]],Table_PI[[#This Row],[List 3]],Table_PI[[#This Row],[Size]],Table_PI[[#This Row],[Input 1]],Table_PI[[#This Row],[Input 2]],Table_PI[[#This Row],[Input 3]],Table_PI[[#This Row],[Input 4]],'Customer Information'!$AR$12,5,ROW()),\"No Rebate\"),\"No Rebate\"),0)","v":0},{"$f":"IF(Table_PI[[#This Row],[Hide:\nFormula Name]]<>\"\",IFERROR(IF(MeasureCalc(Table_PI[[#This Row],[Hide:\nFormula Name]],Table_PI[[#This Row],[Quantity]],Table_PI[[#This Row],[List 1]],Table_PI[[#This Row],[List 2]],Table_PI[[#This Row],[List 3]],Table_PI[[#This Row],[Size]],Table_PI[[#This Row],[Input 1]],Table_PI[[#This Row],[Input 2]],Table_PI[[#This Row],[Input 3]],Table_PI[[#This Row],[Input 4]],'Customer Information'!$AR$12,1,ROW())>0,MeasureCalc(Table_PI[[#This Row],[Hide:\nFormula Name]],Table_PI[[#This Row],[Quantity]],Table_PI[[#This Row],[List 1]],Table_PI[[#This Row],[List 2]],Table_PI[[#This Row],[List 3]],Table_PI[[#This Row],[Size]],Table_PI[[#This Row],[Input 1]],Table_PI[[#This Row],[Input 2]],Table_PI[[#This Row],[Input 3]],Table_PI[[#This Row],[Input 4]],'Customer Information'!$AR$12,6,ROW()),\"No Rebate\"),\"No Rebate\"),0)","v":0},{"$f":"IF(Table_PI[[#This Row],[Hide:\nFormula Name]]<>\"\",IFERROR(IF(MeasureCalc(Table_PI[[#This Row],[Hide:\nFormula Name]],Table_PI[[#This Row],[Quantity]],Table_PI[[#This Row],[List 1]],Table_PI[[#This Row],[List 2]],Table_PI[[#This Row],[List 3]],Table_PI[[#This Row],[Size]],Table_PI[[#This Row],[Input 1]],Table_PI[[#This Row],[Input 2]],Table_PI[[#This Row],[Input 3]],Table_PI[[#This Row],[Input 4]],'Customer Information'!$AR$12,1,ROW())>0,MeasureCalc(Table_PI[[#This Row],[Hide:\nFormula Name]],Table_PI[[#This Row],[Quantity]],Table_PI[[#This Row],[List 1]],Table_PI[[#This Row],[List 2]],Table_PI[[#This Row],[List 3]],Table_PI[[#This Row],[Size]],Table_PI[[#This Row],[Input 1]],Table_PI[[#This Row],[Input 2]],Table_PI[[#This Row],[Input 3]],Table_PI[[#This Row],[Input 4]],'Customer Information'!$AR$12,7,ROW()),\"No Rebate\"),\"No Rebate\"),0)","v":0},{"$f":"IF(Table_PI[[#This Row],[Hide:\nFormula Name]]<>\"\",IFERROR(IF(MeasureCalc(Table_PI[[#This Row],[Hide:\nFormula Name]],Table_PI[[#This Row],[Quantity]],Table_PI[[#This Row],[List 1]],Table_PI[[#This Row],[List 2]],Table_PI[[#This Row],[List 3]],Table_PI[[#This Row],[Size]],Table_PI[[#This Row],[Input 1]],Table_PI[[#This Row],[Input 2]],Table_PI[[#This Row],[Input 3]],Table_PI[[#This Row],[Input 4]],'Customer Information'!$AR$12,1,ROW())>0,MeasureCalc(Table_PI[[#This Row],[Hide:\nFormula Name]],Table_PI[[#This Row],[Quantity]],Table_PI[[#This Row],[List 1]],Table_PI[[#This Row],[List 2]],Table_PI[[#This Row],[List 3]],Table_PI[[#This Row],[Size]],Table_PI[[#This Row],[Input 1]],Table_PI[[#This Row],[Input 2]],Table_PI[[#This Row],[Input 3]],Table_PI[[#This Row],[Input 4]],'Customer Information'!$AR$12,8,ROW()),\"No Rebate\"),\"No Rebate\"),0)","v":0},{"$f":"IF(Table_PI[[#This Row],[Hide:\nFormula Name]]<>\"\",IF(AND(Table_PI[[#This Row],[Hide:\nFormula Name]]<>\"\",OR(Table_PI[[#This Row],[Rebate]]>0,Table_PI[[#This Row],[Rebate]]=\"No Rebate\")),TRUE,\"MI: Line Item \" & $A146),\"\")","v":""}]
[{"$f":"IF(Table_PI[[#This Row],[Hide:\nFormula Name]]<>\"\",MAX($A$2:A146)+1,\"\")","v":""},null,null,null,null,null,null,null,null,null,null,null,null,null,null,{"$f":"IFERROR(VLOOKUP(Table_PI[[#This Row],[Measure]],'Equipment Lookups'!$C$3:$D$23,2,FALSE),\"\")","v":""},{"$f":"IF(Table_PI[[#This Row],[Hide:\nFormula Name]]<>\"\",IFERROR(IF(MeasureCalc(Table_PI[[#This Row],[Hide:\nFormula Name]],Table_PI[[#This Row],[Quantity]],Table_PI[[#This Row],[List 1]],Table_PI[[#This Row],[List 2]],Table_PI[[#This Row],[List 3]],Table_PI[[#This Row],[Size]],Table_PI[[#This Row],[Input 1]],Table_PI[[#This Row],[Input 2]],Table_PI[[#This Row],[Input 3]],Table_PI[[#This Row],[Input 4]],'Customer Information'!$AR$12,1,ROW())>0,MeasureCalc(Table_PI[[#This Row],[Hide:\nFormula Name]],Table_PI[[#This Row],[Quantity]],Table_PI[[#This Row],[List 1]],Table_PI[[#This Row],[List 2]],Table_PI[[#This Row],[List 3]],Table_PI[[#This Row],[Size]],Table_PI[[#This Row],[Input 1]],Table_PI[[#This Row],[Input 2]],Table_PI[[#This Row],[Input 3]],Table_PI[[#This Row],[Input 4]],'Customer Information'!$AR$12,1,ROW()),\"No Rebate\"),\"No Rebate\"),0)","v":0},{"$f":"IF(Table_PI[[#This Row],[Hide:\nFormula Name]]<>\"\",IFERROR(IF(MeasureCalc(Table_PI[[#This Row],[Hide:\nFormula Name]],Table_PI[[#This Row],[Quantity]],Table_PI[[#This Row],[List 1]],Table_PI[[#This Row],[List 2]],Table_PI[[#This Row],[List 3]],Table_PI[[#This Row],[Size]],Table_PI[[#This Row],[Input 1]],Table_PI[[#This Row],[Input 2]],Table_PI[[#This Row],[Input 3]],Table_PI[[#This Row],[Input 4]],'Customer Information'!$AR$12,1,ROW())>0,MeasureCalc(Table_PI[[#This Row],[Hide:\nFormula Name]],Table_PI[[#This Row],[Quantity]],Table_PI[[#This Row],[List 1]],Table_PI[[#This Row],[List 2]],Table_PI[[#This Row],[List 3]],Table_PI[[#This Row],[Size]],Table_PI[[#This Row],[Input 1]],Table_PI[[#This Row],[Input 2]],Table_PI[[#This Row],[Input 3]],Table_PI[[#This Row],[Input 4]],'Customer Information'!$AR$12,2,ROW()),\"No Rebate\"),\"No Rebate\"),0)","v":0},{"$f":"IF(Table_PI[[#This Row],[Hide:\nFormula Name]]<>\"\",IFERROR(IF(MeasureCalc(Table_PI[[#This Row],[Hide:\nFormula Name]],Table_PI[[#This Row],[Quantity]],Table_PI[[#This Row],[List 1]],Table_PI[[#This Row],[List 2]],Table_PI[[#This Row],[List 3]],Table_PI[[#This Row],[Size]],Table_PI[[#This Row],[Input 1]],Table_PI[[#This Row],[Input 2]],Table_PI[[#This Row],[Input 3]],Table_PI[[#This Row],[Input 4]],'Customer Information'!$AR$12,1,ROW())>0,MeasureCalc(Table_PI[[#This Row],[Hide:\nFormula Name]],Table_PI[[#This Row],[Quantity]],Table_PI[[#This Row],[List 1]],Table_PI[[#This Row],[List 2]],Table_PI[[#This Row],[List 3]],Table_PI[[#This Row],[Size]],Table_PI[[#This Row],[Input 1]],Table_PI[[#This Row],[Input 2]],Table_PI[[#This Row],[Input 3]],Table_PI[[#This Row],[Input 4]],'Customer Information'!$AR$12,3,ROW()),\"No Rebate\"),\"No Rebate\"),0)","v":0},{"$f":"IF(Table_PI[[#This Row],[Hide:\nFormula Name]]<>\"\",IFERROR(IF(MeasureCalc(Table_PI[[#This Row],[Hide:\nFormula Name]],Table_PI[[#This Row],[Quantity]],Table_PI[[#This Row],[List 1]],Table_PI[[#This Row],[List 2]],Table_PI[[#This Row],[List 3]],Table_PI[[#This Row],[Size]],Table_PI[[#This Row],[Input 1]],Table_PI[[#This Row],[Input 2]],Table_PI[[#This Row],[Input 3]],Table_PI[[#This Row],[Input 4]],'Customer Information'!$AR$12,1,ROW())>0,MeasureCalc(Table_PI[[#This Row],[Hide:\nFormula Name]],Table_PI[[#This Row],[Quantity]],Table_PI[[#This Row],[List 1]],Table_PI[[#This Row],[List 2]],Table_PI[[#This Row],[List 3]],Table_PI[[#This Row],[Size]],Table_PI[[#This Row],[Input 1]],Table_PI[[#This Row],[Input 2]],Table_PI[[#This Row],[Input 3]],Table_PI[[#This Row],[Input 4]],'Customer Information'!$AR$12,4,ROW()),\"No Rebate\"),\"No Rebate\"),0)","v":0},{"$f":"IF(Table_PI[[#This Row],[Hide:\nFormula Name]]<>\"\",IFERROR(IF(MeasureCalc(Table_PI[[#This Row],[Hide:\nFormula Name]],Table_PI[[#This Row],[Quantity]],Table_PI[[#This Row],[List 1]],Table_PI[[#This Row],[List 2]],Table_PI[[#This Row],[List 3]],Table_PI[[#This Row],[Size]],Table_PI[[#This Row],[Input 1]],Table_PI[[#This Row],[Input 2]],Table_PI[[#This Row],[Input 3]],Table_PI[[#This Row],[Input 4]],'Customer Information'!$AR$12,1,ROW())>0,MeasureCalc(Table_PI[[#This Row],[Hide:\nFormula Name]],Table_PI[[#This Row],[Quantity]],Table_PI[[#This Row],[List 1]],Table_PI[[#This Row],[List 2]],Table_PI[[#This Row],[List 3]],Table_PI[[#This Row],[Size]],Table_PI[[#This Row],[Input 1]],Table_PI[[#This Row],[Input 2]],Table_PI[[#This Row],[Input 3]],Table_PI[[#This Row],[Input 4]],'Customer Information'!$AR$12,5,ROW()),\"No Rebate\"),\"No Rebate\"),0)","v":0},{"$f":"IF(Table_PI[[#This Row],[Hide:\nFormula Name]]<>\"\",IFERROR(IF(MeasureCalc(Table_PI[[#This Row],[Hide:\nFormula Name]],Table_PI[[#This Row],[Quantity]],Table_PI[[#This Row],[List 1]],Table_PI[[#This Row],[List 2]],Table_PI[[#This Row],[List 3]],Table_PI[[#This Row],[Size]],Table_PI[[#This Row],[Input 1]],Table_PI[[#This Row],[Input 2]],Table_PI[[#This Row],[Input 3]],Table_PI[[#This Row],[Input 4]],'Customer Information'!$AR$12,1,ROW())>0,MeasureCalc(Table_PI[[#This Row],[Hide:\nFormula Name]],Table_PI[[#This Row],[Quantity]],Table_PI[[#This Row],[List 1]],Table_PI[[#This Row],[List 2]],Table_PI[[#This Row],[List 3]],Table_PI[[#This Row],[Size]],Table_PI[[#This Row],[Input 1]],Table_PI[[#This Row],[Input 2]],Table_PI[[#This Row],[Input 3]],Table_PI[[#This Row],[Input 4]],'Customer Information'!$AR$12,6,ROW()),\"No Rebate\"),\"No Rebate\"),0)","v":0},{"$f":"IF(Table_PI[[#This Row],[Hide:\nFormula Name]]<>\"\",IFERROR(IF(MeasureCalc(Table_PI[[#This Row],[Hide:\nFormula Name]],Table_PI[[#This Row],[Quantity]],Table_PI[[#This Row],[List 1]],Table_PI[[#This Row],[List 2]],Table_PI[[#This Row],[List 3]],Table_PI[[#This Row],[Size]],Table_PI[[#This Row],[Input 1]],Table_PI[[#This Row],[Input 2]],Table_PI[[#This Row],[Input 3]],Table_PI[[#This Row],[Input 4]],'Customer Information'!$AR$12,1,ROW())>0,MeasureCalc(Table_PI[[#This Row],[Hide:\nFormula Name]],Table_PI[[#This Row],[Quantity]],Table_PI[[#This Row],[List 1]],Table_PI[[#This Row],[List 2]],Table_PI[[#This Row],[List 3]],Table_PI[[#This Row],[Size]],Table_PI[[#This Row],[Input 1]],Table_PI[[#This Row],[Input 2]],Table_PI[[#This Row],[Input 3]],Table_PI[[#This Row],[Input 4]],'Customer Information'!$AR$12,7,ROW()),\"No Rebate\"),\"No Rebate\"),0)","v":0},{"$f":"IF(Table_PI[[#This Row],[Hide:\nFormula Name]]<>\"\",IFERROR(IF(MeasureCalc(Table_PI[[#This Row],[Hide:\nFormula Name]],Table_PI[[#This Row],[Quantity]],Table_PI[[#This Row],[List 1]],Table_PI[[#This Row],[List 2]],Table_PI[[#This Row],[List 3]],Table_PI[[#This Row],[Size]],Table_PI[[#This Row],[Input 1]],Table_PI[[#This Row],[Input 2]],Table_PI[[#This Row],[Input 3]],Table_PI[[#This Row],[Input 4]],'Customer Information'!$AR$12,1,ROW())>0,MeasureCalc(Table_PI[[#This Row],[Hide:\nFormula Name]],Table_PI[[#This Row],[Quantity]],Table_PI[[#This Row],[List 1]],Table_PI[[#This Row],[List 2]],Table_PI[[#This Row],[List 3]],Table_PI[[#This Row],[Size]],Table_PI[[#This Row],[Input 1]],Table_PI[[#This Row],[Input 2]],Table_PI[[#This Row],[Input 3]],Table_PI[[#This Row],[Input 4]],'Customer Information'!$AR$12,8,ROW()),\"No Rebate\"),\"No Rebate\"),0)","v":0},{"$f":"IF(Table_PI[[#This Row],[Hide:\nFormula Name]]<>\"\",IF(AND(Table_PI[[#This Row],[Hide:\nFormula Name]]<>\"\",OR(Table_PI[[#This Row],[Rebate]]>0,Table_PI[[#This Row],[Rebate]]=\"No Rebate\")),TRUE,\"MI: Line Item \" & $A147),\"\")","v":""}]
[{"$f":"IF(Table_PI[[#This Row],[Hide:\nFormula Name]]<>\"\",MAX($A$2:A147)+1,\"\")","v":""},null,null,null,null,null,null,null,null,null,null,null,null,null,null,{"$f":"IFERROR(VLOOKUP(Table_PI[[#This Row],[Measure]],'Equipment Lookups'!$C$3:$D$23,2,FALSE),\"\")","v":""},{"$f":"IF(Table_PI[[#This Row],[Hide:\nFormula Name]]<>\"\",IFERROR(IF(MeasureCalc(Table_PI[[#This Row],[Hide:\nFormula Name]],Table_PI[[#This Row],[Quantity]],Table_PI[[#This Row],[List 1]],Table_PI[[#This Row],[List 2]],Table_PI[[#This Row],[List 3]],Table_PI[[#This Row],[Size]],Table_PI[[#This Row],[Input 1]],Table_PI[[#This Row],[Input 2]],Table_PI[[#This Row],[Input 3]],Table_PI[[#This Row],[Input 4]],'Customer Information'!$AR$12,1,ROW())>0,MeasureCalc(Table_PI[[#This Row],[Hide:\nFormula Name]],Table_PI[[#This Row],[Quantity]],Table_PI[[#This Row],[List 1]],Table_PI[[#This Row],[List 2]],Table_PI[[#This Row],[List 3]],Table_PI[[#This Row],[Size]],Table_PI[[#This Row],[Input 1]],Table_PI[[#This Row],[Input 2]],Table_PI[[#This Row],[Input 3]],Table_PI[[#This Row],[Input 4]],'Customer Information'!$AR$12,1,ROW()),\"No Rebate\"),\"No Rebate\"),0)","v":0},{"$f":"IF(Table_PI[[#This Row],[Hide:\nFormula Name]]<>\"\",IFERROR(IF(MeasureCalc(Table_PI[[#This Row],[Hide:\nFormula Name]],Table_PI[[#This Row],[Quantity]],Table_PI[[#This Row],[List 1]],Table_PI[[#This Row],[List 2]],Table_PI[[#This Row],[List 3]],Table_PI[[#This Row],[Size]],Table_PI[[#This Row],[Input 1]],Table_PI[[#This Row],[Input 2]],Table_PI[[#This Row],[Input 3]],Table_PI[[#This Row],[Input 4]],'Customer Information'!$AR$12,1,ROW())>0,MeasureCalc(Table_PI[[#This Row],[Hide:\nFormula Name]],Table_PI[[#This Row],[Quantity]],Table_PI[[#This Row],[List 1]],Table_PI[[#This Row],[List 2]],Table_PI[[#This Row],[List 3]],Table_PI[[#This Row],[Size]],Table_PI[[#This Row],[Input 1]],Table_PI[[#This Row],[Input 2]],Table_PI[[#This Row],[Input 3]],Table_PI[[#This Row],[Input 4]],'Customer Information'!$AR$12,2,ROW()),\"No Rebate\"),\"No Rebate\"),0)","v":0},{"$f":"IF(Table_PI[[#This Row],[Hide:\nFormula Name]]<>\"\",IFERROR(IF(MeasureCalc(Table_PI[[#This Row],[Hide:\nFormula Name]],Table_PI[[#This Row],[Quantity]],Table_PI[[#This Row],[List 1]],Table_PI[[#This Row],[List 2]],Table_PI[[#This Row],[List 3]],Table_PI[[#This Row],[Size]],Table_PI[[#This Row],[Input 1]],Table_PI[[#This Row],[Input 2]],Table_PI[[#This Row],[Input 3]],Table_PI[[#This Row],[Input 4]],'Customer Information'!$AR$12,1,ROW())>0,MeasureCalc(Table_PI[[#This Row],[Hide:\nFormula Name]],Table_PI[[#This Row],[Quantity]],Table_PI[[#This Row],[List 1]],Table_PI[[#This Row],[List 2]],Table_PI[[#This Row],[List 3]],Table_PI[[#This Row],[Size]],Table_PI[[#This Row],[Input 1]],Table_PI[[#This Row],[Input 2]],Table_PI[[#This Row],[Input 3]],Table_PI[[#This Row],[Input 4]],'Customer Information'!$AR$12,3,ROW()),\"No Rebate\"),\"No Rebate\"),0)","v":0},{"$f":"IF(Table_PI[[#This Row],[Hide:\nFormula Name]]<>\"\",IFERROR(IF(MeasureCalc(Table_PI[[#This Row],[Hide:\nFormula Name]],Table_PI[[#This Row],[Quantity]],Table_PI[[#This Row],[List 1]],Table_PI[[#This Row],[List 2]],Table_PI[[#This Row],[List 3]],Table_PI[[#This Row],[Size]],Table_PI[[#This Row],[Input 1]],Table_PI[[#This Row],[Input 2]],Table_PI[[#This Row],[Input 3]],Table_PI[[#This Row],[Input 4]],'Customer Information'!$AR$12,1,ROW())>0,MeasureCalc(Table_PI[[#This Row],[Hide:\nFormula Name]],Table_PI[[#This Row],[Quantity]],Table_PI[[#This Row],[List 1]],Table_PI[[#This Row],[List 2]],Table_PI[[#This Row],[List 3]],Table_PI[[#This Row],[Size]],Table_PI[[#This Row],[Input 1]],Table_PI[[#This Row],[Input 2]],Table_PI[[#This Row],[Input 3]],Table_PI[[#This Row],[Input 4]],'Customer Information'!$AR$12,4,ROW()),\"No Rebate\"),\"No Rebate\"),0)","v":0},{"$f":"IF(Table_PI[[#This Row],[Hide:\nFormula Name]]<>\"\",IFERROR(IF(MeasureCalc(Table_PI[[#This Row],[Hide:\nFormula Name]],Table_PI[[#This Row],[Quantity]],Table_PI[[#This Row],[List 1]],Table_PI[[#This Row],[List 2]],Table_PI[[#This Row],[List 3]],Table_PI[[#This Row],[Size]],Table_PI[[#This Row],[Input 1]],Table_PI[[#This Row],[Input 2]],Table_PI[[#This Row],[Input 3]],Table_PI[[#This Row],[Input 4]],'Customer Information'!$AR$12,1,ROW())>0,MeasureCalc(Table_PI[[#This Row],[Hide:\nFormula Name]],Table_PI[[#This Row],[Quantity]],Table_PI[[#This Row],[List 1]],Table_PI[[#This Row],[List 2]],Table_PI[[#This Row],[List 3]],Table_PI[[#This Row],[Size]],Table_PI[[#This Row],[Input 1]],Table_PI[[#This Row],[Input 2]],Table_PI[[#This Row],[Input 3]],Table_PI[[#This Row],[Input 4]],'Customer Information'!$AR$12,5,ROW()),\"No Rebate\"),\"No Rebate\"),0)","v":0},{"$f":"IF(Table_PI[[#This Row],[Hide:\nFormula Name]]<>\"\",IFERROR(IF(MeasureCalc(Table_PI[[#This Row],[Hide:\nFormula Name]],Table_PI[[#This Row],[Quantity]],Table_PI[[#This Row],[List 1]],Table_PI[[#This Row],[List 2]],Table_PI[[#This Row],[List 3]],Table_PI[[#This Row],[Size]],Table_PI[[#This Row],[Input 1]],Table_PI[[#This Row],[Input 2]],Table_PI[[#This Row],[Input 3]],Table_PI[[#This Row],[Input 4]],'Customer Information'!$AR$12,1,ROW())>0,MeasureCalc(Table_PI[[#This Row],[Hide:\nFormula Name]],Table_PI[[#This Row],[Quantity]],Table_PI[[#This Row],[List 1]],Table_PI[[#This Row],[List 2]],Table_PI[[#This Row],[List 3]],Table_PI[[#This Row],[Size]],Table_PI[[#This Row],[Input 1]],Table_PI[[#This Row],[Input 2]],Table_PI[[#This Row],[Input 3]],Table_PI[[#This Row],[Input 4]],'Customer Information'!$AR$12,6,ROW()),\"No Rebate\"),\"No Rebate\"),0)","v":0},{"$f":"IF(Table_PI[[#This Row],[Hide:\nFormula Name]]<>\"\",IFERROR(IF(MeasureCalc(Table_PI[[#This Row],[Hide:\nFormula Name]],Table_PI[[#This Row],[Quantity]],Table_PI[[#This Row],[List 1]],Table_PI[[#This Row],[List 2]],Table_PI[[#This Row],[List 3]],Table_PI[[#This Row],[Size]],Table_PI[[#This Row],[Input 1]],Table_PI[[#This Row],[Input 2]],Table_PI[[#This Row],[Input 3]],Table_PI[[#This Row],[Input 4]],'Customer Information'!$AR$12,1,ROW())>0,MeasureCalc(Table_PI[[#This Row],[Hide:\nFormula Name]],Table_PI[[#This Row],[Quantity]],Table_PI[[#This Row],[List 1]],Table_PI[[#This Row],[List 2]],Table_PI[[#This Row],[List 3]],Table_PI[[#This Row],[Size]],Table_PI[[#This Row],[Input 1]],Table_PI[[#This Row],[Input 2]],Table_PI[[#This Row],[Input 3]],Table_PI[[#This Row],[Input 4]],'Customer Information'!$AR$12,7,ROW()),\"No Rebate\"),\"No Rebate\"),0)","v":0},{"$f":"IF(Table_PI[[#This Row],[Hide:\nFormula Name]]<>\"\",IFERROR(IF(MeasureCalc(Table_PI[[#This Row],[Hide:\nFormula Name]],Table_PI[[#This Row],[Quantity]],Table_PI[[#This Row],[List 1]],Table_PI[[#This Row],[List 2]],Table_PI[[#This Row],[List 3]],Table_PI[[#This Row],[Size]],Table_PI[[#This Row],[Input 1]],Table_PI[[#This Row],[Input 2]],Table_PI[[#This Row],[Input 3]],Table_PI[[#This Row],[Input 4]],'Customer Information'!$AR$12,1,ROW())>0,MeasureCalc(Table_PI[[#This Row],[Hide:\nFormula Name]],Table_PI[[#This Row],[Quantity]],Table_PI[[#This Row],[List 1]],Table_PI[[#This Row],[List 2]],Table_PI[[#This Row],[List 3]],Table_PI[[#This Row],[Size]],Table_PI[[#This Row],[Input 1]],Table_PI[[#This Row],[Input 2]],Table_PI[[#This Row],[Input 3]],Table_PI[[#This Row],[Input 4]],'Customer Information'!$AR$12,8,ROW()),\"No Rebate\"),\"No Rebate\"),0)","v":0},{"$f":"IF(Table_PI[[#This Row],[Hide:\nFormula Name]]<>\"\",IF(AND(Table_PI[[#This Row],[Hide:\nFormula Name]]<>\"\",OR(Table_PI[[#This Row],[Rebate]]>0,Table_PI[[#This Row],[Rebate]]=\"No Rebate\")),TRUE,\"MI: Line Item \" & $A148),\"\")","v":""}]
[{"$f":"IF(Table_PI[[#This Row],[Hide:\nFormula Name]]<>\"\",MAX($A$2:A148)+1,\"\")","v":""},null,null,null,null,null,null,null,null,null,null,null,null,null,null,{"$f":"IFERROR(VLOOKUP(Table_PI[[#This Row],[Measure]],'Equipment Lookups'!$C$3:$D$23,2,FALSE),\"\")","v":""},{"$f":"IF(Table_PI[[#This Row],[Hide:\nFormula Name]]<>\"\",IFERROR(IF(MeasureCalc(Table_PI[[#This Row],[Hide:\nFormula Name]],Table_PI[[#This Row],[Quantity]],Table_PI[[#This Row],[List 1]],Table_PI[[#This Row],[List 2]],Table_PI[[#This Row],[List 3]],Table_PI[[#This Row],[Size]],Table_PI[[#This Row],[Input 1]],Table_PI[[#This Row],[Input 2]],Table_PI[[#This Row],[Input 3]],Table_PI[[#This Row],[Input 4]],'Customer Information'!$AR$12,1,ROW())>0,MeasureCalc(Table_PI[[#This Row],[Hide:\nFormula Name]],Table_PI[[#This Row],[Quantity]],Table_PI[[#This Row],[List 1]],Table_PI[[#This Row],[List 2]],Table_PI[[#This Row],[List 3]],Table_PI[[#This Row],[Size]],Table_PI[[#This Row],[Input 1]],Table_PI[[#This Row],[Input 2]],Table_PI[[#This Row],[Input 3]],Table_PI[[#This Row],[Input 4]],'Customer Information'!$AR$12,1,ROW()),\"No Rebate\"),\"No Rebate\"),0)","v":0},{"$f":"IF(Table_PI[[#This Row],[Hide:\nFormula Name]]<>\"\",IFERROR(IF(MeasureCalc(Table_PI[[#This Row],[Hide:\nFormula Name]],Table_PI[[#This Row],[Quantity]],Table_PI[[#This Row],[List 1]],Table_PI[[#This Row],[List 2]],Table_PI[[#This Row],[List 3]],Table_PI[[#This Row],[Size]],Table_PI[[#This Row],[Input 1]],Table_PI[[#This Row],[Input 2]],Table_PI[[#This Row],[Input 3]],Table_PI[[#This Row],[Input 4]],'Customer Information'!$AR$12,1,ROW())>0,MeasureCalc(Table_PI[[#This Row],[Hide:\nFormula Name]],Table_PI[[#This Row],[Quantity]],Table_PI[[#This Row],[List 1]],Table_PI[[#This Row],[List 2]],Table_PI[[#This Row],[List 3]],Table_PI[[#This Row],[Size]],Table_PI[[#This Row],[Input 1]],Table_PI[[#This Row],[Input 2]],Table_PI[[#This Row],[Input 3]],Table_PI[[#This Row],[Input 4]],'Customer Information'!$AR$12,2,ROW()),\"No Rebate\"),\"No Rebate\"),0)","v":0},{"$f":"IF(Table_PI[[#This Row],[Hide:\nFormula Name]]<>\"\",IFERROR(IF(MeasureCalc(Table_PI[[#This Row],[Hide:\nFormula Name]],Table_PI[[#This Row],[Quantity]],Table_PI[[#This Row],[List 1]],Table_PI[[#This Row],[List 2]],Table_PI[[#This Row],[List 3]],Table_PI[[#This Row],[Size]],Table_PI[[#This Row],[Input 1]],Table_PI[[#This Row],[Input 2]],Table_PI[[#This Row],[Input 3]],Table_PI[[#This Row],[Input 4]],'Customer Information'!$AR$12,1,ROW())>0,MeasureCalc(Table_PI[[#This Row],[Hide:\nFormula Name]],Table_PI[[#This Row],[Quantity]],Table_PI[[#This Row],[List 1]],Table_PI[[#This Row],[List 2]],Table_PI[[#This Row],[List 3]],Table_PI[[#This Row],[Size]],Table_PI[[#This Row],[Input 1]],Table_PI[[#This Row],[Input 2]],Table_PI[[#This Row],[Input 3]],Table_PI[[#This Row],[Input 4]],'Customer Information'!$AR$12,3,ROW()),\"No Rebate\"),\"No Rebate\"),0)","v":0},{"$f":"IF(Table_PI[[#This Row],[Hide:\nFormula Name]]<>\"\",IFERROR(IF(MeasureCalc(Table_PI[[#This Row],[Hide:\nFormula Name]],Table_PI[[#This Row],[Quantity]],Table_PI[[#This Row],[List 1]],Table_PI[[#This Row],[List 2]],Table_PI[[#This Row],[List 3]],Table_PI[[#This Row],[Size]],Table_PI[[#This Row],[Input 1]],Table_PI[[#This Row],[Input 2]],Table_PI[[#This Row],[Input 3]],Table_PI[[#This Row],[Input 4]],'Customer Information'!$AR$12,1,ROW())>0,MeasureCalc(Table_PI[[#This Row],[Hide:\nFormula Name]],Table_PI[[#This Row],[Quantity]],Table_PI[[#This Row],[List 1]],Table_PI[[#This Row],[List 2]],Table_PI[[#This Row],[List 3]],Table_PI[[#This Row],[Size]],Table_PI[[#This Row],[Input 1]],Table_PI[[#This Row],[Input 2]],Table_PI[[#This Row],[Input 3]],Table_PI[[#This Row],[Input 4]],'Customer Information'!$AR$12,4,ROW()),\"No Rebate\"),\"No Rebate\"),0)","v":0},{"$f":"IF(Table_PI[[#This Row],[Hide:\nFormula Name]]<>\"\",IFERROR(IF(MeasureCalc(Table_PI[[#This Row],[Hide:\nFormula Name]],Table_PI[[#This Row],[Quantity]],Table_PI[[#This Row],[List 1]],Table_PI[[#This Row],[List 2]],Table_PI[[#This Row],[List 3]],Table_PI[[#This Row],[Size]],Table_PI[[#This Row],[Input 1]],Table_PI[[#This Row],[Input 2]],Table_PI[[#This Row],[Input 3]],Table_PI[[#This Row],[Input 4]],'Customer Information'!$AR$12,1,ROW())>0,MeasureCalc(Table_PI[[#This Row],[Hide:\nFormula Name]],Table_PI[[#This Row],[Quantity]],Table_PI[[#This Row],[List 1]],Table_PI[[#This Row],[List 2]],Table_PI[[#This Row],[List 3]],Table_PI[[#This Row],[Size]],Table_PI[[#This Row],[Input 1]],Table_PI[[#This Row],[Input 2]],Table_PI[[#This Row],[Input 3]],Table_PI[[#This Row],[Input 4]],'Customer Information'!$AR$12,5,ROW()),\"No Rebate\"),\"No Rebate\"),0)","v":0},{"$f":"IF(Table_PI[[#This Row],[Hide:\nFormula Name]]<>\"\",IFERROR(IF(MeasureCalc(Table_PI[[#This Row],[Hide:\nFormula Name]],Table_PI[[#This Row],[Quantity]],Table_PI[[#This Row],[List 1]],Table_PI[[#This Row],[List 2]],Table_PI[[#This Row],[List 3]],Table_PI[[#This Row],[Size]],Table_PI[[#This Row],[Input 1]],Table_PI[[#This Row],[Input 2]],Table_PI[[#This Row],[Input 3]],Table_PI[[#This Row],[Input 4]],'Customer Information'!$AR$12,1,ROW())>0,MeasureCalc(Table_PI[[#This Row],[Hide:\nFormula Name]],Table_PI[[#This Row],[Quantity]],Table_PI[[#This Row],[List 1]],Table_PI[[#This Row],[List 2]],Table_PI[[#This Row],[List 3]],Table_PI[[#This Row],[Size]],Table_PI[[#This Row],[Input 1]],Table_PI[[#This Row],[Input 2]],Table_PI[[#This Row],[Input 3]],Table_PI[[#This Row],[Input 4]],'Customer Information'!$AR$12,6,ROW()),\"No Rebate\"),\"No Rebate\"),0)","v":0},{"$f":"IF(Table_PI[[#This Row],[Hide:\nFormula Name]]<>\"\",IFERROR(IF(MeasureCalc(Table_PI[[#This Row],[Hide:\nFormula Name]],Table_PI[[#This Row],[Quantity]],Table_PI[[#This Row],[List 1]],Table_PI[[#This Row],[List 2]],Table_PI[[#This Row],[List 3]],Table_PI[[#This Row],[Size]],Table_PI[[#This Row],[Input 1]],Table_PI[[#This Row],[Input 2]],Table_PI[[#This Row],[Input 3]],Table_PI[[#This Row],[Input 4]],'Customer Information'!$AR$12,1,ROW())>0,MeasureCalc(Table_PI[[#This Row],[Hide:\nFormula Name]],Table_PI[[#This Row],[Quantity]],Table_PI[[#This Row],[List 1]],Table_PI[[#This Row],[List 2]],Table_PI[[#This Row],[List 3]],Table_PI[[#This Row],[Size]],Table_PI[[#This Row],[Input 1]],Table_PI[[#This Row],[Input 2]],Table_PI[[#This Row],[Input 3]],Table_PI[[#This Row],[Input 4]],'Customer Information'!$AR$12,7,ROW()),\"No Rebate\"),\"No Rebate\"),0)","v":0},{"$f":"IF(Table_PI[[#This Row],[Hide:\nFormula Name]]<>\"\",IFERROR(IF(MeasureCalc(Table_PI[[#This Row],[Hide:\nFormula Name]],Table_PI[[#This Row],[Quantity]],Table_PI[[#This Row],[List 1]],Table_PI[[#This Row],[List 2]],Table_PI[[#This Row],[List 3]],Table_PI[[#This Row],[Size]],Table_PI[[#This Row],[Input 1]],Table_PI[[#This Row],[Input 2]],Table_PI[[#This Row],[Input 3]],Table_PI[[#This Row],[Input 4]],'Customer Information'!$AR$12,1,ROW())>0,MeasureCalc(Table_PI[[#This Row],[Hide:\nFormula Name]],Table_PI[[#This Row],[Quantity]],Table_PI[[#This Row],[List 1]],Table_PI[[#This Row],[List 2]],Table_PI[[#This Row],[List 3]],Table_PI[[#This Row],[Size]],Table_PI[[#This Row],[Input 1]],Table_PI[[#This Row],[Input 2]],Table_PI[[#This Row],[Input 3]],Table_PI[[#This Row],[Input 4]],'Customer Information'!$AR$12,8,ROW()),\"No Rebate\"),\"No Rebate\"),0)","v":0},{"$f":"IF(Table_PI[[#This Row],[Hide:\nFormula Name]]<>\"\",IF(AND(Table_PI[[#This Row],[Hide:\nFormula Name]]<>\"\",OR(Table_PI[[#This Row],[Rebate]]>0,Table_PI[[#This Row],[Rebate]]=\"No Rebate\")),TRUE,\"MI: Line Item \" & $A149),\"\")","v":""}]
[{"$f":"IF(Table_PI[[#This Row],[Hide:\nFormula Name]]<>\"\",MAX($A$2:A149)+1,\"\")","v":""},null,null,null,null,null,null,null,null,null,null,null,null,null,null,{"$f":"IFERROR(VLOOKUP(Table_PI[[#This Row],[Measure]],'Equipment Lookups'!$C$3:$D$23,2,FALSE),\"\")","v":""},{"$f":"IF(Table_PI[[#This Row],[Hide:\nFormula Name]]<>\"\",IFERROR(IF(MeasureCalc(Table_PI[[#This Row],[Hide:\nFormula Name]],Table_PI[[#This Row],[Quantity]],Table_PI[[#This Row],[List 1]],Table_PI[[#This Row],[List 2]],Table_PI[[#This Row],[List 3]],Table_PI[[#This Row],[Size]],Table_PI[[#This Row],[Input 1]],Table_PI[[#This Row],[Input 2]],Table_PI[[#This Row],[Input 3]],Table_PI[[#This Row],[Input 4]],'Customer Information'!$AR$12,1,ROW())>0,MeasureCalc(Table_PI[[#This Row],[Hide:\nFormula Name]],Table_PI[[#This Row],[Quantity]],Table_PI[[#This Row],[List 1]],Table_PI[[#This Row],[List 2]],Table_PI[[#This Row],[List 3]],Table_PI[[#This Row],[Size]],Table_PI[[#This Row],[Input 1]],Table_PI[[#This Row],[Input 2]],Table_PI[[#This Row],[Input 3]],Table_PI[[#This Row],[Input 4]],'Customer Information'!$AR$12,1,ROW()),\"No Rebate\"),\"No Rebate\"),0)","v":0},{"$f":"IF(Table_PI[[#This Row],[Hide:\nFormula Name]]<>\"\",IFERROR(IF(MeasureCalc(Table_PI[[#This Row],[Hide:\nFormula Name]],Table_PI[[#This Row],[Quantity]],Table_PI[[#This Row],[List 1]],Table_PI[[#This Row],[List 2]],Table_PI[[#This Row],[List 3]],Table_PI[[#This Row],[Size]],Table_PI[[#This Row],[Input 1]],Table_PI[[#This Row],[Input 2]],Table_PI[[#This Row],[Input 3]],Table_PI[[#This Row],[Input 4]],'Customer Information'!$AR$12,1,ROW())>0,MeasureCalc(Table_PI[[#This Row],[Hide:\nFormula Name]],Table_PI[[#This Row],[Quantity]],Table_PI[[#This Row],[List 1]],Table_PI[[#This Row],[List 2]],Table_PI[[#This Row],[List 3]],Table_PI[[#This Row],[Size]],Table_PI[[#This Row],[Input 1]],Table_PI[[#This Row],[Input 2]],Table_PI[[#This Row],[Input 3]],Table_PI[[#This Row],[Input 4]],'Customer Information'!$AR$12,2,ROW()),\"No Rebate\"),\"No Rebate\"),0)","v":0},{"$f":"IF(Table_PI[[#This Row],[Hide:\nFormula Name]]<>\"\",IFERROR(IF(MeasureCalc(Table_PI[[#This Row],[Hide:\nFormula Name]],Table_PI[[#This Row],[Quantity]],Table_PI[[#This Row],[List 1]],Table_PI[[#This Row],[List 2]],Table_PI[[#This Row],[List 3]],Table_PI[[#This Row],[Size]],Table_PI[[#This Row],[Input 1]],Table_PI[[#This Row],[Input 2]],Table_PI[[#This Row],[Input 3]],Table_PI[[#This Row],[Input 4]],'Customer Information'!$AR$12,1,ROW())>0,MeasureCalc(Table_PI[[#This Row],[Hide:\nFormula Name]],Table_PI[[#This Row],[Quantity]],Table_PI[[#This Row],[List 1]],Table_PI[[#This Row],[List 2]],Table_PI[[#This Row],[List 3]],Table_PI[[#This Row],[Size]],Table_PI[[#This Row],[Input 1]],Table_PI[[#This Row],[Input 2]],Table_PI[[#This Row],[Input 3]],Table_PI[[#This Row],[Input 4]],'Customer Information'!$AR$12,3,ROW()),\"No Rebate\"),\"No Rebate\"),0)","v":0},{"$f":"IF(Table_PI[[#This Row],[Hide:\nFormula Name]]<>\"\",IFERROR(IF(MeasureCalc(Table_PI[[#This Row],[Hide:\nFormula Name]],Table_PI[[#This Row],[Quantity]],Table_PI[[#This Row],[List 1]],Table_PI[[#This Row],[List 2]],Table_PI[[#This Row],[List 3]],Table_PI[[#This Row],[Size]],Table_PI[[#This Row],[Input 1]],Table_PI[[#This Row],[Input 2]],Table_PI[[#This Row],[Input 3]],Table_PI[[#This Row],[Input 4]],'Customer Information'!$AR$12,1,ROW())>0,MeasureCalc(Table_PI[[#This Row],[Hide:\nFormula Name]],Table_PI[[#This Row],[Quantity]],Table_PI[[#This Row],[List 1]],Table_PI[[#This Row],[List 2]],Table_PI[[#This Row],[List 3]],Table_PI[[#This Row],[Size]],Table_PI[[#This Row],[Input 1]],Table_PI[[#This Row],[Input 2]],Table_PI[[#This Row],[Input 3]],Table_PI[[#This Row],[Input 4]],'Customer Information'!$AR$12,4,ROW()),\"No Rebate\"),\"No Rebate\"),0)","v":0},{"$f":"IF(Table_PI[[#This Row],[Hide:\nFormula Name]]<>\"\",IFERROR(IF(MeasureCalc(Table_PI[[#This Row],[Hide:\nFormula Name]],Table_PI[[#This Row],[Quantity]],Table_PI[[#This Row],[List 1]],Table_PI[[#This Row],[List 2]],Table_PI[[#This Row],[List 3]],Table_PI[[#This Row],[Size]],Table_PI[[#This Row],[Input 1]],Table_PI[[#This Row],[Input 2]],Table_PI[[#This Row],[Input 3]],Table_PI[[#This Row],[Input 4]],'Customer Information'!$AR$12,1,ROW())>0,MeasureCalc(Table_PI[[#This Row],[Hide:\nFormula Name]],Table_PI[[#This Row],[Quantity]],Table_PI[[#This Row],[List 1]],Table_PI[[#This Row],[List 2]],Table_PI[[#This Row],[List 3]],Table_PI[[#This Row],[Size]],Table_PI[[#This Row],[Input 1]],Table_PI[[#This Row],[Input 2]],Table_PI[[#This Row],[Input 3]],Table_PI[[#This Row],[Input 4]],'Customer Information'!$AR$12,5,ROW()),\"No Rebate\"),\"No Rebate\"),0)","v":0},{"$f":"IF(Table_PI[[#This Row],[Hide:\nFormula Name]]<>\"\",IFERROR(IF(MeasureCalc(Table_PI[[#This Row],[Hide:\nFormula Name]],Table_PI[[#This Row],[Quantity]],Table_PI[[#This Row],[List 1]],Table_PI[[#This Row],[List 2]],Table_PI[[#This Row],[List 3]],Table_PI[[#This Row],[Size]],Table_PI[[#This Row],[Input 1]],Table_PI[[#This Row],[Input 2]],Table_PI[[#This Row],[Input 3]],Table_PI[[#This Row],[Input 4]],'Customer Information'!$AR$12,1,ROW())>0,MeasureCalc(Table_PI[[#This Row],[Hide:\nFormula Name]],Table_PI[[#This Row],[Quantity]],Table_PI[[#This Row],[List 1]],Table_PI[[#This Row],[List 2]],Table_PI[[#This Row],[List 3]],Table_PI[[#This Row],[Size]],Table_PI[[#This Row],[Input 1]],Table_PI[[#This Row],[Input 2]],Table_PI[[#This Row],[Input 3]],Table_PI[[#This Row],[Input 4]],'Customer Information'!$AR$12,6,ROW()),\"No Rebate\"),\"No Rebate\"),0)","v":0},{"$f":"IF(Table_PI[[#This Row],[Hide:\nFormula Name]]<>\"\",IFERROR(IF(MeasureCalc(Table_PI[[#This Row],[Hide:\nFormula Name]],Table_PI[[#This Row],[Quantity]],Table_PI[[#This Row],[List 1]],Table_PI[[#This Row],[List 2]],Table_PI[[#This Row],[List 3]],Table_PI[[#This Row],[Size]],Table_PI[[#This Row],[Input 1]],Table_PI[[#This Row],[Input 2]],Table_PI[[#This Row],[Input 3]],Table_PI[[#This Row],[Input 4]],'Customer Information'!$AR$12,1,ROW())>0,MeasureCalc(Table_PI[[#This Row],[Hide:\nFormula Name]],Table_PI[[#This Row],[Quantity]],Table_PI[[#This Row],[List 1]],Table_PI[[#This Row],[List 2]],Table_PI[[#This Row],[List 3]],Table_PI[[#This Row],[Size]],Table_PI[[#This Row],[Input 1]],Table_PI[[#This Row],[Input 2]],Table_PI[[#This Row],[Input 3]],Table_PI[[#This Row],[Input 4]],'Customer Information'!$AR$12,7,ROW()),\"No Rebate\"),\"No Rebate\"),0)","v":0},{"$f":"IF(Table_PI[[#This Row],[Hide:\nFormula Name]]<>\"\",IFERROR(IF(MeasureCalc(Table_PI[[#This Row],[Hide:\nFormula Name]],Table_PI[[#This Row],[Quantity]],Table_PI[[#This Row],[List 1]],Table_PI[[#This Row],[List 2]],Table_PI[[#This Row],[List 3]],Table_PI[[#This Row],[Size]],Table_PI[[#This Row],[Input 1]],Table_PI[[#This Row],[Input 2]],Table_PI[[#This Row],[Input 3]],Table_PI[[#This Row],[Input 4]],'Customer Information'!$AR$12,1,ROW())>0,MeasureCalc(Table_PI[[#This Row],[Hide:\nFormula Name]],Table_PI[[#This Row],[Quantity]],Table_PI[[#This Row],[List 1]],Table_PI[[#This Row],[List 2]],Table_PI[[#This Row],[List 3]],Table_PI[[#This Row],[Size]],Table_PI[[#This Row],[Input 1]],Table_PI[[#This Row],[Input 2]],Table_PI[[#This Row],[Input 3]],Table_PI[[#This Row],[Input 4]],'Customer Information'!$AR$12,8,ROW()),\"No Rebate\"),\"No Rebate\"),0)","v":0},{"$f":"IF(Table_PI[[#This Row],[Hide:\nFormula Name]]<>\"\",IF(AND(Table_PI[[#This Row],[Hide:\nFormula Name]]<>\"\",OR(Table_PI[[#This Row],[Rebate]]>0,Table_PI[[#This Row],[Rebate]]=\"No Rebate\")),TRUE,\"MI: Line Item \" & $A150),\"\")","v":""}]
[{"$f":"IF(Table_PI[[#This Row],[Hide:\nFormula Name]]<>\"\",MAX($A$2:A150)+1,\"\")","v":""},null,null,null,null,null,null,null,null,null,null,null,null,null,null,{"$f":"IFERROR(VLOOKUP(Table_PI[[#This Row],[Measure]],'Equipment Lookups'!$C$3:$D$23,2,FALSE),\"\")","v":""},{"$f":"IF(Table_PI[[#This Row],[Hide:\nFormula Name]]<>\"\",IFERROR(IF(MeasureCalc(Table_PI[[#This Row],[Hide:\nFormula Name]],Table_PI[[#This Row],[Quantity]],Table_PI[[#This Row],[List 1]],Table_PI[[#This Row],[List 2]],Table_PI[[#This Row],[List 3]],Table_PI[[#This Row],[Size]],Table_PI[[#This Row],[Input 1]],Table_PI[[#This Row],[Input 2]],Table_PI[[#This Row],[Input 3]],Table_PI[[#This Row],[Input 4]],'Customer Information'!$AR$12,1,ROW())>0,MeasureCalc(Table_PI[[#This Row],[Hide:\nFormula Name]],Table_PI[[#This Row],[Quantity]],Table_PI[[#This Row],[List 1]],Table_PI[[#This Row],[List 2]],Table_PI[[#This Row],[List 3]],Table_PI[[#This Row],[Size]],Table_PI[[#This Row],[Input 1]],Table_PI[[#This Row],[Input 2]],Table_PI[[#This Row],[Input 3]],Table_PI[[#This Row],[Input 4]],'Customer Information'!$AR$12,1,ROW()),\"No Rebate\"),\"No Rebate\"),0)","v":0},{"$f":"IF(Table_PI[[#This Row],[Hide:\nFormula Name]]<>\"\",IFERROR(IF(MeasureCalc(Table_PI[[#This Row],[Hide:\nFormula Name]],Table_PI[[#This Row],[Quantity]],Table_PI[[#This Row],[List 1]],Table_PI[[#This Row],[List 2]],Table_PI[[#This Row],[List 3]],Table_PI[[#This Row],[Size]],Table_PI[[#This Row],[Input 1]],Table_PI[[#This Row],[Input 2]],Table_PI[[#This Row],[Input 3]],Table_PI[[#This Row],[Input 4]],'Customer Information'!$AR$12,1,ROW())>0,MeasureCalc(Table_PI[[#This Row],[Hide:\nFormula Name]],Table_PI[[#This Row],[Quantity]],Table_PI[[#This Row],[List 1]],Table_PI[[#This Row],[List 2]],Table_PI[[#This Row],[List 3]],Table_PI[[#This Row],[Size]],Table_PI[[#This Row],[Input 1]],Table_PI[[#This Row],[Input 2]],Table_PI[[#This Row],[Input 3]],Table_PI[[#This Row],[Input 4]],'Customer Information'!$AR$12,2,ROW()),\"No Rebate\"),\"No Rebate\"),0)","v":0},{"$f":"IF(Table_PI[[#This Row],[Hide:\nFormula Name]]<>\"\",IFERROR(IF(MeasureCalc(Table_PI[[#This Row],[Hide:\nFormula Name]],Table_PI[[#This Row],[Quantity]],Table_PI[[#This Row],[List 1]],Table_PI[[#This Row],[List 2]],Table_PI[[#This Row],[List 3]],Table_PI[[#This Row],[Size]],Table_PI[[#This Row],[Input 1]],Table_PI[[#This Row],[Input 2]],Table_PI[[#This Row],[Input 3]],Table_PI[[#This Row],[Input 4]],'Customer Information'!$AR$12,1,ROW())>0,MeasureCalc(Table_PI[[#This Row],[Hide:\nFormula Name]],Table_PI[[#This Row],[Quantity]],Table_PI[[#This Row],[List 1]],Table_PI[[#This Row],[List 2]],Table_PI[[#This Row],[List 3]],Table_PI[[#This Row],[Size]],Table_PI[[#This Row],[Input 1]],Table_PI[[#This Row],[Input 2]],Table_PI[[#This Row],[Input 3]],Table_PI[[#This Row],[Input 4]],'Customer Information'!$AR$12,3,ROW()),\"No Rebate\"),\"No Rebate\"),0)","v":0},{"$f":"IF(Table_PI[[#This Row],[Hide:\nFormula Name]]<>\"\",IFERROR(IF(MeasureCalc(Table_PI[[#This Row],[Hide:\nFormula Name]],Table_PI[[#This Row],[Quantity]],Table_PI[[#This Row],[List 1]],Table_PI[[#This Row],[List 2]],Table_PI[[#This Row],[List 3]],Table_PI[[#This Row],[Size]],Table_PI[[#This Row],[Input 1]],Table_PI[[#This Row],[Input 2]],Table_PI[[#This Row],[Input 3]],Table_PI[[#This Row],[Input 4]],'Customer Information'!$AR$12,1,ROW())>0,MeasureCalc(Table_PI[[#This Row],[Hide:\nFormula Name]],Table_PI[[#This Row],[Quantity]],Table_PI[[#This Row],[List 1]],Table_PI[[#This Row],[List 2]],Table_PI[[#This Row],[List 3]],Table_PI[[#This Row],[Size]],Table_PI[[#This Row],[Input 1]],Table_PI[[#This Row],[Input 2]],Table_PI[[#This Row],[Input 3]],Table_PI[[#This Row],[Input 4]],'Customer Information'!$AR$12,4,ROW()),\"No Rebate\"),\"No Rebate\"),0)","v":0},{"$f":"IF(Table_PI[[#This Row],[Hide:\nFormula Name]]<>\"\",IFERROR(IF(MeasureCalc(Table_PI[[#This Row],[Hide:\nFormula Name]],Table_PI[[#This Row],[Quantity]],Table_PI[[#This Row],[List 1]],Table_PI[[#This Row],[List 2]],Table_PI[[#This Row],[List 3]],Table_PI[[#This Row],[Size]],Table_PI[[#This Row],[Input 1]],Table_PI[[#This Row],[Input 2]],Table_PI[[#This Row],[Input 3]],Table_PI[[#This Row],[Input 4]],'Customer Information'!$AR$12,1,ROW())>0,MeasureCalc(Table_PI[[#This Row],[Hide:\nFormula Name]],Table_PI[[#This Row],[Quantity]],Table_PI[[#This Row],[List 1]],Table_PI[[#This Row],[List 2]],Table_PI[[#This Row],[List 3]],Table_PI[[#This Row],[Size]],Table_PI[[#This Row],[Input 1]],Table_PI[[#This Row],[Input 2]],Table_PI[[#This Row],[Input 3]],Table_PI[[#This Row],[Input 4]],'Customer Information'!$AR$12,5,ROW()),\"No Rebate\"),\"No Rebate\"),0)","v":0},{"$f":"IF(Table_PI[[#This Row],[Hide:\nFormula Name]]<>\"\",IFERROR(IF(MeasureCalc(Table_PI[[#This Row],[Hide:\nFormula Name]],Table_PI[[#This Row],[Quantity]],Table_PI[[#This Row],[List 1]],Table_PI[[#This Row],[List 2]],Table_PI[[#This Row],[List 3]],Table_PI[[#This Row],[Size]],Table_PI[[#This Row],[Input 1]],Table_PI[[#This Row],[Input 2]],Table_PI[[#This Row],[Input 3]],Table_PI[[#This Row],[Input 4]],'Customer Information'!$AR$12,1,ROW())>0,MeasureCalc(Table_PI[[#This Row],[Hide:\nFormula Name]],Table_PI[[#This Row],[Quantity]],Table_PI[[#This Row],[List 1]],Table_PI[[#This Row],[List 2]],Table_PI[[#This Row],[List 3]],Table_PI[[#This Row],[Size]],Table_PI[[#This Row],[Input 1]],Table_PI[[#This Row],[Input 2]],Table_PI[[#This Row],[Input 3]],Table_PI[[#This Row],[Input 4]],'Customer Information'!$AR$12,6,ROW()),\"No Rebate\"),\"No Rebate\"),0)","v":0},{"$f":"IF(Table_PI[[#This Row],[Hide:\nFormula Name]]<>\"\",IFERROR(IF(MeasureCalc(Table_PI[[#This Row],[Hide:\nFormula Name]],Table_PI[[#This Row],[Quantity]],Table_PI[[#This Row],[List 1]],Table_PI[[#This Row],[List 2]],Table_PI[[#This Row],[List 3]],Table_PI[[#This Row],[Size]],Table_PI[[#This Row],[Input 1]],Table_PI[[#This Row],[Input 2]],Table_PI[[#This Row],[Input 3]],Table_PI[[#This Row],[Input 4]],'Customer Information'!$AR$12,1,ROW())>0,MeasureCalc(Table_PI[[#This Row],[Hide:\nFormula Name]],Table_PI[[#This Row],[Quantity]],Table_PI[[#This Row],[List 1]],Table_PI[[#This Row],[List 2]],Table_PI[[#This Row],[List 3]],Table_PI[[#This Row],[Size]],Table_PI[[#This Row],[Input 1]],Table_PI[[#This Row],[Input 2]],Table_PI[[#This Row],[Input 3]],Table_PI[[#This Row],[Input 4]],'Customer Information'!$AR$12,7,ROW()),\"No Rebate\"),\"No Rebate\"),0)","v":0},{"$f":"IF(Table_PI[[#This Row],[Hide:\nFormula Name]]<>\"\",IFERROR(IF(MeasureCalc(Table_PI[[#This Row],[Hide:\nFormula Name]],Table_PI[[#This Row],[Quantity]],Table_PI[[#This Row],[List 1]],Table_PI[[#This Row],[List 2]],Table_PI[[#This Row],[List 3]],Table_PI[[#This Row],[Size]],Table_PI[[#This Row],[Input 1]],Table_PI[[#This Row],[Input 2]],Table_PI[[#This Row],[Input 3]],Table_PI[[#This Row],[Input 4]],'Customer Information'!$AR$12,1,ROW())>0,MeasureCalc(Table_PI[[#This Row],[Hide:\nFormula Name]],Table_PI[[#This Row],[Quantity]],Table_PI[[#This Row],[List 1]],Table_PI[[#This Row],[List 2]],Table_PI[[#This Row],[List 3]],Table_PI[[#This Row],[Size]],Table_PI[[#This Row],[Input 1]],Table_PI[[#This Row],[Input 2]],Table_PI[[#This Row],[Input 3]],Table_PI[[#This Row],[Input 4]],'Customer Information'!$AR$12,8,ROW()),\"No Rebate\"),\"No Rebate\"),0)","v":0},{"$f":"IF(Table_PI[[#This Row],[Hide:\nFormula Name]]<>\"\",IF(AND(Table_PI[[#This Row],[Hide:\nFormula Name]]<>\"\",OR(Table_PI[[#This Row],[Rebate]]>0,Table_PI[[#This Row],[Rebate]]=\"No Rebate\")),TRUE,\"MI: Line Item \" & $A151),\"\")","v":""}]
[{"$f":"IF(Table_PI[[#This Row],[Hide:\nFormula Name]]<>\"\",MAX($A$2:A151)+1,\"\")","v":""},null,null,null,null,null,null,null,null,null,null,null,null,null,null,{"$f":"IFERROR(VLOOKUP(Table_PI[[#This Row],[Measure]],'Equipment Lookups'!$C$3:$D$23,2,FALSE),\"\")","v":""},{"$f":"IF(Table_PI[[#This Row],[Hide:\nFormula Name]]<>\"\",IFERROR(IF(MeasureCalc(Table_PI[[#This Row],[Hide:\nFormula Name]],Table_PI[[#This Row],[Quantity]],Table_PI[[#This Row],[List 1]],Table_PI[[#This Row],[List 2]],Table_PI[[#This Row],[List 3]],Table_PI[[#This Row],[Size]],Table_PI[[#This Row],[Input 1]],Table_PI[[#This Row],[Input 2]],Table_PI[[#This Row],[Input 3]],Table_PI[[#This Row],[Input 4]],'Customer Information'!$AR$12,1,ROW())>0,MeasureCalc(Table_PI[[#This Row],[Hide:\nFormula Name]],Table_PI[[#This Row],[Quantity]],Table_PI[[#This Row],[List 1]],Table_PI[[#This Row],[List 2]],Table_PI[[#This Row],[List 3]],Table_PI[[#This Row],[Size]],Table_PI[[#This Row],[Input 1]],Table_PI[[#This Row],[Input 2]],Table_PI[[#This Row],[Input 3]],Table_PI[[#This Row],[Input 4]],'Customer Information'!$AR$12,1,ROW()),\"No Rebate\"),\"No Rebate\"),0)","v":0},{"$f":"IF(Table_PI[[#This Row],[Hide:\nFormula Name]]<>\"\",IFERROR(IF(MeasureCalc(Table_PI[[#This Row],[Hide:\nFormula Name]],Table_PI[[#This Row],[Quantity]],Table_PI[[#This Row],[List 1]],Table_PI[[#This Row],[List 2]],Table_PI[[#This Row],[List 3]],Table_PI[[#This Row],[Size]],Table_PI[[#This Row],[Input 1]],Table_PI[[#This Row],[Input 2]],Table_PI[[#This Row],[Input 3]],Table_PI[[#This Row],[Input 4]],'Customer Information'!$AR$12,1,ROW())>0,MeasureCalc(Table_PI[[#This Row],[Hide:\nFormula Name]],Table_PI[[#This Row],[Quantity]],Table_PI[[#This Row],[List 1]],Table_PI[[#This Row],[List 2]],Table_PI[[#This Row],[List 3]],Table_PI[[#This Row],[Size]],Table_PI[[#This Row],[Input 1]],Table_PI[[#This Row],[Input 2]],Table_PI[[#This Row],[Input 3]],Table_PI[[#This Row],[Input 4]],'Customer Information'!$AR$12,2,ROW()),\"No Rebate\"),\"No Rebate\"),0)","v":0},{"$f":"IF(Table_PI[[#This Row],[Hide:\nFormula Name]]<>\"\",IFERROR(IF(MeasureCalc(Table_PI[[#This Row],[Hide:\nFormula Name]],Table_PI[[#This Row],[Quantity]],Table_PI[[#This Row],[List 1]],Table_PI[[#This Row],[List 2]],Table_PI[[#This Row],[List 3]],Table_PI[[#This Row],[Size]],Table_PI[[#This Row],[Input 1]],Table_PI[[#This Row],[Input 2]],Table_PI[[#This Row],[Input 3]],Table_PI[[#This Row],[Input 4]],'Customer Information'!$AR$12,1,ROW())>0,MeasureCalc(Table_PI[[#This Row],[Hide:\nFormula Name]],Table_PI[[#This Row],[Quantity]],Table_PI[[#This Row],[List 1]],Table_PI[[#This Row],[List 2]],Table_PI[[#This Row],[List 3]],Table_PI[[#This Row],[Size]],Table_PI[[#This Row],[Input 1]],Table_PI[[#This Row],[Input 2]],Table_PI[[#This Row],[Input 3]],Table_PI[[#This Row],[Input 4]],'Customer Information'!$AR$12,3,ROW()),\"No Rebate\"),\"No Rebate\"),0)","v":0},{"$f":"IF(Table_PI[[#This Row],[Hide:\nFormula Name]]<>\"\",IFERROR(IF(MeasureCalc(Table_PI[[#This Row],[Hide:\nFormula Name]],Table_PI[[#This Row],[Quantity]],Table_PI[[#This Row],[List 1]],Table_PI[[#This Row],[List 2]],Table_PI[[#This Row],[List 3]],Table_PI[[#This Row],[Size]],Table_PI[[#This Row],[Input 1]],Table_PI[[#This Row],[Input 2]],Table_PI[[#This Row],[Input 3]],Table_PI[[#This Row],[Input 4]],'Customer Information'!$AR$12,1,ROW())>0,MeasureCalc(Table_PI[[#This Row],[Hide:\nFormula Name]],Table_PI[[#This Row],[Quantity]],Table_PI[[#This Row],[List 1]],Table_PI[[#This Row],[List 2]],Table_PI[[#This Row],[List 3]],Table_PI[[#This Row],[Size]],Table_PI[[#This Row],[Input 1]],Table_PI[[#This Row],[Input 2]],Table_PI[[#This Row],[Input 3]],Table_PI[[#This Row],[Input 4]],'Customer Information'!$AR$12,4,ROW()),\"No Rebate\"),\"No Rebate\"),0)","v":0},{"$f":"IF(Table_PI[[#This Row],[Hide:\nFormula Name]]<>\"\",IFERROR(IF(MeasureCalc(Table_PI[[#This Row],[Hide:\nFormula Name]],Table_PI[[#This Row],[Quantity]],Table_PI[[#This Row],[List 1]],Table_PI[[#This Row],[List 2]],Table_PI[[#This Row],[List 3]],Table_PI[[#This Row],[Size]],Table_PI[[#This Row],[Input 1]],Table_PI[[#This Row],[Input 2]],Table_PI[[#This Row],[Input 3]],Table_PI[[#This Row],[Input 4]],'Customer Information'!$AR$12,1,ROW())>0,MeasureCalc(Table_PI[[#This Row],[Hide:\nFormula Name]],Table_PI[[#This Row],[Quantity]],Table_PI[[#This Row],[List 1]],Table_PI[[#This Row],[List 2]],Table_PI[[#This Row],[List 3]],Table_PI[[#This Row],[Size]],Table_PI[[#This Row],[Input 1]],Table_PI[[#This Row],[Input 2]],Table_PI[[#This Row],[Input 3]],Table_PI[[#This Row],[Input 4]],'Customer Information'!$AR$12,5,ROW()),\"No Rebate\"),\"No Rebate\"),0)","v":0},{"$f":"IF(Table_PI[[#This Row],[Hide:\nFormula Name]]<>\"\",IFERROR(IF(MeasureCalc(Table_PI[[#This Row],[Hide:\nFormula Name]],Table_PI[[#This Row],[Quantity]],Table_PI[[#This Row],[List 1]],Table_PI[[#This Row],[List 2]],Table_PI[[#This Row],[List 3]],Table_PI[[#This Row],[Size]],Table_PI[[#This Row],[Input 1]],Table_PI[[#This Row],[Input 2]],Table_PI[[#This Row],[Input 3]],Table_PI[[#This Row],[Input 4]],'Customer Information'!$AR$12,1,ROW())>0,MeasureCalc(Table_PI[[#This Row],[Hide:\nFormula Name]],Table_PI[[#This Row],[Quantity]],Table_PI[[#This Row],[List 1]],Table_PI[[#This Row],[List 2]],Table_PI[[#This Row],[List 3]],Table_PI[[#This Row],[Size]],Table_PI[[#This Row],[Input 1]],Table_PI[[#This Row],[Input 2]],Table_PI[[#This Row],[Input 3]],Table_PI[[#This Row],[Input 4]],'Customer Information'!$AR$12,6,ROW()),\"No Rebate\"),\"No Rebate\"),0)","v":0},{"$f":"IF(Table_PI[[#This Row],[Hide:\nFormula Name]]<>\"\",IFERROR(IF(MeasureCalc(Table_PI[[#This Row],[Hide:\nFormula Name]],Table_PI[[#This Row],[Quantity]],Table_PI[[#This Row],[List 1]],Table_PI[[#This Row],[List 2]],Table_PI[[#This Row],[List 3]],Table_PI[[#This Row],[Size]],Table_PI[[#This Row],[Input 1]],Table_PI[[#This Row],[Input 2]],Table_PI[[#This Row],[Input 3]],Table_PI[[#This Row],[Input 4]],'Customer Information'!$AR$12,1,ROW())>0,MeasureCalc(Table_PI[[#This Row],[Hide:\nFormula Name]],Table_PI[[#This Row],[Quantity]],Table_PI[[#This Row],[List 1]],Table_PI[[#This Row],[List 2]],Table_PI[[#This Row],[List 3]],Table_PI[[#This Row],[Size]],Table_PI[[#This Row],[Input 1]],Table_PI[[#This Row],[Input 2]],Table_PI[[#This Row],[Input 3]],Table_PI[[#This Row],[Input 4]],'Customer Information'!$AR$12,7,ROW()),\"No Rebate\"),\"No Rebate\"),0)","v":0},{"$f":"IF(Table_PI[[#This Row],[Hide:\nFormula Name]]<>\"\",IFERROR(IF(MeasureCalc(Table_PI[[#This Row],[Hide:\nFormula Name]],Table_PI[[#This Row],[Quantity]],Table_PI[[#This Row],[List 1]],Table_PI[[#This Row],[List 2]],Table_PI[[#This Row],[List 3]],Table_PI[[#This Row],[Size]],Table_PI[[#This Row],[Input 1]],Table_PI[[#This Row],[Input 2]],Table_PI[[#This Row],[Input 3]],Table_PI[[#This Row],[Input 4]],'Customer Information'!$AR$12,1,ROW())>0,MeasureCalc(Table_PI[[#This Row],[Hide:\nFormula Name]],Table_PI[[#This Row],[Quantity]],Table_PI[[#This Row],[List 1]],Table_PI[[#This Row],[List 2]],Table_PI[[#This Row],[List 3]],Table_PI[[#This Row],[Size]],Table_PI[[#This Row],[Input 1]],Table_PI[[#This Row],[Input 2]],Table_PI[[#This Row],[Input 3]],Table_PI[[#This Row],[Input 4]],'Customer Information'!$AR$12,8,ROW()),\"No Rebate\"),\"No Rebate\"),0)","v":0},{"$f":"IF(Table_PI[[#This Row],[Hide:\nFormula Name]]<>\"\",IF(AND(Table_PI[[#This Row],[Hide:\nFormula Name]]<>\"\",OR(Table_PI[[#This Row],[Rebate]]>0,Table_PI[[#This Row],[Rebate]]=\"No Rebate\")),TRUE,\"MI: Line Item \" & $A152),\"\")","v":""}]
[{"$f":"IF(Table_PI[[#This Row],[Hide:\nFormula Name]]<>\"\",MAX($A$2:A152)+1,\"\")","v":""},null,null,null,null,null,null,null,null,null,null,null,null,null,null,{"$f":"IFERROR(VLOOKUP(Table_PI[[#This Row],[Measure]],'Equipment Lookups'!$C$3:$D$23,2,FALSE),\"\")","v":""},{"$f":"IF(Table_PI[[#This Row],[Hide:\nFormula Name]]<>\"\",IFERROR(IF(MeasureCalc(Table_PI[[#This Row],[Hide:\nFormula Name]],Table_PI[[#This Row],[Quantity]],Table_PI[[#This Row],[List 1]],Table_PI[[#This Row],[List 2]],Table_PI[[#This Row],[List 3]],Table_PI[[#This Row],[Size]],Table_PI[[#This Row],[Input 1]],Table_PI[[#This Row],[Input 2]],Table_PI[[#This Row],[Input 3]],Table_PI[[#This Row],[Input 4]],'Customer Information'!$AR$12,1,ROW())>0,MeasureCalc(Table_PI[[#This Row],[Hide:\nFormula Name]],Table_PI[[#This Row],[Quantity]],Table_PI[[#This Row],[List 1]],Table_PI[[#This Row],[List 2]],Table_PI[[#This Row],[List 3]],Table_PI[[#This Row],[Size]],Table_PI[[#This Row],[Input 1]],Table_PI[[#This Row],[Input 2]],Table_PI[[#This Row],[Input 3]],Table_PI[[#This Row],[Input 4]],'Customer Information'!$AR$12,1,ROW()),\"No Rebate\"),\"No Rebate\"),0)","v":0},{"$f":"IF(Table_PI[[#This Row],[Hide:\nFormula Name]]<>\"\",IFERROR(IF(MeasureCalc(Table_PI[[#This Row],[Hide:\nFormula Name]],Table_PI[[#This Row],[Quantity]],Table_PI[[#This Row],[List 1]],Table_PI[[#This Row],[List 2]],Table_PI[[#This Row],[List 3]],Table_PI[[#This Row],[Size]],Table_PI[[#This Row],[Input 1]],Table_PI[[#This Row],[Input 2]],Table_PI[[#This Row],[Input 3]],Table_PI[[#This Row],[Input 4]],'Customer Information'!$AR$12,1,ROW())>0,MeasureCalc(Table_PI[[#This Row],[Hide:\nFormula Name]],Table_PI[[#This Row],[Quantity]],Table_PI[[#This Row],[List 1]],Table_PI[[#This Row],[List 2]],Table_PI[[#This Row],[List 3]],Table_PI[[#This Row],[Size]],Table_PI[[#This Row],[Input 1]],Table_PI[[#This Row],[Input 2]],Table_PI[[#This Row],[Input 3]],Table_PI[[#This Row],[Input 4]],'Customer Information'!$AR$12,2,ROW()),\"No Rebate\"),\"No Rebate\"),0)","v":0},{"$f":"IF(Table_PI[[#This Row],[Hide:\nFormula Name]]<>\"\",IFERROR(IF(MeasureCalc(Table_PI[[#This Row],[Hide:\nFormula Name]],Table_PI[[#This Row],[Quantity]],Table_PI[[#This Row],[List 1]],Table_PI[[#This Row],[List 2]],Table_PI[[#This Row],[List 3]],Table_PI[[#This Row],[Size]],Table_PI[[#This Row],[Input 1]],Table_PI[[#This Row],[Input 2]],Table_PI[[#This Row],[Input 3]],Table_PI[[#This Row],[Input 4]],'Customer Information'!$AR$12,1,ROW())>0,MeasureCalc(Table_PI[[#This Row],[Hide:\nFormula Name]],Table_PI[[#This Row],[Quantity]],Table_PI[[#This Row],[List 1]],Table_PI[[#This Row],[List 2]],Table_PI[[#This Row],[List 3]],Table_PI[[#This Row],[Size]],Table_PI[[#This Row],[Input 1]],Table_PI[[#This Row],[Input 2]],Table_PI[[#This Row],[Input 3]],Table_PI[[#This Row],[Input 4]],'Customer Information'!$AR$12,3,ROW()),\"No Rebate\"),\"No Rebate\"),0)","v":0},{"$f":"IF(Table_PI[[#This Row],[Hide:\nFormula Name]]<>\"\",IFERROR(IF(MeasureCalc(Table_PI[[#This Row],[Hide:\nFormula Name]],Table_PI[[#This Row],[Quantity]],Table_PI[[#This Row],[List 1]],Table_PI[[#This Row],[List 2]],Table_PI[[#This Row],[List 3]],Table_PI[[#This Row],[Size]],Table_PI[[#This Row],[Input 1]],Table_PI[[#This Row],[Input 2]],Table_PI[[#This Row],[Input 3]],Table_PI[[#This Row],[Input 4]],'Customer Information'!$AR$12,1,ROW())>0,MeasureCalc(Table_PI[[#This Row],[Hide:\nFormula Name]],Table_PI[[#This Row],[Quantity]],Table_PI[[#This Row],[List 1]],Table_PI[[#This Row],[List 2]],Table_PI[[#This Row],[List 3]],Table_PI[[#This Row],[Size]],Table_PI[[#This Row],[Input 1]],Table_PI[[#This Row],[Input 2]],Table_PI[[#This Row],[Input 3]],Table_PI[[#This Row],[Input 4]],'Customer Information'!$AR$12,4,ROW()),\"No Rebate\"),\"No Rebate\"),0)","v":0},{"$f":"IF(Table_PI[[#This Row],[Hide:\nFormula Name]]<>\"\",IFERROR(IF(MeasureCalc(Table_PI[[#This Row],[Hide:\nFormula Name]],Table_PI[[#This Row],[Quantity]],Table_PI[[#This Row],[List 1]],Table_PI[[#This Row],[List 2]],Table_PI[[#This Row],[List 3]],Table_PI[[#This Row],[Size]],Table_PI[[#This Row],[Input 1]],Table_PI[[#This Row],[Input 2]],Table_PI[[#This Row],[Input 3]],Table_PI[[#This Row],[Input 4]],'Customer Information'!$AR$12,1,ROW())>0,MeasureCalc(Table_PI[[#This Row],[Hide:\nFormula Name]],Table_PI[[#This Row],[Quantity]],Table_PI[[#This Row],[List 1]],Table_PI[[#This Row],[List 2]],Table_PI[[#This Row],[List 3]],Table_PI[[#This Row],[Size]],Table_PI[[#This Row],[Input 1]],Table_PI[[#This Row],[Input 2]],Table_PI[[#This Row],[Input 3]],Table_PI[[#This Row],[Input 4]],'Customer Information'!$AR$12,5,ROW()),\"No Rebate\"),\"No Rebate\"),0)","v":0},{"$f":"IF(Table_PI[[#This Row],[Hide:\nFormula Name]]<>\"\",IFERROR(IF(MeasureCalc(Table_PI[[#This Row],[Hide:\nFormula Name]],Table_PI[[#This Row],[Quantity]],Table_PI[[#This Row],[List 1]],Table_PI[[#This Row],[List 2]],Table_PI[[#This Row],[List 3]],Table_PI[[#This Row],[Size]],Table_PI[[#This Row],[Input 1]],Table_PI[[#This Row],[Input 2]],Table_PI[[#This Row],[Input 3]],Table_PI[[#This Row],[Input 4]],'Customer Information'!$AR$12,1,ROW())>0,MeasureCalc(Table_PI[[#This Row],[Hide:\nFormula Name]],Table_PI[[#This Row],[Quantity]],Table_PI[[#This Row],[List 1]],Table_PI[[#This Row],[List 2]],Table_PI[[#This Row],[List 3]],Table_PI[[#This Row],[Size]],Table_PI[[#This Row],[Input 1]],Table_PI[[#This Row],[Input 2]],Table_PI[[#This Row],[Input 3]],Table_PI[[#This Row],[Input 4]],'Customer Information'!$AR$12,6,ROW()),\"No Rebate\"),\"No Rebate\"),0)","v":0},{"$f":"IF(Table_PI[[#This Row],[Hide:\nFormula Name]]<>\"\",IFERROR(IF(MeasureCalc(Table_PI[[#This Row],[Hide:\nFormula Name]],Table_PI[[#This Row],[Quantity]],Table_PI[[#This Row],[List 1]],Table_PI[[#This Row],[List 2]],Table_PI[[#This Row],[List 3]],Table_PI[[#This Row],[Size]],Table_PI[[#This Row],[Input 1]],Table_PI[[#This Row],[Input 2]],Table_PI[[#This Row],[Input 3]],Table_PI[[#This Row],[Input 4]],'Customer Information'!$AR$12,1,ROW())>0,MeasureCalc(Table_PI[[#This Row],[Hide:\nFormula Name]],Table_PI[[#This Row],[Quantity]],Table_PI[[#This Row],[List 1]],Table_PI[[#This Row],[List 2]],Table_PI[[#This Row],[List 3]],Table_PI[[#This Row],[Size]],Table_PI[[#This Row],[Input 1]],Table_PI[[#This Row],[Input 2]],Table_PI[[#This Row],[Input 3]],Table_PI[[#This Row],[Input 4]],'Customer Information'!$AR$12,7,ROW()),\"No Rebate\"),\"No Rebate\"),0)","v":0},{"$f":"IF(Table_PI[[#This Row],[Hide:\nFormula Name]]<>\"\",IFERROR(IF(MeasureCalc(Table_PI[[#This Row],[Hide:\nFormula Name]],Table_PI[[#This Row],[Quantity]],Table_PI[[#This Row],[List 1]],Table_PI[[#This Row],[List 2]],Table_PI[[#This Row],[List 3]],Table_PI[[#This Row],[Size]],Table_PI[[#This Row],[Input 1]],Table_PI[[#This Row],[Input 2]],Table_PI[[#This Row],[Input 3]],Table_PI[[#This Row],[Input 4]],'Customer Information'!$AR$12,1,ROW())>0,MeasureCalc(Table_PI[[#This Row],[Hide:\nFormula Name]],Table_PI[[#This Row],[Quantity]],Table_PI[[#This Row],[List 1]],Table_PI[[#This Row],[List 2]],Table_PI[[#This Row],[List 3]],Table_PI[[#This Row],[Size]],Table_PI[[#This Row],[Input 1]],Table_PI[[#This Row],[Input 2]],Table_PI[[#This Row],[Input 3]],Table_PI[[#This Row],[Input 4]],'Customer Information'!$AR$12,8,ROW()),\"No Rebate\"),\"No Rebate\"),0)","v":0},{"$f":"IF(Table_PI[[#This Row],[Hide:\nFormula Name]]<>\"\",IF(AND(Table_PI[[#This Row],[Hide:\nFormula Name]]<>\"\",OR(Table_PI[[#This Row],[Rebate]]>0,Table_PI[[#This Row],[Rebate]]=\"No Rebate\")),TRUE,\"MI: Line Item \" & $A153),\"\")","v":""}]
[{"$f":"IF(Table_PI[[#This Row],[Hide:\nFormula Name]]<>\"\",MAX($A$2:A153)+1,\"\")","v":""},null,null,null,null,null,null,null,null,null,null,null,null,null,null,{"$f":"IFERROR(VLOOKUP(Table_PI[[#This Row],[Measure]],'Equipment Lookups'!$C$3:$D$23,2,FALSE),\"\")","v":""},{"$f":"IF(Table_PI[[#This Row],[Hide:\nFormula Name]]<>\"\",IFERROR(IF(MeasureCalc(Table_PI[[#This Row],[Hide:\nFormula Name]],Table_PI[[#This Row],[Quantity]],Table_PI[[#This Row],[List 1]],Table_PI[[#This Row],[List 2]],Table_PI[[#This Row],[List 3]],Table_PI[[#This Row],[Size]],Table_PI[[#This Row],[Input 1]],Table_PI[[#This Row],[Input 2]],Table_PI[[#This Row],[Input 3]],Table_PI[[#This Row],[Input 4]],'Customer Information'!$AR$12,1,ROW())>0,MeasureCalc(Table_PI[[#This Row],[Hide:\nFormula Name]],Table_PI[[#This Row],[Quantity]],Table_PI[[#This Row],[List 1]],Table_PI[[#This Row],[List 2]],Table_PI[[#This Row],[List 3]],Table_PI[[#This Row],[Size]],Table_PI[[#This Row],[Input 1]],Table_PI[[#This Row],[Input 2]],Table_PI[[#This Row],[Input 3]],Table_PI[[#This Row],[Input 4]],'Customer Information'!$AR$12,1,ROW()),\"No Rebate\"),\"No Rebate\"),0)","v":0},{"$f":"IF(Table_PI[[#This Row],[Hide:\nFormula Name]]<>\"\",IFERROR(IF(MeasureCalc(Table_PI[[#This Row],[Hide:\nFormula Name]],Table_PI[[#This Row],[Quantity]],Table_PI[[#This Row],[List 1]],Table_PI[[#This Row],[List 2]],Table_PI[[#This Row],[List 3]],Table_PI[[#This Row],[Size]],Table_PI[[#This Row],[Input 1]],Table_PI[[#This Row],[Input 2]],Table_PI[[#This Row],[Input 3]],Table_PI[[#This Row],[Input 4]],'Customer Information'!$AR$12,1,ROW())>0,MeasureCalc(Table_PI[[#This Row],[Hide:\nFormula Name]],Table_PI[[#This Row],[Quantity]],Table_PI[[#This Row],[List 1]],Table_PI[[#This Row],[List 2]],Table_PI[[#This Row],[List 3]],Table_PI[[#This Row],[Size]],Table_PI[[#This Row],[Input 1]],Table_PI[[#This Row],[Input 2]],Table_PI[[#This Row],[Input 3]],Table_PI[[#This Row],[Input 4]],'Customer Information'!$AR$12,2,ROW()),\"No Rebate\"),\"No Rebate\"),0)","v":0},{"$f":"IF(Table_PI[[#This Row],[Hide:\nFormula Name]]<>\"\",IFERROR(IF(MeasureCalc(Table_PI[[#This Row],[Hide:\nFormula Name]],Table_PI[[#This Row],[Quantity]],Table_PI[[#This Row],[List 1]],Table_PI[[#This Row],[List 2]],Table_PI[[#This Row],[List 3]],Table_PI[[#This Row],[Size]],Table_PI[[#This Row],[Input 1]],Table_PI[[#This Row],[Input 2]],Table_PI[[#This Row],[Input 3]],Table_PI[[#This Row],[Input 4]],'Customer Information'!$AR$12,1,ROW())>0,MeasureCalc(Table_PI[[#This Row],[Hide:\nFormula Name]],Table_PI[[#This Row],[Quantity]],Table_PI[[#This Row],[List 1]],Table_PI[[#This Row],[List 2]],Table_PI[[#This Row],[List 3]],Table_PI[[#This Row],[Size]],Table_PI[[#This Row],[Input 1]],Table_PI[[#This Row],[Input 2]],Table_PI[[#This Row],[Input 3]],Table_PI[[#This Row],[Input 4]],'Customer Information'!$AR$12,3,ROW()),\"No Rebate\"),\"No Rebate\"),0)","v":0},{"$f":"IF(Table_PI[[#This Row],[Hide:\nFormula Name]]<>\"\",IFERROR(IF(MeasureCalc(Table_PI[[#This Row],[Hide:\nFormula Name]],Table_PI[[#This Row],[Quantity]],Table_PI[[#This Row],[List 1]],Table_PI[[#This Row],[List 2]],Table_PI[[#This Row],[List 3]],Table_PI[[#This Row],[Size]],Table_PI[[#This Row],[Input 1]],Table_PI[[#This Row],[Input 2]],Table_PI[[#This Row],[Input 3]],Table_PI[[#This Row],[Input 4]],'Customer Information'!$AR$12,1,ROW())>0,MeasureCalc(Table_PI[[#This Row],[Hide:\nFormula Name]],Table_PI[[#This Row],[Quantity]],Table_PI[[#This Row],[List 1]],Table_PI[[#This Row],[List 2]],Table_PI[[#This Row],[List 3]],Table_PI[[#This Row],[Size]],Table_PI[[#This Row],[Input 1]],Table_PI[[#This Row],[Input 2]],Table_PI[[#This Row],[Input 3]],Table_PI[[#This Row],[Input 4]],'Customer Information'!$AR$12,4,ROW()),\"No Rebate\"),\"No Rebate\"),0)","v":0},{"$f":"IF(Table_PI[[#This Row],[Hide:\nFormula Name]]<>\"\",IFERROR(IF(MeasureCalc(Table_PI[[#This Row],[Hide:\nFormula Name]],Table_PI[[#This Row],[Quantity]],Table_PI[[#This Row],[List 1]],Table_PI[[#This Row],[List 2]],Table_PI[[#This Row],[List 3]],Table_PI[[#This Row],[Size]],Table_PI[[#This Row],[Input 1]],Table_PI[[#This Row],[Input 2]],Table_PI[[#This Row],[Input 3]],Table_PI[[#This Row],[Input 4]],'Customer Information'!$AR$12,1,ROW())>0,MeasureCalc(Table_PI[[#This Row],[Hide:\nFormula Name]],Table_PI[[#This Row],[Quantity]],Table_PI[[#This Row],[List 1]],Table_PI[[#This Row],[List 2]],Table_PI[[#This Row],[List 3]],Table_PI[[#This Row],[Size]],Table_PI[[#This Row],[Input 1]],Table_PI[[#This Row],[Input 2]],Table_PI[[#This Row],[Input 3]],Table_PI[[#This Row],[Input 4]],'Customer Information'!$AR$12,5,ROW()),\"No Rebate\"),\"No Rebate\"),0)","v":0},{"$f":"IF(Table_PI[[#This Row],[Hide:\nFormula Name]]<>\"\",IFERROR(IF(MeasureCalc(Table_PI[[#This Row],[Hide:\nFormula Name]],Table_PI[[#This Row],[Quantity]],Table_PI[[#This Row],[List 1]],Table_PI[[#This Row],[List 2]],Table_PI[[#This Row],[List 3]],Table_PI[[#This Row],[Size]],Table_PI[[#This Row],[Input 1]],Table_PI[[#This Row],[Input 2]],Table_PI[[#This Row],[Input 3]],Table_PI[[#This Row],[Input 4]],'Customer Information'!$AR$12,1,ROW())>0,MeasureCalc(Table_PI[[#This Row],[Hide:\nFormula Name]],Table_PI[[#This Row],[Quantity]],Table_PI[[#This Row],[List 1]],Table_PI[[#This Row],[List 2]],Table_PI[[#This Row],[List 3]],Table_PI[[#This Row],[Size]],Table_PI[[#This Row],[Input 1]],Table_PI[[#This Row],[Input 2]],Table_PI[[#This Row],[Input 3]],Table_PI[[#This Row],[Input 4]],'Customer Information'!$AR$12,6,ROW()),\"No Rebate\"),\"No Rebate\"),0)","v":0},{"$f":"IF(Table_PI[[#This Row],[Hide:\nFormula Name]]<>\"\",IFERROR(IF(MeasureCalc(Table_PI[[#This Row],[Hide:\nFormula Name]],Table_PI[[#This Row],[Quantity]],Table_PI[[#This Row],[List 1]],Table_PI[[#This Row],[List 2]],Table_PI[[#This Row],[List 3]],Table_PI[[#This Row],[Size]],Table_PI[[#This Row],[Input 1]],Table_PI[[#This Row],[Input 2]],Table_PI[[#This Row],[Input 3]],Table_PI[[#This Row],[Input 4]],'Customer Information'!$AR$12,1,ROW())>0,MeasureCalc(Table_PI[[#This Row],[Hide:\nFormula Name]],Table_PI[[#This Row],[Quantity]],Table_PI[[#This Row],[List 1]],Table_PI[[#This Row],[List 2]],Table_PI[[#This Row],[List 3]],Table_PI[[#This Row],[Size]],Table_PI[[#This Row],[Input 1]],Table_PI[[#This Row],[Input 2]],Table_PI[[#This Row],[Input 3]],Table_PI[[#This Row],[Input 4]],'Customer Information'!$AR$12,7,ROW()),\"No Rebate\"),\"No Rebate\"),0)","v":0},{"$f":"IF(Table_PI[[#This Row],[Hide:\nFormula Name]]<>\"\",IFERROR(IF(MeasureCalc(Table_PI[[#This Row],[Hide:\nFormula Name]],Table_PI[[#This Row],[Quantity]],Table_PI[[#This Row],[List 1]],Table_PI[[#This Row],[List 2]],Table_PI[[#This Row],[List 3]],Table_PI[[#This Row],[Size]],Table_PI[[#This Row],[Input 1]],Table_PI[[#This Row],[Input 2]],Table_PI[[#This Row],[Input 3]],Table_PI[[#This Row],[Input 4]],'Customer Information'!$AR$12,1,ROW())>0,MeasureCalc(Table_PI[[#This Row],[Hide:\nFormula Name]],Table_PI[[#This Row],[Quantity]],Table_PI[[#This Row],[List 1]],Table_PI[[#This Row],[List 2]],Table_PI[[#This Row],[List 3]],Table_PI[[#This Row],[Size]],Table_PI[[#This Row],[Input 1]],Table_PI[[#This Row],[Input 2]],Table_PI[[#This Row],[Input 3]],Table_PI[[#This Row],[Input 4]],'Customer Information'!$AR$12,8,ROW()),\"No Rebate\"),\"No Rebate\"),0)","v":0},{"$f":"IF(Table_PI[[#This Row],[Hide:\nFormula Name]]<>\"\",IF(AND(Table_PI[[#This Row],[Hide:\nFormula Name]]<>\"\",OR(Table_PI[[#This Row],[Rebate]]>0,Table_PI[[#This Row],[Rebate]]=\"No Rebate\")),TRUE,\"MI: Line Item \" & $A154),\"\")","v":""}]
[{"$f":"IF(Table_PI[[#This Row],[Hide:\nFormula Name]]<>\"\",MAX($A$2:A154)+1,\"\")","v":""},null,null,null,null,null,null,null,null,null,null,null,null,null,null,{"$f":"IFERROR(VLOOKUP(Table_PI[[#This Row],[Measure]],'Equipment Lookups'!$C$3:$D$23,2,FALSE),\"\")","v":""},{"$f":"IF(Table_PI[[#This Row],[Hide:\nFormula Name]]<>\"\",IFERROR(IF(MeasureCalc(Table_PI[[#This Row],[Hide:\nFormula Name]],Table_PI[[#This Row],[Quantity]],Table_PI[[#This Row],[List 1]],Table_PI[[#This Row],[List 2]],Table_PI[[#This Row],[List 3]],Table_PI[[#This Row],[Size]],Table_PI[[#This Row],[Input 1]],Table_PI[[#This Row],[Input 2]],Table_PI[[#This Row],[Input 3]],Table_PI[[#This Row],[Input 4]],'Customer Information'!$AR$12,1,ROW())>0,MeasureCalc(Table_PI[[#This Row],[Hide:\nFormula Name]],Table_PI[[#This Row],[Quantity]],Table_PI[[#This Row],[List 1]],Table_PI[[#This Row],[List 2]],Table_PI[[#This Row],[List 3]],Table_PI[[#This Row],[Size]],Table_PI[[#This Row],[Input 1]],Table_PI[[#This Row],[Input 2]],Table_PI[[#This Row],[Input 3]],Table_PI[[#This Row],[Input 4]],'Customer Information'!$AR$12,1,ROW()),\"No Rebate\"),\"No Rebate\"),0)","v":0},{"$f":"IF(Table_PI[[#This Row],[Hide:\nFormula Name]]<>\"\",IFERROR(IF(MeasureCalc(Table_PI[[#This Row],[Hide:\nFormula Name]],Table_PI[[#This Row],[Quantity]],Table_PI[[#This Row],[List 1]],Table_PI[[#This Row],[List 2]],Table_PI[[#This Row],[List 3]],Table_PI[[#This Row],[Size]],Table_PI[[#This Row],[Input 1]],Table_PI[[#This Row],[Input 2]],Table_PI[[#This Row],[Input 3]],Table_PI[[#This Row],[Input 4]],'Customer Information'!$AR$12,1,ROW())>0,MeasureCalc(Table_PI[[#This Row],[Hide:\nFormula Name]],Table_PI[[#This Row],[Quantity]],Table_PI[[#This Row],[List 1]],Table_PI[[#This Row],[List 2]],Table_PI[[#This Row],[List 3]],Table_PI[[#This Row],[Size]],Table_PI[[#This Row],[Input 1]],Table_PI[[#This Row],[Input 2]],Table_PI[[#This Row],[Input 3]],Table_PI[[#This Row],[Input 4]],'Customer Information'!$AR$12,2,ROW()),\"No Rebate\"),\"No Rebate\"),0)","v":0},{"$f":"IF(Table_PI[[#This Row],[Hide:\nFormula Name]]<>\"\",IFERROR(IF(MeasureCalc(Table_PI[[#This Row],[Hide:\nFormula Name]],Table_PI[[#This Row],[Quantity]],Table_PI[[#This Row],[List 1]],Table_PI[[#This Row],[List 2]],Table_PI[[#This Row],[List 3]],Table_PI[[#This Row],[Size]],Table_PI[[#This Row],[Input 1]],Table_PI[[#This Row],[Input 2]],Table_PI[[#This Row],[Input 3]],Table_PI[[#This Row],[Input 4]],'Customer Information'!$AR$12,1,ROW())>0,MeasureCalc(Table_PI[[#This Row],[Hide:\nFormula Name]],Table_PI[[#This Row],[Quantity]],Table_PI[[#This Row],[List 1]],Table_PI[[#This Row],[List 2]],Table_PI[[#This Row],[List 3]],Table_PI[[#This Row],[Size]],Table_PI[[#This Row],[Input 1]],Table_PI[[#This Row],[Input 2]],Table_PI[[#This Row],[Input 3]],Table_PI[[#This Row],[Input 4]],'Customer Information'!$AR$12,3,ROW()),\"No Rebate\"),\"No Rebate\"),0)","v":0},{"$f":"IF(Table_PI[[#This Row],[Hide:\nFormula Name]]<>\"\",IFERROR(IF(MeasureCalc(Table_PI[[#This Row],[Hide:\nFormula Name]],Table_PI[[#This Row],[Quantity]],Table_PI[[#This Row],[List 1]],Table_PI[[#This Row],[List 2]],Table_PI[[#This Row],[List 3]],Table_PI[[#This Row],[Size]],Table_PI[[#This Row],[Input 1]],Table_PI[[#This Row],[Input 2]],Table_PI[[#This Row],[Input 3]],Table_PI[[#This Row],[Input 4]],'Customer Information'!$AR$12,1,ROW())>0,MeasureCalc(Table_PI[[#This Row],[Hide:\nFormula Name]],Table_PI[[#This Row],[Quantity]],Table_PI[[#This Row],[List 1]],Table_PI[[#This Row],[List 2]],Table_PI[[#This Row],[List 3]],Table_PI[[#This Row],[Size]],Table_PI[[#This Row],[Input 1]],Table_PI[[#This Row],[Input 2]],Table_PI[[#This Row],[Input 3]],Table_PI[[#This Row],[Input 4]],'Customer Information'!$AR$12,4,ROW()),\"No Rebate\"),\"No Rebate\"),0)","v":0},{"$f":"IF(Table_PI[[#This Row],[Hide:\nFormula Name]]<>\"\",IFERROR(IF(MeasureCalc(Table_PI[[#This Row],[Hide:\nFormula Name]],Table_PI[[#This Row],[Quantity]],Table_PI[[#This Row],[List 1]],Table_PI[[#This Row],[List 2]],Table_PI[[#This Row],[List 3]],Table_PI[[#This Row],[Size]],Table_PI[[#This Row],[Input 1]],Table_PI[[#This Row],[Input 2]],Table_PI[[#This Row],[Input 3]],Table_PI[[#This Row],[Input 4]],'Customer Information'!$AR$12,1,ROW())>0,MeasureCalc(Table_PI[[#This Row],[Hide:\nFormula Name]],Table_PI[[#This Row],[Quantity]],Table_PI[[#This Row],[List 1]],Table_PI[[#This Row],[List 2]],Table_PI[[#This Row],[List 3]],Table_PI[[#This Row],[Size]],Table_PI[[#This Row],[Input 1]],Table_PI[[#This Row],[Input 2]],Table_PI[[#This Row],[Input 3]],Table_PI[[#This Row],[Input 4]],'Customer Information'!$AR$12,5,ROW()),\"No Rebate\"),\"No Rebate\"),0)","v":0},{"$f":"IF(Table_PI[[#This Row],[Hide:\nFormula Name]]<>\"\",IFERROR(IF(MeasureCalc(Table_PI[[#This Row],[Hide:\nFormula Name]],Table_PI[[#This Row],[Quantity]],Table_PI[[#This Row],[List 1]],Table_PI[[#This Row],[List 2]],Table_PI[[#This Row],[List 3]],Table_PI[[#This Row],[Size]],Table_PI[[#This Row],[Input 1]],Table_PI[[#This Row],[Input 2]],Table_PI[[#This Row],[Input 3]],Table_PI[[#This Row],[Input 4]],'Customer Information'!$AR$12,1,ROW())>0,MeasureCalc(Table_PI[[#This Row],[Hide:\nFormula Name]],Table_PI[[#This Row],[Quantity]],Table_PI[[#This Row],[List 1]],Table_PI[[#This Row],[List 2]],Table_PI[[#This Row],[List 3]],Table_PI[[#This Row],[Size]],Table_PI[[#This Row],[Input 1]],Table_PI[[#This Row],[Input 2]],Table_PI[[#This Row],[Input 3]],Table_PI[[#This Row],[Input 4]],'Customer Information'!$AR$12,6,ROW()),\"No Rebate\"),\"No Rebate\"),0)","v":0},{"$f":"IF(Table_PI[[#This Row],[Hide:\nFormula Name]]<>\"\",IFERROR(IF(MeasureCalc(Table_PI[[#This Row],[Hide:\nFormula Name]],Table_PI[[#This Row],[Quantity]],Table_PI[[#This Row],[List 1]],Table_PI[[#This Row],[List 2]],Table_PI[[#This Row],[List 3]],Table_PI[[#This Row],[Size]],Table_PI[[#This Row],[Input 1]],Table_PI[[#This Row],[Input 2]],Table_PI[[#This Row],[Input 3]],Table_PI[[#This Row],[Input 4]],'Customer Information'!$AR$12,1,ROW())>0,MeasureCalc(Table_PI[[#This Row],[Hide:\nFormula Name]],Table_PI[[#This Row],[Quantity]],Table_PI[[#This Row],[List 1]],Table_PI[[#This Row],[List 2]],Table_PI[[#This Row],[List 3]],Table_PI[[#This Row],[Size]],Table_PI[[#This Row],[Input 1]],Table_PI[[#This Row],[Input 2]],Table_PI[[#This Row],[Input 3]],Table_PI[[#This Row],[Input 4]],'Customer Information'!$AR$12,7,ROW()),\"No Rebate\"),\"No Rebate\"),0)","v":0},{"$f":"IF(Table_PI[[#This Row],[Hide:\nFormula Name]]<>\"\",IFERROR(IF(MeasureCalc(Table_PI[[#This Row],[Hide:\nFormula Name]],Table_PI[[#This Row],[Quantity]],Table_PI[[#This Row],[List 1]],Table_PI[[#This Row],[List 2]],Table_PI[[#This Row],[List 3]],Table_PI[[#This Row],[Size]],Table_PI[[#This Row],[Input 1]],Table_PI[[#This Row],[Input 2]],Table_PI[[#This Row],[Input 3]],Table_PI[[#This Row],[Input 4]],'Customer Information'!$AR$12,1,ROW())>0,MeasureCalc(Table_PI[[#This Row],[Hide:\nFormula Name]],Table_PI[[#This Row],[Quantity]],Table_PI[[#This Row],[List 1]],Table_PI[[#This Row],[List 2]],Table_PI[[#This Row],[List 3]],Table_PI[[#This Row],[Size]],Table_PI[[#This Row],[Input 1]],Table_PI[[#This Row],[Input 2]],Table_PI[[#This Row],[Input 3]],Table_PI[[#This Row],[Input 4]],'Customer Information'!$AR$12,8,ROW()),\"No Rebate\"),\"No Rebate\"),0)","v":0},{"$f":"IF(Table_PI[[#This Row],[Hide:\nFormula Name]]<>\"\",IF(AND(Table_PI[[#This Row],[Hide:\nFormula Name]]<>\"\",OR(Table_PI[[#This Row],[Rebate]]>0,Table_PI[[#This Row],[Rebate]]=\"No Rebate\")),TRUE,\"MI: Line Item \" & $A155),\"\")","v":""}]
[{"$f":"IF(Table_PI[[#This Row],[Hide:\nFormula Name]]<>\"\",MAX($A$2:A155)+1,\"\")","v":""},null,null,null,null,null,null,null,null,null,null,null,null,null,null,{"$f":"IFERROR(VLOOKUP(Table_PI[[#This Row],[Measure]],'Equipment Lookups'!$C$3:$D$23,2,FALSE),\"\")","v":""},{"$f":"IF(Table_PI[[#This Row],[Hide:\nFormula Name]]<>\"\",IFERROR(IF(MeasureCalc(Table_PI[[#This Row],[Hide:\nFormula Name]],Table_PI[[#This Row],[Quantity]],Table_PI[[#This Row],[List 1]],Table_PI[[#This Row],[List 2]],Table_PI[[#This Row],[List 3]],Table_PI[[#This Row],[Size]],Table_PI[[#This Row],[Input 1]],Table_PI[[#This Row],[Input 2]],Table_PI[[#This Row],[Input 3]],Table_PI[[#This Row],[Input 4]],'Customer Information'!$AR$12,1,ROW())>0,MeasureCalc(Table_PI[[#This Row],[Hide:\nFormula Name]],Table_PI[[#This Row],[Quantity]],Table_PI[[#This Row],[List 1]],Table_PI[[#This Row],[List 2]],Table_PI[[#This Row],[List 3]],Table_PI[[#This Row],[Size]],Table_PI[[#This Row],[Input 1]],Table_PI[[#This Row],[Input 2]],Table_PI[[#This Row],[Input 3]],Table_PI[[#This Row],[Input 4]],'Customer Information'!$AR$12,1,ROW()),\"No Rebate\"),\"No Rebate\"),0)","v":0},{"$f":"IF(Table_PI[[#This Row],[Hide:\nFormula Name]]<>\"\",IFERROR(IF(MeasureCalc(Table_PI[[#This Row],[Hide:\nFormula Name]],Table_PI[[#This Row],[Quantity]],Table_PI[[#This Row],[List 1]],Table_PI[[#This Row],[List 2]],Table_PI[[#This Row],[List 3]],Table_PI[[#This Row],[Size]],Table_PI[[#This Row],[Input 1]],Table_PI[[#This Row],[Input 2]],Table_PI[[#This Row],[Input 3]],Table_PI[[#This Row],[Input 4]],'Customer Information'!$AR$12,1,ROW())>0,MeasureCalc(Table_PI[[#This Row],[Hide:\nFormula Name]],Table_PI[[#This Row],[Quantity]],Table_PI[[#This Row],[List 1]],Table_PI[[#This Row],[List 2]],Table_PI[[#This Row],[List 3]],Table_PI[[#This Row],[Size]],Table_PI[[#This Row],[Input 1]],Table_PI[[#This Row],[Input 2]],Table_PI[[#This Row],[Input 3]],Table_PI[[#This Row],[Input 4]],'Customer Information'!$AR$12,2,ROW()),\"No Rebate\"),\"No Rebate\"),0)","v":0},{"$f":"IF(Table_PI[[#This Row],[Hide:\nFormula Name]]<>\"\",IFERROR(IF(MeasureCalc(Table_PI[[#This Row],[Hide:\nFormula Name]],Table_PI[[#This Row],[Quantity]],Table_PI[[#This Row],[List 1]],Table_PI[[#This Row],[List 2]],Table_PI[[#This Row],[List 3]],Table_PI[[#This Row],[Size]],Table_PI[[#This Row],[Input 1]],Table_PI[[#This Row],[Input 2]],Table_PI[[#This Row],[Input 3]],Table_PI[[#This Row],[Input 4]],'Customer Information'!$AR$12,1,ROW())>0,MeasureCalc(Table_PI[[#This Row],[Hide:\nFormula Name]],Table_PI[[#This Row],[Quantity]],Table_PI[[#This Row],[List 1]],Table_PI[[#This Row],[List 2]],Table_PI[[#This Row],[List 3]],Table_PI[[#This Row],[Size]],Table_PI[[#This Row],[Input 1]],Table_PI[[#This Row],[Input 2]],Table_PI[[#This Row],[Input 3]],Table_PI[[#This Row],[Input 4]],'Customer Information'!$AR$12,3,ROW()),\"No Rebate\"),\"No Rebate\"),0)","v":0},{"$f":"IF(Table_PI[[#This Row],[Hide:\nFormula Name]]<>\"\",IFERROR(IF(MeasureCalc(Table_PI[[#This Row],[Hide:\nFormula Name]],Table_PI[[#This Row],[Quantity]],Table_PI[[#This Row],[List 1]],Table_PI[[#This Row],[List 2]],Table_PI[[#This Row],[List 3]],Table_PI[[#This Row],[Size]],Table_PI[[#This Row],[Input 1]],Table_PI[[#This Row],[Input 2]],Table_PI[[#This Row],[Input 3]],Table_PI[[#This Row],[Input 4]],'Customer Information'!$AR$12,1,ROW())>0,MeasureCalc(Table_PI[[#This Row],[Hide:\nFormula Name]],Table_PI[[#This Row],[Quantity]],Table_PI[[#This Row],[List 1]],Table_PI[[#This Row],[List 2]],Table_PI[[#This Row],[List 3]],Table_PI[[#This Row],[Size]],Table_PI[[#This Row],[Input 1]],Table_PI[[#This Row],[Input 2]],Table_PI[[#This Row],[Input 3]],Table_PI[[#This Row],[Input 4]],'Customer Information'!$AR$12,4,ROW()),\"No Rebate\"),\"No Rebate\"),0)","v":0},{"$f":"IF(Table_PI[[#This Row],[Hide:\nFormula Name]]<>\"\",IFERROR(IF(MeasureCalc(Table_PI[[#This Row],[Hide:\nFormula Name]],Table_PI[[#This Row],[Quantity]],Table_PI[[#This Row],[List 1]],Table_PI[[#This Row],[List 2]],Table_PI[[#This Row],[List 3]],Table_PI[[#This Row],[Size]],Table_PI[[#This Row],[Input 1]],Table_PI[[#This Row],[Input 2]],Table_PI[[#This Row],[Input 3]],Table_PI[[#This Row],[Input 4]],'Customer Information'!$AR$12,1,ROW())>0,MeasureCalc(Table_PI[[#This Row],[Hide:\nFormula Name]],Table_PI[[#This Row],[Quantity]],Table_PI[[#This Row],[List 1]],Table_PI[[#This Row],[List 2]],Table_PI[[#This Row],[List 3]],Table_PI[[#This Row],[Size]],Table_PI[[#This Row],[Input 1]],Table_PI[[#This Row],[Input 2]],Table_PI[[#This Row],[Input 3]],Table_PI[[#This Row],[Input 4]],'Customer Information'!$AR$12,5,ROW()),\"No Rebate\"),\"No Rebate\"),0)","v":0},{"$f":"IF(Table_PI[[#This Row],[Hide:\nFormula Name]]<>\"\",IFERROR(IF(MeasureCalc(Table_PI[[#This Row],[Hide:\nFormula Name]],Table_PI[[#This Row],[Quantity]],Table_PI[[#This Row],[List 1]],Table_PI[[#This Row],[List 2]],Table_PI[[#This Row],[List 3]],Table_PI[[#This Row],[Size]],Table_PI[[#This Row],[Input 1]],Table_PI[[#This Row],[Input 2]],Table_PI[[#This Row],[Input 3]],Table_PI[[#This Row],[Input 4]],'Customer Information'!$AR$12,1,ROW())>0,MeasureCalc(Table_PI[[#This Row],[Hide:\nFormula Name]],Table_PI[[#This Row],[Quantity]],Table_PI[[#This Row],[List 1]],Table_PI[[#This Row],[List 2]],Table_PI[[#This Row],[List 3]],Table_PI[[#This Row],[Size]],Table_PI[[#This Row],[Input 1]],Table_PI[[#This Row],[Input 2]],Table_PI[[#This Row],[Input 3]],Table_PI[[#This Row],[Input 4]],'Customer Information'!$AR$12,6,ROW()),\"No Rebate\"),\"No Rebate\"),0)","v":0},{"$f":"IF(Table_PI[[#This Row],[Hide:\nFormula Name]]<>\"\",IFERROR(IF(MeasureCalc(Table_PI[[#This Row],[Hide:\nFormula Name]],Table_PI[[#This Row],[Quantity]],Table_PI[[#This Row],[List 1]],Table_PI[[#This Row],[List 2]],Table_PI[[#This Row],[List 3]],Table_PI[[#This Row],[Size]],Table_PI[[#This Row],[Input 1]],Table_PI[[#This Row],[Input 2]],Table_PI[[#This Row],[Input 3]],Table_PI[[#This Row],[Input 4]],'Customer Information'!$AR$12,1,ROW())>0,MeasureCalc(Table_PI[[#This Row],[Hide:\nFormula Name]],Table_PI[[#This Row],[Quantity]],Table_PI[[#This Row],[List 1]],Table_PI[[#This Row],[List 2]],Table_PI[[#This Row],[List 3]],Table_PI[[#This Row],[Size]],Table_PI[[#This Row],[Input 1]],Table_PI[[#This Row],[Input 2]],Table_PI[[#This Row],[Input 3]],Table_PI[[#This Row],[Input 4]],'Customer Information'!$AR$12,7,ROW()),\"No Rebate\"),\"No Rebate\"),0)","v":0},{"$f":"IF(Table_PI[[#This Row],[Hide:\nFormula Name]]<>\"\",IFERROR(IF(MeasureCalc(Table_PI[[#This Row],[Hide:\nFormula Name]],Table_PI[[#This Row],[Quantity]],Table_PI[[#This Row],[List 1]],Table_PI[[#This Row],[List 2]],Table_PI[[#This Row],[List 3]],Table_PI[[#This Row],[Size]],Table_PI[[#This Row],[Input 1]],Table_PI[[#This Row],[Input 2]],Table_PI[[#This Row],[Input 3]],Table_PI[[#This Row],[Input 4]],'Customer Information'!$AR$12,1,ROW())>0,MeasureCalc(Table_PI[[#This Row],[Hide:\nFormula Name]],Table_PI[[#This Row],[Quantity]],Table_PI[[#This Row],[List 1]],Table_PI[[#This Row],[List 2]],Table_PI[[#This Row],[List 3]],Table_PI[[#This Row],[Size]],Table_PI[[#This Row],[Input 1]],Table_PI[[#This Row],[Input 2]],Table_PI[[#This Row],[Input 3]],Table_PI[[#This Row],[Input 4]],'Customer Information'!$AR$12,8,ROW()),\"No Rebate\"),\"No Rebate\"),0)","v":0},{"$f":"IF(Table_PI[[#This Row],[Hide:\nFormula Name]]<>\"\",IF(AND(Table_PI[[#This Row],[Hide:\nFormula Name]]<>\"\",OR(Table_PI[[#This Row],[Rebate]]>0,Table_PI[[#This Row],[Rebate]]=\"No Rebate\")),TRUE,\"MI: Line Item \" & $A156),\"\")","v":""}]
[{"$f":"IF(Table_PI[[#This Row],[Hide:\nFormula Name]]<>\"\",MAX($A$2:A156)+1,\"\")","v":""},null,null,null,null,null,null,null,null,null,null,null,null,null,null,{"$f":"IFERROR(VLOOKUP(Table_PI[[#This Row],[Measure]],'Equipment Lookups'!$C$3:$D$23,2,FALSE),\"\")","v":""},{"$f":"IF(Table_PI[[#This Row],[Hide:\nFormula Name]]<>\"\",IFERROR(IF(MeasureCalc(Table_PI[[#This Row],[Hide:\nFormula Name]],Table_PI[[#This Row],[Quantity]],Table_PI[[#This Row],[List 1]],Table_PI[[#This Row],[List 2]],Table_PI[[#This Row],[List 3]],Table_PI[[#This Row],[Size]],Table_PI[[#This Row],[Input 1]],Table_PI[[#This Row],[Input 2]],Table_PI[[#This Row],[Input 3]],Table_PI[[#This Row],[Input 4]],'Customer Information'!$AR$12,1,ROW())>0,MeasureCalc(Table_PI[[#This Row],[Hide:\nFormula Name]],Table_PI[[#This Row],[Quantity]],Table_PI[[#This Row],[List 1]],Table_PI[[#This Row],[List 2]],Table_PI[[#This Row],[List 3]],Table_PI[[#This Row],[Size]],Table_PI[[#This Row],[Input 1]],Table_PI[[#This Row],[Input 2]],Table_PI[[#This Row],[Input 3]],Table_PI[[#This Row],[Input 4]],'Customer Information'!$AR$12,1,ROW()),\"No Rebate\"),\"No Rebate\"),0)","v":0},{"$f":"IF(Table_PI[[#This Row],[Hide:\nFormula Name]]<>\"\",IFERROR(IF(MeasureCalc(Table_PI[[#This Row],[Hide:\nFormula Name]],Table_PI[[#This Row],[Quantity]],Table_PI[[#This Row],[List 1]],Table_PI[[#This Row],[List 2]],Table_PI[[#This Row],[List 3]],Table_PI[[#This Row],[Size]],Table_PI[[#This Row],[Input 1]],Table_PI[[#This Row],[Input 2]],Table_PI[[#This Row],[Input 3]],Table_PI[[#This Row],[Input 4]],'Customer Information'!$AR$12,1,ROW())>0,MeasureCalc(Table_PI[[#This Row],[Hide:\nFormula Name]],Table_PI[[#This Row],[Quantity]],Table_PI[[#This Row],[List 1]],Table_PI[[#This Row],[List 2]],Table_PI[[#This Row],[List 3]],Table_PI[[#This Row],[Size]],Table_PI[[#This Row],[Input 1]],Table_PI[[#This Row],[Input 2]],Table_PI[[#This Row],[Input 3]],Table_PI[[#This Row],[Input 4]],'Customer Information'!$AR$12,2,ROW()),\"No Rebate\"),\"No Rebate\"),0)","v":0},{"$f":"IF(Table_PI[[#This Row],[Hide:\nFormula Name]]<>\"\",IFERROR(IF(MeasureCalc(Table_PI[[#This Row],[Hide:\nFormula Name]],Table_PI[[#This Row],[Quantity]],Table_PI[[#This Row],[List 1]],Table_PI[[#This Row],[List 2]],Table_PI[[#This Row],[List 3]],Table_PI[[#This Row],[Size]],Table_PI[[#This Row],[Input 1]],Table_PI[[#This Row],[Input 2]],Table_PI[[#This Row],[Input 3]],Table_PI[[#This Row],[Input 4]],'Customer Information'!$AR$12,1,ROW())>0,MeasureCalc(Table_PI[[#This Row],[Hide:\nFormula Name]],Table_PI[[#This Row],[Quantity]],Table_PI[[#This Row],[List 1]],Table_PI[[#This Row],[List 2]],Table_PI[[#This Row],[List 3]],Table_PI[[#This Row],[Size]],Table_PI[[#This Row],[Input 1]],Table_PI[[#This Row],[Input 2]],Table_PI[[#This Row],[Input 3]],Table_PI[[#This Row],[Input 4]],'Customer Information'!$AR$12,3,ROW()),\"No Rebate\"),\"No Rebate\"),0)","v":0},{"$f":"IF(Table_PI[[#This Row],[Hide:\nFormula Name]]<>\"\",IFERROR(IF(MeasureCalc(Table_PI[[#This Row],[Hide:\nFormula Name]],Table_PI[[#This Row],[Quantity]],Table_PI[[#This Row],[List 1]],Table_PI[[#This Row],[List 2]],Table_PI[[#This Row],[List 3]],Table_PI[[#This Row],[Size]],Table_PI[[#This Row],[Input 1]],Table_PI[[#This Row],[Input 2]],Table_PI[[#This Row],[Input 3]],Table_PI[[#This Row],[Input 4]],'Customer Information'!$AR$12,1,ROW())>0,MeasureCalc(Table_PI[[#This Row],[Hide:\nFormula Name]],Table_PI[[#This Row],[Quantity]],Table_PI[[#This Row],[List 1]],Table_PI[[#This Row],[List 2]],Table_PI[[#This Row],[List 3]],Table_PI[[#This Row],[Size]],Table_PI[[#This Row],[Input 1]],Table_PI[[#This Row],[Input 2]],Table_PI[[#This Row],[Input 3]],Table_PI[[#This Row],[Input 4]],'Customer Information'!$AR$12,4,ROW()),\"No Rebate\"),\"No Rebate\"),0)","v":0},{"$f":"IF(Table_PI[[#This Row],[Hide:\nFormula Name]]<>\"\",IFERROR(IF(MeasureCalc(Table_PI[[#This Row],[Hide:\nFormula Name]],Table_PI[[#This Row],[Quantity]],Table_PI[[#This Row],[List 1]],Table_PI[[#This Row],[List 2]],Table_PI[[#This Row],[List 3]],Table_PI[[#This Row],[Size]],Table_PI[[#This Row],[Input 1]],Table_PI[[#This Row],[Input 2]],Table_PI[[#This Row],[Input 3]],Table_PI[[#This Row],[Input 4]],'Customer Information'!$AR$12,1,ROW())>0,MeasureCalc(Table_PI[[#This Row],[Hide:\nFormula Name]],Table_PI[[#This Row],[Quantity]],Table_PI[[#This Row],[List 1]],Table_PI[[#This Row],[List 2]],Table_PI[[#This Row],[List 3]],Table_PI[[#This Row],[Size]],Table_PI[[#This Row],[Input 1]],Table_PI[[#This Row],[Input 2]],Table_PI[[#This Row],[Input 3]],Table_PI[[#This Row],[Input 4]],'Customer Information'!$AR$12,5,ROW()),\"No Rebate\"),\"No Rebate\"),0)","v":0},{"$f":"IF(Table_PI[[#This Row],[Hide:\nFormula Name]]<>\"\",IFERROR(IF(MeasureCalc(Table_PI[[#This Row],[Hide:\nFormula Name]],Table_PI[[#This Row],[Quantity]],Table_PI[[#This Row],[List 1]],Table_PI[[#This Row],[List 2]],Table_PI[[#This Row],[List 3]],Table_PI[[#This Row],[Size]],Table_PI[[#This Row],[Input 1]],Table_PI[[#This Row],[Input 2]],Table_PI[[#This Row],[Input 3]],Table_PI[[#This Row],[Input 4]],'Customer Information'!$AR$12,1,ROW())>0,MeasureCalc(Table_PI[[#This Row],[Hide:\nFormula Name]],Table_PI[[#This Row],[Quantity]],Table_PI[[#This Row],[List 1]],Table_PI[[#This Row],[List 2]],Table_PI[[#This Row],[List 3]],Table_PI[[#This Row],[Size]],Table_PI[[#This Row],[Input 1]],Table_PI[[#This Row],[Input 2]],Table_PI[[#This Row],[Input 3]],Table_PI[[#This Row],[Input 4]],'Customer Information'!$AR$12,6,ROW()),\"No Rebate\"),\"No Rebate\"),0)","v":0},{"$f":"IF(Table_PI[[#This Row],[Hide:\nFormula Name]]<>\"\",IFERROR(IF(MeasureCalc(Table_PI[[#This Row],[Hide:\nFormula Name]],Table_PI[[#This Row],[Quantity]],Table_PI[[#This Row],[List 1]],Table_PI[[#This Row],[List 2]],Table_PI[[#This Row],[List 3]],Table_PI[[#This Row],[Size]],Table_PI[[#This Row],[Input 1]],Table_PI[[#This Row],[Input 2]],Table_PI[[#This Row],[Input 3]],Table_PI[[#This Row],[Input 4]],'Customer Information'!$AR$12,1,ROW())>0,MeasureCalc(Table_PI[[#This Row],[Hide:\nFormula Name]],Table_PI[[#This Row],[Quantity]],Table_PI[[#This Row],[List 1]],Table_PI[[#This Row],[List 2]],Table_PI[[#This Row],[List 3]],Table_PI[[#This Row],[Size]],Table_PI[[#This Row],[Input 1]],Table_PI[[#This Row],[Input 2]],Table_PI[[#This Row],[Input 3]],Table_PI[[#This Row],[Input 4]],'Customer Information'!$AR$12,7,ROW()),\"No Rebate\"),\"No Rebate\"),0)","v":0},{"$f":"IF(Table_PI[[#This Row],[Hide:\nFormula Name]]<>\"\",IFERROR(IF(MeasureCalc(Table_PI[[#This Row],[Hide:\nFormula Name]],Table_PI[[#This Row],[Quantity]],Table_PI[[#This Row],[List 1]],Table_PI[[#This Row],[List 2]],Table_PI[[#This Row],[List 3]],Table_PI[[#This Row],[Size]],Table_PI[[#This Row],[Input 1]],Table_PI[[#This Row],[Input 2]],Table_PI[[#This Row],[Input 3]],Table_PI[[#This Row],[Input 4]],'Customer Information'!$AR$12,1,ROW())>0,MeasureCalc(Table_PI[[#This Row],[Hide:\nFormula Name]],Table_PI[[#This Row],[Quantity]],Table_PI[[#This Row],[List 1]],Table_PI[[#This Row],[List 2]],Table_PI[[#This Row],[List 3]],Table_PI[[#This Row],[Size]],Table_PI[[#This Row],[Input 1]],Table_PI[[#This Row],[Input 2]],Table_PI[[#This Row],[Input 3]],Table_PI[[#This Row],[Input 4]],'Customer Information'!$AR$12,8,ROW()),\"No Rebate\"),\"No Rebate\"),0)","v":0},{"$f":"IF(Table_PI[[#This Row],[Hide:\nFormula Name]]<>\"\",IF(AND(Table_PI[[#This Row],[Hide:\nFormula Name]]<>\"\",OR(Table_PI[[#This Row],[Rebate]]>0,Table_PI[[#This Row],[Rebate]]=\"No Rebate\")),TRUE,\"MI: Line Item \" & $A157),\"\")","v":""}]
[{"$f":"IF(Table_PI[[#This Row],[Hide:\nFormula Name]]<>\"\",MAX($A$2:A157)+1,\"\")","v":""},null,null,null,null,null,null,null,null,null,null,null,null,null,null,{"$f":"IFERROR(VLOOKUP(Table_PI[[#This Row],[Measure]],'Equipment Lookups'!$C$3:$D$23,2,FALSE),\"\")","v":""},{"$f":"IF(Table_PI[[#This Row],[Hide:\nFormula Name]]<>\"\",IFERROR(IF(MeasureCalc(Table_PI[[#This Row],[Hide:\nFormula Name]],Table_PI[[#This Row],[Quantity]],Table_PI[[#This Row],[List 1]],Table_PI[[#This Row],[List 2]],Table_PI[[#This Row],[List 3]],Table_PI[[#This Row],[Size]],Table_PI[[#This Row],[Input 1]],Table_PI[[#This Row],[Input 2]],Table_PI[[#This Row],[Input 3]],Table_PI[[#This Row],[Input 4]],'Customer Information'!$AR$12,1,ROW())>0,MeasureCalc(Table_PI[[#This Row],[Hide:\nFormula Name]],Table_PI[[#This Row],[Quantity]],Table_PI[[#This Row],[List 1]],Table_PI[[#This Row],[List 2]],Table_PI[[#This Row],[List 3]],Table_PI[[#This Row],[Size]],Table_PI[[#This Row],[Input 1]],Table_PI[[#This Row],[Input 2]],Table_PI[[#This Row],[Input 3]],Table_PI[[#This Row],[Input 4]],'Customer Information'!$AR$12,1,ROW()),\"No Rebate\"),\"No Rebate\"),0)","v":0},{"$f":"IF(Table_PI[[#This Row],[Hide:\nFormula Name]]<>\"\",IFERROR(IF(MeasureCalc(Table_PI[[#This Row],[Hide:\nFormula Name]],Table_PI[[#This Row],[Quantity]],Table_PI[[#This Row],[List 1]],Table_PI[[#This Row],[List 2]],Table_PI[[#This Row],[List 3]],Table_PI[[#This Row],[Size]],Table_PI[[#This Row],[Input 1]],Table_PI[[#This Row],[Input 2]],Table_PI[[#This Row],[Input 3]],Table_PI[[#This Row],[Input 4]],'Customer Information'!$AR$12,1,ROW())>0,MeasureCalc(Table_PI[[#This Row],[Hide:\nFormula Name]],Table_PI[[#This Row],[Quantity]],Table_PI[[#This Row],[List 1]],Table_PI[[#This Row],[List 2]],Table_PI[[#This Row],[List 3]],Table_PI[[#This Row],[Size]],Table_PI[[#This Row],[Input 1]],Table_PI[[#This Row],[Input 2]],Table_PI[[#This Row],[Input 3]],Table_PI[[#This Row],[Input 4]],'Customer Information'!$AR$12,2,ROW()),\"No Rebate\"),\"No Rebate\"),0)","v":0},{"$f":"IF(Table_PI[[#This Row],[Hide:\nFormula Name]]<>\"\",IFERROR(IF(MeasureCalc(Table_PI[[#This Row],[Hide:\nFormula Name]],Table_PI[[#This Row],[Quantity]],Table_PI[[#This Row],[List 1]],Table_PI[[#This Row],[List 2]],Table_PI[[#This Row],[List 3]],Table_PI[[#This Row],[Size]],Table_PI[[#This Row],[Input 1]],Table_PI[[#This Row],[Input 2]],Table_PI[[#This Row],[Input 3]],Table_PI[[#This Row],[Input 4]],'Customer Information'!$AR$12,1,ROW())>0,MeasureCalc(Table_PI[[#This Row],[Hide:\nFormula Name]],Table_PI[[#This Row],[Quantity]],Table_PI[[#This Row],[List 1]],Table_PI[[#This Row],[List 2]],Table_PI[[#This Row],[List 3]],Table_PI[[#This Row],[Size]],Table_PI[[#This Row],[Input 1]],Table_PI[[#This Row],[Input 2]],Table_PI[[#This Row],[Input 3]],Table_PI[[#This Row],[Input 4]],'Customer Information'!$AR$12,3,ROW()),\"No Rebate\"),\"No Rebate\"),0)","v":0},{"$f":"IF(Table_PI[[#This Row],[Hide:\nFormula Name]]<>\"\",IFERROR(IF(MeasureCalc(Table_PI[[#This Row],[Hide:\nFormula Name]],Table_PI[[#This Row],[Quantity]],Table_PI[[#This Row],[List 1]],Table_PI[[#This Row],[List 2]],Table_PI[[#This Row],[List 3]],Table_PI[[#This Row],[Size]],Table_PI[[#This Row],[Input 1]],Table_PI[[#This Row],[Input 2]],Table_PI[[#This Row],[Input 3]],Table_PI[[#This Row],[Input 4]],'Customer Information'!$AR$12,1,ROW())>0,MeasureCalc(Table_PI[[#This Row],[Hide:\nFormula Name]],Table_PI[[#This Row],[Quantity]],Table_PI[[#This Row],[List 1]],Table_PI[[#This Row],[List 2]],Table_PI[[#This Row],[List 3]],Table_PI[[#This Row],[Size]],Table_PI[[#This Row],[Input 1]],Table_PI[[#This Row],[Input 2]],Table_PI[[#This Row],[Input 3]],Table_PI[[#This Row],[Input 4]],'Customer Information'!$AR$12,4,ROW()),\"No Rebate\"),\"No Rebate\"),0)","v":0},{"$f":"IF(Table_PI[[#This Row],[Hide:\nFormula Name]]<>\"\",IFERROR(IF(MeasureCalc(Table_PI[[#This Row],[Hide:\nFormula Name]],Table_PI[[#This Row],[Quantity]],Table_PI[[#This Row],[List 1]],Table_PI[[#This Row],[List 2]],Table_PI[[#This Row],[List 3]],Table_PI[[#This Row],[Size]],Table_PI[[#This Row],[Input 1]],Table_PI[[#This Row],[Input 2]],Table_PI[[#This Row],[Input 3]],Table_PI[[#This Row],[Input 4]],'Customer Information'!$AR$12,1,ROW())>0,MeasureCalc(Table_PI[[#This Row],[Hide:\nFormula Name]],Table_PI[[#This Row],[Quantity]],Table_PI[[#This Row],[List 1]],Table_PI[[#This Row],[List 2]],Table_PI[[#This Row],[List 3]],Table_PI[[#This Row],[Size]],Table_PI[[#This Row],[Input 1]],Table_PI[[#This Row],[Input 2]],Table_PI[[#This Row],[Input 3]],Table_PI[[#This Row],[Input 4]],'Customer Information'!$AR$12,5,ROW()),\"No Rebate\"),\"No Rebate\"),0)","v":0},{"$f":"IF(Table_PI[[#This Row],[Hide:\nFormula Name]]<>\"\",IFERROR(IF(MeasureCalc(Table_PI[[#This Row],[Hide:\nFormula Name]],Table_PI[[#This Row],[Quantity]],Table_PI[[#This Row],[List 1]],Table_PI[[#This Row],[List 2]],Table_PI[[#This Row],[List 3]],Table_PI[[#This Row],[Size]],Table_PI[[#This Row],[Input 1]],Table_PI[[#This Row],[Input 2]],Table_PI[[#This Row],[Input 3]],Table_PI[[#This Row],[Input 4]],'Customer Information'!$AR$12,1,ROW())>0,MeasureCalc(Table_PI[[#This Row],[Hide:\nFormula Name]],Table_PI[[#This Row],[Quantity]],Table_PI[[#This Row],[List 1]],Table_PI[[#This Row],[List 2]],Table_PI[[#This Row],[List 3]],Table_PI[[#This Row],[Size]],Table_PI[[#This Row],[Input 1]],Table_PI[[#This Row],[Input 2]],Table_PI[[#This Row],[Input 3]],Table_PI[[#This Row],[Input 4]],'Customer Information'!$AR$12,6,ROW()),\"No Rebate\"),\"No Rebate\"),0)","v":0},{"$f":"IF(Table_PI[[#This Row],[Hide:\nFormula Name]]<>\"\",IFERROR(IF(MeasureCalc(Table_PI[[#This Row],[Hide:\nFormula Name]],Table_PI[[#This Row],[Quantity]],Table_PI[[#This Row],[List 1]],Table_PI[[#This Row],[List 2]],Table_PI[[#This Row],[List 3]],Table_PI[[#This Row],[Size]],Table_PI[[#This Row],[Input 1]],Table_PI[[#This Row],[Input 2]],Table_PI[[#This Row],[Input 3]],Table_PI[[#This Row],[Input 4]],'Customer Information'!$AR$12,1,ROW())>0,MeasureCalc(Table_PI[[#This Row],[Hide:\nFormula Name]],Table_PI[[#This Row],[Quantity]],Table_PI[[#This Row],[List 1]],Table_PI[[#This Row],[List 2]],Table_PI[[#This Row],[List 3]],Table_PI[[#This Row],[Size]],Table_PI[[#This Row],[Input 1]],Table_PI[[#This Row],[Input 2]],Table_PI[[#This Row],[Input 3]],Table_PI[[#This Row],[Input 4]],'Customer Information'!$AR$12,7,ROW()),\"No Rebate\"),\"No Rebate\"),0)","v":0},{"$f":"IF(Table_PI[[#This Row],[Hide:\nFormula Name]]<>\"\",IFERROR(IF(MeasureCalc(Table_PI[[#This Row],[Hide:\nFormula Name]],Table_PI[[#This Row],[Quantity]],Table_PI[[#This Row],[List 1]],Table_PI[[#This Row],[List 2]],Table_PI[[#This Row],[List 3]],Table_PI[[#This Row],[Size]],Table_PI[[#This Row],[Input 1]],Table_PI[[#This Row],[Input 2]],Table_PI[[#This Row],[Input 3]],Table_PI[[#This Row],[Input 4]],'Customer Information'!$AR$12,1,ROW())>0,MeasureCalc(Table_PI[[#This Row],[Hide:\nFormula Name]],Table_PI[[#This Row],[Quantity]],Table_PI[[#This Row],[List 1]],Table_PI[[#This Row],[List 2]],Table_PI[[#This Row],[List 3]],Table_PI[[#This Row],[Size]],Table_PI[[#This Row],[Input 1]],Table_PI[[#This Row],[Input 2]],Table_PI[[#This Row],[Input 3]],Table_PI[[#This Row],[Input 4]],'Customer Information'!$AR$12,8,ROW()),\"No Rebate\"),\"No Rebate\"),0)","v":0},{"$f":"IF(Table_PI[[#This Row],[Hide:\nFormula Name]]<>\"\",IF(AND(Table_PI[[#This Row],[Hide:\nFormula Name]]<>\"\",OR(Table_PI[[#This Row],[Rebate]]>0,Table_PI[[#This Row],[Rebate]]=\"No Rebate\")),TRUE,\"MI: Line Item \" & $A158),\"\")","v":""}]
[{"$f":"IF(Table_PI[[#This Row],[Hide:\nFormula Name]]<>\"\",MAX($A$2:A158)+1,\"\")","v":""},null,null,null,null,null,null,null,null,null,null,null,null,null,null,{"$f":"IFERROR(VLOOKUP(Table_PI[[#This Row],[Measure]],'Equipment Lookups'!$C$3:$D$23,2,FALSE),\"\")","v":""},{"$f":"IF(Table_PI[[#This Row],[Hide:\nFormula Name]]<>\"\",IFERROR(IF(MeasureCalc(Table_PI[[#This Row],[Hide:\nFormula Name]],Table_PI[[#This Row],[Quantity]],Table_PI[[#This Row],[List 1]],Table_PI[[#This Row],[List 2]],Table_PI[[#This Row],[List 3]],Table_PI[[#This Row],[Size]],Table_PI[[#This Row],[Input 1]],Table_PI[[#This Row],[Input 2]],Table_PI[[#This Row],[Input 3]],Table_PI[[#This Row],[Input 4]],'Customer Information'!$AR$12,1,ROW())>0,MeasureCalc(Table_PI[[#This Row],[Hide:\nFormula Name]],Table_PI[[#This Row],[Quantity]],Table_PI[[#This Row],[List 1]],Table_PI[[#This Row],[List 2]],Table_PI[[#This Row],[List 3]],Table_PI[[#This Row],[Size]],Table_PI[[#This Row],[Input 1]],Table_PI[[#This Row],[Input 2]],Table_PI[[#This Row],[Input 3]],Table_PI[[#This Row],[Input 4]],'Customer Information'!$AR$12,1,ROW()),\"No Rebate\"),\"No Rebate\"),0)","v":0},{"$f":"IF(Table_PI[[#This Row],[Hide:\nFormula Name]]<>\"\",IFERROR(IF(MeasureCalc(Table_PI[[#This Row],[Hide:\nFormula Name]],Table_PI[[#This Row],[Quantity]],Table_PI[[#This Row],[List 1]],Table_PI[[#This Row],[List 2]],Table_PI[[#This Row],[List 3]],Table_PI[[#This Row],[Size]],Table_PI[[#This Row],[Input 1]],Table_PI[[#This Row],[Input 2]],Table_PI[[#This Row],[Input 3]],Table_PI[[#This Row],[Input 4]],'Customer Information'!$AR$12,1,ROW())>0,MeasureCalc(Table_PI[[#This Row],[Hide:\nFormula Name]],Table_PI[[#This Row],[Quantity]],Table_PI[[#This Row],[List 1]],Table_PI[[#This Row],[List 2]],Table_PI[[#This Row],[List 3]],Table_PI[[#This Row],[Size]],Table_PI[[#This Row],[Input 1]],Table_PI[[#This Row],[Input 2]],Table_PI[[#This Row],[Input 3]],Table_PI[[#This Row],[Input 4]],'Customer Information'!$AR$12,2,ROW()),\"No Rebate\"),\"No Rebate\"),0)","v":0},{"$f":"IF(Table_PI[[#This Row],[Hide:\nFormula Name]]<>\"\",IFERROR(IF(MeasureCalc(Table_PI[[#This Row],[Hide:\nFormula Name]],Table_PI[[#This Row],[Quantity]],Table_PI[[#This Row],[List 1]],Table_PI[[#This Row],[List 2]],Table_PI[[#This Row],[List 3]],Table_PI[[#This Row],[Size]],Table_PI[[#This Row],[Input 1]],Table_PI[[#This Row],[Input 2]],Table_PI[[#This Row],[Input 3]],Table_PI[[#This Row],[Input 4]],'Customer Information'!$AR$12,1,ROW())>0,MeasureCalc(Table_PI[[#This Row],[Hide:\nFormula Name]],Table_PI[[#This Row],[Quantity]],Table_PI[[#This Row],[List 1]],Table_PI[[#This Row],[List 2]],Table_PI[[#This Row],[List 3]],Table_PI[[#This Row],[Size]],Table_PI[[#This Row],[Input 1]],Table_PI[[#This Row],[Input 2]],Table_PI[[#This Row],[Input 3]],Table_PI[[#This Row],[Input 4]],'Customer Information'!$AR$12,3,ROW()),\"No Rebate\"),\"No Rebate\"),0)","v":0},{"$f":"IF(Table_PI[[#This Row],[Hide:\nFormula Name]]<>\"\",IFERROR(IF(MeasureCalc(Table_PI[[#This Row],[Hide:\nFormula Name]],Table_PI[[#This Row],[Quantity]],Table_PI[[#This Row],[List 1]],Table_PI[[#This Row],[List 2]],Table_PI[[#This Row],[List 3]],Table_PI[[#This Row],[Size]],Table_PI[[#This Row],[Input 1]],Table_PI[[#This Row],[Input 2]],Table_PI[[#This Row],[Input 3]],Table_PI[[#This Row],[Input 4]],'Customer Information'!$AR$12,1,ROW())>0,MeasureCalc(Table_PI[[#This Row],[Hide:\nFormula Name]],Table_PI[[#This Row],[Quantity]],Table_PI[[#This Row],[List 1]],Table_PI[[#This Row],[List 2]],Table_PI[[#This Row],[List 3]],Table_PI[[#This Row],[Size]],Table_PI[[#This Row],[Input 1]],Table_PI[[#This Row],[Input 2]],Table_PI[[#This Row],[Input 3]],Table_PI[[#This Row],[Input 4]],'Customer Information'!$AR$12,4,ROW()),\"No Rebate\"),\"No Rebate\"),0)","v":0},{"$f":"IF(Table_PI[[#This Row],[Hide:\nFormula Name]]<>\"\",IFERROR(IF(MeasureCalc(Table_PI[[#This Row],[Hide:\nFormula Name]],Table_PI[[#This Row],[Quantity]],Table_PI[[#This Row],[List 1]],Table_PI[[#This Row],[List 2]],Table_PI[[#This Row],[List 3]],Table_PI[[#This Row],[Size]],Table_PI[[#This Row],[Input 1]],Table_PI[[#This Row],[Input 2]],Table_PI[[#This Row],[Input 3]],Table_PI[[#This Row],[Input 4]],'Customer Information'!$AR$12,1,ROW())>0,MeasureCalc(Table_PI[[#This Row],[Hide:\nFormula Name]],Table_PI[[#This Row],[Quantity]],Table_PI[[#This Row],[List 1]],Table_PI[[#This Row],[List 2]],Table_PI[[#This Row],[List 3]],Table_PI[[#This Row],[Size]],Table_PI[[#This Row],[Input 1]],Table_PI[[#This Row],[Input 2]],Table_PI[[#This Row],[Input 3]],Table_PI[[#This Row],[Input 4]],'Customer Information'!$AR$12,5,ROW()),\"No Rebate\"),\"No Rebate\"),0)","v":0},{"$f":"IF(Table_PI[[#This Row],[Hide:\nFormula Name]]<>\"\",IFERROR(IF(MeasureCalc(Table_PI[[#This Row],[Hide:\nFormula Name]],Table_PI[[#This Row],[Quantity]],Table_PI[[#This Row],[List 1]],Table_PI[[#This Row],[List 2]],Table_PI[[#This Row],[List 3]],Table_PI[[#This Row],[Size]],Table_PI[[#This Row],[Input 1]],Table_PI[[#This Row],[Input 2]],Table_PI[[#This Row],[Input 3]],Table_PI[[#This Row],[Input 4]],'Customer Information'!$AR$12,1,ROW())>0,MeasureCalc(Table_PI[[#This Row],[Hide:\nFormula Name]],Table_PI[[#This Row],[Quantity]],Table_PI[[#This Row],[List 1]],Table_PI[[#This Row],[List 2]],Table_PI[[#This Row],[List 3]],Table_PI[[#This Row],[Size]],Table_PI[[#This Row],[Input 1]],Table_PI[[#This Row],[Input 2]],Table_PI[[#This Row],[Input 3]],Table_PI[[#This Row],[Input 4]],'Customer Information'!$AR$12,6,ROW()),\"No Rebate\"),\"No Rebate\"),0)","v":0},{"$f":"IF(Table_PI[[#This Row],[Hide:\nFormula Name]]<>\"\",IFERROR(IF(MeasureCalc(Table_PI[[#This Row],[Hide:\nFormula Name]],Table_PI[[#This Row],[Quantity]],Table_PI[[#This Row],[List 1]],Table_PI[[#This Row],[List 2]],Table_PI[[#This Row],[List 3]],Table_PI[[#This Row],[Size]],Table_PI[[#This Row],[Input 1]],Table_PI[[#This Row],[Input 2]],Table_PI[[#This Row],[Input 3]],Table_PI[[#This Row],[Input 4]],'Customer Information'!$AR$12,1,ROW())>0,MeasureCalc(Table_PI[[#This Row],[Hide:\nFormula Name]],Table_PI[[#This Row],[Quantity]],Table_PI[[#This Row],[List 1]],Table_PI[[#This Row],[List 2]],Table_PI[[#This Row],[List 3]],Table_PI[[#This Row],[Size]],Table_PI[[#This Row],[Input 1]],Table_PI[[#This Row],[Input 2]],Table_PI[[#This Row],[Input 3]],Table_PI[[#This Row],[Input 4]],'Customer Information'!$AR$12,7,ROW()),\"No Rebate\"),\"No Rebate\"),0)","v":0},{"$f":"IF(Table_PI[[#This Row],[Hide:\nFormula Name]]<>\"\",IFERROR(IF(MeasureCalc(Table_PI[[#This Row],[Hide:\nFormula Name]],Table_PI[[#This Row],[Quantity]],Table_PI[[#This Row],[List 1]],Table_PI[[#This Row],[List 2]],Table_PI[[#This Row],[List 3]],Table_PI[[#This Row],[Size]],Table_PI[[#This Row],[Input 1]],Table_PI[[#This Row],[Input 2]],Table_PI[[#This Row],[Input 3]],Table_PI[[#This Row],[Input 4]],'Customer Information'!$AR$12,1,ROW())>0,MeasureCalc(Table_PI[[#This Row],[Hide:\nFormula Name]],Table_PI[[#This Row],[Quantity]],Table_PI[[#This Row],[List 1]],Table_PI[[#This Row],[List 2]],Table_PI[[#This Row],[List 3]],Table_PI[[#This Row],[Size]],Table_PI[[#This Row],[Input 1]],Table_PI[[#This Row],[Input 2]],Table_PI[[#This Row],[Input 3]],Table_PI[[#This Row],[Input 4]],'Customer Information'!$AR$12,8,ROW()),\"No Rebate\"),\"No Rebate\"),0)","v":0},{"$f":"IF(Table_PI[[#This Row],[Hide:\nFormula Name]]<>\"\",IF(AND(Table_PI[[#This Row],[Hide:\nFormula Name]]<>\"\",OR(Table_PI[[#This Row],[Rebate]]>0,Table_PI[[#This Row],[Rebate]]=\"No Rebate\")),TRUE,\"MI: Line Item \" & $A159),\"\")","v":""}]
[{"$f":"IF(Table_PI[[#This Row],[Hide:\nFormula Name]]<>\"\",MAX($A$2:A159)+1,\"\")","v":""},null,null,null,null,null,null,null,null,null,null,null,null,null,null,{"$f":"IFERROR(VLOOKUP(Table_PI[[#This Row],[Measure]],'Equipment Lookups'!$C$3:$D$23,2,FALSE),\"\")","v":""},{"$f":"IF(Table_PI[[#This Row],[Hide:\nFormula Name]]<>\"\",IFERROR(IF(MeasureCalc(Table_PI[[#This Row],[Hide:\nFormula Name]],Table_PI[[#This Row],[Quantity]],Table_PI[[#This Row],[List 1]],Table_PI[[#This Row],[List 2]],Table_PI[[#This Row],[List 3]],Table_PI[[#This Row],[Size]],Table_PI[[#This Row],[Input 1]],Table_PI[[#This Row],[Input 2]],Table_PI[[#This Row],[Input 3]],Table_PI[[#This Row],[Input 4]],'Customer Information'!$AR$12,1,ROW())>0,MeasureCalc(Table_PI[[#This Row],[Hide:\nFormula Name]],Table_PI[[#This Row],[Quantity]],Table_PI[[#This Row],[List 1]],Table_PI[[#This Row],[List 2]],Table_PI[[#This Row],[List 3]],Table_PI[[#This Row],[Size]],Table_PI[[#This Row],[Input 1]],Table_PI[[#This Row],[Input 2]],Table_PI[[#This Row],[Input 3]],Table_PI[[#This Row],[Input 4]],'Customer Information'!$AR$12,1,ROW()),\"No Rebate\"),\"No Rebate\"),0)","v":0},{"$f":"IF(Table_PI[[#This Row],[Hide:\nFormula Name]]<>\"\",IFERROR(IF(MeasureCalc(Table_PI[[#This Row],[Hide:\nFormula Name]],Table_PI[[#This Row],[Quantity]],Table_PI[[#This Row],[List 1]],Table_PI[[#This Row],[List 2]],Table_PI[[#This Row],[List 3]],Table_PI[[#This Row],[Size]],Table_PI[[#This Row],[Input 1]],Table_PI[[#This Row],[Input 2]],Table_PI[[#This Row],[Input 3]],Table_PI[[#This Row],[Input 4]],'Customer Information'!$AR$12,1,ROW())>0,MeasureCalc(Table_PI[[#This Row],[Hide:\nFormula Name]],Table_PI[[#This Row],[Quantity]],Table_PI[[#This Row],[List 1]],Table_PI[[#This Row],[List 2]],Table_PI[[#This Row],[List 3]],Table_PI[[#This Row],[Size]],Table_PI[[#This Row],[Input 1]],Table_PI[[#This Row],[Input 2]],Table_PI[[#This Row],[Input 3]],Table_PI[[#This Row],[Input 4]],'Customer Information'!$AR$12,2,ROW()),\"No Rebate\"),\"No Rebate\"),0)","v":0},{"$f":"IF(Table_PI[[#This Row],[Hide:\nFormula Name]]<>\"\",IFERROR(IF(MeasureCalc(Table_PI[[#This Row],[Hide:\nFormula Name]],Table_PI[[#This Row],[Quantity]],Table_PI[[#This Row],[List 1]],Table_PI[[#This Row],[List 2]],Table_PI[[#This Row],[List 3]],Table_PI[[#This Row],[Size]],Table_PI[[#This Row],[Input 1]],Table_PI[[#This Row],[Input 2]],Table_PI[[#This Row],[Input 3]],Table_PI[[#This Row],[Input 4]],'Customer Information'!$AR$12,1,ROW())>0,MeasureCalc(Table_PI[[#This Row],[Hide:\nFormula Name]],Table_PI[[#This Row],[Quantity]],Table_PI[[#This Row],[List 1]],Table_PI[[#This Row],[List 2]],Table_PI[[#This Row],[List 3]],Table_PI[[#This Row],[Size]],Table_PI[[#This Row],[Input 1]],Table_PI[[#This Row],[Input 2]],Table_PI[[#This Row],[Input 3]],Table_PI[[#This Row],[Input 4]],'Customer Information'!$AR$12,3,ROW()),\"No Rebate\"),\"No Rebate\"),0)","v":0},{"$f":"IF(Table_PI[[#This Row],[Hide:\nFormula Name]]<>\"\",IFERROR(IF(MeasureCalc(Table_PI[[#This Row],[Hide:\nFormula Name]],Table_PI[[#This Row],[Quantity]],Table_PI[[#This Row],[List 1]],Table_PI[[#This Row],[List 2]],Table_PI[[#This Row],[List 3]],Table_PI[[#This Row],[Size]],Table_PI[[#This Row],[Input 1]],Table_PI[[#This Row],[Input 2]],Table_PI[[#This Row],[Input 3]],Table_PI[[#This Row],[Input 4]],'Customer Information'!$AR$12,1,ROW())>0,MeasureCalc(Table_PI[[#This Row],[Hide:\nFormula Name]],Table_PI[[#This Row],[Quantity]],Table_PI[[#This Row],[List 1]],Table_PI[[#This Row],[List 2]],Table_PI[[#This Row],[List 3]],Table_PI[[#This Row],[Size]],Table_PI[[#This Row],[Input 1]],Table_PI[[#This Row],[Input 2]],Table_PI[[#This Row],[Input 3]],Table_PI[[#This Row],[Input 4]],'Customer Information'!$AR$12,4,ROW()),\"No Rebate\"),\"No Rebate\"),0)","v":0},{"$f":"IF(Table_PI[[#This Row],[Hide:\nFormula Name]]<>\"\",IFERROR(IF(MeasureCalc(Table_PI[[#This Row],[Hide:\nFormula Name]],Table_PI[[#This Row],[Quantity]],Table_PI[[#This Row],[List 1]],Table_PI[[#This Row],[List 2]],Table_PI[[#This Row],[List 3]],Table_PI[[#This Row],[Size]],Table_PI[[#This Row],[Input 1]],Table_PI[[#This Row],[Input 2]],Table_PI[[#This Row],[Input 3]],Table_PI[[#This Row],[Input 4]],'Customer Information'!$AR$12,1,ROW())>0,MeasureCalc(Table_PI[[#This Row],[Hide:\nFormula Name]],Table_PI[[#This Row],[Quantity]],Table_PI[[#This Row],[List 1]],Table_PI[[#This Row],[List 2]],Table_PI[[#This Row],[List 3]],Table_PI[[#This Row],[Size]],Table_PI[[#This Row],[Input 1]],Table_PI[[#This Row],[Input 2]],Table_PI[[#This Row],[Input 3]],Table_PI[[#This Row],[Input 4]],'Customer Information'!$AR$12,5,ROW()),\"No Rebate\"),\"No Rebate\"),0)","v":0},{"$f":"IF(Table_PI[[#This Row],[Hide:\nFormula Name]]<>\"\",IFERROR(IF(MeasureCalc(Table_PI[[#This Row],[Hide:\nFormula Name]],Table_PI[[#This Row],[Quantity]],Table_PI[[#This Row],[List 1]],Table_PI[[#This Row],[List 2]],Table_PI[[#This Row],[List 3]],Table_PI[[#This Row],[Size]],Table_PI[[#This Row],[Input 1]],Table_PI[[#This Row],[Input 2]],Table_PI[[#This Row],[Input 3]],Table_PI[[#This Row],[Input 4]],'Customer Information'!$AR$12,1,ROW())>0,MeasureCalc(Table_PI[[#This Row],[Hide:\nFormula Name]],Table_PI[[#This Row],[Quantity]],Table_PI[[#This Row],[List 1]],Table_PI[[#This Row],[List 2]],Table_PI[[#This Row],[List 3]],Table_PI[[#This Row],[Size]],Table_PI[[#This Row],[Input 1]],Table_PI[[#This Row],[Input 2]],Table_PI[[#This Row],[Input 3]],Table_PI[[#This Row],[Input 4]],'Customer Information'!$AR$12,6,ROW()),\"No Rebate\"),\"No Rebate\"),0)","v":0},{"$f":"IF(Table_PI[[#This Row],[Hide:\nFormula Name]]<>\"\",IFERROR(IF(MeasureCalc(Table_PI[[#This Row],[Hide:\nFormula Name]],Table_PI[[#This Row],[Quantity]],Table_PI[[#This Row],[List 1]],Table_PI[[#This Row],[List 2]],Table_PI[[#This Row],[List 3]],Table_PI[[#This Row],[Size]],Table_PI[[#This Row],[Input 1]],Table_PI[[#This Row],[Input 2]],Table_PI[[#This Row],[Input 3]],Table_PI[[#This Row],[Input 4]],'Customer Information'!$AR$12,1,ROW())>0,MeasureCalc(Table_PI[[#This Row],[Hide:\nFormula Name]],Table_PI[[#This Row],[Quantity]],Table_PI[[#This Row],[List 1]],Table_PI[[#This Row],[List 2]],Table_PI[[#This Row],[List 3]],Table_PI[[#This Row],[Size]],Table_PI[[#This Row],[Input 1]],Table_PI[[#This Row],[Input 2]],Table_PI[[#This Row],[Input 3]],Table_PI[[#This Row],[Input 4]],'Customer Information'!$AR$12,7,ROW()),\"No Rebate\"),\"No Rebate\"),0)","v":0},{"$f":"IF(Table_PI[[#This Row],[Hide:\nFormula Name]]<>\"\",IFERROR(IF(MeasureCalc(Table_PI[[#This Row],[Hide:\nFormula Name]],Table_PI[[#This Row],[Quantity]],Table_PI[[#This Row],[List 1]],Table_PI[[#This Row],[List 2]],Table_PI[[#This Row],[List 3]],Table_PI[[#This Row],[Size]],Table_PI[[#This Row],[Input 1]],Table_PI[[#This Row],[Input 2]],Table_PI[[#This Row],[Input 3]],Table_PI[[#This Row],[Input 4]],'Customer Information'!$AR$12,1,ROW())>0,MeasureCalc(Table_PI[[#This Row],[Hide:\nFormula Name]],Table_PI[[#This Row],[Quantity]],Table_PI[[#This Row],[List 1]],Table_PI[[#This Row],[List 2]],Table_PI[[#This Row],[List 3]],Table_PI[[#This Row],[Size]],Table_PI[[#This Row],[Input 1]],Table_PI[[#This Row],[Input 2]],Table_PI[[#This Row],[Input 3]],Table_PI[[#This Row],[Input 4]],'Customer Information'!$AR$12,8,ROW()),\"No Rebate\"),\"No Rebate\"),0)","v":0},{"$f":"IF(Table_PI[[#This Row],[Hide:\nFormula Name]]<>\"\",IF(AND(Table_PI[[#This Row],[Hide:\nFormula Name]]<>\"\",OR(Table_PI[[#This Row],[Rebate]]>0,Table_PI[[#This Row],[Rebate]]=\"No Rebate\")),TRUE,\"MI: Line Item \" & $A160),\"\")","v":""}]
[{"$f":"IF(Table_PI[[#This Row],[Hide:\nFormula Name]]<>\"\",MAX($A$2:A160)+1,\"\")","v":""},null,null,null,null,null,null,null,null,null,null,null,null,null,null,{"$f":"IFERROR(VLOOKUP(Table_PI[[#This Row],[Measure]],'Equipment Lookups'!$C$3:$D$23,2,FALSE),\"\")","v":""},{"$f":"IF(Table_PI[[#This Row],[Hide:\nFormula Name]]<>\"\",IFERROR(IF(MeasureCalc(Table_PI[[#This Row],[Hide:\nFormula Name]],Table_PI[[#This Row],[Quantity]],Table_PI[[#This Row],[List 1]],Table_PI[[#This Row],[List 2]],Table_PI[[#This Row],[List 3]],Table_PI[[#This Row],[Size]],Table_PI[[#This Row],[Input 1]],Table_PI[[#This Row],[Input 2]],Table_PI[[#This Row],[Input 3]],Table_PI[[#This Row],[Input 4]],'Customer Information'!$AR$12,1,ROW())>0,MeasureCalc(Table_PI[[#This Row],[Hide:\nFormula Name]],Table_PI[[#This Row],[Quantity]],Table_PI[[#This Row],[List 1]],Table_PI[[#This Row],[List 2]],Table_PI[[#This Row],[List 3]],Table_PI[[#This Row],[Size]],Table_PI[[#This Row],[Input 1]],Table_PI[[#This Row],[Input 2]],Table_PI[[#This Row],[Input 3]],Table_PI[[#This Row],[Input 4]],'Customer Information'!$AR$12,1,ROW()),\"No Rebate\"),\"No Rebate\"),0)","v":0},{"$f":"IF(Table_PI[[#This Row],[Hide:\nFormula Name]]<>\"\",IFERROR(IF(MeasureCalc(Table_PI[[#This Row],[Hide:\nFormula Name]],Table_PI[[#This Row],[Quantity]],Table_PI[[#This Row],[List 1]],Table_PI[[#This Row],[List 2]],Table_PI[[#This Row],[List 3]],Table_PI[[#This Row],[Size]],Table_PI[[#This Row],[Input 1]],Table_PI[[#This Row],[Input 2]],Table_PI[[#This Row],[Input 3]],Table_PI[[#This Row],[Input 4]],'Customer Information'!$AR$12,1,ROW())>0,MeasureCalc(Table_PI[[#This Row],[Hide:\nFormula Name]],Table_PI[[#This Row],[Quantity]],Table_PI[[#This Row],[List 1]],Table_PI[[#This Row],[List 2]],Table_PI[[#This Row],[List 3]],Table_PI[[#This Row],[Size]],Table_PI[[#This Row],[Input 1]],Table_PI[[#This Row],[Input 2]],Table_PI[[#This Row],[Input 3]],Table_PI[[#This Row],[Input 4]],'Customer Information'!$AR$12,2,ROW()),\"No Rebate\"),\"No Rebate\"),0)","v":0},{"$f":"IF(Table_PI[[#This Row],[Hide:\nFormula Name]]<>\"\",IFERROR(IF(MeasureCalc(Table_PI[[#This Row],[Hide:\nFormula Name]],Table_PI[[#This Row],[Quantity]],Table_PI[[#This Row],[List 1]],Table_PI[[#This Row],[List 2]],Table_PI[[#This Row],[List 3]],Table_PI[[#This Row],[Size]],Table_PI[[#This Row],[Input 1]],Table_PI[[#This Row],[Input 2]],Table_PI[[#This Row],[Input 3]],Table_PI[[#This Row],[Input 4]],'Customer Information'!$AR$12,1,ROW())>0,MeasureCalc(Table_PI[[#This Row],[Hide:\nFormula Name]],Table_PI[[#This Row],[Quantity]],Table_PI[[#This Row],[List 1]],Table_PI[[#This Row],[List 2]],Table_PI[[#This Row],[List 3]],Table_PI[[#This Row],[Size]],Table_PI[[#This Row],[Input 1]],Table_PI[[#This Row],[Input 2]],Table_PI[[#This Row],[Input 3]],Table_PI[[#This Row],[Input 4]],'Customer Information'!$AR$12,3,ROW()),\"No Rebate\"),\"No Rebate\"),0)","v":0},{"$f":"IF(Table_PI[[#This Row],[Hide:\nFormula Name]]<>\"\",IFERROR(IF(MeasureCalc(Table_PI[[#This Row],[Hide:\nFormula Name]],Table_PI[[#This Row],[Quantity]],Table_PI[[#This Row],[List 1]],Table_PI[[#This Row],[List 2]],Table_PI[[#This Row],[List 3]],Table_PI[[#This Row],[Size]],Table_PI[[#This Row],[Input 1]],Table_PI[[#This Row],[Input 2]],Table_PI[[#This Row],[Input 3]],Table_PI[[#This Row],[Input 4]],'Customer Information'!$AR$12,1,ROW())>0,MeasureCalc(Table_PI[[#This Row],[Hide:\nFormula Name]],Table_PI[[#This Row],[Quantity]],Table_PI[[#This Row],[List 1]],Table_PI[[#This Row],[List 2]],Table_PI[[#This Row],[List 3]],Table_PI[[#This Row],[Size]],Table_PI[[#This Row],[Input 1]],Table_PI[[#This Row],[Input 2]],Table_PI[[#This Row],[Input 3]],Table_PI[[#This Row],[Input 4]],'Customer Information'!$AR$12,4,ROW()),\"No Rebate\"),\"No Rebate\"),0)","v":0},{"$f":"IF(Table_PI[[#This Row],[Hide:\nFormula Name]]<>\"\",IFERROR(IF(MeasureCalc(Table_PI[[#This Row],[Hide:\nFormula Name]],Table_PI[[#This Row],[Quantity]],Table_PI[[#This Row],[List 1]],Table_PI[[#This Row],[List 2]],Table_PI[[#This Row],[List 3]],Table_PI[[#This Row],[Size]],Table_PI[[#This Row],[Input 1]],Table_PI[[#This Row],[Input 2]],Table_PI[[#This Row],[Input 3]],Table_PI[[#This Row],[Input 4]],'Customer Information'!$AR$12,1,ROW())>0,MeasureCalc(Table_PI[[#This Row],[Hide:\nFormula Name]],Table_PI[[#This Row],[Quantity]],Table_PI[[#This Row],[List 1]],Table_PI[[#This Row],[List 2]],Table_PI[[#This Row],[List 3]],Table_PI[[#This Row],[Size]],Table_PI[[#This Row],[Input 1]],Table_PI[[#This Row],[Input 2]],Table_PI[[#This Row],[Input 3]],Table_PI[[#This Row],[Input 4]],'Customer Information'!$AR$12,5,ROW()),\"No Rebate\"),\"No Rebate\"),0)","v":0},{"$f":"IF(Table_PI[[#This Row],[Hide:\nFormula Name]]<>\"\",IFERROR(IF(MeasureCalc(Table_PI[[#This Row],[Hide:\nFormula Name]],Table_PI[[#This Row],[Quantity]],Table_PI[[#This Row],[List 1]],Table_PI[[#This Row],[List 2]],Table_PI[[#This Row],[List 3]],Table_PI[[#This Row],[Size]],Table_PI[[#This Row],[Input 1]],Table_PI[[#This Row],[Input 2]],Table_PI[[#This Row],[Input 3]],Table_PI[[#This Row],[Input 4]],'Customer Information'!$AR$12,1,ROW())>0,MeasureCalc(Table_PI[[#This Row],[Hide:\nFormula Name]],Table_PI[[#This Row],[Quantity]],Table_PI[[#This Row],[List 1]],Table_PI[[#This Row],[List 2]],Table_PI[[#This Row],[List 3]],Table_PI[[#This Row],[Size]],Table_PI[[#This Row],[Input 1]],Table_PI[[#This Row],[Input 2]],Table_PI[[#This Row],[Input 3]],Table_PI[[#This Row],[Input 4]],'Customer Information'!$AR$12,6,ROW()),\"No Rebate\"),\"No Rebate\"),0)","v":0},{"$f":"IF(Table_PI[[#This Row],[Hide:\nFormula Name]]<>\"\",IFERROR(IF(MeasureCalc(Table_PI[[#This Row],[Hide:\nFormula Name]],Table_PI[[#This Row],[Quantity]],Table_PI[[#This Row],[List 1]],Table_PI[[#This Row],[List 2]],Table_PI[[#This Row],[List 3]],Table_PI[[#This Row],[Size]],Table_PI[[#This Row],[Input 1]],Table_PI[[#This Row],[Input 2]],Table_PI[[#This Row],[Input 3]],Table_PI[[#This Row],[Input 4]],'Customer Information'!$AR$12,1,ROW())>0,MeasureCalc(Table_PI[[#This Row],[Hide:\nFormula Name]],Table_PI[[#This Row],[Quantity]],Table_PI[[#This Row],[List 1]],Table_PI[[#This Row],[List 2]],Table_PI[[#This Row],[List 3]],Table_PI[[#This Row],[Size]],Table_PI[[#This Row],[Input 1]],Table_PI[[#This Row],[Input 2]],Table_PI[[#This Row],[Input 3]],Table_PI[[#This Row],[Input 4]],'Customer Information'!$AR$12,7,ROW()),\"No Rebate\"),\"No Rebate\"),0)","v":0},{"$f":"IF(Table_PI[[#This Row],[Hide:\nFormula Name]]<>\"\",IFERROR(IF(MeasureCalc(Table_PI[[#This Row],[Hide:\nFormula Name]],Table_PI[[#This Row],[Quantity]],Table_PI[[#This Row],[List 1]],Table_PI[[#This Row],[List 2]],Table_PI[[#This Row],[List 3]],Table_PI[[#This Row],[Size]],Table_PI[[#This Row],[Input 1]],Table_PI[[#This Row],[Input 2]],Table_PI[[#This Row],[Input 3]],Table_PI[[#This Row],[Input 4]],'Customer Information'!$AR$12,1,ROW())>0,MeasureCalc(Table_PI[[#This Row],[Hide:\nFormula Name]],Table_PI[[#This Row],[Quantity]],Table_PI[[#This Row],[List 1]],Table_PI[[#This Row],[List 2]],Table_PI[[#This Row],[List 3]],Table_PI[[#This Row],[Size]],Table_PI[[#This Row],[Input 1]],Table_PI[[#This Row],[Input 2]],Table_PI[[#This Row],[Input 3]],Table_PI[[#This Row],[Input 4]],'Customer Information'!$AR$12,8,ROW()),\"No Rebate\"),\"No Rebate\"),0)","v":0},{"$f":"IF(Table_PI[[#This Row],[Hide:\nFormula Name]]<>\"\",IF(AND(Table_PI[[#This Row],[Hide:\nFormula Name]]<>\"\",OR(Table_PI[[#This Row],[Rebate]]>0,Table_PI[[#This Row],[Rebate]]=\"No Rebate\")),TRUE,\"MI: Line Item \" & $A161),\"\")","v":""}]
[{"$f":"IF(Table_PI[[#This Row],[Hide:\nFormula Name]]<>\"\",MAX($A$2:A161)+1,\"\")","v":""},null,null,null,null,null,null,null,null,null,null,null,null,null,null,{"$f":"IFERROR(VLOOKUP(Table_PI[[#This Row],[Measure]],'Equipment Lookups'!$C$3:$D$23,2,FALSE),\"\")","v":""},{"$f":"IF(Table_PI[[#This Row],[Hide:\nFormula Name]]<>\"\",IFERROR(IF(MeasureCalc(Table_PI[[#This Row],[Hide:\nFormula Name]],Table_PI[[#This Row],[Quantity]],Table_PI[[#This Row],[List 1]],Table_PI[[#This Row],[List 2]],Table_PI[[#This Row],[List 3]],Table_PI[[#This Row],[Size]],Table_PI[[#This Row],[Input 1]],Table_PI[[#This Row],[Input 2]],Table_PI[[#This Row],[Input 3]],Table_PI[[#This Row],[Input 4]],'Customer Information'!$AR$12,1,ROW())>0,MeasureCalc(Table_PI[[#This Row],[Hide:\nFormula Name]],Table_PI[[#This Row],[Quantity]],Table_PI[[#This Row],[List 1]],Table_PI[[#This Row],[List 2]],Table_PI[[#This Row],[List 3]],Table_PI[[#This Row],[Size]],Table_PI[[#This Row],[Input 1]],Table_PI[[#This Row],[Input 2]],Table_PI[[#This Row],[Input 3]],Table_PI[[#This Row],[Input 4]],'Customer Information'!$AR$12,1,ROW()),\"No Rebate\"),\"No Rebate\"),0)","v":0},{"$f":"IF(Table_PI[[#This Row],[Hide:\nFormula Name]]<>\"\",IFERROR(IF(MeasureCalc(Table_PI[[#This Row],[Hide:\nFormula Name]],Table_PI[[#This Row],[Quantity]],Table_PI[[#This Row],[List 1]],Table_PI[[#This Row],[List 2]],Table_PI[[#This Row],[List 3]],Table_PI[[#This Row],[Size]],Table_PI[[#This Row],[Input 1]],Table_PI[[#This Row],[Input 2]],Table_PI[[#This Row],[Input 3]],Table_PI[[#This Row],[Input 4]],'Customer Information'!$AR$12,1,ROW())>0,MeasureCalc(Table_PI[[#This Row],[Hide:\nFormula Name]],Table_PI[[#This Row],[Quantity]],Table_PI[[#This Row],[List 1]],Table_PI[[#This Row],[List 2]],Table_PI[[#This Row],[List 3]],Table_PI[[#This Row],[Size]],Table_PI[[#This Row],[Input 1]],Table_PI[[#This Row],[Input 2]],Table_PI[[#This Row],[Input 3]],Table_PI[[#This Row],[Input 4]],'Customer Information'!$AR$12,2,ROW()),\"No Rebate\"),\"No Rebate\"),0)","v":0},{"$f":"IF(Table_PI[[#This Row],[Hide:\nFormula Name]]<>\"\",IFERROR(IF(MeasureCalc(Table_PI[[#This Row],[Hide:\nFormula Name]],Table_PI[[#This Row],[Quantity]],Table_PI[[#This Row],[List 1]],Table_PI[[#This Row],[List 2]],Table_PI[[#This Row],[List 3]],Table_PI[[#This Row],[Size]],Table_PI[[#This Row],[Input 1]],Table_PI[[#This Row],[Input 2]],Table_PI[[#This Row],[Input 3]],Table_PI[[#This Row],[Input 4]],'Customer Information'!$AR$12,1,ROW())>0,MeasureCalc(Table_PI[[#This Row],[Hide:\nFormula Name]],Table_PI[[#This Row],[Quantity]],Table_PI[[#This Row],[List 1]],Table_PI[[#This Row],[List 2]],Table_PI[[#This Row],[List 3]],Table_PI[[#This Row],[Size]],Table_PI[[#This Row],[Input 1]],Table_PI[[#This Row],[Input 2]],Table_PI[[#This Row],[Input 3]],Table_PI[[#This Row],[Input 4]],'Customer Information'!$AR$12,3,ROW()),\"No Rebate\"),\"No Rebate\"),0)","v":0},{"$f":"IF(Table_PI[[#This Row],[Hide:\nFormula Name]]<>\"\",IFERROR(IF(MeasureCalc(Table_PI[[#This Row],[Hide:\nFormula Name]],Table_PI[[#This Row],[Quantity]],Table_PI[[#This Row],[List 1]],Table_PI[[#This Row],[List 2]],Table_PI[[#This Row],[List 3]],Table_PI[[#This Row],[Size]],Table_PI[[#This Row],[Input 1]],Table_PI[[#This Row],[Input 2]],Table_PI[[#This Row],[Input 3]],Table_PI[[#This Row],[Input 4]],'Customer Information'!$AR$12,1,ROW())>0,MeasureCalc(Table_PI[[#This Row],[Hide:\nFormula Name]],Table_PI[[#This Row],[Quantity]],Table_PI[[#This Row],[List 1]],Table_PI[[#This Row],[List 2]],Table_PI[[#This Row],[List 3]],Table_PI[[#This Row],[Size]],Table_PI[[#This Row],[Input 1]],Table_PI[[#This Row],[Input 2]],Table_PI[[#This Row],[Input 3]],Table_PI[[#This Row],[Input 4]],'Customer Information'!$AR$12,4,ROW()),\"No Rebate\"),\"No Rebate\"),0)","v":0},{"$f":"IF(Table_PI[[#This Row],[Hide:\nFormula Name]]<>\"\",IFERROR(IF(MeasureCalc(Table_PI[[#This Row],[Hide:\nFormula Name]],Table_PI[[#This Row],[Quantity]],Table_PI[[#This Row],[List 1]],Table_PI[[#This Row],[List 2]],Table_PI[[#This Row],[List 3]],Table_PI[[#This Row],[Size]],Table_PI[[#This Row],[Input 1]],Table_PI[[#This Row],[Input 2]],Table_PI[[#This Row],[Input 3]],Table_PI[[#This Row],[Input 4]],'Customer Information'!$AR$12,1,ROW())>0,MeasureCalc(Table_PI[[#This Row],[Hide:\nFormula Name]],Table_PI[[#This Row],[Quantity]],Table_PI[[#This Row],[List 1]],Table_PI[[#This Row],[List 2]],Table_PI[[#This Row],[List 3]],Table_PI[[#This Row],[Size]],Table_PI[[#This Row],[Input 1]],Table_PI[[#This Row],[Input 2]],Table_PI[[#This Row],[Input 3]],Table_PI[[#This Row],[Input 4]],'Customer Information'!$AR$12,5,ROW()),\"No Rebate\"),\"No Rebate\"),0)","v":0},{"$f":"IF(Table_PI[[#This Row],[Hide:\nFormula Name]]<>\"\",IFERROR(IF(MeasureCalc(Table_PI[[#This Row],[Hide:\nFormula Name]],Table_PI[[#This Row],[Quantity]],Table_PI[[#This Row],[List 1]],Table_PI[[#This Row],[List 2]],Table_PI[[#This Row],[List 3]],Table_PI[[#This Row],[Size]],Table_PI[[#This Row],[Input 1]],Table_PI[[#This Row],[Input 2]],Table_PI[[#This Row],[Input 3]],Table_PI[[#This Row],[Input 4]],'Customer Information'!$AR$12,1,ROW())>0,MeasureCalc(Table_PI[[#This Row],[Hide:\nFormula Name]],Table_PI[[#This Row],[Quantity]],Table_PI[[#This Row],[List 1]],Table_PI[[#This Row],[List 2]],Table_PI[[#This Row],[List 3]],Table_PI[[#This Row],[Size]],Table_PI[[#This Row],[Input 1]],Table_PI[[#This Row],[Input 2]],Table_PI[[#This Row],[Input 3]],Table_PI[[#This Row],[Input 4]],'Customer Information'!$AR$12,6,ROW()),\"No Rebate\"),\"No Rebate\"),0)","v":0},{"$f":"IF(Table_PI[[#This Row],[Hide:\nFormula Name]]<>\"\",IFERROR(IF(MeasureCalc(Table_PI[[#This Row],[Hide:\nFormula Name]],Table_PI[[#This Row],[Quantity]],Table_PI[[#This Row],[List 1]],Table_PI[[#This Row],[List 2]],Table_PI[[#This Row],[List 3]],Table_PI[[#This Row],[Size]],Table_PI[[#This Row],[Input 1]],Table_PI[[#This Row],[Input 2]],Table_PI[[#This Row],[Input 3]],Table_PI[[#This Row],[Input 4]],'Customer Information'!$AR$12,1,ROW())>0,MeasureCalc(Table_PI[[#This Row],[Hide:\nFormula Name]],Table_PI[[#This Row],[Quantity]],Table_PI[[#This Row],[List 1]],Table_PI[[#This Row],[List 2]],Table_PI[[#This Row],[List 3]],Table_PI[[#This Row],[Size]],Table_PI[[#This Row],[Input 1]],Table_PI[[#This Row],[Input 2]],Table_PI[[#This Row],[Input 3]],Table_PI[[#This Row],[Input 4]],'Customer Information'!$AR$12,7,ROW()),\"No Rebate\"),\"No Rebate\"),0)","v":0},{"$f":"IF(Table_PI[[#This Row],[Hide:\nFormula Name]]<>\"\",IFERROR(IF(MeasureCalc(Table_PI[[#This Row],[Hide:\nFormula Name]],Table_PI[[#This Row],[Quantity]],Table_PI[[#This Row],[List 1]],Table_PI[[#This Row],[List 2]],Table_PI[[#This Row],[List 3]],Table_PI[[#This Row],[Size]],Table_PI[[#This Row],[Input 1]],Table_PI[[#This Row],[Input 2]],Table_PI[[#This Row],[Input 3]],Table_PI[[#This Row],[Input 4]],'Customer Information'!$AR$12,1,ROW())>0,MeasureCalc(Table_PI[[#This Row],[Hide:\nFormula Name]],Table_PI[[#This Row],[Quantity]],Table_PI[[#This Row],[List 1]],Table_PI[[#This Row],[List 2]],Table_PI[[#This Row],[List 3]],Table_PI[[#This Row],[Size]],Table_PI[[#This Row],[Input 1]],Table_PI[[#This Row],[Input 2]],Table_PI[[#This Row],[Input 3]],Table_PI[[#This Row],[Input 4]],'Customer Information'!$AR$12,8,ROW()),\"No Rebate\"),\"No Rebate\"),0)","v":0},{"$f":"IF(Table_PI[[#This Row],[Hide:\nFormula Name]]<>\"\",IF(AND(Table_PI[[#This Row],[Hide:\nFormula Name]]<>\"\",OR(Table_PI[[#This Row],[Rebate]]>0,Table_PI[[#This Row],[Rebate]]=\"No Rebate\")),TRUE,\"MI: Line Item \" & $A162),\"\")","v":""}]
[{"$f":"IF(Table_PI[[#This Row],[Hide:\nFormula Name]]<>\"\",MAX($A$2:A162)+1,\"\")","v":""},null,null,null,null,null,null,null,null,null,null,null,null,null,null,{"$f":"IFERROR(VLOOKUP(Table_PI[[#This Row],[Measure]],'Equipment Lookups'!$C$3:$D$23,2,FALSE),\"\")","v":""},{"$f":"IF(Table_PI[[#This Row],[Hide:\nFormula Name]]<>\"\",IFERROR(IF(MeasureCalc(Table_PI[[#This Row],[Hide:\nFormula Name]],Table_PI[[#This Row],[Quantity]],Table_PI[[#This Row],[List 1]],Table_PI[[#This Row],[List 2]],Table_PI[[#This Row],[List 3]],Table_PI[[#This Row],[Size]],Table_PI[[#This Row],[Input 1]],Table_PI[[#This Row],[Input 2]],Table_PI[[#This Row],[Input 3]],Table_PI[[#This Row],[Input 4]],'Customer Information'!$AR$12,1,ROW())>0,MeasureCalc(Table_PI[[#This Row],[Hide:\nFormula Name]],Table_PI[[#This Row],[Quantity]],Table_PI[[#This Row],[List 1]],Table_PI[[#This Row],[List 2]],Table_PI[[#This Row],[List 3]],Table_PI[[#This Row],[Size]],Table_PI[[#This Row],[Input 1]],Table_PI[[#This Row],[Input 2]],Table_PI[[#This Row],[Input 3]],Table_PI[[#This Row],[Input 4]],'Customer Information'!$AR$12,1,ROW()),\"No Rebate\"),\"No Rebate\"),0)","v":0},{"$f":"IF(Table_PI[[#This Row],[Hide:\nFormula Name]]<>\"\",IFERROR(IF(MeasureCalc(Table_PI[[#This Row],[Hide:\nFormula Name]],Table_PI[[#This Row],[Quantity]],Table_PI[[#This Row],[List 1]],Table_PI[[#This Row],[List 2]],Table_PI[[#This Row],[List 3]],Table_PI[[#This Row],[Size]],Table_PI[[#This Row],[Input 1]],Table_PI[[#This Row],[Input 2]],Table_PI[[#This Row],[Input 3]],Table_PI[[#This Row],[Input 4]],'Customer Information'!$AR$12,1,ROW())>0,MeasureCalc(Table_PI[[#This Row],[Hide:\nFormula Name]],Table_PI[[#This Row],[Quantity]],Table_PI[[#This Row],[List 1]],Table_PI[[#This Row],[List 2]],Table_PI[[#This Row],[List 3]],Table_PI[[#This Row],[Size]],Table_PI[[#This Row],[Input 1]],Table_PI[[#This Row],[Input 2]],Table_PI[[#This Row],[Input 3]],Table_PI[[#This Row],[Input 4]],'Customer Information'!$AR$12,2,ROW()),\"No Rebate\"),\"No Rebate\"),0)","v":0},{"$f":"IF(Table_PI[[#This Row],[Hide:\nFormula Name]]<>\"\",IFERROR(IF(MeasureCalc(Table_PI[[#This Row],[Hide:\nFormula Name]],Table_PI[[#This Row],[Quantity]],Table_PI[[#This Row],[List 1]],Table_PI[[#This Row],[List 2]],Table_PI[[#This Row],[List 3]],Table_PI[[#This Row],[Size]],Table_PI[[#This Row],[Input 1]],Table_PI[[#This Row],[Input 2]],Table_PI[[#This Row],[Input 3]],Table_PI[[#This Row],[Input 4]],'Customer Information'!$AR$12,1,ROW())>0,MeasureCalc(Table_PI[[#This Row],[Hide:\nFormula Name]],Table_PI[[#This Row],[Quantity]],Table_PI[[#This Row],[List 1]],Table_PI[[#This Row],[List 2]],Table_PI[[#This Row],[List 3]],Table_PI[[#This Row],[Size]],Table_PI[[#This Row],[Input 1]],Table_PI[[#This Row],[Input 2]],Table_PI[[#This Row],[Input 3]],Table_PI[[#This Row],[Input 4]],'Customer Information'!$AR$12,3,ROW()),\"No Rebate\"),\"No Rebate\"),0)","v":0},{"$f":"IF(Table_PI[[#This Row],[Hide:\nFormula Name]]<>\"\",IFERROR(IF(MeasureCalc(Table_PI[[#This Row],[Hide:\nFormula Name]],Table_PI[[#This Row],[Quantity]],Table_PI[[#This Row],[List 1]],Table_PI[[#This Row],[List 2]],Table_PI[[#This Row],[List 3]],Table_PI[[#This Row],[Size]],Table_PI[[#This Row],[Input 1]],Table_PI[[#This Row],[Input 2]],Table_PI[[#This Row],[Input 3]],Table_PI[[#This Row],[Input 4]],'Customer Information'!$AR$12,1,ROW())>0,MeasureCalc(Table_PI[[#This Row],[Hide:\nFormula Name]],Table_PI[[#This Row],[Quantity]],Table_PI[[#This Row],[List 1]],Table_PI[[#This Row],[List 2]],Table_PI[[#This Row],[List 3]],Table_PI[[#This Row],[Size]],Table_PI[[#This Row],[Input 1]],Table_PI[[#This Row],[Input 2]],Table_PI[[#This Row],[Input 3]],Table_PI[[#This Row],[Input 4]],'Customer Information'!$AR$12,4,ROW()),\"No Rebate\"),\"No Rebate\"),0)","v":0},{"$f":"IF(Table_PI[[#This Row],[Hide:\nFormula Name]]<>\"\",IFERROR(IF(MeasureCalc(Table_PI[[#This Row],[Hide:\nFormula Name]],Table_PI[[#This Row],[Quantity]],Table_PI[[#This Row],[List 1]],Table_PI[[#This Row],[List 2]],Table_PI[[#This Row],[List 3]],Table_PI[[#This Row],[Size]],Table_PI[[#This Row],[Input 1]],Table_PI[[#This Row],[Input 2]],Table_PI[[#This Row],[Input 3]],Table_PI[[#This Row],[Input 4]],'Customer Information'!$AR$12,1,ROW())>0,MeasureCalc(Table_PI[[#This Row],[Hide:\nFormula Name]],Table_PI[[#This Row],[Quantity]],Table_PI[[#This Row],[List 1]],Table_PI[[#This Row],[List 2]],Table_PI[[#This Row],[List 3]],Table_PI[[#This Row],[Size]],Table_PI[[#This Row],[Input 1]],Table_PI[[#This Row],[Input 2]],Table_PI[[#This Row],[Input 3]],Table_PI[[#This Row],[Input 4]],'Customer Information'!$AR$12,5,ROW()),\"No Rebate\"),\"No Rebate\"),0)","v":0},{"$f":"IF(Table_PI[[#This Row],[Hide:\nFormula Name]]<>\"\",IFERROR(IF(MeasureCalc(Table_PI[[#This Row],[Hide:\nFormula Name]],Table_PI[[#This Row],[Quantity]],Table_PI[[#This Row],[List 1]],Table_PI[[#This Row],[List 2]],Table_PI[[#This Row],[List 3]],Table_PI[[#This Row],[Size]],Table_PI[[#This Row],[Input 1]],Table_PI[[#This Row],[Input 2]],Table_PI[[#This Row],[Input 3]],Table_PI[[#This Row],[Input 4]],'Customer Information'!$AR$12,1,ROW())>0,MeasureCalc(Table_PI[[#This Row],[Hide:\nFormula Name]],Table_PI[[#This Row],[Quantity]],Table_PI[[#This Row],[List 1]],Table_PI[[#This Row],[List 2]],Table_PI[[#This Row],[List 3]],Table_PI[[#This Row],[Size]],Table_PI[[#This Row],[Input 1]],Table_PI[[#This Row],[Input 2]],Table_PI[[#This Row],[Input 3]],Table_PI[[#This Row],[Input 4]],'Customer Information'!$AR$12,6,ROW()),\"No Rebate\"),\"No Rebate\"),0)","v":0},{"$f":"IF(Table_PI[[#This Row],[Hide:\nFormula Name]]<>\"\",IFERROR(IF(MeasureCalc(Table_PI[[#This Row],[Hide:\nFormula Name]],Table_PI[[#This Row],[Quantity]],Table_PI[[#This Row],[List 1]],Table_PI[[#This Row],[List 2]],Table_PI[[#This Row],[List 3]],Table_PI[[#This Row],[Size]],Table_PI[[#This Row],[Input 1]],Table_PI[[#This Row],[Input 2]],Table_PI[[#This Row],[Input 3]],Table_PI[[#This Row],[Input 4]],'Customer Information'!$AR$12,1,ROW())>0,MeasureCalc(Table_PI[[#This Row],[Hide:\nFormula Name]],Table_PI[[#This Row],[Quantity]],Table_PI[[#This Row],[List 1]],Table_PI[[#This Row],[List 2]],Table_PI[[#This Row],[List 3]],Table_PI[[#This Row],[Size]],Table_PI[[#This Row],[Input 1]],Table_PI[[#This Row],[Input 2]],Table_PI[[#This Row],[Input 3]],Table_PI[[#This Row],[Input 4]],'Customer Information'!$AR$12,7,ROW()),\"No Rebate\"),\"No Rebate\"),0)","v":0},{"$f":"IF(Table_PI[[#This Row],[Hide:\nFormula Name]]<>\"\",IFERROR(IF(MeasureCalc(Table_PI[[#This Row],[Hide:\nFormula Name]],Table_PI[[#This Row],[Quantity]],Table_PI[[#This Row],[List 1]],Table_PI[[#This Row],[List 2]],Table_PI[[#This Row],[List 3]],Table_PI[[#This Row],[Size]],Table_PI[[#This Row],[Input 1]],Table_PI[[#This Row],[Input 2]],Table_PI[[#This Row],[Input 3]],Table_PI[[#This Row],[Input 4]],'Customer Information'!$AR$12,1,ROW())>0,MeasureCalc(Table_PI[[#This Row],[Hide:\nFormula Name]],Table_PI[[#This Row],[Quantity]],Table_PI[[#This Row],[List 1]],Table_PI[[#This Row],[List 2]],Table_PI[[#This Row],[List 3]],Table_PI[[#This Row],[Size]],Table_PI[[#This Row],[Input 1]],Table_PI[[#This Row],[Input 2]],Table_PI[[#This Row],[Input 3]],Table_PI[[#This Row],[Input 4]],'Customer Information'!$AR$12,8,ROW()),\"No Rebate\"),\"No Rebate\"),0)","v":0},{"$f":"IF(Table_PI[[#This Row],[Hide:\nFormula Name]]<>\"\",IF(AND(Table_PI[[#This Row],[Hide:\nFormula Name]]<>\"\",OR(Table_PI[[#This Row],[Rebate]]>0,Table_PI[[#This Row],[Rebate]]=\"No Rebate\")),TRUE,\"MI: Line Item \" & $A163),\"\")","v":""}]
[{"$f":"IF(Table_PI[[#This Row],[Hide:\nFormula Name]]<>\"\",MAX($A$2:A163)+1,\"\")","v":""},null,null,null,null,null,null,null,null,null,null,null,null,null,null,{"$f":"IFERROR(VLOOKUP(Table_PI[[#This Row],[Measure]],'Equipment Lookups'!$C$3:$D$23,2,FALSE),\"\")","v":""},{"$f":"IF(Table_PI[[#This Row],[Hide:\nFormula Name]]<>\"\",IFERROR(IF(MeasureCalc(Table_PI[[#This Row],[Hide:\nFormula Name]],Table_PI[[#This Row],[Quantity]],Table_PI[[#This Row],[List 1]],Table_PI[[#This Row],[List 2]],Table_PI[[#This Row],[List 3]],Table_PI[[#This Row],[Size]],Table_PI[[#This Row],[Input 1]],Table_PI[[#This Row],[Input 2]],Table_PI[[#This Row],[Input 3]],Table_PI[[#This Row],[Input 4]],'Customer Information'!$AR$12,1,ROW())>0,MeasureCalc(Table_PI[[#This Row],[Hide:\nFormula Name]],Table_PI[[#This Row],[Quantity]],Table_PI[[#This Row],[List 1]],Table_PI[[#This Row],[List 2]],Table_PI[[#This Row],[List 3]],Table_PI[[#This Row],[Size]],Table_PI[[#This Row],[Input 1]],Table_PI[[#This Row],[Input 2]],Table_PI[[#This Row],[Input 3]],Table_PI[[#This Row],[Input 4]],'Customer Information'!$AR$12,1,ROW()),\"No Rebate\"),\"No Rebate\"),0)","v":0},{"$f":"IF(Table_PI[[#This Row],[Hide:\nFormula Name]]<>\"\",IFERROR(IF(MeasureCalc(Table_PI[[#This Row],[Hide:\nFormula Name]],Table_PI[[#This Row],[Quantity]],Table_PI[[#This Row],[List 1]],Table_PI[[#This Row],[List 2]],Table_PI[[#This Row],[List 3]],Table_PI[[#This Row],[Size]],Table_PI[[#This Row],[Input 1]],Table_PI[[#This Row],[Input 2]],Table_PI[[#This Row],[Input 3]],Table_PI[[#This Row],[Input 4]],'Customer Information'!$AR$12,1,ROW())>0,MeasureCalc(Table_PI[[#This Row],[Hide:\nFormula Name]],Table_PI[[#This Row],[Quantity]],Table_PI[[#This Row],[List 1]],Table_PI[[#This Row],[List 2]],Table_PI[[#This Row],[List 3]],Table_PI[[#This Row],[Size]],Table_PI[[#This Row],[Input 1]],Table_PI[[#This Row],[Input 2]],Table_PI[[#This Row],[Input 3]],Table_PI[[#This Row],[Input 4]],'Customer Information'!$AR$12,2,ROW()),\"No Rebate\"),\"No Rebate\"),0)","v":0},{"$f":"IF(Table_PI[[#This Row],[Hide:\nFormula Name]]<>\"\",IFERROR(IF(MeasureCalc(Table_PI[[#This Row],[Hide:\nFormula Name]],Table_PI[[#This Row],[Quantity]],Table_PI[[#This Row],[List 1]],Table_PI[[#This Row],[List 2]],Table_PI[[#This Row],[List 3]],Table_PI[[#This Row],[Size]],Table_PI[[#This Row],[Input 1]],Table_PI[[#This Row],[Input 2]],Table_PI[[#This Row],[Input 3]],Table_PI[[#This Row],[Input 4]],'Customer Information'!$AR$12,1,ROW())>0,MeasureCalc(Table_PI[[#This Row],[Hide:\nFormula Name]],Table_PI[[#This Row],[Quantity]],Table_PI[[#This Row],[List 1]],Table_PI[[#This Row],[List 2]],Table_PI[[#This Row],[List 3]],Table_PI[[#This Row],[Size]],Table_PI[[#This Row],[Input 1]],Table_PI[[#This Row],[Input 2]],Table_PI[[#This Row],[Input 3]],Table_PI[[#This Row],[Input 4]],'Customer Information'!$AR$12,3,ROW()),\"No Rebate\"),\"No Rebate\"),0)","v":0},{"$f":"IF(Table_PI[[#This Row],[Hide:\nFormula Name]]<>\"\",IFERROR(IF(MeasureCalc(Table_PI[[#This Row],[Hide:\nFormula Name]],Table_PI[[#This Row],[Quantity]],Table_PI[[#This Row],[List 1]],Table_PI[[#This Row],[List 2]],Table_PI[[#This Row],[List 3]],Table_PI[[#This Row],[Size]],Table_PI[[#This Row],[Input 1]],Table_PI[[#This Row],[Input 2]],Table_PI[[#This Row],[Input 3]],Table_PI[[#This Row],[Input 4]],'Customer Information'!$AR$12,1,ROW())>0,MeasureCalc(Table_PI[[#This Row],[Hide:\nFormula Name]],Table_PI[[#This Row],[Quantity]],Table_PI[[#This Row],[List 1]],Table_PI[[#This Row],[List 2]],Table_PI[[#This Row],[List 3]],Table_PI[[#This Row],[Size]],Table_PI[[#This Row],[Input 1]],Table_PI[[#This Row],[Input 2]],Table_PI[[#This Row],[Input 3]],Table_PI[[#This Row],[Input 4]],'Customer Information'!$AR$12,4,ROW()),\"No Rebate\"),\"No Rebate\"),0)","v":0},{"$f":"IF(Table_PI[[#This Row],[Hide:\nFormula Name]]<>\"\",IFERROR(IF(MeasureCalc(Table_PI[[#This Row],[Hide:\nFormula Name]],Table_PI[[#This Row],[Quantity]],Table_PI[[#This Row],[List 1]],Table_PI[[#This Row],[List 2]],Table_PI[[#This Row],[List 3]],Table_PI[[#This Row],[Size]],Table_PI[[#This Row],[Input 1]],Table_PI[[#This Row],[Input 2]],Table_PI[[#This Row],[Input 3]],Table_PI[[#This Row],[Input 4]],'Customer Information'!$AR$12,1,ROW())>0,MeasureCalc(Table_PI[[#This Row],[Hide:\nFormula Name]],Table_PI[[#This Row],[Quantity]],Table_PI[[#This Row],[List 1]],Table_PI[[#This Row],[List 2]],Table_PI[[#This Row],[List 3]],Table_PI[[#This Row],[Size]],Table_PI[[#This Row],[Input 1]],Table_PI[[#This Row],[Input 2]],Table_PI[[#This Row],[Input 3]],Table_PI[[#This Row],[Input 4]],'Customer Information'!$AR$12,5,ROW()),\"No Rebate\"),\"No Rebate\"),0)","v":0},{"$f":"IF(Table_PI[[#This Row],[Hide:\nFormula Name]]<>\"\",IFERROR(IF(MeasureCalc(Table_PI[[#This Row],[Hide:\nFormula Name]],Table_PI[[#This Row],[Quantity]],Table_PI[[#This Row],[List 1]],Table_PI[[#This Row],[List 2]],Table_PI[[#This Row],[List 3]],Table_PI[[#This Row],[Size]],Table_PI[[#This Row],[Input 1]],Table_PI[[#This Row],[Input 2]],Table_PI[[#This Row],[Input 3]],Table_PI[[#This Row],[Input 4]],'Customer Information'!$AR$12,1,ROW())>0,MeasureCalc(Table_PI[[#This Row],[Hide:\nFormula Name]],Table_PI[[#This Row],[Quantity]],Table_PI[[#This Row],[List 1]],Table_PI[[#This Row],[List 2]],Table_PI[[#This Row],[List 3]],Table_PI[[#This Row],[Size]],Table_PI[[#This Row],[Input 1]],Table_PI[[#This Row],[Input 2]],Table_PI[[#This Row],[Input 3]],Table_PI[[#This Row],[Input 4]],'Customer Information'!$AR$12,6,ROW()),\"No Rebate\"),\"No Rebate\"),0)","v":0},{"$f":"IF(Table_PI[[#This Row],[Hide:\nFormula Name]]<>\"\",IFERROR(IF(MeasureCalc(Table_PI[[#This Row],[Hide:\nFormula Name]],Table_PI[[#This Row],[Quantity]],Table_PI[[#This Row],[List 1]],Table_PI[[#This Row],[List 2]],Table_PI[[#This Row],[List 3]],Table_PI[[#This Row],[Size]],Table_PI[[#This Row],[Input 1]],Table_PI[[#This Row],[Input 2]],Table_PI[[#This Row],[Input 3]],Table_PI[[#This Row],[Input 4]],'Customer Information'!$AR$12,1,ROW())>0,MeasureCalc(Table_PI[[#This Row],[Hide:\nFormula Name]],Table_PI[[#This Row],[Quantity]],Table_PI[[#This Row],[List 1]],Table_PI[[#This Row],[List 2]],Table_PI[[#This Row],[List 3]],Table_PI[[#This Row],[Size]],Table_PI[[#This Row],[Input 1]],Table_PI[[#This Row],[Input 2]],Table_PI[[#This Row],[Input 3]],Table_PI[[#This Row],[Input 4]],'Customer Information'!$AR$12,7,ROW()),\"No Rebate\"),\"No Rebate\"),0)","v":0},{"$f":"IF(Table_PI[[#This Row],[Hide:\nFormula Name]]<>\"\",IFERROR(IF(MeasureCalc(Table_PI[[#This Row],[Hide:\nFormula Name]],Table_PI[[#This Row],[Quantity]],Table_PI[[#This Row],[List 1]],Table_PI[[#This Row],[List 2]],Table_PI[[#This Row],[List 3]],Table_PI[[#This Row],[Size]],Table_PI[[#This Row],[Input 1]],Table_PI[[#This Row],[Input 2]],Table_PI[[#This Row],[Input 3]],Table_PI[[#This Row],[Input 4]],'Customer Information'!$AR$12,1,ROW())>0,MeasureCalc(Table_PI[[#This Row],[Hide:\nFormula Name]],Table_PI[[#This Row],[Quantity]],Table_PI[[#This Row],[List 1]],Table_PI[[#This Row],[List 2]],Table_PI[[#This Row],[List 3]],Table_PI[[#This Row],[Size]],Table_PI[[#This Row],[Input 1]],Table_PI[[#This Row],[Input 2]],Table_PI[[#This Row],[Input 3]],Table_PI[[#This Row],[Input 4]],'Customer Information'!$AR$12,8,ROW()),\"No Rebate\"),\"No Rebate\"),0)","v":0},{"$f":"IF(Table_PI[[#This Row],[Hide:\nFormula Name]]<>\"\",IF(AND(Table_PI[[#This Row],[Hide:\nFormula Name]]<>\"\",OR(Table_PI[[#This Row],[Rebate]]>0,Table_PI[[#This Row],[Rebate]]=\"No Rebate\")),TRUE,\"MI: Line Item \" & $A164),\"\")","v":""}]
[{"$f":"IF(Table_PI[[#This Row],[Hide:\nFormula Name]]<>\"\",MAX($A$2:A164)+1,\"\")","v":""},null,null,null,null,null,null,null,null,null,null,null,null,null,null,{"$f":"IFERROR(VLOOKUP(Table_PI[[#This Row],[Measure]],'Equipment Lookups'!$C$3:$D$23,2,FALSE),\"\")","v":""},{"$f":"IF(Table_PI[[#This Row],[Hide:\nFormula Name]]<>\"\",IFERROR(IF(MeasureCalc(Table_PI[[#This Row],[Hide:\nFormula Name]],Table_PI[[#This Row],[Quantity]],Table_PI[[#This Row],[List 1]],Table_PI[[#This Row],[List 2]],Table_PI[[#This Row],[List 3]],Table_PI[[#This Row],[Size]],Table_PI[[#This Row],[Input 1]],Table_PI[[#This Row],[Input 2]],Table_PI[[#This Row],[Input 3]],Table_PI[[#This Row],[Input 4]],'Customer Information'!$AR$12,1,ROW())>0,MeasureCalc(Table_PI[[#This Row],[Hide:\nFormula Name]],Table_PI[[#This Row],[Quantity]],Table_PI[[#This Row],[List 1]],Table_PI[[#This Row],[List 2]],Table_PI[[#This Row],[List 3]],Table_PI[[#This Row],[Size]],Table_PI[[#This Row],[Input 1]],Table_PI[[#This Row],[Input 2]],Table_PI[[#This Row],[Input 3]],Table_PI[[#This Row],[Input 4]],'Customer Information'!$AR$12,1,ROW()),\"No Rebate\"),\"No Rebate\"),0)","v":0},{"$f":"IF(Table_PI[[#This Row],[Hide:\nFormula Name]]<>\"\",IFERROR(IF(MeasureCalc(Table_PI[[#This Row],[Hide:\nFormula Name]],Table_PI[[#This Row],[Quantity]],Table_PI[[#This Row],[List 1]],Table_PI[[#This Row],[List 2]],Table_PI[[#This Row],[List 3]],Table_PI[[#This Row],[Size]],Table_PI[[#This Row],[Input 1]],Table_PI[[#This Row],[Input 2]],Table_PI[[#This Row],[Input 3]],Table_PI[[#This Row],[Input 4]],'Customer Information'!$AR$12,1,ROW())>0,MeasureCalc(Table_PI[[#This Row],[Hide:\nFormula Name]],Table_PI[[#This Row],[Quantity]],Table_PI[[#This Row],[List 1]],Table_PI[[#This Row],[List 2]],Table_PI[[#This Row],[List 3]],Table_PI[[#This Row],[Size]],Table_PI[[#This Row],[Input 1]],Table_PI[[#This Row],[Input 2]],Table_PI[[#This Row],[Input 3]],Table_PI[[#This Row],[Input 4]],'Customer Information'!$AR$12,2,ROW()),\"No Rebate\"),\"No Rebate\"),0)","v":0},{"$f":"IF(Table_PI[[#This Row],[Hide:\nFormula Name]]<>\"\",IFERROR(IF(MeasureCalc(Table_PI[[#This Row],[Hide:\nFormula Name]],Table_PI[[#This Row],[Quantity]],Table_PI[[#This Row],[List 1]],Table_PI[[#This Row],[List 2]],Table_PI[[#This Row],[List 3]],Table_PI[[#This Row],[Size]],Table_PI[[#This Row],[Input 1]],Table_PI[[#This Row],[Input 2]],Table_PI[[#This Row],[Input 3]],Table_PI[[#This Row],[Input 4]],'Customer Information'!$AR$12,1,ROW())>0,MeasureCalc(Table_PI[[#This Row],[Hide:\nFormula Name]],Table_PI[[#This Row],[Quantity]],Table_PI[[#This Row],[List 1]],Table_PI[[#This Row],[List 2]],Table_PI[[#This Row],[List 3]],Table_PI[[#This Row],[Size]],Table_PI[[#This Row],[Input 1]],Table_PI[[#This Row],[Input 2]],Table_PI[[#This Row],[Input 3]],Table_PI[[#This Row],[Input 4]],'Customer Information'!$AR$12,3,ROW()),\"No Rebate\"),\"No Rebate\"),0)","v":0},{"$f":"IF(Table_PI[[#This Row],[Hide:\nFormula Name]]<>\"\",IFERROR(IF(MeasureCalc(Table_PI[[#This Row],[Hide:\nFormula Name]],Table_PI[[#This Row],[Quantity]],Table_PI[[#This Row],[List 1]],Table_PI[[#This Row],[List 2]],Table_PI[[#This Row],[List 3]],Table_PI[[#This Row],[Size]],Table_PI[[#This Row],[Input 1]],Table_PI[[#This Row],[Input 2]],Table_PI[[#This Row],[Input 3]],Table_PI[[#This Row],[Input 4]],'Customer Information'!$AR$12,1,ROW())>0,MeasureCalc(Table_PI[[#This Row],[Hide:\nFormula Name]],Table_PI[[#This Row],[Quantity]],Table_PI[[#This Row],[List 1]],Table_PI[[#This Row],[List 2]],Table_PI[[#This Row],[List 3]],Table_PI[[#This Row],[Size]],Table_PI[[#This Row],[Input 1]],Table_PI[[#This Row],[Input 2]],Table_PI[[#This Row],[Input 3]],Table_PI[[#This Row],[Input 4]],'Customer Information'!$AR$12,4,ROW()),\"No Rebate\"),\"No Rebate\"),0)","v":0},{"$f":"IF(Table_PI[[#This Row],[Hide:\nFormula Name]]<>\"\",IFERROR(IF(MeasureCalc(Table_PI[[#This Row],[Hide:\nFormula Name]],Table_PI[[#This Row],[Quantity]],Table_PI[[#This Row],[List 1]],Table_PI[[#This Row],[List 2]],Table_PI[[#This Row],[List 3]],Table_PI[[#This Row],[Size]],Table_PI[[#This Row],[Input 1]],Table_PI[[#This Row],[Input 2]],Table_PI[[#This Row],[Input 3]],Table_PI[[#This Row],[Input 4]],'Customer Information'!$AR$12,1,ROW())>0,MeasureCalc(Table_PI[[#This Row],[Hide:\nFormula Name]],Table_PI[[#This Row],[Quantity]],Table_PI[[#This Row],[List 1]],Table_PI[[#This Row],[List 2]],Table_PI[[#This Row],[List 3]],Table_PI[[#This Row],[Size]],Table_PI[[#This Row],[Input 1]],Table_PI[[#This Row],[Input 2]],Table_PI[[#This Row],[Input 3]],Table_PI[[#This Row],[Input 4]],'Customer Information'!$AR$12,5,ROW()),\"No Rebate\"),\"No Rebate\"),0)","v":0},{"$f":"IF(Table_PI[[#This Row],[Hide:\nFormula Name]]<>\"\",IFERROR(IF(MeasureCalc(Table_PI[[#This Row],[Hide:\nFormula Name]],Table_PI[[#This Row],[Quantity]],Table_PI[[#This Row],[List 1]],Table_PI[[#This Row],[List 2]],Table_PI[[#This Row],[List 3]],Table_PI[[#This Row],[Size]],Table_PI[[#This Row],[Input 1]],Table_PI[[#This Row],[Input 2]],Table_PI[[#This Row],[Input 3]],Table_PI[[#This Row],[Input 4]],'Customer Information'!$AR$12,1,ROW())>0,MeasureCalc(Table_PI[[#This Row],[Hide:\nFormula Name]],Table_PI[[#This Row],[Quantity]],Table_PI[[#This Row],[List 1]],Table_PI[[#This Row],[List 2]],Table_PI[[#This Row],[List 3]],Table_PI[[#This Row],[Size]],Table_PI[[#This Row],[Input 1]],Table_PI[[#This Row],[Input 2]],Table_PI[[#This Row],[Input 3]],Table_PI[[#This Row],[Input 4]],'Customer Information'!$AR$12,6,ROW()),\"No Rebate\"),\"No Rebate\"),0)","v":0},{"$f":"IF(Table_PI[[#This Row],[Hide:\nFormula Name]]<>\"\",IFERROR(IF(MeasureCalc(Table_PI[[#This Row],[Hide:\nFormula Name]],Table_PI[[#This Row],[Quantity]],Table_PI[[#This Row],[List 1]],Table_PI[[#This Row],[List 2]],Table_PI[[#This Row],[List 3]],Table_PI[[#This Row],[Size]],Table_PI[[#This Row],[Input 1]],Table_PI[[#This Row],[Input 2]],Table_PI[[#This Row],[Input 3]],Table_PI[[#This Row],[Input 4]],'Customer Information'!$AR$12,1,ROW())>0,MeasureCalc(Table_PI[[#This Row],[Hide:\nFormula Name]],Table_PI[[#This Row],[Quantity]],Table_PI[[#This Row],[List 1]],Table_PI[[#This Row],[List 2]],Table_PI[[#This Row],[List 3]],Table_PI[[#This Row],[Size]],Table_PI[[#This Row],[Input 1]],Table_PI[[#This Row],[Input 2]],Table_PI[[#This Row],[Input 3]],Table_PI[[#This Row],[Input 4]],'Customer Information'!$AR$12,7,ROW()),\"No Rebate\"),\"No Rebate\"),0)","v":0},{"$f":"IF(Table_PI[[#This Row],[Hide:\nFormula Name]]<>\"\",IFERROR(IF(MeasureCalc(Table_PI[[#This Row],[Hide:\nFormula Name]],Table_PI[[#This Row],[Quantity]],Table_PI[[#This Row],[List 1]],Table_PI[[#This Row],[List 2]],Table_PI[[#This Row],[List 3]],Table_PI[[#This Row],[Size]],Table_PI[[#This Row],[Input 1]],Table_PI[[#This Row],[Input 2]],Table_PI[[#This Row],[Input 3]],Table_PI[[#This Row],[Input 4]],'Customer Information'!$AR$12,1,ROW())>0,MeasureCalc(Table_PI[[#This Row],[Hide:\nFormula Name]],Table_PI[[#This Row],[Quantity]],Table_PI[[#This Row],[List 1]],Table_PI[[#This Row],[List 2]],Table_PI[[#This Row],[List 3]],Table_PI[[#This Row],[Size]],Table_PI[[#This Row],[Input 1]],Table_PI[[#This Row],[Input 2]],Table_PI[[#This Row],[Input 3]],Table_PI[[#This Row],[Input 4]],'Customer Information'!$AR$12,8,ROW()),\"No Rebate\"),\"No Rebate\"),0)","v":0},{"$f":"IF(Table_PI[[#This Row],[Hide:\nFormula Name]]<>\"\",IF(AND(Table_PI[[#This Row],[Hide:\nFormula Name]]<>\"\",OR(Table_PI[[#This Row],[Rebate]]>0,Table_PI[[#This Row],[Rebate]]=\"No Rebate\")),TRUE,\"MI: Line Item \" & $A165),\"\")","v":""}]
[{"$f":"IF(Table_PI[[#This Row],[Hide:\nFormula Name]]<>\"\",MAX($A$2:A165)+1,\"\")","v":""},null,null,null,null,null,null,null,null,null,null,null,null,null,null,{"$f":"IFERROR(VLOOKUP(Table_PI[[#This Row],[Measure]],'Equipment Lookups'!$C$3:$D$23,2,FALSE),\"\")","v":""},{"$f":"IF(Table_PI[[#This Row],[Hide:\nFormula Name]]<>\"\",IFERROR(IF(MeasureCalc(Table_PI[[#This Row],[Hide:\nFormula Name]],Table_PI[[#This Row],[Quantity]],Table_PI[[#This Row],[List 1]],Table_PI[[#This Row],[List 2]],Table_PI[[#This Row],[List 3]],Table_PI[[#This Row],[Size]],Table_PI[[#This Row],[Input 1]],Table_PI[[#This Row],[Input 2]],Table_PI[[#This Row],[Input 3]],Table_PI[[#This Row],[Input 4]],'Customer Information'!$AR$12,1,ROW())>0,MeasureCalc(Table_PI[[#This Row],[Hide:\nFormula Name]],Table_PI[[#This Row],[Quantity]],Table_PI[[#This Row],[List 1]],Table_PI[[#This Row],[List 2]],Table_PI[[#This Row],[List 3]],Table_PI[[#This Row],[Size]],Table_PI[[#This Row],[Input 1]],Table_PI[[#This Row],[Input 2]],Table_PI[[#This Row],[Input 3]],Table_PI[[#This Row],[Input 4]],'Customer Information'!$AR$12,1,ROW()),\"No Rebate\"),\"No Rebate\"),0)","v":0},{"$f":"IF(Table_PI[[#This Row],[Hide:\nFormula Name]]<>\"\",IFERROR(IF(MeasureCalc(Table_PI[[#This Row],[Hide:\nFormula Name]],Table_PI[[#This Row],[Quantity]],Table_PI[[#This Row],[List 1]],Table_PI[[#This Row],[List 2]],Table_PI[[#This Row],[List 3]],Table_PI[[#This Row],[Size]],Table_PI[[#This Row],[Input 1]],Table_PI[[#This Row],[Input 2]],Table_PI[[#This Row],[Input 3]],Table_PI[[#This Row],[Input 4]],'Customer Information'!$AR$12,1,ROW())>0,MeasureCalc(Table_PI[[#This Row],[Hide:\nFormula Name]],Table_PI[[#This Row],[Quantity]],Table_PI[[#This Row],[List 1]],Table_PI[[#This Row],[List 2]],Table_PI[[#This Row],[List 3]],Table_PI[[#This Row],[Size]],Table_PI[[#This Row],[Input 1]],Table_PI[[#This Row],[Input 2]],Table_PI[[#This Row],[Input 3]],Table_PI[[#This Row],[Input 4]],'Customer Information'!$AR$12,2,ROW()),\"No Rebate\"),\"No Rebate\"),0)","v":0},{"$f":"IF(Table_PI[[#This Row],[Hide:\nFormula Name]]<>\"\",IFERROR(IF(MeasureCalc(Table_PI[[#This Row],[Hide:\nFormula Name]],Table_PI[[#This Row],[Quantity]],Table_PI[[#This Row],[List 1]],Table_PI[[#This Row],[List 2]],Table_PI[[#This Row],[List 3]],Table_PI[[#This Row],[Size]],Table_PI[[#This Row],[Input 1]],Table_PI[[#This Row],[Input 2]],Table_PI[[#This Row],[Input 3]],Table_PI[[#This Row],[Input 4]],'Customer Information'!$AR$12,1,ROW())>0,MeasureCalc(Table_PI[[#This Row],[Hide:\nFormula Name]],Table_PI[[#This Row],[Quantity]],Table_PI[[#This Row],[List 1]],Table_PI[[#This Row],[List 2]],Table_PI[[#This Row],[List 3]],Table_PI[[#This Row],[Size]],Table_PI[[#This Row],[Input 1]],Table_PI[[#This Row],[Input 2]],Table_PI[[#This Row],[Input 3]],Table_PI[[#This Row],[Input 4]],'Customer Information'!$AR$12,3,ROW()),\"No Rebate\"),\"No Rebate\"),0)","v":0},{"$f":"IF(Table_PI[[#This Row],[Hide:\nFormula Name]]<>\"\",IFERROR(IF(MeasureCalc(Table_PI[[#This Row],[Hide:\nFormula Name]],Table_PI[[#This Row],[Quantity]],Table_PI[[#This Row],[List 1]],Table_PI[[#This Row],[List 2]],Table_PI[[#This Row],[List 3]],Table_PI[[#This Row],[Size]],Table_PI[[#This Row],[Input 1]],Table_PI[[#This Row],[Input 2]],Table_PI[[#This Row],[Input 3]],Table_PI[[#This Row],[Input 4]],'Customer Information'!$AR$12,1,ROW())>0,MeasureCalc(Table_PI[[#This Row],[Hide:\nFormula Name]],Table_PI[[#This Row],[Quantity]],Table_PI[[#This Row],[List 1]],Table_PI[[#This Row],[List 2]],Table_PI[[#This Row],[List 3]],Table_PI[[#This Row],[Size]],Table_PI[[#This Row],[Input 1]],Table_PI[[#This Row],[Input 2]],Table_PI[[#This Row],[Input 3]],Table_PI[[#This Row],[Input 4]],'Customer Information'!$AR$12,4,ROW()),\"No Rebate\"),\"No Rebate\"),0)","v":0},{"$f":"IF(Table_PI[[#This Row],[Hide:\nFormula Name]]<>\"\",IFERROR(IF(MeasureCalc(Table_PI[[#This Row],[Hide:\nFormula Name]],Table_PI[[#This Row],[Quantity]],Table_PI[[#This Row],[List 1]],Table_PI[[#This Row],[List 2]],Table_PI[[#This Row],[List 3]],Table_PI[[#This Row],[Size]],Table_PI[[#This Row],[Input 1]],Table_PI[[#This Row],[Input 2]],Table_PI[[#This Row],[Input 3]],Table_PI[[#This Row],[Input 4]],'Customer Information'!$AR$12,1,ROW())>0,MeasureCalc(Table_PI[[#This Row],[Hide:\nFormula Name]],Table_PI[[#This Row],[Quantity]],Table_PI[[#This Row],[List 1]],Table_PI[[#This Row],[List 2]],Table_PI[[#This Row],[List 3]],Table_PI[[#This Row],[Size]],Table_PI[[#This Row],[Input 1]],Table_PI[[#This Row],[Input 2]],Table_PI[[#This Row],[Input 3]],Table_PI[[#This Row],[Input 4]],'Customer Information'!$AR$12,5,ROW()),\"No Rebate\"),\"No Rebate\"),0)","v":0},{"$f":"IF(Table_PI[[#This Row],[Hide:\nFormula Name]]<>\"\",IFERROR(IF(MeasureCalc(Table_PI[[#This Row],[Hide:\nFormula Name]],Table_PI[[#This Row],[Quantity]],Table_PI[[#This Row],[List 1]],Table_PI[[#This Row],[List 2]],Table_PI[[#This Row],[List 3]],Table_PI[[#This Row],[Size]],Table_PI[[#This Row],[Input 1]],Table_PI[[#This Row],[Input 2]],Table_PI[[#This Row],[Input 3]],Table_PI[[#This Row],[Input 4]],'Customer Information'!$AR$12,1,ROW())>0,MeasureCalc(Table_PI[[#This Row],[Hide:\nFormula Name]],Table_PI[[#This Row],[Quantity]],Table_PI[[#This Row],[List 1]],Table_PI[[#This Row],[List 2]],Table_PI[[#This Row],[List 3]],Table_PI[[#This Row],[Size]],Table_PI[[#This Row],[Input 1]],Table_PI[[#This Row],[Input 2]],Table_PI[[#This Row],[Input 3]],Table_PI[[#This Row],[Input 4]],'Customer Information'!$AR$12,6,ROW()),\"No Rebate\"),\"No Rebate\"),0)","v":0},{"$f":"IF(Table_PI[[#This Row],[Hide:\nFormula Name]]<>\"\",IFERROR(IF(MeasureCalc(Table_PI[[#This Row],[Hide:\nFormula Name]],Table_PI[[#This Row],[Quantity]],Table_PI[[#This Row],[List 1]],Table_PI[[#This Row],[List 2]],Table_PI[[#This Row],[List 3]],Table_PI[[#This Row],[Size]],Table_PI[[#This Row],[Input 1]],Table_PI[[#This Row],[Input 2]],Table_PI[[#This Row],[Input 3]],Table_PI[[#This Row],[Input 4]],'Customer Information'!$AR$12,1,ROW())>0,MeasureCalc(Table_PI[[#This Row],[Hide:\nFormula Name]],Table_PI[[#This Row],[Quantity]],Table_PI[[#This Row],[List 1]],Table_PI[[#This Row],[List 2]],Table_PI[[#This Row],[List 3]],Table_PI[[#This Row],[Size]],Table_PI[[#This Row],[Input 1]],Table_PI[[#This Row],[Input 2]],Table_PI[[#This Row],[Input 3]],Table_PI[[#This Row],[Input 4]],'Customer Information'!$AR$12,7,ROW()),\"No Rebate\"),\"No Rebate\"),0)","v":0},{"$f":"IF(Table_PI[[#This Row],[Hide:\nFormula Name]]<>\"\",IFERROR(IF(MeasureCalc(Table_PI[[#This Row],[Hide:\nFormula Name]],Table_PI[[#This Row],[Quantity]],Table_PI[[#This Row],[List 1]],Table_PI[[#This Row],[List 2]],Table_PI[[#This Row],[List 3]],Table_PI[[#This Row],[Size]],Table_PI[[#This Row],[Input 1]],Table_PI[[#This Row],[Input 2]],Table_PI[[#This Row],[Input 3]],Table_PI[[#This Row],[Input 4]],'Customer Information'!$AR$12,1,ROW())>0,MeasureCalc(Table_PI[[#This Row],[Hide:\nFormula Name]],Table_PI[[#This Row],[Quantity]],Table_PI[[#This Row],[List 1]],Table_PI[[#This Row],[List 2]],Table_PI[[#This Row],[List 3]],Table_PI[[#This Row],[Size]],Table_PI[[#This Row],[Input 1]],Table_PI[[#This Row],[Input 2]],Table_PI[[#This Row],[Input 3]],Table_PI[[#This Row],[Input 4]],'Customer Information'!$AR$12,8,ROW()),\"No Rebate\"),\"No Rebate\"),0)","v":0},{"$f":"IF(Table_PI[[#This Row],[Hide:\nFormula Name]]<>\"\",IF(AND(Table_PI[[#This Row],[Hide:\nFormula Name]]<>\"\",OR(Table_PI[[#This Row],[Rebate]]>0,Table_PI[[#This Row],[Rebate]]=\"No Rebate\")),TRUE,\"MI: Line Item \" & $A166),\"\")","v":""}]
[{"$f":"IF(Table_PI[[#This Row],[Hide:\nFormula Name]]<>\"\",MAX($A$2:A166)+1,\"\")","v":""},null,null,null,null,null,null,null,null,null,null,null,null,null,null,{"$f":"IFERROR(VLOOKUP(Table_PI[[#This Row],[Measure]],'Equipment Lookups'!$C$3:$D$23,2,FALSE),\"\")","v":""},{"$f":"IF(Table_PI[[#This Row],[Hide:\nFormula Name]]<>\"\",IFERROR(IF(MeasureCalc(Table_PI[[#This Row],[Hide:\nFormula Name]],Table_PI[[#This Row],[Quantity]],Table_PI[[#This Row],[List 1]],Table_PI[[#This Row],[List 2]],Table_PI[[#This Row],[List 3]],Table_PI[[#This Row],[Size]],Table_PI[[#This Row],[Input 1]],Table_PI[[#This Row],[Input 2]],Table_PI[[#This Row],[Input 3]],Table_PI[[#This Row],[Input 4]],'Customer Information'!$AR$12,1,ROW())>0,MeasureCalc(Table_PI[[#This Row],[Hide:\nFormula Name]],Table_PI[[#This Row],[Quantity]],Table_PI[[#This Row],[List 1]],Table_PI[[#This Row],[List 2]],Table_PI[[#This Row],[List 3]],Table_PI[[#This Row],[Size]],Table_PI[[#This Row],[Input 1]],Table_PI[[#This Row],[Input 2]],Table_PI[[#This Row],[Input 3]],Table_PI[[#This Row],[Input 4]],'Customer Information'!$AR$12,1,ROW()),\"No Rebate\"),\"No Rebate\"),0)","v":0},{"$f":"IF(Table_PI[[#This Row],[Hide:\nFormula Name]]<>\"\",IFERROR(IF(MeasureCalc(Table_PI[[#This Row],[Hide:\nFormula Name]],Table_PI[[#This Row],[Quantity]],Table_PI[[#This Row],[List 1]],Table_PI[[#This Row],[List 2]],Table_PI[[#This Row],[List 3]],Table_PI[[#This Row],[Size]],Table_PI[[#This Row],[Input 1]],Table_PI[[#This Row],[Input 2]],Table_PI[[#This Row],[Input 3]],Table_PI[[#This Row],[Input 4]],'Customer Information'!$AR$12,1,ROW())>0,MeasureCalc(Table_PI[[#This Row],[Hide:\nFormula Name]],Table_PI[[#This Row],[Quantity]],Table_PI[[#This Row],[List 1]],Table_PI[[#This Row],[List 2]],Table_PI[[#This Row],[List 3]],Table_PI[[#This Row],[Size]],Table_PI[[#This Row],[Input 1]],Table_PI[[#This Row],[Input 2]],Table_PI[[#This Row],[Input 3]],Table_PI[[#This Row],[Input 4]],'Customer Information'!$AR$12,2,ROW()),\"No Rebate\"),\"No Rebate\"),0)","v":0},{"$f":"IF(Table_PI[[#This Row],[Hide:\nFormula Name]]<>\"\",IFERROR(IF(MeasureCalc(Table_PI[[#This Row],[Hide:\nFormula Name]],Table_PI[[#This Row],[Quantity]],Table_PI[[#This Row],[List 1]],Table_PI[[#This Row],[List 2]],Table_PI[[#This Row],[List 3]],Table_PI[[#This Row],[Size]],Table_PI[[#This Row],[Input 1]],Table_PI[[#This Row],[Input 2]],Table_PI[[#This Row],[Input 3]],Table_PI[[#This Row],[Input 4]],'Customer Information'!$AR$12,1,ROW())>0,MeasureCalc(Table_PI[[#This Row],[Hide:\nFormula Name]],Table_PI[[#This Row],[Quantity]],Table_PI[[#This Row],[List 1]],Table_PI[[#This Row],[List 2]],Table_PI[[#This Row],[List 3]],Table_PI[[#This Row],[Size]],Table_PI[[#This Row],[Input 1]],Table_PI[[#This Row],[Input 2]],Table_PI[[#This Row],[Input 3]],Table_PI[[#This Row],[Input 4]],'Customer Information'!$AR$12,3,ROW()),\"No Rebate\"),\"No Rebate\"),0)","v":0},{"$f":"IF(Table_PI[[#This Row],[Hide:\nFormula Name]]<>\"\",IFERROR(IF(MeasureCalc(Table_PI[[#This Row],[Hide:\nFormula Name]],Table_PI[[#This Row],[Quantity]],Table_PI[[#This Row],[List 1]],Table_PI[[#This Row],[List 2]],Table_PI[[#This Row],[List 3]],Table_PI[[#This Row],[Size]],Table_PI[[#This Row],[Input 1]],Table_PI[[#This Row],[Input 2]],Table_PI[[#This Row],[Input 3]],Table_PI[[#This Row],[Input 4]],'Customer Information'!$AR$12,1,ROW())>0,MeasureCalc(Table_PI[[#This Row],[Hide:\nFormula Name]],Table_PI[[#This Row],[Quantity]],Table_PI[[#This Row],[List 1]],Table_PI[[#This Row],[List 2]],Table_PI[[#This Row],[List 3]],Table_PI[[#This Row],[Size]],Table_PI[[#This Row],[Input 1]],Table_PI[[#This Row],[Input 2]],Table_PI[[#This Row],[Input 3]],Table_PI[[#This Row],[Input 4]],'Customer Information'!$AR$12,4,ROW()),\"No Rebate\"),\"No Rebate\"),0)","v":0},{"$f":"IF(Table_PI[[#This Row],[Hide:\nFormula Name]]<>\"\",IFERROR(IF(MeasureCalc(Table_PI[[#This Row],[Hide:\nFormula Name]],Table_PI[[#This Row],[Quantity]],Table_PI[[#This Row],[List 1]],Table_PI[[#This Row],[List 2]],Table_PI[[#This Row],[List 3]],Table_PI[[#This Row],[Size]],Table_PI[[#This Row],[Input 1]],Table_PI[[#This Row],[Input 2]],Table_PI[[#This Row],[Input 3]],Table_PI[[#This Row],[Input 4]],'Customer Information'!$AR$12,1,ROW())>0,MeasureCalc(Table_PI[[#This Row],[Hide:\nFormula Name]],Table_PI[[#This Row],[Quantity]],Table_PI[[#This Row],[List 1]],Table_PI[[#This Row],[List 2]],Table_PI[[#This Row],[List 3]],Table_PI[[#This Row],[Size]],Table_PI[[#This Row],[Input 1]],Table_PI[[#This Row],[Input 2]],Table_PI[[#This Row],[Input 3]],Table_PI[[#This Row],[Input 4]],'Customer Information'!$AR$12,5,ROW()),\"No Rebate\"),\"No Rebate\"),0)","v":0},{"$f":"IF(Table_PI[[#This Row],[Hide:\nFormula Name]]<>\"\",IFERROR(IF(MeasureCalc(Table_PI[[#This Row],[Hide:\nFormula Name]],Table_PI[[#This Row],[Quantity]],Table_PI[[#This Row],[List 1]],Table_PI[[#This Row],[List 2]],Table_PI[[#This Row],[List 3]],Table_PI[[#This Row],[Size]],Table_PI[[#This Row],[Input 1]],Table_PI[[#This Row],[Input 2]],Table_PI[[#This Row],[Input 3]],Table_PI[[#This Row],[Input 4]],'Customer Information'!$AR$12,1,ROW())>0,MeasureCalc(Table_PI[[#This Row],[Hide:\nFormula Name]],Table_PI[[#This Row],[Quantity]],Table_PI[[#This Row],[List 1]],Table_PI[[#This Row],[List 2]],Table_PI[[#This Row],[List 3]],Table_PI[[#This Row],[Size]],Table_PI[[#This Row],[Input 1]],Table_PI[[#This Row],[Input 2]],Table_PI[[#This Row],[Input 3]],Table_PI[[#This Row],[Input 4]],'Customer Information'!$AR$12,6,ROW()),\"No Rebate\"),\"No Rebate\"),0)","v":0},{"$f":"IF(Table_PI[[#This Row],[Hide:\nFormula Name]]<>\"\",IFERROR(IF(MeasureCalc(Table_PI[[#This Row],[Hide:\nFormula Name]],Table_PI[[#This Row],[Quantity]],Table_PI[[#This Row],[List 1]],Table_PI[[#This Row],[List 2]],Table_PI[[#This Row],[List 3]],Table_PI[[#This Row],[Size]],Table_PI[[#This Row],[Input 1]],Table_PI[[#This Row],[Input 2]],Table_PI[[#This Row],[Input 3]],Table_PI[[#This Row],[Input 4]],'Customer Information'!$AR$12,1,ROW())>0,MeasureCalc(Table_PI[[#This Row],[Hide:\nFormula Name]],Table_PI[[#This Row],[Quantity]],Table_PI[[#This Row],[List 1]],Table_PI[[#This Row],[List 2]],Table_PI[[#This Row],[List 3]],Table_PI[[#This Row],[Size]],Table_PI[[#This Row],[Input 1]],Table_PI[[#This Row],[Input 2]],Table_PI[[#This Row],[Input 3]],Table_PI[[#This Row],[Input 4]],'Customer Information'!$AR$12,7,ROW()),\"No Rebate\"),\"No Rebate\"),0)","v":0},{"$f":"IF(Table_PI[[#This Row],[Hide:\nFormula Name]]<>\"\",IFERROR(IF(MeasureCalc(Table_PI[[#This Row],[Hide:\nFormula Name]],Table_PI[[#This Row],[Quantity]],Table_PI[[#This Row],[List 1]],Table_PI[[#This Row],[List 2]],Table_PI[[#This Row],[List 3]],Table_PI[[#This Row],[Size]],Table_PI[[#This Row],[Input 1]],Table_PI[[#This Row],[Input 2]],Table_PI[[#This Row],[Input 3]],Table_PI[[#This Row],[Input 4]],'Customer Information'!$AR$12,1,ROW())>0,MeasureCalc(Table_PI[[#This Row],[Hide:\nFormula Name]],Table_PI[[#This Row],[Quantity]],Table_PI[[#This Row],[List 1]],Table_PI[[#This Row],[List 2]],Table_PI[[#This Row],[List 3]],Table_PI[[#This Row],[Size]],Table_PI[[#This Row],[Input 1]],Table_PI[[#This Row],[Input 2]],Table_PI[[#This Row],[Input 3]],Table_PI[[#This Row],[Input 4]],'Customer Information'!$AR$12,8,ROW()),\"No Rebate\"),\"No Rebate\"),0)","v":0},{"$f":"IF(Table_PI[[#This Row],[Hide:\nFormula Name]]<>\"\",IF(AND(Table_PI[[#This Row],[Hide:\nFormula Name]]<>\"\",OR(Table_PI[[#This Row],[Rebate]]>0,Table_PI[[#This Row],[Rebate]]=\"No Rebate\")),TRUE,\"MI: Line Item \" & $A167),\"\")","v":""}]
[{"$f":"IF(Table_PI[[#This Row],[Hide:\nFormula Name]]<>\"\",MAX($A$2:A167)+1,\"\")","v":""},null,null,null,null,null,null,null,null,null,null,null,null,null,null,{"$f":"IFERROR(VLOOKUP(Table_PI[[#This Row],[Measure]],'Equipment Lookups'!$C$3:$D$23,2,FALSE),\"\")","v":""},{"$f":"IF(Table_PI[[#This Row],[Hide:\nFormula Name]]<>\"\",IFERROR(IF(MeasureCalc(Table_PI[[#This Row],[Hide:\nFormula Name]],Table_PI[[#This Row],[Quantity]],Table_PI[[#This Row],[List 1]],Table_PI[[#This Row],[List 2]],Table_PI[[#This Row],[List 3]],Table_PI[[#This Row],[Size]],Table_PI[[#This Row],[Input 1]],Table_PI[[#This Row],[Input 2]],Table_PI[[#This Row],[Input 3]],Table_PI[[#This Row],[Input 4]],'Customer Information'!$AR$12,1,ROW())>0,MeasureCalc(Table_PI[[#This Row],[Hide:\nFormula Name]],Table_PI[[#This Row],[Quantity]],Table_PI[[#This Row],[List 1]],Table_PI[[#This Row],[List 2]],Table_PI[[#This Row],[List 3]],Table_PI[[#This Row],[Size]],Table_PI[[#This Row],[Input 1]],Table_PI[[#This Row],[Input 2]],Table_PI[[#This Row],[Input 3]],Table_PI[[#This Row],[Input 4]],'Customer Information'!$AR$12,1,ROW()),\"No Rebate\"),\"No Rebate\"),0)","v":0},{"$f":"IF(Table_PI[[#This Row],[Hide:\nFormula Name]]<>\"\",IFERROR(IF(MeasureCalc(Table_PI[[#This Row],[Hide:\nFormula Name]],Table_PI[[#This Row],[Quantity]],Table_PI[[#This Row],[List 1]],Table_PI[[#This Row],[List 2]],Table_PI[[#This Row],[List 3]],Table_PI[[#This Row],[Size]],Table_PI[[#This Row],[Input 1]],Table_PI[[#This Row],[Input 2]],Table_PI[[#This Row],[Input 3]],Table_PI[[#This Row],[Input 4]],'Customer Information'!$AR$12,1,ROW())>0,MeasureCalc(Table_PI[[#This Row],[Hide:\nFormula Name]],Table_PI[[#This Row],[Quantity]],Table_PI[[#This Row],[List 1]],Table_PI[[#This Row],[List 2]],Table_PI[[#This Row],[List 3]],Table_PI[[#This Row],[Size]],Table_PI[[#This Row],[Input 1]],Table_PI[[#This Row],[Input 2]],Table_PI[[#This Row],[Input 3]],Table_PI[[#This Row],[Input 4]],'Customer Information'!$AR$12,2,ROW()),\"No Rebate\"),\"No Rebate\"),0)","v":0},{"$f":"IF(Table_PI[[#This Row],[Hide:\nFormula Name]]<>\"\",IFERROR(IF(MeasureCalc(Table_PI[[#This Row],[Hide:\nFormula Name]],Table_PI[[#This Row],[Quantity]],Table_PI[[#This Row],[List 1]],Table_PI[[#This Row],[List 2]],Table_PI[[#This Row],[List 3]],Table_PI[[#This Row],[Size]],Table_PI[[#This Row],[Input 1]],Table_PI[[#This Row],[Input 2]],Table_PI[[#This Row],[Input 3]],Table_PI[[#This Row],[Input 4]],'Customer Information'!$AR$12,1,ROW())>0,MeasureCalc(Table_PI[[#This Row],[Hide:\nFormula Name]],Table_PI[[#This Row],[Quantity]],Table_PI[[#This Row],[List 1]],Table_PI[[#This Row],[List 2]],Table_PI[[#This Row],[List 3]],Table_PI[[#This Row],[Size]],Table_PI[[#This Row],[Input 1]],Table_PI[[#This Row],[Input 2]],Table_PI[[#This Row],[Input 3]],Table_PI[[#This Row],[Input 4]],'Customer Information'!$AR$12,3,ROW()),\"No Rebate\"),\"No Rebate\"),0)","v":0},{"$f":"IF(Table_PI[[#This Row],[Hide:\nFormula Name]]<>\"\",IFERROR(IF(MeasureCalc(Table_PI[[#This Row],[Hide:\nFormula Name]],Table_PI[[#This Row],[Quantity]],Table_PI[[#This Row],[List 1]],Table_PI[[#This Row],[List 2]],Table_PI[[#This Row],[List 3]],Table_PI[[#This Row],[Size]],Table_PI[[#This Row],[Input 1]],Table_PI[[#This Row],[Input 2]],Table_PI[[#This Row],[Input 3]],Table_PI[[#This Row],[Input 4]],'Customer Information'!$AR$12,1,ROW())>0,MeasureCalc(Table_PI[[#This Row],[Hide:\nFormula Name]],Table_PI[[#This Row],[Quantity]],Table_PI[[#This Row],[List 1]],Table_PI[[#This Row],[List 2]],Table_PI[[#This Row],[List 3]],Table_PI[[#This Row],[Size]],Table_PI[[#This Row],[Input 1]],Table_PI[[#This Row],[Input 2]],Table_PI[[#This Row],[Input 3]],Table_PI[[#This Row],[Input 4]],'Customer Information'!$AR$12,4,ROW()),\"No Rebate\"),\"No Rebate\"),0)","v":0},{"$f":"IF(Table_PI[[#This Row],[Hide:\nFormula Name]]<>\"\",IFERROR(IF(MeasureCalc(Table_PI[[#This Row],[Hide:\nFormula Name]],Table_PI[[#This Row],[Quantity]],Table_PI[[#This Row],[List 1]],Table_PI[[#This Row],[List 2]],Table_PI[[#This Row],[List 3]],Table_PI[[#This Row],[Size]],Table_PI[[#This Row],[Input 1]],Table_PI[[#This Row],[Input 2]],Table_PI[[#This Row],[Input 3]],Table_PI[[#This Row],[Input 4]],'Customer Information'!$AR$12,1,ROW())>0,MeasureCalc(Table_PI[[#This Row],[Hide:\nFormula Name]],Table_PI[[#This Row],[Quantity]],Table_PI[[#This Row],[List 1]],Table_PI[[#This Row],[List 2]],Table_PI[[#This Row],[List 3]],Table_PI[[#This Row],[Size]],Table_PI[[#This Row],[Input 1]],Table_PI[[#This Row],[Input 2]],Table_PI[[#This Row],[Input 3]],Table_PI[[#This Row],[Input 4]],'Customer Information'!$AR$12,5,ROW()),\"No Rebate\"),\"No Rebate\"),0)","v":0},{"$f":"IF(Table_PI[[#This Row],[Hide:\nFormula Name]]<>\"\",IFERROR(IF(MeasureCalc(Table_PI[[#This Row],[Hide:\nFormula Name]],Table_PI[[#This Row],[Quantity]],Table_PI[[#This Row],[List 1]],Table_PI[[#This Row],[List 2]],Table_PI[[#This Row],[List 3]],Table_PI[[#This Row],[Size]],Table_PI[[#This Row],[Input 1]],Table_PI[[#This Row],[Input 2]],Table_PI[[#This Row],[Input 3]],Table_PI[[#This Row],[Input 4]],'Customer Information'!$AR$12,1,ROW())>0,MeasureCalc(Table_PI[[#This Row],[Hide:\nFormula Name]],Table_PI[[#This Row],[Quantity]],Table_PI[[#This Row],[List 1]],Table_PI[[#This Row],[List 2]],Table_PI[[#This Row],[List 3]],Table_PI[[#This Row],[Size]],Table_PI[[#This Row],[Input 1]],Table_PI[[#This Row],[Input 2]],Table_PI[[#This Row],[Input 3]],Table_PI[[#This Row],[Input 4]],'Customer Information'!$AR$12,6,ROW()),\"No Rebate\"),\"No Rebate\"),0)","v":0},{"$f":"IF(Table_PI[[#This Row],[Hide:\nFormula Name]]<>\"\",IFERROR(IF(MeasureCalc(Table_PI[[#This Row],[Hide:\nFormula Name]],Table_PI[[#This Row],[Quantity]],Table_PI[[#This Row],[List 1]],Table_PI[[#This Row],[List 2]],Table_PI[[#This Row],[List 3]],Table_PI[[#This Row],[Size]],Table_PI[[#This Row],[Input 1]],Table_PI[[#This Row],[Input 2]],Table_PI[[#This Row],[Input 3]],Table_PI[[#This Row],[Input 4]],'Customer Information'!$AR$12,1,ROW())>0,MeasureCalc(Table_PI[[#This Row],[Hide:\nFormula Name]],Table_PI[[#This Row],[Quantity]],Table_PI[[#This Row],[List 1]],Table_PI[[#This Row],[List 2]],Table_PI[[#This Row],[List 3]],Table_PI[[#This Row],[Size]],Table_PI[[#This Row],[Input 1]],Table_PI[[#This Row],[Input 2]],Table_PI[[#This Row],[Input 3]],Table_PI[[#This Row],[Input 4]],'Customer Information'!$AR$12,7,ROW()),\"No Rebate\"),\"No Rebate\"),0)","v":0},{"$f":"IF(Table_PI[[#This Row],[Hide:\nFormula Name]]<>\"\",IFERROR(IF(MeasureCalc(Table_PI[[#This Row],[Hide:\nFormula Name]],Table_PI[[#This Row],[Quantity]],Table_PI[[#This Row],[List 1]],Table_PI[[#This Row],[List 2]],Table_PI[[#This Row],[List 3]],Table_PI[[#This Row],[Size]],Table_PI[[#This Row],[Input 1]],Table_PI[[#This Row],[Input 2]],Table_PI[[#This Row],[Input 3]],Table_PI[[#This Row],[Input 4]],'Customer Information'!$AR$12,1,ROW())>0,MeasureCalc(Table_PI[[#This Row],[Hide:\nFormula Name]],Table_PI[[#This Row],[Quantity]],Table_PI[[#This Row],[List 1]],Table_PI[[#This Row],[List 2]],Table_PI[[#This Row],[List 3]],Table_PI[[#This Row],[Size]],Table_PI[[#This Row],[Input 1]],Table_PI[[#This Row],[Input 2]],Table_PI[[#This Row],[Input 3]],Table_PI[[#This Row],[Input 4]],'Customer Information'!$AR$12,8,ROW()),\"No Rebate\"),\"No Rebate\"),0)","v":0},{"$f":"IF(Table_PI[[#This Row],[Hide:\nFormula Name]]<>\"\",IF(AND(Table_PI[[#This Row],[Hide:\nFormula Name]]<>\"\",OR(Table_PI[[#This Row],[Rebate]]>0,Table_PI[[#This Row],[Rebate]]=\"No Rebate\")),TRUE,\"MI: Line Item \" & $A168),\"\")","v":""}]
[{"$f":"IF(Table_PI[[#This Row],[Hide:\nFormula Name]]<>\"\",MAX($A$2:A168)+1,\"\")","v":""},null,null,null,null,null,null,null,null,null,null,null,null,null,null,{"$f":"IFERROR(VLOOKUP(Table_PI[[#This Row],[Measure]],'Equipment Lookups'!$C$3:$D$23,2,FALSE),\"\")","v":""},{"$f":"IF(Table_PI[[#This Row],[Hide:\nFormula Name]]<>\"\",IFERROR(IF(MeasureCalc(Table_PI[[#This Row],[Hide:\nFormula Name]],Table_PI[[#This Row],[Quantity]],Table_PI[[#This Row],[List 1]],Table_PI[[#This Row],[List 2]],Table_PI[[#This Row],[List 3]],Table_PI[[#This Row],[Size]],Table_PI[[#This Row],[Input 1]],Table_PI[[#This Row],[Input 2]],Table_PI[[#This Row],[Input 3]],Table_PI[[#This Row],[Input 4]],'Customer Information'!$AR$12,1,ROW())>0,MeasureCalc(Table_PI[[#This Row],[Hide:\nFormula Name]],Table_PI[[#This Row],[Quantity]],Table_PI[[#This Row],[List 1]],Table_PI[[#This Row],[List 2]],Table_PI[[#This Row],[List 3]],Table_PI[[#This Row],[Size]],Table_PI[[#This Row],[Input 1]],Table_PI[[#This Row],[Input 2]],Table_PI[[#This Row],[Input 3]],Table_PI[[#This Row],[Input 4]],'Customer Information'!$AR$12,1,ROW()),\"No Rebate\"),\"No Rebate\"),0)","v":0},{"$f":"IF(Table_PI[[#This Row],[Hide:\nFormula Name]]<>\"\",IFERROR(IF(MeasureCalc(Table_PI[[#This Row],[Hide:\nFormula Name]],Table_PI[[#This Row],[Quantity]],Table_PI[[#This Row],[List 1]],Table_PI[[#This Row],[List 2]],Table_PI[[#This Row],[List 3]],Table_PI[[#This Row],[Size]],Table_PI[[#This Row],[Input 1]],Table_PI[[#This Row],[Input 2]],Table_PI[[#This Row],[Input 3]],Table_PI[[#This Row],[Input 4]],'Customer Information'!$AR$12,1,ROW())>0,MeasureCalc(Table_PI[[#This Row],[Hide:\nFormula Name]],Table_PI[[#This Row],[Quantity]],Table_PI[[#This Row],[List 1]],Table_PI[[#This Row],[List 2]],Table_PI[[#This Row],[List 3]],Table_PI[[#This Row],[Size]],Table_PI[[#This Row],[Input 1]],Table_PI[[#This Row],[Input 2]],Table_PI[[#This Row],[Input 3]],Table_PI[[#This Row],[Input 4]],'Customer Information'!$AR$12,2,ROW()),\"No Rebate\"),\"No Rebate\"),0)","v":0},{"$f":"IF(Table_PI[[#This Row],[Hide:\nFormula Name]]<>\"\",IFERROR(IF(MeasureCalc(Table_PI[[#This Row],[Hide:\nFormula Name]],Table_PI[[#This Row],[Quantity]],Table_PI[[#This Row],[List 1]],Table_PI[[#This Row],[List 2]],Table_PI[[#This Row],[List 3]],Table_PI[[#This Row],[Size]],Table_PI[[#This Row],[Input 1]],Table_PI[[#This Row],[Input 2]],Table_PI[[#This Row],[Input 3]],Table_PI[[#This Row],[Input 4]],'Customer Information'!$AR$12,1,ROW())>0,MeasureCalc(Table_PI[[#This Row],[Hide:\nFormula Name]],Table_PI[[#This Row],[Quantity]],Table_PI[[#This Row],[List 1]],Table_PI[[#This Row],[List 2]],Table_PI[[#This Row],[List 3]],Table_PI[[#This Row],[Size]],Table_PI[[#This Row],[Input 1]],Table_PI[[#This Row],[Input 2]],Table_PI[[#This Row],[Input 3]],Table_PI[[#This Row],[Input 4]],'Customer Information'!$AR$12,3,ROW()),\"No Rebate\"),\"No Rebate\"),0)","v":0},{"$f":"IF(Table_PI[[#This Row],[Hide:\nFormula Name]]<>\"\",IFERROR(IF(MeasureCalc(Table_PI[[#This Row],[Hide:\nFormula Name]],Table_PI[[#This Row],[Quantity]],Table_PI[[#This Row],[List 1]],Table_PI[[#This Row],[List 2]],Table_PI[[#This Row],[List 3]],Table_PI[[#This Row],[Size]],Table_PI[[#This Row],[Input 1]],Table_PI[[#This Row],[Input 2]],Table_PI[[#This Row],[Input 3]],Table_PI[[#This Row],[Input 4]],'Customer Information'!$AR$12,1,ROW())>0,MeasureCalc(Table_PI[[#This Row],[Hide:\nFormula Name]],Table_PI[[#This Row],[Quantity]],Table_PI[[#This Row],[List 1]],Table_PI[[#This Row],[List 2]],Table_PI[[#This Row],[List 3]],Table_PI[[#This Row],[Size]],Table_PI[[#This Row],[Input 1]],Table_PI[[#This Row],[Input 2]],Table_PI[[#This Row],[Input 3]],Table_PI[[#This Row],[Input 4]],'Customer Information'!$AR$12,4,ROW()),\"No Rebate\"),\"No Rebate\"),0)","v":0},{"$f":"IF(Table_PI[[#This Row],[Hide:\nFormula Name]]<>\"\",IFERROR(IF(MeasureCalc(Table_PI[[#This Row],[Hide:\nFormula Name]],Table_PI[[#This Row],[Quantity]],Table_PI[[#This Row],[List 1]],Table_PI[[#This Row],[List 2]],Table_PI[[#This Row],[List 3]],Table_PI[[#This Row],[Size]],Table_PI[[#This Row],[Input 1]],Table_PI[[#This Row],[Input 2]],Table_PI[[#This Row],[Input 3]],Table_PI[[#This Row],[Input 4]],'Customer Information'!$AR$12,1,ROW())>0,MeasureCalc(Table_PI[[#This Row],[Hide:\nFormula Name]],Table_PI[[#This Row],[Quantity]],Table_PI[[#This Row],[List 1]],Table_PI[[#This Row],[List 2]],Table_PI[[#This Row],[List 3]],Table_PI[[#This Row],[Size]],Table_PI[[#This Row],[Input 1]],Table_PI[[#This Row],[Input 2]],Table_PI[[#This Row],[Input 3]],Table_PI[[#This Row],[Input 4]],'Customer Information'!$AR$12,5,ROW()),\"No Rebate\"),\"No Rebate\"),0)","v":0},{"$f":"IF(Table_PI[[#This Row],[Hide:\nFormula Name]]<>\"\",IFERROR(IF(MeasureCalc(Table_PI[[#This Row],[Hide:\nFormula Name]],Table_PI[[#This Row],[Quantity]],Table_PI[[#This Row],[List 1]],Table_PI[[#This Row],[List 2]],Table_PI[[#This Row],[List 3]],Table_PI[[#This Row],[Size]],Table_PI[[#This Row],[Input 1]],Table_PI[[#This Row],[Input 2]],Table_PI[[#This Row],[Input 3]],Table_PI[[#This Row],[Input 4]],'Customer Information'!$AR$12,1,ROW())>0,MeasureCalc(Table_PI[[#This Row],[Hide:\nFormula Name]],Table_PI[[#This Row],[Quantity]],Table_PI[[#This Row],[List 1]],Table_PI[[#This Row],[List 2]],Table_PI[[#This Row],[List 3]],Table_PI[[#This Row],[Size]],Table_PI[[#This Row],[Input 1]],Table_PI[[#This Row],[Input 2]],Table_PI[[#This Row],[Input 3]],Table_PI[[#This Row],[Input 4]],'Customer Information'!$AR$12,6,ROW()),\"No Rebate\"),\"No Rebate\"),0)","v":0},{"$f":"IF(Table_PI[[#This Row],[Hide:\nFormula Name]]<>\"\",IFERROR(IF(MeasureCalc(Table_PI[[#This Row],[Hide:\nFormula Name]],Table_PI[[#This Row],[Quantity]],Table_PI[[#This Row],[List 1]],Table_PI[[#This Row],[List 2]],Table_PI[[#This Row],[List 3]],Table_PI[[#This Row],[Size]],Table_PI[[#This Row],[Input 1]],Table_PI[[#This Row],[Input 2]],Table_PI[[#This Row],[Input 3]],Table_PI[[#This Row],[Input 4]],'Customer Information'!$AR$12,1,ROW())>0,MeasureCalc(Table_PI[[#This Row],[Hide:\nFormula Name]],Table_PI[[#This Row],[Quantity]],Table_PI[[#This Row],[List 1]],Table_PI[[#This Row],[List 2]],Table_PI[[#This Row],[List 3]],Table_PI[[#This Row],[Size]],Table_PI[[#This Row],[Input 1]],Table_PI[[#This Row],[Input 2]],Table_PI[[#This Row],[Input 3]],Table_PI[[#This Row],[Input 4]],'Customer Information'!$AR$12,7,ROW()),\"No Rebate\"),\"No Rebate\"),0)","v":0},{"$f":"IF(Table_PI[[#This Row],[Hide:\nFormula Name]]<>\"\",IFERROR(IF(MeasureCalc(Table_PI[[#This Row],[Hide:\nFormula Name]],Table_PI[[#This Row],[Quantity]],Table_PI[[#This Row],[List 1]],Table_PI[[#This Row],[List 2]],Table_PI[[#This Row],[List 3]],Table_PI[[#This Row],[Size]],Table_PI[[#This Row],[Input 1]],Table_PI[[#This Row],[Input 2]],Table_PI[[#This Row],[Input 3]],Table_PI[[#This Row],[Input 4]],'Customer Information'!$AR$12,1,ROW())>0,MeasureCalc(Table_PI[[#This Row],[Hide:\nFormula Name]],Table_PI[[#This Row],[Quantity]],Table_PI[[#This Row],[List 1]],Table_PI[[#This Row],[List 2]],Table_PI[[#This Row],[List 3]],Table_PI[[#This Row],[Size]],Table_PI[[#This Row],[Input 1]],Table_PI[[#This Row],[Input 2]],Table_PI[[#This Row],[Input 3]],Table_PI[[#This Row],[Input 4]],'Customer Information'!$AR$12,8,ROW()),\"No Rebate\"),\"No Rebate\"),0)","v":0},{"$f":"IF(Table_PI[[#This Row],[Hide:\nFormula Name]]<>\"\",IF(AND(Table_PI[[#This Row],[Hide:\nFormula Name]]<>\"\",OR(Table_PI[[#This Row],[Rebate]]>0,Table_PI[[#This Row],[Rebate]]=\"No Rebate\")),TRUE,\"MI: Line Item \" & $A169),\"\")","v":""}]
[{"$f":"IF(Table_PI[[#This Row],[Hide:\nFormula Name]]<>\"\",MAX($A$2:A169)+1,\"\")","v":""},null,null,null,null,null,null,null,null,null,null,null,null,null,null,{"$f":"IFERROR(VLOOKUP(Table_PI[[#This Row],[Measure]],'Equipment Lookups'!$C$3:$D$23,2,FALSE),\"\")","v":""},{"$f":"IF(Table_PI[[#This Row],[Hide:\nFormula Name]]<>\"\",IFERROR(IF(MeasureCalc(Table_PI[[#This Row],[Hide:\nFormula Name]],Table_PI[[#This Row],[Quantity]],Table_PI[[#This Row],[List 1]],Table_PI[[#This Row],[List 2]],Table_PI[[#This Row],[List 3]],Table_PI[[#This Row],[Size]],Table_PI[[#This Row],[Input 1]],Table_PI[[#This Row],[Input 2]],Table_PI[[#This Row],[Input 3]],Table_PI[[#This Row],[Input 4]],'Customer Information'!$AR$12,1,ROW())>0,MeasureCalc(Table_PI[[#This Row],[Hide:\nFormula Name]],Table_PI[[#This Row],[Quantity]],Table_PI[[#This Row],[List 1]],Table_PI[[#This Row],[List 2]],Table_PI[[#This Row],[List 3]],Table_PI[[#This Row],[Size]],Table_PI[[#This Row],[Input 1]],Table_PI[[#This Row],[Input 2]],Table_PI[[#This Row],[Input 3]],Table_PI[[#This Row],[Input 4]],'Customer Information'!$AR$12,1,ROW()),\"No Rebate\"),\"No Rebate\"),0)","v":0},{"$f":"IF(Table_PI[[#This Row],[Hide:\nFormula Name]]<>\"\",IFERROR(IF(MeasureCalc(Table_PI[[#This Row],[Hide:\nFormula Name]],Table_PI[[#This Row],[Quantity]],Table_PI[[#This Row],[List 1]],Table_PI[[#This Row],[List 2]],Table_PI[[#This Row],[List 3]],Table_PI[[#This Row],[Size]],Table_PI[[#This Row],[Input 1]],Table_PI[[#This Row],[Input 2]],Table_PI[[#This Row],[Input 3]],Table_PI[[#This Row],[Input 4]],'Customer Information'!$AR$12,1,ROW())>0,MeasureCalc(Table_PI[[#This Row],[Hide:\nFormula Name]],Table_PI[[#This Row],[Quantity]],Table_PI[[#This Row],[List 1]],Table_PI[[#This Row],[List 2]],Table_PI[[#This Row],[List 3]],Table_PI[[#This Row],[Size]],Table_PI[[#This Row],[Input 1]],Table_PI[[#This Row],[Input 2]],Table_PI[[#This Row],[Input 3]],Table_PI[[#This Row],[Input 4]],'Customer Information'!$AR$12,2,ROW()),\"No Rebate\"),\"No Rebate\"),0)","v":0},{"$f":"IF(Table_PI[[#This Row],[Hide:\nFormula Name]]<>\"\",IFERROR(IF(MeasureCalc(Table_PI[[#This Row],[Hide:\nFormula Name]],Table_PI[[#This Row],[Quantity]],Table_PI[[#This Row],[List 1]],Table_PI[[#This Row],[List 2]],Table_PI[[#This Row],[List 3]],Table_PI[[#This Row],[Size]],Table_PI[[#This Row],[Input 1]],Table_PI[[#This Row],[Input 2]],Table_PI[[#This Row],[Input 3]],Table_PI[[#This Row],[Input 4]],'Customer Information'!$AR$12,1,ROW())>0,MeasureCalc(Table_PI[[#This Row],[Hide:\nFormula Name]],Table_PI[[#This Row],[Quantity]],Table_PI[[#This Row],[List 1]],Table_PI[[#This Row],[List 2]],Table_PI[[#This Row],[List 3]],Table_PI[[#This Row],[Size]],Table_PI[[#This Row],[Input 1]],Table_PI[[#This Row],[Input 2]],Table_PI[[#This Row],[Input 3]],Table_PI[[#This Row],[Input 4]],'Customer Information'!$AR$12,3,ROW()),\"No Rebate\"),\"No Rebate\"),0)","v":0},{"$f":"IF(Table_PI[[#This Row],[Hide:\nFormula Name]]<>\"\",IFERROR(IF(MeasureCalc(Table_PI[[#This Row],[Hide:\nFormula Name]],Table_PI[[#This Row],[Quantity]],Table_PI[[#This Row],[List 1]],Table_PI[[#This Row],[List 2]],Table_PI[[#This Row],[List 3]],Table_PI[[#This Row],[Size]],Table_PI[[#This Row],[Input 1]],Table_PI[[#This Row],[Input 2]],Table_PI[[#This Row],[Input 3]],Table_PI[[#This Row],[Input 4]],'Customer Information'!$AR$12,1,ROW())>0,MeasureCalc(Table_PI[[#This Row],[Hide:\nFormula Name]],Table_PI[[#This Row],[Quantity]],Table_PI[[#This Row],[List 1]],Table_PI[[#This Row],[List 2]],Table_PI[[#This Row],[List 3]],Table_PI[[#This Row],[Size]],Table_PI[[#This Row],[Input 1]],Table_PI[[#This Row],[Input 2]],Table_PI[[#This Row],[Input 3]],Table_PI[[#This Row],[Input 4]],'Customer Information'!$AR$12,4,ROW()),\"No Rebate\"),\"No Rebate\"),0)","v":0},{"$f":"IF(Table_PI[[#This Row],[Hide:\nFormula Name]]<>\"\",IFERROR(IF(MeasureCalc(Table_PI[[#This Row],[Hide:\nFormula Name]],Table_PI[[#This Row],[Quantity]],Table_PI[[#This Row],[List 1]],Table_PI[[#This Row],[List 2]],Table_PI[[#This Row],[List 3]],Table_PI[[#This Row],[Size]],Table_PI[[#This Row],[Input 1]],Table_PI[[#This Row],[Input 2]],Table_PI[[#This Row],[Input 3]],Table_PI[[#This Row],[Input 4]],'Customer Information'!$AR$12,1,ROW())>0,MeasureCalc(Table_PI[[#This Row],[Hide:\nFormula Name]],Table_PI[[#This Row],[Quantity]],Table_PI[[#This Row],[List 1]],Table_PI[[#This Row],[List 2]],Table_PI[[#This Row],[List 3]],Table_PI[[#This Row],[Size]],Table_PI[[#This Row],[Input 1]],Table_PI[[#This Row],[Input 2]],Table_PI[[#This Row],[Input 3]],Table_PI[[#This Row],[Input 4]],'Customer Information'!$AR$12,5,ROW()),\"No Rebate\"),\"No Rebate\"),0)","v":0},{"$f":"IF(Table_PI[[#This Row],[Hide:\nFormula Name]]<>\"\",IFERROR(IF(MeasureCalc(Table_PI[[#This Row],[Hide:\nFormula Name]],Table_PI[[#This Row],[Quantity]],Table_PI[[#This Row],[List 1]],Table_PI[[#This Row],[List 2]],Table_PI[[#This Row],[List 3]],Table_PI[[#This Row],[Size]],Table_PI[[#This Row],[Input 1]],Table_PI[[#This Row],[Input 2]],Table_PI[[#This Row],[Input 3]],Table_PI[[#This Row],[Input 4]],'Customer Information'!$AR$12,1,ROW())>0,MeasureCalc(Table_PI[[#This Row],[Hide:\nFormula Name]],Table_PI[[#This Row],[Quantity]],Table_PI[[#This Row],[List 1]],Table_PI[[#This Row],[List 2]],Table_PI[[#This Row],[List 3]],Table_PI[[#This Row],[Size]],Table_PI[[#This Row],[Input 1]],Table_PI[[#This Row],[Input 2]],Table_PI[[#This Row],[Input 3]],Table_PI[[#This Row],[Input 4]],'Customer Information'!$AR$12,6,ROW()),\"No Rebate\"),\"No Rebate\"),0)","v":0},{"$f":"IF(Table_PI[[#This Row],[Hide:\nFormula Name]]<>\"\",IFERROR(IF(MeasureCalc(Table_PI[[#This Row],[Hide:\nFormula Name]],Table_PI[[#This Row],[Quantity]],Table_PI[[#This Row],[List 1]],Table_PI[[#This Row],[List 2]],Table_PI[[#This Row],[List 3]],Table_PI[[#This Row],[Size]],Table_PI[[#This Row],[Input 1]],Table_PI[[#This Row],[Input 2]],Table_PI[[#This Row],[Input 3]],Table_PI[[#This Row],[Input 4]],'Customer Information'!$AR$12,1,ROW())>0,MeasureCalc(Table_PI[[#This Row],[Hide:\nFormula Name]],Table_PI[[#This Row],[Quantity]],Table_PI[[#This Row],[List 1]],Table_PI[[#This Row],[List 2]],Table_PI[[#This Row],[List 3]],Table_PI[[#This Row],[Size]],Table_PI[[#This Row],[Input 1]],Table_PI[[#This Row],[Input 2]],Table_PI[[#This Row],[Input 3]],Table_PI[[#This Row],[Input 4]],'Customer Information'!$AR$12,7,ROW()),\"No Rebate\"),\"No Rebate\"),0)","v":0},{"$f":"IF(Table_PI[[#This Row],[Hide:\nFormula Name]]<>\"\",IFERROR(IF(MeasureCalc(Table_PI[[#This Row],[Hide:\nFormula Name]],Table_PI[[#This Row],[Quantity]],Table_PI[[#This Row],[List 1]],Table_PI[[#This Row],[List 2]],Table_PI[[#This Row],[List 3]],Table_PI[[#This Row],[Size]],Table_PI[[#This Row],[Input 1]],Table_PI[[#This Row],[Input 2]],Table_PI[[#This Row],[Input 3]],Table_PI[[#This Row],[Input 4]],'Customer Information'!$AR$12,1,ROW())>0,MeasureCalc(Table_PI[[#This Row],[Hide:\nFormula Name]],Table_PI[[#This Row],[Quantity]],Table_PI[[#This Row],[List 1]],Table_PI[[#This Row],[List 2]],Table_PI[[#This Row],[List 3]],Table_PI[[#This Row],[Size]],Table_PI[[#This Row],[Input 1]],Table_PI[[#This Row],[Input 2]],Table_PI[[#This Row],[Input 3]],Table_PI[[#This Row],[Input 4]],'Customer Information'!$AR$12,8,ROW()),\"No Rebate\"),\"No Rebate\"),0)","v":0},{"$f":"IF(Table_PI[[#This Row],[Hide:\nFormula Name]]<>\"\",IF(AND(Table_PI[[#This Row],[Hide:\nFormula Name]]<>\"\",OR(Table_PI[[#This Row],[Rebate]]>0,Table_PI[[#This Row],[Rebate]]=\"No Rebate\")),TRUE,\"MI: Line Item \" & $A170),\"\")","v":""}]
[{"$f":"IF(Table_PI[[#This Row],[Hide:\nFormula Name]]<>\"\",MAX($A$2:A170)+1,\"\")","v":""},null,null,null,null,null,null,null,null,null,null,null,null,null,null,{"$f":"IFERROR(VLOOKUP(Table_PI[[#This Row],[Measure]],'Equipment Lookups'!$C$3:$D$23,2,FALSE),\"\")","v":""},{"$f":"IF(Table_PI[[#This Row],[Hide:\nFormula Name]]<>\"\",IFERROR(IF(MeasureCalc(Table_PI[[#This Row],[Hide:\nFormula Name]],Table_PI[[#This Row],[Quantity]],Table_PI[[#This Row],[List 1]],Table_PI[[#This Row],[List 2]],Table_PI[[#This Row],[List 3]],Table_PI[[#This Row],[Size]],Table_PI[[#This Row],[Input 1]],Table_PI[[#This Row],[Input 2]],Table_PI[[#This Row],[Input 3]],Table_PI[[#This Row],[Input 4]],'Customer Information'!$AR$12,1,ROW())>0,MeasureCalc(Table_PI[[#This Row],[Hide:\nFormula Name]],Table_PI[[#This Row],[Quantity]],Table_PI[[#This Row],[List 1]],Table_PI[[#This Row],[List 2]],Table_PI[[#This Row],[List 3]],Table_PI[[#This Row],[Size]],Table_PI[[#This Row],[Input 1]],Table_PI[[#This Row],[Input 2]],Table_PI[[#This Row],[Input 3]],Table_PI[[#This Row],[Input 4]],'Customer Information'!$AR$12,1,ROW()),\"No Rebate\"),\"No Rebate\"),0)","v":0},{"$f":"IF(Table_PI[[#This Row],[Hide:\nFormula Name]]<>\"\",IFERROR(IF(MeasureCalc(Table_PI[[#This Row],[Hide:\nFormula Name]],Table_PI[[#This Row],[Quantity]],Table_PI[[#This Row],[List 1]],Table_PI[[#This Row],[List 2]],Table_PI[[#This Row],[List 3]],Table_PI[[#This Row],[Size]],Table_PI[[#This Row],[Input 1]],Table_PI[[#This Row],[Input 2]],Table_PI[[#This Row],[Input 3]],Table_PI[[#This Row],[Input 4]],'Customer Information'!$AR$12,1,ROW())>0,MeasureCalc(Table_PI[[#This Row],[Hide:\nFormula Name]],Table_PI[[#This Row],[Quantity]],Table_PI[[#This Row],[List 1]],Table_PI[[#This Row],[List 2]],Table_PI[[#This Row],[List 3]],Table_PI[[#This Row],[Size]],Table_PI[[#This Row],[Input 1]],Table_PI[[#This Row],[Input 2]],Table_PI[[#This Row],[Input 3]],Table_PI[[#This Row],[Input 4]],'Customer Information'!$AR$12,2,ROW()),\"No Rebate\"),\"No Rebate\"),0)","v":0},{"$f":"IF(Table_PI[[#This Row],[Hide:\nFormula Name]]<>\"\",IFERROR(IF(MeasureCalc(Table_PI[[#This Row],[Hide:\nFormula Name]],Table_PI[[#This Row],[Quantity]],Table_PI[[#This Row],[List 1]],Table_PI[[#This Row],[List 2]],Table_PI[[#This Row],[List 3]],Table_PI[[#This Row],[Size]],Table_PI[[#This Row],[Input 1]],Table_PI[[#This Row],[Input 2]],Table_PI[[#This Row],[Input 3]],Table_PI[[#This Row],[Input 4]],'Customer Information'!$AR$12,1,ROW())>0,MeasureCalc(Table_PI[[#This Row],[Hide:\nFormula Name]],Table_PI[[#This Row],[Quantity]],Table_PI[[#This Row],[List 1]],Table_PI[[#This Row],[List 2]],Table_PI[[#This Row],[List 3]],Table_PI[[#This Row],[Size]],Table_PI[[#This Row],[Input 1]],Table_PI[[#This Row],[Input 2]],Table_PI[[#This Row],[Input 3]],Table_PI[[#This Row],[Input 4]],'Customer Information'!$AR$12,3,ROW()),\"No Rebate\"),\"No Rebate\"),0)","v":0},{"$f":"IF(Table_PI[[#This Row],[Hide:\nFormula Name]]<>\"\",IFERROR(IF(MeasureCalc(Table_PI[[#This Row],[Hide:\nFormula Name]],Table_PI[[#This Row],[Quantity]],Table_PI[[#This Row],[List 1]],Table_PI[[#This Row],[List 2]],Table_PI[[#This Row],[List 3]],Table_PI[[#This Row],[Size]],Table_PI[[#This Row],[Input 1]],Table_PI[[#This Row],[Input 2]],Table_PI[[#This Row],[Input 3]],Table_PI[[#This Row],[Input 4]],'Customer Information'!$AR$12,1,ROW())>0,MeasureCalc(Table_PI[[#This Row],[Hide:\nFormula Name]],Table_PI[[#This Row],[Quantity]],Table_PI[[#This Row],[List 1]],Table_PI[[#This Row],[List 2]],Table_PI[[#This Row],[List 3]],Table_PI[[#This Row],[Size]],Table_PI[[#This Row],[Input 1]],Table_PI[[#This Row],[Input 2]],Table_PI[[#This Row],[Input 3]],Table_PI[[#This Row],[Input 4]],'Customer Information'!$AR$12,4,ROW()),\"No Rebate\"),\"No Rebate\"),0)","v":0},{"$f":"IF(Table_PI[[#This Row],[Hide:\nFormula Name]]<>\"\",IFERROR(IF(MeasureCalc(Table_PI[[#This Row],[Hide:\nFormula Name]],Table_PI[[#This Row],[Quantity]],Table_PI[[#This Row],[List 1]],Table_PI[[#This Row],[List 2]],Table_PI[[#This Row],[List 3]],Table_PI[[#This Row],[Size]],Table_PI[[#This Row],[Input 1]],Table_PI[[#This Row],[Input 2]],Table_PI[[#This Row],[Input 3]],Table_PI[[#This Row],[Input 4]],'Customer Information'!$AR$12,1,ROW())>0,MeasureCalc(Table_PI[[#This Row],[Hide:\nFormula Name]],Table_PI[[#This Row],[Quantity]],Table_PI[[#This Row],[List 1]],Table_PI[[#This Row],[List 2]],Table_PI[[#This Row],[List 3]],Table_PI[[#This Row],[Size]],Table_PI[[#This Row],[Input 1]],Table_PI[[#This Row],[Input 2]],Table_PI[[#This Row],[Input 3]],Table_PI[[#This Row],[Input 4]],'Customer Information'!$AR$12,5,ROW()),\"No Rebate\"),\"No Rebate\"),0)","v":0},{"$f":"IF(Table_PI[[#This Row],[Hide:\nFormula Name]]<>\"\",IFERROR(IF(MeasureCalc(Table_PI[[#This Row],[Hide:\nFormula Name]],Table_PI[[#This Row],[Quantity]],Table_PI[[#This Row],[List 1]],Table_PI[[#This Row],[List 2]],Table_PI[[#This Row],[List 3]],Table_PI[[#This Row],[Size]],Table_PI[[#This Row],[Input 1]],Table_PI[[#This Row],[Input 2]],Table_PI[[#This Row],[Input 3]],Table_PI[[#This Row],[Input 4]],'Customer Information'!$AR$12,1,ROW())>0,MeasureCalc(Table_PI[[#This Row],[Hide:\nFormula Name]],Table_PI[[#This Row],[Quantity]],Table_PI[[#This Row],[List 1]],Table_PI[[#This Row],[List 2]],Table_PI[[#This Row],[List 3]],Table_PI[[#This Row],[Size]],Table_PI[[#This Row],[Input 1]],Table_PI[[#This Row],[Input 2]],Table_PI[[#This Row],[Input 3]],Table_PI[[#This Row],[Input 4]],'Customer Information'!$AR$12,6,ROW()),\"No Rebate\"),\"No Rebate\"),0)","v":0},{"$f":"IF(Table_PI[[#This Row],[Hide:\nFormula Name]]<>\"\",IFERROR(IF(MeasureCalc(Table_PI[[#This Row],[Hide:\nFormula Name]],Table_PI[[#This Row],[Quantity]],Table_PI[[#This Row],[List 1]],Table_PI[[#This Row],[List 2]],Table_PI[[#This Row],[List 3]],Table_PI[[#This Row],[Size]],Table_PI[[#This Row],[Input 1]],Table_PI[[#This Row],[Input 2]],Table_PI[[#This Row],[Input 3]],Table_PI[[#This Row],[Input 4]],'Customer Information'!$AR$12,1,ROW())>0,MeasureCalc(Table_PI[[#This Row],[Hide:\nFormula Name]],Table_PI[[#This Row],[Quantity]],Table_PI[[#This Row],[List 1]],Table_PI[[#This Row],[List 2]],Table_PI[[#This Row],[List 3]],Table_PI[[#This Row],[Size]],Table_PI[[#This Row],[Input 1]],Table_PI[[#This Row],[Input 2]],Table_PI[[#This Row],[Input 3]],Table_PI[[#This Row],[Input 4]],'Customer Information'!$AR$12,7,ROW()),\"No Rebate\"),\"No Rebate\"),0)","v":0},{"$f":"IF(Table_PI[[#This Row],[Hide:\nFormula Name]]<>\"\",IFERROR(IF(MeasureCalc(Table_PI[[#This Row],[Hide:\nFormula Name]],Table_PI[[#This Row],[Quantity]],Table_PI[[#This Row],[List 1]],Table_PI[[#This Row],[List 2]],Table_PI[[#This Row],[List 3]],Table_PI[[#This Row],[Size]],Table_PI[[#This Row],[Input 1]],Table_PI[[#This Row],[Input 2]],Table_PI[[#This Row],[Input 3]],Table_PI[[#This Row],[Input 4]],'Customer Information'!$AR$12,1,ROW())>0,MeasureCalc(Table_PI[[#This Row],[Hide:\nFormula Name]],Table_PI[[#This Row],[Quantity]],Table_PI[[#This Row],[List 1]],Table_PI[[#This Row],[List 2]],Table_PI[[#This Row],[List 3]],Table_PI[[#This Row],[Size]],Table_PI[[#This Row],[Input 1]],Table_PI[[#This Row],[Input 2]],Table_PI[[#This Row],[Input 3]],Table_PI[[#This Row],[Input 4]],'Customer Information'!$AR$12,8,ROW()),\"No Rebate\"),\"No Rebate\"),0)","v":0},{"$f":"IF(Table_PI[[#This Row],[Hide:\nFormula Name]]<>\"\",IF(AND(Table_PI[[#This Row],[Hide:\nFormula Name]]<>\"\",OR(Table_PI[[#This Row],[Rebate]]>0,Table_PI[[#This Row],[Rebate]]=\"No Rebate\")),TRUE,\"MI: Line Item \" & $A171),\"\")","v":""}]
[{"$f":"IF(Table_PI[[#This Row],[Hide:\nFormula Name]]<>\"\",MAX($A$2:A171)+1,\"\")","v":""},null,null,null,null,null,null,null,null,null,null,null,null,null,null,{"$f":"IFERROR(VLOOKUP(Table_PI[[#This Row],[Measure]],'Equipment Lookups'!$C$3:$D$23,2,FALSE),\"\")","v":""},{"$f":"IF(Table_PI[[#This Row],[Hide:\nFormula Name]]<>\"\",IFERROR(IF(MeasureCalc(Table_PI[[#This Row],[Hide:\nFormula Name]],Table_PI[[#This Row],[Quantity]],Table_PI[[#This Row],[List 1]],Table_PI[[#This Row],[List 2]],Table_PI[[#This Row],[List 3]],Table_PI[[#This Row],[Size]],Table_PI[[#This Row],[Input 1]],Table_PI[[#This Row],[Input 2]],Table_PI[[#This Row],[Input 3]],Table_PI[[#This Row],[Input 4]],'Customer Information'!$AR$12,1,ROW())>0,MeasureCalc(Table_PI[[#This Row],[Hide:\nFormula Name]],Table_PI[[#This Row],[Quantity]],Table_PI[[#This Row],[List 1]],Table_PI[[#This Row],[List 2]],Table_PI[[#This Row],[List 3]],Table_PI[[#This Row],[Size]],Table_PI[[#This Row],[Input 1]],Table_PI[[#This Row],[Input 2]],Table_PI[[#This Row],[Input 3]],Table_PI[[#This Row],[Input 4]],'Customer Information'!$AR$12,1,ROW()),\"No Rebate\"),\"No Rebate\"),0)","v":0},{"$f":"IF(Table_PI[[#This Row],[Hide:\nFormula Name]]<>\"\",IFERROR(IF(MeasureCalc(Table_PI[[#This Row],[Hide:\nFormula Name]],Table_PI[[#This Row],[Quantity]],Table_PI[[#This Row],[List 1]],Table_PI[[#This Row],[List 2]],Table_PI[[#This Row],[List 3]],Table_PI[[#This Row],[Size]],Table_PI[[#This Row],[Input 1]],Table_PI[[#This Row],[Input 2]],Table_PI[[#This Row],[Input 3]],Table_PI[[#This Row],[Input 4]],'Customer Information'!$AR$12,1,ROW())>0,MeasureCalc(Table_PI[[#This Row],[Hide:\nFormula Name]],Table_PI[[#This Row],[Quantity]],Table_PI[[#This Row],[List 1]],Table_PI[[#This Row],[List 2]],Table_PI[[#This Row],[List 3]],Table_PI[[#This Row],[Size]],Table_PI[[#This Row],[Input 1]],Table_PI[[#This Row],[Input 2]],Table_PI[[#This Row],[Input 3]],Table_PI[[#This Row],[Input 4]],'Customer Information'!$AR$12,2,ROW()),\"No Rebate\"),\"No Rebate\"),0)","v":0},{"$f":"IF(Table_PI[[#This Row],[Hide:\nFormula Name]]<>\"\",IFERROR(IF(MeasureCalc(Table_PI[[#This Row],[Hide:\nFormula Name]],Table_PI[[#This Row],[Quantity]],Table_PI[[#This Row],[List 1]],Table_PI[[#This Row],[List 2]],Table_PI[[#This Row],[List 3]],Table_PI[[#This Row],[Size]],Table_PI[[#This Row],[Input 1]],Table_PI[[#This Row],[Input 2]],Table_PI[[#This Row],[Input 3]],Table_PI[[#This Row],[Input 4]],'Customer Information'!$AR$12,1,ROW())>0,MeasureCalc(Table_PI[[#This Row],[Hide:\nFormula Name]],Table_PI[[#This Row],[Quantity]],Table_PI[[#This Row],[List 1]],Table_PI[[#This Row],[List 2]],Table_PI[[#This Row],[List 3]],Table_PI[[#This Row],[Size]],Table_PI[[#This Row],[Input 1]],Table_PI[[#This Row],[Input 2]],Table_PI[[#This Row],[Input 3]],Table_PI[[#This Row],[Input 4]],'Customer Information'!$AR$12,3,ROW()),\"No Rebate\"),\"No Rebate\"),0)","v":0},{"$f":"IF(Table_PI[[#This Row],[Hide:\nFormula Name]]<>\"\",IFERROR(IF(MeasureCalc(Table_PI[[#This Row],[Hide:\nFormula Name]],Table_PI[[#This Row],[Quantity]],Table_PI[[#This Row],[List 1]],Table_PI[[#This Row],[List 2]],Table_PI[[#This Row],[List 3]],Table_PI[[#This Row],[Size]],Table_PI[[#This Row],[Input 1]],Table_PI[[#This Row],[Input 2]],Table_PI[[#This Row],[Input 3]],Table_PI[[#This Row],[Input 4]],'Customer Information'!$AR$12,1,ROW())>0,MeasureCalc(Table_PI[[#This Row],[Hide:\nFormula Name]],Table_PI[[#This Row],[Quantity]],Table_PI[[#This Row],[List 1]],Table_PI[[#This Row],[List 2]],Table_PI[[#This Row],[List 3]],Table_PI[[#This Row],[Size]],Table_PI[[#This Row],[Input 1]],Table_PI[[#This Row],[Input 2]],Table_PI[[#This Row],[Input 3]],Table_PI[[#This Row],[Input 4]],'Customer Information'!$AR$12,4,ROW()),\"No Rebate\"),\"No Rebate\"),0)","v":0},{"$f":"IF(Table_PI[[#This Row],[Hide:\nFormula Name]]<>\"\",IFERROR(IF(MeasureCalc(Table_PI[[#This Row],[Hide:\nFormula Name]],Table_PI[[#This Row],[Quantity]],Table_PI[[#This Row],[List 1]],Table_PI[[#This Row],[List 2]],Table_PI[[#This Row],[List 3]],Table_PI[[#This Row],[Size]],Table_PI[[#This Row],[Input 1]],Table_PI[[#This Row],[Input 2]],Table_PI[[#This Row],[Input 3]],Table_PI[[#This Row],[Input 4]],'Customer Information'!$AR$12,1,ROW())>0,MeasureCalc(Table_PI[[#This Row],[Hide:\nFormula Name]],Table_PI[[#This Row],[Quantity]],Table_PI[[#This Row],[List 1]],Table_PI[[#This Row],[List 2]],Table_PI[[#This Row],[List 3]],Table_PI[[#This Row],[Size]],Table_PI[[#This Row],[Input 1]],Table_PI[[#This Row],[Input 2]],Table_PI[[#This Row],[Input 3]],Table_PI[[#This Row],[Input 4]],'Customer Information'!$AR$12,5,ROW()),\"No Rebate\"),\"No Rebate\"),0)","v":0},{"$f":"IF(Table_PI[[#This Row],[Hide:\nFormula Name]]<>\"\",IFERROR(IF(MeasureCalc(Table_PI[[#This Row],[Hide:\nFormula Name]],Table_PI[[#This Row],[Quantity]],Table_PI[[#This Row],[List 1]],Table_PI[[#This Row],[List 2]],Table_PI[[#This Row],[List 3]],Table_PI[[#This Row],[Size]],Table_PI[[#This Row],[Input 1]],Table_PI[[#This Row],[Input 2]],Table_PI[[#This Row],[Input 3]],Table_PI[[#This Row],[Input 4]],'Customer Information'!$AR$12,1,ROW())>0,MeasureCalc(Table_PI[[#This Row],[Hide:\nFormula Name]],Table_PI[[#This Row],[Quantity]],Table_PI[[#This Row],[List 1]],Table_PI[[#This Row],[List 2]],Table_PI[[#This Row],[List 3]],Table_PI[[#This Row],[Size]],Table_PI[[#This Row],[Input 1]],Table_PI[[#This Row],[Input 2]],Table_PI[[#This Row],[Input 3]],Table_PI[[#This Row],[Input 4]],'Customer Information'!$AR$12,6,ROW()),\"No Rebate\"),\"No Rebate\"),0)","v":0},{"$f":"IF(Table_PI[[#This Row],[Hide:\nFormula Name]]<>\"\",IFERROR(IF(MeasureCalc(Table_PI[[#This Row],[Hide:\nFormula Name]],Table_PI[[#This Row],[Quantity]],Table_PI[[#This Row],[List 1]],Table_PI[[#This Row],[List 2]],Table_PI[[#This Row],[List 3]],Table_PI[[#This Row],[Size]],Table_PI[[#This Row],[Input 1]],Table_PI[[#This Row],[Input 2]],Table_PI[[#This Row],[Input 3]],Table_PI[[#This Row],[Input 4]],'Customer Information'!$AR$12,1,ROW())>0,MeasureCalc(Table_PI[[#This Row],[Hide:\nFormula Name]],Table_PI[[#This Row],[Quantity]],Table_PI[[#This Row],[List 1]],Table_PI[[#This Row],[List 2]],Table_PI[[#This Row],[List 3]],Table_PI[[#This Row],[Size]],Table_PI[[#This Row],[Input 1]],Table_PI[[#This Row],[Input 2]],Table_PI[[#This Row],[Input 3]],Table_PI[[#This Row],[Input 4]],'Customer Information'!$AR$12,7,ROW()),\"No Rebate\"),\"No Rebate\"),0)","v":0},{"$f":"IF(Table_PI[[#This Row],[Hide:\nFormula Name]]<>\"\",IFERROR(IF(MeasureCalc(Table_PI[[#This Row],[Hide:\nFormula Name]],Table_PI[[#This Row],[Quantity]],Table_PI[[#This Row],[List 1]],Table_PI[[#This Row],[List 2]],Table_PI[[#This Row],[List 3]],Table_PI[[#This Row],[Size]],Table_PI[[#This Row],[Input 1]],Table_PI[[#This Row],[Input 2]],Table_PI[[#This Row],[Input 3]],Table_PI[[#This Row],[Input 4]],'Customer Information'!$AR$12,1,ROW())>0,MeasureCalc(Table_PI[[#This Row],[Hide:\nFormula Name]],Table_PI[[#This Row],[Quantity]],Table_PI[[#This Row],[List 1]],Table_PI[[#This Row],[List 2]],Table_PI[[#This Row],[List 3]],Table_PI[[#This Row],[Size]],Table_PI[[#This Row],[Input 1]],Table_PI[[#This Row],[Input 2]],Table_PI[[#This Row],[Input 3]],Table_PI[[#This Row],[Input 4]],'Customer Information'!$AR$12,8,ROW()),\"No Rebate\"),\"No Rebate\"),0)","v":0},{"$f":"IF(Table_PI[[#This Row],[Hide:\nFormula Name]]<>\"\",IF(AND(Table_PI[[#This Row],[Hide:\nFormula Name]]<>\"\",OR(Table_PI[[#This Row],[Rebate]]>0,Table_PI[[#This Row],[Rebate]]=\"No Rebate\")),TRUE,\"MI: Line Item \" & $A172),\"\")","v":""}]
[{"$f":"IF(Table_PI[[#This Row],[Hide:\nFormula Name]]<>\"\",MAX($A$2:A172)+1,\"\")","v":""},null,null,null,null,null,null,null,null,null,null,null,null,null,null,{"$f":"IFERROR(VLOOKUP(Table_PI[[#This Row],[Measure]],'Equipment Lookups'!$C$3:$D$23,2,FALSE),\"\")","v":""},{"$f":"IF(Table_PI[[#This Row],[Hide:\nFormula Name]]<>\"\",IFERROR(IF(MeasureCalc(Table_PI[[#This Row],[Hide:\nFormula Name]],Table_PI[[#This Row],[Quantity]],Table_PI[[#This Row],[List 1]],Table_PI[[#This Row],[List 2]],Table_PI[[#This Row],[List 3]],Table_PI[[#This Row],[Size]],Table_PI[[#This Row],[Input 1]],Table_PI[[#This Row],[Input 2]],Table_PI[[#This Row],[Input 3]],Table_PI[[#This Row],[Input 4]],'Customer Information'!$AR$12,1,ROW())>0,MeasureCalc(Table_PI[[#This Row],[Hide:\nFormula Name]],Table_PI[[#This Row],[Quantity]],Table_PI[[#This Row],[List 1]],Table_PI[[#This Row],[List 2]],Table_PI[[#This Row],[List 3]],Table_PI[[#This Row],[Size]],Table_PI[[#This Row],[Input 1]],Table_PI[[#This Row],[Input 2]],Table_PI[[#This Row],[Input 3]],Table_PI[[#This Row],[Input 4]],'Customer Information'!$AR$12,1,ROW()),\"No Rebate\"),\"No Rebate\"),0)","v":0},{"$f":"IF(Table_PI[[#This Row],[Hide:\nFormula Name]]<>\"\",IFERROR(IF(MeasureCalc(Table_PI[[#This Row],[Hide:\nFormula Name]],Table_PI[[#This Row],[Quantity]],Table_PI[[#This Row],[List 1]],Table_PI[[#This Row],[List 2]],Table_PI[[#This Row],[List 3]],Table_PI[[#This Row],[Size]],Table_PI[[#This Row],[Input 1]],Table_PI[[#This Row],[Input 2]],Table_PI[[#This Row],[Input 3]],Table_PI[[#This Row],[Input 4]],'Customer Information'!$AR$12,1,ROW())>0,MeasureCalc(Table_PI[[#This Row],[Hide:\nFormula Name]],Table_PI[[#This Row],[Quantity]],Table_PI[[#This Row],[List 1]],Table_PI[[#This Row],[List 2]],Table_PI[[#This Row],[List 3]],Table_PI[[#This Row],[Size]],Table_PI[[#This Row],[Input 1]],Table_PI[[#This Row],[Input 2]],Table_PI[[#This Row],[Input 3]],Table_PI[[#This Row],[Input 4]],'Customer Information'!$AR$12,2,ROW()),\"No Rebate\"),\"No Rebate\"),0)","v":0},{"$f":"IF(Table_PI[[#This Row],[Hide:\nFormula Name]]<>\"\",IFERROR(IF(MeasureCalc(Table_PI[[#This Row],[Hide:\nFormula Name]],Table_PI[[#This Row],[Quantity]],Table_PI[[#This Row],[List 1]],Table_PI[[#This Row],[List 2]],Table_PI[[#This Row],[List 3]],Table_PI[[#This Row],[Size]],Table_PI[[#This Row],[Input 1]],Table_PI[[#This Row],[Input 2]],Table_PI[[#This Row],[Input 3]],Table_PI[[#This Row],[Input 4]],'Customer Information'!$AR$12,1,ROW())>0,MeasureCalc(Table_PI[[#This Row],[Hide:\nFormula Name]],Table_PI[[#This Row],[Quantity]],Table_PI[[#This Row],[List 1]],Table_PI[[#This Row],[List 2]],Table_PI[[#This Row],[List 3]],Table_PI[[#This Row],[Size]],Table_PI[[#This Row],[Input 1]],Table_PI[[#This Row],[Input 2]],Table_PI[[#This Row],[Input 3]],Table_PI[[#This Row],[Input 4]],'Customer Information'!$AR$12,3,ROW()),\"No Rebate\"),\"No Rebate\"),0)","v":0},{"$f":"IF(Table_PI[[#This Row],[Hide:\nFormula Name]]<>\"\",IFERROR(IF(MeasureCalc(Table_PI[[#This Row],[Hide:\nFormula Name]],Table_PI[[#This Row],[Quantity]],Table_PI[[#This Row],[List 1]],Table_PI[[#This Row],[List 2]],Table_PI[[#This Row],[List 3]],Table_PI[[#This Row],[Size]],Table_PI[[#This Row],[Input 1]],Table_PI[[#This Row],[Input 2]],Table_PI[[#This Row],[Input 3]],Table_PI[[#This Row],[Input 4]],'Customer Information'!$AR$12,1,ROW())>0,MeasureCalc(Table_PI[[#This Row],[Hide:\nFormula Name]],Table_PI[[#This Row],[Quantity]],Table_PI[[#This Row],[List 1]],Table_PI[[#This Row],[List 2]],Table_PI[[#This Row],[List 3]],Table_PI[[#This Row],[Size]],Table_PI[[#This Row],[Input 1]],Table_PI[[#This Row],[Input 2]],Table_PI[[#This Row],[Input 3]],Table_PI[[#This Row],[Input 4]],'Customer Information'!$AR$12,4,ROW()),\"No Rebate\"),\"No Rebate\"),0)","v":0},{"$f":"IF(Table_PI[[#This Row],[Hide:\nFormula Name]]<>\"\",IFERROR(IF(MeasureCalc(Table_PI[[#This Row],[Hide:\nFormula Name]],Table_PI[[#This Row],[Quantity]],Table_PI[[#This Row],[List 1]],Table_PI[[#This Row],[List 2]],Table_PI[[#This Row],[List 3]],Table_PI[[#This Row],[Size]],Table_PI[[#This Row],[Input 1]],Table_PI[[#This Row],[Input 2]],Table_PI[[#This Row],[Input 3]],Table_PI[[#This Row],[Input 4]],'Customer Information'!$AR$12,1,ROW())>0,MeasureCalc(Table_PI[[#This Row],[Hide:\nFormula Name]],Table_PI[[#This Row],[Quantity]],Table_PI[[#This Row],[List 1]],Table_PI[[#This Row],[List 2]],Table_PI[[#This Row],[List 3]],Table_PI[[#This Row],[Size]],Table_PI[[#This Row],[Input 1]],Table_PI[[#This Row],[Input 2]],Table_PI[[#This Row],[Input 3]],Table_PI[[#This Row],[Input 4]],'Customer Information'!$AR$12,5,ROW()),\"No Rebate\"),\"No Rebate\"),0)","v":0},{"$f":"IF(Table_PI[[#This Row],[Hide:\nFormula Name]]<>\"\",IFERROR(IF(MeasureCalc(Table_PI[[#This Row],[Hide:\nFormula Name]],Table_PI[[#This Row],[Quantity]],Table_PI[[#This Row],[List 1]],Table_PI[[#This Row],[List 2]],Table_PI[[#This Row],[List 3]],Table_PI[[#This Row],[Size]],Table_PI[[#This Row],[Input 1]],Table_PI[[#This Row],[Input 2]],Table_PI[[#This Row],[Input 3]],Table_PI[[#This Row],[Input 4]],'Customer Information'!$AR$12,1,ROW())>0,MeasureCalc(Table_PI[[#This Row],[Hide:\nFormula Name]],Table_PI[[#This Row],[Quantity]],Table_PI[[#This Row],[List 1]],Table_PI[[#This Row],[List 2]],Table_PI[[#This Row],[List 3]],Table_PI[[#This Row],[Size]],Table_PI[[#This Row],[Input 1]],Table_PI[[#This Row],[Input 2]],Table_PI[[#This Row],[Input 3]],Table_PI[[#This Row],[Input 4]],'Customer Information'!$AR$12,6,ROW()),\"No Rebate\"),\"No Rebate\"),0)","v":0},{"$f":"IF(Table_PI[[#This Row],[Hide:\nFormula Name]]<>\"\",IFERROR(IF(MeasureCalc(Table_PI[[#This Row],[Hide:\nFormula Name]],Table_PI[[#This Row],[Quantity]],Table_PI[[#This Row],[List 1]],Table_PI[[#This Row],[List 2]],Table_PI[[#This Row],[List 3]],Table_PI[[#This Row],[Size]],Table_PI[[#This Row],[Input 1]],Table_PI[[#This Row],[Input 2]],Table_PI[[#This Row],[Input 3]],Table_PI[[#This Row],[Input 4]],'Customer Information'!$AR$12,1,ROW())>0,MeasureCalc(Table_PI[[#This Row],[Hide:\nFormula Name]],Table_PI[[#This Row],[Quantity]],Table_PI[[#This Row],[List 1]],Table_PI[[#This Row],[List 2]],Table_PI[[#This Row],[List 3]],Table_PI[[#This Row],[Size]],Table_PI[[#This Row],[Input 1]],Table_PI[[#This Row],[Input 2]],Table_PI[[#This Row],[Input 3]],Table_PI[[#This Row],[Input 4]],'Customer Information'!$AR$12,7,ROW()),\"No Rebate\"),\"No Rebate\"),0)","v":0},{"$f":"IF(Table_PI[[#This Row],[Hide:\nFormula Name]]<>\"\",IFERROR(IF(MeasureCalc(Table_PI[[#This Row],[Hide:\nFormula Name]],Table_PI[[#This Row],[Quantity]],Table_PI[[#This Row],[List 1]],Table_PI[[#This Row],[List 2]],Table_PI[[#This Row],[List 3]],Table_PI[[#This Row],[Size]],Table_PI[[#This Row],[Input 1]],Table_PI[[#This Row],[Input 2]],Table_PI[[#This Row],[Input 3]],Table_PI[[#This Row],[Input 4]],'Customer Information'!$AR$12,1,ROW())>0,MeasureCalc(Table_PI[[#This Row],[Hide:\nFormula Name]],Table_PI[[#This Row],[Quantity]],Table_PI[[#This Row],[List 1]],Table_PI[[#This Row],[List 2]],Table_PI[[#This Row],[List 3]],Table_PI[[#This Row],[Size]],Table_PI[[#This Row],[Input 1]],Table_PI[[#This Row],[Input 2]],Table_PI[[#This Row],[Input 3]],Table_PI[[#This Row],[Input 4]],'Customer Information'!$AR$12,8,ROW()),\"No Rebate\"),\"No Rebate\"),0)","v":0},{"$f":"IF(Table_PI[[#This Row],[Hide:\nFormula Name]]<>\"\",IF(AND(Table_PI[[#This Row],[Hide:\nFormula Name]]<>\"\",OR(Table_PI[[#This Row],[Rebate]]>0,Table_PI[[#This Row],[Rebate]]=\"No Rebate\")),TRUE,\"MI: Line Item \" & $A173),\"\")","v":""}]
[{"$f":"IF(Table_PI[[#This Row],[Hide:\nFormula Name]]<>\"\",MAX($A$2:A173)+1,\"\")","v":""},null,null,null,null,null,null,null,null,null,null,null,null,null,null,{"$f":"IFERROR(VLOOKUP(Table_PI[[#This Row],[Measure]],'Equipment Lookups'!$C$3:$D$23,2,FALSE),\"\")","v":""},{"$f":"IF(Table_PI[[#This Row],[Hide:\nFormula Name]]<>\"\",IFERROR(IF(MeasureCalc(Table_PI[[#This Row],[Hide:\nFormula Name]],Table_PI[[#This Row],[Quantity]],Table_PI[[#This Row],[List 1]],Table_PI[[#This Row],[List 2]],Table_PI[[#This Row],[List 3]],Table_PI[[#This Row],[Size]],Table_PI[[#This Row],[Input 1]],Table_PI[[#This Row],[Input 2]],Table_PI[[#This Row],[Input 3]],Table_PI[[#This Row],[Input 4]],'Customer Information'!$AR$12,1,ROW())>0,MeasureCalc(Table_PI[[#This Row],[Hide:\nFormula Name]],Table_PI[[#This Row],[Quantity]],Table_PI[[#This Row],[List 1]],Table_PI[[#This Row],[List 2]],Table_PI[[#This Row],[List 3]],Table_PI[[#This Row],[Size]],Table_PI[[#This Row],[Input 1]],Table_PI[[#This Row],[Input 2]],Table_PI[[#This Row],[Input 3]],Table_PI[[#This Row],[Input 4]],'Customer Information'!$AR$12,1,ROW()),\"No Rebate\"),\"No Rebate\"),0)","v":0},{"$f":"IF(Table_PI[[#This Row],[Hide:\nFormula Name]]<>\"\",IFERROR(IF(MeasureCalc(Table_PI[[#This Row],[Hide:\nFormula Name]],Table_PI[[#This Row],[Quantity]],Table_PI[[#This Row],[List 1]],Table_PI[[#This Row],[List 2]],Table_PI[[#This Row],[List 3]],Table_PI[[#This Row],[Size]],Table_PI[[#This Row],[Input 1]],Table_PI[[#This Row],[Input 2]],Table_PI[[#This Row],[Input 3]],Table_PI[[#This Row],[Input 4]],'Customer Information'!$AR$12,1,ROW())>0,MeasureCalc(Table_PI[[#This Row],[Hide:\nFormula Name]],Table_PI[[#This Row],[Quantity]],Table_PI[[#This Row],[List 1]],Table_PI[[#This Row],[List 2]],Table_PI[[#This Row],[List 3]],Table_PI[[#This Row],[Size]],Table_PI[[#This Row],[Input 1]],Table_PI[[#This Row],[Input 2]],Table_PI[[#This Row],[Input 3]],Table_PI[[#This Row],[Input 4]],'Customer Information'!$AR$12,2,ROW()),\"No Rebate\"),\"No Rebate\"),0)","v":0},{"$f":"IF(Table_PI[[#This Row],[Hide:\nFormula Name]]<>\"\",IFERROR(IF(MeasureCalc(Table_PI[[#This Row],[Hide:\nFormula Name]],Table_PI[[#This Row],[Quantity]],Table_PI[[#This Row],[List 1]],Table_PI[[#This Row],[List 2]],Table_PI[[#This Row],[List 3]],Table_PI[[#This Row],[Size]],Table_PI[[#This Row],[Input 1]],Table_PI[[#This Row],[Input 2]],Table_PI[[#This Row],[Input 3]],Table_PI[[#This Row],[Input 4]],'Customer Information'!$AR$12,1,ROW())>0,MeasureCalc(Table_PI[[#This Row],[Hide:\nFormula Name]],Table_PI[[#This Row],[Quantity]],Table_PI[[#This Row],[List 1]],Table_PI[[#This Row],[List 2]],Table_PI[[#This Row],[List 3]],Table_PI[[#This Row],[Size]],Table_PI[[#This Row],[Input 1]],Table_PI[[#This Row],[Input 2]],Table_PI[[#This Row],[Input 3]],Table_PI[[#This Row],[Input 4]],'Customer Information'!$AR$12,3,ROW()),\"No Rebate\"),\"No Rebate\"),0)","v":0},{"$f":"IF(Table_PI[[#This Row],[Hide:\nFormula Name]]<>\"\",IFERROR(IF(MeasureCalc(Table_PI[[#This Row],[Hide:\nFormula Name]],Table_PI[[#This Row],[Quantity]],Table_PI[[#This Row],[List 1]],Table_PI[[#This Row],[List 2]],Table_PI[[#This Row],[List 3]],Table_PI[[#This Row],[Size]],Table_PI[[#This Row],[Input 1]],Table_PI[[#This Row],[Input 2]],Table_PI[[#This Row],[Input 3]],Table_PI[[#This Row],[Input 4]],'Customer Information'!$AR$12,1,ROW())>0,MeasureCalc(Table_PI[[#This Row],[Hide:\nFormula Name]],Table_PI[[#This Row],[Quantity]],Table_PI[[#This Row],[List 1]],Table_PI[[#This Row],[List 2]],Table_PI[[#This Row],[List 3]],Table_PI[[#This Row],[Size]],Table_PI[[#This Row],[Input 1]],Table_PI[[#This Row],[Input 2]],Table_PI[[#This Row],[Input 3]],Table_PI[[#This Row],[Input 4]],'Customer Information'!$AR$12,4,ROW()),\"No Rebate\"),\"No Rebate\"),0)","v":0},{"$f":"IF(Table_PI[[#This Row],[Hide:\nFormula Name]]<>\"\",IFERROR(IF(MeasureCalc(Table_PI[[#This Row],[Hide:\nFormula Name]],Table_PI[[#This Row],[Quantity]],Table_PI[[#This Row],[List 1]],Table_PI[[#This Row],[List 2]],Table_PI[[#This Row],[List 3]],Table_PI[[#This Row],[Size]],Table_PI[[#This Row],[Input 1]],Table_PI[[#This Row],[Input 2]],Table_PI[[#This Row],[Input 3]],Table_PI[[#This Row],[Input 4]],'Customer Information'!$AR$12,1,ROW())>0,MeasureCalc(Table_PI[[#This Row],[Hide:\nFormula Name]],Table_PI[[#This Row],[Quantity]],Table_PI[[#This Row],[List 1]],Table_PI[[#This Row],[List 2]],Table_PI[[#This Row],[List 3]],Table_PI[[#This Row],[Size]],Table_PI[[#This Row],[Input 1]],Table_PI[[#This Row],[Input 2]],Table_PI[[#This Row],[Input 3]],Table_PI[[#This Row],[Input 4]],'Customer Information'!$AR$12,5,ROW()),\"No Rebate\"),\"No Rebate\"),0)","v":0},{"$f":"IF(Table_PI[[#This Row],[Hide:\nFormula Name]]<>\"\",IFERROR(IF(MeasureCalc(Table_PI[[#This Row],[Hide:\nFormula Name]],Table_PI[[#This Row],[Quantity]],Table_PI[[#This Row],[List 1]],Table_PI[[#This Row],[List 2]],Table_PI[[#This Row],[List 3]],Table_PI[[#This Row],[Size]],Table_PI[[#This Row],[Input 1]],Table_PI[[#This Row],[Input 2]],Table_PI[[#This Row],[Input 3]],Table_PI[[#This Row],[Input 4]],'Customer Information'!$AR$12,1,ROW())>0,MeasureCalc(Table_PI[[#This Row],[Hide:\nFormula Name]],Table_PI[[#This Row],[Quantity]],Table_PI[[#This Row],[List 1]],Table_PI[[#This Row],[List 2]],Table_PI[[#This Row],[List 3]],Table_PI[[#This Row],[Size]],Table_PI[[#This Row],[Input 1]],Table_PI[[#This Row],[Input 2]],Table_PI[[#This Row],[Input 3]],Table_PI[[#This Row],[Input 4]],'Customer Information'!$AR$12,6,ROW()),\"No Rebate\"),\"No Rebate\"),0)","v":0},{"$f":"IF(Table_PI[[#This Row],[Hide:\nFormula Name]]<>\"\",IFERROR(IF(MeasureCalc(Table_PI[[#This Row],[Hide:\nFormula Name]],Table_PI[[#This Row],[Quantity]],Table_PI[[#This Row],[List 1]],Table_PI[[#This Row],[List 2]],Table_PI[[#This Row],[List 3]],Table_PI[[#This Row],[Size]],Table_PI[[#This Row],[Input 1]],Table_PI[[#This Row],[Input 2]],Table_PI[[#This Row],[Input 3]],Table_PI[[#This Row],[Input 4]],'Customer Information'!$AR$12,1,ROW())>0,MeasureCalc(Table_PI[[#This Row],[Hide:\nFormula Name]],Table_PI[[#This Row],[Quantity]],Table_PI[[#This Row],[List 1]],Table_PI[[#This Row],[List 2]],Table_PI[[#This Row],[List 3]],Table_PI[[#This Row],[Size]],Table_PI[[#This Row],[Input 1]],Table_PI[[#This Row],[Input 2]],Table_PI[[#This Row],[Input 3]],Table_PI[[#This Row],[Input 4]],'Customer Information'!$AR$12,7,ROW()),\"No Rebate\"),\"No Rebate\"),0)","v":0},{"$f":"IF(Table_PI[[#This Row],[Hide:\nFormula Name]]<>\"\",IFERROR(IF(MeasureCalc(Table_PI[[#This Row],[Hide:\nFormula Name]],Table_PI[[#This Row],[Quantity]],Table_PI[[#This Row],[List 1]],Table_PI[[#This Row],[List 2]],Table_PI[[#This Row],[List 3]],Table_PI[[#This Row],[Size]],Table_PI[[#This Row],[Input 1]],Table_PI[[#This Row],[Input 2]],Table_PI[[#This Row],[Input 3]],Table_PI[[#This Row],[Input 4]],'Customer Information'!$AR$12,1,ROW())>0,MeasureCalc(Table_PI[[#This Row],[Hide:\nFormula Name]],Table_PI[[#This Row],[Quantity]],Table_PI[[#This Row],[List 1]],Table_PI[[#This Row],[List 2]],Table_PI[[#This Row],[List 3]],Table_PI[[#This Row],[Size]],Table_PI[[#This Row],[Input 1]],Table_PI[[#This Row],[Input 2]],Table_PI[[#This Row],[Input 3]],Table_PI[[#This Row],[Input 4]],'Customer Information'!$AR$12,8,ROW()),\"No Rebate\"),\"No Rebate\"),0)","v":0},{"$f":"IF(Table_PI[[#This Row],[Hide:\nFormula Name]]<>\"\",IF(AND(Table_PI[[#This Row],[Hide:\nFormula Name]]<>\"\",OR(Table_PI[[#This Row],[Rebate]]>0,Table_PI[[#This Row],[Rebate]]=\"No Rebate\")),TRUE,\"MI: Line Item \" & $A174),\"\")","v":""}]
[{"$f":"IF(Table_PI[[#This Row],[Hide:\nFormula Name]]<>\"\",MAX($A$2:A174)+1,\"\")","v":""},null,null,null,null,null,null,null,null,null,null,null,null,null,null,{"$f":"IFERROR(VLOOKUP(Table_PI[[#This Row],[Measure]],'Equipment Lookups'!$C$3:$D$23,2,FALSE),\"\")","v":""},{"$f":"IF(Table_PI[[#This Row],[Hide:\nFormula Name]]<>\"\",IFERROR(IF(MeasureCalc(Table_PI[[#This Row],[Hide:\nFormula Name]],Table_PI[[#This Row],[Quantity]],Table_PI[[#This Row],[List 1]],Table_PI[[#This Row],[List 2]],Table_PI[[#This Row],[List 3]],Table_PI[[#This Row],[Size]],Table_PI[[#This Row],[Input 1]],Table_PI[[#This Row],[Input 2]],Table_PI[[#This Row],[Input 3]],Table_PI[[#This Row],[Input 4]],'Customer Information'!$AR$12,1,ROW())>0,MeasureCalc(Table_PI[[#This Row],[Hide:\nFormula Name]],Table_PI[[#This Row],[Quantity]],Table_PI[[#This Row],[List 1]],Table_PI[[#This Row],[List 2]],Table_PI[[#This Row],[List 3]],Table_PI[[#This Row],[Size]],Table_PI[[#This Row],[Input 1]],Table_PI[[#This Row],[Input 2]],Table_PI[[#This Row],[Input 3]],Table_PI[[#This Row],[Input 4]],'Customer Information'!$AR$12,1,ROW()),\"No Rebate\"),\"No Rebate\"),0)","v":0},{"$f":"IF(Table_PI[[#This Row],[Hide:\nFormula Name]]<>\"\",IFERROR(IF(MeasureCalc(Table_PI[[#This Row],[Hide:\nFormula Name]],Table_PI[[#This Row],[Quantity]],Table_PI[[#This Row],[List 1]],Table_PI[[#This Row],[List 2]],Table_PI[[#This Row],[List 3]],Table_PI[[#This Row],[Size]],Table_PI[[#This Row],[Input 1]],Table_PI[[#This Row],[Input 2]],Table_PI[[#This Row],[Input 3]],Table_PI[[#This Row],[Input 4]],'Customer Information'!$AR$12,1,ROW())>0,MeasureCalc(Table_PI[[#This Row],[Hide:\nFormula Name]],Table_PI[[#This Row],[Quantity]],Table_PI[[#This Row],[List 1]],Table_PI[[#This Row],[List 2]],Table_PI[[#This Row],[List 3]],Table_PI[[#This Row],[Size]],Table_PI[[#This Row],[Input 1]],Table_PI[[#This Row],[Input 2]],Table_PI[[#This Row],[Input 3]],Table_PI[[#This Row],[Input 4]],'Customer Information'!$AR$12,2,ROW()),\"No Rebate\"),\"No Rebate\"),0)","v":0},{"$f":"IF(Table_PI[[#This Row],[Hide:\nFormula Name]]<>\"\",IFERROR(IF(MeasureCalc(Table_PI[[#This Row],[Hide:\nFormula Name]],Table_PI[[#This Row],[Quantity]],Table_PI[[#This Row],[List 1]],Table_PI[[#This Row],[List 2]],Table_PI[[#This Row],[List 3]],Table_PI[[#This Row],[Size]],Table_PI[[#This Row],[Input 1]],Table_PI[[#This Row],[Input 2]],Table_PI[[#This Row],[Input 3]],Table_PI[[#This Row],[Input 4]],'Customer Information'!$AR$12,1,ROW())>0,MeasureCalc(Table_PI[[#This Row],[Hide:\nFormula Name]],Table_PI[[#This Row],[Quantity]],Table_PI[[#This Row],[List 1]],Table_PI[[#This Row],[List 2]],Table_PI[[#This Row],[List 3]],Table_PI[[#This Row],[Size]],Table_PI[[#This Row],[Input 1]],Table_PI[[#This Row],[Input 2]],Table_PI[[#This Row],[Input 3]],Table_PI[[#This Row],[Input 4]],'Customer Information'!$AR$12,3,ROW()),\"No Rebate\"),\"No Rebate\"),0)","v":0},{"$f":"IF(Table_PI[[#This Row],[Hide:\nFormula Name]]<>\"\",IFERROR(IF(MeasureCalc(Table_PI[[#This Row],[Hide:\nFormula Name]],Table_PI[[#This Row],[Quantity]],Table_PI[[#This Row],[List 1]],Table_PI[[#This Row],[List 2]],Table_PI[[#This Row],[List 3]],Table_PI[[#This Row],[Size]],Table_PI[[#This Row],[Input 1]],Table_PI[[#This Row],[Input 2]],Table_PI[[#This Row],[Input 3]],Table_PI[[#This Row],[Input 4]],'Customer Information'!$AR$12,1,ROW())>0,MeasureCalc(Table_PI[[#This Row],[Hide:\nFormula Name]],Table_PI[[#This Row],[Quantity]],Table_PI[[#This Row],[List 1]],Table_PI[[#This Row],[List 2]],Table_PI[[#This Row],[List 3]],Table_PI[[#This Row],[Size]],Table_PI[[#This Row],[Input 1]],Table_PI[[#This Row],[Input 2]],Table_PI[[#This Row],[Input 3]],Table_PI[[#This Row],[Input 4]],'Customer Information'!$AR$12,4,ROW()),\"No Rebate\"),\"No Rebate\"),0)","v":0},{"$f":"IF(Table_PI[[#This Row],[Hide:\nFormula Name]]<>\"\",IFERROR(IF(MeasureCalc(Table_PI[[#This Row],[Hide:\nFormula Name]],Table_PI[[#This Row],[Quantity]],Table_PI[[#This Row],[List 1]],Table_PI[[#This Row],[List 2]],Table_PI[[#This Row],[List 3]],Table_PI[[#This Row],[Size]],Table_PI[[#This Row],[Input 1]],Table_PI[[#This Row],[Input 2]],Table_PI[[#This Row],[Input 3]],Table_PI[[#This Row],[Input 4]],'Customer Information'!$AR$12,1,ROW())>0,MeasureCalc(Table_PI[[#This Row],[Hide:\nFormula Name]],Table_PI[[#This Row],[Quantity]],Table_PI[[#This Row],[List 1]],Table_PI[[#This Row],[List 2]],Table_PI[[#This Row],[List 3]],Table_PI[[#This Row],[Size]],Table_PI[[#This Row],[Input 1]],Table_PI[[#This Row],[Input 2]],Table_PI[[#This Row],[Input 3]],Table_PI[[#This Row],[Input 4]],'Customer Information'!$AR$12,5,ROW()),\"No Rebate\"),\"No Rebate\"),0)","v":0},{"$f":"IF(Table_PI[[#This Row],[Hide:\nFormula Name]]<>\"\",IFERROR(IF(MeasureCalc(Table_PI[[#This Row],[Hide:\nFormula Name]],Table_PI[[#This Row],[Quantity]],Table_PI[[#This Row],[List 1]],Table_PI[[#This Row],[List 2]],Table_PI[[#This Row],[List 3]],Table_PI[[#This Row],[Size]],Table_PI[[#This Row],[Input 1]],Table_PI[[#This Row],[Input 2]],Table_PI[[#This Row],[Input 3]],Table_PI[[#This Row],[Input 4]],'Customer Information'!$AR$12,1,ROW())>0,MeasureCalc(Table_PI[[#This Row],[Hide:\nFormula Name]],Table_PI[[#This Row],[Quantity]],Table_PI[[#This Row],[List 1]],Table_PI[[#This Row],[List 2]],Table_PI[[#This Row],[List 3]],Table_PI[[#This Row],[Size]],Table_PI[[#This Row],[Input 1]],Table_PI[[#This Row],[Input 2]],Table_PI[[#This Row],[Input 3]],Table_PI[[#This Row],[Input 4]],'Customer Information'!$AR$12,6,ROW()),\"No Rebate\"),\"No Rebate\"),0)","v":0},{"$f":"IF(Table_PI[[#This Row],[Hide:\nFormula Name]]<>\"\",IFERROR(IF(MeasureCalc(Table_PI[[#This Row],[Hide:\nFormula Name]],Table_PI[[#This Row],[Quantity]],Table_PI[[#This Row],[List 1]],Table_PI[[#This Row],[List 2]],Table_PI[[#This Row],[List 3]],Table_PI[[#This Row],[Size]],Table_PI[[#This Row],[Input 1]],Table_PI[[#This Row],[Input 2]],Table_PI[[#This Row],[Input 3]],Table_PI[[#This Row],[Input 4]],'Customer Information'!$AR$12,1,ROW())>0,MeasureCalc(Table_PI[[#This Row],[Hide:\nFormula Name]],Table_PI[[#This Row],[Quantity]],Table_PI[[#This Row],[List 1]],Table_PI[[#This Row],[List 2]],Table_PI[[#This Row],[List 3]],Table_PI[[#This Row],[Size]],Table_PI[[#This Row],[Input 1]],Table_PI[[#This Row],[Input 2]],Table_PI[[#This Row],[Input 3]],Table_PI[[#This Row],[Input 4]],'Customer Information'!$AR$12,7,ROW()),\"No Rebate\"),\"No Rebate\"),0)","v":0},{"$f":"IF(Table_PI[[#This Row],[Hide:\nFormula Name]]<>\"\",IFERROR(IF(MeasureCalc(Table_PI[[#This Row],[Hide:\nFormula Name]],Table_PI[[#This Row],[Quantity]],Table_PI[[#This Row],[List 1]],Table_PI[[#This Row],[List 2]],Table_PI[[#This Row],[List 3]],Table_PI[[#This Row],[Size]],Table_PI[[#This Row],[Input 1]],Table_PI[[#This Row],[Input 2]],Table_PI[[#This Row],[Input 3]],Table_PI[[#This Row],[Input 4]],'Customer Information'!$AR$12,1,ROW())>0,MeasureCalc(Table_PI[[#This Row],[Hide:\nFormula Name]],Table_PI[[#This Row],[Quantity]],Table_PI[[#This Row],[List 1]],Table_PI[[#This Row],[List 2]],Table_PI[[#This Row],[List 3]],Table_PI[[#This Row],[Size]],Table_PI[[#This Row],[Input 1]],Table_PI[[#This Row],[Input 2]],Table_PI[[#This Row],[Input 3]],Table_PI[[#This Row],[Input 4]],'Customer Information'!$AR$12,8,ROW()),\"No Rebate\"),\"No Rebate\"),0)","v":0},{"$f":"IF(Table_PI[[#This Row],[Hide:\nFormula Name]]<>\"\",IF(AND(Table_PI[[#This Row],[Hide:\nFormula Name]]<>\"\",OR(Table_PI[[#This Row],[Rebate]]>0,Table_PI[[#This Row],[Rebate]]=\"No Rebate\")),TRUE,\"MI: Line Item \" & $A175),\"\")","v":""}]
[{"$f":"IF(Table_PI[[#This Row],[Hide:\nFormula Name]]<>\"\",MAX($A$2:A175)+1,\"\")","v":""},null,null,null,null,null,null,null,null,null,null,null,null,null,null,{"$f":"IFERROR(VLOOKUP(Table_PI[[#This Row],[Measure]],'Equipment Lookups'!$C$3:$D$23,2,FALSE),\"\")","v":""},{"$f":"IF(Table_PI[[#This Row],[Hide:\nFormula Name]]<>\"\",IFERROR(IF(MeasureCalc(Table_PI[[#This Row],[Hide:\nFormula Name]],Table_PI[[#This Row],[Quantity]],Table_PI[[#This Row],[List 1]],Table_PI[[#This Row],[List 2]],Table_PI[[#This Row],[List 3]],Table_PI[[#This Row],[Size]],Table_PI[[#This Row],[Input 1]],Table_PI[[#This Row],[Input 2]],Table_PI[[#This Row],[Input 3]],Table_PI[[#This Row],[Input 4]],'Customer Information'!$AR$12,1,ROW())>0,MeasureCalc(Table_PI[[#This Row],[Hide:\nFormula Name]],Table_PI[[#This Row],[Quantity]],Table_PI[[#This Row],[List 1]],Table_PI[[#This Row],[List 2]],Table_PI[[#This Row],[List 3]],Table_PI[[#This Row],[Size]],Table_PI[[#This Row],[Input 1]],Table_PI[[#This Row],[Input 2]],Table_PI[[#This Row],[Input 3]],Table_PI[[#This Row],[Input 4]],'Customer Information'!$AR$12,1,ROW()),\"No Rebate\"),\"No Rebate\"),0)","v":0},{"$f":"IF(Table_PI[[#This Row],[Hide:\nFormula Name]]<>\"\",IFERROR(IF(MeasureCalc(Table_PI[[#This Row],[Hide:\nFormula Name]],Table_PI[[#This Row],[Quantity]],Table_PI[[#This Row],[List 1]],Table_PI[[#This Row],[List 2]],Table_PI[[#This Row],[List 3]],Table_PI[[#This Row],[Size]],Table_PI[[#This Row],[Input 1]],Table_PI[[#This Row],[Input 2]],Table_PI[[#This Row],[Input 3]],Table_PI[[#This Row],[Input 4]],'Customer Information'!$AR$12,1,ROW())>0,MeasureCalc(Table_PI[[#This Row],[Hide:\nFormula Name]],Table_PI[[#This Row],[Quantity]],Table_PI[[#This Row],[List 1]],Table_PI[[#This Row],[List 2]],Table_PI[[#This Row],[List 3]],Table_PI[[#This Row],[Size]],Table_PI[[#This Row],[Input 1]],Table_PI[[#This Row],[Input 2]],Table_PI[[#This Row],[Input 3]],Table_PI[[#This Row],[Input 4]],'Customer Information'!$AR$12,2,ROW()),\"No Rebate\"),\"No Rebate\"),0)","v":0},{"$f":"IF(Table_PI[[#This Row],[Hide:\nFormula Name]]<>\"\",IFERROR(IF(MeasureCalc(Table_PI[[#This Row],[Hide:\nFormula Name]],Table_PI[[#This Row],[Quantity]],Table_PI[[#This Row],[List 1]],Table_PI[[#This Row],[List 2]],Table_PI[[#This Row],[List 3]],Table_PI[[#This Row],[Size]],Table_PI[[#This Row],[Input 1]],Table_PI[[#This Row],[Input 2]],Table_PI[[#This Row],[Input 3]],Table_PI[[#This Row],[Input 4]],'Customer Information'!$AR$12,1,ROW())>0,MeasureCalc(Table_PI[[#This Row],[Hide:\nFormula Name]],Table_PI[[#This Row],[Quantity]],Table_PI[[#This Row],[List 1]],Table_PI[[#This Row],[List 2]],Table_PI[[#This Row],[List 3]],Table_PI[[#This Row],[Size]],Table_PI[[#This Row],[Input 1]],Table_PI[[#This Row],[Input 2]],Table_PI[[#This Row],[Input 3]],Table_PI[[#This Row],[Input 4]],'Customer Information'!$AR$12,3,ROW()),\"No Rebate\"),\"No Rebate\"),0)","v":0},{"$f":"IF(Table_PI[[#This Row],[Hide:\nFormula Name]]<>\"\",IFERROR(IF(MeasureCalc(Table_PI[[#This Row],[Hide:\nFormula Name]],Table_PI[[#This Row],[Quantity]],Table_PI[[#This Row],[List 1]],Table_PI[[#This Row],[List 2]],Table_PI[[#This Row],[List 3]],Table_PI[[#This Row],[Size]],Table_PI[[#This Row],[Input 1]],Table_PI[[#This Row],[Input 2]],Table_PI[[#This Row],[Input 3]],Table_PI[[#This Row],[Input 4]],'Customer Information'!$AR$12,1,ROW())>0,MeasureCalc(Table_PI[[#This Row],[Hide:\nFormula Name]],Table_PI[[#This Row],[Quantity]],Table_PI[[#This Row],[List 1]],Table_PI[[#This Row],[List 2]],Table_PI[[#This Row],[List 3]],Table_PI[[#This Row],[Size]],Table_PI[[#This Row],[Input 1]],Table_PI[[#This Row],[Input 2]],Table_PI[[#This Row],[Input 3]],Table_PI[[#This Row],[Input 4]],'Customer Information'!$AR$12,4,ROW()),\"No Rebate\"),\"No Rebate\"),0)","v":0},{"$f":"IF(Table_PI[[#This Row],[Hide:\nFormula Name]]<>\"\",IFERROR(IF(MeasureCalc(Table_PI[[#This Row],[Hide:\nFormula Name]],Table_PI[[#This Row],[Quantity]],Table_PI[[#This Row],[List 1]],Table_PI[[#This Row],[List 2]],Table_PI[[#This Row],[List 3]],Table_PI[[#This Row],[Size]],Table_PI[[#This Row],[Input 1]],Table_PI[[#This Row],[Input 2]],Table_PI[[#This Row],[Input 3]],Table_PI[[#This Row],[Input 4]],'Customer Information'!$AR$12,1,ROW())>0,MeasureCalc(Table_PI[[#This Row],[Hide:\nFormula Name]],Table_PI[[#This Row],[Quantity]],Table_PI[[#This Row],[List 1]],Table_PI[[#This Row],[List 2]],Table_PI[[#This Row],[List 3]],Table_PI[[#This Row],[Size]],Table_PI[[#This Row],[Input 1]],Table_PI[[#This Row],[Input 2]],Table_PI[[#This Row],[Input 3]],Table_PI[[#This Row],[Input 4]],'Customer Information'!$AR$12,5,ROW()),\"No Rebate\"),\"No Rebate\"),0)","v":0},{"$f":"IF(Table_PI[[#This Row],[Hide:\nFormula Name]]<>\"\",IFERROR(IF(MeasureCalc(Table_PI[[#This Row],[Hide:\nFormula Name]],Table_PI[[#This Row],[Quantity]],Table_PI[[#This Row],[List 1]],Table_PI[[#This Row],[List 2]],Table_PI[[#This Row],[List 3]],Table_PI[[#This Row],[Size]],Table_PI[[#This Row],[Input 1]],Table_PI[[#This Row],[Input 2]],Table_PI[[#This Row],[Input 3]],Table_PI[[#This Row],[Input 4]],'Customer Information'!$AR$12,1,ROW())>0,MeasureCalc(Table_PI[[#This Row],[Hide:\nFormula Name]],Table_PI[[#This Row],[Quantity]],Table_PI[[#This Row],[List 1]],Table_PI[[#This Row],[List 2]],Table_PI[[#This Row],[List 3]],Table_PI[[#This Row],[Size]],Table_PI[[#This Row],[Input 1]],Table_PI[[#This Row],[Input 2]],Table_PI[[#This Row],[Input 3]],Table_PI[[#This Row],[Input 4]],'Customer Information'!$AR$12,6,ROW()),\"No Rebate\"),\"No Rebate\"),0)","v":0},{"$f":"IF(Table_PI[[#This Row],[Hide:\nFormula Name]]<>\"\",IFERROR(IF(MeasureCalc(Table_PI[[#This Row],[Hide:\nFormula Name]],Table_PI[[#This Row],[Quantity]],Table_PI[[#This Row],[List 1]],Table_PI[[#This Row],[List 2]],Table_PI[[#This Row],[List 3]],Table_PI[[#This Row],[Size]],Table_PI[[#This Row],[Input 1]],Table_PI[[#This Row],[Input 2]],Table_PI[[#This Row],[Input 3]],Table_PI[[#This Row],[Input 4]],'Customer Information'!$AR$12,1,ROW())>0,MeasureCalc(Table_PI[[#This Row],[Hide:\nFormula Name]],Table_PI[[#This Row],[Quantity]],Table_PI[[#This Row],[List 1]],Table_PI[[#This Row],[List 2]],Table_PI[[#This Row],[List 3]],Table_PI[[#This Row],[Size]],Table_PI[[#This Row],[Input 1]],Table_PI[[#This Row],[Input 2]],Table_PI[[#This Row],[Input 3]],Table_PI[[#This Row],[Input 4]],'Customer Information'!$AR$12,7,ROW()),\"No Rebate\"),\"No Rebate\"),0)","v":0},{"$f":"IF(Table_PI[[#This Row],[Hide:\nFormula Name]]<>\"\",IFERROR(IF(MeasureCalc(Table_PI[[#This Row],[Hide:\nFormula Name]],Table_PI[[#This Row],[Quantity]],Table_PI[[#This Row],[List 1]],Table_PI[[#This Row],[List 2]],Table_PI[[#This Row],[List 3]],Table_PI[[#This Row],[Size]],Table_PI[[#This Row],[Input 1]],Table_PI[[#This Row],[Input 2]],Table_PI[[#This Row],[Input 3]],Table_PI[[#This Row],[Input 4]],'Customer Information'!$AR$12,1,ROW())>0,MeasureCalc(Table_PI[[#This Row],[Hide:\nFormula Name]],Table_PI[[#This Row],[Quantity]],Table_PI[[#This Row],[List 1]],Table_PI[[#This Row],[List 2]],Table_PI[[#This Row],[List 3]],Table_PI[[#This Row],[Size]],Table_PI[[#This Row],[Input 1]],Table_PI[[#This Row],[Input 2]],Table_PI[[#This Row],[Input 3]],Table_PI[[#This Row],[Input 4]],'Customer Information'!$AR$12,8,ROW()),\"No Rebate\"),\"No Rebate\"),0)","v":0},{"$f":"IF(Table_PI[[#This Row],[Hide:\nFormula Name]]<>\"\",IF(AND(Table_PI[[#This Row],[Hide:\nFormula Name]]<>\"\",OR(Table_PI[[#This Row],[Rebate]]>0,Table_PI[[#This Row],[Rebate]]=\"No Rebate\")),TRUE,\"MI: Line Item \" & $A176),\"\")","v":""}]
[{"$f":"IF(Table_PI[[#This Row],[Hide:\nFormula Name]]<>\"\",MAX($A$2:A176)+1,\"\")","v":""},null,null,null,null,null,null,null,null,null,null,null,null,null,null,{"$f":"IFERROR(VLOOKUP(Table_PI[[#This Row],[Measure]],'Equipment Lookups'!$C$3:$D$23,2,FALSE),\"\")","v":""},{"$f":"IF(Table_PI[[#This Row],[Hide:\nFormula Name]]<>\"\",IFERROR(IF(MeasureCalc(Table_PI[[#This Row],[Hide:\nFormula Name]],Table_PI[[#This Row],[Quantity]],Table_PI[[#This Row],[List 1]],Table_PI[[#This Row],[List 2]],Table_PI[[#This Row],[List 3]],Table_PI[[#This Row],[Size]],Table_PI[[#This Row],[Input 1]],Table_PI[[#This Row],[Input 2]],Table_PI[[#This Row],[Input 3]],Table_PI[[#This Row],[Input 4]],'Customer Information'!$AR$12,1,ROW())>0,MeasureCalc(Table_PI[[#This Row],[Hide:\nFormula Name]],Table_PI[[#This Row],[Quantity]],Table_PI[[#This Row],[List 1]],Table_PI[[#This Row],[List 2]],Table_PI[[#This Row],[List 3]],Table_PI[[#This Row],[Size]],Table_PI[[#This Row],[Input 1]],Table_PI[[#This Row],[Input 2]],Table_PI[[#This Row],[Input 3]],Table_PI[[#This Row],[Input 4]],'Customer Information'!$AR$12,1,ROW()),\"No Rebate\"),\"No Rebate\"),0)","v":0},{"$f":"IF(Table_PI[[#This Row],[Hide:\nFormula Name]]<>\"\",IFERROR(IF(MeasureCalc(Table_PI[[#This Row],[Hide:\nFormula Name]],Table_PI[[#This Row],[Quantity]],Table_PI[[#This Row],[List 1]],Table_PI[[#This Row],[List 2]],Table_PI[[#This Row],[List 3]],Table_PI[[#This Row],[Size]],Table_PI[[#This Row],[Input 1]],Table_PI[[#This Row],[Input 2]],Table_PI[[#This Row],[Input 3]],Table_PI[[#This Row],[Input 4]],'Customer Information'!$AR$12,1,ROW())>0,MeasureCalc(Table_PI[[#This Row],[Hide:\nFormula Name]],Table_PI[[#This Row],[Quantity]],Table_PI[[#This Row],[List 1]],Table_PI[[#This Row],[List 2]],Table_PI[[#This Row],[List 3]],Table_PI[[#This Row],[Size]],Table_PI[[#This Row],[Input 1]],Table_PI[[#This Row],[Input 2]],Table_PI[[#This Row],[Input 3]],Table_PI[[#This Row],[Input 4]],'Customer Information'!$AR$12,2,ROW()),\"No Rebate\"),\"No Rebate\"),0)","v":0},{"$f":"IF(Table_PI[[#This Row],[Hide:\nFormula Name]]<>\"\",IFERROR(IF(MeasureCalc(Table_PI[[#This Row],[Hide:\nFormula Name]],Table_PI[[#This Row],[Quantity]],Table_PI[[#This Row],[List 1]],Table_PI[[#This Row],[List 2]],Table_PI[[#This Row],[List 3]],Table_PI[[#This Row],[Size]],Table_PI[[#This Row],[Input 1]],Table_PI[[#This Row],[Input 2]],Table_PI[[#This Row],[Input 3]],Table_PI[[#This Row],[Input 4]],'Customer Information'!$AR$12,1,ROW())>0,MeasureCalc(Table_PI[[#This Row],[Hide:\nFormula Name]],Table_PI[[#This Row],[Quantity]],Table_PI[[#This Row],[List 1]],Table_PI[[#This Row],[List 2]],Table_PI[[#This Row],[List 3]],Table_PI[[#This Row],[Size]],Table_PI[[#This Row],[Input 1]],Table_PI[[#This Row],[Input 2]],Table_PI[[#This Row],[Input 3]],Table_PI[[#This Row],[Input 4]],'Customer Information'!$AR$12,3,ROW()),\"No Rebate\"),\"No Rebate\"),0)","v":0},{"$f":"IF(Table_PI[[#This Row],[Hide:\nFormula Name]]<>\"\",IFERROR(IF(MeasureCalc(Table_PI[[#This Row],[Hide:\nFormula Name]],Table_PI[[#This Row],[Quantity]],Table_PI[[#This Row],[List 1]],Table_PI[[#This Row],[List 2]],Table_PI[[#This Row],[List 3]],Table_PI[[#This Row],[Size]],Table_PI[[#This Row],[Input 1]],Table_PI[[#This Row],[Input 2]],Table_PI[[#This Row],[Input 3]],Table_PI[[#This Row],[Input 4]],'Customer Information'!$AR$12,1,ROW())>0,MeasureCalc(Table_PI[[#This Row],[Hide:\nFormula Name]],Table_PI[[#This Row],[Quantity]],Table_PI[[#This Row],[List 1]],Table_PI[[#This Row],[List 2]],Table_PI[[#This Row],[List 3]],Table_PI[[#This Row],[Size]],Table_PI[[#This Row],[Input 1]],Table_PI[[#This Row],[Input 2]],Table_PI[[#This Row],[Input 3]],Table_PI[[#This Row],[Input 4]],'Customer Information'!$AR$12,4,ROW()),\"No Rebate\"),\"No Rebate\"),0)","v":0},{"$f":"IF(Table_PI[[#This Row],[Hide:\nFormula Name]]<>\"\",IFERROR(IF(MeasureCalc(Table_PI[[#This Row],[Hide:\nFormula Name]],Table_PI[[#This Row],[Quantity]],Table_PI[[#This Row],[List 1]],Table_PI[[#This Row],[List 2]],Table_PI[[#This Row],[List 3]],Table_PI[[#This Row],[Size]],Table_PI[[#This Row],[Input 1]],Table_PI[[#This Row],[Input 2]],Table_PI[[#This Row],[Input 3]],Table_PI[[#This Row],[Input 4]],'Customer Information'!$AR$12,1,ROW())>0,MeasureCalc(Table_PI[[#This Row],[Hide:\nFormula Name]],Table_PI[[#This Row],[Quantity]],Table_PI[[#This Row],[List 1]],Table_PI[[#This Row],[List 2]],Table_PI[[#This Row],[List 3]],Table_PI[[#This Row],[Size]],Table_PI[[#This Row],[Input 1]],Table_PI[[#This Row],[Input 2]],Table_PI[[#This Row],[Input 3]],Table_PI[[#This Row],[Input 4]],'Customer Information'!$AR$12,5,ROW()),\"No Rebate\"),\"No Rebate\"),0)","v":0},{"$f":"IF(Table_PI[[#This Row],[Hide:\nFormula Name]]<>\"\",IFERROR(IF(MeasureCalc(Table_PI[[#This Row],[Hide:\nFormula Name]],Table_PI[[#This Row],[Quantity]],Table_PI[[#This Row],[List 1]],Table_PI[[#This Row],[List 2]],Table_PI[[#This Row],[List 3]],Table_PI[[#This Row],[Size]],Table_PI[[#This Row],[Input 1]],Table_PI[[#This Row],[Input 2]],Table_PI[[#This Row],[Input 3]],Table_PI[[#This Row],[Input 4]],'Customer Information'!$AR$12,1,ROW())>0,MeasureCalc(Table_PI[[#This Row],[Hide:\nFormula Name]],Table_PI[[#This Row],[Quantity]],Table_PI[[#This Row],[List 1]],Table_PI[[#This Row],[List 2]],Table_PI[[#This Row],[List 3]],Table_PI[[#This Row],[Size]],Table_PI[[#This Row],[Input 1]],Table_PI[[#This Row],[Input 2]],Table_PI[[#This Row],[Input 3]],Table_PI[[#This Row],[Input 4]],'Customer Information'!$AR$12,6,ROW()),\"No Rebate\"),\"No Rebate\"),0)","v":0},{"$f":"IF(Table_PI[[#This Row],[Hide:\nFormula Name]]<>\"\",IFERROR(IF(MeasureCalc(Table_PI[[#This Row],[Hide:\nFormula Name]],Table_PI[[#This Row],[Quantity]],Table_PI[[#This Row],[List 1]],Table_PI[[#This Row],[List 2]],Table_PI[[#This Row],[List 3]],Table_PI[[#This Row],[Size]],Table_PI[[#This Row],[Input 1]],Table_PI[[#This Row],[Input 2]],Table_PI[[#This Row],[Input 3]],Table_PI[[#This Row],[Input 4]],'Customer Information'!$AR$12,1,ROW())>0,MeasureCalc(Table_PI[[#This Row],[Hide:\nFormula Name]],Table_PI[[#This Row],[Quantity]],Table_PI[[#This Row],[List 1]],Table_PI[[#This Row],[List 2]],Table_PI[[#This Row],[List 3]],Table_PI[[#This Row],[Size]],Table_PI[[#This Row],[Input 1]],Table_PI[[#This Row],[Input 2]],Table_PI[[#This Row],[Input 3]],Table_PI[[#This Row],[Input 4]],'Customer Information'!$AR$12,7,ROW()),\"No Rebate\"),\"No Rebate\"),0)","v":0},{"$f":"IF(Table_PI[[#This Row],[Hide:\nFormula Name]]<>\"\",IFERROR(IF(MeasureCalc(Table_PI[[#This Row],[Hide:\nFormula Name]],Table_PI[[#This Row],[Quantity]],Table_PI[[#This Row],[List 1]],Table_PI[[#This Row],[List 2]],Table_PI[[#This Row],[List 3]],Table_PI[[#This Row],[Size]],Table_PI[[#This Row],[Input 1]],Table_PI[[#This Row],[Input 2]],Table_PI[[#This Row],[Input 3]],Table_PI[[#This Row],[Input 4]],'Customer Information'!$AR$12,1,ROW())>0,MeasureCalc(Table_PI[[#This Row],[Hide:\nFormula Name]],Table_PI[[#This Row],[Quantity]],Table_PI[[#This Row],[List 1]],Table_PI[[#This Row],[List 2]],Table_PI[[#This Row],[List 3]],Table_PI[[#This Row],[Size]],Table_PI[[#This Row],[Input 1]],Table_PI[[#This Row],[Input 2]],Table_PI[[#This Row],[Input 3]],Table_PI[[#This Row],[Input 4]],'Customer Information'!$AR$12,8,ROW()),\"No Rebate\"),\"No Rebate\"),0)","v":0},{"$f":"IF(Table_PI[[#This Row],[Hide:\nFormula Name]]<>\"\",IF(AND(Table_PI[[#This Row],[Hide:\nFormula Name]]<>\"\",OR(Table_PI[[#This Row],[Rebate]]>0,Table_PI[[#This Row],[Rebate]]=\"No Rebate\")),TRUE,\"MI: Line Item \" & $A177),\"\")","v":""}]
[{"$f":"IF(Table_PI[[#This Row],[Hide:\nFormula Name]]<>\"\",MAX($A$2:A177)+1,\"\")","v":""},null,null,null,null,null,null,null,null,null,null,null,null,null,null,{"$f":"IFERROR(VLOOKUP(Table_PI[[#This Row],[Measure]],'Equipment Lookups'!$C$3:$D$23,2,FALSE),\"\")","v":""},{"$f":"IF(Table_PI[[#This Row],[Hide:\nFormula Name]]<>\"\",IFERROR(IF(MeasureCalc(Table_PI[[#This Row],[Hide:\nFormula Name]],Table_PI[[#This Row],[Quantity]],Table_PI[[#This Row],[List 1]],Table_PI[[#This Row],[List 2]],Table_PI[[#This Row],[List 3]],Table_PI[[#This Row],[Size]],Table_PI[[#This Row],[Input 1]],Table_PI[[#This Row],[Input 2]],Table_PI[[#This Row],[Input 3]],Table_PI[[#This Row],[Input 4]],'Customer Information'!$AR$12,1,ROW())>0,MeasureCalc(Table_PI[[#This Row],[Hide:\nFormula Name]],Table_PI[[#This Row],[Quantity]],Table_PI[[#This Row],[List 1]],Table_PI[[#This Row],[List 2]],Table_PI[[#This Row],[List 3]],Table_PI[[#This Row],[Size]],Table_PI[[#This Row],[Input 1]],Table_PI[[#This Row],[Input 2]],Table_PI[[#This Row],[Input 3]],Table_PI[[#This Row],[Input 4]],'Customer Information'!$AR$12,1,ROW()),\"No Rebate\"),\"No Rebate\"),0)","v":0},{"$f":"IF(Table_PI[[#This Row],[Hide:\nFormula Name]]<>\"\",IFERROR(IF(MeasureCalc(Table_PI[[#This Row],[Hide:\nFormula Name]],Table_PI[[#This Row],[Quantity]],Table_PI[[#This Row],[List 1]],Table_PI[[#This Row],[List 2]],Table_PI[[#This Row],[List 3]],Table_PI[[#This Row],[Size]],Table_PI[[#This Row],[Input 1]],Table_PI[[#This Row],[Input 2]],Table_PI[[#This Row],[Input 3]],Table_PI[[#This Row],[Input 4]],'Customer Information'!$AR$12,1,ROW())>0,MeasureCalc(Table_PI[[#This Row],[Hide:\nFormula Name]],Table_PI[[#This Row],[Quantity]],Table_PI[[#This Row],[List 1]],Table_PI[[#This Row],[List 2]],Table_PI[[#This Row],[List 3]],Table_PI[[#This Row],[Size]],Table_PI[[#This Row],[Input 1]],Table_PI[[#This Row],[Input 2]],Table_PI[[#This Row],[Input 3]],Table_PI[[#This Row],[Input 4]],'Customer Information'!$AR$12,2,ROW()),\"No Rebate\"),\"No Rebate\"),0)","v":0},{"$f":"IF(Table_PI[[#This Row],[Hide:\nFormula Name]]<>\"\",IFERROR(IF(MeasureCalc(Table_PI[[#This Row],[Hide:\nFormula Name]],Table_PI[[#This Row],[Quantity]],Table_PI[[#This Row],[List 1]],Table_PI[[#This Row],[List 2]],Table_PI[[#This Row],[List 3]],Table_PI[[#This Row],[Size]],Table_PI[[#This Row],[Input 1]],Table_PI[[#This Row],[Input 2]],Table_PI[[#This Row],[Input 3]],Table_PI[[#This Row],[Input 4]],'Customer Information'!$AR$12,1,ROW())>0,MeasureCalc(Table_PI[[#This Row],[Hide:\nFormula Name]],Table_PI[[#This Row],[Quantity]],Table_PI[[#This Row],[List 1]],Table_PI[[#This Row],[List 2]],Table_PI[[#This Row],[List 3]],Table_PI[[#This Row],[Size]],Table_PI[[#This Row],[Input 1]],Table_PI[[#This Row],[Input 2]],Table_PI[[#This Row],[Input 3]],Table_PI[[#This Row],[Input 4]],'Customer Information'!$AR$12,3,ROW()),\"No Rebate\"),\"No Rebate\"),0)","v":0},{"$f":"IF(Table_PI[[#This Row],[Hide:\nFormula Name]]<>\"\",IFERROR(IF(MeasureCalc(Table_PI[[#This Row],[Hide:\nFormula Name]],Table_PI[[#This Row],[Quantity]],Table_PI[[#This Row],[List 1]],Table_PI[[#This Row],[List 2]],Table_PI[[#This Row],[List 3]],Table_PI[[#This Row],[Size]],Table_PI[[#This Row],[Input 1]],Table_PI[[#This Row],[Input 2]],Table_PI[[#This Row],[Input 3]],Table_PI[[#This Row],[Input 4]],'Customer Information'!$AR$12,1,ROW())>0,MeasureCalc(Table_PI[[#This Row],[Hide:\nFormula Name]],Table_PI[[#This Row],[Quantity]],Table_PI[[#This Row],[List 1]],Table_PI[[#This Row],[List 2]],Table_PI[[#This Row],[List 3]],Table_PI[[#This Row],[Size]],Table_PI[[#This Row],[Input 1]],Table_PI[[#This Row],[Input 2]],Table_PI[[#This Row],[Input 3]],Table_PI[[#This Row],[Input 4]],'Customer Information'!$AR$12,4,ROW()),\"No Rebate\"),\"No Rebate\"),0)","v":0},{"$f":"IF(Table_PI[[#This Row],[Hide:\nFormula Name]]<>\"\",IFERROR(IF(MeasureCalc(Table_PI[[#This Row],[Hide:\nFormula Name]],Table_PI[[#This Row],[Quantity]],Table_PI[[#This Row],[List 1]],Table_PI[[#This Row],[List 2]],Table_PI[[#This Row],[List 3]],Table_PI[[#This Row],[Size]],Table_PI[[#This Row],[Input 1]],Table_PI[[#This Row],[Input 2]],Table_PI[[#This Row],[Input 3]],Table_PI[[#This Row],[Input 4]],'Customer Information'!$AR$12,1,ROW())>0,MeasureCalc(Table_PI[[#This Row],[Hide:\nFormula Name]],Table_PI[[#This Row],[Quantity]],Table_PI[[#This Row],[List 1]],Table_PI[[#This Row],[List 2]],Table_PI[[#This Row],[List 3]],Table_PI[[#This Row],[Size]],Table_PI[[#This Row],[Input 1]],Table_PI[[#This Row],[Input 2]],Table_PI[[#This Row],[Input 3]],Table_PI[[#This Row],[Input 4]],'Customer Information'!$AR$12,5,ROW()),\"No Rebate\"),\"No Rebate\"),0)","v":0},{"$f":"IF(Table_PI[[#This Row],[Hide:\nFormula Name]]<>\"\",IFERROR(IF(MeasureCalc(Table_PI[[#This Row],[Hide:\nFormula Name]],Table_PI[[#This Row],[Quantity]],Table_PI[[#This Row],[List 1]],Table_PI[[#This Row],[List 2]],Table_PI[[#This Row],[List 3]],Table_PI[[#This Row],[Size]],Table_PI[[#This Row],[Input 1]],Table_PI[[#This Row],[Input 2]],Table_PI[[#This Row],[Input 3]],Table_PI[[#This Row],[Input 4]],'Customer Information'!$AR$12,1,ROW())>0,MeasureCalc(Table_PI[[#This Row],[Hide:\nFormula Name]],Table_PI[[#This Row],[Quantity]],Table_PI[[#This Row],[List 1]],Table_PI[[#This Row],[List 2]],Table_PI[[#This Row],[List 3]],Table_PI[[#This Row],[Size]],Table_PI[[#This Row],[Input 1]],Table_PI[[#This Row],[Input 2]],Table_PI[[#This Row],[Input 3]],Table_PI[[#This Row],[Input 4]],'Customer Information'!$AR$12,6,ROW()),\"No Rebate\"),\"No Rebate\"),0)","v":0},{"$f":"IF(Table_PI[[#This Row],[Hide:\nFormula Name]]<>\"\",IFERROR(IF(MeasureCalc(Table_PI[[#This Row],[Hide:\nFormula Name]],Table_PI[[#This Row],[Quantity]],Table_PI[[#This Row],[List 1]],Table_PI[[#This Row],[List 2]],Table_PI[[#This Row],[List 3]],Table_PI[[#This Row],[Size]],Table_PI[[#This Row],[Input 1]],Table_PI[[#This Row],[Input 2]],Table_PI[[#This Row],[Input 3]],Table_PI[[#This Row],[Input 4]],'Customer Information'!$AR$12,1,ROW())>0,MeasureCalc(Table_PI[[#This Row],[Hide:\nFormula Name]],Table_PI[[#This Row],[Quantity]],Table_PI[[#This Row],[List 1]],Table_PI[[#This Row],[List 2]],Table_PI[[#This Row],[List 3]],Table_PI[[#This Row],[Size]],Table_PI[[#This Row],[Input 1]],Table_PI[[#This Row],[Input 2]],Table_PI[[#This Row],[Input 3]],Table_PI[[#This Row],[Input 4]],'Customer Information'!$AR$12,7,ROW()),\"No Rebate\"),\"No Rebate\"),0)","v":0},{"$f":"IF(Table_PI[[#This Row],[Hide:\nFormula Name]]<>\"\",IFERROR(IF(MeasureCalc(Table_PI[[#This Row],[Hide:\nFormula Name]],Table_PI[[#This Row],[Quantity]],Table_PI[[#This Row],[List 1]],Table_PI[[#This Row],[List 2]],Table_PI[[#This Row],[List 3]],Table_PI[[#This Row],[Size]],Table_PI[[#This Row],[Input 1]],Table_PI[[#This Row],[Input 2]],Table_PI[[#This Row],[Input 3]],Table_PI[[#This Row],[Input 4]],'Customer Information'!$AR$12,1,ROW())>0,MeasureCalc(Table_PI[[#This Row],[Hide:\nFormula Name]],Table_PI[[#This Row],[Quantity]],Table_PI[[#This Row],[List 1]],Table_PI[[#This Row],[List 2]],Table_PI[[#This Row],[List 3]],Table_PI[[#This Row],[Size]],Table_PI[[#This Row],[Input 1]],Table_PI[[#This Row],[Input 2]],Table_PI[[#This Row],[Input 3]],Table_PI[[#This Row],[Input 4]],'Customer Information'!$AR$12,8,ROW()),\"No Rebate\"),\"No Rebate\"),0)","v":0},{"$f":"IF(Table_PI[[#This Row],[Hide:\nFormula Name]]<>\"\",IF(AND(Table_PI[[#This Row],[Hide:\nFormula Name]]<>\"\",OR(Table_PI[[#This Row],[Rebate]]>0,Table_PI[[#This Row],[Rebate]]=\"No Rebate\")),TRUE,\"MI: Line Item \" & $A178),\"\")","v":""}]
[{"$f":"IF(Table_PI[[#This Row],[Hide:\nFormula Name]]<>\"\",MAX($A$2:A178)+1,\"\")","v":""},null,null,null,null,null,null,null,null,null,null,null,null,null,null,{"$f":"IFERROR(VLOOKUP(Table_PI[[#This Row],[Measure]],'Equipment Lookups'!$C$3:$D$23,2,FALSE),\"\")","v":""},{"$f":"IF(Table_PI[[#This Row],[Hide:\nFormula Name]]<>\"\",IFERROR(IF(MeasureCalc(Table_PI[[#This Row],[Hide:\nFormula Name]],Table_PI[[#This Row],[Quantity]],Table_PI[[#This Row],[List 1]],Table_PI[[#This Row],[List 2]],Table_PI[[#This Row],[List 3]],Table_PI[[#This Row],[Size]],Table_PI[[#This Row],[Input 1]],Table_PI[[#This Row],[Input 2]],Table_PI[[#This Row],[Input 3]],Table_PI[[#This Row],[Input 4]],'Customer Information'!$AR$12,1,ROW())>0,MeasureCalc(Table_PI[[#This Row],[Hide:\nFormula Name]],Table_PI[[#This Row],[Quantity]],Table_PI[[#This Row],[List 1]],Table_PI[[#This Row],[List 2]],Table_PI[[#This Row],[List 3]],Table_PI[[#This Row],[Size]],Table_PI[[#This Row],[Input 1]],Table_PI[[#This Row],[Input 2]],Table_PI[[#This Row],[Input 3]],Table_PI[[#This Row],[Input 4]],'Customer Information'!$AR$12,1,ROW()),\"No Rebate\"),\"No Rebate\"),0)","v":0},{"$f":"IF(Table_PI[[#This Row],[Hide:\nFormula Name]]<>\"\",IFERROR(IF(MeasureCalc(Table_PI[[#This Row],[Hide:\nFormula Name]],Table_PI[[#This Row],[Quantity]],Table_PI[[#This Row],[List 1]],Table_PI[[#This Row],[List 2]],Table_PI[[#This Row],[List 3]],Table_PI[[#This Row],[Size]],Table_PI[[#This Row],[Input 1]],Table_PI[[#This Row],[Input 2]],Table_PI[[#This Row],[Input 3]],Table_PI[[#This Row],[Input 4]],'Customer Information'!$AR$12,1,ROW())>0,MeasureCalc(Table_PI[[#This Row],[Hide:\nFormula Name]],Table_PI[[#This Row],[Quantity]],Table_PI[[#This Row],[List 1]],Table_PI[[#This Row],[List 2]],Table_PI[[#This Row],[List 3]],Table_PI[[#This Row],[Size]],Table_PI[[#This Row],[Input 1]],Table_PI[[#This Row],[Input 2]],Table_PI[[#This Row],[Input 3]],Table_PI[[#This Row],[Input 4]],'Customer Information'!$AR$12,2,ROW()),\"No Rebate\"),\"No Rebate\"),0)","v":0},{"$f":"IF(Table_PI[[#This Row],[Hide:\nFormula Name]]<>\"\",IFERROR(IF(MeasureCalc(Table_PI[[#This Row],[Hide:\nFormula Name]],Table_PI[[#This Row],[Quantity]],Table_PI[[#This Row],[List 1]],Table_PI[[#This Row],[List 2]],Table_PI[[#This Row],[List 3]],Table_PI[[#This Row],[Size]],Table_PI[[#This Row],[Input 1]],Table_PI[[#This Row],[Input 2]],Table_PI[[#This Row],[Input 3]],Table_PI[[#This Row],[Input 4]],'Customer Information'!$AR$12,1,ROW())>0,MeasureCalc(Table_PI[[#This Row],[Hide:\nFormula Name]],Table_PI[[#This Row],[Quantity]],Table_PI[[#This Row],[List 1]],Table_PI[[#This Row],[List 2]],Table_PI[[#This Row],[List 3]],Table_PI[[#This Row],[Size]],Table_PI[[#This Row],[Input 1]],Table_PI[[#This Row],[Input 2]],Table_PI[[#This Row],[Input 3]],Table_PI[[#This Row],[Input 4]],'Customer Information'!$AR$12,3,ROW()),\"No Rebate\"),\"No Rebate\"),0)","v":0},{"$f":"IF(Table_PI[[#This Row],[Hide:\nFormula Name]]<>\"\",IFERROR(IF(MeasureCalc(Table_PI[[#This Row],[Hide:\nFormula Name]],Table_PI[[#This Row],[Quantity]],Table_PI[[#This Row],[List 1]],Table_PI[[#This Row],[List 2]],Table_PI[[#This Row],[List 3]],Table_PI[[#This Row],[Size]],Table_PI[[#This Row],[Input 1]],Table_PI[[#This Row],[Input 2]],Table_PI[[#This Row],[Input 3]],Table_PI[[#This Row],[Input 4]],'Customer Information'!$AR$12,1,ROW())>0,MeasureCalc(Table_PI[[#This Row],[Hide:\nFormula Name]],Table_PI[[#This Row],[Quantity]],Table_PI[[#This Row],[List 1]],Table_PI[[#This Row],[List 2]],Table_PI[[#This Row],[List 3]],Table_PI[[#This Row],[Size]],Table_PI[[#This Row],[Input 1]],Table_PI[[#This Row],[Input 2]],Table_PI[[#This Row],[Input 3]],Table_PI[[#This Row],[Input 4]],'Customer Information'!$AR$12,4,ROW()),\"No Rebate\"),\"No Rebate\"),0)","v":0},{"$f":"IF(Table_PI[[#This Row],[Hide:\nFormula Name]]<>\"\",IFERROR(IF(MeasureCalc(Table_PI[[#This Row],[Hide:\nFormula Name]],Table_PI[[#This Row],[Quantity]],Table_PI[[#This Row],[List 1]],Table_PI[[#This Row],[List 2]],Table_PI[[#This Row],[List 3]],Table_PI[[#This Row],[Size]],Table_PI[[#This Row],[Input 1]],Table_PI[[#This Row],[Input 2]],Table_PI[[#This Row],[Input 3]],Table_PI[[#This Row],[Input 4]],'Customer Information'!$AR$12,1,ROW())>0,MeasureCalc(Table_PI[[#This Row],[Hide:\nFormula Name]],Table_PI[[#This Row],[Quantity]],Table_PI[[#This Row],[List 1]],Table_PI[[#This Row],[List 2]],Table_PI[[#This Row],[List 3]],Table_PI[[#This Row],[Size]],Table_PI[[#This Row],[Input 1]],Table_PI[[#This Row],[Input 2]],Table_PI[[#This Row],[Input 3]],Table_PI[[#This Row],[Input 4]],'Customer Information'!$AR$12,5,ROW()),\"No Rebate\"),\"No Rebate\"),0)","v":0},{"$f":"IF(Table_PI[[#This Row],[Hide:\nFormula Name]]<>\"\",IFERROR(IF(MeasureCalc(Table_PI[[#This Row],[Hide:\nFormula Name]],Table_PI[[#This Row],[Quantity]],Table_PI[[#This Row],[List 1]],Table_PI[[#This Row],[List 2]],Table_PI[[#This Row],[List 3]],Table_PI[[#This Row],[Size]],Table_PI[[#This Row],[Input 1]],Table_PI[[#This Row],[Input 2]],Table_PI[[#This Row],[Input 3]],Table_PI[[#This Row],[Input 4]],'Customer Information'!$AR$12,1,ROW())>0,MeasureCalc(Table_PI[[#This Row],[Hide:\nFormula Name]],Table_PI[[#This Row],[Quantity]],Table_PI[[#This Row],[List 1]],Table_PI[[#This Row],[List 2]],Table_PI[[#This Row],[List 3]],Table_PI[[#This Row],[Size]],Table_PI[[#This Row],[Input 1]],Table_PI[[#This Row],[Input 2]],Table_PI[[#This Row],[Input 3]],Table_PI[[#This Row],[Input 4]],'Customer Information'!$AR$12,6,ROW()),\"No Rebate\"),\"No Rebate\"),0)","v":0},{"$f":"IF(Table_PI[[#This Row],[Hide:\nFormula Name]]<>\"\",IFERROR(IF(MeasureCalc(Table_PI[[#This Row],[Hide:\nFormula Name]],Table_PI[[#This Row],[Quantity]],Table_PI[[#This Row],[List 1]],Table_PI[[#This Row],[List 2]],Table_PI[[#This Row],[List 3]],Table_PI[[#This Row],[Size]],Table_PI[[#This Row],[Input 1]],Table_PI[[#This Row],[Input 2]],Table_PI[[#This Row],[Input 3]],Table_PI[[#This Row],[Input 4]],'Customer Information'!$AR$12,1,ROW())>0,MeasureCalc(Table_PI[[#This Row],[Hide:\nFormula Name]],Table_PI[[#This Row],[Quantity]],Table_PI[[#This Row],[List 1]],Table_PI[[#This Row],[List 2]],Table_PI[[#This Row],[List 3]],Table_PI[[#This Row],[Size]],Table_PI[[#This Row],[Input 1]],Table_PI[[#This Row],[Input 2]],Table_PI[[#This Row],[Input 3]],Table_PI[[#This Row],[Input 4]],'Customer Information'!$AR$12,7,ROW()),\"No Rebate\"),\"No Rebate\"),0)","v":0},{"$f":"IF(Table_PI[[#This Row],[Hide:\nFormula Name]]<>\"\",IFERROR(IF(MeasureCalc(Table_PI[[#This Row],[Hide:\nFormula Name]],Table_PI[[#This Row],[Quantity]],Table_PI[[#This Row],[List 1]],Table_PI[[#This Row],[List 2]],Table_PI[[#This Row],[List 3]],Table_PI[[#This Row],[Size]],Table_PI[[#This Row],[Input 1]],Table_PI[[#This Row],[Input 2]],Table_PI[[#This Row],[Input 3]],Table_PI[[#This Row],[Input 4]],'Customer Information'!$AR$12,1,ROW())>0,MeasureCalc(Table_PI[[#This Row],[Hide:\nFormula Name]],Table_PI[[#This Row],[Quantity]],Table_PI[[#This Row],[List 1]],Table_PI[[#This Row],[List 2]],Table_PI[[#This Row],[List 3]],Table_PI[[#This Row],[Size]],Table_PI[[#This Row],[Input 1]],Table_PI[[#This Row],[Input 2]],Table_PI[[#This Row],[Input 3]],Table_PI[[#This Row],[Input 4]],'Customer Information'!$AR$12,8,ROW()),\"No Rebate\"),\"No Rebate\"),0)","v":0},{"$f":"IF(Table_PI[[#This Row],[Hide:\nFormula Name]]<>\"\",IF(AND(Table_PI[[#This Row],[Hide:\nFormula Name]]<>\"\",OR(Table_PI[[#This Row],[Rebate]]>0,Table_PI[[#This Row],[Rebate]]=\"No Rebate\")),TRUE,\"MI: Line Item \" & $A179),\"\")","v":""}]
[{"$f":"IF(Table_PI[[#This Row],[Hide:\nFormula Name]]<>\"\",MAX($A$2:A179)+1,\"\")","v":""},null,null,null,null,null,null,null,null,null,null,null,null,null,null,{"$f":"IFERROR(VLOOKUP(Table_PI[[#This Row],[Measure]],'Equipment Lookups'!$C$3:$D$23,2,FALSE),\"\")","v":""},{"$f":"IF(Table_PI[[#This Row],[Hide:\nFormula Name]]<>\"\",IFERROR(IF(MeasureCalc(Table_PI[[#This Row],[Hide:\nFormula Name]],Table_PI[[#This Row],[Quantity]],Table_PI[[#This Row],[List 1]],Table_PI[[#This Row],[List 2]],Table_PI[[#This Row],[List 3]],Table_PI[[#This Row],[Size]],Table_PI[[#This Row],[Input 1]],Table_PI[[#This Row],[Input 2]],Table_PI[[#This Row],[Input 3]],Table_PI[[#This Row],[Input 4]],'Customer Information'!$AR$12,1,ROW())>0,MeasureCalc(Table_PI[[#This Row],[Hide:\nFormula Name]],Table_PI[[#This Row],[Quantity]],Table_PI[[#This Row],[List 1]],Table_PI[[#This Row],[List 2]],Table_PI[[#This Row],[List 3]],Table_PI[[#This Row],[Size]],Table_PI[[#This Row],[Input 1]],Table_PI[[#This Row],[Input 2]],Table_PI[[#This Row],[Input 3]],Table_PI[[#This Row],[Input 4]],'Customer Information'!$AR$12,1,ROW()),\"No Rebate\"),\"No Rebate\"),0)","v":0},{"$f":"IF(Table_PI[[#This Row],[Hide:\nFormula Name]]<>\"\",IFERROR(IF(MeasureCalc(Table_PI[[#This Row],[Hide:\nFormula Name]],Table_PI[[#This Row],[Quantity]],Table_PI[[#This Row],[List 1]],Table_PI[[#This Row],[List 2]],Table_PI[[#This Row],[List 3]],Table_PI[[#This Row],[Size]],Table_PI[[#This Row],[Input 1]],Table_PI[[#This Row],[Input 2]],Table_PI[[#This Row],[Input 3]],Table_PI[[#This Row],[Input 4]],'Customer Information'!$AR$12,1,ROW())>0,MeasureCalc(Table_PI[[#This Row],[Hide:\nFormula Name]],Table_PI[[#This Row],[Quantity]],Table_PI[[#This Row],[List 1]],Table_PI[[#This Row],[List 2]],Table_PI[[#This Row],[List 3]],Table_PI[[#This Row],[Size]],Table_PI[[#This Row],[Input 1]],Table_PI[[#This Row],[Input 2]],Table_PI[[#This Row],[Input 3]],Table_PI[[#This Row],[Input 4]],'Customer Information'!$AR$12,2,ROW()),\"No Rebate\"),\"No Rebate\"),0)","v":0},{"$f":"IF(Table_PI[[#This Row],[Hide:\nFormula Name]]<>\"\",IFERROR(IF(MeasureCalc(Table_PI[[#This Row],[Hide:\nFormula Name]],Table_PI[[#This Row],[Quantity]],Table_PI[[#This Row],[List 1]],Table_PI[[#This Row],[List 2]],Table_PI[[#This Row],[List 3]],Table_PI[[#This Row],[Size]],Table_PI[[#This Row],[Input 1]],Table_PI[[#This Row],[Input 2]],Table_PI[[#This Row],[Input 3]],Table_PI[[#This Row],[Input 4]],'Customer Information'!$AR$12,1,ROW())>0,MeasureCalc(Table_PI[[#This Row],[Hide:\nFormula Name]],Table_PI[[#This Row],[Quantity]],Table_PI[[#This Row],[List 1]],Table_PI[[#This Row],[List 2]],Table_PI[[#This Row],[List 3]],Table_PI[[#This Row],[Size]],Table_PI[[#This Row],[Input 1]],Table_PI[[#This Row],[Input 2]],Table_PI[[#This Row],[Input 3]],Table_PI[[#This Row],[Input 4]],'Customer Information'!$AR$12,3,ROW()),\"No Rebate\"),\"No Rebate\"),0)","v":0},{"$f":"IF(Table_PI[[#This Row],[Hide:\nFormula Name]]<>\"\",IFERROR(IF(MeasureCalc(Table_PI[[#This Row],[Hide:\nFormula Name]],Table_PI[[#This Row],[Quantity]],Table_PI[[#This Row],[List 1]],Table_PI[[#This Row],[List 2]],Table_PI[[#This Row],[List 3]],Table_PI[[#This Row],[Size]],Table_PI[[#This Row],[Input 1]],Table_PI[[#This Row],[Input 2]],Table_PI[[#This Row],[Input 3]],Table_PI[[#This Row],[Input 4]],'Customer Information'!$AR$12,1,ROW())>0,MeasureCalc(Table_PI[[#This Row],[Hide:\nFormula Name]],Table_PI[[#This Row],[Quantity]],Table_PI[[#This Row],[List 1]],Table_PI[[#This Row],[List 2]],Table_PI[[#This Row],[List 3]],Table_PI[[#This Row],[Size]],Table_PI[[#This Row],[Input 1]],Table_PI[[#This Row],[Input 2]],Table_PI[[#This Row],[Input 3]],Table_PI[[#This Row],[Input 4]],'Customer Information'!$AR$12,4,ROW()),\"No Rebate\"),\"No Rebate\"),0)","v":0},{"$f":"IF(Table_PI[[#This Row],[Hide:\nFormula Name]]<>\"\",IFERROR(IF(MeasureCalc(Table_PI[[#This Row],[Hide:\nFormula Name]],Table_PI[[#This Row],[Quantity]],Table_PI[[#This Row],[List 1]],Table_PI[[#This Row],[List 2]],Table_PI[[#This Row],[List 3]],Table_PI[[#This Row],[Size]],Table_PI[[#This Row],[Input 1]],Table_PI[[#This Row],[Input 2]],Table_PI[[#This Row],[Input 3]],Table_PI[[#This Row],[Input 4]],'Customer Information'!$AR$12,1,ROW())>0,MeasureCalc(Table_PI[[#This Row],[Hide:\nFormula Name]],Table_PI[[#This Row],[Quantity]],Table_PI[[#This Row],[List 1]],Table_PI[[#This Row],[List 2]],Table_PI[[#This Row],[List 3]],Table_PI[[#This Row],[Size]],Table_PI[[#This Row],[Input 1]],Table_PI[[#This Row],[Input 2]],Table_PI[[#This Row],[Input 3]],Table_PI[[#This Row],[Input 4]],'Customer Information'!$AR$12,5,ROW()),\"No Rebate\"),\"No Rebate\"),0)","v":0},{"$f":"IF(Table_PI[[#This Row],[Hide:\nFormula Name]]<>\"\",IFERROR(IF(MeasureCalc(Table_PI[[#This Row],[Hide:\nFormula Name]],Table_PI[[#This Row],[Quantity]],Table_PI[[#This Row],[List 1]],Table_PI[[#This Row],[List 2]],Table_PI[[#This Row],[List 3]],Table_PI[[#This Row],[Size]],Table_PI[[#This Row],[Input 1]],Table_PI[[#This Row],[Input 2]],Table_PI[[#This Row],[Input 3]],Table_PI[[#This Row],[Input 4]],'Customer Information'!$AR$12,1,ROW())>0,MeasureCalc(Table_PI[[#This Row],[Hide:\nFormula Name]],Table_PI[[#This Row],[Quantity]],Table_PI[[#This Row],[List 1]],Table_PI[[#This Row],[List 2]],Table_PI[[#This Row],[List 3]],Table_PI[[#This Row],[Size]],Table_PI[[#This Row],[Input 1]],Table_PI[[#This Row],[Input 2]],Table_PI[[#This Row],[Input 3]],Table_PI[[#This Row],[Input 4]],'Customer Information'!$AR$12,6,ROW()),\"No Rebate\"),\"No Rebate\"),0)","v":0},{"$f":"IF(Table_PI[[#This Row],[Hide:\nFormula Name]]<>\"\",IFERROR(IF(MeasureCalc(Table_PI[[#This Row],[Hide:\nFormula Name]],Table_PI[[#This Row],[Quantity]],Table_PI[[#This Row],[List 1]],Table_PI[[#This Row],[List 2]],Table_PI[[#This Row],[List 3]],Table_PI[[#This Row],[Size]],Table_PI[[#This Row],[Input 1]],Table_PI[[#This Row],[Input 2]],Table_PI[[#This Row],[Input 3]],Table_PI[[#This Row],[Input 4]],'Customer Information'!$AR$12,1,ROW())>0,MeasureCalc(Table_PI[[#This Row],[Hide:\nFormula Name]],Table_PI[[#This Row],[Quantity]],Table_PI[[#This Row],[List 1]],Table_PI[[#This Row],[List 2]],Table_PI[[#This Row],[List 3]],Table_PI[[#This Row],[Size]],Table_PI[[#This Row],[Input 1]],Table_PI[[#This Row],[Input 2]],Table_PI[[#This Row],[Input 3]],Table_PI[[#This Row],[Input 4]],'Customer Information'!$AR$12,7,ROW()),\"No Rebate\"),\"No Rebate\"),0)","v":0},{"$f":"IF(Table_PI[[#This Row],[Hide:\nFormula Name]]<>\"\",IFERROR(IF(MeasureCalc(Table_PI[[#This Row],[Hide:\nFormula Name]],Table_PI[[#This Row],[Quantity]],Table_PI[[#This Row],[List 1]],Table_PI[[#This Row],[List 2]],Table_PI[[#This Row],[List 3]],Table_PI[[#This Row],[Size]],Table_PI[[#This Row],[Input 1]],Table_PI[[#This Row],[Input 2]],Table_PI[[#This Row],[Input 3]],Table_PI[[#This Row],[Input 4]],'Customer Information'!$AR$12,1,ROW())>0,MeasureCalc(Table_PI[[#This Row],[Hide:\nFormula Name]],Table_PI[[#This Row],[Quantity]],Table_PI[[#This Row],[List 1]],Table_PI[[#This Row],[List 2]],Table_PI[[#This Row],[List 3]],Table_PI[[#This Row],[Size]],Table_PI[[#This Row],[Input 1]],Table_PI[[#This Row],[Input 2]],Table_PI[[#This Row],[Input 3]],Table_PI[[#This Row],[Input 4]],'Customer Information'!$AR$12,8,ROW()),\"No Rebate\"),\"No Rebate\"),0)","v":0},{"$f":"IF(Table_PI[[#This Row],[Hide:\nFormula Name]]<>\"\",IF(AND(Table_PI[[#This Row],[Hide:\nFormula Name]]<>\"\",OR(Table_PI[[#This Row],[Rebate]]>0,Table_PI[[#This Row],[Rebate]]=\"No Rebate\")),TRUE,\"MI: Line Item \" & $A180),\"\")","v":""}]
[{"$f":"IF(Table_PI[[#This Row],[Hide:\nFormula Name]]<>\"\",MAX($A$2:A180)+1,\"\")","v":""},null,null,null,null,null,null,null,null,null,null,null,null,null,null,{"$f":"IFERROR(VLOOKUP(Table_PI[[#This Row],[Measure]],'Equipment Lookups'!$C$3:$D$23,2,FALSE),\"\")","v":""},{"$f":"IF(Table_PI[[#This Row],[Hide:\nFormula Name]]<>\"\",IFERROR(IF(MeasureCalc(Table_PI[[#This Row],[Hide:\nFormula Name]],Table_PI[[#This Row],[Quantity]],Table_PI[[#This Row],[List 1]],Table_PI[[#This Row],[List 2]],Table_PI[[#This Row],[List 3]],Table_PI[[#This Row],[Size]],Table_PI[[#This Row],[Input 1]],Table_PI[[#This Row],[Input 2]],Table_PI[[#This Row],[Input 3]],Table_PI[[#This Row],[Input 4]],'Customer Information'!$AR$12,1,ROW())>0,MeasureCalc(Table_PI[[#This Row],[Hide:\nFormula Name]],Table_PI[[#This Row],[Quantity]],Table_PI[[#This Row],[List 1]],Table_PI[[#This Row],[List 2]],Table_PI[[#This Row],[List 3]],Table_PI[[#This Row],[Size]],Table_PI[[#This Row],[Input 1]],Table_PI[[#This Row],[Input 2]],Table_PI[[#This Row],[Input 3]],Table_PI[[#This Row],[Input 4]],'Customer Information'!$AR$12,1,ROW()),\"No Rebate\"),\"No Rebate\"),0)","v":0},{"$f":"IF(Table_PI[[#This Row],[Hide:\nFormula Name]]<>\"\",IFERROR(IF(MeasureCalc(Table_PI[[#This Row],[Hide:\nFormula Name]],Table_PI[[#This Row],[Quantity]],Table_PI[[#This Row],[List 1]],Table_PI[[#This Row],[List 2]],Table_PI[[#This Row],[List 3]],Table_PI[[#This Row],[Size]],Table_PI[[#This Row],[Input 1]],Table_PI[[#This Row],[Input 2]],Table_PI[[#This Row],[Input 3]],Table_PI[[#This Row],[Input 4]],'Customer Information'!$AR$12,1,ROW())>0,MeasureCalc(Table_PI[[#This Row],[Hide:\nFormula Name]],Table_PI[[#This Row],[Quantity]],Table_PI[[#This Row],[List 1]],Table_PI[[#This Row],[List 2]],Table_PI[[#This Row],[List 3]],Table_PI[[#This Row],[Size]],Table_PI[[#This Row],[Input 1]],Table_PI[[#This Row],[Input 2]],Table_PI[[#This Row],[Input 3]],Table_PI[[#This Row],[Input 4]],'Customer Information'!$AR$12,2,ROW()),\"No Rebate\"),\"No Rebate\"),0)","v":0},{"$f":"IF(Table_PI[[#This Row],[Hide:\nFormula Name]]<>\"\",IFERROR(IF(MeasureCalc(Table_PI[[#This Row],[Hide:\nFormula Name]],Table_PI[[#This Row],[Quantity]],Table_PI[[#This Row],[List 1]],Table_PI[[#This Row],[List 2]],Table_PI[[#This Row],[List 3]],Table_PI[[#This Row],[Size]],Table_PI[[#This Row],[Input 1]],Table_PI[[#This Row],[Input 2]],Table_PI[[#This Row],[Input 3]],Table_PI[[#This Row],[Input 4]],'Customer Information'!$AR$12,1,ROW())>0,MeasureCalc(Table_PI[[#This Row],[Hide:\nFormula Name]],Table_PI[[#This Row],[Quantity]],Table_PI[[#This Row],[List 1]],Table_PI[[#This Row],[List 2]],Table_PI[[#This Row],[List 3]],Table_PI[[#This Row],[Size]],Table_PI[[#This Row],[Input 1]],Table_PI[[#This Row],[Input 2]],Table_PI[[#This Row],[Input 3]],Table_PI[[#This Row],[Input 4]],'Customer Information'!$AR$12,3,ROW()),\"No Rebate\"),\"No Rebate\"),0)","v":0},{"$f":"IF(Table_PI[[#This Row],[Hide:\nFormula Name]]<>\"\",IFERROR(IF(MeasureCalc(Table_PI[[#This Row],[Hide:\nFormula Name]],Table_PI[[#This Row],[Quantity]],Table_PI[[#This Row],[List 1]],Table_PI[[#This Row],[List 2]],Table_PI[[#This Row],[List 3]],Table_PI[[#This Row],[Size]],Table_PI[[#This Row],[Input 1]],Table_PI[[#This Row],[Input 2]],Table_PI[[#This Row],[Input 3]],Table_PI[[#This Row],[Input 4]],'Customer Information'!$AR$12,1,ROW())>0,MeasureCalc(Table_PI[[#This Row],[Hide:\nFormula Name]],Table_PI[[#This Row],[Quantity]],Table_PI[[#This Row],[List 1]],Table_PI[[#This Row],[List 2]],Table_PI[[#This Row],[List 3]],Table_PI[[#This Row],[Size]],Table_PI[[#This Row],[Input 1]],Table_PI[[#This Row],[Input 2]],Table_PI[[#This Row],[Input 3]],Table_PI[[#This Row],[Input 4]],'Customer Information'!$AR$12,4,ROW()),\"No Rebate\"),\"No Rebate\"),0)","v":0},{"$f":"IF(Table_PI[[#This Row],[Hide:\nFormula Name]]<>\"\",IFERROR(IF(MeasureCalc(Table_PI[[#This Row],[Hide:\nFormula Name]],Table_PI[[#This Row],[Quantity]],Table_PI[[#This Row],[List 1]],Table_PI[[#This Row],[List 2]],Table_PI[[#This Row],[List 3]],Table_PI[[#This Row],[Size]],Table_PI[[#This Row],[Input 1]],Table_PI[[#This Row],[Input 2]],Table_PI[[#This Row],[Input 3]],Table_PI[[#This Row],[Input 4]],'Customer Information'!$AR$12,1,ROW())>0,MeasureCalc(Table_PI[[#This Row],[Hide:\nFormula Name]],Table_PI[[#This Row],[Quantity]],Table_PI[[#This Row],[List 1]],Table_PI[[#This Row],[List 2]],Table_PI[[#This Row],[List 3]],Table_PI[[#This Row],[Size]],Table_PI[[#This Row],[Input 1]],Table_PI[[#This Row],[Input 2]],Table_PI[[#This Row],[Input 3]],Table_PI[[#This Row],[Input 4]],'Customer Information'!$AR$12,5,ROW()),\"No Rebate\"),\"No Rebate\"),0)","v":0},{"$f":"IF(Table_PI[[#This Row],[Hide:\nFormula Name]]<>\"\",IFERROR(IF(MeasureCalc(Table_PI[[#This Row],[Hide:\nFormula Name]],Table_PI[[#This Row],[Quantity]],Table_PI[[#This Row],[List 1]],Table_PI[[#This Row],[List 2]],Table_PI[[#This Row],[List 3]],Table_PI[[#This Row],[Size]],Table_PI[[#This Row],[Input 1]],Table_PI[[#This Row],[Input 2]],Table_PI[[#This Row],[Input 3]],Table_PI[[#This Row],[Input 4]],'Customer Information'!$AR$12,1,ROW())>0,MeasureCalc(Table_PI[[#This Row],[Hide:\nFormula Name]],Table_PI[[#This Row],[Quantity]],Table_PI[[#This Row],[List 1]],Table_PI[[#This Row],[List 2]],Table_PI[[#This Row],[List 3]],Table_PI[[#This Row],[Size]],Table_PI[[#This Row],[Input 1]],Table_PI[[#This Row],[Input 2]],Table_PI[[#This Row],[Input 3]],Table_PI[[#This Row],[Input 4]],'Customer Information'!$AR$12,6,ROW()),\"No Rebate\"),\"No Rebate\"),0)","v":0},{"$f":"IF(Table_PI[[#This Row],[Hide:\nFormula Name]]<>\"\",IFERROR(IF(MeasureCalc(Table_PI[[#This Row],[Hide:\nFormula Name]],Table_PI[[#This Row],[Quantity]],Table_PI[[#This Row],[List 1]],Table_PI[[#This Row],[List 2]],Table_PI[[#This Row],[List 3]],Table_PI[[#This Row],[Size]],Table_PI[[#This Row],[Input 1]],Table_PI[[#This Row],[Input 2]],Table_PI[[#This Row],[Input 3]],Table_PI[[#This Row],[Input 4]],'Customer Information'!$AR$12,1,ROW())>0,MeasureCalc(Table_PI[[#This Row],[Hide:\nFormula Name]],Table_PI[[#This Row],[Quantity]],Table_PI[[#This Row],[List 1]],Table_PI[[#This Row],[List 2]],Table_PI[[#This Row],[List 3]],Table_PI[[#This Row],[Size]],Table_PI[[#This Row],[Input 1]],Table_PI[[#This Row],[Input 2]],Table_PI[[#This Row],[Input 3]],Table_PI[[#This Row],[Input 4]],'Customer Information'!$AR$12,7,ROW()),\"No Rebate\"),\"No Rebate\"),0)","v":0},{"$f":"IF(Table_PI[[#This Row],[Hide:\nFormula Name]]<>\"\",IFERROR(IF(MeasureCalc(Table_PI[[#This Row],[Hide:\nFormula Name]],Table_PI[[#This Row],[Quantity]],Table_PI[[#This Row],[List 1]],Table_PI[[#This Row],[List 2]],Table_PI[[#This Row],[List 3]],Table_PI[[#This Row],[Size]],Table_PI[[#This Row],[Input 1]],Table_PI[[#This Row],[Input 2]],Table_PI[[#This Row],[Input 3]],Table_PI[[#This Row],[Input 4]],'Customer Information'!$AR$12,1,ROW())>0,MeasureCalc(Table_PI[[#This Row],[Hide:\nFormula Name]],Table_PI[[#This Row],[Quantity]],Table_PI[[#This Row],[List 1]],Table_PI[[#This Row],[List 2]],Table_PI[[#This Row],[List 3]],Table_PI[[#This Row],[Size]],Table_PI[[#This Row],[Input 1]],Table_PI[[#This Row],[Input 2]],Table_PI[[#This Row],[Input 3]],Table_PI[[#This Row],[Input 4]],'Customer Information'!$AR$12,8,ROW()),\"No Rebate\"),\"No Rebate\"),0)","v":0},{"$f":"IF(Table_PI[[#This Row],[Hide:\nFormula Name]]<>\"\",IF(AND(Table_PI[[#This Row],[Hide:\nFormula Name]]<>\"\",OR(Table_PI[[#This Row],[Rebate]]>0,Table_PI[[#This Row],[Rebate]]=\"No Rebate\")),TRUE,\"MI: Line Item \" & $A181),\"\")","v":""}]
[{"$f":"IF(Table_PI[[#This Row],[Hide:\nFormula Name]]<>\"\",MAX($A$2:A181)+1,\"\")","v":""},null,null,null,null,null,null,null,null,null,null,null,null,null,null,{"$f":"IFERROR(VLOOKUP(Table_PI[[#This Row],[Measure]],'Equipment Lookups'!$C$3:$D$23,2,FALSE),\"\")","v":""},{"$f":"IF(Table_PI[[#This Row],[Hide:\nFormula Name]]<>\"\",IFERROR(IF(MeasureCalc(Table_PI[[#This Row],[Hide:\nFormula Name]],Table_PI[[#This Row],[Quantity]],Table_PI[[#This Row],[List 1]],Table_PI[[#This Row],[List 2]],Table_PI[[#This Row],[List 3]],Table_PI[[#This Row],[Size]],Table_PI[[#This Row],[Input 1]],Table_PI[[#This Row],[Input 2]],Table_PI[[#This Row],[Input 3]],Table_PI[[#This Row],[Input 4]],'Customer Information'!$AR$12,1,ROW())>0,MeasureCalc(Table_PI[[#This Row],[Hide:\nFormula Name]],Table_PI[[#This Row],[Quantity]],Table_PI[[#This Row],[List 1]],Table_PI[[#This Row],[List 2]],Table_PI[[#This Row],[List 3]],Table_PI[[#This Row],[Size]],Table_PI[[#This Row],[Input 1]],Table_PI[[#This Row],[Input 2]],Table_PI[[#This Row],[Input 3]],Table_PI[[#This Row],[Input 4]],'Customer Information'!$AR$12,1,ROW()),\"No Rebate\"),\"No Rebate\"),0)","v":0},{"$f":"IF(Table_PI[[#This Row],[Hide:\nFormula Name]]<>\"\",IFERROR(IF(MeasureCalc(Table_PI[[#This Row],[Hide:\nFormula Name]],Table_PI[[#This Row],[Quantity]],Table_PI[[#This Row],[List 1]],Table_PI[[#This Row],[List 2]],Table_PI[[#This Row],[List 3]],Table_PI[[#This Row],[Size]],Table_PI[[#This Row],[Input 1]],Table_PI[[#This Row],[Input 2]],Table_PI[[#This Row],[Input 3]],Table_PI[[#This Row],[Input 4]],'Customer Information'!$AR$12,1,ROW())>0,MeasureCalc(Table_PI[[#This Row],[Hide:\nFormula Name]],Table_PI[[#This Row],[Quantity]],Table_PI[[#This Row],[List 1]],Table_PI[[#This Row],[List 2]],Table_PI[[#This Row],[List 3]],Table_PI[[#This Row],[Size]],Table_PI[[#This Row],[Input 1]],Table_PI[[#This Row],[Input 2]],Table_PI[[#This Row],[Input 3]],Table_PI[[#This Row],[Input 4]],'Customer Information'!$AR$12,2,ROW()),\"No Rebate\"),\"No Rebate\"),0)","v":0},{"$f":"IF(Table_PI[[#This Row],[Hide:\nFormula Name]]<>\"\",IFERROR(IF(MeasureCalc(Table_PI[[#This Row],[Hide:\nFormula Name]],Table_PI[[#This Row],[Quantity]],Table_PI[[#This Row],[List 1]],Table_PI[[#This Row],[List 2]],Table_PI[[#This Row],[List 3]],Table_PI[[#This Row],[Size]],Table_PI[[#This Row],[Input 1]],Table_PI[[#This Row],[Input 2]],Table_PI[[#This Row],[Input 3]],Table_PI[[#This Row],[Input 4]],'Customer Information'!$AR$12,1,ROW())>0,MeasureCalc(Table_PI[[#This Row],[Hide:\nFormula Name]],Table_PI[[#This Row],[Quantity]],Table_PI[[#This Row],[List 1]],Table_PI[[#This Row],[List 2]],Table_PI[[#This Row],[List 3]],Table_PI[[#This Row],[Size]],Table_PI[[#This Row],[Input 1]],Table_PI[[#This Row],[Input 2]],Table_PI[[#This Row],[Input 3]],Table_PI[[#This Row],[Input 4]],'Customer Information'!$AR$12,3,ROW()),\"No Rebate\"),\"No Rebate\"),0)","v":0},{"$f":"IF(Table_PI[[#This Row],[Hide:\nFormula Name]]<>\"\",IFERROR(IF(MeasureCalc(Table_PI[[#This Row],[Hide:\nFormula Name]],Table_PI[[#This Row],[Quantity]],Table_PI[[#This Row],[List 1]],Table_PI[[#This Row],[List 2]],Table_PI[[#This Row],[List 3]],Table_PI[[#This Row],[Size]],Table_PI[[#This Row],[Input 1]],Table_PI[[#This Row],[Input 2]],Table_PI[[#This Row],[Input 3]],Table_PI[[#This Row],[Input 4]],'Customer Information'!$AR$12,1,ROW())>0,MeasureCalc(Table_PI[[#This Row],[Hide:\nFormula Name]],Table_PI[[#This Row],[Quantity]],Table_PI[[#This Row],[List 1]],Table_PI[[#This Row],[List 2]],Table_PI[[#This Row],[List 3]],Table_PI[[#This Row],[Size]],Table_PI[[#This Row],[Input 1]],Table_PI[[#This Row],[Input 2]],Table_PI[[#This Row],[Input 3]],Table_PI[[#This Row],[Input 4]],'Customer Information'!$AR$12,4,ROW()),\"No Rebate\"),\"No Rebate\"),0)","v":0},{"$f":"IF(Table_PI[[#This Row],[Hide:\nFormula Name]]<>\"\",IFERROR(IF(MeasureCalc(Table_PI[[#This Row],[Hide:\nFormula Name]],Table_PI[[#This Row],[Quantity]],Table_PI[[#This Row],[List 1]],Table_PI[[#This Row],[List 2]],Table_PI[[#This Row],[List 3]],Table_PI[[#This Row],[Size]],Table_PI[[#This Row],[Input 1]],Table_PI[[#This Row],[Input 2]],Table_PI[[#This Row],[Input 3]],Table_PI[[#This Row],[Input 4]],'Customer Information'!$AR$12,1,ROW())>0,MeasureCalc(Table_PI[[#This Row],[Hide:\nFormula Name]],Table_PI[[#This Row],[Quantity]],Table_PI[[#This Row],[List 1]],Table_PI[[#This Row],[List 2]],Table_PI[[#This Row],[List 3]],Table_PI[[#This Row],[Size]],Table_PI[[#This Row],[Input 1]],Table_PI[[#This Row],[Input 2]],Table_PI[[#This Row],[Input 3]],Table_PI[[#This Row],[Input 4]],'Customer Information'!$AR$12,5,ROW()),\"No Rebate\"),\"No Rebate\"),0)","v":0},{"$f":"IF(Table_PI[[#This Row],[Hide:\nFormula Name]]<>\"\",IFERROR(IF(MeasureCalc(Table_PI[[#This Row],[Hide:\nFormula Name]],Table_PI[[#This Row],[Quantity]],Table_PI[[#This Row],[List 1]],Table_PI[[#This Row],[List 2]],Table_PI[[#This Row],[List 3]],Table_PI[[#This Row],[Size]],Table_PI[[#This Row],[Input 1]],Table_PI[[#This Row],[Input 2]],Table_PI[[#This Row],[Input 3]],Table_PI[[#This Row],[Input 4]],'Customer Information'!$AR$12,1,ROW())>0,MeasureCalc(Table_PI[[#This Row],[Hide:\nFormula Name]],Table_PI[[#This Row],[Quantity]],Table_PI[[#This Row],[List 1]],Table_PI[[#This Row],[List 2]],Table_PI[[#This Row],[List 3]],Table_PI[[#This Row],[Size]],Table_PI[[#This Row],[Input 1]],Table_PI[[#This Row],[Input 2]],Table_PI[[#This Row],[Input 3]],Table_PI[[#This Row],[Input 4]],'Customer Information'!$AR$12,6,ROW()),\"No Rebate\"),\"No Rebate\"),0)","v":0},{"$f":"IF(Table_PI[[#This Row],[Hide:\nFormula Name]]<>\"\",IFERROR(IF(MeasureCalc(Table_PI[[#This Row],[Hide:\nFormula Name]],Table_PI[[#This Row],[Quantity]],Table_PI[[#This Row],[List 1]],Table_PI[[#This Row],[List 2]],Table_PI[[#This Row],[List 3]],Table_PI[[#This Row],[Size]],Table_PI[[#This Row],[Input 1]],Table_PI[[#This Row],[Input 2]],Table_PI[[#This Row],[Input 3]],Table_PI[[#This Row],[Input 4]],'Customer Information'!$AR$12,1,ROW())>0,MeasureCalc(Table_PI[[#This Row],[Hide:\nFormula Name]],Table_PI[[#This Row],[Quantity]],Table_PI[[#This Row],[List 1]],Table_PI[[#This Row],[List 2]],Table_PI[[#This Row],[List 3]],Table_PI[[#This Row],[Size]],Table_PI[[#This Row],[Input 1]],Table_PI[[#This Row],[Input 2]],Table_PI[[#This Row],[Input 3]],Table_PI[[#This Row],[Input 4]],'Customer Information'!$AR$12,7,ROW()),\"No Rebate\"),\"No Rebate\"),0)","v":0},{"$f":"IF(Table_PI[[#This Row],[Hide:\nFormula Name]]<>\"\",IFERROR(IF(MeasureCalc(Table_PI[[#This Row],[Hide:\nFormula Name]],Table_PI[[#This Row],[Quantity]],Table_PI[[#This Row],[List 1]],Table_PI[[#This Row],[List 2]],Table_PI[[#This Row],[List 3]],Table_PI[[#This Row],[Size]],Table_PI[[#This Row],[Input 1]],Table_PI[[#This Row],[Input 2]],Table_PI[[#This Row],[Input 3]],Table_PI[[#This Row],[Input 4]],'Customer Information'!$AR$12,1,ROW())>0,MeasureCalc(Table_PI[[#This Row],[Hide:\nFormula Name]],Table_PI[[#This Row],[Quantity]],Table_PI[[#This Row],[List 1]],Table_PI[[#This Row],[List 2]],Table_PI[[#This Row],[List 3]],Table_PI[[#This Row],[Size]],Table_PI[[#This Row],[Input 1]],Table_PI[[#This Row],[Input 2]],Table_PI[[#This Row],[Input 3]],Table_PI[[#This Row],[Input 4]],'Customer Information'!$AR$12,8,ROW()),\"No Rebate\"),\"No Rebate\"),0)","v":0},{"$f":"IF(Table_PI[[#This Row],[Hide:\nFormula Name]]<>\"\",IF(AND(Table_PI[[#This Row],[Hide:\nFormula Name]]<>\"\",OR(Table_PI[[#This Row],[Rebate]]>0,Table_PI[[#This Row],[Rebate]]=\"No Rebate\")),TRUE,\"MI: Line Item \" & $A182),\"\")","v":""}]
[{"$f":"IF(Table_PI[[#This Row],[Hide:\nFormula Name]]<>\"\",MAX($A$2:A182)+1,\"\")","v":""},null,null,null,null,null,null,null,null,null,null,null,null,null,null,{"$f":"IFERROR(VLOOKUP(Table_PI[[#This Row],[Measure]],'Equipment Lookups'!$C$3:$D$23,2,FALSE),\"\")","v":""},{"$f":"IF(Table_PI[[#This Row],[Hide:\nFormula Name]]<>\"\",IFERROR(IF(MeasureCalc(Table_PI[[#This Row],[Hide:\nFormula Name]],Table_PI[[#This Row],[Quantity]],Table_PI[[#This Row],[List 1]],Table_PI[[#This Row],[List 2]],Table_PI[[#This Row],[List 3]],Table_PI[[#This Row],[Size]],Table_PI[[#This Row],[Input 1]],Table_PI[[#This Row],[Input 2]],Table_PI[[#This Row],[Input 3]],Table_PI[[#This Row],[Input 4]],'Customer Information'!$AR$12,1,ROW())>0,MeasureCalc(Table_PI[[#This Row],[Hide:\nFormula Name]],Table_PI[[#This Row],[Quantity]],Table_PI[[#This Row],[List 1]],Table_PI[[#This Row],[List 2]],Table_PI[[#This Row],[List 3]],Table_PI[[#This Row],[Size]],Table_PI[[#This Row],[Input 1]],Table_PI[[#This Row],[Input 2]],Table_PI[[#This Row],[Input 3]],Table_PI[[#This Row],[Input 4]],'Customer Information'!$AR$12,1,ROW()),\"No Rebate\"),\"No Rebate\"),0)","v":0},{"$f":"IF(Table_PI[[#This Row],[Hide:\nFormula Name]]<>\"\",IFERROR(IF(MeasureCalc(Table_PI[[#This Row],[Hide:\nFormula Name]],Table_PI[[#This Row],[Quantity]],Table_PI[[#This Row],[List 1]],Table_PI[[#This Row],[List 2]],Table_PI[[#This Row],[List 3]],Table_PI[[#This Row],[Size]],Table_PI[[#This Row],[Input 1]],Table_PI[[#This Row],[Input 2]],Table_PI[[#This Row],[Input 3]],Table_PI[[#This Row],[Input 4]],'Customer Information'!$AR$12,1,ROW())>0,MeasureCalc(Table_PI[[#This Row],[Hide:\nFormula Name]],Table_PI[[#This Row],[Quantity]],Table_PI[[#This Row],[List 1]],Table_PI[[#This Row],[List 2]],Table_PI[[#This Row],[List 3]],Table_PI[[#This Row],[Size]],Table_PI[[#This Row],[Input 1]],Table_PI[[#This Row],[Input 2]],Table_PI[[#This Row],[Input 3]],Table_PI[[#This Row],[Input 4]],'Customer Information'!$AR$12,2,ROW()),\"No Rebate\"),\"No Rebate\"),0)","v":0},{"$f":"IF(Table_PI[[#This Row],[Hide:\nFormula Name]]<>\"\",IFERROR(IF(MeasureCalc(Table_PI[[#This Row],[Hide:\nFormula Name]],Table_PI[[#This Row],[Quantity]],Table_PI[[#This Row],[List 1]],Table_PI[[#This Row],[List 2]],Table_PI[[#This Row],[List 3]],Table_PI[[#This Row],[Size]],Table_PI[[#This Row],[Input 1]],Table_PI[[#This Row],[Input 2]],Table_PI[[#This Row],[Input 3]],Table_PI[[#This Row],[Input 4]],'Customer Information'!$AR$12,1,ROW())>0,MeasureCalc(Table_PI[[#This Row],[Hide:\nFormula Name]],Table_PI[[#This Row],[Quantity]],Table_PI[[#This Row],[List 1]],Table_PI[[#This Row],[List 2]],Table_PI[[#This Row],[List 3]],Table_PI[[#This Row],[Size]],Table_PI[[#This Row],[Input 1]],Table_PI[[#This Row],[Input 2]],Table_PI[[#This Row],[Input 3]],Table_PI[[#This Row],[Input 4]],'Customer Information'!$AR$12,3,ROW()),\"No Rebate\"),\"No Rebate\"),0)","v":0},{"$f":"IF(Table_PI[[#This Row],[Hide:\nFormula Name]]<>\"\",IFERROR(IF(MeasureCalc(Table_PI[[#This Row],[Hide:\nFormula Name]],Table_PI[[#This Row],[Quantity]],Table_PI[[#This Row],[List 1]],Table_PI[[#This Row],[List 2]],Table_PI[[#This Row],[List 3]],Table_PI[[#This Row],[Size]],Table_PI[[#This Row],[Input 1]],Table_PI[[#This Row],[Input 2]],Table_PI[[#This Row],[Input 3]],Table_PI[[#This Row],[Input 4]],'Customer Information'!$AR$12,1,ROW())>0,MeasureCalc(Table_PI[[#This Row],[Hide:\nFormula Name]],Table_PI[[#This Row],[Quantity]],Table_PI[[#This Row],[List 1]],Table_PI[[#This Row],[List 2]],Table_PI[[#This Row],[List 3]],Table_PI[[#This Row],[Size]],Table_PI[[#This Row],[Input 1]],Table_PI[[#This Row],[Input 2]],Table_PI[[#This Row],[Input 3]],Table_PI[[#This Row],[Input 4]],'Customer Information'!$AR$12,4,ROW()),\"No Rebate\"),\"No Rebate\"),0)","v":0},{"$f":"IF(Table_PI[[#This Row],[Hide:\nFormula Name]]<>\"\",IFERROR(IF(MeasureCalc(Table_PI[[#This Row],[Hide:\nFormula Name]],Table_PI[[#This Row],[Quantity]],Table_PI[[#This Row],[List 1]],Table_PI[[#This Row],[List 2]],Table_PI[[#This Row],[List 3]],Table_PI[[#This Row],[Size]],Table_PI[[#This Row],[Input 1]],Table_PI[[#This Row],[Input 2]],Table_PI[[#This Row],[Input 3]],Table_PI[[#This Row],[Input 4]],'Customer Information'!$AR$12,1,ROW())>0,MeasureCalc(Table_PI[[#This Row],[Hide:\nFormula Name]],Table_PI[[#This Row],[Quantity]],Table_PI[[#This Row],[List 1]],Table_PI[[#This Row],[List 2]],Table_PI[[#This Row],[List 3]],Table_PI[[#This Row],[Size]],Table_PI[[#This Row],[Input 1]],Table_PI[[#This Row],[Input 2]],Table_PI[[#This Row],[Input 3]],Table_PI[[#This Row],[Input 4]],'Customer Information'!$AR$12,5,ROW()),\"No Rebate\"),\"No Rebate\"),0)","v":0},{"$f":"IF(Table_PI[[#This Row],[Hide:\nFormula Name]]<>\"\",IFERROR(IF(MeasureCalc(Table_PI[[#This Row],[Hide:\nFormula Name]],Table_PI[[#This Row],[Quantity]],Table_PI[[#This Row],[List 1]],Table_PI[[#This Row],[List 2]],Table_PI[[#This Row],[List 3]],Table_PI[[#This Row],[Size]],Table_PI[[#This Row],[Input 1]],Table_PI[[#This Row],[Input 2]],Table_PI[[#This Row],[Input 3]],Table_PI[[#This Row],[Input 4]],'Customer Information'!$AR$12,1,ROW())>0,MeasureCalc(Table_PI[[#This Row],[Hide:\nFormula Name]],Table_PI[[#This Row],[Quantity]],Table_PI[[#This Row],[List 1]],Table_PI[[#This Row],[List 2]],Table_PI[[#This Row],[List 3]],Table_PI[[#This Row],[Size]],Table_PI[[#This Row],[Input 1]],Table_PI[[#This Row],[Input 2]],Table_PI[[#This Row],[Input 3]],Table_PI[[#This Row],[Input 4]],'Customer Information'!$AR$12,6,ROW()),\"No Rebate\"),\"No Rebate\"),0)","v":0},{"$f":"IF(Table_PI[[#This Row],[Hide:\nFormula Name]]<>\"\",IFERROR(IF(MeasureCalc(Table_PI[[#This Row],[Hide:\nFormula Name]],Table_PI[[#This Row],[Quantity]],Table_PI[[#This Row],[List 1]],Table_PI[[#This Row],[List 2]],Table_PI[[#This Row],[List 3]],Table_PI[[#This Row],[Size]],Table_PI[[#This Row],[Input 1]],Table_PI[[#This Row],[Input 2]],Table_PI[[#This Row],[Input 3]],Table_PI[[#This Row],[Input 4]],'Customer Information'!$AR$12,1,ROW())>0,MeasureCalc(Table_PI[[#This Row],[Hide:\nFormula Name]],Table_PI[[#This Row],[Quantity]],Table_PI[[#This Row],[List 1]],Table_PI[[#This Row],[List 2]],Table_PI[[#This Row],[List 3]],Table_PI[[#This Row],[Size]],Table_PI[[#This Row],[Input 1]],Table_PI[[#This Row],[Input 2]],Table_PI[[#This Row],[Input 3]],Table_PI[[#This Row],[Input 4]],'Customer Information'!$AR$12,7,ROW()),\"No Rebate\"),\"No Rebate\"),0)","v":0},{"$f":"IF(Table_PI[[#This Row],[Hide:\nFormula Name]]<>\"\",IFERROR(IF(MeasureCalc(Table_PI[[#This Row],[Hide:\nFormula Name]],Table_PI[[#This Row],[Quantity]],Table_PI[[#This Row],[List 1]],Table_PI[[#This Row],[List 2]],Table_PI[[#This Row],[List 3]],Table_PI[[#This Row],[Size]],Table_PI[[#This Row],[Input 1]],Table_PI[[#This Row],[Input 2]],Table_PI[[#This Row],[Input 3]],Table_PI[[#This Row],[Input 4]],'Customer Information'!$AR$12,1,ROW())>0,MeasureCalc(Table_PI[[#This Row],[Hide:\nFormula Name]],Table_PI[[#This Row],[Quantity]],Table_PI[[#This Row],[List 1]],Table_PI[[#This Row],[List 2]],Table_PI[[#This Row],[List 3]],Table_PI[[#This Row],[Size]],Table_PI[[#This Row],[Input 1]],Table_PI[[#This Row],[Input 2]],Table_PI[[#This Row],[Input 3]],Table_PI[[#This Row],[Input 4]],'Customer Information'!$AR$12,8,ROW()),\"No Rebate\"),\"No Rebate\"),0)","v":0},{"$f":"IF(Table_PI[[#This Row],[Hide:\nFormula Name]]<>\"\",IF(AND(Table_PI[[#This Row],[Hide:\nFormula Name]]<>\"\",OR(Table_PI[[#This Row],[Rebate]]>0,Table_PI[[#This Row],[Rebate]]=\"No Rebate\")),TRUE,\"MI: Line Item \" & $A183),\"\")","v":""}]
[{"$f":"IF(Table_PI[[#This Row],[Hide:\nFormula Name]]<>\"\",MAX($A$2:A183)+1,\"\")","v":""},null,null,null,null,null,null,null,null,null,null,null,null,null,null,{"$f":"IFERROR(VLOOKUP(Table_PI[[#This Row],[Measure]],'Equipment Lookups'!$C$3:$D$23,2,FALSE),\"\")","v":""},{"$f":"IF(Table_PI[[#This Row],[Hide:\nFormula Name]]<>\"\",IFERROR(IF(MeasureCalc(Table_PI[[#This Row],[Hide:\nFormula Name]],Table_PI[[#This Row],[Quantity]],Table_PI[[#This Row],[List 1]],Table_PI[[#This Row],[List 2]],Table_PI[[#This Row],[List 3]],Table_PI[[#This Row],[Size]],Table_PI[[#This Row],[Input 1]],Table_PI[[#This Row],[Input 2]],Table_PI[[#This Row],[Input 3]],Table_PI[[#This Row],[Input 4]],'Customer Information'!$AR$12,1,ROW())>0,MeasureCalc(Table_PI[[#This Row],[Hide:\nFormula Name]],Table_PI[[#This Row],[Quantity]],Table_PI[[#This Row],[List 1]],Table_PI[[#This Row],[List 2]],Table_PI[[#This Row],[List 3]],Table_PI[[#This Row],[Size]],Table_PI[[#This Row],[Input 1]],Table_PI[[#This Row],[Input 2]],Table_PI[[#This Row],[Input 3]],Table_PI[[#This Row],[Input 4]],'Customer Information'!$AR$12,1,ROW()),\"No Rebate\"),\"No Rebate\"),0)","v":0},{"$f":"IF(Table_PI[[#This Row],[Hide:\nFormula Name]]<>\"\",IFERROR(IF(MeasureCalc(Table_PI[[#This Row],[Hide:\nFormula Name]],Table_PI[[#This Row],[Quantity]],Table_PI[[#This Row],[List 1]],Table_PI[[#This Row],[List 2]],Table_PI[[#This Row],[List 3]],Table_PI[[#This Row],[Size]],Table_PI[[#This Row],[Input 1]],Table_PI[[#This Row],[Input 2]],Table_PI[[#This Row],[Input 3]],Table_PI[[#This Row],[Input 4]],'Customer Information'!$AR$12,1,ROW())>0,MeasureCalc(Table_PI[[#This Row],[Hide:\nFormula Name]],Table_PI[[#This Row],[Quantity]],Table_PI[[#This Row],[List 1]],Table_PI[[#This Row],[List 2]],Table_PI[[#This Row],[List 3]],Table_PI[[#This Row],[Size]],Table_PI[[#This Row],[Input 1]],Table_PI[[#This Row],[Input 2]],Table_PI[[#This Row],[Input 3]],Table_PI[[#This Row],[Input 4]],'Customer Information'!$AR$12,2,ROW()),\"No Rebate\"),\"No Rebate\"),0)","v":0},{"$f":"IF(Table_PI[[#This Row],[Hide:\nFormula Name]]<>\"\",IFERROR(IF(MeasureCalc(Table_PI[[#This Row],[Hide:\nFormula Name]],Table_PI[[#This Row],[Quantity]],Table_PI[[#This Row],[List 1]],Table_PI[[#This Row],[List 2]],Table_PI[[#This Row],[List 3]],Table_PI[[#This Row],[Size]],Table_PI[[#This Row],[Input 1]],Table_PI[[#This Row],[Input 2]],Table_PI[[#This Row],[Input 3]],Table_PI[[#This Row],[Input 4]],'Customer Information'!$AR$12,1,ROW())>0,MeasureCalc(Table_PI[[#This Row],[Hide:\nFormula Name]],Table_PI[[#This Row],[Quantity]],Table_PI[[#This Row],[List 1]],Table_PI[[#This Row],[List 2]],Table_PI[[#This Row],[List 3]],Table_PI[[#This Row],[Size]],Table_PI[[#This Row],[Input 1]],Table_PI[[#This Row],[Input 2]],Table_PI[[#This Row],[Input 3]],Table_PI[[#This Row],[Input 4]],'Customer Information'!$AR$12,3,ROW()),\"No Rebate\"),\"No Rebate\"),0)","v":0},{"$f":"IF(Table_PI[[#This Row],[Hide:\nFormula Name]]<>\"\",IFERROR(IF(MeasureCalc(Table_PI[[#This Row],[Hide:\nFormula Name]],Table_PI[[#This Row],[Quantity]],Table_PI[[#This Row],[List 1]],Table_PI[[#This Row],[List 2]],Table_PI[[#This Row],[List 3]],Table_PI[[#This Row],[Size]],Table_PI[[#This Row],[Input 1]],Table_PI[[#This Row],[Input 2]],Table_PI[[#This Row],[Input 3]],Table_PI[[#This Row],[Input 4]],'Customer Information'!$AR$12,1,ROW())>0,MeasureCalc(Table_PI[[#This Row],[Hide:\nFormula Name]],Table_PI[[#This Row],[Quantity]],Table_PI[[#This Row],[List 1]],Table_PI[[#This Row],[List 2]],Table_PI[[#This Row],[List 3]],Table_PI[[#This Row],[Size]],Table_PI[[#This Row],[Input 1]],Table_PI[[#This Row],[Input 2]],Table_PI[[#This Row],[Input 3]],Table_PI[[#This Row],[Input 4]],'Customer Information'!$AR$12,4,ROW()),\"No Rebate\"),\"No Rebate\"),0)","v":0},{"$f":"IF(Table_PI[[#This Row],[Hide:\nFormula Name]]<>\"\",IFERROR(IF(MeasureCalc(Table_PI[[#This Row],[Hide:\nFormula Name]],Table_PI[[#This Row],[Quantity]],Table_PI[[#This Row],[List 1]],Table_PI[[#This Row],[List 2]],Table_PI[[#This Row],[List 3]],Table_PI[[#This Row],[Size]],Table_PI[[#This Row],[Input 1]],Table_PI[[#This Row],[Input 2]],Table_PI[[#This Row],[Input 3]],Table_PI[[#This Row],[Input 4]],'Customer Information'!$AR$12,1,ROW())>0,MeasureCalc(Table_PI[[#This Row],[Hide:\nFormula Name]],Table_PI[[#This Row],[Quantity]],Table_PI[[#This Row],[List 1]],Table_PI[[#This Row],[List 2]],Table_PI[[#This Row],[List 3]],Table_PI[[#This Row],[Size]],Table_PI[[#This Row],[Input 1]],Table_PI[[#This Row],[Input 2]],Table_PI[[#This Row],[Input 3]],Table_PI[[#This Row],[Input 4]],'Customer Information'!$AR$12,5,ROW()),\"No Rebate\"),\"No Rebate\"),0)","v":0},{"$f":"IF(Table_PI[[#This Row],[Hide:\nFormula Name]]<>\"\",IFERROR(IF(MeasureCalc(Table_PI[[#This Row],[Hide:\nFormula Name]],Table_PI[[#This Row],[Quantity]],Table_PI[[#This Row],[List 1]],Table_PI[[#This Row],[List 2]],Table_PI[[#This Row],[List 3]],Table_PI[[#This Row],[Size]],Table_PI[[#This Row],[Input 1]],Table_PI[[#This Row],[Input 2]],Table_PI[[#This Row],[Input 3]],Table_PI[[#This Row],[Input 4]],'Customer Information'!$AR$12,1,ROW())>0,MeasureCalc(Table_PI[[#This Row],[Hide:\nFormula Name]],Table_PI[[#This Row],[Quantity]],Table_PI[[#This Row],[List 1]],Table_PI[[#This Row],[List 2]],Table_PI[[#This Row],[List 3]],Table_PI[[#This Row],[Size]],Table_PI[[#This Row],[Input 1]],Table_PI[[#This Row],[Input 2]],Table_PI[[#This Row],[Input 3]],Table_PI[[#This Row],[Input 4]],'Customer Information'!$AR$12,6,ROW()),\"No Rebate\"),\"No Rebate\"),0)","v":0},{"$f":"IF(Table_PI[[#This Row],[Hide:\nFormula Name]]<>\"\",IFERROR(IF(MeasureCalc(Table_PI[[#This Row],[Hide:\nFormula Name]],Table_PI[[#This Row],[Quantity]],Table_PI[[#This Row],[List 1]],Table_PI[[#This Row],[List 2]],Table_PI[[#This Row],[List 3]],Table_PI[[#This Row],[Size]],Table_PI[[#This Row],[Input 1]],Table_PI[[#This Row],[Input 2]],Table_PI[[#This Row],[Input 3]],Table_PI[[#This Row],[Input 4]],'Customer Information'!$AR$12,1,ROW())>0,MeasureCalc(Table_PI[[#This Row],[Hide:\nFormula Name]],Table_PI[[#This Row],[Quantity]],Table_PI[[#This Row],[List 1]],Table_PI[[#This Row],[List 2]],Table_PI[[#This Row],[List 3]],Table_PI[[#This Row],[Size]],Table_PI[[#This Row],[Input 1]],Table_PI[[#This Row],[Input 2]],Table_PI[[#This Row],[Input 3]],Table_PI[[#This Row],[Input 4]],'Customer Information'!$AR$12,7,ROW()),\"No Rebate\"),\"No Rebate\"),0)","v":0},{"$f":"IF(Table_PI[[#This Row],[Hide:\nFormula Name]]<>\"\",IFERROR(IF(MeasureCalc(Table_PI[[#This Row],[Hide:\nFormula Name]],Table_PI[[#This Row],[Quantity]],Table_PI[[#This Row],[List 1]],Table_PI[[#This Row],[List 2]],Table_PI[[#This Row],[List 3]],Table_PI[[#This Row],[Size]],Table_PI[[#This Row],[Input 1]],Table_PI[[#This Row],[Input 2]],Table_PI[[#This Row],[Input 3]],Table_PI[[#This Row],[Input 4]],'Customer Information'!$AR$12,1,ROW())>0,MeasureCalc(Table_PI[[#This Row],[Hide:\nFormula Name]],Table_PI[[#This Row],[Quantity]],Table_PI[[#This Row],[List 1]],Table_PI[[#This Row],[List 2]],Table_PI[[#This Row],[List 3]],Table_PI[[#This Row],[Size]],Table_PI[[#This Row],[Input 1]],Table_PI[[#This Row],[Input 2]],Table_PI[[#This Row],[Input 3]],Table_PI[[#This Row],[Input 4]],'Customer Information'!$AR$12,8,ROW()),\"No Rebate\"),\"No Rebate\"),0)","v":0},{"$f":"IF(Table_PI[[#This Row],[Hide:\nFormula Name]]<>\"\",IF(AND(Table_PI[[#This Row],[Hide:\nFormula Name]]<>\"\",OR(Table_PI[[#This Row],[Rebate]]>0,Table_PI[[#This Row],[Rebate]]=\"No Rebate\")),TRUE,\"MI: Line Item \" & $A184),\"\")","v":""}]
[{"$f":"IF(Table_PI[[#This Row],[Hide:\nFormula Name]]<>\"\",MAX($A$2:A184)+1,\"\")","v":""},null,null,null,null,null,null,null,null,null,null,null,null,null,null,{"$f":"IFERROR(VLOOKUP(Table_PI[[#This Row],[Measure]],'Equipment Lookups'!$C$3:$D$23,2,FALSE),\"\")","v":""},{"$f":"IF(Table_PI[[#This Row],[Hide:\nFormula Name]]<>\"\",IFERROR(IF(MeasureCalc(Table_PI[[#This Row],[Hide:\nFormula Name]],Table_PI[[#This Row],[Quantity]],Table_PI[[#This Row],[List 1]],Table_PI[[#This Row],[List 2]],Table_PI[[#This Row],[List 3]],Table_PI[[#This Row],[Size]],Table_PI[[#This Row],[Input 1]],Table_PI[[#This Row],[Input 2]],Table_PI[[#This Row],[Input 3]],Table_PI[[#This Row],[Input 4]],'Customer Information'!$AR$12,1,ROW())>0,MeasureCalc(Table_PI[[#This Row],[Hide:\nFormula Name]],Table_PI[[#This Row],[Quantity]],Table_PI[[#This Row],[List 1]],Table_PI[[#This Row],[List 2]],Table_PI[[#This Row],[List 3]],Table_PI[[#This Row],[Size]],Table_PI[[#This Row],[Input 1]],Table_PI[[#This Row],[Input 2]],Table_PI[[#This Row],[Input 3]],Table_PI[[#This Row],[Input 4]],'Customer Information'!$AR$12,1,ROW()),\"No Rebate\"),\"No Rebate\"),0)","v":0},{"$f":"IF(Table_PI[[#This Row],[Hide:\nFormula Name]]<>\"\",IFERROR(IF(MeasureCalc(Table_PI[[#This Row],[Hide:\nFormula Name]],Table_PI[[#This Row],[Quantity]],Table_PI[[#This Row],[List 1]],Table_PI[[#This Row],[List 2]],Table_PI[[#This Row],[List 3]],Table_PI[[#This Row],[Size]],Table_PI[[#This Row],[Input 1]],Table_PI[[#This Row],[Input 2]],Table_PI[[#This Row],[Input 3]],Table_PI[[#This Row],[Input 4]],'Customer Information'!$AR$12,1,ROW())>0,MeasureCalc(Table_PI[[#This Row],[Hide:\nFormula Name]],Table_PI[[#This Row],[Quantity]],Table_PI[[#This Row],[List 1]],Table_PI[[#This Row],[List 2]],Table_PI[[#This Row],[List 3]],Table_PI[[#This Row],[Size]],Table_PI[[#This Row],[Input 1]],Table_PI[[#This Row],[Input 2]],Table_PI[[#This Row],[Input 3]],Table_PI[[#This Row],[Input 4]],'Customer Information'!$AR$12,2,ROW()),\"No Rebate\"),\"No Rebate\"),0)","v":0},{"$f":"IF(Table_PI[[#This Row],[Hide:\nFormula Name]]<>\"\",IFERROR(IF(MeasureCalc(Table_PI[[#This Row],[Hide:\nFormula Name]],Table_PI[[#This Row],[Quantity]],Table_PI[[#This Row],[List 1]],Table_PI[[#This Row],[List 2]],Table_PI[[#This Row],[List 3]],Table_PI[[#This Row],[Size]],Table_PI[[#This Row],[Input 1]],Table_PI[[#This Row],[Input 2]],Table_PI[[#This Row],[Input 3]],Table_PI[[#This Row],[Input 4]],'Customer Information'!$AR$12,1,ROW())>0,MeasureCalc(Table_PI[[#This Row],[Hide:\nFormula Name]],Table_PI[[#This Row],[Quantity]],Table_PI[[#This Row],[List 1]],Table_PI[[#This Row],[List 2]],Table_PI[[#This Row],[List 3]],Table_PI[[#This Row],[Size]],Table_PI[[#This Row],[Input 1]],Table_PI[[#This Row],[Input 2]],Table_PI[[#This Row],[Input 3]],Table_PI[[#This Row],[Input 4]],'Customer Information'!$AR$12,3,ROW()),\"No Rebate\"),\"No Rebate\"),0)","v":0},{"$f":"IF(Table_PI[[#This Row],[Hide:\nFormula Name]]<>\"\",IFERROR(IF(MeasureCalc(Table_PI[[#This Row],[Hide:\nFormula Name]],Table_PI[[#This Row],[Quantity]],Table_PI[[#This Row],[List 1]],Table_PI[[#This Row],[List 2]],Table_PI[[#This Row],[List 3]],Table_PI[[#This Row],[Size]],Table_PI[[#This Row],[Input 1]],Table_PI[[#This Row],[Input 2]],Table_PI[[#This Row],[Input 3]],Table_PI[[#This Row],[Input 4]],'Customer Information'!$AR$12,1,ROW())>0,MeasureCalc(Table_PI[[#This Row],[Hide:\nFormula Name]],Table_PI[[#This Row],[Quantity]],Table_PI[[#This Row],[List 1]],Table_PI[[#This Row],[List 2]],Table_PI[[#This Row],[List 3]],Table_PI[[#This Row],[Size]],Table_PI[[#This Row],[Input 1]],Table_PI[[#This Row],[Input 2]],Table_PI[[#This Row],[Input 3]],Table_PI[[#This Row],[Input 4]],'Customer Information'!$AR$12,4,ROW()),\"No Rebate\"),\"No Rebate\"),0)","v":0},{"$f":"IF(Table_PI[[#This Row],[Hide:\nFormula Name]]<>\"\",IFERROR(IF(MeasureCalc(Table_PI[[#This Row],[Hide:\nFormula Name]],Table_PI[[#This Row],[Quantity]],Table_PI[[#This Row],[List 1]],Table_PI[[#This Row],[List 2]],Table_PI[[#This Row],[List 3]],Table_PI[[#This Row],[Size]],Table_PI[[#This Row],[Input 1]],Table_PI[[#This Row],[Input 2]],Table_PI[[#This Row],[Input 3]],Table_PI[[#This Row],[Input 4]],'Customer Information'!$AR$12,1,ROW())>0,MeasureCalc(Table_PI[[#This Row],[Hide:\nFormula Name]],Table_PI[[#This Row],[Quantity]],Table_PI[[#This Row],[List 1]],Table_PI[[#This Row],[List 2]],Table_PI[[#This Row],[List 3]],Table_PI[[#This Row],[Size]],Table_PI[[#This Row],[Input 1]],Table_PI[[#This Row],[Input 2]],Table_PI[[#This Row],[Input 3]],Table_PI[[#This Row],[Input 4]],'Customer Information'!$AR$12,5,ROW()),\"No Rebate\"),\"No Rebate\"),0)","v":0},{"$f":"IF(Table_PI[[#This Row],[Hide:\nFormula Name]]<>\"\",IFERROR(IF(MeasureCalc(Table_PI[[#This Row],[Hide:\nFormula Name]],Table_PI[[#This Row],[Quantity]],Table_PI[[#This Row],[List 1]],Table_PI[[#This Row],[List 2]],Table_PI[[#This Row],[List 3]],Table_PI[[#This Row],[Size]],Table_PI[[#This Row],[Input 1]],Table_PI[[#This Row],[Input 2]],Table_PI[[#This Row],[Input 3]],Table_PI[[#This Row],[Input 4]],'Customer Information'!$AR$12,1,ROW())>0,MeasureCalc(Table_PI[[#This Row],[Hide:\nFormula Name]],Table_PI[[#This Row],[Quantity]],Table_PI[[#This Row],[List 1]],Table_PI[[#This Row],[List 2]],Table_PI[[#This Row],[List 3]],Table_PI[[#This Row],[Size]],Table_PI[[#This Row],[Input 1]],Table_PI[[#This Row],[Input 2]],Table_PI[[#This Row],[Input 3]],Table_PI[[#This Row],[Input 4]],'Customer Information'!$AR$12,6,ROW()),\"No Rebate\"),\"No Rebate\"),0)","v":0},{"$f":"IF(Table_PI[[#This Row],[Hide:\nFormula Name]]<>\"\",IFERROR(IF(MeasureCalc(Table_PI[[#This Row],[Hide:\nFormula Name]],Table_PI[[#This Row],[Quantity]],Table_PI[[#This Row],[List 1]],Table_PI[[#This Row],[List 2]],Table_PI[[#This Row],[List 3]],Table_PI[[#This Row],[Size]],Table_PI[[#This Row],[Input 1]],Table_PI[[#This Row],[Input 2]],Table_PI[[#This Row],[Input 3]],Table_PI[[#This Row],[Input 4]],'Customer Information'!$AR$12,1,ROW())>0,MeasureCalc(Table_PI[[#This Row],[Hide:\nFormula Name]],Table_PI[[#This Row],[Quantity]],Table_PI[[#This Row],[List 1]],Table_PI[[#This Row],[List 2]],Table_PI[[#This Row],[List 3]],Table_PI[[#This Row],[Size]],Table_PI[[#This Row],[Input 1]],Table_PI[[#This Row],[Input 2]],Table_PI[[#This Row],[Input 3]],Table_PI[[#This Row],[Input 4]],'Customer Information'!$AR$12,7,ROW()),\"No Rebate\"),\"No Rebate\"),0)","v":0},{"$f":"IF(Table_PI[[#This Row],[Hide:\nFormula Name]]<>\"\",IFERROR(IF(MeasureCalc(Table_PI[[#This Row],[Hide:\nFormula Name]],Table_PI[[#This Row],[Quantity]],Table_PI[[#This Row],[List 1]],Table_PI[[#This Row],[List 2]],Table_PI[[#This Row],[List 3]],Table_PI[[#This Row],[Size]],Table_PI[[#This Row],[Input 1]],Table_PI[[#This Row],[Input 2]],Table_PI[[#This Row],[Input 3]],Table_PI[[#This Row],[Input 4]],'Customer Information'!$AR$12,1,ROW())>0,MeasureCalc(Table_PI[[#This Row],[Hide:\nFormula Name]],Table_PI[[#This Row],[Quantity]],Table_PI[[#This Row],[List 1]],Table_PI[[#This Row],[List 2]],Table_PI[[#This Row],[List 3]],Table_PI[[#This Row],[Size]],Table_PI[[#This Row],[Input 1]],Table_PI[[#This Row],[Input 2]],Table_PI[[#This Row],[Input 3]],Table_PI[[#This Row],[Input 4]],'Customer Information'!$AR$12,8,ROW()),\"No Rebate\"),\"No Rebate\"),0)","v":0},{"$f":"IF(Table_PI[[#This Row],[Hide:\nFormula Name]]<>\"\",IF(AND(Table_PI[[#This Row],[Hide:\nFormula Name]]<>\"\",OR(Table_PI[[#This Row],[Rebate]]>0,Table_PI[[#This Row],[Rebate]]=\"No Rebate\")),TRUE,\"MI: Line Item \" & $A185),\"\")","v":""}]
[{"$f":"IF(Table_PI[[#This Row],[Hide:\nFormula Name]]<>\"\",MAX($A$2:A185)+1,\"\")","v":""},null,null,null,null,null,null,null,null,null,null,null,null,null,null,{"$f":"IFERROR(VLOOKUP(Table_PI[[#This Row],[Measure]],'Equipment Lookups'!$C$3:$D$23,2,FALSE),\"\")","v":""},{"$f":"IF(Table_PI[[#This Row],[Hide:\nFormula Name]]<>\"\",IFERROR(IF(MeasureCalc(Table_PI[[#This Row],[Hide:\nFormula Name]],Table_PI[[#This Row],[Quantity]],Table_PI[[#This Row],[List 1]],Table_PI[[#This Row],[List 2]],Table_PI[[#This Row],[List 3]],Table_PI[[#This Row],[Size]],Table_PI[[#This Row],[Input 1]],Table_PI[[#This Row],[Input 2]],Table_PI[[#This Row],[Input 3]],Table_PI[[#This Row],[Input 4]],'Customer Information'!$AR$12,1,ROW())>0,MeasureCalc(Table_PI[[#This Row],[Hide:\nFormula Name]],Table_PI[[#This Row],[Quantity]],Table_PI[[#This Row],[List 1]],Table_PI[[#This Row],[List 2]],Table_PI[[#This Row],[List 3]],Table_PI[[#This Row],[Size]],Table_PI[[#This Row],[Input 1]],Table_PI[[#This Row],[Input 2]],Table_PI[[#This Row],[Input 3]],Table_PI[[#This Row],[Input 4]],'Customer Information'!$AR$12,1,ROW()),\"No Rebate\"),\"No Rebate\"),0)","v":0},{"$f":"IF(Table_PI[[#This Row],[Hide:\nFormula Name]]<>\"\",IFERROR(IF(MeasureCalc(Table_PI[[#This Row],[Hide:\nFormula Name]],Table_PI[[#This Row],[Quantity]],Table_PI[[#This Row],[List 1]],Table_PI[[#This Row],[List 2]],Table_PI[[#This Row],[List 3]],Table_PI[[#This Row],[Size]],Table_PI[[#This Row],[Input 1]],Table_PI[[#This Row],[Input 2]],Table_PI[[#This Row],[Input 3]],Table_PI[[#This Row],[Input 4]],'Customer Information'!$AR$12,1,ROW())>0,MeasureCalc(Table_PI[[#This Row],[Hide:\nFormula Name]],Table_PI[[#This Row],[Quantity]],Table_PI[[#This Row],[List 1]],Table_PI[[#This Row],[List 2]],Table_PI[[#This Row],[List 3]],Table_PI[[#This Row],[Size]],Table_PI[[#This Row],[Input 1]],Table_PI[[#This Row],[Input 2]],Table_PI[[#This Row],[Input 3]],Table_PI[[#This Row],[Input 4]],'Customer Information'!$AR$12,2,ROW()),\"No Rebate\"),\"No Rebate\"),0)","v":0},{"$f":"IF(Table_PI[[#This Row],[Hide:\nFormula Name]]<>\"\",IFERROR(IF(MeasureCalc(Table_PI[[#This Row],[Hide:\nFormula Name]],Table_PI[[#This Row],[Quantity]],Table_PI[[#This Row],[List 1]],Table_PI[[#This Row],[List 2]],Table_PI[[#This Row],[List 3]],Table_PI[[#This Row],[Size]],Table_PI[[#This Row],[Input 1]],Table_PI[[#This Row],[Input 2]],Table_PI[[#This Row],[Input 3]],Table_PI[[#This Row],[Input 4]],'Customer Information'!$AR$12,1,ROW())>0,MeasureCalc(Table_PI[[#This Row],[Hide:\nFormula Name]],Table_PI[[#This Row],[Quantity]],Table_PI[[#This Row],[List 1]],Table_PI[[#This Row],[List 2]],Table_PI[[#This Row],[List 3]],Table_PI[[#This Row],[Size]],Table_PI[[#This Row],[Input 1]],Table_PI[[#This Row],[Input 2]],Table_PI[[#This Row],[Input 3]],Table_PI[[#This Row],[Input 4]],'Customer Information'!$AR$12,3,ROW()),\"No Rebate\"),\"No Rebate\"),0)","v":0},{"$f":"IF(Table_PI[[#This Row],[Hide:\nFormula Name]]<>\"\",IFERROR(IF(MeasureCalc(Table_PI[[#This Row],[Hide:\nFormula Name]],Table_PI[[#This Row],[Quantity]],Table_PI[[#This Row],[List 1]],Table_PI[[#This Row],[List 2]],Table_PI[[#This Row],[List 3]],Table_PI[[#This Row],[Size]],Table_PI[[#This Row],[Input 1]],Table_PI[[#This Row],[Input 2]],Table_PI[[#This Row],[Input 3]],Table_PI[[#This Row],[Input 4]],'Customer Information'!$AR$12,1,ROW())>0,MeasureCalc(Table_PI[[#This Row],[Hide:\nFormula Name]],Table_PI[[#This Row],[Quantity]],Table_PI[[#This Row],[List 1]],Table_PI[[#This Row],[List 2]],Table_PI[[#This Row],[List 3]],Table_PI[[#This Row],[Size]],Table_PI[[#This Row],[Input 1]],Table_PI[[#This Row],[Input 2]],Table_PI[[#This Row],[Input 3]],Table_PI[[#This Row],[Input 4]],'Customer Information'!$AR$12,4,ROW()),\"No Rebate\"),\"No Rebate\"),0)","v":0},{"$f":"IF(Table_PI[[#This Row],[Hide:\nFormula Name]]<>\"\",IFERROR(IF(MeasureCalc(Table_PI[[#This Row],[Hide:\nFormula Name]],Table_PI[[#This Row],[Quantity]],Table_PI[[#This Row],[List 1]],Table_PI[[#This Row],[List 2]],Table_PI[[#This Row],[List 3]],Table_PI[[#This Row],[Size]],Table_PI[[#This Row],[Input 1]],Table_PI[[#This Row],[Input 2]],Table_PI[[#This Row],[Input 3]],Table_PI[[#This Row],[Input 4]],'Customer Information'!$AR$12,1,ROW())>0,MeasureCalc(Table_PI[[#This Row],[Hide:\nFormula Name]],Table_PI[[#This Row],[Quantity]],Table_PI[[#This Row],[List 1]],Table_PI[[#This Row],[List 2]],Table_PI[[#This Row],[List 3]],Table_PI[[#This Row],[Size]],Table_PI[[#This Row],[Input 1]],Table_PI[[#This Row],[Input 2]],Table_PI[[#This Row],[Input 3]],Table_PI[[#This Row],[Input 4]],'Customer Information'!$AR$12,5,ROW()),\"No Rebate\"),\"No Rebate\"),0)","v":0},{"$f":"IF(Table_PI[[#This Row],[Hide:\nFormula Name]]<>\"\",IFERROR(IF(MeasureCalc(Table_PI[[#This Row],[Hide:\nFormula Name]],Table_PI[[#This Row],[Quantity]],Table_PI[[#This Row],[List 1]],Table_PI[[#This Row],[List 2]],Table_PI[[#This Row],[List 3]],Table_PI[[#This Row],[Size]],Table_PI[[#This Row],[Input 1]],Table_PI[[#This Row],[Input 2]],Table_PI[[#This Row],[Input 3]],Table_PI[[#This Row],[Input 4]],'Customer Information'!$AR$12,1,ROW())>0,MeasureCalc(Table_PI[[#This Row],[Hide:\nFormula Name]],Table_PI[[#This Row],[Quantity]],Table_PI[[#This Row],[List 1]],Table_PI[[#This Row],[List 2]],Table_PI[[#This Row],[List 3]],Table_PI[[#This Row],[Size]],Table_PI[[#This Row],[Input 1]],Table_PI[[#This Row],[Input 2]],Table_PI[[#This Row],[Input 3]],Table_PI[[#This Row],[Input 4]],'Customer Information'!$AR$12,6,ROW()),\"No Rebate\"),\"No Rebate\"),0)","v":0},{"$f":"IF(Table_PI[[#This Row],[Hide:\nFormula Name]]<>\"\",IFERROR(IF(MeasureCalc(Table_PI[[#This Row],[Hide:\nFormula Name]],Table_PI[[#This Row],[Quantity]],Table_PI[[#This Row],[List 1]],Table_PI[[#This Row],[List 2]],Table_PI[[#This Row],[List 3]],Table_PI[[#This Row],[Size]],Table_PI[[#This Row],[Input 1]],Table_PI[[#This Row],[Input 2]],Table_PI[[#This Row],[Input 3]],Table_PI[[#This Row],[Input 4]],'Customer Information'!$AR$12,1,ROW())>0,MeasureCalc(Table_PI[[#This Row],[Hide:\nFormula Name]],Table_PI[[#This Row],[Quantity]],Table_PI[[#This Row],[List 1]],Table_PI[[#This Row],[List 2]],Table_PI[[#This Row],[List 3]],Table_PI[[#This Row],[Size]],Table_PI[[#This Row],[Input 1]],Table_PI[[#This Row],[Input 2]],Table_PI[[#This Row],[Input 3]],Table_PI[[#This Row],[Input 4]],'Customer Information'!$AR$12,7,ROW()),\"No Rebate\"),\"No Rebate\"),0)","v":0},{"$f":"IF(Table_PI[[#This Row],[Hide:\nFormula Name]]<>\"\",IFERROR(IF(MeasureCalc(Table_PI[[#This Row],[Hide:\nFormula Name]],Table_PI[[#This Row],[Quantity]],Table_PI[[#This Row],[List 1]],Table_PI[[#This Row],[List 2]],Table_PI[[#This Row],[List 3]],Table_PI[[#This Row],[Size]],Table_PI[[#This Row],[Input 1]],Table_PI[[#This Row],[Input 2]],Table_PI[[#This Row],[Input 3]],Table_PI[[#This Row],[Input 4]],'Customer Information'!$AR$12,1,ROW())>0,MeasureCalc(Table_PI[[#This Row],[Hide:\nFormula Name]],Table_PI[[#This Row],[Quantity]],Table_PI[[#This Row],[List 1]],Table_PI[[#This Row],[List 2]],Table_PI[[#This Row],[List 3]],Table_PI[[#This Row],[Size]],Table_PI[[#This Row],[Input 1]],Table_PI[[#This Row],[Input 2]],Table_PI[[#This Row],[Input 3]],Table_PI[[#This Row],[Input 4]],'Customer Information'!$AR$12,8,ROW()),\"No Rebate\"),\"No Rebate\"),0)","v":0},{"$f":"IF(Table_PI[[#This Row],[Hide:\nFormula Name]]<>\"\",IF(AND(Table_PI[[#This Row],[Hide:\nFormula Name]]<>\"\",OR(Table_PI[[#This Row],[Rebate]]>0,Table_PI[[#This Row],[Rebate]]=\"No Rebate\")),TRUE,\"MI: Line Item \" & $A186),\"\")","v":""}]
[{"$f":"IF(Table_PI[[#This Row],[Hide:\nFormula Name]]<>\"\",MAX($A$2:A186)+1,\"\")","v":""},null,null,null,null,null,null,null,null,null,null,null,null,null,null,{"$f":"IFERROR(VLOOKUP(Table_PI[[#This Row],[Measure]],'Equipment Lookups'!$C$3:$D$23,2,FALSE),\"\")","v":""},{"$f":"IF(Table_PI[[#This Row],[Hide:\nFormula Name]]<>\"\",IFERROR(IF(MeasureCalc(Table_PI[[#This Row],[Hide:\nFormula Name]],Table_PI[[#This Row],[Quantity]],Table_PI[[#This Row],[List 1]],Table_PI[[#This Row],[List 2]],Table_PI[[#This Row],[List 3]],Table_PI[[#This Row],[Size]],Table_PI[[#This Row],[Input 1]],Table_PI[[#This Row],[Input 2]],Table_PI[[#This Row],[Input 3]],Table_PI[[#This Row],[Input 4]],'Customer Information'!$AR$12,1,ROW())>0,MeasureCalc(Table_PI[[#This Row],[Hide:\nFormula Name]],Table_PI[[#This Row],[Quantity]],Table_PI[[#This Row],[List 1]],Table_PI[[#This Row],[List 2]],Table_PI[[#This Row],[List 3]],Table_PI[[#This Row],[Size]],Table_PI[[#This Row],[Input 1]],Table_PI[[#This Row],[Input 2]],Table_PI[[#This Row],[Input 3]],Table_PI[[#This Row],[Input 4]],'Customer Information'!$AR$12,1,ROW()),\"No Rebate\"),\"No Rebate\"),0)","v":0},{"$f":"IF(Table_PI[[#This Row],[Hide:\nFormula Name]]<>\"\",IFERROR(IF(MeasureCalc(Table_PI[[#This Row],[Hide:\nFormula Name]],Table_PI[[#This Row],[Quantity]],Table_PI[[#This Row],[List 1]],Table_PI[[#This Row],[List 2]],Table_PI[[#This Row],[List 3]],Table_PI[[#This Row],[Size]],Table_PI[[#This Row],[Input 1]],Table_PI[[#This Row],[Input 2]],Table_PI[[#This Row],[Input 3]],Table_PI[[#This Row],[Input 4]],'Customer Information'!$AR$12,1,ROW())>0,MeasureCalc(Table_PI[[#This Row],[Hide:\nFormula Name]],Table_PI[[#This Row],[Quantity]],Table_PI[[#This Row],[List 1]],Table_PI[[#This Row],[List 2]],Table_PI[[#This Row],[List 3]],Table_PI[[#This Row],[Size]],Table_PI[[#This Row],[Input 1]],Table_PI[[#This Row],[Input 2]],Table_PI[[#This Row],[Input 3]],Table_PI[[#This Row],[Input 4]],'Customer Information'!$AR$12,2,ROW()),\"No Rebate\"),\"No Rebate\"),0)","v":0},{"$f":"IF(Table_PI[[#This Row],[Hide:\nFormula Name]]<>\"\",IFERROR(IF(MeasureCalc(Table_PI[[#This Row],[Hide:\nFormula Name]],Table_PI[[#This Row],[Quantity]],Table_PI[[#This Row],[List 1]],Table_PI[[#This Row],[List 2]],Table_PI[[#This Row],[List 3]],Table_PI[[#This Row],[Size]],Table_PI[[#This Row],[Input 1]],Table_PI[[#This Row],[Input 2]],Table_PI[[#This Row],[Input 3]],Table_PI[[#This Row],[Input 4]],'Customer Information'!$AR$12,1,ROW())>0,MeasureCalc(Table_PI[[#This Row],[Hide:\nFormula Name]],Table_PI[[#This Row],[Quantity]],Table_PI[[#This Row],[List 1]],Table_PI[[#This Row],[List 2]],Table_PI[[#This Row],[List 3]],Table_PI[[#This Row],[Size]],Table_PI[[#This Row],[Input 1]],Table_PI[[#This Row],[Input 2]],Table_PI[[#This Row],[Input 3]],Table_PI[[#This Row],[Input 4]],'Customer Information'!$AR$12,3,ROW()),\"No Rebate\"),\"No Rebate\"),0)","v":0},{"$f":"IF(Table_PI[[#This Row],[Hide:\nFormula Name]]<>\"\",IFERROR(IF(MeasureCalc(Table_PI[[#This Row],[Hide:\nFormula Name]],Table_PI[[#This Row],[Quantity]],Table_PI[[#This Row],[List 1]],Table_PI[[#This Row],[List 2]],Table_PI[[#This Row],[List 3]],Table_PI[[#This Row],[Size]],Table_PI[[#This Row],[Input 1]],Table_PI[[#This Row],[Input 2]],Table_PI[[#This Row],[Input 3]],Table_PI[[#This Row],[Input 4]],'Customer Information'!$AR$12,1,ROW())>0,MeasureCalc(Table_PI[[#This Row],[Hide:\nFormula Name]],Table_PI[[#This Row],[Quantity]],Table_PI[[#This Row],[List 1]],Table_PI[[#This Row],[List 2]],Table_PI[[#This Row],[List 3]],Table_PI[[#This Row],[Size]],Table_PI[[#This Row],[Input 1]],Table_PI[[#This Row],[Input 2]],Table_PI[[#This Row],[Input 3]],Table_PI[[#This Row],[Input 4]],'Customer Information'!$AR$12,4,ROW()),\"No Rebate\"),\"No Rebate\"),0)","v":0},{"$f":"IF(Table_PI[[#This Row],[Hide:\nFormula Name]]<>\"\",IFERROR(IF(MeasureCalc(Table_PI[[#This Row],[Hide:\nFormula Name]],Table_PI[[#This Row],[Quantity]],Table_PI[[#This Row],[List 1]],Table_PI[[#This Row],[List 2]],Table_PI[[#This Row],[List 3]],Table_PI[[#This Row],[Size]],Table_PI[[#This Row],[Input 1]],Table_PI[[#This Row],[Input 2]],Table_PI[[#This Row],[Input 3]],Table_PI[[#This Row],[Input 4]],'Customer Information'!$AR$12,1,ROW())>0,MeasureCalc(Table_PI[[#This Row],[Hide:\nFormula Name]],Table_PI[[#This Row],[Quantity]],Table_PI[[#This Row],[List 1]],Table_PI[[#This Row],[List 2]],Table_PI[[#This Row],[List 3]],Table_PI[[#This Row],[Size]],Table_PI[[#This Row],[Input 1]],Table_PI[[#This Row],[Input 2]],Table_PI[[#This Row],[Input 3]],Table_PI[[#This Row],[Input 4]],'Customer Information'!$AR$12,5,ROW()),\"No Rebate\"),\"No Rebate\"),0)","v":0},{"$f":"IF(Table_PI[[#This Row],[Hide:\nFormula Name]]<>\"\",IFERROR(IF(MeasureCalc(Table_PI[[#This Row],[Hide:\nFormula Name]],Table_PI[[#This Row],[Quantity]],Table_PI[[#This Row],[List 1]],Table_PI[[#This Row],[List 2]],Table_PI[[#This Row],[List 3]],Table_PI[[#This Row],[Size]],Table_PI[[#This Row],[Input 1]],Table_PI[[#This Row],[Input 2]],Table_PI[[#This Row],[Input 3]],Table_PI[[#This Row],[Input 4]],'Customer Information'!$AR$12,1,ROW())>0,MeasureCalc(Table_PI[[#This Row],[Hide:\nFormula Name]],Table_PI[[#This Row],[Quantity]],Table_PI[[#This Row],[List 1]],Table_PI[[#This Row],[List 2]],Table_PI[[#This Row],[List 3]],Table_PI[[#This Row],[Size]],Table_PI[[#This Row],[Input 1]],Table_PI[[#This Row],[Input 2]],Table_PI[[#This Row],[Input 3]],Table_PI[[#This Row],[Input 4]],'Customer Information'!$AR$12,6,ROW()),\"No Rebate\"),\"No Rebate\"),0)","v":0},{"$f":"IF(Table_PI[[#This Row],[Hide:\nFormula Name]]<>\"\",IFERROR(IF(MeasureCalc(Table_PI[[#This Row],[Hide:\nFormula Name]],Table_PI[[#This Row],[Quantity]],Table_PI[[#This Row],[List 1]],Table_PI[[#This Row],[List 2]],Table_PI[[#This Row],[List 3]],Table_PI[[#This Row],[Size]],Table_PI[[#This Row],[Input 1]],Table_PI[[#This Row],[Input 2]],Table_PI[[#This Row],[Input 3]],Table_PI[[#This Row],[Input 4]],'Customer Information'!$AR$12,1,ROW())>0,MeasureCalc(Table_PI[[#This Row],[Hide:\nFormula Name]],Table_PI[[#This Row],[Quantity]],Table_PI[[#This Row],[List 1]],Table_PI[[#This Row],[List 2]],Table_PI[[#This Row],[List 3]],Table_PI[[#This Row],[Size]],Table_PI[[#This Row],[Input 1]],Table_PI[[#This Row],[Input 2]],Table_PI[[#This Row],[Input 3]],Table_PI[[#This Row],[Input 4]],'Customer Information'!$AR$12,7,ROW()),\"No Rebate\"),\"No Rebate\"),0)","v":0},{"$f":"IF(Table_PI[[#This Row],[Hide:\nFormula Name]]<>\"\",IFERROR(IF(MeasureCalc(Table_PI[[#This Row],[Hide:\nFormula Name]],Table_PI[[#This Row],[Quantity]],Table_PI[[#This Row],[List 1]],Table_PI[[#This Row],[List 2]],Table_PI[[#This Row],[List 3]],Table_PI[[#This Row],[Size]],Table_PI[[#This Row],[Input 1]],Table_PI[[#This Row],[Input 2]],Table_PI[[#This Row],[Input 3]],Table_PI[[#This Row],[Input 4]],'Customer Information'!$AR$12,1,ROW())>0,MeasureCalc(Table_PI[[#This Row],[Hide:\nFormula Name]],Table_PI[[#This Row],[Quantity]],Table_PI[[#This Row],[List 1]],Table_PI[[#This Row],[List 2]],Table_PI[[#This Row],[List 3]],Table_PI[[#This Row],[Size]],Table_PI[[#This Row],[Input 1]],Table_PI[[#This Row],[Input 2]],Table_PI[[#This Row],[Input 3]],Table_PI[[#This Row],[Input 4]],'Customer Information'!$AR$12,8,ROW()),\"No Rebate\"),\"No Rebate\"),0)","v":0},{"$f":"IF(Table_PI[[#This Row],[Hide:\nFormula Name]]<>\"\",IF(AND(Table_PI[[#This Row],[Hide:\nFormula Name]]<>\"\",OR(Table_PI[[#This Row],[Rebate]]>0,Table_PI[[#This Row],[Rebate]]=\"No Rebate\")),TRUE,\"MI: Line Item \" & $A187),\"\")","v":""}]
[{"$f":"IF(Table_PI[[#This Row],[Hide:\nFormula Name]]<>\"\",MAX($A$2:A187)+1,\"\")","v":""},null,null,null,null,null,null,null,null,null,null,null,null,null,null,{"$f":"IFERROR(VLOOKUP(Table_PI[[#This Row],[Measure]],'Equipment Lookups'!$C$3:$D$23,2,FALSE),\"\")","v":""},{"$f":"IF(Table_PI[[#This Row],[Hide:\nFormula Name]]<>\"\",IFERROR(IF(MeasureCalc(Table_PI[[#This Row],[Hide:\nFormula Name]],Table_PI[[#This Row],[Quantity]],Table_PI[[#This Row],[List 1]],Table_PI[[#This Row],[List 2]],Table_PI[[#This Row],[List 3]],Table_PI[[#This Row],[Size]],Table_PI[[#This Row],[Input 1]],Table_PI[[#This Row],[Input 2]],Table_PI[[#This Row],[Input 3]],Table_PI[[#This Row],[Input 4]],'Customer Information'!$AR$12,1,ROW())>0,MeasureCalc(Table_PI[[#This Row],[Hide:\nFormula Name]],Table_PI[[#This Row],[Quantity]],Table_PI[[#This Row],[List 1]],Table_PI[[#This Row],[List 2]],Table_PI[[#This Row],[List 3]],Table_PI[[#This Row],[Size]],Table_PI[[#This Row],[Input 1]],Table_PI[[#This Row],[Input 2]],Table_PI[[#This Row],[Input 3]],Table_PI[[#This Row],[Input 4]],'Customer Information'!$AR$12,1,ROW()),\"No Rebate\"),\"No Rebate\"),0)","v":0},{"$f":"IF(Table_PI[[#This Row],[Hide:\nFormula Name]]<>\"\",IFERROR(IF(MeasureCalc(Table_PI[[#This Row],[Hide:\nFormula Name]],Table_PI[[#This Row],[Quantity]],Table_PI[[#This Row],[List 1]],Table_PI[[#This Row],[List 2]],Table_PI[[#This Row],[List 3]],Table_PI[[#This Row],[Size]],Table_PI[[#This Row],[Input 1]],Table_PI[[#This Row],[Input 2]],Table_PI[[#This Row],[Input 3]],Table_PI[[#This Row],[Input 4]],'Customer Information'!$AR$12,1,ROW())>0,MeasureCalc(Table_PI[[#This Row],[Hide:\nFormula Name]],Table_PI[[#This Row],[Quantity]],Table_PI[[#This Row],[List 1]],Table_PI[[#This Row],[List 2]],Table_PI[[#This Row],[List 3]],Table_PI[[#This Row],[Size]],Table_PI[[#This Row],[Input 1]],Table_PI[[#This Row],[Input 2]],Table_PI[[#This Row],[Input 3]],Table_PI[[#This Row],[Input 4]],'Customer Information'!$AR$12,2,ROW()),\"No Rebate\"),\"No Rebate\"),0)","v":0},{"$f":"IF(Table_PI[[#This Row],[Hide:\nFormula Name]]<>\"\",IFERROR(IF(MeasureCalc(Table_PI[[#This Row],[Hide:\nFormula Name]],Table_PI[[#This Row],[Quantity]],Table_PI[[#This Row],[List 1]],Table_PI[[#This Row],[List 2]],Table_PI[[#This Row],[List 3]],Table_PI[[#This Row],[Size]],Table_PI[[#This Row],[Input 1]],Table_PI[[#This Row],[Input 2]],Table_PI[[#This Row],[Input 3]],Table_PI[[#This Row],[Input 4]],'Customer Information'!$AR$12,1,ROW())>0,MeasureCalc(Table_PI[[#This Row],[Hide:\nFormula Name]],Table_PI[[#This Row],[Quantity]],Table_PI[[#This Row],[List 1]],Table_PI[[#This Row],[List 2]],Table_PI[[#This Row],[List 3]],Table_PI[[#This Row],[Size]],Table_PI[[#This Row],[Input 1]],Table_PI[[#This Row],[Input 2]],Table_PI[[#This Row],[Input 3]],Table_PI[[#This Row],[Input 4]],'Customer Information'!$AR$12,3,ROW()),\"No Rebate\"),\"No Rebate\"),0)","v":0},{"$f":"IF(Table_PI[[#This Row],[Hide:\nFormula Name]]<>\"\",IFERROR(IF(MeasureCalc(Table_PI[[#This Row],[Hide:\nFormula Name]],Table_PI[[#This Row],[Quantity]],Table_PI[[#This Row],[List 1]],Table_PI[[#This Row],[List 2]],Table_PI[[#This Row],[List 3]],Table_PI[[#This Row],[Size]],Table_PI[[#This Row],[Input 1]],Table_PI[[#This Row],[Input 2]],Table_PI[[#This Row],[Input 3]],Table_PI[[#This Row],[Input 4]],'Customer Information'!$AR$12,1,ROW())>0,MeasureCalc(Table_PI[[#This Row],[Hide:\nFormula Name]],Table_PI[[#This Row],[Quantity]],Table_PI[[#This Row],[List 1]],Table_PI[[#This Row],[List 2]],Table_PI[[#This Row],[List 3]],Table_PI[[#This Row],[Size]],Table_PI[[#This Row],[Input 1]],Table_PI[[#This Row],[Input 2]],Table_PI[[#This Row],[Input 3]],Table_PI[[#This Row],[Input 4]],'Customer Information'!$AR$12,4,ROW()),\"No Rebate\"),\"No Rebate\"),0)","v":0},{"$f":"IF(Table_PI[[#This Row],[Hide:\nFormula Name]]<>\"\",IFERROR(IF(MeasureCalc(Table_PI[[#This Row],[Hide:\nFormula Name]],Table_PI[[#This Row],[Quantity]],Table_PI[[#This Row],[List 1]],Table_PI[[#This Row],[List 2]],Table_PI[[#This Row],[List 3]],Table_PI[[#This Row],[Size]],Table_PI[[#This Row],[Input 1]],Table_PI[[#This Row],[Input 2]],Table_PI[[#This Row],[Input 3]],Table_PI[[#This Row],[Input 4]],'Customer Information'!$AR$12,1,ROW())>0,MeasureCalc(Table_PI[[#This Row],[Hide:\nFormula Name]],Table_PI[[#This Row],[Quantity]],Table_PI[[#This Row],[List 1]],Table_PI[[#This Row],[List 2]],Table_PI[[#This Row],[List 3]],Table_PI[[#This Row],[Size]],Table_PI[[#This Row],[Input 1]],Table_PI[[#This Row],[Input 2]],Table_PI[[#This Row],[Input 3]],Table_PI[[#This Row],[Input 4]],'Customer Information'!$AR$12,5,ROW()),\"No Rebate\"),\"No Rebate\"),0)","v":0},{"$f":"IF(Table_PI[[#This Row],[Hide:\nFormula Name]]<>\"\",IFERROR(IF(MeasureCalc(Table_PI[[#This Row],[Hide:\nFormula Name]],Table_PI[[#This Row],[Quantity]],Table_PI[[#This Row],[List 1]],Table_PI[[#This Row],[List 2]],Table_PI[[#This Row],[List 3]],Table_PI[[#This Row],[Size]],Table_PI[[#This Row],[Input 1]],Table_PI[[#This Row],[Input 2]],Table_PI[[#This Row],[Input 3]],Table_PI[[#This Row],[Input 4]],'Customer Information'!$AR$12,1,ROW())>0,MeasureCalc(Table_PI[[#This Row],[Hide:\nFormula Name]],Table_PI[[#This Row],[Quantity]],Table_PI[[#This Row],[List 1]],Table_PI[[#This Row],[List 2]],Table_PI[[#This Row],[List 3]],Table_PI[[#This Row],[Size]],Table_PI[[#This Row],[Input 1]],Table_PI[[#This Row],[Input 2]],Table_PI[[#This Row],[Input 3]],Table_PI[[#This Row],[Input 4]],'Customer Information'!$AR$12,6,ROW()),\"No Rebate\"),\"No Rebate\"),0)","v":0},{"$f":"IF(Table_PI[[#This Row],[Hide:\nFormula Name]]<>\"\",IFERROR(IF(MeasureCalc(Table_PI[[#This Row],[Hide:\nFormula Name]],Table_PI[[#This Row],[Quantity]],Table_PI[[#This Row],[List 1]],Table_PI[[#This Row],[List 2]],Table_PI[[#This Row],[List 3]],Table_PI[[#This Row],[Size]],Table_PI[[#This Row],[Input 1]],Table_PI[[#This Row],[Input 2]],Table_PI[[#This Row],[Input 3]],Table_PI[[#This Row],[Input 4]],'Customer Information'!$AR$12,1,ROW())>0,MeasureCalc(Table_PI[[#This Row],[Hide:\nFormula Name]],Table_PI[[#This Row],[Quantity]],Table_PI[[#This Row],[List 1]],Table_PI[[#This Row],[List 2]],Table_PI[[#This Row],[List 3]],Table_PI[[#This Row],[Size]],Table_PI[[#This Row],[Input 1]],Table_PI[[#This Row],[Input 2]],Table_PI[[#This Row],[Input 3]],Table_PI[[#This Row],[Input 4]],'Customer Information'!$AR$12,7,ROW()),\"No Rebate\"),\"No Rebate\"),0)","v":0},{"$f":"IF(Table_PI[[#This Row],[Hide:\nFormula Name]]<>\"\",IFERROR(IF(MeasureCalc(Table_PI[[#This Row],[Hide:\nFormula Name]],Table_PI[[#This Row],[Quantity]],Table_PI[[#This Row],[List 1]],Table_PI[[#This Row],[List 2]],Table_PI[[#This Row],[List 3]],Table_PI[[#This Row],[Size]],Table_PI[[#This Row],[Input 1]],Table_PI[[#This Row],[Input 2]],Table_PI[[#This Row],[Input 3]],Table_PI[[#This Row],[Input 4]],'Customer Information'!$AR$12,1,ROW())>0,MeasureCalc(Table_PI[[#This Row],[Hide:\nFormula Name]],Table_PI[[#This Row],[Quantity]],Table_PI[[#This Row],[List 1]],Table_PI[[#This Row],[List 2]],Table_PI[[#This Row],[List 3]],Table_PI[[#This Row],[Size]],Table_PI[[#This Row],[Input 1]],Table_PI[[#This Row],[Input 2]],Table_PI[[#This Row],[Input 3]],Table_PI[[#This Row],[Input 4]],'Customer Information'!$AR$12,8,ROW()),\"No Rebate\"),\"No Rebate\"),0)","v":0},{"$f":"IF(Table_PI[[#This Row],[Hide:\nFormula Name]]<>\"\",IF(AND(Table_PI[[#This Row],[Hide:\nFormula Name]]<>\"\",OR(Table_PI[[#This Row],[Rebate]]>0,Table_PI[[#This Row],[Rebate]]=\"No Rebate\")),TRUE,\"MI: Line Item \" & $A188),\"\")","v":""}]
[{"$f":"IF(Table_PI[[#This Row],[Hide:\nFormula Name]]<>\"\",MAX($A$2:A188)+1,\"\")","v":""},null,null,null,null,null,null,null,null,null,null,null,null,null,null,{"$f":"IFERROR(VLOOKUP(Table_PI[[#This Row],[Measure]],'Equipment Lookups'!$C$3:$D$23,2,FALSE),\"\")","v":""},{"$f":"IF(Table_PI[[#This Row],[Hide:\nFormula Name]]<>\"\",IFERROR(IF(MeasureCalc(Table_PI[[#This Row],[Hide:\nFormula Name]],Table_PI[[#This Row],[Quantity]],Table_PI[[#This Row],[List 1]],Table_PI[[#This Row],[List 2]],Table_PI[[#This Row],[List 3]],Table_PI[[#This Row],[Size]],Table_PI[[#This Row],[Input 1]],Table_PI[[#This Row],[Input 2]],Table_PI[[#This Row],[Input 3]],Table_PI[[#This Row],[Input 4]],'Customer Information'!$AR$12,1,ROW())>0,MeasureCalc(Table_PI[[#This Row],[Hide:\nFormula Name]],Table_PI[[#This Row],[Quantity]],Table_PI[[#This Row],[List 1]],Table_PI[[#This Row],[List 2]],Table_PI[[#This Row],[List 3]],Table_PI[[#This Row],[Size]],Table_PI[[#This Row],[Input 1]],Table_PI[[#This Row],[Input 2]],Table_PI[[#This Row],[Input 3]],Table_PI[[#This Row],[Input 4]],'Customer Information'!$AR$12,1,ROW()),\"No Rebate\"),\"No Rebate\"),0)","v":0},{"$f":"IF(Table_PI[[#This Row],[Hide:\nFormula Name]]<>\"\",IFERROR(IF(MeasureCalc(Table_PI[[#This Row],[Hide:\nFormula Name]],Table_PI[[#This Row],[Quantity]],Table_PI[[#This Row],[List 1]],Table_PI[[#This Row],[List 2]],Table_PI[[#This Row],[List 3]],Table_PI[[#This Row],[Size]],Table_PI[[#This Row],[Input 1]],Table_PI[[#This Row],[Input 2]],Table_PI[[#This Row],[Input 3]],Table_PI[[#This Row],[Input 4]],'Customer Information'!$AR$12,1,ROW())>0,MeasureCalc(Table_PI[[#This Row],[Hide:\nFormula Name]],Table_PI[[#This Row],[Quantity]],Table_PI[[#This Row],[List 1]],Table_PI[[#This Row],[List 2]],Table_PI[[#This Row],[List 3]],Table_PI[[#This Row],[Size]],Table_PI[[#This Row],[Input 1]],Table_PI[[#This Row],[Input 2]],Table_PI[[#This Row],[Input 3]],Table_PI[[#This Row],[Input 4]],'Customer Information'!$AR$12,2,ROW()),\"No Rebate\"),\"No Rebate\"),0)","v":0},{"$f":"IF(Table_PI[[#This Row],[Hide:\nFormula Name]]<>\"\",IFERROR(IF(MeasureCalc(Table_PI[[#This Row],[Hide:\nFormula Name]],Table_PI[[#This Row],[Quantity]],Table_PI[[#This Row],[List 1]],Table_PI[[#This Row],[List 2]],Table_PI[[#This Row],[List 3]],Table_PI[[#This Row],[Size]],Table_PI[[#This Row],[Input 1]],Table_PI[[#This Row],[Input 2]],Table_PI[[#This Row],[Input 3]],Table_PI[[#This Row],[Input 4]],'Customer Information'!$AR$12,1,ROW())>0,MeasureCalc(Table_PI[[#This Row],[Hide:\nFormula Name]],Table_PI[[#This Row],[Quantity]],Table_PI[[#This Row],[List 1]],Table_PI[[#This Row],[List 2]],Table_PI[[#This Row],[List 3]],Table_PI[[#This Row],[Size]],Table_PI[[#This Row],[Input 1]],Table_PI[[#This Row],[Input 2]],Table_PI[[#This Row],[Input 3]],Table_PI[[#This Row],[Input 4]],'Customer Information'!$AR$12,3,ROW()),\"No Rebate\"),\"No Rebate\"),0)","v":0},{"$f":"IF(Table_PI[[#This Row],[Hide:\nFormula Name]]<>\"\",IFERROR(IF(MeasureCalc(Table_PI[[#This Row],[Hide:\nFormula Name]],Table_PI[[#This Row],[Quantity]],Table_PI[[#This Row],[List 1]],Table_PI[[#This Row],[List 2]],Table_PI[[#This Row],[List 3]],Table_PI[[#This Row],[Size]],Table_PI[[#This Row],[Input 1]],Table_PI[[#This Row],[Input 2]],Table_PI[[#This Row],[Input 3]],Table_PI[[#This Row],[Input 4]],'Customer Information'!$AR$12,1,ROW())>0,MeasureCalc(Table_PI[[#This Row],[Hide:\nFormula Name]],Table_PI[[#This Row],[Quantity]],Table_PI[[#This Row],[List 1]],Table_PI[[#This Row],[List 2]],Table_PI[[#This Row],[List 3]],Table_PI[[#This Row],[Size]],Table_PI[[#This Row],[Input 1]],Table_PI[[#This Row],[Input 2]],Table_PI[[#This Row],[Input 3]],Table_PI[[#This Row],[Input 4]],'Customer Information'!$AR$12,4,ROW()),\"No Rebate\"),\"No Rebate\"),0)","v":0},{"$f":"IF(Table_PI[[#This Row],[Hide:\nFormula Name]]<>\"\",IFERROR(IF(MeasureCalc(Table_PI[[#This Row],[Hide:\nFormula Name]],Table_PI[[#This Row],[Quantity]],Table_PI[[#This Row],[List 1]],Table_PI[[#This Row],[List 2]],Table_PI[[#This Row],[List 3]],Table_PI[[#This Row],[Size]],Table_PI[[#This Row],[Input 1]],Table_PI[[#This Row],[Input 2]],Table_PI[[#This Row],[Input 3]],Table_PI[[#This Row],[Input 4]],'Customer Information'!$AR$12,1,ROW())>0,MeasureCalc(Table_PI[[#This Row],[Hide:\nFormula Name]],Table_PI[[#This Row],[Quantity]],Table_PI[[#This Row],[List 1]],Table_PI[[#This Row],[List 2]],Table_PI[[#This Row],[List 3]],Table_PI[[#This Row],[Size]],Table_PI[[#This Row],[Input 1]],Table_PI[[#This Row],[Input 2]],Table_PI[[#This Row],[Input 3]],Table_PI[[#This Row],[Input 4]],'Customer Information'!$AR$12,5,ROW()),\"No Rebate\"),\"No Rebate\"),0)","v":0},{"$f":"IF(Table_PI[[#This Row],[Hide:\nFormula Name]]<>\"\",IFERROR(IF(MeasureCalc(Table_PI[[#This Row],[Hide:\nFormula Name]],Table_PI[[#This Row],[Quantity]],Table_PI[[#This Row],[List 1]],Table_PI[[#This Row],[List 2]],Table_PI[[#This Row],[List 3]],Table_PI[[#This Row],[Size]],Table_PI[[#This Row],[Input 1]],Table_PI[[#This Row],[Input 2]],Table_PI[[#This Row],[Input 3]],Table_PI[[#This Row],[Input 4]],'Customer Information'!$AR$12,1,ROW())>0,MeasureCalc(Table_PI[[#This Row],[Hide:\nFormula Name]],Table_PI[[#This Row],[Quantity]],Table_PI[[#This Row],[List 1]],Table_PI[[#This Row],[List 2]],Table_PI[[#This Row],[List 3]],Table_PI[[#This Row],[Size]],Table_PI[[#This Row],[Input 1]],Table_PI[[#This Row],[Input 2]],Table_PI[[#This Row],[Input 3]],Table_PI[[#This Row],[Input 4]],'Customer Information'!$AR$12,6,ROW()),\"No Rebate\"),\"No Rebate\"),0)","v":0},{"$f":"IF(Table_PI[[#This Row],[Hide:\nFormula Name]]<>\"\",IFERROR(IF(MeasureCalc(Table_PI[[#This Row],[Hide:\nFormula Name]],Table_PI[[#This Row],[Quantity]],Table_PI[[#This Row],[List 1]],Table_PI[[#This Row],[List 2]],Table_PI[[#This Row],[List 3]],Table_PI[[#This Row],[Size]],Table_PI[[#This Row],[Input 1]],Table_PI[[#This Row],[Input 2]],Table_PI[[#This Row],[Input 3]],Table_PI[[#This Row],[Input 4]],'Customer Information'!$AR$12,1,ROW())>0,MeasureCalc(Table_PI[[#This Row],[Hide:\nFormula Name]],Table_PI[[#This Row],[Quantity]],Table_PI[[#This Row],[List 1]],Table_PI[[#This Row],[List 2]],Table_PI[[#This Row],[List 3]],Table_PI[[#This Row],[Size]],Table_PI[[#This Row],[Input 1]],Table_PI[[#This Row],[Input 2]],Table_PI[[#This Row],[Input 3]],Table_PI[[#This Row],[Input 4]],'Customer Information'!$AR$12,7,ROW()),\"No Rebate\"),\"No Rebate\"),0)","v":0},{"$f":"IF(Table_PI[[#This Row],[Hide:\nFormula Name]]<>\"\",IFERROR(IF(MeasureCalc(Table_PI[[#This Row],[Hide:\nFormula Name]],Table_PI[[#This Row],[Quantity]],Table_PI[[#This Row],[List 1]],Table_PI[[#This Row],[List 2]],Table_PI[[#This Row],[List 3]],Table_PI[[#This Row],[Size]],Table_PI[[#This Row],[Input 1]],Table_PI[[#This Row],[Input 2]],Table_PI[[#This Row],[Input 3]],Table_PI[[#This Row],[Input 4]],'Customer Information'!$AR$12,1,ROW())>0,MeasureCalc(Table_PI[[#This Row],[Hide:\nFormula Name]],Table_PI[[#This Row],[Quantity]],Table_PI[[#This Row],[List 1]],Table_PI[[#This Row],[List 2]],Table_PI[[#This Row],[List 3]],Table_PI[[#This Row],[Size]],Table_PI[[#This Row],[Input 1]],Table_PI[[#This Row],[Input 2]],Table_PI[[#This Row],[Input 3]],Table_PI[[#This Row],[Input 4]],'Customer Information'!$AR$12,8,ROW()),\"No Rebate\"),\"No Rebate\"),0)","v":0},{"$f":"IF(Table_PI[[#This Row],[Hide:\nFormula Name]]<>\"\",IF(AND(Table_PI[[#This Row],[Hide:\nFormula Name]]<>\"\",OR(Table_PI[[#This Row],[Rebate]]>0,Table_PI[[#This Row],[Rebate]]=\"No Rebate\")),TRUE,\"MI: Line Item \" & $A189),\"\")","v":""}]
[{"$f":"IF(Table_PI[[#This Row],[Hide:\nFormula Name]]<>\"\",MAX($A$2:A189)+1,\"\")","v":""},null,null,null,null,null,null,null,null,null,null,null,null,null,null,{"$f":"IFERROR(VLOOKUP(Table_PI[[#This Row],[Measure]],'Equipment Lookups'!$C$3:$D$23,2,FALSE),\"\")","v":""},{"$f":"IF(Table_PI[[#This Row],[Hide:\nFormula Name]]<>\"\",IFERROR(IF(MeasureCalc(Table_PI[[#This Row],[Hide:\nFormula Name]],Table_PI[[#This Row],[Quantity]],Table_PI[[#This Row],[List 1]],Table_PI[[#This Row],[List 2]],Table_PI[[#This Row],[List 3]],Table_PI[[#This Row],[Size]],Table_PI[[#This Row],[Input 1]],Table_PI[[#This Row],[Input 2]],Table_PI[[#This Row],[Input 3]],Table_PI[[#This Row],[Input 4]],'Customer Information'!$AR$12,1,ROW())>0,MeasureCalc(Table_PI[[#This Row],[Hide:\nFormula Name]],Table_PI[[#This Row],[Quantity]],Table_PI[[#This Row],[List 1]],Table_PI[[#This Row],[List 2]],Table_PI[[#This Row],[List 3]],Table_PI[[#This Row],[Size]],Table_PI[[#This Row],[Input 1]],Table_PI[[#This Row],[Input 2]],Table_PI[[#This Row],[Input 3]],Table_PI[[#This Row],[Input 4]],'Customer Information'!$AR$12,1,ROW()),\"No Rebate\"),\"No Rebate\"),0)","v":0},{"$f":"IF(Table_PI[[#This Row],[Hide:\nFormula Name]]<>\"\",IFERROR(IF(MeasureCalc(Table_PI[[#This Row],[Hide:\nFormula Name]],Table_PI[[#This Row],[Quantity]],Table_PI[[#This Row],[List 1]],Table_PI[[#This Row],[List 2]],Table_PI[[#This Row],[List 3]],Table_PI[[#This Row],[Size]],Table_PI[[#This Row],[Input 1]],Table_PI[[#This Row],[Input 2]],Table_PI[[#This Row],[Input 3]],Table_PI[[#This Row],[Input 4]],'Customer Information'!$AR$12,1,ROW())>0,MeasureCalc(Table_PI[[#This Row],[Hide:\nFormula Name]],Table_PI[[#This Row],[Quantity]],Table_PI[[#This Row],[List 1]],Table_PI[[#This Row],[List 2]],Table_PI[[#This Row],[List 3]],Table_PI[[#This Row],[Size]],Table_PI[[#This Row],[Input 1]],Table_PI[[#This Row],[Input 2]],Table_PI[[#This Row],[Input 3]],Table_PI[[#This Row],[Input 4]],'Customer Information'!$AR$12,2,ROW()),\"No Rebate\"),\"No Rebate\"),0)","v":0},{"$f":"IF(Table_PI[[#This Row],[Hide:\nFormula Name]]<>\"\",IFERROR(IF(MeasureCalc(Table_PI[[#This Row],[Hide:\nFormula Name]],Table_PI[[#This Row],[Quantity]],Table_PI[[#This Row],[List 1]],Table_PI[[#This Row],[List 2]],Table_PI[[#This Row],[List 3]],Table_PI[[#This Row],[Size]],Table_PI[[#This Row],[Input 1]],Table_PI[[#This Row],[Input 2]],Table_PI[[#This Row],[Input 3]],Table_PI[[#This Row],[Input 4]],'Customer Information'!$AR$12,1,ROW())>0,MeasureCalc(Table_PI[[#This Row],[Hide:\nFormula Name]],Table_PI[[#This Row],[Quantity]],Table_PI[[#This Row],[List 1]],Table_PI[[#This Row],[List 2]],Table_PI[[#This Row],[List 3]],Table_PI[[#This Row],[Size]],Table_PI[[#This Row],[Input 1]],Table_PI[[#This Row],[Input 2]],Table_PI[[#This Row],[Input 3]],Table_PI[[#This Row],[Input 4]],'Customer Information'!$AR$12,3,ROW()),\"No Rebate\"),\"No Rebate\"),0)","v":0},{"$f":"IF(Table_PI[[#This Row],[Hide:\nFormula Name]]<>\"\",IFERROR(IF(MeasureCalc(Table_PI[[#This Row],[Hide:\nFormula Name]],Table_PI[[#This Row],[Quantity]],Table_PI[[#This Row],[List 1]],Table_PI[[#This Row],[List 2]],Table_PI[[#This Row],[List 3]],Table_PI[[#This Row],[Size]],Table_PI[[#This Row],[Input 1]],Table_PI[[#This Row],[Input 2]],Table_PI[[#This Row],[Input 3]],Table_PI[[#This Row],[Input 4]],'Customer Information'!$AR$12,1,ROW())>0,MeasureCalc(Table_PI[[#This Row],[Hide:\nFormula Name]],Table_PI[[#This Row],[Quantity]],Table_PI[[#This Row],[List 1]],Table_PI[[#This Row],[List 2]],Table_PI[[#This Row],[List 3]],Table_PI[[#This Row],[Size]],Table_PI[[#This Row],[Input 1]],Table_PI[[#This Row],[Input 2]],Table_PI[[#This Row],[Input 3]],Table_PI[[#This Row],[Input 4]],'Customer Information'!$AR$12,4,ROW()),\"No Rebate\"),\"No Rebate\"),0)","v":0},{"$f":"IF(Table_PI[[#This Row],[Hide:\nFormula Name]]<>\"\",IFERROR(IF(MeasureCalc(Table_PI[[#This Row],[Hide:\nFormula Name]],Table_PI[[#This Row],[Quantity]],Table_PI[[#This Row],[List 1]],Table_PI[[#This Row],[List 2]],Table_PI[[#This Row],[List 3]],Table_PI[[#This Row],[Size]],Table_PI[[#This Row],[Input 1]],Table_PI[[#This Row],[Input 2]],Table_PI[[#This Row],[Input 3]],Table_PI[[#This Row],[Input 4]],'Customer Information'!$AR$12,1,ROW())>0,MeasureCalc(Table_PI[[#This Row],[Hide:\nFormula Name]],Table_PI[[#This Row],[Quantity]],Table_PI[[#This Row],[List 1]],Table_PI[[#This Row],[List 2]],Table_PI[[#This Row],[List 3]],Table_PI[[#This Row],[Size]],Table_PI[[#This Row],[Input 1]],Table_PI[[#This Row],[Input 2]],Table_PI[[#This Row],[Input 3]],Table_PI[[#This Row],[Input 4]],'Customer Information'!$AR$12,5,ROW()),\"No Rebate\"),\"No Rebate\"),0)","v":0},{"$f":"IF(Table_PI[[#This Row],[Hide:\nFormula Name]]<>\"\",IFERROR(IF(MeasureCalc(Table_PI[[#This Row],[Hide:\nFormula Name]],Table_PI[[#This Row],[Quantity]],Table_PI[[#This Row],[List 1]],Table_PI[[#This Row],[List 2]],Table_PI[[#This Row],[List 3]],Table_PI[[#This Row],[Size]],Table_PI[[#This Row],[Input 1]],Table_PI[[#This Row],[Input 2]],Table_PI[[#This Row],[Input 3]],Table_PI[[#This Row],[Input 4]],'Customer Information'!$AR$12,1,ROW())>0,MeasureCalc(Table_PI[[#This Row],[Hide:\nFormula Name]],Table_PI[[#This Row],[Quantity]],Table_PI[[#This Row],[List 1]],Table_PI[[#This Row],[List 2]],Table_PI[[#This Row],[List 3]],Table_PI[[#This Row],[Size]],Table_PI[[#This Row],[Input 1]],Table_PI[[#This Row],[Input 2]],Table_PI[[#This Row],[Input 3]],Table_PI[[#This Row],[Input 4]],'Customer Information'!$AR$12,6,ROW()),\"No Rebate\"),\"No Rebate\"),0)","v":0},{"$f":"IF(Table_PI[[#This Row],[Hide:\nFormula Name]]<>\"\",IFERROR(IF(MeasureCalc(Table_PI[[#This Row],[Hide:\nFormula Name]],Table_PI[[#This Row],[Quantity]],Table_PI[[#This Row],[List 1]],Table_PI[[#This Row],[List 2]],Table_PI[[#This Row],[List 3]],Table_PI[[#This Row],[Size]],Table_PI[[#This Row],[Input 1]],Table_PI[[#This Row],[Input 2]],Table_PI[[#This Row],[Input 3]],Table_PI[[#This Row],[Input 4]],'Customer Information'!$AR$12,1,ROW())>0,MeasureCalc(Table_PI[[#This Row],[Hide:\nFormula Name]],Table_PI[[#This Row],[Quantity]],Table_PI[[#This Row],[List 1]],Table_PI[[#This Row],[List 2]],Table_PI[[#This Row],[List 3]],Table_PI[[#This Row],[Size]],Table_PI[[#This Row],[Input 1]],Table_PI[[#This Row],[Input 2]],Table_PI[[#This Row],[Input 3]],Table_PI[[#This Row],[Input 4]],'Customer Information'!$AR$12,7,ROW()),\"No Rebate\"),\"No Rebate\"),0)","v":0},{"$f":"IF(Table_PI[[#This Row],[Hide:\nFormula Name]]<>\"\",IFERROR(IF(MeasureCalc(Table_PI[[#This Row],[Hide:\nFormula Name]],Table_PI[[#This Row],[Quantity]],Table_PI[[#This Row],[List 1]],Table_PI[[#This Row],[List 2]],Table_PI[[#This Row],[List 3]],Table_PI[[#This Row],[Size]],Table_PI[[#This Row],[Input 1]],Table_PI[[#This Row],[Input 2]],Table_PI[[#This Row],[Input 3]],Table_PI[[#This Row],[Input 4]],'Customer Information'!$AR$12,1,ROW())>0,MeasureCalc(Table_PI[[#This Row],[Hide:\nFormula Name]],Table_PI[[#This Row],[Quantity]],Table_PI[[#This Row],[List 1]],Table_PI[[#This Row],[List 2]],Table_PI[[#This Row],[List 3]],Table_PI[[#This Row],[Size]],Table_PI[[#This Row],[Input 1]],Table_PI[[#This Row],[Input 2]],Table_PI[[#This Row],[Input 3]],Table_PI[[#This Row],[Input 4]],'Customer Information'!$AR$12,8,ROW()),\"No Rebate\"),\"No Rebate\"),0)","v":0},{"$f":"IF(Table_PI[[#This Row],[Hide:\nFormula Name]]<>\"\",IF(AND(Table_PI[[#This Row],[Hide:\nFormula Name]]<>\"\",OR(Table_PI[[#This Row],[Rebate]]>0,Table_PI[[#This Row],[Rebate]]=\"No Rebate\")),TRUE,\"MI: Line Item \" & $A190),\"\")","v":""}]
[{"$f":"IF(Table_PI[[#This Row],[Hide:\nFormula Name]]<>\"\",MAX($A$2:A190)+1,\"\")","v":""},null,null,null,null,null,null,null,null,null,null,null,null,null,null,{"$f":"IFERROR(VLOOKUP(Table_PI[[#This Row],[Measure]],'Equipment Lookups'!$C$3:$D$23,2,FALSE),\"\")","v":""},{"$f":"IF(Table_PI[[#This Row],[Hide:\nFormula Name]]<>\"\",IFERROR(IF(MeasureCalc(Table_PI[[#This Row],[Hide:\nFormula Name]],Table_PI[[#This Row],[Quantity]],Table_PI[[#This Row],[List 1]],Table_PI[[#This Row],[List 2]],Table_PI[[#This Row],[List 3]],Table_PI[[#This Row],[Size]],Table_PI[[#This Row],[Input 1]],Table_PI[[#This Row],[Input 2]],Table_PI[[#This Row],[Input 3]],Table_PI[[#This Row],[Input 4]],'Customer Information'!$AR$12,1,ROW())>0,MeasureCalc(Table_PI[[#This Row],[Hide:\nFormula Name]],Table_PI[[#This Row],[Quantity]],Table_PI[[#This Row],[List 1]],Table_PI[[#This Row],[List 2]],Table_PI[[#This Row],[List 3]],Table_PI[[#This Row],[Size]],Table_PI[[#This Row],[Input 1]],Table_PI[[#This Row],[Input 2]],Table_PI[[#This Row],[Input 3]],Table_PI[[#This Row],[Input 4]],'Customer Information'!$AR$12,1,ROW()),\"No Rebate\"),\"No Rebate\"),0)","v":0},{"$f":"IF(Table_PI[[#This Row],[Hide:\nFormula Name]]<>\"\",IFERROR(IF(MeasureCalc(Table_PI[[#This Row],[Hide:\nFormula Name]],Table_PI[[#This Row],[Quantity]],Table_PI[[#This Row],[List 1]],Table_PI[[#This Row],[List 2]],Table_PI[[#This Row],[List 3]],Table_PI[[#This Row],[Size]],Table_PI[[#This Row],[Input 1]],Table_PI[[#This Row],[Input 2]],Table_PI[[#This Row],[Input 3]],Table_PI[[#This Row],[Input 4]],'Customer Information'!$AR$12,1,ROW())>0,MeasureCalc(Table_PI[[#This Row],[Hide:\nFormula Name]],Table_PI[[#This Row],[Quantity]],Table_PI[[#This Row],[List 1]],Table_PI[[#This Row],[List 2]],Table_PI[[#This Row],[List 3]],Table_PI[[#This Row],[Size]],Table_PI[[#This Row],[Input 1]],Table_PI[[#This Row],[Input 2]],Table_PI[[#This Row],[Input 3]],Table_PI[[#This Row],[Input 4]],'Customer Information'!$AR$12,2,ROW()),\"No Rebate\"),\"No Rebate\"),0)","v":0},{"$f":"IF(Table_PI[[#This Row],[Hide:\nFormula Name]]<>\"\",IFERROR(IF(MeasureCalc(Table_PI[[#This Row],[Hide:\nFormula Name]],Table_PI[[#This Row],[Quantity]],Table_PI[[#This Row],[List 1]],Table_PI[[#This Row],[List 2]],Table_PI[[#This Row],[List 3]],Table_PI[[#This Row],[Size]],Table_PI[[#This Row],[Input 1]],Table_PI[[#This Row],[Input 2]],Table_PI[[#This Row],[Input 3]],Table_PI[[#This Row],[Input 4]],'Customer Information'!$AR$12,1,ROW())>0,MeasureCalc(Table_PI[[#This Row],[Hide:\nFormula Name]],Table_PI[[#This Row],[Quantity]],Table_PI[[#This Row],[List 1]],Table_PI[[#This Row],[List 2]],Table_PI[[#This Row],[List 3]],Table_PI[[#This Row],[Size]],Table_PI[[#This Row],[Input 1]],Table_PI[[#This Row],[Input 2]],Table_PI[[#This Row],[Input 3]],Table_PI[[#This Row],[Input 4]],'Customer Information'!$AR$12,3,ROW()),\"No Rebate\"),\"No Rebate\"),0)","v":0},{"$f":"IF(Table_PI[[#This Row],[Hide:\nFormula Name]]<>\"\",IFERROR(IF(MeasureCalc(Table_PI[[#This Row],[Hide:\nFormula Name]],Table_PI[[#This Row],[Quantity]],Table_PI[[#This Row],[List 1]],Table_PI[[#This Row],[List 2]],Table_PI[[#This Row],[List 3]],Table_PI[[#This Row],[Size]],Table_PI[[#This Row],[Input 1]],Table_PI[[#This Row],[Input 2]],Table_PI[[#This Row],[Input 3]],Table_PI[[#This Row],[Input 4]],'Customer Information'!$AR$12,1,ROW())>0,MeasureCalc(Table_PI[[#This Row],[Hide:\nFormula Name]],Table_PI[[#This Row],[Quantity]],Table_PI[[#This Row],[List 1]],Table_PI[[#This Row],[List 2]],Table_PI[[#This Row],[List 3]],Table_PI[[#This Row],[Size]],Table_PI[[#This Row],[Input 1]],Table_PI[[#This Row],[Input 2]],Table_PI[[#This Row],[Input 3]],Table_PI[[#This Row],[Input 4]],'Customer Information'!$AR$12,4,ROW()),\"No Rebate\"),\"No Rebate\"),0)","v":0},{"$f":"IF(Table_PI[[#This Row],[Hide:\nFormula Name]]<>\"\",IFERROR(IF(MeasureCalc(Table_PI[[#This Row],[Hide:\nFormula Name]],Table_PI[[#This Row],[Quantity]],Table_PI[[#This Row],[List 1]],Table_PI[[#This Row],[List 2]],Table_PI[[#This Row],[List 3]],Table_PI[[#This Row],[Size]],Table_PI[[#This Row],[Input 1]],Table_PI[[#This Row],[Input 2]],Table_PI[[#This Row],[Input 3]],Table_PI[[#This Row],[Input 4]],'Customer Information'!$AR$12,1,ROW())>0,MeasureCalc(Table_PI[[#This Row],[Hide:\nFormula Name]],Table_PI[[#This Row],[Quantity]],Table_PI[[#This Row],[List 1]],Table_PI[[#This Row],[List 2]],Table_PI[[#This Row],[List 3]],Table_PI[[#This Row],[Size]],Table_PI[[#This Row],[Input 1]],Table_PI[[#This Row],[Input 2]],Table_PI[[#This Row],[Input 3]],Table_PI[[#This Row],[Input 4]],'Customer Information'!$AR$12,5,ROW()),\"No Rebate\"),\"No Rebate\"),0)","v":0},{"$f":"IF(Table_PI[[#This Row],[Hide:\nFormula Name]]<>\"\",IFERROR(IF(MeasureCalc(Table_PI[[#This Row],[Hide:\nFormula Name]],Table_PI[[#This Row],[Quantity]],Table_PI[[#This Row],[List 1]],Table_PI[[#This Row],[List 2]],Table_PI[[#This Row],[List 3]],Table_PI[[#This Row],[Size]],Table_PI[[#This Row],[Input 1]],Table_PI[[#This Row],[Input 2]],Table_PI[[#This Row],[Input 3]],Table_PI[[#This Row],[Input 4]],'Customer Information'!$AR$12,1,ROW())>0,MeasureCalc(Table_PI[[#This Row],[Hide:\nFormula Name]],Table_PI[[#This Row],[Quantity]],Table_PI[[#This Row],[List 1]],Table_PI[[#This Row],[List 2]],Table_PI[[#This Row],[List 3]],Table_PI[[#This Row],[Size]],Table_PI[[#This Row],[Input 1]],Table_PI[[#This Row],[Input 2]],Table_PI[[#This Row],[Input 3]],Table_PI[[#This Row],[Input 4]],'Customer Information'!$AR$12,6,ROW()),\"No Rebate\"),\"No Rebate\"),0)","v":0},{"$f":"IF(Table_PI[[#This Row],[Hide:\nFormula Name]]<>\"\",IFERROR(IF(MeasureCalc(Table_PI[[#This Row],[Hide:\nFormula Name]],Table_PI[[#This Row],[Quantity]],Table_PI[[#This Row],[List 1]],Table_PI[[#This Row],[List 2]],Table_PI[[#This Row],[List 3]],Table_PI[[#This Row],[Size]],Table_PI[[#This Row],[Input 1]],Table_PI[[#This Row],[Input 2]],Table_PI[[#This Row],[Input 3]],Table_PI[[#This Row],[Input 4]],'Customer Information'!$AR$12,1,ROW())>0,MeasureCalc(Table_PI[[#This Row],[Hide:\nFormula Name]],Table_PI[[#This Row],[Quantity]],Table_PI[[#This Row],[List 1]],Table_PI[[#This Row],[List 2]],Table_PI[[#This Row],[List 3]],Table_PI[[#This Row],[Size]],Table_PI[[#This Row],[Input 1]],Table_PI[[#This Row],[Input 2]],Table_PI[[#This Row],[Input 3]],Table_PI[[#This Row],[Input 4]],'Customer Information'!$AR$12,7,ROW()),\"No Rebate\"),\"No Rebate\"),0)","v":0},{"$f":"IF(Table_PI[[#This Row],[Hide:\nFormula Name]]<>\"\",IFERROR(IF(MeasureCalc(Table_PI[[#This Row],[Hide:\nFormula Name]],Table_PI[[#This Row],[Quantity]],Table_PI[[#This Row],[List 1]],Table_PI[[#This Row],[List 2]],Table_PI[[#This Row],[List 3]],Table_PI[[#This Row],[Size]],Table_PI[[#This Row],[Input 1]],Table_PI[[#This Row],[Input 2]],Table_PI[[#This Row],[Input 3]],Table_PI[[#This Row],[Input 4]],'Customer Information'!$AR$12,1,ROW())>0,MeasureCalc(Table_PI[[#This Row],[Hide:\nFormula Name]],Table_PI[[#This Row],[Quantity]],Table_PI[[#This Row],[List 1]],Table_PI[[#This Row],[List 2]],Table_PI[[#This Row],[List 3]],Table_PI[[#This Row],[Size]],Table_PI[[#This Row],[Input 1]],Table_PI[[#This Row],[Input 2]],Table_PI[[#This Row],[Input 3]],Table_PI[[#This Row],[Input 4]],'Customer Information'!$AR$12,8,ROW()),\"No Rebate\"),\"No Rebate\"),0)","v":0},{"$f":"IF(Table_PI[[#This Row],[Hide:\nFormula Name]]<>\"\",IF(AND(Table_PI[[#This Row],[Hide:\nFormula Name]]<>\"\",OR(Table_PI[[#This Row],[Rebate]]>0,Table_PI[[#This Row],[Rebate]]=\"No Rebate\")),TRUE,\"MI: Line Item \" & $A191),\"\")","v":""}]
[{"$f":"IF(Table_PI[[#This Row],[Hide:\nFormula Name]]<>\"\",MAX($A$2:A191)+1,\"\")","v":""},null,null,null,null,null,null,null,null,null,null,null,null,null,null,{"$f":"IFERROR(VLOOKUP(Table_PI[[#This Row],[Measure]],'Equipment Lookups'!$C$3:$D$23,2,FALSE),\"\")","v":""},{"$f":"IF(Table_PI[[#This Row],[Hide:\nFormula Name]]<>\"\",IFERROR(IF(MeasureCalc(Table_PI[[#This Row],[Hide:\nFormula Name]],Table_PI[[#This Row],[Quantity]],Table_PI[[#This Row],[List 1]],Table_PI[[#This Row],[List 2]],Table_PI[[#This Row],[List 3]],Table_PI[[#This Row],[Size]],Table_PI[[#This Row],[Input 1]],Table_PI[[#This Row],[Input 2]],Table_PI[[#This Row],[Input 3]],Table_PI[[#This Row],[Input 4]],'Customer Information'!$AR$12,1,ROW())>0,MeasureCalc(Table_PI[[#This Row],[Hide:\nFormula Name]],Table_PI[[#This Row],[Quantity]],Table_PI[[#This Row],[List 1]],Table_PI[[#This Row],[List 2]],Table_PI[[#This Row],[List 3]],Table_PI[[#This Row],[Size]],Table_PI[[#This Row],[Input 1]],Table_PI[[#This Row],[Input 2]],Table_PI[[#This Row],[Input 3]],Table_PI[[#This Row],[Input 4]],'Customer Information'!$AR$12,1,ROW()),\"No Rebate\"),\"No Rebate\"),0)","v":0},{"$f":"IF(Table_PI[[#This Row],[Hide:\nFormula Name]]<>\"\",IFERROR(IF(MeasureCalc(Table_PI[[#This Row],[Hide:\nFormula Name]],Table_PI[[#This Row],[Quantity]],Table_PI[[#This Row],[List 1]],Table_PI[[#This Row],[List 2]],Table_PI[[#This Row],[List 3]],Table_PI[[#This Row],[Size]],Table_PI[[#This Row],[Input 1]],Table_PI[[#This Row],[Input 2]],Table_PI[[#This Row],[Input 3]],Table_PI[[#This Row],[Input 4]],'Customer Information'!$AR$12,1,ROW())>0,MeasureCalc(Table_PI[[#This Row],[Hide:\nFormula Name]],Table_PI[[#This Row],[Quantity]],Table_PI[[#This Row],[List 1]],Table_PI[[#This Row],[List 2]],Table_PI[[#This Row],[List 3]],Table_PI[[#This Row],[Size]],Table_PI[[#This Row],[Input 1]],Table_PI[[#This Row],[Input 2]],Table_PI[[#This Row],[Input 3]],Table_PI[[#This Row],[Input 4]],'Customer Information'!$AR$12,2,ROW()),\"No Rebate\"),\"No Rebate\"),0)","v":0},{"$f":"IF(Table_PI[[#This Row],[Hide:\nFormula Name]]<>\"\",IFERROR(IF(MeasureCalc(Table_PI[[#This Row],[Hide:\nFormula Name]],Table_PI[[#This Row],[Quantity]],Table_PI[[#This Row],[List 1]],Table_PI[[#This Row],[List 2]],Table_PI[[#This Row],[List 3]],Table_PI[[#This Row],[Size]],Table_PI[[#This Row],[Input 1]],Table_PI[[#This Row],[Input 2]],Table_PI[[#This Row],[Input 3]],Table_PI[[#This Row],[Input 4]],'Customer Information'!$AR$12,1,ROW())>0,MeasureCalc(Table_PI[[#This Row],[Hide:\nFormula Name]],Table_PI[[#This Row],[Quantity]],Table_PI[[#This Row],[List 1]],Table_PI[[#This Row],[List 2]],Table_PI[[#This Row],[List 3]],Table_PI[[#This Row],[Size]],Table_PI[[#This Row],[Input 1]],Table_PI[[#This Row],[Input 2]],Table_PI[[#This Row],[Input 3]],Table_PI[[#This Row],[Input 4]],'Customer Information'!$AR$12,3,ROW()),\"No Rebate\"),\"No Rebate\"),0)","v":0},{"$f":"IF(Table_PI[[#This Row],[Hide:\nFormula Name]]<>\"\",IFERROR(IF(MeasureCalc(Table_PI[[#This Row],[Hide:\nFormula Name]],Table_PI[[#This Row],[Quantity]],Table_PI[[#This Row],[List 1]],Table_PI[[#This Row],[List 2]],Table_PI[[#This Row],[List 3]],Table_PI[[#This Row],[Size]],Table_PI[[#This Row],[Input 1]],Table_PI[[#This Row],[Input 2]],Table_PI[[#This Row],[Input 3]],Table_PI[[#This Row],[Input 4]],'Customer Information'!$AR$12,1,ROW())>0,MeasureCalc(Table_PI[[#This Row],[Hide:\nFormula Name]],Table_PI[[#This Row],[Quantity]],Table_PI[[#This Row],[List 1]],Table_PI[[#This Row],[List 2]],Table_PI[[#This Row],[List 3]],Table_PI[[#This Row],[Size]],Table_PI[[#This Row],[Input 1]],Table_PI[[#This Row],[Input 2]],Table_PI[[#This Row],[Input 3]],Table_PI[[#This Row],[Input 4]],'Customer Information'!$AR$12,4,ROW()),\"No Rebate\"),\"No Rebate\"),0)","v":0},{"$f":"IF(Table_PI[[#This Row],[Hide:\nFormula Name]]<>\"\",IFERROR(IF(MeasureCalc(Table_PI[[#This Row],[Hide:\nFormula Name]],Table_PI[[#This Row],[Quantity]],Table_PI[[#This Row],[List 1]],Table_PI[[#This Row],[List 2]],Table_PI[[#This Row],[List 3]],Table_PI[[#This Row],[Size]],Table_PI[[#This Row],[Input 1]],Table_PI[[#This Row],[Input 2]],Table_PI[[#This Row],[Input 3]],Table_PI[[#This Row],[Input 4]],'Customer Information'!$AR$12,1,ROW())>0,MeasureCalc(Table_PI[[#This Row],[Hide:\nFormula Name]],Table_PI[[#This Row],[Quantity]],Table_PI[[#This Row],[List 1]],Table_PI[[#This Row],[List 2]],Table_PI[[#This Row],[List 3]],Table_PI[[#This Row],[Size]],Table_PI[[#This Row],[Input 1]],Table_PI[[#This Row],[Input 2]],Table_PI[[#This Row],[Input 3]],Table_PI[[#This Row],[Input 4]],'Customer Information'!$AR$12,5,ROW()),\"No Rebate\"),\"No Rebate\"),0)","v":0},{"$f":"IF(Table_PI[[#This Row],[Hide:\nFormula Name]]<>\"\",IFERROR(IF(MeasureCalc(Table_PI[[#This Row],[Hide:\nFormula Name]],Table_PI[[#This Row],[Quantity]],Table_PI[[#This Row],[List 1]],Table_PI[[#This Row],[List 2]],Table_PI[[#This Row],[List 3]],Table_PI[[#This Row],[Size]],Table_PI[[#This Row],[Input 1]],Table_PI[[#This Row],[Input 2]],Table_PI[[#This Row],[Input 3]],Table_PI[[#This Row],[Input 4]],'Customer Information'!$AR$12,1,ROW())>0,MeasureCalc(Table_PI[[#This Row],[Hide:\nFormula Name]],Table_PI[[#This Row],[Quantity]],Table_PI[[#This Row],[List 1]],Table_PI[[#This Row],[List 2]],Table_PI[[#This Row],[List 3]],Table_PI[[#This Row],[Size]],Table_PI[[#This Row],[Input 1]],Table_PI[[#This Row],[Input 2]],Table_PI[[#This Row],[Input 3]],Table_PI[[#This Row],[Input 4]],'Customer Information'!$AR$12,6,ROW()),\"No Rebate\"),\"No Rebate\"),0)","v":0},{"$f":"IF(Table_PI[[#This Row],[Hide:\nFormula Name]]<>\"\",IFERROR(IF(MeasureCalc(Table_PI[[#This Row],[Hide:\nFormula Name]],Table_PI[[#This Row],[Quantity]],Table_PI[[#This Row],[List 1]],Table_PI[[#This Row],[List 2]],Table_PI[[#This Row],[List 3]],Table_PI[[#This Row],[Size]],Table_PI[[#This Row],[Input 1]],Table_PI[[#This Row],[Input 2]],Table_PI[[#This Row],[Input 3]],Table_PI[[#This Row],[Input 4]],'Customer Information'!$AR$12,1,ROW())>0,MeasureCalc(Table_PI[[#This Row],[Hide:\nFormula Name]],Table_PI[[#This Row],[Quantity]],Table_PI[[#This Row],[List 1]],Table_PI[[#This Row],[List 2]],Table_PI[[#This Row],[List 3]],Table_PI[[#This Row],[Size]],Table_PI[[#This Row],[Input 1]],Table_PI[[#This Row],[Input 2]],Table_PI[[#This Row],[Input 3]],Table_PI[[#This Row],[Input 4]],'Customer Information'!$AR$12,7,ROW()),\"No Rebate\"),\"No Rebate\"),0)","v":0},{"$f":"IF(Table_PI[[#This Row],[Hide:\nFormula Name]]<>\"\",IFERROR(IF(MeasureCalc(Table_PI[[#This Row],[Hide:\nFormula Name]],Table_PI[[#This Row],[Quantity]],Table_PI[[#This Row],[List 1]],Table_PI[[#This Row],[List 2]],Table_PI[[#This Row],[List 3]],Table_PI[[#This Row],[Size]],Table_PI[[#This Row],[Input 1]],Table_PI[[#This Row],[Input 2]],Table_PI[[#This Row],[Input 3]],Table_PI[[#This Row],[Input 4]],'Customer Information'!$AR$12,1,ROW())>0,MeasureCalc(Table_PI[[#This Row],[Hide:\nFormula Name]],Table_PI[[#This Row],[Quantity]],Table_PI[[#This Row],[List 1]],Table_PI[[#This Row],[List 2]],Table_PI[[#This Row],[List 3]],Table_PI[[#This Row],[Size]],Table_PI[[#This Row],[Input 1]],Table_PI[[#This Row],[Input 2]],Table_PI[[#This Row],[Input 3]],Table_PI[[#This Row],[Input 4]],'Customer Information'!$AR$12,8,ROW()),\"No Rebate\"),\"No Rebate\"),0)","v":0},{"$f":"IF(Table_PI[[#This Row],[Hide:\nFormula Name]]<>\"\",IF(AND(Table_PI[[#This Row],[Hide:\nFormula Name]]<>\"\",OR(Table_PI[[#This Row],[Rebate]]>0,Table_PI[[#This Row],[Rebate]]=\"No Rebate\")),TRUE,\"MI: Line Item \" & $A192),\"\")","v":""}]
[{"$f":"IF(Table_PI[[#This Row],[Hide:\nFormula Name]]<>\"\",MAX($A$2:A192)+1,\"\")","v":""},null,null,null,null,null,null,null,null,null,null,null,null,null,null,{"$f":"IFERROR(VLOOKUP(Table_PI[[#This Row],[Measure]],'Equipment Lookups'!$C$3:$D$23,2,FALSE),\"\")","v":""},{"$f":"IF(Table_PI[[#This Row],[Hide:\nFormula Name]]<>\"\",IFERROR(IF(MeasureCalc(Table_PI[[#This Row],[Hide:\nFormula Name]],Table_PI[[#This Row],[Quantity]],Table_PI[[#This Row],[List 1]],Table_PI[[#This Row],[List 2]],Table_PI[[#This Row],[List 3]],Table_PI[[#This Row],[Size]],Table_PI[[#This Row],[Input 1]],Table_PI[[#This Row],[Input 2]],Table_PI[[#This Row],[Input 3]],Table_PI[[#This Row],[Input 4]],'Customer Information'!$AR$12,1,ROW())>0,MeasureCalc(Table_PI[[#This Row],[Hide:\nFormula Name]],Table_PI[[#This Row],[Quantity]],Table_PI[[#This Row],[List 1]],Table_PI[[#This Row],[List 2]],Table_PI[[#This Row],[List 3]],Table_PI[[#This Row],[Size]],Table_PI[[#This Row],[Input 1]],Table_PI[[#This Row],[Input 2]],Table_PI[[#This Row],[Input 3]],Table_PI[[#This Row],[Input 4]],'Customer Information'!$AR$12,1,ROW()),\"No Rebate\"),\"No Rebate\"),0)","v":0},{"$f":"IF(Table_PI[[#This Row],[Hide:\nFormula Name]]<>\"\",IFERROR(IF(MeasureCalc(Table_PI[[#This Row],[Hide:\nFormula Name]],Table_PI[[#This Row],[Quantity]],Table_PI[[#This Row],[List 1]],Table_PI[[#This Row],[List 2]],Table_PI[[#This Row],[List 3]],Table_PI[[#This Row],[Size]],Table_PI[[#This Row],[Input 1]],Table_PI[[#This Row],[Input 2]],Table_PI[[#This Row],[Input 3]],Table_PI[[#This Row],[Input 4]],'Customer Information'!$AR$12,1,ROW())>0,MeasureCalc(Table_PI[[#This Row],[Hide:\nFormula Name]],Table_PI[[#This Row],[Quantity]],Table_PI[[#This Row],[List 1]],Table_PI[[#This Row],[List 2]],Table_PI[[#This Row],[List 3]],Table_PI[[#This Row],[Size]],Table_PI[[#This Row],[Input 1]],Table_PI[[#This Row],[Input 2]],Table_PI[[#This Row],[Input 3]],Table_PI[[#This Row],[Input 4]],'Customer Information'!$AR$12,2,ROW()),\"No Rebate\"),\"No Rebate\"),0)","v":0},{"$f":"IF(Table_PI[[#This Row],[Hide:\nFormula Name]]<>\"\",IFERROR(IF(MeasureCalc(Table_PI[[#This Row],[Hide:\nFormula Name]],Table_PI[[#This Row],[Quantity]],Table_PI[[#This Row],[List 1]],Table_PI[[#This Row],[List 2]],Table_PI[[#This Row],[List 3]],Table_PI[[#This Row],[Size]],Table_PI[[#This Row],[Input 1]],Table_PI[[#This Row],[Input 2]],Table_PI[[#This Row],[Input 3]],Table_PI[[#This Row],[Input 4]],'Customer Information'!$AR$12,1,ROW())>0,MeasureCalc(Table_PI[[#This Row],[Hide:\nFormula Name]],Table_PI[[#This Row],[Quantity]],Table_PI[[#This Row],[List 1]],Table_PI[[#This Row],[List 2]],Table_PI[[#This Row],[List 3]],Table_PI[[#This Row],[Size]],Table_PI[[#This Row],[Input 1]],Table_PI[[#This Row],[Input 2]],Table_PI[[#This Row],[Input 3]],Table_PI[[#This Row],[Input 4]],'Customer Information'!$AR$12,3,ROW()),\"No Rebate\"),\"No Rebate\"),0)","v":0},{"$f":"IF(Table_PI[[#This Row],[Hide:\nFormula Name]]<>\"\",IFERROR(IF(MeasureCalc(Table_PI[[#This Row],[Hide:\nFormula Name]],Table_PI[[#This Row],[Quantity]],Table_PI[[#This Row],[List 1]],Table_PI[[#This Row],[List 2]],Table_PI[[#This Row],[List 3]],Table_PI[[#This Row],[Size]],Table_PI[[#This Row],[Input 1]],Table_PI[[#This Row],[Input 2]],Table_PI[[#This Row],[Input 3]],Table_PI[[#This Row],[Input 4]],'Customer Information'!$AR$12,1,ROW())>0,MeasureCalc(Table_PI[[#This Row],[Hide:\nFormula Name]],Table_PI[[#This Row],[Quantity]],Table_PI[[#This Row],[List 1]],Table_PI[[#This Row],[List 2]],Table_PI[[#This Row],[List 3]],Table_PI[[#This Row],[Size]],Table_PI[[#This Row],[Input 1]],Table_PI[[#This Row],[Input 2]],Table_PI[[#This Row],[Input 3]],Table_PI[[#This Row],[Input 4]],'Customer Information'!$AR$12,4,ROW()),\"No Rebate\"),\"No Rebate\"),0)","v":0},{"$f":"IF(Table_PI[[#This Row],[Hide:\nFormula Name]]<>\"\",IFERROR(IF(MeasureCalc(Table_PI[[#This Row],[Hide:\nFormula Name]],Table_PI[[#This Row],[Quantity]],Table_PI[[#This Row],[List 1]],Table_PI[[#This Row],[List 2]],Table_PI[[#This Row],[List 3]],Table_PI[[#This Row],[Size]],Table_PI[[#This Row],[Input 1]],Table_PI[[#This Row],[Input 2]],Table_PI[[#This Row],[Input 3]],Table_PI[[#This Row],[Input 4]],'Customer Information'!$AR$12,1,ROW())>0,MeasureCalc(Table_PI[[#This Row],[Hide:\nFormula Name]],Table_PI[[#This Row],[Quantity]],Table_PI[[#This Row],[List 1]],Table_PI[[#This Row],[List 2]],Table_PI[[#This Row],[List 3]],Table_PI[[#This Row],[Size]],Table_PI[[#This Row],[Input 1]],Table_PI[[#This Row],[Input 2]],Table_PI[[#This Row],[Input 3]],Table_PI[[#This Row],[Input 4]],'Customer Information'!$AR$12,5,ROW()),\"No Rebate\"),\"No Rebate\"),0)","v":0},{"$f":"IF(Table_PI[[#This Row],[Hide:\nFormula Name]]<>\"\",IFERROR(IF(MeasureCalc(Table_PI[[#This Row],[Hide:\nFormula Name]],Table_PI[[#This Row],[Quantity]],Table_PI[[#This Row],[List 1]],Table_PI[[#This Row],[List 2]],Table_PI[[#This Row],[List 3]],Table_PI[[#This Row],[Size]],Table_PI[[#This Row],[Input 1]],Table_PI[[#This Row],[Input 2]],Table_PI[[#This Row],[Input 3]],Table_PI[[#This Row],[Input 4]],'Customer Information'!$AR$12,1,ROW())>0,MeasureCalc(Table_PI[[#This Row],[Hide:\nFormula Name]],Table_PI[[#This Row],[Quantity]],Table_PI[[#This Row],[List 1]],Table_PI[[#This Row],[List 2]],Table_PI[[#This Row],[List 3]],Table_PI[[#This Row],[Size]],Table_PI[[#This Row],[Input 1]],Table_PI[[#This Row],[Input 2]],Table_PI[[#This Row],[Input 3]],Table_PI[[#This Row],[Input 4]],'Customer Information'!$AR$12,6,ROW()),\"No Rebate\"),\"No Rebate\"),0)","v":0},{"$f":"IF(Table_PI[[#This Row],[Hide:\nFormula Name]]<>\"\",IFERROR(IF(MeasureCalc(Table_PI[[#This Row],[Hide:\nFormula Name]],Table_PI[[#This Row],[Quantity]],Table_PI[[#This Row],[List 1]],Table_PI[[#This Row],[List 2]],Table_PI[[#This Row],[List 3]],Table_PI[[#This Row],[Size]],Table_PI[[#This Row],[Input 1]],Table_PI[[#This Row],[Input 2]],Table_PI[[#This Row],[Input 3]],Table_PI[[#This Row],[Input 4]],'Customer Information'!$AR$12,1,ROW())>0,MeasureCalc(Table_PI[[#This Row],[Hide:\nFormula Name]],Table_PI[[#This Row],[Quantity]],Table_PI[[#This Row],[List 1]],Table_PI[[#This Row],[List 2]],Table_PI[[#This Row],[List 3]],Table_PI[[#This Row],[Size]],Table_PI[[#This Row],[Input 1]],Table_PI[[#This Row],[Input 2]],Table_PI[[#This Row],[Input 3]],Table_PI[[#This Row],[Input 4]],'Customer Information'!$AR$12,7,ROW()),\"No Rebate\"),\"No Rebate\"),0)","v":0},{"$f":"IF(Table_PI[[#This Row],[Hide:\nFormula Name]]<>\"\",IFERROR(IF(MeasureCalc(Table_PI[[#This Row],[Hide:\nFormula Name]],Table_PI[[#This Row],[Quantity]],Table_PI[[#This Row],[List 1]],Table_PI[[#This Row],[List 2]],Table_PI[[#This Row],[List 3]],Table_PI[[#This Row],[Size]],Table_PI[[#This Row],[Input 1]],Table_PI[[#This Row],[Input 2]],Table_PI[[#This Row],[Input 3]],Table_PI[[#This Row],[Input 4]],'Customer Information'!$AR$12,1,ROW())>0,MeasureCalc(Table_PI[[#This Row],[Hide:\nFormula Name]],Table_PI[[#This Row],[Quantity]],Table_PI[[#This Row],[List 1]],Table_PI[[#This Row],[List 2]],Table_PI[[#This Row],[List 3]],Table_PI[[#This Row],[Size]],Table_PI[[#This Row],[Input 1]],Table_PI[[#This Row],[Input 2]],Table_PI[[#This Row],[Input 3]],Table_PI[[#This Row],[Input 4]],'Customer Information'!$AR$12,8,ROW()),\"No Rebate\"),\"No Rebate\"),0)","v":0},{"$f":"IF(Table_PI[[#This Row],[Hide:\nFormula Name]]<>\"\",IF(AND(Table_PI[[#This Row],[Hide:\nFormula Name]]<>\"\",OR(Table_PI[[#This Row],[Rebate]]>0,Table_PI[[#This Row],[Rebate]]=\"No Rebate\")),TRUE,\"MI: Line Item \" & $A193),\"\")","v":""}]
[{"$f":"IF(Table_PI[[#This Row],[Hide:\nFormula Name]]<>\"\",MAX($A$2:A193)+1,\"\")","v":""},null,null,null,null,null,null,null,null,null,null,null,null,null,null,{"$f":"IFERROR(VLOOKUP(Table_PI[[#This Row],[Measure]],'Equipment Lookups'!$C$3:$D$23,2,FALSE),\"\")","v":""},{"$f":"IF(Table_PI[[#This Row],[Hide:\nFormula Name]]<>\"\",IFERROR(IF(MeasureCalc(Table_PI[[#This Row],[Hide:\nFormula Name]],Table_PI[[#This Row],[Quantity]],Table_PI[[#This Row],[List 1]],Table_PI[[#This Row],[List 2]],Table_PI[[#This Row],[List 3]],Table_PI[[#This Row],[Size]],Table_PI[[#This Row],[Input 1]],Table_PI[[#This Row],[Input 2]],Table_PI[[#This Row],[Input 3]],Table_PI[[#This Row],[Input 4]],'Customer Information'!$AR$12,1,ROW())>0,MeasureCalc(Table_PI[[#This Row],[Hide:\nFormula Name]],Table_PI[[#This Row],[Quantity]],Table_PI[[#This Row],[List 1]],Table_PI[[#This Row],[List 2]],Table_PI[[#This Row],[List 3]],Table_PI[[#This Row],[Size]],Table_PI[[#This Row],[Input 1]],Table_PI[[#This Row],[Input 2]],Table_PI[[#This Row],[Input 3]],Table_PI[[#This Row],[Input 4]],'Customer Information'!$AR$12,1,ROW()),\"No Rebate\"),\"No Rebate\"),0)","v":0},{"$f":"IF(Table_PI[[#This Row],[Hide:\nFormula Name]]<>\"\",IFERROR(IF(MeasureCalc(Table_PI[[#This Row],[Hide:\nFormula Name]],Table_PI[[#This Row],[Quantity]],Table_PI[[#This Row],[List 1]],Table_PI[[#This Row],[List 2]],Table_PI[[#This Row],[List 3]],Table_PI[[#This Row],[Size]],Table_PI[[#This Row],[Input 1]],Table_PI[[#This Row],[Input 2]],Table_PI[[#This Row],[Input 3]],Table_PI[[#This Row],[Input 4]],'Customer Information'!$AR$12,1,ROW())>0,MeasureCalc(Table_PI[[#This Row],[Hide:\nFormula Name]],Table_PI[[#This Row],[Quantity]],Table_PI[[#This Row],[List 1]],Table_PI[[#This Row],[List 2]],Table_PI[[#This Row],[List 3]],Table_PI[[#This Row],[Size]],Table_PI[[#This Row],[Input 1]],Table_PI[[#This Row],[Input 2]],Table_PI[[#This Row],[Input 3]],Table_PI[[#This Row],[Input 4]],'Customer Information'!$AR$12,2,ROW()),\"No Rebate\"),\"No Rebate\"),0)","v":0},{"$f":"IF(Table_PI[[#This Row],[Hide:\nFormula Name]]<>\"\",IFERROR(IF(MeasureCalc(Table_PI[[#This Row],[Hide:\nFormula Name]],Table_PI[[#This Row],[Quantity]],Table_PI[[#This Row],[List 1]],Table_PI[[#This Row],[List 2]],Table_PI[[#This Row],[List 3]],Table_PI[[#This Row],[Size]],Table_PI[[#This Row],[Input 1]],Table_PI[[#This Row],[Input 2]],Table_PI[[#This Row],[Input 3]],Table_PI[[#This Row],[Input 4]],'Customer Information'!$AR$12,1,ROW())>0,MeasureCalc(Table_PI[[#This Row],[Hide:\nFormula Name]],Table_PI[[#This Row],[Quantity]],Table_PI[[#This Row],[List 1]],Table_PI[[#This Row],[List 2]],Table_PI[[#This Row],[List 3]],Table_PI[[#This Row],[Size]],Table_PI[[#This Row],[Input 1]],Table_PI[[#This Row],[Input 2]],Table_PI[[#This Row],[Input 3]],Table_PI[[#This Row],[Input 4]],'Customer Information'!$AR$12,3,ROW()),\"No Rebate\"),\"No Rebate\"),0)","v":0},{"$f":"IF(Table_PI[[#This Row],[Hide:\nFormula Name]]<>\"\",IFERROR(IF(MeasureCalc(Table_PI[[#This Row],[Hide:\nFormula Name]],Table_PI[[#This Row],[Quantity]],Table_PI[[#This Row],[List 1]],Table_PI[[#This Row],[List 2]],Table_PI[[#This Row],[List 3]],Table_PI[[#This Row],[Size]],Table_PI[[#This Row],[Input 1]],Table_PI[[#This Row],[Input 2]],Table_PI[[#This Row],[Input 3]],Table_PI[[#This Row],[Input 4]],'Customer Information'!$AR$12,1,ROW())>0,MeasureCalc(Table_PI[[#This Row],[Hide:\nFormula Name]],Table_PI[[#This Row],[Quantity]],Table_PI[[#This Row],[List 1]],Table_PI[[#This Row],[List 2]],Table_PI[[#This Row],[List 3]],Table_PI[[#This Row],[Size]],Table_PI[[#This Row],[Input 1]],Table_PI[[#This Row],[Input 2]],Table_PI[[#This Row],[Input 3]],Table_PI[[#This Row],[Input 4]],'Customer Information'!$AR$12,4,ROW()),\"No Rebate\"),\"No Rebate\"),0)","v":0},{"$f":"IF(Table_PI[[#This Row],[Hide:\nFormula Name]]<>\"\",IFERROR(IF(MeasureCalc(Table_PI[[#This Row],[Hide:\nFormula Name]],Table_PI[[#This Row],[Quantity]],Table_PI[[#This Row],[List 1]],Table_PI[[#This Row],[List 2]],Table_PI[[#This Row],[List 3]],Table_PI[[#This Row],[Size]],Table_PI[[#This Row],[Input 1]],Table_PI[[#This Row],[Input 2]],Table_PI[[#This Row],[Input 3]],Table_PI[[#This Row],[Input 4]],'Customer Information'!$AR$12,1,ROW())>0,MeasureCalc(Table_PI[[#This Row],[Hide:\nFormula Name]],Table_PI[[#This Row],[Quantity]],Table_PI[[#This Row],[List 1]],Table_PI[[#This Row],[List 2]],Table_PI[[#This Row],[List 3]],Table_PI[[#This Row],[Size]],Table_PI[[#This Row],[Input 1]],Table_PI[[#This Row],[Input 2]],Table_PI[[#This Row],[Input 3]],Table_PI[[#This Row],[Input 4]],'Customer Information'!$AR$12,5,ROW()),\"No Rebate\"),\"No Rebate\"),0)","v":0},{"$f":"IF(Table_PI[[#This Row],[Hide:\nFormula Name]]<>\"\",IFERROR(IF(MeasureCalc(Table_PI[[#This Row],[Hide:\nFormula Name]],Table_PI[[#This Row],[Quantity]],Table_PI[[#This Row],[List 1]],Table_PI[[#This Row],[List 2]],Table_PI[[#This Row],[List 3]],Table_PI[[#This Row],[Size]],Table_PI[[#This Row],[Input 1]],Table_PI[[#This Row],[Input 2]],Table_PI[[#This Row],[Input 3]],Table_PI[[#This Row],[Input 4]],'Customer Information'!$AR$12,1,ROW())>0,MeasureCalc(Table_PI[[#This Row],[Hide:\nFormula Name]],Table_PI[[#This Row],[Quantity]],Table_PI[[#This Row],[List 1]],Table_PI[[#This Row],[List 2]],Table_PI[[#This Row],[List 3]],Table_PI[[#This Row],[Size]],Table_PI[[#This Row],[Input 1]],Table_PI[[#This Row],[Input 2]],Table_PI[[#This Row],[Input 3]],Table_PI[[#This Row],[Input 4]],'Customer Information'!$AR$12,6,ROW()),\"No Rebate\"),\"No Rebate\"),0)","v":0},{"$f":"IF(Table_PI[[#This Row],[Hide:\nFormula Name]]<>\"\",IFERROR(IF(MeasureCalc(Table_PI[[#This Row],[Hide:\nFormula Name]],Table_PI[[#This Row],[Quantity]],Table_PI[[#This Row],[List 1]],Table_PI[[#This Row],[List 2]],Table_PI[[#This Row],[List 3]],Table_PI[[#This Row],[Size]],Table_PI[[#This Row],[Input 1]],Table_PI[[#This Row],[Input 2]],Table_PI[[#This Row],[Input 3]],Table_PI[[#This Row],[Input 4]],'Customer Information'!$AR$12,1,ROW())>0,MeasureCalc(Table_PI[[#This Row],[Hide:\nFormula Name]],Table_PI[[#This Row],[Quantity]],Table_PI[[#This Row],[List 1]],Table_PI[[#This Row],[List 2]],Table_PI[[#This Row],[List 3]],Table_PI[[#This Row],[Size]],Table_PI[[#This Row],[Input 1]],Table_PI[[#This Row],[Input 2]],Table_PI[[#This Row],[Input 3]],Table_PI[[#This Row],[Input 4]],'Customer Information'!$AR$12,7,ROW()),\"No Rebate\"),\"No Rebate\"),0)","v":0},{"$f":"IF(Table_PI[[#This Row],[Hide:\nFormula Name]]<>\"\",IFERROR(IF(MeasureCalc(Table_PI[[#This Row],[Hide:\nFormula Name]],Table_PI[[#This Row],[Quantity]],Table_PI[[#This Row],[List 1]],Table_PI[[#This Row],[List 2]],Table_PI[[#This Row],[List 3]],Table_PI[[#This Row],[Size]],Table_PI[[#This Row],[Input 1]],Table_PI[[#This Row],[Input 2]],Table_PI[[#This Row],[Input 3]],Table_PI[[#This Row],[Input 4]],'Customer Information'!$AR$12,1,ROW())>0,MeasureCalc(Table_PI[[#This Row],[Hide:\nFormula Name]],Table_PI[[#This Row],[Quantity]],Table_PI[[#This Row],[List 1]],Table_PI[[#This Row],[List 2]],Table_PI[[#This Row],[List 3]],Table_PI[[#This Row],[Size]],Table_PI[[#This Row],[Input 1]],Table_PI[[#This Row],[Input 2]],Table_PI[[#This Row],[Input 3]],Table_PI[[#This Row],[Input 4]],'Customer Information'!$AR$12,8,ROW()),\"No Rebate\"),\"No Rebate\"),0)","v":0},{"$f":"IF(Table_PI[[#This Row],[Hide:\nFormula Name]]<>\"\",IF(AND(Table_PI[[#This Row],[Hide:\nFormula Name]]<>\"\",OR(Table_PI[[#This Row],[Rebate]]>0,Table_PI[[#This Row],[Rebate]]=\"No Rebate\")),TRUE,\"MI: Line Item \" & $A194),\"\")","v":""}]
[{"$f":"IF(Table_PI[[#This Row],[Hide:\nFormula Name]]<>\"\",MAX($A$2:A194)+1,\"\")","v":""},null,null,null,null,null,null,null,null,null,null,null,null,null,null,{"$f":"IFERROR(VLOOKUP(Table_PI[[#This Row],[Measure]],'Equipment Lookups'!$C$3:$D$23,2,FALSE),\"\")","v":""},{"$f":"IF(Table_PI[[#This Row],[Hide:\nFormula Name]]<>\"\",IFERROR(IF(MeasureCalc(Table_PI[[#This Row],[Hide:\nFormula Name]],Table_PI[[#This Row],[Quantity]],Table_PI[[#This Row],[List 1]],Table_PI[[#This Row],[List 2]],Table_PI[[#This Row],[List 3]],Table_PI[[#This Row],[Size]],Table_PI[[#This Row],[Input 1]],Table_PI[[#This Row],[Input 2]],Table_PI[[#This Row],[Input 3]],Table_PI[[#This Row],[Input 4]],'Customer Information'!$AR$12,1,ROW())>0,MeasureCalc(Table_PI[[#This Row],[Hide:\nFormula Name]],Table_PI[[#This Row],[Quantity]],Table_PI[[#This Row],[List 1]],Table_PI[[#This Row],[List 2]],Table_PI[[#This Row],[List 3]],Table_PI[[#This Row],[Size]],Table_PI[[#This Row],[Input 1]],Table_PI[[#This Row],[Input 2]],Table_PI[[#This Row],[Input 3]],Table_PI[[#This Row],[Input 4]],'Customer Information'!$AR$12,1,ROW()),\"No Rebate\"),\"No Rebate\"),0)","v":0},{"$f":"IF(Table_PI[[#This Row],[Hide:\nFormula Name]]<>\"\",IFERROR(IF(MeasureCalc(Table_PI[[#This Row],[Hide:\nFormula Name]],Table_PI[[#This Row],[Quantity]],Table_PI[[#This Row],[List 1]],Table_PI[[#This Row],[List 2]],Table_PI[[#This Row],[List 3]],Table_PI[[#This Row],[Size]],Table_PI[[#This Row],[Input 1]],Table_PI[[#This Row],[Input 2]],Table_PI[[#This Row],[Input 3]],Table_PI[[#This Row],[Input 4]],'Customer Information'!$AR$12,1,ROW())>0,MeasureCalc(Table_PI[[#This Row],[Hide:\nFormula Name]],Table_PI[[#This Row],[Quantity]],Table_PI[[#This Row],[List 1]],Table_PI[[#This Row],[List 2]],Table_PI[[#This Row],[List 3]],Table_PI[[#This Row],[Size]],Table_PI[[#This Row],[Input 1]],Table_PI[[#This Row],[Input 2]],Table_PI[[#This Row],[Input 3]],Table_PI[[#This Row],[Input 4]],'Customer Information'!$AR$12,2,ROW()),\"No Rebate\"),\"No Rebate\"),0)","v":0},{"$f":"IF(Table_PI[[#This Row],[Hide:\nFormula Name]]<>\"\",IFERROR(IF(MeasureCalc(Table_PI[[#This Row],[Hide:\nFormula Name]],Table_PI[[#This Row],[Quantity]],Table_PI[[#This Row],[List 1]],Table_PI[[#This Row],[List 2]],Table_PI[[#This Row],[List 3]],Table_PI[[#This Row],[Size]],Table_PI[[#This Row],[Input 1]],Table_PI[[#This Row],[Input 2]],Table_PI[[#This Row],[Input 3]],Table_PI[[#This Row],[Input 4]],'Customer Information'!$AR$12,1,ROW())>0,MeasureCalc(Table_PI[[#This Row],[Hide:\nFormula Name]],Table_PI[[#This Row],[Quantity]],Table_PI[[#This Row],[List 1]],Table_PI[[#This Row],[List 2]],Table_PI[[#This Row],[List 3]],Table_PI[[#This Row],[Size]],Table_PI[[#This Row],[Input 1]],Table_PI[[#This Row],[Input 2]],Table_PI[[#This Row],[Input 3]],Table_PI[[#This Row],[Input 4]],'Customer Information'!$AR$12,3,ROW()),\"No Rebate\"),\"No Rebate\"),0)","v":0},{"$f":"IF(Table_PI[[#This Row],[Hide:\nFormula Name]]<>\"\",IFERROR(IF(MeasureCalc(Table_PI[[#This Row],[Hide:\nFormula Name]],Table_PI[[#This Row],[Quantity]],Table_PI[[#This Row],[List 1]],Table_PI[[#This Row],[List 2]],Table_PI[[#This Row],[List 3]],Table_PI[[#This Row],[Size]],Table_PI[[#This Row],[Input 1]],Table_PI[[#This Row],[Input 2]],Table_PI[[#This Row],[Input 3]],Table_PI[[#This Row],[Input 4]],'Customer Information'!$AR$12,1,ROW())>0,MeasureCalc(Table_PI[[#This Row],[Hide:\nFormula Name]],Table_PI[[#This Row],[Quantity]],Table_PI[[#This Row],[List 1]],Table_PI[[#This Row],[List 2]],Table_PI[[#This Row],[List 3]],Table_PI[[#This Row],[Size]],Table_PI[[#This Row],[Input 1]],Table_PI[[#This Row],[Input 2]],Table_PI[[#This Row],[Input 3]],Table_PI[[#This Row],[Input 4]],'Customer Information'!$AR$12,4,ROW()),\"No Rebate\"),\"No Rebate\"),0)","v":0},{"$f":"IF(Table_PI[[#This Row],[Hide:\nFormula Name]]<>\"\",IFERROR(IF(MeasureCalc(Table_PI[[#This Row],[Hide:\nFormula Name]],Table_PI[[#This Row],[Quantity]],Table_PI[[#This Row],[List 1]],Table_PI[[#This Row],[List 2]],Table_PI[[#This Row],[List 3]],Table_PI[[#This Row],[Size]],Table_PI[[#This Row],[Input 1]],Table_PI[[#This Row],[Input 2]],Table_PI[[#This Row],[Input 3]],Table_PI[[#This Row],[Input 4]],'Customer Information'!$AR$12,1,ROW())>0,MeasureCalc(Table_PI[[#This Row],[Hide:\nFormula Name]],Table_PI[[#This Row],[Quantity]],Table_PI[[#This Row],[List 1]],Table_PI[[#This Row],[List 2]],Table_PI[[#This Row],[List 3]],Table_PI[[#This Row],[Size]],Table_PI[[#This Row],[Input 1]],Table_PI[[#This Row],[Input 2]],Table_PI[[#This Row],[Input 3]],Table_PI[[#This Row],[Input 4]],'Customer Information'!$AR$12,5,ROW()),\"No Rebate\"),\"No Rebate\"),0)","v":0},{"$f":"IF(Table_PI[[#This Row],[Hide:\nFormula Name]]<>\"\",IFERROR(IF(MeasureCalc(Table_PI[[#This Row],[Hide:\nFormula Name]],Table_PI[[#This Row],[Quantity]],Table_PI[[#This Row],[List 1]],Table_PI[[#This Row],[List 2]],Table_PI[[#This Row],[List 3]],Table_PI[[#This Row],[Size]],Table_PI[[#This Row],[Input 1]],Table_PI[[#This Row],[Input 2]],Table_PI[[#This Row],[Input 3]],Table_PI[[#This Row],[Input 4]],'Customer Information'!$AR$12,1,ROW())>0,MeasureCalc(Table_PI[[#This Row],[Hide:\nFormula Name]],Table_PI[[#This Row],[Quantity]],Table_PI[[#This Row],[List 1]],Table_PI[[#This Row],[List 2]],Table_PI[[#This Row],[List 3]],Table_PI[[#This Row],[Size]],Table_PI[[#This Row],[Input 1]],Table_PI[[#This Row],[Input 2]],Table_PI[[#This Row],[Input 3]],Table_PI[[#This Row],[Input 4]],'Customer Information'!$AR$12,6,ROW()),\"No Rebate\"),\"No Rebate\"),0)","v":0},{"$f":"IF(Table_PI[[#This Row],[Hide:\nFormula Name]]<>\"\",IFERROR(IF(MeasureCalc(Table_PI[[#This Row],[Hide:\nFormula Name]],Table_PI[[#This Row],[Quantity]],Table_PI[[#This Row],[List 1]],Table_PI[[#This Row],[List 2]],Table_PI[[#This Row],[List 3]],Table_PI[[#This Row],[Size]],Table_PI[[#This Row],[Input 1]],Table_PI[[#This Row],[Input 2]],Table_PI[[#This Row],[Input 3]],Table_PI[[#This Row],[Input 4]],'Customer Information'!$AR$12,1,ROW())>0,MeasureCalc(Table_PI[[#This Row],[Hide:\nFormula Name]],Table_PI[[#This Row],[Quantity]],Table_PI[[#This Row],[List 1]],Table_PI[[#This Row],[List 2]],Table_PI[[#This Row],[List 3]],Table_PI[[#This Row],[Size]],Table_PI[[#This Row],[Input 1]],Table_PI[[#This Row],[Input 2]],Table_PI[[#This Row],[Input 3]],Table_PI[[#This Row],[Input 4]],'Customer Information'!$AR$12,7,ROW()),\"No Rebate\"),\"No Rebate\"),0)","v":0},{"$f":"IF(Table_PI[[#This Row],[Hide:\nFormula Name]]<>\"\",IFERROR(IF(MeasureCalc(Table_PI[[#This Row],[Hide:\nFormula Name]],Table_PI[[#This Row],[Quantity]],Table_PI[[#This Row],[List 1]],Table_PI[[#This Row],[List 2]],Table_PI[[#This Row],[List 3]],Table_PI[[#This Row],[Size]],Table_PI[[#This Row],[Input 1]],Table_PI[[#This Row],[Input 2]],Table_PI[[#This Row],[Input 3]],Table_PI[[#This Row],[Input 4]],'Customer Information'!$AR$12,1,ROW())>0,MeasureCalc(Table_PI[[#This Row],[Hide:\nFormula Name]],Table_PI[[#This Row],[Quantity]],Table_PI[[#This Row],[List 1]],Table_PI[[#This Row],[List 2]],Table_PI[[#This Row],[List 3]],Table_PI[[#This Row],[Size]],Table_PI[[#This Row],[Input 1]],Table_PI[[#This Row],[Input 2]],Table_PI[[#This Row],[Input 3]],Table_PI[[#This Row],[Input 4]],'Customer Information'!$AR$12,8,ROW()),\"No Rebate\"),\"No Rebate\"),0)","v":0},{"$f":"IF(Table_PI[[#This Row],[Hide:\nFormula Name]]<>\"\",IF(AND(Table_PI[[#This Row],[Hide:\nFormula Name]]<>\"\",OR(Table_PI[[#This Row],[Rebate]]>0,Table_PI[[#This Row],[Rebate]]=\"No Rebate\")),TRUE,\"MI: Line Item \" & $A195),\"\")","v":""}]
[{"$f":"IF(Table_PI[[#This Row],[Hide:\nFormula Name]]<>\"\",MAX($A$2:A195)+1,\"\")","v":""},null,null,null,null,null,null,null,null,null,null,null,null,null,null,{"$f":"IFERROR(VLOOKUP(Table_PI[[#This Row],[Measure]],'Equipment Lookups'!$C$3:$D$23,2,FALSE),\"\")","v":""},{"$f":"IF(Table_PI[[#This Row],[Hide:\nFormula Name]]<>\"\",IFERROR(IF(MeasureCalc(Table_PI[[#This Row],[Hide:\nFormula Name]],Table_PI[[#This Row],[Quantity]],Table_PI[[#This Row],[List 1]],Table_PI[[#This Row],[List 2]],Table_PI[[#This Row],[List 3]],Table_PI[[#This Row],[Size]],Table_PI[[#This Row],[Input 1]],Table_PI[[#This Row],[Input 2]],Table_PI[[#This Row],[Input 3]],Table_PI[[#This Row],[Input 4]],'Customer Information'!$AR$12,1,ROW())>0,MeasureCalc(Table_PI[[#This Row],[Hide:\nFormula Name]],Table_PI[[#This Row],[Quantity]],Table_PI[[#This Row],[List 1]],Table_PI[[#This Row],[List 2]],Table_PI[[#This Row],[List 3]],Table_PI[[#This Row],[Size]],Table_PI[[#This Row],[Input 1]],Table_PI[[#This Row],[Input 2]],Table_PI[[#This Row],[Input 3]],Table_PI[[#This Row],[Input 4]],'Customer Information'!$AR$12,1,ROW()),\"No Rebate\"),\"No Rebate\"),0)","v":0},{"$f":"IF(Table_PI[[#This Row],[Hide:\nFormula Name]]<>\"\",IFERROR(IF(MeasureCalc(Table_PI[[#This Row],[Hide:\nFormula Name]],Table_PI[[#This Row],[Quantity]],Table_PI[[#This Row],[List 1]],Table_PI[[#This Row],[List 2]],Table_PI[[#This Row],[List 3]],Table_PI[[#This Row],[Size]],Table_PI[[#This Row],[Input 1]],Table_PI[[#This Row],[Input 2]],Table_PI[[#This Row],[Input 3]],Table_PI[[#This Row],[Input 4]],'Customer Information'!$AR$12,1,ROW())>0,MeasureCalc(Table_PI[[#This Row],[Hide:\nFormula Name]],Table_PI[[#This Row],[Quantity]],Table_PI[[#This Row],[List 1]],Table_PI[[#This Row],[List 2]],Table_PI[[#This Row],[List 3]],Table_PI[[#This Row],[Size]],Table_PI[[#This Row],[Input 1]],Table_PI[[#This Row],[Input 2]],Table_PI[[#This Row],[Input 3]],Table_PI[[#This Row],[Input 4]],'Customer Information'!$AR$12,2,ROW()),\"No Rebate\"),\"No Rebate\"),0)","v":0},{"$f":"IF(Table_PI[[#This Row],[Hide:\nFormula Name]]<>\"\",IFERROR(IF(MeasureCalc(Table_PI[[#This Row],[Hide:\nFormula Name]],Table_PI[[#This Row],[Quantity]],Table_PI[[#This Row],[List 1]],Table_PI[[#This Row],[List 2]],Table_PI[[#This Row],[List 3]],Table_PI[[#This Row],[Size]],Table_PI[[#This Row],[Input 1]],Table_PI[[#This Row],[Input 2]],Table_PI[[#This Row],[Input 3]],Table_PI[[#This Row],[Input 4]],'Customer Information'!$AR$12,1,ROW())>0,MeasureCalc(Table_PI[[#This Row],[Hide:\nFormula Name]],Table_PI[[#This Row],[Quantity]],Table_PI[[#This Row],[List 1]],Table_PI[[#This Row],[List 2]],Table_PI[[#This Row],[List 3]],Table_PI[[#This Row],[Size]],Table_PI[[#This Row],[Input 1]],Table_PI[[#This Row],[Input 2]],Table_PI[[#This Row],[Input 3]],Table_PI[[#This Row],[Input 4]],'Customer Information'!$AR$12,3,ROW()),\"No Rebate\"),\"No Rebate\"),0)","v":0},{"$f":"IF(Table_PI[[#This Row],[Hide:\nFormula Name]]<>\"\",IFERROR(IF(MeasureCalc(Table_PI[[#This Row],[Hide:\nFormula Name]],Table_PI[[#This Row],[Quantity]],Table_PI[[#This Row],[List 1]],Table_PI[[#This Row],[List 2]],Table_PI[[#This Row],[List 3]],Table_PI[[#This Row],[Size]],Table_PI[[#This Row],[Input 1]],Table_PI[[#This Row],[Input 2]],Table_PI[[#This Row],[Input 3]],Table_PI[[#This Row],[Input 4]],'Customer Information'!$AR$12,1,ROW())>0,MeasureCalc(Table_PI[[#This Row],[Hide:\nFormula Name]],Table_PI[[#This Row],[Quantity]],Table_PI[[#This Row],[List 1]],Table_PI[[#This Row],[List 2]],Table_PI[[#This Row],[List 3]],Table_PI[[#This Row],[Size]],Table_PI[[#This Row],[Input 1]],Table_PI[[#This Row],[Input 2]],Table_PI[[#This Row],[Input 3]],Table_PI[[#This Row],[Input 4]],'Customer Information'!$AR$12,4,ROW()),\"No Rebate\"),\"No Rebate\"),0)","v":0},{"$f":"IF(Table_PI[[#This Row],[Hide:\nFormula Name]]<>\"\",IFERROR(IF(MeasureCalc(Table_PI[[#This Row],[Hide:\nFormula Name]],Table_PI[[#This Row],[Quantity]],Table_PI[[#This Row],[List 1]],Table_PI[[#This Row],[List 2]],Table_PI[[#This Row],[List 3]],Table_PI[[#This Row],[Size]],Table_PI[[#This Row],[Input 1]],Table_PI[[#This Row],[Input 2]],Table_PI[[#This Row],[Input 3]],Table_PI[[#This Row],[Input 4]],'Customer Information'!$AR$12,1,ROW())>0,MeasureCalc(Table_PI[[#This Row],[Hide:\nFormula Name]],Table_PI[[#This Row],[Quantity]],Table_PI[[#This Row],[List 1]],Table_PI[[#This Row],[List 2]],Table_PI[[#This Row],[List 3]],Table_PI[[#This Row],[Size]],Table_PI[[#This Row],[Input 1]],Table_PI[[#This Row],[Input 2]],Table_PI[[#This Row],[Input 3]],Table_PI[[#This Row],[Input 4]],'Customer Information'!$AR$12,5,ROW()),\"No Rebate\"),\"No Rebate\"),0)","v":0},{"$f":"IF(Table_PI[[#This Row],[Hide:\nFormula Name]]<>\"\",IFERROR(IF(MeasureCalc(Table_PI[[#This Row],[Hide:\nFormula Name]],Table_PI[[#This Row],[Quantity]],Table_PI[[#This Row],[List 1]],Table_PI[[#This Row],[List 2]],Table_PI[[#This Row],[List 3]],Table_PI[[#This Row],[Size]],Table_PI[[#This Row],[Input 1]],Table_PI[[#This Row],[Input 2]],Table_PI[[#This Row],[Input 3]],Table_PI[[#This Row],[Input 4]],'Customer Information'!$AR$12,1,ROW())>0,MeasureCalc(Table_PI[[#This Row],[Hide:\nFormula Name]],Table_PI[[#This Row],[Quantity]],Table_PI[[#This Row],[List 1]],Table_PI[[#This Row],[List 2]],Table_PI[[#This Row],[List 3]],Table_PI[[#This Row],[Size]],Table_PI[[#This Row],[Input 1]],Table_PI[[#This Row],[Input 2]],Table_PI[[#This Row],[Input 3]],Table_PI[[#This Row],[Input 4]],'Customer Information'!$AR$12,6,ROW()),\"No Rebate\"),\"No Rebate\"),0)","v":0},{"$f":"IF(Table_PI[[#This Row],[Hide:\nFormula Name]]<>\"\",IFERROR(IF(MeasureCalc(Table_PI[[#This Row],[Hide:\nFormula Name]],Table_PI[[#This Row],[Quantity]],Table_PI[[#This Row],[List 1]],Table_PI[[#This Row],[List 2]],Table_PI[[#This Row],[List 3]],Table_PI[[#This Row],[Size]],Table_PI[[#This Row],[Input 1]],Table_PI[[#This Row],[Input 2]],Table_PI[[#This Row],[Input 3]],Table_PI[[#This Row],[Input 4]],'Customer Information'!$AR$12,1,ROW())>0,MeasureCalc(Table_PI[[#This Row],[Hide:\nFormula Name]],Table_PI[[#This Row],[Quantity]],Table_PI[[#This Row],[List 1]],Table_PI[[#This Row],[List 2]],Table_PI[[#This Row],[List 3]],Table_PI[[#This Row],[Size]],Table_PI[[#This Row],[Input 1]],Table_PI[[#This Row],[Input 2]],Table_PI[[#This Row],[Input 3]],Table_PI[[#This Row],[Input 4]],'Customer Information'!$AR$12,7,ROW()),\"No Rebate\"),\"No Rebate\"),0)","v":0},{"$f":"IF(Table_PI[[#This Row],[Hide:\nFormula Name]]<>\"\",IFERROR(IF(MeasureCalc(Table_PI[[#This Row],[Hide:\nFormula Name]],Table_PI[[#This Row],[Quantity]],Table_PI[[#This Row],[List 1]],Table_PI[[#This Row],[List 2]],Table_PI[[#This Row],[List 3]],Table_PI[[#This Row],[Size]],Table_PI[[#This Row],[Input 1]],Table_PI[[#This Row],[Input 2]],Table_PI[[#This Row],[Input 3]],Table_PI[[#This Row],[Input 4]],'Customer Information'!$AR$12,1,ROW())>0,MeasureCalc(Table_PI[[#This Row],[Hide:\nFormula Name]],Table_PI[[#This Row],[Quantity]],Table_PI[[#This Row],[List 1]],Table_PI[[#This Row],[List 2]],Table_PI[[#This Row],[List 3]],Table_PI[[#This Row],[Size]],Table_PI[[#This Row],[Input 1]],Table_PI[[#This Row],[Input 2]],Table_PI[[#This Row],[Input 3]],Table_PI[[#This Row],[Input 4]],'Customer Information'!$AR$12,8,ROW()),\"No Rebate\"),\"No Rebate\"),0)","v":0},{"$f":"IF(Table_PI[[#This Row],[Hide:\nFormula Name]]<>\"\",IF(AND(Table_PI[[#This Row],[Hide:\nFormula Name]]<>\"\",OR(Table_PI[[#This Row],[Rebate]]>0,Table_PI[[#This Row],[Rebate]]=\"No Rebate\")),TRUE,\"MI: Line Item \" & $A196),\"\")","v":""}]
[{"$f":"IF(Table_PI[[#This Row],[Hide:\nFormula Name]]<>\"\",MAX($A$2:A196)+1,\"\")","v":""},null,null,null,null,null,null,null,null,null,null,null,null,null,null,{"$f":"IFERROR(VLOOKUP(Table_PI[[#This Row],[Measure]],'Equipment Lookups'!$C$3:$D$23,2,FALSE),\"\")","v":""},{"$f":"IF(Table_PI[[#This Row],[Hide:\nFormula Name]]<>\"\",IFERROR(IF(MeasureCalc(Table_PI[[#This Row],[Hide:\nFormula Name]],Table_PI[[#This Row],[Quantity]],Table_PI[[#This Row],[List 1]],Table_PI[[#This Row],[List 2]],Table_PI[[#This Row],[List 3]],Table_PI[[#This Row],[Size]],Table_PI[[#This Row],[Input 1]],Table_PI[[#This Row],[Input 2]],Table_PI[[#This Row],[Input 3]],Table_PI[[#This Row],[Input 4]],'Customer Information'!$AR$12,1,ROW())>0,MeasureCalc(Table_PI[[#This Row],[Hide:\nFormula Name]],Table_PI[[#This Row],[Quantity]],Table_PI[[#This Row],[List 1]],Table_PI[[#This Row],[List 2]],Table_PI[[#This Row],[List 3]],Table_PI[[#This Row],[Size]],Table_PI[[#This Row],[Input 1]],Table_PI[[#This Row],[Input 2]],Table_PI[[#This Row],[Input 3]],Table_PI[[#This Row],[Input 4]],'Customer Information'!$AR$12,1,ROW()),\"No Rebate\"),\"No Rebate\"),0)","v":0},{"$f":"IF(Table_PI[[#This Row],[Hide:\nFormula Name]]<>\"\",IFERROR(IF(MeasureCalc(Table_PI[[#This Row],[Hide:\nFormula Name]],Table_PI[[#This Row],[Quantity]],Table_PI[[#This Row],[List 1]],Table_PI[[#This Row],[List 2]],Table_PI[[#This Row],[List 3]],Table_PI[[#This Row],[Size]],Table_PI[[#This Row],[Input 1]],Table_PI[[#This Row],[Input 2]],Table_PI[[#This Row],[Input 3]],Table_PI[[#This Row],[Input 4]],'Customer Information'!$AR$12,1,ROW())>0,MeasureCalc(Table_PI[[#This Row],[Hide:\nFormula Name]],Table_PI[[#This Row],[Quantity]],Table_PI[[#This Row],[List 1]],Table_PI[[#This Row],[List 2]],Table_PI[[#This Row],[List 3]],Table_PI[[#This Row],[Size]],Table_PI[[#This Row],[Input 1]],Table_PI[[#This Row],[Input 2]],Table_PI[[#This Row],[Input 3]],Table_PI[[#This Row],[Input 4]],'Customer Information'!$AR$12,2,ROW()),\"No Rebate\"),\"No Rebate\"),0)","v":0},{"$f":"IF(Table_PI[[#This Row],[Hide:\nFormula Name]]<>\"\",IFERROR(IF(MeasureCalc(Table_PI[[#This Row],[Hide:\nFormula Name]],Table_PI[[#This Row],[Quantity]],Table_PI[[#This Row],[List 1]],Table_PI[[#This Row],[List 2]],Table_PI[[#This Row],[List 3]],Table_PI[[#This Row],[Size]],Table_PI[[#This Row],[Input 1]],Table_PI[[#This Row],[Input 2]],Table_PI[[#This Row],[Input 3]],Table_PI[[#This Row],[Input 4]],'Customer Information'!$AR$12,1,ROW())>0,MeasureCalc(Table_PI[[#This Row],[Hide:\nFormula Name]],Table_PI[[#This Row],[Quantity]],Table_PI[[#This Row],[List 1]],Table_PI[[#This Row],[List 2]],Table_PI[[#This Row],[List 3]],Table_PI[[#This Row],[Size]],Table_PI[[#This Row],[Input 1]],Table_PI[[#This Row],[Input 2]],Table_PI[[#This Row],[Input 3]],Table_PI[[#This Row],[Input 4]],'Customer Information'!$AR$12,3,ROW()),\"No Rebate\"),\"No Rebate\"),0)","v":0},{"$f":"IF(Table_PI[[#This Row],[Hide:\nFormula Name]]<>\"\",IFERROR(IF(MeasureCalc(Table_PI[[#This Row],[Hide:\nFormula Name]],Table_PI[[#This Row],[Quantity]],Table_PI[[#This Row],[List 1]],Table_PI[[#This Row],[List 2]],Table_PI[[#This Row],[List 3]],Table_PI[[#This Row],[Size]],Table_PI[[#This Row],[Input 1]],Table_PI[[#This Row],[Input 2]],Table_PI[[#This Row],[Input 3]],Table_PI[[#This Row],[Input 4]],'Customer Information'!$AR$12,1,ROW())>0,MeasureCalc(Table_PI[[#This Row],[Hide:\nFormula Name]],Table_PI[[#This Row],[Quantity]],Table_PI[[#This Row],[List 1]],Table_PI[[#This Row],[List 2]],Table_PI[[#This Row],[List 3]],Table_PI[[#This Row],[Size]],Table_PI[[#This Row],[Input 1]],Table_PI[[#This Row],[Input 2]],Table_PI[[#This Row],[Input 3]],Table_PI[[#This Row],[Input 4]],'Customer Information'!$AR$12,4,ROW()),\"No Rebate\"),\"No Rebate\"),0)","v":0},{"$f":"IF(Table_PI[[#This Row],[Hide:\nFormula Name]]<>\"\",IFERROR(IF(MeasureCalc(Table_PI[[#This Row],[Hide:\nFormula Name]],Table_PI[[#This Row],[Quantity]],Table_PI[[#This Row],[List 1]],Table_PI[[#This Row],[List 2]],Table_PI[[#This Row],[List 3]],Table_PI[[#This Row],[Size]],Table_PI[[#This Row],[Input 1]],Table_PI[[#This Row],[Input 2]],Table_PI[[#This Row],[Input 3]],Table_PI[[#This Row],[Input 4]],'Customer Information'!$AR$12,1,ROW())>0,MeasureCalc(Table_PI[[#This Row],[Hide:\nFormula Name]],Table_PI[[#This Row],[Quantity]],Table_PI[[#This Row],[List 1]],Table_PI[[#This Row],[List 2]],Table_PI[[#This Row],[List 3]],Table_PI[[#This Row],[Size]],Table_PI[[#This Row],[Input 1]],Table_PI[[#This Row],[Input 2]],Table_PI[[#This Row],[Input 3]],Table_PI[[#This Row],[Input 4]],'Customer Information'!$AR$12,5,ROW()),\"No Rebate\"),\"No Rebate\"),0)","v":0},{"$f":"IF(Table_PI[[#This Row],[Hide:\nFormula Name]]<>\"\",IFERROR(IF(MeasureCalc(Table_PI[[#This Row],[Hide:\nFormula Name]],Table_PI[[#This Row],[Quantity]],Table_PI[[#This Row],[List 1]],Table_PI[[#This Row],[List 2]],Table_PI[[#This Row],[List 3]],Table_PI[[#This Row],[Size]],Table_PI[[#This Row],[Input 1]],Table_PI[[#This Row],[Input 2]],Table_PI[[#This Row],[Input 3]],Table_PI[[#This Row],[Input 4]],'Customer Information'!$AR$12,1,ROW())>0,MeasureCalc(Table_PI[[#This Row],[Hide:\nFormula Name]],Table_PI[[#This Row],[Quantity]],Table_PI[[#This Row],[List 1]],Table_PI[[#This Row],[List 2]],Table_PI[[#This Row],[List 3]],Table_PI[[#This Row],[Size]],Table_PI[[#This Row],[Input 1]],Table_PI[[#This Row],[Input 2]],Table_PI[[#This Row],[Input 3]],Table_PI[[#This Row],[Input 4]],'Customer Information'!$AR$12,6,ROW()),\"No Rebate\"),\"No Rebate\"),0)","v":0},{"$f":"IF(Table_PI[[#This Row],[Hide:\nFormula Name]]<>\"\",IFERROR(IF(MeasureCalc(Table_PI[[#This Row],[Hide:\nFormula Name]],Table_PI[[#This Row],[Quantity]],Table_PI[[#This Row],[List 1]],Table_PI[[#This Row],[List 2]],Table_PI[[#This Row],[List 3]],Table_PI[[#This Row],[Size]],Table_PI[[#This Row],[Input 1]],Table_PI[[#This Row],[Input 2]],Table_PI[[#This Row],[Input 3]],Table_PI[[#This Row],[Input 4]],'Customer Information'!$AR$12,1,ROW())>0,MeasureCalc(Table_PI[[#This Row],[Hide:\nFormula Name]],Table_PI[[#This Row],[Quantity]],Table_PI[[#This Row],[List 1]],Table_PI[[#This Row],[List 2]],Table_PI[[#This Row],[List 3]],Table_PI[[#This Row],[Size]],Table_PI[[#This Row],[Input 1]],Table_PI[[#This Row],[Input 2]],Table_PI[[#This Row],[Input 3]],Table_PI[[#This Row],[Input 4]],'Customer Information'!$AR$12,7,ROW()),\"No Rebate\"),\"No Rebate\"),0)","v":0},{"$f":"IF(Table_PI[[#This Row],[Hide:\nFormula Name]]<>\"\",IFERROR(IF(MeasureCalc(Table_PI[[#This Row],[Hide:\nFormula Name]],Table_PI[[#This Row],[Quantity]],Table_PI[[#This Row],[List 1]],Table_PI[[#This Row],[List 2]],Table_PI[[#This Row],[List 3]],Table_PI[[#This Row],[Size]],Table_PI[[#This Row],[Input 1]],Table_PI[[#This Row],[Input 2]],Table_PI[[#This Row],[Input 3]],Table_PI[[#This Row],[Input 4]],'Customer Information'!$AR$12,1,ROW())>0,MeasureCalc(Table_PI[[#This Row],[Hide:\nFormula Name]],Table_PI[[#This Row],[Quantity]],Table_PI[[#This Row],[List 1]],Table_PI[[#This Row],[List 2]],Table_PI[[#This Row],[List 3]],Table_PI[[#This Row],[Size]],Table_PI[[#This Row],[Input 1]],Table_PI[[#This Row],[Input 2]],Table_PI[[#This Row],[Input 3]],Table_PI[[#This Row],[Input 4]],'Customer Information'!$AR$12,8,ROW()),\"No Rebate\"),\"No Rebate\"),0)","v":0},{"$f":"IF(Table_PI[[#This Row],[Hide:\nFormula Name]]<>\"\",IF(AND(Table_PI[[#This Row],[Hide:\nFormula Name]]<>\"\",OR(Table_PI[[#This Row],[Rebate]]>0,Table_PI[[#This Row],[Rebate]]=\"No Rebate\")),TRUE,\"MI: Line Item \" & $A197),\"\")","v":""}]
[{"$f":"IF(Table_PI[[#This Row],[Hide:\nFormula Name]]<>\"\",MAX($A$2:A197)+1,\"\")","v":""},null,null,null,null,null,null,null,null,null,null,null,null,null,null,{"$f":"IFERROR(VLOOKUP(Table_PI[[#This Row],[Measure]],'Equipment Lookups'!$C$3:$D$23,2,FALSE),\"\")","v":""},{"$f":"IF(Table_PI[[#This Row],[Hide:\nFormula Name]]<>\"\",IFERROR(IF(MeasureCalc(Table_PI[[#This Row],[Hide:\nFormula Name]],Table_PI[[#This Row],[Quantity]],Table_PI[[#This Row],[List 1]],Table_PI[[#This Row],[List 2]],Table_PI[[#This Row],[List 3]],Table_PI[[#This Row],[Size]],Table_PI[[#This Row],[Input 1]],Table_PI[[#This Row],[Input 2]],Table_PI[[#This Row],[Input 3]],Table_PI[[#This Row],[Input 4]],'Customer Information'!$AR$12,1,ROW())>0,MeasureCalc(Table_PI[[#This Row],[Hide:\nFormula Name]],Table_PI[[#This Row],[Quantity]],Table_PI[[#This Row],[List 1]],Table_PI[[#This Row],[List 2]],Table_PI[[#This Row],[List 3]],Table_PI[[#This Row],[Size]],Table_PI[[#This Row],[Input 1]],Table_PI[[#This Row],[Input 2]],Table_PI[[#This Row],[Input 3]],Table_PI[[#This Row],[Input 4]],'Customer Information'!$AR$12,1,ROW()),\"No Rebate\"),\"No Rebate\"),0)","v":0},{"$f":"IF(Table_PI[[#This Row],[Hide:\nFormula Name]]<>\"\",IFERROR(IF(MeasureCalc(Table_PI[[#This Row],[Hide:\nFormula Name]],Table_PI[[#This Row],[Quantity]],Table_PI[[#This Row],[List 1]],Table_PI[[#This Row],[List 2]],Table_PI[[#This Row],[List 3]],Table_PI[[#This Row],[Size]],Table_PI[[#This Row],[Input 1]],Table_PI[[#This Row],[Input 2]],Table_PI[[#This Row],[Input 3]],Table_PI[[#This Row],[Input 4]],'Customer Information'!$AR$12,1,ROW())>0,MeasureCalc(Table_PI[[#This Row],[Hide:\nFormula Name]],Table_PI[[#This Row],[Quantity]],Table_PI[[#This Row],[List 1]],Table_PI[[#This Row],[List 2]],Table_PI[[#This Row],[List 3]],Table_PI[[#This Row],[Size]],Table_PI[[#This Row],[Input 1]],Table_PI[[#This Row],[Input 2]],Table_PI[[#This Row],[Input 3]],Table_PI[[#This Row],[Input 4]],'Customer Information'!$AR$12,2,ROW()),\"No Rebate\"),\"No Rebate\"),0)","v":0},{"$f":"IF(Table_PI[[#This Row],[Hide:\nFormula Name]]<>\"\",IFERROR(IF(MeasureCalc(Table_PI[[#This Row],[Hide:\nFormula Name]],Table_PI[[#This Row],[Quantity]],Table_PI[[#This Row],[List 1]],Table_PI[[#This Row],[List 2]],Table_PI[[#This Row],[List 3]],Table_PI[[#This Row],[Size]],Table_PI[[#This Row],[Input 1]],Table_PI[[#This Row],[Input 2]],Table_PI[[#This Row],[Input 3]],Table_PI[[#This Row],[Input 4]],'Customer Information'!$AR$12,1,ROW())>0,MeasureCalc(Table_PI[[#This Row],[Hide:\nFormula Name]],Table_PI[[#This Row],[Quantity]],Table_PI[[#This Row],[List 1]],Table_PI[[#This Row],[List 2]],Table_PI[[#This Row],[List 3]],Table_PI[[#This Row],[Size]],Table_PI[[#This Row],[Input 1]],Table_PI[[#This Row],[Input 2]],Table_PI[[#This Row],[Input 3]],Table_PI[[#This Row],[Input 4]],'Customer Information'!$AR$12,3,ROW()),\"No Rebate\"),\"No Rebate\"),0)","v":0},{"$f":"IF(Table_PI[[#This Row],[Hide:\nFormula Name]]<>\"\",IFERROR(IF(MeasureCalc(Table_PI[[#This Row],[Hide:\nFormula Name]],Table_PI[[#This Row],[Quantity]],Table_PI[[#This Row],[List 1]],Table_PI[[#This Row],[List 2]],Table_PI[[#This Row],[List 3]],Table_PI[[#This Row],[Size]],Table_PI[[#This Row],[Input 1]],Table_PI[[#This Row],[Input 2]],Table_PI[[#This Row],[Input 3]],Table_PI[[#This Row],[Input 4]],'Customer Information'!$AR$12,1,ROW())>0,MeasureCalc(Table_PI[[#This Row],[Hide:\nFormula Name]],Table_PI[[#This Row],[Quantity]],Table_PI[[#This Row],[List 1]],Table_PI[[#This Row],[List 2]],Table_PI[[#This Row],[List 3]],Table_PI[[#This Row],[Size]],Table_PI[[#This Row],[Input 1]],Table_PI[[#This Row],[Input 2]],Table_PI[[#This Row],[Input 3]],Table_PI[[#This Row],[Input 4]],'Customer Information'!$AR$12,4,ROW()),\"No Rebate\"),\"No Rebate\"),0)","v":0},{"$f":"IF(Table_PI[[#This Row],[Hide:\nFormula Name]]<>\"\",IFERROR(IF(MeasureCalc(Table_PI[[#This Row],[Hide:\nFormula Name]],Table_PI[[#This Row],[Quantity]],Table_PI[[#This Row],[List 1]],Table_PI[[#This Row],[List 2]],Table_PI[[#This Row],[List 3]],Table_PI[[#This Row],[Size]],Table_PI[[#This Row],[Input 1]],Table_PI[[#This Row],[Input 2]],Table_PI[[#This Row],[Input 3]],Table_PI[[#This Row],[Input 4]],'Customer Information'!$AR$12,1,ROW())>0,MeasureCalc(Table_PI[[#This Row],[Hide:\nFormula Name]],Table_PI[[#This Row],[Quantity]],Table_PI[[#This Row],[List 1]],Table_PI[[#This Row],[List 2]],Table_PI[[#This Row],[List 3]],Table_PI[[#This Row],[Size]],Table_PI[[#This Row],[Input 1]],Table_PI[[#This Row],[Input 2]],Table_PI[[#This Row],[Input 3]],Table_PI[[#This Row],[Input 4]],'Customer Information'!$AR$12,5,ROW()),\"No Rebate\"),\"No Rebate\"),0)","v":0},{"$f":"IF(Table_PI[[#This Row],[Hide:\nFormula Name]]<>\"\",IFERROR(IF(MeasureCalc(Table_PI[[#This Row],[Hide:\nFormula Name]],Table_PI[[#This Row],[Quantity]],Table_PI[[#This Row],[List 1]],Table_PI[[#This Row],[List 2]],Table_PI[[#This Row],[List 3]],Table_PI[[#This Row],[Size]],Table_PI[[#This Row],[Input 1]],Table_PI[[#This Row],[Input 2]],Table_PI[[#This Row],[Input 3]],Table_PI[[#This Row],[Input 4]],'Customer Information'!$AR$12,1,ROW())>0,MeasureCalc(Table_PI[[#This Row],[Hide:\nFormula Name]],Table_PI[[#This Row],[Quantity]],Table_PI[[#This Row],[List 1]],Table_PI[[#This Row],[List 2]],Table_PI[[#This Row],[List 3]],Table_PI[[#This Row],[Size]],Table_PI[[#This Row],[Input 1]],Table_PI[[#This Row],[Input 2]],Table_PI[[#This Row],[Input 3]],Table_PI[[#This Row],[Input 4]],'Customer Information'!$AR$12,6,ROW()),\"No Rebate\"),\"No Rebate\"),0)","v":0},{"$f":"IF(Table_PI[[#This Row],[Hide:\nFormula Name]]<>\"\",IFERROR(IF(MeasureCalc(Table_PI[[#This Row],[Hide:\nFormula Name]],Table_PI[[#This Row],[Quantity]],Table_PI[[#This Row],[List 1]],Table_PI[[#This Row],[List 2]],Table_PI[[#This Row],[List 3]],Table_PI[[#This Row],[Size]],Table_PI[[#This Row],[Input 1]],Table_PI[[#This Row],[Input 2]],Table_PI[[#This Row],[Input 3]],Table_PI[[#This Row],[Input 4]],'Customer Information'!$AR$12,1,ROW())>0,MeasureCalc(Table_PI[[#This Row],[Hide:\nFormula Name]],Table_PI[[#This Row],[Quantity]],Table_PI[[#This Row],[List 1]],Table_PI[[#This Row],[List 2]],Table_PI[[#This Row],[List 3]],Table_PI[[#This Row],[Size]],Table_PI[[#This Row],[Input 1]],Table_PI[[#This Row],[Input 2]],Table_PI[[#This Row],[Input 3]],Table_PI[[#This Row],[Input 4]],'Customer Information'!$AR$12,7,ROW()),\"No Rebate\"),\"No Rebate\"),0)","v":0},{"$f":"IF(Table_PI[[#This Row],[Hide:\nFormula Name]]<>\"\",IFERROR(IF(MeasureCalc(Table_PI[[#This Row],[Hide:\nFormula Name]],Table_PI[[#This Row],[Quantity]],Table_PI[[#This Row],[List 1]],Table_PI[[#This Row],[List 2]],Table_PI[[#This Row],[List 3]],Table_PI[[#This Row],[Size]],Table_PI[[#This Row],[Input 1]],Table_PI[[#This Row],[Input 2]],Table_PI[[#This Row],[Input 3]],Table_PI[[#This Row],[Input 4]],'Customer Information'!$AR$12,1,ROW())>0,MeasureCalc(Table_PI[[#This Row],[Hide:\nFormula Name]],Table_PI[[#This Row],[Quantity]],Table_PI[[#This Row],[List 1]],Table_PI[[#This Row],[List 2]],Table_PI[[#This Row],[List 3]],Table_PI[[#This Row],[Size]],Table_PI[[#This Row],[Input 1]],Table_PI[[#This Row],[Input 2]],Table_PI[[#This Row],[Input 3]],Table_PI[[#This Row],[Input 4]],'Customer Information'!$AR$12,8,ROW()),\"No Rebate\"),\"No Rebate\"),0)","v":0},{"$f":"IF(Table_PI[[#This Row],[Hide:\nFormula Name]]<>\"\",IF(AND(Table_PI[[#This Row],[Hide:\nFormula Name]]<>\"\",OR(Table_PI[[#This Row],[Rebate]]>0,Table_PI[[#This Row],[Rebate]]=\"No Rebate\")),TRUE,\"MI: Line Item \" & $A198),\"\")","v":""}]
[{"$f":"IF(Table_PI[[#This Row],[Hide:\nFormula Name]]<>\"\",MAX($A$2:A198)+1,\"\")","v":""},null,null,null,null,null,null,null,null,null,null,null,null,null,null,{"$f":"IFERROR(VLOOKUP(Table_PI[[#This Row],[Measure]],'Equipment Lookups'!$C$3:$D$23,2,FALSE),\"\")","v":""},{"$f":"IF(Table_PI[[#This Row],[Hide:\nFormula Name]]<>\"\",IFERROR(IF(MeasureCalc(Table_PI[[#This Row],[Hide:\nFormula Name]],Table_PI[[#This Row],[Quantity]],Table_PI[[#This Row],[List 1]],Table_PI[[#This Row],[List 2]],Table_PI[[#This Row],[List 3]],Table_PI[[#This Row],[Size]],Table_PI[[#This Row],[Input 1]],Table_PI[[#This Row],[Input 2]],Table_PI[[#This Row],[Input 3]],Table_PI[[#This Row],[Input 4]],'Customer Information'!$AR$12,1,ROW())>0,MeasureCalc(Table_PI[[#This Row],[Hide:\nFormula Name]],Table_PI[[#This Row],[Quantity]],Table_PI[[#This Row],[List 1]],Table_PI[[#This Row],[List 2]],Table_PI[[#This Row],[List 3]],Table_PI[[#This Row],[Size]],Table_PI[[#This Row],[Input 1]],Table_PI[[#This Row],[Input 2]],Table_PI[[#This Row],[Input 3]],Table_PI[[#This Row],[Input 4]],'Customer Information'!$AR$12,1,ROW()),\"No Rebate\"),\"No Rebate\"),0)","v":0},{"$f":"IF(Table_PI[[#This Row],[Hide:\nFormula Name]]<>\"\",IFERROR(IF(MeasureCalc(Table_PI[[#This Row],[Hide:\nFormula Name]],Table_PI[[#This Row],[Quantity]],Table_PI[[#This Row],[List 1]],Table_PI[[#This Row],[List 2]],Table_PI[[#This Row],[List 3]],Table_PI[[#This Row],[Size]],Table_PI[[#This Row],[Input 1]],Table_PI[[#This Row],[Input 2]],Table_PI[[#This Row],[Input 3]],Table_PI[[#This Row],[Input 4]],'Customer Information'!$AR$12,1,ROW())>0,MeasureCalc(Table_PI[[#This Row],[Hide:\nFormula Name]],Table_PI[[#This Row],[Quantity]],Table_PI[[#This Row],[List 1]],Table_PI[[#This Row],[List 2]],Table_PI[[#This Row],[List 3]],Table_PI[[#This Row],[Size]],Table_PI[[#This Row],[Input 1]],Table_PI[[#This Row],[Input 2]],Table_PI[[#This Row],[Input 3]],Table_PI[[#This Row],[Input 4]],'Customer Information'!$AR$12,2,ROW()),\"No Rebate\"),\"No Rebate\"),0)","v":0},{"$f":"IF(Table_PI[[#This Row],[Hide:\nFormula Name]]<>\"\",IFERROR(IF(MeasureCalc(Table_PI[[#This Row],[Hide:\nFormula Name]],Table_PI[[#This Row],[Quantity]],Table_PI[[#This Row],[List 1]],Table_PI[[#This Row],[List 2]],Table_PI[[#This Row],[List 3]],Table_PI[[#This Row],[Size]],Table_PI[[#This Row],[Input 1]],Table_PI[[#This Row],[Input 2]],Table_PI[[#This Row],[Input 3]],Table_PI[[#This Row],[Input 4]],'Customer Information'!$AR$12,1,ROW())>0,MeasureCalc(Table_PI[[#This Row],[Hide:\nFormula Name]],Table_PI[[#This Row],[Quantity]],Table_PI[[#This Row],[List 1]],Table_PI[[#This Row],[List 2]],Table_PI[[#This Row],[List 3]],Table_PI[[#This Row],[Size]],Table_PI[[#This Row],[Input 1]],Table_PI[[#This Row],[Input 2]],Table_PI[[#This Row],[Input 3]],Table_PI[[#This Row],[Input 4]],'Customer Information'!$AR$12,3,ROW()),\"No Rebate\"),\"No Rebate\"),0)","v":0},{"$f":"IF(Table_PI[[#This Row],[Hide:\nFormula Name]]<>\"\",IFERROR(IF(MeasureCalc(Table_PI[[#This Row],[Hide:\nFormula Name]],Table_PI[[#This Row],[Quantity]],Table_PI[[#This Row],[List 1]],Table_PI[[#This Row],[List 2]],Table_PI[[#This Row],[List 3]],Table_PI[[#This Row],[Size]],Table_PI[[#This Row],[Input 1]],Table_PI[[#This Row],[Input 2]],Table_PI[[#This Row],[Input 3]],Table_PI[[#This Row],[Input 4]],'Customer Information'!$AR$12,1,ROW())>0,MeasureCalc(Table_PI[[#This Row],[Hide:\nFormula Name]],Table_PI[[#This Row],[Quantity]],Table_PI[[#This Row],[List 1]],Table_PI[[#This Row],[List 2]],Table_PI[[#This Row],[List 3]],Table_PI[[#This Row],[Size]],Table_PI[[#This Row],[Input 1]],Table_PI[[#This Row],[Input 2]],Table_PI[[#This Row],[Input 3]],Table_PI[[#This Row],[Input 4]],'Customer Information'!$AR$12,4,ROW()),\"No Rebate\"),\"No Rebate\"),0)","v":0},{"$f":"IF(Table_PI[[#This Row],[Hide:\nFormula Name]]<>\"\",IFERROR(IF(MeasureCalc(Table_PI[[#This Row],[Hide:\nFormula Name]],Table_PI[[#This Row],[Quantity]],Table_PI[[#This Row],[List 1]],Table_PI[[#This Row],[List 2]],Table_PI[[#This Row],[List 3]],Table_PI[[#This Row],[Size]],Table_PI[[#This Row],[Input 1]],Table_PI[[#This Row],[Input 2]],Table_PI[[#This Row],[Input 3]],Table_PI[[#This Row],[Input 4]],'Customer Information'!$AR$12,1,ROW())>0,MeasureCalc(Table_PI[[#This Row],[Hide:\nFormula Name]],Table_PI[[#This Row],[Quantity]],Table_PI[[#This Row],[List 1]],Table_PI[[#This Row],[List 2]],Table_PI[[#This Row],[List 3]],Table_PI[[#This Row],[Size]],Table_PI[[#This Row],[Input 1]],Table_PI[[#This Row],[Input 2]],Table_PI[[#This Row],[Input 3]],Table_PI[[#This Row],[Input 4]],'Customer Information'!$AR$12,5,ROW()),\"No Rebate\"),\"No Rebate\"),0)","v":0},{"$f":"IF(Table_PI[[#This Row],[Hide:\nFormula Name]]<>\"\",IFERROR(IF(MeasureCalc(Table_PI[[#This Row],[Hide:\nFormula Name]],Table_PI[[#This Row],[Quantity]],Table_PI[[#This Row],[List 1]],Table_PI[[#This Row],[List 2]],Table_PI[[#This Row],[List 3]],Table_PI[[#This Row],[Size]],Table_PI[[#This Row],[Input 1]],Table_PI[[#This Row],[Input 2]],Table_PI[[#This Row],[Input 3]],Table_PI[[#This Row],[Input 4]],'Customer Information'!$AR$12,1,ROW())>0,MeasureCalc(Table_PI[[#This Row],[Hide:\nFormula Name]],Table_PI[[#This Row],[Quantity]],Table_PI[[#This Row],[List 1]],Table_PI[[#This Row],[List 2]],Table_PI[[#This Row],[List 3]],Table_PI[[#This Row],[Size]],Table_PI[[#This Row],[Input 1]],Table_PI[[#This Row],[Input 2]],Table_PI[[#This Row],[Input 3]],Table_PI[[#This Row],[Input 4]],'Customer Information'!$AR$12,6,ROW()),\"No Rebate\"),\"No Rebate\"),0)","v":0},{"$f":"IF(Table_PI[[#This Row],[Hide:\nFormula Name]]<>\"\",IFERROR(IF(MeasureCalc(Table_PI[[#This Row],[Hide:\nFormula Name]],Table_PI[[#This Row],[Quantity]],Table_PI[[#This Row],[List 1]],Table_PI[[#This Row],[List 2]],Table_PI[[#This Row],[List 3]],Table_PI[[#This Row],[Size]],Table_PI[[#This Row],[Input 1]],Table_PI[[#This Row],[Input 2]],Table_PI[[#This Row],[Input 3]],Table_PI[[#This Row],[Input 4]],'Customer Information'!$AR$12,1,ROW())>0,MeasureCalc(Table_PI[[#This Row],[Hide:\nFormula Name]],Table_PI[[#This Row],[Quantity]],Table_PI[[#This Row],[List 1]],Table_PI[[#This Row],[List 2]],Table_PI[[#This Row],[List 3]],Table_PI[[#This Row],[Size]],Table_PI[[#This Row],[Input 1]],Table_PI[[#This Row],[Input 2]],Table_PI[[#This Row],[Input 3]],Table_PI[[#This Row],[Input 4]],'Customer Information'!$AR$12,7,ROW()),\"No Rebate\"),\"No Rebate\"),0)","v":0},{"$f":"IF(Table_PI[[#This Row],[Hide:\nFormula Name]]<>\"\",IFERROR(IF(MeasureCalc(Table_PI[[#This Row],[Hide:\nFormula Name]],Table_PI[[#This Row],[Quantity]],Table_PI[[#This Row],[List 1]],Table_PI[[#This Row],[List 2]],Table_PI[[#This Row],[List 3]],Table_PI[[#This Row],[Size]],Table_PI[[#This Row],[Input 1]],Table_PI[[#This Row],[Input 2]],Table_PI[[#This Row],[Input 3]],Table_PI[[#This Row],[Input 4]],'Customer Information'!$AR$12,1,ROW())>0,MeasureCalc(Table_PI[[#This Row],[Hide:\nFormula Name]],Table_PI[[#This Row],[Quantity]],Table_PI[[#This Row],[List 1]],Table_PI[[#This Row],[List 2]],Table_PI[[#This Row],[List 3]],Table_PI[[#This Row],[Size]],Table_PI[[#This Row],[Input 1]],Table_PI[[#This Row],[Input 2]],Table_PI[[#This Row],[Input 3]],Table_PI[[#This Row],[Input 4]],'Customer Information'!$AR$12,8,ROW()),\"No Rebate\"),\"No Rebate\"),0)","v":0},{"$f":"IF(Table_PI[[#This Row],[Hide:\nFormula Name]]<>\"\",IF(AND(Table_PI[[#This Row],[Hide:\nFormula Name]]<>\"\",OR(Table_PI[[#This Row],[Rebate]]>0,Table_PI[[#This Row],[Rebate]]=\"No Rebate\")),TRUE,\"MI: Line Item \" & $A199),\"\")","v":""}]
[{"$f":"IF(Table_PI[[#This Row],[Hide:\nFormula Name]]<>\"\",MAX($A$2:A199)+1,\"\")","v":""},null,null,null,null,null,null,null,null,null,null,null,null,null,null,{"$f":"IFERROR(VLOOKUP(Table_PI[[#This Row],[Measure]],'Equipment Lookups'!$C$3:$D$23,2,FALSE),\"\")","v":""},{"$f":"IF(Table_PI[[#This Row],[Hide:\nFormula Name]]<>\"\",IFERROR(IF(MeasureCalc(Table_PI[[#This Row],[Hide:\nFormula Name]],Table_PI[[#This Row],[Quantity]],Table_PI[[#This Row],[List 1]],Table_PI[[#This Row],[List 2]],Table_PI[[#This Row],[List 3]],Table_PI[[#This Row],[Size]],Table_PI[[#This Row],[Input 1]],Table_PI[[#This Row],[Input 2]],Table_PI[[#This Row],[Input 3]],Table_PI[[#This Row],[Input 4]],'Customer Information'!$AR$12,1,ROW())>0,MeasureCalc(Table_PI[[#This Row],[Hide:\nFormula Name]],Table_PI[[#This Row],[Quantity]],Table_PI[[#This Row],[List 1]],Table_PI[[#This Row],[List 2]],Table_PI[[#This Row],[List 3]],Table_PI[[#This Row],[Size]],Table_PI[[#This Row],[Input 1]],Table_PI[[#This Row],[Input 2]],Table_PI[[#This Row],[Input 3]],Table_PI[[#This Row],[Input 4]],'Customer Information'!$AR$12,1,ROW()),\"No Rebate\"),\"No Rebate\"),0)","v":0},{"$f":"IF(Table_PI[[#This Row],[Hide:\nFormula Name]]<>\"\",IFERROR(IF(MeasureCalc(Table_PI[[#This Row],[Hide:\nFormula Name]],Table_PI[[#This Row],[Quantity]],Table_PI[[#This Row],[List 1]],Table_PI[[#This Row],[List 2]],Table_PI[[#This Row],[List 3]],Table_PI[[#This Row],[Size]],Table_PI[[#This Row],[Input 1]],Table_PI[[#This Row],[Input 2]],Table_PI[[#This Row],[Input 3]],Table_PI[[#This Row],[Input 4]],'Customer Information'!$AR$12,1,ROW())>0,MeasureCalc(Table_PI[[#This Row],[Hide:\nFormula Name]],Table_PI[[#This Row],[Quantity]],Table_PI[[#This Row],[List 1]],Table_PI[[#This Row],[List 2]],Table_PI[[#This Row],[List 3]],Table_PI[[#This Row],[Size]],Table_PI[[#This Row],[Input 1]],Table_PI[[#This Row],[Input 2]],Table_PI[[#This Row],[Input 3]],Table_PI[[#This Row],[Input 4]],'Customer Information'!$AR$12,2,ROW()),\"No Rebate\"),\"No Rebate\"),0)","v":0},{"$f":"IF(Table_PI[[#This Row],[Hide:\nFormula Name]]<>\"\",IFERROR(IF(MeasureCalc(Table_PI[[#This Row],[Hide:\nFormula Name]],Table_PI[[#This Row],[Quantity]],Table_PI[[#This Row],[List 1]],Table_PI[[#This Row],[List 2]],Table_PI[[#This Row],[List 3]],Table_PI[[#This Row],[Size]],Table_PI[[#This Row],[Input 1]],Table_PI[[#This Row],[Input 2]],Table_PI[[#This Row],[Input 3]],Table_PI[[#This Row],[Input 4]],'Customer Information'!$AR$12,1,ROW())>0,MeasureCalc(Table_PI[[#This Row],[Hide:\nFormula Name]],Table_PI[[#This Row],[Quantity]],Table_PI[[#This Row],[List 1]],Table_PI[[#This Row],[List 2]],Table_PI[[#This Row],[List 3]],Table_PI[[#This Row],[Size]],Table_PI[[#This Row],[Input 1]],Table_PI[[#This Row],[Input 2]],Table_PI[[#This Row],[Input 3]],Table_PI[[#This Row],[Input 4]],'Customer Information'!$AR$12,3,ROW()),\"No Rebate\"),\"No Rebate\"),0)","v":0},{"$f":"IF(Table_PI[[#This Row],[Hide:\nFormula Name]]<>\"\",IFERROR(IF(MeasureCalc(Table_PI[[#This Row],[Hide:\nFormula Name]],Table_PI[[#This Row],[Quantity]],Table_PI[[#This Row],[List 1]],Table_PI[[#This Row],[List 2]],Table_PI[[#This Row],[List 3]],Table_PI[[#This Row],[Size]],Table_PI[[#This Row],[Input 1]],Table_PI[[#This Row],[Input 2]],Table_PI[[#This Row],[Input 3]],Table_PI[[#This Row],[Input 4]],'Customer Information'!$AR$12,1,ROW())>0,MeasureCalc(Table_PI[[#This Row],[Hide:\nFormula Name]],Table_PI[[#This Row],[Quantity]],Table_PI[[#This Row],[List 1]],Table_PI[[#This Row],[List 2]],Table_PI[[#This Row],[List 3]],Table_PI[[#This Row],[Size]],Table_PI[[#This Row],[Input 1]],Table_PI[[#This Row],[Input 2]],Table_PI[[#This Row],[Input 3]],Table_PI[[#This Row],[Input 4]],'Customer Information'!$AR$12,4,ROW()),\"No Rebate\"),\"No Rebate\"),0)","v":0},{"$f":"IF(Table_PI[[#This Row],[Hide:\nFormula Name]]<>\"\",IFERROR(IF(MeasureCalc(Table_PI[[#This Row],[Hide:\nFormula Name]],Table_PI[[#This Row],[Quantity]],Table_PI[[#This Row],[List 1]],Table_PI[[#This Row],[List 2]],Table_PI[[#This Row],[List 3]],Table_PI[[#This Row],[Size]],Table_PI[[#This Row],[Input 1]],Table_PI[[#This Row],[Input 2]],Table_PI[[#This Row],[Input 3]],Table_PI[[#This Row],[Input 4]],'Customer Information'!$AR$12,1,ROW())>0,MeasureCalc(Table_PI[[#This Row],[Hide:\nFormula Name]],Table_PI[[#This Row],[Quantity]],Table_PI[[#This Row],[List 1]],Table_PI[[#This Row],[List 2]],Table_PI[[#This Row],[List 3]],Table_PI[[#This Row],[Size]],Table_PI[[#This Row],[Input 1]],Table_PI[[#This Row],[Input 2]],Table_PI[[#This Row],[Input 3]],Table_PI[[#This Row],[Input 4]],'Customer Information'!$AR$12,5,ROW()),\"No Rebate\"),\"No Rebate\"),0)","v":0},{"$f":"IF(Table_PI[[#This Row],[Hide:\nFormula Name]]<>\"\",IFERROR(IF(MeasureCalc(Table_PI[[#This Row],[Hide:\nFormula Name]],Table_PI[[#This Row],[Quantity]],Table_PI[[#This Row],[List 1]],Table_PI[[#This Row],[List 2]],Table_PI[[#This Row],[List 3]],Table_PI[[#This Row],[Size]],Table_PI[[#This Row],[Input 1]],Table_PI[[#This Row],[Input 2]],Table_PI[[#This Row],[Input 3]],Table_PI[[#This Row],[Input 4]],'Customer Information'!$AR$12,1,ROW())>0,MeasureCalc(Table_PI[[#This Row],[Hide:\nFormula Name]],Table_PI[[#This Row],[Quantity]],Table_PI[[#This Row],[List 1]],Table_PI[[#This Row],[List 2]],Table_PI[[#This Row],[List 3]],Table_PI[[#This Row],[Size]],Table_PI[[#This Row],[Input 1]],Table_PI[[#This Row],[Input 2]],Table_PI[[#This Row],[Input 3]],Table_PI[[#This Row],[Input 4]],'Customer Information'!$AR$12,6,ROW()),\"No Rebate\"),\"No Rebate\"),0)","v":0},{"$f":"IF(Table_PI[[#This Row],[Hide:\nFormula Name]]<>\"\",IFERROR(IF(MeasureCalc(Table_PI[[#This Row],[Hide:\nFormula Name]],Table_PI[[#This Row],[Quantity]],Table_PI[[#This Row],[List 1]],Table_PI[[#This Row],[List 2]],Table_PI[[#This Row],[List 3]],Table_PI[[#This Row],[Size]],Table_PI[[#This Row],[Input 1]],Table_PI[[#This Row],[Input 2]],Table_PI[[#This Row],[Input 3]],Table_PI[[#This Row],[Input 4]],'Customer Information'!$AR$12,1,ROW())>0,MeasureCalc(Table_PI[[#This Row],[Hide:\nFormula Name]],Table_PI[[#This Row],[Quantity]],Table_PI[[#This Row],[List 1]],Table_PI[[#This Row],[List 2]],Table_PI[[#This Row],[List 3]],Table_PI[[#This Row],[Size]],Table_PI[[#This Row],[Input 1]],Table_PI[[#This Row],[Input 2]],Table_PI[[#This Row],[Input 3]],Table_PI[[#This Row],[Input 4]],'Customer Information'!$AR$12,7,ROW()),\"No Rebate\"),\"No Rebate\"),0)","v":0},{"$f":"IF(Table_PI[[#This Row],[Hide:\nFormula Name]]<>\"\",IFERROR(IF(MeasureCalc(Table_PI[[#This Row],[Hide:\nFormula Name]],Table_PI[[#This Row],[Quantity]],Table_PI[[#This Row],[List 1]],Table_PI[[#This Row],[List 2]],Table_PI[[#This Row],[List 3]],Table_PI[[#This Row],[Size]],Table_PI[[#This Row],[Input 1]],Table_PI[[#This Row],[Input 2]],Table_PI[[#This Row],[Input 3]],Table_PI[[#This Row],[Input 4]],'Customer Information'!$AR$12,1,ROW())>0,MeasureCalc(Table_PI[[#This Row],[Hide:\nFormula Name]],Table_PI[[#This Row],[Quantity]],Table_PI[[#This Row],[List 1]],Table_PI[[#This Row],[List 2]],Table_PI[[#This Row],[List 3]],Table_PI[[#This Row],[Size]],Table_PI[[#This Row],[Input 1]],Table_PI[[#This Row],[Input 2]],Table_PI[[#This Row],[Input 3]],Table_PI[[#This Row],[Input 4]],'Customer Information'!$AR$12,8,ROW()),\"No Rebate\"),\"No Rebate\"),0)","v":0},{"$f":"IF(Table_PI[[#This Row],[Hide:\nFormula Name]]<>\"\",IF(AND(Table_PI[[#This Row],[Hide:\nFormula Name]]<>\"\",OR(Table_PI[[#This Row],[Rebate]]>0,Table_PI[[#This Row],[Rebate]]=\"No Rebate\")),TRUE,\"MI: Line Item \" & $A200),\"\")","v":""}]
[{"$f":"IF(Table_PI[[#This Row],[Hide:\nFormula Name]]<>\"\",MAX($A$2:A200)+1,\"\")","v":""},null,null,null,null,null,null,null,null,null,null,null,null,null,null,{"$f":"IFERROR(VLOOKUP(Table_PI[[#This Row],[Measure]],'Equipment Lookups'!$C$3:$D$23,2,FALSE),\"\")","v":""},{"$f":"IF(Table_PI[[#This Row],[Hide:\nFormula Name]]<>\"\",IFERROR(IF(MeasureCalc(Table_PI[[#This Row],[Hide:\nFormula Name]],Table_PI[[#This Row],[Quantity]],Table_PI[[#This Row],[List 1]],Table_PI[[#This Row],[List 2]],Table_PI[[#This Row],[List 3]],Table_PI[[#This Row],[Size]],Table_PI[[#This Row],[Input 1]],Table_PI[[#This Row],[Input 2]],Table_PI[[#This Row],[Input 3]],Table_PI[[#This Row],[Input 4]],'Customer Information'!$AR$12,1,ROW())>0,MeasureCalc(Table_PI[[#This Row],[Hide:\nFormula Name]],Table_PI[[#This Row],[Quantity]],Table_PI[[#This Row],[List 1]],Table_PI[[#This Row],[List 2]],Table_PI[[#This Row],[List 3]],Table_PI[[#This Row],[Size]],Table_PI[[#This Row],[Input 1]],Table_PI[[#This Row],[Input 2]],Table_PI[[#This Row],[Input 3]],Table_PI[[#This Row],[Input 4]],'Customer Information'!$AR$12,1,ROW()),\"No Rebate\"),\"No Rebate\"),0)","v":0},{"$f":"IF(Table_PI[[#This Row],[Hide:\nFormula Name]]<>\"\",IFERROR(IF(MeasureCalc(Table_PI[[#This Row],[Hide:\nFormula Name]],Table_PI[[#This Row],[Quantity]],Table_PI[[#This Row],[List 1]],Table_PI[[#This Row],[List 2]],Table_PI[[#This Row],[List 3]],Table_PI[[#This Row],[Size]],Table_PI[[#This Row],[Input 1]],Table_PI[[#This Row],[Input 2]],Table_PI[[#This Row],[Input 3]],Table_PI[[#This Row],[Input 4]],'Customer Information'!$AR$12,1,ROW())>0,MeasureCalc(Table_PI[[#This Row],[Hide:\nFormula Name]],Table_PI[[#This Row],[Quantity]],Table_PI[[#This Row],[List 1]],Table_PI[[#This Row],[List 2]],Table_PI[[#This Row],[List 3]],Table_PI[[#This Row],[Size]],Table_PI[[#This Row],[Input 1]],Table_PI[[#This Row],[Input 2]],Table_PI[[#This Row],[Input 3]],Table_PI[[#This Row],[Input 4]],'Customer Information'!$AR$12,2,ROW()),\"No Rebate\"),\"No Rebate\"),0)","v":0},{"$f":"IF(Table_PI[[#This Row],[Hide:\nFormula Name]]<>\"\",IFERROR(IF(MeasureCalc(Table_PI[[#This Row],[Hide:\nFormula Name]],Table_PI[[#This Row],[Quantity]],Table_PI[[#This Row],[List 1]],Table_PI[[#This Row],[List 2]],Table_PI[[#This Row],[List 3]],Table_PI[[#This Row],[Size]],Table_PI[[#This Row],[Input 1]],Table_PI[[#This Row],[Input 2]],Table_PI[[#This Row],[Input 3]],Table_PI[[#This Row],[Input 4]],'Customer Information'!$AR$12,1,ROW())>0,MeasureCalc(Table_PI[[#This Row],[Hide:\nFormula Name]],Table_PI[[#This Row],[Quantity]],Table_PI[[#This Row],[List 1]],Table_PI[[#This Row],[List 2]],Table_PI[[#This Row],[List 3]],Table_PI[[#This Row],[Size]],Table_PI[[#This Row],[Input 1]],Table_PI[[#This Row],[Input 2]],Table_PI[[#This Row],[Input 3]],Table_PI[[#This Row],[Input 4]],'Customer Information'!$AR$12,3,ROW()),\"No Rebate\"),\"No Rebate\"),0)","v":0},{"$f":"IF(Table_PI[[#This Row],[Hide:\nFormula Name]]<>\"\",IFERROR(IF(MeasureCalc(Table_PI[[#This Row],[Hide:\nFormula Name]],Table_PI[[#This Row],[Quantity]],Table_PI[[#This Row],[List 1]],Table_PI[[#This Row],[List 2]],Table_PI[[#This Row],[List 3]],Table_PI[[#This Row],[Size]],Table_PI[[#This Row],[Input 1]],Table_PI[[#This Row],[Input 2]],Table_PI[[#This Row],[Input 3]],Table_PI[[#This Row],[Input 4]],'Customer Information'!$AR$12,1,ROW())>0,MeasureCalc(Table_PI[[#This Row],[Hide:\nFormula Name]],Table_PI[[#This Row],[Quantity]],Table_PI[[#This Row],[List 1]],Table_PI[[#This Row],[List 2]],Table_PI[[#This Row],[List 3]],Table_PI[[#This Row],[Size]],Table_PI[[#This Row],[Input 1]],Table_PI[[#This Row],[Input 2]],Table_PI[[#This Row],[Input 3]],Table_PI[[#This Row],[Input 4]],'Customer Information'!$AR$12,4,ROW()),\"No Rebate\"),\"No Rebate\"),0)","v":0},{"$f":"IF(Table_PI[[#This Row],[Hide:\nFormula Name]]<>\"\",IFERROR(IF(MeasureCalc(Table_PI[[#This Row],[Hide:\nFormula Name]],Table_PI[[#This Row],[Quantity]],Table_PI[[#This Row],[List 1]],Table_PI[[#This Row],[List 2]],Table_PI[[#This Row],[List 3]],Table_PI[[#This Row],[Size]],Table_PI[[#This Row],[Input 1]],Table_PI[[#This Row],[Input 2]],Table_PI[[#This Row],[Input 3]],Table_PI[[#This Row],[Input 4]],'Customer Information'!$AR$12,1,ROW())>0,MeasureCalc(Table_PI[[#This Row],[Hide:\nFormula Name]],Table_PI[[#This Row],[Quantity]],Table_PI[[#This Row],[List 1]],Table_PI[[#This Row],[List 2]],Table_PI[[#This Row],[List 3]],Table_PI[[#This Row],[Size]],Table_PI[[#This Row],[Input 1]],Table_PI[[#This Row],[Input 2]],Table_PI[[#This Row],[Input 3]],Table_PI[[#This Row],[Input 4]],'Customer Information'!$AR$12,5,ROW()),\"No Rebate\"),\"No Rebate\"),0)","v":0},{"$f":"IF(Table_PI[[#This Row],[Hide:\nFormula Name]]<>\"\",IFERROR(IF(MeasureCalc(Table_PI[[#This Row],[Hide:\nFormula Name]],Table_PI[[#This Row],[Quantity]],Table_PI[[#This Row],[List 1]],Table_PI[[#This Row],[List 2]],Table_PI[[#This Row],[List 3]],Table_PI[[#This Row],[Size]],Table_PI[[#This Row],[Input 1]],Table_PI[[#This Row],[Input 2]],Table_PI[[#This Row],[Input 3]],Table_PI[[#This Row],[Input 4]],'Customer Information'!$AR$12,1,ROW())>0,MeasureCalc(Table_PI[[#This Row],[Hide:\nFormula Name]],Table_PI[[#This Row],[Quantity]],Table_PI[[#This Row],[List 1]],Table_PI[[#This Row],[List 2]],Table_PI[[#This Row],[List 3]],Table_PI[[#This Row],[Size]],Table_PI[[#This Row],[Input 1]],Table_PI[[#This Row],[Input 2]],Table_PI[[#This Row],[Input 3]],Table_PI[[#This Row],[Input 4]],'Customer Information'!$AR$12,6,ROW()),\"No Rebate\"),\"No Rebate\"),0)","v":0},{"$f":"IF(Table_PI[[#This Row],[Hide:\nFormula Name]]<>\"\",IFERROR(IF(MeasureCalc(Table_PI[[#This Row],[Hide:\nFormula Name]],Table_PI[[#This Row],[Quantity]],Table_PI[[#This Row],[List 1]],Table_PI[[#This Row],[List 2]],Table_PI[[#This Row],[List 3]],Table_PI[[#This Row],[Size]],Table_PI[[#This Row],[Input 1]],Table_PI[[#This Row],[Input 2]],Table_PI[[#This Row],[Input 3]],Table_PI[[#This Row],[Input 4]],'Customer Information'!$AR$12,1,ROW())>0,MeasureCalc(Table_PI[[#This Row],[Hide:\nFormula Name]],Table_PI[[#This Row],[Quantity]],Table_PI[[#This Row],[List 1]],Table_PI[[#This Row],[List 2]],Table_PI[[#This Row],[List 3]],Table_PI[[#This Row],[Size]],Table_PI[[#This Row],[Input 1]],Table_PI[[#This Row],[Input 2]],Table_PI[[#This Row],[Input 3]],Table_PI[[#This Row],[Input 4]],'Customer Information'!$AR$12,7,ROW()),\"No Rebate\"),\"No Rebate\"),0)","v":0},{"$f":"IF(Table_PI[[#This Row],[Hide:\nFormula Name]]<>\"\",IFERROR(IF(MeasureCalc(Table_PI[[#This Row],[Hide:\nFormula Name]],Table_PI[[#This Row],[Quantity]],Table_PI[[#This Row],[List 1]],Table_PI[[#This Row],[List 2]],Table_PI[[#This Row],[List 3]],Table_PI[[#This Row],[Size]],Table_PI[[#This Row],[Input 1]],Table_PI[[#This Row],[Input 2]],Table_PI[[#This Row],[Input 3]],Table_PI[[#This Row],[Input 4]],'Customer Information'!$AR$12,1,ROW())>0,MeasureCalc(Table_PI[[#This Row],[Hide:\nFormula Name]],Table_PI[[#This Row],[Quantity]],Table_PI[[#This Row],[List 1]],Table_PI[[#This Row],[List 2]],Table_PI[[#This Row],[List 3]],Table_PI[[#This Row],[Size]],Table_PI[[#This Row],[Input 1]],Table_PI[[#This Row],[Input 2]],Table_PI[[#This Row],[Input 3]],Table_PI[[#This Row],[Input 4]],'Customer Information'!$AR$12,8,ROW()),\"No Rebate\"),\"No Rebate\"),0)","v":0},{"$f":"IF(Table_PI[[#This Row],[Hide:\nFormula Name]]<>\"\",IF(AND(Table_PI[[#This Row],[Hide:\nFormula Name]]<>\"\",OR(Table_PI[[#This Row],[Rebate]]>0,Table_PI[[#This Row],[Rebate]]=\"No Rebate\")),TRUE,\"MI: Line Item \" & $A201),\"\")","v":""}]
[{"$f":"IF(Table_PI[[#This Row],[Hide:\nFormula Name]]<>\"\",MAX($A$2:A201)+1,\"\")","v":""},null,null,null,null,null,null,null,null,null,null,null,null,null,null,{"$f":"IFERROR(VLOOKUP(Table_PI[[#This Row],[Measure]],'Equipment Lookups'!$C$3:$D$23,2,FALSE),\"\")","v":""},{"$f":"IF(Table_PI[[#This Row],[Hide:\nFormula Name]]<>\"\",IFERROR(IF(MeasureCalc(Table_PI[[#This Row],[Hide:\nFormula Name]],Table_PI[[#This Row],[Quantity]],Table_PI[[#This Row],[List 1]],Table_PI[[#This Row],[List 2]],Table_PI[[#This Row],[List 3]],Table_PI[[#This Row],[Size]],Table_PI[[#This Row],[Input 1]],Table_PI[[#This Row],[Input 2]],Table_PI[[#This Row],[Input 3]],Table_PI[[#This Row],[Input 4]],'Customer Information'!$AR$12,1,ROW())>0,MeasureCalc(Table_PI[[#This Row],[Hide:\nFormula Name]],Table_PI[[#This Row],[Quantity]],Table_PI[[#This Row],[List 1]],Table_PI[[#This Row],[List 2]],Table_PI[[#This Row],[List 3]],Table_PI[[#This Row],[Size]],Table_PI[[#This Row],[Input 1]],Table_PI[[#This Row],[Input 2]],Table_PI[[#This Row],[Input 3]],Table_PI[[#This Row],[Input 4]],'Customer Information'!$AR$12,1,ROW()),\"No Rebate\"),\"No Rebate\"),0)","v":0},{"$f":"IF(Table_PI[[#This Row],[Hide:\nFormula Name]]<>\"\",IFERROR(IF(MeasureCalc(Table_PI[[#This Row],[Hide:\nFormula Name]],Table_PI[[#This Row],[Quantity]],Table_PI[[#This Row],[List 1]],Table_PI[[#This Row],[List 2]],Table_PI[[#This Row],[List 3]],Table_PI[[#This Row],[Size]],Table_PI[[#This Row],[Input 1]],Table_PI[[#This Row],[Input 2]],Table_PI[[#This Row],[Input 3]],Table_PI[[#This Row],[Input 4]],'Customer Information'!$AR$12,1,ROW())>0,MeasureCalc(Table_PI[[#This Row],[Hide:\nFormula Name]],Table_PI[[#This Row],[Quantity]],Table_PI[[#This Row],[List 1]],Table_PI[[#This Row],[List 2]],Table_PI[[#This Row],[List 3]],Table_PI[[#This Row],[Size]],Table_PI[[#This Row],[Input 1]],Table_PI[[#This Row],[Input 2]],Table_PI[[#This Row],[Input 3]],Table_PI[[#This Row],[Input 4]],'Customer Information'!$AR$12,2,ROW()),\"No Rebate\"),\"No Rebate\"),0)","v":0},{"$f":"IF(Table_PI[[#This Row],[Hide:\nFormula Name]]<>\"\",IFERROR(IF(MeasureCalc(Table_PI[[#This Row],[Hide:\nFormula Name]],Table_PI[[#This Row],[Quantity]],Table_PI[[#This Row],[List 1]],Table_PI[[#This Row],[List 2]],Table_PI[[#This Row],[List 3]],Table_PI[[#This Row],[Size]],Table_PI[[#This Row],[Input 1]],Table_PI[[#This Row],[Input 2]],Table_PI[[#This Row],[Input 3]],Table_PI[[#This Row],[Input 4]],'Customer Information'!$AR$12,1,ROW())>0,MeasureCalc(Table_PI[[#This Row],[Hide:\nFormula Name]],Table_PI[[#This Row],[Quantity]],Table_PI[[#This Row],[List 1]],Table_PI[[#This Row],[List 2]],Table_PI[[#This Row],[List 3]],Table_PI[[#This Row],[Size]],Table_PI[[#This Row],[Input 1]],Table_PI[[#This Row],[Input 2]],Table_PI[[#This Row],[Input 3]],Table_PI[[#This Row],[Input 4]],'Customer Information'!$AR$12,3,ROW()),\"No Rebate\"),\"No Rebate\"),0)","v":0},{"$f":"IF(Table_PI[[#This Row],[Hide:\nFormula Name]]<>\"\",IFERROR(IF(MeasureCalc(Table_PI[[#This Row],[Hide:\nFormula Name]],Table_PI[[#This Row],[Quantity]],Table_PI[[#This Row],[List 1]],Table_PI[[#This Row],[List 2]],Table_PI[[#This Row],[List 3]],Table_PI[[#This Row],[Size]],Table_PI[[#This Row],[Input 1]],Table_PI[[#This Row],[Input 2]],Table_PI[[#This Row],[Input 3]],Table_PI[[#This Row],[Input 4]],'Customer Information'!$AR$12,1,ROW())>0,MeasureCalc(Table_PI[[#This Row],[Hide:\nFormula Name]],Table_PI[[#This Row],[Quantity]],Table_PI[[#This Row],[List 1]],Table_PI[[#This Row],[List 2]],Table_PI[[#This Row],[List 3]],Table_PI[[#This Row],[Size]],Table_PI[[#This Row],[Input 1]],Table_PI[[#This Row],[Input 2]],Table_PI[[#This Row],[Input 3]],Table_PI[[#This Row],[Input 4]],'Customer Information'!$AR$12,4,ROW()),\"No Rebate\"),\"No Rebate\"),0)","v":0},{"$f":"IF(Table_PI[[#This Row],[Hide:\nFormula Name]]<>\"\",IFERROR(IF(MeasureCalc(Table_PI[[#This Row],[Hide:\nFormula Name]],Table_PI[[#This Row],[Quantity]],Table_PI[[#This Row],[List 1]],Table_PI[[#This Row],[List 2]],Table_PI[[#This Row],[List 3]],Table_PI[[#This Row],[Size]],Table_PI[[#This Row],[Input 1]],Table_PI[[#This Row],[Input 2]],Table_PI[[#This Row],[Input 3]],Table_PI[[#This Row],[Input 4]],'Customer Information'!$AR$12,1,ROW())>0,MeasureCalc(Table_PI[[#This Row],[Hide:\nFormula Name]],Table_PI[[#This Row],[Quantity]],Table_PI[[#This Row],[List 1]],Table_PI[[#This Row],[List 2]],Table_PI[[#This Row],[List 3]],Table_PI[[#This Row],[Size]],Table_PI[[#This Row],[Input 1]],Table_PI[[#This Row],[Input 2]],Table_PI[[#This Row],[Input 3]],Table_PI[[#This Row],[Input 4]],'Customer Information'!$AR$12,5,ROW()),\"No Rebate\"),\"No Rebate\"),0)","v":0},{"$f":"IF(Table_PI[[#This Row],[Hide:\nFormula Name]]<>\"\",IFERROR(IF(MeasureCalc(Table_PI[[#This Row],[Hide:\nFormula Name]],Table_PI[[#This Row],[Quantity]],Table_PI[[#This Row],[List 1]],Table_PI[[#This Row],[List 2]],Table_PI[[#This Row],[List 3]],Table_PI[[#This Row],[Size]],Table_PI[[#This Row],[Input 1]],Table_PI[[#This Row],[Input 2]],Table_PI[[#This Row],[Input 3]],Table_PI[[#This Row],[Input 4]],'Customer Information'!$AR$12,1,ROW())>0,MeasureCalc(Table_PI[[#This Row],[Hide:\nFormula Name]],Table_PI[[#This Row],[Quantity]],Table_PI[[#This Row],[List 1]],Table_PI[[#This Row],[List 2]],Table_PI[[#This Row],[List 3]],Table_PI[[#This Row],[Size]],Table_PI[[#This Row],[Input 1]],Table_PI[[#This Row],[Input 2]],Table_PI[[#This Row],[Input 3]],Table_PI[[#This Row],[Input 4]],'Customer Information'!$AR$12,6,ROW()),\"No Rebate\"),\"No Rebate\"),0)","v":0},{"$f":"IF(Table_PI[[#This Row],[Hide:\nFormula Name]]<>\"\",IFERROR(IF(MeasureCalc(Table_PI[[#This Row],[Hide:\nFormula Name]],Table_PI[[#This Row],[Quantity]],Table_PI[[#This Row],[List 1]],Table_PI[[#This Row],[List 2]],Table_PI[[#This Row],[List 3]],Table_PI[[#This Row],[Size]],Table_PI[[#This Row],[Input 1]],Table_PI[[#This Row],[Input 2]],Table_PI[[#This Row],[Input 3]],Table_PI[[#This Row],[Input 4]],'Customer Information'!$AR$12,1,ROW())>0,MeasureCalc(Table_PI[[#This Row],[Hide:\nFormula Name]],Table_PI[[#This Row],[Quantity]],Table_PI[[#This Row],[List 1]],Table_PI[[#This Row],[List 2]],Table_PI[[#This Row],[List 3]],Table_PI[[#This Row],[Size]],Table_PI[[#This Row],[Input 1]],Table_PI[[#This Row],[Input 2]],Table_PI[[#This Row],[Input 3]],Table_PI[[#This Row],[Input 4]],'Customer Information'!$AR$12,7,ROW()),\"No Rebate\"),\"No Rebate\"),0)","v":0},{"$f":"IF(Table_PI[[#This Row],[Hide:\nFormula Name]]<>\"\",IFERROR(IF(MeasureCalc(Table_PI[[#This Row],[Hide:\nFormula Name]],Table_PI[[#This Row],[Quantity]],Table_PI[[#This Row],[List 1]],Table_PI[[#This Row],[List 2]],Table_PI[[#This Row],[List 3]],Table_PI[[#This Row],[Size]],Table_PI[[#This Row],[Input 1]],Table_PI[[#This Row],[Input 2]],Table_PI[[#This Row],[Input 3]],Table_PI[[#This Row],[Input 4]],'Customer Information'!$AR$12,1,ROW())>0,MeasureCalc(Table_PI[[#This Row],[Hide:\nFormula Name]],Table_PI[[#This Row],[Quantity]],Table_PI[[#This Row],[List 1]],Table_PI[[#This Row],[List 2]],Table_PI[[#This Row],[List 3]],Table_PI[[#This Row],[Size]],Table_PI[[#This Row],[Input 1]],Table_PI[[#This Row],[Input 2]],Table_PI[[#This Row],[Input 3]],Table_PI[[#This Row],[Input 4]],'Customer Information'!$AR$12,8,ROW()),\"No Rebate\"),\"No Rebate\"),0)","v":0},{"$f":"IF(Table_PI[[#This Row],[Hide:\nFormula Name]]<>\"\",IF(AND(Table_PI[[#This Row],[Hide:\nFormula Name]]<>\"\",OR(Table_PI[[#This Row],[Rebate]]>0,Table_PI[[#This Row],[Rebate]]=\"No Rebate\")),TRUE,\"MI: Line Item \" & $A202),\"\")","v":""}]
[{"$f":"IF(Table_PI[[#This Row],[Hide:\nFormula Name]]<>\"\",MAX($A$2:A202)+1,\"\")","v":""},null,null,null,null,null,null,null,null,null,null,null,null,null,null,{"$f":"IFERROR(VLOOKUP(Table_PI[[#This Row],[Measure]],'Equipment Lookups'!$C$3:$D$23,2,FALSE),\"\")","v":""},{"$f":"IF(Table_PI[[#This Row],[Hide:\nFormula Name]]<>\"\",IFERROR(IF(MeasureCalc(Table_PI[[#This Row],[Hide:\nFormula Name]],Table_PI[[#This Row],[Quantity]],Table_PI[[#This Row],[List 1]],Table_PI[[#This Row],[List 2]],Table_PI[[#This Row],[List 3]],Table_PI[[#This Row],[Size]],Table_PI[[#This Row],[Input 1]],Table_PI[[#This Row],[Input 2]],Table_PI[[#This Row],[Input 3]],Table_PI[[#This Row],[Input 4]],'Customer Information'!$AR$12,1,ROW())>0,MeasureCalc(Table_PI[[#This Row],[Hide:\nFormula Name]],Table_PI[[#This Row],[Quantity]],Table_PI[[#This Row],[List 1]],Table_PI[[#This Row],[List 2]],Table_PI[[#This Row],[List 3]],Table_PI[[#This Row],[Size]],Table_PI[[#This Row],[Input 1]],Table_PI[[#This Row],[Input 2]],Table_PI[[#This Row],[Input 3]],Table_PI[[#This Row],[Input 4]],'Customer Information'!$AR$12,1,ROW()),\"No Rebate\"),\"No Rebate\"),0)","v":0},{"$f":"IF(Table_PI[[#This Row],[Hide:\nFormula Name]]<>\"\",IFERROR(IF(MeasureCalc(Table_PI[[#This Row],[Hide:\nFormula Name]],Table_PI[[#This Row],[Quantity]],Table_PI[[#This Row],[List 1]],Table_PI[[#This Row],[List 2]],Table_PI[[#This Row],[List 3]],Table_PI[[#This Row],[Size]],Table_PI[[#This Row],[Input 1]],Table_PI[[#This Row],[Input 2]],Table_PI[[#This Row],[Input 3]],Table_PI[[#This Row],[Input 4]],'Customer Information'!$AR$12,1,ROW())>0,MeasureCalc(Table_PI[[#This Row],[Hide:\nFormula Name]],Table_PI[[#This Row],[Quantity]],Table_PI[[#This Row],[List 1]],Table_PI[[#This Row],[List 2]],Table_PI[[#This Row],[List 3]],Table_PI[[#This Row],[Size]],Table_PI[[#This Row],[Input 1]],Table_PI[[#This Row],[Input 2]],Table_PI[[#This Row],[Input 3]],Table_PI[[#This Row],[Input 4]],'Customer Information'!$AR$12,2,ROW()),\"No Rebate\"),\"No Rebate\"),0)","v":0},{"$f":"IF(Table_PI[[#This Row],[Hide:\nFormula Name]]<>\"\",IFERROR(IF(MeasureCalc(Table_PI[[#This Row],[Hide:\nFormula Name]],Table_PI[[#This Row],[Quantity]],Table_PI[[#This Row],[List 1]],Table_PI[[#This Row],[List 2]],Table_PI[[#This Row],[List 3]],Table_PI[[#This Row],[Size]],Table_PI[[#This Row],[Input 1]],Table_PI[[#This Row],[Input 2]],Table_PI[[#This Row],[Input 3]],Table_PI[[#This Row],[Input 4]],'Customer Information'!$AR$12,1,ROW())>0,MeasureCalc(Table_PI[[#This Row],[Hide:\nFormula Name]],Table_PI[[#This Row],[Quantity]],Table_PI[[#This Row],[List 1]],Table_PI[[#This Row],[List 2]],Table_PI[[#This Row],[List 3]],Table_PI[[#This Row],[Size]],Table_PI[[#This Row],[Input 1]],Table_PI[[#This Row],[Input 2]],Table_PI[[#This Row],[Input 3]],Table_PI[[#This Row],[Input 4]],'Customer Information'!$AR$12,3,ROW()),\"No Rebate\"),\"No Rebate\"),0)","v":0},{"$f":"IF(Table_PI[[#This Row],[Hide:\nFormula Name]]<>\"\",IFERROR(IF(MeasureCalc(Table_PI[[#This Row],[Hide:\nFormula Name]],Table_PI[[#This Row],[Quantity]],Table_PI[[#This Row],[List 1]],Table_PI[[#This Row],[List 2]],Table_PI[[#This Row],[List 3]],Table_PI[[#This Row],[Size]],Table_PI[[#This Row],[Input 1]],Table_PI[[#This Row],[Input 2]],Table_PI[[#This Row],[Input 3]],Table_PI[[#This Row],[Input 4]],'Customer Information'!$AR$12,1,ROW())>0,MeasureCalc(Table_PI[[#This Row],[Hide:\nFormula Name]],Table_PI[[#This Row],[Quantity]],Table_PI[[#This Row],[List 1]],Table_PI[[#This Row],[List 2]],Table_PI[[#This Row],[List 3]],Table_PI[[#This Row],[Size]],Table_PI[[#This Row],[Input 1]],Table_PI[[#This Row],[Input 2]],Table_PI[[#This Row],[Input 3]],Table_PI[[#This Row],[Input 4]],'Customer Information'!$AR$12,4,ROW()),\"No Rebate\"),\"No Rebate\"),0)","v":0},{"$f":"IF(Table_PI[[#This Row],[Hide:\nFormula Name]]<>\"\",IFERROR(IF(MeasureCalc(Table_PI[[#This Row],[Hide:\nFormula Name]],Table_PI[[#This Row],[Quantity]],Table_PI[[#This Row],[List 1]],Table_PI[[#This Row],[List 2]],Table_PI[[#This Row],[List 3]],Table_PI[[#This Row],[Size]],Table_PI[[#This Row],[Input 1]],Table_PI[[#This Row],[Input 2]],Table_PI[[#This Row],[Input 3]],Table_PI[[#This Row],[Input 4]],'Customer Information'!$AR$12,1,ROW())>0,MeasureCalc(Table_PI[[#This Row],[Hide:\nFormula Name]],Table_PI[[#This Row],[Quantity]],Table_PI[[#This Row],[List 1]],Table_PI[[#This Row],[List 2]],Table_PI[[#This Row],[List 3]],Table_PI[[#This Row],[Size]],Table_PI[[#This Row],[Input 1]],Table_PI[[#This Row],[Input 2]],Table_PI[[#This Row],[Input 3]],Table_PI[[#This Row],[Input 4]],'Customer Information'!$AR$12,5,ROW()),\"No Rebate\"),\"No Rebate\"),0)","v":0},{"$f":"IF(Table_PI[[#This Row],[Hide:\nFormula Name]]<>\"\",IFERROR(IF(MeasureCalc(Table_PI[[#This Row],[Hide:\nFormula Name]],Table_PI[[#This Row],[Quantity]],Table_PI[[#This Row],[List 1]],Table_PI[[#This Row],[List 2]],Table_PI[[#This Row],[List 3]],Table_PI[[#This Row],[Size]],Table_PI[[#This Row],[Input 1]],Table_PI[[#This Row],[Input 2]],Table_PI[[#This Row],[Input 3]],Table_PI[[#This Row],[Input 4]],'Customer Information'!$AR$12,1,ROW())>0,MeasureCalc(Table_PI[[#This Row],[Hide:\nFormula Name]],Table_PI[[#This Row],[Quantity]],Table_PI[[#This Row],[List 1]],Table_PI[[#This Row],[List 2]],Table_PI[[#This Row],[List 3]],Table_PI[[#This Row],[Size]],Table_PI[[#This Row],[Input 1]],Table_PI[[#This Row],[Input 2]],Table_PI[[#This Row],[Input 3]],Table_PI[[#This Row],[Input 4]],'Customer Information'!$AR$12,6,ROW()),\"No Rebate\"),\"No Rebate\"),0)","v":0},{"$f":"IF(Table_PI[[#This Row],[Hide:\nFormula Name]]<>\"\",IFERROR(IF(MeasureCalc(Table_PI[[#This Row],[Hide:\nFormula Name]],Table_PI[[#This Row],[Quantity]],Table_PI[[#This Row],[List 1]],Table_PI[[#This Row],[List 2]],Table_PI[[#This Row],[List 3]],Table_PI[[#This Row],[Size]],Table_PI[[#This Row],[Input 1]],Table_PI[[#This Row],[Input 2]],Table_PI[[#This Row],[Input 3]],Table_PI[[#This Row],[Input 4]],'Customer Information'!$AR$12,1,ROW())>0,MeasureCalc(Table_PI[[#This Row],[Hide:\nFormula Name]],Table_PI[[#This Row],[Quantity]],Table_PI[[#This Row],[List 1]],Table_PI[[#This Row],[List 2]],Table_PI[[#This Row],[List 3]],Table_PI[[#This Row],[Size]],Table_PI[[#This Row],[Input 1]],Table_PI[[#This Row],[Input 2]],Table_PI[[#This Row],[Input 3]],Table_PI[[#This Row],[Input 4]],'Customer Information'!$AR$12,7,ROW()),\"No Rebate\"),\"No Rebate\"),0)","v":0},{"$f":"IF(Table_PI[[#This Row],[Hide:\nFormula Name]]<>\"\",IFERROR(IF(MeasureCalc(Table_PI[[#This Row],[Hide:\nFormula Name]],Table_PI[[#This Row],[Quantity]],Table_PI[[#This Row],[List 1]],Table_PI[[#This Row],[List 2]],Table_PI[[#This Row],[List 3]],Table_PI[[#This Row],[Size]],Table_PI[[#This Row],[Input 1]],Table_PI[[#This Row],[Input 2]],Table_PI[[#This Row],[Input 3]],Table_PI[[#This Row],[Input 4]],'Customer Information'!$AR$12,1,ROW())>0,MeasureCalc(Table_PI[[#This Row],[Hide:\nFormula Name]],Table_PI[[#This Row],[Quantity]],Table_PI[[#This Row],[List 1]],Table_PI[[#This Row],[List 2]],Table_PI[[#This Row],[List 3]],Table_PI[[#This Row],[Size]],Table_PI[[#This Row],[Input 1]],Table_PI[[#This Row],[Input 2]],Table_PI[[#This Row],[Input 3]],Table_PI[[#This Row],[Input 4]],'Customer Information'!$AR$12,8,ROW()),\"No Rebate\"),\"No Rebate\"),0)","v":0},{"$f":"IF(Table_PI[[#This Row],[Hide:\nFormula Name]]<>\"\",IF(AND(Table_PI[[#This Row],[Hide:\nFormula Name]]<>\"\",OR(Table_PI[[#This Row],[Rebate]]>0,Table_PI[[#This Row],[Rebate]]=\"No Rebate\")),TRUE,\"MI: Line Item \" & $A203),\"\")","v":""}]
[{"$f":"IF(Table_PI[[#This Row],[Hide:\nFormula Name]]<>\"\",MAX($A$2:A203)+1,\"\")","v":""},null,null,null,null,null,null,null,null,null,null,null,null,null,null,{"$f":"IFERROR(VLOOKUP(Table_PI[[#This Row],[Measure]],'Equipment Lookups'!$C$3:$D$23,2,FALSE),\"\")","v":""},{"$f":"IF(Table_PI[[#This Row],[Hide:\nFormula Name]]<>\"\",IFERROR(IF(MeasureCalc(Table_PI[[#This Row],[Hide:\nFormula Name]],Table_PI[[#This Row],[Quantity]],Table_PI[[#This Row],[List 1]],Table_PI[[#This Row],[List 2]],Table_PI[[#This Row],[List 3]],Table_PI[[#This Row],[Size]],Table_PI[[#This Row],[Input 1]],Table_PI[[#This Row],[Input 2]],Table_PI[[#This Row],[Input 3]],Table_PI[[#This Row],[Input 4]],'Customer Information'!$AR$12,1,ROW())>0,MeasureCalc(Table_PI[[#This Row],[Hide:\nFormula Name]],Table_PI[[#This Row],[Quantity]],Table_PI[[#This Row],[List 1]],Table_PI[[#This Row],[List 2]],Table_PI[[#This Row],[List 3]],Table_PI[[#This Row],[Size]],Table_PI[[#This Row],[Input 1]],Table_PI[[#This Row],[Input 2]],Table_PI[[#This Row],[Input 3]],Table_PI[[#This Row],[Input 4]],'Customer Information'!$AR$12,1,ROW()),\"No Rebate\"),\"No Rebate\"),0)","v":0},{"$f":"IF(Table_PI[[#This Row],[Hide:\nFormula Name]]<>\"\",IFERROR(IF(MeasureCalc(Table_PI[[#This Row],[Hide:\nFormula Name]],Table_PI[[#This Row],[Quantity]],Table_PI[[#This Row],[List 1]],Table_PI[[#This Row],[List 2]],Table_PI[[#This Row],[List 3]],Table_PI[[#This Row],[Size]],Table_PI[[#This Row],[Input 1]],Table_PI[[#This Row],[Input 2]],Table_PI[[#This Row],[Input 3]],Table_PI[[#This Row],[Input 4]],'Customer Information'!$AR$12,1,ROW())>0,MeasureCalc(Table_PI[[#This Row],[Hide:\nFormula Name]],Table_PI[[#This Row],[Quantity]],Table_PI[[#This Row],[List 1]],Table_PI[[#This Row],[List 2]],Table_PI[[#This Row],[List 3]],Table_PI[[#This Row],[Size]],Table_PI[[#This Row],[Input 1]],Table_PI[[#This Row],[Input 2]],Table_PI[[#This Row],[Input 3]],Table_PI[[#This Row],[Input 4]],'Customer Information'!$AR$12,2,ROW()),\"No Rebate\"),\"No Rebate\"),0)","v":0},{"$f":"IF(Table_PI[[#This Row],[Hide:\nFormula Name]]<>\"\",IFERROR(IF(MeasureCalc(Table_PI[[#This Row],[Hide:\nFormula Name]],Table_PI[[#This Row],[Quantity]],Table_PI[[#This Row],[List 1]],Table_PI[[#This Row],[List 2]],Table_PI[[#This Row],[List 3]],Table_PI[[#This Row],[Size]],Table_PI[[#This Row],[Input 1]],Table_PI[[#This Row],[Input 2]],Table_PI[[#This Row],[Input 3]],Table_PI[[#This Row],[Input 4]],'Customer Information'!$AR$12,1,ROW())>0,MeasureCalc(Table_PI[[#This Row],[Hide:\nFormula Name]],Table_PI[[#This Row],[Quantity]],Table_PI[[#This Row],[List 1]],Table_PI[[#This Row],[List 2]],Table_PI[[#This Row],[List 3]],Table_PI[[#This Row],[Size]],Table_PI[[#This Row],[Input 1]],Table_PI[[#This Row],[Input 2]],Table_PI[[#This Row],[Input 3]],Table_PI[[#This Row],[Input 4]],'Customer Information'!$AR$12,3,ROW()),\"No Rebate\"),\"No Rebate\"),0)","v":0},{"$f":"IF(Table_PI[[#This Row],[Hide:\nFormula Name]]<>\"\",IFERROR(IF(MeasureCalc(Table_PI[[#This Row],[Hide:\nFormula Name]],Table_PI[[#This Row],[Quantity]],Table_PI[[#This Row],[List 1]],Table_PI[[#This Row],[List 2]],Table_PI[[#This Row],[List 3]],Table_PI[[#This Row],[Size]],Table_PI[[#This Row],[Input 1]],Table_PI[[#This Row],[Input 2]],Table_PI[[#This Row],[Input 3]],Table_PI[[#This Row],[Input 4]],'Customer Information'!$AR$12,1,ROW())>0,MeasureCalc(Table_PI[[#This Row],[Hide:\nFormula Name]],Table_PI[[#This Row],[Quantity]],Table_PI[[#This Row],[List 1]],Table_PI[[#This Row],[List 2]],Table_PI[[#This Row],[List 3]],Table_PI[[#This Row],[Size]],Table_PI[[#This Row],[Input 1]],Table_PI[[#This Row],[Input 2]],Table_PI[[#This Row],[Input 3]],Table_PI[[#This Row],[Input 4]],'Customer Information'!$AR$12,4,ROW()),\"No Rebate\"),\"No Rebate\"),0)","v":0},{"$f":"IF(Table_PI[[#This Row],[Hide:\nFormula Name]]<>\"\",IFERROR(IF(MeasureCalc(Table_PI[[#This Row],[Hide:\nFormula Name]],Table_PI[[#This Row],[Quantity]],Table_PI[[#This Row],[List 1]],Table_PI[[#This Row],[List 2]],Table_PI[[#This Row],[List 3]],Table_PI[[#This Row],[Size]],Table_PI[[#This Row],[Input 1]],Table_PI[[#This Row],[Input 2]],Table_PI[[#This Row],[Input 3]],Table_PI[[#This Row],[Input 4]],'Customer Information'!$AR$12,1,ROW())>0,MeasureCalc(Table_PI[[#This Row],[Hide:\nFormula Name]],Table_PI[[#This Row],[Quantity]],Table_PI[[#This Row],[List 1]],Table_PI[[#This Row],[List 2]],Table_PI[[#This Row],[List 3]],Table_PI[[#This Row],[Size]],Table_PI[[#This Row],[Input 1]],Table_PI[[#This Row],[Input 2]],Table_PI[[#This Row],[Input 3]],Table_PI[[#This Row],[Input 4]],'Customer Information'!$AR$12,5,ROW()),\"No Rebate\"),\"No Rebate\"),0)","v":0},{"$f":"IF(Table_PI[[#This Row],[Hide:\nFormula Name]]<>\"\",IFERROR(IF(MeasureCalc(Table_PI[[#This Row],[Hide:\nFormula Name]],Table_PI[[#This Row],[Quantity]],Table_PI[[#This Row],[List 1]],Table_PI[[#This Row],[List 2]],Table_PI[[#This Row],[List 3]],Table_PI[[#This Row],[Size]],Table_PI[[#This Row],[Input 1]],Table_PI[[#This Row],[Input 2]],Table_PI[[#This Row],[Input 3]],Table_PI[[#This Row],[Input 4]],'Customer Information'!$AR$12,1,ROW())>0,MeasureCalc(Table_PI[[#This Row],[Hide:\nFormula Name]],Table_PI[[#This Row],[Quantity]],Table_PI[[#This Row],[List 1]],Table_PI[[#This Row],[List 2]],Table_PI[[#This Row],[List 3]],Table_PI[[#This Row],[Size]],Table_PI[[#This Row],[Input 1]],Table_PI[[#This Row],[Input 2]],Table_PI[[#This Row],[Input 3]],Table_PI[[#This Row],[Input 4]],'Customer Information'!$AR$12,6,ROW()),\"No Rebate\"),\"No Rebate\"),0)","v":0},{"$f":"IF(Table_PI[[#This Row],[Hide:\nFormula Name]]<>\"\",IFERROR(IF(MeasureCalc(Table_PI[[#This Row],[Hide:\nFormula Name]],Table_PI[[#This Row],[Quantity]],Table_PI[[#This Row],[List 1]],Table_PI[[#This Row],[List 2]],Table_PI[[#This Row],[List 3]],Table_PI[[#This Row],[Size]],Table_PI[[#This Row],[Input 1]],Table_PI[[#This Row],[Input 2]],Table_PI[[#This Row],[Input 3]],Table_PI[[#This Row],[Input 4]],'Customer Information'!$AR$12,1,ROW())>0,MeasureCalc(Table_PI[[#This Row],[Hide:\nFormula Name]],Table_PI[[#This Row],[Quantity]],Table_PI[[#This Row],[List 1]],Table_PI[[#This Row],[List 2]],Table_PI[[#This Row],[List 3]],Table_PI[[#This Row],[Size]],Table_PI[[#This Row],[Input 1]],Table_PI[[#This Row],[Input 2]],Table_PI[[#This Row],[Input 3]],Table_PI[[#This Row],[Input 4]],'Customer Information'!$AR$12,7,ROW()),\"No Rebate\"),\"No Rebate\"),0)","v":0},{"$f":"IF(Table_PI[[#This Row],[Hide:\nFormula Name]]<>\"\",IFERROR(IF(MeasureCalc(Table_PI[[#This Row],[Hide:\nFormula Name]],Table_PI[[#This Row],[Quantity]],Table_PI[[#This Row],[List 1]],Table_PI[[#This Row],[List 2]],Table_PI[[#This Row],[List 3]],Table_PI[[#This Row],[Size]],Table_PI[[#This Row],[Input 1]],Table_PI[[#This Row],[Input 2]],Table_PI[[#This Row],[Input 3]],Table_PI[[#This Row],[Input 4]],'Customer Information'!$AR$12,1,ROW())>0,MeasureCalc(Table_PI[[#This Row],[Hide:\nFormula Name]],Table_PI[[#This Row],[Quantity]],Table_PI[[#This Row],[List 1]],Table_PI[[#This Row],[List 2]],Table_PI[[#This Row],[List 3]],Table_PI[[#This Row],[Size]],Table_PI[[#This Row],[Input 1]],Table_PI[[#This Row],[Input 2]],Table_PI[[#This Row],[Input 3]],Table_PI[[#This Row],[Input 4]],'Customer Information'!$AR$12,8,ROW()),\"No Rebate\"),\"No Rebate\"),0)","v":0},{"$f":"IF(Table_PI[[#This Row],[Hide:\nFormula Name]]<>\"\",IF(AND(Table_PI[[#This Row],[Hide:\nFormula Name]]<>\"\",OR(Table_PI[[#This Row],[Rebate]]>0,Table_PI[[#This Row],[Rebate]]=\"No Rebate\")),TRUE,\"MI: Line Item \" & $A204),\"\")","v":""}]
[{"$f":"IF(Table_PI[[#This Row],[Hide:\nFormula Name]]<>\"\",MAX($A$2:A204)+1,\"\")","v":""},null,null,null,null,null,null,null,null,null,null,null,null,null,null,{"$f":"IFERROR(VLOOKUP(Table_PI[[#This Row],[Measure]],'Equipment Lookups'!$C$3:$D$23,2,FALSE),\"\")","v":""},{"$f":"IF(Table_PI[[#This Row],[Hide:\nFormula Name]]<>\"\",IFERROR(IF(MeasureCalc(Table_PI[[#This Row],[Hide:\nFormula Name]],Table_PI[[#This Row],[Quantity]],Table_PI[[#This Row],[List 1]],Table_PI[[#This Row],[List 2]],Table_PI[[#This Row],[List 3]],Table_PI[[#This Row],[Size]],Table_PI[[#This Row],[Input 1]],Table_PI[[#This Row],[Input 2]],Table_PI[[#This Row],[Input 3]],Table_PI[[#This Row],[Input 4]],'Customer Information'!$AR$12,1,ROW())>0,MeasureCalc(Table_PI[[#This Row],[Hide:\nFormula Name]],Table_PI[[#This Row],[Quantity]],Table_PI[[#This Row],[List 1]],Table_PI[[#This Row],[List 2]],Table_PI[[#This Row],[List 3]],Table_PI[[#This Row],[Size]],Table_PI[[#This Row],[Input 1]],Table_PI[[#This Row],[Input 2]],Table_PI[[#This Row],[Input 3]],Table_PI[[#This Row],[Input 4]],'Customer Information'!$AR$12,1,ROW()),\"No Rebate\"),\"No Rebate\"),0)","v":0},{"$f":"IF(Table_PI[[#This Row],[Hide:\nFormula Name]]<>\"\",IFERROR(IF(MeasureCalc(Table_PI[[#This Row],[Hide:\nFormula Name]],Table_PI[[#This Row],[Quantity]],Table_PI[[#This Row],[List 1]],Table_PI[[#This Row],[List 2]],Table_PI[[#This Row],[List 3]],Table_PI[[#This Row],[Size]],Table_PI[[#This Row],[Input 1]],Table_PI[[#This Row],[Input 2]],Table_PI[[#This Row],[Input 3]],Table_PI[[#This Row],[Input 4]],'Customer Information'!$AR$12,1,ROW())>0,MeasureCalc(Table_PI[[#This Row],[Hide:\nFormula Name]],Table_PI[[#This Row],[Quantity]],Table_PI[[#This Row],[List 1]],Table_PI[[#This Row],[List 2]],Table_PI[[#This Row],[List 3]],Table_PI[[#This Row],[Size]],Table_PI[[#This Row],[Input 1]],Table_PI[[#This Row],[Input 2]],Table_PI[[#This Row],[Input 3]],Table_PI[[#This Row],[Input 4]],'Customer Information'!$AR$12,2,ROW()),\"No Rebate\"),\"No Rebate\"),0)","v":0},{"$f":"IF(Table_PI[[#This Row],[Hide:\nFormula Name]]<>\"\",IFERROR(IF(MeasureCalc(Table_PI[[#This Row],[Hide:\nFormula Name]],Table_PI[[#This Row],[Quantity]],Table_PI[[#This Row],[List 1]],Table_PI[[#This Row],[List 2]],Table_PI[[#This Row],[List 3]],Table_PI[[#This Row],[Size]],Table_PI[[#This Row],[Input 1]],Table_PI[[#This Row],[Input 2]],Table_PI[[#This Row],[Input 3]],Table_PI[[#This Row],[Input 4]],'Customer Information'!$AR$12,1,ROW())>0,MeasureCalc(Table_PI[[#This Row],[Hide:\nFormula Name]],Table_PI[[#This Row],[Quantity]],Table_PI[[#This Row],[List 1]],Table_PI[[#This Row],[List 2]],Table_PI[[#This Row],[List 3]],Table_PI[[#This Row],[Size]],Table_PI[[#This Row],[Input 1]],Table_PI[[#This Row],[Input 2]],Table_PI[[#This Row],[Input 3]],Table_PI[[#This Row],[Input 4]],'Customer Information'!$AR$12,3,ROW()),\"No Rebate\"),\"No Rebate\"),0)","v":0},{"$f":"IF(Table_PI[[#This Row],[Hide:\nFormula Name]]<>\"\",IFERROR(IF(MeasureCalc(Table_PI[[#This Row],[Hide:\nFormula Name]],Table_PI[[#This Row],[Quantity]],Table_PI[[#This Row],[List 1]],Table_PI[[#This Row],[List 2]],Table_PI[[#This Row],[List 3]],Table_PI[[#This Row],[Size]],Table_PI[[#This Row],[Input 1]],Table_PI[[#This Row],[Input 2]],Table_PI[[#This Row],[Input 3]],Table_PI[[#This Row],[Input 4]],'Customer Information'!$AR$12,1,ROW())>0,MeasureCalc(Table_PI[[#This Row],[Hide:\nFormula Name]],Table_PI[[#This Row],[Quantity]],Table_PI[[#This Row],[List 1]],Table_PI[[#This Row],[List 2]],Table_PI[[#This Row],[List 3]],Table_PI[[#This Row],[Size]],Table_PI[[#This Row],[Input 1]],Table_PI[[#This Row],[Input 2]],Table_PI[[#This Row],[Input 3]],Table_PI[[#This Row],[Input 4]],'Customer Information'!$AR$12,4,ROW()),\"No Rebate\"),\"No Rebate\"),0)","v":0},{"$f":"IF(Table_PI[[#This Row],[Hide:\nFormula Name]]<>\"\",IFERROR(IF(MeasureCalc(Table_PI[[#This Row],[Hide:\nFormula Name]],Table_PI[[#This Row],[Quantity]],Table_PI[[#This Row],[List 1]],Table_PI[[#This Row],[List 2]],Table_PI[[#This Row],[List 3]],Table_PI[[#This Row],[Size]],Table_PI[[#This Row],[Input 1]],Table_PI[[#This Row],[Input 2]],Table_PI[[#This Row],[Input 3]],Table_PI[[#This Row],[Input 4]],'Customer Information'!$AR$12,1,ROW())>0,MeasureCalc(Table_PI[[#This Row],[Hide:\nFormula Name]],Table_PI[[#This Row],[Quantity]],Table_PI[[#This Row],[List 1]],Table_PI[[#This Row],[List 2]],Table_PI[[#This Row],[List 3]],Table_PI[[#This Row],[Size]],Table_PI[[#This Row],[Input 1]],Table_PI[[#This Row],[Input 2]],Table_PI[[#This Row],[Input 3]],Table_PI[[#This Row],[Input 4]],'Customer Information'!$AR$12,5,ROW()),\"No Rebate\"),\"No Rebate\"),0)","v":0},{"$f":"IF(Table_PI[[#This Row],[Hide:\nFormula Name]]<>\"\",IFERROR(IF(MeasureCalc(Table_PI[[#This Row],[Hide:\nFormula Name]],Table_PI[[#This Row],[Quantity]],Table_PI[[#This Row],[List 1]],Table_PI[[#This Row],[List 2]],Table_PI[[#This Row],[List 3]],Table_PI[[#This Row],[Size]],Table_PI[[#This Row],[Input 1]],Table_PI[[#This Row],[Input 2]],Table_PI[[#This Row],[Input 3]],Table_PI[[#This Row],[Input 4]],'Customer Information'!$AR$12,1,ROW())>0,MeasureCalc(Table_PI[[#This Row],[Hide:\nFormula Name]],Table_PI[[#This Row],[Quantity]],Table_PI[[#This Row],[List 1]],Table_PI[[#This Row],[List 2]],Table_PI[[#This Row],[List 3]],Table_PI[[#This Row],[Size]],Table_PI[[#This Row],[Input 1]],Table_PI[[#This Row],[Input 2]],Table_PI[[#This Row],[Input 3]],Table_PI[[#This Row],[Input 4]],'Customer Information'!$AR$12,6,ROW()),\"No Rebate\"),\"No Rebate\"),0)","v":0},{"$f":"IF(Table_PI[[#This Row],[Hide:\nFormula Name]]<>\"\",IFERROR(IF(MeasureCalc(Table_PI[[#This Row],[Hide:\nFormula Name]],Table_PI[[#This Row],[Quantity]],Table_PI[[#This Row],[List 1]],Table_PI[[#This Row],[List 2]],Table_PI[[#This Row],[List 3]],Table_PI[[#This Row],[Size]],Table_PI[[#This Row],[Input 1]],Table_PI[[#This Row],[Input 2]],Table_PI[[#This Row],[Input 3]],Table_PI[[#This Row],[Input 4]],'Customer Information'!$AR$12,1,ROW())>0,MeasureCalc(Table_PI[[#This Row],[Hide:\nFormula Name]],Table_PI[[#This Row],[Quantity]],Table_PI[[#This Row],[List 1]],Table_PI[[#This Row],[List 2]],Table_PI[[#This Row],[List 3]],Table_PI[[#This Row],[Size]],Table_PI[[#This Row],[Input 1]],Table_PI[[#This Row],[Input 2]],Table_PI[[#This Row],[Input 3]],Table_PI[[#This Row],[Input 4]],'Customer Information'!$AR$12,7,ROW()),\"No Rebate\"),\"No Rebate\"),0)","v":0},{"$f":"IF(Table_PI[[#This Row],[Hide:\nFormula Name]]<>\"\",IFERROR(IF(MeasureCalc(Table_PI[[#This Row],[Hide:\nFormula Name]],Table_PI[[#This Row],[Quantity]],Table_PI[[#This Row],[List 1]],Table_PI[[#This Row],[List 2]],Table_PI[[#This Row],[List 3]],Table_PI[[#This Row],[Size]],Table_PI[[#This Row],[Input 1]],Table_PI[[#This Row],[Input 2]],Table_PI[[#This Row],[Input 3]],Table_PI[[#This Row],[Input 4]],'Customer Information'!$AR$12,1,ROW())>0,MeasureCalc(Table_PI[[#This Row],[Hide:\nFormula Name]],Table_PI[[#This Row],[Quantity]],Table_PI[[#This Row],[List 1]],Table_PI[[#This Row],[List 2]],Table_PI[[#This Row],[List 3]],Table_PI[[#This Row],[Size]],Table_PI[[#This Row],[Input 1]],Table_PI[[#This Row],[Input 2]],Table_PI[[#This Row],[Input 3]],Table_PI[[#This Row],[Input 4]],'Customer Information'!$AR$12,8,ROW()),\"No Rebate\"),\"No Rebate\"),0)","v":0},{"$f":"IF(Table_PI[[#This Row],[Hide:\nFormula Name]]<>\"\",IF(AND(Table_PI[[#This Row],[Hide:\nFormula Name]]<>\"\",OR(Table_PI[[#This Row],[Rebate]]>0,Table_PI[[#This Row],[Rebate]]=\"No Rebate\")),TRUE,\"MI: Line Item \" & $A205),\"\")","v":""}]
[{"$f":"IF(Table_PI[[#This Row],[Hide:\nFormula Name]]<>\"\",MAX($A$2:A205)+1,\"\")","v":""},null,null,null,null,null,null,null,null,null,null,null,null,null,null,{"$f":"IFERROR(VLOOKUP(Table_PI[[#This Row],[Measure]],'Equipment Lookups'!$C$3:$D$23,2,FALSE),\"\")","v":""},{"$f":"IF(Table_PI[[#This Row],[Hide:\nFormula Name]]<>\"\",IFERROR(IF(MeasureCalc(Table_PI[[#This Row],[Hide:\nFormula Name]],Table_PI[[#This Row],[Quantity]],Table_PI[[#This Row],[List 1]],Table_PI[[#This Row],[List 2]],Table_PI[[#This Row],[List 3]],Table_PI[[#This Row],[Size]],Table_PI[[#This Row],[Input 1]],Table_PI[[#This Row],[Input 2]],Table_PI[[#This Row],[Input 3]],Table_PI[[#This Row],[Input 4]],'Customer Information'!$AR$12,1,ROW())>0,MeasureCalc(Table_PI[[#This Row],[Hide:\nFormula Name]],Table_PI[[#This Row],[Quantity]],Table_PI[[#This Row],[List 1]],Table_PI[[#This Row],[List 2]],Table_PI[[#This Row],[List 3]],Table_PI[[#This Row],[Size]],Table_PI[[#This Row],[Input 1]],Table_PI[[#This Row],[Input 2]],Table_PI[[#This Row],[Input 3]],Table_PI[[#This Row],[Input 4]],'Customer Information'!$AR$12,1,ROW()),\"No Rebate\"),\"No Rebate\"),0)","v":0},{"$f":"IF(Table_PI[[#This Row],[Hide:\nFormula Name]]<>\"\",IFERROR(IF(MeasureCalc(Table_PI[[#This Row],[Hide:\nFormula Name]],Table_PI[[#This Row],[Quantity]],Table_PI[[#This Row],[List 1]],Table_PI[[#This Row],[List 2]],Table_PI[[#This Row],[List 3]],Table_PI[[#This Row],[Size]],Table_PI[[#This Row],[Input 1]],Table_PI[[#This Row],[Input 2]],Table_PI[[#This Row],[Input 3]],Table_PI[[#This Row],[Input 4]],'Customer Information'!$AR$12,1,ROW())>0,MeasureCalc(Table_PI[[#This Row],[Hide:\nFormula Name]],Table_PI[[#This Row],[Quantity]],Table_PI[[#This Row],[List 1]],Table_PI[[#This Row],[List 2]],Table_PI[[#This Row],[List 3]],Table_PI[[#This Row],[Size]],Table_PI[[#This Row],[Input 1]],Table_PI[[#This Row],[Input 2]],Table_PI[[#This Row],[Input 3]],Table_PI[[#This Row],[Input 4]],'Customer Information'!$AR$12,2,ROW()),\"No Rebate\"),\"No Rebate\"),0)","v":0},{"$f":"IF(Table_PI[[#This Row],[Hide:\nFormula Name]]<>\"\",IFERROR(IF(MeasureCalc(Table_PI[[#This Row],[Hide:\nFormula Name]],Table_PI[[#This Row],[Quantity]],Table_PI[[#This Row],[List 1]],Table_PI[[#This Row],[List 2]],Table_PI[[#This Row],[List 3]],Table_PI[[#This Row],[Size]],Table_PI[[#This Row],[Input 1]],Table_PI[[#This Row],[Input 2]],Table_PI[[#This Row],[Input 3]],Table_PI[[#This Row],[Input 4]],'Customer Information'!$AR$12,1,ROW())>0,MeasureCalc(Table_PI[[#This Row],[Hide:\nFormula Name]],Table_PI[[#This Row],[Quantity]],Table_PI[[#This Row],[List 1]],Table_PI[[#This Row],[List 2]],Table_PI[[#This Row],[List 3]],Table_PI[[#This Row],[Size]],Table_PI[[#This Row],[Input 1]],Table_PI[[#This Row],[Input 2]],Table_PI[[#This Row],[Input 3]],Table_PI[[#This Row],[Input 4]],'Customer Information'!$AR$12,3,ROW()),\"No Rebate\"),\"No Rebate\"),0)","v":0},{"$f":"IF(Table_PI[[#This Row],[Hide:\nFormula Name]]<>\"\",IFERROR(IF(MeasureCalc(Table_PI[[#This Row],[Hide:\nFormula Name]],Table_PI[[#This Row],[Quantity]],Table_PI[[#This Row],[List 1]],Table_PI[[#This Row],[List 2]],Table_PI[[#This Row],[List 3]],Table_PI[[#This Row],[Size]],Table_PI[[#This Row],[Input 1]],Table_PI[[#This Row],[Input 2]],Table_PI[[#This Row],[Input 3]],Table_PI[[#This Row],[Input 4]],'Customer Information'!$AR$12,1,ROW())>0,MeasureCalc(Table_PI[[#This Row],[Hide:\nFormula Name]],Table_PI[[#This Row],[Quantity]],Table_PI[[#This Row],[List 1]],Table_PI[[#This Row],[List 2]],Table_PI[[#This Row],[List 3]],Table_PI[[#This Row],[Size]],Table_PI[[#This Row],[Input 1]],Table_PI[[#This Row],[Input 2]],Table_PI[[#This Row],[Input 3]],Table_PI[[#This Row],[Input 4]],'Customer Information'!$AR$12,4,ROW()),\"No Rebate\"),\"No Rebate\"),0)","v":0},{"$f":"IF(Table_PI[[#This Row],[Hide:\nFormula Name]]<>\"\",IFERROR(IF(MeasureCalc(Table_PI[[#This Row],[Hide:\nFormula Name]],Table_PI[[#This Row],[Quantity]],Table_PI[[#This Row],[List 1]],Table_PI[[#This Row],[List 2]],Table_PI[[#This Row],[List 3]],Table_PI[[#This Row],[Size]],Table_PI[[#This Row],[Input 1]],Table_PI[[#This Row],[Input 2]],Table_PI[[#This Row],[Input 3]],Table_PI[[#This Row],[Input 4]],'Customer Information'!$AR$12,1,ROW())>0,MeasureCalc(Table_PI[[#This Row],[Hide:\nFormula Name]],Table_PI[[#This Row],[Quantity]],Table_PI[[#This Row],[List 1]],Table_PI[[#This Row],[List 2]],Table_PI[[#This Row],[List 3]],Table_PI[[#This Row],[Size]],Table_PI[[#This Row],[Input 1]],Table_PI[[#This Row],[Input 2]],Table_PI[[#This Row],[Input 3]],Table_PI[[#This Row],[Input 4]],'Customer Information'!$AR$12,5,ROW()),\"No Rebate\"),\"No Rebate\"),0)","v":0},{"$f":"IF(Table_PI[[#This Row],[Hide:\nFormula Name]]<>\"\",IFERROR(IF(MeasureCalc(Table_PI[[#This Row],[Hide:\nFormula Name]],Table_PI[[#This Row],[Quantity]],Table_PI[[#This Row],[List 1]],Table_PI[[#This Row],[List 2]],Table_PI[[#This Row],[List 3]],Table_PI[[#This Row],[Size]],Table_PI[[#This Row],[Input 1]],Table_PI[[#This Row],[Input 2]],Table_PI[[#This Row],[Input 3]],Table_PI[[#This Row],[Input 4]],'Customer Information'!$AR$12,1,ROW())>0,MeasureCalc(Table_PI[[#This Row],[Hide:\nFormula Name]],Table_PI[[#This Row],[Quantity]],Table_PI[[#This Row],[List 1]],Table_PI[[#This Row],[List 2]],Table_PI[[#This Row],[List 3]],Table_PI[[#This Row],[Size]],Table_PI[[#This Row],[Input 1]],Table_PI[[#This Row],[Input 2]],Table_PI[[#This Row],[Input 3]],Table_PI[[#This Row],[Input 4]],'Customer Information'!$AR$12,6,ROW()),\"No Rebate\"),\"No Rebate\"),0)","v":0},{"$f":"IF(Table_PI[[#This Row],[Hide:\nFormula Name]]<>\"\",IFERROR(IF(MeasureCalc(Table_PI[[#This Row],[Hide:\nFormula Name]],Table_PI[[#This Row],[Quantity]],Table_PI[[#This Row],[List 1]],Table_PI[[#This Row],[List 2]],Table_PI[[#This Row],[List 3]],Table_PI[[#This Row],[Size]],Table_PI[[#This Row],[Input 1]],Table_PI[[#This Row],[Input 2]],Table_PI[[#This Row],[Input 3]],Table_PI[[#This Row],[Input 4]],'Customer Information'!$AR$12,1,ROW())>0,MeasureCalc(Table_PI[[#This Row],[Hide:\nFormula Name]],Table_PI[[#This Row],[Quantity]],Table_PI[[#This Row],[List 1]],Table_PI[[#This Row],[List 2]],Table_PI[[#This Row],[List 3]],Table_PI[[#This Row],[Size]],Table_PI[[#This Row],[Input 1]],Table_PI[[#This Row],[Input 2]],Table_PI[[#This Row],[Input 3]],Table_PI[[#This Row],[Input 4]],'Customer Information'!$AR$12,7,ROW()),\"No Rebate\"),\"No Rebate\"),0)","v":0},{"$f":"IF(Table_PI[[#This Row],[Hide:\nFormula Name]]<>\"\",IFERROR(IF(MeasureCalc(Table_PI[[#This Row],[Hide:\nFormula Name]],Table_PI[[#This Row],[Quantity]],Table_PI[[#This Row],[List 1]],Table_PI[[#This Row],[List 2]],Table_PI[[#This Row],[List 3]],Table_PI[[#This Row],[Size]],Table_PI[[#This Row],[Input 1]],Table_PI[[#This Row],[Input 2]],Table_PI[[#This Row],[Input 3]],Table_PI[[#This Row],[Input 4]],'Customer Information'!$AR$12,1,ROW())>0,MeasureCalc(Table_PI[[#This Row],[Hide:\nFormula Name]],Table_PI[[#This Row],[Quantity]],Table_PI[[#This Row],[List 1]],Table_PI[[#This Row],[List 2]],Table_PI[[#This Row],[List 3]],Table_PI[[#This Row],[Size]],Table_PI[[#This Row],[Input 1]],Table_PI[[#This Row],[Input 2]],Table_PI[[#This Row],[Input 3]],Table_PI[[#This Row],[Input 4]],'Customer Information'!$AR$12,8,ROW()),\"No Rebate\"),\"No Rebate\"),0)","v":0},{"$f":"IF(Table_PI[[#This Row],[Hide:\nFormula Name]]<>\"\",IF(AND(Table_PI[[#This Row],[Hide:\nFormula Name]]<>\"\",OR(Table_PI[[#This Row],[Rebate]]>0,Table_PI[[#This Row],[Rebate]]=\"No Rebate\")),TRUE,\"MI: Line Item \" & $A206),\"\")","v":""}]
[{"$f":"IF(Table_PI[[#This Row],[Hide:\nFormula Name]]<>\"\",MAX($A$2:A206)+1,\"\")","v":""},null,null,null,null,null,null,null,null,null,null,null,null,null,null,{"$f":"IFERROR(VLOOKUP(Table_PI[[#This Row],[Measure]],'Equipment Lookups'!$C$3:$D$23,2,FALSE),\"\")","v":""},{"$f":"IF(Table_PI[[#This Row],[Hide:\nFormula Name]]<>\"\",IFERROR(IF(MeasureCalc(Table_PI[[#This Row],[Hide:\nFormula Name]],Table_PI[[#This Row],[Quantity]],Table_PI[[#This Row],[List 1]],Table_PI[[#This Row],[List 2]],Table_PI[[#This Row],[List 3]],Table_PI[[#This Row],[Size]],Table_PI[[#This Row],[Input 1]],Table_PI[[#This Row],[Input 2]],Table_PI[[#This Row],[Input 3]],Table_PI[[#This Row],[Input 4]],'Customer Information'!$AR$12,1,ROW())>0,MeasureCalc(Table_PI[[#This Row],[Hide:\nFormula Name]],Table_PI[[#This Row],[Quantity]],Table_PI[[#This Row],[List 1]],Table_PI[[#This Row],[List 2]],Table_PI[[#This Row],[List 3]],Table_PI[[#This Row],[Size]],Table_PI[[#This Row],[Input 1]],Table_PI[[#This Row],[Input 2]],Table_PI[[#This Row],[Input 3]],Table_PI[[#This Row],[Input 4]],'Customer Information'!$AR$12,1,ROW()),\"No Rebate\"),\"No Rebate\"),0)","v":0},{"$f":"IF(Table_PI[[#This Row],[Hide:\nFormula Name]]<>\"\",IFERROR(IF(MeasureCalc(Table_PI[[#This Row],[Hide:\nFormula Name]],Table_PI[[#This Row],[Quantity]],Table_PI[[#This Row],[List 1]],Table_PI[[#This Row],[List 2]],Table_PI[[#This Row],[List 3]],Table_PI[[#This Row],[Size]],Table_PI[[#This Row],[Input 1]],Table_PI[[#This Row],[Input 2]],Table_PI[[#This Row],[Input 3]],Table_PI[[#This Row],[Input 4]],'Customer Information'!$AR$12,1,ROW())>0,MeasureCalc(Table_PI[[#This Row],[Hide:\nFormula Name]],Table_PI[[#This Row],[Quantity]],Table_PI[[#This Row],[List 1]],Table_PI[[#This Row],[List 2]],Table_PI[[#This Row],[List 3]],Table_PI[[#This Row],[Size]],Table_PI[[#This Row],[Input 1]],Table_PI[[#This Row],[Input 2]],Table_PI[[#This Row],[Input 3]],Table_PI[[#This Row],[Input 4]],'Customer Information'!$AR$12,2,ROW()),\"No Rebate\"),\"No Rebate\"),0)","v":0},{"$f":"IF(Table_PI[[#This Row],[Hide:\nFormula Name]]<>\"\",IFERROR(IF(MeasureCalc(Table_PI[[#This Row],[Hide:\nFormula Name]],Table_PI[[#This Row],[Quantity]],Table_PI[[#This Row],[List 1]],Table_PI[[#This Row],[List 2]],Table_PI[[#This Row],[List 3]],Table_PI[[#This Row],[Size]],Table_PI[[#This Row],[Input 1]],Table_PI[[#This Row],[Input 2]],Table_PI[[#This Row],[Input 3]],Table_PI[[#This Row],[Input 4]],'Customer Information'!$AR$12,1,ROW())>0,MeasureCalc(Table_PI[[#This Row],[Hide:\nFormula Name]],Table_PI[[#This Row],[Quantity]],Table_PI[[#This Row],[List 1]],Table_PI[[#This Row],[List 2]],Table_PI[[#This Row],[List 3]],Table_PI[[#This Row],[Size]],Table_PI[[#This Row],[Input 1]],Table_PI[[#This Row],[Input 2]],Table_PI[[#This Row],[Input 3]],Table_PI[[#This Row],[Input 4]],'Customer Information'!$AR$12,3,ROW()),\"No Rebate\"),\"No Rebate\"),0)","v":0},{"$f":"IF(Table_PI[[#This Row],[Hide:\nFormula Name]]<>\"\",IFERROR(IF(MeasureCalc(Table_PI[[#This Row],[Hide:\nFormula Name]],Table_PI[[#This Row],[Quantity]],Table_PI[[#This Row],[List 1]],Table_PI[[#This Row],[List 2]],Table_PI[[#This Row],[List 3]],Table_PI[[#This Row],[Size]],Table_PI[[#This Row],[Input 1]],Table_PI[[#This Row],[Input 2]],Table_PI[[#This Row],[Input 3]],Table_PI[[#This Row],[Input 4]],'Customer Information'!$AR$12,1,ROW())>0,MeasureCalc(Table_PI[[#This Row],[Hide:\nFormula Name]],Table_PI[[#This Row],[Quantity]],Table_PI[[#This Row],[List 1]],Table_PI[[#This Row],[List 2]],Table_PI[[#This Row],[List 3]],Table_PI[[#This Row],[Size]],Table_PI[[#This Row],[Input 1]],Table_PI[[#This Row],[Input 2]],Table_PI[[#This Row],[Input 3]],Table_PI[[#This Row],[Input 4]],'Customer Information'!$AR$12,4,ROW()),\"No Rebate\"),\"No Rebate\"),0)","v":0},{"$f":"IF(Table_PI[[#This Row],[Hide:\nFormula Name]]<>\"\",IFERROR(IF(MeasureCalc(Table_PI[[#This Row],[Hide:\nFormula Name]],Table_PI[[#This Row],[Quantity]],Table_PI[[#This Row],[List 1]],Table_PI[[#This Row],[List 2]],Table_PI[[#This Row],[List 3]],Table_PI[[#This Row],[Size]],Table_PI[[#This Row],[Input 1]],Table_PI[[#This Row],[Input 2]],Table_PI[[#This Row],[Input 3]],Table_PI[[#This Row],[Input 4]],'Customer Information'!$AR$12,1,ROW())>0,MeasureCalc(Table_PI[[#This Row],[Hide:\nFormula Name]],Table_PI[[#This Row],[Quantity]],Table_PI[[#This Row],[List 1]],Table_PI[[#This Row],[List 2]],Table_PI[[#This Row],[List 3]],Table_PI[[#This Row],[Size]],Table_PI[[#This Row],[Input 1]],Table_PI[[#This Row],[Input 2]],Table_PI[[#This Row],[Input 3]],Table_PI[[#This Row],[Input 4]],'Customer Information'!$AR$12,5,ROW()),\"No Rebate\"),\"No Rebate\"),0)","v":0},{"$f":"IF(Table_PI[[#This Row],[Hide:\nFormula Name]]<>\"\",IFERROR(IF(MeasureCalc(Table_PI[[#This Row],[Hide:\nFormula Name]],Table_PI[[#This Row],[Quantity]],Table_PI[[#This Row],[List 1]],Table_PI[[#This Row],[List 2]],Table_PI[[#This Row],[List 3]],Table_PI[[#This Row],[Size]],Table_PI[[#This Row],[Input 1]],Table_PI[[#This Row],[Input 2]],Table_PI[[#This Row],[Input 3]],Table_PI[[#This Row],[Input 4]],'Customer Information'!$AR$12,1,ROW())>0,MeasureCalc(Table_PI[[#This Row],[Hide:\nFormula Name]],Table_PI[[#This Row],[Quantity]],Table_PI[[#This Row],[List 1]],Table_PI[[#This Row],[List 2]],Table_PI[[#This Row],[List 3]],Table_PI[[#This Row],[Size]],Table_PI[[#This Row],[Input 1]],Table_PI[[#This Row],[Input 2]],Table_PI[[#This Row],[Input 3]],Table_PI[[#This Row],[Input 4]],'Customer Information'!$AR$12,6,ROW()),\"No Rebate\"),\"No Rebate\"),0)","v":0},{"$f":"IF(Table_PI[[#This Row],[Hide:\nFormula Name]]<>\"\",IFERROR(IF(MeasureCalc(Table_PI[[#This Row],[Hide:\nFormula Name]],Table_PI[[#This Row],[Quantity]],Table_PI[[#This Row],[List 1]],Table_PI[[#This Row],[List 2]],Table_PI[[#This Row],[List 3]],Table_PI[[#This Row],[Size]],Table_PI[[#This Row],[Input 1]],Table_PI[[#This Row],[Input 2]],Table_PI[[#This Row],[Input 3]],Table_PI[[#This Row],[Input 4]],'Customer Information'!$AR$12,1,ROW())>0,MeasureCalc(Table_PI[[#This Row],[Hide:\nFormula Name]],Table_PI[[#This Row],[Quantity]],Table_PI[[#This Row],[List 1]],Table_PI[[#This Row],[List 2]],Table_PI[[#This Row],[List 3]],Table_PI[[#This Row],[Size]],Table_PI[[#This Row],[Input 1]],Table_PI[[#This Row],[Input 2]],Table_PI[[#This Row],[Input 3]],Table_PI[[#This Row],[Input 4]],'Customer Information'!$AR$12,7,ROW()),\"No Rebate\"),\"No Rebate\"),0)","v":0},{"$f":"IF(Table_PI[[#This Row],[Hide:\nFormula Name]]<>\"\",IFERROR(IF(MeasureCalc(Table_PI[[#This Row],[Hide:\nFormula Name]],Table_PI[[#This Row],[Quantity]],Table_PI[[#This Row],[List 1]],Table_PI[[#This Row],[List 2]],Table_PI[[#This Row],[List 3]],Table_PI[[#This Row],[Size]],Table_PI[[#This Row],[Input 1]],Table_PI[[#This Row],[Input 2]],Table_PI[[#This Row],[Input 3]],Table_PI[[#This Row],[Input 4]],'Customer Information'!$AR$12,1,ROW())>0,MeasureCalc(Table_PI[[#This Row],[Hide:\nFormula Name]],Table_PI[[#This Row],[Quantity]],Table_PI[[#This Row],[List 1]],Table_PI[[#This Row],[List 2]],Table_PI[[#This Row],[List 3]],Table_PI[[#This Row],[Size]],Table_PI[[#This Row],[Input 1]],Table_PI[[#This Row],[Input 2]],Table_PI[[#This Row],[Input 3]],Table_PI[[#This Row],[Input 4]],'Customer Information'!$AR$12,8,ROW()),\"No Rebate\"),\"No Rebate\"),0)","v":0},{"$f":"IF(Table_PI[[#This Row],[Hide:\nFormula Name]]<>\"\",IF(AND(Table_PI[[#This Row],[Hide:\nFormula Name]]<>\"\",OR(Table_PI[[#This Row],[Rebate]]>0,Table_PI[[#This Row],[Rebate]]=\"No Rebate\")),TRUE,\"MI: Line Item \" & $A207),\"\")","v":""}]
[{"$f":"IF(Table_PI[[#This Row],[Hide:\nFormula Name]]<>\"\",MAX($A$2:A207)+1,\"\")","v":""},null,null,null,null,null,null,null,null,null,null,null,null,null,null,{"$f":"IFERROR(VLOOKUP(Table_PI[[#This Row],[Measure]],'Equipment Lookups'!$C$3:$D$23,2,FALSE),\"\")","v":""},{"$f":"IF(Table_PI[[#This Row],[Hide:\nFormula Name]]<>\"\",IFERROR(IF(MeasureCalc(Table_PI[[#This Row],[Hide:\nFormula Name]],Table_PI[[#This Row],[Quantity]],Table_PI[[#This Row],[List 1]],Table_PI[[#This Row],[List 2]],Table_PI[[#This Row],[List 3]],Table_PI[[#This Row],[Size]],Table_PI[[#This Row],[Input 1]],Table_PI[[#This Row],[Input 2]],Table_PI[[#This Row],[Input 3]],Table_PI[[#This Row],[Input 4]],'Customer Information'!$AR$12,1,ROW())>0,MeasureCalc(Table_PI[[#This Row],[Hide:\nFormula Name]],Table_PI[[#This Row],[Quantity]],Table_PI[[#This Row],[List 1]],Table_PI[[#This Row],[List 2]],Table_PI[[#This Row],[List 3]],Table_PI[[#This Row],[Size]],Table_PI[[#This Row],[Input 1]],Table_PI[[#This Row],[Input 2]],Table_PI[[#This Row],[Input 3]],Table_PI[[#This Row],[Input 4]],'Customer Information'!$AR$12,1,ROW()),\"No Rebate\"),\"No Rebate\"),0)","v":0},{"$f":"IF(Table_PI[[#This Row],[Hide:\nFormula Name]]<>\"\",IFERROR(IF(MeasureCalc(Table_PI[[#This Row],[Hide:\nFormula Name]],Table_PI[[#This Row],[Quantity]],Table_PI[[#This Row],[List 1]],Table_PI[[#This Row],[List 2]],Table_PI[[#This Row],[List 3]],Table_PI[[#This Row],[Size]],Table_PI[[#This Row],[Input 1]],Table_PI[[#This Row],[Input 2]],Table_PI[[#This Row],[Input 3]],Table_PI[[#This Row],[Input 4]],'Customer Information'!$AR$12,1,ROW())>0,MeasureCalc(Table_PI[[#This Row],[Hide:\nFormula Name]],Table_PI[[#This Row],[Quantity]],Table_PI[[#This Row],[List 1]],Table_PI[[#This Row],[List 2]],Table_PI[[#This Row],[List 3]],Table_PI[[#This Row],[Size]],Table_PI[[#This Row],[Input 1]],Table_PI[[#This Row],[Input 2]],Table_PI[[#This Row],[Input 3]],Table_PI[[#This Row],[Input 4]],'Customer Information'!$AR$12,2,ROW()),\"No Rebate\"),\"No Rebate\"),0)","v":0},{"$f":"IF(Table_PI[[#This Row],[Hide:\nFormula Name]]<>\"\",IFERROR(IF(MeasureCalc(Table_PI[[#This Row],[Hide:\nFormula Name]],Table_PI[[#This Row],[Quantity]],Table_PI[[#This Row],[List 1]],Table_PI[[#This Row],[List 2]],Table_PI[[#This Row],[List 3]],Table_PI[[#This Row],[Size]],Table_PI[[#This Row],[Input 1]],Table_PI[[#This Row],[Input 2]],Table_PI[[#This Row],[Input 3]],Table_PI[[#This Row],[Input 4]],'Customer Information'!$AR$12,1,ROW())>0,MeasureCalc(Table_PI[[#This Row],[Hide:\nFormula Name]],Table_PI[[#This Row],[Quantity]],Table_PI[[#This Row],[List 1]],Table_PI[[#This Row],[List 2]],Table_PI[[#This Row],[List 3]],Table_PI[[#This Row],[Size]],Table_PI[[#This Row],[Input 1]],Table_PI[[#This Row],[Input 2]],Table_PI[[#This Row],[Input 3]],Table_PI[[#This Row],[Input 4]],'Customer Information'!$AR$12,3,ROW()),\"No Rebate\"),\"No Rebate\"),0)","v":0},{"$f":"IF(Table_PI[[#This Row],[Hide:\nFormula Name]]<>\"\",IFERROR(IF(MeasureCalc(Table_PI[[#This Row],[Hide:\nFormula Name]],Table_PI[[#This Row],[Quantity]],Table_PI[[#This Row],[List 1]],Table_PI[[#This Row],[List 2]],Table_PI[[#This Row],[List 3]],Table_PI[[#This Row],[Size]],Table_PI[[#This Row],[Input 1]],Table_PI[[#This Row],[Input 2]],Table_PI[[#This Row],[Input 3]],Table_PI[[#This Row],[Input 4]],'Customer Information'!$AR$12,1,ROW())>0,MeasureCalc(Table_PI[[#This Row],[Hide:\nFormula Name]],Table_PI[[#This Row],[Quantity]],Table_PI[[#This Row],[List 1]],Table_PI[[#This Row],[List 2]],Table_PI[[#This Row],[List 3]],Table_PI[[#This Row],[Size]],Table_PI[[#This Row],[Input 1]],Table_PI[[#This Row],[Input 2]],Table_PI[[#This Row],[Input 3]],Table_PI[[#This Row],[Input 4]],'Customer Information'!$AR$12,4,ROW()),\"No Rebate\"),\"No Rebate\"),0)","v":0},{"$f":"IF(Table_PI[[#This Row],[Hide:\nFormula Name]]<>\"\",IFERROR(IF(MeasureCalc(Table_PI[[#This Row],[Hide:\nFormula Name]],Table_PI[[#This Row],[Quantity]],Table_PI[[#This Row],[List 1]],Table_PI[[#This Row],[List 2]],Table_PI[[#This Row],[List 3]],Table_PI[[#This Row],[Size]],Table_PI[[#This Row],[Input 1]],Table_PI[[#This Row],[Input 2]],Table_PI[[#This Row],[Input 3]],Table_PI[[#This Row],[Input 4]],'Customer Information'!$AR$12,1,ROW())>0,MeasureCalc(Table_PI[[#This Row],[Hide:\nFormula Name]],Table_PI[[#This Row],[Quantity]],Table_PI[[#This Row],[List 1]],Table_PI[[#This Row],[List 2]],Table_PI[[#This Row],[List 3]],Table_PI[[#This Row],[Size]],Table_PI[[#This Row],[Input 1]],Table_PI[[#This Row],[Input 2]],Table_PI[[#This Row],[Input 3]],Table_PI[[#This Row],[Input 4]],'Customer Information'!$AR$12,5,ROW()),\"No Rebate\"),\"No Rebate\"),0)","v":0},{"$f":"IF(Table_PI[[#This Row],[Hide:\nFormula Name]]<>\"\",IFERROR(IF(MeasureCalc(Table_PI[[#This Row],[Hide:\nFormula Name]],Table_PI[[#This Row],[Quantity]],Table_PI[[#This Row],[List 1]],Table_PI[[#This Row],[List 2]],Table_PI[[#This Row],[List 3]],Table_PI[[#This Row],[Size]],Table_PI[[#This Row],[Input 1]],Table_PI[[#This Row],[Input 2]],Table_PI[[#This Row],[Input 3]],Table_PI[[#This Row],[Input 4]],'Customer Information'!$AR$12,1,ROW())>0,MeasureCalc(Table_PI[[#This Row],[Hide:\nFormula Name]],Table_PI[[#This Row],[Quantity]],Table_PI[[#This Row],[List 1]],Table_PI[[#This Row],[List 2]],Table_PI[[#This Row],[List 3]],Table_PI[[#This Row],[Size]],Table_PI[[#This Row],[Input 1]],Table_PI[[#This Row],[Input 2]],Table_PI[[#This Row],[Input 3]],Table_PI[[#This Row],[Input 4]],'Customer Information'!$AR$12,6,ROW()),\"No Rebate\"),\"No Rebate\"),0)","v":0},{"$f":"IF(Table_PI[[#This Row],[Hide:\nFormula Name]]<>\"\",IFERROR(IF(MeasureCalc(Table_PI[[#This Row],[Hide:\nFormula Name]],Table_PI[[#This Row],[Quantity]],Table_PI[[#This Row],[List 1]],Table_PI[[#This Row],[List 2]],Table_PI[[#This Row],[List 3]],Table_PI[[#This Row],[Size]],Table_PI[[#This Row],[Input 1]],Table_PI[[#This Row],[Input 2]],Table_PI[[#This Row],[Input 3]],Table_PI[[#This Row],[Input 4]],'Customer Information'!$AR$12,1,ROW())>0,MeasureCalc(Table_PI[[#This Row],[Hide:\nFormula Name]],Table_PI[[#This Row],[Quantity]],Table_PI[[#This Row],[List 1]],Table_PI[[#This Row],[List 2]],Table_PI[[#This Row],[List 3]],Table_PI[[#This Row],[Size]],Table_PI[[#This Row],[Input 1]],Table_PI[[#This Row],[Input 2]],Table_PI[[#This Row],[Input 3]],Table_PI[[#This Row],[Input 4]],'Customer Information'!$AR$12,7,ROW()),\"No Rebate\"),\"No Rebate\"),0)","v":0},{"$f":"IF(Table_PI[[#This Row],[Hide:\nFormula Name]]<>\"\",IFERROR(IF(MeasureCalc(Table_PI[[#This Row],[Hide:\nFormula Name]],Table_PI[[#This Row],[Quantity]],Table_PI[[#This Row],[List 1]],Table_PI[[#This Row],[List 2]],Table_PI[[#This Row],[List 3]],Table_PI[[#This Row],[Size]],Table_PI[[#This Row],[Input 1]],Table_PI[[#This Row],[Input 2]],Table_PI[[#This Row],[Input 3]],Table_PI[[#This Row],[Input 4]],'Customer Information'!$AR$12,1,ROW())>0,MeasureCalc(Table_PI[[#This Row],[Hide:\nFormula Name]],Table_PI[[#This Row],[Quantity]],Table_PI[[#This Row],[List 1]],Table_PI[[#This Row],[List 2]],Table_PI[[#This Row],[List 3]],Table_PI[[#This Row],[Size]],Table_PI[[#This Row],[Input 1]],Table_PI[[#This Row],[Input 2]],Table_PI[[#This Row],[Input 3]],Table_PI[[#This Row],[Input 4]],'Customer Information'!$AR$12,8,ROW()),\"No Rebate\"),\"No Rebate\"),0)","v":0},{"$f":"IF(Table_PI[[#This Row],[Hide:\nFormula Name]]<>\"\",IF(AND(Table_PI[[#This Row],[Hide:\nFormula Name]]<>\"\",OR(Table_PI[[#This Row],[Rebate]]>0,Table_PI[[#This Row],[Rebate]]=\"No Rebate\")),TRUE,\"MI: Line Item \" & $A208),\"\")","v":""}]
[{"$f":"IF(Table_PI[[#This Row],[Hide:\nFormula Name]]<>\"\",MAX($A$2:A208)+1,\"\")","v":""},null,null,null,null,null,null,null,null,null,null,null,null,null,null,{"$f":"IFERROR(VLOOKUP(Table_PI[[#This Row],[Measure]],'Equipment Lookups'!$C$3:$D$23,2,FALSE),\"\")","v":""},{"$f":"IF(Table_PI[[#This Row],[Hide:\nFormula Name]]<>\"\",IFERROR(IF(MeasureCalc(Table_PI[[#This Row],[Hide:\nFormula Name]],Table_PI[[#This Row],[Quantity]],Table_PI[[#This Row],[List 1]],Table_PI[[#This Row],[List 2]],Table_PI[[#This Row],[List 3]],Table_PI[[#This Row],[Size]],Table_PI[[#This Row],[Input 1]],Table_PI[[#This Row],[Input 2]],Table_PI[[#This Row],[Input 3]],Table_PI[[#This Row],[Input 4]],'Customer Information'!$AR$12,1,ROW())>0,MeasureCalc(Table_PI[[#This Row],[Hide:\nFormula Name]],Table_PI[[#This Row],[Quantity]],Table_PI[[#This Row],[List 1]],Table_PI[[#This Row],[List 2]],Table_PI[[#This Row],[List 3]],Table_PI[[#This Row],[Size]],Table_PI[[#This Row],[Input 1]],Table_PI[[#This Row],[Input 2]],Table_PI[[#This Row],[Input 3]],Table_PI[[#This Row],[Input 4]],'Customer Information'!$AR$12,1,ROW()),\"No Rebate\"),\"No Rebate\"),0)","v":0},{"$f":"IF(Table_PI[[#This Row],[Hide:\nFormula Name]]<>\"\",IFERROR(IF(MeasureCalc(Table_PI[[#This Row],[Hide:\nFormula Name]],Table_PI[[#This Row],[Quantity]],Table_PI[[#This Row],[List 1]],Table_PI[[#This Row],[List 2]],Table_PI[[#This Row],[List 3]],Table_PI[[#This Row],[Size]],Table_PI[[#This Row],[Input 1]],Table_PI[[#This Row],[Input 2]],Table_PI[[#This Row],[Input 3]],Table_PI[[#This Row],[Input 4]],'Customer Information'!$AR$12,1,ROW())>0,MeasureCalc(Table_PI[[#This Row],[Hide:\nFormula Name]],Table_PI[[#This Row],[Quantity]],Table_PI[[#This Row],[List 1]],Table_PI[[#This Row],[List 2]],Table_PI[[#This Row],[List 3]],Table_PI[[#This Row],[Size]],Table_PI[[#This Row],[Input 1]],Table_PI[[#This Row],[Input 2]],Table_PI[[#This Row],[Input 3]],Table_PI[[#This Row],[Input 4]],'Customer Information'!$AR$12,2,ROW()),\"No Rebate\"),\"No Rebate\"),0)","v":0},{"$f":"IF(Table_PI[[#This Row],[Hide:\nFormula Name]]<>\"\",IFERROR(IF(MeasureCalc(Table_PI[[#This Row],[Hide:\nFormula Name]],Table_PI[[#This Row],[Quantity]],Table_PI[[#This Row],[List 1]],Table_PI[[#This Row],[List 2]],Table_PI[[#This Row],[List 3]],Table_PI[[#This Row],[Size]],Table_PI[[#This Row],[Input 1]],Table_PI[[#This Row],[Input 2]],Table_PI[[#This Row],[Input 3]],Table_PI[[#This Row],[Input 4]],'Customer Information'!$AR$12,1,ROW())>0,MeasureCalc(Table_PI[[#This Row],[Hide:\nFormula Name]],Table_PI[[#This Row],[Quantity]],Table_PI[[#This Row],[List 1]],Table_PI[[#This Row],[List 2]],Table_PI[[#This Row],[List 3]],Table_PI[[#This Row],[Size]],Table_PI[[#This Row],[Input 1]],Table_PI[[#This Row],[Input 2]],Table_PI[[#This Row],[Input 3]],Table_PI[[#This Row],[Input 4]],'Customer Information'!$AR$12,3,ROW()),\"No Rebate\"),\"No Rebate\"),0)","v":0},{"$f":"IF(Table_PI[[#This Row],[Hide:\nFormula Name]]<>\"\",IFERROR(IF(MeasureCalc(Table_PI[[#This Row],[Hide:\nFormula Name]],Table_PI[[#This Row],[Quantity]],Table_PI[[#This Row],[List 1]],Table_PI[[#This Row],[List 2]],Table_PI[[#This Row],[List 3]],Table_PI[[#This Row],[Size]],Table_PI[[#This Row],[Input 1]],Table_PI[[#This Row],[Input 2]],Table_PI[[#This Row],[Input 3]],Table_PI[[#This Row],[Input 4]],'Customer Information'!$AR$12,1,ROW())>0,MeasureCalc(Table_PI[[#This Row],[Hide:\nFormula Name]],Table_PI[[#This Row],[Quantity]],Table_PI[[#This Row],[List 1]],Table_PI[[#This Row],[List 2]],Table_PI[[#This Row],[List 3]],Table_PI[[#This Row],[Size]],Table_PI[[#This Row],[Input 1]],Table_PI[[#This Row],[Input 2]],Table_PI[[#This Row],[Input 3]],Table_PI[[#This Row],[Input 4]],'Customer Information'!$AR$12,4,ROW()),\"No Rebate\"),\"No Rebate\"),0)","v":0},{"$f":"IF(Table_PI[[#This Row],[Hide:\nFormula Name]]<>\"\",IFERROR(IF(MeasureCalc(Table_PI[[#This Row],[Hide:\nFormula Name]],Table_PI[[#This Row],[Quantity]],Table_PI[[#This Row],[List 1]],Table_PI[[#This Row],[List 2]],Table_PI[[#This Row],[List 3]],Table_PI[[#This Row],[Size]],Table_PI[[#This Row],[Input 1]],Table_PI[[#This Row],[Input 2]],Table_PI[[#This Row],[Input 3]],Table_PI[[#This Row],[Input 4]],'Customer Information'!$AR$12,1,ROW())>0,MeasureCalc(Table_PI[[#This Row],[Hide:\nFormula Name]],Table_PI[[#This Row],[Quantity]],Table_PI[[#This Row],[List 1]],Table_PI[[#This Row],[List 2]],Table_PI[[#This Row],[List 3]],Table_PI[[#This Row],[Size]],Table_PI[[#This Row],[Input 1]],Table_PI[[#This Row],[Input 2]],Table_PI[[#This Row],[Input 3]],Table_PI[[#This Row],[Input 4]],'Customer Information'!$AR$12,5,ROW()),\"No Rebate\"),\"No Rebate\"),0)","v":0},{"$f":"IF(Table_PI[[#This Row],[Hide:\nFormula Name]]<>\"\",IFERROR(IF(MeasureCalc(Table_PI[[#This Row],[Hide:\nFormula Name]],Table_PI[[#This Row],[Quantity]],Table_PI[[#This Row],[List 1]],Table_PI[[#This Row],[List 2]],Table_PI[[#This Row],[List 3]],Table_PI[[#This Row],[Size]],Table_PI[[#This Row],[Input 1]],Table_PI[[#This Row],[Input 2]],Table_PI[[#This Row],[Input 3]],Table_PI[[#This Row],[Input 4]],'Customer Information'!$AR$12,1,ROW())>0,MeasureCalc(Table_PI[[#This Row],[Hide:\nFormula Name]],Table_PI[[#This Row],[Quantity]],Table_PI[[#This Row],[List 1]],Table_PI[[#This Row],[List 2]],Table_PI[[#This Row],[List 3]],Table_PI[[#This Row],[Size]],Table_PI[[#This Row],[Input 1]],Table_PI[[#This Row],[Input 2]],Table_PI[[#This Row],[Input 3]],Table_PI[[#This Row],[Input 4]],'Customer Information'!$AR$12,6,ROW()),\"No Rebate\"),\"No Rebate\"),0)","v":0},{"$f":"IF(Table_PI[[#This Row],[Hide:\nFormula Name]]<>\"\",IFERROR(IF(MeasureCalc(Table_PI[[#This Row],[Hide:\nFormula Name]],Table_PI[[#This Row],[Quantity]],Table_PI[[#This Row],[List 1]],Table_PI[[#This Row],[List 2]],Table_PI[[#This Row],[List 3]],Table_PI[[#This Row],[Size]],Table_PI[[#This Row],[Input 1]],Table_PI[[#This Row],[Input 2]],Table_PI[[#This Row],[Input 3]],Table_PI[[#This Row],[Input 4]],'Customer Information'!$AR$12,1,ROW())>0,MeasureCalc(Table_PI[[#This Row],[Hide:\nFormula Name]],Table_PI[[#This Row],[Quantity]],Table_PI[[#This Row],[List 1]],Table_PI[[#This Row],[List 2]],Table_PI[[#This Row],[List 3]],Table_PI[[#This Row],[Size]],Table_PI[[#This Row],[Input 1]],Table_PI[[#This Row],[Input 2]],Table_PI[[#This Row],[Input 3]],Table_PI[[#This Row],[Input 4]],'Customer Information'!$AR$12,7,ROW()),\"No Rebate\"),\"No Rebate\"),0)","v":0},{"$f":"IF(Table_PI[[#This Row],[Hide:\nFormula Name]]<>\"\",IFERROR(IF(MeasureCalc(Table_PI[[#This Row],[Hide:\nFormula Name]],Table_PI[[#This Row],[Quantity]],Table_PI[[#This Row],[List 1]],Table_PI[[#This Row],[List 2]],Table_PI[[#This Row],[List 3]],Table_PI[[#This Row],[Size]],Table_PI[[#This Row],[Input 1]],Table_PI[[#This Row],[Input 2]],Table_PI[[#This Row],[Input 3]],Table_PI[[#This Row],[Input 4]],'Customer Information'!$AR$12,1,ROW())>0,MeasureCalc(Table_PI[[#This Row],[Hide:\nFormula Name]],Table_PI[[#This Row],[Quantity]],Table_PI[[#This Row],[List 1]],Table_PI[[#This Row],[List 2]],Table_PI[[#This Row],[List 3]],Table_PI[[#This Row],[Size]],Table_PI[[#This Row],[Input 1]],Table_PI[[#This Row],[Input 2]],Table_PI[[#This Row],[Input 3]],Table_PI[[#This Row],[Input 4]],'Customer Information'!$AR$12,8,ROW()),\"No Rebate\"),\"No Rebate\"),0)","v":0},{"$f":"IF(Table_PI[[#This Row],[Hide:\nFormula Name]]<>\"\",IF(AND(Table_PI[[#This Row],[Hide:\nFormula Name]]<>\"\",OR(Table_PI[[#This Row],[Rebate]]>0,Table_PI[[#This Row],[Rebate]]=\"No Rebate\")),TRUE,\"MI: Line Item \" & $A209),\"\")","v":""}]
[{"$f":"IF(Table_PI[[#This Row],[Hide:\nFormula Name]]<>\"\",MAX($A$2:A209)+1,\"\")","v":""},null,null,null,null,null,null,null,null,null,null,null,null,null,null,{"$f":"IFERROR(VLOOKUP(Table_PI[[#This Row],[Measure]],'Equipment Lookups'!$C$3:$D$23,2,FALSE),\"\")","v":""},{"$f":"IF(Table_PI[[#This Row],[Hide:\nFormula Name]]<>\"\",IFERROR(IF(MeasureCalc(Table_PI[[#This Row],[Hide:\nFormula Name]],Table_PI[[#This Row],[Quantity]],Table_PI[[#This Row],[List 1]],Table_PI[[#This Row],[List 2]],Table_PI[[#This Row],[List 3]],Table_PI[[#This Row],[Size]],Table_PI[[#This Row],[Input 1]],Table_PI[[#This Row],[Input 2]],Table_PI[[#This Row],[Input 3]],Table_PI[[#This Row],[Input 4]],'Customer Information'!$AR$12,1,ROW())>0,MeasureCalc(Table_PI[[#This Row],[Hide:\nFormula Name]],Table_PI[[#This Row],[Quantity]],Table_PI[[#This Row],[List 1]],Table_PI[[#This Row],[List 2]],Table_PI[[#This Row],[List 3]],Table_PI[[#This Row],[Size]],Table_PI[[#This Row],[Input 1]],Table_PI[[#This Row],[Input 2]],Table_PI[[#This Row],[Input 3]],Table_PI[[#This Row],[Input 4]],'Customer Information'!$AR$12,1,ROW()),\"No Rebate\"),\"No Rebate\"),0)","v":0},{"$f":"IF(Table_PI[[#This Row],[Hide:\nFormula Name]]<>\"\",IFERROR(IF(MeasureCalc(Table_PI[[#This Row],[Hide:\nFormula Name]],Table_PI[[#This Row],[Quantity]],Table_PI[[#This Row],[List 1]],Table_PI[[#This Row],[List 2]],Table_PI[[#This Row],[List 3]],Table_PI[[#This Row],[Size]],Table_PI[[#This Row],[Input 1]],Table_PI[[#This Row],[Input 2]],Table_PI[[#This Row],[Input 3]],Table_PI[[#This Row],[Input 4]],'Customer Information'!$AR$12,1,ROW())>0,MeasureCalc(Table_PI[[#This Row],[Hide:\nFormula Name]],Table_PI[[#This Row],[Quantity]],Table_PI[[#This Row],[List 1]],Table_PI[[#This Row],[List 2]],Table_PI[[#This Row],[List 3]],Table_PI[[#This Row],[Size]],Table_PI[[#This Row],[Input 1]],Table_PI[[#This Row],[Input 2]],Table_PI[[#This Row],[Input 3]],Table_PI[[#This Row],[Input 4]],'Customer Information'!$AR$12,2,ROW()),\"No Rebate\"),\"No Rebate\"),0)","v":0},{"$f":"IF(Table_PI[[#This Row],[Hide:\nFormula Name]]<>\"\",IFERROR(IF(MeasureCalc(Table_PI[[#This Row],[Hide:\nFormula Name]],Table_PI[[#This Row],[Quantity]],Table_PI[[#This Row],[List 1]],Table_PI[[#This Row],[List 2]],Table_PI[[#This Row],[List 3]],Table_PI[[#This Row],[Size]],Table_PI[[#This Row],[Input 1]],Table_PI[[#This Row],[Input 2]],Table_PI[[#This Row],[Input 3]],Table_PI[[#This Row],[Input 4]],'Customer Information'!$AR$12,1,ROW())>0,MeasureCalc(Table_PI[[#This Row],[Hide:\nFormula Name]],Table_PI[[#This Row],[Quantity]],Table_PI[[#This Row],[List 1]],Table_PI[[#This Row],[List 2]],Table_PI[[#This Row],[List 3]],Table_PI[[#This Row],[Size]],Table_PI[[#This Row],[Input 1]],Table_PI[[#This Row],[Input 2]],Table_PI[[#This Row],[Input 3]],Table_PI[[#This Row],[Input 4]],'Customer Information'!$AR$12,3,ROW()),\"No Rebate\"),\"No Rebate\"),0)","v":0},{"$f":"IF(Table_PI[[#This Row],[Hide:\nFormula Name]]<>\"\",IFERROR(IF(MeasureCalc(Table_PI[[#This Row],[Hide:\nFormula Name]],Table_PI[[#This Row],[Quantity]],Table_PI[[#This Row],[List 1]],Table_PI[[#This Row],[List 2]],Table_PI[[#This Row],[List 3]],Table_PI[[#This Row],[Size]],Table_PI[[#This Row],[Input 1]],Table_PI[[#This Row],[Input 2]],Table_PI[[#This Row],[Input 3]],Table_PI[[#This Row],[Input 4]],'Customer Information'!$AR$12,1,ROW())>0,MeasureCalc(Table_PI[[#This Row],[Hide:\nFormula Name]],Table_PI[[#This Row],[Quantity]],Table_PI[[#This Row],[List 1]],Table_PI[[#This Row],[List 2]],Table_PI[[#This Row],[List 3]],Table_PI[[#This Row],[Size]],Table_PI[[#This Row],[Input 1]],Table_PI[[#This Row],[Input 2]],Table_PI[[#This Row],[Input 3]],Table_PI[[#This Row],[Input 4]],'Customer Information'!$AR$12,4,ROW()),\"No Rebate\"),\"No Rebate\"),0)","v":0},{"$f":"IF(Table_PI[[#This Row],[Hide:\nFormula Name]]<>\"\",IFERROR(IF(MeasureCalc(Table_PI[[#This Row],[Hide:\nFormula Name]],Table_PI[[#This Row],[Quantity]],Table_PI[[#This Row],[List 1]],Table_PI[[#This Row],[List 2]],Table_PI[[#This Row],[List 3]],Table_PI[[#This Row],[Size]],Table_PI[[#This Row],[Input 1]],Table_PI[[#This Row],[Input 2]],Table_PI[[#This Row],[Input 3]],Table_PI[[#This Row],[Input 4]],'Customer Information'!$AR$12,1,ROW())>0,MeasureCalc(Table_PI[[#This Row],[Hide:\nFormula Name]],Table_PI[[#This Row],[Quantity]],Table_PI[[#This Row],[List 1]],Table_PI[[#This Row],[List 2]],Table_PI[[#This Row],[List 3]],Table_PI[[#This Row],[Size]],Table_PI[[#This Row],[Input 1]],Table_PI[[#This Row],[Input 2]],Table_PI[[#This Row],[Input 3]],Table_PI[[#This Row],[Input 4]],'Customer Information'!$AR$12,5,ROW()),\"No Rebate\"),\"No Rebate\"),0)","v":0},{"$f":"IF(Table_PI[[#This Row],[Hide:\nFormula Name]]<>\"\",IFERROR(IF(MeasureCalc(Table_PI[[#This Row],[Hide:\nFormula Name]],Table_PI[[#This Row],[Quantity]],Table_PI[[#This Row],[List 1]],Table_PI[[#This Row],[List 2]],Table_PI[[#This Row],[List 3]],Table_PI[[#This Row],[Size]],Table_PI[[#This Row],[Input 1]],Table_PI[[#This Row],[Input 2]],Table_PI[[#This Row],[Input 3]],Table_PI[[#This Row],[Input 4]],'Customer Information'!$AR$12,1,ROW())>0,MeasureCalc(Table_PI[[#This Row],[Hide:\nFormula Name]],Table_PI[[#This Row],[Quantity]],Table_PI[[#This Row],[List 1]],Table_PI[[#This Row],[List 2]],Table_PI[[#This Row],[List 3]],Table_PI[[#This Row],[Size]],Table_PI[[#This Row],[Input 1]],Table_PI[[#This Row],[Input 2]],Table_PI[[#This Row],[Input 3]],Table_PI[[#This Row],[Input 4]],'Customer Information'!$AR$12,6,ROW()),\"No Rebate\"),\"No Rebate\"),0)","v":0},{"$f":"IF(Table_PI[[#This Row],[Hide:\nFormula Name]]<>\"\",IFERROR(IF(MeasureCalc(Table_PI[[#This Row],[Hide:\nFormula Name]],Table_PI[[#This Row],[Quantity]],Table_PI[[#This Row],[List 1]],Table_PI[[#This Row],[List 2]],Table_PI[[#This Row],[List 3]],Table_PI[[#This Row],[Size]],Table_PI[[#This Row],[Input 1]],Table_PI[[#This Row],[Input 2]],Table_PI[[#This Row],[Input 3]],Table_PI[[#This Row],[Input 4]],'Customer Information'!$AR$12,1,ROW())>0,MeasureCalc(Table_PI[[#This Row],[Hide:\nFormula Name]],Table_PI[[#This Row],[Quantity]],Table_PI[[#This Row],[List 1]],Table_PI[[#This Row],[List 2]],Table_PI[[#This Row],[List 3]],Table_PI[[#This Row],[Size]],Table_PI[[#This Row],[Input 1]],Table_PI[[#This Row],[Input 2]],Table_PI[[#This Row],[Input 3]],Table_PI[[#This Row],[Input 4]],'Customer Information'!$AR$12,7,ROW()),\"No Rebate\"),\"No Rebate\"),0)","v":0},{"$f":"IF(Table_PI[[#This Row],[Hide:\nFormula Name]]<>\"\",IFERROR(IF(MeasureCalc(Table_PI[[#This Row],[Hide:\nFormula Name]],Table_PI[[#This Row],[Quantity]],Table_PI[[#This Row],[List 1]],Table_PI[[#This Row],[List 2]],Table_PI[[#This Row],[List 3]],Table_PI[[#This Row],[Size]],Table_PI[[#This Row],[Input 1]],Table_PI[[#This Row],[Input 2]],Table_PI[[#This Row],[Input 3]],Table_PI[[#This Row],[Input 4]],'Customer Information'!$AR$12,1,ROW())>0,MeasureCalc(Table_PI[[#This Row],[Hide:\nFormula Name]],Table_PI[[#This Row],[Quantity]],Table_PI[[#This Row],[List 1]],Table_PI[[#This Row],[List 2]],Table_PI[[#This Row],[List 3]],Table_PI[[#This Row],[Size]],Table_PI[[#This Row],[Input 1]],Table_PI[[#This Row],[Input 2]],Table_PI[[#This Row],[Input 3]],Table_PI[[#This Row],[Input 4]],'Customer Information'!$AR$12,8,ROW()),\"No Rebate\"),\"No Rebate\"),0)","v":0},{"$f":"IF(Table_PI[[#This Row],[Hide:\nFormula Name]]<>\"\",IF(AND(Table_PI[[#This Row],[Hide:\nFormula Name]]<>\"\",OR(Table_PI[[#This Row],[Rebate]]>0,Table_PI[[#This Row],[Rebate]]=\"No Rebate\")),TRUE,\"MI: Line Item \" & $A210),\"\")","v":""}]
[{"$f":"IF(Table_PI[[#This Row],[Hide:\nFormula Name]]<>\"\",MAX($A$2:A210)+1,\"\")","v":""},null,null,null,null,null,null,null,null,null,null,null,null,null,null,{"$f":"IFERROR(VLOOKUP(Table_PI[[#This Row],[Measure]],'Equipment Lookups'!$C$3:$D$23,2,FALSE),\"\")","v":""},{"$f":"IF(Table_PI[[#This Row],[Hide:\nFormula Name]]<>\"\",IFERROR(IF(MeasureCalc(Table_PI[[#This Row],[Hide:\nFormula Name]],Table_PI[[#This Row],[Quantity]],Table_PI[[#This Row],[List 1]],Table_PI[[#This Row],[List 2]],Table_PI[[#This Row],[List 3]],Table_PI[[#This Row],[Size]],Table_PI[[#This Row],[Input 1]],Table_PI[[#This Row],[Input 2]],Table_PI[[#This Row],[Input 3]],Table_PI[[#This Row],[Input 4]],'Customer Information'!$AR$12,1,ROW())>0,MeasureCalc(Table_PI[[#This Row],[Hide:\nFormula Name]],Table_PI[[#This Row],[Quantity]],Table_PI[[#This Row],[List 1]],Table_PI[[#This Row],[List 2]],Table_PI[[#This Row],[List 3]],Table_PI[[#This Row],[Size]],Table_PI[[#This Row],[Input 1]],Table_PI[[#This Row],[Input 2]],Table_PI[[#This Row],[Input 3]],Table_PI[[#This Row],[Input 4]],'Customer Information'!$AR$12,1,ROW()),\"No Rebate\"),\"No Rebate\"),0)","v":0},{"$f":"IF(Table_PI[[#This Row],[Hide:\nFormula Name]]<>\"\",IFERROR(IF(MeasureCalc(Table_PI[[#This Row],[Hide:\nFormula Name]],Table_PI[[#This Row],[Quantity]],Table_PI[[#This Row],[List 1]],Table_PI[[#This Row],[List 2]],Table_PI[[#This Row],[List 3]],Table_PI[[#This Row],[Size]],Table_PI[[#This Row],[Input 1]],Table_PI[[#This Row],[Input 2]],Table_PI[[#This Row],[Input 3]],Table_PI[[#This Row],[Input 4]],'Customer Information'!$AR$12,1,ROW())>0,MeasureCalc(Table_PI[[#This Row],[Hide:\nFormula Name]],Table_PI[[#This Row],[Quantity]],Table_PI[[#This Row],[List 1]],Table_PI[[#This Row],[List 2]],Table_PI[[#This Row],[List 3]],Table_PI[[#This Row],[Size]],Table_PI[[#This Row],[Input 1]],Table_PI[[#This Row],[Input 2]],Table_PI[[#This Row],[Input 3]],Table_PI[[#This Row],[Input 4]],'Customer Information'!$AR$12,2,ROW()),\"No Rebate\"),\"No Rebate\"),0)","v":0},{"$f":"IF(Table_PI[[#This Row],[Hide:\nFormula Name]]<>\"\",IFERROR(IF(MeasureCalc(Table_PI[[#This Row],[Hide:\nFormula Name]],Table_PI[[#This Row],[Quantity]],Table_PI[[#This Row],[List 1]],Table_PI[[#This Row],[List 2]],Table_PI[[#This Row],[List 3]],Table_PI[[#This Row],[Size]],Table_PI[[#This Row],[Input 1]],Table_PI[[#This Row],[Input 2]],Table_PI[[#This Row],[Input 3]],Table_PI[[#This Row],[Input 4]],'Customer Information'!$AR$12,1,ROW())>0,MeasureCalc(Table_PI[[#This Row],[Hide:\nFormula Name]],Table_PI[[#This Row],[Quantity]],Table_PI[[#This Row],[List 1]],Table_PI[[#This Row],[List 2]],Table_PI[[#This Row],[List 3]],Table_PI[[#This Row],[Size]],Table_PI[[#This Row],[Input 1]],Table_PI[[#This Row],[Input 2]],Table_PI[[#This Row],[Input 3]],Table_PI[[#This Row],[Input 4]],'Customer Information'!$AR$12,3,ROW()),\"No Rebate\"),\"No Rebate\"),0)","v":0},{"$f":"IF(Table_PI[[#This Row],[Hide:\nFormula Name]]<>\"\",IFERROR(IF(MeasureCalc(Table_PI[[#This Row],[Hide:\nFormula Name]],Table_PI[[#This Row],[Quantity]],Table_PI[[#This Row],[List 1]],Table_PI[[#This Row],[List 2]],Table_PI[[#This Row],[List 3]],Table_PI[[#This Row],[Size]],Table_PI[[#This Row],[Input 1]],Table_PI[[#This Row],[Input 2]],Table_PI[[#This Row],[Input 3]],Table_PI[[#This Row],[Input 4]],'Customer Information'!$AR$12,1,ROW())>0,MeasureCalc(Table_PI[[#This Row],[Hide:\nFormula Name]],Table_PI[[#This Row],[Quantity]],Table_PI[[#This Row],[List 1]],Table_PI[[#This Row],[List 2]],Table_PI[[#This Row],[List 3]],Table_PI[[#This Row],[Size]],Table_PI[[#This Row],[Input 1]],Table_PI[[#This Row],[Input 2]],Table_PI[[#This Row],[Input 3]],Table_PI[[#This Row],[Input 4]],'Customer Information'!$AR$12,4,ROW()),\"No Rebate\"),\"No Rebate\"),0)","v":0},{"$f":"IF(Table_PI[[#This Row],[Hide:\nFormula Name]]<>\"\",IFERROR(IF(MeasureCalc(Table_PI[[#This Row],[Hide:\nFormula Name]],Table_PI[[#This Row],[Quantity]],Table_PI[[#This Row],[List 1]],Table_PI[[#This Row],[List 2]],Table_PI[[#This Row],[List 3]],Table_PI[[#This Row],[Size]],Table_PI[[#This Row],[Input 1]],Table_PI[[#This Row],[Input 2]],Table_PI[[#This Row],[Input 3]],Table_PI[[#This Row],[Input 4]],'Customer Information'!$AR$12,1,ROW())>0,MeasureCalc(Table_PI[[#This Row],[Hide:\nFormula Name]],Table_PI[[#This Row],[Quantity]],Table_PI[[#This Row],[List 1]],Table_PI[[#This Row],[List 2]],Table_PI[[#This Row],[List 3]],Table_PI[[#This Row],[Size]],Table_PI[[#This Row],[Input 1]],Table_PI[[#This Row],[Input 2]],Table_PI[[#This Row],[Input 3]],Table_PI[[#This Row],[Input 4]],'Customer Information'!$AR$12,5,ROW()),\"No Rebate\"),\"No Rebate\"),0)","v":0},{"$f":"IF(Table_PI[[#This Row],[Hide:\nFormula Name]]<>\"\",IFERROR(IF(MeasureCalc(Table_PI[[#This Row],[Hide:\nFormula Name]],Table_PI[[#This Row],[Quantity]],Table_PI[[#This Row],[List 1]],Table_PI[[#This Row],[List 2]],Table_PI[[#This Row],[List 3]],Table_PI[[#This Row],[Size]],Table_PI[[#This Row],[Input 1]],Table_PI[[#This Row],[Input 2]],Table_PI[[#This Row],[Input 3]],Table_PI[[#This Row],[Input 4]],'Customer Information'!$AR$12,1,ROW())>0,MeasureCalc(Table_PI[[#This Row],[Hide:\nFormula Name]],Table_PI[[#This Row],[Quantity]],Table_PI[[#This Row],[List 1]],Table_PI[[#This Row],[List 2]],Table_PI[[#This Row],[List 3]],Table_PI[[#This Row],[Size]],Table_PI[[#This Row],[Input 1]],Table_PI[[#This Row],[Input 2]],Table_PI[[#This Row],[Input 3]],Table_PI[[#This Row],[Input 4]],'Customer Information'!$AR$12,6,ROW()),\"No Rebate\"),\"No Rebate\"),0)","v":0},{"$f":"IF(Table_PI[[#This Row],[Hide:\nFormula Name]]<>\"\",IFERROR(IF(MeasureCalc(Table_PI[[#This Row],[Hide:\nFormula Name]],Table_PI[[#This Row],[Quantity]],Table_PI[[#This Row],[List 1]],Table_PI[[#This Row],[List 2]],Table_PI[[#This Row],[List 3]],Table_PI[[#This Row],[Size]],Table_PI[[#This Row],[Input 1]],Table_PI[[#This Row],[Input 2]],Table_PI[[#This Row],[Input 3]],Table_PI[[#This Row],[Input 4]],'Customer Information'!$AR$12,1,ROW())>0,MeasureCalc(Table_PI[[#This Row],[Hide:\nFormula Name]],Table_PI[[#This Row],[Quantity]],Table_PI[[#This Row],[List 1]],Table_PI[[#This Row],[List 2]],Table_PI[[#This Row],[List 3]],Table_PI[[#This Row],[Size]],Table_PI[[#This Row],[Input 1]],Table_PI[[#This Row],[Input 2]],Table_PI[[#This Row],[Input 3]],Table_PI[[#This Row],[Input 4]],'Customer Information'!$AR$12,7,ROW()),\"No Rebate\"),\"No Rebate\"),0)","v":0},{"$f":"IF(Table_PI[[#This Row],[Hide:\nFormula Name]]<>\"\",IFERROR(IF(MeasureCalc(Table_PI[[#This Row],[Hide:\nFormula Name]],Table_PI[[#This Row],[Quantity]],Table_PI[[#This Row],[List 1]],Table_PI[[#This Row],[List 2]],Table_PI[[#This Row],[List 3]],Table_PI[[#This Row],[Size]],Table_PI[[#This Row],[Input 1]],Table_PI[[#This Row],[Input 2]],Table_PI[[#This Row],[Input 3]],Table_PI[[#This Row],[Input 4]],'Customer Information'!$AR$12,1,ROW())>0,MeasureCalc(Table_PI[[#This Row],[Hide:\nFormula Name]],Table_PI[[#This Row],[Quantity]],Table_PI[[#This Row],[List 1]],Table_PI[[#This Row],[List 2]],Table_PI[[#This Row],[List 3]],Table_PI[[#This Row],[Size]],Table_PI[[#This Row],[Input 1]],Table_PI[[#This Row],[Input 2]],Table_PI[[#This Row],[Input 3]],Table_PI[[#This Row],[Input 4]],'Customer Information'!$AR$12,8,ROW()),\"No Rebate\"),\"No Rebate\"),0)","v":0},{"$f":"IF(Table_PI[[#This Row],[Hide:\nFormula Name]]<>\"\",IF(AND(Table_PI[[#This Row],[Hide:\nFormula Name]]<>\"\",OR(Table_PI[[#This Row],[Rebate]]>0,Table_PI[[#This Row],[Rebate]]=\"No Rebate\")),TRUE,\"MI: Line Item \" & $A211),\"\")","v":""}]
[{"$f":"IF(Table_PI[[#This Row],[Hide:\nFormula Name]]<>\"\",MAX($A$2:A211)+1,\"\")","v":""},null,null,null,null,null,null,null,null,null,null,null,null,null,null,{"$f":"IFERROR(VLOOKUP(Table_PI[[#This Row],[Measure]],'Equipment Lookups'!$C$3:$D$23,2,FALSE),\"\")","v":""},{"$f":"IF(Table_PI[[#This Row],[Hide:\nFormula Name]]<>\"\",IFERROR(IF(MeasureCalc(Table_PI[[#This Row],[Hide:\nFormula Name]],Table_PI[[#This Row],[Quantity]],Table_PI[[#This Row],[List 1]],Table_PI[[#This Row],[List 2]],Table_PI[[#This Row],[List 3]],Table_PI[[#This Row],[Size]],Table_PI[[#This Row],[Input 1]],Table_PI[[#This Row],[Input 2]],Table_PI[[#This Row],[Input 3]],Table_PI[[#This Row],[Input 4]],'Customer Information'!$AR$12,1,ROW())>0,MeasureCalc(Table_PI[[#This Row],[Hide:\nFormula Name]],Table_PI[[#This Row],[Quantity]],Table_PI[[#This Row],[List 1]],Table_PI[[#This Row],[List 2]],Table_PI[[#This Row],[List 3]],Table_PI[[#This Row],[Size]],Table_PI[[#This Row],[Input 1]],Table_PI[[#This Row],[Input 2]],Table_PI[[#This Row],[Input 3]],Table_PI[[#This Row],[Input 4]],'Customer Information'!$AR$12,1,ROW()),\"No Rebate\"),\"No Rebate\"),0)","v":0},{"$f":"IF(Table_PI[[#This Row],[Hide:\nFormula Name]]<>\"\",IFERROR(IF(MeasureCalc(Table_PI[[#This Row],[Hide:\nFormula Name]],Table_PI[[#This Row],[Quantity]],Table_PI[[#This Row],[List 1]],Table_PI[[#This Row],[List 2]],Table_PI[[#This Row],[List 3]],Table_PI[[#This Row],[Size]],Table_PI[[#This Row],[Input 1]],Table_PI[[#This Row],[Input 2]],Table_PI[[#This Row],[Input 3]],Table_PI[[#This Row],[Input 4]],'Customer Information'!$AR$12,1,ROW())>0,MeasureCalc(Table_PI[[#This Row],[Hide:\nFormula Name]],Table_PI[[#This Row],[Quantity]],Table_PI[[#This Row],[List 1]],Table_PI[[#This Row],[List 2]],Table_PI[[#This Row],[List 3]],Table_PI[[#This Row],[Size]],Table_PI[[#This Row],[Input 1]],Table_PI[[#This Row],[Input 2]],Table_PI[[#This Row],[Input 3]],Table_PI[[#This Row],[Input 4]],'Customer Information'!$AR$12,2,ROW()),\"No Rebate\"),\"No Rebate\"),0)","v":0},{"$f":"IF(Table_PI[[#This Row],[Hide:\nFormula Name]]<>\"\",IFERROR(IF(MeasureCalc(Table_PI[[#This Row],[Hide:\nFormula Name]],Table_PI[[#This Row],[Quantity]],Table_PI[[#This Row],[List 1]],Table_PI[[#This Row],[List 2]],Table_PI[[#This Row],[List 3]],Table_PI[[#This Row],[Size]],Table_PI[[#This Row],[Input 1]],Table_PI[[#This Row],[Input 2]],Table_PI[[#This Row],[Input 3]],Table_PI[[#This Row],[Input 4]],'Customer Information'!$AR$12,1,ROW())>0,MeasureCalc(Table_PI[[#This Row],[Hide:\nFormula Name]],Table_PI[[#This Row],[Quantity]],Table_PI[[#This Row],[List 1]],Table_PI[[#This Row],[List 2]],Table_PI[[#This Row],[List 3]],Table_PI[[#This Row],[Size]],Table_PI[[#This Row],[Input 1]],Table_PI[[#This Row],[Input 2]],Table_PI[[#This Row],[Input 3]],Table_PI[[#This Row],[Input 4]],'Customer Information'!$AR$12,3,ROW()),\"No Rebate\"),\"No Rebate\"),0)","v":0},{"$f":"IF(Table_PI[[#This Row],[Hide:\nFormula Name]]<>\"\",IFERROR(IF(MeasureCalc(Table_PI[[#This Row],[Hide:\nFormula Name]],Table_PI[[#This Row],[Quantity]],Table_PI[[#This Row],[List 1]],Table_PI[[#This Row],[List 2]],Table_PI[[#This Row],[List 3]],Table_PI[[#This Row],[Size]],Table_PI[[#This Row],[Input 1]],Table_PI[[#This Row],[Input 2]],Table_PI[[#This Row],[Input 3]],Table_PI[[#This Row],[Input 4]],'Customer Information'!$AR$12,1,ROW())>0,MeasureCalc(Table_PI[[#This Row],[Hide:\nFormula Name]],Table_PI[[#This Row],[Quantity]],Table_PI[[#This Row],[List 1]],Table_PI[[#This Row],[List 2]],Table_PI[[#This Row],[List 3]],Table_PI[[#This Row],[Size]],Table_PI[[#This Row],[Input 1]],Table_PI[[#This Row],[Input 2]],Table_PI[[#This Row],[Input 3]],Table_PI[[#This Row],[Input 4]],'Customer Information'!$AR$12,4,ROW()),\"No Rebate\"),\"No Rebate\"),0)","v":0},{"$f":"IF(Table_PI[[#This Row],[Hide:\nFormula Name]]<>\"\",IFERROR(IF(MeasureCalc(Table_PI[[#This Row],[Hide:\nFormula Name]],Table_PI[[#This Row],[Quantity]],Table_PI[[#This Row],[List 1]],Table_PI[[#This Row],[List 2]],Table_PI[[#This Row],[List 3]],Table_PI[[#This Row],[Size]],Table_PI[[#This Row],[Input 1]],Table_PI[[#This Row],[Input 2]],Table_PI[[#This Row],[Input 3]],Table_PI[[#This Row],[Input 4]],'Customer Information'!$AR$12,1,ROW())>0,MeasureCalc(Table_PI[[#This Row],[Hide:\nFormula Name]],Table_PI[[#This Row],[Quantity]],Table_PI[[#This Row],[List 1]],Table_PI[[#This Row],[List 2]],Table_PI[[#This Row],[List 3]],Table_PI[[#This Row],[Size]],Table_PI[[#This Row],[Input 1]],Table_PI[[#This Row],[Input 2]],Table_PI[[#This Row],[Input 3]],Table_PI[[#This Row],[Input 4]],'Customer Information'!$AR$12,5,ROW()),\"No Rebate\"),\"No Rebate\"),0)","v":0},{"$f":"IF(Table_PI[[#This Row],[Hide:\nFormula Name]]<>\"\",IFERROR(IF(MeasureCalc(Table_PI[[#This Row],[Hide:\nFormula Name]],Table_PI[[#This Row],[Quantity]],Table_PI[[#This Row],[List 1]],Table_PI[[#This Row],[List 2]],Table_PI[[#This Row],[List 3]],Table_PI[[#This Row],[Size]],Table_PI[[#This Row],[Input 1]],Table_PI[[#This Row],[Input 2]],Table_PI[[#This Row],[Input 3]],Table_PI[[#This Row],[Input 4]],'Customer Information'!$AR$12,1,ROW())>0,MeasureCalc(Table_PI[[#This Row],[Hide:\nFormula Name]],Table_PI[[#This Row],[Quantity]],Table_PI[[#This Row],[List 1]],Table_PI[[#This Row],[List 2]],Table_PI[[#This Row],[List 3]],Table_PI[[#This Row],[Size]],Table_PI[[#This Row],[Input 1]],Table_PI[[#This Row],[Input 2]],Table_PI[[#This Row],[Input 3]],Table_PI[[#This Row],[Input 4]],'Customer Information'!$AR$12,6,ROW()),\"No Rebate\"),\"No Rebate\"),0)","v":0},{"$f":"IF(Table_PI[[#This Row],[Hide:\nFormula Name]]<>\"\",IFERROR(IF(MeasureCalc(Table_PI[[#This Row],[Hide:\nFormula Name]],Table_PI[[#This Row],[Quantity]],Table_PI[[#This Row],[List 1]],Table_PI[[#This Row],[List 2]],Table_PI[[#This Row],[List 3]],Table_PI[[#This Row],[Size]],Table_PI[[#This Row],[Input 1]],Table_PI[[#This Row],[Input 2]],Table_PI[[#This Row],[Input 3]],Table_PI[[#This Row],[Input 4]],'Customer Information'!$AR$12,1,ROW())>0,MeasureCalc(Table_PI[[#This Row],[Hide:\nFormula Name]],Table_PI[[#This Row],[Quantity]],Table_PI[[#This Row],[List 1]],Table_PI[[#This Row],[List 2]],Table_PI[[#This Row],[List 3]],Table_PI[[#This Row],[Size]],Table_PI[[#This Row],[Input 1]],Table_PI[[#This Row],[Input 2]],Table_PI[[#This Row],[Input 3]],Table_PI[[#This Row],[Input 4]],'Customer Information'!$AR$12,7,ROW()),\"No Rebate\"),\"No Rebate\"),0)","v":0},{"$f":"IF(Table_PI[[#This Row],[Hide:\nFormula Name]]<>\"\",IFERROR(IF(MeasureCalc(Table_PI[[#This Row],[Hide:\nFormula Name]],Table_PI[[#This Row],[Quantity]],Table_PI[[#This Row],[List 1]],Table_PI[[#This Row],[List 2]],Table_PI[[#This Row],[List 3]],Table_PI[[#This Row],[Size]],Table_PI[[#This Row],[Input 1]],Table_PI[[#This Row],[Input 2]],Table_PI[[#This Row],[Input 3]],Table_PI[[#This Row],[Input 4]],'Customer Information'!$AR$12,1,ROW())>0,MeasureCalc(Table_PI[[#This Row],[Hide:\nFormula Name]],Table_PI[[#This Row],[Quantity]],Table_PI[[#This Row],[List 1]],Table_PI[[#This Row],[List 2]],Table_PI[[#This Row],[List 3]],Table_PI[[#This Row],[Size]],Table_PI[[#This Row],[Input 1]],Table_PI[[#This Row],[Input 2]],Table_PI[[#This Row],[Input 3]],Table_PI[[#This Row],[Input 4]],'Customer Information'!$AR$12,8,ROW()),\"No Rebate\"),\"No Rebate\"),0)","v":0},{"$f":"IF(Table_PI[[#This Row],[Hide:\nFormula Name]]<>\"\",IF(AND(Table_PI[[#This Row],[Hide:\nFormula Name]]<>\"\",OR(Table_PI[[#This Row],[Rebate]]>0,Table_PI[[#This Row],[Rebate]]=\"No Rebate\")),TRUE,\"MI: Line Item \" & $A212),\"\")","v":""}]
[{"$f":"IF(Table_PI[[#This Row],[Hide:\nFormula Name]]<>\"\",MAX($A$2:A212)+1,\"\")","v":""},null,null,null,null,null,null,null,null,null,null,null,null,null,null,{"$f":"IFERROR(VLOOKUP(Table_PI[[#This Row],[Measure]],'Equipment Lookups'!$C$3:$D$23,2,FALSE),\"\")","v":""},{"$f":"IF(Table_PI[[#This Row],[Hide:\nFormula Name]]<>\"\",IFERROR(IF(MeasureCalc(Table_PI[[#This Row],[Hide:\nFormula Name]],Table_PI[[#This Row],[Quantity]],Table_PI[[#This Row],[List 1]],Table_PI[[#This Row],[List 2]],Table_PI[[#This Row],[List 3]],Table_PI[[#This Row],[Size]],Table_PI[[#This Row],[Input 1]],Table_PI[[#This Row],[Input 2]],Table_PI[[#This Row],[Input 3]],Table_PI[[#This Row],[Input 4]],'Customer Information'!$AR$12,1,ROW())>0,MeasureCalc(Table_PI[[#This Row],[Hide:\nFormula Name]],Table_PI[[#This Row],[Quantity]],Table_PI[[#This Row],[List 1]],Table_PI[[#This Row],[List 2]],Table_PI[[#This Row],[List 3]],Table_PI[[#This Row],[Size]],Table_PI[[#This Row],[Input 1]],Table_PI[[#This Row],[Input 2]],Table_PI[[#This Row],[Input 3]],Table_PI[[#This Row],[Input 4]],'Customer Information'!$AR$12,1,ROW()),\"No Rebate\"),\"No Rebate\"),0)","v":0},{"$f":"IF(Table_PI[[#This Row],[Hide:\nFormula Name]]<>\"\",IFERROR(IF(MeasureCalc(Table_PI[[#This Row],[Hide:\nFormula Name]],Table_PI[[#This Row],[Quantity]],Table_PI[[#This Row],[List 1]],Table_PI[[#This Row],[List 2]],Table_PI[[#This Row],[List 3]],Table_PI[[#This Row],[Size]],Table_PI[[#This Row],[Input 1]],Table_PI[[#This Row],[Input 2]],Table_PI[[#This Row],[Input 3]],Table_PI[[#This Row],[Input 4]],'Customer Information'!$AR$12,1,ROW())>0,MeasureCalc(Table_PI[[#This Row],[Hide:\nFormula Name]],Table_PI[[#This Row],[Quantity]],Table_PI[[#This Row],[List 1]],Table_PI[[#This Row],[List 2]],Table_PI[[#This Row],[List 3]],Table_PI[[#This Row],[Size]],Table_PI[[#This Row],[Input 1]],Table_PI[[#This Row],[Input 2]],Table_PI[[#This Row],[Input 3]],Table_PI[[#This Row],[Input 4]],'Customer Information'!$AR$12,2,ROW()),\"No Rebate\"),\"No Rebate\"),0)","v":0},{"$f":"IF(Table_PI[[#This Row],[Hide:\nFormula Name]]<>\"\",IFERROR(IF(MeasureCalc(Table_PI[[#This Row],[Hide:\nFormula Name]],Table_PI[[#This Row],[Quantity]],Table_PI[[#This Row],[List 1]],Table_PI[[#This Row],[List 2]],Table_PI[[#This Row],[List 3]],Table_PI[[#This Row],[Size]],Table_PI[[#This Row],[Input 1]],Table_PI[[#This Row],[Input 2]],Table_PI[[#This Row],[Input 3]],Table_PI[[#This Row],[Input 4]],'Customer Information'!$AR$12,1,ROW())>0,MeasureCalc(Table_PI[[#This Row],[Hide:\nFormula Name]],Table_PI[[#This Row],[Quantity]],Table_PI[[#This Row],[List 1]],Table_PI[[#This Row],[List 2]],Table_PI[[#This Row],[List 3]],Table_PI[[#This Row],[Size]],Table_PI[[#This Row],[Input 1]],Table_PI[[#This Row],[Input 2]],Table_PI[[#This Row],[Input 3]],Table_PI[[#This Row],[Input 4]],'Customer Information'!$AR$12,3,ROW()),\"No Rebate\"),\"No Rebate\"),0)","v":0},{"$f":"IF(Table_PI[[#This Row],[Hide:\nFormula Name]]<>\"\",IFERROR(IF(MeasureCalc(Table_PI[[#This Row],[Hide:\nFormula Name]],Table_PI[[#This Row],[Quantity]],Table_PI[[#This Row],[List 1]],Table_PI[[#This Row],[List 2]],Table_PI[[#This Row],[List 3]],Table_PI[[#This Row],[Size]],Table_PI[[#This Row],[Input 1]],Table_PI[[#This Row],[Input 2]],Table_PI[[#This Row],[Input 3]],Table_PI[[#This Row],[Input 4]],'Customer Information'!$AR$12,1,ROW())>0,MeasureCalc(Table_PI[[#This Row],[Hide:\nFormula Name]],Table_PI[[#This Row],[Quantity]],Table_PI[[#This Row],[List 1]],Table_PI[[#This Row],[List 2]],Table_PI[[#This Row],[List 3]],Table_PI[[#This Row],[Size]],Table_PI[[#This Row],[Input 1]],Table_PI[[#This Row],[Input 2]],Table_PI[[#This Row],[Input 3]],Table_PI[[#This Row],[Input 4]],'Customer Information'!$AR$12,4,ROW()),\"No Rebate\"),\"No Rebate\"),0)","v":0},{"$f":"IF(Table_PI[[#This Row],[Hide:\nFormula Name]]<>\"\",IFERROR(IF(MeasureCalc(Table_PI[[#This Row],[Hide:\nFormula Name]],Table_PI[[#This Row],[Quantity]],Table_PI[[#This Row],[List 1]],Table_PI[[#This Row],[List 2]],Table_PI[[#This Row],[List 3]],Table_PI[[#This Row],[Size]],Table_PI[[#This Row],[Input 1]],Table_PI[[#This Row],[Input 2]],Table_PI[[#This Row],[Input 3]],Table_PI[[#This Row],[Input 4]],'Customer Information'!$AR$12,1,ROW())>0,MeasureCalc(Table_PI[[#This Row],[Hide:\nFormula Name]],Table_PI[[#This Row],[Quantity]],Table_PI[[#This Row],[List 1]],Table_PI[[#This Row],[List 2]],Table_PI[[#This Row],[List 3]],Table_PI[[#This Row],[Size]],Table_PI[[#This Row],[Input 1]],Table_PI[[#This Row],[Input 2]],Table_PI[[#This Row],[Input 3]],Table_PI[[#This Row],[Input 4]],'Customer Information'!$AR$12,5,ROW()),\"No Rebate\"),\"No Rebate\"),0)","v":0},{"$f":"IF(Table_PI[[#This Row],[Hide:\nFormula Name]]<>\"\",IFERROR(IF(MeasureCalc(Table_PI[[#This Row],[Hide:\nFormula Name]],Table_PI[[#This Row],[Quantity]],Table_PI[[#This Row],[List 1]],Table_PI[[#This Row],[List 2]],Table_PI[[#This Row],[List 3]],Table_PI[[#This Row],[Size]],Table_PI[[#This Row],[Input 1]],Table_PI[[#This Row],[Input 2]],Table_PI[[#This Row],[Input 3]],Table_PI[[#This Row],[Input 4]],'Customer Information'!$AR$12,1,ROW())>0,MeasureCalc(Table_PI[[#This Row],[Hide:\nFormula Name]],Table_PI[[#This Row],[Quantity]],Table_PI[[#This Row],[List 1]],Table_PI[[#This Row],[List 2]],Table_PI[[#This Row],[List 3]],Table_PI[[#This Row],[Size]],Table_PI[[#This Row],[Input 1]],Table_PI[[#This Row],[Input 2]],Table_PI[[#This Row],[Input 3]],Table_PI[[#This Row],[Input 4]],'Customer Information'!$AR$12,6,ROW()),\"No Rebate\"),\"No Rebate\"),0)","v":0},{"$f":"IF(Table_PI[[#This Row],[Hide:\nFormula Name]]<>\"\",IFERROR(IF(MeasureCalc(Table_PI[[#This Row],[Hide:\nFormula Name]],Table_PI[[#This Row],[Quantity]],Table_PI[[#This Row],[List 1]],Table_PI[[#This Row],[List 2]],Table_PI[[#This Row],[List 3]],Table_PI[[#This Row],[Size]],Table_PI[[#This Row],[Input 1]],Table_PI[[#This Row],[Input 2]],Table_PI[[#This Row],[Input 3]],Table_PI[[#This Row],[Input 4]],'Customer Information'!$AR$12,1,ROW())>0,MeasureCalc(Table_PI[[#This Row],[Hide:\nFormula Name]],Table_PI[[#This Row],[Quantity]],Table_PI[[#This Row],[List 1]],Table_PI[[#This Row],[List 2]],Table_PI[[#This Row],[List 3]],Table_PI[[#This Row],[Size]],Table_PI[[#This Row],[Input 1]],Table_PI[[#This Row],[Input 2]],Table_PI[[#This Row],[Input 3]],Table_PI[[#This Row],[Input 4]],'Customer Information'!$AR$12,7,ROW()),\"No Rebate\"),\"No Rebate\"),0)","v":0},{"$f":"IF(Table_PI[[#This Row],[Hide:\nFormula Name]]<>\"\",IFERROR(IF(MeasureCalc(Table_PI[[#This Row],[Hide:\nFormula Name]],Table_PI[[#This Row],[Quantity]],Table_PI[[#This Row],[List 1]],Table_PI[[#This Row],[List 2]],Table_PI[[#This Row],[List 3]],Table_PI[[#This Row],[Size]],Table_PI[[#This Row],[Input 1]],Table_PI[[#This Row],[Input 2]],Table_PI[[#This Row],[Input 3]],Table_PI[[#This Row],[Input 4]],'Customer Information'!$AR$12,1,ROW())>0,MeasureCalc(Table_PI[[#This Row],[Hide:\nFormula Name]],Table_PI[[#This Row],[Quantity]],Table_PI[[#This Row],[List 1]],Table_PI[[#This Row],[List 2]],Table_PI[[#This Row],[List 3]],Table_PI[[#This Row],[Size]],Table_PI[[#This Row],[Input 1]],Table_PI[[#This Row],[Input 2]],Table_PI[[#This Row],[Input 3]],Table_PI[[#This Row],[Input 4]],'Customer Information'!$AR$12,8,ROW()),\"No Rebate\"),\"No Rebate\"),0)","v":0},{"$f":"IF(Table_PI[[#This Row],[Hide:\nFormula Name]]<>\"\",IF(AND(Table_PI[[#This Row],[Hide:\nFormula Name]]<>\"\",OR(Table_PI[[#This Row],[Rebate]]>0,Table_PI[[#This Row],[Rebate]]=\"No Rebate\")),TRUE,\"MI: Line Item \" & $A213),\"\")","v":""}]
[{"$f":"IF(Table_PI[[#This Row],[Hide:\nFormula Name]]<>\"\",MAX($A$2:A213)+1,\"\")","v":""},null,null,null,null,null,null,null,null,null,null,null,null,null,null,{"$f":"IFERROR(VLOOKUP(Table_PI[[#This Row],[Measure]],'Equipment Lookups'!$C$3:$D$23,2,FALSE),\"\")","v":""},{"$f":"IF(Table_PI[[#This Row],[Hide:\nFormula Name]]<>\"\",IFERROR(IF(MeasureCalc(Table_PI[[#This Row],[Hide:\nFormula Name]],Table_PI[[#This Row],[Quantity]],Table_PI[[#This Row],[List 1]],Table_PI[[#This Row],[List 2]],Table_PI[[#This Row],[List 3]],Table_PI[[#This Row],[Size]],Table_PI[[#This Row],[Input 1]],Table_PI[[#This Row],[Input 2]],Table_PI[[#This Row],[Input 3]],Table_PI[[#This Row],[Input 4]],'Customer Information'!$AR$12,1,ROW())>0,MeasureCalc(Table_PI[[#This Row],[Hide:\nFormula Name]],Table_PI[[#This Row],[Quantity]],Table_PI[[#This Row],[List 1]],Table_PI[[#This Row],[List 2]],Table_PI[[#This Row],[List 3]],Table_PI[[#This Row],[Size]],Table_PI[[#This Row],[Input 1]],Table_PI[[#This Row],[Input 2]],Table_PI[[#This Row],[Input 3]],Table_PI[[#This Row],[Input 4]],'Customer Information'!$AR$12,1,ROW()),\"No Rebate\"),\"No Rebate\"),0)","v":0},{"$f":"IF(Table_PI[[#This Row],[Hide:\nFormula Name]]<>\"\",IFERROR(IF(MeasureCalc(Table_PI[[#This Row],[Hide:\nFormula Name]],Table_PI[[#This Row],[Quantity]],Table_PI[[#This Row],[List 1]],Table_PI[[#This Row],[List 2]],Table_PI[[#This Row],[List 3]],Table_PI[[#This Row],[Size]],Table_PI[[#This Row],[Input 1]],Table_PI[[#This Row],[Input 2]],Table_PI[[#This Row],[Input 3]],Table_PI[[#This Row],[Input 4]],'Customer Information'!$AR$12,1,ROW())>0,MeasureCalc(Table_PI[[#This Row],[Hide:\nFormula Name]],Table_PI[[#This Row],[Quantity]],Table_PI[[#This Row],[List 1]],Table_PI[[#This Row],[List 2]],Table_PI[[#This Row],[List 3]],Table_PI[[#This Row],[Size]],Table_PI[[#This Row],[Input 1]],Table_PI[[#This Row],[Input 2]],Table_PI[[#This Row],[Input 3]],Table_PI[[#This Row],[Input 4]],'Customer Information'!$AR$12,2,ROW()),\"No Rebate\"),\"No Rebate\"),0)","v":0},{"$f":"IF(Table_PI[[#This Row],[Hide:\nFormula Name]]<>\"\",IFERROR(IF(MeasureCalc(Table_PI[[#This Row],[Hide:\nFormula Name]],Table_PI[[#This Row],[Quantity]],Table_PI[[#This Row],[List 1]],Table_PI[[#This Row],[List 2]],Table_PI[[#This Row],[List 3]],Table_PI[[#This Row],[Size]],Table_PI[[#This Row],[Input 1]],Table_PI[[#This Row],[Input 2]],Table_PI[[#This Row],[Input 3]],Table_PI[[#This Row],[Input 4]],'Customer Information'!$AR$12,1,ROW())>0,MeasureCalc(Table_PI[[#This Row],[Hide:\nFormula Name]],Table_PI[[#This Row],[Quantity]],Table_PI[[#This Row],[List 1]],Table_PI[[#This Row],[List 2]],Table_PI[[#This Row],[List 3]],Table_PI[[#This Row],[Size]],Table_PI[[#This Row],[Input 1]],Table_PI[[#This Row],[Input 2]],Table_PI[[#This Row],[Input 3]],Table_PI[[#This Row],[Input 4]],'Customer Information'!$AR$12,3,ROW()),\"No Rebate\"),\"No Rebate\"),0)","v":0},{"$f":"IF(Table_PI[[#This Row],[Hide:\nFormula Name]]<>\"\",IFERROR(IF(MeasureCalc(Table_PI[[#This Row],[Hide:\nFormula Name]],Table_PI[[#This Row],[Quantity]],Table_PI[[#This Row],[List 1]],Table_PI[[#This Row],[List 2]],Table_PI[[#This Row],[List 3]],Table_PI[[#This Row],[Size]],Table_PI[[#This Row],[Input 1]],Table_PI[[#This Row],[Input 2]],Table_PI[[#This Row],[Input 3]],Table_PI[[#This Row],[Input 4]],'Customer Information'!$AR$12,1,ROW())>0,MeasureCalc(Table_PI[[#This Row],[Hide:\nFormula Name]],Table_PI[[#This Row],[Quantity]],Table_PI[[#This Row],[List 1]],Table_PI[[#This Row],[List 2]],Table_PI[[#This Row],[List 3]],Table_PI[[#This Row],[Size]],Table_PI[[#This Row],[Input 1]],Table_PI[[#This Row],[Input 2]],Table_PI[[#This Row],[Input 3]],Table_PI[[#This Row],[Input 4]],'Customer Information'!$AR$12,4,ROW()),\"No Rebate\"),\"No Rebate\"),0)","v":0},{"$f":"IF(Table_PI[[#This Row],[Hide:\nFormula Name]]<>\"\",IFERROR(IF(MeasureCalc(Table_PI[[#This Row],[Hide:\nFormula Name]],Table_PI[[#This Row],[Quantity]],Table_PI[[#This Row],[List 1]],Table_PI[[#This Row],[List 2]],Table_PI[[#This Row],[List 3]],Table_PI[[#This Row],[Size]],Table_PI[[#This Row],[Input 1]],Table_PI[[#This Row],[Input 2]],Table_PI[[#This Row],[Input 3]],Table_PI[[#This Row],[Input 4]],'Customer Information'!$AR$12,1,ROW())>0,MeasureCalc(Table_PI[[#This Row],[Hide:\nFormula Name]],Table_PI[[#This Row],[Quantity]],Table_PI[[#This Row],[List 1]],Table_PI[[#This Row],[List 2]],Table_PI[[#This Row],[List 3]],Table_PI[[#This Row],[Size]],Table_PI[[#This Row],[Input 1]],Table_PI[[#This Row],[Input 2]],Table_PI[[#This Row],[Input 3]],Table_PI[[#This Row],[Input 4]],'Customer Information'!$AR$12,5,ROW()),\"No Rebate\"),\"No Rebate\"),0)","v":0},{"$f":"IF(Table_PI[[#This Row],[Hide:\nFormula Name]]<>\"\",IFERROR(IF(MeasureCalc(Table_PI[[#This Row],[Hide:\nFormula Name]],Table_PI[[#This Row],[Quantity]],Table_PI[[#This Row],[List 1]],Table_PI[[#This Row],[List 2]],Table_PI[[#This Row],[List 3]],Table_PI[[#This Row],[Size]],Table_PI[[#This Row],[Input 1]],Table_PI[[#This Row],[Input 2]],Table_PI[[#This Row],[Input 3]],Table_PI[[#This Row],[Input 4]],'Customer Information'!$AR$12,1,ROW())>0,MeasureCalc(Table_PI[[#This Row],[Hide:\nFormula Name]],Table_PI[[#This Row],[Quantity]],Table_PI[[#This Row],[List 1]],Table_PI[[#This Row],[List 2]],Table_PI[[#This Row],[List 3]],Table_PI[[#This Row],[Size]],Table_PI[[#This Row],[Input 1]],Table_PI[[#This Row],[Input 2]],Table_PI[[#This Row],[Input 3]],Table_PI[[#This Row],[Input 4]],'Customer Information'!$AR$12,6,ROW()),\"No Rebate\"),\"No Rebate\"),0)","v":0},{"$f":"IF(Table_PI[[#This Row],[Hide:\nFormula Name]]<>\"\",IFERROR(IF(MeasureCalc(Table_PI[[#This Row],[Hide:\nFormula Name]],Table_PI[[#This Row],[Quantity]],Table_PI[[#This Row],[List 1]],Table_PI[[#This Row],[List 2]],Table_PI[[#This Row],[List 3]],Table_PI[[#This Row],[Size]],Table_PI[[#This Row],[Input 1]],Table_PI[[#This Row],[Input 2]],Table_PI[[#This Row],[Input 3]],Table_PI[[#This Row],[Input 4]],'Customer Information'!$AR$12,1,ROW())>0,MeasureCalc(Table_PI[[#This Row],[Hide:\nFormula Name]],Table_PI[[#This Row],[Quantity]],Table_PI[[#This Row],[List 1]],Table_PI[[#This Row],[List 2]],Table_PI[[#This Row],[List 3]],Table_PI[[#This Row],[Size]],Table_PI[[#This Row],[Input 1]],Table_PI[[#This Row],[Input 2]],Table_PI[[#This Row],[Input 3]],Table_PI[[#This Row],[Input 4]],'Customer Information'!$AR$12,7,ROW()),\"No Rebate\"),\"No Rebate\"),0)","v":0},{"$f":"IF(Table_PI[[#This Row],[Hide:\nFormula Name]]<>\"\",IFERROR(IF(MeasureCalc(Table_PI[[#This Row],[Hide:\nFormula Name]],Table_PI[[#This Row],[Quantity]],Table_PI[[#This Row],[List 1]],Table_PI[[#This Row],[List 2]],Table_PI[[#This Row],[List 3]],Table_PI[[#This Row],[Size]],Table_PI[[#This Row],[Input 1]],Table_PI[[#This Row],[Input 2]],Table_PI[[#This Row],[Input 3]],Table_PI[[#This Row],[Input 4]],'Customer Information'!$AR$12,1,ROW())>0,MeasureCalc(Table_PI[[#This Row],[Hide:\nFormula Name]],Table_PI[[#This Row],[Quantity]],Table_PI[[#This Row],[List 1]],Table_PI[[#This Row],[List 2]],Table_PI[[#This Row],[List 3]],Table_PI[[#This Row],[Size]],Table_PI[[#This Row],[Input 1]],Table_PI[[#This Row],[Input 2]],Table_PI[[#This Row],[Input 3]],Table_PI[[#This Row],[Input 4]],'Customer Information'!$AR$12,8,ROW()),\"No Rebate\"),\"No Rebate\"),0)","v":0},{"$f":"IF(Table_PI[[#This Row],[Hide:\nFormula Name]]<>\"\",IF(AND(Table_PI[[#This Row],[Hide:\nFormula Name]]<>\"\",OR(Table_PI[[#This Row],[Rebate]]>0,Table_PI[[#This Row],[Rebate]]=\"No Rebate\")),TRUE,\"MI: Line Item \" & $A214),\"\")","v":""}]
[{"$f":"IF(Table_PI[[#This Row],[Hide:\nFormula Name]]<>\"\",MAX($A$2:A214)+1,\"\")","v":""},null,null,null,null,null,null,null,null,null,null,null,null,null,null,{"$f":"IFERROR(VLOOKUP(Table_PI[[#This Row],[Measure]],'Equipment Lookups'!$C$3:$D$23,2,FALSE),\"\")","v":""},{"$f":"IF(Table_PI[[#This Row],[Hide:\nFormula Name]]<>\"\",IFERROR(IF(MeasureCalc(Table_PI[[#This Row],[Hide:\nFormula Name]],Table_PI[[#This Row],[Quantity]],Table_PI[[#This Row],[List 1]],Table_PI[[#This Row],[List 2]],Table_PI[[#This Row],[List 3]],Table_PI[[#This Row],[Size]],Table_PI[[#This Row],[Input 1]],Table_PI[[#This Row],[Input 2]],Table_PI[[#This Row],[Input 3]],Table_PI[[#This Row],[Input 4]],'Customer Information'!$AR$12,1,ROW())>0,MeasureCalc(Table_PI[[#This Row],[Hide:\nFormula Name]],Table_PI[[#This Row],[Quantity]],Table_PI[[#This Row],[List 1]],Table_PI[[#This Row],[List 2]],Table_PI[[#This Row],[List 3]],Table_PI[[#This Row],[Size]],Table_PI[[#This Row],[Input 1]],Table_PI[[#This Row],[Input 2]],Table_PI[[#This Row],[Input 3]],Table_PI[[#This Row],[Input 4]],'Customer Information'!$AR$12,1,ROW()),\"No Rebate\"),\"No Rebate\"),0)","v":0},{"$f":"IF(Table_PI[[#This Row],[Hide:\nFormula Name]]<>\"\",IFERROR(IF(MeasureCalc(Table_PI[[#This Row],[Hide:\nFormula Name]],Table_PI[[#This Row],[Quantity]],Table_PI[[#This Row],[List 1]],Table_PI[[#This Row],[List 2]],Table_PI[[#This Row],[List 3]],Table_PI[[#This Row],[Size]],Table_PI[[#This Row],[Input 1]],Table_PI[[#This Row],[Input 2]],Table_PI[[#This Row],[Input 3]],Table_PI[[#This Row],[Input 4]],'Customer Information'!$AR$12,1,ROW())>0,MeasureCalc(Table_PI[[#This Row],[Hide:\nFormula Name]],Table_PI[[#This Row],[Quantity]],Table_PI[[#This Row],[List 1]],Table_PI[[#This Row],[List 2]],Table_PI[[#This Row],[List 3]],Table_PI[[#This Row],[Size]],Table_PI[[#This Row],[Input 1]],Table_PI[[#This Row],[Input 2]],Table_PI[[#This Row],[Input 3]],Table_PI[[#This Row],[Input 4]],'Customer Information'!$AR$12,2,ROW()),\"No Rebate\"),\"No Rebate\"),0)","v":0},{"$f":"IF(Table_PI[[#This Row],[Hide:\nFormula Name]]<>\"\",IFERROR(IF(MeasureCalc(Table_PI[[#This Row],[Hide:\nFormula Name]],Table_PI[[#This Row],[Quantity]],Table_PI[[#This Row],[List 1]],Table_PI[[#This Row],[List 2]],Table_PI[[#This Row],[List 3]],Table_PI[[#This Row],[Size]],Table_PI[[#This Row],[Input 1]],Table_PI[[#This Row],[Input 2]],Table_PI[[#This Row],[Input 3]],Table_PI[[#This Row],[Input 4]],'Customer Information'!$AR$12,1,ROW())>0,MeasureCalc(Table_PI[[#This Row],[Hide:\nFormula Name]],Table_PI[[#This Row],[Quantity]],Table_PI[[#This Row],[List 1]],Table_PI[[#This Row],[List 2]],Table_PI[[#This Row],[List 3]],Table_PI[[#This Row],[Size]],Table_PI[[#This Row],[Input 1]],Table_PI[[#This Row],[Input 2]],Table_PI[[#This Row],[Input 3]],Table_PI[[#This Row],[Input 4]],'Customer Information'!$AR$12,3,ROW()),\"No Rebate\"),\"No Rebate\"),0)","v":0},{"$f":"IF(Table_PI[[#This Row],[Hide:\nFormula Name]]<>\"\",IFERROR(IF(MeasureCalc(Table_PI[[#This Row],[Hide:\nFormula Name]],Table_PI[[#This Row],[Quantity]],Table_PI[[#This Row],[List 1]],Table_PI[[#This Row],[List 2]],Table_PI[[#This Row],[List 3]],Table_PI[[#This Row],[Size]],Table_PI[[#This Row],[Input 1]],Table_PI[[#This Row],[Input 2]],Table_PI[[#This Row],[Input 3]],Table_PI[[#This Row],[Input 4]],'Customer Information'!$AR$12,1,ROW())>0,MeasureCalc(Table_PI[[#This Row],[Hide:\nFormula Name]],Table_PI[[#This Row],[Quantity]],Table_PI[[#This Row],[List 1]],Table_PI[[#This Row],[List 2]],Table_PI[[#This Row],[List 3]],Table_PI[[#This Row],[Size]],Table_PI[[#This Row],[Input 1]],Table_PI[[#This Row],[Input 2]],Table_PI[[#This Row],[Input 3]],Table_PI[[#This Row],[Input 4]],'Customer Information'!$AR$12,4,ROW()),\"No Rebate\"),\"No Rebate\"),0)","v":0},{"$f":"IF(Table_PI[[#This Row],[Hide:\nFormula Name]]<>\"\",IFERROR(IF(MeasureCalc(Table_PI[[#This Row],[Hide:\nFormula Name]],Table_PI[[#This Row],[Quantity]],Table_PI[[#This Row],[List 1]],Table_PI[[#This Row],[List 2]],Table_PI[[#This Row],[List 3]],Table_PI[[#This Row],[Size]],Table_PI[[#This Row],[Input 1]],Table_PI[[#This Row],[Input 2]],Table_PI[[#This Row],[Input 3]],Table_PI[[#This Row],[Input 4]],'Customer Information'!$AR$12,1,ROW())>0,MeasureCalc(Table_PI[[#This Row],[Hide:\nFormula Name]],Table_PI[[#This Row],[Quantity]],Table_PI[[#This Row],[List 1]],Table_PI[[#This Row],[List 2]],Table_PI[[#This Row],[List 3]],Table_PI[[#This Row],[Size]],Table_PI[[#This Row],[Input 1]],Table_PI[[#This Row],[Input 2]],Table_PI[[#This Row],[Input 3]],Table_PI[[#This Row],[Input 4]],'Customer Information'!$AR$12,5,ROW()),\"No Rebate\"),\"No Rebate\"),0)","v":0},{"$f":"IF(Table_PI[[#This Row],[Hide:\nFormula Name]]<>\"\",IFERROR(IF(MeasureCalc(Table_PI[[#This Row],[Hide:\nFormula Name]],Table_PI[[#This Row],[Quantity]],Table_PI[[#This Row],[List 1]],Table_PI[[#This Row],[List 2]],Table_PI[[#This Row],[List 3]],Table_PI[[#This Row],[Size]],Table_PI[[#This Row],[Input 1]],Table_PI[[#This Row],[Input 2]],Table_PI[[#This Row],[Input 3]],Table_PI[[#This Row],[Input 4]],'Customer Information'!$AR$12,1,ROW())>0,MeasureCalc(Table_PI[[#This Row],[Hide:\nFormula Name]],Table_PI[[#This Row],[Quantity]],Table_PI[[#This Row],[List 1]],Table_PI[[#This Row],[List 2]],Table_PI[[#This Row],[List 3]],Table_PI[[#This Row],[Size]],Table_PI[[#This Row],[Input 1]],Table_PI[[#This Row],[Input 2]],Table_PI[[#This Row],[Input 3]],Table_PI[[#This Row],[Input 4]],'Customer Information'!$AR$12,6,ROW()),\"No Rebate\"),\"No Rebate\"),0)","v":0},{"$f":"IF(Table_PI[[#This Row],[Hide:\nFormula Name]]<>\"\",IFERROR(IF(MeasureCalc(Table_PI[[#This Row],[Hide:\nFormula Name]],Table_PI[[#This Row],[Quantity]],Table_PI[[#This Row],[List 1]],Table_PI[[#This Row],[List 2]],Table_PI[[#This Row],[List 3]],Table_PI[[#This Row],[Size]],Table_PI[[#This Row],[Input 1]],Table_PI[[#This Row],[Input 2]],Table_PI[[#This Row],[Input 3]],Table_PI[[#This Row],[Input 4]],'Customer Information'!$AR$12,1,ROW())>0,MeasureCalc(Table_PI[[#This Row],[Hide:\nFormula Name]],Table_PI[[#This Row],[Quantity]],Table_PI[[#This Row],[List 1]],Table_PI[[#This Row],[List 2]],Table_PI[[#This Row],[List 3]],Table_PI[[#This Row],[Size]],Table_PI[[#This Row],[Input 1]],Table_PI[[#This Row],[Input 2]],Table_PI[[#This Row],[Input 3]],Table_PI[[#This Row],[Input 4]],'Customer Information'!$AR$12,7,ROW()),\"No Rebate\"),\"No Rebate\"),0)","v":0},{"$f":"IF(Table_PI[[#This Row],[Hide:\nFormula Name]]<>\"\",IFERROR(IF(MeasureCalc(Table_PI[[#This Row],[Hide:\nFormula Name]],Table_PI[[#This Row],[Quantity]],Table_PI[[#This Row],[List 1]],Table_PI[[#This Row],[List 2]],Table_PI[[#This Row],[List 3]],Table_PI[[#This Row],[Size]],Table_PI[[#This Row],[Input 1]],Table_PI[[#This Row],[Input 2]],Table_PI[[#This Row],[Input 3]],Table_PI[[#This Row],[Input 4]],'Customer Information'!$AR$12,1,ROW())>0,MeasureCalc(Table_PI[[#This Row],[Hide:\nFormula Name]],Table_PI[[#This Row],[Quantity]],Table_PI[[#This Row],[List 1]],Table_PI[[#This Row],[List 2]],Table_PI[[#This Row],[List 3]],Table_PI[[#This Row],[Size]],Table_PI[[#This Row],[Input 1]],Table_PI[[#This Row],[Input 2]],Table_PI[[#This Row],[Input 3]],Table_PI[[#This Row],[Input 4]],'Customer Information'!$AR$12,8,ROW()),\"No Rebate\"),\"No Rebate\"),0)","v":0},{"$f":"IF(Table_PI[[#This Row],[Hide:\nFormula Name]]<>\"\",IF(AND(Table_PI[[#This Row],[Hide:\nFormula Name]]<>\"\",OR(Table_PI[[#This Row],[Rebate]]>0,Table_PI[[#This Row],[Rebate]]=\"No Rebate\")),TRUE,\"MI: Line Item \" & $A215),\"\")","v":""}]
[{"$f":"IF(Table_PI[[#This Row],[Hide:\nFormula Name]]<>\"\",MAX($A$2:A215)+1,\"\")","v":""},null,null,null,null,null,null,null,null,null,null,null,null,null,null,{"$f":"IFERROR(VLOOKUP(Table_PI[[#This Row],[Measure]],'Equipment Lookups'!$C$3:$D$23,2,FALSE),\"\")","v":""},{"$f":"IF(Table_PI[[#This Row],[Hide:\nFormula Name]]<>\"\",IFERROR(IF(MeasureCalc(Table_PI[[#This Row],[Hide:\nFormula Name]],Table_PI[[#This Row],[Quantity]],Table_PI[[#This Row],[List 1]],Table_PI[[#This Row],[List 2]],Table_PI[[#This Row],[List 3]],Table_PI[[#This Row],[Size]],Table_PI[[#This Row],[Input 1]],Table_PI[[#This Row],[Input 2]],Table_PI[[#This Row],[Input 3]],Table_PI[[#This Row],[Input 4]],'Customer Information'!$AR$12,1,ROW())>0,MeasureCalc(Table_PI[[#This Row],[Hide:\nFormula Name]],Table_PI[[#This Row],[Quantity]],Table_PI[[#This Row],[List 1]],Table_PI[[#This Row],[List 2]],Table_PI[[#This Row],[List 3]],Table_PI[[#This Row],[Size]],Table_PI[[#This Row],[Input 1]],Table_PI[[#This Row],[Input 2]],Table_PI[[#This Row],[Input 3]],Table_PI[[#This Row],[Input 4]],'Customer Information'!$AR$12,1,ROW()),\"No Rebate\"),\"No Rebate\"),0)","v":0},{"$f":"IF(Table_PI[[#This Row],[Hide:\nFormula Name]]<>\"\",IFERROR(IF(MeasureCalc(Table_PI[[#This Row],[Hide:\nFormula Name]],Table_PI[[#This Row],[Quantity]],Table_PI[[#This Row],[List 1]],Table_PI[[#This Row],[List 2]],Table_PI[[#This Row],[List 3]],Table_PI[[#This Row],[Size]],Table_PI[[#This Row],[Input 1]],Table_PI[[#This Row],[Input 2]],Table_PI[[#This Row],[Input 3]],Table_PI[[#This Row],[Input 4]],'Customer Information'!$AR$12,1,ROW())>0,MeasureCalc(Table_PI[[#This Row],[Hide:\nFormula Name]],Table_PI[[#This Row],[Quantity]],Table_PI[[#This Row],[List 1]],Table_PI[[#This Row],[List 2]],Table_PI[[#This Row],[List 3]],Table_PI[[#This Row],[Size]],Table_PI[[#This Row],[Input 1]],Table_PI[[#This Row],[Input 2]],Table_PI[[#This Row],[Input 3]],Table_PI[[#This Row],[Input 4]],'Customer Information'!$AR$12,2,ROW()),\"No Rebate\"),\"No Rebate\"),0)","v":0},{"$f":"IF(Table_PI[[#This Row],[Hide:\nFormula Name]]<>\"\",IFERROR(IF(MeasureCalc(Table_PI[[#This Row],[Hide:\nFormula Name]],Table_PI[[#This Row],[Quantity]],Table_PI[[#This Row],[List 1]],Table_PI[[#This Row],[List 2]],Table_PI[[#This Row],[List 3]],Table_PI[[#This Row],[Size]],Table_PI[[#This Row],[Input 1]],Table_PI[[#This Row],[Input 2]],Table_PI[[#This Row],[Input 3]],Table_PI[[#This Row],[Input 4]],'Customer Information'!$AR$12,1,ROW())>0,MeasureCalc(Table_PI[[#This Row],[Hide:\nFormula Name]],Table_PI[[#This Row],[Quantity]],Table_PI[[#This Row],[List 1]],Table_PI[[#This Row],[List 2]],Table_PI[[#This Row],[List 3]],Table_PI[[#This Row],[Size]],Table_PI[[#This Row],[Input 1]],Table_PI[[#This Row],[Input 2]],Table_PI[[#This Row],[Input 3]],Table_PI[[#This Row],[Input 4]],'Customer Information'!$AR$12,3,ROW()),\"No Rebate\"),\"No Rebate\"),0)","v":0},{"$f":"IF(Table_PI[[#This Row],[Hide:\nFormula Name]]<>\"\",IFERROR(IF(MeasureCalc(Table_PI[[#This Row],[Hide:\nFormula Name]],Table_PI[[#This Row],[Quantity]],Table_PI[[#This Row],[List 1]],Table_PI[[#This Row],[List 2]],Table_PI[[#This Row],[List 3]],Table_PI[[#This Row],[Size]],Table_PI[[#This Row],[Input 1]],Table_PI[[#This Row],[Input 2]],Table_PI[[#This Row],[Input 3]],Table_PI[[#This Row],[Input 4]],'Customer Information'!$AR$12,1,ROW())>0,MeasureCalc(Table_PI[[#This Row],[Hide:\nFormula Name]],Table_PI[[#This Row],[Quantity]],Table_PI[[#This Row],[List 1]],Table_PI[[#This Row],[List 2]],Table_PI[[#This Row],[List 3]],Table_PI[[#This Row],[Size]],Table_PI[[#This Row],[Input 1]],Table_PI[[#This Row],[Input 2]],Table_PI[[#This Row],[Input 3]],Table_PI[[#This Row],[Input 4]],'Customer Information'!$AR$12,4,ROW()),\"No Rebate\"),\"No Rebate\"),0)","v":0},{"$f":"IF(Table_PI[[#This Row],[Hide:\nFormula Name]]<>\"\",IFERROR(IF(MeasureCalc(Table_PI[[#This Row],[Hide:\nFormula Name]],Table_PI[[#This Row],[Quantity]],Table_PI[[#This Row],[List 1]],Table_PI[[#This Row],[List 2]],Table_PI[[#This Row],[List 3]],Table_PI[[#This Row],[Size]],Table_PI[[#This Row],[Input 1]],Table_PI[[#This Row],[Input 2]],Table_PI[[#This Row],[Input 3]],Table_PI[[#This Row],[Input 4]],'Customer Information'!$AR$12,1,ROW())>0,MeasureCalc(Table_PI[[#This Row],[Hide:\nFormula Name]],Table_PI[[#This Row],[Quantity]],Table_PI[[#This Row],[List 1]],Table_PI[[#This Row],[List 2]],Table_PI[[#This Row],[List 3]],Table_PI[[#This Row],[Size]],Table_PI[[#This Row],[Input 1]],Table_PI[[#This Row],[Input 2]],Table_PI[[#This Row],[Input 3]],Table_PI[[#This Row],[Input 4]],'Customer Information'!$AR$12,5,ROW()),\"No Rebate\"),\"No Rebate\"),0)","v":0},{"$f":"IF(Table_PI[[#This Row],[Hide:\nFormula Name]]<>\"\",IFERROR(IF(MeasureCalc(Table_PI[[#This Row],[Hide:\nFormula Name]],Table_PI[[#This Row],[Quantity]],Table_PI[[#This Row],[List 1]],Table_PI[[#This Row],[List 2]],Table_PI[[#This Row],[List 3]],Table_PI[[#This Row],[Size]],Table_PI[[#This Row],[Input 1]],Table_PI[[#This Row],[Input 2]],Table_PI[[#This Row],[Input 3]],Table_PI[[#This Row],[Input 4]],'Customer Information'!$AR$12,1,ROW())>0,MeasureCalc(Table_PI[[#This Row],[Hide:\nFormula Name]],Table_PI[[#This Row],[Quantity]],Table_PI[[#This Row],[List 1]],Table_PI[[#This Row],[List 2]],Table_PI[[#This Row],[List 3]],Table_PI[[#This Row],[Size]],Table_PI[[#This Row],[Input 1]],Table_PI[[#This Row],[Input 2]],Table_PI[[#This Row],[Input 3]],Table_PI[[#This Row],[Input 4]],'Customer Information'!$AR$12,6,ROW()),\"No Rebate\"),\"No Rebate\"),0)","v":0},{"$f":"IF(Table_PI[[#This Row],[Hide:\nFormula Name]]<>\"\",IFERROR(IF(MeasureCalc(Table_PI[[#This Row],[Hide:\nFormula Name]],Table_PI[[#This Row],[Quantity]],Table_PI[[#This Row],[List 1]],Table_PI[[#This Row],[List 2]],Table_PI[[#This Row],[List 3]],Table_PI[[#This Row],[Size]],Table_PI[[#This Row],[Input 1]],Table_PI[[#This Row],[Input 2]],Table_PI[[#This Row],[Input 3]],Table_PI[[#This Row],[Input 4]],'Customer Information'!$AR$12,1,ROW())>0,MeasureCalc(Table_PI[[#This Row],[Hide:\nFormula Name]],Table_PI[[#This Row],[Quantity]],Table_PI[[#This Row],[List 1]],Table_PI[[#This Row],[List 2]],Table_PI[[#This Row],[List 3]],Table_PI[[#This Row],[Size]],Table_PI[[#This Row],[Input 1]],Table_PI[[#This Row],[Input 2]],Table_PI[[#This Row],[Input 3]],Table_PI[[#This Row],[Input 4]],'Customer Information'!$AR$12,7,ROW()),\"No Rebate\"),\"No Rebate\"),0)","v":0},{"$f":"IF(Table_PI[[#This Row],[Hide:\nFormula Name]]<>\"\",IFERROR(IF(MeasureCalc(Table_PI[[#This Row],[Hide:\nFormula Name]],Table_PI[[#This Row],[Quantity]],Table_PI[[#This Row],[List 1]],Table_PI[[#This Row],[List 2]],Table_PI[[#This Row],[List 3]],Table_PI[[#This Row],[Size]],Table_PI[[#This Row],[Input 1]],Table_PI[[#This Row],[Input 2]],Table_PI[[#This Row],[Input 3]],Table_PI[[#This Row],[Input 4]],'Customer Information'!$AR$12,1,ROW())>0,MeasureCalc(Table_PI[[#This Row],[Hide:\nFormula Name]],Table_PI[[#This Row],[Quantity]],Table_PI[[#This Row],[List 1]],Table_PI[[#This Row],[List 2]],Table_PI[[#This Row],[List 3]],Table_PI[[#This Row],[Size]],Table_PI[[#This Row],[Input 1]],Table_PI[[#This Row],[Input 2]],Table_PI[[#This Row],[Input 3]],Table_PI[[#This Row],[Input 4]],'Customer Information'!$AR$12,8,ROW()),\"No Rebate\"),\"No Rebate\"),0)","v":0},{"$f":"IF(Table_PI[[#This Row],[Hide:\nFormula Name]]<>\"\",IF(AND(Table_PI[[#This Row],[Hide:\nFormula Name]]<>\"\",OR(Table_PI[[#This Row],[Rebate]]>0,Table_PI[[#This Row],[Rebate]]=\"No Rebate\")),TRUE,\"MI: Line Item \" & $A216),\"\")","v":""}]
[{"$f":"IF(Table_PI[[#This Row],[Hide:\nFormula Name]]<>\"\",MAX($A$2:A216)+1,\"\")","v":""},null,null,null,null,null,null,null,null,null,null,null,null,null,null,{"$f":"IFERROR(VLOOKUP(Table_PI[[#This Row],[Measure]],'Equipment Lookups'!$C$3:$D$23,2,FALSE),\"\")","v":""},{"$f":"IF(Table_PI[[#This Row],[Hide:\nFormula Name]]<>\"\",IFERROR(IF(MeasureCalc(Table_PI[[#This Row],[Hide:\nFormula Name]],Table_PI[[#This Row],[Quantity]],Table_PI[[#This Row],[List 1]],Table_PI[[#This Row],[List 2]],Table_PI[[#This Row],[List 3]],Table_PI[[#This Row],[Size]],Table_PI[[#This Row],[Input 1]],Table_PI[[#This Row],[Input 2]],Table_PI[[#This Row],[Input 3]],Table_PI[[#This Row],[Input 4]],'Customer Information'!$AR$12,1,ROW())>0,MeasureCalc(Table_PI[[#This Row],[Hide:\nFormula Name]],Table_PI[[#This Row],[Quantity]],Table_PI[[#This Row],[List 1]],Table_PI[[#This Row],[List 2]],Table_PI[[#This Row],[List 3]],Table_PI[[#This Row],[Size]],Table_PI[[#This Row],[Input 1]],Table_PI[[#This Row],[Input 2]],Table_PI[[#This Row],[Input 3]],Table_PI[[#This Row],[Input 4]],'Customer Information'!$AR$12,1,ROW()),\"No Rebate\"),\"No Rebate\"),0)","v":0},{"$f":"IF(Table_PI[[#This Row],[Hide:\nFormula Name]]<>\"\",IFERROR(IF(MeasureCalc(Table_PI[[#This Row],[Hide:\nFormula Name]],Table_PI[[#This Row],[Quantity]],Table_PI[[#This Row],[List 1]],Table_PI[[#This Row],[List 2]],Table_PI[[#This Row],[List 3]],Table_PI[[#This Row],[Size]],Table_PI[[#This Row],[Input 1]],Table_PI[[#This Row],[Input 2]],Table_PI[[#This Row],[Input 3]],Table_PI[[#This Row],[Input 4]],'Customer Information'!$AR$12,1,ROW())>0,MeasureCalc(Table_PI[[#This Row],[Hide:\nFormula Name]],Table_PI[[#This Row],[Quantity]],Table_PI[[#This Row],[List 1]],Table_PI[[#This Row],[List 2]],Table_PI[[#This Row],[List 3]],Table_PI[[#This Row],[Size]],Table_PI[[#This Row],[Input 1]],Table_PI[[#This Row],[Input 2]],Table_PI[[#This Row],[Input 3]],Table_PI[[#This Row],[Input 4]],'Customer Information'!$AR$12,2,ROW()),\"No Rebate\"),\"No Rebate\"),0)","v":0},{"$f":"IF(Table_PI[[#This Row],[Hide:\nFormula Name]]<>\"\",IFERROR(IF(MeasureCalc(Table_PI[[#This Row],[Hide:\nFormula Name]],Table_PI[[#This Row],[Quantity]],Table_PI[[#This Row],[List 1]],Table_PI[[#This Row],[List 2]],Table_PI[[#This Row],[List 3]],Table_PI[[#This Row],[Size]],Table_PI[[#This Row],[Input 1]],Table_PI[[#This Row],[Input 2]],Table_PI[[#This Row],[Input 3]],Table_PI[[#This Row],[Input 4]],'Customer Information'!$AR$12,1,ROW())>0,MeasureCalc(Table_PI[[#This Row],[Hide:\nFormula Name]],Table_PI[[#This Row],[Quantity]],Table_PI[[#This Row],[List 1]],Table_PI[[#This Row],[List 2]],Table_PI[[#This Row],[List 3]],Table_PI[[#This Row],[Size]],Table_PI[[#This Row],[Input 1]],Table_PI[[#This Row],[Input 2]],Table_PI[[#This Row],[Input 3]],Table_PI[[#This Row],[Input 4]],'Customer Information'!$AR$12,3,ROW()),\"No Rebate\"),\"No Rebate\"),0)","v":0},{"$f":"IF(Table_PI[[#This Row],[Hide:\nFormula Name]]<>\"\",IFERROR(IF(MeasureCalc(Table_PI[[#This Row],[Hide:\nFormula Name]],Table_PI[[#This Row],[Quantity]],Table_PI[[#This Row],[List 1]],Table_PI[[#This Row],[List 2]],Table_PI[[#This Row],[List 3]],Table_PI[[#This Row],[Size]],Table_PI[[#This Row],[Input 1]],Table_PI[[#This Row],[Input 2]],Table_PI[[#This Row],[Input 3]],Table_PI[[#This Row],[Input 4]],'Customer Information'!$AR$12,1,ROW())>0,MeasureCalc(Table_PI[[#This Row],[Hide:\nFormula Name]],Table_PI[[#This Row],[Quantity]],Table_PI[[#This Row],[List 1]],Table_PI[[#This Row],[List 2]],Table_PI[[#This Row],[List 3]],Table_PI[[#This Row],[Size]],Table_PI[[#This Row],[Input 1]],Table_PI[[#This Row],[Input 2]],Table_PI[[#This Row],[Input 3]],Table_PI[[#This Row],[Input 4]],'Customer Information'!$AR$12,4,ROW()),\"No Rebate\"),\"No Rebate\"),0)","v":0},{"$f":"IF(Table_PI[[#This Row],[Hide:\nFormula Name]]<>\"\",IFERROR(IF(MeasureCalc(Table_PI[[#This Row],[Hide:\nFormula Name]],Table_PI[[#This Row],[Quantity]],Table_PI[[#This Row],[List 1]],Table_PI[[#This Row],[List 2]],Table_PI[[#This Row],[List 3]],Table_PI[[#This Row],[Size]],Table_PI[[#This Row],[Input 1]],Table_PI[[#This Row],[Input 2]],Table_PI[[#This Row],[Input 3]],Table_PI[[#This Row],[Input 4]],'Customer Information'!$AR$12,1,ROW())>0,MeasureCalc(Table_PI[[#This Row],[Hide:\nFormula Name]],Table_PI[[#This Row],[Quantity]],Table_PI[[#This Row],[List 1]],Table_PI[[#This Row],[List 2]],Table_PI[[#This Row],[List 3]],Table_PI[[#This Row],[Size]],Table_PI[[#This Row],[Input 1]],Table_PI[[#This Row],[Input 2]],Table_PI[[#This Row],[Input 3]],Table_PI[[#This Row],[Input 4]],'Customer Information'!$AR$12,5,ROW()),\"No Rebate\"),\"No Rebate\"),0)","v":0},{"$f":"IF(Table_PI[[#This Row],[Hide:\nFormula Name]]<>\"\",IFERROR(IF(MeasureCalc(Table_PI[[#This Row],[Hide:\nFormula Name]],Table_PI[[#This Row],[Quantity]],Table_PI[[#This Row],[List 1]],Table_PI[[#This Row],[List 2]],Table_PI[[#This Row],[List 3]],Table_PI[[#This Row],[Size]],Table_PI[[#This Row],[Input 1]],Table_PI[[#This Row],[Input 2]],Table_PI[[#This Row],[Input 3]],Table_PI[[#This Row],[Input 4]],'Customer Information'!$AR$12,1,ROW())>0,MeasureCalc(Table_PI[[#This Row],[Hide:\nFormula Name]],Table_PI[[#This Row],[Quantity]],Table_PI[[#This Row],[List 1]],Table_PI[[#This Row],[List 2]],Table_PI[[#This Row],[List 3]],Table_PI[[#This Row],[Size]],Table_PI[[#This Row],[Input 1]],Table_PI[[#This Row],[Input 2]],Table_PI[[#This Row],[Input 3]],Table_PI[[#This Row],[Input 4]],'Customer Information'!$AR$12,6,ROW()),\"No Rebate\"),\"No Rebate\"),0)","v":0},{"$f":"IF(Table_PI[[#This Row],[Hide:\nFormula Name]]<>\"\",IFERROR(IF(MeasureCalc(Table_PI[[#This Row],[Hide:\nFormula Name]],Table_PI[[#This Row],[Quantity]],Table_PI[[#This Row],[List 1]],Table_PI[[#This Row],[List 2]],Table_PI[[#This Row],[List 3]],Table_PI[[#This Row],[Size]],Table_PI[[#This Row],[Input 1]],Table_PI[[#This Row],[Input 2]],Table_PI[[#This Row],[Input 3]],Table_PI[[#This Row],[Input 4]],'Customer Information'!$AR$12,1,ROW())>0,MeasureCalc(Table_PI[[#This Row],[Hide:\nFormula Name]],Table_PI[[#This Row],[Quantity]],Table_PI[[#This Row],[List 1]],Table_PI[[#This Row],[List 2]],Table_PI[[#This Row],[List 3]],Table_PI[[#This Row],[Size]],Table_PI[[#This Row],[Input 1]],Table_PI[[#This Row],[Input 2]],Table_PI[[#This Row],[Input 3]],Table_PI[[#This Row],[Input 4]],'Customer Information'!$AR$12,7,ROW()),\"No Rebate\"),\"No Rebate\"),0)","v":0},{"$f":"IF(Table_PI[[#This Row],[Hide:\nFormula Name]]<>\"\",IFERROR(IF(MeasureCalc(Table_PI[[#This Row],[Hide:\nFormula Name]],Table_PI[[#This Row],[Quantity]],Table_PI[[#This Row],[List 1]],Table_PI[[#This Row],[List 2]],Table_PI[[#This Row],[List 3]],Table_PI[[#This Row],[Size]],Table_PI[[#This Row],[Input 1]],Table_PI[[#This Row],[Input 2]],Table_PI[[#This Row],[Input 3]],Table_PI[[#This Row],[Input 4]],'Customer Information'!$AR$12,1,ROW())>0,MeasureCalc(Table_PI[[#This Row],[Hide:\nFormula Name]],Table_PI[[#This Row],[Quantity]],Table_PI[[#This Row],[List 1]],Table_PI[[#This Row],[List 2]],Table_PI[[#This Row],[List 3]],Table_PI[[#This Row],[Size]],Table_PI[[#This Row],[Input 1]],Table_PI[[#This Row],[Input 2]],Table_PI[[#This Row],[Input 3]],Table_PI[[#This Row],[Input 4]],'Customer Information'!$AR$12,8,ROW()),\"No Rebate\"),\"No Rebate\"),0)","v":0},{"$f":"IF(Table_PI[[#This Row],[Hide:\nFormula Name]]<>\"\",IF(AND(Table_PI[[#This Row],[Hide:\nFormula Name]]<>\"\",OR(Table_PI[[#This Row],[Rebate]]>0,Table_PI[[#This Row],[Rebate]]=\"No Rebate\")),TRUE,\"MI: Line Item \" & $A217),\"\")","v":""}]
[{"$f":"IF(Table_PI[[#This Row],[Hide:\nFormula Name]]<>\"\",MAX($A$2:A217)+1,\"\")","v":""},null,null,null,null,null,null,null,null,null,null,null,null,null,null,{"$f":"IFERROR(VLOOKUP(Table_PI[[#This Row],[Measure]],'Equipment Lookups'!$C$3:$D$23,2,FALSE),\"\")","v":""},{"$f":"IF(Table_PI[[#This Row],[Hide:\nFormula Name]]<>\"\",IFERROR(IF(MeasureCalc(Table_PI[[#This Row],[Hide:\nFormula Name]],Table_PI[[#This Row],[Quantity]],Table_PI[[#This Row],[List 1]],Table_PI[[#This Row],[List 2]],Table_PI[[#This Row],[List 3]],Table_PI[[#This Row],[Size]],Table_PI[[#This Row],[Input 1]],Table_PI[[#This Row],[Input 2]],Table_PI[[#This Row],[Input 3]],Table_PI[[#This Row],[Input 4]],'Customer Information'!$AR$12,1,ROW())>0,MeasureCalc(Table_PI[[#This Row],[Hide:\nFormula Name]],Table_PI[[#This Row],[Quantity]],Table_PI[[#This Row],[List 1]],Table_PI[[#This Row],[List 2]],Table_PI[[#This Row],[List 3]],Table_PI[[#This Row],[Size]],Table_PI[[#This Row],[Input 1]],Table_PI[[#This Row],[Input 2]],Table_PI[[#This Row],[Input 3]],Table_PI[[#This Row],[Input 4]],'Customer Information'!$AR$12,1,ROW()),\"No Rebate\"),\"No Rebate\"),0)","v":0},{"$f":"IF(Table_PI[[#This Row],[Hide:\nFormula Name]]<>\"\",IFERROR(IF(MeasureCalc(Table_PI[[#This Row],[Hide:\nFormula Name]],Table_PI[[#This Row],[Quantity]],Table_PI[[#This Row],[List 1]],Table_PI[[#This Row],[List 2]],Table_PI[[#This Row],[List 3]],Table_PI[[#This Row],[Size]],Table_PI[[#This Row],[Input 1]],Table_PI[[#This Row],[Input 2]],Table_PI[[#This Row],[Input 3]],Table_PI[[#This Row],[Input 4]],'Customer Information'!$AR$12,1,ROW())>0,MeasureCalc(Table_PI[[#This Row],[Hide:\nFormula Name]],Table_PI[[#This Row],[Quantity]],Table_PI[[#This Row],[List 1]],Table_PI[[#This Row],[List 2]],Table_PI[[#This Row],[List 3]],Table_PI[[#This Row],[Size]],Table_PI[[#This Row],[Input 1]],Table_PI[[#This Row],[Input 2]],Table_PI[[#This Row],[Input 3]],Table_PI[[#This Row],[Input 4]],'Customer Information'!$AR$12,2,ROW()),\"No Rebate\"),\"No Rebate\"),0)","v":0},{"$f":"IF(Table_PI[[#This Row],[Hide:\nFormula Name]]<>\"\",IFERROR(IF(MeasureCalc(Table_PI[[#This Row],[Hide:\nFormula Name]],Table_PI[[#This Row],[Quantity]],Table_PI[[#This Row],[List 1]],Table_PI[[#This Row],[List 2]],Table_PI[[#This Row],[List 3]],Table_PI[[#This Row],[Size]],Table_PI[[#This Row],[Input 1]],Table_PI[[#This Row],[Input 2]],Table_PI[[#This Row],[Input 3]],Table_PI[[#This Row],[Input 4]],'Customer Information'!$AR$12,1,ROW())>0,MeasureCalc(Table_PI[[#This Row],[Hide:\nFormula Name]],Table_PI[[#This Row],[Quantity]],Table_PI[[#This Row],[List 1]],Table_PI[[#This Row],[List 2]],Table_PI[[#This Row],[List 3]],Table_PI[[#This Row],[Size]],Table_PI[[#This Row],[Input 1]],Table_PI[[#This Row],[Input 2]],Table_PI[[#This Row],[Input 3]],Table_PI[[#This Row],[Input 4]],'Customer Information'!$AR$12,3,ROW()),\"No Rebate\"),\"No Rebate\"),0)","v":0},{"$f":"IF(Table_PI[[#This Row],[Hide:\nFormula Name]]<>\"\",IFERROR(IF(MeasureCalc(Table_PI[[#This Row],[Hide:\nFormula Name]],Table_PI[[#This Row],[Quantity]],Table_PI[[#This Row],[List 1]],Table_PI[[#This Row],[List 2]],Table_PI[[#This Row],[List 3]],Table_PI[[#This Row],[Size]],Table_PI[[#This Row],[Input 1]],Table_PI[[#This Row],[Input 2]],Table_PI[[#This Row],[Input 3]],Table_PI[[#This Row],[Input 4]],'Customer Information'!$AR$12,1,ROW())>0,MeasureCalc(Table_PI[[#This Row],[Hide:\nFormula Name]],Table_PI[[#This Row],[Quantity]],Table_PI[[#This Row],[List 1]],Table_PI[[#This Row],[List 2]],Table_PI[[#This Row],[List 3]],Table_PI[[#This Row],[Size]],Table_PI[[#This Row],[Input 1]],Table_PI[[#This Row],[Input 2]],Table_PI[[#This Row],[Input 3]],Table_PI[[#This Row],[Input 4]],'Customer Information'!$AR$12,4,ROW()),\"No Rebate\"),\"No Rebate\"),0)","v":0},{"$f":"IF(Table_PI[[#This Row],[Hide:\nFormula Name]]<>\"\",IFERROR(IF(MeasureCalc(Table_PI[[#This Row],[Hide:\nFormula Name]],Table_PI[[#This Row],[Quantity]],Table_PI[[#This Row],[List 1]],Table_PI[[#This Row],[List 2]],Table_PI[[#This Row],[List 3]],Table_PI[[#This Row],[Size]],Table_PI[[#This Row],[Input 1]],Table_PI[[#This Row],[Input 2]],Table_PI[[#This Row],[Input 3]],Table_PI[[#This Row],[Input 4]],'Customer Information'!$AR$12,1,ROW())>0,MeasureCalc(Table_PI[[#This Row],[Hide:\nFormula Name]],Table_PI[[#This Row],[Quantity]],Table_PI[[#This Row],[List 1]],Table_PI[[#This Row],[List 2]],Table_PI[[#This Row],[List 3]],Table_PI[[#This Row],[Size]],Table_PI[[#This Row],[Input 1]],Table_PI[[#This Row],[Input 2]],Table_PI[[#This Row],[Input 3]],Table_PI[[#This Row],[Input 4]],'Customer Information'!$AR$12,5,ROW()),\"No Rebate\"),\"No Rebate\"),0)","v":0},{"$f":"IF(Table_PI[[#This Row],[Hide:\nFormula Name]]<>\"\",IFERROR(IF(MeasureCalc(Table_PI[[#This Row],[Hide:\nFormula Name]],Table_PI[[#This Row],[Quantity]],Table_PI[[#This Row],[List 1]],Table_PI[[#This Row],[List 2]],Table_PI[[#This Row],[List 3]],Table_PI[[#This Row],[Size]],Table_PI[[#This Row],[Input 1]],Table_PI[[#This Row],[Input 2]],Table_PI[[#This Row],[Input 3]],Table_PI[[#This Row],[Input 4]],'Customer Information'!$AR$12,1,ROW())>0,MeasureCalc(Table_PI[[#This Row],[Hide:\nFormula Name]],Table_PI[[#This Row],[Quantity]],Table_PI[[#This Row],[List 1]],Table_PI[[#This Row],[List 2]],Table_PI[[#This Row],[List 3]],Table_PI[[#This Row],[Size]],Table_PI[[#This Row],[Input 1]],Table_PI[[#This Row],[Input 2]],Table_PI[[#This Row],[Input 3]],Table_PI[[#This Row],[Input 4]],'Customer Information'!$AR$12,6,ROW()),\"No Rebate\"),\"No Rebate\"),0)","v":0},{"$f":"IF(Table_PI[[#This Row],[Hide:\nFormula Name]]<>\"\",IFERROR(IF(MeasureCalc(Table_PI[[#This Row],[Hide:\nFormula Name]],Table_PI[[#This Row],[Quantity]],Table_PI[[#This Row],[List 1]],Table_PI[[#This Row],[List 2]],Table_PI[[#This Row],[List 3]],Table_PI[[#This Row],[Size]],Table_PI[[#This Row],[Input 1]],Table_PI[[#This Row],[Input 2]],Table_PI[[#This Row],[Input 3]],Table_PI[[#This Row],[Input 4]],'Customer Information'!$AR$12,1,ROW())>0,MeasureCalc(Table_PI[[#This Row],[Hide:\nFormula Name]],Table_PI[[#This Row],[Quantity]],Table_PI[[#This Row],[List 1]],Table_PI[[#This Row],[List 2]],Table_PI[[#This Row],[List 3]],Table_PI[[#This Row],[Size]],Table_PI[[#This Row],[Input 1]],Table_PI[[#This Row],[Input 2]],Table_PI[[#This Row],[Input 3]],Table_PI[[#This Row],[Input 4]],'Customer Information'!$AR$12,7,ROW()),\"No Rebate\"),\"No Rebate\"),0)","v":0},{"$f":"IF(Table_PI[[#This Row],[Hide:\nFormula Name]]<>\"\",IFERROR(IF(MeasureCalc(Table_PI[[#This Row],[Hide:\nFormula Name]],Table_PI[[#This Row],[Quantity]],Table_PI[[#This Row],[List 1]],Table_PI[[#This Row],[List 2]],Table_PI[[#This Row],[List 3]],Table_PI[[#This Row],[Size]],Table_PI[[#This Row],[Input 1]],Table_PI[[#This Row],[Input 2]],Table_PI[[#This Row],[Input 3]],Table_PI[[#This Row],[Input 4]],'Customer Information'!$AR$12,1,ROW())>0,MeasureCalc(Table_PI[[#This Row],[Hide:\nFormula Name]],Table_PI[[#This Row],[Quantity]],Table_PI[[#This Row],[List 1]],Table_PI[[#This Row],[List 2]],Table_PI[[#This Row],[List 3]],Table_PI[[#This Row],[Size]],Table_PI[[#This Row],[Input 1]],Table_PI[[#This Row],[Input 2]],Table_PI[[#This Row],[Input 3]],Table_PI[[#This Row],[Input 4]],'Customer Information'!$AR$12,8,ROW()),\"No Rebate\"),\"No Rebate\"),0)","v":0},{"$f":"IF(Table_PI[[#This Row],[Hide:\nFormula Name]]<>\"\",IF(AND(Table_PI[[#This Row],[Hide:\nFormula Name]]<>\"\",OR(Table_PI[[#This Row],[Rebate]]>0,Table_PI[[#This Row],[Rebate]]=\"No Rebate\")),TRUE,\"MI: Line Item \" & $A218),\"\")","v":""}]
[{"$f":"IF(Table_PI[[#This Row],[Hide:\nFormula Name]]<>\"\",MAX($A$2:A218)+1,\"\")","v":""},null,null,null,null,null,null,null,null,null,null,null,null,null,null,{"$f":"IFERROR(VLOOKUP(Table_PI[[#This Row],[Measure]],'Equipment Lookups'!$C$3:$D$23,2,FALSE),\"\")","v":""},{"$f":"IF(Table_PI[[#This Row],[Hide:\nFormula Name]]<>\"\",IFERROR(IF(MeasureCalc(Table_PI[[#This Row],[Hide:\nFormula Name]],Table_PI[[#This Row],[Quantity]],Table_PI[[#This Row],[List 1]],Table_PI[[#This Row],[List 2]],Table_PI[[#This Row],[List 3]],Table_PI[[#This Row],[Size]],Table_PI[[#This Row],[Input 1]],Table_PI[[#This Row],[Input 2]],Table_PI[[#This Row],[Input 3]],Table_PI[[#This Row],[Input 4]],'Customer Information'!$AR$12,1,ROW())>0,MeasureCalc(Table_PI[[#This Row],[Hide:\nFormula Name]],Table_PI[[#This Row],[Quantity]],Table_PI[[#This Row],[List 1]],Table_PI[[#This Row],[List 2]],Table_PI[[#This Row],[List 3]],Table_PI[[#This Row],[Size]],Table_PI[[#This Row],[Input 1]],Table_PI[[#This Row],[Input 2]],Table_PI[[#This Row],[Input 3]],Table_PI[[#This Row],[Input 4]],'Customer Information'!$AR$12,1,ROW()),\"No Rebate\"),\"No Rebate\"),0)","v":0},{"$f":"IF(Table_PI[[#This Row],[Hide:\nFormula Name]]<>\"\",IFERROR(IF(MeasureCalc(Table_PI[[#This Row],[Hide:\nFormula Name]],Table_PI[[#This Row],[Quantity]],Table_PI[[#This Row],[List 1]],Table_PI[[#This Row],[List 2]],Table_PI[[#This Row],[List 3]],Table_PI[[#This Row],[Size]],Table_PI[[#This Row],[Input 1]],Table_PI[[#This Row],[Input 2]],Table_PI[[#This Row],[Input 3]],Table_PI[[#This Row],[Input 4]],'Customer Information'!$AR$12,1,ROW())>0,MeasureCalc(Table_PI[[#This Row],[Hide:\nFormula Name]],Table_PI[[#This Row],[Quantity]],Table_PI[[#This Row],[List 1]],Table_PI[[#This Row],[List 2]],Table_PI[[#This Row],[List 3]],Table_PI[[#This Row],[Size]],Table_PI[[#This Row],[Input 1]],Table_PI[[#This Row],[Input 2]],Table_PI[[#This Row],[Input 3]],Table_PI[[#This Row],[Input 4]],'Customer Information'!$AR$12,2,ROW()),\"No Rebate\"),\"No Rebate\"),0)","v":0},{"$f":"IF(Table_PI[[#This Row],[Hide:\nFormula Name]]<>\"\",IFERROR(IF(MeasureCalc(Table_PI[[#This Row],[Hide:\nFormula Name]],Table_PI[[#This Row],[Quantity]],Table_PI[[#This Row],[List 1]],Table_PI[[#This Row],[List 2]],Table_PI[[#This Row],[List 3]],Table_PI[[#This Row],[Size]],Table_PI[[#This Row],[Input 1]],Table_PI[[#This Row],[Input 2]],Table_PI[[#This Row],[Input 3]],Table_PI[[#This Row],[Input 4]],'Customer Information'!$AR$12,1,ROW())>0,MeasureCalc(Table_PI[[#This Row],[Hide:\nFormula Name]],Table_PI[[#This Row],[Quantity]],Table_PI[[#This Row],[List 1]],Table_PI[[#This Row],[List 2]],Table_PI[[#This Row],[List 3]],Table_PI[[#This Row],[Size]],Table_PI[[#This Row],[Input 1]],Table_PI[[#This Row],[Input 2]],Table_PI[[#This Row],[Input 3]],Table_PI[[#This Row],[Input 4]],'Customer Information'!$AR$12,3,ROW()),\"No Rebate\"),\"No Rebate\"),0)","v":0},{"$f":"IF(Table_PI[[#This Row],[Hide:\nFormula Name]]<>\"\",IFERROR(IF(MeasureCalc(Table_PI[[#This Row],[Hide:\nFormula Name]],Table_PI[[#This Row],[Quantity]],Table_PI[[#This Row],[List 1]],Table_PI[[#This Row],[List 2]],Table_PI[[#This Row],[List 3]],Table_PI[[#This Row],[Size]],Table_PI[[#This Row],[Input 1]],Table_PI[[#This Row],[Input 2]],Table_PI[[#This Row],[Input 3]],Table_PI[[#This Row],[Input 4]],'Customer Information'!$AR$12,1,ROW())>0,MeasureCalc(Table_PI[[#This Row],[Hide:\nFormula Name]],Table_PI[[#This Row],[Quantity]],Table_PI[[#This Row],[List 1]],Table_PI[[#This Row],[List 2]],Table_PI[[#This Row],[List 3]],Table_PI[[#This Row],[Size]],Table_PI[[#This Row],[Input 1]],Table_PI[[#This Row],[Input 2]],Table_PI[[#This Row],[Input 3]],Table_PI[[#This Row],[Input 4]],'Customer Information'!$AR$12,4,ROW()),\"No Rebate\"),\"No Rebate\"),0)","v":0},{"$f":"IF(Table_PI[[#This Row],[Hide:\nFormula Name]]<>\"\",IFERROR(IF(MeasureCalc(Table_PI[[#This Row],[Hide:\nFormula Name]],Table_PI[[#This Row],[Quantity]],Table_PI[[#This Row],[List 1]],Table_PI[[#This Row],[List 2]],Table_PI[[#This Row],[List 3]],Table_PI[[#This Row],[Size]],Table_PI[[#This Row],[Input 1]],Table_PI[[#This Row],[Input 2]],Table_PI[[#This Row],[Input 3]],Table_PI[[#This Row],[Input 4]],'Customer Information'!$AR$12,1,ROW())>0,MeasureCalc(Table_PI[[#This Row],[Hide:\nFormula Name]],Table_PI[[#This Row],[Quantity]],Table_PI[[#This Row],[List 1]],Table_PI[[#This Row],[List 2]],Table_PI[[#This Row],[List 3]],Table_PI[[#This Row],[Size]],Table_PI[[#This Row],[Input 1]],Table_PI[[#This Row],[Input 2]],Table_PI[[#This Row],[Input 3]],Table_PI[[#This Row],[Input 4]],'Customer Information'!$AR$12,5,ROW()),\"No Rebate\"),\"No Rebate\"),0)","v":0},{"$f":"IF(Table_PI[[#This Row],[Hide:\nFormula Name]]<>\"\",IFERROR(IF(MeasureCalc(Table_PI[[#This Row],[Hide:\nFormula Name]],Table_PI[[#This Row],[Quantity]],Table_PI[[#This Row],[List 1]],Table_PI[[#This Row],[List 2]],Table_PI[[#This Row],[List 3]],Table_PI[[#This Row],[Size]],Table_PI[[#This Row],[Input 1]],Table_PI[[#This Row],[Input 2]],Table_PI[[#This Row],[Input 3]],Table_PI[[#This Row],[Input 4]],'Customer Information'!$AR$12,1,ROW())>0,MeasureCalc(Table_PI[[#This Row],[Hide:\nFormula Name]],Table_PI[[#This Row],[Quantity]],Table_PI[[#This Row],[List 1]],Table_PI[[#This Row],[List 2]],Table_PI[[#This Row],[List 3]],Table_PI[[#This Row],[Size]],Table_PI[[#This Row],[Input 1]],Table_PI[[#This Row],[Input 2]],Table_PI[[#This Row],[Input 3]],Table_PI[[#This Row],[Input 4]],'Customer Information'!$AR$12,6,ROW()),\"No Rebate\"),\"No Rebate\"),0)","v":0},{"$f":"IF(Table_PI[[#This Row],[Hide:\nFormula Name]]<>\"\",IFERROR(IF(MeasureCalc(Table_PI[[#This Row],[Hide:\nFormula Name]],Table_PI[[#This Row],[Quantity]],Table_PI[[#This Row],[List 1]],Table_PI[[#This Row],[List 2]],Table_PI[[#This Row],[List 3]],Table_PI[[#This Row],[Size]],Table_PI[[#This Row],[Input 1]],Table_PI[[#This Row],[Input 2]],Table_PI[[#This Row],[Input 3]],Table_PI[[#This Row],[Input 4]],'Customer Information'!$AR$12,1,ROW())>0,MeasureCalc(Table_PI[[#This Row],[Hide:\nFormula Name]],Table_PI[[#This Row],[Quantity]],Table_PI[[#This Row],[List 1]],Table_PI[[#This Row],[List 2]],Table_PI[[#This Row],[List 3]],Table_PI[[#This Row],[Size]],Table_PI[[#This Row],[Input 1]],Table_PI[[#This Row],[Input 2]],Table_PI[[#This Row],[Input 3]],Table_PI[[#This Row],[Input 4]],'Customer Information'!$AR$12,7,ROW()),\"No Rebate\"),\"No Rebate\"),0)","v":0},{"$f":"IF(Table_PI[[#This Row],[Hide:\nFormula Name]]<>\"\",IFERROR(IF(MeasureCalc(Table_PI[[#This Row],[Hide:\nFormula Name]],Table_PI[[#This Row],[Quantity]],Table_PI[[#This Row],[List 1]],Table_PI[[#This Row],[List 2]],Table_PI[[#This Row],[List 3]],Table_PI[[#This Row],[Size]],Table_PI[[#This Row],[Input 1]],Table_PI[[#This Row],[Input 2]],Table_PI[[#This Row],[Input 3]],Table_PI[[#This Row],[Input 4]],'Customer Information'!$AR$12,1,ROW())>0,MeasureCalc(Table_PI[[#This Row],[Hide:\nFormula Name]],Table_PI[[#This Row],[Quantity]],Table_PI[[#This Row],[List 1]],Table_PI[[#This Row],[List 2]],Table_PI[[#This Row],[List 3]],Table_PI[[#This Row],[Size]],Table_PI[[#This Row],[Input 1]],Table_PI[[#This Row],[Input 2]],Table_PI[[#This Row],[Input 3]],Table_PI[[#This Row],[Input 4]],'Customer Information'!$AR$12,8,ROW()),\"No Rebate\"),\"No Rebate\"),0)","v":0},{"$f":"IF(Table_PI[[#This Row],[Hide:\nFormula Name]]<>\"\",IF(AND(Table_PI[[#This Row],[Hide:\nFormula Name]]<>\"\",OR(Table_PI[[#This Row],[Rebate]]>0,Table_PI[[#This Row],[Rebate]]=\"No Rebate\")),TRUE,\"MI: Line Item \" & $A219),\"\")","v":""}]
[{"$f":"IF(Table_PI[[#This Row],[Hide:\nFormula Name]]<>\"\",MAX($A$2:A219)+1,\"\")","v":""},null,null,null,null,null,null,null,null,null,null,null,null,null,null,{"$f":"IFERROR(VLOOKUP(Table_PI[[#This Row],[Measure]],'Equipment Lookups'!$C$3:$D$23,2,FALSE),\"\")","v":""},{"$f":"IF(Table_PI[[#This Row],[Hide:\nFormula Name]]<>\"\",IFERROR(IF(MeasureCalc(Table_PI[[#This Row],[Hide:\nFormula Name]],Table_PI[[#This Row],[Quantity]],Table_PI[[#This Row],[List 1]],Table_PI[[#This Row],[List 2]],Table_PI[[#This Row],[List 3]],Table_PI[[#This Row],[Size]],Table_PI[[#This Row],[Input 1]],Table_PI[[#This Row],[Input 2]],Table_PI[[#This Row],[Input 3]],Table_PI[[#This Row],[Input 4]],'Customer Information'!$AR$12,1,ROW())>0,MeasureCalc(Table_PI[[#This Row],[Hide:\nFormula Name]],Table_PI[[#This Row],[Quantity]],Table_PI[[#This Row],[List 1]],Table_PI[[#This Row],[List 2]],Table_PI[[#This Row],[List 3]],Table_PI[[#This Row],[Size]],Table_PI[[#This Row],[Input 1]],Table_PI[[#This Row],[Input 2]],Table_PI[[#This Row],[Input 3]],Table_PI[[#This Row],[Input 4]],'Customer Information'!$AR$12,1,ROW()),\"No Rebate\"),\"No Rebate\"),0)","v":0},{"$f":"IF(Table_PI[[#This Row],[Hide:\nFormula Name]]<>\"\",IFERROR(IF(MeasureCalc(Table_PI[[#This Row],[Hide:\nFormula Name]],Table_PI[[#This Row],[Quantity]],Table_PI[[#This Row],[List 1]],Table_PI[[#This Row],[List 2]],Table_PI[[#This Row],[List 3]],Table_PI[[#This Row],[Size]],Table_PI[[#This Row],[Input 1]],Table_PI[[#This Row],[Input 2]],Table_PI[[#This Row],[Input 3]],Table_PI[[#This Row],[Input 4]],'Customer Information'!$AR$12,1,ROW())>0,MeasureCalc(Table_PI[[#This Row],[Hide:\nFormula Name]],Table_PI[[#This Row],[Quantity]],Table_PI[[#This Row],[List 1]],Table_PI[[#This Row],[List 2]],Table_PI[[#This Row],[List 3]],Table_PI[[#This Row],[Size]],Table_PI[[#This Row],[Input 1]],Table_PI[[#This Row],[Input 2]],Table_PI[[#This Row],[Input 3]],Table_PI[[#This Row],[Input 4]],'Customer Information'!$AR$12,2,ROW()),\"No Rebate\"),\"No Rebate\"),0)","v":0},{"$f":"IF(Table_PI[[#This Row],[Hide:\nFormula Name]]<>\"\",IFERROR(IF(MeasureCalc(Table_PI[[#This Row],[Hide:\nFormula Name]],Table_PI[[#This Row],[Quantity]],Table_PI[[#This Row],[List 1]],Table_PI[[#This Row],[List 2]],Table_PI[[#This Row],[List 3]],Table_PI[[#This Row],[Size]],Table_PI[[#This Row],[Input 1]],Table_PI[[#This Row],[Input 2]],Table_PI[[#This Row],[Input 3]],Table_PI[[#This Row],[Input 4]],'Customer Information'!$AR$12,1,ROW())>0,MeasureCalc(Table_PI[[#This Row],[Hide:\nFormula Name]],Table_PI[[#This Row],[Quantity]],Table_PI[[#This Row],[List 1]],Table_PI[[#This Row],[List 2]],Table_PI[[#This Row],[List 3]],Table_PI[[#This Row],[Size]],Table_PI[[#This Row],[Input 1]],Table_PI[[#This Row],[Input 2]],Table_PI[[#This Row],[Input 3]],Table_PI[[#This Row],[Input 4]],'Customer Information'!$AR$12,3,ROW()),\"No Rebate\"),\"No Rebate\"),0)","v":0},{"$f":"IF(Table_PI[[#This Row],[Hide:\nFormula Name]]<>\"\",IFERROR(IF(MeasureCalc(Table_PI[[#This Row],[Hide:\nFormula Name]],Table_PI[[#This Row],[Quantity]],Table_PI[[#This Row],[List 1]],Table_PI[[#This Row],[List 2]],Table_PI[[#This Row],[List 3]],Table_PI[[#This Row],[Size]],Table_PI[[#This Row],[Input 1]],Table_PI[[#This Row],[Input 2]],Table_PI[[#This Row],[Input 3]],Table_PI[[#This Row],[Input 4]],'Customer Information'!$AR$12,1,ROW())>0,MeasureCalc(Table_PI[[#This Row],[Hide:\nFormula Name]],Table_PI[[#This Row],[Quantity]],Table_PI[[#This Row],[List 1]],Table_PI[[#This Row],[List 2]],Table_PI[[#This Row],[List 3]],Table_PI[[#This Row],[Size]],Table_PI[[#This Row],[Input 1]],Table_PI[[#This Row],[Input 2]],Table_PI[[#This Row],[Input 3]],Table_PI[[#This Row],[Input 4]],'Customer Information'!$AR$12,4,ROW()),\"No Rebate\"),\"No Rebate\"),0)","v":0},{"$f":"IF(Table_PI[[#This Row],[Hide:\nFormula Name]]<>\"\",IFERROR(IF(MeasureCalc(Table_PI[[#This Row],[Hide:\nFormula Name]],Table_PI[[#This Row],[Quantity]],Table_PI[[#This Row],[List 1]],Table_PI[[#This Row],[List 2]],Table_PI[[#This Row],[List 3]],Table_PI[[#This Row],[Size]],Table_PI[[#This Row],[Input 1]],Table_PI[[#This Row],[Input 2]],Table_PI[[#This Row],[Input 3]],Table_PI[[#This Row],[Input 4]],'Customer Information'!$AR$12,1,ROW())>0,MeasureCalc(Table_PI[[#This Row],[Hide:\nFormula Name]],Table_PI[[#This Row],[Quantity]],Table_PI[[#This Row],[List 1]],Table_PI[[#This Row],[List 2]],Table_PI[[#This Row],[List 3]],Table_PI[[#This Row],[Size]],Table_PI[[#This Row],[Input 1]],Table_PI[[#This Row],[Input 2]],Table_PI[[#This Row],[Input 3]],Table_PI[[#This Row],[Input 4]],'Customer Information'!$AR$12,5,ROW()),\"No Rebate\"),\"No Rebate\"),0)","v":0},{"$f":"IF(Table_PI[[#This Row],[Hide:\nFormula Name]]<>\"\",IFERROR(IF(MeasureCalc(Table_PI[[#This Row],[Hide:\nFormula Name]],Table_PI[[#This Row],[Quantity]],Table_PI[[#This Row],[List 1]],Table_PI[[#This Row],[List 2]],Table_PI[[#This Row],[List 3]],Table_PI[[#This Row],[Size]],Table_PI[[#This Row],[Input 1]],Table_PI[[#This Row],[Input 2]],Table_PI[[#This Row],[Input 3]],Table_PI[[#This Row],[Input 4]],'Customer Information'!$AR$12,1,ROW())>0,MeasureCalc(Table_PI[[#This Row],[Hide:\nFormula Name]],Table_PI[[#This Row],[Quantity]],Table_PI[[#This Row],[List 1]],Table_PI[[#This Row],[List 2]],Table_PI[[#This Row],[List 3]],Table_PI[[#This Row],[Size]],Table_PI[[#This Row],[Input 1]],Table_PI[[#This Row],[Input 2]],Table_PI[[#This Row],[Input 3]],Table_PI[[#This Row],[Input 4]],'Customer Information'!$AR$12,6,ROW()),\"No Rebate\"),\"No Rebate\"),0)","v":0},{"$f":"IF(Table_PI[[#This Row],[Hide:\nFormula Name]]<>\"\",IFERROR(IF(MeasureCalc(Table_PI[[#This Row],[Hide:\nFormula Name]],Table_PI[[#This Row],[Quantity]],Table_PI[[#This Row],[List 1]],Table_PI[[#This Row],[List 2]],Table_PI[[#This Row],[List 3]],Table_PI[[#This Row],[Size]],Table_PI[[#This Row],[Input 1]],Table_PI[[#This Row],[Input 2]],Table_PI[[#This Row],[Input 3]],Table_PI[[#This Row],[Input 4]],'Customer Information'!$AR$12,1,ROW())>0,MeasureCalc(Table_PI[[#This Row],[Hide:\nFormula Name]],Table_PI[[#This Row],[Quantity]],Table_PI[[#This Row],[List 1]],Table_PI[[#This Row],[List 2]],Table_PI[[#This Row],[List 3]],Table_PI[[#This Row],[Size]],Table_PI[[#This Row],[Input 1]],Table_PI[[#This Row],[Input 2]],Table_PI[[#This Row],[Input 3]],Table_PI[[#This Row],[Input 4]],'Customer Information'!$AR$12,7,ROW()),\"No Rebate\"),\"No Rebate\"),0)","v":0},{"$f":"IF(Table_PI[[#This Row],[Hide:\nFormula Name]]<>\"\",IFERROR(IF(MeasureCalc(Table_PI[[#This Row],[Hide:\nFormula Name]],Table_PI[[#This Row],[Quantity]],Table_PI[[#This Row],[List 1]],Table_PI[[#This Row],[List 2]],Table_PI[[#This Row],[List 3]],Table_PI[[#This Row],[Size]],Table_PI[[#This Row],[Input 1]],Table_PI[[#This Row],[Input 2]],Table_PI[[#This Row],[Input 3]],Table_PI[[#This Row],[Input 4]],'Customer Information'!$AR$12,1,ROW())>0,MeasureCalc(Table_PI[[#This Row],[Hide:\nFormula Name]],Table_PI[[#This Row],[Quantity]],Table_PI[[#This Row],[List 1]],Table_PI[[#This Row],[List 2]],Table_PI[[#This Row],[List 3]],Table_PI[[#This Row],[Size]],Table_PI[[#This Row],[Input 1]],Table_PI[[#This Row],[Input 2]],Table_PI[[#This Row],[Input 3]],Table_PI[[#This Row],[Input 4]],'Customer Information'!$AR$12,8,ROW()),\"No Rebate\"),\"No Rebate\"),0)","v":0},{"$f":"IF(Table_PI[[#This Row],[Hide:\nFormula Name]]<>\"\",IF(AND(Table_PI[[#This Row],[Hide:\nFormula Name]]<>\"\",OR(Table_PI[[#This Row],[Rebate]]>0,Table_PI[[#This Row],[Rebate]]=\"No Rebate\")),TRUE,\"MI: Line Item \" & $A220),\"\")","v":""}]
[{"$f":"IF(Table_PI[[#This Row],[Hide:\nFormula Name]]<>\"\",MAX($A$2:A220)+1,\"\")","v":""},null,null,null,null,null,null,null,null,null,null,null,null,null,null,{"$f":"IFERROR(VLOOKUP(Table_PI[[#This Row],[Measure]],'Equipment Lookups'!$C$3:$D$23,2,FALSE),\"\")","v":""},{"$f":"IF(Table_PI[[#This Row],[Hide:\nFormula Name]]<>\"\",IFERROR(IF(MeasureCalc(Table_PI[[#This Row],[Hide:\nFormula Name]],Table_PI[[#This Row],[Quantity]],Table_PI[[#This Row],[List 1]],Table_PI[[#This Row],[List 2]],Table_PI[[#This Row],[List 3]],Table_PI[[#This Row],[Size]],Table_PI[[#This Row],[Input 1]],Table_PI[[#This Row],[Input 2]],Table_PI[[#This Row],[Input 3]],Table_PI[[#This Row],[Input 4]],'Customer Information'!$AR$12,1,ROW())>0,MeasureCalc(Table_PI[[#This Row],[Hide:\nFormula Name]],Table_PI[[#This Row],[Quantity]],Table_PI[[#This Row],[List 1]],Table_PI[[#This Row],[List 2]],Table_PI[[#This Row],[List 3]],Table_PI[[#This Row],[Size]],Table_PI[[#This Row],[Input 1]],Table_PI[[#This Row],[Input 2]],Table_PI[[#This Row],[Input 3]],Table_PI[[#This Row],[Input 4]],'Customer Information'!$AR$12,1,ROW()),\"No Rebate\"),\"No Rebate\"),0)","v":0},{"$f":"IF(Table_PI[[#This Row],[Hide:\nFormula Name]]<>\"\",IFERROR(IF(MeasureCalc(Table_PI[[#This Row],[Hide:\nFormula Name]],Table_PI[[#This Row],[Quantity]],Table_PI[[#This Row],[List 1]],Table_PI[[#This Row],[List 2]],Table_PI[[#This Row],[List 3]],Table_PI[[#This Row],[Size]],Table_PI[[#This Row],[Input 1]],Table_PI[[#This Row],[Input 2]],Table_PI[[#This Row],[Input 3]],Table_PI[[#This Row],[Input 4]],'Customer Information'!$AR$12,1,ROW())>0,MeasureCalc(Table_PI[[#This Row],[Hide:\nFormula Name]],Table_PI[[#This Row],[Quantity]],Table_PI[[#This Row],[List 1]],Table_PI[[#This Row],[List 2]],Table_PI[[#This Row],[List 3]],Table_PI[[#This Row],[Size]],Table_PI[[#This Row],[Input 1]],Table_PI[[#This Row],[Input 2]],Table_PI[[#This Row],[Input 3]],Table_PI[[#This Row],[Input 4]],'Customer Information'!$AR$12,2,ROW()),\"No Rebate\"),\"No Rebate\"),0)","v":0},{"$f":"IF(Table_PI[[#This Row],[Hide:\nFormula Name]]<>\"\",IFERROR(IF(MeasureCalc(Table_PI[[#This Row],[Hide:\nFormula Name]],Table_PI[[#This Row],[Quantity]],Table_PI[[#This Row],[List 1]],Table_PI[[#This Row],[List 2]],Table_PI[[#This Row],[List 3]],Table_PI[[#This Row],[Size]],Table_PI[[#This Row],[Input 1]],Table_PI[[#This Row],[Input 2]],Table_PI[[#This Row],[Input 3]],Table_PI[[#This Row],[Input 4]],'Customer Information'!$AR$12,1,ROW())>0,MeasureCalc(Table_PI[[#This Row],[Hide:\nFormula Name]],Table_PI[[#This Row],[Quantity]],Table_PI[[#This Row],[List 1]],Table_PI[[#This Row],[List 2]],Table_PI[[#This Row],[List 3]],Table_PI[[#This Row],[Size]],Table_PI[[#This Row],[Input 1]],Table_PI[[#This Row],[Input 2]],Table_PI[[#This Row],[Input 3]],Table_PI[[#This Row],[Input 4]],'Customer Information'!$AR$12,3,ROW()),\"No Rebate\"),\"No Rebate\"),0)","v":0},{"$f":"IF(Table_PI[[#This Row],[Hide:\nFormula Name]]<>\"\",IFERROR(IF(MeasureCalc(Table_PI[[#This Row],[Hide:\nFormula Name]],Table_PI[[#This Row],[Quantity]],Table_PI[[#This Row],[List 1]],Table_PI[[#This Row],[List 2]],Table_PI[[#This Row],[List 3]],Table_PI[[#This Row],[Size]],Table_PI[[#This Row],[Input 1]],Table_PI[[#This Row],[Input 2]],Table_PI[[#This Row],[Input 3]],Table_PI[[#This Row],[Input 4]],'Customer Information'!$AR$12,1,ROW())>0,MeasureCalc(Table_PI[[#This Row],[Hide:\nFormula Name]],Table_PI[[#This Row],[Quantity]],Table_PI[[#This Row],[List 1]],Table_PI[[#This Row],[List 2]],Table_PI[[#This Row],[List 3]],Table_PI[[#This Row],[Size]],Table_PI[[#This Row],[Input 1]],Table_PI[[#This Row],[Input 2]],Table_PI[[#This Row],[Input 3]],Table_PI[[#This Row],[Input 4]],'Customer Information'!$AR$12,4,ROW()),\"No Rebate\"),\"No Rebate\"),0)","v":0},{"$f":"IF(Table_PI[[#This Row],[Hide:\nFormula Name]]<>\"\",IFERROR(IF(MeasureCalc(Table_PI[[#This Row],[Hide:\nFormula Name]],Table_PI[[#This Row],[Quantity]],Table_PI[[#This Row],[List 1]],Table_PI[[#This Row],[List 2]],Table_PI[[#This Row],[List 3]],Table_PI[[#This Row],[Size]],Table_PI[[#This Row],[Input 1]],Table_PI[[#This Row],[Input 2]],Table_PI[[#This Row],[Input 3]],Table_PI[[#This Row],[Input 4]],'Customer Information'!$AR$12,1,ROW())>0,MeasureCalc(Table_PI[[#This Row],[Hide:\nFormula Name]],Table_PI[[#This Row],[Quantity]],Table_PI[[#This Row],[List 1]],Table_PI[[#This Row],[List 2]],Table_PI[[#This Row],[List 3]],Table_PI[[#This Row],[Size]],Table_PI[[#This Row],[Input 1]],Table_PI[[#This Row],[Input 2]],Table_PI[[#This Row],[Input 3]],Table_PI[[#This Row],[Input 4]],'Customer Information'!$AR$12,5,ROW()),\"No Rebate\"),\"No Rebate\"),0)","v":0},{"$f":"IF(Table_PI[[#This Row],[Hide:\nFormula Name]]<>\"\",IFERROR(IF(MeasureCalc(Table_PI[[#This Row],[Hide:\nFormula Name]],Table_PI[[#This Row],[Quantity]],Table_PI[[#This Row],[List 1]],Table_PI[[#This Row],[List 2]],Table_PI[[#This Row],[List 3]],Table_PI[[#This Row],[Size]],Table_PI[[#This Row],[Input 1]],Table_PI[[#This Row],[Input 2]],Table_PI[[#This Row],[Input 3]],Table_PI[[#This Row],[Input 4]],'Customer Information'!$AR$12,1,ROW())>0,MeasureCalc(Table_PI[[#This Row],[Hide:\nFormula Name]],Table_PI[[#This Row],[Quantity]],Table_PI[[#This Row],[List 1]],Table_PI[[#This Row],[List 2]],Table_PI[[#This Row],[List 3]],Table_PI[[#This Row],[Size]],Table_PI[[#This Row],[Input 1]],Table_PI[[#This Row],[Input 2]],Table_PI[[#This Row],[Input 3]],Table_PI[[#This Row],[Input 4]],'Customer Information'!$AR$12,6,ROW()),\"No Rebate\"),\"No Rebate\"),0)","v":0},{"$f":"IF(Table_PI[[#This Row],[Hide:\nFormula Name]]<>\"\",IFERROR(IF(MeasureCalc(Table_PI[[#This Row],[Hide:\nFormula Name]],Table_PI[[#This Row],[Quantity]],Table_PI[[#This Row],[List 1]],Table_PI[[#This Row],[List 2]],Table_PI[[#This Row],[List 3]],Table_PI[[#This Row],[Size]],Table_PI[[#This Row],[Input 1]],Table_PI[[#This Row],[Input 2]],Table_PI[[#This Row],[Input 3]],Table_PI[[#This Row],[Input 4]],'Customer Information'!$AR$12,1,ROW())>0,MeasureCalc(Table_PI[[#This Row],[Hide:\nFormula Name]],Table_PI[[#This Row],[Quantity]],Table_PI[[#This Row],[List 1]],Table_PI[[#This Row],[List 2]],Table_PI[[#This Row],[List 3]],Table_PI[[#This Row],[Size]],Table_PI[[#This Row],[Input 1]],Table_PI[[#This Row],[Input 2]],Table_PI[[#This Row],[Input 3]],Table_PI[[#This Row],[Input 4]],'Customer Information'!$AR$12,7,ROW()),\"No Rebate\"),\"No Rebate\"),0)","v":0},{"$f":"IF(Table_PI[[#This Row],[Hide:\nFormula Name]]<>\"\",IFERROR(IF(MeasureCalc(Table_PI[[#This Row],[Hide:\nFormula Name]],Table_PI[[#This Row],[Quantity]],Table_PI[[#This Row],[List 1]],Table_PI[[#This Row],[List 2]],Table_PI[[#This Row],[List 3]],Table_PI[[#This Row],[Size]],Table_PI[[#This Row],[Input 1]],Table_PI[[#This Row],[Input 2]],Table_PI[[#This Row],[Input 3]],Table_PI[[#This Row],[Input 4]],'Customer Information'!$AR$12,1,ROW())>0,MeasureCalc(Table_PI[[#This Row],[Hide:\nFormula Name]],Table_PI[[#This Row],[Quantity]],Table_PI[[#This Row],[List 1]],Table_PI[[#This Row],[List 2]],Table_PI[[#This Row],[List 3]],Table_PI[[#This Row],[Size]],Table_PI[[#This Row],[Input 1]],Table_PI[[#This Row],[Input 2]],Table_PI[[#This Row],[Input 3]],Table_PI[[#This Row],[Input 4]],'Customer Information'!$AR$12,8,ROW()),\"No Rebate\"),\"No Rebate\"),0)","v":0},{"$f":"IF(Table_PI[[#This Row],[Hide:\nFormula Name]]<>\"\",IF(AND(Table_PI[[#This Row],[Hide:\nFormula Name]]<>\"\",OR(Table_PI[[#This Row],[Rebate]]>0,Table_PI[[#This Row],[Rebate]]=\"No Rebate\")),TRUE,\"MI: Line Item \" & $A221),\"\")","v":""}]
[{"$f":"IF(Table_PI[[#This Row],[Hide:\nFormula Name]]<>\"\",MAX($A$2:A221)+1,\"\")","v":""},null,null,null,null,null,null,null,null,null,null,null,null,null,null,{"$f":"IFERROR(VLOOKUP(Table_PI[[#This Row],[Measure]],'Equipment Lookups'!$C$3:$D$23,2,FALSE),\"\")","v":""},{"$f":"IF(Table_PI[[#This Row],[Hide:\nFormula Name]]<>\"\",IFERROR(IF(MeasureCalc(Table_PI[[#This Row],[Hide:\nFormula Name]],Table_PI[[#This Row],[Quantity]],Table_PI[[#This Row],[List 1]],Table_PI[[#This Row],[List 2]],Table_PI[[#This Row],[List 3]],Table_PI[[#This Row],[Size]],Table_PI[[#This Row],[Input 1]],Table_PI[[#This Row],[Input 2]],Table_PI[[#This Row],[Input 3]],Table_PI[[#This Row],[Input 4]],'Customer Information'!$AR$12,1,ROW())>0,MeasureCalc(Table_PI[[#This Row],[Hide:\nFormula Name]],Table_PI[[#This Row],[Quantity]],Table_PI[[#This Row],[List 1]],Table_PI[[#This Row],[List 2]],Table_PI[[#This Row],[List 3]],Table_PI[[#This Row],[Size]],Table_PI[[#This Row],[Input 1]],Table_PI[[#This Row],[Input 2]],Table_PI[[#This Row],[Input 3]],Table_PI[[#This Row],[Input 4]],'Customer Information'!$AR$12,1,ROW()),\"No Rebate\"),\"No Rebate\"),0)","v":0},{"$f":"IF(Table_PI[[#This Row],[Hide:\nFormula Name]]<>\"\",IFERROR(IF(MeasureCalc(Table_PI[[#This Row],[Hide:\nFormula Name]],Table_PI[[#This Row],[Quantity]],Table_PI[[#This Row],[List 1]],Table_PI[[#This Row],[List 2]],Table_PI[[#This Row],[List 3]],Table_PI[[#This Row],[Size]],Table_PI[[#This Row],[Input 1]],Table_PI[[#This Row],[Input 2]],Table_PI[[#This Row],[Input 3]],Table_PI[[#This Row],[Input 4]],'Customer Information'!$AR$12,1,ROW())>0,MeasureCalc(Table_PI[[#This Row],[Hide:\nFormula Name]],Table_PI[[#This Row],[Quantity]],Table_PI[[#This Row],[List 1]],Table_PI[[#This Row],[List 2]],Table_PI[[#This Row],[List 3]],Table_PI[[#This Row],[Size]],Table_PI[[#This Row],[Input 1]],Table_PI[[#This Row],[Input 2]],Table_PI[[#This Row],[Input 3]],Table_PI[[#This Row],[Input 4]],'Customer Information'!$AR$12,2,ROW()),\"No Rebate\"),\"No Rebate\"),0)","v":0},{"$f":"IF(Table_PI[[#This Row],[Hide:\nFormula Name]]<>\"\",IFERROR(IF(MeasureCalc(Table_PI[[#This Row],[Hide:\nFormula Name]],Table_PI[[#This Row],[Quantity]],Table_PI[[#This Row],[List 1]],Table_PI[[#This Row],[List 2]],Table_PI[[#This Row],[List 3]],Table_PI[[#This Row],[Size]],Table_PI[[#This Row],[Input 1]],Table_PI[[#This Row],[Input 2]],Table_PI[[#This Row],[Input 3]],Table_PI[[#This Row],[Input 4]],'Customer Information'!$AR$12,1,ROW())>0,MeasureCalc(Table_PI[[#This Row],[Hide:\nFormula Name]],Table_PI[[#This Row],[Quantity]],Table_PI[[#This Row],[List 1]],Table_PI[[#This Row],[List 2]],Table_PI[[#This Row],[List 3]],Table_PI[[#This Row],[Size]],Table_PI[[#This Row],[Input 1]],Table_PI[[#This Row],[Input 2]],Table_PI[[#This Row],[Input 3]],Table_PI[[#This Row],[Input 4]],'Customer Information'!$AR$12,3,ROW()),\"No Rebate\"),\"No Rebate\"),0)","v":0},{"$f":"IF(Table_PI[[#This Row],[Hide:\nFormula Name]]<>\"\",IFERROR(IF(MeasureCalc(Table_PI[[#This Row],[Hide:\nFormula Name]],Table_PI[[#This Row],[Quantity]],Table_PI[[#This Row],[List 1]],Table_PI[[#This Row],[List 2]],Table_PI[[#This Row],[List 3]],Table_PI[[#This Row],[Size]],Table_PI[[#This Row],[Input 1]],Table_PI[[#This Row],[Input 2]],Table_PI[[#This Row],[Input 3]],Table_PI[[#This Row],[Input 4]],'Customer Information'!$AR$12,1,ROW())>0,MeasureCalc(Table_PI[[#This Row],[Hide:\nFormula Name]],Table_PI[[#This Row],[Quantity]],Table_PI[[#This Row],[List 1]],Table_PI[[#This Row],[List 2]],Table_PI[[#This Row],[List 3]],Table_PI[[#This Row],[Size]],Table_PI[[#This Row],[Input 1]],Table_PI[[#This Row],[Input 2]],Table_PI[[#This Row],[Input 3]],Table_PI[[#This Row],[Input 4]],'Customer Information'!$AR$12,4,ROW()),\"No Rebate\"),\"No Rebate\"),0)","v":0},{"$f":"IF(Table_PI[[#This Row],[Hide:\nFormula Name]]<>\"\",IFERROR(IF(MeasureCalc(Table_PI[[#This Row],[Hide:\nFormula Name]],Table_PI[[#This Row],[Quantity]],Table_PI[[#This Row],[List 1]],Table_PI[[#This Row],[List 2]],Table_PI[[#This Row],[List 3]],Table_PI[[#This Row],[Size]],Table_PI[[#This Row],[Input 1]],Table_PI[[#This Row],[Input 2]],Table_PI[[#This Row],[Input 3]],Table_PI[[#This Row],[Input 4]],'Customer Information'!$AR$12,1,ROW())>0,MeasureCalc(Table_PI[[#This Row],[Hide:\nFormula Name]],Table_PI[[#This Row],[Quantity]],Table_PI[[#This Row],[List 1]],Table_PI[[#This Row],[List 2]],Table_PI[[#This Row],[List 3]],Table_PI[[#This Row],[Size]],Table_PI[[#This Row],[Input 1]],Table_PI[[#This Row],[Input 2]],Table_PI[[#This Row],[Input 3]],Table_PI[[#This Row],[Input 4]],'Customer Information'!$AR$12,5,ROW()),\"No Rebate\"),\"No Rebate\"),0)","v":0},{"$f":"IF(Table_PI[[#This Row],[Hide:\nFormula Name]]<>\"\",IFERROR(IF(MeasureCalc(Table_PI[[#This Row],[Hide:\nFormula Name]],Table_PI[[#This Row],[Quantity]],Table_PI[[#This Row],[List 1]],Table_PI[[#This Row],[List 2]],Table_PI[[#This Row],[List 3]],Table_PI[[#This Row],[Size]],Table_PI[[#This Row],[Input 1]],Table_PI[[#This Row],[Input 2]],Table_PI[[#This Row],[Input 3]],Table_PI[[#This Row],[Input 4]],'Customer Information'!$AR$12,1,ROW())>0,MeasureCalc(Table_PI[[#This Row],[Hide:\nFormula Name]],Table_PI[[#This Row],[Quantity]],Table_PI[[#This Row],[List 1]],Table_PI[[#This Row],[List 2]],Table_PI[[#This Row],[List 3]],Table_PI[[#This Row],[Size]],Table_PI[[#This Row],[Input 1]],Table_PI[[#This Row],[Input 2]],Table_PI[[#This Row],[Input 3]],Table_PI[[#This Row],[Input 4]],'Customer Information'!$AR$12,6,ROW()),\"No Rebate\"),\"No Rebate\"),0)","v":0},{"$f":"IF(Table_PI[[#This Row],[Hide:\nFormula Name]]<>\"\",IFERROR(IF(MeasureCalc(Table_PI[[#This Row],[Hide:\nFormula Name]],Table_PI[[#This Row],[Quantity]],Table_PI[[#This Row],[List 1]],Table_PI[[#This Row],[List 2]],Table_PI[[#This Row],[List 3]],Table_PI[[#This Row],[Size]],Table_PI[[#This Row],[Input 1]],Table_PI[[#This Row],[Input 2]],Table_PI[[#This Row],[Input 3]],Table_PI[[#This Row],[Input 4]],'Customer Information'!$AR$12,1,ROW())>0,MeasureCalc(Table_PI[[#This Row],[Hide:\nFormula Name]],Table_PI[[#This Row],[Quantity]],Table_PI[[#This Row],[List 1]],Table_PI[[#This Row],[List 2]],Table_PI[[#This Row],[List 3]],Table_PI[[#This Row],[Size]],Table_PI[[#This Row],[Input 1]],Table_PI[[#This Row],[Input 2]],Table_PI[[#This Row],[Input 3]],Table_PI[[#This Row],[Input 4]],'Customer Information'!$AR$12,7,ROW()),\"No Rebate\"),\"No Rebate\"),0)","v":0},{"$f":"IF(Table_PI[[#This Row],[Hide:\nFormula Name]]<>\"\",IFERROR(IF(MeasureCalc(Table_PI[[#This Row],[Hide:\nFormula Name]],Table_PI[[#This Row],[Quantity]],Table_PI[[#This Row],[List 1]],Table_PI[[#This Row],[List 2]],Table_PI[[#This Row],[List 3]],Table_PI[[#This Row],[Size]],Table_PI[[#This Row],[Input 1]],Table_PI[[#This Row],[Input 2]],Table_PI[[#This Row],[Input 3]],Table_PI[[#This Row],[Input 4]],'Customer Information'!$AR$12,1,ROW())>0,MeasureCalc(Table_PI[[#This Row],[Hide:\nFormula Name]],Table_PI[[#This Row],[Quantity]],Table_PI[[#This Row],[List 1]],Table_PI[[#This Row],[List 2]],Table_PI[[#This Row],[List 3]],Table_PI[[#This Row],[Size]],Table_PI[[#This Row],[Input 1]],Table_PI[[#This Row],[Input 2]],Table_PI[[#This Row],[Input 3]],Table_PI[[#This Row],[Input 4]],'Customer Information'!$AR$12,8,ROW()),\"No Rebate\"),\"No Rebate\"),0)","v":0},{"$f":"IF(Table_PI[[#This Row],[Hide:\nFormula Name]]<>\"\",IF(AND(Table_PI[[#This Row],[Hide:\nFormula Name]]<>\"\",OR(Table_PI[[#This Row],[Rebate]]>0,Table_PI[[#This Row],[Rebate]]=\"No Rebate\")),TRUE,\"MI: Line Item \" & $A222),\"\")","v":""}]
[{"$f":"IF(Table_PI[[#This Row],[Hide:\nFormula Name]]<>\"\",MAX($A$2:A222)+1,\"\")","v":""},null,null,null,null,null,null,null,null,null,null,null,null,null,null,{"$f":"IFERROR(VLOOKUP(Table_PI[[#This Row],[Measure]],'Equipment Lookups'!$C$3:$D$23,2,FALSE),\"\")","v":""},{"$f":"IF(Table_PI[[#This Row],[Hide:\nFormula Name]]<>\"\",IFERROR(IF(MeasureCalc(Table_PI[[#This Row],[Hide:\nFormula Name]],Table_PI[[#This Row],[Quantity]],Table_PI[[#This Row],[List 1]],Table_PI[[#This Row],[List 2]],Table_PI[[#This Row],[List 3]],Table_PI[[#This Row],[Size]],Table_PI[[#This Row],[Input 1]],Table_PI[[#This Row],[Input 2]],Table_PI[[#This Row],[Input 3]],Table_PI[[#This Row],[Input 4]],'Customer Information'!$AR$12,1,ROW())>0,MeasureCalc(Table_PI[[#This Row],[Hide:\nFormula Name]],Table_PI[[#This Row],[Quantity]],Table_PI[[#This Row],[List 1]],Table_PI[[#This Row],[List 2]],Table_PI[[#This Row],[List 3]],Table_PI[[#This Row],[Size]],Table_PI[[#This Row],[Input 1]],Table_PI[[#This Row],[Input 2]],Table_PI[[#This Row],[Input 3]],Table_PI[[#This Row],[Input 4]],'Customer Information'!$AR$12,1,ROW()),\"No Rebate\"),\"No Rebate\"),0)","v":0},{"$f":"IF(Table_PI[[#This Row],[Hide:\nFormula Name]]<>\"\",IFERROR(IF(MeasureCalc(Table_PI[[#This Row],[Hide:\nFormula Name]],Table_PI[[#This Row],[Quantity]],Table_PI[[#This Row],[List 1]],Table_PI[[#This Row],[List 2]],Table_PI[[#This Row],[List 3]],Table_PI[[#This Row],[Size]],Table_PI[[#This Row],[Input 1]],Table_PI[[#This Row],[Input 2]],Table_PI[[#This Row],[Input 3]],Table_PI[[#This Row],[Input 4]],'Customer Information'!$AR$12,1,ROW())>0,MeasureCalc(Table_PI[[#This Row],[Hide:\nFormula Name]],Table_PI[[#This Row],[Quantity]],Table_PI[[#This Row],[List 1]],Table_PI[[#This Row],[List 2]],Table_PI[[#This Row],[List 3]],Table_PI[[#This Row],[Size]],Table_PI[[#This Row],[Input 1]],Table_PI[[#This Row],[Input 2]],Table_PI[[#This Row],[Input 3]],Table_PI[[#This Row],[Input 4]],'Customer Information'!$AR$12,2,ROW()),\"No Rebate\"),\"No Rebate\"),0)","v":0},{"$f":"IF(Table_PI[[#This Row],[Hide:\nFormula Name]]<>\"\",IFERROR(IF(MeasureCalc(Table_PI[[#This Row],[Hide:\nFormula Name]],Table_PI[[#This Row],[Quantity]],Table_PI[[#This Row],[List 1]],Table_PI[[#This Row],[List 2]],Table_PI[[#This Row],[List 3]],Table_PI[[#This Row],[Size]],Table_PI[[#This Row],[Input 1]],Table_PI[[#This Row],[Input 2]],Table_PI[[#This Row],[Input 3]],Table_PI[[#This Row],[Input 4]],'Customer Information'!$AR$12,1,ROW())>0,MeasureCalc(Table_PI[[#This Row],[Hide:\nFormula Name]],Table_PI[[#This Row],[Quantity]],Table_PI[[#This Row],[List 1]],Table_PI[[#This Row],[List 2]],Table_PI[[#This Row],[List 3]],Table_PI[[#This Row],[Size]],Table_PI[[#This Row],[Input 1]],Table_PI[[#This Row],[Input 2]],Table_PI[[#This Row],[Input 3]],Table_PI[[#This Row],[Input 4]],'Customer Information'!$AR$12,3,ROW()),\"No Rebate\"),\"No Rebate\"),0)","v":0},{"$f":"IF(Table_PI[[#This Row],[Hide:\nFormula Name]]<>\"\",IFERROR(IF(MeasureCalc(Table_PI[[#This Row],[Hide:\nFormula Name]],Table_PI[[#This Row],[Quantity]],Table_PI[[#This Row],[List 1]],Table_PI[[#This Row],[List 2]],Table_PI[[#This Row],[List 3]],Table_PI[[#This Row],[Size]],Table_PI[[#This Row],[Input 1]],Table_PI[[#This Row],[Input 2]],Table_PI[[#This Row],[Input 3]],Table_PI[[#This Row],[Input 4]],'Customer Information'!$AR$12,1,ROW())>0,MeasureCalc(Table_PI[[#This Row],[Hide:\nFormula Name]],Table_PI[[#This Row],[Quantity]],Table_PI[[#This Row],[List 1]],Table_PI[[#This Row],[List 2]],Table_PI[[#This Row],[List 3]],Table_PI[[#This Row],[Size]],Table_PI[[#This Row],[Input 1]],Table_PI[[#This Row],[Input 2]],Table_PI[[#This Row],[Input 3]],Table_PI[[#This Row],[Input 4]],'Customer Information'!$AR$12,4,ROW()),\"No Rebate\"),\"No Rebate\"),0)","v":0},{"$f":"IF(Table_PI[[#This Row],[Hide:\nFormula Name]]<>\"\",IFERROR(IF(MeasureCalc(Table_PI[[#This Row],[Hide:\nFormula Name]],Table_PI[[#This Row],[Quantity]],Table_PI[[#This Row],[List 1]],Table_PI[[#This Row],[List 2]],Table_PI[[#This Row],[List 3]],Table_PI[[#This Row],[Size]],Table_PI[[#This Row],[Input 1]],Table_PI[[#This Row],[Input 2]],Table_PI[[#This Row],[Input 3]],Table_PI[[#This Row],[Input 4]],'Customer Information'!$AR$12,1,ROW())>0,MeasureCalc(Table_PI[[#This Row],[Hide:\nFormula Name]],Table_PI[[#This Row],[Quantity]],Table_PI[[#This Row],[List 1]],Table_PI[[#This Row],[List 2]],Table_PI[[#This Row],[List 3]],Table_PI[[#This Row],[Size]],Table_PI[[#This Row],[Input 1]],Table_PI[[#This Row],[Input 2]],Table_PI[[#This Row],[Input 3]],Table_PI[[#This Row],[Input 4]],'Customer Information'!$AR$12,5,ROW()),\"No Rebate\"),\"No Rebate\"),0)","v":0},{"$f":"IF(Table_PI[[#This Row],[Hide:\nFormula Name]]<>\"\",IFERROR(IF(MeasureCalc(Table_PI[[#This Row],[Hide:\nFormula Name]],Table_PI[[#This Row],[Quantity]],Table_PI[[#This Row],[List 1]],Table_PI[[#This Row],[List 2]],Table_PI[[#This Row],[List 3]],Table_PI[[#This Row],[Size]],Table_PI[[#This Row],[Input 1]],Table_PI[[#This Row],[Input 2]],Table_PI[[#This Row],[Input 3]],Table_PI[[#This Row],[Input 4]],'Customer Information'!$AR$12,1,ROW())>0,MeasureCalc(Table_PI[[#This Row],[Hide:\nFormula Name]],Table_PI[[#This Row],[Quantity]],Table_PI[[#This Row],[List 1]],Table_PI[[#This Row],[List 2]],Table_PI[[#This Row],[List 3]],Table_PI[[#This Row],[Size]],Table_PI[[#This Row],[Input 1]],Table_PI[[#This Row],[Input 2]],Table_PI[[#This Row],[Input 3]],Table_PI[[#This Row],[Input 4]],'Customer Information'!$AR$12,6,ROW()),\"No Rebate\"),\"No Rebate\"),0)","v":0},{"$f":"IF(Table_PI[[#This Row],[Hide:\nFormula Name]]<>\"\",IFERROR(IF(MeasureCalc(Table_PI[[#This Row],[Hide:\nFormula Name]],Table_PI[[#This Row],[Quantity]],Table_PI[[#This Row],[List 1]],Table_PI[[#This Row],[List 2]],Table_PI[[#This Row],[List 3]],Table_PI[[#This Row],[Size]],Table_PI[[#This Row],[Input 1]],Table_PI[[#This Row],[Input 2]],Table_PI[[#This Row],[Input 3]],Table_PI[[#This Row],[Input 4]],'Customer Information'!$AR$12,1,ROW())>0,MeasureCalc(Table_PI[[#This Row],[Hide:\nFormula Name]],Table_PI[[#This Row],[Quantity]],Table_PI[[#This Row],[List 1]],Table_PI[[#This Row],[List 2]],Table_PI[[#This Row],[List 3]],Table_PI[[#This Row],[Size]],Table_PI[[#This Row],[Input 1]],Table_PI[[#This Row],[Input 2]],Table_PI[[#This Row],[Input 3]],Table_PI[[#This Row],[Input 4]],'Customer Information'!$AR$12,7,ROW()),\"No Rebate\"),\"No Rebate\"),0)","v":0},{"$f":"IF(Table_PI[[#This Row],[Hide:\nFormula Name]]<>\"\",IFERROR(IF(MeasureCalc(Table_PI[[#This Row],[Hide:\nFormula Name]],Table_PI[[#This Row],[Quantity]],Table_PI[[#This Row],[List 1]],Table_PI[[#This Row],[List 2]],Table_PI[[#This Row],[List 3]],Table_PI[[#This Row],[Size]],Table_PI[[#This Row],[Input 1]],Table_PI[[#This Row],[Input 2]],Table_PI[[#This Row],[Input 3]],Table_PI[[#This Row],[Input 4]],'Customer Information'!$AR$12,1,ROW())>0,MeasureCalc(Table_PI[[#This Row],[Hide:\nFormula Name]],Table_PI[[#This Row],[Quantity]],Table_PI[[#This Row],[List 1]],Table_PI[[#This Row],[List 2]],Table_PI[[#This Row],[List 3]],Table_PI[[#This Row],[Size]],Table_PI[[#This Row],[Input 1]],Table_PI[[#This Row],[Input 2]],Table_PI[[#This Row],[Input 3]],Table_PI[[#This Row],[Input 4]],'Customer Information'!$AR$12,8,ROW()),\"No Rebate\"),\"No Rebate\"),0)","v":0},{"$f":"IF(Table_PI[[#This Row],[Hide:\nFormula Name]]<>\"\",IF(AND(Table_PI[[#This Row],[Hide:\nFormula Name]]<>\"\",OR(Table_PI[[#This Row],[Rebate]]>0,Table_PI[[#This Row],[Rebate]]=\"No Rebate\")),TRUE,\"MI: Line Item \" & $A223),\"\")","v":""}]
[{"$f":"IF(Table_PI[[#This Row],[Hide:\nFormula Name]]<>\"\",MAX($A$2:A223)+1,\"\")","v":""},null,null,null,null,null,null,null,null,null,null,null,null,null,null,{"$f":"IFERROR(VLOOKUP(Table_PI[[#This Row],[Measure]],'Equipment Lookups'!$C$3:$D$23,2,FALSE),\"\")","v":""},{"$f":"IF(Table_PI[[#This Row],[Hide:\nFormula Name]]<>\"\",IFERROR(IF(MeasureCalc(Table_PI[[#This Row],[Hide:\nFormula Name]],Table_PI[[#This Row],[Quantity]],Table_PI[[#This Row],[List 1]],Table_PI[[#This Row],[List 2]],Table_PI[[#This Row],[List 3]],Table_PI[[#This Row],[Size]],Table_PI[[#This Row],[Input 1]],Table_PI[[#This Row],[Input 2]],Table_PI[[#This Row],[Input 3]],Table_PI[[#This Row],[Input 4]],'Customer Information'!$AR$12,1,ROW())>0,MeasureCalc(Table_PI[[#This Row],[Hide:\nFormula Name]],Table_PI[[#This Row],[Quantity]],Table_PI[[#This Row],[List 1]],Table_PI[[#This Row],[List 2]],Table_PI[[#This Row],[List 3]],Table_PI[[#This Row],[Size]],Table_PI[[#This Row],[Input 1]],Table_PI[[#This Row],[Input 2]],Table_PI[[#This Row],[Input 3]],Table_PI[[#This Row],[Input 4]],'Customer Information'!$AR$12,1,ROW()),\"No Rebate\"),\"No Rebate\"),0)","v":0},{"$f":"IF(Table_PI[[#This Row],[Hide:\nFormula Name]]<>\"\",IFERROR(IF(MeasureCalc(Table_PI[[#This Row],[Hide:\nFormula Name]],Table_PI[[#This Row],[Quantity]],Table_PI[[#This Row],[List 1]],Table_PI[[#This Row],[List 2]],Table_PI[[#This Row],[List 3]],Table_PI[[#This Row],[Size]],Table_PI[[#This Row],[Input 1]],Table_PI[[#This Row],[Input 2]],Table_PI[[#This Row],[Input 3]],Table_PI[[#This Row],[Input 4]],'Customer Information'!$AR$12,1,ROW())>0,MeasureCalc(Table_PI[[#This Row],[Hide:\nFormula Name]],Table_PI[[#This Row],[Quantity]],Table_PI[[#This Row],[List 1]],Table_PI[[#This Row],[List 2]],Table_PI[[#This Row],[List 3]],Table_PI[[#This Row],[Size]],Table_PI[[#This Row],[Input 1]],Table_PI[[#This Row],[Input 2]],Table_PI[[#This Row],[Input 3]],Table_PI[[#This Row],[Input 4]],'Customer Information'!$AR$12,2,ROW()),\"No Rebate\"),\"No Rebate\"),0)","v":0},{"$f":"IF(Table_PI[[#This Row],[Hide:\nFormula Name]]<>\"\",IFERROR(IF(MeasureCalc(Table_PI[[#This Row],[Hide:\nFormula Name]],Table_PI[[#This Row],[Quantity]],Table_PI[[#This Row],[List 1]],Table_PI[[#This Row],[List 2]],Table_PI[[#This Row],[List 3]],Table_PI[[#This Row],[Size]],Table_PI[[#This Row],[Input 1]],Table_PI[[#This Row],[Input 2]],Table_PI[[#This Row],[Input 3]],Table_PI[[#This Row],[Input 4]],'Customer Information'!$AR$12,1,ROW())>0,MeasureCalc(Table_PI[[#This Row],[Hide:\nFormula Name]],Table_PI[[#This Row],[Quantity]],Table_PI[[#This Row],[List 1]],Table_PI[[#This Row],[List 2]],Table_PI[[#This Row],[List 3]],Table_PI[[#This Row],[Size]],Table_PI[[#This Row],[Input 1]],Table_PI[[#This Row],[Input 2]],Table_PI[[#This Row],[Input 3]],Table_PI[[#This Row],[Input 4]],'Customer Information'!$AR$12,3,ROW()),\"No Rebate\"),\"No Rebate\"),0)","v":0},{"$f":"IF(Table_PI[[#This Row],[Hide:\nFormula Name]]<>\"\",IFERROR(IF(MeasureCalc(Table_PI[[#This Row],[Hide:\nFormula Name]],Table_PI[[#This Row],[Quantity]],Table_PI[[#This Row],[List 1]],Table_PI[[#This Row],[List 2]],Table_PI[[#This Row],[List 3]],Table_PI[[#This Row],[Size]],Table_PI[[#This Row],[Input 1]],Table_PI[[#This Row],[Input 2]],Table_PI[[#This Row],[Input 3]],Table_PI[[#This Row],[Input 4]],'Customer Information'!$AR$12,1,ROW())>0,MeasureCalc(Table_PI[[#This Row],[Hide:\nFormula Name]],Table_PI[[#This Row],[Quantity]],Table_PI[[#This Row],[List 1]],Table_PI[[#This Row],[List 2]],Table_PI[[#This Row],[List 3]],Table_PI[[#This Row],[Size]],Table_PI[[#This Row],[Input 1]],Table_PI[[#This Row],[Input 2]],Table_PI[[#This Row],[Input 3]],Table_PI[[#This Row],[Input 4]],'Customer Information'!$AR$12,4,ROW()),\"No Rebate\"),\"No Rebate\"),0)","v":0},{"$f":"IF(Table_PI[[#This Row],[Hide:\nFormula Name]]<>\"\",IFERROR(IF(MeasureCalc(Table_PI[[#This Row],[Hide:\nFormula Name]],Table_PI[[#This Row],[Quantity]],Table_PI[[#This Row],[List 1]],Table_PI[[#This Row],[List 2]],Table_PI[[#This Row],[List 3]],Table_PI[[#This Row],[Size]],Table_PI[[#This Row],[Input 1]],Table_PI[[#This Row],[Input 2]],Table_PI[[#This Row],[Input 3]],Table_PI[[#This Row],[Input 4]],'Customer Information'!$AR$12,1,ROW())>0,MeasureCalc(Table_PI[[#This Row],[Hide:\nFormula Name]],Table_PI[[#This Row],[Quantity]],Table_PI[[#This Row],[List 1]],Table_PI[[#This Row],[List 2]],Table_PI[[#This Row],[List 3]],Table_PI[[#This Row],[Size]],Table_PI[[#This Row],[Input 1]],Table_PI[[#This Row],[Input 2]],Table_PI[[#This Row],[Input 3]],Table_PI[[#This Row],[Input 4]],'Customer Information'!$AR$12,5,ROW()),\"No Rebate\"),\"No Rebate\"),0)","v":0},{"$f":"IF(Table_PI[[#This Row],[Hide:\nFormula Name]]<>\"\",IFERROR(IF(MeasureCalc(Table_PI[[#This Row],[Hide:\nFormula Name]],Table_PI[[#This Row],[Quantity]],Table_PI[[#This Row],[List 1]],Table_PI[[#This Row],[List 2]],Table_PI[[#This Row],[List 3]],Table_PI[[#This Row],[Size]],Table_PI[[#This Row],[Input 1]],Table_PI[[#This Row],[Input 2]],Table_PI[[#This Row],[Input 3]],Table_PI[[#This Row],[Input 4]],'Customer Information'!$AR$12,1,ROW())>0,MeasureCalc(Table_PI[[#This Row],[Hide:\nFormula Name]],Table_PI[[#This Row],[Quantity]],Table_PI[[#This Row],[List 1]],Table_PI[[#This Row],[List 2]],Table_PI[[#This Row],[List 3]],Table_PI[[#This Row],[Size]],Table_PI[[#This Row],[Input 1]],Table_PI[[#This Row],[Input 2]],Table_PI[[#This Row],[Input 3]],Table_PI[[#This Row],[Input 4]],'Customer Information'!$AR$12,6,ROW()),\"No Rebate\"),\"No Rebate\"),0)","v":0},{"$f":"IF(Table_PI[[#This Row],[Hide:\nFormula Name]]<>\"\",IFERROR(IF(MeasureCalc(Table_PI[[#This Row],[Hide:\nFormula Name]],Table_PI[[#This Row],[Quantity]],Table_PI[[#This Row],[List 1]],Table_PI[[#This Row],[List 2]],Table_PI[[#This Row],[List 3]],Table_PI[[#This Row],[Size]],Table_PI[[#This Row],[Input 1]],Table_PI[[#This Row],[Input 2]],Table_PI[[#This Row],[Input 3]],Table_PI[[#This Row],[Input 4]],'Customer Information'!$AR$12,1,ROW())>0,MeasureCalc(Table_PI[[#This Row],[Hide:\nFormula Name]],Table_PI[[#This Row],[Quantity]],Table_PI[[#This Row],[List 1]],Table_PI[[#This Row],[List 2]],Table_PI[[#This Row],[List 3]],Table_PI[[#This Row],[Size]],Table_PI[[#This Row],[Input 1]],Table_PI[[#This Row],[Input 2]],Table_PI[[#This Row],[Input 3]],Table_PI[[#This Row],[Input 4]],'Customer Information'!$AR$12,7,ROW()),\"No Rebate\"),\"No Rebate\"),0)","v":0},{"$f":"IF(Table_PI[[#This Row],[Hide:\nFormula Name]]<>\"\",IFERROR(IF(MeasureCalc(Table_PI[[#This Row],[Hide:\nFormula Name]],Table_PI[[#This Row],[Quantity]],Table_PI[[#This Row],[List 1]],Table_PI[[#This Row],[List 2]],Table_PI[[#This Row],[List 3]],Table_PI[[#This Row],[Size]],Table_PI[[#This Row],[Input 1]],Table_PI[[#This Row],[Input 2]],Table_PI[[#This Row],[Input 3]],Table_PI[[#This Row],[Input 4]],'Customer Information'!$AR$12,1,ROW())>0,MeasureCalc(Table_PI[[#This Row],[Hide:\nFormula Name]],Table_PI[[#This Row],[Quantity]],Table_PI[[#This Row],[List 1]],Table_PI[[#This Row],[List 2]],Table_PI[[#This Row],[List 3]],Table_PI[[#This Row],[Size]],Table_PI[[#This Row],[Input 1]],Table_PI[[#This Row],[Input 2]],Table_PI[[#This Row],[Input 3]],Table_PI[[#This Row],[Input 4]],'Customer Information'!$AR$12,8,ROW()),\"No Rebate\"),\"No Rebate\"),0)","v":0},{"$f":"IF(Table_PI[[#This Row],[Hide:\nFormula Name]]<>\"\",IF(AND(Table_PI[[#This Row],[Hide:\nFormula Name]]<>\"\",OR(Table_PI[[#This Row],[Rebate]]>0,Table_PI[[#This Row],[Rebate]]=\"No Rebate\")),TRUE,\"MI: Line Item \" & $A224),\"\")","v":""}]
[{"$f":"IF(Table_PI[[#This Row],[Hide:\nFormula Name]]<>\"\",MAX($A$2:A224)+1,\"\")","v":""},null,null,null,null,null,null,null,null,null,null,null,null,null,null,{"$f":"IFERROR(VLOOKUP(Table_PI[[#This Row],[Measure]],'Equipment Lookups'!$C$3:$D$23,2,FALSE),\"\")","v":""},{"$f":"IF(Table_PI[[#This Row],[Hide:\nFormula Name]]<>\"\",IFERROR(IF(MeasureCalc(Table_PI[[#This Row],[Hide:\nFormula Name]],Table_PI[[#This Row],[Quantity]],Table_PI[[#This Row],[List 1]],Table_PI[[#This Row],[List 2]],Table_PI[[#This Row],[List 3]],Table_PI[[#This Row],[Size]],Table_PI[[#This Row],[Input 1]],Table_PI[[#This Row],[Input 2]],Table_PI[[#This Row],[Input 3]],Table_PI[[#This Row],[Input 4]],'Customer Information'!$AR$12,1,ROW())>0,MeasureCalc(Table_PI[[#This Row],[Hide:\nFormula Name]],Table_PI[[#This Row],[Quantity]],Table_PI[[#This Row],[List 1]],Table_PI[[#This Row],[List 2]],Table_PI[[#This Row],[List 3]],Table_PI[[#This Row],[Size]],Table_PI[[#This Row],[Input 1]],Table_PI[[#This Row],[Input 2]],Table_PI[[#This Row],[Input 3]],Table_PI[[#This Row],[Input 4]],'Customer Information'!$AR$12,1,ROW()),\"No Rebate\"),\"No Rebate\"),0)","v":0},{"$f":"IF(Table_PI[[#This Row],[Hide:\nFormula Name]]<>\"\",IFERROR(IF(MeasureCalc(Table_PI[[#This Row],[Hide:\nFormula Name]],Table_PI[[#This Row],[Quantity]],Table_PI[[#This Row],[List 1]],Table_PI[[#This Row],[List 2]],Table_PI[[#This Row],[List 3]],Table_PI[[#This Row],[Size]],Table_PI[[#This Row],[Input 1]],Table_PI[[#This Row],[Input 2]],Table_PI[[#This Row],[Input 3]],Table_PI[[#This Row],[Input 4]],'Customer Information'!$AR$12,1,ROW())>0,MeasureCalc(Table_PI[[#This Row],[Hide:\nFormula Name]],Table_PI[[#This Row],[Quantity]],Table_PI[[#This Row],[List 1]],Table_PI[[#This Row],[List 2]],Table_PI[[#This Row],[List 3]],Table_PI[[#This Row],[Size]],Table_PI[[#This Row],[Input 1]],Table_PI[[#This Row],[Input 2]],Table_PI[[#This Row],[Input 3]],Table_PI[[#This Row],[Input 4]],'Customer Information'!$AR$12,2,ROW()),\"No Rebate\"),\"No Rebate\"),0)","v":0},{"$f":"IF(Table_PI[[#This Row],[Hide:\nFormula Name]]<>\"\",IFERROR(IF(MeasureCalc(Table_PI[[#This Row],[Hide:\nFormula Name]],Table_PI[[#This Row],[Quantity]],Table_PI[[#This Row],[List 1]],Table_PI[[#This Row],[List 2]],Table_PI[[#This Row],[List 3]],Table_PI[[#This Row],[Size]],Table_PI[[#This Row],[Input 1]],Table_PI[[#This Row],[Input 2]],Table_PI[[#This Row],[Input 3]],Table_PI[[#This Row],[Input 4]],'Customer Information'!$AR$12,1,ROW())>0,MeasureCalc(Table_PI[[#This Row],[Hide:\nFormula Name]],Table_PI[[#This Row],[Quantity]],Table_PI[[#This Row],[List 1]],Table_PI[[#This Row],[List 2]],Table_PI[[#This Row],[List 3]],Table_PI[[#This Row],[Size]],Table_PI[[#This Row],[Input 1]],Table_PI[[#This Row],[Input 2]],Table_PI[[#This Row],[Input 3]],Table_PI[[#This Row],[Input 4]],'Customer Information'!$AR$12,3,ROW()),\"No Rebate\"),\"No Rebate\"),0)","v":0},{"$f":"IF(Table_PI[[#This Row],[Hide:\nFormula Name]]<>\"\",IFERROR(IF(MeasureCalc(Table_PI[[#This Row],[Hide:\nFormula Name]],Table_PI[[#This Row],[Quantity]],Table_PI[[#This Row],[List 1]],Table_PI[[#This Row],[List 2]],Table_PI[[#This Row],[List 3]],Table_PI[[#This Row],[Size]],Table_PI[[#This Row],[Input 1]],Table_PI[[#This Row],[Input 2]],Table_PI[[#This Row],[Input 3]],Table_PI[[#This Row],[Input 4]],'Customer Information'!$AR$12,1,ROW())>0,MeasureCalc(Table_PI[[#This Row],[Hide:\nFormula Name]],Table_PI[[#This Row],[Quantity]],Table_PI[[#This Row],[List 1]],Table_PI[[#This Row],[List 2]],Table_PI[[#This Row],[List 3]],Table_PI[[#This Row],[Size]],Table_PI[[#This Row],[Input 1]],Table_PI[[#This Row],[Input 2]],Table_PI[[#This Row],[Input 3]],Table_PI[[#This Row],[Input 4]],'Customer Information'!$AR$12,4,ROW()),\"No Rebate\"),\"No Rebate\"),0)","v":0},{"$f":"IF(Table_PI[[#This Row],[Hide:\nFormula Name]]<>\"\",IFERROR(IF(MeasureCalc(Table_PI[[#This Row],[Hide:\nFormula Name]],Table_PI[[#This Row],[Quantity]],Table_PI[[#This Row],[List 1]],Table_PI[[#This Row],[List 2]],Table_PI[[#This Row],[List 3]],Table_PI[[#This Row],[Size]],Table_PI[[#This Row],[Input 1]],Table_PI[[#This Row],[Input 2]],Table_PI[[#This Row],[Input 3]],Table_PI[[#This Row],[Input 4]],'Customer Information'!$AR$12,1,ROW())>0,MeasureCalc(Table_PI[[#This Row],[Hide:\nFormula Name]],Table_PI[[#This Row],[Quantity]],Table_PI[[#This Row],[List 1]],Table_PI[[#This Row],[List 2]],Table_PI[[#This Row],[List 3]],Table_PI[[#This Row],[Size]],Table_PI[[#This Row],[Input 1]],Table_PI[[#This Row],[Input 2]],Table_PI[[#This Row],[Input 3]],Table_PI[[#This Row],[Input 4]],'Customer Information'!$AR$12,5,ROW()),\"No Rebate\"),\"No Rebate\"),0)","v":0},{"$f":"IF(Table_PI[[#This Row],[Hide:\nFormula Name]]<>\"\",IFERROR(IF(MeasureCalc(Table_PI[[#This Row],[Hide:\nFormula Name]],Table_PI[[#This Row],[Quantity]],Table_PI[[#This Row],[List 1]],Table_PI[[#This Row],[List 2]],Table_PI[[#This Row],[List 3]],Table_PI[[#This Row],[Size]],Table_PI[[#This Row],[Input 1]],Table_PI[[#This Row],[Input 2]],Table_PI[[#This Row],[Input 3]],Table_PI[[#This Row],[Input 4]],'Customer Information'!$AR$12,1,ROW())>0,MeasureCalc(Table_PI[[#This Row],[Hide:\nFormula Name]],Table_PI[[#This Row],[Quantity]],Table_PI[[#This Row],[List 1]],Table_PI[[#This Row],[List 2]],Table_PI[[#This Row],[List 3]],Table_PI[[#This Row],[Size]],Table_PI[[#This Row],[Input 1]],Table_PI[[#This Row],[Input 2]],Table_PI[[#This Row],[Input 3]],Table_PI[[#This Row],[Input 4]],'Customer Information'!$AR$12,6,ROW()),\"No Rebate\"),\"No Rebate\"),0)","v":0},{"$f":"IF(Table_PI[[#This Row],[Hide:\nFormula Name]]<>\"\",IFERROR(IF(MeasureCalc(Table_PI[[#This Row],[Hide:\nFormula Name]],Table_PI[[#This Row],[Quantity]],Table_PI[[#This Row],[List 1]],Table_PI[[#This Row],[List 2]],Table_PI[[#This Row],[List 3]],Table_PI[[#This Row],[Size]],Table_PI[[#This Row],[Input 1]],Table_PI[[#This Row],[Input 2]],Table_PI[[#This Row],[Input 3]],Table_PI[[#This Row],[Input 4]],'Customer Information'!$AR$12,1,ROW())>0,MeasureCalc(Table_PI[[#This Row],[Hide:\nFormula Name]],Table_PI[[#This Row],[Quantity]],Table_PI[[#This Row],[List 1]],Table_PI[[#This Row],[List 2]],Table_PI[[#This Row],[List 3]],Table_PI[[#This Row],[Size]],Table_PI[[#This Row],[Input 1]],Table_PI[[#This Row],[Input 2]],Table_PI[[#This Row],[Input 3]],Table_PI[[#This Row],[Input 4]],'Customer Information'!$AR$12,7,ROW()),\"No Rebate\"),\"No Rebate\"),0)","v":0},{"$f":"IF(Table_PI[[#This Row],[Hide:\nFormula Name]]<>\"\",IFERROR(IF(MeasureCalc(Table_PI[[#This Row],[Hide:\nFormula Name]],Table_PI[[#This Row],[Quantity]],Table_PI[[#This Row],[List 1]],Table_PI[[#This Row],[List 2]],Table_PI[[#This Row],[List 3]],Table_PI[[#This Row],[Size]],Table_PI[[#This Row],[Input 1]],Table_PI[[#This Row],[Input 2]],Table_PI[[#This Row],[Input 3]],Table_PI[[#This Row],[Input 4]],'Customer Information'!$AR$12,1,ROW())>0,MeasureCalc(Table_PI[[#This Row],[Hide:\nFormula Name]],Table_PI[[#This Row],[Quantity]],Table_PI[[#This Row],[List 1]],Table_PI[[#This Row],[List 2]],Table_PI[[#This Row],[List 3]],Table_PI[[#This Row],[Size]],Table_PI[[#This Row],[Input 1]],Table_PI[[#This Row],[Input 2]],Table_PI[[#This Row],[Input 3]],Table_PI[[#This Row],[Input 4]],'Customer Information'!$AR$12,8,ROW()),\"No Rebate\"),\"No Rebate\"),0)","v":0},{"$f":"IF(Table_PI[[#This Row],[Hide:\nFormula Name]]<>\"\",IF(AND(Table_PI[[#This Row],[Hide:\nFormula Name]]<>\"\",OR(Table_PI[[#This Row],[Rebate]]>0,Table_PI[[#This Row],[Rebate]]=\"No Rebate\")),TRUE,\"MI: Line Item \" & $A225),\"\")","v":""}]
[{"$f":"IF(Table_PI[[#This Row],[Hide:\nFormula Name]]<>\"\",MAX($A$2:A225)+1,\"\")","v":""},null,null,null,null,null,null,null,null,null,null,null,null,null,null,{"$f":"IFERROR(VLOOKUP(Table_PI[[#This Row],[Measure]],'Equipment Lookups'!$C$3:$D$23,2,FALSE),\"\")","v":""},{"$f":"IF(Table_PI[[#This Row],[Hide:\nFormula Name]]<>\"\",IFERROR(IF(MeasureCalc(Table_PI[[#This Row],[Hide:\nFormula Name]],Table_PI[[#This Row],[Quantity]],Table_PI[[#This Row],[List 1]],Table_PI[[#This Row],[List 2]],Table_PI[[#This Row],[List 3]],Table_PI[[#This Row],[Size]],Table_PI[[#This Row],[Input 1]],Table_PI[[#This Row],[Input 2]],Table_PI[[#This Row],[Input 3]],Table_PI[[#This Row],[Input 4]],'Customer Information'!$AR$12,1,ROW())>0,MeasureCalc(Table_PI[[#This Row],[Hide:\nFormula Name]],Table_PI[[#This Row],[Quantity]],Table_PI[[#This Row],[List 1]],Table_PI[[#This Row],[List 2]],Table_PI[[#This Row],[List 3]],Table_PI[[#This Row],[Size]],Table_PI[[#This Row],[Input 1]],Table_PI[[#This Row],[Input 2]],Table_PI[[#This Row],[Input 3]],Table_PI[[#This Row],[Input 4]],'Customer Information'!$AR$12,1,ROW()),\"No Rebate\"),\"No Rebate\"),0)","v":0},{"$f":"IF(Table_PI[[#This Row],[Hide:\nFormula Name]]<>\"\",IFERROR(IF(MeasureCalc(Table_PI[[#This Row],[Hide:\nFormula Name]],Table_PI[[#This Row],[Quantity]],Table_PI[[#This Row],[List 1]],Table_PI[[#This Row],[List 2]],Table_PI[[#This Row],[List 3]],Table_PI[[#This Row],[Size]],Table_PI[[#This Row],[Input 1]],Table_PI[[#This Row],[Input 2]],Table_PI[[#This Row],[Input 3]],Table_PI[[#This Row],[Input 4]],'Customer Information'!$AR$12,1,ROW())>0,MeasureCalc(Table_PI[[#This Row],[Hide:\nFormula Name]],Table_PI[[#This Row],[Quantity]],Table_PI[[#This Row],[List 1]],Table_PI[[#This Row],[List 2]],Table_PI[[#This Row],[List 3]],Table_PI[[#This Row],[Size]],Table_PI[[#This Row],[Input 1]],Table_PI[[#This Row],[Input 2]],Table_PI[[#This Row],[Input 3]],Table_PI[[#This Row],[Input 4]],'Customer Information'!$AR$12,2,ROW()),\"No Rebate\"),\"No Rebate\"),0)","v":0},{"$f":"IF(Table_PI[[#This Row],[Hide:\nFormula Name]]<>\"\",IFERROR(IF(MeasureCalc(Table_PI[[#This Row],[Hide:\nFormula Name]],Table_PI[[#This Row],[Quantity]],Table_PI[[#This Row],[List 1]],Table_PI[[#This Row],[List 2]],Table_PI[[#This Row],[List 3]],Table_PI[[#This Row],[Size]],Table_PI[[#This Row],[Input 1]],Table_PI[[#This Row],[Input 2]],Table_PI[[#This Row],[Input 3]],Table_PI[[#This Row],[Input 4]],'Customer Information'!$AR$12,1,ROW())>0,MeasureCalc(Table_PI[[#This Row],[Hide:\nFormula Name]],Table_PI[[#This Row],[Quantity]],Table_PI[[#This Row],[List 1]],Table_PI[[#This Row],[List 2]],Table_PI[[#This Row],[List 3]],Table_PI[[#This Row],[Size]],Table_PI[[#This Row],[Input 1]],Table_PI[[#This Row],[Input 2]],Table_PI[[#This Row],[Input 3]],Table_PI[[#This Row],[Input 4]],'Customer Information'!$AR$12,3,ROW()),\"No Rebate\"),\"No Rebate\"),0)","v":0},{"$f":"IF(Table_PI[[#This Row],[Hide:\nFormula Name]]<>\"\",IFERROR(IF(MeasureCalc(Table_PI[[#This Row],[Hide:\nFormula Name]],Table_PI[[#This Row],[Quantity]],Table_PI[[#This Row],[List 1]],Table_PI[[#This Row],[List 2]],Table_PI[[#This Row],[List 3]],Table_PI[[#This Row],[Size]],Table_PI[[#This Row],[Input 1]],Table_PI[[#This Row],[Input 2]],Table_PI[[#This Row],[Input 3]],Table_PI[[#This Row],[Input 4]],'Customer Information'!$AR$12,1,ROW())>0,MeasureCalc(Table_PI[[#This Row],[Hide:\nFormula Name]],Table_PI[[#This Row],[Quantity]],Table_PI[[#This Row],[List 1]],Table_PI[[#This Row],[List 2]],Table_PI[[#This Row],[List 3]],Table_PI[[#This Row],[Size]],Table_PI[[#This Row],[Input 1]],Table_PI[[#This Row],[Input 2]],Table_PI[[#This Row],[Input 3]],Table_PI[[#This Row],[Input 4]],'Customer Information'!$AR$12,4,ROW()),\"No Rebate\"),\"No Rebate\"),0)","v":0},{"$f":"IF(Table_PI[[#This Row],[Hide:\nFormula Name]]<>\"\",IFERROR(IF(MeasureCalc(Table_PI[[#This Row],[Hide:\nFormula Name]],Table_PI[[#This Row],[Quantity]],Table_PI[[#This Row],[List 1]],Table_PI[[#This Row],[List 2]],Table_PI[[#This Row],[List 3]],Table_PI[[#This Row],[Size]],Table_PI[[#This Row],[Input 1]],Table_PI[[#This Row],[Input 2]],Table_PI[[#This Row],[Input 3]],Table_PI[[#This Row],[Input 4]],'Customer Information'!$AR$12,1,ROW())>0,MeasureCalc(Table_PI[[#This Row],[Hide:\nFormula Name]],Table_PI[[#This Row],[Quantity]],Table_PI[[#This Row],[List 1]],Table_PI[[#This Row],[List 2]],Table_PI[[#This Row],[List 3]],Table_PI[[#This Row],[Size]],Table_PI[[#This Row],[Input 1]],Table_PI[[#This Row],[Input 2]],Table_PI[[#This Row],[Input 3]],Table_PI[[#This Row],[Input 4]],'Customer Information'!$AR$12,5,ROW()),\"No Rebate\"),\"No Rebate\"),0)","v":0},{"$f":"IF(Table_PI[[#This Row],[Hide:\nFormula Name]]<>\"\",IFERROR(IF(MeasureCalc(Table_PI[[#This Row],[Hide:\nFormula Name]],Table_PI[[#This Row],[Quantity]],Table_PI[[#This Row],[List 1]],Table_PI[[#This Row],[List 2]],Table_PI[[#This Row],[List 3]],Table_PI[[#This Row],[Size]],Table_PI[[#This Row],[Input 1]],Table_PI[[#This Row],[Input 2]],Table_PI[[#This Row],[Input 3]],Table_PI[[#This Row],[Input 4]],'Customer Information'!$AR$12,1,ROW())>0,MeasureCalc(Table_PI[[#This Row],[Hide:\nFormula Name]],Table_PI[[#This Row],[Quantity]],Table_PI[[#This Row],[List 1]],Table_PI[[#This Row],[List 2]],Table_PI[[#This Row],[List 3]],Table_PI[[#This Row],[Size]],Table_PI[[#This Row],[Input 1]],Table_PI[[#This Row],[Input 2]],Table_PI[[#This Row],[Input 3]],Table_PI[[#This Row],[Input 4]],'Customer Information'!$AR$12,6,ROW()),\"No Rebate\"),\"No Rebate\"),0)","v":0},{"$f":"IF(Table_PI[[#This Row],[Hide:\nFormula Name]]<>\"\",IFERROR(IF(MeasureCalc(Table_PI[[#This Row],[Hide:\nFormula Name]],Table_PI[[#This Row],[Quantity]],Table_PI[[#This Row],[List 1]],Table_PI[[#This Row],[List 2]],Table_PI[[#This Row],[List 3]],Table_PI[[#This Row],[Size]],Table_PI[[#This Row],[Input 1]],Table_PI[[#This Row],[Input 2]],Table_PI[[#This Row],[Input 3]],Table_PI[[#This Row],[Input 4]],'Customer Information'!$AR$12,1,ROW())>0,MeasureCalc(Table_PI[[#This Row],[Hide:\nFormula Name]],Table_PI[[#This Row],[Quantity]],Table_PI[[#This Row],[List 1]],Table_PI[[#This Row],[List 2]],Table_PI[[#This Row],[List 3]],Table_PI[[#This Row],[Size]],Table_PI[[#This Row],[Input 1]],Table_PI[[#This Row],[Input 2]],Table_PI[[#This Row],[Input 3]],Table_PI[[#This Row],[Input 4]],'Customer Information'!$AR$12,7,ROW()),\"No Rebate\"),\"No Rebate\"),0)","v":0},{"$f":"IF(Table_PI[[#This Row],[Hide:\nFormula Name]]<>\"\",IFERROR(IF(MeasureCalc(Table_PI[[#This Row],[Hide:\nFormula Name]],Table_PI[[#This Row],[Quantity]],Table_PI[[#This Row],[List 1]],Table_PI[[#This Row],[List 2]],Table_PI[[#This Row],[List 3]],Table_PI[[#This Row],[Size]],Table_PI[[#This Row],[Input 1]],Table_PI[[#This Row],[Input 2]],Table_PI[[#This Row],[Input 3]],Table_PI[[#This Row],[Input 4]],'Customer Information'!$AR$12,1,ROW())>0,MeasureCalc(Table_PI[[#This Row],[Hide:\nFormula Name]],Table_PI[[#This Row],[Quantity]],Table_PI[[#This Row],[List 1]],Table_PI[[#This Row],[List 2]],Table_PI[[#This Row],[List 3]],Table_PI[[#This Row],[Size]],Table_PI[[#This Row],[Input 1]],Table_PI[[#This Row],[Input 2]],Table_PI[[#This Row],[Input 3]],Table_PI[[#This Row],[Input 4]],'Customer Information'!$AR$12,8,ROW()),\"No Rebate\"),\"No Rebate\"),0)","v":0},{"$f":"IF(Table_PI[[#This Row],[Hide:\nFormula Name]]<>\"\",IF(AND(Table_PI[[#This Row],[Hide:\nFormula Name]]<>\"\",OR(Table_PI[[#This Row],[Rebate]]>0,Table_PI[[#This Row],[Rebate]]=\"No Rebate\")),TRUE,\"MI: Line Item \" & $A226),\"\")","v":""}]
[{"$f":"IF(Table_PI[[#This Row],[Hide:\nFormula Name]]<>\"\",MAX($A$2:A226)+1,\"\")","v":""},null,null,null,null,null,null,null,null,null,null,null,null,null,null,{"$f":"IFERROR(VLOOKUP(Table_PI[[#This Row],[Measure]],'Equipment Lookups'!$C$3:$D$23,2,FALSE),\"\")","v":""},{"$f":"IF(Table_PI[[#This Row],[Hide:\nFormula Name]]<>\"\",IFERROR(IF(MeasureCalc(Table_PI[[#This Row],[Hide:\nFormula Name]],Table_PI[[#This Row],[Quantity]],Table_PI[[#This Row],[List 1]],Table_PI[[#This Row],[List 2]],Table_PI[[#This Row],[List 3]],Table_PI[[#This Row],[Size]],Table_PI[[#This Row],[Input 1]],Table_PI[[#This Row],[Input 2]],Table_PI[[#This Row],[Input 3]],Table_PI[[#This Row],[Input 4]],'Customer Information'!$AR$12,1,ROW())>0,MeasureCalc(Table_PI[[#This Row],[Hide:\nFormula Name]],Table_PI[[#This Row],[Quantity]],Table_PI[[#This Row],[List 1]],Table_PI[[#This Row],[List 2]],Table_PI[[#This Row],[List 3]],Table_PI[[#This Row],[Size]],Table_PI[[#This Row],[Input 1]],Table_PI[[#This Row],[Input 2]],Table_PI[[#This Row],[Input 3]],Table_PI[[#This Row],[Input 4]],'Customer Information'!$AR$12,1,ROW()),\"No Rebate\"),\"No Rebate\"),0)","v":0},{"$f":"IF(Table_PI[[#This Row],[Hide:\nFormula Name]]<>\"\",IFERROR(IF(MeasureCalc(Table_PI[[#This Row],[Hide:\nFormula Name]],Table_PI[[#This Row],[Quantity]],Table_PI[[#This Row],[List 1]],Table_PI[[#This Row],[List 2]],Table_PI[[#This Row],[List 3]],Table_PI[[#This Row],[Size]],Table_PI[[#This Row],[Input 1]],Table_PI[[#This Row],[Input 2]],Table_PI[[#This Row],[Input 3]],Table_PI[[#This Row],[Input 4]],'Customer Information'!$AR$12,1,ROW())>0,MeasureCalc(Table_PI[[#This Row],[Hide:\nFormula Name]],Table_PI[[#This Row],[Quantity]],Table_PI[[#This Row],[List 1]],Table_PI[[#This Row],[List 2]],Table_PI[[#This Row],[List 3]],Table_PI[[#This Row],[Size]],Table_PI[[#This Row],[Input 1]],Table_PI[[#This Row],[Input 2]],Table_PI[[#This Row],[Input 3]],Table_PI[[#This Row],[Input 4]],'Customer Information'!$AR$12,2,ROW()),\"No Rebate\"),\"No Rebate\"),0)","v":0},{"$f":"IF(Table_PI[[#This Row],[Hide:\nFormula Name]]<>\"\",IFERROR(IF(MeasureCalc(Table_PI[[#This Row],[Hide:\nFormula Name]],Table_PI[[#This Row],[Quantity]],Table_PI[[#This Row],[List 1]],Table_PI[[#This Row],[List 2]],Table_PI[[#This Row],[List 3]],Table_PI[[#This Row],[Size]],Table_PI[[#This Row],[Input 1]],Table_PI[[#This Row],[Input 2]],Table_PI[[#This Row],[Input 3]],Table_PI[[#This Row],[Input 4]],'Customer Information'!$AR$12,1,ROW())>0,MeasureCalc(Table_PI[[#This Row],[Hide:\nFormula Name]],Table_PI[[#This Row],[Quantity]],Table_PI[[#This Row],[List 1]],Table_PI[[#This Row],[List 2]],Table_PI[[#This Row],[List 3]],Table_PI[[#This Row],[Size]],Table_PI[[#This Row],[Input 1]],Table_PI[[#This Row],[Input 2]],Table_PI[[#This Row],[Input 3]],Table_PI[[#This Row],[Input 4]],'Customer Information'!$AR$12,3,ROW()),\"No Rebate\"),\"No Rebate\"),0)","v":0},{"$f":"IF(Table_PI[[#This Row],[Hide:\nFormula Name]]<>\"\",IFERROR(IF(MeasureCalc(Table_PI[[#This Row],[Hide:\nFormula Name]],Table_PI[[#This Row],[Quantity]],Table_PI[[#This Row],[List 1]],Table_PI[[#This Row],[List 2]],Table_PI[[#This Row],[List 3]],Table_PI[[#This Row],[Size]],Table_PI[[#This Row],[Input 1]],Table_PI[[#This Row],[Input 2]],Table_PI[[#This Row],[Input 3]],Table_PI[[#This Row],[Input 4]],'Customer Information'!$AR$12,1,ROW())>0,MeasureCalc(Table_PI[[#This Row],[Hide:\nFormula Name]],Table_PI[[#This Row],[Quantity]],Table_PI[[#This Row],[List 1]],Table_PI[[#This Row],[List 2]],Table_PI[[#This Row],[List 3]],Table_PI[[#This Row],[Size]],Table_PI[[#This Row],[Input 1]],Table_PI[[#This Row],[Input 2]],Table_PI[[#This Row],[Input 3]],Table_PI[[#This Row],[Input 4]],'Customer Information'!$AR$12,4,ROW()),\"No Rebate\"),\"No Rebate\"),0)","v":0},{"$f":"IF(Table_PI[[#This Row],[Hide:\nFormula Name]]<>\"\",IFERROR(IF(MeasureCalc(Table_PI[[#This Row],[Hide:\nFormula Name]],Table_PI[[#This Row],[Quantity]],Table_PI[[#This Row],[List 1]],Table_PI[[#This Row],[List 2]],Table_PI[[#This Row],[List 3]],Table_PI[[#This Row],[Size]],Table_PI[[#This Row],[Input 1]],Table_PI[[#This Row],[Input 2]],Table_PI[[#This Row],[Input 3]],Table_PI[[#This Row],[Input 4]],'Customer Information'!$AR$12,1,ROW())>0,MeasureCalc(Table_PI[[#This Row],[Hide:\nFormula Name]],Table_PI[[#This Row],[Quantity]],Table_PI[[#This Row],[List 1]],Table_PI[[#This Row],[List 2]],Table_PI[[#This Row],[List 3]],Table_PI[[#This Row],[Size]],Table_PI[[#This Row],[Input 1]],Table_PI[[#This Row],[Input 2]],Table_PI[[#This Row],[Input 3]],Table_PI[[#This Row],[Input 4]],'Customer Information'!$AR$12,5,ROW()),\"No Rebate\"),\"No Rebate\"),0)","v":0},{"$f":"IF(Table_PI[[#This Row],[Hide:\nFormula Name]]<>\"\",IFERROR(IF(MeasureCalc(Table_PI[[#This Row],[Hide:\nFormula Name]],Table_PI[[#This Row],[Quantity]],Table_PI[[#This Row],[List 1]],Table_PI[[#This Row],[List 2]],Table_PI[[#This Row],[List 3]],Table_PI[[#This Row],[Size]],Table_PI[[#This Row],[Input 1]],Table_PI[[#This Row],[Input 2]],Table_PI[[#This Row],[Input 3]],Table_PI[[#This Row],[Input 4]],'Customer Information'!$AR$12,1,ROW())>0,MeasureCalc(Table_PI[[#This Row],[Hide:\nFormula Name]],Table_PI[[#This Row],[Quantity]],Table_PI[[#This Row],[List 1]],Table_PI[[#This Row],[List 2]],Table_PI[[#This Row],[List 3]],Table_PI[[#This Row],[Size]],Table_PI[[#This Row],[Input 1]],Table_PI[[#This Row],[Input 2]],Table_PI[[#This Row],[Input 3]],Table_PI[[#This Row],[Input 4]],'Customer Information'!$AR$12,6,ROW()),\"No Rebate\"),\"No Rebate\"),0)","v":0},{"$f":"IF(Table_PI[[#This Row],[Hide:\nFormula Name]]<>\"\",IFERROR(IF(MeasureCalc(Table_PI[[#This Row],[Hide:\nFormula Name]],Table_PI[[#This Row],[Quantity]],Table_PI[[#This Row],[List 1]],Table_PI[[#This Row],[List 2]],Table_PI[[#This Row],[List 3]],Table_PI[[#This Row],[Size]],Table_PI[[#This Row],[Input 1]],Table_PI[[#This Row],[Input 2]],Table_PI[[#This Row],[Input 3]],Table_PI[[#This Row],[Input 4]],'Customer Information'!$AR$12,1,ROW())>0,MeasureCalc(Table_PI[[#This Row],[Hide:\nFormula Name]],Table_PI[[#This Row],[Quantity]],Table_PI[[#This Row],[List 1]],Table_PI[[#This Row],[List 2]],Table_PI[[#This Row],[List 3]],Table_PI[[#This Row],[Size]],Table_PI[[#This Row],[Input 1]],Table_PI[[#This Row],[Input 2]],Table_PI[[#This Row],[Input 3]],Table_PI[[#This Row],[Input 4]],'Customer Information'!$AR$12,7,ROW()),\"No Rebate\"),\"No Rebate\"),0)","v":0},{"$f":"IF(Table_PI[[#This Row],[Hide:\nFormula Name]]<>\"\",IFERROR(IF(MeasureCalc(Table_PI[[#This Row],[Hide:\nFormula Name]],Table_PI[[#This Row],[Quantity]],Table_PI[[#This Row],[List 1]],Table_PI[[#This Row],[List 2]],Table_PI[[#This Row],[List 3]],Table_PI[[#This Row],[Size]],Table_PI[[#This Row],[Input 1]],Table_PI[[#This Row],[Input 2]],Table_PI[[#This Row],[Input 3]],Table_PI[[#This Row],[Input 4]],'Customer Information'!$AR$12,1,ROW())>0,MeasureCalc(Table_PI[[#This Row],[Hide:\nFormula Name]],Table_PI[[#This Row],[Quantity]],Table_PI[[#This Row],[List 1]],Table_PI[[#This Row],[List 2]],Table_PI[[#This Row],[List 3]],Table_PI[[#This Row],[Size]],Table_PI[[#This Row],[Input 1]],Table_PI[[#This Row],[Input 2]],Table_PI[[#This Row],[Input 3]],Table_PI[[#This Row],[Input 4]],'Customer Information'!$AR$12,8,ROW()),\"No Rebate\"),\"No Rebate\"),0)","v":0},{"$f":"IF(Table_PI[[#This Row],[Hide:\nFormula Name]]<>\"\",IF(AND(Table_PI[[#This Row],[Hide:\nFormula Name]]<>\"\",OR(Table_PI[[#This Row],[Rebate]]>0,Table_PI[[#This Row],[Rebate]]=\"No Rebate\")),TRUE,\"MI: Line Item \" & $A227),\"\")","v":""}]
[{"$f":"IF(Table_PI[[#This Row],[Hide:\nFormula Name]]<>\"\",MAX($A$2:A227)+1,\"\")","v":""},null,null,null,null,null,null,null,null,null,null,null,null,null,null,{"$f":"IFERROR(VLOOKUP(Table_PI[[#This Row],[Measure]],'Equipment Lookups'!$C$3:$D$23,2,FALSE),\"\")","v":""},{"$f":"IF(Table_PI[[#This Row],[Hide:\nFormula Name]]<>\"\",IFERROR(IF(MeasureCalc(Table_PI[[#This Row],[Hide:\nFormula Name]],Table_PI[[#This Row],[Quantity]],Table_PI[[#This Row],[List 1]],Table_PI[[#This Row],[List 2]],Table_PI[[#This Row],[List 3]],Table_PI[[#This Row],[Size]],Table_PI[[#This Row],[Input 1]],Table_PI[[#This Row],[Input 2]],Table_PI[[#This Row],[Input 3]],Table_PI[[#This Row],[Input 4]],'Customer Information'!$AR$12,1,ROW())>0,MeasureCalc(Table_PI[[#This Row],[Hide:\nFormula Name]],Table_PI[[#This Row],[Quantity]],Table_PI[[#This Row],[List 1]],Table_PI[[#This Row],[List 2]],Table_PI[[#This Row],[List 3]],Table_PI[[#This Row],[Size]],Table_PI[[#This Row],[Input 1]],Table_PI[[#This Row],[Input 2]],Table_PI[[#This Row],[Input 3]],Table_PI[[#This Row],[Input 4]],'Customer Information'!$AR$12,1,ROW()),\"No Rebate\"),\"No Rebate\"),0)","v":0},{"$f":"IF(Table_PI[[#This Row],[Hide:\nFormula Name]]<>\"\",IFERROR(IF(MeasureCalc(Table_PI[[#This Row],[Hide:\nFormula Name]],Table_PI[[#This Row],[Quantity]],Table_PI[[#This Row],[List 1]],Table_PI[[#This Row],[List 2]],Table_PI[[#This Row],[List 3]],Table_PI[[#This Row],[Size]],Table_PI[[#This Row],[Input 1]],Table_PI[[#This Row],[Input 2]],Table_PI[[#This Row],[Input 3]],Table_PI[[#This Row],[Input 4]],'Customer Information'!$AR$12,1,ROW())>0,MeasureCalc(Table_PI[[#This Row],[Hide:\nFormula Name]],Table_PI[[#This Row],[Quantity]],Table_PI[[#This Row],[List 1]],Table_PI[[#This Row],[List 2]],Table_PI[[#This Row],[List 3]],Table_PI[[#This Row],[Size]],Table_PI[[#This Row],[Input 1]],Table_PI[[#This Row],[Input 2]],Table_PI[[#This Row],[Input 3]],Table_PI[[#This Row],[Input 4]],'Customer Information'!$AR$12,2,ROW()),\"No Rebate\"),\"No Rebate\"),0)","v":0},{"$f":"IF(Table_PI[[#This Row],[Hide:\nFormula Name]]<>\"\",IFERROR(IF(MeasureCalc(Table_PI[[#This Row],[Hide:\nFormula Name]],Table_PI[[#This Row],[Quantity]],Table_PI[[#This Row],[List 1]],Table_PI[[#This Row],[List 2]],Table_PI[[#This Row],[List 3]],Table_PI[[#This Row],[Size]],Table_PI[[#This Row],[Input 1]],Table_PI[[#This Row],[Input 2]],Table_PI[[#This Row],[Input 3]],Table_PI[[#This Row],[Input 4]],'Customer Information'!$AR$12,1,ROW())>0,MeasureCalc(Table_PI[[#This Row],[Hide:\nFormula Name]],Table_PI[[#This Row],[Quantity]],Table_PI[[#This Row],[List 1]],Table_PI[[#This Row],[List 2]],Table_PI[[#This Row],[List 3]],Table_PI[[#This Row],[Size]],Table_PI[[#This Row],[Input 1]],Table_PI[[#This Row],[Input 2]],Table_PI[[#This Row],[Input 3]],Table_PI[[#This Row],[Input 4]],'Customer Information'!$AR$12,3,ROW()),\"No Rebate\"),\"No Rebate\"),0)","v":0},{"$f":"IF(Table_PI[[#This Row],[Hide:\nFormula Name]]<>\"\",IFERROR(IF(MeasureCalc(Table_PI[[#This Row],[Hide:\nFormula Name]],Table_PI[[#This Row],[Quantity]],Table_PI[[#This Row],[List 1]],Table_PI[[#This Row],[List 2]],Table_PI[[#This Row],[List 3]],Table_PI[[#This Row],[Size]],Table_PI[[#This Row],[Input 1]],Table_PI[[#This Row],[Input 2]],Table_PI[[#This Row],[Input 3]],Table_PI[[#This Row],[Input 4]],'Customer Information'!$AR$12,1,ROW())>0,MeasureCalc(Table_PI[[#This Row],[Hide:\nFormula Name]],Table_PI[[#This Row],[Quantity]],Table_PI[[#This Row],[List 1]],Table_PI[[#This Row],[List 2]],Table_PI[[#This Row],[List 3]],Table_PI[[#This Row],[Size]],Table_PI[[#This Row],[Input 1]],Table_PI[[#This Row],[Input 2]],Table_PI[[#This Row],[Input 3]],Table_PI[[#This Row],[Input 4]],'Customer Information'!$AR$12,4,ROW()),\"No Rebate\"),\"No Rebate\"),0)","v":0},{"$f":"IF(Table_PI[[#This Row],[Hide:\nFormula Name]]<>\"\",IFERROR(IF(MeasureCalc(Table_PI[[#This Row],[Hide:\nFormula Name]],Table_PI[[#This Row],[Quantity]],Table_PI[[#This Row],[List 1]],Table_PI[[#This Row],[List 2]],Table_PI[[#This Row],[List 3]],Table_PI[[#This Row],[Size]],Table_PI[[#This Row],[Input 1]],Table_PI[[#This Row],[Input 2]],Table_PI[[#This Row],[Input 3]],Table_PI[[#This Row],[Input 4]],'Customer Information'!$AR$12,1,ROW())>0,MeasureCalc(Table_PI[[#This Row],[Hide:\nFormula Name]],Table_PI[[#This Row],[Quantity]],Table_PI[[#This Row],[List 1]],Table_PI[[#This Row],[List 2]],Table_PI[[#This Row],[List 3]],Table_PI[[#This Row],[Size]],Table_PI[[#This Row],[Input 1]],Table_PI[[#This Row],[Input 2]],Table_PI[[#This Row],[Input 3]],Table_PI[[#This Row],[Input 4]],'Customer Information'!$AR$12,5,ROW()),\"No Rebate\"),\"No Rebate\"),0)","v":0},{"$f":"IF(Table_PI[[#This Row],[Hide:\nFormula Name]]<>\"\",IFERROR(IF(MeasureCalc(Table_PI[[#This Row],[Hide:\nFormula Name]],Table_PI[[#This Row],[Quantity]],Table_PI[[#This Row],[List 1]],Table_PI[[#This Row],[List 2]],Table_PI[[#This Row],[List 3]],Table_PI[[#This Row],[Size]],Table_PI[[#This Row],[Input 1]],Table_PI[[#This Row],[Input 2]],Table_PI[[#This Row],[Input 3]],Table_PI[[#This Row],[Input 4]],'Customer Information'!$AR$12,1,ROW())>0,MeasureCalc(Table_PI[[#This Row],[Hide:\nFormula Name]],Table_PI[[#This Row],[Quantity]],Table_PI[[#This Row],[List 1]],Table_PI[[#This Row],[List 2]],Table_PI[[#This Row],[List 3]],Table_PI[[#This Row],[Size]],Table_PI[[#This Row],[Input 1]],Table_PI[[#This Row],[Input 2]],Table_PI[[#This Row],[Input 3]],Table_PI[[#This Row],[Input 4]],'Customer Information'!$AR$12,6,ROW()),\"No Rebate\"),\"No Rebate\"),0)","v":0},{"$f":"IF(Table_PI[[#This Row],[Hide:\nFormula Name]]<>\"\",IFERROR(IF(MeasureCalc(Table_PI[[#This Row],[Hide:\nFormula Name]],Table_PI[[#This Row],[Quantity]],Table_PI[[#This Row],[List 1]],Table_PI[[#This Row],[List 2]],Table_PI[[#This Row],[List 3]],Table_PI[[#This Row],[Size]],Table_PI[[#This Row],[Input 1]],Table_PI[[#This Row],[Input 2]],Table_PI[[#This Row],[Input 3]],Table_PI[[#This Row],[Input 4]],'Customer Information'!$AR$12,1,ROW())>0,MeasureCalc(Table_PI[[#This Row],[Hide:\nFormula Name]],Table_PI[[#This Row],[Quantity]],Table_PI[[#This Row],[List 1]],Table_PI[[#This Row],[List 2]],Table_PI[[#This Row],[List 3]],Table_PI[[#This Row],[Size]],Table_PI[[#This Row],[Input 1]],Table_PI[[#This Row],[Input 2]],Table_PI[[#This Row],[Input 3]],Table_PI[[#This Row],[Input 4]],'Customer Information'!$AR$12,7,ROW()),\"No Rebate\"),\"No Rebate\"),0)","v":0},{"$f":"IF(Table_PI[[#This Row],[Hide:\nFormula Name]]<>\"\",IFERROR(IF(MeasureCalc(Table_PI[[#This Row],[Hide:\nFormula Name]],Table_PI[[#This Row],[Quantity]],Table_PI[[#This Row],[List 1]],Table_PI[[#This Row],[List 2]],Table_PI[[#This Row],[List 3]],Table_PI[[#This Row],[Size]],Table_PI[[#This Row],[Input 1]],Table_PI[[#This Row],[Input 2]],Table_PI[[#This Row],[Input 3]],Table_PI[[#This Row],[Input 4]],'Customer Information'!$AR$12,1,ROW())>0,MeasureCalc(Table_PI[[#This Row],[Hide:\nFormula Name]],Table_PI[[#This Row],[Quantity]],Table_PI[[#This Row],[List 1]],Table_PI[[#This Row],[List 2]],Table_PI[[#This Row],[List 3]],Table_PI[[#This Row],[Size]],Table_PI[[#This Row],[Input 1]],Table_PI[[#This Row],[Input 2]],Table_PI[[#This Row],[Input 3]],Table_PI[[#This Row],[Input 4]],'Customer Information'!$AR$12,8,ROW()),\"No Rebate\"),\"No Rebate\"),0)","v":0},{"$f":"IF(Table_PI[[#This Row],[Hide:\nFormula Name]]<>\"\",IF(AND(Table_PI[[#This Row],[Hide:\nFormula Name]]<>\"\",OR(Table_PI[[#This Row],[Rebate]]>0,Table_PI[[#This Row],[Rebate]]=\"No Rebate\")),TRUE,\"MI: Line Item \" & $A228),\"\")","v":""}]
[{"$f":"IF(Table_PI[[#This Row],[Hide:\nFormula Name]]<>\"\",MAX($A$2:A228)+1,\"\")","v":""},null,null,null,null,null,null,null,null,null,null,null,null,null,null,{"$f":"IFERROR(VLOOKUP(Table_PI[[#This Row],[Measure]],'Equipment Lookups'!$C$3:$D$23,2,FALSE),\"\")","v":""},{"$f":"IF(Table_PI[[#This Row],[Hide:\nFormula Name]]<>\"\",IFERROR(IF(MeasureCalc(Table_PI[[#This Row],[Hide:\nFormula Name]],Table_PI[[#This Row],[Quantity]],Table_PI[[#This Row],[List 1]],Table_PI[[#This Row],[List 2]],Table_PI[[#This Row],[List 3]],Table_PI[[#This Row],[Size]],Table_PI[[#This Row],[Input 1]],Table_PI[[#This Row],[Input 2]],Table_PI[[#This Row],[Input 3]],Table_PI[[#This Row],[Input 4]],'Customer Information'!$AR$12,1,ROW())>0,MeasureCalc(Table_PI[[#This Row],[Hide:\nFormula Name]],Table_PI[[#This Row],[Quantity]],Table_PI[[#This Row],[List 1]],Table_PI[[#This Row],[List 2]],Table_PI[[#This Row],[List 3]],Table_PI[[#This Row],[Size]],Table_PI[[#This Row],[Input 1]],Table_PI[[#This Row],[Input 2]],Table_PI[[#This Row],[Input 3]],Table_PI[[#This Row],[Input 4]],'Customer Information'!$AR$12,1,ROW()),\"No Rebate\"),\"No Rebate\"),0)","v":0},{"$f":"IF(Table_PI[[#This Row],[Hide:\nFormula Name]]<>\"\",IFERROR(IF(MeasureCalc(Table_PI[[#This Row],[Hide:\nFormula Name]],Table_PI[[#This Row],[Quantity]],Table_PI[[#This Row],[List 1]],Table_PI[[#This Row],[List 2]],Table_PI[[#This Row],[List 3]],Table_PI[[#This Row],[Size]],Table_PI[[#This Row],[Input 1]],Table_PI[[#This Row],[Input 2]],Table_PI[[#This Row],[Input 3]],Table_PI[[#This Row],[Input 4]],'Customer Information'!$AR$12,1,ROW())>0,MeasureCalc(Table_PI[[#This Row],[Hide:\nFormula Name]],Table_PI[[#This Row],[Quantity]],Table_PI[[#This Row],[List 1]],Table_PI[[#This Row],[List 2]],Table_PI[[#This Row],[List 3]],Table_PI[[#This Row],[Size]],Table_PI[[#This Row],[Input 1]],Table_PI[[#This Row],[Input 2]],Table_PI[[#This Row],[Input 3]],Table_PI[[#This Row],[Input 4]],'Customer Information'!$AR$12,2,ROW()),\"No Rebate\"),\"No Rebate\"),0)","v":0},{"$f":"IF(Table_PI[[#This Row],[Hide:\nFormula Name]]<>\"\",IFERROR(IF(MeasureCalc(Table_PI[[#This Row],[Hide:\nFormula Name]],Table_PI[[#This Row],[Quantity]],Table_PI[[#This Row],[List 1]],Table_PI[[#This Row],[List 2]],Table_PI[[#This Row],[List 3]],Table_PI[[#This Row],[Size]],Table_PI[[#This Row],[Input 1]],Table_PI[[#This Row],[Input 2]],Table_PI[[#This Row],[Input 3]],Table_PI[[#This Row],[Input 4]],'Customer Information'!$AR$12,1,ROW())>0,MeasureCalc(Table_PI[[#This Row],[Hide:\nFormula Name]],Table_PI[[#This Row],[Quantity]],Table_PI[[#This Row],[List 1]],Table_PI[[#This Row],[List 2]],Table_PI[[#This Row],[List 3]],Table_PI[[#This Row],[Size]],Table_PI[[#This Row],[Input 1]],Table_PI[[#This Row],[Input 2]],Table_PI[[#This Row],[Input 3]],Table_PI[[#This Row],[Input 4]],'Customer Information'!$AR$12,3,ROW()),\"No Rebate\"),\"No Rebate\"),0)","v":0},{"$f":"IF(Table_PI[[#This Row],[Hide:\nFormula Name]]<>\"\",IFERROR(IF(MeasureCalc(Table_PI[[#This Row],[Hide:\nFormula Name]],Table_PI[[#This Row],[Quantity]],Table_PI[[#This Row],[List 1]],Table_PI[[#This Row],[List 2]],Table_PI[[#This Row],[List 3]],Table_PI[[#This Row],[Size]],Table_PI[[#This Row],[Input 1]],Table_PI[[#This Row],[Input 2]],Table_PI[[#This Row],[Input 3]],Table_PI[[#This Row],[Input 4]],'Customer Information'!$AR$12,1,ROW())>0,MeasureCalc(Table_PI[[#This Row],[Hide:\nFormula Name]],Table_PI[[#This Row],[Quantity]],Table_PI[[#This Row],[List 1]],Table_PI[[#This Row],[List 2]],Table_PI[[#This Row],[List 3]],Table_PI[[#This Row],[Size]],Table_PI[[#This Row],[Input 1]],Table_PI[[#This Row],[Input 2]],Table_PI[[#This Row],[Input 3]],Table_PI[[#This Row],[Input 4]],'Customer Information'!$AR$12,4,ROW()),\"No Rebate\"),\"No Rebate\"),0)","v":0},{"$f":"IF(Table_PI[[#This Row],[Hide:\nFormula Name]]<>\"\",IFERROR(IF(MeasureCalc(Table_PI[[#This Row],[Hide:\nFormula Name]],Table_PI[[#This Row],[Quantity]],Table_PI[[#This Row],[List 1]],Table_PI[[#This Row],[List 2]],Table_PI[[#This Row],[List 3]],Table_PI[[#This Row],[Size]],Table_PI[[#This Row],[Input 1]],Table_PI[[#This Row],[Input 2]],Table_PI[[#This Row],[Input 3]],Table_PI[[#This Row],[Input 4]],'Customer Information'!$AR$12,1,ROW())>0,MeasureCalc(Table_PI[[#This Row],[Hide:\nFormula Name]],Table_PI[[#This Row],[Quantity]],Table_PI[[#This Row],[List 1]],Table_PI[[#This Row],[List 2]],Table_PI[[#This Row],[List 3]],Table_PI[[#This Row],[Size]],Table_PI[[#This Row],[Input 1]],Table_PI[[#This Row],[Input 2]],Table_PI[[#This Row],[Input 3]],Table_PI[[#This Row],[Input 4]],'Customer Information'!$AR$12,5,ROW()),\"No Rebate\"),\"No Rebate\"),0)","v":0},{"$f":"IF(Table_PI[[#This Row],[Hide:\nFormula Name]]<>\"\",IFERROR(IF(MeasureCalc(Table_PI[[#This Row],[Hide:\nFormula Name]],Table_PI[[#This Row],[Quantity]],Table_PI[[#This Row],[List 1]],Table_PI[[#This Row],[List 2]],Table_PI[[#This Row],[List 3]],Table_PI[[#This Row],[Size]],Table_PI[[#This Row],[Input 1]],Table_PI[[#This Row],[Input 2]],Table_PI[[#This Row],[Input 3]],Table_PI[[#This Row],[Input 4]],'Customer Information'!$AR$12,1,ROW())>0,MeasureCalc(Table_PI[[#This Row],[Hide:\nFormula Name]],Table_PI[[#This Row],[Quantity]],Table_PI[[#This Row],[List 1]],Table_PI[[#This Row],[List 2]],Table_PI[[#This Row],[List 3]],Table_PI[[#This Row],[Size]],Table_PI[[#This Row],[Input 1]],Table_PI[[#This Row],[Input 2]],Table_PI[[#This Row],[Input 3]],Table_PI[[#This Row],[Input 4]],'Customer Information'!$AR$12,6,ROW()),\"No Rebate\"),\"No Rebate\"),0)","v":0},{"$f":"IF(Table_PI[[#This Row],[Hide:\nFormula Name]]<>\"\",IFERROR(IF(MeasureCalc(Table_PI[[#This Row],[Hide:\nFormula Name]],Table_PI[[#This Row],[Quantity]],Table_PI[[#This Row],[List 1]],Table_PI[[#This Row],[List 2]],Table_PI[[#This Row],[List 3]],Table_PI[[#This Row],[Size]],Table_PI[[#This Row],[Input 1]],Table_PI[[#This Row],[Input 2]],Table_PI[[#This Row],[Input 3]],Table_PI[[#This Row],[Input 4]],'Customer Information'!$AR$12,1,ROW())>0,MeasureCalc(Table_PI[[#This Row],[Hide:\nFormula Name]],Table_PI[[#This Row],[Quantity]],Table_PI[[#This Row],[List 1]],Table_PI[[#This Row],[List 2]],Table_PI[[#This Row],[List 3]],Table_PI[[#This Row],[Size]],Table_PI[[#This Row],[Input 1]],Table_PI[[#This Row],[Input 2]],Table_PI[[#This Row],[Input 3]],Table_PI[[#This Row],[Input 4]],'Customer Information'!$AR$12,7,ROW()),\"No Rebate\"),\"No Rebate\"),0)","v":0},{"$f":"IF(Table_PI[[#This Row],[Hide:\nFormula Name]]<>\"\",IFERROR(IF(MeasureCalc(Table_PI[[#This Row],[Hide:\nFormula Name]],Table_PI[[#This Row],[Quantity]],Table_PI[[#This Row],[List 1]],Table_PI[[#This Row],[List 2]],Table_PI[[#This Row],[List 3]],Table_PI[[#This Row],[Size]],Table_PI[[#This Row],[Input 1]],Table_PI[[#This Row],[Input 2]],Table_PI[[#This Row],[Input 3]],Table_PI[[#This Row],[Input 4]],'Customer Information'!$AR$12,1,ROW())>0,MeasureCalc(Table_PI[[#This Row],[Hide:\nFormula Name]],Table_PI[[#This Row],[Quantity]],Table_PI[[#This Row],[List 1]],Table_PI[[#This Row],[List 2]],Table_PI[[#This Row],[List 3]],Table_PI[[#This Row],[Size]],Table_PI[[#This Row],[Input 1]],Table_PI[[#This Row],[Input 2]],Table_PI[[#This Row],[Input 3]],Table_PI[[#This Row],[Input 4]],'Customer Information'!$AR$12,8,ROW()),\"No Rebate\"),\"No Rebate\"),0)","v":0},{"$f":"IF(Table_PI[[#This Row],[Hide:\nFormula Name]]<>\"\",IF(AND(Table_PI[[#This Row],[Hide:\nFormula Name]]<>\"\",OR(Table_PI[[#This Row],[Rebate]]>0,Table_PI[[#This Row],[Rebate]]=\"No Rebate\")),TRUE,\"MI: Line Item \" & $A229),\"\")","v":""}]
[{"$f":"IF(Table_PI[[#This Row],[Hide:\nFormula Name]]<>\"\",MAX($A$2:A229)+1,\"\")","v":""},null,null,null,null,null,null,null,null,null,null,null,null,null,null,{"$f":"IFERROR(VLOOKUP(Table_PI[[#This Row],[Measure]],'Equipment Lookups'!$C$3:$D$23,2,FALSE),\"\")","v":""},{"$f":"IF(Table_PI[[#This Row],[Hide:\nFormula Name]]<>\"\",IFERROR(IF(MeasureCalc(Table_PI[[#This Row],[Hide:\nFormula Name]],Table_PI[[#This Row],[Quantity]],Table_PI[[#This Row],[List 1]],Table_PI[[#This Row],[List 2]],Table_PI[[#This Row],[List 3]],Table_PI[[#This Row],[Size]],Table_PI[[#This Row],[Input 1]],Table_PI[[#This Row],[Input 2]],Table_PI[[#This Row],[Input 3]],Table_PI[[#This Row],[Input 4]],'Customer Information'!$AR$12,1,ROW())>0,MeasureCalc(Table_PI[[#This Row],[Hide:\nFormula Name]],Table_PI[[#This Row],[Quantity]],Table_PI[[#This Row],[List 1]],Table_PI[[#This Row],[List 2]],Table_PI[[#This Row],[List 3]],Table_PI[[#This Row],[Size]],Table_PI[[#This Row],[Input 1]],Table_PI[[#This Row],[Input 2]],Table_PI[[#This Row],[Input 3]],Table_PI[[#This Row],[Input 4]],'Customer Information'!$AR$12,1,ROW()),\"No Rebate\"),\"No Rebate\"),0)","v":0},{"$f":"IF(Table_PI[[#This Row],[Hide:\nFormula Name]]<>\"\",IFERROR(IF(MeasureCalc(Table_PI[[#This Row],[Hide:\nFormula Name]],Table_PI[[#This Row],[Quantity]],Table_PI[[#This Row],[List 1]],Table_PI[[#This Row],[List 2]],Table_PI[[#This Row],[List 3]],Table_PI[[#This Row],[Size]],Table_PI[[#This Row],[Input 1]],Table_PI[[#This Row],[Input 2]],Table_PI[[#This Row],[Input 3]],Table_PI[[#This Row],[Input 4]],'Customer Information'!$AR$12,1,ROW())>0,MeasureCalc(Table_PI[[#This Row],[Hide:\nFormula Name]],Table_PI[[#This Row],[Quantity]],Table_PI[[#This Row],[List 1]],Table_PI[[#This Row],[List 2]],Table_PI[[#This Row],[List 3]],Table_PI[[#This Row],[Size]],Table_PI[[#This Row],[Input 1]],Table_PI[[#This Row],[Input 2]],Table_PI[[#This Row],[Input 3]],Table_PI[[#This Row],[Input 4]],'Customer Information'!$AR$12,2,ROW()),\"No Rebate\"),\"No Rebate\"),0)","v":0},{"$f":"IF(Table_PI[[#This Row],[Hide:\nFormula Name]]<>\"\",IFERROR(IF(MeasureCalc(Table_PI[[#This Row],[Hide:\nFormula Name]],Table_PI[[#This Row],[Quantity]],Table_PI[[#This Row],[List 1]],Table_PI[[#This Row],[List 2]],Table_PI[[#This Row],[List 3]],Table_PI[[#This Row],[Size]],Table_PI[[#This Row],[Input 1]],Table_PI[[#This Row],[Input 2]],Table_PI[[#This Row],[Input 3]],Table_PI[[#This Row],[Input 4]],'Customer Information'!$AR$12,1,ROW())>0,MeasureCalc(Table_PI[[#This Row],[Hide:\nFormula Name]],Table_PI[[#This Row],[Quantity]],Table_PI[[#This Row],[List 1]],Table_PI[[#This Row],[List 2]],Table_PI[[#This Row],[List 3]],Table_PI[[#This Row],[Size]],Table_PI[[#This Row],[Input 1]],Table_PI[[#This Row],[Input 2]],Table_PI[[#This Row],[Input 3]],Table_PI[[#This Row],[Input 4]],'Customer Information'!$AR$12,3,ROW()),\"No Rebate\"),\"No Rebate\"),0)","v":0},{"$f":"IF(Table_PI[[#This Row],[Hide:\nFormula Name]]<>\"\",IFERROR(IF(MeasureCalc(Table_PI[[#This Row],[Hide:\nFormula Name]],Table_PI[[#This Row],[Quantity]],Table_PI[[#This Row],[List 1]],Table_PI[[#This Row],[List 2]],Table_PI[[#This Row],[List 3]],Table_PI[[#This Row],[Size]],Table_PI[[#This Row],[Input 1]],Table_PI[[#This Row],[Input 2]],Table_PI[[#This Row],[Input 3]],Table_PI[[#This Row],[Input 4]],'Customer Information'!$AR$12,1,ROW())>0,MeasureCalc(Table_PI[[#This Row],[Hide:\nFormula Name]],Table_PI[[#This Row],[Quantity]],Table_PI[[#This Row],[List 1]],Table_PI[[#This Row],[List 2]],Table_PI[[#This Row],[List 3]],Table_PI[[#This Row],[Size]],Table_PI[[#This Row],[Input 1]],Table_PI[[#This Row],[Input 2]],Table_PI[[#This Row],[Input 3]],Table_PI[[#This Row],[Input 4]],'Customer Information'!$AR$12,4,ROW()),\"No Rebate\"),\"No Rebate\"),0)","v":0},{"$f":"IF(Table_PI[[#This Row],[Hide:\nFormula Name]]<>\"\",IFERROR(IF(MeasureCalc(Table_PI[[#This Row],[Hide:\nFormula Name]],Table_PI[[#This Row],[Quantity]],Table_PI[[#This Row],[List 1]],Table_PI[[#This Row],[List 2]],Table_PI[[#This Row],[List 3]],Table_PI[[#This Row],[Size]],Table_PI[[#This Row],[Input 1]],Table_PI[[#This Row],[Input 2]],Table_PI[[#This Row],[Input 3]],Table_PI[[#This Row],[Input 4]],'Customer Information'!$AR$12,1,ROW())>0,MeasureCalc(Table_PI[[#This Row],[Hide:\nFormula Name]],Table_PI[[#This Row],[Quantity]],Table_PI[[#This Row],[List 1]],Table_PI[[#This Row],[List 2]],Table_PI[[#This Row],[List 3]],Table_PI[[#This Row],[Size]],Table_PI[[#This Row],[Input 1]],Table_PI[[#This Row],[Input 2]],Table_PI[[#This Row],[Input 3]],Table_PI[[#This Row],[Input 4]],'Customer Information'!$AR$12,5,ROW()),\"No Rebate\"),\"No Rebate\"),0)","v":0},{"$f":"IF(Table_PI[[#This Row],[Hide:\nFormula Name]]<>\"\",IFERROR(IF(MeasureCalc(Table_PI[[#This Row],[Hide:\nFormula Name]],Table_PI[[#This Row],[Quantity]],Table_PI[[#This Row],[List 1]],Table_PI[[#This Row],[List 2]],Table_PI[[#This Row],[List 3]],Table_PI[[#This Row],[Size]],Table_PI[[#This Row],[Input 1]],Table_PI[[#This Row],[Input 2]],Table_PI[[#This Row],[Input 3]],Table_PI[[#This Row],[Input 4]],'Customer Information'!$AR$12,1,ROW())>0,MeasureCalc(Table_PI[[#This Row],[Hide:\nFormula Name]],Table_PI[[#This Row],[Quantity]],Table_PI[[#This Row],[List 1]],Table_PI[[#This Row],[List 2]],Table_PI[[#This Row],[List 3]],Table_PI[[#This Row],[Size]],Table_PI[[#This Row],[Input 1]],Table_PI[[#This Row],[Input 2]],Table_PI[[#This Row],[Input 3]],Table_PI[[#This Row],[Input 4]],'Customer Information'!$AR$12,6,ROW()),\"No Rebate\"),\"No Rebate\"),0)","v":0},{"$f":"IF(Table_PI[[#This Row],[Hide:\nFormula Name]]<>\"\",IFERROR(IF(MeasureCalc(Table_PI[[#This Row],[Hide:\nFormula Name]],Table_PI[[#This Row],[Quantity]],Table_PI[[#This Row],[List 1]],Table_PI[[#This Row],[List 2]],Table_PI[[#This Row],[List 3]],Table_PI[[#This Row],[Size]],Table_PI[[#This Row],[Input 1]],Table_PI[[#This Row],[Input 2]],Table_PI[[#This Row],[Input 3]],Table_PI[[#This Row],[Input 4]],'Customer Information'!$AR$12,1,ROW())>0,MeasureCalc(Table_PI[[#This Row],[Hide:\nFormula Name]],Table_PI[[#This Row],[Quantity]],Table_PI[[#This Row],[List 1]],Table_PI[[#This Row],[List 2]],Table_PI[[#This Row],[List 3]],Table_PI[[#This Row],[Size]],Table_PI[[#This Row],[Input 1]],Table_PI[[#This Row],[Input 2]],Table_PI[[#This Row],[Input 3]],Table_PI[[#This Row],[Input 4]],'Customer Information'!$AR$12,7,ROW()),\"No Rebate\"),\"No Rebate\"),0)","v":0},{"$f":"IF(Table_PI[[#This Row],[Hide:\nFormula Name]]<>\"\",IFERROR(IF(MeasureCalc(Table_PI[[#This Row],[Hide:\nFormula Name]],Table_PI[[#This Row],[Quantity]],Table_PI[[#This Row],[List 1]],Table_PI[[#This Row],[List 2]],Table_PI[[#This Row],[List 3]],Table_PI[[#This Row],[Size]],Table_PI[[#This Row],[Input 1]],Table_PI[[#This Row],[Input 2]],Table_PI[[#This Row],[Input 3]],Table_PI[[#This Row],[Input 4]],'Customer Information'!$AR$12,1,ROW())>0,MeasureCalc(Table_PI[[#This Row],[Hide:\nFormula Name]],Table_PI[[#This Row],[Quantity]],Table_PI[[#This Row],[List 1]],Table_PI[[#This Row],[List 2]],Table_PI[[#This Row],[List 3]],Table_PI[[#This Row],[Size]],Table_PI[[#This Row],[Input 1]],Table_PI[[#This Row],[Input 2]],Table_PI[[#This Row],[Input 3]],Table_PI[[#This Row],[Input 4]],'Customer Information'!$AR$12,8,ROW()),\"No Rebate\"),\"No Rebate\"),0)","v":0},{"$f":"IF(Table_PI[[#This Row],[Hide:\nFormula Name]]<>\"\",IF(AND(Table_PI[[#This Row],[Hide:\nFormula Name]]<>\"\",OR(Table_PI[[#This Row],[Rebate]]>0,Table_PI[[#This Row],[Rebate]]=\"No Rebate\")),TRUE,\"MI: Line Item \" & $A230),\"\")","v":""}]
[{"$f":"IF(Table_PI[[#This Row],[Hide:\nFormula Name]]<>\"\",MAX($A$2:A230)+1,\"\")","v":""},null,null,null,null,null,null,null,null,null,null,null,null,null,null,{"$f":"IFERROR(VLOOKUP(Table_PI[[#This Row],[Measure]],'Equipment Lookups'!$C$3:$D$23,2,FALSE),\"\")","v":""},{"$f":"IF(Table_PI[[#This Row],[Hide:\nFormula Name]]<>\"\",IFERROR(IF(MeasureCalc(Table_PI[[#This Row],[Hide:\nFormula Name]],Table_PI[[#This Row],[Quantity]],Table_PI[[#This Row],[List 1]],Table_PI[[#This Row],[List 2]],Table_PI[[#This Row],[List 3]],Table_PI[[#This Row],[Size]],Table_PI[[#This Row],[Input 1]],Table_PI[[#This Row],[Input 2]],Table_PI[[#This Row],[Input 3]],Table_PI[[#This Row],[Input 4]],'Customer Information'!$AR$12,1,ROW())>0,MeasureCalc(Table_PI[[#This Row],[Hide:\nFormula Name]],Table_PI[[#This Row],[Quantity]],Table_PI[[#This Row],[List 1]],Table_PI[[#This Row],[List 2]],Table_PI[[#This Row],[List 3]],Table_PI[[#This Row],[Size]],Table_PI[[#This Row],[Input 1]],Table_PI[[#This Row],[Input 2]],Table_PI[[#This Row],[Input 3]],Table_PI[[#This Row],[Input 4]],'Customer Information'!$AR$12,1,ROW()),\"No Rebate\"),\"No Rebate\"),0)","v":0},{"$f":"IF(Table_PI[[#This Row],[Hide:\nFormula Name]]<>\"\",IFERROR(IF(MeasureCalc(Table_PI[[#This Row],[Hide:\nFormula Name]],Table_PI[[#This Row],[Quantity]],Table_PI[[#This Row],[List 1]],Table_PI[[#This Row],[List 2]],Table_PI[[#This Row],[List 3]],Table_PI[[#This Row],[Size]],Table_PI[[#This Row],[Input 1]],Table_PI[[#This Row],[Input 2]],Table_PI[[#This Row],[Input 3]],Table_PI[[#This Row],[Input 4]],'Customer Information'!$AR$12,1,ROW())>0,MeasureCalc(Table_PI[[#This Row],[Hide:\nFormula Name]],Table_PI[[#This Row],[Quantity]],Table_PI[[#This Row],[List 1]],Table_PI[[#This Row],[List 2]],Table_PI[[#This Row],[List 3]],Table_PI[[#This Row],[Size]],Table_PI[[#This Row],[Input 1]],Table_PI[[#This Row],[Input 2]],Table_PI[[#This Row],[Input 3]],Table_PI[[#This Row],[Input 4]],'Customer Information'!$AR$12,2,ROW()),\"No Rebate\"),\"No Rebate\"),0)","v":0},{"$f":"IF(Table_PI[[#This Row],[Hide:\nFormula Name]]<>\"\",IFERROR(IF(MeasureCalc(Table_PI[[#This Row],[Hide:\nFormula Name]],Table_PI[[#This Row],[Quantity]],Table_PI[[#This Row],[List 1]],Table_PI[[#This Row],[List 2]],Table_PI[[#This Row],[List 3]],Table_PI[[#This Row],[Size]],Table_PI[[#This Row],[Input 1]],Table_PI[[#This Row],[Input 2]],Table_PI[[#This Row],[Input 3]],Table_PI[[#This Row],[Input 4]],'Customer Information'!$AR$12,1,ROW())>0,MeasureCalc(Table_PI[[#This Row],[Hide:\nFormula Name]],Table_PI[[#This Row],[Quantity]],Table_PI[[#This Row],[List 1]],Table_PI[[#This Row],[List 2]],Table_PI[[#This Row],[List 3]],Table_PI[[#This Row],[Size]],Table_PI[[#This Row],[Input 1]],Table_PI[[#This Row],[Input 2]],Table_PI[[#This Row],[Input 3]],Table_PI[[#This Row],[Input 4]],'Customer Information'!$AR$12,3,ROW()),\"No Rebate\"),\"No Rebate\"),0)","v":0},{"$f":"IF(Table_PI[[#This Row],[Hide:\nFormula Name]]<>\"\",IFERROR(IF(MeasureCalc(Table_PI[[#This Row],[Hide:\nFormula Name]],Table_PI[[#This Row],[Quantity]],Table_PI[[#This Row],[List 1]],Table_PI[[#This Row],[List 2]],Table_PI[[#This Row],[List 3]],Table_PI[[#This Row],[Size]],Table_PI[[#This Row],[Input 1]],Table_PI[[#This Row],[Input 2]],Table_PI[[#This Row],[Input 3]],Table_PI[[#This Row],[Input 4]],'Customer Information'!$AR$12,1,ROW())>0,MeasureCalc(Table_PI[[#This Row],[Hide:\nFormula Name]],Table_PI[[#This Row],[Quantity]],Table_PI[[#This Row],[List 1]],Table_PI[[#This Row],[List 2]],Table_PI[[#This Row],[List 3]],Table_PI[[#This Row],[Size]],Table_PI[[#This Row],[Input 1]],Table_PI[[#This Row],[Input 2]],Table_PI[[#This Row],[Input 3]],Table_PI[[#This Row],[Input 4]],'Customer Information'!$AR$12,4,ROW()),\"No Rebate\"),\"No Rebate\"),0)","v":0},{"$f":"IF(Table_PI[[#This Row],[Hide:\nFormula Name]]<>\"\",IFERROR(IF(MeasureCalc(Table_PI[[#This Row],[Hide:\nFormula Name]],Table_PI[[#This Row],[Quantity]],Table_PI[[#This Row],[List 1]],Table_PI[[#This Row],[List 2]],Table_PI[[#This Row],[List 3]],Table_PI[[#This Row],[Size]],Table_PI[[#This Row],[Input 1]],Table_PI[[#This Row],[Input 2]],Table_PI[[#This Row],[Input 3]],Table_PI[[#This Row],[Input 4]],'Customer Information'!$AR$12,1,ROW())>0,MeasureCalc(Table_PI[[#This Row],[Hide:\nFormula Name]],Table_PI[[#This Row],[Quantity]],Table_PI[[#This Row],[List 1]],Table_PI[[#This Row],[List 2]],Table_PI[[#This Row],[List 3]],Table_PI[[#This Row],[Size]],Table_PI[[#This Row],[Input 1]],Table_PI[[#This Row],[Input 2]],Table_PI[[#This Row],[Input 3]],Table_PI[[#This Row],[Input 4]],'Customer Information'!$AR$12,5,ROW()),\"No Rebate\"),\"No Rebate\"),0)","v":0},{"$f":"IF(Table_PI[[#This Row],[Hide:\nFormula Name]]<>\"\",IFERROR(IF(MeasureCalc(Table_PI[[#This Row],[Hide:\nFormula Name]],Table_PI[[#This Row],[Quantity]],Table_PI[[#This Row],[List 1]],Table_PI[[#This Row],[List 2]],Table_PI[[#This Row],[List 3]],Table_PI[[#This Row],[Size]],Table_PI[[#This Row],[Input 1]],Table_PI[[#This Row],[Input 2]],Table_PI[[#This Row],[Input 3]],Table_PI[[#This Row],[Input 4]],'Customer Information'!$AR$12,1,ROW())>0,MeasureCalc(Table_PI[[#This Row],[Hide:\nFormula Name]],Table_PI[[#This Row],[Quantity]],Table_PI[[#This Row],[List 1]],Table_PI[[#This Row],[List 2]],Table_PI[[#This Row],[List 3]],Table_PI[[#This Row],[Size]],Table_PI[[#This Row],[Input 1]],Table_PI[[#This Row],[Input 2]],Table_PI[[#This Row],[Input 3]],Table_PI[[#This Row],[Input 4]],'Customer Information'!$AR$12,6,ROW()),\"No Rebate\"),\"No Rebate\"),0)","v":0},{"$f":"IF(Table_PI[[#This Row],[Hide:\nFormula Name]]<>\"\",IFERROR(IF(MeasureCalc(Table_PI[[#This Row],[Hide:\nFormula Name]],Table_PI[[#This Row],[Quantity]],Table_PI[[#This Row],[List 1]],Table_PI[[#This Row],[List 2]],Table_PI[[#This Row],[List 3]],Table_PI[[#This Row],[Size]],Table_PI[[#This Row],[Input 1]],Table_PI[[#This Row],[Input 2]],Table_PI[[#This Row],[Input 3]],Table_PI[[#This Row],[Input 4]],'Customer Information'!$AR$12,1,ROW())>0,MeasureCalc(Table_PI[[#This Row],[Hide:\nFormula Name]],Table_PI[[#This Row],[Quantity]],Table_PI[[#This Row],[List 1]],Table_PI[[#This Row],[List 2]],Table_PI[[#This Row],[List 3]],Table_PI[[#This Row],[Size]],Table_PI[[#This Row],[Input 1]],Table_PI[[#This Row],[Input 2]],Table_PI[[#This Row],[Input 3]],Table_PI[[#This Row],[Input 4]],'Customer Information'!$AR$12,7,ROW()),\"No Rebate\"),\"No Rebate\"),0)","v":0},{"$f":"IF(Table_PI[[#This Row],[Hide:\nFormula Name]]<>\"\",IFERROR(IF(MeasureCalc(Table_PI[[#This Row],[Hide:\nFormula Name]],Table_PI[[#This Row],[Quantity]],Table_PI[[#This Row],[List 1]],Table_PI[[#This Row],[List 2]],Table_PI[[#This Row],[List 3]],Table_PI[[#This Row],[Size]],Table_PI[[#This Row],[Input 1]],Table_PI[[#This Row],[Input 2]],Table_PI[[#This Row],[Input 3]],Table_PI[[#This Row],[Input 4]],'Customer Information'!$AR$12,1,ROW())>0,MeasureCalc(Table_PI[[#This Row],[Hide:\nFormula Name]],Table_PI[[#This Row],[Quantity]],Table_PI[[#This Row],[List 1]],Table_PI[[#This Row],[List 2]],Table_PI[[#This Row],[List 3]],Table_PI[[#This Row],[Size]],Table_PI[[#This Row],[Input 1]],Table_PI[[#This Row],[Input 2]],Table_PI[[#This Row],[Input 3]],Table_PI[[#This Row],[Input 4]],'Customer Information'!$AR$12,8,ROW()),\"No Rebate\"),\"No Rebate\"),0)","v":0},{"$f":"IF(Table_PI[[#This Row],[Hide:\nFormula Name]]<>\"\",IF(AND(Table_PI[[#This Row],[Hide:\nFormula Name]]<>\"\",OR(Table_PI[[#This Row],[Rebate]]>0,Table_PI[[#This Row],[Rebate]]=\"No Rebate\")),TRUE,\"MI: Line Item \" & $A231),\"\")","v":""}]
[{"$f":"IF(Table_PI[[#This Row],[Hide:\nFormula Name]]<>\"\",MAX($A$2:A231)+1,\"\")","v":""},null,null,null,null,null,null,null,null,null,null,null,null,null,null,{"$f":"IFERROR(VLOOKUP(Table_PI[[#This Row],[Measure]],'Equipment Lookups'!$C$3:$D$23,2,FALSE),\"\")","v":""},{"$f":"IF(Table_PI[[#This Row],[Hide:\nFormula Name]]<>\"\",IFERROR(IF(MeasureCalc(Table_PI[[#This Row],[Hide:\nFormula Name]],Table_PI[[#This Row],[Quantity]],Table_PI[[#This Row],[List 1]],Table_PI[[#This Row],[List 2]],Table_PI[[#This Row],[List 3]],Table_PI[[#This Row],[Size]],Table_PI[[#This Row],[Input 1]],Table_PI[[#This Row],[Input 2]],Table_PI[[#This Row],[Input 3]],Table_PI[[#This Row],[Input 4]],'Customer Information'!$AR$12,1,ROW())>0,MeasureCalc(Table_PI[[#This Row],[Hide:\nFormula Name]],Table_PI[[#This Row],[Quantity]],Table_PI[[#This Row],[List 1]],Table_PI[[#This Row],[List 2]],Table_PI[[#This Row],[List 3]],Table_PI[[#This Row],[Size]],Table_PI[[#This Row],[Input 1]],Table_PI[[#This Row],[Input 2]],Table_PI[[#This Row],[Input 3]],Table_PI[[#This Row],[Input 4]],'Customer Information'!$AR$12,1,ROW()),\"No Rebate\"),\"No Rebate\"),0)","v":0},{"$f":"IF(Table_PI[[#This Row],[Hide:\nFormula Name]]<>\"\",IFERROR(IF(MeasureCalc(Table_PI[[#This Row],[Hide:\nFormula Name]],Table_PI[[#This Row],[Quantity]],Table_PI[[#This Row],[List 1]],Table_PI[[#This Row],[List 2]],Table_PI[[#This Row],[List 3]],Table_PI[[#This Row],[Size]],Table_PI[[#This Row],[Input 1]],Table_PI[[#This Row],[Input 2]],Table_PI[[#This Row],[Input 3]],Table_PI[[#This Row],[Input 4]],'Customer Information'!$AR$12,1,ROW())>0,MeasureCalc(Table_PI[[#This Row],[Hide:\nFormula Name]],Table_PI[[#This Row],[Quantity]],Table_PI[[#This Row],[List 1]],Table_PI[[#This Row],[List 2]],Table_PI[[#This Row],[List 3]],Table_PI[[#This Row],[Size]],Table_PI[[#This Row],[Input 1]],Table_PI[[#This Row],[Input 2]],Table_PI[[#This Row],[Input 3]],Table_PI[[#This Row],[Input 4]],'Customer Information'!$AR$12,2,ROW()),\"No Rebate\"),\"No Rebate\"),0)","v":0},{"$f":"IF(Table_PI[[#This Row],[Hide:\nFormula Name]]<>\"\",IFERROR(IF(MeasureCalc(Table_PI[[#This Row],[Hide:\nFormula Name]],Table_PI[[#This Row],[Quantity]],Table_PI[[#This Row],[List 1]],Table_PI[[#This Row],[List 2]],Table_PI[[#This Row],[List 3]],Table_PI[[#This Row],[Size]],Table_PI[[#This Row],[Input 1]],Table_PI[[#This Row],[Input 2]],Table_PI[[#This Row],[Input 3]],Table_PI[[#This Row],[Input 4]],'Customer Information'!$AR$12,1,ROW())>0,MeasureCalc(Table_PI[[#This Row],[Hide:\nFormula Name]],Table_PI[[#This Row],[Quantity]],Table_PI[[#This Row],[List 1]],Table_PI[[#This Row],[List 2]],Table_PI[[#This Row],[List 3]],Table_PI[[#This Row],[Size]],Table_PI[[#This Row],[Input 1]],Table_PI[[#This Row],[Input 2]],Table_PI[[#This Row],[Input 3]],Table_PI[[#This Row],[Input 4]],'Customer Information'!$AR$12,3,ROW()),\"No Rebate\"),\"No Rebate\"),0)","v":0},{"$f":"IF(Table_PI[[#This Row],[Hide:\nFormula Name]]<>\"\",IFERROR(IF(MeasureCalc(Table_PI[[#This Row],[Hide:\nFormula Name]],Table_PI[[#This Row],[Quantity]],Table_PI[[#This Row],[List 1]],Table_PI[[#This Row],[List 2]],Table_PI[[#This Row],[List 3]],Table_PI[[#This Row],[Size]],Table_PI[[#This Row],[Input 1]],Table_PI[[#This Row],[Input 2]],Table_PI[[#This Row],[Input 3]],Table_PI[[#This Row],[Input 4]],'Customer Information'!$AR$12,1,ROW())>0,MeasureCalc(Table_PI[[#This Row],[Hide:\nFormula Name]],Table_PI[[#This Row],[Quantity]],Table_PI[[#This Row],[List 1]],Table_PI[[#This Row],[List 2]],Table_PI[[#This Row],[List 3]],Table_PI[[#This Row],[Size]],Table_PI[[#This Row],[Input 1]],Table_PI[[#This Row],[Input 2]],Table_PI[[#This Row],[Input 3]],Table_PI[[#This Row],[Input 4]],'Customer Information'!$AR$12,4,ROW()),\"No Rebate\"),\"No Rebate\"),0)","v":0},{"$f":"IF(Table_PI[[#This Row],[Hide:\nFormula Name]]<>\"\",IFERROR(IF(MeasureCalc(Table_PI[[#This Row],[Hide:\nFormula Name]],Table_PI[[#This Row],[Quantity]],Table_PI[[#This Row],[List 1]],Table_PI[[#This Row],[List 2]],Table_PI[[#This Row],[List 3]],Table_PI[[#This Row],[Size]],Table_PI[[#This Row],[Input 1]],Table_PI[[#This Row],[Input 2]],Table_PI[[#This Row],[Input 3]],Table_PI[[#This Row],[Input 4]],'Customer Information'!$AR$12,1,ROW())>0,MeasureCalc(Table_PI[[#This Row],[Hide:\nFormula Name]],Table_PI[[#This Row],[Quantity]],Table_PI[[#This Row],[List 1]],Table_PI[[#This Row],[List 2]],Table_PI[[#This Row],[List 3]],Table_PI[[#This Row],[Size]],Table_PI[[#This Row],[Input 1]],Table_PI[[#This Row],[Input 2]],Table_PI[[#This Row],[Input 3]],Table_PI[[#This Row],[Input 4]],'Customer Information'!$AR$12,5,ROW()),\"No Rebate\"),\"No Rebate\"),0)","v":0},{"$f":"IF(Table_PI[[#This Row],[Hide:\nFormula Name]]<>\"\",IFERROR(IF(MeasureCalc(Table_PI[[#This Row],[Hide:\nFormula Name]],Table_PI[[#This Row],[Quantity]],Table_PI[[#This Row],[List 1]],Table_PI[[#This Row],[List 2]],Table_PI[[#This Row],[List 3]],Table_PI[[#This Row],[Size]],Table_PI[[#This Row],[Input 1]],Table_PI[[#This Row],[Input 2]],Table_PI[[#This Row],[Input 3]],Table_PI[[#This Row],[Input 4]],'Customer Information'!$AR$12,1,ROW())>0,MeasureCalc(Table_PI[[#This Row],[Hide:\nFormula Name]],Table_PI[[#This Row],[Quantity]],Table_PI[[#This Row],[List 1]],Table_PI[[#This Row],[List 2]],Table_PI[[#This Row],[List 3]],Table_PI[[#This Row],[Size]],Table_PI[[#This Row],[Input 1]],Table_PI[[#This Row],[Input 2]],Table_PI[[#This Row],[Input 3]],Table_PI[[#This Row],[Input 4]],'Customer Information'!$AR$12,6,ROW()),\"No Rebate\"),\"No Rebate\"),0)","v":0},{"$f":"IF(Table_PI[[#This Row],[Hide:\nFormula Name]]<>\"\",IFERROR(IF(MeasureCalc(Table_PI[[#This Row],[Hide:\nFormula Name]],Table_PI[[#This Row],[Quantity]],Table_PI[[#This Row],[List 1]],Table_PI[[#This Row],[List 2]],Table_PI[[#This Row],[List 3]],Table_PI[[#This Row],[Size]],Table_PI[[#This Row],[Input 1]],Table_PI[[#This Row],[Input 2]],Table_PI[[#This Row],[Input 3]],Table_PI[[#This Row],[Input 4]],'Customer Information'!$AR$12,1,ROW())>0,MeasureCalc(Table_PI[[#This Row],[Hide:\nFormula Name]],Table_PI[[#This Row],[Quantity]],Table_PI[[#This Row],[List 1]],Table_PI[[#This Row],[List 2]],Table_PI[[#This Row],[List 3]],Table_PI[[#This Row],[Size]],Table_PI[[#This Row],[Input 1]],Table_PI[[#This Row],[Input 2]],Table_PI[[#This Row],[Input 3]],Table_PI[[#This Row],[Input 4]],'Customer Information'!$AR$12,7,ROW()),\"No Rebate\"),\"No Rebate\"),0)","v":0},{"$f":"IF(Table_PI[[#This Row],[Hide:\nFormula Name]]<>\"\",IFERROR(IF(MeasureCalc(Table_PI[[#This Row],[Hide:\nFormula Name]],Table_PI[[#This Row],[Quantity]],Table_PI[[#This Row],[List 1]],Table_PI[[#This Row],[List 2]],Table_PI[[#This Row],[List 3]],Table_PI[[#This Row],[Size]],Table_PI[[#This Row],[Input 1]],Table_PI[[#This Row],[Input 2]],Table_PI[[#This Row],[Input 3]],Table_PI[[#This Row],[Input 4]],'Customer Information'!$AR$12,1,ROW())>0,MeasureCalc(Table_PI[[#This Row],[Hide:\nFormula Name]],Table_PI[[#This Row],[Quantity]],Table_PI[[#This Row],[List 1]],Table_PI[[#This Row],[List 2]],Table_PI[[#This Row],[List 3]],Table_PI[[#This Row],[Size]],Table_PI[[#This Row],[Input 1]],Table_PI[[#This Row],[Input 2]],Table_PI[[#This Row],[Input 3]],Table_PI[[#This Row],[Input 4]],'Customer Information'!$AR$12,8,ROW()),\"No Rebate\"),\"No Rebate\"),0)","v":0},{"$f":"IF(Table_PI[[#This Row],[Hide:\nFormula Name]]<>\"\",IF(AND(Table_PI[[#This Row],[Hide:\nFormula Name]]<>\"\",OR(Table_PI[[#This Row],[Rebate]]>0,Table_PI[[#This Row],[Rebate]]=\"No Rebate\")),TRUE,\"MI: Line Item \" & $A232),\"\")","v":""}]
[{"$f":"IF(Table_PI[[#This Row],[Hide:\nFormula Name]]<>\"\",MAX($A$2:A232)+1,\"\")","v":""},null,null,null,null,null,null,null,null,null,null,null,null,null,null,{"$f":"IFERROR(VLOOKUP(Table_PI[[#This Row],[Measure]],'Equipment Lookups'!$C$3:$D$23,2,FALSE),\"\")","v":""},{"$f":"IF(Table_PI[[#This Row],[Hide:\nFormula Name]]<>\"\",IFERROR(IF(MeasureCalc(Table_PI[[#This Row],[Hide:\nFormula Name]],Table_PI[[#This Row],[Quantity]],Table_PI[[#This Row],[List 1]],Table_PI[[#This Row],[List 2]],Table_PI[[#This Row],[List 3]],Table_PI[[#This Row],[Size]],Table_PI[[#This Row],[Input 1]],Table_PI[[#This Row],[Input 2]],Table_PI[[#This Row],[Input 3]],Table_PI[[#This Row],[Input 4]],'Customer Information'!$AR$12,1,ROW())>0,MeasureCalc(Table_PI[[#This Row],[Hide:\nFormula Name]],Table_PI[[#This Row],[Quantity]],Table_PI[[#This Row],[List 1]],Table_PI[[#This Row],[List 2]],Table_PI[[#This Row],[List 3]],Table_PI[[#This Row],[Size]],Table_PI[[#This Row],[Input 1]],Table_PI[[#This Row],[Input 2]],Table_PI[[#This Row],[Input 3]],Table_PI[[#This Row],[Input 4]],'Customer Information'!$AR$12,1,ROW()),\"No Rebate\"),\"No Rebate\"),0)","v":0},{"$f":"IF(Table_PI[[#This Row],[Hide:\nFormula Name]]<>\"\",IFERROR(IF(MeasureCalc(Table_PI[[#This Row],[Hide:\nFormula Name]],Table_PI[[#This Row],[Quantity]],Table_PI[[#This Row],[List 1]],Table_PI[[#This Row],[List 2]],Table_PI[[#This Row],[List 3]],Table_PI[[#This Row],[Size]],Table_PI[[#This Row],[Input 1]],Table_PI[[#This Row],[Input 2]],Table_PI[[#This Row],[Input 3]],Table_PI[[#This Row],[Input 4]],'Customer Information'!$AR$12,1,ROW())>0,MeasureCalc(Table_PI[[#This Row],[Hide:\nFormula Name]],Table_PI[[#This Row],[Quantity]],Table_PI[[#This Row],[List 1]],Table_PI[[#This Row],[List 2]],Table_PI[[#This Row],[List 3]],Table_PI[[#This Row],[Size]],Table_PI[[#This Row],[Input 1]],Table_PI[[#This Row],[Input 2]],Table_PI[[#This Row],[Input 3]],Table_PI[[#This Row],[Input 4]],'Customer Information'!$AR$12,2,ROW()),\"No Rebate\"),\"No Rebate\"),0)","v":0},{"$f":"IF(Table_PI[[#This Row],[Hide:\nFormula Name]]<>\"\",IFERROR(IF(MeasureCalc(Table_PI[[#This Row],[Hide:\nFormula Name]],Table_PI[[#This Row],[Quantity]],Table_PI[[#This Row],[List 1]],Table_PI[[#This Row],[List 2]],Table_PI[[#This Row],[List 3]],Table_PI[[#This Row],[Size]],Table_PI[[#This Row],[Input 1]],Table_PI[[#This Row],[Input 2]],Table_PI[[#This Row],[Input 3]],Table_PI[[#This Row],[Input 4]],'Customer Information'!$AR$12,1,ROW())>0,MeasureCalc(Table_PI[[#This Row],[Hide:\nFormula Name]],Table_PI[[#This Row],[Quantity]],Table_PI[[#This Row],[List 1]],Table_PI[[#This Row],[List 2]],Table_PI[[#This Row],[List 3]],Table_PI[[#This Row],[Size]],Table_PI[[#This Row],[Input 1]],Table_PI[[#This Row],[Input 2]],Table_PI[[#This Row],[Input 3]],Table_PI[[#This Row],[Input 4]],'Customer Information'!$AR$12,3,ROW()),\"No Rebate\"),\"No Rebate\"),0)","v":0},{"$f":"IF(Table_PI[[#This Row],[Hide:\nFormula Name]]<>\"\",IFERROR(IF(MeasureCalc(Table_PI[[#This Row],[Hide:\nFormula Name]],Table_PI[[#This Row],[Quantity]],Table_PI[[#This Row],[List 1]],Table_PI[[#This Row],[List 2]],Table_PI[[#This Row],[List 3]],Table_PI[[#This Row],[Size]],Table_PI[[#This Row],[Input 1]],Table_PI[[#This Row],[Input 2]],Table_PI[[#This Row],[Input 3]],Table_PI[[#This Row],[Input 4]],'Customer Information'!$AR$12,1,ROW())>0,MeasureCalc(Table_PI[[#This Row],[Hide:\nFormula Name]],Table_PI[[#This Row],[Quantity]],Table_PI[[#This Row],[List 1]],Table_PI[[#This Row],[List 2]],Table_PI[[#This Row],[List 3]],Table_PI[[#This Row],[Size]],Table_PI[[#This Row],[Input 1]],Table_PI[[#This Row],[Input 2]],Table_PI[[#This Row],[Input 3]],Table_PI[[#This Row],[Input 4]],'Customer Information'!$AR$12,4,ROW()),\"No Rebate\"),\"No Rebate\"),0)","v":0},{"$f":"IF(Table_PI[[#This Row],[Hide:\nFormula Name]]<>\"\",IFERROR(IF(MeasureCalc(Table_PI[[#This Row],[Hide:\nFormula Name]],Table_PI[[#This Row],[Quantity]],Table_PI[[#This Row],[List 1]],Table_PI[[#This Row],[List 2]],Table_PI[[#This Row],[List 3]],Table_PI[[#This Row],[Size]],Table_PI[[#This Row],[Input 1]],Table_PI[[#This Row],[Input 2]],Table_PI[[#This Row],[Input 3]],Table_PI[[#This Row],[Input 4]],'Customer Information'!$AR$12,1,ROW())>0,MeasureCalc(Table_PI[[#This Row],[Hide:\nFormula Name]],Table_PI[[#This Row],[Quantity]],Table_PI[[#This Row],[List 1]],Table_PI[[#This Row],[List 2]],Table_PI[[#This Row],[List 3]],Table_PI[[#This Row],[Size]],Table_PI[[#This Row],[Input 1]],Table_PI[[#This Row],[Input 2]],Table_PI[[#This Row],[Input 3]],Table_PI[[#This Row],[Input 4]],'Customer Information'!$AR$12,5,ROW()),\"No Rebate\"),\"No Rebate\"),0)","v":0},{"$f":"IF(Table_PI[[#This Row],[Hide:\nFormula Name]]<>\"\",IFERROR(IF(MeasureCalc(Table_PI[[#This Row],[Hide:\nFormula Name]],Table_PI[[#This Row],[Quantity]],Table_PI[[#This Row],[List 1]],Table_PI[[#This Row],[List 2]],Table_PI[[#This Row],[List 3]],Table_PI[[#This Row],[Size]],Table_PI[[#This Row],[Input 1]],Table_PI[[#This Row],[Input 2]],Table_PI[[#This Row],[Input 3]],Table_PI[[#This Row],[Input 4]],'Customer Information'!$AR$12,1,ROW())>0,MeasureCalc(Table_PI[[#This Row],[Hide:\nFormula Name]],Table_PI[[#This Row],[Quantity]],Table_PI[[#This Row],[List 1]],Table_PI[[#This Row],[List 2]],Table_PI[[#This Row],[List 3]],Table_PI[[#This Row],[Size]],Table_PI[[#This Row],[Input 1]],Table_PI[[#This Row],[Input 2]],Table_PI[[#This Row],[Input 3]],Table_PI[[#This Row],[Input 4]],'Customer Information'!$AR$12,6,ROW()),\"No Rebate\"),\"No Rebate\"),0)","v":0},{"$f":"IF(Table_PI[[#This Row],[Hide:\nFormula Name]]<>\"\",IFERROR(IF(MeasureCalc(Table_PI[[#This Row],[Hide:\nFormula Name]],Table_PI[[#This Row],[Quantity]],Table_PI[[#This Row],[List 1]],Table_PI[[#This Row],[List 2]],Table_PI[[#This Row],[List 3]],Table_PI[[#This Row],[Size]],Table_PI[[#This Row],[Input 1]],Table_PI[[#This Row],[Input 2]],Table_PI[[#This Row],[Input 3]],Table_PI[[#This Row],[Input 4]],'Customer Information'!$AR$12,1,ROW())>0,MeasureCalc(Table_PI[[#This Row],[Hide:\nFormula Name]],Table_PI[[#This Row],[Quantity]],Table_PI[[#This Row],[List 1]],Table_PI[[#This Row],[List 2]],Table_PI[[#This Row],[List 3]],Table_PI[[#This Row],[Size]],Table_PI[[#This Row],[Input 1]],Table_PI[[#This Row],[Input 2]],Table_PI[[#This Row],[Input 3]],Table_PI[[#This Row],[Input 4]],'Customer Information'!$AR$12,7,ROW()),\"No Rebate\"),\"No Rebate\"),0)","v":0},{"$f":"IF(Table_PI[[#This Row],[Hide:\nFormula Name]]<>\"\",IFERROR(IF(MeasureCalc(Table_PI[[#This Row],[Hide:\nFormula Name]],Table_PI[[#This Row],[Quantity]],Table_PI[[#This Row],[List 1]],Table_PI[[#This Row],[List 2]],Table_PI[[#This Row],[List 3]],Table_PI[[#This Row],[Size]],Table_PI[[#This Row],[Input 1]],Table_PI[[#This Row],[Input 2]],Table_PI[[#This Row],[Input 3]],Table_PI[[#This Row],[Input 4]],'Customer Information'!$AR$12,1,ROW())>0,MeasureCalc(Table_PI[[#This Row],[Hide:\nFormula Name]],Table_PI[[#This Row],[Quantity]],Table_PI[[#This Row],[List 1]],Table_PI[[#This Row],[List 2]],Table_PI[[#This Row],[List 3]],Table_PI[[#This Row],[Size]],Table_PI[[#This Row],[Input 1]],Table_PI[[#This Row],[Input 2]],Table_PI[[#This Row],[Input 3]],Table_PI[[#This Row],[Input 4]],'Customer Information'!$AR$12,8,ROW()),\"No Rebate\"),\"No Rebate\"),0)","v":0},{"$f":"IF(Table_PI[[#This Row],[Hide:\nFormula Name]]<>\"\",IF(AND(Table_PI[[#This Row],[Hide:\nFormula Name]]<>\"\",OR(Table_PI[[#This Row],[Rebate]]>0,Table_PI[[#This Row],[Rebate]]=\"No Rebate\")),TRUE,\"MI: Line Item \" & $A233),\"\")","v":""}]
[{"$f":"IF(Table_PI[[#This Row],[Hide:\nFormula Name]]<>\"\",MAX($A$2:A233)+1,\"\")","v":""},null,null,null,null,null,null,null,null,null,null,null,null,null,null,{"$f":"IFERROR(VLOOKUP(Table_PI[[#This Row],[Measure]],'Equipment Lookups'!$C$3:$D$23,2,FALSE),\"\")","v":""},{"$f":"IF(Table_PI[[#This Row],[Hide:\nFormula Name]]<>\"\",IFERROR(IF(MeasureCalc(Table_PI[[#This Row],[Hide:\nFormula Name]],Table_PI[[#This Row],[Quantity]],Table_PI[[#This Row],[List 1]],Table_PI[[#This Row],[List 2]],Table_PI[[#This Row],[List 3]],Table_PI[[#This Row],[Size]],Table_PI[[#This Row],[Input 1]],Table_PI[[#This Row],[Input 2]],Table_PI[[#This Row],[Input 3]],Table_PI[[#This Row],[Input 4]],'Customer Information'!$AR$12,1,ROW())>0,MeasureCalc(Table_PI[[#This Row],[Hide:\nFormula Name]],Table_PI[[#This Row],[Quantity]],Table_PI[[#This Row],[List 1]],Table_PI[[#This Row],[List 2]],Table_PI[[#This Row],[List 3]],Table_PI[[#This Row],[Size]],Table_PI[[#This Row],[Input 1]],Table_PI[[#This Row],[Input 2]],Table_PI[[#This Row],[Input 3]],Table_PI[[#This Row],[Input 4]],'Customer Information'!$AR$12,1,ROW()),\"No Rebate\"),\"No Rebate\"),0)","v":0},{"$f":"IF(Table_PI[[#This Row],[Hide:\nFormula Name]]<>\"\",IFERROR(IF(MeasureCalc(Table_PI[[#This Row],[Hide:\nFormula Name]],Table_PI[[#This Row],[Quantity]],Table_PI[[#This Row],[List 1]],Table_PI[[#This Row],[List 2]],Table_PI[[#This Row],[List 3]],Table_PI[[#This Row],[Size]],Table_PI[[#This Row],[Input 1]],Table_PI[[#This Row],[Input 2]],Table_PI[[#This Row],[Input 3]],Table_PI[[#This Row],[Input 4]],'Customer Information'!$AR$12,1,ROW())>0,MeasureCalc(Table_PI[[#This Row],[Hide:\nFormula Name]],Table_PI[[#This Row],[Quantity]],Table_PI[[#This Row],[List 1]],Table_PI[[#This Row],[List 2]],Table_PI[[#This Row],[List 3]],Table_PI[[#This Row],[Size]],Table_PI[[#This Row],[Input 1]],Table_PI[[#This Row],[Input 2]],Table_PI[[#This Row],[Input 3]],Table_PI[[#This Row],[Input 4]],'Customer Information'!$AR$12,2,ROW()),\"No Rebate\"),\"No Rebate\"),0)","v":0},{"$f":"IF(Table_PI[[#This Row],[Hide:\nFormula Name]]<>\"\",IFERROR(IF(MeasureCalc(Table_PI[[#This Row],[Hide:\nFormula Name]],Table_PI[[#This Row],[Quantity]],Table_PI[[#This Row],[List 1]],Table_PI[[#This Row],[List 2]],Table_PI[[#This Row],[List 3]],Table_PI[[#This Row],[Size]],Table_PI[[#This Row],[Input 1]],Table_PI[[#This Row],[Input 2]],Table_PI[[#This Row],[Input 3]],Table_PI[[#This Row],[Input 4]],'Customer Information'!$AR$12,1,ROW())>0,MeasureCalc(Table_PI[[#This Row],[Hide:\nFormula Name]],Table_PI[[#This Row],[Quantity]],Table_PI[[#This Row],[List 1]],Table_PI[[#This Row],[List 2]],Table_PI[[#This Row],[List 3]],Table_PI[[#This Row],[Size]],Table_PI[[#This Row],[Input 1]],Table_PI[[#This Row],[Input 2]],Table_PI[[#This Row],[Input 3]],Table_PI[[#This Row],[Input 4]],'Customer Information'!$AR$12,3,ROW()),\"No Rebate\"),\"No Rebate\"),0)","v":0},{"$f":"IF(Table_PI[[#This Row],[Hide:\nFormula Name]]<>\"\",IFERROR(IF(MeasureCalc(Table_PI[[#This Row],[Hide:\nFormula Name]],Table_PI[[#This Row],[Quantity]],Table_PI[[#This Row],[List 1]],Table_PI[[#This Row],[List 2]],Table_PI[[#This Row],[List 3]],Table_PI[[#This Row],[Size]],Table_PI[[#This Row],[Input 1]],Table_PI[[#This Row],[Input 2]],Table_PI[[#This Row],[Input 3]],Table_PI[[#This Row],[Input 4]],'Customer Information'!$AR$12,1,ROW())>0,MeasureCalc(Table_PI[[#This Row],[Hide:\nFormula Name]],Table_PI[[#This Row],[Quantity]],Table_PI[[#This Row],[List 1]],Table_PI[[#This Row],[List 2]],Table_PI[[#This Row],[List 3]],Table_PI[[#This Row],[Size]],Table_PI[[#This Row],[Input 1]],Table_PI[[#This Row],[Input 2]],Table_PI[[#This Row],[Input 3]],Table_PI[[#This Row],[Input 4]],'Customer Information'!$AR$12,4,ROW()),\"No Rebate\"),\"No Rebate\"),0)","v":0},{"$f":"IF(Table_PI[[#This Row],[Hide:\nFormula Name]]<>\"\",IFERROR(IF(MeasureCalc(Table_PI[[#This Row],[Hide:\nFormula Name]],Table_PI[[#This Row],[Quantity]],Table_PI[[#This Row],[List 1]],Table_PI[[#This Row],[List 2]],Table_PI[[#This Row],[List 3]],Table_PI[[#This Row],[Size]],Table_PI[[#This Row],[Input 1]],Table_PI[[#This Row],[Input 2]],Table_PI[[#This Row],[Input 3]],Table_PI[[#This Row],[Input 4]],'Customer Information'!$AR$12,1,ROW())>0,MeasureCalc(Table_PI[[#This Row],[Hide:\nFormula Name]],Table_PI[[#This Row],[Quantity]],Table_PI[[#This Row],[List 1]],Table_PI[[#This Row],[List 2]],Table_PI[[#This Row],[List 3]],Table_PI[[#This Row],[Size]],Table_PI[[#This Row],[Input 1]],Table_PI[[#This Row],[Input 2]],Table_PI[[#This Row],[Input 3]],Table_PI[[#This Row],[Input 4]],'Customer Information'!$AR$12,5,ROW()),\"No Rebate\"),\"No Rebate\"),0)","v":0},{"$f":"IF(Table_PI[[#This Row],[Hide:\nFormula Name]]<>\"\",IFERROR(IF(MeasureCalc(Table_PI[[#This Row],[Hide:\nFormula Name]],Table_PI[[#This Row],[Quantity]],Table_PI[[#This Row],[List 1]],Table_PI[[#This Row],[List 2]],Table_PI[[#This Row],[List 3]],Table_PI[[#This Row],[Size]],Table_PI[[#This Row],[Input 1]],Table_PI[[#This Row],[Input 2]],Table_PI[[#This Row],[Input 3]],Table_PI[[#This Row],[Input 4]],'Customer Information'!$AR$12,1,ROW())>0,MeasureCalc(Table_PI[[#This Row],[Hide:\nFormula Name]],Table_PI[[#This Row],[Quantity]],Table_PI[[#This Row],[List 1]],Table_PI[[#This Row],[List 2]],Table_PI[[#This Row],[List 3]],Table_PI[[#This Row],[Size]],Table_PI[[#This Row],[Input 1]],Table_PI[[#This Row],[Input 2]],Table_PI[[#This Row],[Input 3]],Table_PI[[#This Row],[Input 4]],'Customer Information'!$AR$12,6,ROW()),\"No Rebate\"),\"No Rebate\"),0)","v":0},{"$f":"IF(Table_PI[[#This Row],[Hide:\nFormula Name]]<>\"\",IFERROR(IF(MeasureCalc(Table_PI[[#This Row],[Hide:\nFormula Name]],Table_PI[[#This Row],[Quantity]],Table_PI[[#This Row],[List 1]],Table_PI[[#This Row],[List 2]],Table_PI[[#This Row],[List 3]],Table_PI[[#This Row],[Size]],Table_PI[[#This Row],[Input 1]],Table_PI[[#This Row],[Input 2]],Table_PI[[#This Row],[Input 3]],Table_PI[[#This Row],[Input 4]],'Customer Information'!$AR$12,1,ROW())>0,MeasureCalc(Table_PI[[#This Row],[Hide:\nFormula Name]],Table_PI[[#This Row],[Quantity]],Table_PI[[#This Row],[List 1]],Table_PI[[#This Row],[List 2]],Table_PI[[#This Row],[List 3]],Table_PI[[#This Row],[Size]],Table_PI[[#This Row],[Input 1]],Table_PI[[#This Row],[Input 2]],Table_PI[[#This Row],[Input 3]],Table_PI[[#This Row],[Input 4]],'Customer Information'!$AR$12,7,ROW()),\"No Rebate\"),\"No Rebate\"),0)","v":0},{"$f":"IF(Table_PI[[#This Row],[Hide:\nFormula Name]]<>\"\",IFERROR(IF(MeasureCalc(Table_PI[[#This Row],[Hide:\nFormula Name]],Table_PI[[#This Row],[Quantity]],Table_PI[[#This Row],[List 1]],Table_PI[[#This Row],[List 2]],Table_PI[[#This Row],[List 3]],Table_PI[[#This Row],[Size]],Table_PI[[#This Row],[Input 1]],Table_PI[[#This Row],[Input 2]],Table_PI[[#This Row],[Input 3]],Table_PI[[#This Row],[Input 4]],'Customer Information'!$AR$12,1,ROW())>0,MeasureCalc(Table_PI[[#This Row],[Hide:\nFormula Name]],Table_PI[[#This Row],[Quantity]],Table_PI[[#This Row],[List 1]],Table_PI[[#This Row],[List 2]],Table_PI[[#This Row],[List 3]],Table_PI[[#This Row],[Size]],Table_PI[[#This Row],[Input 1]],Table_PI[[#This Row],[Input 2]],Table_PI[[#This Row],[Input 3]],Table_PI[[#This Row],[Input 4]],'Customer Information'!$AR$12,8,ROW()),\"No Rebate\"),\"No Rebate\"),0)","v":0},{"$f":"IF(Table_PI[[#This Row],[Hide:\nFormula Name]]<>\"\",IF(AND(Table_PI[[#This Row],[Hide:\nFormula Name]]<>\"\",OR(Table_PI[[#This Row],[Rebate]]>0,Table_PI[[#This Row],[Rebate]]=\"No Rebate\")),TRUE,\"MI: Line Item \" & $A234),\"\")","v":""}]
[{"$f":"IF(Table_PI[[#This Row],[Hide:\nFormula Name]]<>\"\",MAX($A$2:A234)+1,\"\")","v":""},null,null,null,null,null,null,null,null,null,null,null,null,null,null,{"$f":"IFERROR(VLOOKUP(Table_PI[[#This Row],[Measure]],'Equipment Lookups'!$C$3:$D$23,2,FALSE),\"\")","v":""},{"$f":"IF(Table_PI[[#This Row],[Hide:\nFormula Name]]<>\"\",IFERROR(IF(MeasureCalc(Table_PI[[#This Row],[Hide:\nFormula Name]],Table_PI[[#This Row],[Quantity]],Table_PI[[#This Row],[List 1]],Table_PI[[#This Row],[List 2]],Table_PI[[#This Row],[List 3]],Table_PI[[#This Row],[Size]],Table_PI[[#This Row],[Input 1]],Table_PI[[#This Row],[Input 2]],Table_PI[[#This Row],[Input 3]],Table_PI[[#This Row],[Input 4]],'Customer Information'!$AR$12,1,ROW())>0,MeasureCalc(Table_PI[[#This Row],[Hide:\nFormula Name]],Table_PI[[#This Row],[Quantity]],Table_PI[[#This Row],[List 1]],Table_PI[[#This Row],[List 2]],Table_PI[[#This Row],[List 3]],Table_PI[[#This Row],[Size]],Table_PI[[#This Row],[Input 1]],Table_PI[[#This Row],[Input 2]],Table_PI[[#This Row],[Input 3]],Table_PI[[#This Row],[Input 4]],'Customer Information'!$AR$12,1,ROW()),\"No Rebate\"),\"No Rebate\"),0)","v":0},{"$f":"IF(Table_PI[[#This Row],[Hide:\nFormula Name]]<>\"\",IFERROR(IF(MeasureCalc(Table_PI[[#This Row],[Hide:\nFormula Name]],Table_PI[[#This Row],[Quantity]],Table_PI[[#This Row],[List 1]],Table_PI[[#This Row],[List 2]],Table_PI[[#This Row],[List 3]],Table_PI[[#This Row],[Size]],Table_PI[[#This Row],[Input 1]],Table_PI[[#This Row],[Input 2]],Table_PI[[#This Row],[Input 3]],Table_PI[[#This Row],[Input 4]],'Customer Information'!$AR$12,1,ROW())>0,MeasureCalc(Table_PI[[#This Row],[Hide:\nFormula Name]],Table_PI[[#This Row],[Quantity]],Table_PI[[#This Row],[List 1]],Table_PI[[#This Row],[List 2]],Table_PI[[#This Row],[List 3]],Table_PI[[#This Row],[Size]],Table_PI[[#This Row],[Input 1]],Table_PI[[#This Row],[Input 2]],Table_PI[[#This Row],[Input 3]],Table_PI[[#This Row],[Input 4]],'Customer Information'!$AR$12,2,ROW()),\"No Rebate\"),\"No Rebate\"),0)","v":0},{"$f":"IF(Table_PI[[#This Row],[Hide:\nFormula Name]]<>\"\",IFERROR(IF(MeasureCalc(Table_PI[[#This Row],[Hide:\nFormula Name]],Table_PI[[#This Row],[Quantity]],Table_PI[[#This Row],[List 1]],Table_PI[[#This Row],[List 2]],Table_PI[[#This Row],[List 3]],Table_PI[[#This Row],[Size]],Table_PI[[#This Row],[Input 1]],Table_PI[[#This Row],[Input 2]],Table_PI[[#This Row],[Input 3]],Table_PI[[#This Row],[Input 4]],'Customer Information'!$AR$12,1,ROW())>0,MeasureCalc(Table_PI[[#This Row],[Hide:\nFormula Name]],Table_PI[[#This Row],[Quantity]],Table_PI[[#This Row],[List 1]],Table_PI[[#This Row],[List 2]],Table_PI[[#This Row],[List 3]],Table_PI[[#This Row],[Size]],Table_PI[[#This Row],[Input 1]],Table_PI[[#This Row],[Input 2]],Table_PI[[#This Row],[Input 3]],Table_PI[[#This Row],[Input 4]],'Customer Information'!$AR$12,3,ROW()),\"No Rebate\"),\"No Rebate\"),0)","v":0},{"$f":"IF(Table_PI[[#This Row],[Hide:\nFormula Name]]<>\"\",IFERROR(IF(MeasureCalc(Table_PI[[#This Row],[Hide:\nFormula Name]],Table_PI[[#This Row],[Quantity]],Table_PI[[#This Row],[List 1]],Table_PI[[#This Row],[List 2]],Table_PI[[#This Row],[List 3]],Table_PI[[#This Row],[Size]],Table_PI[[#This Row],[Input 1]],Table_PI[[#This Row],[Input 2]],Table_PI[[#This Row],[Input 3]],Table_PI[[#This Row],[Input 4]],'Customer Information'!$AR$12,1,ROW())>0,MeasureCalc(Table_PI[[#This Row],[Hide:\nFormula Name]],Table_PI[[#This Row],[Quantity]],Table_PI[[#This Row],[List 1]],Table_PI[[#This Row],[List 2]],Table_PI[[#This Row],[List 3]],Table_PI[[#This Row],[Size]],Table_PI[[#This Row],[Input 1]],Table_PI[[#This Row],[Input 2]],Table_PI[[#This Row],[Input 3]],Table_PI[[#This Row],[Input 4]],'Customer Information'!$AR$12,4,ROW()),\"No Rebate\"),\"No Rebate\"),0)","v":0},{"$f":"IF(Table_PI[[#This Row],[Hide:\nFormula Name]]<>\"\",IFERROR(IF(MeasureCalc(Table_PI[[#This Row],[Hide:\nFormula Name]],Table_PI[[#This Row],[Quantity]],Table_PI[[#This Row],[List 1]],Table_PI[[#This Row],[List 2]],Table_PI[[#This Row],[List 3]],Table_PI[[#This Row],[Size]],Table_PI[[#This Row],[Input 1]],Table_PI[[#This Row],[Input 2]],Table_PI[[#This Row],[Input 3]],Table_PI[[#This Row],[Input 4]],'Customer Information'!$AR$12,1,ROW())>0,MeasureCalc(Table_PI[[#This Row],[Hide:\nFormula Name]],Table_PI[[#This Row],[Quantity]],Table_PI[[#This Row],[List 1]],Table_PI[[#This Row],[List 2]],Table_PI[[#This Row],[List 3]],Table_PI[[#This Row],[Size]],Table_PI[[#This Row],[Input 1]],Table_PI[[#This Row],[Input 2]],Table_PI[[#This Row],[Input 3]],Table_PI[[#This Row],[Input 4]],'Customer Information'!$AR$12,5,ROW()),\"No Rebate\"),\"No Rebate\"),0)","v":0},{"$f":"IF(Table_PI[[#This Row],[Hide:\nFormula Name]]<>\"\",IFERROR(IF(MeasureCalc(Table_PI[[#This Row],[Hide:\nFormula Name]],Table_PI[[#This Row],[Quantity]],Table_PI[[#This Row],[List 1]],Table_PI[[#This Row],[List 2]],Table_PI[[#This Row],[List 3]],Table_PI[[#This Row],[Size]],Table_PI[[#This Row],[Input 1]],Table_PI[[#This Row],[Input 2]],Table_PI[[#This Row],[Input 3]],Table_PI[[#This Row],[Input 4]],'Customer Information'!$AR$12,1,ROW())>0,MeasureCalc(Table_PI[[#This Row],[Hide:\nFormula Name]],Table_PI[[#This Row],[Quantity]],Table_PI[[#This Row],[List 1]],Table_PI[[#This Row],[List 2]],Table_PI[[#This Row],[List 3]],Table_PI[[#This Row],[Size]],Table_PI[[#This Row],[Input 1]],Table_PI[[#This Row],[Input 2]],Table_PI[[#This Row],[Input 3]],Table_PI[[#This Row],[Input 4]],'Customer Information'!$AR$12,6,ROW()),\"No Rebate\"),\"No Rebate\"),0)","v":0},{"$f":"IF(Table_PI[[#This Row],[Hide:\nFormula Name]]<>\"\",IFERROR(IF(MeasureCalc(Table_PI[[#This Row],[Hide:\nFormula Name]],Table_PI[[#This Row],[Quantity]],Table_PI[[#This Row],[List 1]],Table_PI[[#This Row],[List 2]],Table_PI[[#This Row],[List 3]],Table_PI[[#This Row],[Size]],Table_PI[[#This Row],[Input 1]],Table_PI[[#This Row],[Input 2]],Table_PI[[#This Row],[Input 3]],Table_PI[[#This Row],[Input 4]],'Customer Information'!$AR$12,1,ROW())>0,MeasureCalc(Table_PI[[#This Row],[Hide:\nFormula Name]],Table_PI[[#This Row],[Quantity]],Table_PI[[#This Row],[List 1]],Table_PI[[#This Row],[List 2]],Table_PI[[#This Row],[List 3]],Table_PI[[#This Row],[Size]],Table_PI[[#This Row],[Input 1]],Table_PI[[#This Row],[Input 2]],Table_PI[[#This Row],[Input 3]],Table_PI[[#This Row],[Input 4]],'Customer Information'!$AR$12,7,ROW()),\"No Rebate\"),\"No Rebate\"),0)","v":0},{"$f":"IF(Table_PI[[#This Row],[Hide:\nFormula Name]]<>\"\",IFERROR(IF(MeasureCalc(Table_PI[[#This Row],[Hide:\nFormula Name]],Table_PI[[#This Row],[Quantity]],Table_PI[[#This Row],[List 1]],Table_PI[[#This Row],[List 2]],Table_PI[[#This Row],[List 3]],Table_PI[[#This Row],[Size]],Table_PI[[#This Row],[Input 1]],Table_PI[[#This Row],[Input 2]],Table_PI[[#This Row],[Input 3]],Table_PI[[#This Row],[Input 4]],'Customer Information'!$AR$12,1,ROW())>0,MeasureCalc(Table_PI[[#This Row],[Hide:\nFormula Name]],Table_PI[[#This Row],[Quantity]],Table_PI[[#This Row],[List 1]],Table_PI[[#This Row],[List 2]],Table_PI[[#This Row],[List 3]],Table_PI[[#This Row],[Size]],Table_PI[[#This Row],[Input 1]],Table_PI[[#This Row],[Input 2]],Table_PI[[#This Row],[Input 3]],Table_PI[[#This Row],[Input 4]],'Customer Information'!$AR$12,8,ROW()),\"No Rebate\"),\"No Rebate\"),0)","v":0},{"$f":"IF(Table_PI[[#This Row],[Hide:\nFormula Name]]<>\"\",IF(AND(Table_PI[[#This Row],[Hide:\nFormula Name]]<>\"\",OR(Table_PI[[#This Row],[Rebate]]>0,Table_PI[[#This Row],[Rebate]]=\"No Rebate\")),TRUE,\"MI: Line Item \" & $A235),\"\")","v":""}]
[{"$f":"IF(Table_PI[[#This Row],[Hide:\nFormula Name]]<>\"\",MAX($A$2:A235)+1,\"\")","v":""},null,null,null,null,null,null,null,null,null,null,null,null,null,null,{"$f":"IFERROR(VLOOKUP(Table_PI[[#This Row],[Measure]],'Equipment Lookups'!$C$3:$D$23,2,FALSE),\"\")","v":""},{"$f":"IF(Table_PI[[#This Row],[Hide:\nFormula Name]]<>\"\",IFERROR(IF(MeasureCalc(Table_PI[[#This Row],[Hide:\nFormula Name]],Table_PI[[#This Row],[Quantity]],Table_PI[[#This Row],[List 1]],Table_PI[[#This Row],[List 2]],Table_PI[[#This Row],[List 3]],Table_PI[[#This Row],[Size]],Table_PI[[#This Row],[Input 1]],Table_PI[[#This Row],[Input 2]],Table_PI[[#This Row],[Input 3]],Table_PI[[#This Row],[Input 4]],'Customer Information'!$AR$12,1,ROW())>0,MeasureCalc(Table_PI[[#This Row],[Hide:\nFormula Name]],Table_PI[[#This Row],[Quantity]],Table_PI[[#This Row],[List 1]],Table_PI[[#This Row],[List 2]],Table_PI[[#This Row],[List 3]],Table_PI[[#This Row],[Size]],Table_PI[[#This Row],[Input 1]],Table_PI[[#This Row],[Input 2]],Table_PI[[#This Row],[Input 3]],Table_PI[[#This Row],[Input 4]],'Customer Information'!$AR$12,1,ROW()),\"No Rebate\"),\"No Rebate\"),0)","v":0},{"$f":"IF(Table_PI[[#This Row],[Hide:\nFormula Name]]<>\"\",IFERROR(IF(MeasureCalc(Table_PI[[#This Row],[Hide:\nFormula Name]],Table_PI[[#This Row],[Quantity]],Table_PI[[#This Row],[List 1]],Table_PI[[#This Row],[List 2]],Table_PI[[#This Row],[List 3]],Table_PI[[#This Row],[Size]],Table_PI[[#This Row],[Input 1]],Table_PI[[#This Row],[Input 2]],Table_PI[[#This Row],[Input 3]],Table_PI[[#This Row],[Input 4]],'Customer Information'!$AR$12,1,ROW())>0,MeasureCalc(Table_PI[[#This Row],[Hide:\nFormula Name]],Table_PI[[#This Row],[Quantity]],Table_PI[[#This Row],[List 1]],Table_PI[[#This Row],[List 2]],Table_PI[[#This Row],[List 3]],Table_PI[[#This Row],[Size]],Table_PI[[#This Row],[Input 1]],Table_PI[[#This Row],[Input 2]],Table_PI[[#This Row],[Input 3]],Table_PI[[#This Row],[Input 4]],'Customer Information'!$AR$12,2,ROW()),\"No Rebate\"),\"No Rebate\"),0)","v":0},{"$f":"IF(Table_PI[[#This Row],[Hide:\nFormula Name]]<>\"\",IFERROR(IF(MeasureCalc(Table_PI[[#This Row],[Hide:\nFormula Name]],Table_PI[[#This Row],[Quantity]],Table_PI[[#This Row],[List 1]],Table_PI[[#This Row],[List 2]],Table_PI[[#This Row],[List 3]],Table_PI[[#This Row],[Size]],Table_PI[[#This Row],[Input 1]],Table_PI[[#This Row],[Input 2]],Table_PI[[#This Row],[Input 3]],Table_PI[[#This Row],[Input 4]],'Customer Information'!$AR$12,1,ROW())>0,MeasureCalc(Table_PI[[#This Row],[Hide:\nFormula Name]],Table_PI[[#This Row],[Quantity]],Table_PI[[#This Row],[List 1]],Table_PI[[#This Row],[List 2]],Table_PI[[#This Row],[List 3]],Table_PI[[#This Row],[Size]],Table_PI[[#This Row],[Input 1]],Table_PI[[#This Row],[Input 2]],Table_PI[[#This Row],[Input 3]],Table_PI[[#This Row],[Input 4]],'Customer Information'!$AR$12,3,ROW()),\"No Rebate\"),\"No Rebate\"),0)","v":0},{"$f":"IF(Table_PI[[#This Row],[Hide:\nFormula Name]]<>\"\",IFERROR(IF(MeasureCalc(Table_PI[[#This Row],[Hide:\nFormula Name]],Table_PI[[#This Row],[Quantity]],Table_PI[[#This Row],[List 1]],Table_PI[[#This Row],[List 2]],Table_PI[[#This Row],[List 3]],Table_PI[[#This Row],[Size]],Table_PI[[#This Row],[Input 1]],Table_PI[[#This Row],[Input 2]],Table_PI[[#This Row],[Input 3]],Table_PI[[#This Row],[Input 4]],'Customer Information'!$AR$12,1,ROW())>0,MeasureCalc(Table_PI[[#This Row],[Hide:\nFormula Name]],Table_PI[[#This Row],[Quantity]],Table_PI[[#This Row],[List 1]],Table_PI[[#This Row],[List 2]],Table_PI[[#This Row],[List 3]],Table_PI[[#This Row],[Size]],Table_PI[[#This Row],[Input 1]],Table_PI[[#This Row],[Input 2]],Table_PI[[#This Row],[Input 3]],Table_PI[[#This Row],[Input 4]],'Customer Information'!$AR$12,4,ROW()),\"No Rebate\"),\"No Rebate\"),0)","v":0},{"$f":"IF(Table_PI[[#This Row],[Hide:\nFormula Name]]<>\"\",IFERROR(IF(MeasureCalc(Table_PI[[#This Row],[Hide:\nFormula Name]],Table_PI[[#This Row],[Quantity]],Table_PI[[#This Row],[List 1]],Table_PI[[#This Row],[List 2]],Table_PI[[#This Row],[List 3]],Table_PI[[#This Row],[Size]],Table_PI[[#This Row],[Input 1]],Table_PI[[#This Row],[Input 2]],Table_PI[[#This Row],[Input 3]],Table_PI[[#This Row],[Input 4]],'Customer Information'!$AR$12,1,ROW())>0,MeasureCalc(Table_PI[[#This Row],[Hide:\nFormula Name]],Table_PI[[#This Row],[Quantity]],Table_PI[[#This Row],[List 1]],Table_PI[[#This Row],[List 2]],Table_PI[[#This Row],[List 3]],Table_PI[[#This Row],[Size]],Table_PI[[#This Row],[Input 1]],Table_PI[[#This Row],[Input 2]],Table_PI[[#This Row],[Input 3]],Table_PI[[#This Row],[Input 4]],'Customer Information'!$AR$12,5,ROW()),\"No Rebate\"),\"No Rebate\"),0)","v":0},{"$f":"IF(Table_PI[[#This Row],[Hide:\nFormula Name]]<>\"\",IFERROR(IF(MeasureCalc(Table_PI[[#This Row],[Hide:\nFormula Name]],Table_PI[[#This Row],[Quantity]],Table_PI[[#This Row],[List 1]],Table_PI[[#This Row],[List 2]],Table_PI[[#This Row],[List 3]],Table_PI[[#This Row],[Size]],Table_PI[[#This Row],[Input 1]],Table_PI[[#This Row],[Input 2]],Table_PI[[#This Row],[Input 3]],Table_PI[[#This Row],[Input 4]],'Customer Information'!$AR$12,1,ROW())>0,MeasureCalc(Table_PI[[#This Row],[Hide:\nFormula Name]],Table_PI[[#This Row],[Quantity]],Table_PI[[#This Row],[List 1]],Table_PI[[#This Row],[List 2]],Table_PI[[#This Row],[List 3]],Table_PI[[#This Row],[Size]],Table_PI[[#This Row],[Input 1]],Table_PI[[#This Row],[Input 2]],Table_PI[[#This Row],[Input 3]],Table_PI[[#This Row],[Input 4]],'Customer Information'!$AR$12,6,ROW()),\"No Rebate\"),\"No Rebate\"),0)","v":0},{"$f":"IF(Table_PI[[#This Row],[Hide:\nFormula Name]]<>\"\",IFERROR(IF(MeasureCalc(Table_PI[[#This Row],[Hide:\nFormula Name]],Table_PI[[#This Row],[Quantity]],Table_PI[[#This Row],[List 1]],Table_PI[[#This Row],[List 2]],Table_PI[[#This Row],[List 3]],Table_PI[[#This Row],[Size]],Table_PI[[#This Row],[Input 1]],Table_PI[[#This Row],[Input 2]],Table_PI[[#This Row],[Input 3]],Table_PI[[#This Row],[Input 4]],'Customer Information'!$AR$12,1,ROW())>0,MeasureCalc(Table_PI[[#This Row],[Hide:\nFormula Name]],Table_PI[[#This Row],[Quantity]],Table_PI[[#This Row],[List 1]],Table_PI[[#This Row],[List 2]],Table_PI[[#This Row],[List 3]],Table_PI[[#This Row],[Size]],Table_PI[[#This Row],[Input 1]],Table_PI[[#This Row],[Input 2]],Table_PI[[#This Row],[Input 3]],Table_PI[[#This Row],[Input 4]],'Customer Information'!$AR$12,7,ROW()),\"No Rebate\"),\"No Rebate\"),0)","v":0},{"$f":"IF(Table_PI[[#This Row],[Hide:\nFormula Name]]<>\"\",IFERROR(IF(MeasureCalc(Table_PI[[#This Row],[Hide:\nFormula Name]],Table_PI[[#This Row],[Quantity]],Table_PI[[#This Row],[List 1]],Table_PI[[#This Row],[List 2]],Table_PI[[#This Row],[List 3]],Table_PI[[#This Row],[Size]],Table_PI[[#This Row],[Input 1]],Table_PI[[#This Row],[Input 2]],Table_PI[[#This Row],[Input 3]],Table_PI[[#This Row],[Input 4]],'Customer Information'!$AR$12,1,ROW())>0,MeasureCalc(Table_PI[[#This Row],[Hide:\nFormula Name]],Table_PI[[#This Row],[Quantity]],Table_PI[[#This Row],[List 1]],Table_PI[[#This Row],[List 2]],Table_PI[[#This Row],[List 3]],Table_PI[[#This Row],[Size]],Table_PI[[#This Row],[Input 1]],Table_PI[[#This Row],[Input 2]],Table_PI[[#This Row],[Input 3]],Table_PI[[#This Row],[Input 4]],'Customer Information'!$AR$12,8,ROW()),\"No Rebate\"),\"No Rebate\"),0)","v":0},{"$f":"IF(Table_PI[[#This Row],[Hide:\nFormula Name]]<>\"\",IF(AND(Table_PI[[#This Row],[Hide:\nFormula Name]]<>\"\",OR(Table_PI[[#This Row],[Rebate]]>0,Table_PI[[#This Row],[Rebate]]=\"No Rebate\")),TRUE,\"MI: Line Item \" & $A236),\"\")","v":""}]
[{"$f":"IF(Table_PI[[#This Row],[Hide:\nFormula Name]]<>\"\",MAX($A$2:A236)+1,\"\")","v":""},null,null,null,null,null,null,null,null,null,null,null,null,null,null,{"$f":"IFERROR(VLOOKUP(Table_PI[[#This Row],[Measure]],'Equipment Lookups'!$C$3:$D$23,2,FALSE),\"\")","v":""},{"$f":"IF(Table_PI[[#This Row],[Hide:\nFormula Name]]<>\"\",IFERROR(IF(MeasureCalc(Table_PI[[#This Row],[Hide:\nFormula Name]],Table_PI[[#This Row],[Quantity]],Table_PI[[#This Row],[List 1]],Table_PI[[#This Row],[List 2]],Table_PI[[#This Row],[List 3]],Table_PI[[#This Row],[Size]],Table_PI[[#This Row],[Input 1]],Table_PI[[#This Row],[Input 2]],Table_PI[[#This Row],[Input 3]],Table_PI[[#This Row],[Input 4]],'Customer Information'!$AR$12,1,ROW())>0,MeasureCalc(Table_PI[[#This Row],[Hide:\nFormula Name]],Table_PI[[#This Row],[Quantity]],Table_PI[[#This Row],[List 1]],Table_PI[[#This Row],[List 2]],Table_PI[[#This Row],[List 3]],Table_PI[[#This Row],[Size]],Table_PI[[#This Row],[Input 1]],Table_PI[[#This Row],[Input 2]],Table_PI[[#This Row],[Input 3]],Table_PI[[#This Row],[Input 4]],'Customer Information'!$AR$12,1,ROW()),\"No Rebate\"),\"No Rebate\"),0)","v":0},{"$f":"IF(Table_PI[[#This Row],[Hide:\nFormula Name]]<>\"\",IFERROR(IF(MeasureCalc(Table_PI[[#This Row],[Hide:\nFormula Name]],Table_PI[[#This Row],[Quantity]],Table_PI[[#This Row],[List 1]],Table_PI[[#This Row],[List 2]],Table_PI[[#This Row],[List 3]],Table_PI[[#This Row],[Size]],Table_PI[[#This Row],[Input 1]],Table_PI[[#This Row],[Input 2]],Table_PI[[#This Row],[Input 3]],Table_PI[[#This Row],[Input 4]],'Customer Information'!$AR$12,1,ROW())>0,MeasureCalc(Table_PI[[#This Row],[Hide:\nFormula Name]],Table_PI[[#This Row],[Quantity]],Table_PI[[#This Row],[List 1]],Table_PI[[#This Row],[List 2]],Table_PI[[#This Row],[List 3]],Table_PI[[#This Row],[Size]],Table_PI[[#This Row],[Input 1]],Table_PI[[#This Row],[Input 2]],Table_PI[[#This Row],[Input 3]],Table_PI[[#This Row],[Input 4]],'Customer Information'!$AR$12,2,ROW()),\"No Rebate\"),\"No Rebate\"),0)","v":0},{"$f":"IF(Table_PI[[#This Row],[Hide:\nFormula Name]]<>\"\",IFERROR(IF(MeasureCalc(Table_PI[[#This Row],[Hide:\nFormula Name]],Table_PI[[#This Row],[Quantity]],Table_PI[[#This Row],[List 1]],Table_PI[[#This Row],[List 2]],Table_PI[[#This Row],[List 3]],Table_PI[[#This Row],[Size]],Table_PI[[#This Row],[Input 1]],Table_PI[[#This Row],[Input 2]],Table_PI[[#This Row],[Input 3]],Table_PI[[#This Row],[Input 4]],'Customer Information'!$AR$12,1,ROW())>0,MeasureCalc(Table_PI[[#This Row],[Hide:\nFormula Name]],Table_PI[[#This Row],[Quantity]],Table_PI[[#This Row],[List 1]],Table_PI[[#This Row],[List 2]],Table_PI[[#This Row],[List 3]],Table_PI[[#This Row],[Size]],Table_PI[[#This Row],[Input 1]],Table_PI[[#This Row],[Input 2]],Table_PI[[#This Row],[Input 3]],Table_PI[[#This Row],[Input 4]],'Customer Information'!$AR$12,3,ROW()),\"No Rebate\"),\"No Rebate\"),0)","v":0},{"$f":"IF(Table_PI[[#This Row],[Hide:\nFormula Name]]<>\"\",IFERROR(IF(MeasureCalc(Table_PI[[#This Row],[Hide:\nFormula Name]],Table_PI[[#This Row],[Quantity]],Table_PI[[#This Row],[List 1]],Table_PI[[#This Row],[List 2]],Table_PI[[#This Row],[List 3]],Table_PI[[#This Row],[Size]],Table_PI[[#This Row],[Input 1]],Table_PI[[#This Row],[Input 2]],Table_PI[[#This Row],[Input 3]],Table_PI[[#This Row],[Input 4]],'Customer Information'!$AR$12,1,ROW())>0,MeasureCalc(Table_PI[[#This Row],[Hide:\nFormula Name]],Table_PI[[#This Row],[Quantity]],Table_PI[[#This Row],[List 1]],Table_PI[[#This Row],[List 2]],Table_PI[[#This Row],[List 3]],Table_PI[[#This Row],[Size]],Table_PI[[#This Row],[Input 1]],Table_PI[[#This Row],[Input 2]],Table_PI[[#This Row],[Input 3]],Table_PI[[#This Row],[Input 4]],'Customer Information'!$AR$12,4,ROW()),\"No Rebate\"),\"No Rebate\"),0)","v":0},{"$f":"IF(Table_PI[[#This Row],[Hide:\nFormula Name]]<>\"\",IFERROR(IF(MeasureCalc(Table_PI[[#This Row],[Hide:\nFormula Name]],Table_PI[[#This Row],[Quantity]],Table_PI[[#This Row],[List 1]],Table_PI[[#This Row],[List 2]],Table_PI[[#This Row],[List 3]],Table_PI[[#This Row],[Size]],Table_PI[[#This Row],[Input 1]],Table_PI[[#This Row],[Input 2]],Table_PI[[#This Row],[Input 3]],Table_PI[[#This Row],[Input 4]],'Customer Information'!$AR$12,1,ROW())>0,MeasureCalc(Table_PI[[#This Row],[Hide:\nFormula Name]],Table_PI[[#This Row],[Quantity]],Table_PI[[#This Row],[List 1]],Table_PI[[#This Row],[List 2]],Table_PI[[#This Row],[List 3]],Table_PI[[#This Row],[Size]],Table_PI[[#This Row],[Input 1]],Table_PI[[#This Row],[Input 2]],Table_PI[[#This Row],[Input 3]],Table_PI[[#This Row],[Input 4]],'Customer Information'!$AR$12,5,ROW()),\"No Rebate\"),\"No Rebate\"),0)","v":0},{"$f":"IF(Table_PI[[#This Row],[Hide:\nFormula Name]]<>\"\",IFERROR(IF(MeasureCalc(Table_PI[[#This Row],[Hide:\nFormula Name]],Table_PI[[#This Row],[Quantity]],Table_PI[[#This Row],[List 1]],Table_PI[[#This Row],[List 2]],Table_PI[[#This Row],[List 3]],Table_PI[[#This Row],[Size]],Table_PI[[#This Row],[Input 1]],Table_PI[[#This Row],[Input 2]],Table_PI[[#This Row],[Input 3]],Table_PI[[#This Row],[Input 4]],'Customer Information'!$AR$12,1,ROW())>0,MeasureCalc(Table_PI[[#This Row],[Hide:\nFormula Name]],Table_PI[[#This Row],[Quantity]],Table_PI[[#This Row],[List 1]],Table_PI[[#This Row],[List 2]],Table_PI[[#This Row],[List 3]],Table_PI[[#This Row],[Size]],Table_PI[[#This Row],[Input 1]],Table_PI[[#This Row],[Input 2]],Table_PI[[#This Row],[Input 3]],Table_PI[[#This Row],[Input 4]],'Customer Information'!$AR$12,6,ROW()),\"No Rebate\"),\"No Rebate\"),0)","v":0},{"$f":"IF(Table_PI[[#This Row],[Hide:\nFormula Name]]<>\"\",IFERROR(IF(MeasureCalc(Table_PI[[#This Row],[Hide:\nFormula Name]],Table_PI[[#This Row],[Quantity]],Table_PI[[#This Row],[List 1]],Table_PI[[#This Row],[List 2]],Table_PI[[#This Row],[List 3]],Table_PI[[#This Row],[Size]],Table_PI[[#This Row],[Input 1]],Table_PI[[#This Row],[Input 2]],Table_PI[[#This Row],[Input 3]],Table_PI[[#This Row],[Input 4]],'Customer Information'!$AR$12,1,ROW())>0,MeasureCalc(Table_PI[[#This Row],[Hide:\nFormula Name]],Table_PI[[#This Row],[Quantity]],Table_PI[[#This Row],[List 1]],Table_PI[[#This Row],[List 2]],Table_PI[[#This Row],[List 3]],Table_PI[[#This Row],[Size]],Table_PI[[#This Row],[Input 1]],Table_PI[[#This Row],[Input 2]],Table_PI[[#This Row],[Input 3]],Table_PI[[#This Row],[Input 4]],'Customer Information'!$AR$12,7,ROW()),\"No Rebate\"),\"No Rebate\"),0)","v":0},{"$f":"IF(Table_PI[[#This Row],[Hide:\nFormula Name]]<>\"\",IFERROR(IF(MeasureCalc(Table_PI[[#This Row],[Hide:\nFormula Name]],Table_PI[[#This Row],[Quantity]],Table_PI[[#This Row],[List 1]],Table_PI[[#This Row],[List 2]],Table_PI[[#This Row],[List 3]],Table_PI[[#This Row],[Size]],Table_PI[[#This Row],[Input 1]],Table_PI[[#This Row],[Input 2]],Table_PI[[#This Row],[Input 3]],Table_PI[[#This Row],[Input 4]],'Customer Information'!$AR$12,1,ROW())>0,MeasureCalc(Table_PI[[#This Row],[Hide:\nFormula Name]],Table_PI[[#This Row],[Quantity]],Table_PI[[#This Row],[List 1]],Table_PI[[#This Row],[List 2]],Table_PI[[#This Row],[List 3]],Table_PI[[#This Row],[Size]],Table_PI[[#This Row],[Input 1]],Table_PI[[#This Row],[Input 2]],Table_PI[[#This Row],[Input 3]],Table_PI[[#This Row],[Input 4]],'Customer Information'!$AR$12,8,ROW()),\"No Rebate\"),\"No Rebate\"),0)","v":0},{"$f":"IF(Table_PI[[#This Row],[Hide:\nFormula Name]]<>\"\",IF(AND(Table_PI[[#This Row],[Hide:\nFormula Name]]<>\"\",OR(Table_PI[[#This Row],[Rebate]]>0,Table_PI[[#This Row],[Rebate]]=\"No Rebate\")),TRUE,\"MI: Line Item \" & $A237),\"\")","v":""}]
[{"$f":"IF(Table_PI[[#This Row],[Hide:\nFormula Name]]<>\"\",MAX($A$2:A237)+1,\"\")","v":""},null,null,null,null,null,null,null,null,null,null,null,null,null,null,{"$f":"IFERROR(VLOOKUP(Table_PI[[#This Row],[Measure]],'Equipment Lookups'!$C$3:$D$23,2,FALSE),\"\")","v":""},{"$f":"IF(Table_PI[[#This Row],[Hide:\nFormula Name]]<>\"\",IFERROR(IF(MeasureCalc(Table_PI[[#This Row],[Hide:\nFormula Name]],Table_PI[[#This Row],[Quantity]],Table_PI[[#This Row],[List 1]],Table_PI[[#This Row],[List 2]],Table_PI[[#This Row],[List 3]],Table_PI[[#This Row],[Size]],Table_PI[[#This Row],[Input 1]],Table_PI[[#This Row],[Input 2]],Table_PI[[#This Row],[Input 3]],Table_PI[[#This Row],[Input 4]],'Customer Information'!$AR$12,1,ROW())>0,MeasureCalc(Table_PI[[#This Row],[Hide:\nFormula Name]],Table_PI[[#This Row],[Quantity]],Table_PI[[#This Row],[List 1]],Table_PI[[#This Row],[List 2]],Table_PI[[#This Row],[List 3]],Table_PI[[#This Row],[Size]],Table_PI[[#This Row],[Input 1]],Table_PI[[#This Row],[Input 2]],Table_PI[[#This Row],[Input 3]],Table_PI[[#This Row],[Input 4]],'Customer Information'!$AR$12,1,ROW()),\"No Rebate\"),\"No Rebate\"),0)","v":0},{"$f":"IF(Table_PI[[#This Row],[Hide:\nFormula Name]]<>\"\",IFERROR(IF(MeasureCalc(Table_PI[[#This Row],[Hide:\nFormula Name]],Table_PI[[#This Row],[Quantity]],Table_PI[[#This Row],[List 1]],Table_PI[[#This Row],[List 2]],Table_PI[[#This Row],[List 3]],Table_PI[[#This Row],[Size]],Table_PI[[#This Row],[Input 1]],Table_PI[[#This Row],[Input 2]],Table_PI[[#This Row],[Input 3]],Table_PI[[#This Row],[Input 4]],'Customer Information'!$AR$12,1,ROW())>0,MeasureCalc(Table_PI[[#This Row],[Hide:\nFormula Name]],Table_PI[[#This Row],[Quantity]],Table_PI[[#This Row],[List 1]],Table_PI[[#This Row],[List 2]],Table_PI[[#This Row],[List 3]],Table_PI[[#This Row],[Size]],Table_PI[[#This Row],[Input 1]],Table_PI[[#This Row],[Input 2]],Table_PI[[#This Row],[Input 3]],Table_PI[[#This Row],[Input 4]],'Customer Information'!$AR$12,2,ROW()),\"No Rebate\"),\"No Rebate\"),0)","v":0},{"$f":"IF(Table_PI[[#This Row],[Hide:\nFormula Name]]<>\"\",IFERROR(IF(MeasureCalc(Table_PI[[#This Row],[Hide:\nFormula Name]],Table_PI[[#This Row],[Quantity]],Table_PI[[#This Row],[List 1]],Table_PI[[#This Row],[List 2]],Table_PI[[#This Row],[List 3]],Table_PI[[#This Row],[Size]],Table_PI[[#This Row],[Input 1]],Table_PI[[#This Row],[Input 2]],Table_PI[[#This Row],[Input 3]],Table_PI[[#This Row],[Input 4]],'Customer Information'!$AR$12,1,ROW())>0,MeasureCalc(Table_PI[[#This Row],[Hide:\nFormula Name]],Table_PI[[#This Row],[Quantity]],Table_PI[[#This Row],[List 1]],Table_PI[[#This Row],[List 2]],Table_PI[[#This Row],[List 3]],Table_PI[[#This Row],[Size]],Table_PI[[#This Row],[Input 1]],Table_PI[[#This Row],[Input 2]],Table_PI[[#This Row],[Input 3]],Table_PI[[#This Row],[Input 4]],'Customer Information'!$AR$12,3,ROW()),\"No Rebate\"),\"No Rebate\"),0)","v":0},{"$f":"IF(Table_PI[[#This Row],[Hide:\nFormula Name]]<>\"\",IFERROR(IF(MeasureCalc(Table_PI[[#This Row],[Hide:\nFormula Name]],Table_PI[[#This Row],[Quantity]],Table_PI[[#This Row],[List 1]],Table_PI[[#This Row],[List 2]],Table_PI[[#This Row],[List 3]],Table_PI[[#This Row],[Size]],Table_PI[[#This Row],[Input 1]],Table_PI[[#This Row],[Input 2]],Table_PI[[#This Row],[Input 3]],Table_PI[[#This Row],[Input 4]],'Customer Information'!$AR$12,1,ROW())>0,MeasureCalc(Table_PI[[#This Row],[Hide:\nFormula Name]],Table_PI[[#This Row],[Quantity]],Table_PI[[#This Row],[List 1]],Table_PI[[#This Row],[List 2]],Table_PI[[#This Row],[List 3]],Table_PI[[#This Row],[Size]],Table_PI[[#This Row],[Input 1]],Table_PI[[#This Row],[Input 2]],Table_PI[[#This Row],[Input 3]],Table_PI[[#This Row],[Input 4]],'Customer Information'!$AR$12,4,ROW()),\"No Rebate\"),\"No Rebate\"),0)","v":0},{"$f":"IF(Table_PI[[#This Row],[Hide:\nFormula Name]]<>\"\",IFERROR(IF(MeasureCalc(Table_PI[[#This Row],[Hide:\nFormula Name]],Table_PI[[#This Row],[Quantity]],Table_PI[[#This Row],[List 1]],Table_PI[[#This Row],[List 2]],Table_PI[[#This Row],[List 3]],Table_PI[[#This Row],[Size]],Table_PI[[#This Row],[Input 1]],Table_PI[[#This Row],[Input 2]],Table_PI[[#This Row],[Input 3]],Table_PI[[#This Row],[Input 4]],'Customer Information'!$AR$12,1,ROW())>0,MeasureCalc(Table_PI[[#This Row],[Hide:\nFormula Name]],Table_PI[[#This Row],[Quantity]],Table_PI[[#This Row],[List 1]],Table_PI[[#This Row],[List 2]],Table_PI[[#This Row],[List 3]],Table_PI[[#This Row],[Size]],Table_PI[[#This Row],[Input 1]],Table_PI[[#This Row],[Input 2]],Table_PI[[#This Row],[Input 3]],Table_PI[[#This Row],[Input 4]],'Customer Information'!$AR$12,5,ROW()),\"No Rebate\"),\"No Rebate\"),0)","v":0},{"$f":"IF(Table_PI[[#This Row],[Hide:\nFormula Name]]<>\"\",IFERROR(IF(MeasureCalc(Table_PI[[#This Row],[Hide:\nFormula Name]],Table_PI[[#This Row],[Quantity]],Table_PI[[#This Row],[List 1]],Table_PI[[#This Row],[List 2]],Table_PI[[#This Row],[List 3]],Table_PI[[#This Row],[Size]],Table_PI[[#This Row],[Input 1]],Table_PI[[#This Row],[Input 2]],Table_PI[[#This Row],[Input 3]],Table_PI[[#This Row],[Input 4]],'Customer Information'!$AR$12,1,ROW())>0,MeasureCalc(Table_PI[[#This Row],[Hide:\nFormula Name]],Table_PI[[#This Row],[Quantity]],Table_PI[[#This Row],[List 1]],Table_PI[[#This Row],[List 2]],Table_PI[[#This Row],[List 3]],Table_PI[[#This Row],[Size]],Table_PI[[#This Row],[Input 1]],Table_PI[[#This Row],[Input 2]],Table_PI[[#This Row],[Input 3]],Table_PI[[#This Row],[Input 4]],'Customer Information'!$AR$12,6,ROW()),\"No Rebate\"),\"No Rebate\"),0)","v":0},{"$f":"IF(Table_PI[[#This Row],[Hide:\nFormula Name]]<>\"\",IFERROR(IF(MeasureCalc(Table_PI[[#This Row],[Hide:\nFormula Name]],Table_PI[[#This Row],[Quantity]],Table_PI[[#This Row],[List 1]],Table_PI[[#This Row],[List 2]],Table_PI[[#This Row],[List 3]],Table_PI[[#This Row],[Size]],Table_PI[[#This Row],[Input 1]],Table_PI[[#This Row],[Input 2]],Table_PI[[#This Row],[Input 3]],Table_PI[[#This Row],[Input 4]],'Customer Information'!$AR$12,1,ROW())>0,MeasureCalc(Table_PI[[#This Row],[Hide:\nFormula Name]],Table_PI[[#This Row],[Quantity]],Table_PI[[#This Row],[List 1]],Table_PI[[#This Row],[List 2]],Table_PI[[#This Row],[List 3]],Table_PI[[#This Row],[Size]],Table_PI[[#This Row],[Input 1]],Table_PI[[#This Row],[Input 2]],Table_PI[[#This Row],[Input 3]],Table_PI[[#This Row],[Input 4]],'Customer Information'!$AR$12,7,ROW()),\"No Rebate\"),\"No Rebate\"),0)","v":0},{"$f":"IF(Table_PI[[#This Row],[Hide:\nFormula Name]]<>\"\",IFERROR(IF(MeasureCalc(Table_PI[[#This Row],[Hide:\nFormula Name]],Table_PI[[#This Row],[Quantity]],Table_PI[[#This Row],[List 1]],Table_PI[[#This Row],[List 2]],Table_PI[[#This Row],[List 3]],Table_PI[[#This Row],[Size]],Table_PI[[#This Row],[Input 1]],Table_PI[[#This Row],[Input 2]],Table_PI[[#This Row],[Input 3]],Table_PI[[#This Row],[Input 4]],'Customer Information'!$AR$12,1,ROW())>0,MeasureCalc(Table_PI[[#This Row],[Hide:\nFormula Name]],Table_PI[[#This Row],[Quantity]],Table_PI[[#This Row],[List 1]],Table_PI[[#This Row],[List 2]],Table_PI[[#This Row],[List 3]],Table_PI[[#This Row],[Size]],Table_PI[[#This Row],[Input 1]],Table_PI[[#This Row],[Input 2]],Table_PI[[#This Row],[Input 3]],Table_PI[[#This Row],[Input 4]],'Customer Information'!$AR$12,8,ROW()),\"No Rebate\"),\"No Rebate\"),0)","v":0},{"$f":"IF(Table_PI[[#This Row],[Hide:\nFormula Name]]<>\"\",IF(AND(Table_PI[[#This Row],[Hide:\nFormula Name]]<>\"\",OR(Table_PI[[#This Row],[Rebate]]>0,Table_PI[[#This Row],[Rebate]]=\"No Rebate\")),TRUE,\"MI: Line Item \" & $A238),\"\")","v":""}]
[{"$f":"IF(Table_PI[[#This Row],[Hide:\nFormula Name]]<>\"\",MAX($A$2:A238)+1,\"\")","v":""},null,null,null,null,null,null,null,null,null,null,null,null,null,null,{"$f":"IFERROR(VLOOKUP(Table_PI[[#This Row],[Measure]],'Equipment Lookups'!$C$3:$D$23,2,FALSE),\"\")","v":""},{"$f":"IF(Table_PI[[#This Row],[Hide:\nFormula Name]]<>\"\",IFERROR(IF(MeasureCalc(Table_PI[[#This Row],[Hide:\nFormula Name]],Table_PI[[#This Row],[Quantity]],Table_PI[[#This Row],[List 1]],Table_PI[[#This Row],[List 2]],Table_PI[[#This Row],[List 3]],Table_PI[[#This Row],[Size]],Table_PI[[#This Row],[Input 1]],Table_PI[[#This Row],[Input 2]],Table_PI[[#This Row],[Input 3]],Table_PI[[#This Row],[Input 4]],'Customer Information'!$AR$12,1,ROW())>0,MeasureCalc(Table_PI[[#This Row],[Hide:\nFormula Name]],Table_PI[[#This Row],[Quantity]],Table_PI[[#This Row],[List 1]],Table_PI[[#This Row],[List 2]],Table_PI[[#This Row],[List 3]],Table_PI[[#This Row],[Size]],Table_PI[[#This Row],[Input 1]],Table_PI[[#This Row],[Input 2]],Table_PI[[#This Row],[Input 3]],Table_PI[[#This Row],[Input 4]],'Customer Information'!$AR$12,1,ROW()),\"No Rebate\"),\"No Rebate\"),0)","v":0},{"$f":"IF(Table_PI[[#This Row],[Hide:\nFormula Name]]<>\"\",IFERROR(IF(MeasureCalc(Table_PI[[#This Row],[Hide:\nFormula Name]],Table_PI[[#This Row],[Quantity]],Table_PI[[#This Row],[List 1]],Table_PI[[#This Row],[List 2]],Table_PI[[#This Row],[List 3]],Table_PI[[#This Row],[Size]],Table_PI[[#This Row],[Input 1]],Table_PI[[#This Row],[Input 2]],Table_PI[[#This Row],[Input 3]],Table_PI[[#This Row],[Input 4]],'Customer Information'!$AR$12,1,ROW())>0,MeasureCalc(Table_PI[[#This Row],[Hide:\nFormula Name]],Table_PI[[#This Row],[Quantity]],Table_PI[[#This Row],[List 1]],Table_PI[[#This Row],[List 2]],Table_PI[[#This Row],[List 3]],Table_PI[[#This Row],[Size]],Table_PI[[#This Row],[Input 1]],Table_PI[[#This Row],[Input 2]],Table_PI[[#This Row],[Input 3]],Table_PI[[#This Row],[Input 4]],'Customer Information'!$AR$12,2,ROW()),\"No Rebate\"),\"No Rebate\"),0)","v":0},{"$f":"IF(Table_PI[[#This Row],[Hide:\nFormula Name]]<>\"\",IFERROR(IF(MeasureCalc(Table_PI[[#This Row],[Hide:\nFormula Name]],Table_PI[[#This Row],[Quantity]],Table_PI[[#This Row],[List 1]],Table_PI[[#This Row],[List 2]],Table_PI[[#This Row],[List 3]],Table_PI[[#This Row],[Size]],Table_PI[[#This Row],[Input 1]],Table_PI[[#This Row],[Input 2]],Table_PI[[#This Row],[Input 3]],Table_PI[[#This Row],[Input 4]],'Customer Information'!$AR$12,1,ROW())>0,MeasureCalc(Table_PI[[#This Row],[Hide:\nFormula Name]],Table_PI[[#This Row],[Quantity]],Table_PI[[#This Row],[List 1]],Table_PI[[#This Row],[List 2]],Table_PI[[#This Row],[List 3]],Table_PI[[#This Row],[Size]],Table_PI[[#This Row],[Input 1]],Table_PI[[#This Row],[Input 2]],Table_PI[[#This Row],[Input 3]],Table_PI[[#This Row],[Input 4]],'Customer Information'!$AR$12,3,ROW()),\"No Rebate\"),\"No Rebate\"),0)","v":0},{"$f":"IF(Table_PI[[#This Row],[Hide:\nFormula Name]]<>\"\",IFERROR(IF(MeasureCalc(Table_PI[[#This Row],[Hide:\nFormula Name]],Table_PI[[#This Row],[Quantity]],Table_PI[[#This Row],[List 1]],Table_PI[[#This Row],[List 2]],Table_PI[[#This Row],[List 3]],Table_PI[[#This Row],[Size]],Table_PI[[#This Row],[Input 1]],Table_PI[[#This Row],[Input 2]],Table_PI[[#This Row],[Input 3]],Table_PI[[#This Row],[Input 4]],'Customer Information'!$AR$12,1,ROW())>0,MeasureCalc(Table_PI[[#This Row],[Hide:\nFormula Name]],Table_PI[[#This Row],[Quantity]],Table_PI[[#This Row],[List 1]],Table_PI[[#This Row],[List 2]],Table_PI[[#This Row],[List 3]],Table_PI[[#This Row],[Size]],Table_PI[[#This Row],[Input 1]],Table_PI[[#This Row],[Input 2]],Table_PI[[#This Row],[Input 3]],Table_PI[[#This Row],[Input 4]],'Customer Information'!$AR$12,4,ROW()),\"No Rebate\"),\"No Rebate\"),0)","v":0},{"$f":"IF(Table_PI[[#This Row],[Hide:\nFormula Name]]<>\"\",IFERROR(IF(MeasureCalc(Table_PI[[#This Row],[Hide:\nFormula Name]],Table_PI[[#This Row],[Quantity]],Table_PI[[#This Row],[List 1]],Table_PI[[#This Row],[List 2]],Table_PI[[#This Row],[List 3]],Table_PI[[#This Row],[Size]],Table_PI[[#This Row],[Input 1]],Table_PI[[#This Row],[Input 2]],Table_PI[[#This Row],[Input 3]],Table_PI[[#This Row],[Input 4]],'Customer Information'!$AR$12,1,ROW())>0,MeasureCalc(Table_PI[[#This Row],[Hide:\nFormula Name]],Table_PI[[#This Row],[Quantity]],Table_PI[[#This Row],[List 1]],Table_PI[[#This Row],[List 2]],Table_PI[[#This Row],[List 3]],Table_PI[[#This Row],[Size]],Table_PI[[#This Row],[Input 1]],Table_PI[[#This Row],[Input 2]],Table_PI[[#This Row],[Input 3]],Table_PI[[#This Row],[Input 4]],'Customer Information'!$AR$12,5,ROW()),\"No Rebate\"),\"No Rebate\"),0)","v":0},{"$f":"IF(Table_PI[[#This Row],[Hide:\nFormula Name]]<>\"\",IFERROR(IF(MeasureCalc(Table_PI[[#This Row],[Hide:\nFormula Name]],Table_PI[[#This Row],[Quantity]],Table_PI[[#This Row],[List 1]],Table_PI[[#This Row],[List 2]],Table_PI[[#This Row],[List 3]],Table_PI[[#This Row],[Size]],Table_PI[[#This Row],[Input 1]],Table_PI[[#This Row],[Input 2]],Table_PI[[#This Row],[Input 3]],Table_PI[[#This Row],[Input 4]],'Customer Information'!$AR$12,1,ROW())>0,MeasureCalc(Table_PI[[#This Row],[Hide:\nFormula Name]],Table_PI[[#This Row],[Quantity]],Table_PI[[#This Row],[List 1]],Table_PI[[#This Row],[List 2]],Table_PI[[#This Row],[List 3]],Table_PI[[#This Row],[Size]],Table_PI[[#This Row],[Input 1]],Table_PI[[#This Row],[Input 2]],Table_PI[[#This Row],[Input 3]],Table_PI[[#This Row],[Input 4]],'Customer Information'!$AR$12,6,ROW()),\"No Rebate\"),\"No Rebate\"),0)","v":0},{"$f":"IF(Table_PI[[#This Row],[Hide:\nFormula Name]]<>\"\",IFERROR(IF(MeasureCalc(Table_PI[[#This Row],[Hide:\nFormula Name]],Table_PI[[#This Row],[Quantity]],Table_PI[[#This Row],[List 1]],Table_PI[[#This Row],[List 2]],Table_PI[[#This Row],[List 3]],Table_PI[[#This Row],[Size]],Table_PI[[#This Row],[Input 1]],Table_PI[[#This Row],[Input 2]],Table_PI[[#This Row],[Input 3]],Table_PI[[#This Row],[Input 4]],'Customer Information'!$AR$12,1,ROW())>0,MeasureCalc(Table_PI[[#This Row],[Hide:\nFormula Name]],Table_PI[[#This Row],[Quantity]],Table_PI[[#This Row],[List 1]],Table_PI[[#This Row],[List 2]],Table_PI[[#This Row],[List 3]],Table_PI[[#This Row],[Size]],Table_PI[[#This Row],[Input 1]],Table_PI[[#This Row],[Input 2]],Table_PI[[#This Row],[Input 3]],Table_PI[[#This Row],[Input 4]],'Customer Information'!$AR$12,7,ROW()),\"No Rebate\"),\"No Rebate\"),0)","v":0},{"$f":"IF(Table_PI[[#This Row],[Hide:\nFormula Name]]<>\"\",IFERROR(IF(MeasureCalc(Table_PI[[#This Row],[Hide:\nFormula Name]],Table_PI[[#This Row],[Quantity]],Table_PI[[#This Row],[List 1]],Table_PI[[#This Row],[List 2]],Table_PI[[#This Row],[List 3]],Table_PI[[#This Row],[Size]],Table_PI[[#This Row],[Input 1]],Table_PI[[#This Row],[Input 2]],Table_PI[[#This Row],[Input 3]],Table_PI[[#This Row],[Input 4]],'Customer Information'!$AR$12,1,ROW())>0,MeasureCalc(Table_PI[[#This Row],[Hide:\nFormula Name]],Table_PI[[#This Row],[Quantity]],Table_PI[[#This Row],[List 1]],Table_PI[[#This Row],[List 2]],Table_PI[[#This Row],[List 3]],Table_PI[[#This Row],[Size]],Table_PI[[#This Row],[Input 1]],Table_PI[[#This Row],[Input 2]],Table_PI[[#This Row],[Input 3]],Table_PI[[#This Row],[Input 4]],'Customer Information'!$AR$12,8,ROW()),\"No Rebate\"),\"No Rebate\"),0)","v":0},{"$f":"IF(Table_PI[[#This Row],[Hide:\nFormula Name]]<>\"\",IF(AND(Table_PI[[#This Row],[Hide:\nFormula Name]]<>\"\",OR(Table_PI[[#This Row],[Rebate]]>0,Table_PI[[#This Row],[Rebate]]=\"No Rebate\")),TRUE,\"MI: Line Item \" & $A239),\"\")","v":""}]
[{"$f":"IF(Table_PI[[#This Row],[Hide:\nFormula Name]]<>\"\",MAX($A$2:A239)+1,\"\")","v":""},null,null,null,null,null,null,null,null,null,null,null,null,null,null,{"$f":"IFERROR(VLOOKUP(Table_PI[[#This Row],[Measure]],'Equipment Lookups'!$C$3:$D$23,2,FALSE),\"\")","v":""},{"$f":"IF(Table_PI[[#This Row],[Hide:\nFormula Name]]<>\"\",IFERROR(IF(MeasureCalc(Table_PI[[#This Row],[Hide:\nFormula Name]],Table_PI[[#This Row],[Quantity]],Table_PI[[#This Row],[List 1]],Table_PI[[#This Row],[List 2]],Table_PI[[#This Row],[List 3]],Table_PI[[#This Row],[Size]],Table_PI[[#This Row],[Input 1]],Table_PI[[#This Row],[Input 2]],Table_PI[[#This Row],[Input 3]],Table_PI[[#This Row],[Input 4]],'Customer Information'!$AR$12,1,ROW())>0,MeasureCalc(Table_PI[[#This Row],[Hide:\nFormula Name]],Table_PI[[#This Row],[Quantity]],Table_PI[[#This Row],[List 1]],Table_PI[[#This Row],[List 2]],Table_PI[[#This Row],[List 3]],Table_PI[[#This Row],[Size]],Table_PI[[#This Row],[Input 1]],Table_PI[[#This Row],[Input 2]],Table_PI[[#This Row],[Input 3]],Table_PI[[#This Row],[Input 4]],'Customer Information'!$AR$12,1,ROW()),\"No Rebate\"),\"No Rebate\"),0)","v":0},{"$f":"IF(Table_PI[[#This Row],[Hide:\nFormula Name]]<>\"\",IFERROR(IF(MeasureCalc(Table_PI[[#This Row],[Hide:\nFormula Name]],Table_PI[[#This Row],[Quantity]],Table_PI[[#This Row],[List 1]],Table_PI[[#This Row],[List 2]],Table_PI[[#This Row],[List 3]],Table_PI[[#This Row],[Size]],Table_PI[[#This Row],[Input 1]],Table_PI[[#This Row],[Input 2]],Table_PI[[#This Row],[Input 3]],Table_PI[[#This Row],[Input 4]],'Customer Information'!$AR$12,1,ROW())>0,MeasureCalc(Table_PI[[#This Row],[Hide:\nFormula Name]],Table_PI[[#This Row],[Quantity]],Table_PI[[#This Row],[List 1]],Table_PI[[#This Row],[List 2]],Table_PI[[#This Row],[List 3]],Table_PI[[#This Row],[Size]],Table_PI[[#This Row],[Input 1]],Table_PI[[#This Row],[Input 2]],Table_PI[[#This Row],[Input 3]],Table_PI[[#This Row],[Input 4]],'Customer Information'!$AR$12,2,ROW()),\"No Rebate\"),\"No Rebate\"),0)","v":0},{"$f":"IF(Table_PI[[#This Row],[Hide:\nFormula Name]]<>\"\",IFERROR(IF(MeasureCalc(Table_PI[[#This Row],[Hide:\nFormula Name]],Table_PI[[#This Row],[Quantity]],Table_PI[[#This Row],[List 1]],Table_PI[[#This Row],[List 2]],Table_PI[[#This Row],[List 3]],Table_PI[[#This Row],[Size]],Table_PI[[#This Row],[Input 1]],Table_PI[[#This Row],[Input 2]],Table_PI[[#This Row],[Input 3]],Table_PI[[#This Row],[Input 4]],'Customer Information'!$AR$12,1,ROW())>0,MeasureCalc(Table_PI[[#This Row],[Hide:\nFormula Name]],Table_PI[[#This Row],[Quantity]],Table_PI[[#This Row],[List 1]],Table_PI[[#This Row],[List 2]],Table_PI[[#This Row],[List 3]],Table_PI[[#This Row],[Size]],Table_PI[[#This Row],[Input 1]],Table_PI[[#This Row],[Input 2]],Table_PI[[#This Row],[Input 3]],Table_PI[[#This Row],[Input 4]],'Customer Information'!$AR$12,3,ROW()),\"No Rebate\"),\"No Rebate\"),0)","v":0},{"$f":"IF(Table_PI[[#This Row],[Hide:\nFormula Name]]<>\"\",IFERROR(IF(MeasureCalc(Table_PI[[#This Row],[Hide:\nFormula Name]],Table_PI[[#This Row],[Quantity]],Table_PI[[#This Row],[List 1]],Table_PI[[#This Row],[List 2]],Table_PI[[#This Row],[List 3]],Table_PI[[#This Row],[Size]],Table_PI[[#This Row],[Input 1]],Table_PI[[#This Row],[Input 2]],Table_PI[[#This Row],[Input 3]],Table_PI[[#This Row],[Input 4]],'Customer Information'!$AR$12,1,ROW())>0,MeasureCalc(Table_PI[[#This Row],[Hide:\nFormula Name]],Table_PI[[#This Row],[Quantity]],Table_PI[[#This Row],[List 1]],Table_PI[[#This Row],[List 2]],Table_PI[[#This Row],[List 3]],Table_PI[[#This Row],[Size]],Table_PI[[#This Row],[Input 1]],Table_PI[[#This Row],[Input 2]],Table_PI[[#This Row],[Input 3]],Table_PI[[#This Row],[Input 4]],'Customer Information'!$AR$12,4,ROW()),\"No Rebate\"),\"No Rebate\"),0)","v":0},{"$f":"IF(Table_PI[[#This Row],[Hide:\nFormula Name]]<>\"\",IFERROR(IF(MeasureCalc(Table_PI[[#This Row],[Hide:\nFormula Name]],Table_PI[[#This Row],[Quantity]],Table_PI[[#This Row],[List 1]],Table_PI[[#This Row],[List 2]],Table_PI[[#This Row],[List 3]],Table_PI[[#This Row],[Size]],Table_PI[[#This Row],[Input 1]],Table_PI[[#This Row],[Input 2]],Table_PI[[#This Row],[Input 3]],Table_PI[[#This Row],[Input 4]],'Customer Information'!$AR$12,1,ROW())>0,MeasureCalc(Table_PI[[#This Row],[Hide:\nFormula Name]],Table_PI[[#This Row],[Quantity]],Table_PI[[#This Row],[List 1]],Table_PI[[#This Row],[List 2]],Table_PI[[#This Row],[List 3]],Table_PI[[#This Row],[Size]],Table_PI[[#This Row],[Input 1]],Table_PI[[#This Row],[Input 2]],Table_PI[[#This Row],[Input 3]],Table_PI[[#This Row],[Input 4]],'Customer Information'!$AR$12,5,ROW()),\"No Rebate\"),\"No Rebate\"),0)","v":0},{"$f":"IF(Table_PI[[#This Row],[Hide:\nFormula Name]]<>\"\",IFERROR(IF(MeasureCalc(Table_PI[[#This Row],[Hide:\nFormula Name]],Table_PI[[#This Row],[Quantity]],Table_PI[[#This Row],[List 1]],Table_PI[[#This Row],[List 2]],Table_PI[[#This Row],[List 3]],Table_PI[[#This Row],[Size]],Table_PI[[#This Row],[Input 1]],Table_PI[[#This Row],[Input 2]],Table_PI[[#This Row],[Input 3]],Table_PI[[#This Row],[Input 4]],'Customer Information'!$AR$12,1,ROW())>0,MeasureCalc(Table_PI[[#This Row],[Hide:\nFormula Name]],Table_PI[[#This Row],[Quantity]],Table_PI[[#This Row],[List 1]],Table_PI[[#This Row],[List 2]],Table_PI[[#This Row],[List 3]],Table_PI[[#This Row],[Size]],Table_PI[[#This Row],[Input 1]],Table_PI[[#This Row],[Input 2]],Table_PI[[#This Row],[Input 3]],Table_PI[[#This Row],[Input 4]],'Customer Information'!$AR$12,6,ROW()),\"No Rebate\"),\"No Rebate\"),0)","v":0},{"$f":"IF(Table_PI[[#This Row],[Hide:\nFormula Name]]<>\"\",IFERROR(IF(MeasureCalc(Table_PI[[#This Row],[Hide:\nFormula Name]],Table_PI[[#This Row],[Quantity]],Table_PI[[#This Row],[List 1]],Table_PI[[#This Row],[List 2]],Table_PI[[#This Row],[List 3]],Table_PI[[#This Row],[Size]],Table_PI[[#This Row],[Input 1]],Table_PI[[#This Row],[Input 2]],Table_PI[[#This Row],[Input 3]],Table_PI[[#This Row],[Input 4]],'Customer Information'!$AR$12,1,ROW())>0,MeasureCalc(Table_PI[[#This Row],[Hide:\nFormula Name]],Table_PI[[#This Row],[Quantity]],Table_PI[[#This Row],[List 1]],Table_PI[[#This Row],[List 2]],Table_PI[[#This Row],[List 3]],Table_PI[[#This Row],[Size]],Table_PI[[#This Row],[Input 1]],Table_PI[[#This Row],[Input 2]],Table_PI[[#This Row],[Input 3]],Table_PI[[#This Row],[Input 4]],'Customer Information'!$AR$12,7,ROW()),\"No Rebate\"),\"No Rebate\"),0)","v":0},{"$f":"IF(Table_PI[[#This Row],[Hide:\nFormula Name]]<>\"\",IFERROR(IF(MeasureCalc(Table_PI[[#This Row],[Hide:\nFormula Name]],Table_PI[[#This Row],[Quantity]],Table_PI[[#This Row],[List 1]],Table_PI[[#This Row],[List 2]],Table_PI[[#This Row],[List 3]],Table_PI[[#This Row],[Size]],Table_PI[[#This Row],[Input 1]],Table_PI[[#This Row],[Input 2]],Table_PI[[#This Row],[Input 3]],Table_PI[[#This Row],[Input 4]],'Customer Information'!$AR$12,1,ROW())>0,MeasureCalc(Table_PI[[#This Row],[Hide:\nFormula Name]],Table_PI[[#This Row],[Quantity]],Table_PI[[#This Row],[List 1]],Table_PI[[#This Row],[List 2]],Table_PI[[#This Row],[List 3]],Table_PI[[#This Row],[Size]],Table_PI[[#This Row],[Input 1]],Table_PI[[#This Row],[Input 2]],Table_PI[[#This Row],[Input 3]],Table_PI[[#This Row],[Input 4]],'Customer Information'!$AR$12,8,ROW()),\"No Rebate\"),\"No Rebate\"),0)","v":0},{"$f":"IF(Table_PI[[#This Row],[Hide:\nFormula Name]]<>\"\",IF(AND(Table_PI[[#This Row],[Hide:\nFormula Name]]<>\"\",OR(Table_PI[[#This Row],[Rebate]]>0,Table_PI[[#This Row],[Rebate]]=\"No Rebate\")),TRUE,\"MI: Line Item \" & $A240),\"\")","v":""}]
[{"$f":"IF(Table_PI[[#This Row],[Hide:\nFormula Name]]<>\"\",MAX($A$2:A240)+1,\"\")","v":""},null,null,null,null,null,null,null,null,null,null,null,null,null,null,{"$f":"IFERROR(VLOOKUP(Table_PI[[#This Row],[Measure]],'Equipment Lookups'!$C$3:$D$23,2,FALSE),\"\")","v":""},{"$f":"IF(Table_PI[[#This Row],[Hide:\nFormula Name]]<>\"\",IFERROR(IF(MeasureCalc(Table_PI[[#This Row],[Hide:\nFormula Name]],Table_PI[[#This Row],[Quantity]],Table_PI[[#This Row],[List 1]],Table_PI[[#This Row],[List 2]],Table_PI[[#This Row],[List 3]],Table_PI[[#This Row],[Size]],Table_PI[[#This Row],[Input 1]],Table_PI[[#This Row],[Input 2]],Table_PI[[#This Row],[Input 3]],Table_PI[[#This Row],[Input 4]],'Customer Information'!$AR$12,1,ROW())>0,MeasureCalc(Table_PI[[#This Row],[Hide:\nFormula Name]],Table_PI[[#This Row],[Quantity]],Table_PI[[#This Row],[List 1]],Table_PI[[#This Row],[List 2]],Table_PI[[#This Row],[List 3]],Table_PI[[#This Row],[Size]],Table_PI[[#This Row],[Input 1]],Table_PI[[#This Row],[Input 2]],Table_PI[[#This Row],[Input 3]],Table_PI[[#This Row],[Input 4]],'Customer Information'!$AR$12,1,ROW()),\"No Rebate\"),\"No Rebate\"),0)","v":0},{"$f":"IF(Table_PI[[#This Row],[Hide:\nFormula Name]]<>\"\",IFERROR(IF(MeasureCalc(Table_PI[[#This Row],[Hide:\nFormula Name]],Table_PI[[#This Row],[Quantity]],Table_PI[[#This Row],[List 1]],Table_PI[[#This Row],[List 2]],Table_PI[[#This Row],[List 3]],Table_PI[[#This Row],[Size]],Table_PI[[#This Row],[Input 1]],Table_PI[[#This Row],[Input 2]],Table_PI[[#This Row],[Input 3]],Table_PI[[#This Row],[Input 4]],'Customer Information'!$AR$12,1,ROW())>0,MeasureCalc(Table_PI[[#This Row],[Hide:\nFormula Name]],Table_PI[[#This Row],[Quantity]],Table_PI[[#This Row],[List 1]],Table_PI[[#This Row],[List 2]],Table_PI[[#This Row],[List 3]],Table_PI[[#This Row],[Size]],Table_PI[[#This Row],[Input 1]],Table_PI[[#This Row],[Input 2]],Table_PI[[#This Row],[Input 3]],Table_PI[[#This Row],[Input 4]],'Customer Information'!$AR$12,2,ROW()),\"No Rebate\"),\"No Rebate\"),0)","v":0},{"$f":"IF(Table_PI[[#This Row],[Hide:\nFormula Name]]<>\"\",IFERROR(IF(MeasureCalc(Table_PI[[#This Row],[Hide:\nFormula Name]],Table_PI[[#This Row],[Quantity]],Table_PI[[#This Row],[List 1]],Table_PI[[#This Row],[List 2]],Table_PI[[#This Row],[List 3]],Table_PI[[#This Row],[Size]],Table_PI[[#This Row],[Input 1]],Table_PI[[#This Row],[Input 2]],Table_PI[[#This Row],[Input 3]],Table_PI[[#This Row],[Input 4]],'Customer Information'!$AR$12,1,ROW())>0,MeasureCalc(Table_PI[[#This Row],[Hide:\nFormula Name]],Table_PI[[#This Row],[Quantity]],Table_PI[[#This Row],[List 1]],Table_PI[[#This Row],[List 2]],Table_PI[[#This Row],[List 3]],Table_PI[[#This Row],[Size]],Table_PI[[#This Row],[Input 1]],Table_PI[[#This Row],[Input 2]],Table_PI[[#This Row],[Input 3]],Table_PI[[#This Row],[Input 4]],'Customer Information'!$AR$12,3,ROW()),\"No Rebate\"),\"No Rebate\"),0)","v":0},{"$f":"IF(Table_PI[[#This Row],[Hide:\nFormula Name]]<>\"\",IFERROR(IF(MeasureCalc(Table_PI[[#This Row],[Hide:\nFormula Name]],Table_PI[[#This Row],[Quantity]],Table_PI[[#This Row],[List 1]],Table_PI[[#This Row],[List 2]],Table_PI[[#This Row],[List 3]],Table_PI[[#This Row],[Size]],Table_PI[[#This Row],[Input 1]],Table_PI[[#This Row],[Input 2]],Table_PI[[#This Row],[Input 3]],Table_PI[[#This Row],[Input 4]],'Customer Information'!$AR$12,1,ROW())>0,MeasureCalc(Table_PI[[#This Row],[Hide:\nFormula Name]],Table_PI[[#This Row],[Quantity]],Table_PI[[#This Row],[List 1]],Table_PI[[#This Row],[List 2]],Table_PI[[#This Row],[List 3]],Table_PI[[#This Row],[Size]],Table_PI[[#This Row],[Input 1]],Table_PI[[#This Row],[Input 2]],Table_PI[[#This Row],[Input 3]],Table_PI[[#This Row],[Input 4]],'Customer Information'!$AR$12,4,ROW()),\"No Rebate\"),\"No Rebate\"),0)","v":0},{"$f":"IF(Table_PI[[#This Row],[Hide:\nFormula Name]]<>\"\",IFERROR(IF(MeasureCalc(Table_PI[[#This Row],[Hide:\nFormula Name]],Table_PI[[#This Row],[Quantity]],Table_PI[[#This Row],[List 1]],Table_PI[[#This Row],[List 2]],Table_PI[[#This Row],[List 3]],Table_PI[[#This Row],[Size]],Table_PI[[#This Row],[Input 1]],Table_PI[[#This Row],[Input 2]],Table_PI[[#This Row],[Input 3]],Table_PI[[#This Row],[Input 4]],'Customer Information'!$AR$12,1,ROW())>0,MeasureCalc(Table_PI[[#This Row],[Hide:\nFormula Name]],Table_PI[[#This Row],[Quantity]],Table_PI[[#This Row],[List 1]],Table_PI[[#This Row],[List 2]],Table_PI[[#This Row],[List 3]],Table_PI[[#This Row],[Size]],Table_PI[[#This Row],[Input 1]],Table_PI[[#This Row],[Input 2]],Table_PI[[#This Row],[Input 3]],Table_PI[[#This Row],[Input 4]],'Customer Information'!$AR$12,5,ROW()),\"No Rebate\"),\"No Rebate\"),0)","v":0},{"$f":"IF(Table_PI[[#This Row],[Hide:\nFormula Name]]<>\"\",IFERROR(IF(MeasureCalc(Table_PI[[#This Row],[Hide:\nFormula Name]],Table_PI[[#This Row],[Quantity]],Table_PI[[#This Row],[List 1]],Table_PI[[#This Row],[List 2]],Table_PI[[#This Row],[List 3]],Table_PI[[#This Row],[Size]],Table_PI[[#This Row],[Input 1]],Table_PI[[#This Row],[Input 2]],Table_PI[[#This Row],[Input 3]],Table_PI[[#This Row],[Input 4]],'Customer Information'!$AR$12,1,ROW())>0,MeasureCalc(Table_PI[[#This Row],[Hide:\nFormula Name]],Table_PI[[#This Row],[Quantity]],Table_PI[[#This Row],[List 1]],Table_PI[[#This Row],[List 2]],Table_PI[[#This Row],[List 3]],Table_PI[[#This Row],[Size]],Table_PI[[#This Row],[Input 1]],Table_PI[[#This Row],[Input 2]],Table_PI[[#This Row],[Input 3]],Table_PI[[#This Row],[Input 4]],'Customer Information'!$AR$12,6,ROW()),\"No Rebate\"),\"No Rebate\"),0)","v":0},{"$f":"IF(Table_PI[[#This Row],[Hide:\nFormula Name]]<>\"\",IFERROR(IF(MeasureCalc(Table_PI[[#This Row],[Hide:\nFormula Name]],Table_PI[[#This Row],[Quantity]],Table_PI[[#This Row],[List 1]],Table_PI[[#This Row],[List 2]],Table_PI[[#This Row],[List 3]],Table_PI[[#This Row],[Size]],Table_PI[[#This Row],[Input 1]],Table_PI[[#This Row],[Input 2]],Table_PI[[#This Row],[Input 3]],Table_PI[[#This Row],[Input 4]],'Customer Information'!$AR$12,1,ROW())>0,MeasureCalc(Table_PI[[#This Row],[Hide:\nFormula Name]],Table_PI[[#This Row],[Quantity]],Table_PI[[#This Row],[List 1]],Table_PI[[#This Row],[List 2]],Table_PI[[#This Row],[List 3]],Table_PI[[#This Row],[Size]],Table_PI[[#This Row],[Input 1]],Table_PI[[#This Row],[Input 2]],Table_PI[[#This Row],[Input 3]],Table_PI[[#This Row],[Input 4]],'Customer Information'!$AR$12,7,ROW()),\"No Rebate\"),\"No Rebate\"),0)","v":0},{"$f":"IF(Table_PI[[#This Row],[Hide:\nFormula Name]]<>\"\",IFERROR(IF(MeasureCalc(Table_PI[[#This Row],[Hide:\nFormula Name]],Table_PI[[#This Row],[Quantity]],Table_PI[[#This Row],[List 1]],Table_PI[[#This Row],[List 2]],Table_PI[[#This Row],[List 3]],Table_PI[[#This Row],[Size]],Table_PI[[#This Row],[Input 1]],Table_PI[[#This Row],[Input 2]],Table_PI[[#This Row],[Input 3]],Table_PI[[#This Row],[Input 4]],'Customer Information'!$AR$12,1,ROW())>0,MeasureCalc(Table_PI[[#This Row],[Hide:\nFormula Name]],Table_PI[[#This Row],[Quantity]],Table_PI[[#This Row],[List 1]],Table_PI[[#This Row],[List 2]],Table_PI[[#This Row],[List 3]],Table_PI[[#This Row],[Size]],Table_PI[[#This Row],[Input 1]],Table_PI[[#This Row],[Input 2]],Table_PI[[#This Row],[Input 3]],Table_PI[[#This Row],[Input 4]],'Customer Information'!$AR$12,8,ROW()),\"No Rebate\"),\"No Rebate\"),0)","v":0},{"$f":"IF(Table_PI[[#This Row],[Hide:\nFormula Name]]<>\"\",IF(AND(Table_PI[[#This Row],[Hide:\nFormula Name]]<>\"\",OR(Table_PI[[#This Row],[Rebate]]>0,Table_PI[[#This Row],[Rebate]]=\"No Rebate\")),TRUE,\"MI: Line Item \" & $A241),\"\")","v":""}]
[{"$f":"IF(Table_PI[[#This Row],[Hide:\nFormula Name]]<>\"\",MAX($A$2:A241)+1,\"\")","v":""},null,null,null,null,null,null,null,null,null,null,null,null,null,null,{"$f":"IFERROR(VLOOKUP(Table_PI[[#This Row],[Measure]],'Equipment Lookups'!$C$3:$D$23,2,FALSE),\"\")","v":""},{"$f":"IF(Table_PI[[#This Row],[Hide:\nFormula Name]]<>\"\",IFERROR(IF(MeasureCalc(Table_PI[[#This Row],[Hide:\nFormula Name]],Table_PI[[#This Row],[Quantity]],Table_PI[[#This Row],[List 1]],Table_PI[[#This Row],[List 2]],Table_PI[[#This Row],[List 3]],Table_PI[[#This Row],[Size]],Table_PI[[#This Row],[Input 1]],Table_PI[[#This Row],[Input 2]],Table_PI[[#This Row],[Input 3]],Table_PI[[#This Row],[Input 4]],'Customer Information'!$AR$12,1,ROW())>0,MeasureCalc(Table_PI[[#This Row],[Hide:\nFormula Name]],Table_PI[[#This Row],[Quantity]],Table_PI[[#This Row],[List 1]],Table_PI[[#This Row],[List 2]],Table_PI[[#This Row],[List 3]],Table_PI[[#This Row],[Size]],Table_PI[[#This Row],[Input 1]],Table_PI[[#This Row],[Input 2]],Table_PI[[#This Row],[Input 3]],Table_PI[[#This Row],[Input 4]],'Customer Information'!$AR$12,1,ROW()),\"No Rebate\"),\"No Rebate\"),0)","v":0},{"$f":"IF(Table_PI[[#This Row],[Hide:\nFormula Name]]<>\"\",IFERROR(IF(MeasureCalc(Table_PI[[#This Row],[Hide:\nFormula Name]],Table_PI[[#This Row],[Quantity]],Table_PI[[#This Row],[List 1]],Table_PI[[#This Row],[List 2]],Table_PI[[#This Row],[List 3]],Table_PI[[#This Row],[Size]],Table_PI[[#This Row],[Input 1]],Table_PI[[#This Row],[Input 2]],Table_PI[[#This Row],[Input 3]],Table_PI[[#This Row],[Input 4]],'Customer Information'!$AR$12,1,ROW())>0,MeasureCalc(Table_PI[[#This Row],[Hide:\nFormula Name]],Table_PI[[#This Row],[Quantity]],Table_PI[[#This Row],[List 1]],Table_PI[[#This Row],[List 2]],Table_PI[[#This Row],[List 3]],Table_PI[[#This Row],[Size]],Table_PI[[#This Row],[Input 1]],Table_PI[[#This Row],[Input 2]],Table_PI[[#This Row],[Input 3]],Table_PI[[#This Row],[Input 4]],'Customer Information'!$AR$12,2,ROW()),\"No Rebate\"),\"No Rebate\"),0)","v":0},{"$f":"IF(Table_PI[[#This Row],[Hide:\nFormula Name]]<>\"\",IFERROR(IF(MeasureCalc(Table_PI[[#This Row],[Hide:\nFormula Name]],Table_PI[[#This Row],[Quantity]],Table_PI[[#This Row],[List 1]],Table_PI[[#This Row],[List 2]],Table_PI[[#This Row],[List 3]],Table_PI[[#This Row],[Size]],Table_PI[[#This Row],[Input 1]],Table_PI[[#This Row],[Input 2]],Table_PI[[#This Row],[Input 3]],Table_PI[[#This Row],[Input 4]],'Customer Information'!$AR$12,1,ROW())>0,MeasureCalc(Table_PI[[#This Row],[Hide:\nFormula Name]],Table_PI[[#This Row],[Quantity]],Table_PI[[#This Row],[List 1]],Table_PI[[#This Row],[List 2]],Table_PI[[#This Row],[List 3]],Table_PI[[#This Row],[Size]],Table_PI[[#This Row],[Input 1]],Table_PI[[#This Row],[Input 2]],Table_PI[[#This Row],[Input 3]],Table_PI[[#This Row],[Input 4]],'Customer Information'!$AR$12,3,ROW()),\"No Rebate\"),\"No Rebate\"),0)","v":0},{"$f":"IF(Table_PI[[#This Row],[Hide:\nFormula Name]]<>\"\",IFERROR(IF(MeasureCalc(Table_PI[[#This Row],[Hide:\nFormula Name]],Table_PI[[#This Row],[Quantity]],Table_PI[[#This Row],[List 1]],Table_PI[[#This Row],[List 2]],Table_PI[[#This Row],[List 3]],Table_PI[[#This Row],[Size]],Table_PI[[#This Row],[Input 1]],Table_PI[[#This Row],[Input 2]],Table_PI[[#This Row],[Input 3]],Table_PI[[#This Row],[Input 4]],'Customer Information'!$AR$12,1,ROW())>0,MeasureCalc(Table_PI[[#This Row],[Hide:\nFormula Name]],Table_PI[[#This Row],[Quantity]],Table_PI[[#This Row],[List 1]],Table_PI[[#This Row],[List 2]],Table_PI[[#This Row],[List 3]],Table_PI[[#This Row],[Size]],Table_PI[[#This Row],[Input 1]],Table_PI[[#This Row],[Input 2]],Table_PI[[#This Row],[Input 3]],Table_PI[[#This Row],[Input 4]],'Customer Information'!$AR$12,4,ROW()),\"No Rebate\"),\"No Rebate\"),0)","v":0},{"$f":"IF(Table_PI[[#This Row],[Hide:\nFormula Name]]<>\"\",IFERROR(IF(MeasureCalc(Table_PI[[#This Row],[Hide:\nFormula Name]],Table_PI[[#This Row],[Quantity]],Table_PI[[#This Row],[List 1]],Table_PI[[#This Row],[List 2]],Table_PI[[#This Row],[List 3]],Table_PI[[#This Row],[Size]],Table_PI[[#This Row],[Input 1]],Table_PI[[#This Row],[Input 2]],Table_PI[[#This Row],[Input 3]],Table_PI[[#This Row],[Input 4]],'Customer Information'!$AR$12,1,ROW())>0,MeasureCalc(Table_PI[[#This Row],[Hide:\nFormula Name]],Table_PI[[#This Row],[Quantity]],Table_PI[[#This Row],[List 1]],Table_PI[[#This Row],[List 2]],Table_PI[[#This Row],[List 3]],Table_PI[[#This Row],[Size]],Table_PI[[#This Row],[Input 1]],Table_PI[[#This Row],[Input 2]],Table_PI[[#This Row],[Input 3]],Table_PI[[#This Row],[Input 4]],'Customer Information'!$AR$12,5,ROW()),\"No Rebate\"),\"No Rebate\"),0)","v":0},{"$f":"IF(Table_PI[[#This Row],[Hide:\nFormula Name]]<>\"\",IFERROR(IF(MeasureCalc(Table_PI[[#This Row],[Hide:\nFormula Name]],Table_PI[[#This Row],[Quantity]],Table_PI[[#This Row],[List 1]],Table_PI[[#This Row],[List 2]],Table_PI[[#This Row],[List 3]],Table_PI[[#This Row],[Size]],Table_PI[[#This Row],[Input 1]],Table_PI[[#This Row],[Input 2]],Table_PI[[#This Row],[Input 3]],Table_PI[[#This Row],[Input 4]],'Customer Information'!$AR$12,1,ROW())>0,MeasureCalc(Table_PI[[#This Row],[Hide:\nFormula Name]],Table_PI[[#This Row],[Quantity]],Table_PI[[#This Row],[List 1]],Table_PI[[#This Row],[List 2]],Table_PI[[#This Row],[List 3]],Table_PI[[#This Row],[Size]],Table_PI[[#This Row],[Input 1]],Table_PI[[#This Row],[Input 2]],Table_PI[[#This Row],[Input 3]],Table_PI[[#This Row],[Input 4]],'Customer Information'!$AR$12,6,ROW()),\"No Rebate\"),\"No Rebate\"),0)","v":0},{"$f":"IF(Table_PI[[#This Row],[Hide:\nFormula Name]]<>\"\",IFERROR(IF(MeasureCalc(Table_PI[[#This Row],[Hide:\nFormula Name]],Table_PI[[#This Row],[Quantity]],Table_PI[[#This Row],[List 1]],Table_PI[[#This Row],[List 2]],Table_PI[[#This Row],[List 3]],Table_PI[[#This Row],[Size]],Table_PI[[#This Row],[Input 1]],Table_PI[[#This Row],[Input 2]],Table_PI[[#This Row],[Input 3]],Table_PI[[#This Row],[Input 4]],'Customer Information'!$AR$12,1,ROW())>0,MeasureCalc(Table_PI[[#This Row],[Hide:\nFormula Name]],Table_PI[[#This Row],[Quantity]],Table_PI[[#This Row],[List 1]],Table_PI[[#This Row],[List 2]],Table_PI[[#This Row],[List 3]],Table_PI[[#This Row],[Size]],Table_PI[[#This Row],[Input 1]],Table_PI[[#This Row],[Input 2]],Table_PI[[#This Row],[Input 3]],Table_PI[[#This Row],[Input 4]],'Customer Information'!$AR$12,7,ROW()),\"No Rebate\"),\"No Rebate\"),0)","v":0},{"$f":"IF(Table_PI[[#This Row],[Hide:\nFormula Name]]<>\"\",IFERROR(IF(MeasureCalc(Table_PI[[#This Row],[Hide:\nFormula Name]],Table_PI[[#This Row],[Quantity]],Table_PI[[#This Row],[List 1]],Table_PI[[#This Row],[List 2]],Table_PI[[#This Row],[List 3]],Table_PI[[#This Row],[Size]],Table_PI[[#This Row],[Input 1]],Table_PI[[#This Row],[Input 2]],Table_PI[[#This Row],[Input 3]],Table_PI[[#This Row],[Input 4]],'Customer Information'!$AR$12,1,ROW())>0,MeasureCalc(Table_PI[[#This Row],[Hide:\nFormula Name]],Table_PI[[#This Row],[Quantity]],Table_PI[[#This Row],[List 1]],Table_PI[[#This Row],[List 2]],Table_PI[[#This Row],[List 3]],Table_PI[[#This Row],[Size]],Table_PI[[#This Row],[Input 1]],Table_PI[[#This Row],[Input 2]],Table_PI[[#This Row],[Input 3]],Table_PI[[#This Row],[Input 4]],'Customer Information'!$AR$12,8,ROW()),\"No Rebate\"),\"No Rebate\"),0)","v":0},{"$f":"IF(Table_PI[[#This Row],[Hide:\nFormula Name]]<>\"\",IF(AND(Table_PI[[#This Row],[Hide:\nFormula Name]]<>\"\",OR(Table_PI[[#This Row],[Rebate]]>0,Table_PI[[#This Row],[Rebate]]=\"No Rebate\")),TRUE,\"MI: Line Item \" & $A242),\"\")","v":""}]
[{"$f":"IF(Table_PI[[#This Row],[Hide:\nFormula Name]]<>\"\",MAX($A$2:A242)+1,\"\")","v":""},null,null,null,null,null,null,null,null,null,null,null,null,null,null,{"$f":"IFERROR(VLOOKUP(Table_PI[[#This Row],[Measure]],'Equipment Lookups'!$C$3:$D$23,2,FALSE),\"\")","v":""},{"$f":"IF(Table_PI[[#This Row],[Hide:\nFormula Name]]<>\"\",IFERROR(IF(MeasureCalc(Table_PI[[#This Row],[Hide:\nFormula Name]],Table_PI[[#This Row],[Quantity]],Table_PI[[#This Row],[List 1]],Table_PI[[#This Row],[List 2]],Table_PI[[#This Row],[List 3]],Table_PI[[#This Row],[Size]],Table_PI[[#This Row],[Input 1]],Table_PI[[#This Row],[Input 2]],Table_PI[[#This Row],[Input 3]],Table_PI[[#This Row],[Input 4]],'Customer Information'!$AR$12,1,ROW())>0,MeasureCalc(Table_PI[[#This Row],[Hide:\nFormula Name]],Table_PI[[#This Row],[Quantity]],Table_PI[[#This Row],[List 1]],Table_PI[[#This Row],[List 2]],Table_PI[[#This Row],[List 3]],Table_PI[[#This Row],[Size]],Table_PI[[#This Row],[Input 1]],Table_PI[[#This Row],[Input 2]],Table_PI[[#This Row],[Input 3]],Table_PI[[#This Row],[Input 4]],'Customer Information'!$AR$12,1,ROW()),\"No Rebate\"),\"No Rebate\"),0)","v":0},{"$f":"IF(Table_PI[[#This Row],[Hide:\nFormula Name]]<>\"\",IFERROR(IF(MeasureCalc(Table_PI[[#This Row],[Hide:\nFormula Name]],Table_PI[[#This Row],[Quantity]],Table_PI[[#This Row],[List 1]],Table_PI[[#This Row],[List 2]],Table_PI[[#This Row],[List 3]],Table_PI[[#This Row],[Size]],Table_PI[[#This Row],[Input 1]],Table_PI[[#This Row],[Input 2]],Table_PI[[#This Row],[Input 3]],Table_PI[[#This Row],[Input 4]],'Customer Information'!$AR$12,1,ROW())>0,MeasureCalc(Table_PI[[#This Row],[Hide:\nFormula Name]],Table_PI[[#This Row],[Quantity]],Table_PI[[#This Row],[List 1]],Table_PI[[#This Row],[List 2]],Table_PI[[#This Row],[List 3]],Table_PI[[#This Row],[Size]],Table_PI[[#This Row],[Input 1]],Table_PI[[#This Row],[Input 2]],Table_PI[[#This Row],[Input 3]],Table_PI[[#This Row],[Input 4]],'Customer Information'!$AR$12,2,ROW()),\"No Rebate\"),\"No Rebate\"),0)","v":0},{"$f":"IF(Table_PI[[#This Row],[Hide:\nFormula Name]]<>\"\",IFERROR(IF(MeasureCalc(Table_PI[[#This Row],[Hide:\nFormula Name]],Table_PI[[#This Row],[Quantity]],Table_PI[[#This Row],[List 1]],Table_PI[[#This Row],[List 2]],Table_PI[[#This Row],[List 3]],Table_PI[[#This Row],[Size]],Table_PI[[#This Row],[Input 1]],Table_PI[[#This Row],[Input 2]],Table_PI[[#This Row],[Input 3]],Table_PI[[#This Row],[Input 4]],'Customer Information'!$AR$12,1,ROW())>0,MeasureCalc(Table_PI[[#This Row],[Hide:\nFormula Name]],Table_PI[[#This Row],[Quantity]],Table_PI[[#This Row],[List 1]],Table_PI[[#This Row],[List 2]],Table_PI[[#This Row],[List 3]],Table_PI[[#This Row],[Size]],Table_PI[[#This Row],[Input 1]],Table_PI[[#This Row],[Input 2]],Table_PI[[#This Row],[Input 3]],Table_PI[[#This Row],[Input 4]],'Customer Information'!$AR$12,3,ROW()),\"No Rebate\"),\"No Rebate\"),0)","v":0},{"$f":"IF(Table_PI[[#This Row],[Hide:\nFormula Name]]<>\"\",IFERROR(IF(MeasureCalc(Table_PI[[#This Row],[Hide:\nFormula Name]],Table_PI[[#This Row],[Quantity]],Table_PI[[#This Row],[List 1]],Table_PI[[#This Row],[List 2]],Table_PI[[#This Row],[List 3]],Table_PI[[#This Row],[Size]],Table_PI[[#This Row],[Input 1]],Table_PI[[#This Row],[Input 2]],Table_PI[[#This Row],[Input 3]],Table_PI[[#This Row],[Input 4]],'Customer Information'!$AR$12,1,ROW())>0,MeasureCalc(Table_PI[[#This Row],[Hide:\nFormula Name]],Table_PI[[#This Row],[Quantity]],Table_PI[[#This Row],[List 1]],Table_PI[[#This Row],[List 2]],Table_PI[[#This Row],[List 3]],Table_PI[[#This Row],[Size]],Table_PI[[#This Row],[Input 1]],Table_PI[[#This Row],[Input 2]],Table_PI[[#This Row],[Input 3]],Table_PI[[#This Row],[Input 4]],'Customer Information'!$AR$12,4,ROW()),\"No Rebate\"),\"No Rebate\"),0)","v":0},{"$f":"IF(Table_PI[[#This Row],[Hide:\nFormula Name]]<>\"\",IFERROR(IF(MeasureCalc(Table_PI[[#This Row],[Hide:\nFormula Name]],Table_PI[[#This Row],[Quantity]],Table_PI[[#This Row],[List 1]],Table_PI[[#This Row],[List 2]],Table_PI[[#This Row],[List 3]],Table_PI[[#This Row],[Size]],Table_PI[[#This Row],[Input 1]],Table_PI[[#This Row],[Input 2]],Table_PI[[#This Row],[Input 3]],Table_PI[[#This Row],[Input 4]],'Customer Information'!$AR$12,1,ROW())>0,MeasureCalc(Table_PI[[#This Row],[Hide:\nFormula Name]],Table_PI[[#This Row],[Quantity]],Table_PI[[#This Row],[List 1]],Table_PI[[#This Row],[List 2]],Table_PI[[#This Row],[List 3]],Table_PI[[#This Row],[Size]],Table_PI[[#This Row],[Input 1]],Table_PI[[#This Row],[Input 2]],Table_PI[[#This Row],[Input 3]],Table_PI[[#This Row],[Input 4]],'Customer Information'!$AR$12,5,ROW()),\"No Rebate\"),\"No Rebate\"),0)","v":0},{"$f":"IF(Table_PI[[#This Row],[Hide:\nFormula Name]]<>\"\",IFERROR(IF(MeasureCalc(Table_PI[[#This Row],[Hide:\nFormula Name]],Table_PI[[#This Row],[Quantity]],Table_PI[[#This Row],[List 1]],Table_PI[[#This Row],[List 2]],Table_PI[[#This Row],[List 3]],Table_PI[[#This Row],[Size]],Table_PI[[#This Row],[Input 1]],Table_PI[[#This Row],[Input 2]],Table_PI[[#This Row],[Input 3]],Table_PI[[#This Row],[Input 4]],'Customer Information'!$AR$12,1,ROW())>0,MeasureCalc(Table_PI[[#This Row],[Hide:\nFormula Name]],Table_PI[[#This Row],[Quantity]],Table_PI[[#This Row],[List 1]],Table_PI[[#This Row],[List 2]],Table_PI[[#This Row],[List 3]],Table_PI[[#This Row],[Size]],Table_PI[[#This Row],[Input 1]],Table_PI[[#This Row],[Input 2]],Table_PI[[#This Row],[Input 3]],Table_PI[[#This Row],[Input 4]],'Customer Information'!$AR$12,6,ROW()),\"No Rebate\"),\"No Rebate\"),0)","v":0},{"$f":"IF(Table_PI[[#This Row],[Hide:\nFormula Name]]<>\"\",IFERROR(IF(MeasureCalc(Table_PI[[#This Row],[Hide:\nFormula Name]],Table_PI[[#This Row],[Quantity]],Table_PI[[#This Row],[List 1]],Table_PI[[#This Row],[List 2]],Table_PI[[#This Row],[List 3]],Table_PI[[#This Row],[Size]],Table_PI[[#This Row],[Input 1]],Table_PI[[#This Row],[Input 2]],Table_PI[[#This Row],[Input 3]],Table_PI[[#This Row],[Input 4]],'Customer Information'!$AR$12,1,ROW())>0,MeasureCalc(Table_PI[[#This Row],[Hide:\nFormula Name]],Table_PI[[#This Row],[Quantity]],Table_PI[[#This Row],[List 1]],Table_PI[[#This Row],[List 2]],Table_PI[[#This Row],[List 3]],Table_PI[[#This Row],[Size]],Table_PI[[#This Row],[Input 1]],Table_PI[[#This Row],[Input 2]],Table_PI[[#This Row],[Input 3]],Table_PI[[#This Row],[Input 4]],'Customer Information'!$AR$12,7,ROW()),\"No Rebate\"),\"No Rebate\"),0)","v":0},{"$f":"IF(Table_PI[[#This Row],[Hide:\nFormula Name]]<>\"\",IFERROR(IF(MeasureCalc(Table_PI[[#This Row],[Hide:\nFormula Name]],Table_PI[[#This Row],[Quantity]],Table_PI[[#This Row],[List 1]],Table_PI[[#This Row],[List 2]],Table_PI[[#This Row],[List 3]],Table_PI[[#This Row],[Size]],Table_PI[[#This Row],[Input 1]],Table_PI[[#This Row],[Input 2]],Table_PI[[#This Row],[Input 3]],Table_PI[[#This Row],[Input 4]],'Customer Information'!$AR$12,1,ROW())>0,MeasureCalc(Table_PI[[#This Row],[Hide:\nFormula Name]],Table_PI[[#This Row],[Quantity]],Table_PI[[#This Row],[List 1]],Table_PI[[#This Row],[List 2]],Table_PI[[#This Row],[List 3]],Table_PI[[#This Row],[Size]],Table_PI[[#This Row],[Input 1]],Table_PI[[#This Row],[Input 2]],Table_PI[[#This Row],[Input 3]],Table_PI[[#This Row],[Input 4]],'Customer Information'!$AR$12,8,ROW()),\"No Rebate\"),\"No Rebate\"),0)","v":0},{"$f":"IF(Table_PI[[#This Row],[Hide:\nFormula Name]]<>\"\",IF(AND(Table_PI[[#This Row],[Hide:\nFormula Name]]<>\"\",OR(Table_PI[[#This Row],[Rebate]]>0,Table_PI[[#This Row],[Rebate]]=\"No Rebate\")),TRUE,\"MI: Line Item \" & $A243),\"\")","v":""}]
[{"$f":"IF(Table_PI[[#This Row],[Hide:\nFormula Name]]<>\"\",MAX($A$2:A243)+1,\"\")","v":""},null,null,null,null,null,null,null,null,null,null,null,null,null,null,{"$f":"IFERROR(VLOOKUP(Table_PI[[#This Row],[Measure]],'Equipment Lookups'!$C$3:$D$23,2,FALSE),\"\")","v":""},{"$f":"IF(Table_PI[[#This Row],[Hide:\nFormula Name]]<>\"\",IFERROR(IF(MeasureCalc(Table_PI[[#This Row],[Hide:\nFormula Name]],Table_PI[[#This Row],[Quantity]],Table_PI[[#This Row],[List 1]],Table_PI[[#This Row],[List 2]],Table_PI[[#This Row],[List 3]],Table_PI[[#This Row],[Size]],Table_PI[[#This Row],[Input 1]],Table_PI[[#This Row],[Input 2]],Table_PI[[#This Row],[Input 3]],Table_PI[[#This Row],[Input 4]],'Customer Information'!$AR$12,1,ROW())>0,MeasureCalc(Table_PI[[#This Row],[Hide:\nFormula Name]],Table_PI[[#This Row],[Quantity]],Table_PI[[#This Row],[List 1]],Table_PI[[#This Row],[List 2]],Table_PI[[#This Row],[List 3]],Table_PI[[#This Row],[Size]],Table_PI[[#This Row],[Input 1]],Table_PI[[#This Row],[Input 2]],Table_PI[[#This Row],[Input 3]],Table_PI[[#This Row],[Input 4]],'Customer Information'!$AR$12,1,ROW()),\"No Rebate\"),\"No Rebate\"),0)","v":0},{"$f":"IF(Table_PI[[#This Row],[Hide:\nFormula Name]]<>\"\",IFERROR(IF(MeasureCalc(Table_PI[[#This Row],[Hide:\nFormula Name]],Table_PI[[#This Row],[Quantity]],Table_PI[[#This Row],[List 1]],Table_PI[[#This Row],[List 2]],Table_PI[[#This Row],[List 3]],Table_PI[[#This Row],[Size]],Table_PI[[#This Row],[Input 1]],Table_PI[[#This Row],[Input 2]],Table_PI[[#This Row],[Input 3]],Table_PI[[#This Row],[Input 4]],'Customer Information'!$AR$12,1,ROW())>0,MeasureCalc(Table_PI[[#This Row],[Hide:\nFormula Name]],Table_PI[[#This Row],[Quantity]],Table_PI[[#This Row],[List 1]],Table_PI[[#This Row],[List 2]],Table_PI[[#This Row],[List 3]],Table_PI[[#This Row],[Size]],Table_PI[[#This Row],[Input 1]],Table_PI[[#This Row],[Input 2]],Table_PI[[#This Row],[Input 3]],Table_PI[[#This Row],[Input 4]],'Customer Information'!$AR$12,2,ROW()),\"No Rebate\"),\"No Rebate\"),0)","v":0},{"$f":"IF(Table_PI[[#This Row],[Hide:\nFormula Name]]<>\"\",IFERROR(IF(MeasureCalc(Table_PI[[#This Row],[Hide:\nFormula Name]],Table_PI[[#This Row],[Quantity]],Table_PI[[#This Row],[List 1]],Table_PI[[#This Row],[List 2]],Table_PI[[#This Row],[List 3]],Table_PI[[#This Row],[Size]],Table_PI[[#This Row],[Input 1]],Table_PI[[#This Row],[Input 2]],Table_PI[[#This Row],[Input 3]],Table_PI[[#This Row],[Input 4]],'Customer Information'!$AR$12,1,ROW())>0,MeasureCalc(Table_PI[[#This Row],[Hide:\nFormula Name]],Table_PI[[#This Row],[Quantity]],Table_PI[[#This Row],[List 1]],Table_PI[[#This Row],[List 2]],Table_PI[[#This Row],[List 3]],Table_PI[[#This Row],[Size]],Table_PI[[#This Row],[Input 1]],Table_PI[[#This Row],[Input 2]],Table_PI[[#This Row],[Input 3]],Table_PI[[#This Row],[Input 4]],'Customer Information'!$AR$12,3,ROW()),\"No Rebate\"),\"No Rebate\"),0)","v":0},{"$f":"IF(Table_PI[[#This Row],[Hide:\nFormula Name]]<>\"\",IFERROR(IF(MeasureCalc(Table_PI[[#This Row],[Hide:\nFormula Name]],Table_PI[[#This Row],[Quantity]],Table_PI[[#This Row],[List 1]],Table_PI[[#This Row],[List 2]],Table_PI[[#This Row],[List 3]],Table_PI[[#This Row],[Size]],Table_PI[[#This Row],[Input 1]],Table_PI[[#This Row],[Input 2]],Table_PI[[#This Row],[Input 3]],Table_PI[[#This Row],[Input 4]],'Customer Information'!$AR$12,1,ROW())>0,MeasureCalc(Table_PI[[#This Row],[Hide:\nFormula Name]],Table_PI[[#This Row],[Quantity]],Table_PI[[#This Row],[List 1]],Table_PI[[#This Row],[List 2]],Table_PI[[#This Row],[List 3]],Table_PI[[#This Row],[Size]],Table_PI[[#This Row],[Input 1]],Table_PI[[#This Row],[Input 2]],Table_PI[[#This Row],[Input 3]],Table_PI[[#This Row],[Input 4]],'Customer Information'!$AR$12,4,ROW()),\"No Rebate\"),\"No Rebate\"),0)","v":0},{"$f":"IF(Table_PI[[#This Row],[Hide:\nFormula Name]]<>\"\",IFERROR(IF(MeasureCalc(Table_PI[[#This Row],[Hide:\nFormula Name]],Table_PI[[#This Row],[Quantity]],Table_PI[[#This Row],[List 1]],Table_PI[[#This Row],[List 2]],Table_PI[[#This Row],[List 3]],Table_PI[[#This Row],[Size]],Table_PI[[#This Row],[Input 1]],Table_PI[[#This Row],[Input 2]],Table_PI[[#This Row],[Input 3]],Table_PI[[#This Row],[Input 4]],'Customer Information'!$AR$12,1,ROW())>0,MeasureCalc(Table_PI[[#This Row],[Hide:\nFormula Name]],Table_PI[[#This Row],[Quantity]],Table_PI[[#This Row],[List 1]],Table_PI[[#This Row],[List 2]],Table_PI[[#This Row],[List 3]],Table_PI[[#This Row],[Size]],Table_PI[[#This Row],[Input 1]],Table_PI[[#This Row],[Input 2]],Table_PI[[#This Row],[Input 3]],Table_PI[[#This Row],[Input 4]],'Customer Information'!$AR$12,5,ROW()),\"No Rebate\"),\"No Rebate\"),0)","v":0},{"$f":"IF(Table_PI[[#This Row],[Hide:\nFormula Name]]<>\"\",IFERROR(IF(MeasureCalc(Table_PI[[#This Row],[Hide:\nFormula Name]],Table_PI[[#This Row],[Quantity]],Table_PI[[#This Row],[List 1]],Table_PI[[#This Row],[List 2]],Table_PI[[#This Row],[List 3]],Table_PI[[#This Row],[Size]],Table_PI[[#This Row],[Input 1]],Table_PI[[#This Row],[Input 2]],Table_PI[[#This Row],[Input 3]],Table_PI[[#This Row],[Input 4]],'Customer Information'!$AR$12,1,ROW())>0,MeasureCalc(Table_PI[[#This Row],[Hide:\nFormula Name]],Table_PI[[#This Row],[Quantity]],Table_PI[[#This Row],[List 1]],Table_PI[[#This Row],[List 2]],Table_PI[[#This Row],[List 3]],Table_PI[[#This Row],[Size]],Table_PI[[#This Row],[Input 1]],Table_PI[[#This Row],[Input 2]],Table_PI[[#This Row],[Input 3]],Table_PI[[#This Row],[Input 4]],'Customer Information'!$AR$12,6,ROW()),\"No Rebate\"),\"No Rebate\"),0)","v":0},{"$f":"IF(Table_PI[[#This Row],[Hide:\nFormula Name]]<>\"\",IFERROR(IF(MeasureCalc(Table_PI[[#This Row],[Hide:\nFormula Name]],Table_PI[[#This Row],[Quantity]],Table_PI[[#This Row],[List 1]],Table_PI[[#This Row],[List 2]],Table_PI[[#This Row],[List 3]],Table_PI[[#This Row],[Size]],Table_PI[[#This Row],[Input 1]],Table_PI[[#This Row],[Input 2]],Table_PI[[#This Row],[Input 3]],Table_PI[[#This Row],[Input 4]],'Customer Information'!$AR$12,1,ROW())>0,MeasureCalc(Table_PI[[#This Row],[Hide:\nFormula Name]],Table_PI[[#This Row],[Quantity]],Table_PI[[#This Row],[List 1]],Table_PI[[#This Row],[List 2]],Table_PI[[#This Row],[List 3]],Table_PI[[#This Row],[Size]],Table_PI[[#This Row],[Input 1]],Table_PI[[#This Row],[Input 2]],Table_PI[[#This Row],[Input 3]],Table_PI[[#This Row],[Input 4]],'Customer Information'!$AR$12,7,ROW()),\"No Rebate\"),\"No Rebate\"),0)","v":0},{"$f":"IF(Table_PI[[#This Row],[Hide:\nFormula Name]]<>\"\",IFERROR(IF(MeasureCalc(Table_PI[[#This Row],[Hide:\nFormula Name]],Table_PI[[#This Row],[Quantity]],Table_PI[[#This Row],[List 1]],Table_PI[[#This Row],[List 2]],Table_PI[[#This Row],[List 3]],Table_PI[[#This Row],[Size]],Table_PI[[#This Row],[Input 1]],Table_PI[[#This Row],[Input 2]],Table_PI[[#This Row],[Input 3]],Table_PI[[#This Row],[Input 4]],'Customer Information'!$AR$12,1,ROW())>0,MeasureCalc(Table_PI[[#This Row],[Hide:\nFormula Name]],Table_PI[[#This Row],[Quantity]],Table_PI[[#This Row],[List 1]],Table_PI[[#This Row],[List 2]],Table_PI[[#This Row],[List 3]],Table_PI[[#This Row],[Size]],Table_PI[[#This Row],[Input 1]],Table_PI[[#This Row],[Input 2]],Table_PI[[#This Row],[Input 3]],Table_PI[[#This Row],[Input 4]],'Customer Information'!$AR$12,8,ROW()),\"No Rebate\"),\"No Rebate\"),0)","v":0},{"$f":"IF(Table_PI[[#This Row],[Hide:\nFormula Name]]<>\"\",IF(AND(Table_PI[[#This Row],[Hide:\nFormula Name]]<>\"\",OR(Table_PI[[#This Row],[Rebate]]>0,Table_PI[[#This Row],[Rebate]]=\"No Rebate\")),TRUE,\"MI: Line Item \" & $A244),\"\")","v":""}]
[{"$f":"IF(Table_PI[[#This Row],[Hide:\nFormula Name]]<>\"\",MAX($A$2:A244)+1,\"\")","v":""},null,null,null,null,null,null,null,null,null,null,null,null,null,null,{"$f":"IFERROR(VLOOKUP(Table_PI[[#This Row],[Measure]],'Equipment Lookups'!$C$3:$D$23,2,FALSE),\"\")","v":""},{"$f":"IF(Table_PI[[#This Row],[Hide:\nFormula Name]]<>\"\",IFERROR(IF(MeasureCalc(Table_PI[[#This Row],[Hide:\nFormula Name]],Table_PI[[#This Row],[Quantity]],Table_PI[[#This Row],[List 1]],Table_PI[[#This Row],[List 2]],Table_PI[[#This Row],[List 3]],Table_PI[[#This Row],[Size]],Table_PI[[#This Row],[Input 1]],Table_PI[[#This Row],[Input 2]],Table_PI[[#This Row],[Input 3]],Table_PI[[#This Row],[Input 4]],'Customer Information'!$AR$12,1,ROW())>0,MeasureCalc(Table_PI[[#This Row],[Hide:\nFormula Name]],Table_PI[[#This Row],[Quantity]],Table_PI[[#This Row],[List 1]],Table_PI[[#This Row],[List 2]],Table_PI[[#This Row],[List 3]],Table_PI[[#This Row],[Size]],Table_PI[[#This Row],[Input 1]],Table_PI[[#This Row],[Input 2]],Table_PI[[#This Row],[Input 3]],Table_PI[[#This Row],[Input 4]],'Customer Information'!$AR$12,1,ROW()),\"No Rebate\"),\"No Rebate\"),0)","v":0},{"$f":"IF(Table_PI[[#This Row],[Hide:\nFormula Name]]<>\"\",IFERROR(IF(MeasureCalc(Table_PI[[#This Row],[Hide:\nFormula Name]],Table_PI[[#This Row],[Quantity]],Table_PI[[#This Row],[List 1]],Table_PI[[#This Row],[List 2]],Table_PI[[#This Row],[List 3]],Table_PI[[#This Row],[Size]],Table_PI[[#This Row],[Input 1]],Table_PI[[#This Row],[Input 2]],Table_PI[[#This Row],[Input 3]],Table_PI[[#This Row],[Input 4]],'Customer Information'!$AR$12,1,ROW())>0,MeasureCalc(Table_PI[[#This Row],[Hide:\nFormula Name]],Table_PI[[#This Row],[Quantity]],Table_PI[[#This Row],[List 1]],Table_PI[[#This Row],[List 2]],Table_PI[[#This Row],[List 3]],Table_PI[[#This Row],[Size]],Table_PI[[#This Row],[Input 1]],Table_PI[[#This Row],[Input 2]],Table_PI[[#This Row],[Input 3]],Table_PI[[#This Row],[Input 4]],'Customer Information'!$AR$12,2,ROW()),\"No Rebate\"),\"No Rebate\"),0)","v":0},{"$f":"IF(Table_PI[[#This Row],[Hide:\nFormula Name]]<>\"\",IFERROR(IF(MeasureCalc(Table_PI[[#This Row],[Hide:\nFormula Name]],Table_PI[[#This Row],[Quantity]],Table_PI[[#This Row],[List 1]],Table_PI[[#This Row],[List 2]],Table_PI[[#This Row],[List 3]],Table_PI[[#This Row],[Size]],Table_PI[[#This Row],[Input 1]],Table_PI[[#This Row],[Input 2]],Table_PI[[#This Row],[Input 3]],Table_PI[[#This Row],[Input 4]],'Customer Information'!$AR$12,1,ROW())>0,MeasureCalc(Table_PI[[#This Row],[Hide:\nFormula Name]],Table_PI[[#This Row],[Quantity]],Table_PI[[#This Row],[List 1]],Table_PI[[#This Row],[List 2]],Table_PI[[#This Row],[List 3]],Table_PI[[#This Row],[Size]],Table_PI[[#This Row],[Input 1]],Table_PI[[#This Row],[Input 2]],Table_PI[[#This Row],[Input 3]],Table_PI[[#This Row],[Input 4]],'Customer Information'!$AR$12,3,ROW()),\"No Rebate\"),\"No Rebate\"),0)","v":0},{"$f":"IF(Table_PI[[#This Row],[Hide:\nFormula Name]]<>\"\",IFERROR(IF(MeasureCalc(Table_PI[[#This Row],[Hide:\nFormula Name]],Table_PI[[#This Row],[Quantity]],Table_PI[[#This Row],[List 1]],Table_PI[[#This Row],[List 2]],Table_PI[[#This Row],[List 3]],Table_PI[[#This Row],[Size]],Table_PI[[#This Row],[Input 1]],Table_PI[[#This Row],[Input 2]],Table_PI[[#This Row],[Input 3]],Table_PI[[#This Row],[Input 4]],'Customer Information'!$AR$12,1,ROW())>0,MeasureCalc(Table_PI[[#This Row],[Hide:\nFormula Name]],Table_PI[[#This Row],[Quantity]],Table_PI[[#This Row],[List 1]],Table_PI[[#This Row],[List 2]],Table_PI[[#This Row],[List 3]],Table_PI[[#This Row],[Size]],Table_PI[[#This Row],[Input 1]],Table_PI[[#This Row],[Input 2]],Table_PI[[#This Row],[Input 3]],Table_PI[[#This Row],[Input 4]],'Customer Information'!$AR$12,4,ROW()),\"No Rebate\"),\"No Rebate\"),0)","v":0},{"$f":"IF(Table_PI[[#This Row],[Hide:\nFormula Name]]<>\"\",IFERROR(IF(MeasureCalc(Table_PI[[#This Row],[Hide:\nFormula Name]],Table_PI[[#This Row],[Quantity]],Table_PI[[#This Row],[List 1]],Table_PI[[#This Row],[List 2]],Table_PI[[#This Row],[List 3]],Table_PI[[#This Row],[Size]],Table_PI[[#This Row],[Input 1]],Table_PI[[#This Row],[Input 2]],Table_PI[[#This Row],[Input 3]],Table_PI[[#This Row],[Input 4]],'Customer Information'!$AR$12,1,ROW())>0,MeasureCalc(Table_PI[[#This Row],[Hide:\nFormula Name]],Table_PI[[#This Row],[Quantity]],Table_PI[[#This Row],[List 1]],Table_PI[[#This Row],[List 2]],Table_PI[[#This Row],[List 3]],Table_PI[[#This Row],[Size]],Table_PI[[#This Row],[Input 1]],Table_PI[[#This Row],[Input 2]],Table_PI[[#This Row],[Input 3]],Table_PI[[#This Row],[Input 4]],'Customer Information'!$AR$12,5,ROW()),\"No Rebate\"),\"No Rebate\"),0)","v":0},{"$f":"IF(Table_PI[[#This Row],[Hide:\nFormula Name]]<>\"\",IFERROR(IF(MeasureCalc(Table_PI[[#This Row],[Hide:\nFormula Name]],Table_PI[[#This Row],[Quantity]],Table_PI[[#This Row],[List 1]],Table_PI[[#This Row],[List 2]],Table_PI[[#This Row],[List 3]],Table_PI[[#This Row],[Size]],Table_PI[[#This Row],[Input 1]],Table_PI[[#This Row],[Input 2]],Table_PI[[#This Row],[Input 3]],Table_PI[[#This Row],[Input 4]],'Customer Information'!$AR$12,1,ROW())>0,MeasureCalc(Table_PI[[#This Row],[Hide:\nFormula Name]],Table_PI[[#This Row],[Quantity]],Table_PI[[#This Row],[List 1]],Table_PI[[#This Row],[List 2]],Table_PI[[#This Row],[List 3]],Table_PI[[#This Row],[Size]],Table_PI[[#This Row],[Input 1]],Table_PI[[#This Row],[Input 2]],Table_PI[[#This Row],[Input 3]],Table_PI[[#This Row],[Input 4]],'Customer Information'!$AR$12,6,ROW()),\"No Rebate\"),\"No Rebate\"),0)","v":0},{"$f":"IF(Table_PI[[#This Row],[Hide:\nFormula Name]]<>\"\",IFERROR(IF(MeasureCalc(Table_PI[[#This Row],[Hide:\nFormula Name]],Table_PI[[#This Row],[Quantity]],Table_PI[[#This Row],[List 1]],Table_PI[[#This Row],[List 2]],Table_PI[[#This Row],[List 3]],Table_PI[[#This Row],[Size]],Table_PI[[#This Row],[Input 1]],Table_PI[[#This Row],[Input 2]],Table_PI[[#This Row],[Input 3]],Table_PI[[#This Row],[Input 4]],'Customer Information'!$AR$12,1,ROW())>0,MeasureCalc(Table_PI[[#This Row],[Hide:\nFormula Name]],Table_PI[[#This Row],[Quantity]],Table_PI[[#This Row],[List 1]],Table_PI[[#This Row],[List 2]],Table_PI[[#This Row],[List 3]],Table_PI[[#This Row],[Size]],Table_PI[[#This Row],[Input 1]],Table_PI[[#This Row],[Input 2]],Table_PI[[#This Row],[Input 3]],Table_PI[[#This Row],[Input 4]],'Customer Information'!$AR$12,7,ROW()),\"No Rebate\"),\"No Rebate\"),0)","v":0},{"$f":"IF(Table_PI[[#This Row],[Hide:\nFormula Name]]<>\"\",IFERROR(IF(MeasureCalc(Table_PI[[#This Row],[Hide:\nFormula Name]],Table_PI[[#This Row],[Quantity]],Table_PI[[#This Row],[List 1]],Table_PI[[#This Row],[List 2]],Table_PI[[#This Row],[List 3]],Table_PI[[#This Row],[Size]],Table_PI[[#This Row],[Input 1]],Table_PI[[#This Row],[Input 2]],Table_PI[[#This Row],[Input 3]],Table_PI[[#This Row],[Input 4]],'Customer Information'!$AR$12,1,ROW())>0,MeasureCalc(Table_PI[[#This Row],[Hide:\nFormula Name]],Table_PI[[#This Row],[Quantity]],Table_PI[[#This Row],[List 1]],Table_PI[[#This Row],[List 2]],Table_PI[[#This Row],[List 3]],Table_PI[[#This Row],[Size]],Table_PI[[#This Row],[Input 1]],Table_PI[[#This Row],[Input 2]],Table_PI[[#This Row],[Input 3]],Table_PI[[#This Row],[Input 4]],'Customer Information'!$AR$12,8,ROW()),\"No Rebate\"),\"No Rebate\"),0)","v":0},{"$f":"IF(Table_PI[[#This Row],[Hide:\nFormula Name]]<>\"\",IF(AND(Table_PI[[#This Row],[Hide:\nFormula Name]]<>\"\",OR(Table_PI[[#This Row],[Rebate]]>0,Table_PI[[#This Row],[Rebate]]=\"No Rebate\")),TRUE,\"MI: Line Item \" & $A245),\"\")","v":""}]
[{"$f":"IF(Table_PI[[#This Row],[Hide:\nFormula Name]]<>\"\",MAX($A$2:A245)+1,\"\")","v":""},null,null,null,null,null,null,null,null,null,null,null,null,null,null,{"$f":"IFERROR(VLOOKUP(Table_PI[[#This Row],[Measure]],'Equipment Lookups'!$C$3:$D$23,2,FALSE),\"\")","v":""},{"$f":"IF(Table_PI[[#This Row],[Hide:\nFormula Name]]<>\"\",IFERROR(IF(MeasureCalc(Table_PI[[#This Row],[Hide:\nFormula Name]],Table_PI[[#This Row],[Quantity]],Table_PI[[#This Row],[List 1]],Table_PI[[#This Row],[List 2]],Table_PI[[#This Row],[List 3]],Table_PI[[#This Row],[Size]],Table_PI[[#This Row],[Input 1]],Table_PI[[#This Row],[Input 2]],Table_PI[[#This Row],[Input 3]],Table_PI[[#This Row],[Input 4]],'Customer Information'!$AR$12,1,ROW())>0,MeasureCalc(Table_PI[[#This Row],[Hide:\nFormula Name]],Table_PI[[#This Row],[Quantity]],Table_PI[[#This Row],[List 1]],Table_PI[[#This Row],[List 2]],Table_PI[[#This Row],[List 3]],Table_PI[[#This Row],[Size]],Table_PI[[#This Row],[Input 1]],Table_PI[[#This Row],[Input 2]],Table_PI[[#This Row],[Input 3]],Table_PI[[#This Row],[Input 4]],'Customer Information'!$AR$12,1,ROW()),\"No Rebate\"),\"No Rebate\"),0)","v":0},{"$f":"IF(Table_PI[[#This Row],[Hide:\nFormula Name]]<>\"\",IFERROR(IF(MeasureCalc(Table_PI[[#This Row],[Hide:\nFormula Name]],Table_PI[[#This Row],[Quantity]],Table_PI[[#This Row],[List 1]],Table_PI[[#This Row],[List 2]],Table_PI[[#This Row],[List 3]],Table_PI[[#This Row],[Size]],Table_PI[[#This Row],[Input 1]],Table_PI[[#This Row],[Input 2]],Table_PI[[#This Row],[Input 3]],Table_PI[[#This Row],[Input 4]],'Customer Information'!$AR$12,1,ROW())>0,MeasureCalc(Table_PI[[#This Row],[Hide:\nFormula Name]],Table_PI[[#This Row],[Quantity]],Table_PI[[#This Row],[List 1]],Table_PI[[#This Row],[List 2]],Table_PI[[#This Row],[List 3]],Table_PI[[#This Row],[Size]],Table_PI[[#This Row],[Input 1]],Table_PI[[#This Row],[Input 2]],Table_PI[[#This Row],[Input 3]],Table_PI[[#This Row],[Input 4]],'Customer Information'!$AR$12,2,ROW()),\"No Rebate\"),\"No Rebate\"),0)","v":0},{"$f":"IF(Table_PI[[#This Row],[Hide:\nFormula Name]]<>\"\",IFERROR(IF(MeasureCalc(Table_PI[[#This Row],[Hide:\nFormula Name]],Table_PI[[#This Row],[Quantity]],Table_PI[[#This Row],[List 1]],Table_PI[[#This Row],[List 2]],Table_PI[[#This Row],[List 3]],Table_PI[[#This Row],[Size]],Table_PI[[#This Row],[Input 1]],Table_PI[[#This Row],[Input 2]],Table_PI[[#This Row],[Input 3]],Table_PI[[#This Row],[Input 4]],'Customer Information'!$AR$12,1,ROW())>0,MeasureCalc(Table_PI[[#This Row],[Hide:\nFormula Name]],Table_PI[[#This Row],[Quantity]],Table_PI[[#This Row],[List 1]],Table_PI[[#This Row],[List 2]],Table_PI[[#This Row],[List 3]],Table_PI[[#This Row],[Size]],Table_PI[[#This Row],[Input 1]],Table_PI[[#This Row],[Input 2]],Table_PI[[#This Row],[Input 3]],Table_PI[[#This Row],[Input 4]],'Customer Information'!$AR$12,3,ROW()),\"No Rebate\"),\"No Rebate\"),0)","v":0},{"$f":"IF(Table_PI[[#This Row],[Hide:\nFormula Name]]<>\"\",IFERROR(IF(MeasureCalc(Table_PI[[#This Row],[Hide:\nFormula Name]],Table_PI[[#This Row],[Quantity]],Table_PI[[#This Row],[List 1]],Table_PI[[#This Row],[List 2]],Table_PI[[#This Row],[List 3]],Table_PI[[#This Row],[Size]],Table_PI[[#This Row],[Input 1]],Table_PI[[#This Row],[Input 2]],Table_PI[[#This Row],[Input 3]],Table_PI[[#This Row],[Input 4]],'Customer Information'!$AR$12,1,ROW())>0,MeasureCalc(Table_PI[[#This Row],[Hide:\nFormula Name]],Table_PI[[#This Row],[Quantity]],Table_PI[[#This Row],[List 1]],Table_PI[[#This Row],[List 2]],Table_PI[[#This Row],[List 3]],Table_PI[[#This Row],[Size]],Table_PI[[#This Row],[Input 1]],Table_PI[[#This Row],[Input 2]],Table_PI[[#This Row],[Input 3]],Table_PI[[#This Row],[Input 4]],'Customer Information'!$AR$12,4,ROW()),\"No Rebate\"),\"No Rebate\"),0)","v":0},{"$f":"IF(Table_PI[[#This Row],[Hide:\nFormula Name]]<>\"\",IFERROR(IF(MeasureCalc(Table_PI[[#This Row],[Hide:\nFormula Name]],Table_PI[[#This Row],[Quantity]],Table_PI[[#This Row],[List 1]],Table_PI[[#This Row],[List 2]],Table_PI[[#This Row],[List 3]],Table_PI[[#This Row],[Size]],Table_PI[[#This Row],[Input 1]],Table_PI[[#This Row],[Input 2]],Table_PI[[#This Row],[Input 3]],Table_PI[[#This Row],[Input 4]],'Customer Information'!$AR$12,1,ROW())>0,MeasureCalc(Table_PI[[#This Row],[Hide:\nFormula Name]],Table_PI[[#This Row],[Quantity]],Table_PI[[#This Row],[List 1]],Table_PI[[#This Row],[List 2]],Table_PI[[#This Row],[List 3]],Table_PI[[#This Row],[Size]],Table_PI[[#This Row],[Input 1]],Table_PI[[#This Row],[Input 2]],Table_PI[[#This Row],[Input 3]],Table_PI[[#This Row],[Input 4]],'Customer Information'!$AR$12,5,ROW()),\"No Rebate\"),\"No Rebate\"),0)","v":0},{"$f":"IF(Table_PI[[#This Row],[Hide:\nFormula Name]]<>\"\",IFERROR(IF(MeasureCalc(Table_PI[[#This Row],[Hide:\nFormula Name]],Table_PI[[#This Row],[Quantity]],Table_PI[[#This Row],[List 1]],Table_PI[[#This Row],[List 2]],Table_PI[[#This Row],[List 3]],Table_PI[[#This Row],[Size]],Table_PI[[#This Row],[Input 1]],Table_PI[[#This Row],[Input 2]],Table_PI[[#This Row],[Input 3]],Table_PI[[#This Row],[Input 4]],'Customer Information'!$AR$12,1,ROW())>0,MeasureCalc(Table_PI[[#This Row],[Hide:\nFormula Name]],Table_PI[[#This Row],[Quantity]],Table_PI[[#This Row],[List 1]],Table_PI[[#This Row],[List 2]],Table_PI[[#This Row],[List 3]],Table_PI[[#This Row],[Size]],Table_PI[[#This Row],[Input 1]],Table_PI[[#This Row],[Input 2]],Table_PI[[#This Row],[Input 3]],Table_PI[[#This Row],[Input 4]],'Customer Information'!$AR$12,6,ROW()),\"No Rebate\"),\"No Rebate\"),0)","v":0},{"$f":"IF(Table_PI[[#This Row],[Hide:\nFormula Name]]<>\"\",IFERROR(IF(MeasureCalc(Table_PI[[#This Row],[Hide:\nFormula Name]],Table_PI[[#This Row],[Quantity]],Table_PI[[#This Row],[List 1]],Table_PI[[#This Row],[List 2]],Table_PI[[#This Row],[List 3]],Table_PI[[#This Row],[Size]],Table_PI[[#This Row],[Input 1]],Table_PI[[#This Row],[Input 2]],Table_PI[[#This Row],[Input 3]],Table_PI[[#This Row],[Input 4]],'Customer Information'!$AR$12,1,ROW())>0,MeasureCalc(Table_PI[[#This Row],[Hide:\nFormula Name]],Table_PI[[#This Row],[Quantity]],Table_PI[[#This Row],[List 1]],Table_PI[[#This Row],[List 2]],Table_PI[[#This Row],[List 3]],Table_PI[[#This Row],[Size]],Table_PI[[#This Row],[Input 1]],Table_PI[[#This Row],[Input 2]],Table_PI[[#This Row],[Input 3]],Table_PI[[#This Row],[Input 4]],'Customer Information'!$AR$12,7,ROW()),\"No Rebate\"),\"No Rebate\"),0)","v":0},{"$f":"IF(Table_PI[[#This Row],[Hide:\nFormula Name]]<>\"\",IFERROR(IF(MeasureCalc(Table_PI[[#This Row],[Hide:\nFormula Name]],Table_PI[[#This Row],[Quantity]],Table_PI[[#This Row],[List 1]],Table_PI[[#This Row],[List 2]],Table_PI[[#This Row],[List 3]],Table_PI[[#This Row],[Size]],Table_PI[[#This Row],[Input 1]],Table_PI[[#This Row],[Input 2]],Table_PI[[#This Row],[Input 3]],Table_PI[[#This Row],[Input 4]],'Customer Information'!$AR$12,1,ROW())>0,MeasureCalc(Table_PI[[#This Row],[Hide:\nFormula Name]],Table_PI[[#This Row],[Quantity]],Table_PI[[#This Row],[List 1]],Table_PI[[#This Row],[List 2]],Table_PI[[#This Row],[List 3]],Table_PI[[#This Row],[Size]],Table_PI[[#This Row],[Input 1]],Table_PI[[#This Row],[Input 2]],Table_PI[[#This Row],[Input 3]],Table_PI[[#This Row],[Input 4]],'Customer Information'!$AR$12,8,ROW()),\"No Rebate\"),\"No Rebate\"),0)","v":0},{"$f":"IF(Table_PI[[#This Row],[Hide:\nFormula Name]]<>\"\",IF(AND(Table_PI[[#This Row],[Hide:\nFormula Name]]<>\"\",OR(Table_PI[[#This Row],[Rebate]]>0,Table_PI[[#This Row],[Rebate]]=\"No Rebate\")),TRUE,\"MI: Line Item \" & $A246),\"\")","v":""}]
[{"$f":"IF(Table_PI[[#This Row],[Hide:\nFormula Name]]<>\"\",MAX($A$2:A246)+1,\"\")","v":""},null,null,null,null,null,null,null,null,null,null,null,null,null,null,{"$f":"IFERROR(VLOOKUP(Table_PI[[#This Row],[Measure]],'Equipment Lookups'!$C$3:$D$23,2,FALSE),\"\")","v":""},{"$f":"IF(Table_PI[[#This Row],[Hide:\nFormula Name]]<>\"\",IFERROR(IF(MeasureCalc(Table_PI[[#This Row],[Hide:\nFormula Name]],Table_PI[[#This Row],[Quantity]],Table_PI[[#This Row],[List 1]],Table_PI[[#This Row],[List 2]],Table_PI[[#This Row],[List 3]],Table_PI[[#This Row],[Size]],Table_PI[[#This Row],[Input 1]],Table_PI[[#This Row],[Input 2]],Table_PI[[#This Row],[Input 3]],Table_PI[[#This Row],[Input 4]],'Customer Information'!$AR$12,1,ROW())>0,MeasureCalc(Table_PI[[#This Row],[Hide:\nFormula Name]],Table_PI[[#This Row],[Quantity]],Table_PI[[#This Row],[List 1]],Table_PI[[#This Row],[List 2]],Table_PI[[#This Row],[List 3]],Table_PI[[#This Row],[Size]],Table_PI[[#This Row],[Input 1]],Table_PI[[#This Row],[Input 2]],Table_PI[[#This Row],[Input 3]],Table_PI[[#This Row],[Input 4]],'Customer Information'!$AR$12,1,ROW()),\"No Rebate\"),\"No Rebate\"),0)","v":0},{"$f":"IF(Table_PI[[#This Row],[Hide:\nFormula Name]]<>\"\",IFERROR(IF(MeasureCalc(Table_PI[[#This Row],[Hide:\nFormula Name]],Table_PI[[#This Row],[Quantity]],Table_PI[[#This Row],[List 1]],Table_PI[[#This Row],[List 2]],Table_PI[[#This Row],[List 3]],Table_PI[[#This Row],[Size]],Table_PI[[#This Row],[Input 1]],Table_PI[[#This Row],[Input 2]],Table_PI[[#This Row],[Input 3]],Table_PI[[#This Row],[Input 4]],'Customer Information'!$AR$12,1,ROW())>0,MeasureCalc(Table_PI[[#This Row],[Hide:\nFormula Name]],Table_PI[[#This Row],[Quantity]],Table_PI[[#This Row],[List 1]],Table_PI[[#This Row],[List 2]],Table_PI[[#This Row],[List 3]],Table_PI[[#This Row],[Size]],Table_PI[[#This Row],[Input 1]],Table_PI[[#This Row],[Input 2]],Table_PI[[#This Row],[Input 3]],Table_PI[[#This Row],[Input 4]],'Customer Information'!$AR$12,2,ROW()),\"No Rebate\"),\"No Rebate\"),0)","v":0},{"$f":"IF(Table_PI[[#This Row],[Hide:\nFormula Name]]<>\"\",IFERROR(IF(MeasureCalc(Table_PI[[#This Row],[Hide:\nFormula Name]],Table_PI[[#This Row],[Quantity]],Table_PI[[#This Row],[List 1]],Table_PI[[#This Row],[List 2]],Table_PI[[#This Row],[List 3]],Table_PI[[#This Row],[Size]],Table_PI[[#This Row],[Input 1]],Table_PI[[#This Row],[Input 2]],Table_PI[[#This Row],[Input 3]],Table_PI[[#This Row],[Input 4]],'Customer Information'!$AR$12,1,ROW())>0,MeasureCalc(Table_PI[[#This Row],[Hide:\nFormula Name]],Table_PI[[#This Row],[Quantity]],Table_PI[[#This Row],[List 1]],Table_PI[[#This Row],[List 2]],Table_PI[[#This Row],[List 3]],Table_PI[[#This Row],[Size]],Table_PI[[#This Row],[Input 1]],Table_PI[[#This Row],[Input 2]],Table_PI[[#This Row],[Input 3]],Table_PI[[#This Row],[Input 4]],'Customer Information'!$AR$12,3,ROW()),\"No Rebate\"),\"No Rebate\"),0)","v":0},{"$f":"IF(Table_PI[[#This Row],[Hide:\nFormula Name]]<>\"\",IFERROR(IF(MeasureCalc(Table_PI[[#This Row],[Hide:\nFormula Name]],Table_PI[[#This Row],[Quantity]],Table_PI[[#This Row],[List 1]],Table_PI[[#This Row],[List 2]],Table_PI[[#This Row],[List 3]],Table_PI[[#This Row],[Size]],Table_PI[[#This Row],[Input 1]],Table_PI[[#This Row],[Input 2]],Table_PI[[#This Row],[Input 3]],Table_PI[[#This Row],[Input 4]],'Customer Information'!$AR$12,1,ROW())>0,MeasureCalc(Table_PI[[#This Row],[Hide:\nFormula Name]],Table_PI[[#This Row],[Quantity]],Table_PI[[#This Row],[List 1]],Table_PI[[#This Row],[List 2]],Table_PI[[#This Row],[List 3]],Table_PI[[#This Row],[Size]],Table_PI[[#This Row],[Input 1]],Table_PI[[#This Row],[Input 2]],Table_PI[[#This Row],[Input 3]],Table_PI[[#This Row],[Input 4]],'Customer Information'!$AR$12,4,ROW()),\"No Rebate\"),\"No Rebate\"),0)","v":0},{"$f":"IF(Table_PI[[#This Row],[Hide:\nFormula Name]]<>\"\",IFERROR(IF(MeasureCalc(Table_PI[[#This Row],[Hide:\nFormula Name]],Table_PI[[#This Row],[Quantity]],Table_PI[[#This Row],[List 1]],Table_PI[[#This Row],[List 2]],Table_PI[[#This Row],[List 3]],Table_PI[[#This Row],[Size]],Table_PI[[#This Row],[Input 1]],Table_PI[[#This Row],[Input 2]],Table_PI[[#This Row],[Input 3]],Table_PI[[#This Row],[Input 4]],'Customer Information'!$AR$12,1,ROW())>0,MeasureCalc(Table_PI[[#This Row],[Hide:\nFormula Name]],Table_PI[[#This Row],[Quantity]],Table_PI[[#This Row],[List 1]],Table_PI[[#This Row],[List 2]],Table_PI[[#This Row],[List 3]],Table_PI[[#This Row],[Size]],Table_PI[[#This Row],[Input 1]],Table_PI[[#This Row],[Input 2]],Table_PI[[#This Row],[Input 3]],Table_PI[[#This Row],[Input 4]],'Customer Information'!$AR$12,5,ROW()),\"No Rebate\"),\"No Rebate\"),0)","v":0},{"$f":"IF(Table_PI[[#This Row],[Hide:\nFormula Name]]<>\"\",IFERROR(IF(MeasureCalc(Table_PI[[#This Row],[Hide:\nFormula Name]],Table_PI[[#This Row],[Quantity]],Table_PI[[#This Row],[List 1]],Table_PI[[#This Row],[List 2]],Table_PI[[#This Row],[List 3]],Table_PI[[#This Row],[Size]],Table_PI[[#This Row],[Input 1]],Table_PI[[#This Row],[Input 2]],Table_PI[[#This Row],[Input 3]],Table_PI[[#This Row],[Input 4]],'Customer Information'!$AR$12,1,ROW())>0,MeasureCalc(Table_PI[[#This Row],[Hide:\nFormula Name]],Table_PI[[#This Row],[Quantity]],Table_PI[[#This Row],[List 1]],Table_PI[[#This Row],[List 2]],Table_PI[[#This Row],[List 3]],Table_PI[[#This Row],[Size]],Table_PI[[#This Row],[Input 1]],Table_PI[[#This Row],[Input 2]],Table_PI[[#This Row],[Input 3]],Table_PI[[#This Row],[Input 4]],'Customer Information'!$AR$12,6,ROW()),\"No Rebate\"),\"No Rebate\"),0)","v":0},{"$f":"IF(Table_PI[[#This Row],[Hide:\nFormula Name]]<>\"\",IFERROR(IF(MeasureCalc(Table_PI[[#This Row],[Hide:\nFormula Name]],Table_PI[[#This Row],[Quantity]],Table_PI[[#This Row],[List 1]],Table_PI[[#This Row],[List 2]],Table_PI[[#This Row],[List 3]],Table_PI[[#This Row],[Size]],Table_PI[[#This Row],[Input 1]],Table_PI[[#This Row],[Input 2]],Table_PI[[#This Row],[Input 3]],Table_PI[[#This Row],[Input 4]],'Customer Information'!$AR$12,1,ROW())>0,MeasureCalc(Table_PI[[#This Row],[Hide:\nFormula Name]],Table_PI[[#This Row],[Quantity]],Table_PI[[#This Row],[List 1]],Table_PI[[#This Row],[List 2]],Table_PI[[#This Row],[List 3]],Table_PI[[#This Row],[Size]],Table_PI[[#This Row],[Input 1]],Table_PI[[#This Row],[Input 2]],Table_PI[[#This Row],[Input 3]],Table_PI[[#This Row],[Input 4]],'Customer Information'!$AR$12,7,ROW()),\"No Rebate\"),\"No Rebate\"),0)","v":0},{"$f":"IF(Table_PI[[#This Row],[Hide:\nFormula Name]]<>\"\",IFERROR(IF(MeasureCalc(Table_PI[[#This Row],[Hide:\nFormula Name]],Table_PI[[#This Row],[Quantity]],Table_PI[[#This Row],[List 1]],Table_PI[[#This Row],[List 2]],Table_PI[[#This Row],[List 3]],Table_PI[[#This Row],[Size]],Table_PI[[#This Row],[Input 1]],Table_PI[[#This Row],[Input 2]],Table_PI[[#This Row],[Input 3]],Table_PI[[#This Row],[Input 4]],'Customer Information'!$AR$12,1,ROW())>0,MeasureCalc(Table_PI[[#This Row],[Hide:\nFormula Name]],Table_PI[[#This Row],[Quantity]],Table_PI[[#This Row],[List 1]],Table_PI[[#This Row],[List 2]],Table_PI[[#This Row],[List 3]],Table_PI[[#This Row],[Size]],Table_PI[[#This Row],[Input 1]],Table_PI[[#This Row],[Input 2]],Table_PI[[#This Row],[Input 3]],Table_PI[[#This Row],[Input 4]],'Customer Information'!$AR$12,8,ROW()),\"No Rebate\"),\"No Rebate\"),0)","v":0},{"$f":"IF(Table_PI[[#This Row],[Hide:\nFormula Name]]<>\"\",IF(AND(Table_PI[[#This Row],[Hide:\nFormula Name]]<>\"\",OR(Table_PI[[#This Row],[Rebate]]>0,Table_PI[[#This Row],[Rebate]]=\"No Rebate\")),TRUE,\"MI: Line Item \" & $A247),\"\")","v":""}]
[{"$f":"IF(Table_PI[[#This Row],[Hide:\nFormula Name]]<>\"\",MAX($A$2:A247)+1,\"\")","v":""},null,null,null,null,null,null,null,null,null,null,null,null,null,null,{"$f":"IFERROR(VLOOKUP(Table_PI[[#This Row],[Measure]],'Equipment Lookups'!$C$3:$D$23,2,FALSE),\"\")","v":""},{"$f":"IF(Table_PI[[#This Row],[Hide:\nFormula Name]]<>\"\",IFERROR(IF(MeasureCalc(Table_PI[[#This Row],[Hide:\nFormula Name]],Table_PI[[#This Row],[Quantity]],Table_PI[[#This Row],[List 1]],Table_PI[[#This Row],[List 2]],Table_PI[[#This Row],[List 3]],Table_PI[[#This Row],[Size]],Table_PI[[#This Row],[Input 1]],Table_PI[[#This Row],[Input 2]],Table_PI[[#This Row],[Input 3]],Table_PI[[#This Row],[Input 4]],'Customer Information'!$AR$12,1,ROW())>0,MeasureCalc(Table_PI[[#This Row],[Hide:\nFormula Name]],Table_PI[[#This Row],[Quantity]],Table_PI[[#This Row],[List 1]],Table_PI[[#This Row],[List 2]],Table_PI[[#This Row],[List 3]],Table_PI[[#This Row],[Size]],Table_PI[[#This Row],[Input 1]],Table_PI[[#This Row],[Input 2]],Table_PI[[#This Row],[Input 3]],Table_PI[[#This Row],[Input 4]],'Customer Information'!$AR$12,1,ROW()),\"No Rebate\"),\"No Rebate\"),0)","v":0},{"$f":"IF(Table_PI[[#This Row],[Hide:\nFormula Name]]<>\"\",IFERROR(IF(MeasureCalc(Table_PI[[#This Row],[Hide:\nFormula Name]],Table_PI[[#This Row],[Quantity]],Table_PI[[#This Row],[List 1]],Table_PI[[#This Row],[List 2]],Table_PI[[#This Row],[List 3]],Table_PI[[#This Row],[Size]],Table_PI[[#This Row],[Input 1]],Table_PI[[#This Row],[Input 2]],Table_PI[[#This Row],[Input 3]],Table_PI[[#This Row],[Input 4]],'Customer Information'!$AR$12,1,ROW())>0,MeasureCalc(Table_PI[[#This Row],[Hide:\nFormula Name]],Table_PI[[#This Row],[Quantity]],Table_PI[[#This Row],[List 1]],Table_PI[[#This Row],[List 2]],Table_PI[[#This Row],[List 3]],Table_PI[[#This Row],[Size]],Table_PI[[#This Row],[Input 1]],Table_PI[[#This Row],[Input 2]],Table_PI[[#This Row],[Input 3]],Table_PI[[#This Row],[Input 4]],'Customer Information'!$AR$12,2,ROW()),\"No Rebate\"),\"No Rebate\"),0)","v":0},{"$f":"IF(Table_PI[[#This Row],[Hide:\nFormula Name]]<>\"\",IFERROR(IF(MeasureCalc(Table_PI[[#This Row],[Hide:\nFormula Name]],Table_PI[[#This Row],[Quantity]],Table_PI[[#This Row],[List 1]],Table_PI[[#This Row],[List 2]],Table_PI[[#This Row],[List 3]],Table_PI[[#This Row],[Size]],Table_PI[[#This Row],[Input 1]],Table_PI[[#This Row],[Input 2]],Table_PI[[#This Row],[Input 3]],Table_PI[[#This Row],[Input 4]],'Customer Information'!$AR$12,1,ROW())>0,MeasureCalc(Table_PI[[#This Row],[Hide:\nFormula Name]],Table_PI[[#This Row],[Quantity]],Table_PI[[#This Row],[List 1]],Table_PI[[#This Row],[List 2]],Table_PI[[#This Row],[List 3]],Table_PI[[#This Row],[Size]],Table_PI[[#This Row],[Input 1]],Table_PI[[#This Row],[Input 2]],Table_PI[[#This Row],[Input 3]],Table_PI[[#This Row],[Input 4]],'Customer Information'!$AR$12,3,ROW()),\"No Rebate\"),\"No Rebate\"),0)","v":0},{"$f":"IF(Table_PI[[#This Row],[Hide:\nFormula Name]]<>\"\",IFERROR(IF(MeasureCalc(Table_PI[[#This Row],[Hide:\nFormula Name]],Table_PI[[#This Row],[Quantity]],Table_PI[[#This Row],[List 1]],Table_PI[[#This Row],[List 2]],Table_PI[[#This Row],[List 3]],Table_PI[[#This Row],[Size]],Table_PI[[#This Row],[Input 1]],Table_PI[[#This Row],[Input 2]],Table_PI[[#This Row],[Input 3]],Table_PI[[#This Row],[Input 4]],'Customer Information'!$AR$12,1,ROW())>0,MeasureCalc(Table_PI[[#This Row],[Hide:\nFormula Name]],Table_PI[[#This Row],[Quantity]],Table_PI[[#This Row],[List 1]],Table_PI[[#This Row],[List 2]],Table_PI[[#This Row],[List 3]],Table_PI[[#This Row],[Size]],Table_PI[[#This Row],[Input 1]],Table_PI[[#This Row],[Input 2]],Table_PI[[#This Row],[Input 3]],Table_PI[[#This Row],[Input 4]],'Customer Information'!$AR$12,4,ROW()),\"No Rebate\"),\"No Rebate\"),0)","v":0},{"$f":"IF(Table_PI[[#This Row],[Hide:\nFormula Name]]<>\"\",IFERROR(IF(MeasureCalc(Table_PI[[#This Row],[Hide:\nFormula Name]],Table_PI[[#This Row],[Quantity]],Table_PI[[#This Row],[List 1]],Table_PI[[#This Row],[List 2]],Table_PI[[#This Row],[List 3]],Table_PI[[#This Row],[Size]],Table_PI[[#This Row],[Input 1]],Table_PI[[#This Row],[Input 2]],Table_PI[[#This Row],[Input 3]],Table_PI[[#This Row],[Input 4]],'Customer Information'!$AR$12,1,ROW())>0,MeasureCalc(Table_PI[[#This Row],[Hide:\nFormula Name]],Table_PI[[#This Row],[Quantity]],Table_PI[[#This Row],[List 1]],Table_PI[[#This Row],[List 2]],Table_PI[[#This Row],[List 3]],Table_PI[[#This Row],[Size]],Table_PI[[#This Row],[Input 1]],Table_PI[[#This Row],[Input 2]],Table_PI[[#This Row],[Input 3]],Table_PI[[#This Row],[Input 4]],'Customer Information'!$AR$12,5,ROW()),\"No Rebate\"),\"No Rebate\"),0)","v":0},{"$f":"IF(Table_PI[[#This Row],[Hide:\nFormula Name]]<>\"\",IFERROR(IF(MeasureCalc(Table_PI[[#This Row],[Hide:\nFormula Name]],Table_PI[[#This Row],[Quantity]],Table_PI[[#This Row],[List 1]],Table_PI[[#This Row],[List 2]],Table_PI[[#This Row],[List 3]],Table_PI[[#This Row],[Size]],Table_PI[[#This Row],[Input 1]],Table_PI[[#This Row],[Input 2]],Table_PI[[#This Row],[Input 3]],Table_PI[[#This Row],[Input 4]],'Customer Information'!$AR$12,1,ROW())>0,MeasureCalc(Table_PI[[#This Row],[Hide:\nFormula Name]],Table_PI[[#This Row],[Quantity]],Table_PI[[#This Row],[List 1]],Table_PI[[#This Row],[List 2]],Table_PI[[#This Row],[List 3]],Table_PI[[#This Row],[Size]],Table_PI[[#This Row],[Input 1]],Table_PI[[#This Row],[Input 2]],Table_PI[[#This Row],[Input 3]],Table_PI[[#This Row],[Input 4]],'Customer Information'!$AR$12,6,ROW()),\"No Rebate\"),\"No Rebate\"),0)","v":0},{"$f":"IF(Table_PI[[#This Row],[Hide:\nFormula Name]]<>\"\",IFERROR(IF(MeasureCalc(Table_PI[[#This Row],[Hide:\nFormula Name]],Table_PI[[#This Row],[Quantity]],Table_PI[[#This Row],[List 1]],Table_PI[[#This Row],[List 2]],Table_PI[[#This Row],[List 3]],Table_PI[[#This Row],[Size]],Table_PI[[#This Row],[Input 1]],Table_PI[[#This Row],[Input 2]],Table_PI[[#This Row],[Input 3]],Table_PI[[#This Row],[Input 4]],'Customer Information'!$AR$12,1,ROW())>0,MeasureCalc(Table_PI[[#This Row],[Hide:\nFormula Name]],Table_PI[[#This Row],[Quantity]],Table_PI[[#This Row],[List 1]],Table_PI[[#This Row],[List 2]],Table_PI[[#This Row],[List 3]],Table_PI[[#This Row],[Size]],Table_PI[[#This Row],[Input 1]],Table_PI[[#This Row],[Input 2]],Table_PI[[#This Row],[Input 3]],Table_PI[[#This Row],[Input 4]],'Customer Information'!$AR$12,7,ROW()),\"No Rebate\"),\"No Rebate\"),0)","v":0},{"$f":"IF(Table_PI[[#This Row],[Hide:\nFormula Name]]<>\"\",IFERROR(IF(MeasureCalc(Table_PI[[#This Row],[Hide:\nFormula Name]],Table_PI[[#This Row],[Quantity]],Table_PI[[#This Row],[List 1]],Table_PI[[#This Row],[List 2]],Table_PI[[#This Row],[List 3]],Table_PI[[#This Row],[Size]],Table_PI[[#This Row],[Input 1]],Table_PI[[#This Row],[Input 2]],Table_PI[[#This Row],[Input 3]],Table_PI[[#This Row],[Input 4]],'Customer Information'!$AR$12,1,ROW())>0,MeasureCalc(Table_PI[[#This Row],[Hide:\nFormula Name]],Table_PI[[#This Row],[Quantity]],Table_PI[[#This Row],[List 1]],Table_PI[[#This Row],[List 2]],Table_PI[[#This Row],[List 3]],Table_PI[[#This Row],[Size]],Table_PI[[#This Row],[Input 1]],Table_PI[[#This Row],[Input 2]],Table_PI[[#This Row],[Input 3]],Table_PI[[#This Row],[Input 4]],'Customer Information'!$AR$12,8,ROW()),\"No Rebate\"),\"No Rebate\"),0)","v":0},{"$f":"IF(Table_PI[[#This Row],[Hide:\nFormula Name]]<>\"\",IF(AND(Table_PI[[#This Row],[Hide:\nFormula Name]]<>\"\",OR(Table_PI[[#This Row],[Rebate]]>0,Table_PI[[#This Row],[Rebate]]=\"No Rebate\")),TRUE,\"MI: Line Item \" & $A248),\"\")","v":""}]
[{"$f":"IF(Table_PI[[#This Row],[Hide:\nFormula Name]]<>\"\",MAX($A$2:A248)+1,\"\")","v":""},null,null,null,null,null,null,null,null,null,null,null,null,null,null,{"$f":"IFERROR(VLOOKUP(Table_PI[[#This Row],[Measure]],'Equipment Lookups'!$C$3:$D$23,2,FALSE),\"\")","v":""},{"$f":"IF(Table_PI[[#This Row],[Hide:\nFormula Name]]<>\"\",IFERROR(IF(MeasureCalc(Table_PI[[#This Row],[Hide:\nFormula Name]],Table_PI[[#This Row],[Quantity]],Table_PI[[#This Row],[List 1]],Table_PI[[#This Row],[List 2]],Table_PI[[#This Row],[List 3]],Table_PI[[#This Row],[Size]],Table_PI[[#This Row],[Input 1]],Table_PI[[#This Row],[Input 2]],Table_PI[[#This Row],[Input 3]],Table_PI[[#This Row],[Input 4]],'Customer Information'!$AR$12,1,ROW())>0,MeasureCalc(Table_PI[[#This Row],[Hide:\nFormula Name]],Table_PI[[#This Row],[Quantity]],Table_PI[[#This Row],[List 1]],Table_PI[[#This Row],[List 2]],Table_PI[[#This Row],[List 3]],Table_PI[[#This Row],[Size]],Table_PI[[#This Row],[Input 1]],Table_PI[[#This Row],[Input 2]],Table_PI[[#This Row],[Input 3]],Table_PI[[#This Row],[Input 4]],'Customer Information'!$AR$12,1,ROW()),\"No Rebate\"),\"No Rebate\"),0)","v":0},{"$f":"IF(Table_PI[[#This Row],[Hide:\nFormula Name]]<>\"\",IFERROR(IF(MeasureCalc(Table_PI[[#This Row],[Hide:\nFormula Name]],Table_PI[[#This Row],[Quantity]],Table_PI[[#This Row],[List 1]],Table_PI[[#This Row],[List 2]],Table_PI[[#This Row],[List 3]],Table_PI[[#This Row],[Size]],Table_PI[[#This Row],[Input 1]],Table_PI[[#This Row],[Input 2]],Table_PI[[#This Row],[Input 3]],Table_PI[[#This Row],[Input 4]],'Customer Information'!$AR$12,1,ROW())>0,MeasureCalc(Table_PI[[#This Row],[Hide:\nFormula Name]],Table_PI[[#This Row],[Quantity]],Table_PI[[#This Row],[List 1]],Table_PI[[#This Row],[List 2]],Table_PI[[#This Row],[List 3]],Table_PI[[#This Row],[Size]],Table_PI[[#This Row],[Input 1]],Table_PI[[#This Row],[Input 2]],Table_PI[[#This Row],[Input 3]],Table_PI[[#This Row],[Input 4]],'Customer Information'!$AR$12,2,ROW()),\"No Rebate\"),\"No Rebate\"),0)","v":0},{"$f":"IF(Table_PI[[#This Row],[Hide:\nFormula Name]]<>\"\",IFERROR(IF(MeasureCalc(Table_PI[[#This Row],[Hide:\nFormula Name]],Table_PI[[#This Row],[Quantity]],Table_PI[[#This Row],[List 1]],Table_PI[[#This Row],[List 2]],Table_PI[[#This Row],[List 3]],Table_PI[[#This Row],[Size]],Table_PI[[#This Row],[Input 1]],Table_PI[[#This Row],[Input 2]],Table_PI[[#This Row],[Input 3]],Table_PI[[#This Row],[Input 4]],'Customer Information'!$AR$12,1,ROW())>0,MeasureCalc(Table_PI[[#This Row],[Hide:\nFormula Name]],Table_PI[[#This Row],[Quantity]],Table_PI[[#This Row],[List 1]],Table_PI[[#This Row],[List 2]],Table_PI[[#This Row],[List 3]],Table_PI[[#This Row],[Size]],Table_PI[[#This Row],[Input 1]],Table_PI[[#This Row],[Input 2]],Table_PI[[#This Row],[Input 3]],Table_PI[[#This Row],[Input 4]],'Customer Information'!$AR$12,3,ROW()),\"No Rebate\"),\"No Rebate\"),0)","v":0},{"$f":"IF(Table_PI[[#This Row],[Hide:\nFormula Name]]<>\"\",IFERROR(IF(MeasureCalc(Table_PI[[#This Row],[Hide:\nFormula Name]],Table_PI[[#This Row],[Quantity]],Table_PI[[#This Row],[List 1]],Table_PI[[#This Row],[List 2]],Table_PI[[#This Row],[List 3]],Table_PI[[#This Row],[Size]],Table_PI[[#This Row],[Input 1]],Table_PI[[#This Row],[Input 2]],Table_PI[[#This Row],[Input 3]],Table_PI[[#This Row],[Input 4]],'Customer Information'!$AR$12,1,ROW())>0,MeasureCalc(Table_PI[[#This Row],[Hide:\nFormula Name]],Table_PI[[#This Row],[Quantity]],Table_PI[[#This Row],[List 1]],Table_PI[[#This Row],[List 2]],Table_PI[[#This Row],[List 3]],Table_PI[[#This Row],[Size]],Table_PI[[#This Row],[Input 1]],Table_PI[[#This Row],[Input 2]],Table_PI[[#This Row],[Input 3]],Table_PI[[#This Row],[Input 4]],'Customer Information'!$AR$12,4,ROW()),\"No Rebate\"),\"No Rebate\"),0)","v":0},{"$f":"IF(Table_PI[[#This Row],[Hide:\nFormula Name]]<>\"\",IFERROR(IF(MeasureCalc(Table_PI[[#This Row],[Hide:\nFormula Name]],Table_PI[[#This Row],[Quantity]],Table_PI[[#This Row],[List 1]],Table_PI[[#This Row],[List 2]],Table_PI[[#This Row],[List 3]],Table_PI[[#This Row],[Size]],Table_PI[[#This Row],[Input 1]],Table_PI[[#This Row],[Input 2]],Table_PI[[#This Row],[Input 3]],Table_PI[[#This Row],[Input 4]],'Customer Information'!$AR$12,1,ROW())>0,MeasureCalc(Table_PI[[#This Row],[Hide:\nFormula Name]],Table_PI[[#This Row],[Quantity]],Table_PI[[#This Row],[List 1]],Table_PI[[#This Row],[List 2]],Table_PI[[#This Row],[List 3]],Table_PI[[#This Row],[Size]],Table_PI[[#This Row],[Input 1]],Table_PI[[#This Row],[Input 2]],Table_PI[[#This Row],[Input 3]],Table_PI[[#This Row],[Input 4]],'Customer Information'!$AR$12,5,ROW()),\"No Rebate\"),\"No Rebate\"),0)","v":0},{"$f":"IF(Table_PI[[#This Row],[Hide:\nFormula Name]]<>\"\",IFERROR(IF(MeasureCalc(Table_PI[[#This Row],[Hide:\nFormula Name]],Table_PI[[#This Row],[Quantity]],Table_PI[[#This Row],[List 1]],Table_PI[[#This Row],[List 2]],Table_PI[[#This Row],[List 3]],Table_PI[[#This Row],[Size]],Table_PI[[#This Row],[Input 1]],Table_PI[[#This Row],[Input 2]],Table_PI[[#This Row],[Input 3]],Table_PI[[#This Row],[Input 4]],'Customer Information'!$AR$12,1,ROW())>0,MeasureCalc(Table_PI[[#This Row],[Hide:\nFormula Name]],Table_PI[[#This Row],[Quantity]],Table_PI[[#This Row],[List 1]],Table_PI[[#This Row],[List 2]],Table_PI[[#This Row],[List 3]],Table_PI[[#This Row],[Size]],Table_PI[[#This Row],[Input 1]],Table_PI[[#This Row],[Input 2]],Table_PI[[#This Row],[Input 3]],Table_PI[[#This Row],[Input 4]],'Customer Information'!$AR$12,6,ROW()),\"No Rebate\"),\"No Rebate\"),0)","v":0},{"$f":"IF(Table_PI[[#This Row],[Hide:\nFormula Name]]<>\"\",IFERROR(IF(MeasureCalc(Table_PI[[#This Row],[Hide:\nFormula Name]],Table_PI[[#This Row],[Quantity]],Table_PI[[#This Row],[List 1]],Table_PI[[#This Row],[List 2]],Table_PI[[#This Row],[List 3]],Table_PI[[#This Row],[Size]],Table_PI[[#This Row],[Input 1]],Table_PI[[#This Row],[Input 2]],Table_PI[[#This Row],[Input 3]],Table_PI[[#This Row],[Input 4]],'Customer Information'!$AR$12,1,ROW())>0,MeasureCalc(Table_PI[[#This Row],[Hide:\nFormula Name]],Table_PI[[#This Row],[Quantity]],Table_PI[[#This Row],[List 1]],Table_PI[[#This Row],[List 2]],Table_PI[[#This Row],[List 3]],Table_PI[[#This Row],[Size]],Table_PI[[#This Row],[Input 1]],Table_PI[[#This Row],[Input 2]],Table_PI[[#This Row],[Input 3]],Table_PI[[#This Row],[Input 4]],'Customer Information'!$AR$12,7,ROW()),\"No Rebate\"),\"No Rebate\"),0)","v":0},{"$f":"IF(Table_PI[[#This Row],[Hide:\nFormula Name]]<>\"\",IFERROR(IF(MeasureCalc(Table_PI[[#This Row],[Hide:\nFormula Name]],Table_PI[[#This Row],[Quantity]],Table_PI[[#This Row],[List 1]],Table_PI[[#This Row],[List 2]],Table_PI[[#This Row],[List 3]],Table_PI[[#This Row],[Size]],Table_PI[[#This Row],[Input 1]],Table_PI[[#This Row],[Input 2]],Table_PI[[#This Row],[Input 3]],Table_PI[[#This Row],[Input 4]],'Customer Information'!$AR$12,1,ROW())>0,MeasureCalc(Table_PI[[#This Row],[Hide:\nFormula Name]],Table_PI[[#This Row],[Quantity]],Table_PI[[#This Row],[List 1]],Table_PI[[#This Row],[List 2]],Table_PI[[#This Row],[List 3]],Table_PI[[#This Row],[Size]],Table_PI[[#This Row],[Input 1]],Table_PI[[#This Row],[Input 2]],Table_PI[[#This Row],[Input 3]],Table_PI[[#This Row],[Input 4]],'Customer Information'!$AR$12,8,ROW()),\"No Rebate\"),\"No Rebate\"),0)","v":0},{"$f":"IF(Table_PI[[#This Row],[Hide:\nFormula Name]]<>\"\",IF(AND(Table_PI[[#This Row],[Hide:\nFormula Name]]<>\"\",OR(Table_PI[[#This Row],[Rebate]]>0,Table_PI[[#This Row],[Rebate]]=\"No Rebate\")),TRUE,\"MI: Line Item \" & $A249),\"\")","v":""}]
[{"$f":"IF(Table_PI[[#This Row],[Hide:\nFormula Name]]<>\"\",MAX($A$2:A249)+1,\"\")","v":""},null,null,null,null,null,null,null,null,null,null,null,null,null,null,{"$f":"IFERROR(VLOOKUP(Table_PI[[#This Row],[Measure]],'Equipment Lookups'!$C$3:$D$23,2,FALSE),\"\")","v":""},{"$f":"IF(Table_PI[[#This Row],[Hide:\nFormula Name]]<>\"\",IFERROR(IF(MeasureCalc(Table_PI[[#This Row],[Hide:\nFormula Name]],Table_PI[[#This Row],[Quantity]],Table_PI[[#This Row],[List 1]],Table_PI[[#This Row],[List 2]],Table_PI[[#This Row],[List 3]],Table_PI[[#This Row],[Size]],Table_PI[[#This Row],[Input 1]],Table_PI[[#This Row],[Input 2]],Table_PI[[#This Row],[Input 3]],Table_PI[[#This Row],[Input 4]],'Customer Information'!$AR$12,1,ROW())>0,MeasureCalc(Table_PI[[#This Row],[Hide:\nFormula Name]],Table_PI[[#This Row],[Quantity]],Table_PI[[#This Row],[List 1]],Table_PI[[#This Row],[List 2]],Table_PI[[#This Row],[List 3]],Table_PI[[#This Row],[Size]],Table_PI[[#This Row],[Input 1]],Table_PI[[#This Row],[Input 2]],Table_PI[[#This Row],[Input 3]],Table_PI[[#This Row],[Input 4]],'Customer Information'!$AR$12,1,ROW()),\"No Rebate\"),\"No Rebate\"),0)","v":0},{"$f":"IF(Table_PI[[#This Row],[Hide:\nFormula Name]]<>\"\",IFERROR(IF(MeasureCalc(Table_PI[[#This Row],[Hide:\nFormula Name]],Table_PI[[#This Row],[Quantity]],Table_PI[[#This Row],[List 1]],Table_PI[[#This Row],[List 2]],Table_PI[[#This Row],[List 3]],Table_PI[[#This Row],[Size]],Table_PI[[#This Row],[Input 1]],Table_PI[[#This Row],[Input 2]],Table_PI[[#This Row],[Input 3]],Table_PI[[#This Row],[Input 4]],'Customer Information'!$AR$12,1,ROW())>0,MeasureCalc(Table_PI[[#This Row],[Hide:\nFormula Name]],Table_PI[[#This Row],[Quantity]],Table_PI[[#This Row],[List 1]],Table_PI[[#This Row],[List 2]],Table_PI[[#This Row],[List 3]],Table_PI[[#This Row],[Size]],Table_PI[[#This Row],[Input 1]],Table_PI[[#This Row],[Input 2]],Table_PI[[#This Row],[Input 3]],Table_PI[[#This Row],[Input 4]],'Customer Information'!$AR$12,2,ROW()),\"No Rebate\"),\"No Rebate\"),0)","v":0},{"$f":"IF(Table_PI[[#This Row],[Hide:\nFormula Name]]<>\"\",IFERROR(IF(MeasureCalc(Table_PI[[#This Row],[Hide:\nFormula Name]],Table_PI[[#This Row],[Quantity]],Table_PI[[#This Row],[List 1]],Table_PI[[#This Row],[List 2]],Table_PI[[#This Row],[List 3]],Table_PI[[#This Row],[Size]],Table_PI[[#This Row],[Input 1]],Table_PI[[#This Row],[Input 2]],Table_PI[[#This Row],[Input 3]],Table_PI[[#This Row],[Input 4]],'Customer Information'!$AR$12,1,ROW())>0,MeasureCalc(Table_PI[[#This Row],[Hide:\nFormula Name]],Table_PI[[#This Row],[Quantity]],Table_PI[[#This Row],[List 1]],Table_PI[[#This Row],[List 2]],Table_PI[[#This Row],[List 3]],Table_PI[[#This Row],[Size]],Table_PI[[#This Row],[Input 1]],Table_PI[[#This Row],[Input 2]],Table_PI[[#This Row],[Input 3]],Table_PI[[#This Row],[Input 4]],'Customer Information'!$AR$12,3,ROW()),\"No Rebate\"),\"No Rebate\"),0)","v":0},{"$f":"IF(Table_PI[[#This Row],[Hide:\nFormula Name]]<>\"\",IFERROR(IF(MeasureCalc(Table_PI[[#This Row],[Hide:\nFormula Name]],Table_PI[[#This Row],[Quantity]],Table_PI[[#This Row],[List 1]],Table_PI[[#This Row],[List 2]],Table_PI[[#This Row],[List 3]],Table_PI[[#This Row],[Size]],Table_PI[[#This Row],[Input 1]],Table_PI[[#This Row],[Input 2]],Table_PI[[#This Row],[Input 3]],Table_PI[[#This Row],[Input 4]],'Customer Information'!$AR$12,1,ROW())>0,MeasureCalc(Table_PI[[#This Row],[Hide:\nFormula Name]],Table_PI[[#This Row],[Quantity]],Table_PI[[#This Row],[List 1]],Table_PI[[#This Row],[List 2]],Table_PI[[#This Row],[List 3]],Table_PI[[#This Row],[Size]],Table_PI[[#This Row],[Input 1]],Table_PI[[#This Row],[Input 2]],Table_PI[[#This Row],[Input 3]],Table_PI[[#This Row],[Input 4]],'Customer Information'!$AR$12,4,ROW()),\"No Rebate\"),\"No Rebate\"),0)","v":0},{"$f":"IF(Table_PI[[#This Row],[Hide:\nFormula Name]]<>\"\",IFERROR(IF(MeasureCalc(Table_PI[[#This Row],[Hide:\nFormula Name]],Table_PI[[#This Row],[Quantity]],Table_PI[[#This Row],[List 1]],Table_PI[[#This Row],[List 2]],Table_PI[[#This Row],[List 3]],Table_PI[[#This Row],[Size]],Table_PI[[#This Row],[Input 1]],Table_PI[[#This Row],[Input 2]],Table_PI[[#This Row],[Input 3]],Table_PI[[#This Row],[Input 4]],'Customer Information'!$AR$12,1,ROW())>0,MeasureCalc(Table_PI[[#This Row],[Hide:\nFormula Name]],Table_PI[[#This Row],[Quantity]],Table_PI[[#This Row],[List 1]],Table_PI[[#This Row],[List 2]],Table_PI[[#This Row],[List 3]],Table_PI[[#This Row],[Size]],Table_PI[[#This Row],[Input 1]],Table_PI[[#This Row],[Input 2]],Table_PI[[#This Row],[Input 3]],Table_PI[[#This Row],[Input 4]],'Customer Information'!$AR$12,5,ROW()),\"No Rebate\"),\"No Rebate\"),0)","v":0},{"$f":"IF(Table_PI[[#This Row],[Hide:\nFormula Name]]<>\"\",IFERROR(IF(MeasureCalc(Table_PI[[#This Row],[Hide:\nFormula Name]],Table_PI[[#This Row],[Quantity]],Table_PI[[#This Row],[List 1]],Table_PI[[#This Row],[List 2]],Table_PI[[#This Row],[List 3]],Table_PI[[#This Row],[Size]],Table_PI[[#This Row],[Input 1]],Table_PI[[#This Row],[Input 2]],Table_PI[[#This Row],[Input 3]],Table_PI[[#This Row],[Input 4]],'Customer Information'!$AR$12,1,ROW())>0,MeasureCalc(Table_PI[[#This Row],[Hide:\nFormula Name]],Table_PI[[#This Row],[Quantity]],Table_PI[[#This Row],[List 1]],Table_PI[[#This Row],[List 2]],Table_PI[[#This Row],[List 3]],Table_PI[[#This Row],[Size]],Table_PI[[#This Row],[Input 1]],Table_PI[[#This Row],[Input 2]],Table_PI[[#This Row],[Input 3]],Table_PI[[#This Row],[Input 4]],'Customer Information'!$AR$12,6,ROW()),\"No Rebate\"),\"No Rebate\"),0)","v":0},{"$f":"IF(Table_PI[[#This Row],[Hide:\nFormula Name]]<>\"\",IFERROR(IF(MeasureCalc(Table_PI[[#This Row],[Hide:\nFormula Name]],Table_PI[[#This Row],[Quantity]],Table_PI[[#This Row],[List 1]],Table_PI[[#This Row],[List 2]],Table_PI[[#This Row],[List 3]],Table_PI[[#This Row],[Size]],Table_PI[[#This Row],[Input 1]],Table_PI[[#This Row],[Input 2]],Table_PI[[#This Row],[Input 3]],Table_PI[[#This Row],[Input 4]],'Customer Information'!$AR$12,1,ROW())>0,MeasureCalc(Table_PI[[#This Row],[Hide:\nFormula Name]],Table_PI[[#This Row],[Quantity]],Table_PI[[#This Row],[List 1]],Table_PI[[#This Row],[List 2]],Table_PI[[#This Row],[List 3]],Table_PI[[#This Row],[Size]],Table_PI[[#This Row],[Input 1]],Table_PI[[#This Row],[Input 2]],Table_PI[[#This Row],[Input 3]],Table_PI[[#This Row],[Input 4]],'Customer Information'!$AR$12,7,ROW()),\"No Rebate\"),\"No Rebate\"),0)","v":0},{"$f":"IF(Table_PI[[#This Row],[Hide:\nFormula Name]]<>\"\",IFERROR(IF(MeasureCalc(Table_PI[[#This Row],[Hide:\nFormula Name]],Table_PI[[#This Row],[Quantity]],Table_PI[[#This Row],[List 1]],Table_PI[[#This Row],[List 2]],Table_PI[[#This Row],[List 3]],Table_PI[[#This Row],[Size]],Table_PI[[#This Row],[Input 1]],Table_PI[[#This Row],[Input 2]],Table_PI[[#This Row],[Input 3]],Table_PI[[#This Row],[Input 4]],'Customer Information'!$AR$12,1,ROW())>0,MeasureCalc(Table_PI[[#This Row],[Hide:\nFormula Name]],Table_PI[[#This Row],[Quantity]],Table_PI[[#This Row],[List 1]],Table_PI[[#This Row],[List 2]],Table_PI[[#This Row],[List 3]],Table_PI[[#This Row],[Size]],Table_PI[[#This Row],[Input 1]],Table_PI[[#This Row],[Input 2]],Table_PI[[#This Row],[Input 3]],Table_PI[[#This Row],[Input 4]],'Customer Information'!$AR$12,8,ROW()),\"No Rebate\"),\"No Rebate\"),0)","v":0},{"$f":"IF(Table_PI[[#This Row],[Hide:\nFormula Name]]<>\"\",IF(AND(Table_PI[[#This Row],[Hide:\nFormula Name]]<>\"\",OR(Table_PI[[#This Row],[Rebate]]>0,Table_PI[[#This Row],[Rebate]]=\"No Rebate\")),TRUE,\"MI: Line Item \" & $A250),\"\")","v":""}]
[{"$f":"IF(Table_PI[[#This Row],[Hide:\nFormula Name]]<>\"\",MAX($A$2:A250)+1,\"\")","v":""},null,null,null,null,null,null,null,null,null,null,null,null,null,null,{"$f":"IFERROR(VLOOKUP(Table_PI[[#This Row],[Measure]],'Equipment Lookups'!$C$3:$D$23,2,FALSE),\"\")","v":""},{"$f":"IF(Table_PI[[#This Row],[Hide:\nFormula Name]]<>\"\",IFERROR(IF(MeasureCalc(Table_PI[[#This Row],[Hide:\nFormula Name]],Table_PI[[#This Row],[Quantity]],Table_PI[[#This Row],[List 1]],Table_PI[[#This Row],[List 2]],Table_PI[[#This Row],[List 3]],Table_PI[[#This Row],[Size]],Table_PI[[#This Row],[Input 1]],Table_PI[[#This Row],[Input 2]],Table_PI[[#This Row],[Input 3]],Table_PI[[#This Row],[Input 4]],'Customer Information'!$AR$12,1,ROW())>0,MeasureCalc(Table_PI[[#This Row],[Hide:\nFormula Name]],Table_PI[[#This Row],[Quantity]],Table_PI[[#This Row],[List 1]],Table_PI[[#This Row],[List 2]],Table_PI[[#This Row],[List 3]],Table_PI[[#This Row],[Size]],Table_PI[[#This Row],[Input 1]],Table_PI[[#This Row],[Input 2]],Table_PI[[#This Row],[Input 3]],Table_PI[[#This Row],[Input 4]],'Customer Information'!$AR$12,1,ROW()),\"No Rebate\"),\"No Rebate\"),0)","v":0},{"$f":"IF(Table_PI[[#This Row],[Hide:\nFormula Name]]<>\"\",IFERROR(IF(MeasureCalc(Table_PI[[#This Row],[Hide:\nFormula Name]],Table_PI[[#This Row],[Quantity]],Table_PI[[#This Row],[List 1]],Table_PI[[#This Row],[List 2]],Table_PI[[#This Row],[List 3]],Table_PI[[#This Row],[Size]],Table_PI[[#This Row],[Input 1]],Table_PI[[#This Row],[Input 2]],Table_PI[[#This Row],[Input 3]],Table_PI[[#This Row],[Input 4]],'Customer Information'!$AR$12,1,ROW())>0,MeasureCalc(Table_PI[[#This Row],[Hide:\nFormula Name]],Table_PI[[#This Row],[Quantity]],Table_PI[[#This Row],[List 1]],Table_PI[[#This Row],[List 2]],Table_PI[[#This Row],[List 3]],Table_PI[[#This Row],[Size]],Table_PI[[#This Row],[Input 1]],Table_PI[[#This Row],[Input 2]],Table_PI[[#This Row],[Input 3]],Table_PI[[#This Row],[Input 4]],'Customer Information'!$AR$12,2,ROW()),\"No Rebate\"),\"No Rebate\"),0)","v":0},{"$f":"IF(Table_PI[[#This Row],[Hide:\nFormula Name]]<>\"\",IFERROR(IF(MeasureCalc(Table_PI[[#This Row],[Hide:\nFormula Name]],Table_PI[[#This Row],[Quantity]],Table_PI[[#This Row],[List 1]],Table_PI[[#This Row],[List 2]],Table_PI[[#This Row],[List 3]],Table_PI[[#This Row],[Size]],Table_PI[[#This Row],[Input 1]],Table_PI[[#This Row],[Input 2]],Table_PI[[#This Row],[Input 3]],Table_PI[[#This Row],[Input 4]],'Customer Information'!$AR$12,1,ROW())>0,MeasureCalc(Table_PI[[#This Row],[Hide:\nFormula Name]],Table_PI[[#This Row],[Quantity]],Table_PI[[#This Row],[List 1]],Table_PI[[#This Row],[List 2]],Table_PI[[#This Row],[List 3]],Table_PI[[#This Row],[Size]],Table_PI[[#This Row],[Input 1]],Table_PI[[#This Row],[Input 2]],Table_PI[[#This Row],[Input 3]],Table_PI[[#This Row],[Input 4]],'Customer Information'!$AR$12,3,ROW()),\"No Rebate\"),\"No Rebate\"),0)","v":0},{"$f":"IF(Table_PI[[#This Row],[Hide:\nFormula Name]]<>\"\",IFERROR(IF(MeasureCalc(Table_PI[[#This Row],[Hide:\nFormula Name]],Table_PI[[#This Row],[Quantity]],Table_PI[[#This Row],[List 1]],Table_PI[[#This Row],[List 2]],Table_PI[[#This Row],[List 3]],Table_PI[[#This Row],[Size]],Table_PI[[#This Row],[Input 1]],Table_PI[[#This Row],[Input 2]],Table_PI[[#This Row],[Input 3]],Table_PI[[#This Row],[Input 4]],'Customer Information'!$AR$12,1,ROW())>0,MeasureCalc(Table_PI[[#This Row],[Hide:\nFormula Name]],Table_PI[[#This Row],[Quantity]],Table_PI[[#This Row],[List 1]],Table_PI[[#This Row],[List 2]],Table_PI[[#This Row],[List 3]],Table_PI[[#This Row],[Size]],Table_PI[[#This Row],[Input 1]],Table_PI[[#This Row],[Input 2]],Table_PI[[#This Row],[Input 3]],Table_PI[[#This Row],[Input 4]],'Customer Information'!$AR$12,4,ROW()),\"No Rebate\"),\"No Rebate\"),0)","v":0},{"$f":"IF(Table_PI[[#This Row],[Hide:\nFormula Name]]<>\"\",IFERROR(IF(MeasureCalc(Table_PI[[#This Row],[Hide:\nFormula Name]],Table_PI[[#This Row],[Quantity]],Table_PI[[#This Row],[List 1]],Table_PI[[#This Row],[List 2]],Table_PI[[#This Row],[List 3]],Table_PI[[#This Row],[Size]],Table_PI[[#This Row],[Input 1]],Table_PI[[#This Row],[Input 2]],Table_PI[[#This Row],[Input 3]],Table_PI[[#This Row],[Input 4]],'Customer Information'!$AR$12,1,ROW())>0,MeasureCalc(Table_PI[[#This Row],[Hide:\nFormula Name]],Table_PI[[#This Row],[Quantity]],Table_PI[[#This Row],[List 1]],Table_PI[[#This Row],[List 2]],Table_PI[[#This Row],[List 3]],Table_PI[[#This Row],[Size]],Table_PI[[#This Row],[Input 1]],Table_PI[[#This Row],[Input 2]],Table_PI[[#This Row],[Input 3]],Table_PI[[#This Row],[Input 4]],'Customer Information'!$AR$12,5,ROW()),\"No Rebate\"),\"No Rebate\"),0)","v":0},{"$f":"IF(Table_PI[[#This Row],[Hide:\nFormula Name]]<>\"\",IFERROR(IF(MeasureCalc(Table_PI[[#This Row],[Hide:\nFormula Name]],Table_PI[[#This Row],[Quantity]],Table_PI[[#This Row],[List 1]],Table_PI[[#This Row],[List 2]],Table_PI[[#This Row],[List 3]],Table_PI[[#This Row],[Size]],Table_PI[[#This Row],[Input 1]],Table_PI[[#This Row],[Input 2]],Table_PI[[#This Row],[Input 3]],Table_PI[[#This Row],[Input 4]],'Customer Information'!$AR$12,1,ROW())>0,MeasureCalc(Table_PI[[#This Row],[Hide:\nFormula Name]],Table_PI[[#This Row],[Quantity]],Table_PI[[#This Row],[List 1]],Table_PI[[#This Row],[List 2]],Table_PI[[#This Row],[List 3]],Table_PI[[#This Row],[Size]],Table_PI[[#This Row],[Input 1]],Table_PI[[#This Row],[Input 2]],Table_PI[[#This Row],[Input 3]],Table_PI[[#This Row],[Input 4]],'Customer Information'!$AR$12,6,ROW()),\"No Rebate\"),\"No Rebate\"),0)","v":0},{"$f":"IF(Table_PI[[#This Row],[Hide:\nFormula Name]]<>\"\",IFERROR(IF(MeasureCalc(Table_PI[[#This Row],[Hide:\nFormula Name]],Table_PI[[#This Row],[Quantity]],Table_PI[[#This Row],[List 1]],Table_PI[[#This Row],[List 2]],Table_PI[[#This Row],[List 3]],Table_PI[[#This Row],[Size]],Table_PI[[#This Row],[Input 1]],Table_PI[[#This Row],[Input 2]],Table_PI[[#This Row],[Input 3]],Table_PI[[#This Row],[Input 4]],'Customer Information'!$AR$12,1,ROW())>0,MeasureCalc(Table_PI[[#This Row],[Hide:\nFormula Name]],Table_PI[[#This Row],[Quantity]],Table_PI[[#This Row],[List 1]],Table_PI[[#This Row],[List 2]],Table_PI[[#This Row],[List 3]],Table_PI[[#This Row],[Size]],Table_PI[[#This Row],[Input 1]],Table_PI[[#This Row],[Input 2]],Table_PI[[#This Row],[Input 3]],Table_PI[[#This Row],[Input 4]],'Customer Information'!$AR$12,7,ROW()),\"No Rebate\"),\"No Rebate\"),0)","v":0},{"$f":"IF(Table_PI[[#This Row],[Hide:\nFormula Name]]<>\"\",IFERROR(IF(MeasureCalc(Table_PI[[#This Row],[Hide:\nFormula Name]],Table_PI[[#This Row],[Quantity]],Table_PI[[#This Row],[List 1]],Table_PI[[#This Row],[List 2]],Table_PI[[#This Row],[List 3]],Table_PI[[#This Row],[Size]],Table_PI[[#This Row],[Input 1]],Table_PI[[#This Row],[Input 2]],Table_PI[[#This Row],[Input 3]],Table_PI[[#This Row],[Input 4]],'Customer Information'!$AR$12,1,ROW())>0,MeasureCalc(Table_PI[[#This Row],[Hide:\nFormula Name]],Table_PI[[#This Row],[Quantity]],Table_PI[[#This Row],[List 1]],Table_PI[[#This Row],[List 2]],Table_PI[[#This Row],[List 3]],Table_PI[[#This Row],[Size]],Table_PI[[#This Row],[Input 1]],Table_PI[[#This Row],[Input 2]],Table_PI[[#This Row],[Input 3]],Table_PI[[#This Row],[Input 4]],'Customer Information'!$AR$12,8,ROW()),\"No Rebate\"),\"No Rebate\"),0)","v":0},{"$f":"IF(Table_PI[[#This Row],[Hide:\nFormula Name]]<>\"\",IF(AND(Table_PI[[#This Row],[Hide:\nFormula Name]]<>\"\",OR(Table_PI[[#This Row],[Rebate]]>0,Table_PI[[#This Row],[Rebate]]=\"No Rebate\")),TRUE,\"MI: Line Item \" & $A251),\"\")","v":""}]
[{"$f":"IF(Table_PI[[#This Row],[Hide:\nFormula Name]]<>\"\",MAX($A$2:A251)+1,\"\")","v":""},null,null,null,null,null,null,null,null,null,null,null,null,null,null,{"$f":"IFERROR(VLOOKUP(Table_PI[[#This Row],[Measure]],'Equipment Lookups'!$C$3:$D$23,2,FALSE),\"\")","v":""},{"$f":"IF(Table_PI[[#This Row],[Hide:\nFormula Name]]<>\"\",IFERROR(IF(MeasureCalc(Table_PI[[#This Row],[Hide:\nFormula Name]],Table_PI[[#This Row],[Quantity]],Table_PI[[#This Row],[List 1]],Table_PI[[#This Row],[List 2]],Table_PI[[#This Row],[List 3]],Table_PI[[#This Row],[Size]],Table_PI[[#This Row],[Input 1]],Table_PI[[#This Row],[Input 2]],Table_PI[[#This Row],[Input 3]],Table_PI[[#This Row],[Input 4]],'Customer Information'!$AR$12,1,ROW())>0,MeasureCalc(Table_PI[[#This Row],[Hide:\nFormula Name]],Table_PI[[#This Row],[Quantity]],Table_PI[[#This Row],[List 1]],Table_PI[[#This Row],[List 2]],Table_PI[[#This Row],[List 3]],Table_PI[[#This Row],[Size]],Table_PI[[#This Row],[Input 1]],Table_PI[[#This Row],[Input 2]],Table_PI[[#This Row],[Input 3]],Table_PI[[#This Row],[Input 4]],'Customer Information'!$AR$12,1,ROW()),\"No Rebate\"),\"No Rebate\"),0)","v":0},{"$f":"IF(Table_PI[[#This Row],[Hide:\nFormula Name]]<>\"\",IFERROR(IF(MeasureCalc(Table_PI[[#This Row],[Hide:\nFormula Name]],Table_PI[[#This Row],[Quantity]],Table_PI[[#This Row],[List 1]],Table_PI[[#This Row],[List 2]],Table_PI[[#This Row],[List 3]],Table_PI[[#This Row],[Size]],Table_PI[[#This Row],[Input 1]],Table_PI[[#This Row],[Input 2]],Table_PI[[#This Row],[Input 3]],Table_PI[[#This Row],[Input 4]],'Customer Information'!$AR$12,1,ROW())>0,MeasureCalc(Table_PI[[#This Row],[Hide:\nFormula Name]],Table_PI[[#This Row],[Quantity]],Table_PI[[#This Row],[List 1]],Table_PI[[#This Row],[List 2]],Table_PI[[#This Row],[List 3]],Table_PI[[#This Row],[Size]],Table_PI[[#This Row],[Input 1]],Table_PI[[#This Row],[Input 2]],Table_PI[[#This Row],[Input 3]],Table_PI[[#This Row],[Input 4]],'Customer Information'!$AR$12,2,ROW()),\"No Rebate\"),\"No Rebate\"),0)","v":0},{"$f":"IF(Table_PI[[#This Row],[Hide:\nFormula Name]]<>\"\",IFERROR(IF(MeasureCalc(Table_PI[[#This Row],[Hide:\nFormula Name]],Table_PI[[#This Row],[Quantity]],Table_PI[[#This Row],[List 1]],Table_PI[[#This Row],[List 2]],Table_PI[[#This Row],[List 3]],Table_PI[[#This Row],[Size]],Table_PI[[#This Row],[Input 1]],Table_PI[[#This Row],[Input 2]],Table_PI[[#This Row],[Input 3]],Table_PI[[#This Row],[Input 4]],'Customer Information'!$AR$12,1,ROW())>0,MeasureCalc(Table_PI[[#This Row],[Hide:\nFormula Name]],Table_PI[[#This Row],[Quantity]],Table_PI[[#This Row],[List 1]],Table_PI[[#This Row],[List 2]],Table_PI[[#This Row],[List 3]],Table_PI[[#This Row],[Size]],Table_PI[[#This Row],[Input 1]],Table_PI[[#This Row],[Input 2]],Table_PI[[#This Row],[Input 3]],Table_PI[[#This Row],[Input 4]],'Customer Information'!$AR$12,3,ROW()),\"No Rebate\"),\"No Rebate\"),0)","v":0},{"$f":"IF(Table_PI[[#This Row],[Hide:\nFormula Name]]<>\"\",IFERROR(IF(MeasureCalc(Table_PI[[#This Row],[Hide:\nFormula Name]],Table_PI[[#This Row],[Quantity]],Table_PI[[#This Row],[List 1]],Table_PI[[#This Row],[List 2]],Table_PI[[#This Row],[List 3]],Table_PI[[#This Row],[Size]],Table_PI[[#This Row],[Input 1]],Table_PI[[#This Row],[Input 2]],Table_PI[[#This Row],[Input 3]],Table_PI[[#This Row],[Input 4]],'Customer Information'!$AR$12,1,ROW())>0,MeasureCalc(Table_PI[[#This Row],[Hide:\nFormula Name]],Table_PI[[#This Row],[Quantity]],Table_PI[[#This Row],[List 1]],Table_PI[[#This Row],[List 2]],Table_PI[[#This Row],[List 3]],Table_PI[[#This Row],[Size]],Table_PI[[#This Row],[Input 1]],Table_PI[[#This Row],[Input 2]],Table_PI[[#This Row],[Input 3]],Table_PI[[#This Row],[Input 4]],'Customer Information'!$AR$12,4,ROW()),\"No Rebate\"),\"No Rebate\"),0)","v":0},{"$f":"IF(Table_PI[[#This Row],[Hide:\nFormula Name]]<>\"\",IFERROR(IF(MeasureCalc(Table_PI[[#This Row],[Hide:\nFormula Name]],Table_PI[[#This Row],[Quantity]],Table_PI[[#This Row],[List 1]],Table_PI[[#This Row],[List 2]],Table_PI[[#This Row],[List 3]],Table_PI[[#This Row],[Size]],Table_PI[[#This Row],[Input 1]],Table_PI[[#This Row],[Input 2]],Table_PI[[#This Row],[Input 3]],Table_PI[[#This Row],[Input 4]],'Customer Information'!$AR$12,1,ROW())>0,MeasureCalc(Table_PI[[#This Row],[Hide:\nFormula Name]],Table_PI[[#This Row],[Quantity]],Table_PI[[#This Row],[List 1]],Table_PI[[#This Row],[List 2]],Table_PI[[#This Row],[List 3]],Table_PI[[#This Row],[Size]],Table_PI[[#This Row],[Input 1]],Table_PI[[#This Row],[Input 2]],Table_PI[[#This Row],[Input 3]],Table_PI[[#This Row],[Input 4]],'Customer Information'!$AR$12,5,ROW()),\"No Rebate\"),\"No Rebate\"),0)","v":0},{"$f":"IF(Table_PI[[#This Row],[Hide:\nFormula Name]]<>\"\",IFERROR(IF(MeasureCalc(Table_PI[[#This Row],[Hide:\nFormula Name]],Table_PI[[#This Row],[Quantity]],Table_PI[[#This Row],[List 1]],Table_PI[[#This Row],[List 2]],Table_PI[[#This Row],[List 3]],Table_PI[[#This Row],[Size]],Table_PI[[#This Row],[Input 1]],Table_PI[[#This Row],[Input 2]],Table_PI[[#This Row],[Input 3]],Table_PI[[#This Row],[Input 4]],'Customer Information'!$AR$12,1,ROW())>0,MeasureCalc(Table_PI[[#This Row],[Hide:\nFormula Name]],Table_PI[[#This Row],[Quantity]],Table_PI[[#This Row],[List 1]],Table_PI[[#This Row],[List 2]],Table_PI[[#This Row],[List 3]],Table_PI[[#This Row],[Size]],Table_PI[[#This Row],[Input 1]],Table_PI[[#This Row],[Input 2]],Table_PI[[#This Row],[Input 3]],Table_PI[[#This Row],[Input 4]],'Customer Information'!$AR$12,6,ROW()),\"No Rebate\"),\"No Rebate\"),0)","v":0},{"$f":"IF(Table_PI[[#This Row],[Hide:\nFormula Name]]<>\"\",IFERROR(IF(MeasureCalc(Table_PI[[#This Row],[Hide:\nFormula Name]],Table_PI[[#This Row],[Quantity]],Table_PI[[#This Row],[List 1]],Table_PI[[#This Row],[List 2]],Table_PI[[#This Row],[List 3]],Table_PI[[#This Row],[Size]],Table_PI[[#This Row],[Input 1]],Table_PI[[#This Row],[Input 2]],Table_PI[[#This Row],[Input 3]],Table_PI[[#This Row],[Input 4]],'Customer Information'!$AR$12,1,ROW())>0,MeasureCalc(Table_PI[[#This Row],[Hide:\nFormula Name]],Table_PI[[#This Row],[Quantity]],Table_PI[[#This Row],[List 1]],Table_PI[[#This Row],[List 2]],Table_PI[[#This Row],[List 3]],Table_PI[[#This Row],[Size]],Table_PI[[#This Row],[Input 1]],Table_PI[[#This Row],[Input 2]],Table_PI[[#This Row],[Input 3]],Table_PI[[#This Row],[Input 4]],'Customer Information'!$AR$12,7,ROW()),\"No Rebate\"),\"No Rebate\"),0)","v":0},{"$f":"IF(Table_PI[[#This Row],[Hide:\nFormula Name]]<>\"\",IFERROR(IF(MeasureCalc(Table_PI[[#This Row],[Hide:\nFormula Name]],Table_PI[[#This Row],[Quantity]],Table_PI[[#This Row],[List 1]],Table_PI[[#This Row],[List 2]],Table_PI[[#This Row],[List 3]],Table_PI[[#This Row],[Size]],Table_PI[[#This Row],[Input 1]],Table_PI[[#This Row],[Input 2]],Table_PI[[#This Row],[Input 3]],Table_PI[[#This Row],[Input 4]],'Customer Information'!$AR$12,1,ROW())>0,MeasureCalc(Table_PI[[#This Row],[Hide:\nFormula Name]],Table_PI[[#This Row],[Quantity]],Table_PI[[#This Row],[List 1]],Table_PI[[#This Row],[List 2]],Table_PI[[#This Row],[List 3]],Table_PI[[#This Row],[Size]],Table_PI[[#This Row],[Input 1]],Table_PI[[#This Row],[Input 2]],Table_PI[[#This Row],[Input 3]],Table_PI[[#This Row],[Input 4]],'Customer Information'!$AR$12,8,ROW()),\"No Rebate\"),\"No Rebate\"),0)","v":0},{"$f":"IF(Table_PI[[#This Row],[Hide:\nFormula Name]]<>\"\",IF(AND(Table_PI[[#This Row],[Hide:\nFormula Name]]<>\"\",OR(Table_PI[[#This Row],[Rebate]]>0,Table_PI[[#This Row],[Rebate]]=\"No Rebate\")),TRUE,\"MI: Line Item \" & $A252),\"\")","v":""}]
[{"$f":"IF(Table_PI[[#This Row],[Hide:\nFormula Name]]<>\"\",MAX($A$2:A252)+1,\"\")","v":""},null,null,null,null,null,null,null,null,null,null,null,null,null,null,{"$f":"IFERROR(VLOOKUP(Table_PI[[#This Row],[Measure]],'Equipment Lookups'!$C$3:$D$23,2,FALSE),\"\")","v":""},{"$f":"IF(Table_PI[[#This Row],[Hide:\nFormula Name]]<>\"\",IFERROR(IF(MeasureCalc(Table_PI[[#This Row],[Hide:\nFormula Name]],Table_PI[[#This Row],[Quantity]],Table_PI[[#This Row],[List 1]],Table_PI[[#This Row],[List 2]],Table_PI[[#This Row],[List 3]],Table_PI[[#This Row],[Size]],Table_PI[[#This Row],[Input 1]],Table_PI[[#This Row],[Input 2]],Table_PI[[#This Row],[Input 3]],Table_PI[[#This Row],[Input 4]],'Customer Information'!$AR$12,1,ROW())>0,MeasureCalc(Table_PI[[#This Row],[Hide:\nFormula Name]],Table_PI[[#This Row],[Quantity]],Table_PI[[#This Row],[List 1]],Table_PI[[#This Row],[List 2]],Table_PI[[#This Row],[List 3]],Table_PI[[#This Row],[Size]],Table_PI[[#This Row],[Input 1]],Table_PI[[#This Row],[Input 2]],Table_PI[[#This Row],[Input 3]],Table_PI[[#This Row],[Input 4]],'Customer Information'!$AR$12,1,ROW()),\"No Rebate\"),\"No Rebate\"),0)","v":0},{"$f":"IF(Table_PI[[#This Row],[Hide:\nFormula Name]]<>\"\",IFERROR(IF(MeasureCalc(Table_PI[[#This Row],[Hide:\nFormula Name]],Table_PI[[#This Row],[Quantity]],Table_PI[[#This Row],[List 1]],Table_PI[[#This Row],[List 2]],Table_PI[[#This Row],[List 3]],Table_PI[[#This Row],[Size]],Table_PI[[#This Row],[Input 1]],Table_PI[[#This Row],[Input 2]],Table_PI[[#This Row],[Input 3]],Table_PI[[#This Row],[Input 4]],'Customer Information'!$AR$12,1,ROW())>0,MeasureCalc(Table_PI[[#This Row],[Hide:\nFormula Name]],Table_PI[[#This Row],[Quantity]],Table_PI[[#This Row],[List 1]],Table_PI[[#This Row],[List 2]],Table_PI[[#This Row],[List 3]],Table_PI[[#This Row],[Size]],Table_PI[[#This Row],[Input 1]],Table_PI[[#This Row],[Input 2]],Table_PI[[#This Row],[Input 3]],Table_PI[[#This Row],[Input 4]],'Customer Information'!$AR$12,2,ROW()),\"No Rebate\"),\"No Rebate\"),0)","v":0},{"$f":"IF(Table_PI[[#This Row],[Hide:\nFormula Name]]<>\"\",IFERROR(IF(MeasureCalc(Table_PI[[#This Row],[Hide:\nFormula Name]],Table_PI[[#This Row],[Quantity]],Table_PI[[#This Row],[List 1]],Table_PI[[#This Row],[List 2]],Table_PI[[#This Row],[List 3]],Table_PI[[#This Row],[Size]],Table_PI[[#This Row],[Input 1]],Table_PI[[#This Row],[Input 2]],Table_PI[[#This Row],[Input 3]],Table_PI[[#This Row],[Input 4]],'Customer Information'!$AR$12,1,ROW())>0,MeasureCalc(Table_PI[[#This Row],[Hide:\nFormula Name]],Table_PI[[#This Row],[Quantity]],Table_PI[[#This Row],[List 1]],Table_PI[[#This Row],[List 2]],Table_PI[[#This Row],[List 3]],Table_PI[[#This Row],[Size]],Table_PI[[#This Row],[Input 1]],Table_PI[[#This Row],[Input 2]],Table_PI[[#This Row],[Input 3]],Table_PI[[#This Row],[Input 4]],'Customer Information'!$AR$12,3,ROW()),\"No Rebate\"),\"No Rebate\"),0)","v":0},{"$f":"IF(Table_PI[[#This Row],[Hide:\nFormula Name]]<>\"\",IFERROR(IF(MeasureCalc(Table_PI[[#This Row],[Hide:\nFormula Name]],Table_PI[[#This Row],[Quantity]],Table_PI[[#This Row],[List 1]],Table_PI[[#This Row],[List 2]],Table_PI[[#This Row],[List 3]],Table_PI[[#This Row],[Size]],Table_PI[[#This Row],[Input 1]],Table_PI[[#This Row],[Input 2]],Table_PI[[#This Row],[Input 3]],Table_PI[[#This Row],[Input 4]],'Customer Information'!$AR$12,1,ROW())>0,MeasureCalc(Table_PI[[#This Row],[Hide:\nFormula Name]],Table_PI[[#This Row],[Quantity]],Table_PI[[#This Row],[List 1]],Table_PI[[#This Row],[List 2]],Table_PI[[#This Row],[List 3]],Table_PI[[#This Row],[Size]],Table_PI[[#This Row],[Input 1]],Table_PI[[#This Row],[Input 2]],Table_PI[[#This Row],[Input 3]],Table_PI[[#This Row],[Input 4]],'Customer Information'!$AR$12,4,ROW()),\"No Rebate\"),\"No Rebate\"),0)","v":0},{"$f":"IF(Table_PI[[#This Row],[Hide:\nFormula Name]]<>\"\",IFERROR(IF(MeasureCalc(Table_PI[[#This Row],[Hide:\nFormula Name]],Table_PI[[#This Row],[Quantity]],Table_PI[[#This Row],[List 1]],Table_PI[[#This Row],[List 2]],Table_PI[[#This Row],[List 3]],Table_PI[[#This Row],[Size]],Table_PI[[#This Row],[Input 1]],Table_PI[[#This Row],[Input 2]],Table_PI[[#This Row],[Input 3]],Table_PI[[#This Row],[Input 4]],'Customer Information'!$AR$12,1,ROW())>0,MeasureCalc(Table_PI[[#This Row],[Hide:\nFormula Name]],Table_PI[[#This Row],[Quantity]],Table_PI[[#This Row],[List 1]],Table_PI[[#This Row],[List 2]],Table_PI[[#This Row],[List 3]],Table_PI[[#This Row],[Size]],Table_PI[[#This Row],[Input 1]],Table_PI[[#This Row],[Input 2]],Table_PI[[#This Row],[Input 3]],Table_PI[[#This Row],[Input 4]],'Customer Information'!$AR$12,5,ROW()),\"No Rebate\"),\"No Rebate\"),0)","v":0},{"$f":"IF(Table_PI[[#This Row],[Hide:\nFormula Name]]<>\"\",IFERROR(IF(MeasureCalc(Table_PI[[#This Row],[Hide:\nFormula Name]],Table_PI[[#This Row],[Quantity]],Table_PI[[#This Row],[List 1]],Table_PI[[#This Row],[List 2]],Table_PI[[#This Row],[List 3]],Table_PI[[#This Row],[Size]],Table_PI[[#This Row],[Input 1]],Table_PI[[#This Row],[Input 2]],Table_PI[[#This Row],[Input 3]],Table_PI[[#This Row],[Input 4]],'Customer Information'!$AR$12,1,ROW())>0,MeasureCalc(Table_PI[[#This Row],[Hide:\nFormula Name]],Table_PI[[#This Row],[Quantity]],Table_PI[[#This Row],[List 1]],Table_PI[[#This Row],[List 2]],Table_PI[[#This Row],[List 3]],Table_PI[[#This Row],[Size]],Table_PI[[#This Row],[Input 1]],Table_PI[[#This Row],[Input 2]],Table_PI[[#This Row],[Input 3]],Table_PI[[#This Row],[Input 4]],'Customer Information'!$AR$12,6,ROW()),\"No Rebate\"),\"No Rebate\"),0)","v":0},{"$f":"IF(Table_PI[[#This Row],[Hide:\nFormula Name]]<>\"\",IFERROR(IF(MeasureCalc(Table_PI[[#This Row],[Hide:\nFormula Name]],Table_PI[[#This Row],[Quantity]],Table_PI[[#This Row],[List 1]],Table_PI[[#This Row],[List 2]],Table_PI[[#This Row],[List 3]],Table_PI[[#This Row],[Size]],Table_PI[[#This Row],[Input 1]],Table_PI[[#This Row],[Input 2]],Table_PI[[#This Row],[Input 3]],Table_PI[[#This Row],[Input 4]],'Customer Information'!$AR$12,1,ROW())>0,MeasureCalc(Table_PI[[#This Row],[Hide:\nFormula Name]],Table_PI[[#This Row],[Quantity]],Table_PI[[#This Row],[List 1]],Table_PI[[#This Row],[List 2]],Table_PI[[#This Row],[List 3]],Table_PI[[#This Row],[Size]],Table_PI[[#This Row],[Input 1]],Table_PI[[#This Row],[Input 2]],Table_PI[[#This Row],[Input 3]],Table_PI[[#This Row],[Input 4]],'Customer Information'!$AR$12,7,ROW()),\"No Rebate\"),\"No Rebate\"),0)","v":0},{"$f":"IF(Table_PI[[#This Row],[Hide:\nFormula Name]]<>\"\",IFERROR(IF(MeasureCalc(Table_PI[[#This Row],[Hide:\nFormula Name]],Table_PI[[#This Row],[Quantity]],Table_PI[[#This Row],[List 1]],Table_PI[[#This Row],[List 2]],Table_PI[[#This Row],[List 3]],Table_PI[[#This Row],[Size]],Table_PI[[#This Row],[Input 1]],Table_PI[[#This Row],[Input 2]],Table_PI[[#This Row],[Input 3]],Table_PI[[#This Row],[Input 4]],'Customer Information'!$AR$12,1,ROW())>0,MeasureCalc(Table_PI[[#This Row],[Hide:\nFormula Name]],Table_PI[[#This Row],[Quantity]],Table_PI[[#This Row],[List 1]],Table_PI[[#This Row],[List 2]],Table_PI[[#This Row],[List 3]],Table_PI[[#This Row],[Size]],Table_PI[[#This Row],[Input 1]],Table_PI[[#This Row],[Input 2]],Table_PI[[#This Row],[Input 3]],Table_PI[[#This Row],[Input 4]],'Customer Information'!$AR$12,8,ROW()),\"No Rebate\"),\"No Rebate\"),0)","v":0},{"$f":"IF(Table_PI[[#This Row],[Hide:\nFormula Name]]<>\"\",IF(AND(Table_PI[[#This Row],[Hide:\nFormula Name]]<>\"\",OR(Table_PI[[#This Row],[Rebate]]>0,Table_PI[[#This Row],[Rebate]]=\"No Rebate\")),TRUE,\"MI: Line Item \" & $A253),\"\")","v":""}]
[{"$f":"IF(Table_PI[[#This Row],[Hide:\nFormula Name]]<>\"\",MAX($A$2:A253)+1,\"\")","v":""},null,null,null,null,null,null,null,null,null,null,null,null,null,null,{"$f":"IFERROR(VLOOKUP(Table_PI[[#This Row],[Measure]],'Equipment Lookups'!$C$3:$D$23,2,FALSE),\"\")","v":""},{"$f":"IF(Table_PI[[#This Row],[Hide:\nFormula Name]]<>\"\",IFERROR(IF(MeasureCalc(Table_PI[[#This Row],[Hide:\nFormula Name]],Table_PI[[#This Row],[Quantity]],Table_PI[[#This Row],[List 1]],Table_PI[[#This Row],[List 2]],Table_PI[[#This Row],[List 3]],Table_PI[[#This Row],[Size]],Table_PI[[#This Row],[Input 1]],Table_PI[[#This Row],[Input 2]],Table_PI[[#This Row],[Input 3]],Table_PI[[#This Row],[Input 4]],'Customer Information'!$AR$12,1,ROW())>0,MeasureCalc(Table_PI[[#This Row],[Hide:\nFormula Name]],Table_PI[[#This Row],[Quantity]],Table_PI[[#This Row],[List 1]],Table_PI[[#This Row],[List 2]],Table_PI[[#This Row],[List 3]],Table_PI[[#This Row],[Size]],Table_PI[[#This Row],[Input 1]],Table_PI[[#This Row],[Input 2]],Table_PI[[#This Row],[Input 3]],Table_PI[[#This Row],[Input 4]],'Customer Information'!$AR$12,1,ROW()),\"No Rebate\"),\"No Rebate\"),0)","v":0},{"$f":"IF(Table_PI[[#This Row],[Hide:\nFormula Name]]<>\"\",IFERROR(IF(MeasureCalc(Table_PI[[#This Row],[Hide:\nFormula Name]],Table_PI[[#This Row],[Quantity]],Table_PI[[#This Row],[List 1]],Table_PI[[#This Row],[List 2]],Table_PI[[#This Row],[List 3]],Table_PI[[#This Row],[Size]],Table_PI[[#This Row],[Input 1]],Table_PI[[#This Row],[Input 2]],Table_PI[[#This Row],[Input 3]],Table_PI[[#This Row],[Input 4]],'Customer Information'!$AR$12,1,ROW())>0,MeasureCalc(Table_PI[[#This Row],[Hide:\nFormula Name]],Table_PI[[#This Row],[Quantity]],Table_PI[[#This Row],[List 1]],Table_PI[[#This Row],[List 2]],Table_PI[[#This Row],[List 3]],Table_PI[[#This Row],[Size]],Table_PI[[#This Row],[Input 1]],Table_PI[[#This Row],[Input 2]],Table_PI[[#This Row],[Input 3]],Table_PI[[#This Row],[Input 4]],'Customer Information'!$AR$12,2,ROW()),\"No Rebate\"),\"No Rebate\"),0)","v":0},{"$f":"IF(Table_PI[[#This Row],[Hide:\nFormula Name]]<>\"\",IFERROR(IF(MeasureCalc(Table_PI[[#This Row],[Hide:\nFormula Name]],Table_PI[[#This Row],[Quantity]],Table_PI[[#This Row],[List 1]],Table_PI[[#This Row],[List 2]],Table_PI[[#This Row],[List 3]],Table_PI[[#This Row],[Size]],Table_PI[[#This Row],[Input 1]],Table_PI[[#This Row],[Input 2]],Table_PI[[#This Row],[Input 3]],Table_PI[[#This Row],[Input 4]],'Customer Information'!$AR$12,1,ROW())>0,MeasureCalc(Table_PI[[#This Row],[Hide:\nFormula Name]],Table_PI[[#This Row],[Quantity]],Table_PI[[#This Row],[List 1]],Table_PI[[#This Row],[List 2]],Table_PI[[#This Row],[List 3]],Table_PI[[#This Row],[Size]],Table_PI[[#This Row],[Input 1]],Table_PI[[#This Row],[Input 2]],Table_PI[[#This Row],[Input 3]],Table_PI[[#This Row],[Input 4]],'Customer Information'!$AR$12,3,ROW()),\"No Rebate\"),\"No Rebate\"),0)","v":0},{"$f":"IF(Table_PI[[#This Row],[Hide:\nFormula Name]]<>\"\",IFERROR(IF(MeasureCalc(Table_PI[[#This Row],[Hide:\nFormula Name]],Table_PI[[#This Row],[Quantity]],Table_PI[[#This Row],[List 1]],Table_PI[[#This Row],[List 2]],Table_PI[[#This Row],[List 3]],Table_PI[[#This Row],[Size]],Table_PI[[#This Row],[Input 1]],Table_PI[[#This Row],[Input 2]],Table_PI[[#This Row],[Input 3]],Table_PI[[#This Row],[Input 4]],'Customer Information'!$AR$12,1,ROW())>0,MeasureCalc(Table_PI[[#This Row],[Hide:\nFormula Name]],Table_PI[[#This Row],[Quantity]],Table_PI[[#This Row],[List 1]],Table_PI[[#This Row],[List 2]],Table_PI[[#This Row],[List 3]],Table_PI[[#This Row],[Size]],Table_PI[[#This Row],[Input 1]],Table_PI[[#This Row],[Input 2]],Table_PI[[#This Row],[Input 3]],Table_PI[[#This Row],[Input 4]],'Customer Information'!$AR$12,4,ROW()),\"No Rebate\"),\"No Rebate\"),0)","v":0},{"$f":"IF(Table_PI[[#This Row],[Hide:\nFormula Name]]<>\"\",IFERROR(IF(MeasureCalc(Table_PI[[#This Row],[Hide:\nFormula Name]],Table_PI[[#This Row],[Quantity]],Table_PI[[#This Row],[List 1]],Table_PI[[#This Row],[List 2]],Table_PI[[#This Row],[List 3]],Table_PI[[#This Row],[Size]],Table_PI[[#This Row],[Input 1]],Table_PI[[#This Row],[Input 2]],Table_PI[[#This Row],[Input 3]],Table_PI[[#This Row],[Input 4]],'Customer Information'!$AR$12,1,ROW())>0,MeasureCalc(Table_PI[[#This Row],[Hide:\nFormula Name]],Table_PI[[#This Row],[Quantity]],Table_PI[[#This Row],[List 1]],Table_PI[[#This Row],[List 2]],Table_PI[[#This Row],[List 3]],Table_PI[[#This Row],[Size]],Table_PI[[#This Row],[Input 1]],Table_PI[[#This Row],[Input 2]],Table_PI[[#This Row],[Input 3]],Table_PI[[#This Row],[Input 4]],'Customer Information'!$AR$12,5,ROW()),\"No Rebate\"),\"No Rebate\"),0)","v":0},{"$f":"IF(Table_PI[[#This Row],[Hide:\nFormula Name]]<>\"\",IFERROR(IF(MeasureCalc(Table_PI[[#This Row],[Hide:\nFormula Name]],Table_PI[[#This Row],[Quantity]],Table_PI[[#This Row],[List 1]],Table_PI[[#This Row],[List 2]],Table_PI[[#This Row],[List 3]],Table_PI[[#This Row],[Size]],Table_PI[[#This Row],[Input 1]],Table_PI[[#This Row],[Input 2]],Table_PI[[#This Row],[Input 3]],Table_PI[[#This Row],[Input 4]],'Customer Information'!$AR$12,1,ROW())>0,MeasureCalc(Table_PI[[#This Row],[Hide:\nFormula Name]],Table_PI[[#This Row],[Quantity]],Table_PI[[#This Row],[List 1]],Table_PI[[#This Row],[List 2]],Table_PI[[#This Row],[List 3]],Table_PI[[#This Row],[Size]],Table_PI[[#This Row],[Input 1]],Table_PI[[#This Row],[Input 2]],Table_PI[[#This Row],[Input 3]],Table_PI[[#This Row],[Input 4]],'Customer Information'!$AR$12,6,ROW()),\"No Rebate\"),\"No Rebate\"),0)","v":0},{"$f":"IF(Table_PI[[#This Row],[Hide:\nFormula Name]]<>\"\",IFERROR(IF(MeasureCalc(Table_PI[[#This Row],[Hide:\nFormula Name]],Table_PI[[#This Row],[Quantity]],Table_PI[[#This Row],[List 1]],Table_PI[[#This Row],[List 2]],Table_PI[[#This Row],[List 3]],Table_PI[[#This Row],[Size]],Table_PI[[#This Row],[Input 1]],Table_PI[[#This Row],[Input 2]],Table_PI[[#This Row],[Input 3]],Table_PI[[#This Row],[Input 4]],'Customer Information'!$AR$12,1,ROW())>0,MeasureCalc(Table_PI[[#This Row],[Hide:\nFormula Name]],Table_PI[[#This Row],[Quantity]],Table_PI[[#This Row],[List 1]],Table_PI[[#This Row],[List 2]],Table_PI[[#This Row],[List 3]],Table_PI[[#This Row],[Size]],Table_PI[[#This Row],[Input 1]],Table_PI[[#This Row],[Input 2]],Table_PI[[#This Row],[Input 3]],Table_PI[[#This Row],[Input 4]],'Customer Information'!$AR$12,7,ROW()),\"No Rebate\"),\"No Rebate\"),0)","v":0},{"$f":"IF(Table_PI[[#This Row],[Hide:\nFormula Name]]<>\"\",IFERROR(IF(MeasureCalc(Table_PI[[#This Row],[Hide:\nFormula Name]],Table_PI[[#This Row],[Quantity]],Table_PI[[#This Row],[List 1]],Table_PI[[#This Row],[List 2]],Table_PI[[#This Row],[List 3]],Table_PI[[#This Row],[Size]],Table_PI[[#This Row],[Input 1]],Table_PI[[#This Row],[Input 2]],Table_PI[[#This Row],[Input 3]],Table_PI[[#This Row],[Input 4]],'Customer Information'!$AR$12,1,ROW())>0,MeasureCalc(Table_PI[[#This Row],[Hide:\nFormula Name]],Table_PI[[#This Row],[Quantity]],Table_PI[[#This Row],[List 1]],Table_PI[[#This Row],[List 2]],Table_PI[[#This Row],[List 3]],Table_PI[[#This Row],[Size]],Table_PI[[#This Row],[Input 1]],Table_PI[[#This Row],[Input 2]],Table_PI[[#This Row],[Input 3]],Table_PI[[#This Row],[Input 4]],'Customer Information'!$AR$12,8,ROW()),\"No Rebate\"),\"No Rebate\"),0)","v":0},{"$f":"IF(Table_PI[[#This Row],[Hide:\nFormula Name]]<>\"\",IF(AND(Table_PI[[#This Row],[Hide:\nFormula Name]]<>\"\",OR(Table_PI[[#This Row],[Rebate]]>0,Table_PI[[#This Row],[Rebate]]=\"No Rebate\")),TRUE,\"MI: Line Item \" & $A254),\"\")","v":""}]
[{"$f":"IF(Table_PI[[#This Row],[Hide:\nFormula Name]]<>\"\",MAX($A$2:A254)+1,\"\")","v":""},null,null,null,null,null,null,null,null,null,null,null,null,null,null,{"$f":"IFERROR(VLOOKUP(Table_PI[[#This Row],[Measure]],'Equipment Lookups'!$C$3:$D$23,2,FALSE),\"\")","v":""},{"$f":"IF(Table_PI[[#This Row],[Hide:\nFormula Name]]<>\"\",IFERROR(IF(MeasureCalc(Table_PI[[#This Row],[Hide:\nFormula Name]],Table_PI[[#This Row],[Quantity]],Table_PI[[#This Row],[List 1]],Table_PI[[#This Row],[List 2]],Table_PI[[#This Row],[List 3]],Table_PI[[#This Row],[Size]],Table_PI[[#This Row],[Input 1]],Table_PI[[#This Row],[Input 2]],Table_PI[[#This Row],[Input 3]],Table_PI[[#This Row],[Input 4]],'Customer Information'!$AR$12,1,ROW())>0,MeasureCalc(Table_PI[[#This Row],[Hide:\nFormula Name]],Table_PI[[#This Row],[Quantity]],Table_PI[[#This Row],[List 1]],Table_PI[[#This Row],[List 2]],Table_PI[[#This Row],[List 3]],Table_PI[[#This Row],[Size]],Table_PI[[#This Row],[Input 1]],Table_PI[[#This Row],[Input 2]],Table_PI[[#This Row],[Input 3]],Table_PI[[#This Row],[Input 4]],'Customer Information'!$AR$12,1,ROW()),\"No Rebate\"),\"No Rebate\"),0)","v":0},{"$f":"IF(Table_PI[[#This Row],[Hide:\nFormula Name]]<>\"\",IFERROR(IF(MeasureCalc(Table_PI[[#This Row],[Hide:\nFormula Name]],Table_PI[[#This Row],[Quantity]],Table_PI[[#This Row],[List 1]],Table_PI[[#This Row],[List 2]],Table_PI[[#This Row],[List 3]],Table_PI[[#This Row],[Size]],Table_PI[[#This Row],[Input 1]],Table_PI[[#This Row],[Input 2]],Table_PI[[#This Row],[Input 3]],Table_PI[[#This Row],[Input 4]],'Customer Information'!$AR$12,1,ROW())>0,MeasureCalc(Table_PI[[#This Row],[Hide:\nFormula Name]],Table_PI[[#This Row],[Quantity]],Table_PI[[#This Row],[List 1]],Table_PI[[#This Row],[List 2]],Table_PI[[#This Row],[List 3]],Table_PI[[#This Row],[Size]],Table_PI[[#This Row],[Input 1]],Table_PI[[#This Row],[Input 2]],Table_PI[[#This Row],[Input 3]],Table_PI[[#This Row],[Input 4]],'Customer Information'!$AR$12,2,ROW()),\"No Rebate\"),\"No Rebate\"),0)","v":0},{"$f":"IF(Table_PI[[#This Row],[Hide:\nFormula Name]]<>\"\",IFERROR(IF(MeasureCalc(Table_PI[[#This Row],[Hide:\nFormula Name]],Table_PI[[#This Row],[Quantity]],Table_PI[[#This Row],[List 1]],Table_PI[[#This Row],[List 2]],Table_PI[[#This Row],[List 3]],Table_PI[[#This Row],[Size]],Table_PI[[#This Row],[Input 1]],Table_PI[[#This Row],[Input 2]],Table_PI[[#This Row],[Input 3]],Table_PI[[#This Row],[Input 4]],'Customer Information'!$AR$12,1,ROW())>0,MeasureCalc(Table_PI[[#This Row],[Hide:\nFormula Name]],Table_PI[[#This Row],[Quantity]],Table_PI[[#This Row],[List 1]],Table_PI[[#This Row],[List 2]],Table_PI[[#This Row],[List 3]],Table_PI[[#This Row],[Size]],Table_PI[[#This Row],[Input 1]],Table_PI[[#This Row],[Input 2]],Table_PI[[#This Row],[Input 3]],Table_PI[[#This Row],[Input 4]],'Customer Information'!$AR$12,3,ROW()),\"No Rebate\"),\"No Rebate\"),0)","v":0},{"$f":"IF(Table_PI[[#This Row],[Hide:\nFormula Name]]<>\"\",IFERROR(IF(MeasureCalc(Table_PI[[#This Row],[Hide:\nFormula Name]],Table_PI[[#This Row],[Quantity]],Table_PI[[#This Row],[List 1]],Table_PI[[#This Row],[List 2]],Table_PI[[#This Row],[List 3]],Table_PI[[#This Row],[Size]],Table_PI[[#This Row],[Input 1]],Table_PI[[#This Row],[Input 2]],Table_PI[[#This Row],[Input 3]],Table_PI[[#This Row],[Input 4]],'Customer Information'!$AR$12,1,ROW())>0,MeasureCalc(Table_PI[[#This Row],[Hide:\nFormula Name]],Table_PI[[#This Row],[Quantity]],Table_PI[[#This Row],[List 1]],Table_PI[[#This Row],[List 2]],Table_PI[[#This Row],[List 3]],Table_PI[[#This Row],[Size]],Table_PI[[#This Row],[Input 1]],Table_PI[[#This Row],[Input 2]],Table_PI[[#This Row],[Input 3]],Table_PI[[#This Row],[Input 4]],'Customer Information'!$AR$12,4,ROW()),\"No Rebate\"),\"No Rebate\"),0)","v":0},{"$f":"IF(Table_PI[[#This Row],[Hide:\nFormula Name]]<>\"\",IFERROR(IF(MeasureCalc(Table_PI[[#This Row],[Hide:\nFormula Name]],Table_PI[[#This Row],[Quantity]],Table_PI[[#This Row],[List 1]],Table_PI[[#This Row],[List 2]],Table_PI[[#This Row],[List 3]],Table_PI[[#This Row],[Size]],Table_PI[[#This Row],[Input 1]],Table_PI[[#This Row],[Input 2]],Table_PI[[#This Row],[Input 3]],Table_PI[[#This Row],[Input 4]],'Customer Information'!$AR$12,1,ROW())>0,MeasureCalc(Table_PI[[#This Row],[Hide:\nFormula Name]],Table_PI[[#This Row],[Quantity]],Table_PI[[#This Row],[List 1]],Table_PI[[#This Row],[List 2]],Table_PI[[#This Row],[List 3]],Table_PI[[#This Row],[Size]],Table_PI[[#This Row],[Input 1]],Table_PI[[#This Row],[Input 2]],Table_PI[[#This Row],[Input 3]],Table_PI[[#This Row],[Input 4]],'Customer Information'!$AR$12,5,ROW()),\"No Rebate\"),\"No Rebate\"),0)","v":0},{"$f":"IF(Table_PI[[#This Row],[Hide:\nFormula Name]]<>\"\",IFERROR(IF(MeasureCalc(Table_PI[[#This Row],[Hide:\nFormula Name]],Table_PI[[#This Row],[Quantity]],Table_PI[[#This Row],[List 1]],Table_PI[[#This Row],[List 2]],Table_PI[[#This Row],[List 3]],Table_PI[[#This Row],[Size]],Table_PI[[#This Row],[Input 1]],Table_PI[[#This Row],[Input 2]],Table_PI[[#This Row],[Input 3]],Table_PI[[#This Row],[Input 4]],'Customer Information'!$AR$12,1,ROW())>0,MeasureCalc(Table_PI[[#This Row],[Hide:\nFormula Name]],Table_PI[[#This Row],[Quantity]],Table_PI[[#This Row],[List 1]],Table_PI[[#This Row],[List 2]],Table_PI[[#This Row],[List 3]],Table_PI[[#This Row],[Size]],Table_PI[[#This Row],[Input 1]],Table_PI[[#This Row],[Input 2]],Table_PI[[#This Row],[Input 3]],Table_PI[[#This Row],[Input 4]],'Customer Information'!$AR$12,6,ROW()),\"No Rebate\"),\"No Rebate\"),0)","v":0},{"$f":"IF(Table_PI[[#This Row],[Hide:\nFormula Name]]<>\"\",IFERROR(IF(MeasureCalc(Table_PI[[#This Row],[Hide:\nFormula Name]],Table_PI[[#This Row],[Quantity]],Table_PI[[#This Row],[List 1]],Table_PI[[#This Row],[List 2]],Table_PI[[#This Row],[List 3]],Table_PI[[#This Row],[Size]],Table_PI[[#This Row],[Input 1]],Table_PI[[#This Row],[Input 2]],Table_PI[[#This Row],[Input 3]],Table_PI[[#This Row],[Input 4]],'Customer Information'!$AR$12,1,ROW())>0,MeasureCalc(Table_PI[[#This Row],[Hide:\nFormula Name]],Table_PI[[#This Row],[Quantity]],Table_PI[[#This Row],[List 1]],Table_PI[[#This Row],[List 2]],Table_PI[[#This Row],[List 3]],Table_PI[[#This Row],[Size]],Table_PI[[#This Row],[Input 1]],Table_PI[[#This Row],[Input 2]],Table_PI[[#This Row],[Input 3]],Table_PI[[#This Row],[Input 4]],'Customer Information'!$AR$12,7,ROW()),\"No Rebate\"),\"No Rebate\"),0)","v":0},{"$f":"IF(Table_PI[[#This Row],[Hide:\nFormula Name]]<>\"\",IFERROR(IF(MeasureCalc(Table_PI[[#This Row],[Hide:\nFormula Name]],Table_PI[[#This Row],[Quantity]],Table_PI[[#This Row],[List 1]],Table_PI[[#This Row],[List 2]],Table_PI[[#This Row],[List 3]],Table_PI[[#This Row],[Size]],Table_PI[[#This Row],[Input 1]],Table_PI[[#This Row],[Input 2]],Table_PI[[#This Row],[Input 3]],Table_PI[[#This Row],[Input 4]],'Customer Information'!$AR$12,1,ROW())>0,MeasureCalc(Table_PI[[#This Row],[Hide:\nFormula Name]],Table_PI[[#This Row],[Quantity]],Table_PI[[#This Row],[List 1]],Table_PI[[#This Row],[List 2]],Table_PI[[#This Row],[List 3]],Table_PI[[#This Row],[Size]],Table_PI[[#This Row],[Input 1]],Table_PI[[#This Row],[Input 2]],Table_PI[[#This Row],[Input 3]],Table_PI[[#This Row],[Input 4]],'Customer Information'!$AR$12,8,ROW()),\"No Rebate\"),\"No Rebate\"),0)","v":0},{"$f":"IF(Table_PI[[#This Row],[Hide:\nFormula Name]]<>\"\",IF(AND(Table_PI[[#This Row],[Hide:\nFormula Name]]<>\"\",OR(Table_PI[[#This Row],[Rebate]]>0,Table_PI[[#This Row],[Rebate]]=\"No Rebate\")),TRUE,\"MI: Line Item \" & $A255),\"\")","v":""}]
[{"$f":"IF(Table_PI[[#This Row],[Hide:\nFormula Name]]<>\"\",MAX($A$2:A255)+1,\"\")","v":""},null,null,null,null,null,null,null,null,null,null,null,null,null,null,{"$f":"IFERROR(VLOOKUP(Table_PI[[#This Row],[Measure]],'Equipment Lookups'!$C$3:$D$23,2,FALSE),\"\")","v":""},{"$f":"IF(Table_PI[[#This Row],[Hide:\nFormula Name]]<>\"\",IFERROR(IF(MeasureCalc(Table_PI[[#This Row],[Hide:\nFormula Name]],Table_PI[[#This Row],[Quantity]],Table_PI[[#This Row],[List 1]],Table_PI[[#This Row],[List 2]],Table_PI[[#This Row],[List 3]],Table_PI[[#This Row],[Size]],Table_PI[[#This Row],[Input 1]],Table_PI[[#This Row],[Input 2]],Table_PI[[#This Row],[Input 3]],Table_PI[[#This Row],[Input 4]],'Customer Information'!$AR$12,1,ROW())>0,MeasureCalc(Table_PI[[#This Row],[Hide:\nFormula Name]],Table_PI[[#This Row],[Quantity]],Table_PI[[#This Row],[List 1]],Table_PI[[#This Row],[List 2]],Table_PI[[#This Row],[List 3]],Table_PI[[#This Row],[Size]],Table_PI[[#This Row],[Input 1]],Table_PI[[#This Row],[Input 2]],Table_PI[[#This Row],[Input 3]],Table_PI[[#This Row],[Input 4]],'Customer Information'!$AR$12,1,ROW()),\"No Rebate\"),\"No Rebate\"),0)","v":0},{"$f":"IF(Table_PI[[#This Row],[Hide:\nFormula Name]]<>\"\",IFERROR(IF(MeasureCalc(Table_PI[[#This Row],[Hide:\nFormula Name]],Table_PI[[#This Row],[Quantity]],Table_PI[[#This Row],[List 1]],Table_PI[[#This Row],[List 2]],Table_PI[[#This Row],[List 3]],Table_PI[[#This Row],[Size]],Table_PI[[#This Row],[Input 1]],Table_PI[[#This Row],[Input 2]],Table_PI[[#This Row],[Input 3]],Table_PI[[#This Row],[Input 4]],'Customer Information'!$AR$12,1,ROW())>0,MeasureCalc(Table_PI[[#This Row],[Hide:\nFormula Name]],Table_PI[[#This Row],[Quantity]],Table_PI[[#This Row],[List 1]],Table_PI[[#This Row],[List 2]],Table_PI[[#This Row],[List 3]],Table_PI[[#This Row],[Size]],Table_PI[[#This Row],[Input 1]],Table_PI[[#This Row],[Input 2]],Table_PI[[#This Row],[Input 3]],Table_PI[[#This Row],[Input 4]],'Customer Information'!$AR$12,2,ROW()),\"No Rebate\"),\"No Rebate\"),0)","v":0},{"$f":"IF(Table_PI[[#This Row],[Hide:\nFormula Name]]<>\"\",IFERROR(IF(MeasureCalc(Table_PI[[#This Row],[Hide:\nFormula Name]],Table_PI[[#This Row],[Quantity]],Table_PI[[#This Row],[List 1]],Table_PI[[#This Row],[List 2]],Table_PI[[#This Row],[List 3]],Table_PI[[#This Row],[Size]],Table_PI[[#This Row],[Input 1]],Table_PI[[#This Row],[Input 2]],Table_PI[[#This Row],[Input 3]],Table_PI[[#This Row],[Input 4]],'Customer Information'!$AR$12,1,ROW())>0,MeasureCalc(Table_PI[[#This Row],[Hide:\nFormula Name]],Table_PI[[#This Row],[Quantity]],Table_PI[[#This Row],[List 1]],Table_PI[[#This Row],[List 2]],Table_PI[[#This Row],[List 3]],Table_PI[[#This Row],[Size]],Table_PI[[#This Row],[Input 1]],Table_PI[[#This Row],[Input 2]],Table_PI[[#This Row],[Input 3]],Table_PI[[#This Row],[Input 4]],'Customer Information'!$AR$12,3,ROW()),\"No Rebate\"),\"No Rebate\"),0)","v":0},{"$f":"IF(Table_PI[[#This Row],[Hide:\nFormula Name]]<>\"\",IFERROR(IF(MeasureCalc(Table_PI[[#This Row],[Hide:\nFormula Name]],Table_PI[[#This Row],[Quantity]],Table_PI[[#This Row],[List 1]],Table_PI[[#This Row],[List 2]],Table_PI[[#This Row],[List 3]],Table_PI[[#This Row],[Size]],Table_PI[[#This Row],[Input 1]],Table_PI[[#This Row],[Input 2]],Table_PI[[#This Row],[Input 3]],Table_PI[[#This Row],[Input 4]],'Customer Information'!$AR$12,1,ROW())>0,MeasureCalc(Table_PI[[#This Row],[Hide:\nFormula Name]],Table_PI[[#This Row],[Quantity]],Table_PI[[#This Row],[List 1]],Table_PI[[#This Row],[List 2]],Table_PI[[#This Row],[List 3]],Table_PI[[#This Row],[Size]],Table_PI[[#This Row],[Input 1]],Table_PI[[#This Row],[Input 2]],Table_PI[[#This Row],[Input 3]],Table_PI[[#This Row],[Input 4]],'Customer Information'!$AR$12,4,ROW()),\"No Rebate\"),\"No Rebate\"),0)","v":0},{"$f":"IF(Table_PI[[#This Row],[Hide:\nFormula Name]]<>\"\",IFERROR(IF(MeasureCalc(Table_PI[[#This Row],[Hide:\nFormula Name]],Table_PI[[#This Row],[Quantity]],Table_PI[[#This Row],[List 1]],Table_PI[[#This Row],[List 2]],Table_PI[[#This Row],[List 3]],Table_PI[[#This Row],[Size]],Table_PI[[#This Row],[Input 1]],Table_PI[[#This Row],[Input 2]],Table_PI[[#This Row],[Input 3]],Table_PI[[#This Row],[Input 4]],'Customer Information'!$AR$12,1,ROW())>0,MeasureCalc(Table_PI[[#This Row],[Hide:\nFormula Name]],Table_PI[[#This Row],[Quantity]],Table_PI[[#This Row],[List 1]],Table_PI[[#This Row],[List 2]],Table_PI[[#This Row],[List 3]],Table_PI[[#This Row],[Size]],Table_PI[[#This Row],[Input 1]],Table_PI[[#This Row],[Input 2]],Table_PI[[#This Row],[Input 3]],Table_PI[[#This Row],[Input 4]],'Customer Information'!$AR$12,5,ROW()),\"No Rebate\"),\"No Rebate\"),0)","v":0},{"$f":"IF(Table_PI[[#This Row],[Hide:\nFormula Name]]<>\"\",IFERROR(IF(MeasureCalc(Table_PI[[#This Row],[Hide:\nFormula Name]],Table_PI[[#This Row],[Quantity]],Table_PI[[#This Row],[List 1]],Table_PI[[#This Row],[List 2]],Table_PI[[#This Row],[List 3]],Table_PI[[#This Row],[Size]],Table_PI[[#This Row],[Input 1]],Table_PI[[#This Row],[Input 2]],Table_PI[[#This Row],[Input 3]],Table_PI[[#This Row],[Input 4]],'Customer Information'!$AR$12,1,ROW())>0,MeasureCalc(Table_PI[[#This Row],[Hide:\nFormula Name]],Table_PI[[#This Row],[Quantity]],Table_PI[[#This Row],[List 1]],Table_PI[[#This Row],[List 2]],Table_PI[[#This Row],[List 3]],Table_PI[[#This Row],[Size]],Table_PI[[#This Row],[Input 1]],Table_PI[[#This Row],[Input 2]],Table_PI[[#This Row],[Input 3]],Table_PI[[#This Row],[Input 4]],'Customer Information'!$AR$12,6,ROW()),\"No Rebate\"),\"No Rebate\"),0)","v":0},{"$f":"IF(Table_PI[[#This Row],[Hide:\nFormula Name]]<>\"\",IFERROR(IF(MeasureCalc(Table_PI[[#This Row],[Hide:\nFormula Name]],Table_PI[[#This Row],[Quantity]],Table_PI[[#This Row],[List 1]],Table_PI[[#This Row],[List 2]],Table_PI[[#This Row],[List 3]],Table_PI[[#This Row],[Size]],Table_PI[[#This Row],[Input 1]],Table_PI[[#This Row],[Input 2]],Table_PI[[#This Row],[Input 3]],Table_PI[[#This Row],[Input 4]],'Customer Information'!$AR$12,1,ROW())>0,MeasureCalc(Table_PI[[#This Row],[Hide:\nFormula Name]],Table_PI[[#This Row],[Quantity]],Table_PI[[#This Row],[List 1]],Table_PI[[#This Row],[List 2]],Table_PI[[#This Row],[List 3]],Table_PI[[#This Row],[Size]],Table_PI[[#This Row],[Input 1]],Table_PI[[#This Row],[Input 2]],Table_PI[[#This Row],[Input 3]],Table_PI[[#This Row],[Input 4]],'Customer Information'!$AR$12,7,ROW()),\"No Rebate\"),\"No Rebate\"),0)","v":0},{"$f":"IF(Table_PI[[#This Row],[Hide:\nFormula Name]]<>\"\",IFERROR(IF(MeasureCalc(Table_PI[[#This Row],[Hide:\nFormula Name]],Table_PI[[#This Row],[Quantity]],Table_PI[[#This Row],[List 1]],Table_PI[[#This Row],[List 2]],Table_PI[[#This Row],[List 3]],Table_PI[[#This Row],[Size]],Table_PI[[#This Row],[Input 1]],Table_PI[[#This Row],[Input 2]],Table_PI[[#This Row],[Input 3]],Table_PI[[#This Row],[Input 4]],'Customer Information'!$AR$12,1,ROW())>0,MeasureCalc(Table_PI[[#This Row],[Hide:\nFormula Name]],Table_PI[[#This Row],[Quantity]],Table_PI[[#This Row],[List 1]],Table_PI[[#This Row],[List 2]],Table_PI[[#This Row],[List 3]],Table_PI[[#This Row],[Size]],Table_PI[[#This Row],[Input 1]],Table_PI[[#This Row],[Input 2]],Table_PI[[#This Row],[Input 3]],Table_PI[[#This Row],[Input 4]],'Customer Information'!$AR$12,8,ROW()),\"No Rebate\"),\"No Rebate\"),0)","v":0},{"$f":"IF(Table_PI[[#This Row],[Hide:\nFormula Name]]<>\"\",IF(AND(Table_PI[[#This Row],[Hide:\nFormula Name]]<>\"\",OR(Table_PI[[#This Row],[Rebate]]>0,Table_PI[[#This Row],[Rebate]]=\"No Rebate\")),TRUE,\"MI: Line Item \" & $A256),\"\")","v":""}]
[{"$f":"IF(Table_PI[[#This Row],[Hide:\nFormula Name]]<>\"\",MAX($A$2:A256)+1,\"\")","v":""},null,null,null,null,null,null,null,null,null,null,null,null,null,null,{"$f":"IFERROR(VLOOKUP(Table_PI[[#This Row],[Measure]],'Equipment Lookups'!$C$3:$D$23,2,FALSE),\"\")","v":""},{"$f":"IF(Table_PI[[#This Row],[Hide:\nFormula Name]]<>\"\",IFERROR(IF(MeasureCalc(Table_PI[[#This Row],[Hide:\nFormula Name]],Table_PI[[#This Row],[Quantity]],Table_PI[[#This Row],[List 1]],Table_PI[[#This Row],[List 2]],Table_PI[[#This Row],[List 3]],Table_PI[[#This Row],[Size]],Table_PI[[#This Row],[Input 1]],Table_PI[[#This Row],[Input 2]],Table_PI[[#This Row],[Input 3]],Table_PI[[#This Row],[Input 4]],'Customer Information'!$AR$12,1,ROW())>0,MeasureCalc(Table_PI[[#This Row],[Hide:\nFormula Name]],Table_PI[[#This Row],[Quantity]],Table_PI[[#This Row],[List 1]],Table_PI[[#This Row],[List 2]],Table_PI[[#This Row],[List 3]],Table_PI[[#This Row],[Size]],Table_PI[[#This Row],[Input 1]],Table_PI[[#This Row],[Input 2]],Table_PI[[#This Row],[Input 3]],Table_PI[[#This Row],[Input 4]],'Customer Information'!$AR$12,1,ROW()),\"No Rebate\"),\"No Rebate\"),0)","v":0},{"$f":"IF(Table_PI[[#This Row],[Hide:\nFormula Name]]<>\"\",IFERROR(IF(MeasureCalc(Table_PI[[#This Row],[Hide:\nFormula Name]],Table_PI[[#This Row],[Quantity]],Table_PI[[#This Row],[List 1]],Table_PI[[#This Row],[List 2]],Table_PI[[#This Row],[List 3]],Table_PI[[#This Row],[Size]],Table_PI[[#This Row],[Input 1]],Table_PI[[#This Row],[Input 2]],Table_PI[[#This Row],[Input 3]],Table_PI[[#This Row],[Input 4]],'Customer Information'!$AR$12,1,ROW())>0,MeasureCalc(Table_PI[[#This Row],[Hide:\nFormula Name]],Table_PI[[#This Row],[Quantity]],Table_PI[[#This Row],[List 1]],Table_PI[[#This Row],[List 2]],Table_PI[[#This Row],[List 3]],Table_PI[[#This Row],[Size]],Table_PI[[#This Row],[Input 1]],Table_PI[[#This Row],[Input 2]],Table_PI[[#This Row],[Input 3]],Table_PI[[#This Row],[Input 4]],'Customer Information'!$AR$12,2,ROW()),\"No Rebate\"),\"No Rebate\"),0)","v":0},{"$f":"IF(Table_PI[[#This Row],[Hide:\nFormula Name]]<>\"\",IFERROR(IF(MeasureCalc(Table_PI[[#This Row],[Hide:\nFormula Name]],Table_PI[[#This Row],[Quantity]],Table_PI[[#This Row],[List 1]],Table_PI[[#This Row],[List 2]],Table_PI[[#This Row],[List 3]],Table_PI[[#This Row],[Size]],Table_PI[[#This Row],[Input 1]],Table_PI[[#This Row],[Input 2]],Table_PI[[#This Row],[Input 3]],Table_PI[[#This Row],[Input 4]],'Customer Information'!$AR$12,1,ROW())>0,MeasureCalc(Table_PI[[#This Row],[Hide:\nFormula Name]],Table_PI[[#This Row],[Quantity]],Table_PI[[#This Row],[List 1]],Table_PI[[#This Row],[List 2]],Table_PI[[#This Row],[List 3]],Table_PI[[#This Row],[Size]],Table_PI[[#This Row],[Input 1]],Table_PI[[#This Row],[Input 2]],Table_PI[[#This Row],[Input 3]],Table_PI[[#This Row],[Input 4]],'Customer Information'!$AR$12,3,ROW()),\"No Rebate\"),\"No Rebate\"),0)","v":0},{"$f":"IF(Table_PI[[#This Row],[Hide:\nFormula Name]]<>\"\",IFERROR(IF(MeasureCalc(Table_PI[[#This Row],[Hide:\nFormula Name]],Table_PI[[#This Row],[Quantity]],Table_PI[[#This Row],[List 1]],Table_PI[[#This Row],[List 2]],Table_PI[[#This Row],[List 3]],Table_PI[[#This Row],[Size]],Table_PI[[#This Row],[Input 1]],Table_PI[[#This Row],[Input 2]],Table_PI[[#This Row],[Input 3]],Table_PI[[#This Row],[Input 4]],'Customer Information'!$AR$12,1,ROW())>0,MeasureCalc(Table_PI[[#This Row],[Hide:\nFormula Name]],Table_PI[[#This Row],[Quantity]],Table_PI[[#This Row],[List 1]],Table_PI[[#This Row],[List 2]],Table_PI[[#This Row],[List 3]],Table_PI[[#This Row],[Size]],Table_PI[[#This Row],[Input 1]],Table_PI[[#This Row],[Input 2]],Table_PI[[#This Row],[Input 3]],Table_PI[[#This Row],[Input 4]],'Customer Information'!$AR$12,4,ROW()),\"No Rebate\"),\"No Rebate\"),0)","v":0},{"$f":"IF(Table_PI[[#This Row],[Hide:\nFormula Name]]<>\"\",IFERROR(IF(MeasureCalc(Table_PI[[#This Row],[Hide:\nFormula Name]],Table_PI[[#This Row],[Quantity]],Table_PI[[#This Row],[List 1]],Table_PI[[#This Row],[List 2]],Table_PI[[#This Row],[List 3]],Table_PI[[#This Row],[Size]],Table_PI[[#This Row],[Input 1]],Table_PI[[#This Row],[Input 2]],Table_PI[[#This Row],[Input 3]],Table_PI[[#This Row],[Input 4]],'Customer Information'!$AR$12,1,ROW())>0,MeasureCalc(Table_PI[[#This Row],[Hide:\nFormula Name]],Table_PI[[#This Row],[Quantity]],Table_PI[[#This Row],[List 1]],Table_PI[[#This Row],[List 2]],Table_PI[[#This Row],[List 3]],Table_PI[[#This Row],[Size]],Table_PI[[#This Row],[Input 1]],Table_PI[[#This Row],[Input 2]],Table_PI[[#This Row],[Input 3]],Table_PI[[#This Row],[Input 4]],'Customer Information'!$AR$12,5,ROW()),\"No Rebate\"),\"No Rebate\"),0)","v":0},{"$f":"IF(Table_PI[[#This Row],[Hide:\nFormula Name]]<>\"\",IFERROR(IF(MeasureCalc(Table_PI[[#This Row],[Hide:\nFormula Name]],Table_PI[[#This Row],[Quantity]],Table_PI[[#This Row],[List 1]],Table_PI[[#This Row],[List 2]],Table_PI[[#This Row],[List 3]],Table_PI[[#This Row],[Size]],Table_PI[[#This Row],[Input 1]],Table_PI[[#This Row],[Input 2]],Table_PI[[#This Row],[Input 3]],Table_PI[[#This Row],[Input 4]],'Customer Information'!$AR$12,1,ROW())>0,MeasureCalc(Table_PI[[#This Row],[Hide:\nFormula Name]],Table_PI[[#This Row],[Quantity]],Table_PI[[#This Row],[List 1]],Table_PI[[#This Row],[List 2]],Table_PI[[#This Row],[List 3]],Table_PI[[#This Row],[Size]],Table_PI[[#This Row],[Input 1]],Table_PI[[#This Row],[Input 2]],Table_PI[[#This Row],[Input 3]],Table_PI[[#This Row],[Input 4]],'Customer Information'!$AR$12,6,ROW()),\"No Rebate\"),\"No Rebate\"),0)","v":0},{"$f":"IF(Table_PI[[#This Row],[Hide:\nFormula Name]]<>\"\",IFERROR(IF(MeasureCalc(Table_PI[[#This Row],[Hide:\nFormula Name]],Table_PI[[#This Row],[Quantity]],Table_PI[[#This Row],[List 1]],Table_PI[[#This Row],[List 2]],Table_PI[[#This Row],[List 3]],Table_PI[[#This Row],[Size]],Table_PI[[#This Row],[Input 1]],Table_PI[[#This Row],[Input 2]],Table_PI[[#This Row],[Input 3]],Table_PI[[#This Row],[Input 4]],'Customer Information'!$AR$12,1,ROW())>0,MeasureCalc(Table_PI[[#This Row],[Hide:\nFormula Name]],Table_PI[[#This Row],[Quantity]],Table_PI[[#This Row],[List 1]],Table_PI[[#This Row],[List 2]],Table_PI[[#This Row],[List 3]],Table_PI[[#This Row],[Size]],Table_PI[[#This Row],[Input 1]],Table_PI[[#This Row],[Input 2]],Table_PI[[#This Row],[Input 3]],Table_PI[[#This Row],[Input 4]],'Customer Information'!$AR$12,7,ROW()),\"No Rebate\"),\"No Rebate\"),0)","v":0},{"$f":"IF(Table_PI[[#This Row],[Hide:\nFormula Name]]<>\"\",IFERROR(IF(MeasureCalc(Table_PI[[#This Row],[Hide:\nFormula Name]],Table_PI[[#This Row],[Quantity]],Table_PI[[#This Row],[List 1]],Table_PI[[#This Row],[List 2]],Table_PI[[#This Row],[List 3]],Table_PI[[#This Row],[Size]],Table_PI[[#This Row],[Input 1]],Table_PI[[#This Row],[Input 2]],Table_PI[[#This Row],[Input 3]],Table_PI[[#This Row],[Input 4]],'Customer Information'!$AR$12,1,ROW())>0,MeasureCalc(Table_PI[[#This Row],[Hide:\nFormula Name]],Table_PI[[#This Row],[Quantity]],Table_PI[[#This Row],[List 1]],Table_PI[[#This Row],[List 2]],Table_PI[[#This Row],[List 3]],Table_PI[[#This Row],[Size]],Table_PI[[#This Row],[Input 1]],Table_PI[[#This Row],[Input 2]],Table_PI[[#This Row],[Input 3]],Table_PI[[#This Row],[Input 4]],'Customer Information'!$AR$12,8,ROW()),\"No Rebate\"),\"No Rebate\"),0)","v":0},{"$f":"IF(Table_PI[[#This Row],[Hide:\nFormula Name]]<>\"\",IF(AND(Table_PI[[#This Row],[Hide:\nFormula Name]]<>\"\",OR(Table_PI[[#This Row],[Rebate]]>0,Table_PI[[#This Row],[Rebate]]=\"No Rebate\")),TRUE,\"MI: Line Item \" & $A257),\"\")","v":""}]
[{"$f":"IF(Table_PI[[#This Row],[Hide:\nFormula Name]]<>\"\",MAX($A$2:A257)+1,\"\")","v":""},null,null,null,null,null,null,null,null,null,null,null,null,null,null,{"$f":"IFERROR(VLOOKUP(Table_PI[[#This Row],[Measure]],'Equipment Lookups'!$C$3:$D$23,2,FALSE),\"\")","v":""},{"$f":"IF(Table_PI[[#This Row],[Hide:\nFormula Name]]<>\"\",IFERROR(IF(MeasureCalc(Table_PI[[#This Row],[Hide:\nFormula Name]],Table_PI[[#This Row],[Quantity]],Table_PI[[#This Row],[List 1]],Table_PI[[#This Row],[List 2]],Table_PI[[#This Row],[List 3]],Table_PI[[#This Row],[Size]],Table_PI[[#This Row],[Input 1]],Table_PI[[#This Row],[Input 2]],Table_PI[[#This Row],[Input 3]],Table_PI[[#This Row],[Input 4]],'Customer Information'!$AR$12,1,ROW())>0,MeasureCalc(Table_PI[[#This Row],[Hide:\nFormula Name]],Table_PI[[#This Row],[Quantity]],Table_PI[[#This Row],[List 1]],Table_PI[[#This Row],[List 2]],Table_PI[[#This Row],[List 3]],Table_PI[[#This Row],[Size]],Table_PI[[#This Row],[Input 1]],Table_PI[[#This Row],[Input 2]],Table_PI[[#This Row],[Input 3]],Table_PI[[#This Row],[Input 4]],'Customer Information'!$AR$12,1,ROW()),\"No Rebate\"),\"No Rebate\"),0)","v":0},{"$f":"IF(Table_PI[[#This Row],[Hide:\nFormula Name]]<>\"\",IFERROR(IF(MeasureCalc(Table_PI[[#This Row],[Hide:\nFormula Name]],Table_PI[[#This Row],[Quantity]],Table_PI[[#This Row],[List 1]],Table_PI[[#This Row],[List 2]],Table_PI[[#This Row],[List 3]],Table_PI[[#This Row],[Size]],Table_PI[[#This Row],[Input 1]],Table_PI[[#This Row],[Input 2]],Table_PI[[#This Row],[Input 3]],Table_PI[[#This Row],[Input 4]],'Customer Information'!$AR$12,1,ROW())>0,MeasureCalc(Table_PI[[#This Row],[Hide:\nFormula Name]],Table_PI[[#This Row],[Quantity]],Table_PI[[#This Row],[List 1]],Table_PI[[#This Row],[List 2]],Table_PI[[#This Row],[List 3]],Table_PI[[#This Row],[Size]],Table_PI[[#This Row],[Input 1]],Table_PI[[#This Row],[Input 2]],Table_PI[[#This Row],[Input 3]],Table_PI[[#This Row],[Input 4]],'Customer Information'!$AR$12,2,ROW()),\"No Rebate\"),\"No Rebate\"),0)","v":0},{"$f":"IF(Table_PI[[#This Row],[Hide:\nFormula Name]]<>\"\",IFERROR(IF(MeasureCalc(Table_PI[[#This Row],[Hide:\nFormula Name]],Table_PI[[#This Row],[Quantity]],Table_PI[[#This Row],[List 1]],Table_PI[[#This Row],[List 2]],Table_PI[[#This Row],[List 3]],Table_PI[[#This Row],[Size]],Table_PI[[#This Row],[Input 1]],Table_PI[[#This Row],[Input 2]],Table_PI[[#This Row],[Input 3]],Table_PI[[#This Row],[Input 4]],'Customer Information'!$AR$12,1,ROW())>0,MeasureCalc(Table_PI[[#This Row],[Hide:\nFormula Name]],Table_PI[[#This Row],[Quantity]],Table_PI[[#This Row],[List 1]],Table_PI[[#This Row],[List 2]],Table_PI[[#This Row],[List 3]],Table_PI[[#This Row],[Size]],Table_PI[[#This Row],[Input 1]],Table_PI[[#This Row],[Input 2]],Table_PI[[#This Row],[Input 3]],Table_PI[[#This Row],[Input 4]],'Customer Information'!$AR$12,3,ROW()),\"No Rebate\"),\"No Rebate\"),0)","v":0},{"$f":"IF(Table_PI[[#This Row],[Hide:\nFormula Name]]<>\"\",IFERROR(IF(MeasureCalc(Table_PI[[#This Row],[Hide:\nFormula Name]],Table_PI[[#This Row],[Quantity]],Table_PI[[#This Row],[List 1]],Table_PI[[#This Row],[List 2]],Table_PI[[#This Row],[List 3]],Table_PI[[#This Row],[Size]],Table_PI[[#This Row],[Input 1]],Table_PI[[#This Row],[Input 2]],Table_PI[[#This Row],[Input 3]],Table_PI[[#This Row],[Input 4]],'Customer Information'!$AR$12,1,ROW())>0,MeasureCalc(Table_PI[[#This Row],[Hide:\nFormula Name]],Table_PI[[#This Row],[Quantity]],Table_PI[[#This Row],[List 1]],Table_PI[[#This Row],[List 2]],Table_PI[[#This Row],[List 3]],Table_PI[[#This Row],[Size]],Table_PI[[#This Row],[Input 1]],Table_PI[[#This Row],[Input 2]],Table_PI[[#This Row],[Input 3]],Table_PI[[#This Row],[Input 4]],'Customer Information'!$AR$12,4,ROW()),\"No Rebate\"),\"No Rebate\"),0)","v":0},{"$f":"IF(Table_PI[[#This Row],[Hide:\nFormula Name]]<>\"\",IFERROR(IF(MeasureCalc(Table_PI[[#This Row],[Hide:\nFormula Name]],Table_PI[[#This Row],[Quantity]],Table_PI[[#This Row],[List 1]],Table_PI[[#This Row],[List 2]],Table_PI[[#This Row],[List 3]],Table_PI[[#This Row],[Size]],Table_PI[[#This Row],[Input 1]],Table_PI[[#This Row],[Input 2]],Table_PI[[#This Row],[Input 3]],Table_PI[[#This Row],[Input 4]],'Customer Information'!$AR$12,1,ROW())>0,MeasureCalc(Table_PI[[#This Row],[Hide:\nFormula Name]],Table_PI[[#This Row],[Quantity]],Table_PI[[#This Row],[List 1]],Table_PI[[#This Row],[List 2]],Table_PI[[#This Row],[List 3]],Table_PI[[#This Row],[Size]],Table_PI[[#This Row],[Input 1]],Table_PI[[#This Row],[Input 2]],Table_PI[[#This Row],[Input 3]],Table_PI[[#This Row],[Input 4]],'Customer Information'!$AR$12,5,ROW()),\"No Rebate\"),\"No Rebate\"),0)","v":0},{"$f":"IF(Table_PI[[#This Row],[Hide:\nFormula Name]]<>\"\",IFERROR(IF(MeasureCalc(Table_PI[[#This Row],[Hide:\nFormula Name]],Table_PI[[#This Row],[Quantity]],Table_PI[[#This Row],[List 1]],Table_PI[[#This Row],[List 2]],Table_PI[[#This Row],[List 3]],Table_PI[[#This Row],[Size]],Table_PI[[#This Row],[Input 1]],Table_PI[[#This Row],[Input 2]],Table_PI[[#This Row],[Input 3]],Table_PI[[#This Row],[Input 4]],'Customer Information'!$AR$12,1,ROW())>0,MeasureCalc(Table_PI[[#This Row],[Hide:\nFormula Name]],Table_PI[[#This Row],[Quantity]],Table_PI[[#This Row],[List 1]],Table_PI[[#This Row],[List 2]],Table_PI[[#This Row],[List 3]],Table_PI[[#This Row],[Size]],Table_PI[[#This Row],[Input 1]],Table_PI[[#This Row],[Input 2]],Table_PI[[#This Row],[Input 3]],Table_PI[[#This Row],[Input 4]],'Customer Information'!$AR$12,6,ROW()),\"No Rebate\"),\"No Rebate\"),0)","v":0},{"$f":"IF(Table_PI[[#This Row],[Hide:\nFormula Name]]<>\"\",IFERROR(IF(MeasureCalc(Table_PI[[#This Row],[Hide:\nFormula Name]],Table_PI[[#This Row],[Quantity]],Table_PI[[#This Row],[List 1]],Table_PI[[#This Row],[List 2]],Table_PI[[#This Row],[List 3]],Table_PI[[#This Row],[Size]],Table_PI[[#This Row],[Input 1]],Table_PI[[#This Row],[Input 2]],Table_PI[[#This Row],[Input 3]],Table_PI[[#This Row],[Input 4]],'Customer Information'!$AR$12,1,ROW())>0,MeasureCalc(Table_PI[[#This Row],[Hide:\nFormula Name]],Table_PI[[#This Row],[Quantity]],Table_PI[[#This Row],[List 1]],Table_PI[[#This Row],[List 2]],Table_PI[[#This Row],[List 3]],Table_PI[[#This Row],[Size]],Table_PI[[#This Row],[Input 1]],Table_PI[[#This Row],[Input 2]],Table_PI[[#This Row],[Input 3]],Table_PI[[#This Row],[Input 4]],'Customer Information'!$AR$12,7,ROW()),\"No Rebate\"),\"No Rebate\"),0)","v":0},{"$f":"IF(Table_PI[[#This Row],[Hide:\nFormula Name]]<>\"\",IFERROR(IF(MeasureCalc(Table_PI[[#This Row],[Hide:\nFormula Name]],Table_PI[[#This Row],[Quantity]],Table_PI[[#This Row],[List 1]],Table_PI[[#This Row],[List 2]],Table_PI[[#This Row],[List 3]],Table_PI[[#This Row],[Size]],Table_PI[[#This Row],[Input 1]],Table_PI[[#This Row],[Input 2]],Table_PI[[#This Row],[Input 3]],Table_PI[[#This Row],[Input 4]],'Customer Information'!$AR$12,1,ROW())>0,MeasureCalc(Table_PI[[#This Row],[Hide:\nFormula Name]],Table_PI[[#This Row],[Quantity]],Table_PI[[#This Row],[List 1]],Table_PI[[#This Row],[List 2]],Table_PI[[#This Row],[List 3]],Table_PI[[#This Row],[Size]],Table_PI[[#This Row],[Input 1]],Table_PI[[#This Row],[Input 2]],Table_PI[[#This Row],[Input 3]],Table_PI[[#This Row],[Input 4]],'Customer Information'!$AR$12,8,ROW()),\"No Rebate\"),\"No Rebate\"),0)","v":0},{"$f":"IF(Table_PI[[#This Row],[Hide:\nFormula Name]]<>\"\",IF(AND(Table_PI[[#This Row],[Hide:\nFormula Name]]<>\"\",OR(Table_PI[[#This Row],[Rebate]]>0,Table_PI[[#This Row],[Rebate]]=\"No Rebate\")),TRUE,\"MI: Line Item \" & $A258),\"\")","v":""}]
[{"$f":"IF(Table_PI[[#This Row],[Hide:\nFormula Name]]<>\"\",MAX($A$2:A258)+1,\"\")","v":""},null,null,null,null,null,null,null,null,null,null,null,null,null,null,{"$f":"IFERROR(VLOOKUP(Table_PI[[#This Row],[Measure]],'Equipment Lookups'!$C$3:$D$23,2,FALSE),\"\")","v":""},{"$f":"IF(Table_PI[[#This Row],[Hide:\nFormula Name]]<>\"\",IFERROR(IF(MeasureCalc(Table_PI[[#This Row],[Hide:\nFormula Name]],Table_PI[[#This Row],[Quantity]],Table_PI[[#This Row],[List 1]],Table_PI[[#This Row],[List 2]],Table_PI[[#This Row],[List 3]],Table_PI[[#This Row],[Size]],Table_PI[[#This Row],[Input 1]],Table_PI[[#This Row],[Input 2]],Table_PI[[#This Row],[Input 3]],Table_PI[[#This Row],[Input 4]],'Customer Information'!$AR$12,1,ROW())>0,MeasureCalc(Table_PI[[#This Row],[Hide:\nFormula Name]],Table_PI[[#This Row],[Quantity]],Table_PI[[#This Row],[List 1]],Table_PI[[#This Row],[List 2]],Table_PI[[#This Row],[List 3]],Table_PI[[#This Row],[Size]],Table_PI[[#This Row],[Input 1]],Table_PI[[#This Row],[Input 2]],Table_PI[[#This Row],[Input 3]],Table_PI[[#This Row],[Input 4]],'Customer Information'!$AR$12,1,ROW()),\"No Rebate\"),\"No Rebate\"),0)","v":0},{"$f":"IF(Table_PI[[#This Row],[Hide:\nFormula Name]]<>\"\",IFERROR(IF(MeasureCalc(Table_PI[[#This Row],[Hide:\nFormula Name]],Table_PI[[#This Row],[Quantity]],Table_PI[[#This Row],[List 1]],Table_PI[[#This Row],[List 2]],Table_PI[[#This Row],[List 3]],Table_PI[[#This Row],[Size]],Table_PI[[#This Row],[Input 1]],Table_PI[[#This Row],[Input 2]],Table_PI[[#This Row],[Input 3]],Table_PI[[#This Row],[Input 4]],'Customer Information'!$AR$12,1,ROW())>0,MeasureCalc(Table_PI[[#This Row],[Hide:\nFormula Name]],Table_PI[[#This Row],[Quantity]],Table_PI[[#This Row],[List 1]],Table_PI[[#This Row],[List 2]],Table_PI[[#This Row],[List 3]],Table_PI[[#This Row],[Size]],Table_PI[[#This Row],[Input 1]],Table_PI[[#This Row],[Input 2]],Table_PI[[#This Row],[Input 3]],Table_PI[[#This Row],[Input 4]],'Customer Information'!$AR$12,2,ROW()),\"No Rebate\"),\"No Rebate\"),0)","v":0},{"$f":"IF(Table_PI[[#This Row],[Hide:\nFormula Name]]<>\"\",IFERROR(IF(MeasureCalc(Table_PI[[#This Row],[Hide:\nFormula Name]],Table_PI[[#This Row],[Quantity]],Table_PI[[#This Row],[List 1]],Table_PI[[#This Row],[List 2]],Table_PI[[#This Row],[List 3]],Table_PI[[#This Row],[Size]],Table_PI[[#This Row],[Input 1]],Table_PI[[#This Row],[Input 2]],Table_PI[[#This Row],[Input 3]],Table_PI[[#This Row],[Input 4]],'Customer Information'!$AR$12,1,ROW())>0,MeasureCalc(Table_PI[[#This Row],[Hide:\nFormula Name]],Table_PI[[#This Row],[Quantity]],Table_PI[[#This Row],[List 1]],Table_PI[[#This Row],[List 2]],Table_PI[[#This Row],[List 3]],Table_PI[[#This Row],[Size]],Table_PI[[#This Row],[Input 1]],Table_PI[[#This Row],[Input 2]],Table_PI[[#This Row],[Input 3]],Table_PI[[#This Row],[Input 4]],'Customer Information'!$AR$12,3,ROW()),\"No Rebate\"),\"No Rebate\"),0)","v":0},{"$f":"IF(Table_PI[[#This Row],[Hide:\nFormula Name]]<>\"\",IFERROR(IF(MeasureCalc(Table_PI[[#This Row],[Hide:\nFormula Name]],Table_PI[[#This Row],[Quantity]],Table_PI[[#This Row],[List 1]],Table_PI[[#This Row],[List 2]],Table_PI[[#This Row],[List 3]],Table_PI[[#This Row],[Size]],Table_PI[[#This Row],[Input 1]],Table_PI[[#This Row],[Input 2]],Table_PI[[#This Row],[Input 3]],Table_PI[[#This Row],[Input 4]],'Customer Information'!$AR$12,1,ROW())>0,MeasureCalc(Table_PI[[#This Row],[Hide:\nFormula Name]],Table_PI[[#This Row],[Quantity]],Table_PI[[#This Row],[List 1]],Table_PI[[#This Row],[List 2]],Table_PI[[#This Row],[List 3]],Table_PI[[#This Row],[Size]],Table_PI[[#This Row],[Input 1]],Table_PI[[#This Row],[Input 2]],Table_PI[[#This Row],[Input 3]],Table_PI[[#This Row],[Input 4]],'Customer Information'!$AR$12,4,ROW()),\"No Rebate\"),\"No Rebate\"),0)","v":0},{"$f":"IF(Table_PI[[#This Row],[Hide:\nFormula Name]]<>\"\",IFERROR(IF(MeasureCalc(Table_PI[[#This Row],[Hide:\nFormula Name]],Table_PI[[#This Row],[Quantity]],Table_PI[[#This Row],[List 1]],Table_PI[[#This Row],[List 2]],Table_PI[[#This Row],[List 3]],Table_PI[[#This Row],[Size]],Table_PI[[#This Row],[Input 1]],Table_PI[[#This Row],[Input 2]],Table_PI[[#This Row],[Input 3]],Table_PI[[#This Row],[Input 4]],'Customer Information'!$AR$12,1,ROW())>0,MeasureCalc(Table_PI[[#This Row],[Hide:\nFormula Name]],Table_PI[[#This Row],[Quantity]],Table_PI[[#This Row],[List 1]],Table_PI[[#This Row],[List 2]],Table_PI[[#This Row],[List 3]],Table_PI[[#This Row],[Size]],Table_PI[[#This Row],[Input 1]],Table_PI[[#This Row],[Input 2]],Table_PI[[#This Row],[Input 3]],Table_PI[[#This Row],[Input 4]],'Customer Information'!$AR$12,5,ROW()),\"No Rebate\"),\"No Rebate\"),0)","v":0},{"$f":"IF(Table_PI[[#This Row],[Hide:\nFormula Name]]<>\"\",IFERROR(IF(MeasureCalc(Table_PI[[#This Row],[Hide:\nFormula Name]],Table_PI[[#This Row],[Quantity]],Table_PI[[#This Row],[List 1]],Table_PI[[#This Row],[List 2]],Table_PI[[#This Row],[List 3]],Table_PI[[#This Row],[Size]],Table_PI[[#This Row],[Input 1]],Table_PI[[#This Row],[Input 2]],Table_PI[[#This Row],[Input 3]],Table_PI[[#This Row],[Input 4]],'Customer Information'!$AR$12,1,ROW())>0,MeasureCalc(Table_PI[[#This Row],[Hide:\nFormula Name]],Table_PI[[#This Row],[Quantity]],Table_PI[[#This Row],[List 1]],Table_PI[[#This Row],[List 2]],Table_PI[[#This Row],[List 3]],Table_PI[[#This Row],[Size]],Table_PI[[#This Row],[Input 1]],Table_PI[[#This Row],[Input 2]],Table_PI[[#This Row],[Input 3]],Table_PI[[#This Row],[Input 4]],'Customer Information'!$AR$12,6,ROW()),\"No Rebate\"),\"No Rebate\"),0)","v":0},{"$f":"IF(Table_PI[[#This Row],[Hide:\nFormula Name]]<>\"\",IFERROR(IF(MeasureCalc(Table_PI[[#This Row],[Hide:\nFormula Name]],Table_PI[[#This Row],[Quantity]],Table_PI[[#This Row],[List 1]],Table_PI[[#This Row],[List 2]],Table_PI[[#This Row],[List 3]],Table_PI[[#This Row],[Size]],Table_PI[[#This Row],[Input 1]],Table_PI[[#This Row],[Input 2]],Table_PI[[#This Row],[Input 3]],Table_PI[[#This Row],[Input 4]],'Customer Information'!$AR$12,1,ROW())>0,MeasureCalc(Table_PI[[#This Row],[Hide:\nFormula Name]],Table_PI[[#This Row],[Quantity]],Table_PI[[#This Row],[List 1]],Table_PI[[#This Row],[List 2]],Table_PI[[#This Row],[List 3]],Table_PI[[#This Row],[Size]],Table_PI[[#This Row],[Input 1]],Table_PI[[#This Row],[Input 2]],Table_PI[[#This Row],[Input 3]],Table_PI[[#This Row],[Input 4]],'Customer Information'!$AR$12,7,ROW()),\"No Rebate\"),\"No Rebate\"),0)","v":0},{"$f":"IF(Table_PI[[#This Row],[Hide:\nFormula Name]]<>\"\",IFERROR(IF(MeasureCalc(Table_PI[[#This Row],[Hide:\nFormula Name]],Table_PI[[#This Row],[Quantity]],Table_PI[[#This Row],[List 1]],Table_PI[[#This Row],[List 2]],Table_PI[[#This Row],[List 3]],Table_PI[[#This Row],[Size]],Table_PI[[#This Row],[Input 1]],Table_PI[[#This Row],[Input 2]],Table_PI[[#This Row],[Input 3]],Table_PI[[#This Row],[Input 4]],'Customer Information'!$AR$12,1,ROW())>0,MeasureCalc(Table_PI[[#This Row],[Hide:\nFormula Name]],Table_PI[[#This Row],[Quantity]],Table_PI[[#This Row],[List 1]],Table_PI[[#This Row],[List 2]],Table_PI[[#This Row],[List 3]],Table_PI[[#This Row],[Size]],Table_PI[[#This Row],[Input 1]],Table_PI[[#This Row],[Input 2]],Table_PI[[#This Row],[Input 3]],Table_PI[[#This Row],[Input 4]],'Customer Information'!$AR$12,8,ROW()),\"No Rebate\"),\"No Rebate\"),0)","v":0},{"$f":"IF(Table_PI[[#This Row],[Hide:\nFormula Name]]<>\"\",IF(AND(Table_PI[[#This Row],[Hide:\nFormula Name]]<>\"\",OR(Table_PI[[#This Row],[Rebate]]>0,Table_PI[[#This Row],[Rebate]]=\"No Rebate\")),TRUE,\"MI: Line Item \" & $A259),\"\")","v":""}]
[{"$f":"IF(Table_PI[[#This Row],[Hide:\nFormula Name]]<>\"\",MAX($A$2:A259)+1,\"\")","v":""},null,null,null,null,null,null,null,null,null,null,null,null,null,null,{"$f":"IFERROR(VLOOKUP(Table_PI[[#This Row],[Measure]],'Equipment Lookups'!$C$3:$D$23,2,FALSE),\"\")","v":""},{"$f":"IF(Table_PI[[#This Row],[Hide:\nFormula Name]]<>\"\",IFERROR(IF(MeasureCalc(Table_PI[[#This Row],[Hide:\nFormula Name]],Table_PI[[#This Row],[Quantity]],Table_PI[[#This Row],[List 1]],Table_PI[[#This Row],[List 2]],Table_PI[[#This Row],[List 3]],Table_PI[[#This Row],[Size]],Table_PI[[#This Row],[Input 1]],Table_PI[[#This Row],[Input 2]],Table_PI[[#This Row],[Input 3]],Table_PI[[#This Row],[Input 4]],'Customer Information'!$AR$12,1,ROW())>0,MeasureCalc(Table_PI[[#This Row],[Hide:\nFormula Name]],Table_PI[[#This Row],[Quantity]],Table_PI[[#This Row],[List 1]],Table_PI[[#This Row],[List 2]],Table_PI[[#This Row],[List 3]],Table_PI[[#This Row],[Size]],Table_PI[[#This Row],[Input 1]],Table_PI[[#This Row],[Input 2]],Table_PI[[#This Row],[Input 3]],Table_PI[[#This Row],[Input 4]],'Customer Information'!$AR$12,1,ROW()),\"No Rebate\"),\"No Rebate\"),0)","v":0},{"$f":"IF(Table_PI[[#This Row],[Hide:\nFormula Name]]<>\"\",IFERROR(IF(MeasureCalc(Table_PI[[#This Row],[Hide:\nFormula Name]],Table_PI[[#This Row],[Quantity]],Table_PI[[#This Row],[List 1]],Table_PI[[#This Row],[List 2]],Table_PI[[#This Row],[List 3]],Table_PI[[#This Row],[Size]],Table_PI[[#This Row],[Input 1]],Table_PI[[#This Row],[Input 2]],Table_PI[[#This Row],[Input 3]],Table_PI[[#This Row],[Input 4]],'Customer Information'!$AR$12,1,ROW())>0,MeasureCalc(Table_PI[[#This Row],[Hide:\nFormula Name]],Table_PI[[#This Row],[Quantity]],Table_PI[[#This Row],[List 1]],Table_PI[[#This Row],[List 2]],Table_PI[[#This Row],[List 3]],Table_PI[[#This Row],[Size]],Table_PI[[#This Row],[Input 1]],Table_PI[[#This Row],[Input 2]],Table_PI[[#This Row],[Input 3]],Table_PI[[#This Row],[Input 4]],'Customer Information'!$AR$12,2,ROW()),\"No Rebate\"),\"No Rebate\"),0)","v":0},{"$f":"IF(Table_PI[[#This Row],[Hide:\nFormula Name]]<>\"\",IFERROR(IF(MeasureCalc(Table_PI[[#This Row],[Hide:\nFormula Name]],Table_PI[[#This Row],[Quantity]],Table_PI[[#This Row],[List 1]],Table_PI[[#This Row],[List 2]],Table_PI[[#This Row],[List 3]],Table_PI[[#This Row],[Size]],Table_PI[[#This Row],[Input 1]],Table_PI[[#This Row],[Input 2]],Table_PI[[#This Row],[Input 3]],Table_PI[[#This Row],[Input 4]],'Customer Information'!$AR$12,1,ROW())>0,MeasureCalc(Table_PI[[#This Row],[Hide:\nFormula Name]],Table_PI[[#This Row],[Quantity]],Table_PI[[#This Row],[List 1]],Table_PI[[#This Row],[List 2]],Table_PI[[#This Row],[List 3]],Table_PI[[#This Row],[Size]],Table_PI[[#This Row],[Input 1]],Table_PI[[#This Row],[Input 2]],Table_PI[[#This Row],[Input 3]],Table_PI[[#This Row],[Input 4]],'Customer Information'!$AR$12,3,ROW()),\"No Rebate\"),\"No Rebate\"),0)","v":0},{"$f":"IF(Table_PI[[#This Row],[Hide:\nFormula Name]]<>\"\",IFERROR(IF(MeasureCalc(Table_PI[[#This Row],[Hide:\nFormula Name]],Table_PI[[#This Row],[Quantity]],Table_PI[[#This Row],[List 1]],Table_PI[[#This Row],[List 2]],Table_PI[[#This Row],[List 3]],Table_PI[[#This Row],[Size]],Table_PI[[#This Row],[Input 1]],Table_PI[[#This Row],[Input 2]],Table_PI[[#This Row],[Input 3]],Table_PI[[#This Row],[Input 4]],'Customer Information'!$AR$12,1,ROW())>0,MeasureCalc(Table_PI[[#This Row],[Hide:\nFormula Name]],Table_PI[[#This Row],[Quantity]],Table_PI[[#This Row],[List 1]],Table_PI[[#This Row],[List 2]],Table_PI[[#This Row],[List 3]],Table_PI[[#This Row],[Size]],Table_PI[[#This Row],[Input 1]],Table_PI[[#This Row],[Input 2]],Table_PI[[#This Row],[Input 3]],Table_PI[[#This Row],[Input 4]],'Customer Information'!$AR$12,4,ROW()),\"No Rebate\"),\"No Rebate\"),0)","v":0},{"$f":"IF(Table_PI[[#This Row],[Hide:\nFormula Name]]<>\"\",IFERROR(IF(MeasureCalc(Table_PI[[#This Row],[Hide:\nFormula Name]],Table_PI[[#This Row],[Quantity]],Table_PI[[#This Row],[List 1]],Table_PI[[#This Row],[List 2]],Table_PI[[#This Row],[List 3]],Table_PI[[#This Row],[Size]],Table_PI[[#This Row],[Input 1]],Table_PI[[#This Row],[Input 2]],Table_PI[[#This Row],[Input 3]],Table_PI[[#This Row],[Input 4]],'Customer Information'!$AR$12,1,ROW())>0,MeasureCalc(Table_PI[[#This Row],[Hide:\nFormula Name]],Table_PI[[#This Row],[Quantity]],Table_PI[[#This Row],[List 1]],Table_PI[[#This Row],[List 2]],Table_PI[[#This Row],[List 3]],Table_PI[[#This Row],[Size]],Table_PI[[#This Row],[Input 1]],Table_PI[[#This Row],[Input 2]],Table_PI[[#This Row],[Input 3]],Table_PI[[#This Row],[Input 4]],'Customer Information'!$AR$12,5,ROW()),\"No Rebate\"),\"No Rebate\"),0)","v":0},{"$f":"IF(Table_PI[[#This Row],[Hide:\nFormula Name]]<>\"\",IFERROR(IF(MeasureCalc(Table_PI[[#This Row],[Hide:\nFormula Name]],Table_PI[[#This Row],[Quantity]],Table_PI[[#This Row],[List 1]],Table_PI[[#This Row],[List 2]],Table_PI[[#This Row],[List 3]],Table_PI[[#This Row],[Size]],Table_PI[[#This Row],[Input 1]],Table_PI[[#This Row],[Input 2]],Table_PI[[#This Row],[Input 3]],Table_PI[[#This Row],[Input 4]],'Customer Information'!$AR$12,1,ROW())>0,MeasureCalc(Table_PI[[#This Row],[Hide:\nFormula Name]],Table_PI[[#This Row],[Quantity]],Table_PI[[#This Row],[List 1]],Table_PI[[#This Row],[List 2]],Table_PI[[#This Row],[List 3]],Table_PI[[#This Row],[Size]],Table_PI[[#This Row],[Input 1]],Table_PI[[#This Row],[Input 2]],Table_PI[[#This Row],[Input 3]],Table_PI[[#This Row],[Input 4]],'Customer Information'!$AR$12,6,ROW()),\"No Rebate\"),\"No Rebate\"),0)","v":0},{"$f":"IF(Table_PI[[#This Row],[Hide:\nFormula Name]]<>\"\",IFERROR(IF(MeasureCalc(Table_PI[[#This Row],[Hide:\nFormula Name]],Table_PI[[#This Row],[Quantity]],Table_PI[[#This Row],[List 1]],Table_PI[[#This Row],[List 2]],Table_PI[[#This Row],[List 3]],Table_PI[[#This Row],[Size]],Table_PI[[#This Row],[Input 1]],Table_PI[[#This Row],[Input 2]],Table_PI[[#This Row],[Input 3]],Table_PI[[#This Row],[Input 4]],'Customer Information'!$AR$12,1,ROW())>0,MeasureCalc(Table_PI[[#This Row],[Hide:\nFormula Name]],Table_PI[[#This Row],[Quantity]],Table_PI[[#This Row],[List 1]],Table_PI[[#This Row],[List 2]],Table_PI[[#This Row],[List 3]],Table_PI[[#This Row],[Size]],Table_PI[[#This Row],[Input 1]],Table_PI[[#This Row],[Input 2]],Table_PI[[#This Row],[Input 3]],Table_PI[[#This Row],[Input 4]],'Customer Information'!$AR$12,7,ROW()),\"No Rebate\"),\"No Rebate\"),0)","v":0},{"$f":"IF(Table_PI[[#This Row],[Hide:\nFormula Name]]<>\"\",IFERROR(IF(MeasureCalc(Table_PI[[#This Row],[Hide:\nFormula Name]],Table_PI[[#This Row],[Quantity]],Table_PI[[#This Row],[List 1]],Table_PI[[#This Row],[List 2]],Table_PI[[#This Row],[List 3]],Table_PI[[#This Row],[Size]],Table_PI[[#This Row],[Input 1]],Table_PI[[#This Row],[Input 2]],Table_PI[[#This Row],[Input 3]],Table_PI[[#This Row],[Input 4]],'Customer Information'!$AR$12,1,ROW())>0,MeasureCalc(Table_PI[[#This Row],[Hide:\nFormula Name]],Table_PI[[#This Row],[Quantity]],Table_PI[[#This Row],[List 1]],Table_PI[[#This Row],[List 2]],Table_PI[[#This Row],[List 3]],Table_PI[[#This Row],[Size]],Table_PI[[#This Row],[Input 1]],Table_PI[[#This Row],[Input 2]],Table_PI[[#This Row],[Input 3]],Table_PI[[#This Row],[Input 4]],'Customer Information'!$AR$12,8,ROW()),\"No Rebate\"),\"No Rebate\"),0)","v":0},{"$f":"IF(Table_PI[[#This Row],[Hide:\nFormula Name]]<>\"\",IF(AND(Table_PI[[#This Row],[Hide:\nFormula Name]]<>\"\",OR(Table_PI[[#This Row],[Rebate]]>0,Table_PI[[#This Row],[Rebate]]=\"No Rebate\")),TRUE,\"MI: Line Item \" & $A260),\"\")","v":""}]
[{"$f":"IF(Table_PI[[#This Row],[Hide:\nFormula Name]]<>\"\",MAX($A$2:A260)+1,\"\")","v":""},null,null,null,null,null,null,null,null,null,null,null,null,null,null,{"$f":"IFERROR(VLOOKUP(Table_PI[[#This Row],[Measure]],'Equipment Lookups'!$C$3:$D$23,2,FALSE),\"\")","v":""},{"$f":"IF(Table_PI[[#This Row],[Hide:\nFormula Name]]<>\"\",IFERROR(IF(MeasureCalc(Table_PI[[#This Row],[Hide:\nFormula Name]],Table_PI[[#This Row],[Quantity]],Table_PI[[#This Row],[List 1]],Table_PI[[#This Row],[List 2]],Table_PI[[#This Row],[List 3]],Table_PI[[#This Row],[Size]],Table_PI[[#This Row],[Input 1]],Table_PI[[#This Row],[Input 2]],Table_PI[[#This Row],[Input 3]],Table_PI[[#This Row],[Input 4]],'Customer Information'!$AR$12,1,ROW())>0,MeasureCalc(Table_PI[[#This Row],[Hide:\nFormula Name]],Table_PI[[#This Row],[Quantity]],Table_PI[[#This Row],[List 1]],Table_PI[[#This Row],[List 2]],Table_PI[[#This Row],[List 3]],Table_PI[[#This Row],[Size]],Table_PI[[#This Row],[Input 1]],Table_PI[[#This Row],[Input 2]],Table_PI[[#This Row],[Input 3]],Table_PI[[#This Row],[Input 4]],'Customer Information'!$AR$12,1,ROW()),\"No Rebate\"),\"No Rebate\"),0)","v":0},{"$f":"IF(Table_PI[[#This Row],[Hide:\nFormula Name]]<>\"\",IFERROR(IF(MeasureCalc(Table_PI[[#This Row],[Hide:\nFormula Name]],Table_PI[[#This Row],[Quantity]],Table_PI[[#This Row],[List 1]],Table_PI[[#This Row],[List 2]],Table_PI[[#This Row],[List 3]],Table_PI[[#This Row],[Size]],Table_PI[[#This Row],[Input 1]],Table_PI[[#This Row],[Input 2]],Table_PI[[#This Row],[Input 3]],Table_PI[[#This Row],[Input 4]],'Customer Information'!$AR$12,1,ROW())>0,MeasureCalc(Table_PI[[#This Row],[Hide:\nFormula Name]],Table_PI[[#This Row],[Quantity]],Table_PI[[#This Row],[List 1]],Table_PI[[#This Row],[List 2]],Table_PI[[#This Row],[List 3]],Table_PI[[#This Row],[Size]],Table_PI[[#This Row],[Input 1]],Table_PI[[#This Row],[Input 2]],Table_PI[[#This Row],[Input 3]],Table_PI[[#This Row],[Input 4]],'Customer Information'!$AR$12,2,ROW()),\"No Rebate\"),\"No Rebate\"),0)","v":0},{"$f":"IF(Table_PI[[#This Row],[Hide:\nFormula Name]]<>\"\",IFERROR(IF(MeasureCalc(Table_PI[[#This Row],[Hide:\nFormula Name]],Table_PI[[#This Row],[Quantity]],Table_PI[[#This Row],[List 1]],Table_PI[[#This Row],[List 2]],Table_PI[[#This Row],[List 3]],Table_PI[[#This Row],[Size]],Table_PI[[#This Row],[Input 1]],Table_PI[[#This Row],[Input 2]],Table_PI[[#This Row],[Input 3]],Table_PI[[#This Row],[Input 4]],'Customer Information'!$AR$12,1,ROW())>0,MeasureCalc(Table_PI[[#This Row],[Hide:\nFormula Name]],Table_PI[[#This Row],[Quantity]],Table_PI[[#This Row],[List 1]],Table_PI[[#This Row],[List 2]],Table_PI[[#This Row],[List 3]],Table_PI[[#This Row],[Size]],Table_PI[[#This Row],[Input 1]],Table_PI[[#This Row],[Input 2]],Table_PI[[#This Row],[Input 3]],Table_PI[[#This Row],[Input 4]],'Customer Information'!$AR$12,3,ROW()),\"No Rebate\"),\"No Rebate\"),0)","v":0},{"$f":"IF(Table_PI[[#This Row],[Hide:\nFormula Name]]<>\"\",IFERROR(IF(MeasureCalc(Table_PI[[#This Row],[Hide:\nFormula Name]],Table_PI[[#This Row],[Quantity]],Table_PI[[#This Row],[List 1]],Table_PI[[#This Row],[List 2]],Table_PI[[#This Row],[List 3]],Table_PI[[#This Row],[Size]],Table_PI[[#This Row],[Input 1]],Table_PI[[#This Row],[Input 2]],Table_PI[[#This Row],[Input 3]],Table_PI[[#This Row],[Input 4]],'Customer Information'!$AR$12,1,ROW())>0,MeasureCalc(Table_PI[[#This Row],[Hide:\nFormula Name]],Table_PI[[#This Row],[Quantity]],Table_PI[[#This Row],[List 1]],Table_PI[[#This Row],[List 2]],Table_PI[[#This Row],[List 3]],Table_PI[[#This Row],[Size]],Table_PI[[#This Row],[Input 1]],Table_PI[[#This Row],[Input 2]],Table_PI[[#This Row],[Input 3]],Table_PI[[#This Row],[Input 4]],'Customer Information'!$AR$12,4,ROW()),\"No Rebate\"),\"No Rebate\"),0)","v":0},{"$f":"IF(Table_PI[[#This Row],[Hide:\nFormula Name]]<>\"\",IFERROR(IF(MeasureCalc(Table_PI[[#This Row],[Hide:\nFormula Name]],Table_PI[[#This Row],[Quantity]],Table_PI[[#This Row],[List 1]],Table_PI[[#This Row],[List 2]],Table_PI[[#This Row],[List 3]],Table_PI[[#This Row],[Size]],Table_PI[[#This Row],[Input 1]],Table_PI[[#This Row],[Input 2]],Table_PI[[#This Row],[Input 3]],Table_PI[[#This Row],[Input 4]],'Customer Information'!$AR$12,1,ROW())>0,MeasureCalc(Table_PI[[#This Row],[Hide:\nFormula Name]],Table_PI[[#This Row],[Quantity]],Table_PI[[#This Row],[List 1]],Table_PI[[#This Row],[List 2]],Table_PI[[#This Row],[List 3]],Table_PI[[#This Row],[Size]],Table_PI[[#This Row],[Input 1]],Table_PI[[#This Row],[Input 2]],Table_PI[[#This Row],[Input 3]],Table_PI[[#This Row],[Input 4]],'Customer Information'!$AR$12,5,ROW()),\"No Rebate\"),\"No Rebate\"),0)","v":0},{"$f":"IF(Table_PI[[#This Row],[Hide:\nFormula Name]]<>\"\",IFERROR(IF(MeasureCalc(Table_PI[[#This Row],[Hide:\nFormula Name]],Table_PI[[#This Row],[Quantity]],Table_PI[[#This Row],[List 1]],Table_PI[[#This Row],[List 2]],Table_PI[[#This Row],[List 3]],Table_PI[[#This Row],[Size]],Table_PI[[#This Row],[Input 1]],Table_PI[[#This Row],[Input 2]],Table_PI[[#This Row],[Input 3]],Table_PI[[#This Row],[Input 4]],'Customer Information'!$AR$12,1,ROW())>0,MeasureCalc(Table_PI[[#This Row],[Hide:\nFormula Name]],Table_PI[[#This Row],[Quantity]],Table_PI[[#This Row],[List 1]],Table_PI[[#This Row],[List 2]],Table_PI[[#This Row],[List 3]],Table_PI[[#This Row],[Size]],Table_PI[[#This Row],[Input 1]],Table_PI[[#This Row],[Input 2]],Table_PI[[#This Row],[Input 3]],Table_PI[[#This Row],[Input 4]],'Customer Information'!$AR$12,6,ROW()),\"No Rebate\"),\"No Rebate\"),0)","v":0},{"$f":"IF(Table_PI[[#This Row],[Hide:\nFormula Name]]<>\"\",IFERROR(IF(MeasureCalc(Table_PI[[#This Row],[Hide:\nFormula Name]],Table_PI[[#This Row],[Quantity]],Table_PI[[#This Row],[List 1]],Table_PI[[#This Row],[List 2]],Table_PI[[#This Row],[List 3]],Table_PI[[#This Row],[Size]],Table_PI[[#This Row],[Input 1]],Table_PI[[#This Row],[Input 2]],Table_PI[[#This Row],[Input 3]],Table_PI[[#This Row],[Input 4]],'Customer Information'!$AR$12,1,ROW())>0,MeasureCalc(Table_PI[[#This Row],[Hide:\nFormula Name]],Table_PI[[#This Row],[Quantity]],Table_PI[[#This Row],[List 1]],Table_PI[[#This Row],[List 2]],Table_PI[[#This Row],[List 3]],Table_PI[[#This Row],[Size]],Table_PI[[#This Row],[Input 1]],Table_PI[[#This Row],[Input 2]],Table_PI[[#This Row],[Input 3]],Table_PI[[#This Row],[Input 4]],'Customer Information'!$AR$12,7,ROW()),\"No Rebate\"),\"No Rebate\"),0)","v":0},{"$f":"IF(Table_PI[[#This Row],[Hide:\nFormula Name]]<>\"\",IFERROR(IF(MeasureCalc(Table_PI[[#This Row],[Hide:\nFormula Name]],Table_PI[[#This Row],[Quantity]],Table_PI[[#This Row],[List 1]],Table_PI[[#This Row],[List 2]],Table_PI[[#This Row],[List 3]],Table_PI[[#This Row],[Size]],Table_PI[[#This Row],[Input 1]],Table_PI[[#This Row],[Input 2]],Table_PI[[#This Row],[Input 3]],Table_PI[[#This Row],[Input 4]],'Customer Information'!$AR$12,1,ROW())>0,MeasureCalc(Table_PI[[#This Row],[Hide:\nFormula Name]],Table_PI[[#This Row],[Quantity]],Table_PI[[#This Row],[List 1]],Table_PI[[#This Row],[List 2]],Table_PI[[#This Row],[List 3]],Table_PI[[#This Row],[Size]],Table_PI[[#This Row],[Input 1]],Table_PI[[#This Row],[Input 2]],Table_PI[[#This Row],[Input 3]],Table_PI[[#This Row],[Input 4]],'Customer Information'!$AR$12,8,ROW()),\"No Rebate\"),\"No Rebate\"),0)","v":0},{"$f":"IF(Table_PI[[#This Row],[Hide:\nFormula Name]]<>\"\",IF(AND(Table_PI[[#This Row],[Hide:\nFormula Name]]<>\"\",OR(Table_PI[[#This Row],[Rebate]]>0,Table_PI[[#This Row],[Rebate]]=\"No Rebate\")),TRUE,\"MI: Line Item \" & $A261),\"\")","v":""}]
[{"$f":"IF(Table_PI[[#This Row],[Hide:\nFormula Name]]<>\"\",MAX($A$2:A261)+1,\"\")","v":""},null,null,null,null,null,null,null,null,null,null,null,null,null,null,{"$f":"IFERROR(VLOOKUP(Table_PI[[#This Row],[Measure]],'Equipment Lookups'!$C$3:$D$23,2,FALSE),\"\")","v":""},{"$f":"IF(Table_PI[[#This Row],[Hide:\nFormula Name]]<>\"\",IFERROR(IF(MeasureCalc(Table_PI[[#This Row],[Hide:\nFormula Name]],Table_PI[[#This Row],[Quantity]],Table_PI[[#This Row],[List 1]],Table_PI[[#This Row],[List 2]],Table_PI[[#This Row],[List 3]],Table_PI[[#This Row],[Size]],Table_PI[[#This Row],[Input 1]],Table_PI[[#This Row],[Input 2]],Table_PI[[#This Row],[Input 3]],Table_PI[[#This Row],[Input 4]],'Customer Information'!$AR$12,1,ROW())>0,MeasureCalc(Table_PI[[#This Row],[Hide:\nFormula Name]],Table_PI[[#This Row],[Quantity]],Table_PI[[#This Row],[List 1]],Table_PI[[#This Row],[List 2]],Table_PI[[#This Row],[List 3]],Table_PI[[#This Row],[Size]],Table_PI[[#This Row],[Input 1]],Table_PI[[#This Row],[Input 2]],Table_PI[[#This Row],[Input 3]],Table_PI[[#This Row],[Input 4]],'Customer Information'!$AR$12,1,ROW()),\"No Rebate\"),\"No Rebate\"),0)","v":0},{"$f":"IF(Table_PI[[#This Row],[Hide:\nFormula Name]]<>\"\",IFERROR(IF(MeasureCalc(Table_PI[[#This Row],[Hide:\nFormula Name]],Table_PI[[#This Row],[Quantity]],Table_PI[[#This Row],[List 1]],Table_PI[[#This Row],[List 2]],Table_PI[[#This Row],[List 3]],Table_PI[[#This Row],[Size]],Table_PI[[#This Row],[Input 1]],Table_PI[[#This Row],[Input 2]],Table_PI[[#This Row],[Input 3]],Table_PI[[#This Row],[Input 4]],'Customer Information'!$AR$12,1,ROW())>0,MeasureCalc(Table_PI[[#This Row],[Hide:\nFormula Name]],Table_PI[[#This Row],[Quantity]],Table_PI[[#This Row],[List 1]],Table_PI[[#This Row],[List 2]],Table_PI[[#This Row],[List 3]],Table_PI[[#This Row],[Size]],Table_PI[[#This Row],[Input 1]],Table_PI[[#This Row],[Input 2]],Table_PI[[#This Row],[Input 3]],Table_PI[[#This Row],[Input 4]],'Customer Information'!$AR$12,2,ROW()),\"No Rebate\"),\"No Rebate\"),0)","v":0},{"$f":"IF(Table_PI[[#This Row],[Hide:\nFormula Name]]<>\"\",IFERROR(IF(MeasureCalc(Table_PI[[#This Row],[Hide:\nFormula Name]],Table_PI[[#This Row],[Quantity]],Table_PI[[#This Row],[List 1]],Table_PI[[#This Row],[List 2]],Table_PI[[#This Row],[List 3]],Table_PI[[#This Row],[Size]],Table_PI[[#This Row],[Input 1]],Table_PI[[#This Row],[Input 2]],Table_PI[[#This Row],[Input 3]],Table_PI[[#This Row],[Input 4]],'Customer Information'!$AR$12,1,ROW())>0,MeasureCalc(Table_PI[[#This Row],[Hide:\nFormula Name]],Table_PI[[#This Row],[Quantity]],Table_PI[[#This Row],[List 1]],Table_PI[[#This Row],[List 2]],Table_PI[[#This Row],[List 3]],Table_PI[[#This Row],[Size]],Table_PI[[#This Row],[Input 1]],Table_PI[[#This Row],[Input 2]],Table_PI[[#This Row],[Input 3]],Table_PI[[#This Row],[Input 4]],'Customer Information'!$AR$12,3,ROW()),\"No Rebate\"),\"No Rebate\"),0)","v":0},{"$f":"IF(Table_PI[[#This Row],[Hide:\nFormula Name]]<>\"\",IFERROR(IF(MeasureCalc(Table_PI[[#This Row],[Hide:\nFormula Name]],Table_PI[[#This Row],[Quantity]],Table_PI[[#This Row],[List 1]],Table_PI[[#This Row],[List 2]],Table_PI[[#This Row],[List 3]],Table_PI[[#This Row],[Size]],Table_PI[[#This Row],[Input 1]],Table_PI[[#This Row],[Input 2]],Table_PI[[#This Row],[Input 3]],Table_PI[[#This Row],[Input 4]],'Customer Information'!$AR$12,1,ROW())>0,MeasureCalc(Table_PI[[#This Row],[Hide:\nFormula Name]],Table_PI[[#This Row],[Quantity]],Table_PI[[#This Row],[List 1]],Table_PI[[#This Row],[List 2]],Table_PI[[#This Row],[List 3]],Table_PI[[#This Row],[Size]],Table_PI[[#This Row],[Input 1]],Table_PI[[#This Row],[Input 2]],Table_PI[[#This Row],[Input 3]],Table_PI[[#This Row],[Input 4]],'Customer Information'!$AR$12,4,ROW()),\"No Rebate\"),\"No Rebate\"),0)","v":0},{"$f":"IF(Table_PI[[#This Row],[Hide:\nFormula Name]]<>\"\",IFERROR(IF(MeasureCalc(Table_PI[[#This Row],[Hide:\nFormula Name]],Table_PI[[#This Row],[Quantity]],Table_PI[[#This Row],[List 1]],Table_PI[[#This Row],[List 2]],Table_PI[[#This Row],[List 3]],Table_PI[[#This Row],[Size]],Table_PI[[#This Row],[Input 1]],Table_PI[[#This Row],[Input 2]],Table_PI[[#This Row],[Input 3]],Table_PI[[#This Row],[Input 4]],'Customer Information'!$AR$12,1,ROW())>0,MeasureCalc(Table_PI[[#This Row],[Hide:\nFormula Name]],Table_PI[[#This Row],[Quantity]],Table_PI[[#This Row],[List 1]],Table_PI[[#This Row],[List 2]],Table_PI[[#This Row],[List 3]],Table_PI[[#This Row],[Size]],Table_PI[[#This Row],[Input 1]],Table_PI[[#This Row],[Input 2]],Table_PI[[#This Row],[Input 3]],Table_PI[[#This Row],[Input 4]],'Customer Information'!$AR$12,5,ROW()),\"No Rebate\"),\"No Rebate\"),0)","v":0},{"$f":"IF(Table_PI[[#This Row],[Hide:\nFormula Name]]<>\"\",IFERROR(IF(MeasureCalc(Table_PI[[#This Row],[Hide:\nFormula Name]],Table_PI[[#This Row],[Quantity]],Table_PI[[#This Row],[List 1]],Table_PI[[#This Row],[List 2]],Table_PI[[#This Row],[List 3]],Table_PI[[#This Row],[Size]],Table_PI[[#This Row],[Input 1]],Table_PI[[#This Row],[Input 2]],Table_PI[[#This Row],[Input 3]],Table_PI[[#This Row],[Input 4]],'Customer Information'!$AR$12,1,ROW())>0,MeasureCalc(Table_PI[[#This Row],[Hide:\nFormula Name]],Table_PI[[#This Row],[Quantity]],Table_PI[[#This Row],[List 1]],Table_PI[[#This Row],[List 2]],Table_PI[[#This Row],[List 3]],Table_PI[[#This Row],[Size]],Table_PI[[#This Row],[Input 1]],Table_PI[[#This Row],[Input 2]],Table_PI[[#This Row],[Input 3]],Table_PI[[#This Row],[Input 4]],'Customer Information'!$AR$12,6,ROW()),\"No Rebate\"),\"No Rebate\"),0)","v":0},{"$f":"IF(Table_PI[[#This Row],[Hide:\nFormula Name]]<>\"\",IFERROR(IF(MeasureCalc(Table_PI[[#This Row],[Hide:\nFormula Name]],Table_PI[[#This Row],[Quantity]],Table_PI[[#This Row],[List 1]],Table_PI[[#This Row],[List 2]],Table_PI[[#This Row],[List 3]],Table_PI[[#This Row],[Size]],Table_PI[[#This Row],[Input 1]],Table_PI[[#This Row],[Input 2]],Table_PI[[#This Row],[Input 3]],Table_PI[[#This Row],[Input 4]],'Customer Information'!$AR$12,1,ROW())>0,MeasureCalc(Table_PI[[#This Row],[Hide:\nFormula Name]],Table_PI[[#This Row],[Quantity]],Table_PI[[#This Row],[List 1]],Table_PI[[#This Row],[List 2]],Table_PI[[#This Row],[List 3]],Table_PI[[#This Row],[Size]],Table_PI[[#This Row],[Input 1]],Table_PI[[#This Row],[Input 2]],Table_PI[[#This Row],[Input 3]],Table_PI[[#This Row],[Input 4]],'Customer Information'!$AR$12,7,ROW()),\"No Rebate\"),\"No Rebate\"),0)","v":0},{"$f":"IF(Table_PI[[#This Row],[Hide:\nFormula Name]]<>\"\",IFERROR(IF(MeasureCalc(Table_PI[[#This Row],[Hide:\nFormula Name]],Table_PI[[#This Row],[Quantity]],Table_PI[[#This Row],[List 1]],Table_PI[[#This Row],[List 2]],Table_PI[[#This Row],[List 3]],Table_PI[[#This Row],[Size]],Table_PI[[#This Row],[Input 1]],Table_PI[[#This Row],[Input 2]],Table_PI[[#This Row],[Input 3]],Table_PI[[#This Row],[Input 4]],'Customer Information'!$AR$12,1,ROW())>0,MeasureCalc(Table_PI[[#This Row],[Hide:\nFormula Name]],Table_PI[[#This Row],[Quantity]],Table_PI[[#This Row],[List 1]],Table_PI[[#This Row],[List 2]],Table_PI[[#This Row],[List 3]],Table_PI[[#This Row],[Size]],Table_PI[[#This Row],[Input 1]],Table_PI[[#This Row],[Input 2]],Table_PI[[#This Row],[Input 3]],Table_PI[[#This Row],[Input 4]],'Customer Information'!$AR$12,8,ROW()),\"No Rebate\"),\"No Rebate\"),0)","v":0},{"$f":"IF(Table_PI[[#This Row],[Hide:\nFormula Name]]<>\"\",IF(AND(Table_PI[[#This Row],[Hide:\nFormula Name]]<>\"\",OR(Table_PI[[#This Row],[Rebate]]>0,Table_PI[[#This Row],[Rebate]]=\"No Rebate\")),TRUE,\"MI: Line Item \" & $A262),\"\")","v":""}]
[{"$f":"IF(Table_PI[[#This Row],[Hide:\nFormula Name]]<>\"\",MAX($A$2:A262)+1,\"\")","v":""},null,null,null,null,null,null,null,null,null,null,null,null,null,null,{"$f":"IFERROR(VLOOKUP(Table_PI[[#This Row],[Measure]],'Equipment Lookups'!$C$3:$D$23,2,FALSE),\"\")","v":""},{"$f":"IF(Table_PI[[#This Row],[Hide:\nFormula Name]]<>\"\",IFERROR(IF(MeasureCalc(Table_PI[[#This Row],[Hide:\nFormula Name]],Table_PI[[#This Row],[Quantity]],Table_PI[[#This Row],[List 1]],Table_PI[[#This Row],[List 2]],Table_PI[[#This Row],[List 3]],Table_PI[[#This Row],[Size]],Table_PI[[#This Row],[Input 1]],Table_PI[[#This Row],[Input 2]],Table_PI[[#This Row],[Input 3]],Table_PI[[#This Row],[Input 4]],'Customer Information'!$AR$12,1,ROW())>0,MeasureCalc(Table_PI[[#This Row],[Hide:\nFormula Name]],Table_PI[[#This Row],[Quantity]],Table_PI[[#This Row],[List 1]],Table_PI[[#This Row],[List 2]],Table_PI[[#This Row],[List 3]],Table_PI[[#This Row],[Size]],Table_PI[[#This Row],[Input 1]],Table_PI[[#This Row],[Input 2]],Table_PI[[#This Row],[Input 3]],Table_PI[[#This Row],[Input 4]],'Customer Information'!$AR$12,1,ROW()),\"No Rebate\"),\"No Rebate\"),0)","v":0},{"$f":"IF(Table_PI[[#This Row],[Hide:\nFormula Name]]<>\"\",IFERROR(IF(MeasureCalc(Table_PI[[#This Row],[Hide:\nFormula Name]],Table_PI[[#This Row],[Quantity]],Table_PI[[#This Row],[List 1]],Table_PI[[#This Row],[List 2]],Table_PI[[#This Row],[List 3]],Table_PI[[#This Row],[Size]],Table_PI[[#This Row],[Input 1]],Table_PI[[#This Row],[Input 2]],Table_PI[[#This Row],[Input 3]],Table_PI[[#This Row],[Input 4]],'Customer Information'!$AR$12,1,ROW())>0,MeasureCalc(Table_PI[[#This Row],[Hide:\nFormula Name]],Table_PI[[#This Row],[Quantity]],Table_PI[[#This Row],[List 1]],Table_PI[[#This Row],[List 2]],Table_PI[[#This Row],[List 3]],Table_PI[[#This Row],[Size]],Table_PI[[#This Row],[Input 1]],Table_PI[[#This Row],[Input 2]],Table_PI[[#This Row],[Input 3]],Table_PI[[#This Row],[Input 4]],'Customer Information'!$AR$12,2,ROW()),\"No Rebate\"),\"No Rebate\"),0)","v":0},{"$f":"IF(Table_PI[[#This Row],[Hide:\nFormula Name]]<>\"\",IFERROR(IF(MeasureCalc(Table_PI[[#This Row],[Hide:\nFormula Name]],Table_PI[[#This Row],[Quantity]],Table_PI[[#This Row],[List 1]],Table_PI[[#This Row],[List 2]],Table_PI[[#This Row],[List 3]],Table_PI[[#This Row],[Size]],Table_PI[[#This Row],[Input 1]],Table_PI[[#This Row],[Input 2]],Table_PI[[#This Row],[Input 3]],Table_PI[[#This Row],[Input 4]],'Customer Information'!$AR$12,1,ROW())>0,MeasureCalc(Table_PI[[#This Row],[Hide:\nFormula Name]],Table_PI[[#This Row],[Quantity]],Table_PI[[#This Row],[List 1]],Table_PI[[#This Row],[List 2]],Table_PI[[#This Row],[List 3]],Table_PI[[#This Row],[Size]],Table_PI[[#This Row],[Input 1]],Table_PI[[#This Row],[Input 2]],Table_PI[[#This Row],[Input 3]],Table_PI[[#This Row],[Input 4]],'Customer Information'!$AR$12,3,ROW()),\"No Rebate\"),\"No Rebate\"),0)","v":0},{"$f":"IF(Table_PI[[#This Row],[Hide:\nFormula Name]]<>\"\",IFERROR(IF(MeasureCalc(Table_PI[[#This Row],[Hide:\nFormula Name]],Table_PI[[#This Row],[Quantity]],Table_PI[[#This Row],[List 1]],Table_PI[[#This Row],[List 2]],Table_PI[[#This Row],[List 3]],Table_PI[[#This Row],[Size]],Table_PI[[#This Row],[Input 1]],Table_PI[[#This Row],[Input 2]],Table_PI[[#This Row],[Input 3]],Table_PI[[#This Row],[Input 4]],'Customer Information'!$AR$12,1,ROW())>0,MeasureCalc(Table_PI[[#This Row],[Hide:\nFormula Name]],Table_PI[[#This Row],[Quantity]],Table_PI[[#This Row],[List 1]],Table_PI[[#This Row],[List 2]],Table_PI[[#This Row],[List 3]],Table_PI[[#This Row],[Size]],Table_PI[[#This Row],[Input 1]],Table_PI[[#This Row],[Input 2]],Table_PI[[#This Row],[Input 3]],Table_PI[[#This Row],[Input 4]],'Customer Information'!$AR$12,4,ROW()),\"No Rebate\"),\"No Rebate\"),0)","v":0},{"$f":"IF(Table_PI[[#This Row],[Hide:\nFormula Name]]<>\"\",IFERROR(IF(MeasureCalc(Table_PI[[#This Row],[Hide:\nFormula Name]],Table_PI[[#This Row],[Quantity]],Table_PI[[#This Row],[List 1]],Table_PI[[#This Row],[List 2]],Table_PI[[#This Row],[List 3]],Table_PI[[#This Row],[Size]],Table_PI[[#This Row],[Input 1]],Table_PI[[#This Row],[Input 2]],Table_PI[[#This Row],[Input 3]],Table_PI[[#This Row],[Input 4]],'Customer Information'!$AR$12,1,ROW())>0,MeasureCalc(Table_PI[[#This Row],[Hide:\nFormula Name]],Table_PI[[#This Row],[Quantity]],Table_PI[[#This Row],[List 1]],Table_PI[[#This Row],[List 2]],Table_PI[[#This Row],[List 3]],Table_PI[[#This Row],[Size]],Table_PI[[#This Row],[Input 1]],Table_PI[[#This Row],[Input 2]],Table_PI[[#This Row],[Input 3]],Table_PI[[#This Row],[Input 4]],'Customer Information'!$AR$12,5,ROW()),\"No Rebate\"),\"No Rebate\"),0)","v":0},{"$f":"IF(Table_PI[[#This Row],[Hide:\nFormula Name]]<>\"\",IFERROR(IF(MeasureCalc(Table_PI[[#This Row],[Hide:\nFormula Name]],Table_PI[[#This Row],[Quantity]],Table_PI[[#This Row],[List 1]],Table_PI[[#This Row],[List 2]],Table_PI[[#This Row],[List 3]],Table_PI[[#This Row],[Size]],Table_PI[[#This Row],[Input 1]],Table_PI[[#This Row],[Input 2]],Table_PI[[#This Row],[Input 3]],Table_PI[[#This Row],[Input 4]],'Customer Information'!$AR$12,1,ROW())>0,MeasureCalc(Table_PI[[#This Row],[Hide:\nFormula Name]],Table_PI[[#This Row],[Quantity]],Table_PI[[#This Row],[List 1]],Table_PI[[#This Row],[List 2]],Table_PI[[#This Row],[List 3]],Table_PI[[#This Row],[Size]],Table_PI[[#This Row],[Input 1]],Table_PI[[#This Row],[Input 2]],Table_PI[[#This Row],[Input 3]],Table_PI[[#This Row],[Input 4]],'Customer Information'!$AR$12,6,ROW()),\"No Rebate\"),\"No Rebate\"),0)","v":0},{"$f":"IF(Table_PI[[#This Row],[Hide:\nFormula Name]]<>\"\",IFERROR(IF(MeasureCalc(Table_PI[[#This Row],[Hide:\nFormula Name]],Table_PI[[#This Row],[Quantity]],Table_PI[[#This Row],[List 1]],Table_PI[[#This Row],[List 2]],Table_PI[[#This Row],[List 3]],Table_PI[[#This Row],[Size]],Table_PI[[#This Row],[Input 1]],Table_PI[[#This Row],[Input 2]],Table_PI[[#This Row],[Input 3]],Table_PI[[#This Row],[Input 4]],'Customer Information'!$AR$12,1,ROW())>0,MeasureCalc(Table_PI[[#This Row],[Hide:\nFormula Name]],Table_PI[[#This Row],[Quantity]],Table_PI[[#This Row],[List 1]],Table_PI[[#This Row],[List 2]],Table_PI[[#This Row],[List 3]],Table_PI[[#This Row],[Size]],Table_PI[[#This Row],[Input 1]],Table_PI[[#This Row],[Input 2]],Table_PI[[#This Row],[Input 3]],Table_PI[[#This Row],[Input 4]],'Customer Information'!$AR$12,7,ROW()),\"No Rebate\"),\"No Rebate\"),0)","v":0},{"$f":"IF(Table_PI[[#This Row],[Hide:\nFormula Name]]<>\"\",IFERROR(IF(MeasureCalc(Table_PI[[#This Row],[Hide:\nFormula Name]],Table_PI[[#This Row],[Quantity]],Table_PI[[#This Row],[List 1]],Table_PI[[#This Row],[List 2]],Table_PI[[#This Row],[List 3]],Table_PI[[#This Row],[Size]],Table_PI[[#This Row],[Input 1]],Table_PI[[#This Row],[Input 2]],Table_PI[[#This Row],[Input 3]],Table_PI[[#This Row],[Input 4]],'Customer Information'!$AR$12,1,ROW())>0,MeasureCalc(Table_PI[[#This Row],[Hide:\nFormula Name]],Table_PI[[#This Row],[Quantity]],Table_PI[[#This Row],[List 1]],Table_PI[[#This Row],[List 2]],Table_PI[[#This Row],[List 3]],Table_PI[[#This Row],[Size]],Table_PI[[#This Row],[Input 1]],Table_PI[[#This Row],[Input 2]],Table_PI[[#This Row],[Input 3]],Table_PI[[#This Row],[Input 4]],'Customer Information'!$AR$12,8,ROW()),\"No Rebate\"),\"No Rebate\"),0)","v":0},{"$f":"IF(Table_PI[[#This Row],[Hide:\nFormula Name]]<>\"\",IF(AND(Table_PI[[#This Row],[Hide:\nFormula Name]]<>\"\",OR(Table_PI[[#This Row],[Rebate]]>0,Table_PI[[#This Row],[Rebate]]=\"No Rebate\")),TRUE,\"MI: Line Item \" & $A263),\"\")","v":""}]
[{"$f":"IF(Table_PI[[#This Row],[Hide:\nFormula Name]]<>\"\",MAX($A$2:A263)+1,\"\")","v":""},null,null,null,null,null,null,null,null,null,null,null,null,null,null,{"$f":"IFERROR(VLOOKUP(Table_PI[[#This Row],[Measure]],'Equipment Lookups'!$C$3:$D$23,2,FALSE),\"\")","v":""},{"$f":"IF(Table_PI[[#This Row],[Hide:\nFormula Name]]<>\"\",IFERROR(IF(MeasureCalc(Table_PI[[#This Row],[Hide:\nFormula Name]],Table_PI[[#This Row],[Quantity]],Table_PI[[#This Row],[List 1]],Table_PI[[#This Row],[List 2]],Table_PI[[#This Row],[List 3]],Table_PI[[#This Row],[Size]],Table_PI[[#This Row],[Input 1]],Table_PI[[#This Row],[Input 2]],Table_PI[[#This Row],[Input 3]],Table_PI[[#This Row],[Input 4]],'Customer Information'!$AR$12,1,ROW())>0,MeasureCalc(Table_PI[[#This Row],[Hide:\nFormula Name]],Table_PI[[#This Row],[Quantity]],Table_PI[[#This Row],[List 1]],Table_PI[[#This Row],[List 2]],Table_PI[[#This Row],[List 3]],Table_PI[[#This Row],[Size]],Table_PI[[#This Row],[Input 1]],Table_PI[[#This Row],[Input 2]],Table_PI[[#This Row],[Input 3]],Table_PI[[#This Row],[Input 4]],'Customer Information'!$AR$12,1,ROW()),\"No Rebate\"),\"No Rebate\"),0)","v":0},{"$f":"IF(Table_PI[[#This Row],[Hide:\nFormula Name]]<>\"\",IFERROR(IF(MeasureCalc(Table_PI[[#This Row],[Hide:\nFormula Name]],Table_PI[[#This Row],[Quantity]],Table_PI[[#This Row],[List 1]],Table_PI[[#This Row],[List 2]],Table_PI[[#This Row],[List 3]],Table_PI[[#This Row],[Size]],Table_PI[[#This Row],[Input 1]],Table_PI[[#This Row],[Input 2]],Table_PI[[#This Row],[Input 3]],Table_PI[[#This Row],[Input 4]],'Customer Information'!$AR$12,1,ROW())>0,MeasureCalc(Table_PI[[#This Row],[Hide:\nFormula Name]],Table_PI[[#This Row],[Quantity]],Table_PI[[#This Row],[List 1]],Table_PI[[#This Row],[List 2]],Table_PI[[#This Row],[List 3]],Table_PI[[#This Row],[Size]],Table_PI[[#This Row],[Input 1]],Table_PI[[#This Row],[Input 2]],Table_PI[[#This Row],[Input 3]],Table_PI[[#This Row],[Input 4]],'Customer Information'!$AR$12,2,ROW()),\"No Rebate\"),\"No Rebate\"),0)","v":0},{"$f":"IF(Table_PI[[#This Row],[Hide:\nFormula Name]]<>\"\",IFERROR(IF(MeasureCalc(Table_PI[[#This Row],[Hide:\nFormula Name]],Table_PI[[#This Row],[Quantity]],Table_PI[[#This Row],[List 1]],Table_PI[[#This Row],[List 2]],Table_PI[[#This Row],[List 3]],Table_PI[[#This Row],[Size]],Table_PI[[#This Row],[Input 1]],Table_PI[[#This Row],[Input 2]],Table_PI[[#This Row],[Input 3]],Table_PI[[#This Row],[Input 4]],'Customer Information'!$AR$12,1,ROW())>0,MeasureCalc(Table_PI[[#This Row],[Hide:\nFormula Name]],Table_PI[[#This Row],[Quantity]],Table_PI[[#This Row],[List 1]],Table_PI[[#This Row],[List 2]],Table_PI[[#This Row],[List 3]],Table_PI[[#This Row],[Size]],Table_PI[[#This Row],[Input 1]],Table_PI[[#This Row],[Input 2]],Table_PI[[#This Row],[Input 3]],Table_PI[[#This Row],[Input 4]],'Customer Information'!$AR$12,3,ROW()),\"No Rebate\"),\"No Rebate\"),0)","v":0},{"$f":"IF(Table_PI[[#This Row],[Hide:\nFormula Name]]<>\"\",IFERROR(IF(MeasureCalc(Table_PI[[#This Row],[Hide:\nFormula Name]],Table_PI[[#This Row],[Quantity]],Table_PI[[#This Row],[List 1]],Table_PI[[#This Row],[List 2]],Table_PI[[#This Row],[List 3]],Table_PI[[#This Row],[Size]],Table_PI[[#This Row],[Input 1]],Table_PI[[#This Row],[Input 2]],Table_PI[[#This Row],[Input 3]],Table_PI[[#This Row],[Input 4]],'Customer Information'!$AR$12,1,ROW())>0,MeasureCalc(Table_PI[[#This Row],[Hide:\nFormula Name]],Table_PI[[#This Row],[Quantity]],Table_PI[[#This Row],[List 1]],Table_PI[[#This Row],[List 2]],Table_PI[[#This Row],[List 3]],Table_PI[[#This Row],[Size]],Table_PI[[#This Row],[Input 1]],Table_PI[[#This Row],[Input 2]],Table_PI[[#This Row],[Input 3]],Table_PI[[#This Row],[Input 4]],'Customer Information'!$AR$12,4,ROW()),\"No Rebate\"),\"No Rebate\"),0)","v":0},{"$f":"IF(Table_PI[[#This Row],[Hide:\nFormula Name]]<>\"\",IFERROR(IF(MeasureCalc(Table_PI[[#This Row],[Hide:\nFormula Name]],Table_PI[[#This Row],[Quantity]],Table_PI[[#This Row],[List 1]],Table_PI[[#This Row],[List 2]],Table_PI[[#This Row],[List 3]],Table_PI[[#This Row],[Size]],Table_PI[[#This Row],[Input 1]],Table_PI[[#This Row],[Input 2]],Table_PI[[#This Row],[Input 3]],Table_PI[[#This Row],[Input 4]],'Customer Information'!$AR$12,1,ROW())>0,MeasureCalc(Table_PI[[#This Row],[Hide:\nFormula Name]],Table_PI[[#This Row],[Quantity]],Table_PI[[#This Row],[List 1]],Table_PI[[#This Row],[List 2]],Table_PI[[#This Row],[List 3]],Table_PI[[#This Row],[Size]],Table_PI[[#This Row],[Input 1]],Table_PI[[#This Row],[Input 2]],Table_PI[[#This Row],[Input 3]],Table_PI[[#This Row],[Input 4]],'Customer Information'!$AR$12,5,ROW()),\"No Rebate\"),\"No Rebate\"),0)","v":0},{"$f":"IF(Table_PI[[#This Row],[Hide:\nFormula Name]]<>\"\",IFERROR(IF(MeasureCalc(Table_PI[[#This Row],[Hide:\nFormula Name]],Table_PI[[#This Row],[Quantity]],Table_PI[[#This Row],[List 1]],Table_PI[[#This Row],[List 2]],Table_PI[[#This Row],[List 3]],Table_PI[[#This Row],[Size]],Table_PI[[#This Row],[Input 1]],Table_PI[[#This Row],[Input 2]],Table_PI[[#This Row],[Input 3]],Table_PI[[#This Row],[Input 4]],'Customer Information'!$AR$12,1,ROW())>0,MeasureCalc(Table_PI[[#This Row],[Hide:\nFormula Name]],Table_PI[[#This Row],[Quantity]],Table_PI[[#This Row],[List 1]],Table_PI[[#This Row],[List 2]],Table_PI[[#This Row],[List 3]],Table_PI[[#This Row],[Size]],Table_PI[[#This Row],[Input 1]],Table_PI[[#This Row],[Input 2]],Table_PI[[#This Row],[Input 3]],Table_PI[[#This Row],[Input 4]],'Customer Information'!$AR$12,6,ROW()),\"No Rebate\"),\"No Rebate\"),0)","v":0},{"$f":"IF(Table_PI[[#This Row],[Hide:\nFormula Name]]<>\"\",IFERROR(IF(MeasureCalc(Table_PI[[#This Row],[Hide:\nFormula Name]],Table_PI[[#This Row],[Quantity]],Table_PI[[#This Row],[List 1]],Table_PI[[#This Row],[List 2]],Table_PI[[#This Row],[List 3]],Table_PI[[#This Row],[Size]],Table_PI[[#This Row],[Input 1]],Table_PI[[#This Row],[Input 2]],Table_PI[[#This Row],[Input 3]],Table_PI[[#This Row],[Input 4]],'Customer Information'!$AR$12,1,ROW())>0,MeasureCalc(Table_PI[[#This Row],[Hide:\nFormula Name]],Table_PI[[#This Row],[Quantity]],Table_PI[[#This Row],[List 1]],Table_PI[[#This Row],[List 2]],Table_PI[[#This Row],[List 3]],Table_PI[[#This Row],[Size]],Table_PI[[#This Row],[Input 1]],Table_PI[[#This Row],[Input 2]],Table_PI[[#This Row],[Input 3]],Table_PI[[#This Row],[Input 4]],'Customer Information'!$AR$12,7,ROW()),\"No Rebate\"),\"No Rebate\"),0)","v":0},{"$f":"IF(Table_PI[[#This Row],[Hide:\nFormula Name]]<>\"\",IFERROR(IF(MeasureCalc(Table_PI[[#This Row],[Hide:\nFormula Name]],Table_PI[[#This Row],[Quantity]],Table_PI[[#This Row],[List 1]],Table_PI[[#This Row],[List 2]],Table_PI[[#This Row],[List 3]],Table_PI[[#This Row],[Size]],Table_PI[[#This Row],[Input 1]],Table_PI[[#This Row],[Input 2]],Table_PI[[#This Row],[Input 3]],Table_PI[[#This Row],[Input 4]],'Customer Information'!$AR$12,1,ROW())>0,MeasureCalc(Table_PI[[#This Row],[Hide:\nFormula Name]],Table_PI[[#This Row],[Quantity]],Table_PI[[#This Row],[List 1]],Table_PI[[#This Row],[List 2]],Table_PI[[#This Row],[List 3]],Table_PI[[#This Row],[Size]],Table_PI[[#This Row],[Input 1]],Table_PI[[#This Row],[Input 2]],Table_PI[[#This Row],[Input 3]],Table_PI[[#This Row],[Input 4]],'Customer Information'!$AR$12,8,ROW()),\"No Rebate\"),\"No Rebate\"),0)","v":0},{"$f":"IF(Table_PI[[#This Row],[Hide:\nFormula Name]]<>\"\",IF(AND(Table_PI[[#This Row],[Hide:\nFormula Name]]<>\"\",OR(Table_PI[[#This Row],[Rebate]]>0,Table_PI[[#This Row],[Rebate]]=\"No Rebate\")),TRUE,\"MI: Line Item \" & $A264),\"\")","v":""}]
[{"$f":"IF(Table_PI[[#This Row],[Hide:\nFormula Name]]<>\"\",MAX($A$2:A264)+1,\"\")","v":""},null,null,null,null,null,null,null,null,null,null,null,null,null,null,{"$f":"IFERROR(VLOOKUP(Table_PI[[#This Row],[Measure]],'Equipment Lookups'!$C$3:$D$23,2,FALSE),\"\")","v":""},{"$f":"IF(Table_PI[[#This Row],[Hide:\nFormula Name]]<>\"\",IFERROR(IF(MeasureCalc(Table_PI[[#This Row],[Hide:\nFormula Name]],Table_PI[[#This Row],[Quantity]],Table_PI[[#This Row],[List 1]],Table_PI[[#This Row],[List 2]],Table_PI[[#This Row],[List 3]],Table_PI[[#This Row],[Size]],Table_PI[[#This Row],[Input 1]],Table_PI[[#This Row],[Input 2]],Table_PI[[#This Row],[Input 3]],Table_PI[[#This Row],[Input 4]],'Customer Information'!$AR$12,1,ROW())>0,MeasureCalc(Table_PI[[#This Row],[Hide:\nFormula Name]],Table_PI[[#This Row],[Quantity]],Table_PI[[#This Row],[List 1]],Table_PI[[#This Row],[List 2]],Table_PI[[#This Row],[List 3]],Table_PI[[#This Row],[Size]],Table_PI[[#This Row],[Input 1]],Table_PI[[#This Row],[Input 2]],Table_PI[[#This Row],[Input 3]],Table_PI[[#This Row],[Input 4]],'Customer Information'!$AR$12,1,ROW()),\"No Rebate\"),\"No Rebate\"),0)","v":0},{"$f":"IF(Table_PI[[#This Row],[Hide:\nFormula Name]]<>\"\",IFERROR(IF(MeasureCalc(Table_PI[[#This Row],[Hide:\nFormula Name]],Table_PI[[#This Row],[Quantity]],Table_PI[[#This Row],[List 1]],Table_PI[[#This Row],[List 2]],Table_PI[[#This Row],[List 3]],Table_PI[[#This Row],[Size]],Table_PI[[#This Row],[Input 1]],Table_PI[[#This Row],[Input 2]],Table_PI[[#This Row],[Input 3]],Table_PI[[#This Row],[Input 4]],'Customer Information'!$AR$12,1,ROW())>0,MeasureCalc(Table_PI[[#This Row],[Hide:\nFormula Name]],Table_PI[[#This Row],[Quantity]],Table_PI[[#This Row],[List 1]],Table_PI[[#This Row],[List 2]],Table_PI[[#This Row],[List 3]],Table_PI[[#This Row],[Size]],Table_PI[[#This Row],[Input 1]],Table_PI[[#This Row],[Input 2]],Table_PI[[#This Row],[Input 3]],Table_PI[[#This Row],[Input 4]],'Customer Information'!$AR$12,2,ROW()),\"No Rebate\"),\"No Rebate\"),0)","v":0},{"$f":"IF(Table_PI[[#This Row],[Hide:\nFormula Name]]<>\"\",IFERROR(IF(MeasureCalc(Table_PI[[#This Row],[Hide:\nFormula Name]],Table_PI[[#This Row],[Quantity]],Table_PI[[#This Row],[List 1]],Table_PI[[#This Row],[List 2]],Table_PI[[#This Row],[List 3]],Table_PI[[#This Row],[Size]],Table_PI[[#This Row],[Input 1]],Table_PI[[#This Row],[Input 2]],Table_PI[[#This Row],[Input 3]],Table_PI[[#This Row],[Input 4]],'Customer Information'!$AR$12,1,ROW())>0,MeasureCalc(Table_PI[[#This Row],[Hide:\nFormula Name]],Table_PI[[#This Row],[Quantity]],Table_PI[[#This Row],[List 1]],Table_PI[[#This Row],[List 2]],Table_PI[[#This Row],[List 3]],Table_PI[[#This Row],[Size]],Table_PI[[#This Row],[Input 1]],Table_PI[[#This Row],[Input 2]],Table_PI[[#This Row],[Input 3]],Table_PI[[#This Row],[Input 4]],'Customer Information'!$AR$12,3,ROW()),\"No Rebate\"),\"No Rebate\"),0)","v":0},{"$f":"IF(Table_PI[[#This Row],[Hide:\nFormula Name]]<>\"\",IFERROR(IF(MeasureCalc(Table_PI[[#This Row],[Hide:\nFormula Name]],Table_PI[[#This Row],[Quantity]],Table_PI[[#This Row],[List 1]],Table_PI[[#This Row],[List 2]],Table_PI[[#This Row],[List 3]],Table_PI[[#This Row],[Size]],Table_PI[[#This Row],[Input 1]],Table_PI[[#This Row],[Input 2]],Table_PI[[#This Row],[Input 3]],Table_PI[[#This Row],[Input 4]],'Customer Information'!$AR$12,1,ROW())>0,MeasureCalc(Table_PI[[#This Row],[Hide:\nFormula Name]],Table_PI[[#This Row],[Quantity]],Table_PI[[#This Row],[List 1]],Table_PI[[#This Row],[List 2]],Table_PI[[#This Row],[List 3]],Table_PI[[#This Row],[Size]],Table_PI[[#This Row],[Input 1]],Table_PI[[#This Row],[Input 2]],Table_PI[[#This Row],[Input 3]],Table_PI[[#This Row],[Input 4]],'Customer Information'!$AR$12,4,ROW()),\"No Rebate\"),\"No Rebate\"),0)","v":0},{"$f":"IF(Table_PI[[#This Row],[Hide:\nFormula Name]]<>\"\",IFERROR(IF(MeasureCalc(Table_PI[[#This Row],[Hide:\nFormula Name]],Table_PI[[#This Row],[Quantity]],Table_PI[[#This Row],[List 1]],Table_PI[[#This Row],[List 2]],Table_PI[[#This Row],[List 3]],Table_PI[[#This Row],[Size]],Table_PI[[#This Row],[Input 1]],Table_PI[[#This Row],[Input 2]],Table_PI[[#This Row],[Input 3]],Table_PI[[#This Row],[Input 4]],'Customer Information'!$AR$12,1,ROW())>0,MeasureCalc(Table_PI[[#This Row],[Hide:\nFormula Name]],Table_PI[[#This Row],[Quantity]],Table_PI[[#This Row],[List 1]],Table_PI[[#This Row],[List 2]],Table_PI[[#This Row],[List 3]],Table_PI[[#This Row],[Size]],Table_PI[[#This Row],[Input 1]],Table_PI[[#This Row],[Input 2]],Table_PI[[#This Row],[Input 3]],Table_PI[[#This Row],[Input 4]],'Customer Information'!$AR$12,5,ROW()),\"No Rebate\"),\"No Rebate\"),0)","v":0},{"$f":"IF(Table_PI[[#This Row],[Hide:\nFormula Name]]<>\"\",IFERROR(IF(MeasureCalc(Table_PI[[#This Row],[Hide:\nFormula Name]],Table_PI[[#This Row],[Quantity]],Table_PI[[#This Row],[List 1]],Table_PI[[#This Row],[List 2]],Table_PI[[#This Row],[List 3]],Table_PI[[#This Row],[Size]],Table_PI[[#This Row],[Input 1]],Table_PI[[#This Row],[Input 2]],Table_PI[[#This Row],[Input 3]],Table_PI[[#This Row],[Input 4]],'Customer Information'!$AR$12,1,ROW())>0,MeasureCalc(Table_PI[[#This Row],[Hide:\nFormula Name]],Table_PI[[#This Row],[Quantity]],Table_PI[[#This Row],[List 1]],Table_PI[[#This Row],[List 2]],Table_PI[[#This Row],[List 3]],Table_PI[[#This Row],[Size]],Table_PI[[#This Row],[Input 1]],Table_PI[[#This Row],[Input 2]],Table_PI[[#This Row],[Input 3]],Table_PI[[#This Row],[Input 4]],'Customer Information'!$AR$12,6,ROW()),\"No Rebate\"),\"No Rebate\"),0)","v":0},{"$f":"IF(Table_PI[[#This Row],[Hide:\nFormula Name]]<>\"\",IFERROR(IF(MeasureCalc(Table_PI[[#This Row],[Hide:\nFormula Name]],Table_PI[[#This Row],[Quantity]],Table_PI[[#This Row],[List 1]],Table_PI[[#This Row],[List 2]],Table_PI[[#This Row],[List 3]],Table_PI[[#This Row],[Size]],Table_PI[[#This Row],[Input 1]],Table_PI[[#This Row],[Input 2]],Table_PI[[#This Row],[Input 3]],Table_PI[[#This Row],[Input 4]],'Customer Information'!$AR$12,1,ROW())>0,MeasureCalc(Table_PI[[#This Row],[Hide:\nFormula Name]],Table_PI[[#This Row],[Quantity]],Table_PI[[#This Row],[List 1]],Table_PI[[#This Row],[List 2]],Table_PI[[#This Row],[List 3]],Table_PI[[#This Row],[Size]],Table_PI[[#This Row],[Input 1]],Table_PI[[#This Row],[Input 2]],Table_PI[[#This Row],[Input 3]],Table_PI[[#This Row],[Input 4]],'Customer Information'!$AR$12,7,ROW()),\"No Rebate\"),\"No Rebate\"),0)","v":0},{"$f":"IF(Table_PI[[#This Row],[Hide:\nFormula Name]]<>\"\",IFERROR(IF(MeasureCalc(Table_PI[[#This Row],[Hide:\nFormula Name]],Table_PI[[#This Row],[Quantity]],Table_PI[[#This Row],[List 1]],Table_PI[[#This Row],[List 2]],Table_PI[[#This Row],[List 3]],Table_PI[[#This Row],[Size]],Table_PI[[#This Row],[Input 1]],Table_PI[[#This Row],[Input 2]],Table_PI[[#This Row],[Input 3]],Table_PI[[#This Row],[Input 4]],'Customer Information'!$AR$12,1,ROW())>0,MeasureCalc(Table_PI[[#This Row],[Hide:\nFormula Name]],Table_PI[[#This Row],[Quantity]],Table_PI[[#This Row],[List 1]],Table_PI[[#This Row],[List 2]],Table_PI[[#This Row],[List 3]],Table_PI[[#This Row],[Size]],Table_PI[[#This Row],[Input 1]],Table_PI[[#This Row],[Input 2]],Table_PI[[#This Row],[Input 3]],Table_PI[[#This Row],[Input 4]],'Customer Information'!$AR$12,8,ROW()),\"No Rebate\"),\"No Rebate\"),0)","v":0},{"$f":"IF(Table_PI[[#This Row],[Hide:\nFormula Name]]<>\"\",IF(AND(Table_PI[[#This Row],[Hide:\nFormula Name]]<>\"\",OR(Table_PI[[#This Row],[Rebate]]>0,Table_PI[[#This Row],[Rebate]]=\"No Rebate\")),TRUE,\"MI: Line Item \" & $A265),\"\")","v":""}]
[{"$f":"IF(Table_PI[[#This Row],[Hide:\nFormula Name]]<>\"\",MAX($A$2:A265)+1,\"\")","v":""},null,null,null,null,null,null,null,null,null,null,null,null,null,null,{"$f":"IFERROR(VLOOKUP(Table_PI[[#This Row],[Measure]],'Equipment Lookups'!$C$3:$D$23,2,FALSE),\"\")","v":""},{"$f":"IF(Table_PI[[#This Row],[Hide:\nFormula Name]]<>\"\",IFERROR(IF(MeasureCalc(Table_PI[[#This Row],[Hide:\nFormula Name]],Table_PI[[#This Row],[Quantity]],Table_PI[[#This Row],[List 1]],Table_PI[[#This Row],[List 2]],Table_PI[[#This Row],[List 3]],Table_PI[[#This Row],[Size]],Table_PI[[#This Row],[Input 1]],Table_PI[[#This Row],[Input 2]],Table_PI[[#This Row],[Input 3]],Table_PI[[#This Row],[Input 4]],'Customer Information'!$AR$12,1,ROW())>0,MeasureCalc(Table_PI[[#This Row],[Hide:\nFormula Name]],Table_PI[[#This Row],[Quantity]],Table_PI[[#This Row],[List 1]],Table_PI[[#This Row],[List 2]],Table_PI[[#This Row],[List 3]],Table_PI[[#This Row],[Size]],Table_PI[[#This Row],[Input 1]],Table_PI[[#This Row],[Input 2]],Table_PI[[#This Row],[Input 3]],Table_PI[[#This Row],[Input 4]],'Customer Information'!$AR$12,1,ROW()),\"No Rebate\"),\"No Rebate\"),0)","v":0},{"$f":"IF(Table_PI[[#This Row],[Hide:\nFormula Name]]<>\"\",IFERROR(IF(MeasureCalc(Table_PI[[#This Row],[Hide:\nFormula Name]],Table_PI[[#This Row],[Quantity]],Table_PI[[#This Row],[List 1]],Table_PI[[#This Row],[List 2]],Table_PI[[#This Row],[List 3]],Table_PI[[#This Row],[Size]],Table_PI[[#This Row],[Input 1]],Table_PI[[#This Row],[Input 2]],Table_PI[[#This Row],[Input 3]],Table_PI[[#This Row],[Input 4]],'Customer Information'!$AR$12,1,ROW())>0,MeasureCalc(Table_PI[[#This Row],[Hide:\nFormula Name]],Table_PI[[#This Row],[Quantity]],Table_PI[[#This Row],[List 1]],Table_PI[[#This Row],[List 2]],Table_PI[[#This Row],[List 3]],Table_PI[[#This Row],[Size]],Table_PI[[#This Row],[Input 1]],Table_PI[[#This Row],[Input 2]],Table_PI[[#This Row],[Input 3]],Table_PI[[#This Row],[Input 4]],'Customer Information'!$AR$12,2,ROW()),\"No Rebate\"),\"No Rebate\"),0)","v":0},{"$f":"IF(Table_PI[[#This Row],[Hide:\nFormula Name]]<>\"\",IFERROR(IF(MeasureCalc(Table_PI[[#This Row],[Hide:\nFormula Name]],Table_PI[[#This Row],[Quantity]],Table_PI[[#This Row],[List 1]],Table_PI[[#This Row],[List 2]],Table_PI[[#This Row],[List 3]],Table_PI[[#This Row],[Size]],Table_PI[[#This Row],[Input 1]],Table_PI[[#This Row],[Input 2]],Table_PI[[#This Row],[Input 3]],Table_PI[[#This Row],[Input 4]],'Customer Information'!$AR$12,1,ROW())>0,MeasureCalc(Table_PI[[#This Row],[Hide:\nFormula Name]],Table_PI[[#This Row],[Quantity]],Table_PI[[#This Row],[List 1]],Table_PI[[#This Row],[List 2]],Table_PI[[#This Row],[List 3]],Table_PI[[#This Row],[Size]],Table_PI[[#This Row],[Input 1]],Table_PI[[#This Row],[Input 2]],Table_PI[[#This Row],[Input 3]],Table_PI[[#This Row],[Input 4]],'Customer Information'!$AR$12,3,ROW()),\"No Rebate\"),\"No Rebate\"),0)","v":0},{"$f":"IF(Table_PI[[#This Row],[Hide:\nFormula Name]]<>\"\",IFERROR(IF(MeasureCalc(Table_PI[[#This Row],[Hide:\nFormula Name]],Table_PI[[#This Row],[Quantity]],Table_PI[[#This Row],[List 1]],Table_PI[[#This Row],[List 2]],Table_PI[[#This Row],[List 3]],Table_PI[[#This Row],[Size]],Table_PI[[#This Row],[Input 1]],Table_PI[[#This Row],[Input 2]],Table_PI[[#This Row],[Input 3]],Table_PI[[#This Row],[Input 4]],'Customer Information'!$AR$12,1,ROW())>0,MeasureCalc(Table_PI[[#This Row],[Hide:\nFormula Name]],Table_PI[[#This Row],[Quantity]],Table_PI[[#This Row],[List 1]],Table_PI[[#This Row],[List 2]],Table_PI[[#This Row],[List 3]],Table_PI[[#This Row],[Size]],Table_PI[[#This Row],[Input 1]],Table_PI[[#This Row],[Input 2]],Table_PI[[#This Row],[Input 3]],Table_PI[[#This Row],[Input 4]],'Customer Information'!$AR$12,4,ROW()),\"No Rebate\"),\"No Rebate\"),0)","v":0},{"$f":"IF(Table_PI[[#This Row],[Hide:\nFormula Name]]<>\"\",IFERROR(IF(MeasureCalc(Table_PI[[#This Row],[Hide:\nFormula Name]],Table_PI[[#This Row],[Quantity]],Table_PI[[#This Row],[List 1]],Table_PI[[#This Row],[List 2]],Table_PI[[#This Row],[List 3]],Table_PI[[#This Row],[Size]],Table_PI[[#This Row],[Input 1]],Table_PI[[#This Row],[Input 2]],Table_PI[[#This Row],[Input 3]],Table_PI[[#This Row],[Input 4]],'Customer Information'!$AR$12,1,ROW())>0,MeasureCalc(Table_PI[[#This Row],[Hide:\nFormula Name]],Table_PI[[#This Row],[Quantity]],Table_PI[[#This Row],[List 1]],Table_PI[[#This Row],[List 2]],Table_PI[[#This Row],[List 3]],Table_PI[[#This Row],[Size]],Table_PI[[#This Row],[Input 1]],Table_PI[[#This Row],[Input 2]],Table_PI[[#This Row],[Input 3]],Table_PI[[#This Row],[Input 4]],'Customer Information'!$AR$12,5,ROW()),\"No Rebate\"),\"No Rebate\"),0)","v":0},{"$f":"IF(Table_PI[[#This Row],[Hide:\nFormula Name]]<>\"\",IFERROR(IF(MeasureCalc(Table_PI[[#This Row],[Hide:\nFormula Name]],Table_PI[[#This Row],[Quantity]],Table_PI[[#This Row],[List 1]],Table_PI[[#This Row],[List 2]],Table_PI[[#This Row],[List 3]],Table_PI[[#This Row],[Size]],Table_PI[[#This Row],[Input 1]],Table_PI[[#This Row],[Input 2]],Table_PI[[#This Row],[Input 3]],Table_PI[[#This Row],[Input 4]],'Customer Information'!$AR$12,1,ROW())>0,MeasureCalc(Table_PI[[#This Row],[Hide:\nFormula Name]],Table_PI[[#This Row],[Quantity]],Table_PI[[#This Row],[List 1]],Table_PI[[#This Row],[List 2]],Table_PI[[#This Row],[List 3]],Table_PI[[#This Row],[Size]],Table_PI[[#This Row],[Input 1]],Table_PI[[#This Row],[Input 2]],Table_PI[[#This Row],[Input 3]],Table_PI[[#This Row],[Input 4]],'Customer Information'!$AR$12,6,ROW()),\"No Rebate\"),\"No Rebate\"),0)","v":0},{"$f":"IF(Table_PI[[#This Row],[Hide:\nFormula Name]]<>\"\",IFERROR(IF(MeasureCalc(Table_PI[[#This Row],[Hide:\nFormula Name]],Table_PI[[#This Row],[Quantity]],Table_PI[[#This Row],[List 1]],Table_PI[[#This Row],[List 2]],Table_PI[[#This Row],[List 3]],Table_PI[[#This Row],[Size]],Table_PI[[#This Row],[Input 1]],Table_PI[[#This Row],[Input 2]],Table_PI[[#This Row],[Input 3]],Table_PI[[#This Row],[Input 4]],'Customer Information'!$AR$12,1,ROW())>0,MeasureCalc(Table_PI[[#This Row],[Hide:\nFormula Name]],Table_PI[[#This Row],[Quantity]],Table_PI[[#This Row],[List 1]],Table_PI[[#This Row],[List 2]],Table_PI[[#This Row],[List 3]],Table_PI[[#This Row],[Size]],Table_PI[[#This Row],[Input 1]],Table_PI[[#This Row],[Input 2]],Table_PI[[#This Row],[Input 3]],Table_PI[[#This Row],[Input 4]],'Customer Information'!$AR$12,7,ROW()),\"No Rebate\"),\"No Rebate\"),0)","v":0},{"$f":"IF(Table_PI[[#This Row],[Hide:\nFormula Name]]<>\"\",IFERROR(IF(MeasureCalc(Table_PI[[#This Row],[Hide:\nFormula Name]],Table_PI[[#This Row],[Quantity]],Table_PI[[#This Row],[List 1]],Table_PI[[#This Row],[List 2]],Table_PI[[#This Row],[List 3]],Table_PI[[#This Row],[Size]],Table_PI[[#This Row],[Input 1]],Table_PI[[#This Row],[Input 2]],Table_PI[[#This Row],[Input 3]],Table_PI[[#This Row],[Input 4]],'Customer Information'!$AR$12,1,ROW())>0,MeasureCalc(Table_PI[[#This Row],[Hide:\nFormula Name]],Table_PI[[#This Row],[Quantity]],Table_PI[[#This Row],[List 1]],Table_PI[[#This Row],[List 2]],Table_PI[[#This Row],[List 3]],Table_PI[[#This Row],[Size]],Table_PI[[#This Row],[Input 1]],Table_PI[[#This Row],[Input 2]],Table_PI[[#This Row],[Input 3]],Table_PI[[#This Row],[Input 4]],'Customer Information'!$AR$12,8,ROW()),\"No Rebate\"),\"No Rebate\"),0)","v":0},{"$f":"IF(Table_PI[[#This Row],[Hide:\nFormula Name]]<>\"\",IF(AND(Table_PI[[#This Row],[Hide:\nFormula Name]]<>\"\",OR(Table_PI[[#This Row],[Rebate]]>0,Table_PI[[#This Row],[Rebate]]=\"No Rebate\")),TRUE,\"MI: Line Item \" & $A266),\"\")","v":""}]
[{"$f":"IF(Table_PI[[#This Row],[Hide:\nFormula Name]]<>\"\",MAX($A$2:A266)+1,\"\")","v":""},null,null,null,null,null,null,null,null,null,null,null,null,null,null,{"$f":"IFERROR(VLOOKUP(Table_PI[[#This Row],[Measure]],'Equipment Lookups'!$C$3:$D$23,2,FALSE),\"\")","v":""},{"$f":"IF(Table_PI[[#This Row],[Hide:\nFormula Name]]<>\"\",IFERROR(IF(MeasureCalc(Table_PI[[#This Row],[Hide:\nFormula Name]],Table_PI[[#This Row],[Quantity]],Table_PI[[#This Row],[List 1]],Table_PI[[#This Row],[List 2]],Table_PI[[#This Row],[List 3]],Table_PI[[#This Row],[Size]],Table_PI[[#This Row],[Input 1]],Table_PI[[#This Row],[Input 2]],Table_PI[[#This Row],[Input 3]],Table_PI[[#This Row],[Input 4]],'Customer Information'!$AR$12,1,ROW())>0,MeasureCalc(Table_PI[[#This Row],[Hide:\nFormula Name]],Table_PI[[#This Row],[Quantity]],Table_PI[[#This Row],[List 1]],Table_PI[[#This Row],[List 2]],Table_PI[[#This Row],[List 3]],Table_PI[[#This Row],[Size]],Table_PI[[#This Row],[Input 1]],Table_PI[[#This Row],[Input 2]],Table_PI[[#This Row],[Input 3]],Table_PI[[#This Row],[Input 4]],'Customer Information'!$AR$12,1,ROW()),\"No Rebate\"),\"No Rebate\"),0)","v":0},{"$f":"IF(Table_PI[[#This Row],[Hide:\nFormula Name]]<>\"\",IFERROR(IF(MeasureCalc(Table_PI[[#This Row],[Hide:\nFormula Name]],Table_PI[[#This Row],[Quantity]],Table_PI[[#This Row],[List 1]],Table_PI[[#This Row],[List 2]],Table_PI[[#This Row],[List 3]],Table_PI[[#This Row],[Size]],Table_PI[[#This Row],[Input 1]],Table_PI[[#This Row],[Input 2]],Table_PI[[#This Row],[Input 3]],Table_PI[[#This Row],[Input 4]],'Customer Information'!$AR$12,1,ROW())>0,MeasureCalc(Table_PI[[#This Row],[Hide:\nFormula Name]],Table_PI[[#This Row],[Quantity]],Table_PI[[#This Row],[List 1]],Table_PI[[#This Row],[List 2]],Table_PI[[#This Row],[List 3]],Table_PI[[#This Row],[Size]],Table_PI[[#This Row],[Input 1]],Table_PI[[#This Row],[Input 2]],Table_PI[[#This Row],[Input 3]],Table_PI[[#This Row],[Input 4]],'Customer Information'!$AR$12,2,ROW()),\"No Rebate\"),\"No Rebate\"),0)","v":0},{"$f":"IF(Table_PI[[#This Row],[Hide:\nFormula Name]]<>\"\",IFERROR(IF(MeasureCalc(Table_PI[[#This Row],[Hide:\nFormula Name]],Table_PI[[#This Row],[Quantity]],Table_PI[[#This Row],[List 1]],Table_PI[[#This Row],[List 2]],Table_PI[[#This Row],[List 3]],Table_PI[[#This Row],[Size]],Table_PI[[#This Row],[Input 1]],Table_PI[[#This Row],[Input 2]],Table_PI[[#This Row],[Input 3]],Table_PI[[#This Row],[Input 4]],'Customer Information'!$AR$12,1,ROW())>0,MeasureCalc(Table_PI[[#This Row],[Hide:\nFormula Name]],Table_PI[[#This Row],[Quantity]],Table_PI[[#This Row],[List 1]],Table_PI[[#This Row],[List 2]],Table_PI[[#This Row],[List 3]],Table_PI[[#This Row],[Size]],Table_PI[[#This Row],[Input 1]],Table_PI[[#This Row],[Input 2]],Table_PI[[#This Row],[Input 3]],Table_PI[[#This Row],[Input 4]],'Customer Information'!$AR$12,3,ROW()),\"No Rebate\"),\"No Rebate\"),0)","v":0},{"$f":"IF(Table_PI[[#This Row],[Hide:\nFormula Name]]<>\"\",IFERROR(IF(MeasureCalc(Table_PI[[#This Row],[Hide:\nFormula Name]],Table_PI[[#This Row],[Quantity]],Table_PI[[#This Row],[List 1]],Table_PI[[#This Row],[List 2]],Table_PI[[#This Row],[List 3]],Table_PI[[#This Row],[Size]],Table_PI[[#This Row],[Input 1]],Table_PI[[#This Row],[Input 2]],Table_PI[[#This Row],[Input 3]],Table_PI[[#This Row],[Input 4]],'Customer Information'!$AR$12,1,ROW())>0,MeasureCalc(Table_PI[[#This Row],[Hide:\nFormula Name]],Table_PI[[#This Row],[Quantity]],Table_PI[[#This Row],[List 1]],Table_PI[[#This Row],[List 2]],Table_PI[[#This Row],[List 3]],Table_PI[[#This Row],[Size]],Table_PI[[#This Row],[Input 1]],Table_PI[[#This Row],[Input 2]],Table_PI[[#This Row],[Input 3]],Table_PI[[#This Row],[Input 4]],'Customer Information'!$AR$12,4,ROW()),\"No Rebate\"),\"No Rebate\"),0)","v":0},{"$f":"IF(Table_PI[[#This Row],[Hide:\nFormula Name]]<>\"\",IFERROR(IF(MeasureCalc(Table_PI[[#This Row],[Hide:\nFormula Name]],Table_PI[[#This Row],[Quantity]],Table_PI[[#This Row],[List 1]],Table_PI[[#This Row],[List 2]],Table_PI[[#This Row],[List 3]],Table_PI[[#This Row],[Size]],Table_PI[[#This Row],[Input 1]],Table_PI[[#This Row],[Input 2]],Table_PI[[#This Row],[Input 3]],Table_PI[[#This Row],[Input 4]],'Customer Information'!$AR$12,1,ROW())>0,MeasureCalc(Table_PI[[#This Row],[Hide:\nFormula Name]],Table_PI[[#This Row],[Quantity]],Table_PI[[#This Row],[List 1]],Table_PI[[#This Row],[List 2]],Table_PI[[#This Row],[List 3]],Table_PI[[#This Row],[Size]],Table_PI[[#This Row],[Input 1]],Table_PI[[#This Row],[Input 2]],Table_PI[[#This Row],[Input 3]],Table_PI[[#This Row],[Input 4]],'Customer Information'!$AR$12,5,ROW()),\"No Rebate\"),\"No Rebate\"),0)","v":0},{"$f":"IF(Table_PI[[#This Row],[Hide:\nFormula Name]]<>\"\",IFERROR(IF(MeasureCalc(Table_PI[[#This Row],[Hide:\nFormula Name]],Table_PI[[#This Row],[Quantity]],Table_PI[[#This Row],[List 1]],Table_PI[[#This Row],[List 2]],Table_PI[[#This Row],[List 3]],Table_PI[[#This Row],[Size]],Table_PI[[#This Row],[Input 1]],Table_PI[[#This Row],[Input 2]],Table_PI[[#This Row],[Input 3]],Table_PI[[#This Row],[Input 4]],'Customer Information'!$AR$12,1,ROW())>0,MeasureCalc(Table_PI[[#This Row],[Hide:\nFormula Name]],Table_PI[[#This Row],[Quantity]],Table_PI[[#This Row],[List 1]],Table_PI[[#This Row],[List 2]],Table_PI[[#This Row],[List 3]],Table_PI[[#This Row],[Size]],Table_PI[[#This Row],[Input 1]],Table_PI[[#This Row],[Input 2]],Table_PI[[#This Row],[Input 3]],Table_PI[[#This Row],[Input 4]],'Customer Information'!$AR$12,6,ROW()),\"No Rebate\"),\"No Rebate\"),0)","v":0},{"$f":"IF(Table_PI[[#This Row],[Hide:\nFormula Name]]<>\"\",IFERROR(IF(MeasureCalc(Table_PI[[#This Row],[Hide:\nFormula Name]],Table_PI[[#This Row],[Quantity]],Table_PI[[#This Row],[List 1]],Table_PI[[#This Row],[List 2]],Table_PI[[#This Row],[List 3]],Table_PI[[#This Row],[Size]],Table_PI[[#This Row],[Input 1]],Table_PI[[#This Row],[Input 2]],Table_PI[[#This Row],[Input 3]],Table_PI[[#This Row],[Input 4]],'Customer Information'!$AR$12,1,ROW())>0,MeasureCalc(Table_PI[[#This Row],[Hide:\nFormula Name]],Table_PI[[#This Row],[Quantity]],Table_PI[[#This Row],[List 1]],Table_PI[[#This Row],[List 2]],Table_PI[[#This Row],[List 3]],Table_PI[[#This Row],[Size]],Table_PI[[#This Row],[Input 1]],Table_PI[[#This Row],[Input 2]],Table_PI[[#This Row],[Input 3]],Table_PI[[#This Row],[Input 4]],'Customer Information'!$AR$12,7,ROW()),\"No Rebate\"),\"No Rebate\"),0)","v":0},{"$f":"IF(Table_PI[[#This Row],[Hide:\nFormula Name]]<>\"\",IFERROR(IF(MeasureCalc(Table_PI[[#This Row],[Hide:\nFormula Name]],Table_PI[[#This Row],[Quantity]],Table_PI[[#This Row],[List 1]],Table_PI[[#This Row],[List 2]],Table_PI[[#This Row],[List 3]],Table_PI[[#This Row],[Size]],Table_PI[[#This Row],[Input 1]],Table_PI[[#This Row],[Input 2]],Table_PI[[#This Row],[Input 3]],Table_PI[[#This Row],[Input 4]],'Customer Information'!$AR$12,1,ROW())>0,MeasureCalc(Table_PI[[#This Row],[Hide:\nFormula Name]],Table_PI[[#This Row],[Quantity]],Table_PI[[#This Row],[List 1]],Table_PI[[#This Row],[List 2]],Table_PI[[#This Row],[List 3]],Table_PI[[#This Row],[Size]],Table_PI[[#This Row],[Input 1]],Table_PI[[#This Row],[Input 2]],Table_PI[[#This Row],[Input 3]],Table_PI[[#This Row],[Input 4]],'Customer Information'!$AR$12,8,ROW()),\"No Rebate\"),\"No Rebate\"),0)","v":0},{"$f":"IF(Table_PI[[#This Row],[Hide:\nFormula Name]]<>\"\",IF(AND(Table_PI[[#This Row],[Hide:\nFormula Name]]<>\"\",OR(Table_PI[[#This Row],[Rebate]]>0,Table_PI[[#This Row],[Rebate]]=\"No Rebate\")),TRUE,\"MI: Line Item \" & $A267),\"\")","v":""}]
[{"$f":"IF(Table_PI[[#This Row],[Hide:\nFormula Name]]<>\"\",MAX($A$2:A267)+1,\"\")","v":""},null,null,null,null,null,null,null,null,null,null,null,null,null,null,{"$f":"IFERROR(VLOOKUP(Table_PI[[#This Row],[Measure]],'Equipment Lookups'!$C$3:$D$23,2,FALSE),\"\")","v":""},{"$f":"IF(Table_PI[[#This Row],[Hide:\nFormula Name]]<>\"\",IFERROR(IF(MeasureCalc(Table_PI[[#This Row],[Hide:\nFormula Name]],Table_PI[[#This Row],[Quantity]],Table_PI[[#This Row],[List 1]],Table_PI[[#This Row],[List 2]],Table_PI[[#This Row],[List 3]],Table_PI[[#This Row],[Size]],Table_PI[[#This Row],[Input 1]],Table_PI[[#This Row],[Input 2]],Table_PI[[#This Row],[Input 3]],Table_PI[[#This Row],[Input 4]],'Customer Information'!$AR$12,1,ROW())>0,MeasureCalc(Table_PI[[#This Row],[Hide:\nFormula Name]],Table_PI[[#This Row],[Quantity]],Table_PI[[#This Row],[List 1]],Table_PI[[#This Row],[List 2]],Table_PI[[#This Row],[List 3]],Table_PI[[#This Row],[Size]],Table_PI[[#This Row],[Input 1]],Table_PI[[#This Row],[Input 2]],Table_PI[[#This Row],[Input 3]],Table_PI[[#This Row],[Input 4]],'Customer Information'!$AR$12,1,ROW()),\"No Rebate\"),\"No Rebate\"),0)","v":0},{"$f":"IF(Table_PI[[#This Row],[Hide:\nFormula Name]]<>\"\",IFERROR(IF(MeasureCalc(Table_PI[[#This Row],[Hide:\nFormula Name]],Table_PI[[#This Row],[Quantity]],Table_PI[[#This Row],[List 1]],Table_PI[[#This Row],[List 2]],Table_PI[[#This Row],[List 3]],Table_PI[[#This Row],[Size]],Table_PI[[#This Row],[Input 1]],Table_PI[[#This Row],[Input 2]],Table_PI[[#This Row],[Input 3]],Table_PI[[#This Row],[Input 4]],'Customer Information'!$AR$12,1,ROW())>0,MeasureCalc(Table_PI[[#This Row],[Hide:\nFormula Name]],Table_PI[[#This Row],[Quantity]],Table_PI[[#This Row],[List 1]],Table_PI[[#This Row],[List 2]],Table_PI[[#This Row],[List 3]],Table_PI[[#This Row],[Size]],Table_PI[[#This Row],[Input 1]],Table_PI[[#This Row],[Input 2]],Table_PI[[#This Row],[Input 3]],Table_PI[[#This Row],[Input 4]],'Customer Information'!$AR$12,2,ROW()),\"No Rebate\"),\"No Rebate\"),0)","v":0},{"$f":"IF(Table_PI[[#This Row],[Hide:\nFormula Name]]<>\"\",IFERROR(IF(MeasureCalc(Table_PI[[#This Row],[Hide:\nFormula Name]],Table_PI[[#This Row],[Quantity]],Table_PI[[#This Row],[List 1]],Table_PI[[#This Row],[List 2]],Table_PI[[#This Row],[List 3]],Table_PI[[#This Row],[Size]],Table_PI[[#This Row],[Input 1]],Table_PI[[#This Row],[Input 2]],Table_PI[[#This Row],[Input 3]],Table_PI[[#This Row],[Input 4]],'Customer Information'!$AR$12,1,ROW())>0,MeasureCalc(Table_PI[[#This Row],[Hide:\nFormula Name]],Table_PI[[#This Row],[Quantity]],Table_PI[[#This Row],[List 1]],Table_PI[[#This Row],[List 2]],Table_PI[[#This Row],[List 3]],Table_PI[[#This Row],[Size]],Table_PI[[#This Row],[Input 1]],Table_PI[[#This Row],[Input 2]],Table_PI[[#This Row],[Input 3]],Table_PI[[#This Row],[Input 4]],'Customer Information'!$AR$12,3,ROW()),\"No Rebate\"),\"No Rebate\"),0)","v":0},{"$f":"IF(Table_PI[[#This Row],[Hide:\nFormula Name]]<>\"\",IFERROR(IF(MeasureCalc(Table_PI[[#This Row],[Hide:\nFormula Name]],Table_PI[[#This Row],[Quantity]],Table_PI[[#This Row],[List 1]],Table_PI[[#This Row],[List 2]],Table_PI[[#This Row],[List 3]],Table_PI[[#This Row],[Size]],Table_PI[[#This Row],[Input 1]],Table_PI[[#This Row],[Input 2]],Table_PI[[#This Row],[Input 3]],Table_PI[[#This Row],[Input 4]],'Customer Information'!$AR$12,1,ROW())>0,MeasureCalc(Table_PI[[#This Row],[Hide:\nFormula Name]],Table_PI[[#This Row],[Quantity]],Table_PI[[#This Row],[List 1]],Table_PI[[#This Row],[List 2]],Table_PI[[#This Row],[List 3]],Table_PI[[#This Row],[Size]],Table_PI[[#This Row],[Input 1]],Table_PI[[#This Row],[Input 2]],Table_PI[[#This Row],[Input 3]],Table_PI[[#This Row],[Input 4]],'Customer Information'!$AR$12,4,ROW()),\"No Rebate\"),\"No Rebate\"),0)","v":0},{"$f":"IF(Table_PI[[#This Row],[Hide:\nFormula Name]]<>\"\",IFERROR(IF(MeasureCalc(Table_PI[[#This Row],[Hide:\nFormula Name]],Table_PI[[#This Row],[Quantity]],Table_PI[[#This Row],[List 1]],Table_PI[[#This Row],[List 2]],Table_PI[[#This Row],[List 3]],Table_PI[[#This Row],[Size]],Table_PI[[#This Row],[Input 1]],Table_PI[[#This Row],[Input 2]],Table_PI[[#This Row],[Input 3]],Table_PI[[#This Row],[Input 4]],'Customer Information'!$AR$12,1,ROW())>0,MeasureCalc(Table_PI[[#This Row],[Hide:\nFormula Name]],Table_PI[[#This Row],[Quantity]],Table_PI[[#This Row],[List 1]],Table_PI[[#This Row],[List 2]],Table_PI[[#This Row],[List 3]],Table_PI[[#This Row],[Size]],Table_PI[[#This Row],[Input 1]],Table_PI[[#This Row],[Input 2]],Table_PI[[#This Row],[Input 3]],Table_PI[[#This Row],[Input 4]],'Customer Information'!$AR$12,5,ROW()),\"No Rebate\"),\"No Rebate\"),0)","v":0},{"$f":"IF(Table_PI[[#This Row],[Hide:\nFormula Name]]<>\"\",IFERROR(IF(MeasureCalc(Table_PI[[#This Row],[Hide:\nFormula Name]],Table_PI[[#This Row],[Quantity]],Table_PI[[#This Row],[List 1]],Table_PI[[#This Row],[List 2]],Table_PI[[#This Row],[List 3]],Table_PI[[#This Row],[Size]],Table_PI[[#This Row],[Input 1]],Table_PI[[#This Row],[Input 2]],Table_PI[[#This Row],[Input 3]],Table_PI[[#This Row],[Input 4]],'Customer Information'!$AR$12,1,ROW())>0,MeasureCalc(Table_PI[[#This Row],[Hide:\nFormula Name]],Table_PI[[#This Row],[Quantity]],Table_PI[[#This Row],[List 1]],Table_PI[[#This Row],[List 2]],Table_PI[[#This Row],[List 3]],Table_PI[[#This Row],[Size]],Table_PI[[#This Row],[Input 1]],Table_PI[[#This Row],[Input 2]],Table_PI[[#This Row],[Input 3]],Table_PI[[#This Row],[Input 4]],'Customer Information'!$AR$12,6,ROW()),\"No Rebate\"),\"No Rebate\"),0)","v":0},{"$f":"IF(Table_PI[[#This Row],[Hide:\nFormula Name]]<>\"\",IFERROR(IF(MeasureCalc(Table_PI[[#This Row],[Hide:\nFormula Name]],Table_PI[[#This Row],[Quantity]],Table_PI[[#This Row],[List 1]],Table_PI[[#This Row],[List 2]],Table_PI[[#This Row],[List 3]],Table_PI[[#This Row],[Size]],Table_PI[[#This Row],[Input 1]],Table_PI[[#This Row],[Input 2]],Table_PI[[#This Row],[Input 3]],Table_PI[[#This Row],[Input 4]],'Customer Information'!$AR$12,1,ROW())>0,MeasureCalc(Table_PI[[#This Row],[Hide:\nFormula Name]],Table_PI[[#This Row],[Quantity]],Table_PI[[#This Row],[List 1]],Table_PI[[#This Row],[List 2]],Table_PI[[#This Row],[List 3]],Table_PI[[#This Row],[Size]],Table_PI[[#This Row],[Input 1]],Table_PI[[#This Row],[Input 2]],Table_PI[[#This Row],[Input 3]],Table_PI[[#This Row],[Input 4]],'Customer Information'!$AR$12,7,ROW()),\"No Rebate\"),\"No Rebate\"),0)","v":0},{"$f":"IF(Table_PI[[#This Row],[Hide:\nFormula Name]]<>\"\",IFERROR(IF(MeasureCalc(Table_PI[[#This Row],[Hide:\nFormula Name]],Table_PI[[#This Row],[Quantity]],Table_PI[[#This Row],[List 1]],Table_PI[[#This Row],[List 2]],Table_PI[[#This Row],[List 3]],Table_PI[[#This Row],[Size]],Table_PI[[#This Row],[Input 1]],Table_PI[[#This Row],[Input 2]],Table_PI[[#This Row],[Input 3]],Table_PI[[#This Row],[Input 4]],'Customer Information'!$AR$12,1,ROW())>0,MeasureCalc(Table_PI[[#This Row],[Hide:\nFormula Name]],Table_PI[[#This Row],[Quantity]],Table_PI[[#This Row],[List 1]],Table_PI[[#This Row],[List 2]],Table_PI[[#This Row],[List 3]],Table_PI[[#This Row],[Size]],Table_PI[[#This Row],[Input 1]],Table_PI[[#This Row],[Input 2]],Table_PI[[#This Row],[Input 3]],Table_PI[[#This Row],[Input 4]],'Customer Information'!$AR$12,8,ROW()),\"No Rebate\"),\"No Rebate\"),0)","v":0},{"$f":"IF(Table_PI[[#This Row],[Hide:\nFormula Name]]<>\"\",IF(AND(Table_PI[[#This Row],[Hide:\nFormula Name]]<>\"\",OR(Table_PI[[#This Row],[Rebate]]>0,Table_PI[[#This Row],[Rebate]]=\"No Rebate\")),TRUE,\"MI: Line Item \" & $A268),\"\")","v":""}]
[{"$f":"IF(Table_PI[[#This Row],[Hide:\nFormula Name]]<>\"\",MAX($A$2:A268)+1,\"\")","v":""},null,null,null,null,null,null,null,null,null,null,null,null,null,null,{"$f":"IFERROR(VLOOKUP(Table_PI[[#This Row],[Measure]],'Equipment Lookups'!$C$3:$D$23,2,FALSE),\"\")","v":""},{"$f":"IF(Table_PI[[#This Row],[Hide:\nFormula Name]]<>\"\",IFERROR(IF(MeasureCalc(Table_PI[[#This Row],[Hide:\nFormula Name]],Table_PI[[#This Row],[Quantity]],Table_PI[[#This Row],[List 1]],Table_PI[[#This Row],[List 2]],Table_PI[[#This Row],[List 3]],Table_PI[[#This Row],[Size]],Table_PI[[#This Row],[Input 1]],Table_PI[[#This Row],[Input 2]],Table_PI[[#This Row],[Input 3]],Table_PI[[#This Row],[Input 4]],'Customer Information'!$AR$12,1,ROW())>0,MeasureCalc(Table_PI[[#This Row],[Hide:\nFormula Name]],Table_PI[[#This Row],[Quantity]],Table_PI[[#This Row],[List 1]],Table_PI[[#This Row],[List 2]],Table_PI[[#This Row],[List 3]],Table_PI[[#This Row],[Size]],Table_PI[[#This Row],[Input 1]],Table_PI[[#This Row],[Input 2]],Table_PI[[#This Row],[Input 3]],Table_PI[[#This Row],[Input 4]],'Customer Information'!$AR$12,1,ROW()),\"No Rebate\"),\"No Rebate\"),0)","v":0},{"$f":"IF(Table_PI[[#This Row],[Hide:\nFormula Name]]<>\"\",IFERROR(IF(MeasureCalc(Table_PI[[#This Row],[Hide:\nFormula Name]],Table_PI[[#This Row],[Quantity]],Table_PI[[#This Row],[List 1]],Table_PI[[#This Row],[List 2]],Table_PI[[#This Row],[List 3]],Table_PI[[#This Row],[Size]],Table_PI[[#This Row],[Input 1]],Table_PI[[#This Row],[Input 2]],Table_PI[[#This Row],[Input 3]],Table_PI[[#This Row],[Input 4]],'Customer Information'!$AR$12,1,ROW())>0,MeasureCalc(Table_PI[[#This Row],[Hide:\nFormula Name]],Table_PI[[#This Row],[Quantity]],Table_PI[[#This Row],[List 1]],Table_PI[[#This Row],[List 2]],Table_PI[[#This Row],[List 3]],Table_PI[[#This Row],[Size]],Table_PI[[#This Row],[Input 1]],Table_PI[[#This Row],[Input 2]],Table_PI[[#This Row],[Input 3]],Table_PI[[#This Row],[Input 4]],'Customer Information'!$AR$12,2,ROW()),\"No Rebate\"),\"No Rebate\"),0)","v":0},{"$f":"IF(Table_PI[[#This Row],[Hide:\nFormula Name]]<>\"\",IFERROR(IF(MeasureCalc(Table_PI[[#This Row],[Hide:\nFormula Name]],Table_PI[[#This Row],[Quantity]],Table_PI[[#This Row],[List 1]],Table_PI[[#This Row],[List 2]],Table_PI[[#This Row],[List 3]],Table_PI[[#This Row],[Size]],Table_PI[[#This Row],[Input 1]],Table_PI[[#This Row],[Input 2]],Table_PI[[#This Row],[Input 3]],Table_PI[[#This Row],[Input 4]],'Customer Information'!$AR$12,1,ROW())>0,MeasureCalc(Table_PI[[#This Row],[Hide:\nFormula Name]],Table_PI[[#This Row],[Quantity]],Table_PI[[#This Row],[List 1]],Table_PI[[#This Row],[List 2]],Table_PI[[#This Row],[List 3]],Table_PI[[#This Row],[Size]],Table_PI[[#This Row],[Input 1]],Table_PI[[#This Row],[Input 2]],Table_PI[[#This Row],[Input 3]],Table_PI[[#This Row],[Input 4]],'Customer Information'!$AR$12,3,ROW()),\"No Rebate\"),\"No Rebate\"),0)","v":0},{"$f":"IF(Table_PI[[#This Row],[Hide:\nFormula Name]]<>\"\",IFERROR(IF(MeasureCalc(Table_PI[[#This Row],[Hide:\nFormula Name]],Table_PI[[#This Row],[Quantity]],Table_PI[[#This Row],[List 1]],Table_PI[[#This Row],[List 2]],Table_PI[[#This Row],[List 3]],Table_PI[[#This Row],[Size]],Table_PI[[#This Row],[Input 1]],Table_PI[[#This Row],[Input 2]],Table_PI[[#This Row],[Input 3]],Table_PI[[#This Row],[Input 4]],'Customer Information'!$AR$12,1,ROW())>0,MeasureCalc(Table_PI[[#This Row],[Hide:\nFormula Name]],Table_PI[[#This Row],[Quantity]],Table_PI[[#This Row],[List 1]],Table_PI[[#This Row],[List 2]],Table_PI[[#This Row],[List 3]],Table_PI[[#This Row],[Size]],Table_PI[[#This Row],[Input 1]],Table_PI[[#This Row],[Input 2]],Table_PI[[#This Row],[Input 3]],Table_PI[[#This Row],[Input 4]],'Customer Information'!$AR$12,4,ROW()),\"No Rebate\"),\"No Rebate\"),0)","v":0},{"$f":"IF(Table_PI[[#This Row],[Hide:\nFormula Name]]<>\"\",IFERROR(IF(MeasureCalc(Table_PI[[#This Row],[Hide:\nFormula Name]],Table_PI[[#This Row],[Quantity]],Table_PI[[#This Row],[List 1]],Table_PI[[#This Row],[List 2]],Table_PI[[#This Row],[List 3]],Table_PI[[#This Row],[Size]],Table_PI[[#This Row],[Input 1]],Table_PI[[#This Row],[Input 2]],Table_PI[[#This Row],[Input 3]],Table_PI[[#This Row],[Input 4]],'Customer Information'!$AR$12,1,ROW())>0,MeasureCalc(Table_PI[[#This Row],[Hide:\nFormula Name]],Table_PI[[#This Row],[Quantity]],Table_PI[[#This Row],[List 1]],Table_PI[[#This Row],[List 2]],Table_PI[[#This Row],[List 3]],Table_PI[[#This Row],[Size]],Table_PI[[#This Row],[Input 1]],Table_PI[[#This Row],[Input 2]],Table_PI[[#This Row],[Input 3]],Table_PI[[#This Row],[Input 4]],'Customer Information'!$AR$12,5,ROW()),\"No Rebate\"),\"No Rebate\"),0)","v":0},{"$f":"IF(Table_PI[[#This Row],[Hide:\nFormula Name]]<>\"\",IFERROR(IF(MeasureCalc(Table_PI[[#This Row],[Hide:\nFormula Name]],Table_PI[[#This Row],[Quantity]],Table_PI[[#This Row],[List 1]],Table_PI[[#This Row],[List 2]],Table_PI[[#This Row],[List 3]],Table_PI[[#This Row],[Size]],Table_PI[[#This Row],[Input 1]],Table_PI[[#This Row],[Input 2]],Table_PI[[#This Row],[Input 3]],Table_PI[[#This Row],[Input 4]],'Customer Information'!$AR$12,1,ROW())>0,MeasureCalc(Table_PI[[#This Row],[Hide:\nFormula Name]],Table_PI[[#This Row],[Quantity]],Table_PI[[#This Row],[List 1]],Table_PI[[#This Row],[List 2]],Table_PI[[#This Row],[List 3]],Table_PI[[#This Row],[Size]],Table_PI[[#This Row],[Input 1]],Table_PI[[#This Row],[Input 2]],Table_PI[[#This Row],[Input 3]],Table_PI[[#This Row],[Input 4]],'Customer Information'!$AR$12,6,ROW()),\"No Rebate\"),\"No Rebate\"),0)","v":0},{"$f":"IF(Table_PI[[#This Row],[Hide:\nFormula Name]]<>\"\",IFERROR(IF(MeasureCalc(Table_PI[[#This Row],[Hide:\nFormula Name]],Table_PI[[#This Row],[Quantity]],Table_PI[[#This Row],[List 1]],Table_PI[[#This Row],[List 2]],Table_PI[[#This Row],[List 3]],Table_PI[[#This Row],[Size]],Table_PI[[#This Row],[Input 1]],Table_PI[[#This Row],[Input 2]],Table_PI[[#This Row],[Input 3]],Table_PI[[#This Row],[Input 4]],'Customer Information'!$AR$12,1,ROW())>0,MeasureCalc(Table_PI[[#This Row],[Hide:\nFormula Name]],Table_PI[[#This Row],[Quantity]],Table_PI[[#This Row],[List 1]],Table_PI[[#This Row],[List 2]],Table_PI[[#This Row],[List 3]],Table_PI[[#This Row],[Size]],Table_PI[[#This Row],[Input 1]],Table_PI[[#This Row],[Input 2]],Table_PI[[#This Row],[Input 3]],Table_PI[[#This Row],[Input 4]],'Customer Information'!$AR$12,7,ROW()),\"No Rebate\"),\"No Rebate\"),0)","v":0},{"$f":"IF(Table_PI[[#This Row],[Hide:\nFormula Name]]<>\"\",IFERROR(IF(MeasureCalc(Table_PI[[#This Row],[Hide:\nFormula Name]],Table_PI[[#This Row],[Quantity]],Table_PI[[#This Row],[List 1]],Table_PI[[#This Row],[List 2]],Table_PI[[#This Row],[List 3]],Table_PI[[#This Row],[Size]],Table_PI[[#This Row],[Input 1]],Table_PI[[#This Row],[Input 2]],Table_PI[[#This Row],[Input 3]],Table_PI[[#This Row],[Input 4]],'Customer Information'!$AR$12,1,ROW())>0,MeasureCalc(Table_PI[[#This Row],[Hide:\nFormula Name]],Table_PI[[#This Row],[Quantity]],Table_PI[[#This Row],[List 1]],Table_PI[[#This Row],[List 2]],Table_PI[[#This Row],[List 3]],Table_PI[[#This Row],[Size]],Table_PI[[#This Row],[Input 1]],Table_PI[[#This Row],[Input 2]],Table_PI[[#This Row],[Input 3]],Table_PI[[#This Row],[Input 4]],'Customer Information'!$AR$12,8,ROW()),\"No Rebate\"),\"No Rebate\"),0)","v":0},{"$f":"IF(Table_PI[[#This Row],[Hide:\nFormula Name]]<>\"\",IF(AND(Table_PI[[#This Row],[Hide:\nFormula Name]]<>\"\",OR(Table_PI[[#This Row],[Rebate]]>0,Table_PI[[#This Row],[Rebate]]=\"No Rebate\")),TRUE,\"MI: Line Item \" & $A269),\"\")","v":""}]
[{"$f":"IF(Table_PI[[#This Row],[Hide:\nFormula Name]]<>\"\",MAX($A$2:A269)+1,\"\")","v":""},null,null,null,null,null,null,null,null,null,null,null,null,null,null,{"$f":"IFERROR(VLOOKUP(Table_PI[[#This Row],[Measure]],'Equipment Lookups'!$C$3:$D$23,2,FALSE),\"\")","v":""},{"$f":"IF(Table_PI[[#This Row],[Hide:\nFormula Name]]<>\"\",IFERROR(IF(MeasureCalc(Table_PI[[#This Row],[Hide:\nFormula Name]],Table_PI[[#This Row],[Quantity]],Table_PI[[#This Row],[List 1]],Table_PI[[#This Row],[List 2]],Table_PI[[#This Row],[List 3]],Table_PI[[#This Row],[Size]],Table_PI[[#This Row],[Input 1]],Table_PI[[#This Row],[Input 2]],Table_PI[[#This Row],[Input 3]],Table_PI[[#This Row],[Input 4]],'Customer Information'!$AR$12,1,ROW())>0,MeasureCalc(Table_PI[[#This Row],[Hide:\nFormula Name]],Table_PI[[#This Row],[Quantity]],Table_PI[[#This Row],[List 1]],Table_PI[[#This Row],[List 2]],Table_PI[[#This Row],[List 3]],Table_PI[[#This Row],[Size]],Table_PI[[#This Row],[Input 1]],Table_PI[[#This Row],[Input 2]],Table_PI[[#This Row],[Input 3]],Table_PI[[#This Row],[Input 4]],'Customer Information'!$AR$12,1,ROW()),\"No Rebate\"),\"No Rebate\"),0)","v":0},{"$f":"IF(Table_PI[[#This Row],[Hide:\nFormula Name]]<>\"\",IFERROR(IF(MeasureCalc(Table_PI[[#This Row],[Hide:\nFormula Name]],Table_PI[[#This Row],[Quantity]],Table_PI[[#This Row],[List 1]],Table_PI[[#This Row],[List 2]],Table_PI[[#This Row],[List 3]],Table_PI[[#This Row],[Size]],Table_PI[[#This Row],[Input 1]],Table_PI[[#This Row],[Input 2]],Table_PI[[#This Row],[Input 3]],Table_PI[[#This Row],[Input 4]],'Customer Information'!$AR$12,1,ROW())>0,MeasureCalc(Table_PI[[#This Row],[Hide:\nFormula Name]],Table_PI[[#This Row],[Quantity]],Table_PI[[#This Row],[List 1]],Table_PI[[#This Row],[List 2]],Table_PI[[#This Row],[List 3]],Table_PI[[#This Row],[Size]],Table_PI[[#This Row],[Input 1]],Table_PI[[#This Row],[Input 2]],Table_PI[[#This Row],[Input 3]],Table_PI[[#This Row],[Input 4]],'Customer Information'!$AR$12,2,ROW()),\"No Rebate\"),\"No Rebate\"),0)","v":0},{"$f":"IF(Table_PI[[#This Row],[Hide:\nFormula Name]]<>\"\",IFERROR(IF(MeasureCalc(Table_PI[[#This Row],[Hide:\nFormula Name]],Table_PI[[#This Row],[Quantity]],Table_PI[[#This Row],[List 1]],Table_PI[[#This Row],[List 2]],Table_PI[[#This Row],[List 3]],Table_PI[[#This Row],[Size]],Table_PI[[#This Row],[Input 1]],Table_PI[[#This Row],[Input 2]],Table_PI[[#This Row],[Input 3]],Table_PI[[#This Row],[Input 4]],'Customer Information'!$AR$12,1,ROW())>0,MeasureCalc(Table_PI[[#This Row],[Hide:\nFormula Name]],Table_PI[[#This Row],[Quantity]],Table_PI[[#This Row],[List 1]],Table_PI[[#This Row],[List 2]],Table_PI[[#This Row],[List 3]],Table_PI[[#This Row],[Size]],Table_PI[[#This Row],[Input 1]],Table_PI[[#This Row],[Input 2]],Table_PI[[#This Row],[Input 3]],Table_PI[[#This Row],[Input 4]],'Customer Information'!$AR$12,3,ROW()),\"No Rebate\"),\"No Rebate\"),0)","v":0},{"$f":"IF(Table_PI[[#This Row],[Hide:\nFormula Name]]<>\"\",IFERROR(IF(MeasureCalc(Table_PI[[#This Row],[Hide:\nFormula Name]],Table_PI[[#This Row],[Quantity]],Table_PI[[#This Row],[List 1]],Table_PI[[#This Row],[List 2]],Table_PI[[#This Row],[List 3]],Table_PI[[#This Row],[Size]],Table_PI[[#This Row],[Input 1]],Table_PI[[#This Row],[Input 2]],Table_PI[[#This Row],[Input 3]],Table_PI[[#This Row],[Input 4]],'Customer Information'!$AR$12,1,ROW())>0,MeasureCalc(Table_PI[[#This Row],[Hide:\nFormula Name]],Table_PI[[#This Row],[Quantity]],Table_PI[[#This Row],[List 1]],Table_PI[[#This Row],[List 2]],Table_PI[[#This Row],[List 3]],Table_PI[[#This Row],[Size]],Table_PI[[#This Row],[Input 1]],Table_PI[[#This Row],[Input 2]],Table_PI[[#This Row],[Input 3]],Table_PI[[#This Row],[Input 4]],'Customer Information'!$AR$12,4,ROW()),\"No Rebate\"),\"No Rebate\"),0)","v":0},{"$f":"IF(Table_PI[[#This Row],[Hide:\nFormula Name]]<>\"\",IFERROR(IF(MeasureCalc(Table_PI[[#This Row],[Hide:\nFormula Name]],Table_PI[[#This Row],[Quantity]],Table_PI[[#This Row],[List 1]],Table_PI[[#This Row],[List 2]],Table_PI[[#This Row],[List 3]],Table_PI[[#This Row],[Size]],Table_PI[[#This Row],[Input 1]],Table_PI[[#This Row],[Input 2]],Table_PI[[#This Row],[Input 3]],Table_PI[[#This Row],[Input 4]],'Customer Information'!$AR$12,1,ROW())>0,MeasureCalc(Table_PI[[#This Row],[Hide:\nFormula Name]],Table_PI[[#This Row],[Quantity]],Table_PI[[#This Row],[List 1]],Table_PI[[#This Row],[List 2]],Table_PI[[#This Row],[List 3]],Table_PI[[#This Row],[Size]],Table_PI[[#This Row],[Input 1]],Table_PI[[#This Row],[Input 2]],Table_PI[[#This Row],[Input 3]],Table_PI[[#This Row],[Input 4]],'Customer Information'!$AR$12,5,ROW()),\"No Rebate\"),\"No Rebate\"),0)","v":0},{"$f":"IF(Table_PI[[#This Row],[Hide:\nFormula Name]]<>\"\",IFERROR(IF(MeasureCalc(Table_PI[[#This Row],[Hide:\nFormula Name]],Table_PI[[#This Row],[Quantity]],Table_PI[[#This Row],[List 1]],Table_PI[[#This Row],[List 2]],Table_PI[[#This Row],[List 3]],Table_PI[[#This Row],[Size]],Table_PI[[#This Row],[Input 1]],Table_PI[[#This Row],[Input 2]],Table_PI[[#This Row],[Input 3]],Table_PI[[#This Row],[Input 4]],'Customer Information'!$AR$12,1,ROW())>0,MeasureCalc(Table_PI[[#This Row],[Hide:\nFormula Name]],Table_PI[[#This Row],[Quantity]],Table_PI[[#This Row],[List 1]],Table_PI[[#This Row],[List 2]],Table_PI[[#This Row],[List 3]],Table_PI[[#This Row],[Size]],Table_PI[[#This Row],[Input 1]],Table_PI[[#This Row],[Input 2]],Table_PI[[#This Row],[Input 3]],Table_PI[[#This Row],[Input 4]],'Customer Information'!$AR$12,6,ROW()),\"No Rebate\"),\"No Rebate\"),0)","v":0},{"$f":"IF(Table_PI[[#This Row],[Hide:\nFormula Name]]<>\"\",IFERROR(IF(MeasureCalc(Table_PI[[#This Row],[Hide:\nFormula Name]],Table_PI[[#This Row],[Quantity]],Table_PI[[#This Row],[List 1]],Table_PI[[#This Row],[List 2]],Table_PI[[#This Row],[List 3]],Table_PI[[#This Row],[Size]],Table_PI[[#This Row],[Input 1]],Table_PI[[#This Row],[Input 2]],Table_PI[[#This Row],[Input 3]],Table_PI[[#This Row],[Input 4]],'Customer Information'!$AR$12,1,ROW())>0,MeasureCalc(Table_PI[[#This Row],[Hide:\nFormula Name]],Table_PI[[#This Row],[Quantity]],Table_PI[[#This Row],[List 1]],Table_PI[[#This Row],[List 2]],Table_PI[[#This Row],[List 3]],Table_PI[[#This Row],[Size]],Table_PI[[#This Row],[Input 1]],Table_PI[[#This Row],[Input 2]],Table_PI[[#This Row],[Input 3]],Table_PI[[#This Row],[Input 4]],'Customer Information'!$AR$12,7,ROW()),\"No Rebate\"),\"No Rebate\"),0)","v":0},{"$f":"IF(Table_PI[[#This Row],[Hide:\nFormula Name]]<>\"\",IFERROR(IF(MeasureCalc(Table_PI[[#This Row],[Hide:\nFormula Name]],Table_PI[[#This Row],[Quantity]],Table_PI[[#This Row],[List 1]],Table_PI[[#This Row],[List 2]],Table_PI[[#This Row],[List 3]],Table_PI[[#This Row],[Size]],Table_PI[[#This Row],[Input 1]],Table_PI[[#This Row],[Input 2]],Table_PI[[#This Row],[Input 3]],Table_PI[[#This Row],[Input 4]],'Customer Information'!$AR$12,1,ROW())>0,MeasureCalc(Table_PI[[#This Row],[Hide:\nFormula Name]],Table_PI[[#This Row],[Quantity]],Table_PI[[#This Row],[List 1]],Table_PI[[#This Row],[List 2]],Table_PI[[#This Row],[List 3]],Table_PI[[#This Row],[Size]],Table_PI[[#This Row],[Input 1]],Table_PI[[#This Row],[Input 2]],Table_PI[[#This Row],[Input 3]],Table_PI[[#This Row],[Input 4]],'Customer Information'!$AR$12,8,ROW()),\"No Rebate\"),\"No Rebate\"),0)","v":0},{"$f":"IF(Table_PI[[#This Row],[Hide:\nFormula Name]]<>\"\",IF(AND(Table_PI[[#This Row],[Hide:\nFormula Name]]<>\"\",OR(Table_PI[[#This Row],[Rebate]]>0,Table_PI[[#This Row],[Rebate]]=\"No Rebate\")),TRUE,\"MI: Line Item \" & $A270),\"\")","v":""}]
[{"$f":"IF(Table_PI[[#This Row],[Hide:\nFormula Name]]<>\"\",MAX($A$2:A270)+1,\"\")","v":""},null,null,null,null,null,null,null,null,null,null,null,null,null,null,{"$f":"IFERROR(VLOOKUP(Table_PI[[#This Row],[Measure]],'Equipment Lookups'!$C$3:$D$23,2,FALSE),\"\")","v":""},{"$f":"IF(Table_PI[[#This Row],[Hide:\nFormula Name]]<>\"\",IFERROR(IF(MeasureCalc(Table_PI[[#This Row],[Hide:\nFormula Name]],Table_PI[[#This Row],[Quantity]],Table_PI[[#This Row],[List 1]],Table_PI[[#This Row],[List 2]],Table_PI[[#This Row],[List 3]],Table_PI[[#This Row],[Size]],Table_PI[[#This Row],[Input 1]],Table_PI[[#This Row],[Input 2]],Table_PI[[#This Row],[Input 3]],Table_PI[[#This Row],[Input 4]],'Customer Information'!$AR$12,1,ROW())>0,MeasureCalc(Table_PI[[#This Row],[Hide:\nFormula Name]],Table_PI[[#This Row],[Quantity]],Table_PI[[#This Row],[List 1]],Table_PI[[#This Row],[List 2]],Table_PI[[#This Row],[List 3]],Table_PI[[#This Row],[Size]],Table_PI[[#This Row],[Input 1]],Table_PI[[#This Row],[Input 2]],Table_PI[[#This Row],[Input 3]],Table_PI[[#This Row],[Input 4]],'Customer Information'!$AR$12,1,ROW()),\"No Rebate\"),\"No Rebate\"),0)","v":0},{"$f":"IF(Table_PI[[#This Row],[Hide:\nFormula Name]]<>\"\",IFERROR(IF(MeasureCalc(Table_PI[[#This Row],[Hide:\nFormula Name]],Table_PI[[#This Row],[Quantity]],Table_PI[[#This Row],[List 1]],Table_PI[[#This Row],[List 2]],Table_PI[[#This Row],[List 3]],Table_PI[[#This Row],[Size]],Table_PI[[#This Row],[Input 1]],Table_PI[[#This Row],[Input 2]],Table_PI[[#This Row],[Input 3]],Table_PI[[#This Row],[Input 4]],'Customer Information'!$AR$12,1,ROW())>0,MeasureCalc(Table_PI[[#This Row],[Hide:\nFormula Name]],Table_PI[[#This Row],[Quantity]],Table_PI[[#This Row],[List 1]],Table_PI[[#This Row],[List 2]],Table_PI[[#This Row],[List 3]],Table_PI[[#This Row],[Size]],Table_PI[[#This Row],[Input 1]],Table_PI[[#This Row],[Input 2]],Table_PI[[#This Row],[Input 3]],Table_PI[[#This Row],[Input 4]],'Customer Information'!$AR$12,2,ROW()),\"No Rebate\"),\"No Rebate\"),0)","v":0},{"$f":"IF(Table_PI[[#This Row],[Hide:\nFormula Name]]<>\"\",IFERROR(IF(MeasureCalc(Table_PI[[#This Row],[Hide:\nFormula Name]],Table_PI[[#This Row],[Quantity]],Table_PI[[#This Row],[List 1]],Table_PI[[#This Row],[List 2]],Table_PI[[#This Row],[List 3]],Table_PI[[#This Row],[Size]],Table_PI[[#This Row],[Input 1]],Table_PI[[#This Row],[Input 2]],Table_PI[[#This Row],[Input 3]],Table_PI[[#This Row],[Input 4]],'Customer Information'!$AR$12,1,ROW())>0,MeasureCalc(Table_PI[[#This Row],[Hide:\nFormula Name]],Table_PI[[#This Row],[Quantity]],Table_PI[[#This Row],[List 1]],Table_PI[[#This Row],[List 2]],Table_PI[[#This Row],[List 3]],Table_PI[[#This Row],[Size]],Table_PI[[#This Row],[Input 1]],Table_PI[[#This Row],[Input 2]],Table_PI[[#This Row],[Input 3]],Table_PI[[#This Row],[Input 4]],'Customer Information'!$AR$12,3,ROW()),\"No Rebate\"),\"No Rebate\"),0)","v":0},{"$f":"IF(Table_PI[[#This Row],[Hide:\nFormula Name]]<>\"\",IFERROR(IF(MeasureCalc(Table_PI[[#This Row],[Hide:\nFormula Name]],Table_PI[[#This Row],[Quantity]],Table_PI[[#This Row],[List 1]],Table_PI[[#This Row],[List 2]],Table_PI[[#This Row],[List 3]],Table_PI[[#This Row],[Size]],Table_PI[[#This Row],[Input 1]],Table_PI[[#This Row],[Input 2]],Table_PI[[#This Row],[Input 3]],Table_PI[[#This Row],[Input 4]],'Customer Information'!$AR$12,1,ROW())>0,MeasureCalc(Table_PI[[#This Row],[Hide:\nFormula Name]],Table_PI[[#This Row],[Quantity]],Table_PI[[#This Row],[List 1]],Table_PI[[#This Row],[List 2]],Table_PI[[#This Row],[List 3]],Table_PI[[#This Row],[Size]],Table_PI[[#This Row],[Input 1]],Table_PI[[#This Row],[Input 2]],Table_PI[[#This Row],[Input 3]],Table_PI[[#This Row],[Input 4]],'Customer Information'!$AR$12,4,ROW()),\"No Rebate\"),\"No Rebate\"),0)","v":0},{"$f":"IF(Table_PI[[#This Row],[Hide:\nFormula Name]]<>\"\",IFERROR(IF(MeasureCalc(Table_PI[[#This Row],[Hide:\nFormula Name]],Table_PI[[#This Row],[Quantity]],Table_PI[[#This Row],[List 1]],Table_PI[[#This Row],[List 2]],Table_PI[[#This Row],[List 3]],Table_PI[[#This Row],[Size]],Table_PI[[#This Row],[Input 1]],Table_PI[[#This Row],[Input 2]],Table_PI[[#This Row],[Input 3]],Table_PI[[#This Row],[Input 4]],'Customer Information'!$AR$12,1,ROW())>0,MeasureCalc(Table_PI[[#This Row],[Hide:\nFormula Name]],Table_PI[[#This Row],[Quantity]],Table_PI[[#This Row],[List 1]],Table_PI[[#This Row],[List 2]],Table_PI[[#This Row],[List 3]],Table_PI[[#This Row],[Size]],Table_PI[[#This Row],[Input 1]],Table_PI[[#This Row],[Input 2]],Table_PI[[#This Row],[Input 3]],Table_PI[[#This Row],[Input 4]],'Customer Information'!$AR$12,5,ROW()),\"No Rebate\"),\"No Rebate\"),0)","v":0},{"$f":"IF(Table_PI[[#This Row],[Hide:\nFormula Name]]<>\"\",IFERROR(IF(MeasureCalc(Table_PI[[#This Row],[Hide:\nFormula Name]],Table_PI[[#This Row],[Quantity]],Table_PI[[#This Row],[List 1]],Table_PI[[#This Row],[List 2]],Table_PI[[#This Row],[List 3]],Table_PI[[#This Row],[Size]],Table_PI[[#This Row],[Input 1]],Table_PI[[#This Row],[Input 2]],Table_PI[[#This Row],[Input 3]],Table_PI[[#This Row],[Input 4]],'Customer Information'!$AR$12,1,ROW())>0,MeasureCalc(Table_PI[[#This Row],[Hide:\nFormula Name]],Table_PI[[#This Row],[Quantity]],Table_PI[[#This Row],[List 1]],Table_PI[[#This Row],[List 2]],Table_PI[[#This Row],[List 3]],Table_PI[[#This Row],[Size]],Table_PI[[#This Row],[Input 1]],Table_PI[[#This Row],[Input 2]],Table_PI[[#This Row],[Input 3]],Table_PI[[#This Row],[Input 4]],'Customer Information'!$AR$12,6,ROW()),\"No Rebate\"),\"No Rebate\"),0)","v":0},{"$f":"IF(Table_PI[[#This Row],[Hide:\nFormula Name]]<>\"\",IFERROR(IF(MeasureCalc(Table_PI[[#This Row],[Hide:\nFormula Name]],Table_PI[[#This Row],[Quantity]],Table_PI[[#This Row],[List 1]],Table_PI[[#This Row],[List 2]],Table_PI[[#This Row],[List 3]],Table_PI[[#This Row],[Size]],Table_PI[[#This Row],[Input 1]],Table_PI[[#This Row],[Input 2]],Table_PI[[#This Row],[Input 3]],Table_PI[[#This Row],[Input 4]],'Customer Information'!$AR$12,1,ROW())>0,MeasureCalc(Table_PI[[#This Row],[Hide:\nFormula Name]],Table_PI[[#This Row],[Quantity]],Table_PI[[#This Row],[List 1]],Table_PI[[#This Row],[List 2]],Table_PI[[#This Row],[List 3]],Table_PI[[#This Row],[Size]],Table_PI[[#This Row],[Input 1]],Table_PI[[#This Row],[Input 2]],Table_PI[[#This Row],[Input 3]],Table_PI[[#This Row],[Input 4]],'Customer Information'!$AR$12,7,ROW()),\"No Rebate\"),\"No Rebate\"),0)","v":0},{"$f":"IF(Table_PI[[#This Row],[Hide:\nFormula Name]]<>\"\",IFERROR(IF(MeasureCalc(Table_PI[[#This Row],[Hide:\nFormula Name]],Table_PI[[#This Row],[Quantity]],Table_PI[[#This Row],[List 1]],Table_PI[[#This Row],[List 2]],Table_PI[[#This Row],[List 3]],Table_PI[[#This Row],[Size]],Table_PI[[#This Row],[Input 1]],Table_PI[[#This Row],[Input 2]],Table_PI[[#This Row],[Input 3]],Table_PI[[#This Row],[Input 4]],'Customer Information'!$AR$12,1,ROW())>0,MeasureCalc(Table_PI[[#This Row],[Hide:\nFormula Name]],Table_PI[[#This Row],[Quantity]],Table_PI[[#This Row],[List 1]],Table_PI[[#This Row],[List 2]],Table_PI[[#This Row],[List 3]],Table_PI[[#This Row],[Size]],Table_PI[[#This Row],[Input 1]],Table_PI[[#This Row],[Input 2]],Table_PI[[#This Row],[Input 3]],Table_PI[[#This Row],[Input 4]],'Customer Information'!$AR$12,8,ROW()),\"No Rebate\"),\"No Rebate\"),0)","v":0},{"$f":"IF(Table_PI[[#This Row],[Hide:\nFormula Name]]<>\"\",IF(AND(Table_PI[[#This Row],[Hide:\nFormula Name]]<>\"\",OR(Table_PI[[#This Row],[Rebate]]>0,Table_PI[[#This Row],[Rebate]]=\"No Rebate\")),TRUE,\"MI: Line Item \" & $A271),\"\")","v":""}]
[{"$f":"IF(Table_PI[[#This Row],[Hide:\nFormula Name]]<>\"\",MAX($A$2:A271)+1,\"\")","v":""},null,null,null,null,null,null,null,null,null,null,null,null,null,null,{"$f":"IFERROR(VLOOKUP(Table_PI[[#This Row],[Measure]],'Equipment Lookups'!$C$3:$D$23,2,FALSE),\"\")","v":""},{"$f":"IF(Table_PI[[#This Row],[Hide:\nFormula Name]]<>\"\",IFERROR(IF(MeasureCalc(Table_PI[[#This Row],[Hide:\nFormula Name]],Table_PI[[#This Row],[Quantity]],Table_PI[[#This Row],[List 1]],Table_PI[[#This Row],[List 2]],Table_PI[[#This Row],[List 3]],Table_PI[[#This Row],[Size]],Table_PI[[#This Row],[Input 1]],Table_PI[[#This Row],[Input 2]],Table_PI[[#This Row],[Input 3]],Table_PI[[#This Row],[Input 4]],'Customer Information'!$AR$12,1,ROW())>0,MeasureCalc(Table_PI[[#This Row],[Hide:\nFormula Name]],Table_PI[[#This Row],[Quantity]],Table_PI[[#This Row],[List 1]],Table_PI[[#This Row],[List 2]],Table_PI[[#This Row],[List 3]],Table_PI[[#This Row],[Size]],Table_PI[[#This Row],[Input 1]],Table_PI[[#This Row],[Input 2]],Table_PI[[#This Row],[Input 3]],Table_PI[[#This Row],[Input 4]],'Customer Information'!$AR$12,1,ROW()),\"No Rebate\"),\"No Rebate\"),0)","v":0},{"$f":"IF(Table_PI[[#This Row],[Hide:\nFormula Name]]<>\"\",IFERROR(IF(MeasureCalc(Table_PI[[#This Row],[Hide:\nFormula Name]],Table_PI[[#This Row],[Quantity]],Table_PI[[#This Row],[List 1]],Table_PI[[#This Row],[List 2]],Table_PI[[#This Row],[List 3]],Table_PI[[#This Row],[Size]],Table_PI[[#This Row],[Input 1]],Table_PI[[#This Row],[Input 2]],Table_PI[[#This Row],[Input 3]],Table_PI[[#This Row],[Input 4]],'Customer Information'!$AR$12,1,ROW())>0,MeasureCalc(Table_PI[[#This Row],[Hide:\nFormula Name]],Table_PI[[#This Row],[Quantity]],Table_PI[[#This Row],[List 1]],Table_PI[[#This Row],[List 2]],Table_PI[[#This Row],[List 3]],Table_PI[[#This Row],[Size]],Table_PI[[#This Row],[Input 1]],Table_PI[[#This Row],[Input 2]],Table_PI[[#This Row],[Input 3]],Table_PI[[#This Row],[Input 4]],'Customer Information'!$AR$12,2,ROW()),\"No Rebate\"),\"No Rebate\"),0)","v":0},{"$f":"IF(Table_PI[[#This Row],[Hide:\nFormula Name]]<>\"\",IFERROR(IF(MeasureCalc(Table_PI[[#This Row],[Hide:\nFormula Name]],Table_PI[[#This Row],[Quantity]],Table_PI[[#This Row],[List 1]],Table_PI[[#This Row],[List 2]],Table_PI[[#This Row],[List 3]],Table_PI[[#This Row],[Size]],Table_PI[[#This Row],[Input 1]],Table_PI[[#This Row],[Input 2]],Table_PI[[#This Row],[Input 3]],Table_PI[[#This Row],[Input 4]],'Customer Information'!$AR$12,1,ROW())>0,MeasureCalc(Table_PI[[#This Row],[Hide:\nFormula Name]],Table_PI[[#This Row],[Quantity]],Table_PI[[#This Row],[List 1]],Table_PI[[#This Row],[List 2]],Table_PI[[#This Row],[List 3]],Table_PI[[#This Row],[Size]],Table_PI[[#This Row],[Input 1]],Table_PI[[#This Row],[Input 2]],Table_PI[[#This Row],[Input 3]],Table_PI[[#This Row],[Input 4]],'Customer Information'!$AR$12,3,ROW()),\"No Rebate\"),\"No Rebate\"),0)","v":0},{"$f":"IF(Table_PI[[#This Row],[Hide:\nFormula Name]]<>\"\",IFERROR(IF(MeasureCalc(Table_PI[[#This Row],[Hide:\nFormula Name]],Table_PI[[#This Row],[Quantity]],Table_PI[[#This Row],[List 1]],Table_PI[[#This Row],[List 2]],Table_PI[[#This Row],[List 3]],Table_PI[[#This Row],[Size]],Table_PI[[#This Row],[Input 1]],Table_PI[[#This Row],[Input 2]],Table_PI[[#This Row],[Input 3]],Table_PI[[#This Row],[Input 4]],'Customer Information'!$AR$12,1,ROW())>0,MeasureCalc(Table_PI[[#This Row],[Hide:\nFormula Name]],Table_PI[[#This Row],[Quantity]],Table_PI[[#This Row],[List 1]],Table_PI[[#This Row],[List 2]],Table_PI[[#This Row],[List 3]],Table_PI[[#This Row],[Size]],Table_PI[[#This Row],[Input 1]],Table_PI[[#This Row],[Input 2]],Table_PI[[#This Row],[Input 3]],Table_PI[[#This Row],[Input 4]],'Customer Information'!$AR$12,4,ROW()),\"No Rebate\"),\"No Rebate\"),0)","v":0},{"$f":"IF(Table_PI[[#This Row],[Hide:\nFormula Name]]<>\"\",IFERROR(IF(MeasureCalc(Table_PI[[#This Row],[Hide:\nFormula Name]],Table_PI[[#This Row],[Quantity]],Table_PI[[#This Row],[List 1]],Table_PI[[#This Row],[List 2]],Table_PI[[#This Row],[List 3]],Table_PI[[#This Row],[Size]],Table_PI[[#This Row],[Input 1]],Table_PI[[#This Row],[Input 2]],Table_PI[[#This Row],[Input 3]],Table_PI[[#This Row],[Input 4]],'Customer Information'!$AR$12,1,ROW())>0,MeasureCalc(Table_PI[[#This Row],[Hide:\nFormula Name]],Table_PI[[#This Row],[Quantity]],Table_PI[[#This Row],[List 1]],Table_PI[[#This Row],[List 2]],Table_PI[[#This Row],[List 3]],Table_PI[[#This Row],[Size]],Table_PI[[#This Row],[Input 1]],Table_PI[[#This Row],[Input 2]],Table_PI[[#This Row],[Input 3]],Table_PI[[#This Row],[Input 4]],'Customer Information'!$AR$12,5,ROW()),\"No Rebate\"),\"No Rebate\"),0)","v":0},{"$f":"IF(Table_PI[[#This Row],[Hide:\nFormula Name]]<>\"\",IFERROR(IF(MeasureCalc(Table_PI[[#This Row],[Hide:\nFormula Name]],Table_PI[[#This Row],[Quantity]],Table_PI[[#This Row],[List 1]],Table_PI[[#This Row],[List 2]],Table_PI[[#This Row],[List 3]],Table_PI[[#This Row],[Size]],Table_PI[[#This Row],[Input 1]],Table_PI[[#This Row],[Input 2]],Table_PI[[#This Row],[Input 3]],Table_PI[[#This Row],[Input 4]],'Customer Information'!$AR$12,1,ROW())>0,MeasureCalc(Table_PI[[#This Row],[Hide:\nFormula Name]],Table_PI[[#This Row],[Quantity]],Table_PI[[#This Row],[List 1]],Table_PI[[#This Row],[List 2]],Table_PI[[#This Row],[List 3]],Table_PI[[#This Row],[Size]],Table_PI[[#This Row],[Input 1]],Table_PI[[#This Row],[Input 2]],Table_PI[[#This Row],[Input 3]],Table_PI[[#This Row],[Input 4]],'Customer Information'!$AR$12,6,ROW()),\"No Rebate\"),\"No Rebate\"),0)","v":0},{"$f":"IF(Table_PI[[#This Row],[Hide:\nFormula Name]]<>\"\",IFERROR(IF(MeasureCalc(Table_PI[[#This Row],[Hide:\nFormula Name]],Table_PI[[#This Row],[Quantity]],Table_PI[[#This Row],[List 1]],Table_PI[[#This Row],[List 2]],Table_PI[[#This Row],[List 3]],Table_PI[[#This Row],[Size]],Table_PI[[#This Row],[Input 1]],Table_PI[[#This Row],[Input 2]],Table_PI[[#This Row],[Input 3]],Table_PI[[#This Row],[Input 4]],'Customer Information'!$AR$12,1,ROW())>0,MeasureCalc(Table_PI[[#This Row],[Hide:\nFormula Name]],Table_PI[[#This Row],[Quantity]],Table_PI[[#This Row],[List 1]],Table_PI[[#This Row],[List 2]],Table_PI[[#This Row],[List 3]],Table_PI[[#This Row],[Size]],Table_PI[[#This Row],[Input 1]],Table_PI[[#This Row],[Input 2]],Table_PI[[#This Row],[Input 3]],Table_PI[[#This Row],[Input 4]],'Customer Information'!$AR$12,7,ROW()),\"No Rebate\"),\"No Rebate\"),0)","v":0},{"$f":"IF(Table_PI[[#This Row],[Hide:\nFormula Name]]<>\"\",IFERROR(IF(MeasureCalc(Table_PI[[#This Row],[Hide:\nFormula Name]],Table_PI[[#This Row],[Quantity]],Table_PI[[#This Row],[List 1]],Table_PI[[#This Row],[List 2]],Table_PI[[#This Row],[List 3]],Table_PI[[#This Row],[Size]],Table_PI[[#This Row],[Input 1]],Table_PI[[#This Row],[Input 2]],Table_PI[[#This Row],[Input 3]],Table_PI[[#This Row],[Input 4]],'Customer Information'!$AR$12,1,ROW())>0,MeasureCalc(Table_PI[[#This Row],[Hide:\nFormula Name]],Table_PI[[#This Row],[Quantity]],Table_PI[[#This Row],[List 1]],Table_PI[[#This Row],[List 2]],Table_PI[[#This Row],[List 3]],Table_PI[[#This Row],[Size]],Table_PI[[#This Row],[Input 1]],Table_PI[[#This Row],[Input 2]],Table_PI[[#This Row],[Input 3]],Table_PI[[#This Row],[Input 4]],'Customer Information'!$AR$12,8,ROW()),\"No Rebate\"),\"No Rebate\"),0)","v":0},{"$f":"IF(Table_PI[[#This Row],[Hide:\nFormula Name]]<>\"\",IF(AND(Table_PI[[#This Row],[Hide:\nFormula Name]]<>\"\",OR(Table_PI[[#This Row],[Rebate]]>0,Table_PI[[#This Row],[Rebate]]=\"No Rebate\")),TRUE,\"MI: Line Item \" & $A272),\"\")","v":""}]
[{"$f":"IF(Table_PI[[#This Row],[Hide:\nFormula Name]]<>\"\",MAX($A$2:A272)+1,\"\")","v":""},null,null,null,null,null,null,null,null,null,null,null,null,null,null,{"$f":"IFERROR(VLOOKUP(Table_PI[[#This Row],[Measure]],'Equipment Lookups'!$C$3:$D$23,2,FALSE),\"\")","v":""},{"$f":"IF(Table_PI[[#This Row],[Hide:\nFormula Name]]<>\"\",IFERROR(IF(MeasureCalc(Table_PI[[#This Row],[Hide:\nFormula Name]],Table_PI[[#This Row],[Quantity]],Table_PI[[#This Row],[List 1]],Table_PI[[#This Row],[List 2]],Table_PI[[#This Row],[List 3]],Table_PI[[#This Row],[Size]],Table_PI[[#This Row],[Input 1]],Table_PI[[#This Row],[Input 2]],Table_PI[[#This Row],[Input 3]],Table_PI[[#This Row],[Input 4]],'Customer Information'!$AR$12,1,ROW())>0,MeasureCalc(Table_PI[[#This Row],[Hide:\nFormula Name]],Table_PI[[#This Row],[Quantity]],Table_PI[[#This Row],[List 1]],Table_PI[[#This Row],[List 2]],Table_PI[[#This Row],[List 3]],Table_PI[[#This Row],[Size]],Table_PI[[#This Row],[Input 1]],Table_PI[[#This Row],[Input 2]],Table_PI[[#This Row],[Input 3]],Table_PI[[#This Row],[Input 4]],'Customer Information'!$AR$12,1,ROW()),\"No Rebate\"),\"No Rebate\"),0)","v":0},{"$f":"IF(Table_PI[[#This Row],[Hide:\nFormula Name]]<>\"\",IFERROR(IF(MeasureCalc(Table_PI[[#This Row],[Hide:\nFormula Name]],Table_PI[[#This Row],[Quantity]],Table_PI[[#This Row],[List 1]],Table_PI[[#This Row],[List 2]],Table_PI[[#This Row],[List 3]],Table_PI[[#This Row],[Size]],Table_PI[[#This Row],[Input 1]],Table_PI[[#This Row],[Input 2]],Table_PI[[#This Row],[Input 3]],Table_PI[[#This Row],[Input 4]],'Customer Information'!$AR$12,1,ROW())>0,MeasureCalc(Table_PI[[#This Row],[Hide:\nFormula Name]],Table_PI[[#This Row],[Quantity]],Table_PI[[#This Row],[List 1]],Table_PI[[#This Row],[List 2]],Table_PI[[#This Row],[List 3]],Table_PI[[#This Row],[Size]],Table_PI[[#This Row],[Input 1]],Table_PI[[#This Row],[Input 2]],Table_PI[[#This Row],[Input 3]],Table_PI[[#This Row],[Input 4]],'Customer Information'!$AR$12,2,ROW()),\"No Rebate\"),\"No Rebate\"),0)","v":0},{"$f":"IF(Table_PI[[#This Row],[Hide:\nFormula Name]]<>\"\",IFERROR(IF(MeasureCalc(Table_PI[[#This Row],[Hide:\nFormula Name]],Table_PI[[#This Row],[Quantity]],Table_PI[[#This Row],[List 1]],Table_PI[[#This Row],[List 2]],Table_PI[[#This Row],[List 3]],Table_PI[[#This Row],[Size]],Table_PI[[#This Row],[Input 1]],Table_PI[[#This Row],[Input 2]],Table_PI[[#This Row],[Input 3]],Table_PI[[#This Row],[Input 4]],'Customer Information'!$AR$12,1,ROW())>0,MeasureCalc(Table_PI[[#This Row],[Hide:\nFormula Name]],Table_PI[[#This Row],[Quantity]],Table_PI[[#This Row],[List 1]],Table_PI[[#This Row],[List 2]],Table_PI[[#This Row],[List 3]],Table_PI[[#This Row],[Size]],Table_PI[[#This Row],[Input 1]],Table_PI[[#This Row],[Input 2]],Table_PI[[#This Row],[Input 3]],Table_PI[[#This Row],[Input 4]],'Customer Information'!$AR$12,3,ROW()),\"No Rebate\"),\"No Rebate\"),0)","v":0},{"$f":"IF(Table_PI[[#This Row],[Hide:\nFormula Name]]<>\"\",IFERROR(IF(MeasureCalc(Table_PI[[#This Row],[Hide:\nFormula Name]],Table_PI[[#This Row],[Quantity]],Table_PI[[#This Row],[List 1]],Table_PI[[#This Row],[List 2]],Table_PI[[#This Row],[List 3]],Table_PI[[#This Row],[Size]],Table_PI[[#This Row],[Input 1]],Table_PI[[#This Row],[Input 2]],Table_PI[[#This Row],[Input 3]],Table_PI[[#This Row],[Input 4]],'Customer Information'!$AR$12,1,ROW())>0,MeasureCalc(Table_PI[[#This Row],[Hide:\nFormula Name]],Table_PI[[#This Row],[Quantity]],Table_PI[[#This Row],[List 1]],Table_PI[[#This Row],[List 2]],Table_PI[[#This Row],[List 3]],Table_PI[[#This Row],[Size]],Table_PI[[#This Row],[Input 1]],Table_PI[[#This Row],[Input 2]],Table_PI[[#This Row],[Input 3]],Table_PI[[#This Row],[Input 4]],'Customer Information'!$AR$12,4,ROW()),\"No Rebate\"),\"No Rebate\"),0)","v":0},{"$f":"IF(Table_PI[[#This Row],[Hide:\nFormula Name]]<>\"\",IFERROR(IF(MeasureCalc(Table_PI[[#This Row],[Hide:\nFormula Name]],Table_PI[[#This Row],[Quantity]],Table_PI[[#This Row],[List 1]],Table_PI[[#This Row],[List 2]],Table_PI[[#This Row],[List 3]],Table_PI[[#This Row],[Size]],Table_PI[[#This Row],[Input 1]],Table_PI[[#This Row],[Input 2]],Table_PI[[#This Row],[Input 3]],Table_PI[[#This Row],[Input 4]],'Customer Information'!$AR$12,1,ROW())>0,MeasureCalc(Table_PI[[#This Row],[Hide:\nFormula Name]],Table_PI[[#This Row],[Quantity]],Table_PI[[#This Row],[List 1]],Table_PI[[#This Row],[List 2]],Table_PI[[#This Row],[List 3]],Table_PI[[#This Row],[Size]],Table_PI[[#This Row],[Input 1]],Table_PI[[#This Row],[Input 2]],Table_PI[[#This Row],[Input 3]],Table_PI[[#This Row],[Input 4]],'Customer Information'!$AR$12,5,ROW()),\"No Rebate\"),\"No Rebate\"),0)","v":0},{"$f":"IF(Table_PI[[#This Row],[Hide:\nFormula Name]]<>\"\",IFERROR(IF(MeasureCalc(Table_PI[[#This Row],[Hide:\nFormula Name]],Table_PI[[#This Row],[Quantity]],Table_PI[[#This Row],[List 1]],Table_PI[[#This Row],[List 2]],Table_PI[[#This Row],[List 3]],Table_PI[[#This Row],[Size]],Table_PI[[#This Row],[Input 1]],Table_PI[[#This Row],[Input 2]],Table_PI[[#This Row],[Input 3]],Table_PI[[#This Row],[Input 4]],'Customer Information'!$AR$12,1,ROW())>0,MeasureCalc(Table_PI[[#This Row],[Hide:\nFormula Name]],Table_PI[[#This Row],[Quantity]],Table_PI[[#This Row],[List 1]],Table_PI[[#This Row],[List 2]],Table_PI[[#This Row],[List 3]],Table_PI[[#This Row],[Size]],Table_PI[[#This Row],[Input 1]],Table_PI[[#This Row],[Input 2]],Table_PI[[#This Row],[Input 3]],Table_PI[[#This Row],[Input 4]],'Customer Information'!$AR$12,6,ROW()),\"No Rebate\"),\"No Rebate\"),0)","v":0},{"$f":"IF(Table_PI[[#This Row],[Hide:\nFormula Name]]<>\"\",IFERROR(IF(MeasureCalc(Table_PI[[#This Row],[Hide:\nFormula Name]],Table_PI[[#This Row],[Quantity]],Table_PI[[#This Row],[List 1]],Table_PI[[#This Row],[List 2]],Table_PI[[#This Row],[List 3]],Table_PI[[#This Row],[Size]],Table_PI[[#This Row],[Input 1]],Table_PI[[#This Row],[Input 2]],Table_PI[[#This Row],[Input 3]],Table_PI[[#This Row],[Input 4]],'Customer Information'!$AR$12,1,ROW())>0,MeasureCalc(Table_PI[[#This Row],[Hide:\nFormula Name]],Table_PI[[#This Row],[Quantity]],Table_PI[[#This Row],[List 1]],Table_PI[[#This Row],[List 2]],Table_PI[[#This Row],[List 3]],Table_PI[[#This Row],[Size]],Table_PI[[#This Row],[Input 1]],Table_PI[[#This Row],[Input 2]],Table_PI[[#This Row],[Input 3]],Table_PI[[#This Row],[Input 4]],'Customer Information'!$AR$12,7,ROW()),\"No Rebate\"),\"No Rebate\"),0)","v":0},{"$f":"IF(Table_PI[[#This Row],[Hide:\nFormula Name]]<>\"\",IFERROR(IF(MeasureCalc(Table_PI[[#This Row],[Hide:\nFormula Name]],Table_PI[[#This Row],[Quantity]],Table_PI[[#This Row],[List 1]],Table_PI[[#This Row],[List 2]],Table_PI[[#This Row],[List 3]],Table_PI[[#This Row],[Size]],Table_PI[[#This Row],[Input 1]],Table_PI[[#This Row],[Input 2]],Table_PI[[#This Row],[Input 3]],Table_PI[[#This Row],[Input 4]],'Customer Information'!$AR$12,1,ROW())>0,MeasureCalc(Table_PI[[#This Row],[Hide:\nFormula Name]],Table_PI[[#This Row],[Quantity]],Table_PI[[#This Row],[List 1]],Table_PI[[#This Row],[List 2]],Table_PI[[#This Row],[List 3]],Table_PI[[#This Row],[Size]],Table_PI[[#This Row],[Input 1]],Table_PI[[#This Row],[Input 2]],Table_PI[[#This Row],[Input 3]],Table_PI[[#This Row],[Input 4]],'Customer Information'!$AR$12,8,ROW()),\"No Rebate\"),\"No Rebate\"),0)","v":0},{"$f":"IF(Table_PI[[#This Row],[Hide:\nFormula Name]]<>\"\",IF(AND(Table_PI[[#This Row],[Hide:\nFormula Name]]<>\"\",OR(Table_PI[[#This Row],[Rebate]]>0,Table_PI[[#This Row],[Rebate]]=\"No Rebate\")),TRUE,\"MI: Line Item \" & $A273),\"\")","v":""}]
[{"$f":"IF(Table_PI[[#This Row],[Hide:\nFormula Name]]<>\"\",MAX($A$2:A273)+1,\"\")","v":""},null,null,null,null,null,null,null,null,null,null,null,null,null,null,{"$f":"IFERROR(VLOOKUP(Table_PI[[#This Row],[Measure]],'Equipment Lookups'!$C$3:$D$23,2,FALSE),\"\")","v":""},{"$f":"IF(Table_PI[[#This Row],[Hide:\nFormula Name]]<>\"\",IFERROR(IF(MeasureCalc(Table_PI[[#This Row],[Hide:\nFormula Name]],Table_PI[[#This Row],[Quantity]],Table_PI[[#This Row],[List 1]],Table_PI[[#This Row],[List 2]],Table_PI[[#This Row],[List 3]],Table_PI[[#This Row],[Size]],Table_PI[[#This Row],[Input 1]],Table_PI[[#This Row],[Input 2]],Table_PI[[#This Row],[Input 3]],Table_PI[[#This Row],[Input 4]],'Customer Information'!$AR$12,1,ROW())>0,MeasureCalc(Table_PI[[#This Row],[Hide:\nFormula Name]],Table_PI[[#This Row],[Quantity]],Table_PI[[#This Row],[List 1]],Table_PI[[#This Row],[List 2]],Table_PI[[#This Row],[List 3]],Table_PI[[#This Row],[Size]],Table_PI[[#This Row],[Input 1]],Table_PI[[#This Row],[Input 2]],Table_PI[[#This Row],[Input 3]],Table_PI[[#This Row],[Input 4]],'Customer Information'!$AR$12,1,ROW()),\"No Rebate\"),\"No Rebate\"),0)","v":0},{"$f":"IF(Table_PI[[#This Row],[Hide:\nFormula Name]]<>\"\",IFERROR(IF(MeasureCalc(Table_PI[[#This Row],[Hide:\nFormula Name]],Table_PI[[#This Row],[Quantity]],Table_PI[[#This Row],[List 1]],Table_PI[[#This Row],[List 2]],Table_PI[[#This Row],[List 3]],Table_PI[[#This Row],[Size]],Table_PI[[#This Row],[Input 1]],Table_PI[[#This Row],[Input 2]],Table_PI[[#This Row],[Input 3]],Table_PI[[#This Row],[Input 4]],'Customer Information'!$AR$12,1,ROW())>0,MeasureCalc(Table_PI[[#This Row],[Hide:\nFormula Name]],Table_PI[[#This Row],[Quantity]],Table_PI[[#This Row],[List 1]],Table_PI[[#This Row],[List 2]],Table_PI[[#This Row],[List 3]],Table_PI[[#This Row],[Size]],Table_PI[[#This Row],[Input 1]],Table_PI[[#This Row],[Input 2]],Table_PI[[#This Row],[Input 3]],Table_PI[[#This Row],[Input 4]],'Customer Information'!$AR$12,2,ROW()),\"No Rebate\"),\"No Rebate\"),0)","v":0},{"$f":"IF(Table_PI[[#This Row],[Hide:\nFormula Name]]<>\"\",IFERROR(IF(MeasureCalc(Table_PI[[#This Row],[Hide:\nFormula Name]],Table_PI[[#This Row],[Quantity]],Table_PI[[#This Row],[List 1]],Table_PI[[#This Row],[List 2]],Table_PI[[#This Row],[List 3]],Table_PI[[#This Row],[Size]],Table_PI[[#This Row],[Input 1]],Table_PI[[#This Row],[Input 2]],Table_PI[[#This Row],[Input 3]],Table_PI[[#This Row],[Input 4]],'Customer Information'!$AR$12,1,ROW())>0,MeasureCalc(Table_PI[[#This Row],[Hide:\nFormula Name]],Table_PI[[#This Row],[Quantity]],Table_PI[[#This Row],[List 1]],Table_PI[[#This Row],[List 2]],Table_PI[[#This Row],[List 3]],Table_PI[[#This Row],[Size]],Table_PI[[#This Row],[Input 1]],Table_PI[[#This Row],[Input 2]],Table_PI[[#This Row],[Input 3]],Table_PI[[#This Row],[Input 4]],'Customer Information'!$AR$12,3,ROW()),\"No Rebate\"),\"No Rebate\"),0)","v":0},{"$f":"IF(Table_PI[[#This Row],[Hide:\nFormula Name]]<>\"\",IFERROR(IF(MeasureCalc(Table_PI[[#This Row],[Hide:\nFormula Name]],Table_PI[[#This Row],[Quantity]],Table_PI[[#This Row],[List 1]],Table_PI[[#This Row],[List 2]],Table_PI[[#This Row],[List 3]],Table_PI[[#This Row],[Size]],Table_PI[[#This Row],[Input 1]],Table_PI[[#This Row],[Input 2]],Table_PI[[#This Row],[Input 3]],Table_PI[[#This Row],[Input 4]],'Customer Information'!$AR$12,1,ROW())>0,MeasureCalc(Table_PI[[#This Row],[Hide:\nFormula Name]],Table_PI[[#This Row],[Quantity]],Table_PI[[#This Row],[List 1]],Table_PI[[#This Row],[List 2]],Table_PI[[#This Row],[List 3]],Table_PI[[#This Row],[Size]],Table_PI[[#This Row],[Input 1]],Table_PI[[#This Row],[Input 2]],Table_PI[[#This Row],[Input 3]],Table_PI[[#This Row],[Input 4]],'Customer Information'!$AR$12,4,ROW()),\"No Rebate\"),\"No Rebate\"),0)","v":0},{"$f":"IF(Table_PI[[#This Row],[Hide:\nFormula Name]]<>\"\",IFERROR(IF(MeasureCalc(Table_PI[[#This Row],[Hide:\nFormula Name]],Table_PI[[#This Row],[Quantity]],Table_PI[[#This Row],[List 1]],Table_PI[[#This Row],[List 2]],Table_PI[[#This Row],[List 3]],Table_PI[[#This Row],[Size]],Table_PI[[#This Row],[Input 1]],Table_PI[[#This Row],[Input 2]],Table_PI[[#This Row],[Input 3]],Table_PI[[#This Row],[Input 4]],'Customer Information'!$AR$12,1,ROW())>0,MeasureCalc(Table_PI[[#This Row],[Hide:\nFormula Name]],Table_PI[[#This Row],[Quantity]],Table_PI[[#This Row],[List 1]],Table_PI[[#This Row],[List 2]],Table_PI[[#This Row],[List 3]],Table_PI[[#This Row],[Size]],Table_PI[[#This Row],[Input 1]],Table_PI[[#This Row],[Input 2]],Table_PI[[#This Row],[Input 3]],Table_PI[[#This Row],[Input 4]],'Customer Information'!$AR$12,5,ROW()),\"No Rebate\"),\"No Rebate\"),0)","v":0},{"$f":"IF(Table_PI[[#This Row],[Hide:\nFormula Name]]<>\"\",IFERROR(IF(MeasureCalc(Table_PI[[#This Row],[Hide:\nFormula Name]],Table_PI[[#This Row],[Quantity]],Table_PI[[#This Row],[List 1]],Table_PI[[#This Row],[List 2]],Table_PI[[#This Row],[List 3]],Table_PI[[#This Row],[Size]],Table_PI[[#This Row],[Input 1]],Table_PI[[#This Row],[Input 2]],Table_PI[[#This Row],[Input 3]],Table_PI[[#This Row],[Input 4]],'Customer Information'!$AR$12,1,ROW())>0,MeasureCalc(Table_PI[[#This Row],[Hide:\nFormula Name]],Table_PI[[#This Row],[Quantity]],Table_PI[[#This Row],[List 1]],Table_PI[[#This Row],[List 2]],Table_PI[[#This Row],[List 3]],Table_PI[[#This Row],[Size]],Table_PI[[#This Row],[Input 1]],Table_PI[[#This Row],[Input 2]],Table_PI[[#This Row],[Input 3]],Table_PI[[#This Row],[Input 4]],'Customer Information'!$AR$12,6,ROW()),\"No Rebate\"),\"No Rebate\"),0)","v":0},{"$f":"IF(Table_PI[[#This Row],[Hide:\nFormula Name]]<>\"\",IFERROR(IF(MeasureCalc(Table_PI[[#This Row],[Hide:\nFormula Name]],Table_PI[[#This Row],[Quantity]],Table_PI[[#This Row],[List 1]],Table_PI[[#This Row],[List 2]],Table_PI[[#This Row],[List 3]],Table_PI[[#This Row],[Size]],Table_PI[[#This Row],[Input 1]],Table_PI[[#This Row],[Input 2]],Table_PI[[#This Row],[Input 3]],Table_PI[[#This Row],[Input 4]],'Customer Information'!$AR$12,1,ROW())>0,MeasureCalc(Table_PI[[#This Row],[Hide:\nFormula Name]],Table_PI[[#This Row],[Quantity]],Table_PI[[#This Row],[List 1]],Table_PI[[#This Row],[List 2]],Table_PI[[#This Row],[List 3]],Table_PI[[#This Row],[Size]],Table_PI[[#This Row],[Input 1]],Table_PI[[#This Row],[Input 2]],Table_PI[[#This Row],[Input 3]],Table_PI[[#This Row],[Input 4]],'Customer Information'!$AR$12,7,ROW()),\"No Rebate\"),\"No Rebate\"),0)","v":0},{"$f":"IF(Table_PI[[#This Row],[Hide:\nFormula Name]]<>\"\",IFERROR(IF(MeasureCalc(Table_PI[[#This Row],[Hide:\nFormula Name]],Table_PI[[#This Row],[Quantity]],Table_PI[[#This Row],[List 1]],Table_PI[[#This Row],[List 2]],Table_PI[[#This Row],[List 3]],Table_PI[[#This Row],[Size]],Table_PI[[#This Row],[Input 1]],Table_PI[[#This Row],[Input 2]],Table_PI[[#This Row],[Input 3]],Table_PI[[#This Row],[Input 4]],'Customer Information'!$AR$12,1,ROW())>0,MeasureCalc(Table_PI[[#This Row],[Hide:\nFormula Name]],Table_PI[[#This Row],[Quantity]],Table_PI[[#This Row],[List 1]],Table_PI[[#This Row],[List 2]],Table_PI[[#This Row],[List 3]],Table_PI[[#This Row],[Size]],Table_PI[[#This Row],[Input 1]],Table_PI[[#This Row],[Input 2]],Table_PI[[#This Row],[Input 3]],Table_PI[[#This Row],[Input 4]],'Customer Information'!$AR$12,8,ROW()),\"No Rebate\"),\"No Rebate\"),0)","v":0},{"$f":"IF(Table_PI[[#This Row],[Hide:\nFormula Name]]<>\"\",IF(AND(Table_PI[[#This Row],[Hide:\nFormula Name]]<>\"\",OR(Table_PI[[#This Row],[Rebate]]>0,Table_PI[[#This Row],[Rebate]]=\"No Rebate\")),TRUE,\"MI: Line Item \" & $A274),\"\")","v":""}]
[{"$f":"IF(Table_PI[[#This Row],[Hide:\nFormula Name]]<>\"\",MAX($A$2:A274)+1,\"\")","v":""},null,null,null,null,null,null,null,null,null,null,null,null,null,null,{"$f":"IFERROR(VLOOKUP(Table_PI[[#This Row],[Measure]],'Equipment Lookups'!$C$3:$D$23,2,FALSE),\"\")","v":""},{"$f":"IF(Table_PI[[#This Row],[Hide:\nFormula Name]]<>\"\",IFERROR(IF(MeasureCalc(Table_PI[[#This Row],[Hide:\nFormula Name]],Table_PI[[#This Row],[Quantity]],Table_PI[[#This Row],[List 1]],Table_PI[[#This Row],[List 2]],Table_PI[[#This Row],[List 3]],Table_PI[[#This Row],[Size]],Table_PI[[#This Row],[Input 1]],Table_PI[[#This Row],[Input 2]],Table_PI[[#This Row],[Input 3]],Table_PI[[#This Row],[Input 4]],'Customer Information'!$AR$12,1,ROW())>0,MeasureCalc(Table_PI[[#This Row],[Hide:\nFormula Name]],Table_PI[[#This Row],[Quantity]],Table_PI[[#This Row],[List 1]],Table_PI[[#This Row],[List 2]],Table_PI[[#This Row],[List 3]],Table_PI[[#This Row],[Size]],Table_PI[[#This Row],[Input 1]],Table_PI[[#This Row],[Input 2]],Table_PI[[#This Row],[Input 3]],Table_PI[[#This Row],[Input 4]],'Customer Information'!$AR$12,1,ROW()),\"No Rebate\"),\"No Rebate\"),0)","v":0},{"$f":"IF(Table_PI[[#This Row],[Hide:\nFormula Name]]<>\"\",IFERROR(IF(MeasureCalc(Table_PI[[#This Row],[Hide:\nFormula Name]],Table_PI[[#This Row],[Quantity]],Table_PI[[#This Row],[List 1]],Table_PI[[#This Row],[List 2]],Table_PI[[#This Row],[List 3]],Table_PI[[#This Row],[Size]],Table_PI[[#This Row],[Input 1]],Table_PI[[#This Row],[Input 2]],Table_PI[[#This Row],[Input 3]],Table_PI[[#This Row],[Input 4]],'Customer Information'!$AR$12,1,ROW())>0,MeasureCalc(Table_PI[[#This Row],[Hide:\nFormula Name]],Table_PI[[#This Row],[Quantity]],Table_PI[[#This Row],[List 1]],Table_PI[[#This Row],[List 2]],Table_PI[[#This Row],[List 3]],Table_PI[[#This Row],[Size]],Table_PI[[#This Row],[Input 1]],Table_PI[[#This Row],[Input 2]],Table_PI[[#This Row],[Input 3]],Table_PI[[#This Row],[Input 4]],'Customer Information'!$AR$12,2,ROW()),\"No Rebate\"),\"No Rebate\"),0)","v":0},{"$f":"IF(Table_PI[[#This Row],[Hide:\nFormula Name]]<>\"\",IFERROR(IF(MeasureCalc(Table_PI[[#This Row],[Hide:\nFormula Name]],Table_PI[[#This Row],[Quantity]],Table_PI[[#This Row],[List 1]],Table_PI[[#This Row],[List 2]],Table_PI[[#This Row],[List 3]],Table_PI[[#This Row],[Size]],Table_PI[[#This Row],[Input 1]],Table_PI[[#This Row],[Input 2]],Table_PI[[#This Row],[Input 3]],Table_PI[[#This Row],[Input 4]],'Customer Information'!$AR$12,1,ROW())>0,MeasureCalc(Table_PI[[#This Row],[Hide:\nFormula Name]],Table_PI[[#This Row],[Quantity]],Table_PI[[#This Row],[List 1]],Table_PI[[#This Row],[List 2]],Table_PI[[#This Row],[List 3]],Table_PI[[#This Row],[Size]],Table_PI[[#This Row],[Input 1]],Table_PI[[#This Row],[Input 2]],Table_PI[[#This Row],[Input 3]],Table_PI[[#This Row],[Input 4]],'Customer Information'!$AR$12,3,ROW()),\"No Rebate\"),\"No Rebate\"),0)","v":0},{"$f":"IF(Table_PI[[#This Row],[Hide:\nFormula Name]]<>\"\",IFERROR(IF(MeasureCalc(Table_PI[[#This Row],[Hide:\nFormula Name]],Table_PI[[#This Row],[Quantity]],Table_PI[[#This Row],[List 1]],Table_PI[[#This Row],[List 2]],Table_PI[[#This Row],[List 3]],Table_PI[[#This Row],[Size]],Table_PI[[#This Row],[Input 1]],Table_PI[[#This Row],[Input 2]],Table_PI[[#This Row],[Input 3]],Table_PI[[#This Row],[Input 4]],'Customer Information'!$AR$12,1,ROW())>0,MeasureCalc(Table_PI[[#This Row],[Hide:\nFormula Name]],Table_PI[[#This Row],[Quantity]],Table_PI[[#This Row],[List 1]],Table_PI[[#This Row],[List 2]],Table_PI[[#This Row],[List 3]],Table_PI[[#This Row],[Size]],Table_PI[[#This Row],[Input 1]],Table_PI[[#This Row],[Input 2]],Table_PI[[#This Row],[Input 3]],Table_PI[[#This Row],[Input 4]],'Customer Information'!$AR$12,4,ROW()),\"No Rebate\"),\"No Rebate\"),0)","v":0},{"$f":"IF(Table_PI[[#This Row],[Hide:\nFormula Name]]<>\"\",IFERROR(IF(MeasureCalc(Table_PI[[#This Row],[Hide:\nFormula Name]],Table_PI[[#This Row],[Quantity]],Table_PI[[#This Row],[List 1]],Table_PI[[#This Row],[List 2]],Table_PI[[#This Row],[List 3]],Table_PI[[#This Row],[Size]],Table_PI[[#This Row],[Input 1]],Table_PI[[#This Row],[Input 2]],Table_PI[[#This Row],[Input 3]],Table_PI[[#This Row],[Input 4]],'Customer Information'!$AR$12,1,ROW())>0,MeasureCalc(Table_PI[[#This Row],[Hide:\nFormula Name]],Table_PI[[#This Row],[Quantity]],Table_PI[[#This Row],[List 1]],Table_PI[[#This Row],[List 2]],Table_PI[[#This Row],[List 3]],Table_PI[[#This Row],[Size]],Table_PI[[#This Row],[Input 1]],Table_PI[[#This Row],[Input 2]],Table_PI[[#This Row],[Input 3]],Table_PI[[#This Row],[Input 4]],'Customer Information'!$AR$12,5,ROW()),\"No Rebate\"),\"No Rebate\"),0)","v":0},{"$f":"IF(Table_PI[[#This Row],[Hide:\nFormula Name]]<>\"\",IFERROR(IF(MeasureCalc(Table_PI[[#This Row],[Hide:\nFormula Name]],Table_PI[[#This Row],[Quantity]],Table_PI[[#This Row],[List 1]],Table_PI[[#This Row],[List 2]],Table_PI[[#This Row],[List 3]],Table_PI[[#This Row],[Size]],Table_PI[[#This Row],[Input 1]],Table_PI[[#This Row],[Input 2]],Table_PI[[#This Row],[Input 3]],Table_PI[[#This Row],[Input 4]],'Customer Information'!$AR$12,1,ROW())>0,MeasureCalc(Table_PI[[#This Row],[Hide:\nFormula Name]],Table_PI[[#This Row],[Quantity]],Table_PI[[#This Row],[List 1]],Table_PI[[#This Row],[List 2]],Table_PI[[#This Row],[List 3]],Table_PI[[#This Row],[Size]],Table_PI[[#This Row],[Input 1]],Table_PI[[#This Row],[Input 2]],Table_PI[[#This Row],[Input 3]],Table_PI[[#This Row],[Input 4]],'Customer Information'!$AR$12,6,ROW()),\"No Rebate\"),\"No Rebate\"),0)","v":0},{"$f":"IF(Table_PI[[#This Row],[Hide:\nFormula Name]]<>\"\",IFERROR(IF(MeasureCalc(Table_PI[[#This Row],[Hide:\nFormula Name]],Table_PI[[#This Row],[Quantity]],Table_PI[[#This Row],[List 1]],Table_PI[[#This Row],[List 2]],Table_PI[[#This Row],[List 3]],Table_PI[[#This Row],[Size]],Table_PI[[#This Row],[Input 1]],Table_PI[[#This Row],[Input 2]],Table_PI[[#This Row],[Input 3]],Table_PI[[#This Row],[Input 4]],'Customer Information'!$AR$12,1,ROW())>0,MeasureCalc(Table_PI[[#This Row],[Hide:\nFormula Name]],Table_PI[[#This Row],[Quantity]],Table_PI[[#This Row],[List 1]],Table_PI[[#This Row],[List 2]],Table_PI[[#This Row],[List 3]],Table_PI[[#This Row],[Size]],Table_PI[[#This Row],[Input 1]],Table_PI[[#This Row],[Input 2]],Table_PI[[#This Row],[Input 3]],Table_PI[[#This Row],[Input 4]],'Customer Information'!$AR$12,7,ROW()),\"No Rebate\"),\"No Rebate\"),0)","v":0},{"$f":"IF(Table_PI[[#This Row],[Hide:\nFormula Name]]<>\"\",IFERROR(IF(MeasureCalc(Table_PI[[#This Row],[Hide:\nFormula Name]],Table_PI[[#This Row],[Quantity]],Table_PI[[#This Row],[List 1]],Table_PI[[#This Row],[List 2]],Table_PI[[#This Row],[List 3]],Table_PI[[#This Row],[Size]],Table_PI[[#This Row],[Input 1]],Table_PI[[#This Row],[Input 2]],Table_PI[[#This Row],[Input 3]],Table_PI[[#This Row],[Input 4]],'Customer Information'!$AR$12,1,ROW())>0,MeasureCalc(Table_PI[[#This Row],[Hide:\nFormula Name]],Table_PI[[#This Row],[Quantity]],Table_PI[[#This Row],[List 1]],Table_PI[[#This Row],[List 2]],Table_PI[[#This Row],[List 3]],Table_PI[[#This Row],[Size]],Table_PI[[#This Row],[Input 1]],Table_PI[[#This Row],[Input 2]],Table_PI[[#This Row],[Input 3]],Table_PI[[#This Row],[Input 4]],'Customer Information'!$AR$12,8,ROW()),\"No Rebate\"),\"No Rebate\"),0)","v":0},{"$f":"IF(Table_PI[[#This Row],[Hide:\nFormula Name]]<>\"\",IF(AND(Table_PI[[#This Row],[Hide:\nFormula Name]]<>\"\",OR(Table_PI[[#This Row],[Rebate]]>0,Table_PI[[#This Row],[Rebate]]=\"No Rebate\")),TRUE,\"MI: Line Item \" & $A275),\"\")","v":""}]
[{"$f":"IF(Table_PI[[#This Row],[Hide:\nFormula Name]]<>\"\",MAX($A$2:A275)+1,\"\")","v":""},null,null,null,null,null,null,null,null,null,null,null,null,null,null,{"$f":"IFERROR(VLOOKUP(Table_PI[[#This Row],[Measure]],'Equipment Lookups'!$C$3:$D$23,2,FALSE),\"\")","v":""},{"$f":"IF(Table_PI[[#This Row],[Hide:\nFormula Name]]<>\"\",IFERROR(IF(MeasureCalc(Table_PI[[#This Row],[Hide:\nFormula Name]],Table_PI[[#This Row],[Quantity]],Table_PI[[#This Row],[List 1]],Table_PI[[#This Row],[List 2]],Table_PI[[#This Row],[List 3]],Table_PI[[#This Row],[Size]],Table_PI[[#This Row],[Input 1]],Table_PI[[#This Row],[Input 2]],Table_PI[[#This Row],[Input 3]],Table_PI[[#This Row],[Input 4]],'Customer Information'!$AR$12,1,ROW())>0,MeasureCalc(Table_PI[[#This Row],[Hide:\nFormula Name]],Table_PI[[#This Row],[Quantity]],Table_PI[[#This Row],[List 1]],Table_PI[[#This Row],[List 2]],Table_PI[[#This Row],[List 3]],Table_PI[[#This Row],[Size]],Table_PI[[#This Row],[Input 1]],Table_PI[[#This Row],[Input 2]],Table_PI[[#This Row],[Input 3]],Table_PI[[#This Row],[Input 4]],'Customer Information'!$AR$12,1,ROW()),\"No Rebate\"),\"No Rebate\"),0)","v":0},{"$f":"IF(Table_PI[[#This Row],[Hide:\nFormula Name]]<>\"\",IFERROR(IF(MeasureCalc(Table_PI[[#This Row],[Hide:\nFormula Name]],Table_PI[[#This Row],[Quantity]],Table_PI[[#This Row],[List 1]],Table_PI[[#This Row],[List 2]],Table_PI[[#This Row],[List 3]],Table_PI[[#This Row],[Size]],Table_PI[[#This Row],[Input 1]],Table_PI[[#This Row],[Input 2]],Table_PI[[#This Row],[Input 3]],Table_PI[[#This Row],[Input 4]],'Customer Information'!$AR$12,1,ROW())>0,MeasureCalc(Table_PI[[#This Row],[Hide:\nFormula Name]],Table_PI[[#This Row],[Quantity]],Table_PI[[#This Row],[List 1]],Table_PI[[#This Row],[List 2]],Table_PI[[#This Row],[List 3]],Table_PI[[#This Row],[Size]],Table_PI[[#This Row],[Input 1]],Table_PI[[#This Row],[Input 2]],Table_PI[[#This Row],[Input 3]],Table_PI[[#This Row],[Input 4]],'Customer Information'!$AR$12,2,ROW()),\"No Rebate\"),\"No Rebate\"),0)","v":0},{"$f":"IF(Table_PI[[#This Row],[Hide:\nFormula Name]]<>\"\",IFERROR(IF(MeasureCalc(Table_PI[[#This Row],[Hide:\nFormula Name]],Table_PI[[#This Row],[Quantity]],Table_PI[[#This Row],[List 1]],Table_PI[[#This Row],[List 2]],Table_PI[[#This Row],[List 3]],Table_PI[[#This Row],[Size]],Table_PI[[#This Row],[Input 1]],Table_PI[[#This Row],[Input 2]],Table_PI[[#This Row],[Input 3]],Table_PI[[#This Row],[Input 4]],'Customer Information'!$AR$12,1,ROW())>0,MeasureCalc(Table_PI[[#This Row],[Hide:\nFormula Name]],Table_PI[[#This Row],[Quantity]],Table_PI[[#This Row],[List 1]],Table_PI[[#This Row],[List 2]],Table_PI[[#This Row],[List 3]],Table_PI[[#This Row],[Size]],Table_PI[[#This Row],[Input 1]],Table_PI[[#This Row],[Input 2]],Table_PI[[#This Row],[Input 3]],Table_PI[[#This Row],[Input 4]],'Customer Information'!$AR$12,3,ROW()),\"No Rebate\"),\"No Rebate\"),0)","v":0},{"$f":"IF(Table_PI[[#This Row],[Hide:\nFormula Name]]<>\"\",IFERROR(IF(MeasureCalc(Table_PI[[#This Row],[Hide:\nFormula Name]],Table_PI[[#This Row],[Quantity]],Table_PI[[#This Row],[List 1]],Table_PI[[#This Row],[List 2]],Table_PI[[#This Row],[List 3]],Table_PI[[#This Row],[Size]],Table_PI[[#This Row],[Input 1]],Table_PI[[#This Row],[Input 2]],Table_PI[[#This Row],[Input 3]],Table_PI[[#This Row],[Input 4]],'Customer Information'!$AR$12,1,ROW())>0,MeasureCalc(Table_PI[[#This Row],[Hide:\nFormula Name]],Table_PI[[#This Row],[Quantity]],Table_PI[[#This Row],[List 1]],Table_PI[[#This Row],[List 2]],Table_PI[[#This Row],[List 3]],Table_PI[[#This Row],[Size]],Table_PI[[#This Row],[Input 1]],Table_PI[[#This Row],[Input 2]],Table_PI[[#This Row],[Input 3]],Table_PI[[#This Row],[Input 4]],'Customer Information'!$AR$12,4,ROW()),\"No Rebate\"),\"No Rebate\"),0)","v":0},{"$f":"IF(Table_PI[[#This Row],[Hide:\nFormula Name]]<>\"\",IFERROR(IF(MeasureCalc(Table_PI[[#This Row],[Hide:\nFormula Name]],Table_PI[[#This Row],[Quantity]],Table_PI[[#This Row],[List 1]],Table_PI[[#This Row],[List 2]],Table_PI[[#This Row],[List 3]],Table_PI[[#This Row],[Size]],Table_PI[[#This Row],[Input 1]],Table_PI[[#This Row],[Input 2]],Table_PI[[#This Row],[Input 3]],Table_PI[[#This Row],[Input 4]],'Customer Information'!$AR$12,1,ROW())>0,MeasureCalc(Table_PI[[#This Row],[Hide:\nFormula Name]],Table_PI[[#This Row],[Quantity]],Table_PI[[#This Row],[List 1]],Table_PI[[#This Row],[List 2]],Table_PI[[#This Row],[List 3]],Table_PI[[#This Row],[Size]],Table_PI[[#This Row],[Input 1]],Table_PI[[#This Row],[Input 2]],Table_PI[[#This Row],[Input 3]],Table_PI[[#This Row],[Input 4]],'Customer Information'!$AR$12,5,ROW()),\"No Rebate\"),\"No Rebate\"),0)","v":0},{"$f":"IF(Table_PI[[#This Row],[Hide:\nFormula Name]]<>\"\",IFERROR(IF(MeasureCalc(Table_PI[[#This Row],[Hide:\nFormula Name]],Table_PI[[#This Row],[Quantity]],Table_PI[[#This Row],[List 1]],Table_PI[[#This Row],[List 2]],Table_PI[[#This Row],[List 3]],Table_PI[[#This Row],[Size]],Table_PI[[#This Row],[Input 1]],Table_PI[[#This Row],[Input 2]],Table_PI[[#This Row],[Input 3]],Table_PI[[#This Row],[Input 4]],'Customer Information'!$AR$12,1,ROW())>0,MeasureCalc(Table_PI[[#This Row],[Hide:\nFormula Name]],Table_PI[[#This Row],[Quantity]],Table_PI[[#This Row],[List 1]],Table_PI[[#This Row],[List 2]],Table_PI[[#This Row],[List 3]],Table_PI[[#This Row],[Size]],Table_PI[[#This Row],[Input 1]],Table_PI[[#This Row],[Input 2]],Table_PI[[#This Row],[Input 3]],Table_PI[[#This Row],[Input 4]],'Customer Information'!$AR$12,6,ROW()),\"No Rebate\"),\"No Rebate\"),0)","v":0},{"$f":"IF(Table_PI[[#This Row],[Hide:\nFormula Name]]<>\"\",IFERROR(IF(MeasureCalc(Table_PI[[#This Row],[Hide:\nFormula Name]],Table_PI[[#This Row],[Quantity]],Table_PI[[#This Row],[List 1]],Table_PI[[#This Row],[List 2]],Table_PI[[#This Row],[List 3]],Table_PI[[#This Row],[Size]],Table_PI[[#This Row],[Input 1]],Table_PI[[#This Row],[Input 2]],Table_PI[[#This Row],[Input 3]],Table_PI[[#This Row],[Input 4]],'Customer Information'!$AR$12,1,ROW())>0,MeasureCalc(Table_PI[[#This Row],[Hide:\nFormula Name]],Table_PI[[#This Row],[Quantity]],Table_PI[[#This Row],[List 1]],Table_PI[[#This Row],[List 2]],Table_PI[[#This Row],[List 3]],Table_PI[[#This Row],[Size]],Table_PI[[#This Row],[Input 1]],Table_PI[[#This Row],[Input 2]],Table_PI[[#This Row],[Input 3]],Table_PI[[#This Row],[Input 4]],'Customer Information'!$AR$12,7,ROW()),\"No Rebate\"),\"No Rebate\"),0)","v":0},{"$f":"IF(Table_PI[[#This Row],[Hide:\nFormula Name]]<>\"\",IFERROR(IF(MeasureCalc(Table_PI[[#This Row],[Hide:\nFormula Name]],Table_PI[[#This Row],[Quantity]],Table_PI[[#This Row],[List 1]],Table_PI[[#This Row],[List 2]],Table_PI[[#This Row],[List 3]],Table_PI[[#This Row],[Size]],Table_PI[[#This Row],[Input 1]],Table_PI[[#This Row],[Input 2]],Table_PI[[#This Row],[Input 3]],Table_PI[[#This Row],[Input 4]],'Customer Information'!$AR$12,1,ROW())>0,MeasureCalc(Table_PI[[#This Row],[Hide:\nFormula Name]],Table_PI[[#This Row],[Quantity]],Table_PI[[#This Row],[List 1]],Table_PI[[#This Row],[List 2]],Table_PI[[#This Row],[List 3]],Table_PI[[#This Row],[Size]],Table_PI[[#This Row],[Input 1]],Table_PI[[#This Row],[Input 2]],Table_PI[[#This Row],[Input 3]],Table_PI[[#This Row],[Input 4]],'Customer Information'!$AR$12,8,ROW()),\"No Rebate\"),\"No Rebate\"),0)","v":0},{"$f":"IF(Table_PI[[#This Row],[Hide:\nFormula Name]]<>\"\",IF(AND(Table_PI[[#This Row],[Hide:\nFormula Name]]<>\"\",OR(Table_PI[[#This Row],[Rebate]]>0,Table_PI[[#This Row],[Rebate]]=\"No Rebate\")),TRUE,\"MI: Line Item \" & $A276),\"\")","v":""}]
[{"$f":"IF(Table_PI[[#This Row],[Hide:\nFormula Name]]<>\"\",MAX($A$2:A276)+1,\"\")","v":""},null,null,null,null,null,null,null,null,null,null,null,null,null,null,{"$f":"IFERROR(VLOOKUP(Table_PI[[#This Row],[Measure]],'Equipment Lookups'!$C$3:$D$23,2,FALSE),\"\")","v":""},{"$f":"IF(Table_PI[[#This Row],[Hide:\nFormula Name]]<>\"\",IFERROR(IF(MeasureCalc(Table_PI[[#This Row],[Hide:\nFormula Name]],Table_PI[[#This Row],[Quantity]],Table_PI[[#This Row],[List 1]],Table_PI[[#This Row],[List 2]],Table_PI[[#This Row],[List 3]],Table_PI[[#This Row],[Size]],Table_PI[[#This Row],[Input 1]],Table_PI[[#This Row],[Input 2]],Table_PI[[#This Row],[Input 3]],Table_PI[[#This Row],[Input 4]],'Customer Information'!$AR$12,1,ROW())>0,MeasureCalc(Table_PI[[#This Row],[Hide:\nFormula Name]],Table_PI[[#This Row],[Quantity]],Table_PI[[#This Row],[List 1]],Table_PI[[#This Row],[List 2]],Table_PI[[#This Row],[List 3]],Table_PI[[#This Row],[Size]],Table_PI[[#This Row],[Input 1]],Table_PI[[#This Row],[Input 2]],Table_PI[[#This Row],[Input 3]],Table_PI[[#This Row],[Input 4]],'Customer Information'!$AR$12,1,ROW()),\"No Rebate\"),\"No Rebate\"),0)","v":0},{"$f":"IF(Table_PI[[#This Row],[Hide:\nFormula Name]]<>\"\",IFERROR(IF(MeasureCalc(Table_PI[[#This Row],[Hide:\nFormula Name]],Table_PI[[#This Row],[Quantity]],Table_PI[[#This Row],[List 1]],Table_PI[[#This Row],[List 2]],Table_PI[[#This Row],[List 3]],Table_PI[[#This Row],[Size]],Table_PI[[#This Row],[Input 1]],Table_PI[[#This Row],[Input 2]],Table_PI[[#This Row],[Input 3]],Table_PI[[#This Row],[Input 4]],'Customer Information'!$AR$12,1,ROW())>0,MeasureCalc(Table_PI[[#This Row],[Hide:\nFormula Name]],Table_PI[[#This Row],[Quantity]],Table_PI[[#This Row],[List 1]],Table_PI[[#This Row],[List 2]],Table_PI[[#This Row],[List 3]],Table_PI[[#This Row],[Size]],Table_PI[[#This Row],[Input 1]],Table_PI[[#This Row],[Input 2]],Table_PI[[#This Row],[Input 3]],Table_PI[[#This Row],[Input 4]],'Customer Information'!$AR$12,2,ROW()),\"No Rebate\"),\"No Rebate\"),0)","v":0},{"$f":"IF(Table_PI[[#This Row],[Hide:\nFormula Name]]<>\"\",IFERROR(IF(MeasureCalc(Table_PI[[#This Row],[Hide:\nFormula Name]],Table_PI[[#This Row],[Quantity]],Table_PI[[#This Row],[List 1]],Table_PI[[#This Row],[List 2]],Table_PI[[#This Row],[List 3]],Table_PI[[#This Row],[Size]],Table_PI[[#This Row],[Input 1]],Table_PI[[#This Row],[Input 2]],Table_PI[[#This Row],[Input 3]],Table_PI[[#This Row],[Input 4]],'Customer Information'!$AR$12,1,ROW())>0,MeasureCalc(Table_PI[[#This Row],[Hide:\nFormula Name]],Table_PI[[#This Row],[Quantity]],Table_PI[[#This Row],[List 1]],Table_PI[[#This Row],[List 2]],Table_PI[[#This Row],[List 3]],Table_PI[[#This Row],[Size]],Table_PI[[#This Row],[Input 1]],Table_PI[[#This Row],[Input 2]],Table_PI[[#This Row],[Input 3]],Table_PI[[#This Row],[Input 4]],'Customer Information'!$AR$12,3,ROW()),\"No Rebate\"),\"No Rebate\"),0)","v":0},{"$f":"IF(Table_PI[[#This Row],[Hide:\nFormula Name]]<>\"\",IFERROR(IF(MeasureCalc(Table_PI[[#This Row],[Hide:\nFormula Name]],Table_PI[[#This Row],[Quantity]],Table_PI[[#This Row],[List 1]],Table_PI[[#This Row],[List 2]],Table_PI[[#This Row],[List 3]],Table_PI[[#This Row],[Size]],Table_PI[[#This Row],[Input 1]],Table_PI[[#This Row],[Input 2]],Table_PI[[#This Row],[Input 3]],Table_PI[[#This Row],[Input 4]],'Customer Information'!$AR$12,1,ROW())>0,MeasureCalc(Table_PI[[#This Row],[Hide:\nFormula Name]],Table_PI[[#This Row],[Quantity]],Table_PI[[#This Row],[List 1]],Table_PI[[#This Row],[List 2]],Table_PI[[#This Row],[List 3]],Table_PI[[#This Row],[Size]],Table_PI[[#This Row],[Input 1]],Table_PI[[#This Row],[Input 2]],Table_PI[[#This Row],[Input 3]],Table_PI[[#This Row],[Input 4]],'Customer Information'!$AR$12,4,ROW()),\"No Rebate\"),\"No Rebate\"),0)","v":0},{"$f":"IF(Table_PI[[#This Row],[Hide:\nFormula Name]]<>\"\",IFERROR(IF(MeasureCalc(Table_PI[[#This Row],[Hide:\nFormula Name]],Table_PI[[#This Row],[Quantity]],Table_PI[[#This Row],[List 1]],Table_PI[[#This Row],[List 2]],Table_PI[[#This Row],[List 3]],Table_PI[[#This Row],[Size]],Table_PI[[#This Row],[Input 1]],Table_PI[[#This Row],[Input 2]],Table_PI[[#This Row],[Input 3]],Table_PI[[#This Row],[Input 4]],'Customer Information'!$AR$12,1,ROW())>0,MeasureCalc(Table_PI[[#This Row],[Hide:\nFormula Name]],Table_PI[[#This Row],[Quantity]],Table_PI[[#This Row],[List 1]],Table_PI[[#This Row],[List 2]],Table_PI[[#This Row],[List 3]],Table_PI[[#This Row],[Size]],Table_PI[[#This Row],[Input 1]],Table_PI[[#This Row],[Input 2]],Table_PI[[#This Row],[Input 3]],Table_PI[[#This Row],[Input 4]],'Customer Information'!$AR$12,5,ROW()),\"No Rebate\"),\"No Rebate\"),0)","v":0},{"$f":"IF(Table_PI[[#This Row],[Hide:\nFormula Name]]<>\"\",IFERROR(IF(MeasureCalc(Table_PI[[#This Row],[Hide:\nFormula Name]],Table_PI[[#This Row],[Quantity]],Table_PI[[#This Row],[List 1]],Table_PI[[#This Row],[List 2]],Table_PI[[#This Row],[List 3]],Table_PI[[#This Row],[Size]],Table_PI[[#This Row],[Input 1]],Table_PI[[#This Row],[Input 2]],Table_PI[[#This Row],[Input 3]],Table_PI[[#This Row],[Input 4]],'Customer Information'!$AR$12,1,ROW())>0,MeasureCalc(Table_PI[[#This Row],[Hide:\nFormula Name]],Table_PI[[#This Row],[Quantity]],Table_PI[[#This Row],[List 1]],Table_PI[[#This Row],[List 2]],Table_PI[[#This Row],[List 3]],Table_PI[[#This Row],[Size]],Table_PI[[#This Row],[Input 1]],Table_PI[[#This Row],[Input 2]],Table_PI[[#This Row],[Input 3]],Table_PI[[#This Row],[Input 4]],'Customer Information'!$AR$12,6,ROW()),\"No Rebate\"),\"No Rebate\"),0)","v":0},{"$f":"IF(Table_PI[[#This Row],[Hide:\nFormula Name]]<>\"\",IFERROR(IF(MeasureCalc(Table_PI[[#This Row],[Hide:\nFormula Name]],Table_PI[[#This Row],[Quantity]],Table_PI[[#This Row],[List 1]],Table_PI[[#This Row],[List 2]],Table_PI[[#This Row],[List 3]],Table_PI[[#This Row],[Size]],Table_PI[[#This Row],[Input 1]],Table_PI[[#This Row],[Input 2]],Table_PI[[#This Row],[Input 3]],Table_PI[[#This Row],[Input 4]],'Customer Information'!$AR$12,1,ROW())>0,MeasureCalc(Table_PI[[#This Row],[Hide:\nFormula Name]],Table_PI[[#This Row],[Quantity]],Table_PI[[#This Row],[List 1]],Table_PI[[#This Row],[List 2]],Table_PI[[#This Row],[List 3]],Table_PI[[#This Row],[Size]],Table_PI[[#This Row],[Input 1]],Table_PI[[#This Row],[Input 2]],Table_PI[[#This Row],[Input 3]],Table_PI[[#This Row],[Input 4]],'Customer Information'!$AR$12,7,ROW()),\"No Rebate\"),\"No Rebate\"),0)","v":0},{"$f":"IF(Table_PI[[#This Row],[Hide:\nFormula Name]]<>\"\",IFERROR(IF(MeasureCalc(Table_PI[[#This Row],[Hide:\nFormula Name]],Table_PI[[#This Row],[Quantity]],Table_PI[[#This Row],[List 1]],Table_PI[[#This Row],[List 2]],Table_PI[[#This Row],[List 3]],Table_PI[[#This Row],[Size]],Table_PI[[#This Row],[Input 1]],Table_PI[[#This Row],[Input 2]],Table_PI[[#This Row],[Input 3]],Table_PI[[#This Row],[Input 4]],'Customer Information'!$AR$12,1,ROW())>0,MeasureCalc(Table_PI[[#This Row],[Hide:\nFormula Name]],Table_PI[[#This Row],[Quantity]],Table_PI[[#This Row],[List 1]],Table_PI[[#This Row],[List 2]],Table_PI[[#This Row],[List 3]],Table_PI[[#This Row],[Size]],Table_PI[[#This Row],[Input 1]],Table_PI[[#This Row],[Input 2]],Table_PI[[#This Row],[Input 3]],Table_PI[[#This Row],[Input 4]],'Customer Information'!$AR$12,8,ROW()),\"No Rebate\"),\"No Rebate\"),0)","v":0},{"$f":"IF(Table_PI[[#This Row],[Hide:\nFormula Name]]<>\"\",IF(AND(Table_PI[[#This Row],[Hide:\nFormula Name]]<>\"\",OR(Table_PI[[#This Row],[Rebate]]>0,Table_PI[[#This Row],[Rebate]]=\"No Rebate\")),TRUE,\"MI: Line Item \" & $A277),\"\")","v":""}]
[{"$f":"IF(Table_PI[[#This Row],[Hide:\nFormula Name]]<>\"\",MAX($A$2:A277)+1,\"\")","v":""},null,null,null,null,null,null,null,null,null,null,null,null,null,null,{"$f":"IFERROR(VLOOKUP(Table_PI[[#This Row],[Measure]],'Equipment Lookups'!$C$3:$D$23,2,FALSE),\"\")","v":""},{"$f":"IF(Table_PI[[#This Row],[Hide:\nFormula Name]]<>\"\",IFERROR(IF(MeasureCalc(Table_PI[[#This Row],[Hide:\nFormula Name]],Table_PI[[#This Row],[Quantity]],Table_PI[[#This Row],[List 1]],Table_PI[[#This Row],[List 2]],Table_PI[[#This Row],[List 3]],Table_PI[[#This Row],[Size]],Table_PI[[#This Row],[Input 1]],Table_PI[[#This Row],[Input 2]],Table_PI[[#This Row],[Input 3]],Table_PI[[#This Row],[Input 4]],'Customer Information'!$AR$12,1,ROW())>0,MeasureCalc(Table_PI[[#This Row],[Hide:\nFormula Name]],Table_PI[[#This Row],[Quantity]],Table_PI[[#This Row],[List 1]],Table_PI[[#This Row],[List 2]],Table_PI[[#This Row],[List 3]],Table_PI[[#This Row],[Size]],Table_PI[[#This Row],[Input 1]],Table_PI[[#This Row],[Input 2]],Table_PI[[#This Row],[Input 3]],Table_PI[[#This Row],[Input 4]],'Customer Information'!$AR$12,1,ROW()),\"No Rebate\"),\"No Rebate\"),0)","v":0},{"$f":"IF(Table_PI[[#This Row],[Hide:\nFormula Name]]<>\"\",IFERROR(IF(MeasureCalc(Table_PI[[#This Row],[Hide:\nFormula Name]],Table_PI[[#This Row],[Quantity]],Table_PI[[#This Row],[List 1]],Table_PI[[#This Row],[List 2]],Table_PI[[#This Row],[List 3]],Table_PI[[#This Row],[Size]],Table_PI[[#This Row],[Input 1]],Table_PI[[#This Row],[Input 2]],Table_PI[[#This Row],[Input 3]],Table_PI[[#This Row],[Input 4]],'Customer Information'!$AR$12,1,ROW())>0,MeasureCalc(Table_PI[[#This Row],[Hide:\nFormula Name]],Table_PI[[#This Row],[Quantity]],Table_PI[[#This Row],[List 1]],Table_PI[[#This Row],[List 2]],Table_PI[[#This Row],[List 3]],Table_PI[[#This Row],[Size]],Table_PI[[#This Row],[Input 1]],Table_PI[[#This Row],[Input 2]],Table_PI[[#This Row],[Input 3]],Table_PI[[#This Row],[Input 4]],'Customer Information'!$AR$12,2,ROW()),\"No Rebate\"),\"No Rebate\"),0)","v":0},{"$f":"IF(Table_PI[[#This Row],[Hide:\nFormula Name]]<>\"\",IFERROR(IF(MeasureCalc(Table_PI[[#This Row],[Hide:\nFormula Name]],Table_PI[[#This Row],[Quantity]],Table_PI[[#This Row],[List 1]],Table_PI[[#This Row],[List 2]],Table_PI[[#This Row],[List 3]],Table_PI[[#This Row],[Size]],Table_PI[[#This Row],[Input 1]],Table_PI[[#This Row],[Input 2]],Table_PI[[#This Row],[Input 3]],Table_PI[[#This Row],[Input 4]],'Customer Information'!$AR$12,1,ROW())>0,MeasureCalc(Table_PI[[#This Row],[Hide:\nFormula Name]],Table_PI[[#This Row],[Quantity]],Table_PI[[#This Row],[List 1]],Table_PI[[#This Row],[List 2]],Table_PI[[#This Row],[List 3]],Table_PI[[#This Row],[Size]],Table_PI[[#This Row],[Input 1]],Table_PI[[#This Row],[Input 2]],Table_PI[[#This Row],[Input 3]],Table_PI[[#This Row],[Input 4]],'Customer Information'!$AR$12,3,ROW()),\"No Rebate\"),\"No Rebate\"),0)","v":0},{"$f":"IF(Table_PI[[#This Row],[Hide:\nFormula Name]]<>\"\",IFERROR(IF(MeasureCalc(Table_PI[[#This Row],[Hide:\nFormula Name]],Table_PI[[#This Row],[Quantity]],Table_PI[[#This Row],[List 1]],Table_PI[[#This Row],[List 2]],Table_PI[[#This Row],[List 3]],Table_PI[[#This Row],[Size]],Table_PI[[#This Row],[Input 1]],Table_PI[[#This Row],[Input 2]],Table_PI[[#This Row],[Input 3]],Table_PI[[#This Row],[Input 4]],'Customer Information'!$AR$12,1,ROW())>0,MeasureCalc(Table_PI[[#This Row],[Hide:\nFormula Name]],Table_PI[[#This Row],[Quantity]],Table_PI[[#This Row],[List 1]],Table_PI[[#This Row],[List 2]],Table_PI[[#This Row],[List 3]],Table_PI[[#This Row],[Size]],Table_PI[[#This Row],[Input 1]],Table_PI[[#This Row],[Input 2]],Table_PI[[#This Row],[Input 3]],Table_PI[[#This Row],[Input 4]],'Customer Information'!$AR$12,4,ROW()),\"No Rebate\"),\"No Rebate\"),0)","v":0},{"$f":"IF(Table_PI[[#This Row],[Hide:\nFormula Name]]<>\"\",IFERROR(IF(MeasureCalc(Table_PI[[#This Row],[Hide:\nFormula Name]],Table_PI[[#This Row],[Quantity]],Table_PI[[#This Row],[List 1]],Table_PI[[#This Row],[List 2]],Table_PI[[#This Row],[List 3]],Table_PI[[#This Row],[Size]],Table_PI[[#This Row],[Input 1]],Table_PI[[#This Row],[Input 2]],Table_PI[[#This Row],[Input 3]],Table_PI[[#This Row],[Input 4]],'Customer Information'!$AR$12,1,ROW())>0,MeasureCalc(Table_PI[[#This Row],[Hide:\nFormula Name]],Table_PI[[#This Row],[Quantity]],Table_PI[[#This Row],[List 1]],Table_PI[[#This Row],[List 2]],Table_PI[[#This Row],[List 3]],Table_PI[[#This Row],[Size]],Table_PI[[#This Row],[Input 1]],Table_PI[[#This Row],[Input 2]],Table_PI[[#This Row],[Input 3]],Table_PI[[#This Row],[Input 4]],'Customer Information'!$AR$12,5,ROW()),\"No Rebate\"),\"No Rebate\"),0)","v":0},{"$f":"IF(Table_PI[[#This Row],[Hide:\nFormula Name]]<>\"\",IFERROR(IF(MeasureCalc(Table_PI[[#This Row],[Hide:\nFormula Name]],Table_PI[[#This Row],[Quantity]],Table_PI[[#This Row],[List 1]],Table_PI[[#This Row],[List 2]],Table_PI[[#This Row],[List 3]],Table_PI[[#This Row],[Size]],Table_PI[[#This Row],[Input 1]],Table_PI[[#This Row],[Input 2]],Table_PI[[#This Row],[Input 3]],Table_PI[[#This Row],[Input 4]],'Customer Information'!$AR$12,1,ROW())>0,MeasureCalc(Table_PI[[#This Row],[Hide:\nFormula Name]],Table_PI[[#This Row],[Quantity]],Table_PI[[#This Row],[List 1]],Table_PI[[#This Row],[List 2]],Table_PI[[#This Row],[List 3]],Table_PI[[#This Row],[Size]],Table_PI[[#This Row],[Input 1]],Table_PI[[#This Row],[Input 2]],Table_PI[[#This Row],[Input 3]],Table_PI[[#This Row],[Input 4]],'Customer Information'!$AR$12,6,ROW()),\"No Rebate\"),\"No Rebate\"),0)","v":0},{"$f":"IF(Table_PI[[#This Row],[Hide:\nFormula Name]]<>\"\",IFERROR(IF(MeasureCalc(Table_PI[[#This Row],[Hide:\nFormula Name]],Table_PI[[#This Row],[Quantity]],Table_PI[[#This Row],[List 1]],Table_PI[[#This Row],[List 2]],Table_PI[[#This Row],[List 3]],Table_PI[[#This Row],[Size]],Table_PI[[#This Row],[Input 1]],Table_PI[[#This Row],[Input 2]],Table_PI[[#This Row],[Input 3]],Table_PI[[#This Row],[Input 4]],'Customer Information'!$AR$12,1,ROW())>0,MeasureCalc(Table_PI[[#This Row],[Hide:\nFormula Name]],Table_PI[[#This Row],[Quantity]],Table_PI[[#This Row],[List 1]],Table_PI[[#This Row],[List 2]],Table_PI[[#This Row],[List 3]],Table_PI[[#This Row],[Size]],Table_PI[[#This Row],[Input 1]],Table_PI[[#This Row],[Input 2]],Table_PI[[#This Row],[Input 3]],Table_PI[[#This Row],[Input 4]],'Customer Information'!$AR$12,7,ROW()),\"No Rebate\"),\"No Rebate\"),0)","v":0},{"$f":"IF(Table_PI[[#This Row],[Hide:\nFormula Name]]<>\"\",IFERROR(IF(MeasureCalc(Table_PI[[#This Row],[Hide:\nFormula Name]],Table_PI[[#This Row],[Quantity]],Table_PI[[#This Row],[List 1]],Table_PI[[#This Row],[List 2]],Table_PI[[#This Row],[List 3]],Table_PI[[#This Row],[Size]],Table_PI[[#This Row],[Input 1]],Table_PI[[#This Row],[Input 2]],Table_PI[[#This Row],[Input 3]],Table_PI[[#This Row],[Input 4]],'Customer Information'!$AR$12,1,ROW())>0,MeasureCalc(Table_PI[[#This Row],[Hide:\nFormula Name]],Table_PI[[#This Row],[Quantity]],Table_PI[[#This Row],[List 1]],Table_PI[[#This Row],[List 2]],Table_PI[[#This Row],[List 3]],Table_PI[[#This Row],[Size]],Table_PI[[#This Row],[Input 1]],Table_PI[[#This Row],[Input 2]],Table_PI[[#This Row],[Input 3]],Table_PI[[#This Row],[Input 4]],'Customer Information'!$AR$12,8,ROW()),\"No Rebate\"),\"No Rebate\"),0)","v":0},{"$f":"IF(Table_PI[[#This Row],[Hide:\nFormula Name]]<>\"\",IF(AND(Table_PI[[#This Row],[Hide:\nFormula Name]]<>\"\",OR(Table_PI[[#This Row],[Rebate]]>0,Table_PI[[#This Row],[Rebate]]=\"No Rebate\")),TRUE,\"MI: Line Item \" & $A278),\"\")","v":""}]
[{"$f":"IF(Table_PI[[#This Row],[Hide:\nFormula Name]]<>\"\",MAX($A$2:A278)+1,\"\")","v":""},null,null,null,null,null,null,null,null,null,null,null,null,null,null,{"$f":"IFERROR(VLOOKUP(Table_PI[[#This Row],[Measure]],'Equipment Lookups'!$C$3:$D$23,2,FALSE),\"\")","v":""},{"$f":"IF(Table_PI[[#This Row],[Hide:\nFormula Name]]<>\"\",IFERROR(IF(MeasureCalc(Table_PI[[#This Row],[Hide:\nFormula Name]],Table_PI[[#This Row],[Quantity]],Table_PI[[#This Row],[List 1]],Table_PI[[#This Row],[List 2]],Table_PI[[#This Row],[List 3]],Table_PI[[#This Row],[Size]],Table_PI[[#This Row],[Input 1]],Table_PI[[#This Row],[Input 2]],Table_PI[[#This Row],[Input 3]],Table_PI[[#This Row],[Input 4]],'Customer Information'!$AR$12,1,ROW())>0,MeasureCalc(Table_PI[[#This Row],[Hide:\nFormula Name]],Table_PI[[#This Row],[Quantity]],Table_PI[[#This Row],[List 1]],Table_PI[[#This Row],[List 2]],Table_PI[[#This Row],[List 3]],Table_PI[[#This Row],[Size]],Table_PI[[#This Row],[Input 1]],Table_PI[[#This Row],[Input 2]],Table_PI[[#This Row],[Input 3]],Table_PI[[#This Row],[Input 4]],'Customer Information'!$AR$12,1,ROW()),\"No Rebate\"),\"No Rebate\"),0)","v":0},{"$f":"IF(Table_PI[[#This Row],[Hide:\nFormula Name]]<>\"\",IFERROR(IF(MeasureCalc(Table_PI[[#This Row],[Hide:\nFormula Name]],Table_PI[[#This Row],[Quantity]],Table_PI[[#This Row],[List 1]],Table_PI[[#This Row],[List 2]],Table_PI[[#This Row],[List 3]],Table_PI[[#This Row],[Size]],Table_PI[[#This Row],[Input 1]],Table_PI[[#This Row],[Input 2]],Table_PI[[#This Row],[Input 3]],Table_PI[[#This Row],[Input 4]],'Customer Information'!$AR$12,1,ROW())>0,MeasureCalc(Table_PI[[#This Row],[Hide:\nFormula Name]],Table_PI[[#This Row],[Quantity]],Table_PI[[#This Row],[List 1]],Table_PI[[#This Row],[List 2]],Table_PI[[#This Row],[List 3]],Table_PI[[#This Row],[Size]],Table_PI[[#This Row],[Input 1]],Table_PI[[#This Row],[Input 2]],Table_PI[[#This Row],[Input 3]],Table_PI[[#This Row],[Input 4]],'Customer Information'!$AR$12,2,ROW()),\"No Rebate\"),\"No Rebate\"),0)","v":0},{"$f":"IF(Table_PI[[#This Row],[Hide:\nFormula Name]]<>\"\",IFERROR(IF(MeasureCalc(Table_PI[[#This Row],[Hide:\nFormula Name]],Table_PI[[#This Row],[Quantity]],Table_PI[[#This Row],[List 1]],Table_PI[[#This Row],[List 2]],Table_PI[[#This Row],[List 3]],Table_PI[[#This Row],[Size]],Table_PI[[#This Row],[Input 1]],Table_PI[[#This Row],[Input 2]],Table_PI[[#This Row],[Input 3]],Table_PI[[#This Row],[Input 4]],'Customer Information'!$AR$12,1,ROW())>0,MeasureCalc(Table_PI[[#This Row],[Hide:\nFormula Name]],Table_PI[[#This Row],[Quantity]],Table_PI[[#This Row],[List 1]],Table_PI[[#This Row],[List 2]],Table_PI[[#This Row],[List 3]],Table_PI[[#This Row],[Size]],Table_PI[[#This Row],[Input 1]],Table_PI[[#This Row],[Input 2]],Table_PI[[#This Row],[Input 3]],Table_PI[[#This Row],[Input 4]],'Customer Information'!$AR$12,3,ROW()),\"No Rebate\"),\"No Rebate\"),0)","v":0},{"$f":"IF(Table_PI[[#This Row],[Hide:\nFormula Name]]<>\"\",IFERROR(IF(MeasureCalc(Table_PI[[#This Row],[Hide:\nFormula Name]],Table_PI[[#This Row],[Quantity]],Table_PI[[#This Row],[List 1]],Table_PI[[#This Row],[List 2]],Table_PI[[#This Row],[List 3]],Table_PI[[#This Row],[Size]],Table_PI[[#This Row],[Input 1]],Table_PI[[#This Row],[Input 2]],Table_PI[[#This Row],[Input 3]],Table_PI[[#This Row],[Input 4]],'Customer Information'!$AR$12,1,ROW())>0,MeasureCalc(Table_PI[[#This Row],[Hide:\nFormula Name]],Table_PI[[#This Row],[Quantity]],Table_PI[[#This Row],[List 1]],Table_PI[[#This Row],[List 2]],Table_PI[[#This Row],[List 3]],Table_PI[[#This Row],[Size]],Table_PI[[#This Row],[Input 1]],Table_PI[[#This Row],[Input 2]],Table_PI[[#This Row],[Input 3]],Table_PI[[#This Row],[Input 4]],'Customer Information'!$AR$12,4,ROW()),\"No Rebate\"),\"No Rebate\"),0)","v":0},{"$f":"IF(Table_PI[[#This Row],[Hide:\nFormula Name]]<>\"\",IFERROR(IF(MeasureCalc(Table_PI[[#This Row],[Hide:\nFormula Name]],Table_PI[[#This Row],[Quantity]],Table_PI[[#This Row],[List 1]],Table_PI[[#This Row],[List 2]],Table_PI[[#This Row],[List 3]],Table_PI[[#This Row],[Size]],Table_PI[[#This Row],[Input 1]],Table_PI[[#This Row],[Input 2]],Table_PI[[#This Row],[Input 3]],Table_PI[[#This Row],[Input 4]],'Customer Information'!$AR$12,1,ROW())>0,MeasureCalc(Table_PI[[#This Row],[Hide:\nFormula Name]],Table_PI[[#This Row],[Quantity]],Table_PI[[#This Row],[List 1]],Table_PI[[#This Row],[List 2]],Table_PI[[#This Row],[List 3]],Table_PI[[#This Row],[Size]],Table_PI[[#This Row],[Input 1]],Table_PI[[#This Row],[Input 2]],Table_PI[[#This Row],[Input 3]],Table_PI[[#This Row],[Input 4]],'Customer Information'!$AR$12,5,ROW()),\"No Rebate\"),\"No Rebate\"),0)","v":0},{"$f":"IF(Table_PI[[#This Row],[Hide:\nFormula Name]]<>\"\",IFERROR(IF(MeasureCalc(Table_PI[[#This Row],[Hide:\nFormula Name]],Table_PI[[#This Row],[Quantity]],Table_PI[[#This Row],[List 1]],Table_PI[[#This Row],[List 2]],Table_PI[[#This Row],[List 3]],Table_PI[[#This Row],[Size]],Table_PI[[#This Row],[Input 1]],Table_PI[[#This Row],[Input 2]],Table_PI[[#This Row],[Input 3]],Table_PI[[#This Row],[Input 4]],'Customer Information'!$AR$12,1,ROW())>0,MeasureCalc(Table_PI[[#This Row],[Hide:\nFormula Name]],Table_PI[[#This Row],[Quantity]],Table_PI[[#This Row],[List 1]],Table_PI[[#This Row],[List 2]],Table_PI[[#This Row],[List 3]],Table_PI[[#This Row],[Size]],Table_PI[[#This Row],[Input 1]],Table_PI[[#This Row],[Input 2]],Table_PI[[#This Row],[Input 3]],Table_PI[[#This Row],[Input 4]],'Customer Information'!$AR$12,6,ROW()),\"No Rebate\"),\"No Rebate\"),0)","v":0},{"$f":"IF(Table_PI[[#This Row],[Hide:\nFormula Name]]<>\"\",IFERROR(IF(MeasureCalc(Table_PI[[#This Row],[Hide:\nFormula Name]],Table_PI[[#This Row],[Quantity]],Table_PI[[#This Row],[List 1]],Table_PI[[#This Row],[List 2]],Table_PI[[#This Row],[List 3]],Table_PI[[#This Row],[Size]],Table_PI[[#This Row],[Input 1]],Table_PI[[#This Row],[Input 2]],Table_PI[[#This Row],[Input 3]],Table_PI[[#This Row],[Input 4]],'Customer Information'!$AR$12,1,ROW())>0,MeasureCalc(Table_PI[[#This Row],[Hide:\nFormula Name]],Table_PI[[#This Row],[Quantity]],Table_PI[[#This Row],[List 1]],Table_PI[[#This Row],[List 2]],Table_PI[[#This Row],[List 3]],Table_PI[[#This Row],[Size]],Table_PI[[#This Row],[Input 1]],Table_PI[[#This Row],[Input 2]],Table_PI[[#This Row],[Input 3]],Table_PI[[#This Row],[Input 4]],'Customer Information'!$AR$12,7,ROW()),\"No Rebate\"),\"No Rebate\"),0)","v":0},{"$f":"IF(Table_PI[[#This Row],[Hide:\nFormula Name]]<>\"\",IFERROR(IF(MeasureCalc(Table_PI[[#This Row],[Hide:\nFormula Name]],Table_PI[[#This Row],[Quantity]],Table_PI[[#This Row],[List 1]],Table_PI[[#This Row],[List 2]],Table_PI[[#This Row],[List 3]],Table_PI[[#This Row],[Size]],Table_PI[[#This Row],[Input 1]],Table_PI[[#This Row],[Input 2]],Table_PI[[#This Row],[Input 3]],Table_PI[[#This Row],[Input 4]],'Customer Information'!$AR$12,1,ROW())>0,MeasureCalc(Table_PI[[#This Row],[Hide:\nFormula Name]],Table_PI[[#This Row],[Quantity]],Table_PI[[#This Row],[List 1]],Table_PI[[#This Row],[List 2]],Table_PI[[#This Row],[List 3]],Table_PI[[#This Row],[Size]],Table_PI[[#This Row],[Input 1]],Table_PI[[#This Row],[Input 2]],Table_PI[[#This Row],[Input 3]],Table_PI[[#This Row],[Input 4]],'Customer Information'!$AR$12,8,ROW()),\"No Rebate\"),\"No Rebate\"),0)","v":0},{"$f":"IF(Table_PI[[#This Row],[Hide:\nFormula Name]]<>\"\",IF(AND(Table_PI[[#This Row],[Hide:\nFormula Name]]<>\"\",OR(Table_PI[[#This Row],[Rebate]]>0,Table_PI[[#This Row],[Rebate]]=\"No Rebate\")),TRUE,\"MI: Line Item \" & $A279),\"\")","v":""}]
[{"$f":"IF(Table_PI[[#This Row],[Hide:\nFormula Name]]<>\"\",MAX($A$2:A279)+1,\"\")","v":""},null,null,null,null,null,null,null,null,null,null,null,null,null,null,{"$f":"IFERROR(VLOOKUP(Table_PI[[#This Row],[Measure]],'Equipment Lookups'!$C$3:$D$23,2,FALSE),\"\")","v":""},{"$f":"IF(Table_PI[[#This Row],[Hide:\nFormula Name]]<>\"\",IFERROR(IF(MeasureCalc(Table_PI[[#This Row],[Hide:\nFormula Name]],Table_PI[[#This Row],[Quantity]],Table_PI[[#This Row],[List 1]],Table_PI[[#This Row],[List 2]],Table_PI[[#This Row],[List 3]],Table_PI[[#This Row],[Size]],Table_PI[[#This Row],[Input 1]],Table_PI[[#This Row],[Input 2]],Table_PI[[#This Row],[Input 3]],Table_PI[[#This Row],[Input 4]],'Customer Information'!$AR$12,1,ROW())>0,MeasureCalc(Table_PI[[#This Row],[Hide:\nFormula Name]],Table_PI[[#This Row],[Quantity]],Table_PI[[#This Row],[List 1]],Table_PI[[#This Row],[List 2]],Table_PI[[#This Row],[List 3]],Table_PI[[#This Row],[Size]],Table_PI[[#This Row],[Input 1]],Table_PI[[#This Row],[Input 2]],Table_PI[[#This Row],[Input 3]],Table_PI[[#This Row],[Input 4]],'Customer Information'!$AR$12,1,ROW()),\"No Rebate\"),\"No Rebate\"),0)","v":0},{"$f":"IF(Table_PI[[#This Row],[Hide:\nFormula Name]]<>\"\",IFERROR(IF(MeasureCalc(Table_PI[[#This Row],[Hide:\nFormula Name]],Table_PI[[#This Row],[Quantity]],Table_PI[[#This Row],[List 1]],Table_PI[[#This Row],[List 2]],Table_PI[[#This Row],[List 3]],Table_PI[[#This Row],[Size]],Table_PI[[#This Row],[Input 1]],Table_PI[[#This Row],[Input 2]],Table_PI[[#This Row],[Input 3]],Table_PI[[#This Row],[Input 4]],'Customer Information'!$AR$12,1,ROW())>0,MeasureCalc(Table_PI[[#This Row],[Hide:\nFormula Name]],Table_PI[[#This Row],[Quantity]],Table_PI[[#This Row],[List 1]],Table_PI[[#This Row],[List 2]],Table_PI[[#This Row],[List 3]],Table_PI[[#This Row],[Size]],Table_PI[[#This Row],[Input 1]],Table_PI[[#This Row],[Input 2]],Table_PI[[#This Row],[Input 3]],Table_PI[[#This Row],[Input 4]],'Customer Information'!$AR$12,2,ROW()),\"No Rebate\"),\"No Rebate\"),0)","v":0},{"$f":"IF(Table_PI[[#This Row],[Hide:\nFormula Name]]<>\"\",IFERROR(IF(MeasureCalc(Table_PI[[#This Row],[Hide:\nFormula Name]],Table_PI[[#This Row],[Quantity]],Table_PI[[#This Row],[List 1]],Table_PI[[#This Row],[List 2]],Table_PI[[#This Row],[List 3]],Table_PI[[#This Row],[Size]],Table_PI[[#This Row],[Input 1]],Table_PI[[#This Row],[Input 2]],Table_PI[[#This Row],[Input 3]],Table_PI[[#This Row],[Input 4]],'Customer Information'!$AR$12,1,ROW())>0,MeasureCalc(Table_PI[[#This Row],[Hide:\nFormula Name]],Table_PI[[#This Row],[Quantity]],Table_PI[[#This Row],[List 1]],Table_PI[[#This Row],[List 2]],Table_PI[[#This Row],[List 3]],Table_PI[[#This Row],[Size]],Table_PI[[#This Row],[Input 1]],Table_PI[[#This Row],[Input 2]],Table_PI[[#This Row],[Input 3]],Table_PI[[#This Row],[Input 4]],'Customer Information'!$AR$12,3,ROW()),\"No Rebate\"),\"No Rebate\"),0)","v":0},{"$f":"IF(Table_PI[[#This Row],[Hide:\nFormula Name]]<>\"\",IFERROR(IF(MeasureCalc(Table_PI[[#This Row],[Hide:\nFormula Name]],Table_PI[[#This Row],[Quantity]],Table_PI[[#This Row],[List 1]],Table_PI[[#This Row],[List 2]],Table_PI[[#This Row],[List 3]],Table_PI[[#This Row],[Size]],Table_PI[[#This Row],[Input 1]],Table_PI[[#This Row],[Input 2]],Table_PI[[#This Row],[Input 3]],Table_PI[[#This Row],[Input 4]],'Customer Information'!$AR$12,1,ROW())>0,MeasureCalc(Table_PI[[#This Row],[Hide:\nFormula Name]],Table_PI[[#This Row],[Quantity]],Table_PI[[#This Row],[List 1]],Table_PI[[#This Row],[List 2]],Table_PI[[#This Row],[List 3]],Table_PI[[#This Row],[Size]],Table_PI[[#This Row],[Input 1]],Table_PI[[#This Row],[Input 2]],Table_PI[[#This Row],[Input 3]],Table_PI[[#This Row],[Input 4]],'Customer Information'!$AR$12,4,ROW()),\"No Rebate\"),\"No Rebate\"),0)","v":0},{"$f":"IF(Table_PI[[#This Row],[Hide:\nFormula Name]]<>\"\",IFERROR(IF(MeasureCalc(Table_PI[[#This Row],[Hide:\nFormula Name]],Table_PI[[#This Row],[Quantity]],Table_PI[[#This Row],[List 1]],Table_PI[[#This Row],[List 2]],Table_PI[[#This Row],[List 3]],Table_PI[[#This Row],[Size]],Table_PI[[#This Row],[Input 1]],Table_PI[[#This Row],[Input 2]],Table_PI[[#This Row],[Input 3]],Table_PI[[#This Row],[Input 4]],'Customer Information'!$AR$12,1,ROW())>0,MeasureCalc(Table_PI[[#This Row],[Hide:\nFormula Name]],Table_PI[[#This Row],[Quantity]],Table_PI[[#This Row],[List 1]],Table_PI[[#This Row],[List 2]],Table_PI[[#This Row],[List 3]],Table_PI[[#This Row],[Size]],Table_PI[[#This Row],[Input 1]],Table_PI[[#This Row],[Input 2]],Table_PI[[#This Row],[Input 3]],Table_PI[[#This Row],[Input 4]],'Customer Information'!$AR$12,5,ROW()),\"No Rebate\"),\"No Rebate\"),0)","v":0},{"$f":"IF(Table_PI[[#This Row],[Hide:\nFormula Name]]<>\"\",IFERROR(IF(MeasureCalc(Table_PI[[#This Row],[Hide:\nFormula Name]],Table_PI[[#This Row],[Quantity]],Table_PI[[#This Row],[List 1]],Table_PI[[#This Row],[List 2]],Table_PI[[#This Row],[List 3]],Table_PI[[#This Row],[Size]],Table_PI[[#This Row],[Input 1]],Table_PI[[#This Row],[Input 2]],Table_PI[[#This Row],[Input 3]],Table_PI[[#This Row],[Input 4]],'Customer Information'!$AR$12,1,ROW())>0,MeasureCalc(Table_PI[[#This Row],[Hide:\nFormula Name]],Table_PI[[#This Row],[Quantity]],Table_PI[[#This Row],[List 1]],Table_PI[[#This Row],[List 2]],Table_PI[[#This Row],[List 3]],Table_PI[[#This Row],[Size]],Table_PI[[#This Row],[Input 1]],Table_PI[[#This Row],[Input 2]],Table_PI[[#This Row],[Input 3]],Table_PI[[#This Row],[Input 4]],'Customer Information'!$AR$12,6,ROW()),\"No Rebate\"),\"No Rebate\"),0)","v":0},{"$f":"IF(Table_PI[[#This Row],[Hide:\nFormula Name]]<>\"\",IFERROR(IF(MeasureCalc(Table_PI[[#This Row],[Hide:\nFormula Name]],Table_PI[[#This Row],[Quantity]],Table_PI[[#This Row],[List 1]],Table_PI[[#This Row],[List 2]],Table_PI[[#This Row],[List 3]],Table_PI[[#This Row],[Size]],Table_PI[[#This Row],[Input 1]],Table_PI[[#This Row],[Input 2]],Table_PI[[#This Row],[Input 3]],Table_PI[[#This Row],[Input 4]],'Customer Information'!$AR$12,1,ROW())>0,MeasureCalc(Table_PI[[#This Row],[Hide:\nFormula Name]],Table_PI[[#This Row],[Quantity]],Table_PI[[#This Row],[List 1]],Table_PI[[#This Row],[List 2]],Table_PI[[#This Row],[List 3]],Table_PI[[#This Row],[Size]],Table_PI[[#This Row],[Input 1]],Table_PI[[#This Row],[Input 2]],Table_PI[[#This Row],[Input 3]],Table_PI[[#This Row],[Input 4]],'Customer Information'!$AR$12,7,ROW()),\"No Rebate\"),\"No Rebate\"),0)","v":0},{"$f":"IF(Table_PI[[#This Row],[Hide:\nFormula Name]]<>\"\",IFERROR(IF(MeasureCalc(Table_PI[[#This Row],[Hide:\nFormula Name]],Table_PI[[#This Row],[Quantity]],Table_PI[[#This Row],[List 1]],Table_PI[[#This Row],[List 2]],Table_PI[[#This Row],[List 3]],Table_PI[[#This Row],[Size]],Table_PI[[#This Row],[Input 1]],Table_PI[[#This Row],[Input 2]],Table_PI[[#This Row],[Input 3]],Table_PI[[#This Row],[Input 4]],'Customer Information'!$AR$12,1,ROW())>0,MeasureCalc(Table_PI[[#This Row],[Hide:\nFormula Name]],Table_PI[[#This Row],[Quantity]],Table_PI[[#This Row],[List 1]],Table_PI[[#This Row],[List 2]],Table_PI[[#This Row],[List 3]],Table_PI[[#This Row],[Size]],Table_PI[[#This Row],[Input 1]],Table_PI[[#This Row],[Input 2]],Table_PI[[#This Row],[Input 3]],Table_PI[[#This Row],[Input 4]],'Customer Information'!$AR$12,8,ROW()),\"No Rebate\"),\"No Rebate\"),0)","v":0},{"$f":"IF(Table_PI[[#This Row],[Hide:\nFormula Name]]<>\"\",IF(AND(Table_PI[[#This Row],[Hide:\nFormula Name]]<>\"\",OR(Table_PI[[#This Row],[Rebate]]>0,Table_PI[[#This Row],[Rebate]]=\"No Rebate\")),TRUE,\"MI: Line Item \" & $A280),\"\")","v":""}]
[{"$f":"IF(Table_PI[[#This Row],[Hide:\nFormula Name]]<>\"\",MAX($A$2:A280)+1,\"\")","v":""},null,null,null,null,null,null,null,null,null,null,null,null,null,null,{"$f":"IFERROR(VLOOKUP(Table_PI[[#This Row],[Measure]],'Equipment Lookups'!$C$3:$D$23,2,FALSE),\"\")","v":""},{"$f":"IF(Table_PI[[#This Row],[Hide:\nFormula Name]]<>\"\",IFERROR(IF(MeasureCalc(Table_PI[[#This Row],[Hide:\nFormula Name]],Table_PI[[#This Row],[Quantity]],Table_PI[[#This Row],[List 1]],Table_PI[[#This Row],[List 2]],Table_PI[[#This Row],[List 3]],Table_PI[[#This Row],[Size]],Table_PI[[#This Row],[Input 1]],Table_PI[[#This Row],[Input 2]],Table_PI[[#This Row],[Input 3]],Table_PI[[#This Row],[Input 4]],'Customer Information'!$AR$12,1,ROW())>0,MeasureCalc(Table_PI[[#This Row],[Hide:\nFormula Name]],Table_PI[[#This Row],[Quantity]],Table_PI[[#This Row],[List 1]],Table_PI[[#This Row],[List 2]],Table_PI[[#This Row],[List 3]],Table_PI[[#This Row],[Size]],Table_PI[[#This Row],[Input 1]],Table_PI[[#This Row],[Input 2]],Table_PI[[#This Row],[Input 3]],Table_PI[[#This Row],[Input 4]],'Customer Information'!$AR$12,1,ROW()),\"No Rebate\"),\"No Rebate\"),0)","v":0},{"$f":"IF(Table_PI[[#This Row],[Hide:\nFormula Name]]<>\"\",IFERROR(IF(MeasureCalc(Table_PI[[#This Row],[Hide:\nFormula Name]],Table_PI[[#This Row],[Quantity]],Table_PI[[#This Row],[List 1]],Table_PI[[#This Row],[List 2]],Table_PI[[#This Row],[List 3]],Table_PI[[#This Row],[Size]],Table_PI[[#This Row],[Input 1]],Table_PI[[#This Row],[Input 2]],Table_PI[[#This Row],[Input 3]],Table_PI[[#This Row],[Input 4]],'Customer Information'!$AR$12,1,ROW())>0,MeasureCalc(Table_PI[[#This Row],[Hide:\nFormula Name]],Table_PI[[#This Row],[Quantity]],Table_PI[[#This Row],[List 1]],Table_PI[[#This Row],[List 2]],Table_PI[[#This Row],[List 3]],Table_PI[[#This Row],[Size]],Table_PI[[#This Row],[Input 1]],Table_PI[[#This Row],[Input 2]],Table_PI[[#This Row],[Input 3]],Table_PI[[#This Row],[Input 4]],'Customer Information'!$AR$12,2,ROW()),\"No Rebate\"),\"No Rebate\"),0)","v":0},{"$f":"IF(Table_PI[[#This Row],[Hide:\nFormula Name]]<>\"\",IFERROR(IF(MeasureCalc(Table_PI[[#This Row],[Hide:\nFormula Name]],Table_PI[[#This Row],[Quantity]],Table_PI[[#This Row],[List 1]],Table_PI[[#This Row],[List 2]],Table_PI[[#This Row],[List 3]],Table_PI[[#This Row],[Size]],Table_PI[[#This Row],[Input 1]],Table_PI[[#This Row],[Input 2]],Table_PI[[#This Row],[Input 3]],Table_PI[[#This Row],[Input 4]],'Customer Information'!$AR$12,1,ROW())>0,MeasureCalc(Table_PI[[#This Row],[Hide:\nFormula Name]],Table_PI[[#This Row],[Quantity]],Table_PI[[#This Row],[List 1]],Table_PI[[#This Row],[List 2]],Table_PI[[#This Row],[List 3]],Table_PI[[#This Row],[Size]],Table_PI[[#This Row],[Input 1]],Table_PI[[#This Row],[Input 2]],Table_PI[[#This Row],[Input 3]],Table_PI[[#This Row],[Input 4]],'Customer Information'!$AR$12,3,ROW()),\"No Rebate\"),\"No Rebate\"),0)","v":0},{"$f":"IF(Table_PI[[#This Row],[Hide:\nFormula Name]]<>\"\",IFERROR(IF(MeasureCalc(Table_PI[[#This Row],[Hide:\nFormula Name]],Table_PI[[#This Row],[Quantity]],Table_PI[[#This Row],[List 1]],Table_PI[[#This Row],[List 2]],Table_PI[[#This Row],[List 3]],Table_PI[[#This Row],[Size]],Table_PI[[#This Row],[Input 1]],Table_PI[[#This Row],[Input 2]],Table_PI[[#This Row],[Input 3]],Table_PI[[#This Row],[Input 4]],'Customer Information'!$AR$12,1,ROW())>0,MeasureCalc(Table_PI[[#This Row],[Hide:\nFormula Name]],Table_PI[[#This Row],[Quantity]],Table_PI[[#This Row],[List 1]],Table_PI[[#This Row],[List 2]],Table_PI[[#This Row],[List 3]],Table_PI[[#This Row],[Size]],Table_PI[[#This Row],[Input 1]],Table_PI[[#This Row],[Input 2]],Table_PI[[#This Row],[Input 3]],Table_PI[[#This Row],[Input 4]],'Customer Information'!$AR$12,4,ROW()),\"No Rebate\"),\"No Rebate\"),0)","v":0},{"$f":"IF(Table_PI[[#This Row],[Hide:\nFormula Name]]<>\"\",IFERROR(IF(MeasureCalc(Table_PI[[#This Row],[Hide:\nFormula Name]],Table_PI[[#This Row],[Quantity]],Table_PI[[#This Row],[List 1]],Table_PI[[#This Row],[List 2]],Table_PI[[#This Row],[List 3]],Table_PI[[#This Row],[Size]],Table_PI[[#This Row],[Input 1]],Table_PI[[#This Row],[Input 2]],Table_PI[[#This Row],[Input 3]],Table_PI[[#This Row],[Input 4]],'Customer Information'!$AR$12,1,ROW())>0,MeasureCalc(Table_PI[[#This Row],[Hide:\nFormula Name]],Table_PI[[#This Row],[Quantity]],Table_PI[[#This Row],[List 1]],Table_PI[[#This Row],[List 2]],Table_PI[[#This Row],[List 3]],Table_PI[[#This Row],[Size]],Table_PI[[#This Row],[Input 1]],Table_PI[[#This Row],[Input 2]],Table_PI[[#This Row],[Input 3]],Table_PI[[#This Row],[Input 4]],'Customer Information'!$AR$12,5,ROW()),\"No Rebate\"),\"No Rebate\"),0)","v":0},{"$f":"IF(Table_PI[[#This Row],[Hide:\nFormula Name]]<>\"\",IFERROR(IF(MeasureCalc(Table_PI[[#This Row],[Hide:\nFormula Name]],Table_PI[[#This Row],[Quantity]],Table_PI[[#This Row],[List 1]],Table_PI[[#This Row],[List 2]],Table_PI[[#This Row],[List 3]],Table_PI[[#This Row],[Size]],Table_PI[[#This Row],[Input 1]],Table_PI[[#This Row],[Input 2]],Table_PI[[#This Row],[Input 3]],Table_PI[[#This Row],[Input 4]],'Customer Information'!$AR$12,1,ROW())>0,MeasureCalc(Table_PI[[#This Row],[Hide:\nFormula Name]],Table_PI[[#This Row],[Quantity]],Table_PI[[#This Row],[List 1]],Table_PI[[#This Row],[List 2]],Table_PI[[#This Row],[List 3]],Table_PI[[#This Row],[Size]],Table_PI[[#This Row],[Input 1]],Table_PI[[#This Row],[Input 2]],Table_PI[[#This Row],[Input 3]],Table_PI[[#This Row],[Input 4]],'Customer Information'!$AR$12,6,ROW()),\"No Rebate\"),\"No Rebate\"),0)","v":0},{"$f":"IF(Table_PI[[#This Row],[Hide:\nFormula Name]]<>\"\",IFERROR(IF(MeasureCalc(Table_PI[[#This Row],[Hide:\nFormula Name]],Table_PI[[#This Row],[Quantity]],Table_PI[[#This Row],[List 1]],Table_PI[[#This Row],[List 2]],Table_PI[[#This Row],[List 3]],Table_PI[[#This Row],[Size]],Table_PI[[#This Row],[Input 1]],Table_PI[[#This Row],[Input 2]],Table_PI[[#This Row],[Input 3]],Table_PI[[#This Row],[Input 4]],'Customer Information'!$AR$12,1,ROW())>0,MeasureCalc(Table_PI[[#This Row],[Hide:\nFormula Name]],Table_PI[[#This Row],[Quantity]],Table_PI[[#This Row],[List 1]],Table_PI[[#This Row],[List 2]],Table_PI[[#This Row],[List 3]],Table_PI[[#This Row],[Size]],Table_PI[[#This Row],[Input 1]],Table_PI[[#This Row],[Input 2]],Table_PI[[#This Row],[Input 3]],Table_PI[[#This Row],[Input 4]],'Customer Information'!$AR$12,7,ROW()),\"No Rebate\"),\"No Rebate\"),0)","v":0},{"$f":"IF(Table_PI[[#This Row],[Hide:\nFormula Name]]<>\"\",IFERROR(IF(MeasureCalc(Table_PI[[#This Row],[Hide:\nFormula Name]],Table_PI[[#This Row],[Quantity]],Table_PI[[#This Row],[List 1]],Table_PI[[#This Row],[List 2]],Table_PI[[#This Row],[List 3]],Table_PI[[#This Row],[Size]],Table_PI[[#This Row],[Input 1]],Table_PI[[#This Row],[Input 2]],Table_PI[[#This Row],[Input 3]],Table_PI[[#This Row],[Input 4]],'Customer Information'!$AR$12,1,ROW())>0,MeasureCalc(Table_PI[[#This Row],[Hide:\nFormula Name]],Table_PI[[#This Row],[Quantity]],Table_PI[[#This Row],[List 1]],Table_PI[[#This Row],[List 2]],Table_PI[[#This Row],[List 3]],Table_PI[[#This Row],[Size]],Table_PI[[#This Row],[Input 1]],Table_PI[[#This Row],[Input 2]],Table_PI[[#This Row],[Input 3]],Table_PI[[#This Row],[Input 4]],'Customer Information'!$AR$12,8,ROW()),\"No Rebate\"),\"No Rebate\"),0)","v":0},{"$f":"IF(Table_PI[[#This Row],[Hide:\nFormula Name]]<>\"\",IF(AND(Table_PI[[#This Row],[Hide:\nFormula Name]]<>\"\",OR(Table_PI[[#This Row],[Rebate]]>0,Table_PI[[#This Row],[Rebate]]=\"No Rebate\")),TRUE,\"MI: Line Item \" & $A281),\"\")","v":""}]
[{"$f":"IF(Table_PI[[#This Row],[Hide:\nFormula Name]]<>\"\",MAX($A$2:A281)+1,\"\")","v":""},null,null,null,null,null,null,null,null,null,null,null,null,null,null,{"$f":"IFERROR(VLOOKUP(Table_PI[[#This Row],[Measure]],'Equipment Lookups'!$C$3:$D$23,2,FALSE),\"\")","v":""},{"$f":"IF(Table_PI[[#This Row],[Hide:\nFormula Name]]<>\"\",IFERROR(IF(MeasureCalc(Table_PI[[#This Row],[Hide:\nFormula Name]],Table_PI[[#This Row],[Quantity]],Table_PI[[#This Row],[List 1]],Table_PI[[#This Row],[List 2]],Table_PI[[#This Row],[List 3]],Table_PI[[#This Row],[Size]],Table_PI[[#This Row],[Input 1]],Table_PI[[#This Row],[Input 2]],Table_PI[[#This Row],[Input 3]],Table_PI[[#This Row],[Input 4]],'Customer Information'!$AR$12,1,ROW())>0,MeasureCalc(Table_PI[[#This Row],[Hide:\nFormula Name]],Table_PI[[#This Row],[Quantity]],Table_PI[[#This Row],[List 1]],Table_PI[[#This Row],[List 2]],Table_PI[[#This Row],[List 3]],Table_PI[[#This Row],[Size]],Table_PI[[#This Row],[Input 1]],Table_PI[[#This Row],[Input 2]],Table_PI[[#This Row],[Input 3]],Table_PI[[#This Row],[Input 4]],'Customer Information'!$AR$12,1,ROW()),\"No Rebate\"),\"No Rebate\"),0)","v":0},{"$f":"IF(Table_PI[[#This Row],[Hide:\nFormula Name]]<>\"\",IFERROR(IF(MeasureCalc(Table_PI[[#This Row],[Hide:\nFormula Name]],Table_PI[[#This Row],[Quantity]],Table_PI[[#This Row],[List 1]],Table_PI[[#This Row],[List 2]],Table_PI[[#This Row],[List 3]],Table_PI[[#This Row],[Size]],Table_PI[[#This Row],[Input 1]],Table_PI[[#This Row],[Input 2]],Table_PI[[#This Row],[Input 3]],Table_PI[[#This Row],[Input 4]],'Customer Information'!$AR$12,1,ROW())>0,MeasureCalc(Table_PI[[#This Row],[Hide:\nFormula Name]],Table_PI[[#This Row],[Quantity]],Table_PI[[#This Row],[List 1]],Table_PI[[#This Row],[List 2]],Table_PI[[#This Row],[List 3]],Table_PI[[#This Row],[Size]],Table_PI[[#This Row],[Input 1]],Table_PI[[#This Row],[Input 2]],Table_PI[[#This Row],[Input 3]],Table_PI[[#This Row],[Input 4]],'Customer Information'!$AR$12,2,ROW()),\"No Rebate\"),\"No Rebate\"),0)","v":0},{"$f":"IF(Table_PI[[#This Row],[Hide:\nFormula Name]]<>\"\",IFERROR(IF(MeasureCalc(Table_PI[[#This Row],[Hide:\nFormula Name]],Table_PI[[#This Row],[Quantity]],Table_PI[[#This Row],[List 1]],Table_PI[[#This Row],[List 2]],Table_PI[[#This Row],[List 3]],Table_PI[[#This Row],[Size]],Table_PI[[#This Row],[Input 1]],Table_PI[[#This Row],[Input 2]],Table_PI[[#This Row],[Input 3]],Table_PI[[#This Row],[Input 4]],'Customer Information'!$AR$12,1,ROW())>0,MeasureCalc(Table_PI[[#This Row],[Hide:\nFormula Name]],Table_PI[[#This Row],[Quantity]],Table_PI[[#This Row],[List 1]],Table_PI[[#This Row],[List 2]],Table_PI[[#This Row],[List 3]],Table_PI[[#This Row],[Size]],Table_PI[[#This Row],[Input 1]],Table_PI[[#This Row],[Input 2]],Table_PI[[#This Row],[Input 3]],Table_PI[[#This Row],[Input 4]],'Customer Information'!$AR$12,3,ROW()),\"No Rebate\"),\"No Rebate\"),0)","v":0},{"$f":"IF(Table_PI[[#This Row],[Hide:\nFormula Name]]<>\"\",IFERROR(IF(MeasureCalc(Table_PI[[#This Row],[Hide:\nFormula Name]],Table_PI[[#This Row],[Quantity]],Table_PI[[#This Row],[List 1]],Table_PI[[#This Row],[List 2]],Table_PI[[#This Row],[List 3]],Table_PI[[#This Row],[Size]],Table_PI[[#This Row],[Input 1]],Table_PI[[#This Row],[Input 2]],Table_PI[[#This Row],[Input 3]],Table_PI[[#This Row],[Input 4]],'Customer Information'!$AR$12,1,ROW())>0,MeasureCalc(Table_PI[[#This Row],[Hide:\nFormula Name]],Table_PI[[#This Row],[Quantity]],Table_PI[[#This Row],[List 1]],Table_PI[[#This Row],[List 2]],Table_PI[[#This Row],[List 3]],Table_PI[[#This Row],[Size]],Table_PI[[#This Row],[Input 1]],Table_PI[[#This Row],[Input 2]],Table_PI[[#This Row],[Input 3]],Table_PI[[#This Row],[Input 4]],'Customer Information'!$AR$12,4,ROW()),\"No Rebate\"),\"No Rebate\"),0)","v":0},{"$f":"IF(Table_PI[[#This Row],[Hide:\nFormula Name]]<>\"\",IFERROR(IF(MeasureCalc(Table_PI[[#This Row],[Hide:\nFormula Name]],Table_PI[[#This Row],[Quantity]],Table_PI[[#This Row],[List 1]],Table_PI[[#This Row],[List 2]],Table_PI[[#This Row],[List 3]],Table_PI[[#This Row],[Size]],Table_PI[[#This Row],[Input 1]],Table_PI[[#This Row],[Input 2]],Table_PI[[#This Row],[Input 3]],Table_PI[[#This Row],[Input 4]],'Customer Information'!$AR$12,1,ROW())>0,MeasureCalc(Table_PI[[#This Row],[Hide:\nFormula Name]],Table_PI[[#This Row],[Quantity]],Table_PI[[#This Row],[List 1]],Table_PI[[#This Row],[List 2]],Table_PI[[#This Row],[List 3]],Table_PI[[#This Row],[Size]],Table_PI[[#This Row],[Input 1]],Table_PI[[#This Row],[Input 2]],Table_PI[[#This Row],[Input 3]],Table_PI[[#This Row],[Input 4]],'Customer Information'!$AR$12,5,ROW()),\"No Rebate\"),\"No Rebate\"),0)","v":0},{"$f":"IF(Table_PI[[#This Row],[Hide:\nFormula Name]]<>\"\",IFERROR(IF(MeasureCalc(Table_PI[[#This Row],[Hide:\nFormula Name]],Table_PI[[#This Row],[Quantity]],Table_PI[[#This Row],[List 1]],Table_PI[[#This Row],[List 2]],Table_PI[[#This Row],[List 3]],Table_PI[[#This Row],[Size]],Table_PI[[#This Row],[Input 1]],Table_PI[[#This Row],[Input 2]],Table_PI[[#This Row],[Input 3]],Table_PI[[#This Row],[Input 4]],'Customer Information'!$AR$12,1,ROW())>0,MeasureCalc(Table_PI[[#This Row],[Hide:\nFormula Name]],Table_PI[[#This Row],[Quantity]],Table_PI[[#This Row],[List 1]],Table_PI[[#This Row],[List 2]],Table_PI[[#This Row],[List 3]],Table_PI[[#This Row],[Size]],Table_PI[[#This Row],[Input 1]],Table_PI[[#This Row],[Input 2]],Table_PI[[#This Row],[Input 3]],Table_PI[[#This Row],[Input 4]],'Customer Information'!$AR$12,6,ROW()),\"No Rebate\"),\"No Rebate\"),0)","v":0},{"$f":"IF(Table_PI[[#This Row],[Hide:\nFormula Name]]<>\"\",IFERROR(IF(MeasureCalc(Table_PI[[#This Row],[Hide:\nFormula Name]],Table_PI[[#This Row],[Quantity]],Table_PI[[#This Row],[List 1]],Table_PI[[#This Row],[List 2]],Table_PI[[#This Row],[List 3]],Table_PI[[#This Row],[Size]],Table_PI[[#This Row],[Input 1]],Table_PI[[#This Row],[Input 2]],Table_PI[[#This Row],[Input 3]],Table_PI[[#This Row],[Input 4]],'Customer Information'!$AR$12,1,ROW())>0,MeasureCalc(Table_PI[[#This Row],[Hide:\nFormula Name]],Table_PI[[#This Row],[Quantity]],Table_PI[[#This Row],[List 1]],Table_PI[[#This Row],[List 2]],Table_PI[[#This Row],[List 3]],Table_PI[[#This Row],[Size]],Table_PI[[#This Row],[Input 1]],Table_PI[[#This Row],[Input 2]],Table_PI[[#This Row],[Input 3]],Table_PI[[#This Row],[Input 4]],'Customer Information'!$AR$12,7,ROW()),\"No Rebate\"),\"No Rebate\"),0)","v":0},{"$f":"IF(Table_PI[[#This Row],[Hide:\nFormula Name]]<>\"\",IFERROR(IF(MeasureCalc(Table_PI[[#This Row],[Hide:\nFormula Name]],Table_PI[[#This Row],[Quantity]],Table_PI[[#This Row],[List 1]],Table_PI[[#This Row],[List 2]],Table_PI[[#This Row],[List 3]],Table_PI[[#This Row],[Size]],Table_PI[[#This Row],[Input 1]],Table_PI[[#This Row],[Input 2]],Table_PI[[#This Row],[Input 3]],Table_PI[[#This Row],[Input 4]],'Customer Information'!$AR$12,1,ROW())>0,MeasureCalc(Table_PI[[#This Row],[Hide:\nFormula Name]],Table_PI[[#This Row],[Quantity]],Table_PI[[#This Row],[List 1]],Table_PI[[#This Row],[List 2]],Table_PI[[#This Row],[List 3]],Table_PI[[#This Row],[Size]],Table_PI[[#This Row],[Input 1]],Table_PI[[#This Row],[Input 2]],Table_PI[[#This Row],[Input 3]],Table_PI[[#This Row],[Input 4]],'Customer Information'!$AR$12,8,ROW()),\"No Rebate\"),\"No Rebate\"),0)","v":0},{"$f":"IF(Table_PI[[#This Row],[Hide:\nFormula Name]]<>\"\",IF(AND(Table_PI[[#This Row],[Hide:\nFormula Name]]<>\"\",OR(Table_PI[[#This Row],[Rebate]]>0,Table_PI[[#This Row],[Rebate]]=\"No Rebate\")),TRUE,\"MI: Line Item \" & $A282),\"\")","v":""}]
[{"$f":"IF(Table_PI[[#This Row],[Hide:\nFormula Name]]<>\"\",MAX($A$2:A282)+1,\"\")","v":""},null,null,null,null,null,null,null,null,null,null,null,null,null,null,{"$f":"IFERROR(VLOOKUP(Table_PI[[#This Row],[Measure]],'Equipment Lookups'!$C$3:$D$23,2,FALSE),\"\")","v":""},{"$f":"IF(Table_PI[[#This Row],[Hide:\nFormula Name]]<>\"\",IFERROR(IF(MeasureCalc(Table_PI[[#This Row],[Hide:\nFormula Name]],Table_PI[[#This Row],[Quantity]],Table_PI[[#This Row],[List 1]],Table_PI[[#This Row],[List 2]],Table_PI[[#This Row],[List 3]],Table_PI[[#This Row],[Size]],Table_PI[[#This Row],[Input 1]],Table_PI[[#This Row],[Input 2]],Table_PI[[#This Row],[Input 3]],Table_PI[[#This Row],[Input 4]],'Customer Information'!$AR$12,1,ROW())>0,MeasureCalc(Table_PI[[#This Row],[Hide:\nFormula Name]],Table_PI[[#This Row],[Quantity]],Table_PI[[#This Row],[List 1]],Table_PI[[#This Row],[List 2]],Table_PI[[#This Row],[List 3]],Table_PI[[#This Row],[Size]],Table_PI[[#This Row],[Input 1]],Table_PI[[#This Row],[Input 2]],Table_PI[[#This Row],[Input 3]],Table_PI[[#This Row],[Input 4]],'Customer Information'!$AR$12,1,ROW()),\"No Rebate\"),\"No Rebate\"),0)","v":0},{"$f":"IF(Table_PI[[#This Row],[Hide:\nFormula Name]]<>\"\",IFERROR(IF(MeasureCalc(Table_PI[[#This Row],[Hide:\nFormula Name]],Table_PI[[#This Row],[Quantity]],Table_PI[[#This Row],[List 1]],Table_PI[[#This Row],[List 2]],Table_PI[[#This Row],[List 3]],Table_PI[[#This Row],[Size]],Table_PI[[#This Row],[Input 1]],Table_PI[[#This Row],[Input 2]],Table_PI[[#This Row],[Input 3]],Table_PI[[#This Row],[Input 4]],'Customer Information'!$AR$12,1,ROW())>0,MeasureCalc(Table_PI[[#This Row],[Hide:\nFormula Name]],Table_PI[[#This Row],[Quantity]],Table_PI[[#This Row],[List 1]],Table_PI[[#This Row],[List 2]],Table_PI[[#This Row],[List 3]],Table_PI[[#This Row],[Size]],Table_PI[[#This Row],[Input 1]],Table_PI[[#This Row],[Input 2]],Table_PI[[#This Row],[Input 3]],Table_PI[[#This Row],[Input 4]],'Customer Information'!$AR$12,2,ROW()),\"No Rebate\"),\"No Rebate\"),0)","v":0},{"$f":"IF(Table_PI[[#This Row],[Hide:\nFormula Name]]<>\"\",IFERROR(IF(MeasureCalc(Table_PI[[#This Row],[Hide:\nFormula Name]],Table_PI[[#This Row],[Quantity]],Table_PI[[#This Row],[List 1]],Table_PI[[#This Row],[List 2]],Table_PI[[#This Row],[List 3]],Table_PI[[#This Row],[Size]],Table_PI[[#This Row],[Input 1]],Table_PI[[#This Row],[Input 2]],Table_PI[[#This Row],[Input 3]],Table_PI[[#This Row],[Input 4]],'Customer Information'!$AR$12,1,ROW())>0,MeasureCalc(Table_PI[[#This Row],[Hide:\nFormula Name]],Table_PI[[#This Row],[Quantity]],Table_PI[[#This Row],[List 1]],Table_PI[[#This Row],[List 2]],Table_PI[[#This Row],[List 3]],Table_PI[[#This Row],[Size]],Table_PI[[#This Row],[Input 1]],Table_PI[[#This Row],[Input 2]],Table_PI[[#This Row],[Input 3]],Table_PI[[#This Row],[Input 4]],'Customer Information'!$AR$12,3,ROW()),\"No Rebate\"),\"No Rebate\"),0)","v":0},{"$f":"IF(Table_PI[[#This Row],[Hide:\nFormula Name]]<>\"\",IFERROR(IF(MeasureCalc(Table_PI[[#This Row],[Hide:\nFormula Name]],Table_PI[[#This Row],[Quantity]],Table_PI[[#This Row],[List 1]],Table_PI[[#This Row],[List 2]],Table_PI[[#This Row],[List 3]],Table_PI[[#This Row],[Size]],Table_PI[[#This Row],[Input 1]],Table_PI[[#This Row],[Input 2]],Table_PI[[#This Row],[Input 3]],Table_PI[[#This Row],[Input 4]],'Customer Information'!$AR$12,1,ROW())>0,MeasureCalc(Table_PI[[#This Row],[Hide:\nFormula Name]],Table_PI[[#This Row],[Quantity]],Table_PI[[#This Row],[List 1]],Table_PI[[#This Row],[List 2]],Table_PI[[#This Row],[List 3]],Table_PI[[#This Row],[Size]],Table_PI[[#This Row],[Input 1]],Table_PI[[#This Row],[Input 2]],Table_PI[[#This Row],[Input 3]],Table_PI[[#This Row],[Input 4]],'Customer Information'!$AR$12,4,ROW()),\"No Rebate\"),\"No Rebate\"),0)","v":0},{"$f":"IF(Table_PI[[#This Row],[Hide:\nFormula Name]]<>\"\",IFERROR(IF(MeasureCalc(Table_PI[[#This Row],[Hide:\nFormula Name]],Table_PI[[#This Row],[Quantity]],Table_PI[[#This Row],[List 1]],Table_PI[[#This Row],[List 2]],Table_PI[[#This Row],[List 3]],Table_PI[[#This Row],[Size]],Table_PI[[#This Row],[Input 1]],Table_PI[[#This Row],[Input 2]],Table_PI[[#This Row],[Input 3]],Table_PI[[#This Row],[Input 4]],'Customer Information'!$AR$12,1,ROW())>0,MeasureCalc(Table_PI[[#This Row],[Hide:\nFormula Name]],Table_PI[[#This Row],[Quantity]],Table_PI[[#This Row],[List 1]],Table_PI[[#This Row],[List 2]],Table_PI[[#This Row],[List 3]],Table_PI[[#This Row],[Size]],Table_PI[[#This Row],[Input 1]],Table_PI[[#This Row],[Input 2]],Table_PI[[#This Row],[Input 3]],Table_PI[[#This Row],[Input 4]],'Customer Information'!$AR$12,5,ROW()),\"No Rebate\"),\"No Rebate\"),0)","v":0},{"$f":"IF(Table_PI[[#This Row],[Hide:\nFormula Name]]<>\"\",IFERROR(IF(MeasureCalc(Table_PI[[#This Row],[Hide:\nFormula Name]],Table_PI[[#This Row],[Quantity]],Table_PI[[#This Row],[List 1]],Table_PI[[#This Row],[List 2]],Table_PI[[#This Row],[List 3]],Table_PI[[#This Row],[Size]],Table_PI[[#This Row],[Input 1]],Table_PI[[#This Row],[Input 2]],Table_PI[[#This Row],[Input 3]],Table_PI[[#This Row],[Input 4]],'Customer Information'!$AR$12,1,ROW())>0,MeasureCalc(Table_PI[[#This Row],[Hide:\nFormula Name]],Table_PI[[#This Row],[Quantity]],Table_PI[[#This Row],[List 1]],Table_PI[[#This Row],[List 2]],Table_PI[[#This Row],[List 3]],Table_PI[[#This Row],[Size]],Table_PI[[#This Row],[Input 1]],Table_PI[[#This Row],[Input 2]],Table_PI[[#This Row],[Input 3]],Table_PI[[#This Row],[Input 4]],'Customer Information'!$AR$12,6,ROW()),\"No Rebate\"),\"No Rebate\"),0)","v":0},{"$f":"IF(Table_PI[[#This Row],[Hide:\nFormula Name]]<>\"\",IFERROR(IF(MeasureCalc(Table_PI[[#This Row],[Hide:\nFormula Name]],Table_PI[[#This Row],[Quantity]],Table_PI[[#This Row],[List 1]],Table_PI[[#This Row],[List 2]],Table_PI[[#This Row],[List 3]],Table_PI[[#This Row],[Size]],Table_PI[[#This Row],[Input 1]],Table_PI[[#This Row],[Input 2]],Table_PI[[#This Row],[Input 3]],Table_PI[[#This Row],[Input 4]],'Customer Information'!$AR$12,1,ROW())>0,MeasureCalc(Table_PI[[#This Row],[Hide:\nFormula Name]],Table_PI[[#This Row],[Quantity]],Table_PI[[#This Row],[List 1]],Table_PI[[#This Row],[List 2]],Table_PI[[#This Row],[List 3]],Table_PI[[#This Row],[Size]],Table_PI[[#This Row],[Input 1]],Table_PI[[#This Row],[Input 2]],Table_PI[[#This Row],[Input 3]],Table_PI[[#This Row],[Input 4]],'Customer Information'!$AR$12,7,ROW()),\"No Rebate\"),\"No Rebate\"),0)","v":0},{"$f":"IF(Table_PI[[#This Row],[Hide:\nFormula Name]]<>\"\",IFERROR(IF(MeasureCalc(Table_PI[[#This Row],[Hide:\nFormula Name]],Table_PI[[#This Row],[Quantity]],Table_PI[[#This Row],[List 1]],Table_PI[[#This Row],[List 2]],Table_PI[[#This Row],[List 3]],Table_PI[[#This Row],[Size]],Table_PI[[#This Row],[Input 1]],Table_PI[[#This Row],[Input 2]],Table_PI[[#This Row],[Input 3]],Table_PI[[#This Row],[Input 4]],'Customer Information'!$AR$12,1,ROW())>0,MeasureCalc(Table_PI[[#This Row],[Hide:\nFormula Name]],Table_PI[[#This Row],[Quantity]],Table_PI[[#This Row],[List 1]],Table_PI[[#This Row],[List 2]],Table_PI[[#This Row],[List 3]],Table_PI[[#This Row],[Size]],Table_PI[[#This Row],[Input 1]],Table_PI[[#This Row],[Input 2]],Table_PI[[#This Row],[Input 3]],Table_PI[[#This Row],[Input 4]],'Customer Information'!$AR$12,8,ROW()),\"No Rebate\"),\"No Rebate\"),0)","v":0},{"$f":"IF(Table_PI[[#This Row],[Hide:\nFormula Name]]<>\"\",IF(AND(Table_PI[[#This Row],[Hide:\nFormula Name]]<>\"\",OR(Table_PI[[#This Row],[Rebate]]>0,Table_PI[[#This Row],[Rebate]]=\"No Rebate\")),TRUE,\"MI: Line Item \" & $A283),\"\")","v":""}]
[{"$f":"IF(Table_PI[[#This Row],[Hide:\nFormula Name]]<>\"\",MAX($A$2:A283)+1,\"\")","v":""},null,null,null,null,null,null,null,null,null,null,null,null,null,null,{"$f":"IFERROR(VLOOKUP(Table_PI[[#This Row],[Measure]],'Equipment Lookups'!$C$3:$D$23,2,FALSE),\"\")","v":""},{"$f":"IF(Table_PI[[#This Row],[Hide:\nFormula Name]]<>\"\",IFERROR(IF(MeasureCalc(Table_PI[[#This Row],[Hide:\nFormula Name]],Table_PI[[#This Row],[Quantity]],Table_PI[[#This Row],[List 1]],Table_PI[[#This Row],[List 2]],Table_PI[[#This Row],[List 3]],Table_PI[[#This Row],[Size]],Table_PI[[#This Row],[Input 1]],Table_PI[[#This Row],[Input 2]],Table_PI[[#This Row],[Input 3]],Table_PI[[#This Row],[Input 4]],'Customer Information'!$AR$12,1,ROW())>0,MeasureCalc(Table_PI[[#This Row],[Hide:\nFormula Name]],Table_PI[[#This Row],[Quantity]],Table_PI[[#This Row],[List 1]],Table_PI[[#This Row],[List 2]],Table_PI[[#This Row],[List 3]],Table_PI[[#This Row],[Size]],Table_PI[[#This Row],[Input 1]],Table_PI[[#This Row],[Input 2]],Table_PI[[#This Row],[Input 3]],Table_PI[[#This Row],[Input 4]],'Customer Information'!$AR$12,1,ROW()),\"No Rebate\"),\"No Rebate\"),0)","v":0},{"$f":"IF(Table_PI[[#This Row],[Hide:\nFormula Name]]<>\"\",IFERROR(IF(MeasureCalc(Table_PI[[#This Row],[Hide:\nFormula Name]],Table_PI[[#This Row],[Quantity]],Table_PI[[#This Row],[List 1]],Table_PI[[#This Row],[List 2]],Table_PI[[#This Row],[List 3]],Table_PI[[#This Row],[Size]],Table_PI[[#This Row],[Input 1]],Table_PI[[#This Row],[Input 2]],Table_PI[[#This Row],[Input 3]],Table_PI[[#This Row],[Input 4]],'Customer Information'!$AR$12,1,ROW())>0,MeasureCalc(Table_PI[[#This Row],[Hide:\nFormula Name]],Table_PI[[#This Row],[Quantity]],Table_PI[[#This Row],[List 1]],Table_PI[[#This Row],[List 2]],Table_PI[[#This Row],[List 3]],Table_PI[[#This Row],[Size]],Table_PI[[#This Row],[Input 1]],Table_PI[[#This Row],[Input 2]],Table_PI[[#This Row],[Input 3]],Table_PI[[#This Row],[Input 4]],'Customer Information'!$AR$12,2,ROW()),\"No Rebate\"),\"No Rebate\"),0)","v":0},{"$f":"IF(Table_PI[[#This Row],[Hide:\nFormula Name]]<>\"\",IFERROR(IF(MeasureCalc(Table_PI[[#This Row],[Hide:\nFormula Name]],Table_PI[[#This Row],[Quantity]],Table_PI[[#This Row],[List 1]],Table_PI[[#This Row],[List 2]],Table_PI[[#This Row],[List 3]],Table_PI[[#This Row],[Size]],Table_PI[[#This Row],[Input 1]],Table_PI[[#This Row],[Input 2]],Table_PI[[#This Row],[Input 3]],Table_PI[[#This Row],[Input 4]],'Customer Information'!$AR$12,1,ROW())>0,MeasureCalc(Table_PI[[#This Row],[Hide:\nFormula Name]],Table_PI[[#This Row],[Quantity]],Table_PI[[#This Row],[List 1]],Table_PI[[#This Row],[List 2]],Table_PI[[#This Row],[List 3]],Table_PI[[#This Row],[Size]],Table_PI[[#This Row],[Input 1]],Table_PI[[#This Row],[Input 2]],Table_PI[[#This Row],[Input 3]],Table_PI[[#This Row],[Input 4]],'Customer Information'!$AR$12,3,ROW()),\"No Rebate\"),\"No Rebate\"),0)","v":0},{"$f":"IF(Table_PI[[#This Row],[Hide:\nFormula Name]]<>\"\",IFERROR(IF(MeasureCalc(Table_PI[[#This Row],[Hide:\nFormula Name]],Table_PI[[#This Row],[Quantity]],Table_PI[[#This Row],[List 1]],Table_PI[[#This Row],[List 2]],Table_PI[[#This Row],[List 3]],Table_PI[[#This Row],[Size]],Table_PI[[#This Row],[Input 1]],Table_PI[[#This Row],[Input 2]],Table_PI[[#This Row],[Input 3]],Table_PI[[#This Row],[Input 4]],'Customer Information'!$AR$12,1,ROW())>0,MeasureCalc(Table_PI[[#This Row],[Hide:\nFormula Name]],Table_PI[[#This Row],[Quantity]],Table_PI[[#This Row],[List 1]],Table_PI[[#This Row],[List 2]],Table_PI[[#This Row],[List 3]],Table_PI[[#This Row],[Size]],Table_PI[[#This Row],[Input 1]],Table_PI[[#This Row],[Input 2]],Table_PI[[#This Row],[Input 3]],Table_PI[[#This Row],[Input 4]],'Customer Information'!$AR$12,4,ROW()),\"No Rebate\"),\"No Rebate\"),0)","v":0},{"$f":"IF(Table_PI[[#This Row],[Hide:\nFormula Name]]<>\"\",IFERROR(IF(MeasureCalc(Table_PI[[#This Row],[Hide:\nFormula Name]],Table_PI[[#This Row],[Quantity]],Table_PI[[#This Row],[List 1]],Table_PI[[#This Row],[List 2]],Table_PI[[#This Row],[List 3]],Table_PI[[#This Row],[Size]],Table_PI[[#This Row],[Input 1]],Table_PI[[#This Row],[Input 2]],Table_PI[[#This Row],[Input 3]],Table_PI[[#This Row],[Input 4]],'Customer Information'!$AR$12,1,ROW())>0,MeasureCalc(Table_PI[[#This Row],[Hide:\nFormula Name]],Table_PI[[#This Row],[Quantity]],Table_PI[[#This Row],[List 1]],Table_PI[[#This Row],[List 2]],Table_PI[[#This Row],[List 3]],Table_PI[[#This Row],[Size]],Table_PI[[#This Row],[Input 1]],Table_PI[[#This Row],[Input 2]],Table_PI[[#This Row],[Input 3]],Table_PI[[#This Row],[Input 4]],'Customer Information'!$AR$12,5,ROW()),\"No Rebate\"),\"No Rebate\"),0)","v":0},{"$f":"IF(Table_PI[[#This Row],[Hide:\nFormula Name]]<>\"\",IFERROR(IF(MeasureCalc(Table_PI[[#This Row],[Hide:\nFormula Name]],Table_PI[[#This Row],[Quantity]],Table_PI[[#This Row],[List 1]],Table_PI[[#This Row],[List 2]],Table_PI[[#This Row],[List 3]],Table_PI[[#This Row],[Size]],Table_PI[[#This Row],[Input 1]],Table_PI[[#This Row],[Input 2]],Table_PI[[#This Row],[Input 3]],Table_PI[[#This Row],[Input 4]],'Customer Information'!$AR$12,1,ROW())>0,MeasureCalc(Table_PI[[#This Row],[Hide:\nFormula Name]],Table_PI[[#This Row],[Quantity]],Table_PI[[#This Row],[List 1]],Table_PI[[#This Row],[List 2]],Table_PI[[#This Row],[List 3]],Table_PI[[#This Row],[Size]],Table_PI[[#This Row],[Input 1]],Table_PI[[#This Row],[Input 2]],Table_PI[[#This Row],[Input 3]],Table_PI[[#This Row],[Input 4]],'Customer Information'!$AR$12,6,ROW()),\"No Rebate\"),\"No Rebate\"),0)","v":0},{"$f":"IF(Table_PI[[#This Row],[Hide:\nFormula Name]]<>\"\",IFERROR(IF(MeasureCalc(Table_PI[[#This Row],[Hide:\nFormula Name]],Table_PI[[#This Row],[Quantity]],Table_PI[[#This Row],[List 1]],Table_PI[[#This Row],[List 2]],Table_PI[[#This Row],[List 3]],Table_PI[[#This Row],[Size]],Table_PI[[#This Row],[Input 1]],Table_PI[[#This Row],[Input 2]],Table_PI[[#This Row],[Input 3]],Table_PI[[#This Row],[Input 4]],'Customer Information'!$AR$12,1,ROW())>0,MeasureCalc(Table_PI[[#This Row],[Hide:\nFormula Name]],Table_PI[[#This Row],[Quantity]],Table_PI[[#This Row],[List 1]],Table_PI[[#This Row],[List 2]],Table_PI[[#This Row],[List 3]],Table_PI[[#This Row],[Size]],Table_PI[[#This Row],[Input 1]],Table_PI[[#This Row],[Input 2]],Table_PI[[#This Row],[Input 3]],Table_PI[[#This Row],[Input 4]],'Customer Information'!$AR$12,7,ROW()),\"No Rebate\"),\"No Rebate\"),0)","v":0},{"$f":"IF(Table_PI[[#This Row],[Hide:\nFormula Name]]<>\"\",IFERROR(IF(MeasureCalc(Table_PI[[#This Row],[Hide:\nFormula Name]],Table_PI[[#This Row],[Quantity]],Table_PI[[#This Row],[List 1]],Table_PI[[#This Row],[List 2]],Table_PI[[#This Row],[List 3]],Table_PI[[#This Row],[Size]],Table_PI[[#This Row],[Input 1]],Table_PI[[#This Row],[Input 2]],Table_PI[[#This Row],[Input 3]],Table_PI[[#This Row],[Input 4]],'Customer Information'!$AR$12,1,ROW())>0,MeasureCalc(Table_PI[[#This Row],[Hide:\nFormula Name]],Table_PI[[#This Row],[Quantity]],Table_PI[[#This Row],[List 1]],Table_PI[[#This Row],[List 2]],Table_PI[[#This Row],[List 3]],Table_PI[[#This Row],[Size]],Table_PI[[#This Row],[Input 1]],Table_PI[[#This Row],[Input 2]],Table_PI[[#This Row],[Input 3]],Table_PI[[#This Row],[Input 4]],'Customer Information'!$AR$12,8,ROW()),\"No Rebate\"),\"No Rebate\"),0)","v":0},{"$f":"IF(Table_PI[[#This Row],[Hide:\nFormula Name]]<>\"\",IF(AND(Table_PI[[#This Row],[Hide:\nFormula Name]]<>\"\",OR(Table_PI[[#This Row],[Rebate]]>0,Table_PI[[#This Row],[Rebate]]=\"No Rebate\")),TRUE,\"MI: Line Item \" & $A284),\"\")","v":""}]
[{"$f":"IF(Table_PI[[#This Row],[Hide:\nFormula Name]]<>\"\",MAX($A$2:A284)+1,\"\")","v":""},null,null,null,null,null,null,null,null,null,null,null,null,null,null,{"$f":"IFERROR(VLOOKUP(Table_PI[[#This Row],[Measure]],'Equipment Lookups'!$C$3:$D$23,2,FALSE),\"\")","v":""},{"$f":"IF(Table_PI[[#This Row],[Hide:\nFormula Name]]<>\"\",IFERROR(IF(MeasureCalc(Table_PI[[#This Row],[Hide:\nFormula Name]],Table_PI[[#This Row],[Quantity]],Table_PI[[#This Row],[List 1]],Table_PI[[#This Row],[List 2]],Table_PI[[#This Row],[List 3]],Table_PI[[#This Row],[Size]],Table_PI[[#This Row],[Input 1]],Table_PI[[#This Row],[Input 2]],Table_PI[[#This Row],[Input 3]],Table_PI[[#This Row],[Input 4]],'Customer Information'!$AR$12,1,ROW())>0,MeasureCalc(Table_PI[[#This Row],[Hide:\nFormula Name]],Table_PI[[#This Row],[Quantity]],Table_PI[[#This Row],[List 1]],Table_PI[[#This Row],[List 2]],Table_PI[[#This Row],[List 3]],Table_PI[[#This Row],[Size]],Table_PI[[#This Row],[Input 1]],Table_PI[[#This Row],[Input 2]],Table_PI[[#This Row],[Input 3]],Table_PI[[#This Row],[Input 4]],'Customer Information'!$AR$12,1,ROW()),\"No Rebate\"),\"No Rebate\"),0)","v":0},{"$f":"IF(Table_PI[[#This Row],[Hide:\nFormula Name]]<>\"\",IFERROR(IF(MeasureCalc(Table_PI[[#This Row],[Hide:\nFormula Name]],Table_PI[[#This Row],[Quantity]],Table_PI[[#This Row],[List 1]],Table_PI[[#This Row],[List 2]],Table_PI[[#This Row],[List 3]],Table_PI[[#This Row],[Size]],Table_PI[[#This Row],[Input 1]],Table_PI[[#This Row],[Input 2]],Table_PI[[#This Row],[Input 3]],Table_PI[[#This Row],[Input 4]],'Customer Information'!$AR$12,1,ROW())>0,MeasureCalc(Table_PI[[#This Row],[Hide:\nFormula Name]],Table_PI[[#This Row],[Quantity]],Table_PI[[#This Row],[List 1]],Table_PI[[#This Row],[List 2]],Table_PI[[#This Row],[List 3]],Table_PI[[#This Row],[Size]],Table_PI[[#This Row],[Input 1]],Table_PI[[#This Row],[Input 2]],Table_PI[[#This Row],[Input 3]],Table_PI[[#This Row],[Input 4]],'Customer Information'!$AR$12,2,ROW()),\"No Rebate\"),\"No Rebate\"),0)","v":0},{"$f":"IF(Table_PI[[#This Row],[Hide:\nFormula Name]]<>\"\",IFERROR(IF(MeasureCalc(Table_PI[[#This Row],[Hide:\nFormula Name]],Table_PI[[#This Row],[Quantity]],Table_PI[[#This Row],[List 1]],Table_PI[[#This Row],[List 2]],Table_PI[[#This Row],[List 3]],Table_PI[[#This Row],[Size]],Table_PI[[#This Row],[Input 1]],Table_PI[[#This Row],[Input 2]],Table_PI[[#This Row],[Input 3]],Table_PI[[#This Row],[Input 4]],'Customer Information'!$AR$12,1,ROW())>0,MeasureCalc(Table_PI[[#This Row],[Hide:\nFormula Name]],Table_PI[[#This Row],[Quantity]],Table_PI[[#This Row],[List 1]],Table_PI[[#This Row],[List 2]],Table_PI[[#This Row],[List 3]],Table_PI[[#This Row],[Size]],Table_PI[[#This Row],[Input 1]],Table_PI[[#This Row],[Input 2]],Table_PI[[#This Row],[Input 3]],Table_PI[[#This Row],[Input 4]],'Customer Information'!$AR$12,3,ROW()),\"No Rebate\"),\"No Rebate\"),0)","v":0},{"$f":"IF(Table_PI[[#This Row],[Hide:\nFormula Name]]<>\"\",IFERROR(IF(MeasureCalc(Table_PI[[#This Row],[Hide:\nFormula Name]],Table_PI[[#This Row],[Quantity]],Table_PI[[#This Row],[List 1]],Table_PI[[#This Row],[List 2]],Table_PI[[#This Row],[List 3]],Table_PI[[#This Row],[Size]],Table_PI[[#This Row],[Input 1]],Table_PI[[#This Row],[Input 2]],Table_PI[[#This Row],[Input 3]],Table_PI[[#This Row],[Input 4]],'Customer Information'!$AR$12,1,ROW())>0,MeasureCalc(Table_PI[[#This Row],[Hide:\nFormula Name]],Table_PI[[#This Row],[Quantity]],Table_PI[[#This Row],[List 1]],Table_PI[[#This Row],[List 2]],Table_PI[[#This Row],[List 3]],Table_PI[[#This Row],[Size]],Table_PI[[#This Row],[Input 1]],Table_PI[[#This Row],[Input 2]],Table_PI[[#This Row],[Input 3]],Table_PI[[#This Row],[Input 4]],'Customer Information'!$AR$12,4,ROW()),\"No Rebate\"),\"No Rebate\"),0)","v":0},{"$f":"IF(Table_PI[[#This Row],[Hide:\nFormula Name]]<>\"\",IFERROR(IF(MeasureCalc(Table_PI[[#This Row],[Hide:\nFormula Name]],Table_PI[[#This Row],[Quantity]],Table_PI[[#This Row],[List 1]],Table_PI[[#This Row],[List 2]],Table_PI[[#This Row],[List 3]],Table_PI[[#This Row],[Size]],Table_PI[[#This Row],[Input 1]],Table_PI[[#This Row],[Input 2]],Table_PI[[#This Row],[Input 3]],Table_PI[[#This Row],[Input 4]],'Customer Information'!$AR$12,1,ROW())>0,MeasureCalc(Table_PI[[#This Row],[Hide:\nFormula Name]],Table_PI[[#This Row],[Quantity]],Table_PI[[#This Row],[List 1]],Table_PI[[#This Row],[List 2]],Table_PI[[#This Row],[List 3]],Table_PI[[#This Row],[Size]],Table_PI[[#This Row],[Input 1]],Table_PI[[#This Row],[Input 2]],Table_PI[[#This Row],[Input 3]],Table_PI[[#This Row],[Input 4]],'Customer Information'!$AR$12,5,ROW()),\"No Rebate\"),\"No Rebate\"),0)","v":0},{"$f":"IF(Table_PI[[#This Row],[Hide:\nFormula Name]]<>\"\",IFERROR(IF(MeasureCalc(Table_PI[[#This Row],[Hide:\nFormula Name]],Table_PI[[#This Row],[Quantity]],Table_PI[[#This Row],[List 1]],Table_PI[[#This Row],[List 2]],Table_PI[[#This Row],[List 3]],Table_PI[[#This Row],[Size]],Table_PI[[#This Row],[Input 1]],Table_PI[[#This Row],[Input 2]],Table_PI[[#This Row],[Input 3]],Table_PI[[#This Row],[Input 4]],'Customer Information'!$AR$12,1,ROW())>0,MeasureCalc(Table_PI[[#This Row],[Hide:\nFormula Name]],Table_PI[[#This Row],[Quantity]],Table_PI[[#This Row],[List 1]],Table_PI[[#This Row],[List 2]],Table_PI[[#This Row],[List 3]],Table_PI[[#This Row],[Size]],Table_PI[[#This Row],[Input 1]],Table_PI[[#This Row],[Input 2]],Table_PI[[#This Row],[Input 3]],Table_PI[[#This Row],[Input 4]],'Customer Information'!$AR$12,6,ROW()),\"No Rebate\"),\"No Rebate\"),0)","v":0},{"$f":"IF(Table_PI[[#This Row],[Hide:\nFormula Name]]<>\"\",IFERROR(IF(MeasureCalc(Table_PI[[#This Row],[Hide:\nFormula Name]],Table_PI[[#This Row],[Quantity]],Table_PI[[#This Row],[List 1]],Table_PI[[#This Row],[List 2]],Table_PI[[#This Row],[List 3]],Table_PI[[#This Row],[Size]],Table_PI[[#This Row],[Input 1]],Table_PI[[#This Row],[Input 2]],Table_PI[[#This Row],[Input 3]],Table_PI[[#This Row],[Input 4]],'Customer Information'!$AR$12,1,ROW())>0,MeasureCalc(Table_PI[[#This Row],[Hide:\nFormula Name]],Table_PI[[#This Row],[Quantity]],Table_PI[[#This Row],[List 1]],Table_PI[[#This Row],[List 2]],Table_PI[[#This Row],[List 3]],Table_PI[[#This Row],[Size]],Table_PI[[#This Row],[Input 1]],Table_PI[[#This Row],[Input 2]],Table_PI[[#This Row],[Input 3]],Table_PI[[#This Row],[Input 4]],'Customer Information'!$AR$12,7,ROW()),\"No Rebate\"),\"No Rebate\"),0)","v":0},{"$f":"IF(Table_PI[[#This Row],[Hide:\nFormula Name]]<>\"\",IFERROR(IF(MeasureCalc(Table_PI[[#This Row],[Hide:\nFormula Name]],Table_PI[[#This Row],[Quantity]],Table_PI[[#This Row],[List 1]],Table_PI[[#This Row],[List 2]],Table_PI[[#This Row],[List 3]],Table_PI[[#This Row],[Size]],Table_PI[[#This Row],[Input 1]],Table_PI[[#This Row],[Input 2]],Table_PI[[#This Row],[Input 3]],Table_PI[[#This Row],[Input 4]],'Customer Information'!$AR$12,1,ROW())>0,MeasureCalc(Table_PI[[#This Row],[Hide:\nFormula Name]],Table_PI[[#This Row],[Quantity]],Table_PI[[#This Row],[List 1]],Table_PI[[#This Row],[List 2]],Table_PI[[#This Row],[List 3]],Table_PI[[#This Row],[Size]],Table_PI[[#This Row],[Input 1]],Table_PI[[#This Row],[Input 2]],Table_PI[[#This Row],[Input 3]],Table_PI[[#This Row],[Input 4]],'Customer Information'!$AR$12,8,ROW()),\"No Rebate\"),\"No Rebate\"),0)","v":0},{"$f":"IF(Table_PI[[#This Row],[Hide:\nFormula Name]]<>\"\",IF(AND(Table_PI[[#This Row],[Hide:\nFormula Name]]<>\"\",OR(Table_PI[[#This Row],[Rebate]]>0,Table_PI[[#This Row],[Rebate]]=\"No Rebate\")),TRUE,\"MI: Line Item \" & $A285),\"\")","v":""}]
[{"$f":"IF(Table_PI[[#This Row],[Hide:\nFormula Name]]<>\"\",MAX($A$2:A285)+1,\"\")","v":""},null,null,null,null,null,null,null,null,null,null,null,null,null,null,{"$f":"IFERROR(VLOOKUP(Table_PI[[#This Row],[Measure]],'Equipment Lookups'!$C$3:$D$23,2,FALSE),\"\")","v":""},{"$f":"IF(Table_PI[[#This Row],[Hide:\nFormula Name]]<>\"\",IFERROR(IF(MeasureCalc(Table_PI[[#This Row],[Hide:\nFormula Name]],Table_PI[[#This Row],[Quantity]],Table_PI[[#This Row],[List 1]],Table_PI[[#This Row],[List 2]],Table_PI[[#This Row],[List 3]],Table_PI[[#This Row],[Size]],Table_PI[[#This Row],[Input 1]],Table_PI[[#This Row],[Input 2]],Table_PI[[#This Row],[Input 3]],Table_PI[[#This Row],[Input 4]],'Customer Information'!$AR$12,1,ROW())>0,MeasureCalc(Table_PI[[#This Row],[Hide:\nFormula Name]],Table_PI[[#This Row],[Quantity]],Table_PI[[#This Row],[List 1]],Table_PI[[#This Row],[List 2]],Table_PI[[#This Row],[List 3]],Table_PI[[#This Row],[Size]],Table_PI[[#This Row],[Input 1]],Table_PI[[#This Row],[Input 2]],Table_PI[[#This Row],[Input 3]],Table_PI[[#This Row],[Input 4]],'Customer Information'!$AR$12,1,ROW()),\"No Rebate\"),\"No Rebate\"),0)","v":0},{"$f":"IF(Table_PI[[#This Row],[Hide:\nFormula Name]]<>\"\",IFERROR(IF(MeasureCalc(Table_PI[[#This Row],[Hide:\nFormula Name]],Table_PI[[#This Row],[Quantity]],Table_PI[[#This Row],[List 1]],Table_PI[[#This Row],[List 2]],Table_PI[[#This Row],[List 3]],Table_PI[[#This Row],[Size]],Table_PI[[#This Row],[Input 1]],Table_PI[[#This Row],[Input 2]],Table_PI[[#This Row],[Input 3]],Table_PI[[#This Row],[Input 4]],'Customer Information'!$AR$12,1,ROW())>0,MeasureCalc(Table_PI[[#This Row],[Hide:\nFormula Name]],Table_PI[[#This Row],[Quantity]],Table_PI[[#This Row],[List 1]],Table_PI[[#This Row],[List 2]],Table_PI[[#This Row],[List 3]],Table_PI[[#This Row],[Size]],Table_PI[[#This Row],[Input 1]],Table_PI[[#This Row],[Input 2]],Table_PI[[#This Row],[Input 3]],Table_PI[[#This Row],[Input 4]],'Customer Information'!$AR$12,2,ROW()),\"No Rebate\"),\"No Rebate\"),0)","v":0},{"$f":"IF(Table_PI[[#This Row],[Hide:\nFormula Name]]<>\"\",IFERROR(IF(MeasureCalc(Table_PI[[#This Row],[Hide:\nFormula Name]],Table_PI[[#This Row],[Quantity]],Table_PI[[#This Row],[List 1]],Table_PI[[#This Row],[List 2]],Table_PI[[#This Row],[List 3]],Table_PI[[#This Row],[Size]],Table_PI[[#This Row],[Input 1]],Table_PI[[#This Row],[Input 2]],Table_PI[[#This Row],[Input 3]],Table_PI[[#This Row],[Input 4]],'Customer Information'!$AR$12,1,ROW())>0,MeasureCalc(Table_PI[[#This Row],[Hide:\nFormula Name]],Table_PI[[#This Row],[Quantity]],Table_PI[[#This Row],[List 1]],Table_PI[[#This Row],[List 2]],Table_PI[[#This Row],[List 3]],Table_PI[[#This Row],[Size]],Table_PI[[#This Row],[Input 1]],Table_PI[[#This Row],[Input 2]],Table_PI[[#This Row],[Input 3]],Table_PI[[#This Row],[Input 4]],'Customer Information'!$AR$12,3,ROW()),\"No Rebate\"),\"No Rebate\"),0)","v":0},{"$f":"IF(Table_PI[[#This Row],[Hide:\nFormula Name]]<>\"\",IFERROR(IF(MeasureCalc(Table_PI[[#This Row],[Hide:\nFormula Name]],Table_PI[[#This Row],[Quantity]],Table_PI[[#This Row],[List 1]],Table_PI[[#This Row],[List 2]],Table_PI[[#This Row],[List 3]],Table_PI[[#This Row],[Size]],Table_PI[[#This Row],[Input 1]],Table_PI[[#This Row],[Input 2]],Table_PI[[#This Row],[Input 3]],Table_PI[[#This Row],[Input 4]],'Customer Information'!$AR$12,1,ROW())>0,MeasureCalc(Table_PI[[#This Row],[Hide:\nFormula Name]],Table_PI[[#This Row],[Quantity]],Table_PI[[#This Row],[List 1]],Table_PI[[#This Row],[List 2]],Table_PI[[#This Row],[List 3]],Table_PI[[#This Row],[Size]],Table_PI[[#This Row],[Input 1]],Table_PI[[#This Row],[Input 2]],Table_PI[[#This Row],[Input 3]],Table_PI[[#This Row],[Input 4]],'Customer Information'!$AR$12,4,ROW()),\"No Rebate\"),\"No Rebate\"),0)","v":0},{"$f":"IF(Table_PI[[#This Row],[Hide:\nFormula Name]]<>\"\",IFERROR(IF(MeasureCalc(Table_PI[[#This Row],[Hide:\nFormula Name]],Table_PI[[#This Row],[Quantity]],Table_PI[[#This Row],[List 1]],Table_PI[[#This Row],[List 2]],Table_PI[[#This Row],[List 3]],Table_PI[[#This Row],[Size]],Table_PI[[#This Row],[Input 1]],Table_PI[[#This Row],[Input 2]],Table_PI[[#This Row],[Input 3]],Table_PI[[#This Row],[Input 4]],'Customer Information'!$AR$12,1,ROW())>0,MeasureCalc(Table_PI[[#This Row],[Hide:\nFormula Name]],Table_PI[[#This Row],[Quantity]],Table_PI[[#This Row],[List 1]],Table_PI[[#This Row],[List 2]],Table_PI[[#This Row],[List 3]],Table_PI[[#This Row],[Size]],Table_PI[[#This Row],[Input 1]],Table_PI[[#This Row],[Input 2]],Table_PI[[#This Row],[Input 3]],Table_PI[[#This Row],[Input 4]],'Customer Information'!$AR$12,5,ROW()),\"No Rebate\"),\"No Rebate\"),0)","v":0},{"$f":"IF(Table_PI[[#This Row],[Hide:\nFormula Name]]<>\"\",IFERROR(IF(MeasureCalc(Table_PI[[#This Row],[Hide:\nFormula Name]],Table_PI[[#This Row],[Quantity]],Table_PI[[#This Row],[List 1]],Table_PI[[#This Row],[List 2]],Table_PI[[#This Row],[List 3]],Table_PI[[#This Row],[Size]],Table_PI[[#This Row],[Input 1]],Table_PI[[#This Row],[Input 2]],Table_PI[[#This Row],[Input 3]],Table_PI[[#This Row],[Input 4]],'Customer Information'!$AR$12,1,ROW())>0,MeasureCalc(Table_PI[[#This Row],[Hide:\nFormula Name]],Table_PI[[#This Row],[Quantity]],Table_PI[[#This Row],[List 1]],Table_PI[[#This Row],[List 2]],Table_PI[[#This Row],[List 3]],Table_PI[[#This Row],[Size]],Table_PI[[#This Row],[Input 1]],Table_PI[[#This Row],[Input 2]],Table_PI[[#This Row],[Input 3]],Table_PI[[#This Row],[Input 4]],'Customer Information'!$AR$12,6,ROW()),\"No Rebate\"),\"No Rebate\"),0)","v":0},{"$f":"IF(Table_PI[[#This Row],[Hide:\nFormula Name]]<>\"\",IFERROR(IF(MeasureCalc(Table_PI[[#This Row],[Hide:\nFormula Name]],Table_PI[[#This Row],[Quantity]],Table_PI[[#This Row],[List 1]],Table_PI[[#This Row],[List 2]],Table_PI[[#This Row],[List 3]],Table_PI[[#This Row],[Size]],Table_PI[[#This Row],[Input 1]],Table_PI[[#This Row],[Input 2]],Table_PI[[#This Row],[Input 3]],Table_PI[[#This Row],[Input 4]],'Customer Information'!$AR$12,1,ROW())>0,MeasureCalc(Table_PI[[#This Row],[Hide:\nFormula Name]],Table_PI[[#This Row],[Quantity]],Table_PI[[#This Row],[List 1]],Table_PI[[#This Row],[List 2]],Table_PI[[#This Row],[List 3]],Table_PI[[#This Row],[Size]],Table_PI[[#This Row],[Input 1]],Table_PI[[#This Row],[Input 2]],Table_PI[[#This Row],[Input 3]],Table_PI[[#This Row],[Input 4]],'Customer Information'!$AR$12,7,ROW()),\"No Rebate\"),\"No Rebate\"),0)","v":0},{"$f":"IF(Table_PI[[#This Row],[Hide:\nFormula Name]]<>\"\",IFERROR(IF(MeasureCalc(Table_PI[[#This Row],[Hide:\nFormula Name]],Table_PI[[#This Row],[Quantity]],Table_PI[[#This Row],[List 1]],Table_PI[[#This Row],[List 2]],Table_PI[[#This Row],[List 3]],Table_PI[[#This Row],[Size]],Table_PI[[#This Row],[Input 1]],Table_PI[[#This Row],[Input 2]],Table_PI[[#This Row],[Input 3]],Table_PI[[#This Row],[Input 4]],'Customer Information'!$AR$12,1,ROW())>0,MeasureCalc(Table_PI[[#This Row],[Hide:\nFormula Name]],Table_PI[[#This Row],[Quantity]],Table_PI[[#This Row],[List 1]],Table_PI[[#This Row],[List 2]],Table_PI[[#This Row],[List 3]],Table_PI[[#This Row],[Size]],Table_PI[[#This Row],[Input 1]],Table_PI[[#This Row],[Input 2]],Table_PI[[#This Row],[Input 3]],Table_PI[[#This Row],[Input 4]],'Customer Information'!$AR$12,8,ROW()),\"No Rebate\"),\"No Rebate\"),0)","v":0},{"$f":"IF(Table_PI[[#This Row],[Hide:\nFormula Name]]<>\"\",IF(AND(Table_PI[[#This Row],[Hide:\nFormula Name]]<>\"\",OR(Table_PI[[#This Row],[Rebate]]>0,Table_PI[[#This Row],[Rebate]]=\"No Rebate\")),TRUE,\"MI: Line Item \" & $A286),\"\")","v":""}]
[{"$f":"IF(Table_PI[[#This Row],[Hide:\nFormula Name]]<>\"\",MAX($A$2:A286)+1,\"\")","v":""},null,null,null,null,null,null,null,null,null,null,null,null,null,null,{"$f":"IFERROR(VLOOKUP(Table_PI[[#This Row],[Measure]],'Equipment Lookups'!$C$3:$D$23,2,FALSE),\"\")","v":""},{"$f":"IF(Table_PI[[#This Row],[Hide:\nFormula Name]]<>\"\",IFERROR(IF(MeasureCalc(Table_PI[[#This Row],[Hide:\nFormula Name]],Table_PI[[#This Row],[Quantity]],Table_PI[[#This Row],[List 1]],Table_PI[[#This Row],[List 2]],Table_PI[[#This Row],[List 3]],Table_PI[[#This Row],[Size]],Table_PI[[#This Row],[Input 1]],Table_PI[[#This Row],[Input 2]],Table_PI[[#This Row],[Input 3]],Table_PI[[#This Row],[Input 4]],'Customer Information'!$AR$12,1,ROW())>0,MeasureCalc(Table_PI[[#This Row],[Hide:\nFormula Name]],Table_PI[[#This Row],[Quantity]],Table_PI[[#This Row],[List 1]],Table_PI[[#This Row],[List 2]],Table_PI[[#This Row],[List 3]],Table_PI[[#This Row],[Size]],Table_PI[[#This Row],[Input 1]],Table_PI[[#This Row],[Input 2]],Table_PI[[#This Row],[Input 3]],Table_PI[[#This Row],[Input 4]],'Customer Information'!$AR$12,1,ROW()),\"No Rebate\"),\"No Rebate\"),0)","v":0},{"$f":"IF(Table_PI[[#This Row],[Hide:\nFormula Name]]<>\"\",IFERROR(IF(MeasureCalc(Table_PI[[#This Row],[Hide:\nFormula Name]],Table_PI[[#This Row],[Quantity]],Table_PI[[#This Row],[List 1]],Table_PI[[#This Row],[List 2]],Table_PI[[#This Row],[List 3]],Table_PI[[#This Row],[Size]],Table_PI[[#This Row],[Input 1]],Table_PI[[#This Row],[Input 2]],Table_PI[[#This Row],[Input 3]],Table_PI[[#This Row],[Input 4]],'Customer Information'!$AR$12,1,ROW())>0,MeasureCalc(Table_PI[[#This Row],[Hide:\nFormula Name]],Table_PI[[#This Row],[Quantity]],Table_PI[[#This Row],[List 1]],Table_PI[[#This Row],[List 2]],Table_PI[[#This Row],[List 3]],Table_PI[[#This Row],[Size]],Table_PI[[#This Row],[Input 1]],Table_PI[[#This Row],[Input 2]],Table_PI[[#This Row],[Input 3]],Table_PI[[#This Row],[Input 4]],'Customer Information'!$AR$12,2,ROW()),\"No Rebate\"),\"No Rebate\"),0)","v":0},{"$f":"IF(Table_PI[[#This Row],[Hide:\nFormula Name]]<>\"\",IFERROR(IF(MeasureCalc(Table_PI[[#This Row],[Hide:\nFormula Name]],Table_PI[[#This Row],[Quantity]],Table_PI[[#This Row],[List 1]],Table_PI[[#This Row],[List 2]],Table_PI[[#This Row],[List 3]],Table_PI[[#This Row],[Size]],Table_PI[[#This Row],[Input 1]],Table_PI[[#This Row],[Input 2]],Table_PI[[#This Row],[Input 3]],Table_PI[[#This Row],[Input 4]],'Customer Information'!$AR$12,1,ROW())>0,MeasureCalc(Table_PI[[#This Row],[Hide:\nFormula Name]],Table_PI[[#This Row],[Quantity]],Table_PI[[#This Row],[List 1]],Table_PI[[#This Row],[List 2]],Table_PI[[#This Row],[List 3]],Table_PI[[#This Row],[Size]],Table_PI[[#This Row],[Input 1]],Table_PI[[#This Row],[Input 2]],Table_PI[[#This Row],[Input 3]],Table_PI[[#This Row],[Input 4]],'Customer Information'!$AR$12,3,ROW()),\"No Rebate\"),\"No Rebate\"),0)","v":0},{"$f":"IF(Table_PI[[#This Row],[Hide:\nFormula Name]]<>\"\",IFERROR(IF(MeasureCalc(Table_PI[[#This Row],[Hide:\nFormula Name]],Table_PI[[#This Row],[Quantity]],Table_PI[[#This Row],[List 1]],Table_PI[[#This Row],[List 2]],Table_PI[[#This Row],[List 3]],Table_PI[[#This Row],[Size]],Table_PI[[#This Row],[Input 1]],Table_PI[[#This Row],[Input 2]],Table_PI[[#This Row],[Input 3]],Table_PI[[#This Row],[Input 4]],'Customer Information'!$AR$12,1,ROW())>0,MeasureCalc(Table_PI[[#This Row],[Hide:\nFormula Name]],Table_PI[[#This Row],[Quantity]],Table_PI[[#This Row],[List 1]],Table_PI[[#This Row],[List 2]],Table_PI[[#This Row],[List 3]],Table_PI[[#This Row],[Size]],Table_PI[[#This Row],[Input 1]],Table_PI[[#This Row],[Input 2]],Table_PI[[#This Row],[Input 3]],Table_PI[[#This Row],[Input 4]],'Customer Information'!$AR$12,4,ROW()),\"No Rebate\"),\"No Rebate\"),0)","v":0},{"$f":"IF(Table_PI[[#This Row],[Hide:\nFormula Name]]<>\"\",IFERROR(IF(MeasureCalc(Table_PI[[#This Row],[Hide:\nFormula Name]],Table_PI[[#This Row],[Quantity]],Table_PI[[#This Row],[List 1]],Table_PI[[#This Row],[List 2]],Table_PI[[#This Row],[List 3]],Table_PI[[#This Row],[Size]],Table_PI[[#This Row],[Input 1]],Table_PI[[#This Row],[Input 2]],Table_PI[[#This Row],[Input 3]],Table_PI[[#This Row],[Input 4]],'Customer Information'!$AR$12,1,ROW())>0,MeasureCalc(Table_PI[[#This Row],[Hide:\nFormula Name]],Table_PI[[#This Row],[Quantity]],Table_PI[[#This Row],[List 1]],Table_PI[[#This Row],[List 2]],Table_PI[[#This Row],[List 3]],Table_PI[[#This Row],[Size]],Table_PI[[#This Row],[Input 1]],Table_PI[[#This Row],[Input 2]],Table_PI[[#This Row],[Input 3]],Table_PI[[#This Row],[Input 4]],'Customer Information'!$AR$12,5,ROW()),\"No Rebate\"),\"No Rebate\"),0)","v":0},{"$f":"IF(Table_PI[[#This Row],[Hide:\nFormula Name]]<>\"\",IFERROR(IF(MeasureCalc(Table_PI[[#This Row],[Hide:\nFormula Name]],Table_PI[[#This Row],[Quantity]],Table_PI[[#This Row],[List 1]],Table_PI[[#This Row],[List 2]],Table_PI[[#This Row],[List 3]],Table_PI[[#This Row],[Size]],Table_PI[[#This Row],[Input 1]],Table_PI[[#This Row],[Input 2]],Table_PI[[#This Row],[Input 3]],Table_PI[[#This Row],[Input 4]],'Customer Information'!$AR$12,1,ROW())>0,MeasureCalc(Table_PI[[#This Row],[Hide:\nFormula Name]],Table_PI[[#This Row],[Quantity]],Table_PI[[#This Row],[List 1]],Table_PI[[#This Row],[List 2]],Table_PI[[#This Row],[List 3]],Table_PI[[#This Row],[Size]],Table_PI[[#This Row],[Input 1]],Table_PI[[#This Row],[Input 2]],Table_PI[[#This Row],[Input 3]],Table_PI[[#This Row],[Input 4]],'Customer Information'!$AR$12,6,ROW()),\"No Rebate\"),\"No Rebate\"),0)","v":0},{"$f":"IF(Table_PI[[#This Row],[Hide:\nFormula Name]]<>\"\",IFERROR(IF(MeasureCalc(Table_PI[[#This Row],[Hide:\nFormula Name]],Table_PI[[#This Row],[Quantity]],Table_PI[[#This Row],[List 1]],Table_PI[[#This Row],[List 2]],Table_PI[[#This Row],[List 3]],Table_PI[[#This Row],[Size]],Table_PI[[#This Row],[Input 1]],Table_PI[[#This Row],[Input 2]],Table_PI[[#This Row],[Input 3]],Table_PI[[#This Row],[Input 4]],'Customer Information'!$AR$12,1,ROW())>0,MeasureCalc(Table_PI[[#This Row],[Hide:\nFormula Name]],Table_PI[[#This Row],[Quantity]],Table_PI[[#This Row],[List 1]],Table_PI[[#This Row],[List 2]],Table_PI[[#This Row],[List 3]],Table_PI[[#This Row],[Size]],Table_PI[[#This Row],[Input 1]],Table_PI[[#This Row],[Input 2]],Table_PI[[#This Row],[Input 3]],Table_PI[[#This Row],[Input 4]],'Customer Information'!$AR$12,7,ROW()),\"No Rebate\"),\"No Rebate\"),0)","v":0},{"$f":"IF(Table_PI[[#This Row],[Hide:\nFormula Name]]<>\"\",IFERROR(IF(MeasureCalc(Table_PI[[#This Row],[Hide:\nFormula Name]],Table_PI[[#This Row],[Quantity]],Table_PI[[#This Row],[List 1]],Table_PI[[#This Row],[List 2]],Table_PI[[#This Row],[List 3]],Table_PI[[#This Row],[Size]],Table_PI[[#This Row],[Input 1]],Table_PI[[#This Row],[Input 2]],Table_PI[[#This Row],[Input 3]],Table_PI[[#This Row],[Input 4]],'Customer Information'!$AR$12,1,ROW())>0,MeasureCalc(Table_PI[[#This Row],[Hide:\nFormula Name]],Table_PI[[#This Row],[Quantity]],Table_PI[[#This Row],[List 1]],Table_PI[[#This Row],[List 2]],Table_PI[[#This Row],[List 3]],Table_PI[[#This Row],[Size]],Table_PI[[#This Row],[Input 1]],Table_PI[[#This Row],[Input 2]],Table_PI[[#This Row],[Input 3]],Table_PI[[#This Row],[Input 4]],'Customer Information'!$AR$12,8,ROW()),\"No Rebate\"),\"No Rebate\"),0)","v":0},{"$f":"IF(Table_PI[[#This Row],[Hide:\nFormula Name]]<>\"\",IF(AND(Table_PI[[#This Row],[Hide:\nFormula Name]]<>\"\",OR(Table_PI[[#This Row],[Rebate]]>0,Table_PI[[#This Row],[Rebate]]=\"No Rebate\")),TRUE,\"MI: Line Item \" & $A287),\"\")","v":""}]
[{"$f":"IF(Table_PI[[#This Row],[Hide:\nFormula Name]]<>\"\",MAX($A$2:A287)+1,\"\")","v":""},null,null,null,null,null,null,null,null,null,null,null,null,null,null,{"$f":"IFERROR(VLOOKUP(Table_PI[[#This Row],[Measure]],'Equipment Lookups'!$C$3:$D$23,2,FALSE),\"\")","v":""},{"$f":"IF(Table_PI[[#This Row],[Hide:\nFormula Name]]<>\"\",IFERROR(IF(MeasureCalc(Table_PI[[#This Row],[Hide:\nFormula Name]],Table_PI[[#This Row],[Quantity]],Table_PI[[#This Row],[List 1]],Table_PI[[#This Row],[List 2]],Table_PI[[#This Row],[List 3]],Table_PI[[#This Row],[Size]],Table_PI[[#This Row],[Input 1]],Table_PI[[#This Row],[Input 2]],Table_PI[[#This Row],[Input 3]],Table_PI[[#This Row],[Input 4]],'Customer Information'!$AR$12,1,ROW())>0,MeasureCalc(Table_PI[[#This Row],[Hide:\nFormula Name]],Table_PI[[#This Row],[Quantity]],Table_PI[[#This Row],[List 1]],Table_PI[[#This Row],[List 2]],Table_PI[[#This Row],[List 3]],Table_PI[[#This Row],[Size]],Table_PI[[#This Row],[Input 1]],Table_PI[[#This Row],[Input 2]],Table_PI[[#This Row],[Input 3]],Table_PI[[#This Row],[Input 4]],'Customer Information'!$AR$12,1,ROW()),\"No Rebate\"),\"No Rebate\"),0)","v":0},{"$f":"IF(Table_PI[[#This Row],[Hide:\nFormula Name]]<>\"\",IFERROR(IF(MeasureCalc(Table_PI[[#This Row],[Hide:\nFormula Name]],Table_PI[[#This Row],[Quantity]],Table_PI[[#This Row],[List 1]],Table_PI[[#This Row],[List 2]],Table_PI[[#This Row],[List 3]],Table_PI[[#This Row],[Size]],Table_PI[[#This Row],[Input 1]],Table_PI[[#This Row],[Input 2]],Table_PI[[#This Row],[Input 3]],Table_PI[[#This Row],[Input 4]],'Customer Information'!$AR$12,1,ROW())>0,MeasureCalc(Table_PI[[#This Row],[Hide:\nFormula Name]],Table_PI[[#This Row],[Quantity]],Table_PI[[#This Row],[List 1]],Table_PI[[#This Row],[List 2]],Table_PI[[#This Row],[List 3]],Table_PI[[#This Row],[Size]],Table_PI[[#This Row],[Input 1]],Table_PI[[#This Row],[Input 2]],Table_PI[[#This Row],[Input 3]],Table_PI[[#This Row],[Input 4]],'Customer Information'!$AR$12,2,ROW()),\"No Rebate\"),\"No Rebate\"),0)","v":0},{"$f":"IF(Table_PI[[#This Row],[Hide:\nFormula Name]]<>\"\",IFERROR(IF(MeasureCalc(Table_PI[[#This Row],[Hide:\nFormula Name]],Table_PI[[#This Row],[Quantity]],Table_PI[[#This Row],[List 1]],Table_PI[[#This Row],[List 2]],Table_PI[[#This Row],[List 3]],Table_PI[[#This Row],[Size]],Table_PI[[#This Row],[Input 1]],Table_PI[[#This Row],[Input 2]],Table_PI[[#This Row],[Input 3]],Table_PI[[#This Row],[Input 4]],'Customer Information'!$AR$12,1,ROW())>0,MeasureCalc(Table_PI[[#This Row],[Hide:\nFormula Name]],Table_PI[[#This Row],[Quantity]],Table_PI[[#This Row],[List 1]],Table_PI[[#This Row],[List 2]],Table_PI[[#This Row],[List 3]],Table_PI[[#This Row],[Size]],Table_PI[[#This Row],[Input 1]],Table_PI[[#This Row],[Input 2]],Table_PI[[#This Row],[Input 3]],Table_PI[[#This Row],[Input 4]],'Customer Information'!$AR$12,3,ROW()),\"No Rebate\"),\"No Rebate\"),0)","v":0},{"$f":"IF(Table_PI[[#This Row],[Hide:\nFormula Name]]<>\"\",IFERROR(IF(MeasureCalc(Table_PI[[#This Row],[Hide:\nFormula Name]],Table_PI[[#This Row],[Quantity]],Table_PI[[#This Row],[List 1]],Table_PI[[#This Row],[List 2]],Table_PI[[#This Row],[List 3]],Table_PI[[#This Row],[Size]],Table_PI[[#This Row],[Input 1]],Table_PI[[#This Row],[Input 2]],Table_PI[[#This Row],[Input 3]],Table_PI[[#This Row],[Input 4]],'Customer Information'!$AR$12,1,ROW())>0,MeasureCalc(Table_PI[[#This Row],[Hide:\nFormula Name]],Table_PI[[#This Row],[Quantity]],Table_PI[[#This Row],[List 1]],Table_PI[[#This Row],[List 2]],Table_PI[[#This Row],[List 3]],Table_PI[[#This Row],[Size]],Table_PI[[#This Row],[Input 1]],Table_PI[[#This Row],[Input 2]],Table_PI[[#This Row],[Input 3]],Table_PI[[#This Row],[Input 4]],'Customer Information'!$AR$12,4,ROW()),\"No Rebate\"),\"No Rebate\"),0)","v":0},{"$f":"IF(Table_PI[[#This Row],[Hide:\nFormula Name]]<>\"\",IFERROR(IF(MeasureCalc(Table_PI[[#This Row],[Hide:\nFormula Name]],Table_PI[[#This Row],[Quantity]],Table_PI[[#This Row],[List 1]],Table_PI[[#This Row],[List 2]],Table_PI[[#This Row],[List 3]],Table_PI[[#This Row],[Size]],Table_PI[[#This Row],[Input 1]],Table_PI[[#This Row],[Input 2]],Table_PI[[#This Row],[Input 3]],Table_PI[[#This Row],[Input 4]],'Customer Information'!$AR$12,1,ROW())>0,MeasureCalc(Table_PI[[#This Row],[Hide:\nFormula Name]],Table_PI[[#This Row],[Quantity]],Table_PI[[#This Row],[List 1]],Table_PI[[#This Row],[List 2]],Table_PI[[#This Row],[List 3]],Table_PI[[#This Row],[Size]],Table_PI[[#This Row],[Input 1]],Table_PI[[#This Row],[Input 2]],Table_PI[[#This Row],[Input 3]],Table_PI[[#This Row],[Input 4]],'Customer Information'!$AR$12,5,ROW()),\"No Rebate\"),\"No Rebate\"),0)","v":0},{"$f":"IF(Table_PI[[#This Row],[Hide:\nFormula Name]]<>\"\",IFERROR(IF(MeasureCalc(Table_PI[[#This Row],[Hide:\nFormula Name]],Table_PI[[#This Row],[Quantity]],Table_PI[[#This Row],[List 1]],Table_PI[[#This Row],[List 2]],Table_PI[[#This Row],[List 3]],Table_PI[[#This Row],[Size]],Table_PI[[#This Row],[Input 1]],Table_PI[[#This Row],[Input 2]],Table_PI[[#This Row],[Input 3]],Table_PI[[#This Row],[Input 4]],'Customer Information'!$AR$12,1,ROW())>0,MeasureCalc(Table_PI[[#This Row],[Hide:\nFormula Name]],Table_PI[[#This Row],[Quantity]],Table_PI[[#This Row],[List 1]],Table_PI[[#This Row],[List 2]],Table_PI[[#This Row],[List 3]],Table_PI[[#This Row],[Size]],Table_PI[[#This Row],[Input 1]],Table_PI[[#This Row],[Input 2]],Table_PI[[#This Row],[Input 3]],Table_PI[[#This Row],[Input 4]],'Customer Information'!$AR$12,6,ROW()),\"No Rebate\"),\"No Rebate\"),0)","v":0},{"$f":"IF(Table_PI[[#This Row],[Hide:\nFormula Name]]<>\"\",IFERROR(IF(MeasureCalc(Table_PI[[#This Row],[Hide:\nFormula Name]],Table_PI[[#This Row],[Quantity]],Table_PI[[#This Row],[List 1]],Table_PI[[#This Row],[List 2]],Table_PI[[#This Row],[List 3]],Table_PI[[#This Row],[Size]],Table_PI[[#This Row],[Input 1]],Table_PI[[#This Row],[Input 2]],Table_PI[[#This Row],[Input 3]],Table_PI[[#This Row],[Input 4]],'Customer Information'!$AR$12,1,ROW())>0,MeasureCalc(Table_PI[[#This Row],[Hide:\nFormula Name]],Table_PI[[#This Row],[Quantity]],Table_PI[[#This Row],[List 1]],Table_PI[[#This Row],[List 2]],Table_PI[[#This Row],[List 3]],Table_PI[[#This Row],[Size]],Table_PI[[#This Row],[Input 1]],Table_PI[[#This Row],[Input 2]],Table_PI[[#This Row],[Input 3]],Table_PI[[#This Row],[Input 4]],'Customer Information'!$AR$12,7,ROW()),\"No Rebate\"),\"No Rebate\"),0)","v":0},{"$f":"IF(Table_PI[[#This Row],[Hide:\nFormula Name]]<>\"\",IFERROR(IF(MeasureCalc(Table_PI[[#This Row],[Hide:\nFormula Name]],Table_PI[[#This Row],[Quantity]],Table_PI[[#This Row],[List 1]],Table_PI[[#This Row],[List 2]],Table_PI[[#This Row],[List 3]],Table_PI[[#This Row],[Size]],Table_PI[[#This Row],[Input 1]],Table_PI[[#This Row],[Input 2]],Table_PI[[#This Row],[Input 3]],Table_PI[[#This Row],[Input 4]],'Customer Information'!$AR$12,1,ROW())>0,MeasureCalc(Table_PI[[#This Row],[Hide:\nFormula Name]],Table_PI[[#This Row],[Quantity]],Table_PI[[#This Row],[List 1]],Table_PI[[#This Row],[List 2]],Table_PI[[#This Row],[List 3]],Table_PI[[#This Row],[Size]],Table_PI[[#This Row],[Input 1]],Table_PI[[#This Row],[Input 2]],Table_PI[[#This Row],[Input 3]],Table_PI[[#This Row],[Input 4]],'Customer Information'!$AR$12,8,ROW()),\"No Rebate\"),\"No Rebate\"),0)","v":0},{"$f":"IF(Table_PI[[#This Row],[Hide:\nFormula Name]]<>\"\",IF(AND(Table_PI[[#This Row],[Hide:\nFormula Name]]<>\"\",OR(Table_PI[[#This Row],[Rebate]]>0,Table_PI[[#This Row],[Rebate]]=\"No Rebate\")),TRUE,\"MI: Line Item \" & $A288),\"\")","v":""}]
[{"$f":"IF(Table_PI[[#This Row],[Hide:\nFormula Name]]<>\"\",MAX($A$2:A288)+1,\"\")","v":""},null,null,null,null,null,null,null,null,null,null,null,null,null,null,{"$f":"IFERROR(VLOOKUP(Table_PI[[#This Row],[Measure]],'Equipment Lookups'!$C$3:$D$23,2,FALSE),\"\")","v":""},{"$f":"IF(Table_PI[[#This Row],[Hide:\nFormula Name]]<>\"\",IFERROR(IF(MeasureCalc(Table_PI[[#This Row],[Hide:\nFormula Name]],Table_PI[[#This Row],[Quantity]],Table_PI[[#This Row],[List 1]],Table_PI[[#This Row],[List 2]],Table_PI[[#This Row],[List 3]],Table_PI[[#This Row],[Size]],Table_PI[[#This Row],[Input 1]],Table_PI[[#This Row],[Input 2]],Table_PI[[#This Row],[Input 3]],Table_PI[[#This Row],[Input 4]],'Customer Information'!$AR$12,1,ROW())>0,MeasureCalc(Table_PI[[#This Row],[Hide:\nFormula Name]],Table_PI[[#This Row],[Quantity]],Table_PI[[#This Row],[List 1]],Table_PI[[#This Row],[List 2]],Table_PI[[#This Row],[List 3]],Table_PI[[#This Row],[Size]],Table_PI[[#This Row],[Input 1]],Table_PI[[#This Row],[Input 2]],Table_PI[[#This Row],[Input 3]],Table_PI[[#This Row],[Input 4]],'Customer Information'!$AR$12,1,ROW()),\"No Rebate\"),\"No Rebate\"),0)","v":0},{"$f":"IF(Table_PI[[#This Row],[Hide:\nFormula Name]]<>\"\",IFERROR(IF(MeasureCalc(Table_PI[[#This Row],[Hide:\nFormula Name]],Table_PI[[#This Row],[Quantity]],Table_PI[[#This Row],[List 1]],Table_PI[[#This Row],[List 2]],Table_PI[[#This Row],[List 3]],Table_PI[[#This Row],[Size]],Table_PI[[#This Row],[Input 1]],Table_PI[[#This Row],[Input 2]],Table_PI[[#This Row],[Input 3]],Table_PI[[#This Row],[Input 4]],'Customer Information'!$AR$12,1,ROW())>0,MeasureCalc(Table_PI[[#This Row],[Hide:\nFormula Name]],Table_PI[[#This Row],[Quantity]],Table_PI[[#This Row],[List 1]],Table_PI[[#This Row],[List 2]],Table_PI[[#This Row],[List 3]],Table_PI[[#This Row],[Size]],Table_PI[[#This Row],[Input 1]],Table_PI[[#This Row],[Input 2]],Table_PI[[#This Row],[Input 3]],Table_PI[[#This Row],[Input 4]],'Customer Information'!$AR$12,2,ROW()),\"No Rebate\"),\"No Rebate\"),0)","v":0},{"$f":"IF(Table_PI[[#This Row],[Hide:\nFormula Name]]<>\"\",IFERROR(IF(MeasureCalc(Table_PI[[#This Row],[Hide:\nFormula Name]],Table_PI[[#This Row],[Quantity]],Table_PI[[#This Row],[List 1]],Table_PI[[#This Row],[List 2]],Table_PI[[#This Row],[List 3]],Table_PI[[#This Row],[Size]],Table_PI[[#This Row],[Input 1]],Table_PI[[#This Row],[Input 2]],Table_PI[[#This Row],[Input 3]],Table_PI[[#This Row],[Input 4]],'Customer Information'!$AR$12,1,ROW())>0,MeasureCalc(Table_PI[[#This Row],[Hide:\nFormula Name]],Table_PI[[#This Row],[Quantity]],Table_PI[[#This Row],[List 1]],Table_PI[[#This Row],[List 2]],Table_PI[[#This Row],[List 3]],Table_PI[[#This Row],[Size]],Table_PI[[#This Row],[Input 1]],Table_PI[[#This Row],[Input 2]],Table_PI[[#This Row],[Input 3]],Table_PI[[#This Row],[Input 4]],'Customer Information'!$AR$12,3,ROW()),\"No Rebate\"),\"No Rebate\"),0)","v":0},{"$f":"IF(Table_PI[[#This Row],[Hide:\nFormula Name]]<>\"\",IFERROR(IF(MeasureCalc(Table_PI[[#This Row],[Hide:\nFormula Name]],Table_PI[[#This Row],[Quantity]],Table_PI[[#This Row],[List 1]],Table_PI[[#This Row],[List 2]],Table_PI[[#This Row],[List 3]],Table_PI[[#This Row],[Size]],Table_PI[[#This Row],[Input 1]],Table_PI[[#This Row],[Input 2]],Table_PI[[#This Row],[Input 3]],Table_PI[[#This Row],[Input 4]],'Customer Information'!$AR$12,1,ROW())>0,MeasureCalc(Table_PI[[#This Row],[Hide:\nFormula Name]],Table_PI[[#This Row],[Quantity]],Table_PI[[#This Row],[List 1]],Table_PI[[#This Row],[List 2]],Table_PI[[#This Row],[List 3]],Table_PI[[#This Row],[Size]],Table_PI[[#This Row],[Input 1]],Table_PI[[#This Row],[Input 2]],Table_PI[[#This Row],[Input 3]],Table_PI[[#This Row],[Input 4]],'Customer Information'!$AR$12,4,ROW()),\"No Rebate\"),\"No Rebate\"),0)","v":0},{"$f":"IF(Table_PI[[#This Row],[Hide:\nFormula Name]]<>\"\",IFERROR(IF(MeasureCalc(Table_PI[[#This Row],[Hide:\nFormula Name]],Table_PI[[#This Row],[Quantity]],Table_PI[[#This Row],[List 1]],Table_PI[[#This Row],[List 2]],Table_PI[[#This Row],[List 3]],Table_PI[[#This Row],[Size]],Table_PI[[#This Row],[Input 1]],Table_PI[[#This Row],[Input 2]],Table_PI[[#This Row],[Input 3]],Table_PI[[#This Row],[Input 4]],'Customer Information'!$AR$12,1,ROW())>0,MeasureCalc(Table_PI[[#This Row],[Hide:\nFormula Name]],Table_PI[[#This Row],[Quantity]],Table_PI[[#This Row],[List 1]],Table_PI[[#This Row],[List 2]],Table_PI[[#This Row],[List 3]],Table_PI[[#This Row],[Size]],Table_PI[[#This Row],[Input 1]],Table_PI[[#This Row],[Input 2]],Table_PI[[#This Row],[Input 3]],Table_PI[[#This Row],[Input 4]],'Customer Information'!$AR$12,5,ROW()),\"No Rebate\"),\"No Rebate\"),0)","v":0},{"$f":"IF(Table_PI[[#This Row],[Hide:\nFormula Name]]<>\"\",IFERROR(IF(MeasureCalc(Table_PI[[#This Row],[Hide:\nFormula Name]],Table_PI[[#This Row],[Quantity]],Table_PI[[#This Row],[List 1]],Table_PI[[#This Row],[List 2]],Table_PI[[#This Row],[List 3]],Table_PI[[#This Row],[Size]],Table_PI[[#This Row],[Input 1]],Table_PI[[#This Row],[Input 2]],Table_PI[[#This Row],[Input 3]],Table_PI[[#This Row],[Input 4]],'Customer Information'!$AR$12,1,ROW())>0,MeasureCalc(Table_PI[[#This Row],[Hide:\nFormula Name]],Table_PI[[#This Row],[Quantity]],Table_PI[[#This Row],[List 1]],Table_PI[[#This Row],[List 2]],Table_PI[[#This Row],[List 3]],Table_PI[[#This Row],[Size]],Table_PI[[#This Row],[Input 1]],Table_PI[[#This Row],[Input 2]],Table_PI[[#This Row],[Input 3]],Table_PI[[#This Row],[Input 4]],'Customer Information'!$AR$12,6,ROW()),\"No Rebate\"),\"No Rebate\"),0)","v":0},{"$f":"IF(Table_PI[[#This Row],[Hide:\nFormula Name]]<>\"\",IFERROR(IF(MeasureCalc(Table_PI[[#This Row],[Hide:\nFormula Name]],Table_PI[[#This Row],[Quantity]],Table_PI[[#This Row],[List 1]],Table_PI[[#This Row],[List 2]],Table_PI[[#This Row],[List 3]],Table_PI[[#This Row],[Size]],Table_PI[[#This Row],[Input 1]],Table_PI[[#This Row],[Input 2]],Table_PI[[#This Row],[Input 3]],Table_PI[[#This Row],[Input 4]],'Customer Information'!$AR$12,1,ROW())>0,MeasureCalc(Table_PI[[#This Row],[Hide:\nFormula Name]],Table_PI[[#This Row],[Quantity]],Table_PI[[#This Row],[List 1]],Table_PI[[#This Row],[List 2]],Table_PI[[#This Row],[List 3]],Table_PI[[#This Row],[Size]],Table_PI[[#This Row],[Input 1]],Table_PI[[#This Row],[Input 2]],Table_PI[[#This Row],[Input 3]],Table_PI[[#This Row],[Input 4]],'Customer Information'!$AR$12,7,ROW()),\"No Rebate\"),\"No Rebate\"),0)","v":0},{"$f":"IF(Table_PI[[#This Row],[Hide:\nFormula Name]]<>\"\",IFERROR(IF(MeasureCalc(Table_PI[[#This Row],[Hide:\nFormula Name]],Table_PI[[#This Row],[Quantity]],Table_PI[[#This Row],[List 1]],Table_PI[[#This Row],[List 2]],Table_PI[[#This Row],[List 3]],Table_PI[[#This Row],[Size]],Table_PI[[#This Row],[Input 1]],Table_PI[[#This Row],[Input 2]],Table_PI[[#This Row],[Input 3]],Table_PI[[#This Row],[Input 4]],'Customer Information'!$AR$12,1,ROW())>0,MeasureCalc(Table_PI[[#This Row],[Hide:\nFormula Name]],Table_PI[[#This Row],[Quantity]],Table_PI[[#This Row],[List 1]],Table_PI[[#This Row],[List 2]],Table_PI[[#This Row],[List 3]],Table_PI[[#This Row],[Size]],Table_PI[[#This Row],[Input 1]],Table_PI[[#This Row],[Input 2]],Table_PI[[#This Row],[Input 3]],Table_PI[[#This Row],[Input 4]],'Customer Information'!$AR$12,8,ROW()),\"No Rebate\"),\"No Rebate\"),0)","v":0},{"$f":"IF(Table_PI[[#This Row],[Hide:\nFormula Name]]<>\"\",IF(AND(Table_PI[[#This Row],[Hide:\nFormula Name]]<>\"\",OR(Table_PI[[#This Row],[Rebate]]>0,Table_PI[[#This Row],[Rebate]]=\"No Rebate\")),TRUE,\"MI: Line Item \" & $A289),\"\")","v":""}]
[{"$f":"IF(Table_PI[[#This Row],[Hide:\nFormula Name]]<>\"\",MAX($A$2:A289)+1,\"\")","v":""},null,null,null,null,null,null,null,null,null,null,null,null,null,null,{"$f":"IFERROR(VLOOKUP(Table_PI[[#This Row],[Measure]],'Equipment Lookups'!$C$3:$D$23,2,FALSE),\"\")","v":""},{"$f":"IF(Table_PI[[#This Row],[Hide:\nFormula Name]]<>\"\",IFERROR(IF(MeasureCalc(Table_PI[[#This Row],[Hide:\nFormula Name]],Table_PI[[#This Row],[Quantity]],Table_PI[[#This Row],[List 1]],Table_PI[[#This Row],[List 2]],Table_PI[[#This Row],[List 3]],Table_PI[[#This Row],[Size]],Table_PI[[#This Row],[Input 1]],Table_PI[[#This Row],[Input 2]],Table_PI[[#This Row],[Input 3]],Table_PI[[#This Row],[Input 4]],'Customer Information'!$AR$12,1,ROW())>0,MeasureCalc(Table_PI[[#This Row],[Hide:\nFormula Name]],Table_PI[[#This Row],[Quantity]],Table_PI[[#This Row],[List 1]],Table_PI[[#This Row],[List 2]],Table_PI[[#This Row],[List 3]],Table_PI[[#This Row],[Size]],Table_PI[[#This Row],[Input 1]],Table_PI[[#This Row],[Input 2]],Table_PI[[#This Row],[Input 3]],Table_PI[[#This Row],[Input 4]],'Customer Information'!$AR$12,1,ROW()),\"No Rebate\"),\"No Rebate\"),0)","v":0},{"$f":"IF(Table_PI[[#This Row],[Hide:\nFormula Name]]<>\"\",IFERROR(IF(MeasureCalc(Table_PI[[#This Row],[Hide:\nFormula Name]],Table_PI[[#This Row],[Quantity]],Table_PI[[#This Row],[List 1]],Table_PI[[#This Row],[List 2]],Table_PI[[#This Row],[List 3]],Table_PI[[#This Row],[Size]],Table_PI[[#This Row],[Input 1]],Table_PI[[#This Row],[Input 2]],Table_PI[[#This Row],[Input 3]],Table_PI[[#This Row],[Input 4]],'Customer Information'!$AR$12,1,ROW())>0,MeasureCalc(Table_PI[[#This Row],[Hide:\nFormula Name]],Table_PI[[#This Row],[Quantity]],Table_PI[[#This Row],[List 1]],Table_PI[[#This Row],[List 2]],Table_PI[[#This Row],[List 3]],Table_PI[[#This Row],[Size]],Table_PI[[#This Row],[Input 1]],Table_PI[[#This Row],[Input 2]],Table_PI[[#This Row],[Input 3]],Table_PI[[#This Row],[Input 4]],'Customer Information'!$AR$12,2,ROW()),\"No Rebate\"),\"No Rebate\"),0)","v":0},{"$f":"IF(Table_PI[[#This Row],[Hide:\nFormula Name]]<>\"\",IFERROR(IF(MeasureCalc(Table_PI[[#This Row],[Hide:\nFormula Name]],Table_PI[[#This Row],[Quantity]],Table_PI[[#This Row],[List 1]],Table_PI[[#This Row],[List 2]],Table_PI[[#This Row],[List 3]],Table_PI[[#This Row],[Size]],Table_PI[[#This Row],[Input 1]],Table_PI[[#This Row],[Input 2]],Table_PI[[#This Row],[Input 3]],Table_PI[[#This Row],[Input 4]],'Customer Information'!$AR$12,1,ROW())>0,MeasureCalc(Table_PI[[#This Row],[Hide:\nFormula Name]],Table_PI[[#This Row],[Quantity]],Table_PI[[#This Row],[List 1]],Table_PI[[#This Row],[List 2]],Table_PI[[#This Row],[List 3]],Table_PI[[#This Row],[Size]],Table_PI[[#This Row],[Input 1]],Table_PI[[#This Row],[Input 2]],Table_PI[[#This Row],[Input 3]],Table_PI[[#This Row],[Input 4]],'Customer Information'!$AR$12,3,ROW()),\"No Rebate\"),\"No Rebate\"),0)","v":0},{"$f":"IF(Table_PI[[#This Row],[Hide:\nFormula Name]]<>\"\",IFERROR(IF(MeasureCalc(Table_PI[[#This Row],[Hide:\nFormula Name]],Table_PI[[#This Row],[Quantity]],Table_PI[[#This Row],[List 1]],Table_PI[[#This Row],[List 2]],Table_PI[[#This Row],[List 3]],Table_PI[[#This Row],[Size]],Table_PI[[#This Row],[Input 1]],Table_PI[[#This Row],[Input 2]],Table_PI[[#This Row],[Input 3]],Table_PI[[#This Row],[Input 4]],'Customer Information'!$AR$12,1,ROW())>0,MeasureCalc(Table_PI[[#This Row],[Hide:\nFormula Name]],Table_PI[[#This Row],[Quantity]],Table_PI[[#This Row],[List 1]],Table_PI[[#This Row],[List 2]],Table_PI[[#This Row],[List 3]],Table_PI[[#This Row],[Size]],Table_PI[[#This Row],[Input 1]],Table_PI[[#This Row],[Input 2]],Table_PI[[#This Row],[Input 3]],Table_PI[[#This Row],[Input 4]],'Customer Information'!$AR$12,4,ROW()),\"No Rebate\"),\"No Rebate\"),0)","v":0},{"$f":"IF(Table_PI[[#This Row],[Hide:\nFormula Name]]<>\"\",IFERROR(IF(MeasureCalc(Table_PI[[#This Row],[Hide:\nFormula Name]],Table_PI[[#This Row],[Quantity]],Table_PI[[#This Row],[List 1]],Table_PI[[#This Row],[List 2]],Table_PI[[#This Row],[List 3]],Table_PI[[#This Row],[Size]],Table_PI[[#This Row],[Input 1]],Table_PI[[#This Row],[Input 2]],Table_PI[[#This Row],[Input 3]],Table_PI[[#This Row],[Input 4]],'Customer Information'!$AR$12,1,ROW())>0,MeasureCalc(Table_PI[[#This Row],[Hide:\nFormula Name]],Table_PI[[#This Row],[Quantity]],Table_PI[[#This Row],[List 1]],Table_PI[[#This Row],[List 2]],Table_PI[[#This Row],[List 3]],Table_PI[[#This Row],[Size]],Table_PI[[#This Row],[Input 1]],Table_PI[[#This Row],[Input 2]],Table_PI[[#This Row],[Input 3]],Table_PI[[#This Row],[Input 4]],'Customer Information'!$AR$12,5,ROW()),\"No Rebate\"),\"No Rebate\"),0)","v":0},{"$f":"IF(Table_PI[[#This Row],[Hide:\nFormula Name]]<>\"\",IFERROR(IF(MeasureCalc(Table_PI[[#This Row],[Hide:\nFormula Name]],Table_PI[[#This Row],[Quantity]],Table_PI[[#This Row],[List 1]],Table_PI[[#This Row],[List 2]],Table_PI[[#This Row],[List 3]],Table_PI[[#This Row],[Size]],Table_PI[[#This Row],[Input 1]],Table_PI[[#This Row],[Input 2]],Table_PI[[#This Row],[Input 3]],Table_PI[[#This Row],[Input 4]],'Customer Information'!$AR$12,1,ROW())>0,MeasureCalc(Table_PI[[#This Row],[Hide:\nFormula Name]],Table_PI[[#This Row],[Quantity]],Table_PI[[#This Row],[List 1]],Table_PI[[#This Row],[List 2]],Table_PI[[#This Row],[List 3]],Table_PI[[#This Row],[Size]],Table_PI[[#This Row],[Input 1]],Table_PI[[#This Row],[Input 2]],Table_PI[[#This Row],[Input 3]],Table_PI[[#This Row],[Input 4]],'Customer Information'!$AR$12,6,ROW()),\"No Rebate\"),\"No Rebate\"),0)","v":0},{"$f":"IF(Table_PI[[#This Row],[Hide:\nFormula Name]]<>\"\",IFERROR(IF(MeasureCalc(Table_PI[[#This Row],[Hide:\nFormula Name]],Table_PI[[#This Row],[Quantity]],Table_PI[[#This Row],[List 1]],Table_PI[[#This Row],[List 2]],Table_PI[[#This Row],[List 3]],Table_PI[[#This Row],[Size]],Table_PI[[#This Row],[Input 1]],Table_PI[[#This Row],[Input 2]],Table_PI[[#This Row],[Input 3]],Table_PI[[#This Row],[Input 4]],'Customer Information'!$AR$12,1,ROW())>0,MeasureCalc(Table_PI[[#This Row],[Hide:\nFormula Name]],Table_PI[[#This Row],[Quantity]],Table_PI[[#This Row],[List 1]],Table_PI[[#This Row],[List 2]],Table_PI[[#This Row],[List 3]],Table_PI[[#This Row],[Size]],Table_PI[[#This Row],[Input 1]],Table_PI[[#This Row],[Input 2]],Table_PI[[#This Row],[Input 3]],Table_PI[[#This Row],[Input 4]],'Customer Information'!$AR$12,7,ROW()),\"No Rebate\"),\"No Rebate\"),0)","v":0},{"$f":"IF(Table_PI[[#This Row],[Hide:\nFormula Name]]<>\"\",IFERROR(IF(MeasureCalc(Table_PI[[#This Row],[Hide:\nFormula Name]],Table_PI[[#This Row],[Quantity]],Table_PI[[#This Row],[List 1]],Table_PI[[#This Row],[List 2]],Table_PI[[#This Row],[List 3]],Table_PI[[#This Row],[Size]],Table_PI[[#This Row],[Input 1]],Table_PI[[#This Row],[Input 2]],Table_PI[[#This Row],[Input 3]],Table_PI[[#This Row],[Input 4]],'Customer Information'!$AR$12,1,ROW())>0,MeasureCalc(Table_PI[[#This Row],[Hide:\nFormula Name]],Table_PI[[#This Row],[Quantity]],Table_PI[[#This Row],[List 1]],Table_PI[[#This Row],[List 2]],Table_PI[[#This Row],[List 3]],Table_PI[[#This Row],[Size]],Table_PI[[#This Row],[Input 1]],Table_PI[[#This Row],[Input 2]],Table_PI[[#This Row],[Input 3]],Table_PI[[#This Row],[Input 4]],'Customer Information'!$AR$12,8,ROW()),\"No Rebate\"),\"No Rebate\"),0)","v":0},{"$f":"IF(Table_PI[[#This Row],[Hide:\nFormula Name]]<>\"\",IF(AND(Table_PI[[#This Row],[Hide:\nFormula Name]]<>\"\",OR(Table_PI[[#This Row],[Rebate]]>0,Table_PI[[#This Row],[Rebate]]=\"No Rebate\")),TRUE,\"MI: Line Item \" & $A290),\"\")","v":""}]
[{"$f":"IF(Table_PI[[#This Row],[Hide:\nFormula Name]]<>\"\",MAX($A$2:A290)+1,\"\")","v":""},null,null,null,null,null,null,null,null,null,null,null,null,null,null,{"$f":"IFERROR(VLOOKUP(Table_PI[[#This Row],[Measure]],'Equipment Lookups'!$C$3:$D$23,2,FALSE),\"\")","v":""},{"$f":"IF(Table_PI[[#This Row],[Hide:\nFormula Name]]<>\"\",IFERROR(IF(MeasureCalc(Table_PI[[#This Row],[Hide:\nFormula Name]],Table_PI[[#This Row],[Quantity]],Table_PI[[#This Row],[List 1]],Table_PI[[#This Row],[List 2]],Table_PI[[#This Row],[List 3]],Table_PI[[#This Row],[Size]],Table_PI[[#This Row],[Input 1]],Table_PI[[#This Row],[Input 2]],Table_PI[[#This Row],[Input 3]],Table_PI[[#This Row],[Input 4]],'Customer Information'!$AR$12,1,ROW())>0,MeasureCalc(Table_PI[[#This Row],[Hide:\nFormula Name]],Table_PI[[#This Row],[Quantity]],Table_PI[[#This Row],[List 1]],Table_PI[[#This Row],[List 2]],Table_PI[[#This Row],[List 3]],Table_PI[[#This Row],[Size]],Table_PI[[#This Row],[Input 1]],Table_PI[[#This Row],[Input 2]],Table_PI[[#This Row],[Input 3]],Table_PI[[#This Row],[Input 4]],'Customer Information'!$AR$12,1,ROW()),\"No Rebate\"),\"No Rebate\"),0)","v":0},{"$f":"IF(Table_PI[[#This Row],[Hide:\nFormula Name]]<>\"\",IFERROR(IF(MeasureCalc(Table_PI[[#This Row],[Hide:\nFormula Name]],Table_PI[[#This Row],[Quantity]],Table_PI[[#This Row],[List 1]],Table_PI[[#This Row],[List 2]],Table_PI[[#This Row],[List 3]],Table_PI[[#This Row],[Size]],Table_PI[[#This Row],[Input 1]],Table_PI[[#This Row],[Input 2]],Table_PI[[#This Row],[Input 3]],Table_PI[[#This Row],[Input 4]],'Customer Information'!$AR$12,1,ROW())>0,MeasureCalc(Table_PI[[#This Row],[Hide:\nFormula Name]],Table_PI[[#This Row],[Quantity]],Table_PI[[#This Row],[List 1]],Table_PI[[#This Row],[List 2]],Table_PI[[#This Row],[List 3]],Table_PI[[#This Row],[Size]],Table_PI[[#This Row],[Input 1]],Table_PI[[#This Row],[Input 2]],Table_PI[[#This Row],[Input 3]],Table_PI[[#This Row],[Input 4]],'Customer Information'!$AR$12,2,ROW()),\"No Rebate\"),\"No Rebate\"),0)","v":0},{"$f":"IF(Table_PI[[#This Row],[Hide:\nFormula Name]]<>\"\",IFERROR(IF(MeasureCalc(Table_PI[[#This Row],[Hide:\nFormula Name]],Table_PI[[#This Row],[Quantity]],Table_PI[[#This Row],[List 1]],Table_PI[[#This Row],[List 2]],Table_PI[[#This Row],[List 3]],Table_PI[[#This Row],[Size]],Table_PI[[#This Row],[Input 1]],Table_PI[[#This Row],[Input 2]],Table_PI[[#This Row],[Input 3]],Table_PI[[#This Row],[Input 4]],'Customer Information'!$AR$12,1,ROW())>0,MeasureCalc(Table_PI[[#This Row],[Hide:\nFormula Name]],Table_PI[[#This Row],[Quantity]],Table_PI[[#This Row],[List 1]],Table_PI[[#This Row],[List 2]],Table_PI[[#This Row],[List 3]],Table_PI[[#This Row],[Size]],Table_PI[[#This Row],[Input 1]],Table_PI[[#This Row],[Input 2]],Table_PI[[#This Row],[Input 3]],Table_PI[[#This Row],[Input 4]],'Customer Information'!$AR$12,3,ROW()),\"No Rebate\"),\"No Rebate\"),0)","v":0},{"$f":"IF(Table_PI[[#This Row],[Hide:\nFormula Name]]<>\"\",IFERROR(IF(MeasureCalc(Table_PI[[#This Row],[Hide:\nFormula Name]],Table_PI[[#This Row],[Quantity]],Table_PI[[#This Row],[List 1]],Table_PI[[#This Row],[List 2]],Table_PI[[#This Row],[List 3]],Table_PI[[#This Row],[Size]],Table_PI[[#This Row],[Input 1]],Table_PI[[#This Row],[Input 2]],Table_PI[[#This Row],[Input 3]],Table_PI[[#This Row],[Input 4]],'Customer Information'!$AR$12,1,ROW())>0,MeasureCalc(Table_PI[[#This Row],[Hide:\nFormula Name]],Table_PI[[#This Row],[Quantity]],Table_PI[[#This Row],[List 1]],Table_PI[[#This Row],[List 2]],Table_PI[[#This Row],[List 3]],Table_PI[[#This Row],[Size]],Table_PI[[#This Row],[Input 1]],Table_PI[[#This Row],[Input 2]],Table_PI[[#This Row],[Input 3]],Table_PI[[#This Row],[Input 4]],'Customer Information'!$AR$12,4,ROW()),\"No Rebate\"),\"No Rebate\"),0)","v":0},{"$f":"IF(Table_PI[[#This Row],[Hide:\nFormula Name]]<>\"\",IFERROR(IF(MeasureCalc(Table_PI[[#This Row],[Hide:\nFormula Name]],Table_PI[[#This Row],[Quantity]],Table_PI[[#This Row],[List 1]],Table_PI[[#This Row],[List 2]],Table_PI[[#This Row],[List 3]],Table_PI[[#This Row],[Size]],Table_PI[[#This Row],[Input 1]],Table_PI[[#This Row],[Input 2]],Table_PI[[#This Row],[Input 3]],Table_PI[[#This Row],[Input 4]],'Customer Information'!$AR$12,1,ROW())>0,MeasureCalc(Table_PI[[#This Row],[Hide:\nFormula Name]],Table_PI[[#This Row],[Quantity]],Table_PI[[#This Row],[List 1]],Table_PI[[#This Row],[List 2]],Table_PI[[#This Row],[List 3]],Table_PI[[#This Row],[Size]],Table_PI[[#This Row],[Input 1]],Table_PI[[#This Row],[Input 2]],Table_PI[[#This Row],[Input 3]],Table_PI[[#This Row],[Input 4]],'Customer Information'!$AR$12,5,ROW()),\"No Rebate\"),\"No Rebate\"),0)","v":0},{"$f":"IF(Table_PI[[#This Row],[Hide:\nFormula Name]]<>\"\",IFERROR(IF(MeasureCalc(Table_PI[[#This Row],[Hide:\nFormula Name]],Table_PI[[#This Row],[Quantity]],Table_PI[[#This Row],[List 1]],Table_PI[[#This Row],[List 2]],Table_PI[[#This Row],[List 3]],Table_PI[[#This Row],[Size]],Table_PI[[#This Row],[Input 1]],Table_PI[[#This Row],[Input 2]],Table_PI[[#This Row],[Input 3]],Table_PI[[#This Row],[Input 4]],'Customer Information'!$AR$12,1,ROW())>0,MeasureCalc(Table_PI[[#This Row],[Hide:\nFormula Name]],Table_PI[[#This Row],[Quantity]],Table_PI[[#This Row],[List 1]],Table_PI[[#This Row],[List 2]],Table_PI[[#This Row],[List 3]],Table_PI[[#This Row],[Size]],Table_PI[[#This Row],[Input 1]],Table_PI[[#This Row],[Input 2]],Table_PI[[#This Row],[Input 3]],Table_PI[[#This Row],[Input 4]],'Customer Information'!$AR$12,6,ROW()),\"No Rebate\"),\"No Rebate\"),0)","v":0},{"$f":"IF(Table_PI[[#This Row],[Hide:\nFormula Name]]<>\"\",IFERROR(IF(MeasureCalc(Table_PI[[#This Row],[Hide:\nFormula Name]],Table_PI[[#This Row],[Quantity]],Table_PI[[#This Row],[List 1]],Table_PI[[#This Row],[List 2]],Table_PI[[#This Row],[List 3]],Table_PI[[#This Row],[Size]],Table_PI[[#This Row],[Input 1]],Table_PI[[#This Row],[Input 2]],Table_PI[[#This Row],[Input 3]],Table_PI[[#This Row],[Input 4]],'Customer Information'!$AR$12,1,ROW())>0,MeasureCalc(Table_PI[[#This Row],[Hide:\nFormula Name]],Table_PI[[#This Row],[Quantity]],Table_PI[[#This Row],[List 1]],Table_PI[[#This Row],[List 2]],Table_PI[[#This Row],[List 3]],Table_PI[[#This Row],[Size]],Table_PI[[#This Row],[Input 1]],Table_PI[[#This Row],[Input 2]],Table_PI[[#This Row],[Input 3]],Table_PI[[#This Row],[Input 4]],'Customer Information'!$AR$12,7,ROW()),\"No Rebate\"),\"No Rebate\"),0)","v":0},{"$f":"IF(Table_PI[[#This Row],[Hide:\nFormula Name]]<>\"\",IFERROR(IF(MeasureCalc(Table_PI[[#This Row],[Hide:\nFormula Name]],Table_PI[[#This Row],[Quantity]],Table_PI[[#This Row],[List 1]],Table_PI[[#This Row],[List 2]],Table_PI[[#This Row],[List 3]],Table_PI[[#This Row],[Size]],Table_PI[[#This Row],[Input 1]],Table_PI[[#This Row],[Input 2]],Table_PI[[#This Row],[Input 3]],Table_PI[[#This Row],[Input 4]],'Customer Information'!$AR$12,1,ROW())>0,MeasureCalc(Table_PI[[#This Row],[Hide:\nFormula Name]],Table_PI[[#This Row],[Quantity]],Table_PI[[#This Row],[List 1]],Table_PI[[#This Row],[List 2]],Table_PI[[#This Row],[List 3]],Table_PI[[#This Row],[Size]],Table_PI[[#This Row],[Input 1]],Table_PI[[#This Row],[Input 2]],Table_PI[[#This Row],[Input 3]],Table_PI[[#This Row],[Input 4]],'Customer Information'!$AR$12,8,ROW()),\"No Rebate\"),\"No Rebate\"),0)","v":0},{"$f":"IF(Table_PI[[#This Row],[Hide:\nFormula Name]]<>\"\",IF(AND(Table_PI[[#This Row],[Hide:\nFormula Name]]<>\"\",OR(Table_PI[[#This Row],[Rebate]]>0,Table_PI[[#This Row],[Rebate]]=\"No Rebate\")),TRUE,\"MI: Line Item \" & $A291),\"\")","v":""}]
[{"$f":"IF(Table_PI[[#This Row],[Hide:\nFormula Name]]<>\"\",MAX($A$2:A291)+1,\"\")","v":""},null,null,null,null,null,null,null,null,null,null,null,null,null,null,{"$f":"IFERROR(VLOOKUP(Table_PI[[#This Row],[Measure]],'Equipment Lookups'!$C$3:$D$23,2,FALSE),\"\")","v":""},{"$f":"IF(Table_PI[[#This Row],[Hide:\nFormula Name]]<>\"\",IFERROR(IF(MeasureCalc(Table_PI[[#This Row],[Hide:\nFormula Name]],Table_PI[[#This Row],[Quantity]],Table_PI[[#This Row],[List 1]],Table_PI[[#This Row],[List 2]],Table_PI[[#This Row],[List 3]],Table_PI[[#This Row],[Size]],Table_PI[[#This Row],[Input 1]],Table_PI[[#This Row],[Input 2]],Table_PI[[#This Row],[Input 3]],Table_PI[[#This Row],[Input 4]],'Customer Information'!$AR$12,1,ROW())>0,MeasureCalc(Table_PI[[#This Row],[Hide:\nFormula Name]],Table_PI[[#This Row],[Quantity]],Table_PI[[#This Row],[List 1]],Table_PI[[#This Row],[List 2]],Table_PI[[#This Row],[List 3]],Table_PI[[#This Row],[Size]],Table_PI[[#This Row],[Input 1]],Table_PI[[#This Row],[Input 2]],Table_PI[[#This Row],[Input 3]],Table_PI[[#This Row],[Input 4]],'Customer Information'!$AR$12,1,ROW()),\"No Rebate\"),\"No Rebate\"),0)","v":0},{"$f":"IF(Table_PI[[#This Row],[Hide:\nFormula Name]]<>\"\",IFERROR(IF(MeasureCalc(Table_PI[[#This Row],[Hide:\nFormula Name]],Table_PI[[#This Row],[Quantity]],Table_PI[[#This Row],[List 1]],Table_PI[[#This Row],[List 2]],Table_PI[[#This Row],[List 3]],Table_PI[[#This Row],[Size]],Table_PI[[#This Row],[Input 1]],Table_PI[[#This Row],[Input 2]],Table_PI[[#This Row],[Input 3]],Table_PI[[#This Row],[Input 4]],'Customer Information'!$AR$12,1,ROW())>0,MeasureCalc(Table_PI[[#This Row],[Hide:\nFormula Name]],Table_PI[[#This Row],[Quantity]],Table_PI[[#This Row],[List 1]],Table_PI[[#This Row],[List 2]],Table_PI[[#This Row],[List 3]],Table_PI[[#This Row],[Size]],Table_PI[[#This Row],[Input 1]],Table_PI[[#This Row],[Input 2]],Table_PI[[#This Row],[Input 3]],Table_PI[[#This Row],[Input 4]],'Customer Information'!$AR$12,2,ROW()),\"No Rebate\"),\"No Rebate\"),0)","v":0},{"$f":"IF(Table_PI[[#This Row],[Hide:\nFormula Name]]<>\"\",IFERROR(IF(MeasureCalc(Table_PI[[#This Row],[Hide:\nFormula Name]],Table_PI[[#This Row],[Quantity]],Table_PI[[#This Row],[List 1]],Table_PI[[#This Row],[List 2]],Table_PI[[#This Row],[List 3]],Table_PI[[#This Row],[Size]],Table_PI[[#This Row],[Input 1]],Table_PI[[#This Row],[Input 2]],Table_PI[[#This Row],[Input 3]],Table_PI[[#This Row],[Input 4]],'Customer Information'!$AR$12,1,ROW())>0,MeasureCalc(Table_PI[[#This Row],[Hide:\nFormula Name]],Table_PI[[#This Row],[Quantity]],Table_PI[[#This Row],[List 1]],Table_PI[[#This Row],[List 2]],Table_PI[[#This Row],[List 3]],Table_PI[[#This Row],[Size]],Table_PI[[#This Row],[Input 1]],Table_PI[[#This Row],[Input 2]],Table_PI[[#This Row],[Input 3]],Table_PI[[#This Row],[Input 4]],'Customer Information'!$AR$12,3,ROW()),\"No Rebate\"),\"No Rebate\"),0)","v":0},{"$f":"IF(Table_PI[[#This Row],[Hide:\nFormula Name]]<>\"\",IFERROR(IF(MeasureCalc(Table_PI[[#This Row],[Hide:\nFormula Name]],Table_PI[[#This Row],[Quantity]],Table_PI[[#This Row],[List 1]],Table_PI[[#This Row],[List 2]],Table_PI[[#This Row],[List 3]],Table_PI[[#This Row],[Size]],Table_PI[[#This Row],[Input 1]],Table_PI[[#This Row],[Input 2]],Table_PI[[#This Row],[Input 3]],Table_PI[[#This Row],[Input 4]],'Customer Information'!$AR$12,1,ROW())>0,MeasureCalc(Table_PI[[#This Row],[Hide:\nFormula Name]],Table_PI[[#This Row],[Quantity]],Table_PI[[#This Row],[List 1]],Table_PI[[#This Row],[List 2]],Table_PI[[#This Row],[List 3]],Table_PI[[#This Row],[Size]],Table_PI[[#This Row],[Input 1]],Table_PI[[#This Row],[Input 2]],Table_PI[[#This Row],[Input 3]],Table_PI[[#This Row],[Input 4]],'Customer Information'!$AR$12,4,ROW()),\"No Rebate\"),\"No Rebate\"),0)","v":0},{"$f":"IF(Table_PI[[#This Row],[Hide:\nFormula Name]]<>\"\",IFERROR(IF(MeasureCalc(Table_PI[[#This Row],[Hide:\nFormula Name]],Table_PI[[#This Row],[Quantity]],Table_PI[[#This Row],[List 1]],Table_PI[[#This Row],[List 2]],Table_PI[[#This Row],[List 3]],Table_PI[[#This Row],[Size]],Table_PI[[#This Row],[Input 1]],Table_PI[[#This Row],[Input 2]],Table_PI[[#This Row],[Input 3]],Table_PI[[#This Row],[Input 4]],'Customer Information'!$AR$12,1,ROW())>0,MeasureCalc(Table_PI[[#This Row],[Hide:\nFormula Name]],Table_PI[[#This Row],[Quantity]],Table_PI[[#This Row],[List 1]],Table_PI[[#This Row],[List 2]],Table_PI[[#This Row],[List 3]],Table_PI[[#This Row],[Size]],Table_PI[[#This Row],[Input 1]],Table_PI[[#This Row],[Input 2]],Table_PI[[#This Row],[Input 3]],Table_PI[[#This Row],[Input 4]],'Customer Information'!$AR$12,5,ROW()),\"No Rebate\"),\"No Rebate\"),0)","v":0},{"$f":"IF(Table_PI[[#This Row],[Hide:\nFormula Name]]<>\"\",IFERROR(IF(MeasureCalc(Table_PI[[#This Row],[Hide:\nFormula Name]],Table_PI[[#This Row],[Quantity]],Table_PI[[#This Row],[List 1]],Table_PI[[#This Row],[List 2]],Table_PI[[#This Row],[List 3]],Table_PI[[#This Row],[Size]],Table_PI[[#This Row],[Input 1]],Table_PI[[#This Row],[Input 2]],Table_PI[[#This Row],[Input 3]],Table_PI[[#This Row],[Input 4]],'Customer Information'!$AR$12,1,ROW())>0,MeasureCalc(Table_PI[[#This Row],[Hide:\nFormula Name]],Table_PI[[#This Row],[Quantity]],Table_PI[[#This Row],[List 1]],Table_PI[[#This Row],[List 2]],Table_PI[[#This Row],[List 3]],Table_PI[[#This Row],[Size]],Table_PI[[#This Row],[Input 1]],Table_PI[[#This Row],[Input 2]],Table_PI[[#This Row],[Input 3]],Table_PI[[#This Row],[Input 4]],'Customer Information'!$AR$12,6,ROW()),\"No Rebate\"),\"No Rebate\"),0)","v":0},{"$f":"IF(Table_PI[[#This Row],[Hide:\nFormula Name]]<>\"\",IFERROR(IF(MeasureCalc(Table_PI[[#This Row],[Hide:\nFormula Name]],Table_PI[[#This Row],[Quantity]],Table_PI[[#This Row],[List 1]],Table_PI[[#This Row],[List 2]],Table_PI[[#This Row],[List 3]],Table_PI[[#This Row],[Size]],Table_PI[[#This Row],[Input 1]],Table_PI[[#This Row],[Input 2]],Table_PI[[#This Row],[Input 3]],Table_PI[[#This Row],[Input 4]],'Customer Information'!$AR$12,1,ROW())>0,MeasureCalc(Table_PI[[#This Row],[Hide:\nFormula Name]],Table_PI[[#This Row],[Quantity]],Table_PI[[#This Row],[List 1]],Table_PI[[#This Row],[List 2]],Table_PI[[#This Row],[List 3]],Table_PI[[#This Row],[Size]],Table_PI[[#This Row],[Input 1]],Table_PI[[#This Row],[Input 2]],Table_PI[[#This Row],[Input 3]],Table_PI[[#This Row],[Input 4]],'Customer Information'!$AR$12,7,ROW()),\"No Rebate\"),\"No Rebate\"),0)","v":0},{"$f":"IF(Table_PI[[#This Row],[Hide:\nFormula Name]]<>\"\",IFERROR(IF(MeasureCalc(Table_PI[[#This Row],[Hide:\nFormula Name]],Table_PI[[#This Row],[Quantity]],Table_PI[[#This Row],[List 1]],Table_PI[[#This Row],[List 2]],Table_PI[[#This Row],[List 3]],Table_PI[[#This Row],[Size]],Table_PI[[#This Row],[Input 1]],Table_PI[[#This Row],[Input 2]],Table_PI[[#This Row],[Input 3]],Table_PI[[#This Row],[Input 4]],'Customer Information'!$AR$12,1,ROW())>0,MeasureCalc(Table_PI[[#This Row],[Hide:\nFormula Name]],Table_PI[[#This Row],[Quantity]],Table_PI[[#This Row],[List 1]],Table_PI[[#This Row],[List 2]],Table_PI[[#This Row],[List 3]],Table_PI[[#This Row],[Size]],Table_PI[[#This Row],[Input 1]],Table_PI[[#This Row],[Input 2]],Table_PI[[#This Row],[Input 3]],Table_PI[[#This Row],[Input 4]],'Customer Information'!$AR$12,8,ROW()),\"No Rebate\"),\"No Rebate\"),0)","v":0},{"$f":"IF(Table_PI[[#This Row],[Hide:\nFormula Name]]<>\"\",IF(AND(Table_PI[[#This Row],[Hide:\nFormula Name]]<>\"\",OR(Table_PI[[#This Row],[Rebate]]>0,Table_PI[[#This Row],[Rebate]]=\"No Rebate\")),TRUE,\"MI: Line Item \" & $A292),\"\")","v":""}]
[{"$f":"IF(Table_PI[[#This Row],[Hide:\nFormula Name]]<>\"\",MAX($A$2:A292)+1,\"\")","v":""},null,null,null,null,null,null,null,null,null,null,null,null,null,null,{"$f":"IFERROR(VLOOKUP(Table_PI[[#This Row],[Measure]],'Equipment Lookups'!$C$3:$D$23,2,FALSE),\"\")","v":""},{"$f":"IF(Table_PI[[#This Row],[Hide:\nFormula Name]]<>\"\",IFERROR(IF(MeasureCalc(Table_PI[[#This Row],[Hide:\nFormula Name]],Table_PI[[#This Row],[Quantity]],Table_PI[[#This Row],[List 1]],Table_PI[[#This Row],[List 2]],Table_PI[[#This Row],[List 3]],Table_PI[[#This Row],[Size]],Table_PI[[#This Row],[Input 1]],Table_PI[[#This Row],[Input 2]],Table_PI[[#This Row],[Input 3]],Table_PI[[#This Row],[Input 4]],'Customer Information'!$AR$12,1,ROW())>0,MeasureCalc(Table_PI[[#This Row],[Hide:\nFormula Name]],Table_PI[[#This Row],[Quantity]],Table_PI[[#This Row],[List 1]],Table_PI[[#This Row],[List 2]],Table_PI[[#This Row],[List 3]],Table_PI[[#This Row],[Size]],Table_PI[[#This Row],[Input 1]],Table_PI[[#This Row],[Input 2]],Table_PI[[#This Row],[Input 3]],Table_PI[[#This Row],[Input 4]],'Customer Information'!$AR$12,1,ROW()),\"No Rebate\"),\"No Rebate\"),0)","v":0},{"$f":"IF(Table_PI[[#This Row],[Hide:\nFormula Name]]<>\"\",IFERROR(IF(MeasureCalc(Table_PI[[#This Row],[Hide:\nFormula Name]],Table_PI[[#This Row],[Quantity]],Table_PI[[#This Row],[List 1]],Table_PI[[#This Row],[List 2]],Table_PI[[#This Row],[List 3]],Table_PI[[#This Row],[Size]],Table_PI[[#This Row],[Input 1]],Table_PI[[#This Row],[Input 2]],Table_PI[[#This Row],[Input 3]],Table_PI[[#This Row],[Input 4]],'Customer Information'!$AR$12,1,ROW())>0,MeasureCalc(Table_PI[[#This Row],[Hide:\nFormula Name]],Table_PI[[#This Row],[Quantity]],Table_PI[[#This Row],[List 1]],Table_PI[[#This Row],[List 2]],Table_PI[[#This Row],[List 3]],Table_PI[[#This Row],[Size]],Table_PI[[#This Row],[Input 1]],Table_PI[[#This Row],[Input 2]],Table_PI[[#This Row],[Input 3]],Table_PI[[#This Row],[Input 4]],'Customer Information'!$AR$12,2,ROW()),\"No Rebate\"),\"No Rebate\"),0)","v":0},{"$f":"IF(Table_PI[[#This Row],[Hide:\nFormula Name]]<>\"\",IFERROR(IF(MeasureCalc(Table_PI[[#This Row],[Hide:\nFormula Name]],Table_PI[[#This Row],[Quantity]],Table_PI[[#This Row],[List 1]],Table_PI[[#This Row],[List 2]],Table_PI[[#This Row],[List 3]],Table_PI[[#This Row],[Size]],Table_PI[[#This Row],[Input 1]],Table_PI[[#This Row],[Input 2]],Table_PI[[#This Row],[Input 3]],Table_PI[[#This Row],[Input 4]],'Customer Information'!$AR$12,1,ROW())>0,MeasureCalc(Table_PI[[#This Row],[Hide:\nFormula Name]],Table_PI[[#This Row],[Quantity]],Table_PI[[#This Row],[List 1]],Table_PI[[#This Row],[List 2]],Table_PI[[#This Row],[List 3]],Table_PI[[#This Row],[Size]],Table_PI[[#This Row],[Input 1]],Table_PI[[#This Row],[Input 2]],Table_PI[[#This Row],[Input 3]],Table_PI[[#This Row],[Input 4]],'Customer Information'!$AR$12,3,ROW()),\"No Rebate\"),\"No Rebate\"),0)","v":0},{"$f":"IF(Table_PI[[#This Row],[Hide:\nFormula Name]]<>\"\",IFERROR(IF(MeasureCalc(Table_PI[[#This Row],[Hide:\nFormula Name]],Table_PI[[#This Row],[Quantity]],Table_PI[[#This Row],[List 1]],Table_PI[[#This Row],[List 2]],Table_PI[[#This Row],[List 3]],Table_PI[[#This Row],[Size]],Table_PI[[#This Row],[Input 1]],Table_PI[[#This Row],[Input 2]],Table_PI[[#This Row],[Input 3]],Table_PI[[#This Row],[Input 4]],'Customer Information'!$AR$12,1,ROW())>0,MeasureCalc(Table_PI[[#This Row],[Hide:\nFormula Name]],Table_PI[[#This Row],[Quantity]],Table_PI[[#This Row],[List 1]],Table_PI[[#This Row],[List 2]],Table_PI[[#This Row],[List 3]],Table_PI[[#This Row],[Size]],Table_PI[[#This Row],[Input 1]],Table_PI[[#This Row],[Input 2]],Table_PI[[#This Row],[Input 3]],Table_PI[[#This Row],[Input 4]],'Customer Information'!$AR$12,4,ROW()),\"No Rebate\"),\"No Rebate\"),0)","v":0},{"$f":"IF(Table_PI[[#This Row],[Hide:\nFormula Name]]<>\"\",IFERROR(IF(MeasureCalc(Table_PI[[#This Row],[Hide:\nFormula Name]],Table_PI[[#This Row],[Quantity]],Table_PI[[#This Row],[List 1]],Table_PI[[#This Row],[List 2]],Table_PI[[#This Row],[List 3]],Table_PI[[#This Row],[Size]],Table_PI[[#This Row],[Input 1]],Table_PI[[#This Row],[Input 2]],Table_PI[[#This Row],[Input 3]],Table_PI[[#This Row],[Input 4]],'Customer Information'!$AR$12,1,ROW())>0,MeasureCalc(Table_PI[[#This Row],[Hide:\nFormula Name]],Table_PI[[#This Row],[Quantity]],Table_PI[[#This Row],[List 1]],Table_PI[[#This Row],[List 2]],Table_PI[[#This Row],[List 3]],Table_PI[[#This Row],[Size]],Table_PI[[#This Row],[Input 1]],Table_PI[[#This Row],[Input 2]],Table_PI[[#This Row],[Input 3]],Table_PI[[#This Row],[Input 4]],'Customer Information'!$AR$12,5,ROW()),\"No Rebate\"),\"No Rebate\"),0)","v":0},{"$f":"IF(Table_PI[[#This Row],[Hide:\nFormula Name]]<>\"\",IFERROR(IF(MeasureCalc(Table_PI[[#This Row],[Hide:\nFormula Name]],Table_PI[[#This Row],[Quantity]],Table_PI[[#This Row],[List 1]],Table_PI[[#This Row],[List 2]],Table_PI[[#This Row],[List 3]],Table_PI[[#This Row],[Size]],Table_PI[[#This Row],[Input 1]],Table_PI[[#This Row],[Input 2]],Table_PI[[#This Row],[Input 3]],Table_PI[[#This Row],[Input 4]],'Customer Information'!$AR$12,1,ROW())>0,MeasureCalc(Table_PI[[#This Row],[Hide:\nFormula Name]],Table_PI[[#This Row],[Quantity]],Table_PI[[#This Row],[List 1]],Table_PI[[#This Row],[List 2]],Table_PI[[#This Row],[List 3]],Table_PI[[#This Row],[Size]],Table_PI[[#This Row],[Input 1]],Table_PI[[#This Row],[Input 2]],Table_PI[[#This Row],[Input 3]],Table_PI[[#This Row],[Input 4]],'Customer Information'!$AR$12,6,ROW()),\"No Rebate\"),\"No Rebate\"),0)","v":0},{"$f":"IF(Table_PI[[#This Row],[Hide:\nFormula Name]]<>\"\",IFERROR(IF(MeasureCalc(Table_PI[[#This Row],[Hide:\nFormula Name]],Table_PI[[#This Row],[Quantity]],Table_PI[[#This Row],[List 1]],Table_PI[[#This Row],[List 2]],Table_PI[[#This Row],[List 3]],Table_PI[[#This Row],[Size]],Table_PI[[#This Row],[Input 1]],Table_PI[[#This Row],[Input 2]],Table_PI[[#This Row],[Input 3]],Table_PI[[#This Row],[Input 4]],'Customer Information'!$AR$12,1,ROW())>0,MeasureCalc(Table_PI[[#This Row],[Hide:\nFormula Name]],Table_PI[[#This Row],[Quantity]],Table_PI[[#This Row],[List 1]],Table_PI[[#This Row],[List 2]],Table_PI[[#This Row],[List 3]],Table_PI[[#This Row],[Size]],Table_PI[[#This Row],[Input 1]],Table_PI[[#This Row],[Input 2]],Table_PI[[#This Row],[Input 3]],Table_PI[[#This Row],[Input 4]],'Customer Information'!$AR$12,7,ROW()),\"No Rebate\"),\"No Rebate\"),0)","v":0},{"$f":"IF(Table_PI[[#This Row],[Hide:\nFormula Name]]<>\"\",IFERROR(IF(MeasureCalc(Table_PI[[#This Row],[Hide:\nFormula Name]],Table_PI[[#This Row],[Quantity]],Table_PI[[#This Row],[List 1]],Table_PI[[#This Row],[List 2]],Table_PI[[#This Row],[List 3]],Table_PI[[#This Row],[Size]],Table_PI[[#This Row],[Input 1]],Table_PI[[#This Row],[Input 2]],Table_PI[[#This Row],[Input 3]],Table_PI[[#This Row],[Input 4]],'Customer Information'!$AR$12,1,ROW())>0,MeasureCalc(Table_PI[[#This Row],[Hide:\nFormula Name]],Table_PI[[#This Row],[Quantity]],Table_PI[[#This Row],[List 1]],Table_PI[[#This Row],[List 2]],Table_PI[[#This Row],[List 3]],Table_PI[[#This Row],[Size]],Table_PI[[#This Row],[Input 1]],Table_PI[[#This Row],[Input 2]],Table_PI[[#This Row],[Input 3]],Table_PI[[#This Row],[Input 4]],'Customer Information'!$AR$12,8,ROW()),\"No Rebate\"),\"No Rebate\"),0)","v":0},{"$f":"IF(Table_PI[[#This Row],[Hide:\nFormula Name]]<>\"\",IF(AND(Table_PI[[#This Row],[Hide:\nFormula Name]]<>\"\",OR(Table_PI[[#This Row],[Rebate]]>0,Table_PI[[#This Row],[Rebate]]=\"No Rebate\")),TRUE,\"MI: Line Item \" & $A293),\"\")","v":""}]
[{"$f":"IF(Table_PI[[#This Row],[Hide:\nFormula Name]]<>\"\",MAX($A$2:A293)+1,\"\")","v":""},null,null,null,null,null,null,null,null,null,null,null,null,null,null,{"$f":"IFERROR(VLOOKUP(Table_PI[[#This Row],[Measure]],'Equipment Lookups'!$C$3:$D$23,2,FALSE),\"\")","v":""},{"$f":"IF(Table_PI[[#This Row],[Hide:\nFormula Name]]<>\"\",IFERROR(IF(MeasureCalc(Table_PI[[#This Row],[Hide:\nFormula Name]],Table_PI[[#This Row],[Quantity]],Table_PI[[#This Row],[List 1]],Table_PI[[#This Row],[List 2]],Table_PI[[#This Row],[List 3]],Table_PI[[#This Row],[Size]],Table_PI[[#This Row],[Input 1]],Table_PI[[#This Row],[Input 2]],Table_PI[[#This Row],[Input 3]],Table_PI[[#This Row],[Input 4]],'Customer Information'!$AR$12,1,ROW())>0,MeasureCalc(Table_PI[[#This Row],[Hide:\nFormula Name]],Table_PI[[#This Row],[Quantity]],Table_PI[[#This Row],[List 1]],Table_PI[[#This Row],[List 2]],Table_PI[[#This Row],[List 3]],Table_PI[[#This Row],[Size]],Table_PI[[#This Row],[Input 1]],Table_PI[[#This Row],[Input 2]],Table_PI[[#This Row],[Input 3]],Table_PI[[#This Row],[Input 4]],'Customer Information'!$AR$12,1,ROW()),\"No Rebate\"),\"No Rebate\"),0)","v":0},{"$f":"IF(Table_PI[[#This Row],[Hide:\nFormula Name]]<>\"\",IFERROR(IF(MeasureCalc(Table_PI[[#This Row],[Hide:\nFormula Name]],Table_PI[[#This Row],[Quantity]],Table_PI[[#This Row],[List 1]],Table_PI[[#This Row],[List 2]],Table_PI[[#This Row],[List 3]],Table_PI[[#This Row],[Size]],Table_PI[[#This Row],[Input 1]],Table_PI[[#This Row],[Input 2]],Table_PI[[#This Row],[Input 3]],Table_PI[[#This Row],[Input 4]],'Customer Information'!$AR$12,1,ROW())>0,MeasureCalc(Table_PI[[#This Row],[Hide:\nFormula Name]],Table_PI[[#This Row],[Quantity]],Table_PI[[#This Row],[List 1]],Table_PI[[#This Row],[List 2]],Table_PI[[#This Row],[List 3]],Table_PI[[#This Row],[Size]],Table_PI[[#This Row],[Input 1]],Table_PI[[#This Row],[Input 2]],Table_PI[[#This Row],[Input 3]],Table_PI[[#This Row],[Input 4]],'Customer Information'!$AR$12,2,ROW()),\"No Rebate\"),\"No Rebate\"),0)","v":0},{"$f":"IF(Table_PI[[#This Row],[Hide:\nFormula Name]]<>\"\",IFERROR(IF(MeasureCalc(Table_PI[[#This Row],[Hide:\nFormula Name]],Table_PI[[#This Row],[Quantity]],Table_PI[[#This Row],[List 1]],Table_PI[[#This Row],[List 2]],Table_PI[[#This Row],[List 3]],Table_PI[[#This Row],[Size]],Table_PI[[#This Row],[Input 1]],Table_PI[[#This Row],[Input 2]],Table_PI[[#This Row],[Input 3]],Table_PI[[#This Row],[Input 4]],'Customer Information'!$AR$12,1,ROW())>0,MeasureCalc(Table_PI[[#This Row],[Hide:\nFormula Name]],Table_PI[[#This Row],[Quantity]],Table_PI[[#This Row],[List 1]],Table_PI[[#This Row],[List 2]],Table_PI[[#This Row],[List 3]],Table_PI[[#This Row],[Size]],Table_PI[[#This Row],[Input 1]],Table_PI[[#This Row],[Input 2]],Table_PI[[#This Row],[Input 3]],Table_PI[[#This Row],[Input 4]],'Customer Information'!$AR$12,3,ROW()),\"No Rebate\"),\"No Rebate\"),0)","v":0},{"$f":"IF(Table_PI[[#This Row],[Hide:\nFormula Name]]<>\"\",IFERROR(IF(MeasureCalc(Table_PI[[#This Row],[Hide:\nFormula Name]],Table_PI[[#This Row],[Quantity]],Table_PI[[#This Row],[List 1]],Table_PI[[#This Row],[List 2]],Table_PI[[#This Row],[List 3]],Table_PI[[#This Row],[Size]],Table_PI[[#This Row],[Input 1]],Table_PI[[#This Row],[Input 2]],Table_PI[[#This Row],[Input 3]],Table_PI[[#This Row],[Input 4]],'Customer Information'!$AR$12,1,ROW())>0,MeasureCalc(Table_PI[[#This Row],[Hide:\nFormula Name]],Table_PI[[#This Row],[Quantity]],Table_PI[[#This Row],[List 1]],Table_PI[[#This Row],[List 2]],Table_PI[[#This Row],[List 3]],Table_PI[[#This Row],[Size]],Table_PI[[#This Row],[Input 1]],Table_PI[[#This Row],[Input 2]],Table_PI[[#This Row],[Input 3]],Table_PI[[#This Row],[Input 4]],'Customer Information'!$AR$12,4,ROW()),\"No Rebate\"),\"No Rebate\"),0)","v":0},{"$f":"IF(Table_PI[[#This Row],[Hide:\nFormula Name]]<>\"\",IFERROR(IF(MeasureCalc(Table_PI[[#This Row],[Hide:\nFormula Name]],Table_PI[[#This Row],[Quantity]],Table_PI[[#This Row],[List 1]],Table_PI[[#This Row],[List 2]],Table_PI[[#This Row],[List 3]],Table_PI[[#This Row],[Size]],Table_PI[[#This Row],[Input 1]],Table_PI[[#This Row],[Input 2]],Table_PI[[#This Row],[Input 3]],Table_PI[[#This Row],[Input 4]],'Customer Information'!$AR$12,1,ROW())>0,MeasureCalc(Table_PI[[#This Row],[Hide:\nFormula Name]],Table_PI[[#This Row],[Quantity]],Table_PI[[#This Row],[List 1]],Table_PI[[#This Row],[List 2]],Table_PI[[#This Row],[List 3]],Table_PI[[#This Row],[Size]],Table_PI[[#This Row],[Input 1]],Table_PI[[#This Row],[Input 2]],Table_PI[[#This Row],[Input 3]],Table_PI[[#This Row],[Input 4]],'Customer Information'!$AR$12,5,ROW()),\"No Rebate\"),\"No Rebate\"),0)","v":0},{"$f":"IF(Table_PI[[#This Row],[Hide:\nFormula Name]]<>\"\",IFERROR(IF(MeasureCalc(Table_PI[[#This Row],[Hide:\nFormula Name]],Table_PI[[#This Row],[Quantity]],Table_PI[[#This Row],[List 1]],Table_PI[[#This Row],[List 2]],Table_PI[[#This Row],[List 3]],Table_PI[[#This Row],[Size]],Table_PI[[#This Row],[Input 1]],Table_PI[[#This Row],[Input 2]],Table_PI[[#This Row],[Input 3]],Table_PI[[#This Row],[Input 4]],'Customer Information'!$AR$12,1,ROW())>0,MeasureCalc(Table_PI[[#This Row],[Hide:\nFormula Name]],Table_PI[[#This Row],[Quantity]],Table_PI[[#This Row],[List 1]],Table_PI[[#This Row],[List 2]],Table_PI[[#This Row],[List 3]],Table_PI[[#This Row],[Size]],Table_PI[[#This Row],[Input 1]],Table_PI[[#This Row],[Input 2]],Table_PI[[#This Row],[Input 3]],Table_PI[[#This Row],[Input 4]],'Customer Information'!$AR$12,6,ROW()),\"No Rebate\"),\"No Rebate\"),0)","v":0},{"$f":"IF(Table_PI[[#This Row],[Hide:\nFormula Name]]<>\"\",IFERROR(IF(MeasureCalc(Table_PI[[#This Row],[Hide:\nFormula Name]],Table_PI[[#This Row],[Quantity]],Table_PI[[#This Row],[List 1]],Table_PI[[#This Row],[List 2]],Table_PI[[#This Row],[List 3]],Table_PI[[#This Row],[Size]],Table_PI[[#This Row],[Input 1]],Table_PI[[#This Row],[Input 2]],Table_PI[[#This Row],[Input 3]],Table_PI[[#This Row],[Input 4]],'Customer Information'!$AR$12,1,ROW())>0,MeasureCalc(Table_PI[[#This Row],[Hide:\nFormula Name]],Table_PI[[#This Row],[Quantity]],Table_PI[[#This Row],[List 1]],Table_PI[[#This Row],[List 2]],Table_PI[[#This Row],[List 3]],Table_PI[[#This Row],[Size]],Table_PI[[#This Row],[Input 1]],Table_PI[[#This Row],[Input 2]],Table_PI[[#This Row],[Input 3]],Table_PI[[#This Row],[Input 4]],'Customer Information'!$AR$12,7,ROW()),\"No Rebate\"),\"No Rebate\"),0)","v":0},{"$f":"IF(Table_PI[[#This Row],[Hide:\nFormula Name]]<>\"\",IFERROR(IF(MeasureCalc(Table_PI[[#This Row],[Hide:\nFormula Name]],Table_PI[[#This Row],[Quantity]],Table_PI[[#This Row],[List 1]],Table_PI[[#This Row],[List 2]],Table_PI[[#This Row],[List 3]],Table_PI[[#This Row],[Size]],Table_PI[[#This Row],[Input 1]],Table_PI[[#This Row],[Input 2]],Table_PI[[#This Row],[Input 3]],Table_PI[[#This Row],[Input 4]],'Customer Information'!$AR$12,1,ROW())>0,MeasureCalc(Table_PI[[#This Row],[Hide:\nFormula Name]],Table_PI[[#This Row],[Quantity]],Table_PI[[#This Row],[List 1]],Table_PI[[#This Row],[List 2]],Table_PI[[#This Row],[List 3]],Table_PI[[#This Row],[Size]],Table_PI[[#This Row],[Input 1]],Table_PI[[#This Row],[Input 2]],Table_PI[[#This Row],[Input 3]],Table_PI[[#This Row],[Input 4]],'Customer Information'!$AR$12,8,ROW()),\"No Rebate\"),\"No Rebate\"),0)","v":0},{"$f":"IF(Table_PI[[#This Row],[Hide:\nFormula Name]]<>\"\",IF(AND(Table_PI[[#This Row],[Hide:\nFormula Name]]<>\"\",OR(Table_PI[[#This Row],[Rebate]]>0,Table_PI[[#This Row],[Rebate]]=\"No Rebate\")),TRUE,\"MI: Line Item \" & $A294),\"\")","v":""}]
[{"$f":"IF(Table_PI[[#This Row],[Hide:\nFormula Name]]<>\"\",MAX($A$2:A294)+1,\"\")","v":""},null,null,null,null,null,null,null,null,null,null,null,null,null,null,{"$f":"IFERROR(VLOOKUP(Table_PI[[#This Row],[Measure]],'Equipment Lookups'!$C$3:$D$23,2,FALSE),\"\")","v":""},{"$f":"IF(Table_PI[[#This Row],[Hide:\nFormula Name]]<>\"\",IFERROR(IF(MeasureCalc(Table_PI[[#This Row],[Hide:\nFormula Name]],Table_PI[[#This Row],[Quantity]],Table_PI[[#This Row],[List 1]],Table_PI[[#This Row],[List 2]],Table_PI[[#This Row],[List 3]],Table_PI[[#This Row],[Size]],Table_PI[[#This Row],[Input 1]],Table_PI[[#This Row],[Input 2]],Table_PI[[#This Row],[Input 3]],Table_PI[[#This Row],[Input 4]],'Customer Information'!$AR$12,1,ROW())>0,MeasureCalc(Table_PI[[#This Row],[Hide:\nFormula Name]],Table_PI[[#This Row],[Quantity]],Table_PI[[#This Row],[List 1]],Table_PI[[#This Row],[List 2]],Table_PI[[#This Row],[List 3]],Table_PI[[#This Row],[Size]],Table_PI[[#This Row],[Input 1]],Table_PI[[#This Row],[Input 2]],Table_PI[[#This Row],[Input 3]],Table_PI[[#This Row],[Input 4]],'Customer Information'!$AR$12,1,ROW()),\"No Rebate\"),\"No Rebate\"),0)","v":0},{"$f":"IF(Table_PI[[#This Row],[Hide:\nFormula Name]]<>\"\",IFERROR(IF(MeasureCalc(Table_PI[[#This Row],[Hide:\nFormula Name]],Table_PI[[#This Row],[Quantity]],Table_PI[[#This Row],[List 1]],Table_PI[[#This Row],[List 2]],Table_PI[[#This Row],[List 3]],Table_PI[[#This Row],[Size]],Table_PI[[#This Row],[Input 1]],Table_PI[[#This Row],[Input 2]],Table_PI[[#This Row],[Input 3]],Table_PI[[#This Row],[Input 4]],'Customer Information'!$AR$12,1,ROW())>0,MeasureCalc(Table_PI[[#This Row],[Hide:\nFormula Name]],Table_PI[[#This Row],[Quantity]],Table_PI[[#This Row],[List 1]],Table_PI[[#This Row],[List 2]],Table_PI[[#This Row],[List 3]],Table_PI[[#This Row],[Size]],Table_PI[[#This Row],[Input 1]],Table_PI[[#This Row],[Input 2]],Table_PI[[#This Row],[Input 3]],Table_PI[[#This Row],[Input 4]],'Customer Information'!$AR$12,2,ROW()),\"No Rebate\"),\"No Rebate\"),0)","v":0},{"$f":"IF(Table_PI[[#This Row],[Hide:\nFormula Name]]<>\"\",IFERROR(IF(MeasureCalc(Table_PI[[#This Row],[Hide:\nFormula Name]],Table_PI[[#This Row],[Quantity]],Table_PI[[#This Row],[List 1]],Table_PI[[#This Row],[List 2]],Table_PI[[#This Row],[List 3]],Table_PI[[#This Row],[Size]],Table_PI[[#This Row],[Input 1]],Table_PI[[#This Row],[Input 2]],Table_PI[[#This Row],[Input 3]],Table_PI[[#This Row],[Input 4]],'Customer Information'!$AR$12,1,ROW())>0,MeasureCalc(Table_PI[[#This Row],[Hide:\nFormula Name]],Table_PI[[#This Row],[Quantity]],Table_PI[[#This Row],[List 1]],Table_PI[[#This Row],[List 2]],Table_PI[[#This Row],[List 3]],Table_PI[[#This Row],[Size]],Table_PI[[#This Row],[Input 1]],Table_PI[[#This Row],[Input 2]],Table_PI[[#This Row],[Input 3]],Table_PI[[#This Row],[Input 4]],'Customer Information'!$AR$12,3,ROW()),\"No Rebate\"),\"No Rebate\"),0)","v":0},{"$f":"IF(Table_PI[[#This Row],[Hide:\nFormula Name]]<>\"\",IFERROR(IF(MeasureCalc(Table_PI[[#This Row],[Hide:\nFormula Name]],Table_PI[[#This Row],[Quantity]],Table_PI[[#This Row],[List 1]],Table_PI[[#This Row],[List 2]],Table_PI[[#This Row],[List 3]],Table_PI[[#This Row],[Size]],Table_PI[[#This Row],[Input 1]],Table_PI[[#This Row],[Input 2]],Table_PI[[#This Row],[Input 3]],Table_PI[[#This Row],[Input 4]],'Customer Information'!$AR$12,1,ROW())>0,MeasureCalc(Table_PI[[#This Row],[Hide:\nFormula Name]],Table_PI[[#This Row],[Quantity]],Table_PI[[#This Row],[List 1]],Table_PI[[#This Row],[List 2]],Table_PI[[#This Row],[List 3]],Table_PI[[#This Row],[Size]],Table_PI[[#This Row],[Input 1]],Table_PI[[#This Row],[Input 2]],Table_PI[[#This Row],[Input 3]],Table_PI[[#This Row],[Input 4]],'Customer Information'!$AR$12,4,ROW()),\"No Rebate\"),\"No Rebate\"),0)","v":0},{"$f":"IF(Table_PI[[#This Row],[Hide:\nFormula Name]]<>\"\",IFERROR(IF(MeasureCalc(Table_PI[[#This Row],[Hide:\nFormula Name]],Table_PI[[#This Row],[Quantity]],Table_PI[[#This Row],[List 1]],Table_PI[[#This Row],[List 2]],Table_PI[[#This Row],[List 3]],Table_PI[[#This Row],[Size]],Table_PI[[#This Row],[Input 1]],Table_PI[[#This Row],[Input 2]],Table_PI[[#This Row],[Input 3]],Table_PI[[#This Row],[Input 4]],'Customer Information'!$AR$12,1,ROW())>0,MeasureCalc(Table_PI[[#This Row],[Hide:\nFormula Name]],Table_PI[[#This Row],[Quantity]],Table_PI[[#This Row],[List 1]],Table_PI[[#This Row],[List 2]],Table_PI[[#This Row],[List 3]],Table_PI[[#This Row],[Size]],Table_PI[[#This Row],[Input 1]],Table_PI[[#This Row],[Input 2]],Table_PI[[#This Row],[Input 3]],Table_PI[[#This Row],[Input 4]],'Customer Information'!$AR$12,5,ROW()),\"No Rebate\"),\"No Rebate\"),0)","v":0},{"$f":"IF(Table_PI[[#This Row],[Hide:\nFormula Name]]<>\"\",IFERROR(IF(MeasureCalc(Table_PI[[#This Row],[Hide:\nFormula Name]],Table_PI[[#This Row],[Quantity]],Table_PI[[#This Row],[List 1]],Table_PI[[#This Row],[List 2]],Table_PI[[#This Row],[List 3]],Table_PI[[#This Row],[Size]],Table_PI[[#This Row],[Input 1]],Table_PI[[#This Row],[Input 2]],Table_PI[[#This Row],[Input 3]],Table_PI[[#This Row],[Input 4]],'Customer Information'!$AR$12,1,ROW())>0,MeasureCalc(Table_PI[[#This Row],[Hide:\nFormula Name]],Table_PI[[#This Row],[Quantity]],Table_PI[[#This Row],[List 1]],Table_PI[[#This Row],[List 2]],Table_PI[[#This Row],[List 3]],Table_PI[[#This Row],[Size]],Table_PI[[#This Row],[Input 1]],Table_PI[[#This Row],[Input 2]],Table_PI[[#This Row],[Input 3]],Table_PI[[#This Row],[Input 4]],'Customer Information'!$AR$12,6,ROW()),\"No Rebate\"),\"No Rebate\"),0)","v":0},{"$f":"IF(Table_PI[[#This Row],[Hide:\nFormula Name]]<>\"\",IFERROR(IF(MeasureCalc(Table_PI[[#This Row],[Hide:\nFormula Name]],Table_PI[[#This Row],[Quantity]],Table_PI[[#This Row],[List 1]],Table_PI[[#This Row],[List 2]],Table_PI[[#This Row],[List 3]],Table_PI[[#This Row],[Size]],Table_PI[[#This Row],[Input 1]],Table_PI[[#This Row],[Input 2]],Table_PI[[#This Row],[Input 3]],Table_PI[[#This Row],[Input 4]],'Customer Information'!$AR$12,1,ROW())>0,MeasureCalc(Table_PI[[#This Row],[Hide:\nFormula Name]],Table_PI[[#This Row],[Quantity]],Table_PI[[#This Row],[List 1]],Table_PI[[#This Row],[List 2]],Table_PI[[#This Row],[List 3]],Table_PI[[#This Row],[Size]],Table_PI[[#This Row],[Input 1]],Table_PI[[#This Row],[Input 2]],Table_PI[[#This Row],[Input 3]],Table_PI[[#This Row],[Input 4]],'Customer Information'!$AR$12,7,ROW()),\"No Rebate\"),\"No Rebate\"),0)","v":0},{"$f":"IF(Table_PI[[#This Row],[Hide:\nFormula Name]]<>\"\",IFERROR(IF(MeasureCalc(Table_PI[[#This Row],[Hide:\nFormula Name]],Table_PI[[#This Row],[Quantity]],Table_PI[[#This Row],[List 1]],Table_PI[[#This Row],[List 2]],Table_PI[[#This Row],[List 3]],Table_PI[[#This Row],[Size]],Table_PI[[#This Row],[Input 1]],Table_PI[[#This Row],[Input 2]],Table_PI[[#This Row],[Input 3]],Table_PI[[#This Row],[Input 4]],'Customer Information'!$AR$12,1,ROW())>0,MeasureCalc(Table_PI[[#This Row],[Hide:\nFormula Name]],Table_PI[[#This Row],[Quantity]],Table_PI[[#This Row],[List 1]],Table_PI[[#This Row],[List 2]],Table_PI[[#This Row],[List 3]],Table_PI[[#This Row],[Size]],Table_PI[[#This Row],[Input 1]],Table_PI[[#This Row],[Input 2]],Table_PI[[#This Row],[Input 3]],Table_PI[[#This Row],[Input 4]],'Customer Information'!$AR$12,8,ROW()),\"No Rebate\"),\"No Rebate\"),0)","v":0},{"$f":"IF(Table_PI[[#This Row],[Hide:\nFormula Name]]<>\"\",IF(AND(Table_PI[[#This Row],[Hide:\nFormula Name]]<>\"\",OR(Table_PI[[#This Row],[Rebate]]>0,Table_PI[[#This Row],[Rebate]]=\"No Rebate\")),TRUE,\"MI: Line Item \" & $A295),\"\")","v":""}]
[{"$f":"IF(Table_PI[[#This Row],[Hide:\nFormula Name]]<>\"\",MAX($A$2:A295)+1,\"\")","v":""},null,null,null,null,null,null,null,null,null,null,null,null,null,null,{"$f":"IFERROR(VLOOKUP(Table_PI[[#This Row],[Measure]],'Equipment Lookups'!$C$3:$D$23,2,FALSE),\"\")","v":""},{"$f":"IF(Table_PI[[#This Row],[Hide:\nFormula Name]]<>\"\",IFERROR(IF(MeasureCalc(Table_PI[[#This Row],[Hide:\nFormula Name]],Table_PI[[#This Row],[Quantity]],Table_PI[[#This Row],[List 1]],Table_PI[[#This Row],[List 2]],Table_PI[[#This Row],[List 3]],Table_PI[[#This Row],[Size]],Table_PI[[#This Row],[Input 1]],Table_PI[[#This Row],[Input 2]],Table_PI[[#This Row],[Input 3]],Table_PI[[#This Row],[Input 4]],'Customer Information'!$AR$12,1,ROW())>0,MeasureCalc(Table_PI[[#This Row],[Hide:\nFormula Name]],Table_PI[[#This Row],[Quantity]],Table_PI[[#This Row],[List 1]],Table_PI[[#This Row],[List 2]],Table_PI[[#This Row],[List 3]],Table_PI[[#This Row],[Size]],Table_PI[[#This Row],[Input 1]],Table_PI[[#This Row],[Input 2]],Table_PI[[#This Row],[Input 3]],Table_PI[[#This Row],[Input 4]],'Customer Information'!$AR$12,1,ROW()),\"No Rebate\"),\"No Rebate\"),0)","v":0},{"$f":"IF(Table_PI[[#This Row],[Hide:\nFormula Name]]<>\"\",IFERROR(IF(MeasureCalc(Table_PI[[#This Row],[Hide:\nFormula Name]],Table_PI[[#This Row],[Quantity]],Table_PI[[#This Row],[List 1]],Table_PI[[#This Row],[List 2]],Table_PI[[#This Row],[List 3]],Table_PI[[#This Row],[Size]],Table_PI[[#This Row],[Input 1]],Table_PI[[#This Row],[Input 2]],Table_PI[[#This Row],[Input 3]],Table_PI[[#This Row],[Input 4]],'Customer Information'!$AR$12,1,ROW())>0,MeasureCalc(Table_PI[[#This Row],[Hide:\nFormula Name]],Table_PI[[#This Row],[Quantity]],Table_PI[[#This Row],[List 1]],Table_PI[[#This Row],[List 2]],Table_PI[[#This Row],[List 3]],Table_PI[[#This Row],[Size]],Table_PI[[#This Row],[Input 1]],Table_PI[[#This Row],[Input 2]],Table_PI[[#This Row],[Input 3]],Table_PI[[#This Row],[Input 4]],'Customer Information'!$AR$12,2,ROW()),\"No Rebate\"),\"No Rebate\"),0)","v":0},{"$f":"IF(Table_PI[[#This Row],[Hide:\nFormula Name]]<>\"\",IFERROR(IF(MeasureCalc(Table_PI[[#This Row],[Hide:\nFormula Name]],Table_PI[[#This Row],[Quantity]],Table_PI[[#This Row],[List 1]],Table_PI[[#This Row],[List 2]],Table_PI[[#This Row],[List 3]],Table_PI[[#This Row],[Size]],Table_PI[[#This Row],[Input 1]],Table_PI[[#This Row],[Input 2]],Table_PI[[#This Row],[Input 3]],Table_PI[[#This Row],[Input 4]],'Customer Information'!$AR$12,1,ROW())>0,MeasureCalc(Table_PI[[#This Row],[Hide:\nFormula Name]],Table_PI[[#This Row],[Quantity]],Table_PI[[#This Row],[List 1]],Table_PI[[#This Row],[List 2]],Table_PI[[#This Row],[List 3]],Table_PI[[#This Row],[Size]],Table_PI[[#This Row],[Input 1]],Table_PI[[#This Row],[Input 2]],Table_PI[[#This Row],[Input 3]],Table_PI[[#This Row],[Input 4]],'Customer Information'!$AR$12,3,ROW()),\"No Rebate\"),\"No Rebate\"),0)","v":0},{"$f":"IF(Table_PI[[#This Row],[Hide:\nFormula Name]]<>\"\",IFERROR(IF(MeasureCalc(Table_PI[[#This Row],[Hide:\nFormula Name]],Table_PI[[#This Row],[Quantity]],Table_PI[[#This Row],[List 1]],Table_PI[[#This Row],[List 2]],Table_PI[[#This Row],[List 3]],Table_PI[[#This Row],[Size]],Table_PI[[#This Row],[Input 1]],Table_PI[[#This Row],[Input 2]],Table_PI[[#This Row],[Input 3]],Table_PI[[#This Row],[Input 4]],'Customer Information'!$AR$12,1,ROW())>0,MeasureCalc(Table_PI[[#This Row],[Hide:\nFormula Name]],Table_PI[[#This Row],[Quantity]],Table_PI[[#This Row],[List 1]],Table_PI[[#This Row],[List 2]],Table_PI[[#This Row],[List 3]],Table_PI[[#This Row],[Size]],Table_PI[[#This Row],[Input 1]],Table_PI[[#This Row],[Input 2]],Table_PI[[#This Row],[Input 3]],Table_PI[[#This Row],[Input 4]],'Customer Information'!$AR$12,4,ROW()),\"No Rebate\"),\"No Rebate\"),0)","v":0},{"$f":"IF(Table_PI[[#This Row],[Hide:\nFormula Name]]<>\"\",IFERROR(IF(MeasureCalc(Table_PI[[#This Row],[Hide:\nFormula Name]],Table_PI[[#This Row],[Quantity]],Table_PI[[#This Row],[List 1]],Table_PI[[#This Row],[List 2]],Table_PI[[#This Row],[List 3]],Table_PI[[#This Row],[Size]],Table_PI[[#This Row],[Input 1]],Table_PI[[#This Row],[Input 2]],Table_PI[[#This Row],[Input 3]],Table_PI[[#This Row],[Input 4]],'Customer Information'!$AR$12,1,ROW())>0,MeasureCalc(Table_PI[[#This Row],[Hide:\nFormula Name]],Table_PI[[#This Row],[Quantity]],Table_PI[[#This Row],[List 1]],Table_PI[[#This Row],[List 2]],Table_PI[[#This Row],[List 3]],Table_PI[[#This Row],[Size]],Table_PI[[#This Row],[Input 1]],Table_PI[[#This Row],[Input 2]],Table_PI[[#This Row],[Input 3]],Table_PI[[#This Row],[Input 4]],'Customer Information'!$AR$12,5,ROW()),\"No Rebate\"),\"No Rebate\"),0)","v":0},{"$f":"IF(Table_PI[[#This Row],[Hide:\nFormula Name]]<>\"\",IFERROR(IF(MeasureCalc(Table_PI[[#This Row],[Hide:\nFormula Name]],Table_PI[[#This Row],[Quantity]],Table_PI[[#This Row],[List 1]],Table_PI[[#This Row],[List 2]],Table_PI[[#This Row],[List 3]],Table_PI[[#This Row],[Size]],Table_PI[[#This Row],[Input 1]],Table_PI[[#This Row],[Input 2]],Table_PI[[#This Row],[Input 3]],Table_PI[[#This Row],[Input 4]],'Customer Information'!$AR$12,1,ROW())>0,MeasureCalc(Table_PI[[#This Row],[Hide:\nFormula Name]],Table_PI[[#This Row],[Quantity]],Table_PI[[#This Row],[List 1]],Table_PI[[#This Row],[List 2]],Table_PI[[#This Row],[List 3]],Table_PI[[#This Row],[Size]],Table_PI[[#This Row],[Input 1]],Table_PI[[#This Row],[Input 2]],Table_PI[[#This Row],[Input 3]],Table_PI[[#This Row],[Input 4]],'Customer Information'!$AR$12,6,ROW()),\"No Rebate\"),\"No Rebate\"),0)","v":0},{"$f":"IF(Table_PI[[#This Row],[Hide:\nFormula Name]]<>\"\",IFERROR(IF(MeasureCalc(Table_PI[[#This Row],[Hide:\nFormula Name]],Table_PI[[#This Row],[Quantity]],Table_PI[[#This Row],[List 1]],Table_PI[[#This Row],[List 2]],Table_PI[[#This Row],[List 3]],Table_PI[[#This Row],[Size]],Table_PI[[#This Row],[Input 1]],Table_PI[[#This Row],[Input 2]],Table_PI[[#This Row],[Input 3]],Table_PI[[#This Row],[Input 4]],'Customer Information'!$AR$12,1,ROW())>0,MeasureCalc(Table_PI[[#This Row],[Hide:\nFormula Name]],Table_PI[[#This Row],[Quantity]],Table_PI[[#This Row],[List 1]],Table_PI[[#This Row],[List 2]],Table_PI[[#This Row],[List 3]],Table_PI[[#This Row],[Size]],Table_PI[[#This Row],[Input 1]],Table_PI[[#This Row],[Input 2]],Table_PI[[#This Row],[Input 3]],Table_PI[[#This Row],[Input 4]],'Customer Information'!$AR$12,7,ROW()),\"No Rebate\"),\"No Rebate\"),0)","v":0},{"$f":"IF(Table_PI[[#This Row],[Hide:\nFormula Name]]<>\"\",IFERROR(IF(MeasureCalc(Table_PI[[#This Row],[Hide:\nFormula Name]],Table_PI[[#This Row],[Quantity]],Table_PI[[#This Row],[List 1]],Table_PI[[#This Row],[List 2]],Table_PI[[#This Row],[List 3]],Table_PI[[#This Row],[Size]],Table_PI[[#This Row],[Input 1]],Table_PI[[#This Row],[Input 2]],Table_PI[[#This Row],[Input 3]],Table_PI[[#This Row],[Input 4]],'Customer Information'!$AR$12,1,ROW())>0,MeasureCalc(Table_PI[[#This Row],[Hide:\nFormula Name]],Table_PI[[#This Row],[Quantity]],Table_PI[[#This Row],[List 1]],Table_PI[[#This Row],[List 2]],Table_PI[[#This Row],[List 3]],Table_PI[[#This Row],[Size]],Table_PI[[#This Row],[Input 1]],Table_PI[[#This Row],[Input 2]],Table_PI[[#This Row],[Input 3]],Table_PI[[#This Row],[Input 4]],'Customer Information'!$AR$12,8,ROW()),\"No Rebate\"),\"No Rebate\"),0)","v":0},{"$f":"IF(Table_PI[[#This Row],[Hide:\nFormula Name]]<>\"\",IF(AND(Table_PI[[#This Row],[Hide:\nFormula Name]]<>\"\",OR(Table_PI[[#This Row],[Rebate]]>0,Table_PI[[#This Row],[Rebate]]=\"No Rebate\")),TRUE,\"MI: Line Item \" & $A296),\"\")","v":""}]
[{"$f":"IF(Table_PI[[#This Row],[Hide:\nFormula Name]]<>\"\",MAX($A$2:A296)+1,\"\")","v":""},null,null,null,null,null,null,null,null,null,null,null,null,null,null,{"$f":"IFERROR(VLOOKUP(Table_PI[[#This Row],[Measure]],'Equipment Lookups'!$C$3:$D$23,2,FALSE),\"\")","v":""},{"$f":"IF(Table_PI[[#This Row],[Hide:\nFormula Name]]<>\"\",IFERROR(IF(MeasureCalc(Table_PI[[#This Row],[Hide:\nFormula Name]],Table_PI[[#This Row],[Quantity]],Table_PI[[#This Row],[List 1]],Table_PI[[#This Row],[List 2]],Table_PI[[#This Row],[List 3]],Table_PI[[#This Row],[Size]],Table_PI[[#This Row],[Input 1]],Table_PI[[#This Row],[Input 2]],Table_PI[[#This Row],[Input 3]],Table_PI[[#This Row],[Input 4]],'Customer Information'!$AR$12,1,ROW())>0,MeasureCalc(Table_PI[[#This Row],[Hide:\nFormula Name]],Table_PI[[#This Row],[Quantity]],Table_PI[[#This Row],[List 1]],Table_PI[[#This Row],[List 2]],Table_PI[[#This Row],[List 3]],Table_PI[[#This Row],[Size]],Table_PI[[#This Row],[Input 1]],Table_PI[[#This Row],[Input 2]],Table_PI[[#This Row],[Input 3]],Table_PI[[#This Row],[Input 4]],'Customer Information'!$AR$12,1,ROW()),\"No Rebate\"),\"No Rebate\"),0)","v":0},{"$f":"IF(Table_PI[[#This Row],[Hide:\nFormula Name]]<>\"\",IFERROR(IF(MeasureCalc(Table_PI[[#This Row],[Hide:\nFormula Name]],Table_PI[[#This Row],[Quantity]],Table_PI[[#This Row],[List 1]],Table_PI[[#This Row],[List 2]],Table_PI[[#This Row],[List 3]],Table_PI[[#This Row],[Size]],Table_PI[[#This Row],[Input 1]],Table_PI[[#This Row],[Input 2]],Table_PI[[#This Row],[Input 3]],Table_PI[[#This Row],[Input 4]],'Customer Information'!$AR$12,1,ROW())>0,MeasureCalc(Table_PI[[#This Row],[Hide:\nFormula Name]],Table_PI[[#This Row],[Quantity]],Table_PI[[#This Row],[List 1]],Table_PI[[#This Row],[List 2]],Table_PI[[#This Row],[List 3]],Table_PI[[#This Row],[Size]],Table_PI[[#This Row],[Input 1]],Table_PI[[#This Row],[Input 2]],Table_PI[[#This Row],[Input 3]],Table_PI[[#This Row],[Input 4]],'Customer Information'!$AR$12,2,ROW()),\"No Rebate\"),\"No Rebate\"),0)","v":0},{"$f":"IF(Table_PI[[#This Row],[Hide:\nFormula Name]]<>\"\",IFERROR(IF(MeasureCalc(Table_PI[[#This Row],[Hide:\nFormula Name]],Table_PI[[#This Row],[Quantity]],Table_PI[[#This Row],[List 1]],Table_PI[[#This Row],[List 2]],Table_PI[[#This Row],[List 3]],Table_PI[[#This Row],[Size]],Table_PI[[#This Row],[Input 1]],Table_PI[[#This Row],[Input 2]],Table_PI[[#This Row],[Input 3]],Table_PI[[#This Row],[Input 4]],'Customer Information'!$AR$12,1,ROW())>0,MeasureCalc(Table_PI[[#This Row],[Hide:\nFormula Name]],Table_PI[[#This Row],[Quantity]],Table_PI[[#This Row],[List 1]],Table_PI[[#This Row],[List 2]],Table_PI[[#This Row],[List 3]],Table_PI[[#This Row],[Size]],Table_PI[[#This Row],[Input 1]],Table_PI[[#This Row],[Input 2]],Table_PI[[#This Row],[Input 3]],Table_PI[[#This Row],[Input 4]],'Customer Information'!$AR$12,3,ROW()),\"No Rebate\"),\"No Rebate\"),0)","v":0},{"$f":"IF(Table_PI[[#This Row],[Hide:\nFormula Name]]<>\"\",IFERROR(IF(MeasureCalc(Table_PI[[#This Row],[Hide:\nFormula Name]],Table_PI[[#This Row],[Quantity]],Table_PI[[#This Row],[List 1]],Table_PI[[#This Row],[List 2]],Table_PI[[#This Row],[List 3]],Table_PI[[#This Row],[Size]],Table_PI[[#This Row],[Input 1]],Table_PI[[#This Row],[Input 2]],Table_PI[[#This Row],[Input 3]],Table_PI[[#This Row],[Input 4]],'Customer Information'!$AR$12,1,ROW())>0,MeasureCalc(Table_PI[[#This Row],[Hide:\nFormula Name]],Table_PI[[#This Row],[Quantity]],Table_PI[[#This Row],[List 1]],Table_PI[[#This Row],[List 2]],Table_PI[[#This Row],[List 3]],Table_PI[[#This Row],[Size]],Table_PI[[#This Row],[Input 1]],Table_PI[[#This Row],[Input 2]],Table_PI[[#This Row],[Input 3]],Table_PI[[#This Row],[Input 4]],'Customer Information'!$AR$12,4,ROW()),\"No Rebate\"),\"No Rebate\"),0)","v":0},{"$f":"IF(Table_PI[[#This Row],[Hide:\nFormula Name]]<>\"\",IFERROR(IF(MeasureCalc(Table_PI[[#This Row],[Hide:\nFormula Name]],Table_PI[[#This Row],[Quantity]],Table_PI[[#This Row],[List 1]],Table_PI[[#This Row],[List 2]],Table_PI[[#This Row],[List 3]],Table_PI[[#This Row],[Size]],Table_PI[[#This Row],[Input 1]],Table_PI[[#This Row],[Input 2]],Table_PI[[#This Row],[Input 3]],Table_PI[[#This Row],[Input 4]],'Customer Information'!$AR$12,1,ROW())>0,MeasureCalc(Table_PI[[#This Row],[Hide:\nFormula Name]],Table_PI[[#This Row],[Quantity]],Table_PI[[#This Row],[List 1]],Table_PI[[#This Row],[List 2]],Table_PI[[#This Row],[List 3]],Table_PI[[#This Row],[Size]],Table_PI[[#This Row],[Input 1]],Table_PI[[#This Row],[Input 2]],Table_PI[[#This Row],[Input 3]],Table_PI[[#This Row],[Input 4]],'Customer Information'!$AR$12,5,ROW()),\"No Rebate\"),\"No Rebate\"),0)","v":0},{"$f":"IF(Table_PI[[#This Row],[Hide:\nFormula Name]]<>\"\",IFERROR(IF(MeasureCalc(Table_PI[[#This Row],[Hide:\nFormula Name]],Table_PI[[#This Row],[Quantity]],Table_PI[[#This Row],[List 1]],Table_PI[[#This Row],[List 2]],Table_PI[[#This Row],[List 3]],Table_PI[[#This Row],[Size]],Table_PI[[#This Row],[Input 1]],Table_PI[[#This Row],[Input 2]],Table_PI[[#This Row],[Input 3]],Table_PI[[#This Row],[Input 4]],'Customer Information'!$AR$12,1,ROW())>0,MeasureCalc(Table_PI[[#This Row],[Hide:\nFormula Name]],Table_PI[[#This Row],[Quantity]],Table_PI[[#This Row],[List 1]],Table_PI[[#This Row],[List 2]],Table_PI[[#This Row],[List 3]],Table_PI[[#This Row],[Size]],Table_PI[[#This Row],[Input 1]],Table_PI[[#This Row],[Input 2]],Table_PI[[#This Row],[Input 3]],Table_PI[[#This Row],[Input 4]],'Customer Information'!$AR$12,6,ROW()),\"No Rebate\"),\"No Rebate\"),0)","v":0},{"$f":"IF(Table_PI[[#This Row],[Hide:\nFormula Name]]<>\"\",IFERROR(IF(MeasureCalc(Table_PI[[#This Row],[Hide:\nFormula Name]],Table_PI[[#This Row],[Quantity]],Table_PI[[#This Row],[List 1]],Table_PI[[#This Row],[List 2]],Table_PI[[#This Row],[List 3]],Table_PI[[#This Row],[Size]],Table_PI[[#This Row],[Input 1]],Table_PI[[#This Row],[Input 2]],Table_PI[[#This Row],[Input 3]],Table_PI[[#This Row],[Input 4]],'Customer Information'!$AR$12,1,ROW())>0,MeasureCalc(Table_PI[[#This Row],[Hide:\nFormula Name]],Table_PI[[#This Row],[Quantity]],Table_PI[[#This Row],[List 1]],Table_PI[[#This Row],[List 2]],Table_PI[[#This Row],[List 3]],Table_PI[[#This Row],[Size]],Table_PI[[#This Row],[Input 1]],Table_PI[[#This Row],[Input 2]],Table_PI[[#This Row],[Input 3]],Table_PI[[#This Row],[Input 4]],'Customer Information'!$AR$12,7,ROW()),\"No Rebate\"),\"No Rebate\"),0)","v":0},{"$f":"IF(Table_PI[[#This Row],[Hide:\nFormula Name]]<>\"\",IFERROR(IF(MeasureCalc(Table_PI[[#This Row],[Hide:\nFormula Name]],Table_PI[[#This Row],[Quantity]],Table_PI[[#This Row],[List 1]],Table_PI[[#This Row],[List 2]],Table_PI[[#This Row],[List 3]],Table_PI[[#This Row],[Size]],Table_PI[[#This Row],[Input 1]],Table_PI[[#This Row],[Input 2]],Table_PI[[#This Row],[Input 3]],Table_PI[[#This Row],[Input 4]],'Customer Information'!$AR$12,1,ROW())>0,MeasureCalc(Table_PI[[#This Row],[Hide:\nFormula Name]],Table_PI[[#This Row],[Quantity]],Table_PI[[#This Row],[List 1]],Table_PI[[#This Row],[List 2]],Table_PI[[#This Row],[List 3]],Table_PI[[#This Row],[Size]],Table_PI[[#This Row],[Input 1]],Table_PI[[#This Row],[Input 2]],Table_PI[[#This Row],[Input 3]],Table_PI[[#This Row],[Input 4]],'Customer Information'!$AR$12,8,ROW()),\"No Rebate\"),\"No Rebate\"),0)","v":0},{"$f":"IF(Table_PI[[#This Row],[Hide:\nFormula Name]]<>\"\",IF(AND(Table_PI[[#This Row],[Hide:\nFormula Name]]<>\"\",OR(Table_PI[[#This Row],[Rebate]]>0,Table_PI[[#This Row],[Rebate]]=\"No Rebate\")),TRUE,\"MI: Line Item \" & $A297),\"\")","v":""}]
[{"$f":"IF(Table_PI[[#This Row],[Hide:\nFormula Name]]<>\"\",MAX($A$2:A297)+1,\"\")","v":""},null,null,null,null,null,null,null,null,null,null,null,null,null,null,{"$f":"IFERROR(VLOOKUP(Table_PI[[#This Row],[Measure]],'Equipment Lookups'!$C$3:$D$23,2,FALSE),\"\")","v":""},{"$f":"IF(Table_PI[[#This Row],[Hide:\nFormula Name]]<>\"\",IFERROR(IF(MeasureCalc(Table_PI[[#This Row],[Hide:\nFormula Name]],Table_PI[[#This Row],[Quantity]],Table_PI[[#This Row],[List 1]],Table_PI[[#This Row],[List 2]],Table_PI[[#This Row],[List 3]],Table_PI[[#This Row],[Size]],Table_PI[[#This Row],[Input 1]],Table_PI[[#This Row],[Input 2]],Table_PI[[#This Row],[Input 3]],Table_PI[[#This Row],[Input 4]],'Customer Information'!$AR$12,1,ROW())>0,MeasureCalc(Table_PI[[#This Row],[Hide:\nFormula Name]],Table_PI[[#This Row],[Quantity]],Table_PI[[#This Row],[List 1]],Table_PI[[#This Row],[List 2]],Table_PI[[#This Row],[List 3]],Table_PI[[#This Row],[Size]],Table_PI[[#This Row],[Input 1]],Table_PI[[#This Row],[Input 2]],Table_PI[[#This Row],[Input 3]],Table_PI[[#This Row],[Input 4]],'Customer Information'!$AR$12,1,ROW()),\"No Rebate\"),\"No Rebate\"),0)","v":0},{"$f":"IF(Table_PI[[#This Row],[Hide:\nFormula Name]]<>\"\",IFERROR(IF(MeasureCalc(Table_PI[[#This Row],[Hide:\nFormula Name]],Table_PI[[#This Row],[Quantity]],Table_PI[[#This Row],[List 1]],Table_PI[[#This Row],[List 2]],Table_PI[[#This Row],[List 3]],Table_PI[[#This Row],[Size]],Table_PI[[#This Row],[Input 1]],Table_PI[[#This Row],[Input 2]],Table_PI[[#This Row],[Input 3]],Table_PI[[#This Row],[Input 4]],'Customer Information'!$AR$12,1,ROW())>0,MeasureCalc(Table_PI[[#This Row],[Hide:\nFormula Name]],Table_PI[[#This Row],[Quantity]],Table_PI[[#This Row],[List 1]],Table_PI[[#This Row],[List 2]],Table_PI[[#This Row],[List 3]],Table_PI[[#This Row],[Size]],Table_PI[[#This Row],[Input 1]],Table_PI[[#This Row],[Input 2]],Table_PI[[#This Row],[Input 3]],Table_PI[[#This Row],[Input 4]],'Customer Information'!$AR$12,2,ROW()),\"No Rebate\"),\"No Rebate\"),0)","v":0},{"$f":"IF(Table_PI[[#This Row],[Hide:\nFormula Name]]<>\"\",IFERROR(IF(MeasureCalc(Table_PI[[#This Row],[Hide:\nFormula Name]],Table_PI[[#This Row],[Quantity]],Table_PI[[#This Row],[List 1]],Table_PI[[#This Row],[List 2]],Table_PI[[#This Row],[List 3]],Table_PI[[#This Row],[Size]],Table_PI[[#This Row],[Input 1]],Table_PI[[#This Row],[Input 2]],Table_PI[[#This Row],[Input 3]],Table_PI[[#This Row],[Input 4]],'Customer Information'!$AR$12,1,ROW())>0,MeasureCalc(Table_PI[[#This Row],[Hide:\nFormula Name]],Table_PI[[#This Row],[Quantity]],Table_PI[[#This Row],[List 1]],Table_PI[[#This Row],[List 2]],Table_PI[[#This Row],[List 3]],Table_PI[[#This Row],[Size]],Table_PI[[#This Row],[Input 1]],Table_PI[[#This Row],[Input 2]],Table_PI[[#This Row],[Input 3]],Table_PI[[#This Row],[Input 4]],'Customer Information'!$AR$12,3,ROW()),\"No Rebate\"),\"No Rebate\"),0)","v":0},{"$f":"IF(Table_PI[[#This Row],[Hide:\nFormula Name]]<>\"\",IFERROR(IF(MeasureCalc(Table_PI[[#This Row],[Hide:\nFormula Name]],Table_PI[[#This Row],[Quantity]],Table_PI[[#This Row],[List 1]],Table_PI[[#This Row],[List 2]],Table_PI[[#This Row],[List 3]],Table_PI[[#This Row],[Size]],Table_PI[[#This Row],[Input 1]],Table_PI[[#This Row],[Input 2]],Table_PI[[#This Row],[Input 3]],Table_PI[[#This Row],[Input 4]],'Customer Information'!$AR$12,1,ROW())>0,MeasureCalc(Table_PI[[#This Row],[Hide:\nFormula Name]],Table_PI[[#This Row],[Quantity]],Table_PI[[#This Row],[List 1]],Table_PI[[#This Row],[List 2]],Table_PI[[#This Row],[List 3]],Table_PI[[#This Row],[Size]],Table_PI[[#This Row],[Input 1]],Table_PI[[#This Row],[Input 2]],Table_PI[[#This Row],[Input 3]],Table_PI[[#This Row],[Input 4]],'Customer Information'!$AR$12,4,ROW()),\"No Rebate\"),\"No Rebate\"),0)","v":0},{"$f":"IF(Table_PI[[#This Row],[Hide:\nFormula Name]]<>\"\",IFERROR(IF(MeasureCalc(Table_PI[[#This Row],[Hide:\nFormula Name]],Table_PI[[#This Row],[Quantity]],Table_PI[[#This Row],[List 1]],Table_PI[[#This Row],[List 2]],Table_PI[[#This Row],[List 3]],Table_PI[[#This Row],[Size]],Table_PI[[#This Row],[Input 1]],Table_PI[[#This Row],[Input 2]],Table_PI[[#This Row],[Input 3]],Table_PI[[#This Row],[Input 4]],'Customer Information'!$AR$12,1,ROW())>0,MeasureCalc(Table_PI[[#This Row],[Hide:\nFormula Name]],Table_PI[[#This Row],[Quantity]],Table_PI[[#This Row],[List 1]],Table_PI[[#This Row],[List 2]],Table_PI[[#This Row],[List 3]],Table_PI[[#This Row],[Size]],Table_PI[[#This Row],[Input 1]],Table_PI[[#This Row],[Input 2]],Table_PI[[#This Row],[Input 3]],Table_PI[[#This Row],[Input 4]],'Customer Information'!$AR$12,5,ROW()),\"No Rebate\"),\"No Rebate\"),0)","v":0},{"$f":"IF(Table_PI[[#This Row],[Hide:\nFormula Name]]<>\"\",IFERROR(IF(MeasureCalc(Table_PI[[#This Row],[Hide:\nFormula Name]],Table_PI[[#This Row],[Quantity]],Table_PI[[#This Row],[List 1]],Table_PI[[#This Row],[List 2]],Table_PI[[#This Row],[List 3]],Table_PI[[#This Row],[Size]],Table_PI[[#This Row],[Input 1]],Table_PI[[#This Row],[Input 2]],Table_PI[[#This Row],[Input 3]],Table_PI[[#This Row],[Input 4]],'Customer Information'!$AR$12,1,ROW())>0,MeasureCalc(Table_PI[[#This Row],[Hide:\nFormula Name]],Table_PI[[#This Row],[Quantity]],Table_PI[[#This Row],[List 1]],Table_PI[[#This Row],[List 2]],Table_PI[[#This Row],[List 3]],Table_PI[[#This Row],[Size]],Table_PI[[#This Row],[Input 1]],Table_PI[[#This Row],[Input 2]],Table_PI[[#This Row],[Input 3]],Table_PI[[#This Row],[Input 4]],'Customer Information'!$AR$12,6,ROW()),\"No Rebate\"),\"No Rebate\"),0)","v":0},{"$f":"IF(Table_PI[[#This Row],[Hide:\nFormula Name]]<>\"\",IFERROR(IF(MeasureCalc(Table_PI[[#This Row],[Hide:\nFormula Name]],Table_PI[[#This Row],[Quantity]],Table_PI[[#This Row],[List 1]],Table_PI[[#This Row],[List 2]],Table_PI[[#This Row],[List 3]],Table_PI[[#This Row],[Size]],Table_PI[[#This Row],[Input 1]],Table_PI[[#This Row],[Input 2]],Table_PI[[#This Row],[Input 3]],Table_PI[[#This Row],[Input 4]],'Customer Information'!$AR$12,1,ROW())>0,MeasureCalc(Table_PI[[#This Row],[Hide:\nFormula Name]],Table_PI[[#This Row],[Quantity]],Table_PI[[#This Row],[List 1]],Table_PI[[#This Row],[List 2]],Table_PI[[#This Row],[List 3]],Table_PI[[#This Row],[Size]],Table_PI[[#This Row],[Input 1]],Table_PI[[#This Row],[Input 2]],Table_PI[[#This Row],[Input 3]],Table_PI[[#This Row],[Input 4]],'Customer Information'!$AR$12,7,ROW()),\"No Rebate\"),\"No Rebate\"),0)","v":0},{"$f":"IF(Table_PI[[#This Row],[Hide:\nFormula Name]]<>\"\",IFERROR(IF(MeasureCalc(Table_PI[[#This Row],[Hide:\nFormula Name]],Table_PI[[#This Row],[Quantity]],Table_PI[[#This Row],[List 1]],Table_PI[[#This Row],[List 2]],Table_PI[[#This Row],[List 3]],Table_PI[[#This Row],[Size]],Table_PI[[#This Row],[Input 1]],Table_PI[[#This Row],[Input 2]],Table_PI[[#This Row],[Input 3]],Table_PI[[#This Row],[Input 4]],'Customer Information'!$AR$12,1,ROW())>0,MeasureCalc(Table_PI[[#This Row],[Hide:\nFormula Name]],Table_PI[[#This Row],[Quantity]],Table_PI[[#This Row],[List 1]],Table_PI[[#This Row],[List 2]],Table_PI[[#This Row],[List 3]],Table_PI[[#This Row],[Size]],Table_PI[[#This Row],[Input 1]],Table_PI[[#This Row],[Input 2]],Table_PI[[#This Row],[Input 3]],Table_PI[[#This Row],[Input 4]],'Customer Information'!$AR$12,8,ROW()),\"No Rebate\"),\"No Rebate\"),0)","v":0},{"$f":"IF(Table_PI[[#This Row],[Hide:\nFormula Name]]<>\"\",IF(AND(Table_PI[[#This Row],[Hide:\nFormula Name]]<>\"\",OR(Table_PI[[#This Row],[Rebate]]>0,Table_PI[[#This Row],[Rebate]]=\"No Rebate\")),TRUE,\"MI: Line Item \" & $A298),\"\")","v":""}]
[{"$f":"IF(Table_PI[[#This Row],[Hide:\nFormula Name]]<>\"\",MAX($A$2:A298)+1,\"\")","v":""},null,null,null,null,null,null,null,null,null,null,null,null,null,null,{"$f":"IFERROR(VLOOKUP(Table_PI[[#This Row],[Measure]],'Equipment Lookups'!$C$3:$D$23,2,FALSE),\"\")","v":""},{"$f":"IF(Table_PI[[#This Row],[Hide:\nFormula Name]]<>\"\",IFERROR(IF(MeasureCalc(Table_PI[[#This Row],[Hide:\nFormula Name]],Table_PI[[#This Row],[Quantity]],Table_PI[[#This Row],[List 1]],Table_PI[[#This Row],[List 2]],Table_PI[[#This Row],[List 3]],Table_PI[[#This Row],[Size]],Table_PI[[#This Row],[Input 1]],Table_PI[[#This Row],[Input 2]],Table_PI[[#This Row],[Input 3]],Table_PI[[#This Row],[Input 4]],'Customer Information'!$AR$12,1,ROW())>0,MeasureCalc(Table_PI[[#This Row],[Hide:\nFormula Name]],Table_PI[[#This Row],[Quantity]],Table_PI[[#This Row],[List 1]],Table_PI[[#This Row],[List 2]],Table_PI[[#This Row],[List 3]],Table_PI[[#This Row],[Size]],Table_PI[[#This Row],[Input 1]],Table_PI[[#This Row],[Input 2]],Table_PI[[#This Row],[Input 3]],Table_PI[[#This Row],[Input 4]],'Customer Information'!$AR$12,1,ROW()),\"No Rebate\"),\"No Rebate\"),0)","v":0},{"$f":"IF(Table_PI[[#This Row],[Hide:\nFormula Name]]<>\"\",IFERROR(IF(MeasureCalc(Table_PI[[#This Row],[Hide:\nFormula Name]],Table_PI[[#This Row],[Quantity]],Table_PI[[#This Row],[List 1]],Table_PI[[#This Row],[List 2]],Table_PI[[#This Row],[List 3]],Table_PI[[#This Row],[Size]],Table_PI[[#This Row],[Input 1]],Table_PI[[#This Row],[Input 2]],Table_PI[[#This Row],[Input 3]],Table_PI[[#This Row],[Input 4]],'Customer Information'!$AR$12,1,ROW())>0,MeasureCalc(Table_PI[[#This Row],[Hide:\nFormula Name]],Table_PI[[#This Row],[Quantity]],Table_PI[[#This Row],[List 1]],Table_PI[[#This Row],[List 2]],Table_PI[[#This Row],[List 3]],Table_PI[[#This Row],[Size]],Table_PI[[#This Row],[Input 1]],Table_PI[[#This Row],[Input 2]],Table_PI[[#This Row],[Input 3]],Table_PI[[#This Row],[Input 4]],'Customer Information'!$AR$12,2,ROW()),\"No Rebate\"),\"No Rebate\"),0)","v":0},{"$f":"IF(Table_PI[[#This Row],[Hide:\nFormula Name]]<>\"\",IFERROR(IF(MeasureCalc(Table_PI[[#This Row],[Hide:\nFormula Name]],Table_PI[[#This Row],[Quantity]],Table_PI[[#This Row],[List 1]],Table_PI[[#This Row],[List 2]],Table_PI[[#This Row],[List 3]],Table_PI[[#This Row],[Size]],Table_PI[[#This Row],[Input 1]],Table_PI[[#This Row],[Input 2]],Table_PI[[#This Row],[Input 3]],Table_PI[[#This Row],[Input 4]],'Customer Information'!$AR$12,1,ROW())>0,MeasureCalc(Table_PI[[#This Row],[Hide:\nFormula Name]],Table_PI[[#This Row],[Quantity]],Table_PI[[#This Row],[List 1]],Table_PI[[#This Row],[List 2]],Table_PI[[#This Row],[List 3]],Table_PI[[#This Row],[Size]],Table_PI[[#This Row],[Input 1]],Table_PI[[#This Row],[Input 2]],Table_PI[[#This Row],[Input 3]],Table_PI[[#This Row],[Input 4]],'Customer Information'!$AR$12,3,ROW()),\"No Rebate\"),\"No Rebate\"),0)","v":0},{"$f":"IF(Table_PI[[#This Row],[Hide:\nFormula Name]]<>\"\",IFERROR(IF(MeasureCalc(Table_PI[[#This Row],[Hide:\nFormula Name]],Table_PI[[#This Row],[Quantity]],Table_PI[[#This Row],[List 1]],Table_PI[[#This Row],[List 2]],Table_PI[[#This Row],[List 3]],Table_PI[[#This Row],[Size]],Table_PI[[#This Row],[Input 1]],Table_PI[[#This Row],[Input 2]],Table_PI[[#This Row],[Input 3]],Table_PI[[#This Row],[Input 4]],'Customer Information'!$AR$12,1,ROW())>0,MeasureCalc(Table_PI[[#This Row],[Hide:\nFormula Name]],Table_PI[[#This Row],[Quantity]],Table_PI[[#This Row],[List 1]],Table_PI[[#This Row],[List 2]],Table_PI[[#This Row],[List 3]],Table_PI[[#This Row],[Size]],Table_PI[[#This Row],[Input 1]],Table_PI[[#This Row],[Input 2]],Table_PI[[#This Row],[Input 3]],Table_PI[[#This Row],[Input 4]],'Customer Information'!$AR$12,4,ROW()),\"No Rebate\"),\"No Rebate\"),0)","v":0},{"$f":"IF(Table_PI[[#This Row],[Hide:\nFormula Name]]<>\"\",IFERROR(IF(MeasureCalc(Table_PI[[#This Row],[Hide:\nFormula Name]],Table_PI[[#This Row],[Quantity]],Table_PI[[#This Row],[List 1]],Table_PI[[#This Row],[List 2]],Table_PI[[#This Row],[List 3]],Table_PI[[#This Row],[Size]],Table_PI[[#This Row],[Input 1]],Table_PI[[#This Row],[Input 2]],Table_PI[[#This Row],[Input 3]],Table_PI[[#This Row],[Input 4]],'Customer Information'!$AR$12,1,ROW())>0,MeasureCalc(Table_PI[[#This Row],[Hide:\nFormula Name]],Table_PI[[#This Row],[Quantity]],Table_PI[[#This Row],[List 1]],Table_PI[[#This Row],[List 2]],Table_PI[[#This Row],[List 3]],Table_PI[[#This Row],[Size]],Table_PI[[#This Row],[Input 1]],Table_PI[[#This Row],[Input 2]],Table_PI[[#This Row],[Input 3]],Table_PI[[#This Row],[Input 4]],'Customer Information'!$AR$12,5,ROW()),\"No Rebate\"),\"No Rebate\"),0)","v":0},{"$f":"IF(Table_PI[[#This Row],[Hide:\nFormula Name]]<>\"\",IFERROR(IF(MeasureCalc(Table_PI[[#This Row],[Hide:\nFormula Name]],Table_PI[[#This Row],[Quantity]],Table_PI[[#This Row],[List 1]],Table_PI[[#This Row],[List 2]],Table_PI[[#This Row],[List 3]],Table_PI[[#This Row],[Size]],Table_PI[[#This Row],[Input 1]],Table_PI[[#This Row],[Input 2]],Table_PI[[#This Row],[Input 3]],Table_PI[[#This Row],[Input 4]],'Customer Information'!$AR$12,1,ROW())>0,MeasureCalc(Table_PI[[#This Row],[Hide:\nFormula Name]],Table_PI[[#This Row],[Quantity]],Table_PI[[#This Row],[List 1]],Table_PI[[#This Row],[List 2]],Table_PI[[#This Row],[List 3]],Table_PI[[#This Row],[Size]],Table_PI[[#This Row],[Input 1]],Table_PI[[#This Row],[Input 2]],Table_PI[[#This Row],[Input 3]],Table_PI[[#This Row],[Input 4]],'Customer Information'!$AR$12,6,ROW()),\"No Rebate\"),\"No Rebate\"),0)","v":0},{"$f":"IF(Table_PI[[#This Row],[Hide:\nFormula Name]]<>\"\",IFERROR(IF(MeasureCalc(Table_PI[[#This Row],[Hide:\nFormula Name]],Table_PI[[#This Row],[Quantity]],Table_PI[[#This Row],[List 1]],Table_PI[[#This Row],[List 2]],Table_PI[[#This Row],[List 3]],Table_PI[[#This Row],[Size]],Table_PI[[#This Row],[Input 1]],Table_PI[[#This Row],[Input 2]],Table_PI[[#This Row],[Input 3]],Table_PI[[#This Row],[Input 4]],'Customer Information'!$AR$12,1,ROW())>0,MeasureCalc(Table_PI[[#This Row],[Hide:\nFormula Name]],Table_PI[[#This Row],[Quantity]],Table_PI[[#This Row],[List 1]],Table_PI[[#This Row],[List 2]],Table_PI[[#This Row],[List 3]],Table_PI[[#This Row],[Size]],Table_PI[[#This Row],[Input 1]],Table_PI[[#This Row],[Input 2]],Table_PI[[#This Row],[Input 3]],Table_PI[[#This Row],[Input 4]],'Customer Information'!$AR$12,7,ROW()),\"No Rebate\"),\"No Rebate\"),0)","v":0},{"$f":"IF(Table_PI[[#This Row],[Hide:\nFormula Name]]<>\"\",IFERROR(IF(MeasureCalc(Table_PI[[#This Row],[Hide:\nFormula Name]],Table_PI[[#This Row],[Quantity]],Table_PI[[#This Row],[List 1]],Table_PI[[#This Row],[List 2]],Table_PI[[#This Row],[List 3]],Table_PI[[#This Row],[Size]],Table_PI[[#This Row],[Input 1]],Table_PI[[#This Row],[Input 2]],Table_PI[[#This Row],[Input 3]],Table_PI[[#This Row],[Input 4]],'Customer Information'!$AR$12,1,ROW())>0,MeasureCalc(Table_PI[[#This Row],[Hide:\nFormula Name]],Table_PI[[#This Row],[Quantity]],Table_PI[[#This Row],[List 1]],Table_PI[[#This Row],[List 2]],Table_PI[[#This Row],[List 3]],Table_PI[[#This Row],[Size]],Table_PI[[#This Row],[Input 1]],Table_PI[[#This Row],[Input 2]],Table_PI[[#This Row],[Input 3]],Table_PI[[#This Row],[Input 4]],'Customer Information'!$AR$12,8,ROW()),\"No Rebate\"),\"No Rebate\"),0)","v":0},{"$f":"IF(Table_PI[[#This Row],[Hide:\nFormula Name]]<>\"\",IF(AND(Table_PI[[#This Row],[Hide:\nFormula Name]]<>\"\",OR(Table_PI[[#This Row],[Rebate]]>0,Table_PI[[#This Row],[Rebate]]=\"No Rebate\")),TRUE,\"MI: Line Item \" & $A299),\"\")","v":""}]
[{"$f":"IF(Table_PI[[#This Row],[Hide:\nFormula Name]]<>\"\",MAX($A$2:A299)+1,\"\")","v":""},null,null,null,null,null,null,null,null,null,null,null,null,null,null,{"$f":"IFERROR(VLOOKUP(Table_PI[[#This Row],[Measure]],'Equipment Lookups'!$C$3:$D$23,2,FALSE),\"\")","v":""},{"$f":"IF(Table_PI[[#This Row],[Hide:\nFormula Name]]<>\"\",IFERROR(IF(MeasureCalc(Table_PI[[#This Row],[Hide:\nFormula Name]],Table_PI[[#This Row],[Quantity]],Table_PI[[#This Row],[List 1]],Table_PI[[#This Row],[List 2]],Table_PI[[#This Row],[List 3]],Table_PI[[#This Row],[Size]],Table_PI[[#This Row],[Input 1]],Table_PI[[#This Row],[Input 2]],Table_PI[[#This Row],[Input 3]],Table_PI[[#This Row],[Input 4]],'Customer Information'!$AR$12,1,ROW())>0,MeasureCalc(Table_PI[[#This Row],[Hide:\nFormula Name]],Table_PI[[#This Row],[Quantity]],Table_PI[[#This Row],[List 1]],Table_PI[[#This Row],[List 2]],Table_PI[[#This Row],[List 3]],Table_PI[[#This Row],[Size]],Table_PI[[#This Row],[Input 1]],Table_PI[[#This Row],[Input 2]],Table_PI[[#This Row],[Input 3]],Table_PI[[#This Row],[Input 4]],'Customer Information'!$AR$12,1,ROW()),\"No Rebate\"),\"No Rebate\"),0)","v":0},{"$f":"IF(Table_PI[[#This Row],[Hide:\nFormula Name]]<>\"\",IFERROR(IF(MeasureCalc(Table_PI[[#This Row],[Hide:\nFormula Name]],Table_PI[[#This Row],[Quantity]],Table_PI[[#This Row],[List 1]],Table_PI[[#This Row],[List 2]],Table_PI[[#This Row],[List 3]],Table_PI[[#This Row],[Size]],Table_PI[[#This Row],[Input 1]],Table_PI[[#This Row],[Input 2]],Table_PI[[#This Row],[Input 3]],Table_PI[[#This Row],[Input 4]],'Customer Information'!$AR$12,1,ROW())>0,MeasureCalc(Table_PI[[#This Row],[Hide:\nFormula Name]],Table_PI[[#This Row],[Quantity]],Table_PI[[#This Row],[List 1]],Table_PI[[#This Row],[List 2]],Table_PI[[#This Row],[List 3]],Table_PI[[#This Row],[Size]],Table_PI[[#This Row],[Input 1]],Table_PI[[#This Row],[Input 2]],Table_PI[[#This Row],[Input 3]],Table_PI[[#This Row],[Input 4]],'Customer Information'!$AR$12,2,ROW()),\"No Rebate\"),\"No Rebate\"),0)","v":0},{"$f":"IF(Table_PI[[#This Row],[Hide:\nFormula Name]]<>\"\",IFERROR(IF(MeasureCalc(Table_PI[[#This Row],[Hide:\nFormula Name]],Table_PI[[#This Row],[Quantity]],Table_PI[[#This Row],[List 1]],Table_PI[[#This Row],[List 2]],Table_PI[[#This Row],[List 3]],Table_PI[[#This Row],[Size]],Table_PI[[#This Row],[Input 1]],Table_PI[[#This Row],[Input 2]],Table_PI[[#This Row],[Input 3]],Table_PI[[#This Row],[Input 4]],'Customer Information'!$AR$12,1,ROW())>0,MeasureCalc(Table_PI[[#This Row],[Hide:\nFormula Name]],Table_PI[[#This Row],[Quantity]],Table_PI[[#This Row],[List 1]],Table_PI[[#This Row],[List 2]],Table_PI[[#This Row],[List 3]],Table_PI[[#This Row],[Size]],Table_PI[[#This Row],[Input 1]],Table_PI[[#This Row],[Input 2]],Table_PI[[#This Row],[Input 3]],Table_PI[[#This Row],[Input 4]],'Customer Information'!$AR$12,3,ROW()),\"No Rebate\"),\"No Rebate\"),0)","v":0},{"$f":"IF(Table_PI[[#This Row],[Hide:\nFormula Name]]<>\"\",IFERROR(IF(MeasureCalc(Table_PI[[#This Row],[Hide:\nFormula Name]],Table_PI[[#This Row],[Quantity]],Table_PI[[#This Row],[List 1]],Table_PI[[#This Row],[List 2]],Table_PI[[#This Row],[List 3]],Table_PI[[#This Row],[Size]],Table_PI[[#This Row],[Input 1]],Table_PI[[#This Row],[Input 2]],Table_PI[[#This Row],[Input 3]],Table_PI[[#This Row],[Input 4]],'Customer Information'!$AR$12,1,ROW())>0,MeasureCalc(Table_PI[[#This Row],[Hide:\nFormula Name]],Table_PI[[#This Row],[Quantity]],Table_PI[[#This Row],[List 1]],Table_PI[[#This Row],[List 2]],Table_PI[[#This Row],[List 3]],Table_PI[[#This Row],[Size]],Table_PI[[#This Row],[Input 1]],Table_PI[[#This Row],[Input 2]],Table_PI[[#This Row],[Input 3]],Table_PI[[#This Row],[Input 4]],'Customer Information'!$AR$12,4,ROW()),\"No Rebate\"),\"No Rebate\"),0)","v":0},{"$f":"IF(Table_PI[[#This Row],[Hide:\nFormula Name]]<>\"\",IFERROR(IF(MeasureCalc(Table_PI[[#This Row],[Hide:\nFormula Name]],Table_PI[[#This Row],[Quantity]],Table_PI[[#This Row],[List 1]],Table_PI[[#This Row],[List 2]],Table_PI[[#This Row],[List 3]],Table_PI[[#This Row],[Size]],Table_PI[[#This Row],[Input 1]],Table_PI[[#This Row],[Input 2]],Table_PI[[#This Row],[Input 3]],Table_PI[[#This Row],[Input 4]],'Customer Information'!$AR$12,1,ROW())>0,MeasureCalc(Table_PI[[#This Row],[Hide:\nFormula Name]],Table_PI[[#This Row],[Quantity]],Table_PI[[#This Row],[List 1]],Table_PI[[#This Row],[List 2]],Table_PI[[#This Row],[List 3]],Table_PI[[#This Row],[Size]],Table_PI[[#This Row],[Input 1]],Table_PI[[#This Row],[Input 2]],Table_PI[[#This Row],[Input 3]],Table_PI[[#This Row],[Input 4]],'Customer Information'!$AR$12,5,ROW()),\"No Rebate\"),\"No Rebate\"),0)","v":0},{"$f":"IF(Table_PI[[#This Row],[Hide:\nFormula Name]]<>\"\",IFERROR(IF(MeasureCalc(Table_PI[[#This Row],[Hide:\nFormula Name]],Table_PI[[#This Row],[Quantity]],Table_PI[[#This Row],[List 1]],Table_PI[[#This Row],[List 2]],Table_PI[[#This Row],[List 3]],Table_PI[[#This Row],[Size]],Table_PI[[#This Row],[Input 1]],Table_PI[[#This Row],[Input 2]],Table_PI[[#This Row],[Input 3]],Table_PI[[#This Row],[Input 4]],'Customer Information'!$AR$12,1,ROW())>0,MeasureCalc(Table_PI[[#This Row],[Hide:\nFormula Name]],Table_PI[[#This Row],[Quantity]],Table_PI[[#This Row],[List 1]],Table_PI[[#This Row],[List 2]],Table_PI[[#This Row],[List 3]],Table_PI[[#This Row],[Size]],Table_PI[[#This Row],[Input 1]],Table_PI[[#This Row],[Input 2]],Table_PI[[#This Row],[Input 3]],Table_PI[[#This Row],[Input 4]],'Customer Information'!$AR$12,6,ROW()),\"No Rebate\"),\"No Rebate\"),0)","v":0},{"$f":"IF(Table_PI[[#This Row],[Hide:\nFormula Name]]<>\"\",IFERROR(IF(MeasureCalc(Table_PI[[#This Row],[Hide:\nFormula Name]],Table_PI[[#This Row],[Quantity]],Table_PI[[#This Row],[List 1]],Table_PI[[#This Row],[List 2]],Table_PI[[#This Row],[List 3]],Table_PI[[#This Row],[Size]],Table_PI[[#This Row],[Input 1]],Table_PI[[#This Row],[Input 2]],Table_PI[[#This Row],[Input 3]],Table_PI[[#This Row],[Input 4]],'Customer Information'!$AR$12,1,ROW())>0,MeasureCalc(Table_PI[[#This Row],[Hide:\nFormula Name]],Table_PI[[#This Row],[Quantity]],Table_PI[[#This Row],[List 1]],Table_PI[[#This Row],[List 2]],Table_PI[[#This Row],[List 3]],Table_PI[[#This Row],[Size]],Table_PI[[#This Row],[Input 1]],Table_PI[[#This Row],[Input 2]],Table_PI[[#This Row],[Input 3]],Table_PI[[#This Row],[Input 4]],'Customer Information'!$AR$12,7,ROW()),\"No Rebate\"),\"No Rebate\"),0)","v":0},{"$f":"IF(Table_PI[[#This Row],[Hide:\nFormula Name]]<>\"\",IFERROR(IF(MeasureCalc(Table_PI[[#This Row],[Hide:\nFormula Name]],Table_PI[[#This Row],[Quantity]],Table_PI[[#This Row],[List 1]],Table_PI[[#This Row],[List 2]],Table_PI[[#This Row],[List 3]],Table_PI[[#This Row],[Size]],Table_PI[[#This Row],[Input 1]],Table_PI[[#This Row],[Input 2]],Table_PI[[#This Row],[Input 3]],Table_PI[[#This Row],[Input 4]],'Customer Information'!$AR$12,1,ROW())>0,MeasureCalc(Table_PI[[#This Row],[Hide:\nFormula Name]],Table_PI[[#This Row],[Quantity]],Table_PI[[#This Row],[List 1]],Table_PI[[#This Row],[List 2]],Table_PI[[#This Row],[List 3]],Table_PI[[#This Row],[Size]],Table_PI[[#This Row],[Input 1]],Table_PI[[#This Row],[Input 2]],Table_PI[[#This Row],[Input 3]],Table_PI[[#This Row],[Input 4]],'Customer Information'!$AR$12,8,ROW()),\"No Rebate\"),\"No Rebate\"),0)","v":0},{"$f":"IF(Table_PI[[#This Row],[Hide:\nFormula Name]]<>\"\",IF(AND(Table_PI[[#This Row],[Hide:\nFormula Name]]<>\"\",OR(Table_PI[[#This Row],[Rebate]]>0,Table_PI[[#This Row],[Rebate]]=\"No Rebate\")),TRUE,\"MI: Line Item \" & $A300),\"\")","v":""}]
[{"$f":"IF(Table_PI[[#This Row],[Hide:\nFormula Name]]<>\"\",MAX($A$2:A300)+1,\"\")","v":""},null,null,null,null,null,null,null,null,null,null,null,null,null,null,{"$f":"IFERROR(VLOOKUP(Table_PI[[#This Row],[Measure]],'Equipment Lookups'!$C$3:$D$23,2,FALSE),\"\")","v":""},{"$f":"IF(Table_PI[[#This Row],[Hide:\nFormula Name]]<>\"\",IFERROR(IF(MeasureCalc(Table_PI[[#This Row],[Hide:\nFormula Name]],Table_PI[[#This Row],[Quantity]],Table_PI[[#This Row],[List 1]],Table_PI[[#This Row],[List 2]],Table_PI[[#This Row],[List 3]],Table_PI[[#This Row],[Size]],Table_PI[[#This Row],[Input 1]],Table_PI[[#This Row],[Input 2]],Table_PI[[#This Row],[Input 3]],Table_PI[[#This Row],[Input 4]],'Customer Information'!$AR$12,1,ROW())>0,MeasureCalc(Table_PI[[#This Row],[Hide:\nFormula Name]],Table_PI[[#This Row],[Quantity]],Table_PI[[#This Row],[List 1]],Table_PI[[#This Row],[List 2]],Table_PI[[#This Row],[List 3]],Table_PI[[#This Row],[Size]],Table_PI[[#This Row],[Input 1]],Table_PI[[#This Row],[Input 2]],Table_PI[[#This Row],[Input 3]],Table_PI[[#This Row],[Input 4]],'Customer Information'!$AR$12,1,ROW()),\"No Rebate\"),\"No Rebate\"),0)","v":0},{"$f":"IF(Table_PI[[#This Row],[Hide:\nFormula Name]]<>\"\",IFERROR(IF(MeasureCalc(Table_PI[[#This Row],[Hide:\nFormula Name]],Table_PI[[#This Row],[Quantity]],Table_PI[[#This Row],[List 1]],Table_PI[[#This Row],[List 2]],Table_PI[[#This Row],[List 3]],Table_PI[[#This Row],[Size]],Table_PI[[#This Row],[Input 1]],Table_PI[[#This Row],[Input 2]],Table_PI[[#This Row],[Input 3]],Table_PI[[#This Row],[Input 4]],'Customer Information'!$AR$12,1,ROW())>0,MeasureCalc(Table_PI[[#This Row],[Hide:\nFormula Name]],Table_PI[[#This Row],[Quantity]],Table_PI[[#This Row],[List 1]],Table_PI[[#This Row],[List 2]],Table_PI[[#This Row],[List 3]],Table_PI[[#This Row],[Size]],Table_PI[[#This Row],[Input 1]],Table_PI[[#This Row],[Input 2]],Table_PI[[#This Row],[Input 3]],Table_PI[[#This Row],[Input 4]],'Customer Information'!$AR$12,2,ROW()),\"No Rebate\"),\"No Rebate\"),0)","v":0},{"$f":"IF(Table_PI[[#This Row],[Hide:\nFormula Name]]<>\"\",IFERROR(IF(MeasureCalc(Table_PI[[#This Row],[Hide:\nFormula Name]],Table_PI[[#This Row],[Quantity]],Table_PI[[#This Row],[List 1]],Table_PI[[#This Row],[List 2]],Table_PI[[#This Row],[List 3]],Table_PI[[#This Row],[Size]],Table_PI[[#This Row],[Input 1]],Table_PI[[#This Row],[Input 2]],Table_PI[[#This Row],[Input 3]],Table_PI[[#This Row],[Input 4]],'Customer Information'!$AR$12,1,ROW())>0,MeasureCalc(Table_PI[[#This Row],[Hide:\nFormula Name]],Table_PI[[#This Row],[Quantity]],Table_PI[[#This Row],[List 1]],Table_PI[[#This Row],[List 2]],Table_PI[[#This Row],[List 3]],Table_PI[[#This Row],[Size]],Table_PI[[#This Row],[Input 1]],Table_PI[[#This Row],[Input 2]],Table_PI[[#This Row],[Input 3]],Table_PI[[#This Row],[Input 4]],'Customer Information'!$AR$12,3,ROW()),\"No Rebate\"),\"No Rebate\"),0)","v":0},{"$f":"IF(Table_PI[[#This Row],[Hide:\nFormula Name]]<>\"\",IFERROR(IF(MeasureCalc(Table_PI[[#This Row],[Hide:\nFormula Name]],Table_PI[[#This Row],[Quantity]],Table_PI[[#This Row],[List 1]],Table_PI[[#This Row],[List 2]],Table_PI[[#This Row],[List 3]],Table_PI[[#This Row],[Size]],Table_PI[[#This Row],[Input 1]],Table_PI[[#This Row],[Input 2]],Table_PI[[#This Row],[Input 3]],Table_PI[[#This Row],[Input 4]],'Customer Information'!$AR$12,1,ROW())>0,MeasureCalc(Table_PI[[#This Row],[Hide:\nFormula Name]],Table_PI[[#This Row],[Quantity]],Table_PI[[#This Row],[List 1]],Table_PI[[#This Row],[List 2]],Table_PI[[#This Row],[List 3]],Table_PI[[#This Row],[Size]],Table_PI[[#This Row],[Input 1]],Table_PI[[#This Row],[Input 2]],Table_PI[[#This Row],[Input 3]],Table_PI[[#This Row],[Input 4]],'Customer Information'!$AR$12,4,ROW()),\"No Rebate\"),\"No Rebate\"),0)","v":0},{"$f":"IF(Table_PI[[#This Row],[Hide:\nFormula Name]]<>\"\",IFERROR(IF(MeasureCalc(Table_PI[[#This Row],[Hide:\nFormula Name]],Table_PI[[#This Row],[Quantity]],Table_PI[[#This Row],[List 1]],Table_PI[[#This Row],[List 2]],Table_PI[[#This Row],[List 3]],Table_PI[[#This Row],[Size]],Table_PI[[#This Row],[Input 1]],Table_PI[[#This Row],[Input 2]],Table_PI[[#This Row],[Input 3]],Table_PI[[#This Row],[Input 4]],'Customer Information'!$AR$12,1,ROW())>0,MeasureCalc(Table_PI[[#This Row],[Hide:\nFormula Name]],Table_PI[[#This Row],[Quantity]],Table_PI[[#This Row],[List 1]],Table_PI[[#This Row],[List 2]],Table_PI[[#This Row],[List 3]],Table_PI[[#This Row],[Size]],Table_PI[[#This Row],[Input 1]],Table_PI[[#This Row],[Input 2]],Table_PI[[#This Row],[Input 3]],Table_PI[[#This Row],[Input 4]],'Customer Information'!$AR$12,5,ROW()),\"No Rebate\"),\"No Rebate\"),0)","v":0},{"$f":"IF(Table_PI[[#This Row],[Hide:\nFormula Name]]<>\"\",IFERROR(IF(MeasureCalc(Table_PI[[#This Row],[Hide:\nFormula Name]],Table_PI[[#This Row],[Quantity]],Table_PI[[#This Row],[List 1]],Table_PI[[#This Row],[List 2]],Table_PI[[#This Row],[List 3]],Table_PI[[#This Row],[Size]],Table_PI[[#This Row],[Input 1]],Table_PI[[#This Row],[Input 2]],Table_PI[[#This Row],[Input 3]],Table_PI[[#This Row],[Input 4]],'Customer Information'!$AR$12,1,ROW())>0,MeasureCalc(Table_PI[[#This Row],[Hide:\nFormula Name]],Table_PI[[#This Row],[Quantity]],Table_PI[[#This Row],[List 1]],Table_PI[[#This Row],[List 2]],Table_PI[[#This Row],[List 3]],Table_PI[[#This Row],[Size]],Table_PI[[#This Row],[Input 1]],Table_PI[[#This Row],[Input 2]],Table_PI[[#This Row],[Input 3]],Table_PI[[#This Row],[Input 4]],'Customer Information'!$AR$12,6,ROW()),\"No Rebate\"),\"No Rebate\"),0)","v":0},{"$f":"IF(Table_PI[[#This Row],[Hide:\nFormula Name]]<>\"\",IFERROR(IF(MeasureCalc(Table_PI[[#This Row],[Hide:\nFormula Name]],Table_PI[[#This Row],[Quantity]],Table_PI[[#This Row],[List 1]],Table_PI[[#This Row],[List 2]],Table_PI[[#This Row],[List 3]],Table_PI[[#This Row],[Size]],Table_PI[[#This Row],[Input 1]],Table_PI[[#This Row],[Input 2]],Table_PI[[#This Row],[Input 3]],Table_PI[[#This Row],[Input 4]],'Customer Information'!$AR$12,1,ROW())>0,MeasureCalc(Table_PI[[#This Row],[Hide:\nFormula Name]],Table_PI[[#This Row],[Quantity]],Table_PI[[#This Row],[List 1]],Table_PI[[#This Row],[List 2]],Table_PI[[#This Row],[List 3]],Table_PI[[#This Row],[Size]],Table_PI[[#This Row],[Input 1]],Table_PI[[#This Row],[Input 2]],Table_PI[[#This Row],[Input 3]],Table_PI[[#This Row],[Input 4]],'Customer Information'!$AR$12,7,ROW()),\"No Rebate\"),\"No Rebate\"),0)","v":0},{"$f":"IF(Table_PI[[#This Row],[Hide:\nFormula Name]]<>\"\",IFERROR(IF(MeasureCalc(Table_PI[[#This Row],[Hide:\nFormula Name]],Table_PI[[#This Row],[Quantity]],Table_PI[[#This Row],[List 1]],Table_PI[[#This Row],[List 2]],Table_PI[[#This Row],[List 3]],Table_PI[[#This Row],[Size]],Table_PI[[#This Row],[Input 1]],Table_PI[[#This Row],[Input 2]],Table_PI[[#This Row],[Input 3]],Table_PI[[#This Row],[Input 4]],'Customer Information'!$AR$12,1,ROW())>0,MeasureCalc(Table_PI[[#This Row],[Hide:\nFormula Name]],Table_PI[[#This Row],[Quantity]],Table_PI[[#This Row],[List 1]],Table_PI[[#This Row],[List 2]],Table_PI[[#This Row],[List 3]],Table_PI[[#This Row],[Size]],Table_PI[[#This Row],[Input 1]],Table_PI[[#This Row],[Input 2]],Table_PI[[#This Row],[Input 3]],Table_PI[[#This Row],[Input 4]],'Customer Information'!$AR$12,8,ROW()),\"No Rebate\"),\"No Rebate\"),0)","v":0},{"$f":"IF(Table_PI[[#This Row],[Hide:\nFormula Name]]<>\"\",IF(AND(Table_PI[[#This Row],[Hide:\nFormula Name]]<>\"\",OR(Table_PI[[#This Row],[Rebate]]>0,Table_PI[[#This Row],[Rebate]]=\"No Rebate\")),TRUE,\"MI: Line Item \" & $A301),\"\")","v":""}]
[{"$f":"IF(Table_PI[[#This Row],[Hide:\nFormula Name]]<>\"\",MAX($A$2:A301)+1,\"\")","v":""},null,null,null,null,null,null,null,null,null,null,null,null,null,null,{"$f":"IFERROR(VLOOKUP(Table_PI[[#This Row],[Measure]],'Equipment Lookups'!$C$3:$D$23,2,FALSE),\"\")","v":""},{"$f":"IF(Table_PI[[#This Row],[Hide:\nFormula Name]]<>\"\",IFERROR(IF(MeasureCalc(Table_PI[[#This Row],[Hide:\nFormula Name]],Table_PI[[#This Row],[Quantity]],Table_PI[[#This Row],[List 1]],Table_PI[[#This Row],[List 2]],Table_PI[[#This Row],[List 3]],Table_PI[[#This Row],[Size]],Table_PI[[#This Row],[Input 1]],Table_PI[[#This Row],[Input 2]],Table_PI[[#This Row],[Input 3]],Table_PI[[#This Row],[Input 4]],'Customer Information'!$AR$12,1,ROW())>0,MeasureCalc(Table_PI[[#This Row],[Hide:\nFormula Name]],Table_PI[[#This Row],[Quantity]],Table_PI[[#This Row],[List 1]],Table_PI[[#This Row],[List 2]],Table_PI[[#This Row],[List 3]],Table_PI[[#This Row],[Size]],Table_PI[[#This Row],[Input 1]],Table_PI[[#This Row],[Input 2]],Table_PI[[#This Row],[Input 3]],Table_PI[[#This Row],[Input 4]],'Customer Information'!$AR$12,1,ROW()),\"No Rebate\"),\"No Rebate\"),0)","v":0},{"$f":"IF(Table_PI[[#This Row],[Hide:\nFormula Name]]<>\"\",IFERROR(IF(MeasureCalc(Table_PI[[#This Row],[Hide:\nFormula Name]],Table_PI[[#This Row],[Quantity]],Table_PI[[#This Row],[List 1]],Table_PI[[#This Row],[List 2]],Table_PI[[#This Row],[List 3]],Table_PI[[#This Row],[Size]],Table_PI[[#This Row],[Input 1]],Table_PI[[#This Row],[Input 2]],Table_PI[[#This Row],[Input 3]],Table_PI[[#This Row],[Input 4]],'Customer Information'!$AR$12,1,ROW())>0,MeasureCalc(Table_PI[[#This Row],[Hide:\nFormula Name]],Table_PI[[#This Row],[Quantity]],Table_PI[[#This Row],[List 1]],Table_PI[[#This Row],[List 2]],Table_PI[[#This Row],[List 3]],Table_PI[[#This Row],[Size]],Table_PI[[#This Row],[Input 1]],Table_PI[[#This Row],[Input 2]],Table_PI[[#This Row],[Input 3]],Table_PI[[#This Row],[Input 4]],'Customer Information'!$AR$12,2,ROW()),\"No Rebate\"),\"No Rebate\"),0)","v":0},{"$f":"IF(Table_PI[[#This Row],[Hide:\nFormula Name]]<>\"\",IFERROR(IF(MeasureCalc(Table_PI[[#This Row],[Hide:\nFormula Name]],Table_PI[[#This Row],[Quantity]],Table_PI[[#This Row],[List 1]],Table_PI[[#This Row],[List 2]],Table_PI[[#This Row],[List 3]],Table_PI[[#This Row],[Size]],Table_PI[[#This Row],[Input 1]],Table_PI[[#This Row],[Input 2]],Table_PI[[#This Row],[Input 3]],Table_PI[[#This Row],[Input 4]],'Customer Information'!$AR$12,1,ROW())>0,MeasureCalc(Table_PI[[#This Row],[Hide:\nFormula Name]],Table_PI[[#This Row],[Quantity]],Table_PI[[#This Row],[List 1]],Table_PI[[#This Row],[List 2]],Table_PI[[#This Row],[List 3]],Table_PI[[#This Row],[Size]],Table_PI[[#This Row],[Input 1]],Table_PI[[#This Row],[Input 2]],Table_PI[[#This Row],[Input 3]],Table_PI[[#This Row],[Input 4]],'Customer Information'!$AR$12,3,ROW()),\"No Rebate\"),\"No Rebate\"),0)","v":0},{"$f":"IF(Table_PI[[#This Row],[Hide:\nFormula Name]]<>\"\",IFERROR(IF(MeasureCalc(Table_PI[[#This Row],[Hide:\nFormula Name]],Table_PI[[#This Row],[Quantity]],Table_PI[[#This Row],[List 1]],Table_PI[[#This Row],[List 2]],Table_PI[[#This Row],[List 3]],Table_PI[[#This Row],[Size]],Table_PI[[#This Row],[Input 1]],Table_PI[[#This Row],[Input 2]],Table_PI[[#This Row],[Input 3]],Table_PI[[#This Row],[Input 4]],'Customer Information'!$AR$12,1,ROW())>0,MeasureCalc(Table_PI[[#This Row],[Hide:\nFormula Name]],Table_PI[[#This Row],[Quantity]],Table_PI[[#This Row],[List 1]],Table_PI[[#This Row],[List 2]],Table_PI[[#This Row],[List 3]],Table_PI[[#This Row],[Size]],Table_PI[[#This Row],[Input 1]],Table_PI[[#This Row],[Input 2]],Table_PI[[#This Row],[Input 3]],Table_PI[[#This Row],[Input 4]],'Customer Information'!$AR$12,4,ROW()),\"No Rebate\"),\"No Rebate\"),0)","v":0},{"$f":"IF(Table_PI[[#This Row],[Hide:\nFormula Name]]<>\"\",IFERROR(IF(MeasureCalc(Table_PI[[#This Row],[Hide:\nFormula Name]],Table_PI[[#This Row],[Quantity]],Table_PI[[#This Row],[List 1]],Table_PI[[#This Row],[List 2]],Table_PI[[#This Row],[List 3]],Table_PI[[#This Row],[Size]],Table_PI[[#This Row],[Input 1]],Table_PI[[#This Row],[Input 2]],Table_PI[[#This Row],[Input 3]],Table_PI[[#This Row],[Input 4]],'Customer Information'!$AR$12,1,ROW())>0,MeasureCalc(Table_PI[[#This Row],[Hide:\nFormula Name]],Table_PI[[#This Row],[Quantity]],Table_PI[[#This Row],[List 1]],Table_PI[[#This Row],[List 2]],Table_PI[[#This Row],[List 3]],Table_PI[[#This Row],[Size]],Table_PI[[#This Row],[Input 1]],Table_PI[[#This Row],[Input 2]],Table_PI[[#This Row],[Input 3]],Table_PI[[#This Row],[Input 4]],'Customer Information'!$AR$12,5,ROW()),\"No Rebate\"),\"No Rebate\"),0)","v":0},{"$f":"IF(Table_PI[[#This Row],[Hide:\nFormula Name]]<>\"\",IFERROR(IF(MeasureCalc(Table_PI[[#This Row],[Hide:\nFormula Name]],Table_PI[[#This Row],[Quantity]],Table_PI[[#This Row],[List 1]],Table_PI[[#This Row],[List 2]],Table_PI[[#This Row],[List 3]],Table_PI[[#This Row],[Size]],Table_PI[[#This Row],[Input 1]],Table_PI[[#This Row],[Input 2]],Table_PI[[#This Row],[Input 3]],Table_PI[[#This Row],[Input 4]],'Customer Information'!$AR$12,1,ROW())>0,MeasureCalc(Table_PI[[#This Row],[Hide:\nFormula Name]],Table_PI[[#This Row],[Quantity]],Table_PI[[#This Row],[List 1]],Table_PI[[#This Row],[List 2]],Table_PI[[#This Row],[List 3]],Table_PI[[#This Row],[Size]],Table_PI[[#This Row],[Input 1]],Table_PI[[#This Row],[Input 2]],Table_PI[[#This Row],[Input 3]],Table_PI[[#This Row],[Input 4]],'Customer Information'!$AR$12,6,ROW()),\"No Rebate\"),\"No Rebate\"),0)","v":0},{"$f":"IF(Table_PI[[#This Row],[Hide:\nFormula Name]]<>\"\",IFERROR(IF(MeasureCalc(Table_PI[[#This Row],[Hide:\nFormula Name]],Table_PI[[#This Row],[Quantity]],Table_PI[[#This Row],[List 1]],Table_PI[[#This Row],[List 2]],Table_PI[[#This Row],[List 3]],Table_PI[[#This Row],[Size]],Table_PI[[#This Row],[Input 1]],Table_PI[[#This Row],[Input 2]],Table_PI[[#This Row],[Input 3]],Table_PI[[#This Row],[Input 4]],'Customer Information'!$AR$12,1,ROW())>0,MeasureCalc(Table_PI[[#This Row],[Hide:\nFormula Name]],Table_PI[[#This Row],[Quantity]],Table_PI[[#This Row],[List 1]],Table_PI[[#This Row],[List 2]],Table_PI[[#This Row],[List 3]],Table_PI[[#This Row],[Size]],Table_PI[[#This Row],[Input 1]],Table_PI[[#This Row],[Input 2]],Table_PI[[#This Row],[Input 3]],Table_PI[[#This Row],[Input 4]],'Customer Information'!$AR$12,7,ROW()),\"No Rebate\"),\"No Rebate\"),0)","v":0},{"$f":"IF(Table_PI[[#This Row],[Hide:\nFormula Name]]<>\"\",IFERROR(IF(MeasureCalc(Table_PI[[#This Row],[Hide:\nFormula Name]],Table_PI[[#This Row],[Quantity]],Table_PI[[#This Row],[List 1]],Table_PI[[#This Row],[List 2]],Table_PI[[#This Row],[List 3]],Table_PI[[#This Row],[Size]],Table_PI[[#This Row],[Input 1]],Table_PI[[#This Row],[Input 2]],Table_PI[[#This Row],[Input 3]],Table_PI[[#This Row],[Input 4]],'Customer Information'!$AR$12,1,ROW())>0,MeasureCalc(Table_PI[[#This Row],[Hide:\nFormula Name]],Table_PI[[#This Row],[Quantity]],Table_PI[[#This Row],[List 1]],Table_PI[[#This Row],[List 2]],Table_PI[[#This Row],[List 3]],Table_PI[[#This Row],[Size]],Table_PI[[#This Row],[Input 1]],Table_PI[[#This Row],[Input 2]],Table_PI[[#This Row],[Input 3]],Table_PI[[#This Row],[Input 4]],'Customer Information'!$AR$12,8,ROW()),\"No Rebate\"),\"No Rebate\"),0)","v":0},{"$f":"IF(Table_PI[[#This Row],[Hide:\nFormula Name]]<>\"\",IF(AND(Table_PI[[#This Row],[Hide:\nFormula Name]]<>\"\",OR(Table_PI[[#This Row],[Rebate]]>0,Table_PI[[#This Row],[Rebate]]=\"No Rebate\")),TRUE,\"MI: Line Item \" & $A302),\"\")","v":""}]
[{"$f":"IF(Table_PI[[#This Row],[Hide:\nFormula Name]]<>\"\",MAX($A$2:A302)+1,\"\")","v":""},null,null,null,null,null,null,null,null,null,null,null,null,null,null,{"$f":"IFERROR(VLOOKUP(Table_PI[[#This Row],[Measure]],'Equipment Lookups'!$C$3:$D$23,2,FALSE),\"\")","v":""},{"$f":"IF(Table_PI[[#This Row],[Hide:\nFormula Name]]<>\"\",IFERROR(IF(MeasureCalc(Table_PI[[#This Row],[Hide:\nFormula Name]],Table_PI[[#This Row],[Quantity]],Table_PI[[#This Row],[List 1]],Table_PI[[#This Row],[List 2]],Table_PI[[#This Row],[List 3]],Table_PI[[#This Row],[Size]],Table_PI[[#This Row],[Input 1]],Table_PI[[#This Row],[Input 2]],Table_PI[[#This Row],[Input 3]],Table_PI[[#This Row],[Input 4]],'Customer Information'!$AR$12,1,ROW())>0,MeasureCalc(Table_PI[[#This Row],[Hide:\nFormula Name]],Table_PI[[#This Row],[Quantity]],Table_PI[[#This Row],[List 1]],Table_PI[[#This Row],[List 2]],Table_PI[[#This Row],[List 3]],Table_PI[[#This Row],[Size]],Table_PI[[#This Row],[Input 1]],Table_PI[[#This Row],[Input 2]],Table_PI[[#This Row],[Input 3]],Table_PI[[#This Row],[Input 4]],'Customer Information'!$AR$12,1,ROW()),\"No Rebate\"),\"No Rebate\"),0)","v":0},{"$f":"IF(Table_PI[[#This Row],[Hide:\nFormula Name]]<>\"\",IFERROR(IF(MeasureCalc(Table_PI[[#This Row],[Hide:\nFormula Name]],Table_PI[[#This Row],[Quantity]],Table_PI[[#This Row],[List 1]],Table_PI[[#This Row],[List 2]],Table_PI[[#This Row],[List 3]],Table_PI[[#This Row],[Size]],Table_PI[[#This Row],[Input 1]],Table_PI[[#This Row],[Input 2]],Table_PI[[#This Row],[Input 3]],Table_PI[[#This Row],[Input 4]],'Customer Information'!$AR$12,1,ROW())>0,MeasureCalc(Table_PI[[#This Row],[Hide:\nFormula Name]],Table_PI[[#This Row],[Quantity]],Table_PI[[#This Row],[List 1]],Table_PI[[#This Row],[List 2]],Table_PI[[#This Row],[List 3]],Table_PI[[#This Row],[Size]],Table_PI[[#This Row],[Input 1]],Table_PI[[#This Row],[Input 2]],Table_PI[[#This Row],[Input 3]],Table_PI[[#This Row],[Input 4]],'Customer Information'!$AR$12,2,ROW()),\"No Rebate\"),\"No Rebate\"),0)","v":0},{"$f":"IF(Table_PI[[#This Row],[Hide:\nFormula Name]]<>\"\",IFERROR(IF(MeasureCalc(Table_PI[[#This Row],[Hide:\nFormula Name]],Table_PI[[#This Row],[Quantity]],Table_PI[[#This Row],[List 1]],Table_PI[[#This Row],[List 2]],Table_PI[[#This Row],[List 3]],Table_PI[[#This Row],[Size]],Table_PI[[#This Row],[Input 1]],Table_PI[[#This Row],[Input 2]],Table_PI[[#This Row],[Input 3]],Table_PI[[#This Row],[Input 4]],'Customer Information'!$AR$12,1,ROW())>0,MeasureCalc(Table_PI[[#This Row],[Hide:\nFormula Name]],Table_PI[[#This Row],[Quantity]],Table_PI[[#This Row],[List 1]],Table_PI[[#This Row],[List 2]],Table_PI[[#This Row],[List 3]],Table_PI[[#This Row],[Size]],Table_PI[[#This Row],[Input 1]],Table_PI[[#This Row],[Input 2]],Table_PI[[#This Row],[Input 3]],Table_PI[[#This Row],[Input 4]],'Customer Information'!$AR$12,3,ROW()),\"No Rebate\"),\"No Rebate\"),0)","v":0},{"$f":"IF(Table_PI[[#This Row],[Hide:\nFormula Name]]<>\"\",IFERROR(IF(MeasureCalc(Table_PI[[#This Row],[Hide:\nFormula Name]],Table_PI[[#This Row],[Quantity]],Table_PI[[#This Row],[List 1]],Table_PI[[#This Row],[List 2]],Table_PI[[#This Row],[List 3]],Table_PI[[#This Row],[Size]],Table_PI[[#This Row],[Input 1]],Table_PI[[#This Row],[Input 2]],Table_PI[[#This Row],[Input 3]],Table_PI[[#This Row],[Input 4]],'Customer Information'!$AR$12,1,ROW())>0,MeasureCalc(Table_PI[[#This Row],[Hide:\nFormula Name]],Table_PI[[#This Row],[Quantity]],Table_PI[[#This Row],[List 1]],Table_PI[[#This Row],[List 2]],Table_PI[[#This Row],[List 3]],Table_PI[[#This Row],[Size]],Table_PI[[#This Row],[Input 1]],Table_PI[[#This Row],[Input 2]],Table_PI[[#This Row],[Input 3]],Table_PI[[#This Row],[Input 4]],'Customer Information'!$AR$12,4,ROW()),\"No Rebate\"),\"No Rebate\"),0)","v":0},{"$f":"IF(Table_PI[[#This Row],[Hide:\nFormula Name]]<>\"\",IFERROR(IF(MeasureCalc(Table_PI[[#This Row],[Hide:\nFormula Name]],Table_PI[[#This Row],[Quantity]],Table_PI[[#This Row],[List 1]],Table_PI[[#This Row],[List 2]],Table_PI[[#This Row],[List 3]],Table_PI[[#This Row],[Size]],Table_PI[[#This Row],[Input 1]],Table_PI[[#This Row],[Input 2]],Table_PI[[#This Row],[Input 3]],Table_PI[[#This Row],[Input 4]],'Customer Information'!$AR$12,1,ROW())>0,MeasureCalc(Table_PI[[#This Row],[Hide:\nFormula Name]],Table_PI[[#This Row],[Quantity]],Table_PI[[#This Row],[List 1]],Table_PI[[#This Row],[List 2]],Table_PI[[#This Row],[List 3]],Table_PI[[#This Row],[Size]],Table_PI[[#This Row],[Input 1]],Table_PI[[#This Row],[Input 2]],Table_PI[[#This Row],[Input 3]],Table_PI[[#This Row],[Input 4]],'Customer Information'!$AR$12,5,ROW()),\"No Rebate\"),\"No Rebate\"),0)","v":0},{"$f":"IF(Table_PI[[#This Row],[Hide:\nFormula Name]]<>\"\",IFERROR(IF(MeasureCalc(Table_PI[[#This Row],[Hide:\nFormula Name]],Table_PI[[#This Row],[Quantity]],Table_PI[[#This Row],[List 1]],Table_PI[[#This Row],[List 2]],Table_PI[[#This Row],[List 3]],Table_PI[[#This Row],[Size]],Table_PI[[#This Row],[Input 1]],Table_PI[[#This Row],[Input 2]],Table_PI[[#This Row],[Input 3]],Table_PI[[#This Row],[Input 4]],'Customer Information'!$AR$12,1,ROW())>0,MeasureCalc(Table_PI[[#This Row],[Hide:\nFormula Name]],Table_PI[[#This Row],[Quantity]],Table_PI[[#This Row],[List 1]],Table_PI[[#This Row],[List 2]],Table_PI[[#This Row],[List 3]],Table_PI[[#This Row],[Size]],Table_PI[[#This Row],[Input 1]],Table_PI[[#This Row],[Input 2]],Table_PI[[#This Row],[Input 3]],Table_PI[[#This Row],[Input 4]],'Customer Information'!$AR$12,6,ROW()),\"No Rebate\"),\"No Rebate\"),0)","v":0},{"$f":"IF(Table_PI[[#This Row],[Hide:\nFormula Name]]<>\"\",IFERROR(IF(MeasureCalc(Table_PI[[#This Row],[Hide:\nFormula Name]],Table_PI[[#This Row],[Quantity]],Table_PI[[#This Row],[List 1]],Table_PI[[#This Row],[List 2]],Table_PI[[#This Row],[List 3]],Table_PI[[#This Row],[Size]],Table_PI[[#This Row],[Input 1]],Table_PI[[#This Row],[Input 2]],Table_PI[[#This Row],[Input 3]],Table_PI[[#This Row],[Input 4]],'Customer Information'!$AR$12,1,ROW())>0,MeasureCalc(Table_PI[[#This Row],[Hide:\nFormula Name]],Table_PI[[#This Row],[Quantity]],Table_PI[[#This Row],[List 1]],Table_PI[[#This Row],[List 2]],Table_PI[[#This Row],[List 3]],Table_PI[[#This Row],[Size]],Table_PI[[#This Row],[Input 1]],Table_PI[[#This Row],[Input 2]],Table_PI[[#This Row],[Input 3]],Table_PI[[#This Row],[Input 4]],'Customer Information'!$AR$12,7,ROW()),\"No Rebate\"),\"No Rebate\"),0)","v":0},{"$f":"IF(Table_PI[[#This Row],[Hide:\nFormula Name]]<>\"\",IFERROR(IF(MeasureCalc(Table_PI[[#This Row],[Hide:\nFormula Name]],Table_PI[[#This Row],[Quantity]],Table_PI[[#This Row],[List 1]],Table_PI[[#This Row],[List 2]],Table_PI[[#This Row],[List 3]],Table_PI[[#This Row],[Size]],Table_PI[[#This Row],[Input 1]],Table_PI[[#This Row],[Input 2]],Table_PI[[#This Row],[Input 3]],Table_PI[[#This Row],[Input 4]],'Customer Information'!$AR$12,1,ROW())>0,MeasureCalc(Table_PI[[#This Row],[Hide:\nFormula Name]],Table_PI[[#This Row],[Quantity]],Table_PI[[#This Row],[List 1]],Table_PI[[#This Row],[List 2]],Table_PI[[#This Row],[List 3]],Table_PI[[#This Row],[Size]],Table_PI[[#This Row],[Input 1]],Table_PI[[#This Row],[Input 2]],Table_PI[[#This Row],[Input 3]],Table_PI[[#This Row],[Input 4]],'Customer Information'!$AR$12,8,ROW()),\"No Rebate\"),\"No Rebate\"),0)","v":0},{"$f":"IF(Table_PI[[#This Row],[Hide:\nFormula Name]]<>\"\",IF(AND(Table_PI[[#This Row],[Hide:\nFormula Name]]<>\"\",OR(Table_PI[[#This Row],[Rebate]]>0,Table_PI[[#This Row],[Rebate]]=\"No Rebate\")),TRUE,\"MI: Line Item \" & $A303),\"\")","v":""}]
[{"$f":"IF(Table_PI[[#This Row],[Hide:\nFormula Name]]<>\"\",MAX($A$2:A303)+1,\"\")","v":""},null,null,null,null,null,null,null,null,null,null,null,null,null,null,{"$f":"IFERROR(VLOOKUP(Table_PI[[#This Row],[Measure]],'Equipment Lookups'!$C$3:$D$23,2,FALSE),\"\")","v":""},{"$f":"IF(Table_PI[[#This Row],[Hide:\nFormula Name]]<>\"\",IFERROR(IF(MeasureCalc(Table_PI[[#This Row],[Hide:\nFormula Name]],Table_PI[[#This Row],[Quantity]],Table_PI[[#This Row],[List 1]],Table_PI[[#This Row],[List 2]],Table_PI[[#This Row],[List 3]],Table_PI[[#This Row],[Size]],Table_PI[[#This Row],[Input 1]],Table_PI[[#This Row],[Input 2]],Table_PI[[#This Row],[Input 3]],Table_PI[[#This Row],[Input 4]],'Customer Information'!$AR$12,1,ROW())>0,MeasureCalc(Table_PI[[#This Row],[Hide:\nFormula Name]],Table_PI[[#This Row],[Quantity]],Table_PI[[#This Row],[List 1]],Table_PI[[#This Row],[List 2]],Table_PI[[#This Row],[List 3]],Table_PI[[#This Row],[Size]],Table_PI[[#This Row],[Input 1]],Table_PI[[#This Row],[Input 2]],Table_PI[[#This Row],[Input 3]],Table_PI[[#This Row],[Input 4]],'Customer Information'!$AR$12,1,ROW()),\"No Rebate\"),\"No Rebate\"),0)","v":0},{"$f":"IF(Table_PI[[#This Row],[Hide:\nFormula Name]]<>\"\",IFERROR(IF(MeasureCalc(Table_PI[[#This Row],[Hide:\nFormula Name]],Table_PI[[#This Row],[Quantity]],Table_PI[[#This Row],[List 1]],Table_PI[[#This Row],[List 2]],Table_PI[[#This Row],[List 3]],Table_PI[[#This Row],[Size]],Table_PI[[#This Row],[Input 1]],Table_PI[[#This Row],[Input 2]],Table_PI[[#This Row],[Input 3]],Table_PI[[#This Row],[Input 4]],'Customer Information'!$AR$12,1,ROW())>0,MeasureCalc(Table_PI[[#This Row],[Hide:\nFormula Name]],Table_PI[[#This Row],[Quantity]],Table_PI[[#This Row],[List 1]],Table_PI[[#This Row],[List 2]],Table_PI[[#This Row],[List 3]],Table_PI[[#This Row],[Size]],Table_PI[[#This Row],[Input 1]],Table_PI[[#This Row],[Input 2]],Table_PI[[#This Row],[Input 3]],Table_PI[[#This Row],[Input 4]],'Customer Information'!$AR$12,2,ROW()),\"No Rebate\"),\"No Rebate\"),0)","v":0},{"$f":"IF(Table_PI[[#This Row],[Hide:\nFormula Name]]<>\"\",IFERROR(IF(MeasureCalc(Table_PI[[#This Row],[Hide:\nFormula Name]],Table_PI[[#This Row],[Quantity]],Table_PI[[#This Row],[List 1]],Table_PI[[#This Row],[List 2]],Table_PI[[#This Row],[List 3]],Table_PI[[#This Row],[Size]],Table_PI[[#This Row],[Input 1]],Table_PI[[#This Row],[Input 2]],Table_PI[[#This Row],[Input 3]],Table_PI[[#This Row],[Input 4]],'Customer Information'!$AR$12,1,ROW())>0,MeasureCalc(Table_PI[[#This Row],[Hide:\nFormula Name]],Table_PI[[#This Row],[Quantity]],Table_PI[[#This Row],[List 1]],Table_PI[[#This Row],[List 2]],Table_PI[[#This Row],[List 3]],Table_PI[[#This Row],[Size]],Table_PI[[#This Row],[Input 1]],Table_PI[[#This Row],[Input 2]],Table_PI[[#This Row],[Input 3]],Table_PI[[#This Row],[Input 4]],'Customer Information'!$AR$12,3,ROW()),\"No Rebate\"),\"No Rebate\"),0)","v":0},{"$f":"IF(Table_PI[[#This Row],[Hide:\nFormula Name]]<>\"\",IFERROR(IF(MeasureCalc(Table_PI[[#This Row],[Hide:\nFormula Name]],Table_PI[[#This Row],[Quantity]],Table_PI[[#This Row],[List 1]],Table_PI[[#This Row],[List 2]],Table_PI[[#This Row],[List 3]],Table_PI[[#This Row],[Size]],Table_PI[[#This Row],[Input 1]],Table_PI[[#This Row],[Input 2]],Table_PI[[#This Row],[Input 3]],Table_PI[[#This Row],[Input 4]],'Customer Information'!$AR$12,1,ROW())>0,MeasureCalc(Table_PI[[#This Row],[Hide:\nFormula Name]],Table_PI[[#This Row],[Quantity]],Table_PI[[#This Row],[List 1]],Table_PI[[#This Row],[List 2]],Table_PI[[#This Row],[List 3]],Table_PI[[#This Row],[Size]],Table_PI[[#This Row],[Input 1]],Table_PI[[#This Row],[Input 2]],Table_PI[[#This Row],[Input 3]],Table_PI[[#This Row],[Input 4]],'Customer Information'!$AR$12,4,ROW()),\"No Rebate\"),\"No Rebate\"),0)","v":0},{"$f":"IF(Table_PI[[#This Row],[Hide:\nFormula Name]]<>\"\",IFERROR(IF(MeasureCalc(Table_PI[[#This Row],[Hide:\nFormula Name]],Table_PI[[#This Row],[Quantity]],Table_PI[[#This Row],[List 1]],Table_PI[[#This Row],[List 2]],Table_PI[[#This Row],[List 3]],Table_PI[[#This Row],[Size]],Table_PI[[#This Row],[Input 1]],Table_PI[[#This Row],[Input 2]],Table_PI[[#This Row],[Input 3]],Table_PI[[#This Row],[Input 4]],'Customer Information'!$AR$12,1,ROW())>0,MeasureCalc(Table_PI[[#This Row],[Hide:\nFormula Name]],Table_PI[[#This Row],[Quantity]],Table_PI[[#This Row],[List 1]],Table_PI[[#This Row],[List 2]],Table_PI[[#This Row],[List 3]],Table_PI[[#This Row],[Size]],Table_PI[[#This Row],[Input 1]],Table_PI[[#This Row],[Input 2]],Table_PI[[#This Row],[Input 3]],Table_PI[[#This Row],[Input 4]],'Customer Information'!$AR$12,5,ROW()),\"No Rebate\"),\"No Rebate\"),0)","v":0},{"$f":"IF(Table_PI[[#This Row],[Hide:\nFormula Name]]<>\"\",IFERROR(IF(MeasureCalc(Table_PI[[#This Row],[Hide:\nFormula Name]],Table_PI[[#This Row],[Quantity]],Table_PI[[#This Row],[List 1]],Table_PI[[#This Row],[List 2]],Table_PI[[#This Row],[List 3]],Table_PI[[#This Row],[Size]],Table_PI[[#This Row],[Input 1]],Table_PI[[#This Row],[Input 2]],Table_PI[[#This Row],[Input 3]],Table_PI[[#This Row],[Input 4]],'Customer Information'!$AR$12,1,ROW())>0,MeasureCalc(Table_PI[[#This Row],[Hide:\nFormula Name]],Table_PI[[#This Row],[Quantity]],Table_PI[[#This Row],[List 1]],Table_PI[[#This Row],[List 2]],Table_PI[[#This Row],[List 3]],Table_PI[[#This Row],[Size]],Table_PI[[#This Row],[Input 1]],Table_PI[[#This Row],[Input 2]],Table_PI[[#This Row],[Input 3]],Table_PI[[#This Row],[Input 4]],'Customer Information'!$AR$12,6,ROW()),\"No Rebate\"),\"No Rebate\"),0)","v":0},{"$f":"IF(Table_PI[[#This Row],[Hide:\nFormula Name]]<>\"\",IFERROR(IF(MeasureCalc(Table_PI[[#This Row],[Hide:\nFormula Name]],Table_PI[[#This Row],[Quantity]],Table_PI[[#This Row],[List 1]],Table_PI[[#This Row],[List 2]],Table_PI[[#This Row],[List 3]],Table_PI[[#This Row],[Size]],Table_PI[[#This Row],[Input 1]],Table_PI[[#This Row],[Input 2]],Table_PI[[#This Row],[Input 3]],Table_PI[[#This Row],[Input 4]],'Customer Information'!$AR$12,1,ROW())>0,MeasureCalc(Table_PI[[#This Row],[Hide:\nFormula Name]],Table_PI[[#This Row],[Quantity]],Table_PI[[#This Row],[List 1]],Table_PI[[#This Row],[List 2]],Table_PI[[#This Row],[List 3]],Table_PI[[#This Row],[Size]],Table_PI[[#This Row],[Input 1]],Table_PI[[#This Row],[Input 2]],Table_PI[[#This Row],[Input 3]],Table_PI[[#This Row],[Input 4]],'Customer Information'!$AR$12,7,ROW()),\"No Rebate\"),\"No Rebate\"),0)","v":0},{"$f":"IF(Table_PI[[#This Row],[Hide:\nFormula Name]]<>\"\",IFERROR(IF(MeasureCalc(Table_PI[[#This Row],[Hide:\nFormula Name]],Table_PI[[#This Row],[Quantity]],Table_PI[[#This Row],[List 1]],Table_PI[[#This Row],[List 2]],Table_PI[[#This Row],[List 3]],Table_PI[[#This Row],[Size]],Table_PI[[#This Row],[Input 1]],Table_PI[[#This Row],[Input 2]],Table_PI[[#This Row],[Input 3]],Table_PI[[#This Row],[Input 4]],'Customer Information'!$AR$12,1,ROW())>0,MeasureCalc(Table_PI[[#This Row],[Hide:\nFormula Name]],Table_PI[[#This Row],[Quantity]],Table_PI[[#This Row],[List 1]],Table_PI[[#This Row],[List 2]],Table_PI[[#This Row],[List 3]],Table_PI[[#This Row],[Size]],Table_PI[[#This Row],[Input 1]],Table_PI[[#This Row],[Input 2]],Table_PI[[#This Row],[Input 3]],Table_PI[[#This Row],[Input 4]],'Customer Information'!$AR$12,8,ROW()),\"No Rebate\"),\"No Rebate\"),0)","v":0},{"$f":"IF(Table_PI[[#This Row],[Hide:\nFormula Name]]<>\"\",IF(AND(Table_PI[[#This Row],[Hide:\nFormula Name]]<>\"\",OR(Table_PI[[#This Row],[Rebate]]>0,Table_PI[[#This Row],[Rebate]]=\"No Rebate\")),TRUE,\"MI: Line Item \" & $A304),\"\")","v":""}]
[{"$f":"IF(Table_PI[[#This Row],[Hide:\nFormula Name]]<>\"\",MAX($A$2:A304)+1,\"\")","v":""},null,null,null,null,null,null,null,null,null,null,null,null,null,null,{"$f":"IFERROR(VLOOKUP(Table_PI[[#This Row],[Measure]],'Equipment Lookups'!$C$3:$D$23,2,FALSE),\"\")","v":""},{"$f":"IF(Table_PI[[#This Row],[Hide:\nFormula Name]]<>\"\",IFERROR(IF(MeasureCalc(Table_PI[[#This Row],[Hide:\nFormula Name]],Table_PI[[#This Row],[Quantity]],Table_PI[[#This Row],[List 1]],Table_PI[[#This Row],[List 2]],Table_PI[[#This Row],[List 3]],Table_PI[[#This Row],[Size]],Table_PI[[#This Row],[Input 1]],Table_PI[[#This Row],[Input 2]],Table_PI[[#This Row],[Input 3]],Table_PI[[#This Row],[Input 4]],'Customer Information'!$AR$12,1,ROW())>0,MeasureCalc(Table_PI[[#This Row],[Hide:\nFormula Name]],Table_PI[[#This Row],[Quantity]],Table_PI[[#This Row],[List 1]],Table_PI[[#This Row],[List 2]],Table_PI[[#This Row],[List 3]],Table_PI[[#This Row],[Size]],Table_PI[[#This Row],[Input 1]],Table_PI[[#This Row],[Input 2]],Table_PI[[#This Row],[Input 3]],Table_PI[[#This Row],[Input 4]],'Customer Information'!$AR$12,1,ROW()),\"No Rebate\"),\"No Rebate\"),0)","v":0},{"$f":"IF(Table_PI[[#This Row],[Hide:\nFormula Name]]<>\"\",IFERROR(IF(MeasureCalc(Table_PI[[#This Row],[Hide:\nFormula Name]],Table_PI[[#This Row],[Quantity]],Table_PI[[#This Row],[List 1]],Table_PI[[#This Row],[List 2]],Table_PI[[#This Row],[List 3]],Table_PI[[#This Row],[Size]],Table_PI[[#This Row],[Input 1]],Table_PI[[#This Row],[Input 2]],Table_PI[[#This Row],[Input 3]],Table_PI[[#This Row],[Input 4]],'Customer Information'!$AR$12,1,ROW())>0,MeasureCalc(Table_PI[[#This Row],[Hide:\nFormula Name]],Table_PI[[#This Row],[Quantity]],Table_PI[[#This Row],[List 1]],Table_PI[[#This Row],[List 2]],Table_PI[[#This Row],[List 3]],Table_PI[[#This Row],[Size]],Table_PI[[#This Row],[Input 1]],Table_PI[[#This Row],[Input 2]],Table_PI[[#This Row],[Input 3]],Table_PI[[#This Row],[Input 4]],'Customer Information'!$AR$12,2,ROW()),\"No Rebate\"),\"No Rebate\"),0)","v":0},{"$f":"IF(Table_PI[[#This Row],[Hide:\nFormula Name]]<>\"\",IFERROR(IF(MeasureCalc(Table_PI[[#This Row],[Hide:\nFormula Name]],Table_PI[[#This Row],[Quantity]],Table_PI[[#This Row],[List 1]],Table_PI[[#This Row],[List 2]],Table_PI[[#This Row],[List 3]],Table_PI[[#This Row],[Size]],Table_PI[[#This Row],[Input 1]],Table_PI[[#This Row],[Input 2]],Table_PI[[#This Row],[Input 3]],Table_PI[[#This Row],[Input 4]],'Customer Information'!$AR$12,1,ROW())>0,MeasureCalc(Table_PI[[#This Row],[Hide:\nFormula Name]],Table_PI[[#This Row],[Quantity]],Table_PI[[#This Row],[List 1]],Table_PI[[#This Row],[List 2]],Table_PI[[#This Row],[List 3]],Table_PI[[#This Row],[Size]],Table_PI[[#This Row],[Input 1]],Table_PI[[#This Row],[Input 2]],Table_PI[[#This Row],[Input 3]],Table_PI[[#This Row],[Input 4]],'Customer Information'!$AR$12,3,ROW()),\"No Rebate\"),\"No Rebate\"),0)","v":0},{"$f":"IF(Table_PI[[#This Row],[Hide:\nFormula Name]]<>\"\",IFERROR(IF(MeasureCalc(Table_PI[[#This Row],[Hide:\nFormula Name]],Table_PI[[#This Row],[Quantity]],Table_PI[[#This Row],[List 1]],Table_PI[[#This Row],[List 2]],Table_PI[[#This Row],[List 3]],Table_PI[[#This Row],[Size]],Table_PI[[#This Row],[Input 1]],Table_PI[[#This Row],[Input 2]],Table_PI[[#This Row],[Input 3]],Table_PI[[#This Row],[Input 4]],'Customer Information'!$AR$12,1,ROW())>0,MeasureCalc(Table_PI[[#This Row],[Hide:\nFormula Name]],Table_PI[[#This Row],[Quantity]],Table_PI[[#This Row],[List 1]],Table_PI[[#This Row],[List 2]],Table_PI[[#This Row],[List 3]],Table_PI[[#This Row],[Size]],Table_PI[[#This Row],[Input 1]],Table_PI[[#This Row],[Input 2]],Table_PI[[#This Row],[Input 3]],Table_PI[[#This Row],[Input 4]],'Customer Information'!$AR$12,4,ROW()),\"No Rebate\"),\"No Rebate\"),0)","v":0},{"$f":"IF(Table_PI[[#This Row],[Hide:\nFormula Name]]<>\"\",IFERROR(IF(MeasureCalc(Table_PI[[#This Row],[Hide:\nFormula Name]],Table_PI[[#This Row],[Quantity]],Table_PI[[#This Row],[List 1]],Table_PI[[#This Row],[List 2]],Table_PI[[#This Row],[List 3]],Table_PI[[#This Row],[Size]],Table_PI[[#This Row],[Input 1]],Table_PI[[#This Row],[Input 2]],Table_PI[[#This Row],[Input 3]],Table_PI[[#This Row],[Input 4]],'Customer Information'!$AR$12,1,ROW())>0,MeasureCalc(Table_PI[[#This Row],[Hide:\nFormula Name]],Table_PI[[#This Row],[Quantity]],Table_PI[[#This Row],[List 1]],Table_PI[[#This Row],[List 2]],Table_PI[[#This Row],[List 3]],Table_PI[[#This Row],[Size]],Table_PI[[#This Row],[Input 1]],Table_PI[[#This Row],[Input 2]],Table_PI[[#This Row],[Input 3]],Table_PI[[#This Row],[Input 4]],'Customer Information'!$AR$12,5,ROW()),\"No Rebate\"),\"No Rebate\"),0)","v":0},{"$f":"IF(Table_PI[[#This Row],[Hide:\nFormula Name]]<>\"\",IFERROR(IF(MeasureCalc(Table_PI[[#This Row],[Hide:\nFormula Name]],Table_PI[[#This Row],[Quantity]],Table_PI[[#This Row],[List 1]],Table_PI[[#This Row],[List 2]],Table_PI[[#This Row],[List 3]],Table_PI[[#This Row],[Size]],Table_PI[[#This Row],[Input 1]],Table_PI[[#This Row],[Input 2]],Table_PI[[#This Row],[Input 3]],Table_PI[[#This Row],[Input 4]],'Customer Information'!$AR$12,1,ROW())>0,MeasureCalc(Table_PI[[#This Row],[Hide:\nFormula Name]],Table_PI[[#This Row],[Quantity]],Table_PI[[#This Row],[List 1]],Table_PI[[#This Row],[List 2]],Table_PI[[#This Row],[List 3]],Table_PI[[#This Row],[Size]],Table_PI[[#This Row],[Input 1]],Table_PI[[#This Row],[Input 2]],Table_PI[[#This Row],[Input 3]],Table_PI[[#This Row],[Input 4]],'Customer Information'!$AR$12,6,ROW()),\"No Rebate\"),\"No Rebate\"),0)","v":0},{"$f":"IF(Table_PI[[#This Row],[Hide:\nFormula Name]]<>\"\",IFERROR(IF(MeasureCalc(Table_PI[[#This Row],[Hide:\nFormula Name]],Table_PI[[#This Row],[Quantity]],Table_PI[[#This Row],[List 1]],Table_PI[[#This Row],[List 2]],Table_PI[[#This Row],[List 3]],Table_PI[[#This Row],[Size]],Table_PI[[#This Row],[Input 1]],Table_PI[[#This Row],[Input 2]],Table_PI[[#This Row],[Input 3]],Table_PI[[#This Row],[Input 4]],'Customer Information'!$AR$12,1,ROW())>0,MeasureCalc(Table_PI[[#This Row],[Hide:\nFormula Name]],Table_PI[[#This Row],[Quantity]],Table_PI[[#This Row],[List 1]],Table_PI[[#This Row],[List 2]],Table_PI[[#This Row],[List 3]],Table_PI[[#This Row],[Size]],Table_PI[[#This Row],[Input 1]],Table_PI[[#This Row],[Input 2]],Table_PI[[#This Row],[Input 3]],Table_PI[[#This Row],[Input 4]],'Customer Information'!$AR$12,7,ROW()),\"No Rebate\"),\"No Rebate\"),0)","v":0},{"$f":"IF(Table_PI[[#This Row],[Hide:\nFormula Name]]<>\"\",IFERROR(IF(MeasureCalc(Table_PI[[#This Row],[Hide:\nFormula Name]],Table_PI[[#This Row],[Quantity]],Table_PI[[#This Row],[List 1]],Table_PI[[#This Row],[List 2]],Table_PI[[#This Row],[List 3]],Table_PI[[#This Row],[Size]],Table_PI[[#This Row],[Input 1]],Table_PI[[#This Row],[Input 2]],Table_PI[[#This Row],[Input 3]],Table_PI[[#This Row],[Input 4]],'Customer Information'!$AR$12,1,ROW())>0,MeasureCalc(Table_PI[[#This Row],[Hide:\nFormula Name]],Table_PI[[#This Row],[Quantity]],Table_PI[[#This Row],[List 1]],Table_PI[[#This Row],[List 2]],Table_PI[[#This Row],[List 3]],Table_PI[[#This Row],[Size]],Table_PI[[#This Row],[Input 1]],Table_PI[[#This Row],[Input 2]],Table_PI[[#This Row],[Input 3]],Table_PI[[#This Row],[Input 4]],'Customer Information'!$AR$12,8,ROW()),\"No Rebate\"),\"No Rebate\"),0)","v":0},{"$f":"IF(Table_PI[[#This Row],[Hide:\nFormula Name]]<>\"\",IF(AND(Table_PI[[#This Row],[Hide:\nFormula Name]]<>\"\",OR(Table_PI[[#This Row],[Rebate]]>0,Table_PI[[#This Row],[Rebate]]=\"No Rebate\")),TRUE,\"MI: Line Item \" & $A305),\"\")","v":""}]
[{"$f":"IF(Table_PI[[#This Row],[Hide:\nFormula Name]]<>\"\",MAX($A$2:A305)+1,\"\")","v":""},null,null,null,null,null,null,null,null,null,null,null,null,null,null,{"$f":"IFERROR(VLOOKUP(Table_PI[[#This Row],[Measure]],'Equipment Lookups'!$C$3:$D$23,2,FALSE),\"\")","v":""},{"$f":"IF(Table_PI[[#This Row],[Hide:\nFormula Name]]<>\"\",IFERROR(IF(MeasureCalc(Table_PI[[#This Row],[Hide:\nFormula Name]],Table_PI[[#This Row],[Quantity]],Table_PI[[#This Row],[List 1]],Table_PI[[#This Row],[List 2]],Table_PI[[#This Row],[List 3]],Table_PI[[#This Row],[Size]],Table_PI[[#This Row],[Input 1]],Table_PI[[#This Row],[Input 2]],Table_PI[[#This Row],[Input 3]],Table_PI[[#This Row],[Input 4]],'Customer Information'!$AR$12,1,ROW())>0,MeasureCalc(Table_PI[[#This Row],[Hide:\nFormula Name]],Table_PI[[#This Row],[Quantity]],Table_PI[[#This Row],[List 1]],Table_PI[[#This Row],[List 2]],Table_PI[[#This Row],[List 3]],Table_PI[[#This Row],[Size]],Table_PI[[#This Row],[Input 1]],Table_PI[[#This Row],[Input 2]],Table_PI[[#This Row],[Input 3]],Table_PI[[#This Row],[Input 4]],'Customer Information'!$AR$12,1,ROW()),\"No Rebate\"),\"No Rebate\"),0)","v":0},{"$f":"IF(Table_PI[[#This Row],[Hide:\nFormula Name]]<>\"\",IFERROR(IF(MeasureCalc(Table_PI[[#This Row],[Hide:\nFormula Name]],Table_PI[[#This Row],[Quantity]],Table_PI[[#This Row],[List 1]],Table_PI[[#This Row],[List 2]],Table_PI[[#This Row],[List 3]],Table_PI[[#This Row],[Size]],Table_PI[[#This Row],[Input 1]],Table_PI[[#This Row],[Input 2]],Table_PI[[#This Row],[Input 3]],Table_PI[[#This Row],[Input 4]],'Customer Information'!$AR$12,1,ROW())>0,MeasureCalc(Table_PI[[#This Row],[Hide:\nFormula Name]],Table_PI[[#This Row],[Quantity]],Table_PI[[#This Row],[List 1]],Table_PI[[#This Row],[List 2]],Table_PI[[#This Row],[List 3]],Table_PI[[#This Row],[Size]],Table_PI[[#This Row],[Input 1]],Table_PI[[#This Row],[Input 2]],Table_PI[[#This Row],[Input 3]],Table_PI[[#This Row],[Input 4]],'Customer Information'!$AR$12,2,ROW()),\"No Rebate\"),\"No Rebate\"),0)","v":0},{"$f":"IF(Table_PI[[#This Row],[Hide:\nFormula Name]]<>\"\",IFERROR(IF(MeasureCalc(Table_PI[[#This Row],[Hide:\nFormula Name]],Table_PI[[#This Row],[Quantity]],Table_PI[[#This Row],[List 1]],Table_PI[[#This Row],[List 2]],Table_PI[[#This Row],[List 3]],Table_PI[[#This Row],[Size]],Table_PI[[#This Row],[Input 1]],Table_PI[[#This Row],[Input 2]],Table_PI[[#This Row],[Input 3]],Table_PI[[#This Row],[Input 4]],'Customer Information'!$AR$12,1,ROW())>0,MeasureCalc(Table_PI[[#This Row],[Hide:\nFormula Name]],Table_PI[[#This Row],[Quantity]],Table_PI[[#This Row],[List 1]],Table_PI[[#This Row],[List 2]],Table_PI[[#This Row],[List 3]],Table_PI[[#This Row],[Size]],Table_PI[[#This Row],[Input 1]],Table_PI[[#This Row],[Input 2]],Table_PI[[#This Row],[Input 3]],Table_PI[[#This Row],[Input 4]],'Customer Information'!$AR$12,3,ROW()),\"No Rebate\"),\"No Rebate\"),0)","v":0},{"$f":"IF(Table_PI[[#This Row],[Hide:\nFormula Name]]<>\"\",IFERROR(IF(MeasureCalc(Table_PI[[#This Row],[Hide:\nFormula Name]],Table_PI[[#This Row],[Quantity]],Table_PI[[#This Row],[List 1]],Table_PI[[#This Row],[List 2]],Table_PI[[#This Row],[List 3]],Table_PI[[#This Row],[Size]],Table_PI[[#This Row],[Input 1]],Table_PI[[#This Row],[Input 2]],Table_PI[[#This Row],[Input 3]],Table_PI[[#This Row],[Input 4]],'Customer Information'!$AR$12,1,ROW())>0,MeasureCalc(Table_PI[[#This Row],[Hide:\nFormula Name]],Table_PI[[#This Row],[Quantity]],Table_PI[[#This Row],[List 1]],Table_PI[[#This Row],[List 2]],Table_PI[[#This Row],[List 3]],Table_PI[[#This Row],[Size]],Table_PI[[#This Row],[Input 1]],Table_PI[[#This Row],[Input 2]],Table_PI[[#This Row],[Input 3]],Table_PI[[#This Row],[Input 4]],'Customer Information'!$AR$12,4,ROW()),\"No Rebate\"),\"No Rebate\"),0)","v":0},{"$f":"IF(Table_PI[[#This Row],[Hide:\nFormula Name]]<>\"\",IFERROR(IF(MeasureCalc(Table_PI[[#This Row],[Hide:\nFormula Name]],Table_PI[[#This Row],[Quantity]],Table_PI[[#This Row],[List 1]],Table_PI[[#This Row],[List 2]],Table_PI[[#This Row],[List 3]],Table_PI[[#This Row],[Size]],Table_PI[[#This Row],[Input 1]],Table_PI[[#This Row],[Input 2]],Table_PI[[#This Row],[Input 3]],Table_PI[[#This Row],[Input 4]],'Customer Information'!$AR$12,1,ROW())>0,MeasureCalc(Table_PI[[#This Row],[Hide:\nFormula Name]],Table_PI[[#This Row],[Quantity]],Table_PI[[#This Row],[List 1]],Table_PI[[#This Row],[List 2]],Table_PI[[#This Row],[List 3]],Table_PI[[#This Row],[Size]],Table_PI[[#This Row],[Input 1]],Table_PI[[#This Row],[Input 2]],Table_PI[[#This Row],[Input 3]],Table_PI[[#This Row],[Input 4]],'Customer Information'!$AR$12,5,ROW()),\"No Rebate\"),\"No Rebate\"),0)","v":0},{"$f":"IF(Table_PI[[#This Row],[Hide:\nFormula Name]]<>\"\",IFERROR(IF(MeasureCalc(Table_PI[[#This Row],[Hide:\nFormula Name]],Table_PI[[#This Row],[Quantity]],Table_PI[[#This Row],[List 1]],Table_PI[[#This Row],[List 2]],Table_PI[[#This Row],[List 3]],Table_PI[[#This Row],[Size]],Table_PI[[#This Row],[Input 1]],Table_PI[[#This Row],[Input 2]],Table_PI[[#This Row],[Input 3]],Table_PI[[#This Row],[Input 4]],'Customer Information'!$AR$12,1,ROW())>0,MeasureCalc(Table_PI[[#This Row],[Hide:\nFormula Name]],Table_PI[[#This Row],[Quantity]],Table_PI[[#This Row],[List 1]],Table_PI[[#This Row],[List 2]],Table_PI[[#This Row],[List 3]],Table_PI[[#This Row],[Size]],Table_PI[[#This Row],[Input 1]],Table_PI[[#This Row],[Input 2]],Table_PI[[#This Row],[Input 3]],Table_PI[[#This Row],[Input 4]],'Customer Information'!$AR$12,6,ROW()),\"No Rebate\"),\"No Rebate\"),0)","v":0},{"$f":"IF(Table_PI[[#This Row],[Hide:\nFormula Name]]<>\"\",IFERROR(IF(MeasureCalc(Table_PI[[#This Row],[Hide:\nFormula Name]],Table_PI[[#This Row],[Quantity]],Table_PI[[#This Row],[List 1]],Table_PI[[#This Row],[List 2]],Table_PI[[#This Row],[List 3]],Table_PI[[#This Row],[Size]],Table_PI[[#This Row],[Input 1]],Table_PI[[#This Row],[Input 2]],Table_PI[[#This Row],[Input 3]],Table_PI[[#This Row],[Input 4]],'Customer Information'!$AR$12,1,ROW())>0,MeasureCalc(Table_PI[[#This Row],[Hide:\nFormula Name]],Table_PI[[#This Row],[Quantity]],Table_PI[[#This Row],[List 1]],Table_PI[[#This Row],[List 2]],Table_PI[[#This Row],[List 3]],Table_PI[[#This Row],[Size]],Table_PI[[#This Row],[Input 1]],Table_PI[[#This Row],[Input 2]],Table_PI[[#This Row],[Input 3]],Table_PI[[#This Row],[Input 4]],'Customer Information'!$AR$12,7,ROW()),\"No Rebate\"),\"No Rebate\"),0)","v":0},{"$f":"IF(Table_PI[[#This Row],[Hide:\nFormula Name]]<>\"\",IFERROR(IF(MeasureCalc(Table_PI[[#This Row],[Hide:\nFormula Name]],Table_PI[[#This Row],[Quantity]],Table_PI[[#This Row],[List 1]],Table_PI[[#This Row],[List 2]],Table_PI[[#This Row],[List 3]],Table_PI[[#This Row],[Size]],Table_PI[[#This Row],[Input 1]],Table_PI[[#This Row],[Input 2]],Table_PI[[#This Row],[Input 3]],Table_PI[[#This Row],[Input 4]],'Customer Information'!$AR$12,1,ROW())>0,MeasureCalc(Table_PI[[#This Row],[Hide:\nFormula Name]],Table_PI[[#This Row],[Quantity]],Table_PI[[#This Row],[List 1]],Table_PI[[#This Row],[List 2]],Table_PI[[#This Row],[List 3]],Table_PI[[#This Row],[Size]],Table_PI[[#This Row],[Input 1]],Table_PI[[#This Row],[Input 2]],Table_PI[[#This Row],[Input 3]],Table_PI[[#This Row],[Input 4]],'Customer Information'!$AR$12,8,ROW()),\"No Rebate\"),\"No Rebate\"),0)","v":0},{"$f":"IF(Table_PI[[#This Row],[Hide:\nFormula Name]]<>\"\",IF(AND(Table_PI[[#This Row],[Hide:\nFormula Name]]<>\"\",OR(Table_PI[[#This Row],[Rebate]]>0,Table_PI[[#This Row],[Rebate]]=\"No Rebate\")),TRUE,\"MI: Line Item \" & $A306),\"\")","v":""}]
[{"$f":"IF(Table_PI[[#This Row],[Hide:\nFormula Name]]<>\"\",MAX($A$2:A306)+1,\"\")","v":""},null,null,null,null,null,null,null,null,null,null,null,null,null,null,{"$f":"IFERROR(VLOOKUP(Table_PI[[#This Row],[Measure]],'Equipment Lookups'!$C$3:$D$23,2,FALSE),\"\")","v":""},{"$f":"IF(Table_PI[[#This Row],[Hide:\nFormula Name]]<>\"\",IFERROR(IF(MeasureCalc(Table_PI[[#This Row],[Hide:\nFormula Name]],Table_PI[[#This Row],[Quantity]],Table_PI[[#This Row],[List 1]],Table_PI[[#This Row],[List 2]],Table_PI[[#This Row],[List 3]],Table_PI[[#This Row],[Size]],Table_PI[[#This Row],[Input 1]],Table_PI[[#This Row],[Input 2]],Table_PI[[#This Row],[Input 3]],Table_PI[[#This Row],[Input 4]],'Customer Information'!$AR$12,1,ROW())>0,MeasureCalc(Table_PI[[#This Row],[Hide:\nFormula Name]],Table_PI[[#This Row],[Quantity]],Table_PI[[#This Row],[List 1]],Table_PI[[#This Row],[List 2]],Table_PI[[#This Row],[List 3]],Table_PI[[#This Row],[Size]],Table_PI[[#This Row],[Input 1]],Table_PI[[#This Row],[Input 2]],Table_PI[[#This Row],[Input 3]],Table_PI[[#This Row],[Input 4]],'Customer Information'!$AR$12,1,ROW()),\"No Rebate\"),\"No Rebate\"),0)","v":0},{"$f":"IF(Table_PI[[#This Row],[Hide:\nFormula Name]]<>\"\",IFERROR(IF(MeasureCalc(Table_PI[[#This Row],[Hide:\nFormula Name]],Table_PI[[#This Row],[Quantity]],Table_PI[[#This Row],[List 1]],Table_PI[[#This Row],[List 2]],Table_PI[[#This Row],[List 3]],Table_PI[[#This Row],[Size]],Table_PI[[#This Row],[Input 1]],Table_PI[[#This Row],[Input 2]],Table_PI[[#This Row],[Input 3]],Table_PI[[#This Row],[Input 4]],'Customer Information'!$AR$12,1,ROW())>0,MeasureCalc(Table_PI[[#This Row],[Hide:\nFormula Name]],Table_PI[[#This Row],[Quantity]],Table_PI[[#This Row],[List 1]],Table_PI[[#This Row],[List 2]],Table_PI[[#This Row],[List 3]],Table_PI[[#This Row],[Size]],Table_PI[[#This Row],[Input 1]],Table_PI[[#This Row],[Input 2]],Table_PI[[#This Row],[Input 3]],Table_PI[[#This Row],[Input 4]],'Customer Information'!$AR$12,2,ROW()),\"No Rebate\"),\"No Rebate\"),0)","v":0},{"$f":"IF(Table_PI[[#This Row],[Hide:\nFormula Name]]<>\"\",IFERROR(IF(MeasureCalc(Table_PI[[#This Row],[Hide:\nFormula Name]],Table_PI[[#This Row],[Quantity]],Table_PI[[#This Row],[List 1]],Table_PI[[#This Row],[List 2]],Table_PI[[#This Row],[List 3]],Table_PI[[#This Row],[Size]],Table_PI[[#This Row],[Input 1]],Table_PI[[#This Row],[Input 2]],Table_PI[[#This Row],[Input 3]],Table_PI[[#This Row],[Input 4]],'Customer Information'!$AR$12,1,ROW())>0,MeasureCalc(Table_PI[[#This Row],[Hide:\nFormula Name]],Table_PI[[#This Row],[Quantity]],Table_PI[[#This Row],[List 1]],Table_PI[[#This Row],[List 2]],Table_PI[[#This Row],[List 3]],Table_PI[[#This Row],[Size]],Table_PI[[#This Row],[Input 1]],Table_PI[[#This Row],[Input 2]],Table_PI[[#This Row],[Input 3]],Table_PI[[#This Row],[Input 4]],'Customer Information'!$AR$12,3,ROW()),\"No Rebate\"),\"No Rebate\"),0)","v":0},{"$f":"IF(Table_PI[[#This Row],[Hide:\nFormula Name]]<>\"\",IFERROR(IF(MeasureCalc(Table_PI[[#This Row],[Hide:\nFormula Name]],Table_PI[[#This Row],[Quantity]],Table_PI[[#This Row],[List 1]],Table_PI[[#This Row],[List 2]],Table_PI[[#This Row],[List 3]],Table_PI[[#This Row],[Size]],Table_PI[[#This Row],[Input 1]],Table_PI[[#This Row],[Input 2]],Table_PI[[#This Row],[Input 3]],Table_PI[[#This Row],[Input 4]],'Customer Information'!$AR$12,1,ROW())>0,MeasureCalc(Table_PI[[#This Row],[Hide:\nFormula Name]],Table_PI[[#This Row],[Quantity]],Table_PI[[#This Row],[List 1]],Table_PI[[#This Row],[List 2]],Table_PI[[#This Row],[List 3]],Table_PI[[#This Row],[Size]],Table_PI[[#This Row],[Input 1]],Table_PI[[#This Row],[Input 2]],Table_PI[[#This Row],[Input 3]],Table_PI[[#This Row],[Input 4]],'Customer Information'!$AR$12,4,ROW()),\"No Rebate\"),\"No Rebate\"),0)","v":0},{"$f":"IF(Table_PI[[#This Row],[Hide:\nFormula Name]]<>\"\",IFERROR(IF(MeasureCalc(Table_PI[[#This Row],[Hide:\nFormula Name]],Table_PI[[#This Row],[Quantity]],Table_PI[[#This Row],[List 1]],Table_PI[[#This Row],[List 2]],Table_PI[[#This Row],[List 3]],Table_PI[[#This Row],[Size]],Table_PI[[#This Row],[Input 1]],Table_PI[[#This Row],[Input 2]],Table_PI[[#This Row],[Input 3]],Table_PI[[#This Row],[Input 4]],'Customer Information'!$AR$12,1,ROW())>0,MeasureCalc(Table_PI[[#This Row],[Hide:\nFormula Name]],Table_PI[[#This Row],[Quantity]],Table_PI[[#This Row],[List 1]],Table_PI[[#This Row],[List 2]],Table_PI[[#This Row],[List 3]],Table_PI[[#This Row],[Size]],Table_PI[[#This Row],[Input 1]],Table_PI[[#This Row],[Input 2]],Table_PI[[#This Row],[Input 3]],Table_PI[[#This Row],[Input 4]],'Customer Information'!$AR$12,5,ROW()),\"No Rebate\"),\"No Rebate\"),0)","v":0},{"$f":"IF(Table_PI[[#This Row],[Hide:\nFormula Name]]<>\"\",IFERROR(IF(MeasureCalc(Table_PI[[#This Row],[Hide:\nFormula Name]],Table_PI[[#This Row],[Quantity]],Table_PI[[#This Row],[List 1]],Table_PI[[#This Row],[List 2]],Table_PI[[#This Row],[List 3]],Table_PI[[#This Row],[Size]],Table_PI[[#This Row],[Input 1]],Table_PI[[#This Row],[Input 2]],Table_PI[[#This Row],[Input 3]],Table_PI[[#This Row],[Input 4]],'Customer Information'!$AR$12,1,ROW())>0,MeasureCalc(Table_PI[[#This Row],[Hide:\nFormula Name]],Table_PI[[#This Row],[Quantity]],Table_PI[[#This Row],[List 1]],Table_PI[[#This Row],[List 2]],Table_PI[[#This Row],[List 3]],Table_PI[[#This Row],[Size]],Table_PI[[#This Row],[Input 1]],Table_PI[[#This Row],[Input 2]],Table_PI[[#This Row],[Input 3]],Table_PI[[#This Row],[Input 4]],'Customer Information'!$AR$12,6,ROW()),\"No Rebate\"),\"No Rebate\"),0)","v":0},{"$f":"IF(Table_PI[[#This Row],[Hide:\nFormula Name]]<>\"\",IFERROR(IF(MeasureCalc(Table_PI[[#This Row],[Hide:\nFormula Name]],Table_PI[[#This Row],[Quantity]],Table_PI[[#This Row],[List 1]],Table_PI[[#This Row],[List 2]],Table_PI[[#This Row],[List 3]],Table_PI[[#This Row],[Size]],Table_PI[[#This Row],[Input 1]],Table_PI[[#This Row],[Input 2]],Table_PI[[#This Row],[Input 3]],Table_PI[[#This Row],[Input 4]],'Customer Information'!$AR$12,1,ROW())>0,MeasureCalc(Table_PI[[#This Row],[Hide:\nFormula Name]],Table_PI[[#This Row],[Quantity]],Table_PI[[#This Row],[List 1]],Table_PI[[#This Row],[List 2]],Table_PI[[#This Row],[List 3]],Table_PI[[#This Row],[Size]],Table_PI[[#This Row],[Input 1]],Table_PI[[#This Row],[Input 2]],Table_PI[[#This Row],[Input 3]],Table_PI[[#This Row],[Input 4]],'Customer Information'!$AR$12,7,ROW()),\"No Rebate\"),\"No Rebate\"),0)","v":0},{"$f":"IF(Table_PI[[#This Row],[Hide:\nFormula Name]]<>\"\",IFERROR(IF(MeasureCalc(Table_PI[[#This Row],[Hide:\nFormula Name]],Table_PI[[#This Row],[Quantity]],Table_PI[[#This Row],[List 1]],Table_PI[[#This Row],[List 2]],Table_PI[[#This Row],[List 3]],Table_PI[[#This Row],[Size]],Table_PI[[#This Row],[Input 1]],Table_PI[[#This Row],[Input 2]],Table_PI[[#This Row],[Input 3]],Table_PI[[#This Row],[Input 4]],'Customer Information'!$AR$12,1,ROW())>0,MeasureCalc(Table_PI[[#This Row],[Hide:\nFormula Name]],Table_PI[[#This Row],[Quantity]],Table_PI[[#This Row],[List 1]],Table_PI[[#This Row],[List 2]],Table_PI[[#This Row],[List 3]],Table_PI[[#This Row],[Size]],Table_PI[[#This Row],[Input 1]],Table_PI[[#This Row],[Input 2]],Table_PI[[#This Row],[Input 3]],Table_PI[[#This Row],[Input 4]],'Customer Information'!$AR$12,8,ROW()),\"No Rebate\"),\"No Rebate\"),0)","v":0},{"$f":"IF(Table_PI[[#This Row],[Hide:\nFormula Name]]<>\"\",IF(AND(Table_PI[[#This Row],[Hide:\nFormula Name]]<>\"\",OR(Table_PI[[#This Row],[Rebate]]>0,Table_PI[[#This Row],[Rebate]]=\"No Rebate\")),TRUE,\"MI: Line Item \" & $A307),\"\")","v":""}]
[{"$f":"IF(Table_PI[[#This Row],[Hide:\nFormula Name]]<>\"\",MAX($A$2:A307)+1,\"\")","v":""},null,null,null,null,null,null,null,null,null,null,null,null,null,null,{"$f":"IFERROR(VLOOKUP(Table_PI[[#This Row],[Measure]],'Equipment Lookups'!$C$3:$D$23,2,FALSE),\"\")","v":""},{"$f":"IF(Table_PI[[#This Row],[Hide:\nFormula Name]]<>\"\",IFERROR(IF(MeasureCalc(Table_PI[[#This Row],[Hide:\nFormula Name]],Table_PI[[#This Row],[Quantity]],Table_PI[[#This Row],[List 1]],Table_PI[[#This Row],[List 2]],Table_PI[[#This Row],[List 3]],Table_PI[[#This Row],[Size]],Table_PI[[#This Row],[Input 1]],Table_PI[[#This Row],[Input 2]],Table_PI[[#This Row],[Input 3]],Table_PI[[#This Row],[Input 4]],'Customer Information'!$AR$12,1,ROW())>0,MeasureCalc(Table_PI[[#This Row],[Hide:\nFormula Name]],Table_PI[[#This Row],[Quantity]],Table_PI[[#This Row],[List 1]],Table_PI[[#This Row],[List 2]],Table_PI[[#This Row],[List 3]],Table_PI[[#This Row],[Size]],Table_PI[[#This Row],[Input 1]],Table_PI[[#This Row],[Input 2]],Table_PI[[#This Row],[Input 3]],Table_PI[[#This Row],[Input 4]],'Customer Information'!$AR$12,1,ROW()),\"No Rebate\"),\"No Rebate\"),0)","v":0},{"$f":"IF(Table_PI[[#This Row],[Hide:\nFormula Name]]<>\"\",IFERROR(IF(MeasureCalc(Table_PI[[#This Row],[Hide:\nFormula Name]],Table_PI[[#This Row],[Quantity]],Table_PI[[#This Row],[List 1]],Table_PI[[#This Row],[List 2]],Table_PI[[#This Row],[List 3]],Table_PI[[#This Row],[Size]],Table_PI[[#This Row],[Input 1]],Table_PI[[#This Row],[Input 2]],Table_PI[[#This Row],[Input 3]],Table_PI[[#This Row],[Input 4]],'Customer Information'!$AR$12,1,ROW())>0,MeasureCalc(Table_PI[[#This Row],[Hide:\nFormula Name]],Table_PI[[#This Row],[Quantity]],Table_PI[[#This Row],[List 1]],Table_PI[[#This Row],[List 2]],Table_PI[[#This Row],[List 3]],Table_PI[[#This Row],[Size]],Table_PI[[#This Row],[Input 1]],Table_PI[[#This Row],[Input 2]],Table_PI[[#This Row],[Input 3]],Table_PI[[#This Row],[Input 4]],'Customer Information'!$AR$12,2,ROW()),\"No Rebate\"),\"No Rebate\"),0)","v":0},{"$f":"IF(Table_PI[[#This Row],[Hide:\nFormula Name]]<>\"\",IFERROR(IF(MeasureCalc(Table_PI[[#This Row],[Hide:\nFormula Name]],Table_PI[[#This Row],[Quantity]],Table_PI[[#This Row],[List 1]],Table_PI[[#This Row],[List 2]],Table_PI[[#This Row],[List 3]],Table_PI[[#This Row],[Size]],Table_PI[[#This Row],[Input 1]],Table_PI[[#This Row],[Input 2]],Table_PI[[#This Row],[Input 3]],Table_PI[[#This Row],[Input 4]],'Customer Information'!$AR$12,1,ROW())>0,MeasureCalc(Table_PI[[#This Row],[Hide:\nFormula Name]],Table_PI[[#This Row],[Quantity]],Table_PI[[#This Row],[List 1]],Table_PI[[#This Row],[List 2]],Table_PI[[#This Row],[List 3]],Table_PI[[#This Row],[Size]],Table_PI[[#This Row],[Input 1]],Table_PI[[#This Row],[Input 2]],Table_PI[[#This Row],[Input 3]],Table_PI[[#This Row],[Input 4]],'Customer Information'!$AR$12,3,ROW()),\"No Rebate\"),\"No Rebate\"),0)","v":0},{"$f":"IF(Table_PI[[#This Row],[Hide:\nFormula Name]]<>\"\",IFERROR(IF(MeasureCalc(Table_PI[[#This Row],[Hide:\nFormula Name]],Table_PI[[#This Row],[Quantity]],Table_PI[[#This Row],[List 1]],Table_PI[[#This Row],[List 2]],Table_PI[[#This Row],[List 3]],Table_PI[[#This Row],[Size]],Table_PI[[#This Row],[Input 1]],Table_PI[[#This Row],[Input 2]],Table_PI[[#This Row],[Input 3]],Table_PI[[#This Row],[Input 4]],'Customer Information'!$AR$12,1,ROW())>0,MeasureCalc(Table_PI[[#This Row],[Hide:\nFormula Name]],Table_PI[[#This Row],[Quantity]],Table_PI[[#This Row],[List 1]],Table_PI[[#This Row],[List 2]],Table_PI[[#This Row],[List 3]],Table_PI[[#This Row],[Size]],Table_PI[[#This Row],[Input 1]],Table_PI[[#This Row],[Input 2]],Table_PI[[#This Row],[Input 3]],Table_PI[[#This Row],[Input 4]],'Customer Information'!$AR$12,4,ROW()),\"No Rebate\"),\"No Rebate\"),0)","v":0},{"$f":"IF(Table_PI[[#This Row],[Hide:\nFormula Name]]<>\"\",IFERROR(IF(MeasureCalc(Table_PI[[#This Row],[Hide:\nFormula Name]],Table_PI[[#This Row],[Quantity]],Table_PI[[#This Row],[List 1]],Table_PI[[#This Row],[List 2]],Table_PI[[#This Row],[List 3]],Table_PI[[#This Row],[Size]],Table_PI[[#This Row],[Input 1]],Table_PI[[#This Row],[Input 2]],Table_PI[[#This Row],[Input 3]],Table_PI[[#This Row],[Input 4]],'Customer Information'!$AR$12,1,ROW())>0,MeasureCalc(Table_PI[[#This Row],[Hide:\nFormula Name]],Table_PI[[#This Row],[Quantity]],Table_PI[[#This Row],[List 1]],Table_PI[[#This Row],[List 2]],Table_PI[[#This Row],[List 3]],Table_PI[[#This Row],[Size]],Table_PI[[#This Row],[Input 1]],Table_PI[[#This Row],[Input 2]],Table_PI[[#This Row],[Input 3]],Table_PI[[#This Row],[Input 4]],'Customer Information'!$AR$12,5,ROW()),\"No Rebate\"),\"No Rebate\"),0)","v":0},{"$f":"IF(Table_PI[[#This Row],[Hide:\nFormula Name]]<>\"\",IFERROR(IF(MeasureCalc(Table_PI[[#This Row],[Hide:\nFormula Name]],Table_PI[[#This Row],[Quantity]],Table_PI[[#This Row],[List 1]],Table_PI[[#This Row],[List 2]],Table_PI[[#This Row],[List 3]],Table_PI[[#This Row],[Size]],Table_PI[[#This Row],[Input 1]],Table_PI[[#This Row],[Input 2]],Table_PI[[#This Row],[Input 3]],Table_PI[[#This Row],[Input 4]],'Customer Information'!$AR$12,1,ROW())>0,MeasureCalc(Table_PI[[#This Row],[Hide:\nFormula Name]],Table_PI[[#This Row],[Quantity]],Table_PI[[#This Row],[List 1]],Table_PI[[#This Row],[List 2]],Table_PI[[#This Row],[List 3]],Table_PI[[#This Row],[Size]],Table_PI[[#This Row],[Input 1]],Table_PI[[#This Row],[Input 2]],Table_PI[[#This Row],[Input 3]],Table_PI[[#This Row],[Input 4]],'Customer Information'!$AR$12,6,ROW()),\"No Rebate\"),\"No Rebate\"),0)","v":0},{"$f":"IF(Table_PI[[#This Row],[Hide:\nFormula Name]]<>\"\",IFERROR(IF(MeasureCalc(Table_PI[[#This Row],[Hide:\nFormula Name]],Table_PI[[#This Row],[Quantity]],Table_PI[[#This Row],[List 1]],Table_PI[[#This Row],[List 2]],Table_PI[[#This Row],[List 3]],Table_PI[[#This Row],[Size]],Table_PI[[#This Row],[Input 1]],Table_PI[[#This Row],[Input 2]],Table_PI[[#This Row],[Input 3]],Table_PI[[#This Row],[Input 4]],'Customer Information'!$AR$12,1,ROW())>0,MeasureCalc(Table_PI[[#This Row],[Hide:\nFormula Name]],Table_PI[[#This Row],[Quantity]],Table_PI[[#This Row],[List 1]],Table_PI[[#This Row],[List 2]],Table_PI[[#This Row],[List 3]],Table_PI[[#This Row],[Size]],Table_PI[[#This Row],[Input 1]],Table_PI[[#This Row],[Input 2]],Table_PI[[#This Row],[Input 3]],Table_PI[[#This Row],[Input 4]],'Customer Information'!$AR$12,7,ROW()),\"No Rebate\"),\"No Rebate\"),0)","v":0},{"$f":"IF(Table_PI[[#This Row],[Hide:\nFormula Name]]<>\"\",IFERROR(IF(MeasureCalc(Table_PI[[#This Row],[Hide:\nFormula Name]],Table_PI[[#This Row],[Quantity]],Table_PI[[#This Row],[List 1]],Table_PI[[#This Row],[List 2]],Table_PI[[#This Row],[List 3]],Table_PI[[#This Row],[Size]],Table_PI[[#This Row],[Input 1]],Table_PI[[#This Row],[Input 2]],Table_PI[[#This Row],[Input 3]],Table_PI[[#This Row],[Input 4]],'Customer Information'!$AR$12,1,ROW())>0,MeasureCalc(Table_PI[[#This Row],[Hide:\nFormula Name]],Table_PI[[#This Row],[Quantity]],Table_PI[[#This Row],[List 1]],Table_PI[[#This Row],[List 2]],Table_PI[[#This Row],[List 3]],Table_PI[[#This Row],[Size]],Table_PI[[#This Row],[Input 1]],Table_PI[[#This Row],[Input 2]],Table_PI[[#This Row],[Input 3]],Table_PI[[#This Row],[Input 4]],'Customer Information'!$AR$12,8,ROW()),\"No Rebate\"),\"No Rebate\"),0)","v":0},{"$f":"IF(Table_PI[[#This Row],[Hide:\nFormula Name]]<>\"\",IF(AND(Table_PI[[#This Row],[Hide:\nFormula Name]]<>\"\",OR(Table_PI[[#This Row],[Rebate]]>0,Table_PI[[#This Row],[Rebate]]=\"No Rebate\")),TRUE,\"MI: Line Item \" & $A308),\"\")","v":""}]
[{"$f":"IF(Table_PI[[#This Row],[Hide:\nFormula Name]]<>\"\",MAX($A$2:A308)+1,\"\")","v":""},null,null,null,null,null,null,null,null,null,null,null,null,null,null,{"$f":"IFERROR(VLOOKUP(Table_PI[[#This Row],[Measure]],'Equipment Lookups'!$C$3:$D$23,2,FALSE),\"\")","v":""},{"$f":"IF(Table_PI[[#This Row],[Hide:\nFormula Name]]<>\"\",IFERROR(IF(MeasureCalc(Table_PI[[#This Row],[Hide:\nFormula Name]],Table_PI[[#This Row],[Quantity]],Table_PI[[#This Row],[List 1]],Table_PI[[#This Row],[List 2]],Table_PI[[#This Row],[List 3]],Table_PI[[#This Row],[Size]],Table_PI[[#This Row],[Input 1]],Table_PI[[#This Row],[Input 2]],Table_PI[[#This Row],[Input 3]],Table_PI[[#This Row],[Input 4]],'Customer Information'!$AR$12,1,ROW())>0,MeasureCalc(Table_PI[[#This Row],[Hide:\nFormula Name]],Table_PI[[#This Row],[Quantity]],Table_PI[[#This Row],[List 1]],Table_PI[[#This Row],[List 2]],Table_PI[[#This Row],[List 3]],Table_PI[[#This Row],[Size]],Table_PI[[#This Row],[Input 1]],Table_PI[[#This Row],[Input 2]],Table_PI[[#This Row],[Input 3]],Table_PI[[#This Row],[Input 4]],'Customer Information'!$AR$12,1,ROW()),\"No Rebate\"),\"No Rebate\"),0)","v":0},{"$f":"IF(Table_PI[[#This Row],[Hide:\nFormula Name]]<>\"\",IFERROR(IF(MeasureCalc(Table_PI[[#This Row],[Hide:\nFormula Name]],Table_PI[[#This Row],[Quantity]],Table_PI[[#This Row],[List 1]],Table_PI[[#This Row],[List 2]],Table_PI[[#This Row],[List 3]],Table_PI[[#This Row],[Size]],Table_PI[[#This Row],[Input 1]],Table_PI[[#This Row],[Input 2]],Table_PI[[#This Row],[Input 3]],Table_PI[[#This Row],[Input 4]],'Customer Information'!$AR$12,1,ROW())>0,MeasureCalc(Table_PI[[#This Row],[Hide:\nFormula Name]],Table_PI[[#This Row],[Quantity]],Table_PI[[#This Row],[List 1]],Table_PI[[#This Row],[List 2]],Table_PI[[#This Row],[List 3]],Table_PI[[#This Row],[Size]],Table_PI[[#This Row],[Input 1]],Table_PI[[#This Row],[Input 2]],Table_PI[[#This Row],[Input 3]],Table_PI[[#This Row],[Input 4]],'Customer Information'!$AR$12,2,ROW()),\"No Rebate\"),\"No Rebate\"),0)","v":0},{"$f":"IF(Table_PI[[#This Row],[Hide:\nFormula Name]]<>\"\",IFERROR(IF(MeasureCalc(Table_PI[[#This Row],[Hide:\nFormula Name]],Table_PI[[#This Row],[Quantity]],Table_PI[[#This Row],[List 1]],Table_PI[[#This Row],[List 2]],Table_PI[[#This Row],[List 3]],Table_PI[[#This Row],[Size]],Table_PI[[#This Row],[Input 1]],Table_PI[[#This Row],[Input 2]],Table_PI[[#This Row],[Input 3]],Table_PI[[#This Row],[Input 4]],'Customer Information'!$AR$12,1,ROW())>0,MeasureCalc(Table_PI[[#This Row],[Hide:\nFormula Name]],Table_PI[[#This Row],[Quantity]],Table_PI[[#This Row],[List 1]],Table_PI[[#This Row],[List 2]],Table_PI[[#This Row],[List 3]],Table_PI[[#This Row],[Size]],Table_PI[[#This Row],[Input 1]],Table_PI[[#This Row],[Input 2]],Table_PI[[#This Row],[Input 3]],Table_PI[[#This Row],[Input 4]],'Customer Information'!$AR$12,3,ROW()),\"No Rebate\"),\"No Rebate\"),0)","v":0},{"$f":"IF(Table_PI[[#This Row],[Hide:\nFormula Name]]<>\"\",IFERROR(IF(MeasureCalc(Table_PI[[#This Row],[Hide:\nFormula Name]],Table_PI[[#This Row],[Quantity]],Table_PI[[#This Row],[List 1]],Table_PI[[#This Row],[List 2]],Table_PI[[#This Row],[List 3]],Table_PI[[#This Row],[Size]],Table_PI[[#This Row],[Input 1]],Table_PI[[#This Row],[Input 2]],Table_PI[[#This Row],[Input 3]],Table_PI[[#This Row],[Input 4]],'Customer Information'!$AR$12,1,ROW())>0,MeasureCalc(Table_PI[[#This Row],[Hide:\nFormula Name]],Table_PI[[#This Row],[Quantity]],Table_PI[[#This Row],[List 1]],Table_PI[[#This Row],[List 2]],Table_PI[[#This Row],[List 3]],Table_PI[[#This Row],[Size]],Table_PI[[#This Row],[Input 1]],Table_PI[[#This Row],[Input 2]],Table_PI[[#This Row],[Input 3]],Table_PI[[#This Row],[Input 4]],'Customer Information'!$AR$12,4,ROW()),\"No Rebate\"),\"No Rebate\"),0)","v":0},{"$f":"IF(Table_PI[[#This Row],[Hide:\nFormula Name]]<>\"\",IFERROR(IF(MeasureCalc(Table_PI[[#This Row],[Hide:\nFormula Name]],Table_PI[[#This Row],[Quantity]],Table_PI[[#This Row],[List 1]],Table_PI[[#This Row],[List 2]],Table_PI[[#This Row],[List 3]],Table_PI[[#This Row],[Size]],Table_PI[[#This Row],[Input 1]],Table_PI[[#This Row],[Input 2]],Table_PI[[#This Row],[Input 3]],Table_PI[[#This Row],[Input 4]],'Customer Information'!$AR$12,1,ROW())>0,MeasureCalc(Table_PI[[#This Row],[Hide:\nFormula Name]],Table_PI[[#This Row],[Quantity]],Table_PI[[#This Row],[List 1]],Table_PI[[#This Row],[List 2]],Table_PI[[#This Row],[List 3]],Table_PI[[#This Row],[Size]],Table_PI[[#This Row],[Input 1]],Table_PI[[#This Row],[Input 2]],Table_PI[[#This Row],[Input 3]],Table_PI[[#This Row],[Input 4]],'Customer Information'!$AR$12,5,ROW()),\"No Rebate\"),\"No Rebate\"),0)","v":0},{"$f":"IF(Table_PI[[#This Row],[Hide:\nFormula Name]]<>\"\",IFERROR(IF(MeasureCalc(Table_PI[[#This Row],[Hide:\nFormula Name]],Table_PI[[#This Row],[Quantity]],Table_PI[[#This Row],[List 1]],Table_PI[[#This Row],[List 2]],Table_PI[[#This Row],[List 3]],Table_PI[[#This Row],[Size]],Table_PI[[#This Row],[Input 1]],Table_PI[[#This Row],[Input 2]],Table_PI[[#This Row],[Input 3]],Table_PI[[#This Row],[Input 4]],'Customer Information'!$AR$12,1,ROW())>0,MeasureCalc(Table_PI[[#This Row],[Hide:\nFormula Name]],Table_PI[[#This Row],[Quantity]],Table_PI[[#This Row],[List 1]],Table_PI[[#This Row],[List 2]],Table_PI[[#This Row],[List 3]],Table_PI[[#This Row],[Size]],Table_PI[[#This Row],[Input 1]],Table_PI[[#This Row],[Input 2]],Table_PI[[#This Row],[Input 3]],Table_PI[[#This Row],[Input 4]],'Customer Information'!$AR$12,6,ROW()),\"No Rebate\"),\"No Rebate\"),0)","v":0},{"$f":"IF(Table_PI[[#This Row],[Hide:\nFormula Name]]<>\"\",IFERROR(IF(MeasureCalc(Table_PI[[#This Row],[Hide:\nFormula Name]],Table_PI[[#This Row],[Quantity]],Table_PI[[#This Row],[List 1]],Table_PI[[#This Row],[List 2]],Table_PI[[#This Row],[List 3]],Table_PI[[#This Row],[Size]],Table_PI[[#This Row],[Input 1]],Table_PI[[#This Row],[Input 2]],Table_PI[[#This Row],[Input 3]],Table_PI[[#This Row],[Input 4]],'Customer Information'!$AR$12,1,ROW())>0,MeasureCalc(Table_PI[[#This Row],[Hide:\nFormula Name]],Table_PI[[#This Row],[Quantity]],Table_PI[[#This Row],[List 1]],Table_PI[[#This Row],[List 2]],Table_PI[[#This Row],[List 3]],Table_PI[[#This Row],[Size]],Table_PI[[#This Row],[Input 1]],Table_PI[[#This Row],[Input 2]],Table_PI[[#This Row],[Input 3]],Table_PI[[#This Row],[Input 4]],'Customer Information'!$AR$12,7,ROW()),\"No Rebate\"),\"No Rebate\"),0)","v":0},{"$f":"IF(Table_PI[[#This Row],[Hide:\nFormula Name]]<>\"\",IFERROR(IF(MeasureCalc(Table_PI[[#This Row],[Hide:\nFormula Name]],Table_PI[[#This Row],[Quantity]],Table_PI[[#This Row],[List 1]],Table_PI[[#This Row],[List 2]],Table_PI[[#This Row],[List 3]],Table_PI[[#This Row],[Size]],Table_PI[[#This Row],[Input 1]],Table_PI[[#This Row],[Input 2]],Table_PI[[#This Row],[Input 3]],Table_PI[[#This Row],[Input 4]],'Customer Information'!$AR$12,1,ROW())>0,MeasureCalc(Table_PI[[#This Row],[Hide:\nFormula Name]],Table_PI[[#This Row],[Quantity]],Table_PI[[#This Row],[List 1]],Table_PI[[#This Row],[List 2]],Table_PI[[#This Row],[List 3]],Table_PI[[#This Row],[Size]],Table_PI[[#This Row],[Input 1]],Table_PI[[#This Row],[Input 2]],Table_PI[[#This Row],[Input 3]],Table_PI[[#This Row],[Input 4]],'Customer Information'!$AR$12,8,ROW()),\"No Rebate\"),\"No Rebate\"),0)","v":0},{"$f":"IF(Table_PI[[#This Row],[Hide:\nFormula Name]]<>\"\",IF(AND(Table_PI[[#This Row],[Hide:\nFormula Name]]<>\"\",OR(Table_PI[[#This Row],[Rebate]]>0,Table_PI[[#This Row],[Rebate]]=\"No Rebate\")),TRUE,\"MI: Line Item \" & $A309),\"\")","v":""}]
[{"$f":"IF(Table_PI[[#This Row],[Hide:\nFormula Name]]<>\"\",MAX($A$2:A309)+1,\"\")","v":""},null,null,null,null,null,null,null,null,null,null,null,null,null,null,{"$f":"IFERROR(VLOOKUP(Table_PI[[#This Row],[Measure]],'Equipment Lookups'!$C$3:$D$23,2,FALSE),\"\")","v":""},{"$f":"IF(Table_PI[[#This Row],[Hide:\nFormula Name]]<>\"\",IFERROR(IF(MeasureCalc(Table_PI[[#This Row],[Hide:\nFormula Name]],Table_PI[[#This Row],[Quantity]],Table_PI[[#This Row],[List 1]],Table_PI[[#This Row],[List 2]],Table_PI[[#This Row],[List 3]],Table_PI[[#This Row],[Size]],Table_PI[[#This Row],[Input 1]],Table_PI[[#This Row],[Input 2]],Table_PI[[#This Row],[Input 3]],Table_PI[[#This Row],[Input 4]],'Customer Information'!$AR$12,1,ROW())>0,MeasureCalc(Table_PI[[#This Row],[Hide:\nFormula Name]],Table_PI[[#This Row],[Quantity]],Table_PI[[#This Row],[List 1]],Table_PI[[#This Row],[List 2]],Table_PI[[#This Row],[List 3]],Table_PI[[#This Row],[Size]],Table_PI[[#This Row],[Input 1]],Table_PI[[#This Row],[Input 2]],Table_PI[[#This Row],[Input 3]],Table_PI[[#This Row],[Input 4]],'Customer Information'!$AR$12,1,ROW()),\"No Rebate\"),\"No Rebate\"),0)","v":0},{"$f":"IF(Table_PI[[#This Row],[Hide:\nFormula Name]]<>\"\",IFERROR(IF(MeasureCalc(Table_PI[[#This Row],[Hide:\nFormula Name]],Table_PI[[#This Row],[Quantity]],Table_PI[[#This Row],[List 1]],Table_PI[[#This Row],[List 2]],Table_PI[[#This Row],[List 3]],Table_PI[[#This Row],[Size]],Table_PI[[#This Row],[Input 1]],Table_PI[[#This Row],[Input 2]],Table_PI[[#This Row],[Input 3]],Table_PI[[#This Row],[Input 4]],'Customer Information'!$AR$12,1,ROW())>0,MeasureCalc(Table_PI[[#This Row],[Hide:\nFormula Name]],Table_PI[[#This Row],[Quantity]],Table_PI[[#This Row],[List 1]],Table_PI[[#This Row],[List 2]],Table_PI[[#This Row],[List 3]],Table_PI[[#This Row],[Size]],Table_PI[[#This Row],[Input 1]],Table_PI[[#This Row],[Input 2]],Table_PI[[#This Row],[Input 3]],Table_PI[[#This Row],[Input 4]],'Customer Information'!$AR$12,2,ROW()),\"No Rebate\"),\"No Rebate\"),0)","v":0},{"$f":"IF(Table_PI[[#This Row],[Hide:\nFormula Name]]<>\"\",IFERROR(IF(MeasureCalc(Table_PI[[#This Row],[Hide:\nFormula Name]],Table_PI[[#This Row],[Quantity]],Table_PI[[#This Row],[List 1]],Table_PI[[#This Row],[List 2]],Table_PI[[#This Row],[List 3]],Table_PI[[#This Row],[Size]],Table_PI[[#This Row],[Input 1]],Table_PI[[#This Row],[Input 2]],Table_PI[[#This Row],[Input 3]],Table_PI[[#This Row],[Input 4]],'Customer Information'!$AR$12,1,ROW())>0,MeasureCalc(Table_PI[[#This Row],[Hide:\nFormula Name]],Table_PI[[#This Row],[Quantity]],Table_PI[[#This Row],[List 1]],Table_PI[[#This Row],[List 2]],Table_PI[[#This Row],[List 3]],Table_PI[[#This Row],[Size]],Table_PI[[#This Row],[Input 1]],Table_PI[[#This Row],[Input 2]],Table_PI[[#This Row],[Input 3]],Table_PI[[#This Row],[Input 4]],'Customer Information'!$AR$12,3,ROW()),\"No Rebate\"),\"No Rebate\"),0)","v":0},{"$f":"IF(Table_PI[[#This Row],[Hide:\nFormula Name]]<>\"\",IFERROR(IF(MeasureCalc(Table_PI[[#This Row],[Hide:\nFormula Name]],Table_PI[[#This Row],[Quantity]],Table_PI[[#This Row],[List 1]],Table_PI[[#This Row],[List 2]],Table_PI[[#This Row],[List 3]],Table_PI[[#This Row],[Size]],Table_PI[[#This Row],[Input 1]],Table_PI[[#This Row],[Input 2]],Table_PI[[#This Row],[Input 3]],Table_PI[[#This Row],[Input 4]],'Customer Information'!$AR$12,1,ROW())>0,MeasureCalc(Table_PI[[#This Row],[Hide:\nFormula Name]],Table_PI[[#This Row],[Quantity]],Table_PI[[#This Row],[List 1]],Table_PI[[#This Row],[List 2]],Table_PI[[#This Row],[List 3]],Table_PI[[#This Row],[Size]],Table_PI[[#This Row],[Input 1]],Table_PI[[#This Row],[Input 2]],Table_PI[[#This Row],[Input 3]],Table_PI[[#This Row],[Input 4]],'Customer Information'!$AR$12,4,ROW()),\"No Rebate\"),\"No Rebate\"),0)","v":0},{"$f":"IF(Table_PI[[#This Row],[Hide:\nFormula Name]]<>\"\",IFERROR(IF(MeasureCalc(Table_PI[[#This Row],[Hide:\nFormula Name]],Table_PI[[#This Row],[Quantity]],Table_PI[[#This Row],[List 1]],Table_PI[[#This Row],[List 2]],Table_PI[[#This Row],[List 3]],Table_PI[[#This Row],[Size]],Table_PI[[#This Row],[Input 1]],Table_PI[[#This Row],[Input 2]],Table_PI[[#This Row],[Input 3]],Table_PI[[#This Row],[Input 4]],'Customer Information'!$AR$12,1,ROW())>0,MeasureCalc(Table_PI[[#This Row],[Hide:\nFormula Name]],Table_PI[[#This Row],[Quantity]],Table_PI[[#This Row],[List 1]],Table_PI[[#This Row],[List 2]],Table_PI[[#This Row],[List 3]],Table_PI[[#This Row],[Size]],Table_PI[[#This Row],[Input 1]],Table_PI[[#This Row],[Input 2]],Table_PI[[#This Row],[Input 3]],Table_PI[[#This Row],[Input 4]],'Customer Information'!$AR$12,5,ROW()),\"No Rebate\"),\"No Rebate\"),0)","v":0},{"$f":"IF(Table_PI[[#This Row],[Hide:\nFormula Name]]<>\"\",IFERROR(IF(MeasureCalc(Table_PI[[#This Row],[Hide:\nFormula Name]],Table_PI[[#This Row],[Quantity]],Table_PI[[#This Row],[List 1]],Table_PI[[#This Row],[List 2]],Table_PI[[#This Row],[List 3]],Table_PI[[#This Row],[Size]],Table_PI[[#This Row],[Input 1]],Table_PI[[#This Row],[Input 2]],Table_PI[[#This Row],[Input 3]],Table_PI[[#This Row],[Input 4]],'Customer Information'!$AR$12,1,ROW())>0,MeasureCalc(Table_PI[[#This Row],[Hide:\nFormula Name]],Table_PI[[#This Row],[Quantity]],Table_PI[[#This Row],[List 1]],Table_PI[[#This Row],[List 2]],Table_PI[[#This Row],[List 3]],Table_PI[[#This Row],[Size]],Table_PI[[#This Row],[Input 1]],Table_PI[[#This Row],[Input 2]],Table_PI[[#This Row],[Input 3]],Table_PI[[#This Row],[Input 4]],'Customer Information'!$AR$12,6,ROW()),\"No Rebate\"),\"No Rebate\"),0)","v":0},{"$f":"IF(Table_PI[[#This Row],[Hide:\nFormula Name]]<>\"\",IFERROR(IF(MeasureCalc(Table_PI[[#This Row],[Hide:\nFormula Name]],Table_PI[[#This Row],[Quantity]],Table_PI[[#This Row],[List 1]],Table_PI[[#This Row],[List 2]],Table_PI[[#This Row],[List 3]],Table_PI[[#This Row],[Size]],Table_PI[[#This Row],[Input 1]],Table_PI[[#This Row],[Input 2]],Table_PI[[#This Row],[Input 3]],Table_PI[[#This Row],[Input 4]],'Customer Information'!$AR$12,1,ROW())>0,MeasureCalc(Table_PI[[#This Row],[Hide:\nFormula Name]],Table_PI[[#This Row],[Quantity]],Table_PI[[#This Row],[List 1]],Table_PI[[#This Row],[List 2]],Table_PI[[#This Row],[List 3]],Table_PI[[#This Row],[Size]],Table_PI[[#This Row],[Input 1]],Table_PI[[#This Row],[Input 2]],Table_PI[[#This Row],[Input 3]],Table_PI[[#This Row],[Input 4]],'Customer Information'!$AR$12,7,ROW()),\"No Rebate\"),\"No Rebate\"),0)","v":0},{"$f":"IF(Table_PI[[#This Row],[Hide:\nFormula Name]]<>\"\",IFERROR(IF(MeasureCalc(Table_PI[[#This Row],[Hide:\nFormula Name]],Table_PI[[#This Row],[Quantity]],Table_PI[[#This Row],[List 1]],Table_PI[[#This Row],[List 2]],Table_PI[[#This Row],[List 3]],Table_PI[[#This Row],[Size]],Table_PI[[#This Row],[Input 1]],Table_PI[[#This Row],[Input 2]],Table_PI[[#This Row],[Input 3]],Table_PI[[#This Row],[Input 4]],'Customer Information'!$AR$12,1,ROW())>0,MeasureCalc(Table_PI[[#This Row],[Hide:\nFormula Name]],Table_PI[[#This Row],[Quantity]],Table_PI[[#This Row],[List 1]],Table_PI[[#This Row],[List 2]],Table_PI[[#This Row],[List 3]],Table_PI[[#This Row],[Size]],Table_PI[[#This Row],[Input 1]],Table_PI[[#This Row],[Input 2]],Table_PI[[#This Row],[Input 3]],Table_PI[[#This Row],[Input 4]],'Customer Information'!$AR$12,8,ROW()),\"No Rebate\"),\"No Rebate\"),0)","v":0},{"$f":"IF(Table_PI[[#This Row],[Hide:\nFormula Name]]<>\"\",IF(AND(Table_PI[[#This Row],[Hide:\nFormula Name]]<>\"\",OR(Table_PI[[#This Row],[Rebate]]>0,Table_PI[[#This Row],[Rebate]]=\"No Rebate\")),TRUE,\"MI: Line Item \" & $A310),\"\")","v":""}]
[{"$f":"IF(Table_PI[[#This Row],[Hide:\nFormula Name]]<>\"\",MAX($A$2:A310)+1,\"\")","v":""},null,null,null,null,null,null,null,null,null,null,null,null,null,null,{"$f":"IFERROR(VLOOKUP(Table_PI[[#This Row],[Measure]],'Equipment Lookups'!$C$3:$D$23,2,FALSE),\"\")","v":""},{"$f":"IF(Table_PI[[#This Row],[Hide:\nFormula Name]]<>\"\",IFERROR(IF(MeasureCalc(Table_PI[[#This Row],[Hide:\nFormula Name]],Table_PI[[#This Row],[Quantity]],Table_PI[[#This Row],[List 1]],Table_PI[[#This Row],[List 2]],Table_PI[[#This Row],[List 3]],Table_PI[[#This Row],[Size]],Table_PI[[#This Row],[Input 1]],Table_PI[[#This Row],[Input 2]],Table_PI[[#This Row],[Input 3]],Table_PI[[#This Row],[Input 4]],'Customer Information'!$AR$12,1,ROW())>0,MeasureCalc(Table_PI[[#This Row],[Hide:\nFormula Name]],Table_PI[[#This Row],[Quantity]],Table_PI[[#This Row],[List 1]],Table_PI[[#This Row],[List 2]],Table_PI[[#This Row],[List 3]],Table_PI[[#This Row],[Size]],Table_PI[[#This Row],[Input 1]],Table_PI[[#This Row],[Input 2]],Table_PI[[#This Row],[Input 3]],Table_PI[[#This Row],[Input 4]],'Customer Information'!$AR$12,1,ROW()),\"No Rebate\"),\"No Rebate\"),0)","v":0},{"$f":"IF(Table_PI[[#This Row],[Hide:\nFormula Name]]<>\"\",IFERROR(IF(MeasureCalc(Table_PI[[#This Row],[Hide:\nFormula Name]],Table_PI[[#This Row],[Quantity]],Table_PI[[#This Row],[List 1]],Table_PI[[#This Row],[List 2]],Table_PI[[#This Row],[List 3]],Table_PI[[#This Row],[Size]],Table_PI[[#This Row],[Input 1]],Table_PI[[#This Row],[Input 2]],Table_PI[[#This Row],[Input 3]],Table_PI[[#This Row],[Input 4]],'Customer Information'!$AR$12,1,ROW())>0,MeasureCalc(Table_PI[[#This Row],[Hide:\nFormula Name]],Table_PI[[#This Row],[Quantity]],Table_PI[[#This Row],[List 1]],Table_PI[[#This Row],[List 2]],Table_PI[[#This Row],[List 3]],Table_PI[[#This Row],[Size]],Table_PI[[#This Row],[Input 1]],Table_PI[[#This Row],[Input 2]],Table_PI[[#This Row],[Input 3]],Table_PI[[#This Row],[Input 4]],'Customer Information'!$AR$12,2,ROW()),\"No Rebate\"),\"No Rebate\"),0)","v":0},{"$f":"IF(Table_PI[[#This Row],[Hide:\nFormula Name]]<>\"\",IFERROR(IF(MeasureCalc(Table_PI[[#This Row],[Hide:\nFormula Name]],Table_PI[[#This Row],[Quantity]],Table_PI[[#This Row],[List 1]],Table_PI[[#This Row],[List 2]],Table_PI[[#This Row],[List 3]],Table_PI[[#This Row],[Size]],Table_PI[[#This Row],[Input 1]],Table_PI[[#This Row],[Input 2]],Table_PI[[#This Row],[Input 3]],Table_PI[[#This Row],[Input 4]],'Customer Information'!$AR$12,1,ROW())>0,MeasureCalc(Table_PI[[#This Row],[Hide:\nFormula Name]],Table_PI[[#This Row],[Quantity]],Table_PI[[#This Row],[List 1]],Table_PI[[#This Row],[List 2]],Table_PI[[#This Row],[List 3]],Table_PI[[#This Row],[Size]],Table_PI[[#This Row],[Input 1]],Table_PI[[#This Row],[Input 2]],Table_PI[[#This Row],[Input 3]],Table_PI[[#This Row],[Input 4]],'Customer Information'!$AR$12,3,ROW()),\"No Rebate\"),\"No Rebate\"),0)","v":0},{"$f":"IF(Table_PI[[#This Row],[Hide:\nFormula Name]]<>\"\",IFERROR(IF(MeasureCalc(Table_PI[[#This Row],[Hide:\nFormula Name]],Table_PI[[#This Row],[Quantity]],Table_PI[[#This Row],[List 1]],Table_PI[[#This Row],[List 2]],Table_PI[[#This Row],[List 3]],Table_PI[[#This Row],[Size]],Table_PI[[#This Row],[Input 1]],Table_PI[[#This Row],[Input 2]],Table_PI[[#This Row],[Input 3]],Table_PI[[#This Row],[Input 4]],'Customer Information'!$AR$12,1,ROW())>0,MeasureCalc(Table_PI[[#This Row],[Hide:\nFormula Name]],Table_PI[[#This Row],[Quantity]],Table_PI[[#This Row],[List 1]],Table_PI[[#This Row],[List 2]],Table_PI[[#This Row],[List 3]],Table_PI[[#This Row],[Size]],Table_PI[[#This Row],[Input 1]],Table_PI[[#This Row],[Input 2]],Table_PI[[#This Row],[Input 3]],Table_PI[[#This Row],[Input 4]],'Customer Information'!$AR$12,4,ROW()),\"No Rebate\"),\"No Rebate\"),0)","v":0},{"$f":"IF(Table_PI[[#This Row],[Hide:\nFormula Name]]<>\"\",IFERROR(IF(MeasureCalc(Table_PI[[#This Row],[Hide:\nFormula Name]],Table_PI[[#This Row],[Quantity]],Table_PI[[#This Row],[List 1]],Table_PI[[#This Row],[List 2]],Table_PI[[#This Row],[List 3]],Table_PI[[#This Row],[Size]],Table_PI[[#This Row],[Input 1]],Table_PI[[#This Row],[Input 2]],Table_PI[[#This Row],[Input 3]],Table_PI[[#This Row],[Input 4]],'Customer Information'!$AR$12,1,ROW())>0,MeasureCalc(Table_PI[[#This Row],[Hide:\nFormula Name]],Table_PI[[#This Row],[Quantity]],Table_PI[[#This Row],[List 1]],Table_PI[[#This Row],[List 2]],Table_PI[[#This Row],[List 3]],Table_PI[[#This Row],[Size]],Table_PI[[#This Row],[Input 1]],Table_PI[[#This Row],[Input 2]],Table_PI[[#This Row],[Input 3]],Table_PI[[#This Row],[Input 4]],'Customer Information'!$AR$12,5,ROW()),\"No Rebate\"),\"No Rebate\"),0)","v":0},{"$f":"IF(Table_PI[[#This Row],[Hide:\nFormula Name]]<>\"\",IFERROR(IF(MeasureCalc(Table_PI[[#This Row],[Hide:\nFormula Name]],Table_PI[[#This Row],[Quantity]],Table_PI[[#This Row],[List 1]],Table_PI[[#This Row],[List 2]],Table_PI[[#This Row],[List 3]],Table_PI[[#This Row],[Size]],Table_PI[[#This Row],[Input 1]],Table_PI[[#This Row],[Input 2]],Table_PI[[#This Row],[Input 3]],Table_PI[[#This Row],[Input 4]],'Customer Information'!$AR$12,1,ROW())>0,MeasureCalc(Table_PI[[#This Row],[Hide:\nFormula Name]],Table_PI[[#This Row],[Quantity]],Table_PI[[#This Row],[List 1]],Table_PI[[#This Row],[List 2]],Table_PI[[#This Row],[List 3]],Table_PI[[#This Row],[Size]],Table_PI[[#This Row],[Input 1]],Table_PI[[#This Row],[Input 2]],Table_PI[[#This Row],[Input 3]],Table_PI[[#This Row],[Input 4]],'Customer Information'!$AR$12,6,ROW()),\"No Rebate\"),\"No Rebate\"),0)","v":0},{"$f":"IF(Table_PI[[#This Row],[Hide:\nFormula Name]]<>\"\",IFERROR(IF(MeasureCalc(Table_PI[[#This Row],[Hide:\nFormula Name]],Table_PI[[#This Row],[Quantity]],Table_PI[[#This Row],[List 1]],Table_PI[[#This Row],[List 2]],Table_PI[[#This Row],[List 3]],Table_PI[[#This Row],[Size]],Table_PI[[#This Row],[Input 1]],Table_PI[[#This Row],[Input 2]],Table_PI[[#This Row],[Input 3]],Table_PI[[#This Row],[Input 4]],'Customer Information'!$AR$12,1,ROW())>0,MeasureCalc(Table_PI[[#This Row],[Hide:\nFormula Name]],Table_PI[[#This Row],[Quantity]],Table_PI[[#This Row],[List 1]],Table_PI[[#This Row],[List 2]],Table_PI[[#This Row],[List 3]],Table_PI[[#This Row],[Size]],Table_PI[[#This Row],[Input 1]],Table_PI[[#This Row],[Input 2]],Table_PI[[#This Row],[Input 3]],Table_PI[[#This Row],[Input 4]],'Customer Information'!$AR$12,7,ROW()),\"No Rebate\"),\"No Rebate\"),0)","v":0},{"$f":"IF(Table_PI[[#This Row],[Hide:\nFormula Name]]<>\"\",IFERROR(IF(MeasureCalc(Table_PI[[#This Row],[Hide:\nFormula Name]],Table_PI[[#This Row],[Quantity]],Table_PI[[#This Row],[List 1]],Table_PI[[#This Row],[List 2]],Table_PI[[#This Row],[List 3]],Table_PI[[#This Row],[Size]],Table_PI[[#This Row],[Input 1]],Table_PI[[#This Row],[Input 2]],Table_PI[[#This Row],[Input 3]],Table_PI[[#This Row],[Input 4]],'Customer Information'!$AR$12,1,ROW())>0,MeasureCalc(Table_PI[[#This Row],[Hide:\nFormula Name]],Table_PI[[#This Row],[Quantity]],Table_PI[[#This Row],[List 1]],Table_PI[[#This Row],[List 2]],Table_PI[[#This Row],[List 3]],Table_PI[[#This Row],[Size]],Table_PI[[#This Row],[Input 1]],Table_PI[[#This Row],[Input 2]],Table_PI[[#This Row],[Input 3]],Table_PI[[#This Row],[Input 4]],'Customer Information'!$AR$12,8,ROW()),\"No Rebate\"),\"No Rebate\"),0)","v":0},{"$f":"IF(Table_PI[[#This Row],[Hide:\nFormula Name]]<>\"\",IF(AND(Table_PI[[#This Row],[Hide:\nFormula Name]]<>\"\",OR(Table_PI[[#This Row],[Rebate]]>0,Table_PI[[#This Row],[Rebate]]=\"No Rebate\")),TRUE,\"MI: Line Item \" & $A311),\"\")","v":""}]
[{"$f":"IF(Table_PI[[#This Row],[Hide:\nFormula Name]]<>\"\",MAX($A$2:A311)+1,\"\")","v":""},null,null,null,null,null,null,null,null,null,null,null,null,null,null,{"$f":"IFERROR(VLOOKUP(Table_PI[[#This Row],[Measure]],'Equipment Lookups'!$C$3:$D$23,2,FALSE),\"\")","v":""},{"$f":"IF(Table_PI[[#This Row],[Hide:\nFormula Name]]<>\"\",IFERROR(IF(MeasureCalc(Table_PI[[#This Row],[Hide:\nFormula Name]],Table_PI[[#This Row],[Quantity]],Table_PI[[#This Row],[List 1]],Table_PI[[#This Row],[List 2]],Table_PI[[#This Row],[List 3]],Table_PI[[#This Row],[Size]],Table_PI[[#This Row],[Input 1]],Table_PI[[#This Row],[Input 2]],Table_PI[[#This Row],[Input 3]],Table_PI[[#This Row],[Input 4]],'Customer Information'!$AR$12,1,ROW())>0,MeasureCalc(Table_PI[[#This Row],[Hide:\nFormula Name]],Table_PI[[#This Row],[Quantity]],Table_PI[[#This Row],[List 1]],Table_PI[[#This Row],[List 2]],Table_PI[[#This Row],[List 3]],Table_PI[[#This Row],[Size]],Table_PI[[#This Row],[Input 1]],Table_PI[[#This Row],[Input 2]],Table_PI[[#This Row],[Input 3]],Table_PI[[#This Row],[Input 4]],'Customer Information'!$AR$12,1,ROW()),\"No Rebate\"),\"No Rebate\"),0)","v":0},{"$f":"IF(Table_PI[[#This Row],[Hide:\nFormula Name]]<>\"\",IFERROR(IF(MeasureCalc(Table_PI[[#This Row],[Hide:\nFormula Name]],Table_PI[[#This Row],[Quantity]],Table_PI[[#This Row],[List 1]],Table_PI[[#This Row],[List 2]],Table_PI[[#This Row],[List 3]],Table_PI[[#This Row],[Size]],Table_PI[[#This Row],[Input 1]],Table_PI[[#This Row],[Input 2]],Table_PI[[#This Row],[Input 3]],Table_PI[[#This Row],[Input 4]],'Customer Information'!$AR$12,1,ROW())>0,MeasureCalc(Table_PI[[#This Row],[Hide:\nFormula Name]],Table_PI[[#This Row],[Quantity]],Table_PI[[#This Row],[List 1]],Table_PI[[#This Row],[List 2]],Table_PI[[#This Row],[List 3]],Table_PI[[#This Row],[Size]],Table_PI[[#This Row],[Input 1]],Table_PI[[#This Row],[Input 2]],Table_PI[[#This Row],[Input 3]],Table_PI[[#This Row],[Input 4]],'Customer Information'!$AR$12,2,ROW()),\"No Rebate\"),\"No Rebate\"),0)","v":0},{"$f":"IF(Table_PI[[#This Row],[Hide:\nFormula Name]]<>\"\",IFERROR(IF(MeasureCalc(Table_PI[[#This Row],[Hide:\nFormula Name]],Table_PI[[#This Row],[Quantity]],Table_PI[[#This Row],[List 1]],Table_PI[[#This Row],[List 2]],Table_PI[[#This Row],[List 3]],Table_PI[[#This Row],[Size]],Table_PI[[#This Row],[Input 1]],Table_PI[[#This Row],[Input 2]],Table_PI[[#This Row],[Input 3]],Table_PI[[#This Row],[Input 4]],'Customer Information'!$AR$12,1,ROW())>0,MeasureCalc(Table_PI[[#This Row],[Hide:\nFormula Name]],Table_PI[[#This Row],[Quantity]],Table_PI[[#This Row],[List 1]],Table_PI[[#This Row],[List 2]],Table_PI[[#This Row],[List 3]],Table_PI[[#This Row],[Size]],Table_PI[[#This Row],[Input 1]],Table_PI[[#This Row],[Input 2]],Table_PI[[#This Row],[Input 3]],Table_PI[[#This Row],[Input 4]],'Customer Information'!$AR$12,3,ROW()),\"No Rebate\"),\"No Rebate\"),0)","v":0},{"$f":"IF(Table_PI[[#This Row],[Hide:\nFormula Name]]<>\"\",IFERROR(IF(MeasureCalc(Table_PI[[#This Row],[Hide:\nFormula Name]],Table_PI[[#This Row],[Quantity]],Table_PI[[#This Row],[List 1]],Table_PI[[#This Row],[List 2]],Table_PI[[#This Row],[List 3]],Table_PI[[#This Row],[Size]],Table_PI[[#This Row],[Input 1]],Table_PI[[#This Row],[Input 2]],Table_PI[[#This Row],[Input 3]],Table_PI[[#This Row],[Input 4]],'Customer Information'!$AR$12,1,ROW())>0,MeasureCalc(Table_PI[[#This Row],[Hide:\nFormula Name]],Table_PI[[#This Row],[Quantity]],Table_PI[[#This Row],[List 1]],Table_PI[[#This Row],[List 2]],Table_PI[[#This Row],[List 3]],Table_PI[[#This Row],[Size]],Table_PI[[#This Row],[Input 1]],Table_PI[[#This Row],[Input 2]],Table_PI[[#This Row],[Input 3]],Table_PI[[#This Row],[Input 4]],'Customer Information'!$AR$12,4,ROW()),\"No Rebate\"),\"No Rebate\"),0)","v":0},{"$f":"IF(Table_PI[[#This Row],[Hide:\nFormula Name]]<>\"\",IFERROR(IF(MeasureCalc(Table_PI[[#This Row],[Hide:\nFormula Name]],Table_PI[[#This Row],[Quantity]],Table_PI[[#This Row],[List 1]],Table_PI[[#This Row],[List 2]],Table_PI[[#This Row],[List 3]],Table_PI[[#This Row],[Size]],Table_PI[[#This Row],[Input 1]],Table_PI[[#This Row],[Input 2]],Table_PI[[#This Row],[Input 3]],Table_PI[[#This Row],[Input 4]],'Customer Information'!$AR$12,1,ROW())>0,MeasureCalc(Table_PI[[#This Row],[Hide:\nFormula Name]],Table_PI[[#This Row],[Quantity]],Table_PI[[#This Row],[List 1]],Table_PI[[#This Row],[List 2]],Table_PI[[#This Row],[List 3]],Table_PI[[#This Row],[Size]],Table_PI[[#This Row],[Input 1]],Table_PI[[#This Row],[Input 2]],Table_PI[[#This Row],[Input 3]],Table_PI[[#This Row],[Input 4]],'Customer Information'!$AR$12,5,ROW()),\"No Rebate\"),\"No Rebate\"),0)","v":0},{"$f":"IF(Table_PI[[#This Row],[Hide:\nFormula Name]]<>\"\",IFERROR(IF(MeasureCalc(Table_PI[[#This Row],[Hide:\nFormula Name]],Table_PI[[#This Row],[Quantity]],Table_PI[[#This Row],[List 1]],Table_PI[[#This Row],[List 2]],Table_PI[[#This Row],[List 3]],Table_PI[[#This Row],[Size]],Table_PI[[#This Row],[Input 1]],Table_PI[[#This Row],[Input 2]],Table_PI[[#This Row],[Input 3]],Table_PI[[#This Row],[Input 4]],'Customer Information'!$AR$12,1,ROW())>0,MeasureCalc(Table_PI[[#This Row],[Hide:\nFormula Name]],Table_PI[[#This Row],[Quantity]],Table_PI[[#This Row],[List 1]],Table_PI[[#This Row],[List 2]],Table_PI[[#This Row],[List 3]],Table_PI[[#This Row],[Size]],Table_PI[[#This Row],[Input 1]],Table_PI[[#This Row],[Input 2]],Table_PI[[#This Row],[Input 3]],Table_PI[[#This Row],[Input 4]],'Customer Information'!$AR$12,6,ROW()),\"No Rebate\"),\"No Rebate\"),0)","v":0},{"$f":"IF(Table_PI[[#This Row],[Hide:\nFormula Name]]<>\"\",IFERROR(IF(MeasureCalc(Table_PI[[#This Row],[Hide:\nFormula Name]],Table_PI[[#This Row],[Quantity]],Table_PI[[#This Row],[List 1]],Table_PI[[#This Row],[List 2]],Table_PI[[#This Row],[List 3]],Table_PI[[#This Row],[Size]],Table_PI[[#This Row],[Input 1]],Table_PI[[#This Row],[Input 2]],Table_PI[[#This Row],[Input 3]],Table_PI[[#This Row],[Input 4]],'Customer Information'!$AR$12,1,ROW())>0,MeasureCalc(Table_PI[[#This Row],[Hide:\nFormula Name]],Table_PI[[#This Row],[Quantity]],Table_PI[[#This Row],[List 1]],Table_PI[[#This Row],[List 2]],Table_PI[[#This Row],[List 3]],Table_PI[[#This Row],[Size]],Table_PI[[#This Row],[Input 1]],Table_PI[[#This Row],[Input 2]],Table_PI[[#This Row],[Input 3]],Table_PI[[#This Row],[Input 4]],'Customer Information'!$AR$12,7,ROW()),\"No Rebate\"),\"No Rebate\"),0)","v":0},{"$f":"IF(Table_PI[[#This Row],[Hide:\nFormula Name]]<>\"\",IFERROR(IF(MeasureCalc(Table_PI[[#This Row],[Hide:\nFormula Name]],Table_PI[[#This Row],[Quantity]],Table_PI[[#This Row],[List 1]],Table_PI[[#This Row],[List 2]],Table_PI[[#This Row],[List 3]],Table_PI[[#This Row],[Size]],Table_PI[[#This Row],[Input 1]],Table_PI[[#This Row],[Input 2]],Table_PI[[#This Row],[Input 3]],Table_PI[[#This Row],[Input 4]],'Customer Information'!$AR$12,1,ROW())>0,MeasureCalc(Table_PI[[#This Row],[Hide:\nFormula Name]],Table_PI[[#This Row],[Quantity]],Table_PI[[#This Row],[List 1]],Table_PI[[#This Row],[List 2]],Table_PI[[#This Row],[List 3]],Table_PI[[#This Row],[Size]],Table_PI[[#This Row],[Input 1]],Table_PI[[#This Row],[Input 2]],Table_PI[[#This Row],[Input 3]],Table_PI[[#This Row],[Input 4]],'Customer Information'!$AR$12,8,ROW()),\"No Rebate\"),\"No Rebate\"),0)","v":0},{"$f":"IF(Table_PI[[#This Row],[Hide:\nFormula Name]]<>\"\",IF(AND(Table_PI[[#This Row],[Hide:\nFormula Name]]<>\"\",OR(Table_PI[[#This Row],[Rebate]]>0,Table_PI[[#This Row],[Rebate]]=\"No Rebate\")),TRUE,\"MI: Line Item \" & $A312),\"\")","v":""}]
[{"$f":"IF(Table_PI[[#This Row],[Hide:\nFormula Name]]<>\"\",MAX($A$2:A312)+1,\"\")","v":""},null,null,null,null,null,null,null,null,null,null,null,null,null,null,{"$f":"IFERROR(VLOOKUP(Table_PI[[#This Row],[Measure]],'Equipment Lookups'!$C$3:$D$23,2,FALSE),\"\")","v":""},{"$f":"IF(Table_PI[[#This Row],[Hide:\nFormula Name]]<>\"\",IFERROR(IF(MeasureCalc(Table_PI[[#This Row],[Hide:\nFormula Name]],Table_PI[[#This Row],[Quantity]],Table_PI[[#This Row],[List 1]],Table_PI[[#This Row],[List 2]],Table_PI[[#This Row],[List 3]],Table_PI[[#This Row],[Size]],Table_PI[[#This Row],[Input 1]],Table_PI[[#This Row],[Input 2]],Table_PI[[#This Row],[Input 3]],Table_PI[[#This Row],[Input 4]],'Customer Information'!$AR$12,1,ROW())>0,MeasureCalc(Table_PI[[#This Row],[Hide:\nFormula Name]],Table_PI[[#This Row],[Quantity]],Table_PI[[#This Row],[List 1]],Table_PI[[#This Row],[List 2]],Table_PI[[#This Row],[List 3]],Table_PI[[#This Row],[Size]],Table_PI[[#This Row],[Input 1]],Table_PI[[#This Row],[Input 2]],Table_PI[[#This Row],[Input 3]],Table_PI[[#This Row],[Input 4]],'Customer Information'!$AR$12,1,ROW()),\"No Rebate\"),\"No Rebate\"),0)","v":0},{"$f":"IF(Table_PI[[#This Row],[Hide:\nFormula Name]]<>\"\",IFERROR(IF(MeasureCalc(Table_PI[[#This Row],[Hide:\nFormula Name]],Table_PI[[#This Row],[Quantity]],Table_PI[[#This Row],[List 1]],Table_PI[[#This Row],[List 2]],Table_PI[[#This Row],[List 3]],Table_PI[[#This Row],[Size]],Table_PI[[#This Row],[Input 1]],Table_PI[[#This Row],[Input 2]],Table_PI[[#This Row],[Input 3]],Table_PI[[#This Row],[Input 4]],'Customer Information'!$AR$12,1,ROW())>0,MeasureCalc(Table_PI[[#This Row],[Hide:\nFormula Name]],Table_PI[[#This Row],[Quantity]],Table_PI[[#This Row],[List 1]],Table_PI[[#This Row],[List 2]],Table_PI[[#This Row],[List 3]],Table_PI[[#This Row],[Size]],Table_PI[[#This Row],[Input 1]],Table_PI[[#This Row],[Input 2]],Table_PI[[#This Row],[Input 3]],Table_PI[[#This Row],[Input 4]],'Customer Information'!$AR$12,2,ROW()),\"No Rebate\"),\"No Rebate\"),0)","v":0},{"$f":"IF(Table_PI[[#This Row],[Hide:\nFormula Name]]<>\"\",IFERROR(IF(MeasureCalc(Table_PI[[#This Row],[Hide:\nFormula Name]],Table_PI[[#This Row],[Quantity]],Table_PI[[#This Row],[List 1]],Table_PI[[#This Row],[List 2]],Table_PI[[#This Row],[List 3]],Table_PI[[#This Row],[Size]],Table_PI[[#This Row],[Input 1]],Table_PI[[#This Row],[Input 2]],Table_PI[[#This Row],[Input 3]],Table_PI[[#This Row],[Input 4]],'Customer Information'!$AR$12,1,ROW())>0,MeasureCalc(Table_PI[[#This Row],[Hide:\nFormula Name]],Table_PI[[#This Row],[Quantity]],Table_PI[[#This Row],[List 1]],Table_PI[[#This Row],[List 2]],Table_PI[[#This Row],[List 3]],Table_PI[[#This Row],[Size]],Table_PI[[#This Row],[Input 1]],Table_PI[[#This Row],[Input 2]],Table_PI[[#This Row],[Input 3]],Table_PI[[#This Row],[Input 4]],'Customer Information'!$AR$12,3,ROW()),\"No Rebate\"),\"No Rebate\"),0)","v":0},{"$f":"IF(Table_PI[[#This Row],[Hide:\nFormula Name]]<>\"\",IFERROR(IF(MeasureCalc(Table_PI[[#This Row],[Hide:\nFormula Name]],Table_PI[[#This Row],[Quantity]],Table_PI[[#This Row],[List 1]],Table_PI[[#This Row],[List 2]],Table_PI[[#This Row],[List 3]],Table_PI[[#This Row],[Size]],Table_PI[[#This Row],[Input 1]],Table_PI[[#This Row],[Input 2]],Table_PI[[#This Row],[Input 3]],Table_PI[[#This Row],[Input 4]],'Customer Information'!$AR$12,1,ROW())>0,MeasureCalc(Table_PI[[#This Row],[Hide:\nFormula Name]],Table_PI[[#This Row],[Quantity]],Table_PI[[#This Row],[List 1]],Table_PI[[#This Row],[List 2]],Table_PI[[#This Row],[List 3]],Table_PI[[#This Row],[Size]],Table_PI[[#This Row],[Input 1]],Table_PI[[#This Row],[Input 2]],Table_PI[[#This Row],[Input 3]],Table_PI[[#This Row],[Input 4]],'Customer Information'!$AR$12,4,ROW()),\"No Rebate\"),\"No Rebate\"),0)","v":0},{"$f":"IF(Table_PI[[#This Row],[Hide:\nFormula Name]]<>\"\",IFERROR(IF(MeasureCalc(Table_PI[[#This Row],[Hide:\nFormula Name]],Table_PI[[#This Row],[Quantity]],Table_PI[[#This Row],[List 1]],Table_PI[[#This Row],[List 2]],Table_PI[[#This Row],[List 3]],Table_PI[[#This Row],[Size]],Table_PI[[#This Row],[Input 1]],Table_PI[[#This Row],[Input 2]],Table_PI[[#This Row],[Input 3]],Table_PI[[#This Row],[Input 4]],'Customer Information'!$AR$12,1,ROW())>0,MeasureCalc(Table_PI[[#This Row],[Hide:\nFormula Name]],Table_PI[[#This Row],[Quantity]],Table_PI[[#This Row],[List 1]],Table_PI[[#This Row],[List 2]],Table_PI[[#This Row],[List 3]],Table_PI[[#This Row],[Size]],Table_PI[[#This Row],[Input 1]],Table_PI[[#This Row],[Input 2]],Table_PI[[#This Row],[Input 3]],Table_PI[[#This Row],[Input 4]],'Customer Information'!$AR$12,5,ROW()),\"No Rebate\"),\"No Rebate\"),0)","v":0},{"$f":"IF(Table_PI[[#This Row],[Hide:\nFormula Name]]<>\"\",IFERROR(IF(MeasureCalc(Table_PI[[#This Row],[Hide:\nFormula Name]],Table_PI[[#This Row],[Quantity]],Table_PI[[#This Row],[List 1]],Table_PI[[#This Row],[List 2]],Table_PI[[#This Row],[List 3]],Table_PI[[#This Row],[Size]],Table_PI[[#This Row],[Input 1]],Table_PI[[#This Row],[Input 2]],Table_PI[[#This Row],[Input 3]],Table_PI[[#This Row],[Input 4]],'Customer Information'!$AR$12,1,ROW())>0,MeasureCalc(Table_PI[[#This Row],[Hide:\nFormula Name]],Table_PI[[#This Row],[Quantity]],Table_PI[[#This Row],[List 1]],Table_PI[[#This Row],[List 2]],Table_PI[[#This Row],[List 3]],Table_PI[[#This Row],[Size]],Table_PI[[#This Row],[Input 1]],Table_PI[[#This Row],[Input 2]],Table_PI[[#This Row],[Input 3]],Table_PI[[#This Row],[Input 4]],'Customer Information'!$AR$12,6,ROW()),\"No Rebate\"),\"No Rebate\"),0)","v":0},{"$f":"IF(Table_PI[[#This Row],[Hide:\nFormula Name]]<>\"\",IFERROR(IF(MeasureCalc(Table_PI[[#This Row],[Hide:\nFormula Name]],Table_PI[[#This Row],[Quantity]],Table_PI[[#This Row],[List 1]],Table_PI[[#This Row],[List 2]],Table_PI[[#This Row],[List 3]],Table_PI[[#This Row],[Size]],Table_PI[[#This Row],[Input 1]],Table_PI[[#This Row],[Input 2]],Table_PI[[#This Row],[Input 3]],Table_PI[[#This Row],[Input 4]],'Customer Information'!$AR$12,1,ROW())>0,MeasureCalc(Table_PI[[#This Row],[Hide:\nFormula Name]],Table_PI[[#This Row],[Quantity]],Table_PI[[#This Row],[List 1]],Table_PI[[#This Row],[List 2]],Table_PI[[#This Row],[List 3]],Table_PI[[#This Row],[Size]],Table_PI[[#This Row],[Input 1]],Table_PI[[#This Row],[Input 2]],Table_PI[[#This Row],[Input 3]],Table_PI[[#This Row],[Input 4]],'Customer Information'!$AR$12,7,ROW()),\"No Rebate\"),\"No Rebate\"),0)","v":0},{"$f":"IF(Table_PI[[#This Row],[Hide:\nFormula Name]]<>\"\",IFERROR(IF(MeasureCalc(Table_PI[[#This Row],[Hide:\nFormula Name]],Table_PI[[#This Row],[Quantity]],Table_PI[[#This Row],[List 1]],Table_PI[[#This Row],[List 2]],Table_PI[[#This Row],[List 3]],Table_PI[[#This Row],[Size]],Table_PI[[#This Row],[Input 1]],Table_PI[[#This Row],[Input 2]],Table_PI[[#This Row],[Input 3]],Table_PI[[#This Row],[Input 4]],'Customer Information'!$AR$12,1,ROW())>0,MeasureCalc(Table_PI[[#This Row],[Hide:\nFormula Name]],Table_PI[[#This Row],[Quantity]],Table_PI[[#This Row],[List 1]],Table_PI[[#This Row],[List 2]],Table_PI[[#This Row],[List 3]],Table_PI[[#This Row],[Size]],Table_PI[[#This Row],[Input 1]],Table_PI[[#This Row],[Input 2]],Table_PI[[#This Row],[Input 3]],Table_PI[[#This Row],[Input 4]],'Customer Information'!$AR$12,8,ROW()),\"No Rebate\"),\"No Rebate\"),0)","v":0},{"$f":"IF(Table_PI[[#This Row],[Hide:\nFormula Name]]<>\"\",IF(AND(Table_PI[[#This Row],[Hide:\nFormula Name]]<>\"\",OR(Table_PI[[#This Row],[Rebate]]>0,Table_PI[[#This Row],[Rebate]]=\"No Rebate\")),TRUE,\"MI: Line Item \" & $A313),\"\")","v":""}]
[{"$f":"IF(Table_PI[[#This Row],[Hide:\nFormula Name]]<>\"\",MAX($A$2:A313)+1,\"\")","v":""},null,null,null,null,null,null,null,null,null,null,null,null,null,null,{"$f":"IFERROR(VLOOKUP(Table_PI[[#This Row],[Measure]],'Equipment Lookups'!$C$3:$D$23,2,FALSE),\"\")","v":""},{"$f":"IF(Table_PI[[#This Row],[Hide:\nFormula Name]]<>\"\",IFERROR(IF(MeasureCalc(Table_PI[[#This Row],[Hide:\nFormula Name]],Table_PI[[#This Row],[Quantity]],Table_PI[[#This Row],[List 1]],Table_PI[[#This Row],[List 2]],Table_PI[[#This Row],[List 3]],Table_PI[[#This Row],[Size]],Table_PI[[#This Row],[Input 1]],Table_PI[[#This Row],[Input 2]],Table_PI[[#This Row],[Input 3]],Table_PI[[#This Row],[Input 4]],'Customer Information'!$AR$12,1,ROW())>0,MeasureCalc(Table_PI[[#This Row],[Hide:\nFormula Name]],Table_PI[[#This Row],[Quantity]],Table_PI[[#This Row],[List 1]],Table_PI[[#This Row],[List 2]],Table_PI[[#This Row],[List 3]],Table_PI[[#This Row],[Size]],Table_PI[[#This Row],[Input 1]],Table_PI[[#This Row],[Input 2]],Table_PI[[#This Row],[Input 3]],Table_PI[[#This Row],[Input 4]],'Customer Information'!$AR$12,1,ROW()),\"No Rebate\"),\"No Rebate\"),0)","v":0},{"$f":"IF(Table_PI[[#This Row],[Hide:\nFormula Name]]<>\"\",IFERROR(IF(MeasureCalc(Table_PI[[#This Row],[Hide:\nFormula Name]],Table_PI[[#This Row],[Quantity]],Table_PI[[#This Row],[List 1]],Table_PI[[#This Row],[List 2]],Table_PI[[#This Row],[List 3]],Table_PI[[#This Row],[Size]],Table_PI[[#This Row],[Input 1]],Table_PI[[#This Row],[Input 2]],Table_PI[[#This Row],[Input 3]],Table_PI[[#This Row],[Input 4]],'Customer Information'!$AR$12,1,ROW())>0,MeasureCalc(Table_PI[[#This Row],[Hide:\nFormula Name]],Table_PI[[#This Row],[Quantity]],Table_PI[[#This Row],[List 1]],Table_PI[[#This Row],[List 2]],Table_PI[[#This Row],[List 3]],Table_PI[[#This Row],[Size]],Table_PI[[#This Row],[Input 1]],Table_PI[[#This Row],[Input 2]],Table_PI[[#This Row],[Input 3]],Table_PI[[#This Row],[Input 4]],'Customer Information'!$AR$12,2,ROW()),\"No Rebate\"),\"No Rebate\"),0)","v":0},{"$f":"IF(Table_PI[[#This Row],[Hide:\nFormula Name]]<>\"\",IFERROR(IF(MeasureCalc(Table_PI[[#This Row],[Hide:\nFormula Name]],Table_PI[[#This Row],[Quantity]],Table_PI[[#This Row],[List 1]],Table_PI[[#This Row],[List 2]],Table_PI[[#This Row],[List 3]],Table_PI[[#This Row],[Size]],Table_PI[[#This Row],[Input 1]],Table_PI[[#This Row],[Input 2]],Table_PI[[#This Row],[Input 3]],Table_PI[[#This Row],[Input 4]],'Customer Information'!$AR$12,1,ROW())>0,MeasureCalc(Table_PI[[#This Row],[Hide:\nFormula Name]],Table_PI[[#This Row],[Quantity]],Table_PI[[#This Row],[List 1]],Table_PI[[#This Row],[List 2]],Table_PI[[#This Row],[List 3]],Table_PI[[#This Row],[Size]],Table_PI[[#This Row],[Input 1]],Table_PI[[#This Row],[Input 2]],Table_PI[[#This Row],[Input 3]],Table_PI[[#This Row],[Input 4]],'Customer Information'!$AR$12,3,ROW()),\"No Rebate\"),\"No Rebate\"),0)","v":0},{"$f":"IF(Table_PI[[#This Row],[Hide:\nFormula Name]]<>\"\",IFERROR(IF(MeasureCalc(Table_PI[[#This Row],[Hide:\nFormula Name]],Table_PI[[#This Row],[Quantity]],Table_PI[[#This Row],[List 1]],Table_PI[[#This Row],[List 2]],Table_PI[[#This Row],[List 3]],Table_PI[[#This Row],[Size]],Table_PI[[#This Row],[Input 1]],Table_PI[[#This Row],[Input 2]],Table_PI[[#This Row],[Input 3]],Table_PI[[#This Row],[Input 4]],'Customer Information'!$AR$12,1,ROW())>0,MeasureCalc(Table_PI[[#This Row],[Hide:\nFormula Name]],Table_PI[[#This Row],[Quantity]],Table_PI[[#This Row],[List 1]],Table_PI[[#This Row],[List 2]],Table_PI[[#This Row],[List 3]],Table_PI[[#This Row],[Size]],Table_PI[[#This Row],[Input 1]],Table_PI[[#This Row],[Input 2]],Table_PI[[#This Row],[Input 3]],Table_PI[[#This Row],[Input 4]],'Customer Information'!$AR$12,4,ROW()),\"No Rebate\"),\"No Rebate\"),0)","v":0},{"$f":"IF(Table_PI[[#This Row],[Hide:\nFormula Name]]<>\"\",IFERROR(IF(MeasureCalc(Table_PI[[#This Row],[Hide:\nFormula Name]],Table_PI[[#This Row],[Quantity]],Table_PI[[#This Row],[List 1]],Table_PI[[#This Row],[List 2]],Table_PI[[#This Row],[List 3]],Table_PI[[#This Row],[Size]],Table_PI[[#This Row],[Input 1]],Table_PI[[#This Row],[Input 2]],Table_PI[[#This Row],[Input 3]],Table_PI[[#This Row],[Input 4]],'Customer Information'!$AR$12,1,ROW())>0,MeasureCalc(Table_PI[[#This Row],[Hide:\nFormula Name]],Table_PI[[#This Row],[Quantity]],Table_PI[[#This Row],[List 1]],Table_PI[[#This Row],[List 2]],Table_PI[[#This Row],[List 3]],Table_PI[[#This Row],[Size]],Table_PI[[#This Row],[Input 1]],Table_PI[[#This Row],[Input 2]],Table_PI[[#This Row],[Input 3]],Table_PI[[#This Row],[Input 4]],'Customer Information'!$AR$12,5,ROW()),\"No Rebate\"),\"No Rebate\"),0)","v":0},{"$f":"IF(Table_PI[[#This Row],[Hide:\nFormula Name]]<>\"\",IFERROR(IF(MeasureCalc(Table_PI[[#This Row],[Hide:\nFormula Name]],Table_PI[[#This Row],[Quantity]],Table_PI[[#This Row],[List 1]],Table_PI[[#This Row],[List 2]],Table_PI[[#This Row],[List 3]],Table_PI[[#This Row],[Size]],Table_PI[[#This Row],[Input 1]],Table_PI[[#This Row],[Input 2]],Table_PI[[#This Row],[Input 3]],Table_PI[[#This Row],[Input 4]],'Customer Information'!$AR$12,1,ROW())>0,MeasureCalc(Table_PI[[#This Row],[Hide:\nFormula Name]],Table_PI[[#This Row],[Quantity]],Table_PI[[#This Row],[List 1]],Table_PI[[#This Row],[List 2]],Table_PI[[#This Row],[List 3]],Table_PI[[#This Row],[Size]],Table_PI[[#This Row],[Input 1]],Table_PI[[#This Row],[Input 2]],Table_PI[[#This Row],[Input 3]],Table_PI[[#This Row],[Input 4]],'Customer Information'!$AR$12,6,ROW()),\"No Rebate\"),\"No Rebate\"),0)","v":0},{"$f":"IF(Table_PI[[#This Row],[Hide:\nFormula Name]]<>\"\",IFERROR(IF(MeasureCalc(Table_PI[[#This Row],[Hide:\nFormula Name]],Table_PI[[#This Row],[Quantity]],Table_PI[[#This Row],[List 1]],Table_PI[[#This Row],[List 2]],Table_PI[[#This Row],[List 3]],Table_PI[[#This Row],[Size]],Table_PI[[#This Row],[Input 1]],Table_PI[[#This Row],[Input 2]],Table_PI[[#This Row],[Input 3]],Table_PI[[#This Row],[Input 4]],'Customer Information'!$AR$12,1,ROW())>0,MeasureCalc(Table_PI[[#This Row],[Hide:\nFormula Name]],Table_PI[[#This Row],[Quantity]],Table_PI[[#This Row],[List 1]],Table_PI[[#This Row],[List 2]],Table_PI[[#This Row],[List 3]],Table_PI[[#This Row],[Size]],Table_PI[[#This Row],[Input 1]],Table_PI[[#This Row],[Input 2]],Table_PI[[#This Row],[Input 3]],Table_PI[[#This Row],[Input 4]],'Customer Information'!$AR$12,7,ROW()),\"No Rebate\"),\"No Rebate\"),0)","v":0},{"$f":"IF(Table_PI[[#This Row],[Hide:\nFormula Name]]<>\"\",IFERROR(IF(MeasureCalc(Table_PI[[#This Row],[Hide:\nFormula Name]],Table_PI[[#This Row],[Quantity]],Table_PI[[#This Row],[List 1]],Table_PI[[#This Row],[List 2]],Table_PI[[#This Row],[List 3]],Table_PI[[#This Row],[Size]],Table_PI[[#This Row],[Input 1]],Table_PI[[#This Row],[Input 2]],Table_PI[[#This Row],[Input 3]],Table_PI[[#This Row],[Input 4]],'Customer Information'!$AR$12,1,ROW())>0,MeasureCalc(Table_PI[[#This Row],[Hide:\nFormula Name]],Table_PI[[#This Row],[Quantity]],Table_PI[[#This Row],[List 1]],Table_PI[[#This Row],[List 2]],Table_PI[[#This Row],[List 3]],Table_PI[[#This Row],[Size]],Table_PI[[#This Row],[Input 1]],Table_PI[[#This Row],[Input 2]],Table_PI[[#This Row],[Input 3]],Table_PI[[#This Row],[Input 4]],'Customer Information'!$AR$12,8,ROW()),\"No Rebate\"),\"No Rebate\"),0)","v":0},{"$f":"IF(Table_PI[[#This Row],[Hide:\nFormula Name]]<>\"\",IF(AND(Table_PI[[#This Row],[Hide:\nFormula Name]]<>\"\",OR(Table_PI[[#This Row],[Rebate]]>0,Table_PI[[#This Row],[Rebate]]=\"No Rebate\")),TRUE,\"MI: Line Item \" & $A314),\"\")","v":""}]
[{"$f":"IF(Table_PI[[#This Row],[Hide:\nFormula Name]]<>\"\",MAX($A$2:A314)+1,\"\")","v":""},null,null,null,null,null,null,null,null,null,null,null,null,null,null,{"$f":"IFERROR(VLOOKUP(Table_PI[[#This Row],[Measure]],'Equipment Lookups'!$C$3:$D$23,2,FALSE),\"\")","v":""},{"$f":"IF(Table_PI[[#This Row],[Hide:\nFormula Name]]<>\"\",IFERROR(IF(MeasureCalc(Table_PI[[#This Row],[Hide:\nFormula Name]],Table_PI[[#This Row],[Quantity]],Table_PI[[#This Row],[List 1]],Table_PI[[#This Row],[List 2]],Table_PI[[#This Row],[List 3]],Table_PI[[#This Row],[Size]],Table_PI[[#This Row],[Input 1]],Table_PI[[#This Row],[Input 2]],Table_PI[[#This Row],[Input 3]],Table_PI[[#This Row],[Input 4]],'Customer Information'!$AR$12,1,ROW())>0,MeasureCalc(Table_PI[[#This Row],[Hide:\nFormula Name]],Table_PI[[#This Row],[Quantity]],Table_PI[[#This Row],[List 1]],Table_PI[[#This Row],[List 2]],Table_PI[[#This Row],[List 3]],Table_PI[[#This Row],[Size]],Table_PI[[#This Row],[Input 1]],Table_PI[[#This Row],[Input 2]],Table_PI[[#This Row],[Input 3]],Table_PI[[#This Row],[Input 4]],'Customer Information'!$AR$12,1,ROW()),\"No Rebate\"),\"No Rebate\"),0)","v":0},{"$f":"IF(Table_PI[[#This Row],[Hide:\nFormula Name]]<>\"\",IFERROR(IF(MeasureCalc(Table_PI[[#This Row],[Hide:\nFormula Name]],Table_PI[[#This Row],[Quantity]],Table_PI[[#This Row],[List 1]],Table_PI[[#This Row],[List 2]],Table_PI[[#This Row],[List 3]],Table_PI[[#This Row],[Size]],Table_PI[[#This Row],[Input 1]],Table_PI[[#This Row],[Input 2]],Table_PI[[#This Row],[Input 3]],Table_PI[[#This Row],[Input 4]],'Customer Information'!$AR$12,1,ROW())>0,MeasureCalc(Table_PI[[#This Row],[Hide:\nFormula Name]],Table_PI[[#This Row],[Quantity]],Table_PI[[#This Row],[List 1]],Table_PI[[#This Row],[List 2]],Table_PI[[#This Row],[List 3]],Table_PI[[#This Row],[Size]],Table_PI[[#This Row],[Input 1]],Table_PI[[#This Row],[Input 2]],Table_PI[[#This Row],[Input 3]],Table_PI[[#This Row],[Input 4]],'Customer Information'!$AR$12,2,ROW()),\"No Rebate\"),\"No Rebate\"),0)","v":0},{"$f":"IF(Table_PI[[#This Row],[Hide:\nFormula Name]]<>\"\",IFERROR(IF(MeasureCalc(Table_PI[[#This Row],[Hide:\nFormula Name]],Table_PI[[#This Row],[Quantity]],Table_PI[[#This Row],[List 1]],Table_PI[[#This Row],[List 2]],Table_PI[[#This Row],[List 3]],Table_PI[[#This Row],[Size]],Table_PI[[#This Row],[Input 1]],Table_PI[[#This Row],[Input 2]],Table_PI[[#This Row],[Input 3]],Table_PI[[#This Row],[Input 4]],'Customer Information'!$AR$12,1,ROW())>0,MeasureCalc(Table_PI[[#This Row],[Hide:\nFormula Name]],Table_PI[[#This Row],[Quantity]],Table_PI[[#This Row],[List 1]],Table_PI[[#This Row],[List 2]],Table_PI[[#This Row],[List 3]],Table_PI[[#This Row],[Size]],Table_PI[[#This Row],[Input 1]],Table_PI[[#This Row],[Input 2]],Table_PI[[#This Row],[Input 3]],Table_PI[[#This Row],[Input 4]],'Customer Information'!$AR$12,3,ROW()),\"No Rebate\"),\"No Rebate\"),0)","v":0},{"$f":"IF(Table_PI[[#This Row],[Hide:\nFormula Name]]<>\"\",IFERROR(IF(MeasureCalc(Table_PI[[#This Row],[Hide:\nFormula Name]],Table_PI[[#This Row],[Quantity]],Table_PI[[#This Row],[List 1]],Table_PI[[#This Row],[List 2]],Table_PI[[#This Row],[List 3]],Table_PI[[#This Row],[Size]],Table_PI[[#This Row],[Input 1]],Table_PI[[#This Row],[Input 2]],Table_PI[[#This Row],[Input 3]],Table_PI[[#This Row],[Input 4]],'Customer Information'!$AR$12,1,ROW())>0,MeasureCalc(Table_PI[[#This Row],[Hide:\nFormula Name]],Table_PI[[#This Row],[Quantity]],Table_PI[[#This Row],[List 1]],Table_PI[[#This Row],[List 2]],Table_PI[[#This Row],[List 3]],Table_PI[[#This Row],[Size]],Table_PI[[#This Row],[Input 1]],Table_PI[[#This Row],[Input 2]],Table_PI[[#This Row],[Input 3]],Table_PI[[#This Row],[Input 4]],'Customer Information'!$AR$12,4,ROW()),\"No Rebate\"),\"No Rebate\"),0)","v":0},{"$f":"IF(Table_PI[[#This Row],[Hide:\nFormula Name]]<>\"\",IFERROR(IF(MeasureCalc(Table_PI[[#This Row],[Hide:\nFormula Name]],Table_PI[[#This Row],[Quantity]],Table_PI[[#This Row],[List 1]],Table_PI[[#This Row],[List 2]],Table_PI[[#This Row],[List 3]],Table_PI[[#This Row],[Size]],Table_PI[[#This Row],[Input 1]],Table_PI[[#This Row],[Input 2]],Table_PI[[#This Row],[Input 3]],Table_PI[[#This Row],[Input 4]],'Customer Information'!$AR$12,1,ROW())>0,MeasureCalc(Table_PI[[#This Row],[Hide:\nFormula Name]],Table_PI[[#This Row],[Quantity]],Table_PI[[#This Row],[List 1]],Table_PI[[#This Row],[List 2]],Table_PI[[#This Row],[List 3]],Table_PI[[#This Row],[Size]],Table_PI[[#This Row],[Input 1]],Table_PI[[#This Row],[Input 2]],Table_PI[[#This Row],[Input 3]],Table_PI[[#This Row],[Input 4]],'Customer Information'!$AR$12,5,ROW()),\"No Rebate\"),\"No Rebate\"),0)","v":0},{"$f":"IF(Table_PI[[#This Row],[Hide:\nFormula Name]]<>\"\",IFERROR(IF(MeasureCalc(Table_PI[[#This Row],[Hide:\nFormula Name]],Table_PI[[#This Row],[Quantity]],Table_PI[[#This Row],[List 1]],Table_PI[[#This Row],[List 2]],Table_PI[[#This Row],[List 3]],Table_PI[[#This Row],[Size]],Table_PI[[#This Row],[Input 1]],Table_PI[[#This Row],[Input 2]],Table_PI[[#This Row],[Input 3]],Table_PI[[#This Row],[Input 4]],'Customer Information'!$AR$12,1,ROW())>0,MeasureCalc(Table_PI[[#This Row],[Hide:\nFormula Name]],Table_PI[[#This Row],[Quantity]],Table_PI[[#This Row],[List 1]],Table_PI[[#This Row],[List 2]],Table_PI[[#This Row],[List 3]],Table_PI[[#This Row],[Size]],Table_PI[[#This Row],[Input 1]],Table_PI[[#This Row],[Input 2]],Table_PI[[#This Row],[Input 3]],Table_PI[[#This Row],[Input 4]],'Customer Information'!$AR$12,6,ROW()),\"No Rebate\"),\"No Rebate\"),0)","v":0},{"$f":"IF(Table_PI[[#This Row],[Hide:\nFormula Name]]<>\"\",IFERROR(IF(MeasureCalc(Table_PI[[#This Row],[Hide:\nFormula Name]],Table_PI[[#This Row],[Quantity]],Table_PI[[#This Row],[List 1]],Table_PI[[#This Row],[List 2]],Table_PI[[#This Row],[List 3]],Table_PI[[#This Row],[Size]],Table_PI[[#This Row],[Input 1]],Table_PI[[#This Row],[Input 2]],Table_PI[[#This Row],[Input 3]],Table_PI[[#This Row],[Input 4]],'Customer Information'!$AR$12,1,ROW())>0,MeasureCalc(Table_PI[[#This Row],[Hide:\nFormula Name]],Table_PI[[#This Row],[Quantity]],Table_PI[[#This Row],[List 1]],Table_PI[[#This Row],[List 2]],Table_PI[[#This Row],[List 3]],Table_PI[[#This Row],[Size]],Table_PI[[#This Row],[Input 1]],Table_PI[[#This Row],[Input 2]],Table_PI[[#This Row],[Input 3]],Table_PI[[#This Row],[Input 4]],'Customer Information'!$AR$12,7,ROW()),\"No Rebate\"),\"No Rebate\"),0)","v":0},{"$f":"IF(Table_PI[[#This Row],[Hide:\nFormula Name]]<>\"\",IFERROR(IF(MeasureCalc(Table_PI[[#This Row],[Hide:\nFormula Name]],Table_PI[[#This Row],[Quantity]],Table_PI[[#This Row],[List 1]],Table_PI[[#This Row],[List 2]],Table_PI[[#This Row],[List 3]],Table_PI[[#This Row],[Size]],Table_PI[[#This Row],[Input 1]],Table_PI[[#This Row],[Input 2]],Table_PI[[#This Row],[Input 3]],Table_PI[[#This Row],[Input 4]],'Customer Information'!$AR$12,1,ROW())>0,MeasureCalc(Table_PI[[#This Row],[Hide:\nFormula Name]],Table_PI[[#This Row],[Quantity]],Table_PI[[#This Row],[List 1]],Table_PI[[#This Row],[List 2]],Table_PI[[#This Row],[List 3]],Table_PI[[#This Row],[Size]],Table_PI[[#This Row],[Input 1]],Table_PI[[#This Row],[Input 2]],Table_PI[[#This Row],[Input 3]],Table_PI[[#This Row],[Input 4]],'Customer Information'!$AR$12,8,ROW()),\"No Rebate\"),\"No Rebate\"),0)","v":0},{"$f":"IF(Table_PI[[#This Row],[Hide:\nFormula Name]]<>\"\",IF(AND(Table_PI[[#This Row],[Hide:\nFormula Name]]<>\"\",OR(Table_PI[[#This Row],[Rebate]]>0,Table_PI[[#This Row],[Rebate]]=\"No Rebate\")),TRUE,\"MI: Line Item \" & $A315),\"\")","v":""}]
[{"$f":"IF(Table_PI[[#This Row],[Hide:\nFormula Name]]<>\"\",MAX($A$2:A315)+1,\"\")","v":""},null,null,null,null,null,null,null,null,null,null,null,null,null,null,{"$f":"IFERROR(VLOOKUP(Table_PI[[#This Row],[Measure]],'Equipment Lookups'!$C$3:$D$23,2,FALSE),\"\")","v":""},{"$f":"IF(Table_PI[[#This Row],[Hide:\nFormula Name]]<>\"\",IFERROR(IF(MeasureCalc(Table_PI[[#This Row],[Hide:\nFormula Name]],Table_PI[[#This Row],[Quantity]],Table_PI[[#This Row],[List 1]],Table_PI[[#This Row],[List 2]],Table_PI[[#This Row],[List 3]],Table_PI[[#This Row],[Size]],Table_PI[[#This Row],[Input 1]],Table_PI[[#This Row],[Input 2]],Table_PI[[#This Row],[Input 3]],Table_PI[[#This Row],[Input 4]],'Customer Information'!$AR$12,1,ROW())>0,MeasureCalc(Table_PI[[#This Row],[Hide:\nFormula Name]],Table_PI[[#This Row],[Quantity]],Table_PI[[#This Row],[List 1]],Table_PI[[#This Row],[List 2]],Table_PI[[#This Row],[List 3]],Table_PI[[#This Row],[Size]],Table_PI[[#This Row],[Input 1]],Table_PI[[#This Row],[Input 2]],Table_PI[[#This Row],[Input 3]],Table_PI[[#This Row],[Input 4]],'Customer Information'!$AR$12,1,ROW()),\"No Rebate\"),\"No Rebate\"),0)","v":0},{"$f":"IF(Table_PI[[#This Row],[Hide:\nFormula Name]]<>\"\",IFERROR(IF(MeasureCalc(Table_PI[[#This Row],[Hide:\nFormula Name]],Table_PI[[#This Row],[Quantity]],Table_PI[[#This Row],[List 1]],Table_PI[[#This Row],[List 2]],Table_PI[[#This Row],[List 3]],Table_PI[[#This Row],[Size]],Table_PI[[#This Row],[Input 1]],Table_PI[[#This Row],[Input 2]],Table_PI[[#This Row],[Input 3]],Table_PI[[#This Row],[Input 4]],'Customer Information'!$AR$12,1,ROW())>0,MeasureCalc(Table_PI[[#This Row],[Hide:\nFormula Name]],Table_PI[[#This Row],[Quantity]],Table_PI[[#This Row],[List 1]],Table_PI[[#This Row],[List 2]],Table_PI[[#This Row],[List 3]],Table_PI[[#This Row],[Size]],Table_PI[[#This Row],[Input 1]],Table_PI[[#This Row],[Input 2]],Table_PI[[#This Row],[Input 3]],Table_PI[[#This Row],[Input 4]],'Customer Information'!$AR$12,2,ROW()),\"No Rebate\"),\"No Rebate\"),0)","v":0},{"$f":"IF(Table_PI[[#This Row],[Hide:\nFormula Name]]<>\"\",IFERROR(IF(MeasureCalc(Table_PI[[#This Row],[Hide:\nFormula Name]],Table_PI[[#This Row],[Quantity]],Table_PI[[#This Row],[List 1]],Table_PI[[#This Row],[List 2]],Table_PI[[#This Row],[List 3]],Table_PI[[#This Row],[Size]],Table_PI[[#This Row],[Input 1]],Table_PI[[#This Row],[Input 2]],Table_PI[[#This Row],[Input 3]],Table_PI[[#This Row],[Input 4]],'Customer Information'!$AR$12,1,ROW())>0,MeasureCalc(Table_PI[[#This Row],[Hide:\nFormula Name]],Table_PI[[#This Row],[Quantity]],Table_PI[[#This Row],[List 1]],Table_PI[[#This Row],[List 2]],Table_PI[[#This Row],[List 3]],Table_PI[[#This Row],[Size]],Table_PI[[#This Row],[Input 1]],Table_PI[[#This Row],[Input 2]],Table_PI[[#This Row],[Input 3]],Table_PI[[#This Row],[Input 4]],'Customer Information'!$AR$12,3,ROW()),\"No Rebate\"),\"No Rebate\"),0)","v":0},{"$f":"IF(Table_PI[[#This Row],[Hide:\nFormula Name]]<>\"\",IFERROR(IF(MeasureCalc(Table_PI[[#This Row],[Hide:\nFormula Name]],Table_PI[[#This Row],[Quantity]],Table_PI[[#This Row],[List 1]],Table_PI[[#This Row],[List 2]],Table_PI[[#This Row],[List 3]],Table_PI[[#This Row],[Size]],Table_PI[[#This Row],[Input 1]],Table_PI[[#This Row],[Input 2]],Table_PI[[#This Row],[Input 3]],Table_PI[[#This Row],[Input 4]],'Customer Information'!$AR$12,1,ROW())>0,MeasureCalc(Table_PI[[#This Row],[Hide:\nFormula Name]],Table_PI[[#This Row],[Quantity]],Table_PI[[#This Row],[List 1]],Table_PI[[#This Row],[List 2]],Table_PI[[#This Row],[List 3]],Table_PI[[#This Row],[Size]],Table_PI[[#This Row],[Input 1]],Table_PI[[#This Row],[Input 2]],Table_PI[[#This Row],[Input 3]],Table_PI[[#This Row],[Input 4]],'Customer Information'!$AR$12,4,ROW()),\"No Rebate\"),\"No Rebate\"),0)","v":0},{"$f":"IF(Table_PI[[#This Row],[Hide:\nFormula Name]]<>\"\",IFERROR(IF(MeasureCalc(Table_PI[[#This Row],[Hide:\nFormula Name]],Table_PI[[#This Row],[Quantity]],Table_PI[[#This Row],[List 1]],Table_PI[[#This Row],[List 2]],Table_PI[[#This Row],[List 3]],Table_PI[[#This Row],[Size]],Table_PI[[#This Row],[Input 1]],Table_PI[[#This Row],[Input 2]],Table_PI[[#This Row],[Input 3]],Table_PI[[#This Row],[Input 4]],'Customer Information'!$AR$12,1,ROW())>0,MeasureCalc(Table_PI[[#This Row],[Hide:\nFormula Name]],Table_PI[[#This Row],[Quantity]],Table_PI[[#This Row],[List 1]],Table_PI[[#This Row],[List 2]],Table_PI[[#This Row],[List 3]],Table_PI[[#This Row],[Size]],Table_PI[[#This Row],[Input 1]],Table_PI[[#This Row],[Input 2]],Table_PI[[#This Row],[Input 3]],Table_PI[[#This Row],[Input 4]],'Customer Information'!$AR$12,5,ROW()),\"No Rebate\"),\"No Rebate\"),0)","v":0},{"$f":"IF(Table_PI[[#This Row],[Hide:\nFormula Name]]<>\"\",IFERROR(IF(MeasureCalc(Table_PI[[#This Row],[Hide:\nFormula Name]],Table_PI[[#This Row],[Quantity]],Table_PI[[#This Row],[List 1]],Table_PI[[#This Row],[List 2]],Table_PI[[#This Row],[List 3]],Table_PI[[#This Row],[Size]],Table_PI[[#This Row],[Input 1]],Table_PI[[#This Row],[Input 2]],Table_PI[[#This Row],[Input 3]],Table_PI[[#This Row],[Input 4]],'Customer Information'!$AR$12,1,ROW())>0,MeasureCalc(Table_PI[[#This Row],[Hide:\nFormula Name]],Table_PI[[#This Row],[Quantity]],Table_PI[[#This Row],[List 1]],Table_PI[[#This Row],[List 2]],Table_PI[[#This Row],[List 3]],Table_PI[[#This Row],[Size]],Table_PI[[#This Row],[Input 1]],Table_PI[[#This Row],[Input 2]],Table_PI[[#This Row],[Input 3]],Table_PI[[#This Row],[Input 4]],'Customer Information'!$AR$12,6,ROW()),\"No Rebate\"),\"No Rebate\"),0)","v":0},{"$f":"IF(Table_PI[[#This Row],[Hide:\nFormula Name]]<>\"\",IFERROR(IF(MeasureCalc(Table_PI[[#This Row],[Hide:\nFormula Name]],Table_PI[[#This Row],[Quantity]],Table_PI[[#This Row],[List 1]],Table_PI[[#This Row],[List 2]],Table_PI[[#This Row],[List 3]],Table_PI[[#This Row],[Size]],Table_PI[[#This Row],[Input 1]],Table_PI[[#This Row],[Input 2]],Table_PI[[#This Row],[Input 3]],Table_PI[[#This Row],[Input 4]],'Customer Information'!$AR$12,1,ROW())>0,MeasureCalc(Table_PI[[#This Row],[Hide:\nFormula Name]],Table_PI[[#This Row],[Quantity]],Table_PI[[#This Row],[List 1]],Table_PI[[#This Row],[List 2]],Table_PI[[#This Row],[List 3]],Table_PI[[#This Row],[Size]],Table_PI[[#This Row],[Input 1]],Table_PI[[#This Row],[Input 2]],Table_PI[[#This Row],[Input 3]],Table_PI[[#This Row],[Input 4]],'Customer Information'!$AR$12,7,ROW()),\"No Rebate\"),\"No Rebate\"),0)","v":0},{"$f":"IF(Table_PI[[#This Row],[Hide:\nFormula Name]]<>\"\",IFERROR(IF(MeasureCalc(Table_PI[[#This Row],[Hide:\nFormula Name]],Table_PI[[#This Row],[Quantity]],Table_PI[[#This Row],[List 1]],Table_PI[[#This Row],[List 2]],Table_PI[[#This Row],[List 3]],Table_PI[[#This Row],[Size]],Table_PI[[#This Row],[Input 1]],Table_PI[[#This Row],[Input 2]],Table_PI[[#This Row],[Input 3]],Table_PI[[#This Row],[Input 4]],'Customer Information'!$AR$12,1,ROW())>0,MeasureCalc(Table_PI[[#This Row],[Hide:\nFormula Name]],Table_PI[[#This Row],[Quantity]],Table_PI[[#This Row],[List 1]],Table_PI[[#This Row],[List 2]],Table_PI[[#This Row],[List 3]],Table_PI[[#This Row],[Size]],Table_PI[[#This Row],[Input 1]],Table_PI[[#This Row],[Input 2]],Table_PI[[#This Row],[Input 3]],Table_PI[[#This Row],[Input 4]],'Customer Information'!$AR$12,8,ROW()),\"No Rebate\"),\"No Rebate\"),0)","v":0},{"$f":"IF(Table_PI[[#This Row],[Hide:\nFormula Name]]<>\"\",IF(AND(Table_PI[[#This Row],[Hide:\nFormula Name]]<>\"\",OR(Table_PI[[#This Row],[Rebate]]>0,Table_PI[[#This Row],[Rebate]]=\"No Rebate\")),TRUE,\"MI: Line Item \" & $A316),\"\")","v":""}]
[{"$f":"IF(Table_PI[[#This Row],[Hide:\nFormula Name]]<>\"\",MAX($A$2:A316)+1,\"\")","v":""},null,null,null,null,null,null,null,null,null,null,null,null,null,null,{"$f":"IFERROR(VLOOKUP(Table_PI[[#This Row],[Measure]],'Equipment Lookups'!$C$3:$D$23,2,FALSE),\"\")","v":""},{"$f":"IF(Table_PI[[#This Row],[Hide:\nFormula Name]]<>\"\",IFERROR(IF(MeasureCalc(Table_PI[[#This Row],[Hide:\nFormula Name]],Table_PI[[#This Row],[Quantity]],Table_PI[[#This Row],[List 1]],Table_PI[[#This Row],[List 2]],Table_PI[[#This Row],[List 3]],Table_PI[[#This Row],[Size]],Table_PI[[#This Row],[Input 1]],Table_PI[[#This Row],[Input 2]],Table_PI[[#This Row],[Input 3]],Table_PI[[#This Row],[Input 4]],'Customer Information'!$AR$12,1,ROW())>0,MeasureCalc(Table_PI[[#This Row],[Hide:\nFormula Name]],Table_PI[[#This Row],[Quantity]],Table_PI[[#This Row],[List 1]],Table_PI[[#This Row],[List 2]],Table_PI[[#This Row],[List 3]],Table_PI[[#This Row],[Size]],Table_PI[[#This Row],[Input 1]],Table_PI[[#This Row],[Input 2]],Table_PI[[#This Row],[Input 3]],Table_PI[[#This Row],[Input 4]],'Customer Information'!$AR$12,1,ROW()),\"No Rebate\"),\"No Rebate\"),0)","v":0},{"$f":"IF(Table_PI[[#This Row],[Hide:\nFormula Name]]<>\"\",IFERROR(IF(MeasureCalc(Table_PI[[#This Row],[Hide:\nFormula Name]],Table_PI[[#This Row],[Quantity]],Table_PI[[#This Row],[List 1]],Table_PI[[#This Row],[List 2]],Table_PI[[#This Row],[List 3]],Table_PI[[#This Row],[Size]],Table_PI[[#This Row],[Input 1]],Table_PI[[#This Row],[Input 2]],Table_PI[[#This Row],[Input 3]],Table_PI[[#This Row],[Input 4]],'Customer Information'!$AR$12,1,ROW())>0,MeasureCalc(Table_PI[[#This Row],[Hide:\nFormula Name]],Table_PI[[#This Row],[Quantity]],Table_PI[[#This Row],[List 1]],Table_PI[[#This Row],[List 2]],Table_PI[[#This Row],[List 3]],Table_PI[[#This Row],[Size]],Table_PI[[#This Row],[Input 1]],Table_PI[[#This Row],[Input 2]],Table_PI[[#This Row],[Input 3]],Table_PI[[#This Row],[Input 4]],'Customer Information'!$AR$12,2,ROW()),\"No Rebate\"),\"No Rebate\"),0)","v":0},{"$f":"IF(Table_PI[[#This Row],[Hide:\nFormula Name]]<>\"\",IFERROR(IF(MeasureCalc(Table_PI[[#This Row],[Hide:\nFormula Name]],Table_PI[[#This Row],[Quantity]],Table_PI[[#This Row],[List 1]],Table_PI[[#This Row],[List 2]],Table_PI[[#This Row],[List 3]],Table_PI[[#This Row],[Size]],Table_PI[[#This Row],[Input 1]],Table_PI[[#This Row],[Input 2]],Table_PI[[#This Row],[Input 3]],Table_PI[[#This Row],[Input 4]],'Customer Information'!$AR$12,1,ROW())>0,MeasureCalc(Table_PI[[#This Row],[Hide:\nFormula Name]],Table_PI[[#This Row],[Quantity]],Table_PI[[#This Row],[List 1]],Table_PI[[#This Row],[List 2]],Table_PI[[#This Row],[List 3]],Table_PI[[#This Row],[Size]],Table_PI[[#This Row],[Input 1]],Table_PI[[#This Row],[Input 2]],Table_PI[[#This Row],[Input 3]],Table_PI[[#This Row],[Input 4]],'Customer Information'!$AR$12,3,ROW()),\"No Rebate\"),\"No Rebate\"),0)","v":0},{"$f":"IF(Table_PI[[#This Row],[Hide:\nFormula Name]]<>\"\",IFERROR(IF(MeasureCalc(Table_PI[[#This Row],[Hide:\nFormula Name]],Table_PI[[#This Row],[Quantity]],Table_PI[[#This Row],[List 1]],Table_PI[[#This Row],[List 2]],Table_PI[[#This Row],[List 3]],Table_PI[[#This Row],[Size]],Table_PI[[#This Row],[Input 1]],Table_PI[[#This Row],[Input 2]],Table_PI[[#This Row],[Input 3]],Table_PI[[#This Row],[Input 4]],'Customer Information'!$AR$12,1,ROW())>0,MeasureCalc(Table_PI[[#This Row],[Hide:\nFormula Name]],Table_PI[[#This Row],[Quantity]],Table_PI[[#This Row],[List 1]],Table_PI[[#This Row],[List 2]],Table_PI[[#This Row],[List 3]],Table_PI[[#This Row],[Size]],Table_PI[[#This Row],[Input 1]],Table_PI[[#This Row],[Input 2]],Table_PI[[#This Row],[Input 3]],Table_PI[[#This Row],[Input 4]],'Customer Information'!$AR$12,4,ROW()),\"No Rebate\"),\"No Rebate\"),0)","v":0},{"$f":"IF(Table_PI[[#This Row],[Hide:\nFormula Name]]<>\"\",IFERROR(IF(MeasureCalc(Table_PI[[#This Row],[Hide:\nFormula Name]],Table_PI[[#This Row],[Quantity]],Table_PI[[#This Row],[List 1]],Table_PI[[#This Row],[List 2]],Table_PI[[#This Row],[List 3]],Table_PI[[#This Row],[Size]],Table_PI[[#This Row],[Input 1]],Table_PI[[#This Row],[Input 2]],Table_PI[[#This Row],[Input 3]],Table_PI[[#This Row],[Input 4]],'Customer Information'!$AR$12,1,ROW())>0,MeasureCalc(Table_PI[[#This Row],[Hide:\nFormula Name]],Table_PI[[#This Row],[Quantity]],Table_PI[[#This Row],[List 1]],Table_PI[[#This Row],[List 2]],Table_PI[[#This Row],[List 3]],Table_PI[[#This Row],[Size]],Table_PI[[#This Row],[Input 1]],Table_PI[[#This Row],[Input 2]],Table_PI[[#This Row],[Input 3]],Table_PI[[#This Row],[Input 4]],'Customer Information'!$AR$12,5,ROW()),\"No Rebate\"),\"No Rebate\"),0)","v":0},{"$f":"IF(Table_PI[[#This Row],[Hide:\nFormula Name]]<>\"\",IFERROR(IF(MeasureCalc(Table_PI[[#This Row],[Hide:\nFormula Name]],Table_PI[[#This Row],[Quantity]],Table_PI[[#This Row],[List 1]],Table_PI[[#This Row],[List 2]],Table_PI[[#This Row],[List 3]],Table_PI[[#This Row],[Size]],Table_PI[[#This Row],[Input 1]],Table_PI[[#This Row],[Input 2]],Table_PI[[#This Row],[Input 3]],Table_PI[[#This Row],[Input 4]],'Customer Information'!$AR$12,1,ROW())>0,MeasureCalc(Table_PI[[#This Row],[Hide:\nFormula Name]],Table_PI[[#This Row],[Quantity]],Table_PI[[#This Row],[List 1]],Table_PI[[#This Row],[List 2]],Table_PI[[#This Row],[List 3]],Table_PI[[#This Row],[Size]],Table_PI[[#This Row],[Input 1]],Table_PI[[#This Row],[Input 2]],Table_PI[[#This Row],[Input 3]],Table_PI[[#This Row],[Input 4]],'Customer Information'!$AR$12,6,ROW()),\"No Rebate\"),\"No Rebate\"),0)","v":0},{"$f":"IF(Table_PI[[#This Row],[Hide:\nFormula Name]]<>\"\",IFERROR(IF(MeasureCalc(Table_PI[[#This Row],[Hide:\nFormula Name]],Table_PI[[#This Row],[Quantity]],Table_PI[[#This Row],[List 1]],Table_PI[[#This Row],[List 2]],Table_PI[[#This Row],[List 3]],Table_PI[[#This Row],[Size]],Table_PI[[#This Row],[Input 1]],Table_PI[[#This Row],[Input 2]],Table_PI[[#This Row],[Input 3]],Table_PI[[#This Row],[Input 4]],'Customer Information'!$AR$12,1,ROW())>0,MeasureCalc(Table_PI[[#This Row],[Hide:\nFormula Name]],Table_PI[[#This Row],[Quantity]],Table_PI[[#This Row],[List 1]],Table_PI[[#This Row],[List 2]],Table_PI[[#This Row],[List 3]],Table_PI[[#This Row],[Size]],Table_PI[[#This Row],[Input 1]],Table_PI[[#This Row],[Input 2]],Table_PI[[#This Row],[Input 3]],Table_PI[[#This Row],[Input 4]],'Customer Information'!$AR$12,7,ROW()),\"No Rebate\"),\"No Rebate\"),0)","v":0},{"$f":"IF(Table_PI[[#This Row],[Hide:\nFormula Name]]<>\"\",IFERROR(IF(MeasureCalc(Table_PI[[#This Row],[Hide:\nFormula Name]],Table_PI[[#This Row],[Quantity]],Table_PI[[#This Row],[List 1]],Table_PI[[#This Row],[List 2]],Table_PI[[#This Row],[List 3]],Table_PI[[#This Row],[Size]],Table_PI[[#This Row],[Input 1]],Table_PI[[#This Row],[Input 2]],Table_PI[[#This Row],[Input 3]],Table_PI[[#This Row],[Input 4]],'Customer Information'!$AR$12,1,ROW())>0,MeasureCalc(Table_PI[[#This Row],[Hide:\nFormula Name]],Table_PI[[#This Row],[Quantity]],Table_PI[[#This Row],[List 1]],Table_PI[[#This Row],[List 2]],Table_PI[[#This Row],[List 3]],Table_PI[[#This Row],[Size]],Table_PI[[#This Row],[Input 1]],Table_PI[[#This Row],[Input 2]],Table_PI[[#This Row],[Input 3]],Table_PI[[#This Row],[Input 4]],'Customer Information'!$AR$12,8,ROW()),\"No Rebate\"),\"No Rebate\"),0)","v":0},{"$f":"IF(Table_PI[[#This Row],[Hide:\nFormula Name]]<>\"\",IF(AND(Table_PI[[#This Row],[Hide:\nFormula Name]]<>\"\",OR(Table_PI[[#This Row],[Rebate]]>0,Table_PI[[#This Row],[Rebate]]=\"No Rebate\")),TRUE,\"MI: Line Item \" & $A317),\"\")","v":""}]
[{"$f":"IF(Table_PI[[#This Row],[Hide:\nFormula Name]]<>\"\",MAX($A$2:A317)+1,\"\")","v":""},null,null,null,null,null,null,null,null,null,null,null,null,null,null,{"$f":"IFERROR(VLOOKUP(Table_PI[[#This Row],[Measure]],'Equipment Lookups'!$C$3:$D$23,2,FALSE),\"\")","v":""},{"$f":"IF(Table_PI[[#This Row],[Hide:\nFormula Name]]<>\"\",IFERROR(IF(MeasureCalc(Table_PI[[#This Row],[Hide:\nFormula Name]],Table_PI[[#This Row],[Quantity]],Table_PI[[#This Row],[List 1]],Table_PI[[#This Row],[List 2]],Table_PI[[#This Row],[List 3]],Table_PI[[#This Row],[Size]],Table_PI[[#This Row],[Input 1]],Table_PI[[#This Row],[Input 2]],Table_PI[[#This Row],[Input 3]],Table_PI[[#This Row],[Input 4]],'Customer Information'!$AR$12,1,ROW())>0,MeasureCalc(Table_PI[[#This Row],[Hide:\nFormula Name]],Table_PI[[#This Row],[Quantity]],Table_PI[[#This Row],[List 1]],Table_PI[[#This Row],[List 2]],Table_PI[[#This Row],[List 3]],Table_PI[[#This Row],[Size]],Table_PI[[#This Row],[Input 1]],Table_PI[[#This Row],[Input 2]],Table_PI[[#This Row],[Input 3]],Table_PI[[#This Row],[Input 4]],'Customer Information'!$AR$12,1,ROW()),\"No Rebate\"),\"No Rebate\"),0)","v":0},{"$f":"IF(Table_PI[[#This Row],[Hide:\nFormula Name]]<>\"\",IFERROR(IF(MeasureCalc(Table_PI[[#This Row],[Hide:\nFormula Name]],Table_PI[[#This Row],[Quantity]],Table_PI[[#This Row],[List 1]],Table_PI[[#This Row],[List 2]],Table_PI[[#This Row],[List 3]],Table_PI[[#This Row],[Size]],Table_PI[[#This Row],[Input 1]],Table_PI[[#This Row],[Input 2]],Table_PI[[#This Row],[Input 3]],Table_PI[[#This Row],[Input 4]],'Customer Information'!$AR$12,1,ROW())>0,MeasureCalc(Table_PI[[#This Row],[Hide:\nFormula Name]],Table_PI[[#This Row],[Quantity]],Table_PI[[#This Row],[List 1]],Table_PI[[#This Row],[List 2]],Table_PI[[#This Row],[List 3]],Table_PI[[#This Row],[Size]],Table_PI[[#This Row],[Input 1]],Table_PI[[#This Row],[Input 2]],Table_PI[[#This Row],[Input 3]],Table_PI[[#This Row],[Input 4]],'Customer Information'!$AR$12,2,ROW()),\"No Rebate\"),\"No Rebate\"),0)","v":0},{"$f":"IF(Table_PI[[#This Row],[Hide:\nFormula Name]]<>\"\",IFERROR(IF(MeasureCalc(Table_PI[[#This Row],[Hide:\nFormula Name]],Table_PI[[#This Row],[Quantity]],Table_PI[[#This Row],[List 1]],Table_PI[[#This Row],[List 2]],Table_PI[[#This Row],[List 3]],Table_PI[[#This Row],[Size]],Table_PI[[#This Row],[Input 1]],Table_PI[[#This Row],[Input 2]],Table_PI[[#This Row],[Input 3]],Table_PI[[#This Row],[Input 4]],'Customer Information'!$AR$12,1,ROW())>0,MeasureCalc(Table_PI[[#This Row],[Hide:\nFormula Name]],Table_PI[[#This Row],[Quantity]],Table_PI[[#This Row],[List 1]],Table_PI[[#This Row],[List 2]],Table_PI[[#This Row],[List 3]],Table_PI[[#This Row],[Size]],Table_PI[[#This Row],[Input 1]],Table_PI[[#This Row],[Input 2]],Table_PI[[#This Row],[Input 3]],Table_PI[[#This Row],[Input 4]],'Customer Information'!$AR$12,3,ROW()),\"No Rebate\"),\"No Rebate\"),0)","v":0},{"$f":"IF(Table_PI[[#This Row],[Hide:\nFormula Name]]<>\"\",IFERROR(IF(MeasureCalc(Table_PI[[#This Row],[Hide:\nFormula Name]],Table_PI[[#This Row],[Quantity]],Table_PI[[#This Row],[List 1]],Table_PI[[#This Row],[List 2]],Table_PI[[#This Row],[List 3]],Table_PI[[#This Row],[Size]],Table_PI[[#This Row],[Input 1]],Table_PI[[#This Row],[Input 2]],Table_PI[[#This Row],[Input 3]],Table_PI[[#This Row],[Input 4]],'Customer Information'!$AR$12,1,ROW())>0,MeasureCalc(Table_PI[[#This Row],[Hide:\nFormula Name]],Table_PI[[#This Row],[Quantity]],Table_PI[[#This Row],[List 1]],Table_PI[[#This Row],[List 2]],Table_PI[[#This Row],[List 3]],Table_PI[[#This Row],[Size]],Table_PI[[#This Row],[Input 1]],Table_PI[[#This Row],[Input 2]],Table_PI[[#This Row],[Input 3]],Table_PI[[#This Row],[Input 4]],'Customer Information'!$AR$12,4,ROW()),\"No Rebate\"),\"No Rebate\"),0)","v":0},{"$f":"IF(Table_PI[[#This Row],[Hide:\nFormula Name]]<>\"\",IFERROR(IF(MeasureCalc(Table_PI[[#This Row],[Hide:\nFormula Name]],Table_PI[[#This Row],[Quantity]],Table_PI[[#This Row],[List 1]],Table_PI[[#This Row],[List 2]],Table_PI[[#This Row],[List 3]],Table_PI[[#This Row],[Size]],Table_PI[[#This Row],[Input 1]],Table_PI[[#This Row],[Input 2]],Table_PI[[#This Row],[Input 3]],Table_PI[[#This Row],[Input 4]],'Customer Information'!$AR$12,1,ROW())>0,MeasureCalc(Table_PI[[#This Row],[Hide:\nFormula Name]],Table_PI[[#This Row],[Quantity]],Table_PI[[#This Row],[List 1]],Table_PI[[#This Row],[List 2]],Table_PI[[#This Row],[List 3]],Table_PI[[#This Row],[Size]],Table_PI[[#This Row],[Input 1]],Table_PI[[#This Row],[Input 2]],Table_PI[[#This Row],[Input 3]],Table_PI[[#This Row],[Input 4]],'Customer Information'!$AR$12,5,ROW()),\"No Rebate\"),\"No Rebate\"),0)","v":0},{"$f":"IF(Table_PI[[#This Row],[Hide:\nFormula Name]]<>\"\",IFERROR(IF(MeasureCalc(Table_PI[[#This Row],[Hide:\nFormula Name]],Table_PI[[#This Row],[Quantity]],Table_PI[[#This Row],[List 1]],Table_PI[[#This Row],[List 2]],Table_PI[[#This Row],[List 3]],Table_PI[[#This Row],[Size]],Table_PI[[#This Row],[Input 1]],Table_PI[[#This Row],[Input 2]],Table_PI[[#This Row],[Input 3]],Table_PI[[#This Row],[Input 4]],'Customer Information'!$AR$12,1,ROW())>0,MeasureCalc(Table_PI[[#This Row],[Hide:\nFormula Name]],Table_PI[[#This Row],[Quantity]],Table_PI[[#This Row],[List 1]],Table_PI[[#This Row],[List 2]],Table_PI[[#This Row],[List 3]],Table_PI[[#This Row],[Size]],Table_PI[[#This Row],[Input 1]],Table_PI[[#This Row],[Input 2]],Table_PI[[#This Row],[Input 3]],Table_PI[[#This Row],[Input 4]],'Customer Information'!$AR$12,6,ROW()),\"No Rebate\"),\"No Rebate\"),0)","v":0},{"$f":"IF(Table_PI[[#This Row],[Hide:\nFormula Name]]<>\"\",IFERROR(IF(MeasureCalc(Table_PI[[#This Row],[Hide:\nFormula Name]],Table_PI[[#This Row],[Quantity]],Table_PI[[#This Row],[List 1]],Table_PI[[#This Row],[List 2]],Table_PI[[#This Row],[List 3]],Table_PI[[#This Row],[Size]],Table_PI[[#This Row],[Input 1]],Table_PI[[#This Row],[Input 2]],Table_PI[[#This Row],[Input 3]],Table_PI[[#This Row],[Input 4]],'Customer Information'!$AR$12,1,ROW())>0,MeasureCalc(Table_PI[[#This Row],[Hide:\nFormula Name]],Table_PI[[#This Row],[Quantity]],Table_PI[[#This Row],[List 1]],Table_PI[[#This Row],[List 2]],Table_PI[[#This Row],[List 3]],Table_PI[[#This Row],[Size]],Table_PI[[#This Row],[Input 1]],Table_PI[[#This Row],[Input 2]],Table_PI[[#This Row],[Input 3]],Table_PI[[#This Row],[Input 4]],'Customer Information'!$AR$12,7,ROW()),\"No Rebate\"),\"No Rebate\"),0)","v":0},{"$f":"IF(Table_PI[[#This Row],[Hide:\nFormula Name]]<>\"\",IFERROR(IF(MeasureCalc(Table_PI[[#This Row],[Hide:\nFormula Name]],Table_PI[[#This Row],[Quantity]],Table_PI[[#This Row],[List 1]],Table_PI[[#This Row],[List 2]],Table_PI[[#This Row],[List 3]],Table_PI[[#This Row],[Size]],Table_PI[[#This Row],[Input 1]],Table_PI[[#This Row],[Input 2]],Table_PI[[#This Row],[Input 3]],Table_PI[[#This Row],[Input 4]],'Customer Information'!$AR$12,1,ROW())>0,MeasureCalc(Table_PI[[#This Row],[Hide:\nFormula Name]],Table_PI[[#This Row],[Quantity]],Table_PI[[#This Row],[List 1]],Table_PI[[#This Row],[List 2]],Table_PI[[#This Row],[List 3]],Table_PI[[#This Row],[Size]],Table_PI[[#This Row],[Input 1]],Table_PI[[#This Row],[Input 2]],Table_PI[[#This Row],[Input 3]],Table_PI[[#This Row],[Input 4]],'Customer Information'!$AR$12,8,ROW()),\"No Rebate\"),\"No Rebate\"),0)","v":0},{"$f":"IF(Table_PI[[#This Row],[Hide:\nFormula Name]]<>\"\",IF(AND(Table_PI[[#This Row],[Hide:\nFormula Name]]<>\"\",OR(Table_PI[[#This Row],[Rebate]]>0,Table_PI[[#This Row],[Rebate]]=\"No Rebate\")),TRUE,\"MI: Line Item \" & $A318),\"\")","v":""}]
[{"$f":"IF(Table_PI[[#This Row],[Hide:\nFormula Name]]<>\"\",MAX($A$2:A318)+1,\"\")","v":""},null,null,null,null,null,null,null,null,null,null,null,null,null,null,{"$f":"IFERROR(VLOOKUP(Table_PI[[#This Row],[Measure]],'Equipment Lookups'!$C$3:$D$23,2,FALSE),\"\")","v":""},{"$f":"IF(Table_PI[[#This Row],[Hide:\nFormula Name]]<>\"\",IFERROR(IF(MeasureCalc(Table_PI[[#This Row],[Hide:\nFormula Name]],Table_PI[[#This Row],[Quantity]],Table_PI[[#This Row],[List 1]],Table_PI[[#This Row],[List 2]],Table_PI[[#This Row],[List 3]],Table_PI[[#This Row],[Size]],Table_PI[[#This Row],[Input 1]],Table_PI[[#This Row],[Input 2]],Table_PI[[#This Row],[Input 3]],Table_PI[[#This Row],[Input 4]],'Customer Information'!$AR$12,1,ROW())>0,MeasureCalc(Table_PI[[#This Row],[Hide:\nFormula Name]],Table_PI[[#This Row],[Quantity]],Table_PI[[#This Row],[List 1]],Table_PI[[#This Row],[List 2]],Table_PI[[#This Row],[List 3]],Table_PI[[#This Row],[Size]],Table_PI[[#This Row],[Input 1]],Table_PI[[#This Row],[Input 2]],Table_PI[[#This Row],[Input 3]],Table_PI[[#This Row],[Input 4]],'Customer Information'!$AR$12,1,ROW()),\"No Rebate\"),\"No Rebate\"),0)","v":0},{"$f":"IF(Table_PI[[#This Row],[Hide:\nFormula Name]]<>\"\",IFERROR(IF(MeasureCalc(Table_PI[[#This Row],[Hide:\nFormula Name]],Table_PI[[#This Row],[Quantity]],Table_PI[[#This Row],[List 1]],Table_PI[[#This Row],[List 2]],Table_PI[[#This Row],[List 3]],Table_PI[[#This Row],[Size]],Table_PI[[#This Row],[Input 1]],Table_PI[[#This Row],[Input 2]],Table_PI[[#This Row],[Input 3]],Table_PI[[#This Row],[Input 4]],'Customer Information'!$AR$12,1,ROW())>0,MeasureCalc(Table_PI[[#This Row],[Hide:\nFormula Name]],Table_PI[[#This Row],[Quantity]],Table_PI[[#This Row],[List 1]],Table_PI[[#This Row],[List 2]],Table_PI[[#This Row],[List 3]],Table_PI[[#This Row],[Size]],Table_PI[[#This Row],[Input 1]],Table_PI[[#This Row],[Input 2]],Table_PI[[#This Row],[Input 3]],Table_PI[[#This Row],[Input 4]],'Customer Information'!$AR$12,2,ROW()),\"No Rebate\"),\"No Rebate\"),0)","v":0},{"$f":"IF(Table_PI[[#This Row],[Hide:\nFormula Name]]<>\"\",IFERROR(IF(MeasureCalc(Table_PI[[#This Row],[Hide:\nFormula Name]],Table_PI[[#This Row],[Quantity]],Table_PI[[#This Row],[List 1]],Table_PI[[#This Row],[List 2]],Table_PI[[#This Row],[List 3]],Table_PI[[#This Row],[Size]],Table_PI[[#This Row],[Input 1]],Table_PI[[#This Row],[Input 2]],Table_PI[[#This Row],[Input 3]],Table_PI[[#This Row],[Input 4]],'Customer Information'!$AR$12,1,ROW())>0,MeasureCalc(Table_PI[[#This Row],[Hide:\nFormula Name]],Table_PI[[#This Row],[Quantity]],Table_PI[[#This Row],[List 1]],Table_PI[[#This Row],[List 2]],Table_PI[[#This Row],[List 3]],Table_PI[[#This Row],[Size]],Table_PI[[#This Row],[Input 1]],Table_PI[[#This Row],[Input 2]],Table_PI[[#This Row],[Input 3]],Table_PI[[#This Row],[Input 4]],'Customer Information'!$AR$12,3,ROW()),\"No Rebate\"),\"No Rebate\"),0)","v":0},{"$f":"IF(Table_PI[[#This Row],[Hide:\nFormula Name]]<>\"\",IFERROR(IF(MeasureCalc(Table_PI[[#This Row],[Hide:\nFormula Name]],Table_PI[[#This Row],[Quantity]],Table_PI[[#This Row],[List 1]],Table_PI[[#This Row],[List 2]],Table_PI[[#This Row],[List 3]],Table_PI[[#This Row],[Size]],Table_PI[[#This Row],[Input 1]],Table_PI[[#This Row],[Input 2]],Table_PI[[#This Row],[Input 3]],Table_PI[[#This Row],[Input 4]],'Customer Information'!$AR$12,1,ROW())>0,MeasureCalc(Table_PI[[#This Row],[Hide:\nFormula Name]],Table_PI[[#This Row],[Quantity]],Table_PI[[#This Row],[List 1]],Table_PI[[#This Row],[List 2]],Table_PI[[#This Row],[List 3]],Table_PI[[#This Row],[Size]],Table_PI[[#This Row],[Input 1]],Table_PI[[#This Row],[Input 2]],Table_PI[[#This Row],[Input 3]],Table_PI[[#This Row],[Input 4]],'Customer Information'!$AR$12,4,ROW()),\"No Rebate\"),\"No Rebate\"),0)","v":0},{"$f":"IF(Table_PI[[#This Row],[Hide:\nFormula Name]]<>\"\",IFERROR(IF(MeasureCalc(Table_PI[[#This Row],[Hide:\nFormula Name]],Table_PI[[#This Row],[Quantity]],Table_PI[[#This Row],[List 1]],Table_PI[[#This Row],[List 2]],Table_PI[[#This Row],[List 3]],Table_PI[[#This Row],[Size]],Table_PI[[#This Row],[Input 1]],Table_PI[[#This Row],[Input 2]],Table_PI[[#This Row],[Input 3]],Table_PI[[#This Row],[Input 4]],'Customer Information'!$AR$12,1,ROW())>0,MeasureCalc(Table_PI[[#This Row],[Hide:\nFormula Name]],Table_PI[[#This Row],[Quantity]],Table_PI[[#This Row],[List 1]],Table_PI[[#This Row],[List 2]],Table_PI[[#This Row],[List 3]],Table_PI[[#This Row],[Size]],Table_PI[[#This Row],[Input 1]],Table_PI[[#This Row],[Input 2]],Table_PI[[#This Row],[Input 3]],Table_PI[[#This Row],[Input 4]],'Customer Information'!$AR$12,5,ROW()),\"No Rebate\"),\"No Rebate\"),0)","v":0},{"$f":"IF(Table_PI[[#This Row],[Hide:\nFormula Name]]<>\"\",IFERROR(IF(MeasureCalc(Table_PI[[#This Row],[Hide:\nFormula Name]],Table_PI[[#This Row],[Quantity]],Table_PI[[#This Row],[List 1]],Table_PI[[#This Row],[List 2]],Table_PI[[#This Row],[List 3]],Table_PI[[#This Row],[Size]],Table_PI[[#This Row],[Input 1]],Table_PI[[#This Row],[Input 2]],Table_PI[[#This Row],[Input 3]],Table_PI[[#This Row],[Input 4]],'Customer Information'!$AR$12,1,ROW())>0,MeasureCalc(Table_PI[[#This Row],[Hide:\nFormula Name]],Table_PI[[#This Row],[Quantity]],Table_PI[[#This Row],[List 1]],Table_PI[[#This Row],[List 2]],Table_PI[[#This Row],[List 3]],Table_PI[[#This Row],[Size]],Table_PI[[#This Row],[Input 1]],Table_PI[[#This Row],[Input 2]],Table_PI[[#This Row],[Input 3]],Table_PI[[#This Row],[Input 4]],'Customer Information'!$AR$12,6,ROW()),\"No Rebate\"),\"No Rebate\"),0)","v":0},{"$f":"IF(Table_PI[[#This Row],[Hide:\nFormula Name]]<>\"\",IFERROR(IF(MeasureCalc(Table_PI[[#This Row],[Hide:\nFormula Name]],Table_PI[[#This Row],[Quantity]],Table_PI[[#This Row],[List 1]],Table_PI[[#This Row],[List 2]],Table_PI[[#This Row],[List 3]],Table_PI[[#This Row],[Size]],Table_PI[[#This Row],[Input 1]],Table_PI[[#This Row],[Input 2]],Table_PI[[#This Row],[Input 3]],Table_PI[[#This Row],[Input 4]],'Customer Information'!$AR$12,1,ROW())>0,MeasureCalc(Table_PI[[#This Row],[Hide:\nFormula Name]],Table_PI[[#This Row],[Quantity]],Table_PI[[#This Row],[List 1]],Table_PI[[#This Row],[List 2]],Table_PI[[#This Row],[List 3]],Table_PI[[#This Row],[Size]],Table_PI[[#This Row],[Input 1]],Table_PI[[#This Row],[Input 2]],Table_PI[[#This Row],[Input 3]],Table_PI[[#This Row],[Input 4]],'Customer Information'!$AR$12,7,ROW()),\"No Rebate\"),\"No Rebate\"),0)","v":0},{"$f":"IF(Table_PI[[#This Row],[Hide:\nFormula Name]]<>\"\",IFERROR(IF(MeasureCalc(Table_PI[[#This Row],[Hide:\nFormula Name]],Table_PI[[#This Row],[Quantity]],Table_PI[[#This Row],[List 1]],Table_PI[[#This Row],[List 2]],Table_PI[[#This Row],[List 3]],Table_PI[[#This Row],[Size]],Table_PI[[#This Row],[Input 1]],Table_PI[[#This Row],[Input 2]],Table_PI[[#This Row],[Input 3]],Table_PI[[#This Row],[Input 4]],'Customer Information'!$AR$12,1,ROW())>0,MeasureCalc(Table_PI[[#This Row],[Hide:\nFormula Name]],Table_PI[[#This Row],[Quantity]],Table_PI[[#This Row],[List 1]],Table_PI[[#This Row],[List 2]],Table_PI[[#This Row],[List 3]],Table_PI[[#This Row],[Size]],Table_PI[[#This Row],[Input 1]],Table_PI[[#This Row],[Input 2]],Table_PI[[#This Row],[Input 3]],Table_PI[[#This Row],[Input 4]],'Customer Information'!$AR$12,8,ROW()),\"No Rebate\"),\"No Rebate\"),0)","v":0},{"$f":"IF(Table_PI[[#This Row],[Hide:\nFormula Name]]<>\"\",IF(AND(Table_PI[[#This Row],[Hide:\nFormula Name]]<>\"\",OR(Table_PI[[#This Row],[Rebate]]>0,Table_PI[[#This Row],[Rebate]]=\"No Rebate\")),TRUE,\"MI: Line Item \" & $A319),\"\")","v":""}]
[{"$f":"IF(Table_PI[[#This Row],[Hide:\nFormula Name]]<>\"\",MAX($A$2:A319)+1,\"\")","v":""},null,null,null,null,null,null,null,null,null,null,null,null,null,null,{"$f":"IFERROR(VLOOKUP(Table_PI[[#This Row],[Measure]],'Equipment Lookups'!$C$3:$D$23,2,FALSE),\"\")","v":""},{"$f":"IF(Table_PI[[#This Row],[Hide:\nFormula Name]]<>\"\",IFERROR(IF(MeasureCalc(Table_PI[[#This Row],[Hide:\nFormula Name]],Table_PI[[#This Row],[Quantity]],Table_PI[[#This Row],[List 1]],Table_PI[[#This Row],[List 2]],Table_PI[[#This Row],[List 3]],Table_PI[[#This Row],[Size]],Table_PI[[#This Row],[Input 1]],Table_PI[[#This Row],[Input 2]],Table_PI[[#This Row],[Input 3]],Table_PI[[#This Row],[Input 4]],'Customer Information'!$AR$12,1,ROW())>0,MeasureCalc(Table_PI[[#This Row],[Hide:\nFormula Name]],Table_PI[[#This Row],[Quantity]],Table_PI[[#This Row],[List 1]],Table_PI[[#This Row],[List 2]],Table_PI[[#This Row],[List 3]],Table_PI[[#This Row],[Size]],Table_PI[[#This Row],[Input 1]],Table_PI[[#This Row],[Input 2]],Table_PI[[#This Row],[Input 3]],Table_PI[[#This Row],[Input 4]],'Customer Information'!$AR$12,1,ROW()),\"No Rebate\"),\"No Rebate\"),0)","v":0},{"$f":"IF(Table_PI[[#This Row],[Hide:\nFormula Name]]<>\"\",IFERROR(IF(MeasureCalc(Table_PI[[#This Row],[Hide:\nFormula Name]],Table_PI[[#This Row],[Quantity]],Table_PI[[#This Row],[List 1]],Table_PI[[#This Row],[List 2]],Table_PI[[#This Row],[List 3]],Table_PI[[#This Row],[Size]],Table_PI[[#This Row],[Input 1]],Table_PI[[#This Row],[Input 2]],Table_PI[[#This Row],[Input 3]],Table_PI[[#This Row],[Input 4]],'Customer Information'!$AR$12,1,ROW())>0,MeasureCalc(Table_PI[[#This Row],[Hide:\nFormula Name]],Table_PI[[#This Row],[Quantity]],Table_PI[[#This Row],[List 1]],Table_PI[[#This Row],[List 2]],Table_PI[[#This Row],[List 3]],Table_PI[[#This Row],[Size]],Table_PI[[#This Row],[Input 1]],Table_PI[[#This Row],[Input 2]],Table_PI[[#This Row],[Input 3]],Table_PI[[#This Row],[Input 4]],'Customer Information'!$AR$12,2,ROW()),\"No Rebate\"),\"No Rebate\"),0)","v":0},{"$f":"IF(Table_PI[[#This Row],[Hide:\nFormula Name]]<>\"\",IFERROR(IF(MeasureCalc(Table_PI[[#This Row],[Hide:\nFormula Name]],Table_PI[[#This Row],[Quantity]],Table_PI[[#This Row],[List 1]],Table_PI[[#This Row],[List 2]],Table_PI[[#This Row],[List 3]],Table_PI[[#This Row],[Size]],Table_PI[[#This Row],[Input 1]],Table_PI[[#This Row],[Input 2]],Table_PI[[#This Row],[Input 3]],Table_PI[[#This Row],[Input 4]],'Customer Information'!$AR$12,1,ROW())>0,MeasureCalc(Table_PI[[#This Row],[Hide:\nFormula Name]],Table_PI[[#This Row],[Quantity]],Table_PI[[#This Row],[List 1]],Table_PI[[#This Row],[List 2]],Table_PI[[#This Row],[List 3]],Table_PI[[#This Row],[Size]],Table_PI[[#This Row],[Input 1]],Table_PI[[#This Row],[Input 2]],Table_PI[[#This Row],[Input 3]],Table_PI[[#This Row],[Input 4]],'Customer Information'!$AR$12,3,ROW()),\"No Rebate\"),\"No Rebate\"),0)","v":0},{"$f":"IF(Table_PI[[#This Row],[Hide:\nFormula Name]]<>\"\",IFERROR(IF(MeasureCalc(Table_PI[[#This Row],[Hide:\nFormula Name]],Table_PI[[#This Row],[Quantity]],Table_PI[[#This Row],[List 1]],Table_PI[[#This Row],[List 2]],Table_PI[[#This Row],[List 3]],Table_PI[[#This Row],[Size]],Table_PI[[#This Row],[Input 1]],Table_PI[[#This Row],[Input 2]],Table_PI[[#This Row],[Input 3]],Table_PI[[#This Row],[Input 4]],'Customer Information'!$AR$12,1,ROW())>0,MeasureCalc(Table_PI[[#This Row],[Hide:\nFormula Name]],Table_PI[[#This Row],[Quantity]],Table_PI[[#This Row],[List 1]],Table_PI[[#This Row],[List 2]],Table_PI[[#This Row],[List 3]],Table_PI[[#This Row],[Size]],Table_PI[[#This Row],[Input 1]],Table_PI[[#This Row],[Input 2]],Table_PI[[#This Row],[Input 3]],Table_PI[[#This Row],[Input 4]],'Customer Information'!$AR$12,4,ROW()),\"No Rebate\"),\"No Rebate\"),0)","v":0},{"$f":"IF(Table_PI[[#This Row],[Hide:\nFormula Name]]<>\"\",IFERROR(IF(MeasureCalc(Table_PI[[#This Row],[Hide:\nFormula Name]],Table_PI[[#This Row],[Quantity]],Table_PI[[#This Row],[List 1]],Table_PI[[#This Row],[List 2]],Table_PI[[#This Row],[List 3]],Table_PI[[#This Row],[Size]],Table_PI[[#This Row],[Input 1]],Table_PI[[#This Row],[Input 2]],Table_PI[[#This Row],[Input 3]],Table_PI[[#This Row],[Input 4]],'Customer Information'!$AR$12,1,ROW())>0,MeasureCalc(Table_PI[[#This Row],[Hide:\nFormula Name]],Table_PI[[#This Row],[Quantity]],Table_PI[[#This Row],[List 1]],Table_PI[[#This Row],[List 2]],Table_PI[[#This Row],[List 3]],Table_PI[[#This Row],[Size]],Table_PI[[#This Row],[Input 1]],Table_PI[[#This Row],[Input 2]],Table_PI[[#This Row],[Input 3]],Table_PI[[#This Row],[Input 4]],'Customer Information'!$AR$12,5,ROW()),\"No Rebate\"),\"No Rebate\"),0)","v":0},{"$f":"IF(Table_PI[[#This Row],[Hide:\nFormula Name]]<>\"\",IFERROR(IF(MeasureCalc(Table_PI[[#This Row],[Hide:\nFormula Name]],Table_PI[[#This Row],[Quantity]],Table_PI[[#This Row],[List 1]],Table_PI[[#This Row],[List 2]],Table_PI[[#This Row],[List 3]],Table_PI[[#This Row],[Size]],Table_PI[[#This Row],[Input 1]],Table_PI[[#This Row],[Input 2]],Table_PI[[#This Row],[Input 3]],Table_PI[[#This Row],[Input 4]],'Customer Information'!$AR$12,1,ROW())>0,MeasureCalc(Table_PI[[#This Row],[Hide:\nFormula Name]],Table_PI[[#This Row],[Quantity]],Table_PI[[#This Row],[List 1]],Table_PI[[#This Row],[List 2]],Table_PI[[#This Row],[List 3]],Table_PI[[#This Row],[Size]],Table_PI[[#This Row],[Input 1]],Table_PI[[#This Row],[Input 2]],Table_PI[[#This Row],[Input 3]],Table_PI[[#This Row],[Input 4]],'Customer Information'!$AR$12,6,ROW()),\"No Rebate\"),\"No Rebate\"),0)","v":0},{"$f":"IF(Table_PI[[#This Row],[Hide:\nFormula Name]]<>\"\",IFERROR(IF(MeasureCalc(Table_PI[[#This Row],[Hide:\nFormula Name]],Table_PI[[#This Row],[Quantity]],Table_PI[[#This Row],[List 1]],Table_PI[[#This Row],[List 2]],Table_PI[[#This Row],[List 3]],Table_PI[[#This Row],[Size]],Table_PI[[#This Row],[Input 1]],Table_PI[[#This Row],[Input 2]],Table_PI[[#This Row],[Input 3]],Table_PI[[#This Row],[Input 4]],'Customer Information'!$AR$12,1,ROW())>0,MeasureCalc(Table_PI[[#This Row],[Hide:\nFormula Name]],Table_PI[[#This Row],[Quantity]],Table_PI[[#This Row],[List 1]],Table_PI[[#This Row],[List 2]],Table_PI[[#This Row],[List 3]],Table_PI[[#This Row],[Size]],Table_PI[[#This Row],[Input 1]],Table_PI[[#This Row],[Input 2]],Table_PI[[#This Row],[Input 3]],Table_PI[[#This Row],[Input 4]],'Customer Information'!$AR$12,7,ROW()),\"No Rebate\"),\"No Rebate\"),0)","v":0},{"$f":"IF(Table_PI[[#This Row],[Hide:\nFormula Name]]<>\"\",IFERROR(IF(MeasureCalc(Table_PI[[#This Row],[Hide:\nFormula Name]],Table_PI[[#This Row],[Quantity]],Table_PI[[#This Row],[List 1]],Table_PI[[#This Row],[List 2]],Table_PI[[#This Row],[List 3]],Table_PI[[#This Row],[Size]],Table_PI[[#This Row],[Input 1]],Table_PI[[#This Row],[Input 2]],Table_PI[[#This Row],[Input 3]],Table_PI[[#This Row],[Input 4]],'Customer Information'!$AR$12,1,ROW())>0,MeasureCalc(Table_PI[[#This Row],[Hide:\nFormula Name]],Table_PI[[#This Row],[Quantity]],Table_PI[[#This Row],[List 1]],Table_PI[[#This Row],[List 2]],Table_PI[[#This Row],[List 3]],Table_PI[[#This Row],[Size]],Table_PI[[#This Row],[Input 1]],Table_PI[[#This Row],[Input 2]],Table_PI[[#This Row],[Input 3]],Table_PI[[#This Row],[Input 4]],'Customer Information'!$AR$12,8,ROW()),\"No Rebate\"),\"No Rebate\"),0)","v":0},{"$f":"IF(Table_PI[[#This Row],[Hide:\nFormula Name]]<>\"\",IF(AND(Table_PI[[#This Row],[Hide:\nFormula Name]]<>\"\",OR(Table_PI[[#This Row],[Rebate]]>0,Table_PI[[#This Row],[Rebate]]=\"No Rebate\")),TRUE,\"MI: Line Item \" & $A320),\"\")","v":""}]
[{"$f":"IF(Table_PI[[#This Row],[Hide:\nFormula Name]]<>\"\",MAX($A$2:A320)+1,\"\")","v":""},null,null,null,null,null,null,null,null,null,null,null,null,null,null,{"$f":"IFERROR(VLOOKUP(Table_PI[[#This Row],[Measure]],'Equipment Lookups'!$C$3:$D$23,2,FALSE),\"\")","v":""},{"$f":"IF(Table_PI[[#This Row],[Hide:\nFormula Name]]<>\"\",IFERROR(IF(MeasureCalc(Table_PI[[#This Row],[Hide:\nFormula Name]],Table_PI[[#This Row],[Quantity]],Table_PI[[#This Row],[List 1]],Table_PI[[#This Row],[List 2]],Table_PI[[#This Row],[List 3]],Table_PI[[#This Row],[Size]],Table_PI[[#This Row],[Input 1]],Table_PI[[#This Row],[Input 2]],Table_PI[[#This Row],[Input 3]],Table_PI[[#This Row],[Input 4]],'Customer Information'!$AR$12,1,ROW())>0,MeasureCalc(Table_PI[[#This Row],[Hide:\nFormula Name]],Table_PI[[#This Row],[Quantity]],Table_PI[[#This Row],[List 1]],Table_PI[[#This Row],[List 2]],Table_PI[[#This Row],[List 3]],Table_PI[[#This Row],[Size]],Table_PI[[#This Row],[Input 1]],Table_PI[[#This Row],[Input 2]],Table_PI[[#This Row],[Input 3]],Table_PI[[#This Row],[Input 4]],'Customer Information'!$AR$12,1,ROW()),\"No Rebate\"),\"No Rebate\"),0)","v":0},{"$f":"IF(Table_PI[[#This Row],[Hide:\nFormula Name]]<>\"\",IFERROR(IF(MeasureCalc(Table_PI[[#This Row],[Hide:\nFormula Name]],Table_PI[[#This Row],[Quantity]],Table_PI[[#This Row],[List 1]],Table_PI[[#This Row],[List 2]],Table_PI[[#This Row],[List 3]],Table_PI[[#This Row],[Size]],Table_PI[[#This Row],[Input 1]],Table_PI[[#This Row],[Input 2]],Table_PI[[#This Row],[Input 3]],Table_PI[[#This Row],[Input 4]],'Customer Information'!$AR$12,1,ROW())>0,MeasureCalc(Table_PI[[#This Row],[Hide:\nFormula Name]],Table_PI[[#This Row],[Quantity]],Table_PI[[#This Row],[List 1]],Table_PI[[#This Row],[List 2]],Table_PI[[#This Row],[List 3]],Table_PI[[#This Row],[Size]],Table_PI[[#This Row],[Input 1]],Table_PI[[#This Row],[Input 2]],Table_PI[[#This Row],[Input 3]],Table_PI[[#This Row],[Input 4]],'Customer Information'!$AR$12,2,ROW()),\"No Rebate\"),\"No Rebate\"),0)","v":0},{"$f":"IF(Table_PI[[#This Row],[Hide:\nFormula Name]]<>\"\",IFERROR(IF(MeasureCalc(Table_PI[[#This Row],[Hide:\nFormula Name]],Table_PI[[#This Row],[Quantity]],Table_PI[[#This Row],[List 1]],Table_PI[[#This Row],[List 2]],Table_PI[[#This Row],[List 3]],Table_PI[[#This Row],[Size]],Table_PI[[#This Row],[Input 1]],Table_PI[[#This Row],[Input 2]],Table_PI[[#This Row],[Input 3]],Table_PI[[#This Row],[Input 4]],'Customer Information'!$AR$12,1,ROW())>0,MeasureCalc(Table_PI[[#This Row],[Hide:\nFormula Name]],Table_PI[[#This Row],[Quantity]],Table_PI[[#This Row],[List 1]],Table_PI[[#This Row],[List 2]],Table_PI[[#This Row],[List 3]],Table_PI[[#This Row],[Size]],Table_PI[[#This Row],[Input 1]],Table_PI[[#This Row],[Input 2]],Table_PI[[#This Row],[Input 3]],Table_PI[[#This Row],[Input 4]],'Customer Information'!$AR$12,3,ROW()),\"No Rebate\"),\"No Rebate\"),0)","v":0},{"$f":"IF(Table_PI[[#This Row],[Hide:\nFormula Name]]<>\"\",IFERROR(IF(MeasureCalc(Table_PI[[#This Row],[Hide:\nFormula Name]],Table_PI[[#This Row],[Quantity]],Table_PI[[#This Row],[List 1]],Table_PI[[#This Row],[List 2]],Table_PI[[#This Row],[List 3]],Table_PI[[#This Row],[Size]],Table_PI[[#This Row],[Input 1]],Table_PI[[#This Row],[Input 2]],Table_PI[[#This Row],[Input 3]],Table_PI[[#This Row],[Input 4]],'Customer Information'!$AR$12,1,ROW())>0,MeasureCalc(Table_PI[[#This Row],[Hide:\nFormula Name]],Table_PI[[#This Row],[Quantity]],Table_PI[[#This Row],[List 1]],Table_PI[[#This Row],[List 2]],Table_PI[[#This Row],[List 3]],Table_PI[[#This Row],[Size]],Table_PI[[#This Row],[Input 1]],Table_PI[[#This Row],[Input 2]],Table_PI[[#This Row],[Input 3]],Table_PI[[#This Row],[Input 4]],'Customer Information'!$AR$12,4,ROW()),\"No Rebate\"),\"No Rebate\"),0)","v":0},{"$f":"IF(Table_PI[[#This Row],[Hide:\nFormula Name]]<>\"\",IFERROR(IF(MeasureCalc(Table_PI[[#This Row],[Hide:\nFormula Name]],Table_PI[[#This Row],[Quantity]],Table_PI[[#This Row],[List 1]],Table_PI[[#This Row],[List 2]],Table_PI[[#This Row],[List 3]],Table_PI[[#This Row],[Size]],Table_PI[[#This Row],[Input 1]],Table_PI[[#This Row],[Input 2]],Table_PI[[#This Row],[Input 3]],Table_PI[[#This Row],[Input 4]],'Customer Information'!$AR$12,1,ROW())>0,MeasureCalc(Table_PI[[#This Row],[Hide:\nFormula Name]],Table_PI[[#This Row],[Quantity]],Table_PI[[#This Row],[List 1]],Table_PI[[#This Row],[List 2]],Table_PI[[#This Row],[List 3]],Table_PI[[#This Row],[Size]],Table_PI[[#This Row],[Input 1]],Table_PI[[#This Row],[Input 2]],Table_PI[[#This Row],[Input 3]],Table_PI[[#This Row],[Input 4]],'Customer Information'!$AR$12,5,ROW()),\"No Rebate\"),\"No Rebate\"),0)","v":0},{"$f":"IF(Table_PI[[#This Row],[Hide:\nFormula Name]]<>\"\",IFERROR(IF(MeasureCalc(Table_PI[[#This Row],[Hide:\nFormula Name]],Table_PI[[#This Row],[Quantity]],Table_PI[[#This Row],[List 1]],Table_PI[[#This Row],[List 2]],Table_PI[[#This Row],[List 3]],Table_PI[[#This Row],[Size]],Table_PI[[#This Row],[Input 1]],Table_PI[[#This Row],[Input 2]],Table_PI[[#This Row],[Input 3]],Table_PI[[#This Row],[Input 4]],'Customer Information'!$AR$12,1,ROW())>0,MeasureCalc(Table_PI[[#This Row],[Hide:\nFormula Name]],Table_PI[[#This Row],[Quantity]],Table_PI[[#This Row],[List 1]],Table_PI[[#This Row],[List 2]],Table_PI[[#This Row],[List 3]],Table_PI[[#This Row],[Size]],Table_PI[[#This Row],[Input 1]],Table_PI[[#This Row],[Input 2]],Table_PI[[#This Row],[Input 3]],Table_PI[[#This Row],[Input 4]],'Customer Information'!$AR$12,6,ROW()),\"No Rebate\"),\"No Rebate\"),0)","v":0},{"$f":"IF(Table_PI[[#This Row],[Hide:\nFormula Name]]<>\"\",IFERROR(IF(MeasureCalc(Table_PI[[#This Row],[Hide:\nFormula Name]],Table_PI[[#This Row],[Quantity]],Table_PI[[#This Row],[List 1]],Table_PI[[#This Row],[List 2]],Table_PI[[#This Row],[List 3]],Table_PI[[#This Row],[Size]],Table_PI[[#This Row],[Input 1]],Table_PI[[#This Row],[Input 2]],Table_PI[[#This Row],[Input 3]],Table_PI[[#This Row],[Input 4]],'Customer Information'!$AR$12,1,ROW())>0,MeasureCalc(Table_PI[[#This Row],[Hide:\nFormula Name]],Table_PI[[#This Row],[Quantity]],Table_PI[[#This Row],[List 1]],Table_PI[[#This Row],[List 2]],Table_PI[[#This Row],[List 3]],Table_PI[[#This Row],[Size]],Table_PI[[#This Row],[Input 1]],Table_PI[[#This Row],[Input 2]],Table_PI[[#This Row],[Input 3]],Table_PI[[#This Row],[Input 4]],'Customer Information'!$AR$12,7,ROW()),\"No Rebate\"),\"No Rebate\"),0)","v":0},{"$f":"IF(Table_PI[[#This Row],[Hide:\nFormula Name]]<>\"\",IFERROR(IF(MeasureCalc(Table_PI[[#This Row],[Hide:\nFormula Name]],Table_PI[[#This Row],[Quantity]],Table_PI[[#This Row],[List 1]],Table_PI[[#This Row],[List 2]],Table_PI[[#This Row],[List 3]],Table_PI[[#This Row],[Size]],Table_PI[[#This Row],[Input 1]],Table_PI[[#This Row],[Input 2]],Table_PI[[#This Row],[Input 3]],Table_PI[[#This Row],[Input 4]],'Customer Information'!$AR$12,1,ROW())>0,MeasureCalc(Table_PI[[#This Row],[Hide:\nFormula Name]],Table_PI[[#This Row],[Quantity]],Table_PI[[#This Row],[List 1]],Table_PI[[#This Row],[List 2]],Table_PI[[#This Row],[List 3]],Table_PI[[#This Row],[Size]],Table_PI[[#This Row],[Input 1]],Table_PI[[#This Row],[Input 2]],Table_PI[[#This Row],[Input 3]],Table_PI[[#This Row],[Input 4]],'Customer Information'!$AR$12,8,ROW()),\"No Rebate\"),\"No Rebate\"),0)","v":0},{"$f":"IF(Table_PI[[#This Row],[Hide:\nFormula Name]]<>\"\",IF(AND(Table_PI[[#This Row],[Hide:\nFormula Name]]<>\"\",OR(Table_PI[[#This Row],[Rebate]]>0,Table_PI[[#This Row],[Rebate]]=\"No Rebate\")),TRUE,\"MI: Line Item \" & $A321),\"\")","v":""}]
[{"$f":"IF(Table_PI[[#This Row],[Hide:\nFormula Name]]<>\"\",MAX($A$2:A321)+1,\"\")","v":""},null,null,null,null,null,null,null,null,null,null,null,null,null,null,{"$f":"IFERROR(VLOOKUP(Table_PI[[#This Row],[Measure]],'Equipment Lookups'!$C$3:$D$23,2,FALSE),\"\")","v":""},{"$f":"IF(Table_PI[[#This Row],[Hide:\nFormula Name]]<>\"\",IFERROR(IF(MeasureCalc(Table_PI[[#This Row],[Hide:\nFormula Name]],Table_PI[[#This Row],[Quantity]],Table_PI[[#This Row],[List 1]],Table_PI[[#This Row],[List 2]],Table_PI[[#This Row],[List 3]],Table_PI[[#This Row],[Size]],Table_PI[[#This Row],[Input 1]],Table_PI[[#This Row],[Input 2]],Table_PI[[#This Row],[Input 3]],Table_PI[[#This Row],[Input 4]],'Customer Information'!$AR$12,1,ROW())>0,MeasureCalc(Table_PI[[#This Row],[Hide:\nFormula Name]],Table_PI[[#This Row],[Quantity]],Table_PI[[#This Row],[List 1]],Table_PI[[#This Row],[List 2]],Table_PI[[#This Row],[List 3]],Table_PI[[#This Row],[Size]],Table_PI[[#This Row],[Input 1]],Table_PI[[#This Row],[Input 2]],Table_PI[[#This Row],[Input 3]],Table_PI[[#This Row],[Input 4]],'Customer Information'!$AR$12,1,ROW()),\"No Rebate\"),\"No Rebate\"),0)","v":0},{"$f":"IF(Table_PI[[#This Row],[Hide:\nFormula Name]]<>\"\",IFERROR(IF(MeasureCalc(Table_PI[[#This Row],[Hide:\nFormula Name]],Table_PI[[#This Row],[Quantity]],Table_PI[[#This Row],[List 1]],Table_PI[[#This Row],[List 2]],Table_PI[[#This Row],[List 3]],Table_PI[[#This Row],[Size]],Table_PI[[#This Row],[Input 1]],Table_PI[[#This Row],[Input 2]],Table_PI[[#This Row],[Input 3]],Table_PI[[#This Row],[Input 4]],'Customer Information'!$AR$12,1,ROW())>0,MeasureCalc(Table_PI[[#This Row],[Hide:\nFormula Name]],Table_PI[[#This Row],[Quantity]],Table_PI[[#This Row],[List 1]],Table_PI[[#This Row],[List 2]],Table_PI[[#This Row],[List 3]],Table_PI[[#This Row],[Size]],Table_PI[[#This Row],[Input 1]],Table_PI[[#This Row],[Input 2]],Table_PI[[#This Row],[Input 3]],Table_PI[[#This Row],[Input 4]],'Customer Information'!$AR$12,2,ROW()),\"No Rebate\"),\"No Rebate\"),0)","v":0},{"$f":"IF(Table_PI[[#This Row],[Hide:\nFormula Name]]<>\"\",IFERROR(IF(MeasureCalc(Table_PI[[#This Row],[Hide:\nFormula Name]],Table_PI[[#This Row],[Quantity]],Table_PI[[#This Row],[List 1]],Table_PI[[#This Row],[List 2]],Table_PI[[#This Row],[List 3]],Table_PI[[#This Row],[Size]],Table_PI[[#This Row],[Input 1]],Table_PI[[#This Row],[Input 2]],Table_PI[[#This Row],[Input 3]],Table_PI[[#This Row],[Input 4]],'Customer Information'!$AR$12,1,ROW())>0,MeasureCalc(Table_PI[[#This Row],[Hide:\nFormula Name]],Table_PI[[#This Row],[Quantity]],Table_PI[[#This Row],[List 1]],Table_PI[[#This Row],[List 2]],Table_PI[[#This Row],[List 3]],Table_PI[[#This Row],[Size]],Table_PI[[#This Row],[Input 1]],Table_PI[[#This Row],[Input 2]],Table_PI[[#This Row],[Input 3]],Table_PI[[#This Row],[Input 4]],'Customer Information'!$AR$12,3,ROW()),\"No Rebate\"),\"No Rebate\"),0)","v":0},{"$f":"IF(Table_PI[[#This Row],[Hide:\nFormula Name]]<>\"\",IFERROR(IF(MeasureCalc(Table_PI[[#This Row],[Hide:\nFormula Name]],Table_PI[[#This Row],[Quantity]],Table_PI[[#This Row],[List 1]],Table_PI[[#This Row],[List 2]],Table_PI[[#This Row],[List 3]],Table_PI[[#This Row],[Size]],Table_PI[[#This Row],[Input 1]],Table_PI[[#This Row],[Input 2]],Table_PI[[#This Row],[Input 3]],Table_PI[[#This Row],[Input 4]],'Customer Information'!$AR$12,1,ROW())>0,MeasureCalc(Table_PI[[#This Row],[Hide:\nFormula Name]],Table_PI[[#This Row],[Quantity]],Table_PI[[#This Row],[List 1]],Table_PI[[#This Row],[List 2]],Table_PI[[#This Row],[List 3]],Table_PI[[#This Row],[Size]],Table_PI[[#This Row],[Input 1]],Table_PI[[#This Row],[Input 2]],Table_PI[[#This Row],[Input 3]],Table_PI[[#This Row],[Input 4]],'Customer Information'!$AR$12,4,ROW()),\"No Rebate\"),\"No Rebate\"),0)","v":0},{"$f":"IF(Table_PI[[#This Row],[Hide:\nFormula Name]]<>\"\",IFERROR(IF(MeasureCalc(Table_PI[[#This Row],[Hide:\nFormula Name]],Table_PI[[#This Row],[Quantity]],Table_PI[[#This Row],[List 1]],Table_PI[[#This Row],[List 2]],Table_PI[[#This Row],[List 3]],Table_PI[[#This Row],[Size]],Table_PI[[#This Row],[Input 1]],Table_PI[[#This Row],[Input 2]],Table_PI[[#This Row],[Input 3]],Table_PI[[#This Row],[Input 4]],'Customer Information'!$AR$12,1,ROW())>0,MeasureCalc(Table_PI[[#This Row],[Hide:\nFormula Name]],Table_PI[[#This Row],[Quantity]],Table_PI[[#This Row],[List 1]],Table_PI[[#This Row],[List 2]],Table_PI[[#This Row],[List 3]],Table_PI[[#This Row],[Size]],Table_PI[[#This Row],[Input 1]],Table_PI[[#This Row],[Input 2]],Table_PI[[#This Row],[Input 3]],Table_PI[[#This Row],[Input 4]],'Customer Information'!$AR$12,5,ROW()),\"No Rebate\"),\"No Rebate\"),0)","v":0},{"$f":"IF(Table_PI[[#This Row],[Hide:\nFormula Name]]<>\"\",IFERROR(IF(MeasureCalc(Table_PI[[#This Row],[Hide:\nFormula Name]],Table_PI[[#This Row],[Quantity]],Table_PI[[#This Row],[List 1]],Table_PI[[#This Row],[List 2]],Table_PI[[#This Row],[List 3]],Table_PI[[#This Row],[Size]],Table_PI[[#This Row],[Input 1]],Table_PI[[#This Row],[Input 2]],Table_PI[[#This Row],[Input 3]],Table_PI[[#This Row],[Input 4]],'Customer Information'!$AR$12,1,ROW())>0,MeasureCalc(Table_PI[[#This Row],[Hide:\nFormula Name]],Table_PI[[#This Row],[Quantity]],Table_PI[[#This Row],[List 1]],Table_PI[[#This Row],[List 2]],Table_PI[[#This Row],[List 3]],Table_PI[[#This Row],[Size]],Table_PI[[#This Row],[Input 1]],Table_PI[[#This Row],[Input 2]],Table_PI[[#This Row],[Input 3]],Table_PI[[#This Row],[Input 4]],'Customer Information'!$AR$12,6,ROW()),\"No Rebate\"),\"No Rebate\"),0)","v":0},{"$f":"IF(Table_PI[[#This Row],[Hide:\nFormula Name]]<>\"\",IFERROR(IF(MeasureCalc(Table_PI[[#This Row],[Hide:\nFormula Name]],Table_PI[[#This Row],[Quantity]],Table_PI[[#This Row],[List 1]],Table_PI[[#This Row],[List 2]],Table_PI[[#This Row],[List 3]],Table_PI[[#This Row],[Size]],Table_PI[[#This Row],[Input 1]],Table_PI[[#This Row],[Input 2]],Table_PI[[#This Row],[Input 3]],Table_PI[[#This Row],[Input 4]],'Customer Information'!$AR$12,1,ROW())>0,MeasureCalc(Table_PI[[#This Row],[Hide:\nFormula Name]],Table_PI[[#This Row],[Quantity]],Table_PI[[#This Row],[List 1]],Table_PI[[#This Row],[List 2]],Table_PI[[#This Row],[List 3]],Table_PI[[#This Row],[Size]],Table_PI[[#This Row],[Input 1]],Table_PI[[#This Row],[Input 2]],Table_PI[[#This Row],[Input 3]],Table_PI[[#This Row],[Input 4]],'Customer Information'!$AR$12,7,ROW()),\"No Rebate\"),\"No Rebate\"),0)","v":0},{"$f":"IF(Table_PI[[#This Row],[Hide:\nFormula Name]]<>\"\",IFERROR(IF(MeasureCalc(Table_PI[[#This Row],[Hide:\nFormula Name]],Table_PI[[#This Row],[Quantity]],Table_PI[[#This Row],[List 1]],Table_PI[[#This Row],[List 2]],Table_PI[[#This Row],[List 3]],Table_PI[[#This Row],[Size]],Table_PI[[#This Row],[Input 1]],Table_PI[[#This Row],[Input 2]],Table_PI[[#This Row],[Input 3]],Table_PI[[#This Row],[Input 4]],'Customer Information'!$AR$12,1,ROW())>0,MeasureCalc(Table_PI[[#This Row],[Hide:\nFormula Name]],Table_PI[[#This Row],[Quantity]],Table_PI[[#This Row],[List 1]],Table_PI[[#This Row],[List 2]],Table_PI[[#This Row],[List 3]],Table_PI[[#This Row],[Size]],Table_PI[[#This Row],[Input 1]],Table_PI[[#This Row],[Input 2]],Table_PI[[#This Row],[Input 3]],Table_PI[[#This Row],[Input 4]],'Customer Information'!$AR$12,8,ROW()),\"No Rebate\"),\"No Rebate\"),0)","v":0},{"$f":"IF(Table_PI[[#This Row],[Hide:\nFormula Name]]<>\"\",IF(AND(Table_PI[[#This Row],[Hide:\nFormula Name]]<>\"\",OR(Table_PI[[#This Row],[Rebate]]>0,Table_PI[[#This Row],[Rebate]]=\"No Rebate\")),TRUE,\"MI: Line Item \" & $A322),\"\")","v":""}]
[{"$f":"IF(Table_PI[[#This Row],[Hide:\nFormula Name]]<>\"\",MAX($A$2:A322)+1,\"\")","v":""},null,null,null,null,null,null,null,null,null,null,null,null,null,null,{"$f":"IFERROR(VLOOKUP(Table_PI[[#This Row],[Measure]],'Equipment Lookups'!$C$3:$D$23,2,FALSE),\"\")","v":""},{"$f":"IF(Table_PI[[#This Row],[Hide:\nFormula Name]]<>\"\",IFERROR(IF(MeasureCalc(Table_PI[[#This Row],[Hide:\nFormula Name]],Table_PI[[#This Row],[Quantity]],Table_PI[[#This Row],[List 1]],Table_PI[[#This Row],[List 2]],Table_PI[[#This Row],[List 3]],Table_PI[[#This Row],[Size]],Table_PI[[#This Row],[Input 1]],Table_PI[[#This Row],[Input 2]],Table_PI[[#This Row],[Input 3]],Table_PI[[#This Row],[Input 4]],'Customer Information'!$AR$12,1,ROW())>0,MeasureCalc(Table_PI[[#This Row],[Hide:\nFormula Name]],Table_PI[[#This Row],[Quantity]],Table_PI[[#This Row],[List 1]],Table_PI[[#This Row],[List 2]],Table_PI[[#This Row],[List 3]],Table_PI[[#This Row],[Size]],Table_PI[[#This Row],[Input 1]],Table_PI[[#This Row],[Input 2]],Table_PI[[#This Row],[Input 3]],Table_PI[[#This Row],[Input 4]],'Customer Information'!$AR$12,1,ROW()),\"No Rebate\"),\"No Rebate\"),0)","v":0},{"$f":"IF(Table_PI[[#This Row],[Hide:\nFormula Name]]<>\"\",IFERROR(IF(MeasureCalc(Table_PI[[#This Row],[Hide:\nFormula Name]],Table_PI[[#This Row],[Quantity]],Table_PI[[#This Row],[List 1]],Table_PI[[#This Row],[List 2]],Table_PI[[#This Row],[List 3]],Table_PI[[#This Row],[Size]],Table_PI[[#This Row],[Input 1]],Table_PI[[#This Row],[Input 2]],Table_PI[[#This Row],[Input 3]],Table_PI[[#This Row],[Input 4]],'Customer Information'!$AR$12,1,ROW())>0,MeasureCalc(Table_PI[[#This Row],[Hide:\nFormula Name]],Table_PI[[#This Row],[Quantity]],Table_PI[[#This Row],[List 1]],Table_PI[[#This Row],[List 2]],Table_PI[[#This Row],[List 3]],Table_PI[[#This Row],[Size]],Table_PI[[#This Row],[Input 1]],Table_PI[[#This Row],[Input 2]],Table_PI[[#This Row],[Input 3]],Table_PI[[#This Row],[Input 4]],'Customer Information'!$AR$12,2,ROW()),\"No Rebate\"),\"No Rebate\"),0)","v":0},{"$f":"IF(Table_PI[[#This Row],[Hide:\nFormula Name]]<>\"\",IFERROR(IF(MeasureCalc(Table_PI[[#This Row],[Hide:\nFormula Name]],Table_PI[[#This Row],[Quantity]],Table_PI[[#This Row],[List 1]],Table_PI[[#This Row],[List 2]],Table_PI[[#This Row],[List 3]],Table_PI[[#This Row],[Size]],Table_PI[[#This Row],[Input 1]],Table_PI[[#This Row],[Input 2]],Table_PI[[#This Row],[Input 3]],Table_PI[[#This Row],[Input 4]],'Customer Information'!$AR$12,1,ROW())>0,MeasureCalc(Table_PI[[#This Row],[Hide:\nFormula Name]],Table_PI[[#This Row],[Quantity]],Table_PI[[#This Row],[List 1]],Table_PI[[#This Row],[List 2]],Table_PI[[#This Row],[List 3]],Table_PI[[#This Row],[Size]],Table_PI[[#This Row],[Input 1]],Table_PI[[#This Row],[Input 2]],Table_PI[[#This Row],[Input 3]],Table_PI[[#This Row],[Input 4]],'Customer Information'!$AR$12,3,ROW()),\"No Rebate\"),\"No Rebate\"),0)","v":0},{"$f":"IF(Table_PI[[#This Row],[Hide:\nFormula Name]]<>\"\",IFERROR(IF(MeasureCalc(Table_PI[[#This Row],[Hide:\nFormula Name]],Table_PI[[#This Row],[Quantity]],Table_PI[[#This Row],[List 1]],Table_PI[[#This Row],[List 2]],Table_PI[[#This Row],[List 3]],Table_PI[[#This Row],[Size]],Table_PI[[#This Row],[Input 1]],Table_PI[[#This Row],[Input 2]],Table_PI[[#This Row],[Input 3]],Table_PI[[#This Row],[Input 4]],'Customer Information'!$AR$12,1,ROW())>0,MeasureCalc(Table_PI[[#This Row],[Hide:\nFormula Name]],Table_PI[[#This Row],[Quantity]],Table_PI[[#This Row],[List 1]],Table_PI[[#This Row],[List 2]],Table_PI[[#This Row],[List 3]],Table_PI[[#This Row],[Size]],Table_PI[[#This Row],[Input 1]],Table_PI[[#This Row],[Input 2]],Table_PI[[#This Row],[Input 3]],Table_PI[[#This Row],[Input 4]],'Customer Information'!$AR$12,4,ROW()),\"No Rebate\"),\"No Rebate\"),0)","v":0},{"$f":"IF(Table_PI[[#This Row],[Hide:\nFormula Name]]<>\"\",IFERROR(IF(MeasureCalc(Table_PI[[#This Row],[Hide:\nFormula Name]],Table_PI[[#This Row],[Quantity]],Table_PI[[#This Row],[List 1]],Table_PI[[#This Row],[List 2]],Table_PI[[#This Row],[List 3]],Table_PI[[#This Row],[Size]],Table_PI[[#This Row],[Input 1]],Table_PI[[#This Row],[Input 2]],Table_PI[[#This Row],[Input 3]],Table_PI[[#This Row],[Input 4]],'Customer Information'!$AR$12,1,ROW())>0,MeasureCalc(Table_PI[[#This Row],[Hide:\nFormula Name]],Table_PI[[#This Row],[Quantity]],Table_PI[[#This Row],[List 1]],Table_PI[[#This Row],[List 2]],Table_PI[[#This Row],[List 3]],Table_PI[[#This Row],[Size]],Table_PI[[#This Row],[Input 1]],Table_PI[[#This Row],[Input 2]],Table_PI[[#This Row],[Input 3]],Table_PI[[#This Row],[Input 4]],'Customer Information'!$AR$12,5,ROW()),\"No Rebate\"),\"No Rebate\"),0)","v":0},{"$f":"IF(Table_PI[[#This Row],[Hide:\nFormula Name]]<>\"\",IFERROR(IF(MeasureCalc(Table_PI[[#This Row],[Hide:\nFormula Name]],Table_PI[[#This Row],[Quantity]],Table_PI[[#This Row],[List 1]],Table_PI[[#This Row],[List 2]],Table_PI[[#This Row],[List 3]],Table_PI[[#This Row],[Size]],Table_PI[[#This Row],[Input 1]],Table_PI[[#This Row],[Input 2]],Table_PI[[#This Row],[Input 3]],Table_PI[[#This Row],[Input 4]],'Customer Information'!$AR$12,1,ROW())>0,MeasureCalc(Table_PI[[#This Row],[Hide:\nFormula Name]],Table_PI[[#This Row],[Quantity]],Table_PI[[#This Row],[List 1]],Table_PI[[#This Row],[List 2]],Table_PI[[#This Row],[List 3]],Table_PI[[#This Row],[Size]],Table_PI[[#This Row],[Input 1]],Table_PI[[#This Row],[Input 2]],Table_PI[[#This Row],[Input 3]],Table_PI[[#This Row],[Input 4]],'Customer Information'!$AR$12,6,ROW()),\"No Rebate\"),\"No Rebate\"),0)","v":0},{"$f":"IF(Table_PI[[#This Row],[Hide:\nFormula Name]]<>\"\",IFERROR(IF(MeasureCalc(Table_PI[[#This Row],[Hide:\nFormula Name]],Table_PI[[#This Row],[Quantity]],Table_PI[[#This Row],[List 1]],Table_PI[[#This Row],[List 2]],Table_PI[[#This Row],[List 3]],Table_PI[[#This Row],[Size]],Table_PI[[#This Row],[Input 1]],Table_PI[[#This Row],[Input 2]],Table_PI[[#This Row],[Input 3]],Table_PI[[#This Row],[Input 4]],'Customer Information'!$AR$12,1,ROW())>0,MeasureCalc(Table_PI[[#This Row],[Hide:\nFormula Name]],Table_PI[[#This Row],[Quantity]],Table_PI[[#This Row],[List 1]],Table_PI[[#This Row],[List 2]],Table_PI[[#This Row],[List 3]],Table_PI[[#This Row],[Size]],Table_PI[[#This Row],[Input 1]],Table_PI[[#This Row],[Input 2]],Table_PI[[#This Row],[Input 3]],Table_PI[[#This Row],[Input 4]],'Customer Information'!$AR$12,7,ROW()),\"No Rebate\"),\"No Rebate\"),0)","v":0},{"$f":"IF(Table_PI[[#This Row],[Hide:\nFormula Name]]<>\"\",IFERROR(IF(MeasureCalc(Table_PI[[#This Row],[Hide:\nFormula Name]],Table_PI[[#This Row],[Quantity]],Table_PI[[#This Row],[List 1]],Table_PI[[#This Row],[List 2]],Table_PI[[#This Row],[List 3]],Table_PI[[#This Row],[Size]],Table_PI[[#This Row],[Input 1]],Table_PI[[#This Row],[Input 2]],Table_PI[[#This Row],[Input 3]],Table_PI[[#This Row],[Input 4]],'Customer Information'!$AR$12,1,ROW())>0,MeasureCalc(Table_PI[[#This Row],[Hide:\nFormula Name]],Table_PI[[#This Row],[Quantity]],Table_PI[[#This Row],[List 1]],Table_PI[[#This Row],[List 2]],Table_PI[[#This Row],[List 3]],Table_PI[[#This Row],[Size]],Table_PI[[#This Row],[Input 1]],Table_PI[[#This Row],[Input 2]],Table_PI[[#This Row],[Input 3]],Table_PI[[#This Row],[Input 4]],'Customer Information'!$AR$12,8,ROW()),\"No Rebate\"),\"No Rebate\"),0)","v":0},{"$f":"IF(Table_PI[[#This Row],[Hide:\nFormula Name]]<>\"\",IF(AND(Table_PI[[#This Row],[Hide:\nFormula Name]]<>\"\",OR(Table_PI[[#This Row],[Rebate]]>0,Table_PI[[#This Row],[Rebate]]=\"No Rebate\")),TRUE,\"MI: Line Item \" & $A323),\"\")","v":""}]
[{"$f":"IF(Table_PI[[#This Row],[Hide:\nFormula Name]]<>\"\",MAX($A$2:A323)+1,\"\")","v":""},null,null,null,null,null,null,null,null,null,null,null,null,null,null,{"$f":"IFERROR(VLOOKUP(Table_PI[[#This Row],[Measure]],'Equipment Lookups'!$C$3:$D$23,2,FALSE),\"\")","v":""},{"$f":"IF(Table_PI[[#This Row],[Hide:\nFormula Name]]<>\"\",IFERROR(IF(MeasureCalc(Table_PI[[#This Row],[Hide:\nFormula Name]],Table_PI[[#This Row],[Quantity]],Table_PI[[#This Row],[List 1]],Table_PI[[#This Row],[List 2]],Table_PI[[#This Row],[List 3]],Table_PI[[#This Row],[Size]],Table_PI[[#This Row],[Input 1]],Table_PI[[#This Row],[Input 2]],Table_PI[[#This Row],[Input 3]],Table_PI[[#This Row],[Input 4]],'Customer Information'!$AR$12,1,ROW())>0,MeasureCalc(Table_PI[[#This Row],[Hide:\nFormula Name]],Table_PI[[#This Row],[Quantity]],Table_PI[[#This Row],[List 1]],Table_PI[[#This Row],[List 2]],Table_PI[[#This Row],[List 3]],Table_PI[[#This Row],[Size]],Table_PI[[#This Row],[Input 1]],Table_PI[[#This Row],[Input 2]],Table_PI[[#This Row],[Input 3]],Table_PI[[#This Row],[Input 4]],'Customer Information'!$AR$12,1,ROW()),\"No Rebate\"),\"No Rebate\"),0)","v":0},{"$f":"IF(Table_PI[[#This Row],[Hide:\nFormula Name]]<>\"\",IFERROR(IF(MeasureCalc(Table_PI[[#This Row],[Hide:\nFormula Name]],Table_PI[[#This Row],[Quantity]],Table_PI[[#This Row],[List 1]],Table_PI[[#This Row],[List 2]],Table_PI[[#This Row],[List 3]],Table_PI[[#This Row],[Size]],Table_PI[[#This Row],[Input 1]],Table_PI[[#This Row],[Input 2]],Table_PI[[#This Row],[Input 3]],Table_PI[[#This Row],[Input 4]],'Customer Information'!$AR$12,1,ROW())>0,MeasureCalc(Table_PI[[#This Row],[Hide:\nFormula Name]],Table_PI[[#This Row],[Quantity]],Table_PI[[#This Row],[List 1]],Table_PI[[#This Row],[List 2]],Table_PI[[#This Row],[List 3]],Table_PI[[#This Row],[Size]],Table_PI[[#This Row],[Input 1]],Table_PI[[#This Row],[Input 2]],Table_PI[[#This Row],[Input 3]],Table_PI[[#This Row],[Input 4]],'Customer Information'!$AR$12,2,ROW()),\"No Rebate\"),\"No Rebate\"),0)","v":0},{"$f":"IF(Table_PI[[#This Row],[Hide:\nFormula Name]]<>\"\",IFERROR(IF(MeasureCalc(Table_PI[[#This Row],[Hide:\nFormula Name]],Table_PI[[#This Row],[Quantity]],Table_PI[[#This Row],[List 1]],Table_PI[[#This Row],[List 2]],Table_PI[[#This Row],[List 3]],Table_PI[[#This Row],[Size]],Table_PI[[#This Row],[Input 1]],Table_PI[[#This Row],[Input 2]],Table_PI[[#This Row],[Input 3]],Table_PI[[#This Row],[Input 4]],'Customer Information'!$AR$12,1,ROW())>0,MeasureCalc(Table_PI[[#This Row],[Hide:\nFormula Name]],Table_PI[[#This Row],[Quantity]],Table_PI[[#This Row],[List 1]],Table_PI[[#This Row],[List 2]],Table_PI[[#This Row],[List 3]],Table_PI[[#This Row],[Size]],Table_PI[[#This Row],[Input 1]],Table_PI[[#This Row],[Input 2]],Table_PI[[#This Row],[Input 3]],Table_PI[[#This Row],[Input 4]],'Customer Information'!$AR$12,3,ROW()),\"No Rebate\"),\"No Rebate\"),0)","v":0},{"$f":"IF(Table_PI[[#This Row],[Hide:\nFormula Name]]<>\"\",IFERROR(IF(MeasureCalc(Table_PI[[#This Row],[Hide:\nFormula Name]],Table_PI[[#This Row],[Quantity]],Table_PI[[#This Row],[List 1]],Table_PI[[#This Row],[List 2]],Table_PI[[#This Row],[List 3]],Table_PI[[#This Row],[Size]],Table_PI[[#This Row],[Input 1]],Table_PI[[#This Row],[Input 2]],Table_PI[[#This Row],[Input 3]],Table_PI[[#This Row],[Input 4]],'Customer Information'!$AR$12,1,ROW())>0,MeasureCalc(Table_PI[[#This Row],[Hide:\nFormula Name]],Table_PI[[#This Row],[Quantity]],Table_PI[[#This Row],[List 1]],Table_PI[[#This Row],[List 2]],Table_PI[[#This Row],[List 3]],Table_PI[[#This Row],[Size]],Table_PI[[#This Row],[Input 1]],Table_PI[[#This Row],[Input 2]],Table_PI[[#This Row],[Input 3]],Table_PI[[#This Row],[Input 4]],'Customer Information'!$AR$12,4,ROW()),\"No Rebate\"),\"No Rebate\"),0)","v":0},{"$f":"IF(Table_PI[[#This Row],[Hide:\nFormula Name]]<>\"\",IFERROR(IF(MeasureCalc(Table_PI[[#This Row],[Hide:\nFormula Name]],Table_PI[[#This Row],[Quantity]],Table_PI[[#This Row],[List 1]],Table_PI[[#This Row],[List 2]],Table_PI[[#This Row],[List 3]],Table_PI[[#This Row],[Size]],Table_PI[[#This Row],[Input 1]],Table_PI[[#This Row],[Input 2]],Table_PI[[#This Row],[Input 3]],Table_PI[[#This Row],[Input 4]],'Customer Information'!$AR$12,1,ROW())>0,MeasureCalc(Table_PI[[#This Row],[Hide:\nFormula Name]],Table_PI[[#This Row],[Quantity]],Table_PI[[#This Row],[List 1]],Table_PI[[#This Row],[List 2]],Table_PI[[#This Row],[List 3]],Table_PI[[#This Row],[Size]],Table_PI[[#This Row],[Input 1]],Table_PI[[#This Row],[Input 2]],Table_PI[[#This Row],[Input 3]],Table_PI[[#This Row],[Input 4]],'Customer Information'!$AR$12,5,ROW()),\"No Rebate\"),\"No Rebate\"),0)","v":0},{"$f":"IF(Table_PI[[#This Row],[Hide:\nFormula Name]]<>\"\",IFERROR(IF(MeasureCalc(Table_PI[[#This Row],[Hide:\nFormula Name]],Table_PI[[#This Row],[Quantity]],Table_PI[[#This Row],[List 1]],Table_PI[[#This Row],[List 2]],Table_PI[[#This Row],[List 3]],Table_PI[[#This Row],[Size]],Table_PI[[#This Row],[Input 1]],Table_PI[[#This Row],[Input 2]],Table_PI[[#This Row],[Input 3]],Table_PI[[#This Row],[Input 4]],'Customer Information'!$AR$12,1,ROW())>0,MeasureCalc(Table_PI[[#This Row],[Hide:\nFormula Name]],Table_PI[[#This Row],[Quantity]],Table_PI[[#This Row],[List 1]],Table_PI[[#This Row],[List 2]],Table_PI[[#This Row],[List 3]],Table_PI[[#This Row],[Size]],Table_PI[[#This Row],[Input 1]],Table_PI[[#This Row],[Input 2]],Table_PI[[#This Row],[Input 3]],Table_PI[[#This Row],[Input 4]],'Customer Information'!$AR$12,6,ROW()),\"No Rebate\"),\"No Rebate\"),0)","v":0},{"$f":"IF(Table_PI[[#This Row],[Hide:\nFormula Name]]<>\"\",IFERROR(IF(MeasureCalc(Table_PI[[#This Row],[Hide:\nFormula Name]],Table_PI[[#This Row],[Quantity]],Table_PI[[#This Row],[List 1]],Table_PI[[#This Row],[List 2]],Table_PI[[#This Row],[List 3]],Table_PI[[#This Row],[Size]],Table_PI[[#This Row],[Input 1]],Table_PI[[#This Row],[Input 2]],Table_PI[[#This Row],[Input 3]],Table_PI[[#This Row],[Input 4]],'Customer Information'!$AR$12,1,ROW())>0,MeasureCalc(Table_PI[[#This Row],[Hide:\nFormula Name]],Table_PI[[#This Row],[Quantity]],Table_PI[[#This Row],[List 1]],Table_PI[[#This Row],[List 2]],Table_PI[[#This Row],[List 3]],Table_PI[[#This Row],[Size]],Table_PI[[#This Row],[Input 1]],Table_PI[[#This Row],[Input 2]],Table_PI[[#This Row],[Input 3]],Table_PI[[#This Row],[Input 4]],'Customer Information'!$AR$12,7,ROW()),\"No Rebate\"),\"No Rebate\"),0)","v":0},{"$f":"IF(Table_PI[[#This Row],[Hide:\nFormula Name]]<>\"\",IFERROR(IF(MeasureCalc(Table_PI[[#This Row],[Hide:\nFormula Name]],Table_PI[[#This Row],[Quantity]],Table_PI[[#This Row],[List 1]],Table_PI[[#This Row],[List 2]],Table_PI[[#This Row],[List 3]],Table_PI[[#This Row],[Size]],Table_PI[[#This Row],[Input 1]],Table_PI[[#This Row],[Input 2]],Table_PI[[#This Row],[Input 3]],Table_PI[[#This Row],[Input 4]],'Customer Information'!$AR$12,1,ROW())>0,MeasureCalc(Table_PI[[#This Row],[Hide:\nFormula Name]],Table_PI[[#This Row],[Quantity]],Table_PI[[#This Row],[List 1]],Table_PI[[#This Row],[List 2]],Table_PI[[#This Row],[List 3]],Table_PI[[#This Row],[Size]],Table_PI[[#This Row],[Input 1]],Table_PI[[#This Row],[Input 2]],Table_PI[[#This Row],[Input 3]],Table_PI[[#This Row],[Input 4]],'Customer Information'!$AR$12,8,ROW()),\"No Rebate\"),\"No Rebate\"),0)","v":0},{"$f":"IF(Table_PI[[#This Row],[Hide:\nFormula Name]]<>\"\",IF(AND(Table_PI[[#This Row],[Hide:\nFormula Name]]<>\"\",OR(Table_PI[[#This Row],[Rebate]]>0,Table_PI[[#This Row],[Rebate]]=\"No Rebate\")),TRUE,\"MI: Line Item \" & $A324),\"\")","v":""}]
[{"$f":"IF(Table_PI[[#This Row],[Hide:\nFormula Name]]<>\"\",MAX($A$2:A324)+1,\"\")","v":""},null,null,null,null,null,null,null,null,null,null,null,null,null,null,{"$f":"IFERROR(VLOOKUP(Table_PI[[#This Row],[Measure]],'Equipment Lookups'!$C$3:$D$23,2,FALSE),\"\")","v":""},{"$f":"IF(Table_PI[[#This Row],[Hide:\nFormula Name]]<>\"\",IFERROR(IF(MeasureCalc(Table_PI[[#This Row],[Hide:\nFormula Name]],Table_PI[[#This Row],[Quantity]],Table_PI[[#This Row],[List 1]],Table_PI[[#This Row],[List 2]],Table_PI[[#This Row],[List 3]],Table_PI[[#This Row],[Size]],Table_PI[[#This Row],[Input 1]],Table_PI[[#This Row],[Input 2]],Table_PI[[#This Row],[Input 3]],Table_PI[[#This Row],[Input 4]],'Customer Information'!$AR$12,1,ROW())>0,MeasureCalc(Table_PI[[#This Row],[Hide:\nFormula Name]],Table_PI[[#This Row],[Quantity]],Table_PI[[#This Row],[List 1]],Table_PI[[#This Row],[List 2]],Table_PI[[#This Row],[List 3]],Table_PI[[#This Row],[Size]],Table_PI[[#This Row],[Input 1]],Table_PI[[#This Row],[Input 2]],Table_PI[[#This Row],[Input 3]],Table_PI[[#This Row],[Input 4]],'Customer Information'!$AR$12,1,ROW()),\"No Rebate\"),\"No Rebate\"),0)","v":0},{"$f":"IF(Table_PI[[#This Row],[Hide:\nFormula Name]]<>\"\",IFERROR(IF(MeasureCalc(Table_PI[[#This Row],[Hide:\nFormula Name]],Table_PI[[#This Row],[Quantity]],Table_PI[[#This Row],[List 1]],Table_PI[[#This Row],[List 2]],Table_PI[[#This Row],[List 3]],Table_PI[[#This Row],[Size]],Table_PI[[#This Row],[Input 1]],Table_PI[[#This Row],[Input 2]],Table_PI[[#This Row],[Input 3]],Table_PI[[#This Row],[Input 4]],'Customer Information'!$AR$12,1,ROW())>0,MeasureCalc(Table_PI[[#This Row],[Hide:\nFormula Name]],Table_PI[[#This Row],[Quantity]],Table_PI[[#This Row],[List 1]],Table_PI[[#This Row],[List 2]],Table_PI[[#This Row],[List 3]],Table_PI[[#This Row],[Size]],Table_PI[[#This Row],[Input 1]],Table_PI[[#This Row],[Input 2]],Table_PI[[#This Row],[Input 3]],Table_PI[[#This Row],[Input 4]],'Customer Information'!$AR$12,2,ROW()),\"No Rebate\"),\"No Rebate\"),0)","v":0},{"$f":"IF(Table_PI[[#This Row],[Hide:\nFormula Name]]<>\"\",IFERROR(IF(MeasureCalc(Table_PI[[#This Row],[Hide:\nFormula Name]],Table_PI[[#This Row],[Quantity]],Table_PI[[#This Row],[List 1]],Table_PI[[#This Row],[List 2]],Table_PI[[#This Row],[List 3]],Table_PI[[#This Row],[Size]],Table_PI[[#This Row],[Input 1]],Table_PI[[#This Row],[Input 2]],Table_PI[[#This Row],[Input 3]],Table_PI[[#This Row],[Input 4]],'Customer Information'!$AR$12,1,ROW())>0,MeasureCalc(Table_PI[[#This Row],[Hide:\nFormula Name]],Table_PI[[#This Row],[Quantity]],Table_PI[[#This Row],[List 1]],Table_PI[[#This Row],[List 2]],Table_PI[[#This Row],[List 3]],Table_PI[[#This Row],[Size]],Table_PI[[#This Row],[Input 1]],Table_PI[[#This Row],[Input 2]],Table_PI[[#This Row],[Input 3]],Table_PI[[#This Row],[Input 4]],'Customer Information'!$AR$12,3,ROW()),\"No Rebate\"),\"No Rebate\"),0)","v":0},{"$f":"IF(Table_PI[[#This Row],[Hide:\nFormula Name]]<>\"\",IFERROR(IF(MeasureCalc(Table_PI[[#This Row],[Hide:\nFormula Name]],Table_PI[[#This Row],[Quantity]],Table_PI[[#This Row],[List 1]],Table_PI[[#This Row],[List 2]],Table_PI[[#This Row],[List 3]],Table_PI[[#This Row],[Size]],Table_PI[[#This Row],[Input 1]],Table_PI[[#This Row],[Input 2]],Table_PI[[#This Row],[Input 3]],Table_PI[[#This Row],[Input 4]],'Customer Information'!$AR$12,1,ROW())>0,MeasureCalc(Table_PI[[#This Row],[Hide:\nFormula Name]],Table_PI[[#This Row],[Quantity]],Table_PI[[#This Row],[List 1]],Table_PI[[#This Row],[List 2]],Table_PI[[#This Row],[List 3]],Table_PI[[#This Row],[Size]],Table_PI[[#This Row],[Input 1]],Table_PI[[#This Row],[Input 2]],Table_PI[[#This Row],[Input 3]],Table_PI[[#This Row],[Input 4]],'Customer Information'!$AR$12,4,ROW()),\"No Rebate\"),\"No Rebate\"),0)","v":0},{"$f":"IF(Table_PI[[#This Row],[Hide:\nFormula Name]]<>\"\",IFERROR(IF(MeasureCalc(Table_PI[[#This Row],[Hide:\nFormula Name]],Table_PI[[#This Row],[Quantity]],Table_PI[[#This Row],[List 1]],Table_PI[[#This Row],[List 2]],Table_PI[[#This Row],[List 3]],Table_PI[[#This Row],[Size]],Table_PI[[#This Row],[Input 1]],Table_PI[[#This Row],[Input 2]],Table_PI[[#This Row],[Input 3]],Table_PI[[#This Row],[Input 4]],'Customer Information'!$AR$12,1,ROW())>0,MeasureCalc(Table_PI[[#This Row],[Hide:\nFormula Name]],Table_PI[[#This Row],[Quantity]],Table_PI[[#This Row],[List 1]],Table_PI[[#This Row],[List 2]],Table_PI[[#This Row],[List 3]],Table_PI[[#This Row],[Size]],Table_PI[[#This Row],[Input 1]],Table_PI[[#This Row],[Input 2]],Table_PI[[#This Row],[Input 3]],Table_PI[[#This Row],[Input 4]],'Customer Information'!$AR$12,5,ROW()),\"No Rebate\"),\"No Rebate\"),0)","v":0},{"$f":"IF(Table_PI[[#This Row],[Hide:\nFormula Name]]<>\"\",IFERROR(IF(MeasureCalc(Table_PI[[#This Row],[Hide:\nFormula Name]],Table_PI[[#This Row],[Quantity]],Table_PI[[#This Row],[List 1]],Table_PI[[#This Row],[List 2]],Table_PI[[#This Row],[List 3]],Table_PI[[#This Row],[Size]],Table_PI[[#This Row],[Input 1]],Table_PI[[#This Row],[Input 2]],Table_PI[[#This Row],[Input 3]],Table_PI[[#This Row],[Input 4]],'Customer Information'!$AR$12,1,ROW())>0,MeasureCalc(Table_PI[[#This Row],[Hide:\nFormula Name]],Table_PI[[#This Row],[Quantity]],Table_PI[[#This Row],[List 1]],Table_PI[[#This Row],[List 2]],Table_PI[[#This Row],[List 3]],Table_PI[[#This Row],[Size]],Table_PI[[#This Row],[Input 1]],Table_PI[[#This Row],[Input 2]],Table_PI[[#This Row],[Input 3]],Table_PI[[#This Row],[Input 4]],'Customer Information'!$AR$12,6,ROW()),\"No Rebate\"),\"No Rebate\"),0)","v":0},{"$f":"IF(Table_PI[[#This Row],[Hide:\nFormula Name]]<>\"\",IFERROR(IF(MeasureCalc(Table_PI[[#This Row],[Hide:\nFormula Name]],Table_PI[[#This Row],[Quantity]],Table_PI[[#This Row],[List 1]],Table_PI[[#This Row],[List 2]],Table_PI[[#This Row],[List 3]],Table_PI[[#This Row],[Size]],Table_PI[[#This Row],[Input 1]],Table_PI[[#This Row],[Input 2]],Table_PI[[#This Row],[Input 3]],Table_PI[[#This Row],[Input 4]],'Customer Information'!$AR$12,1,ROW())>0,MeasureCalc(Table_PI[[#This Row],[Hide:\nFormula Name]],Table_PI[[#This Row],[Quantity]],Table_PI[[#This Row],[List 1]],Table_PI[[#This Row],[List 2]],Table_PI[[#This Row],[List 3]],Table_PI[[#This Row],[Size]],Table_PI[[#This Row],[Input 1]],Table_PI[[#This Row],[Input 2]],Table_PI[[#This Row],[Input 3]],Table_PI[[#This Row],[Input 4]],'Customer Information'!$AR$12,7,ROW()),\"No Rebate\"),\"No Rebate\"),0)","v":0},{"$f":"IF(Table_PI[[#This Row],[Hide:\nFormula Name]]<>\"\",IFERROR(IF(MeasureCalc(Table_PI[[#This Row],[Hide:\nFormula Name]],Table_PI[[#This Row],[Quantity]],Table_PI[[#This Row],[List 1]],Table_PI[[#This Row],[List 2]],Table_PI[[#This Row],[List 3]],Table_PI[[#This Row],[Size]],Table_PI[[#This Row],[Input 1]],Table_PI[[#This Row],[Input 2]],Table_PI[[#This Row],[Input 3]],Table_PI[[#This Row],[Input 4]],'Customer Information'!$AR$12,1,ROW())>0,MeasureCalc(Table_PI[[#This Row],[Hide:\nFormula Name]],Table_PI[[#This Row],[Quantity]],Table_PI[[#This Row],[List 1]],Table_PI[[#This Row],[List 2]],Table_PI[[#This Row],[List 3]],Table_PI[[#This Row],[Size]],Table_PI[[#This Row],[Input 1]],Table_PI[[#This Row],[Input 2]],Table_PI[[#This Row],[Input 3]],Table_PI[[#This Row],[Input 4]],'Customer Information'!$AR$12,8,ROW()),\"No Rebate\"),\"No Rebate\"),0)","v":0},{"$f":"IF(Table_PI[[#This Row],[Hide:\nFormula Name]]<>\"\",IF(AND(Table_PI[[#This Row],[Hide:\nFormula Name]]<>\"\",OR(Table_PI[[#This Row],[Rebate]]>0,Table_PI[[#This Row],[Rebate]]=\"No Rebate\")),TRUE,\"MI: Line Item \" & $A325),\"\")","v":""}]
[{"$f":"IF(Table_PI[[#This Row],[Hide:\nFormula Name]]<>\"\",MAX($A$2:A325)+1,\"\")","v":""},null,null,null,null,null,null,null,null,null,null,null,null,null,null,{"$f":"IFERROR(VLOOKUP(Table_PI[[#This Row],[Measure]],'Equipment Lookups'!$C$3:$D$23,2,FALSE),\"\")","v":""},{"$f":"IF(Table_PI[[#This Row],[Hide:\nFormula Name]]<>\"\",IFERROR(IF(MeasureCalc(Table_PI[[#This Row],[Hide:\nFormula Name]],Table_PI[[#This Row],[Quantity]],Table_PI[[#This Row],[List 1]],Table_PI[[#This Row],[List 2]],Table_PI[[#This Row],[List 3]],Table_PI[[#This Row],[Size]],Table_PI[[#This Row],[Input 1]],Table_PI[[#This Row],[Input 2]],Table_PI[[#This Row],[Input 3]],Table_PI[[#This Row],[Input 4]],'Customer Information'!$AR$12,1,ROW())>0,MeasureCalc(Table_PI[[#This Row],[Hide:\nFormula Name]],Table_PI[[#This Row],[Quantity]],Table_PI[[#This Row],[List 1]],Table_PI[[#This Row],[List 2]],Table_PI[[#This Row],[List 3]],Table_PI[[#This Row],[Size]],Table_PI[[#This Row],[Input 1]],Table_PI[[#This Row],[Input 2]],Table_PI[[#This Row],[Input 3]],Table_PI[[#This Row],[Input 4]],'Customer Information'!$AR$12,1,ROW()),\"No Rebate\"),\"No Rebate\"),0)","v":0},{"$f":"IF(Table_PI[[#This Row],[Hide:\nFormula Name]]<>\"\",IFERROR(IF(MeasureCalc(Table_PI[[#This Row],[Hide:\nFormula Name]],Table_PI[[#This Row],[Quantity]],Table_PI[[#This Row],[List 1]],Table_PI[[#This Row],[List 2]],Table_PI[[#This Row],[List 3]],Table_PI[[#This Row],[Size]],Table_PI[[#This Row],[Input 1]],Table_PI[[#This Row],[Input 2]],Table_PI[[#This Row],[Input 3]],Table_PI[[#This Row],[Input 4]],'Customer Information'!$AR$12,1,ROW())>0,MeasureCalc(Table_PI[[#This Row],[Hide:\nFormula Name]],Table_PI[[#This Row],[Quantity]],Table_PI[[#This Row],[List 1]],Table_PI[[#This Row],[List 2]],Table_PI[[#This Row],[List 3]],Table_PI[[#This Row],[Size]],Table_PI[[#This Row],[Input 1]],Table_PI[[#This Row],[Input 2]],Table_PI[[#This Row],[Input 3]],Table_PI[[#This Row],[Input 4]],'Customer Information'!$AR$12,2,ROW()),\"No Rebate\"),\"No Rebate\"),0)","v":0},{"$f":"IF(Table_PI[[#This Row],[Hide:\nFormula Name]]<>\"\",IFERROR(IF(MeasureCalc(Table_PI[[#This Row],[Hide:\nFormula Name]],Table_PI[[#This Row],[Quantity]],Table_PI[[#This Row],[List 1]],Table_PI[[#This Row],[List 2]],Table_PI[[#This Row],[List 3]],Table_PI[[#This Row],[Size]],Table_PI[[#This Row],[Input 1]],Table_PI[[#This Row],[Input 2]],Table_PI[[#This Row],[Input 3]],Table_PI[[#This Row],[Input 4]],'Customer Information'!$AR$12,1,ROW())>0,MeasureCalc(Table_PI[[#This Row],[Hide:\nFormula Name]],Table_PI[[#This Row],[Quantity]],Table_PI[[#This Row],[List 1]],Table_PI[[#This Row],[List 2]],Table_PI[[#This Row],[List 3]],Table_PI[[#This Row],[Size]],Table_PI[[#This Row],[Input 1]],Table_PI[[#This Row],[Input 2]],Table_PI[[#This Row],[Input 3]],Table_PI[[#This Row],[Input 4]],'Customer Information'!$AR$12,3,ROW()),\"No Rebate\"),\"No Rebate\"),0)","v":0},{"$f":"IF(Table_PI[[#This Row],[Hide:\nFormula Name]]<>\"\",IFERROR(IF(MeasureCalc(Table_PI[[#This Row],[Hide:\nFormula Name]],Table_PI[[#This Row],[Quantity]],Table_PI[[#This Row],[List 1]],Table_PI[[#This Row],[List 2]],Table_PI[[#This Row],[List 3]],Table_PI[[#This Row],[Size]],Table_PI[[#This Row],[Input 1]],Table_PI[[#This Row],[Input 2]],Table_PI[[#This Row],[Input 3]],Table_PI[[#This Row],[Input 4]],'Customer Information'!$AR$12,1,ROW())>0,MeasureCalc(Table_PI[[#This Row],[Hide:\nFormula Name]],Table_PI[[#This Row],[Quantity]],Table_PI[[#This Row],[List 1]],Table_PI[[#This Row],[List 2]],Table_PI[[#This Row],[List 3]],Table_PI[[#This Row],[Size]],Table_PI[[#This Row],[Input 1]],Table_PI[[#This Row],[Input 2]],Table_PI[[#This Row],[Input 3]],Table_PI[[#This Row],[Input 4]],'Customer Information'!$AR$12,4,ROW()),\"No Rebate\"),\"No Rebate\"),0)","v":0},{"$f":"IF(Table_PI[[#This Row],[Hide:\nFormula Name]]<>\"\",IFERROR(IF(MeasureCalc(Table_PI[[#This Row],[Hide:\nFormula Name]],Table_PI[[#This Row],[Quantity]],Table_PI[[#This Row],[List 1]],Table_PI[[#This Row],[List 2]],Table_PI[[#This Row],[List 3]],Table_PI[[#This Row],[Size]],Table_PI[[#This Row],[Input 1]],Table_PI[[#This Row],[Input 2]],Table_PI[[#This Row],[Input 3]],Table_PI[[#This Row],[Input 4]],'Customer Information'!$AR$12,1,ROW())>0,MeasureCalc(Table_PI[[#This Row],[Hide:\nFormula Name]],Table_PI[[#This Row],[Quantity]],Table_PI[[#This Row],[List 1]],Table_PI[[#This Row],[List 2]],Table_PI[[#This Row],[List 3]],Table_PI[[#This Row],[Size]],Table_PI[[#This Row],[Input 1]],Table_PI[[#This Row],[Input 2]],Table_PI[[#This Row],[Input 3]],Table_PI[[#This Row],[Input 4]],'Customer Information'!$AR$12,5,ROW()),\"No Rebate\"),\"No Rebate\"),0)","v":0},{"$f":"IF(Table_PI[[#This Row],[Hide:\nFormula Name]]<>\"\",IFERROR(IF(MeasureCalc(Table_PI[[#This Row],[Hide:\nFormula Name]],Table_PI[[#This Row],[Quantity]],Table_PI[[#This Row],[List 1]],Table_PI[[#This Row],[List 2]],Table_PI[[#This Row],[List 3]],Table_PI[[#This Row],[Size]],Table_PI[[#This Row],[Input 1]],Table_PI[[#This Row],[Input 2]],Table_PI[[#This Row],[Input 3]],Table_PI[[#This Row],[Input 4]],'Customer Information'!$AR$12,1,ROW())>0,MeasureCalc(Table_PI[[#This Row],[Hide:\nFormula Name]],Table_PI[[#This Row],[Quantity]],Table_PI[[#This Row],[List 1]],Table_PI[[#This Row],[List 2]],Table_PI[[#This Row],[List 3]],Table_PI[[#This Row],[Size]],Table_PI[[#This Row],[Input 1]],Table_PI[[#This Row],[Input 2]],Table_PI[[#This Row],[Input 3]],Table_PI[[#This Row],[Input 4]],'Customer Information'!$AR$12,6,ROW()),\"No Rebate\"),\"No Rebate\"),0)","v":0},{"$f":"IF(Table_PI[[#This Row],[Hide:\nFormula Name]]<>\"\",IFERROR(IF(MeasureCalc(Table_PI[[#This Row],[Hide:\nFormula Name]],Table_PI[[#This Row],[Quantity]],Table_PI[[#This Row],[List 1]],Table_PI[[#This Row],[List 2]],Table_PI[[#This Row],[List 3]],Table_PI[[#This Row],[Size]],Table_PI[[#This Row],[Input 1]],Table_PI[[#This Row],[Input 2]],Table_PI[[#This Row],[Input 3]],Table_PI[[#This Row],[Input 4]],'Customer Information'!$AR$12,1,ROW())>0,MeasureCalc(Table_PI[[#This Row],[Hide:\nFormula Name]],Table_PI[[#This Row],[Quantity]],Table_PI[[#This Row],[List 1]],Table_PI[[#This Row],[List 2]],Table_PI[[#This Row],[List 3]],Table_PI[[#This Row],[Size]],Table_PI[[#This Row],[Input 1]],Table_PI[[#This Row],[Input 2]],Table_PI[[#This Row],[Input 3]],Table_PI[[#This Row],[Input 4]],'Customer Information'!$AR$12,7,ROW()),\"No Rebate\"),\"No Rebate\"),0)","v":0},{"$f":"IF(Table_PI[[#This Row],[Hide:\nFormula Name]]<>\"\",IFERROR(IF(MeasureCalc(Table_PI[[#This Row],[Hide:\nFormula Name]],Table_PI[[#This Row],[Quantity]],Table_PI[[#This Row],[List 1]],Table_PI[[#This Row],[List 2]],Table_PI[[#This Row],[List 3]],Table_PI[[#This Row],[Size]],Table_PI[[#This Row],[Input 1]],Table_PI[[#This Row],[Input 2]],Table_PI[[#This Row],[Input 3]],Table_PI[[#This Row],[Input 4]],'Customer Information'!$AR$12,1,ROW())>0,MeasureCalc(Table_PI[[#This Row],[Hide:\nFormula Name]],Table_PI[[#This Row],[Quantity]],Table_PI[[#This Row],[List 1]],Table_PI[[#This Row],[List 2]],Table_PI[[#This Row],[List 3]],Table_PI[[#This Row],[Size]],Table_PI[[#This Row],[Input 1]],Table_PI[[#This Row],[Input 2]],Table_PI[[#This Row],[Input 3]],Table_PI[[#This Row],[Input 4]],'Customer Information'!$AR$12,8,ROW()),\"No Rebate\"),\"No Rebate\"),0)","v":0},{"$f":"IF(Table_PI[[#This Row],[Hide:\nFormula Name]]<>\"\",IF(AND(Table_PI[[#This Row],[Hide:\nFormula Name]]<>\"\",OR(Table_PI[[#This Row],[Rebate]]>0,Table_PI[[#This Row],[Rebate]]=\"No Rebate\")),TRUE,\"MI: Line Item \" & $A326),\"\")","v":""}]
[{"$f":"IF(Table_PI[[#This Row],[Hide:\nFormula Name]]<>\"\",MAX($A$2:A326)+1,\"\")","v":""},null,null,null,null,null,null,null,null,null,null,null,null,null,null,{"$f":"IFERROR(VLOOKUP(Table_PI[[#This Row],[Measure]],'Equipment Lookups'!$C$3:$D$23,2,FALSE),\"\")","v":""},{"$f":"IF(Table_PI[[#This Row],[Hide:\nFormula Name]]<>\"\",IFERROR(IF(MeasureCalc(Table_PI[[#This Row],[Hide:\nFormula Name]],Table_PI[[#This Row],[Quantity]],Table_PI[[#This Row],[List 1]],Table_PI[[#This Row],[List 2]],Table_PI[[#This Row],[List 3]],Table_PI[[#This Row],[Size]],Table_PI[[#This Row],[Input 1]],Table_PI[[#This Row],[Input 2]],Table_PI[[#This Row],[Input 3]],Table_PI[[#This Row],[Input 4]],'Customer Information'!$AR$12,1,ROW())>0,MeasureCalc(Table_PI[[#This Row],[Hide:\nFormula Name]],Table_PI[[#This Row],[Quantity]],Table_PI[[#This Row],[List 1]],Table_PI[[#This Row],[List 2]],Table_PI[[#This Row],[List 3]],Table_PI[[#This Row],[Size]],Table_PI[[#This Row],[Input 1]],Table_PI[[#This Row],[Input 2]],Table_PI[[#This Row],[Input 3]],Table_PI[[#This Row],[Input 4]],'Customer Information'!$AR$12,1,ROW()),\"No Rebate\"),\"No Rebate\"),0)","v":0},{"$f":"IF(Table_PI[[#This Row],[Hide:\nFormula Name]]<>\"\",IFERROR(IF(MeasureCalc(Table_PI[[#This Row],[Hide:\nFormula Name]],Table_PI[[#This Row],[Quantity]],Table_PI[[#This Row],[List 1]],Table_PI[[#This Row],[List 2]],Table_PI[[#This Row],[List 3]],Table_PI[[#This Row],[Size]],Table_PI[[#This Row],[Input 1]],Table_PI[[#This Row],[Input 2]],Table_PI[[#This Row],[Input 3]],Table_PI[[#This Row],[Input 4]],'Customer Information'!$AR$12,1,ROW())>0,MeasureCalc(Table_PI[[#This Row],[Hide:\nFormula Name]],Table_PI[[#This Row],[Quantity]],Table_PI[[#This Row],[List 1]],Table_PI[[#This Row],[List 2]],Table_PI[[#This Row],[List 3]],Table_PI[[#This Row],[Size]],Table_PI[[#This Row],[Input 1]],Table_PI[[#This Row],[Input 2]],Table_PI[[#This Row],[Input 3]],Table_PI[[#This Row],[Input 4]],'Customer Information'!$AR$12,2,ROW()),\"No Rebate\"),\"No Rebate\"),0)","v":0},{"$f":"IF(Table_PI[[#This Row],[Hide:\nFormula Name]]<>\"\",IFERROR(IF(MeasureCalc(Table_PI[[#This Row],[Hide:\nFormula Name]],Table_PI[[#This Row],[Quantity]],Table_PI[[#This Row],[List 1]],Table_PI[[#This Row],[List 2]],Table_PI[[#This Row],[List 3]],Table_PI[[#This Row],[Size]],Table_PI[[#This Row],[Input 1]],Table_PI[[#This Row],[Input 2]],Table_PI[[#This Row],[Input 3]],Table_PI[[#This Row],[Input 4]],'Customer Information'!$AR$12,1,ROW())>0,MeasureCalc(Table_PI[[#This Row],[Hide:\nFormula Name]],Table_PI[[#This Row],[Quantity]],Table_PI[[#This Row],[List 1]],Table_PI[[#This Row],[List 2]],Table_PI[[#This Row],[List 3]],Table_PI[[#This Row],[Size]],Table_PI[[#This Row],[Input 1]],Table_PI[[#This Row],[Input 2]],Table_PI[[#This Row],[Input 3]],Table_PI[[#This Row],[Input 4]],'Customer Information'!$AR$12,3,ROW()),\"No Rebate\"),\"No Rebate\"),0)","v":0},{"$f":"IF(Table_PI[[#This Row],[Hide:\nFormula Name]]<>\"\",IFERROR(IF(MeasureCalc(Table_PI[[#This Row],[Hide:\nFormula Name]],Table_PI[[#This Row],[Quantity]],Table_PI[[#This Row],[List 1]],Table_PI[[#This Row],[List 2]],Table_PI[[#This Row],[List 3]],Table_PI[[#This Row],[Size]],Table_PI[[#This Row],[Input 1]],Table_PI[[#This Row],[Input 2]],Table_PI[[#This Row],[Input 3]],Table_PI[[#This Row],[Input 4]],'Customer Information'!$AR$12,1,ROW())>0,MeasureCalc(Table_PI[[#This Row],[Hide:\nFormula Name]],Table_PI[[#This Row],[Quantity]],Table_PI[[#This Row],[List 1]],Table_PI[[#This Row],[List 2]],Table_PI[[#This Row],[List 3]],Table_PI[[#This Row],[Size]],Table_PI[[#This Row],[Input 1]],Table_PI[[#This Row],[Input 2]],Table_PI[[#This Row],[Input 3]],Table_PI[[#This Row],[Input 4]],'Customer Information'!$AR$12,4,ROW()),\"No Rebate\"),\"No Rebate\"),0)","v":0},{"$f":"IF(Table_PI[[#This Row],[Hide:\nFormula Name]]<>\"\",IFERROR(IF(MeasureCalc(Table_PI[[#This Row],[Hide:\nFormula Name]],Table_PI[[#This Row],[Quantity]],Table_PI[[#This Row],[List 1]],Table_PI[[#This Row],[List 2]],Table_PI[[#This Row],[List 3]],Table_PI[[#This Row],[Size]],Table_PI[[#This Row],[Input 1]],Table_PI[[#This Row],[Input 2]],Table_PI[[#This Row],[Input 3]],Table_PI[[#This Row],[Input 4]],'Customer Information'!$AR$12,1,ROW())>0,MeasureCalc(Table_PI[[#This Row],[Hide:\nFormula Name]],Table_PI[[#This Row],[Quantity]],Table_PI[[#This Row],[List 1]],Table_PI[[#This Row],[List 2]],Table_PI[[#This Row],[List 3]],Table_PI[[#This Row],[Size]],Table_PI[[#This Row],[Input 1]],Table_PI[[#This Row],[Input 2]],Table_PI[[#This Row],[Input 3]],Table_PI[[#This Row],[Input 4]],'Customer Information'!$AR$12,5,ROW()),\"No Rebate\"),\"No Rebate\"),0)","v":0},{"$f":"IF(Table_PI[[#This Row],[Hide:\nFormula Name]]<>\"\",IFERROR(IF(MeasureCalc(Table_PI[[#This Row],[Hide:\nFormula Name]],Table_PI[[#This Row],[Quantity]],Table_PI[[#This Row],[List 1]],Table_PI[[#This Row],[List 2]],Table_PI[[#This Row],[List 3]],Table_PI[[#This Row],[Size]],Table_PI[[#This Row],[Input 1]],Table_PI[[#This Row],[Input 2]],Table_PI[[#This Row],[Input 3]],Table_PI[[#This Row],[Input 4]],'Customer Information'!$AR$12,1,ROW())>0,MeasureCalc(Table_PI[[#This Row],[Hide:\nFormula Name]],Table_PI[[#This Row],[Quantity]],Table_PI[[#This Row],[List 1]],Table_PI[[#This Row],[List 2]],Table_PI[[#This Row],[List 3]],Table_PI[[#This Row],[Size]],Table_PI[[#This Row],[Input 1]],Table_PI[[#This Row],[Input 2]],Table_PI[[#This Row],[Input 3]],Table_PI[[#This Row],[Input 4]],'Customer Information'!$AR$12,6,ROW()),\"No Rebate\"),\"No Rebate\"),0)","v":0},{"$f":"IF(Table_PI[[#This Row],[Hide:\nFormula Name]]<>\"\",IFERROR(IF(MeasureCalc(Table_PI[[#This Row],[Hide:\nFormula Name]],Table_PI[[#This Row],[Quantity]],Table_PI[[#This Row],[List 1]],Table_PI[[#This Row],[List 2]],Table_PI[[#This Row],[List 3]],Table_PI[[#This Row],[Size]],Table_PI[[#This Row],[Input 1]],Table_PI[[#This Row],[Input 2]],Table_PI[[#This Row],[Input 3]],Table_PI[[#This Row],[Input 4]],'Customer Information'!$AR$12,1,ROW())>0,MeasureCalc(Table_PI[[#This Row],[Hide:\nFormula Name]],Table_PI[[#This Row],[Quantity]],Table_PI[[#This Row],[List 1]],Table_PI[[#This Row],[List 2]],Table_PI[[#This Row],[List 3]],Table_PI[[#This Row],[Size]],Table_PI[[#This Row],[Input 1]],Table_PI[[#This Row],[Input 2]],Table_PI[[#This Row],[Input 3]],Table_PI[[#This Row],[Input 4]],'Customer Information'!$AR$12,7,ROW()),\"No Rebate\"),\"No Rebate\"),0)","v":0},{"$f":"IF(Table_PI[[#This Row],[Hide:\nFormula Name]]<>\"\",IFERROR(IF(MeasureCalc(Table_PI[[#This Row],[Hide:\nFormula Name]],Table_PI[[#This Row],[Quantity]],Table_PI[[#This Row],[List 1]],Table_PI[[#This Row],[List 2]],Table_PI[[#This Row],[List 3]],Table_PI[[#This Row],[Size]],Table_PI[[#This Row],[Input 1]],Table_PI[[#This Row],[Input 2]],Table_PI[[#This Row],[Input 3]],Table_PI[[#This Row],[Input 4]],'Customer Information'!$AR$12,1,ROW())>0,MeasureCalc(Table_PI[[#This Row],[Hide:\nFormula Name]],Table_PI[[#This Row],[Quantity]],Table_PI[[#This Row],[List 1]],Table_PI[[#This Row],[List 2]],Table_PI[[#This Row],[List 3]],Table_PI[[#This Row],[Size]],Table_PI[[#This Row],[Input 1]],Table_PI[[#This Row],[Input 2]],Table_PI[[#This Row],[Input 3]],Table_PI[[#This Row],[Input 4]],'Customer Information'!$AR$12,8,ROW()),\"No Rebate\"),\"No Rebate\"),0)","v":0},{"$f":"IF(Table_PI[[#This Row],[Hide:\nFormula Name]]<>\"\",IF(AND(Table_PI[[#This Row],[Hide:\nFormula Name]]<>\"\",OR(Table_PI[[#This Row],[Rebate]]>0,Table_PI[[#This Row],[Rebate]]=\"No Rebate\")),TRUE,\"MI: Line Item \" & $A327),\"\")","v":""}]
[{"$f":"IF(Table_PI[[#This Row],[Hide:\nFormula Name]]<>\"\",MAX($A$2:A327)+1,\"\")","v":""},null,null,null,null,null,null,null,null,null,null,null,null,null,null,{"$f":"IFERROR(VLOOKUP(Table_PI[[#This Row],[Measure]],'Equipment Lookups'!$C$3:$D$23,2,FALSE),\"\")","v":""},{"$f":"IF(Table_PI[[#This Row],[Hide:\nFormula Name]]<>\"\",IFERROR(IF(MeasureCalc(Table_PI[[#This Row],[Hide:\nFormula Name]],Table_PI[[#This Row],[Quantity]],Table_PI[[#This Row],[List 1]],Table_PI[[#This Row],[List 2]],Table_PI[[#This Row],[List 3]],Table_PI[[#This Row],[Size]],Table_PI[[#This Row],[Input 1]],Table_PI[[#This Row],[Input 2]],Table_PI[[#This Row],[Input 3]],Table_PI[[#This Row],[Input 4]],'Customer Information'!$AR$12,1,ROW())>0,MeasureCalc(Table_PI[[#This Row],[Hide:\nFormula Name]],Table_PI[[#This Row],[Quantity]],Table_PI[[#This Row],[List 1]],Table_PI[[#This Row],[List 2]],Table_PI[[#This Row],[List 3]],Table_PI[[#This Row],[Size]],Table_PI[[#This Row],[Input 1]],Table_PI[[#This Row],[Input 2]],Table_PI[[#This Row],[Input 3]],Table_PI[[#This Row],[Input 4]],'Customer Information'!$AR$12,1,ROW()),\"No Rebate\"),\"No Rebate\"),0)","v":0},{"$f":"IF(Table_PI[[#This Row],[Hide:\nFormula Name]]<>\"\",IFERROR(IF(MeasureCalc(Table_PI[[#This Row],[Hide:\nFormula Name]],Table_PI[[#This Row],[Quantity]],Table_PI[[#This Row],[List 1]],Table_PI[[#This Row],[List 2]],Table_PI[[#This Row],[List 3]],Table_PI[[#This Row],[Size]],Table_PI[[#This Row],[Input 1]],Table_PI[[#This Row],[Input 2]],Table_PI[[#This Row],[Input 3]],Table_PI[[#This Row],[Input 4]],'Customer Information'!$AR$12,1,ROW())>0,MeasureCalc(Table_PI[[#This Row],[Hide:\nFormula Name]],Table_PI[[#This Row],[Quantity]],Table_PI[[#This Row],[List 1]],Table_PI[[#This Row],[List 2]],Table_PI[[#This Row],[List 3]],Table_PI[[#This Row],[Size]],Table_PI[[#This Row],[Input 1]],Table_PI[[#This Row],[Input 2]],Table_PI[[#This Row],[Input 3]],Table_PI[[#This Row],[Input 4]],'Customer Information'!$AR$12,2,ROW()),\"No Rebate\"),\"No Rebate\"),0)","v":0},{"$f":"IF(Table_PI[[#This Row],[Hide:\nFormula Name]]<>\"\",IFERROR(IF(MeasureCalc(Table_PI[[#This Row],[Hide:\nFormula Name]],Table_PI[[#This Row],[Quantity]],Table_PI[[#This Row],[List 1]],Table_PI[[#This Row],[List 2]],Table_PI[[#This Row],[List 3]],Table_PI[[#This Row],[Size]],Table_PI[[#This Row],[Input 1]],Table_PI[[#This Row],[Input 2]],Table_PI[[#This Row],[Input 3]],Table_PI[[#This Row],[Input 4]],'Customer Information'!$AR$12,1,ROW())>0,MeasureCalc(Table_PI[[#This Row],[Hide:\nFormula Name]],Table_PI[[#This Row],[Quantity]],Table_PI[[#This Row],[List 1]],Table_PI[[#This Row],[List 2]],Table_PI[[#This Row],[List 3]],Table_PI[[#This Row],[Size]],Table_PI[[#This Row],[Input 1]],Table_PI[[#This Row],[Input 2]],Table_PI[[#This Row],[Input 3]],Table_PI[[#This Row],[Input 4]],'Customer Information'!$AR$12,3,ROW()),\"No Rebate\"),\"No Rebate\"),0)","v":0},{"$f":"IF(Table_PI[[#This Row],[Hide:\nFormula Name]]<>\"\",IFERROR(IF(MeasureCalc(Table_PI[[#This Row],[Hide:\nFormula Name]],Table_PI[[#This Row],[Quantity]],Table_PI[[#This Row],[List 1]],Table_PI[[#This Row],[List 2]],Table_PI[[#This Row],[List 3]],Table_PI[[#This Row],[Size]],Table_PI[[#This Row],[Input 1]],Table_PI[[#This Row],[Input 2]],Table_PI[[#This Row],[Input 3]],Table_PI[[#This Row],[Input 4]],'Customer Information'!$AR$12,1,ROW())>0,MeasureCalc(Table_PI[[#This Row],[Hide:\nFormula Name]],Table_PI[[#This Row],[Quantity]],Table_PI[[#This Row],[List 1]],Table_PI[[#This Row],[List 2]],Table_PI[[#This Row],[List 3]],Table_PI[[#This Row],[Size]],Table_PI[[#This Row],[Input 1]],Table_PI[[#This Row],[Input 2]],Table_PI[[#This Row],[Input 3]],Table_PI[[#This Row],[Input 4]],'Customer Information'!$AR$12,4,ROW()),\"No Rebate\"),\"No Rebate\"),0)","v":0},{"$f":"IF(Table_PI[[#This Row],[Hide:\nFormula Name]]<>\"\",IFERROR(IF(MeasureCalc(Table_PI[[#This Row],[Hide:\nFormula Name]],Table_PI[[#This Row],[Quantity]],Table_PI[[#This Row],[List 1]],Table_PI[[#This Row],[List 2]],Table_PI[[#This Row],[List 3]],Table_PI[[#This Row],[Size]],Table_PI[[#This Row],[Input 1]],Table_PI[[#This Row],[Input 2]],Table_PI[[#This Row],[Input 3]],Table_PI[[#This Row],[Input 4]],'Customer Information'!$AR$12,1,ROW())>0,MeasureCalc(Table_PI[[#This Row],[Hide:\nFormula Name]],Table_PI[[#This Row],[Quantity]],Table_PI[[#This Row],[List 1]],Table_PI[[#This Row],[List 2]],Table_PI[[#This Row],[List 3]],Table_PI[[#This Row],[Size]],Table_PI[[#This Row],[Input 1]],Table_PI[[#This Row],[Input 2]],Table_PI[[#This Row],[Input 3]],Table_PI[[#This Row],[Input 4]],'Customer Information'!$AR$12,5,ROW()),\"No Rebate\"),\"No Rebate\"),0)","v":0},{"$f":"IF(Table_PI[[#This Row],[Hide:\nFormula Name]]<>\"\",IFERROR(IF(MeasureCalc(Table_PI[[#This Row],[Hide:\nFormula Name]],Table_PI[[#This Row],[Quantity]],Table_PI[[#This Row],[List 1]],Table_PI[[#This Row],[List 2]],Table_PI[[#This Row],[List 3]],Table_PI[[#This Row],[Size]],Table_PI[[#This Row],[Input 1]],Table_PI[[#This Row],[Input 2]],Table_PI[[#This Row],[Input 3]],Table_PI[[#This Row],[Input 4]],'Customer Information'!$AR$12,1,ROW())>0,MeasureCalc(Table_PI[[#This Row],[Hide:\nFormula Name]],Table_PI[[#This Row],[Quantity]],Table_PI[[#This Row],[List 1]],Table_PI[[#This Row],[List 2]],Table_PI[[#This Row],[List 3]],Table_PI[[#This Row],[Size]],Table_PI[[#This Row],[Input 1]],Table_PI[[#This Row],[Input 2]],Table_PI[[#This Row],[Input 3]],Table_PI[[#This Row],[Input 4]],'Customer Information'!$AR$12,6,ROW()),\"No Rebate\"),\"No Rebate\"),0)","v":0},{"$f":"IF(Table_PI[[#This Row],[Hide:\nFormula Name]]<>\"\",IFERROR(IF(MeasureCalc(Table_PI[[#This Row],[Hide:\nFormula Name]],Table_PI[[#This Row],[Quantity]],Table_PI[[#This Row],[List 1]],Table_PI[[#This Row],[List 2]],Table_PI[[#This Row],[List 3]],Table_PI[[#This Row],[Size]],Table_PI[[#This Row],[Input 1]],Table_PI[[#This Row],[Input 2]],Table_PI[[#This Row],[Input 3]],Table_PI[[#This Row],[Input 4]],'Customer Information'!$AR$12,1,ROW())>0,MeasureCalc(Table_PI[[#This Row],[Hide:\nFormula Name]],Table_PI[[#This Row],[Quantity]],Table_PI[[#This Row],[List 1]],Table_PI[[#This Row],[List 2]],Table_PI[[#This Row],[List 3]],Table_PI[[#This Row],[Size]],Table_PI[[#This Row],[Input 1]],Table_PI[[#This Row],[Input 2]],Table_PI[[#This Row],[Input 3]],Table_PI[[#This Row],[Input 4]],'Customer Information'!$AR$12,7,ROW()),\"No Rebate\"),\"No Rebate\"),0)","v":0},{"$f":"IF(Table_PI[[#This Row],[Hide:\nFormula Name]]<>\"\",IFERROR(IF(MeasureCalc(Table_PI[[#This Row],[Hide:\nFormula Name]],Table_PI[[#This Row],[Quantity]],Table_PI[[#This Row],[List 1]],Table_PI[[#This Row],[List 2]],Table_PI[[#This Row],[List 3]],Table_PI[[#This Row],[Size]],Table_PI[[#This Row],[Input 1]],Table_PI[[#This Row],[Input 2]],Table_PI[[#This Row],[Input 3]],Table_PI[[#This Row],[Input 4]],'Customer Information'!$AR$12,1,ROW())>0,MeasureCalc(Table_PI[[#This Row],[Hide:\nFormula Name]],Table_PI[[#This Row],[Quantity]],Table_PI[[#This Row],[List 1]],Table_PI[[#This Row],[List 2]],Table_PI[[#This Row],[List 3]],Table_PI[[#This Row],[Size]],Table_PI[[#This Row],[Input 1]],Table_PI[[#This Row],[Input 2]],Table_PI[[#This Row],[Input 3]],Table_PI[[#This Row],[Input 4]],'Customer Information'!$AR$12,8,ROW()),\"No Rebate\"),\"No Rebate\"),0)","v":0},{"$f":"IF(Table_PI[[#This Row],[Hide:\nFormula Name]]<>\"\",IF(AND(Table_PI[[#This Row],[Hide:\nFormula Name]]<>\"\",OR(Table_PI[[#This Row],[Rebate]]>0,Table_PI[[#This Row],[Rebate]]=\"No Rebate\")),TRUE,\"MI: Line Item \" & $A328),\"\")","v":""}]
[{"$f":"IF(Table_PI[[#This Row],[Hide:\nFormula Name]]<>\"\",MAX($A$2:A328)+1,\"\")","v":""},null,null,null,null,null,null,null,null,null,null,null,null,null,null,{"$f":"IFERROR(VLOOKUP(Table_PI[[#This Row],[Measure]],'Equipment Lookups'!$C$3:$D$23,2,FALSE),\"\")","v":""},{"$f":"IF(Table_PI[[#This Row],[Hide:\nFormula Name]]<>\"\",IFERROR(IF(MeasureCalc(Table_PI[[#This Row],[Hide:\nFormula Name]],Table_PI[[#This Row],[Quantity]],Table_PI[[#This Row],[List 1]],Table_PI[[#This Row],[List 2]],Table_PI[[#This Row],[List 3]],Table_PI[[#This Row],[Size]],Table_PI[[#This Row],[Input 1]],Table_PI[[#This Row],[Input 2]],Table_PI[[#This Row],[Input 3]],Table_PI[[#This Row],[Input 4]],'Customer Information'!$AR$12,1,ROW())>0,MeasureCalc(Table_PI[[#This Row],[Hide:\nFormula Name]],Table_PI[[#This Row],[Quantity]],Table_PI[[#This Row],[List 1]],Table_PI[[#This Row],[List 2]],Table_PI[[#This Row],[List 3]],Table_PI[[#This Row],[Size]],Table_PI[[#This Row],[Input 1]],Table_PI[[#This Row],[Input 2]],Table_PI[[#This Row],[Input 3]],Table_PI[[#This Row],[Input 4]],'Customer Information'!$AR$12,1,ROW()),\"No Rebate\"),\"No Rebate\"),0)","v":0},{"$f":"IF(Table_PI[[#This Row],[Hide:\nFormula Name]]<>\"\",IFERROR(IF(MeasureCalc(Table_PI[[#This Row],[Hide:\nFormula Name]],Table_PI[[#This Row],[Quantity]],Table_PI[[#This Row],[List 1]],Table_PI[[#This Row],[List 2]],Table_PI[[#This Row],[List 3]],Table_PI[[#This Row],[Size]],Table_PI[[#This Row],[Input 1]],Table_PI[[#This Row],[Input 2]],Table_PI[[#This Row],[Input 3]],Table_PI[[#This Row],[Input 4]],'Customer Information'!$AR$12,1,ROW())>0,MeasureCalc(Table_PI[[#This Row],[Hide:\nFormula Name]],Table_PI[[#This Row],[Quantity]],Table_PI[[#This Row],[List 1]],Table_PI[[#This Row],[List 2]],Table_PI[[#This Row],[List 3]],Table_PI[[#This Row],[Size]],Table_PI[[#This Row],[Input 1]],Table_PI[[#This Row],[Input 2]],Table_PI[[#This Row],[Input 3]],Table_PI[[#This Row],[Input 4]],'Customer Information'!$AR$12,2,ROW()),\"No Rebate\"),\"No Rebate\"),0)","v":0},{"$f":"IF(Table_PI[[#This Row],[Hide:\nFormula Name]]<>\"\",IFERROR(IF(MeasureCalc(Table_PI[[#This Row],[Hide:\nFormula Name]],Table_PI[[#This Row],[Quantity]],Table_PI[[#This Row],[List 1]],Table_PI[[#This Row],[List 2]],Table_PI[[#This Row],[List 3]],Table_PI[[#This Row],[Size]],Table_PI[[#This Row],[Input 1]],Table_PI[[#This Row],[Input 2]],Table_PI[[#This Row],[Input 3]],Table_PI[[#This Row],[Input 4]],'Customer Information'!$AR$12,1,ROW())>0,MeasureCalc(Table_PI[[#This Row],[Hide:\nFormula Name]],Table_PI[[#This Row],[Quantity]],Table_PI[[#This Row],[List 1]],Table_PI[[#This Row],[List 2]],Table_PI[[#This Row],[List 3]],Table_PI[[#This Row],[Size]],Table_PI[[#This Row],[Input 1]],Table_PI[[#This Row],[Input 2]],Table_PI[[#This Row],[Input 3]],Table_PI[[#This Row],[Input 4]],'Customer Information'!$AR$12,3,ROW()),\"No Rebate\"),\"No Rebate\"),0)","v":0},{"$f":"IF(Table_PI[[#This Row],[Hide:\nFormula Name]]<>\"\",IFERROR(IF(MeasureCalc(Table_PI[[#This Row],[Hide:\nFormula Name]],Table_PI[[#This Row],[Quantity]],Table_PI[[#This Row],[List 1]],Table_PI[[#This Row],[List 2]],Table_PI[[#This Row],[List 3]],Table_PI[[#This Row],[Size]],Table_PI[[#This Row],[Input 1]],Table_PI[[#This Row],[Input 2]],Table_PI[[#This Row],[Input 3]],Table_PI[[#This Row],[Input 4]],'Customer Information'!$AR$12,1,ROW())>0,MeasureCalc(Table_PI[[#This Row],[Hide:\nFormula Name]],Table_PI[[#This Row],[Quantity]],Table_PI[[#This Row],[List 1]],Table_PI[[#This Row],[List 2]],Table_PI[[#This Row],[List 3]],Table_PI[[#This Row],[Size]],Table_PI[[#This Row],[Input 1]],Table_PI[[#This Row],[Input 2]],Table_PI[[#This Row],[Input 3]],Table_PI[[#This Row],[Input 4]],'Customer Information'!$AR$12,4,ROW()),\"No Rebate\"),\"No Rebate\"),0)","v":0},{"$f":"IF(Table_PI[[#This Row],[Hide:\nFormula Name]]<>\"\",IFERROR(IF(MeasureCalc(Table_PI[[#This Row],[Hide:\nFormula Name]],Table_PI[[#This Row],[Quantity]],Table_PI[[#This Row],[List 1]],Table_PI[[#This Row],[List 2]],Table_PI[[#This Row],[List 3]],Table_PI[[#This Row],[Size]],Table_PI[[#This Row],[Input 1]],Table_PI[[#This Row],[Input 2]],Table_PI[[#This Row],[Input 3]],Table_PI[[#This Row],[Input 4]],'Customer Information'!$AR$12,1,ROW())>0,MeasureCalc(Table_PI[[#This Row],[Hide:\nFormula Name]],Table_PI[[#This Row],[Quantity]],Table_PI[[#This Row],[List 1]],Table_PI[[#This Row],[List 2]],Table_PI[[#This Row],[List 3]],Table_PI[[#This Row],[Size]],Table_PI[[#This Row],[Input 1]],Table_PI[[#This Row],[Input 2]],Table_PI[[#This Row],[Input 3]],Table_PI[[#This Row],[Input 4]],'Customer Information'!$AR$12,5,ROW()),\"No Rebate\"),\"No Rebate\"),0)","v":0},{"$f":"IF(Table_PI[[#This Row],[Hide:\nFormula Name]]<>\"\",IFERROR(IF(MeasureCalc(Table_PI[[#This Row],[Hide:\nFormula Name]],Table_PI[[#This Row],[Quantity]],Table_PI[[#This Row],[List 1]],Table_PI[[#This Row],[List 2]],Table_PI[[#This Row],[List 3]],Table_PI[[#This Row],[Size]],Table_PI[[#This Row],[Input 1]],Table_PI[[#This Row],[Input 2]],Table_PI[[#This Row],[Input 3]],Table_PI[[#This Row],[Input 4]],'Customer Information'!$AR$12,1,ROW())>0,MeasureCalc(Table_PI[[#This Row],[Hide:\nFormula Name]],Table_PI[[#This Row],[Quantity]],Table_PI[[#This Row],[List 1]],Table_PI[[#This Row],[List 2]],Table_PI[[#This Row],[List 3]],Table_PI[[#This Row],[Size]],Table_PI[[#This Row],[Input 1]],Table_PI[[#This Row],[Input 2]],Table_PI[[#This Row],[Input 3]],Table_PI[[#This Row],[Input 4]],'Customer Information'!$AR$12,6,ROW()),\"No Rebate\"),\"No Rebate\"),0)","v":0},{"$f":"IF(Table_PI[[#This Row],[Hide:\nFormula Name]]<>\"\",IFERROR(IF(MeasureCalc(Table_PI[[#This Row],[Hide:\nFormula Name]],Table_PI[[#This Row],[Quantity]],Table_PI[[#This Row],[List 1]],Table_PI[[#This Row],[List 2]],Table_PI[[#This Row],[List 3]],Table_PI[[#This Row],[Size]],Table_PI[[#This Row],[Input 1]],Table_PI[[#This Row],[Input 2]],Table_PI[[#This Row],[Input 3]],Table_PI[[#This Row],[Input 4]],'Customer Information'!$AR$12,1,ROW())>0,MeasureCalc(Table_PI[[#This Row],[Hide:\nFormula Name]],Table_PI[[#This Row],[Quantity]],Table_PI[[#This Row],[List 1]],Table_PI[[#This Row],[List 2]],Table_PI[[#This Row],[List 3]],Table_PI[[#This Row],[Size]],Table_PI[[#This Row],[Input 1]],Table_PI[[#This Row],[Input 2]],Table_PI[[#This Row],[Input 3]],Table_PI[[#This Row],[Input 4]],'Customer Information'!$AR$12,7,ROW()),\"No Rebate\"),\"No Rebate\"),0)","v":0},{"$f":"IF(Table_PI[[#This Row],[Hide:\nFormula Name]]<>\"\",IFERROR(IF(MeasureCalc(Table_PI[[#This Row],[Hide:\nFormula Name]],Table_PI[[#This Row],[Quantity]],Table_PI[[#This Row],[List 1]],Table_PI[[#This Row],[List 2]],Table_PI[[#This Row],[List 3]],Table_PI[[#This Row],[Size]],Table_PI[[#This Row],[Input 1]],Table_PI[[#This Row],[Input 2]],Table_PI[[#This Row],[Input 3]],Table_PI[[#This Row],[Input 4]],'Customer Information'!$AR$12,1,ROW())>0,MeasureCalc(Table_PI[[#This Row],[Hide:\nFormula Name]],Table_PI[[#This Row],[Quantity]],Table_PI[[#This Row],[List 1]],Table_PI[[#This Row],[List 2]],Table_PI[[#This Row],[List 3]],Table_PI[[#This Row],[Size]],Table_PI[[#This Row],[Input 1]],Table_PI[[#This Row],[Input 2]],Table_PI[[#This Row],[Input 3]],Table_PI[[#This Row],[Input 4]],'Customer Information'!$AR$12,8,ROW()),\"No Rebate\"),\"No Rebate\"),0)","v":0},{"$f":"IF(Table_PI[[#This Row],[Hide:\nFormula Name]]<>\"\",IF(AND(Table_PI[[#This Row],[Hide:\nFormula Name]]<>\"\",OR(Table_PI[[#This Row],[Rebate]]>0,Table_PI[[#This Row],[Rebate]]=\"No Rebate\")),TRUE,\"MI: Line Item \" & $A329),\"\")","v":""}]
[{"$f":"IF(Table_PI[[#This Row],[Hide:\nFormula Name]]<>\"\",MAX($A$2:A329)+1,\"\")","v":""},null,null,null,null,null,null,null,null,null,null,null,null,null,null,{"$f":"IFERROR(VLOOKUP(Table_PI[[#This Row],[Measure]],'Equipment Lookups'!$C$3:$D$23,2,FALSE),\"\")","v":""},{"$f":"IF(Table_PI[[#This Row],[Hide:\nFormula Name]]<>\"\",IFERROR(IF(MeasureCalc(Table_PI[[#This Row],[Hide:\nFormula Name]],Table_PI[[#This Row],[Quantity]],Table_PI[[#This Row],[List 1]],Table_PI[[#This Row],[List 2]],Table_PI[[#This Row],[List 3]],Table_PI[[#This Row],[Size]],Table_PI[[#This Row],[Input 1]],Table_PI[[#This Row],[Input 2]],Table_PI[[#This Row],[Input 3]],Table_PI[[#This Row],[Input 4]],'Customer Information'!$AR$12,1,ROW())>0,MeasureCalc(Table_PI[[#This Row],[Hide:\nFormula Name]],Table_PI[[#This Row],[Quantity]],Table_PI[[#This Row],[List 1]],Table_PI[[#This Row],[List 2]],Table_PI[[#This Row],[List 3]],Table_PI[[#This Row],[Size]],Table_PI[[#This Row],[Input 1]],Table_PI[[#This Row],[Input 2]],Table_PI[[#This Row],[Input 3]],Table_PI[[#This Row],[Input 4]],'Customer Information'!$AR$12,1,ROW()),\"No Rebate\"),\"No Rebate\"),0)","v":0},{"$f":"IF(Table_PI[[#This Row],[Hide:\nFormula Name]]<>\"\",IFERROR(IF(MeasureCalc(Table_PI[[#This Row],[Hide:\nFormula Name]],Table_PI[[#This Row],[Quantity]],Table_PI[[#This Row],[List 1]],Table_PI[[#This Row],[List 2]],Table_PI[[#This Row],[List 3]],Table_PI[[#This Row],[Size]],Table_PI[[#This Row],[Input 1]],Table_PI[[#This Row],[Input 2]],Table_PI[[#This Row],[Input 3]],Table_PI[[#This Row],[Input 4]],'Customer Information'!$AR$12,1,ROW())>0,MeasureCalc(Table_PI[[#This Row],[Hide:\nFormula Name]],Table_PI[[#This Row],[Quantity]],Table_PI[[#This Row],[List 1]],Table_PI[[#This Row],[List 2]],Table_PI[[#This Row],[List 3]],Table_PI[[#This Row],[Size]],Table_PI[[#This Row],[Input 1]],Table_PI[[#This Row],[Input 2]],Table_PI[[#This Row],[Input 3]],Table_PI[[#This Row],[Input 4]],'Customer Information'!$AR$12,2,ROW()),\"No Rebate\"),\"No Rebate\"),0)","v":0},{"$f":"IF(Table_PI[[#This Row],[Hide:\nFormula Name]]<>\"\",IFERROR(IF(MeasureCalc(Table_PI[[#This Row],[Hide:\nFormula Name]],Table_PI[[#This Row],[Quantity]],Table_PI[[#This Row],[List 1]],Table_PI[[#This Row],[List 2]],Table_PI[[#This Row],[List 3]],Table_PI[[#This Row],[Size]],Table_PI[[#This Row],[Input 1]],Table_PI[[#This Row],[Input 2]],Table_PI[[#This Row],[Input 3]],Table_PI[[#This Row],[Input 4]],'Customer Information'!$AR$12,1,ROW())>0,MeasureCalc(Table_PI[[#This Row],[Hide:\nFormula Name]],Table_PI[[#This Row],[Quantity]],Table_PI[[#This Row],[List 1]],Table_PI[[#This Row],[List 2]],Table_PI[[#This Row],[List 3]],Table_PI[[#This Row],[Size]],Table_PI[[#This Row],[Input 1]],Table_PI[[#This Row],[Input 2]],Table_PI[[#This Row],[Input 3]],Table_PI[[#This Row],[Input 4]],'Customer Information'!$AR$12,3,ROW()),\"No Rebate\"),\"No Rebate\"),0)","v":0},{"$f":"IF(Table_PI[[#This Row],[Hide:\nFormula Name]]<>\"\",IFERROR(IF(MeasureCalc(Table_PI[[#This Row],[Hide:\nFormula Name]],Table_PI[[#This Row],[Quantity]],Table_PI[[#This Row],[List 1]],Table_PI[[#This Row],[List 2]],Table_PI[[#This Row],[List 3]],Table_PI[[#This Row],[Size]],Table_PI[[#This Row],[Input 1]],Table_PI[[#This Row],[Input 2]],Table_PI[[#This Row],[Input 3]],Table_PI[[#This Row],[Input 4]],'Customer Information'!$AR$12,1,ROW())>0,MeasureCalc(Table_PI[[#This Row],[Hide:\nFormula Name]],Table_PI[[#This Row],[Quantity]],Table_PI[[#This Row],[List 1]],Table_PI[[#This Row],[List 2]],Table_PI[[#This Row],[List 3]],Table_PI[[#This Row],[Size]],Table_PI[[#This Row],[Input 1]],Table_PI[[#This Row],[Input 2]],Table_PI[[#This Row],[Input 3]],Table_PI[[#This Row],[Input 4]],'Customer Information'!$AR$12,4,ROW()),\"No Rebate\"),\"No Rebate\"),0)","v":0},{"$f":"IF(Table_PI[[#This Row],[Hide:\nFormula Name]]<>\"\",IFERROR(IF(MeasureCalc(Table_PI[[#This Row],[Hide:\nFormula Name]],Table_PI[[#This Row],[Quantity]],Table_PI[[#This Row],[List 1]],Table_PI[[#This Row],[List 2]],Table_PI[[#This Row],[List 3]],Table_PI[[#This Row],[Size]],Table_PI[[#This Row],[Input 1]],Table_PI[[#This Row],[Input 2]],Table_PI[[#This Row],[Input 3]],Table_PI[[#This Row],[Input 4]],'Customer Information'!$AR$12,1,ROW())>0,MeasureCalc(Table_PI[[#This Row],[Hide:\nFormula Name]],Table_PI[[#This Row],[Quantity]],Table_PI[[#This Row],[List 1]],Table_PI[[#This Row],[List 2]],Table_PI[[#This Row],[List 3]],Table_PI[[#This Row],[Size]],Table_PI[[#This Row],[Input 1]],Table_PI[[#This Row],[Input 2]],Table_PI[[#This Row],[Input 3]],Table_PI[[#This Row],[Input 4]],'Customer Information'!$AR$12,5,ROW()),\"No Rebate\"),\"No Rebate\"),0)","v":0},{"$f":"IF(Table_PI[[#This Row],[Hide:\nFormula Name]]<>\"\",IFERROR(IF(MeasureCalc(Table_PI[[#This Row],[Hide:\nFormula Name]],Table_PI[[#This Row],[Quantity]],Table_PI[[#This Row],[List 1]],Table_PI[[#This Row],[List 2]],Table_PI[[#This Row],[List 3]],Table_PI[[#This Row],[Size]],Table_PI[[#This Row],[Input 1]],Table_PI[[#This Row],[Input 2]],Table_PI[[#This Row],[Input 3]],Table_PI[[#This Row],[Input 4]],'Customer Information'!$AR$12,1,ROW())>0,MeasureCalc(Table_PI[[#This Row],[Hide:\nFormula Name]],Table_PI[[#This Row],[Quantity]],Table_PI[[#This Row],[List 1]],Table_PI[[#This Row],[List 2]],Table_PI[[#This Row],[List 3]],Table_PI[[#This Row],[Size]],Table_PI[[#This Row],[Input 1]],Table_PI[[#This Row],[Input 2]],Table_PI[[#This Row],[Input 3]],Table_PI[[#This Row],[Input 4]],'Customer Information'!$AR$12,6,ROW()),\"No Rebate\"),\"No Rebate\"),0)","v":0},{"$f":"IF(Table_PI[[#This Row],[Hide:\nFormula Name]]<>\"\",IFERROR(IF(MeasureCalc(Table_PI[[#This Row],[Hide:\nFormula Name]],Table_PI[[#This Row],[Quantity]],Table_PI[[#This Row],[List 1]],Table_PI[[#This Row],[List 2]],Table_PI[[#This Row],[List 3]],Table_PI[[#This Row],[Size]],Table_PI[[#This Row],[Input 1]],Table_PI[[#This Row],[Input 2]],Table_PI[[#This Row],[Input 3]],Table_PI[[#This Row],[Input 4]],'Customer Information'!$AR$12,1,ROW())>0,MeasureCalc(Table_PI[[#This Row],[Hide:\nFormula Name]],Table_PI[[#This Row],[Quantity]],Table_PI[[#This Row],[List 1]],Table_PI[[#This Row],[List 2]],Table_PI[[#This Row],[List 3]],Table_PI[[#This Row],[Size]],Table_PI[[#This Row],[Input 1]],Table_PI[[#This Row],[Input 2]],Table_PI[[#This Row],[Input 3]],Table_PI[[#This Row],[Input 4]],'Customer Information'!$AR$12,7,ROW()),\"No Rebate\"),\"No Rebate\"),0)","v":0},{"$f":"IF(Table_PI[[#This Row],[Hide:\nFormula Name]]<>\"\",IFERROR(IF(MeasureCalc(Table_PI[[#This Row],[Hide:\nFormula Name]],Table_PI[[#This Row],[Quantity]],Table_PI[[#This Row],[List 1]],Table_PI[[#This Row],[List 2]],Table_PI[[#This Row],[List 3]],Table_PI[[#This Row],[Size]],Table_PI[[#This Row],[Input 1]],Table_PI[[#This Row],[Input 2]],Table_PI[[#This Row],[Input 3]],Table_PI[[#This Row],[Input 4]],'Customer Information'!$AR$12,1,ROW())>0,MeasureCalc(Table_PI[[#This Row],[Hide:\nFormula Name]],Table_PI[[#This Row],[Quantity]],Table_PI[[#This Row],[List 1]],Table_PI[[#This Row],[List 2]],Table_PI[[#This Row],[List 3]],Table_PI[[#This Row],[Size]],Table_PI[[#This Row],[Input 1]],Table_PI[[#This Row],[Input 2]],Table_PI[[#This Row],[Input 3]],Table_PI[[#This Row],[Input 4]],'Customer Information'!$AR$12,8,ROW()),\"No Rebate\"),\"No Rebate\"),0)","v":0},{"$f":"IF(Table_PI[[#This Row],[Hide:\nFormula Name]]<>\"\",IF(AND(Table_PI[[#This Row],[Hide:\nFormula Name]]<>\"\",OR(Table_PI[[#This Row],[Rebate]]>0,Table_PI[[#This Row],[Rebate]]=\"No Rebate\")),TRUE,\"MI: Line Item \" & $A330),\"\")","v":""}]
[{"$f":"IF(Table_PI[[#This Row],[Hide:\nFormula Name]]<>\"\",MAX($A$2:A330)+1,\"\")","v":""},null,null,null,null,null,null,null,null,null,null,null,null,null,null,{"$f":"IFERROR(VLOOKUP(Table_PI[[#This Row],[Measure]],'Equipment Lookups'!$C$3:$D$23,2,FALSE),\"\")","v":""},{"$f":"IF(Table_PI[[#This Row],[Hide:\nFormula Name]]<>\"\",IFERROR(IF(MeasureCalc(Table_PI[[#This Row],[Hide:\nFormula Name]],Table_PI[[#This Row],[Quantity]],Table_PI[[#This Row],[List 1]],Table_PI[[#This Row],[List 2]],Table_PI[[#This Row],[List 3]],Table_PI[[#This Row],[Size]],Table_PI[[#This Row],[Input 1]],Table_PI[[#This Row],[Input 2]],Table_PI[[#This Row],[Input 3]],Table_PI[[#This Row],[Input 4]],'Customer Information'!$AR$12,1,ROW())>0,MeasureCalc(Table_PI[[#This Row],[Hide:\nFormula Name]],Table_PI[[#This Row],[Quantity]],Table_PI[[#This Row],[List 1]],Table_PI[[#This Row],[List 2]],Table_PI[[#This Row],[List 3]],Table_PI[[#This Row],[Size]],Table_PI[[#This Row],[Input 1]],Table_PI[[#This Row],[Input 2]],Table_PI[[#This Row],[Input 3]],Table_PI[[#This Row],[Input 4]],'Customer Information'!$AR$12,1,ROW()),\"No Rebate\"),\"No Rebate\"),0)","v":0},{"$f":"IF(Table_PI[[#This Row],[Hide:\nFormula Name]]<>\"\",IFERROR(IF(MeasureCalc(Table_PI[[#This Row],[Hide:\nFormula Name]],Table_PI[[#This Row],[Quantity]],Table_PI[[#This Row],[List 1]],Table_PI[[#This Row],[List 2]],Table_PI[[#This Row],[List 3]],Table_PI[[#This Row],[Size]],Table_PI[[#This Row],[Input 1]],Table_PI[[#This Row],[Input 2]],Table_PI[[#This Row],[Input 3]],Table_PI[[#This Row],[Input 4]],'Customer Information'!$AR$12,1,ROW())>0,MeasureCalc(Table_PI[[#This Row],[Hide:\nFormula Name]],Table_PI[[#This Row],[Quantity]],Table_PI[[#This Row],[List 1]],Table_PI[[#This Row],[List 2]],Table_PI[[#This Row],[List 3]],Table_PI[[#This Row],[Size]],Table_PI[[#This Row],[Input 1]],Table_PI[[#This Row],[Input 2]],Table_PI[[#This Row],[Input 3]],Table_PI[[#This Row],[Input 4]],'Customer Information'!$AR$12,2,ROW()),\"No Rebate\"),\"No Rebate\"),0)","v":0},{"$f":"IF(Table_PI[[#This Row],[Hide:\nFormula Name]]<>\"\",IFERROR(IF(MeasureCalc(Table_PI[[#This Row],[Hide:\nFormula Name]],Table_PI[[#This Row],[Quantity]],Table_PI[[#This Row],[List 1]],Table_PI[[#This Row],[List 2]],Table_PI[[#This Row],[List 3]],Table_PI[[#This Row],[Size]],Table_PI[[#This Row],[Input 1]],Table_PI[[#This Row],[Input 2]],Table_PI[[#This Row],[Input 3]],Table_PI[[#This Row],[Input 4]],'Customer Information'!$AR$12,1,ROW())>0,MeasureCalc(Table_PI[[#This Row],[Hide:\nFormula Name]],Table_PI[[#This Row],[Quantity]],Table_PI[[#This Row],[List 1]],Table_PI[[#This Row],[List 2]],Table_PI[[#This Row],[List 3]],Table_PI[[#This Row],[Size]],Table_PI[[#This Row],[Input 1]],Table_PI[[#This Row],[Input 2]],Table_PI[[#This Row],[Input 3]],Table_PI[[#This Row],[Input 4]],'Customer Information'!$AR$12,3,ROW()),\"No Rebate\"),\"No Rebate\"),0)","v":0},{"$f":"IF(Table_PI[[#This Row],[Hide:\nFormula Name]]<>\"\",IFERROR(IF(MeasureCalc(Table_PI[[#This Row],[Hide:\nFormula Name]],Table_PI[[#This Row],[Quantity]],Table_PI[[#This Row],[List 1]],Table_PI[[#This Row],[List 2]],Table_PI[[#This Row],[List 3]],Table_PI[[#This Row],[Size]],Table_PI[[#This Row],[Input 1]],Table_PI[[#This Row],[Input 2]],Table_PI[[#This Row],[Input 3]],Table_PI[[#This Row],[Input 4]],'Customer Information'!$AR$12,1,ROW())>0,MeasureCalc(Table_PI[[#This Row],[Hide:\nFormula Name]],Table_PI[[#This Row],[Quantity]],Table_PI[[#This Row],[List 1]],Table_PI[[#This Row],[List 2]],Table_PI[[#This Row],[List 3]],Table_PI[[#This Row],[Size]],Table_PI[[#This Row],[Input 1]],Table_PI[[#This Row],[Input 2]],Table_PI[[#This Row],[Input 3]],Table_PI[[#This Row],[Input 4]],'Customer Information'!$AR$12,4,ROW()),\"No Rebate\"),\"No Rebate\"),0)","v":0},{"$f":"IF(Table_PI[[#This Row],[Hide:\nFormula Name]]<>\"\",IFERROR(IF(MeasureCalc(Table_PI[[#This Row],[Hide:\nFormula Name]],Table_PI[[#This Row],[Quantity]],Table_PI[[#This Row],[List 1]],Table_PI[[#This Row],[List 2]],Table_PI[[#This Row],[List 3]],Table_PI[[#This Row],[Size]],Table_PI[[#This Row],[Input 1]],Table_PI[[#This Row],[Input 2]],Table_PI[[#This Row],[Input 3]],Table_PI[[#This Row],[Input 4]],'Customer Information'!$AR$12,1,ROW())>0,MeasureCalc(Table_PI[[#This Row],[Hide:\nFormula Name]],Table_PI[[#This Row],[Quantity]],Table_PI[[#This Row],[List 1]],Table_PI[[#This Row],[List 2]],Table_PI[[#This Row],[List 3]],Table_PI[[#This Row],[Size]],Table_PI[[#This Row],[Input 1]],Table_PI[[#This Row],[Input 2]],Table_PI[[#This Row],[Input 3]],Table_PI[[#This Row],[Input 4]],'Customer Information'!$AR$12,5,ROW()),\"No Rebate\"),\"No Rebate\"),0)","v":0},{"$f":"IF(Table_PI[[#This Row],[Hide:\nFormula Name]]<>\"\",IFERROR(IF(MeasureCalc(Table_PI[[#This Row],[Hide:\nFormula Name]],Table_PI[[#This Row],[Quantity]],Table_PI[[#This Row],[List 1]],Table_PI[[#This Row],[List 2]],Table_PI[[#This Row],[List 3]],Table_PI[[#This Row],[Size]],Table_PI[[#This Row],[Input 1]],Table_PI[[#This Row],[Input 2]],Table_PI[[#This Row],[Input 3]],Table_PI[[#This Row],[Input 4]],'Customer Information'!$AR$12,1,ROW())>0,MeasureCalc(Table_PI[[#This Row],[Hide:\nFormula Name]],Table_PI[[#This Row],[Quantity]],Table_PI[[#This Row],[List 1]],Table_PI[[#This Row],[List 2]],Table_PI[[#This Row],[List 3]],Table_PI[[#This Row],[Size]],Table_PI[[#This Row],[Input 1]],Table_PI[[#This Row],[Input 2]],Table_PI[[#This Row],[Input 3]],Table_PI[[#This Row],[Input 4]],'Customer Information'!$AR$12,6,ROW()),\"No Rebate\"),\"No Rebate\"),0)","v":0},{"$f":"IF(Table_PI[[#This Row],[Hide:\nFormula Name]]<>\"\",IFERROR(IF(MeasureCalc(Table_PI[[#This Row],[Hide:\nFormula Name]],Table_PI[[#This Row],[Quantity]],Table_PI[[#This Row],[List 1]],Table_PI[[#This Row],[List 2]],Table_PI[[#This Row],[List 3]],Table_PI[[#This Row],[Size]],Table_PI[[#This Row],[Input 1]],Table_PI[[#This Row],[Input 2]],Table_PI[[#This Row],[Input 3]],Table_PI[[#This Row],[Input 4]],'Customer Information'!$AR$12,1,ROW())>0,MeasureCalc(Table_PI[[#This Row],[Hide:\nFormula Name]],Table_PI[[#This Row],[Quantity]],Table_PI[[#This Row],[List 1]],Table_PI[[#This Row],[List 2]],Table_PI[[#This Row],[List 3]],Table_PI[[#This Row],[Size]],Table_PI[[#This Row],[Input 1]],Table_PI[[#This Row],[Input 2]],Table_PI[[#This Row],[Input 3]],Table_PI[[#This Row],[Input 4]],'Customer Information'!$AR$12,7,ROW()),\"No Rebate\"),\"No Rebate\"),0)","v":0},{"$f":"IF(Table_PI[[#This Row],[Hide:\nFormula Name]]<>\"\",IFERROR(IF(MeasureCalc(Table_PI[[#This Row],[Hide:\nFormula Name]],Table_PI[[#This Row],[Quantity]],Table_PI[[#This Row],[List 1]],Table_PI[[#This Row],[List 2]],Table_PI[[#This Row],[List 3]],Table_PI[[#This Row],[Size]],Table_PI[[#This Row],[Input 1]],Table_PI[[#This Row],[Input 2]],Table_PI[[#This Row],[Input 3]],Table_PI[[#This Row],[Input 4]],'Customer Information'!$AR$12,1,ROW())>0,MeasureCalc(Table_PI[[#This Row],[Hide:\nFormula Name]],Table_PI[[#This Row],[Quantity]],Table_PI[[#This Row],[List 1]],Table_PI[[#This Row],[List 2]],Table_PI[[#This Row],[List 3]],Table_PI[[#This Row],[Size]],Table_PI[[#This Row],[Input 1]],Table_PI[[#This Row],[Input 2]],Table_PI[[#This Row],[Input 3]],Table_PI[[#This Row],[Input 4]],'Customer Information'!$AR$12,8,ROW()),\"No Rebate\"),\"No Rebate\"),0)","v":0},{"$f":"IF(Table_PI[[#This Row],[Hide:\nFormula Name]]<>\"\",IF(AND(Table_PI[[#This Row],[Hide:\nFormula Name]]<>\"\",OR(Table_PI[[#This Row],[Rebate]]>0,Table_PI[[#This Row],[Rebate]]=\"No Rebate\")),TRUE,\"MI: Line Item \" & $A331),\"\")","v":""}]
[{"$f":"IF(Table_PI[[#This Row],[Hide:\nFormula Name]]<>\"\",MAX($A$2:A331)+1,\"\")","v":""},null,null,null,null,null,null,null,null,null,null,null,null,null,null,{"$f":"IFERROR(VLOOKUP(Table_PI[[#This Row],[Measure]],'Equipment Lookups'!$C$3:$D$23,2,FALSE),\"\")","v":""},{"$f":"IF(Table_PI[[#This Row],[Hide:\nFormula Name]]<>\"\",IFERROR(IF(MeasureCalc(Table_PI[[#This Row],[Hide:\nFormula Name]],Table_PI[[#This Row],[Quantity]],Table_PI[[#This Row],[List 1]],Table_PI[[#This Row],[List 2]],Table_PI[[#This Row],[List 3]],Table_PI[[#This Row],[Size]],Table_PI[[#This Row],[Input 1]],Table_PI[[#This Row],[Input 2]],Table_PI[[#This Row],[Input 3]],Table_PI[[#This Row],[Input 4]],'Customer Information'!$AR$12,1,ROW())>0,MeasureCalc(Table_PI[[#This Row],[Hide:\nFormula Name]],Table_PI[[#This Row],[Quantity]],Table_PI[[#This Row],[List 1]],Table_PI[[#This Row],[List 2]],Table_PI[[#This Row],[List 3]],Table_PI[[#This Row],[Size]],Table_PI[[#This Row],[Input 1]],Table_PI[[#This Row],[Input 2]],Table_PI[[#This Row],[Input 3]],Table_PI[[#This Row],[Input 4]],'Customer Information'!$AR$12,1,ROW()),\"No Rebate\"),\"No Rebate\"),0)","v":0},{"$f":"IF(Table_PI[[#This Row],[Hide:\nFormula Name]]<>\"\",IFERROR(IF(MeasureCalc(Table_PI[[#This Row],[Hide:\nFormula Name]],Table_PI[[#This Row],[Quantity]],Table_PI[[#This Row],[List 1]],Table_PI[[#This Row],[List 2]],Table_PI[[#This Row],[List 3]],Table_PI[[#This Row],[Size]],Table_PI[[#This Row],[Input 1]],Table_PI[[#This Row],[Input 2]],Table_PI[[#This Row],[Input 3]],Table_PI[[#This Row],[Input 4]],'Customer Information'!$AR$12,1,ROW())>0,MeasureCalc(Table_PI[[#This Row],[Hide:\nFormula Name]],Table_PI[[#This Row],[Quantity]],Table_PI[[#This Row],[List 1]],Table_PI[[#This Row],[List 2]],Table_PI[[#This Row],[List 3]],Table_PI[[#This Row],[Size]],Table_PI[[#This Row],[Input 1]],Table_PI[[#This Row],[Input 2]],Table_PI[[#This Row],[Input 3]],Table_PI[[#This Row],[Input 4]],'Customer Information'!$AR$12,2,ROW()),\"No Rebate\"),\"No Rebate\"),0)","v":0},{"$f":"IF(Table_PI[[#This Row],[Hide:\nFormula Name]]<>\"\",IFERROR(IF(MeasureCalc(Table_PI[[#This Row],[Hide:\nFormula Name]],Table_PI[[#This Row],[Quantity]],Table_PI[[#This Row],[List 1]],Table_PI[[#This Row],[List 2]],Table_PI[[#This Row],[List 3]],Table_PI[[#This Row],[Size]],Table_PI[[#This Row],[Input 1]],Table_PI[[#This Row],[Input 2]],Table_PI[[#This Row],[Input 3]],Table_PI[[#This Row],[Input 4]],'Customer Information'!$AR$12,1,ROW())>0,MeasureCalc(Table_PI[[#This Row],[Hide:\nFormula Name]],Table_PI[[#This Row],[Quantity]],Table_PI[[#This Row],[List 1]],Table_PI[[#This Row],[List 2]],Table_PI[[#This Row],[List 3]],Table_PI[[#This Row],[Size]],Table_PI[[#This Row],[Input 1]],Table_PI[[#This Row],[Input 2]],Table_PI[[#This Row],[Input 3]],Table_PI[[#This Row],[Input 4]],'Customer Information'!$AR$12,3,ROW()),\"No Rebate\"),\"No Rebate\"),0)","v":0},{"$f":"IF(Table_PI[[#This Row],[Hide:\nFormula Name]]<>\"\",IFERROR(IF(MeasureCalc(Table_PI[[#This Row],[Hide:\nFormula Name]],Table_PI[[#This Row],[Quantity]],Table_PI[[#This Row],[List 1]],Table_PI[[#This Row],[List 2]],Table_PI[[#This Row],[List 3]],Table_PI[[#This Row],[Size]],Table_PI[[#This Row],[Input 1]],Table_PI[[#This Row],[Input 2]],Table_PI[[#This Row],[Input 3]],Table_PI[[#This Row],[Input 4]],'Customer Information'!$AR$12,1,ROW())>0,MeasureCalc(Table_PI[[#This Row],[Hide:\nFormula Name]],Table_PI[[#This Row],[Quantity]],Table_PI[[#This Row],[List 1]],Table_PI[[#This Row],[List 2]],Table_PI[[#This Row],[List 3]],Table_PI[[#This Row],[Size]],Table_PI[[#This Row],[Input 1]],Table_PI[[#This Row],[Input 2]],Table_PI[[#This Row],[Input 3]],Table_PI[[#This Row],[Input 4]],'Customer Information'!$AR$12,4,ROW()),\"No Rebate\"),\"No Rebate\"),0)","v":0},{"$f":"IF(Table_PI[[#This Row],[Hide:\nFormula Name]]<>\"\",IFERROR(IF(MeasureCalc(Table_PI[[#This Row],[Hide:\nFormula Name]],Table_PI[[#This Row],[Quantity]],Table_PI[[#This Row],[List 1]],Table_PI[[#This Row],[List 2]],Table_PI[[#This Row],[List 3]],Table_PI[[#This Row],[Size]],Table_PI[[#This Row],[Input 1]],Table_PI[[#This Row],[Input 2]],Table_PI[[#This Row],[Input 3]],Table_PI[[#This Row],[Input 4]],'Customer Information'!$AR$12,1,ROW())>0,MeasureCalc(Table_PI[[#This Row],[Hide:\nFormula Name]],Table_PI[[#This Row],[Quantity]],Table_PI[[#This Row],[List 1]],Table_PI[[#This Row],[List 2]],Table_PI[[#This Row],[List 3]],Table_PI[[#This Row],[Size]],Table_PI[[#This Row],[Input 1]],Table_PI[[#This Row],[Input 2]],Table_PI[[#This Row],[Input 3]],Table_PI[[#This Row],[Input 4]],'Customer Information'!$AR$12,5,ROW()),\"No Rebate\"),\"No Rebate\"),0)","v":0},{"$f":"IF(Table_PI[[#This Row],[Hide:\nFormula Name]]<>\"\",IFERROR(IF(MeasureCalc(Table_PI[[#This Row],[Hide:\nFormula Name]],Table_PI[[#This Row],[Quantity]],Table_PI[[#This Row],[List 1]],Table_PI[[#This Row],[List 2]],Table_PI[[#This Row],[List 3]],Table_PI[[#This Row],[Size]],Table_PI[[#This Row],[Input 1]],Table_PI[[#This Row],[Input 2]],Table_PI[[#This Row],[Input 3]],Table_PI[[#This Row],[Input 4]],'Customer Information'!$AR$12,1,ROW())>0,MeasureCalc(Table_PI[[#This Row],[Hide:\nFormula Name]],Table_PI[[#This Row],[Quantity]],Table_PI[[#This Row],[List 1]],Table_PI[[#This Row],[List 2]],Table_PI[[#This Row],[List 3]],Table_PI[[#This Row],[Size]],Table_PI[[#This Row],[Input 1]],Table_PI[[#This Row],[Input 2]],Table_PI[[#This Row],[Input 3]],Table_PI[[#This Row],[Input 4]],'Customer Information'!$AR$12,6,ROW()),\"No Rebate\"),\"No Rebate\"),0)","v":0},{"$f":"IF(Table_PI[[#This Row],[Hide:\nFormula Name]]<>\"\",IFERROR(IF(MeasureCalc(Table_PI[[#This Row],[Hide:\nFormula Name]],Table_PI[[#This Row],[Quantity]],Table_PI[[#This Row],[List 1]],Table_PI[[#This Row],[List 2]],Table_PI[[#This Row],[List 3]],Table_PI[[#This Row],[Size]],Table_PI[[#This Row],[Input 1]],Table_PI[[#This Row],[Input 2]],Table_PI[[#This Row],[Input 3]],Table_PI[[#This Row],[Input 4]],'Customer Information'!$AR$12,1,ROW())>0,MeasureCalc(Table_PI[[#This Row],[Hide:\nFormula Name]],Table_PI[[#This Row],[Quantity]],Table_PI[[#This Row],[List 1]],Table_PI[[#This Row],[List 2]],Table_PI[[#This Row],[List 3]],Table_PI[[#This Row],[Size]],Table_PI[[#This Row],[Input 1]],Table_PI[[#This Row],[Input 2]],Table_PI[[#This Row],[Input 3]],Table_PI[[#This Row],[Input 4]],'Customer Information'!$AR$12,7,ROW()),\"No Rebate\"),\"No Rebate\"),0)","v":0},{"$f":"IF(Table_PI[[#This Row],[Hide:\nFormula Name]]<>\"\",IFERROR(IF(MeasureCalc(Table_PI[[#This Row],[Hide:\nFormula Name]],Table_PI[[#This Row],[Quantity]],Table_PI[[#This Row],[List 1]],Table_PI[[#This Row],[List 2]],Table_PI[[#This Row],[List 3]],Table_PI[[#This Row],[Size]],Table_PI[[#This Row],[Input 1]],Table_PI[[#This Row],[Input 2]],Table_PI[[#This Row],[Input 3]],Table_PI[[#This Row],[Input 4]],'Customer Information'!$AR$12,1,ROW())>0,MeasureCalc(Table_PI[[#This Row],[Hide:\nFormula Name]],Table_PI[[#This Row],[Quantity]],Table_PI[[#This Row],[List 1]],Table_PI[[#This Row],[List 2]],Table_PI[[#This Row],[List 3]],Table_PI[[#This Row],[Size]],Table_PI[[#This Row],[Input 1]],Table_PI[[#This Row],[Input 2]],Table_PI[[#This Row],[Input 3]],Table_PI[[#This Row],[Input 4]],'Customer Information'!$AR$12,8,ROW()),\"No Rebate\"),\"No Rebate\"),0)","v":0},{"$f":"IF(Table_PI[[#This Row],[Hide:\nFormula Name]]<>\"\",IF(AND(Table_PI[[#This Row],[Hide:\nFormula Name]]<>\"\",OR(Table_PI[[#This Row],[Rebate]]>0,Table_PI[[#This Row],[Rebate]]=\"No Rebate\")),TRUE,\"MI: Line Item \" & $A332),\"\")","v":""}]
[{"$f":"IF(Table_PI[[#This Row],[Hide:\nFormula Name]]<>\"\",MAX($A$2:A332)+1,\"\")","v":""},null,null,null,null,null,null,null,null,null,null,null,null,null,null,{"$f":"IFERROR(VLOOKUP(Table_PI[[#This Row],[Measure]],'Equipment Lookups'!$C$3:$D$23,2,FALSE),\"\")","v":""},{"$f":"IF(Table_PI[[#This Row],[Hide:\nFormula Name]]<>\"\",IFERROR(IF(MeasureCalc(Table_PI[[#This Row],[Hide:\nFormula Name]],Table_PI[[#This Row],[Quantity]],Table_PI[[#This Row],[List 1]],Table_PI[[#This Row],[List 2]],Table_PI[[#This Row],[List 3]],Table_PI[[#This Row],[Size]],Table_PI[[#This Row],[Input 1]],Table_PI[[#This Row],[Input 2]],Table_PI[[#This Row],[Input 3]],Table_PI[[#This Row],[Input 4]],'Customer Information'!$AR$12,1,ROW())>0,MeasureCalc(Table_PI[[#This Row],[Hide:\nFormula Name]],Table_PI[[#This Row],[Quantity]],Table_PI[[#This Row],[List 1]],Table_PI[[#This Row],[List 2]],Table_PI[[#This Row],[List 3]],Table_PI[[#This Row],[Size]],Table_PI[[#This Row],[Input 1]],Table_PI[[#This Row],[Input 2]],Table_PI[[#This Row],[Input 3]],Table_PI[[#This Row],[Input 4]],'Customer Information'!$AR$12,1,ROW()),\"No Rebate\"),\"No Rebate\"),0)","v":0},{"$f":"IF(Table_PI[[#This Row],[Hide:\nFormula Name]]<>\"\",IFERROR(IF(MeasureCalc(Table_PI[[#This Row],[Hide:\nFormula Name]],Table_PI[[#This Row],[Quantity]],Table_PI[[#This Row],[List 1]],Table_PI[[#This Row],[List 2]],Table_PI[[#This Row],[List 3]],Table_PI[[#This Row],[Size]],Table_PI[[#This Row],[Input 1]],Table_PI[[#This Row],[Input 2]],Table_PI[[#This Row],[Input 3]],Table_PI[[#This Row],[Input 4]],'Customer Information'!$AR$12,1,ROW())>0,MeasureCalc(Table_PI[[#This Row],[Hide:\nFormula Name]],Table_PI[[#This Row],[Quantity]],Table_PI[[#This Row],[List 1]],Table_PI[[#This Row],[List 2]],Table_PI[[#This Row],[List 3]],Table_PI[[#This Row],[Size]],Table_PI[[#This Row],[Input 1]],Table_PI[[#This Row],[Input 2]],Table_PI[[#This Row],[Input 3]],Table_PI[[#This Row],[Input 4]],'Customer Information'!$AR$12,2,ROW()),\"No Rebate\"),\"No Rebate\"),0)","v":0},{"$f":"IF(Table_PI[[#This Row],[Hide:\nFormula Name]]<>\"\",IFERROR(IF(MeasureCalc(Table_PI[[#This Row],[Hide:\nFormula Name]],Table_PI[[#This Row],[Quantity]],Table_PI[[#This Row],[List 1]],Table_PI[[#This Row],[List 2]],Table_PI[[#This Row],[List 3]],Table_PI[[#This Row],[Size]],Table_PI[[#This Row],[Input 1]],Table_PI[[#This Row],[Input 2]],Table_PI[[#This Row],[Input 3]],Table_PI[[#This Row],[Input 4]],'Customer Information'!$AR$12,1,ROW())>0,MeasureCalc(Table_PI[[#This Row],[Hide:\nFormula Name]],Table_PI[[#This Row],[Quantity]],Table_PI[[#This Row],[List 1]],Table_PI[[#This Row],[List 2]],Table_PI[[#This Row],[List 3]],Table_PI[[#This Row],[Size]],Table_PI[[#This Row],[Input 1]],Table_PI[[#This Row],[Input 2]],Table_PI[[#This Row],[Input 3]],Table_PI[[#This Row],[Input 4]],'Customer Information'!$AR$12,3,ROW()),\"No Rebate\"),\"No Rebate\"),0)","v":0},{"$f":"IF(Table_PI[[#This Row],[Hide:\nFormula Name]]<>\"\",IFERROR(IF(MeasureCalc(Table_PI[[#This Row],[Hide:\nFormula Name]],Table_PI[[#This Row],[Quantity]],Table_PI[[#This Row],[List 1]],Table_PI[[#This Row],[List 2]],Table_PI[[#This Row],[List 3]],Table_PI[[#This Row],[Size]],Table_PI[[#This Row],[Input 1]],Table_PI[[#This Row],[Input 2]],Table_PI[[#This Row],[Input 3]],Table_PI[[#This Row],[Input 4]],'Customer Information'!$AR$12,1,ROW())>0,MeasureCalc(Table_PI[[#This Row],[Hide:\nFormula Name]],Table_PI[[#This Row],[Quantity]],Table_PI[[#This Row],[List 1]],Table_PI[[#This Row],[List 2]],Table_PI[[#This Row],[List 3]],Table_PI[[#This Row],[Size]],Table_PI[[#This Row],[Input 1]],Table_PI[[#This Row],[Input 2]],Table_PI[[#This Row],[Input 3]],Table_PI[[#This Row],[Input 4]],'Customer Information'!$AR$12,4,ROW()),\"No Rebate\"),\"No Rebate\"),0)","v":0},{"$f":"IF(Table_PI[[#This Row],[Hide:\nFormula Name]]<>\"\",IFERROR(IF(MeasureCalc(Table_PI[[#This Row],[Hide:\nFormula Name]],Table_PI[[#This Row],[Quantity]],Table_PI[[#This Row],[List 1]],Table_PI[[#This Row],[List 2]],Table_PI[[#This Row],[List 3]],Table_PI[[#This Row],[Size]],Table_PI[[#This Row],[Input 1]],Table_PI[[#This Row],[Input 2]],Table_PI[[#This Row],[Input 3]],Table_PI[[#This Row],[Input 4]],'Customer Information'!$AR$12,1,ROW())>0,MeasureCalc(Table_PI[[#This Row],[Hide:\nFormula Name]],Table_PI[[#This Row],[Quantity]],Table_PI[[#This Row],[List 1]],Table_PI[[#This Row],[List 2]],Table_PI[[#This Row],[List 3]],Table_PI[[#This Row],[Size]],Table_PI[[#This Row],[Input 1]],Table_PI[[#This Row],[Input 2]],Table_PI[[#This Row],[Input 3]],Table_PI[[#This Row],[Input 4]],'Customer Information'!$AR$12,5,ROW()),\"No Rebate\"),\"No Rebate\"),0)","v":0},{"$f":"IF(Table_PI[[#This Row],[Hide:\nFormula Name]]<>\"\",IFERROR(IF(MeasureCalc(Table_PI[[#This Row],[Hide:\nFormula Name]],Table_PI[[#This Row],[Quantity]],Table_PI[[#This Row],[List 1]],Table_PI[[#This Row],[List 2]],Table_PI[[#This Row],[List 3]],Table_PI[[#This Row],[Size]],Table_PI[[#This Row],[Input 1]],Table_PI[[#This Row],[Input 2]],Table_PI[[#This Row],[Input 3]],Table_PI[[#This Row],[Input 4]],'Customer Information'!$AR$12,1,ROW())>0,MeasureCalc(Table_PI[[#This Row],[Hide:\nFormula Name]],Table_PI[[#This Row],[Quantity]],Table_PI[[#This Row],[List 1]],Table_PI[[#This Row],[List 2]],Table_PI[[#This Row],[List 3]],Table_PI[[#This Row],[Size]],Table_PI[[#This Row],[Input 1]],Table_PI[[#This Row],[Input 2]],Table_PI[[#This Row],[Input 3]],Table_PI[[#This Row],[Input 4]],'Customer Information'!$AR$12,6,ROW()),\"No Rebate\"),\"No Rebate\"),0)","v":0},{"$f":"IF(Table_PI[[#This Row],[Hide:\nFormula Name]]<>\"\",IFERROR(IF(MeasureCalc(Table_PI[[#This Row],[Hide:\nFormula Name]],Table_PI[[#This Row],[Quantity]],Table_PI[[#This Row],[List 1]],Table_PI[[#This Row],[List 2]],Table_PI[[#This Row],[List 3]],Table_PI[[#This Row],[Size]],Table_PI[[#This Row],[Input 1]],Table_PI[[#This Row],[Input 2]],Table_PI[[#This Row],[Input 3]],Table_PI[[#This Row],[Input 4]],'Customer Information'!$AR$12,1,ROW())>0,MeasureCalc(Table_PI[[#This Row],[Hide:\nFormula Name]],Table_PI[[#This Row],[Quantity]],Table_PI[[#This Row],[List 1]],Table_PI[[#This Row],[List 2]],Table_PI[[#This Row],[List 3]],Table_PI[[#This Row],[Size]],Table_PI[[#This Row],[Input 1]],Table_PI[[#This Row],[Input 2]],Table_PI[[#This Row],[Input 3]],Table_PI[[#This Row],[Input 4]],'Customer Information'!$AR$12,7,ROW()),\"No Rebate\"),\"No Rebate\"),0)","v":0},{"$f":"IF(Table_PI[[#This Row],[Hide:\nFormula Name]]<>\"\",IFERROR(IF(MeasureCalc(Table_PI[[#This Row],[Hide:\nFormula Name]],Table_PI[[#This Row],[Quantity]],Table_PI[[#This Row],[List 1]],Table_PI[[#This Row],[List 2]],Table_PI[[#This Row],[List 3]],Table_PI[[#This Row],[Size]],Table_PI[[#This Row],[Input 1]],Table_PI[[#This Row],[Input 2]],Table_PI[[#This Row],[Input 3]],Table_PI[[#This Row],[Input 4]],'Customer Information'!$AR$12,1,ROW())>0,MeasureCalc(Table_PI[[#This Row],[Hide:\nFormula Name]],Table_PI[[#This Row],[Quantity]],Table_PI[[#This Row],[List 1]],Table_PI[[#This Row],[List 2]],Table_PI[[#This Row],[List 3]],Table_PI[[#This Row],[Size]],Table_PI[[#This Row],[Input 1]],Table_PI[[#This Row],[Input 2]],Table_PI[[#This Row],[Input 3]],Table_PI[[#This Row],[Input 4]],'Customer Information'!$AR$12,8,ROW()),\"No Rebate\"),\"No Rebate\"),0)","v":0},{"$f":"IF(Table_PI[[#This Row],[Hide:\nFormula Name]]<>\"\",IF(AND(Table_PI[[#This Row],[Hide:\nFormula Name]]<>\"\",OR(Table_PI[[#This Row],[Rebate]]>0,Table_PI[[#This Row],[Rebate]]=\"No Rebate\")),TRUE,\"MI: Line Item \" & $A333),\"\")","v":""}]
[{"$f":"IF(Table_PI[[#This Row],[Hide:\nFormula Name]]<>\"\",MAX($A$2:A333)+1,\"\")","v":""},null,null,null,null,null,null,null,null,null,null,null,null,null,null,{"$f":"IFERROR(VLOOKUP(Table_PI[[#This Row],[Measure]],'Equipment Lookups'!$C$3:$D$23,2,FALSE),\"\")","v":""},{"$f":"IF(Table_PI[[#This Row],[Hide:\nFormula Name]]<>\"\",IFERROR(IF(MeasureCalc(Table_PI[[#This Row],[Hide:\nFormula Name]],Table_PI[[#This Row],[Quantity]],Table_PI[[#This Row],[List 1]],Table_PI[[#This Row],[List 2]],Table_PI[[#This Row],[List 3]],Table_PI[[#This Row],[Size]],Table_PI[[#This Row],[Input 1]],Table_PI[[#This Row],[Input 2]],Table_PI[[#This Row],[Input 3]],Table_PI[[#This Row],[Input 4]],'Customer Information'!$AR$12,1,ROW())>0,MeasureCalc(Table_PI[[#This Row],[Hide:\nFormula Name]],Table_PI[[#This Row],[Quantity]],Table_PI[[#This Row],[List 1]],Table_PI[[#This Row],[List 2]],Table_PI[[#This Row],[List 3]],Table_PI[[#This Row],[Size]],Table_PI[[#This Row],[Input 1]],Table_PI[[#This Row],[Input 2]],Table_PI[[#This Row],[Input 3]],Table_PI[[#This Row],[Input 4]],'Customer Information'!$AR$12,1,ROW()),\"No Rebate\"),\"No Rebate\"),0)","v":0},{"$f":"IF(Table_PI[[#This Row],[Hide:\nFormula Name]]<>\"\",IFERROR(IF(MeasureCalc(Table_PI[[#This Row],[Hide:\nFormula Name]],Table_PI[[#This Row],[Quantity]],Table_PI[[#This Row],[List 1]],Table_PI[[#This Row],[List 2]],Table_PI[[#This Row],[List 3]],Table_PI[[#This Row],[Size]],Table_PI[[#This Row],[Input 1]],Table_PI[[#This Row],[Input 2]],Table_PI[[#This Row],[Input 3]],Table_PI[[#This Row],[Input 4]],'Customer Information'!$AR$12,1,ROW())>0,MeasureCalc(Table_PI[[#This Row],[Hide:\nFormula Name]],Table_PI[[#This Row],[Quantity]],Table_PI[[#This Row],[List 1]],Table_PI[[#This Row],[List 2]],Table_PI[[#This Row],[List 3]],Table_PI[[#This Row],[Size]],Table_PI[[#This Row],[Input 1]],Table_PI[[#This Row],[Input 2]],Table_PI[[#This Row],[Input 3]],Table_PI[[#This Row],[Input 4]],'Customer Information'!$AR$12,2,ROW()),\"No Rebate\"),\"No Rebate\"),0)","v":0},{"$f":"IF(Table_PI[[#This Row],[Hide:\nFormula Name]]<>\"\",IFERROR(IF(MeasureCalc(Table_PI[[#This Row],[Hide:\nFormula Name]],Table_PI[[#This Row],[Quantity]],Table_PI[[#This Row],[List 1]],Table_PI[[#This Row],[List 2]],Table_PI[[#This Row],[List 3]],Table_PI[[#This Row],[Size]],Table_PI[[#This Row],[Input 1]],Table_PI[[#This Row],[Input 2]],Table_PI[[#This Row],[Input 3]],Table_PI[[#This Row],[Input 4]],'Customer Information'!$AR$12,1,ROW())>0,MeasureCalc(Table_PI[[#This Row],[Hide:\nFormula Name]],Table_PI[[#This Row],[Quantity]],Table_PI[[#This Row],[List 1]],Table_PI[[#This Row],[List 2]],Table_PI[[#This Row],[List 3]],Table_PI[[#This Row],[Size]],Table_PI[[#This Row],[Input 1]],Table_PI[[#This Row],[Input 2]],Table_PI[[#This Row],[Input 3]],Table_PI[[#This Row],[Input 4]],'Customer Information'!$AR$12,3,ROW()),\"No Rebate\"),\"No Rebate\"),0)","v":0},{"$f":"IF(Table_PI[[#This Row],[Hide:\nFormula Name]]<>\"\",IFERROR(IF(MeasureCalc(Table_PI[[#This Row],[Hide:\nFormula Name]],Table_PI[[#This Row],[Quantity]],Table_PI[[#This Row],[List 1]],Table_PI[[#This Row],[List 2]],Table_PI[[#This Row],[List 3]],Table_PI[[#This Row],[Size]],Table_PI[[#This Row],[Input 1]],Table_PI[[#This Row],[Input 2]],Table_PI[[#This Row],[Input 3]],Table_PI[[#This Row],[Input 4]],'Customer Information'!$AR$12,1,ROW())>0,MeasureCalc(Table_PI[[#This Row],[Hide:\nFormula Name]],Table_PI[[#This Row],[Quantity]],Table_PI[[#This Row],[List 1]],Table_PI[[#This Row],[List 2]],Table_PI[[#This Row],[List 3]],Table_PI[[#This Row],[Size]],Table_PI[[#This Row],[Input 1]],Table_PI[[#This Row],[Input 2]],Table_PI[[#This Row],[Input 3]],Table_PI[[#This Row],[Input 4]],'Customer Information'!$AR$12,4,ROW()),\"No Rebate\"),\"No Rebate\"),0)","v":0},{"$f":"IF(Table_PI[[#This Row],[Hide:\nFormula Name]]<>\"\",IFERROR(IF(MeasureCalc(Table_PI[[#This Row],[Hide:\nFormula Name]],Table_PI[[#This Row],[Quantity]],Table_PI[[#This Row],[List 1]],Table_PI[[#This Row],[List 2]],Table_PI[[#This Row],[List 3]],Table_PI[[#This Row],[Size]],Table_PI[[#This Row],[Input 1]],Table_PI[[#This Row],[Input 2]],Table_PI[[#This Row],[Input 3]],Table_PI[[#This Row],[Input 4]],'Customer Information'!$AR$12,1,ROW())>0,MeasureCalc(Table_PI[[#This Row],[Hide:\nFormula Name]],Table_PI[[#This Row],[Quantity]],Table_PI[[#This Row],[List 1]],Table_PI[[#This Row],[List 2]],Table_PI[[#This Row],[List 3]],Table_PI[[#This Row],[Size]],Table_PI[[#This Row],[Input 1]],Table_PI[[#This Row],[Input 2]],Table_PI[[#This Row],[Input 3]],Table_PI[[#This Row],[Input 4]],'Customer Information'!$AR$12,5,ROW()),\"No Rebate\"),\"No Rebate\"),0)","v":0},{"$f":"IF(Table_PI[[#This Row],[Hide:\nFormula Name]]<>\"\",IFERROR(IF(MeasureCalc(Table_PI[[#This Row],[Hide:\nFormula Name]],Table_PI[[#This Row],[Quantity]],Table_PI[[#This Row],[List 1]],Table_PI[[#This Row],[List 2]],Table_PI[[#This Row],[List 3]],Table_PI[[#This Row],[Size]],Table_PI[[#This Row],[Input 1]],Table_PI[[#This Row],[Input 2]],Table_PI[[#This Row],[Input 3]],Table_PI[[#This Row],[Input 4]],'Customer Information'!$AR$12,1,ROW())>0,MeasureCalc(Table_PI[[#This Row],[Hide:\nFormula Name]],Table_PI[[#This Row],[Quantity]],Table_PI[[#This Row],[List 1]],Table_PI[[#This Row],[List 2]],Table_PI[[#This Row],[List 3]],Table_PI[[#This Row],[Size]],Table_PI[[#This Row],[Input 1]],Table_PI[[#This Row],[Input 2]],Table_PI[[#This Row],[Input 3]],Table_PI[[#This Row],[Input 4]],'Customer Information'!$AR$12,6,ROW()),\"No Rebate\"),\"No Rebate\"),0)","v":0},{"$f":"IF(Table_PI[[#This Row],[Hide:\nFormula Name]]<>\"\",IFERROR(IF(MeasureCalc(Table_PI[[#This Row],[Hide:\nFormula Name]],Table_PI[[#This Row],[Quantity]],Table_PI[[#This Row],[List 1]],Table_PI[[#This Row],[List 2]],Table_PI[[#This Row],[List 3]],Table_PI[[#This Row],[Size]],Table_PI[[#This Row],[Input 1]],Table_PI[[#This Row],[Input 2]],Table_PI[[#This Row],[Input 3]],Table_PI[[#This Row],[Input 4]],'Customer Information'!$AR$12,1,ROW())>0,MeasureCalc(Table_PI[[#This Row],[Hide:\nFormula Name]],Table_PI[[#This Row],[Quantity]],Table_PI[[#This Row],[List 1]],Table_PI[[#This Row],[List 2]],Table_PI[[#This Row],[List 3]],Table_PI[[#This Row],[Size]],Table_PI[[#This Row],[Input 1]],Table_PI[[#This Row],[Input 2]],Table_PI[[#This Row],[Input 3]],Table_PI[[#This Row],[Input 4]],'Customer Information'!$AR$12,7,ROW()),\"No Rebate\"),\"No Rebate\"),0)","v":0},{"$f":"IF(Table_PI[[#This Row],[Hide:\nFormula Name]]<>\"\",IFERROR(IF(MeasureCalc(Table_PI[[#This Row],[Hide:\nFormula Name]],Table_PI[[#This Row],[Quantity]],Table_PI[[#This Row],[List 1]],Table_PI[[#This Row],[List 2]],Table_PI[[#This Row],[List 3]],Table_PI[[#This Row],[Size]],Table_PI[[#This Row],[Input 1]],Table_PI[[#This Row],[Input 2]],Table_PI[[#This Row],[Input 3]],Table_PI[[#This Row],[Input 4]],'Customer Information'!$AR$12,1,ROW())>0,MeasureCalc(Table_PI[[#This Row],[Hide:\nFormula Name]],Table_PI[[#This Row],[Quantity]],Table_PI[[#This Row],[List 1]],Table_PI[[#This Row],[List 2]],Table_PI[[#This Row],[List 3]],Table_PI[[#This Row],[Size]],Table_PI[[#This Row],[Input 1]],Table_PI[[#This Row],[Input 2]],Table_PI[[#This Row],[Input 3]],Table_PI[[#This Row],[Input 4]],'Customer Information'!$AR$12,8,ROW()),\"No Rebate\"),\"No Rebate\"),0)","v":0},{"$f":"IF(Table_PI[[#This Row],[Hide:\nFormula Name]]<>\"\",IF(AND(Table_PI[[#This Row],[Hide:\nFormula Name]]<>\"\",OR(Table_PI[[#This Row],[Rebate]]>0,Table_PI[[#This Row],[Rebate]]=\"No Rebate\")),TRUE,\"MI: Line Item \" & $A334),\"\")","v":""}]
[{"$f":"IF(Table_PI[[#This Row],[Hide:\nFormula Name]]<>\"\",MAX($A$2:A334)+1,\"\")","v":""},null,null,null,null,null,null,null,null,null,null,null,null,null,null,{"$f":"IFERROR(VLOOKUP(Table_PI[[#This Row],[Measure]],'Equipment Lookups'!$C$3:$D$23,2,FALSE),\"\")","v":""},{"$f":"IF(Table_PI[[#This Row],[Hide:\nFormula Name]]<>\"\",IFERROR(IF(MeasureCalc(Table_PI[[#This Row],[Hide:\nFormula Name]],Table_PI[[#This Row],[Quantity]],Table_PI[[#This Row],[List 1]],Table_PI[[#This Row],[List 2]],Table_PI[[#This Row],[List 3]],Table_PI[[#This Row],[Size]],Table_PI[[#This Row],[Input 1]],Table_PI[[#This Row],[Input 2]],Table_PI[[#This Row],[Input 3]],Table_PI[[#This Row],[Input 4]],'Customer Information'!$AR$12,1,ROW())>0,MeasureCalc(Table_PI[[#This Row],[Hide:\nFormula Name]],Table_PI[[#This Row],[Quantity]],Table_PI[[#This Row],[List 1]],Table_PI[[#This Row],[List 2]],Table_PI[[#This Row],[List 3]],Table_PI[[#This Row],[Size]],Table_PI[[#This Row],[Input 1]],Table_PI[[#This Row],[Input 2]],Table_PI[[#This Row],[Input 3]],Table_PI[[#This Row],[Input 4]],'Customer Information'!$AR$12,1,ROW()),\"No Rebate\"),\"No Rebate\"),0)","v":0},{"$f":"IF(Table_PI[[#This Row],[Hide:\nFormula Name]]<>\"\",IFERROR(IF(MeasureCalc(Table_PI[[#This Row],[Hide:\nFormula Name]],Table_PI[[#This Row],[Quantity]],Table_PI[[#This Row],[List 1]],Table_PI[[#This Row],[List 2]],Table_PI[[#This Row],[List 3]],Table_PI[[#This Row],[Size]],Table_PI[[#This Row],[Input 1]],Table_PI[[#This Row],[Input 2]],Table_PI[[#This Row],[Input 3]],Table_PI[[#This Row],[Input 4]],'Customer Information'!$AR$12,1,ROW())>0,MeasureCalc(Table_PI[[#This Row],[Hide:\nFormula Name]],Table_PI[[#This Row],[Quantity]],Table_PI[[#This Row],[List 1]],Table_PI[[#This Row],[List 2]],Table_PI[[#This Row],[List 3]],Table_PI[[#This Row],[Size]],Table_PI[[#This Row],[Input 1]],Table_PI[[#This Row],[Input 2]],Table_PI[[#This Row],[Input 3]],Table_PI[[#This Row],[Input 4]],'Customer Information'!$AR$12,2,ROW()),\"No Rebate\"),\"No Rebate\"),0)","v":0},{"$f":"IF(Table_PI[[#This Row],[Hide:\nFormula Name]]<>\"\",IFERROR(IF(MeasureCalc(Table_PI[[#This Row],[Hide:\nFormula Name]],Table_PI[[#This Row],[Quantity]],Table_PI[[#This Row],[List 1]],Table_PI[[#This Row],[List 2]],Table_PI[[#This Row],[List 3]],Table_PI[[#This Row],[Size]],Table_PI[[#This Row],[Input 1]],Table_PI[[#This Row],[Input 2]],Table_PI[[#This Row],[Input 3]],Table_PI[[#This Row],[Input 4]],'Customer Information'!$AR$12,1,ROW())>0,MeasureCalc(Table_PI[[#This Row],[Hide:\nFormula Name]],Table_PI[[#This Row],[Quantity]],Table_PI[[#This Row],[List 1]],Table_PI[[#This Row],[List 2]],Table_PI[[#This Row],[List 3]],Table_PI[[#This Row],[Size]],Table_PI[[#This Row],[Input 1]],Table_PI[[#This Row],[Input 2]],Table_PI[[#This Row],[Input 3]],Table_PI[[#This Row],[Input 4]],'Customer Information'!$AR$12,3,ROW()),\"No Rebate\"),\"No Rebate\"),0)","v":0},{"$f":"IF(Table_PI[[#This Row],[Hide:\nFormula Name]]<>\"\",IFERROR(IF(MeasureCalc(Table_PI[[#This Row],[Hide:\nFormula Name]],Table_PI[[#This Row],[Quantity]],Table_PI[[#This Row],[List 1]],Table_PI[[#This Row],[List 2]],Table_PI[[#This Row],[List 3]],Table_PI[[#This Row],[Size]],Table_PI[[#This Row],[Input 1]],Table_PI[[#This Row],[Input 2]],Table_PI[[#This Row],[Input 3]],Table_PI[[#This Row],[Input 4]],'Customer Information'!$AR$12,1,ROW())>0,MeasureCalc(Table_PI[[#This Row],[Hide:\nFormula Name]],Table_PI[[#This Row],[Quantity]],Table_PI[[#This Row],[List 1]],Table_PI[[#This Row],[List 2]],Table_PI[[#This Row],[List 3]],Table_PI[[#This Row],[Size]],Table_PI[[#This Row],[Input 1]],Table_PI[[#This Row],[Input 2]],Table_PI[[#This Row],[Input 3]],Table_PI[[#This Row],[Input 4]],'Customer Information'!$AR$12,4,ROW()),\"No Rebate\"),\"No Rebate\"),0)","v":0},{"$f":"IF(Table_PI[[#This Row],[Hide:\nFormula Name]]<>\"\",IFERROR(IF(MeasureCalc(Table_PI[[#This Row],[Hide:\nFormula Name]],Table_PI[[#This Row],[Quantity]],Table_PI[[#This Row],[List 1]],Table_PI[[#This Row],[List 2]],Table_PI[[#This Row],[List 3]],Table_PI[[#This Row],[Size]],Table_PI[[#This Row],[Input 1]],Table_PI[[#This Row],[Input 2]],Table_PI[[#This Row],[Input 3]],Table_PI[[#This Row],[Input 4]],'Customer Information'!$AR$12,1,ROW())>0,MeasureCalc(Table_PI[[#This Row],[Hide:\nFormula Name]],Table_PI[[#This Row],[Quantity]],Table_PI[[#This Row],[List 1]],Table_PI[[#This Row],[List 2]],Table_PI[[#This Row],[List 3]],Table_PI[[#This Row],[Size]],Table_PI[[#This Row],[Input 1]],Table_PI[[#This Row],[Input 2]],Table_PI[[#This Row],[Input 3]],Table_PI[[#This Row],[Input 4]],'Customer Information'!$AR$12,5,ROW()),\"No Rebate\"),\"No Rebate\"),0)","v":0},{"$f":"IF(Table_PI[[#This Row],[Hide:\nFormula Name]]<>\"\",IFERROR(IF(MeasureCalc(Table_PI[[#This Row],[Hide:\nFormula Name]],Table_PI[[#This Row],[Quantity]],Table_PI[[#This Row],[List 1]],Table_PI[[#This Row],[List 2]],Table_PI[[#This Row],[List 3]],Table_PI[[#This Row],[Size]],Table_PI[[#This Row],[Input 1]],Table_PI[[#This Row],[Input 2]],Table_PI[[#This Row],[Input 3]],Table_PI[[#This Row],[Input 4]],'Customer Information'!$AR$12,1,ROW())>0,MeasureCalc(Table_PI[[#This Row],[Hide:\nFormula Name]],Table_PI[[#This Row],[Quantity]],Table_PI[[#This Row],[List 1]],Table_PI[[#This Row],[List 2]],Table_PI[[#This Row],[List 3]],Table_PI[[#This Row],[Size]],Table_PI[[#This Row],[Input 1]],Table_PI[[#This Row],[Input 2]],Table_PI[[#This Row],[Input 3]],Table_PI[[#This Row],[Input 4]],'Customer Information'!$AR$12,6,ROW()),\"No Rebate\"),\"No Rebate\"),0)","v":0},{"$f":"IF(Table_PI[[#This Row],[Hide:\nFormula Name]]<>\"\",IFERROR(IF(MeasureCalc(Table_PI[[#This Row],[Hide:\nFormula Name]],Table_PI[[#This Row],[Quantity]],Table_PI[[#This Row],[List 1]],Table_PI[[#This Row],[List 2]],Table_PI[[#This Row],[List 3]],Table_PI[[#This Row],[Size]],Table_PI[[#This Row],[Input 1]],Table_PI[[#This Row],[Input 2]],Table_PI[[#This Row],[Input 3]],Table_PI[[#This Row],[Input 4]],'Customer Information'!$AR$12,1,ROW())>0,MeasureCalc(Table_PI[[#This Row],[Hide:\nFormula Name]],Table_PI[[#This Row],[Quantity]],Table_PI[[#This Row],[List 1]],Table_PI[[#This Row],[List 2]],Table_PI[[#This Row],[List 3]],Table_PI[[#This Row],[Size]],Table_PI[[#This Row],[Input 1]],Table_PI[[#This Row],[Input 2]],Table_PI[[#This Row],[Input 3]],Table_PI[[#This Row],[Input 4]],'Customer Information'!$AR$12,7,ROW()),\"No Rebate\"),\"No Rebate\"),0)","v":0},{"$f":"IF(Table_PI[[#This Row],[Hide:\nFormula Name]]<>\"\",IFERROR(IF(MeasureCalc(Table_PI[[#This Row],[Hide:\nFormula Name]],Table_PI[[#This Row],[Quantity]],Table_PI[[#This Row],[List 1]],Table_PI[[#This Row],[List 2]],Table_PI[[#This Row],[List 3]],Table_PI[[#This Row],[Size]],Table_PI[[#This Row],[Input 1]],Table_PI[[#This Row],[Input 2]],Table_PI[[#This Row],[Input 3]],Table_PI[[#This Row],[Input 4]],'Customer Information'!$AR$12,1,ROW())>0,MeasureCalc(Table_PI[[#This Row],[Hide:\nFormula Name]],Table_PI[[#This Row],[Quantity]],Table_PI[[#This Row],[List 1]],Table_PI[[#This Row],[List 2]],Table_PI[[#This Row],[List 3]],Table_PI[[#This Row],[Size]],Table_PI[[#This Row],[Input 1]],Table_PI[[#This Row],[Input 2]],Table_PI[[#This Row],[Input 3]],Table_PI[[#This Row],[Input 4]],'Customer Information'!$AR$12,8,ROW()),\"No Rebate\"),\"No Rebate\"),0)","v":0},{"$f":"IF(Table_PI[[#This Row],[Hide:\nFormula Name]]<>\"\",IF(AND(Table_PI[[#This Row],[Hide:\nFormula Name]]<>\"\",OR(Table_PI[[#This Row],[Rebate]]>0,Table_PI[[#This Row],[Rebate]]=\"No Rebate\")),TRUE,\"MI: Line Item \" & $A335),\"\")","v":""}]
[{"$f":"IF(Table_PI[[#This Row],[Hide:\nFormula Name]]<>\"\",MAX($A$2:A335)+1,\"\")","v":""},null,null,null,null,null,null,null,null,null,null,null,null,null,null,{"$f":"IFERROR(VLOOKUP(Table_PI[[#This Row],[Measure]],'Equipment Lookups'!$C$3:$D$23,2,FALSE),\"\")","v":""},{"$f":"IF(Table_PI[[#This Row],[Hide:\nFormula Name]]<>\"\",IFERROR(IF(MeasureCalc(Table_PI[[#This Row],[Hide:\nFormula Name]],Table_PI[[#This Row],[Quantity]],Table_PI[[#This Row],[List 1]],Table_PI[[#This Row],[List 2]],Table_PI[[#This Row],[List 3]],Table_PI[[#This Row],[Size]],Table_PI[[#This Row],[Input 1]],Table_PI[[#This Row],[Input 2]],Table_PI[[#This Row],[Input 3]],Table_PI[[#This Row],[Input 4]],'Customer Information'!$AR$12,1,ROW())>0,MeasureCalc(Table_PI[[#This Row],[Hide:\nFormula Name]],Table_PI[[#This Row],[Quantity]],Table_PI[[#This Row],[List 1]],Table_PI[[#This Row],[List 2]],Table_PI[[#This Row],[List 3]],Table_PI[[#This Row],[Size]],Table_PI[[#This Row],[Input 1]],Table_PI[[#This Row],[Input 2]],Table_PI[[#This Row],[Input 3]],Table_PI[[#This Row],[Input 4]],'Customer Information'!$AR$12,1,ROW()),\"No Rebate\"),\"No Rebate\"),0)","v":0},{"$f":"IF(Table_PI[[#This Row],[Hide:\nFormula Name]]<>\"\",IFERROR(IF(MeasureCalc(Table_PI[[#This Row],[Hide:\nFormula Name]],Table_PI[[#This Row],[Quantity]],Table_PI[[#This Row],[List 1]],Table_PI[[#This Row],[List 2]],Table_PI[[#This Row],[List 3]],Table_PI[[#This Row],[Size]],Table_PI[[#This Row],[Input 1]],Table_PI[[#This Row],[Input 2]],Table_PI[[#This Row],[Input 3]],Table_PI[[#This Row],[Input 4]],'Customer Information'!$AR$12,1,ROW())>0,MeasureCalc(Table_PI[[#This Row],[Hide:\nFormula Name]],Table_PI[[#This Row],[Quantity]],Table_PI[[#This Row],[List 1]],Table_PI[[#This Row],[List 2]],Table_PI[[#This Row],[List 3]],Table_PI[[#This Row],[Size]],Table_PI[[#This Row],[Input 1]],Table_PI[[#This Row],[Input 2]],Table_PI[[#This Row],[Input 3]],Table_PI[[#This Row],[Input 4]],'Customer Information'!$AR$12,2,ROW()),\"No Rebate\"),\"No Rebate\"),0)","v":0},{"$f":"IF(Table_PI[[#This Row],[Hide:\nFormula Name]]<>\"\",IFERROR(IF(MeasureCalc(Table_PI[[#This Row],[Hide:\nFormula Name]],Table_PI[[#This Row],[Quantity]],Table_PI[[#This Row],[List 1]],Table_PI[[#This Row],[List 2]],Table_PI[[#This Row],[List 3]],Table_PI[[#This Row],[Size]],Table_PI[[#This Row],[Input 1]],Table_PI[[#This Row],[Input 2]],Table_PI[[#This Row],[Input 3]],Table_PI[[#This Row],[Input 4]],'Customer Information'!$AR$12,1,ROW())>0,MeasureCalc(Table_PI[[#This Row],[Hide:\nFormula Name]],Table_PI[[#This Row],[Quantity]],Table_PI[[#This Row],[List 1]],Table_PI[[#This Row],[List 2]],Table_PI[[#This Row],[List 3]],Table_PI[[#This Row],[Size]],Table_PI[[#This Row],[Input 1]],Table_PI[[#This Row],[Input 2]],Table_PI[[#This Row],[Input 3]],Table_PI[[#This Row],[Input 4]],'Customer Information'!$AR$12,3,ROW()),\"No Rebate\"),\"No Rebate\"),0)","v":0},{"$f":"IF(Table_PI[[#This Row],[Hide:\nFormula Name]]<>\"\",IFERROR(IF(MeasureCalc(Table_PI[[#This Row],[Hide:\nFormula Name]],Table_PI[[#This Row],[Quantity]],Table_PI[[#This Row],[List 1]],Table_PI[[#This Row],[List 2]],Table_PI[[#This Row],[List 3]],Table_PI[[#This Row],[Size]],Table_PI[[#This Row],[Input 1]],Table_PI[[#This Row],[Input 2]],Table_PI[[#This Row],[Input 3]],Table_PI[[#This Row],[Input 4]],'Customer Information'!$AR$12,1,ROW())>0,MeasureCalc(Table_PI[[#This Row],[Hide:\nFormula Name]],Table_PI[[#This Row],[Quantity]],Table_PI[[#This Row],[List 1]],Table_PI[[#This Row],[List 2]],Table_PI[[#This Row],[List 3]],Table_PI[[#This Row],[Size]],Table_PI[[#This Row],[Input 1]],Table_PI[[#This Row],[Input 2]],Table_PI[[#This Row],[Input 3]],Table_PI[[#This Row],[Input 4]],'Customer Information'!$AR$12,4,ROW()),\"No Rebate\"),\"No Rebate\"),0)","v":0},{"$f":"IF(Table_PI[[#This Row],[Hide:\nFormula Name]]<>\"\",IFERROR(IF(MeasureCalc(Table_PI[[#This Row],[Hide:\nFormula Name]],Table_PI[[#This Row],[Quantity]],Table_PI[[#This Row],[List 1]],Table_PI[[#This Row],[List 2]],Table_PI[[#This Row],[List 3]],Table_PI[[#This Row],[Size]],Table_PI[[#This Row],[Input 1]],Table_PI[[#This Row],[Input 2]],Table_PI[[#This Row],[Input 3]],Table_PI[[#This Row],[Input 4]],'Customer Information'!$AR$12,1,ROW())>0,MeasureCalc(Table_PI[[#This Row],[Hide:\nFormula Name]],Table_PI[[#This Row],[Quantity]],Table_PI[[#This Row],[List 1]],Table_PI[[#This Row],[List 2]],Table_PI[[#This Row],[List 3]],Table_PI[[#This Row],[Size]],Table_PI[[#This Row],[Input 1]],Table_PI[[#This Row],[Input 2]],Table_PI[[#This Row],[Input 3]],Table_PI[[#This Row],[Input 4]],'Customer Information'!$AR$12,5,ROW()),\"No Rebate\"),\"No Rebate\"),0)","v":0},{"$f":"IF(Table_PI[[#This Row],[Hide:\nFormula Name]]<>\"\",IFERROR(IF(MeasureCalc(Table_PI[[#This Row],[Hide:\nFormula Name]],Table_PI[[#This Row],[Quantity]],Table_PI[[#This Row],[List 1]],Table_PI[[#This Row],[List 2]],Table_PI[[#This Row],[List 3]],Table_PI[[#This Row],[Size]],Table_PI[[#This Row],[Input 1]],Table_PI[[#This Row],[Input 2]],Table_PI[[#This Row],[Input 3]],Table_PI[[#This Row],[Input 4]],'Customer Information'!$AR$12,1,ROW())>0,MeasureCalc(Table_PI[[#This Row],[Hide:\nFormula Name]],Table_PI[[#This Row],[Quantity]],Table_PI[[#This Row],[List 1]],Table_PI[[#This Row],[List 2]],Table_PI[[#This Row],[List 3]],Table_PI[[#This Row],[Size]],Table_PI[[#This Row],[Input 1]],Table_PI[[#This Row],[Input 2]],Table_PI[[#This Row],[Input 3]],Table_PI[[#This Row],[Input 4]],'Customer Information'!$AR$12,6,ROW()),\"No Rebate\"),\"No Rebate\"),0)","v":0},{"$f":"IF(Table_PI[[#This Row],[Hide:\nFormula Name]]<>\"\",IFERROR(IF(MeasureCalc(Table_PI[[#This Row],[Hide:\nFormula Name]],Table_PI[[#This Row],[Quantity]],Table_PI[[#This Row],[List 1]],Table_PI[[#This Row],[List 2]],Table_PI[[#This Row],[List 3]],Table_PI[[#This Row],[Size]],Table_PI[[#This Row],[Input 1]],Table_PI[[#This Row],[Input 2]],Table_PI[[#This Row],[Input 3]],Table_PI[[#This Row],[Input 4]],'Customer Information'!$AR$12,1,ROW())>0,MeasureCalc(Table_PI[[#This Row],[Hide:\nFormula Name]],Table_PI[[#This Row],[Quantity]],Table_PI[[#This Row],[List 1]],Table_PI[[#This Row],[List 2]],Table_PI[[#This Row],[List 3]],Table_PI[[#This Row],[Size]],Table_PI[[#This Row],[Input 1]],Table_PI[[#This Row],[Input 2]],Table_PI[[#This Row],[Input 3]],Table_PI[[#This Row],[Input 4]],'Customer Information'!$AR$12,7,ROW()),\"No Rebate\"),\"No Rebate\"),0)","v":0},{"$f":"IF(Table_PI[[#This Row],[Hide:\nFormula Name]]<>\"\",IFERROR(IF(MeasureCalc(Table_PI[[#This Row],[Hide:\nFormula Name]],Table_PI[[#This Row],[Quantity]],Table_PI[[#This Row],[List 1]],Table_PI[[#This Row],[List 2]],Table_PI[[#This Row],[List 3]],Table_PI[[#This Row],[Size]],Table_PI[[#This Row],[Input 1]],Table_PI[[#This Row],[Input 2]],Table_PI[[#This Row],[Input 3]],Table_PI[[#This Row],[Input 4]],'Customer Information'!$AR$12,1,ROW())>0,MeasureCalc(Table_PI[[#This Row],[Hide:\nFormula Name]],Table_PI[[#This Row],[Quantity]],Table_PI[[#This Row],[List 1]],Table_PI[[#This Row],[List 2]],Table_PI[[#This Row],[List 3]],Table_PI[[#This Row],[Size]],Table_PI[[#This Row],[Input 1]],Table_PI[[#This Row],[Input 2]],Table_PI[[#This Row],[Input 3]],Table_PI[[#This Row],[Input 4]],'Customer Information'!$AR$12,8,ROW()),\"No Rebate\"),\"No Rebate\"),0)","v":0},{"$f":"IF(Table_PI[[#This Row],[Hide:\nFormula Name]]<>\"\",IF(AND(Table_PI[[#This Row],[Hide:\nFormula Name]]<>\"\",OR(Table_PI[[#This Row],[Rebate]]>0,Table_PI[[#This Row],[Rebate]]=\"No Rebate\")),TRUE,\"MI: Line Item \" & $A336),\"\")","v":""}]
[{"$f":"IF(Table_PI[[#This Row],[Hide:\nFormula Name]]<>\"\",MAX($A$2:A336)+1,\"\")","v":""},null,null,null,null,null,null,null,null,null,null,null,null,null,null,{"$f":"IFERROR(VLOOKUP(Table_PI[[#This Row],[Measure]],'Equipment Lookups'!$C$3:$D$23,2,FALSE),\"\")","v":""},{"$f":"IF(Table_PI[[#This Row],[Hide:\nFormula Name]]<>\"\",IFERROR(IF(MeasureCalc(Table_PI[[#This Row],[Hide:\nFormula Name]],Table_PI[[#This Row],[Quantity]],Table_PI[[#This Row],[List 1]],Table_PI[[#This Row],[List 2]],Table_PI[[#This Row],[List 3]],Table_PI[[#This Row],[Size]],Table_PI[[#This Row],[Input 1]],Table_PI[[#This Row],[Input 2]],Table_PI[[#This Row],[Input 3]],Table_PI[[#This Row],[Input 4]],'Customer Information'!$AR$12,1,ROW())>0,MeasureCalc(Table_PI[[#This Row],[Hide:\nFormula Name]],Table_PI[[#This Row],[Quantity]],Table_PI[[#This Row],[List 1]],Table_PI[[#This Row],[List 2]],Table_PI[[#This Row],[List 3]],Table_PI[[#This Row],[Size]],Table_PI[[#This Row],[Input 1]],Table_PI[[#This Row],[Input 2]],Table_PI[[#This Row],[Input 3]],Table_PI[[#This Row],[Input 4]],'Customer Information'!$AR$12,1,ROW()),\"No Rebate\"),\"No Rebate\"),0)","v":0},{"$f":"IF(Table_PI[[#This Row],[Hide:\nFormula Name]]<>\"\",IFERROR(IF(MeasureCalc(Table_PI[[#This Row],[Hide:\nFormula Name]],Table_PI[[#This Row],[Quantity]],Table_PI[[#This Row],[List 1]],Table_PI[[#This Row],[List 2]],Table_PI[[#This Row],[List 3]],Table_PI[[#This Row],[Size]],Table_PI[[#This Row],[Input 1]],Table_PI[[#This Row],[Input 2]],Table_PI[[#This Row],[Input 3]],Table_PI[[#This Row],[Input 4]],'Customer Information'!$AR$12,1,ROW())>0,MeasureCalc(Table_PI[[#This Row],[Hide:\nFormula Name]],Table_PI[[#This Row],[Quantity]],Table_PI[[#This Row],[List 1]],Table_PI[[#This Row],[List 2]],Table_PI[[#This Row],[List 3]],Table_PI[[#This Row],[Size]],Table_PI[[#This Row],[Input 1]],Table_PI[[#This Row],[Input 2]],Table_PI[[#This Row],[Input 3]],Table_PI[[#This Row],[Input 4]],'Customer Information'!$AR$12,2,ROW()),\"No Rebate\"),\"No Rebate\"),0)","v":0},{"$f":"IF(Table_PI[[#This Row],[Hide:\nFormula Name]]<>\"\",IFERROR(IF(MeasureCalc(Table_PI[[#This Row],[Hide:\nFormula Name]],Table_PI[[#This Row],[Quantity]],Table_PI[[#This Row],[List 1]],Table_PI[[#This Row],[List 2]],Table_PI[[#This Row],[List 3]],Table_PI[[#This Row],[Size]],Table_PI[[#This Row],[Input 1]],Table_PI[[#This Row],[Input 2]],Table_PI[[#This Row],[Input 3]],Table_PI[[#This Row],[Input 4]],'Customer Information'!$AR$12,1,ROW())>0,MeasureCalc(Table_PI[[#This Row],[Hide:\nFormula Name]],Table_PI[[#This Row],[Quantity]],Table_PI[[#This Row],[List 1]],Table_PI[[#This Row],[List 2]],Table_PI[[#This Row],[List 3]],Table_PI[[#This Row],[Size]],Table_PI[[#This Row],[Input 1]],Table_PI[[#This Row],[Input 2]],Table_PI[[#This Row],[Input 3]],Table_PI[[#This Row],[Input 4]],'Customer Information'!$AR$12,3,ROW()),\"No Rebate\"),\"No Rebate\"),0)","v":0},{"$f":"IF(Table_PI[[#This Row],[Hide:\nFormula Name]]<>\"\",IFERROR(IF(MeasureCalc(Table_PI[[#This Row],[Hide:\nFormula Name]],Table_PI[[#This Row],[Quantity]],Table_PI[[#This Row],[List 1]],Table_PI[[#This Row],[List 2]],Table_PI[[#This Row],[List 3]],Table_PI[[#This Row],[Size]],Table_PI[[#This Row],[Input 1]],Table_PI[[#This Row],[Input 2]],Table_PI[[#This Row],[Input 3]],Table_PI[[#This Row],[Input 4]],'Customer Information'!$AR$12,1,ROW())>0,MeasureCalc(Table_PI[[#This Row],[Hide:\nFormula Name]],Table_PI[[#This Row],[Quantity]],Table_PI[[#This Row],[List 1]],Table_PI[[#This Row],[List 2]],Table_PI[[#This Row],[List 3]],Table_PI[[#This Row],[Size]],Table_PI[[#This Row],[Input 1]],Table_PI[[#This Row],[Input 2]],Table_PI[[#This Row],[Input 3]],Table_PI[[#This Row],[Input 4]],'Customer Information'!$AR$12,4,ROW()),\"No Rebate\"),\"No Rebate\"),0)","v":0},{"$f":"IF(Table_PI[[#This Row],[Hide:\nFormula Name]]<>\"\",IFERROR(IF(MeasureCalc(Table_PI[[#This Row],[Hide:\nFormula Name]],Table_PI[[#This Row],[Quantity]],Table_PI[[#This Row],[List 1]],Table_PI[[#This Row],[List 2]],Table_PI[[#This Row],[List 3]],Table_PI[[#This Row],[Size]],Table_PI[[#This Row],[Input 1]],Table_PI[[#This Row],[Input 2]],Table_PI[[#This Row],[Input 3]],Table_PI[[#This Row],[Input 4]],'Customer Information'!$AR$12,1,ROW())>0,MeasureCalc(Table_PI[[#This Row],[Hide:\nFormula Name]],Table_PI[[#This Row],[Quantity]],Table_PI[[#This Row],[List 1]],Table_PI[[#This Row],[List 2]],Table_PI[[#This Row],[List 3]],Table_PI[[#This Row],[Size]],Table_PI[[#This Row],[Input 1]],Table_PI[[#This Row],[Input 2]],Table_PI[[#This Row],[Input 3]],Table_PI[[#This Row],[Input 4]],'Customer Information'!$AR$12,5,ROW()),\"No Rebate\"),\"No Rebate\"),0)","v":0},{"$f":"IF(Table_PI[[#This Row],[Hide:\nFormula Name]]<>\"\",IFERROR(IF(MeasureCalc(Table_PI[[#This Row],[Hide:\nFormula Name]],Table_PI[[#This Row],[Quantity]],Table_PI[[#This Row],[List 1]],Table_PI[[#This Row],[List 2]],Table_PI[[#This Row],[List 3]],Table_PI[[#This Row],[Size]],Table_PI[[#This Row],[Input 1]],Table_PI[[#This Row],[Input 2]],Table_PI[[#This Row],[Input 3]],Table_PI[[#This Row],[Input 4]],'Customer Information'!$AR$12,1,ROW())>0,MeasureCalc(Table_PI[[#This Row],[Hide:\nFormula Name]],Table_PI[[#This Row],[Quantity]],Table_PI[[#This Row],[List 1]],Table_PI[[#This Row],[List 2]],Table_PI[[#This Row],[List 3]],Table_PI[[#This Row],[Size]],Table_PI[[#This Row],[Input 1]],Table_PI[[#This Row],[Input 2]],Table_PI[[#This Row],[Input 3]],Table_PI[[#This Row],[Input 4]],'Customer Information'!$AR$12,6,ROW()),\"No Rebate\"),\"No Rebate\"),0)","v":0},{"$f":"IF(Table_PI[[#This Row],[Hide:\nFormula Name]]<>\"\",IFERROR(IF(MeasureCalc(Table_PI[[#This Row],[Hide:\nFormula Name]],Table_PI[[#This Row],[Quantity]],Table_PI[[#This Row],[List 1]],Table_PI[[#This Row],[List 2]],Table_PI[[#This Row],[List 3]],Table_PI[[#This Row],[Size]],Table_PI[[#This Row],[Input 1]],Table_PI[[#This Row],[Input 2]],Table_PI[[#This Row],[Input 3]],Table_PI[[#This Row],[Input 4]],'Customer Information'!$AR$12,1,ROW())>0,MeasureCalc(Table_PI[[#This Row],[Hide:\nFormula Name]],Table_PI[[#This Row],[Quantity]],Table_PI[[#This Row],[List 1]],Table_PI[[#This Row],[List 2]],Table_PI[[#This Row],[List 3]],Table_PI[[#This Row],[Size]],Table_PI[[#This Row],[Input 1]],Table_PI[[#This Row],[Input 2]],Table_PI[[#This Row],[Input 3]],Table_PI[[#This Row],[Input 4]],'Customer Information'!$AR$12,7,ROW()),\"No Rebate\"),\"No Rebate\"),0)","v":0},{"$f":"IF(Table_PI[[#This Row],[Hide:\nFormula Name]]<>\"\",IFERROR(IF(MeasureCalc(Table_PI[[#This Row],[Hide:\nFormula Name]],Table_PI[[#This Row],[Quantity]],Table_PI[[#This Row],[List 1]],Table_PI[[#This Row],[List 2]],Table_PI[[#This Row],[List 3]],Table_PI[[#This Row],[Size]],Table_PI[[#This Row],[Input 1]],Table_PI[[#This Row],[Input 2]],Table_PI[[#This Row],[Input 3]],Table_PI[[#This Row],[Input 4]],'Customer Information'!$AR$12,1,ROW())>0,MeasureCalc(Table_PI[[#This Row],[Hide:\nFormula Name]],Table_PI[[#This Row],[Quantity]],Table_PI[[#This Row],[List 1]],Table_PI[[#This Row],[List 2]],Table_PI[[#This Row],[List 3]],Table_PI[[#This Row],[Size]],Table_PI[[#This Row],[Input 1]],Table_PI[[#This Row],[Input 2]],Table_PI[[#This Row],[Input 3]],Table_PI[[#This Row],[Input 4]],'Customer Information'!$AR$12,8,ROW()),\"No Rebate\"),\"No Rebate\"),0)","v":0},{"$f":"IF(Table_PI[[#This Row],[Hide:\nFormula Name]]<>\"\",IF(AND(Table_PI[[#This Row],[Hide:\nFormula Name]]<>\"\",OR(Table_PI[[#This Row],[Rebate]]>0,Table_PI[[#This Row],[Rebate]]=\"No Rebate\")),TRUE,\"MI: Line Item \" & $A337),\"\")","v":""}]
[{"$f":"IF(Table_PI[[#This Row],[Hide:\nFormula Name]]<>\"\",MAX($A$2:A337)+1,\"\")","v":""},null,null,null,null,null,null,null,null,null,null,null,null,null,null,{"$f":"IFERROR(VLOOKUP(Table_PI[[#This Row],[Measure]],'Equipment Lookups'!$C$3:$D$23,2,FALSE),\"\")","v":""},{"$f":"IF(Table_PI[[#This Row],[Hide:\nFormula Name]]<>\"\",IFERROR(IF(MeasureCalc(Table_PI[[#This Row],[Hide:\nFormula Name]],Table_PI[[#This Row],[Quantity]],Table_PI[[#This Row],[List 1]],Table_PI[[#This Row],[List 2]],Table_PI[[#This Row],[List 3]],Table_PI[[#This Row],[Size]],Table_PI[[#This Row],[Input 1]],Table_PI[[#This Row],[Input 2]],Table_PI[[#This Row],[Input 3]],Table_PI[[#This Row],[Input 4]],'Customer Information'!$AR$12,1,ROW())>0,MeasureCalc(Table_PI[[#This Row],[Hide:\nFormula Name]],Table_PI[[#This Row],[Quantity]],Table_PI[[#This Row],[List 1]],Table_PI[[#This Row],[List 2]],Table_PI[[#This Row],[List 3]],Table_PI[[#This Row],[Size]],Table_PI[[#This Row],[Input 1]],Table_PI[[#This Row],[Input 2]],Table_PI[[#This Row],[Input 3]],Table_PI[[#This Row],[Input 4]],'Customer Information'!$AR$12,1,ROW()),\"No Rebate\"),\"No Rebate\"),0)","v":0},{"$f":"IF(Table_PI[[#This Row],[Hide:\nFormula Name]]<>\"\",IFERROR(IF(MeasureCalc(Table_PI[[#This Row],[Hide:\nFormula Name]],Table_PI[[#This Row],[Quantity]],Table_PI[[#This Row],[List 1]],Table_PI[[#This Row],[List 2]],Table_PI[[#This Row],[List 3]],Table_PI[[#This Row],[Size]],Table_PI[[#This Row],[Input 1]],Table_PI[[#This Row],[Input 2]],Table_PI[[#This Row],[Input 3]],Table_PI[[#This Row],[Input 4]],'Customer Information'!$AR$12,1,ROW())>0,MeasureCalc(Table_PI[[#This Row],[Hide:\nFormula Name]],Table_PI[[#This Row],[Quantity]],Table_PI[[#This Row],[List 1]],Table_PI[[#This Row],[List 2]],Table_PI[[#This Row],[List 3]],Table_PI[[#This Row],[Size]],Table_PI[[#This Row],[Input 1]],Table_PI[[#This Row],[Input 2]],Table_PI[[#This Row],[Input 3]],Table_PI[[#This Row],[Input 4]],'Customer Information'!$AR$12,2,ROW()),\"No Rebate\"),\"No Rebate\"),0)","v":0},{"$f":"IF(Table_PI[[#This Row],[Hide:\nFormula Name]]<>\"\",IFERROR(IF(MeasureCalc(Table_PI[[#This Row],[Hide:\nFormula Name]],Table_PI[[#This Row],[Quantity]],Table_PI[[#This Row],[List 1]],Table_PI[[#This Row],[List 2]],Table_PI[[#This Row],[List 3]],Table_PI[[#This Row],[Size]],Table_PI[[#This Row],[Input 1]],Table_PI[[#This Row],[Input 2]],Table_PI[[#This Row],[Input 3]],Table_PI[[#This Row],[Input 4]],'Customer Information'!$AR$12,1,ROW())>0,MeasureCalc(Table_PI[[#This Row],[Hide:\nFormula Name]],Table_PI[[#This Row],[Quantity]],Table_PI[[#This Row],[List 1]],Table_PI[[#This Row],[List 2]],Table_PI[[#This Row],[List 3]],Table_PI[[#This Row],[Size]],Table_PI[[#This Row],[Input 1]],Table_PI[[#This Row],[Input 2]],Table_PI[[#This Row],[Input 3]],Table_PI[[#This Row],[Input 4]],'Customer Information'!$AR$12,3,ROW()),\"No Rebate\"),\"No Rebate\"),0)","v":0},{"$f":"IF(Table_PI[[#This Row],[Hide:\nFormula Name]]<>\"\",IFERROR(IF(MeasureCalc(Table_PI[[#This Row],[Hide:\nFormula Name]],Table_PI[[#This Row],[Quantity]],Table_PI[[#This Row],[List 1]],Table_PI[[#This Row],[List 2]],Table_PI[[#This Row],[List 3]],Table_PI[[#This Row],[Size]],Table_PI[[#This Row],[Input 1]],Table_PI[[#This Row],[Input 2]],Table_PI[[#This Row],[Input 3]],Table_PI[[#This Row],[Input 4]],'Customer Information'!$AR$12,1,ROW())>0,MeasureCalc(Table_PI[[#This Row],[Hide:\nFormula Name]],Table_PI[[#This Row],[Quantity]],Table_PI[[#This Row],[List 1]],Table_PI[[#This Row],[List 2]],Table_PI[[#This Row],[List 3]],Table_PI[[#This Row],[Size]],Table_PI[[#This Row],[Input 1]],Table_PI[[#This Row],[Input 2]],Table_PI[[#This Row],[Input 3]],Table_PI[[#This Row],[Input 4]],'Customer Information'!$AR$12,4,ROW()),\"No Rebate\"),\"No Rebate\"),0)","v":0},{"$f":"IF(Table_PI[[#This Row],[Hide:\nFormula Name]]<>\"\",IFERROR(IF(MeasureCalc(Table_PI[[#This Row],[Hide:\nFormula Name]],Table_PI[[#This Row],[Quantity]],Table_PI[[#This Row],[List 1]],Table_PI[[#This Row],[List 2]],Table_PI[[#This Row],[List 3]],Table_PI[[#This Row],[Size]],Table_PI[[#This Row],[Input 1]],Table_PI[[#This Row],[Input 2]],Table_PI[[#This Row],[Input 3]],Table_PI[[#This Row],[Input 4]],'Customer Information'!$AR$12,1,ROW())>0,MeasureCalc(Table_PI[[#This Row],[Hide:\nFormula Name]],Table_PI[[#This Row],[Quantity]],Table_PI[[#This Row],[List 1]],Table_PI[[#This Row],[List 2]],Table_PI[[#This Row],[List 3]],Table_PI[[#This Row],[Size]],Table_PI[[#This Row],[Input 1]],Table_PI[[#This Row],[Input 2]],Table_PI[[#This Row],[Input 3]],Table_PI[[#This Row],[Input 4]],'Customer Information'!$AR$12,5,ROW()),\"No Rebate\"),\"No Rebate\"),0)","v":0},{"$f":"IF(Table_PI[[#This Row],[Hide:\nFormula Name]]<>\"\",IFERROR(IF(MeasureCalc(Table_PI[[#This Row],[Hide:\nFormula Name]],Table_PI[[#This Row],[Quantity]],Table_PI[[#This Row],[List 1]],Table_PI[[#This Row],[List 2]],Table_PI[[#This Row],[List 3]],Table_PI[[#This Row],[Size]],Table_PI[[#This Row],[Input 1]],Table_PI[[#This Row],[Input 2]],Table_PI[[#This Row],[Input 3]],Table_PI[[#This Row],[Input 4]],'Customer Information'!$AR$12,1,ROW())>0,MeasureCalc(Table_PI[[#This Row],[Hide:\nFormula Name]],Table_PI[[#This Row],[Quantity]],Table_PI[[#This Row],[List 1]],Table_PI[[#This Row],[List 2]],Table_PI[[#This Row],[List 3]],Table_PI[[#This Row],[Size]],Table_PI[[#This Row],[Input 1]],Table_PI[[#This Row],[Input 2]],Table_PI[[#This Row],[Input 3]],Table_PI[[#This Row],[Input 4]],'Customer Information'!$AR$12,6,ROW()),\"No Rebate\"),\"No Rebate\"),0)","v":0},{"$f":"IF(Table_PI[[#This Row],[Hide:\nFormula Name]]<>\"\",IFERROR(IF(MeasureCalc(Table_PI[[#This Row],[Hide:\nFormula Name]],Table_PI[[#This Row],[Quantity]],Table_PI[[#This Row],[List 1]],Table_PI[[#This Row],[List 2]],Table_PI[[#This Row],[List 3]],Table_PI[[#This Row],[Size]],Table_PI[[#This Row],[Input 1]],Table_PI[[#This Row],[Input 2]],Table_PI[[#This Row],[Input 3]],Table_PI[[#This Row],[Input 4]],'Customer Information'!$AR$12,1,ROW())>0,MeasureCalc(Table_PI[[#This Row],[Hide:\nFormula Name]],Table_PI[[#This Row],[Quantity]],Table_PI[[#This Row],[List 1]],Table_PI[[#This Row],[List 2]],Table_PI[[#This Row],[List 3]],Table_PI[[#This Row],[Size]],Table_PI[[#This Row],[Input 1]],Table_PI[[#This Row],[Input 2]],Table_PI[[#This Row],[Input 3]],Table_PI[[#This Row],[Input 4]],'Customer Information'!$AR$12,7,ROW()),\"No Rebate\"),\"No Rebate\"),0)","v":0},{"$f":"IF(Table_PI[[#This Row],[Hide:\nFormula Name]]<>\"\",IFERROR(IF(MeasureCalc(Table_PI[[#This Row],[Hide:\nFormula Name]],Table_PI[[#This Row],[Quantity]],Table_PI[[#This Row],[List 1]],Table_PI[[#This Row],[List 2]],Table_PI[[#This Row],[List 3]],Table_PI[[#This Row],[Size]],Table_PI[[#This Row],[Input 1]],Table_PI[[#This Row],[Input 2]],Table_PI[[#This Row],[Input 3]],Table_PI[[#This Row],[Input 4]],'Customer Information'!$AR$12,1,ROW())>0,MeasureCalc(Table_PI[[#This Row],[Hide:\nFormula Name]],Table_PI[[#This Row],[Quantity]],Table_PI[[#This Row],[List 1]],Table_PI[[#This Row],[List 2]],Table_PI[[#This Row],[List 3]],Table_PI[[#This Row],[Size]],Table_PI[[#This Row],[Input 1]],Table_PI[[#This Row],[Input 2]],Table_PI[[#This Row],[Input 3]],Table_PI[[#This Row],[Input 4]],'Customer Information'!$AR$12,8,ROW()),\"No Rebate\"),\"No Rebate\"),0)","v":0},{"$f":"IF(Table_PI[[#This Row],[Hide:\nFormula Name]]<>\"\",IF(AND(Table_PI[[#This Row],[Hide:\nFormula Name]]<>\"\",OR(Table_PI[[#This Row],[Rebate]]>0,Table_PI[[#This Row],[Rebate]]=\"No Rebate\")),TRUE,\"MI: Line Item \" & $A338),\"\")","v":""}]
[{"$f":"IF(Table_PI[[#This Row],[Hide:\nFormula Name]]<>\"\",MAX($A$2:A338)+1,\"\")","v":""},null,null,null,null,null,null,null,null,null,null,null,null,null,null,{"$f":"IFERROR(VLOOKUP(Table_PI[[#This Row],[Measure]],'Equipment Lookups'!$C$3:$D$23,2,FALSE),\"\")","v":""},{"$f":"IF(Table_PI[[#This Row],[Hide:\nFormula Name]]<>\"\",IFERROR(IF(MeasureCalc(Table_PI[[#This Row],[Hide:\nFormula Name]],Table_PI[[#This Row],[Quantity]],Table_PI[[#This Row],[List 1]],Table_PI[[#This Row],[List 2]],Table_PI[[#This Row],[List 3]],Table_PI[[#This Row],[Size]],Table_PI[[#This Row],[Input 1]],Table_PI[[#This Row],[Input 2]],Table_PI[[#This Row],[Input 3]],Table_PI[[#This Row],[Input 4]],'Customer Information'!$AR$12,1,ROW())>0,MeasureCalc(Table_PI[[#This Row],[Hide:\nFormula Name]],Table_PI[[#This Row],[Quantity]],Table_PI[[#This Row],[List 1]],Table_PI[[#This Row],[List 2]],Table_PI[[#This Row],[List 3]],Table_PI[[#This Row],[Size]],Table_PI[[#This Row],[Input 1]],Table_PI[[#This Row],[Input 2]],Table_PI[[#This Row],[Input 3]],Table_PI[[#This Row],[Input 4]],'Customer Information'!$AR$12,1,ROW()),\"No Rebate\"),\"No Rebate\"),0)","v":0},{"$f":"IF(Table_PI[[#This Row],[Hide:\nFormula Name]]<>\"\",IFERROR(IF(MeasureCalc(Table_PI[[#This Row],[Hide:\nFormula Name]],Table_PI[[#This Row],[Quantity]],Table_PI[[#This Row],[List 1]],Table_PI[[#This Row],[List 2]],Table_PI[[#This Row],[List 3]],Table_PI[[#This Row],[Size]],Table_PI[[#This Row],[Input 1]],Table_PI[[#This Row],[Input 2]],Table_PI[[#This Row],[Input 3]],Table_PI[[#This Row],[Input 4]],'Customer Information'!$AR$12,1,ROW())>0,MeasureCalc(Table_PI[[#This Row],[Hide:\nFormula Name]],Table_PI[[#This Row],[Quantity]],Table_PI[[#This Row],[List 1]],Table_PI[[#This Row],[List 2]],Table_PI[[#This Row],[List 3]],Table_PI[[#This Row],[Size]],Table_PI[[#This Row],[Input 1]],Table_PI[[#This Row],[Input 2]],Table_PI[[#This Row],[Input 3]],Table_PI[[#This Row],[Input 4]],'Customer Information'!$AR$12,2,ROW()),\"No Rebate\"),\"No Rebate\"),0)","v":0},{"$f":"IF(Table_PI[[#This Row],[Hide:\nFormula Name]]<>\"\",IFERROR(IF(MeasureCalc(Table_PI[[#This Row],[Hide:\nFormula Name]],Table_PI[[#This Row],[Quantity]],Table_PI[[#This Row],[List 1]],Table_PI[[#This Row],[List 2]],Table_PI[[#This Row],[List 3]],Table_PI[[#This Row],[Size]],Table_PI[[#This Row],[Input 1]],Table_PI[[#This Row],[Input 2]],Table_PI[[#This Row],[Input 3]],Table_PI[[#This Row],[Input 4]],'Customer Information'!$AR$12,1,ROW())>0,MeasureCalc(Table_PI[[#This Row],[Hide:\nFormula Name]],Table_PI[[#This Row],[Quantity]],Table_PI[[#This Row],[List 1]],Table_PI[[#This Row],[List 2]],Table_PI[[#This Row],[List 3]],Table_PI[[#This Row],[Size]],Table_PI[[#This Row],[Input 1]],Table_PI[[#This Row],[Input 2]],Table_PI[[#This Row],[Input 3]],Table_PI[[#This Row],[Input 4]],'Customer Information'!$AR$12,3,ROW()),\"No Rebate\"),\"No Rebate\"),0)","v":0},{"$f":"IF(Table_PI[[#This Row],[Hide:\nFormula Name]]<>\"\",IFERROR(IF(MeasureCalc(Table_PI[[#This Row],[Hide:\nFormula Name]],Table_PI[[#This Row],[Quantity]],Table_PI[[#This Row],[List 1]],Table_PI[[#This Row],[List 2]],Table_PI[[#This Row],[List 3]],Table_PI[[#This Row],[Size]],Table_PI[[#This Row],[Input 1]],Table_PI[[#This Row],[Input 2]],Table_PI[[#This Row],[Input 3]],Table_PI[[#This Row],[Input 4]],'Customer Information'!$AR$12,1,ROW())>0,MeasureCalc(Table_PI[[#This Row],[Hide:\nFormula Name]],Table_PI[[#This Row],[Quantity]],Table_PI[[#This Row],[List 1]],Table_PI[[#This Row],[List 2]],Table_PI[[#This Row],[List 3]],Table_PI[[#This Row],[Size]],Table_PI[[#This Row],[Input 1]],Table_PI[[#This Row],[Input 2]],Table_PI[[#This Row],[Input 3]],Table_PI[[#This Row],[Input 4]],'Customer Information'!$AR$12,4,ROW()),\"No Rebate\"),\"No Rebate\"),0)","v":0},{"$f":"IF(Table_PI[[#This Row],[Hide:\nFormula Name]]<>\"\",IFERROR(IF(MeasureCalc(Table_PI[[#This Row],[Hide:\nFormula Name]],Table_PI[[#This Row],[Quantity]],Table_PI[[#This Row],[List 1]],Table_PI[[#This Row],[List 2]],Table_PI[[#This Row],[List 3]],Table_PI[[#This Row],[Size]],Table_PI[[#This Row],[Input 1]],Table_PI[[#This Row],[Input 2]],Table_PI[[#This Row],[Input 3]],Table_PI[[#This Row],[Input 4]],'Customer Information'!$AR$12,1,ROW())>0,MeasureCalc(Table_PI[[#This Row],[Hide:\nFormula Name]],Table_PI[[#This Row],[Quantity]],Table_PI[[#This Row],[List 1]],Table_PI[[#This Row],[List 2]],Table_PI[[#This Row],[List 3]],Table_PI[[#This Row],[Size]],Table_PI[[#This Row],[Input 1]],Table_PI[[#This Row],[Input 2]],Table_PI[[#This Row],[Input 3]],Table_PI[[#This Row],[Input 4]],'Customer Information'!$AR$12,5,ROW()),\"No Rebate\"),\"No Rebate\"),0)","v":0},{"$f":"IF(Table_PI[[#This Row],[Hide:\nFormula Name]]<>\"\",IFERROR(IF(MeasureCalc(Table_PI[[#This Row],[Hide:\nFormula Name]],Table_PI[[#This Row],[Quantity]],Table_PI[[#This Row],[List 1]],Table_PI[[#This Row],[List 2]],Table_PI[[#This Row],[List 3]],Table_PI[[#This Row],[Size]],Table_PI[[#This Row],[Input 1]],Table_PI[[#This Row],[Input 2]],Table_PI[[#This Row],[Input 3]],Table_PI[[#This Row],[Input 4]],'Customer Information'!$AR$12,1,ROW())>0,MeasureCalc(Table_PI[[#This Row],[Hide:\nFormula Name]],Table_PI[[#This Row],[Quantity]],Table_PI[[#This Row],[List 1]],Table_PI[[#This Row],[List 2]],Table_PI[[#This Row],[List 3]],Table_PI[[#This Row],[Size]],Table_PI[[#This Row],[Input 1]],Table_PI[[#This Row],[Input 2]],Table_PI[[#This Row],[Input 3]],Table_PI[[#This Row],[Input 4]],'Customer Information'!$AR$12,6,ROW()),\"No Rebate\"),\"No Rebate\"),0)","v":0},{"$f":"IF(Table_PI[[#This Row],[Hide:\nFormula Name]]<>\"\",IFERROR(IF(MeasureCalc(Table_PI[[#This Row],[Hide:\nFormula Name]],Table_PI[[#This Row],[Quantity]],Table_PI[[#This Row],[List 1]],Table_PI[[#This Row],[List 2]],Table_PI[[#This Row],[List 3]],Table_PI[[#This Row],[Size]],Table_PI[[#This Row],[Input 1]],Table_PI[[#This Row],[Input 2]],Table_PI[[#This Row],[Input 3]],Table_PI[[#This Row],[Input 4]],'Customer Information'!$AR$12,1,ROW())>0,MeasureCalc(Table_PI[[#This Row],[Hide:\nFormula Name]],Table_PI[[#This Row],[Quantity]],Table_PI[[#This Row],[List 1]],Table_PI[[#This Row],[List 2]],Table_PI[[#This Row],[List 3]],Table_PI[[#This Row],[Size]],Table_PI[[#This Row],[Input 1]],Table_PI[[#This Row],[Input 2]],Table_PI[[#This Row],[Input 3]],Table_PI[[#This Row],[Input 4]],'Customer Information'!$AR$12,7,ROW()),\"No Rebate\"),\"No Rebate\"),0)","v":0},{"$f":"IF(Table_PI[[#This Row],[Hide:\nFormula Name]]<>\"\",IFERROR(IF(MeasureCalc(Table_PI[[#This Row],[Hide:\nFormula Name]],Table_PI[[#This Row],[Quantity]],Table_PI[[#This Row],[List 1]],Table_PI[[#This Row],[List 2]],Table_PI[[#This Row],[List 3]],Table_PI[[#This Row],[Size]],Table_PI[[#This Row],[Input 1]],Table_PI[[#This Row],[Input 2]],Table_PI[[#This Row],[Input 3]],Table_PI[[#This Row],[Input 4]],'Customer Information'!$AR$12,1,ROW())>0,MeasureCalc(Table_PI[[#This Row],[Hide:\nFormula Name]],Table_PI[[#This Row],[Quantity]],Table_PI[[#This Row],[List 1]],Table_PI[[#This Row],[List 2]],Table_PI[[#This Row],[List 3]],Table_PI[[#This Row],[Size]],Table_PI[[#This Row],[Input 1]],Table_PI[[#This Row],[Input 2]],Table_PI[[#This Row],[Input 3]],Table_PI[[#This Row],[Input 4]],'Customer Information'!$AR$12,8,ROW()),\"No Rebate\"),\"No Rebate\"),0)","v":0},{"$f":"IF(Table_PI[[#This Row],[Hide:\nFormula Name]]<>\"\",IF(AND(Table_PI[[#This Row],[Hide:\nFormula Name]]<>\"\",OR(Table_PI[[#This Row],[Rebate]]>0,Table_PI[[#This Row],[Rebate]]=\"No Rebate\")),TRUE,\"MI: Line Item \" & $A339),\"\")","v":""}]
[{"$f":"IF(Table_PI[[#This Row],[Hide:\nFormula Name]]<>\"\",MAX($A$2:A339)+1,\"\")","v":""},null,null,null,null,null,null,null,null,null,null,null,null,null,null,{"$f":"IFERROR(VLOOKUP(Table_PI[[#This Row],[Measure]],'Equipment Lookups'!$C$3:$D$23,2,FALSE),\"\")","v":""},{"$f":"IF(Table_PI[[#This Row],[Hide:\nFormula Name]]<>\"\",IFERROR(IF(MeasureCalc(Table_PI[[#This Row],[Hide:\nFormula Name]],Table_PI[[#This Row],[Quantity]],Table_PI[[#This Row],[List 1]],Table_PI[[#This Row],[List 2]],Table_PI[[#This Row],[List 3]],Table_PI[[#This Row],[Size]],Table_PI[[#This Row],[Input 1]],Table_PI[[#This Row],[Input 2]],Table_PI[[#This Row],[Input 3]],Table_PI[[#This Row],[Input 4]],'Customer Information'!$AR$12,1,ROW())>0,MeasureCalc(Table_PI[[#This Row],[Hide:\nFormula Name]],Table_PI[[#This Row],[Quantity]],Table_PI[[#This Row],[List 1]],Table_PI[[#This Row],[List 2]],Table_PI[[#This Row],[List 3]],Table_PI[[#This Row],[Size]],Table_PI[[#This Row],[Input 1]],Table_PI[[#This Row],[Input 2]],Table_PI[[#This Row],[Input 3]],Table_PI[[#This Row],[Input 4]],'Customer Information'!$AR$12,1,ROW()),\"No Rebate\"),\"No Rebate\"),0)","v":0},{"$f":"IF(Table_PI[[#This Row],[Hide:\nFormula Name]]<>\"\",IFERROR(IF(MeasureCalc(Table_PI[[#This Row],[Hide:\nFormula Name]],Table_PI[[#This Row],[Quantity]],Table_PI[[#This Row],[List 1]],Table_PI[[#This Row],[List 2]],Table_PI[[#This Row],[List 3]],Table_PI[[#This Row],[Size]],Table_PI[[#This Row],[Input 1]],Table_PI[[#This Row],[Input 2]],Table_PI[[#This Row],[Input 3]],Table_PI[[#This Row],[Input 4]],'Customer Information'!$AR$12,1,ROW())>0,MeasureCalc(Table_PI[[#This Row],[Hide:\nFormula Name]],Table_PI[[#This Row],[Quantity]],Table_PI[[#This Row],[List 1]],Table_PI[[#This Row],[List 2]],Table_PI[[#This Row],[List 3]],Table_PI[[#This Row],[Size]],Table_PI[[#This Row],[Input 1]],Table_PI[[#This Row],[Input 2]],Table_PI[[#This Row],[Input 3]],Table_PI[[#This Row],[Input 4]],'Customer Information'!$AR$12,2,ROW()),\"No Rebate\"),\"No Rebate\"),0)","v":0},{"$f":"IF(Table_PI[[#This Row],[Hide:\nFormula Name]]<>\"\",IFERROR(IF(MeasureCalc(Table_PI[[#This Row],[Hide:\nFormula Name]],Table_PI[[#This Row],[Quantity]],Table_PI[[#This Row],[List 1]],Table_PI[[#This Row],[List 2]],Table_PI[[#This Row],[List 3]],Table_PI[[#This Row],[Size]],Table_PI[[#This Row],[Input 1]],Table_PI[[#This Row],[Input 2]],Table_PI[[#This Row],[Input 3]],Table_PI[[#This Row],[Input 4]],'Customer Information'!$AR$12,1,ROW())>0,MeasureCalc(Table_PI[[#This Row],[Hide:\nFormula Name]],Table_PI[[#This Row],[Quantity]],Table_PI[[#This Row],[List 1]],Table_PI[[#This Row],[List 2]],Table_PI[[#This Row],[List 3]],Table_PI[[#This Row],[Size]],Table_PI[[#This Row],[Input 1]],Table_PI[[#This Row],[Input 2]],Table_PI[[#This Row],[Input 3]],Table_PI[[#This Row],[Input 4]],'Customer Information'!$AR$12,3,ROW()),\"No Rebate\"),\"No Rebate\"),0)","v":0},{"$f":"IF(Table_PI[[#This Row],[Hide:\nFormula Name]]<>\"\",IFERROR(IF(MeasureCalc(Table_PI[[#This Row],[Hide:\nFormula Name]],Table_PI[[#This Row],[Quantity]],Table_PI[[#This Row],[List 1]],Table_PI[[#This Row],[List 2]],Table_PI[[#This Row],[List 3]],Table_PI[[#This Row],[Size]],Table_PI[[#This Row],[Input 1]],Table_PI[[#This Row],[Input 2]],Table_PI[[#This Row],[Input 3]],Table_PI[[#This Row],[Input 4]],'Customer Information'!$AR$12,1,ROW())>0,MeasureCalc(Table_PI[[#This Row],[Hide:\nFormula Name]],Table_PI[[#This Row],[Quantity]],Table_PI[[#This Row],[List 1]],Table_PI[[#This Row],[List 2]],Table_PI[[#This Row],[List 3]],Table_PI[[#This Row],[Size]],Table_PI[[#This Row],[Input 1]],Table_PI[[#This Row],[Input 2]],Table_PI[[#This Row],[Input 3]],Table_PI[[#This Row],[Input 4]],'Customer Information'!$AR$12,4,ROW()),\"No Rebate\"),\"No Rebate\"),0)","v":0},{"$f":"IF(Table_PI[[#This Row],[Hide:\nFormula Name]]<>\"\",IFERROR(IF(MeasureCalc(Table_PI[[#This Row],[Hide:\nFormula Name]],Table_PI[[#This Row],[Quantity]],Table_PI[[#This Row],[List 1]],Table_PI[[#This Row],[List 2]],Table_PI[[#This Row],[List 3]],Table_PI[[#This Row],[Size]],Table_PI[[#This Row],[Input 1]],Table_PI[[#This Row],[Input 2]],Table_PI[[#This Row],[Input 3]],Table_PI[[#This Row],[Input 4]],'Customer Information'!$AR$12,1,ROW())>0,MeasureCalc(Table_PI[[#This Row],[Hide:\nFormula Name]],Table_PI[[#This Row],[Quantity]],Table_PI[[#This Row],[List 1]],Table_PI[[#This Row],[List 2]],Table_PI[[#This Row],[List 3]],Table_PI[[#This Row],[Size]],Table_PI[[#This Row],[Input 1]],Table_PI[[#This Row],[Input 2]],Table_PI[[#This Row],[Input 3]],Table_PI[[#This Row],[Input 4]],'Customer Information'!$AR$12,5,ROW()),\"No Rebate\"),\"No Rebate\"),0)","v":0},{"$f":"IF(Table_PI[[#This Row],[Hide:\nFormula Name]]<>\"\",IFERROR(IF(MeasureCalc(Table_PI[[#This Row],[Hide:\nFormula Name]],Table_PI[[#This Row],[Quantity]],Table_PI[[#This Row],[List 1]],Table_PI[[#This Row],[List 2]],Table_PI[[#This Row],[List 3]],Table_PI[[#This Row],[Size]],Table_PI[[#This Row],[Input 1]],Table_PI[[#This Row],[Input 2]],Table_PI[[#This Row],[Input 3]],Table_PI[[#This Row],[Input 4]],'Customer Information'!$AR$12,1,ROW())>0,MeasureCalc(Table_PI[[#This Row],[Hide:\nFormula Name]],Table_PI[[#This Row],[Quantity]],Table_PI[[#This Row],[List 1]],Table_PI[[#This Row],[List 2]],Table_PI[[#This Row],[List 3]],Table_PI[[#This Row],[Size]],Table_PI[[#This Row],[Input 1]],Table_PI[[#This Row],[Input 2]],Table_PI[[#This Row],[Input 3]],Table_PI[[#This Row],[Input 4]],'Customer Information'!$AR$12,6,ROW()),\"No Rebate\"),\"No Rebate\"),0)","v":0},{"$f":"IF(Table_PI[[#This Row],[Hide:\nFormula Name]]<>\"\",IFERROR(IF(MeasureCalc(Table_PI[[#This Row],[Hide:\nFormula Name]],Table_PI[[#This Row],[Quantity]],Table_PI[[#This Row],[List 1]],Table_PI[[#This Row],[List 2]],Table_PI[[#This Row],[List 3]],Table_PI[[#This Row],[Size]],Table_PI[[#This Row],[Input 1]],Table_PI[[#This Row],[Input 2]],Table_PI[[#This Row],[Input 3]],Table_PI[[#This Row],[Input 4]],'Customer Information'!$AR$12,1,ROW())>0,MeasureCalc(Table_PI[[#This Row],[Hide:\nFormula Name]],Table_PI[[#This Row],[Quantity]],Table_PI[[#This Row],[List 1]],Table_PI[[#This Row],[List 2]],Table_PI[[#This Row],[List 3]],Table_PI[[#This Row],[Size]],Table_PI[[#This Row],[Input 1]],Table_PI[[#This Row],[Input 2]],Table_PI[[#This Row],[Input 3]],Table_PI[[#This Row],[Input 4]],'Customer Information'!$AR$12,7,ROW()),\"No Rebate\"),\"No Rebate\"),0)","v":0},{"$f":"IF(Table_PI[[#This Row],[Hide:\nFormula Name]]<>\"\",IFERROR(IF(MeasureCalc(Table_PI[[#This Row],[Hide:\nFormula Name]],Table_PI[[#This Row],[Quantity]],Table_PI[[#This Row],[List 1]],Table_PI[[#This Row],[List 2]],Table_PI[[#This Row],[List 3]],Table_PI[[#This Row],[Size]],Table_PI[[#This Row],[Input 1]],Table_PI[[#This Row],[Input 2]],Table_PI[[#This Row],[Input 3]],Table_PI[[#This Row],[Input 4]],'Customer Information'!$AR$12,1,ROW())>0,MeasureCalc(Table_PI[[#This Row],[Hide:\nFormula Name]],Table_PI[[#This Row],[Quantity]],Table_PI[[#This Row],[List 1]],Table_PI[[#This Row],[List 2]],Table_PI[[#This Row],[List 3]],Table_PI[[#This Row],[Size]],Table_PI[[#This Row],[Input 1]],Table_PI[[#This Row],[Input 2]],Table_PI[[#This Row],[Input 3]],Table_PI[[#This Row],[Input 4]],'Customer Information'!$AR$12,8,ROW()),\"No Rebate\"),\"No Rebate\"),0)","v":0},{"$f":"IF(Table_PI[[#This Row],[Hide:\nFormula Name]]<>\"\",IF(AND(Table_PI[[#This Row],[Hide:\nFormula Name]]<>\"\",OR(Table_PI[[#This Row],[Rebate]]>0,Table_PI[[#This Row],[Rebate]]=\"No Rebate\")),TRUE,\"MI: Line Item \" & $A340),\"\")","v":""}]
[{"$f":"IF(Table_PI[[#This Row],[Hide:\nFormula Name]]<>\"\",MAX($A$2:A340)+1,\"\")","v":""},null,null,null,null,null,null,null,null,null,null,null,null,null,null,{"$f":"IFERROR(VLOOKUP(Table_PI[[#This Row],[Measure]],'Equipment Lookups'!$C$3:$D$23,2,FALSE),\"\")","v":""},{"$f":"IF(Table_PI[[#This Row],[Hide:\nFormula Name]]<>\"\",IFERROR(IF(MeasureCalc(Table_PI[[#This Row],[Hide:\nFormula Name]],Table_PI[[#This Row],[Quantity]],Table_PI[[#This Row],[List 1]],Table_PI[[#This Row],[List 2]],Table_PI[[#This Row],[List 3]],Table_PI[[#This Row],[Size]],Table_PI[[#This Row],[Input 1]],Table_PI[[#This Row],[Input 2]],Table_PI[[#This Row],[Input 3]],Table_PI[[#This Row],[Input 4]],'Customer Information'!$AR$12,1,ROW())>0,MeasureCalc(Table_PI[[#This Row],[Hide:\nFormula Name]],Table_PI[[#This Row],[Quantity]],Table_PI[[#This Row],[List 1]],Table_PI[[#This Row],[List 2]],Table_PI[[#This Row],[List 3]],Table_PI[[#This Row],[Size]],Table_PI[[#This Row],[Input 1]],Table_PI[[#This Row],[Input 2]],Table_PI[[#This Row],[Input 3]],Table_PI[[#This Row],[Input 4]],'Customer Information'!$AR$12,1,ROW()),\"No Rebate\"),\"No Rebate\"),0)","v":0},{"$f":"IF(Table_PI[[#This Row],[Hide:\nFormula Name]]<>\"\",IFERROR(IF(MeasureCalc(Table_PI[[#This Row],[Hide:\nFormula Name]],Table_PI[[#This Row],[Quantity]],Table_PI[[#This Row],[List 1]],Table_PI[[#This Row],[List 2]],Table_PI[[#This Row],[List 3]],Table_PI[[#This Row],[Size]],Table_PI[[#This Row],[Input 1]],Table_PI[[#This Row],[Input 2]],Table_PI[[#This Row],[Input 3]],Table_PI[[#This Row],[Input 4]],'Customer Information'!$AR$12,1,ROW())>0,MeasureCalc(Table_PI[[#This Row],[Hide:\nFormula Name]],Table_PI[[#This Row],[Quantity]],Table_PI[[#This Row],[List 1]],Table_PI[[#This Row],[List 2]],Table_PI[[#This Row],[List 3]],Table_PI[[#This Row],[Size]],Table_PI[[#This Row],[Input 1]],Table_PI[[#This Row],[Input 2]],Table_PI[[#This Row],[Input 3]],Table_PI[[#This Row],[Input 4]],'Customer Information'!$AR$12,2,ROW()),\"No Rebate\"),\"No Rebate\"),0)","v":0},{"$f":"IF(Table_PI[[#This Row],[Hide:\nFormula Name]]<>\"\",IFERROR(IF(MeasureCalc(Table_PI[[#This Row],[Hide:\nFormula Name]],Table_PI[[#This Row],[Quantity]],Table_PI[[#This Row],[List 1]],Table_PI[[#This Row],[List 2]],Table_PI[[#This Row],[List 3]],Table_PI[[#This Row],[Size]],Table_PI[[#This Row],[Input 1]],Table_PI[[#This Row],[Input 2]],Table_PI[[#This Row],[Input 3]],Table_PI[[#This Row],[Input 4]],'Customer Information'!$AR$12,1,ROW())>0,MeasureCalc(Table_PI[[#This Row],[Hide:\nFormula Name]],Table_PI[[#This Row],[Quantity]],Table_PI[[#This Row],[List 1]],Table_PI[[#This Row],[List 2]],Table_PI[[#This Row],[List 3]],Table_PI[[#This Row],[Size]],Table_PI[[#This Row],[Input 1]],Table_PI[[#This Row],[Input 2]],Table_PI[[#This Row],[Input 3]],Table_PI[[#This Row],[Input 4]],'Customer Information'!$AR$12,3,ROW()),\"No Rebate\"),\"No Rebate\"),0)","v":0},{"$f":"IF(Table_PI[[#This Row],[Hide:\nFormula Name]]<>\"\",IFERROR(IF(MeasureCalc(Table_PI[[#This Row],[Hide:\nFormula Name]],Table_PI[[#This Row],[Quantity]],Table_PI[[#This Row],[List 1]],Table_PI[[#This Row],[List 2]],Table_PI[[#This Row],[List 3]],Table_PI[[#This Row],[Size]],Table_PI[[#This Row],[Input 1]],Table_PI[[#This Row],[Input 2]],Table_PI[[#This Row],[Input 3]],Table_PI[[#This Row],[Input 4]],'Customer Information'!$AR$12,1,ROW())>0,MeasureCalc(Table_PI[[#This Row],[Hide:\nFormula Name]],Table_PI[[#This Row],[Quantity]],Table_PI[[#This Row],[List 1]],Table_PI[[#This Row],[List 2]],Table_PI[[#This Row],[List 3]],Table_PI[[#This Row],[Size]],Table_PI[[#This Row],[Input 1]],Table_PI[[#This Row],[Input 2]],Table_PI[[#This Row],[Input 3]],Table_PI[[#This Row],[Input 4]],'Customer Information'!$AR$12,4,ROW()),\"No Rebate\"),\"No Rebate\"),0)","v":0},{"$f":"IF(Table_PI[[#This Row],[Hide:\nFormula Name]]<>\"\",IFERROR(IF(MeasureCalc(Table_PI[[#This Row],[Hide:\nFormula Name]],Table_PI[[#This Row],[Quantity]],Table_PI[[#This Row],[List 1]],Table_PI[[#This Row],[List 2]],Table_PI[[#This Row],[List 3]],Table_PI[[#This Row],[Size]],Table_PI[[#This Row],[Input 1]],Table_PI[[#This Row],[Input 2]],Table_PI[[#This Row],[Input 3]],Table_PI[[#This Row],[Input 4]],'Customer Information'!$AR$12,1,ROW())>0,MeasureCalc(Table_PI[[#This Row],[Hide:\nFormula Name]],Table_PI[[#This Row],[Quantity]],Table_PI[[#This Row],[List 1]],Table_PI[[#This Row],[List 2]],Table_PI[[#This Row],[List 3]],Table_PI[[#This Row],[Size]],Table_PI[[#This Row],[Input 1]],Table_PI[[#This Row],[Input 2]],Table_PI[[#This Row],[Input 3]],Table_PI[[#This Row],[Input 4]],'Customer Information'!$AR$12,5,ROW()),\"No Rebate\"),\"No Rebate\"),0)","v":0},{"$f":"IF(Table_PI[[#This Row],[Hide:\nFormula Name]]<>\"\",IFERROR(IF(MeasureCalc(Table_PI[[#This Row],[Hide:\nFormula Name]],Table_PI[[#This Row],[Quantity]],Table_PI[[#This Row],[List 1]],Table_PI[[#This Row],[List 2]],Table_PI[[#This Row],[List 3]],Table_PI[[#This Row],[Size]],Table_PI[[#This Row],[Input 1]],Table_PI[[#This Row],[Input 2]],Table_PI[[#This Row],[Input 3]],Table_PI[[#This Row],[Input 4]],'Customer Information'!$AR$12,1,ROW())>0,MeasureCalc(Table_PI[[#This Row],[Hide:\nFormula Name]],Table_PI[[#This Row],[Quantity]],Table_PI[[#This Row],[List 1]],Table_PI[[#This Row],[List 2]],Table_PI[[#This Row],[List 3]],Table_PI[[#This Row],[Size]],Table_PI[[#This Row],[Input 1]],Table_PI[[#This Row],[Input 2]],Table_PI[[#This Row],[Input 3]],Table_PI[[#This Row],[Input 4]],'Customer Information'!$AR$12,6,ROW()),\"No Rebate\"),\"No Rebate\"),0)","v":0},{"$f":"IF(Table_PI[[#This Row],[Hide:\nFormula Name]]<>\"\",IFERROR(IF(MeasureCalc(Table_PI[[#This Row],[Hide:\nFormula Name]],Table_PI[[#This Row],[Quantity]],Table_PI[[#This Row],[List 1]],Table_PI[[#This Row],[List 2]],Table_PI[[#This Row],[List 3]],Table_PI[[#This Row],[Size]],Table_PI[[#This Row],[Input 1]],Table_PI[[#This Row],[Input 2]],Table_PI[[#This Row],[Input 3]],Table_PI[[#This Row],[Input 4]],'Customer Information'!$AR$12,1,ROW())>0,MeasureCalc(Table_PI[[#This Row],[Hide:\nFormula Name]],Table_PI[[#This Row],[Quantity]],Table_PI[[#This Row],[List 1]],Table_PI[[#This Row],[List 2]],Table_PI[[#This Row],[List 3]],Table_PI[[#This Row],[Size]],Table_PI[[#This Row],[Input 1]],Table_PI[[#This Row],[Input 2]],Table_PI[[#This Row],[Input 3]],Table_PI[[#This Row],[Input 4]],'Customer Information'!$AR$12,7,ROW()),\"No Rebate\"),\"No Rebate\"),0)","v":0},{"$f":"IF(Table_PI[[#This Row],[Hide:\nFormula Name]]<>\"\",IFERROR(IF(MeasureCalc(Table_PI[[#This Row],[Hide:\nFormula Name]],Table_PI[[#This Row],[Quantity]],Table_PI[[#This Row],[List 1]],Table_PI[[#This Row],[List 2]],Table_PI[[#This Row],[List 3]],Table_PI[[#This Row],[Size]],Table_PI[[#This Row],[Input 1]],Table_PI[[#This Row],[Input 2]],Table_PI[[#This Row],[Input 3]],Table_PI[[#This Row],[Input 4]],'Customer Information'!$AR$12,1,ROW())>0,MeasureCalc(Table_PI[[#This Row],[Hide:\nFormula Name]],Table_PI[[#This Row],[Quantity]],Table_PI[[#This Row],[List 1]],Table_PI[[#This Row],[List 2]],Table_PI[[#This Row],[List 3]],Table_PI[[#This Row],[Size]],Table_PI[[#This Row],[Input 1]],Table_PI[[#This Row],[Input 2]],Table_PI[[#This Row],[Input 3]],Table_PI[[#This Row],[Input 4]],'Customer Information'!$AR$12,8,ROW()),\"No Rebate\"),\"No Rebate\"),0)","v":0},{"$f":"IF(Table_PI[[#This Row],[Hide:\nFormula Name]]<>\"\",IF(AND(Table_PI[[#This Row],[Hide:\nFormula Name]]<>\"\",OR(Table_PI[[#This Row],[Rebate]]>0,Table_PI[[#This Row],[Rebate]]=\"No Rebate\")),TRUE,\"MI: Line Item \" & $A341),\"\")","v":""}]
[{"$f":"IF(Table_PI[[#This Row],[Hide:\nFormula Name]]<>\"\",MAX($A$2:A341)+1,\"\")","v":""},null,null,null,null,null,null,null,null,null,null,null,null,null,null,{"$f":"IFERROR(VLOOKUP(Table_PI[[#This Row],[Measure]],'Equipment Lookups'!$C$3:$D$23,2,FALSE),\"\")","v":""},{"$f":"IF(Table_PI[[#This Row],[Hide:\nFormula Name]]<>\"\",IFERROR(IF(MeasureCalc(Table_PI[[#This Row],[Hide:\nFormula Name]],Table_PI[[#This Row],[Quantity]],Table_PI[[#This Row],[List 1]],Table_PI[[#This Row],[List 2]],Table_PI[[#This Row],[List 3]],Table_PI[[#This Row],[Size]],Table_PI[[#This Row],[Input 1]],Table_PI[[#This Row],[Input 2]],Table_PI[[#This Row],[Input 3]],Table_PI[[#This Row],[Input 4]],'Customer Information'!$AR$12,1,ROW())>0,MeasureCalc(Table_PI[[#This Row],[Hide:\nFormula Name]],Table_PI[[#This Row],[Quantity]],Table_PI[[#This Row],[List 1]],Table_PI[[#This Row],[List 2]],Table_PI[[#This Row],[List 3]],Table_PI[[#This Row],[Size]],Table_PI[[#This Row],[Input 1]],Table_PI[[#This Row],[Input 2]],Table_PI[[#This Row],[Input 3]],Table_PI[[#This Row],[Input 4]],'Customer Information'!$AR$12,1,ROW()),\"No Rebate\"),\"No Rebate\"),0)","v":0},{"$f":"IF(Table_PI[[#This Row],[Hide:\nFormula Name]]<>\"\",IFERROR(IF(MeasureCalc(Table_PI[[#This Row],[Hide:\nFormula Name]],Table_PI[[#This Row],[Quantity]],Table_PI[[#This Row],[List 1]],Table_PI[[#This Row],[List 2]],Table_PI[[#This Row],[List 3]],Table_PI[[#This Row],[Size]],Table_PI[[#This Row],[Input 1]],Table_PI[[#This Row],[Input 2]],Table_PI[[#This Row],[Input 3]],Table_PI[[#This Row],[Input 4]],'Customer Information'!$AR$12,1,ROW())>0,MeasureCalc(Table_PI[[#This Row],[Hide:\nFormula Name]],Table_PI[[#This Row],[Quantity]],Table_PI[[#This Row],[List 1]],Table_PI[[#This Row],[List 2]],Table_PI[[#This Row],[List 3]],Table_PI[[#This Row],[Size]],Table_PI[[#This Row],[Input 1]],Table_PI[[#This Row],[Input 2]],Table_PI[[#This Row],[Input 3]],Table_PI[[#This Row],[Input 4]],'Customer Information'!$AR$12,2,ROW()),\"No Rebate\"),\"No Rebate\"),0)","v":0},{"$f":"IF(Table_PI[[#This Row],[Hide:\nFormula Name]]<>\"\",IFERROR(IF(MeasureCalc(Table_PI[[#This Row],[Hide:\nFormula Name]],Table_PI[[#This Row],[Quantity]],Table_PI[[#This Row],[List 1]],Table_PI[[#This Row],[List 2]],Table_PI[[#This Row],[List 3]],Table_PI[[#This Row],[Size]],Table_PI[[#This Row],[Input 1]],Table_PI[[#This Row],[Input 2]],Table_PI[[#This Row],[Input 3]],Table_PI[[#This Row],[Input 4]],'Customer Information'!$AR$12,1,ROW())>0,MeasureCalc(Table_PI[[#This Row],[Hide:\nFormula Name]],Table_PI[[#This Row],[Quantity]],Table_PI[[#This Row],[List 1]],Table_PI[[#This Row],[List 2]],Table_PI[[#This Row],[List 3]],Table_PI[[#This Row],[Size]],Table_PI[[#This Row],[Input 1]],Table_PI[[#This Row],[Input 2]],Table_PI[[#This Row],[Input 3]],Table_PI[[#This Row],[Input 4]],'Customer Information'!$AR$12,3,ROW()),\"No Rebate\"),\"No Rebate\"),0)","v":0},{"$f":"IF(Table_PI[[#This Row],[Hide:\nFormula Name]]<>\"\",IFERROR(IF(MeasureCalc(Table_PI[[#This Row],[Hide:\nFormula Name]],Table_PI[[#This Row],[Quantity]],Table_PI[[#This Row],[List 1]],Table_PI[[#This Row],[List 2]],Table_PI[[#This Row],[List 3]],Table_PI[[#This Row],[Size]],Table_PI[[#This Row],[Input 1]],Table_PI[[#This Row],[Input 2]],Table_PI[[#This Row],[Input 3]],Table_PI[[#This Row],[Input 4]],'Customer Information'!$AR$12,1,ROW())>0,MeasureCalc(Table_PI[[#This Row],[Hide:\nFormula Name]],Table_PI[[#This Row],[Quantity]],Table_PI[[#This Row],[List 1]],Table_PI[[#This Row],[List 2]],Table_PI[[#This Row],[List 3]],Table_PI[[#This Row],[Size]],Table_PI[[#This Row],[Input 1]],Table_PI[[#This Row],[Input 2]],Table_PI[[#This Row],[Input 3]],Table_PI[[#This Row],[Input 4]],'Customer Information'!$AR$12,4,ROW()),\"No Rebate\"),\"No Rebate\"),0)","v":0},{"$f":"IF(Table_PI[[#This Row],[Hide:\nFormula Name]]<>\"\",IFERROR(IF(MeasureCalc(Table_PI[[#This Row],[Hide:\nFormula Name]],Table_PI[[#This Row],[Quantity]],Table_PI[[#This Row],[List 1]],Table_PI[[#This Row],[List 2]],Table_PI[[#This Row],[List 3]],Table_PI[[#This Row],[Size]],Table_PI[[#This Row],[Input 1]],Table_PI[[#This Row],[Input 2]],Table_PI[[#This Row],[Input 3]],Table_PI[[#This Row],[Input 4]],'Customer Information'!$AR$12,1,ROW())>0,MeasureCalc(Table_PI[[#This Row],[Hide:\nFormula Name]],Table_PI[[#This Row],[Quantity]],Table_PI[[#This Row],[List 1]],Table_PI[[#This Row],[List 2]],Table_PI[[#This Row],[List 3]],Table_PI[[#This Row],[Size]],Table_PI[[#This Row],[Input 1]],Table_PI[[#This Row],[Input 2]],Table_PI[[#This Row],[Input 3]],Table_PI[[#This Row],[Input 4]],'Customer Information'!$AR$12,5,ROW()),\"No Rebate\"),\"No Rebate\"),0)","v":0},{"$f":"IF(Table_PI[[#This Row],[Hide:\nFormula Name]]<>\"\",IFERROR(IF(MeasureCalc(Table_PI[[#This Row],[Hide:\nFormula Name]],Table_PI[[#This Row],[Quantity]],Table_PI[[#This Row],[List 1]],Table_PI[[#This Row],[List 2]],Table_PI[[#This Row],[List 3]],Table_PI[[#This Row],[Size]],Table_PI[[#This Row],[Input 1]],Table_PI[[#This Row],[Input 2]],Table_PI[[#This Row],[Input 3]],Table_PI[[#This Row],[Input 4]],'Customer Information'!$AR$12,1,ROW())>0,MeasureCalc(Table_PI[[#This Row],[Hide:\nFormula Name]],Table_PI[[#This Row],[Quantity]],Table_PI[[#This Row],[List 1]],Table_PI[[#This Row],[List 2]],Table_PI[[#This Row],[List 3]],Table_PI[[#This Row],[Size]],Table_PI[[#This Row],[Input 1]],Table_PI[[#This Row],[Input 2]],Table_PI[[#This Row],[Input 3]],Table_PI[[#This Row],[Input 4]],'Customer Information'!$AR$12,6,ROW()),\"No Rebate\"),\"No Rebate\"),0)","v":0},{"$f":"IF(Table_PI[[#This Row],[Hide:\nFormula Name]]<>\"\",IFERROR(IF(MeasureCalc(Table_PI[[#This Row],[Hide:\nFormula Name]],Table_PI[[#This Row],[Quantity]],Table_PI[[#This Row],[List 1]],Table_PI[[#This Row],[List 2]],Table_PI[[#This Row],[List 3]],Table_PI[[#This Row],[Size]],Table_PI[[#This Row],[Input 1]],Table_PI[[#This Row],[Input 2]],Table_PI[[#This Row],[Input 3]],Table_PI[[#This Row],[Input 4]],'Customer Information'!$AR$12,1,ROW())>0,MeasureCalc(Table_PI[[#This Row],[Hide:\nFormula Name]],Table_PI[[#This Row],[Quantity]],Table_PI[[#This Row],[List 1]],Table_PI[[#This Row],[List 2]],Table_PI[[#This Row],[List 3]],Table_PI[[#This Row],[Size]],Table_PI[[#This Row],[Input 1]],Table_PI[[#This Row],[Input 2]],Table_PI[[#This Row],[Input 3]],Table_PI[[#This Row],[Input 4]],'Customer Information'!$AR$12,7,ROW()),\"No Rebate\"),\"No Rebate\"),0)","v":0},{"$f":"IF(Table_PI[[#This Row],[Hide:\nFormula Name]]<>\"\",IFERROR(IF(MeasureCalc(Table_PI[[#This Row],[Hide:\nFormula Name]],Table_PI[[#This Row],[Quantity]],Table_PI[[#This Row],[List 1]],Table_PI[[#This Row],[List 2]],Table_PI[[#This Row],[List 3]],Table_PI[[#This Row],[Size]],Table_PI[[#This Row],[Input 1]],Table_PI[[#This Row],[Input 2]],Table_PI[[#This Row],[Input 3]],Table_PI[[#This Row],[Input 4]],'Customer Information'!$AR$12,1,ROW())>0,MeasureCalc(Table_PI[[#This Row],[Hide:\nFormula Name]],Table_PI[[#This Row],[Quantity]],Table_PI[[#This Row],[List 1]],Table_PI[[#This Row],[List 2]],Table_PI[[#This Row],[List 3]],Table_PI[[#This Row],[Size]],Table_PI[[#This Row],[Input 1]],Table_PI[[#This Row],[Input 2]],Table_PI[[#This Row],[Input 3]],Table_PI[[#This Row],[Input 4]],'Customer Information'!$AR$12,8,ROW()),\"No Rebate\"),\"No Rebate\"),0)","v":0},{"$f":"IF(Table_PI[[#This Row],[Hide:\nFormula Name]]<>\"\",IF(AND(Table_PI[[#This Row],[Hide:\nFormula Name]]<>\"\",OR(Table_PI[[#This Row],[Rebate]]>0,Table_PI[[#This Row],[Rebate]]=\"No Rebate\")),TRUE,\"MI: Line Item \" & $A342),\"\")","v":""}]
[{"$f":"IF(Table_PI[[#This Row],[Hide:\nFormula Name]]<>\"\",MAX($A$2:A342)+1,\"\")","v":""},null,null,null,null,null,null,null,null,null,null,null,null,null,null,{"$f":"IFERROR(VLOOKUP(Table_PI[[#This Row],[Measure]],'Equipment Lookups'!$C$3:$D$23,2,FALSE),\"\")","v":""},{"$f":"IF(Table_PI[[#This Row],[Hide:\nFormula Name]]<>\"\",IFERROR(IF(MeasureCalc(Table_PI[[#This Row],[Hide:\nFormula Name]],Table_PI[[#This Row],[Quantity]],Table_PI[[#This Row],[List 1]],Table_PI[[#This Row],[List 2]],Table_PI[[#This Row],[List 3]],Table_PI[[#This Row],[Size]],Table_PI[[#This Row],[Input 1]],Table_PI[[#This Row],[Input 2]],Table_PI[[#This Row],[Input 3]],Table_PI[[#This Row],[Input 4]],'Customer Information'!$AR$12,1,ROW())>0,MeasureCalc(Table_PI[[#This Row],[Hide:\nFormula Name]],Table_PI[[#This Row],[Quantity]],Table_PI[[#This Row],[List 1]],Table_PI[[#This Row],[List 2]],Table_PI[[#This Row],[List 3]],Table_PI[[#This Row],[Size]],Table_PI[[#This Row],[Input 1]],Table_PI[[#This Row],[Input 2]],Table_PI[[#This Row],[Input 3]],Table_PI[[#This Row],[Input 4]],'Customer Information'!$AR$12,1,ROW()),\"No Rebate\"),\"No Rebate\"),0)","v":0},{"$f":"IF(Table_PI[[#This Row],[Hide:\nFormula Name]]<>\"\",IFERROR(IF(MeasureCalc(Table_PI[[#This Row],[Hide:\nFormula Name]],Table_PI[[#This Row],[Quantity]],Table_PI[[#This Row],[List 1]],Table_PI[[#This Row],[List 2]],Table_PI[[#This Row],[List 3]],Table_PI[[#This Row],[Size]],Table_PI[[#This Row],[Input 1]],Table_PI[[#This Row],[Input 2]],Table_PI[[#This Row],[Input 3]],Table_PI[[#This Row],[Input 4]],'Customer Information'!$AR$12,1,ROW())>0,MeasureCalc(Table_PI[[#This Row],[Hide:\nFormula Name]],Table_PI[[#This Row],[Quantity]],Table_PI[[#This Row],[List 1]],Table_PI[[#This Row],[List 2]],Table_PI[[#This Row],[List 3]],Table_PI[[#This Row],[Size]],Table_PI[[#This Row],[Input 1]],Table_PI[[#This Row],[Input 2]],Table_PI[[#This Row],[Input 3]],Table_PI[[#This Row],[Input 4]],'Customer Information'!$AR$12,2,ROW()),\"No Rebate\"),\"No Rebate\"),0)","v":0},{"$f":"IF(Table_PI[[#This Row],[Hide:\nFormula Name]]<>\"\",IFERROR(IF(MeasureCalc(Table_PI[[#This Row],[Hide:\nFormula Name]],Table_PI[[#This Row],[Quantity]],Table_PI[[#This Row],[List 1]],Table_PI[[#This Row],[List 2]],Table_PI[[#This Row],[List 3]],Table_PI[[#This Row],[Size]],Table_PI[[#This Row],[Input 1]],Table_PI[[#This Row],[Input 2]],Table_PI[[#This Row],[Input 3]],Table_PI[[#This Row],[Input 4]],'Customer Information'!$AR$12,1,ROW())>0,MeasureCalc(Table_PI[[#This Row],[Hide:\nFormula Name]],Table_PI[[#This Row],[Quantity]],Table_PI[[#This Row],[List 1]],Table_PI[[#This Row],[List 2]],Table_PI[[#This Row],[List 3]],Table_PI[[#This Row],[Size]],Table_PI[[#This Row],[Input 1]],Table_PI[[#This Row],[Input 2]],Table_PI[[#This Row],[Input 3]],Table_PI[[#This Row],[Input 4]],'Customer Information'!$AR$12,3,ROW()),\"No Rebate\"),\"No Rebate\"),0)","v":0},{"$f":"IF(Table_PI[[#This Row],[Hide:\nFormula Name]]<>\"\",IFERROR(IF(MeasureCalc(Table_PI[[#This Row],[Hide:\nFormula Name]],Table_PI[[#This Row],[Quantity]],Table_PI[[#This Row],[List 1]],Table_PI[[#This Row],[List 2]],Table_PI[[#This Row],[List 3]],Table_PI[[#This Row],[Size]],Table_PI[[#This Row],[Input 1]],Table_PI[[#This Row],[Input 2]],Table_PI[[#This Row],[Input 3]],Table_PI[[#This Row],[Input 4]],'Customer Information'!$AR$12,1,ROW())>0,MeasureCalc(Table_PI[[#This Row],[Hide:\nFormula Name]],Table_PI[[#This Row],[Quantity]],Table_PI[[#This Row],[List 1]],Table_PI[[#This Row],[List 2]],Table_PI[[#This Row],[List 3]],Table_PI[[#This Row],[Size]],Table_PI[[#This Row],[Input 1]],Table_PI[[#This Row],[Input 2]],Table_PI[[#This Row],[Input 3]],Table_PI[[#This Row],[Input 4]],'Customer Information'!$AR$12,4,ROW()),\"No Rebate\"),\"No Rebate\"),0)","v":0},{"$f":"IF(Table_PI[[#This Row],[Hide:\nFormula Name]]<>\"\",IFERROR(IF(MeasureCalc(Table_PI[[#This Row],[Hide:\nFormula Name]],Table_PI[[#This Row],[Quantity]],Table_PI[[#This Row],[List 1]],Table_PI[[#This Row],[List 2]],Table_PI[[#This Row],[List 3]],Table_PI[[#This Row],[Size]],Table_PI[[#This Row],[Input 1]],Table_PI[[#This Row],[Input 2]],Table_PI[[#This Row],[Input 3]],Table_PI[[#This Row],[Input 4]],'Customer Information'!$AR$12,1,ROW())>0,MeasureCalc(Table_PI[[#This Row],[Hide:\nFormula Name]],Table_PI[[#This Row],[Quantity]],Table_PI[[#This Row],[List 1]],Table_PI[[#This Row],[List 2]],Table_PI[[#This Row],[List 3]],Table_PI[[#This Row],[Size]],Table_PI[[#This Row],[Input 1]],Table_PI[[#This Row],[Input 2]],Table_PI[[#This Row],[Input 3]],Table_PI[[#This Row],[Input 4]],'Customer Information'!$AR$12,5,ROW()),\"No Rebate\"),\"No Rebate\"),0)","v":0},{"$f":"IF(Table_PI[[#This Row],[Hide:\nFormula Name]]<>\"\",IFERROR(IF(MeasureCalc(Table_PI[[#This Row],[Hide:\nFormula Name]],Table_PI[[#This Row],[Quantity]],Table_PI[[#This Row],[List 1]],Table_PI[[#This Row],[List 2]],Table_PI[[#This Row],[List 3]],Table_PI[[#This Row],[Size]],Table_PI[[#This Row],[Input 1]],Table_PI[[#This Row],[Input 2]],Table_PI[[#This Row],[Input 3]],Table_PI[[#This Row],[Input 4]],'Customer Information'!$AR$12,1,ROW())>0,MeasureCalc(Table_PI[[#This Row],[Hide:\nFormula Name]],Table_PI[[#This Row],[Quantity]],Table_PI[[#This Row],[List 1]],Table_PI[[#This Row],[List 2]],Table_PI[[#This Row],[List 3]],Table_PI[[#This Row],[Size]],Table_PI[[#This Row],[Input 1]],Table_PI[[#This Row],[Input 2]],Table_PI[[#This Row],[Input 3]],Table_PI[[#This Row],[Input 4]],'Customer Information'!$AR$12,6,ROW()),\"No Rebate\"),\"No Rebate\"),0)","v":0},{"$f":"IF(Table_PI[[#This Row],[Hide:\nFormula Name]]<>\"\",IFERROR(IF(MeasureCalc(Table_PI[[#This Row],[Hide:\nFormula Name]],Table_PI[[#This Row],[Quantity]],Table_PI[[#This Row],[List 1]],Table_PI[[#This Row],[List 2]],Table_PI[[#This Row],[List 3]],Table_PI[[#This Row],[Size]],Table_PI[[#This Row],[Input 1]],Table_PI[[#This Row],[Input 2]],Table_PI[[#This Row],[Input 3]],Table_PI[[#This Row],[Input 4]],'Customer Information'!$AR$12,1,ROW())>0,MeasureCalc(Table_PI[[#This Row],[Hide:\nFormula Name]],Table_PI[[#This Row],[Quantity]],Table_PI[[#This Row],[List 1]],Table_PI[[#This Row],[List 2]],Table_PI[[#This Row],[List 3]],Table_PI[[#This Row],[Size]],Table_PI[[#This Row],[Input 1]],Table_PI[[#This Row],[Input 2]],Table_PI[[#This Row],[Input 3]],Table_PI[[#This Row],[Input 4]],'Customer Information'!$AR$12,7,ROW()),\"No Rebate\"),\"No Rebate\"),0)","v":0},{"$f":"IF(Table_PI[[#This Row],[Hide:\nFormula Name]]<>\"\",IFERROR(IF(MeasureCalc(Table_PI[[#This Row],[Hide:\nFormula Name]],Table_PI[[#This Row],[Quantity]],Table_PI[[#This Row],[List 1]],Table_PI[[#This Row],[List 2]],Table_PI[[#This Row],[List 3]],Table_PI[[#This Row],[Size]],Table_PI[[#This Row],[Input 1]],Table_PI[[#This Row],[Input 2]],Table_PI[[#This Row],[Input 3]],Table_PI[[#This Row],[Input 4]],'Customer Information'!$AR$12,1,ROW())>0,MeasureCalc(Table_PI[[#This Row],[Hide:\nFormula Name]],Table_PI[[#This Row],[Quantity]],Table_PI[[#This Row],[List 1]],Table_PI[[#This Row],[List 2]],Table_PI[[#This Row],[List 3]],Table_PI[[#This Row],[Size]],Table_PI[[#This Row],[Input 1]],Table_PI[[#This Row],[Input 2]],Table_PI[[#This Row],[Input 3]],Table_PI[[#This Row],[Input 4]],'Customer Information'!$AR$12,8,ROW()),\"No Rebate\"),\"No Rebate\"),0)","v":0},{"$f":"IF(Table_PI[[#This Row],[Hide:\nFormula Name]]<>\"\",IF(AND(Table_PI[[#This Row],[Hide:\nFormula Name]]<>\"\",OR(Table_PI[[#This Row],[Rebate]]>0,Table_PI[[#This Row],[Rebate]]=\"No Rebate\")),TRUE,\"MI: Line Item \" & $A343),\"\")","v":""}]
[{"$f":"IF(Table_PI[[#This Row],[Hide:\nFormula Name]]<>\"\",MAX($A$2:A343)+1,\"\")","v":""},null,null,null,null,null,null,null,null,null,null,null,null,null,null,{"$f":"IFERROR(VLOOKUP(Table_PI[[#This Row],[Measure]],'Equipment Lookups'!$C$3:$D$23,2,FALSE),\"\")","v":""},{"$f":"IF(Table_PI[[#This Row],[Hide:\nFormula Name]]<>\"\",IFERROR(IF(MeasureCalc(Table_PI[[#This Row],[Hide:\nFormula Name]],Table_PI[[#This Row],[Quantity]],Table_PI[[#This Row],[List 1]],Table_PI[[#This Row],[List 2]],Table_PI[[#This Row],[List 3]],Table_PI[[#This Row],[Size]],Table_PI[[#This Row],[Input 1]],Table_PI[[#This Row],[Input 2]],Table_PI[[#This Row],[Input 3]],Table_PI[[#This Row],[Input 4]],'Customer Information'!$AR$12,1,ROW())>0,MeasureCalc(Table_PI[[#This Row],[Hide:\nFormula Name]],Table_PI[[#This Row],[Quantity]],Table_PI[[#This Row],[List 1]],Table_PI[[#This Row],[List 2]],Table_PI[[#This Row],[List 3]],Table_PI[[#This Row],[Size]],Table_PI[[#This Row],[Input 1]],Table_PI[[#This Row],[Input 2]],Table_PI[[#This Row],[Input 3]],Table_PI[[#This Row],[Input 4]],'Customer Information'!$AR$12,1,ROW()),\"No Rebate\"),\"No Rebate\"),0)","v":0},{"$f":"IF(Table_PI[[#This Row],[Hide:\nFormula Name]]<>\"\",IFERROR(IF(MeasureCalc(Table_PI[[#This Row],[Hide:\nFormula Name]],Table_PI[[#This Row],[Quantity]],Table_PI[[#This Row],[List 1]],Table_PI[[#This Row],[List 2]],Table_PI[[#This Row],[List 3]],Table_PI[[#This Row],[Size]],Table_PI[[#This Row],[Input 1]],Table_PI[[#This Row],[Input 2]],Table_PI[[#This Row],[Input 3]],Table_PI[[#This Row],[Input 4]],'Customer Information'!$AR$12,1,ROW())>0,MeasureCalc(Table_PI[[#This Row],[Hide:\nFormula Name]],Table_PI[[#This Row],[Quantity]],Table_PI[[#This Row],[List 1]],Table_PI[[#This Row],[List 2]],Table_PI[[#This Row],[List 3]],Table_PI[[#This Row],[Size]],Table_PI[[#This Row],[Input 1]],Table_PI[[#This Row],[Input 2]],Table_PI[[#This Row],[Input 3]],Table_PI[[#This Row],[Input 4]],'Customer Information'!$AR$12,2,ROW()),\"No Rebate\"),\"No Rebate\"),0)","v":0},{"$f":"IF(Table_PI[[#This Row],[Hide:\nFormula Name]]<>\"\",IFERROR(IF(MeasureCalc(Table_PI[[#This Row],[Hide:\nFormula Name]],Table_PI[[#This Row],[Quantity]],Table_PI[[#This Row],[List 1]],Table_PI[[#This Row],[List 2]],Table_PI[[#This Row],[List 3]],Table_PI[[#This Row],[Size]],Table_PI[[#This Row],[Input 1]],Table_PI[[#This Row],[Input 2]],Table_PI[[#This Row],[Input 3]],Table_PI[[#This Row],[Input 4]],'Customer Information'!$AR$12,1,ROW())>0,MeasureCalc(Table_PI[[#This Row],[Hide:\nFormula Name]],Table_PI[[#This Row],[Quantity]],Table_PI[[#This Row],[List 1]],Table_PI[[#This Row],[List 2]],Table_PI[[#This Row],[List 3]],Table_PI[[#This Row],[Size]],Table_PI[[#This Row],[Input 1]],Table_PI[[#This Row],[Input 2]],Table_PI[[#This Row],[Input 3]],Table_PI[[#This Row],[Input 4]],'Customer Information'!$AR$12,3,ROW()),\"No Rebate\"),\"No Rebate\"),0)","v":0},{"$f":"IF(Table_PI[[#This Row],[Hide:\nFormula Name]]<>\"\",IFERROR(IF(MeasureCalc(Table_PI[[#This Row],[Hide:\nFormula Name]],Table_PI[[#This Row],[Quantity]],Table_PI[[#This Row],[List 1]],Table_PI[[#This Row],[List 2]],Table_PI[[#This Row],[List 3]],Table_PI[[#This Row],[Size]],Table_PI[[#This Row],[Input 1]],Table_PI[[#This Row],[Input 2]],Table_PI[[#This Row],[Input 3]],Table_PI[[#This Row],[Input 4]],'Customer Information'!$AR$12,1,ROW())>0,MeasureCalc(Table_PI[[#This Row],[Hide:\nFormula Name]],Table_PI[[#This Row],[Quantity]],Table_PI[[#This Row],[List 1]],Table_PI[[#This Row],[List 2]],Table_PI[[#This Row],[List 3]],Table_PI[[#This Row],[Size]],Table_PI[[#This Row],[Input 1]],Table_PI[[#This Row],[Input 2]],Table_PI[[#This Row],[Input 3]],Table_PI[[#This Row],[Input 4]],'Customer Information'!$AR$12,4,ROW()),\"No Rebate\"),\"No Rebate\"),0)","v":0},{"$f":"IF(Table_PI[[#This Row],[Hide:\nFormula Name]]<>\"\",IFERROR(IF(MeasureCalc(Table_PI[[#This Row],[Hide:\nFormula Name]],Table_PI[[#This Row],[Quantity]],Table_PI[[#This Row],[List 1]],Table_PI[[#This Row],[List 2]],Table_PI[[#This Row],[List 3]],Table_PI[[#This Row],[Size]],Table_PI[[#This Row],[Input 1]],Table_PI[[#This Row],[Input 2]],Table_PI[[#This Row],[Input 3]],Table_PI[[#This Row],[Input 4]],'Customer Information'!$AR$12,1,ROW())>0,MeasureCalc(Table_PI[[#This Row],[Hide:\nFormula Name]],Table_PI[[#This Row],[Quantity]],Table_PI[[#This Row],[List 1]],Table_PI[[#This Row],[List 2]],Table_PI[[#This Row],[List 3]],Table_PI[[#This Row],[Size]],Table_PI[[#This Row],[Input 1]],Table_PI[[#This Row],[Input 2]],Table_PI[[#This Row],[Input 3]],Table_PI[[#This Row],[Input 4]],'Customer Information'!$AR$12,5,ROW()),\"No Rebate\"),\"No Rebate\"),0)","v":0},{"$f":"IF(Table_PI[[#This Row],[Hide:\nFormula Name]]<>\"\",IFERROR(IF(MeasureCalc(Table_PI[[#This Row],[Hide:\nFormula Name]],Table_PI[[#This Row],[Quantity]],Table_PI[[#This Row],[List 1]],Table_PI[[#This Row],[List 2]],Table_PI[[#This Row],[List 3]],Table_PI[[#This Row],[Size]],Table_PI[[#This Row],[Input 1]],Table_PI[[#This Row],[Input 2]],Table_PI[[#This Row],[Input 3]],Table_PI[[#This Row],[Input 4]],'Customer Information'!$AR$12,1,ROW())>0,MeasureCalc(Table_PI[[#This Row],[Hide:\nFormula Name]],Table_PI[[#This Row],[Quantity]],Table_PI[[#This Row],[List 1]],Table_PI[[#This Row],[List 2]],Table_PI[[#This Row],[List 3]],Table_PI[[#This Row],[Size]],Table_PI[[#This Row],[Input 1]],Table_PI[[#This Row],[Input 2]],Table_PI[[#This Row],[Input 3]],Table_PI[[#This Row],[Input 4]],'Customer Information'!$AR$12,6,ROW()),\"No Rebate\"),\"No Rebate\"),0)","v":0},{"$f":"IF(Table_PI[[#This Row],[Hide:\nFormula Name]]<>\"\",IFERROR(IF(MeasureCalc(Table_PI[[#This Row],[Hide:\nFormula Name]],Table_PI[[#This Row],[Quantity]],Table_PI[[#This Row],[List 1]],Table_PI[[#This Row],[List 2]],Table_PI[[#This Row],[List 3]],Table_PI[[#This Row],[Size]],Table_PI[[#This Row],[Input 1]],Table_PI[[#This Row],[Input 2]],Table_PI[[#This Row],[Input 3]],Table_PI[[#This Row],[Input 4]],'Customer Information'!$AR$12,1,ROW())>0,MeasureCalc(Table_PI[[#This Row],[Hide:\nFormula Name]],Table_PI[[#This Row],[Quantity]],Table_PI[[#This Row],[List 1]],Table_PI[[#This Row],[List 2]],Table_PI[[#This Row],[List 3]],Table_PI[[#This Row],[Size]],Table_PI[[#This Row],[Input 1]],Table_PI[[#This Row],[Input 2]],Table_PI[[#This Row],[Input 3]],Table_PI[[#This Row],[Input 4]],'Customer Information'!$AR$12,7,ROW()),\"No Rebate\"),\"No Rebate\"),0)","v":0},{"$f":"IF(Table_PI[[#This Row],[Hide:\nFormula Name]]<>\"\",IFERROR(IF(MeasureCalc(Table_PI[[#This Row],[Hide:\nFormula Name]],Table_PI[[#This Row],[Quantity]],Table_PI[[#This Row],[List 1]],Table_PI[[#This Row],[List 2]],Table_PI[[#This Row],[List 3]],Table_PI[[#This Row],[Size]],Table_PI[[#This Row],[Input 1]],Table_PI[[#This Row],[Input 2]],Table_PI[[#This Row],[Input 3]],Table_PI[[#This Row],[Input 4]],'Customer Information'!$AR$12,1,ROW())>0,MeasureCalc(Table_PI[[#This Row],[Hide:\nFormula Name]],Table_PI[[#This Row],[Quantity]],Table_PI[[#This Row],[List 1]],Table_PI[[#This Row],[List 2]],Table_PI[[#This Row],[List 3]],Table_PI[[#This Row],[Size]],Table_PI[[#This Row],[Input 1]],Table_PI[[#This Row],[Input 2]],Table_PI[[#This Row],[Input 3]],Table_PI[[#This Row],[Input 4]],'Customer Information'!$AR$12,8,ROW()),\"No Rebate\"),\"No Rebate\"),0)","v":0},{"$f":"IF(Table_PI[[#This Row],[Hide:\nFormula Name]]<>\"\",IF(AND(Table_PI[[#This Row],[Hide:\nFormula Name]]<>\"\",OR(Table_PI[[#This Row],[Rebate]]>0,Table_PI[[#This Row],[Rebate]]=\"No Rebate\")),TRUE,\"MI: Line Item \" & $A344),\"\")","v":""}]
[{"$f":"IF(Table_PI[[#This Row],[Hide:\nFormula Name]]<>\"\",MAX($A$2:A344)+1,\"\")","v":""},null,null,null,null,null,null,null,null,null,null,null,null,null,null,{"$f":"IFERROR(VLOOKUP(Table_PI[[#This Row],[Measure]],'Equipment Lookups'!$C$3:$D$23,2,FALSE),\"\")","v":""},{"$f":"IF(Table_PI[[#This Row],[Hide:\nFormula Name]]<>\"\",IFERROR(IF(MeasureCalc(Table_PI[[#This Row],[Hide:\nFormula Name]],Table_PI[[#This Row],[Quantity]],Table_PI[[#This Row],[List 1]],Table_PI[[#This Row],[List 2]],Table_PI[[#This Row],[List 3]],Table_PI[[#This Row],[Size]],Table_PI[[#This Row],[Input 1]],Table_PI[[#This Row],[Input 2]],Table_PI[[#This Row],[Input 3]],Table_PI[[#This Row],[Input 4]],'Customer Information'!$AR$12,1,ROW())>0,MeasureCalc(Table_PI[[#This Row],[Hide:\nFormula Name]],Table_PI[[#This Row],[Quantity]],Table_PI[[#This Row],[List 1]],Table_PI[[#This Row],[List 2]],Table_PI[[#This Row],[List 3]],Table_PI[[#This Row],[Size]],Table_PI[[#This Row],[Input 1]],Table_PI[[#This Row],[Input 2]],Table_PI[[#This Row],[Input 3]],Table_PI[[#This Row],[Input 4]],'Customer Information'!$AR$12,1,ROW()),\"No Rebate\"),\"No Rebate\"),0)","v":0},{"$f":"IF(Table_PI[[#This Row],[Hide:\nFormula Name]]<>\"\",IFERROR(IF(MeasureCalc(Table_PI[[#This Row],[Hide:\nFormula Name]],Table_PI[[#This Row],[Quantity]],Table_PI[[#This Row],[List 1]],Table_PI[[#This Row],[List 2]],Table_PI[[#This Row],[List 3]],Table_PI[[#This Row],[Size]],Table_PI[[#This Row],[Input 1]],Table_PI[[#This Row],[Input 2]],Table_PI[[#This Row],[Input 3]],Table_PI[[#This Row],[Input 4]],'Customer Information'!$AR$12,1,ROW())>0,MeasureCalc(Table_PI[[#This Row],[Hide:\nFormula Name]],Table_PI[[#This Row],[Quantity]],Table_PI[[#This Row],[List 1]],Table_PI[[#This Row],[List 2]],Table_PI[[#This Row],[List 3]],Table_PI[[#This Row],[Size]],Table_PI[[#This Row],[Input 1]],Table_PI[[#This Row],[Input 2]],Table_PI[[#This Row],[Input 3]],Table_PI[[#This Row],[Input 4]],'Customer Information'!$AR$12,2,ROW()),\"No Rebate\"),\"No Rebate\"),0)","v":0},{"$f":"IF(Table_PI[[#This Row],[Hide:\nFormula Name]]<>\"\",IFERROR(IF(MeasureCalc(Table_PI[[#This Row],[Hide:\nFormula Name]],Table_PI[[#This Row],[Quantity]],Table_PI[[#This Row],[List 1]],Table_PI[[#This Row],[List 2]],Table_PI[[#This Row],[List 3]],Table_PI[[#This Row],[Size]],Table_PI[[#This Row],[Input 1]],Table_PI[[#This Row],[Input 2]],Table_PI[[#This Row],[Input 3]],Table_PI[[#This Row],[Input 4]],'Customer Information'!$AR$12,1,ROW())>0,MeasureCalc(Table_PI[[#This Row],[Hide:\nFormula Name]],Table_PI[[#This Row],[Quantity]],Table_PI[[#This Row],[List 1]],Table_PI[[#This Row],[List 2]],Table_PI[[#This Row],[List 3]],Table_PI[[#This Row],[Size]],Table_PI[[#This Row],[Input 1]],Table_PI[[#This Row],[Input 2]],Table_PI[[#This Row],[Input 3]],Table_PI[[#This Row],[Input 4]],'Customer Information'!$AR$12,3,ROW()),\"No Rebate\"),\"No Rebate\"),0)","v":0},{"$f":"IF(Table_PI[[#This Row],[Hide:\nFormula Name]]<>\"\",IFERROR(IF(MeasureCalc(Table_PI[[#This Row],[Hide:\nFormula Name]],Table_PI[[#This Row],[Quantity]],Table_PI[[#This Row],[List 1]],Table_PI[[#This Row],[List 2]],Table_PI[[#This Row],[List 3]],Table_PI[[#This Row],[Size]],Table_PI[[#This Row],[Input 1]],Table_PI[[#This Row],[Input 2]],Table_PI[[#This Row],[Input 3]],Table_PI[[#This Row],[Input 4]],'Customer Information'!$AR$12,1,ROW())>0,MeasureCalc(Table_PI[[#This Row],[Hide:\nFormula Name]],Table_PI[[#This Row],[Quantity]],Table_PI[[#This Row],[List 1]],Table_PI[[#This Row],[List 2]],Table_PI[[#This Row],[List 3]],Table_PI[[#This Row],[Size]],Table_PI[[#This Row],[Input 1]],Table_PI[[#This Row],[Input 2]],Table_PI[[#This Row],[Input 3]],Table_PI[[#This Row],[Input 4]],'Customer Information'!$AR$12,4,ROW()),\"No Rebate\"),\"No Rebate\"),0)","v":0},{"$f":"IF(Table_PI[[#This Row],[Hide:\nFormula Name]]<>\"\",IFERROR(IF(MeasureCalc(Table_PI[[#This Row],[Hide:\nFormula Name]],Table_PI[[#This Row],[Quantity]],Table_PI[[#This Row],[List 1]],Table_PI[[#This Row],[List 2]],Table_PI[[#This Row],[List 3]],Table_PI[[#This Row],[Size]],Table_PI[[#This Row],[Input 1]],Table_PI[[#This Row],[Input 2]],Table_PI[[#This Row],[Input 3]],Table_PI[[#This Row],[Input 4]],'Customer Information'!$AR$12,1,ROW())>0,MeasureCalc(Table_PI[[#This Row],[Hide:\nFormula Name]],Table_PI[[#This Row],[Quantity]],Table_PI[[#This Row],[List 1]],Table_PI[[#This Row],[List 2]],Table_PI[[#This Row],[List 3]],Table_PI[[#This Row],[Size]],Table_PI[[#This Row],[Input 1]],Table_PI[[#This Row],[Input 2]],Table_PI[[#This Row],[Input 3]],Table_PI[[#This Row],[Input 4]],'Customer Information'!$AR$12,5,ROW()),\"No Rebate\"),\"No Rebate\"),0)","v":0},{"$f":"IF(Table_PI[[#This Row],[Hide:\nFormula Name]]<>\"\",IFERROR(IF(MeasureCalc(Table_PI[[#This Row],[Hide:\nFormula Name]],Table_PI[[#This Row],[Quantity]],Table_PI[[#This Row],[List 1]],Table_PI[[#This Row],[List 2]],Table_PI[[#This Row],[List 3]],Table_PI[[#This Row],[Size]],Table_PI[[#This Row],[Input 1]],Table_PI[[#This Row],[Input 2]],Table_PI[[#This Row],[Input 3]],Table_PI[[#This Row],[Input 4]],'Customer Information'!$AR$12,1,ROW())>0,MeasureCalc(Table_PI[[#This Row],[Hide:\nFormula Name]],Table_PI[[#This Row],[Quantity]],Table_PI[[#This Row],[List 1]],Table_PI[[#This Row],[List 2]],Table_PI[[#This Row],[List 3]],Table_PI[[#This Row],[Size]],Table_PI[[#This Row],[Input 1]],Table_PI[[#This Row],[Input 2]],Table_PI[[#This Row],[Input 3]],Table_PI[[#This Row],[Input 4]],'Customer Information'!$AR$12,6,ROW()),\"No Rebate\"),\"No Rebate\"),0)","v":0},{"$f":"IF(Table_PI[[#This Row],[Hide:\nFormula Name]]<>\"\",IFERROR(IF(MeasureCalc(Table_PI[[#This Row],[Hide:\nFormula Name]],Table_PI[[#This Row],[Quantity]],Table_PI[[#This Row],[List 1]],Table_PI[[#This Row],[List 2]],Table_PI[[#This Row],[List 3]],Table_PI[[#This Row],[Size]],Table_PI[[#This Row],[Input 1]],Table_PI[[#This Row],[Input 2]],Table_PI[[#This Row],[Input 3]],Table_PI[[#This Row],[Input 4]],'Customer Information'!$AR$12,1,ROW())>0,MeasureCalc(Table_PI[[#This Row],[Hide:\nFormula Name]],Table_PI[[#This Row],[Quantity]],Table_PI[[#This Row],[List 1]],Table_PI[[#This Row],[List 2]],Table_PI[[#This Row],[List 3]],Table_PI[[#This Row],[Size]],Table_PI[[#This Row],[Input 1]],Table_PI[[#This Row],[Input 2]],Table_PI[[#This Row],[Input 3]],Table_PI[[#This Row],[Input 4]],'Customer Information'!$AR$12,7,ROW()),\"No Rebate\"),\"No Rebate\"),0)","v":0},{"$f":"IF(Table_PI[[#This Row],[Hide:\nFormula Name]]<>\"\",IFERROR(IF(MeasureCalc(Table_PI[[#This Row],[Hide:\nFormula Name]],Table_PI[[#This Row],[Quantity]],Table_PI[[#This Row],[List 1]],Table_PI[[#This Row],[List 2]],Table_PI[[#This Row],[List 3]],Table_PI[[#This Row],[Size]],Table_PI[[#This Row],[Input 1]],Table_PI[[#This Row],[Input 2]],Table_PI[[#This Row],[Input 3]],Table_PI[[#This Row],[Input 4]],'Customer Information'!$AR$12,1,ROW())>0,MeasureCalc(Table_PI[[#This Row],[Hide:\nFormula Name]],Table_PI[[#This Row],[Quantity]],Table_PI[[#This Row],[List 1]],Table_PI[[#This Row],[List 2]],Table_PI[[#This Row],[List 3]],Table_PI[[#This Row],[Size]],Table_PI[[#This Row],[Input 1]],Table_PI[[#This Row],[Input 2]],Table_PI[[#This Row],[Input 3]],Table_PI[[#This Row],[Input 4]],'Customer Information'!$AR$12,8,ROW()),\"No Rebate\"),\"No Rebate\"),0)","v":0},{"$f":"IF(Table_PI[[#This Row],[Hide:\nFormula Name]]<>\"\",IF(AND(Table_PI[[#This Row],[Hide:\nFormula Name]]<>\"\",OR(Table_PI[[#This Row],[Rebate]]>0,Table_PI[[#This Row],[Rebate]]=\"No Rebate\")),TRUE,\"MI: Line Item \" & $A345),\"\")","v":""}]
[{"$f":"IF(Table_PI[[#This Row],[Hide:\nFormula Name]]<>\"\",MAX($A$2:A345)+1,\"\")","v":""},null,null,null,null,null,null,null,null,null,null,null,null,null,null,{"$f":"IFERROR(VLOOKUP(Table_PI[[#This Row],[Measure]],'Equipment Lookups'!$C$3:$D$23,2,FALSE),\"\")","v":""},{"$f":"IF(Table_PI[[#This Row],[Hide:\nFormula Name]]<>\"\",IFERROR(IF(MeasureCalc(Table_PI[[#This Row],[Hide:\nFormula Name]],Table_PI[[#This Row],[Quantity]],Table_PI[[#This Row],[List 1]],Table_PI[[#This Row],[List 2]],Table_PI[[#This Row],[List 3]],Table_PI[[#This Row],[Size]],Table_PI[[#This Row],[Input 1]],Table_PI[[#This Row],[Input 2]],Table_PI[[#This Row],[Input 3]],Table_PI[[#This Row],[Input 4]],'Customer Information'!$AR$12,1,ROW())>0,MeasureCalc(Table_PI[[#This Row],[Hide:\nFormula Name]],Table_PI[[#This Row],[Quantity]],Table_PI[[#This Row],[List 1]],Table_PI[[#This Row],[List 2]],Table_PI[[#This Row],[List 3]],Table_PI[[#This Row],[Size]],Table_PI[[#This Row],[Input 1]],Table_PI[[#This Row],[Input 2]],Table_PI[[#This Row],[Input 3]],Table_PI[[#This Row],[Input 4]],'Customer Information'!$AR$12,1,ROW()),\"No Rebate\"),\"No Rebate\"),0)","v":0},{"$f":"IF(Table_PI[[#This Row],[Hide:\nFormula Name]]<>\"\",IFERROR(IF(MeasureCalc(Table_PI[[#This Row],[Hide:\nFormula Name]],Table_PI[[#This Row],[Quantity]],Table_PI[[#This Row],[List 1]],Table_PI[[#This Row],[List 2]],Table_PI[[#This Row],[List 3]],Table_PI[[#This Row],[Size]],Table_PI[[#This Row],[Input 1]],Table_PI[[#This Row],[Input 2]],Table_PI[[#This Row],[Input 3]],Table_PI[[#This Row],[Input 4]],'Customer Information'!$AR$12,1,ROW())>0,MeasureCalc(Table_PI[[#This Row],[Hide:\nFormula Name]],Table_PI[[#This Row],[Quantity]],Table_PI[[#This Row],[List 1]],Table_PI[[#This Row],[List 2]],Table_PI[[#This Row],[List 3]],Table_PI[[#This Row],[Size]],Table_PI[[#This Row],[Input 1]],Table_PI[[#This Row],[Input 2]],Table_PI[[#This Row],[Input 3]],Table_PI[[#This Row],[Input 4]],'Customer Information'!$AR$12,2,ROW()),\"No Rebate\"),\"No Rebate\"),0)","v":0},{"$f":"IF(Table_PI[[#This Row],[Hide:\nFormula Name]]<>\"\",IFERROR(IF(MeasureCalc(Table_PI[[#This Row],[Hide:\nFormula Name]],Table_PI[[#This Row],[Quantity]],Table_PI[[#This Row],[List 1]],Table_PI[[#This Row],[List 2]],Table_PI[[#This Row],[List 3]],Table_PI[[#This Row],[Size]],Table_PI[[#This Row],[Input 1]],Table_PI[[#This Row],[Input 2]],Table_PI[[#This Row],[Input 3]],Table_PI[[#This Row],[Input 4]],'Customer Information'!$AR$12,1,ROW())>0,MeasureCalc(Table_PI[[#This Row],[Hide:\nFormula Name]],Table_PI[[#This Row],[Quantity]],Table_PI[[#This Row],[List 1]],Table_PI[[#This Row],[List 2]],Table_PI[[#This Row],[List 3]],Table_PI[[#This Row],[Size]],Table_PI[[#This Row],[Input 1]],Table_PI[[#This Row],[Input 2]],Table_PI[[#This Row],[Input 3]],Table_PI[[#This Row],[Input 4]],'Customer Information'!$AR$12,3,ROW()),\"No Rebate\"),\"No Rebate\"),0)","v":0},{"$f":"IF(Table_PI[[#This Row],[Hide:\nFormula Name]]<>\"\",IFERROR(IF(MeasureCalc(Table_PI[[#This Row],[Hide:\nFormula Name]],Table_PI[[#This Row],[Quantity]],Table_PI[[#This Row],[List 1]],Table_PI[[#This Row],[List 2]],Table_PI[[#This Row],[List 3]],Table_PI[[#This Row],[Size]],Table_PI[[#This Row],[Input 1]],Table_PI[[#This Row],[Input 2]],Table_PI[[#This Row],[Input 3]],Table_PI[[#This Row],[Input 4]],'Customer Information'!$AR$12,1,ROW())>0,MeasureCalc(Table_PI[[#This Row],[Hide:\nFormula Name]],Table_PI[[#This Row],[Quantity]],Table_PI[[#This Row],[List 1]],Table_PI[[#This Row],[List 2]],Table_PI[[#This Row],[List 3]],Table_PI[[#This Row],[Size]],Table_PI[[#This Row],[Input 1]],Table_PI[[#This Row],[Input 2]],Table_PI[[#This Row],[Input 3]],Table_PI[[#This Row],[Input 4]],'Customer Information'!$AR$12,4,ROW()),\"No Rebate\"),\"No Rebate\"),0)","v":0},{"$f":"IF(Table_PI[[#This Row],[Hide:\nFormula Name]]<>\"\",IFERROR(IF(MeasureCalc(Table_PI[[#This Row],[Hide:\nFormula Name]],Table_PI[[#This Row],[Quantity]],Table_PI[[#This Row],[List 1]],Table_PI[[#This Row],[List 2]],Table_PI[[#This Row],[List 3]],Table_PI[[#This Row],[Size]],Table_PI[[#This Row],[Input 1]],Table_PI[[#This Row],[Input 2]],Table_PI[[#This Row],[Input 3]],Table_PI[[#This Row],[Input 4]],'Customer Information'!$AR$12,1,ROW())>0,MeasureCalc(Table_PI[[#This Row],[Hide:\nFormula Name]],Table_PI[[#This Row],[Quantity]],Table_PI[[#This Row],[List 1]],Table_PI[[#This Row],[List 2]],Table_PI[[#This Row],[List 3]],Table_PI[[#This Row],[Size]],Table_PI[[#This Row],[Input 1]],Table_PI[[#This Row],[Input 2]],Table_PI[[#This Row],[Input 3]],Table_PI[[#This Row],[Input 4]],'Customer Information'!$AR$12,5,ROW()),\"No Rebate\"),\"No Rebate\"),0)","v":0},{"$f":"IF(Table_PI[[#This Row],[Hide:\nFormula Name]]<>\"\",IFERROR(IF(MeasureCalc(Table_PI[[#This Row],[Hide:\nFormula Name]],Table_PI[[#This Row],[Quantity]],Table_PI[[#This Row],[List 1]],Table_PI[[#This Row],[List 2]],Table_PI[[#This Row],[List 3]],Table_PI[[#This Row],[Size]],Table_PI[[#This Row],[Input 1]],Table_PI[[#This Row],[Input 2]],Table_PI[[#This Row],[Input 3]],Table_PI[[#This Row],[Input 4]],'Customer Information'!$AR$12,1,ROW())>0,MeasureCalc(Table_PI[[#This Row],[Hide:\nFormula Name]],Table_PI[[#This Row],[Quantity]],Table_PI[[#This Row],[List 1]],Table_PI[[#This Row],[List 2]],Table_PI[[#This Row],[List 3]],Table_PI[[#This Row],[Size]],Table_PI[[#This Row],[Input 1]],Table_PI[[#This Row],[Input 2]],Table_PI[[#This Row],[Input 3]],Table_PI[[#This Row],[Input 4]],'Customer Information'!$AR$12,6,ROW()),\"No Rebate\"),\"No Rebate\"),0)","v":0},{"$f":"IF(Table_PI[[#This Row],[Hide:\nFormula Name]]<>\"\",IFERROR(IF(MeasureCalc(Table_PI[[#This Row],[Hide:\nFormula Name]],Table_PI[[#This Row],[Quantity]],Table_PI[[#This Row],[List 1]],Table_PI[[#This Row],[List 2]],Table_PI[[#This Row],[List 3]],Table_PI[[#This Row],[Size]],Table_PI[[#This Row],[Input 1]],Table_PI[[#This Row],[Input 2]],Table_PI[[#This Row],[Input 3]],Table_PI[[#This Row],[Input 4]],'Customer Information'!$AR$12,1,ROW())>0,MeasureCalc(Table_PI[[#This Row],[Hide:\nFormula Name]],Table_PI[[#This Row],[Quantity]],Table_PI[[#This Row],[List 1]],Table_PI[[#This Row],[List 2]],Table_PI[[#This Row],[List 3]],Table_PI[[#This Row],[Size]],Table_PI[[#This Row],[Input 1]],Table_PI[[#This Row],[Input 2]],Table_PI[[#This Row],[Input 3]],Table_PI[[#This Row],[Input 4]],'Customer Information'!$AR$12,7,ROW()),\"No Rebate\"),\"No Rebate\"),0)","v":0},{"$f":"IF(Table_PI[[#This Row],[Hide:\nFormula Name]]<>\"\",IFERROR(IF(MeasureCalc(Table_PI[[#This Row],[Hide:\nFormula Name]],Table_PI[[#This Row],[Quantity]],Table_PI[[#This Row],[List 1]],Table_PI[[#This Row],[List 2]],Table_PI[[#This Row],[List 3]],Table_PI[[#This Row],[Size]],Table_PI[[#This Row],[Input 1]],Table_PI[[#This Row],[Input 2]],Table_PI[[#This Row],[Input 3]],Table_PI[[#This Row],[Input 4]],'Customer Information'!$AR$12,1,ROW())>0,MeasureCalc(Table_PI[[#This Row],[Hide:\nFormula Name]],Table_PI[[#This Row],[Quantity]],Table_PI[[#This Row],[List 1]],Table_PI[[#This Row],[List 2]],Table_PI[[#This Row],[List 3]],Table_PI[[#This Row],[Size]],Table_PI[[#This Row],[Input 1]],Table_PI[[#This Row],[Input 2]],Table_PI[[#This Row],[Input 3]],Table_PI[[#This Row],[Input 4]],'Customer Information'!$AR$12,8,ROW()),\"No Rebate\"),\"No Rebate\"),0)","v":0},{"$f":"IF(Table_PI[[#This Row],[Hide:\nFormula Name]]<>\"\",IF(AND(Table_PI[[#This Row],[Hide:\nFormula Name]]<>\"\",OR(Table_PI[[#This Row],[Rebate]]>0,Table_PI[[#This Row],[Rebate]]=\"No Rebate\")),TRUE,\"MI: Line Item \" & $A346),\"\")","v":""}]
[{"$f":"IF(Table_PI[[#This Row],[Hide:\nFormula Name]]<>\"\",MAX($A$2:A346)+1,\"\")","v":""},null,null,null,null,null,null,null,null,null,null,null,null,null,null,{"$f":"IFERROR(VLOOKUP(Table_PI[[#This Row],[Measure]],'Equipment Lookups'!$C$3:$D$23,2,FALSE),\"\")","v":""},{"$f":"IF(Table_PI[[#This Row],[Hide:\nFormula Name]]<>\"\",IFERROR(IF(MeasureCalc(Table_PI[[#This Row],[Hide:\nFormula Name]],Table_PI[[#This Row],[Quantity]],Table_PI[[#This Row],[List 1]],Table_PI[[#This Row],[List 2]],Table_PI[[#This Row],[List 3]],Table_PI[[#This Row],[Size]],Table_PI[[#This Row],[Input 1]],Table_PI[[#This Row],[Input 2]],Table_PI[[#This Row],[Input 3]],Table_PI[[#This Row],[Input 4]],'Customer Information'!$AR$12,1,ROW())>0,MeasureCalc(Table_PI[[#This Row],[Hide:\nFormula Name]],Table_PI[[#This Row],[Quantity]],Table_PI[[#This Row],[List 1]],Table_PI[[#This Row],[List 2]],Table_PI[[#This Row],[List 3]],Table_PI[[#This Row],[Size]],Table_PI[[#This Row],[Input 1]],Table_PI[[#This Row],[Input 2]],Table_PI[[#This Row],[Input 3]],Table_PI[[#This Row],[Input 4]],'Customer Information'!$AR$12,1,ROW()),\"No Rebate\"),\"No Rebate\"),0)","v":0},{"$f":"IF(Table_PI[[#This Row],[Hide:\nFormula Name]]<>\"\",IFERROR(IF(MeasureCalc(Table_PI[[#This Row],[Hide:\nFormula Name]],Table_PI[[#This Row],[Quantity]],Table_PI[[#This Row],[List 1]],Table_PI[[#This Row],[List 2]],Table_PI[[#This Row],[List 3]],Table_PI[[#This Row],[Size]],Table_PI[[#This Row],[Input 1]],Table_PI[[#This Row],[Input 2]],Table_PI[[#This Row],[Input 3]],Table_PI[[#This Row],[Input 4]],'Customer Information'!$AR$12,1,ROW())>0,MeasureCalc(Table_PI[[#This Row],[Hide:\nFormula Name]],Table_PI[[#This Row],[Quantity]],Table_PI[[#This Row],[List 1]],Table_PI[[#This Row],[List 2]],Table_PI[[#This Row],[List 3]],Table_PI[[#This Row],[Size]],Table_PI[[#This Row],[Input 1]],Table_PI[[#This Row],[Input 2]],Table_PI[[#This Row],[Input 3]],Table_PI[[#This Row],[Input 4]],'Customer Information'!$AR$12,2,ROW()),\"No Rebate\"),\"No Rebate\"),0)","v":0},{"$f":"IF(Table_PI[[#This Row],[Hide:\nFormula Name]]<>\"\",IFERROR(IF(MeasureCalc(Table_PI[[#This Row],[Hide:\nFormula Name]],Table_PI[[#This Row],[Quantity]],Table_PI[[#This Row],[List 1]],Table_PI[[#This Row],[List 2]],Table_PI[[#This Row],[List 3]],Table_PI[[#This Row],[Size]],Table_PI[[#This Row],[Input 1]],Table_PI[[#This Row],[Input 2]],Table_PI[[#This Row],[Input 3]],Table_PI[[#This Row],[Input 4]],'Customer Information'!$AR$12,1,ROW())>0,MeasureCalc(Table_PI[[#This Row],[Hide:\nFormula Name]],Table_PI[[#This Row],[Quantity]],Table_PI[[#This Row],[List 1]],Table_PI[[#This Row],[List 2]],Table_PI[[#This Row],[List 3]],Table_PI[[#This Row],[Size]],Table_PI[[#This Row],[Input 1]],Table_PI[[#This Row],[Input 2]],Table_PI[[#This Row],[Input 3]],Table_PI[[#This Row],[Input 4]],'Customer Information'!$AR$12,3,ROW()),\"No Rebate\"),\"No Rebate\"),0)","v":0},{"$f":"IF(Table_PI[[#This Row],[Hide:\nFormula Name]]<>\"\",IFERROR(IF(MeasureCalc(Table_PI[[#This Row],[Hide:\nFormula Name]],Table_PI[[#This Row],[Quantity]],Table_PI[[#This Row],[List 1]],Table_PI[[#This Row],[List 2]],Table_PI[[#This Row],[List 3]],Table_PI[[#This Row],[Size]],Table_PI[[#This Row],[Input 1]],Table_PI[[#This Row],[Input 2]],Table_PI[[#This Row],[Input 3]],Table_PI[[#This Row],[Input 4]],'Customer Information'!$AR$12,1,ROW())>0,MeasureCalc(Table_PI[[#This Row],[Hide:\nFormula Name]],Table_PI[[#This Row],[Quantity]],Table_PI[[#This Row],[List 1]],Table_PI[[#This Row],[List 2]],Table_PI[[#This Row],[List 3]],Table_PI[[#This Row],[Size]],Table_PI[[#This Row],[Input 1]],Table_PI[[#This Row],[Input 2]],Table_PI[[#This Row],[Input 3]],Table_PI[[#This Row],[Input 4]],'Customer Information'!$AR$12,4,ROW()),\"No Rebate\"),\"No Rebate\"),0)","v":0},{"$f":"IF(Table_PI[[#This Row],[Hide:\nFormula Name]]<>\"\",IFERROR(IF(MeasureCalc(Table_PI[[#This Row],[Hide:\nFormula Name]],Table_PI[[#This Row],[Quantity]],Table_PI[[#This Row],[List 1]],Table_PI[[#This Row],[List 2]],Table_PI[[#This Row],[List 3]],Table_PI[[#This Row],[Size]],Table_PI[[#This Row],[Input 1]],Table_PI[[#This Row],[Input 2]],Table_PI[[#This Row],[Input 3]],Table_PI[[#This Row],[Input 4]],'Customer Information'!$AR$12,1,ROW())>0,MeasureCalc(Table_PI[[#This Row],[Hide:\nFormula Name]],Table_PI[[#This Row],[Quantity]],Table_PI[[#This Row],[List 1]],Table_PI[[#This Row],[List 2]],Table_PI[[#This Row],[List 3]],Table_PI[[#This Row],[Size]],Table_PI[[#This Row],[Input 1]],Table_PI[[#This Row],[Input 2]],Table_PI[[#This Row],[Input 3]],Table_PI[[#This Row],[Input 4]],'Customer Information'!$AR$12,5,ROW()),\"No Rebate\"),\"No Rebate\"),0)","v":0},{"$f":"IF(Table_PI[[#This Row],[Hide:\nFormula Name]]<>\"\",IFERROR(IF(MeasureCalc(Table_PI[[#This Row],[Hide:\nFormula Name]],Table_PI[[#This Row],[Quantity]],Table_PI[[#This Row],[List 1]],Table_PI[[#This Row],[List 2]],Table_PI[[#This Row],[List 3]],Table_PI[[#This Row],[Size]],Table_PI[[#This Row],[Input 1]],Table_PI[[#This Row],[Input 2]],Table_PI[[#This Row],[Input 3]],Table_PI[[#This Row],[Input 4]],'Customer Information'!$AR$12,1,ROW())>0,MeasureCalc(Table_PI[[#This Row],[Hide:\nFormula Name]],Table_PI[[#This Row],[Quantity]],Table_PI[[#This Row],[List 1]],Table_PI[[#This Row],[List 2]],Table_PI[[#This Row],[List 3]],Table_PI[[#This Row],[Size]],Table_PI[[#This Row],[Input 1]],Table_PI[[#This Row],[Input 2]],Table_PI[[#This Row],[Input 3]],Table_PI[[#This Row],[Input 4]],'Customer Information'!$AR$12,6,ROW()),\"No Rebate\"),\"No Rebate\"),0)","v":0},{"$f":"IF(Table_PI[[#This Row],[Hide:\nFormula Name]]<>\"\",IFERROR(IF(MeasureCalc(Table_PI[[#This Row],[Hide:\nFormula Name]],Table_PI[[#This Row],[Quantity]],Table_PI[[#This Row],[List 1]],Table_PI[[#This Row],[List 2]],Table_PI[[#This Row],[List 3]],Table_PI[[#This Row],[Size]],Table_PI[[#This Row],[Input 1]],Table_PI[[#This Row],[Input 2]],Table_PI[[#This Row],[Input 3]],Table_PI[[#This Row],[Input 4]],'Customer Information'!$AR$12,1,ROW())>0,MeasureCalc(Table_PI[[#This Row],[Hide:\nFormula Name]],Table_PI[[#This Row],[Quantity]],Table_PI[[#This Row],[List 1]],Table_PI[[#This Row],[List 2]],Table_PI[[#This Row],[List 3]],Table_PI[[#This Row],[Size]],Table_PI[[#This Row],[Input 1]],Table_PI[[#This Row],[Input 2]],Table_PI[[#This Row],[Input 3]],Table_PI[[#This Row],[Input 4]],'Customer Information'!$AR$12,7,ROW()),\"No Rebate\"),\"No Rebate\"),0)","v":0},{"$f":"IF(Table_PI[[#This Row],[Hide:\nFormula Name]]<>\"\",IFERROR(IF(MeasureCalc(Table_PI[[#This Row],[Hide:\nFormula Name]],Table_PI[[#This Row],[Quantity]],Table_PI[[#This Row],[List 1]],Table_PI[[#This Row],[List 2]],Table_PI[[#This Row],[List 3]],Table_PI[[#This Row],[Size]],Table_PI[[#This Row],[Input 1]],Table_PI[[#This Row],[Input 2]],Table_PI[[#This Row],[Input 3]],Table_PI[[#This Row],[Input 4]],'Customer Information'!$AR$12,1,ROW())>0,MeasureCalc(Table_PI[[#This Row],[Hide:\nFormula Name]],Table_PI[[#This Row],[Quantity]],Table_PI[[#This Row],[List 1]],Table_PI[[#This Row],[List 2]],Table_PI[[#This Row],[List 3]],Table_PI[[#This Row],[Size]],Table_PI[[#This Row],[Input 1]],Table_PI[[#This Row],[Input 2]],Table_PI[[#This Row],[Input 3]],Table_PI[[#This Row],[Input 4]],'Customer Information'!$AR$12,8,ROW()),\"No Rebate\"),\"No Rebate\"),0)","v":0},{"$f":"IF(Table_PI[[#This Row],[Hide:\nFormula Name]]<>\"\",IF(AND(Table_PI[[#This Row],[Hide:\nFormula Name]]<>\"\",OR(Table_PI[[#This Row],[Rebate]]>0,Table_PI[[#This Row],[Rebate]]=\"No Rebate\")),TRUE,\"MI: Line Item \" & $A347),\"\")","v":""}]
[{"$f":"IF(Table_PI[[#This Row],[Hide:\nFormula Name]]<>\"\",MAX($A$2:A347)+1,\"\")","v":""},null,null,null,null,null,null,null,null,null,null,null,null,null,null,{"$f":"IFERROR(VLOOKUP(Table_PI[[#This Row],[Measure]],'Equipment Lookups'!$C$3:$D$23,2,FALSE),\"\")","v":""},{"$f":"IF(Table_PI[[#This Row],[Hide:\nFormula Name]]<>\"\",IFERROR(IF(MeasureCalc(Table_PI[[#This Row],[Hide:\nFormula Name]],Table_PI[[#This Row],[Quantity]],Table_PI[[#This Row],[List 1]],Table_PI[[#This Row],[List 2]],Table_PI[[#This Row],[List 3]],Table_PI[[#This Row],[Size]],Table_PI[[#This Row],[Input 1]],Table_PI[[#This Row],[Input 2]],Table_PI[[#This Row],[Input 3]],Table_PI[[#This Row],[Input 4]],'Customer Information'!$AR$12,1,ROW())>0,MeasureCalc(Table_PI[[#This Row],[Hide:\nFormula Name]],Table_PI[[#This Row],[Quantity]],Table_PI[[#This Row],[List 1]],Table_PI[[#This Row],[List 2]],Table_PI[[#This Row],[List 3]],Table_PI[[#This Row],[Size]],Table_PI[[#This Row],[Input 1]],Table_PI[[#This Row],[Input 2]],Table_PI[[#This Row],[Input 3]],Table_PI[[#This Row],[Input 4]],'Customer Information'!$AR$12,1,ROW()),\"No Rebate\"),\"No Rebate\"),0)","v":0},{"$f":"IF(Table_PI[[#This Row],[Hide:\nFormula Name]]<>\"\",IFERROR(IF(MeasureCalc(Table_PI[[#This Row],[Hide:\nFormula Name]],Table_PI[[#This Row],[Quantity]],Table_PI[[#This Row],[List 1]],Table_PI[[#This Row],[List 2]],Table_PI[[#This Row],[List 3]],Table_PI[[#This Row],[Size]],Table_PI[[#This Row],[Input 1]],Table_PI[[#This Row],[Input 2]],Table_PI[[#This Row],[Input 3]],Table_PI[[#This Row],[Input 4]],'Customer Information'!$AR$12,1,ROW())>0,MeasureCalc(Table_PI[[#This Row],[Hide:\nFormula Name]],Table_PI[[#This Row],[Quantity]],Table_PI[[#This Row],[List 1]],Table_PI[[#This Row],[List 2]],Table_PI[[#This Row],[List 3]],Table_PI[[#This Row],[Size]],Table_PI[[#This Row],[Input 1]],Table_PI[[#This Row],[Input 2]],Table_PI[[#This Row],[Input 3]],Table_PI[[#This Row],[Input 4]],'Customer Information'!$AR$12,2,ROW()),\"No Rebate\"),\"No Rebate\"),0)","v":0},{"$f":"IF(Table_PI[[#This Row],[Hide:\nFormula Name]]<>\"\",IFERROR(IF(MeasureCalc(Table_PI[[#This Row],[Hide:\nFormula Name]],Table_PI[[#This Row],[Quantity]],Table_PI[[#This Row],[List 1]],Table_PI[[#This Row],[List 2]],Table_PI[[#This Row],[List 3]],Table_PI[[#This Row],[Size]],Table_PI[[#This Row],[Input 1]],Table_PI[[#This Row],[Input 2]],Table_PI[[#This Row],[Input 3]],Table_PI[[#This Row],[Input 4]],'Customer Information'!$AR$12,1,ROW())>0,MeasureCalc(Table_PI[[#This Row],[Hide:\nFormula Name]],Table_PI[[#This Row],[Quantity]],Table_PI[[#This Row],[List 1]],Table_PI[[#This Row],[List 2]],Table_PI[[#This Row],[List 3]],Table_PI[[#This Row],[Size]],Table_PI[[#This Row],[Input 1]],Table_PI[[#This Row],[Input 2]],Table_PI[[#This Row],[Input 3]],Table_PI[[#This Row],[Input 4]],'Customer Information'!$AR$12,3,ROW()),\"No Rebate\"),\"No Rebate\"),0)","v":0},{"$f":"IF(Table_PI[[#This Row],[Hide:\nFormula Name]]<>\"\",IFERROR(IF(MeasureCalc(Table_PI[[#This Row],[Hide:\nFormula Name]],Table_PI[[#This Row],[Quantity]],Table_PI[[#This Row],[List 1]],Table_PI[[#This Row],[List 2]],Table_PI[[#This Row],[List 3]],Table_PI[[#This Row],[Size]],Table_PI[[#This Row],[Input 1]],Table_PI[[#This Row],[Input 2]],Table_PI[[#This Row],[Input 3]],Table_PI[[#This Row],[Input 4]],'Customer Information'!$AR$12,1,ROW())>0,MeasureCalc(Table_PI[[#This Row],[Hide:\nFormula Name]],Table_PI[[#This Row],[Quantity]],Table_PI[[#This Row],[List 1]],Table_PI[[#This Row],[List 2]],Table_PI[[#This Row],[List 3]],Table_PI[[#This Row],[Size]],Table_PI[[#This Row],[Input 1]],Table_PI[[#This Row],[Input 2]],Table_PI[[#This Row],[Input 3]],Table_PI[[#This Row],[Input 4]],'Customer Information'!$AR$12,4,ROW()),\"No Rebate\"),\"No Rebate\"),0)","v":0},{"$f":"IF(Table_PI[[#This Row],[Hide:\nFormula Name]]<>\"\",IFERROR(IF(MeasureCalc(Table_PI[[#This Row],[Hide:\nFormula Name]],Table_PI[[#This Row],[Quantity]],Table_PI[[#This Row],[List 1]],Table_PI[[#This Row],[List 2]],Table_PI[[#This Row],[List 3]],Table_PI[[#This Row],[Size]],Table_PI[[#This Row],[Input 1]],Table_PI[[#This Row],[Input 2]],Table_PI[[#This Row],[Input 3]],Table_PI[[#This Row],[Input 4]],'Customer Information'!$AR$12,1,ROW())>0,MeasureCalc(Table_PI[[#This Row],[Hide:\nFormula Name]],Table_PI[[#This Row],[Quantity]],Table_PI[[#This Row],[List 1]],Table_PI[[#This Row],[List 2]],Table_PI[[#This Row],[List 3]],Table_PI[[#This Row],[Size]],Table_PI[[#This Row],[Input 1]],Table_PI[[#This Row],[Input 2]],Table_PI[[#This Row],[Input 3]],Table_PI[[#This Row],[Input 4]],'Customer Information'!$AR$12,5,ROW()),\"No Rebate\"),\"No Rebate\"),0)","v":0},{"$f":"IF(Table_PI[[#This Row],[Hide:\nFormula Name]]<>\"\",IFERROR(IF(MeasureCalc(Table_PI[[#This Row],[Hide:\nFormula Name]],Table_PI[[#This Row],[Quantity]],Table_PI[[#This Row],[List 1]],Table_PI[[#This Row],[List 2]],Table_PI[[#This Row],[List 3]],Table_PI[[#This Row],[Size]],Table_PI[[#This Row],[Input 1]],Table_PI[[#This Row],[Input 2]],Table_PI[[#This Row],[Input 3]],Table_PI[[#This Row],[Input 4]],'Customer Information'!$AR$12,1,ROW())>0,MeasureCalc(Table_PI[[#This Row],[Hide:\nFormula Name]],Table_PI[[#This Row],[Quantity]],Table_PI[[#This Row],[List 1]],Table_PI[[#This Row],[List 2]],Table_PI[[#This Row],[List 3]],Table_PI[[#This Row],[Size]],Table_PI[[#This Row],[Input 1]],Table_PI[[#This Row],[Input 2]],Table_PI[[#This Row],[Input 3]],Table_PI[[#This Row],[Input 4]],'Customer Information'!$AR$12,6,ROW()),\"No Rebate\"),\"No Rebate\"),0)","v":0},{"$f":"IF(Table_PI[[#This Row],[Hide:\nFormula Name]]<>\"\",IFERROR(IF(MeasureCalc(Table_PI[[#This Row],[Hide:\nFormula Name]],Table_PI[[#This Row],[Quantity]],Table_PI[[#This Row],[List 1]],Table_PI[[#This Row],[List 2]],Table_PI[[#This Row],[List 3]],Table_PI[[#This Row],[Size]],Table_PI[[#This Row],[Input 1]],Table_PI[[#This Row],[Input 2]],Table_PI[[#This Row],[Input 3]],Table_PI[[#This Row],[Input 4]],'Customer Information'!$AR$12,1,ROW())>0,MeasureCalc(Table_PI[[#This Row],[Hide:\nFormula Name]],Table_PI[[#This Row],[Quantity]],Table_PI[[#This Row],[List 1]],Table_PI[[#This Row],[List 2]],Table_PI[[#This Row],[List 3]],Table_PI[[#This Row],[Size]],Table_PI[[#This Row],[Input 1]],Table_PI[[#This Row],[Input 2]],Table_PI[[#This Row],[Input 3]],Table_PI[[#This Row],[Input 4]],'Customer Information'!$AR$12,7,ROW()),\"No Rebate\"),\"No Rebate\"),0)","v":0},{"$f":"IF(Table_PI[[#This Row],[Hide:\nFormula Name]]<>\"\",IFERROR(IF(MeasureCalc(Table_PI[[#This Row],[Hide:\nFormula Name]],Table_PI[[#This Row],[Quantity]],Table_PI[[#This Row],[List 1]],Table_PI[[#This Row],[List 2]],Table_PI[[#This Row],[List 3]],Table_PI[[#This Row],[Size]],Table_PI[[#This Row],[Input 1]],Table_PI[[#This Row],[Input 2]],Table_PI[[#This Row],[Input 3]],Table_PI[[#This Row],[Input 4]],'Customer Information'!$AR$12,1,ROW())>0,MeasureCalc(Table_PI[[#This Row],[Hide:\nFormula Name]],Table_PI[[#This Row],[Quantity]],Table_PI[[#This Row],[List 1]],Table_PI[[#This Row],[List 2]],Table_PI[[#This Row],[List 3]],Table_PI[[#This Row],[Size]],Table_PI[[#This Row],[Input 1]],Table_PI[[#This Row],[Input 2]],Table_PI[[#This Row],[Input 3]],Table_PI[[#This Row],[Input 4]],'Customer Information'!$AR$12,8,ROW()),\"No Rebate\"),\"No Rebate\"),0)","v":0},{"$f":"IF(Table_PI[[#This Row],[Hide:\nFormula Name]]<>\"\",IF(AND(Table_PI[[#This Row],[Hide:\nFormula Name]]<>\"\",OR(Table_PI[[#This Row],[Rebate]]>0,Table_PI[[#This Row],[Rebate]]=\"No Rebate\")),TRUE,\"MI: Line Item \" & $A348),\"\")","v":""}]
[{"$f":"IF(Table_PI[[#This Row],[Hide:\nFormula Name]]<>\"\",MAX($A$2:A348)+1,\"\")","v":""},null,null,null,null,null,null,null,null,null,null,null,null,null,null,{"$f":"IFERROR(VLOOKUP(Table_PI[[#This Row],[Measure]],'Equipment Lookups'!$C$3:$D$23,2,FALSE),\"\")","v":""},{"$f":"IF(Table_PI[[#This Row],[Hide:\nFormula Name]]<>\"\",IFERROR(IF(MeasureCalc(Table_PI[[#This Row],[Hide:\nFormula Name]],Table_PI[[#This Row],[Quantity]],Table_PI[[#This Row],[List 1]],Table_PI[[#This Row],[List 2]],Table_PI[[#This Row],[List 3]],Table_PI[[#This Row],[Size]],Table_PI[[#This Row],[Input 1]],Table_PI[[#This Row],[Input 2]],Table_PI[[#This Row],[Input 3]],Table_PI[[#This Row],[Input 4]],'Customer Information'!$AR$12,1,ROW())>0,MeasureCalc(Table_PI[[#This Row],[Hide:\nFormula Name]],Table_PI[[#This Row],[Quantity]],Table_PI[[#This Row],[List 1]],Table_PI[[#This Row],[List 2]],Table_PI[[#This Row],[List 3]],Table_PI[[#This Row],[Size]],Table_PI[[#This Row],[Input 1]],Table_PI[[#This Row],[Input 2]],Table_PI[[#This Row],[Input 3]],Table_PI[[#This Row],[Input 4]],'Customer Information'!$AR$12,1,ROW()),\"No Rebate\"),\"No Rebate\"),0)","v":0},{"$f":"IF(Table_PI[[#This Row],[Hide:\nFormula Name]]<>\"\",IFERROR(IF(MeasureCalc(Table_PI[[#This Row],[Hide:\nFormula Name]],Table_PI[[#This Row],[Quantity]],Table_PI[[#This Row],[List 1]],Table_PI[[#This Row],[List 2]],Table_PI[[#This Row],[List 3]],Table_PI[[#This Row],[Size]],Table_PI[[#This Row],[Input 1]],Table_PI[[#This Row],[Input 2]],Table_PI[[#This Row],[Input 3]],Table_PI[[#This Row],[Input 4]],'Customer Information'!$AR$12,1,ROW())>0,MeasureCalc(Table_PI[[#This Row],[Hide:\nFormula Name]],Table_PI[[#This Row],[Quantity]],Table_PI[[#This Row],[List 1]],Table_PI[[#This Row],[List 2]],Table_PI[[#This Row],[List 3]],Table_PI[[#This Row],[Size]],Table_PI[[#This Row],[Input 1]],Table_PI[[#This Row],[Input 2]],Table_PI[[#This Row],[Input 3]],Table_PI[[#This Row],[Input 4]],'Customer Information'!$AR$12,2,ROW()),\"No Rebate\"),\"No Rebate\"),0)","v":0},{"$f":"IF(Table_PI[[#This Row],[Hide:\nFormula Name]]<>\"\",IFERROR(IF(MeasureCalc(Table_PI[[#This Row],[Hide:\nFormula Name]],Table_PI[[#This Row],[Quantity]],Table_PI[[#This Row],[List 1]],Table_PI[[#This Row],[List 2]],Table_PI[[#This Row],[List 3]],Table_PI[[#This Row],[Size]],Table_PI[[#This Row],[Input 1]],Table_PI[[#This Row],[Input 2]],Table_PI[[#This Row],[Input 3]],Table_PI[[#This Row],[Input 4]],'Customer Information'!$AR$12,1,ROW())>0,MeasureCalc(Table_PI[[#This Row],[Hide:\nFormula Name]],Table_PI[[#This Row],[Quantity]],Table_PI[[#This Row],[List 1]],Table_PI[[#This Row],[List 2]],Table_PI[[#This Row],[List 3]],Table_PI[[#This Row],[Size]],Table_PI[[#This Row],[Input 1]],Table_PI[[#This Row],[Input 2]],Table_PI[[#This Row],[Input 3]],Table_PI[[#This Row],[Input 4]],'Customer Information'!$AR$12,3,ROW()),\"No Rebate\"),\"No Rebate\"),0)","v":0},{"$f":"IF(Table_PI[[#This Row],[Hide:\nFormula Name]]<>\"\",IFERROR(IF(MeasureCalc(Table_PI[[#This Row],[Hide:\nFormula Name]],Table_PI[[#This Row],[Quantity]],Table_PI[[#This Row],[List 1]],Table_PI[[#This Row],[List 2]],Table_PI[[#This Row],[List 3]],Table_PI[[#This Row],[Size]],Table_PI[[#This Row],[Input 1]],Table_PI[[#This Row],[Input 2]],Table_PI[[#This Row],[Input 3]],Table_PI[[#This Row],[Input 4]],'Customer Information'!$AR$12,1,ROW())>0,MeasureCalc(Table_PI[[#This Row],[Hide:\nFormula Name]],Table_PI[[#This Row],[Quantity]],Table_PI[[#This Row],[List 1]],Table_PI[[#This Row],[List 2]],Table_PI[[#This Row],[List 3]],Table_PI[[#This Row],[Size]],Table_PI[[#This Row],[Input 1]],Table_PI[[#This Row],[Input 2]],Table_PI[[#This Row],[Input 3]],Table_PI[[#This Row],[Input 4]],'Customer Information'!$AR$12,4,ROW()),\"No Rebate\"),\"No Rebate\"),0)","v":0},{"$f":"IF(Table_PI[[#This Row],[Hide:\nFormula Name]]<>\"\",IFERROR(IF(MeasureCalc(Table_PI[[#This Row],[Hide:\nFormula Name]],Table_PI[[#This Row],[Quantity]],Table_PI[[#This Row],[List 1]],Table_PI[[#This Row],[List 2]],Table_PI[[#This Row],[List 3]],Table_PI[[#This Row],[Size]],Table_PI[[#This Row],[Input 1]],Table_PI[[#This Row],[Input 2]],Table_PI[[#This Row],[Input 3]],Table_PI[[#This Row],[Input 4]],'Customer Information'!$AR$12,1,ROW())>0,MeasureCalc(Table_PI[[#This Row],[Hide:\nFormula Name]],Table_PI[[#This Row],[Quantity]],Table_PI[[#This Row],[List 1]],Table_PI[[#This Row],[List 2]],Table_PI[[#This Row],[List 3]],Table_PI[[#This Row],[Size]],Table_PI[[#This Row],[Input 1]],Table_PI[[#This Row],[Input 2]],Table_PI[[#This Row],[Input 3]],Table_PI[[#This Row],[Input 4]],'Customer Information'!$AR$12,5,ROW()),\"No Rebate\"),\"No Rebate\"),0)","v":0},{"$f":"IF(Table_PI[[#This Row],[Hide:\nFormula Name]]<>\"\",IFERROR(IF(MeasureCalc(Table_PI[[#This Row],[Hide:\nFormula Name]],Table_PI[[#This Row],[Quantity]],Table_PI[[#This Row],[List 1]],Table_PI[[#This Row],[List 2]],Table_PI[[#This Row],[List 3]],Table_PI[[#This Row],[Size]],Table_PI[[#This Row],[Input 1]],Table_PI[[#This Row],[Input 2]],Table_PI[[#This Row],[Input 3]],Table_PI[[#This Row],[Input 4]],'Customer Information'!$AR$12,1,ROW())>0,MeasureCalc(Table_PI[[#This Row],[Hide:\nFormula Name]],Table_PI[[#This Row],[Quantity]],Table_PI[[#This Row],[List 1]],Table_PI[[#This Row],[List 2]],Table_PI[[#This Row],[List 3]],Table_PI[[#This Row],[Size]],Table_PI[[#This Row],[Input 1]],Table_PI[[#This Row],[Input 2]],Table_PI[[#This Row],[Input 3]],Table_PI[[#This Row],[Input 4]],'Customer Information'!$AR$12,6,ROW()),\"No Rebate\"),\"No Rebate\"),0)","v":0},{"$f":"IF(Table_PI[[#This Row],[Hide:\nFormula Name]]<>\"\",IFERROR(IF(MeasureCalc(Table_PI[[#This Row],[Hide:\nFormula Name]],Table_PI[[#This Row],[Quantity]],Table_PI[[#This Row],[List 1]],Table_PI[[#This Row],[List 2]],Table_PI[[#This Row],[List 3]],Table_PI[[#This Row],[Size]],Table_PI[[#This Row],[Input 1]],Table_PI[[#This Row],[Input 2]],Table_PI[[#This Row],[Input 3]],Table_PI[[#This Row],[Input 4]],'Customer Information'!$AR$12,1,ROW())>0,MeasureCalc(Table_PI[[#This Row],[Hide:\nFormula Name]],Table_PI[[#This Row],[Quantity]],Table_PI[[#This Row],[List 1]],Table_PI[[#This Row],[List 2]],Table_PI[[#This Row],[List 3]],Table_PI[[#This Row],[Size]],Table_PI[[#This Row],[Input 1]],Table_PI[[#This Row],[Input 2]],Table_PI[[#This Row],[Input 3]],Table_PI[[#This Row],[Input 4]],'Customer Information'!$AR$12,7,ROW()),\"No Rebate\"),\"No Rebate\"),0)","v":0},{"$f":"IF(Table_PI[[#This Row],[Hide:\nFormula Name]]<>\"\",IFERROR(IF(MeasureCalc(Table_PI[[#This Row],[Hide:\nFormula Name]],Table_PI[[#This Row],[Quantity]],Table_PI[[#This Row],[List 1]],Table_PI[[#This Row],[List 2]],Table_PI[[#This Row],[List 3]],Table_PI[[#This Row],[Size]],Table_PI[[#This Row],[Input 1]],Table_PI[[#This Row],[Input 2]],Table_PI[[#This Row],[Input 3]],Table_PI[[#This Row],[Input 4]],'Customer Information'!$AR$12,1,ROW())>0,MeasureCalc(Table_PI[[#This Row],[Hide:\nFormula Name]],Table_PI[[#This Row],[Quantity]],Table_PI[[#This Row],[List 1]],Table_PI[[#This Row],[List 2]],Table_PI[[#This Row],[List 3]],Table_PI[[#This Row],[Size]],Table_PI[[#This Row],[Input 1]],Table_PI[[#This Row],[Input 2]],Table_PI[[#This Row],[Input 3]],Table_PI[[#This Row],[Input 4]],'Customer Information'!$AR$12,8,ROW()),\"No Rebate\"),\"No Rebate\"),0)","v":0},{"$f":"IF(Table_PI[[#This Row],[Hide:\nFormula Name]]<>\"\",IF(AND(Table_PI[[#This Row],[Hide:\nFormula Name]]<>\"\",OR(Table_PI[[#This Row],[Rebate]]>0,Table_PI[[#This Row],[Rebate]]=\"No Rebate\")),TRUE,\"MI: Line Item \" & $A349),\"\")","v":""}]
[{"$f":"IF(Table_PI[[#This Row],[Hide:\nFormula Name]]<>\"\",MAX($A$2:A349)+1,\"\")","v":""},null,null,null,null,null,null,null,null,null,null,null,null,null,null,{"$f":"IFERROR(VLOOKUP(Table_PI[[#This Row],[Measure]],'Equipment Lookups'!$C$3:$D$23,2,FALSE),\"\")","v":""},{"$f":"IF(Table_PI[[#This Row],[Hide:\nFormula Name]]<>\"\",IFERROR(IF(MeasureCalc(Table_PI[[#This Row],[Hide:\nFormula Name]],Table_PI[[#This Row],[Quantity]],Table_PI[[#This Row],[List 1]],Table_PI[[#This Row],[List 2]],Table_PI[[#This Row],[List 3]],Table_PI[[#This Row],[Size]],Table_PI[[#This Row],[Input 1]],Table_PI[[#This Row],[Input 2]],Table_PI[[#This Row],[Input 3]],Table_PI[[#This Row],[Input 4]],'Customer Information'!$AR$12,1,ROW())>0,MeasureCalc(Table_PI[[#This Row],[Hide:\nFormula Name]],Table_PI[[#This Row],[Quantity]],Table_PI[[#This Row],[List 1]],Table_PI[[#This Row],[List 2]],Table_PI[[#This Row],[List 3]],Table_PI[[#This Row],[Size]],Table_PI[[#This Row],[Input 1]],Table_PI[[#This Row],[Input 2]],Table_PI[[#This Row],[Input 3]],Table_PI[[#This Row],[Input 4]],'Customer Information'!$AR$12,1,ROW()),\"No Rebate\"),\"No Rebate\"),0)","v":0},{"$f":"IF(Table_PI[[#This Row],[Hide:\nFormula Name]]<>\"\",IFERROR(IF(MeasureCalc(Table_PI[[#This Row],[Hide:\nFormula Name]],Table_PI[[#This Row],[Quantity]],Table_PI[[#This Row],[List 1]],Table_PI[[#This Row],[List 2]],Table_PI[[#This Row],[List 3]],Table_PI[[#This Row],[Size]],Table_PI[[#This Row],[Input 1]],Table_PI[[#This Row],[Input 2]],Table_PI[[#This Row],[Input 3]],Table_PI[[#This Row],[Input 4]],'Customer Information'!$AR$12,1,ROW())>0,MeasureCalc(Table_PI[[#This Row],[Hide:\nFormula Name]],Table_PI[[#This Row],[Quantity]],Table_PI[[#This Row],[List 1]],Table_PI[[#This Row],[List 2]],Table_PI[[#This Row],[List 3]],Table_PI[[#This Row],[Size]],Table_PI[[#This Row],[Input 1]],Table_PI[[#This Row],[Input 2]],Table_PI[[#This Row],[Input 3]],Table_PI[[#This Row],[Input 4]],'Customer Information'!$AR$12,2,ROW()),\"No Rebate\"),\"No Rebate\"),0)","v":0},{"$f":"IF(Table_PI[[#This Row],[Hide:\nFormula Name]]<>\"\",IFERROR(IF(MeasureCalc(Table_PI[[#This Row],[Hide:\nFormula Name]],Table_PI[[#This Row],[Quantity]],Table_PI[[#This Row],[List 1]],Table_PI[[#This Row],[List 2]],Table_PI[[#This Row],[List 3]],Table_PI[[#This Row],[Size]],Table_PI[[#This Row],[Input 1]],Table_PI[[#This Row],[Input 2]],Table_PI[[#This Row],[Input 3]],Table_PI[[#This Row],[Input 4]],'Customer Information'!$AR$12,1,ROW())>0,MeasureCalc(Table_PI[[#This Row],[Hide:\nFormula Name]],Table_PI[[#This Row],[Quantity]],Table_PI[[#This Row],[List 1]],Table_PI[[#This Row],[List 2]],Table_PI[[#This Row],[List 3]],Table_PI[[#This Row],[Size]],Table_PI[[#This Row],[Input 1]],Table_PI[[#This Row],[Input 2]],Table_PI[[#This Row],[Input 3]],Table_PI[[#This Row],[Input 4]],'Customer Information'!$AR$12,3,ROW()),\"No Rebate\"),\"No Rebate\"),0)","v":0},{"$f":"IF(Table_PI[[#This Row],[Hide:\nFormula Name]]<>\"\",IFERROR(IF(MeasureCalc(Table_PI[[#This Row],[Hide:\nFormula Name]],Table_PI[[#This Row],[Quantity]],Table_PI[[#This Row],[List 1]],Table_PI[[#This Row],[List 2]],Table_PI[[#This Row],[List 3]],Table_PI[[#This Row],[Size]],Table_PI[[#This Row],[Input 1]],Table_PI[[#This Row],[Input 2]],Table_PI[[#This Row],[Input 3]],Table_PI[[#This Row],[Input 4]],'Customer Information'!$AR$12,1,ROW())>0,MeasureCalc(Table_PI[[#This Row],[Hide:\nFormula Name]],Table_PI[[#This Row],[Quantity]],Table_PI[[#This Row],[List 1]],Table_PI[[#This Row],[List 2]],Table_PI[[#This Row],[List 3]],Table_PI[[#This Row],[Size]],Table_PI[[#This Row],[Input 1]],Table_PI[[#This Row],[Input 2]],Table_PI[[#This Row],[Input 3]],Table_PI[[#This Row],[Input 4]],'Customer Information'!$AR$12,4,ROW()),\"No Rebate\"),\"No Rebate\"),0)","v":0},{"$f":"IF(Table_PI[[#This Row],[Hide:\nFormula Name]]<>\"\",IFERROR(IF(MeasureCalc(Table_PI[[#This Row],[Hide:\nFormula Name]],Table_PI[[#This Row],[Quantity]],Table_PI[[#This Row],[List 1]],Table_PI[[#This Row],[List 2]],Table_PI[[#This Row],[List 3]],Table_PI[[#This Row],[Size]],Table_PI[[#This Row],[Input 1]],Table_PI[[#This Row],[Input 2]],Table_PI[[#This Row],[Input 3]],Table_PI[[#This Row],[Input 4]],'Customer Information'!$AR$12,1,ROW())>0,MeasureCalc(Table_PI[[#This Row],[Hide:\nFormula Name]],Table_PI[[#This Row],[Quantity]],Table_PI[[#This Row],[List 1]],Table_PI[[#This Row],[List 2]],Table_PI[[#This Row],[List 3]],Table_PI[[#This Row],[Size]],Table_PI[[#This Row],[Input 1]],Table_PI[[#This Row],[Input 2]],Table_PI[[#This Row],[Input 3]],Table_PI[[#This Row],[Input 4]],'Customer Information'!$AR$12,5,ROW()),\"No Rebate\"),\"No Rebate\"),0)","v":0},{"$f":"IF(Table_PI[[#This Row],[Hide:\nFormula Name]]<>\"\",IFERROR(IF(MeasureCalc(Table_PI[[#This Row],[Hide:\nFormula Name]],Table_PI[[#This Row],[Quantity]],Table_PI[[#This Row],[List 1]],Table_PI[[#This Row],[List 2]],Table_PI[[#This Row],[List 3]],Table_PI[[#This Row],[Size]],Table_PI[[#This Row],[Input 1]],Table_PI[[#This Row],[Input 2]],Table_PI[[#This Row],[Input 3]],Table_PI[[#This Row],[Input 4]],'Customer Information'!$AR$12,1,ROW())>0,MeasureCalc(Table_PI[[#This Row],[Hide:\nFormula Name]],Table_PI[[#This Row],[Quantity]],Table_PI[[#This Row],[List 1]],Table_PI[[#This Row],[List 2]],Table_PI[[#This Row],[List 3]],Table_PI[[#This Row],[Size]],Table_PI[[#This Row],[Input 1]],Table_PI[[#This Row],[Input 2]],Table_PI[[#This Row],[Input 3]],Table_PI[[#This Row],[Input 4]],'Customer Information'!$AR$12,6,ROW()),\"No Rebate\"),\"No Rebate\"),0)","v":0},{"$f":"IF(Table_PI[[#This Row],[Hide:\nFormula Name]]<>\"\",IFERROR(IF(MeasureCalc(Table_PI[[#This Row],[Hide:\nFormula Name]],Table_PI[[#This Row],[Quantity]],Table_PI[[#This Row],[List 1]],Table_PI[[#This Row],[List 2]],Table_PI[[#This Row],[List 3]],Table_PI[[#This Row],[Size]],Table_PI[[#This Row],[Input 1]],Table_PI[[#This Row],[Input 2]],Table_PI[[#This Row],[Input 3]],Table_PI[[#This Row],[Input 4]],'Customer Information'!$AR$12,1,ROW())>0,MeasureCalc(Table_PI[[#This Row],[Hide:\nFormula Name]],Table_PI[[#This Row],[Quantity]],Table_PI[[#This Row],[List 1]],Table_PI[[#This Row],[List 2]],Table_PI[[#This Row],[List 3]],Table_PI[[#This Row],[Size]],Table_PI[[#This Row],[Input 1]],Table_PI[[#This Row],[Input 2]],Table_PI[[#This Row],[Input 3]],Table_PI[[#This Row],[Input 4]],'Customer Information'!$AR$12,7,ROW()),\"No Rebate\"),\"No Rebate\"),0)","v":0},{"$f":"IF(Table_PI[[#This Row],[Hide:\nFormula Name]]<>\"\",IFERROR(IF(MeasureCalc(Table_PI[[#This Row],[Hide:\nFormula Name]],Table_PI[[#This Row],[Quantity]],Table_PI[[#This Row],[List 1]],Table_PI[[#This Row],[List 2]],Table_PI[[#This Row],[List 3]],Table_PI[[#This Row],[Size]],Table_PI[[#This Row],[Input 1]],Table_PI[[#This Row],[Input 2]],Table_PI[[#This Row],[Input 3]],Table_PI[[#This Row],[Input 4]],'Customer Information'!$AR$12,1,ROW())>0,MeasureCalc(Table_PI[[#This Row],[Hide:\nFormula Name]],Table_PI[[#This Row],[Quantity]],Table_PI[[#This Row],[List 1]],Table_PI[[#This Row],[List 2]],Table_PI[[#This Row],[List 3]],Table_PI[[#This Row],[Size]],Table_PI[[#This Row],[Input 1]],Table_PI[[#This Row],[Input 2]],Table_PI[[#This Row],[Input 3]],Table_PI[[#This Row],[Input 4]],'Customer Information'!$AR$12,8,ROW()),\"No Rebate\"),\"No Rebate\"),0)","v":0},{"$f":"IF(Table_PI[[#This Row],[Hide:\nFormula Name]]<>\"\",IF(AND(Table_PI[[#This Row],[Hide:\nFormula Name]]<>\"\",OR(Table_PI[[#This Row],[Rebate]]>0,Table_PI[[#This Row],[Rebate]]=\"No Rebate\")),TRUE,\"MI: Line Item \" & $A350),\"\")","v":""}]
[{"$f":"IF(Table_PI[[#This Row],[Hide:\nFormula Name]]<>\"\",MAX($A$2:A350)+1,\"\")","v":""},null,null,null,null,null,null,null,null,null,null,null,null,null,null,{"$f":"IFERROR(VLOOKUP(Table_PI[[#This Row],[Measure]],'Equipment Lookups'!$C$3:$D$23,2,FALSE),\"\")","v":""},{"$f":"IF(Table_PI[[#This Row],[Hide:\nFormula Name]]<>\"\",IFERROR(IF(MeasureCalc(Table_PI[[#This Row],[Hide:\nFormula Name]],Table_PI[[#This Row],[Quantity]],Table_PI[[#This Row],[List 1]],Table_PI[[#This Row],[List 2]],Table_PI[[#This Row],[List 3]],Table_PI[[#This Row],[Size]],Table_PI[[#This Row],[Input 1]],Table_PI[[#This Row],[Input 2]],Table_PI[[#This Row],[Input 3]],Table_PI[[#This Row],[Input 4]],'Customer Information'!$AR$12,1,ROW())>0,MeasureCalc(Table_PI[[#This Row],[Hide:\nFormula Name]],Table_PI[[#This Row],[Quantity]],Table_PI[[#This Row],[List 1]],Table_PI[[#This Row],[List 2]],Table_PI[[#This Row],[List 3]],Table_PI[[#This Row],[Size]],Table_PI[[#This Row],[Input 1]],Table_PI[[#This Row],[Input 2]],Table_PI[[#This Row],[Input 3]],Table_PI[[#This Row],[Input 4]],'Customer Information'!$AR$12,1,ROW()),\"No Rebate\"),\"No Rebate\"),0)","v":0},{"$f":"IF(Table_PI[[#This Row],[Hide:\nFormula Name]]<>\"\",IFERROR(IF(MeasureCalc(Table_PI[[#This Row],[Hide:\nFormula Name]],Table_PI[[#This Row],[Quantity]],Table_PI[[#This Row],[List 1]],Table_PI[[#This Row],[List 2]],Table_PI[[#This Row],[List 3]],Table_PI[[#This Row],[Size]],Table_PI[[#This Row],[Input 1]],Table_PI[[#This Row],[Input 2]],Table_PI[[#This Row],[Input 3]],Table_PI[[#This Row],[Input 4]],'Customer Information'!$AR$12,1,ROW())>0,MeasureCalc(Table_PI[[#This Row],[Hide:\nFormula Name]],Table_PI[[#This Row],[Quantity]],Table_PI[[#This Row],[List 1]],Table_PI[[#This Row],[List 2]],Table_PI[[#This Row],[List 3]],Table_PI[[#This Row],[Size]],Table_PI[[#This Row],[Input 1]],Table_PI[[#This Row],[Input 2]],Table_PI[[#This Row],[Input 3]],Table_PI[[#This Row],[Input 4]],'Customer Information'!$AR$12,2,ROW()),\"No Rebate\"),\"No Rebate\"),0)","v":0},{"$f":"IF(Table_PI[[#This Row],[Hide:\nFormula Name]]<>\"\",IFERROR(IF(MeasureCalc(Table_PI[[#This Row],[Hide:\nFormula Name]],Table_PI[[#This Row],[Quantity]],Table_PI[[#This Row],[List 1]],Table_PI[[#This Row],[List 2]],Table_PI[[#This Row],[List 3]],Table_PI[[#This Row],[Size]],Table_PI[[#This Row],[Input 1]],Table_PI[[#This Row],[Input 2]],Table_PI[[#This Row],[Input 3]],Table_PI[[#This Row],[Input 4]],'Customer Information'!$AR$12,1,ROW())>0,MeasureCalc(Table_PI[[#This Row],[Hide:\nFormula Name]],Table_PI[[#This Row],[Quantity]],Table_PI[[#This Row],[List 1]],Table_PI[[#This Row],[List 2]],Table_PI[[#This Row],[List 3]],Table_PI[[#This Row],[Size]],Table_PI[[#This Row],[Input 1]],Table_PI[[#This Row],[Input 2]],Table_PI[[#This Row],[Input 3]],Table_PI[[#This Row],[Input 4]],'Customer Information'!$AR$12,3,ROW()),\"No Rebate\"),\"No Rebate\"),0)","v":0},{"$f":"IF(Table_PI[[#This Row],[Hide:\nFormula Name]]<>\"\",IFERROR(IF(MeasureCalc(Table_PI[[#This Row],[Hide:\nFormula Name]],Table_PI[[#This Row],[Quantity]],Table_PI[[#This Row],[List 1]],Table_PI[[#This Row],[List 2]],Table_PI[[#This Row],[List 3]],Table_PI[[#This Row],[Size]],Table_PI[[#This Row],[Input 1]],Table_PI[[#This Row],[Input 2]],Table_PI[[#This Row],[Input 3]],Table_PI[[#This Row],[Input 4]],'Customer Information'!$AR$12,1,ROW())>0,MeasureCalc(Table_PI[[#This Row],[Hide:\nFormula Name]],Table_PI[[#This Row],[Quantity]],Table_PI[[#This Row],[List 1]],Table_PI[[#This Row],[List 2]],Table_PI[[#This Row],[List 3]],Table_PI[[#This Row],[Size]],Table_PI[[#This Row],[Input 1]],Table_PI[[#This Row],[Input 2]],Table_PI[[#This Row],[Input 3]],Table_PI[[#This Row],[Input 4]],'Customer Information'!$AR$12,4,ROW()),\"No Rebate\"),\"No Rebate\"),0)","v":0},{"$f":"IF(Table_PI[[#This Row],[Hide:\nFormula Name]]<>\"\",IFERROR(IF(MeasureCalc(Table_PI[[#This Row],[Hide:\nFormula Name]],Table_PI[[#This Row],[Quantity]],Table_PI[[#This Row],[List 1]],Table_PI[[#This Row],[List 2]],Table_PI[[#This Row],[List 3]],Table_PI[[#This Row],[Size]],Table_PI[[#This Row],[Input 1]],Table_PI[[#This Row],[Input 2]],Table_PI[[#This Row],[Input 3]],Table_PI[[#This Row],[Input 4]],'Customer Information'!$AR$12,1,ROW())>0,MeasureCalc(Table_PI[[#This Row],[Hide:\nFormula Name]],Table_PI[[#This Row],[Quantity]],Table_PI[[#This Row],[List 1]],Table_PI[[#This Row],[List 2]],Table_PI[[#This Row],[List 3]],Table_PI[[#This Row],[Size]],Table_PI[[#This Row],[Input 1]],Table_PI[[#This Row],[Input 2]],Table_PI[[#This Row],[Input 3]],Table_PI[[#This Row],[Input 4]],'Customer Information'!$AR$12,5,ROW()),\"No Rebate\"),\"No Rebate\"),0)","v":0},{"$f":"IF(Table_PI[[#This Row],[Hide:\nFormula Name]]<>\"\",IFERROR(IF(MeasureCalc(Table_PI[[#This Row],[Hide:\nFormula Name]],Table_PI[[#This Row],[Quantity]],Table_PI[[#This Row],[List 1]],Table_PI[[#This Row],[List 2]],Table_PI[[#This Row],[List 3]],Table_PI[[#This Row],[Size]],Table_PI[[#This Row],[Input 1]],Table_PI[[#This Row],[Input 2]],Table_PI[[#This Row],[Input 3]],Table_PI[[#This Row],[Input 4]],'Customer Information'!$AR$12,1,ROW())>0,MeasureCalc(Table_PI[[#This Row],[Hide:\nFormula Name]],Table_PI[[#This Row],[Quantity]],Table_PI[[#This Row],[List 1]],Table_PI[[#This Row],[List 2]],Table_PI[[#This Row],[List 3]],Table_PI[[#This Row],[Size]],Table_PI[[#This Row],[Input 1]],Table_PI[[#This Row],[Input 2]],Table_PI[[#This Row],[Input 3]],Table_PI[[#This Row],[Input 4]],'Customer Information'!$AR$12,6,ROW()),\"No Rebate\"),\"No Rebate\"),0)","v":0},{"$f":"IF(Table_PI[[#This Row],[Hide:\nFormula Name]]<>\"\",IFERROR(IF(MeasureCalc(Table_PI[[#This Row],[Hide:\nFormula Name]],Table_PI[[#This Row],[Quantity]],Table_PI[[#This Row],[List 1]],Table_PI[[#This Row],[List 2]],Table_PI[[#This Row],[List 3]],Table_PI[[#This Row],[Size]],Table_PI[[#This Row],[Input 1]],Table_PI[[#This Row],[Input 2]],Table_PI[[#This Row],[Input 3]],Table_PI[[#This Row],[Input 4]],'Customer Information'!$AR$12,1,ROW())>0,MeasureCalc(Table_PI[[#This Row],[Hide:\nFormula Name]],Table_PI[[#This Row],[Quantity]],Table_PI[[#This Row],[List 1]],Table_PI[[#This Row],[List 2]],Table_PI[[#This Row],[List 3]],Table_PI[[#This Row],[Size]],Table_PI[[#This Row],[Input 1]],Table_PI[[#This Row],[Input 2]],Table_PI[[#This Row],[Input 3]],Table_PI[[#This Row],[Input 4]],'Customer Information'!$AR$12,7,ROW()),\"No Rebate\"),\"No Rebate\"),0)","v":0},{"$f":"IF(Table_PI[[#This Row],[Hide:\nFormula Name]]<>\"\",IFERROR(IF(MeasureCalc(Table_PI[[#This Row],[Hide:\nFormula Name]],Table_PI[[#This Row],[Quantity]],Table_PI[[#This Row],[List 1]],Table_PI[[#This Row],[List 2]],Table_PI[[#This Row],[List 3]],Table_PI[[#This Row],[Size]],Table_PI[[#This Row],[Input 1]],Table_PI[[#This Row],[Input 2]],Table_PI[[#This Row],[Input 3]],Table_PI[[#This Row],[Input 4]],'Customer Information'!$AR$12,1,ROW())>0,MeasureCalc(Table_PI[[#This Row],[Hide:\nFormula Name]],Table_PI[[#This Row],[Quantity]],Table_PI[[#This Row],[List 1]],Table_PI[[#This Row],[List 2]],Table_PI[[#This Row],[List 3]],Table_PI[[#This Row],[Size]],Table_PI[[#This Row],[Input 1]],Table_PI[[#This Row],[Input 2]],Table_PI[[#This Row],[Input 3]],Table_PI[[#This Row],[Input 4]],'Customer Information'!$AR$12,8,ROW()),\"No Rebate\"),\"No Rebate\"),0)","v":0},{"$f":"IF(Table_PI[[#This Row],[Hide:\nFormula Name]]<>\"\",IF(AND(Table_PI[[#This Row],[Hide:\nFormula Name]]<>\"\",OR(Table_PI[[#This Row],[Rebate]]>0,Table_PI[[#This Row],[Rebate]]=\"No Rebate\")),TRUE,\"MI: Line Item \" & $A351),\"\")","v":""}]
[{"$f":"IF(Table_PI[[#This Row],[Hide:\nFormula Name]]<>\"\",MAX($A$2:A351)+1,\"\")","v":""},null,null,null,null,null,null,null,null,null,null,null,null,null,null,{"$f":"IFERROR(VLOOKUP(Table_PI[[#This Row],[Measure]],'Equipment Lookups'!$C$3:$D$23,2,FALSE),\"\")","v":""},{"$f":"IF(Table_PI[[#This Row],[Hide:\nFormula Name]]<>\"\",IFERROR(IF(MeasureCalc(Table_PI[[#This Row],[Hide:\nFormula Name]],Table_PI[[#This Row],[Quantity]],Table_PI[[#This Row],[List 1]],Table_PI[[#This Row],[List 2]],Table_PI[[#This Row],[List 3]],Table_PI[[#This Row],[Size]],Table_PI[[#This Row],[Input 1]],Table_PI[[#This Row],[Input 2]],Table_PI[[#This Row],[Input 3]],Table_PI[[#This Row],[Input 4]],'Customer Information'!$AR$12,1,ROW())>0,MeasureCalc(Table_PI[[#This Row],[Hide:\nFormula Name]],Table_PI[[#This Row],[Quantity]],Table_PI[[#This Row],[List 1]],Table_PI[[#This Row],[List 2]],Table_PI[[#This Row],[List 3]],Table_PI[[#This Row],[Size]],Table_PI[[#This Row],[Input 1]],Table_PI[[#This Row],[Input 2]],Table_PI[[#This Row],[Input 3]],Table_PI[[#This Row],[Input 4]],'Customer Information'!$AR$12,1,ROW()),\"No Rebate\"),\"No Rebate\"),0)","v":0},{"$f":"IF(Table_PI[[#This Row],[Hide:\nFormula Name]]<>\"\",IFERROR(IF(MeasureCalc(Table_PI[[#This Row],[Hide:\nFormula Name]],Table_PI[[#This Row],[Quantity]],Table_PI[[#This Row],[List 1]],Table_PI[[#This Row],[List 2]],Table_PI[[#This Row],[List 3]],Table_PI[[#This Row],[Size]],Table_PI[[#This Row],[Input 1]],Table_PI[[#This Row],[Input 2]],Table_PI[[#This Row],[Input 3]],Table_PI[[#This Row],[Input 4]],'Customer Information'!$AR$12,1,ROW())>0,MeasureCalc(Table_PI[[#This Row],[Hide:\nFormula Name]],Table_PI[[#This Row],[Quantity]],Table_PI[[#This Row],[List 1]],Table_PI[[#This Row],[List 2]],Table_PI[[#This Row],[List 3]],Table_PI[[#This Row],[Size]],Table_PI[[#This Row],[Input 1]],Table_PI[[#This Row],[Input 2]],Table_PI[[#This Row],[Input 3]],Table_PI[[#This Row],[Input 4]],'Customer Information'!$AR$12,2,ROW()),\"No Rebate\"),\"No Rebate\"),0)","v":0},{"$f":"IF(Table_PI[[#This Row],[Hide:\nFormula Name]]<>\"\",IFERROR(IF(MeasureCalc(Table_PI[[#This Row],[Hide:\nFormula Name]],Table_PI[[#This Row],[Quantity]],Table_PI[[#This Row],[List 1]],Table_PI[[#This Row],[List 2]],Table_PI[[#This Row],[List 3]],Table_PI[[#This Row],[Size]],Table_PI[[#This Row],[Input 1]],Table_PI[[#This Row],[Input 2]],Table_PI[[#This Row],[Input 3]],Table_PI[[#This Row],[Input 4]],'Customer Information'!$AR$12,1,ROW())>0,MeasureCalc(Table_PI[[#This Row],[Hide:\nFormula Name]],Table_PI[[#This Row],[Quantity]],Table_PI[[#This Row],[List 1]],Table_PI[[#This Row],[List 2]],Table_PI[[#This Row],[List 3]],Table_PI[[#This Row],[Size]],Table_PI[[#This Row],[Input 1]],Table_PI[[#This Row],[Input 2]],Table_PI[[#This Row],[Input 3]],Table_PI[[#This Row],[Input 4]],'Customer Information'!$AR$12,3,ROW()),\"No Rebate\"),\"No Rebate\"),0)","v":0},{"$f":"IF(Table_PI[[#This Row],[Hide:\nFormula Name]]<>\"\",IFERROR(IF(MeasureCalc(Table_PI[[#This Row],[Hide:\nFormula Name]],Table_PI[[#This Row],[Quantity]],Table_PI[[#This Row],[List 1]],Table_PI[[#This Row],[List 2]],Table_PI[[#This Row],[List 3]],Table_PI[[#This Row],[Size]],Table_PI[[#This Row],[Input 1]],Table_PI[[#This Row],[Input 2]],Table_PI[[#This Row],[Input 3]],Table_PI[[#This Row],[Input 4]],'Customer Information'!$AR$12,1,ROW())>0,MeasureCalc(Table_PI[[#This Row],[Hide:\nFormula Name]],Table_PI[[#This Row],[Quantity]],Table_PI[[#This Row],[List 1]],Table_PI[[#This Row],[List 2]],Table_PI[[#This Row],[List 3]],Table_PI[[#This Row],[Size]],Table_PI[[#This Row],[Input 1]],Table_PI[[#This Row],[Input 2]],Table_PI[[#This Row],[Input 3]],Table_PI[[#This Row],[Input 4]],'Customer Information'!$AR$12,4,ROW()),\"No Rebate\"),\"No Rebate\"),0)","v":0},{"$f":"IF(Table_PI[[#This Row],[Hide:\nFormula Name]]<>\"\",IFERROR(IF(MeasureCalc(Table_PI[[#This Row],[Hide:\nFormula Name]],Table_PI[[#This Row],[Quantity]],Table_PI[[#This Row],[List 1]],Table_PI[[#This Row],[List 2]],Table_PI[[#This Row],[List 3]],Table_PI[[#This Row],[Size]],Table_PI[[#This Row],[Input 1]],Table_PI[[#This Row],[Input 2]],Table_PI[[#This Row],[Input 3]],Table_PI[[#This Row],[Input 4]],'Customer Information'!$AR$12,1,ROW())>0,MeasureCalc(Table_PI[[#This Row],[Hide:\nFormula Name]],Table_PI[[#This Row],[Quantity]],Table_PI[[#This Row],[List 1]],Table_PI[[#This Row],[List 2]],Table_PI[[#This Row],[List 3]],Table_PI[[#This Row],[Size]],Table_PI[[#This Row],[Input 1]],Table_PI[[#This Row],[Input 2]],Table_PI[[#This Row],[Input 3]],Table_PI[[#This Row],[Input 4]],'Customer Information'!$AR$12,5,ROW()),\"No Rebate\"),\"No Rebate\"),0)","v":0},{"$f":"IF(Table_PI[[#This Row],[Hide:\nFormula Name]]<>\"\",IFERROR(IF(MeasureCalc(Table_PI[[#This Row],[Hide:\nFormula Name]],Table_PI[[#This Row],[Quantity]],Table_PI[[#This Row],[List 1]],Table_PI[[#This Row],[List 2]],Table_PI[[#This Row],[List 3]],Table_PI[[#This Row],[Size]],Table_PI[[#This Row],[Input 1]],Table_PI[[#This Row],[Input 2]],Table_PI[[#This Row],[Input 3]],Table_PI[[#This Row],[Input 4]],'Customer Information'!$AR$12,1,ROW())>0,MeasureCalc(Table_PI[[#This Row],[Hide:\nFormula Name]],Table_PI[[#This Row],[Quantity]],Table_PI[[#This Row],[List 1]],Table_PI[[#This Row],[List 2]],Table_PI[[#This Row],[List 3]],Table_PI[[#This Row],[Size]],Table_PI[[#This Row],[Input 1]],Table_PI[[#This Row],[Input 2]],Table_PI[[#This Row],[Input 3]],Table_PI[[#This Row],[Input 4]],'Customer Information'!$AR$12,6,ROW()),\"No Rebate\"),\"No Rebate\"),0)","v":0},{"$f":"IF(Table_PI[[#This Row],[Hide:\nFormula Name]]<>\"\",IFERROR(IF(MeasureCalc(Table_PI[[#This Row],[Hide:\nFormula Name]],Table_PI[[#This Row],[Quantity]],Table_PI[[#This Row],[List 1]],Table_PI[[#This Row],[List 2]],Table_PI[[#This Row],[List 3]],Table_PI[[#This Row],[Size]],Table_PI[[#This Row],[Input 1]],Table_PI[[#This Row],[Input 2]],Table_PI[[#This Row],[Input 3]],Table_PI[[#This Row],[Input 4]],'Customer Information'!$AR$12,1,ROW())>0,MeasureCalc(Table_PI[[#This Row],[Hide:\nFormula Name]],Table_PI[[#This Row],[Quantity]],Table_PI[[#This Row],[List 1]],Table_PI[[#This Row],[List 2]],Table_PI[[#This Row],[List 3]],Table_PI[[#This Row],[Size]],Table_PI[[#This Row],[Input 1]],Table_PI[[#This Row],[Input 2]],Table_PI[[#This Row],[Input 3]],Table_PI[[#This Row],[Input 4]],'Customer Information'!$AR$12,7,ROW()),\"No Rebate\"),\"No Rebate\"),0)","v":0},{"$f":"IF(Table_PI[[#This Row],[Hide:\nFormula Name]]<>\"\",IFERROR(IF(MeasureCalc(Table_PI[[#This Row],[Hide:\nFormula Name]],Table_PI[[#This Row],[Quantity]],Table_PI[[#This Row],[List 1]],Table_PI[[#This Row],[List 2]],Table_PI[[#This Row],[List 3]],Table_PI[[#This Row],[Size]],Table_PI[[#This Row],[Input 1]],Table_PI[[#This Row],[Input 2]],Table_PI[[#This Row],[Input 3]],Table_PI[[#This Row],[Input 4]],'Customer Information'!$AR$12,1,ROW())>0,MeasureCalc(Table_PI[[#This Row],[Hide:\nFormula Name]],Table_PI[[#This Row],[Quantity]],Table_PI[[#This Row],[List 1]],Table_PI[[#This Row],[List 2]],Table_PI[[#This Row],[List 3]],Table_PI[[#This Row],[Size]],Table_PI[[#This Row],[Input 1]],Table_PI[[#This Row],[Input 2]],Table_PI[[#This Row],[Input 3]],Table_PI[[#This Row],[Input 4]],'Customer Information'!$AR$12,8,ROW()),\"No Rebate\"),\"No Rebate\"),0)","v":0},{"$f":"IF(Table_PI[[#This Row],[Hide:\nFormula Name]]<>\"\",IF(AND(Table_PI[[#This Row],[Hide:\nFormula Name]]<>\"\",OR(Table_PI[[#This Row],[Rebate]]>0,Table_PI[[#This Row],[Rebate]]=\"No Rebate\")),TRUE,\"MI: Line Item \" & $A352),\"\")","v":""}]
[{"$f":"IF(Table_PI[[#This Row],[Hide:\nFormula Name]]<>\"\",MAX($A$2:A352)+1,\"\")","v":""},null,null,null,null,null,null,null,null,null,null,null,null,null,null,{"$f":"IFERROR(VLOOKUP(Table_PI[[#This Row],[Measure]],'Equipment Lookups'!$C$3:$D$23,2,FALSE),\"\")","v":""},{"$f":"IF(Table_PI[[#This Row],[Hide:\nFormula Name]]<>\"\",IFERROR(IF(MeasureCalc(Table_PI[[#This Row],[Hide:\nFormula Name]],Table_PI[[#This Row],[Quantity]],Table_PI[[#This Row],[List 1]],Table_PI[[#This Row],[List 2]],Table_PI[[#This Row],[List 3]],Table_PI[[#This Row],[Size]],Table_PI[[#This Row],[Input 1]],Table_PI[[#This Row],[Input 2]],Table_PI[[#This Row],[Input 3]],Table_PI[[#This Row],[Input 4]],'Customer Information'!$AR$12,1,ROW())>0,MeasureCalc(Table_PI[[#This Row],[Hide:\nFormula Name]],Table_PI[[#This Row],[Quantity]],Table_PI[[#This Row],[List 1]],Table_PI[[#This Row],[List 2]],Table_PI[[#This Row],[List 3]],Table_PI[[#This Row],[Size]],Table_PI[[#This Row],[Input 1]],Table_PI[[#This Row],[Input 2]],Table_PI[[#This Row],[Input 3]],Table_PI[[#This Row],[Input 4]],'Customer Information'!$AR$12,1,ROW()),\"No Rebate\"),\"No Rebate\"),0)","v":0},{"$f":"IF(Table_PI[[#This Row],[Hide:\nFormula Name]]<>\"\",IFERROR(IF(MeasureCalc(Table_PI[[#This Row],[Hide:\nFormula Name]],Table_PI[[#This Row],[Quantity]],Table_PI[[#This Row],[List 1]],Table_PI[[#This Row],[List 2]],Table_PI[[#This Row],[List 3]],Table_PI[[#This Row],[Size]],Table_PI[[#This Row],[Input 1]],Table_PI[[#This Row],[Input 2]],Table_PI[[#This Row],[Input 3]],Table_PI[[#This Row],[Input 4]],'Customer Information'!$AR$12,1,ROW())>0,MeasureCalc(Table_PI[[#This Row],[Hide:\nFormula Name]],Table_PI[[#This Row],[Quantity]],Table_PI[[#This Row],[List 1]],Table_PI[[#This Row],[List 2]],Table_PI[[#This Row],[List 3]],Table_PI[[#This Row],[Size]],Table_PI[[#This Row],[Input 1]],Table_PI[[#This Row],[Input 2]],Table_PI[[#This Row],[Input 3]],Table_PI[[#This Row],[Input 4]],'Customer Information'!$AR$12,2,ROW()),\"No Rebate\"),\"No Rebate\"),0)","v":0},{"$f":"IF(Table_PI[[#This Row],[Hide:\nFormula Name]]<>\"\",IFERROR(IF(MeasureCalc(Table_PI[[#This Row],[Hide:\nFormula Name]],Table_PI[[#This Row],[Quantity]],Table_PI[[#This Row],[List 1]],Table_PI[[#This Row],[List 2]],Table_PI[[#This Row],[List 3]],Table_PI[[#This Row],[Size]],Table_PI[[#This Row],[Input 1]],Table_PI[[#This Row],[Input 2]],Table_PI[[#This Row],[Input 3]],Table_PI[[#This Row],[Input 4]],'Customer Information'!$AR$12,1,ROW())>0,MeasureCalc(Table_PI[[#This Row],[Hide:\nFormula Name]],Table_PI[[#This Row],[Quantity]],Table_PI[[#This Row],[List 1]],Table_PI[[#This Row],[List 2]],Table_PI[[#This Row],[List 3]],Table_PI[[#This Row],[Size]],Table_PI[[#This Row],[Input 1]],Table_PI[[#This Row],[Input 2]],Table_PI[[#This Row],[Input 3]],Table_PI[[#This Row],[Input 4]],'Customer Information'!$AR$12,3,ROW()),\"No Rebate\"),\"No Rebate\"),0)","v":0},{"$f":"IF(Table_PI[[#This Row],[Hide:\nFormula Name]]<>\"\",IFERROR(IF(MeasureCalc(Table_PI[[#This Row],[Hide:\nFormula Name]],Table_PI[[#This Row],[Quantity]],Table_PI[[#This Row],[List 1]],Table_PI[[#This Row],[List 2]],Table_PI[[#This Row],[List 3]],Table_PI[[#This Row],[Size]],Table_PI[[#This Row],[Input 1]],Table_PI[[#This Row],[Input 2]],Table_PI[[#This Row],[Input 3]],Table_PI[[#This Row],[Input 4]],'Customer Information'!$AR$12,1,ROW())>0,MeasureCalc(Table_PI[[#This Row],[Hide:\nFormula Name]],Table_PI[[#This Row],[Quantity]],Table_PI[[#This Row],[List 1]],Table_PI[[#This Row],[List 2]],Table_PI[[#This Row],[List 3]],Table_PI[[#This Row],[Size]],Table_PI[[#This Row],[Input 1]],Table_PI[[#This Row],[Input 2]],Table_PI[[#This Row],[Input 3]],Table_PI[[#This Row],[Input 4]],'Customer Information'!$AR$12,4,ROW()),\"No Rebate\"),\"No Rebate\"),0)","v":0},{"$f":"IF(Table_PI[[#This Row],[Hide:\nFormula Name]]<>\"\",IFERROR(IF(MeasureCalc(Table_PI[[#This Row],[Hide:\nFormula Name]],Table_PI[[#This Row],[Quantity]],Table_PI[[#This Row],[List 1]],Table_PI[[#This Row],[List 2]],Table_PI[[#This Row],[List 3]],Table_PI[[#This Row],[Size]],Table_PI[[#This Row],[Input 1]],Table_PI[[#This Row],[Input 2]],Table_PI[[#This Row],[Input 3]],Table_PI[[#This Row],[Input 4]],'Customer Information'!$AR$12,1,ROW())>0,MeasureCalc(Table_PI[[#This Row],[Hide:\nFormula Name]],Table_PI[[#This Row],[Quantity]],Table_PI[[#This Row],[List 1]],Table_PI[[#This Row],[List 2]],Table_PI[[#This Row],[List 3]],Table_PI[[#This Row],[Size]],Table_PI[[#This Row],[Input 1]],Table_PI[[#This Row],[Input 2]],Table_PI[[#This Row],[Input 3]],Table_PI[[#This Row],[Input 4]],'Customer Information'!$AR$12,5,ROW()),\"No Rebate\"),\"No Rebate\"),0)","v":0},{"$f":"IF(Table_PI[[#This Row],[Hide:\nFormula Name]]<>\"\",IFERROR(IF(MeasureCalc(Table_PI[[#This Row],[Hide:\nFormula Name]],Table_PI[[#This Row],[Quantity]],Table_PI[[#This Row],[List 1]],Table_PI[[#This Row],[List 2]],Table_PI[[#This Row],[List 3]],Table_PI[[#This Row],[Size]],Table_PI[[#This Row],[Input 1]],Table_PI[[#This Row],[Input 2]],Table_PI[[#This Row],[Input 3]],Table_PI[[#This Row],[Input 4]],'Customer Information'!$AR$12,1,ROW())>0,MeasureCalc(Table_PI[[#This Row],[Hide:\nFormula Name]],Table_PI[[#This Row],[Quantity]],Table_PI[[#This Row],[List 1]],Table_PI[[#This Row],[List 2]],Table_PI[[#This Row],[List 3]],Table_PI[[#This Row],[Size]],Table_PI[[#This Row],[Input 1]],Table_PI[[#This Row],[Input 2]],Table_PI[[#This Row],[Input 3]],Table_PI[[#This Row],[Input 4]],'Customer Information'!$AR$12,6,ROW()),\"No Rebate\"),\"No Rebate\"),0)","v":0},{"$f":"IF(Table_PI[[#This Row],[Hide:\nFormula Name]]<>\"\",IFERROR(IF(MeasureCalc(Table_PI[[#This Row],[Hide:\nFormula Name]],Table_PI[[#This Row],[Quantity]],Table_PI[[#This Row],[List 1]],Table_PI[[#This Row],[List 2]],Table_PI[[#This Row],[List 3]],Table_PI[[#This Row],[Size]],Table_PI[[#This Row],[Input 1]],Table_PI[[#This Row],[Input 2]],Table_PI[[#This Row],[Input 3]],Table_PI[[#This Row],[Input 4]],'Customer Information'!$AR$12,1,ROW())>0,MeasureCalc(Table_PI[[#This Row],[Hide:\nFormula Name]],Table_PI[[#This Row],[Quantity]],Table_PI[[#This Row],[List 1]],Table_PI[[#This Row],[List 2]],Table_PI[[#This Row],[List 3]],Table_PI[[#This Row],[Size]],Table_PI[[#This Row],[Input 1]],Table_PI[[#This Row],[Input 2]],Table_PI[[#This Row],[Input 3]],Table_PI[[#This Row],[Input 4]],'Customer Information'!$AR$12,7,ROW()),\"No Rebate\"),\"No Rebate\"),0)","v":0},{"$f":"IF(Table_PI[[#This Row],[Hide:\nFormula Name]]<>\"\",IFERROR(IF(MeasureCalc(Table_PI[[#This Row],[Hide:\nFormula Name]],Table_PI[[#This Row],[Quantity]],Table_PI[[#This Row],[List 1]],Table_PI[[#This Row],[List 2]],Table_PI[[#This Row],[List 3]],Table_PI[[#This Row],[Size]],Table_PI[[#This Row],[Input 1]],Table_PI[[#This Row],[Input 2]],Table_PI[[#This Row],[Input 3]],Table_PI[[#This Row],[Input 4]],'Customer Information'!$AR$12,1,ROW())>0,MeasureCalc(Table_PI[[#This Row],[Hide:\nFormula Name]],Table_PI[[#This Row],[Quantity]],Table_PI[[#This Row],[List 1]],Table_PI[[#This Row],[List 2]],Table_PI[[#This Row],[List 3]],Table_PI[[#This Row],[Size]],Table_PI[[#This Row],[Input 1]],Table_PI[[#This Row],[Input 2]],Table_PI[[#This Row],[Input 3]],Table_PI[[#This Row],[Input 4]],'Customer Information'!$AR$12,8,ROW()),\"No Rebate\"),\"No Rebate\"),0)","v":0},{"$f":"IF(Table_PI[[#This Row],[Hide:\nFormula Name]]<>\"\",IF(AND(Table_PI[[#This Row],[Hide:\nFormula Name]]<>\"\",OR(Table_PI[[#This Row],[Rebate]]>0,Table_PI[[#This Row],[Rebate]]=\"No Rebate\")),TRUE,\"MI: Line Item \" & $A353),\"\")","v":""}]
[{"$f":"IF(Table_PI[[#This Row],[Hide:\nFormula Name]]<>\"\",MAX($A$2:A353)+1,\"\")","v":""},null,null,null,null,null,null,null,null,null,null,null,null,null,null,{"$f":"IFERROR(VLOOKUP(Table_PI[[#This Row],[Measure]],'Equipment Lookups'!$C$3:$D$23,2,FALSE),\"\")","v":""},{"$f":"IF(Table_PI[[#This Row],[Hide:\nFormula Name]]<>\"\",IFERROR(IF(MeasureCalc(Table_PI[[#This Row],[Hide:\nFormula Name]],Table_PI[[#This Row],[Quantity]],Table_PI[[#This Row],[List 1]],Table_PI[[#This Row],[List 2]],Table_PI[[#This Row],[List 3]],Table_PI[[#This Row],[Size]],Table_PI[[#This Row],[Input 1]],Table_PI[[#This Row],[Input 2]],Table_PI[[#This Row],[Input 3]],Table_PI[[#This Row],[Input 4]],'Customer Information'!$AR$12,1,ROW())>0,MeasureCalc(Table_PI[[#This Row],[Hide:\nFormula Name]],Table_PI[[#This Row],[Quantity]],Table_PI[[#This Row],[List 1]],Table_PI[[#This Row],[List 2]],Table_PI[[#This Row],[List 3]],Table_PI[[#This Row],[Size]],Table_PI[[#This Row],[Input 1]],Table_PI[[#This Row],[Input 2]],Table_PI[[#This Row],[Input 3]],Table_PI[[#This Row],[Input 4]],'Customer Information'!$AR$12,1,ROW()),\"No Rebate\"),\"No Rebate\"),0)","v":0},{"$f":"IF(Table_PI[[#This Row],[Hide:\nFormula Name]]<>\"\",IFERROR(IF(MeasureCalc(Table_PI[[#This Row],[Hide:\nFormula Name]],Table_PI[[#This Row],[Quantity]],Table_PI[[#This Row],[List 1]],Table_PI[[#This Row],[List 2]],Table_PI[[#This Row],[List 3]],Table_PI[[#This Row],[Size]],Table_PI[[#This Row],[Input 1]],Table_PI[[#This Row],[Input 2]],Table_PI[[#This Row],[Input 3]],Table_PI[[#This Row],[Input 4]],'Customer Information'!$AR$12,1,ROW())>0,MeasureCalc(Table_PI[[#This Row],[Hide:\nFormula Name]],Table_PI[[#This Row],[Quantity]],Table_PI[[#This Row],[List 1]],Table_PI[[#This Row],[List 2]],Table_PI[[#This Row],[List 3]],Table_PI[[#This Row],[Size]],Table_PI[[#This Row],[Input 1]],Table_PI[[#This Row],[Input 2]],Table_PI[[#This Row],[Input 3]],Table_PI[[#This Row],[Input 4]],'Customer Information'!$AR$12,2,ROW()),\"No Rebate\"),\"No Rebate\"),0)","v":0},{"$f":"IF(Table_PI[[#This Row],[Hide:\nFormula Name]]<>\"\",IFERROR(IF(MeasureCalc(Table_PI[[#This Row],[Hide:\nFormula Name]],Table_PI[[#This Row],[Quantity]],Table_PI[[#This Row],[List 1]],Table_PI[[#This Row],[List 2]],Table_PI[[#This Row],[List 3]],Table_PI[[#This Row],[Size]],Table_PI[[#This Row],[Input 1]],Table_PI[[#This Row],[Input 2]],Table_PI[[#This Row],[Input 3]],Table_PI[[#This Row],[Input 4]],'Customer Information'!$AR$12,1,ROW())>0,MeasureCalc(Table_PI[[#This Row],[Hide:\nFormula Name]],Table_PI[[#This Row],[Quantity]],Table_PI[[#This Row],[List 1]],Table_PI[[#This Row],[List 2]],Table_PI[[#This Row],[List 3]],Table_PI[[#This Row],[Size]],Table_PI[[#This Row],[Input 1]],Table_PI[[#This Row],[Input 2]],Table_PI[[#This Row],[Input 3]],Table_PI[[#This Row],[Input 4]],'Customer Information'!$AR$12,3,ROW()),\"No Rebate\"),\"No Rebate\"),0)","v":0},{"$f":"IF(Table_PI[[#This Row],[Hide:\nFormula Name]]<>\"\",IFERROR(IF(MeasureCalc(Table_PI[[#This Row],[Hide:\nFormula Name]],Table_PI[[#This Row],[Quantity]],Table_PI[[#This Row],[List 1]],Table_PI[[#This Row],[List 2]],Table_PI[[#This Row],[List 3]],Table_PI[[#This Row],[Size]],Table_PI[[#This Row],[Input 1]],Table_PI[[#This Row],[Input 2]],Table_PI[[#This Row],[Input 3]],Table_PI[[#This Row],[Input 4]],'Customer Information'!$AR$12,1,ROW())>0,MeasureCalc(Table_PI[[#This Row],[Hide:\nFormula Name]],Table_PI[[#This Row],[Quantity]],Table_PI[[#This Row],[List 1]],Table_PI[[#This Row],[List 2]],Table_PI[[#This Row],[List 3]],Table_PI[[#This Row],[Size]],Table_PI[[#This Row],[Input 1]],Table_PI[[#This Row],[Input 2]],Table_PI[[#This Row],[Input 3]],Table_PI[[#This Row],[Input 4]],'Customer Information'!$AR$12,4,ROW()),\"No Rebate\"),\"No Rebate\"),0)","v":0},{"$f":"IF(Table_PI[[#This Row],[Hide:\nFormula Name]]<>\"\",IFERROR(IF(MeasureCalc(Table_PI[[#This Row],[Hide:\nFormula Name]],Table_PI[[#This Row],[Quantity]],Table_PI[[#This Row],[List 1]],Table_PI[[#This Row],[List 2]],Table_PI[[#This Row],[List 3]],Table_PI[[#This Row],[Size]],Table_PI[[#This Row],[Input 1]],Table_PI[[#This Row],[Input 2]],Table_PI[[#This Row],[Input 3]],Table_PI[[#This Row],[Input 4]],'Customer Information'!$AR$12,1,ROW())>0,MeasureCalc(Table_PI[[#This Row],[Hide:\nFormula Name]],Table_PI[[#This Row],[Quantity]],Table_PI[[#This Row],[List 1]],Table_PI[[#This Row],[List 2]],Table_PI[[#This Row],[List 3]],Table_PI[[#This Row],[Size]],Table_PI[[#This Row],[Input 1]],Table_PI[[#This Row],[Input 2]],Table_PI[[#This Row],[Input 3]],Table_PI[[#This Row],[Input 4]],'Customer Information'!$AR$12,5,ROW()),\"No Rebate\"),\"No Rebate\"),0)","v":0},{"$f":"IF(Table_PI[[#This Row],[Hide:\nFormula Name]]<>\"\",IFERROR(IF(MeasureCalc(Table_PI[[#This Row],[Hide:\nFormula Name]],Table_PI[[#This Row],[Quantity]],Table_PI[[#This Row],[List 1]],Table_PI[[#This Row],[List 2]],Table_PI[[#This Row],[List 3]],Table_PI[[#This Row],[Size]],Table_PI[[#This Row],[Input 1]],Table_PI[[#This Row],[Input 2]],Table_PI[[#This Row],[Input 3]],Table_PI[[#This Row],[Input 4]],'Customer Information'!$AR$12,1,ROW())>0,MeasureCalc(Table_PI[[#This Row],[Hide:\nFormula Name]],Table_PI[[#This Row],[Quantity]],Table_PI[[#This Row],[List 1]],Table_PI[[#This Row],[List 2]],Table_PI[[#This Row],[List 3]],Table_PI[[#This Row],[Size]],Table_PI[[#This Row],[Input 1]],Table_PI[[#This Row],[Input 2]],Table_PI[[#This Row],[Input 3]],Table_PI[[#This Row],[Input 4]],'Customer Information'!$AR$12,6,ROW()),\"No Rebate\"),\"No Rebate\"),0)","v":0},{"$f":"IF(Table_PI[[#This Row],[Hide:\nFormula Name]]<>\"\",IFERROR(IF(MeasureCalc(Table_PI[[#This Row],[Hide:\nFormula Name]],Table_PI[[#This Row],[Quantity]],Table_PI[[#This Row],[List 1]],Table_PI[[#This Row],[List 2]],Table_PI[[#This Row],[List 3]],Table_PI[[#This Row],[Size]],Table_PI[[#This Row],[Input 1]],Table_PI[[#This Row],[Input 2]],Table_PI[[#This Row],[Input 3]],Table_PI[[#This Row],[Input 4]],'Customer Information'!$AR$12,1,ROW())>0,MeasureCalc(Table_PI[[#This Row],[Hide:\nFormula Name]],Table_PI[[#This Row],[Quantity]],Table_PI[[#This Row],[List 1]],Table_PI[[#This Row],[List 2]],Table_PI[[#This Row],[List 3]],Table_PI[[#This Row],[Size]],Table_PI[[#This Row],[Input 1]],Table_PI[[#This Row],[Input 2]],Table_PI[[#This Row],[Input 3]],Table_PI[[#This Row],[Input 4]],'Customer Information'!$AR$12,7,ROW()),\"No Rebate\"),\"No Rebate\"),0)","v":0},{"$f":"IF(Table_PI[[#This Row],[Hide:\nFormula Name]]<>\"\",IFERROR(IF(MeasureCalc(Table_PI[[#This Row],[Hide:\nFormula Name]],Table_PI[[#This Row],[Quantity]],Table_PI[[#This Row],[List 1]],Table_PI[[#This Row],[List 2]],Table_PI[[#This Row],[List 3]],Table_PI[[#This Row],[Size]],Table_PI[[#This Row],[Input 1]],Table_PI[[#This Row],[Input 2]],Table_PI[[#This Row],[Input 3]],Table_PI[[#This Row],[Input 4]],'Customer Information'!$AR$12,1,ROW())>0,MeasureCalc(Table_PI[[#This Row],[Hide:\nFormula Name]],Table_PI[[#This Row],[Quantity]],Table_PI[[#This Row],[List 1]],Table_PI[[#This Row],[List 2]],Table_PI[[#This Row],[List 3]],Table_PI[[#This Row],[Size]],Table_PI[[#This Row],[Input 1]],Table_PI[[#This Row],[Input 2]],Table_PI[[#This Row],[Input 3]],Table_PI[[#This Row],[Input 4]],'Customer Information'!$AR$12,8,ROW()),\"No Rebate\"),\"No Rebate\"),0)","v":0},{"$f":"IF(Table_PI[[#This Row],[Hide:\nFormula Name]]<>\"\",IF(AND(Table_PI[[#This Row],[Hide:\nFormula Name]]<>\"\",OR(Table_PI[[#This Row],[Rebate]]>0,Table_PI[[#This Row],[Rebate]]=\"No Rebate\")),TRUE,\"MI: Line Item \" & $A354),\"\")","v":""}]
[{"$f":"IF(Table_PI[[#This Row],[Hide:\nFormula Name]]<>\"\",MAX($A$2:A354)+1,\"\")","v":""},null,null,null,null,null,null,null,null,null,null,null,null,null,null,{"$f":"IFERROR(VLOOKUP(Table_PI[[#This Row],[Measure]],'Equipment Lookups'!$C$3:$D$23,2,FALSE),\"\")","v":""},{"$f":"IF(Table_PI[[#This Row],[Hide:\nFormula Name]]<>\"\",IFERROR(IF(MeasureCalc(Table_PI[[#This Row],[Hide:\nFormula Name]],Table_PI[[#This Row],[Quantity]],Table_PI[[#This Row],[List 1]],Table_PI[[#This Row],[List 2]],Table_PI[[#This Row],[List 3]],Table_PI[[#This Row],[Size]],Table_PI[[#This Row],[Input 1]],Table_PI[[#This Row],[Input 2]],Table_PI[[#This Row],[Input 3]],Table_PI[[#This Row],[Input 4]],'Customer Information'!$AR$12,1,ROW())>0,MeasureCalc(Table_PI[[#This Row],[Hide:\nFormula Name]],Table_PI[[#This Row],[Quantity]],Table_PI[[#This Row],[List 1]],Table_PI[[#This Row],[List 2]],Table_PI[[#This Row],[List 3]],Table_PI[[#This Row],[Size]],Table_PI[[#This Row],[Input 1]],Table_PI[[#This Row],[Input 2]],Table_PI[[#This Row],[Input 3]],Table_PI[[#This Row],[Input 4]],'Customer Information'!$AR$12,1,ROW()),\"No Rebate\"),\"No Rebate\"),0)","v":0},{"$f":"IF(Table_PI[[#This Row],[Hide:\nFormula Name]]<>\"\",IFERROR(IF(MeasureCalc(Table_PI[[#This Row],[Hide:\nFormula Name]],Table_PI[[#This Row],[Quantity]],Table_PI[[#This Row],[List 1]],Table_PI[[#This Row],[List 2]],Table_PI[[#This Row],[List 3]],Table_PI[[#This Row],[Size]],Table_PI[[#This Row],[Input 1]],Table_PI[[#This Row],[Input 2]],Table_PI[[#This Row],[Input 3]],Table_PI[[#This Row],[Input 4]],'Customer Information'!$AR$12,1,ROW())>0,MeasureCalc(Table_PI[[#This Row],[Hide:\nFormula Name]],Table_PI[[#This Row],[Quantity]],Table_PI[[#This Row],[List 1]],Table_PI[[#This Row],[List 2]],Table_PI[[#This Row],[List 3]],Table_PI[[#This Row],[Size]],Table_PI[[#This Row],[Input 1]],Table_PI[[#This Row],[Input 2]],Table_PI[[#This Row],[Input 3]],Table_PI[[#This Row],[Input 4]],'Customer Information'!$AR$12,2,ROW()),\"No Rebate\"),\"No Rebate\"),0)","v":0},{"$f":"IF(Table_PI[[#This Row],[Hide:\nFormula Name]]<>\"\",IFERROR(IF(MeasureCalc(Table_PI[[#This Row],[Hide:\nFormula Name]],Table_PI[[#This Row],[Quantity]],Table_PI[[#This Row],[List 1]],Table_PI[[#This Row],[List 2]],Table_PI[[#This Row],[List 3]],Table_PI[[#This Row],[Size]],Table_PI[[#This Row],[Input 1]],Table_PI[[#This Row],[Input 2]],Table_PI[[#This Row],[Input 3]],Table_PI[[#This Row],[Input 4]],'Customer Information'!$AR$12,1,ROW())>0,MeasureCalc(Table_PI[[#This Row],[Hide:\nFormula Name]],Table_PI[[#This Row],[Quantity]],Table_PI[[#This Row],[List 1]],Table_PI[[#This Row],[List 2]],Table_PI[[#This Row],[List 3]],Table_PI[[#This Row],[Size]],Table_PI[[#This Row],[Input 1]],Table_PI[[#This Row],[Input 2]],Table_PI[[#This Row],[Input 3]],Table_PI[[#This Row],[Input 4]],'Customer Information'!$AR$12,3,ROW()),\"No Rebate\"),\"No Rebate\"),0)","v":0},{"$f":"IF(Table_PI[[#This Row],[Hide:\nFormula Name]]<>\"\",IFERROR(IF(MeasureCalc(Table_PI[[#This Row],[Hide:\nFormula Name]],Table_PI[[#This Row],[Quantity]],Table_PI[[#This Row],[List 1]],Table_PI[[#This Row],[List 2]],Table_PI[[#This Row],[List 3]],Table_PI[[#This Row],[Size]],Table_PI[[#This Row],[Input 1]],Table_PI[[#This Row],[Input 2]],Table_PI[[#This Row],[Input 3]],Table_PI[[#This Row],[Input 4]],'Customer Information'!$AR$12,1,ROW())>0,MeasureCalc(Table_PI[[#This Row],[Hide:\nFormula Name]],Table_PI[[#This Row],[Quantity]],Table_PI[[#This Row],[List 1]],Table_PI[[#This Row],[List 2]],Table_PI[[#This Row],[List 3]],Table_PI[[#This Row],[Size]],Table_PI[[#This Row],[Input 1]],Table_PI[[#This Row],[Input 2]],Table_PI[[#This Row],[Input 3]],Table_PI[[#This Row],[Input 4]],'Customer Information'!$AR$12,4,ROW()),\"No Rebate\"),\"No Rebate\"),0)","v":0},{"$f":"IF(Table_PI[[#This Row],[Hide:\nFormula Name]]<>\"\",IFERROR(IF(MeasureCalc(Table_PI[[#This Row],[Hide:\nFormula Name]],Table_PI[[#This Row],[Quantity]],Table_PI[[#This Row],[List 1]],Table_PI[[#This Row],[List 2]],Table_PI[[#This Row],[List 3]],Table_PI[[#This Row],[Size]],Table_PI[[#This Row],[Input 1]],Table_PI[[#This Row],[Input 2]],Table_PI[[#This Row],[Input 3]],Table_PI[[#This Row],[Input 4]],'Customer Information'!$AR$12,1,ROW())>0,MeasureCalc(Table_PI[[#This Row],[Hide:\nFormula Name]],Table_PI[[#This Row],[Quantity]],Table_PI[[#This Row],[List 1]],Table_PI[[#This Row],[List 2]],Table_PI[[#This Row],[List 3]],Table_PI[[#This Row],[Size]],Table_PI[[#This Row],[Input 1]],Table_PI[[#This Row],[Input 2]],Table_PI[[#This Row],[Input 3]],Table_PI[[#This Row],[Input 4]],'Customer Information'!$AR$12,5,ROW()),\"No Rebate\"),\"No Rebate\"),0)","v":0},{"$f":"IF(Table_PI[[#This Row],[Hide:\nFormula Name]]<>\"\",IFERROR(IF(MeasureCalc(Table_PI[[#This Row],[Hide:\nFormula Name]],Table_PI[[#This Row],[Quantity]],Table_PI[[#This Row],[List 1]],Table_PI[[#This Row],[List 2]],Table_PI[[#This Row],[List 3]],Table_PI[[#This Row],[Size]],Table_PI[[#This Row],[Input 1]],Table_PI[[#This Row],[Input 2]],Table_PI[[#This Row],[Input 3]],Table_PI[[#This Row],[Input 4]],'Customer Information'!$AR$12,1,ROW())>0,MeasureCalc(Table_PI[[#This Row],[Hide:\nFormula Name]],Table_PI[[#This Row],[Quantity]],Table_PI[[#This Row],[List 1]],Table_PI[[#This Row],[List 2]],Table_PI[[#This Row],[List 3]],Table_PI[[#This Row],[Size]],Table_PI[[#This Row],[Input 1]],Table_PI[[#This Row],[Input 2]],Table_PI[[#This Row],[Input 3]],Table_PI[[#This Row],[Input 4]],'Customer Information'!$AR$12,6,ROW()),\"No Rebate\"),\"No Rebate\"),0)","v":0},{"$f":"IF(Table_PI[[#This Row],[Hide:\nFormula Name]]<>\"\",IFERROR(IF(MeasureCalc(Table_PI[[#This Row],[Hide:\nFormula Name]],Table_PI[[#This Row],[Quantity]],Table_PI[[#This Row],[List 1]],Table_PI[[#This Row],[List 2]],Table_PI[[#This Row],[List 3]],Table_PI[[#This Row],[Size]],Table_PI[[#This Row],[Input 1]],Table_PI[[#This Row],[Input 2]],Table_PI[[#This Row],[Input 3]],Table_PI[[#This Row],[Input 4]],'Customer Information'!$AR$12,1,ROW())>0,MeasureCalc(Table_PI[[#This Row],[Hide:\nFormula Name]],Table_PI[[#This Row],[Quantity]],Table_PI[[#This Row],[List 1]],Table_PI[[#This Row],[List 2]],Table_PI[[#This Row],[List 3]],Table_PI[[#This Row],[Size]],Table_PI[[#This Row],[Input 1]],Table_PI[[#This Row],[Input 2]],Table_PI[[#This Row],[Input 3]],Table_PI[[#This Row],[Input 4]],'Customer Information'!$AR$12,7,ROW()),\"No Rebate\"),\"No Rebate\"),0)","v":0},{"$f":"IF(Table_PI[[#This Row],[Hide:\nFormula Name]]<>\"\",IFERROR(IF(MeasureCalc(Table_PI[[#This Row],[Hide:\nFormula Name]],Table_PI[[#This Row],[Quantity]],Table_PI[[#This Row],[List 1]],Table_PI[[#This Row],[List 2]],Table_PI[[#This Row],[List 3]],Table_PI[[#This Row],[Size]],Table_PI[[#This Row],[Input 1]],Table_PI[[#This Row],[Input 2]],Table_PI[[#This Row],[Input 3]],Table_PI[[#This Row],[Input 4]],'Customer Information'!$AR$12,1,ROW())>0,MeasureCalc(Table_PI[[#This Row],[Hide:\nFormula Name]],Table_PI[[#This Row],[Quantity]],Table_PI[[#This Row],[List 1]],Table_PI[[#This Row],[List 2]],Table_PI[[#This Row],[List 3]],Table_PI[[#This Row],[Size]],Table_PI[[#This Row],[Input 1]],Table_PI[[#This Row],[Input 2]],Table_PI[[#This Row],[Input 3]],Table_PI[[#This Row],[Input 4]],'Customer Information'!$AR$12,8,ROW()),\"No Rebate\"),\"No Rebate\"),0)","v":0},{"$f":"IF(Table_PI[[#This Row],[Hide:\nFormula Name]]<>\"\",IF(AND(Table_PI[[#This Row],[Hide:\nFormula Name]]<>\"\",OR(Table_PI[[#This Row],[Rebate]]>0,Table_PI[[#This Row],[Rebate]]=\"No Rebate\")),TRUE,\"MI: Line Item \" & $A355),\"\")","v":""}]
[{"$f":"IF(Table_PI[[#This Row],[Hide:\nFormula Name]]<>\"\",MAX($A$2:A355)+1,\"\")","v":""},null,null,null,null,null,null,null,null,null,null,null,null,null,null,{"$f":"IFERROR(VLOOKUP(Table_PI[[#This Row],[Measure]],'Equipment Lookups'!$C$3:$D$23,2,FALSE),\"\")","v":""},{"$f":"IF(Table_PI[[#This Row],[Hide:\nFormula Name]]<>\"\",IFERROR(IF(MeasureCalc(Table_PI[[#This Row],[Hide:\nFormula Name]],Table_PI[[#This Row],[Quantity]],Table_PI[[#This Row],[List 1]],Table_PI[[#This Row],[List 2]],Table_PI[[#This Row],[List 3]],Table_PI[[#This Row],[Size]],Table_PI[[#This Row],[Input 1]],Table_PI[[#This Row],[Input 2]],Table_PI[[#This Row],[Input 3]],Table_PI[[#This Row],[Input 4]],'Customer Information'!$AR$12,1,ROW())>0,MeasureCalc(Table_PI[[#This Row],[Hide:\nFormula Name]],Table_PI[[#This Row],[Quantity]],Table_PI[[#This Row],[List 1]],Table_PI[[#This Row],[List 2]],Table_PI[[#This Row],[List 3]],Table_PI[[#This Row],[Size]],Table_PI[[#This Row],[Input 1]],Table_PI[[#This Row],[Input 2]],Table_PI[[#This Row],[Input 3]],Table_PI[[#This Row],[Input 4]],'Customer Information'!$AR$12,1,ROW()),\"No Rebate\"),\"No Rebate\"),0)","v":0},{"$f":"IF(Table_PI[[#This Row],[Hide:\nFormula Name]]<>\"\",IFERROR(IF(MeasureCalc(Table_PI[[#This Row],[Hide:\nFormula Name]],Table_PI[[#This Row],[Quantity]],Table_PI[[#This Row],[List 1]],Table_PI[[#This Row],[List 2]],Table_PI[[#This Row],[List 3]],Table_PI[[#This Row],[Size]],Table_PI[[#This Row],[Input 1]],Table_PI[[#This Row],[Input 2]],Table_PI[[#This Row],[Input 3]],Table_PI[[#This Row],[Input 4]],'Customer Information'!$AR$12,1,ROW())>0,MeasureCalc(Table_PI[[#This Row],[Hide:\nFormula Name]],Table_PI[[#This Row],[Quantity]],Table_PI[[#This Row],[List 1]],Table_PI[[#This Row],[List 2]],Table_PI[[#This Row],[List 3]],Table_PI[[#This Row],[Size]],Table_PI[[#This Row],[Input 1]],Table_PI[[#This Row],[Input 2]],Table_PI[[#This Row],[Input 3]],Table_PI[[#This Row],[Input 4]],'Customer Information'!$AR$12,2,ROW()),\"No Rebate\"),\"No Rebate\"),0)","v":0},{"$f":"IF(Table_PI[[#This Row],[Hide:\nFormula Name]]<>\"\",IFERROR(IF(MeasureCalc(Table_PI[[#This Row],[Hide:\nFormula Name]],Table_PI[[#This Row],[Quantity]],Table_PI[[#This Row],[List 1]],Table_PI[[#This Row],[List 2]],Table_PI[[#This Row],[List 3]],Table_PI[[#This Row],[Size]],Table_PI[[#This Row],[Input 1]],Table_PI[[#This Row],[Input 2]],Table_PI[[#This Row],[Input 3]],Table_PI[[#This Row],[Input 4]],'Customer Information'!$AR$12,1,ROW())>0,MeasureCalc(Table_PI[[#This Row],[Hide:\nFormula Name]],Table_PI[[#This Row],[Quantity]],Table_PI[[#This Row],[List 1]],Table_PI[[#This Row],[List 2]],Table_PI[[#This Row],[List 3]],Table_PI[[#This Row],[Size]],Table_PI[[#This Row],[Input 1]],Table_PI[[#This Row],[Input 2]],Table_PI[[#This Row],[Input 3]],Table_PI[[#This Row],[Input 4]],'Customer Information'!$AR$12,3,ROW()),\"No Rebate\"),\"No Rebate\"),0)","v":0},{"$f":"IF(Table_PI[[#This Row],[Hide:\nFormula Name]]<>\"\",IFERROR(IF(MeasureCalc(Table_PI[[#This Row],[Hide:\nFormula Name]],Table_PI[[#This Row],[Quantity]],Table_PI[[#This Row],[List 1]],Table_PI[[#This Row],[List 2]],Table_PI[[#This Row],[List 3]],Table_PI[[#This Row],[Size]],Table_PI[[#This Row],[Input 1]],Table_PI[[#This Row],[Input 2]],Table_PI[[#This Row],[Input 3]],Table_PI[[#This Row],[Input 4]],'Customer Information'!$AR$12,1,ROW())>0,MeasureCalc(Table_PI[[#This Row],[Hide:\nFormula Name]],Table_PI[[#This Row],[Quantity]],Table_PI[[#This Row],[List 1]],Table_PI[[#This Row],[List 2]],Table_PI[[#This Row],[List 3]],Table_PI[[#This Row],[Size]],Table_PI[[#This Row],[Input 1]],Table_PI[[#This Row],[Input 2]],Table_PI[[#This Row],[Input 3]],Table_PI[[#This Row],[Input 4]],'Customer Information'!$AR$12,4,ROW()),\"No Rebate\"),\"No Rebate\"),0)","v":0},{"$f":"IF(Table_PI[[#This Row],[Hide:\nFormula Name]]<>\"\",IFERROR(IF(MeasureCalc(Table_PI[[#This Row],[Hide:\nFormula Name]],Table_PI[[#This Row],[Quantity]],Table_PI[[#This Row],[List 1]],Table_PI[[#This Row],[List 2]],Table_PI[[#This Row],[List 3]],Table_PI[[#This Row],[Size]],Table_PI[[#This Row],[Input 1]],Table_PI[[#This Row],[Input 2]],Table_PI[[#This Row],[Input 3]],Table_PI[[#This Row],[Input 4]],'Customer Information'!$AR$12,1,ROW())>0,MeasureCalc(Table_PI[[#This Row],[Hide:\nFormula Name]],Table_PI[[#This Row],[Quantity]],Table_PI[[#This Row],[List 1]],Table_PI[[#This Row],[List 2]],Table_PI[[#This Row],[List 3]],Table_PI[[#This Row],[Size]],Table_PI[[#This Row],[Input 1]],Table_PI[[#This Row],[Input 2]],Table_PI[[#This Row],[Input 3]],Table_PI[[#This Row],[Input 4]],'Customer Information'!$AR$12,5,ROW()),\"No Rebate\"),\"No Rebate\"),0)","v":0},{"$f":"IF(Table_PI[[#This Row],[Hide:\nFormula Name]]<>\"\",IFERROR(IF(MeasureCalc(Table_PI[[#This Row],[Hide:\nFormula Name]],Table_PI[[#This Row],[Quantity]],Table_PI[[#This Row],[List 1]],Table_PI[[#This Row],[List 2]],Table_PI[[#This Row],[List 3]],Table_PI[[#This Row],[Size]],Table_PI[[#This Row],[Input 1]],Table_PI[[#This Row],[Input 2]],Table_PI[[#This Row],[Input 3]],Table_PI[[#This Row],[Input 4]],'Customer Information'!$AR$12,1,ROW())>0,MeasureCalc(Table_PI[[#This Row],[Hide:\nFormula Name]],Table_PI[[#This Row],[Quantity]],Table_PI[[#This Row],[List 1]],Table_PI[[#This Row],[List 2]],Table_PI[[#This Row],[List 3]],Table_PI[[#This Row],[Size]],Table_PI[[#This Row],[Input 1]],Table_PI[[#This Row],[Input 2]],Table_PI[[#This Row],[Input 3]],Table_PI[[#This Row],[Input 4]],'Customer Information'!$AR$12,6,ROW()),\"No Rebate\"),\"No Rebate\"),0)","v":0},{"$f":"IF(Table_PI[[#This Row],[Hide:\nFormula Name]]<>\"\",IFERROR(IF(MeasureCalc(Table_PI[[#This Row],[Hide:\nFormula Name]],Table_PI[[#This Row],[Quantity]],Table_PI[[#This Row],[List 1]],Table_PI[[#This Row],[List 2]],Table_PI[[#This Row],[List 3]],Table_PI[[#This Row],[Size]],Table_PI[[#This Row],[Input 1]],Table_PI[[#This Row],[Input 2]],Table_PI[[#This Row],[Input 3]],Table_PI[[#This Row],[Input 4]],'Customer Information'!$AR$12,1,ROW())>0,MeasureCalc(Table_PI[[#This Row],[Hide:\nFormula Name]],Table_PI[[#This Row],[Quantity]],Table_PI[[#This Row],[List 1]],Table_PI[[#This Row],[List 2]],Table_PI[[#This Row],[List 3]],Table_PI[[#This Row],[Size]],Table_PI[[#This Row],[Input 1]],Table_PI[[#This Row],[Input 2]],Table_PI[[#This Row],[Input 3]],Table_PI[[#This Row],[Input 4]],'Customer Information'!$AR$12,7,ROW()),\"No Rebate\"),\"No Rebate\"),0)","v":0},{"$f":"IF(Table_PI[[#This Row],[Hide:\nFormula Name]]<>\"\",IFERROR(IF(MeasureCalc(Table_PI[[#This Row],[Hide:\nFormula Name]],Table_PI[[#This Row],[Quantity]],Table_PI[[#This Row],[List 1]],Table_PI[[#This Row],[List 2]],Table_PI[[#This Row],[List 3]],Table_PI[[#This Row],[Size]],Table_PI[[#This Row],[Input 1]],Table_PI[[#This Row],[Input 2]],Table_PI[[#This Row],[Input 3]],Table_PI[[#This Row],[Input 4]],'Customer Information'!$AR$12,1,ROW())>0,MeasureCalc(Table_PI[[#This Row],[Hide:\nFormula Name]],Table_PI[[#This Row],[Quantity]],Table_PI[[#This Row],[List 1]],Table_PI[[#This Row],[List 2]],Table_PI[[#This Row],[List 3]],Table_PI[[#This Row],[Size]],Table_PI[[#This Row],[Input 1]],Table_PI[[#This Row],[Input 2]],Table_PI[[#This Row],[Input 3]],Table_PI[[#This Row],[Input 4]],'Customer Information'!$AR$12,8,ROW()),\"No Rebate\"),\"No Rebate\"),0)","v":0},{"$f":"IF(Table_PI[[#This Row],[Hide:\nFormula Name]]<>\"\",IF(AND(Table_PI[[#This Row],[Hide:\nFormula Name]]<>\"\",OR(Table_PI[[#This Row],[Rebate]]>0,Table_PI[[#This Row],[Rebate]]=\"No Rebate\")),TRUE,\"MI: Line Item \" & $A356),\"\")","v":""}]
[{"$f":"IF(Table_PI[[#This Row],[Hide:\nFormula Name]]<>\"\",MAX($A$2:A356)+1,\"\")","v":""},null,null,null,null,null,null,null,null,null,null,null,null,null,null,{"$f":"IFERROR(VLOOKUP(Table_PI[[#This Row],[Measure]],'Equipment Lookups'!$C$3:$D$23,2,FALSE),\"\")","v":""},{"$f":"IF(Table_PI[[#This Row],[Hide:\nFormula Name]]<>\"\",IFERROR(IF(MeasureCalc(Table_PI[[#This Row],[Hide:\nFormula Name]],Table_PI[[#This Row],[Quantity]],Table_PI[[#This Row],[List 1]],Table_PI[[#This Row],[List 2]],Table_PI[[#This Row],[List 3]],Table_PI[[#This Row],[Size]],Table_PI[[#This Row],[Input 1]],Table_PI[[#This Row],[Input 2]],Table_PI[[#This Row],[Input 3]],Table_PI[[#This Row],[Input 4]],'Customer Information'!$AR$12,1,ROW())>0,MeasureCalc(Table_PI[[#This Row],[Hide:\nFormula Name]],Table_PI[[#This Row],[Quantity]],Table_PI[[#This Row],[List 1]],Table_PI[[#This Row],[List 2]],Table_PI[[#This Row],[List 3]],Table_PI[[#This Row],[Size]],Table_PI[[#This Row],[Input 1]],Table_PI[[#This Row],[Input 2]],Table_PI[[#This Row],[Input 3]],Table_PI[[#This Row],[Input 4]],'Customer Information'!$AR$12,1,ROW()),\"No Rebate\"),\"No Rebate\"),0)","v":0},{"$f":"IF(Table_PI[[#This Row],[Hide:\nFormula Name]]<>\"\",IFERROR(IF(MeasureCalc(Table_PI[[#This Row],[Hide:\nFormula Name]],Table_PI[[#This Row],[Quantity]],Table_PI[[#This Row],[List 1]],Table_PI[[#This Row],[List 2]],Table_PI[[#This Row],[List 3]],Table_PI[[#This Row],[Size]],Table_PI[[#This Row],[Input 1]],Table_PI[[#This Row],[Input 2]],Table_PI[[#This Row],[Input 3]],Table_PI[[#This Row],[Input 4]],'Customer Information'!$AR$12,1,ROW())>0,MeasureCalc(Table_PI[[#This Row],[Hide:\nFormula Name]],Table_PI[[#This Row],[Quantity]],Table_PI[[#This Row],[List 1]],Table_PI[[#This Row],[List 2]],Table_PI[[#This Row],[List 3]],Table_PI[[#This Row],[Size]],Table_PI[[#This Row],[Input 1]],Table_PI[[#This Row],[Input 2]],Table_PI[[#This Row],[Input 3]],Table_PI[[#This Row],[Input 4]],'Customer Information'!$AR$12,2,ROW()),\"No Rebate\"),\"No Rebate\"),0)","v":0},{"$f":"IF(Table_PI[[#This Row],[Hide:\nFormula Name]]<>\"\",IFERROR(IF(MeasureCalc(Table_PI[[#This Row],[Hide:\nFormula Name]],Table_PI[[#This Row],[Quantity]],Table_PI[[#This Row],[List 1]],Table_PI[[#This Row],[List 2]],Table_PI[[#This Row],[List 3]],Table_PI[[#This Row],[Size]],Table_PI[[#This Row],[Input 1]],Table_PI[[#This Row],[Input 2]],Table_PI[[#This Row],[Input 3]],Table_PI[[#This Row],[Input 4]],'Customer Information'!$AR$12,1,ROW())>0,MeasureCalc(Table_PI[[#This Row],[Hide:\nFormula Name]],Table_PI[[#This Row],[Quantity]],Table_PI[[#This Row],[List 1]],Table_PI[[#This Row],[List 2]],Table_PI[[#This Row],[List 3]],Table_PI[[#This Row],[Size]],Table_PI[[#This Row],[Input 1]],Table_PI[[#This Row],[Input 2]],Table_PI[[#This Row],[Input 3]],Table_PI[[#This Row],[Input 4]],'Customer Information'!$AR$12,3,ROW()),\"No Rebate\"),\"No Rebate\"),0)","v":0},{"$f":"IF(Table_PI[[#This Row],[Hide:\nFormula Name]]<>\"\",IFERROR(IF(MeasureCalc(Table_PI[[#This Row],[Hide:\nFormula Name]],Table_PI[[#This Row],[Quantity]],Table_PI[[#This Row],[List 1]],Table_PI[[#This Row],[List 2]],Table_PI[[#This Row],[List 3]],Table_PI[[#This Row],[Size]],Table_PI[[#This Row],[Input 1]],Table_PI[[#This Row],[Input 2]],Table_PI[[#This Row],[Input 3]],Table_PI[[#This Row],[Input 4]],'Customer Information'!$AR$12,1,ROW())>0,MeasureCalc(Table_PI[[#This Row],[Hide:\nFormula Name]],Table_PI[[#This Row],[Quantity]],Table_PI[[#This Row],[List 1]],Table_PI[[#This Row],[List 2]],Table_PI[[#This Row],[List 3]],Table_PI[[#This Row],[Size]],Table_PI[[#This Row],[Input 1]],Table_PI[[#This Row],[Input 2]],Table_PI[[#This Row],[Input 3]],Table_PI[[#This Row],[Input 4]],'Customer Information'!$AR$12,4,ROW()),\"No Rebate\"),\"No Rebate\"),0)","v":0},{"$f":"IF(Table_PI[[#This Row],[Hide:\nFormula Name]]<>\"\",IFERROR(IF(MeasureCalc(Table_PI[[#This Row],[Hide:\nFormula Name]],Table_PI[[#This Row],[Quantity]],Table_PI[[#This Row],[List 1]],Table_PI[[#This Row],[List 2]],Table_PI[[#This Row],[List 3]],Table_PI[[#This Row],[Size]],Table_PI[[#This Row],[Input 1]],Table_PI[[#This Row],[Input 2]],Table_PI[[#This Row],[Input 3]],Table_PI[[#This Row],[Input 4]],'Customer Information'!$AR$12,1,ROW())>0,MeasureCalc(Table_PI[[#This Row],[Hide:\nFormula Name]],Table_PI[[#This Row],[Quantity]],Table_PI[[#This Row],[List 1]],Table_PI[[#This Row],[List 2]],Table_PI[[#This Row],[List 3]],Table_PI[[#This Row],[Size]],Table_PI[[#This Row],[Input 1]],Table_PI[[#This Row],[Input 2]],Table_PI[[#This Row],[Input 3]],Table_PI[[#This Row],[Input 4]],'Customer Information'!$AR$12,5,ROW()),\"No Rebate\"),\"No Rebate\"),0)","v":0},{"$f":"IF(Table_PI[[#This Row],[Hide:\nFormula Name]]<>\"\",IFERROR(IF(MeasureCalc(Table_PI[[#This Row],[Hide:\nFormula Name]],Table_PI[[#This Row],[Quantity]],Table_PI[[#This Row],[List 1]],Table_PI[[#This Row],[List 2]],Table_PI[[#This Row],[List 3]],Table_PI[[#This Row],[Size]],Table_PI[[#This Row],[Input 1]],Table_PI[[#This Row],[Input 2]],Table_PI[[#This Row],[Input 3]],Table_PI[[#This Row],[Input 4]],'Customer Information'!$AR$12,1,ROW())>0,MeasureCalc(Table_PI[[#This Row],[Hide:\nFormula Name]],Table_PI[[#This Row],[Quantity]],Table_PI[[#This Row],[List 1]],Table_PI[[#This Row],[List 2]],Table_PI[[#This Row],[List 3]],Table_PI[[#This Row],[Size]],Table_PI[[#This Row],[Input 1]],Table_PI[[#This Row],[Input 2]],Table_PI[[#This Row],[Input 3]],Table_PI[[#This Row],[Input 4]],'Customer Information'!$AR$12,6,ROW()),\"No Rebate\"),\"No Rebate\"),0)","v":0},{"$f":"IF(Table_PI[[#This Row],[Hide:\nFormula Name]]<>\"\",IFERROR(IF(MeasureCalc(Table_PI[[#This Row],[Hide:\nFormula Name]],Table_PI[[#This Row],[Quantity]],Table_PI[[#This Row],[List 1]],Table_PI[[#This Row],[List 2]],Table_PI[[#This Row],[List 3]],Table_PI[[#This Row],[Size]],Table_PI[[#This Row],[Input 1]],Table_PI[[#This Row],[Input 2]],Table_PI[[#This Row],[Input 3]],Table_PI[[#This Row],[Input 4]],'Customer Information'!$AR$12,1,ROW())>0,MeasureCalc(Table_PI[[#This Row],[Hide:\nFormula Name]],Table_PI[[#This Row],[Quantity]],Table_PI[[#This Row],[List 1]],Table_PI[[#This Row],[List 2]],Table_PI[[#This Row],[List 3]],Table_PI[[#This Row],[Size]],Table_PI[[#This Row],[Input 1]],Table_PI[[#This Row],[Input 2]],Table_PI[[#This Row],[Input 3]],Table_PI[[#This Row],[Input 4]],'Customer Information'!$AR$12,7,ROW()),\"No Rebate\"),\"No Rebate\"),0)","v":0},{"$f":"IF(Table_PI[[#This Row],[Hide:\nFormula Name]]<>\"\",IFERROR(IF(MeasureCalc(Table_PI[[#This Row],[Hide:\nFormula Name]],Table_PI[[#This Row],[Quantity]],Table_PI[[#This Row],[List 1]],Table_PI[[#This Row],[List 2]],Table_PI[[#This Row],[List 3]],Table_PI[[#This Row],[Size]],Table_PI[[#This Row],[Input 1]],Table_PI[[#This Row],[Input 2]],Table_PI[[#This Row],[Input 3]],Table_PI[[#This Row],[Input 4]],'Customer Information'!$AR$12,1,ROW())>0,MeasureCalc(Table_PI[[#This Row],[Hide:\nFormula Name]],Table_PI[[#This Row],[Quantity]],Table_PI[[#This Row],[List 1]],Table_PI[[#This Row],[List 2]],Table_PI[[#This Row],[List 3]],Table_PI[[#This Row],[Size]],Table_PI[[#This Row],[Input 1]],Table_PI[[#This Row],[Input 2]],Table_PI[[#This Row],[Input 3]],Table_PI[[#This Row],[Input 4]],'Customer Information'!$AR$12,8,ROW()),\"No Rebate\"),\"No Rebate\"),0)","v":0},{"$f":"IF(Table_PI[[#This Row],[Hide:\nFormula Name]]<>\"\",IF(AND(Table_PI[[#This Row],[Hide:\nFormula Name]]<>\"\",OR(Table_PI[[#This Row],[Rebate]]>0,Table_PI[[#This Row],[Rebate]]=\"No Rebate\")),TRUE,\"MI: Line Item \" & $A357),\"\")","v":""}]
[{"$f":"IF(Table_PI[[#This Row],[Hide:\nFormula Name]]<>\"\",MAX($A$2:A357)+1,\"\")","v":""},null,null,null,null,null,null,null,null,null,null,null,null,null,null,{"$f":"IFERROR(VLOOKUP(Table_PI[[#This Row],[Measure]],'Equipment Lookups'!$C$3:$D$23,2,FALSE),\"\")","v":""},{"$f":"IF(Table_PI[[#This Row],[Hide:\nFormula Name]]<>\"\",IFERROR(IF(MeasureCalc(Table_PI[[#This Row],[Hide:\nFormula Name]],Table_PI[[#This Row],[Quantity]],Table_PI[[#This Row],[List 1]],Table_PI[[#This Row],[List 2]],Table_PI[[#This Row],[List 3]],Table_PI[[#This Row],[Size]],Table_PI[[#This Row],[Input 1]],Table_PI[[#This Row],[Input 2]],Table_PI[[#This Row],[Input 3]],Table_PI[[#This Row],[Input 4]],'Customer Information'!$AR$12,1,ROW())>0,MeasureCalc(Table_PI[[#This Row],[Hide:\nFormula Name]],Table_PI[[#This Row],[Quantity]],Table_PI[[#This Row],[List 1]],Table_PI[[#This Row],[List 2]],Table_PI[[#This Row],[List 3]],Table_PI[[#This Row],[Size]],Table_PI[[#This Row],[Input 1]],Table_PI[[#This Row],[Input 2]],Table_PI[[#This Row],[Input 3]],Table_PI[[#This Row],[Input 4]],'Customer Information'!$AR$12,1,ROW()),\"No Rebate\"),\"No Rebate\"),0)","v":0},{"$f":"IF(Table_PI[[#This Row],[Hide:\nFormula Name]]<>\"\",IFERROR(IF(MeasureCalc(Table_PI[[#This Row],[Hide:\nFormula Name]],Table_PI[[#This Row],[Quantity]],Table_PI[[#This Row],[List 1]],Table_PI[[#This Row],[List 2]],Table_PI[[#This Row],[List 3]],Table_PI[[#This Row],[Size]],Table_PI[[#This Row],[Input 1]],Table_PI[[#This Row],[Input 2]],Table_PI[[#This Row],[Input 3]],Table_PI[[#This Row],[Input 4]],'Customer Information'!$AR$12,1,ROW())>0,MeasureCalc(Table_PI[[#This Row],[Hide:\nFormula Name]],Table_PI[[#This Row],[Quantity]],Table_PI[[#This Row],[List 1]],Table_PI[[#This Row],[List 2]],Table_PI[[#This Row],[List 3]],Table_PI[[#This Row],[Size]],Table_PI[[#This Row],[Input 1]],Table_PI[[#This Row],[Input 2]],Table_PI[[#This Row],[Input 3]],Table_PI[[#This Row],[Input 4]],'Customer Information'!$AR$12,2,ROW()),\"No Rebate\"),\"No Rebate\"),0)","v":0},{"$f":"IF(Table_PI[[#This Row],[Hide:\nFormula Name]]<>\"\",IFERROR(IF(MeasureCalc(Table_PI[[#This Row],[Hide:\nFormula Name]],Table_PI[[#This Row],[Quantity]],Table_PI[[#This Row],[List 1]],Table_PI[[#This Row],[List 2]],Table_PI[[#This Row],[List 3]],Table_PI[[#This Row],[Size]],Table_PI[[#This Row],[Input 1]],Table_PI[[#This Row],[Input 2]],Table_PI[[#This Row],[Input 3]],Table_PI[[#This Row],[Input 4]],'Customer Information'!$AR$12,1,ROW())>0,MeasureCalc(Table_PI[[#This Row],[Hide:\nFormula Name]],Table_PI[[#This Row],[Quantity]],Table_PI[[#This Row],[List 1]],Table_PI[[#This Row],[List 2]],Table_PI[[#This Row],[List 3]],Table_PI[[#This Row],[Size]],Table_PI[[#This Row],[Input 1]],Table_PI[[#This Row],[Input 2]],Table_PI[[#This Row],[Input 3]],Table_PI[[#This Row],[Input 4]],'Customer Information'!$AR$12,3,ROW()),\"No Rebate\"),\"No Rebate\"),0)","v":0},{"$f":"IF(Table_PI[[#This Row],[Hide:\nFormula Name]]<>\"\",IFERROR(IF(MeasureCalc(Table_PI[[#This Row],[Hide:\nFormula Name]],Table_PI[[#This Row],[Quantity]],Table_PI[[#This Row],[List 1]],Table_PI[[#This Row],[List 2]],Table_PI[[#This Row],[List 3]],Table_PI[[#This Row],[Size]],Table_PI[[#This Row],[Input 1]],Table_PI[[#This Row],[Input 2]],Table_PI[[#This Row],[Input 3]],Table_PI[[#This Row],[Input 4]],'Customer Information'!$AR$12,1,ROW())>0,MeasureCalc(Table_PI[[#This Row],[Hide:\nFormula Name]],Table_PI[[#This Row],[Quantity]],Table_PI[[#This Row],[List 1]],Table_PI[[#This Row],[List 2]],Table_PI[[#This Row],[List 3]],Table_PI[[#This Row],[Size]],Table_PI[[#This Row],[Input 1]],Table_PI[[#This Row],[Input 2]],Table_PI[[#This Row],[Input 3]],Table_PI[[#This Row],[Input 4]],'Customer Information'!$AR$12,4,ROW()),\"No Rebate\"),\"No Rebate\"),0)","v":0},{"$f":"IF(Table_PI[[#This Row],[Hide:\nFormula Name]]<>\"\",IFERROR(IF(MeasureCalc(Table_PI[[#This Row],[Hide:\nFormula Name]],Table_PI[[#This Row],[Quantity]],Table_PI[[#This Row],[List 1]],Table_PI[[#This Row],[List 2]],Table_PI[[#This Row],[List 3]],Table_PI[[#This Row],[Size]],Table_PI[[#This Row],[Input 1]],Table_PI[[#This Row],[Input 2]],Table_PI[[#This Row],[Input 3]],Table_PI[[#This Row],[Input 4]],'Customer Information'!$AR$12,1,ROW())>0,MeasureCalc(Table_PI[[#This Row],[Hide:\nFormula Name]],Table_PI[[#This Row],[Quantity]],Table_PI[[#This Row],[List 1]],Table_PI[[#This Row],[List 2]],Table_PI[[#This Row],[List 3]],Table_PI[[#This Row],[Size]],Table_PI[[#This Row],[Input 1]],Table_PI[[#This Row],[Input 2]],Table_PI[[#This Row],[Input 3]],Table_PI[[#This Row],[Input 4]],'Customer Information'!$AR$12,5,ROW()),\"No Rebate\"),\"No Rebate\"),0)","v":0},{"$f":"IF(Table_PI[[#This Row],[Hide:\nFormula Name]]<>\"\",IFERROR(IF(MeasureCalc(Table_PI[[#This Row],[Hide:\nFormula Name]],Table_PI[[#This Row],[Quantity]],Table_PI[[#This Row],[List 1]],Table_PI[[#This Row],[List 2]],Table_PI[[#This Row],[List 3]],Table_PI[[#This Row],[Size]],Table_PI[[#This Row],[Input 1]],Table_PI[[#This Row],[Input 2]],Table_PI[[#This Row],[Input 3]],Table_PI[[#This Row],[Input 4]],'Customer Information'!$AR$12,1,ROW())>0,MeasureCalc(Table_PI[[#This Row],[Hide:\nFormula Name]],Table_PI[[#This Row],[Quantity]],Table_PI[[#This Row],[List 1]],Table_PI[[#This Row],[List 2]],Table_PI[[#This Row],[List 3]],Table_PI[[#This Row],[Size]],Table_PI[[#This Row],[Input 1]],Table_PI[[#This Row],[Input 2]],Table_PI[[#This Row],[Input 3]],Table_PI[[#This Row],[Input 4]],'Customer Information'!$AR$12,6,ROW()),\"No Rebate\"),\"No Rebate\"),0)","v":0},{"$f":"IF(Table_PI[[#This Row],[Hide:\nFormula Name]]<>\"\",IFERROR(IF(MeasureCalc(Table_PI[[#This Row],[Hide:\nFormula Name]],Table_PI[[#This Row],[Quantity]],Table_PI[[#This Row],[List 1]],Table_PI[[#This Row],[List 2]],Table_PI[[#This Row],[List 3]],Table_PI[[#This Row],[Size]],Table_PI[[#This Row],[Input 1]],Table_PI[[#This Row],[Input 2]],Table_PI[[#This Row],[Input 3]],Table_PI[[#This Row],[Input 4]],'Customer Information'!$AR$12,1,ROW())>0,MeasureCalc(Table_PI[[#This Row],[Hide:\nFormula Name]],Table_PI[[#This Row],[Quantity]],Table_PI[[#This Row],[List 1]],Table_PI[[#This Row],[List 2]],Table_PI[[#This Row],[List 3]],Table_PI[[#This Row],[Size]],Table_PI[[#This Row],[Input 1]],Table_PI[[#This Row],[Input 2]],Table_PI[[#This Row],[Input 3]],Table_PI[[#This Row],[Input 4]],'Customer Information'!$AR$12,7,ROW()),\"No Rebate\"),\"No Rebate\"),0)","v":0},{"$f":"IF(Table_PI[[#This Row],[Hide:\nFormula Name]]<>\"\",IFERROR(IF(MeasureCalc(Table_PI[[#This Row],[Hide:\nFormula Name]],Table_PI[[#This Row],[Quantity]],Table_PI[[#This Row],[List 1]],Table_PI[[#This Row],[List 2]],Table_PI[[#This Row],[List 3]],Table_PI[[#This Row],[Size]],Table_PI[[#This Row],[Input 1]],Table_PI[[#This Row],[Input 2]],Table_PI[[#This Row],[Input 3]],Table_PI[[#This Row],[Input 4]],'Customer Information'!$AR$12,1,ROW())>0,MeasureCalc(Table_PI[[#This Row],[Hide:\nFormula Name]],Table_PI[[#This Row],[Quantity]],Table_PI[[#This Row],[List 1]],Table_PI[[#This Row],[List 2]],Table_PI[[#This Row],[List 3]],Table_PI[[#This Row],[Size]],Table_PI[[#This Row],[Input 1]],Table_PI[[#This Row],[Input 2]],Table_PI[[#This Row],[Input 3]],Table_PI[[#This Row],[Input 4]],'Customer Information'!$AR$12,8,ROW()),\"No Rebate\"),\"No Rebate\"),0)","v":0},{"$f":"IF(Table_PI[[#This Row],[Hide:\nFormula Name]]<>\"\",IF(AND(Table_PI[[#This Row],[Hide:\nFormula Name]]<>\"\",OR(Table_PI[[#This Row],[Rebate]]>0,Table_PI[[#This Row],[Rebate]]=\"No Rebate\")),TRUE,\"MI: Line Item \" & $A358),\"\")","v":""}]
[{"$f":"IF(Table_PI[[#This Row],[Hide:\nFormula Name]]<>\"\",MAX($A$2:A358)+1,\"\")","v":""},null,null,null,null,null,null,null,null,null,null,null,null,null,null,{"$f":"IFERROR(VLOOKUP(Table_PI[[#This Row],[Measure]],'Equipment Lookups'!$C$3:$D$23,2,FALSE),\"\")","v":""},{"$f":"IF(Table_PI[[#This Row],[Hide:\nFormula Name]]<>\"\",IFERROR(IF(MeasureCalc(Table_PI[[#This Row],[Hide:\nFormula Name]],Table_PI[[#This Row],[Quantity]],Table_PI[[#This Row],[List 1]],Table_PI[[#This Row],[List 2]],Table_PI[[#This Row],[List 3]],Table_PI[[#This Row],[Size]],Table_PI[[#This Row],[Input 1]],Table_PI[[#This Row],[Input 2]],Table_PI[[#This Row],[Input 3]],Table_PI[[#This Row],[Input 4]],'Customer Information'!$AR$12,1,ROW())>0,MeasureCalc(Table_PI[[#This Row],[Hide:\nFormula Name]],Table_PI[[#This Row],[Quantity]],Table_PI[[#This Row],[List 1]],Table_PI[[#This Row],[List 2]],Table_PI[[#This Row],[List 3]],Table_PI[[#This Row],[Size]],Table_PI[[#This Row],[Input 1]],Table_PI[[#This Row],[Input 2]],Table_PI[[#This Row],[Input 3]],Table_PI[[#This Row],[Input 4]],'Customer Information'!$AR$12,1,ROW()),\"No Rebate\"),\"No Rebate\"),0)","v":0},{"$f":"IF(Table_PI[[#This Row],[Hide:\nFormula Name]]<>\"\",IFERROR(IF(MeasureCalc(Table_PI[[#This Row],[Hide:\nFormula Name]],Table_PI[[#This Row],[Quantity]],Table_PI[[#This Row],[List 1]],Table_PI[[#This Row],[List 2]],Table_PI[[#This Row],[List 3]],Table_PI[[#This Row],[Size]],Table_PI[[#This Row],[Input 1]],Table_PI[[#This Row],[Input 2]],Table_PI[[#This Row],[Input 3]],Table_PI[[#This Row],[Input 4]],'Customer Information'!$AR$12,1,ROW())>0,MeasureCalc(Table_PI[[#This Row],[Hide:\nFormula Name]],Table_PI[[#This Row],[Quantity]],Table_PI[[#This Row],[List 1]],Table_PI[[#This Row],[List 2]],Table_PI[[#This Row],[List 3]],Table_PI[[#This Row],[Size]],Table_PI[[#This Row],[Input 1]],Table_PI[[#This Row],[Input 2]],Table_PI[[#This Row],[Input 3]],Table_PI[[#This Row],[Input 4]],'Customer Information'!$AR$12,2,ROW()),\"No Rebate\"),\"No Rebate\"),0)","v":0},{"$f":"IF(Table_PI[[#This Row],[Hide:\nFormula Name]]<>\"\",IFERROR(IF(MeasureCalc(Table_PI[[#This Row],[Hide:\nFormula Name]],Table_PI[[#This Row],[Quantity]],Table_PI[[#This Row],[List 1]],Table_PI[[#This Row],[List 2]],Table_PI[[#This Row],[List 3]],Table_PI[[#This Row],[Size]],Table_PI[[#This Row],[Input 1]],Table_PI[[#This Row],[Input 2]],Table_PI[[#This Row],[Input 3]],Table_PI[[#This Row],[Input 4]],'Customer Information'!$AR$12,1,ROW())>0,MeasureCalc(Table_PI[[#This Row],[Hide:\nFormula Name]],Table_PI[[#This Row],[Quantity]],Table_PI[[#This Row],[List 1]],Table_PI[[#This Row],[List 2]],Table_PI[[#This Row],[List 3]],Table_PI[[#This Row],[Size]],Table_PI[[#This Row],[Input 1]],Table_PI[[#This Row],[Input 2]],Table_PI[[#This Row],[Input 3]],Table_PI[[#This Row],[Input 4]],'Customer Information'!$AR$12,3,ROW()),\"No Rebate\"),\"No Rebate\"),0)","v":0},{"$f":"IF(Table_PI[[#This Row],[Hide:\nFormula Name]]<>\"\",IFERROR(IF(MeasureCalc(Table_PI[[#This Row],[Hide:\nFormula Name]],Table_PI[[#This Row],[Quantity]],Table_PI[[#This Row],[List 1]],Table_PI[[#This Row],[List 2]],Table_PI[[#This Row],[List 3]],Table_PI[[#This Row],[Size]],Table_PI[[#This Row],[Input 1]],Table_PI[[#This Row],[Input 2]],Table_PI[[#This Row],[Input 3]],Table_PI[[#This Row],[Input 4]],'Customer Information'!$AR$12,1,ROW())>0,MeasureCalc(Table_PI[[#This Row],[Hide:\nFormula Name]],Table_PI[[#This Row],[Quantity]],Table_PI[[#This Row],[List 1]],Table_PI[[#This Row],[List 2]],Table_PI[[#This Row],[List 3]],Table_PI[[#This Row],[Size]],Table_PI[[#This Row],[Input 1]],Table_PI[[#This Row],[Input 2]],Table_PI[[#This Row],[Input 3]],Table_PI[[#This Row],[Input 4]],'Customer Information'!$AR$12,4,ROW()),\"No Rebate\"),\"No Rebate\"),0)","v":0},{"$f":"IF(Table_PI[[#This Row],[Hide:\nFormula Name]]<>\"\",IFERROR(IF(MeasureCalc(Table_PI[[#This Row],[Hide:\nFormula Name]],Table_PI[[#This Row],[Quantity]],Table_PI[[#This Row],[List 1]],Table_PI[[#This Row],[List 2]],Table_PI[[#This Row],[List 3]],Table_PI[[#This Row],[Size]],Table_PI[[#This Row],[Input 1]],Table_PI[[#This Row],[Input 2]],Table_PI[[#This Row],[Input 3]],Table_PI[[#This Row],[Input 4]],'Customer Information'!$AR$12,1,ROW())>0,MeasureCalc(Table_PI[[#This Row],[Hide:\nFormula Name]],Table_PI[[#This Row],[Quantity]],Table_PI[[#This Row],[List 1]],Table_PI[[#This Row],[List 2]],Table_PI[[#This Row],[List 3]],Table_PI[[#This Row],[Size]],Table_PI[[#This Row],[Input 1]],Table_PI[[#This Row],[Input 2]],Table_PI[[#This Row],[Input 3]],Table_PI[[#This Row],[Input 4]],'Customer Information'!$AR$12,5,ROW()),\"No Rebate\"),\"No Rebate\"),0)","v":0},{"$f":"IF(Table_PI[[#This Row],[Hide:\nFormula Name]]<>\"\",IFERROR(IF(MeasureCalc(Table_PI[[#This Row],[Hide:\nFormula Name]],Table_PI[[#This Row],[Quantity]],Table_PI[[#This Row],[List 1]],Table_PI[[#This Row],[List 2]],Table_PI[[#This Row],[List 3]],Table_PI[[#This Row],[Size]],Table_PI[[#This Row],[Input 1]],Table_PI[[#This Row],[Input 2]],Table_PI[[#This Row],[Input 3]],Table_PI[[#This Row],[Input 4]],'Customer Information'!$AR$12,1,ROW())>0,MeasureCalc(Table_PI[[#This Row],[Hide:\nFormula Name]],Table_PI[[#This Row],[Quantity]],Table_PI[[#This Row],[List 1]],Table_PI[[#This Row],[List 2]],Table_PI[[#This Row],[List 3]],Table_PI[[#This Row],[Size]],Table_PI[[#This Row],[Input 1]],Table_PI[[#This Row],[Input 2]],Table_PI[[#This Row],[Input 3]],Table_PI[[#This Row],[Input 4]],'Customer Information'!$AR$12,6,ROW()),\"No Rebate\"),\"No Rebate\"),0)","v":0},{"$f":"IF(Table_PI[[#This Row],[Hide:\nFormula Name]]<>\"\",IFERROR(IF(MeasureCalc(Table_PI[[#This Row],[Hide:\nFormula Name]],Table_PI[[#This Row],[Quantity]],Table_PI[[#This Row],[List 1]],Table_PI[[#This Row],[List 2]],Table_PI[[#This Row],[List 3]],Table_PI[[#This Row],[Size]],Table_PI[[#This Row],[Input 1]],Table_PI[[#This Row],[Input 2]],Table_PI[[#This Row],[Input 3]],Table_PI[[#This Row],[Input 4]],'Customer Information'!$AR$12,1,ROW())>0,MeasureCalc(Table_PI[[#This Row],[Hide:\nFormula Name]],Table_PI[[#This Row],[Quantity]],Table_PI[[#This Row],[List 1]],Table_PI[[#This Row],[List 2]],Table_PI[[#This Row],[List 3]],Table_PI[[#This Row],[Size]],Table_PI[[#This Row],[Input 1]],Table_PI[[#This Row],[Input 2]],Table_PI[[#This Row],[Input 3]],Table_PI[[#This Row],[Input 4]],'Customer Information'!$AR$12,7,ROW()),\"No Rebate\"),\"No Rebate\"),0)","v":0},{"$f":"IF(Table_PI[[#This Row],[Hide:\nFormula Name]]<>\"\",IFERROR(IF(MeasureCalc(Table_PI[[#This Row],[Hide:\nFormula Name]],Table_PI[[#This Row],[Quantity]],Table_PI[[#This Row],[List 1]],Table_PI[[#This Row],[List 2]],Table_PI[[#This Row],[List 3]],Table_PI[[#This Row],[Size]],Table_PI[[#This Row],[Input 1]],Table_PI[[#This Row],[Input 2]],Table_PI[[#This Row],[Input 3]],Table_PI[[#This Row],[Input 4]],'Customer Information'!$AR$12,1,ROW())>0,MeasureCalc(Table_PI[[#This Row],[Hide:\nFormula Name]],Table_PI[[#This Row],[Quantity]],Table_PI[[#This Row],[List 1]],Table_PI[[#This Row],[List 2]],Table_PI[[#This Row],[List 3]],Table_PI[[#This Row],[Size]],Table_PI[[#This Row],[Input 1]],Table_PI[[#This Row],[Input 2]],Table_PI[[#This Row],[Input 3]],Table_PI[[#This Row],[Input 4]],'Customer Information'!$AR$12,8,ROW()),\"No Rebate\"),\"No Rebate\"),0)","v":0},{"$f":"IF(Table_PI[[#This Row],[Hide:\nFormula Name]]<>\"\",IF(AND(Table_PI[[#This Row],[Hide:\nFormula Name]]<>\"\",OR(Table_PI[[#This Row],[Rebate]]>0,Table_PI[[#This Row],[Rebate]]=\"No Rebate\")),TRUE,\"MI: Line Item \" & $A359),\"\")","v":""}]
[{"$f":"IF(Table_PI[[#This Row],[Hide:\nFormula Name]]<>\"\",MAX($A$2:A359)+1,\"\")","v":""},null,null,null,null,null,null,null,null,null,null,null,null,null,null,{"$f":"IFERROR(VLOOKUP(Table_PI[[#This Row],[Measure]],'Equipment Lookups'!$C$3:$D$23,2,FALSE),\"\")","v":""},{"$f":"IF(Table_PI[[#This Row],[Hide:\nFormula Name]]<>\"\",IFERROR(IF(MeasureCalc(Table_PI[[#This Row],[Hide:\nFormula Name]],Table_PI[[#This Row],[Quantity]],Table_PI[[#This Row],[List 1]],Table_PI[[#This Row],[List 2]],Table_PI[[#This Row],[List 3]],Table_PI[[#This Row],[Size]],Table_PI[[#This Row],[Input 1]],Table_PI[[#This Row],[Input 2]],Table_PI[[#This Row],[Input 3]],Table_PI[[#This Row],[Input 4]],'Customer Information'!$AR$12,1,ROW())>0,MeasureCalc(Table_PI[[#This Row],[Hide:\nFormula Name]],Table_PI[[#This Row],[Quantity]],Table_PI[[#This Row],[List 1]],Table_PI[[#This Row],[List 2]],Table_PI[[#This Row],[List 3]],Table_PI[[#This Row],[Size]],Table_PI[[#This Row],[Input 1]],Table_PI[[#This Row],[Input 2]],Table_PI[[#This Row],[Input 3]],Table_PI[[#This Row],[Input 4]],'Customer Information'!$AR$12,1,ROW()),\"No Rebate\"),\"No Rebate\"),0)","v":0},{"$f":"IF(Table_PI[[#This Row],[Hide:\nFormula Name]]<>\"\",IFERROR(IF(MeasureCalc(Table_PI[[#This Row],[Hide:\nFormula Name]],Table_PI[[#This Row],[Quantity]],Table_PI[[#This Row],[List 1]],Table_PI[[#This Row],[List 2]],Table_PI[[#This Row],[List 3]],Table_PI[[#This Row],[Size]],Table_PI[[#This Row],[Input 1]],Table_PI[[#This Row],[Input 2]],Table_PI[[#This Row],[Input 3]],Table_PI[[#This Row],[Input 4]],'Customer Information'!$AR$12,1,ROW())>0,MeasureCalc(Table_PI[[#This Row],[Hide:\nFormula Name]],Table_PI[[#This Row],[Quantity]],Table_PI[[#This Row],[List 1]],Table_PI[[#This Row],[List 2]],Table_PI[[#This Row],[List 3]],Table_PI[[#This Row],[Size]],Table_PI[[#This Row],[Input 1]],Table_PI[[#This Row],[Input 2]],Table_PI[[#This Row],[Input 3]],Table_PI[[#This Row],[Input 4]],'Customer Information'!$AR$12,2,ROW()),\"No Rebate\"),\"No Rebate\"),0)","v":0},{"$f":"IF(Table_PI[[#This Row],[Hide:\nFormula Name]]<>\"\",IFERROR(IF(MeasureCalc(Table_PI[[#This Row],[Hide:\nFormula Name]],Table_PI[[#This Row],[Quantity]],Table_PI[[#This Row],[List 1]],Table_PI[[#This Row],[List 2]],Table_PI[[#This Row],[List 3]],Table_PI[[#This Row],[Size]],Table_PI[[#This Row],[Input 1]],Table_PI[[#This Row],[Input 2]],Table_PI[[#This Row],[Input 3]],Table_PI[[#This Row],[Input 4]],'Customer Information'!$AR$12,1,ROW())>0,MeasureCalc(Table_PI[[#This Row],[Hide:\nFormula Name]],Table_PI[[#This Row],[Quantity]],Table_PI[[#This Row],[List 1]],Table_PI[[#This Row],[List 2]],Table_PI[[#This Row],[List 3]],Table_PI[[#This Row],[Size]],Table_PI[[#This Row],[Input 1]],Table_PI[[#This Row],[Input 2]],Table_PI[[#This Row],[Input 3]],Table_PI[[#This Row],[Input 4]],'Customer Information'!$AR$12,3,ROW()),\"No Rebate\"),\"No Rebate\"),0)","v":0},{"$f":"IF(Table_PI[[#This Row],[Hide:\nFormula Name]]<>\"\",IFERROR(IF(MeasureCalc(Table_PI[[#This Row],[Hide:\nFormula Name]],Table_PI[[#This Row],[Quantity]],Table_PI[[#This Row],[List 1]],Table_PI[[#This Row],[List 2]],Table_PI[[#This Row],[List 3]],Table_PI[[#This Row],[Size]],Table_PI[[#This Row],[Input 1]],Table_PI[[#This Row],[Input 2]],Table_PI[[#This Row],[Input 3]],Table_PI[[#This Row],[Input 4]],'Customer Information'!$AR$12,1,ROW())>0,MeasureCalc(Table_PI[[#This Row],[Hide:\nFormula Name]],Table_PI[[#This Row],[Quantity]],Table_PI[[#This Row],[List 1]],Table_PI[[#This Row],[List 2]],Table_PI[[#This Row],[List 3]],Table_PI[[#This Row],[Size]],Table_PI[[#This Row],[Input 1]],Table_PI[[#This Row],[Input 2]],Table_PI[[#This Row],[Input 3]],Table_PI[[#This Row],[Input 4]],'Customer Information'!$AR$12,4,ROW()),\"No Rebate\"),\"No Rebate\"),0)","v":0},{"$f":"IF(Table_PI[[#This Row],[Hide:\nFormula Name]]<>\"\",IFERROR(IF(MeasureCalc(Table_PI[[#This Row],[Hide:\nFormula Name]],Table_PI[[#This Row],[Quantity]],Table_PI[[#This Row],[List 1]],Table_PI[[#This Row],[List 2]],Table_PI[[#This Row],[List 3]],Table_PI[[#This Row],[Size]],Table_PI[[#This Row],[Input 1]],Table_PI[[#This Row],[Input 2]],Table_PI[[#This Row],[Input 3]],Table_PI[[#This Row],[Input 4]],'Customer Information'!$AR$12,1,ROW())>0,MeasureCalc(Table_PI[[#This Row],[Hide:\nFormula Name]],Table_PI[[#This Row],[Quantity]],Table_PI[[#This Row],[List 1]],Table_PI[[#This Row],[List 2]],Table_PI[[#This Row],[List 3]],Table_PI[[#This Row],[Size]],Table_PI[[#This Row],[Input 1]],Table_PI[[#This Row],[Input 2]],Table_PI[[#This Row],[Input 3]],Table_PI[[#This Row],[Input 4]],'Customer Information'!$AR$12,5,ROW()),\"No Rebate\"),\"No Rebate\"),0)","v":0},{"$f":"IF(Table_PI[[#This Row],[Hide:\nFormula Name]]<>\"\",IFERROR(IF(MeasureCalc(Table_PI[[#This Row],[Hide:\nFormula Name]],Table_PI[[#This Row],[Quantity]],Table_PI[[#This Row],[List 1]],Table_PI[[#This Row],[List 2]],Table_PI[[#This Row],[List 3]],Table_PI[[#This Row],[Size]],Table_PI[[#This Row],[Input 1]],Table_PI[[#This Row],[Input 2]],Table_PI[[#This Row],[Input 3]],Table_PI[[#This Row],[Input 4]],'Customer Information'!$AR$12,1,ROW())>0,MeasureCalc(Table_PI[[#This Row],[Hide:\nFormula Name]],Table_PI[[#This Row],[Quantity]],Table_PI[[#This Row],[List 1]],Table_PI[[#This Row],[List 2]],Table_PI[[#This Row],[List 3]],Table_PI[[#This Row],[Size]],Table_PI[[#This Row],[Input 1]],Table_PI[[#This Row],[Input 2]],Table_PI[[#This Row],[Input 3]],Table_PI[[#This Row],[Input 4]],'Customer Information'!$AR$12,6,ROW()),\"No Rebate\"),\"No Rebate\"),0)","v":0},{"$f":"IF(Table_PI[[#This Row],[Hide:\nFormula Name]]<>\"\",IFERROR(IF(MeasureCalc(Table_PI[[#This Row],[Hide:\nFormula Name]],Table_PI[[#This Row],[Quantity]],Table_PI[[#This Row],[List 1]],Table_PI[[#This Row],[List 2]],Table_PI[[#This Row],[List 3]],Table_PI[[#This Row],[Size]],Table_PI[[#This Row],[Input 1]],Table_PI[[#This Row],[Input 2]],Table_PI[[#This Row],[Input 3]],Table_PI[[#This Row],[Input 4]],'Customer Information'!$AR$12,1,ROW())>0,MeasureCalc(Table_PI[[#This Row],[Hide:\nFormula Name]],Table_PI[[#This Row],[Quantity]],Table_PI[[#This Row],[List 1]],Table_PI[[#This Row],[List 2]],Table_PI[[#This Row],[List 3]],Table_PI[[#This Row],[Size]],Table_PI[[#This Row],[Input 1]],Table_PI[[#This Row],[Input 2]],Table_PI[[#This Row],[Input 3]],Table_PI[[#This Row],[Input 4]],'Customer Information'!$AR$12,7,ROW()),\"No Rebate\"),\"No Rebate\"),0)","v":0},{"$f":"IF(Table_PI[[#This Row],[Hide:\nFormula Name]]<>\"\",IFERROR(IF(MeasureCalc(Table_PI[[#This Row],[Hide:\nFormula Name]],Table_PI[[#This Row],[Quantity]],Table_PI[[#This Row],[List 1]],Table_PI[[#This Row],[List 2]],Table_PI[[#This Row],[List 3]],Table_PI[[#This Row],[Size]],Table_PI[[#This Row],[Input 1]],Table_PI[[#This Row],[Input 2]],Table_PI[[#This Row],[Input 3]],Table_PI[[#This Row],[Input 4]],'Customer Information'!$AR$12,1,ROW())>0,MeasureCalc(Table_PI[[#This Row],[Hide:\nFormula Name]],Table_PI[[#This Row],[Quantity]],Table_PI[[#This Row],[List 1]],Table_PI[[#This Row],[List 2]],Table_PI[[#This Row],[List 3]],Table_PI[[#This Row],[Size]],Table_PI[[#This Row],[Input 1]],Table_PI[[#This Row],[Input 2]],Table_PI[[#This Row],[Input 3]],Table_PI[[#This Row],[Input 4]],'Customer Information'!$AR$12,8,ROW()),\"No Rebate\"),\"No Rebate\"),0)","v":0},{"$f":"IF(Table_PI[[#This Row],[Hide:\nFormula Name]]<>\"\",IF(AND(Table_PI[[#This Row],[Hide:\nFormula Name]]<>\"\",OR(Table_PI[[#This Row],[Rebate]]>0,Table_PI[[#This Row],[Rebate]]=\"No Rebate\")),TRUE,\"MI: Line Item \" & $A360),\"\")","v":""}]
[{"$f":"IF(Table_PI[[#This Row],[Hide:\nFormula Name]]<>\"\",MAX($A$2:A360)+1,\"\")","v":""},null,null,null,null,null,null,null,null,null,null,null,null,null,null,{"$f":"IFERROR(VLOOKUP(Table_PI[[#This Row],[Measure]],'Equipment Lookups'!$C$3:$D$23,2,FALSE),\"\")","v":""},{"$f":"IF(Table_PI[[#This Row],[Hide:\nFormula Name]]<>\"\",IFERROR(IF(MeasureCalc(Table_PI[[#This Row],[Hide:\nFormula Name]],Table_PI[[#This Row],[Quantity]],Table_PI[[#This Row],[List 1]],Table_PI[[#This Row],[List 2]],Table_PI[[#This Row],[List 3]],Table_PI[[#This Row],[Size]],Table_PI[[#This Row],[Input 1]],Table_PI[[#This Row],[Input 2]],Table_PI[[#This Row],[Input 3]],Table_PI[[#This Row],[Input 4]],'Customer Information'!$AR$12,1,ROW())>0,MeasureCalc(Table_PI[[#This Row],[Hide:\nFormula Name]],Table_PI[[#This Row],[Quantity]],Table_PI[[#This Row],[List 1]],Table_PI[[#This Row],[List 2]],Table_PI[[#This Row],[List 3]],Table_PI[[#This Row],[Size]],Table_PI[[#This Row],[Input 1]],Table_PI[[#This Row],[Input 2]],Table_PI[[#This Row],[Input 3]],Table_PI[[#This Row],[Input 4]],'Customer Information'!$AR$12,1,ROW()),\"No Rebate\"),\"No Rebate\"),0)","v":0},{"$f":"IF(Table_PI[[#This Row],[Hide:\nFormula Name]]<>\"\",IFERROR(IF(MeasureCalc(Table_PI[[#This Row],[Hide:\nFormula Name]],Table_PI[[#This Row],[Quantity]],Table_PI[[#This Row],[List 1]],Table_PI[[#This Row],[List 2]],Table_PI[[#This Row],[List 3]],Table_PI[[#This Row],[Size]],Table_PI[[#This Row],[Input 1]],Table_PI[[#This Row],[Input 2]],Table_PI[[#This Row],[Input 3]],Table_PI[[#This Row],[Input 4]],'Customer Information'!$AR$12,1,ROW())>0,MeasureCalc(Table_PI[[#This Row],[Hide:\nFormula Name]],Table_PI[[#This Row],[Quantity]],Table_PI[[#This Row],[List 1]],Table_PI[[#This Row],[List 2]],Table_PI[[#This Row],[List 3]],Table_PI[[#This Row],[Size]],Table_PI[[#This Row],[Input 1]],Table_PI[[#This Row],[Input 2]],Table_PI[[#This Row],[Input 3]],Table_PI[[#This Row],[Input 4]],'Customer Information'!$AR$12,2,ROW()),\"No Rebate\"),\"No Rebate\"),0)","v":0},{"$f":"IF(Table_PI[[#This Row],[Hide:\nFormula Name]]<>\"\",IFERROR(IF(MeasureCalc(Table_PI[[#This Row],[Hide:\nFormula Name]],Table_PI[[#This Row],[Quantity]],Table_PI[[#This Row],[List 1]],Table_PI[[#This Row],[List 2]],Table_PI[[#This Row],[List 3]],Table_PI[[#This Row],[Size]],Table_PI[[#This Row],[Input 1]],Table_PI[[#This Row],[Input 2]],Table_PI[[#This Row],[Input 3]],Table_PI[[#This Row],[Input 4]],'Customer Information'!$AR$12,1,ROW())>0,MeasureCalc(Table_PI[[#This Row],[Hide:\nFormula Name]],Table_PI[[#This Row],[Quantity]],Table_PI[[#This Row],[List 1]],Table_PI[[#This Row],[List 2]],Table_PI[[#This Row],[List 3]],Table_PI[[#This Row],[Size]],Table_PI[[#This Row],[Input 1]],Table_PI[[#This Row],[Input 2]],Table_PI[[#This Row],[Input 3]],Table_PI[[#This Row],[Input 4]],'Customer Information'!$AR$12,3,ROW()),\"No Rebate\"),\"No Rebate\"),0)","v":0},{"$f":"IF(Table_PI[[#This Row],[Hide:\nFormula Name]]<>\"\",IFERROR(IF(MeasureCalc(Table_PI[[#This Row],[Hide:\nFormula Name]],Table_PI[[#This Row],[Quantity]],Table_PI[[#This Row],[List 1]],Table_PI[[#This Row],[List 2]],Table_PI[[#This Row],[List 3]],Table_PI[[#This Row],[Size]],Table_PI[[#This Row],[Input 1]],Table_PI[[#This Row],[Input 2]],Table_PI[[#This Row],[Input 3]],Table_PI[[#This Row],[Input 4]],'Customer Information'!$AR$12,1,ROW())>0,MeasureCalc(Table_PI[[#This Row],[Hide:\nFormula Name]],Table_PI[[#This Row],[Quantity]],Table_PI[[#This Row],[List 1]],Table_PI[[#This Row],[List 2]],Table_PI[[#This Row],[List 3]],Table_PI[[#This Row],[Size]],Table_PI[[#This Row],[Input 1]],Table_PI[[#This Row],[Input 2]],Table_PI[[#This Row],[Input 3]],Table_PI[[#This Row],[Input 4]],'Customer Information'!$AR$12,4,ROW()),\"No Rebate\"),\"No Rebate\"),0)","v":0},{"$f":"IF(Table_PI[[#This Row],[Hide:\nFormula Name]]<>\"\",IFERROR(IF(MeasureCalc(Table_PI[[#This Row],[Hide:\nFormula Name]],Table_PI[[#This Row],[Quantity]],Table_PI[[#This Row],[List 1]],Table_PI[[#This Row],[List 2]],Table_PI[[#This Row],[List 3]],Table_PI[[#This Row],[Size]],Table_PI[[#This Row],[Input 1]],Table_PI[[#This Row],[Input 2]],Table_PI[[#This Row],[Input 3]],Table_PI[[#This Row],[Input 4]],'Customer Information'!$AR$12,1,ROW())>0,MeasureCalc(Table_PI[[#This Row],[Hide:\nFormula Name]],Table_PI[[#This Row],[Quantity]],Table_PI[[#This Row],[List 1]],Table_PI[[#This Row],[List 2]],Table_PI[[#This Row],[List 3]],Table_PI[[#This Row],[Size]],Table_PI[[#This Row],[Input 1]],Table_PI[[#This Row],[Input 2]],Table_PI[[#This Row],[Input 3]],Table_PI[[#This Row],[Input 4]],'Customer Information'!$AR$12,5,ROW()),\"No Rebate\"),\"No Rebate\"),0)","v":0},{"$f":"IF(Table_PI[[#This Row],[Hide:\nFormula Name]]<>\"\",IFERROR(IF(MeasureCalc(Table_PI[[#This Row],[Hide:\nFormula Name]],Table_PI[[#This Row],[Quantity]],Table_PI[[#This Row],[List 1]],Table_PI[[#This Row],[List 2]],Table_PI[[#This Row],[List 3]],Table_PI[[#This Row],[Size]],Table_PI[[#This Row],[Input 1]],Table_PI[[#This Row],[Input 2]],Table_PI[[#This Row],[Input 3]],Table_PI[[#This Row],[Input 4]],'Customer Information'!$AR$12,1,ROW())>0,MeasureCalc(Table_PI[[#This Row],[Hide:\nFormula Name]],Table_PI[[#This Row],[Quantity]],Table_PI[[#This Row],[List 1]],Table_PI[[#This Row],[List 2]],Table_PI[[#This Row],[List 3]],Table_PI[[#This Row],[Size]],Table_PI[[#This Row],[Input 1]],Table_PI[[#This Row],[Input 2]],Table_PI[[#This Row],[Input 3]],Table_PI[[#This Row],[Input 4]],'Customer Information'!$AR$12,6,ROW()),\"No Rebate\"),\"No Rebate\"),0)","v":0},{"$f":"IF(Table_PI[[#This Row],[Hide:\nFormula Name]]<>\"\",IFERROR(IF(MeasureCalc(Table_PI[[#This Row],[Hide:\nFormula Name]],Table_PI[[#This Row],[Quantity]],Table_PI[[#This Row],[List 1]],Table_PI[[#This Row],[List 2]],Table_PI[[#This Row],[List 3]],Table_PI[[#This Row],[Size]],Table_PI[[#This Row],[Input 1]],Table_PI[[#This Row],[Input 2]],Table_PI[[#This Row],[Input 3]],Table_PI[[#This Row],[Input 4]],'Customer Information'!$AR$12,1,ROW())>0,MeasureCalc(Table_PI[[#This Row],[Hide:\nFormula Name]],Table_PI[[#This Row],[Quantity]],Table_PI[[#This Row],[List 1]],Table_PI[[#This Row],[List 2]],Table_PI[[#This Row],[List 3]],Table_PI[[#This Row],[Size]],Table_PI[[#This Row],[Input 1]],Table_PI[[#This Row],[Input 2]],Table_PI[[#This Row],[Input 3]],Table_PI[[#This Row],[Input 4]],'Customer Information'!$AR$12,7,ROW()),\"No Rebate\"),\"No Rebate\"),0)","v":0},{"$f":"IF(Table_PI[[#This Row],[Hide:\nFormula Name]]<>\"\",IFERROR(IF(MeasureCalc(Table_PI[[#This Row],[Hide:\nFormula Name]],Table_PI[[#This Row],[Quantity]],Table_PI[[#This Row],[List 1]],Table_PI[[#This Row],[List 2]],Table_PI[[#This Row],[List 3]],Table_PI[[#This Row],[Size]],Table_PI[[#This Row],[Input 1]],Table_PI[[#This Row],[Input 2]],Table_PI[[#This Row],[Input 3]],Table_PI[[#This Row],[Input 4]],'Customer Information'!$AR$12,1,ROW())>0,MeasureCalc(Table_PI[[#This Row],[Hide:\nFormula Name]],Table_PI[[#This Row],[Quantity]],Table_PI[[#This Row],[List 1]],Table_PI[[#This Row],[List 2]],Table_PI[[#This Row],[List 3]],Table_PI[[#This Row],[Size]],Table_PI[[#This Row],[Input 1]],Table_PI[[#This Row],[Input 2]],Table_PI[[#This Row],[Input 3]],Table_PI[[#This Row],[Input 4]],'Customer Information'!$AR$12,8,ROW()),\"No Rebate\"),\"No Rebate\"),0)","v":0},{"$f":"IF(Table_PI[[#This Row],[Hide:\nFormula Name]]<>\"\",IF(AND(Table_PI[[#This Row],[Hide:\nFormula Name]]<>\"\",OR(Table_PI[[#This Row],[Rebate]]>0,Table_PI[[#This Row],[Rebate]]=\"No Rebate\")),TRUE,\"MI: Line Item \" & $A361),\"\")","v":""}]
[{"$f":"IF(Table_PI[[#This Row],[Hide:\nFormula Name]]<>\"\",MAX($A$2:A361)+1,\"\")","v":""},null,null,null,null,null,null,null,null,null,null,null,null,null,null,{"$f":"IFERROR(VLOOKUP(Table_PI[[#This Row],[Measure]],'Equipment Lookups'!$C$3:$D$23,2,FALSE),\"\")","v":""},{"$f":"IF(Table_PI[[#This Row],[Hide:\nFormula Name]]<>\"\",IFERROR(IF(MeasureCalc(Table_PI[[#This Row],[Hide:\nFormula Name]],Table_PI[[#This Row],[Quantity]],Table_PI[[#This Row],[List 1]],Table_PI[[#This Row],[List 2]],Table_PI[[#This Row],[List 3]],Table_PI[[#This Row],[Size]],Table_PI[[#This Row],[Input 1]],Table_PI[[#This Row],[Input 2]],Table_PI[[#This Row],[Input 3]],Table_PI[[#This Row],[Input 4]],'Customer Information'!$AR$12,1,ROW())>0,MeasureCalc(Table_PI[[#This Row],[Hide:\nFormula Name]],Table_PI[[#This Row],[Quantity]],Table_PI[[#This Row],[List 1]],Table_PI[[#This Row],[List 2]],Table_PI[[#This Row],[List 3]],Table_PI[[#This Row],[Size]],Table_PI[[#This Row],[Input 1]],Table_PI[[#This Row],[Input 2]],Table_PI[[#This Row],[Input 3]],Table_PI[[#This Row],[Input 4]],'Customer Information'!$AR$12,1,ROW()),\"No Rebate\"),\"No Rebate\"),0)","v":0},{"$f":"IF(Table_PI[[#This Row],[Hide:\nFormula Name]]<>\"\",IFERROR(IF(MeasureCalc(Table_PI[[#This Row],[Hide:\nFormula Name]],Table_PI[[#This Row],[Quantity]],Table_PI[[#This Row],[List 1]],Table_PI[[#This Row],[List 2]],Table_PI[[#This Row],[List 3]],Table_PI[[#This Row],[Size]],Table_PI[[#This Row],[Input 1]],Table_PI[[#This Row],[Input 2]],Table_PI[[#This Row],[Input 3]],Table_PI[[#This Row],[Input 4]],'Customer Information'!$AR$12,1,ROW())>0,MeasureCalc(Table_PI[[#This Row],[Hide:\nFormula Name]],Table_PI[[#This Row],[Quantity]],Table_PI[[#This Row],[List 1]],Table_PI[[#This Row],[List 2]],Table_PI[[#This Row],[List 3]],Table_PI[[#This Row],[Size]],Table_PI[[#This Row],[Input 1]],Table_PI[[#This Row],[Input 2]],Table_PI[[#This Row],[Input 3]],Table_PI[[#This Row],[Input 4]],'Customer Information'!$AR$12,2,ROW()),\"No Rebate\"),\"No Rebate\"),0)","v":0},{"$f":"IF(Table_PI[[#This Row],[Hide:\nFormula Name]]<>\"\",IFERROR(IF(MeasureCalc(Table_PI[[#This Row],[Hide:\nFormula Name]],Table_PI[[#This Row],[Quantity]],Table_PI[[#This Row],[List 1]],Table_PI[[#This Row],[List 2]],Table_PI[[#This Row],[List 3]],Table_PI[[#This Row],[Size]],Table_PI[[#This Row],[Input 1]],Table_PI[[#This Row],[Input 2]],Table_PI[[#This Row],[Input 3]],Table_PI[[#This Row],[Input 4]],'Customer Information'!$AR$12,1,ROW())>0,MeasureCalc(Table_PI[[#This Row],[Hide:\nFormula Name]],Table_PI[[#This Row],[Quantity]],Table_PI[[#This Row],[List 1]],Table_PI[[#This Row],[List 2]],Table_PI[[#This Row],[List 3]],Table_PI[[#This Row],[Size]],Table_PI[[#This Row],[Input 1]],Table_PI[[#This Row],[Input 2]],Table_PI[[#This Row],[Input 3]],Table_PI[[#This Row],[Input 4]],'Customer Information'!$AR$12,3,ROW()),\"No Rebate\"),\"No Rebate\"),0)","v":0},{"$f":"IF(Table_PI[[#This Row],[Hide:\nFormula Name]]<>\"\",IFERROR(IF(MeasureCalc(Table_PI[[#This Row],[Hide:\nFormula Name]],Table_PI[[#This Row],[Quantity]],Table_PI[[#This Row],[List 1]],Table_PI[[#This Row],[List 2]],Table_PI[[#This Row],[List 3]],Table_PI[[#This Row],[Size]],Table_PI[[#This Row],[Input 1]],Table_PI[[#This Row],[Input 2]],Table_PI[[#This Row],[Input 3]],Table_PI[[#This Row],[Input 4]],'Customer Information'!$AR$12,1,ROW())>0,MeasureCalc(Table_PI[[#This Row],[Hide:\nFormula Name]],Table_PI[[#This Row],[Quantity]],Table_PI[[#This Row],[List 1]],Table_PI[[#This Row],[List 2]],Table_PI[[#This Row],[List 3]],Table_PI[[#This Row],[Size]],Table_PI[[#This Row],[Input 1]],Table_PI[[#This Row],[Input 2]],Table_PI[[#This Row],[Input 3]],Table_PI[[#This Row],[Input 4]],'Customer Information'!$AR$12,4,ROW()),\"No Rebate\"),\"No Rebate\"),0)","v":0},{"$f":"IF(Table_PI[[#This Row],[Hide:\nFormula Name]]<>\"\",IFERROR(IF(MeasureCalc(Table_PI[[#This Row],[Hide:\nFormula Name]],Table_PI[[#This Row],[Quantity]],Table_PI[[#This Row],[List 1]],Table_PI[[#This Row],[List 2]],Table_PI[[#This Row],[List 3]],Table_PI[[#This Row],[Size]],Table_PI[[#This Row],[Input 1]],Table_PI[[#This Row],[Input 2]],Table_PI[[#This Row],[Input 3]],Table_PI[[#This Row],[Input 4]],'Customer Information'!$AR$12,1,ROW())>0,MeasureCalc(Table_PI[[#This Row],[Hide:\nFormula Name]],Table_PI[[#This Row],[Quantity]],Table_PI[[#This Row],[List 1]],Table_PI[[#This Row],[List 2]],Table_PI[[#This Row],[List 3]],Table_PI[[#This Row],[Size]],Table_PI[[#This Row],[Input 1]],Table_PI[[#This Row],[Input 2]],Table_PI[[#This Row],[Input 3]],Table_PI[[#This Row],[Input 4]],'Customer Information'!$AR$12,5,ROW()),\"No Rebate\"),\"No Rebate\"),0)","v":0},{"$f":"IF(Table_PI[[#This Row],[Hide:\nFormula Name]]<>\"\",IFERROR(IF(MeasureCalc(Table_PI[[#This Row],[Hide:\nFormula Name]],Table_PI[[#This Row],[Quantity]],Table_PI[[#This Row],[List 1]],Table_PI[[#This Row],[List 2]],Table_PI[[#This Row],[List 3]],Table_PI[[#This Row],[Size]],Table_PI[[#This Row],[Input 1]],Table_PI[[#This Row],[Input 2]],Table_PI[[#This Row],[Input 3]],Table_PI[[#This Row],[Input 4]],'Customer Information'!$AR$12,1,ROW())>0,MeasureCalc(Table_PI[[#This Row],[Hide:\nFormula Name]],Table_PI[[#This Row],[Quantity]],Table_PI[[#This Row],[List 1]],Table_PI[[#This Row],[List 2]],Table_PI[[#This Row],[List 3]],Table_PI[[#This Row],[Size]],Table_PI[[#This Row],[Input 1]],Table_PI[[#This Row],[Input 2]],Table_PI[[#This Row],[Input 3]],Table_PI[[#This Row],[Input 4]],'Customer Information'!$AR$12,6,ROW()),\"No Rebate\"),\"No Rebate\"),0)","v":0},{"$f":"IF(Table_PI[[#This Row],[Hide:\nFormula Name]]<>\"\",IFERROR(IF(MeasureCalc(Table_PI[[#This Row],[Hide:\nFormula Name]],Table_PI[[#This Row],[Quantity]],Table_PI[[#This Row],[List 1]],Table_PI[[#This Row],[List 2]],Table_PI[[#This Row],[List 3]],Table_PI[[#This Row],[Size]],Table_PI[[#This Row],[Input 1]],Table_PI[[#This Row],[Input 2]],Table_PI[[#This Row],[Input 3]],Table_PI[[#This Row],[Input 4]],'Customer Information'!$AR$12,1,ROW())>0,MeasureCalc(Table_PI[[#This Row],[Hide:\nFormula Name]],Table_PI[[#This Row],[Quantity]],Table_PI[[#This Row],[List 1]],Table_PI[[#This Row],[List 2]],Table_PI[[#This Row],[List 3]],Table_PI[[#This Row],[Size]],Table_PI[[#This Row],[Input 1]],Table_PI[[#This Row],[Input 2]],Table_PI[[#This Row],[Input 3]],Table_PI[[#This Row],[Input 4]],'Customer Information'!$AR$12,7,ROW()),\"No Rebate\"),\"No Rebate\"),0)","v":0},{"$f":"IF(Table_PI[[#This Row],[Hide:\nFormula Name]]<>\"\",IFERROR(IF(MeasureCalc(Table_PI[[#This Row],[Hide:\nFormula Name]],Table_PI[[#This Row],[Quantity]],Table_PI[[#This Row],[List 1]],Table_PI[[#This Row],[List 2]],Table_PI[[#This Row],[List 3]],Table_PI[[#This Row],[Size]],Table_PI[[#This Row],[Input 1]],Table_PI[[#This Row],[Input 2]],Table_PI[[#This Row],[Input 3]],Table_PI[[#This Row],[Input 4]],'Customer Information'!$AR$12,1,ROW())>0,MeasureCalc(Table_PI[[#This Row],[Hide:\nFormula Name]],Table_PI[[#This Row],[Quantity]],Table_PI[[#This Row],[List 1]],Table_PI[[#This Row],[List 2]],Table_PI[[#This Row],[List 3]],Table_PI[[#This Row],[Size]],Table_PI[[#This Row],[Input 1]],Table_PI[[#This Row],[Input 2]],Table_PI[[#This Row],[Input 3]],Table_PI[[#This Row],[Input 4]],'Customer Information'!$AR$12,8,ROW()),\"No Rebate\"),\"No Rebate\"),0)","v":0},{"$f":"IF(Table_PI[[#This Row],[Hide:\nFormula Name]]<>\"\",IF(AND(Table_PI[[#This Row],[Hide:\nFormula Name]]<>\"\",OR(Table_PI[[#This Row],[Rebate]]>0,Table_PI[[#This Row],[Rebate]]=\"No Rebate\")),TRUE,\"MI: Line Item \" & $A362),\"\")","v":""}]
[{"$f":"IF(Table_PI[[#This Row],[Hide:\nFormula Name]]<>\"\",MAX($A$2:A362)+1,\"\")","v":""},null,null,null,null,null,null,null,null,null,null,null,null,null,null,{"$f":"IFERROR(VLOOKUP(Table_PI[[#This Row],[Measure]],'Equipment Lookups'!$C$3:$D$23,2,FALSE),\"\")","v":""},{"$f":"IF(Table_PI[[#This Row],[Hide:\nFormula Name]]<>\"\",IFERROR(IF(MeasureCalc(Table_PI[[#This Row],[Hide:\nFormula Name]],Table_PI[[#This Row],[Quantity]],Table_PI[[#This Row],[List 1]],Table_PI[[#This Row],[List 2]],Table_PI[[#This Row],[List 3]],Table_PI[[#This Row],[Size]],Table_PI[[#This Row],[Input 1]],Table_PI[[#This Row],[Input 2]],Table_PI[[#This Row],[Input 3]],Table_PI[[#This Row],[Input 4]],'Customer Information'!$AR$12,1,ROW())>0,MeasureCalc(Table_PI[[#This Row],[Hide:\nFormula Name]],Table_PI[[#This Row],[Quantity]],Table_PI[[#This Row],[List 1]],Table_PI[[#This Row],[List 2]],Table_PI[[#This Row],[List 3]],Table_PI[[#This Row],[Size]],Table_PI[[#This Row],[Input 1]],Table_PI[[#This Row],[Input 2]],Table_PI[[#This Row],[Input 3]],Table_PI[[#This Row],[Input 4]],'Customer Information'!$AR$12,1,ROW()),\"No Rebate\"),\"No Rebate\"),0)","v":0},{"$f":"IF(Table_PI[[#This Row],[Hide:\nFormula Name]]<>\"\",IFERROR(IF(MeasureCalc(Table_PI[[#This Row],[Hide:\nFormula Name]],Table_PI[[#This Row],[Quantity]],Table_PI[[#This Row],[List 1]],Table_PI[[#This Row],[List 2]],Table_PI[[#This Row],[List 3]],Table_PI[[#This Row],[Size]],Table_PI[[#This Row],[Input 1]],Table_PI[[#This Row],[Input 2]],Table_PI[[#This Row],[Input 3]],Table_PI[[#This Row],[Input 4]],'Customer Information'!$AR$12,1,ROW())>0,MeasureCalc(Table_PI[[#This Row],[Hide:\nFormula Name]],Table_PI[[#This Row],[Quantity]],Table_PI[[#This Row],[List 1]],Table_PI[[#This Row],[List 2]],Table_PI[[#This Row],[List 3]],Table_PI[[#This Row],[Size]],Table_PI[[#This Row],[Input 1]],Table_PI[[#This Row],[Input 2]],Table_PI[[#This Row],[Input 3]],Table_PI[[#This Row],[Input 4]],'Customer Information'!$AR$12,2,ROW()),\"No Rebate\"),\"No Rebate\"),0)","v":0},{"$f":"IF(Table_PI[[#This Row],[Hide:\nFormula Name]]<>\"\",IFERROR(IF(MeasureCalc(Table_PI[[#This Row],[Hide:\nFormula Name]],Table_PI[[#This Row],[Quantity]],Table_PI[[#This Row],[List 1]],Table_PI[[#This Row],[List 2]],Table_PI[[#This Row],[List 3]],Table_PI[[#This Row],[Size]],Table_PI[[#This Row],[Input 1]],Table_PI[[#This Row],[Input 2]],Table_PI[[#This Row],[Input 3]],Table_PI[[#This Row],[Input 4]],'Customer Information'!$AR$12,1,ROW())>0,MeasureCalc(Table_PI[[#This Row],[Hide:\nFormula Name]],Table_PI[[#This Row],[Quantity]],Table_PI[[#This Row],[List 1]],Table_PI[[#This Row],[List 2]],Table_PI[[#This Row],[List 3]],Table_PI[[#This Row],[Size]],Table_PI[[#This Row],[Input 1]],Table_PI[[#This Row],[Input 2]],Table_PI[[#This Row],[Input 3]],Table_PI[[#This Row],[Input 4]],'Customer Information'!$AR$12,3,ROW()),\"No Rebate\"),\"No Rebate\"),0)","v":0},{"$f":"IF(Table_PI[[#This Row],[Hide:\nFormula Name]]<>\"\",IFERROR(IF(MeasureCalc(Table_PI[[#This Row],[Hide:\nFormula Name]],Table_PI[[#This Row],[Quantity]],Table_PI[[#This Row],[List 1]],Table_PI[[#This Row],[List 2]],Table_PI[[#This Row],[List 3]],Table_PI[[#This Row],[Size]],Table_PI[[#This Row],[Input 1]],Table_PI[[#This Row],[Input 2]],Table_PI[[#This Row],[Input 3]],Table_PI[[#This Row],[Input 4]],'Customer Information'!$AR$12,1,ROW())>0,MeasureCalc(Table_PI[[#This Row],[Hide:\nFormula Name]],Table_PI[[#This Row],[Quantity]],Table_PI[[#This Row],[List 1]],Table_PI[[#This Row],[List 2]],Table_PI[[#This Row],[List 3]],Table_PI[[#This Row],[Size]],Table_PI[[#This Row],[Input 1]],Table_PI[[#This Row],[Input 2]],Table_PI[[#This Row],[Input 3]],Table_PI[[#This Row],[Input 4]],'Customer Information'!$AR$12,4,ROW()),\"No Rebate\"),\"No Rebate\"),0)","v":0},{"$f":"IF(Table_PI[[#This Row],[Hide:\nFormula Name]]<>\"\",IFERROR(IF(MeasureCalc(Table_PI[[#This Row],[Hide:\nFormula Name]],Table_PI[[#This Row],[Quantity]],Table_PI[[#This Row],[List 1]],Table_PI[[#This Row],[List 2]],Table_PI[[#This Row],[List 3]],Table_PI[[#This Row],[Size]],Table_PI[[#This Row],[Input 1]],Table_PI[[#This Row],[Input 2]],Table_PI[[#This Row],[Input 3]],Table_PI[[#This Row],[Input 4]],'Customer Information'!$AR$12,1,ROW())>0,MeasureCalc(Table_PI[[#This Row],[Hide:\nFormula Name]],Table_PI[[#This Row],[Quantity]],Table_PI[[#This Row],[List 1]],Table_PI[[#This Row],[List 2]],Table_PI[[#This Row],[List 3]],Table_PI[[#This Row],[Size]],Table_PI[[#This Row],[Input 1]],Table_PI[[#This Row],[Input 2]],Table_PI[[#This Row],[Input 3]],Table_PI[[#This Row],[Input 4]],'Customer Information'!$AR$12,5,ROW()),\"No Rebate\"),\"No Rebate\"),0)","v":0},{"$f":"IF(Table_PI[[#This Row],[Hide:\nFormula Name]]<>\"\",IFERROR(IF(MeasureCalc(Table_PI[[#This Row],[Hide:\nFormula Name]],Table_PI[[#This Row],[Quantity]],Table_PI[[#This Row],[List 1]],Table_PI[[#This Row],[List 2]],Table_PI[[#This Row],[List 3]],Table_PI[[#This Row],[Size]],Table_PI[[#This Row],[Input 1]],Table_PI[[#This Row],[Input 2]],Table_PI[[#This Row],[Input 3]],Table_PI[[#This Row],[Input 4]],'Customer Information'!$AR$12,1,ROW())>0,MeasureCalc(Table_PI[[#This Row],[Hide:\nFormula Name]],Table_PI[[#This Row],[Quantity]],Table_PI[[#This Row],[List 1]],Table_PI[[#This Row],[List 2]],Table_PI[[#This Row],[List 3]],Table_PI[[#This Row],[Size]],Table_PI[[#This Row],[Input 1]],Table_PI[[#This Row],[Input 2]],Table_PI[[#This Row],[Input 3]],Table_PI[[#This Row],[Input 4]],'Customer Information'!$AR$12,6,ROW()),\"No Rebate\"),\"No Rebate\"),0)","v":0},{"$f":"IF(Table_PI[[#This Row],[Hide:\nFormula Name]]<>\"\",IFERROR(IF(MeasureCalc(Table_PI[[#This Row],[Hide:\nFormula Name]],Table_PI[[#This Row],[Quantity]],Table_PI[[#This Row],[List 1]],Table_PI[[#This Row],[List 2]],Table_PI[[#This Row],[List 3]],Table_PI[[#This Row],[Size]],Table_PI[[#This Row],[Input 1]],Table_PI[[#This Row],[Input 2]],Table_PI[[#This Row],[Input 3]],Table_PI[[#This Row],[Input 4]],'Customer Information'!$AR$12,1,ROW())>0,MeasureCalc(Table_PI[[#This Row],[Hide:\nFormula Name]],Table_PI[[#This Row],[Quantity]],Table_PI[[#This Row],[List 1]],Table_PI[[#This Row],[List 2]],Table_PI[[#This Row],[List 3]],Table_PI[[#This Row],[Size]],Table_PI[[#This Row],[Input 1]],Table_PI[[#This Row],[Input 2]],Table_PI[[#This Row],[Input 3]],Table_PI[[#This Row],[Input 4]],'Customer Information'!$AR$12,7,ROW()),\"No Rebate\"),\"No Rebate\"),0)","v":0},{"$f":"IF(Table_PI[[#This Row],[Hide:\nFormula Name]]<>\"\",IFERROR(IF(MeasureCalc(Table_PI[[#This Row],[Hide:\nFormula Name]],Table_PI[[#This Row],[Quantity]],Table_PI[[#This Row],[List 1]],Table_PI[[#This Row],[List 2]],Table_PI[[#This Row],[List 3]],Table_PI[[#This Row],[Size]],Table_PI[[#This Row],[Input 1]],Table_PI[[#This Row],[Input 2]],Table_PI[[#This Row],[Input 3]],Table_PI[[#This Row],[Input 4]],'Customer Information'!$AR$12,1,ROW())>0,MeasureCalc(Table_PI[[#This Row],[Hide:\nFormula Name]],Table_PI[[#This Row],[Quantity]],Table_PI[[#This Row],[List 1]],Table_PI[[#This Row],[List 2]],Table_PI[[#This Row],[List 3]],Table_PI[[#This Row],[Size]],Table_PI[[#This Row],[Input 1]],Table_PI[[#This Row],[Input 2]],Table_PI[[#This Row],[Input 3]],Table_PI[[#This Row],[Input 4]],'Customer Information'!$AR$12,8,ROW()),\"No Rebate\"),\"No Rebate\"),0)","v":0},{"$f":"IF(Table_PI[[#This Row],[Hide:\nFormula Name]]<>\"\",IF(AND(Table_PI[[#This Row],[Hide:\nFormula Name]]<>\"\",OR(Table_PI[[#This Row],[Rebate]]>0,Table_PI[[#This Row],[Rebate]]=\"No Rebate\")),TRUE,\"MI: Line Item \" & $A363),\"\")","v":""}]
[{"$f":"IF(Table_PI[[#This Row],[Hide:\nFormula Name]]<>\"\",MAX($A$2:A363)+1,\"\")","v":""},null,null,null,null,null,null,null,null,null,null,null,null,null,null,{"$f":"IFERROR(VLOOKUP(Table_PI[[#This Row],[Measure]],'Equipment Lookups'!$C$3:$D$23,2,FALSE),\"\")","v":""},{"$f":"IF(Table_PI[[#This Row],[Hide:\nFormula Name]]<>\"\",IFERROR(IF(MeasureCalc(Table_PI[[#This Row],[Hide:\nFormula Name]],Table_PI[[#This Row],[Quantity]],Table_PI[[#This Row],[List 1]],Table_PI[[#This Row],[List 2]],Table_PI[[#This Row],[List 3]],Table_PI[[#This Row],[Size]],Table_PI[[#This Row],[Input 1]],Table_PI[[#This Row],[Input 2]],Table_PI[[#This Row],[Input 3]],Table_PI[[#This Row],[Input 4]],'Customer Information'!$AR$12,1,ROW())>0,MeasureCalc(Table_PI[[#This Row],[Hide:\nFormula Name]],Table_PI[[#This Row],[Quantity]],Table_PI[[#This Row],[List 1]],Table_PI[[#This Row],[List 2]],Table_PI[[#This Row],[List 3]],Table_PI[[#This Row],[Size]],Table_PI[[#This Row],[Input 1]],Table_PI[[#This Row],[Input 2]],Table_PI[[#This Row],[Input 3]],Table_PI[[#This Row],[Input 4]],'Customer Information'!$AR$12,1,ROW()),\"No Rebate\"),\"No Rebate\"),0)","v":0},{"$f":"IF(Table_PI[[#This Row],[Hide:\nFormula Name]]<>\"\",IFERROR(IF(MeasureCalc(Table_PI[[#This Row],[Hide:\nFormula Name]],Table_PI[[#This Row],[Quantity]],Table_PI[[#This Row],[List 1]],Table_PI[[#This Row],[List 2]],Table_PI[[#This Row],[List 3]],Table_PI[[#This Row],[Size]],Table_PI[[#This Row],[Input 1]],Table_PI[[#This Row],[Input 2]],Table_PI[[#This Row],[Input 3]],Table_PI[[#This Row],[Input 4]],'Customer Information'!$AR$12,1,ROW())>0,MeasureCalc(Table_PI[[#This Row],[Hide:\nFormula Name]],Table_PI[[#This Row],[Quantity]],Table_PI[[#This Row],[List 1]],Table_PI[[#This Row],[List 2]],Table_PI[[#This Row],[List 3]],Table_PI[[#This Row],[Size]],Table_PI[[#This Row],[Input 1]],Table_PI[[#This Row],[Input 2]],Table_PI[[#This Row],[Input 3]],Table_PI[[#This Row],[Input 4]],'Customer Information'!$AR$12,2,ROW()),\"No Rebate\"),\"No Rebate\"),0)","v":0},{"$f":"IF(Table_PI[[#This Row],[Hide:\nFormula Name]]<>\"\",IFERROR(IF(MeasureCalc(Table_PI[[#This Row],[Hide:\nFormula Name]],Table_PI[[#This Row],[Quantity]],Table_PI[[#This Row],[List 1]],Table_PI[[#This Row],[List 2]],Table_PI[[#This Row],[List 3]],Table_PI[[#This Row],[Size]],Table_PI[[#This Row],[Input 1]],Table_PI[[#This Row],[Input 2]],Table_PI[[#This Row],[Input 3]],Table_PI[[#This Row],[Input 4]],'Customer Information'!$AR$12,1,ROW())>0,MeasureCalc(Table_PI[[#This Row],[Hide:\nFormula Name]],Table_PI[[#This Row],[Quantity]],Table_PI[[#This Row],[List 1]],Table_PI[[#This Row],[List 2]],Table_PI[[#This Row],[List 3]],Table_PI[[#This Row],[Size]],Table_PI[[#This Row],[Input 1]],Table_PI[[#This Row],[Input 2]],Table_PI[[#This Row],[Input 3]],Table_PI[[#This Row],[Input 4]],'Customer Information'!$AR$12,3,ROW()),\"No Rebate\"),\"No Rebate\"),0)","v":0},{"$f":"IF(Table_PI[[#This Row],[Hide:\nFormula Name]]<>\"\",IFERROR(IF(MeasureCalc(Table_PI[[#This Row],[Hide:\nFormula Name]],Table_PI[[#This Row],[Quantity]],Table_PI[[#This Row],[List 1]],Table_PI[[#This Row],[List 2]],Table_PI[[#This Row],[List 3]],Table_PI[[#This Row],[Size]],Table_PI[[#This Row],[Input 1]],Table_PI[[#This Row],[Input 2]],Table_PI[[#This Row],[Input 3]],Table_PI[[#This Row],[Input 4]],'Customer Information'!$AR$12,1,ROW())>0,MeasureCalc(Table_PI[[#This Row],[Hide:\nFormula Name]],Table_PI[[#This Row],[Quantity]],Table_PI[[#This Row],[List 1]],Table_PI[[#This Row],[List 2]],Table_PI[[#This Row],[List 3]],Table_PI[[#This Row],[Size]],Table_PI[[#This Row],[Input 1]],Table_PI[[#This Row],[Input 2]],Table_PI[[#This Row],[Input 3]],Table_PI[[#This Row],[Input 4]],'Customer Information'!$AR$12,4,ROW()),\"No Rebate\"),\"No Rebate\"),0)","v":0},{"$f":"IF(Table_PI[[#This Row],[Hide:\nFormula Name]]<>\"\",IFERROR(IF(MeasureCalc(Table_PI[[#This Row],[Hide:\nFormula Name]],Table_PI[[#This Row],[Quantity]],Table_PI[[#This Row],[List 1]],Table_PI[[#This Row],[List 2]],Table_PI[[#This Row],[List 3]],Table_PI[[#This Row],[Size]],Table_PI[[#This Row],[Input 1]],Table_PI[[#This Row],[Input 2]],Table_PI[[#This Row],[Input 3]],Table_PI[[#This Row],[Input 4]],'Customer Information'!$AR$12,1,ROW())>0,MeasureCalc(Table_PI[[#This Row],[Hide:\nFormula Name]],Table_PI[[#This Row],[Quantity]],Table_PI[[#This Row],[List 1]],Table_PI[[#This Row],[List 2]],Table_PI[[#This Row],[List 3]],Table_PI[[#This Row],[Size]],Table_PI[[#This Row],[Input 1]],Table_PI[[#This Row],[Input 2]],Table_PI[[#This Row],[Input 3]],Table_PI[[#This Row],[Input 4]],'Customer Information'!$AR$12,5,ROW()),\"No Rebate\"),\"No Rebate\"),0)","v":0},{"$f":"IF(Table_PI[[#This Row],[Hide:\nFormula Name]]<>\"\",IFERROR(IF(MeasureCalc(Table_PI[[#This Row],[Hide:\nFormula Name]],Table_PI[[#This Row],[Quantity]],Table_PI[[#This Row],[List 1]],Table_PI[[#This Row],[List 2]],Table_PI[[#This Row],[List 3]],Table_PI[[#This Row],[Size]],Table_PI[[#This Row],[Input 1]],Table_PI[[#This Row],[Input 2]],Table_PI[[#This Row],[Input 3]],Table_PI[[#This Row],[Input 4]],'Customer Information'!$AR$12,1,ROW())>0,MeasureCalc(Table_PI[[#This Row],[Hide:\nFormula Name]],Table_PI[[#This Row],[Quantity]],Table_PI[[#This Row],[List 1]],Table_PI[[#This Row],[List 2]],Table_PI[[#This Row],[List 3]],Table_PI[[#This Row],[Size]],Table_PI[[#This Row],[Input 1]],Table_PI[[#This Row],[Input 2]],Table_PI[[#This Row],[Input 3]],Table_PI[[#This Row],[Input 4]],'Customer Information'!$AR$12,6,ROW()),\"No Rebate\"),\"No Rebate\"),0)","v":0},{"$f":"IF(Table_PI[[#This Row],[Hide:\nFormula Name]]<>\"\",IFERROR(IF(MeasureCalc(Table_PI[[#This Row],[Hide:\nFormula Name]],Table_PI[[#This Row],[Quantity]],Table_PI[[#This Row],[List 1]],Table_PI[[#This Row],[List 2]],Table_PI[[#This Row],[List 3]],Table_PI[[#This Row],[Size]],Table_PI[[#This Row],[Input 1]],Table_PI[[#This Row],[Input 2]],Table_PI[[#This Row],[Input 3]],Table_PI[[#This Row],[Input 4]],'Customer Information'!$AR$12,1,ROW())>0,MeasureCalc(Table_PI[[#This Row],[Hide:\nFormula Name]],Table_PI[[#This Row],[Quantity]],Table_PI[[#This Row],[List 1]],Table_PI[[#This Row],[List 2]],Table_PI[[#This Row],[List 3]],Table_PI[[#This Row],[Size]],Table_PI[[#This Row],[Input 1]],Table_PI[[#This Row],[Input 2]],Table_PI[[#This Row],[Input 3]],Table_PI[[#This Row],[Input 4]],'Customer Information'!$AR$12,7,ROW()),\"No Rebate\"),\"No Rebate\"),0)","v":0},{"$f":"IF(Table_PI[[#This Row],[Hide:\nFormula Name]]<>\"\",IFERROR(IF(MeasureCalc(Table_PI[[#This Row],[Hide:\nFormula Name]],Table_PI[[#This Row],[Quantity]],Table_PI[[#This Row],[List 1]],Table_PI[[#This Row],[List 2]],Table_PI[[#This Row],[List 3]],Table_PI[[#This Row],[Size]],Table_PI[[#This Row],[Input 1]],Table_PI[[#This Row],[Input 2]],Table_PI[[#This Row],[Input 3]],Table_PI[[#This Row],[Input 4]],'Customer Information'!$AR$12,1,ROW())>0,MeasureCalc(Table_PI[[#This Row],[Hide:\nFormula Name]],Table_PI[[#This Row],[Quantity]],Table_PI[[#This Row],[List 1]],Table_PI[[#This Row],[List 2]],Table_PI[[#This Row],[List 3]],Table_PI[[#This Row],[Size]],Table_PI[[#This Row],[Input 1]],Table_PI[[#This Row],[Input 2]],Table_PI[[#This Row],[Input 3]],Table_PI[[#This Row],[Input 4]],'Customer Information'!$AR$12,8,ROW()),\"No Rebate\"),\"No Rebate\"),0)","v":0},{"$f":"IF(Table_PI[[#This Row],[Hide:\nFormula Name]]<>\"\",IF(AND(Table_PI[[#This Row],[Hide:\nFormula Name]]<>\"\",OR(Table_PI[[#This Row],[Rebate]]>0,Table_PI[[#This Row],[Rebate]]=\"No Rebate\")),TRUE,\"MI: Line Item \" & $A364),\"\")","v":""}]
[{"$f":"IF(Table_PI[[#This Row],[Hide:\nFormula Name]]<>\"\",MAX($A$2:A364)+1,\"\")","v":""},null,null,null,null,null,null,null,null,null,null,null,null,null,null,{"$f":"IFERROR(VLOOKUP(Table_PI[[#This Row],[Measure]],'Equipment Lookups'!$C$3:$D$23,2,FALSE),\"\")","v":""},{"$f":"IF(Table_PI[[#This Row],[Hide:\nFormula Name]]<>\"\",IFERROR(IF(MeasureCalc(Table_PI[[#This Row],[Hide:\nFormula Name]],Table_PI[[#This Row],[Quantity]],Table_PI[[#This Row],[List 1]],Table_PI[[#This Row],[List 2]],Table_PI[[#This Row],[List 3]],Table_PI[[#This Row],[Size]],Table_PI[[#This Row],[Input 1]],Table_PI[[#This Row],[Input 2]],Table_PI[[#This Row],[Input 3]],Table_PI[[#This Row],[Input 4]],'Customer Information'!$AR$12,1,ROW())>0,MeasureCalc(Table_PI[[#This Row],[Hide:\nFormula Name]],Table_PI[[#This Row],[Quantity]],Table_PI[[#This Row],[List 1]],Table_PI[[#This Row],[List 2]],Table_PI[[#This Row],[List 3]],Table_PI[[#This Row],[Size]],Table_PI[[#This Row],[Input 1]],Table_PI[[#This Row],[Input 2]],Table_PI[[#This Row],[Input 3]],Table_PI[[#This Row],[Input 4]],'Customer Information'!$AR$12,1,ROW()),\"No Rebate\"),\"No Rebate\"),0)","v":0},{"$f":"IF(Table_PI[[#This Row],[Hide:\nFormula Name]]<>\"\",IFERROR(IF(MeasureCalc(Table_PI[[#This Row],[Hide:\nFormula Name]],Table_PI[[#This Row],[Quantity]],Table_PI[[#This Row],[List 1]],Table_PI[[#This Row],[List 2]],Table_PI[[#This Row],[List 3]],Table_PI[[#This Row],[Size]],Table_PI[[#This Row],[Input 1]],Table_PI[[#This Row],[Input 2]],Table_PI[[#This Row],[Input 3]],Table_PI[[#This Row],[Input 4]],'Customer Information'!$AR$12,1,ROW())>0,MeasureCalc(Table_PI[[#This Row],[Hide:\nFormula Name]],Table_PI[[#This Row],[Quantity]],Table_PI[[#This Row],[List 1]],Table_PI[[#This Row],[List 2]],Table_PI[[#This Row],[List 3]],Table_PI[[#This Row],[Size]],Table_PI[[#This Row],[Input 1]],Table_PI[[#This Row],[Input 2]],Table_PI[[#This Row],[Input 3]],Table_PI[[#This Row],[Input 4]],'Customer Information'!$AR$12,2,ROW()),\"No Rebate\"),\"No Rebate\"),0)","v":0},{"$f":"IF(Table_PI[[#This Row],[Hide:\nFormula Name]]<>\"\",IFERROR(IF(MeasureCalc(Table_PI[[#This Row],[Hide:\nFormula Name]],Table_PI[[#This Row],[Quantity]],Table_PI[[#This Row],[List 1]],Table_PI[[#This Row],[List 2]],Table_PI[[#This Row],[List 3]],Table_PI[[#This Row],[Size]],Table_PI[[#This Row],[Input 1]],Table_PI[[#This Row],[Input 2]],Table_PI[[#This Row],[Input 3]],Table_PI[[#This Row],[Input 4]],'Customer Information'!$AR$12,1,ROW())>0,MeasureCalc(Table_PI[[#This Row],[Hide:\nFormula Name]],Table_PI[[#This Row],[Quantity]],Table_PI[[#This Row],[List 1]],Table_PI[[#This Row],[List 2]],Table_PI[[#This Row],[List 3]],Table_PI[[#This Row],[Size]],Table_PI[[#This Row],[Input 1]],Table_PI[[#This Row],[Input 2]],Table_PI[[#This Row],[Input 3]],Table_PI[[#This Row],[Input 4]],'Customer Information'!$AR$12,3,ROW()),\"No Rebate\"),\"No Rebate\"),0)","v":0},{"$f":"IF(Table_PI[[#This Row],[Hide:\nFormula Name]]<>\"\",IFERROR(IF(MeasureCalc(Table_PI[[#This Row],[Hide:\nFormula Name]],Table_PI[[#This Row],[Quantity]],Table_PI[[#This Row],[List 1]],Table_PI[[#This Row],[List 2]],Table_PI[[#This Row],[List 3]],Table_PI[[#This Row],[Size]],Table_PI[[#This Row],[Input 1]],Table_PI[[#This Row],[Input 2]],Table_PI[[#This Row],[Input 3]],Table_PI[[#This Row],[Input 4]],'Customer Information'!$AR$12,1,ROW())>0,MeasureCalc(Table_PI[[#This Row],[Hide:\nFormula Name]],Table_PI[[#This Row],[Quantity]],Table_PI[[#This Row],[List 1]],Table_PI[[#This Row],[List 2]],Table_PI[[#This Row],[List 3]],Table_PI[[#This Row],[Size]],Table_PI[[#This Row],[Input 1]],Table_PI[[#This Row],[Input 2]],Table_PI[[#This Row],[Input 3]],Table_PI[[#This Row],[Input 4]],'Customer Information'!$AR$12,4,ROW()),\"No Rebate\"),\"No Rebate\"),0)","v":0},{"$f":"IF(Table_PI[[#This Row],[Hide:\nFormula Name]]<>\"\",IFERROR(IF(MeasureCalc(Table_PI[[#This Row],[Hide:\nFormula Name]],Table_PI[[#This Row],[Quantity]],Table_PI[[#This Row],[List 1]],Table_PI[[#This Row],[List 2]],Table_PI[[#This Row],[List 3]],Table_PI[[#This Row],[Size]],Table_PI[[#This Row],[Input 1]],Table_PI[[#This Row],[Input 2]],Table_PI[[#This Row],[Input 3]],Table_PI[[#This Row],[Input 4]],'Customer Information'!$AR$12,1,ROW())>0,MeasureCalc(Table_PI[[#This Row],[Hide:\nFormula Name]],Table_PI[[#This Row],[Quantity]],Table_PI[[#This Row],[List 1]],Table_PI[[#This Row],[List 2]],Table_PI[[#This Row],[List 3]],Table_PI[[#This Row],[Size]],Table_PI[[#This Row],[Input 1]],Table_PI[[#This Row],[Input 2]],Table_PI[[#This Row],[Input 3]],Table_PI[[#This Row],[Input 4]],'Customer Information'!$AR$12,5,ROW()),\"No Rebate\"),\"No Rebate\"),0)","v":0},{"$f":"IF(Table_PI[[#This Row],[Hide:\nFormula Name]]<>\"\",IFERROR(IF(MeasureCalc(Table_PI[[#This Row],[Hide:\nFormula Name]],Table_PI[[#This Row],[Quantity]],Table_PI[[#This Row],[List 1]],Table_PI[[#This Row],[List 2]],Table_PI[[#This Row],[List 3]],Table_PI[[#This Row],[Size]],Table_PI[[#This Row],[Input 1]],Table_PI[[#This Row],[Input 2]],Table_PI[[#This Row],[Input 3]],Table_PI[[#This Row],[Input 4]],'Customer Information'!$AR$12,1,ROW())>0,MeasureCalc(Table_PI[[#This Row],[Hide:\nFormula Name]],Table_PI[[#This Row],[Quantity]],Table_PI[[#This Row],[List 1]],Table_PI[[#This Row],[List 2]],Table_PI[[#This Row],[List 3]],Table_PI[[#This Row],[Size]],Table_PI[[#This Row],[Input 1]],Table_PI[[#This Row],[Input 2]],Table_PI[[#This Row],[Input 3]],Table_PI[[#This Row],[Input 4]],'Customer Information'!$AR$12,6,ROW()),\"No Rebate\"),\"No Rebate\"),0)","v":0},{"$f":"IF(Table_PI[[#This Row],[Hide:\nFormula Name]]<>\"\",IFERROR(IF(MeasureCalc(Table_PI[[#This Row],[Hide:\nFormula Name]],Table_PI[[#This Row],[Quantity]],Table_PI[[#This Row],[List 1]],Table_PI[[#This Row],[List 2]],Table_PI[[#This Row],[List 3]],Table_PI[[#This Row],[Size]],Table_PI[[#This Row],[Input 1]],Table_PI[[#This Row],[Input 2]],Table_PI[[#This Row],[Input 3]],Table_PI[[#This Row],[Input 4]],'Customer Information'!$AR$12,1,ROW())>0,MeasureCalc(Table_PI[[#This Row],[Hide:\nFormula Name]],Table_PI[[#This Row],[Quantity]],Table_PI[[#This Row],[List 1]],Table_PI[[#This Row],[List 2]],Table_PI[[#This Row],[List 3]],Table_PI[[#This Row],[Size]],Table_PI[[#This Row],[Input 1]],Table_PI[[#This Row],[Input 2]],Table_PI[[#This Row],[Input 3]],Table_PI[[#This Row],[Input 4]],'Customer Information'!$AR$12,7,ROW()),\"No Rebate\"),\"No Rebate\"),0)","v":0},{"$f":"IF(Table_PI[[#This Row],[Hide:\nFormula Name]]<>\"\",IFERROR(IF(MeasureCalc(Table_PI[[#This Row],[Hide:\nFormula Name]],Table_PI[[#This Row],[Quantity]],Table_PI[[#This Row],[List 1]],Table_PI[[#This Row],[List 2]],Table_PI[[#This Row],[List 3]],Table_PI[[#This Row],[Size]],Table_PI[[#This Row],[Input 1]],Table_PI[[#This Row],[Input 2]],Table_PI[[#This Row],[Input 3]],Table_PI[[#This Row],[Input 4]],'Customer Information'!$AR$12,1,ROW())>0,MeasureCalc(Table_PI[[#This Row],[Hide:\nFormula Name]],Table_PI[[#This Row],[Quantity]],Table_PI[[#This Row],[List 1]],Table_PI[[#This Row],[List 2]],Table_PI[[#This Row],[List 3]],Table_PI[[#This Row],[Size]],Table_PI[[#This Row],[Input 1]],Table_PI[[#This Row],[Input 2]],Table_PI[[#This Row],[Input 3]],Table_PI[[#This Row],[Input 4]],'Customer Information'!$AR$12,8,ROW()),\"No Rebate\"),\"No Rebate\"),0)","v":0},{"$f":"IF(Table_PI[[#This Row],[Hide:\nFormula Name]]<>\"\",IF(AND(Table_PI[[#This Row],[Hide:\nFormula Name]]<>\"\",OR(Table_PI[[#This Row],[Rebate]]>0,Table_PI[[#This Row],[Rebate]]=\"No Rebate\")),TRUE,\"MI: Line Item \" & $A365),\"\")","v":""}]
[{"$f":"IF(Table_PI[[#This Row],[Hide:\nFormula Name]]<>\"\",MAX($A$2:A365)+1,\"\")","v":""},null,null,null,null,null,null,null,null,null,null,null,null,null,null,{"$f":"IFERROR(VLOOKUP(Table_PI[[#This Row],[Measure]],'Equipment Lookups'!$C$3:$D$23,2,FALSE),\"\")","v":""},{"$f":"IF(Table_PI[[#This Row],[Hide:\nFormula Name]]<>\"\",IFERROR(IF(MeasureCalc(Table_PI[[#This Row],[Hide:\nFormula Name]],Table_PI[[#This Row],[Quantity]],Table_PI[[#This Row],[List 1]],Table_PI[[#This Row],[List 2]],Table_PI[[#This Row],[List 3]],Table_PI[[#This Row],[Size]],Table_PI[[#This Row],[Input 1]],Table_PI[[#This Row],[Input 2]],Table_PI[[#This Row],[Input 3]],Table_PI[[#This Row],[Input 4]],'Customer Information'!$AR$12,1,ROW())>0,MeasureCalc(Table_PI[[#This Row],[Hide:\nFormula Name]],Table_PI[[#This Row],[Quantity]],Table_PI[[#This Row],[List 1]],Table_PI[[#This Row],[List 2]],Table_PI[[#This Row],[List 3]],Table_PI[[#This Row],[Size]],Table_PI[[#This Row],[Input 1]],Table_PI[[#This Row],[Input 2]],Table_PI[[#This Row],[Input 3]],Table_PI[[#This Row],[Input 4]],'Customer Information'!$AR$12,1,ROW()),\"No Rebate\"),\"No Rebate\"),0)","v":0},{"$f":"IF(Table_PI[[#This Row],[Hide:\nFormula Name]]<>\"\",IFERROR(IF(MeasureCalc(Table_PI[[#This Row],[Hide:\nFormula Name]],Table_PI[[#This Row],[Quantity]],Table_PI[[#This Row],[List 1]],Table_PI[[#This Row],[List 2]],Table_PI[[#This Row],[List 3]],Table_PI[[#This Row],[Size]],Table_PI[[#This Row],[Input 1]],Table_PI[[#This Row],[Input 2]],Table_PI[[#This Row],[Input 3]],Table_PI[[#This Row],[Input 4]],'Customer Information'!$AR$12,1,ROW())>0,MeasureCalc(Table_PI[[#This Row],[Hide:\nFormula Name]],Table_PI[[#This Row],[Quantity]],Table_PI[[#This Row],[List 1]],Table_PI[[#This Row],[List 2]],Table_PI[[#This Row],[List 3]],Table_PI[[#This Row],[Size]],Table_PI[[#This Row],[Input 1]],Table_PI[[#This Row],[Input 2]],Table_PI[[#This Row],[Input 3]],Table_PI[[#This Row],[Input 4]],'Customer Information'!$AR$12,2,ROW()),\"No Rebate\"),\"No Rebate\"),0)","v":0},{"$f":"IF(Table_PI[[#This Row],[Hide:\nFormula Name]]<>\"\",IFERROR(IF(MeasureCalc(Table_PI[[#This Row],[Hide:\nFormula Name]],Table_PI[[#This Row],[Quantity]],Table_PI[[#This Row],[List 1]],Table_PI[[#This Row],[List 2]],Table_PI[[#This Row],[List 3]],Table_PI[[#This Row],[Size]],Table_PI[[#This Row],[Input 1]],Table_PI[[#This Row],[Input 2]],Table_PI[[#This Row],[Input 3]],Table_PI[[#This Row],[Input 4]],'Customer Information'!$AR$12,1,ROW())>0,MeasureCalc(Table_PI[[#This Row],[Hide:\nFormula Name]],Table_PI[[#This Row],[Quantity]],Table_PI[[#This Row],[List 1]],Table_PI[[#This Row],[List 2]],Table_PI[[#This Row],[List 3]],Table_PI[[#This Row],[Size]],Table_PI[[#This Row],[Input 1]],Table_PI[[#This Row],[Input 2]],Table_PI[[#This Row],[Input 3]],Table_PI[[#This Row],[Input 4]],'Customer Information'!$AR$12,3,ROW()),\"No Rebate\"),\"No Rebate\"),0)","v":0},{"$f":"IF(Table_PI[[#This Row],[Hide:\nFormula Name]]<>\"\",IFERROR(IF(MeasureCalc(Table_PI[[#This Row],[Hide:\nFormula Name]],Table_PI[[#This Row],[Quantity]],Table_PI[[#This Row],[List 1]],Table_PI[[#This Row],[List 2]],Table_PI[[#This Row],[List 3]],Table_PI[[#This Row],[Size]],Table_PI[[#This Row],[Input 1]],Table_PI[[#This Row],[Input 2]],Table_PI[[#This Row],[Input 3]],Table_PI[[#This Row],[Input 4]],'Customer Information'!$AR$12,1,ROW())>0,MeasureCalc(Table_PI[[#This Row],[Hide:\nFormula Name]],Table_PI[[#This Row],[Quantity]],Table_PI[[#This Row],[List 1]],Table_PI[[#This Row],[List 2]],Table_PI[[#This Row],[List 3]],Table_PI[[#This Row],[Size]],Table_PI[[#This Row],[Input 1]],Table_PI[[#This Row],[Input 2]],Table_PI[[#This Row],[Input 3]],Table_PI[[#This Row],[Input 4]],'Customer Information'!$AR$12,4,ROW()),\"No Rebate\"),\"No Rebate\"),0)","v":0},{"$f":"IF(Table_PI[[#This Row],[Hide:\nFormula Name]]<>\"\",IFERROR(IF(MeasureCalc(Table_PI[[#This Row],[Hide:\nFormula Name]],Table_PI[[#This Row],[Quantity]],Table_PI[[#This Row],[List 1]],Table_PI[[#This Row],[List 2]],Table_PI[[#This Row],[List 3]],Table_PI[[#This Row],[Size]],Table_PI[[#This Row],[Input 1]],Table_PI[[#This Row],[Input 2]],Table_PI[[#This Row],[Input 3]],Table_PI[[#This Row],[Input 4]],'Customer Information'!$AR$12,1,ROW())>0,MeasureCalc(Table_PI[[#This Row],[Hide:\nFormula Name]],Table_PI[[#This Row],[Quantity]],Table_PI[[#This Row],[List 1]],Table_PI[[#This Row],[List 2]],Table_PI[[#This Row],[List 3]],Table_PI[[#This Row],[Size]],Table_PI[[#This Row],[Input 1]],Table_PI[[#This Row],[Input 2]],Table_PI[[#This Row],[Input 3]],Table_PI[[#This Row],[Input 4]],'Customer Information'!$AR$12,5,ROW()),\"No Rebate\"),\"No Rebate\"),0)","v":0},{"$f":"IF(Table_PI[[#This Row],[Hide:\nFormula Name]]<>\"\",IFERROR(IF(MeasureCalc(Table_PI[[#This Row],[Hide:\nFormula Name]],Table_PI[[#This Row],[Quantity]],Table_PI[[#This Row],[List 1]],Table_PI[[#This Row],[List 2]],Table_PI[[#This Row],[List 3]],Table_PI[[#This Row],[Size]],Table_PI[[#This Row],[Input 1]],Table_PI[[#This Row],[Input 2]],Table_PI[[#This Row],[Input 3]],Table_PI[[#This Row],[Input 4]],'Customer Information'!$AR$12,1,ROW())>0,MeasureCalc(Table_PI[[#This Row],[Hide:\nFormula Name]],Table_PI[[#This Row],[Quantity]],Table_PI[[#This Row],[List 1]],Table_PI[[#This Row],[List 2]],Table_PI[[#This Row],[List 3]],Table_PI[[#This Row],[Size]],Table_PI[[#This Row],[Input 1]],Table_PI[[#This Row],[Input 2]],Table_PI[[#This Row],[Input 3]],Table_PI[[#This Row],[Input 4]],'Customer Information'!$AR$12,6,ROW()),\"No Rebate\"),\"No Rebate\"),0)","v":0},{"$f":"IF(Table_PI[[#This Row],[Hide:\nFormula Name]]<>\"\",IFERROR(IF(MeasureCalc(Table_PI[[#This Row],[Hide:\nFormula Name]],Table_PI[[#This Row],[Quantity]],Table_PI[[#This Row],[List 1]],Table_PI[[#This Row],[List 2]],Table_PI[[#This Row],[List 3]],Table_PI[[#This Row],[Size]],Table_PI[[#This Row],[Input 1]],Table_PI[[#This Row],[Input 2]],Table_PI[[#This Row],[Input 3]],Table_PI[[#This Row],[Input 4]],'Customer Information'!$AR$12,1,ROW())>0,MeasureCalc(Table_PI[[#This Row],[Hide:\nFormula Name]],Table_PI[[#This Row],[Quantity]],Table_PI[[#This Row],[List 1]],Table_PI[[#This Row],[List 2]],Table_PI[[#This Row],[List 3]],Table_PI[[#This Row],[Size]],Table_PI[[#This Row],[Input 1]],Table_PI[[#This Row],[Input 2]],Table_PI[[#This Row],[Input 3]],Table_PI[[#This Row],[Input 4]],'Customer Information'!$AR$12,7,ROW()),\"No Rebate\"),\"No Rebate\"),0)","v":0},{"$f":"IF(Table_PI[[#This Row],[Hide:\nFormula Name]]<>\"\",IFERROR(IF(MeasureCalc(Table_PI[[#This Row],[Hide:\nFormula Name]],Table_PI[[#This Row],[Quantity]],Table_PI[[#This Row],[List 1]],Table_PI[[#This Row],[List 2]],Table_PI[[#This Row],[List 3]],Table_PI[[#This Row],[Size]],Table_PI[[#This Row],[Input 1]],Table_PI[[#This Row],[Input 2]],Table_PI[[#This Row],[Input 3]],Table_PI[[#This Row],[Input 4]],'Customer Information'!$AR$12,1,ROW())>0,MeasureCalc(Table_PI[[#This Row],[Hide:\nFormula Name]],Table_PI[[#This Row],[Quantity]],Table_PI[[#This Row],[List 1]],Table_PI[[#This Row],[List 2]],Table_PI[[#This Row],[List 3]],Table_PI[[#This Row],[Size]],Table_PI[[#This Row],[Input 1]],Table_PI[[#This Row],[Input 2]],Table_PI[[#This Row],[Input 3]],Table_PI[[#This Row],[Input 4]],'Customer Information'!$AR$12,8,ROW()),\"No Rebate\"),\"No Rebate\"),0)","v":0},{"$f":"IF(Table_PI[[#This Row],[Hide:\nFormula Name]]<>\"\",IF(AND(Table_PI[[#This Row],[Hide:\nFormula Name]]<>\"\",OR(Table_PI[[#This Row],[Rebate]]>0,Table_PI[[#This Row],[Rebate]]=\"No Rebate\")),TRUE,\"MI: Line Item \" & $A366),\"\")","v":""}]
[{"$f":"IF(Table_PI[[#This Row],[Hide:\nFormula Name]]<>\"\",MAX($A$2:A366)+1,\"\")","v":""},null,null,null,null,null,null,null,null,null,null,null,null,null,null,{"$f":"IFERROR(VLOOKUP(Table_PI[[#This Row],[Measure]],'Equipment Lookups'!$C$3:$D$23,2,FALSE),\"\")","v":""},{"$f":"IF(Table_PI[[#This Row],[Hide:\nFormula Name]]<>\"\",IFERROR(IF(MeasureCalc(Table_PI[[#This Row],[Hide:\nFormula Name]],Table_PI[[#This Row],[Quantity]],Table_PI[[#This Row],[List 1]],Table_PI[[#This Row],[List 2]],Table_PI[[#This Row],[List 3]],Table_PI[[#This Row],[Size]],Table_PI[[#This Row],[Input 1]],Table_PI[[#This Row],[Input 2]],Table_PI[[#This Row],[Input 3]],Table_PI[[#This Row],[Input 4]],'Customer Information'!$AR$12,1,ROW())>0,MeasureCalc(Table_PI[[#This Row],[Hide:\nFormula Name]],Table_PI[[#This Row],[Quantity]],Table_PI[[#This Row],[List 1]],Table_PI[[#This Row],[List 2]],Table_PI[[#This Row],[List 3]],Table_PI[[#This Row],[Size]],Table_PI[[#This Row],[Input 1]],Table_PI[[#This Row],[Input 2]],Table_PI[[#This Row],[Input 3]],Table_PI[[#This Row],[Input 4]],'Customer Information'!$AR$12,1,ROW()),\"No Rebate\"),\"No Rebate\"),0)","v":0},{"$f":"IF(Table_PI[[#This Row],[Hide:\nFormula Name]]<>\"\",IFERROR(IF(MeasureCalc(Table_PI[[#This Row],[Hide:\nFormula Name]],Table_PI[[#This Row],[Quantity]],Table_PI[[#This Row],[List 1]],Table_PI[[#This Row],[List 2]],Table_PI[[#This Row],[List 3]],Table_PI[[#This Row],[Size]],Table_PI[[#This Row],[Input 1]],Table_PI[[#This Row],[Input 2]],Table_PI[[#This Row],[Input 3]],Table_PI[[#This Row],[Input 4]],'Customer Information'!$AR$12,1,ROW())>0,MeasureCalc(Table_PI[[#This Row],[Hide:\nFormula Name]],Table_PI[[#This Row],[Quantity]],Table_PI[[#This Row],[List 1]],Table_PI[[#This Row],[List 2]],Table_PI[[#This Row],[List 3]],Table_PI[[#This Row],[Size]],Table_PI[[#This Row],[Input 1]],Table_PI[[#This Row],[Input 2]],Table_PI[[#This Row],[Input 3]],Table_PI[[#This Row],[Input 4]],'Customer Information'!$AR$12,2,ROW()),\"No Rebate\"),\"No Rebate\"),0)","v":0},{"$f":"IF(Table_PI[[#This Row],[Hide:\nFormula Name]]<>\"\",IFERROR(IF(MeasureCalc(Table_PI[[#This Row],[Hide:\nFormula Name]],Table_PI[[#This Row],[Quantity]],Table_PI[[#This Row],[List 1]],Table_PI[[#This Row],[List 2]],Table_PI[[#This Row],[List 3]],Table_PI[[#This Row],[Size]],Table_PI[[#This Row],[Input 1]],Table_PI[[#This Row],[Input 2]],Table_PI[[#This Row],[Input 3]],Table_PI[[#This Row],[Input 4]],'Customer Information'!$AR$12,1,ROW())>0,MeasureCalc(Table_PI[[#This Row],[Hide:\nFormula Name]],Table_PI[[#This Row],[Quantity]],Table_PI[[#This Row],[List 1]],Table_PI[[#This Row],[List 2]],Table_PI[[#This Row],[List 3]],Table_PI[[#This Row],[Size]],Table_PI[[#This Row],[Input 1]],Table_PI[[#This Row],[Input 2]],Table_PI[[#This Row],[Input 3]],Table_PI[[#This Row],[Input 4]],'Customer Information'!$AR$12,3,ROW()),\"No Rebate\"),\"No Rebate\"),0)","v":0},{"$f":"IF(Table_PI[[#This Row],[Hide:\nFormula Name]]<>\"\",IFERROR(IF(MeasureCalc(Table_PI[[#This Row],[Hide:\nFormula Name]],Table_PI[[#This Row],[Quantity]],Table_PI[[#This Row],[List 1]],Table_PI[[#This Row],[List 2]],Table_PI[[#This Row],[List 3]],Table_PI[[#This Row],[Size]],Table_PI[[#This Row],[Input 1]],Table_PI[[#This Row],[Input 2]],Table_PI[[#This Row],[Input 3]],Table_PI[[#This Row],[Input 4]],'Customer Information'!$AR$12,1,ROW())>0,MeasureCalc(Table_PI[[#This Row],[Hide:\nFormula Name]],Table_PI[[#This Row],[Quantity]],Table_PI[[#This Row],[List 1]],Table_PI[[#This Row],[List 2]],Table_PI[[#This Row],[List 3]],Table_PI[[#This Row],[Size]],Table_PI[[#This Row],[Input 1]],Table_PI[[#This Row],[Input 2]],Table_PI[[#This Row],[Input 3]],Table_PI[[#This Row],[Input 4]],'Customer Information'!$AR$12,4,ROW()),\"No Rebate\"),\"No Rebate\"),0)","v":0},{"$f":"IF(Table_PI[[#This Row],[Hide:\nFormula Name]]<>\"\",IFERROR(IF(MeasureCalc(Table_PI[[#This Row],[Hide:\nFormula Name]],Table_PI[[#This Row],[Quantity]],Table_PI[[#This Row],[List 1]],Table_PI[[#This Row],[List 2]],Table_PI[[#This Row],[List 3]],Table_PI[[#This Row],[Size]],Table_PI[[#This Row],[Input 1]],Table_PI[[#This Row],[Input 2]],Table_PI[[#This Row],[Input 3]],Table_PI[[#This Row],[Input 4]],'Customer Information'!$AR$12,1,ROW())>0,MeasureCalc(Table_PI[[#This Row],[Hide:\nFormula Name]],Table_PI[[#This Row],[Quantity]],Table_PI[[#This Row],[List 1]],Table_PI[[#This Row],[List 2]],Table_PI[[#This Row],[List 3]],Table_PI[[#This Row],[Size]],Table_PI[[#This Row],[Input 1]],Table_PI[[#This Row],[Input 2]],Table_PI[[#This Row],[Input 3]],Table_PI[[#This Row],[Input 4]],'Customer Information'!$AR$12,5,ROW()),\"No Rebate\"),\"No Rebate\"),0)","v":0},{"$f":"IF(Table_PI[[#This Row],[Hide:\nFormula Name]]<>\"\",IFERROR(IF(MeasureCalc(Table_PI[[#This Row],[Hide:\nFormula Name]],Table_PI[[#This Row],[Quantity]],Table_PI[[#This Row],[List 1]],Table_PI[[#This Row],[List 2]],Table_PI[[#This Row],[List 3]],Table_PI[[#This Row],[Size]],Table_PI[[#This Row],[Input 1]],Table_PI[[#This Row],[Input 2]],Table_PI[[#This Row],[Input 3]],Table_PI[[#This Row],[Input 4]],'Customer Information'!$AR$12,1,ROW())>0,MeasureCalc(Table_PI[[#This Row],[Hide:\nFormula Name]],Table_PI[[#This Row],[Quantity]],Table_PI[[#This Row],[List 1]],Table_PI[[#This Row],[List 2]],Table_PI[[#This Row],[List 3]],Table_PI[[#This Row],[Size]],Table_PI[[#This Row],[Input 1]],Table_PI[[#This Row],[Input 2]],Table_PI[[#This Row],[Input 3]],Table_PI[[#This Row],[Input 4]],'Customer Information'!$AR$12,6,ROW()),\"No Rebate\"),\"No Rebate\"),0)","v":0},{"$f":"IF(Table_PI[[#This Row],[Hide:\nFormula Name]]<>\"\",IFERROR(IF(MeasureCalc(Table_PI[[#This Row],[Hide:\nFormula Name]],Table_PI[[#This Row],[Quantity]],Table_PI[[#This Row],[List 1]],Table_PI[[#This Row],[List 2]],Table_PI[[#This Row],[List 3]],Table_PI[[#This Row],[Size]],Table_PI[[#This Row],[Input 1]],Table_PI[[#This Row],[Input 2]],Table_PI[[#This Row],[Input 3]],Table_PI[[#This Row],[Input 4]],'Customer Information'!$AR$12,1,ROW())>0,MeasureCalc(Table_PI[[#This Row],[Hide:\nFormula Name]],Table_PI[[#This Row],[Quantity]],Table_PI[[#This Row],[List 1]],Table_PI[[#This Row],[List 2]],Table_PI[[#This Row],[List 3]],Table_PI[[#This Row],[Size]],Table_PI[[#This Row],[Input 1]],Table_PI[[#This Row],[Input 2]],Table_PI[[#This Row],[Input 3]],Table_PI[[#This Row],[Input 4]],'Customer Information'!$AR$12,7,ROW()),\"No Rebate\"),\"No Rebate\"),0)","v":0},{"$f":"IF(Table_PI[[#This Row],[Hide:\nFormula Name]]<>\"\",IFERROR(IF(MeasureCalc(Table_PI[[#This Row],[Hide:\nFormula Name]],Table_PI[[#This Row],[Quantity]],Table_PI[[#This Row],[List 1]],Table_PI[[#This Row],[List 2]],Table_PI[[#This Row],[List 3]],Table_PI[[#This Row],[Size]],Table_PI[[#This Row],[Input 1]],Table_PI[[#This Row],[Input 2]],Table_PI[[#This Row],[Input 3]],Table_PI[[#This Row],[Input 4]],'Customer Information'!$AR$12,1,ROW())>0,MeasureCalc(Table_PI[[#This Row],[Hide:\nFormula Name]],Table_PI[[#This Row],[Quantity]],Table_PI[[#This Row],[List 1]],Table_PI[[#This Row],[List 2]],Table_PI[[#This Row],[List 3]],Table_PI[[#This Row],[Size]],Table_PI[[#This Row],[Input 1]],Table_PI[[#This Row],[Input 2]],Table_PI[[#This Row],[Input 3]],Table_PI[[#This Row],[Input 4]],'Customer Information'!$AR$12,8,ROW()),\"No Rebate\"),\"No Rebate\"),0)","v":0},{"$f":"IF(Table_PI[[#This Row],[Hide:\nFormula Name]]<>\"\",IF(AND(Table_PI[[#This Row],[Hide:\nFormula Name]]<>\"\",OR(Table_PI[[#This Row],[Rebate]]>0,Table_PI[[#This Row],[Rebate]]=\"No Rebate\")),TRUE,\"MI: Line Item \" & $A367),\"\")","v":""}]
[{"$f":"IF(Table_PI[[#This Row],[Hide:\nFormula Name]]<>\"\",MAX($A$2:A367)+1,\"\")","v":""},null,null,null,null,null,null,null,null,null,null,null,null,null,null,{"$f":"IFERROR(VLOOKUP(Table_PI[[#This Row],[Measure]],'Equipment Lookups'!$C$3:$D$23,2,FALSE),\"\")","v":""},{"$f":"IF(Table_PI[[#This Row],[Hide:\nFormula Name]]<>\"\",IFERROR(IF(MeasureCalc(Table_PI[[#This Row],[Hide:\nFormula Name]],Table_PI[[#This Row],[Quantity]],Table_PI[[#This Row],[List 1]],Table_PI[[#This Row],[List 2]],Table_PI[[#This Row],[List 3]],Table_PI[[#This Row],[Size]],Table_PI[[#This Row],[Input 1]],Table_PI[[#This Row],[Input 2]],Table_PI[[#This Row],[Input 3]],Table_PI[[#This Row],[Input 4]],'Customer Information'!$AR$12,1,ROW())>0,MeasureCalc(Table_PI[[#This Row],[Hide:\nFormula Name]],Table_PI[[#This Row],[Quantity]],Table_PI[[#This Row],[List 1]],Table_PI[[#This Row],[List 2]],Table_PI[[#This Row],[List 3]],Table_PI[[#This Row],[Size]],Table_PI[[#This Row],[Input 1]],Table_PI[[#This Row],[Input 2]],Table_PI[[#This Row],[Input 3]],Table_PI[[#This Row],[Input 4]],'Customer Information'!$AR$12,1,ROW()),\"No Rebate\"),\"No Rebate\"),0)","v":0},{"$f":"IF(Table_PI[[#This Row],[Hide:\nFormula Name]]<>\"\",IFERROR(IF(MeasureCalc(Table_PI[[#This Row],[Hide:\nFormula Name]],Table_PI[[#This Row],[Quantity]],Table_PI[[#This Row],[List 1]],Table_PI[[#This Row],[List 2]],Table_PI[[#This Row],[List 3]],Table_PI[[#This Row],[Size]],Table_PI[[#This Row],[Input 1]],Table_PI[[#This Row],[Input 2]],Table_PI[[#This Row],[Input 3]],Table_PI[[#This Row],[Input 4]],'Customer Information'!$AR$12,1,ROW())>0,MeasureCalc(Table_PI[[#This Row],[Hide:\nFormula Name]],Table_PI[[#This Row],[Quantity]],Table_PI[[#This Row],[List 1]],Table_PI[[#This Row],[List 2]],Table_PI[[#This Row],[List 3]],Table_PI[[#This Row],[Size]],Table_PI[[#This Row],[Input 1]],Table_PI[[#This Row],[Input 2]],Table_PI[[#This Row],[Input 3]],Table_PI[[#This Row],[Input 4]],'Customer Information'!$AR$12,2,ROW()),\"No Rebate\"),\"No Rebate\"),0)","v":0},{"$f":"IF(Table_PI[[#This Row],[Hide:\nFormula Name]]<>\"\",IFERROR(IF(MeasureCalc(Table_PI[[#This Row],[Hide:\nFormula Name]],Table_PI[[#This Row],[Quantity]],Table_PI[[#This Row],[List 1]],Table_PI[[#This Row],[List 2]],Table_PI[[#This Row],[List 3]],Table_PI[[#This Row],[Size]],Table_PI[[#This Row],[Input 1]],Table_PI[[#This Row],[Input 2]],Table_PI[[#This Row],[Input 3]],Table_PI[[#This Row],[Input 4]],'Customer Information'!$AR$12,1,ROW())>0,MeasureCalc(Table_PI[[#This Row],[Hide:\nFormula Name]],Table_PI[[#This Row],[Quantity]],Table_PI[[#This Row],[List 1]],Table_PI[[#This Row],[List 2]],Table_PI[[#This Row],[List 3]],Table_PI[[#This Row],[Size]],Table_PI[[#This Row],[Input 1]],Table_PI[[#This Row],[Input 2]],Table_PI[[#This Row],[Input 3]],Table_PI[[#This Row],[Input 4]],'Customer Information'!$AR$12,3,ROW()),\"No Rebate\"),\"No Rebate\"),0)","v":0},{"$f":"IF(Table_PI[[#This Row],[Hide:\nFormula Name]]<>\"\",IFERROR(IF(MeasureCalc(Table_PI[[#This Row],[Hide:\nFormula Name]],Table_PI[[#This Row],[Quantity]],Table_PI[[#This Row],[List 1]],Table_PI[[#This Row],[List 2]],Table_PI[[#This Row],[List 3]],Table_PI[[#This Row],[Size]],Table_PI[[#This Row],[Input 1]],Table_PI[[#This Row],[Input 2]],Table_PI[[#This Row],[Input 3]],Table_PI[[#This Row],[Input 4]],'Customer Information'!$AR$12,1,ROW())>0,MeasureCalc(Table_PI[[#This Row],[Hide:\nFormula Name]],Table_PI[[#This Row],[Quantity]],Table_PI[[#This Row],[List 1]],Table_PI[[#This Row],[List 2]],Table_PI[[#This Row],[List 3]],Table_PI[[#This Row],[Size]],Table_PI[[#This Row],[Input 1]],Table_PI[[#This Row],[Input 2]],Table_PI[[#This Row],[Input 3]],Table_PI[[#This Row],[Input 4]],'Customer Information'!$AR$12,4,ROW()),\"No Rebate\"),\"No Rebate\"),0)","v":0},{"$f":"IF(Table_PI[[#This Row],[Hide:\nFormula Name]]<>\"\",IFERROR(IF(MeasureCalc(Table_PI[[#This Row],[Hide:\nFormula Name]],Table_PI[[#This Row],[Quantity]],Table_PI[[#This Row],[List 1]],Table_PI[[#This Row],[List 2]],Table_PI[[#This Row],[List 3]],Table_PI[[#This Row],[Size]],Table_PI[[#This Row],[Input 1]],Table_PI[[#This Row],[Input 2]],Table_PI[[#This Row],[Input 3]],Table_PI[[#This Row],[Input 4]],'Customer Information'!$AR$12,1,ROW())>0,MeasureCalc(Table_PI[[#This Row],[Hide:\nFormula Name]],Table_PI[[#This Row],[Quantity]],Table_PI[[#This Row],[List 1]],Table_PI[[#This Row],[List 2]],Table_PI[[#This Row],[List 3]],Table_PI[[#This Row],[Size]],Table_PI[[#This Row],[Input 1]],Table_PI[[#This Row],[Input 2]],Table_PI[[#This Row],[Input 3]],Table_PI[[#This Row],[Input 4]],'Customer Information'!$AR$12,5,ROW()),\"No Rebate\"),\"No Rebate\"),0)","v":0},{"$f":"IF(Table_PI[[#This Row],[Hide:\nFormula Name]]<>\"\",IFERROR(IF(MeasureCalc(Table_PI[[#This Row],[Hide:\nFormula Name]],Table_PI[[#This Row],[Quantity]],Table_PI[[#This Row],[List 1]],Table_PI[[#This Row],[List 2]],Table_PI[[#This Row],[List 3]],Table_PI[[#This Row],[Size]],Table_PI[[#This Row],[Input 1]],Table_PI[[#This Row],[Input 2]],Table_PI[[#This Row],[Input 3]],Table_PI[[#This Row],[Input 4]],'Customer Information'!$AR$12,1,ROW())>0,MeasureCalc(Table_PI[[#This Row],[Hide:\nFormula Name]],Table_PI[[#This Row],[Quantity]],Table_PI[[#This Row],[List 1]],Table_PI[[#This Row],[List 2]],Table_PI[[#This Row],[List 3]],Table_PI[[#This Row],[Size]],Table_PI[[#This Row],[Input 1]],Table_PI[[#This Row],[Input 2]],Table_PI[[#This Row],[Input 3]],Table_PI[[#This Row],[Input 4]],'Customer Information'!$AR$12,6,ROW()),\"No Rebate\"),\"No Rebate\"),0)","v":0},{"$f":"IF(Table_PI[[#This Row],[Hide:\nFormula Name]]<>\"\",IFERROR(IF(MeasureCalc(Table_PI[[#This Row],[Hide:\nFormula Name]],Table_PI[[#This Row],[Quantity]],Table_PI[[#This Row],[List 1]],Table_PI[[#This Row],[List 2]],Table_PI[[#This Row],[List 3]],Table_PI[[#This Row],[Size]],Table_PI[[#This Row],[Input 1]],Table_PI[[#This Row],[Input 2]],Table_PI[[#This Row],[Input 3]],Table_PI[[#This Row],[Input 4]],'Customer Information'!$AR$12,1,ROW())>0,MeasureCalc(Table_PI[[#This Row],[Hide:\nFormula Name]],Table_PI[[#This Row],[Quantity]],Table_PI[[#This Row],[List 1]],Table_PI[[#This Row],[List 2]],Table_PI[[#This Row],[List 3]],Table_PI[[#This Row],[Size]],Table_PI[[#This Row],[Input 1]],Table_PI[[#This Row],[Input 2]],Table_PI[[#This Row],[Input 3]],Table_PI[[#This Row],[Input 4]],'Customer Information'!$AR$12,7,ROW()),\"No Rebate\"),\"No Rebate\"),0)","v":0},{"$f":"IF(Table_PI[[#This Row],[Hide:\nFormula Name]]<>\"\",IFERROR(IF(MeasureCalc(Table_PI[[#This Row],[Hide:\nFormula Name]],Table_PI[[#This Row],[Quantity]],Table_PI[[#This Row],[List 1]],Table_PI[[#This Row],[List 2]],Table_PI[[#This Row],[List 3]],Table_PI[[#This Row],[Size]],Table_PI[[#This Row],[Input 1]],Table_PI[[#This Row],[Input 2]],Table_PI[[#This Row],[Input 3]],Table_PI[[#This Row],[Input 4]],'Customer Information'!$AR$12,1,ROW())>0,MeasureCalc(Table_PI[[#This Row],[Hide:\nFormula Name]],Table_PI[[#This Row],[Quantity]],Table_PI[[#This Row],[List 1]],Table_PI[[#This Row],[List 2]],Table_PI[[#This Row],[List 3]],Table_PI[[#This Row],[Size]],Table_PI[[#This Row],[Input 1]],Table_PI[[#This Row],[Input 2]],Table_PI[[#This Row],[Input 3]],Table_PI[[#This Row],[Input 4]],'Customer Information'!$AR$12,8,ROW()),\"No Rebate\"),\"No Rebate\"),0)","v":0},{"$f":"IF(Table_PI[[#This Row],[Hide:\nFormula Name]]<>\"\",IF(AND(Table_PI[[#This Row],[Hide:\nFormula Name]]<>\"\",OR(Table_PI[[#This Row],[Rebate]]>0,Table_PI[[#This Row],[Rebate]]=\"No Rebate\")),TRUE,\"MI: Line Item \" & $A368),\"\")","v":""}]
[{"$f":"IF(Table_PI[[#This Row],[Hide:\nFormula Name]]<>\"\",MAX($A$2:A368)+1,\"\")","v":""},null,null,null,null,null,null,null,null,null,null,null,null,null,null,{"$f":"IFERROR(VLOOKUP(Table_PI[[#This Row],[Measure]],'Equipment Lookups'!$C$3:$D$23,2,FALSE),\"\")","v":""},{"$f":"IF(Table_PI[[#This Row],[Hide:\nFormula Name]]<>\"\",IFERROR(IF(MeasureCalc(Table_PI[[#This Row],[Hide:\nFormula Name]],Table_PI[[#This Row],[Quantity]],Table_PI[[#This Row],[List 1]],Table_PI[[#This Row],[List 2]],Table_PI[[#This Row],[List 3]],Table_PI[[#This Row],[Size]],Table_PI[[#This Row],[Input 1]],Table_PI[[#This Row],[Input 2]],Table_PI[[#This Row],[Input 3]],Table_PI[[#This Row],[Input 4]],'Customer Information'!$AR$12,1,ROW())>0,MeasureCalc(Table_PI[[#This Row],[Hide:\nFormula Name]],Table_PI[[#This Row],[Quantity]],Table_PI[[#This Row],[List 1]],Table_PI[[#This Row],[List 2]],Table_PI[[#This Row],[List 3]],Table_PI[[#This Row],[Size]],Table_PI[[#This Row],[Input 1]],Table_PI[[#This Row],[Input 2]],Table_PI[[#This Row],[Input 3]],Table_PI[[#This Row],[Input 4]],'Customer Information'!$AR$12,1,ROW()),\"No Rebate\"),\"No Rebate\"),0)","v":0},{"$f":"IF(Table_PI[[#This Row],[Hide:\nFormula Name]]<>\"\",IFERROR(IF(MeasureCalc(Table_PI[[#This Row],[Hide:\nFormula Name]],Table_PI[[#This Row],[Quantity]],Table_PI[[#This Row],[List 1]],Table_PI[[#This Row],[List 2]],Table_PI[[#This Row],[List 3]],Table_PI[[#This Row],[Size]],Table_PI[[#This Row],[Input 1]],Table_PI[[#This Row],[Input 2]],Table_PI[[#This Row],[Input 3]],Table_PI[[#This Row],[Input 4]],'Customer Information'!$AR$12,1,ROW())>0,MeasureCalc(Table_PI[[#This Row],[Hide:\nFormula Name]],Table_PI[[#This Row],[Quantity]],Table_PI[[#This Row],[List 1]],Table_PI[[#This Row],[List 2]],Table_PI[[#This Row],[List 3]],Table_PI[[#This Row],[Size]],Table_PI[[#This Row],[Input 1]],Table_PI[[#This Row],[Input 2]],Table_PI[[#This Row],[Input 3]],Table_PI[[#This Row],[Input 4]],'Customer Information'!$AR$12,2,ROW()),\"No Rebate\"),\"No Rebate\"),0)","v":0},{"$f":"IF(Table_PI[[#This Row],[Hide:\nFormula Name]]<>\"\",IFERROR(IF(MeasureCalc(Table_PI[[#This Row],[Hide:\nFormula Name]],Table_PI[[#This Row],[Quantity]],Table_PI[[#This Row],[List 1]],Table_PI[[#This Row],[List 2]],Table_PI[[#This Row],[List 3]],Table_PI[[#This Row],[Size]],Table_PI[[#This Row],[Input 1]],Table_PI[[#This Row],[Input 2]],Table_PI[[#This Row],[Input 3]],Table_PI[[#This Row],[Input 4]],'Customer Information'!$AR$12,1,ROW())>0,MeasureCalc(Table_PI[[#This Row],[Hide:\nFormula Name]],Table_PI[[#This Row],[Quantity]],Table_PI[[#This Row],[List 1]],Table_PI[[#This Row],[List 2]],Table_PI[[#This Row],[List 3]],Table_PI[[#This Row],[Size]],Table_PI[[#This Row],[Input 1]],Table_PI[[#This Row],[Input 2]],Table_PI[[#This Row],[Input 3]],Table_PI[[#This Row],[Input 4]],'Customer Information'!$AR$12,3,ROW()),\"No Rebate\"),\"No Rebate\"),0)","v":0},{"$f":"IF(Table_PI[[#This Row],[Hide:\nFormula Name]]<>\"\",IFERROR(IF(MeasureCalc(Table_PI[[#This Row],[Hide:\nFormula Name]],Table_PI[[#This Row],[Quantity]],Table_PI[[#This Row],[List 1]],Table_PI[[#This Row],[List 2]],Table_PI[[#This Row],[List 3]],Table_PI[[#This Row],[Size]],Table_PI[[#This Row],[Input 1]],Table_PI[[#This Row],[Input 2]],Table_PI[[#This Row],[Input 3]],Table_PI[[#This Row],[Input 4]],'Customer Information'!$AR$12,1,ROW())>0,MeasureCalc(Table_PI[[#This Row],[Hide:\nFormula Name]],Table_PI[[#This Row],[Quantity]],Table_PI[[#This Row],[List 1]],Table_PI[[#This Row],[List 2]],Table_PI[[#This Row],[List 3]],Table_PI[[#This Row],[Size]],Table_PI[[#This Row],[Input 1]],Table_PI[[#This Row],[Input 2]],Table_PI[[#This Row],[Input 3]],Table_PI[[#This Row],[Input 4]],'Customer Information'!$AR$12,4,ROW()),\"No Rebate\"),\"No Rebate\"),0)","v":0},{"$f":"IF(Table_PI[[#This Row],[Hide:\nFormula Name]]<>\"\",IFERROR(IF(MeasureCalc(Table_PI[[#This Row],[Hide:\nFormula Name]],Table_PI[[#This Row],[Quantity]],Table_PI[[#This Row],[List 1]],Table_PI[[#This Row],[List 2]],Table_PI[[#This Row],[List 3]],Table_PI[[#This Row],[Size]],Table_PI[[#This Row],[Input 1]],Table_PI[[#This Row],[Input 2]],Table_PI[[#This Row],[Input 3]],Table_PI[[#This Row],[Input 4]],'Customer Information'!$AR$12,1,ROW())>0,MeasureCalc(Table_PI[[#This Row],[Hide:\nFormula Name]],Table_PI[[#This Row],[Quantity]],Table_PI[[#This Row],[List 1]],Table_PI[[#This Row],[List 2]],Table_PI[[#This Row],[List 3]],Table_PI[[#This Row],[Size]],Table_PI[[#This Row],[Input 1]],Table_PI[[#This Row],[Input 2]],Table_PI[[#This Row],[Input 3]],Table_PI[[#This Row],[Input 4]],'Customer Information'!$AR$12,5,ROW()),\"No Rebate\"),\"No Rebate\"),0)","v":0},{"$f":"IF(Table_PI[[#This Row],[Hide:\nFormula Name]]<>\"\",IFERROR(IF(MeasureCalc(Table_PI[[#This Row],[Hide:\nFormula Name]],Table_PI[[#This Row],[Quantity]],Table_PI[[#This Row],[List 1]],Table_PI[[#This Row],[List 2]],Table_PI[[#This Row],[List 3]],Table_PI[[#This Row],[Size]],Table_PI[[#This Row],[Input 1]],Table_PI[[#This Row],[Input 2]],Table_PI[[#This Row],[Input 3]],Table_PI[[#This Row],[Input 4]],'Customer Information'!$AR$12,1,ROW())>0,MeasureCalc(Table_PI[[#This Row],[Hide:\nFormula Name]],Table_PI[[#This Row],[Quantity]],Table_PI[[#This Row],[List 1]],Table_PI[[#This Row],[List 2]],Table_PI[[#This Row],[List 3]],Table_PI[[#This Row],[Size]],Table_PI[[#This Row],[Input 1]],Table_PI[[#This Row],[Input 2]],Table_PI[[#This Row],[Input 3]],Table_PI[[#This Row],[Input 4]],'Customer Information'!$AR$12,6,ROW()),\"No Rebate\"),\"No Rebate\"),0)","v":0},{"$f":"IF(Table_PI[[#This Row],[Hide:\nFormula Name]]<>\"\",IFERROR(IF(MeasureCalc(Table_PI[[#This Row],[Hide:\nFormula Name]],Table_PI[[#This Row],[Quantity]],Table_PI[[#This Row],[List 1]],Table_PI[[#This Row],[List 2]],Table_PI[[#This Row],[List 3]],Table_PI[[#This Row],[Size]],Table_PI[[#This Row],[Input 1]],Table_PI[[#This Row],[Input 2]],Table_PI[[#This Row],[Input 3]],Table_PI[[#This Row],[Input 4]],'Customer Information'!$AR$12,1,ROW())>0,MeasureCalc(Table_PI[[#This Row],[Hide:\nFormula Name]],Table_PI[[#This Row],[Quantity]],Table_PI[[#This Row],[List 1]],Table_PI[[#This Row],[List 2]],Table_PI[[#This Row],[List 3]],Table_PI[[#This Row],[Size]],Table_PI[[#This Row],[Input 1]],Table_PI[[#This Row],[Input 2]],Table_PI[[#This Row],[Input 3]],Table_PI[[#This Row],[Input 4]],'Customer Information'!$AR$12,7,ROW()),\"No Rebate\"),\"No Rebate\"),0)","v":0},{"$f":"IF(Table_PI[[#This Row],[Hide:\nFormula Name]]<>\"\",IFERROR(IF(MeasureCalc(Table_PI[[#This Row],[Hide:\nFormula Name]],Table_PI[[#This Row],[Quantity]],Table_PI[[#This Row],[List 1]],Table_PI[[#This Row],[List 2]],Table_PI[[#This Row],[List 3]],Table_PI[[#This Row],[Size]],Table_PI[[#This Row],[Input 1]],Table_PI[[#This Row],[Input 2]],Table_PI[[#This Row],[Input 3]],Table_PI[[#This Row],[Input 4]],'Customer Information'!$AR$12,1,ROW())>0,MeasureCalc(Table_PI[[#This Row],[Hide:\nFormula Name]],Table_PI[[#This Row],[Quantity]],Table_PI[[#This Row],[List 1]],Table_PI[[#This Row],[List 2]],Table_PI[[#This Row],[List 3]],Table_PI[[#This Row],[Size]],Table_PI[[#This Row],[Input 1]],Table_PI[[#This Row],[Input 2]],Table_PI[[#This Row],[Input 3]],Table_PI[[#This Row],[Input 4]],'Customer Information'!$AR$12,8,ROW()),\"No Rebate\"),\"No Rebate\"),0)","v":0},{"$f":"IF(Table_PI[[#This Row],[Hide:\nFormula Name]]<>\"\",IF(AND(Table_PI[[#This Row],[Hide:\nFormula Name]]<>\"\",OR(Table_PI[[#This Row],[Rebate]]>0,Table_PI[[#This Row],[Rebate]]=\"No Rebate\")),TRUE,\"MI: Line Item \" & $A369),\"\")","v":""}]
[{"$f":"IF(Table_PI[[#This Row],[Hide:\nFormula Name]]<>\"\",MAX($A$2:A369)+1,\"\")","v":""},null,null,null,null,null,null,null,null,null,null,null,null,null,null,{"$f":"IFERROR(VLOOKUP(Table_PI[[#This Row],[Measure]],'Equipment Lookups'!$C$3:$D$23,2,FALSE),\"\")","v":""},{"$f":"IF(Table_PI[[#This Row],[Hide:\nFormula Name]]<>\"\",IFERROR(IF(MeasureCalc(Table_PI[[#This Row],[Hide:\nFormula Name]],Table_PI[[#This Row],[Quantity]],Table_PI[[#This Row],[List 1]],Table_PI[[#This Row],[List 2]],Table_PI[[#This Row],[List 3]],Table_PI[[#This Row],[Size]],Table_PI[[#This Row],[Input 1]],Table_PI[[#This Row],[Input 2]],Table_PI[[#This Row],[Input 3]],Table_PI[[#This Row],[Input 4]],'Customer Information'!$AR$12,1,ROW())>0,MeasureCalc(Table_PI[[#This Row],[Hide:\nFormula Name]],Table_PI[[#This Row],[Quantity]],Table_PI[[#This Row],[List 1]],Table_PI[[#This Row],[List 2]],Table_PI[[#This Row],[List 3]],Table_PI[[#This Row],[Size]],Table_PI[[#This Row],[Input 1]],Table_PI[[#This Row],[Input 2]],Table_PI[[#This Row],[Input 3]],Table_PI[[#This Row],[Input 4]],'Customer Information'!$AR$12,1,ROW()),\"No Rebate\"),\"No Rebate\"),0)","v":0},{"$f":"IF(Table_PI[[#This Row],[Hide:\nFormula Name]]<>\"\",IFERROR(IF(MeasureCalc(Table_PI[[#This Row],[Hide:\nFormula Name]],Table_PI[[#This Row],[Quantity]],Table_PI[[#This Row],[List 1]],Table_PI[[#This Row],[List 2]],Table_PI[[#This Row],[List 3]],Table_PI[[#This Row],[Size]],Table_PI[[#This Row],[Input 1]],Table_PI[[#This Row],[Input 2]],Table_PI[[#This Row],[Input 3]],Table_PI[[#This Row],[Input 4]],'Customer Information'!$AR$12,1,ROW())>0,MeasureCalc(Table_PI[[#This Row],[Hide:\nFormula Name]],Table_PI[[#This Row],[Quantity]],Table_PI[[#This Row],[List 1]],Table_PI[[#This Row],[List 2]],Table_PI[[#This Row],[List 3]],Table_PI[[#This Row],[Size]],Table_PI[[#This Row],[Input 1]],Table_PI[[#This Row],[Input 2]],Table_PI[[#This Row],[Input 3]],Table_PI[[#This Row],[Input 4]],'Customer Information'!$AR$12,2,ROW()),\"No Rebate\"),\"No Rebate\"),0)","v":0},{"$f":"IF(Table_PI[[#This Row],[Hide:\nFormula Name]]<>\"\",IFERROR(IF(MeasureCalc(Table_PI[[#This Row],[Hide:\nFormula Name]],Table_PI[[#This Row],[Quantity]],Table_PI[[#This Row],[List 1]],Table_PI[[#This Row],[List 2]],Table_PI[[#This Row],[List 3]],Table_PI[[#This Row],[Size]],Table_PI[[#This Row],[Input 1]],Table_PI[[#This Row],[Input 2]],Table_PI[[#This Row],[Input 3]],Table_PI[[#This Row],[Input 4]],'Customer Information'!$AR$12,1,ROW())>0,MeasureCalc(Table_PI[[#This Row],[Hide:\nFormula Name]],Table_PI[[#This Row],[Quantity]],Table_PI[[#This Row],[List 1]],Table_PI[[#This Row],[List 2]],Table_PI[[#This Row],[List 3]],Table_PI[[#This Row],[Size]],Table_PI[[#This Row],[Input 1]],Table_PI[[#This Row],[Input 2]],Table_PI[[#This Row],[Input 3]],Table_PI[[#This Row],[Input 4]],'Customer Information'!$AR$12,3,ROW()),\"No Rebate\"),\"No Rebate\"),0)","v":0},{"$f":"IF(Table_PI[[#This Row],[Hide:\nFormula Name]]<>\"\",IFERROR(IF(MeasureCalc(Table_PI[[#This Row],[Hide:\nFormula Name]],Table_PI[[#This Row],[Quantity]],Table_PI[[#This Row],[List 1]],Table_PI[[#This Row],[List 2]],Table_PI[[#This Row],[List 3]],Table_PI[[#This Row],[Size]],Table_PI[[#This Row],[Input 1]],Table_PI[[#This Row],[Input 2]],Table_PI[[#This Row],[Input 3]],Table_PI[[#This Row],[Input 4]],'Customer Information'!$AR$12,1,ROW())>0,MeasureCalc(Table_PI[[#This Row],[Hide:\nFormula Name]],Table_PI[[#This Row],[Quantity]],Table_PI[[#This Row],[List 1]],Table_PI[[#This Row],[List 2]],Table_PI[[#This Row],[List 3]],Table_PI[[#This Row],[Size]],Table_PI[[#This Row],[Input 1]],Table_PI[[#This Row],[Input 2]],Table_PI[[#This Row],[Input 3]],Table_PI[[#This Row],[Input 4]],'Customer Information'!$AR$12,4,ROW()),\"No Rebate\"),\"No Rebate\"),0)","v":0},{"$f":"IF(Table_PI[[#This Row],[Hide:\nFormula Name]]<>\"\",IFERROR(IF(MeasureCalc(Table_PI[[#This Row],[Hide:\nFormula Name]],Table_PI[[#This Row],[Quantity]],Table_PI[[#This Row],[List 1]],Table_PI[[#This Row],[List 2]],Table_PI[[#This Row],[List 3]],Table_PI[[#This Row],[Size]],Table_PI[[#This Row],[Input 1]],Table_PI[[#This Row],[Input 2]],Table_PI[[#This Row],[Input 3]],Table_PI[[#This Row],[Input 4]],'Customer Information'!$AR$12,1,ROW())>0,MeasureCalc(Table_PI[[#This Row],[Hide:\nFormula Name]],Table_PI[[#This Row],[Quantity]],Table_PI[[#This Row],[List 1]],Table_PI[[#This Row],[List 2]],Table_PI[[#This Row],[List 3]],Table_PI[[#This Row],[Size]],Table_PI[[#This Row],[Input 1]],Table_PI[[#This Row],[Input 2]],Table_PI[[#This Row],[Input 3]],Table_PI[[#This Row],[Input 4]],'Customer Information'!$AR$12,5,ROW()),\"No Rebate\"),\"No Rebate\"),0)","v":0},{"$f":"IF(Table_PI[[#This Row],[Hide:\nFormula Name]]<>\"\",IFERROR(IF(MeasureCalc(Table_PI[[#This Row],[Hide:\nFormula Name]],Table_PI[[#This Row],[Quantity]],Table_PI[[#This Row],[List 1]],Table_PI[[#This Row],[List 2]],Table_PI[[#This Row],[List 3]],Table_PI[[#This Row],[Size]],Table_PI[[#This Row],[Input 1]],Table_PI[[#This Row],[Input 2]],Table_PI[[#This Row],[Input 3]],Table_PI[[#This Row],[Input 4]],'Customer Information'!$AR$12,1,ROW())>0,MeasureCalc(Table_PI[[#This Row],[Hide:\nFormula Name]],Table_PI[[#This Row],[Quantity]],Table_PI[[#This Row],[List 1]],Table_PI[[#This Row],[List 2]],Table_PI[[#This Row],[List 3]],Table_PI[[#This Row],[Size]],Table_PI[[#This Row],[Input 1]],Table_PI[[#This Row],[Input 2]],Table_PI[[#This Row],[Input 3]],Table_PI[[#This Row],[Input 4]],'Customer Information'!$AR$12,6,ROW()),\"No Rebate\"),\"No Rebate\"),0)","v":0},{"$f":"IF(Table_PI[[#This Row],[Hide:\nFormula Name]]<>\"\",IFERROR(IF(MeasureCalc(Table_PI[[#This Row],[Hide:\nFormula Name]],Table_PI[[#This Row],[Quantity]],Table_PI[[#This Row],[List 1]],Table_PI[[#This Row],[List 2]],Table_PI[[#This Row],[List 3]],Table_PI[[#This Row],[Size]],Table_PI[[#This Row],[Input 1]],Table_PI[[#This Row],[Input 2]],Table_PI[[#This Row],[Input 3]],Table_PI[[#This Row],[Input 4]],'Customer Information'!$AR$12,1,ROW())>0,MeasureCalc(Table_PI[[#This Row],[Hide:\nFormula Name]],Table_PI[[#This Row],[Quantity]],Table_PI[[#This Row],[List 1]],Table_PI[[#This Row],[List 2]],Table_PI[[#This Row],[List 3]],Table_PI[[#This Row],[Size]],Table_PI[[#This Row],[Input 1]],Table_PI[[#This Row],[Input 2]],Table_PI[[#This Row],[Input 3]],Table_PI[[#This Row],[Input 4]],'Customer Information'!$AR$12,7,ROW()),\"No Rebate\"),\"No Rebate\"),0)","v":0},{"$f":"IF(Table_PI[[#This Row],[Hide:\nFormula Name]]<>\"\",IFERROR(IF(MeasureCalc(Table_PI[[#This Row],[Hide:\nFormula Name]],Table_PI[[#This Row],[Quantity]],Table_PI[[#This Row],[List 1]],Table_PI[[#This Row],[List 2]],Table_PI[[#This Row],[List 3]],Table_PI[[#This Row],[Size]],Table_PI[[#This Row],[Input 1]],Table_PI[[#This Row],[Input 2]],Table_PI[[#This Row],[Input 3]],Table_PI[[#This Row],[Input 4]],'Customer Information'!$AR$12,1,ROW())>0,MeasureCalc(Table_PI[[#This Row],[Hide:\nFormula Name]],Table_PI[[#This Row],[Quantity]],Table_PI[[#This Row],[List 1]],Table_PI[[#This Row],[List 2]],Table_PI[[#This Row],[List 3]],Table_PI[[#This Row],[Size]],Table_PI[[#This Row],[Input 1]],Table_PI[[#This Row],[Input 2]],Table_PI[[#This Row],[Input 3]],Table_PI[[#This Row],[Input 4]],'Customer Information'!$AR$12,8,ROW()),\"No Rebate\"),\"No Rebate\"),0)","v":0},{"$f":"IF(Table_PI[[#This Row],[Hide:\nFormula Name]]<>\"\",IF(AND(Table_PI[[#This Row],[Hide:\nFormula Name]]<>\"\",OR(Table_PI[[#This Row],[Rebate]]>0,Table_PI[[#This Row],[Rebate]]=\"No Rebate\")),TRUE,\"MI: Line Item \" & $A370),\"\")","v":""}]
[{"$f":"IF(Table_PI[[#This Row],[Hide:\nFormula Name]]<>\"\",MAX($A$2:A370)+1,\"\")","v":""},null,null,null,null,null,null,null,null,null,null,null,null,null,null,{"$f":"IFERROR(VLOOKUP(Table_PI[[#This Row],[Measure]],'Equipment Lookups'!$C$3:$D$23,2,FALSE),\"\")","v":""},{"$f":"IF(Table_PI[[#This Row],[Hide:\nFormula Name]]<>\"\",IFERROR(IF(MeasureCalc(Table_PI[[#This Row],[Hide:\nFormula Name]],Table_PI[[#This Row],[Quantity]],Table_PI[[#This Row],[List 1]],Table_PI[[#This Row],[List 2]],Table_PI[[#This Row],[List 3]],Table_PI[[#This Row],[Size]],Table_PI[[#This Row],[Input 1]],Table_PI[[#This Row],[Input 2]],Table_PI[[#This Row],[Input 3]],Table_PI[[#This Row],[Input 4]],'Customer Information'!$AR$12,1,ROW())>0,MeasureCalc(Table_PI[[#This Row],[Hide:\nFormula Name]],Table_PI[[#This Row],[Quantity]],Table_PI[[#This Row],[List 1]],Table_PI[[#This Row],[List 2]],Table_PI[[#This Row],[List 3]],Table_PI[[#This Row],[Size]],Table_PI[[#This Row],[Input 1]],Table_PI[[#This Row],[Input 2]],Table_PI[[#This Row],[Input 3]],Table_PI[[#This Row],[Input 4]],'Customer Information'!$AR$12,1,ROW()),\"No Rebate\"),\"No Rebate\"),0)","v":0},{"$f":"IF(Table_PI[[#This Row],[Hide:\nFormula Name]]<>\"\",IFERROR(IF(MeasureCalc(Table_PI[[#This Row],[Hide:\nFormula Name]],Table_PI[[#This Row],[Quantity]],Table_PI[[#This Row],[List 1]],Table_PI[[#This Row],[List 2]],Table_PI[[#This Row],[List 3]],Table_PI[[#This Row],[Size]],Table_PI[[#This Row],[Input 1]],Table_PI[[#This Row],[Input 2]],Table_PI[[#This Row],[Input 3]],Table_PI[[#This Row],[Input 4]],'Customer Information'!$AR$12,1,ROW())>0,MeasureCalc(Table_PI[[#This Row],[Hide:\nFormula Name]],Table_PI[[#This Row],[Quantity]],Table_PI[[#This Row],[List 1]],Table_PI[[#This Row],[List 2]],Table_PI[[#This Row],[List 3]],Table_PI[[#This Row],[Size]],Table_PI[[#This Row],[Input 1]],Table_PI[[#This Row],[Input 2]],Table_PI[[#This Row],[Input 3]],Table_PI[[#This Row],[Input 4]],'Customer Information'!$AR$12,2,ROW()),\"No Rebate\"),\"No Rebate\"),0)","v":0},{"$f":"IF(Table_PI[[#This Row],[Hide:\nFormula Name]]<>\"\",IFERROR(IF(MeasureCalc(Table_PI[[#This Row],[Hide:\nFormula Name]],Table_PI[[#This Row],[Quantity]],Table_PI[[#This Row],[List 1]],Table_PI[[#This Row],[List 2]],Table_PI[[#This Row],[List 3]],Table_PI[[#This Row],[Size]],Table_PI[[#This Row],[Input 1]],Table_PI[[#This Row],[Input 2]],Table_PI[[#This Row],[Input 3]],Table_PI[[#This Row],[Input 4]],'Customer Information'!$AR$12,1,ROW())>0,MeasureCalc(Table_PI[[#This Row],[Hide:\nFormula Name]],Table_PI[[#This Row],[Quantity]],Table_PI[[#This Row],[List 1]],Table_PI[[#This Row],[List 2]],Table_PI[[#This Row],[List 3]],Table_PI[[#This Row],[Size]],Table_PI[[#This Row],[Input 1]],Table_PI[[#This Row],[Input 2]],Table_PI[[#This Row],[Input 3]],Table_PI[[#This Row],[Input 4]],'Customer Information'!$AR$12,3,ROW()),\"No Rebate\"),\"No Rebate\"),0)","v":0},{"$f":"IF(Table_PI[[#This Row],[Hide:\nFormula Name]]<>\"\",IFERROR(IF(MeasureCalc(Table_PI[[#This Row],[Hide:\nFormula Name]],Table_PI[[#This Row],[Quantity]],Table_PI[[#This Row],[List 1]],Table_PI[[#This Row],[List 2]],Table_PI[[#This Row],[List 3]],Table_PI[[#This Row],[Size]],Table_PI[[#This Row],[Input 1]],Table_PI[[#This Row],[Input 2]],Table_PI[[#This Row],[Input 3]],Table_PI[[#This Row],[Input 4]],'Customer Information'!$AR$12,1,ROW())>0,MeasureCalc(Table_PI[[#This Row],[Hide:\nFormula Name]],Table_PI[[#This Row],[Quantity]],Table_PI[[#This Row],[List 1]],Table_PI[[#This Row],[List 2]],Table_PI[[#This Row],[List 3]],Table_PI[[#This Row],[Size]],Table_PI[[#This Row],[Input 1]],Table_PI[[#This Row],[Input 2]],Table_PI[[#This Row],[Input 3]],Table_PI[[#This Row],[Input 4]],'Customer Information'!$AR$12,4,ROW()),\"No Rebate\"),\"No Rebate\"),0)","v":0},{"$f":"IF(Table_PI[[#This Row],[Hide:\nFormula Name]]<>\"\",IFERROR(IF(MeasureCalc(Table_PI[[#This Row],[Hide:\nFormula Name]],Table_PI[[#This Row],[Quantity]],Table_PI[[#This Row],[List 1]],Table_PI[[#This Row],[List 2]],Table_PI[[#This Row],[List 3]],Table_PI[[#This Row],[Size]],Table_PI[[#This Row],[Input 1]],Table_PI[[#This Row],[Input 2]],Table_PI[[#This Row],[Input 3]],Table_PI[[#This Row],[Input 4]],'Customer Information'!$AR$12,1,ROW())>0,MeasureCalc(Table_PI[[#This Row],[Hide:\nFormula Name]],Table_PI[[#This Row],[Quantity]],Table_PI[[#This Row],[List 1]],Table_PI[[#This Row],[List 2]],Table_PI[[#This Row],[List 3]],Table_PI[[#This Row],[Size]],Table_PI[[#This Row],[Input 1]],Table_PI[[#This Row],[Input 2]],Table_PI[[#This Row],[Input 3]],Table_PI[[#This Row],[Input 4]],'Customer Information'!$AR$12,5,ROW()),\"No Rebate\"),\"No Rebate\"),0)","v":0},{"$f":"IF(Table_PI[[#This Row],[Hide:\nFormula Name]]<>\"\",IFERROR(IF(MeasureCalc(Table_PI[[#This Row],[Hide:\nFormula Name]],Table_PI[[#This Row],[Quantity]],Table_PI[[#This Row],[List 1]],Table_PI[[#This Row],[List 2]],Table_PI[[#This Row],[List 3]],Table_PI[[#This Row],[Size]],Table_PI[[#This Row],[Input 1]],Table_PI[[#This Row],[Input 2]],Table_PI[[#This Row],[Input 3]],Table_PI[[#This Row],[Input 4]],'Customer Information'!$AR$12,1,ROW())>0,MeasureCalc(Table_PI[[#This Row],[Hide:\nFormula Name]],Table_PI[[#This Row],[Quantity]],Table_PI[[#This Row],[List 1]],Table_PI[[#This Row],[List 2]],Table_PI[[#This Row],[List 3]],Table_PI[[#This Row],[Size]],Table_PI[[#This Row],[Input 1]],Table_PI[[#This Row],[Input 2]],Table_PI[[#This Row],[Input 3]],Table_PI[[#This Row],[Input 4]],'Customer Information'!$AR$12,6,ROW()),\"No Rebate\"),\"No Rebate\"),0)","v":0},{"$f":"IF(Table_PI[[#This Row],[Hide:\nFormula Name]]<>\"\",IFERROR(IF(MeasureCalc(Table_PI[[#This Row],[Hide:\nFormula Name]],Table_PI[[#This Row],[Quantity]],Table_PI[[#This Row],[List 1]],Table_PI[[#This Row],[List 2]],Table_PI[[#This Row],[List 3]],Table_PI[[#This Row],[Size]],Table_PI[[#This Row],[Input 1]],Table_PI[[#This Row],[Input 2]],Table_PI[[#This Row],[Input 3]],Table_PI[[#This Row],[Input 4]],'Customer Information'!$AR$12,1,ROW())>0,MeasureCalc(Table_PI[[#This Row],[Hide:\nFormula Name]],Table_PI[[#This Row],[Quantity]],Table_PI[[#This Row],[List 1]],Table_PI[[#This Row],[List 2]],Table_PI[[#This Row],[List 3]],Table_PI[[#This Row],[Size]],Table_PI[[#This Row],[Input 1]],Table_PI[[#This Row],[Input 2]],Table_PI[[#This Row],[Input 3]],Table_PI[[#This Row],[Input 4]],'Customer Information'!$AR$12,7,ROW()),\"No Rebate\"),\"No Rebate\"),0)","v":0},{"$f":"IF(Table_PI[[#This Row],[Hide:\nFormula Name]]<>\"\",IFERROR(IF(MeasureCalc(Table_PI[[#This Row],[Hide:\nFormula Name]],Table_PI[[#This Row],[Quantity]],Table_PI[[#This Row],[List 1]],Table_PI[[#This Row],[List 2]],Table_PI[[#This Row],[List 3]],Table_PI[[#This Row],[Size]],Table_PI[[#This Row],[Input 1]],Table_PI[[#This Row],[Input 2]],Table_PI[[#This Row],[Input 3]],Table_PI[[#This Row],[Input 4]],'Customer Information'!$AR$12,1,ROW())>0,MeasureCalc(Table_PI[[#This Row],[Hide:\nFormula Name]],Table_PI[[#This Row],[Quantity]],Table_PI[[#This Row],[List 1]],Table_PI[[#This Row],[List 2]],Table_PI[[#This Row],[List 3]],Table_PI[[#This Row],[Size]],Table_PI[[#This Row],[Input 1]],Table_PI[[#This Row],[Input 2]],Table_PI[[#This Row],[Input 3]],Table_PI[[#This Row],[Input 4]],'Customer Information'!$AR$12,8,ROW()),\"No Rebate\"),\"No Rebate\"),0)","v":0},{"$f":"IF(Table_PI[[#This Row],[Hide:\nFormula Name]]<>\"\",IF(AND(Table_PI[[#This Row],[Hide:\nFormula Name]]<>\"\",OR(Table_PI[[#This Row],[Rebate]]>0,Table_PI[[#This Row],[Rebate]]=\"No Rebate\")),TRUE,\"MI: Line Item \" & $A371),\"\")","v":""}]
[{"$f":"IF(Table_PI[[#This Row],[Hide:\nFormula Name]]<>\"\",MAX($A$2:A371)+1,\"\")","v":""},null,null,null,null,null,null,null,null,null,null,null,null,null,null,{"$f":"IFERROR(VLOOKUP(Table_PI[[#This Row],[Measure]],'Equipment Lookups'!$C$3:$D$23,2,FALSE),\"\")","v":""},{"$f":"IF(Table_PI[[#This Row],[Hide:\nFormula Name]]<>\"\",IFERROR(IF(MeasureCalc(Table_PI[[#This Row],[Hide:\nFormula Name]],Table_PI[[#This Row],[Quantity]],Table_PI[[#This Row],[List 1]],Table_PI[[#This Row],[List 2]],Table_PI[[#This Row],[List 3]],Table_PI[[#This Row],[Size]],Table_PI[[#This Row],[Input 1]],Table_PI[[#This Row],[Input 2]],Table_PI[[#This Row],[Input 3]],Table_PI[[#This Row],[Input 4]],'Customer Information'!$AR$12,1,ROW())>0,MeasureCalc(Table_PI[[#This Row],[Hide:\nFormula Name]],Table_PI[[#This Row],[Quantity]],Table_PI[[#This Row],[List 1]],Table_PI[[#This Row],[List 2]],Table_PI[[#This Row],[List 3]],Table_PI[[#This Row],[Size]],Table_PI[[#This Row],[Input 1]],Table_PI[[#This Row],[Input 2]],Table_PI[[#This Row],[Input 3]],Table_PI[[#This Row],[Input 4]],'Customer Information'!$AR$12,1,ROW()),\"No Rebate\"),\"No Rebate\"),0)","v":0},{"$f":"IF(Table_PI[[#This Row],[Hide:\nFormula Name]]<>\"\",IFERROR(IF(MeasureCalc(Table_PI[[#This Row],[Hide:\nFormula Name]],Table_PI[[#This Row],[Quantity]],Table_PI[[#This Row],[List 1]],Table_PI[[#This Row],[List 2]],Table_PI[[#This Row],[List 3]],Table_PI[[#This Row],[Size]],Table_PI[[#This Row],[Input 1]],Table_PI[[#This Row],[Input 2]],Table_PI[[#This Row],[Input 3]],Table_PI[[#This Row],[Input 4]],'Customer Information'!$AR$12,1,ROW())>0,MeasureCalc(Table_PI[[#This Row],[Hide:\nFormula Name]],Table_PI[[#This Row],[Quantity]],Table_PI[[#This Row],[List 1]],Table_PI[[#This Row],[List 2]],Table_PI[[#This Row],[List 3]],Table_PI[[#This Row],[Size]],Table_PI[[#This Row],[Input 1]],Table_PI[[#This Row],[Input 2]],Table_PI[[#This Row],[Input 3]],Table_PI[[#This Row],[Input 4]],'Customer Information'!$AR$12,2,ROW()),\"No Rebate\"),\"No Rebate\"),0)","v":0},{"$f":"IF(Table_PI[[#This Row],[Hide:\nFormula Name]]<>\"\",IFERROR(IF(MeasureCalc(Table_PI[[#This Row],[Hide:\nFormula Name]],Table_PI[[#This Row],[Quantity]],Table_PI[[#This Row],[List 1]],Table_PI[[#This Row],[List 2]],Table_PI[[#This Row],[List 3]],Table_PI[[#This Row],[Size]],Table_PI[[#This Row],[Input 1]],Table_PI[[#This Row],[Input 2]],Table_PI[[#This Row],[Input 3]],Table_PI[[#This Row],[Input 4]],'Customer Information'!$AR$12,1,ROW())>0,MeasureCalc(Table_PI[[#This Row],[Hide:\nFormula Name]],Table_PI[[#This Row],[Quantity]],Table_PI[[#This Row],[List 1]],Table_PI[[#This Row],[List 2]],Table_PI[[#This Row],[List 3]],Table_PI[[#This Row],[Size]],Table_PI[[#This Row],[Input 1]],Table_PI[[#This Row],[Input 2]],Table_PI[[#This Row],[Input 3]],Table_PI[[#This Row],[Input 4]],'Customer Information'!$AR$12,3,ROW()),\"No Rebate\"),\"No Rebate\"),0)","v":0},{"$f":"IF(Table_PI[[#This Row],[Hide:\nFormula Name]]<>\"\",IFERROR(IF(MeasureCalc(Table_PI[[#This Row],[Hide:\nFormula Name]],Table_PI[[#This Row],[Quantity]],Table_PI[[#This Row],[List 1]],Table_PI[[#This Row],[List 2]],Table_PI[[#This Row],[List 3]],Table_PI[[#This Row],[Size]],Table_PI[[#This Row],[Input 1]],Table_PI[[#This Row],[Input 2]],Table_PI[[#This Row],[Input 3]],Table_PI[[#This Row],[Input 4]],'Customer Information'!$AR$12,1,ROW())>0,MeasureCalc(Table_PI[[#This Row],[Hide:\nFormula Name]],Table_PI[[#This Row],[Quantity]],Table_PI[[#This Row],[List 1]],Table_PI[[#This Row],[List 2]],Table_PI[[#This Row],[List 3]],Table_PI[[#This Row],[Size]],Table_PI[[#This Row],[Input 1]],Table_PI[[#This Row],[Input 2]],Table_PI[[#This Row],[Input 3]],Table_PI[[#This Row],[Input 4]],'Customer Information'!$AR$12,4,ROW()),\"No Rebate\"),\"No Rebate\"),0)","v":0},{"$f":"IF(Table_PI[[#This Row],[Hide:\nFormula Name]]<>\"\",IFERROR(IF(MeasureCalc(Table_PI[[#This Row],[Hide:\nFormula Name]],Table_PI[[#This Row],[Quantity]],Table_PI[[#This Row],[List 1]],Table_PI[[#This Row],[List 2]],Table_PI[[#This Row],[List 3]],Table_PI[[#This Row],[Size]],Table_PI[[#This Row],[Input 1]],Table_PI[[#This Row],[Input 2]],Table_PI[[#This Row],[Input 3]],Table_PI[[#This Row],[Input 4]],'Customer Information'!$AR$12,1,ROW())>0,MeasureCalc(Table_PI[[#This Row],[Hide:\nFormula Name]],Table_PI[[#This Row],[Quantity]],Table_PI[[#This Row],[List 1]],Table_PI[[#This Row],[List 2]],Table_PI[[#This Row],[List 3]],Table_PI[[#This Row],[Size]],Table_PI[[#This Row],[Input 1]],Table_PI[[#This Row],[Input 2]],Table_PI[[#This Row],[Input 3]],Table_PI[[#This Row],[Input 4]],'Customer Information'!$AR$12,5,ROW()),\"No Rebate\"),\"No Rebate\"),0)","v":0},{"$f":"IF(Table_PI[[#This Row],[Hide:\nFormula Name]]<>\"\",IFERROR(IF(MeasureCalc(Table_PI[[#This Row],[Hide:\nFormula Name]],Table_PI[[#This Row],[Quantity]],Table_PI[[#This Row],[List 1]],Table_PI[[#This Row],[List 2]],Table_PI[[#This Row],[List 3]],Table_PI[[#This Row],[Size]],Table_PI[[#This Row],[Input 1]],Table_PI[[#This Row],[Input 2]],Table_PI[[#This Row],[Input 3]],Table_PI[[#This Row],[Input 4]],'Customer Information'!$AR$12,1,ROW())>0,MeasureCalc(Table_PI[[#This Row],[Hide:\nFormula Name]],Table_PI[[#This Row],[Quantity]],Table_PI[[#This Row],[List 1]],Table_PI[[#This Row],[List 2]],Table_PI[[#This Row],[List 3]],Table_PI[[#This Row],[Size]],Table_PI[[#This Row],[Input 1]],Table_PI[[#This Row],[Input 2]],Table_PI[[#This Row],[Input 3]],Table_PI[[#This Row],[Input 4]],'Customer Information'!$AR$12,6,ROW()),\"No Rebate\"),\"No Rebate\"),0)","v":0},{"$f":"IF(Table_PI[[#This Row],[Hide:\nFormula Name]]<>\"\",IFERROR(IF(MeasureCalc(Table_PI[[#This Row],[Hide:\nFormula Name]],Table_PI[[#This Row],[Quantity]],Table_PI[[#This Row],[List 1]],Table_PI[[#This Row],[List 2]],Table_PI[[#This Row],[List 3]],Table_PI[[#This Row],[Size]],Table_PI[[#This Row],[Input 1]],Table_PI[[#This Row],[Input 2]],Table_PI[[#This Row],[Input 3]],Table_PI[[#This Row],[Input 4]],'Customer Information'!$AR$12,1,ROW())>0,MeasureCalc(Table_PI[[#This Row],[Hide:\nFormula Name]],Table_PI[[#This Row],[Quantity]],Table_PI[[#This Row],[List 1]],Table_PI[[#This Row],[List 2]],Table_PI[[#This Row],[List 3]],Table_PI[[#This Row],[Size]],Table_PI[[#This Row],[Input 1]],Table_PI[[#This Row],[Input 2]],Table_PI[[#This Row],[Input 3]],Table_PI[[#This Row],[Input 4]],'Customer Information'!$AR$12,7,ROW()),\"No Rebate\"),\"No Rebate\"),0)","v":0},{"$f":"IF(Table_PI[[#This Row],[Hide:\nFormula Name]]<>\"\",IFERROR(IF(MeasureCalc(Table_PI[[#This Row],[Hide:\nFormula Name]],Table_PI[[#This Row],[Quantity]],Table_PI[[#This Row],[List 1]],Table_PI[[#This Row],[List 2]],Table_PI[[#This Row],[List 3]],Table_PI[[#This Row],[Size]],Table_PI[[#This Row],[Input 1]],Table_PI[[#This Row],[Input 2]],Table_PI[[#This Row],[Input 3]],Table_PI[[#This Row],[Input 4]],'Customer Information'!$AR$12,1,ROW())>0,MeasureCalc(Table_PI[[#This Row],[Hide:\nFormula Name]],Table_PI[[#This Row],[Quantity]],Table_PI[[#This Row],[List 1]],Table_PI[[#This Row],[List 2]],Table_PI[[#This Row],[List 3]],Table_PI[[#This Row],[Size]],Table_PI[[#This Row],[Input 1]],Table_PI[[#This Row],[Input 2]],Table_PI[[#This Row],[Input 3]],Table_PI[[#This Row],[Input 4]],'Customer Information'!$AR$12,8,ROW()),\"No Rebate\"),\"No Rebate\"),0)","v":0},{"$f":"IF(Table_PI[[#This Row],[Hide:\nFormula Name]]<>\"\",IF(AND(Table_PI[[#This Row],[Hide:\nFormula Name]]<>\"\",OR(Table_PI[[#This Row],[Rebate]]>0,Table_PI[[#This Row],[Rebate]]=\"No Rebate\")),TRUE,\"MI: Line Item \" & $A372),\"\")","v":""}]
[{"$f":"IF(Table_PI[[#This Row],[Hide:\nFormula Name]]<>\"\",MAX($A$2:A372)+1,\"\")","v":""},null,null,null,null,null,null,null,null,null,null,null,null,null,null,{"$f":"IFERROR(VLOOKUP(Table_PI[[#This Row],[Measure]],'Equipment Lookups'!$C$3:$D$23,2,FALSE),\"\")","v":""},{"$f":"IF(Table_PI[[#This Row],[Hide:\nFormula Name]]<>\"\",IFERROR(IF(MeasureCalc(Table_PI[[#This Row],[Hide:\nFormula Name]],Table_PI[[#This Row],[Quantity]],Table_PI[[#This Row],[List 1]],Table_PI[[#This Row],[List 2]],Table_PI[[#This Row],[List 3]],Table_PI[[#This Row],[Size]],Table_PI[[#This Row],[Input 1]],Table_PI[[#This Row],[Input 2]],Table_PI[[#This Row],[Input 3]],Table_PI[[#This Row],[Input 4]],'Customer Information'!$AR$12,1,ROW())>0,MeasureCalc(Table_PI[[#This Row],[Hide:\nFormula Name]],Table_PI[[#This Row],[Quantity]],Table_PI[[#This Row],[List 1]],Table_PI[[#This Row],[List 2]],Table_PI[[#This Row],[List 3]],Table_PI[[#This Row],[Size]],Table_PI[[#This Row],[Input 1]],Table_PI[[#This Row],[Input 2]],Table_PI[[#This Row],[Input 3]],Table_PI[[#This Row],[Input 4]],'Customer Information'!$AR$12,1,ROW()),\"No Rebate\"),\"No Rebate\"),0)","v":0},{"$f":"IF(Table_PI[[#This Row],[Hide:\nFormula Name]]<>\"\",IFERROR(IF(MeasureCalc(Table_PI[[#This Row],[Hide:\nFormula Name]],Table_PI[[#This Row],[Quantity]],Table_PI[[#This Row],[List 1]],Table_PI[[#This Row],[List 2]],Table_PI[[#This Row],[List 3]],Table_PI[[#This Row],[Size]],Table_PI[[#This Row],[Input 1]],Table_PI[[#This Row],[Input 2]],Table_PI[[#This Row],[Input 3]],Table_PI[[#This Row],[Input 4]],'Customer Information'!$AR$12,1,ROW())>0,MeasureCalc(Table_PI[[#This Row],[Hide:\nFormula Name]],Table_PI[[#This Row],[Quantity]],Table_PI[[#This Row],[List 1]],Table_PI[[#This Row],[List 2]],Table_PI[[#This Row],[List 3]],Table_PI[[#This Row],[Size]],Table_PI[[#This Row],[Input 1]],Table_PI[[#This Row],[Input 2]],Table_PI[[#This Row],[Input 3]],Table_PI[[#This Row],[Input 4]],'Customer Information'!$AR$12,2,ROW()),\"No Rebate\"),\"No Rebate\"),0)","v":0},{"$f":"IF(Table_PI[[#This Row],[Hide:\nFormula Name]]<>\"\",IFERROR(IF(MeasureCalc(Table_PI[[#This Row],[Hide:\nFormula Name]],Table_PI[[#This Row],[Quantity]],Table_PI[[#This Row],[List 1]],Table_PI[[#This Row],[List 2]],Table_PI[[#This Row],[List 3]],Table_PI[[#This Row],[Size]],Table_PI[[#This Row],[Input 1]],Table_PI[[#This Row],[Input 2]],Table_PI[[#This Row],[Input 3]],Table_PI[[#This Row],[Input 4]],'Customer Information'!$AR$12,1,ROW())>0,MeasureCalc(Table_PI[[#This Row],[Hide:\nFormula Name]],Table_PI[[#This Row],[Quantity]],Table_PI[[#This Row],[List 1]],Table_PI[[#This Row],[List 2]],Table_PI[[#This Row],[List 3]],Table_PI[[#This Row],[Size]],Table_PI[[#This Row],[Input 1]],Table_PI[[#This Row],[Input 2]],Table_PI[[#This Row],[Input 3]],Table_PI[[#This Row],[Input 4]],'Customer Information'!$AR$12,3,ROW()),\"No Rebate\"),\"No Rebate\"),0)","v":0},{"$f":"IF(Table_PI[[#This Row],[Hide:\nFormula Name]]<>\"\",IFERROR(IF(MeasureCalc(Table_PI[[#This Row],[Hide:\nFormula Name]],Table_PI[[#This Row],[Quantity]],Table_PI[[#This Row],[List 1]],Table_PI[[#This Row],[List 2]],Table_PI[[#This Row],[List 3]],Table_PI[[#This Row],[Size]],Table_PI[[#This Row],[Input 1]],Table_PI[[#This Row],[Input 2]],Table_PI[[#This Row],[Input 3]],Table_PI[[#This Row],[Input 4]],'Customer Information'!$AR$12,1,ROW())>0,MeasureCalc(Table_PI[[#This Row],[Hide:\nFormula Name]],Table_PI[[#This Row],[Quantity]],Table_PI[[#This Row],[List 1]],Table_PI[[#This Row],[List 2]],Table_PI[[#This Row],[List 3]],Table_PI[[#This Row],[Size]],Table_PI[[#This Row],[Input 1]],Table_PI[[#This Row],[Input 2]],Table_PI[[#This Row],[Input 3]],Table_PI[[#This Row],[Input 4]],'Customer Information'!$AR$12,4,ROW()),\"No Rebate\"),\"No Rebate\"),0)","v":0},{"$f":"IF(Table_PI[[#This Row],[Hide:\nFormula Name]]<>\"\",IFERROR(IF(MeasureCalc(Table_PI[[#This Row],[Hide:\nFormula Name]],Table_PI[[#This Row],[Quantity]],Table_PI[[#This Row],[List 1]],Table_PI[[#This Row],[List 2]],Table_PI[[#This Row],[List 3]],Table_PI[[#This Row],[Size]],Table_PI[[#This Row],[Input 1]],Table_PI[[#This Row],[Input 2]],Table_PI[[#This Row],[Input 3]],Table_PI[[#This Row],[Input 4]],'Customer Information'!$AR$12,1,ROW())>0,MeasureCalc(Table_PI[[#This Row],[Hide:\nFormula Name]],Table_PI[[#This Row],[Quantity]],Table_PI[[#This Row],[List 1]],Table_PI[[#This Row],[List 2]],Table_PI[[#This Row],[List 3]],Table_PI[[#This Row],[Size]],Table_PI[[#This Row],[Input 1]],Table_PI[[#This Row],[Input 2]],Table_PI[[#This Row],[Input 3]],Table_PI[[#This Row],[Input 4]],'Customer Information'!$AR$12,5,ROW()),\"No Rebate\"),\"No Rebate\"),0)","v":0},{"$f":"IF(Table_PI[[#This Row],[Hide:\nFormula Name]]<>\"\",IFERROR(IF(MeasureCalc(Table_PI[[#This Row],[Hide:\nFormula Name]],Table_PI[[#This Row],[Quantity]],Table_PI[[#This Row],[List 1]],Table_PI[[#This Row],[List 2]],Table_PI[[#This Row],[List 3]],Table_PI[[#This Row],[Size]],Table_PI[[#This Row],[Input 1]],Table_PI[[#This Row],[Input 2]],Table_PI[[#This Row],[Input 3]],Table_PI[[#This Row],[Input 4]],'Customer Information'!$AR$12,1,ROW())>0,MeasureCalc(Table_PI[[#This Row],[Hide:\nFormula Name]],Table_PI[[#This Row],[Quantity]],Table_PI[[#This Row],[List 1]],Table_PI[[#This Row],[List 2]],Table_PI[[#This Row],[List 3]],Table_PI[[#This Row],[Size]],Table_PI[[#This Row],[Input 1]],Table_PI[[#This Row],[Input 2]],Table_PI[[#This Row],[Input 3]],Table_PI[[#This Row],[Input 4]],'Customer Information'!$AR$12,6,ROW()),\"No Rebate\"),\"No Rebate\"),0)","v":0},{"$f":"IF(Table_PI[[#This Row],[Hide:\nFormula Name]]<>\"\",IFERROR(IF(MeasureCalc(Table_PI[[#This Row],[Hide:\nFormula Name]],Table_PI[[#This Row],[Quantity]],Table_PI[[#This Row],[List 1]],Table_PI[[#This Row],[List 2]],Table_PI[[#This Row],[List 3]],Table_PI[[#This Row],[Size]],Table_PI[[#This Row],[Input 1]],Table_PI[[#This Row],[Input 2]],Table_PI[[#This Row],[Input 3]],Table_PI[[#This Row],[Input 4]],'Customer Information'!$AR$12,1,ROW())>0,MeasureCalc(Table_PI[[#This Row],[Hide:\nFormula Name]],Table_PI[[#This Row],[Quantity]],Table_PI[[#This Row],[List 1]],Table_PI[[#This Row],[List 2]],Table_PI[[#This Row],[List 3]],Table_PI[[#This Row],[Size]],Table_PI[[#This Row],[Input 1]],Table_PI[[#This Row],[Input 2]],Table_PI[[#This Row],[Input 3]],Table_PI[[#This Row],[Input 4]],'Customer Information'!$AR$12,7,ROW()),\"No Rebate\"),\"No Rebate\"),0)","v":0},{"$f":"IF(Table_PI[[#This Row],[Hide:\nFormula Name]]<>\"\",IFERROR(IF(MeasureCalc(Table_PI[[#This Row],[Hide:\nFormula Name]],Table_PI[[#This Row],[Quantity]],Table_PI[[#This Row],[List 1]],Table_PI[[#This Row],[List 2]],Table_PI[[#This Row],[List 3]],Table_PI[[#This Row],[Size]],Table_PI[[#This Row],[Input 1]],Table_PI[[#This Row],[Input 2]],Table_PI[[#This Row],[Input 3]],Table_PI[[#This Row],[Input 4]],'Customer Information'!$AR$12,1,ROW())>0,MeasureCalc(Table_PI[[#This Row],[Hide:\nFormula Name]],Table_PI[[#This Row],[Quantity]],Table_PI[[#This Row],[List 1]],Table_PI[[#This Row],[List 2]],Table_PI[[#This Row],[List 3]],Table_PI[[#This Row],[Size]],Table_PI[[#This Row],[Input 1]],Table_PI[[#This Row],[Input 2]],Table_PI[[#This Row],[Input 3]],Table_PI[[#This Row],[Input 4]],'Customer Information'!$AR$12,8,ROW()),\"No Rebate\"),\"No Rebate\"),0)","v":0},{"$f":"IF(Table_PI[[#This Row],[Hide:\nFormula Name]]<>\"\",IF(AND(Table_PI[[#This Row],[Hide:\nFormula Name]]<>\"\",OR(Table_PI[[#This Row],[Rebate]]>0,Table_PI[[#This Row],[Rebate]]=\"No Rebate\")),TRUE,\"MI: Line Item \" & $A373),\"\")","v":""}]
[{"$f":"IF(Table_PI[[#This Row],[Hide:\nFormula Name]]<>\"\",MAX($A$2:A373)+1,\"\")","v":""},null,null,null,null,null,null,null,null,null,null,null,null,null,null,{"$f":"IFERROR(VLOOKUP(Table_PI[[#This Row],[Measure]],'Equipment Lookups'!$C$3:$D$23,2,FALSE),\"\")","v":""},{"$f":"IF(Table_PI[[#This Row],[Hide:\nFormula Name]]<>\"\",IFERROR(IF(MeasureCalc(Table_PI[[#This Row],[Hide:\nFormula Name]],Table_PI[[#This Row],[Quantity]],Table_PI[[#This Row],[List 1]],Table_PI[[#This Row],[List 2]],Table_PI[[#This Row],[List 3]],Table_PI[[#This Row],[Size]],Table_PI[[#This Row],[Input 1]],Table_PI[[#This Row],[Input 2]],Table_PI[[#This Row],[Input 3]],Table_PI[[#This Row],[Input 4]],'Customer Information'!$AR$12,1,ROW())>0,MeasureCalc(Table_PI[[#This Row],[Hide:\nFormula Name]],Table_PI[[#This Row],[Quantity]],Table_PI[[#This Row],[List 1]],Table_PI[[#This Row],[List 2]],Table_PI[[#This Row],[List 3]],Table_PI[[#This Row],[Size]],Table_PI[[#This Row],[Input 1]],Table_PI[[#This Row],[Input 2]],Table_PI[[#This Row],[Input 3]],Table_PI[[#This Row],[Input 4]],'Customer Information'!$AR$12,1,ROW()),\"No Rebate\"),\"No Rebate\"),0)","v":0},{"$f":"IF(Table_PI[[#This Row],[Hide:\nFormula Name]]<>\"\",IFERROR(IF(MeasureCalc(Table_PI[[#This Row],[Hide:\nFormula Name]],Table_PI[[#This Row],[Quantity]],Table_PI[[#This Row],[List 1]],Table_PI[[#This Row],[List 2]],Table_PI[[#This Row],[List 3]],Table_PI[[#This Row],[Size]],Table_PI[[#This Row],[Input 1]],Table_PI[[#This Row],[Input 2]],Table_PI[[#This Row],[Input 3]],Table_PI[[#This Row],[Input 4]],'Customer Information'!$AR$12,1,ROW())>0,MeasureCalc(Table_PI[[#This Row],[Hide:\nFormula Name]],Table_PI[[#This Row],[Quantity]],Table_PI[[#This Row],[List 1]],Table_PI[[#This Row],[List 2]],Table_PI[[#This Row],[List 3]],Table_PI[[#This Row],[Size]],Table_PI[[#This Row],[Input 1]],Table_PI[[#This Row],[Input 2]],Table_PI[[#This Row],[Input 3]],Table_PI[[#This Row],[Input 4]],'Customer Information'!$AR$12,2,ROW()),\"No Rebate\"),\"No Rebate\"),0)","v":0},{"$f":"IF(Table_PI[[#This Row],[Hide:\nFormula Name]]<>\"\",IFERROR(IF(MeasureCalc(Table_PI[[#This Row],[Hide:\nFormula Name]],Table_PI[[#This Row],[Quantity]],Table_PI[[#This Row],[List 1]],Table_PI[[#This Row],[List 2]],Table_PI[[#This Row],[List 3]],Table_PI[[#This Row],[Size]],Table_PI[[#This Row],[Input 1]],Table_PI[[#This Row],[Input 2]],Table_PI[[#This Row],[Input 3]],Table_PI[[#This Row],[Input 4]],'Customer Information'!$AR$12,1,ROW())>0,MeasureCalc(Table_PI[[#This Row],[Hide:\nFormula Name]],Table_PI[[#This Row],[Quantity]],Table_PI[[#This Row],[List 1]],Table_PI[[#This Row],[List 2]],Table_PI[[#This Row],[List 3]],Table_PI[[#This Row],[Size]],Table_PI[[#This Row],[Input 1]],Table_PI[[#This Row],[Input 2]],Table_PI[[#This Row],[Input 3]],Table_PI[[#This Row],[Input 4]],'Customer Information'!$AR$12,3,ROW()),\"No Rebate\"),\"No Rebate\"),0)","v":0},{"$f":"IF(Table_PI[[#This Row],[Hide:\nFormula Name]]<>\"\",IFERROR(IF(MeasureCalc(Table_PI[[#This Row],[Hide:\nFormula Name]],Table_PI[[#This Row],[Quantity]],Table_PI[[#This Row],[List 1]],Table_PI[[#This Row],[List 2]],Table_PI[[#This Row],[List 3]],Table_PI[[#This Row],[Size]],Table_PI[[#This Row],[Input 1]],Table_PI[[#This Row],[Input 2]],Table_PI[[#This Row],[Input 3]],Table_PI[[#This Row],[Input 4]],'Customer Information'!$AR$12,1,ROW())>0,MeasureCalc(Table_PI[[#This Row],[Hide:\nFormula Name]],Table_PI[[#This Row],[Quantity]],Table_PI[[#This Row],[List 1]],Table_PI[[#This Row],[List 2]],Table_PI[[#This Row],[List 3]],Table_PI[[#This Row],[Size]],Table_PI[[#This Row],[Input 1]],Table_PI[[#This Row],[Input 2]],Table_PI[[#This Row],[Input 3]],Table_PI[[#This Row],[Input 4]],'Customer Information'!$AR$12,4,ROW()),\"No Rebate\"),\"No Rebate\"),0)","v":0},{"$f":"IF(Table_PI[[#This Row],[Hide:\nFormula Name]]<>\"\",IFERROR(IF(MeasureCalc(Table_PI[[#This Row],[Hide:\nFormula Name]],Table_PI[[#This Row],[Quantity]],Table_PI[[#This Row],[List 1]],Table_PI[[#This Row],[List 2]],Table_PI[[#This Row],[List 3]],Table_PI[[#This Row],[Size]],Table_PI[[#This Row],[Input 1]],Table_PI[[#This Row],[Input 2]],Table_PI[[#This Row],[Input 3]],Table_PI[[#This Row],[Input 4]],'Customer Information'!$AR$12,1,ROW())>0,MeasureCalc(Table_PI[[#This Row],[Hide:\nFormula Name]],Table_PI[[#This Row],[Quantity]],Table_PI[[#This Row],[List 1]],Table_PI[[#This Row],[List 2]],Table_PI[[#This Row],[List 3]],Table_PI[[#This Row],[Size]],Table_PI[[#This Row],[Input 1]],Table_PI[[#This Row],[Input 2]],Table_PI[[#This Row],[Input 3]],Table_PI[[#This Row],[Input 4]],'Customer Information'!$AR$12,5,ROW()),\"No Rebate\"),\"No Rebate\"),0)","v":0},{"$f":"IF(Table_PI[[#This Row],[Hide:\nFormula Name]]<>\"\",IFERROR(IF(MeasureCalc(Table_PI[[#This Row],[Hide:\nFormula Name]],Table_PI[[#This Row],[Quantity]],Table_PI[[#This Row],[List 1]],Table_PI[[#This Row],[List 2]],Table_PI[[#This Row],[List 3]],Table_PI[[#This Row],[Size]],Table_PI[[#This Row],[Input 1]],Table_PI[[#This Row],[Input 2]],Table_PI[[#This Row],[Input 3]],Table_PI[[#This Row],[Input 4]],'Customer Information'!$AR$12,1,ROW())>0,MeasureCalc(Table_PI[[#This Row],[Hide:\nFormula Name]],Table_PI[[#This Row],[Quantity]],Table_PI[[#This Row],[List 1]],Table_PI[[#This Row],[List 2]],Table_PI[[#This Row],[List 3]],Table_PI[[#This Row],[Size]],Table_PI[[#This Row],[Input 1]],Table_PI[[#This Row],[Input 2]],Table_PI[[#This Row],[Input 3]],Table_PI[[#This Row],[Input 4]],'Customer Information'!$AR$12,6,ROW()),\"No Rebate\"),\"No Rebate\"),0)","v":0},{"$f":"IF(Table_PI[[#This Row],[Hide:\nFormula Name]]<>\"\",IFERROR(IF(MeasureCalc(Table_PI[[#This Row],[Hide:\nFormula Name]],Table_PI[[#This Row],[Quantity]],Table_PI[[#This Row],[List 1]],Table_PI[[#This Row],[List 2]],Table_PI[[#This Row],[List 3]],Table_PI[[#This Row],[Size]],Table_PI[[#This Row],[Input 1]],Table_PI[[#This Row],[Input 2]],Table_PI[[#This Row],[Input 3]],Table_PI[[#This Row],[Input 4]],'Customer Information'!$AR$12,1,ROW())>0,MeasureCalc(Table_PI[[#This Row],[Hide:\nFormula Name]],Table_PI[[#This Row],[Quantity]],Table_PI[[#This Row],[List 1]],Table_PI[[#This Row],[List 2]],Table_PI[[#This Row],[List 3]],Table_PI[[#This Row],[Size]],Table_PI[[#This Row],[Input 1]],Table_PI[[#This Row],[Input 2]],Table_PI[[#This Row],[Input 3]],Table_PI[[#This Row],[Input 4]],'Customer Information'!$AR$12,7,ROW()),\"No Rebate\"),\"No Rebate\"),0)","v":0},{"$f":"IF(Table_PI[[#This Row],[Hide:\nFormula Name]]<>\"\",IFERROR(IF(MeasureCalc(Table_PI[[#This Row],[Hide:\nFormula Name]],Table_PI[[#This Row],[Quantity]],Table_PI[[#This Row],[List 1]],Table_PI[[#This Row],[List 2]],Table_PI[[#This Row],[List 3]],Table_PI[[#This Row],[Size]],Table_PI[[#This Row],[Input 1]],Table_PI[[#This Row],[Input 2]],Table_PI[[#This Row],[Input 3]],Table_PI[[#This Row],[Input 4]],'Customer Information'!$AR$12,1,ROW())>0,MeasureCalc(Table_PI[[#This Row],[Hide:\nFormula Name]],Table_PI[[#This Row],[Quantity]],Table_PI[[#This Row],[List 1]],Table_PI[[#This Row],[List 2]],Table_PI[[#This Row],[List 3]],Table_PI[[#This Row],[Size]],Table_PI[[#This Row],[Input 1]],Table_PI[[#This Row],[Input 2]],Table_PI[[#This Row],[Input 3]],Table_PI[[#This Row],[Input 4]],'Customer Information'!$AR$12,8,ROW()),\"No Rebate\"),\"No Rebate\"),0)","v":0},{"$f":"IF(Table_PI[[#This Row],[Hide:\nFormula Name]]<>\"\",IF(AND(Table_PI[[#This Row],[Hide:\nFormula Name]]<>\"\",OR(Table_PI[[#This Row],[Rebate]]>0,Table_PI[[#This Row],[Rebate]]=\"No Rebate\")),TRUE,\"MI: Line Item \" & $A374),\"\")","v":""}]
[{"$f":"IF(Table_PI[[#This Row],[Hide:\nFormula Name]]<>\"\",MAX($A$2:A374)+1,\"\")","v":""},null,null,null,null,null,null,null,null,null,null,null,null,null,null,{"$f":"IFERROR(VLOOKUP(Table_PI[[#This Row],[Measure]],'Equipment Lookups'!$C$3:$D$23,2,FALSE),\"\")","v":""},{"$f":"IF(Table_PI[[#This Row],[Hide:\nFormula Name]]<>\"\",IFERROR(IF(MeasureCalc(Table_PI[[#This Row],[Hide:\nFormula Name]],Table_PI[[#This Row],[Quantity]],Table_PI[[#This Row],[List 1]],Table_PI[[#This Row],[List 2]],Table_PI[[#This Row],[List 3]],Table_PI[[#This Row],[Size]],Table_PI[[#This Row],[Input 1]],Table_PI[[#This Row],[Input 2]],Table_PI[[#This Row],[Input 3]],Table_PI[[#This Row],[Input 4]],'Customer Information'!$AR$12,1,ROW())>0,MeasureCalc(Table_PI[[#This Row],[Hide:\nFormula Name]],Table_PI[[#This Row],[Quantity]],Table_PI[[#This Row],[List 1]],Table_PI[[#This Row],[List 2]],Table_PI[[#This Row],[List 3]],Table_PI[[#This Row],[Size]],Table_PI[[#This Row],[Input 1]],Table_PI[[#This Row],[Input 2]],Table_PI[[#This Row],[Input 3]],Table_PI[[#This Row],[Input 4]],'Customer Information'!$AR$12,1,ROW()),\"No Rebate\"),\"No Rebate\"),0)","v":0},{"$f":"IF(Table_PI[[#This Row],[Hide:\nFormula Name]]<>\"\",IFERROR(IF(MeasureCalc(Table_PI[[#This Row],[Hide:\nFormula Name]],Table_PI[[#This Row],[Quantity]],Table_PI[[#This Row],[List 1]],Table_PI[[#This Row],[List 2]],Table_PI[[#This Row],[List 3]],Table_PI[[#This Row],[Size]],Table_PI[[#This Row],[Input 1]],Table_PI[[#This Row],[Input 2]],Table_PI[[#This Row],[Input 3]],Table_PI[[#This Row],[Input 4]],'Customer Information'!$AR$12,1,ROW())>0,MeasureCalc(Table_PI[[#This Row],[Hide:\nFormula Name]],Table_PI[[#This Row],[Quantity]],Table_PI[[#This Row],[List 1]],Table_PI[[#This Row],[List 2]],Table_PI[[#This Row],[List 3]],Table_PI[[#This Row],[Size]],Table_PI[[#This Row],[Input 1]],Table_PI[[#This Row],[Input 2]],Table_PI[[#This Row],[Input 3]],Table_PI[[#This Row],[Input 4]],'Customer Information'!$AR$12,2,ROW()),\"No Rebate\"),\"No Rebate\"),0)","v":0},{"$f":"IF(Table_PI[[#This Row],[Hide:\nFormula Name]]<>\"\",IFERROR(IF(MeasureCalc(Table_PI[[#This Row],[Hide:\nFormula Name]],Table_PI[[#This Row],[Quantity]],Table_PI[[#This Row],[List 1]],Table_PI[[#This Row],[List 2]],Table_PI[[#This Row],[List 3]],Table_PI[[#This Row],[Size]],Table_PI[[#This Row],[Input 1]],Table_PI[[#This Row],[Input 2]],Table_PI[[#This Row],[Input 3]],Table_PI[[#This Row],[Input 4]],'Customer Information'!$AR$12,1,ROW())>0,MeasureCalc(Table_PI[[#This Row],[Hide:\nFormula Name]],Table_PI[[#This Row],[Quantity]],Table_PI[[#This Row],[List 1]],Table_PI[[#This Row],[List 2]],Table_PI[[#This Row],[List 3]],Table_PI[[#This Row],[Size]],Table_PI[[#This Row],[Input 1]],Table_PI[[#This Row],[Input 2]],Table_PI[[#This Row],[Input 3]],Table_PI[[#This Row],[Input 4]],'Customer Information'!$AR$12,3,ROW()),\"No Rebate\"),\"No Rebate\"),0)","v":0},{"$f":"IF(Table_PI[[#This Row],[Hide:\nFormula Name]]<>\"\",IFERROR(IF(MeasureCalc(Table_PI[[#This Row],[Hide:\nFormula Name]],Table_PI[[#This Row],[Quantity]],Table_PI[[#This Row],[List 1]],Table_PI[[#This Row],[List 2]],Table_PI[[#This Row],[List 3]],Table_PI[[#This Row],[Size]],Table_PI[[#This Row],[Input 1]],Table_PI[[#This Row],[Input 2]],Table_PI[[#This Row],[Input 3]],Table_PI[[#This Row],[Input 4]],'Customer Information'!$AR$12,1,ROW())>0,MeasureCalc(Table_PI[[#This Row],[Hide:\nFormula Name]],Table_PI[[#This Row],[Quantity]],Table_PI[[#This Row],[List 1]],Table_PI[[#This Row],[List 2]],Table_PI[[#This Row],[List 3]],Table_PI[[#This Row],[Size]],Table_PI[[#This Row],[Input 1]],Table_PI[[#This Row],[Input 2]],Table_PI[[#This Row],[Input 3]],Table_PI[[#This Row],[Input 4]],'Customer Information'!$AR$12,4,ROW()),\"No Rebate\"),\"No Rebate\"),0)","v":0},{"$f":"IF(Table_PI[[#This Row],[Hide:\nFormula Name]]<>\"\",IFERROR(IF(MeasureCalc(Table_PI[[#This Row],[Hide:\nFormula Name]],Table_PI[[#This Row],[Quantity]],Table_PI[[#This Row],[List 1]],Table_PI[[#This Row],[List 2]],Table_PI[[#This Row],[List 3]],Table_PI[[#This Row],[Size]],Table_PI[[#This Row],[Input 1]],Table_PI[[#This Row],[Input 2]],Table_PI[[#This Row],[Input 3]],Table_PI[[#This Row],[Input 4]],'Customer Information'!$AR$12,1,ROW())>0,MeasureCalc(Table_PI[[#This Row],[Hide:\nFormula Name]],Table_PI[[#This Row],[Quantity]],Table_PI[[#This Row],[List 1]],Table_PI[[#This Row],[List 2]],Table_PI[[#This Row],[List 3]],Table_PI[[#This Row],[Size]],Table_PI[[#This Row],[Input 1]],Table_PI[[#This Row],[Input 2]],Table_PI[[#This Row],[Input 3]],Table_PI[[#This Row],[Input 4]],'Customer Information'!$AR$12,5,ROW()),\"No Rebate\"),\"No Rebate\"),0)","v":0},{"$f":"IF(Table_PI[[#This Row],[Hide:\nFormula Name]]<>\"\",IFERROR(IF(MeasureCalc(Table_PI[[#This Row],[Hide:\nFormula Name]],Table_PI[[#This Row],[Quantity]],Table_PI[[#This Row],[List 1]],Table_PI[[#This Row],[List 2]],Table_PI[[#This Row],[List 3]],Table_PI[[#This Row],[Size]],Table_PI[[#This Row],[Input 1]],Table_PI[[#This Row],[Input 2]],Table_PI[[#This Row],[Input 3]],Table_PI[[#This Row],[Input 4]],'Customer Information'!$AR$12,1,ROW())>0,MeasureCalc(Table_PI[[#This Row],[Hide:\nFormula Name]],Table_PI[[#This Row],[Quantity]],Table_PI[[#This Row],[List 1]],Table_PI[[#This Row],[List 2]],Table_PI[[#This Row],[List 3]],Table_PI[[#This Row],[Size]],Table_PI[[#This Row],[Input 1]],Table_PI[[#This Row],[Input 2]],Table_PI[[#This Row],[Input 3]],Table_PI[[#This Row],[Input 4]],'Customer Information'!$AR$12,6,ROW()),\"No Rebate\"),\"No Rebate\"),0)","v":0},{"$f":"IF(Table_PI[[#This Row],[Hide:\nFormula Name]]<>\"\",IFERROR(IF(MeasureCalc(Table_PI[[#This Row],[Hide:\nFormula Name]],Table_PI[[#This Row],[Quantity]],Table_PI[[#This Row],[List 1]],Table_PI[[#This Row],[List 2]],Table_PI[[#This Row],[List 3]],Table_PI[[#This Row],[Size]],Table_PI[[#This Row],[Input 1]],Table_PI[[#This Row],[Input 2]],Table_PI[[#This Row],[Input 3]],Table_PI[[#This Row],[Input 4]],'Customer Information'!$AR$12,1,ROW())>0,MeasureCalc(Table_PI[[#This Row],[Hide:\nFormula Name]],Table_PI[[#This Row],[Quantity]],Table_PI[[#This Row],[List 1]],Table_PI[[#This Row],[List 2]],Table_PI[[#This Row],[List 3]],Table_PI[[#This Row],[Size]],Table_PI[[#This Row],[Input 1]],Table_PI[[#This Row],[Input 2]],Table_PI[[#This Row],[Input 3]],Table_PI[[#This Row],[Input 4]],'Customer Information'!$AR$12,7,ROW()),\"No Rebate\"),\"No Rebate\"),0)","v":0},{"$f":"IF(Table_PI[[#This Row],[Hide:\nFormula Name]]<>\"\",IFERROR(IF(MeasureCalc(Table_PI[[#This Row],[Hide:\nFormula Name]],Table_PI[[#This Row],[Quantity]],Table_PI[[#This Row],[List 1]],Table_PI[[#This Row],[List 2]],Table_PI[[#This Row],[List 3]],Table_PI[[#This Row],[Size]],Table_PI[[#This Row],[Input 1]],Table_PI[[#This Row],[Input 2]],Table_PI[[#This Row],[Input 3]],Table_PI[[#This Row],[Input 4]],'Customer Information'!$AR$12,1,ROW())>0,MeasureCalc(Table_PI[[#This Row],[Hide:\nFormula Name]],Table_PI[[#This Row],[Quantity]],Table_PI[[#This Row],[List 1]],Table_PI[[#This Row],[List 2]],Table_PI[[#This Row],[List 3]],Table_PI[[#This Row],[Size]],Table_PI[[#This Row],[Input 1]],Table_PI[[#This Row],[Input 2]],Table_PI[[#This Row],[Input 3]],Table_PI[[#This Row],[Input 4]],'Customer Information'!$AR$12,8,ROW()),\"No Rebate\"),\"No Rebate\"),0)","v":0},{"$f":"IF(Table_PI[[#This Row],[Hide:\nFormula Name]]<>\"\",IF(AND(Table_PI[[#This Row],[Hide:\nFormula Name]]<>\"\",OR(Table_PI[[#This Row],[Rebate]]>0,Table_PI[[#This Row],[Rebate]]=\"No Rebate\")),TRUE,\"MI: Line Item \" & $A375),\"\")","v":""}]
[{"$f":"IF(Table_PI[[#This Row],[Hide:\nFormula Name]]<>\"\",MAX($A$2:A375)+1,\"\")","v":""},null,null,null,null,null,null,null,null,null,null,null,null,null,null,{"$f":"IFERROR(VLOOKUP(Table_PI[[#This Row],[Measure]],'Equipment Lookups'!$C$3:$D$23,2,FALSE),\"\")","v":""},{"$f":"IF(Table_PI[[#This Row],[Hide:\nFormula Name]]<>\"\",IFERROR(IF(MeasureCalc(Table_PI[[#This Row],[Hide:\nFormula Name]],Table_PI[[#This Row],[Quantity]],Table_PI[[#This Row],[List 1]],Table_PI[[#This Row],[List 2]],Table_PI[[#This Row],[List 3]],Table_PI[[#This Row],[Size]],Table_PI[[#This Row],[Input 1]],Table_PI[[#This Row],[Input 2]],Table_PI[[#This Row],[Input 3]],Table_PI[[#This Row],[Input 4]],'Customer Information'!$AR$12,1,ROW())>0,MeasureCalc(Table_PI[[#This Row],[Hide:\nFormula Name]],Table_PI[[#This Row],[Quantity]],Table_PI[[#This Row],[List 1]],Table_PI[[#This Row],[List 2]],Table_PI[[#This Row],[List 3]],Table_PI[[#This Row],[Size]],Table_PI[[#This Row],[Input 1]],Table_PI[[#This Row],[Input 2]],Table_PI[[#This Row],[Input 3]],Table_PI[[#This Row],[Input 4]],'Customer Information'!$AR$12,1,ROW()),\"No Rebate\"),\"No Rebate\"),0)","v":0},{"$f":"IF(Table_PI[[#This Row],[Hide:\nFormula Name]]<>\"\",IFERROR(IF(MeasureCalc(Table_PI[[#This Row],[Hide:\nFormula Name]],Table_PI[[#This Row],[Quantity]],Table_PI[[#This Row],[List 1]],Table_PI[[#This Row],[List 2]],Table_PI[[#This Row],[List 3]],Table_PI[[#This Row],[Size]],Table_PI[[#This Row],[Input 1]],Table_PI[[#This Row],[Input 2]],Table_PI[[#This Row],[Input 3]],Table_PI[[#This Row],[Input 4]],'Customer Information'!$AR$12,1,ROW())>0,MeasureCalc(Table_PI[[#This Row],[Hide:\nFormula Name]],Table_PI[[#This Row],[Quantity]],Table_PI[[#This Row],[List 1]],Table_PI[[#This Row],[List 2]],Table_PI[[#This Row],[List 3]],Table_PI[[#This Row],[Size]],Table_PI[[#This Row],[Input 1]],Table_PI[[#This Row],[Input 2]],Table_PI[[#This Row],[Input 3]],Table_PI[[#This Row],[Input 4]],'Customer Information'!$AR$12,2,ROW()),\"No Rebate\"),\"No Rebate\"),0)","v":0},{"$f":"IF(Table_PI[[#This Row],[Hide:\nFormula Name]]<>\"\",IFERROR(IF(MeasureCalc(Table_PI[[#This Row],[Hide:\nFormula Name]],Table_PI[[#This Row],[Quantity]],Table_PI[[#This Row],[List 1]],Table_PI[[#This Row],[List 2]],Table_PI[[#This Row],[List 3]],Table_PI[[#This Row],[Size]],Table_PI[[#This Row],[Input 1]],Table_PI[[#This Row],[Input 2]],Table_PI[[#This Row],[Input 3]],Table_PI[[#This Row],[Input 4]],'Customer Information'!$AR$12,1,ROW())>0,MeasureCalc(Table_PI[[#This Row],[Hide:\nFormula Name]],Table_PI[[#This Row],[Quantity]],Table_PI[[#This Row],[List 1]],Table_PI[[#This Row],[List 2]],Table_PI[[#This Row],[List 3]],Table_PI[[#This Row],[Size]],Table_PI[[#This Row],[Input 1]],Table_PI[[#This Row],[Input 2]],Table_PI[[#This Row],[Input 3]],Table_PI[[#This Row],[Input 4]],'Customer Information'!$AR$12,3,ROW()),\"No Rebate\"),\"No Rebate\"),0)","v":0},{"$f":"IF(Table_PI[[#This Row],[Hide:\nFormula Name]]<>\"\",IFERROR(IF(MeasureCalc(Table_PI[[#This Row],[Hide:\nFormula Name]],Table_PI[[#This Row],[Quantity]],Table_PI[[#This Row],[List 1]],Table_PI[[#This Row],[List 2]],Table_PI[[#This Row],[List 3]],Table_PI[[#This Row],[Size]],Table_PI[[#This Row],[Input 1]],Table_PI[[#This Row],[Input 2]],Table_PI[[#This Row],[Input 3]],Table_PI[[#This Row],[Input 4]],'Customer Information'!$AR$12,1,ROW())>0,MeasureCalc(Table_PI[[#This Row],[Hide:\nFormula Name]],Table_PI[[#This Row],[Quantity]],Table_PI[[#This Row],[List 1]],Table_PI[[#This Row],[List 2]],Table_PI[[#This Row],[List 3]],Table_PI[[#This Row],[Size]],Table_PI[[#This Row],[Input 1]],Table_PI[[#This Row],[Input 2]],Table_PI[[#This Row],[Input 3]],Table_PI[[#This Row],[Input 4]],'Customer Information'!$AR$12,4,ROW()),\"No Rebate\"),\"No Rebate\"),0)","v":0},{"$f":"IF(Table_PI[[#This Row],[Hide:\nFormula Name]]<>\"\",IFERROR(IF(MeasureCalc(Table_PI[[#This Row],[Hide:\nFormula Name]],Table_PI[[#This Row],[Quantity]],Table_PI[[#This Row],[List 1]],Table_PI[[#This Row],[List 2]],Table_PI[[#This Row],[List 3]],Table_PI[[#This Row],[Size]],Table_PI[[#This Row],[Input 1]],Table_PI[[#This Row],[Input 2]],Table_PI[[#This Row],[Input 3]],Table_PI[[#This Row],[Input 4]],'Customer Information'!$AR$12,1,ROW())>0,MeasureCalc(Table_PI[[#This Row],[Hide:\nFormula Name]],Table_PI[[#This Row],[Quantity]],Table_PI[[#This Row],[List 1]],Table_PI[[#This Row],[List 2]],Table_PI[[#This Row],[List 3]],Table_PI[[#This Row],[Size]],Table_PI[[#This Row],[Input 1]],Table_PI[[#This Row],[Input 2]],Table_PI[[#This Row],[Input 3]],Table_PI[[#This Row],[Input 4]],'Customer Information'!$AR$12,5,ROW()),\"No Rebate\"),\"No Rebate\"),0)","v":0},{"$f":"IF(Table_PI[[#This Row],[Hide:\nFormula Name]]<>\"\",IFERROR(IF(MeasureCalc(Table_PI[[#This Row],[Hide:\nFormula Name]],Table_PI[[#This Row],[Quantity]],Table_PI[[#This Row],[List 1]],Table_PI[[#This Row],[List 2]],Table_PI[[#This Row],[List 3]],Table_PI[[#This Row],[Size]],Table_PI[[#This Row],[Input 1]],Table_PI[[#This Row],[Input 2]],Table_PI[[#This Row],[Input 3]],Table_PI[[#This Row],[Input 4]],'Customer Information'!$AR$12,1,ROW())>0,MeasureCalc(Table_PI[[#This Row],[Hide:\nFormula Name]],Table_PI[[#This Row],[Quantity]],Table_PI[[#This Row],[List 1]],Table_PI[[#This Row],[List 2]],Table_PI[[#This Row],[List 3]],Table_PI[[#This Row],[Size]],Table_PI[[#This Row],[Input 1]],Table_PI[[#This Row],[Input 2]],Table_PI[[#This Row],[Input 3]],Table_PI[[#This Row],[Input 4]],'Customer Information'!$AR$12,6,ROW()),\"No Rebate\"),\"No Rebate\"),0)","v":0},{"$f":"IF(Table_PI[[#This Row],[Hide:\nFormula Name]]<>\"\",IFERROR(IF(MeasureCalc(Table_PI[[#This Row],[Hide:\nFormula Name]],Table_PI[[#This Row],[Quantity]],Table_PI[[#This Row],[List 1]],Table_PI[[#This Row],[List 2]],Table_PI[[#This Row],[List 3]],Table_PI[[#This Row],[Size]],Table_PI[[#This Row],[Input 1]],Table_PI[[#This Row],[Input 2]],Table_PI[[#This Row],[Input 3]],Table_PI[[#This Row],[Input 4]],'Customer Information'!$AR$12,1,ROW())>0,MeasureCalc(Table_PI[[#This Row],[Hide:\nFormula Name]],Table_PI[[#This Row],[Quantity]],Table_PI[[#This Row],[List 1]],Table_PI[[#This Row],[List 2]],Table_PI[[#This Row],[List 3]],Table_PI[[#This Row],[Size]],Table_PI[[#This Row],[Input 1]],Table_PI[[#This Row],[Input 2]],Table_PI[[#This Row],[Input 3]],Table_PI[[#This Row],[Input 4]],'Customer Information'!$AR$12,7,ROW()),\"No Rebate\"),\"No Rebate\"),0)","v":0},{"$f":"IF(Table_PI[[#This Row],[Hide:\nFormula Name]]<>\"\",IFERROR(IF(MeasureCalc(Table_PI[[#This Row],[Hide:\nFormula Name]],Table_PI[[#This Row],[Quantity]],Table_PI[[#This Row],[List 1]],Table_PI[[#This Row],[List 2]],Table_PI[[#This Row],[List 3]],Table_PI[[#This Row],[Size]],Table_PI[[#This Row],[Input 1]],Table_PI[[#This Row],[Input 2]],Table_PI[[#This Row],[Input 3]],Table_PI[[#This Row],[Input 4]],'Customer Information'!$AR$12,1,ROW())>0,MeasureCalc(Table_PI[[#This Row],[Hide:\nFormula Name]],Table_PI[[#This Row],[Quantity]],Table_PI[[#This Row],[List 1]],Table_PI[[#This Row],[List 2]],Table_PI[[#This Row],[List 3]],Table_PI[[#This Row],[Size]],Table_PI[[#This Row],[Input 1]],Table_PI[[#This Row],[Input 2]],Table_PI[[#This Row],[Input 3]],Table_PI[[#This Row],[Input 4]],'Customer Information'!$AR$12,8,ROW()),\"No Rebate\"),\"No Rebate\"),0)","v":0},{"$f":"IF(Table_PI[[#This Row],[Hide:\nFormula Name]]<>\"\",IF(AND(Table_PI[[#This Row],[Hide:\nFormula Name]]<>\"\",OR(Table_PI[[#This Row],[Rebate]]>0,Table_PI[[#This Row],[Rebate]]=\"No Rebate\")),TRUE,\"MI: Line Item \" & $A376),\"\")","v":""}]
[{"$f":"IF(Table_PI[[#This Row],[Hide:\nFormula Name]]<>\"\",MAX($A$2:A376)+1,\"\")","v":""},null,null,null,null,null,null,null,null,null,null,null,null,null,null,{"$f":"IFERROR(VLOOKUP(Table_PI[[#This Row],[Measure]],'Equipment Lookups'!$C$3:$D$23,2,FALSE),\"\")","v":""},{"$f":"IF(Table_PI[[#This Row],[Hide:\nFormula Name]]<>\"\",IFERROR(IF(MeasureCalc(Table_PI[[#This Row],[Hide:\nFormula Name]],Table_PI[[#This Row],[Quantity]],Table_PI[[#This Row],[List 1]],Table_PI[[#This Row],[List 2]],Table_PI[[#This Row],[List 3]],Table_PI[[#This Row],[Size]],Table_PI[[#This Row],[Input 1]],Table_PI[[#This Row],[Input 2]],Table_PI[[#This Row],[Input 3]],Table_PI[[#This Row],[Input 4]],'Customer Information'!$AR$12,1,ROW())>0,MeasureCalc(Table_PI[[#This Row],[Hide:\nFormula Name]],Table_PI[[#This Row],[Quantity]],Table_PI[[#This Row],[List 1]],Table_PI[[#This Row],[List 2]],Table_PI[[#This Row],[List 3]],Table_PI[[#This Row],[Size]],Table_PI[[#This Row],[Input 1]],Table_PI[[#This Row],[Input 2]],Table_PI[[#This Row],[Input 3]],Table_PI[[#This Row],[Input 4]],'Customer Information'!$AR$12,1,ROW()),\"No Rebate\"),\"No Rebate\"),0)","v":0},{"$f":"IF(Table_PI[[#This Row],[Hide:\nFormula Name]]<>\"\",IFERROR(IF(MeasureCalc(Table_PI[[#This Row],[Hide:\nFormula Name]],Table_PI[[#This Row],[Quantity]],Table_PI[[#This Row],[List 1]],Table_PI[[#This Row],[List 2]],Table_PI[[#This Row],[List 3]],Table_PI[[#This Row],[Size]],Table_PI[[#This Row],[Input 1]],Table_PI[[#This Row],[Input 2]],Table_PI[[#This Row],[Input 3]],Table_PI[[#This Row],[Input 4]],'Customer Information'!$AR$12,1,ROW())>0,MeasureCalc(Table_PI[[#This Row],[Hide:\nFormula Name]],Table_PI[[#This Row],[Quantity]],Table_PI[[#This Row],[List 1]],Table_PI[[#This Row],[List 2]],Table_PI[[#This Row],[List 3]],Table_PI[[#This Row],[Size]],Table_PI[[#This Row],[Input 1]],Table_PI[[#This Row],[Input 2]],Table_PI[[#This Row],[Input 3]],Table_PI[[#This Row],[Input 4]],'Customer Information'!$AR$12,2,ROW()),\"No Rebate\"),\"No Rebate\"),0)","v":0},{"$f":"IF(Table_PI[[#This Row],[Hide:\nFormula Name]]<>\"\",IFERROR(IF(MeasureCalc(Table_PI[[#This Row],[Hide:\nFormula Name]],Table_PI[[#This Row],[Quantity]],Table_PI[[#This Row],[List 1]],Table_PI[[#This Row],[List 2]],Table_PI[[#This Row],[List 3]],Table_PI[[#This Row],[Size]],Table_PI[[#This Row],[Input 1]],Table_PI[[#This Row],[Input 2]],Table_PI[[#This Row],[Input 3]],Table_PI[[#This Row],[Input 4]],'Customer Information'!$AR$12,1,ROW())>0,MeasureCalc(Table_PI[[#This Row],[Hide:\nFormula Name]],Table_PI[[#This Row],[Quantity]],Table_PI[[#This Row],[List 1]],Table_PI[[#This Row],[List 2]],Table_PI[[#This Row],[List 3]],Table_PI[[#This Row],[Size]],Table_PI[[#This Row],[Input 1]],Table_PI[[#This Row],[Input 2]],Table_PI[[#This Row],[Input 3]],Table_PI[[#This Row],[Input 4]],'Customer Information'!$AR$12,3,ROW()),\"No Rebate\"),\"No Rebate\"),0)","v":0},{"$f":"IF(Table_PI[[#This Row],[Hide:\nFormula Name]]<>\"\",IFERROR(IF(MeasureCalc(Table_PI[[#This Row],[Hide:\nFormula Name]],Table_PI[[#This Row],[Quantity]],Table_PI[[#This Row],[List 1]],Table_PI[[#This Row],[List 2]],Table_PI[[#This Row],[List 3]],Table_PI[[#This Row],[Size]],Table_PI[[#This Row],[Input 1]],Table_PI[[#This Row],[Input 2]],Table_PI[[#This Row],[Input 3]],Table_PI[[#This Row],[Input 4]],'Customer Information'!$AR$12,1,ROW())>0,MeasureCalc(Table_PI[[#This Row],[Hide:\nFormula Name]],Table_PI[[#This Row],[Quantity]],Table_PI[[#This Row],[List 1]],Table_PI[[#This Row],[List 2]],Table_PI[[#This Row],[List 3]],Table_PI[[#This Row],[Size]],Table_PI[[#This Row],[Input 1]],Table_PI[[#This Row],[Input 2]],Table_PI[[#This Row],[Input 3]],Table_PI[[#This Row],[Input 4]],'Customer Information'!$AR$12,4,ROW()),\"No Rebate\"),\"No Rebate\"),0)","v":0},{"$f":"IF(Table_PI[[#This Row],[Hide:\nFormula Name]]<>\"\",IFERROR(IF(MeasureCalc(Table_PI[[#This Row],[Hide:\nFormula Name]],Table_PI[[#This Row],[Quantity]],Table_PI[[#This Row],[List 1]],Table_PI[[#This Row],[List 2]],Table_PI[[#This Row],[List 3]],Table_PI[[#This Row],[Size]],Table_PI[[#This Row],[Input 1]],Table_PI[[#This Row],[Input 2]],Table_PI[[#This Row],[Input 3]],Table_PI[[#This Row],[Input 4]],'Customer Information'!$AR$12,1,ROW())>0,MeasureCalc(Table_PI[[#This Row],[Hide:\nFormula Name]],Table_PI[[#This Row],[Quantity]],Table_PI[[#This Row],[List 1]],Table_PI[[#This Row],[List 2]],Table_PI[[#This Row],[List 3]],Table_PI[[#This Row],[Size]],Table_PI[[#This Row],[Input 1]],Table_PI[[#This Row],[Input 2]],Table_PI[[#This Row],[Input 3]],Table_PI[[#This Row],[Input 4]],'Customer Information'!$AR$12,5,ROW()),\"No Rebate\"),\"No Rebate\"),0)","v":0},{"$f":"IF(Table_PI[[#This Row],[Hide:\nFormula Name]]<>\"\",IFERROR(IF(MeasureCalc(Table_PI[[#This Row],[Hide:\nFormula Name]],Table_PI[[#This Row],[Quantity]],Table_PI[[#This Row],[List 1]],Table_PI[[#This Row],[List 2]],Table_PI[[#This Row],[List 3]],Table_PI[[#This Row],[Size]],Table_PI[[#This Row],[Input 1]],Table_PI[[#This Row],[Input 2]],Table_PI[[#This Row],[Input 3]],Table_PI[[#This Row],[Input 4]],'Customer Information'!$AR$12,1,ROW())>0,MeasureCalc(Table_PI[[#This Row],[Hide:\nFormula Name]],Table_PI[[#This Row],[Quantity]],Table_PI[[#This Row],[List 1]],Table_PI[[#This Row],[List 2]],Table_PI[[#This Row],[List 3]],Table_PI[[#This Row],[Size]],Table_PI[[#This Row],[Input 1]],Table_PI[[#This Row],[Input 2]],Table_PI[[#This Row],[Input 3]],Table_PI[[#This Row],[Input 4]],'Customer Information'!$AR$12,6,ROW()),\"No Rebate\"),\"No Rebate\"),0)","v":0},{"$f":"IF(Table_PI[[#This Row],[Hide:\nFormula Name]]<>\"\",IFERROR(IF(MeasureCalc(Table_PI[[#This Row],[Hide:\nFormula Name]],Table_PI[[#This Row],[Quantity]],Table_PI[[#This Row],[List 1]],Table_PI[[#This Row],[List 2]],Table_PI[[#This Row],[List 3]],Table_PI[[#This Row],[Size]],Table_PI[[#This Row],[Input 1]],Table_PI[[#This Row],[Input 2]],Table_PI[[#This Row],[Input 3]],Table_PI[[#This Row],[Input 4]],'Customer Information'!$AR$12,1,ROW())>0,MeasureCalc(Table_PI[[#This Row],[Hide:\nFormula Name]],Table_PI[[#This Row],[Quantity]],Table_PI[[#This Row],[List 1]],Table_PI[[#This Row],[List 2]],Table_PI[[#This Row],[List 3]],Table_PI[[#This Row],[Size]],Table_PI[[#This Row],[Input 1]],Table_PI[[#This Row],[Input 2]],Table_PI[[#This Row],[Input 3]],Table_PI[[#This Row],[Input 4]],'Customer Information'!$AR$12,7,ROW()),\"No Rebate\"),\"No Rebate\"),0)","v":0},{"$f":"IF(Table_PI[[#This Row],[Hide:\nFormula Name]]<>\"\",IFERROR(IF(MeasureCalc(Table_PI[[#This Row],[Hide:\nFormula Name]],Table_PI[[#This Row],[Quantity]],Table_PI[[#This Row],[List 1]],Table_PI[[#This Row],[List 2]],Table_PI[[#This Row],[List 3]],Table_PI[[#This Row],[Size]],Table_PI[[#This Row],[Input 1]],Table_PI[[#This Row],[Input 2]],Table_PI[[#This Row],[Input 3]],Table_PI[[#This Row],[Input 4]],'Customer Information'!$AR$12,1,ROW())>0,MeasureCalc(Table_PI[[#This Row],[Hide:\nFormula Name]],Table_PI[[#This Row],[Quantity]],Table_PI[[#This Row],[List 1]],Table_PI[[#This Row],[List 2]],Table_PI[[#This Row],[List 3]],Table_PI[[#This Row],[Size]],Table_PI[[#This Row],[Input 1]],Table_PI[[#This Row],[Input 2]],Table_PI[[#This Row],[Input 3]],Table_PI[[#This Row],[Input 4]],'Customer Information'!$AR$12,8,ROW()),\"No Rebate\"),\"No Rebate\"),0)","v":0},{"$f":"IF(Table_PI[[#This Row],[Hide:\nFormula Name]]<>\"\",IF(AND(Table_PI[[#This Row],[Hide:\nFormula Name]]<>\"\",OR(Table_PI[[#This Row],[Rebate]]>0,Table_PI[[#This Row],[Rebate]]=\"No Rebate\")),TRUE,\"MI: Line Item \" & $A377),\"\")","v":""}]
[{"$f":"IF(Table_PI[[#This Row],[Hide:\nFormula Name]]<>\"\",MAX($A$2:A377)+1,\"\")","v":""},null,null,null,null,null,null,null,null,null,null,null,null,null,null,{"$f":"IFERROR(VLOOKUP(Table_PI[[#This Row],[Measure]],'Equipment Lookups'!$C$3:$D$23,2,FALSE),\"\")","v":""},{"$f":"IF(Table_PI[[#This Row],[Hide:\nFormula Name]]<>\"\",IFERROR(IF(MeasureCalc(Table_PI[[#This Row],[Hide:\nFormula Name]],Table_PI[[#This Row],[Quantity]],Table_PI[[#This Row],[List 1]],Table_PI[[#This Row],[List 2]],Table_PI[[#This Row],[List 3]],Table_PI[[#This Row],[Size]],Table_PI[[#This Row],[Input 1]],Table_PI[[#This Row],[Input 2]],Table_PI[[#This Row],[Input 3]],Table_PI[[#This Row],[Input 4]],'Customer Information'!$AR$12,1,ROW())>0,MeasureCalc(Table_PI[[#This Row],[Hide:\nFormula Name]],Table_PI[[#This Row],[Quantity]],Table_PI[[#This Row],[List 1]],Table_PI[[#This Row],[List 2]],Table_PI[[#This Row],[List 3]],Table_PI[[#This Row],[Size]],Table_PI[[#This Row],[Input 1]],Table_PI[[#This Row],[Input 2]],Table_PI[[#This Row],[Input 3]],Table_PI[[#This Row],[Input 4]],'Customer Information'!$AR$12,1,ROW()),\"No Rebate\"),\"No Rebate\"),0)","v":0},{"$f":"IF(Table_PI[[#This Row],[Hide:\nFormula Name]]<>\"\",IFERROR(IF(MeasureCalc(Table_PI[[#This Row],[Hide:\nFormula Name]],Table_PI[[#This Row],[Quantity]],Table_PI[[#This Row],[List 1]],Table_PI[[#This Row],[List 2]],Table_PI[[#This Row],[List 3]],Table_PI[[#This Row],[Size]],Table_PI[[#This Row],[Input 1]],Table_PI[[#This Row],[Input 2]],Table_PI[[#This Row],[Input 3]],Table_PI[[#This Row],[Input 4]],'Customer Information'!$AR$12,1,ROW())>0,MeasureCalc(Table_PI[[#This Row],[Hide:\nFormula Name]],Table_PI[[#This Row],[Quantity]],Table_PI[[#This Row],[List 1]],Table_PI[[#This Row],[List 2]],Table_PI[[#This Row],[List 3]],Table_PI[[#This Row],[Size]],Table_PI[[#This Row],[Input 1]],Table_PI[[#This Row],[Input 2]],Table_PI[[#This Row],[Input 3]],Table_PI[[#This Row],[Input 4]],'Customer Information'!$AR$12,2,ROW()),\"No Rebate\"),\"No Rebate\"),0)","v":0},{"$f":"IF(Table_PI[[#This Row],[Hide:\nFormula Name]]<>\"\",IFERROR(IF(MeasureCalc(Table_PI[[#This Row],[Hide:\nFormula Name]],Table_PI[[#This Row],[Quantity]],Table_PI[[#This Row],[List 1]],Table_PI[[#This Row],[List 2]],Table_PI[[#This Row],[List 3]],Table_PI[[#This Row],[Size]],Table_PI[[#This Row],[Input 1]],Table_PI[[#This Row],[Input 2]],Table_PI[[#This Row],[Input 3]],Table_PI[[#This Row],[Input 4]],'Customer Information'!$AR$12,1,ROW())>0,MeasureCalc(Table_PI[[#This Row],[Hide:\nFormula Name]],Table_PI[[#This Row],[Quantity]],Table_PI[[#This Row],[List 1]],Table_PI[[#This Row],[List 2]],Table_PI[[#This Row],[List 3]],Table_PI[[#This Row],[Size]],Table_PI[[#This Row],[Input 1]],Table_PI[[#This Row],[Input 2]],Table_PI[[#This Row],[Input 3]],Table_PI[[#This Row],[Input 4]],'Customer Information'!$AR$12,3,ROW()),\"No Rebate\"),\"No Rebate\"),0)","v":0},{"$f":"IF(Table_PI[[#This Row],[Hide:\nFormula Name]]<>\"\",IFERROR(IF(MeasureCalc(Table_PI[[#This Row],[Hide:\nFormula Name]],Table_PI[[#This Row],[Quantity]],Table_PI[[#This Row],[List 1]],Table_PI[[#This Row],[List 2]],Table_PI[[#This Row],[List 3]],Table_PI[[#This Row],[Size]],Table_PI[[#This Row],[Input 1]],Table_PI[[#This Row],[Input 2]],Table_PI[[#This Row],[Input 3]],Table_PI[[#This Row],[Input 4]],'Customer Information'!$AR$12,1,ROW())>0,MeasureCalc(Table_PI[[#This Row],[Hide:\nFormula Name]],Table_PI[[#This Row],[Quantity]],Table_PI[[#This Row],[List 1]],Table_PI[[#This Row],[List 2]],Table_PI[[#This Row],[List 3]],Table_PI[[#This Row],[Size]],Table_PI[[#This Row],[Input 1]],Table_PI[[#This Row],[Input 2]],Table_PI[[#This Row],[Input 3]],Table_PI[[#This Row],[Input 4]],'Customer Information'!$AR$12,4,ROW()),\"No Rebate\"),\"No Rebate\"),0)","v":0},{"$f":"IF(Table_PI[[#This Row],[Hide:\nFormula Name]]<>\"\",IFERROR(IF(MeasureCalc(Table_PI[[#This Row],[Hide:\nFormula Name]],Table_PI[[#This Row],[Quantity]],Table_PI[[#This Row],[List 1]],Table_PI[[#This Row],[List 2]],Table_PI[[#This Row],[List 3]],Table_PI[[#This Row],[Size]],Table_PI[[#This Row],[Input 1]],Table_PI[[#This Row],[Input 2]],Table_PI[[#This Row],[Input 3]],Table_PI[[#This Row],[Input 4]],'Customer Information'!$AR$12,1,ROW())>0,MeasureCalc(Table_PI[[#This Row],[Hide:\nFormula Name]],Table_PI[[#This Row],[Quantity]],Table_PI[[#This Row],[List 1]],Table_PI[[#This Row],[List 2]],Table_PI[[#This Row],[List 3]],Table_PI[[#This Row],[Size]],Table_PI[[#This Row],[Input 1]],Table_PI[[#This Row],[Input 2]],Table_PI[[#This Row],[Input 3]],Table_PI[[#This Row],[Input 4]],'Customer Information'!$AR$12,5,ROW()),\"No Rebate\"),\"No Rebate\"),0)","v":0},{"$f":"IF(Table_PI[[#This Row],[Hide:\nFormula Name]]<>\"\",IFERROR(IF(MeasureCalc(Table_PI[[#This Row],[Hide:\nFormula Name]],Table_PI[[#This Row],[Quantity]],Table_PI[[#This Row],[List 1]],Table_PI[[#This Row],[List 2]],Table_PI[[#This Row],[List 3]],Table_PI[[#This Row],[Size]],Table_PI[[#This Row],[Input 1]],Table_PI[[#This Row],[Input 2]],Table_PI[[#This Row],[Input 3]],Table_PI[[#This Row],[Input 4]],'Customer Information'!$AR$12,1,ROW())>0,MeasureCalc(Table_PI[[#This Row],[Hide:\nFormula Name]],Table_PI[[#This Row],[Quantity]],Table_PI[[#This Row],[List 1]],Table_PI[[#This Row],[List 2]],Table_PI[[#This Row],[List 3]],Table_PI[[#This Row],[Size]],Table_PI[[#This Row],[Input 1]],Table_PI[[#This Row],[Input 2]],Table_PI[[#This Row],[Input 3]],Table_PI[[#This Row],[Input 4]],'Customer Information'!$AR$12,6,ROW()),\"No Rebate\"),\"No Rebate\"),0)","v":0},{"$f":"IF(Table_PI[[#This Row],[Hide:\nFormula Name]]<>\"\",IFERROR(IF(MeasureCalc(Table_PI[[#This Row],[Hide:\nFormula Name]],Table_PI[[#This Row],[Quantity]],Table_PI[[#This Row],[List 1]],Table_PI[[#This Row],[List 2]],Table_PI[[#This Row],[List 3]],Table_PI[[#This Row],[Size]],Table_PI[[#This Row],[Input 1]],Table_PI[[#This Row],[Input 2]],Table_PI[[#This Row],[Input 3]],Table_PI[[#This Row],[Input 4]],'Customer Information'!$AR$12,1,ROW())>0,MeasureCalc(Table_PI[[#This Row],[Hide:\nFormula Name]],Table_PI[[#This Row],[Quantity]],Table_PI[[#This Row],[List 1]],Table_PI[[#This Row],[List 2]],Table_PI[[#This Row],[List 3]],Table_PI[[#This Row],[Size]],Table_PI[[#This Row],[Input 1]],Table_PI[[#This Row],[Input 2]],Table_PI[[#This Row],[Input 3]],Table_PI[[#This Row],[Input 4]],'Customer Information'!$AR$12,7,ROW()),\"No Rebate\"),\"No Rebate\"),0)","v":0},{"$f":"IF(Table_PI[[#This Row],[Hide:\nFormula Name]]<>\"\",IFERROR(IF(MeasureCalc(Table_PI[[#This Row],[Hide:\nFormula Name]],Table_PI[[#This Row],[Quantity]],Table_PI[[#This Row],[List 1]],Table_PI[[#This Row],[List 2]],Table_PI[[#This Row],[List 3]],Table_PI[[#This Row],[Size]],Table_PI[[#This Row],[Input 1]],Table_PI[[#This Row],[Input 2]],Table_PI[[#This Row],[Input 3]],Table_PI[[#This Row],[Input 4]],'Customer Information'!$AR$12,1,ROW())>0,MeasureCalc(Table_PI[[#This Row],[Hide:\nFormula Name]],Table_PI[[#This Row],[Quantity]],Table_PI[[#This Row],[List 1]],Table_PI[[#This Row],[List 2]],Table_PI[[#This Row],[List 3]],Table_PI[[#This Row],[Size]],Table_PI[[#This Row],[Input 1]],Table_PI[[#This Row],[Input 2]],Table_PI[[#This Row],[Input 3]],Table_PI[[#This Row],[Input 4]],'Customer Information'!$AR$12,8,ROW()),\"No Rebate\"),\"No Rebate\"),0)","v":0},{"$f":"IF(Table_PI[[#This Row],[Hide:\nFormula Name]]<>\"\",IF(AND(Table_PI[[#This Row],[Hide:\nFormula Name]]<>\"\",OR(Table_PI[[#This Row],[Rebate]]>0,Table_PI[[#This Row],[Rebate]]=\"No Rebate\")),TRUE,\"MI: Line Item \" & $A378),\"\")","v":""}]
[{"$f":"IF(Table_PI[[#This Row],[Hide:\nFormula Name]]<>\"\",MAX($A$2:A378)+1,\"\")","v":""},null,null,null,null,null,null,null,null,null,null,null,null,null,null,{"$f":"IFERROR(VLOOKUP(Table_PI[[#This Row],[Measure]],'Equipment Lookups'!$C$3:$D$23,2,FALSE),\"\")","v":""},{"$f":"IF(Table_PI[[#This Row],[Hide:\nFormula Name]]<>\"\",IFERROR(IF(MeasureCalc(Table_PI[[#This Row],[Hide:\nFormula Name]],Table_PI[[#This Row],[Quantity]],Table_PI[[#This Row],[List 1]],Table_PI[[#This Row],[List 2]],Table_PI[[#This Row],[List 3]],Table_PI[[#This Row],[Size]],Table_PI[[#This Row],[Input 1]],Table_PI[[#This Row],[Input 2]],Table_PI[[#This Row],[Input 3]],Table_PI[[#This Row],[Input 4]],'Customer Information'!$AR$12,1,ROW())>0,MeasureCalc(Table_PI[[#This Row],[Hide:\nFormula Name]],Table_PI[[#This Row],[Quantity]],Table_PI[[#This Row],[List 1]],Table_PI[[#This Row],[List 2]],Table_PI[[#This Row],[List 3]],Table_PI[[#This Row],[Size]],Table_PI[[#This Row],[Input 1]],Table_PI[[#This Row],[Input 2]],Table_PI[[#This Row],[Input 3]],Table_PI[[#This Row],[Input 4]],'Customer Information'!$AR$12,1,ROW()),\"No Rebate\"),\"No Rebate\"),0)","v":0},{"$f":"IF(Table_PI[[#This Row],[Hide:\nFormula Name]]<>\"\",IFERROR(IF(MeasureCalc(Table_PI[[#This Row],[Hide:\nFormula Name]],Table_PI[[#This Row],[Quantity]],Table_PI[[#This Row],[List 1]],Table_PI[[#This Row],[List 2]],Table_PI[[#This Row],[List 3]],Table_PI[[#This Row],[Size]],Table_PI[[#This Row],[Input 1]],Table_PI[[#This Row],[Input 2]],Table_PI[[#This Row],[Input 3]],Table_PI[[#This Row],[Input 4]],'Customer Information'!$AR$12,1,ROW())>0,MeasureCalc(Table_PI[[#This Row],[Hide:\nFormula Name]],Table_PI[[#This Row],[Quantity]],Table_PI[[#This Row],[List 1]],Table_PI[[#This Row],[List 2]],Table_PI[[#This Row],[List 3]],Table_PI[[#This Row],[Size]],Table_PI[[#This Row],[Input 1]],Table_PI[[#This Row],[Input 2]],Table_PI[[#This Row],[Input 3]],Table_PI[[#This Row],[Input 4]],'Customer Information'!$AR$12,2,ROW()),\"No Rebate\"),\"No Rebate\"),0)","v":0},{"$f":"IF(Table_PI[[#This Row],[Hide:\nFormula Name]]<>\"\",IFERROR(IF(MeasureCalc(Table_PI[[#This Row],[Hide:\nFormula Name]],Table_PI[[#This Row],[Quantity]],Table_PI[[#This Row],[List 1]],Table_PI[[#This Row],[List 2]],Table_PI[[#This Row],[List 3]],Table_PI[[#This Row],[Size]],Table_PI[[#This Row],[Input 1]],Table_PI[[#This Row],[Input 2]],Table_PI[[#This Row],[Input 3]],Table_PI[[#This Row],[Input 4]],'Customer Information'!$AR$12,1,ROW())>0,MeasureCalc(Table_PI[[#This Row],[Hide:\nFormula Name]],Table_PI[[#This Row],[Quantity]],Table_PI[[#This Row],[List 1]],Table_PI[[#This Row],[List 2]],Table_PI[[#This Row],[List 3]],Table_PI[[#This Row],[Size]],Table_PI[[#This Row],[Input 1]],Table_PI[[#This Row],[Input 2]],Table_PI[[#This Row],[Input 3]],Table_PI[[#This Row],[Input 4]],'Customer Information'!$AR$12,3,ROW()),\"No Rebate\"),\"No Rebate\"),0)","v":0},{"$f":"IF(Table_PI[[#This Row],[Hide:\nFormula Name]]<>\"\",IFERROR(IF(MeasureCalc(Table_PI[[#This Row],[Hide:\nFormula Name]],Table_PI[[#This Row],[Quantity]],Table_PI[[#This Row],[List 1]],Table_PI[[#This Row],[List 2]],Table_PI[[#This Row],[List 3]],Table_PI[[#This Row],[Size]],Table_PI[[#This Row],[Input 1]],Table_PI[[#This Row],[Input 2]],Table_PI[[#This Row],[Input 3]],Table_PI[[#This Row],[Input 4]],'Customer Information'!$AR$12,1,ROW())>0,MeasureCalc(Table_PI[[#This Row],[Hide:\nFormula Name]],Table_PI[[#This Row],[Quantity]],Table_PI[[#This Row],[List 1]],Table_PI[[#This Row],[List 2]],Table_PI[[#This Row],[List 3]],Table_PI[[#This Row],[Size]],Table_PI[[#This Row],[Input 1]],Table_PI[[#This Row],[Input 2]],Table_PI[[#This Row],[Input 3]],Table_PI[[#This Row],[Input 4]],'Customer Information'!$AR$12,4,ROW()),\"No Rebate\"),\"No Rebate\"),0)","v":0},{"$f":"IF(Table_PI[[#This Row],[Hide:\nFormula Name]]<>\"\",IFERROR(IF(MeasureCalc(Table_PI[[#This Row],[Hide:\nFormula Name]],Table_PI[[#This Row],[Quantity]],Table_PI[[#This Row],[List 1]],Table_PI[[#This Row],[List 2]],Table_PI[[#This Row],[List 3]],Table_PI[[#This Row],[Size]],Table_PI[[#This Row],[Input 1]],Table_PI[[#This Row],[Input 2]],Table_PI[[#This Row],[Input 3]],Table_PI[[#This Row],[Input 4]],'Customer Information'!$AR$12,1,ROW())>0,MeasureCalc(Table_PI[[#This Row],[Hide:\nFormula Name]],Table_PI[[#This Row],[Quantity]],Table_PI[[#This Row],[List 1]],Table_PI[[#This Row],[List 2]],Table_PI[[#This Row],[List 3]],Table_PI[[#This Row],[Size]],Table_PI[[#This Row],[Input 1]],Table_PI[[#This Row],[Input 2]],Table_PI[[#This Row],[Input 3]],Table_PI[[#This Row],[Input 4]],'Customer Information'!$AR$12,5,ROW()),\"No Rebate\"),\"No Rebate\"),0)","v":0},{"$f":"IF(Table_PI[[#This Row],[Hide:\nFormula Name]]<>\"\",IFERROR(IF(MeasureCalc(Table_PI[[#This Row],[Hide:\nFormula Name]],Table_PI[[#This Row],[Quantity]],Table_PI[[#This Row],[List 1]],Table_PI[[#This Row],[List 2]],Table_PI[[#This Row],[List 3]],Table_PI[[#This Row],[Size]],Table_PI[[#This Row],[Input 1]],Table_PI[[#This Row],[Input 2]],Table_PI[[#This Row],[Input 3]],Table_PI[[#This Row],[Input 4]],'Customer Information'!$AR$12,1,ROW())>0,MeasureCalc(Table_PI[[#This Row],[Hide:\nFormula Name]],Table_PI[[#This Row],[Quantity]],Table_PI[[#This Row],[List 1]],Table_PI[[#This Row],[List 2]],Table_PI[[#This Row],[List 3]],Table_PI[[#This Row],[Size]],Table_PI[[#This Row],[Input 1]],Table_PI[[#This Row],[Input 2]],Table_PI[[#This Row],[Input 3]],Table_PI[[#This Row],[Input 4]],'Customer Information'!$AR$12,6,ROW()),\"No Rebate\"),\"No Rebate\"),0)","v":0},{"$f":"IF(Table_PI[[#This Row],[Hide:\nFormula Name]]<>\"\",IFERROR(IF(MeasureCalc(Table_PI[[#This Row],[Hide:\nFormula Name]],Table_PI[[#This Row],[Quantity]],Table_PI[[#This Row],[List 1]],Table_PI[[#This Row],[List 2]],Table_PI[[#This Row],[List 3]],Table_PI[[#This Row],[Size]],Table_PI[[#This Row],[Input 1]],Table_PI[[#This Row],[Input 2]],Table_PI[[#This Row],[Input 3]],Table_PI[[#This Row],[Input 4]],'Customer Information'!$AR$12,1,ROW())>0,MeasureCalc(Table_PI[[#This Row],[Hide:\nFormula Name]],Table_PI[[#This Row],[Quantity]],Table_PI[[#This Row],[List 1]],Table_PI[[#This Row],[List 2]],Table_PI[[#This Row],[List 3]],Table_PI[[#This Row],[Size]],Table_PI[[#This Row],[Input 1]],Table_PI[[#This Row],[Input 2]],Table_PI[[#This Row],[Input 3]],Table_PI[[#This Row],[Input 4]],'Customer Information'!$AR$12,7,ROW()),\"No Rebate\"),\"No Rebate\"),0)","v":0},{"$f":"IF(Table_PI[[#This Row],[Hide:\nFormula Name]]<>\"\",IFERROR(IF(MeasureCalc(Table_PI[[#This Row],[Hide:\nFormula Name]],Table_PI[[#This Row],[Quantity]],Table_PI[[#This Row],[List 1]],Table_PI[[#This Row],[List 2]],Table_PI[[#This Row],[List 3]],Table_PI[[#This Row],[Size]],Table_PI[[#This Row],[Input 1]],Table_PI[[#This Row],[Input 2]],Table_PI[[#This Row],[Input 3]],Table_PI[[#This Row],[Input 4]],'Customer Information'!$AR$12,1,ROW())>0,MeasureCalc(Table_PI[[#This Row],[Hide:\nFormula Name]],Table_PI[[#This Row],[Quantity]],Table_PI[[#This Row],[List 1]],Table_PI[[#This Row],[List 2]],Table_PI[[#This Row],[List 3]],Table_PI[[#This Row],[Size]],Table_PI[[#This Row],[Input 1]],Table_PI[[#This Row],[Input 2]],Table_PI[[#This Row],[Input 3]],Table_PI[[#This Row],[Input 4]],'Customer Information'!$AR$12,8,ROW()),\"No Rebate\"),\"No Rebate\"),0)","v":0},{"$f":"IF(Table_PI[[#This Row],[Hide:\nFormula Name]]<>\"\",IF(AND(Table_PI[[#This Row],[Hide:\nFormula Name]]<>\"\",OR(Table_PI[[#This Row],[Rebate]]>0,Table_PI[[#This Row],[Rebate]]=\"No Rebate\")),TRUE,\"MI: Line Item \" & $A379),\"\")","v":""}]
[{"$f":"IF(Table_PI[[#This Row],[Hide:\nFormula Name]]<>\"\",MAX($A$2:A379)+1,\"\")","v":""},null,null,null,null,null,null,null,null,null,null,null,null,null,null,{"$f":"IFERROR(VLOOKUP(Table_PI[[#This Row],[Measure]],'Equipment Lookups'!$C$3:$D$23,2,FALSE),\"\")","v":""},{"$f":"IF(Table_PI[[#This Row],[Hide:\nFormula Name]]<>\"\",IFERROR(IF(MeasureCalc(Table_PI[[#This Row],[Hide:\nFormula Name]],Table_PI[[#This Row],[Quantity]],Table_PI[[#This Row],[List 1]],Table_PI[[#This Row],[List 2]],Table_PI[[#This Row],[List 3]],Table_PI[[#This Row],[Size]],Table_PI[[#This Row],[Input 1]],Table_PI[[#This Row],[Input 2]],Table_PI[[#This Row],[Input 3]],Table_PI[[#This Row],[Input 4]],'Customer Information'!$AR$12,1,ROW())>0,MeasureCalc(Table_PI[[#This Row],[Hide:\nFormula Name]],Table_PI[[#This Row],[Quantity]],Table_PI[[#This Row],[List 1]],Table_PI[[#This Row],[List 2]],Table_PI[[#This Row],[List 3]],Table_PI[[#This Row],[Size]],Table_PI[[#This Row],[Input 1]],Table_PI[[#This Row],[Input 2]],Table_PI[[#This Row],[Input 3]],Table_PI[[#This Row],[Input 4]],'Customer Information'!$AR$12,1,ROW()),\"No Rebate\"),\"No Rebate\"),0)","v":0},{"$f":"IF(Table_PI[[#This Row],[Hide:\nFormula Name]]<>\"\",IFERROR(IF(MeasureCalc(Table_PI[[#This Row],[Hide:\nFormula Name]],Table_PI[[#This Row],[Quantity]],Table_PI[[#This Row],[List 1]],Table_PI[[#This Row],[List 2]],Table_PI[[#This Row],[List 3]],Table_PI[[#This Row],[Size]],Table_PI[[#This Row],[Input 1]],Table_PI[[#This Row],[Input 2]],Table_PI[[#This Row],[Input 3]],Table_PI[[#This Row],[Input 4]],'Customer Information'!$AR$12,1,ROW())>0,MeasureCalc(Table_PI[[#This Row],[Hide:\nFormula Name]],Table_PI[[#This Row],[Quantity]],Table_PI[[#This Row],[List 1]],Table_PI[[#This Row],[List 2]],Table_PI[[#This Row],[List 3]],Table_PI[[#This Row],[Size]],Table_PI[[#This Row],[Input 1]],Table_PI[[#This Row],[Input 2]],Table_PI[[#This Row],[Input 3]],Table_PI[[#This Row],[Input 4]],'Customer Information'!$AR$12,2,ROW()),\"No Rebate\"),\"No Rebate\"),0)","v":0},{"$f":"IF(Table_PI[[#This Row],[Hide:\nFormula Name]]<>\"\",IFERROR(IF(MeasureCalc(Table_PI[[#This Row],[Hide:\nFormula Name]],Table_PI[[#This Row],[Quantity]],Table_PI[[#This Row],[List 1]],Table_PI[[#This Row],[List 2]],Table_PI[[#This Row],[List 3]],Table_PI[[#This Row],[Size]],Table_PI[[#This Row],[Input 1]],Table_PI[[#This Row],[Input 2]],Table_PI[[#This Row],[Input 3]],Table_PI[[#This Row],[Input 4]],'Customer Information'!$AR$12,1,ROW())>0,MeasureCalc(Table_PI[[#This Row],[Hide:\nFormula Name]],Table_PI[[#This Row],[Quantity]],Table_PI[[#This Row],[List 1]],Table_PI[[#This Row],[List 2]],Table_PI[[#This Row],[List 3]],Table_PI[[#This Row],[Size]],Table_PI[[#This Row],[Input 1]],Table_PI[[#This Row],[Input 2]],Table_PI[[#This Row],[Input 3]],Table_PI[[#This Row],[Input 4]],'Customer Information'!$AR$12,3,ROW()),\"No Rebate\"),\"No Rebate\"),0)","v":0},{"$f":"IF(Table_PI[[#This Row],[Hide:\nFormula Name]]<>\"\",IFERROR(IF(MeasureCalc(Table_PI[[#This Row],[Hide:\nFormula Name]],Table_PI[[#This Row],[Quantity]],Table_PI[[#This Row],[List 1]],Table_PI[[#This Row],[List 2]],Table_PI[[#This Row],[List 3]],Table_PI[[#This Row],[Size]],Table_PI[[#This Row],[Input 1]],Table_PI[[#This Row],[Input 2]],Table_PI[[#This Row],[Input 3]],Table_PI[[#This Row],[Input 4]],'Customer Information'!$AR$12,1,ROW())>0,MeasureCalc(Table_PI[[#This Row],[Hide:\nFormula Name]],Table_PI[[#This Row],[Quantity]],Table_PI[[#This Row],[List 1]],Table_PI[[#This Row],[List 2]],Table_PI[[#This Row],[List 3]],Table_PI[[#This Row],[Size]],Table_PI[[#This Row],[Input 1]],Table_PI[[#This Row],[Input 2]],Table_PI[[#This Row],[Input 3]],Table_PI[[#This Row],[Input 4]],'Customer Information'!$AR$12,4,ROW()),\"No Rebate\"),\"No Rebate\"),0)","v":0},{"$f":"IF(Table_PI[[#This Row],[Hide:\nFormula Name]]<>\"\",IFERROR(IF(MeasureCalc(Table_PI[[#This Row],[Hide:\nFormula Name]],Table_PI[[#This Row],[Quantity]],Table_PI[[#This Row],[List 1]],Table_PI[[#This Row],[List 2]],Table_PI[[#This Row],[List 3]],Table_PI[[#This Row],[Size]],Table_PI[[#This Row],[Input 1]],Table_PI[[#This Row],[Input 2]],Table_PI[[#This Row],[Input 3]],Table_PI[[#This Row],[Input 4]],'Customer Information'!$AR$12,1,ROW())>0,MeasureCalc(Table_PI[[#This Row],[Hide:\nFormula Name]],Table_PI[[#This Row],[Quantity]],Table_PI[[#This Row],[List 1]],Table_PI[[#This Row],[List 2]],Table_PI[[#This Row],[List 3]],Table_PI[[#This Row],[Size]],Table_PI[[#This Row],[Input 1]],Table_PI[[#This Row],[Input 2]],Table_PI[[#This Row],[Input 3]],Table_PI[[#This Row],[Input 4]],'Customer Information'!$AR$12,5,ROW()),\"No Rebate\"),\"No Rebate\"),0)","v":0},{"$f":"IF(Table_PI[[#This Row],[Hide:\nFormula Name]]<>\"\",IFERROR(IF(MeasureCalc(Table_PI[[#This Row],[Hide:\nFormula Name]],Table_PI[[#This Row],[Quantity]],Table_PI[[#This Row],[List 1]],Table_PI[[#This Row],[List 2]],Table_PI[[#This Row],[List 3]],Table_PI[[#This Row],[Size]],Table_PI[[#This Row],[Input 1]],Table_PI[[#This Row],[Input 2]],Table_PI[[#This Row],[Input 3]],Table_PI[[#This Row],[Input 4]],'Customer Information'!$AR$12,1,ROW())>0,MeasureCalc(Table_PI[[#This Row],[Hide:\nFormula Name]],Table_PI[[#This Row],[Quantity]],Table_PI[[#This Row],[List 1]],Table_PI[[#This Row],[List 2]],Table_PI[[#This Row],[List 3]],Table_PI[[#This Row],[Size]],Table_PI[[#This Row],[Input 1]],Table_PI[[#This Row],[Input 2]],Table_PI[[#This Row],[Input 3]],Table_PI[[#This Row],[Input 4]],'Customer Information'!$AR$12,6,ROW()),\"No Rebate\"),\"No Rebate\"),0)","v":0},{"$f":"IF(Table_PI[[#This Row],[Hide:\nFormula Name]]<>\"\",IFERROR(IF(MeasureCalc(Table_PI[[#This Row],[Hide:\nFormula Name]],Table_PI[[#This Row],[Quantity]],Table_PI[[#This Row],[List 1]],Table_PI[[#This Row],[List 2]],Table_PI[[#This Row],[List 3]],Table_PI[[#This Row],[Size]],Table_PI[[#This Row],[Input 1]],Table_PI[[#This Row],[Input 2]],Table_PI[[#This Row],[Input 3]],Table_PI[[#This Row],[Input 4]],'Customer Information'!$AR$12,1,ROW())>0,MeasureCalc(Table_PI[[#This Row],[Hide:\nFormula Name]],Table_PI[[#This Row],[Quantity]],Table_PI[[#This Row],[List 1]],Table_PI[[#This Row],[List 2]],Table_PI[[#This Row],[List 3]],Table_PI[[#This Row],[Size]],Table_PI[[#This Row],[Input 1]],Table_PI[[#This Row],[Input 2]],Table_PI[[#This Row],[Input 3]],Table_PI[[#This Row],[Input 4]],'Customer Information'!$AR$12,7,ROW()),\"No Rebate\"),\"No Rebate\"),0)","v":0},{"$f":"IF(Table_PI[[#This Row],[Hide:\nFormula Name]]<>\"\",IFERROR(IF(MeasureCalc(Table_PI[[#This Row],[Hide:\nFormula Name]],Table_PI[[#This Row],[Quantity]],Table_PI[[#This Row],[List 1]],Table_PI[[#This Row],[List 2]],Table_PI[[#This Row],[List 3]],Table_PI[[#This Row],[Size]],Table_PI[[#This Row],[Input 1]],Table_PI[[#This Row],[Input 2]],Table_PI[[#This Row],[Input 3]],Table_PI[[#This Row],[Input 4]],'Customer Information'!$AR$12,1,ROW())>0,MeasureCalc(Table_PI[[#This Row],[Hide:\nFormula Name]],Table_PI[[#This Row],[Quantity]],Table_PI[[#This Row],[List 1]],Table_PI[[#This Row],[List 2]],Table_PI[[#This Row],[List 3]],Table_PI[[#This Row],[Size]],Table_PI[[#This Row],[Input 1]],Table_PI[[#This Row],[Input 2]],Table_PI[[#This Row],[Input 3]],Table_PI[[#This Row],[Input 4]],'Customer Information'!$AR$12,8,ROW()),\"No Rebate\"),\"No Rebate\"),0)","v":0},{"$f":"IF(Table_PI[[#This Row],[Hide:\nFormula Name]]<>\"\",IF(AND(Table_PI[[#This Row],[Hide:\nFormula Name]]<>\"\",OR(Table_PI[[#This Row],[Rebate]]>0,Table_PI[[#This Row],[Rebate]]=\"No Rebate\")),TRUE,\"MI: Line Item \" & $A380),\"\")","v":""}]
[{"$f":"IF(Table_PI[[#This Row],[Hide:\nFormula Name]]<>\"\",MAX($A$2:A380)+1,\"\")","v":""},null,null,null,null,null,null,null,null,null,null,null,null,null,null,{"$f":"IFERROR(VLOOKUP(Table_PI[[#This Row],[Measure]],'Equipment Lookups'!$C$3:$D$23,2,FALSE),\"\")","v":""},{"$f":"IF(Table_PI[[#This Row],[Hide:\nFormula Name]]<>\"\",IFERROR(IF(MeasureCalc(Table_PI[[#This Row],[Hide:\nFormula Name]],Table_PI[[#This Row],[Quantity]],Table_PI[[#This Row],[List 1]],Table_PI[[#This Row],[List 2]],Table_PI[[#This Row],[List 3]],Table_PI[[#This Row],[Size]],Table_PI[[#This Row],[Input 1]],Table_PI[[#This Row],[Input 2]],Table_PI[[#This Row],[Input 3]],Table_PI[[#This Row],[Input 4]],'Customer Information'!$AR$12,1,ROW())>0,MeasureCalc(Table_PI[[#This Row],[Hide:\nFormula Name]],Table_PI[[#This Row],[Quantity]],Table_PI[[#This Row],[List 1]],Table_PI[[#This Row],[List 2]],Table_PI[[#This Row],[List 3]],Table_PI[[#This Row],[Size]],Table_PI[[#This Row],[Input 1]],Table_PI[[#This Row],[Input 2]],Table_PI[[#This Row],[Input 3]],Table_PI[[#This Row],[Input 4]],'Customer Information'!$AR$12,1,ROW()),\"No Rebate\"),\"No Rebate\"),0)","v":0},{"$f":"IF(Table_PI[[#This Row],[Hide:\nFormula Name]]<>\"\",IFERROR(IF(MeasureCalc(Table_PI[[#This Row],[Hide:\nFormula Name]],Table_PI[[#This Row],[Quantity]],Table_PI[[#This Row],[List 1]],Table_PI[[#This Row],[List 2]],Table_PI[[#This Row],[List 3]],Table_PI[[#This Row],[Size]],Table_PI[[#This Row],[Input 1]],Table_PI[[#This Row],[Input 2]],Table_PI[[#This Row],[Input 3]],Table_PI[[#This Row],[Input 4]],'Customer Information'!$AR$12,1,ROW())>0,MeasureCalc(Table_PI[[#This Row],[Hide:\nFormula Name]],Table_PI[[#This Row],[Quantity]],Table_PI[[#This Row],[List 1]],Table_PI[[#This Row],[List 2]],Table_PI[[#This Row],[List 3]],Table_PI[[#This Row],[Size]],Table_PI[[#This Row],[Input 1]],Table_PI[[#This Row],[Input 2]],Table_PI[[#This Row],[Input 3]],Table_PI[[#This Row],[Input 4]],'Customer Information'!$AR$12,2,ROW()),\"No Rebate\"),\"No Rebate\"),0)","v":0},{"$f":"IF(Table_PI[[#This Row],[Hide:\nFormula Name]]<>\"\",IFERROR(IF(MeasureCalc(Table_PI[[#This Row],[Hide:\nFormula Name]],Table_PI[[#This Row],[Quantity]],Table_PI[[#This Row],[List 1]],Table_PI[[#This Row],[List 2]],Table_PI[[#This Row],[List 3]],Table_PI[[#This Row],[Size]],Table_PI[[#This Row],[Input 1]],Table_PI[[#This Row],[Input 2]],Table_PI[[#This Row],[Input 3]],Table_PI[[#This Row],[Input 4]],'Customer Information'!$AR$12,1,ROW())>0,MeasureCalc(Table_PI[[#This Row],[Hide:\nFormula Name]],Table_PI[[#This Row],[Quantity]],Table_PI[[#This Row],[List 1]],Table_PI[[#This Row],[List 2]],Table_PI[[#This Row],[List 3]],Table_PI[[#This Row],[Size]],Table_PI[[#This Row],[Input 1]],Table_PI[[#This Row],[Input 2]],Table_PI[[#This Row],[Input 3]],Table_PI[[#This Row],[Input 4]],'Customer Information'!$AR$12,3,ROW()),\"No Rebate\"),\"No Rebate\"),0)","v":0},{"$f":"IF(Table_PI[[#This Row],[Hide:\nFormula Name]]<>\"\",IFERROR(IF(MeasureCalc(Table_PI[[#This Row],[Hide:\nFormula Name]],Table_PI[[#This Row],[Quantity]],Table_PI[[#This Row],[List 1]],Table_PI[[#This Row],[List 2]],Table_PI[[#This Row],[List 3]],Table_PI[[#This Row],[Size]],Table_PI[[#This Row],[Input 1]],Table_PI[[#This Row],[Input 2]],Table_PI[[#This Row],[Input 3]],Table_PI[[#This Row],[Input 4]],'Customer Information'!$AR$12,1,ROW())>0,MeasureCalc(Table_PI[[#This Row],[Hide:\nFormula Name]],Table_PI[[#This Row],[Quantity]],Table_PI[[#This Row],[List 1]],Table_PI[[#This Row],[List 2]],Table_PI[[#This Row],[List 3]],Table_PI[[#This Row],[Size]],Table_PI[[#This Row],[Input 1]],Table_PI[[#This Row],[Input 2]],Table_PI[[#This Row],[Input 3]],Table_PI[[#This Row],[Input 4]],'Customer Information'!$AR$12,4,ROW()),\"No Rebate\"),\"No Rebate\"),0)","v":0},{"$f":"IF(Table_PI[[#This Row],[Hide:\nFormula Name]]<>\"\",IFERROR(IF(MeasureCalc(Table_PI[[#This Row],[Hide:\nFormula Name]],Table_PI[[#This Row],[Quantity]],Table_PI[[#This Row],[List 1]],Table_PI[[#This Row],[List 2]],Table_PI[[#This Row],[List 3]],Table_PI[[#This Row],[Size]],Table_PI[[#This Row],[Input 1]],Table_PI[[#This Row],[Input 2]],Table_PI[[#This Row],[Input 3]],Table_PI[[#This Row],[Input 4]],'Customer Information'!$AR$12,1,ROW())>0,MeasureCalc(Table_PI[[#This Row],[Hide:\nFormula Name]],Table_PI[[#This Row],[Quantity]],Table_PI[[#This Row],[List 1]],Table_PI[[#This Row],[List 2]],Table_PI[[#This Row],[List 3]],Table_PI[[#This Row],[Size]],Table_PI[[#This Row],[Input 1]],Table_PI[[#This Row],[Input 2]],Table_PI[[#This Row],[Input 3]],Table_PI[[#This Row],[Input 4]],'Customer Information'!$AR$12,5,ROW()),\"No Rebate\"),\"No Rebate\"),0)","v":0},{"$f":"IF(Table_PI[[#This Row],[Hide:\nFormula Name]]<>\"\",IFERROR(IF(MeasureCalc(Table_PI[[#This Row],[Hide:\nFormula Name]],Table_PI[[#This Row],[Quantity]],Table_PI[[#This Row],[List 1]],Table_PI[[#This Row],[List 2]],Table_PI[[#This Row],[List 3]],Table_PI[[#This Row],[Size]],Table_PI[[#This Row],[Input 1]],Table_PI[[#This Row],[Input 2]],Table_PI[[#This Row],[Input 3]],Table_PI[[#This Row],[Input 4]],'Customer Information'!$AR$12,1,ROW())>0,MeasureCalc(Table_PI[[#This Row],[Hide:\nFormula Name]],Table_PI[[#This Row],[Quantity]],Table_PI[[#This Row],[List 1]],Table_PI[[#This Row],[List 2]],Table_PI[[#This Row],[List 3]],Table_PI[[#This Row],[Size]],Table_PI[[#This Row],[Input 1]],Table_PI[[#This Row],[Input 2]],Table_PI[[#This Row],[Input 3]],Table_PI[[#This Row],[Input 4]],'Customer Information'!$AR$12,6,ROW()),\"No Rebate\"),\"No Rebate\"),0)","v":0},{"$f":"IF(Table_PI[[#This Row],[Hide:\nFormula Name]]<>\"\",IFERROR(IF(MeasureCalc(Table_PI[[#This Row],[Hide:\nFormula Name]],Table_PI[[#This Row],[Quantity]],Table_PI[[#This Row],[List 1]],Table_PI[[#This Row],[List 2]],Table_PI[[#This Row],[List 3]],Table_PI[[#This Row],[Size]],Table_PI[[#This Row],[Input 1]],Table_PI[[#This Row],[Input 2]],Table_PI[[#This Row],[Input 3]],Table_PI[[#This Row],[Input 4]],'Customer Information'!$AR$12,1,ROW())>0,MeasureCalc(Table_PI[[#This Row],[Hide:\nFormula Name]],Table_PI[[#This Row],[Quantity]],Table_PI[[#This Row],[List 1]],Table_PI[[#This Row],[List 2]],Table_PI[[#This Row],[List 3]],Table_PI[[#This Row],[Size]],Table_PI[[#This Row],[Input 1]],Table_PI[[#This Row],[Input 2]],Table_PI[[#This Row],[Input 3]],Table_PI[[#This Row],[Input 4]],'Customer Information'!$AR$12,7,ROW()),\"No Rebate\"),\"No Rebate\"),0)","v":0},{"$f":"IF(Table_PI[[#This Row],[Hide:\nFormula Name]]<>\"\",IFERROR(IF(MeasureCalc(Table_PI[[#This Row],[Hide:\nFormula Name]],Table_PI[[#This Row],[Quantity]],Table_PI[[#This Row],[List 1]],Table_PI[[#This Row],[List 2]],Table_PI[[#This Row],[List 3]],Table_PI[[#This Row],[Size]],Table_PI[[#This Row],[Input 1]],Table_PI[[#This Row],[Input 2]],Table_PI[[#This Row],[Input 3]],Table_PI[[#This Row],[Input 4]],'Customer Information'!$AR$12,1,ROW())>0,MeasureCalc(Table_PI[[#This Row],[Hide:\nFormula Name]],Table_PI[[#This Row],[Quantity]],Table_PI[[#This Row],[List 1]],Table_PI[[#This Row],[List 2]],Table_PI[[#This Row],[List 3]],Table_PI[[#This Row],[Size]],Table_PI[[#This Row],[Input 1]],Table_PI[[#This Row],[Input 2]],Table_PI[[#This Row],[Input 3]],Table_PI[[#This Row],[Input 4]],'Customer Information'!$AR$12,8,ROW()),\"No Rebate\"),\"No Rebate\"),0)","v":0},{"$f":"IF(Table_PI[[#This Row],[Hide:\nFormula Name]]<>\"\",IF(AND(Table_PI[[#This Row],[Hide:\nFormula Name]]<>\"\",OR(Table_PI[[#This Row],[Rebate]]>0,Table_PI[[#This Row],[Rebate]]=\"No Rebate\")),TRUE,\"MI: Line Item \" & $A381),\"\")","v":""}]
[{"$f":"IF(Table_PI[[#This Row],[Hide:\nFormula Name]]<>\"\",MAX($A$2:A381)+1,\"\")","v":""},null,null,null,null,null,null,null,null,null,null,null,null,null,null,{"$f":"IFERROR(VLOOKUP(Table_PI[[#This Row],[Measure]],'Equipment Lookups'!$C$3:$D$23,2,FALSE),\"\")","v":""},{"$f":"IF(Table_PI[[#This Row],[Hide:\nFormula Name]]<>\"\",IFERROR(IF(MeasureCalc(Table_PI[[#This Row],[Hide:\nFormula Name]],Table_PI[[#This Row],[Quantity]],Table_PI[[#This Row],[List 1]],Table_PI[[#This Row],[List 2]],Table_PI[[#This Row],[List 3]],Table_PI[[#This Row],[Size]],Table_PI[[#This Row],[Input 1]],Table_PI[[#This Row],[Input 2]],Table_PI[[#This Row],[Input 3]],Table_PI[[#This Row],[Input 4]],'Customer Information'!$AR$12,1,ROW())>0,MeasureCalc(Table_PI[[#This Row],[Hide:\nFormula Name]],Table_PI[[#This Row],[Quantity]],Table_PI[[#This Row],[List 1]],Table_PI[[#This Row],[List 2]],Table_PI[[#This Row],[List 3]],Table_PI[[#This Row],[Size]],Table_PI[[#This Row],[Input 1]],Table_PI[[#This Row],[Input 2]],Table_PI[[#This Row],[Input 3]],Table_PI[[#This Row],[Input 4]],'Customer Information'!$AR$12,1,ROW()),\"No Rebate\"),\"No Rebate\"),0)","v":0},{"$f":"IF(Table_PI[[#This Row],[Hide:\nFormula Name]]<>\"\",IFERROR(IF(MeasureCalc(Table_PI[[#This Row],[Hide:\nFormula Name]],Table_PI[[#This Row],[Quantity]],Table_PI[[#This Row],[List 1]],Table_PI[[#This Row],[List 2]],Table_PI[[#This Row],[List 3]],Table_PI[[#This Row],[Size]],Table_PI[[#This Row],[Input 1]],Table_PI[[#This Row],[Input 2]],Table_PI[[#This Row],[Input 3]],Table_PI[[#This Row],[Input 4]],'Customer Information'!$AR$12,1,ROW())>0,MeasureCalc(Table_PI[[#This Row],[Hide:\nFormula Name]],Table_PI[[#This Row],[Quantity]],Table_PI[[#This Row],[List 1]],Table_PI[[#This Row],[List 2]],Table_PI[[#This Row],[List 3]],Table_PI[[#This Row],[Size]],Table_PI[[#This Row],[Input 1]],Table_PI[[#This Row],[Input 2]],Table_PI[[#This Row],[Input 3]],Table_PI[[#This Row],[Input 4]],'Customer Information'!$AR$12,2,ROW()),\"No Rebate\"),\"No Rebate\"),0)","v":0},{"$f":"IF(Table_PI[[#This Row],[Hide:\nFormula Name]]<>\"\",IFERROR(IF(MeasureCalc(Table_PI[[#This Row],[Hide:\nFormula Name]],Table_PI[[#This Row],[Quantity]],Table_PI[[#This Row],[List 1]],Table_PI[[#This Row],[List 2]],Table_PI[[#This Row],[List 3]],Table_PI[[#This Row],[Size]],Table_PI[[#This Row],[Input 1]],Table_PI[[#This Row],[Input 2]],Table_PI[[#This Row],[Input 3]],Table_PI[[#This Row],[Input 4]],'Customer Information'!$AR$12,1,ROW())>0,MeasureCalc(Table_PI[[#This Row],[Hide:\nFormula Name]],Table_PI[[#This Row],[Quantity]],Table_PI[[#This Row],[List 1]],Table_PI[[#This Row],[List 2]],Table_PI[[#This Row],[List 3]],Table_PI[[#This Row],[Size]],Table_PI[[#This Row],[Input 1]],Table_PI[[#This Row],[Input 2]],Table_PI[[#This Row],[Input 3]],Table_PI[[#This Row],[Input 4]],'Customer Information'!$AR$12,3,ROW()),\"No Rebate\"),\"No Rebate\"),0)","v":0},{"$f":"IF(Table_PI[[#This Row],[Hide:\nFormula Name]]<>\"\",IFERROR(IF(MeasureCalc(Table_PI[[#This Row],[Hide:\nFormula Name]],Table_PI[[#This Row],[Quantity]],Table_PI[[#This Row],[List 1]],Table_PI[[#This Row],[List 2]],Table_PI[[#This Row],[List 3]],Table_PI[[#This Row],[Size]],Table_PI[[#This Row],[Input 1]],Table_PI[[#This Row],[Input 2]],Table_PI[[#This Row],[Input 3]],Table_PI[[#This Row],[Input 4]],'Customer Information'!$AR$12,1,ROW())>0,MeasureCalc(Table_PI[[#This Row],[Hide:\nFormula Name]],Table_PI[[#This Row],[Quantity]],Table_PI[[#This Row],[List 1]],Table_PI[[#This Row],[List 2]],Table_PI[[#This Row],[List 3]],Table_PI[[#This Row],[Size]],Table_PI[[#This Row],[Input 1]],Table_PI[[#This Row],[Input 2]],Table_PI[[#This Row],[Input 3]],Table_PI[[#This Row],[Input 4]],'Customer Information'!$AR$12,4,ROW()),\"No Rebate\"),\"No Rebate\"),0)","v":0},{"$f":"IF(Table_PI[[#This Row],[Hide:\nFormula Name]]<>\"\",IFERROR(IF(MeasureCalc(Table_PI[[#This Row],[Hide:\nFormula Name]],Table_PI[[#This Row],[Quantity]],Table_PI[[#This Row],[List 1]],Table_PI[[#This Row],[List 2]],Table_PI[[#This Row],[List 3]],Table_PI[[#This Row],[Size]],Table_PI[[#This Row],[Input 1]],Table_PI[[#This Row],[Input 2]],Table_PI[[#This Row],[Input 3]],Table_PI[[#This Row],[Input 4]],'Customer Information'!$AR$12,1,ROW())>0,MeasureCalc(Table_PI[[#This Row],[Hide:\nFormula Name]],Table_PI[[#This Row],[Quantity]],Table_PI[[#This Row],[List 1]],Table_PI[[#This Row],[List 2]],Table_PI[[#This Row],[List 3]],Table_PI[[#This Row],[Size]],Table_PI[[#This Row],[Input 1]],Table_PI[[#This Row],[Input 2]],Table_PI[[#This Row],[Input 3]],Table_PI[[#This Row],[Input 4]],'Customer Information'!$AR$12,5,ROW()),\"No Rebate\"),\"No Rebate\"),0)","v":0},{"$f":"IF(Table_PI[[#This Row],[Hide:\nFormula Name]]<>\"\",IFERROR(IF(MeasureCalc(Table_PI[[#This Row],[Hide:\nFormula Name]],Table_PI[[#This Row],[Quantity]],Table_PI[[#This Row],[List 1]],Table_PI[[#This Row],[List 2]],Table_PI[[#This Row],[List 3]],Table_PI[[#This Row],[Size]],Table_PI[[#This Row],[Input 1]],Table_PI[[#This Row],[Input 2]],Table_PI[[#This Row],[Input 3]],Table_PI[[#This Row],[Input 4]],'Customer Information'!$AR$12,1,ROW())>0,MeasureCalc(Table_PI[[#This Row],[Hide:\nFormula Name]],Table_PI[[#This Row],[Quantity]],Table_PI[[#This Row],[List 1]],Table_PI[[#This Row],[List 2]],Table_PI[[#This Row],[List 3]],Table_PI[[#This Row],[Size]],Table_PI[[#This Row],[Input 1]],Table_PI[[#This Row],[Input 2]],Table_PI[[#This Row],[Input 3]],Table_PI[[#This Row],[Input 4]],'Customer Information'!$AR$12,6,ROW()),\"No Rebate\"),\"No Rebate\"),0)","v":0},{"$f":"IF(Table_PI[[#This Row],[Hide:\nFormula Name]]<>\"\",IFERROR(IF(MeasureCalc(Table_PI[[#This Row],[Hide:\nFormula Name]],Table_PI[[#This Row],[Quantity]],Table_PI[[#This Row],[List 1]],Table_PI[[#This Row],[List 2]],Table_PI[[#This Row],[List 3]],Table_PI[[#This Row],[Size]],Table_PI[[#This Row],[Input 1]],Table_PI[[#This Row],[Input 2]],Table_PI[[#This Row],[Input 3]],Table_PI[[#This Row],[Input 4]],'Customer Information'!$AR$12,1,ROW())>0,MeasureCalc(Table_PI[[#This Row],[Hide:\nFormula Name]],Table_PI[[#This Row],[Quantity]],Table_PI[[#This Row],[List 1]],Table_PI[[#This Row],[List 2]],Table_PI[[#This Row],[List 3]],Table_PI[[#This Row],[Size]],Table_PI[[#This Row],[Input 1]],Table_PI[[#This Row],[Input 2]],Table_PI[[#This Row],[Input 3]],Table_PI[[#This Row],[Input 4]],'Customer Information'!$AR$12,7,ROW()),\"No Rebate\"),\"No Rebate\"),0)","v":0},{"$f":"IF(Table_PI[[#This Row],[Hide:\nFormula Name]]<>\"\",IFERROR(IF(MeasureCalc(Table_PI[[#This Row],[Hide:\nFormula Name]],Table_PI[[#This Row],[Quantity]],Table_PI[[#This Row],[List 1]],Table_PI[[#This Row],[List 2]],Table_PI[[#This Row],[List 3]],Table_PI[[#This Row],[Size]],Table_PI[[#This Row],[Input 1]],Table_PI[[#This Row],[Input 2]],Table_PI[[#This Row],[Input 3]],Table_PI[[#This Row],[Input 4]],'Customer Information'!$AR$12,1,ROW())>0,MeasureCalc(Table_PI[[#This Row],[Hide:\nFormula Name]],Table_PI[[#This Row],[Quantity]],Table_PI[[#This Row],[List 1]],Table_PI[[#This Row],[List 2]],Table_PI[[#This Row],[List 3]],Table_PI[[#This Row],[Size]],Table_PI[[#This Row],[Input 1]],Table_PI[[#This Row],[Input 2]],Table_PI[[#This Row],[Input 3]],Table_PI[[#This Row],[Input 4]],'Customer Information'!$AR$12,8,ROW()),\"No Rebate\"),\"No Rebate\"),0)","v":0},{"$f":"IF(Table_PI[[#This Row],[Hide:\nFormula Name]]<>\"\",IF(AND(Table_PI[[#This Row],[Hide:\nFormula Name]]<>\"\",OR(Table_PI[[#This Row],[Rebate]]>0,Table_PI[[#This Row],[Rebate]]=\"No Rebate\")),TRUE,\"MI: Line Item \" & $A382),\"\")","v":""}]
[{"$f":"IF(Table_PI[[#This Row],[Hide:\nFormula Name]]<>\"\",MAX($A$2:A382)+1,\"\")","v":""},null,null,null,null,null,null,null,null,null,null,null,null,null,null,{"$f":"IFERROR(VLOOKUP(Table_PI[[#This Row],[Measure]],'Equipment Lookups'!$C$3:$D$23,2,FALSE),\"\")","v":""},{"$f":"IF(Table_PI[[#This Row],[Hide:\nFormula Name]]<>\"\",IFERROR(IF(MeasureCalc(Table_PI[[#This Row],[Hide:\nFormula Name]],Table_PI[[#This Row],[Quantity]],Table_PI[[#This Row],[List 1]],Table_PI[[#This Row],[List 2]],Table_PI[[#This Row],[List 3]],Table_PI[[#This Row],[Size]],Table_PI[[#This Row],[Input 1]],Table_PI[[#This Row],[Input 2]],Table_PI[[#This Row],[Input 3]],Table_PI[[#This Row],[Input 4]],'Customer Information'!$AR$12,1,ROW())>0,MeasureCalc(Table_PI[[#This Row],[Hide:\nFormula Name]],Table_PI[[#This Row],[Quantity]],Table_PI[[#This Row],[List 1]],Table_PI[[#This Row],[List 2]],Table_PI[[#This Row],[List 3]],Table_PI[[#This Row],[Size]],Table_PI[[#This Row],[Input 1]],Table_PI[[#This Row],[Input 2]],Table_PI[[#This Row],[Input 3]],Table_PI[[#This Row],[Input 4]],'Customer Information'!$AR$12,1,ROW()),\"No Rebate\"),\"No Rebate\"),0)","v":0},{"$f":"IF(Table_PI[[#This Row],[Hide:\nFormula Name]]<>\"\",IFERROR(IF(MeasureCalc(Table_PI[[#This Row],[Hide:\nFormula Name]],Table_PI[[#This Row],[Quantity]],Table_PI[[#This Row],[List 1]],Table_PI[[#This Row],[List 2]],Table_PI[[#This Row],[List 3]],Table_PI[[#This Row],[Size]],Table_PI[[#This Row],[Input 1]],Table_PI[[#This Row],[Input 2]],Table_PI[[#This Row],[Input 3]],Table_PI[[#This Row],[Input 4]],'Customer Information'!$AR$12,1,ROW())>0,MeasureCalc(Table_PI[[#This Row],[Hide:\nFormula Name]],Table_PI[[#This Row],[Quantity]],Table_PI[[#This Row],[List 1]],Table_PI[[#This Row],[List 2]],Table_PI[[#This Row],[List 3]],Table_PI[[#This Row],[Size]],Table_PI[[#This Row],[Input 1]],Table_PI[[#This Row],[Input 2]],Table_PI[[#This Row],[Input 3]],Table_PI[[#This Row],[Input 4]],'Customer Information'!$AR$12,2,ROW()),\"No Rebate\"),\"No Rebate\"),0)","v":0},{"$f":"IF(Table_PI[[#This Row],[Hide:\nFormula Name]]<>\"\",IFERROR(IF(MeasureCalc(Table_PI[[#This Row],[Hide:\nFormula Name]],Table_PI[[#This Row],[Quantity]],Table_PI[[#This Row],[List 1]],Table_PI[[#This Row],[List 2]],Table_PI[[#This Row],[List 3]],Table_PI[[#This Row],[Size]],Table_PI[[#This Row],[Input 1]],Table_PI[[#This Row],[Input 2]],Table_PI[[#This Row],[Input 3]],Table_PI[[#This Row],[Input 4]],'Customer Information'!$AR$12,1,ROW())>0,MeasureCalc(Table_PI[[#This Row],[Hide:\nFormula Name]],Table_PI[[#This Row],[Quantity]],Table_PI[[#This Row],[List 1]],Table_PI[[#This Row],[List 2]],Table_PI[[#This Row],[List 3]],Table_PI[[#This Row],[Size]],Table_PI[[#This Row],[Input 1]],Table_PI[[#This Row],[Input 2]],Table_PI[[#This Row],[Input 3]],Table_PI[[#This Row],[Input 4]],'Customer Information'!$AR$12,3,ROW()),\"No Rebate\"),\"No Rebate\"),0)","v":0},{"$f":"IF(Table_PI[[#This Row],[Hide:\nFormula Name]]<>\"\",IFERROR(IF(MeasureCalc(Table_PI[[#This Row],[Hide:\nFormula Name]],Table_PI[[#This Row],[Quantity]],Table_PI[[#This Row],[List 1]],Table_PI[[#This Row],[List 2]],Table_PI[[#This Row],[List 3]],Table_PI[[#This Row],[Size]],Table_PI[[#This Row],[Input 1]],Table_PI[[#This Row],[Input 2]],Table_PI[[#This Row],[Input 3]],Table_PI[[#This Row],[Input 4]],'Customer Information'!$AR$12,1,ROW())>0,MeasureCalc(Table_PI[[#This Row],[Hide:\nFormula Name]],Table_PI[[#This Row],[Quantity]],Table_PI[[#This Row],[List 1]],Table_PI[[#This Row],[List 2]],Table_PI[[#This Row],[List 3]],Table_PI[[#This Row],[Size]],Table_PI[[#This Row],[Input 1]],Table_PI[[#This Row],[Input 2]],Table_PI[[#This Row],[Input 3]],Table_PI[[#This Row],[Input 4]],'Customer Information'!$AR$12,4,ROW()),\"No Rebate\"),\"No Rebate\"),0)","v":0},{"$f":"IF(Table_PI[[#This Row],[Hide:\nFormula Name]]<>\"\",IFERROR(IF(MeasureCalc(Table_PI[[#This Row],[Hide:\nFormula Name]],Table_PI[[#This Row],[Quantity]],Table_PI[[#This Row],[List 1]],Table_PI[[#This Row],[List 2]],Table_PI[[#This Row],[List 3]],Table_PI[[#This Row],[Size]],Table_PI[[#This Row],[Input 1]],Table_PI[[#This Row],[Input 2]],Table_PI[[#This Row],[Input 3]],Table_PI[[#This Row],[Input 4]],'Customer Information'!$AR$12,1,ROW())>0,MeasureCalc(Table_PI[[#This Row],[Hide:\nFormula Name]],Table_PI[[#This Row],[Quantity]],Table_PI[[#This Row],[List 1]],Table_PI[[#This Row],[List 2]],Table_PI[[#This Row],[List 3]],Table_PI[[#This Row],[Size]],Table_PI[[#This Row],[Input 1]],Table_PI[[#This Row],[Input 2]],Table_PI[[#This Row],[Input 3]],Table_PI[[#This Row],[Input 4]],'Customer Information'!$AR$12,5,ROW()),\"No Rebate\"),\"No Rebate\"),0)","v":0},{"$f":"IF(Table_PI[[#This Row],[Hide:\nFormula Name]]<>\"\",IFERROR(IF(MeasureCalc(Table_PI[[#This Row],[Hide:\nFormula Name]],Table_PI[[#This Row],[Quantity]],Table_PI[[#This Row],[List 1]],Table_PI[[#This Row],[List 2]],Table_PI[[#This Row],[List 3]],Table_PI[[#This Row],[Size]],Table_PI[[#This Row],[Input 1]],Table_PI[[#This Row],[Input 2]],Table_PI[[#This Row],[Input 3]],Table_PI[[#This Row],[Input 4]],'Customer Information'!$AR$12,1,ROW())>0,MeasureCalc(Table_PI[[#This Row],[Hide:\nFormula Name]],Table_PI[[#This Row],[Quantity]],Table_PI[[#This Row],[List 1]],Table_PI[[#This Row],[List 2]],Table_PI[[#This Row],[List 3]],Table_PI[[#This Row],[Size]],Table_PI[[#This Row],[Input 1]],Table_PI[[#This Row],[Input 2]],Table_PI[[#This Row],[Input 3]],Table_PI[[#This Row],[Input 4]],'Customer Information'!$AR$12,6,ROW()),\"No Rebate\"),\"No Rebate\"),0)","v":0},{"$f":"IF(Table_PI[[#This Row],[Hide:\nFormula Name]]<>\"\",IFERROR(IF(MeasureCalc(Table_PI[[#This Row],[Hide:\nFormula Name]],Table_PI[[#This Row],[Quantity]],Table_PI[[#This Row],[List 1]],Table_PI[[#This Row],[List 2]],Table_PI[[#This Row],[List 3]],Table_PI[[#This Row],[Size]],Table_PI[[#This Row],[Input 1]],Table_PI[[#This Row],[Input 2]],Table_PI[[#This Row],[Input 3]],Table_PI[[#This Row],[Input 4]],'Customer Information'!$AR$12,1,ROW())>0,MeasureCalc(Table_PI[[#This Row],[Hide:\nFormula Name]],Table_PI[[#This Row],[Quantity]],Table_PI[[#This Row],[List 1]],Table_PI[[#This Row],[List 2]],Table_PI[[#This Row],[List 3]],Table_PI[[#This Row],[Size]],Table_PI[[#This Row],[Input 1]],Table_PI[[#This Row],[Input 2]],Table_PI[[#This Row],[Input 3]],Table_PI[[#This Row],[Input 4]],'Customer Information'!$AR$12,7,ROW()),\"No Rebate\"),\"No Rebate\"),0)","v":0},{"$f":"IF(Table_PI[[#This Row],[Hide:\nFormula Name]]<>\"\",IFERROR(IF(MeasureCalc(Table_PI[[#This Row],[Hide:\nFormula Name]],Table_PI[[#This Row],[Quantity]],Table_PI[[#This Row],[List 1]],Table_PI[[#This Row],[List 2]],Table_PI[[#This Row],[List 3]],Table_PI[[#This Row],[Size]],Table_PI[[#This Row],[Input 1]],Table_PI[[#This Row],[Input 2]],Table_PI[[#This Row],[Input 3]],Table_PI[[#This Row],[Input 4]],'Customer Information'!$AR$12,1,ROW())>0,MeasureCalc(Table_PI[[#This Row],[Hide:\nFormula Name]],Table_PI[[#This Row],[Quantity]],Table_PI[[#This Row],[List 1]],Table_PI[[#This Row],[List 2]],Table_PI[[#This Row],[List 3]],Table_PI[[#This Row],[Size]],Table_PI[[#This Row],[Input 1]],Table_PI[[#This Row],[Input 2]],Table_PI[[#This Row],[Input 3]],Table_PI[[#This Row],[Input 4]],'Customer Information'!$AR$12,8,ROW()),\"No Rebate\"),\"No Rebate\"),0)","v":0},{"$f":"IF(Table_PI[[#This Row],[Hide:\nFormula Name]]<>\"\",IF(AND(Table_PI[[#This Row],[Hide:\nFormula Name]]<>\"\",OR(Table_PI[[#This Row],[Rebate]]>0,Table_PI[[#This Row],[Rebate]]=\"No Rebate\")),TRUE,\"MI: Line Item \" & $A383),\"\")","v":""}]
[{"$f":"IF(Table_PI[[#This Row],[Hide:\nFormula Name]]<>\"\",MAX($A$2:A383)+1,\"\")","v":""},null,null,null,null,null,null,null,null,null,null,null,null,null,null,{"$f":"IFERROR(VLOOKUP(Table_PI[[#This Row],[Measure]],'Equipment Lookups'!$C$3:$D$23,2,FALSE),\"\")","v":""},{"$f":"IF(Table_PI[[#This Row],[Hide:\nFormula Name]]<>\"\",IFERROR(IF(MeasureCalc(Table_PI[[#This Row],[Hide:\nFormula Name]],Table_PI[[#This Row],[Quantity]],Table_PI[[#This Row],[List 1]],Table_PI[[#This Row],[List 2]],Table_PI[[#This Row],[List 3]],Table_PI[[#This Row],[Size]],Table_PI[[#This Row],[Input 1]],Table_PI[[#This Row],[Input 2]],Table_PI[[#This Row],[Input 3]],Table_PI[[#This Row],[Input 4]],'Customer Information'!$AR$12,1,ROW())>0,MeasureCalc(Table_PI[[#This Row],[Hide:\nFormula Name]],Table_PI[[#This Row],[Quantity]],Table_PI[[#This Row],[List 1]],Table_PI[[#This Row],[List 2]],Table_PI[[#This Row],[List 3]],Table_PI[[#This Row],[Size]],Table_PI[[#This Row],[Input 1]],Table_PI[[#This Row],[Input 2]],Table_PI[[#This Row],[Input 3]],Table_PI[[#This Row],[Input 4]],'Customer Information'!$AR$12,1,ROW()),\"No Rebate\"),\"No Rebate\"),0)","v":0},{"$f":"IF(Table_PI[[#This Row],[Hide:\nFormula Name]]<>\"\",IFERROR(IF(MeasureCalc(Table_PI[[#This Row],[Hide:\nFormula Name]],Table_PI[[#This Row],[Quantity]],Table_PI[[#This Row],[List 1]],Table_PI[[#This Row],[List 2]],Table_PI[[#This Row],[List 3]],Table_PI[[#This Row],[Size]],Table_PI[[#This Row],[Input 1]],Table_PI[[#This Row],[Input 2]],Table_PI[[#This Row],[Input 3]],Table_PI[[#This Row],[Input 4]],'Customer Information'!$AR$12,1,ROW())>0,MeasureCalc(Table_PI[[#This Row],[Hide:\nFormula Name]],Table_PI[[#This Row],[Quantity]],Table_PI[[#This Row],[List 1]],Table_PI[[#This Row],[List 2]],Table_PI[[#This Row],[List 3]],Table_PI[[#This Row],[Size]],Table_PI[[#This Row],[Input 1]],Table_PI[[#This Row],[Input 2]],Table_PI[[#This Row],[Input 3]],Table_PI[[#This Row],[Input 4]],'Customer Information'!$AR$12,2,ROW()),\"No Rebate\"),\"No Rebate\"),0)","v":0},{"$f":"IF(Table_PI[[#This Row],[Hide:\nFormula Name]]<>\"\",IFERROR(IF(MeasureCalc(Table_PI[[#This Row],[Hide:\nFormula Name]],Table_PI[[#This Row],[Quantity]],Table_PI[[#This Row],[List 1]],Table_PI[[#This Row],[List 2]],Table_PI[[#This Row],[List 3]],Table_PI[[#This Row],[Size]],Table_PI[[#This Row],[Input 1]],Table_PI[[#This Row],[Input 2]],Table_PI[[#This Row],[Input 3]],Table_PI[[#This Row],[Input 4]],'Customer Information'!$AR$12,1,ROW())>0,MeasureCalc(Table_PI[[#This Row],[Hide:\nFormula Name]],Table_PI[[#This Row],[Quantity]],Table_PI[[#This Row],[List 1]],Table_PI[[#This Row],[List 2]],Table_PI[[#This Row],[List 3]],Table_PI[[#This Row],[Size]],Table_PI[[#This Row],[Input 1]],Table_PI[[#This Row],[Input 2]],Table_PI[[#This Row],[Input 3]],Table_PI[[#This Row],[Input 4]],'Customer Information'!$AR$12,3,ROW()),\"No Rebate\"),\"No Rebate\"),0)","v":0},{"$f":"IF(Table_PI[[#This Row],[Hide:\nFormula Name]]<>\"\",IFERROR(IF(MeasureCalc(Table_PI[[#This Row],[Hide:\nFormula Name]],Table_PI[[#This Row],[Quantity]],Table_PI[[#This Row],[List 1]],Table_PI[[#This Row],[List 2]],Table_PI[[#This Row],[List 3]],Table_PI[[#This Row],[Size]],Table_PI[[#This Row],[Input 1]],Table_PI[[#This Row],[Input 2]],Table_PI[[#This Row],[Input 3]],Table_PI[[#This Row],[Input 4]],'Customer Information'!$AR$12,1,ROW())>0,MeasureCalc(Table_PI[[#This Row],[Hide:\nFormula Name]],Table_PI[[#This Row],[Quantity]],Table_PI[[#This Row],[List 1]],Table_PI[[#This Row],[List 2]],Table_PI[[#This Row],[List 3]],Table_PI[[#This Row],[Size]],Table_PI[[#This Row],[Input 1]],Table_PI[[#This Row],[Input 2]],Table_PI[[#This Row],[Input 3]],Table_PI[[#This Row],[Input 4]],'Customer Information'!$AR$12,4,ROW()),\"No Rebate\"),\"No Rebate\"),0)","v":0},{"$f":"IF(Table_PI[[#This Row],[Hide:\nFormula Name]]<>\"\",IFERROR(IF(MeasureCalc(Table_PI[[#This Row],[Hide:\nFormula Name]],Table_PI[[#This Row],[Quantity]],Table_PI[[#This Row],[List 1]],Table_PI[[#This Row],[List 2]],Table_PI[[#This Row],[List 3]],Table_PI[[#This Row],[Size]],Table_PI[[#This Row],[Input 1]],Table_PI[[#This Row],[Input 2]],Table_PI[[#This Row],[Input 3]],Table_PI[[#This Row],[Input 4]],'Customer Information'!$AR$12,1,ROW())>0,MeasureCalc(Table_PI[[#This Row],[Hide:\nFormula Name]],Table_PI[[#This Row],[Quantity]],Table_PI[[#This Row],[List 1]],Table_PI[[#This Row],[List 2]],Table_PI[[#This Row],[List 3]],Table_PI[[#This Row],[Size]],Table_PI[[#This Row],[Input 1]],Table_PI[[#This Row],[Input 2]],Table_PI[[#This Row],[Input 3]],Table_PI[[#This Row],[Input 4]],'Customer Information'!$AR$12,5,ROW()),\"No Rebate\"),\"No Rebate\"),0)","v":0},{"$f":"IF(Table_PI[[#This Row],[Hide:\nFormula Name]]<>\"\",IFERROR(IF(MeasureCalc(Table_PI[[#This Row],[Hide:\nFormula Name]],Table_PI[[#This Row],[Quantity]],Table_PI[[#This Row],[List 1]],Table_PI[[#This Row],[List 2]],Table_PI[[#This Row],[List 3]],Table_PI[[#This Row],[Size]],Table_PI[[#This Row],[Input 1]],Table_PI[[#This Row],[Input 2]],Table_PI[[#This Row],[Input 3]],Table_PI[[#This Row],[Input 4]],'Customer Information'!$AR$12,1,ROW())>0,MeasureCalc(Table_PI[[#This Row],[Hide:\nFormula Name]],Table_PI[[#This Row],[Quantity]],Table_PI[[#This Row],[List 1]],Table_PI[[#This Row],[List 2]],Table_PI[[#This Row],[List 3]],Table_PI[[#This Row],[Size]],Table_PI[[#This Row],[Input 1]],Table_PI[[#This Row],[Input 2]],Table_PI[[#This Row],[Input 3]],Table_PI[[#This Row],[Input 4]],'Customer Information'!$AR$12,6,ROW()),\"No Rebate\"),\"No Rebate\"),0)","v":0},{"$f":"IF(Table_PI[[#This Row],[Hide:\nFormula Name]]<>\"\",IFERROR(IF(MeasureCalc(Table_PI[[#This Row],[Hide:\nFormula Name]],Table_PI[[#This Row],[Quantity]],Table_PI[[#This Row],[List 1]],Table_PI[[#This Row],[List 2]],Table_PI[[#This Row],[List 3]],Table_PI[[#This Row],[Size]],Table_PI[[#This Row],[Input 1]],Table_PI[[#This Row],[Input 2]],Table_PI[[#This Row],[Input 3]],Table_PI[[#This Row],[Input 4]],'Customer Information'!$AR$12,1,ROW())>0,MeasureCalc(Table_PI[[#This Row],[Hide:\nFormula Name]],Table_PI[[#This Row],[Quantity]],Table_PI[[#This Row],[List 1]],Table_PI[[#This Row],[List 2]],Table_PI[[#This Row],[List 3]],Table_PI[[#This Row],[Size]],Table_PI[[#This Row],[Input 1]],Table_PI[[#This Row],[Input 2]],Table_PI[[#This Row],[Input 3]],Table_PI[[#This Row],[Input 4]],'Customer Information'!$AR$12,7,ROW()),\"No Rebate\"),\"No Rebate\"),0)","v":0},{"$f":"IF(Table_PI[[#This Row],[Hide:\nFormula Name]]<>\"\",IFERROR(IF(MeasureCalc(Table_PI[[#This Row],[Hide:\nFormula Name]],Table_PI[[#This Row],[Quantity]],Table_PI[[#This Row],[List 1]],Table_PI[[#This Row],[List 2]],Table_PI[[#This Row],[List 3]],Table_PI[[#This Row],[Size]],Table_PI[[#This Row],[Input 1]],Table_PI[[#This Row],[Input 2]],Table_PI[[#This Row],[Input 3]],Table_PI[[#This Row],[Input 4]],'Customer Information'!$AR$12,1,ROW())>0,MeasureCalc(Table_PI[[#This Row],[Hide:\nFormula Name]],Table_PI[[#This Row],[Quantity]],Table_PI[[#This Row],[List 1]],Table_PI[[#This Row],[List 2]],Table_PI[[#This Row],[List 3]],Table_PI[[#This Row],[Size]],Table_PI[[#This Row],[Input 1]],Table_PI[[#This Row],[Input 2]],Table_PI[[#This Row],[Input 3]],Table_PI[[#This Row],[Input 4]],'Customer Information'!$AR$12,8,ROW()),\"No Rebate\"),\"No Rebate\"),0)","v":0},{"$f":"IF(Table_PI[[#This Row],[Hide:\nFormula Name]]<>\"\",IF(AND(Table_PI[[#This Row],[Hide:\nFormula Name]]<>\"\",OR(Table_PI[[#This Row],[Rebate]]>0,Table_PI[[#This Row],[Rebate]]=\"No Rebate\")),TRUE,\"MI: Line Item \" & $A384),\"\")","v":""}]
[{"$f":"IF(Table_PI[[#This Row],[Hide:\nFormula Name]]<>\"\",MAX($A$2:A384)+1,\"\")","v":""},null,null,null,null,null,null,null,null,null,null,null,null,null,null,{"$f":"IFERROR(VLOOKUP(Table_PI[[#This Row],[Measure]],'Equipment Lookups'!$C$3:$D$23,2,FALSE),\"\")","v":""},{"$f":"IF(Table_PI[[#This Row],[Hide:\nFormula Name]]<>\"\",IFERROR(IF(MeasureCalc(Table_PI[[#This Row],[Hide:\nFormula Name]],Table_PI[[#This Row],[Quantity]],Table_PI[[#This Row],[List 1]],Table_PI[[#This Row],[List 2]],Table_PI[[#This Row],[List 3]],Table_PI[[#This Row],[Size]],Table_PI[[#This Row],[Input 1]],Table_PI[[#This Row],[Input 2]],Table_PI[[#This Row],[Input 3]],Table_PI[[#This Row],[Input 4]],'Customer Information'!$AR$12,1,ROW())>0,MeasureCalc(Table_PI[[#This Row],[Hide:\nFormula Name]],Table_PI[[#This Row],[Quantity]],Table_PI[[#This Row],[List 1]],Table_PI[[#This Row],[List 2]],Table_PI[[#This Row],[List 3]],Table_PI[[#This Row],[Size]],Table_PI[[#This Row],[Input 1]],Table_PI[[#This Row],[Input 2]],Table_PI[[#This Row],[Input 3]],Table_PI[[#This Row],[Input 4]],'Customer Information'!$AR$12,1,ROW()),\"No Rebate\"),\"No Rebate\"),0)","v":0},{"$f":"IF(Table_PI[[#This Row],[Hide:\nFormula Name]]<>\"\",IFERROR(IF(MeasureCalc(Table_PI[[#This Row],[Hide:\nFormula Name]],Table_PI[[#This Row],[Quantity]],Table_PI[[#This Row],[List 1]],Table_PI[[#This Row],[List 2]],Table_PI[[#This Row],[List 3]],Table_PI[[#This Row],[Size]],Table_PI[[#This Row],[Input 1]],Table_PI[[#This Row],[Input 2]],Table_PI[[#This Row],[Input 3]],Table_PI[[#This Row],[Input 4]],'Customer Information'!$AR$12,1,ROW())>0,MeasureCalc(Table_PI[[#This Row],[Hide:\nFormula Name]],Table_PI[[#This Row],[Quantity]],Table_PI[[#This Row],[List 1]],Table_PI[[#This Row],[List 2]],Table_PI[[#This Row],[List 3]],Table_PI[[#This Row],[Size]],Table_PI[[#This Row],[Input 1]],Table_PI[[#This Row],[Input 2]],Table_PI[[#This Row],[Input 3]],Table_PI[[#This Row],[Input 4]],'Customer Information'!$AR$12,2,ROW()),\"No Rebate\"),\"No Rebate\"),0)","v":0},{"$f":"IF(Table_PI[[#This Row],[Hide:\nFormula Name]]<>\"\",IFERROR(IF(MeasureCalc(Table_PI[[#This Row],[Hide:\nFormula Name]],Table_PI[[#This Row],[Quantity]],Table_PI[[#This Row],[List 1]],Table_PI[[#This Row],[List 2]],Table_PI[[#This Row],[List 3]],Table_PI[[#This Row],[Size]],Table_PI[[#This Row],[Input 1]],Table_PI[[#This Row],[Input 2]],Table_PI[[#This Row],[Input 3]],Table_PI[[#This Row],[Input 4]],'Customer Information'!$AR$12,1,ROW())>0,MeasureCalc(Table_PI[[#This Row],[Hide:\nFormula Name]],Table_PI[[#This Row],[Quantity]],Table_PI[[#This Row],[List 1]],Table_PI[[#This Row],[List 2]],Table_PI[[#This Row],[List 3]],Table_PI[[#This Row],[Size]],Table_PI[[#This Row],[Input 1]],Table_PI[[#This Row],[Input 2]],Table_PI[[#This Row],[Input 3]],Table_PI[[#This Row],[Input 4]],'Customer Information'!$AR$12,3,ROW()),\"No Rebate\"),\"No Rebate\"),0)","v":0},{"$f":"IF(Table_PI[[#This Row],[Hide:\nFormula Name]]<>\"\",IFERROR(IF(MeasureCalc(Table_PI[[#This Row],[Hide:\nFormula Name]],Table_PI[[#This Row],[Quantity]],Table_PI[[#This Row],[List 1]],Table_PI[[#This Row],[List 2]],Table_PI[[#This Row],[List 3]],Table_PI[[#This Row],[Size]],Table_PI[[#This Row],[Input 1]],Table_PI[[#This Row],[Input 2]],Table_PI[[#This Row],[Input 3]],Table_PI[[#This Row],[Input 4]],'Customer Information'!$AR$12,1,ROW())>0,MeasureCalc(Table_PI[[#This Row],[Hide:\nFormula Name]],Table_PI[[#This Row],[Quantity]],Table_PI[[#This Row],[List 1]],Table_PI[[#This Row],[List 2]],Table_PI[[#This Row],[List 3]],Table_PI[[#This Row],[Size]],Table_PI[[#This Row],[Input 1]],Table_PI[[#This Row],[Input 2]],Table_PI[[#This Row],[Input 3]],Table_PI[[#This Row],[Input 4]],'Customer Information'!$AR$12,4,ROW()),\"No Rebate\"),\"No Rebate\"),0)","v":0},{"$f":"IF(Table_PI[[#This Row],[Hide:\nFormula Name]]<>\"\",IFERROR(IF(MeasureCalc(Table_PI[[#This Row],[Hide:\nFormula Name]],Table_PI[[#This Row],[Quantity]],Table_PI[[#This Row],[List 1]],Table_PI[[#This Row],[List 2]],Table_PI[[#This Row],[List 3]],Table_PI[[#This Row],[Size]],Table_PI[[#This Row],[Input 1]],Table_PI[[#This Row],[Input 2]],Table_PI[[#This Row],[Input 3]],Table_PI[[#This Row],[Input 4]],'Customer Information'!$AR$12,1,ROW())>0,MeasureCalc(Table_PI[[#This Row],[Hide:\nFormula Name]],Table_PI[[#This Row],[Quantity]],Table_PI[[#This Row],[List 1]],Table_PI[[#This Row],[List 2]],Table_PI[[#This Row],[List 3]],Table_PI[[#This Row],[Size]],Table_PI[[#This Row],[Input 1]],Table_PI[[#This Row],[Input 2]],Table_PI[[#This Row],[Input 3]],Table_PI[[#This Row],[Input 4]],'Customer Information'!$AR$12,5,ROW()),\"No Rebate\"),\"No Rebate\"),0)","v":0},{"$f":"IF(Table_PI[[#This Row],[Hide:\nFormula Name]]<>\"\",IFERROR(IF(MeasureCalc(Table_PI[[#This Row],[Hide:\nFormula Name]],Table_PI[[#This Row],[Quantity]],Table_PI[[#This Row],[List 1]],Table_PI[[#This Row],[List 2]],Table_PI[[#This Row],[List 3]],Table_PI[[#This Row],[Size]],Table_PI[[#This Row],[Input 1]],Table_PI[[#This Row],[Input 2]],Table_PI[[#This Row],[Input 3]],Table_PI[[#This Row],[Input 4]],'Customer Information'!$AR$12,1,ROW())>0,MeasureCalc(Table_PI[[#This Row],[Hide:\nFormula Name]],Table_PI[[#This Row],[Quantity]],Table_PI[[#This Row],[List 1]],Table_PI[[#This Row],[List 2]],Table_PI[[#This Row],[List 3]],Table_PI[[#This Row],[Size]],Table_PI[[#This Row],[Input 1]],Table_PI[[#This Row],[Input 2]],Table_PI[[#This Row],[Input 3]],Table_PI[[#This Row],[Input 4]],'Customer Information'!$AR$12,6,ROW()),\"No Rebate\"),\"No Rebate\"),0)","v":0},{"$f":"IF(Table_PI[[#This Row],[Hide:\nFormula Name]]<>\"\",IFERROR(IF(MeasureCalc(Table_PI[[#This Row],[Hide:\nFormula Name]],Table_PI[[#This Row],[Quantity]],Table_PI[[#This Row],[List 1]],Table_PI[[#This Row],[List 2]],Table_PI[[#This Row],[List 3]],Table_PI[[#This Row],[Size]],Table_PI[[#This Row],[Input 1]],Table_PI[[#This Row],[Input 2]],Table_PI[[#This Row],[Input 3]],Table_PI[[#This Row],[Input 4]],'Customer Information'!$AR$12,1,ROW())>0,MeasureCalc(Table_PI[[#This Row],[Hide:\nFormula Name]],Table_PI[[#This Row],[Quantity]],Table_PI[[#This Row],[List 1]],Table_PI[[#This Row],[List 2]],Table_PI[[#This Row],[List 3]],Table_PI[[#This Row],[Size]],Table_PI[[#This Row],[Input 1]],Table_PI[[#This Row],[Input 2]],Table_PI[[#This Row],[Input 3]],Table_PI[[#This Row],[Input 4]],'Customer Information'!$AR$12,7,ROW()),\"No Rebate\"),\"No Rebate\"),0)","v":0},{"$f":"IF(Table_PI[[#This Row],[Hide:\nFormula Name]]<>\"\",IFERROR(IF(MeasureCalc(Table_PI[[#This Row],[Hide:\nFormula Name]],Table_PI[[#This Row],[Quantity]],Table_PI[[#This Row],[List 1]],Table_PI[[#This Row],[List 2]],Table_PI[[#This Row],[List 3]],Table_PI[[#This Row],[Size]],Table_PI[[#This Row],[Input 1]],Table_PI[[#This Row],[Input 2]],Table_PI[[#This Row],[Input 3]],Table_PI[[#This Row],[Input 4]],'Customer Information'!$AR$12,1,ROW())>0,MeasureCalc(Table_PI[[#This Row],[Hide:\nFormula Name]],Table_PI[[#This Row],[Quantity]],Table_PI[[#This Row],[List 1]],Table_PI[[#This Row],[List 2]],Table_PI[[#This Row],[List 3]],Table_PI[[#This Row],[Size]],Table_PI[[#This Row],[Input 1]],Table_PI[[#This Row],[Input 2]],Table_PI[[#This Row],[Input 3]],Table_PI[[#This Row],[Input 4]],'Customer Information'!$AR$12,8,ROW()),\"No Rebate\"),\"No Rebate\"),0)","v":0},{"$f":"IF(Table_PI[[#This Row],[Hide:\nFormula Name]]<>\"\",IF(AND(Table_PI[[#This Row],[Hide:\nFormula Name]]<>\"\",OR(Table_PI[[#This Row],[Rebate]]>0,Table_PI[[#This Row],[Rebate]]=\"No Rebate\")),TRUE,\"MI: Line Item \" & $A385),\"\")","v":""}]
[{"$f":"IF(Table_PI[[#This Row],[Hide:\nFormula Name]]<>\"\",MAX($A$2:A385)+1,\"\")","v":""},null,null,null,null,null,null,null,null,null,null,null,null,null,null,{"$f":"IFERROR(VLOOKUP(Table_PI[[#This Row],[Measure]],'Equipment Lookups'!$C$3:$D$23,2,FALSE),\"\")","v":""},{"$f":"IF(Table_PI[[#This Row],[Hide:\nFormula Name]]<>\"\",IFERROR(IF(MeasureCalc(Table_PI[[#This Row],[Hide:\nFormula Name]],Table_PI[[#This Row],[Quantity]],Table_PI[[#This Row],[List 1]],Table_PI[[#This Row],[List 2]],Table_PI[[#This Row],[List 3]],Table_PI[[#This Row],[Size]],Table_PI[[#This Row],[Input 1]],Table_PI[[#This Row],[Input 2]],Table_PI[[#This Row],[Input 3]],Table_PI[[#This Row],[Input 4]],'Customer Information'!$AR$12,1,ROW())>0,MeasureCalc(Table_PI[[#This Row],[Hide:\nFormula Name]],Table_PI[[#This Row],[Quantity]],Table_PI[[#This Row],[List 1]],Table_PI[[#This Row],[List 2]],Table_PI[[#This Row],[List 3]],Table_PI[[#This Row],[Size]],Table_PI[[#This Row],[Input 1]],Table_PI[[#This Row],[Input 2]],Table_PI[[#This Row],[Input 3]],Table_PI[[#This Row],[Input 4]],'Customer Information'!$AR$12,1,ROW()),\"No Rebate\"),\"No Rebate\"),0)","v":0},{"$f":"IF(Table_PI[[#This Row],[Hide:\nFormula Name]]<>\"\",IFERROR(IF(MeasureCalc(Table_PI[[#This Row],[Hide:\nFormula Name]],Table_PI[[#This Row],[Quantity]],Table_PI[[#This Row],[List 1]],Table_PI[[#This Row],[List 2]],Table_PI[[#This Row],[List 3]],Table_PI[[#This Row],[Size]],Table_PI[[#This Row],[Input 1]],Table_PI[[#This Row],[Input 2]],Table_PI[[#This Row],[Input 3]],Table_PI[[#This Row],[Input 4]],'Customer Information'!$AR$12,1,ROW())>0,MeasureCalc(Table_PI[[#This Row],[Hide:\nFormula Name]],Table_PI[[#This Row],[Quantity]],Table_PI[[#This Row],[List 1]],Table_PI[[#This Row],[List 2]],Table_PI[[#This Row],[List 3]],Table_PI[[#This Row],[Size]],Table_PI[[#This Row],[Input 1]],Table_PI[[#This Row],[Input 2]],Table_PI[[#This Row],[Input 3]],Table_PI[[#This Row],[Input 4]],'Customer Information'!$AR$12,2,ROW()),\"No Rebate\"),\"No Rebate\"),0)","v":0},{"$f":"IF(Table_PI[[#This Row],[Hide:\nFormula Name]]<>\"\",IFERROR(IF(MeasureCalc(Table_PI[[#This Row],[Hide:\nFormula Name]],Table_PI[[#This Row],[Quantity]],Table_PI[[#This Row],[List 1]],Table_PI[[#This Row],[List 2]],Table_PI[[#This Row],[List 3]],Table_PI[[#This Row],[Size]],Table_PI[[#This Row],[Input 1]],Table_PI[[#This Row],[Input 2]],Table_PI[[#This Row],[Input 3]],Table_PI[[#This Row],[Input 4]],'Customer Information'!$AR$12,1,ROW())>0,MeasureCalc(Table_PI[[#This Row],[Hide:\nFormula Name]],Table_PI[[#This Row],[Quantity]],Table_PI[[#This Row],[List 1]],Table_PI[[#This Row],[List 2]],Table_PI[[#This Row],[List 3]],Table_PI[[#This Row],[Size]],Table_PI[[#This Row],[Input 1]],Table_PI[[#This Row],[Input 2]],Table_PI[[#This Row],[Input 3]],Table_PI[[#This Row],[Input 4]],'Customer Information'!$AR$12,3,ROW()),\"No Rebate\"),\"No Rebate\"),0)","v":0},{"$f":"IF(Table_PI[[#This Row],[Hide:\nFormula Name]]<>\"\",IFERROR(IF(MeasureCalc(Table_PI[[#This Row],[Hide:\nFormula Name]],Table_PI[[#This Row],[Quantity]],Table_PI[[#This Row],[List 1]],Table_PI[[#This Row],[List 2]],Table_PI[[#This Row],[List 3]],Table_PI[[#This Row],[Size]],Table_PI[[#This Row],[Input 1]],Table_PI[[#This Row],[Input 2]],Table_PI[[#This Row],[Input 3]],Table_PI[[#This Row],[Input 4]],'Customer Information'!$AR$12,1,ROW())>0,MeasureCalc(Table_PI[[#This Row],[Hide:\nFormula Name]],Table_PI[[#This Row],[Quantity]],Table_PI[[#This Row],[List 1]],Table_PI[[#This Row],[List 2]],Table_PI[[#This Row],[List 3]],Table_PI[[#This Row],[Size]],Table_PI[[#This Row],[Input 1]],Table_PI[[#This Row],[Input 2]],Table_PI[[#This Row],[Input 3]],Table_PI[[#This Row],[Input 4]],'Customer Information'!$AR$12,4,ROW()),\"No Rebate\"),\"No Rebate\"),0)","v":0},{"$f":"IF(Table_PI[[#This Row],[Hide:\nFormula Name]]<>\"\",IFERROR(IF(MeasureCalc(Table_PI[[#This Row],[Hide:\nFormula Name]],Table_PI[[#This Row],[Quantity]],Table_PI[[#This Row],[List 1]],Table_PI[[#This Row],[List 2]],Table_PI[[#This Row],[List 3]],Table_PI[[#This Row],[Size]],Table_PI[[#This Row],[Input 1]],Table_PI[[#This Row],[Input 2]],Table_PI[[#This Row],[Input 3]],Table_PI[[#This Row],[Input 4]],'Customer Information'!$AR$12,1,ROW())>0,MeasureCalc(Table_PI[[#This Row],[Hide:\nFormula Name]],Table_PI[[#This Row],[Quantity]],Table_PI[[#This Row],[List 1]],Table_PI[[#This Row],[List 2]],Table_PI[[#This Row],[List 3]],Table_PI[[#This Row],[Size]],Table_PI[[#This Row],[Input 1]],Table_PI[[#This Row],[Input 2]],Table_PI[[#This Row],[Input 3]],Table_PI[[#This Row],[Input 4]],'Customer Information'!$AR$12,5,ROW()),\"No Rebate\"),\"No Rebate\"),0)","v":0},{"$f":"IF(Table_PI[[#This Row],[Hide:\nFormula Name]]<>\"\",IFERROR(IF(MeasureCalc(Table_PI[[#This Row],[Hide:\nFormula Name]],Table_PI[[#This Row],[Quantity]],Table_PI[[#This Row],[List 1]],Table_PI[[#This Row],[List 2]],Table_PI[[#This Row],[List 3]],Table_PI[[#This Row],[Size]],Table_PI[[#This Row],[Input 1]],Table_PI[[#This Row],[Input 2]],Table_PI[[#This Row],[Input 3]],Table_PI[[#This Row],[Input 4]],'Customer Information'!$AR$12,1,ROW())>0,MeasureCalc(Table_PI[[#This Row],[Hide:\nFormula Name]],Table_PI[[#This Row],[Quantity]],Table_PI[[#This Row],[List 1]],Table_PI[[#This Row],[List 2]],Table_PI[[#This Row],[List 3]],Table_PI[[#This Row],[Size]],Table_PI[[#This Row],[Input 1]],Table_PI[[#This Row],[Input 2]],Table_PI[[#This Row],[Input 3]],Table_PI[[#This Row],[Input 4]],'Customer Information'!$AR$12,6,ROW()),\"No Rebate\"),\"No Rebate\"),0)","v":0},{"$f":"IF(Table_PI[[#This Row],[Hide:\nFormula Name]]<>\"\",IFERROR(IF(MeasureCalc(Table_PI[[#This Row],[Hide:\nFormula Name]],Table_PI[[#This Row],[Quantity]],Table_PI[[#This Row],[List 1]],Table_PI[[#This Row],[List 2]],Table_PI[[#This Row],[List 3]],Table_PI[[#This Row],[Size]],Table_PI[[#This Row],[Input 1]],Table_PI[[#This Row],[Input 2]],Table_PI[[#This Row],[Input 3]],Table_PI[[#This Row],[Input 4]],'Customer Information'!$AR$12,1,ROW())>0,MeasureCalc(Table_PI[[#This Row],[Hide:\nFormula Name]],Table_PI[[#This Row],[Quantity]],Table_PI[[#This Row],[List 1]],Table_PI[[#This Row],[List 2]],Table_PI[[#This Row],[List 3]],Table_PI[[#This Row],[Size]],Table_PI[[#This Row],[Input 1]],Table_PI[[#This Row],[Input 2]],Table_PI[[#This Row],[Input 3]],Table_PI[[#This Row],[Input 4]],'Customer Information'!$AR$12,7,ROW()),\"No Rebate\"),\"No Rebate\"),0)","v":0},{"$f":"IF(Table_PI[[#This Row],[Hide:\nFormula Name]]<>\"\",IFERROR(IF(MeasureCalc(Table_PI[[#This Row],[Hide:\nFormula Name]],Table_PI[[#This Row],[Quantity]],Table_PI[[#This Row],[List 1]],Table_PI[[#This Row],[List 2]],Table_PI[[#This Row],[List 3]],Table_PI[[#This Row],[Size]],Table_PI[[#This Row],[Input 1]],Table_PI[[#This Row],[Input 2]],Table_PI[[#This Row],[Input 3]],Table_PI[[#This Row],[Input 4]],'Customer Information'!$AR$12,1,ROW())>0,MeasureCalc(Table_PI[[#This Row],[Hide:\nFormula Name]],Table_PI[[#This Row],[Quantity]],Table_PI[[#This Row],[List 1]],Table_PI[[#This Row],[List 2]],Table_PI[[#This Row],[List 3]],Table_PI[[#This Row],[Size]],Table_PI[[#This Row],[Input 1]],Table_PI[[#This Row],[Input 2]],Table_PI[[#This Row],[Input 3]],Table_PI[[#This Row],[Input 4]],'Customer Information'!$AR$12,8,ROW()),\"No Rebate\"),\"No Rebate\"),0)","v":0},{"$f":"IF(Table_PI[[#This Row],[Hide:\nFormula Name]]<>\"\",IF(AND(Table_PI[[#This Row],[Hide:\nFormula Name]]<>\"\",OR(Table_PI[[#This Row],[Rebate]]>0,Table_PI[[#This Row],[Rebate]]=\"No Rebate\")),TRUE,\"MI: Line Item \" & $A386),\"\")","v":""}]
[{"$f":"IF(Table_PI[[#This Row],[Hide:\nFormula Name]]<>\"\",MAX($A$2:A386)+1,\"\")","v":""},null,null,null,null,null,null,null,null,null,null,null,null,null,null,{"$f":"IFERROR(VLOOKUP(Table_PI[[#This Row],[Measure]],'Equipment Lookups'!$C$3:$D$23,2,FALSE),\"\")","v":""},{"$f":"IF(Table_PI[[#This Row],[Hide:\nFormula Name]]<>\"\",IFERROR(IF(MeasureCalc(Table_PI[[#This Row],[Hide:\nFormula Name]],Table_PI[[#This Row],[Quantity]],Table_PI[[#This Row],[List 1]],Table_PI[[#This Row],[List 2]],Table_PI[[#This Row],[List 3]],Table_PI[[#This Row],[Size]],Table_PI[[#This Row],[Input 1]],Table_PI[[#This Row],[Input 2]],Table_PI[[#This Row],[Input 3]],Table_PI[[#This Row],[Input 4]],'Customer Information'!$AR$12,1,ROW())>0,MeasureCalc(Table_PI[[#This Row],[Hide:\nFormula Name]],Table_PI[[#This Row],[Quantity]],Table_PI[[#This Row],[List 1]],Table_PI[[#This Row],[List 2]],Table_PI[[#This Row],[List 3]],Table_PI[[#This Row],[Size]],Table_PI[[#This Row],[Input 1]],Table_PI[[#This Row],[Input 2]],Table_PI[[#This Row],[Input 3]],Table_PI[[#This Row],[Input 4]],'Customer Information'!$AR$12,1,ROW()),\"No Rebate\"),\"No Rebate\"),0)","v":0},{"$f":"IF(Table_PI[[#This Row],[Hide:\nFormula Name]]<>\"\",IFERROR(IF(MeasureCalc(Table_PI[[#This Row],[Hide:\nFormula Name]],Table_PI[[#This Row],[Quantity]],Table_PI[[#This Row],[List 1]],Table_PI[[#This Row],[List 2]],Table_PI[[#This Row],[List 3]],Table_PI[[#This Row],[Size]],Table_PI[[#This Row],[Input 1]],Table_PI[[#This Row],[Input 2]],Table_PI[[#This Row],[Input 3]],Table_PI[[#This Row],[Input 4]],'Customer Information'!$AR$12,1,ROW())>0,MeasureCalc(Table_PI[[#This Row],[Hide:\nFormula Name]],Table_PI[[#This Row],[Quantity]],Table_PI[[#This Row],[List 1]],Table_PI[[#This Row],[List 2]],Table_PI[[#This Row],[List 3]],Table_PI[[#This Row],[Size]],Table_PI[[#This Row],[Input 1]],Table_PI[[#This Row],[Input 2]],Table_PI[[#This Row],[Input 3]],Table_PI[[#This Row],[Input 4]],'Customer Information'!$AR$12,2,ROW()),\"No Rebate\"),\"No Rebate\"),0)","v":0},{"$f":"IF(Table_PI[[#This Row],[Hide:\nFormula Name]]<>\"\",IFERROR(IF(MeasureCalc(Table_PI[[#This Row],[Hide:\nFormula Name]],Table_PI[[#This Row],[Quantity]],Table_PI[[#This Row],[List 1]],Table_PI[[#This Row],[List 2]],Table_PI[[#This Row],[List 3]],Table_PI[[#This Row],[Size]],Table_PI[[#This Row],[Input 1]],Table_PI[[#This Row],[Input 2]],Table_PI[[#This Row],[Input 3]],Table_PI[[#This Row],[Input 4]],'Customer Information'!$AR$12,1,ROW())>0,MeasureCalc(Table_PI[[#This Row],[Hide:\nFormula Name]],Table_PI[[#This Row],[Quantity]],Table_PI[[#This Row],[List 1]],Table_PI[[#This Row],[List 2]],Table_PI[[#This Row],[List 3]],Table_PI[[#This Row],[Size]],Table_PI[[#This Row],[Input 1]],Table_PI[[#This Row],[Input 2]],Table_PI[[#This Row],[Input 3]],Table_PI[[#This Row],[Input 4]],'Customer Information'!$AR$12,3,ROW()),\"No Rebate\"),\"No Rebate\"),0)","v":0},{"$f":"IF(Table_PI[[#This Row],[Hide:\nFormula Name]]<>\"\",IFERROR(IF(MeasureCalc(Table_PI[[#This Row],[Hide:\nFormula Name]],Table_PI[[#This Row],[Quantity]],Table_PI[[#This Row],[List 1]],Table_PI[[#This Row],[List 2]],Table_PI[[#This Row],[List 3]],Table_PI[[#This Row],[Size]],Table_PI[[#This Row],[Input 1]],Table_PI[[#This Row],[Input 2]],Table_PI[[#This Row],[Input 3]],Table_PI[[#This Row],[Input 4]],'Customer Information'!$AR$12,1,ROW())>0,MeasureCalc(Table_PI[[#This Row],[Hide:\nFormula Name]],Table_PI[[#This Row],[Quantity]],Table_PI[[#This Row],[List 1]],Table_PI[[#This Row],[List 2]],Table_PI[[#This Row],[List 3]],Table_PI[[#This Row],[Size]],Table_PI[[#This Row],[Input 1]],Table_PI[[#This Row],[Input 2]],Table_PI[[#This Row],[Input 3]],Table_PI[[#This Row],[Input 4]],'Customer Information'!$AR$12,4,ROW()),\"No Rebate\"),\"No Rebate\"),0)","v":0},{"$f":"IF(Table_PI[[#This Row],[Hide:\nFormula Name]]<>\"\",IFERROR(IF(MeasureCalc(Table_PI[[#This Row],[Hide:\nFormula Name]],Table_PI[[#This Row],[Quantity]],Table_PI[[#This Row],[List 1]],Table_PI[[#This Row],[List 2]],Table_PI[[#This Row],[List 3]],Table_PI[[#This Row],[Size]],Table_PI[[#This Row],[Input 1]],Table_PI[[#This Row],[Input 2]],Table_PI[[#This Row],[Input 3]],Table_PI[[#This Row],[Input 4]],'Customer Information'!$AR$12,1,ROW())>0,MeasureCalc(Table_PI[[#This Row],[Hide:\nFormula Name]],Table_PI[[#This Row],[Quantity]],Table_PI[[#This Row],[List 1]],Table_PI[[#This Row],[List 2]],Table_PI[[#This Row],[List 3]],Table_PI[[#This Row],[Size]],Table_PI[[#This Row],[Input 1]],Table_PI[[#This Row],[Input 2]],Table_PI[[#This Row],[Input 3]],Table_PI[[#This Row],[Input 4]],'Customer Information'!$AR$12,5,ROW()),\"No Rebate\"),\"No Rebate\"),0)","v":0},{"$f":"IF(Table_PI[[#This Row],[Hide:\nFormula Name]]<>\"\",IFERROR(IF(MeasureCalc(Table_PI[[#This Row],[Hide:\nFormula Name]],Table_PI[[#This Row],[Quantity]],Table_PI[[#This Row],[List 1]],Table_PI[[#This Row],[List 2]],Table_PI[[#This Row],[List 3]],Table_PI[[#This Row],[Size]],Table_PI[[#This Row],[Input 1]],Table_PI[[#This Row],[Input 2]],Table_PI[[#This Row],[Input 3]],Table_PI[[#This Row],[Input 4]],'Customer Information'!$AR$12,1,ROW())>0,MeasureCalc(Table_PI[[#This Row],[Hide:\nFormula Name]],Table_PI[[#This Row],[Quantity]],Table_PI[[#This Row],[List 1]],Table_PI[[#This Row],[List 2]],Table_PI[[#This Row],[List 3]],Table_PI[[#This Row],[Size]],Table_PI[[#This Row],[Input 1]],Table_PI[[#This Row],[Input 2]],Table_PI[[#This Row],[Input 3]],Table_PI[[#This Row],[Input 4]],'Customer Information'!$AR$12,6,ROW()),\"No Rebate\"),\"No Rebate\"),0)","v":0},{"$f":"IF(Table_PI[[#This Row],[Hide:\nFormula Name]]<>\"\",IFERROR(IF(MeasureCalc(Table_PI[[#This Row],[Hide:\nFormula Name]],Table_PI[[#This Row],[Quantity]],Table_PI[[#This Row],[List 1]],Table_PI[[#This Row],[List 2]],Table_PI[[#This Row],[List 3]],Table_PI[[#This Row],[Size]],Table_PI[[#This Row],[Input 1]],Table_PI[[#This Row],[Input 2]],Table_PI[[#This Row],[Input 3]],Table_PI[[#This Row],[Input 4]],'Customer Information'!$AR$12,1,ROW())>0,MeasureCalc(Table_PI[[#This Row],[Hide:\nFormula Name]],Table_PI[[#This Row],[Quantity]],Table_PI[[#This Row],[List 1]],Table_PI[[#This Row],[List 2]],Table_PI[[#This Row],[List 3]],Table_PI[[#This Row],[Size]],Table_PI[[#This Row],[Input 1]],Table_PI[[#This Row],[Input 2]],Table_PI[[#This Row],[Input 3]],Table_PI[[#This Row],[Input 4]],'Customer Information'!$AR$12,7,ROW()),\"No Rebate\"),\"No Rebate\"),0)","v":0},{"$f":"IF(Table_PI[[#This Row],[Hide:\nFormula Name]]<>\"\",IFERROR(IF(MeasureCalc(Table_PI[[#This Row],[Hide:\nFormula Name]],Table_PI[[#This Row],[Quantity]],Table_PI[[#This Row],[List 1]],Table_PI[[#This Row],[List 2]],Table_PI[[#This Row],[List 3]],Table_PI[[#This Row],[Size]],Table_PI[[#This Row],[Input 1]],Table_PI[[#This Row],[Input 2]],Table_PI[[#This Row],[Input 3]],Table_PI[[#This Row],[Input 4]],'Customer Information'!$AR$12,1,ROW())>0,MeasureCalc(Table_PI[[#This Row],[Hide:\nFormula Name]],Table_PI[[#This Row],[Quantity]],Table_PI[[#This Row],[List 1]],Table_PI[[#This Row],[List 2]],Table_PI[[#This Row],[List 3]],Table_PI[[#This Row],[Size]],Table_PI[[#This Row],[Input 1]],Table_PI[[#This Row],[Input 2]],Table_PI[[#This Row],[Input 3]],Table_PI[[#This Row],[Input 4]],'Customer Information'!$AR$12,8,ROW()),\"No Rebate\"),\"No Rebate\"),0)","v":0},{"$f":"IF(Table_PI[[#This Row],[Hide:\nFormula Name]]<>\"\",IF(AND(Table_PI[[#This Row],[Hide:\nFormula Name]]<>\"\",OR(Table_PI[[#This Row],[Rebate]]>0,Table_PI[[#This Row],[Rebate]]=\"No Rebate\")),TRUE,\"MI: Line Item \" & $A387),\"\")","v":""}]
[{"$f":"IF(Table_PI[[#This Row],[Hide:\nFormula Name]]<>\"\",MAX($A$2:A387)+1,\"\")","v":""},null,null,null,null,null,null,null,null,null,null,null,null,null,null,{"$f":"IFERROR(VLOOKUP(Table_PI[[#This Row],[Measure]],'Equipment Lookups'!$C$3:$D$23,2,FALSE),\"\")","v":""},{"$f":"IF(Table_PI[[#This Row],[Hide:\nFormula Name]]<>\"\",IFERROR(IF(MeasureCalc(Table_PI[[#This Row],[Hide:\nFormula Name]],Table_PI[[#This Row],[Quantity]],Table_PI[[#This Row],[List 1]],Table_PI[[#This Row],[List 2]],Table_PI[[#This Row],[List 3]],Table_PI[[#This Row],[Size]],Table_PI[[#This Row],[Input 1]],Table_PI[[#This Row],[Input 2]],Table_PI[[#This Row],[Input 3]],Table_PI[[#This Row],[Input 4]],'Customer Information'!$AR$12,1,ROW())>0,MeasureCalc(Table_PI[[#This Row],[Hide:\nFormula Name]],Table_PI[[#This Row],[Quantity]],Table_PI[[#This Row],[List 1]],Table_PI[[#This Row],[List 2]],Table_PI[[#This Row],[List 3]],Table_PI[[#This Row],[Size]],Table_PI[[#This Row],[Input 1]],Table_PI[[#This Row],[Input 2]],Table_PI[[#This Row],[Input 3]],Table_PI[[#This Row],[Input 4]],'Customer Information'!$AR$12,1,ROW()),\"No Rebate\"),\"No Rebate\"),0)","v":0},{"$f":"IF(Table_PI[[#This Row],[Hide:\nFormula Name]]<>\"\",IFERROR(IF(MeasureCalc(Table_PI[[#This Row],[Hide:\nFormula Name]],Table_PI[[#This Row],[Quantity]],Table_PI[[#This Row],[List 1]],Table_PI[[#This Row],[List 2]],Table_PI[[#This Row],[List 3]],Table_PI[[#This Row],[Size]],Table_PI[[#This Row],[Input 1]],Table_PI[[#This Row],[Input 2]],Table_PI[[#This Row],[Input 3]],Table_PI[[#This Row],[Input 4]],'Customer Information'!$AR$12,1,ROW())>0,MeasureCalc(Table_PI[[#This Row],[Hide:\nFormula Name]],Table_PI[[#This Row],[Quantity]],Table_PI[[#This Row],[List 1]],Table_PI[[#This Row],[List 2]],Table_PI[[#This Row],[List 3]],Table_PI[[#This Row],[Size]],Table_PI[[#This Row],[Input 1]],Table_PI[[#This Row],[Input 2]],Table_PI[[#This Row],[Input 3]],Table_PI[[#This Row],[Input 4]],'Customer Information'!$AR$12,2,ROW()),\"No Rebate\"),\"No Rebate\"),0)","v":0},{"$f":"IF(Table_PI[[#This Row],[Hide:\nFormula Name]]<>\"\",IFERROR(IF(MeasureCalc(Table_PI[[#This Row],[Hide:\nFormula Name]],Table_PI[[#This Row],[Quantity]],Table_PI[[#This Row],[List 1]],Table_PI[[#This Row],[List 2]],Table_PI[[#This Row],[List 3]],Table_PI[[#This Row],[Size]],Table_PI[[#This Row],[Input 1]],Table_PI[[#This Row],[Input 2]],Table_PI[[#This Row],[Input 3]],Table_PI[[#This Row],[Input 4]],'Customer Information'!$AR$12,1,ROW())>0,MeasureCalc(Table_PI[[#This Row],[Hide:\nFormula Name]],Table_PI[[#This Row],[Quantity]],Table_PI[[#This Row],[List 1]],Table_PI[[#This Row],[List 2]],Table_PI[[#This Row],[List 3]],Table_PI[[#This Row],[Size]],Table_PI[[#This Row],[Input 1]],Table_PI[[#This Row],[Input 2]],Table_PI[[#This Row],[Input 3]],Table_PI[[#This Row],[Input 4]],'Customer Information'!$AR$12,3,ROW()),\"No Rebate\"),\"No Rebate\"),0)","v":0},{"$f":"IF(Table_PI[[#This Row],[Hide:\nFormula Name]]<>\"\",IFERROR(IF(MeasureCalc(Table_PI[[#This Row],[Hide:\nFormula Name]],Table_PI[[#This Row],[Quantity]],Table_PI[[#This Row],[List 1]],Table_PI[[#This Row],[List 2]],Table_PI[[#This Row],[List 3]],Table_PI[[#This Row],[Size]],Table_PI[[#This Row],[Input 1]],Table_PI[[#This Row],[Input 2]],Table_PI[[#This Row],[Input 3]],Table_PI[[#This Row],[Input 4]],'Customer Information'!$AR$12,1,ROW())>0,MeasureCalc(Table_PI[[#This Row],[Hide:\nFormula Name]],Table_PI[[#This Row],[Quantity]],Table_PI[[#This Row],[List 1]],Table_PI[[#This Row],[List 2]],Table_PI[[#This Row],[List 3]],Table_PI[[#This Row],[Size]],Table_PI[[#This Row],[Input 1]],Table_PI[[#This Row],[Input 2]],Table_PI[[#This Row],[Input 3]],Table_PI[[#This Row],[Input 4]],'Customer Information'!$AR$12,4,ROW()),\"No Rebate\"),\"No Rebate\"),0)","v":0},{"$f":"IF(Table_PI[[#This Row],[Hide:\nFormula Name]]<>\"\",IFERROR(IF(MeasureCalc(Table_PI[[#This Row],[Hide:\nFormula Name]],Table_PI[[#This Row],[Quantity]],Table_PI[[#This Row],[List 1]],Table_PI[[#This Row],[List 2]],Table_PI[[#This Row],[List 3]],Table_PI[[#This Row],[Size]],Table_PI[[#This Row],[Input 1]],Table_PI[[#This Row],[Input 2]],Table_PI[[#This Row],[Input 3]],Table_PI[[#This Row],[Input 4]],'Customer Information'!$AR$12,1,ROW())>0,MeasureCalc(Table_PI[[#This Row],[Hide:\nFormula Name]],Table_PI[[#This Row],[Quantity]],Table_PI[[#This Row],[List 1]],Table_PI[[#This Row],[List 2]],Table_PI[[#This Row],[List 3]],Table_PI[[#This Row],[Size]],Table_PI[[#This Row],[Input 1]],Table_PI[[#This Row],[Input 2]],Table_PI[[#This Row],[Input 3]],Table_PI[[#This Row],[Input 4]],'Customer Information'!$AR$12,5,ROW()),\"No Rebate\"),\"No Rebate\"),0)","v":0},{"$f":"IF(Table_PI[[#This Row],[Hide:\nFormula Name]]<>\"\",IFERROR(IF(MeasureCalc(Table_PI[[#This Row],[Hide:\nFormula Name]],Table_PI[[#This Row],[Quantity]],Table_PI[[#This Row],[List 1]],Table_PI[[#This Row],[List 2]],Table_PI[[#This Row],[List 3]],Table_PI[[#This Row],[Size]],Table_PI[[#This Row],[Input 1]],Table_PI[[#This Row],[Input 2]],Table_PI[[#This Row],[Input 3]],Table_PI[[#This Row],[Input 4]],'Customer Information'!$AR$12,1,ROW())>0,MeasureCalc(Table_PI[[#This Row],[Hide:\nFormula Name]],Table_PI[[#This Row],[Quantity]],Table_PI[[#This Row],[List 1]],Table_PI[[#This Row],[List 2]],Table_PI[[#This Row],[List 3]],Table_PI[[#This Row],[Size]],Table_PI[[#This Row],[Input 1]],Table_PI[[#This Row],[Input 2]],Table_PI[[#This Row],[Input 3]],Table_PI[[#This Row],[Input 4]],'Customer Information'!$AR$12,6,ROW()),\"No Rebate\"),\"No Rebate\"),0)","v":0},{"$f":"IF(Table_PI[[#This Row],[Hide:\nFormula Name]]<>\"\",IFERROR(IF(MeasureCalc(Table_PI[[#This Row],[Hide:\nFormula Name]],Table_PI[[#This Row],[Quantity]],Table_PI[[#This Row],[List 1]],Table_PI[[#This Row],[List 2]],Table_PI[[#This Row],[List 3]],Table_PI[[#This Row],[Size]],Table_PI[[#This Row],[Input 1]],Table_PI[[#This Row],[Input 2]],Table_PI[[#This Row],[Input 3]],Table_PI[[#This Row],[Input 4]],'Customer Information'!$AR$12,1,ROW())>0,MeasureCalc(Table_PI[[#This Row],[Hide:\nFormula Name]],Table_PI[[#This Row],[Quantity]],Table_PI[[#This Row],[List 1]],Table_PI[[#This Row],[List 2]],Table_PI[[#This Row],[List 3]],Table_PI[[#This Row],[Size]],Table_PI[[#This Row],[Input 1]],Table_PI[[#This Row],[Input 2]],Table_PI[[#This Row],[Input 3]],Table_PI[[#This Row],[Input 4]],'Customer Information'!$AR$12,7,ROW()),\"No Rebate\"),\"No Rebate\"),0)","v":0},{"$f":"IF(Table_PI[[#This Row],[Hide:\nFormula Name]]<>\"\",IFERROR(IF(MeasureCalc(Table_PI[[#This Row],[Hide:\nFormula Name]],Table_PI[[#This Row],[Quantity]],Table_PI[[#This Row],[List 1]],Table_PI[[#This Row],[List 2]],Table_PI[[#This Row],[List 3]],Table_PI[[#This Row],[Size]],Table_PI[[#This Row],[Input 1]],Table_PI[[#This Row],[Input 2]],Table_PI[[#This Row],[Input 3]],Table_PI[[#This Row],[Input 4]],'Customer Information'!$AR$12,1,ROW())>0,MeasureCalc(Table_PI[[#This Row],[Hide:\nFormula Name]],Table_PI[[#This Row],[Quantity]],Table_PI[[#This Row],[List 1]],Table_PI[[#This Row],[List 2]],Table_PI[[#This Row],[List 3]],Table_PI[[#This Row],[Size]],Table_PI[[#This Row],[Input 1]],Table_PI[[#This Row],[Input 2]],Table_PI[[#This Row],[Input 3]],Table_PI[[#This Row],[Input 4]],'Customer Information'!$AR$12,8,ROW()),\"No Rebate\"),\"No Rebate\"),0)","v":0},{"$f":"IF(Table_PI[[#This Row],[Hide:\nFormula Name]]<>\"\",IF(AND(Table_PI[[#This Row],[Hide:\nFormula Name]]<>\"\",OR(Table_PI[[#This Row],[Rebate]]>0,Table_PI[[#This Row],[Rebate]]=\"No Rebate\")),TRUE,\"MI: Line Item \" & $A388),\"\")","v":""}]
[{"$f":"IF(Table_PI[[#This Row],[Hide:\nFormula Name]]<>\"\",MAX($A$2:A388)+1,\"\")","v":""},null,null,null,null,null,null,null,null,null,null,null,null,null,null,{"$f":"IFERROR(VLOOKUP(Table_PI[[#This Row],[Measure]],'Equipment Lookups'!$C$3:$D$23,2,FALSE),\"\")","v":""},{"$f":"IF(Table_PI[[#This Row],[Hide:\nFormula Name]]<>\"\",IFERROR(IF(MeasureCalc(Table_PI[[#This Row],[Hide:\nFormula Name]],Table_PI[[#This Row],[Quantity]],Table_PI[[#This Row],[List 1]],Table_PI[[#This Row],[List 2]],Table_PI[[#This Row],[List 3]],Table_PI[[#This Row],[Size]],Table_PI[[#This Row],[Input 1]],Table_PI[[#This Row],[Input 2]],Table_PI[[#This Row],[Input 3]],Table_PI[[#This Row],[Input 4]],'Customer Information'!$AR$12,1,ROW())>0,MeasureCalc(Table_PI[[#This Row],[Hide:\nFormula Name]],Table_PI[[#This Row],[Quantity]],Table_PI[[#This Row],[List 1]],Table_PI[[#This Row],[List 2]],Table_PI[[#This Row],[List 3]],Table_PI[[#This Row],[Size]],Table_PI[[#This Row],[Input 1]],Table_PI[[#This Row],[Input 2]],Table_PI[[#This Row],[Input 3]],Table_PI[[#This Row],[Input 4]],'Customer Information'!$AR$12,1,ROW()),\"No Rebate\"),\"No Rebate\"),0)","v":0},{"$f":"IF(Table_PI[[#This Row],[Hide:\nFormula Name]]<>\"\",IFERROR(IF(MeasureCalc(Table_PI[[#This Row],[Hide:\nFormula Name]],Table_PI[[#This Row],[Quantity]],Table_PI[[#This Row],[List 1]],Table_PI[[#This Row],[List 2]],Table_PI[[#This Row],[List 3]],Table_PI[[#This Row],[Size]],Table_PI[[#This Row],[Input 1]],Table_PI[[#This Row],[Input 2]],Table_PI[[#This Row],[Input 3]],Table_PI[[#This Row],[Input 4]],'Customer Information'!$AR$12,1,ROW())>0,MeasureCalc(Table_PI[[#This Row],[Hide:\nFormula Name]],Table_PI[[#This Row],[Quantity]],Table_PI[[#This Row],[List 1]],Table_PI[[#This Row],[List 2]],Table_PI[[#This Row],[List 3]],Table_PI[[#This Row],[Size]],Table_PI[[#This Row],[Input 1]],Table_PI[[#This Row],[Input 2]],Table_PI[[#This Row],[Input 3]],Table_PI[[#This Row],[Input 4]],'Customer Information'!$AR$12,2,ROW()),\"No Rebate\"),\"No Rebate\"),0)","v":0},{"$f":"IF(Table_PI[[#This Row],[Hide:\nFormula Name]]<>\"\",IFERROR(IF(MeasureCalc(Table_PI[[#This Row],[Hide:\nFormula Name]],Table_PI[[#This Row],[Quantity]],Table_PI[[#This Row],[List 1]],Table_PI[[#This Row],[List 2]],Table_PI[[#This Row],[List 3]],Table_PI[[#This Row],[Size]],Table_PI[[#This Row],[Input 1]],Table_PI[[#This Row],[Input 2]],Table_PI[[#This Row],[Input 3]],Table_PI[[#This Row],[Input 4]],'Customer Information'!$AR$12,1,ROW())>0,MeasureCalc(Table_PI[[#This Row],[Hide:\nFormula Name]],Table_PI[[#This Row],[Quantity]],Table_PI[[#This Row],[List 1]],Table_PI[[#This Row],[List 2]],Table_PI[[#This Row],[List 3]],Table_PI[[#This Row],[Size]],Table_PI[[#This Row],[Input 1]],Table_PI[[#This Row],[Input 2]],Table_PI[[#This Row],[Input 3]],Table_PI[[#This Row],[Input 4]],'Customer Information'!$AR$12,3,ROW()),\"No Rebate\"),\"No Rebate\"),0)","v":0},{"$f":"IF(Table_PI[[#This Row],[Hide:\nFormula Name]]<>\"\",IFERROR(IF(MeasureCalc(Table_PI[[#This Row],[Hide:\nFormula Name]],Table_PI[[#This Row],[Quantity]],Table_PI[[#This Row],[List 1]],Table_PI[[#This Row],[List 2]],Table_PI[[#This Row],[List 3]],Table_PI[[#This Row],[Size]],Table_PI[[#This Row],[Input 1]],Table_PI[[#This Row],[Input 2]],Table_PI[[#This Row],[Input 3]],Table_PI[[#This Row],[Input 4]],'Customer Information'!$AR$12,1,ROW())>0,MeasureCalc(Table_PI[[#This Row],[Hide:\nFormula Name]],Table_PI[[#This Row],[Quantity]],Table_PI[[#This Row],[List 1]],Table_PI[[#This Row],[List 2]],Table_PI[[#This Row],[List 3]],Table_PI[[#This Row],[Size]],Table_PI[[#This Row],[Input 1]],Table_PI[[#This Row],[Input 2]],Table_PI[[#This Row],[Input 3]],Table_PI[[#This Row],[Input 4]],'Customer Information'!$AR$12,4,ROW()),\"No Rebate\"),\"No Rebate\"),0)","v":0},{"$f":"IF(Table_PI[[#This Row],[Hide:\nFormula Name]]<>\"\",IFERROR(IF(MeasureCalc(Table_PI[[#This Row],[Hide:\nFormula Name]],Table_PI[[#This Row],[Quantity]],Table_PI[[#This Row],[List 1]],Table_PI[[#This Row],[List 2]],Table_PI[[#This Row],[List 3]],Table_PI[[#This Row],[Size]],Table_PI[[#This Row],[Input 1]],Table_PI[[#This Row],[Input 2]],Table_PI[[#This Row],[Input 3]],Table_PI[[#This Row],[Input 4]],'Customer Information'!$AR$12,1,ROW())>0,MeasureCalc(Table_PI[[#This Row],[Hide:\nFormula Name]],Table_PI[[#This Row],[Quantity]],Table_PI[[#This Row],[List 1]],Table_PI[[#This Row],[List 2]],Table_PI[[#This Row],[List 3]],Table_PI[[#This Row],[Size]],Table_PI[[#This Row],[Input 1]],Table_PI[[#This Row],[Input 2]],Table_PI[[#This Row],[Input 3]],Table_PI[[#This Row],[Input 4]],'Customer Information'!$AR$12,5,ROW()),\"No Rebate\"),\"No Rebate\"),0)","v":0},{"$f":"IF(Table_PI[[#This Row],[Hide:\nFormula Name]]<>\"\",IFERROR(IF(MeasureCalc(Table_PI[[#This Row],[Hide:\nFormula Name]],Table_PI[[#This Row],[Quantity]],Table_PI[[#This Row],[List 1]],Table_PI[[#This Row],[List 2]],Table_PI[[#This Row],[List 3]],Table_PI[[#This Row],[Size]],Table_PI[[#This Row],[Input 1]],Table_PI[[#This Row],[Input 2]],Table_PI[[#This Row],[Input 3]],Table_PI[[#This Row],[Input 4]],'Customer Information'!$AR$12,1,ROW())>0,MeasureCalc(Table_PI[[#This Row],[Hide:\nFormula Name]],Table_PI[[#This Row],[Quantity]],Table_PI[[#This Row],[List 1]],Table_PI[[#This Row],[List 2]],Table_PI[[#This Row],[List 3]],Table_PI[[#This Row],[Size]],Table_PI[[#This Row],[Input 1]],Table_PI[[#This Row],[Input 2]],Table_PI[[#This Row],[Input 3]],Table_PI[[#This Row],[Input 4]],'Customer Information'!$AR$12,6,ROW()),\"No Rebate\"),\"No Rebate\"),0)","v":0},{"$f":"IF(Table_PI[[#This Row],[Hide:\nFormula Name]]<>\"\",IFERROR(IF(MeasureCalc(Table_PI[[#This Row],[Hide:\nFormula Name]],Table_PI[[#This Row],[Quantity]],Table_PI[[#This Row],[List 1]],Table_PI[[#This Row],[List 2]],Table_PI[[#This Row],[List 3]],Table_PI[[#This Row],[Size]],Table_PI[[#This Row],[Input 1]],Table_PI[[#This Row],[Input 2]],Table_PI[[#This Row],[Input 3]],Table_PI[[#This Row],[Input 4]],'Customer Information'!$AR$12,1,ROW())>0,MeasureCalc(Table_PI[[#This Row],[Hide:\nFormula Name]],Table_PI[[#This Row],[Quantity]],Table_PI[[#This Row],[List 1]],Table_PI[[#This Row],[List 2]],Table_PI[[#This Row],[List 3]],Table_PI[[#This Row],[Size]],Table_PI[[#This Row],[Input 1]],Table_PI[[#This Row],[Input 2]],Table_PI[[#This Row],[Input 3]],Table_PI[[#This Row],[Input 4]],'Customer Information'!$AR$12,7,ROW()),\"No Rebate\"),\"No Rebate\"),0)","v":0},{"$f":"IF(Table_PI[[#This Row],[Hide:\nFormula Name]]<>\"\",IFERROR(IF(MeasureCalc(Table_PI[[#This Row],[Hide:\nFormula Name]],Table_PI[[#This Row],[Quantity]],Table_PI[[#This Row],[List 1]],Table_PI[[#This Row],[List 2]],Table_PI[[#This Row],[List 3]],Table_PI[[#This Row],[Size]],Table_PI[[#This Row],[Input 1]],Table_PI[[#This Row],[Input 2]],Table_PI[[#This Row],[Input 3]],Table_PI[[#This Row],[Input 4]],'Customer Information'!$AR$12,1,ROW())>0,MeasureCalc(Table_PI[[#This Row],[Hide:\nFormula Name]],Table_PI[[#This Row],[Quantity]],Table_PI[[#This Row],[List 1]],Table_PI[[#This Row],[List 2]],Table_PI[[#This Row],[List 3]],Table_PI[[#This Row],[Size]],Table_PI[[#This Row],[Input 1]],Table_PI[[#This Row],[Input 2]],Table_PI[[#This Row],[Input 3]],Table_PI[[#This Row],[Input 4]],'Customer Information'!$AR$12,8,ROW()),\"No Rebate\"),\"No Rebate\"),0)","v":0},{"$f":"IF(Table_PI[[#This Row],[Hide:\nFormula Name]]<>\"\",IF(AND(Table_PI[[#This Row],[Hide:\nFormula Name]]<>\"\",OR(Table_PI[[#This Row],[Rebate]]>0,Table_PI[[#This Row],[Rebate]]=\"No Rebate\")),TRUE,\"MI: Line Item \" & $A389),\"\")","v":""}]
[{"$f":"IF(Table_PI[[#This Row],[Hide:\nFormula Name]]<>\"\",MAX($A$2:A389)+1,\"\")","v":""},null,null,null,null,null,null,null,null,null,null,null,null,null,null,{"$f":"IFERROR(VLOOKUP(Table_PI[[#This Row],[Measure]],'Equipment Lookups'!$C$3:$D$23,2,FALSE),\"\")","v":""},{"$f":"IF(Table_PI[[#This Row],[Hide:\nFormula Name]]<>\"\",IFERROR(IF(MeasureCalc(Table_PI[[#This Row],[Hide:\nFormula Name]],Table_PI[[#This Row],[Quantity]],Table_PI[[#This Row],[List 1]],Table_PI[[#This Row],[List 2]],Table_PI[[#This Row],[List 3]],Table_PI[[#This Row],[Size]],Table_PI[[#This Row],[Input 1]],Table_PI[[#This Row],[Input 2]],Table_PI[[#This Row],[Input 3]],Table_PI[[#This Row],[Input 4]],'Customer Information'!$AR$12,1,ROW())>0,MeasureCalc(Table_PI[[#This Row],[Hide:\nFormula Name]],Table_PI[[#This Row],[Quantity]],Table_PI[[#This Row],[List 1]],Table_PI[[#This Row],[List 2]],Table_PI[[#This Row],[List 3]],Table_PI[[#This Row],[Size]],Table_PI[[#This Row],[Input 1]],Table_PI[[#This Row],[Input 2]],Table_PI[[#This Row],[Input 3]],Table_PI[[#This Row],[Input 4]],'Customer Information'!$AR$12,1,ROW()),\"No Rebate\"),\"No Rebate\"),0)","v":0},{"$f":"IF(Table_PI[[#This Row],[Hide:\nFormula Name]]<>\"\",IFERROR(IF(MeasureCalc(Table_PI[[#This Row],[Hide:\nFormula Name]],Table_PI[[#This Row],[Quantity]],Table_PI[[#This Row],[List 1]],Table_PI[[#This Row],[List 2]],Table_PI[[#This Row],[List 3]],Table_PI[[#This Row],[Size]],Table_PI[[#This Row],[Input 1]],Table_PI[[#This Row],[Input 2]],Table_PI[[#This Row],[Input 3]],Table_PI[[#This Row],[Input 4]],'Customer Information'!$AR$12,1,ROW())>0,MeasureCalc(Table_PI[[#This Row],[Hide:\nFormula Name]],Table_PI[[#This Row],[Quantity]],Table_PI[[#This Row],[List 1]],Table_PI[[#This Row],[List 2]],Table_PI[[#This Row],[List 3]],Table_PI[[#This Row],[Size]],Table_PI[[#This Row],[Input 1]],Table_PI[[#This Row],[Input 2]],Table_PI[[#This Row],[Input 3]],Table_PI[[#This Row],[Input 4]],'Customer Information'!$AR$12,2,ROW()),\"No Rebate\"),\"No Rebate\"),0)","v":0},{"$f":"IF(Table_PI[[#This Row],[Hide:\nFormula Name]]<>\"\",IFERROR(IF(MeasureCalc(Table_PI[[#This Row],[Hide:\nFormula Name]],Table_PI[[#This Row],[Quantity]],Table_PI[[#This Row],[List 1]],Table_PI[[#This Row],[List 2]],Table_PI[[#This Row],[List 3]],Table_PI[[#This Row],[Size]],Table_PI[[#This Row],[Input 1]],Table_PI[[#This Row],[Input 2]],Table_PI[[#This Row],[Input 3]],Table_PI[[#This Row],[Input 4]],'Customer Information'!$AR$12,1,ROW())>0,MeasureCalc(Table_PI[[#This Row],[Hide:\nFormula Name]],Table_PI[[#This Row],[Quantity]],Table_PI[[#This Row],[List 1]],Table_PI[[#This Row],[List 2]],Table_PI[[#This Row],[List 3]],Table_PI[[#This Row],[Size]],Table_PI[[#This Row],[Input 1]],Table_PI[[#This Row],[Input 2]],Table_PI[[#This Row],[Input 3]],Table_PI[[#This Row],[Input 4]],'Customer Information'!$AR$12,3,ROW()),\"No Rebate\"),\"No Rebate\"),0)","v":0},{"$f":"IF(Table_PI[[#This Row],[Hide:\nFormula Name]]<>\"\",IFERROR(IF(MeasureCalc(Table_PI[[#This Row],[Hide:\nFormula Name]],Table_PI[[#This Row],[Quantity]],Table_PI[[#This Row],[List 1]],Table_PI[[#This Row],[List 2]],Table_PI[[#This Row],[List 3]],Table_PI[[#This Row],[Size]],Table_PI[[#This Row],[Input 1]],Table_PI[[#This Row],[Input 2]],Table_PI[[#This Row],[Input 3]],Table_PI[[#This Row],[Input 4]],'Customer Information'!$AR$12,1,ROW())>0,MeasureCalc(Table_PI[[#This Row],[Hide:\nFormula Name]],Table_PI[[#This Row],[Quantity]],Table_PI[[#This Row],[List 1]],Table_PI[[#This Row],[List 2]],Table_PI[[#This Row],[List 3]],Table_PI[[#This Row],[Size]],Table_PI[[#This Row],[Input 1]],Table_PI[[#This Row],[Input 2]],Table_PI[[#This Row],[Input 3]],Table_PI[[#This Row],[Input 4]],'Customer Information'!$AR$12,4,ROW()),\"No Rebate\"),\"No Rebate\"),0)","v":0},{"$f":"IF(Table_PI[[#This Row],[Hide:\nFormula Name]]<>\"\",IFERROR(IF(MeasureCalc(Table_PI[[#This Row],[Hide:\nFormula Name]],Table_PI[[#This Row],[Quantity]],Table_PI[[#This Row],[List 1]],Table_PI[[#This Row],[List 2]],Table_PI[[#This Row],[List 3]],Table_PI[[#This Row],[Size]],Table_PI[[#This Row],[Input 1]],Table_PI[[#This Row],[Input 2]],Table_PI[[#This Row],[Input 3]],Table_PI[[#This Row],[Input 4]],'Customer Information'!$AR$12,1,ROW())>0,MeasureCalc(Table_PI[[#This Row],[Hide:\nFormula Name]],Table_PI[[#This Row],[Quantity]],Table_PI[[#This Row],[List 1]],Table_PI[[#This Row],[List 2]],Table_PI[[#This Row],[List 3]],Table_PI[[#This Row],[Size]],Table_PI[[#This Row],[Input 1]],Table_PI[[#This Row],[Input 2]],Table_PI[[#This Row],[Input 3]],Table_PI[[#This Row],[Input 4]],'Customer Information'!$AR$12,5,ROW()),\"No Rebate\"),\"No Rebate\"),0)","v":0},{"$f":"IF(Table_PI[[#This Row],[Hide:\nFormula Name]]<>\"\",IFERROR(IF(MeasureCalc(Table_PI[[#This Row],[Hide:\nFormula Name]],Table_PI[[#This Row],[Quantity]],Table_PI[[#This Row],[List 1]],Table_PI[[#This Row],[List 2]],Table_PI[[#This Row],[List 3]],Table_PI[[#This Row],[Size]],Table_PI[[#This Row],[Input 1]],Table_PI[[#This Row],[Input 2]],Table_PI[[#This Row],[Input 3]],Table_PI[[#This Row],[Input 4]],'Customer Information'!$AR$12,1,ROW())>0,MeasureCalc(Table_PI[[#This Row],[Hide:\nFormula Name]],Table_PI[[#This Row],[Quantity]],Table_PI[[#This Row],[List 1]],Table_PI[[#This Row],[List 2]],Table_PI[[#This Row],[List 3]],Table_PI[[#This Row],[Size]],Table_PI[[#This Row],[Input 1]],Table_PI[[#This Row],[Input 2]],Table_PI[[#This Row],[Input 3]],Table_PI[[#This Row],[Input 4]],'Customer Information'!$AR$12,6,ROW()),\"No Rebate\"),\"No Rebate\"),0)","v":0},{"$f":"IF(Table_PI[[#This Row],[Hide:\nFormula Name]]<>\"\",IFERROR(IF(MeasureCalc(Table_PI[[#This Row],[Hide:\nFormula Name]],Table_PI[[#This Row],[Quantity]],Table_PI[[#This Row],[List 1]],Table_PI[[#This Row],[List 2]],Table_PI[[#This Row],[List 3]],Table_PI[[#This Row],[Size]],Table_PI[[#This Row],[Input 1]],Table_PI[[#This Row],[Input 2]],Table_PI[[#This Row],[Input 3]],Table_PI[[#This Row],[Input 4]],'Customer Information'!$AR$12,1,ROW())>0,MeasureCalc(Table_PI[[#This Row],[Hide:\nFormula Name]],Table_PI[[#This Row],[Quantity]],Table_PI[[#This Row],[List 1]],Table_PI[[#This Row],[List 2]],Table_PI[[#This Row],[List 3]],Table_PI[[#This Row],[Size]],Table_PI[[#This Row],[Input 1]],Table_PI[[#This Row],[Input 2]],Table_PI[[#This Row],[Input 3]],Table_PI[[#This Row],[Input 4]],'Customer Information'!$AR$12,7,ROW()),\"No Rebate\"),\"No Rebate\"),0)","v":0},{"$f":"IF(Table_PI[[#This Row],[Hide:\nFormula Name]]<>\"\",IFERROR(IF(MeasureCalc(Table_PI[[#This Row],[Hide:\nFormula Name]],Table_PI[[#This Row],[Quantity]],Table_PI[[#This Row],[List 1]],Table_PI[[#This Row],[List 2]],Table_PI[[#This Row],[List 3]],Table_PI[[#This Row],[Size]],Table_PI[[#This Row],[Input 1]],Table_PI[[#This Row],[Input 2]],Table_PI[[#This Row],[Input 3]],Table_PI[[#This Row],[Input 4]],'Customer Information'!$AR$12,1,ROW())>0,MeasureCalc(Table_PI[[#This Row],[Hide:\nFormula Name]],Table_PI[[#This Row],[Quantity]],Table_PI[[#This Row],[List 1]],Table_PI[[#This Row],[List 2]],Table_PI[[#This Row],[List 3]],Table_PI[[#This Row],[Size]],Table_PI[[#This Row],[Input 1]],Table_PI[[#This Row],[Input 2]],Table_PI[[#This Row],[Input 3]],Table_PI[[#This Row],[Input 4]],'Customer Information'!$AR$12,8,ROW()),\"No Rebate\"),\"No Rebate\"),0)","v":0},{"$f":"IF(Table_PI[[#This Row],[Hide:\nFormula Name]]<>\"\",IF(AND(Table_PI[[#This Row],[Hide:\nFormula Name]]<>\"\",OR(Table_PI[[#This Row],[Rebate]]>0,Table_PI[[#This Row],[Rebate]]=\"No Rebate\")),TRUE,\"MI: Line Item \" & $A390),\"\")","v":""}]
[{"$f":"IF(Table_PI[[#This Row],[Hide:\nFormula Name]]<>\"\",MAX($A$2:A390)+1,\"\")","v":""},null,null,null,null,null,null,null,null,null,null,null,null,null,null,{"$f":"IFERROR(VLOOKUP(Table_PI[[#This Row],[Measure]],'Equipment Lookups'!$C$3:$D$23,2,FALSE),\"\")","v":""},{"$f":"IF(Table_PI[[#This Row],[Hide:\nFormula Name]]<>\"\",IFERROR(IF(MeasureCalc(Table_PI[[#This Row],[Hide:\nFormula Name]],Table_PI[[#This Row],[Quantity]],Table_PI[[#This Row],[List 1]],Table_PI[[#This Row],[List 2]],Table_PI[[#This Row],[List 3]],Table_PI[[#This Row],[Size]],Table_PI[[#This Row],[Input 1]],Table_PI[[#This Row],[Input 2]],Table_PI[[#This Row],[Input 3]],Table_PI[[#This Row],[Input 4]],'Customer Information'!$AR$12,1,ROW())>0,MeasureCalc(Table_PI[[#This Row],[Hide:\nFormula Name]],Table_PI[[#This Row],[Quantity]],Table_PI[[#This Row],[List 1]],Table_PI[[#This Row],[List 2]],Table_PI[[#This Row],[List 3]],Table_PI[[#This Row],[Size]],Table_PI[[#This Row],[Input 1]],Table_PI[[#This Row],[Input 2]],Table_PI[[#This Row],[Input 3]],Table_PI[[#This Row],[Input 4]],'Customer Information'!$AR$12,1,ROW()),\"No Rebate\"),\"No Rebate\"),0)","v":0},{"$f":"IF(Table_PI[[#This Row],[Hide:\nFormula Name]]<>\"\",IFERROR(IF(MeasureCalc(Table_PI[[#This Row],[Hide:\nFormula Name]],Table_PI[[#This Row],[Quantity]],Table_PI[[#This Row],[List 1]],Table_PI[[#This Row],[List 2]],Table_PI[[#This Row],[List 3]],Table_PI[[#This Row],[Size]],Table_PI[[#This Row],[Input 1]],Table_PI[[#This Row],[Input 2]],Table_PI[[#This Row],[Input 3]],Table_PI[[#This Row],[Input 4]],'Customer Information'!$AR$12,1,ROW())>0,MeasureCalc(Table_PI[[#This Row],[Hide:\nFormula Name]],Table_PI[[#This Row],[Quantity]],Table_PI[[#This Row],[List 1]],Table_PI[[#This Row],[List 2]],Table_PI[[#This Row],[List 3]],Table_PI[[#This Row],[Size]],Table_PI[[#This Row],[Input 1]],Table_PI[[#This Row],[Input 2]],Table_PI[[#This Row],[Input 3]],Table_PI[[#This Row],[Input 4]],'Customer Information'!$AR$12,2,ROW()),\"No Rebate\"),\"No Rebate\"),0)","v":0},{"$f":"IF(Table_PI[[#This Row],[Hide:\nFormula Name]]<>\"\",IFERROR(IF(MeasureCalc(Table_PI[[#This Row],[Hide:\nFormula Name]],Table_PI[[#This Row],[Quantity]],Table_PI[[#This Row],[List 1]],Table_PI[[#This Row],[List 2]],Table_PI[[#This Row],[List 3]],Table_PI[[#This Row],[Size]],Table_PI[[#This Row],[Input 1]],Table_PI[[#This Row],[Input 2]],Table_PI[[#This Row],[Input 3]],Table_PI[[#This Row],[Input 4]],'Customer Information'!$AR$12,1,ROW())>0,MeasureCalc(Table_PI[[#This Row],[Hide:\nFormula Name]],Table_PI[[#This Row],[Quantity]],Table_PI[[#This Row],[List 1]],Table_PI[[#This Row],[List 2]],Table_PI[[#This Row],[List 3]],Table_PI[[#This Row],[Size]],Table_PI[[#This Row],[Input 1]],Table_PI[[#This Row],[Input 2]],Table_PI[[#This Row],[Input 3]],Table_PI[[#This Row],[Input 4]],'Customer Information'!$AR$12,3,ROW()),\"No Rebate\"),\"No Rebate\"),0)","v":0},{"$f":"IF(Table_PI[[#This Row],[Hide:\nFormula Name]]<>\"\",IFERROR(IF(MeasureCalc(Table_PI[[#This Row],[Hide:\nFormula Name]],Table_PI[[#This Row],[Quantity]],Table_PI[[#This Row],[List 1]],Table_PI[[#This Row],[List 2]],Table_PI[[#This Row],[List 3]],Table_PI[[#This Row],[Size]],Table_PI[[#This Row],[Input 1]],Table_PI[[#This Row],[Input 2]],Table_PI[[#This Row],[Input 3]],Table_PI[[#This Row],[Input 4]],'Customer Information'!$AR$12,1,ROW())>0,MeasureCalc(Table_PI[[#This Row],[Hide:\nFormula Name]],Table_PI[[#This Row],[Quantity]],Table_PI[[#This Row],[List 1]],Table_PI[[#This Row],[List 2]],Table_PI[[#This Row],[List 3]],Table_PI[[#This Row],[Size]],Table_PI[[#This Row],[Input 1]],Table_PI[[#This Row],[Input 2]],Table_PI[[#This Row],[Input 3]],Table_PI[[#This Row],[Input 4]],'Customer Information'!$AR$12,4,ROW()),\"No Rebate\"),\"No Rebate\"),0)","v":0},{"$f":"IF(Table_PI[[#This Row],[Hide:\nFormula Name]]<>\"\",IFERROR(IF(MeasureCalc(Table_PI[[#This Row],[Hide:\nFormula Name]],Table_PI[[#This Row],[Quantity]],Table_PI[[#This Row],[List 1]],Table_PI[[#This Row],[List 2]],Table_PI[[#This Row],[List 3]],Table_PI[[#This Row],[Size]],Table_PI[[#This Row],[Input 1]],Table_PI[[#This Row],[Input 2]],Table_PI[[#This Row],[Input 3]],Table_PI[[#This Row],[Input 4]],'Customer Information'!$AR$12,1,ROW())>0,MeasureCalc(Table_PI[[#This Row],[Hide:\nFormula Name]],Table_PI[[#This Row],[Quantity]],Table_PI[[#This Row],[List 1]],Table_PI[[#This Row],[List 2]],Table_PI[[#This Row],[List 3]],Table_PI[[#This Row],[Size]],Table_PI[[#This Row],[Input 1]],Table_PI[[#This Row],[Input 2]],Table_PI[[#This Row],[Input 3]],Table_PI[[#This Row],[Input 4]],'Customer Information'!$AR$12,5,ROW()),\"No Rebate\"),\"No Rebate\"),0)","v":0},{"$f":"IF(Table_PI[[#This Row],[Hide:\nFormula Name]]<>\"\",IFERROR(IF(MeasureCalc(Table_PI[[#This Row],[Hide:\nFormula Name]],Table_PI[[#This Row],[Quantity]],Table_PI[[#This Row],[List 1]],Table_PI[[#This Row],[List 2]],Table_PI[[#This Row],[List 3]],Table_PI[[#This Row],[Size]],Table_PI[[#This Row],[Input 1]],Table_PI[[#This Row],[Input 2]],Table_PI[[#This Row],[Input 3]],Table_PI[[#This Row],[Input 4]],'Customer Information'!$AR$12,1,ROW())>0,MeasureCalc(Table_PI[[#This Row],[Hide:\nFormula Name]],Table_PI[[#This Row],[Quantity]],Table_PI[[#This Row],[List 1]],Table_PI[[#This Row],[List 2]],Table_PI[[#This Row],[List 3]],Table_PI[[#This Row],[Size]],Table_PI[[#This Row],[Input 1]],Table_PI[[#This Row],[Input 2]],Table_PI[[#This Row],[Input 3]],Table_PI[[#This Row],[Input 4]],'Customer Information'!$AR$12,6,ROW()),\"No Rebate\"),\"No Rebate\"),0)","v":0},{"$f":"IF(Table_PI[[#This Row],[Hide:\nFormula Name]]<>\"\",IFERROR(IF(MeasureCalc(Table_PI[[#This Row],[Hide:\nFormula Name]],Table_PI[[#This Row],[Quantity]],Table_PI[[#This Row],[List 1]],Table_PI[[#This Row],[List 2]],Table_PI[[#This Row],[List 3]],Table_PI[[#This Row],[Size]],Table_PI[[#This Row],[Input 1]],Table_PI[[#This Row],[Input 2]],Table_PI[[#This Row],[Input 3]],Table_PI[[#This Row],[Input 4]],'Customer Information'!$AR$12,1,ROW())>0,MeasureCalc(Table_PI[[#This Row],[Hide:\nFormula Name]],Table_PI[[#This Row],[Quantity]],Table_PI[[#This Row],[List 1]],Table_PI[[#This Row],[List 2]],Table_PI[[#This Row],[List 3]],Table_PI[[#This Row],[Size]],Table_PI[[#This Row],[Input 1]],Table_PI[[#This Row],[Input 2]],Table_PI[[#This Row],[Input 3]],Table_PI[[#This Row],[Input 4]],'Customer Information'!$AR$12,7,ROW()),\"No Rebate\"),\"No Rebate\"),0)","v":0},{"$f":"IF(Table_PI[[#This Row],[Hide:\nFormula Name]]<>\"\",IFERROR(IF(MeasureCalc(Table_PI[[#This Row],[Hide:\nFormula Name]],Table_PI[[#This Row],[Quantity]],Table_PI[[#This Row],[List 1]],Table_PI[[#This Row],[List 2]],Table_PI[[#This Row],[List 3]],Table_PI[[#This Row],[Size]],Table_PI[[#This Row],[Input 1]],Table_PI[[#This Row],[Input 2]],Table_PI[[#This Row],[Input 3]],Table_PI[[#This Row],[Input 4]],'Customer Information'!$AR$12,1,ROW())>0,MeasureCalc(Table_PI[[#This Row],[Hide:\nFormula Name]],Table_PI[[#This Row],[Quantity]],Table_PI[[#This Row],[List 1]],Table_PI[[#This Row],[List 2]],Table_PI[[#This Row],[List 3]],Table_PI[[#This Row],[Size]],Table_PI[[#This Row],[Input 1]],Table_PI[[#This Row],[Input 2]],Table_PI[[#This Row],[Input 3]],Table_PI[[#This Row],[Input 4]],'Customer Information'!$AR$12,8,ROW()),\"No Rebate\"),\"No Rebate\"),0)","v":0},{"$f":"IF(Table_PI[[#This Row],[Hide:\nFormula Name]]<>\"\",IF(AND(Table_PI[[#This Row],[Hide:\nFormula Name]]<>\"\",OR(Table_PI[[#This Row],[Rebate]]>0,Table_PI[[#This Row],[Rebate]]=\"No Rebate\")),TRUE,\"MI: Line Item \" & $A391),\"\")","v":""}]
[{"$f":"IF(Table_PI[[#This Row],[Hide:\nFormula Name]]<>\"\",MAX($A$2:A391)+1,\"\")","v":""},null,null,null,null,null,null,null,null,null,null,null,null,null,null,{"$f":"IFERROR(VLOOKUP(Table_PI[[#This Row],[Measure]],'Equipment Lookups'!$C$3:$D$23,2,FALSE),\"\")","v":""},{"$f":"IF(Table_PI[[#This Row],[Hide:\nFormula Name]]<>\"\",IFERROR(IF(MeasureCalc(Table_PI[[#This Row],[Hide:\nFormula Name]],Table_PI[[#This Row],[Quantity]],Table_PI[[#This Row],[List 1]],Table_PI[[#This Row],[List 2]],Table_PI[[#This Row],[List 3]],Table_PI[[#This Row],[Size]],Table_PI[[#This Row],[Input 1]],Table_PI[[#This Row],[Input 2]],Table_PI[[#This Row],[Input 3]],Table_PI[[#This Row],[Input 4]],'Customer Information'!$AR$12,1,ROW())>0,MeasureCalc(Table_PI[[#This Row],[Hide:\nFormula Name]],Table_PI[[#This Row],[Quantity]],Table_PI[[#This Row],[List 1]],Table_PI[[#This Row],[List 2]],Table_PI[[#This Row],[List 3]],Table_PI[[#This Row],[Size]],Table_PI[[#This Row],[Input 1]],Table_PI[[#This Row],[Input 2]],Table_PI[[#This Row],[Input 3]],Table_PI[[#This Row],[Input 4]],'Customer Information'!$AR$12,1,ROW()),\"No Rebate\"),\"No Rebate\"),0)","v":0},{"$f":"IF(Table_PI[[#This Row],[Hide:\nFormula Name]]<>\"\",IFERROR(IF(MeasureCalc(Table_PI[[#This Row],[Hide:\nFormula Name]],Table_PI[[#This Row],[Quantity]],Table_PI[[#This Row],[List 1]],Table_PI[[#This Row],[List 2]],Table_PI[[#This Row],[List 3]],Table_PI[[#This Row],[Size]],Table_PI[[#This Row],[Input 1]],Table_PI[[#This Row],[Input 2]],Table_PI[[#This Row],[Input 3]],Table_PI[[#This Row],[Input 4]],'Customer Information'!$AR$12,1,ROW())>0,MeasureCalc(Table_PI[[#This Row],[Hide:\nFormula Name]],Table_PI[[#This Row],[Quantity]],Table_PI[[#This Row],[List 1]],Table_PI[[#This Row],[List 2]],Table_PI[[#This Row],[List 3]],Table_PI[[#This Row],[Size]],Table_PI[[#This Row],[Input 1]],Table_PI[[#This Row],[Input 2]],Table_PI[[#This Row],[Input 3]],Table_PI[[#This Row],[Input 4]],'Customer Information'!$AR$12,2,ROW()),\"No Rebate\"),\"No Rebate\"),0)","v":0},{"$f":"IF(Table_PI[[#This Row],[Hide:\nFormula Name]]<>\"\",IFERROR(IF(MeasureCalc(Table_PI[[#This Row],[Hide:\nFormula Name]],Table_PI[[#This Row],[Quantity]],Table_PI[[#This Row],[List 1]],Table_PI[[#This Row],[List 2]],Table_PI[[#This Row],[List 3]],Table_PI[[#This Row],[Size]],Table_PI[[#This Row],[Input 1]],Table_PI[[#This Row],[Input 2]],Table_PI[[#This Row],[Input 3]],Table_PI[[#This Row],[Input 4]],'Customer Information'!$AR$12,1,ROW())>0,MeasureCalc(Table_PI[[#This Row],[Hide:\nFormula Name]],Table_PI[[#This Row],[Quantity]],Table_PI[[#This Row],[List 1]],Table_PI[[#This Row],[List 2]],Table_PI[[#This Row],[List 3]],Table_PI[[#This Row],[Size]],Table_PI[[#This Row],[Input 1]],Table_PI[[#This Row],[Input 2]],Table_PI[[#This Row],[Input 3]],Table_PI[[#This Row],[Input 4]],'Customer Information'!$AR$12,3,ROW()),\"No Rebate\"),\"No Rebate\"),0)","v":0},{"$f":"IF(Table_PI[[#This Row],[Hide:\nFormula Name]]<>\"\",IFERROR(IF(MeasureCalc(Table_PI[[#This Row],[Hide:\nFormula Name]],Table_PI[[#This Row],[Quantity]],Table_PI[[#This Row],[List 1]],Table_PI[[#This Row],[List 2]],Table_PI[[#This Row],[List 3]],Table_PI[[#This Row],[Size]],Table_PI[[#This Row],[Input 1]],Table_PI[[#This Row],[Input 2]],Table_PI[[#This Row],[Input 3]],Table_PI[[#This Row],[Input 4]],'Customer Information'!$AR$12,1,ROW())>0,MeasureCalc(Table_PI[[#This Row],[Hide:\nFormula Name]],Table_PI[[#This Row],[Quantity]],Table_PI[[#This Row],[List 1]],Table_PI[[#This Row],[List 2]],Table_PI[[#This Row],[List 3]],Table_PI[[#This Row],[Size]],Table_PI[[#This Row],[Input 1]],Table_PI[[#This Row],[Input 2]],Table_PI[[#This Row],[Input 3]],Table_PI[[#This Row],[Input 4]],'Customer Information'!$AR$12,4,ROW()),\"No Rebate\"),\"No Rebate\"),0)","v":0},{"$f":"IF(Table_PI[[#This Row],[Hide:\nFormula Name]]<>\"\",IFERROR(IF(MeasureCalc(Table_PI[[#This Row],[Hide:\nFormula Name]],Table_PI[[#This Row],[Quantity]],Table_PI[[#This Row],[List 1]],Table_PI[[#This Row],[List 2]],Table_PI[[#This Row],[List 3]],Table_PI[[#This Row],[Size]],Table_PI[[#This Row],[Input 1]],Table_PI[[#This Row],[Input 2]],Table_PI[[#This Row],[Input 3]],Table_PI[[#This Row],[Input 4]],'Customer Information'!$AR$12,1,ROW())>0,MeasureCalc(Table_PI[[#This Row],[Hide:\nFormula Name]],Table_PI[[#This Row],[Quantity]],Table_PI[[#This Row],[List 1]],Table_PI[[#This Row],[List 2]],Table_PI[[#This Row],[List 3]],Table_PI[[#This Row],[Size]],Table_PI[[#This Row],[Input 1]],Table_PI[[#This Row],[Input 2]],Table_PI[[#This Row],[Input 3]],Table_PI[[#This Row],[Input 4]],'Customer Information'!$AR$12,5,ROW()),\"No Rebate\"),\"No Rebate\"),0)","v":0},{"$f":"IF(Table_PI[[#This Row],[Hide:\nFormula Name]]<>\"\",IFERROR(IF(MeasureCalc(Table_PI[[#This Row],[Hide:\nFormula Name]],Table_PI[[#This Row],[Quantity]],Table_PI[[#This Row],[List 1]],Table_PI[[#This Row],[List 2]],Table_PI[[#This Row],[List 3]],Table_PI[[#This Row],[Size]],Table_PI[[#This Row],[Input 1]],Table_PI[[#This Row],[Input 2]],Table_PI[[#This Row],[Input 3]],Table_PI[[#This Row],[Input 4]],'Customer Information'!$AR$12,1,ROW())>0,MeasureCalc(Table_PI[[#This Row],[Hide:\nFormula Name]],Table_PI[[#This Row],[Quantity]],Table_PI[[#This Row],[List 1]],Table_PI[[#This Row],[List 2]],Table_PI[[#This Row],[List 3]],Table_PI[[#This Row],[Size]],Table_PI[[#This Row],[Input 1]],Table_PI[[#This Row],[Input 2]],Table_PI[[#This Row],[Input 3]],Table_PI[[#This Row],[Input 4]],'Customer Information'!$AR$12,6,ROW()),\"No Rebate\"),\"No Rebate\"),0)","v":0},{"$f":"IF(Table_PI[[#This Row],[Hide:\nFormula Name]]<>\"\",IFERROR(IF(MeasureCalc(Table_PI[[#This Row],[Hide:\nFormula Name]],Table_PI[[#This Row],[Quantity]],Table_PI[[#This Row],[List 1]],Table_PI[[#This Row],[List 2]],Table_PI[[#This Row],[List 3]],Table_PI[[#This Row],[Size]],Table_PI[[#This Row],[Input 1]],Table_PI[[#This Row],[Input 2]],Table_PI[[#This Row],[Input 3]],Table_PI[[#This Row],[Input 4]],'Customer Information'!$AR$12,1,ROW())>0,MeasureCalc(Table_PI[[#This Row],[Hide:\nFormula Name]],Table_PI[[#This Row],[Quantity]],Table_PI[[#This Row],[List 1]],Table_PI[[#This Row],[List 2]],Table_PI[[#This Row],[List 3]],Table_PI[[#This Row],[Size]],Table_PI[[#This Row],[Input 1]],Table_PI[[#This Row],[Input 2]],Table_PI[[#This Row],[Input 3]],Table_PI[[#This Row],[Input 4]],'Customer Information'!$AR$12,7,ROW()),\"No Rebate\"),\"No Rebate\"),0)","v":0},{"$f":"IF(Table_PI[[#This Row],[Hide:\nFormula Name]]<>\"\",IFERROR(IF(MeasureCalc(Table_PI[[#This Row],[Hide:\nFormula Name]],Table_PI[[#This Row],[Quantity]],Table_PI[[#This Row],[List 1]],Table_PI[[#This Row],[List 2]],Table_PI[[#This Row],[List 3]],Table_PI[[#This Row],[Size]],Table_PI[[#This Row],[Input 1]],Table_PI[[#This Row],[Input 2]],Table_PI[[#This Row],[Input 3]],Table_PI[[#This Row],[Input 4]],'Customer Information'!$AR$12,1,ROW())>0,MeasureCalc(Table_PI[[#This Row],[Hide:\nFormula Name]],Table_PI[[#This Row],[Quantity]],Table_PI[[#This Row],[List 1]],Table_PI[[#This Row],[List 2]],Table_PI[[#This Row],[List 3]],Table_PI[[#This Row],[Size]],Table_PI[[#This Row],[Input 1]],Table_PI[[#This Row],[Input 2]],Table_PI[[#This Row],[Input 3]],Table_PI[[#This Row],[Input 4]],'Customer Information'!$AR$12,8,ROW()),\"No Rebate\"),\"No Rebate\"),0)","v":0},{"$f":"IF(Table_PI[[#This Row],[Hide:\nFormula Name]]<>\"\",IF(AND(Table_PI[[#This Row],[Hide:\nFormula Name]]<>\"\",OR(Table_PI[[#This Row],[Rebate]]>0,Table_PI[[#This Row],[Rebate]]=\"No Rebate\")),TRUE,\"MI: Line Item \" & $A392),\"\")","v":""}]
[{"$f":"IF(Table_PI[[#This Row],[Hide:\nFormula Name]]<>\"\",MAX($A$2:A392)+1,\"\")","v":""},null,null,null,null,null,null,null,null,null,null,null,null,null,null,{"$f":"IFERROR(VLOOKUP(Table_PI[[#This Row],[Measure]],'Equipment Lookups'!$C$3:$D$23,2,FALSE),\"\")","v":""},{"$f":"IF(Table_PI[[#This Row],[Hide:\nFormula Name]]<>\"\",IFERROR(IF(MeasureCalc(Table_PI[[#This Row],[Hide:\nFormula Name]],Table_PI[[#This Row],[Quantity]],Table_PI[[#This Row],[List 1]],Table_PI[[#This Row],[List 2]],Table_PI[[#This Row],[List 3]],Table_PI[[#This Row],[Size]],Table_PI[[#This Row],[Input 1]],Table_PI[[#This Row],[Input 2]],Table_PI[[#This Row],[Input 3]],Table_PI[[#This Row],[Input 4]],'Customer Information'!$AR$12,1,ROW())>0,MeasureCalc(Table_PI[[#This Row],[Hide:\nFormula Name]],Table_PI[[#This Row],[Quantity]],Table_PI[[#This Row],[List 1]],Table_PI[[#This Row],[List 2]],Table_PI[[#This Row],[List 3]],Table_PI[[#This Row],[Size]],Table_PI[[#This Row],[Input 1]],Table_PI[[#This Row],[Input 2]],Table_PI[[#This Row],[Input 3]],Table_PI[[#This Row],[Input 4]],'Customer Information'!$AR$12,1,ROW()),\"No Rebate\"),\"No Rebate\"),0)","v":0},{"$f":"IF(Table_PI[[#This Row],[Hide:\nFormula Name]]<>\"\",IFERROR(IF(MeasureCalc(Table_PI[[#This Row],[Hide:\nFormula Name]],Table_PI[[#This Row],[Quantity]],Table_PI[[#This Row],[List 1]],Table_PI[[#This Row],[List 2]],Table_PI[[#This Row],[List 3]],Table_PI[[#This Row],[Size]],Table_PI[[#This Row],[Input 1]],Table_PI[[#This Row],[Input 2]],Table_PI[[#This Row],[Input 3]],Table_PI[[#This Row],[Input 4]],'Customer Information'!$AR$12,1,ROW())>0,MeasureCalc(Table_PI[[#This Row],[Hide:\nFormula Name]],Table_PI[[#This Row],[Quantity]],Table_PI[[#This Row],[List 1]],Table_PI[[#This Row],[List 2]],Table_PI[[#This Row],[List 3]],Table_PI[[#This Row],[Size]],Table_PI[[#This Row],[Input 1]],Table_PI[[#This Row],[Input 2]],Table_PI[[#This Row],[Input 3]],Table_PI[[#This Row],[Input 4]],'Customer Information'!$AR$12,2,ROW()),\"No Rebate\"),\"No Rebate\"),0)","v":0},{"$f":"IF(Table_PI[[#This Row],[Hide:\nFormula Name]]<>\"\",IFERROR(IF(MeasureCalc(Table_PI[[#This Row],[Hide:\nFormula Name]],Table_PI[[#This Row],[Quantity]],Table_PI[[#This Row],[List 1]],Table_PI[[#This Row],[List 2]],Table_PI[[#This Row],[List 3]],Table_PI[[#This Row],[Size]],Table_PI[[#This Row],[Input 1]],Table_PI[[#This Row],[Input 2]],Table_PI[[#This Row],[Input 3]],Table_PI[[#This Row],[Input 4]],'Customer Information'!$AR$12,1,ROW())>0,MeasureCalc(Table_PI[[#This Row],[Hide:\nFormula Name]],Table_PI[[#This Row],[Quantity]],Table_PI[[#This Row],[List 1]],Table_PI[[#This Row],[List 2]],Table_PI[[#This Row],[List 3]],Table_PI[[#This Row],[Size]],Table_PI[[#This Row],[Input 1]],Table_PI[[#This Row],[Input 2]],Table_PI[[#This Row],[Input 3]],Table_PI[[#This Row],[Input 4]],'Customer Information'!$AR$12,3,ROW()),\"No Rebate\"),\"No Rebate\"),0)","v":0},{"$f":"IF(Table_PI[[#This Row],[Hide:\nFormula Name]]<>\"\",IFERROR(IF(MeasureCalc(Table_PI[[#This Row],[Hide:\nFormula Name]],Table_PI[[#This Row],[Quantity]],Table_PI[[#This Row],[List 1]],Table_PI[[#This Row],[List 2]],Table_PI[[#This Row],[List 3]],Table_PI[[#This Row],[Size]],Table_PI[[#This Row],[Input 1]],Table_PI[[#This Row],[Input 2]],Table_PI[[#This Row],[Input 3]],Table_PI[[#This Row],[Input 4]],'Customer Information'!$AR$12,1,ROW())>0,MeasureCalc(Table_PI[[#This Row],[Hide:\nFormula Name]],Table_PI[[#This Row],[Quantity]],Table_PI[[#This Row],[List 1]],Table_PI[[#This Row],[List 2]],Table_PI[[#This Row],[List 3]],Table_PI[[#This Row],[Size]],Table_PI[[#This Row],[Input 1]],Table_PI[[#This Row],[Input 2]],Table_PI[[#This Row],[Input 3]],Table_PI[[#This Row],[Input 4]],'Customer Information'!$AR$12,4,ROW()),\"No Rebate\"),\"No Rebate\"),0)","v":0},{"$f":"IF(Table_PI[[#This Row],[Hide:\nFormula Name]]<>\"\",IFERROR(IF(MeasureCalc(Table_PI[[#This Row],[Hide:\nFormula Name]],Table_PI[[#This Row],[Quantity]],Table_PI[[#This Row],[List 1]],Table_PI[[#This Row],[List 2]],Table_PI[[#This Row],[List 3]],Table_PI[[#This Row],[Size]],Table_PI[[#This Row],[Input 1]],Table_PI[[#This Row],[Input 2]],Table_PI[[#This Row],[Input 3]],Table_PI[[#This Row],[Input 4]],'Customer Information'!$AR$12,1,ROW())>0,MeasureCalc(Table_PI[[#This Row],[Hide:\nFormula Name]],Table_PI[[#This Row],[Quantity]],Table_PI[[#This Row],[List 1]],Table_PI[[#This Row],[List 2]],Table_PI[[#This Row],[List 3]],Table_PI[[#This Row],[Size]],Table_PI[[#This Row],[Input 1]],Table_PI[[#This Row],[Input 2]],Table_PI[[#This Row],[Input 3]],Table_PI[[#This Row],[Input 4]],'Customer Information'!$AR$12,5,ROW()),\"No Rebate\"),\"No Rebate\"),0)","v":0},{"$f":"IF(Table_PI[[#This Row],[Hide:\nFormula Name]]<>\"\",IFERROR(IF(MeasureCalc(Table_PI[[#This Row],[Hide:\nFormula Name]],Table_PI[[#This Row],[Quantity]],Table_PI[[#This Row],[List 1]],Table_PI[[#This Row],[List 2]],Table_PI[[#This Row],[List 3]],Table_PI[[#This Row],[Size]],Table_PI[[#This Row],[Input 1]],Table_PI[[#This Row],[Input 2]],Table_PI[[#This Row],[Input 3]],Table_PI[[#This Row],[Input 4]],'Customer Information'!$AR$12,1,ROW())>0,MeasureCalc(Table_PI[[#This Row],[Hide:\nFormula Name]],Table_PI[[#This Row],[Quantity]],Table_PI[[#This Row],[List 1]],Table_PI[[#This Row],[List 2]],Table_PI[[#This Row],[List 3]],Table_PI[[#This Row],[Size]],Table_PI[[#This Row],[Input 1]],Table_PI[[#This Row],[Input 2]],Table_PI[[#This Row],[Input 3]],Table_PI[[#This Row],[Input 4]],'Customer Information'!$AR$12,6,ROW()),\"No Rebate\"),\"No Rebate\"),0)","v":0},{"$f":"IF(Table_PI[[#This Row],[Hide:\nFormula Name]]<>\"\",IFERROR(IF(MeasureCalc(Table_PI[[#This Row],[Hide:\nFormula Name]],Table_PI[[#This Row],[Quantity]],Table_PI[[#This Row],[List 1]],Table_PI[[#This Row],[List 2]],Table_PI[[#This Row],[List 3]],Table_PI[[#This Row],[Size]],Table_PI[[#This Row],[Input 1]],Table_PI[[#This Row],[Input 2]],Table_PI[[#This Row],[Input 3]],Table_PI[[#This Row],[Input 4]],'Customer Information'!$AR$12,1,ROW())>0,MeasureCalc(Table_PI[[#This Row],[Hide:\nFormula Name]],Table_PI[[#This Row],[Quantity]],Table_PI[[#This Row],[List 1]],Table_PI[[#This Row],[List 2]],Table_PI[[#This Row],[List 3]],Table_PI[[#This Row],[Size]],Table_PI[[#This Row],[Input 1]],Table_PI[[#This Row],[Input 2]],Table_PI[[#This Row],[Input 3]],Table_PI[[#This Row],[Input 4]],'Customer Information'!$AR$12,7,ROW()),\"No Rebate\"),\"No Rebate\"),0)","v":0},{"$f":"IF(Table_PI[[#This Row],[Hide:\nFormula Name]]<>\"\",IFERROR(IF(MeasureCalc(Table_PI[[#This Row],[Hide:\nFormula Name]],Table_PI[[#This Row],[Quantity]],Table_PI[[#This Row],[List 1]],Table_PI[[#This Row],[List 2]],Table_PI[[#This Row],[List 3]],Table_PI[[#This Row],[Size]],Table_PI[[#This Row],[Input 1]],Table_PI[[#This Row],[Input 2]],Table_PI[[#This Row],[Input 3]],Table_PI[[#This Row],[Input 4]],'Customer Information'!$AR$12,1,ROW())>0,MeasureCalc(Table_PI[[#This Row],[Hide:\nFormula Name]],Table_PI[[#This Row],[Quantity]],Table_PI[[#This Row],[List 1]],Table_PI[[#This Row],[List 2]],Table_PI[[#This Row],[List 3]],Table_PI[[#This Row],[Size]],Table_PI[[#This Row],[Input 1]],Table_PI[[#This Row],[Input 2]],Table_PI[[#This Row],[Input 3]],Table_PI[[#This Row],[Input 4]],'Customer Information'!$AR$12,8,ROW()),\"No Rebate\"),\"No Rebate\"),0)","v":0},{"$f":"IF(Table_PI[[#This Row],[Hide:\nFormula Name]]<>\"\",IF(AND(Table_PI[[#This Row],[Hide:\nFormula Name]]<>\"\",OR(Table_PI[[#This Row],[Rebate]]>0,Table_PI[[#This Row],[Rebate]]=\"No Rebate\")),TRUE,\"MI: Line Item \" & $A393),\"\")","v":""}]
[{"$f":"IF(Table_PI[[#This Row],[Hide:\nFormula Name]]<>\"\",MAX($A$2:A393)+1,\"\")","v":""},null,null,null,null,null,null,null,null,null,null,null,null,null,null,{"$f":"IFERROR(VLOOKUP(Table_PI[[#This Row],[Measure]],'Equipment Lookups'!$C$3:$D$23,2,FALSE),\"\")","v":""},{"$f":"IF(Table_PI[[#This Row],[Hide:\nFormula Name]]<>\"\",IFERROR(IF(MeasureCalc(Table_PI[[#This Row],[Hide:\nFormula Name]],Table_PI[[#This Row],[Quantity]],Table_PI[[#This Row],[List 1]],Table_PI[[#This Row],[List 2]],Table_PI[[#This Row],[List 3]],Table_PI[[#This Row],[Size]],Table_PI[[#This Row],[Input 1]],Table_PI[[#This Row],[Input 2]],Table_PI[[#This Row],[Input 3]],Table_PI[[#This Row],[Input 4]],'Customer Information'!$AR$12,1,ROW())>0,MeasureCalc(Table_PI[[#This Row],[Hide:\nFormula Name]],Table_PI[[#This Row],[Quantity]],Table_PI[[#This Row],[List 1]],Table_PI[[#This Row],[List 2]],Table_PI[[#This Row],[List 3]],Table_PI[[#This Row],[Size]],Table_PI[[#This Row],[Input 1]],Table_PI[[#This Row],[Input 2]],Table_PI[[#This Row],[Input 3]],Table_PI[[#This Row],[Input 4]],'Customer Information'!$AR$12,1,ROW()),\"No Rebate\"),\"No Rebate\"),0)","v":0},{"$f":"IF(Table_PI[[#This Row],[Hide:\nFormula Name]]<>\"\",IFERROR(IF(MeasureCalc(Table_PI[[#This Row],[Hide:\nFormula Name]],Table_PI[[#This Row],[Quantity]],Table_PI[[#This Row],[List 1]],Table_PI[[#This Row],[List 2]],Table_PI[[#This Row],[List 3]],Table_PI[[#This Row],[Size]],Table_PI[[#This Row],[Input 1]],Table_PI[[#This Row],[Input 2]],Table_PI[[#This Row],[Input 3]],Table_PI[[#This Row],[Input 4]],'Customer Information'!$AR$12,1,ROW())>0,MeasureCalc(Table_PI[[#This Row],[Hide:\nFormula Name]],Table_PI[[#This Row],[Quantity]],Table_PI[[#This Row],[List 1]],Table_PI[[#This Row],[List 2]],Table_PI[[#This Row],[List 3]],Table_PI[[#This Row],[Size]],Table_PI[[#This Row],[Input 1]],Table_PI[[#This Row],[Input 2]],Table_PI[[#This Row],[Input 3]],Table_PI[[#This Row],[Input 4]],'Customer Information'!$AR$12,2,ROW()),\"No Rebate\"),\"No Rebate\"),0)","v":0},{"$f":"IF(Table_PI[[#This Row],[Hide:\nFormula Name]]<>\"\",IFERROR(IF(MeasureCalc(Table_PI[[#This Row],[Hide:\nFormula Name]],Table_PI[[#This Row],[Quantity]],Table_PI[[#This Row],[List 1]],Table_PI[[#This Row],[List 2]],Table_PI[[#This Row],[List 3]],Table_PI[[#This Row],[Size]],Table_PI[[#This Row],[Input 1]],Table_PI[[#This Row],[Input 2]],Table_PI[[#This Row],[Input 3]],Table_PI[[#This Row],[Input 4]],'Customer Information'!$AR$12,1,ROW())>0,MeasureCalc(Table_PI[[#This Row],[Hide:\nFormula Name]],Table_PI[[#This Row],[Quantity]],Table_PI[[#This Row],[List 1]],Table_PI[[#This Row],[List 2]],Table_PI[[#This Row],[List 3]],Table_PI[[#This Row],[Size]],Table_PI[[#This Row],[Input 1]],Table_PI[[#This Row],[Input 2]],Table_PI[[#This Row],[Input 3]],Table_PI[[#This Row],[Input 4]],'Customer Information'!$AR$12,3,ROW()),\"No Rebate\"),\"No Rebate\"),0)","v":0},{"$f":"IF(Table_PI[[#This Row],[Hide:\nFormula Name]]<>\"\",IFERROR(IF(MeasureCalc(Table_PI[[#This Row],[Hide:\nFormula Name]],Table_PI[[#This Row],[Quantity]],Table_PI[[#This Row],[List 1]],Table_PI[[#This Row],[List 2]],Table_PI[[#This Row],[List 3]],Table_PI[[#This Row],[Size]],Table_PI[[#This Row],[Input 1]],Table_PI[[#This Row],[Input 2]],Table_PI[[#This Row],[Input 3]],Table_PI[[#This Row],[Input 4]],'Customer Information'!$AR$12,1,ROW())>0,MeasureCalc(Table_PI[[#This Row],[Hide:\nFormula Name]],Table_PI[[#This Row],[Quantity]],Table_PI[[#This Row],[List 1]],Table_PI[[#This Row],[List 2]],Table_PI[[#This Row],[List 3]],Table_PI[[#This Row],[Size]],Table_PI[[#This Row],[Input 1]],Table_PI[[#This Row],[Input 2]],Table_PI[[#This Row],[Input 3]],Table_PI[[#This Row],[Input 4]],'Customer Information'!$AR$12,4,ROW()),\"No Rebate\"),\"No Rebate\"),0)","v":0},{"$f":"IF(Table_PI[[#This Row],[Hide:\nFormula Name]]<>\"\",IFERROR(IF(MeasureCalc(Table_PI[[#This Row],[Hide:\nFormula Name]],Table_PI[[#This Row],[Quantity]],Table_PI[[#This Row],[List 1]],Table_PI[[#This Row],[List 2]],Table_PI[[#This Row],[List 3]],Table_PI[[#This Row],[Size]],Table_PI[[#This Row],[Input 1]],Table_PI[[#This Row],[Input 2]],Table_PI[[#This Row],[Input 3]],Table_PI[[#This Row],[Input 4]],'Customer Information'!$AR$12,1,ROW())>0,MeasureCalc(Table_PI[[#This Row],[Hide:\nFormula Name]],Table_PI[[#This Row],[Quantity]],Table_PI[[#This Row],[List 1]],Table_PI[[#This Row],[List 2]],Table_PI[[#This Row],[List 3]],Table_PI[[#This Row],[Size]],Table_PI[[#This Row],[Input 1]],Table_PI[[#This Row],[Input 2]],Table_PI[[#This Row],[Input 3]],Table_PI[[#This Row],[Input 4]],'Customer Information'!$AR$12,5,ROW()),\"No Rebate\"),\"No Rebate\"),0)","v":0},{"$f":"IF(Table_PI[[#This Row],[Hide:\nFormula Name]]<>\"\",IFERROR(IF(MeasureCalc(Table_PI[[#This Row],[Hide:\nFormula Name]],Table_PI[[#This Row],[Quantity]],Table_PI[[#This Row],[List 1]],Table_PI[[#This Row],[List 2]],Table_PI[[#This Row],[List 3]],Table_PI[[#This Row],[Size]],Table_PI[[#This Row],[Input 1]],Table_PI[[#This Row],[Input 2]],Table_PI[[#This Row],[Input 3]],Table_PI[[#This Row],[Input 4]],'Customer Information'!$AR$12,1,ROW())>0,MeasureCalc(Table_PI[[#This Row],[Hide:\nFormula Name]],Table_PI[[#This Row],[Quantity]],Table_PI[[#This Row],[List 1]],Table_PI[[#This Row],[List 2]],Table_PI[[#This Row],[List 3]],Table_PI[[#This Row],[Size]],Table_PI[[#This Row],[Input 1]],Table_PI[[#This Row],[Input 2]],Table_PI[[#This Row],[Input 3]],Table_PI[[#This Row],[Input 4]],'Customer Information'!$AR$12,6,ROW()),\"No Rebate\"),\"No Rebate\"),0)","v":0},{"$f":"IF(Table_PI[[#This Row],[Hide:\nFormula Name]]<>\"\",IFERROR(IF(MeasureCalc(Table_PI[[#This Row],[Hide:\nFormula Name]],Table_PI[[#This Row],[Quantity]],Table_PI[[#This Row],[List 1]],Table_PI[[#This Row],[List 2]],Table_PI[[#This Row],[List 3]],Table_PI[[#This Row],[Size]],Table_PI[[#This Row],[Input 1]],Table_PI[[#This Row],[Input 2]],Table_PI[[#This Row],[Input 3]],Table_PI[[#This Row],[Input 4]],'Customer Information'!$AR$12,1,ROW())>0,MeasureCalc(Table_PI[[#This Row],[Hide:\nFormula Name]],Table_PI[[#This Row],[Quantity]],Table_PI[[#This Row],[List 1]],Table_PI[[#This Row],[List 2]],Table_PI[[#This Row],[List 3]],Table_PI[[#This Row],[Size]],Table_PI[[#This Row],[Input 1]],Table_PI[[#This Row],[Input 2]],Table_PI[[#This Row],[Input 3]],Table_PI[[#This Row],[Input 4]],'Customer Information'!$AR$12,7,ROW()),\"No Rebate\"),\"No Rebate\"),0)","v":0},{"$f":"IF(Table_PI[[#This Row],[Hide:\nFormula Name]]<>\"\",IFERROR(IF(MeasureCalc(Table_PI[[#This Row],[Hide:\nFormula Name]],Table_PI[[#This Row],[Quantity]],Table_PI[[#This Row],[List 1]],Table_PI[[#This Row],[List 2]],Table_PI[[#This Row],[List 3]],Table_PI[[#This Row],[Size]],Table_PI[[#This Row],[Input 1]],Table_PI[[#This Row],[Input 2]],Table_PI[[#This Row],[Input 3]],Table_PI[[#This Row],[Input 4]],'Customer Information'!$AR$12,1,ROW())>0,MeasureCalc(Table_PI[[#This Row],[Hide:\nFormula Name]],Table_PI[[#This Row],[Quantity]],Table_PI[[#This Row],[List 1]],Table_PI[[#This Row],[List 2]],Table_PI[[#This Row],[List 3]],Table_PI[[#This Row],[Size]],Table_PI[[#This Row],[Input 1]],Table_PI[[#This Row],[Input 2]],Table_PI[[#This Row],[Input 3]],Table_PI[[#This Row],[Input 4]],'Customer Information'!$AR$12,8,ROW()),\"No Rebate\"),\"No Rebate\"),0)","v":0},{"$f":"IF(Table_PI[[#This Row],[Hide:\nFormula Name]]<>\"\",IF(AND(Table_PI[[#This Row],[Hide:\nFormula Name]]<>\"\",OR(Table_PI[[#This Row],[Rebate]]>0,Table_PI[[#This Row],[Rebate]]=\"No Rebate\")),TRUE,\"MI: Line Item \" & $A394),\"\")","v":""}]
[{"$f":"IF(Table_PI[[#This Row],[Hide:\nFormula Name]]<>\"\",MAX($A$2:A394)+1,\"\")","v":""},null,null,null,null,null,null,null,null,null,null,null,null,null,null,{"$f":"IFERROR(VLOOKUP(Table_PI[[#This Row],[Measure]],'Equipment Lookups'!$C$3:$D$23,2,FALSE),\"\")","v":""},{"$f":"IF(Table_PI[[#This Row],[Hide:\nFormula Name]]<>\"\",IFERROR(IF(MeasureCalc(Table_PI[[#This Row],[Hide:\nFormula Name]],Table_PI[[#This Row],[Quantity]],Table_PI[[#This Row],[List 1]],Table_PI[[#This Row],[List 2]],Table_PI[[#This Row],[List 3]],Table_PI[[#This Row],[Size]],Table_PI[[#This Row],[Input 1]],Table_PI[[#This Row],[Input 2]],Table_PI[[#This Row],[Input 3]],Table_PI[[#This Row],[Input 4]],'Customer Information'!$AR$12,1,ROW())>0,MeasureCalc(Table_PI[[#This Row],[Hide:\nFormula Name]],Table_PI[[#This Row],[Quantity]],Table_PI[[#This Row],[List 1]],Table_PI[[#This Row],[List 2]],Table_PI[[#This Row],[List 3]],Table_PI[[#This Row],[Size]],Table_PI[[#This Row],[Input 1]],Table_PI[[#This Row],[Input 2]],Table_PI[[#This Row],[Input 3]],Table_PI[[#This Row],[Input 4]],'Customer Information'!$AR$12,1,ROW()),\"No Rebate\"),\"No Rebate\"),0)","v":0},{"$f":"IF(Table_PI[[#This Row],[Hide:\nFormula Name]]<>\"\",IFERROR(IF(MeasureCalc(Table_PI[[#This Row],[Hide:\nFormula Name]],Table_PI[[#This Row],[Quantity]],Table_PI[[#This Row],[List 1]],Table_PI[[#This Row],[List 2]],Table_PI[[#This Row],[List 3]],Table_PI[[#This Row],[Size]],Table_PI[[#This Row],[Input 1]],Table_PI[[#This Row],[Input 2]],Table_PI[[#This Row],[Input 3]],Table_PI[[#This Row],[Input 4]],'Customer Information'!$AR$12,1,ROW())>0,MeasureCalc(Table_PI[[#This Row],[Hide:\nFormula Name]],Table_PI[[#This Row],[Quantity]],Table_PI[[#This Row],[List 1]],Table_PI[[#This Row],[List 2]],Table_PI[[#This Row],[List 3]],Table_PI[[#This Row],[Size]],Table_PI[[#This Row],[Input 1]],Table_PI[[#This Row],[Input 2]],Table_PI[[#This Row],[Input 3]],Table_PI[[#This Row],[Input 4]],'Customer Information'!$AR$12,2,ROW()),\"No Rebate\"),\"No Rebate\"),0)","v":0},{"$f":"IF(Table_PI[[#This Row],[Hide:\nFormula Name]]<>\"\",IFERROR(IF(MeasureCalc(Table_PI[[#This Row],[Hide:\nFormula Name]],Table_PI[[#This Row],[Quantity]],Table_PI[[#This Row],[List 1]],Table_PI[[#This Row],[List 2]],Table_PI[[#This Row],[List 3]],Table_PI[[#This Row],[Size]],Table_PI[[#This Row],[Input 1]],Table_PI[[#This Row],[Input 2]],Table_PI[[#This Row],[Input 3]],Table_PI[[#This Row],[Input 4]],'Customer Information'!$AR$12,1,ROW())>0,MeasureCalc(Table_PI[[#This Row],[Hide:\nFormula Name]],Table_PI[[#This Row],[Quantity]],Table_PI[[#This Row],[List 1]],Table_PI[[#This Row],[List 2]],Table_PI[[#This Row],[List 3]],Table_PI[[#This Row],[Size]],Table_PI[[#This Row],[Input 1]],Table_PI[[#This Row],[Input 2]],Table_PI[[#This Row],[Input 3]],Table_PI[[#This Row],[Input 4]],'Customer Information'!$AR$12,3,ROW()),\"No Rebate\"),\"No Rebate\"),0)","v":0},{"$f":"IF(Table_PI[[#This Row],[Hide:\nFormula Name]]<>\"\",IFERROR(IF(MeasureCalc(Table_PI[[#This Row],[Hide:\nFormula Name]],Table_PI[[#This Row],[Quantity]],Table_PI[[#This Row],[List 1]],Table_PI[[#This Row],[List 2]],Table_PI[[#This Row],[List 3]],Table_PI[[#This Row],[Size]],Table_PI[[#This Row],[Input 1]],Table_PI[[#This Row],[Input 2]],Table_PI[[#This Row],[Input 3]],Table_PI[[#This Row],[Input 4]],'Customer Information'!$AR$12,1,ROW())>0,MeasureCalc(Table_PI[[#This Row],[Hide:\nFormula Name]],Table_PI[[#This Row],[Quantity]],Table_PI[[#This Row],[List 1]],Table_PI[[#This Row],[List 2]],Table_PI[[#This Row],[List 3]],Table_PI[[#This Row],[Size]],Table_PI[[#This Row],[Input 1]],Table_PI[[#This Row],[Input 2]],Table_PI[[#This Row],[Input 3]],Table_PI[[#This Row],[Input 4]],'Customer Information'!$AR$12,4,ROW()),\"No Rebate\"),\"No Rebate\"),0)","v":0},{"$f":"IF(Table_PI[[#This Row],[Hide:\nFormula Name]]<>\"\",IFERROR(IF(MeasureCalc(Table_PI[[#This Row],[Hide:\nFormula Name]],Table_PI[[#This Row],[Quantity]],Table_PI[[#This Row],[List 1]],Table_PI[[#This Row],[List 2]],Table_PI[[#This Row],[List 3]],Table_PI[[#This Row],[Size]],Table_PI[[#This Row],[Input 1]],Table_PI[[#This Row],[Input 2]],Table_PI[[#This Row],[Input 3]],Table_PI[[#This Row],[Input 4]],'Customer Information'!$AR$12,1,ROW())>0,MeasureCalc(Table_PI[[#This Row],[Hide:\nFormula Name]],Table_PI[[#This Row],[Quantity]],Table_PI[[#This Row],[List 1]],Table_PI[[#This Row],[List 2]],Table_PI[[#This Row],[List 3]],Table_PI[[#This Row],[Size]],Table_PI[[#This Row],[Input 1]],Table_PI[[#This Row],[Input 2]],Table_PI[[#This Row],[Input 3]],Table_PI[[#This Row],[Input 4]],'Customer Information'!$AR$12,5,ROW()),\"No Rebate\"),\"No Rebate\"),0)","v":0},{"$f":"IF(Table_PI[[#This Row],[Hide:\nFormula Name]]<>\"\",IFERROR(IF(MeasureCalc(Table_PI[[#This Row],[Hide:\nFormula Name]],Table_PI[[#This Row],[Quantity]],Table_PI[[#This Row],[List 1]],Table_PI[[#This Row],[List 2]],Table_PI[[#This Row],[List 3]],Table_PI[[#This Row],[Size]],Table_PI[[#This Row],[Input 1]],Table_PI[[#This Row],[Input 2]],Table_PI[[#This Row],[Input 3]],Table_PI[[#This Row],[Input 4]],'Customer Information'!$AR$12,1,ROW())>0,MeasureCalc(Table_PI[[#This Row],[Hide:\nFormula Name]],Table_PI[[#This Row],[Quantity]],Table_PI[[#This Row],[List 1]],Table_PI[[#This Row],[List 2]],Table_PI[[#This Row],[List 3]],Table_PI[[#This Row],[Size]],Table_PI[[#This Row],[Input 1]],Table_PI[[#This Row],[Input 2]],Table_PI[[#This Row],[Input 3]],Table_PI[[#This Row],[Input 4]],'Customer Information'!$AR$12,6,ROW()),\"No Rebate\"),\"No Rebate\"),0)","v":0},{"$f":"IF(Table_PI[[#This Row],[Hide:\nFormula Name]]<>\"\",IFERROR(IF(MeasureCalc(Table_PI[[#This Row],[Hide:\nFormula Name]],Table_PI[[#This Row],[Quantity]],Table_PI[[#This Row],[List 1]],Table_PI[[#This Row],[List 2]],Table_PI[[#This Row],[List 3]],Table_PI[[#This Row],[Size]],Table_PI[[#This Row],[Input 1]],Table_PI[[#This Row],[Input 2]],Table_PI[[#This Row],[Input 3]],Table_PI[[#This Row],[Input 4]],'Customer Information'!$AR$12,1,ROW())>0,MeasureCalc(Table_PI[[#This Row],[Hide:\nFormula Name]],Table_PI[[#This Row],[Quantity]],Table_PI[[#This Row],[List 1]],Table_PI[[#This Row],[List 2]],Table_PI[[#This Row],[List 3]],Table_PI[[#This Row],[Size]],Table_PI[[#This Row],[Input 1]],Table_PI[[#This Row],[Input 2]],Table_PI[[#This Row],[Input 3]],Table_PI[[#This Row],[Input 4]],'Customer Information'!$AR$12,7,ROW()),\"No Rebate\"),\"No Rebate\"),0)","v":0},{"$f":"IF(Table_PI[[#This Row],[Hide:\nFormula Name]]<>\"\",IFERROR(IF(MeasureCalc(Table_PI[[#This Row],[Hide:\nFormula Name]],Table_PI[[#This Row],[Quantity]],Table_PI[[#This Row],[List 1]],Table_PI[[#This Row],[List 2]],Table_PI[[#This Row],[List 3]],Table_PI[[#This Row],[Size]],Table_PI[[#This Row],[Input 1]],Table_PI[[#This Row],[Input 2]],Table_PI[[#This Row],[Input 3]],Table_PI[[#This Row],[Input 4]],'Customer Information'!$AR$12,1,ROW())>0,MeasureCalc(Table_PI[[#This Row],[Hide:\nFormula Name]],Table_PI[[#This Row],[Quantity]],Table_PI[[#This Row],[List 1]],Table_PI[[#This Row],[List 2]],Table_PI[[#This Row],[List 3]],Table_PI[[#This Row],[Size]],Table_PI[[#This Row],[Input 1]],Table_PI[[#This Row],[Input 2]],Table_PI[[#This Row],[Input 3]],Table_PI[[#This Row],[Input 4]],'Customer Information'!$AR$12,8,ROW()),\"No Rebate\"),\"No Rebate\"),0)","v":0},{"$f":"IF(Table_PI[[#This Row],[Hide:\nFormula Name]]<>\"\",IF(AND(Table_PI[[#This Row],[Hide:\nFormula Name]]<>\"\",OR(Table_PI[[#This Row],[Rebate]]>0,Table_PI[[#This Row],[Rebate]]=\"No Rebate\")),TRUE,\"MI: Line Item \" & $A395),\"\")","v":""}]
[{"$f":"IF(Table_PI[[#This Row],[Hide:\nFormula Name]]<>\"\",MAX($A$2:A395)+1,\"\")","v":""},null,null,null,null,null,null,null,null,null,null,null,null,null,null,{"$f":"IFERROR(VLOOKUP(Table_PI[[#This Row],[Measure]],'Equipment Lookups'!$C$3:$D$23,2,FALSE),\"\")","v":""},{"$f":"IF(Table_PI[[#This Row],[Hide:\nFormula Name]]<>\"\",IFERROR(IF(MeasureCalc(Table_PI[[#This Row],[Hide:\nFormula Name]],Table_PI[[#This Row],[Quantity]],Table_PI[[#This Row],[List 1]],Table_PI[[#This Row],[List 2]],Table_PI[[#This Row],[List 3]],Table_PI[[#This Row],[Size]],Table_PI[[#This Row],[Input 1]],Table_PI[[#This Row],[Input 2]],Table_PI[[#This Row],[Input 3]],Table_PI[[#This Row],[Input 4]],'Customer Information'!$AR$12,1,ROW())>0,MeasureCalc(Table_PI[[#This Row],[Hide:\nFormula Name]],Table_PI[[#This Row],[Quantity]],Table_PI[[#This Row],[List 1]],Table_PI[[#This Row],[List 2]],Table_PI[[#This Row],[List 3]],Table_PI[[#This Row],[Size]],Table_PI[[#This Row],[Input 1]],Table_PI[[#This Row],[Input 2]],Table_PI[[#This Row],[Input 3]],Table_PI[[#This Row],[Input 4]],'Customer Information'!$AR$12,1,ROW()),\"No Rebate\"),\"No Rebate\"),0)","v":0},{"$f":"IF(Table_PI[[#This Row],[Hide:\nFormula Name]]<>\"\",IFERROR(IF(MeasureCalc(Table_PI[[#This Row],[Hide:\nFormula Name]],Table_PI[[#This Row],[Quantity]],Table_PI[[#This Row],[List 1]],Table_PI[[#This Row],[List 2]],Table_PI[[#This Row],[List 3]],Table_PI[[#This Row],[Size]],Table_PI[[#This Row],[Input 1]],Table_PI[[#This Row],[Input 2]],Table_PI[[#This Row],[Input 3]],Table_PI[[#This Row],[Input 4]],'Customer Information'!$AR$12,1,ROW())>0,MeasureCalc(Table_PI[[#This Row],[Hide:\nFormula Name]],Table_PI[[#This Row],[Quantity]],Table_PI[[#This Row],[List 1]],Table_PI[[#This Row],[List 2]],Table_PI[[#This Row],[List 3]],Table_PI[[#This Row],[Size]],Table_PI[[#This Row],[Input 1]],Table_PI[[#This Row],[Input 2]],Table_PI[[#This Row],[Input 3]],Table_PI[[#This Row],[Input 4]],'Customer Information'!$AR$12,2,ROW()),\"No Rebate\"),\"No Rebate\"),0)","v":0},{"$f":"IF(Table_PI[[#This Row],[Hide:\nFormula Name]]<>\"\",IFERROR(IF(MeasureCalc(Table_PI[[#This Row],[Hide:\nFormula Name]],Table_PI[[#This Row],[Quantity]],Table_PI[[#This Row],[List 1]],Table_PI[[#This Row],[List 2]],Table_PI[[#This Row],[List 3]],Table_PI[[#This Row],[Size]],Table_PI[[#This Row],[Input 1]],Table_PI[[#This Row],[Input 2]],Table_PI[[#This Row],[Input 3]],Table_PI[[#This Row],[Input 4]],'Customer Information'!$AR$12,1,ROW())>0,MeasureCalc(Table_PI[[#This Row],[Hide:\nFormula Name]],Table_PI[[#This Row],[Quantity]],Table_PI[[#This Row],[List 1]],Table_PI[[#This Row],[List 2]],Table_PI[[#This Row],[List 3]],Table_PI[[#This Row],[Size]],Table_PI[[#This Row],[Input 1]],Table_PI[[#This Row],[Input 2]],Table_PI[[#This Row],[Input 3]],Table_PI[[#This Row],[Input 4]],'Customer Information'!$AR$12,3,ROW()),\"No Rebate\"),\"No Rebate\"),0)","v":0},{"$f":"IF(Table_PI[[#This Row],[Hide:\nFormula Name]]<>\"\",IFERROR(IF(MeasureCalc(Table_PI[[#This Row],[Hide:\nFormula Name]],Table_PI[[#This Row],[Quantity]],Table_PI[[#This Row],[List 1]],Table_PI[[#This Row],[List 2]],Table_PI[[#This Row],[List 3]],Table_PI[[#This Row],[Size]],Table_PI[[#This Row],[Input 1]],Table_PI[[#This Row],[Input 2]],Table_PI[[#This Row],[Input 3]],Table_PI[[#This Row],[Input 4]],'Customer Information'!$AR$12,1,ROW())>0,MeasureCalc(Table_PI[[#This Row],[Hide:\nFormula Name]],Table_PI[[#This Row],[Quantity]],Table_PI[[#This Row],[List 1]],Table_PI[[#This Row],[List 2]],Table_PI[[#This Row],[List 3]],Table_PI[[#This Row],[Size]],Table_PI[[#This Row],[Input 1]],Table_PI[[#This Row],[Input 2]],Table_PI[[#This Row],[Input 3]],Table_PI[[#This Row],[Input 4]],'Customer Information'!$AR$12,4,ROW()),\"No Rebate\"),\"No Rebate\"),0)","v":0},{"$f":"IF(Table_PI[[#This Row],[Hide:\nFormula Name]]<>\"\",IFERROR(IF(MeasureCalc(Table_PI[[#This Row],[Hide:\nFormula Name]],Table_PI[[#This Row],[Quantity]],Table_PI[[#This Row],[List 1]],Table_PI[[#This Row],[List 2]],Table_PI[[#This Row],[List 3]],Table_PI[[#This Row],[Size]],Table_PI[[#This Row],[Input 1]],Table_PI[[#This Row],[Input 2]],Table_PI[[#This Row],[Input 3]],Table_PI[[#This Row],[Input 4]],'Customer Information'!$AR$12,1,ROW())>0,MeasureCalc(Table_PI[[#This Row],[Hide:\nFormula Name]],Table_PI[[#This Row],[Quantity]],Table_PI[[#This Row],[List 1]],Table_PI[[#This Row],[List 2]],Table_PI[[#This Row],[List 3]],Table_PI[[#This Row],[Size]],Table_PI[[#This Row],[Input 1]],Table_PI[[#This Row],[Input 2]],Table_PI[[#This Row],[Input 3]],Table_PI[[#This Row],[Input 4]],'Customer Information'!$AR$12,5,ROW()),\"No Rebate\"),\"No Rebate\"),0)","v":0},{"$f":"IF(Table_PI[[#This Row],[Hide:\nFormula Name]]<>\"\",IFERROR(IF(MeasureCalc(Table_PI[[#This Row],[Hide:\nFormula Name]],Table_PI[[#This Row],[Quantity]],Table_PI[[#This Row],[List 1]],Table_PI[[#This Row],[List 2]],Table_PI[[#This Row],[List 3]],Table_PI[[#This Row],[Size]],Table_PI[[#This Row],[Input 1]],Table_PI[[#This Row],[Input 2]],Table_PI[[#This Row],[Input 3]],Table_PI[[#This Row],[Input 4]],'Customer Information'!$AR$12,1,ROW())>0,MeasureCalc(Table_PI[[#This Row],[Hide:\nFormula Name]],Table_PI[[#This Row],[Quantity]],Table_PI[[#This Row],[List 1]],Table_PI[[#This Row],[List 2]],Table_PI[[#This Row],[List 3]],Table_PI[[#This Row],[Size]],Table_PI[[#This Row],[Input 1]],Table_PI[[#This Row],[Input 2]],Table_PI[[#This Row],[Input 3]],Table_PI[[#This Row],[Input 4]],'Customer Information'!$AR$12,6,ROW()),\"No Rebate\"),\"No Rebate\"),0)","v":0},{"$f":"IF(Table_PI[[#This Row],[Hide:\nFormula Name]]<>\"\",IFERROR(IF(MeasureCalc(Table_PI[[#This Row],[Hide:\nFormula Name]],Table_PI[[#This Row],[Quantity]],Table_PI[[#This Row],[List 1]],Table_PI[[#This Row],[List 2]],Table_PI[[#This Row],[List 3]],Table_PI[[#This Row],[Size]],Table_PI[[#This Row],[Input 1]],Table_PI[[#This Row],[Input 2]],Table_PI[[#This Row],[Input 3]],Table_PI[[#This Row],[Input 4]],'Customer Information'!$AR$12,1,ROW())>0,MeasureCalc(Table_PI[[#This Row],[Hide:\nFormula Name]],Table_PI[[#This Row],[Quantity]],Table_PI[[#This Row],[List 1]],Table_PI[[#This Row],[List 2]],Table_PI[[#This Row],[List 3]],Table_PI[[#This Row],[Size]],Table_PI[[#This Row],[Input 1]],Table_PI[[#This Row],[Input 2]],Table_PI[[#This Row],[Input 3]],Table_PI[[#This Row],[Input 4]],'Customer Information'!$AR$12,7,ROW()),\"No Rebate\"),\"No Rebate\"),0)","v":0},{"$f":"IF(Table_PI[[#This Row],[Hide:\nFormula Name]]<>\"\",IFERROR(IF(MeasureCalc(Table_PI[[#This Row],[Hide:\nFormula Name]],Table_PI[[#This Row],[Quantity]],Table_PI[[#This Row],[List 1]],Table_PI[[#This Row],[List 2]],Table_PI[[#This Row],[List 3]],Table_PI[[#This Row],[Size]],Table_PI[[#This Row],[Input 1]],Table_PI[[#This Row],[Input 2]],Table_PI[[#This Row],[Input 3]],Table_PI[[#This Row],[Input 4]],'Customer Information'!$AR$12,1,ROW())>0,MeasureCalc(Table_PI[[#This Row],[Hide:\nFormula Name]],Table_PI[[#This Row],[Quantity]],Table_PI[[#This Row],[List 1]],Table_PI[[#This Row],[List 2]],Table_PI[[#This Row],[List 3]],Table_PI[[#This Row],[Size]],Table_PI[[#This Row],[Input 1]],Table_PI[[#This Row],[Input 2]],Table_PI[[#This Row],[Input 3]],Table_PI[[#This Row],[Input 4]],'Customer Information'!$AR$12,8,ROW()),\"No Rebate\"),\"No Rebate\"),0)","v":0},{"$f":"IF(Table_PI[[#This Row],[Hide:\nFormula Name]]<>\"\",IF(AND(Table_PI[[#This Row],[Hide:\nFormula Name]]<>\"\",OR(Table_PI[[#This Row],[Rebate]]>0,Table_PI[[#This Row],[Rebate]]=\"No Rebate\")),TRUE,\"MI: Line Item \" & $A396),\"\")","v":""}]
[{"$f":"IF(Table_PI[[#This Row],[Hide:\nFormula Name]]<>\"\",MAX($A$2:A396)+1,\"\")","v":""},null,null,null,null,null,null,null,null,null,null,null,null,null,null,{"$f":"IFERROR(VLOOKUP(Table_PI[[#This Row],[Measure]],'Equipment Lookups'!$C$3:$D$23,2,FALSE),\"\")","v":""},{"$f":"IF(Table_PI[[#This Row],[Hide:\nFormula Name]]<>\"\",IFERROR(IF(MeasureCalc(Table_PI[[#This Row],[Hide:\nFormula Name]],Table_PI[[#This Row],[Quantity]],Table_PI[[#This Row],[List 1]],Table_PI[[#This Row],[List 2]],Table_PI[[#This Row],[List 3]],Table_PI[[#This Row],[Size]],Table_PI[[#This Row],[Input 1]],Table_PI[[#This Row],[Input 2]],Table_PI[[#This Row],[Input 3]],Table_PI[[#This Row],[Input 4]],'Customer Information'!$AR$12,1,ROW())>0,MeasureCalc(Table_PI[[#This Row],[Hide:\nFormula Name]],Table_PI[[#This Row],[Quantity]],Table_PI[[#This Row],[List 1]],Table_PI[[#This Row],[List 2]],Table_PI[[#This Row],[List 3]],Table_PI[[#This Row],[Size]],Table_PI[[#This Row],[Input 1]],Table_PI[[#This Row],[Input 2]],Table_PI[[#This Row],[Input 3]],Table_PI[[#This Row],[Input 4]],'Customer Information'!$AR$12,1,ROW()),\"No Rebate\"),\"No Rebate\"),0)","v":0},{"$f":"IF(Table_PI[[#This Row],[Hide:\nFormula Name]]<>\"\",IFERROR(IF(MeasureCalc(Table_PI[[#This Row],[Hide:\nFormula Name]],Table_PI[[#This Row],[Quantity]],Table_PI[[#This Row],[List 1]],Table_PI[[#This Row],[List 2]],Table_PI[[#This Row],[List 3]],Table_PI[[#This Row],[Size]],Table_PI[[#This Row],[Input 1]],Table_PI[[#This Row],[Input 2]],Table_PI[[#This Row],[Input 3]],Table_PI[[#This Row],[Input 4]],'Customer Information'!$AR$12,1,ROW())>0,MeasureCalc(Table_PI[[#This Row],[Hide:\nFormula Name]],Table_PI[[#This Row],[Quantity]],Table_PI[[#This Row],[List 1]],Table_PI[[#This Row],[List 2]],Table_PI[[#This Row],[List 3]],Table_PI[[#This Row],[Size]],Table_PI[[#This Row],[Input 1]],Table_PI[[#This Row],[Input 2]],Table_PI[[#This Row],[Input 3]],Table_PI[[#This Row],[Input 4]],'Customer Information'!$AR$12,2,ROW()),\"No Rebate\"),\"No Rebate\"),0)","v":0},{"$f":"IF(Table_PI[[#This Row],[Hide:\nFormula Name]]<>\"\",IFERROR(IF(MeasureCalc(Table_PI[[#This Row],[Hide:\nFormula Name]],Table_PI[[#This Row],[Quantity]],Table_PI[[#This Row],[List 1]],Table_PI[[#This Row],[List 2]],Table_PI[[#This Row],[List 3]],Table_PI[[#This Row],[Size]],Table_PI[[#This Row],[Input 1]],Table_PI[[#This Row],[Input 2]],Table_PI[[#This Row],[Input 3]],Table_PI[[#This Row],[Input 4]],'Customer Information'!$AR$12,1,ROW())>0,MeasureCalc(Table_PI[[#This Row],[Hide:\nFormula Name]],Table_PI[[#This Row],[Quantity]],Table_PI[[#This Row],[List 1]],Table_PI[[#This Row],[List 2]],Table_PI[[#This Row],[List 3]],Table_PI[[#This Row],[Size]],Table_PI[[#This Row],[Input 1]],Table_PI[[#This Row],[Input 2]],Table_PI[[#This Row],[Input 3]],Table_PI[[#This Row],[Input 4]],'Customer Information'!$AR$12,3,ROW()),\"No Rebate\"),\"No Rebate\"),0)","v":0},{"$f":"IF(Table_PI[[#This Row],[Hide:\nFormula Name]]<>\"\",IFERROR(IF(MeasureCalc(Table_PI[[#This Row],[Hide:\nFormula Name]],Table_PI[[#This Row],[Quantity]],Table_PI[[#This Row],[List 1]],Table_PI[[#This Row],[List 2]],Table_PI[[#This Row],[List 3]],Table_PI[[#This Row],[Size]],Table_PI[[#This Row],[Input 1]],Table_PI[[#This Row],[Input 2]],Table_PI[[#This Row],[Input 3]],Table_PI[[#This Row],[Input 4]],'Customer Information'!$AR$12,1,ROW())>0,MeasureCalc(Table_PI[[#This Row],[Hide:\nFormula Name]],Table_PI[[#This Row],[Quantity]],Table_PI[[#This Row],[List 1]],Table_PI[[#This Row],[List 2]],Table_PI[[#This Row],[List 3]],Table_PI[[#This Row],[Size]],Table_PI[[#This Row],[Input 1]],Table_PI[[#This Row],[Input 2]],Table_PI[[#This Row],[Input 3]],Table_PI[[#This Row],[Input 4]],'Customer Information'!$AR$12,4,ROW()),\"No Rebate\"),\"No Rebate\"),0)","v":0},{"$f":"IF(Table_PI[[#This Row],[Hide:\nFormula Name]]<>\"\",IFERROR(IF(MeasureCalc(Table_PI[[#This Row],[Hide:\nFormula Name]],Table_PI[[#This Row],[Quantity]],Table_PI[[#This Row],[List 1]],Table_PI[[#This Row],[List 2]],Table_PI[[#This Row],[List 3]],Table_PI[[#This Row],[Size]],Table_PI[[#This Row],[Input 1]],Table_PI[[#This Row],[Input 2]],Table_PI[[#This Row],[Input 3]],Table_PI[[#This Row],[Input 4]],'Customer Information'!$AR$12,1,ROW())>0,MeasureCalc(Table_PI[[#This Row],[Hide:\nFormula Name]],Table_PI[[#This Row],[Quantity]],Table_PI[[#This Row],[List 1]],Table_PI[[#This Row],[List 2]],Table_PI[[#This Row],[List 3]],Table_PI[[#This Row],[Size]],Table_PI[[#This Row],[Input 1]],Table_PI[[#This Row],[Input 2]],Table_PI[[#This Row],[Input 3]],Table_PI[[#This Row],[Input 4]],'Customer Information'!$AR$12,5,ROW()),\"No Rebate\"),\"No Rebate\"),0)","v":0},{"$f":"IF(Table_PI[[#This Row],[Hide:\nFormula Name]]<>\"\",IFERROR(IF(MeasureCalc(Table_PI[[#This Row],[Hide:\nFormula Name]],Table_PI[[#This Row],[Quantity]],Table_PI[[#This Row],[List 1]],Table_PI[[#This Row],[List 2]],Table_PI[[#This Row],[List 3]],Table_PI[[#This Row],[Size]],Table_PI[[#This Row],[Input 1]],Table_PI[[#This Row],[Input 2]],Table_PI[[#This Row],[Input 3]],Table_PI[[#This Row],[Input 4]],'Customer Information'!$AR$12,1,ROW())>0,MeasureCalc(Table_PI[[#This Row],[Hide:\nFormula Name]],Table_PI[[#This Row],[Quantity]],Table_PI[[#This Row],[List 1]],Table_PI[[#This Row],[List 2]],Table_PI[[#This Row],[List 3]],Table_PI[[#This Row],[Size]],Table_PI[[#This Row],[Input 1]],Table_PI[[#This Row],[Input 2]],Table_PI[[#This Row],[Input 3]],Table_PI[[#This Row],[Input 4]],'Customer Information'!$AR$12,6,ROW()),\"No Rebate\"),\"No Rebate\"),0)","v":0},{"$f":"IF(Table_PI[[#This Row],[Hide:\nFormula Name]]<>\"\",IFERROR(IF(MeasureCalc(Table_PI[[#This Row],[Hide:\nFormula Name]],Table_PI[[#This Row],[Quantity]],Table_PI[[#This Row],[List 1]],Table_PI[[#This Row],[List 2]],Table_PI[[#This Row],[List 3]],Table_PI[[#This Row],[Size]],Table_PI[[#This Row],[Input 1]],Table_PI[[#This Row],[Input 2]],Table_PI[[#This Row],[Input 3]],Table_PI[[#This Row],[Input 4]],'Customer Information'!$AR$12,1,ROW())>0,MeasureCalc(Table_PI[[#This Row],[Hide:\nFormula Name]],Table_PI[[#This Row],[Quantity]],Table_PI[[#This Row],[List 1]],Table_PI[[#This Row],[List 2]],Table_PI[[#This Row],[List 3]],Table_PI[[#This Row],[Size]],Table_PI[[#This Row],[Input 1]],Table_PI[[#This Row],[Input 2]],Table_PI[[#This Row],[Input 3]],Table_PI[[#This Row],[Input 4]],'Customer Information'!$AR$12,7,ROW()),\"No Rebate\"),\"No Rebate\"),0)","v":0},{"$f":"IF(Table_PI[[#This Row],[Hide:\nFormula Name]]<>\"\",IFERROR(IF(MeasureCalc(Table_PI[[#This Row],[Hide:\nFormula Name]],Table_PI[[#This Row],[Quantity]],Table_PI[[#This Row],[List 1]],Table_PI[[#This Row],[List 2]],Table_PI[[#This Row],[List 3]],Table_PI[[#This Row],[Size]],Table_PI[[#This Row],[Input 1]],Table_PI[[#This Row],[Input 2]],Table_PI[[#This Row],[Input 3]],Table_PI[[#This Row],[Input 4]],'Customer Information'!$AR$12,1,ROW())>0,MeasureCalc(Table_PI[[#This Row],[Hide:\nFormula Name]],Table_PI[[#This Row],[Quantity]],Table_PI[[#This Row],[List 1]],Table_PI[[#This Row],[List 2]],Table_PI[[#This Row],[List 3]],Table_PI[[#This Row],[Size]],Table_PI[[#This Row],[Input 1]],Table_PI[[#This Row],[Input 2]],Table_PI[[#This Row],[Input 3]],Table_PI[[#This Row],[Input 4]],'Customer Information'!$AR$12,8,ROW()),\"No Rebate\"),\"No Rebate\"),0)","v":0},{"$f":"IF(Table_PI[[#This Row],[Hide:\nFormula Name]]<>\"\",IF(AND(Table_PI[[#This Row],[Hide:\nFormula Name]]<>\"\",OR(Table_PI[[#This Row],[Rebate]]>0,Table_PI[[#This Row],[Rebate]]=\"No Rebate\")),TRUE,\"MI: Line Item \" & $A397),\"\")","v":""}]
[{"$f":"IF(Table_PI[[#This Row],[Hide:\nFormula Name]]<>\"\",MAX($A$2:A397)+1,\"\")","v":""},null,null,null,null,null,null,null,null,null,null,null,null,null,null,{"$f":"IFERROR(VLOOKUP(Table_PI[[#This Row],[Measure]],'Equipment Lookups'!$C$3:$D$23,2,FALSE),\"\")","v":""},{"$f":"IF(Table_PI[[#This Row],[Hide:\nFormula Name]]<>\"\",IFERROR(IF(MeasureCalc(Table_PI[[#This Row],[Hide:\nFormula Name]],Table_PI[[#This Row],[Quantity]],Table_PI[[#This Row],[List 1]],Table_PI[[#This Row],[List 2]],Table_PI[[#This Row],[List 3]],Table_PI[[#This Row],[Size]],Table_PI[[#This Row],[Input 1]],Table_PI[[#This Row],[Input 2]],Table_PI[[#This Row],[Input 3]],Table_PI[[#This Row],[Input 4]],'Customer Information'!$AR$12,1,ROW())>0,MeasureCalc(Table_PI[[#This Row],[Hide:\nFormula Name]],Table_PI[[#This Row],[Quantity]],Table_PI[[#This Row],[List 1]],Table_PI[[#This Row],[List 2]],Table_PI[[#This Row],[List 3]],Table_PI[[#This Row],[Size]],Table_PI[[#This Row],[Input 1]],Table_PI[[#This Row],[Input 2]],Table_PI[[#This Row],[Input 3]],Table_PI[[#This Row],[Input 4]],'Customer Information'!$AR$12,1,ROW()),\"No Rebate\"),\"No Rebate\"),0)","v":0},{"$f":"IF(Table_PI[[#This Row],[Hide:\nFormula Name]]<>\"\",IFERROR(IF(MeasureCalc(Table_PI[[#This Row],[Hide:\nFormula Name]],Table_PI[[#This Row],[Quantity]],Table_PI[[#This Row],[List 1]],Table_PI[[#This Row],[List 2]],Table_PI[[#This Row],[List 3]],Table_PI[[#This Row],[Size]],Table_PI[[#This Row],[Input 1]],Table_PI[[#This Row],[Input 2]],Table_PI[[#This Row],[Input 3]],Table_PI[[#This Row],[Input 4]],'Customer Information'!$AR$12,1,ROW())>0,MeasureCalc(Table_PI[[#This Row],[Hide:\nFormula Name]],Table_PI[[#This Row],[Quantity]],Table_PI[[#This Row],[List 1]],Table_PI[[#This Row],[List 2]],Table_PI[[#This Row],[List 3]],Table_PI[[#This Row],[Size]],Table_PI[[#This Row],[Input 1]],Table_PI[[#This Row],[Input 2]],Table_PI[[#This Row],[Input 3]],Table_PI[[#This Row],[Input 4]],'Customer Information'!$AR$12,2,ROW()),\"No Rebate\"),\"No Rebate\"),0)","v":0},{"$f":"IF(Table_PI[[#This Row],[Hide:\nFormula Name]]<>\"\",IFERROR(IF(MeasureCalc(Table_PI[[#This Row],[Hide:\nFormula Name]],Table_PI[[#This Row],[Quantity]],Table_PI[[#This Row],[List 1]],Table_PI[[#This Row],[List 2]],Table_PI[[#This Row],[List 3]],Table_PI[[#This Row],[Size]],Table_PI[[#This Row],[Input 1]],Table_PI[[#This Row],[Input 2]],Table_PI[[#This Row],[Input 3]],Table_PI[[#This Row],[Input 4]],'Customer Information'!$AR$12,1,ROW())>0,MeasureCalc(Table_PI[[#This Row],[Hide:\nFormula Name]],Table_PI[[#This Row],[Quantity]],Table_PI[[#This Row],[List 1]],Table_PI[[#This Row],[List 2]],Table_PI[[#This Row],[List 3]],Table_PI[[#This Row],[Size]],Table_PI[[#This Row],[Input 1]],Table_PI[[#This Row],[Input 2]],Table_PI[[#This Row],[Input 3]],Table_PI[[#This Row],[Input 4]],'Customer Information'!$AR$12,3,ROW()),\"No Rebate\"),\"No Rebate\"),0)","v":0},{"$f":"IF(Table_PI[[#This Row],[Hide:\nFormula Name]]<>\"\",IFERROR(IF(MeasureCalc(Table_PI[[#This Row],[Hide:\nFormula Name]],Table_PI[[#This Row],[Quantity]],Table_PI[[#This Row],[List 1]],Table_PI[[#This Row],[List 2]],Table_PI[[#This Row],[List 3]],Table_PI[[#This Row],[Size]],Table_PI[[#This Row],[Input 1]],Table_PI[[#This Row],[Input 2]],Table_PI[[#This Row],[Input 3]],Table_PI[[#This Row],[Input 4]],'Customer Information'!$AR$12,1,ROW())>0,MeasureCalc(Table_PI[[#This Row],[Hide:\nFormula Name]],Table_PI[[#This Row],[Quantity]],Table_PI[[#This Row],[List 1]],Table_PI[[#This Row],[List 2]],Table_PI[[#This Row],[List 3]],Table_PI[[#This Row],[Size]],Table_PI[[#This Row],[Input 1]],Table_PI[[#This Row],[Input 2]],Table_PI[[#This Row],[Input 3]],Table_PI[[#This Row],[Input 4]],'Customer Information'!$AR$12,4,ROW()),\"No Rebate\"),\"No Rebate\"),0)","v":0},{"$f":"IF(Table_PI[[#This Row],[Hide:\nFormula Name]]<>\"\",IFERROR(IF(MeasureCalc(Table_PI[[#This Row],[Hide:\nFormula Name]],Table_PI[[#This Row],[Quantity]],Table_PI[[#This Row],[List 1]],Table_PI[[#This Row],[List 2]],Table_PI[[#This Row],[List 3]],Table_PI[[#This Row],[Size]],Table_PI[[#This Row],[Input 1]],Table_PI[[#This Row],[Input 2]],Table_PI[[#This Row],[Input 3]],Table_PI[[#This Row],[Input 4]],'Customer Information'!$AR$12,1,ROW())>0,MeasureCalc(Table_PI[[#This Row],[Hide:\nFormula Name]],Table_PI[[#This Row],[Quantity]],Table_PI[[#This Row],[List 1]],Table_PI[[#This Row],[List 2]],Table_PI[[#This Row],[List 3]],Table_PI[[#This Row],[Size]],Table_PI[[#This Row],[Input 1]],Table_PI[[#This Row],[Input 2]],Table_PI[[#This Row],[Input 3]],Table_PI[[#This Row],[Input 4]],'Customer Information'!$AR$12,5,ROW()),\"No Rebate\"),\"No Rebate\"),0)","v":0},{"$f":"IF(Table_PI[[#This Row],[Hide:\nFormula Name]]<>\"\",IFERROR(IF(MeasureCalc(Table_PI[[#This Row],[Hide:\nFormula Name]],Table_PI[[#This Row],[Quantity]],Table_PI[[#This Row],[List 1]],Table_PI[[#This Row],[List 2]],Table_PI[[#This Row],[List 3]],Table_PI[[#This Row],[Size]],Table_PI[[#This Row],[Input 1]],Table_PI[[#This Row],[Input 2]],Table_PI[[#This Row],[Input 3]],Table_PI[[#This Row],[Input 4]],'Customer Information'!$AR$12,1,ROW())>0,MeasureCalc(Table_PI[[#This Row],[Hide:\nFormula Name]],Table_PI[[#This Row],[Quantity]],Table_PI[[#This Row],[List 1]],Table_PI[[#This Row],[List 2]],Table_PI[[#This Row],[List 3]],Table_PI[[#This Row],[Size]],Table_PI[[#This Row],[Input 1]],Table_PI[[#This Row],[Input 2]],Table_PI[[#This Row],[Input 3]],Table_PI[[#This Row],[Input 4]],'Customer Information'!$AR$12,6,ROW()),\"No Rebate\"),\"No Rebate\"),0)","v":0},{"$f":"IF(Table_PI[[#This Row],[Hide:\nFormula Name]]<>\"\",IFERROR(IF(MeasureCalc(Table_PI[[#This Row],[Hide:\nFormula Name]],Table_PI[[#This Row],[Quantity]],Table_PI[[#This Row],[List 1]],Table_PI[[#This Row],[List 2]],Table_PI[[#This Row],[List 3]],Table_PI[[#This Row],[Size]],Table_PI[[#This Row],[Input 1]],Table_PI[[#This Row],[Input 2]],Table_PI[[#This Row],[Input 3]],Table_PI[[#This Row],[Input 4]],'Customer Information'!$AR$12,1,ROW())>0,MeasureCalc(Table_PI[[#This Row],[Hide:\nFormula Name]],Table_PI[[#This Row],[Quantity]],Table_PI[[#This Row],[List 1]],Table_PI[[#This Row],[List 2]],Table_PI[[#This Row],[List 3]],Table_PI[[#This Row],[Size]],Table_PI[[#This Row],[Input 1]],Table_PI[[#This Row],[Input 2]],Table_PI[[#This Row],[Input 3]],Table_PI[[#This Row],[Input 4]],'Customer Information'!$AR$12,7,ROW()),\"No Rebate\"),\"No Rebate\"),0)","v":0},{"$f":"IF(Table_PI[[#This Row],[Hide:\nFormula Name]]<>\"\",IFERROR(IF(MeasureCalc(Table_PI[[#This Row],[Hide:\nFormula Name]],Table_PI[[#This Row],[Quantity]],Table_PI[[#This Row],[List 1]],Table_PI[[#This Row],[List 2]],Table_PI[[#This Row],[List 3]],Table_PI[[#This Row],[Size]],Table_PI[[#This Row],[Input 1]],Table_PI[[#This Row],[Input 2]],Table_PI[[#This Row],[Input 3]],Table_PI[[#This Row],[Input 4]],'Customer Information'!$AR$12,1,ROW())>0,MeasureCalc(Table_PI[[#This Row],[Hide:\nFormula Name]],Table_PI[[#This Row],[Quantity]],Table_PI[[#This Row],[List 1]],Table_PI[[#This Row],[List 2]],Table_PI[[#This Row],[List 3]],Table_PI[[#This Row],[Size]],Table_PI[[#This Row],[Input 1]],Table_PI[[#This Row],[Input 2]],Table_PI[[#This Row],[Input 3]],Table_PI[[#This Row],[Input 4]],'Customer Information'!$AR$12,8,ROW()),\"No Rebate\"),\"No Rebate\"),0)","v":0},{"$f":"IF(Table_PI[[#This Row],[Hide:\nFormula Name]]<>\"\",IF(AND(Table_PI[[#This Row],[Hide:\nFormula Name]]<>\"\",OR(Table_PI[[#This Row],[Rebate]]>0,Table_PI[[#This Row],[Rebate]]=\"No Rebate\")),TRUE,\"MI: Line Item \" & $A398),\"\")","v":""}]
[{"$f":"IF(Table_PI[[#This Row],[Hide:\nFormula Name]]<>\"\",MAX($A$2:A398)+1,\"\")","v":""},null,null,null,null,null,null,null,null,null,null,null,null,null,null,{"$f":"IFERROR(VLOOKUP(Table_PI[[#This Row],[Measure]],'Equipment Lookups'!$C$3:$D$23,2,FALSE),\"\")","v":""},{"$f":"IF(Table_PI[[#This Row],[Hide:\nFormula Name]]<>\"\",IFERROR(IF(MeasureCalc(Table_PI[[#This Row],[Hide:\nFormula Name]],Table_PI[[#This Row],[Quantity]],Table_PI[[#This Row],[List 1]],Table_PI[[#This Row],[List 2]],Table_PI[[#This Row],[List 3]],Table_PI[[#This Row],[Size]],Table_PI[[#This Row],[Input 1]],Table_PI[[#This Row],[Input 2]],Table_PI[[#This Row],[Input 3]],Table_PI[[#This Row],[Input 4]],'Customer Information'!$AR$12,1,ROW())>0,MeasureCalc(Table_PI[[#This Row],[Hide:\nFormula Name]],Table_PI[[#This Row],[Quantity]],Table_PI[[#This Row],[List 1]],Table_PI[[#This Row],[List 2]],Table_PI[[#This Row],[List 3]],Table_PI[[#This Row],[Size]],Table_PI[[#This Row],[Input 1]],Table_PI[[#This Row],[Input 2]],Table_PI[[#This Row],[Input 3]],Table_PI[[#This Row],[Input 4]],'Customer Information'!$AR$12,1,ROW()),\"No Rebate\"),\"No Rebate\"),0)","v":0},{"$f":"IF(Table_PI[[#This Row],[Hide:\nFormula Name]]<>\"\",IFERROR(IF(MeasureCalc(Table_PI[[#This Row],[Hide:\nFormula Name]],Table_PI[[#This Row],[Quantity]],Table_PI[[#This Row],[List 1]],Table_PI[[#This Row],[List 2]],Table_PI[[#This Row],[List 3]],Table_PI[[#This Row],[Size]],Table_PI[[#This Row],[Input 1]],Table_PI[[#This Row],[Input 2]],Table_PI[[#This Row],[Input 3]],Table_PI[[#This Row],[Input 4]],'Customer Information'!$AR$12,1,ROW())>0,MeasureCalc(Table_PI[[#This Row],[Hide:\nFormula Name]],Table_PI[[#This Row],[Quantity]],Table_PI[[#This Row],[List 1]],Table_PI[[#This Row],[List 2]],Table_PI[[#This Row],[List 3]],Table_PI[[#This Row],[Size]],Table_PI[[#This Row],[Input 1]],Table_PI[[#This Row],[Input 2]],Table_PI[[#This Row],[Input 3]],Table_PI[[#This Row],[Input 4]],'Customer Information'!$AR$12,2,ROW()),\"No Rebate\"),\"No Rebate\"),0)","v":0},{"$f":"IF(Table_PI[[#This Row],[Hide:\nFormula Name]]<>\"\",IFERROR(IF(MeasureCalc(Table_PI[[#This Row],[Hide:\nFormula Name]],Table_PI[[#This Row],[Quantity]],Table_PI[[#This Row],[List 1]],Table_PI[[#This Row],[List 2]],Table_PI[[#This Row],[List 3]],Table_PI[[#This Row],[Size]],Table_PI[[#This Row],[Input 1]],Table_PI[[#This Row],[Input 2]],Table_PI[[#This Row],[Input 3]],Table_PI[[#This Row],[Input 4]],'Customer Information'!$AR$12,1,ROW())>0,MeasureCalc(Table_PI[[#This Row],[Hide:\nFormula Name]],Table_PI[[#This Row],[Quantity]],Table_PI[[#This Row],[List 1]],Table_PI[[#This Row],[List 2]],Table_PI[[#This Row],[List 3]],Table_PI[[#This Row],[Size]],Table_PI[[#This Row],[Input 1]],Table_PI[[#This Row],[Input 2]],Table_PI[[#This Row],[Input 3]],Table_PI[[#This Row],[Input 4]],'Customer Information'!$AR$12,3,ROW()),\"No Rebate\"),\"No Rebate\"),0)","v":0},{"$f":"IF(Table_PI[[#This Row],[Hide:\nFormula Name]]<>\"\",IFERROR(IF(MeasureCalc(Table_PI[[#This Row],[Hide:\nFormula Name]],Table_PI[[#This Row],[Quantity]],Table_PI[[#This Row],[List 1]],Table_PI[[#This Row],[List 2]],Table_PI[[#This Row],[List 3]],Table_PI[[#This Row],[Size]],Table_PI[[#This Row],[Input 1]],Table_PI[[#This Row],[Input 2]],Table_PI[[#This Row],[Input 3]],Table_PI[[#This Row],[Input 4]],'Customer Information'!$AR$12,1,ROW())>0,MeasureCalc(Table_PI[[#This Row],[Hide:\nFormula Name]],Table_PI[[#This Row],[Quantity]],Table_PI[[#This Row],[List 1]],Table_PI[[#This Row],[List 2]],Table_PI[[#This Row],[List 3]],Table_PI[[#This Row],[Size]],Table_PI[[#This Row],[Input 1]],Table_PI[[#This Row],[Input 2]],Table_PI[[#This Row],[Input 3]],Table_PI[[#This Row],[Input 4]],'Customer Information'!$AR$12,4,ROW()),\"No Rebate\"),\"No Rebate\"),0)","v":0},{"$f":"IF(Table_PI[[#This Row],[Hide:\nFormula Name]]<>\"\",IFERROR(IF(MeasureCalc(Table_PI[[#This Row],[Hide:\nFormula Name]],Table_PI[[#This Row],[Quantity]],Table_PI[[#This Row],[List 1]],Table_PI[[#This Row],[List 2]],Table_PI[[#This Row],[List 3]],Table_PI[[#This Row],[Size]],Table_PI[[#This Row],[Input 1]],Table_PI[[#This Row],[Input 2]],Table_PI[[#This Row],[Input 3]],Table_PI[[#This Row],[Input 4]],'Customer Information'!$AR$12,1,ROW())>0,MeasureCalc(Table_PI[[#This Row],[Hide:\nFormula Name]],Table_PI[[#This Row],[Quantity]],Table_PI[[#This Row],[List 1]],Table_PI[[#This Row],[List 2]],Table_PI[[#This Row],[List 3]],Table_PI[[#This Row],[Size]],Table_PI[[#This Row],[Input 1]],Table_PI[[#This Row],[Input 2]],Table_PI[[#This Row],[Input 3]],Table_PI[[#This Row],[Input 4]],'Customer Information'!$AR$12,5,ROW()),\"No Rebate\"),\"No Rebate\"),0)","v":0},{"$f":"IF(Table_PI[[#This Row],[Hide:\nFormula Name]]<>\"\",IFERROR(IF(MeasureCalc(Table_PI[[#This Row],[Hide:\nFormula Name]],Table_PI[[#This Row],[Quantity]],Table_PI[[#This Row],[List 1]],Table_PI[[#This Row],[List 2]],Table_PI[[#This Row],[List 3]],Table_PI[[#This Row],[Size]],Table_PI[[#This Row],[Input 1]],Table_PI[[#This Row],[Input 2]],Table_PI[[#This Row],[Input 3]],Table_PI[[#This Row],[Input 4]],'Customer Information'!$AR$12,1,ROW())>0,MeasureCalc(Table_PI[[#This Row],[Hide:\nFormula Name]],Table_PI[[#This Row],[Quantity]],Table_PI[[#This Row],[List 1]],Table_PI[[#This Row],[List 2]],Table_PI[[#This Row],[List 3]],Table_PI[[#This Row],[Size]],Table_PI[[#This Row],[Input 1]],Table_PI[[#This Row],[Input 2]],Table_PI[[#This Row],[Input 3]],Table_PI[[#This Row],[Input 4]],'Customer Information'!$AR$12,6,ROW()),\"No Rebate\"),\"No Rebate\"),0)","v":0},{"$f":"IF(Table_PI[[#This Row],[Hide:\nFormula Name]]<>\"\",IFERROR(IF(MeasureCalc(Table_PI[[#This Row],[Hide:\nFormula Name]],Table_PI[[#This Row],[Quantity]],Table_PI[[#This Row],[List 1]],Table_PI[[#This Row],[List 2]],Table_PI[[#This Row],[List 3]],Table_PI[[#This Row],[Size]],Table_PI[[#This Row],[Input 1]],Table_PI[[#This Row],[Input 2]],Table_PI[[#This Row],[Input 3]],Table_PI[[#This Row],[Input 4]],'Customer Information'!$AR$12,1,ROW())>0,MeasureCalc(Table_PI[[#This Row],[Hide:\nFormula Name]],Table_PI[[#This Row],[Quantity]],Table_PI[[#This Row],[List 1]],Table_PI[[#This Row],[List 2]],Table_PI[[#This Row],[List 3]],Table_PI[[#This Row],[Size]],Table_PI[[#This Row],[Input 1]],Table_PI[[#This Row],[Input 2]],Table_PI[[#This Row],[Input 3]],Table_PI[[#This Row],[Input 4]],'Customer Information'!$AR$12,7,ROW()),\"No Rebate\"),\"No Rebate\"),0)","v":0},{"$f":"IF(Table_PI[[#This Row],[Hide:\nFormula Name]]<>\"\",IFERROR(IF(MeasureCalc(Table_PI[[#This Row],[Hide:\nFormula Name]],Table_PI[[#This Row],[Quantity]],Table_PI[[#This Row],[List 1]],Table_PI[[#This Row],[List 2]],Table_PI[[#This Row],[List 3]],Table_PI[[#This Row],[Size]],Table_PI[[#This Row],[Input 1]],Table_PI[[#This Row],[Input 2]],Table_PI[[#This Row],[Input 3]],Table_PI[[#This Row],[Input 4]],'Customer Information'!$AR$12,1,ROW())>0,MeasureCalc(Table_PI[[#This Row],[Hide:\nFormula Name]],Table_PI[[#This Row],[Quantity]],Table_PI[[#This Row],[List 1]],Table_PI[[#This Row],[List 2]],Table_PI[[#This Row],[List 3]],Table_PI[[#This Row],[Size]],Table_PI[[#This Row],[Input 1]],Table_PI[[#This Row],[Input 2]],Table_PI[[#This Row],[Input 3]],Table_PI[[#This Row],[Input 4]],'Customer Information'!$AR$12,8,ROW()),\"No Rebate\"),\"No Rebate\"),0)","v":0},{"$f":"IF(Table_PI[[#This Row],[Hide:\nFormula Name]]<>\"\",IF(AND(Table_PI[[#This Row],[Hide:\nFormula Name]]<>\"\",OR(Table_PI[[#This Row],[Rebate]]>0,Table_PI[[#This Row],[Rebate]]=\"No Rebate\")),TRUE,\"MI: Line Item \" & $A399),\"\")","v":""}]
[{"$f":"IF(Table_PI[[#This Row],[Hide:\nFormula Name]]<>\"\",MAX($A$2:A399)+1,\"\")","v":""},null,null,null,null,null,null,null,null,null,null,null,null,null,null,{"$f":"IFERROR(VLOOKUP(Table_PI[[#This Row],[Measure]],'Equipment Lookups'!$C$3:$D$23,2,FALSE),\"\")","v":""},{"$f":"IF(Table_PI[[#This Row],[Hide:\nFormula Name]]<>\"\",IFERROR(IF(MeasureCalc(Table_PI[[#This Row],[Hide:\nFormula Name]],Table_PI[[#This Row],[Quantity]],Table_PI[[#This Row],[List 1]],Table_PI[[#This Row],[List 2]],Table_PI[[#This Row],[List 3]],Table_PI[[#This Row],[Size]],Table_PI[[#This Row],[Input 1]],Table_PI[[#This Row],[Input 2]],Table_PI[[#This Row],[Input 3]],Table_PI[[#This Row],[Input 4]],'Customer Information'!$AR$12,1,ROW())>0,MeasureCalc(Table_PI[[#This Row],[Hide:\nFormula Name]],Table_PI[[#This Row],[Quantity]],Table_PI[[#This Row],[List 1]],Table_PI[[#This Row],[List 2]],Table_PI[[#This Row],[List 3]],Table_PI[[#This Row],[Size]],Table_PI[[#This Row],[Input 1]],Table_PI[[#This Row],[Input 2]],Table_PI[[#This Row],[Input 3]],Table_PI[[#This Row],[Input 4]],'Customer Information'!$AR$12,1,ROW()),\"No Rebate\"),\"No Rebate\"),0)","v":0},{"$f":"IF(Table_PI[[#This Row],[Hide:\nFormula Name]]<>\"\",IFERROR(IF(MeasureCalc(Table_PI[[#This Row],[Hide:\nFormula Name]],Table_PI[[#This Row],[Quantity]],Table_PI[[#This Row],[List 1]],Table_PI[[#This Row],[List 2]],Table_PI[[#This Row],[List 3]],Table_PI[[#This Row],[Size]],Table_PI[[#This Row],[Input 1]],Table_PI[[#This Row],[Input 2]],Table_PI[[#This Row],[Input 3]],Table_PI[[#This Row],[Input 4]],'Customer Information'!$AR$12,1,ROW())>0,MeasureCalc(Table_PI[[#This Row],[Hide:\nFormula Name]],Table_PI[[#This Row],[Quantity]],Table_PI[[#This Row],[List 1]],Table_PI[[#This Row],[List 2]],Table_PI[[#This Row],[List 3]],Table_PI[[#This Row],[Size]],Table_PI[[#This Row],[Input 1]],Table_PI[[#This Row],[Input 2]],Table_PI[[#This Row],[Input 3]],Table_PI[[#This Row],[Input 4]],'Customer Information'!$AR$12,2,ROW()),\"No Rebate\"),\"No Rebate\"),0)","v":0},{"$f":"IF(Table_PI[[#This Row],[Hide:\nFormula Name]]<>\"\",IFERROR(IF(MeasureCalc(Table_PI[[#This Row],[Hide:\nFormula Name]],Table_PI[[#This Row],[Quantity]],Table_PI[[#This Row],[List 1]],Table_PI[[#This Row],[List 2]],Table_PI[[#This Row],[List 3]],Table_PI[[#This Row],[Size]],Table_PI[[#This Row],[Input 1]],Table_PI[[#This Row],[Input 2]],Table_PI[[#This Row],[Input 3]],Table_PI[[#This Row],[Input 4]],'Customer Information'!$AR$12,1,ROW())>0,MeasureCalc(Table_PI[[#This Row],[Hide:\nFormula Name]],Table_PI[[#This Row],[Quantity]],Table_PI[[#This Row],[List 1]],Table_PI[[#This Row],[List 2]],Table_PI[[#This Row],[List 3]],Table_PI[[#This Row],[Size]],Table_PI[[#This Row],[Input 1]],Table_PI[[#This Row],[Input 2]],Table_PI[[#This Row],[Input 3]],Table_PI[[#This Row],[Input 4]],'Customer Information'!$AR$12,3,ROW()),\"No Rebate\"),\"No Rebate\"),0)","v":0},{"$f":"IF(Table_PI[[#This Row],[Hide:\nFormula Name]]<>\"\",IFERROR(IF(MeasureCalc(Table_PI[[#This Row],[Hide:\nFormula Name]],Table_PI[[#This Row],[Quantity]],Table_PI[[#This Row],[List 1]],Table_PI[[#This Row],[List 2]],Table_PI[[#This Row],[List 3]],Table_PI[[#This Row],[Size]],Table_PI[[#This Row],[Input 1]],Table_PI[[#This Row],[Input 2]],Table_PI[[#This Row],[Input 3]],Table_PI[[#This Row],[Input 4]],'Customer Information'!$AR$12,1,ROW())>0,MeasureCalc(Table_PI[[#This Row],[Hide:\nFormula Name]],Table_PI[[#This Row],[Quantity]],Table_PI[[#This Row],[List 1]],Table_PI[[#This Row],[List 2]],Table_PI[[#This Row],[List 3]],Table_PI[[#This Row],[Size]],Table_PI[[#This Row],[Input 1]],Table_PI[[#This Row],[Input 2]],Table_PI[[#This Row],[Input 3]],Table_PI[[#This Row],[Input 4]],'Customer Information'!$AR$12,4,ROW()),\"No Rebate\"),\"No Rebate\"),0)","v":0},{"$f":"IF(Table_PI[[#This Row],[Hide:\nFormula Name]]<>\"\",IFERROR(IF(MeasureCalc(Table_PI[[#This Row],[Hide:\nFormula Name]],Table_PI[[#This Row],[Quantity]],Table_PI[[#This Row],[List 1]],Table_PI[[#This Row],[List 2]],Table_PI[[#This Row],[List 3]],Table_PI[[#This Row],[Size]],Table_PI[[#This Row],[Input 1]],Table_PI[[#This Row],[Input 2]],Table_PI[[#This Row],[Input 3]],Table_PI[[#This Row],[Input 4]],'Customer Information'!$AR$12,1,ROW())>0,MeasureCalc(Table_PI[[#This Row],[Hide:\nFormula Name]],Table_PI[[#This Row],[Quantity]],Table_PI[[#This Row],[List 1]],Table_PI[[#This Row],[List 2]],Table_PI[[#This Row],[List 3]],Table_PI[[#This Row],[Size]],Table_PI[[#This Row],[Input 1]],Table_PI[[#This Row],[Input 2]],Table_PI[[#This Row],[Input 3]],Table_PI[[#This Row],[Input 4]],'Customer Information'!$AR$12,5,ROW()),\"No Rebate\"),\"No Rebate\"),0)","v":0},{"$f":"IF(Table_PI[[#This Row],[Hide:\nFormula Name]]<>\"\",IFERROR(IF(MeasureCalc(Table_PI[[#This Row],[Hide:\nFormula Name]],Table_PI[[#This Row],[Quantity]],Table_PI[[#This Row],[List 1]],Table_PI[[#This Row],[List 2]],Table_PI[[#This Row],[List 3]],Table_PI[[#This Row],[Size]],Table_PI[[#This Row],[Input 1]],Table_PI[[#This Row],[Input 2]],Table_PI[[#This Row],[Input 3]],Table_PI[[#This Row],[Input 4]],'Customer Information'!$AR$12,1,ROW())>0,MeasureCalc(Table_PI[[#This Row],[Hide:\nFormula Name]],Table_PI[[#This Row],[Quantity]],Table_PI[[#This Row],[List 1]],Table_PI[[#This Row],[List 2]],Table_PI[[#This Row],[List 3]],Table_PI[[#This Row],[Size]],Table_PI[[#This Row],[Input 1]],Table_PI[[#This Row],[Input 2]],Table_PI[[#This Row],[Input 3]],Table_PI[[#This Row],[Input 4]],'Customer Information'!$AR$12,6,ROW()),\"No Rebate\"),\"No Rebate\"),0)","v":0},{"$f":"IF(Table_PI[[#This Row],[Hide:\nFormula Name]]<>\"\",IFERROR(IF(MeasureCalc(Table_PI[[#This Row],[Hide:\nFormula Name]],Table_PI[[#This Row],[Quantity]],Table_PI[[#This Row],[List 1]],Table_PI[[#This Row],[List 2]],Table_PI[[#This Row],[List 3]],Table_PI[[#This Row],[Size]],Table_PI[[#This Row],[Input 1]],Table_PI[[#This Row],[Input 2]],Table_PI[[#This Row],[Input 3]],Table_PI[[#This Row],[Input 4]],'Customer Information'!$AR$12,1,ROW())>0,MeasureCalc(Table_PI[[#This Row],[Hide:\nFormula Name]],Table_PI[[#This Row],[Quantity]],Table_PI[[#This Row],[List 1]],Table_PI[[#This Row],[List 2]],Table_PI[[#This Row],[List 3]],Table_PI[[#This Row],[Size]],Table_PI[[#This Row],[Input 1]],Table_PI[[#This Row],[Input 2]],Table_PI[[#This Row],[Input 3]],Table_PI[[#This Row],[Input 4]],'Customer Information'!$AR$12,7,ROW()),\"No Rebate\"),\"No Rebate\"),0)","v":0},{"$f":"IF(Table_PI[[#This Row],[Hide:\nFormula Name]]<>\"\",IFERROR(IF(MeasureCalc(Table_PI[[#This Row],[Hide:\nFormula Name]],Table_PI[[#This Row],[Quantity]],Table_PI[[#This Row],[List 1]],Table_PI[[#This Row],[List 2]],Table_PI[[#This Row],[List 3]],Table_PI[[#This Row],[Size]],Table_PI[[#This Row],[Input 1]],Table_PI[[#This Row],[Input 2]],Table_PI[[#This Row],[Input 3]],Table_PI[[#This Row],[Input 4]],'Customer Information'!$AR$12,1,ROW())>0,MeasureCalc(Table_PI[[#This Row],[Hide:\nFormula Name]],Table_PI[[#This Row],[Quantity]],Table_PI[[#This Row],[List 1]],Table_PI[[#This Row],[List 2]],Table_PI[[#This Row],[List 3]],Table_PI[[#This Row],[Size]],Table_PI[[#This Row],[Input 1]],Table_PI[[#This Row],[Input 2]],Table_PI[[#This Row],[Input 3]],Table_PI[[#This Row],[Input 4]],'Customer Information'!$AR$12,8,ROW()),\"No Rebate\"),\"No Rebate\"),0)","v":0},{"$f":"IF(Table_PI[[#This Row],[Hide:\nFormula Name]]<>\"\",IF(AND(Table_PI[[#This Row],[Hide:\nFormula Name]]<>\"\",OR(Table_PI[[#This Row],[Rebate]]>0,Table_PI[[#This Row],[Rebate]]=\"No Rebate\")),TRUE,\"MI: Line Item \" & $A400),\"\")","v":""}]
["Totals",".",".",".",".",".",".",".",".",".",".",".",".",".",".",".",{"$f":"IF(SUM($Q$3:$Q$400)>0,IF(SUM($Q$3:$Q400)>=100,MIN(300000,SUM(Q$3:Q400),'Customer Information'!$BC$17),\"$100 Min Not Met\"),0)","v":0},{"$f":"IF(SUM($Q$3:$Q$400)>0,IF(SUM($Q$3:$Q400)>=100,SUM(R$3:R400),\"$100 Min Not Met\"),0)","v":0},{"$f":"IF(SUM($Q$3:$Q$400)>0,IF(SUM($Q$3:$Q400)>=100,SUM(S$3:S400),\"$100 Min Not Met\"),0)","v":0},{"$f":"IF(SUM($Q$3:$Q$400)>0,IF(SUM($Q$3:$Q400)>=100,SUM(T$3:T400),\"$100 Min Not Met\"),0)","v":0},{"$f":"IF(SUM($Q$3:$Q$400)>0,IF(SUM($Q$3:$Q400)>=100,SUM(U$3:U400),\"$100 Min Not Met\"),0)","v":0},{"$f":"IF(SUM($Q$3:$Q$400)>0,IF(SUM($Q$3:$Q400)>=100,SUM(V$3:V400),\"$100 Min Not Met\"),0)","v":0},{"$f":"IF(SUM($Q$3:$Q$400)>0,IF(SUM($Q$3:$Q400)>=100,SUM(W$3:W400),\"$100 Min Not Met\"),0)","v":0},{"$f":"IF(SUM($Q$3:$Q$400)>0,IF(SUM($Q$3:$Q400)>=100,SUM(X$3:X400),\"$100 Min Not Met\"),0)","v":0},{"$f":"IFERROR(IF(MAX($A$3:$A$400)=0,\"No Measures Selected\", INDIRECT(\"R\" & MATCH(\"MI:*\",$Y$3:$Y$400,0)+1)),\"Complete\")","v":"No Measures Selected"}]

{"sheet":"Project Summary","index":4,"n_rows":401,"n_cols":48,"rows_kept":401,"cut":false,"hidden":true,"merged":[[18,42,18,49],[20,42,20,49],[24,42,25,49],[1,42,1,44],[2,42,2,44],[3,42,3,44],[4,42,4,44],[7,42,7,49]]}
[1,2,3,4,5,6,7,8,9,10,11,12,13,14,15,16,17,18,19,20,21,22,23,24,25,26,27,28,29,30,31,32,33,34,35,36,37,38,39,40,41]
["Line No.","MeasureName","MeassureCategory","ProposedMeasureCategory","P_MeasureOption1","P_MeasureOption2","Manufacturer","Model#","Serial#","SizeUnit","Size","Input1","B_InputValue1","P_InputValue1","Input2","B_InputValue2","P_InputValue2","Input3","B_InputValue3","P_InputValue3","Input4","B_InputValue4","P_InputValue4","Quantity","Notes","BaselinekWh","BaselinekW","ProposedkWh","ProposedkW","Incentive_Customer","IncrementalCost","MeasureCost","kWhSavings","DemandSavingskW","AnnualCO2Savings","AnnualVehicleSavings","AnnualCarbonSavings","AnnualN3OSavings","EFLHCooling","EFLH_Heating","MeasureLife",null,"Key"]
[{"$f":"Table_PI[[#This Row],[Line No.]]","v":""},{"$f":"IF(Table_SummaryPI[[#This Row],[MeassureCategory]]<>\"\",CONCATENATE(Table_SummaryPI[[#This Row],[MeassureCategory]],  \" - \", Table_SummaryPI[[#This Row],[ProposedMeasureCategory]],  \" - \", TEXT(Table_SummaryPI[[#This Row],[Size]],\"#,##0.00\"),\" \",Table_SummaryPI[[#This Row],[SizeUnit]]),\"\")","v":""},{"$f":"SUBSTITUTE(Table_PI[[#This Row],[Measure]],\"     \",\"\",1)","v":""},{"$f":"IF(Table_PI[[#This Row],[List 1]]<>\"\",Table_PI[[#This Row],[List 1]],\"\")","v":""},{"$f":"IF(Table_PI[[#This Row],[List 2]]<>\"\",Table_PI[[#This Row],[List 2]],\"\")","v":""},{"$f":"IF(Table_PI[[#This Row],[List 3]]<>\"\",Table_PI[[#This Row],[List 3]],\"\")","v":""},{"$f":"IF(Table_PI[[#This Row],[Manufacturer]]=\"\",\"\",Table_PI[[#This Row],[Manufacturer]])","v":""},{"$f":"IF(Table_PI[[#This Row],[Model Number]]=\"\",\"\",Table_PI[[#This Row],[Model Number]])","v":""},{"$f":"IF(Table_PI[[#This Row],[Serial Number(s)]]=\"\",\"\",Table_PI[[#This Row],[Serial Number(s)]])","v":""},null,{"$f":"IF(Table_PI[[#This Row],[Size]]=\"\",\"\",Table_PI[[#This Row],[Size]])","v":""},null,{"$f":"IFERROR(IF(AND(MeasureCalc(Table_PI[[#This Row],[Hide:\nFormula Name]],Table_SummaryPI[[#This Row],[Quantity]],Table_PI[[#This Row],[List 1]],Table_PI[[#This Row],[List 2]],Table_PI[[#This Row],[List 3]],Table_PI[[#This Row],[Size]],Table_PI[[#This Row],[Input 1]],Table_PI[[#This Row],[Input 2]],Table_PI[[#This Row],[Input 3]],Table_PI[[#This Row],[Input 4]],'Customer Information'!$AR$12,100,ROW())<>0,MeasureCalc(Table_PI[[#This Row],[Hide:\nFormula Name]],Table_SummaryPI[[#This Row],[Quantity]],Table_PI[[#This Row],[List 1]],Table_PI[[#This Row],[List 2]],Table_PI[[#This Row],[List 3]],Table_PI[[#This Row],[Size]],Table_PI[[#This Row],[Input 1]],Table_PI[[#This Row],[Input 2]],Table_PI[[#This Row],[Input 3]],Table_PI[[#This Row],[Input 4]],'Customer Information'!$AR$12,100,ROW())<>\"No Rebate\"),MeasureCalc(Table_PI[[#This Row],[Hide:\nFormula Name]],Table_SummaryPI[[#This Row],[Quantity]],Table_PI[[#This Row],[List 1]],Table_PI[[#This Row],[List 2]],Table_PI[[#This Row],[List 3]],Table_PI[[#This Row],[Size]],Table_PI[[#This Row],[Input 1]],Table_PI[[#This Row],[Input 2]],Table_PI[[#This Row],[Input 3]],Table_PI[[#This Row],[Input 4]],'Customer Information'!$AR$12,100,ROW()),\"\"),\"\")","v":""},{"$f":"IF(Table_PI[[#This Row],[Input 1]]<>\"\",Table_PI[[#This Row],[Input 1]],\"\")","v":""},null,{"$f":"IFERROR(IF(AND(MeasureCalc(Table_PI[[#This Row],[Hide:\nFormula Name]],Table_SummaryPI[[#This Row],[Quantity]],Table_PI[[#This Row],[List 1]],Table_PI[[#This Row],[List 2]],Table_PI[[#This Row],[List 3]],Table_PI[[#This Row],[Size]],Table_PI[[#This Row],[Input 1]],Table_PI[[#This Row],[Input 2]],Table_PI[[#This Row],[Input 3]],Table_PI[[#This Row],[Input 4]],'Customer Information'!$AR$12,101,ROW())<>0,MeasureCalc(Table_PI[[#This Row],[Hide:\nFormula Name]],Table_SummaryPI[[#This Row],[Quantity]],Table_PI[[#This Row],[List 1]],Table_PI[[#This Row],[List 2]],Table_PI[[#This Row],[List 3]],Table_PI[[#This Row],[Size]],Table_PI[[#This Row],[Input 1]],Table_PI[[#This Row],[Input 2]],Table_PI[[#This Row],[Input 3]],Table_PI[[#This Row],[Input 4]],'Customer Information'!$AR$12,101,ROW())<>\"No Rebate\"),MeasureCalc(Table_PI[[#This Row],[Hide:\nFormula Name]],Table_SummaryPI[[#This Row],[Quantity]],Table_PI[[#This Row],[List 1]],Table_PI[[#This Row],[List 2]],Table_PI[[#This Row],[List 3]],Table_PI[[#This Row],[Size]],Table_PI[[#This Row],[Input 1]],Table_PI[[#This Row],[Input 2]],Table_PI[[#This Row],[Input 3]],Table_PI[[#This Row],[Input 4]],'Customer Information'!$AR$12,101,ROW()),\"\"),\"\")","v":""},{"$f":"IF(Table_PI[[#This Row],[Input 2]]<>\"\",Table_PI[[#This Row],[Input 2]],\"\")","v":""},null,{"$f":"IFERROR(IF(AND(MeasureCalc(Table_PI[[#This Row],[Hide:\nFormula Name]],Table_SummaryPI[[#This Row],[Quantity]],Table_PI[[#This Row],[List 1]],Table_PI[[#This Row],[List 2]],Table_PI[[#This Row],[List 3]],Table_PI[[#This Row],[Size]],Table_PI[[#This Row],[Input 1]],Table_PI[[#This Row],[Input 2]],Table_PI[[#This Row],[Input 3]],Table_PI[[#This Row],[Input 4]],'Customer Information'!$AR$12,102,ROW())<>0,MeasureCalc(Table_PI[[#This Row],[Hide:\nFormula Name]],Table_SummaryPI[[#This Row],[Quantity]],Table_PI[[#This Row],[List 1]],Table_PI[[#This Row],[List 2]],Table_PI[[#This Row],[List 3]],Table_PI[[#This Row],[Size]],Table_PI[[#This Row],[Input 1]],Table_PI[[#This Row],[Input 2]],Table_PI[[#This Row],[Input 3]],Table_PI[[#This Row],[Input 4]],'Customer Information'!$AR$12,102,ROW())<>\"No Rebate\"),MeasureCalc(Table_PI[[#This Row],[Hide:\nFormula Name]],Table_SummaryPI[[#This Row],[Quantity]],Table_PI[[#This Row],[List 1]],Table_PI[[#This Row],[List 2]],Table_PI[[#This Row],[List 3]],Table_PI[[#This Row],[Size]],Table_PI[[#This Row],[Input 1]],Table_PI[[#This Row],[Input 2]],Table_PI[[#This Row],[Input 3]],Table_PI[[#This Row],[Input 4]],'Customer Information'!$AR$12,102,ROW()),\"\"),\"\")","v":""},{"$f":"IF(Table_PI[[#This Row],[Input 3]]<>\"\",Table_PI[[#This Row],[Input 3]],\"\")","v":""},null,{"$f":"IFERROR(IF(AND(MeasureCalc(Table_PI[[#This Row],[Hide:\nFormula Name]],Table_SummaryPI[[#This Row],[Quantity]],Table_PI[[#This Row],[List 1]],Table_PI[[#This Row],[List 2]],Table_PI[[#This Row],[List 3]],Table_PI[[#This Row],[Size]],Table_PI[[#This Row],[Input 1]],Table_PI[[#This Row],[Input 2]],Table_PI[[#This Row],[Input 3]],Table_PI[[#This Row],[Input 4]],'Customer Information'!$AR$12,103,ROW())<>0,MeasureCalc(Table_PI[[#This Row],[Hide:\nFormula Name]],Table_SummaryPI[[#This Row],[Quantity]],Table_PI[[#This Row],[List 1]],Table_PI[[#This Row],[List 2]],Table_PI[[#This Row],[List 3]],Table_PI[[#This Row],[Size]],Table_PI[[#This Row],[Input 1]],Table_PI[[#This Row],[Input 2]],Table_PI[[#This Row],[Input 3]],Table_PI[[#This Row],[Input 4]],'Customer Information'!$AR$12,103,ROW())<>\"No Rebate\"),MeasureCalc(Table_PI[[#This Row],[Hide:\nFormula Name]],Table_SummaryPI[[#This Row],[Quantity]],Table_PI[[#This Row],[List 1]],Table_PI[[#This Row],[List 2]],Table_PI[[#This Row],[List 3]],Table_PI[[#This Row],[Size]],Table_PI[[#This Row],[Input 1]],Table_PI[[#This Row],[Input 2]],Table_PI[[#This Row],[Input 3]],Table_PI[[#This Row],[Input 4]],'Customer Information'!$AR$12,103,ROW()),\"\"),\"\")","v":""},{"$f":"IF(Table_PI[[#This Row],[Input 4]]<>\"\",Table_PI[[#This Row],[Input 4]],\"\")","v":""},{"$f":"IF(Table_PI[[#This Row],[Quantity]]=\"\",\"\",Table_PI[[#This Row],[Quantity]])","v":""},{"$f":"IF(Table_PI[[#This Row],[Notes]]=\"\",\"\",Table_PI[[#This Row],[Notes]])","v":""},{"$f":"IF(OR(Table_PI[[#This Row],[Hide:\nBaseline kWh]]=\"\",Table_PI[[#This Row],[Hide:\nBaseline kWh]]=0),\"\",Table_PI[[#This Row],[Hide:\nBaseline kWh]])","v":""},{"$f":"IF(OR(Table_PI[[#This Row],[Hide:\nBaseline kW]]=\"\",Table_PI[[#This Row],[Hide:\nBaseline kW]]=0),\"\",Table_PI[[#This Row],[Hide:\nBaseline kW]])","v":""},{"$f":"IF(OR(Table_PI[[#This Row],[Hide:\nProposed kWh]]=\"\",Table_PI[[#This Row],[Hide:\nProposed kWh]]=0),\"\",Table_PI[[#This Row],[Hide:\nProposed kWh]])","v":""},{"$f":"IF(OR(Table_PI[[#This Row],[Hide:\nProposed kW]]=\"\",Table_PI[[#This Row],[Hide:\nProposed kW]]=0),\"\",Table_PI[[#This Row],[Hide:\nProposed kW]])","v":""},{"$f":"IF(OR(Table_PI[[#This Row],[Rebate]]=\"\",Table_PI[[#This Row],[Rebate]]=0),\"\",Table_PI[[#This Row],[Rebate]])","v":""},{"$f":"IF(OR(Table_PI[[#This Row],[Hide:\nIncremental Cost]]=\"\",Table_PI[[#This Row],[Hide:\nIncremental Cost]]=0),\"\",Table_PI[[#This Row],[Hide:\nIncremental Cost]])","v":""},{"$f":"IFERROR(IF(Table_SummaryPI[[#This Row],[kWhSavings]]=\"\",\"\",ROUND(Table_SummaryPI[[#This Row],[kWhSavings]]/$AG$401*'Customer Information'!$BC$17,2)),0)","v":""},{"$f":"IF(OR(Table_PI[[#This Row],[Annual kWh]]=\"\",Table_PI[[#This Row],[Annual kWh]]=0),\"\",Table_PI[[#This Row],[Annual kWh]])","v":""},{"$f":"IF(OR(Table_PI[[#This Row],[Peak kW]]=\"\",Table_PI[[#This Row],[Peak kW]]=0),\"\",Table_PI[[#This Row],[Peak kW]])","v":""},{"$f":"IFERROR(IF(Table_SummaryPI[[#This Row],[kWhSavings]]=\"\",\"\",$AU$9*Table_SummaryPI[[#This Row],[kWhSavings]]),0)","v":""},{"$f":"IFERROR(IF(Table_SummaryPI[[#This Row],[kWhSavings]]=\"\",\"\",$AU$14*Table_SummaryPI[[#This Row],[kWhSavings]]),0)","v":""},{"$f":"IFERROR(IF(Table_SummaryPI[[#This Row],[kWhSavings]]=\"\",\"\",$AU$18*Table_SummaryPI[[#This Row],[kWhSavings]]),0)","v":""},{"$f":"IFERROR(IF(Table_SummaryPI[[#This Row],[kWhSavings]]=\"\",\"\",$AU$22*Table_SummaryPI[[#This Row],[kWhSavings]]),0)","v":""},{"$f":"IFERROR(IF(MeasureCalc(Table_PI[[#This Row],[Hide:\nFormula Name]],Table_SummaryPI[[#This Row],[Quantity]],Table_PI[[#This Row],[List 1]],Table_PI[[#This Row],[List 2]],Table_PI[[#This Row],[List 3]],Table_PI[[#This Row],[Size]],Table_PI[[#This Row],[Input 1]],Table_PI[[#This Row],[Input 2]],Table_PI[[#This Row],[Input 3]],Table_PI[[#This Row],[Input 4]],'Customer Information'!$AR$12,200,ROW())<>\"No Rebate\",MeasureCalc(Table_PI[[#This Row],[Hide:\nFormula Name]],Table_SummaryPI[[#This Row],[Quantity]],Table_PI[[#This Row],[List 1]],Table_PI[[#This Row],[List 2]],Table_PI[[#This Row],[List 3]],Table_PI[[#This Row],[Size]],Table_PI[[#This Row],[Input 1]],Table_PI[[#This Row],[Input 2]],Table_PI[[#This Row],[Input 3]],Table_PI[[#This Row],[Input 4]],'Customer Information'!$AR$12,200,ROW()),\"\"),\"\")","v":""},{"$f":"IFERROR(IF(MeasureCalc(Table_PI[[#This Row],[Hide:\nFormula Name]],Table_SummaryPI[[#This Row],[Quantity]],Table_PI[[#This Row],[List 1]],Table_PI[[#This Row],[List 2]],Table_PI[[#This Row],[List 3]],Table_PI[[#This Row],[Size]],Table_PI[[#This Row],[Input 1]],Table_PI[[#This Row],[Input 2]],Table_PI[[#This Row],[Input 3]],Table_PI[[#This Row],[Input 4]],'Customer Information'!$AR$12,201,ROW())<>\"No Rebate\",MeasureCalc(Table_PI[[#This Row],[Hide:\nFormula Name]],Table_SummaryPI[[#This Row],[Quantity]],Table_PI[[#This Row],[List 1]],Table_PI[[#This Row],[List 2]],Table_PI[[#This Row],[List 3]],Table_PI[[#This Row],[Size]],Table_PI[[#This Row],[Input 1]],Table_PI[[#This Row],[Input 2]],Table_PI[[#This Row],[Input 3]],Table_PI[[#This Row],[Input 4]],'Customer Information'!$AR$12,201,ROW()),\"\"),\"\")","v":""},null,null,"Pulls from MeasureCalcs function"]
[{"$f":"Table_PI[[#This Row],[Line No.]]","v":""},{"$f":"IF(Table_SummaryPI[[#This Row],[MeassureCategory]]<>\"\",CONCATENATE(Table_SummaryPI[[#This Row],[MeassureCategory]],  \" - \", Table_SummaryPI[[#This Row],[ProposedMeasureCategory]],  \" - \", TEXT(Table_SummaryPI[[#This Row],[Size]],\"#,##0.00\"),\" \",Table_SummaryPI[[#This Row],[SizeUnit]]),\"\")","v":""},{"$f":"SUBSTITUTE(Table_PI[[#This Row],[Measure]],\"     \",\"\",1)","v":""},{"$f":"IF(Table_PI[[#This Row],[List 1]]<>\"\",Table_PI[[#This Row],[List 1]],\"\")","v":""},{"$f":"IF(Table_PI[[#This Row],[List 2]]<>\"\",Table_PI[[#This Row],[List 2]],\"\")","v":""},{"$f":"IF(Table_PI[[#This Row],[List 3]]<>\"\",Table_PI[[#This Row],[List 3]],\"\")","v":""},{"$f":"IF(Table_PI[[#This Row],[Manufacturer]]=\"\",\"\",Table_PI[[#This Row],[Manufacturer]])","v":""},{"$f":"IF(Table_PI[[#This Row],[Model Number]]=\"\",\"\",Table_PI[[#This Row],[Model Number]])","v":""},{"$f":"IF(Table_PI[[#This Row],[Serial Number(s)]]=\"\",\"\",Table_PI[[#This Row],[Serial Number(s)]])","v":""},null,{"$f":"IF(Table_PI[[#This Row],[Size]]=\"\",\"\",Table_PI[[#This Row],[Size]])","v":""},null,{"$f":"IFERROR(IF(AND(MeasureCalc(Table_PI[[#This Row],[Hide:\nFormula Name]],Table_SummaryPI[[#This Row],[Quantity]],Table_PI[[#This Row],[List 1]],Table_PI[[#This Row],[List 2]],Table_PI[[#This Row],[List 3]],Table_PI[[#This Row],[Size]],Table_PI[[#This Row],[Input 1]],Table_PI[[#This Row],[Input 2]],Table_PI[[#This Row],[Input 3]],Table_PI[[#This Row],[Input 4]],'Customer Information'!$AR$12,100,ROW())<>0,MeasureCalc(Table_PI[[#This Row],[Hide:\nFormula Name]],Table_SummaryPI[[#This Row],[Quantity]],Table_PI[[#This Row],[List 1]],Table_PI[[#This Row],[List 2]],Table_PI[[#This Row],[List 3]],Table_PI[[#This Row],[Size]],Table_PI[[#This Row],[Input 1]],Table_PI[[#This Row],[Input 2]],Table_PI[[#This Row],[Input 3]],Table_PI[[#This Row],[Input 4]],'Customer Information'!$AR$12,100,ROW())<>\"No Rebate\"),MeasureCalc(Table_PI[[#This Row],[Hide:\nFormula Name]],Table_SummaryPI[[#This Row],[Quantity]],Table_PI[[#This Row],[List 1]],Table_PI[[#This Row],[List 2]],Table_PI[[#This Row],[List 3]],Table_PI[[#This Row],[Size]],Table_PI[[#This Row],[Input 1]],Table_PI[[#This Row],[Input 2]],Table_PI[[#This Row],[Input 3]],Table_PI[[#This Row],[Input 4]],'Customer Information'!$AR$12,100,ROW()),\"\"),\"\")","v":""},{"$f":"IF(Table_PI[[#This Row],[Input 1]]<>\"\",Table_PI[[#This Row],[Input 1]],\"\")","v":""},null,{"$f":"IFERROR(IF(AND(MeasureCalc(Table_PI[[#This Row],[Hide:\nFormula Name]],Table_SummaryPI[[#This Row],[Quantity]],Table_PI[[#This Row],[List 1]],Table_PI[[#This Row],[List 2]],Table_PI[[#This Row],[List 3]],Table_PI[[#This Row],[Size]],Table_PI[[#This Row],[Input 1]],Table_PI[[#This Row],[Input 2]],Table_PI[[#This Row],[Input 3]],Table_PI[[#This Row],[Input 4]],'Customer Information'!$AR$12,101,ROW())<>0,MeasureCalc(Table_PI[[#This Row],[Hide:\nFormula Name]],Table_SummaryPI[[#This Row],[Quantity]],Table_PI[[#This Row],[List 1]],Table_PI[[#This Row],[List 2]],Table_PI[[#This Row],[List 3]],Table_PI[[#This Row],[Size]],Table_PI[[#This Row],[Input 1]],Table_PI[[#This Row],[Input 2]],Table_PI[[#This Row],[Input 3]],Table_PI[[#This Row],[Input 4]],'Customer Information'!$AR$12,101,ROW())<>\"No Rebate\"),MeasureCalc(Table_PI[[#This Row],[Hide:\nFormula Name]],Table_SummaryPI[[#This Row],[Quantity]],Table_PI[[#This Row],[List 1]],Table_PI[[#This Row],[List 2]],Table_PI[[#This Row],[List 3]],Table_PI[[#This Row],[Size]],Table_PI[[#This Row],[Input 1]],Table_PI[[#This Row],[Input 2]],Table_PI[[#This Row],[Input 3]],Table_PI[[#This Row],[Input 4]],'Customer Information'!$AR$12,101,ROW()),\"\"),\"\")","v":""},{"$f":"IF(Table_PI[[#This Row],[Input 2]]<>\"\",Table_PI[[#This Row],[Input 2]],\"\")","v":""},null,{"$f":"IFERROR(IF(AND(MeasureCalc(Table_PI[[#This Row],[Hide:\nFormula Name]],Table_SummaryPI[[#This Row],[Quantity]],Table_PI[[#This Row],[List 1]],Table_PI[[#This Row],[List 2]],Table_PI[[#This Row],[List 3]],Table_PI[[#This Row],[Size]],Table_PI[[#This Row],[Input 1]],Table_PI[[#This Row],[Input 2]],Table_PI[[#This Row],[Input 3]],Table_PI[[#This Row],[Input 4]],'Customer Information'!$AR$12,102,ROW())<>0,MeasureCalc(Table_PI[[#This Row],[Hide:\nFormula Name]],Table_SummaryPI[[#This Row],[Quantity]],Table_PI[[#This Row],[List 1]],Table_PI[[#This Row],[List 2]],Table_PI[[#This Row],[List 3]],Table_PI[[#This Row],[Size]],Table_PI[[#This Row],[Input 1]],Table_PI[[#This Row],[Input 2]],Table_PI[[#This Row],[Input 3]],Table_PI[[#This Row],[Input 4]],'Customer Information'!$AR$12,102,ROW())<>\"No Rebate\"),MeasureCalc(Table_PI[[#This Row],[Hide:\nFormula Name]],Table_SummaryPI[[#This Row],[Quantity]],Table_PI[[#This Row],[List 1]],Table_PI[[#This Row],[List 2]],Table_PI[[#This Row],[List 3]],Table_PI[[#This Row],[Size]],Table_PI[[#This Row],[Input 1]],Table_PI[[#This Row],[Input 2]],Table_PI[[#This Row],[Input 3]],Table_PI[[#This Row],[Input 4]],'Customer Information'!$AR$12,102,ROW()),\"\"),\"\")","v":""},{"$f":"IF(Table_PI[[#This Row],[Input 3]]<>\"\",Table_PI[[#This Row],[Input 3]],\"\")","v":""},null,{"$f":"IFERROR(IF(AND(MeasureCalc(Table_PI[[#This Row],[Hide:\nFormula Name]],Table_SummaryPI[[#This Row],[Quantity]],Table_PI[[#This Row],[List 1]],Table_PI[[#This Row],[List 2]],Table_PI[[#This Row],[List 3]],Table_PI[[#This Row],[Size]],Table_PI[[#This Row],[Input 1]],Table_PI[[#This Row],[Input 2]],Table_PI[[#This Row],[Input 3]],Table_PI[[#This Row],[Input 4]],'Customer Information'!$AR$12,103,ROW())<>0,MeasureCalc(Table_PI[[#This Row],[Hide:\nFormula Name]],Table_SummaryPI[[#This Row],[Quantity]],Table_PI[[#This Row],[List 1]],Table_PI[[#This Row],[List 2]],Table_PI[[#This Row],[List 3]],Table_PI[[#This Row],[Size]],Table_PI[[#This Row],[Input 1]],Table_PI[[#This Row],[Input 2]],Table_PI[[#This Row],[Input 3]],Table_PI[[#This Row],[Input 4]],'Customer Information'!$AR$12,103,ROW())<>\"No Rebate\"),MeasureCalc(Table_PI[[#This Row],[Hide:\nFormula Name]],Table_SummaryPI[[#This Row],[Quantity]],Table_PI[[#This Row],[List 1]],Table_PI[[#This Row],[List 2]],Table_PI[[#This Row],[List 3]],Table_PI[[#This Row],[Size]],Table_PI[[#This Row],[Input 1]],Table_PI[[#This Row],[Input 2]],Table_PI[[#This Row],[Input 3]],Table_PI[[#This Row],[Input 4]],'Customer Information'!$AR$12,103,ROW()),\"\"),\"\")","v":""},{"$f":"IF(Table_PI[[#This Row],[Input 4]]<>\"\",Table_PI[[#This Row],[Input 4]],\"\")","v":""},{"$f":"IF(Table_PI[[#This Row],[Quantity]]=\"\",\"\",Table_PI[[#This Row],[Quantity]])","v":""},{"$f":"IF(Table_PI[[#This Row],[Notes]]=\"\",\"\",Table_PI[[#This Row],[Notes]])","v":""},{"$f":"IF(OR(Table_PI[[#This Row],[Hide:\nBaseline kWh]]=\"\",Table_PI[[#This Row],[Hide:\nBaseline kWh]]=0),\"\",Table_PI[[#This Row],[Hide:\nBaseline kWh]])","v":""},{"$f":"IF(OR(Table_PI[[#This Row],[Hide:\nBaseline kW]]=\"\",Table_PI[[#This Row],[Hide:\nBaseline kW]]=0),\"\",Table_PI[[#This Row],[Hide:\nBaseline kW]])","v":""},{"$f":"IF(OR(Table_PI[[#This Row],[Hide:\nProposed kWh]]=\"\",Table_PI[[#This Row],[Hide:\nProposed kWh]]=0),\"\",Table_PI[[#This Row],[Hide:\nProposed kWh]])","v":""},{"$f":"IF(OR(Table_PI[[#This Row],[Hide:\nProposed kW]]=\"\",Table_PI[[#This Row],[Hide:\nProposed kW]]=0),\"\",Table_PI[[#This Row],[Hide:\nProposed kW]])","v":""},{"$f":"IF(OR(Table_PI[[#This Row],[Rebate]]=\"\",Table_PI[[#This Row],[Rebate]]=0),\"\",Table_PI[[#This Row],[Rebate]])","v":""},{"$f":"IF(OR(Table_PI[[#This Row],[Hide:\nIncremental Cost]]=\"\",Table_PI[[#This Row],[Hide:\nIncremental Cost]]=0),\"\",Table_PI[[#This Row],[Hide:\nIncremental Cost]])","v":""},{"$f":"IFERROR(IF(Table_SummaryPI[[#This Row],[kWhSavings]]=\"\",\"\",ROUND(Table_SummaryPI[[#This Row],[kWhSavings]]/$AG$401*'Customer Information'!$BC$17,2)),0)","v":""},{"$f":"IF(OR(Table_PI[[#This Row],[Annual kWh]]=\"\",Table_PI[[#This Row],[Annual kWh]]=0),\"\",Table_PI[[#This Row],[Annual kWh]])","v":""},{"$f":"IF(OR(Table_PI[[#This Row],[Peak kW]]=\"\",Table_PI[[#This Row],[Peak kW]]=0),\"\",Table_PI[[#This Row],[Peak kW]])","v":""},{"$f":"IFERROR(IF(Table_SummaryPI[[#This Row],[kWhSavings]]=\"\",\"\",$AU$9*Table_SummaryPI[[#This Row],[kWhSavings]]),0)","v":""},{"$f":"IFERROR(IF(Table_SummaryPI[[#This Row],[kWhSavings]]=\"\",\"\",$AU$14*Table_SummaryPI[[#This Row],[kWhSavings]]),0)","v":""},{"$f":"IFERROR(IF(Table_SummaryPI[[#This Row],[kWhSavings]]=\"\",\"\",$AU$18*Table_SummaryPI[[#This Row],[kWhSavings]]),0)","v":""},{"$f":"IFERROR(IF(Table_SummaryPI[[#This Row],[kWhSavings]]=\"\",\"\",$AU$22*Table_SummaryPI[[#This Row],[kWhSavings]]),0)","v":""},{"$f":"IFERROR(IF(MeasureCalc(Table_PI[[#This Row],[Hide:\nFormula Name]],Table_SummaryPI[[#This Row],[Quantity]],Table_PI[[#This Row],[List 1]],Table_PI[[#This Row],[List 2]],Table_PI[[#This Row],[List 3]],Table_PI[[#This Row],[Size]],Table_PI[[#This Row],[Input 1]],Table_PI[[#This Row],[Input 2]],Table_PI[[#This Row],[Input 3]],Table_PI[[#This Row],[Input 4]],'Customer Information'!$AR$12,200,ROW())<>\"No Rebate\",MeasureCalc(Table_PI[[#This Row],[Hide:\nFormula Name]],Table_SummaryPI[[#This Row],[Quantity]],Table_PI[[#This Row],[List 1]],Table_PI[[#This Row],[List 2]],Table_PI[[#This Row],[List 3]],Table_PI[[#This Row],[Size]],Table_PI[[#This Row],[Input 1]],Table_PI[[#This Row],[Input 2]],Table_PI[[#This Row],[Input 3]],Table_PI[[#This Row],[Input 4]],'Customer Information'!$AR$12,200,ROW()),\"\"),\"\")","v":""},{"$f":"IFERROR(IF(MeasureCalc(Table_PI[[#This Row],[Hide:\nFormula Name]],Table_SummaryPI[[#This Row],[Quantity]],Table_PI[[#This Row],[List 1]],Table_PI[[#This Row],[List 2]],Table_PI[[#This Row],[List 3]],Table_PI[[#This Row],[Size]],Table_PI[[#This Row],[Input 1]],Table_PI[[#This Row],[Input 2]],Table_PI[[#This Row],[Input 3]],Table_PI[[#This Row],[Input 4]],'Customer Information'!$AR$12,201,ROW())<>\"No Rebate\",MeasureCalc(Table_PI[[#This Row],[Hide:\nFormula Name]],Table_SummaryPI[[#This Row],[Quantity]],Table_PI[[#This Row],[List 1]],Table_PI[[#This Row],[List 2]],Table_PI[[#This Row],[List 3]],Table_PI[[#This Row],[Size]],Table_PI[[#This Row],[Input 1]],Table_PI[[#This Row],[Input 2]],Table_PI[[#This Row],[Input 3]],Table_PI[[#This Row],[Input 4]],'Customer Information'!$AR$12,201,ROW()),\"\"),\"\")","v":""},null,null,"Pulls from Project Information (Table_PI)"]
[{"$f":"Table_PI[[#This Row],[Line No.]]","v":""},{"$f":"IF(Table_SummaryPI[[#This Row],[MeassureCategory]]<>\"\",CONCATENATE(Table_SummaryPI[[#This Row],[MeassureCategory]],  \" - \", Table_SummaryPI[[#This Row],[ProposedMeasureCategory]],  \" - \", TEXT(Table_SummaryPI[[#This Row],[Size]],\"#,##0.00\"),\" \",Table_SummaryPI[[#This Row],[SizeUnit]]),\"\")","v":""},{"$f":"SUBSTITUTE(Table_PI[[#This Row],[Measure]],\"     \",\"\",1)","v":""},{"$f":"IF(Table_PI[[#This Row],[List 1]]<>\"\",Table_PI[[#This Row],[List 1]],\"\")","v":""},{"$f":"IF(Table_PI[[#This Row],[List 2]]<>\"\",Table_PI[[#This Row],[List 2]],\"\")","v":""},{"$f":"IF(Table_PI[[#This Row],[List 3]]<>\"\",Table_PI[[#This Row],[List 3]],\"\")","v":""},{"$f":"IF(Table_PI[[#This Row],[Manufacturer]]=\"\",\"\",Table_PI[[#This Row],[Manufacturer]])","v":""},{"$f":"IF(Table_PI[[#This Row],[Model Number]]=\"\",\"\",Table_PI[[#This Row],[Model Number]])","v":""},{"$f":"IF(Table_PI[[#This Row],[Serial Number(s)]]=\"\",\"\",Table_PI[[#This Row],[Serial Number(s)]])","v":""},"",{"$f":"IF(Table_PI[[#This Row],[Size]]=\"\",\"\",Table_PI[[#This Row],[Size]])","v":""},"",{"$f":"IFERROR(IF(AND(MeasureCalc(Table_PI[[#This Row],[Hide:\nFormula Name]],Table_SummaryPI[[#This Row],[Quantity]],Table_PI[[#This Row],[List 1]],Table_PI[[#This Row],[List 2]],Table_PI[[#This Row],[List 3]],Table_PI[[#This Row],[Size]],Table_PI[[#This Row],[Input 1]],Table_PI[[#This Row],[Input 2]],Table_PI[[#This Row],[Input 3]],Table_PI[[#This Row],[Input 4]],'Customer Information'!$AR$12,100,ROW())<>0,MeasureCalc(Table_PI[[#This Row],[Hide:\nFormula Name]],Table_SummaryPI[[#This Row],[Quantity]],Table_PI[[#This Row],[List 1]],Table_PI[[#This Row],[List 2]],Table_PI[[#This Row],[List 3]],Table_PI[[#This Row],[Size]],Table_PI[[#This Row],[Input 1]],Table_PI[[#This Row],[Input 2]],Table_PI[[#This Row],[Input 3]],Table_PI[[#This Row],[Input 4]],'Customer Information'!$AR$12,100,ROW())<>\"No Rebate\"),MeasureCalc(Table_PI[[#This Row],[Hide:\nFormula Name]],Table_SummaryPI[[#This Row],[Quantity]],Table_PI[[#This Row],[List 1]],Table_PI[[#This Row],[List 2]],Table_PI[[#This Row],[List 3]],Table_PI[[#This Row],[Size]],Table_PI[[#This Row],[Input 1]],Table_PI[[#This Row],[Input 2]],Table_PI[[#This Row],[Input 3]],Table_PI[[#This Row],[Input 4]],'Customer Information'!$AR$12,100,ROW()),\"\"),\"\")","v":""},{"$f":"IF(Table_PI[[#This Row],[Input 1]]<>\"\",Table_PI[[#This Row],[Input 1]],\"\")","v":""},"",{"$f":"IFERROR(IF(AND(MeasureCalc(Table_PI[[#This Row],[Hide:\nFormula Name]],Table_SummaryPI[[#This Row],[Quantity]],Table_PI[[#This Row],[List 1]],Table_PI[[#This Row],[List 2]],Table_PI[[#This Row],[List 3]],Table_PI[[#This Row],[Size]],Table_PI[[#This Row],[Input 1]],Table_PI[[#This Row],[Input 2]],Table_PI[[#This Row],[Input 3]],Table_PI[[#This Row],[Input 4]],'Customer Information'!$AR$12,101,ROW())<>0,MeasureCalc(Table_PI[[#This Row],[Hide:\nFormula Name]],Table_SummaryPI[[#This Row],[Quantity]],Table_PI[[#This Row],[List 1]],Table_PI[[#This Row],[List 2]],Table_PI[[#This Row],[List 3]],Table_PI[[#This Row],[Size]],Table_PI[[#This Row],[Input 1]],Table_PI[[#This Row],[Input 2]],Table_PI[[#This Row],[Input 3]],Table_PI[[#This Row],[Input 4]],'Customer Information'!$AR$12,101,ROW())<>\"No Rebate\"),MeasureCalc(Table_PI[[#This Row],[Hide:\nFormula Name]],Table_SummaryPI[[#This Row],[Quantity]],Table_PI[[#This Row],[List 1]],Table_PI[[#This Row],[List 2]],Table_PI[[#This Row],[List 3]],Table_PI[[#This Row],[Size]],Table_PI[[#This Row],[Input 1]],Table_PI[[#This Row],[Input 2]],Table_PI[[#This Row],[Input 3]],Table_PI[[#This Row],[Input 4]],'Customer Information'!$AR$12,101,ROW()),\"\"),\"\")","v":""},{"$f":"IF(Table_PI[[#This Row],[Input 2]]<>\"\",Table_PI[[#This Row],[Input 2]],\"\")","v":""},"",{"$f":"IFERROR(IF(AND(MeasureCalc(Table_PI[[#This Row],[Hide:\nFormula Name]],Table_SummaryPI[[#This Row],[Quantity]],Table_PI[[#This Row],[List 1]],Table_PI[[#This Row],[List 2]],Table_PI[[#This Row],[List 3]],Table_PI[[#This Row],[Size]],Table_PI[[#This Row],[Input 1]],Table_PI[[#This Row],[Input 2]],Table_PI[[#This Row],[Input 3]],Table_PI[[#This Row],[Input 4]],'Customer Information'!$AR$12,102,ROW())<>0,MeasureCalc(Table_PI[[#This Row],[Hide:\nFormula Name]],Table_SummaryPI[[#This Row],[Quantity]],Table_PI[[#This Row],[List 1]],Table_PI[[#This Row],[List 2]],Table_PI[[#This Row],[List 3]],Table_PI[[#This Row],[Size]],Table_PI[[#This Row],[Input 1]],Table_PI[[#This Row],[Input 2]],Table_PI[[#This Row],[Input 3]],Table_PI[[#This Row],[Input 4]],'Customer Information'!$AR$12,102,ROW())<>\"No Rebate\"),MeasureCalc(Table_PI[[#This Row],[Hide:\nFormula Name]],Table_SummaryPI[[#This Row],[Quantity]],Table_PI[[#This Row],[List 1]],Table_PI[[#This Row],[List 2]],Table_PI[[#This Row],[List 3]],Table_PI[[#This Row],[Size]],Table_PI[[#This Row],[Input 1]],Table_PI[[#This Row],[Input 2]],Table_PI[[#This Row],[Input 3]],Table_PI[[#This Row],[Input 4]],'Customer Information'!$AR$12,102,ROW()),\"\"),\"\")","v":""},{"$f":"IF(Table_PI[[#This Row],[Input 3]]<>\"\",Table_PI[[#This Row],[Input 3]],\"\")","v":""},"",{"$f":"IFERROR(IF(AND(MeasureCalc(Table_PI[[#This Row],[Hide:\nFormula Name]],Table_SummaryPI[[#This Row],[Quantity]],Table_PI[[#This Row],[List 1]],Table_PI[[#This Row],[List 2]],Table_PI[[#This Row],[List 3]],Table_PI[[#This Row],[Size]],Table_PI[[#This Row],[Input 1]],Table_PI[[#This Row],[Input 2]],Table_PI[[#This Row],[Input 3]],Table_PI[[#This Row],[Input 4]],'Customer Information'!$AR$12,103,ROW())<>0,MeasureCalc(Table_PI[[#This Row],[Hide:\nFormula Name]],Table_SummaryPI[[#This Row],[Quantity]],Table_PI[[#This Row],[List 1]],Table_PI[[#This Row],[List 2]],Table_PI[[#This Row],[List 3]],Table_PI[[#This Row],[Size]],Table_PI[[#This Row],[Input 1]],Table_PI[[#This Row],[Input 2]],Table_PI[[#This Row],[Input 3]],Table_PI[[#This Row],[Input 4]],'Customer Information'!$AR$12,103,ROW())<>\"No Rebate\"),MeasureCalc(Table_PI[[#This Row],[Hide:\nFormula Name]],Table_SummaryPI[[#This Row],[Quantity]],Table_PI[[#This Row],[List 1]],Table_PI[[#This Row],[List 2]],Table_PI[[#This Row],[List 3]],Table_PI[[#This Row],[Size]],Table_PI[[#This Row],[Input 1]],Table_PI[[#This Row],[Input 2]],Table_PI[[#This Row],[Input 3]],Table_PI[[#This Row],[Input 4]],'Customer Information'!$AR$12,103,ROW()),\"\"),\"\")","v":""},{"$f":"IF(Table_PI[[#This Row],[Input 4]]<>\"\",Table_PI[[#This Row],[Input 4]],\"\")","v":""},{"$f":"IF(Table_PI[[#This Row],[Quantity]]=\"\",\"\",Table_PI[[#This Row],[Quantity]])","v":""},{"$f":"IF(Table_PI[[#This Row],[Notes]]=\"\",\"\",Table_PI[[#This Row],[Notes]])","v":""},{"$f":"IF(OR(Table_PI[[#This Row],[Hide:\nBaseline kWh]]=\"\",Table_PI[[#This Row],[Hide:\nBaseline kWh]]=0),\"\",Table_PI[[#This Row],[Hide:\nBaseline kWh]])","v":""},{"$f":"IF(OR(Table_PI[[#This Row],[Hide:\nBaseline kW]]=\"\",Table_PI[[#This Row],[Hide:\nBaseline kW]]=0),\"\",Table_PI[[#This Row],[Hide:\nBaseline kW]])","v":""},{"$f":"IF(OR(Table_PI[[#This Row],[Hide:\nProposed kWh]]=\"\",Table_PI[[#This Row],[Hide:\nProposed kWh]]=0),\"\",Table_PI[[#This Row],[Hide:\nProposed kWh]])","v":""},{"$f":"IF(OR(Table_PI[[#This Row],[Hide:\nProposed kW]]=\"\",Table_PI[[#This Row],[Hide:\nProposed kW]]=0),\"\",Table_PI[[#This Row],[Hide:\nProposed kW]])","v":""},{"$f":"IF(OR(Table_PI[[#This Row],[Rebate]]=\"\",Table_PI[[#This Row],[Rebate]]=0),\"\",Table_PI[[#This Row],[Rebate]])","v":""},{"$f":"IF(OR(Table_PI[[#This Row],[Hide:\nIncremental Cost]]=\"\",Table_PI[[#This Row],[Hide:\nIncremental Cost]]=0),\"\",Table_PI[[#This Row],[Hide:\nIncremental Cost]])","v":""},{"$f":"IFERROR(IF(Table_SummaryPI[[#This Row],[kWhSavings]]=\"\",\"\",ROUND(Table_SummaryPI[[#This Row],[kWhSavings]]/$AG$401*'Customer Information'!$BC$17,2)),0)","v":""},{"$f":"IF(OR(Table_PI[[#This Row],[Annual kWh]]=\"\",Table_PI[[#This Row],[Annual kWh]]=0),\"\",Table_PI[[#This Row],[Annual kWh]])","v":""},{"$f":"IF(OR(Table_PI[[#This Row],[Peak kW]]=\"\",Table_PI[[#This Row],[Peak kW]]=0),\"\",Table_PI[[#This Row],[Peak kW]])","v":""},{"$f":"IFERROR(IF(Table_SummaryPI[[#This Row],[kWhSavings]]=\"\",\"\",$AU$9*Table_SummaryPI[[#This Row],[kWhSavings]]),0)","v":""},{"$f":"IFERROR(IF(Table_SummaryPI[[#This Row],[kWhSavings]]=\"\",\"\",$AU$14*Table_SummaryPI[[#This Row],[kWhSavings]]),0)","v":""},{"$f":"IFERROR(IF(Table_SummaryPI[[#This Row],[kWhSavings]]=\"\",\"\",$AU$18*Table_SummaryPI[[#This Row],[kWhSavings]]),0)","v":""},{"$f":"IFERROR(IF(Table_SummaryPI[[#This Row],[kWhSavings]]=\"\",\"\",$AU$22*Table_SummaryPI[[#This Row],[kWhSavings]]),0)","v":""},{"$f":"IFERROR(IF(MeasureCalc(Table_PI[[#This Row],[Hide:\nFormula Name]],Table_SummaryPI[[#This Row],[Quantity]],Table_PI[[#This Row],[List 1]],Table_PI[[#This Row],[List 2]],Table_PI[[#This Row],[List 3]],Table_PI[[#This Row],[Size]],Table_PI[[#This Row],[Input 1]],Table_PI[[#This Row],[Input 2]],Table_PI[[#This Row],[Input 3]],Table_PI[[#This Row],[Input 4]],'Customer Information'!$AR$12,200,ROW())<>\"No Rebate\",MeasureCalc(Table_PI[[#This Row],[Hide:\nFormula Name]],Table_SummaryPI[[#This Row],[Quantity]],Table_PI[[#This Row],[List 1]],Table_PI[[#This Row],[List 2]],Table_PI[[#This Row],[List 3]],Table_PI[[#This Row],[Size]],Table_PI[[#This Row],[Input 1]],Table_PI[[#This Row],[Input 2]],Table_PI[[#This Row],[Input 3]],Table_PI[[#This Row],[Input 4]],'Customer Information'!$AR$12,200,ROW()),\"\"),\"\")","v":""},{"$f":"IFERROR(IF(MeasureCalc(Table_PI[[#This Row],[Hide:\nFormula Name]],Table_SummaryPI[[#This Row],[Quantity]],Table_PI[[#This Row],[List 1]],Table_PI[[#This Row],[List 2]],Table_PI[[#This Row],[List 3]],Table_PI[[#This Row],[Size]],Table_PI[[#This Row],[Input 1]],Table_PI[[#This Row],[Input 2]],Table_PI[[#This Row],[Input 3]],Table_PI[[#This Row],[Input 4]],'Customer Information'!$AR$12,201,ROW())<>\"No Rebate\",MeasureCalc(Table_PI[[#This Row],[Hide:\nFormula Name]],Table_SummaryPI[[#This Row],[Quantity]],Table_PI[[#This Row],[List 1]],Table_PI[[#This Row],[List 2]],Table_PI[[#This Row],[List 3]],Table_PI[[#This Row],[Size]],Table_PI[[#This Row],[Input 1]],Table_PI[[#This Row],[Input 2]],Table_PI[[#This Row],[Input 3]],Table_PI[[#This Row],[Input 4]],'Customer Information'!$AR$12,201,ROW()),\"\"),\"\")","v":""},null,null,"Calculated on this sheet"]
[{"$f":"Table_PI[[#This Row],[Line No.]]","v":""},{"$f":"IF(Table_SummaryPI[[#This Row],[MeassureCategory]]<>\"\",CONCATENATE(Table_SummaryPI[[#This Row],[MeassureCategory]],  \" - \", Table_SummaryPI[[#This Row],[ProposedMeasureCategory]],  \" - \", TEXT(Table_SummaryPI[[#This Row],[Size]],\"#,##0.00\"),\" \",Table_SummaryPI[[#This Row],[SizeUnit]]),\"\")","v":""},{"$f":"SUBSTITUTE(Table_PI[[#This Row],[Measure]],\"     \",\"\",1)","v":""},{"$f":"IF(Table_PI[[#This Row],[List 1]]<>\"\",Table_PI[[#This Row],[List 1]],\"\")","v":""},{"$f":"IF(Table_PI[[#This Row],[List 2]]<>\"\",Table_PI[[#This Row],[List 2]],\"\")","v":""},{"$f":"IF(Table_PI[[#This Row],[List 3]]<>\"\",Table_PI[[#This Row],[List 3]],\"\")","v":""},{"$f":"IF(Table_PI[[#This Row],[Manufacturer]]=\"\",\"\",Table_PI[[#This Row],[Manufacturer]])","v":""},{"$f":"IF(Table_PI[[#This Row],[Model Number]]=\"\",\"\",Table_PI[[#This Row],[Model Number]])","v":""},{"$f":"IF(Table_PI[[#This Row],[Serial Number(s)]]=\"\",\"\",Table_PI[[#This Row],[Serial Number(s)]])","v":""},null,{"$f":"IF(Table_PI[[#This Row],[Size]]=\"\",\"\",Table_PI[[#This Row],[Size]])","v":""},null,{"$f":"IFERROR(IF(AND(MeasureCalc(Table_PI[[#This Row],[Hide:\nFormula Name]],Table_SummaryPI[[#This Row],[Quantity]],Table_PI[[#This Row],[List 1]],Table_PI[[#This Row],[List 2]],Table_PI[[#This Row],[List 3]],Table_PI[[#This Row],[Size]],Table_PI[[#This Row],[Input 1]],Table_PI[[#This Row],[Input 2]],Table_PI[[#This Row],[Input 3]],Table_PI[[#This Row],[Input 4]],'Customer Information'!$AR$12,100,ROW())<>0,MeasureCalc(Table_PI[[#This Row],[Hide:\nFormula Name]],Table_SummaryPI[[#This Row],[Quantity]],Table_PI[[#This Row],[List 1]],Table_PI[[#This Row],[List 2]],Table_PI[[#This Row],[List 3]],Table_PI[[#This Row],[Size]],Table_PI[[#This Row],[Input 1]],Table_PI[[#This Row],[Input 2]],Table_PI[[#This Row],[Input 3]],Table_PI[[#This Row],[Input 4]],'Customer Information'!$AR$12,100,ROW())<>\"No Rebate\"),MeasureCalc(Table_PI[[#This Row],[Hide:\nFormula Name]],Table_SummaryPI[[#This Row],[Quantity]],Table_PI[[#This Row],[List 1]],Table_PI[[#This Row],[List 2]],Table_PI[[#This Row],[List 3]],Table_PI[[#This Row],[Size]],Table_PI[[#This Row],[Input 1]],Table_PI[[#This Row],[Input 2]],Table_PI[[#This Row],[Input 3]],Table_PI[[#This Row],[Input 4]],'Customer Information'!$AR$12,100,ROW()),\"\"),\"\")","v":""},{"$f":"IF(Table_PI[[#This Row],[Input 1]]<>\"\",Table_PI[[#This Row],[Input 1]],\"\")","v":""},null,{"$f":"IFERROR(IF(AND(MeasureCalc(Table_PI[[#This Row],[Hide:\nFormula Name]],Table_SummaryPI[[#This Row],[Quantity]],Table_PI[[#This Row],[List 1]],Table_PI[[#This Row],[List 2]],Table_PI[[#This Row],[List 3]],Table_PI[[#This Row],[Size]],Table_PI[[#This Row],[Input 1]],Table_PI[[#This Row],[Input 2]],Table_PI[[#This Row],[Input 3]],Table_PI[[#This Row],[Input 4]],'Customer Information'!$AR$12,101,ROW())<>0,MeasureCalc(Table_PI[[#This Row],[Hide:\nFormula Name]],Table_SummaryPI[[#This Row],[Quantity]],Table_PI[[#This Row],[List 1]],Table_PI[[#This Row],[List 2]],Table_PI[[#This Row],[List 3]],Table_PI[[#This Row],[Size]],Table_PI[[#This Row],[Input 1]],Table_PI[[#This Row],[Input 2]],Table_PI[[#This Row],[Input 3]],Table_PI[[#This Row],[Input 4]],'Customer Information'!$AR$12,101,ROW())<>\"No Rebate\"),MeasureCalc(Table_PI[[#This Row],[Hide:\nFormula Name]],Table_SummaryPI[[#This Row],[Quantity]],Table_PI[[#This Row],[List 1]],Table_PI[[#This Row],[List 2]],Table_PI[[#This Row],[List 3]],Table_PI[[#This Row],[Size]],Table_PI[[#This Row],[Input 1]],Table_PI[[#This Row],[Input 2]],Table_PI[[#This Row],[Input 3]],Table_PI[[#This Row],[Input 4]],'Customer Information'!$AR$12,101,ROW()),\"\"),\"\")","v":""},{"$f":"IF(Table_PI[[#This Row],[Input 2]]<>\"\",Table_PI[[#This Row],[Input 2]],\"\")","v":""},null,{"$f":"IFERROR(IF(AND(MeasureCalc(Table_PI[[#This Row],[Hide:\nFormula Name]],Table_SummaryPI[[#This Row],[Quantity]],Table_PI[[#This Row],[List 1]],Table_PI[[#This Row],[List 2]],Table_PI[[#This Row],[List 3]],Table_PI[[#This Row],[Size]],Table_PI[[#This Row],[Input 1]],Table_PI[[#This Row],[Input 2]],Table_PI[[#This Row],[Input 3]],Table_PI[[#This Row],[Input 4]],'Customer Information'!$AR$12,102,ROW())<>0,MeasureCalc(Table_PI[[#This Row],[Hide:\nFormula Name]],Table_SummaryPI[[#This Row],[Quantity]],Table_PI[[#This Row],[List 1]],Table_PI[[#This Row],[List 2]],Table_PI[[#This Row],[List 3]],Table_PI[[#This Row],[Size]],Table_PI[[#This Row],[Input 1]],Table_PI[[#This Row],[Input 2]],Table_PI[[#This Row],[Input 3]],Table_PI[[#This Row],[Input 4]],'Customer Information'!$AR$12,102,ROW())<>\"No Rebate\"),MeasureCalc(Table_PI[[#This Row],[Hide:\nFormula Name]],Table_SummaryPI[[#This Row],[Quantity]],Table_PI[[#This Row],[List 1]],Table_PI[[#This Row],[List 2]],Table_PI[[#This Row],[List 3]],Table_PI[[#This Row],[Size]],Table_PI[[#This Row],[Input 1]],Table_PI[[#This Row],[Input 2]],Table_PI[[#This Row],[Input 3]],Table_PI[[#This Row],[Input 4]],'Customer Information'!$AR$12,102,ROW()),\"\"),\"\")","v":""},{"$f":"IF(Table_PI[[#This Row],[Input 3]]<>\"\",Table_PI[[#This Row],[Input 3]],\"\")","v":""},null,{"$f":"IFERROR(IF(AND(MeasureCalc(Table_PI[[#This Row],[Hide:\nFormula Name]],Table_SummaryPI[[#This Row],[Quantity]],Table_PI[[#This Row],[List 1]],Table_PI[[#This Row],[List 2]],Table_PI[[#This Row],[List 3]],Table_PI[[#This Row],[Size]],Table_PI[[#This Row],[Input 1]],Table_PI[[#This Row],[Input 2]],Table_PI[[#This Row],[Input 3]],Table_PI[[#This Row],[Input 4]],'Customer Information'!$AR$12,103,ROW())<>0,MeasureCalc(Table_PI[[#This Row],[Hide:\nFormula Name]],Table_SummaryPI[[#This Row],[Quantity]],Table_PI[[#This Row],[List 1]],Table_PI[[#This Row],[List 2]],Table_PI[[#This Row],[List 3]],Table_PI[[#This Row],[Size]],Table_PI[[#This Row],[Input 1]],Table_PI[[#This Row],[Input 2]],Table_PI[[#This Row],[Input 3]],Table_PI[[#This Row],[Input 4]],'Customer Information'!$AR$12,103,ROW())<>\"No Rebate\"),MeasureCalc(Table_PI[[#This Row],[Hide:\nFormula Name]],Table_SummaryPI[[#This Row],[Quantity]],Table_PI[[#This Row],[List 1]],Table_PI[[#This Row],[List 2]],Table_PI[[#This Row],[List 3]],Table_PI[[#This Row],[Size]],Table_PI[[#This Row],[Input 1]],Table_PI[[#This Row],[Input 2]],Table_PI[[#This Row],[Input 3]],Table_PI[[#This Row],[Input 4]],'Customer Information'!$AR$12,103,ROW()),\"\"),\"\")","v":""},{"$f":"IF(Table_PI[[#This Row],[Input 4]]<>\"\",Table_PI[[#This Row],[Input 4]],\"\")","v":""},{"$f":"IF(Table_PI[[#This Row],[Quantity]]=\"\",\"\",Table_PI[[#This Row],[Quantity]])","v":""},{"$f":"IF(Table_PI[[#This Row],[Notes]]=\"\",\"\",Table_PI[[#This Row],[Notes]])","v":""},{"$f":"IF(OR(Table_PI[[#This Row],[Hide:\nBaseline kWh]]=\"\",Table_PI[[#This Row],[Hide:\nBaseline kWh]]=0),\"\",Table_PI[[#This Row],[Hide:\nBaseline kWh]])","v":""},{"$f":"IF(OR(Table_PI[[#This Row],[Hide:\nBaseline kW]]=\"\",Table_PI[[#This Row],[Hide:\nBaseline kW]]=0),\"\",Table_PI[[#This Row],[Hide:\nBaseline kW]])","v":""},{"$f":"IF(OR(Table_PI[[#This Row],[Hide:\nProposed kWh]]=\"\",Table_PI[[#This Row],[Hide:\nProposed kWh]]=0),\"\",Table_PI[[#This Row],[Hide:\nProposed kWh]])","v":""},{"$f":"IF(OR(Table_PI[[#This Row],[Hide:\nProposed kW]]=\"\",Table_PI[[#This Row],[Hide:\nProposed kW]]=0),\"\",Table_PI[[#This Row],[Hide:\nProposed kW]])","v":""},{"$f":"IF(OR(Table_PI[[#This Row],[Rebate]]=\"\",Table_PI[[#This Row],[Rebate]]=0),\"\",Table_PI[[#This Row],[Rebate]])","v":""},{"$f":"IF(OR(Table_PI[[#This Row],[Hide:\nIncremental Cost]]=\"\",Table_PI[[#This Row],[Hide:\nIncremental Cost]]=0),\"\",Table_PI[[#This Row],[Hide:\nIncremental Cost]])","v":""},{"$f":"IFERROR(IF(Table_SummaryPI[[#This Row],[kWhSavings]]=\"\",\"\",ROUND(Table_SummaryPI[[#This Row],[kWhSavings]]/$AG$401*'Customer Information'!$BC$17,2)),0)","v":""},{"$f":"IF(OR(Table_PI[[#This Row],[Annual kWh]]=\"\",Table_PI[[#This Row],[Annual kWh]]=0),\"\",Table_PI[[#This Row],[Annual kWh]])","v":""},{"$f":"IF(OR(Table_PI[[#This Row],[Peak kW]]=\"\",Table_PI[[#This Row],[Peak kW]]=0),\"\",Table_PI[[#This Row],[Peak kW]])","v":""},{"$f":"IFERROR(IF(Table_SummaryPI[[#This Row],[kWhSavings]]=\"\",\"\",$AU$9*Table_SummaryPI[[#This Row],[kWhSavings]]),0)","v":""},{"$f":"IFERROR(IF(Table_SummaryPI[[#This Row],[kWhSavings]]=\"\",\"\",$AU$14*Table_SummaryPI[[#This Row],[kWhSavings]]),0)","v":""},{"$f":"IFERROR(IF(Table_SummaryPI[[#This Row],[kWhSavings]]=\"\",\"\",$AU$18*Table_SummaryPI[[#This Row],[kWhSavings]]),0)","v":""},{"$f":"IFERROR(IF(Table_SummaryPI[[#This Row],[kWhSavings]]=\"\",\"\",$AU$22*Table_SummaryPI[[#This Row],[kWhSavings]]),0)","v":""},{"$f":"IFERROR(IF(MeasureCalc(Table_PI[[#This Row],[Hide:\nFormula Name]],Table_SummaryPI[[#This Row],[Quantity]],Table_PI[[#This Row],[List 1]],Table_PI[[#This Row],[List 2]],Table_PI[[#This Row],[List 3]],Table_PI[[#This Row],[Size]],Table_PI[[#This Row],[Input 1]],Table_PI[[#This Row],[Input 2]],Table_PI[[#This Row],[Input 3]],Table_PI[[#This Row],[Input 4]],'Customer Information'!$AR$12,200,ROW())<>\"No Rebate\",MeasureCalc(Table_PI[[#This Row],[Hide:\nFormula Name]],Table_SummaryPI[[#This Row],[Quantity]],Table_PI[[#This Row],[List 1]],Table_PI[[#This Row],[List 2]],Table_PI[[#This Row],[List 3]],Table_PI[[#This Row],[Size]],Table_PI[[#This Row],[Input 1]],Table_PI[[#This Row],[Input 2]],Table_PI[[#This Row],[Input 3]],Table_PI[[#This Row],[Input 4]],'Customer Information'!$AR$12,200,ROW()),\"\"),\"\")","v":""},{"$f":"IFERROR(IF(MeasureCalc(Table_PI[[#This Row],[Hide:\nFormula Name]],Table_SummaryPI[[#This Row],[Quantity]],Table_PI[[#This Row],[List 1]],Table_PI[[#This Row],[List 2]],Table_PI[[#This Row],[List 3]],Table_PI[[#This Row],[Size]],Table_PI[[#This Row],[Input 1]],Table_PI[[#This Row],[Input 2]],Table_PI[[#This Row],[Input 3]],Table_PI[[#This Row],[Input 4]],'Customer Information'!$AR$12,201,ROW())<>\"No Rebate\",MeasureCalc(Table_PI[[#This Row],[Hide:\nFormula Name]],Table_SummaryPI[[#This Row],[Quantity]],Table_PI[[#This Row],[List 1]],Table_PI[[#This Row],[List 2]],Table_PI[[#This Row],[List 3]],Table_PI[[#This Row],[Size]],Table_PI[[#This Row],[Input 1]],Table_PI[[#This Row],[Input 2]],Table_PI[[#This Row],[Input 3]],Table_PI[[#This Row],[Input 4]],'Customer Information'!$AR$12,201,ROW()),\"\"),\"\")","v":""}]
[{"$f":"Table_PI[[#This Row],[Line No.]]","v":""},{"$f":"IF(Table_SummaryPI[[#This Row],[MeassureCategory]]<>\"\",CONCATENATE(Table_SummaryPI[[#This Row],[MeassureCategory]],  \" - \", Table_SummaryPI[[#This Row],[ProposedMeasureCategory]],  \" - \", TEXT(Table_SummaryPI[[#This Row],[Size]],\"#,##0.00\"),\" \",Table_SummaryPI[[#This Row],[SizeUnit]]),\"\")","v":""},{"$f":"SUBSTITUTE(Table_PI[[#This Row],[Measure]],\"     \",\"\",1)","v":""},{"$f":"IF(Table_PI[[#This Row],[List 1]]<>\"\",Table_PI[[#This Row],[List 1]],\"\")","v":""},{"$f":"IF(Table_PI[[#This Row],[List 2]]<>\"\",Table_PI[[#This Row],[List 2]],\"\")","v":""},{"$f":"IF(Table_PI[[#This Row],[List 3]]<>\"\",Table_PI[[#This Row],[List 3]],\"\")","v":""},{"$f":"IF(Table_PI[[#This Row],[Manufacturer]]=\"\",\"\",Table_PI[[#This Row],[Manufacturer]])","v":""},{"$f":"IF(Table_PI[[#This Row],[Model Number]]=\"\",\"\",Table_PI[[#This Row],[Model Number]])","v":""},{"$f":"IF(Table_PI[[#This Row],[Serial Number(s)]]=\"\",\"\",Table_PI[[#This Row],[Serial Number(s)]])","v":""},null,{"$f":"IF(Table_PI[[#This Row],[Size]]=\"\",\"\",Table_PI[[#This Row],[Size]])","v":""},null,{"$f":"IFERROR(IF(AND(MeasureCalc(Table_PI[[#This Row],[Hide:\nFormula Name]],Table_SummaryPI[[#This Row],[Quantity]],Table_PI[[#This Row],[List 1]],Table_PI[[#This Row],[List 2]],Table_PI[[#This Row],[List 3]],Table_PI[[#This Row],[Size]],Table_PI[[#This Row],[Input 1]],Table_PI[[#This Row],[Input 2]],Table_PI[[#This Row],[Input 3]],Table_PI[[#This Row],[Input 4]],'Customer Information'!$AR$12,100,ROW())<>0,MeasureCalc(Table_PI[[#This Row],[Hide:\nFormula Name]],Table_SummaryPI[[#This Row],[Quantity]],Table_PI[[#This Row],[List 1]],Table_PI[[#This Row],[List 2]],Table_PI[[#This Row],[List 3]],Table_PI[[#This Row],[Size]],Table_PI[[#This Row],[Input 1]],Table_PI[[#This Row],[Input 2]],Table_PI[[#This Row],[Input 3]],Table_PI[[#This Row],[Input 4]],'Customer Information'!$AR$12,100,ROW())<>\"No Rebate\"),MeasureCalc(Table_PI[[#This Row],[Hide:\nFormula Name]],Table_SummaryPI[[#This Row],[Quantity]],Table_PI[[#This Row],[List 1]],Table_PI[[#This Row],[List 2]],Table_PI[[#This Row],[List 3]],Table_PI[[#This Row],[Size]],Table_PI[[#This Row],[Input 1]],Table_PI[[#This Row],[Input 2]],Table_PI[[#This Row],[Input 3]],Table_PI[[#This Row],[Input 4]],'Customer Information'!$AR$12,100,ROW()),\"\"),\"\")","v":""},{"$f":"IF(Table_PI[[#This Row],[Input 1]]<>\"\",Table_PI[[#This Row],[Input 1]],\"\")","v":""},null,{"$f":"IFERROR(IF(AND(MeasureCalc(Table_PI[[#This Row],[Hide:\nFormula Name]],Table_SummaryPI[[#This Row],[Quantity]],Table_PI[[#This Row],[List 1]],Table_PI[[#This Row],[List 2]],Table_PI[[#This Row],[List 3]],Table_PI[[#This Row],[Size]],Table_PI[[#This Row],[Input 1]],Table_PI[[#This Row],[Input 2]],Table_PI[[#This Row],[Input 3]],Table_PI[[#This Row],[Input 4]],'Customer Information'!$AR$12,101,ROW())<>0,MeasureCalc(Table_PI[[#This Row],[Hide:\nFormula Name]],Table_SummaryPI[[#This Row],[Quantity]],Table_PI[[#This Row],[List 1]],Table_PI[[#This Row],[List 2]],Table_PI[[#This Row],[List 3]],Table_PI[[#This Row],[Size]],Table_PI[[#This Row],[Input 1]],Table_PI[[#This Row],[Input 2]],Table_PI[[#This Row],[Input 3]],Table_PI[[#This Row],[Input 4]],'Customer Information'!$AR$12,101,ROW())<>\"No Rebate\"),MeasureCalc(Table_PI[[#This Row],[Hide:\nFormula Name]],Table_SummaryPI[[#This Row],[Quantity]],Table_PI[[#This Row],[List 1]],Table_PI[[#This Row],[List 2]],Table_PI[[#This Row],[List 3]],Table_PI[[#This Row],[Size]],Table_PI[[#This Row],[Input 1]],Table_PI[[#This Row],[Input 2]],Table_PI[[#This Row],[Input 3]],Table_PI[[#This Row],[Input 4]],'Customer Information'!$AR$12,101,ROW()),\"\"),\"\")","v":""},{"$f":"IF(Table_PI[[#This Row],[Input 2]]<>\"\",Table_PI[[#This Row],[Input 2]],\"\")","v":""},null,{"$f":"IFERROR(IF(AND(MeasureCalc(Table_PI[[#This Row],[Hide:\nFormula Name]],Table_SummaryPI[[#This Row],[Quantity]],Table_PI[[#This Row],[List 1]],Table_PI[[#This Row],[List 2]],Table_PI[[#This Row],[List 3]],Table_PI[[#This Row],[Size]],Table_PI[[#This Row],[Input 1]],Table_PI[[#This Row],[Input 2]],Table_PI[[#This Row],[Input 3]],Table_PI[[#This Row],[Input 4]],'Customer Information'!$AR$12,102,ROW())<>0,MeasureCalc(Table_PI[[#This Row],[Hide:\nFormula Name]],Table_SummaryPI[[#This Row],[Quantity]],Table_PI[[#This Row],[List 1]],Table_PI[[#This Row],[List 2]],Table_PI[[#This Row],[List 3]],Table_PI[[#This Row],[Size]],Table_PI[[#This Row],[Input 1]],Table_PI[[#This Row],[Input 2]],Table_PI[[#This Row],[Input 3]],Table_PI[[#This Row],[Input 4]],'Customer Information'!$AR$12,102,ROW())<>\"No Rebate\"),MeasureCalc(Table_PI[[#This Row],[Hide:\nFormula Name]],Table_SummaryPI[[#This Row],[Quantity]],Table_PI[[#This Row],[List 1]],Table_PI[[#This Row],[List 2]],Table_PI[[#This Row],[List 3]],Table_PI[[#This Row],[Size]],Table_PI[[#This Row],[Input 1]],Table_PI[[#This Row],[Input 2]],Table_PI[[#This Row],[Input 3]],Table_PI[[#This Row],[Input 4]],'Customer Information'!$AR$12,102,ROW()),\"\"),\"\")","v":""},{"$f":"IF(Table_PI[[#This Row],[Input 3]]<>\"\",Table_PI[[#This Row],[Input 3]],\"\")","v":""},null,{"$f":"IFERROR(IF(AND(MeasureCalc(Table_PI[[#This Row],[Hide:\nFormula Name]],Table_SummaryPI[[#This Row],[Quantity]],Table_PI[[#This Row],[List 1]],Table_PI[[#This Row],[List 2]],Table_PI[[#This Row],[List 3]],Table_PI[[#This Row],[Size]],Table_PI[[#This Row],[Input 1]],Table_PI[[#This Row],[Input 2]],Table_PI[[#This Row],[Input 3]],Table_PI[[#This Row],[Input 4]],'Customer Information'!$AR$12,103,ROW())<>0,MeasureCalc(Table_PI[[#This Row],[Hide:\nFormula Name]],Table_SummaryPI[[#This Row],[Quantity]],Table_PI[[#This Row],[List 1]],Table_PI[[#This Row],[List 2]],Table_PI[[#This Row],[List 3]],Table_PI[[#This Row],[Size]],Table_PI[[#This Row],[Input 1]],Table_PI[[#This Row],[Input 2]],Table_PI[[#This Row],[Input 3]],Table_PI[[#This Row],[Input 4]],'Customer Information'!$AR$12,103,ROW())<>\"No Rebate\"),MeasureCalc(Table_PI[[#This Row],[Hide:\nFormula Name]],Table_SummaryPI[[#This Row],[Quantity]],Table_PI[[#This Row],[List 1]],Table_PI[[#This Row],[List 2]],Table_PI[[#This Row],[List 3]],Table_PI[[#This Row],[Size]],Table_PI[[#This Row],[Input 1]],Table_PI[[#This Row],[Input 2]],Table_PI[[#This Row],[Input 3]],Table_PI[[#This Row],[Input 4]],'Customer Information'!$AR$12,103,ROW()),\"\"),\"\")","v":""},{"$f":"IF(Table_PI[[#This Row],[Input 4]]<>\"\",Table_PI[[#This Row],[Input 4]],\"\")","v":""},{"$f":"IF(Table_PI[[#This Row],[Quantity]]=\"\",\"\",Table_PI[[#This Row],[Quantity]])","v":""},{"$f":"IF(Table_PI[[#This Row],[Notes]]=\"\",\"\",Table_PI[[#This Row],[Notes]])","v":""},{"$f":"IF(OR(Table_PI[[#This Row],[Hide:\nBaseline kWh]]=\"\",Table_PI[[#This Row],[Hide:\nBaseline kWh]]=0),\"\",Table_PI[[#This Row],[Hide:\nBaseline kWh]])","v":""},{"$f":"IF(OR(Table_PI[[#This Row],[Hide:\nBaseline kW]]=\"\",Table_PI[[#This Row],[Hide:\nBaseline kW]]=0),\"\",Table_PI[[#This Row],[Hide:\nBaseline kW]])","v":""},{"$f":"IF(OR(Table_PI[[#This Row],[Hide:\nProposed kWh]]=\"\",Table_PI[[#This Row],[Hide:\nProposed kWh]]=0),\"\",Table_PI[[#This Row],[Hide:\nProposed kWh]])","v":""},{"$f":"IF(OR(Table_PI[[#This Row],[Hide:\nProposed kW]]=\"\",Table_PI[[#This Row],[Hide:\nProposed kW]]=0),\"\",Table_PI[[#This Row],[Hide:\nProposed kW]])","v":""},{"$f":"IF(OR(Table_PI[[#This Row],[Rebate]]=\"\",Table_PI[[#This Row],[Rebate]]=0),\"\",Table_PI[[#This Row],[Rebate]])","v":""},{"$f":"IF(OR(Table_PI[[#This Row],[Hide:\nIncremental Cost]]=\"\",Table_PI[[#This Row],[Hide:\nIncremental Cost]]=0),\"\",Table_PI[[#This Row],[Hide:\nIncremental Cost]])","v":""},{"$f":"IFERROR(IF(Table_SummaryPI[[#This Row],[kWhSavings]]=\"\",\"\",ROUND(Table_SummaryPI[[#This Row],[kWhSavings]]/$AG$401*'Customer Information'!$BC$17,2)),0)","v":""},{"$f":"IF(OR(Table_PI[[#This Row],[Annual kWh]]=\"\",Table_PI[[#This Row],[Annual kWh]]=0),\"\",Table_PI[[#This Row],[Annual kWh]])","v":""},{"$f":"IF(OR(Table_PI[[#This Row],[Peak kW]]=\"\",Table_PI[[#This Row],[Peak kW]]=0),\"\",Table_PI[[#This Row],[Peak kW]])","v":""},{"$f":"IFERROR(IF(Table_SummaryPI[[#This Row],[kWhSavings]]=\"\",\"\",$AU$9*Table_SummaryPI[[#This Row],[kWhSavings]]),0)","v":""},{"$f":"IFERROR(IF(Table_SummaryPI[[#This Row],[kWhSavings]]=\"\",\"\",$AU$14*Table_SummaryPI[[#This Row],[kWhSavings]]),0)","v":""},{"$f":"IFERROR(IF(Table_SummaryPI[[#This Row],[kWhSavings]]=\"\",\"\",$AU$18*Table_SummaryPI[[#This Row],[kWhSavings]]),0)","v":""},{"$f":"IFERROR(IF(Table_SummaryPI[[#This Row],[kWhSavings]]=\"\",\"\",$AU$22*Table_SummaryPI[[#This Row],[kWhSavings]]),0)","v":""},{"$f":"IFERROR(IF(MeasureCalc(Table_PI[[#This Row],[Hide:\nFormula Name]],Table_SummaryPI[[#This Row],[Quantity]],Table_PI[[#This Row],[List 1]],Table_PI[[#This Row],[List 2]],Table_PI[[#This Row],[List 3]],Table_PI[[#This Row],[Size]],Table_PI[[#This Row],[Input 1]],Table_PI[[#This Row],[Input 2]],Table_PI[[#This Row],[Input 3]],Table_PI[[#This Row],[Input 4]],'Customer Information'!$AR$12,200,ROW())<>\"No Rebate\",MeasureCalc(Table_PI[[#This Row],[Hide:\nFormula Name]],Table_SummaryPI[[#This Row],[Quantity]],Table_PI[[#This Row],[List 1]],Table_PI[[#This Row],[List 2]],Table_PI[[#This Row],[List 3]],Table_PI[[#This Row],[Size]],Table_PI[[#This Row],[Input 1]],Table_PI[[#This Row],[Input 2]],Table_PI[[#This Row],[Input 3]],Table_PI[[#This Row],[Input 4]],'Customer Information'!$AR$12,200,ROW()),\"\"),\"\")","v":""},{"$f":"IFERROR(IF(MeasureCalc(Table_PI[[#This Row],[Hide:\nFormula Name]],Table_SummaryPI[[#This Row],[Quantity]],Table_PI[[#This Row],[List 1]],Table_PI[[#This Row],[List 2]],Table_PI[[#This Row],[List 3]],Table_PI[[#This Row],[Size]],Table_PI[[#This Row],[Input 1]],Table_PI[[#This Row],[Input 2]],Table_PI[[#This Row],[Input 3]],Table_PI[[#This Row],[Input 4]],'Customer Information'!$AR$12,201,ROW())<>\"No Rebate\",MeasureCalc(Table_PI[[#This Row],[Hide:\nFormula Name]],Table_SummaryPI[[#This Row],[Quantity]],Table_PI[[#This Row],[List 1]],Table_PI[[#This Row],[List 2]],Table_PI[[#This Row],[List 3]],Table_PI[[#This Row],[Size]],Table_PI[[#This Row],[Input 1]],Table_PI[[#This Row],[Input 2]],Table_PI[[#This Row],[Input 3]],Table_PI[[#This Row],[Input 4]],'Customer Information'!$AR$12,201,ROW()),\"\"),\"\")","v":""}]
[{"$f":"Table_PI[[#This Row],[Line No.]]","v":""},{"$f":"IF(Table_SummaryPI[[#This Row],[MeassureCategory]]<>\"\",CONCATENATE(Table_SummaryPI[[#This Row],[MeassureCategory]],  \" - \", Table_SummaryPI[[#This Row],[ProposedMeasureCategory]],  \" - \", TEXT(Table_SummaryPI[[#This Row],[Size]],\"#,##0.00\"),\" \",Table_SummaryPI[[#This Row],[SizeUnit]]),\"\")","v":""},{"$f":"SUBSTITUTE(Table_PI[[#This Row],[Measure]],\"     \",\"\",1)","v":""},{"$f":"IF(Table_PI[[#This Row],[List 1]]<>\"\",Table_PI[[#This Row],[List 1]],\"\")","v":""},{"$f":"IF(Table_PI[[#This Row],[List 2]]<>\"\",Table_PI[[#This Row],[List 2]],\"\")","v":""},{"$f":"IF(Table_PI[[#This Row],[List 3]]<>\"\",Table_PI[[#This Row],[List 3]],\"\")","v":""},{"$f":"IF(Table_PI[[#This Row],[Manufacturer]]=\"\",\"\",Table_PI[[#This Row],[Manufacturer]])","v":""},{"$f":"IF(Table_PI[[#This Row],[Model Number]]=\"\",\"\",Table_PI[[#This Row],[Model Number]])","v":""},{"$f":"IF(Table_PI[[#This Row],[Serial Number(s)]]=\"\",\"\",Table_PI[[#This Row],[Serial Number(s)]])","v":""},null,{"$f":"IF(Table_PI[[#This Row],[Size]]=\"\",\"\",Table_PI[[#This Row],[Size]])","v":""},null,{"$f":"IFERROR(IF(AND(MeasureCalc(Table_PI[[#This Row],[Hide:\nFormula Name]],Table_SummaryPI[[#This Row],[Quantity]],Table_PI[[#This Row],[List 1]],Table_PI[[#This Row],[List 2]],Table_PI[[#This Row],[List 3]],Table_PI[[#This Row],[Size]],Table_PI[[#This Row],[Input 1]],Table_PI[[#This Row],[Input 2]],Table_PI[[#This Row],[Input 3]],Table_PI[[#This Row],[Input 4]],'Customer Information'!$AR$12,100,ROW())<>0,MeasureCalc(Table_PI[[#This Row],[Hide:\nFormula Name]],Table_SummaryPI[[#This Row],[Quantity]],Table_PI[[#This Row],[List 1]],Table_PI[[#This Row],[List 2]],Table_PI[[#This Row],[List 3]],Table_PI[[#This Row],[Size]],Table_PI[[#This Row],[Input 1]],Table_PI[[#This Row],[Input 2]],Table_PI[[#This Row],[Input 3]],Table_PI[[#This Row],[Input 4]],'Customer Information'!$AR$12,100,ROW())<>\"No Rebate\"),MeasureCalc(Table_PI[[#This Row],[Hide:\nFormula Name]],Table_SummaryPI[[#This Row],[Quantity]],Table_PI[[#This Row],[List 1]],Table_PI[[#This Row],[List 2]],Table_PI[[#This Row],[List 3]],Table_PI[[#This Row],[Size]],Table_PI[[#This Row],[Input 1]],Table_PI[[#This Row],[Input 2]],Table_PI[[#This Row],[Input 3]],Table_PI[[#This Row],[Input 4]],'Customer Information'!$AR$12,100,ROW()),\"\"),\"\")","v":""},{"$f":"IF(Table_PI[[#This Row],[Input 1]]<>\"\",Table_PI[[#This Row],[Input 1]],\"\")","v":""},null,{"$f":"IFERROR(IF(AND(MeasureCalc(Table_PI[[#This Row],[Hide:\nFormula Name]],Table_SummaryPI[[#This Row],[Quantity]],Table_PI[[#This Row],[List 1]],Table_PI[[#This Row],[List 2]],Table_PI[[#This Row],[List 3]],Table_PI[[#This Row],[Size]],Table_PI[[#This Row],[Input 1]],Table_PI[[#This Row],[Input 2]],Table_PI[[#This Row],[Input 3]],Table_PI[[#This Row],[Input 4]],'Customer Information'!$AR$12,101,ROW())<>0,MeasureCalc(Table_PI[[#This Row],[Hide:\nFormula Name]],Table_SummaryPI[[#This Row],[Quantity]],Table_PI[[#This Row],[List 1]],Table_PI[[#This Row],[List 2]],Table_PI[[#This Row],[List 3]],Table_PI[[#This Row],[Size]],Table_PI[[#This Row],[Input 1]],Table_PI[[#This Row],[Input 2]],Table_PI[[#This Row],[Input 3]],Table_PI[[#This Row],[Input 4]],'Customer Information'!$AR$12,101,ROW())<>\"No Rebate\"),MeasureCalc(Table_PI[[#This Row],[Hide:\nFormula Name]],Table_SummaryPI[[#This Row],[Quantity]],Table_PI[[#This Row],[List 1]],Table_PI[[#This Row],[List 2]],Table_PI[[#This Row],[List 3]],Table_PI[[#This Row],[Size]],Table_PI[[#This Row],[Input 1]],Table_PI[[#This Row],[Input 2]],Table_PI[[#This Row],[Input 3]],Table_PI[[#This Row],[Input 4]],'Customer Information'!$AR$12,101,ROW()),\"\"),\"\")","v":""},{"$f":"IF(Table_PI[[#This Row],[Input 2]]<>\"\",Table_PI[[#This Row],[Input 2]],\"\")","v":""},null,{"$f":"IFERROR(IF(AND(MeasureCalc(Table_PI[[#This Row],[Hide:\nFormula Name]],Table_SummaryPI[[#This Row],[Quantity]],Table_PI[[#This Row],[List 1]],Table_PI[[#This Row],[List 2]],Table_PI[[#This Row],[List 3]],Table_PI[[#This Row],[Size]],Table_PI[[#This Row],[Input 1]],Table_PI[[#This Row],[Input 2]],Table_PI[[#This Row],[Input 3]],Table_PI[[#This Row],[Input 4]],'Customer Information'!$AR$12,102,ROW())<>0,MeasureCalc(Table_PI[[#This Row],[Hide:\nFormula Name]],Table_SummaryPI[[#This Row],[Quantity]],Table_PI[[#This Row],[List 1]],Table_PI[[#This Row],[List 2]],Table_PI[[#This Row],[List 3]],Table_PI[[#This Row],[Size]],Table_PI[[#This Row],[Input 1]],Table_PI[[#This Row],[Input 2]],Table_PI[[#This Row],[Input 3]],Table_PI[[#This Row],[Input 4]],'Customer Information'!$AR$12,102,ROW())<>\"No Rebate\"),MeasureCalc(Table_PI[[#This Row],[Hide:\nFormula Name]],Table_SummaryPI[[#This Row],[Quantity]],Table_PI[[#This Row],[List 1]],Table_PI[[#This Row],[List 2]],Table_PI[[#This Row],[List 3]],Table_PI[[#This Row],[Size]],Table_PI[[#This Row],[Input 1]],Table_PI[[#This Row],[Input 2]],Table_PI[[#This Row],[Input 3]],Table_PI[[#This Row],[Input 4]],'Customer Information'!$AR$12,102,ROW()),\"\"),\"\")","v":""},{"$f":"IF(Table_PI[[#This Row],[Input 3]]<>\"\",Table_PI[[#This Row],[Input 3]],\"\")","v":""},null,{"$f":"IFERROR(IF(AND(MeasureCalc(Table_PI[[#This Row],[Hide:\nFormula Name]],Table_SummaryPI[[#This Row],[Quantity]],Table_PI[[#This Row],[List 1]],Table_PI[[#This Row],[List 2]],Table_PI[[#This Row],[List 3]],Table_PI[[#This Row],[Size]],Table_PI[[#This Row],[Input 1]],Table_PI[[#This Row],[Input 2]],Table_PI[[#This Row],[Input 3]],Table_PI[[#This Row],[Input 4]],'Customer Information'!$AR$12,103,ROW())<>0,MeasureCalc(Table_PI[[#This Row],[Hide:\nFormula Name]],Table_SummaryPI[[#This Row],[Quantity]],Table_PI[[#This Row],[List 1]],Table_PI[[#This Row],[List 2]],Table_PI[[#This Row],[List 3]],Table_PI[[#This Row],[Size]],Table_PI[[#This Row],[Input 1]],Table_PI[[#This Row],[Input 2]],Table_PI[[#This Row],[Input 3]],Table_PI[[#This Row],[Input 4]],'Customer Information'!$AR$12,103,ROW())<>\"No Rebate\"),MeasureCalc(Table_PI[[#This Row],[Hide:\nFormula Name]],Table_SummaryPI[[#This Row],[Quantity]],Table_PI[[#This Row],[List 1]],Table_PI[[#This Row],[List 2]],Table_PI[[#This Row],[List 3]],Table_PI[[#This Row],[Size]],Table_PI[[#This Row],[Input 1]],Table_PI[[#This Row],[Input 2]],Table_PI[[#This Row],[Input 3]],Table_PI[[#This Row],[Input 4]],'Customer Information'!$AR$12,103,ROW()),\"\"),\"\")","v":""},{"$f":"IF(Table_PI[[#This Row],[Input 4]]<>\"\",Table_PI[[#This Row],[Input 4]],\"\")","v":""},{"$f":"IF(Table_PI[[#This Row],[Quantity]]=\"\",\"\",Table_PI[[#This Row],[Quantity]])","v":""},{"$f":"IF(Table_PI[[#This Row],[Notes]]=\"\",\"\",Table_PI[[#This Row],[Notes]])","v":""},{"$f":"IF(OR(Table_PI[[#This Row],[Hide:\nBaseline kWh]]=\"\",Table_PI[[#This Row],[Hide:\nBaseline kWh]]=0),\"\",Table_PI[[#This Row],[Hide:\nBaseline kWh]])","v":""},{"$f":"IF(OR(Table_PI[[#This Row],[Hide:\nBaseline kW]]=\"\",Table_PI[[#This Row],[Hide:\nBaseline kW]]=0),\"\",Table_PI[[#This Row],[Hide:\nBaseline kW]])","v":""},{"$f":"IF(OR(Table_PI[[#This Row],[Hide:\nProposed kWh]]=\"\",Table_PI[[#This Row],[Hide:\nProposed kWh]]=0),\"\",Table_PI[[#This Row],[Hide:\nProposed kWh]])","v":""},{"$f":"IF(OR(Table_PI[[#This Row],[Hide:\nProposed kW]]=\"\",Table_PI[[#This Row],[Hide:\nProposed kW]]=0),\"\",Table_PI[[#This Row],[Hide:\nProposed kW]])","v":""},{"$f":"IF(OR(Table_PI[[#This Row],[Rebate]]=\"\",Table_PI[[#This Row],[Rebate]]=0),\"\",Table_PI[[#This Row],[Rebate]])","v":""},{"$f":"IF(OR(Table_PI[[#This Row],[Hide:\nIncremental Cost]]=\"\",Table_PI[[#This Row],[Hide:\nIncremental Cost]]=0),\"\",Table_PI[[#This Row],[Hide:\nIncremental Cost]])","v":""},{"$f":"IFERROR(IF(Table_SummaryPI[[#This Row],[kWhSavings]]=\"\",\"\",ROUND(Table_SummaryPI[[#This Row],[kWhSavings]]/$AG$401*'Customer Information'!$BC$17,2)),0)","v":""},{"$f":"IF(OR(Table_PI[[#This Row],[Annual kWh]]=\"\",Table_PI[[#This Row],[Annual kWh]]=0),\"\",Table_PI[[#This Row],[Annual kWh]])","v":""},{"$f":"IF(OR(Table_PI[[#This Row],[Peak kW]]=\"\",Table_PI[[#This Row],[Peak kW]]=0),\"\",Table_PI[[#This Row],[Peak kW]])","v":""},{"$f":"IFERROR(IF(Table_SummaryPI[[#This Row],[kWhSavings]]=\"\",\"\",$AU$9*Table_SummaryPI[[#This Row],[kWhSavings]]),0)","v":""},{"$f":"IFERROR(IF(Table_SummaryPI[[#This Row],[kWhSavings]]=\"\",\"\",$AU$14*Table_SummaryPI[[#This Row],[kWhSavings]]),0)","v":""},{"$f":"IFERROR(IF(Table_SummaryPI[[#This Row],[kWhSavings]]=\"\",\"\",$AU$18*Table_SummaryPI[[#This Row],[kWhSavings]]),0)","v":""},{"$f":"IFERROR(IF(Table_SummaryPI[[#This Row],[kWhSavings]]=\"\",\"\",$AU$22*Table_SummaryPI[[#This Row],[kWhSavings]]),0)","v":""},{"$f":"IFERROR(IF(MeasureCalc(Table_PI[[#This Row],[Hide:\nFormula Name]],Table_SummaryPI[[#This Row],[Quantity]],Table_PI[[#This Row],[List 1]],Table_PI[[#This Row],[List 2]],Table_PI[[#This Row],[List 3]],Table_PI[[#This Row],[Size]],Table_PI[[#This Row],[Input 1]],Table_PI[[#This Row],[Input 2]],Table_PI[[#This Row],[Input 3]],Table_PI[[#This Row],[Input 4]],'Customer Information'!$AR$12,200,ROW())<>\"No Rebate\",MeasureCalc(Table_PI[[#This Row],[Hide:\nFormula Name]],Table_SummaryPI[[#This Row],[Quantity]],Table_PI[[#This Row],[List 1]],Table_PI[[#This Row],[List 2]],Table_PI[[#This Row],[List 3]],Table_PI[[#This Row],[Size]],Table_PI[[#This Row],[Input 1]],Table_PI[[#This Row],[Input 2]],Table_PI[[#This Row],[Input 3]],Table_PI[[#This Row],[Input 4]],'Customer Information'!$AR$12,200,ROW()),\"\"),\"\")","v":""},{"$f":"IFERROR(IF(MeasureCalc(Table_PI[[#This Row],[Hide:\nFormula Name]],Table_SummaryPI[[#This Row],[Quantity]],Table_PI[[#This Row],[List 1]],Table_PI[[#This Row],[List 2]],Table_PI[[#This Row],[List 3]],Table_PI[[#This Row],[Size]],Table_PI[[#This Row],[Input 1]],Table_PI[[#This Row],[Input 2]],Table_PI[[#This Row],[Input 3]],Table_PI[[#This Row],[Input 4]],'Customer Information'!$AR$12,201,ROW())<>\"No Rebate\",MeasureCalc(Table_PI[[#This Row],[Hide:\nFormula Name]],Table_SummaryPI[[#This Row],[Quantity]],Table_PI[[#This Row],[List 1]],Table_PI[[#This Row],[List 2]],Table_PI[[#This Row],[List 3]],Table_PI[[#This Row],[Size]],Table_PI[[#This Row],[Input 1]],Table_PI[[#This Row],[Input 2]],Table_PI[[#This Row],[Input 3]],Table_PI[[#This Row],[Input 4]],'Customer Information'!$AR$12,201,ROW()),\"\"),\"\")","v":""},null,null,"CO2 Calculations"]
[{"$f":"Table_PI[[#This Row],[Line No.]]","v":""},{"$f":"IF(Table_SummaryPI[[#This Row],[MeassureCategory]]<>\"\",CONCATENATE(Table_SummaryPI[[#This Row],[MeassureCategory]],  \" - \", Table_SummaryPI[[#This Row],[ProposedMeasureCategory]],  \" - \", TEXT(Table_SummaryPI[[#This Row],[Size]],\"#,##0.00\"),\" \",Table_SummaryPI[[#This Row],[SizeUnit]]),\"\")","v":""},{"$f":"SUBSTITUTE(Table_PI[[#This Row],[Measure]],\"     \",\"\",1)","v":""},{"$f":"IF(Table_PI[[#This Row],[List 1]]<>\"\",Table_PI[[#This Row],[List 1]],\"\")","v":""},{"$f":"IF(Table_PI[[#This Row],[List 2]]<>\"\",Table_PI[[#This Row],[List 2]],\"\")","v":""},{"$f":"IF(Table_PI[[#This Row],[List 3]]<>\"\",Table_PI[[#This Row],[List 3]],\"\")","v":""},{"$f":"IF(Table_PI[[#This Row],[Manufacturer]]=\"\",\"\",Table_PI[[#This Row],[Manufacturer]])","v":""},{"$f":"IF(Table_PI[[#This Row],[Model Number]]=\"\",\"\",Table_PI[[#This Row],[Model Number]])","v":""},{"$f":"IF(Table_PI[[#This Row],[Serial Number(s)]]=\"\",\"\",Table_PI[[#This Row],[Serial Number(s)]])","v":""},null,{"$f":"IF(Table_PI[[#This Row],[Size]]=\"\",\"\",Table_PI[[#This Row],[Size]])","v":""},null,{"$f":"IFERROR(IF(AND(MeasureCalc(Table_PI[[#This Row],[Hide:\nFormula Name]],Table_SummaryPI[[#This Row],[Quantity]],Table_PI[[#This Row],[List 1]],Table_PI[[#This Row],[List 2]],Table_PI[[#This Row],[List 3]],Table_PI[[#This Row],[Size]],Table_PI[[#This Row],[Input 1]],Table_PI[[#This Row],[Input 2]],Table_PI[[#This Row],[Input 3]],Table_PI[[#This Row],[Input 4]],'Customer Information'!$AR$12,100,ROW())<>0,MeasureCalc(Table_PI[[#This Row],[Hide:\nFormula Name]],Table_SummaryPI[[#This Row],[Quantity]],Table_PI[[#This Row],[List 1]],Table_PI[[#This Row],[List 2]],Table_PI[[#This Row],[List 3]],Table_PI[[#This Row],[Size]],Table_PI[[#This Row],[Input 1]],Table_PI[[#This Row],[Input 2]],Table_PI[[#This Row],[Input 3]],Table_PI[[#This Row],[Input 4]],'Customer Information'!$AR$12,100,ROW())<>\"No Rebate\"),MeasureCalc(Table_PI[[#This Row],[Hide:\nFormula Name]],Table_SummaryPI[[#This Row],[Quantity]],Table_PI[[#This Row],[List 1]],Table_PI[[#This Row],[List 2]],Table_PI[[#This Row],[List 3]],Table_PI[[#This Row],[Size]],Table_PI[[#This Row],[Input 1]],Table_PI[[#This Row],[Input 2]],Table_PI[[#This Row],[Input 3]],Table_PI[[#This Row],[Input 4]],'Customer Information'!$AR$12,100,ROW()),\"\"),\"\")","v":""},{"$f":"IF(Table_PI[[#This Row],[Input 1]]<>\"\",Table_PI[[#This Row],[Input 1]],\"\")","v":""},null,{"$f":"IFERROR(IF(AND(MeasureCalc(Table_PI[[#This Row],[Hide:\nFormula Name]],Table_SummaryPI[[#This Row],[Quantity]],Table_PI[[#This Row],[List 1]],Table_PI[[#This Row],[List 2]],Table_PI[[#This Row],[List 3]],Table_PI[[#This Row],[Size]],Table_PI[[#This Row],[Input 1]],Table_PI[[#This Row],[Input 2]],Table_PI[[#This Row],[Input 3]],Table_PI[[#This Row],[Input 4]],'Customer Information'!$AR$12,101,ROW())<>0,MeasureCalc(Table_PI[[#This Row],[Hide:\nFormula Name]],Table_SummaryPI[[#This Row],[Quantity]],Table_PI[[#This Row],[List 1]],Table_PI[[#This Row],[List 2]],Table_PI[[#This Row],[List 3]],Table_PI[[#This Row],[Size]],Table_PI[[#This Row],[Input 1]],Table_PI[[#This Row],[Input 2]],Table_PI[[#This Row],[Input 3]],Table_PI[[#This Row],[Input 4]],'Customer Information'!$AR$12,101,ROW())<>\"No Rebate\"),MeasureCalc(Table_PI[[#This Row],[Hide:\nFormula Name]],Table_SummaryPI[[#This Row],[Quantity]],Table_PI[[#This Row],[List 1]],Table_PI[[#This Row],[List 2]],Table_PI[[#This Row],[List 3]],Table_PI[[#This Row],[Size]],Table_PI[[#This Row],[Input 1]],Table_PI[[#This Row],[Input 2]],Table_PI[[#This Row],[Input 3]],Table_PI[[#This Row],[Input 4]],'Customer Information'!$AR$12,101,ROW()),\"\"),\"\")","v":""},{"$f":"IF(Table_PI[[#This Row],[Input 2]]<>\"\",Table_PI[[#This Row],[Input 2]],\"\")","v":""},null,{"$f":"IFERROR(IF(AND(MeasureCalc(Table_PI[[#This Row],[Hide:\nFormula Name]],Table_SummaryPI[[#This Row],[Quantity]],Table_PI[[#This Row],[List 1]],Table_PI[[#This Row],[List 2]],Table_PI[[#This Row],[List 3]],Table_PI[[#This Row],[Size]],Table_PI[[#This Row],[Input 1]],Table_PI[[#This Row],[Input 2]],Table_PI[[#This Row],[Input 3]],Table_PI[[#This Row],[Input 4]],'Customer Information'!$AR$12,102,ROW())<>0,MeasureCalc(Table_PI[[#This Row],[Hide:\nFormula Name]],Table_SummaryPI[[#This Row],[Quantity]],Table_PI[[#This Row],[List 1]],Table_PI[[#This Row],[List 2]],Table_PI[[#This Row],[List 3]],Table_PI[[#This Row],[Size]],Table_PI[[#This Row],[Input 1]],Table_PI[[#This Row],[Input 2]],Table_PI[[#This Row],[Input 3]],Table_PI[[#This Row],[Input 4]],'Customer Information'!$AR$12,102,ROW())<>\"No Rebate\"),MeasureCalc(Table_PI[[#This Row],[Hide:\nFormula Name]],Table_SummaryPI[[#This Row],[Quantity]],Table_PI[[#This Row],[List 1]],Table_PI[[#This Row],[List 2]],Table_PI[[#This Row],[List 3]],Table_PI[[#This Row],[Size]],Table_PI[[#This Row],[Input 1]],Table_PI[[#This Row],[Input 2]],Table_PI[[#This Row],[Input 3]],Table_PI[[#This Row],[Input 4]],'Customer Information'!$AR$12,102,ROW()),\"\"),\"\")","v":""},{"$f":"IF(Table_PI[[#This Row],[Input 3]]<>\"\",Table_PI[[#This Row],[Input 3]],\"\")","v":""},null,{"$f":"IFERROR(IF(AND(MeasureCalc(Table_PI[[#This Row],[Hide:\nFormula Name]],Table_SummaryPI[[#This Row],[Quantity]],Table_PI[[#This Row],[List 1]],Table_PI[[#This Row],[List 2]],Table_PI[[#This Row],[List 3]],Table_PI[[#This Row],[Size]],Table_PI[[#This Row],[Input 1]],Table_PI[[#This Row],[Input 2]],Table_PI[[#This Row],[Input 3]],Table_PI[[#This Row],[Input 4]],'Customer Information'!$AR$12,103,ROW())<>0,MeasureCalc(Table_PI[[#This Row],[Hide:\nFormula Name]],Table_SummaryPI[[#This Row],[Quantity]],Table_PI[[#This Row],[List 1]],Table_PI[[#This Row],[List 2]],Table_PI[[#This Row],[List 3]],Table_PI[[#This Row],[Size]],Table_PI[[#This Row],[Input 1]],Table_PI[[#This Row],[Input 2]],Table_PI[[#This Row],[Input 3]],Table_PI[[#This Row],[Input 4]],'Customer Information'!$AR$12,103,ROW())<>\"No Rebate\"),MeasureCalc(Table_PI[[#This Row],[Hide:\nFormula Name]],Table_SummaryPI[[#This Row],[Quantity]],Table_PI[[#This Row],[List 1]],Table_PI[[#This Row],[List 2]],Table_PI[[#This Row],[List 3]],Table_PI[[#This Row],[Size]],Table_PI[[#This Row],[Input 1]],Table_PI[[#This Row],[Input 2]],Table_PI[[#This Row],[Input 3]],Table_PI[[#This Row],[Input 4]],'Customer Information'!$AR$12,103,ROW()),\"\"),\"\")","v":""},{"$f":"IF(Table_PI[[#This Row],[Input 4]]<>\"\",Table_PI[[#This Row],[Input 4]],\"\")","v":""},{"$f":"IF(Table_PI[[#This Row],[Quantity]]=\"\",\"\",Table_PI[[#This Row],[Quantity]])","v":""},{"$f":"IF(Table_PI[[#This Row],[Notes]]=\"\",\"\",Table_PI[[#This Row],[Notes]])","v":""},{"$f":"IF(OR(Table_PI[[#This Row],[Hide:\nBaseline kWh]]=\"\",Table_PI[[#This Row],[Hide:\nBaseline kWh]]=0),\"\",Table_PI[[#This Row],[Hide:\nBaseline kWh]])","v":""},{"$f":"IF(OR(Table_PI[[#This Row],[Hide:\nBaseline kW]]=\"\",Table_PI[[#This Row],[Hide:\nBaseline kW]]=0),\"\",Table_PI[[#This Row],[Hide:\nBaseline kW]])","v":""},{"$f":"IF(OR(Table_PI[[#This Row],[Hide:\nProposed kWh]]=\"\",Table_PI[[#This Row],[Hide:\nProposed kWh]]=0),\"\",Table_PI[[#This Row],[Hide:\nProposed kWh]])","v":""},{"$f":"IF(OR(Table_PI[[#This Row],[Hide:\nProposed kW]]=\"\",Table_PI[[#This Row],[Hide:\nProposed kW]]=0),\"\",Table_PI[[#This Row],[Hide:\nProposed kW]])","v":""},{"$f":"IF(OR(Table_PI[[#This Row],[Rebate]]=\"\",Table_PI[[#This Row],[Rebate]]=0),\"\",Table_PI[[#This Row],[Rebate]])","v":""},{"$f":"IF(OR(Table_PI[[#This Row],[Hide:\nIncremental Cost]]=\"\",Table_PI[[#This Row],[Hide:\nIncremental Cost]]=0),\"\",Table_PI[[#This Row],[Hide:\nIncremental Cost]])","v":""},{"$f":"IFERROR(IF(Table_SummaryPI[[#This Row],[kWhSavings]]=\"\",\"\",ROUND(Table_SummaryPI[[#This Row],[kWhSavings]]/$AG$401*'Customer Information'!$BC$17,2)),0)","v":""},{"$f":"IF(OR(Table_PI[[#This Row],[Annual kWh]]=\"\",Table_PI[[#This Row],[Annual kWh]]=0),\"\",Table_PI[[#This Row],[Annual kWh]])","v":""},{"$f":"IF(OR(Table_PI[[#This Row],[Peak kW]]=\"\",Table_PI[[#This Row],[Peak kW]]=0),\"\",Table_PI[[#This Row],[Peak kW]])","v":""},{"$f":"IFERROR(IF(Table_SummaryPI[[#This Row],[kWhSavings]]=\"\",\"\",$AU$9*Table_SummaryPI[[#This Row],[kWhSavings]]),0)","v":""},{"$f":"IFERROR(IF(Table_SummaryPI[[#This Row],[kWhSavings]]=\"\",\"\",$AU$14*Table_SummaryPI[[#This Row],[kWhSavings]]),0)","v":""},{"$f":"IFERROR(IF(Table_SummaryPI[[#This Row],[kWhSavings]]=\"\",\"\",$AU$18*Table_SummaryPI[[#This Row],[kWhSavings]]),0)","v":""},{"$f":"IFERROR(IF(Table_SummaryPI[[#This Row],[kWhSavings]]=\"\",\"\",$AU$22*Table_SummaryPI[[#This Row],[kWhSavings]]),0)","v":""},{"$f":"IFERROR(IF(MeasureCalc(Table_PI[[#This Row],[Hide:\nFormula Name]],Table_SummaryPI[[#This Row],[Quantity]],Table_PI[[#This Row],[List 1]],Table_PI[[#This Row],[List 2]],Table_PI[[#This Row],[List 3]],Table_PI[[#This Row],[Size]],Table_PI[[#This Row],[Input 1]],Table_PI[[#This Row],[Input 2]],Table_PI[[#This Row],[Input 3]],Table_PI[[#This Row],[Input 4]],'Customer Information'!$AR$12,200,ROW())<>\"No Rebate\",MeasureCalc(Table_PI[[#This Row],[Hide:\nFormula Name]],Table_SummaryPI[[#This Row],[Quantity]],Table_PI[[#This Row],[List 1]],Table_PI[[#This Row],[List 2]],Table_PI[[#This Row],[List 3]],Table_PI[[#This Row],[Size]],Table_PI[[#This Row],[Input 1]],Table_PI[[#This Row],[Input 2]],Table_PI[[#This Row],[Input 3]],Table_PI[[#This Row],[Input 4]],'Customer Information'!$AR$12,200,ROW()),\"\"),\"\")","v":""},{"$f":"IFERROR(IF(MeasureCalc(Table_PI[[#This Row],[Hide:\nFormula Name]],Table_SummaryPI[[#This Row],[Quantity]],Table_PI[[#This Row],[List 1]],Table_PI[[#This Row],[List 2]],Table_PI[[#This Row],[List 3]],Table_PI[[#This Row],[Size]],Table_PI[[#This Row],[Input 1]],Table_PI[[#This Row],[Input 2]],Table_PI[[#This Row],[Input 3]],Table_PI[[#This Row],[Input 4]],'Customer Information'!$AR$12,201,ROW())<>\"No Rebate\",MeasureCalc(Table_PI[[#This Row],[Hide:\nFormula Name]],Table_SummaryPI[[#This Row],[Quantity]],Table_PI[[#This Row],[List 1]],Table_PI[[#This Row],[List 2]],Table_PI[[#This Row],[List 3]],Table_PI[[#This Row],[Size]],Table_PI[[#This Row],[Input 1]],Table_PI[[#This Row],[Input 2]],Table_PI[[#This Row],[Input 3]],Table_PI[[#This Row],[Input 4]],'Customer Information'!$AR$12,201,ROW()),\"\"),\"\")","v":""},null,null,1206,"lbs. CO2 / MWh",null,null,{"$f":"AQ9*AQ10/1000","v":5.4703801143064497E-4},"Tons CO2 / kWh"]
[{"$f":"Table_PI[[#This Row],[Line No.]]","v":""},{"$f":"IF(Table_SummaryPI[[#This Row],[MeassureCategory]]<>\"\",CONCATENATE(Table_SummaryPI[[#This Row],[MeassureCategory]],  \" - \", Table_SummaryPI[[#This Row],[ProposedMeasureCategory]],  \" - \", TEXT(Table_SummaryPI[[#This Row],[Size]],\"#,##0.00\"),\" \",Table_SummaryPI[[#This Row],[SizeUnit]]),\"\")","v":""},{"$f":"SUBSTITUTE(Table_PI[[#This Row],[Measure]],\"     \",\"\",1)","v":""},{"$f":"IF(Table_PI[[#This Row],[List 1]]<>\"\",Table_PI[[#This Row],[List 1]],\"\")","v":""},{"$f":"IF(Table_PI[[#This Row],[List 2]]<>\"\",Table_PI[[#This Row],[List 2]],\"\")","v":""},{"$f":"IF(Table_PI[[#This Row],[List 3]]<>\"\",Table_PI[[#This Row],[List 3]],\"\")","v":""},{"$f":"IF(Table_PI[[#This Row],[Manufacturer]]=\"\",\"\",Table_PI[[#This Row],[Manufacturer]])","v":""},{"$f":"IF(Table_PI[[#This Row],[Model Number]]=\"\",\"\",Table_PI[[#This Row],[Model Number]])","v":""},{"$f":"IF(Table_PI[[#This Row],[Serial Number(s)]]=\"\",\"\",Table_PI[[#This Row],[Serial Number(s)]])","v":""},null,{"$f":"IF(Table_PI[[#This Row],[Size]]=\"\",\"\",Table_PI[[#This Row],[Size]])","v":""},null,{"$f":"IFERROR(IF(AND(MeasureCalc(Table_PI[[#This Row],[Hide:\nFormula Name]],Table_SummaryPI[[#This Row],[Quantity]],Table_PI[[#This Row],[List 1]],Table_PI[[#This Row],[List 2]],Table_PI[[#This Row],[List 3]],Table_PI[[#This Row],[Size]],Table_PI[[#This Row],[Input 1]],Table_PI[[#This Row],[Input 2]],Table_PI[[#This Row],[Input 3]],Table_PI[[#This Row],[Input 4]],'Customer Information'!$AR$12,100,ROW())<>0,MeasureCalc(Table_PI[[#This Row],[Hide:\nFormula Name]],Table_SummaryPI[[#This Row],[Quantity]],Table_PI[[#This Row],[List 1]],Table_PI[[#This Row],[List 2]],Table_PI[[#This Row],[List 3]],Table_PI[[#This Row],[Size]],Table_PI[[#This Row],[Input 1]],Table_PI[[#This Row],[Input 2]],Table_PI[[#This Row],[Input 3]],Table_PI[[#This Row],[Input 4]],'Customer Information'!$AR$12,100,ROW())<>\"No Rebate\"),MeasureCalc(Table_PI[[#This Row],[Hide:\nFormula Name]],Table_SummaryPI[[#This Row],[Quantity]],Table_PI[[#This Row],[List 1]],Table_PI[[#This Row],[List 2]],Table_PI[[#This Row],[List 3]],Table_PI[[#This Row],[Size]],Table_PI[[#This Row],[Input 1]],Table_PI[[#This Row],[Input 2]],Table_PI[[#This Row],[Input 3]],Table_PI[[#This Row],[Input 4]],'Customer Information'!$AR$12,100,ROW()),\"\"),\"\")","v":""},{"$f":"IF(Table_PI[[#This Row],[Input 1]]<>\"\",Table_PI[[#This Row],[Input 1]],\"\")","v":""},null,{"$f":"IFERROR(IF(AND(MeasureCalc(Table_PI[[#This Row],[Hide:\nFormula Name]],Table_SummaryPI[[#This Row],[Quantity]],Table_PI[[#This Row],[List 1]],Table_PI[[#This Row],[List 2]],Table_PI[[#This Row],[List 3]],Table_PI[[#This Row],[Size]],Table_PI[[#This Row],[Input 1]],Table_PI[[#This Row],[Input 2]],Table_PI[[#This Row],[Input 3]],Table_PI[[#This Row],[Input 4]],'Customer Information'!$AR$12,101,ROW())<>0,MeasureCalc(Table_PI[[#This Row],[Hide:\nFormula Name]],Table_SummaryPI[[#This Row],[Quantity]],Table_PI[[#This Row],[List 1]],Table_PI[[#This Row],[List 2]],Table_PI[[#This Row],[List 3]],Table_PI[[#This Row],[Size]],Table_PI[[#This Row],[Input 1]],Table_PI[[#This Row],[Input 2]],Table_PI[[#This Row],[Input 3]],Table_PI[[#This Row],[Input 4]],'Customer Information'!$AR$12,101,ROW())<>\"No Rebate\"),MeasureCalc(Table_PI[[#This Row],[Hide:\nFormula Name]],Table_SummaryPI[[#This Row],[Quantity]],Table_PI[[#This Row],[List 1]],Table_PI[[#This Row],[List 2]],Table_PI[[#This Row],[List 3]],Table_PI[[#This Row],[Size]],Table_PI[[#This Row],[Input 1]],Table_PI[[#This Row],[Input 2]],Table_PI[[#This Row],[Input 3]],Table_PI[[#This Row],[Input 4]],'Customer Information'!$AR$12,101,ROW()),\"\"),\"\")","v":""},{"$f":"IF(Table_PI[[#This Row],[Input 2]]<>\"\",Table_PI[[#This Row],[Input 2]],\"\")","v":""},null,{"$f":"IFERROR(IF(AND(MeasureCalc(Table_PI[[#This Row],[Hide:\nFormula Name]],Table_SummaryPI[[#This Row],[Quantity]],Table_PI[[#This Row],[List 1]],Table_PI[[#This Row],[List 2]],Table_PI[[#This Row],[List 3]],Table_PI[[#This Row],[Size]],Table_PI[[#This Row],[Input 1]],Table_PI[[#This Row],[Input 2]],Table_PI[[#This Row],[Input 3]],Table_PI[[#This Row],[Input 4]],'Customer Information'!$AR$12,102,ROW())<>0,MeasureCalc(Table_PI[[#This Row],[Hide:\nFormula Name]],Table_SummaryPI[[#This Row],[Quantity]],Table_PI[[#This Row],[List 1]],Table_PI[[#This Row],[List 2]],Table_PI[[#This Row],[List 3]],Table_PI[[#This Row],[Size]],Table_PI[[#This Row],[Input 1]],Table_PI[[#This Row],[Input 2]],Table_PI[[#This Row],[Input 3]],Table_PI[[#This Row],[Input 4]],'Customer Information'!$AR$12,102,ROW())<>\"No Rebate\"),MeasureCalc(Table_PI[[#This Row],[Hide:\nFormula Name]],Table_SummaryPI[[#This Row],[Quantity]],Table_PI[[#This Row],[List 1]],Table_PI[[#This Row],[List 2]],Table_PI[[#This Row],[List 3]],Table_PI[[#This Row],[Size]],Table_PI[[#This Row],[Input 1]],Table_PI[[#This Row],[Input 2]],Table_PI[[#This Row],[Input 3]],Table_PI[[#This Row],[Input 4]],'Customer Information'!$AR$12,102,ROW()),\"\"),\"\")","v":""},{"$f":"IF(Table_PI[[#This Row],[Input 3]]<>\"\",Table_PI[[#This Row],[Input 3]],\"\")","v":""},null,{"$f":"IFERROR(IF(AND(MeasureCalc(Table_PI[[#This Row],[Hide:\nFormula Name]],Table_SummaryPI[[#This Row],[Quantity]],Table_PI[[#This Row],[List 1]],Table_PI[[#This Row],[List 2]],Table_PI[[#This Row],[List 3]],Table_PI[[#This Row],[Size]],Table_PI[[#This Row],[Input 1]],Table_PI[[#This Row],[Input 2]],Table_PI[[#This Row],[Input 3]],Table_PI[[#This Row],[Input 4]],'Customer Information'!$AR$12,103,ROW())<>0,MeasureCalc(Table_PI[[#This Row],[Hide:\nFormula Name]],Table_SummaryPI[[#This Row],[Quantity]],Table_PI[[#This Row],[List 1]],Table_PI[[#This Row],[List 2]],Table_PI[[#This Row],[List 3]],Table_PI[[#This Row],[Size]],Table_PI[[#This Row],[Input 1]],Table_PI[[#This Row],[Input 2]],Table_PI[[#This Row],[Input 3]],Table_PI[[#This Row],[Input 4]],'Customer Information'!$AR$12,103,ROW())<>\"No Rebate\"),MeasureCalc(Table_PI[[#This Row],[Hide:\nFormula Name]],Table_SummaryPI[[#This Row],[Quantity]],Table_PI[[#This Row],[List 1]],Table_PI[[#This Row],[List 2]],Table_PI[[#This Row],[List 3]],Table_PI[[#This Row],[Size]],Table_PI[[#This Row],[Input 1]],Table_PI[[#This Row],[Input 2]],Table_PI[[#This Row],[Input 3]],Table_PI[[#This Row],[Input 4]],'Customer Information'!$AR$12,103,ROW()),\"\"),\"\")","v":""},{"$f":"IF(Table_PI[[#This Row],[Input 4]]<>\"\",Table_PI[[#This Row],[Input 4]],\"\")","v":""},{"$f":"IF(Table_PI[[#This Row],[Quantity]]=\"\",\"\",Table_PI[[#This Row],[Quantity]])","v":""},{"$f":"IF(Table_PI[[#This Row],[Notes]]=\"\",\"\",Table_PI[[#This Row],[Notes]])","v":""},{"$f":"IF(OR(Table_PI[[#This Row],[Hide:\nBaseline kWh]]=\"\",Table_PI[[#This Row],[Hide:\nBaseline kWh]]=0),\"\",Table_PI[[#This Row],[Hide:\nBaseline kWh]])","v":""},{"$f":"IF(OR(Table_PI[[#This Row],[Hide:\nBaseline kW]]=\"\",Table_PI[[#This Row],[Hide:\nBaseline kW]]=0),\"\",Table_PI[[#This Row],[Hide:\nBaseline kW]])","v":""},{"$f":"IF(OR(Table_PI[[#This Row],[Hide:\nProposed kWh]]=\"\",Table_PI[[#This Row],[Hide:\nProposed kWh]]=0),\"\",Table_PI[[#This Row],[Hide:\nProposed kWh]])","v":""},{"$f":"IF(OR(Table_PI[[#This Row],[Hide:\nProposed kW]]=\"\",Table_PI[[#This Row],[Hide:\nProposed kW]]=0),\"\",Table_PI[[#This Row],[Hide:\nProposed kW]])","v":""},{"$f":"IF(OR(Table_PI[[#This Row],[Rebate]]=\"\",Table_PI[[#This Row],[Rebate]]=0),\"\",Table_PI[[#This Row],[Rebate]])","v":""},{"$f":"IF(OR(Table_PI[[#This Row],[Hide:\nIncremental Cost]]=\"\",Table_PI[[#This Row],[Hide:\nIncremental Cost]]=0),\"\",Table_PI[[#This Row],[Hide:\nIncremental Cost]])","v":""},{"$f":"IFERROR(IF(Table_SummaryPI[[#This Row],[kWhSavings]]=\"\",\"\",ROUND(Table_SummaryPI[[#This Row],[kWhSavings]]/$AG$401*'Customer Information'!$BC$17,2)),0)","v":""},{"$f":"IF(OR(Table_PI[[#This Row],[Annual kWh]]=\"\",Table_PI[[#This Row],[Annual kWh]]=0),\"\",Table_PI[[#This Row],[Annual kWh]])","v":""},{"$f":"IF(OR(Table_PI[[#This Row],[Peak kW]]=\"\",Table_PI[[#This Row],[Peak kW]]=0),\"\",Table_PI[[#This Row],[Peak kW]])","v":""},{"$f":"IFERROR(IF(Table_SummaryPI[[#This Row],[kWhSavings]]=\"\",\"\",$AU$9*Table_SummaryPI[[#This Row],[kWhSavings]]),0)","v":""},{"$f":"IFERROR(IF(Table_SummaryPI[[#This Row],[kWhSavings]]=\"\",\"\",$AU$14*Table_SummaryPI[[#This Row],[kWhSavings]]),0)","v":""},{"$f":"IFERROR(IF(Table_SummaryPI[[#This Row],[kWhSavings]]=\"\",\"\",$AU$18*Table_SummaryPI[[#This Row],[kWhSavings]]),0)","v":""},{"$f":"IFERROR(IF(Table_SummaryPI[[#This Row],[kWhSavings]]=\"\",\"\",$AU$22*Table_SummaryPI[[#This Row],[kWhSavings]]),0)","v":""},{"$f":"IFERROR(IF(MeasureCalc(Table_PI[[#This Row],[Hide:\nFormula Name]],Table_SummaryPI[[#This Row],[Quantity]],Table_PI[[#This Row],[List 1]],Table_PI[[#This Row],[List 2]],Table_PI[[#This Row],[List 3]],Table_PI[[#This Row],[Size]],Table_PI[[#This Row],[Input 1]],Table_PI[[#This Row],[Input 2]],Table_PI[[#This Row],[Input 3]],Table_PI[[#This Row],[Input 4]],'Customer Information'!$AR$12,200,ROW())<>\"No Rebate\",MeasureCalc(Table_PI[[#This Row],[Hide:\nFormula Name]],Table_SummaryPI[[#This Row],[Quantity]],Table_PI[[#This Row],[List 1]],Table_PI[[#This Row],[List 2]],Table_PI[[#This Row],[List 3]],Table_PI[[#This Row],[Size]],Table_PI[[#This Row],[Input 1]],Table_PI[[#This Row],[Input 2]],Table_PI[[#This Row],[Input 3]],Table_PI[[#This Row],[Input 4]],'Customer Information'!$AR$12,200,ROW()),\"\"),\"\")","v":""},{"$f":"IFERROR(IF(MeasureCalc(Table_PI[[#This Row],[Hide:\nFormula Name]],Table_SummaryPI[[#This Row],[Quantity]],Table_PI[[#This Row],[List 1]],Table_PI[[#This Row],[List 2]],Table_PI[[#This Row],[List 3]],Table_PI[[#This Row],[Size]],Table_PI[[#This Row],[Input 1]],Table_PI[[#This Row],[Input 2]],Table_PI[[#This Row],[Input 3]],Table_PI[[#This Row],[Input 4]],'Customer Information'!$AR$12,201,ROW())<>\"No Rebate\",MeasureCalc(Table_PI[[#This Row],[Hide:\nFormula Name]],Table_SummaryPI[[#This Row],[Quantity]],Table_PI[[#This Row],[List 1]],Table_PI[[#This Row],[List 2]],Table_PI[[#This Row],[List 3]],Table_PI[[#This Row],[Size]],Table_PI[[#This Row],[Input 1]],Table_PI[[#This Row],[Input 2]],Table_PI[[#This Row],[Input 3]],Table_PI[[#This Row],[Input 4]],'Customer Information'!$AR$12,201,ROW()),\"\"),\"\")","v":""},null,null,{"$f":"1/2204.6","v":4.5359702440351992E-4},"Tons / lbs."]
[{"$f":"Table_PI[[#This Row],[Line No.]]","v":""},{"$f":"IF(Table_SummaryPI[[#This Row],[MeassureCategory]]<>\"\",CONCATENATE(Table_SummaryPI[[#This Row],[MeassureCategory]],  \" - \", Table_SummaryPI[[#This Row],[ProposedMeasureCategory]],  \" - \", TEXT(Table_SummaryPI[[#This Row],[Size]],\"#,##0.00\"),\" \",Table_SummaryPI[[#This Row],[SizeUnit]]),\"\")","v":""},{"$f":"SUBSTITUTE(Table_PI[[#This Row],[Measure]],\"     \",\"\",1)","v":""},{"$f":"IF(Table_PI[[#This Row],[List 1]]<>\"\",Table_PI[[#This Row],[List 1]],\"\")","v":""},{"$f":"IF(Table_PI[[#This Row],[List 2]]<>\"\",Table_PI[[#This Row],[List 2]],\"\")","v":""},{"$f":"IF(Table_PI[[#This Row],[List 3]]<>\"\",Table_PI[[#This Row],[List 3]],\"\")","v":""},{"$f":"IF(Table_PI[[#This Row],[Manufacturer]]=\"\",\"\",Table_PI[[#This Row],[Manufacturer]])","v":""},{"$f":"IF(Table_PI[[#This Row],[Model Number]]=\"\",\"\",Table_PI[[#This Row],[Model Number]])","v":""},{"$f":"IF(Table_PI[[#This Row],[Serial Number(s)]]=\"\",\"\",Table_PI[[#This Row],[Serial Number(s)]])","v":""},null,{"$f":"IF(Table_PI[[#This Row],[Size]]=\"\",\"\",Table_PI[[#This Row],[Size]])","v":""},null,{"$f":"IFERROR(IF(AND(MeasureCalc(Table_PI[[#This Row],[Hide:\nFormula Name]],Table_SummaryPI[[#This Row],[Quantity]],Table_PI[[#This Row],[List 1]],Table_PI[[#This Row],[List 2]],Table_PI[[#This Row],[List 3]],Table_PI[[#This Row],[Size]],Table_PI[[#This Row],[Input 1]],Table_PI[[#This Row],[Input 2]],Table_PI[[#This Row],[Input 3]],Table_PI[[#This Row],[Input 4]],'Customer Information'!$AR$12,100,ROW())<>0,MeasureCalc(Table_PI[[#This Row],[Hide:\nFormula Name]],Table_SummaryPI[[#This Row],[Quantity]],Table_PI[[#This Row],[List 1]],Table_PI[[#This Row],[List 2]],Table_PI[[#This Row],[List 3]],Table_PI[[#This Row],[Size]],Table_PI[[#This Row],[Input 1]],Table_PI[[#This Row],[Input 2]],Table_PI[[#This Row],[Input 3]],Table_PI[[#This Row],[Input 4]],'Customer Information'!$AR$12,100,ROW())<>\"No Rebate\"),MeasureCalc(Table_PI[[#This Row],[Hide:\nFormula Name]],Table_SummaryPI[[#This Row],[Quantity]],Table_PI[[#This Row],[List 1]],Table_PI[[#This Row],[List 2]],Table_PI[[#This Row],[List 3]],Table_PI[[#This Row],[Size]],Table_PI[[#This Row],[Input 1]],Table_PI[[#This Row],[Input 2]],Table_PI[[#This Row],[Input 3]],Table_PI[[#This Row],[Input 4]],'Customer Information'!$AR$12,100,ROW()),\"\"),\"\")","v":""},{"$f":"IF(Table_PI[[#This Row],[Input 1]]<>\"\",Table_PI[[#This Row],[Input 1]],\"\")","v":""},null,{"$f":"IFERROR(IF(AND(MeasureCalc(Table_PI[[#This Row],[Hide:\nFormula Name]],Table_SummaryPI[[#This Row],[Quantity]],Table_PI[[#This Row],[List 1]],Table_PI[[#This Row],[List 2]],Table_PI[[#This Row],[List 3]],Table_PI[[#This Row],[Size]],Table_PI[[#This Row],[Input 1]],Table_PI[[#This Row],[Input 2]],Table_PI[[#This Row],[Input 3]],Table_PI[[#This Row],[Input 4]],'Customer Information'!$AR$12,101,ROW())<>0,MeasureCalc(Table_PI[[#This Row],[Hide:\nFormula Name]],Table_SummaryPI[[#This Row],[Quantity]],Table_PI[[#This Row],[List 1]],Table_PI[[#This Row],[List 2]],Table_PI[[#This Row],[List 3]],Table_PI[[#This Row],[Size]],Table_PI[[#This Row],[Input 1]],Table_PI[[#This Row],[Input 2]],Table_PI[[#This Row],[Input 3]],Table_PI[[#This Row],[Input 4]],'Customer Information'!$AR$12,101,ROW())<>\"No Rebate\"),MeasureCalc(Table_PI[[#This Row],[Hide:\nFormula Name]],Table_SummaryPI[[#This Row],[Quantity]],Table_PI[[#This Row],[List 1]],Table_PI[[#This Row],[List 2]],Table_PI[[#This Row],[List 3]],Table_PI[[#This Row],[Size]],Table_PI[[#This Row],[Input 1]],Table_PI[[#This Row],[Input 2]],Table_PI[[#This Row],[Input 3]],Table_PI[[#This Row],[Input 4]],'Customer Information'!$AR$12,101,ROW()),\"\"),\"\")","v":""},{"$f":"IF(Table_PI[[#This Row],[Input 2]]<>\"\",Table_PI[[#This Row],[Input 2]],\"\")","v":""},null,{"$f":"IFERROR(IF(AND(MeasureCalc(Table_PI[[#This Row],[Hide:\nFormula Name]],Table_SummaryPI[[#This Row],[Quantity]],Table_PI[[#This Row],[List 1]],Table_PI[[#This Row],[List 2]],Table_PI[[#This Row],[List 3]],Table_PI[[#This Row],[Size]],Table_PI[[#This Row],[Input 1]],Table_PI[[#This Row],[Input 2]],Table_PI[[#This Row],[Input 3]],Table_PI[[#This Row],[Input 4]],'Customer Information'!$AR$12,102,ROW())<>0,MeasureCalc(Table_PI[[#This Row],[Hide:\nFormula Name]],Table_SummaryPI[[#This Row],[Quantity]],Table_PI[[#This Row],[List 1]],Table_PI[[#This Row],[List 2]],Table_PI[[#This Row],[List 3]],Table_PI[[#This Row],[Size]],Table_PI[[#This Row],[Input 1]],Table_PI[[#This Row],[Input 2]],Table_PI[[#This Row],[Input 3]],Table_PI[[#This Row],[Input 4]],'Customer Information'!$AR$12,102,ROW())<>\"No Rebate\"),MeasureCalc(Table_PI[[#This Row],[Hide:\nFormula Name]],Table_SummaryPI[[#This Row],[Quantity]],Table_PI[[#This Row],[List 1]],Table_PI[[#This Row],[List 2]],Table_PI[[#This Row],[List 3]],Table_PI[[#This Row],[Size]],Table_PI[[#This Row],[Input 1]],Table_PI[[#This Row],[Input 2]],Table_PI[[#This Row],[Input 3]],Table_PI[[#This Row],[Input 4]],'Customer Information'!$AR$12,102,ROW()),\"\"),\"\")","v":""},{"$f":"IF(Table_PI[[#This Row],[Input 3]]<>\"\",Table_PI[[#This Row],[Input 3]],\"\")","v":""},null,{"$f":"IFERROR(IF(AND(MeasureCalc(Table_PI[[#This Row],[Hide:\nFormula Name]],Table_SummaryPI[[#This Row],[Quantity]],Table_PI[[#This Row],[List 1]],Table_PI[[#This Row],[List 2]],Table_PI[[#This Row],[List 3]],Table_PI[[#This Row],[Size]],Table_PI[[#This Row],[Input 1]],Table_PI[[#This Row],[Input 2]],Table_PI[[#This Row],[Input 3]],Table_PI[[#This Row],[Input 4]],'Customer Information'!$AR$12,103,ROW())<>0,MeasureCalc(Table_PI[[#This Row],[Hide:\nFormula Name]],Table_SummaryPI[[#This Row],[Quantity]],Table_PI[[#This Row],[List 1]],Table_PI[[#This Row],[List 2]],Table_PI[[#This Row],[List 3]],Table_PI[[#This Row],[Size]],Table_PI[[#This Row],[Input 1]],Table_PI[[#This Row],[Input 2]],Table_PI[[#This Row],[Input 3]],Table_PI[[#This Row],[Input 4]],'Customer Information'!$AR$12,103,ROW())<>\"No Rebate\"),MeasureCalc(Table_PI[[#This Row],[Hide:\nFormula Name]],Table_SummaryPI[[#This Row],[Quantity]],Table_PI[[#This Row],[List 1]],Table_PI[[#This Row],[List 2]],Table_PI[[#This Row],[List 3]],Table_PI[[#This Row],[Size]],Table_PI[[#This Row],[Input 1]],Table_PI[[#This Row],[Input 2]],Table_PI[[#This Row],[Input 3]],Table_PI[[#This Row],[Input 4]],'Customer Information'!$AR$12,103,ROW()),\"\"),\"\")","v":""},{"$f":"IF(Table_PI[[#This Row],[Input 4]]<>\"\",Table_PI[[#This Row],[Input 4]],\"\")","v":""},{"$f":"IF(Table_PI[[#This Row],[Quantity]]=\"\",\"\",Table_PI[[#This Row],[Quantity]])","v":""},{"$f":"IF(Table_PI[[#This Row],[Notes]]=\"\",\"\",Table_PI[[#This Row],[Notes]])","v":""},{"$f":"IF(OR(Table_PI[[#This Row],[Hide:\nBaseline kWh]]=\"\",Table_PI[[#This Row],[Hide:\nBaseline kWh]]=0),\"\",Table_PI[[#This Row],[Hide:\nBaseline kWh]])","v":""},{"$f":"IF(OR(Table_PI[[#This Row],[Hide:\nBaseline kW]]=\"\",Table_PI[[#This Row],[Hide:\nBaseline kW]]=0),\"\",Table_PI[[#This Row],[Hide:\nBaseline kW]])","v":""},{"$f":"IF(OR(Table_PI[[#This Row],[Hide:\nProposed kWh]]=\"\",Table_PI[[#This Row],[Hide:\nProposed kWh]]=0),\"\",Table_PI[[#This Row],[Hide:\nProposed kWh]])","v":""},{"$f":"IF(OR(Table_PI[[#This Row],[Hide:\nProposed kW]]=\"\",Table_PI[[#This Row],[Hide:\nProposed kW]]=0),\"\",Table_PI[[#This Row],[Hide:\nProposed kW]])","v":""},{"$f":"IF(OR(Table_PI[[#This Row],[Rebate]]=\"\",Table_PI[[#This Row],[Rebate]]=0),\"\",Table_PI[[#This Row],[Rebate]])","v":""},{"$f":"IF(OR(Table_PI[[#This Row],[Hide:\nIncremental Cost]]=\"\",Table_PI[[#This Row],[Hide:\nIncremental Cost]]=0),\"\",Table_PI[[#This Row],[Hide:\nIncremental Cost]])","v":""},{"$f":"IFERROR(IF(Table_SummaryPI[[#This Row],[kWhSavings]]=\"\",\"\",ROUND(Table_SummaryPI[[#This Row],[kWhSavings]]/$AG$401*'Customer Information'!$BC$17,2)),0)","v":""},{"$f":"IF(OR(Table_PI[[#This Row],[Annual kWh]]=\"\",Table_PI[[#This Row],[Annual kWh]]=0),\"\",Table_PI[[#This Row],[Annual kWh]])","v":""},{"$f":"IF(OR(Table_PI[[#This Row],[Peak kW]]=\"\",Table_PI[[#This Row],[Peak kW]]=0),\"\",Table_PI[[#This Row],[Peak kW]])","v":""},{"$f":"IFERROR(IF(Table_SummaryPI[[#This Row],[kWhSavings]]=\"\",\"\",$AU$9*Table_SummaryPI[[#This Row],[kWhSavings]]),0)","v":""},{"$f":"IFERROR(IF(Table_SummaryPI[[#This Row],[kWhSavings]]=\"\",\"\",$AU$14*Table_SummaryPI[[#This Row],[kWhSavings]]),0)","v":""},{"$f":"IFERROR(IF(Table_SummaryPI[[#This Row],[kWhSavings]]=\"\",\"\",$AU$18*Table_SummaryPI[[#This Row],[kWhSavings]]),0)","v":""},{"$f":"IFERROR(IF(Table_SummaryPI[[#This Row],[kWhSavings]]=\"\",\"\",$AU$22*Table_SummaryPI[[#This Row],[kWhSavings]]),0)","v":""},{"$f":"IFERROR(IF(MeasureCalc(Table_PI[[#This Row],[Hide:\nFormula Name]],Table_SummaryPI[[#This Row],[Quantity]],Table_PI[[#This Row],[List 1]],Table_PI[[#This Row],[List 2]],Table_PI[[#This Row],[List 3]],Table_PI[[#This Row],[Size]],Table_PI[[#This Row],[Input 1]],Table_PI[[#This Row],[Input 2]],Table_PI[[#This Row],[Input 3]],Table_PI[[#This Row],[Input 4]],'Customer Information'!$AR$12,200,ROW())<>\"No Rebate\",MeasureCalc(Table_PI[[#This Row],[Hide:\nFormula Name]],Table_SummaryPI[[#This Row],[Quantity]],Table_PI[[#This Row],[List 1]],Table_PI[[#This Row],[List 2]],Table_PI[[#This Row],[List 3]],Table_PI[[#This Row],[Size]],Table_PI[[#This Row],[Input 1]],Table_PI[[#This Row],[Input 2]],Table_PI[[#This Row],[Input 3]],Table_PI[[#This Row],[Input 4]],'Customer Information'!$AR$12,200,ROW()),\"\"),\"\")","v":""},{"$f":"IFERROR(IF(MeasureCalc(Table_PI[[#This Row],[Hide:\nFormula Name]],Table_SummaryPI[[#This Row],[Quantity]],Table_PI[[#This Row],[List 1]],Table_PI[[#This Row],[List 2]],Table_PI[[#This Row],[List 3]],Table_PI[[#This Row],[Size]],Table_PI[[#This Row],[Input 1]],Table_PI[[#This Row],[Input 2]],Table_PI[[#This Row],[Input 3]],Table_PI[[#This Row],[Input 4]],'Customer Information'!$AR$12,201,ROW())<>\"No Rebate\",MeasureCalc(Table_PI[[#This Row],[Hide:\nFormula Name]],Table_SummaryPI[[#This Row],[Quantity]],Table_PI[[#This Row],[List 1]],Table_PI[[#This Row],[List 2]],Table_PI[[#This Row],[List 3]],Table_PI[[#This Row],[Size]],Table_PI[[#This Row],[Input 1]],Table_PI[[#This Row],[Input 2]],Table_PI[[#This Row],[Input 3]],Table_PI[[#This Row],[Input 4]],'Customer Information'!$AR$12,201,ROW()),\"\"),\"\")","v":""}]
[{"$f":"Table_PI[[#This Row],[Line No.]]","v":""},{"$f":"IF(Table_SummaryPI[[#This Row],[MeassureCategory]]<>\"\",CONCATENATE(Table_SummaryPI[[#This Row],[MeassureCategory]],  \" - \", Table_SummaryPI[[#This Row],[ProposedMeasureCategory]],  \" - \", TEXT(Table_SummaryPI[[#This Row],[Size]],\"#,##0.00\"),\" \",Table_SummaryPI[[#This Row],[SizeUnit]]),\"\")","v":""},{"$f":"SUBSTITUTE(Table_PI[[#This Row],[Measure]],\"     \",\"\",1)","v":""},{"$f":"IF(Table_PI[[#This Row],[List 1]]<>\"\",Table_PI[[#This Row],[List 1]],\"\")","v":""},{"$f":"IF(Table_PI[[#This Row],[List 2]]<>\"\",Table_PI[[#This Row],[List 2]],\"\")","v":""},{"$f":"IF(Table_PI[[#This Row],[List 3]]<>\"\",Table_PI[[#This Row],[List 3]],\"\")","v":""},{"$f":"IF(Table_PI[[#This Row],[Manufacturer]]=\"\",\"\",Table_PI[[#This Row],[Manufacturer]])","v":""},{"$f":"IF(Table_PI[[#This Row],[Model Number]]=\"\",\"\",Table_PI[[#This Row],[Model Number]])","v":""},{"$f":"IF(Table_PI[[#This Row],[Serial Number(s)]]=\"\",\"\",Table_PI[[#This Row],[Serial Number(s)]])","v":""},null,{"$f":"IF(Table_PI[[#This Row],[Size]]=\"\",\"\",Table_PI[[#This Row],[Size]])","v":""},null,{"$f":"IFERROR(IF(AND(MeasureCalc(Table_PI[[#This Row],[Hide:\nFormula Name]],Table_SummaryPI[[#This Row],[Quantity]],Table_PI[[#This Row],[List 1]],Table_PI[[#This Row],[List 2]],Table_PI[[#This Row],[List 3]],Table_PI[[#This Row],[Size]],Table_PI[[#This Row],[Input 1]],Table_PI[[#This Row],[Input 2]],Table_PI[[#This Row],[Input 3]],Table_PI[[#This Row],[Input 4]],'Customer Information'!$AR$12,100,ROW())<>0,MeasureCalc(Table_PI[[#This Row],[Hide:\nFormula Name]],Table_SummaryPI[[#This Row],[Quantity]],Table_PI[[#This Row],[List 1]],Table_PI[[#This Row],[List 2]],Table_PI[[#This Row],[List 3]],Table_PI[[#This Row],[Size]],Table_PI[[#This Row],[Input 1]],Table_PI[[#This Row],[Input 2]],Table_PI[[#This Row],[Input 3]],Table_PI[[#This Row],[Input 4]],'Customer Information'!$AR$12,100,ROW())<>\"No Rebate\"),MeasureCalc(Table_PI[[#This Row],[Hide:\nFormula Name]],Table_SummaryPI[[#This Row],[Quantity]],Table_PI[[#This Row],[List 1]],Table_PI[[#This Row],[List 2]],Table_PI[[#This Row],[List 3]],Table_PI[[#This Row],[Size]],Table_PI[[#This Row],[Input 1]],Table_PI[[#This Row],[Input 2]],Table_PI[[#This Row],[Input 3]],Table_PI[[#This Row],[Input 4]],'Customer Information'!$AR$12,100,ROW()),\"\"),\"\")","v":""},{"$f":"IF(Table_PI[[#This Row],[Input 1]]<>\"\",Table_PI[[#This Row],[Input 1]],\"\")","v":""},null,{"$f":"IFERROR(IF(AND(MeasureCalc(Table_PI[[#This Row],[Hide:\nFormula Name]],Table_SummaryPI[[#This Row],[Quantity]],Table_PI[[#This Row],[List 1]],Table_PI[[#This Row],[List 2]],Table_PI[[#This Row],[List 3]],Table_PI[[#This Row],[Size]],Table_PI[[#This Row],[Input 1]],Table_PI[[#This Row],[Input 2]],Table_PI[[#This Row],[Input 3]],Table_PI[[#This Row],[Input 4]],'Customer Information'!$AR$12,101,ROW())<>0,MeasureCalc(Table_PI[[#This Row],[Hide:\nFormula Name]],Table_SummaryPI[[#This Row],[Quantity]],Table_PI[[#This Row],[List 1]],Table_PI[[#This Row],[List 2]],Table_PI[[#This Row],[List 3]],Table_PI[[#This Row],[Size]],Table_PI[[#This Row],[Input 1]],Table_PI[[#This Row],[Input 2]],Table_PI[[#This Row],[Input 3]],Table_PI[[#This Row],[Input 4]],'Customer Information'!$AR$12,101,ROW())<>\"No Rebate\"),MeasureCalc(Table_PI[[#This Row],[Hide:\nFormula Name]],Table_SummaryPI[[#This Row],[Quantity]],Table_PI[[#This Row],[List 1]],Table_PI[[#This Row],[List 2]],Table_PI[[#This Row],[List 3]],Table_PI[[#This Row],[Size]],Table_PI[[#This Row],[Input 1]],Table_PI[[#This Row],[Input 2]],Table_PI[[#This Row],[Input 3]],Table_PI[[#This Row],[Input 4]],'Customer Information'!$AR$12,101,ROW()),\"\"),\"\")","v":""},{"$f":"IF(Table_PI[[#This Row],[Input 2]]<>\"\",Table_PI[[#This Row],[Input 2]],\"\")","v":""},null,{"$f":"IFERROR(IF(AND(MeasureCalc(Table_PI[[#This Row],[Hide:\nFormula Name]],Table_SummaryPI[[#This Row],[Quantity]],Table_PI[[#This Row],[List 1]],Table_PI[[#This Row],[List 2]],Table_PI[[#This Row],[List 3]],Table_PI[[#This Row],[Size]],Table_PI[[#This Row],[Input 1]],Table_PI[[#This Row],[Input 2]],Table_PI[[#This Row],[Input 3]],Table_PI[[#This Row],[Input 4]],'Customer Information'!$AR$12,102,ROW())<>0,MeasureCalc(Table_PI[[#This Row],[Hide:\nFormula Name]],Table_SummaryPI[[#This Row],[Quantity]],Table_PI[[#This Row],[List 1]],Table_PI[[#This Row],[List 2]],Table_PI[[#This Row],[List 3]],Table_PI[[#This Row],[Size]],Table_PI[[#This Row],[Input 1]],Table_PI[[#This Row],[Input 2]],Table_PI[[#This Row],[Input 3]],Table_PI[[#This Row],[Input 4]],'Customer Information'!$AR$12,102,ROW())<>\"No Rebate\"),MeasureCalc(Table_PI[[#This Row],[Hide:\nFormula Name]],Table_SummaryPI[[#This Row],[Quantity]],Table_PI[[#This Row],[List 1]],Table_PI[[#This Row],[List 2]],Table_PI[[#This Row],[List 3]],Table_PI[[#This Row],[Size]],Table_PI[[#This Row],[Input 1]],Table_PI[[#This Row],[Input 2]],Table_PI[[#This Row],[Input 3]],Table_PI[[#This Row],[Input 4]],'Customer Information'!$AR$12,102,ROW()),\"\"),\"\")","v":""},{"$f":"IF(Table_PI[[#This Row],[Input 3]]<>\"\",Table_PI[[#This Row],[Input 3]],\"\")","v":""},null,{"$f":"IFERROR(IF(AND(MeasureCalc(Table_PI[[#This Row],[Hide:\nFormula Name]],Table_SummaryPI[[#This Row],[Quantity]],Table_PI[[#This Row],[List 1]],Table_PI[[#This Row],[List 2]],Table_PI[[#This Row],[List 3]],Table_PI[[#This Row],[Size]],Table_PI[[#This Row],[Input 1]],Table_PI[[#This Row],[Input 2]],Table_PI[[#This Row],[Input 3]],Table_PI[[#This Row],[Input 4]],'Customer Information'!$AR$12,103,ROW())<>0,MeasureCalc(Table_PI[[#This Row],[Hide:\nFormula Name]],Table_SummaryPI[[#This Row],[Quantity]],Table_PI[[#This Row],[List 1]],Table_PI[[#This Row],[List 2]],Table_PI[[#This Row],[List 3]],Table_PI[[#This Row],[Size]],Table_PI[[#This Row],[Input 1]],Table_PI[[#This Row],[Input 2]],Table_PI[[#This Row],[Input 3]],Table_PI[[#This Row],[Input 4]],'Customer Information'!$AR$12,103,ROW())<>\"No Rebate\"),MeasureCalc(Table_PI[[#This Row],[Hide:\nFormula Name]],Table_SummaryPI[[#This Row],[Quantity]],Table_PI[[#This Row],[List 1]],Table_PI[[#This Row],[List 2]],Table_PI[[#This Row],[List 3]],Table_PI[[#This Row],[Size]],Table_PI[[#This Row],[Input 1]],Table_PI[[#This Row],[Input 2]],Table_PI[[#This Row],[Input 3]],Table_PI[[#This Row],[Input 4]],'Customer Information'!$AR$12,103,ROW()),\"\"),\"\")","v":""},{"$f":"IF(Table_PI[[#This Row],[Input 4]]<>\"\",Table_PI[[#This Row],[Input 4]],\"\")","v":""},{"$f":"IF(Table_PI[[#This Row],[Quantity]]=\"\",\"\",Table_PI[[#This Row],[Quantity]])","v":""},{"$f":"IF(Table_PI[[#This Row],[Notes]]=\"\",\"\",Table_PI[[#This Row],[Notes]])","v":""},{"$f":"IF(OR(Table_PI[[#This Row],[Hide:\nBaseline kWh]]=\"\",Table_PI[[#This Row],[Hide:\nBaseline kWh]]=0),\"\",Table_PI[[#This Row],[Hide:\nBaseline kWh]])","v":""},{"$f":"IF(OR(Table_PI[[#This Row],[Hide:\nBaseline kW]]=\"\",Table_PI[[#This Row],[Hide:\nBaseline kW]]=0),\"\",Table_PI[[#This Row],[Hide:\nBaseline kW]])","v":""},{"$f":"IF(OR(Table_PI[[#This Row],[Hide:\nProposed kWh]]=\"\",Table_PI[[#This Row],[Hide:\nProposed kWh]]=0),\"\",Table_PI[[#This Row],[Hide:\nProposed kWh]])","v":""},{"$f":"IF(OR(Table_PI[[#This Row],[Hide:\nProposed kW]]=\"\",Table_PI[[#This Row],[Hide:\nProposed kW]]=0),\"\",Table_PI[[#This Row],[Hide:\nProposed kW]])","v":""},{"$f":"IF(OR(Table_PI[[#This Row],[Rebate]]=\"\",Table_PI[[#This Row],[Rebate]]=0),\"\",Table_PI[[#This Row],[Rebate]])","v":""},{"$f":"IF(OR(Table_PI[[#This Row],[Hide:\nIncremental Cost]]=\"\",Table_PI[[#This Row],[Hide:\nIncremental Cost]]=0),\"\",Table_PI[[#This Row],[Hide:\nIncremental Cost]])","v":""},{"$f":"IFERROR(IF(Table_SummaryPI[[#This Row],[kWhSavings]]=\"\",\"\",ROUND(Table_SummaryPI[[#This Row],[kWhSavings]]/$AG$401*'Customer Information'!$BC$17,2)),0)","v":""},{"$f":"IF(OR(Table_PI[[#This Row],[Annual kWh]]=\"\",Table_PI[[#This Row],[Annual kWh]]=0),\"\",Table_PI[[#This Row],[Annual kWh]])","v":""},{"$f":"IF(OR(Table_PI[[#This Row],[Peak kW]]=\"\",Table_PI[[#This Row],[Peak kW]]=0),\"\",Table_PI[[#This Row],[Peak kW]])","v":""},{"$f":"IFERROR(IF(Table_SummaryPI[[#This Row],[kWhSavings]]=\"\",\"\",$AU$9*Table_SummaryPI[[#This Row],[kWhSavings]]),0)","v":""},{"$f":"IFERROR(IF(Table_SummaryPI[[#This Row],[kWhSavings]]=\"\",\"\",$AU$14*Table_SummaryPI[[#This Row],[kWhSavings]]),0)","v":""},{"$f":"IFERROR(IF(Table_SummaryPI[[#This Row],[kWhSavings]]=\"\",\"\",$AU$18*Table_SummaryPI[[#This Row],[kWhSavings]]),0)","v":""},{"$f":"IFERROR(IF(Table_SummaryPI[[#This Row],[kWhSavings]]=\"\",\"\",$AU$22*Table_SummaryPI[[#This Row],[kWhSavings]]),0)","v":""},{"$f":"IFERROR(IF(MeasureCalc(Table_PI[[#This Row],[Hide:\nFormula Name]],Table_SummaryPI[[#This Row],[Quantity]],Table_PI[[#This Row],[List 1]],Table_PI[[#This Row],[List 2]],Table_PI[[#This Row],[List 3]],Table_PI[[#This Row],[Size]],Table_PI[[#This Row],[Input 1]],Table_PI[[#This Row],[Input 2]],Table_PI[[#This Row],[Input 3]],Table_PI[[#This Row],[Input 4]],'Customer Information'!$AR$12,200,ROW())<>\"No Rebate\",MeasureCalc(Table_PI[[#This Row],[Hide:\nFormula Name]],Table_SummaryPI[[#This Row],[Quantity]],Table_PI[[#This Row],[List 1]],Table_PI[[#This Row],[List 2]],Table_PI[[#This Row],[List 3]],Table_PI[[#This Row],[Size]],Table_PI[[#This Row],[Input 1]],Table_PI[[#This Row],[Input 2]],Table_PI[[#This Row],[Input 3]],Table_PI[[#This Row],[Input 4]],'Customer Information'!$AR$12,200,ROW()),\"\"),\"\")","v":""},{"$f":"IFERROR(IF(MeasureCalc(Table_PI[[#This Row],[Hide:\nFormula Name]],Table_SummaryPI[[#This Row],[Quantity]],Table_PI[[#This Row],[List 1]],Table_PI[[#This Row],[List 2]],Table_PI[[#This Row],[List 3]],Table_PI[[#This Row],[Size]],Table_PI[[#This Row],[Input 1]],Table_PI[[#This Row],[Input 2]],Table_PI[[#This Row],[Input 3]],Table_PI[[#This Row],[Input 4]],'Customer Information'!$AR$12,201,ROW())<>\"No Rebate\",MeasureCalc(Table_PI[[#This Row],[Hide:\nFormula Name]],Table_SummaryPI[[#This Row],[Quantity]],Table_PI[[#This Row],[List 1]],Table_PI[[#This Row],[List 2]],Table_PI[[#This Row],[List 3]],Table_PI[[#This Row],[Size]],Table_PI[[#This Row],[Input 1]],Table_PI[[#This Row],[Input 2]],Table_PI[[#This Row],[Input 3]],Table_PI[[#This Row],[Input 4]],'Customer Information'!$AR$12,201,ROW()),\"\"),\"\")","v":""},null,null,8887,"grams CO2 / gal Gasoline",null,null,{"$f":"AQ12/1000000","v":8.8870000000000008E-3},"Tons CO2 / gal Gasoline"]
[{"$f":"Table_PI[[#This Row],[Line No.]]","v":""},{"$f":"IF(Table_SummaryPI[[#This Row],[MeassureCategory]]<>\"\",CONCATENATE(Table_SummaryPI[[#This Row],[MeassureCategory]],  \" - \", Table_SummaryPI[[#This Row],[ProposedMeasureCategory]],  \" - \", TEXT(Table_SummaryPI[[#This Row],[Size]],\"#,##0.00\"),\" \",Table_SummaryPI[[#This Row],[SizeUnit]]),\"\")","v":""},{"$f":"SUBSTITUTE(Table_PI[[#This Row],[Measure]],\"     \",\"\",1)","v":""},{"$f":"IF(Table_PI[[#This Row],[List 1]]<>\"\",Table_PI[[#This Row],[List 1]],\"\")","v":""},{"$f":"IF(Table_PI[[#This Row],[List 2]]<>\"\",Table_PI[[#This Row],[List 2]],\"\")","v":""},{"$f":"IF(Table_PI[[#This Row],[List 3]]<>\"\",Table_PI[[#This Row],[List 3]],\"\")","v":""},{"$f":"IF(Table_PI[[#This Row],[Manufacturer]]=\"\",\"\",Table_PI[[#This Row],[Manufacturer]])","v":""},{"$f":"IF(Table_PI[[#This Row],[Model Number]]=\"\",\"\",Table_PI[[#This Row],[Model Number]])","v":""},{"$f":"IF(Table_PI[[#This Row],[Serial Number(s)]]=\"\",\"\",Table_PI[[#This Row],[Serial Number(s)]])","v":""},null,{"$f":"IF(Table_PI[[#This Row],[Size]]=\"\",\"\",Table_PI[[#This Row],[Size]])","v":""},null,{"$f":"IFERROR(IF(AND(MeasureCalc(Table_PI[[#This Row],[Hide:\nFormula Name]],Table_SummaryPI[[#This Row],[Quantity]],Table_PI[[#This Row],[List 1]],Table_PI[[#This Row],[List 2]],Table_PI[[#This Row],[List 3]],Table_PI[[#This Row],[Size]],Table_PI[[#This Row],[Input 1]],Table_PI[[#This Row],[Input 2]],Table_PI[[#This Row],[Input 3]],Table_PI[[#This Row],[Input 4]],'Customer Information'!$AR$12,100,ROW())<>0,MeasureCalc(Table_PI[[#This Row],[Hide:\nFormula Name]],Table_SummaryPI[[#This Row],[Quantity]],Table_PI[[#This Row],[List 1]],Table_PI[[#This Row],[List 2]],Table_PI[[#This Row],[List 3]],Table_PI[[#This Row],[Size]],Table_PI[[#This Row],[Input 1]],Table_PI[[#This Row],[Input 2]],Table_PI[[#This Row],[Input 3]],Table_PI[[#This Row],[Input 4]],'Customer Information'!$AR$12,100,ROW())<>\"No Rebate\"),MeasureCalc(Table_PI[[#This Row],[Hide:\nFormula Name]],Table_SummaryPI[[#This Row],[Quantity]],Table_PI[[#This Row],[List 1]],Table_PI[[#This Row],[List 2]],Table_PI[[#This Row],[List 3]],Table_PI[[#This Row],[Size]],Table_PI[[#This Row],[Input 1]],Table_PI[[#This Row],[Input 2]],Table_PI[[#This Row],[Input 3]],Table_PI[[#This Row],[Input 4]],'Customer Information'!$AR$12,100,ROW()),\"\"),\"\")","v":""},{"$f":"IF(Table_PI[[#This Row],[Input 1]]<>\"\",Table_PI[[#This Row],[Input 1]],\"\")","v":""},null,{"$f":"IFERROR(IF(AND(MeasureCalc(Table_PI[[#This Row],[Hide:\nFormula Name]],Table_SummaryPI[[#This Row],[Quantity]],Table_PI[[#This Row],[List 1]],Table_PI[[#This Row],[List 2]],Table_PI[[#This Row],[List 3]],Table_PI[[#This Row],[Size]],Table_PI[[#This Row],[Input 1]],Table_PI[[#This Row],[Input 2]],Table_PI[[#This Row],[Input 3]],Table_PI[[#This Row],[Input 4]],'Customer Information'!$AR$12,101,ROW())<>0,MeasureCalc(Table_PI[[#This Row],[Hide:\nFormula Name]],Table_SummaryPI[[#This Row],[Quantity]],Table_PI[[#This Row],[List 1]],Table_PI[[#This Row],[List 2]],Table_PI[[#This Row],[List 3]],Table_PI[[#This Row],[Size]],Table_PI[[#This Row],[Input 1]],Table_PI[[#This Row],[Input 2]],Table_PI[[#This Row],[Input 3]],Table_PI[[#This Row],[Input 4]],'Customer Information'!$AR$12,101,ROW())<>\"No Rebate\"),MeasureCalc(Table_PI[[#This Row],[Hide:\nFormula Name]],Table_SummaryPI[[#This Row],[Quantity]],Table_PI[[#This Row],[List 1]],Table_PI[[#This Row],[List 2]],Table_PI[[#This Row],[List 3]],Table_PI[[#This Row],[Size]],Table_PI[[#This Row],[Input 1]],Table_PI[[#This Row],[Input 2]],Table_PI[[#This Row],[Input 3]],Table_PI[[#This Row],[Input 4]],'Customer Information'!$AR$12,101,ROW()),\"\"),\"\")","v":""},{"$f":"IF(Table_PI[[#This Row],[Input 2]]<>\"\",Table_PI[[#This Row],[Input 2]],\"\")","v":""},null,{"$f":"IFERROR(IF(AND(MeasureCalc(Table_PI[[#This Row],[Hide:\nFormula Name]],Table_SummaryPI[[#This Row],[Quantity]],Table_PI[[#This Row],[List 1]],Table_PI[[#This Row],[List 2]],Table_PI[[#This Row],[List 3]],Table_PI[[#This Row],[Size]],Table_PI[[#This Row],[Input 1]],Table_PI[[#This Row],[Input 2]],Table_PI[[#This Row],[Input 3]],Table_PI[[#This Row],[Input 4]],'Customer Information'!$AR$12,102,ROW())<>0,MeasureCalc(Table_PI[[#This Row],[Hide:\nFormula Name]],Table_SummaryPI[[#This Row],[Quantity]],Table_PI[[#This Row],[List 1]],Table_PI[[#This Row],[List 2]],Table_PI[[#This Row],[List 3]],Table_PI[[#This Row],[Size]],Table_PI[[#This Row],[Input 1]],Table_PI[[#This Row],[Input 2]],Table_PI[[#This Row],[Input 3]],Table_PI[[#This Row],[Input 4]],'Customer Information'!$AR$12,102,ROW())<>\"No Rebate\"),MeasureCalc(Table_PI[[#This Row],[Hide:\nFormula Name]],Table_SummaryPI[[#This Row],[Quantity]],Table_PI[[#This Row],[List 1]],Table_PI[[#This Row],[List 2]],Table_PI[[#This Row],[List 3]],Table_PI[[#This Row],[Size]],Table_PI[[#This Row],[Input 1]],Table_PI[[#This Row],[Input 2]],Table_PI[[#This Row],[Input 3]],Table_PI[[#This Row],[Input 4]],'Customer Information'!$AR$12,102,ROW()),\"\"),\"\")","v":""},{"$f":"IF(Table_PI[[#This Row],[Input 3]]<>\"\",Table_PI[[#This Row],[Input 3]],\"\")","v":""},null,{"$f":"IFERROR(IF(AND(MeasureCalc(Table_PI[[#This Row],[Hide:\nFormula Name]],Table_SummaryPI[[#This Row],[Quantity]],Table_PI[[#This Row],[List 1]],Table_PI[[#This Row],[List 2]],Table_PI[[#This Row],[List 3]],Table_PI[[#This Row],[Size]],Table_PI[[#This Row],[Input 1]],Table_PI[[#This Row],[Input 2]],Table_PI[[#This Row],[Input 3]],Table_PI[[#This Row],[Input 4]],'Customer Information'!$AR$12,103,ROW())<>0,MeasureCalc(Table_PI[[#This Row],[Hide:\nFormula Name]],Table_SummaryPI[[#This Row],[Quantity]],Table_PI[[#This Row],[List 1]],Table_PI[[#This Row],[List 2]],Table_PI[[#This Row],[List 3]],Table_PI[[#This Row],[Size]],Table_PI[[#This Row],[Input 1]],Table_PI[[#This Row],[Input 2]],Table_PI[[#This Row],[Input 3]],Table_PI[[#This Row],[Input 4]],'Customer Information'!$AR$12,103,ROW())<>\"No Rebate\"),MeasureCalc(Table_PI[[#This Row],[Hide:\nFormula Name]],Table_SummaryPI[[#This Row],[Quantity]],Table_PI[[#This Row],[List 1]],Table_PI[[#This Row],[List 2]],Table_PI[[#This Row],[List 3]],Table_PI[[#This Row],[Size]],Table_PI[[#This Row],[Input 1]],Table_PI[[#This Row],[Input 2]],Table_PI[[#This Row],[Input 3]],Table_PI[[#This Row],[Input 4]],'Customer Information'!$AR$12,103,ROW()),\"\"),\"\")","v":""},{"$f":"IF(Table_PI[[#This Row],[Input 4]]<>\"\",Table_PI[[#This Row],[Input 4]],\"\")","v":""},{"$f":"IF(Table_PI[[#This Row],[Quantity]]=\"\",\"\",Table_PI[[#This Row],[Quantity]])","v":""},{"$f":"IF(Table_PI[[#This Row],[Notes]]=\"\",\"\",Table_PI[[#This Row],[Notes]])","v":""},{"$f":"IF(OR(Table_PI[[#This Row],[Hide:\nBaseline kWh]]=\"\",Table_PI[[#This Row],[Hide:\nBaseline kWh]]=0),\"\",Table_PI[[#This Row],[Hide:\nBaseline kWh]])","v":""},{"$f":"IF(OR(Table_PI[[#This Row],[Hide:\nBaseline kW]]=\"\",Table_PI[[#This Row],[Hide:\nBaseline kW]]=0),\"\",Table_PI[[#This Row],[Hide:\nBaseline kW]])","v":""},{"$f":"IF(OR(Table_PI[[#This Row],[Hide:\nProposed kWh]]=\"\",Table_PI[[#This Row],[Hide:\nProposed kWh]]=0),\"\",Table_PI[[#This Row],[Hide:\nProposed kWh]])","v":""},{"$f":"IF(OR(Table_PI[[#This Row],[Hide:\nProposed kW]]=\"\",Table_PI[[#This Row],[Hide:\nProposed kW]]=0),\"\",Table_PI[[#This Row],[Hide:\nProposed kW]])","v":""},{"$f":"IF(OR(Table_PI[[#This Row],[Rebate]]=\"\",Table_PI[[#This Row],[Rebate]]=0),\"\",Table_PI[[#This Row],[Rebate]])","v":""},{"$f":"IF(OR(Table_PI[[#This Row],[Hide:\nIncremental Cost]]=\"\",Table_PI[[#This Row],[Hide:\nIncremental Cost]]=0),\"\",Table_PI[[#This Row],[Hide:\nIncremental Cost]])","v":""},{"$f":"IFERROR(IF(Table_SummaryPI[[#This Row],[kWhSavings]]=\"\",\"\",ROUND(Table_SummaryPI[[#This Row],[kWhSavings]]/$AG$401*'Customer Information'!$BC$17,2)),0)","v":""},{"$f":"IF(OR(Table_PI[[#This Row],[Annual kWh]]=\"\",Table_PI[[#This Row],[Annual kWh]]=0),\"\",Table_PI[[#This Row],[Annual kWh]])","v":""},{"$f":"IF(OR(Table_PI[[#This Row],[Peak kW]]=\"\",Table_PI[[#This Row],[Peak kW]]=0),\"\",Table_PI[[#This Row],[Peak kW]])","v":""},{"$f":"IFERROR(IF(Table_SummaryPI[[#This Row],[kWhSavings]]=\"\",\"\",$AU$9*Table_SummaryPI[[#This Row],[kWhSavings]]),0)","v":""},{"$f":"IFERROR(IF(Table_SummaryPI[[#This Row],[kWhSavings]]=\"\",\"\",$AU$14*Table_SummaryPI[[#This Row],[kWhSavings]]),0)","v":""},{"$f":"IFERROR(IF(Table_SummaryPI[[#This Row],[kWhSavings]]=\"\",\"\",$AU$18*Table_SummaryPI[[#This Row],[kWhSavings]]),0)","v":""},{"$f":"IFERROR(IF(Table_SummaryPI[[#This Row],[kWhSavings]]=\"\",\"\",$AU$22*Table_SummaryPI[[#This Row],[kWhSavings]]),0)","v":""},{"$f":"IFERROR(IF(MeasureCalc(Table_PI[[#This Row],[Hide:\nFormula Name]],Table_SummaryPI[[#This Row],[Quantity]],Table_PI[[#This Row],[List 1]],Table_PI[[#This Row],[List 2]],Table_PI[[#This Row],[List 3]],Table_PI[[#This Row],[Size]],Table_PI[[#This Row],[Input 1]],Table_PI[[#This Row],[Input 2]],Table_PI[[#This Row],[Input 3]],Table_PI[[#This Row],[Input 4]],'Customer Information'!$AR$12,200,ROW())<>\"No Rebate\",MeasureCalc(Table_PI[[#This Row],[Hide:\nFormula Name]],Table_SummaryPI[[#This Row],[Quantity]],Table_PI[[#This Row],[List 1]],Table_PI[[#This Row],[List 2]],Table_PI[[#This Row],[List 3]],Table_PI[[#This Row],[Size]],Table_PI[[#This Row],[Input 1]],Table_PI[[#This Row],[Input 2]],Table_PI[[#This Row],[Input 3]],Table_PI[[#This Row],[Input 4]],'Customer Information'!$AR$12,200,ROW()),\"\"),\"\")","v":""},{"$f":"IFERROR(IF(MeasureCalc(Table_PI[[#This Row],[Hide:\nFormula Name]],Table_SummaryPI[[#This Row],[Quantity]],Table_PI[[#This Row],[List 1]],Table_PI[[#This Row],[List 2]],Table_PI[[#This Row],[List 3]],Table_PI[[#This Row],[Size]],Table_PI[[#This Row],[Input 1]],Table_PI[[#This Row],[Input 2]],Table_PI[[#This Row],[Input 3]],Table_PI[[#This Row],[Input 4]],'Customer Information'!$AR$12,201,ROW())<>\"No Rebate\",MeasureCalc(Table_PI[[#This Row],[Hide:\nFormula Name]],Table_SummaryPI[[#This Row],[Quantity]],Table_PI[[#This Row],[List 1]],Table_PI[[#This Row],[List 2]],Table_PI[[#This Row],[List 3]],Table_PI[[#This Row],[Size]],Table_PI[[#This Row],[Input 1]],Table_PI[[#This Row],[Input 2]],Table_PI[[#This Row],[Input 3]],Table_PI[[#This Row],[Input 4]],'Customer Information'!$AR$12,201,ROW()),\"\"),\"\")","v":""},null,null,22.3,"MPG",null,null,{"$f":"AQ14/AQ13*AU12*1/0.989","v":4.6275083315574461},"Tons CO2 / Vehicle/yr."]
[{"$f":"Table_PI[[#This Row],[Line No.]]","v":""},{"$f":"IF(Table_SummaryPI[[#This Row],[MeassureCategory]]<>\"\",CONCATENATE(Table_SummaryPI[[#This Row],[MeassureCategory]],  \" - \", Table_SummaryPI[[#This Row],[ProposedMeasureCategory]],  \" - \", TEXT(Table_SummaryPI[[#This Row],[Size]],\"#,##0.00\"),\" \",Table_SummaryPI[[#This Row],[SizeUnit]]),\"\")","v":""},{"$f":"SUBSTITUTE(Table_PI[[#This Row],[Measure]],\"     \",\"\",1)","v":""},{"$f":"IF(Table_PI[[#This Row],[List 1]]<>\"\",Table_PI[[#This Row],[List 1]],\"\")","v":""},{"$f":"IF(Table_PI[[#This Row],[List 2]]<>\"\",Table_PI[[#This Row],[List 2]],\"\")","v":""},{"$f":"IF(Table_PI[[#This Row],[List 3]]<>\"\",Table_PI[[#This Row],[List 3]],\"\")","v":""},{"$f":"IF(Table_PI[[#This Row],[Manufacturer]]=\"\",\"\",Table_PI[[#This Row],[Manufacturer]])","v":""},{"$f":"IF(Table_PI[[#This Row],[Model Number]]=\"\",\"\",Table_PI[[#This Row],[Model Number]])","v":""},{"$f":"IF(Table_PI[[#This Row],[Serial Number(s)]]=\"\",\"\",Table_PI[[#This Row],[Serial Number(s)]])","v":""},null,{"$f":"IF(Table_PI[[#This Row],[Size]]=\"\",\"\",Table_PI[[#This Row],[Size]])","v":""},null,{"$f":"IFERROR(IF(AND(MeasureCalc(Table_PI[[#This Row],[Hide:\nFormula Name]],Table_SummaryPI[[#This Row],[Quantity]],Table_PI[[#This Row],[List 1]],Table_PI[[#This Row],[List 2]],Table_PI[[#This Row],[List 3]],Table_PI[[#This Row],[Size]],Table_PI[[#This Row],[Input 1]],Table_PI[[#This Row],[Input 2]],Table_PI[[#This Row],[Input 3]],Table_PI[[#This Row],[Input 4]],'Customer Information'!$AR$12,100,ROW())<>0,MeasureCalc(Table_PI[[#This Row],[Hide:\nFormula Name]],Table_SummaryPI[[#This Row],[Quantity]],Table_PI[[#This Row],[List 1]],Table_PI[[#This Row],[List 2]],Table_PI[[#This Row],[List 3]],Table_PI[[#This Row],[Size]],Table_PI[[#This Row],[Input 1]],Table_PI[[#This Row],[Input 2]],Table_PI[[#This Row],[Input 3]],Table_PI[[#This Row],[Input 4]],'Customer Information'!$AR$12,100,ROW())<>\"No Rebate\"),MeasureCalc(Table_PI[[#This Row],[Hide:\nFormula Name]],Table_SummaryPI[[#This Row],[Quantity]],Table_PI[[#This Row],[List 1]],Table_PI[[#This Row],[List 2]],Table_PI[[#This Row],[List 3]],Table_PI[[#This Row],[Size]],Table_PI[[#This Row],[Input 1]],Table_PI[[#This Row],[Input 2]],Table_PI[[#This Row],[Input 3]],Table_PI[[#This Row],[Input 4]],'Customer Information'!$AR$12,100,ROW()),\"\"),\"\")","v":""},{"$f":"IF(Table_PI[[#This Row],[Input 1]]<>\"\",Table_PI[[#This Row],[Input 1]],\"\")","v":""},null,{"$f":"IFERROR(IF(AND(MeasureCalc(Table_PI[[#This Row],[Hide:\nFormula Name]],Table_SummaryPI[[#This Row],[Quantity]],Table_PI[[#This Row],[List 1]],Table_PI[[#This Row],[List 2]],Table_PI[[#This Row],[List 3]],Table_PI[[#This Row],[Size]],Table_PI[[#This Row],[Input 1]],Table_PI[[#This Row],[Input 2]],Table_PI[[#This Row],[Input 3]],Table_PI[[#This Row],[Input 4]],'Customer Information'!$AR$12,101,ROW())<>0,MeasureCalc(Table_PI[[#This Row],[Hide:\nFormula Name]],Table_SummaryPI[[#This Row],[Quantity]],Table_PI[[#This Row],[List 1]],Table_PI[[#This Row],[List 2]],Table_PI[[#This Row],[List 3]],Table_PI[[#This Row],[Size]],Table_PI[[#This Row],[Input 1]],Table_PI[[#This Row],[Input 2]],Table_PI[[#This Row],[Input 3]],Table_PI[[#This Row],[Input 4]],'Customer Information'!$AR$12,101,ROW())<>\"No Rebate\"),MeasureCalc(Table_PI[[#This Row],[Hide:\nFormula Name]],Table_SummaryPI[[#This Row],[Quantity]],Table_PI[[#This Row],[List 1]],Table_PI[[#This Row],[List 2]],Table_PI[[#This Row],[List 3]],Table_PI[[#This Row],[Size]],Table_PI[[#This Row],[Input 1]],Table_PI[[#This Row],[Input 2]],Table_PI[[#This Row],[Input 3]],Table_PI[[#This Row],[Input 4]],'Customer Information'!$AR$12,101,ROW()),\"\"),\"\")","v":""},{"$f":"IF(Table_PI[[#This Row],[Input 2]]<>\"\",Table_PI[[#This Row],[Input 2]],\"\")","v":""},null,{"$f":"IFERROR(IF(AND(MeasureCalc(Table_PI[[#This Row],[Hide:\nFormula Name]],Table_SummaryPI[[#This Row],[Quantity]],Table_PI[[#This Row],[List 1]],Table_PI[[#This Row],[List 2]],Table_PI[[#This Row],[List 3]],Table_PI[[#This Row],[Size]],Table_PI[[#This Row],[Input 1]],Table_PI[[#This Row],[Input 2]],Table_PI[[#This Row],[Input 3]],Table_PI[[#This Row],[Input 4]],'Customer Information'!$AR$12,102,ROW())<>0,MeasureCalc(Table_PI[[#This Row],[Hide:\nFormula Name]],Table_SummaryPI[[#This Row],[Quantity]],Table_PI[[#This Row],[List 1]],Table_PI[[#This Row],[List 2]],Table_PI[[#This Row],[List 3]],Table_PI[[#This Row],[Size]],Table_PI[[#This Row],[Input 1]],Table_PI[[#This Row],[Input 2]],Table_PI[[#This Row],[Input 3]],Table_PI[[#This Row],[Input 4]],'Customer Information'!$AR$12,102,ROW())<>\"No Rebate\"),MeasureCalc(Table_PI[[#This Row],[Hide:\nFormula Name]],Table_SummaryPI[[#This Row],[Quantity]],Table_PI[[#This Row],[List 1]],Table_PI[[#This Row],[List 2]],Table_PI[[#This Row],[List 3]],Table_PI[[#This Row],[Size]],Table_PI[[#This Row],[Input 1]],Table_PI[[#This Row],[Input 2]],Table_PI[[#This Row],[Input 3]],Table_PI[[#This Row],[Input 4]],'Customer Information'!$AR$12,102,ROW()),\"\"),\"\")","v":""},{"$f":"IF(Table_PI[[#This Row],[Input 3]]<>\"\",Table_PI[[#This Row],[Input 3]],\"\")","v":""},null,{"$f":"IFERROR(IF(AND(MeasureCalc(Table_PI[[#This Row],[Hide:\nFormula Name]],Table_SummaryPI[[#This Row],[Quantity]],Table_PI[[#This Row],[List 1]],Table_PI[[#This Row],[List 2]],Table_PI[[#This Row],[List 3]],Table_PI[[#This Row],[Size]],Table_PI[[#This Row],[Input 1]],Table_PI[[#This Row],[Input 2]],Table_PI[[#This Row],[Input 3]],Table_PI[[#This Row],[Input 4]],'Customer Information'!$AR$12,103,ROW())<>0,MeasureCalc(Table_PI[[#This Row],[Hide:\nFormula Name]],Table_SummaryPI[[#This Row],[Quantity]],Table_PI[[#This Row],[List 1]],Table_PI[[#This Row],[List 2]],Table_PI[[#This Row],[List 3]],Table_PI[[#This Row],[Size]],Table_PI[[#This Row],[Input 1]],Table_PI[[#This Row],[Input 2]],Table_PI[[#This Row],[Input 3]],Table_PI[[#This Row],[Input 4]],'Customer Information'!$AR$12,103,ROW())<>\"No Rebate\"),MeasureCalc(Table_PI[[#This Row],[Hide:\nFormula Name]],Table_SummaryPI[[#This Row],[Quantity]],Table_PI[[#This Row],[List 1]],Table_PI[[#This Row],[List 2]],Table_PI[[#This Row],[List 3]],Table_PI[[#This Row],[Size]],Table_PI[[#This Row],[Input 1]],Table_PI[[#This Row],[Input 2]],Table_PI[[#This Row],[Input 3]],Table_PI[[#This Row],[Input 4]],'Customer Information'!$AR$12,103,ROW()),\"\"),\"\")","v":""},{"$f":"IF(Table_PI[[#This Row],[Input 4]]<>\"\",Table_PI[[#This Row],[Input 4]],\"\")","v":""},{"$f":"IF(Table_PI[[#This Row],[Quantity]]=\"\",\"\",Table_PI[[#This Row],[Quantity]])","v":""},{"$f":"IF(Table_PI[[#This Row],[Notes]]=\"\",\"\",Table_PI[[#This Row],[Notes]])","v":""},{"$f":"IF(OR(Table_PI[[#This Row],[Hide:\nBaseline kWh]]=\"\",Table_PI[[#This Row],[Hide:\nBaseline kWh]]=0),\"\",Table_PI[[#This Row],[Hide:\nBaseline kWh]])","v":""},{"$f":"IF(OR(Table_PI[[#This Row],[Hide:\nBaseline kW]]=\"\",Table_PI[[#This Row],[Hide:\nBaseline kW]]=0),\"\",Table_PI[[#This Row],[Hide:\nBaseline kW]])","v":""},{"$f":"IF(OR(Table_PI[[#This Row],[Hide:\nProposed kWh]]=\"\",Table_PI[[#This Row],[Hide:\nProposed kWh]]=0),\"\",Table_PI[[#This Row],[Hide:\nProposed kWh]])","v":""},{"$f":"IF(OR(Table_PI[[#This Row],[Hide:\nProposed kW]]=\"\",Table_PI[[#This Row],[Hide:\nProposed kW]]=0),\"\",Table_PI[[#This Row],[Hide:\nProposed kW]])","v":""},{"$f":"IF(OR(Table_PI[[#This Row],[Rebate]]=\"\",Table_PI[[#This Row],[Rebate]]=0),\"\",Table_PI[[#This Row],[Rebate]])","v":""},{"$f":"IF(OR(Table_PI[[#This Row],[Hide:\nIncremental Cost]]=\"\",Table_PI[[#This Row],[Hide:\nIncremental Cost]]=0),\"\",Table_PI[[#This Row],[Hide:\nIncremental Cost]])","v":""},{"$f":"IFERROR(IF(Table_SummaryPI[[#This Row],[kWhSavings]]=\"\",\"\",ROUND(Table_SummaryPI[[#This Row],[kWhSavings]]/$AG$401*'Customer Information'!$BC$17,2)),0)","v":""},{"$f":"IF(OR(Table_PI[[#This Row],[Annual kWh]]=\"\",Table_PI[[#This Row],[Annual kWh]]=0),\"\",Table_PI[[#This Row],[Annual kWh]])","v":""},{"$f":"IF(OR(Table_PI[[#This Row],[Peak kW]]=\"\",Table_PI[[#This Row],[Peak kW]]=0),\"\",Table_PI[[#This Row],[Peak kW]])","v":""},{"$f":"IFERROR(IF(Table_SummaryPI[[#This Row],[kWhSavings]]=\"\",\"\",$AU$9*Table_SummaryPI[[#This Row],[kWhSavings]]),0)","v":""},{"$f":"IFERROR(IF(Table_SummaryPI[[#This Row],[kWhSavings]]=\"\",\"\",$AU$14*Table_SummaryPI[[#This Row],[kWhSavings]]),0)","v":""},{"$f":"IFERROR(IF(Table_SummaryPI[[#This Row],[kWhSavings]]=\"\",\"\",$AU$18*Table_SummaryPI[[#This Row],[kWhSavings]]),0)","v":""},{"$f":"IFERROR(IF(Table_SummaryPI[[#This Row],[kWhSavings]]=\"\",\"\",$AU$22*Table_SummaryPI[[#This Row],[kWhSavings]]),0)","v":""},{"$f":"IFERROR(IF(MeasureCalc(Table_PI[[#This Row],[Hide:\nFormula Name]],Table_SummaryPI[[#This Row],[Quantity]],Table_PI[[#This Row],[List 1]],Table_PI[[#This Row],[List 2]],Table_PI[[#This Row],[List 3]],Table_PI[[#This Row],[Size]],Table_PI[[#This Row],[Input 1]],Table_PI[[#This Row],[Input 2]],Table_PI[[#This Row],[Input 3]],Table_PI[[#This Row],[Input 4]],'Customer Information'!$AR$12,200,ROW())<>\"No Rebate\",MeasureCalc(Table_PI[[#This Row],[Hide:\nFormula Name]],Table_SummaryPI[[#This Row],[Quantity]],Table_PI[[#This Row],[List 1]],Table_PI[[#This Row],[List 2]],Table_PI[[#This Row],[List 3]],Table_PI[[#This Row],[Size]],Table_PI[[#This Row],[Input 1]],Table_PI[[#This Row],[Input 2]],Table_PI[[#This Row],[Input 3]],Table_PI[[#This Row],[Input 4]],'Customer Information'!$AR$12,200,ROW()),\"\"),\"\")","v":""},{"$f":"IFERROR(IF(MeasureCalc(Table_PI[[#This Row],[Hide:\nFormula Name]],Table_SummaryPI[[#This Row],[Quantity]],Table_PI[[#This Row],[List 1]],Table_PI[[#This Row],[List 2]],Table_PI[[#This Row],[List 3]],Table_PI[[#This Row],[Size]],Table_PI[[#This Row],[Input 1]],Table_PI[[#This Row],[Input 2]],Table_PI[[#This Row],[Input 3]],Table_PI[[#This Row],[Input 4]],'Customer Information'!$AR$12,201,ROW())<>\"No Rebate\",MeasureCalc(Table_PI[[#This Row],[Hide:\nFormula Name]],Table_SummaryPI[[#This Row],[Quantity]],Table_PI[[#This Row],[List 1]],Table_PI[[#This Row],[List 2]],Table_PI[[#This Row],[List 3]],Table_PI[[#This Row],[Size]],Table_PI[[#This Row],[Input 1]],Table_PI[[#This Row],[Input 2]],Table_PI[[#This Row],[Input 3]],Table_PI[[#This Row],[Input 4]],'Customer Information'!$AR$12,201,ROW()),\"\"),\"\")","v":""},null,null,11484,"Annual Vehicle Miles Traveled",null,null,{"$f":"(1/AU13)/(1/AU9)","v":1.1821437634160509E-4},"Vehicles/yr. / kWh"]
[{"$f":"Table_PI[[#This Row],[Line No.]]","v":""},{"$f":"IF(Table_SummaryPI[[#This Row],[MeassureCategory]]<>\"\",CONCATENATE(Table_SummaryPI[[#This Row],[MeassureCategory]],  \" - \", Table_SummaryPI[[#This Row],[ProposedMeasureCategory]],  \" - \", TEXT(Table_SummaryPI[[#This Row],[Size]],\"#,##0.00\"),\" \",Table_SummaryPI[[#This Row],[SizeUnit]]),\"\")","v":""},{"$f":"SUBSTITUTE(Table_PI[[#This Row],[Measure]],\"     \",\"\",1)","v":""},{"$f":"IF(Table_PI[[#This Row],[List 1]]<>\"\",Table_PI[[#This Row],[List 1]],\"\")","v":""},{"$f":"IF(Table_PI[[#This Row],[List 2]]<>\"\",Table_PI[[#This Row],[List 2]],\"\")","v":""},{"$f":"IF(Table_PI[[#This Row],[List 3]]<>\"\",Table_PI[[#This Row],[List 3]],\"\")","v":""},{"$f":"IF(Table_PI[[#This Row],[Manufacturer]]=\"\",\"\",Table_PI[[#This Row],[Manufacturer]])","v":""},{"$f":"IF(Table_PI[[#This Row],[Model Number]]=\"\",\"\",Table_PI[[#This Row],[Model Number]])","v":""},{"$f":"IF(Table_PI[[#This Row],[Serial Number(s)]]=\"\",\"\",Table_PI[[#This Row],[Serial Number(s)]])","v":""},null,{"$f":"IF(Table_PI[[#This Row],[Size]]=\"\",\"\",Table_PI[[#This Row],[Size]])","v":""},null,{"$f":"IFERROR(IF(AND(MeasureCalc(Table_PI[[#This Row],[Hide:\nFormula Name]],Table_SummaryPI[[#This Row],[Quantity]],Table_PI[[#This Row],[List 1]],Table_PI[[#This Row],[List 2]],Table_PI[[#This Row],[List 3]],Table_PI[[#This Row],[Size]],Table_PI[[#This Row],[Input 1]],Table_PI[[#This Row],[Input 2]],Table_PI[[#This Row],[Input 3]],Table_PI[[#This Row],[Input 4]],'Customer Information'!$AR$12,100,ROW())<>0,MeasureCalc(Table_PI[[#This Row],[Hide:\nFormula Name]],Table_SummaryPI[[#This Row],[Quantity]],Table_PI[[#This Row],[List 1]],Table_PI[[#This Row],[List 2]],Table_PI[[#This Row],[List 3]],Table_PI[[#This Row],[Size]],Table_PI[[#This Row],[Input 1]],Table_PI[[#This Row],[Input 2]],Table_PI[[#This Row],[Input 3]],Table_PI[[#This Row],[Input 4]],'Customer Information'!$AR$12,100,ROW())<>\"No Rebate\"),MeasureCalc(Table_PI[[#This Row],[Hide:\nFormula Name]],Table_SummaryPI[[#This Row],[Quantity]],Table_PI[[#This Row],[List 1]],Table_PI[[#This Row],[List 2]],Table_PI[[#This Row],[List 3]],Table_PI[[#This Row],[Size]],Table_PI[[#This Row],[Input 1]],Table_PI[[#This Row],[Input 2]],Table_PI[[#This Row],[Input 3]],Table_PI[[#This Row],[Input 4]],'Customer Information'!$AR$12,100,ROW()),\"\"),\"\")","v":""},{"$f":"IF(Table_PI[[#This Row],[Input 1]]<>\"\",Table_PI[[#This Row],[Input 1]],\"\")","v":""},null,{"$f":"IFERROR(IF(AND(MeasureCalc(Table_PI[[#This Row],[Hide:\nFormula Name]],Table_SummaryPI[[#This Row],[Quantity]],Table_PI[[#This Row],[List 1]],Table_PI[[#This Row],[List 2]],Table_PI[[#This Row],[List 3]],Table_PI[[#This Row],[Size]],Table_PI[[#This Row],[Input 1]],Table_PI[[#This Row],[Input 2]],Table_PI[[#This Row],[Input 3]],Table_PI[[#This Row],[Input 4]],'Customer Information'!$AR$12,101,ROW())<>0,MeasureCalc(Table_PI[[#This Row],[Hide:\nFormula Name]],Table_SummaryPI[[#This Row],[Quantity]],Table_PI[[#This Row],[List 1]],Table_PI[[#This Row],[List 2]],Table_PI[[#This Row],[List 3]],Table_PI[[#This Row],[Size]],Table_PI[[#This Row],[Input 1]],Table_PI[[#This Row],[Input 2]],Table_PI[[#This Row],[Input 3]],Table_PI[[#This Row],[Input 4]],'Customer Information'!$AR$12,101,ROW())<>\"No Rebate\"),MeasureCalc(Table_PI[[#This Row],[Hide:\nFormula Name]],Table_SummaryPI[[#This Row],[Quantity]],Table_PI[[#This Row],[List 1]],Table_PI[[#This Row],[List 2]],Table_PI[[#This Row],[List 3]],Table_PI[[#This Row],[Size]],Table_PI[[#This Row],[Input 1]],Table_PI[[#This Row],[Input 2]],Table_PI[[#This Row],[Input 3]],Table_PI[[#This Row],[Input 4]],'Customer Information'!$AR$12,101,ROW()),\"\"),\"\")","v":""},{"$f":"IF(Table_PI[[#This Row],[Input 2]]<>\"\",Table_PI[[#This Row],[Input 2]],\"\")","v":""},null,{"$f":"IFERROR(IF(AND(MeasureCalc(Table_PI[[#This Row],[Hide:\nFormula Name]],Table_SummaryPI[[#This Row],[Quantity]],Table_PI[[#This Row],[List 1]],Table_PI[[#This Row],[List 2]],Table_PI[[#This Row],[List 3]],Table_PI[[#This Row],[Size]],Table_PI[[#This Row],[Input 1]],Table_PI[[#This Row],[Input 2]],Table_PI[[#This Row],[Input 3]],Table_PI[[#This Row],[Input 4]],'Customer Information'!$AR$12,102,ROW())<>0,MeasureCalc(Table_PI[[#This Row],[Hide:\nFormula Name]],Table_SummaryPI[[#This Row],[Quantity]],Table_PI[[#This Row],[List 1]],Table_PI[[#This Row],[List 2]],Table_PI[[#This Row],[List 3]],Table_PI[[#This Row],[Size]],Table_PI[[#This Row],[Input 1]],Table_PI[[#This Row],[Input 2]],Table_PI[[#This Row],[Input 3]],Table_PI[[#This Row],[Input 4]],'Customer Information'!$AR$12,102,ROW())<>\"No Rebate\"),MeasureCalc(Table_PI[[#This Row],[Hide:\nFormula Name]],Table_SummaryPI[[#This Row],[Quantity]],Table_PI[[#This Row],[List 1]],Table_PI[[#This Row],[List 2]],Table_PI[[#This Row],[List 3]],Table_PI[[#This Row],[Size]],Table_PI[[#This Row],[Input 1]],Table_PI[[#This Row],[Input 2]],Table_PI[[#This Row],[Input 3]],Table_PI[[#This Row],[Input 4]],'Customer Information'!$AR$12,102,ROW()),\"\"),\"\")","v":""},{"$f":"IF(Table_PI[[#This Row],[Input 3]]<>\"\",Table_PI[[#This Row],[Input 3]],\"\")","v":""},null,{"$f":"IFERROR(IF(AND(MeasureCalc(Table_PI[[#This Row],[Hide:\nFormula Name]],Table_SummaryPI[[#This Row],[Quantity]],Table_PI[[#This Row],[List 1]],Table_PI[[#This Row],[List 2]],Table_PI[[#This Row],[List 3]],Table_PI[[#This Row],[Size]],Table_PI[[#This Row],[Input 1]],Table_PI[[#This Row],[Input 2]],Table_PI[[#This Row],[Input 3]],Table_PI[[#This Row],[Input 4]],'Customer Information'!$AR$12,103,ROW())<>0,MeasureCalc(Table_PI[[#This Row],[Hide:\nFormula Name]],Table_SummaryPI[[#This Row],[Quantity]],Table_PI[[#This Row],[List 1]],Table_PI[[#This Row],[List 2]],Table_PI[[#This Row],[List 3]],Table_PI[[#This Row],[Size]],Table_PI[[#This Row],[Input 1]],Table_PI[[#This Row],[Input 2]],Table_PI[[#This Row],[Input 3]],Table_PI[[#This Row],[Input 4]],'Customer Information'!$AR$12,103,ROW())<>\"No Rebate\"),MeasureCalc(Table_PI[[#This Row],[Hide:\nFormula Name]],Table_SummaryPI[[#This Row],[Quantity]],Table_PI[[#This Row],[List 1]],Table_PI[[#This Row],[List 2]],Table_PI[[#This Row],[List 3]],Table_PI[[#This Row],[Size]],Table_PI[[#This Row],[Input 1]],Table_PI[[#This Row],[Input 2]],Table_PI[[#This Row],[Input 3]],Table_PI[[#This Row],[Input 4]],'Customer Information'!$AR$12,103,ROW()),\"\"),\"\")","v":""},{"$f":"IF(Table_PI[[#This Row],[Input 4]]<>\"\",Table_PI[[#This Row],[Input 4]],\"\")","v":""},{"$f":"IF(Table_PI[[#This Row],[Quantity]]=\"\",\"\",Table_PI[[#This Row],[Quantity]])","v":""},{"$f":"IF(Table_PI[[#This Row],[Notes]]=\"\",\"\",Table_PI[[#This Row],[Notes]])","v":""},{"$f":"IF(OR(Table_PI[[#This Row],[Hide:\nBaseline kWh]]=\"\",Table_PI[[#This Row],[Hide:\nBaseline kWh]]=0),\"\",Table_PI[[#This Row],[Hide:\nBaseline kWh]])","v":""},{"$f":"IF(OR(Table_PI[[#This Row],[Hide:\nBaseline kW]]=\"\",Table_PI[[#This Row],[Hide:\nBaseline kW]]=0),\"\",Table_PI[[#This Row],[Hide:\nBaseline kW]])","v":""},{"$f":"IF(OR(Table_PI[[#This Row],[Hide:\nProposed kWh]]=\"\",Table_PI[[#This Row],[Hide:\nProposed kWh]]=0),\"\",Table_PI[[#This Row],[Hide:\nProposed kWh]])","v":""},{"$f":"IF(OR(Table_PI[[#This Row],[Hide:\nProposed kW]]=\"\",Table_PI[[#This Row],[Hide:\nProposed kW]]=0),\"\",Table_PI[[#This Row],[Hide:\nProposed kW]])","v":""},{"$f":"IF(OR(Table_PI[[#This Row],[Rebate]]=\"\",Table_PI[[#This Row],[Rebate]]=0),\"\",Table_PI[[#This Row],[Rebate]])","v":""},{"$f":"IF(OR(Table_PI[[#This Row],[Hide:\nIncremental Cost]]=\"\",Table_PI[[#This Row],[Hide:\nIncremental Cost]]=0),\"\",Table_PI[[#This Row],[Hide:\nIncremental Cost]])","v":""},{"$f":"IFERROR(IF(Table_SummaryPI[[#This Row],[kWhSavings]]=\"\",\"\",ROUND(Table_SummaryPI[[#This Row],[kWhSavings]]/$AG$401*'Customer Information'!$BC$17,2)),0)","v":""},{"$f":"IF(OR(Table_PI[[#This Row],[Annual kWh]]=\"\",Table_PI[[#This Row],[Annual kWh]]=0),\"\",Table_PI[[#This Row],[Annual kWh]])","v":""},{"$f":"IF(OR(Table_PI[[#This Row],[Peak kW]]=\"\",Table_PI[[#This Row],[Peak kW]]=0),\"\",Table_PI[[#This Row],[Peak kW]])","v":""},{"$f":"IFERROR(IF(Table_SummaryPI[[#This Row],[kWhSavings]]=\"\",\"\",$AU$9*Table_SummaryPI[[#This Row],[kWhSavings]]),0)","v":""},{"$f":"IFERROR(IF(Table_SummaryPI[[#This Row],[kWhSavings]]=\"\",\"\",$AU$14*Table_SummaryPI[[#This Row],[kWhSavings]]),0)","v":""},{"$f":"IFERROR(IF(Table_SummaryPI[[#This Row],[kWhSavings]]=\"\",\"\",$AU$18*Table_SummaryPI[[#This Row],[kWhSavings]]),0)","v":""},{"$f":"IFERROR(IF(Table_SummaryPI[[#This Row],[kWhSavings]]=\"\",\"\",$AU$22*Table_SummaryPI[[#This Row],[kWhSavings]]),0)","v":""},{"$f":"IFERROR(IF(MeasureCalc(Table_PI[[#This Row],[Hide:\nFormula Name]],Table_SummaryPI[[#This Row],[Quantity]],Table_PI[[#This Row],[List 1]],Table_PI[[#This Row],[List 2]],Table_PI[[#This Row],[List 3]],Table_PI[[#This Row],[Size]],Table_PI[[#This Row],[Input 1]],Table_PI[[#This Row],[Input 2]],Table_PI[[#This Row],[Input 3]],Table_PI[[#This Row],[Input 4]],'Customer Information'!$AR$12,200,ROW())<>\"No Rebate\",MeasureCalc(Table_PI[[#This Row],[Hide:\nFormula Name]],Table_SummaryPI[[#This Row],[Quantity]],Table_PI[[#This Row],[List 1]],Table_PI[[#This Row],[List 2]],Table_PI[[#This Row],[List 3]],Table_PI[[#This Row],[Size]],Table_PI[[#This Row],[Input 1]],Table_PI[[#This Row],[Input 2]],Table_PI[[#This Row],[Input 3]],Table_PI[[#This Row],[Input 4]],'Customer Information'!$AR$12,200,ROW()),\"\"),\"\")","v":""},{"$f":"IFERROR(IF(MeasureCalc(Table_PI[[#This Row],[Hide:\nFormula Name]],Table_SummaryPI[[#This Row],[Quantity]],Table_PI[[#This Row],[List 1]],Table_PI[[#This Row],[List 2]],Table_PI[[#This Row],[List 3]],Table_PI[[#This Row],[Size]],Table_PI[[#This Row],[Input 1]],Table_PI[[#This Row],[Input 2]],Table_PI[[#This Row],[Input 3]],Table_PI[[#This Row],[Input 4]],'Customer Information'!$AR$12,201,ROW())<>\"No Rebate\",MeasureCalc(Table_PI[[#This Row],[Hide:\nFormula Name]],Table_SummaryPI[[#This Row],[Quantity]],Table_PI[[#This Row],[List 1]],Table_PI[[#This Row],[List 2]],Table_PI[[#This Row],[List 3]],Table_PI[[#This Row],[Size]],Table_PI[[#This Row],[Input 1]],Table_PI[[#This Row],[Input 2]],Table_PI[[#This Row],[Input 3]],Table_PI[[#This Row],[Input 4]],'Customer Information'!$AR$12,201,ROW()),\"\"),\"\")","v":""}]
[{"$f":"Table_PI[[#This Row],[Line No.]]","v":""},{"$f":"IF(Table_SummaryPI[[#This Row],[MeassureCategory]]<>\"\",CONCATENATE(Table_SummaryPI[[#This Row],[MeassureCategory]],  \" - \", Table_SummaryPI[[#This Row],[ProposedMeasureCategory]],  \" - \", TEXT(Table_SummaryPI[[#This Row],[Size]],\"#,##0.00\"),\" \",Table_SummaryPI[[#This Row],[SizeUnit]]),\"\")","v":""},{"$f":"SUBSTITUTE(Table_PI[[#This Row],[Measure]],\"     \",\"\",1)","v":""},{"$f":"IF(Table_PI[[#This Row],[List 1]]<>\"\",Table_PI[[#This Row],[List 1]],\"\")","v":""},{"$f":"IF(Table_PI[[#This Row],[List 2]]<>\"\",Table_PI[[#This Row],[List 2]],\"\")","v":""},{"$f":"IF(Table_PI[[#This Row],[List 3]]<>\"\",Table_PI[[#This Row],[List 3]],\"\")","v":""},{"$f":"IF(Table_PI[[#This Row],[Manufacturer]]=\"\",\"\",Table_PI[[#This Row],[Manufacturer]])","v":""},{"$f":"IF(Table_PI[[#This Row],[Model Number]]=\"\",\"\",Table_PI[[#This Row],[Model Number]])","v":""},{"$f":"IF(Table_PI[[#This Row],[Serial Number(s)]]=\"\",\"\",Table_PI[[#This Row],[Serial Number(s)]])","v":""},null,{"$f":"IF(Table_PI[[#This Row],[Size]]=\"\",\"\",Table_PI[[#This Row],[Size]])","v":""},null,{"$f":"IFERROR(IF(AND(MeasureCalc(Table_PI[[#This Row],[Hide:\nFormula Name]],Table_SummaryPI[[#This Row],[Quantity]],Table_PI[[#This Row],[List 1]],Table_PI[[#This Row],[List 2]],Table_PI[[#This Row],[List 3]],Table_PI[[#This Row],[Size]],Table_PI[[#This Row],[Input 1]],Table_PI[[#This Row],[Input 2]],Table_PI[[#This Row],[Input 3]],Table_PI[[#This Row],[Input 4]],'Customer Information'!$AR$12,100,ROW())<>0,MeasureCalc(Table_PI[[#This Row],[Hide:\nFormula Name]],Table_SummaryPI[[#This Row],[Quantity]],Table_PI[[#This Row],[List 1]],Table_PI[[#This Row],[List 2]],Table_PI[[#This Row],[List 3]],Table_PI[[#This Row],[Size]],Table_PI[[#This Row],[Input 1]],Table_PI[[#This Row],[Input 2]],Table_PI[[#This Row],[Input 3]],Table_PI[[#This Row],[Input 4]],'Customer Information'!$AR$12,100,ROW())<>\"No Rebate\"),MeasureCalc(Table_PI[[#This Row],[Hide:\nFormula Name]],Table_SummaryPI[[#This Row],[Quantity]],Table_PI[[#This Row],[List 1]],Table_PI[[#This Row],[List 2]],Table_PI[[#This Row],[List 3]],Table_PI[[#This Row],[Size]],Table_PI[[#This Row],[Input 1]],Table_PI[[#This Row],[Input 2]],Table_PI[[#This Row],[Input 3]],Table_PI[[#This Row],[Input 4]],'Customer Information'!$AR$12,100,ROW()),\"\"),\"\")","v":""},{"$f":"IF(Table_PI[[#This Row],[Input 1]]<>\"\",Table_PI[[#This Row],[Input 1]],\"\")","v":""},null,{"$f":"IFERROR(IF(AND(MeasureCalc(Table_PI[[#This Row],[Hide:\nFormula Name]],Table_SummaryPI[[#This Row],[Quantity]],Table_PI[[#This Row],[List 1]],Table_PI[[#This Row],[List 2]],Table_PI[[#This Row],[List 3]],Table_PI[[#This Row],[Size]],Table_PI[[#This Row],[Input 1]],Table_PI[[#This Row],[Input 2]],Table_PI[[#This Row],[Input 3]],Table_PI[[#This Row],[Input 4]],'Customer Information'!$AR$12,101,ROW())<>0,MeasureCalc(Table_PI[[#This Row],[Hide:\nFormula Name]],Table_SummaryPI[[#This Row],[Quantity]],Table_PI[[#This Row],[List 1]],Table_PI[[#This Row],[List 2]],Table_PI[[#This Row],[List 3]],Table_PI[[#This Row],[Size]],Table_PI[[#This Row],[Input 1]],Table_PI[[#This Row],[Input 2]],Table_PI[[#This Row],[Input 3]],Table_PI[[#This Row],[Input 4]],'Customer Information'!$AR$12,101,ROW())<>\"No Rebate\"),MeasureCalc(Table_PI[[#This Row],[Hide:\nFormula Name]],Table_SummaryPI[[#This Row],[Quantity]],Table_PI[[#This Row],[List 1]],Table_PI[[#This Row],[List 2]],Table_PI[[#This Row],[List 3]],Table_PI[[#This Row],[Size]],Table_PI[[#This Row],[Input 1]],Table_PI[[#This Row],[Input 2]],Table_PI[[#This Row],[Input 3]],Table_PI[[#This Row],[Input 4]],'Customer Information'!$AR$12,101,ROW()),\"\"),\"\")","v":""},{"$f":"IF(Table_PI[[#This Row],[Input 2]]<>\"\",Table_PI[[#This Row],[Input 2]],\"\")","v":""},null,{"$f":"IFERROR(IF(AND(MeasureCalc(Table_PI[[#This Row],[Hide:\nFormula Name]],Table_SummaryPI[[#This Row],[Quantity]],Table_PI[[#This Row],[List 1]],Table_PI[[#This Row],[List 2]],Table_PI[[#This Row],[List 3]],Table_PI[[#This Row],[Size]],Table_PI[[#This Row],[Input 1]],Table_PI[[#This Row],[Input 2]],Table_PI[[#This Row],[Input 3]],Table_PI[[#This Row],[Input 4]],'Customer Information'!$AR$12,102,ROW())<>0,MeasureCalc(Table_PI[[#This Row],[Hide:\nFormula Name]],Table_SummaryPI[[#This Row],[Quantity]],Table_PI[[#This Row],[List 1]],Table_PI[[#This Row],[List 2]],Table_PI[[#This Row],[List 3]],Table_PI[[#This Row],[Size]],Table_PI[[#This Row],[Input 1]],Table_PI[[#This Row],[Input 2]],Table_PI[[#This Row],[Input 3]],Table_PI[[#This Row],[Input 4]],'Customer Information'!$AR$12,102,ROW())<>\"No Rebate\"),MeasureCalc(Table_PI[[#This Row],[Hide:\nFormula Name]],Table_SummaryPI[[#This Row],[Quantity]],Table_PI[[#This Row],[List 1]],Table_PI[[#This Row],[List 2]],Table_PI[[#This Row],[List 3]],Table_PI[[#This Row],[Size]],Table_PI[[#This Row],[Input 1]],Table_PI[[#This Row],[Input 2]],Table_PI[[#This Row],[Input 3]],Table_PI[[#This Row],[Input 4]],'Customer Information'!$AR$12,102,ROW()),\"\"),\"\")","v":""},{"$f":"IF(Table_PI[[#This Row],[Input 3]]<>\"\",Table_PI[[#This Row],[Input 3]],\"\")","v":""},null,{"$f":"IFERROR(IF(AND(MeasureCalc(Table_PI[[#This Row],[Hide:\nFormula Name]],Table_SummaryPI[[#This Row],[Quantity]],Table_PI[[#This Row],[List 1]],Table_PI[[#This Row],[List 2]],Table_PI[[#This Row],[List 3]],Table_PI[[#This Row],[Size]],Table_PI[[#This Row],[Input 1]],Table_PI[[#This Row],[Input 2]],Table_PI[[#This Row],[Input 3]],Table_PI[[#This Row],[Input 4]],'Customer Information'!$AR$12,103,ROW())<>0,MeasureCalc(Table_PI[[#This Row],[Hide:\nFormula Name]],Table_SummaryPI[[#This Row],[Quantity]],Table_PI[[#This Row],[List 1]],Table_PI[[#This Row],[List 2]],Table_PI[[#This Row],[List 3]],Table_PI[[#This Row],[Size]],Table_PI[[#This Row],[Input 1]],Table_PI[[#This Row],[Input 2]],Table_PI[[#This Row],[Input 3]],Table_PI[[#This Row],[Input 4]],'Customer Information'!$AR$12,103,ROW())<>\"No Rebate\"),MeasureCalc(Table_PI[[#This Row],[Hide:\nFormula Name]],Table_SummaryPI[[#This Row],[Quantity]],Table_PI[[#This Row],[List 1]],Table_PI[[#This Row],[List 2]],Table_PI[[#This Row],[List 3]],Table_PI[[#This Row],[Size]],Table_PI[[#This Row],[Input 1]],Table_PI[[#This Row],[Input 2]],Table_PI[[#This Row],[Input 3]],Table_PI[[#This Row],[Input 4]],'Customer Information'!$AR$12,103,ROW()),\"\"),\"\")","v":""},{"$f":"IF(Table_PI[[#This Row],[Input 4]]<>\"\",Table_PI[[#This Row],[Input 4]],\"\")","v":""},{"$f":"IF(Table_PI[[#This Row],[Quantity]]=\"\",\"\",Table_PI[[#This Row],[Quantity]])","v":""},{"$f":"IF(Table_PI[[#This Row],[Notes]]=\"\",\"\",Table_PI[[#This Row],[Notes]])","v":""},{"$f":"IF(OR(Table_PI[[#This Row],[Hide:\nBaseline kWh]]=\"\",Table_PI[[#This Row],[Hide:\nBaseline kWh]]=0),\"\",Table_PI[[#This Row],[Hide:\nBaseline kWh]])","v":""},{"$f":"IF(OR(Table_PI[[#This Row],[Hide:\nBaseline kW]]=\"\",Table_PI[[#This Row],[Hide:\nBaseline kW]]=0),\"\",Table_PI[[#This Row],[Hide:\nBaseline kW]])","v":""},{"$f":"IF(OR(Table_PI[[#This Row],[Hide:\nProposed kWh]]=\"\",Table_PI[[#This Row],[Hide:\nProposed kWh]]=0),\"\",Table_PI[[#This Row],[Hide:\nProposed kWh]])","v":""},{"$f":"IF(OR(Table_PI[[#This Row],[Hide:\nProposed kW]]=\"\",Table_PI[[#This Row],[Hide:\nProposed kW]]=0),\"\",Table_PI[[#This Row],[Hide:\nProposed kW]])","v":""},{"$f":"IF(OR(Table_PI[[#This Row],[Rebate]]=\"\",Table_PI[[#This Row],[Rebate]]=0),\"\",Table_PI[[#This Row],[Rebate]])","v":""},{"$f":"IF(OR(Table_PI[[#This Row],[Hide:\nIncremental Cost]]=\"\",Table_PI[[#This Row],[Hide:\nIncremental Cost]]=0),\"\",Table_PI[[#This Row],[Hide:\nIncremental Cost]])","v":""},{"$f":"IFERROR(IF(Table_SummaryPI[[#This Row],[kWhSavings]]=\"\",\"\",ROUND(Table_SummaryPI[[#This Row],[kWhSavings]]/$AG$401*'Customer Information'!$BC$17,2)),0)","v":""},{"$f":"IF(OR(Table_PI[[#This Row],[Annual kWh]]=\"\",Table_PI[[#This Row],[Annual kWh]]=0),\"\",Table_PI[[#This Row],[Annual kWh]])","v":""},{"$f":"IF(OR(Table_PI[[#This Row],[Peak kW]]=\"\",Table_PI[[#This Row],[Peak kW]]=0),\"\",Table_PI[[#This Row],[Peak kW]])","v":""},{"$f":"IFERROR(IF(Table_SummaryPI[[#This Row],[kWhSavings]]=\"\",\"\",$AU$9*Table_SummaryPI[[#This Row],[kWhSavings]]),0)","v":""},{"$f":"IFERROR(IF(Table_SummaryPI[[#This Row],[kWhSavings]]=\"\",\"\",$AU$14*Table_SummaryPI[[#This Row],[kWhSavings]]),0)","v":""},{"$f":"IFERROR(IF(Table_SummaryPI[[#This Row],[kWhSavings]]=\"\",\"\",$AU$18*Table_SummaryPI[[#This Row],[kWhSavings]]),0)","v":""},{"$f":"IFERROR(IF(Table_SummaryPI[[#This Row],[kWhSavings]]=\"\",\"\",$AU$22*Table_SummaryPI[[#This Row],[kWhSavings]]),0)","v":""},{"$f":"IFERROR(IF(MeasureCalc(Table_PI[[#This Row],[Hide:\nFormula Name]],Table_SummaryPI[[#This Row],[Quantity]],Table_PI[[#This Row],[List 1]],Table_PI[[#This Row],[List 2]],Table_PI[[#This Row],[List 3]],Table_PI[[#This Row],[Size]],Table_PI[[#This Row],[Input 1]],Table_PI[[#This Row],[Input 2]],Table_PI[[#This Row],[Input 3]],Table_PI[[#This Row],[Input 4]],'Customer Information'!$AR$12,200,ROW())<>\"No Rebate\",MeasureCalc(Table_PI[[#This Row],[Hide:\nFormula Name]],Table_SummaryPI[[#This Row],[Quantity]],Table_PI[[#This Row],[List 1]],Table_PI[[#This Row],[List 2]],Table_PI[[#This Row],[List 3]],Table_PI[[#This Row],[Size]],Table_PI[[#This Row],[Input 1]],Table_PI[[#This Row],[Input 2]],Table_PI[[#This Row],[Input 3]],Table_PI[[#This Row],[Input 4]],'Customer Information'!$AR$12,200,ROW()),\"\"),\"\")","v":""},{"$f":"IFERROR(IF(MeasureCalc(Table_PI[[#This Row],[Hide:\nFormula Name]],Table_SummaryPI[[#This Row],[Quantity]],Table_PI[[#This Row],[List 1]],Table_PI[[#This Row],[List 2]],Table_PI[[#This Row],[List 3]],Table_PI[[#This Row],[Size]],Table_PI[[#This Row],[Input 1]],Table_PI[[#This Row],[Input 2]],Table_PI[[#This Row],[Input 3]],Table_PI[[#This Row],[Input 4]],'Customer Information'!$AR$12,201,ROW())<>\"No Rebate\",MeasureCalc(Table_PI[[#This Row],[Hide:\nFormula Name]],Table_SummaryPI[[#This Row],[Quantity]],Table_PI[[#This Row],[List 1]],Table_PI[[#This Row],[List 2]],Table_PI[[#This Row],[List 3]],Table_PI[[#This Row],[Size]],Table_PI[[#This Row],[Input 1]],Table_PI[[#This Row],[Input 2]],Table_PI[[#This Row],[Input 3]],Table_PI[[#This Row],[Input 4]],'Customer Information'!$AR$12,201,ROW()),\"\"),\"\")","v":""},null,null,{"$f":"0.11*23.2","v":2.552},"lbs. Carbon / Tree (Coniferous)",null,null,{"$f":"AQ10","v":4.5359702440351992E-4},"Tons / lbs."]
[{"$f":"Table_PI[[#This Row],[Line No.]]","v":""},{"$f":"IF(Table_SummaryPI[[#This Row],[MeassureCategory]]<>\"\",CONCATENATE(Table_SummaryPI[[#This Row],[MeassureCategory]],  \" - \", Table_SummaryPI[[#This Row],[ProposedMeasureCategory]],  \" - \", TEXT(Table_SummaryPI[[#This Row],[Size]],\"#,##0.00\"),\" \",Table_SummaryPI[[#This Row],[SizeUnit]]),\"\")","v":""},{"$f":"SUBSTITUTE(Table_PI[[#This Row],[Measure]],\"     \",\"\",1)","v":""},{"$f":"IF(Table_PI[[#This Row],[List 1]]<>\"\",Table_PI[[#This Row],[List 1]],\"\")","v":""},{"$f":"IF(Table_PI[[#This Row],[List 2]]<>\"\",Table_PI[[#This Row],[List 2]],\"\")","v":""},{"$f":"IF(Table_PI[[#This Row],[List 3]]<>\"\",Table_PI[[#This Row],[List 3]],\"\")","v":""},{"$f":"IF(Table_PI[[#This Row],[Manufacturer]]=\"\",\"\",Table_PI[[#This Row],[Manufacturer]])","v":""},{"$f":"IF(Table_PI[[#This Row],[Model Number]]=\"\",\"\",Table_PI[[#This Row],[Model Number]])","v":""},{"$f":"IF(Table_PI[[#This Row],[Serial Number(s)]]=\"\",\"\",Table_PI[[#This Row],[Serial Number(s)]])","v":""},null,{"$f":"IF(Table_PI[[#This Row],[Size]]=\"\",\"\",Table_PI[[#This Row],[Size]])","v":""},null,{"$f":"IFERROR(IF(AND(MeasureCalc(Table_PI[[#This Row],[Hide:\nFormula Name]],Table_SummaryPI[[#This Row],[Quantity]],Table_PI[[#This Row],[List 1]],Table_PI[[#This Row],[List 2]],Table_PI[[#This Row],[List 3]],Table_PI[[#This Row],[Size]],Table_PI[[#This Row],[Input 1]],Table_PI[[#This Row],[Input 2]],Table_PI[[#This Row],[Input 3]],Table_PI[[#This Row],[Input 4]],'Customer Information'!$AR$12,100,ROW())<>0,MeasureCalc(Table_PI[[#This Row],[Hide:\nFormula Name]],Table_SummaryPI[[#This Row],[Quantity]],Table_PI[[#This Row],[List 1]],Table_PI[[#This Row],[List 2]],Table_PI[[#This Row],[List 3]],Table_PI[[#This Row],[Size]],Table_PI[[#This Row],[Input 1]],Table_PI[[#This Row],[Input 2]],Table_PI[[#This Row],[Input 3]],Table_PI[[#This Row],[Input 4]],'Customer Information'!$AR$12,100,ROW())<>\"No Rebate\"),MeasureCalc(Table_PI[[#This Row],[Hide:\nFormula Name]],Table_SummaryPI[[#This Row],[Quantity]],Table_PI[[#This Row],[List 1]],Table_PI[[#This Row],[List 2]],Table_PI[[#This Row],[List 3]],Table_PI[[#This Row],[Size]],Table_PI[[#This Row],[Input 1]],Table_PI[[#This Row],[Input 2]],Table_PI[[#This Row],[Input 3]],Table_PI[[#This Row],[Input 4]],'Customer Information'!$AR$12,100,ROW()),\"\"),\"\")","v":""},{"$f":"IF(Table_PI[[#This Row],[Input 1]]<>\"\",Table_PI[[#This Row],[Input 1]],\"\")","v":""},null,{"$f":"IFERROR(IF(AND(MeasureCalc(Table_PI[[#This Row],[Hide:\nFormula Name]],Table_SummaryPI[[#This Row],[Quantity]],Table_PI[[#This Row],[List 1]],Table_PI[[#This Row],[List 2]],Table_PI[[#This Row],[List 3]],Table_PI[[#This Row],[Size]],Table_PI[[#This Row],[Input 1]],Table_PI[[#This Row],[Input 2]],Table_PI[[#This Row],[Input 3]],Table_PI[[#This Row],[Input 4]],'Customer Information'!$AR$12,101,ROW())<>0,MeasureCalc(Table_PI[[#This Row],[Hide:\nFormula Name]],Table_SummaryPI[[#This Row],[Quantity]],Table_PI[[#This Row],[List 1]],Table_PI[[#This Row],[List 2]],Table_PI[[#This Row],[List 3]],Table_PI[[#This Row],[Size]],Table_PI[[#This Row],[Input 1]],Table_PI[[#This Row],[Input 2]],Table_PI[[#This Row],[Input 3]],Table_PI[[#This Row],[Input 4]],'Customer Information'!$AR$12,101,ROW())<>\"No Rebate\"),MeasureCalc(Table_PI[[#This Row],[Hide:\nFormula Name]],Table_SummaryPI[[#This Row],[Quantity]],Table_PI[[#This Row],[List 1]],Table_PI[[#This Row],[List 2]],Table_PI[[#This Row],[List 3]],Table_PI[[#This Row],[Size]],Table_PI[[#This Row],[Input 1]],Table_PI[[#This Row],[Input 2]],Table_PI[[#This Row],[Input 3]],Table_PI[[#This Row],[Input 4]],'Customer Information'!$AR$12,101,ROW()),\"\"),\"\")","v":""},{"$f":"IF(Table_PI[[#This Row],[Input 2]]<>\"\",Table_PI[[#This Row],[Input 2]],\"\")","v":""},null,{"$f":"IFERROR(IF(AND(MeasureCalc(Table_PI[[#This Row],[Hide:\nFormula Name]],Table_SummaryPI[[#This Row],[Quantity]],Table_PI[[#This Row],[List 1]],Table_PI[[#This Row],[List 2]],Table_PI[[#This Row],[List 3]],Table_PI[[#This Row],[Size]],Table_PI[[#This Row],[Input 1]],Table_PI[[#This Row],[Input 2]],Table_PI[[#This Row],[Input 3]],Table_PI[[#This Row],[Input 4]],'Customer Information'!$AR$12,102,ROW())<>0,MeasureCalc(Table_PI[[#This Row],[Hide:\nFormula Name]],Table_SummaryPI[[#This Row],[Quantity]],Table_PI[[#This Row],[List 1]],Table_PI[[#This Row],[List 2]],Table_PI[[#This Row],[List 3]],Table_PI[[#This Row],[Size]],Table_PI[[#This Row],[Input 1]],Table_PI[[#This Row],[Input 2]],Table_PI[[#This Row],[Input 3]],Table_PI[[#This Row],[Input 4]],'Customer Information'!$AR$12,102,ROW())<>\"No Rebate\"),MeasureCalc(Table_PI[[#This Row],[Hide:\nFormula Name]],Table_SummaryPI[[#This Row],[Quantity]],Table_PI[[#This Row],[List 1]],Table_PI[[#This Row],[List 2]],Table_PI[[#This Row],[List 3]],Table_PI[[#This Row],[Size]],Table_PI[[#This Row],[Input 1]],Table_PI[[#This Row],[Input 2]],Table_PI[[#This Row],[Input 3]],Table_PI[[#This Row],[Input 4]],'Customer Information'!$AR$12,102,ROW()),\"\"),\"\")","v":""},{"$f":"IF(Table_PI[[#This Row],[Input 3]]<>\"\",Table_PI[[#This Row],[Input 3]],\"\")","v":""},null,{"$f":"IFERROR(IF(AND(MeasureCalc(Table_PI[[#This Row],[Hide:\nFormula Name]],Table_SummaryPI[[#This Row],[Quantity]],Table_PI[[#This Row],[List 1]],Table_PI[[#This Row],[List 2]],Table_PI[[#This Row],[List 3]],Table_PI[[#This Row],[Size]],Table_PI[[#This Row],[Input 1]],Table_PI[[#This Row],[Input 2]],Table_PI[[#This Row],[Input 3]],Table_PI[[#This Row],[Input 4]],'Customer Information'!$AR$12,103,ROW())<>0,MeasureCalc(Table_PI[[#This Row],[Hide:\nFormula Name]],Table_SummaryPI[[#This Row],[Quantity]],Table_PI[[#This Row],[List 1]],Table_PI[[#This Row],[List 2]],Table_PI[[#This Row],[List 3]],Table_PI[[#This Row],[Size]],Table_PI[[#This Row],[Input 1]],Table_PI[[#This Row],[Input 2]],Table_PI[[#This Row],[Input 3]],Table_PI[[#This Row],[Input 4]],'Customer Information'!$AR$12,103,ROW())<>\"No Rebate\"),MeasureCalc(Table_PI[[#This Row],[Hide:\nFormula Name]],Table_SummaryPI[[#This Row],[Quantity]],Table_PI[[#This Row],[List 1]],Table_PI[[#This Row],[List 2]],Table_PI[[#This Row],[List 3]],Table_PI[[#This Row],[Size]],Table_PI[[#This Row],[Input 1]],Table_PI[[#This Row],[Input 2]],Table_PI[[#This Row],[Input 3]],Table_PI[[#This Row],[Input 4]],'Customer Information'!$AR$12,103,ROW()),\"\"),\"\")","v":""},{"$f":"IF(Table_PI[[#This Row],[Input 4]]<>\"\",Table_PI[[#This Row],[Input 4]],\"\")","v":""},{"$f":"IF(Table_PI[[#This Row],[Quantity]]=\"\",\"\",Table_PI[[#This Row],[Quantity]])","v":""},{"$f":"IF(Table_PI[[#This Row],[Notes]]=\"\",\"\",Table_PI[[#This Row],[Notes]])","v":""},{"$f":"IF(OR(Table_PI[[#This Row],[Hide:\nBaseline kWh]]=\"\",Table_PI[[#This Row],[Hide:\nBaseline kWh]]=0),\"\",Table_PI[[#This Row],[Hide:\nBaseline kWh]])","v":""},{"$f":"IF(OR(Table_PI[[#This Row],[Hide:\nBaseline kW]]=\"\",Table_PI[[#This Row],[Hide:\nBaseline kW]]=0),\"\",Table_PI[[#This Row],[Hide:\nBaseline kW]])","v":""},{"$f":"IF(OR(Table_PI[[#This Row],[Hide:\nProposed kWh]]=\"\",Table_PI[[#This Row],[Hide:\nProposed kWh]]=0),\"\",Table_PI[[#This Row],[Hide:\nProposed kWh]])","v":""},{"$f":"IF(OR(Table_PI[[#This Row],[Hide:\nProposed kW]]=\"\",Table_PI[[#This Row],[Hide:\nProposed kW]]=0),\"\",Table_PI[[#This Row],[Hide:\nProposed kW]])","v":""},{"$f":"IF(OR(Table_PI[[#This Row],[Rebate]]=\"\",Table_PI[[#This Row],[Rebate]]=0),\"\",Table_PI[[#This Row],[Rebate]])","v":""},{"$f":"IF(OR(Table_PI[[#This Row],[Hide:\nIncremental Cost]]=\"\",Table_PI[[#This Row],[Hide:\nIncremental Cost]]=0),\"\",Table_PI[[#This Row],[Hide:\nIncremental Cost]])","v":""},{"$f":"IFERROR(IF(Table_SummaryPI[[#This Row],[kWhSavings]]=\"\",\"\",ROUND(Table_SummaryPI[[#This Row],[kWhSavings]]/$AG$401*'Customer Information'!$BC$17,2)),0)","v":""},{"$f":"IF(OR(Table_PI[[#This Row],[Annual kWh]]=\"\",Table_PI[[#This Row],[Annual kWh]]=0),\"\",Table_PI[[#This Row],[Annual kWh]])","v":""},{"$f":"IF(OR(Table_PI[[#This Row],[Peak kW]]=\"\",Table_PI[[#This Row],[Peak kW]]=0),\"\",Table_PI[[#This Row],[Peak kW]])","v":""},{"$f":"IFERROR(IF(Table_SummaryPI[[#This Row],[kWhSavings]]=\"\",\"\",$AU$9*Table_SummaryPI[[#This Row],[kWhSavings]]),0)","v":""},{"$f":"IFERROR(IF(Table_SummaryPI[[#This Row],[kWhSavings]]=\"\",\"\",$AU$14*Table_SummaryPI[[#This Row],[kWhSavings]]),0)","v":""},{"$f":"IFERROR(IF(Table_SummaryPI[[#This Row],[kWhSavings]]=\"\",\"\",$AU$18*Table_SummaryPI[[#This Row],[kWhSavings]]),0)","v":""},{"$f":"IFERROR(IF(Table_SummaryPI[[#This Row],[kWhSavings]]=\"\",\"\",$AU$22*Table_SummaryPI[[#This Row],[kWhSavings]]),0)","v":""},{"$f":"IFERROR(IF(MeasureCalc(Table_PI[[#This Row],[Hide:\nFormula Name]],Table_SummaryPI[[#This Row],[Quantity]],Table_PI[[#This Row],[List 1]],Table_PI[[#This Row],[List 2]],Table_PI[[#This Row],[List 3]],Table_PI[[#This Row],[Size]],Table_PI[[#This Row],[Input 1]],Table_PI[[#This Row],[Input 2]],Table_PI[[#This Row],[Input 3]],Table_PI[[#This Row],[Input 4]],'Customer Information'!$AR$12,200,ROW())<>\"No Rebate\",MeasureCalc(Table_PI[[#This Row],[Hide:\nFormula Name]],Table_SummaryPI[[#This Row],[Quantity]],Table_PI[[#This Row],[List 1]],Table_PI[[#This Row],[List 2]],Table_PI[[#This Row],[List 3]],Table_PI[[#This Row],[Size]],Table_PI[[#This Row],[Input 1]],Table_PI[[#This Row],[Input 2]],Table_PI[[#This Row],[Input 3]],Table_PI[[#This Row],[Input 4]],'Customer Information'!$AR$12,200,ROW()),\"\"),\"\")","v":""},{"$f":"IFERROR(IF(MeasureCalc(Table_PI[[#This Row],[Hide:\nFormula Name]],Table_SummaryPI[[#This Row],[Quantity]],Table_PI[[#This Row],[List 1]],Table_PI[[#This Row],[List 2]],Table_PI[[#This Row],[List 3]],Table_PI[[#This Row],[Size]],Table_PI[[#This Row],[Input 1]],Table_PI[[#This Row],[Input 2]],Table_PI[[#This Row],[Input 3]],Table_PI[[#This Row],[Input 4]],'Customer Information'!$AR$12,201,ROW())<>\"No Rebate\",MeasureCalc(Table_PI[[#This Row],[Hide:\nFormula Name]],Table_SummaryPI[[#This Row],[Quantity]],Table_PI[[#This Row],[List 1]],Table_PI[[#This Row],[List 2]],Table_PI[[#This Row],[List 3]],Table_PI[[#This Row],[Size]],Table_PI[[#This Row],[Input 1]],Table_PI[[#This Row],[Input 2]],Table_PI[[#This Row],[Input 3]],Table_PI[[#This Row],[Input 4]],'Customer Information'!$AR$12,201,ROW()),\"\"),\"\")","v":""},null,null,{"$f":"0.89*38","v":33.82},"lbs. Carbon / Tree (Deciduous)",null,null,{"$f":"(AQ16+AQ17)*AQ18*AU16","v":6.0493513562551032E-2},"Tons CO2 Sequestered / Tree"]
[{"$f":"Table_PI[[#This Row],[Line No.]]","v":""},{"$f":"IF(Table_SummaryPI[[#This Row],[MeassureCategory]]<>\"\",CONCATENATE(Table_SummaryPI[[#This Row],[MeassureCategory]],  \" - \", Table_SummaryPI[[#This Row],[ProposedMeasureCategory]],  \" - \", TEXT(Table_SummaryPI[[#This Row],[Size]],\"#,##0.00\"),\" \",Table_SummaryPI[[#This Row],[SizeUnit]]),\"\")","v":""},{"$f":"SUBSTITUTE(Table_PI[[#This Row],[Measure]],\"     \",\"\",1)","v":""},{"$f":"IF(Table_PI[[#This Row],[List 1]]<>\"\",Table_PI[[#This Row],[List 1]],\"\")","v":""},{"$f":"IF(Table_PI[[#This Row],[List 2]]<>\"\",Table_PI[[#This Row],[List 2]],\"\")","v":""},{"$f":"IF(Table_PI[[#This Row],[List 3]]<>\"\",Table_PI[[#This Row],[List 3]],\"\")","v":""},{"$f":"IF(Table_PI[[#This Row],[Manufacturer]]=\"\",\"\",Table_PI[[#This Row],[Manufacturer]])","v":""},{"$f":"IF(Table_PI[[#This Row],[Model Number]]=\"\",\"\",Table_PI[[#This Row],[Model Number]])","v":""},{"$f":"IF(Table_PI[[#This Row],[Serial Number(s)]]=\"\",\"\",Table_PI[[#This Row],[Serial Number(s)]])","v":""},null,{"$f":"IF(Table_PI[[#This Row],[Size]]=\"\",\"\",Table_PI[[#This Row],[Size]])","v":""},null,{"$f":"IFERROR(IF(AND(MeasureCalc(Table_PI[[#This Row],[Hide:\nFormula Name]],Table_SummaryPI[[#This Row],[Quantity]],Table_PI[[#This Row],[List 1]],Table_PI[[#This Row],[List 2]],Table_PI[[#This Row],[List 3]],Table_PI[[#This Row],[Size]],Table_PI[[#This Row],[Input 1]],Table_PI[[#This Row],[Input 2]],Table_PI[[#This Row],[Input 3]],Table_PI[[#This Row],[Input 4]],'Customer Information'!$AR$12,100,ROW())<>0,MeasureCalc(Table_PI[[#This Row],[Hide:\nFormula Name]],Table_SummaryPI[[#This Row],[Quantity]],Table_PI[[#This Row],[List 1]],Table_PI[[#This Row],[List 2]],Table_PI[[#This Row],[List 3]],Table_PI[[#This Row],[Size]],Table_PI[[#This Row],[Input 1]],Table_PI[[#This Row],[Input 2]],Table_PI[[#This Row],[Input 3]],Table_PI[[#This Row],[Input 4]],'Customer Information'!$AR$12,100,ROW())<>\"No Rebate\"),MeasureCalc(Table_PI[[#This Row],[Hide:\nFormula Name]],Table_SummaryPI[[#This Row],[Quantity]],Table_PI[[#This Row],[List 1]],Table_PI[[#This Row],[List 2]],Table_PI[[#This Row],[List 3]],Table_PI[[#This Row],[Size]],Table_PI[[#This Row],[Input 1]],Table_PI[[#This Row],[Input 2]],Table_PI[[#This Row],[Input 3]],Table_PI[[#This Row],[Input 4]],'Customer Information'!$AR$12,100,ROW()),\"\"),\"\")","v":""},{"$f":"IF(Table_PI[[#This Row],[Input 1]]<>\"\",Table_PI[[#This Row],[Input 1]],\"\")","v":""},null,{"$f":"IFERROR(IF(AND(MeasureCalc(Table_PI[[#This Row],[Hide:\nFormula Name]],Table_SummaryPI[[#This Row],[Quantity]],Table_PI[[#This Row],[List 1]],Table_PI[[#This Row],[List 2]],Table_PI[[#This Row],[List 3]],Table_PI[[#This Row],[Size]],Table_PI[[#This Row],[Input 1]],Table_PI[[#This Row],[Input 2]],Table_PI[[#This Row],[Input 3]],Table_PI[[#This Row],[Input 4]],'Customer Information'!$AR$12,101,ROW())<>0,MeasureCalc(Table_PI[[#This Row],[Hide:\nFormula Name]],Table_SummaryPI[[#This Row],[Quantity]],Table_PI[[#This Row],[List 1]],Table_PI[[#This Row],[List 2]],Table_PI[[#This Row],[List 3]],Table_PI[[#This Row],[Size]],Table_PI[[#This Row],[Input 1]],Table_PI[[#This Row],[Input 2]],Table_PI[[#This Row],[Input 3]],Table_PI[[#This Row],[Input 4]],'Customer Information'!$AR$12,101,ROW())<>\"No Rebate\"),MeasureCalc(Table_PI[[#This Row],[Hide:\nFormula Name]],Table_SummaryPI[[#This Row],[Quantity]],Table_PI[[#This Row],[List 1]],Table_PI[[#This Row],[List 2]],Table_PI[[#This Row],[List 3]],Table_PI[[#This Row],[Size]],Table_PI[[#This Row],[Input 1]],Table_PI[[#This Row],[Input 2]],Table_PI[[#This Row],[Input 3]],Table_PI[[#This Row],[Input 4]],'Customer Information'!$AR$12,101,ROW()),\"\"),\"\")","v":""},{"$f":"IF(Table_PI[[#This Row],[Input 2]]<>\"\",Table_PI[[#This Row],[Input 2]],\"\")","v":""},null,{"$f":"IFERROR(IF(AND(MeasureCalc(Table_PI[[#This Row],[Hide:\nFormula Name]],Table_SummaryPI[[#This Row],[Quantity]],Table_PI[[#This Row],[List 1]],Table_PI[[#This Row],[List 2]],Table_PI[[#This Row],[List 3]],Table_PI[[#This Row],[Size]],Table_PI[[#This Row],[Input 1]],Table_PI[[#This Row],[Input 2]],Table_PI[[#This Row],[Input 3]],Table_PI[[#This Row],[Input 4]],'Customer Information'!$AR$12,102,ROW())<>0,MeasureCalc(Table_PI[[#This Row],[Hide:\nFormula Name]],Table_SummaryPI[[#This Row],[Quantity]],Table_PI[[#This Row],[List 1]],Table_PI[[#This Row],[List 2]],Table_PI[[#This Row],[List 3]],Table_PI[[#This Row],[Size]],Table_PI[[#This Row],[Input 1]],Table_PI[[#This Row],[Input 2]],Table_PI[[#This Row],[Input 3]],Table_PI[[#This Row],[Input 4]],'Customer Information'!$AR$12,102,ROW())<>\"No Rebate\"),MeasureCalc(Table_PI[[#This Row],[Hide:\nFormula Name]],Table_SummaryPI[[#This Row],[Quantity]],Table_PI[[#This Row],[List 1]],Table_PI[[#This Row],[List 2]],Table_PI[[#This Row],[List 3]],Table_PI[[#This Row],[Size]],Table_PI[[#This Row],[Input 1]],Table_PI[[#This Row],[Input 2]],Table_PI[[#This Row],[Input 3]],Table_PI[[#This Row],[Input 4]],'Customer Information'!$AR$12,102,ROW()),\"\"),\"\")","v":""},{"$f":"IF(Table_PI[[#This Row],[Input 3]]<>\"\",Table_PI[[#This Row],[Input 3]],\"\")","v":""},null,{"$f":"IFERROR(IF(AND(MeasureCalc(Table_PI[[#This Row],[Hide:\nFormula Name]],Table_SummaryPI[[#This Row],[Quantity]],Table_PI[[#This Row],[List 1]],Table_PI[[#This Row],[List 2]],Table_PI[[#This Row],[List 3]],Table_PI[[#This Row],[Size]],Table_PI[[#This Row],[Input 1]],Table_PI[[#This Row],[Input 2]],Table_PI[[#This Row],[Input 3]],Table_PI[[#This Row],[Input 4]],'Customer Information'!$AR$12,103,ROW())<>0,MeasureCalc(Table_PI[[#This Row],[Hide:\nFormula Name]],Table_SummaryPI[[#This Row],[Quantity]],Table_PI[[#This Row],[List 1]],Table_PI[[#This Row],[List 2]],Table_PI[[#This Row],[List 3]],Table_PI[[#This Row],[Size]],Table_PI[[#This Row],[Input 1]],Table_PI[[#This Row],[Input 2]],Table_PI[[#This Row],[Input 3]],Table_PI[[#This Row],[Input 4]],'Customer Information'!$AR$12,103,ROW())<>\"No Rebate\"),MeasureCalc(Table_PI[[#This Row],[Hide:\nFormula Name]],Table_SummaryPI[[#This Row],[Quantity]],Table_PI[[#This Row],[List 1]],Table_PI[[#This Row],[List 2]],Table_PI[[#This Row],[List 3]],Table_PI[[#This Row],[Size]],Table_PI[[#This Row],[Input 1]],Table_PI[[#This Row],[Input 2]],Table_PI[[#This Row],[Input 3]],Table_PI[[#This Row],[Input 4]],'Customer Information'!$AR$12,103,ROW()),\"\"),\"\")","v":""},{"$f":"IF(Table_PI[[#This Row],[Input 4]]<>\"\",Table_PI[[#This Row],[Input 4]],\"\")","v":""},{"$f":"IF(Table_PI[[#This Row],[Quantity]]=\"\",\"\",Table_PI[[#This Row],[Quantity]])","v":""},{"$f":"IF(Table_PI[[#This Row],[Notes]]=\"\",\"\",Table_PI[[#This Row],[Notes]])","v":""},{"$f":"IF(OR(Table_PI[[#This Row],[Hide:\nBaseline kWh]]=\"\",Table_PI[[#This Row],[Hide:\nBaseline kWh]]=0),\"\",Table_PI[[#This Row],[Hide:\nBaseline kWh]])","v":""},{"$f":"IF(OR(Table_PI[[#This Row],[Hide:\nBaseline kW]]=\"\",Table_PI[[#This Row],[Hide:\nBaseline kW]]=0),\"\",Table_PI[[#This Row],[Hide:\nBaseline kW]])","v":""},{"$f":"IF(OR(Table_PI[[#This Row],[Hide:\nProposed kWh]]=\"\",Table_PI[[#This Row],[Hide:\nProposed kWh]]=0),\"\",Table_PI[[#This Row],[Hide:\nProposed kWh]])","v":""},{"$f":"IF(OR(Table_PI[[#This Row],[Hide:\nProposed kW]]=\"\",Table_PI[[#This Row],[Hide:\nProposed kW]]=0),\"\",Table_PI[[#This Row],[Hide:\nProposed kW]])","v":""},{"$f":"IF(OR(Table_PI[[#This Row],[Rebate]]=\"\",Table_PI[[#This Row],[Rebate]]=0),\"\",Table_PI[[#This Row],[Rebate]])","v":""},{"$f":"IF(OR(Table_PI[[#This Row],[Hide:\nIncremental Cost]]=\"\",Table_PI[[#This Row],[Hide:\nIncremental Cost]]=0),\"\",Table_PI[[#This Row],[Hide:\nIncremental Cost]])","v":""},{"$f":"IFERROR(IF(Table_SummaryPI[[#This Row],[kWhSavings]]=\"\",\"\",ROUND(Table_SummaryPI[[#This Row],[kWhSavings]]/$AG$401*'Customer Information'!$BC$17,2)),0)","v":""},{"$f":"IF(OR(Table_PI[[#This Row],[Annual kWh]]=\"\",Table_PI[[#This Row],[Annual kWh]]=0),\"\",Table_PI[[#This Row],[Annual kWh]])","v":""},{"$f":"IF(OR(Table_PI[[#This Row],[Peak kW]]=\"\",Table_PI[[#This Row],[Peak kW]]=0),\"\",Table_PI[[#This Row],[Peak kW]])","v":""},{"$f":"IFERROR(IF(Table_SummaryPI[[#This Row],[kWhSavings]]=\"\",\"\",$AU$9*Table_SummaryPI[[#This Row],[kWhSavings]]),0)","v":""},{"$f":"IFERROR(IF(Table_SummaryPI[[#This Row],[kWhSavings]]=\"\",\"\",$AU$14*Table_SummaryPI[[#This Row],[kWhSavings]]),0)","v":""},{"$f":"IFERROR(IF(Table_SummaryPI[[#This Row],[kWhSavings]]=\"\",\"\",$AU$18*Table_SummaryPI[[#This Row],[kWhSavings]]),0)","v":""},{"$f":"IFERROR(IF(Table_SummaryPI[[#This Row],[kWhSavings]]=\"\",\"\",$AU$22*Table_SummaryPI[[#This Row],[kWhSavings]]),0)","v":""},{"$f":"IFERROR(IF(MeasureCalc(Table_PI[[#This Row],[Hide:\nFormula Name]],Table_SummaryPI[[#This Row],[Quantity]],Table_PI[[#This Row],[List 1]],Table_PI[[#This Row],[List 2]],Table_PI[[#This Row],[List 3]],Table_PI[[#This Row],[Size]],Table_PI[[#This Row],[Input 1]],Table_PI[[#This Row],[Input 2]],Table_PI[[#This Row],[Input 3]],Table_PI[[#This Row],[Input 4]],'Customer Information'!$AR$12,200,ROW())<>\"No Rebate\",MeasureCalc(Table_PI[[#This Row],[Hide:\nFormula Name]],Table_SummaryPI[[#This Row],[Quantity]],Table_PI[[#This Row],[List 1]],Table_PI[[#This Row],[List 2]],Table_PI[[#This Row],[List 3]],Table_PI[[#This Row],[Size]],Table_PI[[#This Row],[Input 1]],Table_PI[[#This Row],[Input 2]],Table_PI[[#This Row],[Input 3]],Table_PI[[#This Row],[Input 4]],'Customer Information'!$AR$12,200,ROW()),\"\"),\"\")","v":""},{"$f":"IFERROR(IF(MeasureCalc(Table_PI[[#This Row],[Hide:\nFormula Name]],Table_SummaryPI[[#This Row],[Quantity]],Table_PI[[#This Row],[List 1]],Table_PI[[#This Row],[List 2]],Table_PI[[#This Row],[List 3]],Table_PI[[#This Row],[Size]],Table_PI[[#This Row],[Input 1]],Table_PI[[#This Row],[Input 2]],Table_PI[[#This Row],[Input 3]],Table_PI[[#This Row],[Input 4]],'Customer Information'!$AR$12,201,ROW())<>\"No Rebate\",MeasureCalc(Table_PI[[#This Row],[Hide:\nFormula Name]],Table_SummaryPI[[#This Row],[Quantity]],Table_PI[[#This Row],[List 1]],Table_PI[[#This Row],[List 2]],Table_PI[[#This Row],[List 3]],Table_PI[[#This Row],[Size]],Table_PI[[#This Row],[Input 1]],Table_PI[[#This Row],[Input 2]],Table_PI[[#This Row],[Input 3]],Table_PI[[#This Row],[Input 4]],'Customer Information'!$AR$12,201,ROW()),\"\"),\"\")","v":""},null,null,{"$f":"44/12","v":3.6666666666666665},"CO2 / Carbon (Units)",null,null,{"$f":"(1/AU17)/(1/AU9)","v":9.0429201283704734E-3},"# Seedlings grown for 10 yrs. / kWh"]
[{"$f":"Table_PI[[#This Row],[Line No.]]","v":""},{"$f":"IF(Table_SummaryPI[[#This Row],[MeassureCategory]]<>\"\",CONCATENATE(Table_SummaryPI[[#This Row],[MeassureCategory]],  \" - \", Table_SummaryPI[[#This Row],[ProposedMeasureCategory]],  \" - \", TEXT(Table_SummaryPI[[#This Row],[Size]],\"#,##0.00\"),\" \",Table_SummaryPI[[#This Row],[SizeUnit]]),\"\")","v":""},{"$f":"SUBSTITUTE(Table_PI[[#This Row],[Measure]],\"     \",\"\",1)","v":""},{"$f":"IF(Table_PI[[#This Row],[List 1]]<>\"\",Table_PI[[#This Row],[List 1]],\"\")","v":""},{"$f":"IF(Table_PI[[#This Row],[List 2]]<>\"\",Table_PI[[#This Row],[List 2]],\"\")","v":""},{"$f":"IF(Table_PI[[#This Row],[List 3]]<>\"\",Table_PI[[#This Row],[List 3]],\"\")","v":""},{"$f":"IF(Table_PI[[#This Row],[Manufacturer]]=\"\",\"\",Table_PI[[#This Row],[Manufacturer]])","v":""},{"$f":"IF(Table_PI[[#This Row],[Model Number]]=\"\",\"\",Table_PI[[#This Row],[Model Number]])","v":""},{"$f":"IF(Table_PI[[#This Row],[Serial Number(s)]]=\"\",\"\",Table_PI[[#This Row],[Serial Number(s)]])","v":""},null,{"$f":"IF(Table_PI[[#This Row],[Size]]=\"\",\"\",Table_PI[[#This Row],[Size]])","v":""},null,{"$f":"IFERROR(IF(AND(MeasureCalc(Table_PI[[#This Row],[Hide:\nFormula Name]],Table_SummaryPI[[#This Row],[Quantity]],Table_PI[[#This Row],[List 1]],Table_PI[[#This Row],[List 2]],Table_PI[[#This Row],[List 3]],Table_PI[[#This Row],[Size]],Table_PI[[#This Row],[Input 1]],Table_PI[[#This Row],[Input 2]],Table_PI[[#This Row],[Input 3]],Table_PI[[#This Row],[Input 4]],'Customer Information'!$AR$12,100,ROW())<>0,MeasureCalc(Table_PI[[#This Row],[Hide:\nFormula Name]],Table_SummaryPI[[#This Row],[Quantity]],Table_PI[[#This Row],[List 1]],Table_PI[[#This Row],[List 2]],Table_PI[[#This Row],[List 3]],Table_PI[[#This Row],[Size]],Table_PI[[#This Row],[Input 1]],Table_PI[[#This Row],[Input 2]],Table_PI[[#This Row],[Input 3]],Table_PI[[#This Row],[Input 4]],'Customer Information'!$AR$12,100,ROW())<>\"No Rebate\"),MeasureCalc(Table_PI[[#This Row],[Hide:\nFormula Name]],Table_SummaryPI[[#This Row],[Quantity]],Table_PI[[#This Row],[List 1]],Table_PI[[#This Row],[List 2]],Table_PI[[#This Row],[List 3]],Table_PI[[#This Row],[Size]],Table_PI[[#This Row],[Input 1]],Table_PI[[#This Row],[Input 2]],Table_PI[[#This Row],[Input 3]],Table_PI[[#This Row],[Input 4]],'Customer Information'!$AR$12,100,ROW()),\"\"),\"\")","v":""},{"$f":"IF(Table_PI[[#This Row],[Input 1]]<>\"\",Table_PI[[#This Row],[Input 1]],\"\")","v":""},null,{"$f":"IFERROR(IF(AND(MeasureCalc(Table_PI[[#This Row],[Hide:\nFormula Name]],Table_SummaryPI[[#This Row],[Quantity]],Table_PI[[#This Row],[List 1]],Table_PI[[#This Row],[List 2]],Table_PI[[#This Row],[List 3]],Table_PI[[#This Row],[Size]],Table_PI[[#This Row],[Input 1]],Table_PI[[#This Row],[Input 2]],Table_PI[[#This Row],[Input 3]],Table_PI[[#This Row],[Input 4]],'Customer Information'!$AR$12,101,ROW())<>0,MeasureCalc(Table_PI[[#This Row],[Hide:\nFormula Name]],Table_SummaryPI[[#This Row],[Quantity]],Table_PI[[#This Row],[List 1]],Table_PI[[#This Row],[List 2]],Table_PI[[#This Row],[List 3]],Table_PI[[#This Row],[Size]],Table_PI[[#This Row],[Input 1]],Table_PI[[#This Row],[Input 2]],Table_PI[[#This Row],[Input 3]],Table_PI[[#This Row],[Input 4]],'Customer Information'!$AR$12,101,ROW())<>\"No Rebate\"),MeasureCalc(Table_PI[[#This Row],[Hide:\nFormula Name]],Table_SummaryPI[[#This Row],[Quantity]],Table_PI[[#This Row],[List 1]],Table_PI[[#This Row],[List 2]],Table_PI[[#This Row],[List 3]],Table_PI[[#This Row],[Size]],Table_PI[[#This Row],[Input 1]],Table_PI[[#This Row],[Input 2]],Table_PI[[#This Row],[Input 3]],Table_PI[[#This Row],[Input 4]],'Customer Information'!$AR$12,101,ROW()),\"\"),\"\")","v":""},{"$f":"IF(Table_PI[[#This Row],[Input 2]]<>\"\",Table_PI[[#This Row],[Input 2]],\"\")","v":""},null,{"$f":"IFERROR(IF(AND(MeasureCalc(Table_PI[[#This Row],[Hide:\nFormula Name]],Table_SummaryPI[[#This Row],[Quantity]],Table_PI[[#This Row],[List 1]],Table_PI[[#This Row],[List 2]],Table_PI[[#This Row],[List 3]],Table_PI[[#This Row],[Size]],Table_PI[[#This Row],[Input 1]],Table_PI[[#This Row],[Input 2]],Table_PI[[#This Row],[Input 3]],Table_PI[[#This Row],[Input 4]],'Customer Information'!$AR$12,102,ROW())<>0,MeasureCalc(Table_PI[[#This Row],[Hide:\nFormula Name]],Table_SummaryPI[[#This Row],[Quantity]],Table_PI[[#This Row],[List 1]],Table_PI[[#This Row],[List 2]],Table_PI[[#This Row],[List 3]],Table_PI[[#This Row],[Size]],Table_PI[[#This Row],[Input 1]],Table_PI[[#This Row],[Input 2]],Table_PI[[#This Row],[Input 3]],Table_PI[[#This Row],[Input 4]],'Customer Information'!$AR$12,102,ROW())<>\"No Rebate\"),MeasureCalc(Table_PI[[#This Row],[Hide:\nFormula Name]],Table_SummaryPI[[#This Row],[Quantity]],Table_PI[[#This Row],[List 1]],Table_PI[[#This Row],[List 2]],Table_PI[[#This Row],[List 3]],Table_PI[[#This Row],[Size]],Table_PI[[#This Row],[Input 1]],Table_PI[[#This Row],[Input 2]],Table_PI[[#This Row],[Input 3]],Table_PI[[#This Row],[Input 4]],'Customer Information'!$AR$12,102,ROW()),\"\"),\"\")","v":""},{"$f":"IF(Table_PI[[#This Row],[Input 3]]<>\"\",Table_PI[[#This Row],[Input 3]],\"\")","v":""},null,{"$f":"IFERROR(IF(AND(MeasureCalc(Table_PI[[#This Row],[Hide:\nFormula Name]],Table_SummaryPI[[#This Row],[Quantity]],Table_PI[[#This Row],[List 1]],Table_PI[[#This Row],[List 2]],Table_PI[[#This Row],[List 3]],Table_PI[[#This Row],[Size]],Table_PI[[#This Row],[Input 1]],Table_PI[[#This Row],[Input 2]],Table_PI[[#This Row],[Input 3]],Table_PI[[#This Row],[Input 4]],'Customer Information'!$AR$12,103,ROW())<>0,MeasureCalc(Table_PI[[#This Row],[Hide:\nFormula Name]],Table_SummaryPI[[#This Row],[Quantity]],Table_PI[[#This Row],[List 1]],Table_PI[[#This Row],[List 2]],Table_PI[[#This Row],[List 3]],Table_PI[[#This Row],[Size]],Table_PI[[#This Row],[Input 1]],Table_PI[[#This Row],[Input 2]],Table_PI[[#This Row],[Input 3]],Table_PI[[#This Row],[Input 4]],'Customer Information'!$AR$12,103,ROW())<>\"No Rebate\"),MeasureCalc(Table_PI[[#This Row],[Hide:\nFormula Name]],Table_SummaryPI[[#This Row],[Quantity]],Table_PI[[#This Row],[List 1]],Table_PI[[#This Row],[List 2]],Table_PI[[#This Row],[List 3]],Table_PI[[#This Row],[Size]],Table_PI[[#This Row],[Input 1]],Table_PI[[#This Row],[Input 2]],Table_PI[[#This Row],[Input 3]],Table_PI[[#This Row],[Input 4]],'Customer Information'!$AR$12,103,ROW()),\"\"),\"\")","v":""},{"$f":"IF(Table_PI[[#This Row],[Input 4]]<>\"\",Table_PI[[#This Row],[Input 4]],\"\")","v":""},{"$f":"IF(Table_PI[[#This Row],[Quantity]]=\"\",\"\",Table_PI[[#This Row],[Quantity]])","v":""},{"$f":"IF(Table_PI[[#This Row],[Notes]]=\"\",\"\",Table_PI[[#This Row],[Notes]])","v":""},{"$f":"IF(OR(Table_PI[[#This Row],[Hide:\nBaseline kWh]]=\"\",Table_PI[[#This Row],[Hide:\nBaseline kWh]]=0),\"\",Table_PI[[#This Row],[Hide:\nBaseline kWh]])","v":""},{"$f":"IF(OR(Table_PI[[#This Row],[Hide:\nBaseline kW]]=\"\",Table_PI[[#This Row],[Hide:\nBaseline kW]]=0),\"\",Table_PI[[#This Row],[Hide:\nBaseline kW]])","v":""},{"$f":"IF(OR(Table_PI[[#This Row],[Hide:\nProposed kWh]]=\"\",Table_PI[[#This Row],[Hide:\nProposed kWh]]=0),\"\",Table_PI[[#This Row],[Hide:\nProposed kWh]])","v":""},{"$f":"IF(OR(Table_PI[[#This Row],[Hide:\nProposed kW]]=\"\",Table_PI[[#This Row],[Hide:\nProposed kW]]=0),\"\",Table_PI[[#This Row],[Hide:\nProposed kW]])","v":""},{"$f":"IF(OR(Table_PI[[#This Row],[Rebate]]=\"\",Table_PI[[#This Row],[Rebate]]=0),\"\",Table_PI[[#This Row],[Rebate]])","v":""},{"$f":"IF(OR(Table_PI[[#This Row],[Hide:\nIncremental Cost]]=\"\",Table_PI[[#This Row],[Hide:\nIncremental Cost]]=0),\"\",Table_PI[[#This Row],[Hide:\nIncremental Cost]])","v":""},{"$f":"IFERROR(IF(Table_SummaryPI[[#This Row],[kWhSavings]]=\"\",\"\",ROUND(Table_SummaryPI[[#This Row],[kWhSavings]]/$AG$401*'Customer Information'!$BC$17,2)),0)","v":""},{"$f":"IF(OR(Table_PI[[#This Row],[Annual kWh]]=\"\",Table_PI[[#This Row],[Annual kWh]]=0),\"\",Table_PI[[#This Row],[Annual kWh]])","v":""},{"$f":"IF(OR(Table_PI[[#This Row],[Peak kW]]=\"\",Table_PI[[#This Row],[Peak kW]]=0),\"\",Table_PI[[#This Row],[Peak kW]])","v":""},{"$f":"IFERROR(IF(Table_SummaryPI[[#This Row],[kWhSavings]]=\"\",\"\",$AU$9*Table_SummaryPI[[#This Row],[kWhSavings]]),0)","v":""},{"$f":"IFERROR(IF(Table_SummaryPI[[#This Row],[kWhSavings]]=\"\",\"\",$AU$14*Table_SummaryPI[[#This Row],[kWhSavings]]),0)","v":""},{"$f":"IFERROR(IF(Table_SummaryPI[[#This Row],[kWhSavings]]=\"\",\"\",$AU$18*Table_SummaryPI[[#This Row],[kWhSavings]]),0)","v":""},{"$f":"IFERROR(IF(Table_SummaryPI[[#This Row],[kWhSavings]]=\"\",\"\",$AU$22*Table_SummaryPI[[#This Row],[kWhSavings]]),0)","v":""},{"$f":"IFERROR(IF(MeasureCalc(Table_PI[[#This Row],[Hide:\nFormula Name]],Table_SummaryPI[[#This Row],[Quantity]],Table_PI[[#This Row],[List 1]],Table_PI[[#This Row],[List 2]],Table_PI[[#This Row],[List 3]],Table_PI[[#This Row],[Size]],Table_PI[[#This Row],[Input 1]],Table_PI[[#This Row],[Input 2]],Table_PI[[#This Row],[Input 3]],Table_PI[[#This Row],[Input 4]],'Customer Information'!$AR$12,200,ROW())<>\"No Rebate\",MeasureCalc(Table_PI[[#This Row],[Hide:\nFormula Name]],Table_SummaryPI[[#This Row],[Quantity]],Table_PI[[#This Row],[List 1]],Table_PI[[#This Row],[List 2]],Table_PI[[#This Row],[List 3]],Table_PI[[#This Row],[Size]],Table_PI[[#This Row],[Input 1]],Table_PI[[#This Row],[Input 2]],Table_PI[[#This Row],[Input 3]],Table_PI[[#This Row],[Input 4]],'Customer Information'!$AR$12,200,ROW()),\"\"),\"\")","v":""},{"$f":"IFERROR(IF(MeasureCalc(Table_PI[[#This Row],[Hide:\nFormula Name]],Table_SummaryPI[[#This Row],[Quantity]],Table_PI[[#This Row],[List 1]],Table_PI[[#This Row],[List 2]],Table_PI[[#This Row],[List 3]],Table_PI[[#This Row],[Size]],Table_PI[[#This Row],[Input 1]],Table_PI[[#This Row],[Input 2]],Table_PI[[#This Row],[Input 3]],Table_PI[[#This Row],[Input 4]],'Customer Information'!$AR$12,201,ROW())<>\"No Rebate\",MeasureCalc(Table_PI[[#This Row],[Hide:\nFormula Name]],Table_SummaryPI[[#This Row],[Quantity]],Table_PI[[#This Row],[List 1]],Table_PI[[#This Row],[List 2]],Table_PI[[#This Row],[List 3]],Table_PI[[#This Row],[Size]],Table_PI[[#This Row],[Input 1]],Table_PI[[#This Row],[Input 2]],Table_PI[[#This Row],[Input 3]],Table_PI[[#This Row],[Input 4]],'Customer Information'!$AR$12,201,ROW()),\"\"),\"\")","v":""},null,null,"Reference: https://www.epa.gov/energy/greenhouse-gases-equivalencies-calculator-calculations-and-references"]
[{"$f":"Table_PI[[#This Row],[Line No.]]","v":""},{"$f":"IF(Table_SummaryPI[[#This Row],[MeassureCategory]]<>\"\",CONCATENATE(Table_SummaryPI[[#This Row],[MeassureCategory]],  \" - \", Table_SummaryPI[[#This Row],[ProposedMeasureCategory]],  \" - \", TEXT(Table_SummaryPI[[#This Row],[Size]],\"#,##0.00\"),\" \",Table_SummaryPI[[#This Row],[SizeUnit]]),\"\")","v":""},{"$f":"SUBSTITUTE(Table_PI[[#This Row],[Measure]],\"     \",\"\",1)","v":""},{"$f":"IF(Table_PI[[#This Row],[List 1]]<>\"\",Table_PI[[#This Row],[List 1]],\"\")","v":""},{"$f":"IF(Table_PI[[#This Row],[List 2]]<>\"\",Table_PI[[#This Row],[List 2]],\"\")","v":""},{"$f":"IF(Table_PI[[#This Row],[List 3]]<>\"\",Table_PI[[#This Row],[List 3]],\"\")","v":""},{"$f":"IF(Table_PI[[#This Row],[Manufacturer]]=\"\",\"\",Table_PI[[#This Row],[Manufacturer]])","v":""},{"$f":"IF(Table_PI[[#This Row],[Model Number]]=\"\",\"\",Table_PI[[#This Row],[Model Number]])","v":""},{"$f":"IF(Table_PI[[#This Row],[Serial Number(s)]]=\"\",\"\",Table_PI[[#This Row],[Serial Number(s)]])","v":""},null,{"$f":"IF(Table_PI[[#This Row],[Size]]=\"\",\"\",Table_PI[[#This Row],[Size]])","v":""},null,{"$f":"IFERROR(IF(AND(MeasureCalc(Table_PI[[#This Row],[Hide:\nFormula Name]],Table_SummaryPI[[#This Row],[Quantity]],Table_PI[[#This Row],[List 1]],Table_PI[[#This Row],[List 2]],Table_PI[[#This Row],[List 3]],Table_PI[[#This Row],[Size]],Table_PI[[#This Row],[Input 1]],Table_PI[[#This Row],[Input 2]],Table_PI[[#This Row],[Input 3]],Table_PI[[#This Row],[Input 4]],'Customer Information'!$AR$12,100,ROW())<>0,MeasureCalc(Table_PI[[#This Row],[Hide:\nFormula Name]],Table_SummaryPI[[#This Row],[Quantity]],Table_PI[[#This Row],[List 1]],Table_PI[[#This Row],[List 2]],Table_PI[[#This Row],[List 3]],Table_PI[[#This Row],[Size]],Table_PI[[#This Row],[Input 1]],Table_PI[[#This Row],[Input 2]],Table_PI[[#This Row],[Input 3]],Table_PI[[#This Row],[Input 4]],'Customer Information'!$AR$12,100,ROW())<>\"No Rebate\"),MeasureCalc(Table_PI[[#This Row],[Hide:\nFormula Name]],Table_SummaryPI[[#This Row],[Quantity]],Table_PI[[#This Row],[List 1]],Table_PI[[#This Row],[List 2]],Table_PI[[#This Row],[List 3]],Table_PI[[#This Row],[Size]],Table_PI[[#This Row],[Input 1]],Table_PI[[#This Row],[Input 2]],Table_PI[[#This Row],[Input 3]],Table_PI[[#This Row],[Input 4]],'Customer Information'!$AR$12,100,ROW()),\"\"),\"\")","v":""},{"$f":"IF(Table_PI[[#This Row],[Input 1]]<>\"\",Table_PI[[#This Row],[Input 1]],\"\")","v":""},null,{"$f":"IFERROR(IF(AND(MeasureCalc(Table_PI[[#This Row],[Hide:\nFormula Name]],Table_SummaryPI[[#This Row],[Quantity]],Table_PI[[#This Row],[List 1]],Table_PI[[#This Row],[List 2]],Table_PI[[#This Row],[List 3]],Table_PI[[#This Row],[Size]],Table_PI[[#This Row],[Input 1]],Table_PI[[#This Row],[Input 2]],Table_PI[[#This Row],[Input 3]],Table_PI[[#This Row],[Input 4]],'Customer Information'!$AR$12,101,ROW())<>0,MeasureCalc(Table_PI[[#This Row],[Hide:\nFormula Name]],Table_SummaryPI[[#This Row],[Quantity]],Table_PI[[#This Row],[List 1]],Table_PI[[#This Row],[List 2]],Table_PI[[#This Row],[List 3]],Table_PI[[#This Row],[Size]],Table_PI[[#This Row],[Input 1]],Table_PI[[#This Row],[Input 2]],Table_PI[[#This Row],[Input 3]],Table_PI[[#This Row],[Input 4]],'Customer Information'!$AR$12,101,ROW())<>\"No Rebate\"),MeasureCalc(Table_PI[[#This Row],[Hide:\nFormula Name]],Table_SummaryPI[[#This Row],[Quantity]],Table_PI[[#This Row],[List 1]],Table_PI[[#This Row],[List 2]],Table_PI[[#This Row],[List 3]],Table_PI[[#This Row],[Size]],Table_PI[[#This Row],[Input 1]],Table_PI[[#This Row],[Input 2]],Table_PI[[#This Row],[Input 3]],Table_PI[[#This Row],[Input 4]],'Customer Information'!$AR$12,101,ROW()),\"\"),\"\")","v":""},{"$f":"IF(Table_PI[[#This Row],[Input 2]]<>\"\",Table_PI[[#This Row],[Input 2]],\"\")","v":""},null,{"$f":"IFERROR(IF(AND(MeasureCalc(Table_PI[[#This Row],[Hide:\nFormula Name]],Table_SummaryPI[[#This Row],[Quantity]],Table_PI[[#This Row],[List 1]],Table_PI[[#This Row],[List 2]],Table_PI[[#This Row],[List 3]],Table_PI[[#This Row],[Size]],Table_PI[[#This Row],[Input 1]],Table_PI[[#This Row],[Input 2]],Table_PI[[#This Row],[Input 3]],Table_PI[[#This Row],[Input 4]],'Customer Information'!$AR$12,102,ROW())<>0,MeasureCalc(Table_PI[[#This Row],[Hide:\nFormula Name]],Table_SummaryPI[[#This Row],[Quantity]],Table_PI[[#This Row],[List 1]],Table_PI[[#This Row],[List 2]],Table_PI[[#This Row],[List 3]],Table_PI[[#This Row],[Size]],Table_PI[[#This Row],[Input 1]],Table_PI[[#This Row],[Input 2]],Table_PI[[#This Row],[Input 3]],Table_PI[[#This Row],[Input 4]],'Customer Information'!$AR$12,102,ROW())<>\"No Rebate\"),MeasureCalc(Table_PI[[#This Row],[Hide:\nFormula Name]],Table_SummaryPI[[#This Row],[Quantity]],Table_PI[[#This Row],[List 1]],Table_PI[[#This Row],[List 2]],Table_PI[[#This Row],[List 3]],Table_PI[[#This Row],[Size]],Table_PI[[#This Row],[Input 1]],Table_PI[[#This Row],[Input 2]],Table_PI[[#This Row],[Input 3]],Table_PI[[#This Row],[Input 4]],'Customer Information'!$AR$12,102,ROW()),\"\"),\"\")","v":""},{"$f":"IF(Table_PI[[#This Row],[Input 3]]<>\"\",Table_PI[[#This Row],[Input 3]],\"\")","v":""},null,{"$f":"IFERROR(IF(AND(MeasureCalc(Table_PI[[#This Row],[Hide:\nFormula Name]],Table_SummaryPI[[#This Row],[Quantity]],Table_PI[[#This Row],[List 1]],Table_PI[[#This Row],[List 2]],Table_PI[[#This Row],[List 3]],Table_PI[[#This Row],[Size]],Table_PI[[#This Row],[Input 1]],Table_PI[[#This Row],[Input 2]],Table_PI[[#This Row],[Input 3]],Table_PI[[#This Row],[Input 4]],'Customer Information'!$AR$12,103,ROW())<>0,MeasureCalc(Table_PI[[#This Row],[Hide:\nFormula Name]],Table_SummaryPI[[#This Row],[Quantity]],Table_PI[[#This Row],[List 1]],Table_PI[[#This Row],[List 2]],Table_PI[[#This Row],[List 3]],Table_PI[[#This Row],[Size]],Table_PI[[#This Row],[Input 1]],Table_PI[[#This Row],[Input 2]],Table_PI[[#This Row],[Input 3]],Table_PI[[#This Row],[Input 4]],'Customer Information'!$AR$12,103,ROW())<>\"No Rebate\"),MeasureCalc(Table_PI[[#This Row],[Hide:\nFormula Name]],Table_SummaryPI[[#This Row],[Quantity]],Table_PI[[#This Row],[List 1]],Table_PI[[#This Row],[List 2]],Table_PI[[#This Row],[List 3]],Table_PI[[#This Row],[Size]],Table_PI[[#This Row],[Input 1]],Table_PI[[#This Row],[Input 2]],Table_PI[[#This Row],[Input 3]],Table_PI[[#This Row],[Input 4]],'Customer Information'!$AR$12,103,ROW()),\"\"),\"\")","v":""},{"$f":"IF(Table_PI[[#This Row],[Input 4]]<>\"\",Table_PI[[#This Row],[Input 4]],\"\")","v":""},{"$f":"IF(Table_PI[[#This Row],[Quantity]]=\"\",\"\",Table_PI[[#This Row],[Quantity]])","v":""},{"$f":"IF(Table_PI[[#This Row],[Notes]]=\"\",\"\",Table_PI[[#This Row],[Notes]])","v":""},{"$f":"IF(OR(Table_PI[[#This Row],[Hide:\nBaseline kWh]]=\"\",Table_PI[[#This Row],[Hide:\nBaseline kWh]]=0),\"\",Table_PI[[#This Row],[Hide:\nBaseline kWh]])","v":""},{"$f":"IF(OR(Table_PI[[#This Row],[Hide:\nBaseline kW]]=\"\",Table_PI[[#This Row],[Hide:\nBaseline kW]]=0),\"\",Table_PI[[#This Row],[Hide:\nBaseline kW]])","v":""},{"$f":"IF(OR(Table_PI[[#This Row],[Hide:\nProposed kWh]]=\"\",Table_PI[[#This Row],[Hide:\nProposed kWh]]=0),\"\",Table_PI[[#This Row],[Hide:\nProposed kWh]])","v":""},{"$f":"IF(OR(Table_PI[[#This Row],[Hide:\nProposed kW]]=\"\",Table_PI[[#This Row],[Hide:\nProposed kW]]=0),\"\",Table_PI[[#This Row],[Hide:\nProposed kW]])","v":""},{"$f":"IF(OR(Table_PI[[#This Row],[Rebate]]=\"\",Table_PI[[#This Row],[Rebate]]=0),\"\",Table_PI[[#This Row],[Rebate]])","v":""},{"$f":"IF(OR(Table_PI[[#This Row],[Hide:\nIncremental Cost]]=\"\",Table_PI[[#This Row],[Hide:\nIncremental Cost]]=0),\"\",Table_PI[[#This Row],[Hide:\nIncremental Cost]])","v":""},{"$f":"IFERROR(IF(Table_SummaryPI[[#This Row],[kWhSavings]]=\"\",\"\",ROUND(Table_SummaryPI[[#This Row],[kWhSavings]]/$AG$401*'Customer Information'!$BC$17,2)),0)","v":""},{"$f":"IF(OR(Table_PI[[#This Row],[Annual kWh]]=\"\",Table_PI[[#This Row],[Annual kWh]]=0),\"\",Table_PI[[#This Row],[Annual kWh]])","v":""},{"$f":"IF(OR(Table_PI[[#This Row],[Peak kW]]=\"\",Table_PI[[#This Row],[Peak kW]]=0),\"\",Table_PI[[#This Row],[Peak kW]])","v":""},{"$f":"IFERROR(IF(Table_SummaryPI[[#This Row],[kWhSavings]]=\"\",\"\",$AU$9*Table_SummaryPI[[#This Row],[kWhSavings]]),0)","v":""},{"$f":"IFERROR(IF(Table_SummaryPI[[#This Row],[kWhSavings]]=\"\",\"\",$AU$14*Table_SummaryPI[[#This Row],[kWhSavings]]),0)","v":""},{"$f":"IFERROR(IF(Table_SummaryPI[[#This Row],[kWhSavings]]=\"\",\"\",$AU$18*Table_SummaryPI[[#This Row],[kWhSavings]]),0)","v":""},{"$f":"IFERROR(IF(Table_SummaryPI[[#This Row],[kWhSavings]]=\"\",\"\",$AU$22*Table_SummaryPI[[#This Row],[kWhSavings]]),0)","v":""},{"$f":"IFERROR(IF(MeasureCalc(Table_PI[[#This Row],[Hide:\nFormula Name]],Table_SummaryPI[[#This Row],[Quantity]],Table_PI[[#This Row],[List 1]],Table_PI[[#This Row],[List 2]],Table_PI[[#This Row],[List 3]],Table_PI[[#This Row],[Size]],Table_PI[[#This Row],[Input 1]],Table_PI[[#This Row],[Input 2]],Table_PI[[#This Row],[Input 3]],Table_PI[[#This Row],[Input 4]],'Customer Information'!$AR$12,200,ROW())<>\"No Rebate\",MeasureCalc(Table_PI[[#This Row],[Hide:\nFormula Name]],Table_SummaryPI[[#This Row],[Quantity]],Table_PI[[#This Row],[List 1]],Table_PI[[#This Row],[List 2]],Table_PI[[#This Row],[List 3]],Table_PI[[#This Row],[Size]],Table_PI[[#This Row],[Input 1]],Table_PI[[#This Row],[Input 2]],Table_PI[[#This Row],[Input 3]],Table_PI[[#This Row],[Input 4]],'Customer Information'!$AR$12,200,ROW()),\"\"),\"\")","v":""},{"$f":"IFERROR(IF(MeasureCalc(Table_PI[[#This Row],[Hide:\nFormula Name]],Table_SummaryPI[[#This Row],[Quantity]],Table_PI[[#This Row],[List 1]],Table_PI[[#This Row],[List 2]],Table_PI[[#This Row],[List 3]],Table_PI[[#This Row],[Size]],Table_PI[[#This Row],[Input 1]],Table_PI[[#This Row],[Input 2]],Table_PI[[#This Row],[Input 3]],Table_PI[[#This Row],[Input 4]],'Customer Information'!$AR$12,201,ROW())<>\"No Rebate\",MeasureCalc(Table_PI[[#This Row],[Hide:\nFormula Name]],Table_SummaryPI[[#This Row],[Quantity]],Table_PI[[#This Row],[List 1]],Table_PI[[#This Row],[List 2]],Table_PI[[#This Row],[List 3]],Table_PI[[#This Row],[Size]],Table_PI[[#This Row],[Input 1]],Table_PI[[#This Row],[Input 2]],Table_PI[[#This Row],[Input 3]],Table_PI[[#This Row],[Input 4]],'Customer Information'!$AR$12,201,ROW()),\"\"),\"\")","v":""}]
[{"$f":"Table_PI[[#This Row],[Line No.]]","v":""},{"$f":"IF(Table_SummaryPI[[#This Row],[MeassureCategory]]<>\"\",CONCATENATE(Table_SummaryPI[[#This Row],[MeassureCategory]],  \" - \", Table_SummaryPI[[#This Row],[ProposedMeasureCategory]],  \" - \", TEXT(Table_SummaryPI[[#This Row],[Size]],\"#,##0.00\"),\" \",Table_SummaryPI[[#This Row],[SizeUnit]]),\"\")","v":""},{"$f":"SUBSTITUTE(Table_PI[[#This Row],[Measure]],\"     \",\"\",1)","v":""},{"$f":"IF(Table_PI[[#This Row],[List 1]]<>\"\",Table_PI[[#This Row],[List 1]],\"\")","v":""},{"$f":"IF(Table_PI[[#This Row],[List 2]]<>\"\",Table_PI[[#This Row],[List 2]],\"\")","v":""},{"$f":"IF(Table_PI[[#This Row],[List 3]]<>\"\",Table_PI[[#This Row],[List 3]],\"\")","v":""},{"$f":"IF(Table_PI[[#This Row],[Manufacturer]]=\"\",\"\",Table_PI[[#This Row],[Manufacturer]])","v":""},{"$f":"IF(Table_PI[[#This Row],[Model Number]]=\"\",\"\",Table_PI[[#This Row],[Model Number]])","v":""},{"$f":"IF(Table_PI[[#This Row],[Serial Number(s)]]=\"\",\"\",Table_PI[[#This Row],[Serial Number(s)]])","v":""},null,{"$f":"IF(Table_PI[[#This Row],[Size]]=\"\",\"\",Table_PI[[#This Row],[Size]])","v":""},null,{"$f":"IFERROR(IF(AND(MeasureCalc(Table_PI[[#This Row],[Hide:\nFormula Name]],Table_SummaryPI[[#This Row],[Quantity]],Table_PI[[#This Row],[List 1]],Table_PI[[#This Row],[List 2]],Table_PI[[#This Row],[List 3]],Table_PI[[#This Row],[Size]],Table_PI[[#This Row],[Input 1]],Table_PI[[#This Row],[Input 2]],Table_PI[[#This Row],[Input 3]],Table_PI[[#This Row],[Input 4]],'Customer Information'!$AR$12,100,ROW())<>0,MeasureCalc(Table_PI[[#This Row],[Hide:\nFormula Name]],Table_SummaryPI[[#This Row],[Quantity]],Table_PI[[#This Row],[List 1]],Table_PI[[#This Row],[List 2]],Table_PI[[#This Row],[List 3]],Table_PI[[#This Row],[Size]],Table_PI[[#This Row],[Input 1]],Table_PI[[#This Row],[Input 2]],Table_PI[[#This Row],[Input 3]],Table_PI[[#This Row],[Input 4]],'Customer Information'!$AR$12,100,ROW())<>\"No Rebate\"),MeasureCalc(Table_PI[[#This Row],[Hide:\nFormula Name]],Table_SummaryPI[[#This Row],[Quantity]],Table_PI[[#This Row],[List 1]],Table_PI[[#This Row],[List 2]],Table_PI[[#This Row],[List 3]],Table_PI[[#This Row],[Size]],Table_PI[[#This Row],[Input 1]],Table_PI[[#This Row],[Input 2]],Table_PI[[#This Row],[Input 3]],Table_PI[[#This Row],[Input 4]],'Customer Information'!$AR$12,100,ROW()),\"\"),\"\")","v":""},{"$f":"IF(Table_PI[[#This Row],[Input 1]]<>\"\",Table_PI[[#This Row],[Input 1]],\"\")","v":""},null,{"$f":"IFERROR(IF(AND(MeasureCalc(Table_PI[[#This Row],[Hide:\nFormula Name]],Table_SummaryPI[[#This Row],[Quantity]],Table_PI[[#This Row],[List 1]],Table_PI[[#This Row],[List 2]],Table_PI[[#This Row],[List 3]],Table_PI[[#This Row],[Size]],Table_PI[[#This Row],[Input 1]],Table_PI[[#This Row],[Input 2]],Table_PI[[#This Row],[Input 3]],Table_PI[[#This Row],[Input 4]],'Customer Information'!$AR$12,101,ROW())<>0,MeasureCalc(Table_PI[[#This Row],[Hide:\nFormula Name]],Table_SummaryPI[[#This Row],[Quantity]],Table_PI[[#This Row],[List 1]],Table_PI[[#This Row],[List 2]],Table_PI[[#This Row],[List 3]],Table_PI[[#This Row],[Size]],Table_PI[[#This Row],[Input 1]],Table_PI[[#This Row],[Input 2]],Table_PI[[#This Row],[Input 3]],Table_PI[[#This Row],[Input 4]],'Customer Information'!$AR$12,101,ROW())<>\"No Rebate\"),MeasureCalc(Table_PI[[#This Row],[Hide:\nFormula Name]],Table_SummaryPI[[#This Row],[Quantity]],Table_PI[[#This Row],[List 1]],Table_PI[[#This Row],[List 2]],Table_PI[[#This Row],[List 3]],Table_PI[[#This Row],[Size]],Table_PI[[#This Row],[Input 1]],Table_PI[[#This Row],[Input 2]],Table_PI[[#This Row],[Input 3]],Table_PI[[#This Row],[Input 4]],'Customer Information'!$AR$12,101,ROW()),\"\"),\"\")","v":""},{"$f":"IF(Table_PI[[#This Row],[Input 2]]<>\"\",Table_PI[[#This Row],[Input 2]],\"\")","v":""},null,{"$f":"IFERROR(IF(AND(MeasureCalc(Table_PI[[#This Row],[Hide:\nFormula Name]],Table_SummaryPI[[#This Row],[Quantity]],Table_PI[[#This Row],[List 1]],Table_PI[[#This Row],[List 2]],Table_PI[[#This Row],[List 3]],Table_PI[[#This Row],[Size]],Table_PI[[#This Row],[Input 1]],Table_PI[[#This Row],[Input 2]],Table_PI[[#This Row],[Input 3]],Table_PI[[#This Row],[Input 4]],'Customer Information'!$AR$12,102,ROW())<>0,MeasureCalc(Table_PI[[#This Row],[Hide:\nFormula Name]],Table_SummaryPI[[#This Row],[Quantity]],Table_PI[[#This Row],[List 1]],Table_PI[[#This Row],[List 2]],Table_PI[[#This Row],[List 3]],Table_PI[[#This Row],[Size]],Table_PI[[#This Row],[Input 1]],Table_PI[[#This Row],[Input 2]],Table_PI[[#This Row],[Input 3]],Table_PI[[#This Row],[Input 4]],'Customer Information'!$AR$12,102,ROW())<>\"No Rebate\"),MeasureCalc(Table_PI[[#This Row],[Hide:\nFormula Name]],Table_SummaryPI[[#This Row],[Quantity]],Table_PI[[#This Row],[List 1]],Table_PI[[#This Row],[List 2]],Table_PI[[#This Row],[List 3]],Table_PI[[#This Row],[Size]],Table_PI[[#This Row],[Input 1]],Table_PI[[#This Row],[Input 2]],Table_PI[[#This Row],[Input 3]],Table_PI[[#This Row],[Input 4]],'Customer Information'!$AR$12,102,ROW()),\"\"),\"\")","v":""},{"$f":"IF(Table_PI[[#This Row],[Input 3]]<>\"\",Table_PI[[#This Row],[Input 3]],\"\")","v":""},null,{"$f":"IFERROR(IF(AND(MeasureCalc(Table_PI[[#This Row],[Hide:\nFormula Name]],Table_SummaryPI[[#This Row],[Quantity]],Table_PI[[#This Row],[List 1]],Table_PI[[#This Row],[List 2]],Table_PI[[#This Row],[List 3]],Table_PI[[#This Row],[Size]],Table_PI[[#This Row],[Input 1]],Table_PI[[#This Row],[Input 2]],Table_PI[[#This Row],[Input 3]],Table_PI[[#This Row],[Input 4]],'Customer Information'!$AR$12,103,ROW())<>0,MeasureCalc(Table_PI[[#This Row],[Hide:\nFormula Name]],Table_SummaryPI[[#This Row],[Quantity]],Table_PI[[#This Row],[List 1]],Table_PI[[#This Row],[List 2]],Table_PI[[#This Row],[List 3]],Table_PI[[#This Row],[Size]],Table_PI[[#This Row],[Input 1]],Table_PI[[#This Row],[Input 2]],Table_PI[[#This Row],[Input 3]],Table_PI[[#This Row],[Input 4]],'Customer Information'!$AR$12,103,ROW())<>\"No Rebate\"),MeasureCalc(Table_PI[[#This Row],[Hide:\nFormula Name]],Table_SummaryPI[[#This Row],[Quantity]],Table_PI[[#This Row],[List 1]],Table_PI[[#This Row],[List 2]],Table_PI[[#This Row],[List 3]],Table_PI[[#This Row],[Size]],Table_PI[[#This Row],[Input 1]],Table_PI[[#This Row],[Input 2]],Table_PI[[#This Row],[Input 3]],Table_PI[[#This Row],[Input 4]],'Customer Information'!$AR$12,103,ROW()),\"\"),\"\")","v":""},{"$f":"IF(Table_PI[[#This Row],[Input 4]]<>\"\",Table_PI[[#This Row],[Input 4]],\"\")","v":""},{"$f":"IF(Table_PI[[#This Row],[Quantity]]=\"\",\"\",Table_PI[[#This Row],[Quantity]])","v":""},{"$f":"IF(Table_PI[[#This Row],[Notes]]=\"\",\"\",Table_PI[[#This Row],[Notes]])","v":""},{"$f":"IF(OR(Table_PI[[#This Row],[Hide:\nBaseline kWh]]=\"\",Table_PI[[#This Row],[Hide:\nBaseline kWh]]=0),\"\",Table_PI[[#This Row],[Hide:\nBaseline kWh]])","v":""},{"$f":"IF(OR(Table_PI[[#This Row],[Hide:\nBaseline kW]]=\"\",Table_PI[[#This Row],[Hide:\nBaseline kW]]=0),\"\",Table_PI[[#This Row],[Hide:\nBaseline kW]])","v":""},{"$f":"IF(OR(Table_PI[[#This Row],[Hide:\nProposed kWh]]=\"\",Table_PI[[#This Row],[Hide:\nProposed kWh]]=0),\"\",Table_PI[[#This Row],[Hide:\nProposed kWh]])","v":""},{"$f":"IF(OR(Table_PI[[#This Row],[Hide:\nProposed kW]]=\"\",Table_PI[[#This Row],[Hide:\nProposed kW]]=0),\"\",Table_PI[[#This Row],[Hide:\nProposed kW]])","v":""},{"$f":"IF(OR(Table_PI[[#This Row],[Rebate]]=\"\",Table_PI[[#This Row],[Rebate]]=0),\"\",Table_PI[[#This Row],[Rebate]])","v":""},{"$f":"IF(OR(Table_PI[[#This Row],[Hide:\nIncremental Cost]]=\"\",Table_PI[[#This Row],[Hide:\nIncremental Cost]]=0),\"\",Table_PI[[#This Row],[Hide:\nIncremental Cost]])","v":""},{"$f":"IFERROR(IF(Table_SummaryPI[[#This Row],[kWhSavings]]=\"\",\"\",ROUND(Table_SummaryPI[[#This Row],[kWhSavings]]/$AG$401*'Customer Information'!$BC$17,2)),0)","v":""},{"$f":"IF(OR(Table_PI[[#This Row],[Annual kWh]]=\"\",Table_PI[[#This Row],[Annual kWh]]=0),\"\",Table_PI[[#This Row],[Annual kWh]])","v":""},{"$f":"IF(OR(Table_PI[[#This Row],[Peak kW]]=\"\",Table_PI[[#This Row],[Peak kW]]=0),\"\",Table_PI[[#This Row],[Peak kW]])","v":""},{"$f":"IFERROR(IF(Table_SummaryPI[[#This Row],[kWhSavings]]=\"\",\"\",$AU$9*Table_SummaryPI[[#This Row],[kWhSavings]]),0)","v":""},{"$f":"IFERROR(IF(Table_SummaryPI[[#This Row],[kWhSavings]]=\"\",\"\",$AU$14*Table_SummaryPI[[#This Row],[kWhSavings]]),0)","v":""},{"$f":"IFERROR(IF(Table_SummaryPI[[#This Row],[kWhSavings]]=\"\",\"\",$AU$18*Table_SummaryPI[[#This Row],[kWhSavings]]),0)","v":""},{"$f":"IFERROR(IF(Table_SummaryPI[[#This Row],[kWhSavings]]=\"\",\"\",$AU$22*Table_SummaryPI[[#This Row],[kWhSavings]]),0)","v":""},{"$f":"IFERROR(IF(MeasureCalc(Table_PI[[#This Row],[Hide:\nFormula Name]],Table_SummaryPI[[#This Row],[Quantity]],Table_PI[[#This Row],[List 1]],Table_PI[[#This Row],[List 2]],Table_PI[[#This Row],[List 3]],Table_PI[[#This Row],[Size]],Table_PI[[#This Row],[Input 1]],Table_PI[[#This Row],[Input 2]],Table_PI[[#This Row],[Input 3]],Table_PI[[#This Row],[Input 4]],'Customer Information'!$AR$12,200,ROW())<>\"No Rebate\",MeasureCalc(Table_PI[[#This Row],[Hide:\nFormula Name]],Table_SummaryPI[[#This Row],[Quantity]],Table_PI[[#This Row],[List 1]],Table_PI[[#This Row],[List 2]],Table_PI[[#This Row],[List 3]],Table_PI[[#This Row],[Size]],Table_PI[[#This Row],[Input 1]],Table_PI[[#This Row],[Input 2]],Table_PI[[#This Row],[Input 3]],Table_PI[[#This Row],[Input 4]],'Customer Information'!$AR$12,200,ROW()),\"\"),\"\")","v":""},{"$f":"IFERROR(IF(MeasureCalc(Table_PI[[#This Row],[Hide:\nFormula Name]],Table_SummaryPI[[#This Row],[Quantity]],Table_PI[[#This Row],[List 1]],Table_PI[[#This Row],[List 2]],Table_PI[[#This Row],[List 3]],Table_PI[[#This Row],[Size]],Table_PI[[#This Row],[Input 1]],Table_PI[[#This Row],[Input 2]],Table_PI[[#This Row],[Input 3]],Table_PI[[#This Row],[Input 4]],'Customer Information'!$AR$12,201,ROW())<>\"No Rebate\",MeasureCalc(Table_PI[[#This Row],[Hide:\nFormula Name]],Table_SummaryPI[[#This Row],[Quantity]],Table_PI[[#This Row],[List 1]],Table_PI[[#This Row],[List 2]],Table_PI[[#This Row],[List 3]],Table_PI[[#This Row],[Size]],Table_PI[[#This Row],[Input 1]],Table_PI[[#This Row],[Input 2]],Table_PI[[#This Row],[Input 3]],Table_PI[[#This Row],[Input 4]],'Customer Information'!$AR$12,201,ROW()),\"\"),\"\")","v":""},null,null,"N3O Calculations"]
[{"$f":"Table_PI[[#This Row],[Line No.]]","v":""},{"$f":"IF(Table_SummaryPI[[#This Row],[MeassureCategory]]<>\"\",CONCATENATE(Table_SummaryPI[[#This Row],[MeassureCategory]],  \" - \", Table_SummaryPI[[#This Row],[ProposedMeasureCategory]],  \" - \", TEXT(Table_SummaryPI[[#This Row],[Size]],\"#,##0.00\"),\" \",Table_SummaryPI[[#This Row],[SizeUnit]]),\"\")","v":""},{"$f":"SUBSTITUTE(Table_PI[[#This Row],[Measure]],\"     \",\"\",1)","v":""},{"$f":"IF(Table_PI[[#This Row],[List 1]]<>\"\",Table_PI[[#This Row],[List 1]],\"\")","v":""},{"$f":"IF(Table_PI[[#This Row],[List 2]]<>\"\",Table_PI[[#This Row],[List 2]],\"\")","v":""},{"$f":"IF(Table_PI[[#This Row],[List 3]]<>\"\",Table_PI[[#This Row],[List 3]],\"\")","v":""},{"$f":"IF(Table_PI[[#This Row],[Manufacturer]]=\"\",\"\",Table_PI[[#This Row],[Manufacturer]])","v":""},{"$f":"IF(Table_PI[[#This Row],[Model Number]]=\"\",\"\",Table_PI[[#This Row],[Model Number]])","v":""},{"$f":"IF(Table_PI[[#This Row],[Serial Number(s)]]=\"\",\"\",Table_PI[[#This Row],[Serial Number(s)]])","v":""},null,{"$f":"IF(Table_PI[[#This Row],[Size]]=\"\",\"\",Table_PI[[#This Row],[Size]])","v":""},null,{"$f":"IFERROR(IF(AND(MeasureCalc(Table_PI[[#This Row],[Hide:\nFormula Name]],Table_SummaryPI[[#This Row],[Quantity]],Table_PI[[#This Row],[List 1]],Table_PI[[#This Row],[List 2]],Table_PI[[#This Row],[List 3]],Table_PI[[#This Row],[Size]],Table_PI[[#This Row],[Input 1]],Table_PI[[#This Row],[Input 2]],Table_PI[[#This Row],[Input 3]],Table_PI[[#This Row],[Input 4]],'Customer Information'!$AR$12,100,ROW())<>0,MeasureCalc(Table_PI[[#This Row],[Hide:\nFormula Name]],Table_SummaryPI[[#This Row],[Quantity]],Table_PI[[#This Row],[List 1]],Table_PI[[#This Row],[List 2]],Table_PI[[#This Row],[List 3]],Table_PI[[#This Row],[Size]],Table_PI[[#This Row],[Input 1]],Table_PI[[#This Row],[Input 2]],Table_PI[[#This Row],[Input 3]],Table_PI[[#This Row],[Input 4]],'Customer Information'!$AR$12,100,ROW())<>\"No Rebate\"),MeasureCalc(Table_PI[[#This Row],[Hide:\nFormula Name]],Table_SummaryPI[[#This Row],[Quantity]],Table_PI[[#This Row],[List 1]],Table_PI[[#This Row],[List 2]],Table_PI[[#This Row],[List 3]],Table_PI[[#This Row],[Size]],Table_PI[[#This Row],[Input 1]],Table_PI[[#This Row],[Input 2]],Table_PI[[#This Row],[Input 3]],Table_PI[[#This Row],[Input 4]],'Customer Information'!$AR$12,100,ROW()),\"\"),\"\")","v":""},{"$f":"IF(Table_PI[[#This Row],[Input 1]]<>\"\",Table_PI[[#This Row],[Input 1]],\"\")","v":""},null,{"$f":"IFERROR(IF(AND(MeasureCalc(Table_PI[[#This Row],[Hide:\nFormula Name]],Table_SummaryPI[[#This Row],[Quantity]],Table_PI[[#This Row],[List 1]],Table_PI[[#This Row],[List 2]],Table_PI[[#This Row],[List 3]],Table_PI[[#This Row],[Size]],Table_PI[[#This Row],[Input 1]],Table_PI[[#This Row],[Input 2]],Table_PI[[#This Row],[Input 3]],Table_PI[[#This Row],[Input 4]],'Customer Information'!$AR$12,101,ROW())<>0,MeasureCalc(Table_PI[[#This Row],[Hide:\nFormula Name]],Table_SummaryPI[[#This Row],[Quantity]],Table_PI[[#This Row],[List 1]],Table_PI[[#This Row],[List 2]],Table_PI[[#This Row],[List 3]],Table_PI[[#This Row],[Size]],Table_PI[[#This Row],[Input 1]],Table_PI[[#This Row],[Input 2]],Table_PI[[#This Row],[Input 3]],Table_PI[[#This Row],[Input 4]],'Customer Information'!$AR$12,101,ROW())<>\"No Rebate\"),MeasureCalc(Table_PI[[#This Row],[Hide:\nFormula Name]],Table_SummaryPI[[#This Row],[Quantity]],Table_PI[[#This Row],[List 1]],Table_PI[[#This Row],[List 2]],Table_PI[[#This Row],[List 3]],Table_PI[[#This Row],[Size]],Table_PI[[#This Row],[Input 1]],Table_PI[[#This Row],[Input 2]],Table_PI[[#This Row],[Input 3]],Table_PI[[#This Row],[Input 4]],'Customer Information'!$AR$12,101,ROW()),\"\"),\"\")","v":""},{"$f":"IF(Table_PI[[#This Row],[Input 2]]<>\"\",Table_PI[[#This Row],[Input 2]],\"\")","v":""},null,{"$f":"IFERROR(IF(AND(MeasureCalc(Table_PI[[#This Row],[Hide:\nFormula Name]],Table_SummaryPI[[#This Row],[Quantity]],Table_PI[[#This Row],[List 1]],Table_PI[[#This Row],[List 2]],Table_PI[[#This Row],[List 3]],Table_PI[[#This Row],[Size]],Table_PI[[#This Row],[Input 1]],Table_PI[[#This Row],[Input 2]],Table_PI[[#This Row],[Input 3]],Table_PI[[#This Row],[Input 4]],'Customer Information'!$AR$12,102,ROW())<>0,MeasureCalc(Table_PI[[#This Row],[Hide:\nFormula Name]],Table_SummaryPI[[#This Row],[Quantity]],Table_PI[[#This Row],[List 1]],Table_PI[[#This Row],[List 2]],Table_PI[[#This Row],[List 3]],Table_PI[[#This Row],[Size]],Table_PI[[#This Row],[Input 1]],Table_PI[[#This Row],[Input 2]],Table_PI[[#This Row],[Input 3]],Table_PI[[#This Row],[Input 4]],'Customer Information'!$AR$12,102,ROW())<>\"No Rebate\"),MeasureCalc(Table_PI[[#This Row],[Hide:\nFormula Name]],Table_SummaryPI[[#This Row],[Quantity]],Table_PI[[#This Row],[List 1]],Table_PI[[#This Row],[List 2]],Table_PI[[#This Row],[List 3]],Table_PI[[#This Row],[Size]],Table_PI[[#This Row],[Input 1]],Table_PI[[#This Row],[Input 2]],Table_PI[[#This Row],[Input 3]],Table_PI[[#This Row],[Input 4]],'Customer Information'!$AR$12,102,ROW()),\"\"),\"\")","v":""},{"$f":"IF(Table_PI[[#This Row],[Input 3]]<>\"\",Table_PI[[#This Row],[Input 3]],\"\")","v":""},null,{"$f":"IFERROR(IF(AND(MeasureCalc(Table_PI[[#This Row],[Hide:\nFormula Name]],Table_SummaryPI[[#This Row],[Quantity]],Table_PI[[#This Row],[List 1]],Table_PI[[#This Row],[List 2]],Table_PI[[#This Row],[List 3]],Table_PI[[#This Row],[Size]],Table_PI[[#This Row],[Input 1]],Table_PI[[#This Row],[Input 2]],Table_PI[[#This Row],[Input 3]],Table_PI[[#This Row],[Input 4]],'Customer Information'!$AR$12,103,ROW())<>0,MeasureCalc(Table_PI[[#This Row],[Hide:\nFormula Name]],Table_SummaryPI[[#This Row],[Quantity]],Table_PI[[#This Row],[List 1]],Table_PI[[#This Row],[List 2]],Table_PI[[#This Row],[List 3]],Table_PI[[#This Row],[Size]],Table_PI[[#This Row],[Input 1]],Table_PI[[#This Row],[Input 2]],Table_PI[[#This Row],[Input 3]],Table_PI[[#This Row],[Input 4]],'Customer Information'!$AR$12,103,ROW())<>\"No Rebate\"),MeasureCalc(Table_PI[[#This Row],[Hide:\nFormula Name]],Table_SummaryPI[[#This Row],[Quantity]],Table_PI[[#This Row],[List 1]],Table_PI[[#This Row],[List 2]],Table_PI[[#This Row],[List 3]],Table_PI[[#This Row],[Size]],Table_PI[[#This Row],[Input 1]],Table_PI[[#This Row],[Input 2]],Table_PI[[#This Row],[Input 3]],Table_PI[[#This Row],[Input 4]],'Customer Information'!$AR$12,103,ROW()),\"\"),\"\")","v":""},{"$f":"IF(Table_PI[[#This Row],[Input 4]]<>\"\",Table_PI[[#This Row],[Input 4]],\"\")","v":""},{"$f":"IF(Table_PI[[#This Row],[Quantity]]=\"\",\"\",Table_PI[[#This Row],[Quantity]])","v":""},{"$f":"IF(Table_PI[[#This Row],[Notes]]=\"\",\"\",Table_PI[[#This Row],[Notes]])","v":""},{"$f":"IF(OR(Table_PI[[#This Row],[Hide:\nBaseline kWh]]=\"\",Table_PI[[#This Row],[Hide:\nBaseline kWh]]=0),\"\",Table_PI[[#This Row],[Hide:\nBaseline kWh]])","v":""},{"$f":"IF(OR(Table_PI[[#This Row],[Hide:\nBaseline kW]]=\"\",Table_PI[[#This Row],[Hide:\nBaseline kW]]=0),\"\",Table_PI[[#This Row],[Hide:\nBaseline kW]])","v":""},{"$f":"IF(OR(Table_PI[[#This Row],[Hide:\nProposed kWh]]=\"\",Table_PI[[#This Row],[Hide:\nProposed kWh]]=0),\"\",Table_PI[[#This Row],[Hide:\nProposed kWh]])","v":""},{"$f":"IF(OR(Table_PI[[#This Row],[Hide:\nProposed kW]]=\"\",Table_PI[[#This Row],[Hide:\nProposed kW]]=0),\"\",Table_PI[[#This Row],[Hide:\nProposed kW]])","v":""},{"$f":"IF(OR(Table_PI[[#This Row],[Rebate]]=\"\",Table_PI[[#This Row],[Rebate]]=0),\"\",Table_PI[[#This Row],[Rebate]])","v":""},{"$f":"IF(OR(Table_PI[[#This Row],[Hide:\nIncremental Cost]]=\"\",Table_PI[[#This Row],[Hide:\nIncremental Cost]]=0),\"\",Table_PI[[#This Row],[Hide:\nIncremental Cost]])","v":""},{"$f":"IFERROR(IF(Table_SummaryPI[[#This Row],[kWhSavings]]=\"\",\"\",ROUND(Table_SummaryPI[[#This Row],[kWhSavings]]/$AG$401*'Customer Information'!$BC$17,2)),0)","v":""},{"$f":"IF(OR(Table_PI[[#This Row],[Annual kWh]]=\"\",Table_PI[[#This Row],[Annual kWh]]=0),\"\",Table_PI[[#This Row],[Annual kWh]])","v":""},{"$f":"IF(OR(Table_PI[[#This Row],[Peak kW]]=\"\",Table_PI[[#This Row],[Peak kW]]=0),\"\",Table_PI[[#This Row],[Peak kW]])","v":""},{"$f":"IFERROR(IF(Table_SummaryPI[[#This Row],[kWhSavings]]=\"\",\"\",$AU$9*Table_SummaryPI[[#This Row],[kWhSavings]]),0)","v":""},{"$f":"IFERROR(IF(Table_SummaryPI[[#This Row],[kWhSavings]]=\"\",\"\",$AU$14*Table_SummaryPI[[#This Row],[kWhSavings]]),0)","v":""},{"$f":"IFERROR(IF(Table_SummaryPI[[#This Row],[kWhSavings]]=\"\",\"\",$AU$18*Table_SummaryPI[[#This Row],[kWhSavings]]),0)","v":""},{"$f":"IFERROR(IF(Table_SummaryPI[[#This Row],[kWhSavings]]=\"\",\"\",$AU$22*Table_SummaryPI[[#This Row],[kWhSavings]]),0)","v":""},{"$f":"IFERROR(IF(MeasureCalc(Table_PI[[#This Row],[Hide:\nFormula Name]],Table_SummaryPI[[#This Row],[Quantity]],Table_PI[[#This Row],[List 1]],Table_PI[[#This Row],[List 2]],Table_PI[[#This Row],[List 3]],Table_PI[[#This Row],[Size]],Table_PI[[#This Row],[Input 1]],Table_PI[[#This Row],[Input 2]],Table_PI[[#This Row],[Input 3]],Table_PI[[#This Row],[Input 4]],'Customer Information'!$AR$12,200,ROW())<>\"No Rebate\",MeasureCalc(Table_PI[[#This Row],[Hide:\nFormula Name]],Table_SummaryPI[[#This Row],[Quantity]],Table_PI[[#This Row],[List 1]],Table_PI[[#This Row],[List 2]],Table_PI[[#This Row],[List 3]],Table_PI[[#This Row],[Size]],Table_PI[[#This Row],[Input 1]],Table_PI[[#This Row],[Input 2]],Table_PI[[#This Row],[Input 3]],Table_PI[[#This Row],[Input 4]],'Customer Information'!$AR$12,200,ROW()),\"\"),\"\")","v":""},{"$f":"IFERROR(IF(MeasureCalc(Table_PI[[#This Row],[Hide:\nFormula Name]],Table_SummaryPI[[#This Row],[Quantity]],Table_PI[[#This Row],[List 1]],Table_PI[[#This Row],[List 2]],Table_PI[[#This Row],[List 3]],Table_PI[[#This Row],[Size]],Table_PI[[#This Row],[Input 1]],Table_PI[[#This Row],[Input 2]],Table_PI[[#This Row],[Input 3]],Table_PI[[#This Row],[Input 4]],'Customer Information'!$AR$12,201,ROW())<>\"No Rebate\",MeasureCalc(Table_PI[[#This Row],[Hide:\nFormula Name]],Table_SummaryPI[[#This Row],[Quantity]],Table_PI[[#This Row],[List 1]],Table_PI[[#This Row],[List 2]],Table_PI[[#This Row],[List 3]],Table_PI[[#This Row],[Size]],Table_PI[[#This Row],[Input 1]],Table_PI[[#This Row],[Input 2]],Table_PI[[#This Row],[Input 3]],Table_PI[[#This Row],[Input 4]],'Customer Information'!$AR$12,201,ROW()),\"\"),\"\")","v":""},null,null,0.7,"lbs. N3O / MWh",null,null,{"$f":"AQ22*AQ23/1000","v":3.1752E-7},"Tons N3O / kWh"]
[{"$f":"Table_PI[[#This Row],[Line No.]]","v":""},{"$f":"IF(Table_SummaryPI[[#This Row],[MeassureCategory]]<>\"\",CONCATENATE(Table_SummaryPI[[#This Row],[MeassureCategory]],  \" - \", Table_SummaryPI[[#This Row],[ProposedMeasureCategory]],  \" - \", TEXT(Table_SummaryPI[[#This Row],[Size]],\"#,##0.00\"),\" \",Table_SummaryPI[[#This Row],[SizeUnit]]),\"\")","v":""},{"$f":"SUBSTITUTE(Table_PI[[#This Row],[Measure]],\"     \",\"\",1)","v":""},{"$f":"IF(Table_PI[[#This Row],[List 1]]<>\"\",Table_PI[[#This Row],[List 1]],\"\")","v":""},{"$f":"IF(Table_PI[[#This Row],[List 2]]<>\"\",Table_PI[[#This Row],[List 2]],\"\")","v":""},{"$f":"IF(Table_PI[[#This Row],[List 3]]<>\"\",Table_PI[[#This Row],[List 3]],\"\")","v":""},{"$f":"IF(Table_PI[[#This Row],[Manufacturer]]=\"\",\"\",Table_PI[[#This Row],[Manufacturer]])","v":""},{"$f":"IF(Table_PI[[#This Row],[Model Number]]=\"\",\"\",Table_PI[[#This Row],[Model Number]])","v":""},{"$f":"IF(Table_PI[[#This Row],[Serial Number(s)]]=\"\",\"\",Table_PI[[#This Row],[Serial Number(s)]])","v":""},null,{"$f":"IF(Table_PI[[#This Row],[Size]]=\"\",\"\",Table_PI[[#This Row],[Size]])","v":""},null,{"$f":"IFERROR(IF(AND(MeasureCalc(Table_PI[[#This Row],[Hide:\nFormula Name]],Table_SummaryPI[[#This Row],[Quantity]],Table_PI[[#This Row],[List 1]],Table_PI[[#This Row],[List 2]],Table_PI[[#This Row],[List 3]],Table_PI[[#This Row],[Size]],Table_PI[[#This Row],[Input 1]],Table_PI[[#This Row],[Input 2]],Table_PI[[#This Row],[Input 3]],Table_PI[[#This Row],[Input 4]],'Customer Information'!$AR$12,100,ROW())<>0,MeasureCalc(Table_PI[[#This Row],[Hide:\nFormula Name]],Table_SummaryPI[[#This Row],[Quantity]],Table_PI[[#This Row],[List 1]],Table_PI[[#This Row],[List 2]],Table_PI[[#This Row],[List 3]],Table_PI[[#This Row],[Size]],Table_PI[[#This Row],[Input 1]],Table_PI[[#This Row],[Input 2]],Table_PI[[#This Row],[Input 3]],Table_PI[[#This Row],[Input 4]],'Customer Information'!$AR$12,100,ROW())<>\"No Rebate\"),MeasureCalc(Table_PI[[#This Row],[Hide:\nFormula Name]],Table_SummaryPI[[#This Row],[Quantity]],Table_PI[[#This Row],[List 1]],Table_PI[[#This Row],[List 2]],Table_PI[[#This Row],[List 3]],Table_PI[[#This Row],[Size]],Table_PI[[#This Row],[Input 1]],Table_PI[[#This Row],[Input 2]],Table_PI[[#This Row],[Input 3]],Table_PI[[#This Row],[Input 4]],'Customer Information'!$AR$12,100,ROW()),\"\"),\"\")","v":""},{"$f":"IF(Table_PI[[#This Row],[Input 1]]<>\"\",Table_PI[[#This Row],[Input 1]],\"\")","v":""},null,{"$f":"IFERROR(IF(AND(MeasureCalc(Table_PI[[#This Row],[Hide:\nFormula Name]],Table_SummaryPI[[#This Row],[Quantity]],Table_PI[[#This Row],[List 1]],Table_PI[[#This Row],[List 2]],Table_PI[[#This Row],[List 3]],Table_PI[[#This Row],[Size]],Table_PI[[#This Row],[Input 1]],Table_PI[[#This Row],[Input 2]],Table_PI[[#This Row],[Input 3]],Table_PI[[#This Row],[Input 4]],'Customer Information'!$AR$12,101,ROW())<>0,MeasureCalc(Table_PI[[#This Row],[Hide:\nFormula Name]],Table_SummaryPI[[#This Row],[Quantity]],Table_PI[[#This Row],[List 1]],Table_PI[[#This Row],[List 2]],Table_PI[[#This Row],[List 3]],Table_PI[[#This Row],[Size]],Table_PI[[#This Row],[Input 1]],Table_PI[[#This Row],[Input 2]],Table_PI[[#This Row],[Input 3]],Table_PI[[#This Row],[Input 4]],'Customer Information'!$AR$12,101,ROW())<>\"No Rebate\"),MeasureCalc(Table_PI[[#This Row],[Hide:\nFormula Name]],Table_SummaryPI[[#This Row],[Quantity]],Table_PI[[#This Row],[List 1]],Table_PI[[#This Row],[List 2]],Table_PI[[#This Row],[List 3]],Table_PI[[#This Row],[Size]],Table_PI[[#This Row],[Input 1]],Table_PI[[#This Row],[Input 2]],Table_PI[[#This Row],[Input 3]],Table_PI[[#This Row],[Input 4]],'Customer Information'!$AR$12,101,ROW()),\"\"),\"\")","v":""},{"$f":"IF(Table_PI[[#This Row],[Input 2]]<>\"\",Table_PI[[#This Row],[Input 2]],\"\")","v":""},null,{"$f":"IFERROR(IF(AND(MeasureCalc(Table_PI[[#This Row],[Hide:\nFormula Name]],Table_SummaryPI[[#This Row],[Quantity]],Table_PI[[#This Row],[List 1]],Table_PI[[#This Row],[List 2]],Table_PI[[#This Row],[List 3]],Table_PI[[#This Row],[Size]],Table_PI[[#This Row],[Input 1]],Table_PI[[#This Row],[Input 2]],Table_PI[[#This Row],[Input 3]],Table_PI[[#This Row],[Input 4]],'Customer Information'!$AR$12,102,ROW())<>0,MeasureCalc(Table_PI[[#This Row],[Hide:\nFormula Name]],Table_SummaryPI[[#This Row],[Quantity]],Table_PI[[#This Row],[List 1]],Table_PI[[#This Row],[List 2]],Table_PI[[#This Row],[List 3]],Table_PI[[#This Row],[Size]],Table_PI[[#This Row],[Input 1]],Table_PI[[#This Row],[Input 2]],Table_PI[[#This Row],[Input 3]],Table_PI[[#This Row],[Input 4]],'Customer Information'!$AR$12,102,ROW())<>\"No Rebate\"),MeasureCalc(Table_PI[[#This Row],[Hide:\nFormula Name]],Table_SummaryPI[[#This Row],[Quantity]],Table_PI[[#This Row],[List 1]],Table_PI[[#This Row],[List 2]],Table_PI[[#This Row],[List 3]],Table_PI[[#This Row],[Size]],Table_PI[[#This Row],[Input 1]],Table_PI[[#This Row],[Input 2]],Table_PI[[#This Row],[Input 3]],Table_PI[[#This Row],[Input 4]],'Customer Information'!$AR$12,102,ROW()),\"\"),\"\")","v":""},{"$f":"IF(Table_PI[[#This Row],[Input 3]]<>\"\",Table_PI[[#This Row],[Input 3]],\"\")","v":""},null,{"$f":"IFERROR(IF(AND(MeasureCalc(Table_PI[[#This Row],[Hide:\nFormula Name]],Table_SummaryPI[[#This Row],[Quantity]],Table_PI[[#This Row],[List 1]],Table_PI[[#This Row],[List 2]],Table_PI[[#This Row],[List 3]],Table_PI[[#This Row],[Size]],Table_PI[[#This Row],[Input 1]],Table_PI[[#This Row],[Input 2]],Table_PI[[#This Row],[Input 3]],Table_PI[[#This Row],[Input 4]],'Customer Information'!$AR$12,103,ROW())<>0,MeasureCalc(Table_PI[[#This Row],[Hide:\nFormula Name]],Table_SummaryPI[[#This Row],[Quantity]],Table_PI[[#This Row],[List 1]],Table_PI[[#This Row],[List 2]],Table_PI[[#This Row],[List 3]],Table_PI[[#This Row],[Size]],Table_PI[[#This Row],[Input 1]],Table_PI[[#This Row],[Input 2]],Table_PI[[#This Row],[Input 3]],Table_PI[[#This Row],[Input 4]],'Customer Information'!$AR$12,103,ROW())<>\"No Rebate\"),MeasureCalc(Table_PI[[#This Row],[Hide:\nFormula Name]],Table_SummaryPI[[#This Row],[Quantity]],Table_PI[[#This Row],[List 1]],Table_PI[[#This Row],[List 2]],Table_PI[[#This Row],[List 3]],Table_PI[[#This Row],[Size]],Table_PI[[#This Row],[Input 1]],Table_PI[[#This Row],[Input 2]],Table_PI[[#This Row],[Input 3]],Table_PI[[#This Row],[Input 4]],'Customer Information'!$AR$12,103,ROW()),\"\"),\"\")","v":""},{"$f":"IF(Table_PI[[#This Row],[Input 4]]<>\"\",Table_PI[[#This Row],[Input 4]],\"\")","v":""},{"$f":"IF(Table_PI[[#This Row],[Quantity]]=\"\",\"\",Table_PI[[#This Row],[Quantity]])","v":""},{"$f":"IF(Table_PI[[#This Row],[Notes]]=\"\",\"\",Table_PI[[#This Row],[Notes]])","v":""},{"$f":"IF(OR(Table_PI[[#This Row],[Hide:\nBaseline kWh]]=\"\",Table_PI[[#This Row],[Hide:\nBaseline kWh]]=0),\"\",Table_PI[[#This Row],[Hide:\nBaseline kWh]])","v":""},{"$f":"IF(OR(Table_PI[[#This Row],[Hide:\nBaseline kW]]=\"\",Table_PI[[#This Row],[Hide:\nBaseline kW]]=0),\"\",Table_PI[[#This Row],[Hide:\nBaseline kW]])","v":""},{"$f":"IF(OR(Table_PI[[#This Row],[Hide:\nProposed kWh]]=\"\",Table_PI[[#This Row],[Hide:\nProposed kWh]]=0),\"\",Table_PI[[#This Row],[Hide:\nProposed kWh]])","v":""},{"$f":"IF(OR(Table_PI[[#This Row],[Hide:\nProposed kW]]=\"\",Table_PI[[#This Row],[Hide:\nProposed kW]]=0),\"\",Table_PI[[#This Row],[Hide:\nProposed kW]])","v":""},{"$f":"IF(OR(Table_PI[[#This Row],[Rebate]]=\"\",Table_PI[[#This Row],[Rebate]]=0),\"\",Table_PI[[#This Row],[Rebate]])","v":""},{"$f":"IF(OR(Table_PI[[#This Row],[Hide:\nIncremental Cost]]=\"\",Table_PI[[#This Row],[Hide:\nIncremental Cost]]=0),\"\",Table_PI[[#This Row],[Hide:\nIncremental Cost]])","v":""},{"$f":"IFERROR(IF(Table_SummaryPI[[#This Row],[kWhSavings]]=\"\",\"\",ROUND(Table_SummaryPI[[#This Row],[kWhSavings]]/$AG$401*'Customer Information'!$BC$17,2)),0)","v":""},{"$f":"IF(OR(Table_PI[[#This Row],[Annual kWh]]=\"\",Table_PI[[#This Row],[Annual kWh]]=0),\"\",Table_PI[[#This Row],[Annual kWh]])","v":""},{"$f":"IF(OR(Table_PI[[#This Row],[Peak kW]]=\"\",Table_PI[[#This Row],[Peak kW]]=0),\"\",Table_PI[[#This Row],[Peak kW]])","v":""},{"$f":"IFERROR(IF(Table_SummaryPI[[#This Row],[kWhSavings]]=\"\",\"\",$AU$9*Table_SummaryPI[[#This Row],[kWhSavings]]),0)","v":""},{"$f":"IFERROR(IF(Table_SummaryPI[[#This Row],[kWhSavings]]=\"\",\"\",$AU$14*Table_SummaryPI[[#This Row],[kWhSavings]]),0)","v":""},{"$f":"IFERROR(IF(Table_SummaryPI[[#This Row],[kWhSavings]]=\"\",\"\",$AU$18*Table_SummaryPI[[#This Row],[kWhSavings]]),0)","v":""},{"$f":"IFERROR(IF(Table_SummaryPI[[#This Row],[kWhSavings]]=\"\",\"\",$AU$22*Table_SummaryPI[[#This Row],[kWhSavings]]),0)","v":""},{"$f":"IFERROR(IF(MeasureCalc(Table_PI[[#This Row],[Hide:\nFormula Name]],Table_SummaryPI[[#This Row],[Quantity]],Table_PI[[#This Row],[List 1]],Table_PI[[#This Row],[List 2]],Table_PI[[#This Row],[List 3]],Table_PI[[#This Row],[Size]],Table_PI[[#This Row],[Input 1]],Table_PI[[#This Row],[Input 2]],Table_PI[[#This Row],[Input 3]],Table_PI[[#This Row],[Input 4]],'Customer Information'!$AR$12,200,ROW())<>\"No Rebate\",MeasureCalc(Table_PI[[#This Row],[Hide:\nFormula Name]],Table_SummaryPI[[#This Row],[Quantity]],Table_PI[[#This Row],[List 1]],Table_PI[[#This Row],[List 2]],Table_PI[[#This Row],[List 3]],Table_PI[[#This Row],[Size]],Table_PI[[#This Row],[Input 1]],Table_PI[[#This Row],[Input 2]],Table_PI[[#This Row],[Input 3]],Table_PI[[#This Row],[Input 4]],'Customer Information'!$AR$12,200,ROW()),\"\"),\"\")","v":""},{"$f":"IFERROR(IF(MeasureCalc(Table_PI[[#This Row],[Hide:\nFormula Name]],Table_SummaryPI[[#This Row],[Quantity]],Table_PI[[#This Row],[List 1]],Table_PI[[#This Row],[List 2]],Table_PI[[#This Row],[List 3]],Table_PI[[#This Row],[Size]],Table_PI[[#This Row],[Input 1]],Table_PI[[#This Row],[Input 2]],Table_PI[[#This Row],[Input 3]],Table_PI[[#This Row],[Input 4]],'Customer Information'!$AR$12,201,ROW())<>\"No Rebate\",MeasureCalc(Table_PI[[#This Row],[Hide:\nFormula Name]],Table_SummaryPI[[#This Row],[Quantity]],Table_PI[[#This Row],[List 1]],Table_PI[[#This Row],[List 2]],Table_PI[[#This Row],[List 3]],Table_PI[[#This Row],[Size]],Table_PI[[#This Row],[Input 1]],Table_PI[[#This Row],[Input 2]],Table_PI[[#This Row],[Input 3]],Table_PI[[#This Row],[Input 4]],'Customer Information'!$AR$12,201,ROW()),\"\"),\"\")","v":""},null,null,4.5360000000000002E-4,"Tons / lbs."]
[{"$f":"Table_PI[[#This Row],[Line No.]]","v":""},{"$f":"IF(Table_SummaryPI[[#This Row],[MeassureCategory]]<>\"\",CONCATENATE(Table_SummaryPI[[#This Row],[MeassureCategory]],  \" - \", Table_SummaryPI[[#This Row],[ProposedMeasureCategory]],  \" - \", TEXT(Table_SummaryPI[[#This Row],[Size]],\"#,##0.00\"),\" \",Table_SummaryPI[[#This Row],[SizeUnit]]),\"\")","v":""},{"$f":"SUBSTITUTE(Table_PI[[#This Row],[Measure]],\"     \",\"\",1)","v":""},{"$f":"IF(Table_PI[[#This Row],[List 1]]<>\"\",Table_PI[[#This Row],[List 1]],\"\")","v":""},{"$f":"IF(Table_PI[[#This Row],[List 2]]<>\"\",Table_PI[[#This Row],[List 2]],\"\")","v":""},{"$f":"IF(Table_PI[[#This Row],[List 3]]<>\"\",Table_PI[[#This Row],[List 3]],\"\")","v":""},{"$f":"IF(Table_PI[[#This Row],[Manufacturer]]=\"\",\"\",Table_PI[[#This Row],[Manufacturer]])","v":""},{"$f":"IF(Table_PI[[#This Row],[Model Number]]=\"\",\"\",Table_PI[[#This Row],[Model Number]])","v":""},{"$f":"IF(Table_PI[[#This Row],[Serial Number(s)]]=\"\",\"\",Table_PI[[#This Row],[Serial Number(s)]])","v":""},null,{"$f":"IF(Table_PI[[#This Row],[Size]]=\"\",\"\",Table_PI[[#This Row],[Size]])","v":""},null,{"$f":"IFERROR(IF(AND(MeasureCalc(Table_PI[[#This Row],[Hide:\nFormula Name]],Table_SummaryPI[[#This Row],[Quantity]],Table_PI[[#This Row],[List 1]],Table_PI[[#This Row],[List 2]],Table_PI[[#This Row],[List 3]],Table_PI[[#This Row],[Size]],Table_PI[[#This Row],[Input 1]],Table_PI[[#This Row],[Input 2]],Table_PI[[#This Row],[Input 3]],Table_PI[[#This Row],[Input 4]],'Customer Information'!$AR$12,100,ROW())<>0,MeasureCalc(Table_PI[[#This Row],[Hide:\nFormula Name]],Table_SummaryPI[[#This Row],[Quantity]],Table_PI[[#This Row],[List 1]],Table_PI[[#This Row],[List 2]],Table_PI[[#This Row],[List 3]],Table_PI[[#This Row],[Size]],Table_PI[[#This Row],[Input 1]],Table_PI[[#This Row],[Input 2]],Table_PI[[#This Row],[Input 3]],Table_PI[[#This Row],[Input 4]],'Customer Information'!$AR$12,100,ROW())<>\"No Rebate\"),MeasureCalc(Table_PI[[#This Row],[Hide:\nFormula Name]],Table_SummaryPI[[#This Row],[Quantity]],Table_PI[[#This Row],[List 1]],Table_PI[[#This Row],[List 2]],Table_PI[[#This Row],[List 3]],Table_PI[[#This Row],[Size]],Table_PI[[#This Row],[Input 1]],Table_PI[[#This Row],[Input 2]],Table_PI[[#This Row],[Input 3]],Table_PI[[#This Row],[Input 4]],'Customer Information'!$AR$12,100,ROW()),\"\"),\"\")","v":""},{"$f":"IF(Table_PI[[#This Row],[Input 1]]<>\"\",Table_PI[[#This Row],[Input 1]],\"\")","v":""},null,{"$f":"IFERROR(IF(AND(MeasureCalc(Table_PI[[#This Row],[Hide:\nFormula Name]],Table_SummaryPI[[#This Row],[Quantity]],Table_PI[[#This Row],[List 1]],Table_PI[[#This Row],[List 2]],Table_PI[[#This Row],[List 3]],Table_PI[[#This Row],[Size]],Table_PI[[#This Row],[Input 1]],Table_PI[[#This Row],[Input 2]],Table_PI[[#This Row],[Input 3]],Table_PI[[#This Row],[Input 4]],'Customer Information'!$AR$12,101,ROW())<>0,MeasureCalc(Table_PI[[#This Row],[Hide:\nFormula Name]],Table_SummaryPI[[#This Row],[Quantity]],Table_PI[[#This Row],[List 1]],Table_PI[[#This Row],[List 2]],Table_PI[[#This Row],[List 3]],Table_PI[[#This Row],[Size]],Table_PI[[#This Row],[Input 1]],Table_PI[[#This Row],[Input 2]],Table_PI[[#This Row],[Input 3]],Table_PI[[#This Row],[Input 4]],'Customer Information'!$AR$12,101,ROW())<>\"No Rebate\"),MeasureCalc(Table_PI[[#This Row],[Hide:\nFormula Name]],Table_SummaryPI[[#This Row],[Quantity]],Table_PI[[#This Row],[List 1]],Table_PI[[#This Row],[List 2]],Table_PI[[#This Row],[List 3]],Table_PI[[#This Row],[Size]],Table_PI[[#This Row],[Input 1]],Table_PI[[#This Row],[Input 2]],Table_PI[[#This Row],[Input 3]],Table_PI[[#This Row],[Input 4]],'Customer Information'!$AR$12,101,ROW()),\"\"),\"\")","v":""},{"$f":"IF(Table_PI[[#This Row],[Input 2]]<>\"\",Table_PI[[#This Row],[Input 2]],\"\")","v":""},null,{"$f":"IFERROR(IF(AND(MeasureCalc(Table_PI[[#This Row],[Hide:\nFormula Name]],Table_SummaryPI[[#This Row],[Quantity]],Table_PI[[#This Row],[List 1]],Table_PI[[#This Row],[List 2]],Table_PI[[#This Row],[List 3]],Table_PI[[#This Row],[Size]],Table_PI[[#This Row],[Input 1]],Table_PI[[#This Row],[Input 2]],Table_PI[[#This Row],[Input 3]],Table_PI[[#This Row],[Input 4]],'Customer Information'!$AR$12,102,ROW())<>0,MeasureCalc(Table_PI[[#This Row],[Hide:\nFormula Name]],Table_SummaryPI[[#This Row],[Quantity]],Table_PI[[#This Row],[List 1]],Table_PI[[#This Row],[List 2]],Table_PI[[#This Row],[List 3]],Table_PI[[#This Row],[Size]],Table_PI[[#This Row],[Input 1]],Table_PI[[#This Row],[Input 2]],Table_PI[[#This Row],[Input 3]],Table_PI[[#This Row],[Input 4]],'Customer Information'!$AR$12,102,ROW())<>\"No Rebate\"),MeasureCalc(Table_PI[[#This Row],[Hide:\nFormula Name]],Table_SummaryPI[[#This Row],[Quantity]],Table_PI[[#This Row],[List 1]],Table_PI[[#This Row],[List 2]],Table_PI[[#This Row],[List 3]],Table_PI[[#This Row],[Size]],Table_PI[[#This Row],[Input 1]],Table_PI[[#This Row],[Input 2]],Table_PI[[#This Row],[Input 3]],Table_PI[[#This Row],[Input 4]],'Customer Information'!$AR$12,102,ROW()),\"\"),\"\")","v":""},{"$f":"IF(Table_PI[[#This Row],[Input 3]]<>\"\",Table_PI[[#This Row],[Input 3]],\"\")","v":""},null,{"$f":"IFERROR(IF(AND(MeasureCalc(Table_PI[[#This Row],[Hide:\nFormula Name]],Table_SummaryPI[[#This Row],[Quantity]],Table_PI[[#This Row],[List 1]],Table_PI[[#This Row],[List 2]],Table_PI[[#This Row],[List 3]],Table_PI[[#This Row],[Size]],Table_PI[[#This Row],[Input 1]],Table_PI[[#This Row],[Input 2]],Table_PI[[#This Row],[Input 3]],Table_PI[[#This Row],[Input 4]],'Customer Information'!$AR$12,103,ROW())<>0,MeasureCalc(Table_PI[[#This Row],[Hide:\nFormula Name]],Table_SummaryPI[[#This Row],[Quantity]],Table_PI[[#This Row],[List 1]],Table_PI[[#This Row],[List 2]],Table_PI[[#This Row],[List 3]],Table_PI[[#This Row],[Size]],Table_PI[[#This Row],[Input 1]],Table_PI[[#This Row],[Input 2]],Table_PI[[#This Row],[Input 3]],Table_PI[[#This Row],[Input 4]],'Customer Information'!$AR$12,103,ROW())<>\"No Rebate\"),MeasureCalc(Table_PI[[#This Row],[Hide:\nFormula Name]],Table_SummaryPI[[#This Row],[Quantity]],Table_PI[[#This Row],[List 1]],Table_PI[[#This Row],[List 2]],Table_PI[[#This Row],[List 3]],Table_PI[[#This Row],[Size]],Table_PI[[#This Row],[Input 1]],Table_PI[[#This Row],[Input 2]],Table_PI[[#This Row],[Input 3]],Table_PI[[#This Row],[Input 4]],'Customer Information'!$AR$12,103,ROW()),\"\"),\"\")","v":""},{"$f":"IF(Table_PI[[#This Row],[Input 4]]<>\"\",Table_PI[[#This Row],[Input 4]],\"\")","v":""},{"$f":"IF(Table_PI[[#This Row],[Quantity]]=\"\",\"\",Table_PI[[#This Row],[Quantity]])","v":""},{"$f":"IF(Table_PI[[#This Row],[Notes]]=\"\",\"\",Table_PI[[#This Row],[Notes]])","v":""},{"$f":"IF(OR(Table_PI[[#This Row],[Hide:\nBaseline kWh]]=\"\",Table_PI[[#This Row],[Hide:\nBaseline kWh]]=0),\"\",Table_PI[[#This Row],[Hide:\nBaseline kWh]])","v":""},{"$f":"IF(OR(Table_PI[[#This Row],[Hide:\nBaseline kW]]=\"\",Table_PI[[#This Row],[Hide:\nBaseline kW]]=0),\"\",Table_PI[[#This Row],[Hide:\nBaseline kW]])","v":""},{"$f":"IF(OR(Table_PI[[#This Row],[Hide:\nProposed kWh]]=\"\",Table_PI[[#This Row],[Hide:\nProposed kWh]]=0),\"\",Table_PI[[#This Row],[Hide:\nProposed kWh]])","v":""},{"$f":"IF(OR(Table_PI[[#This Row],[Hide:\nProposed kW]]=\"\",Table_PI[[#This Row],[Hide:\nProposed kW]]=0),\"\",Table_PI[[#This Row],[Hide:\nProposed kW]])","v":""},{"$f":"IF(OR(Table_PI[[#This Row],[Rebate]]=\"\",Table_PI[[#This Row],[Rebate]]=0),\"\",Table_PI[[#This Row],[Rebate]])","v":""},{"$f":"IF(OR(Table_PI[[#This Row],[Hide:\nIncremental Cost]]=\"\",Table_PI[[#This Row],[Hide:\nIncremental Cost]]=0),\"\",Table_PI[[#This Row],[Hide:\nIncremental Cost]])","v":""},{"$f":"IFERROR(IF(Table_SummaryPI[[#This Row],[kWhSavings]]=\"\",\"\",ROUND(Table_SummaryPI[[#This Row],[kWhSavings]]/$AG$401*'Customer Information'!$BC$17,2)),0)","v":""},{"$f":"IF(OR(Table_PI[[#This Row],[Annual kWh]]=\"\",Table_PI[[#This Row],[Annual kWh]]=0),\"\",Table_PI[[#This Row],[Annual kWh]])","v":""},{"$f":"IF(OR(Table_PI[[#This Row],[Peak kW]]=\"\",Table_PI[[#This Row],[Peak kW]]=0),\"\",Table_PI[[#This Row],[Peak kW]])","v":""},{"$f":"IFERROR(IF(Table_SummaryPI[[#This Row],[kWhSavings]]=\"\",\"\",$AU$9*Table_SummaryPI[[#This Row],[kWhSavings]]),0)","v":""},{"$f":"IFERROR(IF(Table_SummaryPI[[#This Row],[kWhSavings]]=\"\",\"\",$AU$14*Table_SummaryPI[[#This Row],[kWhSavings]]),0)","v":""},{"$f":"IFERROR(IF(Table_SummaryPI[[#This Row],[kWhSavings]]=\"\",\"\",$AU$18*Table_SummaryPI[[#This Row],[kWhSavings]]),0)","v":""},{"$f":"IFERROR(IF(Table_SummaryPI[[#This Row],[kWhSavings]]=\"\",\"\",$AU$22*Table_SummaryPI[[#This Row],[kWhSavings]]),0)","v":""},{"$f":"IFERROR(IF(MeasureCalc(Table_PI[[#This Row],[Hide:\nFormula Name]],Table_SummaryPI[[#This Row],[Quantity]],Table_PI[[#This Row],[List 1]],Table_PI[[#This Row],[List 2]],Table_PI[[#This Row],[List 3]],Table_PI[[#This Row],[Size]],Table_PI[[#This Row],[Input 1]],Table_PI[[#This Row],[Input 2]],Table_PI[[#This Row],[Input 3]],Table_PI[[#This Row],[Input 4]],'Customer Information'!$AR$12,200,ROW())<>\"No Rebate\",MeasureCalc(Table_PI[[#This Row],[Hide:\nFormula Name]],Table_SummaryPI[[#This Row],[Quantity]],Table_PI[[#This Row],[List 1]],Table_PI[[#This Row],[List 2]],Table_PI[[#This Row],[List 3]],Table_PI[[#This Row],[Size]],Table_PI[[#This Row],[Input 1]],Table_PI[[#This Row],[Input 2]],Table_PI[[#This Row],[Input 3]],Table_PI[[#This Row],[Input 4]],'Customer Information'!$AR$12,200,ROW()),\"\"),\"\")","v":""},{"$f":"IFERROR(IF(MeasureCalc(Table_PI[[#This Row],[Hide:\nFormula Name]],Table_SummaryPI[[#This Row],[Quantity]],Table_PI[[#This Row],[List 1]],Table_PI[[#This Row],[List 2]],Table_PI[[#This Row],[List 3]],Table_PI[[#This Row],[Size]],Table_PI[[#This Row],[Input 1]],Table_PI[[#This Row],[Input 2]],Table_PI[[#This Row],[Input 3]],Table_PI[[#This Row],[Input 4]],'Customer Information'!$AR$12,201,ROW())<>\"No Rebate\",MeasureCalc(Table_PI[[#This Row],[Hide:\nFormula Name]],Table_SummaryPI[[#This Row],[Quantity]],Table_PI[[#This Row],[List 1]],Table_PI[[#This Row],[List 2]],Table_PI[[#This Row],[List 3]],Table_PI[[#This Row],[Size]],Table_PI[[#This Row],[Input 1]],Table_PI[[#This Row],[Input 2]],Table_PI[[#This Row],[Input 3]],Table_PI[[#This Row],[Input 4]],'Customer Information'!$AR$12,201,ROW()),\"\"),\"\")","v":""}]
[{"$f":"Table_PI[[#This Row],[Line No.]]","v":""},{"$f":"IF(Table_SummaryPI[[#This Row],[MeassureCategory]]<>\"\",CONCATENATE(Table_SummaryPI[[#This Row],[MeassureCategory]],  \" - \", Table_SummaryPI[[#This Row],[ProposedMeasureCategory]],  \" - \", TEXT(Table_SummaryPI[[#This Row],[Size]],\"#,##0.00\"),\" \",Table_SummaryPI[[#This Row],[SizeUnit]]),\"\")","v":""},{"$f":"SUBSTITUTE(Table_PI[[#This Row],[Measure]],\"     \",\"\",1)","v":""},{"$f":"IF(Table_PI[[#This Row],[List 1]]<>\"\",Table_PI[[#This Row],[List 1]],\"\")","v":""},{"$f":"IF(Table_PI[[#This Row],[List 2]]<>\"\",Table_PI[[#This Row],[List 2]],\"\")","v":""},{"$f":"IF(Table_PI[[#This Row],[List 3]]<>\"\",Table_PI[[#This Row],[List 3]],\"\")","v":""},{"$f":"IF(Table_PI[[#This Row],[Manufacturer]]=\"\",\"\",Table_PI[[#This Row],[Manufacturer]])","v":""},{"$f":"IF(Table_PI[[#This Row],[Model Number]]=\"\",\"\",Table_PI[[#This Row],[Model Number]])","v":""},{"$f":"IF(Table_PI[[#This Row],[Serial Number(s)]]=\"\",\"\",Table_PI[[#This Row],[Serial Number(s)]])","v":""},null,{"$f":"IF(Table_PI[[#This Row],[Size]]=\"\",\"\",Table_PI[[#This Row],[Size]])","v":""},null,{"$f":"IFERROR(IF(AND(MeasureCalc(Table_PI[[#This Row],[Hide:\nFormula Name]],Table_SummaryPI[[#This Row],[Quantity]],Table_PI[[#This Row],[List 1]],Table_PI[[#This Row],[List 2]],Table_PI[[#This Row],[List 3]],Table_PI[[#This Row],[Size]],Table_PI[[#This Row],[Input 1]],Table_PI[[#This Row],[Input 2]],Table_PI[[#This Row],[Input 3]],Table_PI[[#This Row],[Input 4]],'Customer Information'!$AR$12,100,ROW())<>0,MeasureCalc(Table_PI[[#This Row],[Hide:\nFormula Name]],Table_SummaryPI[[#This Row],[Quantity]],Table_PI[[#This Row],[List 1]],Table_PI[[#This Row],[List 2]],Table_PI[[#This Row],[List 3]],Table_PI[[#This Row],[Size]],Table_PI[[#This Row],[Input 1]],Table_PI[[#This Row],[Input 2]],Table_PI[[#This Row],[Input 3]],Table_PI[[#This Row],[Input 4]],'Customer Information'!$AR$12,100,ROW())<>\"No Rebate\"),MeasureCalc(Table_PI[[#This Row],[Hide:\nFormula Name]],Table_SummaryPI[[#This Row],[Quantity]],Table_PI[[#This Row],[List 1]],Table_PI[[#This Row],[List 2]],Table_PI[[#This Row],[List 3]],Table_PI[[#This Row],[Size]],Table_PI[[#This Row],[Input 1]],Table_PI[[#This Row],[Input 2]],Table_PI[[#This Row],[Input 3]],Table_PI[[#This Row],[Input 4]],'Customer Information'!$AR$12,100,ROW()),\"\"),\"\")","v":""},{"$f":"IF(Table_PI[[#This Row],[Input 1]]<>\"\",Table_PI[[#This Row],[Input 1]],\"\")","v":""},null,{"$f":"IFERROR(IF(AND(MeasureCalc(Table_PI[[#This Row],[Hide:\nFormula Name]],Table_SummaryPI[[#This Row],[Quantity]],Table_PI[[#This Row],[List 1]],Table_PI[[#This Row],[List 2]],Table_PI[[#This Row],[List 3]],Table_PI[[#This Row],[Size]],Table_PI[[#This Row],[Input 1]],Table_PI[[#This Row],[Input 2]],Table_PI[[#This Row],[Input 3]],Table_PI[[#This Row],[Input 4]],'Customer Information'!$AR$12,101,ROW())<>0,MeasureCalc(Table_PI[[#This Row],[Hide:\nFormula Name]],Table_SummaryPI[[#This Row],[Quantity]],Table_PI[[#This Row],[List 1]],Table_PI[[#This Row],[List 2]],Table_PI[[#This Row],[List 3]],Table_PI[[#This Row],[Size]],Table_PI[[#This Row],[Input 1]],Table_PI[[#This Row],[Input 2]],Table_PI[[#This Row],[Input 3]],Table_PI[[#This Row],[Input 4]],'Customer Information'!$AR$12,101,ROW())<>\"No Rebate\"),MeasureCalc(Table_PI[[#This Row],[Hide:\nFormula Name]],Table_SummaryPI[[#This Row],[Quantity]],Table_PI[[#This Row],[List 1]],Table_PI[[#This Row],[List 2]],Table_PI[[#This Row],[List 3]],Table_PI[[#This Row],[Size]],Table_PI[[#This Row],[Input 1]],Table_PI[[#This Row],[Input 2]],Table_PI[[#This Row],[Input 3]],Table_PI[[#This Row],[Input 4]],'Customer Information'!$AR$12,101,ROW()),\"\"),\"\")","v":""},{"$f":"IF(Table_PI[[#This Row],[Input 2]]<>\"\",Table_PI[[#This Row],[Input 2]],\"\")","v":""},null,{"$f":"IFERROR(IF(AND(MeasureCalc(Table_PI[[#This Row],[Hide:\nFormula Name]],Table_SummaryPI[[#This Row],[Quantity]],Table_PI[[#This Row],[List 1]],Table_PI[[#This Row],[List 2]],Table_PI[[#This Row],[List 3]],Table_PI[[#This Row],[Size]],Table_PI[[#This Row],[Input 1]],Table_PI[[#This Row],[Input 2]],Table_PI[[#This Row],[Input 3]],Table_PI[[#This Row],[Input 4]],'Customer Information'!$AR$12,102,ROW())<>0,MeasureCalc(Table_PI[[#This Row],[Hide:\nFormula Name]],Table_SummaryPI[[#This Row],[Quantity]],Table_PI[[#This Row],[List 1]],Table_PI[[#This Row],[List 2]],Table_PI[[#This Row],[List 3]],Table_PI[[#This Row],[Size]],Table_PI[[#This Row],[Input 1]],Table_PI[[#This Row],[Input 2]],Table_PI[[#This Row],[Input 3]],Table_PI[[#This Row],[Input 4]],'Customer Information'!$AR$12,102,ROW())<>\"No Rebate\"),MeasureCalc(Table_PI[[#This Row],[Hide:\nFormula Name]],Table_SummaryPI[[#This Row],[Quantity]],Table_PI[[#This Row],[List 1]],Table_PI[[#This Row],[List 2]],Table_PI[[#This Row],[List 3]],Table_PI[[#This Row],[Size]],Table_PI[[#This Row],[Input 1]],Table_PI[[#This Row],[Input 2]],Table_PI[[#This Row],[Input 3]],Table_PI[[#This Row],[Input 4]],'Customer Information'!$AR$12,102,ROW()),\"\"),\"\")","v":""},{"$f":"IF(Table_PI[[#This Row],[Input 3]]<>\"\",Table_PI[[#This Row],[Input 3]],\"\")","v":""},null,{"$f":"IFERROR(IF(AND(MeasureCalc(Table_PI[[#This Row],[Hide:\nFormula Name]],Table_SummaryPI[[#This Row],[Quantity]],Table_PI[[#This Row],[List 1]],Table_PI[[#This Row],[List 2]],Table_PI[[#This Row],[List 3]],Table_PI[[#This Row],[Size]],Table_PI[[#This Row],[Input 1]],Table_PI[[#This Row],[Input 2]],Table_PI[[#This Row],[Input 3]],Table_PI[[#This Row],[Input 4]],'Customer Information'!$AR$12,103,ROW())<>0,MeasureCalc(Table_PI[[#This Row],[Hide:\nFormula Name]],Table_SummaryPI[[#This Row],[Quantity]],Table_PI[[#This Row],[List 1]],Table_PI[[#This Row],[List 2]],Table_PI[[#This Row],[List 3]],Table_PI[[#This Row],[Size]],Table_PI[[#This Row],[Input 1]],Table_PI[[#This Row],[Input 2]],Table_PI[[#This Row],[Input 3]],Table_PI[[#This Row],[Input 4]],'Customer Information'!$AR$12,103,ROW())<>\"No Rebate\"),MeasureCalc(Table_PI[[#This Row],[Hide:\nFormula Name]],Table_SummaryPI[[#This Row],[Quantity]],Table_PI[[#This Row],[List 1]],Table_PI[[#This Row],[List 2]],Table_PI[[#This Row],[List 3]],Table_PI[[#This Row],[Size]],Table_PI[[#This Row],[Input 1]],Table_PI[[#This Row],[Input 2]],Table_PI[[#This Row],[Input 3]],Table_PI[[#This Row],[Input 4]],'Customer Information'!$AR$12,103,ROW()),\"\"),\"\")","v":""},{"$f":"IF(Table_PI[[#This Row],[Input 4]]<>\"\",Table_PI[[#This Row],[Input 4]],\"\")","v":""},{"$f":"IF(Table_PI[[#This Row],[Quantity]]=\"\",\"\",Table_PI[[#This Row],[Quantity]])","v":""},{"$f":"IF(Table_PI[[#This Row],[Notes]]=\"\",\"\",Table_PI[[#This Row],[Notes]])","v":""},{"$f":"IF(OR(Table_PI[[#This Row],[Hide:\nBaseline kWh]]=\"\",Table_PI[[#This Row],[Hide:\nBaseline kWh]]=0),\"\",Table_PI[[#This Row],[Hide:\nBaseline kWh]])","v":""},{"$f":"IF(OR(Table_PI[[#This Row],[Hide:\nBaseline kW]]=\"\",Table_PI[[#This Row],[Hide:\nBaseline kW]]=0),\"\",Table_PI[[#This Row],[Hide:\nBaseline kW]])","v":""},{"$f":"IF(OR(Table_PI[[#This Row],[Hide:\nProposed kWh]]=\"\",Table_PI[[#This Row],[Hide:\nProposed kWh]]=0),\"\",Table_PI[[#This Row],[Hide:\nProposed kWh]])","v":""},{"$f":"IF(OR(Table_PI[[#This Row],[Hide:\nProposed kW]]=\"\",Table_PI[[#This Row],[Hide:\nProposed kW]]=0),\"\",Table_PI[[#This Row],[Hide:\nProposed kW]])","v":""},{"$f":"IF(OR(Table_PI[[#This Row],[Rebate]]=\"\",Table_PI[[#This Row],[Rebate]]=0),\"\",Table_PI[[#This Row],[Rebate]])","v":""},{"$f":"IF(OR(Table_PI[[#This Row],[Hide:\nIncremental Cost]]=\"\",Table_PI[[#This Row],[Hide:\nIncremental Cost]]=0),\"\",Table_PI[[#This Row],[Hide:\nIncremental Cost]])","v":""},{"$f":"IFERROR(IF(Table_SummaryPI[[#This Row],[kWhSavings]]=\"\",\"\",ROUND(Table_SummaryPI[[#This Row],[kWhSavings]]/$AG$401*'Customer Information'!$BC$17,2)),0)","v":""},{"$f":"IF(OR(Table_PI[[#This Row],[Annual kWh]]=\"\",Table_PI[[#This Row],[Annual kWh]]=0),\"\",Table_PI[[#This Row],[Annual kWh]])","v":""},{"$f":"IF(OR(Table_PI[[#This Row],[Peak kW]]=\"\",Table_PI[[#This Row],[Peak kW]]=0),\"\",Table_PI[[#This Row],[Peak kW]])","v":""},{"$f":"IFERROR(IF(Table_SummaryPI[[#This Row],[kWhSavings]]=\"\",\"\",$AU$9*Table_SummaryPI[[#This Row],[kWhSavings]]),0)","v":""},{"$f":"IFERROR(IF(Table_SummaryPI[[#This Row],[kWhSavings]]=\"\",\"\",$AU$14*Table_SummaryPI[[#This Row],[kWhSavings]]),0)","v":""},{"$f":"IFERROR(IF(Table_SummaryPI[[#This Row],[kWhSavings]]=\"\",\"\",$AU$18*Table_SummaryPI[[#This Row],[kWhSavings]]),0)","v":""},{"$f":"IFERROR(IF(Table_SummaryPI[[#This Row],[kWhSavings]]=\"\",\"\",$AU$22*Table_SummaryPI[[#This Row],[kWhSavings]]),0)","v":""},{"$f":"IFERROR(IF(MeasureCalc(Table_PI[[#This Row],[Hide:\nFormula Name]],Table_SummaryPI[[#This Row],[Quantity]],Table_PI[[#This Row],[List 1]],Table_PI[[#This Row],[List 2]],Table_PI[[#This Row],[List 3]],Table_PI[[#This Row],[Size]],Table_PI[[#This Row],[Input 1]],Table_PI[[#This Row],[Input 2]],Table_PI[[#This Row],[Input 3]],Table_PI[[#This Row],[Input 4]],'Customer Information'!$AR$12,200,ROW())<>\"No Rebate\",MeasureCalc(Table_PI[[#This Row],[Hide:\nFormula Name]],Table_SummaryPI[[#This Row],[Quantity]],Table_PI[[#This Row],[List 1]],Table_PI[[#This Row],[List 2]],Table_PI[[#This Row],[List 3]],Table_PI[[#This Row],[Size]],Table_PI[[#This Row],[Input 1]],Table_PI[[#This Row],[Input 2]],Table_PI[[#This Row],[Input 3]],Table_PI[[#This Row],[Input 4]],'Customer Information'!$AR$12,200,ROW()),\"\"),\"\")","v":""},{"$f":"IFERROR(IF(MeasureCalc(Table_PI[[#This Row],[Hide:\nFormula Name]],Table_SummaryPI[[#This Row],[Quantity]],Table_PI[[#This Row],[List 1]],Table_PI[[#This Row],[List 2]],Table_PI[[#This Row],[List 3]],Table_PI[[#This Row],[Size]],Table_PI[[#This Row],[Input 1]],Table_PI[[#This Row],[Input 2]],Table_PI[[#This Row],[Input 3]],Table_PI[[#This Row],[Input 4]],'Customer Information'!$AR$12,201,ROW())<>\"No Rebate\",MeasureCalc(Table_PI[[#This Row],[Hide:\nFormula Name]],Table_SummaryPI[[#This Row],[Quantity]],Table_PI[[#This Row],[List 1]],Table_PI[[#This Row],[List 2]],Table_PI[[#This Row],[List 3]],Table_PI[[#This Row],[Size]],Table_PI[[#This Row],[Input 1]],Table_PI[[#This Row],[Input 2]],Table_PI[[#This Row],[Input 3]],Table_PI[[#This Row],[Input 4]],'Customer Information'!$AR$12,201,ROW()),\"\"),\"\")","v":""},null,null,"Reference: https://www.epa.gov/sites/production/files/2018-12/documents/power_profiler_terms_calculations_and_data_sources_12-1-2018.pdf"]
[{"$f":"Table_PI[[#This Row],[Line No.]]","v":""},{"$f":"IF(Table_SummaryPI[[#This Row],[MeassureCategory]]<>\"\",CONCATENATE(Table_SummaryPI[[#This Row],[MeassureCategory]],  \" - \", Table_SummaryPI[[#This Row],[ProposedMeasureCategory]],  \" - \", TEXT(Table_SummaryPI[[#This Row],[Size]],\"#,##0.00\"),\" \",Table_SummaryPI[[#This Row],[SizeUnit]]),\"\")","v":""},{"$f":"SUBSTITUTE(Table_PI[[#This Row],[Measure]],\"     \",\"\",1)","v":""},{"$f":"IF(Table_PI[[#This Row],[List 1]]<>\"\",Table_PI[[#This Row],[List 1]],\"\")","v":""},{"$f":"IF(Table_PI[[#This Row],[List 2]]<>\"\",Table_PI[[#This Row],[List 2]],\"\")","v":""},{"$f":"IF(Table_PI[[#This Row],[List 3]]<>\"\",Table_PI[[#This Row],[List 3]],\"\")","v":""},{"$f":"IF(Table_PI[[#This Row],[Manufacturer]]=\"\",\"\",Table_PI[[#This Row],[Manufacturer]])","v":""},{"$f":"IF(Table_PI[[#This Row],[Model Number]]=\"\",\"\",Table_PI[[#This Row],[Model Number]])","v":""},{"$f":"IF(Table_PI[[#This Row],[Serial Number(s)]]=\"\",\"\",Table_PI[[#This Row],[Serial Number(s)]])","v":""},null,{"$f":"IF(Table_PI[[#This Row],[Size]]=\"\",\"\",Table_PI[[#This Row],[Size]])","v":""},null,{"$f":"IFERROR(IF(AND(MeasureCalc(Table_PI[[#This Row],[Hide:\nFormula Name]],Table_SummaryPI[[#This Row],[Quantity]],Table_PI[[#This Row],[List 1]],Table_PI[[#This Row],[List 2]],Table_PI[[#This Row],[List 3]],Table_PI[[#This Row],[Size]],Table_PI[[#This Row],[Input 1]],Table_PI[[#This Row],[Input 2]],Table_PI[[#This Row],[Input 3]],Table_PI[[#This Row],[Input 4]],'Customer Information'!$AR$12,100,ROW())<>0,MeasureCalc(Table_PI[[#This Row],[Hide:\nFormula Name]],Table_SummaryPI[[#This Row],[Quantity]],Table_PI[[#This Row],[List 1]],Table_PI[[#This Row],[List 2]],Table_PI[[#This Row],[List 3]],Table_PI[[#This Row],[Size]],Table_PI[[#This Row],[Input 1]],Table_PI[[#This Row],[Input 2]],Table_PI[[#This Row],[Input 3]],Table_PI[[#This Row],[Input 4]],'Customer Information'!$AR$12,100,ROW())<>\"No Rebate\"),MeasureCalc(Table_PI[[#This Row],[Hide:\nFormula Name]],Table_SummaryPI[[#This Row],[Quantity]],Table_PI[[#This Row],[List 1]],Table_PI[[#This Row],[List 2]],Table_PI[[#This Row],[List 3]],Table_PI[[#This Row],[Size]],Table_PI[[#This Row],[Input 1]],Table_PI[[#This Row],[Input 2]],Table_PI[[#This Row],[Input 3]],Table_PI[[#This Row],[Input 4]],'Customer Information'!$AR$12,100,ROW()),\"\"),\"\")","v":""},{"$f":"IF(Table_PI[[#This Row],[Input 1]]<>\"\",Table_PI[[#This Row],[Input 1]],\"\")","v":""},null,{"$f":"IFERROR(IF(AND(MeasureCalc(Table_PI[[#This Row],[Hide:\nFormula Name]],Table_SummaryPI[[#This Row],[Quantity]],Table_PI[[#This Row],[List 1]],Table_PI[[#This Row],[List 2]],Table_PI[[#This Row],[List 3]],Table_PI[[#This Row],[Size]],Table_PI[[#This Row],[Input 1]],Table_PI[[#This Row],[Input 2]],Table_PI[[#This Row],[Input 3]],Table_PI[[#This Row],[Input 4]],'Customer Information'!$AR$12,101,ROW())<>0,MeasureCalc(Table_PI[[#This Row],[Hide:\nFormula Name]],Table_SummaryPI[[#This Row],[Quantity]],Table_PI[[#This Row],[List 1]],Table_PI[[#This Row],[List 2]],Table_PI[[#This Row],[List 3]],Table_PI[[#This Row],[Size]],Table_PI[[#This Row],[Input 1]],Table_PI[[#This Row],[Input 2]],Table_PI[[#This Row],[Input 3]],Table_PI[[#This Row],[Input 4]],'Customer Information'!$AR$12,101,ROW())<>\"No Rebate\"),MeasureCalc(Table_PI[[#This Row],[Hide:\nFormula Name]],Table_SummaryPI[[#This Row],[Quantity]],Table_PI[[#This Row],[List 1]],Table_PI[[#This Row],[List 2]],Table_PI[[#This Row],[List 3]],Table_PI[[#This Row],[Size]],Table_PI[[#This Row],[Input 1]],Table_PI[[#This Row],[Input 2]],Table_PI[[#This Row],[Input 3]],Table_PI[[#This Row],[Input 4]],'Customer Information'!$AR$12,101,ROW()),\"\"),\"\")","v":""},{"$f":"IF(Table_PI[[#This Row],[Input 2]]<>\"\",Table_PI[[#This Row],[Input 2]],\"\")","v":""},null,{"$f":"IFERROR(IF(AND(MeasureCalc(Table_PI[[#This Row],[Hide:\nFormula Name]],Table_SummaryPI[[#This Row],[Quantity]],Table_PI[[#This Row],[List 1]],Table_PI[[#This Row],[List 2]],Table_PI[[#This Row],[List 3]],Table_PI[[#This Row],[Size]],Table_PI[[#This Row],[Input 1]],Table_PI[[#This Row],[Input 2]],Table_PI[[#This Row],[Input 3]],Table_PI[[#This Row],[Input 4]],'Customer Information'!$AR$12,102,ROW())<>0,MeasureCalc(Table_PI[[#This Row],[Hide:\nFormula Name]],Table_SummaryPI[[#This Row],[Quantity]],Table_PI[[#This Row],[List 1]],Table_PI[[#This Row],[List 2]],Table_PI[[#This Row],[List 3]],Table_PI[[#This Row],[Size]],Table_PI[[#This Row],[Input 1]],Table_PI[[#This Row],[Input 2]],Table_PI[[#This Row],[Input 3]],Table_PI[[#This Row],[Input 4]],'Customer Information'!$AR$12,102,ROW())<>\"No Rebate\"),MeasureCalc(Table_PI[[#This Row],[Hide:\nFormula Name]],Table_SummaryPI[[#This Row],[Quantity]],Table_PI[[#This Row],[List 1]],Table_PI[[#This Row],[List 2]],Table_PI[[#This Row],[List 3]],Table_PI[[#This Row],[Size]],Table_PI[[#This Row],[Input 1]],Table_PI[[#This Row],[Input 2]],Table_PI[[#This Row],[Input 3]],Table_PI[[#This Row],[Input 4]],'Customer Information'!$AR$12,102,ROW()),\"\"),\"\")","v":""},{"$f":"IF(Table_PI[[#This Row],[Input 3]]<>\"\",Table_PI[[#This Row],[Input 3]],\"\")","v":""},null,{"$f":"IFERROR(IF(AND(MeasureCalc(Table_PI[[#This Row],[Hide:\nFormula Name]],Table_SummaryPI[[#This Row],[Quantity]],Table_PI[[#This Row],[List 1]],Table_PI[[#This Row],[List 2]],Table_PI[[#This Row],[List 3]],Table_PI[[#This Row],[Size]],Table_PI[[#This Row],[Input 1]],Table_PI[[#This Row],[Input 2]],Table_PI[[#This Row],[Input 3]],Table_PI[[#This Row],[Input 4]],'Customer Information'!$AR$12,103,ROW())<>0,MeasureCalc(Table_PI[[#This Row],[Hide:\nFormula Name]],Table_SummaryPI[[#This Row],[Quantity]],Table_PI[[#This Row],[List 1]],Table_PI[[#This Row],[List 2]],Table_PI[[#This Row],[List 3]],Table_PI[[#This Row],[Size]],Table_PI[[#This Row],[Input 1]],Table_PI[[#This Row],[Input 2]],Table_PI[[#This Row],[Input 3]],Table_PI[[#This Row],[Input 4]],'Customer Information'!$AR$12,103,ROW())<>\"No Rebate\"),MeasureCalc(Table_PI[[#This Row],[Hide:\nFormula Name]],Table_SummaryPI[[#This Row],[Quantity]],Table_PI[[#This Row],[List 1]],Table_PI[[#This Row],[List 2]],Table_PI[[#This Row],[List 3]],Table_PI[[#This Row],[Size]],Table_PI[[#This Row],[Input 1]],Table_PI[[#This Row],[Input 2]],Table_PI[[#This Row],[Input 3]],Table_PI[[#This Row],[Input 4]],'Customer Information'!$AR$12,103,ROW()),\"\"),\"\")","v":""},{"$f":"IF(Table_PI[[#This Row],[Input 4]]<>\"\",Table_PI[[#This Row],[Input 4]],\"\")","v":""},{"$f":"IF(Table_PI[[#This Row],[Quantity]]=\"\",\"\",Table_PI[[#This Row],[Quantity]])","v":""},{"$f":"IF(Table_PI[[#This Row],[Notes]]=\"\",\"\",Table_PI[[#This Row],[Notes]])","v":""},{"$f":"IF(OR(Table_PI[[#This Row],[Hide:\nBaseline kWh]]=\"\",Table_PI[[#This Row],[Hide:\nBaseline kWh]]=0),\"\",Table_PI[[#This Row],[Hide:\nBaseline kWh]])","v":""},{"$f":"IF(OR(Table_PI[[#This Row],[Hide:\nBaseline kW]]=\"\",Table_PI[[#This Row],[Hide:\nBaseline kW]]=0),\"\",Table_PI[[#This Row],[Hide:\nBaseline kW]])","v":""},{"$f":"IF(OR(Table_PI[[#This Row],[Hide:\nProposed kWh]]=\"\",Table_PI[[#This Row],[Hide:\nProposed kWh]]=0),\"\",Table_PI[[#This Row],[Hide:\nProposed kWh]])","v":""},{"$f":"IF(OR(Table_PI[[#This Row],[Hide:\nProposed kW]]=\"\",Table_PI[[#This Row],[Hide:\nProposed kW]]=0),\"\",Table_PI[[#This Row],[Hide:\nProposed kW]])","v":""},{"$f":"IF(OR(Table_PI[[#This Row],[Rebate]]=\"\",Table_PI[[#This Row],[Rebate]]=0),\"\",Table_PI[[#This Row],[Rebate]])","v":""},{"$f":"IF(OR(Table_PI[[#This Row],[Hide:\nIncremental Cost]]=\"\",Table_PI[[#This Row],[Hide:\nIncremental Cost]]=0),\"\",Table_PI[[#This Row],[Hide:\nIncremental Cost]])","v":""},{"$f":"IFERROR(IF(Table_SummaryPI[[#This Row],[kWhSavings]]=\"\",\"\",ROUND(Table_SummaryPI[[#This Row],[kWhSavings]]/$AG$401*'Customer Information'!$BC$17,2)),0)","v":""},{"$f":"IF(OR(Table_PI[[#This Row],[Annual kWh]]=\"\",Table_PI[[#This Row],[Annual kWh]]=0),\"\",Table_PI[[#This Row],[Annual kWh]])","v":""},{"$f":"IF(OR(Table_PI[[#This Row],[Peak kW]]=\"\",Table_PI[[#This Row],[Peak kW]]=0),\"\",Table_PI[[#This Row],[Peak kW]])","v":""},{"$f":"IFERROR(IF(Table_SummaryPI[[#This Row],[kWhSavings]]=\"\",\"\",$AU$9*Table_SummaryPI[[#This Row],[kWhSavings]]),0)","v":""},{"$f":"IFERROR(IF(Table_SummaryPI[[#This Row],[kWhSavings]]=\"\",\"\",$AU$14*Table_SummaryPI[[#This Row],[kWhSavings]]),0)","v":""},{"$f":"IFERROR(IF(Table_SummaryPI[[#This Row],[kWhSavings]]=\"\",\"\",$AU$18*Table_SummaryPI[[#This Row],[kWhSavings]]),0)","v":""},{"$f":"IFERROR(IF(Table_SummaryPI[[#This Row],[kWhSavings]]=\"\",\"\",$AU$22*Table_SummaryPI[[#This Row],[kWhSavings]]),0)","v":""},{"$f":"IFERROR(IF(MeasureCalc(Table_PI[[#This Row],[Hide:\nFormula Name]],Table_SummaryPI[[#This Row],[Quantity]],Table_PI[[#This Row],[List 1]],Table_PI[[#This Row],[List 2]],Table_PI[[#This Row],[List 3]],Table_PI[[#This Row],[Size]],Table_PI[[#This Row],[Input 1]],Table_PI[[#This Row],[Input 2]],Table_PI[[#This Row],[Input 3]],Table_PI[[#This Row],[Input 4]],'Customer Information'!$AR$12,200,ROW())<>\"No Rebate\",MeasureCalc(Table_PI[[#This Row],[Hide:\nFormula Name]],Table_SummaryPI[[#This Row],[Quantity]],Table_PI[[#This Row],[List 1]],Table_PI[[#This Row],[List 2]],Table_PI[[#This Row],[List 3]],Table_PI[[#This Row],[Size]],Table_PI[[#This Row],[Input 1]],Table_PI[[#This Row],[Input 2]],Table_PI[[#This Row],[Input 3]],Table_PI[[#This Row],[Input 4]],'Customer Information'!$AR$12,200,ROW()),\"\"),\"\")","v":""},{"$f":"IFERROR(IF(MeasureCalc(Table_PI[[#This Row],[Hide:\nFormula Name]],Table_SummaryPI[[#This Row],[Quantity]],Table_PI[[#This Row],[List 1]],Table_PI[[#This Row],[List 2]],Table_PI[[#This Row],[List 3]],Table_PI[[#This Row],[Size]],Table_PI[[#This Row],[Input 1]],Table_PI[[#This Row],[Input 2]],Table_PI[[#This Row],[Input 3]],Table_PI[[#This Row],[Input 4]],'Customer Information'!$AR$12,201,ROW())<>\"No Rebate\",MeasureCalc(Table_PI[[#This Row],[Hide:\nFormula Name]],Table_SummaryPI[[#This Row],[Quantity]],Table_PI[[#This Row],[List 1]],Table_PI[[#This Row],[List 2]],Table_PI[[#This Row],[List 3]],Table_PI[[#This Row],[Size]],Table_PI[[#This Row],[Input 1]],Table_PI[[#This Row],[Input 2]],Table_PI[[#This Row],[Input 3]],Table_PI[[#This Row],[Input 4]],'Customer Information'!$AR$12,201,ROW()),\"\"),\"\")","v":""}]
[{"$f":"Table_PI[[#This Row],[Line No.]]","v":""},{"$f":"IF(Table_SummaryPI[[#This Row],[MeassureCategory]]<>\"\",CONCATENATE(Table_SummaryPI[[#This Row],[MeassureCategory]],  \" - \", Table_SummaryPI[[#This Row],[ProposedMeasureCategory]],  \" - \", TEXT(Table_SummaryPI[[#This Row],[Size]],\"#,##0.00\"),\" \",Table_SummaryPI[[#This Row],[SizeUnit]]),\"\")","v":""},{"$f":"SUBSTITUTE(Table_PI[[#This Row],[Measure]],\"     \",\"\",1)","v":""},{"$f":"IF(Table_PI[[#This Row],[List 1]]<>\"\",Table_PI[[#This Row],[List 1]],\"\")","v":""},{"$f":"IF(Table_PI[[#This Row],[List 2]]<>\"\",Table_PI[[#This Row],[List 2]],\"\")","v":""},{"$f":"IF(Table_PI[[#This Row],[List 3]]<>\"\",Table_PI[[#This Row],[List 3]],\"\")","v":""},{"$f":"IF(Table_PI[[#This Row],[Manufacturer]]=\"\",\"\",Table_PI[[#This Row],[Manufacturer]])","v":""},{"$f":"IF(Table_PI[[#This Row],[Model Number]]=\"\",\"\",Table_PI[[#This Row],[Model Number]])","v":""},{"$f":"IF(Table_PI[[#This Row],[Serial Number(s)]]=\"\",\"\",Table_PI[[#This Row],[Serial Number(s)]])","v":""},null,{"$f":"IF(Table_PI[[#This Row],[Size]]=\"\",\"\",Table_PI[[#This Row],[Size]])","v":""},null,{"$f":"IFERROR(IF(AND(MeasureCalc(Table_PI[[#This Row],[Hide:\nFormula Name]],Table_SummaryPI[[#This Row],[Quantity]],Table_PI[[#This Row],[List 1]],Table_PI[[#This Row],[List 2]],Table_PI[[#This Row],[List 3]],Table_PI[[#This Row],[Size]],Table_PI[[#This Row],[Input 1]],Table_PI[[#This Row],[Input 2]],Table_PI[[#This Row],[Input 3]],Table_PI[[#This Row],[Input 4]],'Customer Information'!$AR$12,100,ROW())<>0,MeasureCalc(Table_PI[[#This Row],[Hide:\nFormula Name]],Table_SummaryPI[[#This Row],[Quantity]],Table_PI[[#This Row],[List 1]],Table_PI[[#This Row],[List 2]],Table_PI[[#This Row],[List 3]],Table_PI[[#This Row],[Size]],Table_PI[[#This Row],[Input 1]],Table_PI[[#This Row],[Input 2]],Table_PI[[#This Row],[Input 3]],Table_PI[[#This Row],[Input 4]],'Customer Information'!$AR$12,100,ROW())<>\"No Rebate\"),MeasureCalc(Table_PI[[#This Row],[Hide:\nFormula Name]],Table_SummaryPI[[#This Row],[Quantity]],Table_PI[[#This Row],[List 1]],Table_PI[[#This Row],[List 2]],Table_PI[[#This Row],[List 3]],Table_PI[[#This Row],[Size]],Table_PI[[#This Row],[Input 1]],Table_PI[[#This Row],[Input 2]],Table_PI[[#This Row],[Input 3]],Table_PI[[#This Row],[Input 4]],'Customer Information'!$AR$12,100,ROW()),\"\"),\"\")","v":""},{"$f":"IF(Table_PI[[#This Row],[Input 1]]<>\"\",Table_PI[[#This Row],[Input 1]],\"\")","v":""},null,{"$f":"IFERROR(IF(AND(MeasureCalc(Table_PI[[#This Row],[Hide:\nFormula Name]],Table_SummaryPI[[#This Row],[Quantity]],Table_PI[[#This Row],[List 1]],Table_PI[[#This Row],[List 2]],Table_PI[[#This Row],[List 3]],Table_PI[[#This Row],[Size]],Table_PI[[#This Row],[Input 1]],Table_PI[[#This Row],[Input 2]],Table_PI[[#This Row],[Input 3]],Table_PI[[#This Row],[Input 4]],'Customer Information'!$AR$12,101,ROW())<>0,MeasureCalc(Table_PI[[#This Row],[Hide:\nFormula Name]],Table_SummaryPI[[#This Row],[Quantity]],Table_PI[[#This Row],[List 1]],Table_PI[[#This Row],[List 2]],Table_PI[[#This Row],[List 3]],Table_PI[[#This Row],[Size]],Table_PI[[#This Row],[Input 1]],Table_PI[[#This Row],[Input 2]],Table_PI[[#This Row],[Input 3]],Table_PI[[#This Row],[Input 4]],'Customer Information'!$AR$12,101,ROW())<>\"No Rebate\"),MeasureCalc(Table_PI[[#This Row],[Hide:\nFormula Name]],Table_SummaryPI[[#This Row],[Quantity]],Table_PI[[#This Row],[List 1]],Table_PI[[#This Row],[List 2]],Table_PI[[#This Row],[List 3]],Table_PI[[#This Row],[Size]],Table_PI[[#This Row],[Input 1]],Table_PI[[#This Row],[Input 2]],Table_PI[[#This Row],[Input 3]],Table_PI[[#This Row],[Input 4]],'Customer Information'!$AR$12,101,ROW()),\"\"),\"\")","v":""},{"$f":"IF(Table_PI[[#This Row],[Input 2]]<>\"\",Table_PI[[#This Row],[Input 2]],\"\")","v":""},null,{"$f":"IFERROR(IF(AND(MeasureCalc(Table_PI[[#This Row],[Hide:\nFormula Name]],Table_SummaryPI[[#This Row],[Quantity]],Table_PI[[#This Row],[List 1]],Table_PI[[#This Row],[List 2]],Table_PI[[#This Row],[List 3]],Table_PI[[#This Row],[Size]],Table_PI[[#This Row],[Input 1]],Table_PI[[#This Row],[Input 2]],Table_PI[[#This Row],[Input 3]],Table_PI[[#This Row],[Input 4]],'Customer Information'!$AR$12,102,ROW())<>0,MeasureCalc(Table_PI[[#This Row],[Hide:\nFormula Name]],Table_SummaryPI[[#This Row],[Quantity]],Table_PI[[#This Row],[List 1]],Table_PI[[#This Row],[List 2]],Table_PI[[#This Row],[List 3]],Table_PI[[#This Row],[Size]],Table_PI[[#This Row],[Input 1]],Table_PI[[#This Row],[Input 2]],Table_PI[[#This Row],[Input 3]],Table_PI[[#This Row],[Input 4]],'Customer Information'!$AR$12,102,ROW())<>\"No Rebate\"),MeasureCalc(Table_PI[[#This Row],[Hide:\nFormula Name]],Table_SummaryPI[[#This Row],[Quantity]],Table_PI[[#This Row],[List 1]],Table_PI[[#This Row],[List 2]],Table_PI[[#This Row],[List 3]],Table_PI[[#This Row],[Size]],Table_PI[[#This Row],[Input 1]],Table_PI[[#This Row],[Input 2]],Table_PI[[#This Row],[Input 3]],Table_PI[[#This Row],[Input 4]],'Customer Information'!$AR$12,102,ROW()),\"\"),\"\")","v":""},{"$f":"IF(Table_PI[[#This Row],[Input 3]]<>\"\",Table_PI[[#This Row],[Input 3]],\"\")","v":""},null,{"$f":"IFERROR(IF(AND(MeasureCalc(Table_PI[[#This Row],[Hide:\nFormula Name]],Table_SummaryPI[[#This Row],[Quantity]],Table_PI[[#This Row],[List 1]],Table_PI[[#This Row],[List 2]],Table_PI[[#This Row],[List 3]],Table_PI[[#This Row],[Size]],Table_PI[[#This Row],[Input 1]],Table_PI[[#This Row],[Input 2]],Table_PI[[#This Row],[Input 3]],Table_PI[[#This Row],[Input 4]],'Customer Information'!$AR$12,103,ROW())<>0,MeasureCalc(Table_PI[[#This Row],[Hide:\nFormula Name]],Table_SummaryPI[[#This Row],[Quantity]],Table_PI[[#This Row],[List 1]],Table_PI[[#This Row],[List 2]],Table_PI[[#This Row],[List 3]],Table_PI[[#This Row],[Size]],Table_PI[[#This Row],[Input 1]],Table_PI[[#This Row],[Input 2]],Table_PI[[#This Row],[Input 3]],Table_PI[[#This Row],[Input 4]],'Customer Information'!$AR$12,103,ROW())<>\"No Rebate\"),MeasureCalc(Table_PI[[#This Row],[Hide:\nFormula Name]],Table_SummaryPI[[#This Row],[Quantity]],Table_PI[[#This Row],[List 1]],Table_PI[[#This Row],[List 2]],Table_PI[[#This Row],[List 3]],Table_PI[[#This Row],[Size]],Table_PI[[#This Row],[Input 1]],Table_PI[[#This Row],[Input 2]],Table_PI[[#This Row],[Input 3]],Table_PI[[#This Row],[Input 4]],'Customer Information'!$AR$12,103,ROW()),\"\"),\"\")","v":""},{"$f":"IF(Table_PI[[#This Row],[Input 4]]<>\"\",Table_PI[[#This Row],[Input 4]],\"\")","v":""},{"$f":"IF(Table_PI[[#This Row],[Quantity]]=\"\",\"\",Table_PI[[#This Row],[Quantity]])","v":""},{"$f":"IF(Table_PI[[#This Row],[Notes]]=\"\",\"\",Table_PI[[#This Row],[Notes]])","v":""},{"$f":"IF(OR(Table_PI[[#This Row],[Hide:\nBaseline kWh]]=\"\",Table_PI[[#This Row],[Hide:\nBaseline kWh]]=0),\"\",Table_PI[[#This Row],[Hide:\nBaseline kWh]])","v":""},{"$f":"IF(OR(Table_PI[[#This Row],[Hide:\nBaseline kW]]=\"\",Table_PI[[#This Row],[Hide:\nBaseline kW]]=0),\"\",Table_PI[[#This Row],[Hide:\nBaseline kW]])","v":""},{"$f":"IF(OR(Table_PI[[#This Row],[Hide:\nProposed kWh]]=\"\",Table_PI[[#This Row],[Hide:\nProposed kWh]]=0),\"\",Table_PI[[#This Row],[Hide:\nProposed kWh]])","v":""},{"$f":"IF(OR(Table_PI[[#This Row],[Hide:\nProposed kW]]=\"\",Table_PI[[#This Row],[Hide:\nProposed kW]]=0),\"\",Table_PI[[#This Row],[Hide:\nProposed kW]])","v":""},{"$f":"IF(OR(Table_PI[[#This Row],[Rebate]]=\"\",Table_PI[[#This Row],[Rebate]]=0),\"\",Table_PI[[#This Row],[Rebate]])","v":""},{"$f":"IF(OR(Table_PI[[#This Row],[Hide:\nIncremental Cost]]=\"\",Table_PI[[#This Row],[Hide:\nIncremental Cost]]=0),\"\",Table_PI[[#This Row],[Hide:\nIncremental Cost]])","v":""},{"$f":"IFERROR(IF(Table_SummaryPI[[#This Row],[kWhSavings]]=\"\",\"\",ROUND(Table_SummaryPI[[#This Row],[kWhSavings]]/$AG$401*'Customer Information'!$BC$17,2)),0)","v":""},{"$f":"IF(OR(Table_PI[[#This Row],[Annual kWh]]=\"\",Table_PI[[#This Row],[Annual kWh]]=0),\"\",Table_PI[[#This Row],[Annual kWh]])","v":""},{"$f":"IF(OR(Table_PI[[#This Row],[Peak kW]]=\"\",Table_PI[[#This Row],[Peak kW]]=0),\"\",Table_PI[[#This Row],[Peak kW]])","v":""},{"$f":"IFERROR(IF(Table_SummaryPI[[#This Row],[kWhSavings]]=\"\",\"\",$AU$9*Table_SummaryPI[[#This Row],[kWhSavings]]),0)","v":""},{"$f":"IFERROR(IF(Table_SummaryPI[[#This Row],[kWhSavings]]=\"\",\"\",$AU$14*Table_SummaryPI[[#This Row],[kWhSavings]]),0)","v":""},{"$f":"IFERROR(IF(Table_SummaryPI[[#This Row],[kWhSavings]]=\"\",\"\",$AU$18*Table_SummaryPI[[#This Row],[kWhSavings]]),0)","v":""},{"$f":"IFERROR(IF(Table_SummaryPI[[#This Row],[kWhSavings]]=\"\",\"\",$AU$22*Table_SummaryPI[[#This Row],[kWhSavings]]),0)","v":""},{"$f":"IFERROR(IF(MeasureCalc(Table_PI[[#This Row],[Hide:\nFormula Name]],Table_SummaryPI[[#This Row],[Quantity]],Table_PI[[#This Row],[List 1]],Table_PI[[#This Row],[List 2]],Table_PI[[#This Row],[List 3]],Table_PI[[#This Row],[Size]],Table_PI[[#This Row],[Input 1]],Table_PI[[#This Row],[Input 2]],Table_PI[[#This Row],[Input 3]],Table_PI[[#This Row],[Input 4]],'Customer Information'!$AR$12,200,ROW())<>\"No Rebate\",MeasureCalc(Table_PI[[#This Row],[Hide:\nFormula Name]],Table_SummaryPI[[#This Row],[Quantity]],Table_PI[[#This Row],[List 1]],Table_PI[[#This Row],[List 2]],Table_PI[[#This Row],[List 3]],Table_PI[[#This Row],[Size]],Table_PI[[#This Row],[Input 1]],Table_PI[[#This Row],[Input 2]],Table_PI[[#This Row],[Input 3]],Table_PI[[#This Row],[Input 4]],'Customer Information'!$AR$12,200,ROW()),\"\"),\"\")","v":""},{"$f":"IFERROR(IF(MeasureCalc(Table_PI[[#This Row],[Hide:\nFormula Name]],Table_SummaryPI[[#This Row],[Quantity]],Table_PI[[#This Row],[List 1]],Table_PI[[#This Row],[List 2]],Table_PI[[#This Row],[List 3]],Table_PI[[#This Row],[Size]],Table_PI[[#This Row],[Input 1]],Table_PI[[#This Row],[Input 2]],Table_PI[[#This Row],[Input 3]],Table_PI[[#This Row],[Input 4]],'Customer Information'!$AR$12,201,ROW())<>\"No Rebate\",MeasureCalc(Table_PI[[#This Row],[Hide:\nFormula Name]],Table_SummaryPI[[#This Row],[Quantity]],Table_PI[[#This Row],[List 1]],Table_PI[[#This Row],[List 2]],Table_PI[[#This Row],[List 3]],Table_PI[[#This Row],[Size]],Table_PI[[#This Row],[Input 1]],Table_PI[[#This Row],[Input 2]],Table_PI[[#This Row],[Input 3]],Table_PI[[#This Row],[Input 4]],'Customer Information'!$AR$12,201,ROW()),\"\"),\"\")","v":""}]
[{"$f":"Table_PI[[#This Row],[Line No.]]","v":""},{"$f":"IF(Table_SummaryPI[[#This Row],[MeassureCategory]]<>\"\",CONCATENATE(Table_SummaryPI[[#This Row],[MeassureCategory]],  \" - \", Table_SummaryPI[[#This Row],[ProposedMeasureCategory]],  \" - \", TEXT(Table_SummaryPI[[#This Row],[Size]],\"#,##0.00\"),\" \",Table_SummaryPI[[#This Row],[SizeUnit]]),\"\")","v":""},{"$f":"SUBSTITUTE(Table_PI[[#This Row],[Measure]],\"     \",\"\",1)","v":""},{"$f":"IF(Table_PI[[#This Row],[List 1]]<>\"\",Table_PI[[#This Row],[List 1]],\"\")","v":""},{"$f":"IF(Table_PI[[#This Row],[List 2]]<>\"\",Table_PI[[#This Row],[List 2]],\"\")","v":""},{"$f":"IF(Table_PI[[#This Row],[List 3]]<>\"\",Table_PI[[#This Row],[List 3]],\"\")","v":""},{"$f":"IF(Table_PI[[#This Row],[Manufacturer]]=\"\",\"\",Table_PI[[#This Row],[Manufacturer]])","v":""},{"$f":"IF(Table_PI[[#This Row],[Model Number]]=\"\",\"\",Table_PI[[#This Row],[Model Number]])","v":""},{"$f":"IF(Table_PI[[#This Row],[Serial Number(s)]]=\"\",\"\",Table_PI[[#This Row],[Serial Number(s)]])","v":""},null,{"$f":"IF(Table_PI[[#This Row],[Size]]=\"\",\"\",Table_PI[[#This Row],[Size]])","v":""},null,{"$f":"IFERROR(IF(AND(MeasureCalc(Table_PI[[#This Row],[Hide:\nFormula Name]],Table_SummaryPI[[#This Row],[Quantity]],Table_PI[[#This Row],[List 1]],Table_PI[[#This Row],[List 2]],Table_PI[[#This Row],[List 3]],Table_PI[[#This Row],[Size]],Table_PI[[#This Row],[Input 1]],Table_PI[[#This Row],[Input 2]],Table_PI[[#This Row],[Input 3]],Table_PI[[#This Row],[Input 4]],'Customer Information'!$AR$12,100,ROW())<>0,MeasureCalc(Table_PI[[#This Row],[Hide:\nFormula Name]],Table_SummaryPI[[#This Row],[Quantity]],Table_PI[[#This Row],[List 1]],Table_PI[[#This Row],[List 2]],Table_PI[[#This Row],[List 3]],Table_PI[[#This Row],[Size]],Table_PI[[#This Row],[Input 1]],Table_PI[[#This Row],[Input 2]],Table_PI[[#This Row],[Input 3]],Table_PI[[#This Row],[Input 4]],'Customer Information'!$AR$12,100,ROW())<>\"No Rebate\"),MeasureCalc(Table_PI[[#This Row],[Hide:\nFormula Name]],Table_SummaryPI[[#This Row],[Quantity]],Table_PI[[#This Row],[List 1]],Table_PI[[#This Row],[List 2]],Table_PI[[#This Row],[List 3]],Table_PI[[#This Row],[Size]],Table_PI[[#This Row],[Input 1]],Table_PI[[#This Row],[Input 2]],Table_PI[[#This Row],[Input 3]],Table_PI[[#This Row],[Input 4]],'Customer Information'!$AR$12,100,ROW()),\"\"),\"\")","v":""},{"$f":"IF(Table_PI[[#This Row],[Input 1]]<>\"\",Table_PI[[#This Row],[Input 1]],\"\")","v":""},null,{"$f":"IFERROR(IF(AND(MeasureCalc(Table_PI[[#This Row],[Hide:\nFormula Name]],Table_SummaryPI[[#This Row],[Quantity]],Table_PI[[#This Row],[List 1]],Table_PI[[#This Row],[List 2]],Table_PI[[#This Row],[List 3]],Table_PI[[#This Row],[Size]],Table_PI[[#This Row],[Input 1]],Table_PI[[#This Row],[Input 2]],Table_PI[[#This Row],[Input 3]],Table_PI[[#This Row],[Input 4]],'Customer Information'!$AR$12,101,ROW())<>0,MeasureCalc(Table_PI[[#This Row],[Hide:\nFormula Name]],Table_SummaryPI[[#This Row],[Quantity]],Table_PI[[#This Row],[List 1]],Table_PI[[#This Row],[List 2]],Table_PI[[#This Row],[List 3]],Table_PI[[#This Row],[Size]],Table_PI[[#This Row],[Input 1]],Table_PI[[#This Row],[Input 2]],Table_PI[[#This Row],[Input 3]],Table_PI[[#This Row],[Input 4]],'Customer Information'!$AR$12,101,ROW())<>\"No Rebate\"),MeasureCalc(Table_PI[[#This Row],[Hide:\nFormula Name]],Table_SummaryPI[[#This Row],[Quantity]],Table_PI[[#This Row],[List 1]],Table_PI[[#This Row],[List 2]],Table_PI[[#This Row],[List 3]],Table_PI[[#This Row],[Size]],Table_PI[[#This Row],[Input 1]],Table_PI[[#This Row],[Input 2]],Table_PI[[#This Row],[Input 3]],Table_PI[[#This Row],[Input 4]],'Customer Information'!$AR$12,101,ROW()),\"\"),\"\")","v":""},{"$f":"IF(Table_PI[[#This Row],[Input 2]]<>\"\",Table_PI[[#This Row],[Input 2]],\"\")","v":""},null,{"$f":"IFERROR(IF(AND(MeasureCalc(Table_PI[[#This Row],[Hide:\nFormula Name]],Table_SummaryPI[[#This Row],[Quantity]],Table_PI[[#This Row],[List 1]],Table_PI[[#This Row],[List 2]],Table_PI[[#This Row],[List 3]],Table_PI[[#This Row],[Size]],Table_PI[[#This Row],[Input 1]],Table_PI[[#This Row],[Input 2]],Table_PI[[#This Row],[Input 3]],Table_PI[[#This Row],[Input 4]],'Customer Information'!$AR$12,102,ROW())<>0,MeasureCalc(Table_PI[[#This Row],[Hide:\nFormula Name]],Table_SummaryPI[[#This Row],[Quantity]],Table_PI[[#This Row],[List 1]],Table_PI[[#This Row],[List 2]],Table_PI[[#This Row],[List 3]],Table_PI[[#This Row],[Size]],Table_PI[[#This Row],[Input 1]],Table_PI[[#This Row],[Input 2]],Table_PI[[#This Row],[Input 3]],Table_PI[[#This Row],[Input 4]],'Customer Information'!$AR$12,102,ROW())<>\"No Rebate\"),MeasureCalc(Table_PI[[#This Row],[Hide:\nFormula Name]],Table_SummaryPI[[#This Row],[Quantity]],Table_PI[[#This Row],[List 1]],Table_PI[[#This Row],[List 2]],Table_PI[[#This Row],[List 3]],Table_PI[[#This Row],[Size]],Table_PI[[#This Row],[Input 1]],Table_PI[[#This Row],[Input 2]],Table_PI[[#This Row],[Input 3]],Table_PI[[#This Row],[Input 4]],'Customer Information'!$AR$12,102,ROW()),\"\"),\"\")","v":""},{"$f":"IF(Table_PI[[#This Row],[Input 3]]<>\"\",Table_PI[[#This Row],[Input 3]],\"\")","v":""},null,{"$f":"IFERROR(IF(AND(MeasureCalc(Table_PI[[#This Row],[Hide:\nFormula Name]],Table_SummaryPI[[#This Row],[Quantity]],Table_PI[[#This Row],[List 1]],Table_PI[[#This Row],[List 2]],Table_PI[[#This Row],[List 3]],Table_PI[[#This Row],[Size]],Table_PI[[#This Row],[Input 1]],Table_PI[[#This Row],[Input 2]],Table_PI[[#This Row],[Input 3]],Table_PI[[#This Row],[Input 4]],'Customer Information'!$AR$12,103,ROW())<>0,MeasureCalc(Table_PI[[#This Row],[Hide:\nFormula Name]],Table_SummaryPI[[#This Row],[Quantity]],Table_PI[[#This Row],[List 1]],Table_PI[[#This Row],[List 2]],Table_PI[[#This Row],[List 3]],Table_PI[[#This Row],[Size]],Table_PI[[#This Row],[Input 1]],Table_PI[[#This Row],[Input 2]],Table_PI[[#This Row],[Input 3]],Table_PI[[#This Row],[Input 4]],'Customer Information'!$AR$12,103,ROW())<>\"No Rebate\"),MeasureCalc(Table_PI[[#This Row],[Hide:\nFormula Name]],Table_SummaryPI[[#This Row],[Quantity]],Table_PI[[#This Row],[List 1]],Table_PI[[#This Row],[List 2]],Table_PI[[#This Row],[List 3]],Table_PI[[#This Row],[Size]],Table_PI[[#This Row],[Input 1]],Table_PI[[#This Row],[Input 2]],Table_PI[[#This Row],[Input 3]],Table_PI[[#This Row],[Input 4]],'Customer Information'!$AR$12,103,ROW()),\"\"),\"\")","v":""},{"$f":"IF(Table_PI[[#This Row],[Input 4]]<>\"\",Table_PI[[#This Row],[Input 4]],\"\")","v":""},{"$f":"IF(Table_PI[[#This Row],[Quantity]]=\"\",\"\",Table_PI[[#This Row],[Quantity]])","v":""},{"$f":"IF(Table_PI[[#This Row],[Notes]]=\"\",\"\",Table_PI[[#This Row],[Notes]])","v":""},{"$f":"IF(OR(Table_PI[[#This Row],[Hide:\nBaseline kWh]]=\"\",Table_PI[[#This Row],[Hide:\nBaseline kWh]]=0),\"\",Table_PI[[#This Row],[Hide:\nBaseline kWh]])","v":""},{"$f":"IF(OR(Table_PI[[#This Row],[Hide:\nBaseline kW]]=\"\",Table_PI[[#This Row],[Hide:\nBaseline kW]]=0),\"\",Table_PI[[#This Row],[Hide:\nBaseline kW]])","v":""},{"$f":"IF(OR(Table_PI[[#This Row],[Hide:\nProposed kWh]]=\"\",Table_PI[[#This Row],[Hide:\nProposed kWh]]=0),\"\",Table_PI[[#This Row],[Hide:\nProposed kWh]])","v":""},{"$f":"IF(OR(Table_PI[[#This Row],[Hide:\nProposed kW]]=\"\",Table_PI[[#This Row],[Hide:\nProposed kW]]=0),\"\",Table_PI[[#This Row],[Hide:\nProposed kW]])","v":""},{"$f":"IF(OR(Table_PI[[#This Row],[Rebate]]=\"\",Table_PI[[#This Row],[Rebate]]=0),\"\",Table_PI[[#This Row],[Rebate]])","v":""},{"$f":"IF(OR(Table_PI[[#This Row],[Hide:\nIncremental Cost]]=\"\",Table_PI[[#This Row],[Hide:\nIncremental Cost]]=0),\"\",Table_PI[[#This Row],[Hide:\nIncremental Cost]])","v":""},{"$f":"IFERROR(IF(Table_SummaryPI[[#This Row],[kWhSavings]]=\"\",\"\",ROUND(Table_SummaryPI[[#This Row],[kWhSavings]]/$AG$401*'Customer Information'!$BC$17,2)),0)","v":""},{"$f":"IF(OR(Table_PI[[#This Row],[Annual kWh]]=\"\",Table_PI[[#This Row],[Annual kWh]]=0),\"\",Table_PI[[#This Row],[Annual kWh]])","v":""},{"$f":"IF(OR(Table_PI[[#This Row],[Peak kW]]=\"\",Table_PI[[#This Row],[Peak kW]]=0),\"\",Table_PI[[#This Row],[Peak kW]])","v":""},{"$f":"IFERROR(IF(Table_SummaryPI[[#This Row],[kWhSavings]]=\"\",\"\",$AU$9*Table_SummaryPI[[#This Row],[kWhSavings]]),0)","v":""},{"$f":"IFERROR(IF(Table_SummaryPI[[#This Row],[kWhSavings]]=\"\",\"\",$AU$14*Table_SummaryPI[[#This Row],[kWhSavings]]),0)","v":""},{"$f":"IFERROR(IF(Table_SummaryPI[[#This Row],[kWhSavings]]=\"\",\"\",$AU$18*Table_SummaryPI[[#This Row],[kWhSavings]]),0)","v":""},{"$f":"IFERROR(IF(Table_SummaryPI[[#This Row],[kWhSavings]]=\"\",\"\",$AU$22*Table_SummaryPI[[#This Row],[kWhSavings]]),0)","v":""},{"$f":"IFERROR(IF(MeasureCalc(Table_PI[[#This Row],[Hide:\nFormula Name]],Table_SummaryPI[[#This Row],[Quantity]],Table_PI[[#This Row],[List 1]],Table_PI[[#This Row],[List 2]],Table_PI[[#This Row],[List 3]],Table_PI[[#This Row],[Size]],Table_PI[[#This Row],[Input 1]],Table_PI[[#This Row],[Input 2]],Table_PI[[#This Row],[Input 3]],Table_PI[[#This Row],[Input 4]],'Customer Information'!$AR$12,200,ROW())<>\"No Rebate\",MeasureCalc(Table_PI[[#This Row],[Hide:\nFormula Name]],Table_SummaryPI[[#This Row],[Quantity]],Table_PI[[#This Row],[List 1]],Table_PI[[#This Row],[List 2]],Table_PI[[#This Row],[List 3]],Table_PI[[#This Row],[Size]],Table_PI[[#This Row],[Input 1]],Table_PI[[#This Row],[Input 2]],Table_PI[[#This Row],[Input 3]],Table_PI[[#This Row],[Input 4]],'Customer Information'!$AR$12,200,ROW()),\"\"),\"\")","v":""},{"$f":"IFERROR(IF(MeasureCalc(Table_PI[[#This Row],[Hide:\nFormula Name]],Table_SummaryPI[[#This Row],[Quantity]],Table_PI[[#This Row],[List 1]],Table_PI[[#This Row],[List 2]],Table_PI[[#This Row],[List 3]],Table_PI[[#This Row],[Size]],Table_PI[[#This Row],[Input 1]],Table_PI[[#This Row],[Input 2]],Table_PI[[#This Row],[Input 3]],Table_PI[[#This Row],[Input 4]],'Customer Information'!$AR$12,201,ROW())<>\"No Rebate\",MeasureCalc(Table_PI[[#This Row],[Hide:\nFormula Name]],Table_SummaryPI[[#This Row],[Quantity]],Table_PI[[#This Row],[List 1]],Table_PI[[#This Row],[List 2]],Table_PI[[#This Row],[List 3]],Table_PI[[#This Row],[Size]],Table_PI[[#This Row],[Input 1]],Table_PI[[#This Row],[Input 2]],Table_PI[[#This Row],[Input 3]],Table_PI[[#This Row],[Input 4]],'Customer Information'!$AR$12,201,ROW()),\"\"),\"\")","v":""}]
[{"$f":"Table_PI[[#This Row],[Line No.]]","v":""},{"$f":"IF(Table_SummaryPI[[#This Row],[MeassureCategory]]<>\"\",CONCATENATE(Table_SummaryPI[[#This Row],[MeassureCategory]],  \" - \", Table_SummaryPI[[#This Row],[ProposedMeasureCategory]],  \" - \", TEXT(Table_SummaryPI[[#This Row],[Size]],\"#,##0.00\"),\" \",Table_SummaryPI[[#This Row],[SizeUnit]]),\"\")","v":""},{"$f":"SUBSTITUTE(Table_PI[[#This Row],[Measure]],\"     \",\"\",1)","v":""},{"$f":"IF(Table_PI[[#This Row],[List 1]]<>\"\",Table_PI[[#This Row],[List 1]],\"\")","v":""},{"$f":"IF(Table_PI[[#This Row],[List 2]]<>\"\",Table_PI[[#This Row],[List 2]],\"\")","v":""},{"$f":"IF(Table_PI[[#This Row],[List 3]]<>\"\",Table_PI[[#This Row],[List 3]],\"\")","v":""},{"$f":"IF(Table_PI[[#This Row],[Manufacturer]]=\"\",\"\",Table_PI[[#This Row],[Manufacturer]])","v":""},{"$f":"IF(Table_PI[[#This Row],[Model Number]]=\"\",\"\",Table_PI[[#This Row],[Model Number]])","v":""},{"$f":"IF(Table_PI[[#This Row],[Serial Number(s)]]=\"\",\"\",Table_PI[[#This Row],[Serial Number(s)]])","v":""},null,{"$f":"IF(Table_PI[[#This Row],[Size]]=\"\",\"\",Table_PI[[#This Row],[Size]])","v":""},null,{"$f":"IFERROR(IF(AND(MeasureCalc(Table_PI[[#This Row],[Hide:\nFormula Name]],Table_SummaryPI[[#This Row],[Quantity]],Table_PI[[#This Row],[List 1]],Table_PI[[#This Row],[List 2]],Table_PI[[#This Row],[List 3]],Table_PI[[#This Row],[Size]],Table_PI[[#This Row],[Input 1]],Table_PI[[#This Row],[Input 2]],Table_PI[[#This Row],[Input 3]],Table_PI[[#This Row],[Input 4]],'Customer Information'!$AR$12,100,ROW())<>0,MeasureCalc(Table_PI[[#This Row],[Hide:\nFormula Name]],Table_SummaryPI[[#This Row],[Quantity]],Table_PI[[#This Row],[List 1]],Table_PI[[#This Row],[List 2]],Table_PI[[#This Row],[List 3]],Table_PI[[#This Row],[Size]],Table_PI[[#This Row],[Input 1]],Table_PI[[#This Row],[Input 2]],Table_PI[[#This Row],[Input 3]],Table_PI[[#This Row],[Input 4]],'Customer Information'!$AR$12,100,ROW())<>\"No Rebate\"),MeasureCalc(Table_PI[[#This Row],[Hide:\nFormula Name]],Table_SummaryPI[[#This Row],[Quantity]],Table_PI[[#This Row],[List 1]],Table_PI[[#This Row],[List 2]],Table_PI[[#This Row],[List 3]],Table_PI[[#This Row],[Size]],Table_PI[[#This Row],[Input 1]],Table_PI[[#This Row],[Input 2]],Table_PI[[#This Row],[Input 3]],Table_PI[[#This Row],[Input 4]],'Customer Information'!$AR$12,100,ROW()),\"\"),\"\")","v":""},{"$f":"IF(Table_PI[[#This Row],[Input 1]]<>\"\",Table_PI[[#This Row],[Input 1]],\"\")","v":""},null,{"$f":"IFERROR(IF(AND(MeasureCalc(Table_PI[[#This Row],[Hide:\nFormula Name]],Table_SummaryPI[[#This Row],[Quantity]],Table_PI[[#This Row],[List 1]],Table_PI[[#This Row],[List 2]],Table_PI[[#This Row],[List 3]],Table_PI[[#This Row],[Size]],Table_PI[[#This Row],[Input 1]],Table_PI[[#This Row],[Input 2]],Table_PI[[#This Row],[Input 3]],Table_PI[[#This Row],[Input 4]],'Customer Information'!$AR$12,101,ROW())<>0,MeasureCalc(Table_PI[[#This Row],[Hide:\nFormula Name]],Table_SummaryPI[[#This Row],[Quantity]],Table_PI[[#This Row],[List 1]],Table_PI[[#This Row],[List 2]],Table_PI[[#This Row],[List 3]],Table_PI[[#This Row],[Size]],Table_PI[[#This Row],[Input 1]],Table_PI[[#This Row],[Input 2]],Table_PI[[#This Row],[Input 3]],Table_PI[[#This Row],[Input 4]],'Customer Information'!$AR$12,101,ROW())<>\"No Rebate\"),MeasureCalc(Table_PI[[#This Row],[Hide:\nFormula Name]],Table_SummaryPI[[#This Row],[Quantity]],Table_PI[[#This Row],[List 1]],Table_PI[[#This Row],[List 2]],Table_PI[[#This Row],[List 3]],Table_PI[[#This Row],[Size]],Table_PI[[#This Row],[Input 1]],Table_PI[[#This Row],[Input 2]],Table_PI[[#This Row],[Input 3]],Table_PI[[#This Row],[Input 4]],'Customer Information'!$AR$12,101,ROW()),\"\"),\"\")","v":""},{"$f":"IF(Table_PI[[#This Row],[Input 2]]<>\"\",Table_PI[[#This Row],[Input 2]],\"\")","v":""},null,{"$f":"IFERROR(IF(AND(MeasureCalc(Table_PI[[#This Row],[Hide:\nFormula Name]],Table_SummaryPI[[#This Row],[Quantity]],Table_PI[[#This Row],[List 1]],Table_PI[[#This Row],[List 2]],Table_PI[[#This Row],[List 3]],Table_PI[[#This Row],[Size]],Table_PI[[#This Row],[Input 1]],Table_PI[[#This Row],[Input 2]],Table_PI[[#This Row],[Input 3]],Table_PI[[#This Row],[Input 4]],'Customer Information'!$AR$12,102,ROW())<>0,MeasureCalc(Table_PI[[#This Row],[Hide:\nFormula Name]],Table_SummaryPI[[#This Row],[Quantity]],Table_PI[[#This Row],[List 1]],Table_PI[[#This Row],[List 2]],Table_PI[[#This Row],[List 3]],Table_PI[[#This Row],[Size]],Table_PI[[#This Row],[Input 1]],Table_PI[[#This Row],[Input 2]],Table_PI[[#This Row],[Input 3]],Table_PI[[#This Row],[Input 4]],'Customer Information'!$AR$12,102,ROW())<>\"No Rebate\"),MeasureCalc(Table_PI[[#This Row],[Hide:\nFormula Name]],Table_SummaryPI[[#This Row],[Quantity]],Table_PI[[#This Row],[List 1]],Table_PI[[#This Row],[List 2]],Table_PI[[#This Row],[List 3]],Table_PI[[#This Row],[Size]],Table_PI[[#This Row],[Input 1]],Table_PI[[#This Row],[Input 2]],Table_PI[[#This Row],[Input 3]],Table_PI[[#This Row],[Input 4]],'Customer Information'!$AR$12,102,ROW()),\"\"),\"\")","v":""},{"$f":"IF(Table_PI[[#This Row],[Input 3]]<>\"\",Table_PI[[#This Row],[Input 3]],\"\")","v":""},null,{"$f":"IFERROR(IF(AND(MeasureCalc(Table_PI[[#This Row],[Hide:\nFormula Name]],Table_SummaryPI[[#This Row],[Quantity]],Table_PI[[#This Row],[List 1]],Table_PI[[#This Row],[List 2]],Table_PI[[#This Row],[List 3]],Table_PI[[#This Row],[Size]],Table_PI[[#This Row],[Input 1]],Table_PI[[#This Row],[Input 2]],Table_PI[[#This Row],[Input 3]],Table_PI[[#This Row],[Input 4]],'Customer Information'!$AR$12,103,ROW())<>0,MeasureCalc(Table_PI[[#This Row],[Hide:\nFormula Name]],Table_SummaryPI[[#This Row],[Quantity]],Table_PI[[#This Row],[List 1]],Table_PI[[#This Row],[List 2]],Table_PI[[#This Row],[List 3]],Table_PI[[#This Row],[Size]],Table_PI[[#This Row],[Input 1]],Table_PI[[#This Row],[Input 2]],Table_PI[[#This Row],[Input 3]],Table_PI[[#This Row],[Input 4]],'Customer Information'!$AR$12,103,ROW())<>\"No Rebate\"),MeasureCalc(Table_PI[[#This Row],[Hide:\nFormula Name]],Table_SummaryPI[[#This Row],[Quantity]],Table_PI[[#This Row],[List 1]],Table_PI[[#This Row],[List 2]],Table_PI[[#This Row],[List 3]],Table_PI[[#This Row],[Size]],Table_PI[[#This Row],[Input 1]],Table_PI[[#This Row],[Input 2]],Table_PI[[#This Row],[Input 3]],Table_PI[[#This Row],[Input 4]],'Customer Information'!$AR$12,103,ROW()),\"\"),\"\")","v":""},{"$f":"IF(Table_PI[[#This Row],[Input 4]]<>\"\",Table_PI[[#This Row],[Input 4]],\"\")","v":""},{"$f":"IF(Table_PI[[#This Row],[Quantity]]=\"\",\"\",Table_PI[[#This Row],[Quantity]])","v":""},{"$f":"IF(Table_PI[[#This Row],[Notes]]=\"\",\"\",Table_PI[[#This Row],[Notes]])","v":""},{"$f":"IF(OR(Table_PI[[#This Row],[Hide:\nBaseline kWh]]=\"\",Table_PI[[#This Row],[Hide:\nBaseline kWh]]=0),\"\",Table_PI[[#This Row],[Hide:\nBaseline kWh]])","v":""},{"$f":"IF(OR(Table_PI[[#This Row],[Hide:\nBaseline kW]]=\"\",Table_PI[[#This Row],[Hide:\nBaseline kW]]=0),\"\",Table_PI[[#This Row],[Hide:\nBaseline kW]])","v":""},{"$f":"IF(OR(Table_PI[[#This Row],[Hide:\nProposed kWh]]=\"\",Table_PI[[#This Row],[Hide:\nProposed kWh]]=0),\"\",Table_PI[[#This Row],[Hide:\nProposed kWh]])","v":""},{"$f":"IF(OR(Table_PI[[#This Row],[Hide:\nProposed kW]]=\"\",Table_PI[[#This Row],[Hide:\nProposed kW]]=0),\"\",Table_PI[[#This Row],[Hide:\nProposed kW]])","v":""},{"$f":"IF(OR(Table_PI[[#This Row],[Rebate]]=\"\",Table_PI[[#This Row],[Rebate]]=0),\"\",Table_PI[[#This Row],[Rebate]])","v":""},{"$f":"IF(OR(Table_PI[[#This Row],[Hide:\nIncremental Cost]]=\"\",Table_PI[[#This Row],[Hide:\nIncremental Cost]]=0),\"\",Table_PI[[#This Row],[Hide:\nIncremental Cost]])","v":""},{"$f":"IFERROR(IF(Table_SummaryPI[[#This Row],[kWhSavings]]=\"\",\"\",ROUND(Table_SummaryPI[[#This Row],[kWhSavings]]/$AG$401*'Customer Information'!$BC$17,2)),0)","v":""},{"$f":"IF(OR(Table_PI[[#This Row],[Annual kWh]]=\"\",Table_PI[[#This Row],[Annual kWh]]=0),\"\",Table_PI[[#This Row],[Annual kWh]])","v":""},{"$f":"IF(OR(Table_PI[[#This Row],[Peak kW]]=\"\",Table_PI[[#This Row],[Peak kW]]=0),\"\",Table_PI[[#This Row],[Peak kW]])","v":""},{"$f":"IFERROR(IF(Table_SummaryPI[[#This Row],[kWhSavings]]=\"\",\"\",$AU$9*Table_SummaryPI[[#This Row],[kWhSavings]]),0)","v":""},{"$f":"IFERROR(IF(Table_SummaryPI[[#This Row],[kWhSavings]]=\"\",\"\",$AU$14*Table_SummaryPI[[#This Row],[kWhSavings]]),0)","v":""},{"$f":"IFERROR(IF(Table_SummaryPI[[#This Row],[kWhSavings]]=\"\",\"\",$AU$18*Table_SummaryPI[[#This Row],[kWhSavings]]),0)","v":""},{"$f":"IFERROR(IF(Table_SummaryPI[[#This Row],[kWhSavings]]=\"\",\"\",$AU$22*Table_SummaryPI[[#This Row],[kWhSavings]]),0)","v":""},{"$f":"IFERROR(IF(MeasureCalc(Table_PI[[#This Row],[Hide:\nFormula Name]],Table_SummaryPI[[#This Row],[Quantity]],Table_PI[[#This Row],[List 1]],Table_PI[[#This Row],[List 2]],Table_PI[[#This Row],[List 3]],Table_PI[[#This Row],[Size]],Table_PI[[#This Row],[Input 1]],Table_PI[[#This Row],[Input 2]],Table_PI[[#This Row],[Input 3]],Table_PI[[#This Row],[Input 4]],'Customer Information'!$AR$12,200,ROW())<>\"No Rebate\",MeasureCalc(Table_PI[[#This Row],[Hide:\nFormula Name]],Table_SummaryPI[[#This Row],[Quantity]],Table_PI[[#This Row],[List 1]],Table_PI[[#This Row],[List 2]],Table_PI[[#This Row],[List 3]],Table_PI[[#This Row],[Size]],Table_PI[[#This Row],[Input 1]],Table_PI[[#This Row],[Input 2]],Table_PI[[#This Row],[Input 3]],Table_PI[[#This Row],[Input 4]],'Customer Information'!$AR$12,200,ROW()),\"\"),\"\")","v":""},{"$f":"IFERROR(IF(MeasureCalc(Table_PI[[#This Row],[Hide:\nFormula Name]],Table_SummaryPI[[#This Row],[Quantity]],Table_PI[[#This Row],[List 1]],Table_PI[[#This Row],[List 2]],Table_PI[[#This Row],[List 3]],Table_PI[[#This Row],[Size]],Table_PI[[#This Row],[Input 1]],Table_PI[[#This Row],[Input 2]],Table_PI[[#This Row],[Input 3]],Table_PI[[#This Row],[Input 4]],'Customer Information'!$AR$12,201,ROW())<>\"No Rebate\",MeasureCalc(Table_PI[[#This Row],[Hide:\nFormula Name]],Table_SummaryPI[[#This Row],[Quantity]],Table_PI[[#This Row],[List 1]],Table_PI[[#This Row],[List 2]],Table_PI[[#This Row],[List 3]],Table_PI[[#This Row],[Size]],Table_PI[[#This Row],[Input 1]],Table_PI[[#This Row],[Input 2]],Table_PI[[#This Row],[Input 3]],Table_PI[[#This Row],[Input 4]],'Customer Information'!$AR$12,201,ROW()),\"\"),\"\")","v":""}]
[{"$f":"Table_PI[[#This Row],[Line No.]]","v":""},{"$f":"IF(Table_SummaryPI[[#This Row],[MeassureCategory]]<>\"\",CONCATENATE(Table_SummaryPI[[#This Row],[MeassureCategory]],  \" - \", Table_SummaryPI[[#This Row],[ProposedMeasureCategory]],  \" - \", TEXT(Table_SummaryPI[[#This Row],[Size]],\"#,##0.00\"),\" \",Table_SummaryPI[[#This Row],[SizeUnit]]),\"\")","v":""},{"$f":"SUBSTITUTE(Table_PI[[#This Row],[Measure]],\"     \",\"\",1)","v":""},{"$f":"IF(Table_PI[[#This Row],[List 1]]<>\"\",Table_PI[[#This Row],[List 1]],\"\")","v":""},{"$f":"IF(Table_PI[[#This Row],[List 2]]<>\"\",Table_PI[[#This Row],[List 2]],\"\")","v":""},{"$f":"IF(Table_PI[[#This Row],[List 3]]<>\"\",Table_PI[[#This Row],[List 3]],\"\")","v":""},{"$f":"IF(Table_PI[[#This Row],[Manufacturer]]=\"\",\"\",Table_PI[[#This Row],[Manufacturer]])","v":""},{"$f":"IF(Table_PI[[#This Row],[Model Number]]=\"\",\"\",Table_PI[[#This Row],[Model Number]])","v":""},{"$f":"IF(Table_PI[[#This Row],[Serial Number(s)]]=\"\",\"\",Table_PI[[#This Row],[Serial Number(s)]])","v":""},null,{"$f":"IF(Table_PI[[#This Row],[Size]]=\"\",\"\",Table_PI[[#This Row],[Size]])","v":""},null,{"$f":"IFERROR(IF(AND(MeasureCalc(Table_PI[[#This Row],[Hide:\nFormula Name]],Table_SummaryPI[[#This Row],[Quantity]],Table_PI[[#This Row],[List 1]],Table_PI[[#This Row],[List 2]],Table_PI[[#This Row],[List 3]],Table_PI[[#This Row],[Size]],Table_PI[[#This Row],[Input 1]],Table_PI[[#This Row],[Input 2]],Table_PI[[#This Row],[Input 3]],Table_PI[[#This Row],[Input 4]],'Customer Information'!$AR$12,100,ROW())<>0,MeasureCalc(Table_PI[[#This Row],[Hide:\nFormula Name]],Table_SummaryPI[[#This Row],[Quantity]],Table_PI[[#This Row],[List 1]],Table_PI[[#This Row],[List 2]],Table_PI[[#This Row],[List 3]],Table_PI[[#This Row],[Size]],Table_PI[[#This Row],[Input 1]],Table_PI[[#This Row],[Input 2]],Table_PI[[#This Row],[Input 3]],Table_PI[[#This Row],[Input 4]],'Customer Information'!$AR$12,100,ROW())<>\"No Rebate\"),MeasureCalc(Table_PI[[#This Row],[Hide:\nFormula Name]],Table_SummaryPI[[#This Row],[Quantity]],Table_PI[[#This Row],[List 1]],Table_PI[[#This Row],[List 2]],Table_PI[[#This Row],[List 3]],Table_PI[[#This Row],[Size]],Table_PI[[#This Row],[Input 1]],Table_PI[[#This Row],[Input 2]],Table_PI[[#This Row],[Input 3]],Table_PI[[#This Row],[Input 4]],'Customer Information'!$AR$12,100,ROW()),\"\"),\"\")","v":""},{"$f":"IF(Table_PI[[#This Row],[Input 1]]<>\"\",Table_PI[[#This Row],[Input 1]],\"\")","v":""},null,{"$f":"IFERROR(IF(AND(MeasureCalc(Table_PI[[#This Row],[Hide:\nFormula Name]],Table_SummaryPI[[#This Row],[Quantity]],Table_PI[[#This Row],[List 1]],Table_PI[[#This Row],[List 2]],Table_PI[[#This Row],[List 3]],Table_PI[[#This Row],[Size]],Table_PI[[#This Row],[Input 1]],Table_PI[[#This Row],[Input 2]],Table_PI[[#This Row],[Input 3]],Table_PI[[#This Row],[Input 4]],'Customer Information'!$AR$12,101,ROW())<>0,MeasureCalc(Table_PI[[#This Row],[Hide:\nFormula Name]],Table_SummaryPI[[#This Row],[Quantity]],Table_PI[[#This Row],[List 1]],Table_PI[[#This Row],[List 2]],Table_PI[[#This Row],[List 3]],Table_PI[[#This Row],[Size]],Table_PI[[#This Row],[Input 1]],Table_PI[[#This Row],[Input 2]],Table_PI[[#This Row],[Input 3]],Table_PI[[#This Row],[Input 4]],'Customer Information'!$AR$12,101,ROW())<>\"No Rebate\"),MeasureCalc(Table_PI[[#This Row],[Hide:\nFormula Name]],Table_SummaryPI[[#This Row],[Quantity]],Table_PI[[#This Row],[List 1]],Table_PI[[#This Row],[List 2]],Table_PI[[#This Row],[List 3]],Table_PI[[#This Row],[Size]],Table_PI[[#This Row],[Input 1]],Table_PI[[#This Row],[Input 2]],Table_PI[[#This Row],[Input 3]],Table_PI[[#This Row],[Input 4]],'Customer Information'!$AR$12,101,ROW()),\"\"),\"\")","v":""},{"$f":"IF(Table_PI[[#This Row],[Input 2]]<>\"\",Table_PI[[#This Row],[Input 2]],\"\")","v":""},null,{"$f":"IFERROR(IF(AND(MeasureCalc(Table_PI[[#This Row],[Hide:\nFormula Name]],Table_SummaryPI[[#This Row],[Quantity]],Table_PI[[#This Row],[List 1]],Table_PI[[#This Row],[List 2]],Table_PI[[#This Row],[List 3]],Table_PI[[#This Row],[Size]],Table_PI[[#This Row],[Input 1]],Table_PI[[#This Row],[Input 2]],Table_PI[[#This Row],[Input 3]],Table_PI[[#This Row],[Input 4]],'Customer Information'!$AR$12,102,ROW())<>0,MeasureCalc(Table_PI[[#This Row],[Hide:\nFormula Name]],Table_SummaryPI[[#This Row],[Quantity]],Table_PI[[#This Row],[List 1]],Table_PI[[#This Row],[List 2]],Table_PI[[#This Row],[List 3]],Table_PI[[#This Row],[Size]],Table_PI[[#This Row],[Input 1]],Table_PI[[#This Row],[Input 2]],Table_PI[[#This Row],[Input 3]],Table_PI[[#This Row],[Input 4]],'Customer Information'!$AR$12,102,ROW())<>\"No Rebate\"),MeasureCalc(Table_PI[[#This Row],[Hide:\nFormula Name]],Table_SummaryPI[[#This Row],[Quantity]],Table_PI[[#This Row],[List 1]],Table_PI[[#This Row],[List 2]],Table_PI[[#This Row],[List 3]],Table_PI[[#This Row],[Size]],Table_PI[[#This Row],[Input 1]],Table_PI[[#This Row],[Input 2]],Table_PI[[#This Row],[Input 3]],Table_PI[[#This Row],[Input 4]],'Customer Information'!$AR$12,102,ROW()),\"\"),\"\")","v":""},{"$f":"IF(Table_PI[[#This Row],[Input 3]]<>\"\",Table_PI[[#This Row],[Input 3]],\"\")","v":""},null,{"$f":"IFERROR(IF(AND(MeasureCalc(Table_PI[[#This Row],[Hide:\nFormula Name]],Table_SummaryPI[[#This Row],[Quantity]],Table_PI[[#This Row],[List 1]],Table_PI[[#This Row],[List 2]],Table_PI[[#This Row],[List 3]],Table_PI[[#This Row],[Size]],Table_PI[[#This Row],[Input 1]],Table_PI[[#This Row],[Input 2]],Table_PI[[#This Row],[Input 3]],Table_PI[[#This Row],[Input 4]],'Customer Information'!$AR$12,103,ROW())<>0,MeasureCalc(Table_PI[[#This Row],[Hide:\nFormula Name]],Table_SummaryPI[[#This Row],[Quantity]],Table_PI[[#This Row],[List 1]],Table_PI[[#This Row],[List 2]],Table_PI[[#This Row],[List 3]],Table_PI[[#This Row],[Size]],Table_PI[[#This Row],[Input 1]],Table_PI[[#This Row],[Input 2]],Table_PI[[#This Row],[Input 3]],Table_PI[[#This Row],[Input 4]],'Customer Information'!$AR$12,103,ROW())<>\"No Rebate\"),MeasureCalc(Table_PI[[#This Row],[Hide:\nFormula Name]],Table_SummaryPI[[#This Row],[Quantity]],Table_PI[[#This Row],[List 1]],Table_PI[[#This Row],[List 2]],Table_PI[[#This Row],[List 3]],Table_PI[[#This Row],[Size]],Table_PI[[#This Row],[Input 1]],Table_PI[[#This Row],[Input 2]],Table_PI[[#This Row],[Input 3]],Table_PI[[#This Row],[Input 4]],'Customer Information'!$AR$12,103,ROW()),\"\"),\"\")","v":""},{"$f":"IF(Table_PI[[#This Row],[Input 4]]<>\"\",Table_PI[[#This Row],[Input 4]],\"\")","v":""},{"$f":"IF(Table_PI[[#This Row],[Quantity]]=\"\",\"\",Table_PI[[#This Row],[Quantity]])","v":""},{"$f":"IF(Table_PI[[#This Row],[Notes]]=\"\",\"\",Table_PI[[#This Row],[Notes]])","v":""},{"$f":"IF(OR(Table_PI[[#This Row],[Hide:\nBaseline kWh]]=\"\",Table_PI[[#This Row],[Hide:\nBaseline kWh]]=0),\"\",Table_PI[[#This Row],[Hide:\nBaseline kWh]])","v":""},{"$f":"IF(OR(Table_PI[[#This Row],[Hide:\nBaseline kW]]=\"\",Table_PI[[#This Row],[Hide:\nBaseline kW]]=0),\"\",Table_PI[[#This Row],[Hide:\nBaseline kW]])","v":""},{"$f":"IF(OR(Table_PI[[#This Row],[Hide:\nProposed kWh]]=\"\",Table_PI[[#This Row],[Hide:\nProposed kWh]]=0),\"\",Table_PI[[#This Row],[Hide:\nProposed kWh]])","v":""},{"$f":"IF(OR(Table_PI[[#This Row],[Hide:\nProposed kW]]=\"\",Table_PI[[#This Row],[Hide:\nProposed kW]]=0),\"\",Table_PI[[#This Row],[Hide:\nProposed kW]])","v":""},{"$f":"IF(OR(Table_PI[[#This Row],[Rebate]]=\"\",Table_PI[[#This Row],[Rebate]]=0),\"\",Table_PI[[#This Row],[Rebate]])","v":""},{"$f":"IF(OR(Table_PI[[#This Row],[Hide:\nIncremental Cost]]=\"\",Table_PI[[#This Row],[Hide:\nIncremental Cost]]=0),\"\",Table_PI[[#This Row],[Hide:\nIncremental Cost]])","v":""},{"$f":"IFERROR(IF(Table_SummaryPI[[#This Row],[kWhSavings]]=\"\",\"\",ROUND(Table_SummaryPI[[#This Row],[kWhSavings]]/$AG$401*'Customer Information'!$BC$17,2)),0)","v":""},{"$f":"IF(OR(Table_PI[[#This Row],[Annual kWh]]=\"\",Table_PI[[#This Row],[Annual kWh]]=0),\"\",Table_PI[[#This Row],[Annual kWh]])","v":""},{"$f":"IF(OR(Table_PI[[#This Row],[Peak kW]]=\"\",Table_PI[[#This Row],[Peak kW]]=0),\"\",Table_PI[[#This Row],[Peak kW]])","v":""},{"$f":"IFERROR(IF(Table_SummaryPI[[#This Row],[kWhSavings]]=\"\",\"\",$AU$9*Table_SummaryPI[[#This Row],[kWhSavings]]),0)","v":""},{"$f":"IFERROR(IF(Table_SummaryPI[[#This Row],[kWhSavings]]=\"\",\"\",$AU$14*Table_SummaryPI[[#This Row],[kWhSavings]]),0)","v":""},{"$f":"IFERROR(IF(Table_SummaryPI[[#This Row],[kWhSavings]]=\"\",\"\",$AU$18*Table_SummaryPI[[#This Row],[kWhSavings]]),0)","v":""},{"$f":"IFERROR(IF(Table_SummaryPI[[#This Row],[kWhSavings]]=\"\",\"\",$AU$22*Table_SummaryPI[[#This Row],[kWhSavings]]),0)","v":""},{"$f":"IFERROR(IF(MeasureCalc(Table_PI[[#This Row],[Hide:\nFormula Name]],Table_SummaryPI[[#This Row],[Quantity]],Table_PI[[#This Row],[List 1]],Table_PI[[#This Row],[List 2]],Table_PI[[#This Row],[List 3]],Table_PI[[#This Row],[Size]],Table_PI[[#This Row],[Input 1]],Table_PI[[#This Row],[Input 2]],Table_PI[[#This Row],[Input 3]],Table_PI[[#This Row],[Input 4]],'Customer Information'!$AR$12,200,ROW())<>\"No Rebate\",MeasureCalc(Table_PI[[#This Row],[Hide:\nFormula Name]],Table_SummaryPI[[#This Row],[Quantity]],Table_PI[[#This Row],[List 1]],Table_PI[[#This Row],[List 2]],Table_PI[[#This Row],[List 3]],Table_PI[[#This Row],[Size]],Table_PI[[#This Row],[Input 1]],Table_PI[[#This Row],[Input 2]],Table_PI[[#This Row],[Input 3]],Table_PI[[#This Row],[Input 4]],'Customer Information'!$AR$12,200,ROW()),\"\"),\"\")","v":""},{"$f":"IFERROR(IF(MeasureCalc(Table_PI[[#This Row],[Hide:\nFormula Name]],Table_SummaryPI[[#This Row],[Quantity]],Table_PI[[#This Row],[List 1]],Table_PI[[#This Row],[List 2]],Table_PI[[#This Row],[List 3]],Table_PI[[#This Row],[Size]],Table_PI[[#This Row],[Input 1]],Table_PI[[#This Row],[Input 2]],Table_PI[[#This Row],[Input 3]],Table_PI[[#This Row],[Input 4]],'Customer Information'!$AR$12,201,ROW())<>\"No Rebate\",MeasureCalc(Table_PI[[#This Row],[Hide:\nFormula Name]],Table_SummaryPI[[#This Row],[Quantity]],Table_PI[[#This Row],[List 1]],Table_PI[[#This Row],[List 2]],Table_PI[[#This Row],[List 3]],Table_PI[[#This Row],[Size]],Table_PI[[#This Row],[Input 1]],Table_PI[[#This Row],[Input 2]],Table_PI[[#This Row],[Input 3]],Table_PI[[#This Row],[Input 4]],'Customer Information'!$AR$12,201,ROW()),\"\"),\"\")","v":""}]
[{"$f":"Table_PI[[#This Row],[Line No.]]","v":""},{"$f":"IF(Table_SummaryPI[[#This Row],[MeassureCategory]]<>\"\",CONCATENATE(Table_SummaryPI[[#This Row],[MeassureCategory]],  \" - \", Table_SummaryPI[[#This Row],[ProposedMeasureCategory]],  \" - \", TEXT(Table_SummaryPI[[#This Row],[Size]],\"#,##0.00\"),\" \",Table_SummaryPI[[#This Row],[SizeUnit]]),\"\")","v":""},{"$f":"SUBSTITUTE(Table_PI[[#This Row],[Measure]],\"     \",\"\",1)","v":""},{"$f":"IF(Table_PI[[#This Row],[List 1]]<>\"\",Table_PI[[#This Row],[List 1]],\"\")","v":""},{"$f":"IF(Table_PI[[#This Row],[List 2]]<>\"\",Table_PI[[#This Row],[List 2]],\"\")","v":""},{"$f":"IF(Table_PI[[#This Row],[List 3]]<>\"\",Table_PI[[#This Row],[List 3]],\"\")","v":""},{"$f":"IF(Table_PI[[#This Row],[Manufacturer]]=\"\",\"\",Table_PI[[#This Row],[Manufacturer]])","v":""},{"$f":"IF(Table_PI[[#This Row],[Model Number]]=\"\",\"\",Table_PI[[#This Row],[Model Number]])","v":""},{"$f":"IF(Table_PI[[#This Row],[Serial Number(s)]]=\"\",\"\",Table_PI[[#This Row],[Serial Number(s)]])","v":""},null,{"$f":"IF(Table_PI[[#This Row],[Size]]=\"\",\"\",Table_PI[[#This Row],[Size]])","v":""},null,{"$f":"IFERROR(IF(AND(MeasureCalc(Table_PI[[#This Row],[Hide:\nFormula Name]],Table_SummaryPI[[#This Row],[Quantity]],Table_PI[[#This Row],[List 1]],Table_PI[[#This Row],[List 2]],Table_PI[[#This Row],[List 3]],Table_PI[[#This Row],[Size]],Table_PI[[#This Row],[Input 1]],Table_PI[[#This Row],[Input 2]],Table_PI[[#This Row],[Input 3]],Table_PI[[#This Row],[Input 4]],'Customer Information'!$AR$12,100,ROW())<>0,MeasureCalc(Table_PI[[#This Row],[Hide:\nFormula Name]],Table_SummaryPI[[#This Row],[Quantity]],Table_PI[[#This Row],[List 1]],Table_PI[[#This Row],[List 2]],Table_PI[[#This Row],[List 3]],Table_PI[[#This Row],[Size]],Table_PI[[#This Row],[Input 1]],Table_PI[[#This Row],[Input 2]],Table_PI[[#This Row],[Input 3]],Table_PI[[#This Row],[Input 4]],'Customer Information'!$AR$12,100,ROW())<>\"No Rebate\"),MeasureCalc(Table_PI[[#This Row],[Hide:\nFormula Name]],Table_SummaryPI[[#This Row],[Quantity]],Table_PI[[#This Row],[List 1]],Table_PI[[#This Row],[List 2]],Table_PI[[#This Row],[List 3]],Table_PI[[#This Row],[Size]],Table_PI[[#This Row],[Input 1]],Table_PI[[#This Row],[Input 2]],Table_PI[[#This Row],[Input 3]],Table_PI[[#This Row],[Input 4]],'Customer Information'!$AR$12,100,ROW()),\"\"),\"\")","v":""},{"$f":"IF(Table_PI[[#This Row],[Input 1]]<>\"\",Table_PI[[#This Row],[Input 1]],\"\")","v":""},null,{"$f":"IFERROR(IF(AND(MeasureCalc(Table_PI[[#This Row],[Hide:\nFormula Name]],Table_SummaryPI[[#This Row],[Quantity]],Table_PI[[#This Row],[List 1]],Table_PI[[#This Row],[List 2]],Table_PI[[#This Row],[List 3]],Table_PI[[#This Row],[Size]],Table_PI[[#This Row],[Input 1]],Table_PI[[#This Row],[Input 2]],Table_PI[[#This Row],[Input 3]],Table_PI[[#This Row],[Input 4]],'Customer Information'!$AR$12,101,ROW())<>0,MeasureCalc(Table_PI[[#This Row],[Hide:\nFormula Name]],Table_SummaryPI[[#This Row],[Quantity]],Table_PI[[#This Row],[List 1]],Table_PI[[#This Row],[List 2]],Table_PI[[#This Row],[List 3]],Table_PI[[#This Row],[Size]],Table_PI[[#This Row],[Input 1]],Table_PI[[#This Row],[Input 2]],Table_PI[[#This Row],[Input 3]],Table_PI[[#This Row],[Input 4]],'Customer Information'!$AR$12,101,ROW())<>\"No Rebate\"),MeasureCalc(Table_PI[[#This Row],[Hide:\nFormula Name]],Table_SummaryPI[[#This Row],[Quantity]],Table_PI[[#This Row],[List 1]],Table_PI[[#This Row],[List 2]],Table_PI[[#This Row],[List 3]],Table_PI[[#This Row],[Size]],Table_PI[[#This Row],[Input 1]],Table_PI[[#This Row],[Input 2]],Table_PI[[#This Row],[Input 3]],Table_PI[[#This Row],[Input 4]],'Customer Information'!$AR$12,101,ROW()),\"\"),\"\")","v":""},{"$f":"IF(Table_PI[[#This Row],[Input 2]]<>\"\",Table_PI[[#This Row],[Input 2]],\"\")","v":""},null,{"$f":"IFERROR(IF(AND(MeasureCalc(Table_PI[[#This Row],[Hide:\nFormula Name]],Table_SummaryPI[[#This Row],[Quantity]],Table_PI[[#This Row],[List 1]],Table_PI[[#This Row],[List 2]],Table_PI[[#This Row],[List 3]],Table_PI[[#This Row],[Size]],Table_PI[[#This Row],[Input 1]],Table_PI[[#This Row],[Input 2]],Table_PI[[#This Row],[Input 3]],Table_PI[[#This Row],[Input 4]],'Customer Information'!$AR$12,102,ROW())<>0,MeasureCalc(Table_PI[[#This Row],[Hide:\nFormula Name]],Table_SummaryPI[[#This Row],[Quantity]],Table_PI[[#This Row],[List 1]],Table_PI[[#This Row],[List 2]],Table_PI[[#This Row],[List 3]],Table_PI[[#This Row],[Size]],Table_PI[[#This Row],[Input 1]],Table_PI[[#This Row],[Input 2]],Table_PI[[#This Row],[Input 3]],Table_PI[[#This Row],[Input 4]],'Customer Information'!$AR$12,102,ROW())<>\"No Rebate\"),MeasureCalc(Table_PI[[#This Row],[Hide:\nFormula Name]],Table_SummaryPI[[#This Row],[Quantity]],Table_PI[[#This Row],[List 1]],Table_PI[[#This Row],[List 2]],Table_PI[[#This Row],[List 3]],Table_PI[[#This Row],[Size]],Table_PI[[#This Row],[Input 1]],Table_PI[[#This Row],[Input 2]],Table_PI[[#This Row],[Input 3]],Table_PI[[#This Row],[Input 4]],'Customer Information'!$AR$12,102,ROW()),\"\"),\"\")","v":""},{"$f":"IF(Table_PI[[#This Row],[Input 3]]<>\"\",Table_PI[[#This Row],[Input 3]],\"\")","v":""},null,{"$f":"IFERROR(IF(AND(MeasureCalc(Table_PI[[#This Row],[Hide:\nFormula Name]],Table_SummaryPI[[#This Row],[Quantity]],Table_PI[[#This Row],[List 1]],Table_PI[[#This Row],[List 2]],Table_PI[[#This Row],[List 3]],Table_PI[[#This Row],[Size]],Table_PI[[#This Row],[Input 1]],Table_PI[[#This Row],[Input 2]],Table_PI[[#This Row],[Input 3]],Table_PI[[#This Row],[Input 4]],'Customer Information'!$AR$12,103,ROW())<>0,MeasureCalc(Table_PI[[#This Row],[Hide:\nFormula Name]],Table_SummaryPI[[#This Row],[Quantity]],Table_PI[[#This Row],[List 1]],Table_PI[[#This Row],[List 2]],Table_PI[[#This Row],[List 3]],Table_PI[[#This Row],[Size]],Table_PI[[#This Row],[Input 1]],Table_PI[[#This Row],[Input 2]],Table_PI[[#This Row],[Input 3]],Table_PI[[#This Row],[Input 4]],'Customer Information'!$AR$12,103,ROW())<>\"No Rebate\"),MeasureCalc(Table_PI[[#This Row],[Hide:\nFormula Name]],Table_SummaryPI[[#This Row],[Quantity]],Table_PI[[#This Row],[List 1]],Table_PI[[#This Row],[List 2]],Table_PI[[#This Row],[List 3]],Table_PI[[#This Row],[Size]],Table_PI[[#This Row],[Input 1]],Table_PI[[#This Row],[Input 2]],Table_PI[[#This Row],[Input 3]],Table_PI[[#This Row],[Input 4]],'Customer Information'!$AR$12,103,ROW()),\"\"),\"\")","v":""},{"$f":"IF(Table_PI[[#This Row],[Input 4]]<>\"\",Table_PI[[#This Row],[Input 4]],\"\")","v":""},{"$f":"IF(Table_PI[[#This Row],[Quantity]]=\"\",\"\",Table_PI[[#This Row],[Quantity]])","v":""},{"$f":"IF(Table_PI[[#This Row],[Notes]]=\"\",\"\",Table_PI[[#This Row],[Notes]])","v":""},{"$f":"IF(OR(Table_PI[[#This Row],[Hide:\nBaseline kWh]]=\"\",Table_PI[[#This Row],[Hide:\nBaseline kWh]]=0),\"\",Table_PI[[#This Row],[Hide:\nBaseline kWh]])","v":""},{"$f":"IF(OR(Table_PI[[#This Row],[Hide:\nBaseline kW]]=\"\",Table_PI[[#This Row],[Hide:\nBaseline kW]]=0),\"\",Table_PI[[#This Row],[Hide:\nBaseline kW]])","v":""},{"$f":"IF(OR(Table_PI[[#This Row],[Hide:\nProposed kWh]]=\"\",Table_PI[[#This Row],[Hide:\nProposed kWh]]=0),\"\",Table_PI[[#This Row],[Hide:\nProposed kWh]])","v":""},{"$f":"IF(OR(Table_PI[[#This Row],[Hide:\nProposed kW]]=\"\",Table_PI[[#This Row],[Hide:\nProposed kW]]=0),\"\",Table_PI[[#This Row],[Hide:\nProposed kW]])","v":""},{"$f":"IF(OR(Table_PI[[#This Row],[Rebate]]=\"\",Table_PI[[#This Row],[Rebate]]=0),\"\",Table_PI[[#This Row],[Rebate]])","v":""},{"$f":"IF(OR(Table_PI[[#This Row],[Hide:\nIncremental Cost]]=\"\",Table_PI[[#This Row],[Hide:\nIncremental Cost]]=0),\"\",Table_PI[[#This Row],[Hide:\nIncremental Cost]])","v":""},{"$f":"IFERROR(IF(Table_SummaryPI[[#This Row],[kWhSavings]]=\"\",\"\",ROUND(Table_SummaryPI[[#This Row],[kWhSavings]]/$AG$401*'Customer Information'!$BC$17,2)),0)","v":""},{"$f":"IF(OR(Table_PI[[#This Row],[Annual kWh]]=\"\",Table_PI[[#This Row],[Annual kWh]]=0),\"\",Table_PI[[#This Row],[Annual kWh]])","v":""},{"$f":"IF(OR(Table_PI[[#This Row],[Peak kW]]=\"\",Table_PI[[#This Row],[Peak kW]]=0),\"\",Table_PI[[#This Row],[Peak kW]])","v":""},{"$f":"IFERROR(IF(Table_SummaryPI[[#This Row],[kWhSavings]]=\"\",\"\",$AU$9*Table_SummaryPI[[#This Row],[kWhSavings]]),0)","v":""},{"$f":"IFERROR(IF(Table_SummaryPI[[#This Row],[kWhSavings]]=\"\",\"\",$AU$14*Table_SummaryPI[[#This Row],[kWhSavings]]),0)","v":""},{"$f":"IFERROR(IF(Table_SummaryPI[[#This Row],[kWhSavings]]=\"\",\"\",$AU$18*Table_SummaryPI[[#This Row],[kWhSavings]]),0)","v":""},{"$f":"IFERROR(IF(Table_SummaryPI[[#This Row],[kWhSavings]]=\"\",\"\",$AU$22*Table_SummaryPI[[#This Row],[kWhSavings]]),0)","v":""},{"$f":"IFERROR(IF(MeasureCalc(Table_PI[[#This Row],[Hide:\nFormula Name]],Table_SummaryPI[[#This Row],[Quantity]],Table_PI[[#This Row],[List 1]],Table_PI[[#This Row],[List 2]],Table_PI[[#This Row],[List 3]],Table_PI[[#This Row],[Size]],Table_PI[[#This Row],[Input 1]],Table_PI[[#This Row],[Input 2]],Table_PI[[#This Row],[Input 3]],Table_PI[[#This Row],[Input 4]],'Customer Information'!$AR$12,200,ROW())<>\"No Rebate\",MeasureCalc(Table_PI[[#This Row],[Hide:\nFormula Name]],Table_SummaryPI[[#This Row],[Quantity]],Table_PI[[#This Row],[List 1]],Table_PI[[#This Row],[List 2]],Table_PI[[#This Row],[List 3]],Table_PI[[#This Row],[Size]],Table_PI[[#This Row],[Input 1]],Table_PI[[#This Row],[Input 2]],Table_PI[[#This Row],[Input 3]],Table_PI[[#This Row],[Input 4]],'Customer Information'!$AR$12,200,ROW()),\"\"),\"\")","v":""},{"$f":"IFERROR(IF(MeasureCalc(Table_PI[[#This Row],[Hide:\nFormula Name]],Table_SummaryPI[[#This Row],[Quantity]],Table_PI[[#This Row],[List 1]],Table_PI[[#This Row],[List 2]],Table_PI[[#This Row],[List 3]],Table_PI[[#This Row],[Size]],Table_PI[[#This Row],[Input 1]],Table_PI[[#This Row],[Input 2]],Table_PI[[#This Row],[Input 3]],Table_PI[[#This Row],[Input 4]],'Customer Information'!$AR$12,201,ROW())<>\"No Rebate\",MeasureCalc(Table_PI[[#This Row],[Hide:\nFormula Name]],Table_SummaryPI[[#This Row],[Quantity]],Table_PI[[#This Row],[List 1]],Table_PI[[#This Row],[List 2]],Table_PI[[#This Row],[List 3]],Table_PI[[#This Row],[Size]],Table_PI[[#This Row],[Input 1]],Table_PI[[#This Row],[Input 2]],Table_PI[[#This Row],[Input 3]],Table_PI[[#This Row],[Input 4]],'Customer Information'!$AR$12,201,ROW()),\"\"),\"\")","v":""}]
[{"$f":"Table_PI[[#This Row],[Line No.]]","v":""},{"$f":"IF(Table_SummaryPI[[#This Row],[MeassureCategory]]<>\"\",CONCATENATE(Table_SummaryPI[[#This Row],[MeassureCategory]],  \" - \", Table_SummaryPI[[#This Row],[ProposedMeasureCategory]],  \" - \", TEXT(Table_SummaryPI[[#This Row],[Size]],\"#,##0.00\"),\" \",Table_SummaryPI[[#This Row],[SizeUnit]]),\"\")","v":""},{"$f":"SUBSTITUTE(Table_PI[[#This Row],[Measure]],\"     \",\"\",1)","v":""},{"$f":"IF(Table_PI[[#This Row],[List 1]]<>\"\",Table_PI[[#This Row],[List 1]],\"\")","v":""},{"$f":"IF(Table_PI[[#This Row],[List 2]]<>\"\",Table_PI[[#This Row],[List 2]],\"\")","v":""},{"$f":"IF(Table_PI[[#This Row],[List 3]]<>\"\",Table_PI[[#This Row],[List 3]],\"\")","v":""},{"$f":"IF(Table_PI[[#This Row],[Manufacturer]]=\"\",\"\",Table_PI[[#This Row],[Manufacturer]])","v":""},{"$f":"IF(Table_PI[[#This Row],[Model Number]]=\"\",\"\",Table_PI[[#This Row],[Model Number]])","v":""},{"$f":"IF(Table_PI[[#This Row],[Serial Number(s)]]=\"\",\"\",Table_PI[[#This Row],[Serial Number(s)]])","v":""},null,{"$f":"IF(Table_PI[[#This Row],[Size]]=\"\",\"\",Table_PI[[#This Row],[Size]])","v":""},null,{"$f":"IFERROR(IF(AND(MeasureCalc(Table_PI[[#This Row],[Hide:\nFormula Name]],Table_SummaryPI[[#This Row],[Quantity]],Table_PI[[#This Row],[List 1]],Table_PI[[#This Row],[List 2]],Table_PI[[#This Row],[List 3]],Table_PI[[#This Row],[Size]],Table_PI[[#This Row],[Input 1]],Table_PI[[#This Row],[Input 2]],Table_PI[[#This Row],[Input 3]],Table_PI[[#This Row],[Input 4]],'Customer Information'!$AR$12,100,ROW())<>0,MeasureCalc(Table_PI[[#This Row],[Hide:\nFormula Name]],Table_SummaryPI[[#This Row],[Quantity]],Table_PI[[#This Row],[List 1]],Table_PI[[#This Row],[List 2]],Table_PI[[#This Row],[List 3]],Table_PI[[#This Row],[Size]],Table_PI[[#This Row],[Input 1]],Table_PI[[#This Row],[Input 2]],Table_PI[[#This Row],[Input 3]],Table_PI[[#This Row],[Input 4]],'Customer Information'!$AR$12,100,ROW())<>\"No Rebate\"),MeasureCalc(Table_PI[[#This Row],[Hide:\nFormula Name]],Table_SummaryPI[[#This Row],[Quantity]],Table_PI[[#This Row],[List 1]],Table_PI[[#This Row],[List 2]],Table_PI[[#This Row],[List 3]],Table_PI[[#This Row],[Size]],Table_PI[[#This Row],[Input 1]],Table_PI[[#This Row],[Input 2]],Table_PI[[#This Row],[Input 3]],Table_PI[[#This Row],[Input 4]],'Customer Information'!$AR$12,100,ROW()),\"\"),\"\")","v":""},{"$f":"IF(Table_PI[[#This Row],[Input 1]]<>\"\",Table_PI[[#This Row],[Input 1]],\"\")","v":""},null,{"$f":"IFERROR(IF(AND(MeasureCalc(Table_PI[[#This Row],[Hide:\nFormula Name]],Table_SummaryPI[[#This Row],[Quantity]],Table_PI[[#This Row],[List 1]],Table_PI[[#This Row],[List 2]],Table_PI[[#This Row],[List 3]],Table_PI[[#This Row],[Size]],Table_PI[[#This Row],[Input 1]],Table_PI[[#This Row],[Input 2]],Table_PI[[#This Row],[Input 3]],Table_PI[[#This Row],[Input 4]],'Customer Information'!$AR$12,101,ROW())<>0,MeasureCalc(Table_PI[[#This Row],[Hide:\nFormula Name]],Table_SummaryPI[[#This Row],[Quantity]],Table_PI[[#This Row],[List 1]],Table_PI[[#This Row],[List 2]],Table_PI[[#This Row],[List 3]],Table_PI[[#This Row],[Size]],Table_PI[[#This Row],[Input 1]],Table_PI[[#This Row],[Input 2]],Table_PI[[#This Row],[Input 3]],Table_PI[[#This Row],[Input 4]],'Customer Information'!$AR$12,101,ROW())<>\"No Rebate\"),MeasureCalc(Table_PI[[#This Row],[Hide:\nFormula Name]],Table_SummaryPI[[#This Row],[Quantity]],Table_PI[[#This Row],[List 1]],Table_PI[[#This Row],[List 2]],Table_PI[[#This Row],[List 3]],Table_PI[[#This Row],[Size]],Table_PI[[#This Row],[Input 1]],Table_PI[[#This Row],[Input 2]],Table_PI[[#This Row],[Input 3]],Table_PI[[#This Row],[Input 4]],'Customer Information'!$AR$12,101,ROW()),\"\"),\"\")","v":""},{"$f":"IF(Table_PI[[#This Row],[Input 2]]<>\"\",Table_PI[[#This Row],[Input 2]],\"\")","v":""},null,{"$f":"IFERROR(IF(AND(MeasureCalc(Table_PI[[#This Row],[Hide:\nFormula Name]],Table_SummaryPI[[#This Row],[Quantity]],Table_PI[[#This Row],[List 1]],Table_PI[[#This Row],[List 2]],Table_PI[[#This Row],[List 3]],Table_PI[[#This Row],[Size]],Table_PI[[#This Row],[Input 1]],Table_PI[[#This Row],[Input 2]],Table_PI[[#This Row],[Input 3]],Table_PI[[#This Row],[Input 4]],'Customer Information'!$AR$12,102,ROW())<>0,MeasureCalc(Table_PI[[#This Row],[Hide:\nFormula Name]],Table_SummaryPI[[#This Row],[Quantity]],Table_PI[[#This Row],[List 1]],Table_PI[[#This Row],[List 2]],Table_PI[[#This Row],[List 3]],Table_PI[[#This Row],[Size]],Table_PI[[#This Row],[Input 1]],Table_PI[[#This Row],[Input 2]],Table_PI[[#This Row],[Input 3]],Table_PI[[#This Row],[Input 4]],'Customer Information'!$AR$12,102,ROW())<>\"No Rebate\"),MeasureCalc(Table_PI[[#This Row],[Hide:\nFormula Name]],Table_SummaryPI[[#This Row],[Quantity]],Table_PI[[#This Row],[List 1]],Table_PI[[#This Row],[List 2]],Table_PI[[#This Row],[List 3]],Table_PI[[#This Row],[Size]],Table_PI[[#This Row],[Input 1]],Table_PI[[#This Row],[Input 2]],Table_PI[[#This Row],[Input 3]],Table_PI[[#This Row],[Input 4]],'Customer Information'!$AR$12,102,ROW()),\"\"),\"\")","v":""},{"$f":"IF(Table_PI[[#This Row],[Input 3]]<>\"\",Table_PI[[#This Row],[Input 3]],\"\")","v":""},null,{"$f":"IFERROR(IF(AND(MeasureCalc(Table_PI[[#This Row],[Hide:\nFormula Name]],Table_SummaryPI[[#This Row],[Quantity]],Table_PI[[#This Row],[List 1]],Table_PI[[#This Row],[List 2]],Table_PI[[#This Row],[List 3]],Table_PI[[#This Row],[Size]],Table_PI[[#This Row],[Input 1]],Table_PI[[#This Row],[Input 2]],Table_PI[[#This Row],[Input 3]],Table_PI[[#This Row],[Input 4]],'Customer Information'!$AR$12,103,ROW())<>0,MeasureCalc(Table_PI[[#This Row],[Hide:\nFormula Name]],Table_SummaryPI[[#This Row],[Quantity]],Table_PI[[#This Row],[List 1]],Table_PI[[#This Row],[List 2]],Table_PI[[#This Row],[List 3]],Table_PI[[#This Row],[Size]],Table_PI[[#This Row],[Input 1]],Table_PI[[#This Row],[Input 2]],Table_PI[[#This Row],[Input 3]],Table_PI[[#This Row],[Input 4]],'Customer Information'!$AR$12,103,ROW())<>\"No Rebate\"),MeasureCalc(Table_PI[[#This Row],[Hide:\nFormula Name]],Table_SummaryPI[[#This Row],[Quantity]],Table_PI[[#This Row],[List 1]],Table_PI[[#This Row],[List 2]],Table_PI[[#This Row],[List 3]],Table_PI[[#This Row],[Size]],Table_PI[[#This Row],[Input 1]],Table_PI[[#This Row],[Input 2]],Table_PI[[#This Row],[Input 3]],Table_PI[[#This Row],[Input 4]],'Customer Information'!$AR$12,103,ROW()),\"\"),\"\")","v":""},{"$f":"IF(Table_PI[[#This Row],[Input 4]]<>\"\",Table_PI[[#This Row],[Input 4]],\"\")","v":""},{"$f":"IF(Table_PI[[#This Row],[Quantity]]=\"\",\"\",Table_PI[[#This Row],[Quantity]])","v":""},{"$f":"IF(Table_PI[[#This Row],[Notes]]=\"\",\"\",Table_PI[[#This Row],[Notes]])","v":""},{"$f":"IF(OR(Table_PI[[#This Row],[Hide:\nBaseline kWh]]=\"\",Table_PI[[#This Row],[Hide:\nBaseline kWh]]=0),\"\",Table_PI[[#This Row],[Hide:\nBaseline kWh]])","v":""},{"$f":"IF(OR(Table_PI[[#This Row],[Hide:\nBaseline kW]]=\"\",Table_PI[[#This Row],[Hide:\nBaseline kW]]=0),\"\",Table_PI[[#This Row],[Hide:\nBaseline kW]])","v":""},{"$f":"IF(OR(Table_PI[[#This Row],[Hide:\nProposed kWh]]=\"\",Table_PI[[#This Row],[Hide:\nProposed kWh]]=0),\"\",Table_PI[[#This Row],[Hide:\nProposed kWh]])","v":""},{"$f":"IF(OR(Table_PI[[#This Row],[Hide:\nProposed kW]]=\"\",Table_PI[[#This Row],[Hide:\nProposed kW]]=0),\"\",Table_PI[[#This Row],[Hide:\nProposed kW]])","v":""},{"$f":"IF(OR(Table_PI[[#This Row],[Rebate]]=\"\",Table_PI[[#This Row],[Rebate]]=0),\"\",Table_PI[[#This Row],[Rebate]])","v":""},{"$f":"IF(OR(Table_PI[[#This Row],[Hide:\nIncremental Cost]]=\"\",Table_PI[[#This Row],[Hide:\nIncremental Cost]]=0),\"\",Table_PI[[#This Row],[Hide:\nIncremental Cost]])","v":""},{"$f":"IFERROR(IF(Table_SummaryPI[[#This Row],[kWhSavings]]=\"\",\"\",ROUND(Table_SummaryPI[[#This Row],[kWhSavings]]/$AG$401*'Customer Information'!$BC$17,2)),0)","v":""},{"$f":"IF(OR(Table_PI[[#This Row],[Annual kWh]]=\"\",Table_PI[[#This Row],[Annual kWh]]=0),\"\",Table_PI[[#This Row],[Annual kWh]])","v":""},{"$f":"IF(OR(Table_PI[[#This Row],[Peak kW]]=\"\",Table_PI[[#This Row],[Peak kW]]=0),\"\",Table_PI[[#This Row],[Peak kW]])","v":""},{"$f":"IFERROR(IF(Table_SummaryPI[[#This Row],[kWhSavings]]=\"\",\"\",$AU$9*Table_SummaryPI[[#This Row],[kWhSavings]]),0)","v":""},{"$f":"IFERROR(IF(Table_SummaryPI[[#This Row],[kWhSavings]]=\"\",\"\",$AU$14*Table_SummaryPI[[#This Row],[kWhSavings]]),0)","v":""},{"$f":"IFERROR(IF(Table_SummaryPI[[#This Row],[kWhSavings]]=\"\",\"\",$AU$18*Table_SummaryPI[[#This Row],[kWhSavings]]),0)","v":""},{"$f":"IFERROR(IF(Table_SummaryPI[[#This Row],[kWhSavings]]=\"\",\"\",$AU$22*Table_SummaryPI[[#This Row],[kWhSavings]]),0)","v":""},{"$f":"IFERROR(IF(MeasureCalc(Table_PI[[#This Row],[Hide:\nFormula Name]],Table_SummaryPI[[#This Row],[Quantity]],Table_PI[[#This Row],[List 1]],Table_PI[[#This Row],[List 2]],Table_PI[[#This Row],[List 3]],Table_PI[[#This Row],[Size]],Table_PI[[#This Row],[Input 1]],Table_PI[[#This Row],[Input 2]],Table_PI[[#This Row],[Input 3]],Table_PI[[#This Row],[Input 4]],'Customer Information'!$AR$12,200,ROW())<>\"No Rebate\",MeasureCalc(Table_PI[[#This Row],[Hide:\nFormula Name]],Table_SummaryPI[[#This Row],[Quantity]],Table_PI[[#This Row],[List 1]],Table_PI[[#This Row],[List 2]],Table_PI[[#This Row],[List 3]],Table_PI[[#This Row],[Size]],Table_PI[[#This Row],[Input 1]],Table_PI[[#This Row],[Input 2]],Table_PI[[#This Row],[Input 3]],Table_PI[[#This Row],[Input 4]],'Customer Information'!$AR$12,200,ROW()),\"\"),\"\")","v":""},{"$f":"IFERROR(IF(MeasureCalc(Table_PI[[#This Row],[Hide:\nFormula Name]],Table_SummaryPI[[#This Row],[Quantity]],Table_PI[[#This Row],[List 1]],Table_PI[[#This Row],[List 2]],Table_PI[[#This Row],[List 3]],Table_PI[[#This Row],[Size]],Table_PI[[#This Row],[Input 1]],Table_PI[[#This Row],[Input 2]],Table_PI[[#This Row],[Input 3]],Table_PI[[#This Row],[Input 4]],'Customer Information'!$AR$12,201,ROW())<>\"No Rebate\",MeasureCalc(Table_PI[[#This Row],[Hide:\nFormula Name]],Table_SummaryPI[[#This Row],[Quantity]],Table_PI[[#This Row],[List 1]],Table_PI[[#This Row],[List 2]],Table_PI[[#This Row],[List 3]],Table_PI[[#This Row],[Size]],Table_PI[[#This Row],[Input 1]],Table_PI[[#This Row],[Input 2]],Table_PI[[#This Row],[Input 3]],Table_PI[[#This Row],[Input 4]],'Customer Information'!$AR$12,201,ROW()),\"\"),\"\")","v":""}]
[{"$f":"Table_PI[[#This Row],[Line No.]]","v":""},{"$f":"IF(Table_SummaryPI[[#This Row],[MeassureCategory]]<>\"\",CONCATENATE(Table_SummaryPI[[#This Row],[MeassureCategory]],  \" - \", Table_SummaryPI[[#This Row],[ProposedMeasureCategory]],  \" - \", TEXT(Table_SummaryPI[[#This Row],[Size]],\"#,##0.00\"),\" \",Table_SummaryPI[[#This Row],[SizeUnit]]),\"\")","v":""},{"$f":"SUBSTITUTE(Table_PI[[#This Row],[Measure]],\"     \",\"\",1)","v":""},{"$f":"IF(Table_PI[[#This Row],[List 1]]<>\"\",Table_PI[[#This Row],[List 1]],\"\")","v":""},{"$f":"IF(Table_PI[[#This Row],[List 2]]<>\"\",Table_PI[[#This Row],[List 2]],\"\")","v":""},{"$f":"IF(Table_PI[[#This Row],[List 3]]<>\"\",Table_PI[[#This Row],[List 3]],\"\")","v":""},{"$f":"IF(Table_PI[[#This Row],[Manufacturer]]=\"\",\"\",Table_PI[[#This Row],[Manufacturer]])","v":""},{"$f":"IF(Table_PI[[#This Row],[Model Number]]=\"\",\"\",Table_PI[[#This Row],[Model Number]])","v":""},{"$f":"IF(Table_PI[[#This Row],[Serial Number(s)]]=\"\",\"\",Table_PI[[#This Row],[Serial Number(s)]])","v":""},null,{"$f":"IF(Table_PI[[#This Row],[Size]]=\"\",\"\",Table_PI[[#This Row],[Size]])","v":""},null,{"$f":"IFERROR(IF(AND(MeasureCalc(Table_PI[[#This Row],[Hide:\nFormula Name]],Table_SummaryPI[[#This Row],[Quantity]],Table_PI[[#This Row],[List 1]],Table_PI[[#This Row],[List 2]],Table_PI[[#This Row],[List 3]],Table_PI[[#This Row],[Size]],Table_PI[[#This Row],[Input 1]],Table_PI[[#This Row],[Input 2]],Table_PI[[#This Row],[Input 3]],Table_PI[[#This Row],[Input 4]],'Customer Information'!$AR$12,100,ROW())<>0,MeasureCalc(Table_PI[[#This Row],[Hide:\nFormula Name]],Table_SummaryPI[[#This Row],[Quantity]],Table_PI[[#This Row],[List 1]],Table_PI[[#This Row],[List 2]],Table_PI[[#This Row],[List 3]],Table_PI[[#This Row],[Size]],Table_PI[[#This Row],[Input 1]],Table_PI[[#This Row],[Input 2]],Table_PI[[#This Row],[Input 3]],Table_PI[[#This Row],[Input 4]],'Customer Information'!$AR$12,100,ROW())<>\"No Rebate\"),MeasureCalc(Table_PI[[#This Row],[Hide:\nFormula Name]],Table_SummaryPI[[#This Row],[Quantity]],Table_PI[[#This Row],[List 1]],Table_PI[[#This Row],[List 2]],Table_PI[[#This Row],[List 3]],Table_PI[[#This Row],[Size]],Table_PI[[#This Row],[Input 1]],Table_PI[[#This Row],[Input 2]],Table_PI[[#This Row],[Input 3]],Table_PI[[#This Row],[Input 4]],'Customer Information'!$AR$12,100,ROW()),\"\"),\"\")","v":""},{"$f":"IF(Table_PI[[#This Row],[Input 1]]<>\"\",Table_PI[[#This Row],[Input 1]],\"\")","v":""},null,{"$f":"IFERROR(IF(AND(MeasureCalc(Table_PI[[#This Row],[Hide:\nFormula Name]],Table_SummaryPI[[#This Row],[Quantity]],Table_PI[[#This Row],[List 1]],Table_PI[[#This Row],[List 2]],Table_PI[[#This Row],[List 3]],Table_PI[[#This Row],[Size]],Table_PI[[#This Row],[Input 1]],Table_PI[[#This Row],[Input 2]],Table_PI[[#This Row],[Input 3]],Table_PI[[#This Row],[Input 4]],'Customer Information'!$AR$12,101,ROW())<>0,MeasureCalc(Table_PI[[#This Row],[Hide:\nFormula Name]],Table_SummaryPI[[#This Row],[Quantity]],Table_PI[[#This Row],[List 1]],Table_PI[[#This Row],[List 2]],Table_PI[[#This Row],[List 3]],Table_PI[[#This Row],[Size]],Table_PI[[#This Row],[Input 1]],Table_PI[[#This Row],[Input 2]],Table_PI[[#This Row],[Input 3]],Table_PI[[#This Row],[Input 4]],'Customer Information'!$AR$12,101,ROW())<>\"No Rebate\"),MeasureCalc(Table_PI[[#This Row],[Hide:\nFormula Name]],Table_SummaryPI[[#This Row],[Quantity]],Table_PI[[#This Row],[List 1]],Table_PI[[#This Row],[List 2]],Table_PI[[#This Row],[List 3]],Table_PI[[#This Row],[Size]],Table_PI[[#This Row],[Input 1]],Table_PI[[#This Row],[Input 2]],Table_PI[[#This Row],[Input 3]],Table_PI[[#This Row],[Input 4]],'Customer Information'!$AR$12,101,ROW()),\"\"),\"\")","v":""},{"$f":"IF(Table_PI[[#This Row],[Input 2]]<>\"\",Table_PI[[#This Row],[Input 2]],\"\")","v":""},null,{"$f":"IFERROR(IF(AND(MeasureCalc(Table_PI[[#This Row],[Hide:\nFormula Name]],Table_SummaryPI[[#This Row],[Quantity]],Table_PI[[#This Row],[List 1]],Table_PI[[#This Row],[List 2]],Table_PI[[#This Row],[List 3]],Table_PI[[#This Row],[Size]],Table_PI[[#This Row],[Input 1]],Table_PI[[#This Row],[Input 2]],Table_PI[[#This Row],[Input 3]],Table_PI[[#This Row],[Input 4]],'Customer Information'!$AR$12,102,ROW())<>0,MeasureCalc(Table_PI[[#This Row],[Hide:\nFormula Name]],Table_SummaryPI[[#This Row],[Quantity]],Table_PI[[#This Row],[List 1]],Table_PI[[#This Row],[List 2]],Table_PI[[#This Row],[List 3]],Table_PI[[#This Row],[Size]],Table_PI[[#This Row],[Input 1]],Table_PI[[#This Row],[Input 2]],Table_PI[[#This Row],[Input 3]],Table_PI[[#This Row],[Input 4]],'Customer Information'!$AR$12,102,ROW())<>\"No Rebate\"),MeasureCalc(Table_PI[[#This Row],[Hide:\nFormula Name]],Table_SummaryPI[[#This Row],[Quantity]],Table_PI[[#This Row],[List 1]],Table_PI[[#This Row],[List 2]],Table_PI[[#This Row],[List 3]],Table_PI[[#This Row],[Size]],Table_PI[[#This Row],[Input 1]],Table_PI[[#This Row],[Input 2]],Table_PI[[#This Row],[Input 3]],Table_PI[[#This Row],[Input 4]],'Customer Information'!$AR$12,102,ROW()),\"\"),\"\")","v":""},{"$f":"IF(Table_PI[[#This Row],[Input 3]]<>\"\",Table_PI[[#This Row],[Input 3]],\"\")","v":""},null,{"$f":"IFERROR(IF(AND(MeasureCalc(Table_PI[[#This Row],[Hide:\nFormula Name]],Table_SummaryPI[[#This Row],[Quantity]],Table_PI[[#This Row],[List 1]],Table_PI[[#This Row],[List 2]],Table_PI[[#This Row],[List 3]],Table_PI[[#This Row],[Size]],Table_PI[[#This Row],[Input 1]],Table_PI[[#This Row],[Input 2]],Table_PI[[#This Row],[Input 3]],Table_PI[[#This Row],[Input 4]],'Customer Information'!$AR$12,103,ROW())<>0,MeasureCalc(Table_PI[[#This Row],[Hide:\nFormula Name]],Table_SummaryPI[[#This Row],[Quantity]],Table_PI[[#This Row],[List 1]],Table_PI[[#This Row],[List 2]],Table_PI[[#This Row],[List 3]],Table_PI[[#This Row],[Size]],Table_PI[[#This Row],[Input 1]],Table_PI[[#This Row],[Input 2]],Table_PI[[#This Row],[Input 3]],Table_PI[[#This Row],[Input 4]],'Customer Information'!$AR$12,103,ROW())<>\"No Rebate\"),MeasureCalc(Table_PI[[#This Row],[Hide:\nFormula Name]],Table_SummaryPI[[#This Row],[Quantity]],Table_PI[[#This Row],[List 1]],Table_PI[[#This Row],[List 2]],Table_PI[[#This Row],[List 3]],Table_PI[[#This Row],[Size]],Table_PI[[#This Row],[Input 1]],Table_PI[[#This Row],[Input 2]],Table_PI[[#This Row],[Input 3]],Table_PI[[#This Row],[Input 4]],'Customer Information'!$AR$12,103,ROW()),\"\"),\"\")","v":""},{"$f":"IF(Table_PI[[#This Row],[Input 4]]<>\"\",Table_PI[[#This Row],[Input 4]],\"\")","v":""},{"$f":"IF(Table_PI[[#This Row],[Quantity]]=\"\",\"\",Table_PI[[#This Row],[Quantity]])","v":""},{"$f":"IF(Table_PI[[#This Row],[Notes]]=\"\",\"\",Table_PI[[#This Row],[Notes]])","v":""},{"$f":"IF(OR(Table_PI[[#This Row],[Hide:\nBaseline kWh]]=\"\",Table_PI[[#This Row],[Hide:\nBaseline kWh]]=0),\"\",Table_PI[[#This Row],[Hide:\nBaseline kWh]])","v":""},{"$f":"IF(OR(Table_PI[[#This Row],[Hide:\nBaseline kW]]=\"\",Table_PI[[#This Row],[Hide:\nBaseline kW]]=0),\"\",Table_PI[[#This Row],[Hide:\nBaseline kW]])","v":""},{"$f":"IF(OR(Table_PI[[#This Row],[Hide:\nProposed kWh]]=\"\",Table_PI[[#This Row],[Hide:\nProposed kWh]]=0),\"\",Table_PI[[#This Row],[Hide:\nProposed kWh]])","v":""},{"$f":"IF(OR(Table_PI[[#This Row],[Hide:\nProposed kW]]=\"\",Table_PI[[#This Row],[Hide:\nProposed kW]]=0),\"\",Table_PI[[#This Row],[Hide:\nProposed kW]])","v":""},{"$f":"IF(OR(Table_PI[[#This Row],[Rebate]]=\"\",Table_PI[[#This Row],[Rebate]]=0),\"\",Table_PI[[#This Row],[Rebate]])","v":""},{"$f":"IF(OR(Table_PI[[#This Row],[Hide:\nIncremental Cost]]=\"\",Table_PI[[#This Row],[Hide:\nIncremental Cost]]=0),\"\",Table_PI[[#This Row],[Hide:\nIncremental Cost]])","v":""},{"$f":"IFERROR(IF(Table_SummaryPI[[#This Row],[kWhSavings]]=\"\",\"\",ROUND(Table_SummaryPI[[#This Row],[kWhSavings]]/$AG$401*'Customer Information'!$BC$17,2)),0)","v":""},{"$f":"IF(OR(Table_PI[[#This Row],[Annual kWh]]=\"\",Table_PI[[#This Row],[Annual kWh]]=0),\"\",Table_PI[[#This Row],[Annual kWh]])","v":""},{"$f":"IF(OR(Table_PI[[#This Row],[Peak kW]]=\"\",Table_PI[[#This Row],[Peak kW]]=0),\"\",Table_PI[[#This Row],[Peak kW]])","v":""},{"$f":"IFERROR(IF(Table_SummaryPI[[#This Row],[kWhSavings]]=\"\",\"\",$AU$9*Table_SummaryPI[[#This Row],[kWhSavings]]),0)","v":""},{"$f":"IFERROR(IF(Table_SummaryPI[[#This Row],[kWhSavings]]=\"\",\"\",$AU$14*Table_SummaryPI[[#This Row],[kWhSavings]]),0)","v":""},{"$f":"IFERROR(IF(Table_SummaryPI[[#This Row],[kWhSavings]]=\"\",\"\",$AU$18*Table_SummaryPI[[#This Row],[kWhSavings]]),0)","v":""},{"$f":"IFERROR(IF(Table_SummaryPI[[#This Row],[kWhSavings]]=\"\",\"\",$AU$22*Table_SummaryPI[[#This Row],[kWhSavings]]),0)","v":""},{"$f":"IFERROR(IF(MeasureCalc(Table_PI[[#This Row],[Hide:\nFormula Name]],Table_SummaryPI[[#This Row],[Quantity]],Table_PI[[#This Row],[List 1]],Table_PI[[#This Row],[List 2]],Table_PI[[#This Row],[List 3]],Table_PI[[#This Row],[Size]],Table_PI[[#This Row],[Input 1]],Table_PI[[#This Row],[Input 2]],Table_PI[[#This Row],[Input 3]],Table_PI[[#This Row],[Input 4]],'Customer Information'!$AR$12,200,ROW())<>\"No Rebate\",MeasureCalc(Table_PI[[#This Row],[Hide:\nFormula Name]],Table_SummaryPI[[#This Row],[Quantity]],Table_PI[[#This Row],[List 1]],Table_PI[[#This Row],[List 2]],Table_PI[[#This Row],[List 3]],Table_PI[[#This Row],[Size]],Table_PI[[#This Row],[Input 1]],Table_PI[[#This Row],[Input 2]],Table_PI[[#This Row],[Input 3]],Table_PI[[#This Row],[Input 4]],'Customer Information'!$AR$12,200,ROW()),\"\"),\"\")","v":""},{"$f":"IFERROR(IF(MeasureCalc(Table_PI[[#This Row],[Hide:\nFormula Name]],Table_SummaryPI[[#This Row],[Quantity]],Table_PI[[#This Row],[List 1]],Table_PI[[#This Row],[List 2]],Table_PI[[#This Row],[List 3]],Table_PI[[#This Row],[Size]],Table_PI[[#This Row],[Input 1]],Table_PI[[#This Row],[Input 2]],Table_PI[[#This Row],[Input 3]],Table_PI[[#This Row],[Input 4]],'Customer Information'!$AR$12,201,ROW())<>\"No Rebate\",MeasureCalc(Table_PI[[#This Row],[Hide:\nFormula Name]],Table_SummaryPI[[#This Row],[Quantity]],Table_PI[[#This Row],[List 1]],Table_PI[[#This Row],[List 2]],Table_PI[[#This Row],[List 3]],Table_PI[[#This Row],[Size]],Table_PI[[#This Row],[Input 1]],Table_PI[[#This Row],[Input 2]],Table_PI[[#This Row],[Input 3]],Table_PI[[#This Row],[Input 4]],'Customer Information'!$AR$12,201,ROW()),\"\"),\"\")","v":""}]
[{"$f":"Table_PI[[#This Row],[Line No.]]","v":""},{"$f":"IF(Table_SummaryPI[[#This Row],[MeassureCategory]]<>\"\",CONCATENATE(Table_SummaryPI[[#This Row],[MeassureCategory]],  \" - \", Table_SummaryPI[[#This Row],[ProposedMeasureCategory]],  \" - \", TEXT(Table_SummaryPI[[#This Row],[Size]],\"#,##0.00\"),\" \",Table_SummaryPI[[#This Row],[SizeUnit]]),\"\")","v":""},{"$f":"SUBSTITUTE(Table_PI[[#This Row],[Measure]],\"     \",\"\",1)","v":""},{"$f":"IF(Table_PI[[#This Row],[List 1]]<>\"\",Table_PI[[#This Row],[List 1]],\"\")","v":""},{"$f":"IF(Table_PI[[#This Row],[List 2]]<>\"\",Table_PI[[#This Row],[List 2]],\"\")","v":""},{"$f":"IF(Table_PI[[#This Row],[List 3]]<>\"\",Table_PI[[#This Row],[List 3]],\"\")","v":""},{"$f":"IF(Table_PI[[#This Row],[Manufacturer]]=\"\",\"\",Table_PI[[#This Row],[Manufacturer]])","v":""},{"$f":"IF(Table_PI[[#This Row],[Model Number]]=\"\",\"\",Table_PI[[#This Row],[Model Number]])","v":""},{"$f":"IF(Table_PI[[#This Row],[Serial Number(s)]]=\"\",\"\",Table_PI[[#This Row],[Serial Number(s)]])","v":""},null,{"$f":"IF(Table_PI[[#This Row],[Size]]=\"\",\"\",Table_PI[[#This Row],[Size]])","v":""},null,{"$f":"IFERROR(IF(AND(MeasureCalc(Table_PI[[#This Row],[Hide:\nFormula Name]],Table_SummaryPI[[#This Row],[Quantity]],Table_PI[[#This Row],[List 1]],Table_PI[[#This Row],[List 2]],Table_PI[[#This Row],[List 3]],Table_PI[[#This Row],[Size]],Table_PI[[#This Row],[Input 1]],Table_PI[[#This Row],[Input 2]],Table_PI[[#This Row],[Input 3]],Table_PI[[#This Row],[Input 4]],'Customer Information'!$AR$12,100,ROW())<>0,MeasureCalc(Table_PI[[#This Row],[Hide:\nFormula Name]],Table_SummaryPI[[#This Row],[Quantity]],Table_PI[[#This Row],[List 1]],Table_PI[[#This Row],[List 2]],Table_PI[[#This Row],[List 3]],Table_PI[[#This Row],[Size]],Table_PI[[#This Row],[Input 1]],Table_PI[[#This Row],[Input 2]],Table_PI[[#This Row],[Input 3]],Table_PI[[#This Row],[Input 4]],'Customer Information'!$AR$12,100,ROW())<>\"No Rebate\"),MeasureCalc(Table_PI[[#This Row],[Hide:\nFormula Name]],Table_SummaryPI[[#This Row],[Quantity]],Table_PI[[#This Row],[List 1]],Table_PI[[#This Row],[List 2]],Table_PI[[#This Row],[List 3]],Table_PI[[#This Row],[Size]],Table_PI[[#This Row],[Input 1]],Table_PI[[#This Row],[Input 2]],Table_PI[[#This Row],[Input 3]],Table_PI[[#This Row],[Input 4]],'Customer Information'!$AR$12,100,ROW()),\"\"),\"\")","v":""},{"$f":"IF(Table_PI[[#This Row],[Input 1]]<>\"\",Table_PI[[#This Row],[Input 1]],\"\")","v":""},null,{"$f":"IFERROR(IF(AND(MeasureCalc(Table_PI[[#This Row],[Hide:\nFormula Name]],Table_SummaryPI[[#This Row],[Quantity]],Table_PI[[#This Row],[List 1]],Table_PI[[#This Row],[List 2]],Table_PI[[#This Row],[List 3]],Table_PI[[#This Row],[Size]],Table_PI[[#This Row],[Input 1]],Table_PI[[#This Row],[Input 2]],Table_PI[[#This Row],[Input 3]],Table_PI[[#This Row],[Input 4]],'Customer Information'!$AR$12,101,ROW())<>0,MeasureCalc(Table_PI[[#This Row],[Hide:\nFormula Name]],Table_SummaryPI[[#This Row],[Quantity]],Table_PI[[#This Row],[List 1]],Table_PI[[#This Row],[List 2]],Table_PI[[#This Row],[List 3]],Table_PI[[#This Row],[Size]],Table_PI[[#This Row],[Input 1]],Table_PI[[#This Row],[Input 2]],Table_PI[[#This Row],[Input 3]],Table_PI[[#This Row],[Input 4]],'Customer Information'!$AR$12,101,ROW())<>\"No Rebate\"),MeasureCalc(Table_PI[[#This Row],[Hide:\nFormula Name]],Table_SummaryPI[[#This Row],[Quantity]],Table_PI[[#This Row],[List 1]],Table_PI[[#This Row],[List 2]],Table_PI[[#This Row],[List 3]],Table_PI[[#This Row],[Size]],Table_PI[[#This Row],[Input 1]],Table_PI[[#This Row],[Input 2]],Table_PI[[#This Row],[Input 3]],Table_PI[[#This Row],[Input 4]],'Customer Information'!$AR$12,101,ROW()),\"\"),\"\")","v":""},{"$f":"IF(Table_PI[[#This Row],[Input 2]]<>\"\",Table_PI[[#This Row],[Input 2]],\"\")","v":""},null,{"$f":"IFERROR(IF(AND(MeasureCalc(Table_PI[[#This Row],[Hide:\nFormula Name]],Table_SummaryPI[[#This Row],[Quantity]],Table_PI[[#This Row],[List 1]],Table_PI[[#This Row],[List 2]],Table_PI[[#This Row],[List 3]],Table_PI[[#This Row],[Size]],Table_PI[[#This Row],[Input 1]],Table_PI[[#This Row],[Input 2]],Table_PI[[#This Row],[Input 3]],Table_PI[[#This Row],[Input 4]],'Customer Information'!$AR$12,102,ROW())<>0,MeasureCalc(Table_PI[[#This Row],[Hide:\nFormula Name]],Table_SummaryPI[[#This Row],[Quantity]],Table_PI[[#This Row],[List 1]],Table_PI[[#This Row],[List 2]],Table_PI[[#This Row],[List 3]],Table_PI[[#This Row],[Size]],Table_PI[[#This Row],[Input 1]],Table_PI[[#This Row],[Input 2]],Table_PI[[#This Row],[Input 3]],Table_PI[[#This Row],[Input 4]],'Customer Information'!$AR$12,102,ROW())<>\"No Rebate\"),MeasureCalc(Table_PI[[#This Row],[Hide:\nFormula Name]],Table_SummaryPI[[#This Row],[Quantity]],Table_PI[[#This Row],[List 1]],Table_PI[[#This Row],[List 2]],Table_PI[[#This Row],[List 3]],Table_PI[[#This Row],[Size]],Table_PI[[#This Row],[Input 1]],Table_PI[[#This Row],[Input 2]],Table_PI[[#This Row],[Input 3]],Table_PI[[#This Row],[Input 4]],'Customer Information'!$AR$12,102,ROW()),\"\"),\"\")","v":""},{"$f":"IF(Table_PI[[#This Row],[Input 3]]<>\"\",Table_PI[[#This Row],[Input 3]],\"\")","v":""},null,{"$f":"IFERROR(IF(AND(MeasureCalc(Table_PI[[#This Row],[Hide:\nFormula Name]],Table_SummaryPI[[#This Row],[Quantity]],Table_PI[[#This Row],[List 1]],Table_PI[[#This Row],[List 2]],Table_PI[[#This Row],[List 3]],Table_PI[[#This Row],[Size]],Table_PI[[#This Row],[Input 1]],Table_PI[[#This Row],[Input 2]],Table_PI[[#This Row],[Input 3]],Table_PI[[#This Row],[Input 4]],'Customer Information'!$AR$12,103,ROW())<>0,MeasureCalc(Table_PI[[#This Row],[Hide:\nFormula Name]],Table_SummaryPI[[#This Row],[Quantity]],Table_PI[[#This Row],[List 1]],Table_PI[[#This Row],[List 2]],Table_PI[[#This Row],[List 3]],Table_PI[[#This Row],[Size]],Table_PI[[#This Row],[Input 1]],Table_PI[[#This Row],[Input 2]],Table_PI[[#This Row],[Input 3]],Table_PI[[#This Row],[Input 4]],'Customer Information'!$AR$12,103,ROW())<>\"No Rebate\"),MeasureCalc(Table_PI[[#This Row],[Hide:\nFormula Name]],Table_SummaryPI[[#This Row],[Quantity]],Table_PI[[#This Row],[List 1]],Table_PI[[#This Row],[List 2]],Table_PI[[#This Row],[List 3]],Table_PI[[#This Row],[Size]],Table_PI[[#This Row],[Input 1]],Table_PI[[#This Row],[Input 2]],Table_PI[[#This Row],[Input 3]],Table_PI[[#This Row],[Input 4]],'Customer Information'!$AR$12,103,ROW()),\"\"),\"\")","v":""},{"$f":"IF(Table_PI[[#This Row],[Input 4]]<>\"\",Table_PI[[#This Row],[Input 4]],\"\")","v":""},{"$f":"IF(Table_PI[[#This Row],[Quantity]]=\"\",\"\",Table_PI[[#This Row],[Quantity]])","v":""},{"$f":"IF(Table_PI[[#This Row],[Notes]]=\"\",\"\",Table_PI[[#This Row],[Notes]])","v":""},{"$f":"IF(OR(Table_PI[[#This Row],[Hide:\nBaseline kWh]]=\"\",Table_PI[[#This Row],[Hide:\nBaseline kWh]]=0),\"\",Table_PI[[#This Row],[Hide:\nBaseline kWh]])","v":""},{"$f":"IF(OR(Table_PI[[#This Row],[Hide:\nBaseline kW]]=\"\",Table_PI[[#This Row],[Hide:\nBaseline kW]]=0),\"\",Table_PI[[#This Row],[Hide:\nBaseline kW]])","v":""},{"$f":"IF(OR(Table_PI[[#This Row],[Hide:\nProposed kWh]]=\"\",Table_PI[[#This Row],[Hide:\nProposed kWh]]=0),\"\",Table_PI[[#This Row],[Hide:\nProposed kWh]])","v":""},{"$f":"IF(OR(Table_PI[[#This Row],[Hide:\nProposed kW]]=\"\",Table_PI[[#This Row],[Hide:\nProposed kW]]=0),\"\",Table_PI[[#This Row],[Hide:\nProposed kW]])","v":""},{"$f":"IF(OR(Table_PI[[#This Row],[Rebate]]=\"\",Table_PI[[#This Row],[Rebate]]=0),\"\",Table_PI[[#This Row],[Rebate]])","v":""},{"$f":"IF(OR(Table_PI[[#This Row],[Hide:\nIncremental Cost]]=\"\",Table_PI[[#This Row],[Hide:\nIncremental Cost]]=0),\"\",Table_PI[[#This Row],[Hide:\nIncremental Cost]])","v":""},{"$f":"IFERROR(IF(Table_SummaryPI[[#This Row],[kWhSavings]]=\"\",\"\",ROUND(Table_SummaryPI[[#This Row],[kWhSavings]]/$AG$401*'Customer Information'!$BC$17,2)),0)","v":""},{"$f":"IF(OR(Table_PI[[#This Row],[Annual kWh]]=\"\",Table_PI[[#This Row],[Annual kWh]]=0),\"\",Table_PI[[#This Row],[Annual kWh]])","v":""},{"$f":"IF(OR(Table_PI[[#This Row],[Peak kW]]=\"\",Table_PI[[#This Row],[Peak kW]]=0),\"\",Table_PI[[#This Row],[Peak kW]])","v":""},{"$f":"IFERROR(IF(Table_SummaryPI[[#This Row],[kWhSavings]]=\"\",\"\",$AU$9*Table_SummaryPI[[#This Row],[kWhSavings]]),0)","v":""},{"$f":"IFERROR(IF(Table_SummaryPI[[#This Row],[kWhSavings]]=\"\",\"\",$AU$14*Table_SummaryPI[[#This Row],[kWhSavings]]),0)","v":""},{"$f":"IFERROR(IF(Table_SummaryPI[[#This Row],[kWhSavings]]=\"\",\"\",$AU$18*Table_SummaryPI[[#This Row],[kWhSavings]]),0)","v":""},{"$f":"IFERROR(IF(Table_SummaryPI[[#This Row],[kWhSavings]]=\"\",\"\",$AU$22*Table_SummaryPI[[#This Row],[kWhSavings]]),0)","v":""},{"$f":"IFERROR(IF(MeasureCalc(Table_PI[[#This Row],[Hide:\nFormula Name]],Table_SummaryPI[[#This Row],[Quantity]],Table_PI[[#This Row],[List 1]],Table_PI[[#This Row],[List 2]],Table_PI[[#This Row],[List 3]],Table_PI[[#This Row],[Size]],Table_PI[[#This Row],[Input 1]],Table_PI[[#This Row],[Input 2]],Table_PI[[#This Row],[Input 3]],Table_PI[[#This Row],[Input 4]],'Customer Information'!$AR$12,200,ROW())<>\"No Rebate\",MeasureCalc(Table_PI[[#This Row],[Hide:\nFormula Name]],Table_SummaryPI[[#This Row],[Quantity]],Table_PI[[#This Row],[List 1]],Table_PI[[#This Row],[List 2]],Table_PI[[#This Row],[List 3]],Table_PI[[#This Row],[Size]],Table_PI[[#This Row],[Input 1]],Table_PI[[#This Row],[Input 2]],Table_PI[[#This Row],[Input 3]],Table_PI[[#This Row],[Input 4]],'Customer Information'!$AR$12,200,ROW()),\"\"),\"\")","v":""},{"$f":"IFERROR(IF(MeasureCalc(Table_PI[[#This Row],[Hide:\nFormula Name]],Table_SummaryPI[[#This Row],[Quantity]],Table_PI[[#This Row],[List 1]],Table_PI[[#This Row],[List 2]],Table_PI[[#This Row],[List 3]],Table_PI[[#This Row],[Size]],Table_PI[[#This Row],[Input 1]],Table_PI[[#This Row],[Input 2]],Table_PI[[#This Row],[Input 3]],Table_PI[[#This Row],[Input 4]],'Customer Information'!$AR$12,201,ROW())<>\"No Rebate\",MeasureCalc(Table_PI[[#This Row],[Hide:\nFormula Name]],Table_SummaryPI[[#This Row],[Quantity]],Table_PI[[#This Row],[List 1]],Table_PI[[#This Row],[List 2]],Table_PI[[#This Row],[List 3]],Table_PI[[#This Row],[Size]],Table_PI[[#This Row],[Input 1]],Table_PI[[#This Row],[Input 2]],Table_PI[[#This Row],[Input 3]],Table_PI[[#This Row],[Input 4]],'Customer Information'!$AR$12,201,ROW()),\"\"),\"\")","v":""}]
[{"$f":"Table_PI[[#This Row],[Line No.]]","v":""},{"$f":"IF(Table_SummaryPI[[#This Row],[MeassureCategory]]<>\"\",CONCATENATE(Table_SummaryPI[[#This Row],[MeassureCategory]],  \" - \", Table_SummaryPI[[#This Row],[ProposedMeasureCategory]],  \" - \", TEXT(Table_SummaryPI[[#This Row],[Size]],\"#,##0.00\"),\" \",Table_SummaryPI[[#This Row],[SizeUnit]]),\"\")","v":""},{"$f":"SUBSTITUTE(Table_PI[[#This Row],[Measure]],\"     \",\"\",1)","v":""},{"$f":"IF(Table_PI[[#This Row],[List 1]]<>\"\",Table_PI[[#This Row],[List 1]],\"\")","v":""},{"$f":"IF(Table_PI[[#This Row],[List 2]]<>\"\",Table_PI[[#This Row],[List 2]],\"\")","v":""},{"$f":"IF(Table_PI[[#This Row],[List 3]]<>\"\",Table_PI[[#This Row],[List 3]],\"\")","v":""},{"$f":"IF(Table_PI[[#This Row],[Manufacturer]]=\"\",\"\",Table_PI[[#This Row],[Manufacturer]])","v":""},{"$f":"IF(Table_PI[[#This Row],[Model Number]]=\"\",\"\",Table_PI[[#This Row],[Model Number]])","v":""},{"$f":"IF(Table_PI[[#This Row],[Serial Number(s)]]=\"\",\"\",Table_PI[[#This Row],[Serial Number(s)]])","v":""},null,{"$f":"IF(Table_PI[[#This Row],[Size]]=\"\",\"\",Table_PI[[#This Row],[Size]])","v":""},null,{"$f":"IFERROR(IF(AND(MeasureCalc(Table_PI[[#This Row],[Hide:\nFormula Name]],Table_SummaryPI[[#This Row],[Quantity]],Table_PI[[#This Row],[List 1]],Table_PI[[#This Row],[List 2]],Table_PI[[#This Row],[List 3]],Table_PI[[#This Row],[Size]],Table_PI[[#This Row],[Input 1]],Table_PI[[#This Row],[Input 2]],Table_PI[[#This Row],[Input 3]],Table_PI[[#This Row],[Input 4]],'Customer Information'!$AR$12,100,ROW())<>0,MeasureCalc(Table_PI[[#This Row],[Hide:\nFormula Name]],Table_SummaryPI[[#This Row],[Quantity]],Table_PI[[#This Row],[List 1]],Table_PI[[#This Row],[List 2]],Table_PI[[#This Row],[List 3]],Table_PI[[#This Row],[Size]],Table_PI[[#This Row],[Input 1]],Table_PI[[#This Row],[Input 2]],Table_PI[[#This Row],[Input 3]],Table_PI[[#This Row],[Input 4]],'Customer Information'!$AR$12,100,ROW())<>\"No Rebate\"),MeasureCalc(Table_PI[[#This Row],[Hide:\nFormula Name]],Table_SummaryPI[[#This Row],[Quantity]],Table_PI[[#This Row],[List 1]],Table_PI[[#This Row],[List 2]],Table_PI[[#This Row],[List 3]],Table_PI[[#This Row],[Size]],Table_PI[[#This Row],[Input 1]],Table_PI[[#This Row],[Input 2]],Table_PI[[#This Row],[Input 3]],Table_PI[[#This Row],[Input 4]],'Customer Information'!$AR$12,100,ROW()),\"\"),\"\")","v":""},{"$f":"IF(Table_PI[[#This Row],[Input 1]]<>\"\",Table_PI[[#This Row],[Input 1]],\"\")","v":""},null,{"$f":"IFERROR(IF(AND(MeasureCalc(Table_PI[[#This Row],[Hide:\nFormula Name]],Table_SummaryPI[[#This Row],[Quantity]],Table_PI[[#This Row],[List 1]],Table_PI[[#This Row],[List 2]],Table_PI[[#This Row],[List 3]],Table_PI[[#This Row],[Size]],Table_PI[[#This Row],[Input 1]],Table_PI[[#This Row],[Input 2]],Table_PI[[#This Row],[Input 3]],Table_PI[[#This Row],[Input 4]],'Customer Information'!$AR$12,101,ROW())<>0,MeasureCalc(Table_PI[[#This Row],[Hide:\nFormula Name]],Table_SummaryPI[[#This Row],[Quantity]],Table_PI[[#This Row],[List 1]],Table_PI[[#This Row],[List 2]],Table_PI[[#This Row],[List 3]],Table_PI[[#This Row],[Size]],Table_PI[[#This Row],[Input 1]],Table_PI[[#This Row],[Input 2]],Table_PI[[#This Row],[Input 3]],Table_PI[[#This Row],[Input 4]],'Customer Information'!$AR$12,101,ROW())<>\"No Rebate\"),MeasureCalc(Table_PI[[#This Row],[Hide:\nFormula Name]],Table_SummaryPI[[#This Row],[Quantity]],Table_PI[[#This Row],[List 1]],Table_PI[[#This Row],[List 2]],Table_PI[[#This Row],[List 3]],Table_PI[[#This Row],[Size]],Table_PI[[#This Row],[Input 1]],Table_PI[[#This Row],[Input 2]],Table_PI[[#This Row],[Input 3]],Table_PI[[#This Row],[Input 4]],'Customer Information'!$AR$12,101,ROW()),\"\"),\"\")","v":""},{"$f":"IF(Table_PI[[#This Row],[Input 2]]<>\"\",Table_PI[[#This Row],[Input 2]],\"\")","v":""},null,{"$f":"IFERROR(IF(AND(MeasureCalc(Table_PI[[#This Row],[Hide:\nFormula Name]],Table_SummaryPI[[#This Row],[Quantity]],Table_PI[[#This Row],[List 1]],Table_PI[[#This Row],[List 2]],Table_PI[[#This Row],[List 3]],Table_PI[[#This Row],[Size]],Table_PI[[#This Row],[Input 1]],Table_PI[[#This Row],[Input 2]],Table_PI[[#This Row],[Input 3]],Table_PI[[#This Row],[Input 4]],'Customer Information'!$AR$12,102,ROW())<>0,MeasureCalc(Table_PI[[#This Row],[Hide:\nFormula Name]],Table_SummaryPI[[#This Row],[Quantity]],Table_PI[[#This Row],[List 1]],Table_PI[[#This Row],[List 2]],Table_PI[[#This Row],[List 3]],Table_PI[[#This Row],[Size]],Table_PI[[#This Row],[Input 1]],Table_PI[[#This Row],[Input 2]],Table_PI[[#This Row],[Input 3]],Table_PI[[#This Row],[Input 4]],'Customer Information'!$AR$12,102,ROW())<>\"No Rebate\"),MeasureCalc(Table_PI[[#This Row],[Hide:\nFormula Name]],Table_SummaryPI[[#This Row],[Quantity]],Table_PI[[#This Row],[List 1]],Table_PI[[#This Row],[List 2]],Table_PI[[#This Row],[List 3]],Table_PI[[#This Row],[Size]],Table_PI[[#This Row],[Input 1]],Table_PI[[#This Row],[Input 2]],Table_PI[[#This Row],[Input 3]],Table_PI[[#This Row],[Input 4]],'Customer Information'!$AR$12,102,ROW()),\"\"),\"\")","v":""},{"$f":"IF(Table_PI[[#This Row],[Input 3]]<>\"\",Table_PI[[#This Row],[Input 3]],\"\")","v":""},null,{"$f":"IFERROR(IF(AND(MeasureCalc(Table_PI[[#This Row],[Hide:\nFormula Name]],Table_SummaryPI[[#This Row],[Quantity]],Table_PI[[#This Row],[List 1]],Table_PI[[#This Row],[List 2]],Table_PI[[#This Row],[List 3]],Table_PI[[#This Row],[Size]],Table_PI[[#This Row],[Input 1]],Table_PI[[#This Row],[Input 2]],Table_PI[[#This Row],[Input 3]],Table_PI[[#This Row],[Input 4]],'Customer Information'!$AR$12,103,ROW())<>0,MeasureCalc(Table_PI[[#This Row],[Hide:\nFormula Name]],Table_SummaryPI[[#This Row],[Quantity]],Table_PI[[#This Row],[List 1]],Table_PI[[#This Row],[List 2]],Table_PI[[#This Row],[List 3]],Table_PI[[#This Row],[Size]],Table_PI[[#This Row],[Input 1]],Table_PI[[#This Row],[Input 2]],Table_PI[[#This Row],[Input 3]],Table_PI[[#This Row],[Input 4]],'Customer Information'!$AR$12,103,ROW())<>\"No Rebate\"),MeasureCalc(Table_PI[[#This Row],[Hide:\nFormula Name]],Table_SummaryPI[[#This Row],[Quantity]],Table_PI[[#This Row],[List 1]],Table_PI[[#This Row],[List 2]],Table_PI[[#This Row],[List 3]],Table_PI[[#This Row],[Size]],Table_PI[[#This Row],[Input 1]],Table_PI[[#This Row],[Input 2]],Table_PI[[#This Row],[Input 3]],Table_PI[[#This Row],[Input 4]],'Customer Information'!$AR$12,103,ROW()),\"\"),\"\")","v":""},{"$f":"IF(Table_PI[[#This Row],[Input 4]]<>\"\",Table_PI[[#This Row],[Input 4]],\"\")","v":""},{"$f":"IF(Table_PI[[#This Row],[Quantity]]=\"\",\"\",Table_PI[[#This Row],[Quantity]])","v":""},{"$f":"IF(Table_PI[[#This Row],[Notes]]=\"\",\"\",Table_PI[[#This Row],[Notes]])","v":""},{"$f":"IF(OR(Table_PI[[#This Row],[Hide:\nBaseline kWh]]=\"\",Table_PI[[#This Row],[Hide:\nBaseline kWh]]=0),\"\",Table_PI[[#This Row],[Hide:\nBaseline kWh]])","v":""},{"$f":"IF(OR(Table_PI[[#This Row],[Hide:\nBaseline kW]]=\"\",Table_PI[[#This Row],[Hide:\nBaseline kW]]=0),\"\",Table_PI[[#This Row],[Hide:\nBaseline kW]])","v":""},{"$f":"IF(OR(Table_PI[[#This Row],[Hide:\nProposed kWh]]=\"\",Table_PI[[#This Row],[Hide:\nProposed kWh]]=0),\"\",Table_PI[[#This Row],[Hide:\nProposed kWh]])","v":""},{"$f":"IF(OR(Table_PI[[#This Row],[Hide:\nProposed kW]]=\"\",Table_PI[[#This Row],[Hide:\nProposed kW]]=0),\"\",Table_PI[[#This Row],[Hide:\nProposed kW]])","v":""},{"$f":"IF(OR(Table_PI[[#This Row],[Rebate]]=\"\",Table_PI[[#This Row],[Rebate]]=0),\"\",Table_PI[[#This Row],[Rebate]])","v":""},{"$f":"IF(OR(Table_PI[[#This Row],[Hide:\nIncremental Cost]]=\"\",Table_PI[[#This Row],[Hide:\nIncremental Cost]]=0),\"\",Table_PI[[#This Row],[Hide:\nIncremental Cost]])","v":""},{"$f":"IFERROR(IF(Table_SummaryPI[[#This Row],[kWhSavings]]=\"\",\"\",ROUND(Table_SummaryPI[[#This Row],[kWhSavings]]/$AG$401*'Customer Information'!$BC$17,2)),0)","v":""},{"$f":"IF(OR(Table_PI[[#This Row],[Annual kWh]]=\"\",Table_PI[[#This Row],[Annual kWh]]=0),\"\",Table_PI[[#This Row],[Annual kWh]])","v":""},{"$f":"IF(OR(Table_PI[[#This Row],[Peak kW]]=\"\",Table_PI[[#This Row],[Peak kW]]=0),\"\",Table_PI[[#This Row],[Peak kW]])","v":""},{"$f":"IFERROR(IF(Table_SummaryPI[[#This Row],[kWhSavings]]=\"\",\"\",$AU$9*Table_SummaryPI[[#This Row],[kWhSavings]]),0)","v":""},{"$f":"IFERROR(IF(Table_SummaryPI[[#This Row],[kWhSavings]]=\"\",\"\",$AU$14*Table_SummaryPI[[#This Row],[kWhSavings]]),0)","v":""},{"$f":"IFERROR(IF(Table_SummaryPI[[#This Row],[kWhSavings]]=\"\",\"\",$AU$18*Table_SummaryPI[[#This Row],[kWhSavings]]),0)","v":""},{"$f":"IFERROR(IF(Table_SummaryPI[[#This Row],[kWhSavings]]=\"\",\"\",$AU$22*Table_SummaryPI[[#This Row],[kWhSavings]]),0)","v":""},{"$f":"IFERROR(IF(MeasureCalc(Table_PI[[#This Row],[Hide:\nFormula Name]],Table_SummaryPI[[#This Row],[Quantity]],Table_PI[[#This Row],[List 1]],Table_PI[[#This Row],[List 2]],Table_PI[[#This Row],[List 3]],Table_PI[[#This Row],[Size]],Table_PI[[#This Row],[Input 1]],Table_PI[[#This Row],[Input 2]],Table_PI[[#This Row],[Input 3]],Table_PI[[#This Row],[Input 4]],'Customer Information'!$AR$12,200,ROW())<>\"No Rebate\",MeasureCalc(Table_PI[[#This Row],[Hide:\nFormula Name]],Table_SummaryPI[[#This Row],[Quantity]],Table_PI[[#This Row],[List 1]],Table_PI[[#This Row],[List 2]],Table_PI[[#This Row],[List 3]],Table_PI[[#This Row],[Size]],Table_PI[[#This Row],[Input 1]],Table_PI[[#This Row],[Input 2]],Table_PI[[#This Row],[Input 3]],Table_PI[[#This Row],[Input 4]],'Customer Information'!$AR$12,200,ROW()),\"\"),\"\")","v":""},{"$f":"IFERROR(IF(MeasureCalc(Table_PI[[#This Row],[Hide:\nFormula Name]],Table_SummaryPI[[#This Row],[Quantity]],Table_PI[[#This Row],[List 1]],Table_PI[[#This Row],[List 2]],Table_PI[[#This Row],[List 3]],Table_PI[[#This Row],[Size]],Table_PI[[#This Row],[Input 1]],Table_PI[[#This Row],[Input 2]],Table_PI[[#This Row],[Input 3]],Table_PI[[#This Row],[Input 4]],'Customer Information'!$AR$12,201,ROW())<>\"No Rebate\",MeasureCalc(Table_PI[[#This Row],[Hide:\nFormula Name]],Table_SummaryPI[[#This Row],[Quantity]],Table_PI[[#This Row],[List 1]],Table_PI[[#This Row],[List 2]],Table_PI[[#This Row],[List 3]],Table_PI[[#This Row],[Size]],Table_PI[[#This Row],[Input 1]],Table_PI[[#This Row],[Input 2]],Table_PI[[#This Row],[Input 3]],Table_PI[[#This Row],[Input 4]],'Customer Information'!$AR$12,201,ROW()),\"\"),\"\")","v":""}]
[{"$f":"Table_PI[[#This Row],[Line No.]]","v":""},{"$f":"IF(Table_SummaryPI[[#This Row],[MeassureCategory]]<>\"\",CONCATENATE(Table_SummaryPI[[#This Row],[MeassureCategory]],  \" - \", Table_SummaryPI[[#This Row],[ProposedMeasureCategory]],  \" - \", TEXT(Table_SummaryPI[[#This Row],[Size]],\"#,##0.00\"),\" \",Table_SummaryPI[[#This Row],[SizeUnit]]),\"\")","v":""},{"$f":"SUBSTITUTE(Table_PI[[#This Row],[Measure]],\"     \",\"\",1)","v":""},{"$f":"IF(Table_PI[[#This Row],[List 1]]<>\"\",Table_PI[[#This Row],[List 1]],\"\")","v":""},{"$f":"IF(Table_PI[[#This Row],[List 2]]<>\"\",Table_PI[[#This Row],[List 2]],\"\")","v":""},{"$f":"IF(Table_PI[[#This Row],[List 3]]<>\"\",Table_PI[[#This Row],[List 3]],\"\")","v":""},{"$f":"IF(Table_PI[[#This Row],[Manufacturer]]=\"\",\"\",Table_PI[[#This Row],[Manufacturer]])","v":""},{"$f":"IF(Table_PI[[#This Row],[Model Number]]=\"\",\"\",Table_PI[[#This Row],[Model Number]])","v":""},{"$f":"IF(Table_PI[[#This Row],[Serial Number(s)]]=\"\",\"\",Table_PI[[#This Row],[Serial Number(s)]])","v":""},null,{"$f":"IF(Table_PI[[#This Row],[Size]]=\"\",\"\",Table_PI[[#This Row],[Size]])","v":""},null,{"$f":"IFERROR(IF(AND(MeasureCalc(Table_PI[[#This Row],[Hide:\nFormula Name]],Table_SummaryPI[[#This Row],[Quantity]],Table_PI[[#This Row],[List 1]],Table_PI[[#This Row],[List 2]],Table_PI[[#This Row],[List 3]],Table_PI[[#This Row],[Size]],Table_PI[[#This Row],[Input 1]],Table_PI[[#This Row],[Input 2]],Table_PI[[#This Row],[Input 3]],Table_PI[[#This Row],[Input 4]],'Customer Information'!$AR$12,100,ROW())<>0,MeasureCalc(Table_PI[[#This Row],[Hide:\nFormula Name]],Table_SummaryPI[[#This Row],[Quantity]],Table_PI[[#This Row],[List 1]],Table_PI[[#This Row],[List 2]],Table_PI[[#This Row],[List 3]],Table_PI[[#This Row],[Size]],Table_PI[[#This Row],[Input 1]],Table_PI[[#This Row],[Input 2]],Table_PI[[#This Row],[Input 3]],Table_PI[[#This Row],[Input 4]],'Customer Information'!$AR$12,100,ROW())<>\"No Rebate\"),MeasureCalc(Table_PI[[#This Row],[Hide:\nFormula Name]],Table_SummaryPI[[#This Row],[Quantity]],Table_PI[[#This Row],[List 1]],Table_PI[[#This Row],[List 2]],Table_PI[[#This Row],[List 3]],Table_PI[[#This Row],[Size]],Table_PI[[#This Row],[Input 1]],Table_PI[[#This Row],[Input 2]],Table_PI[[#This Row],[Input 3]],Table_PI[[#This Row],[Input 4]],'Customer Information'!$AR$12,100,ROW()),\"\"),\"\")","v":""},{"$f":"IF(Table_PI[[#This Row],[Input 1]]<>\"\",Table_PI[[#This Row],[Input 1]],\"\")","v":""},null,{"$f":"IFERROR(IF(AND(MeasureCalc(Table_PI[[#This Row],[Hide:\nFormula Name]],Table_SummaryPI[[#This Row],[Quantity]],Table_PI[[#This Row],[List 1]],Table_PI[[#This Row],[List 2]],Table_PI[[#This Row],[List 3]],Table_PI[[#This Row],[Size]],Table_PI[[#This Row],[Input 1]],Table_PI[[#This Row],[Input 2]],Table_PI[[#This Row],[Input 3]],Table_PI[[#This Row],[Input 4]],'Customer Information'!$AR$12,101,ROW())<>0,MeasureCalc(Table_PI[[#This Row],[Hide:\nFormula Name]],Table_SummaryPI[[#This Row],[Quantity]],Table_PI[[#This Row],[List 1]],Table_PI[[#This Row],[List 2]],Table_PI[[#This Row],[List 3]],Table_PI[[#This Row],[Size]],Table_PI[[#This Row],[Input 1]],Table_PI[[#This Row],[Input 2]],Table_PI[[#This Row],[Input 3]],Table_PI[[#This Row],[Input 4]],'Customer Information'!$AR$12,101,ROW())<>\"No Rebate\"),MeasureCalc(Table_PI[[#This Row],[Hide:\nFormula Name]],Table_SummaryPI[[#This Row],[Quantity]],Table_PI[[#This Row],[List 1]],Table_PI[[#This Row],[List 2]],Table_PI[[#This Row],[List 3]],Table_PI[[#This Row],[Size]],Table_PI[[#This Row],[Input 1]],Table_PI[[#This Row],[Input 2]],Table_PI[[#This Row],[Input 3]],Table_PI[[#This Row],[Input 4]],'Customer Information'!$AR$12,101,ROW()),\"\"),\"\")","v":""},{"$f":"IF(Table_PI[[#This Row],[Input 2]]<>\"\",Table_PI[[#This Row],[Input 2]],\"\")","v":""},null,{"$f":"IFERROR(IF(AND(MeasureCalc(Table_PI[[#This Row],[Hide:\nFormula Name]],Table_SummaryPI[[#This Row],[Quantity]],Table_PI[[#This Row],[List 1]],Table_PI[[#This Row],[List 2]],Table_PI[[#This Row],[List 3]],Table_PI[[#This Row],[Size]],Table_PI[[#This Row],[Input 1]],Table_PI[[#This Row],[Input 2]],Table_PI[[#This Row],[Input 3]],Table_PI[[#This Row],[Input 4]],'Customer Information'!$AR$12,102,ROW())<>0,MeasureCalc(Table_PI[[#This Row],[Hide:\nFormula Name]],Table_SummaryPI[[#This Row],[Quantity]],Table_PI[[#This Row],[List 1]],Table_PI[[#This Row],[List 2]],Table_PI[[#This Row],[List 3]],Table_PI[[#This Row],[Size]],Table_PI[[#This Row],[Input 1]],Table_PI[[#This Row],[Input 2]],Table_PI[[#This Row],[Input 3]],Table_PI[[#This Row],[Input 4]],'Customer Information'!$AR$12,102,ROW())<>\"No Rebate\"),MeasureCalc(Table_PI[[#This Row],[Hide:\nFormula Name]],Table_SummaryPI[[#This Row],[Quantity]],Table_PI[[#This Row],[List 1]],Table_PI[[#This Row],[List 2]],Table_PI[[#This Row],[List 3]],Table_PI[[#This Row],[Size]],Table_PI[[#This Row],[Input 1]],Table_PI[[#This Row],[Input 2]],Table_PI[[#This Row],[Input 3]],Table_PI[[#This Row],[Input 4]],'Customer Information'!$AR$12,102,ROW()),\"\"),\"\")","v":""},{"$f":"IF(Table_PI[[#This Row],[Input 3]]<>\"\",Table_PI[[#This Row],[Input 3]],\"\")","v":""},null,{"$f":"IFERROR(IF(AND(MeasureCalc(Table_PI[[#This Row],[Hide:\nFormula Name]],Table_SummaryPI[[#This Row],[Quantity]],Table_PI[[#This Row],[List 1]],Table_PI[[#This Row],[List 2]],Table_PI[[#This Row],[List 3]],Table_PI[[#This Row],[Size]],Table_PI[[#This Row],[Input 1]],Table_PI[[#This Row],[Input 2]],Table_PI[[#This Row],[Input 3]],Table_PI[[#This Row],[Input 4]],'Customer Information'!$AR$12,103,ROW())<>0,MeasureCalc(Table_PI[[#This Row],[Hide:\nFormula Name]],Table_SummaryPI[[#This Row],[Quantity]],Table_PI[[#This Row],[List 1]],Table_PI[[#This Row],[List 2]],Table_PI[[#This Row],[List 3]],Table_PI[[#This Row],[Size]],Table_PI[[#This Row],[Input 1]],Table_PI[[#This Row],[Input 2]],Table_PI[[#This Row],[Input 3]],Table_PI[[#This Row],[Input 4]],'Customer Information'!$AR$12,103,ROW())<>\"No Rebate\"),MeasureCalc(Table_PI[[#This Row],[Hide:\nFormula Name]],Table_SummaryPI[[#This Row],[Quantity]],Table_PI[[#This Row],[List 1]],Table_PI[[#This Row],[List 2]],Table_PI[[#This Row],[List 3]],Table_PI[[#This Row],[Size]],Table_PI[[#This Row],[Input 1]],Table_PI[[#This Row],[Input 2]],Table_PI[[#This Row],[Input 3]],Table_PI[[#This Row],[Input 4]],'Customer Information'!$AR$12,103,ROW()),\"\"),\"\")","v":""},{"$f":"IF(Table_PI[[#This Row],[Input 4]]<>\"\",Table_PI[[#This Row],[Input 4]],\"\")","v":""},{"$f":"IF(Table_PI[[#This Row],[Quantity]]=\"\",\"\",Table_PI[[#This Row],[Quantity]])","v":""},{"$f":"IF(Table_PI[[#This Row],[Notes]]=\"\",\"\",Table_PI[[#This Row],[Notes]])","v":""},{"$f":"IF(OR(Table_PI[[#This Row],[Hide:\nBaseline kWh]]=\"\",Table_PI[[#This Row],[Hide:\nBaseline kWh]]=0),\"\",Table_PI[[#This Row],[Hide:\nBaseline kWh]])","v":""},{"$f":"IF(OR(Table_PI[[#This Row],[Hide:\nBaseline kW]]=\"\",Table_PI[[#This Row],[Hide:\nBaseline kW]]=0),\"\",Table_PI[[#This Row],[Hide:\nBaseline kW]])","v":""},{"$f":"IF(OR(Table_PI[[#This Row],[Hide:\nProposed kWh]]=\"\",Table_PI[[#This Row],[Hide:\nProposed kWh]]=0),\"\",Table_PI[[#This Row],[Hide:\nProposed kWh]])","v":""},{"$f":"IF(OR(Table_PI[[#This Row],[Hide:\nProposed kW]]=\"\",Table_PI[[#This Row],[Hide:\nProposed kW]]=0),\"\",Table_PI[[#This Row],[Hide:\nProposed kW]])","v":""},{"$f":"IF(OR(Table_PI[[#This Row],[Rebate]]=\"\",Table_PI[[#This Row],[Rebate]]=0),\"\",Table_PI[[#This Row],[Rebate]])","v":""},{"$f":"IF(OR(Table_PI[[#This Row],[Hide:\nIncremental Cost]]=\"\",Table_PI[[#This Row],[Hide:\nIncremental Cost]]=0),\"\",Table_PI[[#This Row],[Hide:\nIncremental Cost]])","v":""},{"$f":"IFERROR(IF(Table_SummaryPI[[#This Row],[kWhSavings]]=\"\",\"\",ROUND(Table_SummaryPI[[#This Row],[kWhSavings]]/$AG$401*'Customer Information'!$BC$17,2)),0)","v":""},{"$f":"IF(OR(Table_PI[[#This Row],[Annual kWh]]=\"\",Table_PI[[#This Row],[Annual kWh]]=0),\"\",Table_PI[[#This Row],[Annual kWh]])","v":""},{"$f":"IF(OR(Table_PI[[#This Row],[Peak kW]]=\"\",Table_PI[[#This Row],[Peak kW]]=0),\"\",Table_PI[[#This Row],[Peak kW]])","v":""},{"$f":"IFERROR(IF(Table_SummaryPI[[#This Row],[kWhSavings]]=\"\",\"\",$AU$9*Table_SummaryPI[[#This Row],[kWhSavings]]),0)","v":""},{"$f":"IFERROR(IF(Table_SummaryPI[[#This Row],[kWhSavings]]=\"\",\"\",$AU$14*Table_SummaryPI[[#This Row],[kWhSavings]]),0)","v":""},{"$f":"IFERROR(IF(Table_SummaryPI[[#This Row],[kWhSavings]]=\"\",\"\",$AU$18*Table_SummaryPI[[#This Row],[kWhSavings]]),0)","v":""},{"$f":"IFERROR(IF(Table_SummaryPI[[#This Row],[kWhSavings]]=\"\",\"\",$AU$22*Table_SummaryPI[[#This Row],[kWhSavings]]),0)","v":""},{"$f":"IFERROR(IF(MeasureCalc(Table_PI[[#This Row],[Hide:\nFormula Name]],Table_SummaryPI[[#This Row],[Quantity]],Table_PI[[#This Row],[List 1]],Table_PI[[#This Row],[List 2]],Table_PI[[#This Row],[List 3]],Table_PI[[#This Row],[Size]],Table_PI[[#This Row],[Input 1]],Table_PI[[#This Row],[Input 2]],Table_PI[[#This Row],[Input 3]],Table_PI[[#This Row],[Input 4]],'Customer Information'!$AR$12,200,ROW())<>\"No Rebate\",MeasureCalc(Table_PI[[#This Row],[Hide:\nFormula Name]],Table_SummaryPI[[#This Row],[Quantity]],Table_PI[[#This Row],[List 1]],Table_PI[[#This Row],[List 2]],Table_PI[[#This Row],[List 3]],Table_PI[[#This Row],[Size]],Table_PI[[#This Row],[Input 1]],Table_PI[[#This Row],[Input 2]],Table_PI[[#This Row],[Input 3]],Table_PI[[#This Row],[Input 4]],'Customer Information'!$AR$12,200,ROW()),\"\"),\"\")","v":""},{"$f":"IFERROR(IF(MeasureCalc(Table_PI[[#This Row],[Hide:\nFormula Name]],Table_SummaryPI[[#This Row],[Quantity]],Table_PI[[#This Row],[List 1]],Table_PI[[#This Row],[List 2]],Table_PI[[#This Row],[List 3]],Table_PI[[#This Row],[Size]],Table_PI[[#This Row],[Input 1]],Table_PI[[#This Row],[Input 2]],Table_PI[[#This Row],[Input 3]],Table_PI[[#This Row],[Input 4]],'Customer Information'!$AR$12,201,ROW())<>\"No Rebate\",MeasureCalc(Table_PI[[#This Row],[Hide:\nFormula Name]],Table_SummaryPI[[#This Row],[Quantity]],Table_PI[[#This Row],[List 1]],Table_PI[[#This Row],[List 2]],Table_PI[[#This Row],[List 3]],Table_PI[[#This Row],[Size]],Table_PI[[#This Row],[Input 1]],Table_PI[[#This Row],[Input 2]],Table_PI[[#This Row],[Input 3]],Table_PI[[#This Row],[Input 4]],'Customer Information'!$AR$12,201,ROW()),\"\"),\"\")","v":""}]
[{"$f":"Table_PI[[#This Row],[Line No.]]","v":""},{"$f":"IF(Table_SummaryPI[[#This Row],[MeassureCategory]]<>\"\",CONCATENATE(Table_SummaryPI[[#This Row],[MeassureCategory]],  \" - \", Table_SummaryPI[[#This Row],[ProposedMeasureCategory]],  \" - \", TEXT(Table_SummaryPI[[#This Row],[Size]],\"#,##0.00\"),\" \",Table_SummaryPI[[#This Row],[SizeUnit]]),\"\")","v":""},{"$f":"SUBSTITUTE(Table_PI[[#This Row],[Measure]],\"     \",\"\",1)","v":""},{"$f":"IF(Table_PI[[#This Row],[List 1]]<>\"\",Table_PI[[#This Row],[List 1]],\"\")","v":""},{"$f":"IF(Table_PI[[#This Row],[List 2]]<>\"\",Table_PI[[#This Row],[List 2]],\"\")","v":""},{"$f":"IF(Table_PI[[#This Row],[List 3]]<>\"\",Table_PI[[#This Row],[List 3]],\"\")","v":""},{"$f":"IF(Table_PI[[#This Row],[Manufacturer]]=\"\",\"\",Table_PI[[#This Row],[Manufacturer]])","v":""},{"$f":"IF(Table_PI[[#This Row],[Model Number]]=\"\",\"\",Table_PI[[#This Row],[Model Number]])","v":""},{"$f":"IF(Table_PI[[#This Row],[Serial Number(s)]]=\"\",\"\",Table_PI[[#This Row],[Serial Number(s)]])","v":""},null,{"$f":"IF(Table_PI[[#This Row],[Size]]=\"\",\"\",Table_PI[[#This Row],[Size]])","v":""},null,{"$f":"IFERROR(IF(AND(MeasureCalc(Table_PI[[#This Row],[Hide:\nFormula Name]],Table_SummaryPI[[#This Row],[Quantity]],Table_PI[[#This Row],[List 1]],Table_PI[[#This Row],[List 2]],Table_PI[[#This Row],[List 3]],Table_PI[[#This Row],[Size]],Table_PI[[#This Row],[Input 1]],Table_PI[[#This Row],[Input 2]],Table_PI[[#This Row],[Input 3]],Table_PI[[#This Row],[Input 4]],'Customer Information'!$AR$12,100,ROW())<>0,MeasureCalc(Table_PI[[#This Row],[Hide:\nFormula Name]],Table_SummaryPI[[#This Row],[Quantity]],Table_PI[[#This Row],[List 1]],Table_PI[[#This Row],[List 2]],Table_PI[[#This Row],[List 3]],Table_PI[[#This Row],[Size]],Table_PI[[#This Row],[Input 1]],Table_PI[[#This Row],[Input 2]],Table_PI[[#This Row],[Input 3]],Table_PI[[#This Row],[Input 4]],'Customer Information'!$AR$12,100,ROW())<>\"No Rebate\"),MeasureCalc(Table_PI[[#This Row],[Hide:\nFormula Name]],Table_SummaryPI[[#This Row],[Quantity]],Table_PI[[#This Row],[List 1]],Table_PI[[#This Row],[List 2]],Table_PI[[#This Row],[List 3]],Table_PI[[#This Row],[Size]],Table_PI[[#This Row],[Input 1]],Table_PI[[#This Row],[Input 2]],Table_PI[[#This Row],[Input 3]],Table_PI[[#This Row],[Input 4]],'Customer Information'!$AR$12,100,ROW()),\"\"),\"\")","v":""},{"$f":"IF(Table_PI[[#This Row],[Input 1]]<>\"\",Table_PI[[#This Row],[Input 1]],\"\")","v":""},null,{"$f":"IFERROR(IF(AND(MeasureCalc(Table_PI[[#This Row],[Hide:\nFormula Name]],Table_SummaryPI[[#This Row],[Quantity]],Table_PI[[#This Row],[List 1]],Table_PI[[#This Row],[List 2]],Table_PI[[#This Row],[List 3]],Table_PI[[#This Row],[Size]],Table_PI[[#This Row],[Input 1]],Table_PI[[#This Row],[Input 2]],Table_PI[[#This Row],[Input 3]],Table_PI[[#This Row],[Input 4]],'Customer Information'!$AR$12,101,ROW())<>0,MeasureCalc(Table_PI[[#This Row],[Hide:\nFormula Name]],Table_SummaryPI[[#This Row],[Quantity]],Table_PI[[#This Row],[List 1]],Table_PI[[#This Row],[List 2]],Table_PI[[#This Row],[List 3]],Table_PI[[#This Row],[Size]],Table_PI[[#This Row],[Input 1]],Table_PI[[#This Row],[Input 2]],Table_PI[[#This Row],[Input 3]],Table_PI[[#This Row],[Input 4]],'Customer Information'!$AR$12,101,ROW())<>\"No Rebate\"),MeasureCalc(Table_PI[[#This Row],[Hide:\nFormula Name]],Table_SummaryPI[[#This Row],[Quantity]],Table_PI[[#This Row],[List 1]],Table_PI[[#This Row],[List 2]],Table_PI[[#This Row],[List 3]],Table_PI[[#This Row],[Size]],Table_PI[[#This Row],[Input 1]],Table_PI[[#This Row],[Input 2]],Table_PI[[#This Row],[Input 3]],Table_PI[[#This Row],[Input 4]],'Customer Information'!$AR$12,101,ROW()),\"\"),\"\")","v":""},{"$f":"IF(Table_PI[[#This Row],[Input 2]]<>\"\",Table_PI[[#This Row],[Input 2]],\"\")","v":""},null,{"$f":"IFERROR(IF(AND(MeasureCalc(Table_PI[[#This Row],[Hide:\nFormula Name]],Table_SummaryPI[[#This Row],[Quantity]],Table_PI[[#This Row],[List 1]],Table_PI[[#This Row],[List 2]],Table_PI[[#This Row],[List 3]],Table_PI[[#This Row],[Size]],Table_PI[[#This Row],[Input 1]],Table_PI[[#This Row],[Input 2]],Table_PI[[#This Row],[Input 3]],Table_PI[[#This Row],[Input 4]],'Customer Information'!$AR$12,102,ROW())<>0,MeasureCalc(Table_PI[[#This Row],[Hide:\nFormula Name]],Table_SummaryPI[[#This Row],[Quantity]],Table_PI[[#This Row],[List 1]],Table_PI[[#This Row],[List 2]],Table_PI[[#This Row],[List 3]],Table_PI[[#This Row],[Size]],Table_PI[[#This Row],[Input 1]],Table_PI[[#This Row],[Input 2]],Table_PI[[#This Row],[Input 3]],Table_PI[[#This Row],[Input 4]],'Customer Information'!$AR$12,102,ROW())<>\"No Rebate\"),MeasureCalc(Table_PI[[#This Row],[Hide:\nFormula Name]],Table_SummaryPI[[#This Row],[Quantity]],Table_PI[[#This Row],[List 1]],Table_PI[[#This Row],[List 2]],Table_PI[[#This Row],[List 3]],Table_PI[[#This Row],[Size]],Table_PI[[#This Row],[Input 1]],Table_PI[[#This Row],[Input 2]],Table_PI[[#This Row],[Input 3]],Table_PI[[#This Row],[Input 4]],'Customer Information'!$AR$12,102,ROW()),\"\"),\"\")","v":""},{"$f":"IF(Table_PI[[#This Row],[Input 3]]<>\"\",Table_PI[[#This Row],[Input 3]],\"\")","v":""},null,{"$f":"IFERROR(IF(AND(MeasureCalc(Table_PI[[#This Row],[Hide:\nFormula Name]],Table_SummaryPI[[#This Row],[Quantity]],Table_PI[[#This Row],[List 1]],Table_PI[[#This Row],[List 2]],Table_PI[[#This Row],[List 3]],Table_PI[[#This Row],[Size]],Table_PI[[#This Row],[Input 1]],Table_PI[[#This Row],[Input 2]],Table_PI[[#This Row],[Input 3]],Table_PI[[#This Row],[Input 4]],'Customer Information'!$AR$12,103,ROW())<>0,MeasureCalc(Table_PI[[#This Row],[Hide:\nFormula Name]],Table_SummaryPI[[#This Row],[Quantity]],Table_PI[[#This Row],[List 1]],Table_PI[[#This Row],[List 2]],Table_PI[[#This Row],[List 3]],Table_PI[[#This Row],[Size]],Table_PI[[#This Row],[Input 1]],Table_PI[[#This Row],[Input 2]],Table_PI[[#This Row],[Input 3]],Table_PI[[#This Row],[Input 4]],'Customer Information'!$AR$12,103,ROW())<>\"No Rebate\"),MeasureCalc(Table_PI[[#This Row],[Hide:\nFormula Name]],Table_SummaryPI[[#This Row],[Quantity]],Table_PI[[#This Row],[List 1]],Table_PI[[#This Row],[List 2]],Table_PI[[#This Row],[List 3]],Table_PI[[#This Row],[Size]],Table_PI[[#This Row],[Input 1]],Table_PI[[#This Row],[Input 2]],Table_PI[[#This Row],[Input 3]],Table_PI[[#This Row],[Input 4]],'Customer Information'!$AR$12,103,ROW()),\"\"),\"\")","v":""},{"$f":"IF(Table_PI[[#This Row],[Input 4]]<>\"\",Table_PI[[#This Row],[Input 4]],\"\")","v":""},{"$f":"IF(Table_PI[[#This Row],[Quantity]]=\"\",\"\",Table_PI[[#This Row],[Quantity]])","v":""},{"$f":"IF(Table_PI[[#This Row],[Notes]]=\"\",\"\",Table_PI[[#This Row],[Notes]])","v":""},{"$f":"IF(OR(Table_PI[[#This Row],[Hide:\nBaseline kWh]]=\"\",Table_PI[[#This Row],[Hide:\nBaseline kWh]]=0),\"\",Table_PI[[#This Row],[Hide:\nBaseline kWh]])","v":""},{"$f":"IF(OR(Table_PI[[#This Row],[Hide:\nBaseline kW]]=\"\",Table_PI[[#This Row],[Hide:\nBaseline kW]]=0),\"\",Table_PI[[#This Row],[Hide:\nBaseline kW]])","v":""},{"$f":"IF(OR(Table_PI[[#This Row],[Hide:\nProposed kWh]]=\"\",Table_PI[[#This Row],[Hide:\nProposed kWh]]=0),\"\",Table_PI[[#This Row],[Hide:\nProposed kWh]])","v":""},{"$f":"IF(OR(Table_PI[[#This Row],[Hide:\nProposed kW]]=\"\",Table_PI[[#This Row],[Hide:\nProposed kW]]=0),\"\",Table_PI[[#This Row],[Hide:\nProposed kW]])","v":""},{"$f":"IF(OR(Table_PI[[#This Row],[Rebate]]=\"\",Table_PI[[#This Row],[Rebate]]=0),\"\",Table_PI[[#This Row],[Rebate]])","v":""},{"$f":"IF(OR(Table_PI[[#This Row],[Hide:\nIncremental Cost]]=\"\",Table_PI[[#This Row],[Hide:\nIncremental Cost]]=0),\"\",Table_PI[[#This Row],[Hide:\nIncremental Cost]])","v":""},{"$f":"IFERROR(IF(Table_SummaryPI[[#This Row],[kWhSavings]]=\"\",\"\",ROUND(Table_SummaryPI[[#This Row],[kWhSavings]]/$AG$401*'Customer Information'!$BC$17,2)),0)","v":""},{"$f":"IF(OR(Table_PI[[#This Row],[Annual kWh]]=\"\",Table_PI[[#This Row],[Annual kWh]]=0),\"\",Table_PI[[#This Row],[Annual kWh]])","v":""},{"$f":"IF(OR(Table_PI[[#This Row],[Peak kW]]=\"\",Table_PI[[#This Row],[Peak kW]]=0),\"\",Table_PI[[#This Row],[Peak kW]])","v":""},{"$f":"IFERROR(IF(Table_SummaryPI[[#This Row],[kWhSavings]]=\"\",\"\",$AU$9*Table_SummaryPI[[#This Row],[kWhSavings]]),0)","v":""},{"$f":"IFERROR(IF(Table_SummaryPI[[#This Row],[kWhSavings]]=\"\",\"\",$AU$14*Table_SummaryPI[[#This Row],[kWhSavings]]),0)","v":""},{"$f":"IFERROR(IF(Table_SummaryPI[[#This Row],[kWhSavings]]=\"\",\"\",$AU$18*Table_SummaryPI[[#This Row],[kWhSavings]]),0)","v":""},{"$f":"IFERROR(IF(Table_SummaryPI[[#This Row],[kWhSavings]]=\"\",\"\",$AU$22*Table_SummaryPI[[#This Row],[kWhSavings]]),0)","v":""},{"$f":"IFERROR(IF(MeasureCalc(Table_PI[[#This Row],[Hide:\nFormula Name]],Table_SummaryPI[[#This Row],[Quantity]],Table_PI[[#This Row],[List 1]],Table_PI[[#This Row],[List 2]],Table_PI[[#This Row],[List 3]],Table_PI[[#This Row],[Size]],Table_PI[[#This Row],[Input 1]],Table_PI[[#This Row],[Input 2]],Table_PI[[#This Row],[Input 3]],Table_PI[[#This Row],[Input 4]],'Customer Information'!$AR$12,200,ROW())<>\"No Rebate\",MeasureCalc(Table_PI[[#This Row],[Hide:\nFormula Name]],Table_SummaryPI[[#This Row],[Quantity]],Table_PI[[#This Row],[List 1]],Table_PI[[#This Row],[List 2]],Table_PI[[#This Row],[List 3]],Table_PI[[#This Row],[Size]],Table_PI[[#This Row],[Input 1]],Table_PI[[#This Row],[Input 2]],Table_PI[[#This Row],[Input 3]],Table_PI[[#This Row],[Input 4]],'Customer Information'!$AR$12,200,ROW()),\"\"),\"\")","v":""},{"$f":"IFERROR(IF(MeasureCalc(Table_PI[[#This Row],[Hide:\nFormula Name]],Table_SummaryPI[[#This Row],[Quantity]],Table_PI[[#This Row],[List 1]],Table_PI[[#This Row],[List 2]],Table_PI[[#This Row],[List 3]],Table_PI[[#This Row],[Size]],Table_PI[[#This Row],[Input 1]],Table_PI[[#This Row],[Input 2]],Table_PI[[#This Row],[Input 3]],Table_PI[[#This Row],[Input 4]],'Customer Information'!$AR$12,201,ROW())<>\"No Rebate\",MeasureCalc(Table_PI[[#This Row],[Hide:\nFormula Name]],Table_SummaryPI[[#This Row],[Quantity]],Table_PI[[#This Row],[List 1]],Table_PI[[#This Row],[List 2]],Table_PI[[#This Row],[List 3]],Table_PI[[#This Row],[Size]],Table_PI[[#This Row],[Input 1]],Table_PI[[#This Row],[Input 2]],Table_PI[[#This Row],[Input 3]],Table_PI[[#This Row],[Input 4]],'Customer Information'!$AR$12,201,ROW()),\"\"),\"\")","v":""}]
[{"$f":"Table_PI[[#This Row],[Line No.]]","v":""},{"$f":"IF(Table_SummaryPI[[#This Row],[MeassureCategory]]<>\"\",CONCATENATE(Table_SummaryPI[[#This Row],[MeassureCategory]],  \" - \", Table_SummaryPI[[#This Row],[ProposedMeasureCategory]],  \" - \", TEXT(Table_SummaryPI[[#This Row],[Size]],\"#,##0.00\"),\" \",Table_SummaryPI[[#This Row],[SizeUnit]]),\"\")","v":""},{"$f":"SUBSTITUTE(Table_PI[[#This Row],[Measure]],\"     \",\"\",1)","v":""},{"$f":"IF(Table_PI[[#This Row],[List 1]]<>\"\",Table_PI[[#This Row],[List 1]],\"\")","v":""},{"$f":"IF(Table_PI[[#This Row],[List 2]]<>\"\",Table_PI[[#This Row],[List 2]],\"\")","v":""},{"$f":"IF(Table_PI[[#This Row],[List 3]]<>\"\",Table_PI[[#This Row],[List 3]],\"\")","v":""},{"$f":"IF(Table_PI[[#This Row],[Manufacturer]]=\"\",\"\",Table_PI[[#This Row],[Manufacturer]])","v":""},{"$f":"IF(Table_PI[[#This Row],[Model Number]]=\"\",\"\",Table_PI[[#This Row],[Model Number]])","v":""},{"$f":"IF(Table_PI[[#This Row],[Serial Number(s)]]=\"\",\"\",Table_PI[[#This Row],[Serial Number(s)]])","v":""},null,{"$f":"IF(Table_PI[[#This Row],[Size]]=\"\",\"\",Table_PI[[#This Row],[Size]])","v":""},null,{"$f":"IFERROR(IF(AND(MeasureCalc(Table_PI[[#This Row],[Hide:\nFormula Name]],Table_SummaryPI[[#This Row],[Quantity]],Table_PI[[#This Row],[List 1]],Table_PI[[#This Row],[List 2]],Table_PI[[#This Row],[List 3]],Table_PI[[#This Row],[Size]],Table_PI[[#This Row],[Input 1]],Table_PI[[#This Row],[Input 2]],Table_PI[[#This Row],[Input 3]],Table_PI[[#This Row],[Input 4]],'Customer Information'!$AR$12,100,ROW())<>0,MeasureCalc(Table_PI[[#This Row],[Hide:\nFormula Name]],Table_SummaryPI[[#This Row],[Quantity]],Table_PI[[#This Row],[List 1]],Table_PI[[#This Row],[List 2]],Table_PI[[#This Row],[List 3]],Table_PI[[#This Row],[Size]],Table_PI[[#This Row],[Input 1]],Table_PI[[#This Row],[Input 2]],Table_PI[[#This Row],[Input 3]],Table_PI[[#This Row],[Input 4]],'Customer Information'!$AR$12,100,ROW())<>\"No Rebate\"),MeasureCalc(Table_PI[[#This Row],[Hide:\nFormula Name]],Table_SummaryPI[[#This Row],[Quantity]],Table_PI[[#This Row],[List 1]],Table_PI[[#This Row],[List 2]],Table_PI[[#This Row],[List 3]],Table_PI[[#This Row],[Size]],Table_PI[[#This Row],[Input 1]],Table_PI[[#This Row],[Input 2]],Table_PI[[#This Row],[Input 3]],Table_PI[[#This Row],[Input 4]],'Customer Information'!$AR$12,100,ROW()),\"\"),\"\")","v":""},{"$f":"IF(Table_PI[[#This Row],[Input 1]]<>\"\",Table_PI[[#This Row],[Input 1]],\"\")","v":""},null,{"$f":"IFERROR(IF(AND(MeasureCalc(Table_PI[[#This Row],[Hide:\nFormula Name]],Table_SummaryPI[[#This Row],[Quantity]],Table_PI[[#This Row],[List 1]],Table_PI[[#This Row],[List 2]],Table_PI[[#This Row],[List 3]],Table_PI[[#This Row],[Size]],Table_PI[[#This Row],[Input 1]],Table_PI[[#This Row],[Input 2]],Table_PI[[#This Row],[Input 3]],Table_PI[[#This Row],[Input 4]],'Customer Information'!$AR$12,101,ROW())<>0,MeasureCalc(Table_PI[[#This Row],[Hide:\nFormula Name]],Table_SummaryPI[[#This Row],[Quantity]],Table_PI[[#This Row],[List 1]],Table_PI[[#This Row],[List 2]],Table_PI[[#This Row],[List 3]],Table_PI[[#This Row],[Size]],Table_PI[[#This Row],[Input 1]],Table_PI[[#This Row],[Input 2]],Table_PI[[#This Row],[Input 3]],Table_PI[[#This Row],[Input 4]],'Customer Information'!$AR$12,101,ROW())<>\"No Rebate\"),MeasureCalc(Table_PI[[#This Row],[Hide:\nFormula Name]],Table_SummaryPI[[#This Row],[Quantity]],Table_PI[[#This Row],[List 1]],Table_PI[[#This Row],[List 2]],Table_PI[[#This Row],[List 3]],Table_PI[[#This Row],[Size]],Table_PI[[#This Row],[Input 1]],Table_PI[[#This Row],[Input 2]],Table_PI[[#This Row],[Input 3]],Table_PI[[#This Row],[Input 4]],'Customer Information'!$AR$12,101,ROW()),\"\"),\"\")","v":""},{"$f":"IF(Table_PI[[#This Row],[Input 2]]<>\"\",Table_PI[[#This Row],[Input 2]],\"\")","v":""},null,{"$f":"IFERROR(IF(AND(MeasureCalc(Table_PI[[#This Row],[Hide:\nFormula Name]],Table_SummaryPI[[#This Row],[Quantity]],Table_PI[[#This Row],[List 1]],Table_PI[[#This Row],[List 2]],Table_PI[[#This Row],[List 3]],Table_PI[[#This Row],[Size]],Table_PI[[#This Row],[Input 1]],Table_PI[[#This Row],[Input 2]],Table_PI[[#This Row],[Input 3]],Table_PI[[#This Row],[Input 4]],'Customer Information'!$AR$12,102,ROW())<>0,MeasureCalc(Table_PI[[#This Row],[Hide:\nFormula Name]],Table_SummaryPI[[#This Row],[Quantity]],Table_PI[[#This Row],[List 1]],Table_PI[[#This Row],[List 2]],Table_PI[[#This Row],[List 3]],Table_PI[[#This Row],[Size]],Table_PI[[#This Row],[Input 1]],Table_PI[[#This Row],[Input 2]],Table_PI[[#This Row],[Input 3]],Table_PI[[#This Row],[Input 4]],'Customer Information'!$AR$12,102,ROW())<>\"No Rebate\"),MeasureCalc(Table_PI[[#This Row],[Hide:\nFormula Name]],Table_SummaryPI[[#This Row],[Quantity]],Table_PI[[#This Row],[List 1]],Table_PI[[#This Row],[List 2]],Table_PI[[#This Row],[List 3]],Table_PI[[#This Row],[Size]],Table_PI[[#This Row],[Input 1]],Table_PI[[#This Row],[Input 2]],Table_PI[[#This Row],[Input 3]],Table_PI[[#This Row],[Input 4]],'Customer Information'!$AR$12,102,ROW()),\"\"),\"\")","v":""},{"$f":"IF(Table_PI[[#This Row],[Input 3]]<>\"\",Table_PI[[#This Row],[Input 3]],\"\")","v":""},null,{"$f":"IFERROR(IF(AND(MeasureCalc(Table_PI[[#This Row],[Hide:\nFormula Name]],Table_SummaryPI[[#This Row],[Quantity]],Table_PI[[#This Row],[List 1]],Table_PI[[#This Row],[List 2]],Table_PI[[#This Row],[List 3]],Table_PI[[#This Row],[Size]],Table_PI[[#This Row],[Input 1]],Table_PI[[#This Row],[Input 2]],Table_PI[[#This Row],[Input 3]],Table_PI[[#This Row],[Input 4]],'Customer Information'!$AR$12,103,ROW())<>0,MeasureCalc(Table_PI[[#This Row],[Hide:\nFormula Name]],Table_SummaryPI[[#This Row],[Quantity]],Table_PI[[#This Row],[List 1]],Table_PI[[#This Row],[List 2]],Table_PI[[#This Row],[List 3]],Table_PI[[#This Row],[Size]],Table_PI[[#This Row],[Input 1]],Table_PI[[#This Row],[Input 2]],Table_PI[[#This Row],[Input 3]],Table_PI[[#This Row],[Input 4]],'Customer Information'!$AR$12,103,ROW())<>\"No Rebate\"),MeasureCalc(Table_PI[[#This Row],[Hide:\nFormula Name]],Table_SummaryPI[[#This Row],[Quantity]],Table_PI[[#This Row],[List 1]],Table_PI[[#This Row],[List 2]],Table_PI[[#This Row],[List 3]],Table_PI[[#This Row],[Size]],Table_PI[[#This Row],[Input 1]],Table_PI[[#This Row],[Input 2]],Table_PI[[#This Row],[Input 3]],Table_PI[[#This Row],[Input 4]],'Customer Information'!$AR$12,103,ROW()),\"\"),\"\")","v":""},{"$f":"IF(Table_PI[[#This Row],[Input 4]]<>\"\",Table_PI[[#This Row],[Input 4]],\"\")","v":""},{"$f":"IF(Table_PI[[#This Row],[Quantity]]=\"\",\"\",Table_PI[[#This Row],[Quantity]])","v":""},{"$f":"IF(Table_PI[[#This Row],[Notes]]=\"\",\"\",Table_PI[[#This Row],[Notes]])","v":""},{"$f":"IF(OR(Table_PI[[#This Row],[Hide:\nBaseline kWh]]=\"\",Table_PI[[#This Row],[Hide:\nBaseline kWh]]=0),\"\",Table_PI[[#This Row],[Hide:\nBaseline kWh]])","v":""},{"$f":"IF(OR(Table_PI[[#This Row],[Hide:\nBaseline kW]]=\"\",Table_PI[[#This Row],[Hide:\nBaseline kW]]=0),\"\",Table_PI[[#This Row],[Hide:\nBaseline kW]])","v":""},{"$f":"IF(OR(Table_PI[[#This Row],[Hide:\nProposed kWh]]=\"\",Table_PI[[#This Row],[Hide:\nProposed kWh]]=0),\"\",Table_PI[[#This Row],[Hide:\nProposed kWh]])","v":""},{"$f":"IF(OR(Table_PI[[#This Row],[Hide:\nProposed kW]]=\"\",Table_PI[[#This Row],[Hide:\nProposed kW]]=0),\"\",Table_PI[[#This Row],[Hide:\nProposed kW]])","v":""},{"$f":"IF(OR(Table_PI[[#This Row],[Rebate]]=\"\",Table_PI[[#This Row],[Rebate]]=0),\"\",Table_PI[[#This Row],[Rebate]])","v":""},{"$f":"IF(OR(Table_PI[[#This Row],[Hide:\nIncremental Cost]]=\"\",Table_PI[[#This Row],[Hide:\nIncremental Cost]]=0),\"\",Table_PI[[#This Row],[Hide:\nIncremental Cost]])","v":""},{"$f":"IFERROR(IF(Table_SummaryPI[[#This Row],[kWhSavings]]=\"\",\"\",ROUND(Table_SummaryPI[[#This Row],[kWhSavings]]/$AG$401*'Customer Information'!$BC$17,2)),0)","v":""},{"$f":"IF(OR(Table_PI[[#This Row],[Annual kWh]]=\"\",Table_PI[[#This Row],[Annual kWh]]=0),\"\",Table_PI[[#This Row],[Annual kWh]])","v":""},{"$f":"IF(OR(Table_PI[[#This Row],[Peak kW]]=\"\",Table_PI[[#This Row],[Peak kW]]=0),\"\",Table_PI[[#This Row],[Peak kW]])","v":""},{"$f":"IFERROR(IF(Table_SummaryPI[[#This Row],[kWhSavings]]=\"\",\"\",$AU$9*Table_SummaryPI[[#This Row],[kWhSavings]]),0)","v":""},{"$f":"IFERROR(IF(Table_SummaryPI[[#This Row],[kWhSavings]]=\"\",\"\",$AU$14*Table_SummaryPI[[#This Row],[kWhSavings]]),0)","v":""},{"$f":"IFERROR(IF(Table_SummaryPI[[#This Row],[kWhSavings]]=\"\",\"\",$AU$18*Table_SummaryPI[[#This Row],[kWhSavings]]),0)","v":""},{"$f":"IFERROR(IF(Table_SummaryPI[[#This Row],[kWhSavings]]=\"\",\"\",$AU$22*Table_SummaryPI[[#This Row],[kWhSavings]]),0)","v":""},{"$f":"IFERROR(IF(MeasureCalc(Table_PI[[#This Row],[Hide:\nFormula Name]],Table_SummaryPI[[#This Row],[Quantity]],Table_PI[[#This Row],[List 1]],Table_PI[[#This Row],[List 2]],Table_PI[[#This Row],[List 3]],Table_PI[[#This Row],[Size]],Table_PI[[#This Row],[Input 1]],Table_PI[[#This Row],[Input 2]],Table_PI[[#This Row],[Input 3]],Table_PI[[#This Row],[Input 4]],'Customer Information'!$AR$12,200,ROW())<>\"No Rebate\",MeasureCalc(Table_PI[[#This Row],[Hide:\nFormula Name]],Table_SummaryPI[[#This Row],[Quantity]],Table_PI[[#This Row],[List 1]],Table_PI[[#This Row],[List 2]],Table_PI[[#This Row],[List 3]],Table_PI[[#This Row],[Size]],Table_PI[[#This Row],[Input 1]],Table_PI[[#This Row],[Input 2]],Table_PI[[#This Row],[Input 3]],Table_PI[[#This Row],[Input 4]],'Customer Information'!$AR$12,200,ROW()),\"\"),\"\")","v":""},{"$f":"IFERROR(IF(MeasureCalc(Table_PI[[#This Row],[Hide:\nFormula Name]],Table_SummaryPI[[#This Row],[Quantity]],Table_PI[[#This Row],[List 1]],Table_PI[[#This Row],[List 2]],Table_PI[[#This Row],[List 3]],Table_PI[[#This Row],[Size]],Table_PI[[#This Row],[Input 1]],Table_PI[[#This Row],[Input 2]],Table_PI[[#This Row],[Input 3]],Table_PI[[#This Row],[Input 4]],'Customer Information'!$AR$12,201,ROW())<>\"No Rebate\",MeasureCalc(Table_PI[[#This Row],[Hide:\nFormula Name]],Table_SummaryPI[[#This Row],[Quantity]],Table_PI[[#This Row],[List 1]],Table_PI[[#This Row],[List 2]],Table_PI[[#This Row],[List 3]],Table_PI[[#This Row],[Size]],Table_PI[[#This Row],[Input 1]],Table_PI[[#This Row],[Input 2]],Table_PI[[#This Row],[Input 3]],Table_PI[[#This Row],[Input 4]],'Customer Information'!$AR$12,201,ROW()),\"\"),\"\")","v":""}]
[{"$f":"Table_PI[[#This Row],[Line No.]]","v":""},{"$f":"IF(Table_SummaryPI[[#This Row],[MeassureCategory]]<>\"\",CONCATENATE(Table_SummaryPI[[#This Row],[MeassureCategory]],  \" - \", Table_SummaryPI[[#This Row],[ProposedMeasureCategory]],  \" - \", TEXT(Table_SummaryPI[[#This Row],[Size]],\"#,##0.00\"),\" \",Table_SummaryPI[[#This Row],[SizeUnit]]),\"\")","v":""},{"$f":"SUBSTITUTE(Table_PI[[#This Row],[Measure]],\"     \",\"\",1)","v":""},{"$f":"IF(Table_PI[[#This Row],[List 1]]<>\"\",Table_PI[[#This Row],[List 1]],\"\")","v":""},{"$f":"IF(Table_PI[[#This Row],[List 2]]<>\"\",Table_PI[[#This Row],[List 2]],\"\")","v":""},{"$f":"IF(Table_PI[[#This Row],[List 3]]<>\"\",Table_PI[[#This Row],[List 3]],\"\")","v":""},{"$f":"IF(Table_PI[[#This Row],[Manufacturer]]=\"\",\"\",Table_PI[[#This Row],[Manufacturer]])","v":""},{"$f":"IF(Table_PI[[#This Row],[Model Number]]=\"\",\"\",Table_PI[[#This Row],[Model Number]])","v":""},{"$f":"IF(Table_PI[[#This Row],[Serial Number(s)]]=\"\",\"\",Table_PI[[#This Row],[Serial Number(s)]])","v":""},null,{"$f":"IF(Table_PI[[#This Row],[Size]]=\"\",\"\",Table_PI[[#This Row],[Size]])","v":""},null,{"$f":"IFERROR(IF(AND(MeasureCalc(Table_PI[[#This Row],[Hide:\nFormula Name]],Table_SummaryPI[[#This Row],[Quantity]],Table_PI[[#This Row],[List 1]],Table_PI[[#This Row],[List 2]],Table_PI[[#This Row],[List 3]],Table_PI[[#This Row],[Size]],Table_PI[[#This Row],[Input 1]],Table_PI[[#This Row],[Input 2]],Table_PI[[#This Row],[Input 3]],Table_PI[[#This Row],[Input 4]],'Customer Information'!$AR$12,100,ROW())<>0,MeasureCalc(Table_PI[[#This Row],[Hide:\nFormula Name]],Table_SummaryPI[[#This Row],[Quantity]],Table_PI[[#This Row],[List 1]],Table_PI[[#This Row],[List 2]],Table_PI[[#This Row],[List 3]],Table_PI[[#This Row],[Size]],Table_PI[[#This Row],[Input 1]],Table_PI[[#This Row],[Input 2]],Table_PI[[#This Row],[Input 3]],Table_PI[[#This Row],[Input 4]],'Customer Information'!$AR$12,100,ROW())<>\"No Rebate\"),MeasureCalc(Table_PI[[#This Row],[Hide:\nFormula Name]],Table_SummaryPI[[#This Row],[Quantity]],Table_PI[[#This Row],[List 1]],Table_PI[[#This Row],[List 2]],Table_PI[[#This Row],[List 3]],Table_PI[[#This Row],[Size]],Table_PI[[#This Row],[Input 1]],Table_PI[[#This Row],[Input 2]],Table_PI[[#This Row],[Input 3]],Table_PI[[#This Row],[Input 4]],'Customer Information'!$AR$12,100,ROW()),\"\"),\"\")","v":""},{"$f":"IF(Table_PI[[#This Row],[Input 1]]<>\"\",Table_PI[[#This Row],[Input 1]],\"\")","v":""},null,{"$f":"IFERROR(IF(AND(MeasureCalc(Table_PI[[#This Row],[Hide:\nFormula Name]],Table_SummaryPI[[#This Row],[Quantity]],Table_PI[[#This Row],[List 1]],Table_PI[[#This Row],[List 2]],Table_PI[[#This Row],[List 3]],Table_PI[[#This Row],[Size]],Table_PI[[#This Row],[Input 1]],Table_PI[[#This Row],[Input 2]],Table_PI[[#This Row],[Input 3]],Table_PI[[#This Row],[Input 4]],'Customer Information'!$AR$12,101,ROW())<>0,MeasureCalc(Table_PI[[#This Row],[Hide:\nFormula Name]],Table_SummaryPI[[#This Row],[Quantity]],Table_PI[[#This Row],[List 1]],Table_PI[[#This Row],[List 2]],Table_PI[[#This Row],[List 3]],Table_PI[[#This Row],[Size]],Table_PI[[#This Row],[Input 1]],Table_PI[[#This Row],[Input 2]],Table_PI[[#This Row],[Input 3]],Table_PI[[#This Row],[Input 4]],'Customer Information'!$AR$12,101,ROW())<>\"No Rebate\"),MeasureCalc(Table_PI[[#This Row],[Hide:\nFormula Name]],Table_SummaryPI[[#This Row],[Quantity]],Table_PI[[#This Row],[List 1]],Table_PI[[#This Row],[List 2]],Table_PI[[#This Row],[List 3]],Table_PI[[#This Row],[Size]],Table_PI[[#This Row],[Input 1]],Table_PI[[#This Row],[Input 2]],Table_PI[[#This Row],[Input 3]],Table_PI[[#This Row],[Input 4]],'Customer Information'!$AR$12,101,ROW()),\"\"),\"\")","v":""},{"$f":"IF(Table_PI[[#This Row],[Input 2]]<>\"\",Table_PI[[#This Row],[Input 2]],\"\")","v":""},null,{"$f":"IFERROR(IF(AND(MeasureCalc(Table_PI[[#This Row],[Hide:\nFormula Name]],Table_SummaryPI[[#This Row],[Quantity]],Table_PI[[#This Row],[List 1]],Table_PI[[#This Row],[List 2]],Table_PI[[#This Row],[List 3]],Table_PI[[#This Row],[Size]],Table_PI[[#This Row],[Input 1]],Table_PI[[#This Row],[Input 2]],Table_PI[[#This Row],[Input 3]],Table_PI[[#This Row],[Input 4]],'Customer Information'!$AR$12,102,ROW())<>0,MeasureCalc(Table_PI[[#This Row],[Hide:\nFormula Name]],Table_SummaryPI[[#This Row],[Quantity]],Table_PI[[#This Row],[List 1]],Table_PI[[#This Row],[List 2]],Table_PI[[#This Row],[List 3]],Table_PI[[#This Row],[Size]],Table_PI[[#This Row],[Input 1]],Table_PI[[#This Row],[Input 2]],Table_PI[[#This Row],[Input 3]],Table_PI[[#This Row],[Input 4]],'Customer Information'!$AR$12,102,ROW())<>\"No Rebate\"),MeasureCalc(Table_PI[[#This Row],[Hide:\nFormula Name]],Table_SummaryPI[[#This Row],[Quantity]],Table_PI[[#This Row],[List 1]],Table_PI[[#This Row],[List 2]],Table_PI[[#This Row],[List 3]],Table_PI[[#This Row],[Size]],Table_PI[[#This Row],[Input 1]],Table_PI[[#This Row],[Input 2]],Table_PI[[#This Row],[Input 3]],Table_PI[[#This Row],[Input 4]],'Customer Information'!$AR$12,102,ROW()),\"\"),\"\")","v":""},{"$f":"IF(Table_PI[[#This Row],[Input 3]]<>\"\",Table_PI[[#This Row],[Input 3]],\"\")","v":""},null,{"$f":"IFERROR(IF(AND(MeasureCalc(Table_PI[[#This Row],[Hide:\nFormula Name]],Table_SummaryPI[[#This Row],[Quantity]],Table_PI[[#This Row],[List 1]],Table_PI[[#This Row],[List 2]],Table_PI[[#This Row],[List 3]],Table_PI[[#This Row],[Size]],Table_PI[[#This Row],[Input 1]],Table_PI[[#This Row],[Input 2]],Table_PI[[#This Row],[Input 3]],Table_PI[[#This Row],[Input 4]],'Customer Information'!$AR$12,103,ROW())<>0,MeasureCalc(Table_PI[[#This Row],[Hide:\nFormula Name]],Table_SummaryPI[[#This Row],[Quantity]],Table_PI[[#This Row],[List 1]],Table_PI[[#This Row],[List 2]],Table_PI[[#This Row],[List 3]],Table_PI[[#This Row],[Size]],Table_PI[[#This Row],[Input 1]],Table_PI[[#This Row],[Input 2]],Table_PI[[#This Row],[Input 3]],Table_PI[[#This Row],[Input 4]],'Customer Information'!$AR$12,103,ROW())<>\"No Rebate\"),MeasureCalc(Table_PI[[#This Row],[Hide:\nFormula Name]],Table_SummaryPI[[#This Row],[Quantity]],Table_PI[[#This Row],[List 1]],Table_PI[[#This Row],[List 2]],Table_PI[[#This Row],[List 3]],Table_PI[[#This Row],[Size]],Table_PI[[#This Row],[Input 1]],Table_PI[[#This Row],[Input 2]],Table_PI[[#This Row],[Input 3]],Table_PI[[#This Row],[Input 4]],'Customer Information'!$AR$12,103,ROW()),\"\"),\"\")","v":""},{"$f":"IF(Table_PI[[#This Row],[Input 4]]<>\"\",Table_PI[[#This Row],[Input 4]],\"\")","v":""},{"$f":"IF(Table_PI[[#This Row],[Quantity]]=\"\",\"\",Table_PI[[#This Row],[Quantity]])","v":""},{"$f":"IF(Table_PI[[#This Row],[Notes]]=\"\",\"\",Table_PI[[#This Row],[Notes]])","v":""},{"$f":"IF(OR(Table_PI[[#This Row],[Hide:\nBaseline kWh]]=\"\",Table_PI[[#This Row],[Hide:\nBaseline kWh]]=0),\"\",Table_PI[[#This Row],[Hide:\nBaseline kWh]])","v":""},{"$f":"IF(OR(Table_PI[[#This Row],[Hide:\nBaseline kW]]=\"\",Table_PI[[#This Row],[Hide:\nBaseline kW]]=0),\"\",Table_PI[[#This Row],[Hide:\nBaseline kW]])","v":""},{"$f":"IF(OR(Table_PI[[#This Row],[Hide:\nProposed kWh]]=\"\",Table_PI[[#This Row],[Hide:\nProposed kWh]]=0),\"\",Table_PI[[#This Row],[Hide:\nProposed kWh]])","v":""},{"$f":"IF(OR(Table_PI[[#This Row],[Hide:\nProposed kW]]=\"\",Table_PI[[#This Row],[Hide:\nProposed kW]]=0),\"\",Table_PI[[#This Row],[Hide:\nProposed kW]])","v":""},{"$f":"IF(OR(Table_PI[[#This Row],[Rebate]]=\"\",Table_PI[[#This Row],[Rebate]]=0),\"\",Table_PI[[#This Row],[Rebate]])","v":""},{"$f":"IF(OR(Table_PI[[#This Row],[Hide:\nIncremental Cost]]=\"\",Table_PI[[#This Row],[Hide:\nIncremental Cost]]=0),\"\",Table_PI[[#This Row],[Hide:\nIncremental Cost]])","v":""},{"$f":"IFERROR(IF(Table_SummaryPI[[#This Row],[kWhSavings]]=\"\",\"\",ROUND(Table_SummaryPI[[#This Row],[kWhSavings]]/$AG$401*'Customer Information'!$BC$17,2)),0)","v":""},{"$f":"IF(OR(Table_PI[[#This Row],[Annual kWh]]=\"\",Table_PI[[#This Row],[Annual kWh]]=0),\"\",Table_PI[[#This Row],[Annual kWh]])","v":""},{"$f":"IF(OR(Table_PI[[#This Row],[Peak kW]]=\"\",Table_PI[[#This Row],[Peak kW]]=0),\"\",Table_PI[[#This Row],[Peak kW]])","v":""},{"$f":"IFERROR(IF(Table_SummaryPI[[#This Row],[kWhSavings]]=\"\",\"\",$AU$9*Table_SummaryPI[[#This Row],[kWhSavings]]),0)","v":""},{"$f":"IFERROR(IF(Table_SummaryPI[[#This Row],[kWhSavings]]=\"\",\"\",$AU$14*Table_SummaryPI[[#This Row],[kWhSavings]]),0)","v":""},{"$f":"IFERROR(IF(Table_SummaryPI[[#This Row],[kWhSavings]]=\"\",\"\",$AU$18*Table_SummaryPI[[#This Row],[kWhSavings]]),0)","v":""},{"$f":"IFERROR(IF(Table_SummaryPI[[#This Row],[kWhSavings]]=\"\",\"\",$AU$22*Table_SummaryPI[[#This Row],[kWhSavings]]),0)","v":""},{"$f":"IFERROR(IF(MeasureCalc(Table_PI[[#This Row],[Hide:\nFormula Name]],Table_SummaryPI[[#This Row],[Quantity]],Table_PI[[#This Row],[List 1]],Table_PI[[#This Row],[List 2]],Table_PI[[#This Row],[List 3]],Table_PI[[#This Row],[Size]],Table_PI[[#This Row],[Input 1]],Table_PI[[#This Row],[Input 2]],Table_PI[[#This Row],[Input 3]],Table_PI[[#This Row],[Input 4]],'Customer Information'!$AR$12,200,ROW())<>\"No Rebate\",MeasureCalc(Table_PI[[#This Row],[Hide:\nFormula Name]],Table_SummaryPI[[#This Row],[Quantity]],Table_PI[[#This Row],[List 1]],Table_PI[[#This Row],[List 2]],Table_PI[[#This Row],[List 3]],Table_PI[[#This Row],[Size]],Table_PI[[#This Row],[Input 1]],Table_PI[[#This Row],[Input 2]],Table_PI[[#This Row],[Input 3]],Table_PI[[#This Row],[Input 4]],'Customer Information'!$AR$12,200,ROW()),\"\"),\"\")","v":""},{"$f":"IFERROR(IF(MeasureCalc(Table_PI[[#This Row],[Hide:\nFormula Name]],Table_SummaryPI[[#This Row],[Quantity]],Table_PI[[#This Row],[List 1]],Table_PI[[#This Row],[List 2]],Table_PI[[#This Row],[List 3]],Table_PI[[#This Row],[Size]],Table_PI[[#This Row],[Input 1]],Table_PI[[#This Row],[Input 2]],Table_PI[[#This Row],[Input 3]],Table_PI[[#This Row],[Input 4]],'Customer Information'!$AR$12,201,ROW())<>\"No Rebate\",MeasureCalc(Table_PI[[#This Row],[Hide:\nFormula Name]],Table_SummaryPI[[#This Row],[Quantity]],Table_PI[[#This Row],[List 1]],Table_PI[[#This Row],[List 2]],Table_PI[[#This Row],[List 3]],Table_PI[[#This Row],[Size]],Table_PI[[#This Row],[Input 1]],Table_PI[[#This Row],[Input 2]],Table_PI[[#This Row],[Input 3]],Table_PI[[#This Row],[Input 4]],'Customer Information'!$AR$12,201,ROW()),\"\"),\"\")","v":""}]
[{"$f":"Table_PI[[#This Row],[Line No.]]","v":""},{"$f":"IF(Table_SummaryPI[[#This Row],[MeassureCategory]]<>\"\",CONCATENATE(Table_SummaryPI[[#This Row],[MeassureCategory]],  \" - \", Table_SummaryPI[[#This Row],[ProposedMeasureCategory]],  \" - \", TEXT(Table_SummaryPI[[#This Row],[Size]],\"#,##0.00\"),\" \",Table_SummaryPI[[#This Row],[SizeUnit]]),\"\")","v":""},{"$f":"SUBSTITUTE(Table_PI[[#This Row],[Measure]],\"     \",\"\",1)","v":""},{"$f":"IF(Table_PI[[#This Row],[List 1]]<>\"\",Table_PI[[#This Row],[List 1]],\"\")","v":""},{"$f":"IF(Table_PI[[#This Row],[List 2]]<>\"\",Table_PI[[#This Row],[List 2]],\"\")","v":""},{"$f":"IF(Table_PI[[#This Row],[List 3]]<>\"\",Table_PI[[#This Row],[List 3]],\"\")","v":""},{"$f":"IF(Table_PI[[#This Row],[Manufacturer]]=\"\",\"\",Table_PI[[#This Row],[Manufacturer]])","v":""},{"$f":"IF(Table_PI[[#This Row],[Model Number]]=\"\",\"\",Table_PI[[#This Row],[Model Number]])","v":""},{"$f":"IF(Table_PI[[#This Row],[Serial Number(s)]]=\"\",\"\",Table_PI[[#This Row],[Serial Number(s)]])","v":""},null,{"$f":"IF(Table_PI[[#This Row],[Size]]=\"\",\"\",Table_PI[[#This Row],[Size]])","v":""},null,{"$f":"IFERROR(IF(AND(MeasureCalc(Table_PI[[#This Row],[Hide:\nFormula Name]],Table_SummaryPI[[#This Row],[Quantity]],Table_PI[[#This Row],[List 1]],Table_PI[[#This Row],[List 2]],Table_PI[[#This Row],[List 3]],Table_PI[[#This Row],[Size]],Table_PI[[#This Row],[Input 1]],Table_PI[[#This Row],[Input 2]],Table_PI[[#This Row],[Input 3]],Table_PI[[#This Row],[Input 4]],'Customer Information'!$AR$12,100,ROW())<>0,MeasureCalc(Table_PI[[#This Row],[Hide:\nFormula Name]],Table_SummaryPI[[#This Row],[Quantity]],Table_PI[[#This Row],[List 1]],Table_PI[[#This Row],[List 2]],Table_PI[[#This Row],[List 3]],Table_PI[[#This Row],[Size]],Table_PI[[#This Row],[Input 1]],Table_PI[[#This Row],[Input 2]],Table_PI[[#This Row],[Input 3]],Table_PI[[#This Row],[Input 4]],'Customer Information'!$AR$12,100,ROW())<>\"No Rebate\"),MeasureCalc(Table_PI[[#This Row],[Hide:\nFormula Name]],Table_SummaryPI[[#This Row],[Quantity]],Table_PI[[#This Row],[List 1]],Table_PI[[#This Row],[List 2]],Table_PI[[#This Row],[List 3]],Table_PI[[#This Row],[Size]],Table_PI[[#This Row],[Input 1]],Table_PI[[#This Row],[Input 2]],Table_PI[[#This Row],[Input 3]],Table_PI[[#This Row],[Input 4]],'Customer Information'!$AR$12,100,ROW()),\"\"),\"\")","v":""},{"$f":"IF(Table_PI[[#This Row],[Input 1]]<>\"\",Table_PI[[#This Row],[Input 1]],\"\")","v":""},null,{"$f":"IFERROR(IF(AND(MeasureCalc(Table_PI[[#This Row],[Hide:\nFormula Name]],Table_SummaryPI[[#This Row],[Quantity]],Table_PI[[#This Row],[List 1]],Table_PI[[#This Row],[List 2]],Table_PI[[#This Row],[List 3]],Table_PI[[#This Row],[Size]],Table_PI[[#This Row],[Input 1]],Table_PI[[#This Row],[Input 2]],Table_PI[[#This Row],[Input 3]],Table_PI[[#This Row],[Input 4]],'Customer Information'!$AR$12,101,ROW())<>0,MeasureCalc(Table_PI[[#This Row],[Hide:\nFormula Name]],Table_SummaryPI[[#This Row],[Quantity]],Table_PI[[#This Row],[List 1]],Table_PI[[#This Row],[List 2]],Table_PI[[#This Row],[List 3]],Table_PI[[#This Row],[Size]],Table_PI[[#This Row],[Input 1]],Table_PI[[#This Row],[Input 2]],Table_PI[[#This Row],[Input 3]],Table_PI[[#This Row],[Input 4]],'Customer Information'!$AR$12,101,ROW())<>\"No Rebate\"),MeasureCalc(Table_PI[[#This Row],[Hide:\nFormula Name]],Table_SummaryPI[[#This Row],[Quantity]],Table_PI[[#This Row],[List 1]],Table_PI[[#This Row],[List 2]],Table_PI[[#This Row],[List 3]],Table_PI[[#This Row],[Size]],Table_PI[[#This Row],[Input 1]],Table_PI[[#This Row],[Input 2]],Table_PI[[#This Row],[Input 3]],Table_PI[[#This Row],[Input 4]],'Customer Information'!$AR$12,101,ROW()),\"\"),\"\")","v":""},{"$f":"IF(Table_PI[[#This Row],[Input 2]]<>\"\",Table_PI[[#This Row],[Input 2]],\"\")","v":""},null,{"$f":"IFERROR(IF(AND(MeasureCalc(Table_PI[[#This Row],[Hide:\nFormula Name]],Table_SummaryPI[[#This Row],[Quantity]],Table_PI[[#This Row],[List 1]],Table_PI[[#This Row],[List 2]],Table_PI[[#This Row],[List 3]],Table_PI[[#This Row],[Size]],Table_PI[[#This Row],[Input 1]],Table_PI[[#This Row],[Input 2]],Table_PI[[#This Row],[Input 3]],Table_PI[[#This Row],[Input 4]],'Customer Information'!$AR$12,102,ROW())<>0,MeasureCalc(Table_PI[[#This Row],[Hide:\nFormula Name]],Table_SummaryPI[[#This Row],[Quantity]],Table_PI[[#This Row],[List 1]],Table_PI[[#This Row],[List 2]],Table_PI[[#This Row],[List 3]],Table_PI[[#This Row],[Size]],Table_PI[[#This Row],[Input 1]],Table_PI[[#This Row],[Input 2]],Table_PI[[#This Row],[Input 3]],Table_PI[[#This Row],[Input 4]],'Customer Information'!$AR$12,102,ROW())<>\"No Rebate\"),MeasureCalc(Table_PI[[#This Row],[Hide:\nFormula Name]],Table_SummaryPI[[#This Row],[Quantity]],Table_PI[[#This Row],[List 1]],Table_PI[[#This Row],[List 2]],Table_PI[[#This Row],[List 3]],Table_PI[[#This Row],[Size]],Table_PI[[#This Row],[Input 1]],Table_PI[[#This Row],[Input 2]],Table_PI[[#This Row],[Input 3]],Table_PI[[#This Row],[Input 4]],'Customer Information'!$AR$12,102,ROW()),\"\"),\"\")","v":""},{"$f":"IF(Table_PI[[#This Row],[Input 3]]<>\"\",Table_PI[[#This Row],[Input 3]],\"\")","v":""},null,{"$f":"IFERROR(IF(AND(MeasureCalc(Table_PI[[#This Row],[Hide:\nFormula Name]],Table_SummaryPI[[#This Row],[Quantity]],Table_PI[[#This Row],[List 1]],Table_PI[[#This Row],[List 2]],Table_PI[[#This Row],[List 3]],Table_PI[[#This Row],[Size]],Table_PI[[#This Row],[Input 1]],Table_PI[[#This Row],[Input 2]],Table_PI[[#This Row],[Input 3]],Table_PI[[#This Row],[Input 4]],'Customer Information'!$AR$12,103,ROW())<>0,MeasureCalc(Table_PI[[#This Row],[Hide:\nFormula Name]],Table_SummaryPI[[#This Row],[Quantity]],Table_PI[[#This Row],[List 1]],Table_PI[[#This Row],[List 2]],Table_PI[[#This Row],[List 3]],Table_PI[[#This Row],[Size]],Table_PI[[#This Row],[Input 1]],Table_PI[[#This Row],[Input 2]],Table_PI[[#This Row],[Input 3]],Table_PI[[#This Row],[Input 4]],'Customer Information'!$AR$12,103,ROW())<>\"No Rebate\"),MeasureCalc(Table_PI[[#This Row],[Hide:\nFormula Name]],Table_SummaryPI[[#This Row],[Quantity]],Table_PI[[#This Row],[List 1]],Table_PI[[#This Row],[List 2]],Table_PI[[#This Row],[List 3]],Table_PI[[#This Row],[Size]],Table_PI[[#This Row],[Input 1]],Table_PI[[#This Row],[Input 2]],Table_PI[[#This Row],[Input 3]],Table_PI[[#This Row],[Input 4]],'Customer Information'!$AR$12,103,ROW()),\"\"),\"\")","v":""},{"$f":"IF(Table_PI[[#This Row],[Input 4]]<>\"\",Table_PI[[#This Row],[Input 4]],\"\")","v":""},{"$f":"IF(Table_PI[[#This Row],[Quantity]]=\"\",\"\",Table_PI[[#This Row],[Quantity]])","v":""},{"$f":"IF(Table_PI[[#This Row],[Notes]]=\"\",\"\",Table_PI[[#This Row],[Notes]])","v":""},{"$f":"IF(OR(Table_PI[[#This Row],[Hide:\nBaseline kWh]]=\"\",Table_PI[[#This Row],[Hide:\nBaseline kWh]]=0),\"\",Table_PI[[#This Row],[Hide:\nBaseline kWh]])","v":""},{"$f":"IF(OR(Table_PI[[#This Row],[Hide:\nBaseline kW]]=\"\",Table_PI[[#This Row],[Hide:\nBaseline kW]]=0),\"\",Table_PI[[#This Row],[Hide:\nBaseline kW]])","v":""},{"$f":"IF(OR(Table_PI[[#This Row],[Hide:\nProposed kWh]]=\"\",Table_PI[[#This Row],[Hide:\nProposed kWh]]=0),\"\",Table_PI[[#This Row],[Hide:\nProposed kWh]])","v":""},{"$f":"IF(OR(Table_PI[[#This Row],[Hide:\nProposed kW]]=\"\",Table_PI[[#This Row],[Hide:\nProposed kW]]=0),\"\",Table_PI[[#This Row],[Hide:\nProposed kW]])","v":""},{"$f":"IF(OR(Table_PI[[#This Row],[Rebate]]=\"\",Table_PI[[#This Row],[Rebate]]=0),\"\",Table_PI[[#This Row],[Rebate]])","v":""},{"$f":"IF(OR(Table_PI[[#This Row],[Hide:\nIncremental Cost]]=\"\",Table_PI[[#This Row],[Hide:\nIncremental Cost]]=0),\"\",Table_PI[[#This Row],[Hide:\nIncremental Cost]])","v":""},{"$f":"IFERROR(IF(Table_SummaryPI[[#This Row],[kWhSavings]]=\"\",\"\",ROUND(Table_SummaryPI[[#This Row],[kWhSavings]]/$AG$401*'Customer Information'!$BC$17,2)),0)","v":""},{"$f":"IF(OR(Table_PI[[#This Row],[Annual kWh]]=\"\",Table_PI[[#This Row],[Annual kWh]]=0),\"\",Table_PI[[#This Row],[Annual kWh]])","v":""},{"$f":"IF(OR(Table_PI[[#This Row],[Peak kW]]=\"\",Table_PI[[#This Row],[Peak kW]]=0),\"\",Table_PI[[#This Row],[Peak kW]])","v":""},{"$f":"IFERROR(IF(Table_SummaryPI[[#This Row],[kWhSavings]]=\"\",\"\",$AU$9*Table_SummaryPI[[#This Row],[kWhSavings]]),0)","v":""},{"$f":"IFERROR(IF(Table_SummaryPI[[#This Row],[kWhSavings]]=\"\",\"\",$AU$14*Table_SummaryPI[[#This Row],[kWhSavings]]),0)","v":""},{"$f":"IFERROR(IF(Table_SummaryPI[[#This Row],[kWhSavings]]=\"\",\"\",$AU$18*Table_SummaryPI[[#This Row],[kWhSavings]]),0)","v":""},{"$f":"IFERROR(IF(Table_SummaryPI[[#This Row],[kWhSavings]]=\"\",\"\",$AU$22*Table_SummaryPI[[#This Row],[kWhSavings]]),0)","v":""},{"$f":"IFERROR(IF(MeasureCalc(Table_PI[[#This Row],[Hide:\nFormula Name]],Table_SummaryPI[[#This Row],[Quantity]],Table_PI[[#This Row],[List 1]],Table_PI[[#This Row],[List 2]],Table_PI[[#This Row],[List 3]],Table_PI[[#This Row],[Size]],Table_PI[[#This Row],[Input 1]],Table_PI[[#This Row],[Input 2]],Table_PI[[#This Row],[Input 3]],Table_PI[[#This Row],[Input 4]],'Customer Information'!$AR$12,200,ROW())<>\"No Rebate\",MeasureCalc(Table_PI[[#This Row],[Hide:\nFormula Name]],Table_SummaryPI[[#This Row],[Quantity]],Table_PI[[#This Row],[List 1]],Table_PI[[#This Row],[List 2]],Table_PI[[#This Row],[List 3]],Table_PI[[#This Row],[Size]],Table_PI[[#This Row],[Input 1]],Table_PI[[#This Row],[Input 2]],Table_PI[[#This Row],[Input 3]],Table_PI[[#This Row],[Input 4]],'Customer Information'!$AR$12,200,ROW()),\"\"),\"\")","v":""},{"$f":"IFERROR(IF(MeasureCalc(Table_PI[[#This Row],[Hide:\nFormula Name]],Table_SummaryPI[[#This Row],[Quantity]],Table_PI[[#This Row],[List 1]],Table_PI[[#This Row],[List 2]],Table_PI[[#This Row],[List 3]],Table_PI[[#This Row],[Size]],Table_PI[[#This Row],[Input 1]],Table_PI[[#This Row],[Input 2]],Table_PI[[#This Row],[Input 3]],Table_PI[[#This Row],[Input 4]],'Customer Information'!$AR$12,201,ROW())<>\"No Rebate\",MeasureCalc(Table_PI[[#This Row],[Hide:\nFormula Name]],Table_SummaryPI[[#This Row],[Quantity]],Table_PI[[#This Row],[List 1]],Table_PI[[#This Row],[List 2]],Table_PI[[#This Row],[List 3]],Table_PI[[#This Row],[Size]],Table_PI[[#This Row],[Input 1]],Table_PI[[#This Row],[Input 2]],Table_PI[[#This Row],[Input 3]],Table_PI[[#This Row],[Input 4]],'Customer Information'!$AR$12,201,ROW()),\"\"),\"\")","v":""}]
[{"$f":"Table_PI[[#This Row],[Line No.]]","v":""},{"$f":"IF(Table_SummaryPI[[#This Row],[MeassureCategory]]<>\"\",CONCATENATE(Table_SummaryPI[[#This Row],[MeassureCategory]],  \" - \", Table_SummaryPI[[#This Row],[ProposedMeasureCategory]],  \" - \", TEXT(Table_SummaryPI[[#This Row],[Size]],\"#,##0.00\"),\" \",Table_SummaryPI[[#This Row],[SizeUnit]]),\"\")","v":""},{"$f":"SUBSTITUTE(Table_PI[[#This Row],[Measure]],\"     \",\"\",1)","v":""},{"$f":"IF(Table_PI[[#This Row],[List 1]]<>\"\",Table_PI[[#This Row],[List 1]],\"\")","v":""},{"$f":"IF(Table_PI[[#This Row],[List 2]]<>\"\",Table_PI[[#This Row],[List 2]],\"\")","v":""},{"$f":"IF(Table_PI[[#This Row],[List 3]]<>\"\",Table_PI[[#This Row],[List 3]],\"\")","v":""},{"$f":"IF(Table_PI[[#This Row],[Manufacturer]]=\"\",\"\",Table_PI[[#This Row],[Manufacturer]])","v":""},{"$f":"IF(Table_PI[[#This Row],[Model Number]]=\"\",\"\",Table_PI[[#This Row],[Model Number]])","v":""},{"$f":"IF(Table_PI[[#This Row],[Serial Number(s)]]=\"\",\"\",Table_PI[[#This Row],[Serial Number(s)]])","v":""},null,{"$f":"IF(Table_PI[[#This Row],[Size]]=\"\",\"\",Table_PI[[#This Row],[Size]])","v":""},null,{"$f":"IFERROR(IF(AND(MeasureCalc(Table_PI[[#This Row],[Hide:\nFormula Name]],Table_SummaryPI[[#This Row],[Quantity]],Table_PI[[#This Row],[List 1]],Table_PI[[#This Row],[List 2]],Table_PI[[#This Row],[List 3]],Table_PI[[#This Row],[Size]],Table_PI[[#This Row],[Input 1]],Table_PI[[#This Row],[Input 2]],Table_PI[[#This Row],[Input 3]],Table_PI[[#This Row],[Input 4]],'Customer Information'!$AR$12,100,ROW())<>0,MeasureCalc(Table_PI[[#This Row],[Hide:\nFormula Name]],Table_SummaryPI[[#This Row],[Quantity]],Table_PI[[#This Row],[List 1]],Table_PI[[#This Row],[List 2]],Table_PI[[#This Row],[List 3]],Table_PI[[#This Row],[Size]],Table_PI[[#This Row],[Input 1]],Table_PI[[#This Row],[Input 2]],Table_PI[[#This Row],[Input 3]],Table_PI[[#This Row],[Input 4]],'Customer Information'!$AR$12,100,ROW())<>\"No Rebate\"),MeasureCalc(Table_PI[[#This Row],[Hide:\nFormula Name]],Table_SummaryPI[[#This Row],[Quantity]],Table_PI[[#This Row],[List 1]],Table_PI[[#This Row],[List 2]],Table_PI[[#This Row],[List 3]],Table_PI[[#This Row],[Size]],Table_PI[[#This Row],[Input 1]],Table_PI[[#This Row],[Input 2]],Table_PI[[#This Row],[Input 3]],Table_PI[[#This Row],[Input 4]],'Customer Information'!$AR$12,100,ROW()),\"\"),\"\")","v":""},{"$f":"IF(Table_PI[[#This Row],[Input 1]]<>\"\",Table_PI[[#This Row],[Input 1]],\"\")","v":""},null,{"$f":"IFERROR(IF(AND(MeasureCalc(Table_PI[[#This Row],[Hide:\nFormula Name]],Table_SummaryPI[[#This Row],[Quantity]],Table_PI[[#This Row],[List 1]],Table_PI[[#This Row],[List 2]],Table_PI[[#This Row],[List 3]],Table_PI[[#This Row],[Size]],Table_PI[[#This Row],[Input 1]],Table_PI[[#This Row],[Input 2]],Table_PI[[#This Row],[Input 3]],Table_PI[[#This Row],[Input 4]],'Customer Information'!$AR$12,101,ROW())<>0,MeasureCalc(Table_PI[[#This Row],[Hide:\nFormula Name]],Table_SummaryPI[[#This Row],[Quantity]],Table_PI[[#This Row],[List 1]],Table_PI[[#This Row],[List 2]],Table_PI[[#This Row],[List 3]],Table_PI[[#This Row],[Size]],Table_PI[[#This Row],[Input 1]],Table_PI[[#This Row],[Input 2]],Table_PI[[#This Row],[Input 3]],Table_PI[[#This Row],[Input 4]],'Customer Information'!$AR$12,101,ROW())<>\"No Rebate\"),MeasureCalc(Table_PI[[#This Row],[Hide:\nFormula Name]],Table_SummaryPI[[#This Row],[Quantity]],Table_PI[[#This Row],[List 1]],Table_PI[[#This Row],[List 2]],Table_PI[[#This Row],[List 3]],Table_PI[[#This Row],[Size]],Table_PI[[#This Row],[Input 1]],Table_PI[[#This Row],[Input 2]],Table_PI[[#This Row],[Input 3]],Table_PI[[#This Row],[Input 4]],'Customer Information'!$AR$12,101,ROW()),\"\"),\"\")","v":""},{"$f":"IF(Table_PI[[#This Row],[Input 2]]<>\"\",Table_PI[[#This Row],[Input 2]],\"\")","v":""},null,{"$f":"IFERROR(IF(AND(MeasureCalc(Table_PI[[#This Row],[Hide:\nFormula Name]],Table_SummaryPI[[#This Row],[Quantity]],Table_PI[[#This Row],[List 1]],Table_PI[[#This Row],[List 2]],Table_PI[[#This Row],[List 3]],Table_PI[[#This Row],[Size]],Table_PI[[#This Row],[Input 1]],Table_PI[[#This Row],[Input 2]],Table_PI[[#This Row],[Input 3]],Table_PI[[#This Row],[Input 4]],'Customer Information'!$AR$12,102,ROW())<>0,MeasureCalc(Table_PI[[#This Row],[Hide:\nFormula Name]],Table_SummaryPI[[#This Row],[Quantity]],Table_PI[[#This Row],[List 1]],Table_PI[[#This Row],[List 2]],Table_PI[[#This Row],[List 3]],Table_PI[[#This Row],[Size]],Table_PI[[#This Row],[Input 1]],Table_PI[[#This Row],[Input 2]],Table_PI[[#This Row],[Input 3]],Table_PI[[#This Row],[Input 4]],'Customer Information'!$AR$12,102,ROW())<>\"No Rebate\"),MeasureCalc(Table_PI[[#This Row],[Hide:\nFormula Name]],Table_SummaryPI[[#This Row],[Quantity]],Table_PI[[#This Row],[List 1]],Table_PI[[#This Row],[List 2]],Table_PI[[#This Row],[List 3]],Table_PI[[#This Row],[Size]],Table_PI[[#This Row],[Input 1]],Table_PI[[#This Row],[Input 2]],Table_PI[[#This Row],[Input 3]],Table_PI[[#This Row],[Input 4]],'Customer Information'!$AR$12,102,ROW()),\"\"),\"\")","v":""},{"$f":"IF(Table_PI[[#This Row],[Input 3]]<>\"\",Table_PI[[#This Row],[Input 3]],\"\")","v":""},null,{"$f":"IFERROR(IF(AND(MeasureCalc(Table_PI[[#This Row],[Hide:\nFormula Name]],Table_SummaryPI[[#This Row],[Quantity]],Table_PI[[#This Row],[List 1]],Table_PI[[#This Row],[List 2]],Table_PI[[#This Row],[List 3]],Table_PI[[#This Row],[Size]],Table_PI[[#This Row],[Input 1]],Table_PI[[#This Row],[Input 2]],Table_PI[[#This Row],[Input 3]],Table_PI[[#This Row],[Input 4]],'Customer Information'!$AR$12,103,ROW())<>0,MeasureCalc(Table_PI[[#This Row],[Hide:\nFormula Name]],Table_SummaryPI[[#This Row],[Quantity]],Table_PI[[#This Row],[List 1]],Table_PI[[#This Row],[List 2]],Table_PI[[#This Row],[List 3]],Table_PI[[#This Row],[Size]],Table_PI[[#This Row],[Input 1]],Table_PI[[#This Row],[Input 2]],Table_PI[[#This Row],[Input 3]],Table_PI[[#This Row],[Input 4]],'Customer Information'!$AR$12,103,ROW())<>\"No Rebate\"),MeasureCalc(Table_PI[[#This Row],[Hide:\nFormula Name]],Table_SummaryPI[[#This Row],[Quantity]],Table_PI[[#This Row],[List 1]],Table_PI[[#This Row],[List 2]],Table_PI[[#This Row],[List 3]],Table_PI[[#This Row],[Size]],Table_PI[[#This Row],[Input 1]],Table_PI[[#This Row],[Input 2]],Table_PI[[#This Row],[Input 3]],Table_PI[[#This Row],[Input 4]],'Customer Information'!$AR$12,103,ROW()),\"\"),\"\")","v":""},{"$f":"IF(Table_PI[[#This Row],[Input 4]]<>\"\",Table_PI[[#This Row],[Input 4]],\"\")","v":""},{"$f":"IF(Table_PI[[#This Row],[Quantity]]=\"\",\"\",Table_PI[[#This Row],[Quantity]])","v":""},{"$f":"IF(Table_PI[[#This Row],[Notes]]=\"\",\"\",Table_PI[[#This Row],[Notes]])","v":""},{"$f":"IF(OR(Table_PI[[#This Row],[Hide:\nBaseline kWh]]=\"\",Table_PI[[#This Row],[Hide:\nBaseline kWh]]=0),\"\",Table_PI[[#This Row],[Hide:\nBaseline kWh]])","v":""},{"$f":"IF(OR(Table_PI[[#This Row],[Hide:\nBaseline kW]]=\"\",Table_PI[[#This Row],[Hide:\nBaseline kW]]=0),\"\",Table_PI[[#This Row],[Hide:\nBaseline kW]])","v":""},{"$f":"IF(OR(Table_PI[[#This Row],[Hide:\nProposed kWh]]=\"\",Table_PI[[#This Row],[Hide:\nProposed kWh]]=0),\"\",Table_PI[[#This Row],[Hide:\nProposed kWh]])","v":""},{"$f":"IF(OR(Table_PI[[#This Row],[Hide:\nProposed kW]]=\"\",Table_PI[[#This Row],[Hide:\nProposed kW]]=0),\"\",Table_PI[[#This Row],[Hide:\nProposed kW]])","v":""},{"$f":"IF(OR(Table_PI[[#This Row],[Rebate]]=\"\",Table_PI[[#This Row],[Rebate]]=0),\"\",Table_PI[[#This Row],[Rebate]])","v":""},{"$f":"IF(OR(Table_PI[[#This Row],[Hide:\nIncremental Cost]]=\"\",Table_PI[[#This Row],[Hide:\nIncremental Cost]]=0),\"\",Table_PI[[#This Row],[Hide:\nIncremental Cost]])","v":""},{"$f":"IFERROR(IF(Table_SummaryPI[[#This Row],[kWhSavings]]=\"\",\"\",ROUND(Table_SummaryPI[[#This Row],[kWhSavings]]/$AG$401*'Customer Information'!$BC$17,2)),0)","v":""},{"$f":"IF(OR(Table_PI[[#This Row],[Annual kWh]]=\"\",Table_PI[[#This Row],[Annual kWh]]=0),\"\",Table_PI[[#This Row],[Annual kWh]])","v":""},{"$f":"IF(OR(Table_PI[[#This Row],[Peak kW]]=\"\",Table_PI[[#This Row],[Peak kW]]=0),\"\",Table_PI[[#This Row],[Peak kW]])","v":""},{"$f":"IFERROR(IF(Table_SummaryPI[[#This Row],[kWhSavings]]=\"\",\"\",$AU$9*Table_SummaryPI[[#This Row],[kWhSavings]]),0)","v":""},{"$f":"IFERROR(IF(Table_SummaryPI[[#This Row],[kWhSavings]]=\"\",\"\",$AU$14*Table_SummaryPI[[#This Row],[kWhSavings]]),0)","v":""},{"$f":"IFERROR(IF(Table_SummaryPI[[#This Row],[kWhSavings]]=\"\",\"\",$AU$18*Table_SummaryPI[[#This Row],[kWhSavings]]),0)","v":""},{"$f":"IFERROR(IF(Table_SummaryPI[[#This Row],[kWhSavings]]=\"\",\"\",$AU$22*Table_SummaryPI[[#This Row],[kWhSavings]]),0)","v":""},{"$f":"IFERROR(IF(MeasureCalc(Table_PI[[#This Row],[Hide:\nFormula Name]],Table_SummaryPI[[#This Row],[Quantity]],Table_PI[[#This Row],[List 1]],Table_PI[[#This Row],[List 2]],Table_PI[[#This Row],[List 3]],Table_PI[[#This Row],[Size]],Table_PI[[#This Row],[Input 1]],Table_PI[[#This Row],[Input 2]],Table_PI[[#This Row],[Input 3]],Table_PI[[#This Row],[Input 4]],'Customer Information'!$AR$12,200,ROW())<>\"No Rebate\",MeasureCalc(Table_PI[[#This Row],[Hide:\nFormula Name]],Table_SummaryPI[[#This Row],[Quantity]],Table_PI[[#This Row],[List 1]],Table_PI[[#This Row],[List 2]],Table_PI[[#This Row],[List 3]],Table_PI[[#This Row],[Size]],Table_PI[[#This Row],[Input 1]],Table_PI[[#This Row],[Input 2]],Table_PI[[#This Row],[Input 3]],Table_PI[[#This Row],[Input 4]],'Customer Information'!$AR$12,200,ROW()),\"\"),\"\")","v":""},{"$f":"IFERROR(IF(MeasureCalc(Table_PI[[#This Row],[Hide:\nFormula Name]],Table_SummaryPI[[#This Row],[Quantity]],Table_PI[[#This Row],[List 1]],Table_PI[[#This Row],[List 2]],Table_PI[[#This Row],[List 3]],Table_PI[[#This Row],[Size]],Table_PI[[#This Row],[Input 1]],Table_PI[[#This Row],[Input 2]],Table_PI[[#This Row],[Input 3]],Table_PI[[#This Row],[Input 4]],'Customer Information'!$AR$12,201,ROW())<>\"No Rebate\",MeasureCalc(Table_PI[[#This Row],[Hide:\nFormula Name]],Table_SummaryPI[[#This Row],[Quantity]],Table_PI[[#This Row],[List 1]],Table_PI[[#This Row],[List 2]],Table_PI[[#This Row],[List 3]],Table_PI[[#This Row],[Size]],Table_PI[[#This Row],[Input 1]],Table_PI[[#This Row],[Input 2]],Table_PI[[#This Row],[Input 3]],Table_PI[[#This Row],[Input 4]],'Customer Information'!$AR$12,201,ROW()),\"\"),\"\")","v":""}]
[{"$f":"Table_PI[[#This Row],[Line No.]]","v":""},{"$f":"IF(Table_SummaryPI[[#This Row],[MeassureCategory]]<>\"\",CONCATENATE(Table_SummaryPI[[#This Row],[MeassureCategory]],  \" - \", Table_SummaryPI[[#This Row],[ProposedMeasureCategory]],  \" - \", TEXT(Table_SummaryPI[[#This Row],[Size]],\"#,##0.00\"),\" \",Table_SummaryPI[[#This Row],[SizeUnit]]),\"\")","v":""},{"$f":"SUBSTITUTE(Table_PI[[#This Row],[Measure]],\"     \",\"\",1)","v":""},{"$f":"IF(Table_PI[[#This Row],[List 1]]<>\"\",Table_PI[[#This Row],[List 1]],\"\")","v":""},{"$f":"IF(Table_PI[[#This Row],[List 2]]<>\"\",Table_PI[[#This Row],[List 2]],\"\")","v":""},{"$f":"IF(Table_PI[[#This Row],[List 3]]<>\"\",Table_PI[[#This Row],[List 3]],\"\")","v":""},{"$f":"IF(Table_PI[[#This Row],[Manufacturer]]=\"\",\"\",Table_PI[[#This Row],[Manufacturer]])","v":""},{"$f":"IF(Table_PI[[#This Row],[Model Number]]=\"\",\"\",Table_PI[[#This Row],[Model Number]])","v":""},{"$f":"IF(Table_PI[[#This Row],[Serial Number(s)]]=\"\",\"\",Table_PI[[#This Row],[Serial Number(s)]])","v":""},null,{"$f":"IF(Table_PI[[#This Row],[Size]]=\"\",\"\",Table_PI[[#This Row],[Size]])","v":""},null,{"$f":"IFERROR(IF(AND(MeasureCalc(Table_PI[[#This Row],[Hide:\nFormula Name]],Table_SummaryPI[[#This Row],[Quantity]],Table_PI[[#This Row],[List 1]],Table_PI[[#This Row],[List 2]],Table_PI[[#This Row],[List 3]],Table_PI[[#This Row],[Size]],Table_PI[[#This Row],[Input 1]],Table_PI[[#This Row],[Input 2]],Table_PI[[#This Row],[Input 3]],Table_PI[[#This Row],[Input 4]],'Customer Information'!$AR$12,100,ROW())<>0,MeasureCalc(Table_PI[[#This Row],[Hide:\nFormula Name]],Table_SummaryPI[[#This Row],[Quantity]],Table_PI[[#This Row],[List 1]],Table_PI[[#This Row],[List 2]],Table_PI[[#This Row],[List 3]],Table_PI[[#This Row],[Size]],Table_PI[[#This Row],[Input 1]],Table_PI[[#This Row],[Input 2]],Table_PI[[#This Row],[Input 3]],Table_PI[[#This Row],[Input 4]],'Customer Information'!$AR$12,100,ROW())<>\"No Rebate\"),MeasureCalc(Table_PI[[#This Row],[Hide:\nFormula Name]],Table_SummaryPI[[#This Row],[Quantity]],Table_PI[[#This Row],[List 1]],Table_PI[[#This Row],[List 2]],Table_PI[[#This Row],[List 3]],Table_PI[[#This Row],[Size]],Table_PI[[#This Row],[Input 1]],Table_PI[[#This Row],[Input 2]],Table_PI[[#This Row],[Input 3]],Table_PI[[#This Row],[Input 4]],'Customer Information'!$AR$12,100,ROW()),\"\"),\"\")","v":""},{"$f":"IF(Table_PI[[#This Row],[Input 1]]<>\"\",Table_PI[[#This Row],[Input 1]],\"\")","v":""},null,{"$f":"IFERROR(IF(AND(MeasureCalc(Table_PI[[#This Row],[Hide:\nFormula Name]],Table_SummaryPI[[#This Row],[Quantity]],Table_PI[[#This Row],[List 1]],Table_PI[[#This Row],[List 2]],Table_PI[[#This Row],[List 3]],Table_PI[[#This Row],[Size]],Table_PI[[#This Row],[Input 1]],Table_PI[[#This Row],[Input 2]],Table_PI[[#This Row],[Input 3]],Table_PI[[#This Row],[Input 4]],'Customer Information'!$AR$12,101,ROW())<>0,MeasureCalc(Table_PI[[#This Row],[Hide:\nFormula Name]],Table_SummaryPI[[#This Row],[Quantity]],Table_PI[[#This Row],[List 1]],Table_PI[[#This Row],[List 2]],Table_PI[[#This Row],[List 3]],Table_PI[[#This Row],[Size]],Table_PI[[#This Row],[Input 1]],Table_PI[[#This Row],[Input 2]],Table_PI[[#This Row],[Input 3]],Table_PI[[#This Row],[Input 4]],'Customer Information'!$AR$12,101,ROW())<>\"No Rebate\"),MeasureCalc(Table_PI[[#This Row],[Hide:\nFormula Name]],Table_SummaryPI[[#This Row],[Quantity]],Table_PI[[#This Row],[List 1]],Table_PI[[#This Row],[List 2]],Table_PI[[#This Row],[List 3]],Table_PI[[#This Row],[Size]],Table_PI[[#This Row],[Input 1]],Table_PI[[#This Row],[Input 2]],Table_PI[[#This Row],[Input 3]],Table_PI[[#This Row],[Input 4]],'Customer Information'!$AR$12,101,ROW()),\"\"),\"\")","v":""},{"$f":"IF(Table_PI[[#This Row],[Input 2]]<>\"\",Table_PI[[#This Row],[Input 2]],\"\")","v":""},null,{"$f":"IFERROR(IF(AND(MeasureCalc(Table_PI[[#This Row],[Hide:\nFormula Name]],Table_SummaryPI[[#This Row],[Quantity]],Table_PI[[#This Row],[List 1]],Table_PI[[#This Row],[List 2]],Table_PI[[#This Row],[List 3]],Table_PI[[#This Row],[Size]],Table_PI[[#This Row],[Input 1]],Table_PI[[#This Row],[Input 2]],Table_PI[[#This Row],[Input 3]],Table_PI[[#This Row],[Input 4]],'Customer Information'!$AR$12,102,ROW())<>0,MeasureCalc(Table_PI[[#This Row],[Hide:\nFormula Name]],Table_SummaryPI[[#This Row],[Quantity]],Table_PI[[#This Row],[List 1]],Table_PI[[#This Row],[List 2]],Table_PI[[#This Row],[List 3]],Table_PI[[#This Row],[Size]],Table_PI[[#This Row],[Input 1]],Table_PI[[#This Row],[Input 2]],Table_PI[[#This Row],[Input 3]],Table_PI[[#This Row],[Input 4]],'Customer Information'!$AR$12,102,ROW())<>\"No Rebate\"),MeasureCalc(Table_PI[[#This Row],[Hide:\nFormula Name]],Table_SummaryPI[[#This Row],[Quantity]],Table_PI[[#This Row],[List 1]],Table_PI[[#This Row],[List 2]],Table_PI[[#This Row],[List 3]],Table_PI[[#This Row],[Size]],Table_PI[[#This Row],[Input 1]],Table_PI[[#This Row],[Input 2]],Table_PI[[#This Row],[Input 3]],Table_PI[[#This Row],[Input 4]],'Customer Information'!$AR$12,102,ROW()),\"\"),\"\")","v":""},{"$f":"IF(Table_PI[[#This Row],[Input 3]]<>\"\",Table_PI[[#This Row],[Input 3]],\"\")","v":""},null,{"$f":"IFERROR(IF(AND(MeasureCalc(Table_PI[[#This Row],[Hide:\nFormula Name]],Table_SummaryPI[[#This Row],[Quantity]],Table_PI[[#This Row],[List 1]],Table_PI[[#This Row],[List 2]],Table_PI[[#This Row],[List 3]],Table_PI[[#This Row],[Size]],Table_PI[[#This Row],[Input 1]],Table_PI[[#This Row],[Input 2]],Table_PI[[#This Row],[Input 3]],Table_PI[[#This Row],[Input 4]],'Customer Information'!$AR$12,103,ROW())<>0,MeasureCalc(Table_PI[[#This Row],[Hide:\nFormula Name]],Table_SummaryPI[[#This Row],[Quantity]],Table_PI[[#This Row],[List 1]],Table_PI[[#This Row],[List 2]],Table_PI[[#This Row],[List 3]],Table_PI[[#This Row],[Size]],Table_PI[[#This Row],[Input 1]],Table_PI[[#This Row],[Input 2]],Table_PI[[#This Row],[Input 3]],Table_PI[[#This Row],[Input 4]],'Customer Information'!$AR$12,103,ROW())<>\"No Rebate\"),MeasureCalc(Table_PI[[#This Row],[Hide:\nFormula Name]],Table_SummaryPI[[#This Row],[Quantity]],Table_PI[[#This Row],[List 1]],Table_PI[[#This Row],[List 2]],Table_PI[[#This Row],[List 3]],Table_PI[[#This Row],[Size]],Table_PI[[#This Row],[Input 1]],Table_PI[[#This Row],[Input 2]],Table_PI[[#This Row],[Input 3]],Table_PI[[#This Row],[Input 4]],'Customer Information'!$AR$12,103,ROW()),\"\"),\"\")","v":""},{"$f":"IF(Table_PI[[#This Row],[Input 4]]<>\"\",Table_PI[[#This Row],[Input 4]],\"\")","v":""},{"$f":"IF(Table_PI[[#This Row],[Quantity]]=\"\",\"\",Table_PI[[#This Row],[Quantity]])","v":""},{"$f":"IF(Table_PI[[#This Row],[Notes]]=\"\",\"\",Table_PI[[#This Row],[Notes]])","v":""},{"$f":"IF(OR(Table_PI[[#This Row],[Hide:\nBaseline kWh]]=\"\",Table_PI[[#This Row],[Hide:\nBaseline kWh]]=0),\"\",Table_PI[[#This Row],[Hide:\nBaseline kWh]])","v":""},{"$f":"IF(OR(Table_PI[[#This Row],[Hide:\nBaseline kW]]=\"\",Table_PI[[#This Row],[Hide:\nBaseline kW]]=0),\"\",Table_PI[[#This Row],[Hide:\nBaseline kW]])","v":""},{"$f":"IF(OR(Table_PI[[#This Row],[Hide:\nProposed kWh]]=\"\",Table_PI[[#This Row],[Hide:\nProposed kWh]]=0),\"\",Table_PI[[#This Row],[Hide:\nProposed kWh]])","v":""},{"$f":"IF(OR(Table_PI[[#This Row],[Hide:\nProposed kW]]=\"\",Table_PI[[#This Row],[Hide:\nProposed kW]]=0),\"\",Table_PI[[#This Row],[Hide:\nProposed kW]])","v":""},{"$f":"IF(OR(Table_PI[[#This Row],[Rebate]]=\"\",Table_PI[[#This Row],[Rebate]]=0),\"\",Table_PI[[#This Row],[Rebate]])","v":""},{"$f":"IF(OR(Table_PI[[#This Row],[Hide:\nIncremental Cost]]=\"\",Table_PI[[#This Row],[Hide:\nIncremental Cost]]=0),\"\",Table_PI[[#This Row],[Hide:\nIncremental Cost]])","v":""},{"$f":"IFERROR(IF(Table_SummaryPI[[#This Row],[kWhSavings]]=\"\",\"\",ROUND(Table_SummaryPI[[#This Row],[kWhSavings]]/$AG$401*'Customer Information'!$BC$17,2)),0)","v":""},{"$f":"IF(OR(Table_PI[[#This Row],[Annual kWh]]=\"\",Table_PI[[#This Row],[Annual kWh]]=0),\"\",Table_PI[[#This Row],[Annual kWh]])","v":""},{"$f":"IF(OR(Table_PI[[#This Row],[Peak kW]]=\"\",Table_PI[[#This Row],[Peak kW]]=0),\"\",Table_PI[[#This Row],[Peak kW]])","v":""},{"$f":"IFERROR(IF(Table_SummaryPI[[#This Row],[kWhSavings]]=\"\",\"\",$AU$9*Table_SummaryPI[[#This Row],[kWhSavings]]),0)","v":""},{"$f":"IFERROR(IF(Table_SummaryPI[[#This Row],[kWhSavings]]=\"\",\"\",$AU$14*Table_SummaryPI[[#This Row],[kWhSavings]]),0)","v":""},{"$f":"IFERROR(IF(Table_SummaryPI[[#This Row],[kWhSavings]]=\"\",\"\",$AU$18*Table_SummaryPI[[#This Row],[kWhSavings]]),0)","v":""},{"$f":"IFERROR(IF(Table_SummaryPI[[#This Row],[kWhSavings]]=\"\",\"\",$AU$22*Table_SummaryPI[[#This Row],[kWhSavings]]),0)","v":""},{"$f":"IFERROR(IF(MeasureCalc(Table_PI[[#This Row],[Hide:\nFormula Name]],Table_SummaryPI[[#This Row],[Quantity]],Table_PI[[#This Row],[List 1]],Table_PI[[#This Row],[List 2]],Table_PI[[#This Row],[List 3]],Table_PI[[#This Row],[Size]],Table_PI[[#This Row],[Input 1]],Table_PI[[#This Row],[Input 2]],Table_PI[[#This Row],[Input 3]],Table_PI[[#This Row],[Input 4]],'Customer Information'!$AR$12,200,ROW())<>\"No Rebate\",MeasureCalc(Table_PI[[#This Row],[Hide:\nFormula Name]],Table_SummaryPI[[#This Row],[Quantity]],Table_PI[[#This Row],[List 1]],Table_PI[[#This Row],[List 2]],Table_PI[[#This Row],[List 3]],Table_PI[[#This Row],[Size]],Table_PI[[#This Row],[Input 1]],Table_PI[[#This Row],[Input 2]],Table_PI[[#This Row],[Input 3]],Table_PI[[#This Row],[Input 4]],'Customer Information'!$AR$12,200,ROW()),\"\"),\"\")","v":""},{"$f":"IFERROR(IF(MeasureCalc(Table_PI[[#This Row],[Hide:\nFormula Name]],Table_SummaryPI[[#This Row],[Quantity]],Table_PI[[#This Row],[List 1]],Table_PI[[#This Row],[List 2]],Table_PI[[#This Row],[List 3]],Table_PI[[#This Row],[Size]],Table_PI[[#This Row],[Input 1]],Table_PI[[#This Row],[Input 2]],Table_PI[[#This Row],[Input 3]],Table_PI[[#This Row],[Input 4]],'Customer Information'!$AR$12,201,ROW())<>\"No Rebate\",MeasureCalc(Table_PI[[#This Row],[Hide:\nFormula Name]],Table_SummaryPI[[#This Row],[Quantity]],Table_PI[[#This Row],[List 1]],Table_PI[[#This Row],[List 2]],Table_PI[[#This Row],[List 3]],Table_PI[[#This Row],[Size]],Table_PI[[#This Row],[Input 1]],Table_PI[[#This Row],[Input 2]],Table_PI[[#This Row],[Input 3]],Table_PI[[#This Row],[Input 4]],'Customer Information'!$AR$12,201,ROW()),\"\"),\"\")","v":""}]
[{"$f":"Table_PI[[#This Row],[Line No.]]","v":""},{"$f":"IF(Table_SummaryPI[[#This Row],[MeassureCategory]]<>\"\",CONCATENATE(Table_SummaryPI[[#This Row],[MeassureCategory]],  \" - \", Table_SummaryPI[[#This Row],[ProposedMeasureCategory]],  \" - \", TEXT(Table_SummaryPI[[#This Row],[Size]],\"#,##0.00\"),\" \",Table_SummaryPI[[#This Row],[SizeUnit]]),\"\")","v":""},{"$f":"SUBSTITUTE(Table_PI[[#This Row],[Measure]],\"     \",\"\",1)","v":""},{"$f":"IF(Table_PI[[#This Row],[List 1]]<>\"\",Table_PI[[#This Row],[List 1]],\"\")","v":""},{"$f":"IF(Table_PI[[#This Row],[List 2]]<>\"\",Table_PI[[#This Row],[List 2]],\"\")","v":""},{"$f":"IF(Table_PI[[#This Row],[List 3]]<>\"\",Table_PI[[#This Row],[List 3]],\"\")","v":""},{"$f":"IF(Table_PI[[#This Row],[Manufacturer]]=\"\",\"\",Table_PI[[#This Row],[Manufacturer]])","v":""},{"$f":"IF(Table_PI[[#This Row],[Model Number]]=\"\",\"\",Table_PI[[#This Row],[Model Number]])","v":""},{"$f":"IF(Table_PI[[#This Row],[Serial Number(s)]]=\"\",\"\",Table_PI[[#This Row],[Serial Number(s)]])","v":""},null,{"$f":"IF(Table_PI[[#This Row],[Size]]=\"\",\"\",Table_PI[[#This Row],[Size]])","v":""},null,{"$f":"IFERROR(IF(AND(MeasureCalc(Table_PI[[#This Row],[Hide:\nFormula Name]],Table_SummaryPI[[#This Row],[Quantity]],Table_PI[[#This Row],[List 1]],Table_PI[[#This Row],[List 2]],Table_PI[[#This Row],[List 3]],Table_PI[[#This Row],[Size]],Table_PI[[#This Row],[Input 1]],Table_PI[[#This Row],[Input 2]],Table_PI[[#This Row],[Input 3]],Table_PI[[#This Row],[Input 4]],'Customer Information'!$AR$12,100,ROW())<>0,MeasureCalc(Table_PI[[#This Row],[Hide:\nFormula Name]],Table_SummaryPI[[#This Row],[Quantity]],Table_PI[[#This Row],[List 1]],Table_PI[[#This Row],[List 2]],Table_PI[[#This Row],[List 3]],Table_PI[[#This Row],[Size]],Table_PI[[#This Row],[Input 1]],Table_PI[[#This Row],[Input 2]],Table_PI[[#This Row],[Input 3]],Table_PI[[#This Row],[Input 4]],'Customer Information'!$AR$12,100,ROW())<>\"No Rebate\"),MeasureCalc(Table_PI[[#This Row],[Hide:\nFormula Name]],Table_SummaryPI[[#This Row],[Quantity]],Table_PI[[#This Row],[List 1]],Table_PI[[#This Row],[List 2]],Table_PI[[#This Row],[List 3]],Table_PI[[#This Row],[Size]],Table_PI[[#This Row],[Input 1]],Table_PI[[#This Row],[Input 2]],Table_PI[[#This Row],[Input 3]],Table_PI[[#This Row],[Input 4]],'Customer Information'!$AR$12,100,ROW()),\"\"),\"\")","v":""},{"$f":"IF(Table_PI[[#This Row],[Input 1]]<>\"\",Table_PI[[#This Row],[Input 1]],\"\")","v":""},null,{"$f":"IFERROR(IF(AND(MeasureCalc(Table_PI[[#This Row],[Hide:\nFormula Name]],Table_SummaryPI[[#This Row],[Quantity]],Table_PI[[#This Row],[List 1]],Table_PI[[#This Row],[List 2]],Table_PI[[#This Row],[List 3]],Table_PI[[#This Row],[Size]],Table_PI[[#This Row],[Input 1]],Table_PI[[#This Row],[Input 2]],Table_PI[[#This Row],[Input 3]],Table_PI[[#This Row],[Input 4]],'Customer Information'!$AR$12,101,ROW())<>0,MeasureCalc(Table_PI[[#This Row],[Hide:\nFormula Name]],Table_SummaryPI[[#This Row],[Quantity]],Table_PI[[#This Row],[List 1]],Table_PI[[#This Row],[List 2]],Table_PI[[#This Row],[List 3]],Table_PI[[#This Row],[Size]],Table_PI[[#This Row],[Input 1]],Table_PI[[#This Row],[Input 2]],Table_PI[[#This Row],[Input 3]],Table_PI[[#This Row],[Input 4]],'Customer Information'!$AR$12,101,ROW())<>\"No Rebate\"),MeasureCalc(Table_PI[[#This Row],[Hide:\nFormula Name]],Table_SummaryPI[[#This Row],[Quantity]],Table_PI[[#This Row],[List 1]],Table_PI[[#This Row],[List 2]],Table_PI[[#This Row],[List 3]],Table_PI[[#This Row],[Size]],Table_PI[[#This Row],[Input 1]],Table_PI[[#This Row],[Input 2]],Table_PI[[#This Row],[Input 3]],Table_PI[[#This Row],[Input 4]],'Customer Information'!$AR$12,101,ROW()),\"\"),\"\")","v":""},{"$f":"IF(Table_PI[[#This Row],[Input 2]]<>\"\",Table_PI[[#This Row],[Input 2]],\"\")","v":""},null,{"$f":"IFERROR(IF(AND(MeasureCalc(Table_PI[[#This Row],[Hide:\nFormula Name]],Table_SummaryPI[[#This Row],[Quantity]],Table_PI[[#This Row],[List 1]],Table_PI[[#This Row],[List 2]],Table_PI[[#This Row],[List 3]],Table_PI[[#This Row],[Size]],Table_PI[[#This Row],[Input 1]],Table_PI[[#This Row],[Input 2]],Table_PI[[#This Row],[Input 3]],Table_PI[[#This Row],[Input 4]],'Customer Information'!$AR$12,102,ROW())<>0,MeasureCalc(Table_PI[[#This Row],[Hide:\nFormula Name]],Table_SummaryPI[[#This Row],[Quantity]],Table_PI[[#This Row],[List 1]],Table_PI[[#This Row],[List 2]],Table_PI[[#This Row],[List 3]],Table_PI[[#This Row],[Size]],Table_PI[[#This Row],[Input 1]],Table_PI[[#This Row],[Input 2]],Table_PI[[#This Row],[Input 3]],Table_PI[[#This Row],[Input 4]],'Customer Information'!$AR$12,102,ROW())<>\"No Rebate\"),MeasureCalc(Table_PI[[#This Row],[Hide:\nFormula Name]],Table_SummaryPI[[#This Row],[Quantity]],Table_PI[[#This Row],[List 1]],Table_PI[[#This Row],[List 2]],Table_PI[[#This Row],[List 3]],Table_PI[[#This Row],[Size]],Table_PI[[#This Row],[Input 1]],Table_PI[[#This Row],[Input 2]],Table_PI[[#This Row],[Input 3]],Table_PI[[#This Row],[Input 4]],'Customer Information'!$AR$12,102,ROW()),\"\"),\"\")","v":""},{"$f":"IF(Table_PI[[#This Row],[Input 3]]<>\"\",Table_PI[[#This Row],[Input 3]],\"\")","v":""},null,{"$f":"IFERROR(IF(AND(MeasureCalc(Table_PI[[#This Row],[Hide:\nFormula Name]],Table_SummaryPI[[#This Row],[Quantity]],Table_PI[[#This Row],[List 1]],Table_PI[[#This Row],[List 2]],Table_PI[[#This Row],[List 3]],Table_PI[[#This Row],[Size]],Table_PI[[#This Row],[Input 1]],Table_PI[[#This Row],[Input 2]],Table_PI[[#This Row],[Input 3]],Table_PI[[#This Row],[Input 4]],'Customer Information'!$AR$12,103,ROW())<>0,MeasureCalc(Table_PI[[#This Row],[Hide:\nFormula Name]],Table_SummaryPI[[#This Row],[Quantity]],Table_PI[[#This Row],[List 1]],Table_PI[[#This Row],[List 2]],Table_PI[[#This Row],[List 3]],Table_PI[[#This Row],[Size]],Table_PI[[#This Row],[Input 1]],Table_PI[[#This Row],[Input 2]],Table_PI[[#This Row],[Input 3]],Table_PI[[#This Row],[Input 4]],'Customer Information'!$AR$12,103,ROW())<>\"No Rebate\"),MeasureCalc(Table_PI[[#This Row],[Hide:\nFormula Name]],Table_SummaryPI[[#This Row],[Quantity]],Table_PI[[#This Row],[List 1]],Table_PI[[#This Row],[List 2]],Table_PI[[#This Row],[List 3]],Table_PI[[#This Row],[Size]],Table_PI[[#This Row],[Input 1]],Table_PI[[#This Row],[Input 2]],Table_PI[[#This Row],[Input 3]],Table_PI[[#This Row],[Input 4]],'Customer Information'!$AR$12,103,ROW()),\"\"),\"\")","v":""},{"$f":"IF(Table_PI[[#This Row],[Input 4]]<>\"\",Table_PI[[#This Row],[Input 4]],\"\")","v":""},{"$f":"IF(Table_PI[[#This Row],[Quantity]]=\"\",\"\",Table_PI[[#This Row],[Quantity]])","v":""},{"$f":"IF(Table_PI[[#This Row],[Notes]]=\"\",\"\",Table_PI[[#This Row],[Notes]])","v":""},{"$f":"IF(OR(Table_PI[[#This Row],[Hide:\nBaseline kWh]]=\"\",Table_PI[[#This Row],[Hide:\nBaseline kWh]]=0),\"\",Table_PI[[#This Row],[Hide:\nBaseline kWh]])","v":""},{"$f":"IF(OR(Table_PI[[#This Row],[Hide:\nBaseline kW]]=\"\",Table_PI[[#This Row],[Hide:\nBaseline kW]]=0),\"\",Table_PI[[#This Row],[Hide:\nBaseline kW]])","v":""},{"$f":"IF(OR(Table_PI[[#This Row],[Hide:\nProposed kWh]]=\"\",Table_PI[[#This Row],[Hide:\nProposed kWh]]=0),\"\",Table_PI[[#This Row],[Hide:\nProposed kWh]])","v":""},{"$f":"IF(OR(Table_PI[[#This Row],[Hide:\nProposed kW]]=\"\",Table_PI[[#This Row],[Hide:\nProposed kW]]=0),\"\",Table_PI[[#This Row],[Hide:\nProposed kW]])","v":""},{"$f":"IF(OR(Table_PI[[#This Row],[Rebate]]=\"\",Table_PI[[#This Row],[Rebate]]=0),\"\",Table_PI[[#This Row],[Rebate]])","v":""},{"$f":"IF(OR(Table_PI[[#This Row],[Hide:\nIncremental Cost]]=\"\",Table_PI[[#This Row],[Hide:\nIncremental Cost]]=0),\"\",Table_PI[[#This Row],[Hide:\nIncremental Cost]])","v":""},{"$f":"IFERROR(IF(Table_SummaryPI[[#This Row],[kWhSavings]]=\"\",\"\",ROUND(Table_SummaryPI[[#This Row],[kWhSavings]]/$AG$401*'Customer Information'!$BC$17,2)),0)","v":""},{"$f":"IF(OR(Table_PI[[#This Row],[Annual kWh]]=\"\",Table_PI[[#This Row],[Annual kWh]]=0),\"\",Table_PI[[#This Row],[Annual kWh]])","v":""},{"$f":"IF(OR(Table_PI[[#This Row],[Peak kW]]=\"\",Table_PI[[#This Row],[Peak kW]]=0),\"\",Table_PI[[#This Row],[Peak kW]])","v":""},{"$f":"IFERROR(IF(Table_SummaryPI[[#This Row],[kWhSavings]]=\"\",\"\",$AU$9*Table_SummaryPI[[#This Row],[kWhSavings]]),0)","v":""},{"$f":"IFERROR(IF(Table_SummaryPI[[#This Row],[kWhSavings]]=\"\",\"\",$AU$14*Table_SummaryPI[[#This Row],[kWhSavings]]),0)","v":""},{"$f":"IFERROR(IF(Table_SummaryPI[[#This Row],[kWhSavings]]=\"\",\"\",$AU$18*Table_SummaryPI[[#This Row],[kWhSavings]]),0)","v":""},{"$f":"IFERROR(IF(Table_SummaryPI[[#This Row],[kWhSavings]]=\"\",\"\",$AU$22*Table_SummaryPI[[#This Row],[kWhSavings]]),0)","v":""},{"$f":"IFERROR(IF(MeasureCalc(Table_PI[[#This Row],[Hide:\nFormula Name]],Table_SummaryPI[[#This Row],[Quantity]],Table_PI[[#This Row],[List 1]],Table_PI[[#This Row],[List 2]],Table_PI[[#This Row],[List 3]],Table_PI[[#This Row],[Size]],Table_PI[[#This Row],[Input 1]],Table_PI[[#This Row],[Input 2]],Table_PI[[#This Row],[Input 3]],Table_PI[[#This Row],[Input 4]],'Customer Information'!$AR$12,200,ROW())<>\"No Rebate\",MeasureCalc(Table_PI[[#This Row],[Hide:\nFormula Name]],Table_SummaryPI[[#This Row],[Quantity]],Table_PI[[#This Row],[List 1]],Table_PI[[#This Row],[List 2]],Table_PI[[#This Row],[List 3]],Table_PI[[#This Row],[Size]],Table_PI[[#This Row],[Input 1]],Table_PI[[#This Row],[Input 2]],Table_PI[[#This Row],[Input 3]],Table_PI[[#This Row],[Input 4]],'Customer Information'!$AR$12,200,ROW()),\"\"),\"\")","v":""},{"$f":"IFERROR(IF(MeasureCalc(Table_PI[[#This Row],[Hide:\nFormula Name]],Table_SummaryPI[[#This Row],[Quantity]],Table_PI[[#This Row],[List 1]],Table_PI[[#This Row],[List 2]],Table_PI[[#This Row],[List 3]],Table_PI[[#This Row],[Size]],Table_PI[[#This Row],[Input 1]],Table_PI[[#This Row],[Input 2]],Table_PI[[#This Row],[Input 3]],Table_PI[[#This Row],[Input 4]],'Customer Information'!$AR$12,201,ROW())<>\"No Rebate\",MeasureCalc(Table_PI[[#This Row],[Hide:\nFormula Name]],Table_SummaryPI[[#This Row],[Quantity]],Table_PI[[#This Row],[List 1]],Table_PI[[#This Row],[List 2]],Table_PI[[#This Row],[List 3]],Table_PI[[#This Row],[Size]],Table_PI[[#This Row],[Input 1]],Table_PI[[#This Row],[Input 2]],Table_PI[[#This Row],[Input 3]],Table_PI[[#This Row],[Input 4]],'Customer Information'!$AR$12,201,ROW()),\"\"),\"\")","v":""}]
[{"$f":"Table_PI[[#This Row],[Line No.]]","v":""},{"$f":"IF(Table_SummaryPI[[#This Row],[MeassureCategory]]<>\"\",CONCATENATE(Table_SummaryPI[[#This Row],[MeassureCategory]],  \" - \", Table_SummaryPI[[#This Row],[ProposedMeasureCategory]],  \" - \", TEXT(Table_SummaryPI[[#This Row],[Size]],\"#,##0.00\"),\" \",Table_SummaryPI[[#This Row],[SizeUnit]]),\"\")","v":""},{"$f":"SUBSTITUTE(Table_PI[[#This Row],[Measure]],\"     \",\"\",1)","v":""},{"$f":"IF(Table_PI[[#This Row],[List 1]]<>\"\",Table_PI[[#This Row],[List 1]],\"\")","v":""},{"$f":"IF(Table_PI[[#This Row],[List 2]]<>\"\",Table_PI[[#This Row],[List 2]],\"\")","v":""},{"$f":"IF(Table_PI[[#This Row],[List 3]]<>\"\",Table_PI[[#This Row],[List 3]],\"\")","v":""},{"$f":"IF(Table_PI[[#This Row],[Manufacturer]]=\"\",\"\",Table_PI[[#This Row],[Manufacturer]])","v":""},{"$f":"IF(Table_PI[[#This Row],[Model Number]]=\"\",\"\",Table_PI[[#This Row],[Model Number]])","v":""},{"$f":"IF(Table_PI[[#This Row],[Serial Number(s)]]=\"\",\"\",Table_PI[[#This Row],[Serial Number(s)]])","v":""},null,{"$f":"IF(Table_PI[[#This Row],[Size]]=\"\",\"\",Table_PI[[#This Row],[Size]])","v":""},null,{"$f":"IFERROR(IF(AND(MeasureCalc(Table_PI[[#This Row],[Hide:\nFormula Name]],Table_SummaryPI[[#This Row],[Quantity]],Table_PI[[#This Row],[List 1]],Table_PI[[#This Row],[List 2]],Table_PI[[#This Row],[List 3]],Table_PI[[#This Row],[Size]],Table_PI[[#This Row],[Input 1]],Table_PI[[#This Row],[Input 2]],Table_PI[[#This Row],[Input 3]],Table_PI[[#This Row],[Input 4]],'Customer Information'!$AR$12,100,ROW())<>0,MeasureCalc(Table_PI[[#This Row],[Hide:\nFormula Name]],Table_SummaryPI[[#This Row],[Quantity]],Table_PI[[#This Row],[List 1]],Table_PI[[#This Row],[List 2]],Table_PI[[#This Row],[List 3]],Table_PI[[#This Row],[Size]],Table_PI[[#This Row],[Input 1]],Table_PI[[#This Row],[Input 2]],Table_PI[[#This Row],[Input 3]],Table_PI[[#This Row],[Input 4]],'Customer Information'!$AR$12,100,ROW())<>\"No Rebate\"),MeasureCalc(Table_PI[[#This Row],[Hide:\nFormula Name]],Table_SummaryPI[[#This Row],[Quantity]],Table_PI[[#This Row],[List 1]],Table_PI[[#This Row],[List 2]],Table_PI[[#This Row],[List 3]],Table_PI[[#This Row],[Size]],Table_PI[[#This Row],[Input 1]],Table_PI[[#This Row],[Input 2]],Table_PI[[#This Row],[Input 3]],Table_PI[[#This Row],[Input 4]],'Customer Information'!$AR$12,100,ROW()),\"\"),\"\")","v":""},{"$f":"IF(Table_PI[[#This Row],[Input 1]]<>\"\",Table_PI[[#This Row],[Input 1]],\"\")","v":""},null,{"$f":"IFERROR(IF(AND(MeasureCalc(Table_PI[[#This Row],[Hide:\nFormula Name]],Table_SummaryPI[[#This Row],[Quantity]],Table_PI[[#This Row],[List 1]],Table_PI[[#This Row],[List 2]],Table_PI[[#This Row],[List 3]],Table_PI[[#This Row],[Size]],Table_PI[[#This Row],[Input 1]],Table_PI[[#This Row],[Input 2]],Table_PI[[#This Row],[Input 3]],Table_PI[[#This Row],[Input 4]],'Customer Information'!$AR$12,101,ROW())<>0,MeasureCalc(Table_PI[[#This Row],[Hide:\nFormula Name]],Table_SummaryPI[[#This Row],[Quantity]],Table_PI[[#This Row],[List 1]],Table_PI[[#This Row],[List 2]],Table_PI[[#This Row],[List 3]],Table_PI[[#This Row],[Size]],Table_PI[[#This Row],[Input 1]],Table_PI[[#This Row],[Input 2]],Table_PI[[#This Row],[Input 3]],Table_PI[[#This Row],[Input 4]],'Customer Information'!$AR$12,101,ROW())<>\"No Rebate\"),MeasureCalc(Table_PI[[#This Row],[Hide:\nFormula Name]],Table_SummaryPI[[#This Row],[Quantity]],Table_PI[[#This Row],[List 1]],Table_PI[[#This Row],[List 2]],Table_PI[[#This Row],[List 3]],Table_PI[[#This Row],[Size]],Table_PI[[#This Row],[Input 1]],Table_PI[[#This Row],[Input 2]],Table_PI[[#This Row],[Input 3]],Table_PI[[#This Row],[Input 4]],'Customer Information'!$AR$12,101,ROW()),\"\"),\"\")","v":""},{"$f":"IF(Table_PI[[#This Row],[Input 2]]<>\"\",Table_PI[[#This Row],[Input 2]],\"\")","v":""},null,{"$f":"IFERROR(IF(AND(MeasureCalc(Table_PI[[#This Row],[Hide:\nFormula Name]],Table_SummaryPI[[#This Row],[Quantity]],Table_PI[[#This Row],[List 1]],Table_PI[[#This Row],[List 2]],Table_PI[[#This Row],[List 3]],Table_PI[[#This Row],[Size]],Table_PI[[#This Row],[Input 1]],Table_PI[[#This Row],[Input 2]],Table_PI[[#This Row],[Input 3]],Table_PI[[#This Row],[Input 4]],'Customer Information'!$AR$12,102,ROW())<>0,MeasureCalc(Table_PI[[#This Row],[Hide:\nFormula Name]],Table_SummaryPI[[#This Row],[Quantity]],Table_PI[[#This Row],[List 1]],Table_PI[[#This Row],[List 2]],Table_PI[[#This Row],[List 3]],Table_PI[[#This Row],[Size]],Table_PI[[#This Row],[Input 1]],Table_PI[[#This Row],[Input 2]],Table_PI[[#This Row],[Input 3]],Table_PI[[#This Row],[Input 4]],'Customer Information'!$AR$12,102,ROW())<>\"No Rebate\"),MeasureCalc(Table_PI[[#This Row],[Hide:\nFormula Name]],Table_SummaryPI[[#This Row],[Quantity]],Table_PI[[#This Row],[List 1]],Table_PI[[#This Row],[List 2]],Table_PI[[#This Row],[List 3]],Table_PI[[#This Row],[Size]],Table_PI[[#This Row],[Input 1]],Table_PI[[#This Row],[Input 2]],Table_PI[[#This Row],[Input 3]],Table_PI[[#This Row],[Input 4]],'Customer Information'!$AR$12,102,ROW()),\"\"),\"\")","v":""},{"$f":"IF(Table_PI[[#This Row],[Input 3]]<>\"\",Table_PI[[#This Row],[Input 3]],\"\")","v":""},null,{"$f":"IFERROR(IF(AND(MeasureCalc(Table_PI[[#This Row],[Hide:\nFormula Name]],Table_SummaryPI[[#This Row],[Quantity]],Table_PI[[#This Row],[List 1]],Table_PI[[#This Row],[List 2]],Table_PI[[#This Row],[List 3]],Table_PI[[#This Row],[Size]],Table_PI[[#This Row],[Input 1]],Table_PI[[#This Row],[Input 2]],Table_PI[[#This Row],[Input 3]],Table_PI[[#This Row],[Input 4]],'Customer Information'!$AR$12,103,ROW())<>0,MeasureCalc(Table_PI[[#This Row],[Hide:\nFormula Name]],Table_SummaryPI[[#This Row],[Quantity]],Table_PI[[#This Row],[List 1]],Table_PI[[#This Row],[List 2]],Table_PI[[#This Row],[List 3]],Table_PI[[#This Row],[Size]],Table_PI[[#This Row],[Input 1]],Table_PI[[#This Row],[Input 2]],Table_PI[[#This Row],[Input 3]],Table_PI[[#This Row],[Input 4]],'Customer Information'!$AR$12,103,ROW())<>\"No Rebate\"),MeasureCalc(Table_PI[[#This Row],[Hide:\nFormula Name]],Table_SummaryPI[[#This Row],[Quantity]],Table_PI[[#This Row],[List 1]],Table_PI[[#This Row],[List 2]],Table_PI[[#This Row],[List 3]],Table_PI[[#This Row],[Size]],Table_PI[[#This Row],[Input 1]],Table_PI[[#This Row],[Input 2]],Table_PI[[#This Row],[Input 3]],Table_PI[[#This Row],[Input 4]],'Customer Information'!$AR$12,103,ROW()),\"\"),\"\")","v":""},{"$f":"IF(Table_PI[[#This Row],[Input 4]]<>\"\",Table_PI[[#This Row],[Input 4]],\"\")","v":""},{"$f":"IF(Table_PI[[#This Row],[Quantity]]=\"\",\"\",Table_PI[[#This Row],[Quantity]])","v":""},{"$f":"IF(Table_PI[[#This Row],[Notes]]=\"\",\"\",Table_PI[[#This Row],[Notes]])","v":""},{"$f":"IF(OR(Table_PI[[#This Row],[Hide:\nBaseline kWh]]=\"\",Table_PI[[#This Row],[Hide:\nBaseline kWh]]=0),\"\",Table_PI[[#This Row],[Hide:\nBaseline kWh]])","v":""},{"$f":"IF(OR(Table_PI[[#This Row],[Hide:\nBaseline kW]]=\"\",Table_PI[[#This Row],[Hide:\nBaseline kW]]=0),\"\",Table_PI[[#This Row],[Hide:\nBaseline kW]])","v":""},{"$f":"IF(OR(Table_PI[[#This Row],[Hide:\nProposed kWh]]=\"\",Table_PI[[#This Row],[Hide:\nProposed kWh]]=0),\"\",Table_PI[[#This Row],[Hide:\nProposed kWh]])","v":""},{"$f":"IF(OR(Table_PI[[#This Row],[Hide:\nProposed kW]]=\"\",Table_PI[[#This Row],[Hide:\nProposed kW]]=0),\"\",Table_PI[[#This Row],[Hide:\nProposed kW]])","v":""},{"$f":"IF(OR(Table_PI[[#This Row],[Rebate]]=\"\",Table_PI[[#This Row],[Rebate]]=0),\"\",Table_PI[[#This Row],[Rebate]])","v":""},{"$f":"IF(OR(Table_PI[[#This Row],[Hide:\nIncremental Cost]]=\"\",Table_PI[[#This Row],[Hide:\nIncremental Cost]]=0),\"\",Table_PI[[#This Row],[Hide:\nIncremental Cost]])","v":""},{"$f":"IFERROR(IF(Table_SummaryPI[[#This Row],[kWhSavings]]=\"\",\"\",ROUND(Table_SummaryPI[[#This Row],[kWhSavings]]/$AG$401*'Customer Information'!$BC$17,2)),0)","v":""},{"$f":"IF(OR(Table_PI[[#This Row],[Annual kWh]]=\"\",Table_PI[[#This Row],[Annual kWh]]=0),\"\",Table_PI[[#This Row],[Annual kWh]])","v":""},{"$f":"IF(OR(Table_PI[[#This Row],[Peak kW]]=\"\",Table_PI[[#This Row],[Peak kW]]=0),\"\",Table_PI[[#This Row],[Peak kW]])","v":""},{"$f":"IFERROR(IF(Table_SummaryPI[[#This Row],[kWhSavings]]=\"\",\"\",$AU$9*Table_SummaryPI[[#This Row],[kWhSavings]]),0)","v":""},{"$f":"IFERROR(IF(Table_SummaryPI[[#This Row],[kWhSavings]]=\"\",\"\",$AU$14*Table_SummaryPI[[#This Row],[kWhSavings]]),0)","v":""},{"$f":"IFERROR(IF(Table_SummaryPI[[#This Row],[kWhSavings]]=\"\",\"\",$AU$18*Table_SummaryPI[[#This Row],[kWhSavings]]),0)","v":""},{"$f":"IFERROR(IF(Table_SummaryPI[[#This Row],[kWhSavings]]=\"\",\"\",$AU$22*Table_SummaryPI[[#This Row],[kWhSavings]]),0)","v":""},{"$f":"IFERROR(IF(MeasureCalc(Table_PI[[#This Row],[Hide:\nFormula Name]],Table_SummaryPI[[#This Row],[Quantity]],Table_PI[[#This Row],[List 1]],Table_PI[[#This Row],[List 2]],Table_PI[[#This Row],[List 3]],Table_PI[[#This Row],[Size]],Table_PI[[#This Row],[Input 1]],Table_PI[[#This Row],[Input 2]],Table_PI[[#This Row],[Input 3]],Table_PI[[#This Row],[Input 4]],'Customer Information'!$AR$12,200,ROW())<>\"No Rebate\",MeasureCalc(Table_PI[[#This Row],[Hide:\nFormula Name]],Table_SummaryPI[[#This Row],[Quantity]],Table_PI[[#This Row],[List 1]],Table_PI[[#This Row],[List 2]],Table_PI[[#This Row],[List 3]],Table_PI[[#This Row],[Size]],Table_PI[[#This Row],[Input 1]],Table_PI[[#This Row],[Input 2]],Table_PI[[#This Row],[Input 3]],Table_PI[[#This Row],[Input 4]],'Customer Information'!$AR$12,200,ROW()),\"\"),\"\")","v":""},{"$f":"IFERROR(IF(MeasureCalc(Table_PI[[#This Row],[Hide:\nFormula Name]],Table_SummaryPI[[#This Row],[Quantity]],Table_PI[[#This Row],[List 1]],Table_PI[[#This Row],[List 2]],Table_PI[[#This Row],[List 3]],Table_PI[[#This Row],[Size]],Table_PI[[#This Row],[Input 1]],Table_PI[[#This Row],[Input 2]],Table_PI[[#This Row],[Input 3]],Table_PI[[#This Row],[Input 4]],'Customer Information'!$AR$12,201,ROW())<>\"No Rebate\",MeasureCalc(Table_PI[[#This Row],[Hide:\nFormula Name]],Table_SummaryPI[[#This Row],[Quantity]],Table_PI[[#This Row],[List 1]],Table_PI[[#This Row],[List 2]],Table_PI[[#This Row],[List 3]],Table_PI[[#This Row],[Size]],Table_PI[[#This Row],[Input 1]],Table_PI[[#This Row],[Input 2]],Table_PI[[#This Row],[Input 3]],Table_PI[[#This Row],[Input 4]],'Customer Information'!$AR$12,201,ROW()),\"\"),\"\")","v":""}]
[{"$f":"Table_PI[[#This Row],[Line No.]]","v":""},{"$f":"IF(Table_SummaryPI[[#This Row],[MeassureCategory]]<>\"\",CONCATENATE(Table_SummaryPI[[#This Row],[MeassureCategory]],  \" - \", Table_SummaryPI[[#This Row],[ProposedMeasureCategory]],  \" - \", TEXT(Table_SummaryPI[[#This Row],[Size]],\"#,##0.00\"),\" \",Table_SummaryPI[[#This Row],[SizeUnit]]),\"\")","v":""},{"$f":"SUBSTITUTE(Table_PI[[#This Row],[Measure]],\"     \",\"\",1)","v":""},{"$f":"IF(Table_PI[[#This Row],[List 1]]<>\"\",Table_PI[[#This Row],[List 1]],\"\")","v":""},{"$f":"IF(Table_PI[[#This Row],[List 2]]<>\"\",Table_PI[[#This Row],[List 2]],\"\")","v":""},{"$f":"IF(Table_PI[[#This Row],[List 3]]<>\"\",Table_PI[[#This Row],[List 3]],\"\")","v":""},{"$f":"IF(Table_PI[[#This Row],[Manufacturer]]=\"\",\"\",Table_PI[[#This Row],[Manufacturer]])","v":""},{"$f":"IF(Table_PI[[#This Row],[Model Number]]=\"\",\"\",Table_PI[[#This Row],[Model Number]])","v":""},{"$f":"IF(Table_PI[[#This Row],[Serial Number(s)]]=\"\",\"\",Table_PI[[#This Row],[Serial Number(s)]])","v":""},null,{"$f":"IF(Table_PI[[#This Row],[Size]]=\"\",\"\",Table_PI[[#This Row],[Size]])","v":""},null,{"$f":"IFERROR(IF(AND(MeasureCalc(Table_PI[[#This Row],[Hide:\nFormula Name]],Table_SummaryPI[[#This Row],[Quantity]],Table_PI[[#This Row],[List 1]],Table_PI[[#This Row],[List 2]],Table_PI[[#This Row],[List 3]],Table_PI[[#This Row],[Size]],Table_PI[[#This Row],[Input 1]],Table_PI[[#This Row],[Input 2]],Table_PI[[#This Row],[Input 3]],Table_PI[[#This Row],[Input 4]],'Customer Information'!$AR$12,100,ROW())<>0,MeasureCalc(Table_PI[[#This Row],[Hide:\nFormula Name]],Table_SummaryPI[[#This Row],[Quantity]],Table_PI[[#This Row],[List 1]],Table_PI[[#This Row],[List 2]],Table_PI[[#This Row],[List 3]],Table_PI[[#This Row],[Size]],Table_PI[[#This Row],[Input 1]],Table_PI[[#This Row],[Input 2]],Table_PI[[#This Row],[Input 3]],Table_PI[[#This Row],[Input 4]],'Customer Information'!$AR$12,100,ROW())<>\"No Rebate\"),MeasureCalc(Table_PI[[#This Row],[Hide:\nFormula Name]],Table_SummaryPI[[#This Row],[Quantity]],Table_PI[[#This Row],[List 1]],Table_PI[[#This Row],[List 2]],Table_PI[[#This Row],[List 3]],Table_PI[[#This Row],[Size]],Table_PI[[#This Row],[Input 1]],Table_PI[[#This Row],[Input 2]],Table_PI[[#This Row],[Input 3]],Table_PI[[#This Row],[Input 4]],'Customer Information'!$AR$12,100,ROW()),\"\"),\"\")","v":""},{"$f":"IF(Table_PI[[#This Row],[Input 1]]<>\"\",Table_PI[[#This Row],[Input 1]],\"\")","v":""},null,{"$f":"IFERROR(IF(AND(MeasureCalc(Table_PI[[#This Row],[Hide:\nFormula Name]],Table_SummaryPI[[#This Row],[Quantity]],Table_PI[[#This Row],[List 1]],Table_PI[[#This Row],[List 2]],Table_PI[[#This Row],[List 3]],Table_PI[[#This Row],[Size]],Table_PI[[#This Row],[Input 1]],Table_PI[[#This Row],[Input 2]],Table_PI[[#This Row],[Input 3]],Table_PI[[#This Row],[Input 4]],'Customer Information'!$AR$12,101,ROW())<>0,MeasureCalc(Table_PI[[#This Row],[Hide:\nFormula Name]],Table_SummaryPI[[#This Row],[Quantity]],Table_PI[[#This Row],[List 1]],Table_PI[[#This Row],[List 2]],Table_PI[[#This Row],[List 3]],Table_PI[[#This Row],[Size]],Table_PI[[#This Row],[Input 1]],Table_PI[[#This Row],[Input 2]],Table_PI[[#This Row],[Input 3]],Table_PI[[#This Row],[Input 4]],'Customer Information'!$AR$12,101,ROW())<>\"No Rebate\"),MeasureCalc(Table_PI[[#This Row],[Hide:\nFormula Name]],Table_SummaryPI[[#This Row],[Quantity]],Table_PI[[#This Row],[List 1]],Table_PI[[#This Row],[List 2]],Table_PI[[#This Row],[List 3]],Table_PI[[#This Row],[Size]],Table_PI[[#This Row],[Input 1]],Table_PI[[#This Row],[Input 2]],Table_PI[[#This Row],[Input 3]],Table_PI[[#This Row],[Input 4]],'Customer Information'!$AR$12,101,ROW()),\"\"),\"\")","v":""},{"$f":"IF(Table_PI[[#This Row],[Input 2]]<>\"\",Table_PI[[#This Row],[Input 2]],\"\")","v":""},null,{"$f":"IFERROR(IF(AND(MeasureCalc(Table_PI[[#This Row],[Hide:\nFormula Name]],Table_SummaryPI[[#This Row],[Quantity]],Table_PI[[#This Row],[List 1]],Table_PI[[#This Row],[List 2]],Table_PI[[#This Row],[List 3]],Table_PI[[#This Row],[Size]],Table_PI[[#This Row],[Input 1]],Table_PI[[#This Row],[Input 2]],Table_PI[[#This Row],[Input 3]],Table_PI[[#This Row],[Input 4]],'Customer Information'!$AR$12,102,ROW())<>0,MeasureCalc(Table_PI[[#This Row],[Hide:\nFormula Name]],Table_SummaryPI[[#This Row],[Quantity]],Table_PI[[#This Row],[List 1]],Table_PI[[#This Row],[List 2]],Table_PI[[#This Row],[List 3]],Table_PI[[#This Row],[Size]],Table_PI[[#This Row],[Input 1]],Table_PI[[#This Row],[Input 2]],Table_PI[[#This Row],[Input 3]],Table_PI[[#This Row],[Input 4]],'Customer Information'!$AR$12,102,ROW())<>\"No Rebate\"),MeasureCalc(Table_PI[[#This Row],[Hide:\nFormula Name]],Table_SummaryPI[[#This Row],[Quantity]],Table_PI[[#This Row],[List 1]],Table_PI[[#This Row],[List 2]],Table_PI[[#This Row],[List 3]],Table_PI[[#This Row],[Size]],Table_PI[[#This Row],[Input 1]],Table_PI[[#This Row],[Input 2]],Table_PI[[#This Row],[Input 3]],Table_PI[[#This Row],[Input 4]],'Customer Information'!$AR$12,102,ROW()),\"\"),\"\")","v":""},{"$f":"IF(Table_PI[[#This Row],[Input 3]]<>\"\",Table_PI[[#This Row],[Input 3]],\"\")","v":""},null,{"$f":"IFERROR(IF(AND(MeasureCalc(Table_PI[[#This Row],[Hide:\nFormula Name]],Table_SummaryPI[[#This Row],[Quantity]],Table_PI[[#This Row],[List 1]],Table_PI[[#This Row],[List 2]],Table_PI[[#This Row],[List 3]],Table_PI[[#This Row],[Size]],Table_PI[[#This Row],[Input 1]],Table_PI[[#This Row],[Input 2]],Table_PI[[#This Row],[Input 3]],Table_PI[[#This Row],[Input 4]],'Customer Information'!$AR$12,103,ROW())<>0,MeasureCalc(Table_PI[[#This Row],[Hide:\nFormula Name]],Table_SummaryPI[[#This Row],[Quantity]],Table_PI[[#This Row],[List 1]],Table_PI[[#This Row],[List 2]],Table_PI[[#This Row],[List 3]],Table_PI[[#This Row],[Size]],Table_PI[[#This Row],[Input 1]],Table_PI[[#This Row],[Input 2]],Table_PI[[#This Row],[Input 3]],Table_PI[[#This Row],[Input 4]],'Customer Information'!$AR$12,103,ROW())<>\"No Rebate\"),MeasureCalc(Table_PI[[#This Row],[Hide:\nFormula Name]],Table_SummaryPI[[#This Row],[Quantity]],Table_PI[[#This Row],[List 1]],Table_PI[[#This Row],[List 2]],Table_PI[[#This Row],[List 3]],Table_PI[[#This Row],[Size]],Table_PI[[#This Row],[Input 1]],Table_PI[[#This Row],[Input 2]],Table_PI[[#This Row],[Input 3]],Table_PI[[#This Row],[Input 4]],'Customer Information'!$AR$12,103,ROW()),\"\"),\"\")","v":""},{"$f":"IF(Table_PI[[#This Row],[Input 4]]<>\"\",Table_PI[[#This Row],[Input 4]],\"\")","v":""},{"$f":"IF(Table_PI[[#This Row],[Quantity]]=\"\",\"\",Table_PI[[#This Row],[Quantity]])","v":""},{"$f":"IF(Table_PI[[#This Row],[Notes]]=\"\",\"\",Table_PI[[#This Row],[Notes]])","v":""},{"$f":"IF(OR(Table_PI[[#This Row],[Hide:\nBaseline kWh]]=\"\",Table_PI[[#This Row],[Hide:\nBaseline kWh]]=0),\"\",Table_PI[[#This Row],[Hide:\nBaseline kWh]])","v":""},{"$f":"IF(OR(Table_PI[[#This Row],[Hide:\nBaseline kW]]=\"\",Table_PI[[#This Row],[Hide:\nBaseline kW]]=0),\"\",Table_PI[[#This Row],[Hide:\nBaseline kW]])","v":""},{"$f":"IF(OR(Table_PI[[#This Row],[Hide:\nProposed kWh]]=\"\",Table_PI[[#This Row],[Hide:\nProposed kWh]]=0),\"\",Table_PI[[#This Row],[Hide:\nProposed kWh]])","v":""},{"$f":"IF(OR(Table_PI[[#This Row],[Hide:\nProposed kW]]=\"\",Table_PI[[#This Row],[Hide:\nProposed kW]]=0),\"\",Table_PI[[#This Row],[Hide:\nProposed kW]])","v":""},{"$f":"IF(OR(Table_PI[[#This Row],[Rebate]]=\"\",Table_PI[[#This Row],[Rebate]]=0),\"\",Table_PI[[#This Row],[Rebate]])","v":""},{"$f":"IF(OR(Table_PI[[#This Row],[Hide:\nIncremental Cost]]=\"\",Table_PI[[#This Row],[Hide:\nIncremental Cost]]=0),\"\",Table_PI[[#This Row],[Hide:\nIncremental Cost]])","v":""},{"$f":"IFERROR(IF(Table_SummaryPI[[#This Row],[kWhSavings]]=\"\",\"\",ROUND(Table_SummaryPI[[#This Row],[kWhSavings]]/$AG$401*'Customer Information'!$BC$17,2)),0)","v":""},{"$f":"IF(OR(Table_PI[[#This Row],[Annual kWh]]=\"\",Table_PI[[#This Row],[Annual kWh]]=0),\"\",Table_PI[[#This Row],[Annual kWh]])","v":""},{"$f":"IF(OR(Table_PI[[#This Row],[Peak kW]]=\"\",Table_PI[[#This Row],[Peak kW]]=0),\"\",Table_PI[[#This Row],[Peak kW]])","v":""},{"$f":"IFERROR(IF(Table_SummaryPI[[#This Row],[kWhSavings]]=\"\",\"\",$AU$9*Table_SummaryPI[[#This Row],[kWhSavings]]),0)","v":""},{"$f":"IFERROR(IF(Table_SummaryPI[[#This Row],[kWhSavings]]=\"\",\"\",$AU$14*Table_SummaryPI[[#This Row],[kWhSavings]]),0)","v":""},{"$f":"IFERROR(IF(Table_SummaryPI[[#This Row],[kWhSavings]]=\"\",\"\",$AU$18*Table_SummaryPI[[#This Row],[kWhSavings]]),0)","v":""},{"$f":"IFERROR(IF(Table_SummaryPI[[#This Row],[kWhSavings]]=\"\",\"\",$AU$22*Table_SummaryPI[[#This Row],[kWhSavings]]),0)","v":""},{"$f":"IFERROR(IF(MeasureCalc(Table_PI[[#This Row],[Hide:\nFormula Name]],Table_SummaryPI[[#This Row],[Quantity]],Table_PI[[#This Row],[List 1]],Table_PI[[#This Row],[List 2]],Table_PI[[#This Row],[List 3]],Table_PI[[#This Row],[Size]],Table_PI[[#This Row],[Input 1]],Table_PI[[#This Row],[Input 2]],Table_PI[[#This Row],[Input 3]],Table_PI[[#This Row],[Input 4]],'Customer Information'!$AR$12,200,ROW())<>\"No Rebate\",MeasureCalc(Table_PI[[#This Row],[Hide:\nFormula Name]],Table_SummaryPI[[#This Row],[Quantity]],Table_PI[[#This Row],[List 1]],Table_PI[[#This Row],[List 2]],Table_PI[[#This Row],[List 3]],Table_PI[[#This Row],[Size]],Table_PI[[#This Row],[Input 1]],Table_PI[[#This Row],[Input 2]],Table_PI[[#This Row],[Input 3]],Table_PI[[#This Row],[Input 4]],'Customer Information'!$AR$12,200,ROW()),\"\"),\"\")","v":""},{"$f":"IFERROR(IF(MeasureCalc(Table_PI[[#This Row],[Hide:\nFormula Name]],Table_SummaryPI[[#This Row],[Quantity]],Table_PI[[#This Row],[List 1]],Table_PI[[#This Row],[List 2]],Table_PI[[#This Row],[List 3]],Table_PI[[#This Row],[Size]],Table_PI[[#This Row],[Input 1]],Table_PI[[#This Row],[Input 2]],Table_PI[[#This Row],[Input 3]],Table_PI[[#This Row],[Input 4]],'Customer Information'!$AR$12,201,ROW())<>\"No Rebate\",MeasureCalc(Table_PI[[#This Row],[Hide:\nFormula Name]],Table_SummaryPI[[#This Row],[Quantity]],Table_PI[[#This Row],[List 1]],Table_PI[[#This Row],[List 2]],Table_PI[[#This Row],[List 3]],Table_PI[[#This Row],[Size]],Table_PI[[#This Row],[Input 1]],Table_PI[[#This Row],[Input 2]],Table_PI[[#This Row],[Input 3]],Table_PI[[#This Row],[Input 4]],'Customer Information'!$AR$12,201,ROW()),\"\"),\"\")","v":""}]
[{"$f":"Table_PI[[#This Row],[Line No.]]","v":""},{"$f":"IF(Table_SummaryPI[[#This Row],[MeassureCategory]]<>\"\",CONCATENATE(Table_SummaryPI[[#This Row],[MeassureCategory]],  \" - \", Table_SummaryPI[[#This Row],[ProposedMeasureCategory]],  \" - \", TEXT(Table_SummaryPI[[#This Row],[Size]],\"#,##0.00\"),\" \",Table_SummaryPI[[#This Row],[SizeUnit]]),\"\")","v":""},{"$f":"SUBSTITUTE(Table_PI[[#This Row],[Measure]],\"     \",\"\",1)","v":""},{"$f":"IF(Table_PI[[#This Row],[List 1]]<>\"\",Table_PI[[#This Row],[List 1]],\"\")","v":""},{"$f":"IF(Table_PI[[#This Row],[List 2]]<>\"\",Table_PI[[#This Row],[List 2]],\"\")","v":""},{"$f":"IF(Table_PI[[#This Row],[List 3]]<>\"\",Table_PI[[#This Row],[List 3]],\"\")","v":""},{"$f":"IF(Table_PI[[#This Row],[Manufacturer]]=\"\",\"\",Table_PI[[#This Row],[Manufacturer]])","v":""},{"$f":"IF(Table_PI[[#This Row],[Model Number]]=\"\",\"\",Table_PI[[#This Row],[Model Number]])","v":""},{"$f":"IF(Table_PI[[#This Row],[Serial Number(s)]]=\"\",\"\",Table_PI[[#This Row],[Serial Number(s)]])","v":""},null,{"$f":"IF(Table_PI[[#This Row],[Size]]=\"\",\"\",Table_PI[[#This Row],[Size]])","v":""},null,{"$f":"IFERROR(IF(AND(MeasureCalc(Table_PI[[#This Row],[Hide:\nFormula Name]],Table_SummaryPI[[#This Row],[Quantity]],Table_PI[[#This Row],[List 1]],Table_PI[[#This Row],[List 2]],Table_PI[[#This Row],[List 3]],Table_PI[[#This Row],[Size]],Table_PI[[#This Row],[Input 1]],Table_PI[[#This Row],[Input 2]],Table_PI[[#This Row],[Input 3]],Table_PI[[#This Row],[Input 4]],'Customer Information'!$AR$12,100,ROW())<>0,MeasureCalc(Table_PI[[#This Row],[Hide:\nFormula Name]],Table_SummaryPI[[#This Row],[Quantity]],Table_PI[[#This Row],[List 1]],Table_PI[[#This Row],[List 2]],Table_PI[[#This Row],[List 3]],Table_PI[[#This Row],[Size]],Table_PI[[#This Row],[Input 1]],Table_PI[[#This Row],[Input 2]],Table_PI[[#This Row],[Input 3]],Table_PI[[#This Row],[Input 4]],'Customer Information'!$AR$12,100,ROW())<>\"No Rebate\"),MeasureCalc(Table_PI[[#This Row],[Hide:\nFormula Name]],Table_SummaryPI[[#This Row],[Quantity]],Table_PI[[#This Row],[List 1]],Table_PI[[#This Row],[List 2]],Table_PI[[#This Row],[List 3]],Table_PI[[#This Row],[Size]],Table_PI[[#This Row],[Input 1]],Table_PI[[#This Row],[Input 2]],Table_PI[[#This Row],[Input 3]],Table_PI[[#This Row],[Input 4]],'Customer Information'!$AR$12,100,ROW()),\"\"),\"\")","v":""},{"$f":"IF(Table_PI[[#This Row],[Input 1]]<>\"\",Table_PI[[#This Row],[Input 1]],\"\")","v":""},null,{"$f":"IFERROR(IF(AND(MeasureCalc(Table_PI[[#This Row],[Hide:\nFormula Name]],Table_SummaryPI[[#This Row],[Quantity]],Table_PI[[#This Row],[List 1]],Table_PI[[#This Row],[List 2]],Table_PI[[#This Row],[List 3]],Table_PI[[#This Row],[Size]],Table_PI[[#This Row],[Input 1]],Table_PI[[#This Row],[Input 2]],Table_PI[[#This Row],[Input 3]],Table_PI[[#This Row],[Input 4]],'Customer Information'!$AR$12,101,ROW())<>0,MeasureCalc(Table_PI[[#This Row],[Hide:\nFormula Name]],Table_SummaryPI[[#This Row],[Quantity]],Table_PI[[#This Row],[List 1]],Table_PI[[#This Row],[List 2]],Table_PI[[#This Row],[List 3]],Table_PI[[#This Row],[Size]],Table_PI[[#This Row],[Input 1]],Table_PI[[#This Row],[Input 2]],Table_PI[[#This Row],[Input 3]],Table_PI[[#This Row],[Input 4]],'Customer Information'!$AR$12,101,ROW())<>\"No Rebate\"),MeasureCalc(Table_PI[[#This Row],[Hide:\nFormula Name]],Table_SummaryPI[[#This Row],[Quantity]],Table_PI[[#This Row],[List 1]],Table_PI[[#This Row],[List 2]],Table_PI[[#This Row],[List 3]],Table_PI[[#This Row],[Size]],Table_PI[[#This Row],[Input 1]],Table_PI[[#This Row],[Input 2]],Table_PI[[#This Row],[Input 3]],Table_PI[[#This Row],[Input 4]],'Customer Information'!$AR$12,101,ROW()),\"\"),\"\")","v":""},{"$f":"IF(Table_PI[[#This Row],[Input 2]]<>\"\",Table_PI[[#This Row],[Input 2]],\"\")","v":""},null,{"$f":"IFERROR(IF(AND(MeasureCalc(Table_PI[[#This Row],[Hide:\nFormula Name]],Table_SummaryPI[[#This Row],[Quantity]],Table_PI[[#This Row],[List 1]],Table_PI[[#This Row],[List 2]],Table_PI[[#This Row],[List 3]],Table_PI[[#This Row],[Size]],Table_PI[[#This Row],[Input 1]],Table_PI[[#This Row],[Input 2]],Table_PI[[#This Row],[Input 3]],Table_PI[[#This Row],[Input 4]],'Customer Information'!$AR$12,102,ROW())<>0,MeasureCalc(Table_PI[[#This Row],[Hide:\nFormula Name]],Table_SummaryPI[[#This Row],[Quantity]],Table_PI[[#This Row],[List 1]],Table_PI[[#This Row],[List 2]],Table_PI[[#This Row],[List 3]],Table_PI[[#This Row],[Size]],Table_PI[[#This Row],[Input 1]],Table_PI[[#This Row],[Input 2]],Table_PI[[#This Row],[Input 3]],Table_PI[[#This Row],[Input 4]],'Customer Information'!$AR$12,102,ROW())<>\"No Rebate\"),MeasureCalc(Table_PI[[#This Row],[Hide:\nFormula Name]],Table_SummaryPI[[#This Row],[Quantity]],Table_PI[[#This Row],[List 1]],Table_PI[[#This Row],[List 2]],Table_PI[[#This Row],[List 3]],Table_PI[[#This Row],[Size]],Table_PI[[#This Row],[Input 1]],Table_PI[[#This Row],[Input 2]],Table_PI[[#This Row],[Input 3]],Table_PI[[#This Row],[Input 4]],'Customer Information'!$AR$12,102,ROW()),\"\"),\"\")","v":""},{"$f":"IF(Table_PI[[#This Row],[Input 3]]<>\"\",Table_PI[[#This Row],[Input 3]],\"\")","v":""},null,{"$f":"IFERROR(IF(AND(MeasureCalc(Table_PI[[#This Row],[Hide:\nFormula Name]],Table_SummaryPI[[#This Row],[Quantity]],Table_PI[[#This Row],[List 1]],Table_PI[[#This Row],[List 2]],Table_PI[[#This Row],[List 3]],Table_PI[[#This Row],[Size]],Table_PI[[#This Row],[Input 1]],Table_PI[[#This Row],[Input 2]],Table_PI[[#This Row],[Input 3]],Table_PI[[#This Row],[Input 4]],'Customer Information'!$AR$12,103,ROW())<>0,MeasureCalc(Table_PI[[#This Row],[Hide:\nFormula Name]],Table_SummaryPI[[#This Row],[Quantity]],Table_PI[[#This Row],[List 1]],Table_PI[[#This Row],[List 2]],Table_PI[[#This Row],[List 3]],Table_PI[[#This Row],[Size]],Table_PI[[#This Row],[Input 1]],Table_PI[[#This Row],[Input 2]],Table_PI[[#This Row],[Input 3]],Table_PI[[#This Row],[Input 4]],'Customer Information'!$AR$12,103,ROW())<>\"No Rebate\"),MeasureCalc(Table_PI[[#This Row],[Hide:\nFormula Name]],Table_SummaryPI[[#This Row],[Quantity]],Table_PI[[#This Row],[List 1]],Table_PI[[#This Row],[List 2]],Table_PI[[#This Row],[List 3]],Table_PI[[#This Row],[Size]],Table_PI[[#This Row],[Input 1]],Table_PI[[#This Row],[Input 2]],Table_PI[[#This Row],[Input 3]],Table_PI[[#This Row],[Input 4]],'Customer Information'!$AR$12,103,ROW()),\"\"),\"\")","v":""},{"$f":"IF(Table_PI[[#This Row],[Input 4]]<>\"\",Table_PI[[#This Row],[Input 4]],\"\")","v":""},{"$f":"IF(Table_PI[[#This Row],[Quantity]]=\"\",\"\",Table_PI[[#This Row],[Quantity]])","v":""},{"$f":"IF(Table_PI[[#This Row],[Notes]]=\"\",\"\",Table_PI[[#This Row],[Notes]])","v":""},{"$f":"IF(OR(Table_PI[[#This Row],[Hide:\nBaseline kWh]]=\"\",Table_PI[[#This Row],[Hide:\nBaseline kWh]]=0),\"\",Table_PI[[#This Row],[Hide:\nBaseline kWh]])","v":""},{"$f":"IF(OR(Table_PI[[#This Row],[Hide:\nBaseline kW]]=\"\",Table_PI[[#This Row],[Hide:\nBaseline kW]]=0),\"\",Table_PI[[#This Row],[Hide:\nBaseline kW]])","v":""},{"$f":"IF(OR(Table_PI[[#This Row],[Hide:\nProposed kWh]]=\"\",Table_PI[[#This Row],[Hide:\nProposed kWh]]=0),\"\",Table_PI[[#This Row],[Hide:\nProposed kWh]])","v":""},{"$f":"IF(OR(Table_PI[[#This Row],[Hide:\nProposed kW]]=\"\",Table_PI[[#This Row],[Hide:\nProposed kW]]=0),\"\",Table_PI[[#This Row],[Hide:\nProposed kW]])","v":""},{"$f":"IF(OR(Table_PI[[#This Row],[Rebate]]=\"\",Table_PI[[#This Row],[Rebate]]=0),\"\",Table_PI[[#This Row],[Rebate]])","v":""},{"$f":"IF(OR(Table_PI[[#This Row],[Hide:\nIncremental Cost]]=\"\",Table_PI[[#This Row],[Hide:\nIncremental Cost]]=0),\"\",Table_PI[[#This Row],[Hide:\nIncremental Cost]])","v":""},{"$f":"IFERROR(IF(Table_SummaryPI[[#This Row],[kWhSavings]]=\"\",\"\",ROUND(Table_SummaryPI[[#This Row],[kWhSavings]]/$AG$401*'Customer Information'!$BC$17,2)),0)","v":""},{"$f":"IF(OR(Table_PI[[#This Row],[Annual kWh]]=\"\",Table_PI[[#This Row],[Annual kWh]]=0),\"\",Table_PI[[#This Row],[Annual kWh]])","v":""},{"$f":"IF(OR(Table_PI[[#This Row],[Peak kW]]=\"\",Table_PI[[#This Row],[Peak kW]]=0),\"\",Table_PI[[#This Row],[Peak kW]])","v":""},{"$f":"IFERROR(IF(Table_SummaryPI[[#This Row],[kWhSavings]]=\"\",\"\",$AU$9*Table_SummaryPI[[#This Row],[kWhSavings]]),0)","v":""},{"$f":"IFERROR(IF(Table_SummaryPI[[#This Row],[kWhSavings]]=\"\",\"\",$AU$14*Table_SummaryPI[[#This Row],[kWhSavings]]),0)","v":""},{"$f":"IFERROR(IF(Table_SummaryPI[[#This Row],[kWhSavings]]=\"\",\"\",$AU$18*Table_SummaryPI[[#This Row],[kWhSavings]]),0)","v":""},{"$f":"IFERROR(IF(Table_SummaryPI[[#This Row],[kWhSavings]]=\"\",\"\",$AU$22*Table_SummaryPI[[#This Row],[kWhSavings]]),0)","v":""},{"$f":"IFERROR(IF(MeasureCalc(Table_PI[[#This Row],[Hide:\nFormula Name]],Table_SummaryPI[[#This Row],[Quantity]],Table_PI[[#This Row],[List 1]],Table_PI[[#This Row],[List 2]],Table_PI[[#This Row],[List 3]],Table_PI[[#This Row],[Size]],Table_PI[[#This Row],[Input 1]],Table_PI[[#This Row],[Input 2]],Table_PI[[#This Row],[Input 3]],Table_PI[[#This Row],[Input 4]],'Customer Information'!$AR$12,200,ROW())<>\"No Rebate\",MeasureCalc(Table_PI[[#This Row],[Hide:\nFormula Name]],Table_SummaryPI[[#This Row],[Quantity]],Table_PI[[#This Row],[List 1]],Table_PI[[#This Row],[List 2]],Table_PI[[#This Row],[List 3]],Table_PI[[#This Row],[Size]],Table_PI[[#This Row],[Input 1]],Table_PI[[#This Row],[Input 2]],Table_PI[[#This Row],[Input 3]],Table_PI[[#This Row],[Input 4]],'Customer Information'!$AR$12,200,ROW()),\"\"),\"\")","v":""},{"$f":"IFERROR(IF(MeasureCalc(Table_PI[[#This Row],[Hide:\nFormula Name]],Table_SummaryPI[[#This Row],[Quantity]],Table_PI[[#This Row],[List 1]],Table_PI[[#This Row],[List 2]],Table_PI[[#This Row],[List 3]],Table_PI[[#This Row],[Size]],Table_PI[[#This Row],[Input 1]],Table_PI[[#This Row],[Input 2]],Table_PI[[#This Row],[Input 3]],Table_PI[[#This Row],[Input 4]],'Customer Information'!$AR$12,201,ROW())<>\"No Rebate\",MeasureCalc(Table_PI[[#This Row],[Hide:\nFormula Name]],Table_SummaryPI[[#This Row],[Quantity]],Table_PI[[#This Row],[List 1]],Table_PI[[#This Row],[List 2]],Table_PI[[#This Row],[List 3]],Table_PI[[#This Row],[Size]],Table_PI[[#This Row],[Input 1]],Table_PI[[#This Row],[Input 2]],Table_PI[[#This Row],[Input 3]],Table_PI[[#This Row],[Input 4]],'Customer Information'!$AR$12,201,ROW()),\"\"),\"\")","v":""}]
[{"$f":"Table_PI[[#This Row],[Line No.]]","v":""},{"$f":"IF(Table_SummaryPI[[#This Row],[MeassureCategory]]<>\"\",CONCATENATE(Table_SummaryPI[[#This Row],[MeassureCategory]],  \" - \", Table_SummaryPI[[#This Row],[ProposedMeasureCategory]],  \" - \", TEXT(Table_SummaryPI[[#This Row],[Size]],\"#,##0.00\"),\" \",Table_SummaryPI[[#This Row],[SizeUnit]]),\"\")","v":""},{"$f":"SUBSTITUTE(Table_PI[[#This Row],[Measure]],\"     \",\"\",1)","v":""},{"$f":"IF(Table_PI[[#This Row],[List 1]]<>\"\",Table_PI[[#This Row],[List 1]],\"\")","v":""},{"$f":"IF(Table_PI[[#This Row],[List 2]]<>\"\",Table_PI[[#This Row],[List 2]],\"\")","v":""},{"$f":"IF(Table_PI[[#This Row],[List 3]]<>\"\",Table_PI[[#This Row],[List 3]],\"\")","v":""},{"$f":"IF(Table_PI[[#This Row],[Manufacturer]]=\"\",\"\",Table_PI[[#This Row],[Manufacturer]])","v":""},{"$f":"IF(Table_PI[[#This Row],[Model Number]]=\"\",\"\",Table_PI[[#This Row],[Model Number]])","v":""},{"$f":"IF(Table_PI[[#This Row],[Serial Number(s)]]=\"\",\"\",Table_PI[[#This Row],[Serial Number(s)]])","v":""},null,{"$f":"IF(Table_PI[[#This Row],[Size]]=\"\",\"\",Table_PI[[#This Row],[Size]])","v":""},null,{"$f":"IFERROR(IF(AND(MeasureCalc(Table_PI[[#This Row],[Hide:\nFormula Name]],Table_SummaryPI[[#This Row],[Quantity]],Table_PI[[#This Row],[List 1]],Table_PI[[#This Row],[List 2]],Table_PI[[#This Row],[List 3]],Table_PI[[#This Row],[Size]],Table_PI[[#This Row],[Input 1]],Table_PI[[#This Row],[Input 2]],Table_PI[[#This Row],[Input 3]],Table_PI[[#This Row],[Input 4]],'Customer Information'!$AR$12,100,ROW())<>0,MeasureCalc(Table_PI[[#This Row],[Hide:\nFormula Name]],Table_SummaryPI[[#This Row],[Quantity]],Table_PI[[#This Row],[List 1]],Table_PI[[#This Row],[List 2]],Table_PI[[#This Row],[List 3]],Table_PI[[#This Row],[Size]],Table_PI[[#This Row],[Input 1]],Table_PI[[#This Row],[Input 2]],Table_PI[[#This Row],[Input 3]],Table_PI[[#This Row],[Input 4]],'Customer Information'!$AR$12,100,ROW())<>\"No Rebate\"),MeasureCalc(Table_PI[[#This Row],[Hide:\nFormula Name]],Table_SummaryPI[[#This Row],[Quantity]],Table_PI[[#This Row],[List 1]],Table_PI[[#This Row],[List 2]],Table_PI[[#This Row],[List 3]],Table_PI[[#This Row],[Size]],Table_PI[[#This Row],[Input 1]],Table_PI[[#This Row],[Input 2]],Table_PI[[#This Row],[Input 3]],Table_PI[[#This Row],[Input 4]],'Customer Information'!$AR$12,100,ROW()),\"\"),\"\")","v":""},{"$f":"IF(Table_PI[[#This Row],[Input 1]]<>\"\",Table_PI[[#This Row],[Input 1]],\"\")","v":""},null,{"$f":"IFERROR(IF(AND(MeasureCalc(Table_PI[[#This Row],[Hide:\nFormula Name]],Table_SummaryPI[[#This Row],[Quantity]],Table_PI[[#This Row],[List 1]],Table_PI[[#This Row],[List 2]],Table_PI[[#This Row],[List 3]],Table_PI[[#This Row],[Size]],Table_PI[[#This Row],[Input 1]],Table_PI[[#This Row],[Input 2]],Table_PI[[#This Row],[Input 3]],Table_PI[[#This Row],[Input 4]],'Customer Information'!$AR$12,101,ROW())<>0,MeasureCalc(Table_PI[[#This Row],[Hide:\nFormula Name]],Table_SummaryPI[[#This Row],[Quantity]],Table_PI[[#This Row],[List 1]],Table_PI[[#This Row],[List 2]],Table_PI[[#This Row],[List 3]],Table_PI[[#This Row],[Size]],Table_PI[[#This Row],[Input 1]],Table_PI[[#This Row],[Input 2]],Table_PI[[#This Row],[Input 3]],Table_PI[[#This Row],[Input 4]],'Customer Information'!$AR$12,101,ROW())<>\"No Rebate\"),MeasureCalc(Table_PI[[#This Row],[Hide:\nFormula Name]],Table_SummaryPI[[#This Row],[Quantity]],Table_PI[[#This Row],[List 1]],Table_PI[[#This Row],[List 2]],Table_PI[[#This Row],[List 3]],Table_PI[[#This Row],[Size]],Table_PI[[#This Row],[Input 1]],Table_PI[[#This Row],[Input 2]],Table_PI[[#This Row],[Input 3]],Table_PI[[#This Row],[Input 4]],'Customer Information'!$AR$12,101,ROW()),\"\"),\"\")","v":""},{"$f":"IF(Table_PI[[#This Row],[Input 2]]<>\"\",Table_PI[[#This Row],[Input 2]],\"\")","v":""},null,{"$f":"IFERROR(IF(AND(MeasureCalc(Table_PI[[#This Row],[Hide:\nFormula Name]],Table_SummaryPI[[#This Row],[Quantity]],Table_PI[[#This Row],[List 1]],Table_PI[[#This Row],[List 2]],Table_PI[[#This Row],[List 3]],Table_PI[[#This Row],[Size]],Table_PI[[#This Row],[Input 1]],Table_PI[[#This Row],[Input 2]],Table_PI[[#This Row],[Input 3]],Table_PI[[#This Row],[Input 4]],'Customer Information'!$AR$12,102,ROW())<>0,MeasureCalc(Table_PI[[#This Row],[Hide:\nFormula Name]],Table_SummaryPI[[#This Row],[Quantity]],Table_PI[[#This Row],[List 1]],Table_PI[[#This Row],[List 2]],Table_PI[[#This Row],[List 3]],Table_PI[[#This Row],[Size]],Table_PI[[#This Row],[Input 1]],Table_PI[[#This Row],[Input 2]],Table_PI[[#This Row],[Input 3]],Table_PI[[#This Row],[Input 4]],'Customer Information'!$AR$12,102,ROW())<>\"No Rebate\"),MeasureCalc(Table_PI[[#This Row],[Hide:\nFormula Name]],Table_SummaryPI[[#This Row],[Quantity]],Table_PI[[#This Row],[List 1]],Table_PI[[#This Row],[List 2]],Table_PI[[#This Row],[List 3]],Table_PI[[#This Row],[Size]],Table_PI[[#This Row],[Input 1]],Table_PI[[#This Row],[Input 2]],Table_PI[[#This Row],[Input 3]],Table_PI[[#This Row],[Input 4]],'Customer Information'!$AR$12,102,ROW()),\"\"),\"\")","v":""},{"$f":"IF(Table_PI[[#This Row],[Input 3]]<>\"\",Table_PI[[#This Row],[Input 3]],\"\")","v":""},null,{"$f":"IFERROR(IF(AND(MeasureCalc(Table_PI[[#This Row],[Hide:\nFormula Name]],Table_SummaryPI[[#This Row],[Quantity]],Table_PI[[#This Row],[List 1]],Table_PI[[#This Row],[List 2]],Table_PI[[#This Row],[List 3]],Table_PI[[#This Row],[Size]],Table_PI[[#This Row],[Input 1]],Table_PI[[#This Row],[Input 2]],Table_PI[[#This Row],[Input 3]],Table_PI[[#This Row],[Input 4]],'Customer Information'!$AR$12,103,ROW())<>0,MeasureCalc(Table_PI[[#This Row],[Hide:\nFormula Name]],Table_SummaryPI[[#This Row],[Quantity]],Table_PI[[#This Row],[List 1]],Table_PI[[#This Row],[List 2]],Table_PI[[#This Row],[List 3]],Table_PI[[#This Row],[Size]],Table_PI[[#This Row],[Input 1]],Table_PI[[#This Row],[Input 2]],Table_PI[[#This Row],[Input 3]],Table_PI[[#This Row],[Input 4]],'Customer Information'!$AR$12,103,ROW())<>\"No Rebate\"),MeasureCalc(Table_PI[[#This Row],[Hide:\nFormula Name]],Table_SummaryPI[[#This Row],[Quantity]],Table_PI[[#This Row],[List 1]],Table_PI[[#This Row],[List 2]],Table_PI[[#This Row],[List 3]],Table_PI[[#This Row],[Size]],Table_PI[[#This Row],[Input 1]],Table_PI[[#This Row],[Input 2]],Table_PI[[#This Row],[Input 3]],Table_PI[[#This Row],[Input 4]],'Customer Information'!$AR$12,103,ROW()),\"\"),\"\")","v":""},{"$f":"IF(Table_PI[[#This Row],[Input 4]]<>\"\",Table_PI[[#This Row],[Input 4]],\"\")","v":""},{"$f":"IF(Table_PI[[#This Row],[Quantity]]=\"\",\"\",Table_PI[[#This Row],[Quantity]])","v":""},{"$f":"IF(Table_PI[[#This Row],[Notes]]=\"\",\"\",Table_PI[[#This Row],[Notes]])","v":""},{"$f":"IF(OR(Table_PI[[#This Row],[Hide:\nBaseline kWh]]=\"\",Table_PI[[#This Row],[Hide:\nBaseline kWh]]=0),\"\",Table_PI[[#This Row],[Hide:\nBaseline kWh]])","v":""},{"$f":"IF(OR(Table_PI[[#This Row],[Hide:\nBaseline kW]]=\"\",Table_PI[[#This Row],[Hide:\nBaseline kW]]=0),\"\",Table_PI[[#This Row],[Hide:\nBaseline kW]])","v":""},{"$f":"IF(OR(Table_PI[[#This Row],[Hide:\nProposed kWh]]=\"\",Table_PI[[#This Row],[Hide:\nProposed kWh]]=0),\"\",Table_PI[[#This Row],[Hide:\nProposed kWh]])","v":""},{"$f":"IF(OR(Table_PI[[#This Row],[Hide:\nProposed kW]]=\"\",Table_PI[[#This Row],[Hide:\nProposed kW]]=0),\"\",Table_PI[[#This Row],[Hide:\nProposed kW]])","v":""},{"$f":"IF(OR(Table_PI[[#This Row],[Rebate]]=\"\",Table_PI[[#This Row],[Rebate]]=0),\"\",Table_PI[[#This Row],[Rebate]])","v":""},{"$f":"IF(OR(Table_PI[[#This Row],[Hide:\nIncremental Cost]]=\"\",Table_PI[[#This Row],[Hide:\nIncremental Cost]]=0),\"\",Table_PI[[#This Row],[Hide:\nIncremental Cost]])","v":""},{"$f":"IFERROR(IF(Table_SummaryPI[[#This Row],[kWhSavings]]=\"\",\"\",ROUND(Table_SummaryPI[[#This Row],[kWhSavings]]/$AG$401*'Customer Information'!$BC$17,2)),0)","v":""},{"$f":"IF(OR(Table_PI[[#This Row],[Annual kWh]]=\"\",Table_PI[[#This Row],[Annual kWh]]=0),\"\",Table_PI[[#This Row],[Annual kWh]])","v":""},{"$f":"IF(OR(Table_PI[[#This Row],[Peak kW]]=\"\",Table_PI[[#This Row],[Peak kW]]=0),\"\",Table_PI[[#This Row],[Peak kW]])","v":""},{"$f":"IFERROR(IF(Table_SummaryPI[[#This Row],[kWhSavings]]=\"\",\"\",$AU$9*Table_SummaryPI[[#This Row],[kWhSavings]]),0)","v":""},{"$f":"IFERROR(IF(Table_SummaryPI[[#This Row],[kWhSavings]]=\"\",\"\",$AU$14*Table_SummaryPI[[#This Row],[kWhSavings]]),0)","v":""},{"$f":"IFERROR(IF(Table_SummaryPI[[#This Row],[kWhSavings]]=\"\",\"\",$AU$18*Table_SummaryPI[[#This Row],[kWhSavings]]),0)","v":""},{"$f":"IFERROR(IF(Table_SummaryPI[[#This Row],[kWhSavings]]=\"\",\"\",$AU$22*Table_SummaryPI[[#This Row],[kWhSavings]]),0)","v":""},{"$f":"IFERROR(IF(MeasureCalc(Table_PI[[#This Row],[Hide:\nFormula Name]],Table_SummaryPI[[#This Row],[Quantity]],Table_PI[[#This Row],[List 1]],Table_PI[[#This Row],[List 2]],Table_PI[[#This Row],[List 3]],Table_PI[[#This Row],[Size]],Table_PI[[#This Row],[Input 1]],Table_PI[[#This Row],[Input 2]],Table_PI[[#This Row],[Input 3]],Table_PI[[#This Row],[Input 4]],'Customer Information'!$AR$12,200,ROW())<>\"No Rebate\",MeasureCalc(Table_PI[[#This Row],[Hide:\nFormula Name]],Table_SummaryPI[[#This Row],[Quantity]],Table_PI[[#This Row],[List 1]],Table_PI[[#This Row],[List 2]],Table_PI[[#This Row],[List 3]],Table_PI[[#This Row],[Size]],Table_PI[[#This Row],[Input 1]],Table_PI[[#This Row],[Input 2]],Table_PI[[#This Row],[Input 3]],Table_PI[[#This Row],[Input 4]],'Customer Information'!$AR$12,200,ROW()),\"\"),\"\")","v":""},{"$f":"IFERROR(IF(MeasureCalc(Table_PI[[#This Row],[Hide:\nFormula Name]],Table_SummaryPI[[#This Row],[Quantity]],Table_PI[[#This Row],[List 1]],Table_PI[[#This Row],[List 2]],Table_PI[[#This Row],[List 3]],Table_PI[[#This Row],[Size]],Table_PI[[#This Row],[Input 1]],Table_PI[[#This Row],[Input 2]],Table_PI[[#This Row],[Input 3]],Table_PI[[#This Row],[Input 4]],'Customer Information'!$AR$12,201,ROW())<>\"No Rebate\",MeasureCalc(Table_PI[[#This Row],[Hide:\nFormula Name]],Table_SummaryPI[[#This Row],[Quantity]],Table_PI[[#This Row],[List 1]],Table_PI[[#This Row],[List 2]],Table_PI[[#This Row],[List 3]],Table_PI[[#This Row],[Size]],Table_PI[[#This Row],[Input 1]],Table_PI[[#This Row],[Input 2]],Table_PI[[#This Row],[Input 3]],Table_PI[[#This Row],[Input 4]],'Customer Information'!$AR$12,201,ROW()),\"\"),\"\")","v":""}]
[{"$f":"Table_PI[[#This Row],[Line No.]]","v":""},{"$f":"IF(Table_SummaryPI[[#This Row],[MeassureCategory]]<>\"\",CONCATENATE(Table_SummaryPI[[#This Row],[MeassureCategory]],  \" - \", Table_SummaryPI[[#This Row],[ProposedMeasureCategory]],  \" - \", TEXT(Table_SummaryPI[[#This Row],[Size]],\"#,##0.00\"),\" \",Table_SummaryPI[[#This Row],[SizeUnit]]),\"\")","v":""},{"$f":"SUBSTITUTE(Table_PI[[#This Row],[Measure]],\"     \",\"\",1)","v":""},{"$f":"IF(Table_PI[[#This Row],[List 1]]<>\"\",Table_PI[[#This Row],[List 1]],\"\")","v":""},{"$f":"IF(Table_PI[[#This Row],[List 2]]<>\"\",Table_PI[[#This Row],[List 2]],\"\")","v":""},{"$f":"IF(Table_PI[[#This Row],[List 3]]<>\"\",Table_PI[[#This Row],[List 3]],\"\")","v":""},{"$f":"IF(Table_PI[[#This Row],[Manufacturer]]=\"\",\"\",Table_PI[[#This Row],[Manufacturer]])","v":""},{"$f":"IF(Table_PI[[#This Row],[Model Number]]=\"\",\"\",Table_PI[[#This Row],[Model Number]])","v":""},{"$f":"IF(Table_PI[[#This Row],[Serial Number(s)]]=\"\",\"\",Table_PI[[#This Row],[Serial Number(s)]])","v":""},null,{"$f":"IF(Table_PI[[#This Row],[Size]]=\"\",\"\",Table_PI[[#This Row],[Size]])","v":""},null,{"$f":"IFERROR(IF(AND(MeasureCalc(Table_PI[[#This Row],[Hide:\nFormula Name]],Table_SummaryPI[[#This Row],[Quantity]],Table_PI[[#This Row],[List 1]],Table_PI[[#This Row],[List 2]],Table_PI[[#This Row],[List 3]],Table_PI[[#This Row],[Size]],Table_PI[[#This Row],[Input 1]],Table_PI[[#This Row],[Input 2]],Table_PI[[#This Row],[Input 3]],Table_PI[[#This Row],[Input 4]],'Customer Information'!$AR$12,100,ROW())<>0,MeasureCalc(Table_PI[[#This Row],[Hide:\nFormula Name]],Table_SummaryPI[[#This Row],[Quantity]],Table_PI[[#This Row],[List 1]],Table_PI[[#This Row],[List 2]],Table_PI[[#This Row],[List 3]],Table_PI[[#This Row],[Size]],Table_PI[[#This Row],[Input 1]],Table_PI[[#This Row],[Input 2]],Table_PI[[#This Row],[Input 3]],Table_PI[[#This Row],[Input 4]],'Customer Information'!$AR$12,100,ROW())<>\"No Rebate\"),MeasureCalc(Table_PI[[#This Row],[Hide:\nFormula Name]],Table_SummaryPI[[#This Row],[Quantity]],Table_PI[[#This Row],[List 1]],Table_PI[[#This Row],[List 2]],Table_PI[[#This Row],[List 3]],Table_PI[[#This Row],[Size]],Table_PI[[#This Row],[Input 1]],Table_PI[[#This Row],[Input 2]],Table_PI[[#This Row],[Input 3]],Table_PI[[#This Row],[Input 4]],'Customer Information'!$AR$12,100,ROW()),\"\"),\"\")","v":""},{"$f":"IF(Table_PI[[#This Row],[Input 1]]<>\"\",Table_PI[[#This Row],[Input 1]],\"\")","v":""},null,{"$f":"IFERROR(IF(AND(MeasureCalc(Table_PI[[#This Row],[Hide:\nFormula Name]],Table_SummaryPI[[#This Row],[Quantity]],Table_PI[[#This Row],[List 1]],Table_PI[[#This Row],[List 2]],Table_PI[[#This Row],[List 3]],Table_PI[[#This Row],[Size]],Table_PI[[#This Row],[Input 1]],Table_PI[[#This Row],[Input 2]],Table_PI[[#This Row],[Input 3]],Table_PI[[#This Row],[Input 4]],'Customer Information'!$AR$12,101,ROW())<>0,MeasureCalc(Table_PI[[#This Row],[Hide:\nFormula Name]],Table_SummaryPI[[#This Row],[Quantity]],Table_PI[[#This Row],[List 1]],Table_PI[[#This Row],[List 2]],Table_PI[[#This Row],[List 3]],Table_PI[[#This Row],[Size]],Table_PI[[#This Row],[Input 1]],Table_PI[[#This Row],[Input 2]],Table_PI[[#This Row],[Input 3]],Table_PI[[#This Row],[Input 4]],'Customer Information'!$AR$12,101,ROW())<>\"No Rebate\"),MeasureCalc(Table_PI[[#This Row],[Hide:\nFormula Name]],Table_SummaryPI[[#This Row],[Quantity]],Table_PI[[#This Row],[List 1]],Table_PI[[#This Row],[List 2]],Table_PI[[#This Row],[List 3]],Table_PI[[#This Row],[Size]],Table_PI[[#This Row],[Input 1]],Table_PI[[#This Row],[Input 2]],Table_PI[[#This Row],[Input 3]],Table_PI[[#This Row],[Input 4]],'Customer Information'!$AR$12,101,ROW()),\"\"),\"\")","v":""},{"$f":"IF(Table_PI[[#This Row],[Input 2]]<>\"\",Table_PI[[#This Row],[Input 2]],\"\")","v":""},null,{"$f":"IFERROR(IF(AND(MeasureCalc(Table_PI[[#This Row],[Hide:\nFormula Name]],Table_SummaryPI[[#This Row],[Quantity]],Table_PI[[#This Row],[List 1]],Table_PI[[#This Row],[List 2]],Table_PI[[#This Row],[List 3]],Table_PI[[#This Row],[Size]],Table_PI[[#This Row],[Input 1]],Table_PI[[#This Row],[Input 2]],Table_PI[[#This Row],[Input 3]],Table_PI[[#This Row],[Input 4]],'Customer Information'!$AR$12,102,ROW())<>0,MeasureCalc(Table_PI[[#This Row],[Hide:\nFormula Name]],Table_SummaryPI[[#This Row],[Quantity]],Table_PI[[#This Row],[List 1]],Table_PI[[#This Row],[List 2]],Table_PI[[#This Row],[List 3]],Table_PI[[#This Row],[Size]],Table_PI[[#This Row],[Input 1]],Table_PI[[#This Row],[Input 2]],Table_PI[[#This Row],[Input 3]],Table_PI[[#This Row],[Input 4]],'Customer Information'!$AR$12,102,ROW())<>\"No Rebate\"),MeasureCalc(Table_PI[[#This Row],[Hide:\nFormula Name]],Table_SummaryPI[[#This Row],[Quantity]],Table_PI[[#This Row],[List 1]],Table_PI[[#This Row],[List 2]],Table_PI[[#This Row],[List 3]],Table_PI[[#This Row],[Size]],Table_PI[[#This Row],[Input 1]],Table_PI[[#This Row],[Input 2]],Table_PI[[#This Row],[Input 3]],Table_PI[[#This Row],[Input 4]],'Customer Information'!$AR$12,102,ROW()),\"\"),\"\")","v":""},{"$f":"IF(Table_PI[[#This Row],[Input 3]]<>\"\",Table_PI[[#This Row],[Input 3]],\"\")","v":""},null,{"$f":"IFERROR(IF(AND(MeasureCalc(Table_PI[[#This Row],[Hide:\nFormula Name]],Table_SummaryPI[[#This Row],[Quantity]],Table_PI[[#This Row],[List 1]],Table_PI[[#This Row],[List 2]],Table_PI[[#This Row],[List 3]],Table_PI[[#This Row],[Size]],Table_PI[[#This Row],[Input 1]],Table_PI[[#This Row],[Input 2]],Table_PI[[#This Row],[Input 3]],Table_PI[[#This Row],[Input 4]],'Customer Information'!$AR$12,103,ROW())<>0,MeasureCalc(Table_PI[[#This Row],[Hide:\nFormula Name]],Table_SummaryPI[[#This Row],[Quantity]],Table_PI[[#This Row],[List 1]],Table_PI[[#This Row],[List 2]],Table_PI[[#This Row],[List 3]],Table_PI[[#This Row],[Size]],Table_PI[[#This Row],[Input 1]],Table_PI[[#This Row],[Input 2]],Table_PI[[#This Row],[Input 3]],Table_PI[[#This Row],[Input 4]],'Customer Information'!$AR$12,103,ROW())<>\"No Rebate\"),MeasureCalc(Table_PI[[#This Row],[Hide:\nFormula Name]],Table_SummaryPI[[#This Row],[Quantity]],Table_PI[[#This Row],[List 1]],Table_PI[[#This Row],[List 2]],Table_PI[[#This Row],[List 3]],Table_PI[[#This Row],[Size]],Table_PI[[#This Row],[Input 1]],Table_PI[[#This Row],[Input 2]],Table_PI[[#This Row],[Input 3]],Table_PI[[#This Row],[Input 4]],'Customer Information'!$AR$12,103,ROW()),\"\"),\"\")","v":""},{"$f":"IF(Table_PI[[#This Row],[Input 4]]<>\"\",Table_PI[[#This Row],[Input 4]],\"\")","v":""},{"$f":"IF(Table_PI[[#This Row],[Quantity]]=\"\",\"\",Table_PI[[#This Row],[Quantity]])","v":""},{"$f":"IF(Table_PI[[#This Row],[Notes]]=\"\",\"\",Table_PI[[#This Row],[Notes]])","v":""},{"$f":"IF(OR(Table_PI[[#This Row],[Hide:\nBaseline kWh]]=\"\",Table_PI[[#This Row],[Hide:\nBaseline kWh]]=0),\"\",Table_PI[[#This Row],[Hide:\nBaseline kWh]])","v":""},{"$f":"IF(OR(Table_PI[[#This Row],[Hide:\nBaseline kW]]=\"\",Table_PI[[#This Row],[Hide:\nBaseline kW]]=0),\"\",Table_PI[[#This Row],[Hide:\nBaseline kW]])","v":""},{"$f":"IF(OR(Table_PI[[#This Row],[Hide:\nProposed kWh]]=\"\",Table_PI[[#This Row],[Hide:\nProposed kWh]]=0),\"\",Table_PI[[#This Row],[Hide:\nProposed kWh]])","v":""},{"$f":"IF(OR(Table_PI[[#This Row],[Hide:\nProposed kW]]=\"\",Table_PI[[#This Row],[Hide:\nProposed kW]]=0),\"\",Table_PI[[#This Row],[Hide:\nProposed kW]])","v":""},{"$f":"IF(OR(Table_PI[[#This Row],[Rebate]]=\"\",Table_PI[[#This Row],[Rebate]]=0),\"\",Table_PI[[#This Row],[Rebate]])","v":""},{"$f":"IF(OR(Table_PI[[#This Row],[Hide:\nIncremental Cost]]=\"\",Table_PI[[#This Row],[Hide:\nIncremental Cost]]=0),\"\",Table_PI[[#This Row],[Hide:\nIncremental Cost]])","v":""},{"$f":"IFERROR(IF(Table_SummaryPI[[#This Row],[kWhSavings]]=\"\",\"\",ROUND(Table_SummaryPI[[#This Row],[kWhSavings]]/$AG$401*'Customer Information'!$BC$17,2)),0)","v":""},{"$f":"IF(OR(Table_PI[[#This Row],[Annual kWh]]=\"\",Table_PI[[#This Row],[Annual kWh]]=0),\"\",Table_PI[[#This Row],[Annual kWh]])","v":""},{"$f":"IF(OR(Table_PI[[#This Row],[Peak kW]]=\"\",Table_PI[[#This Row],[Peak kW]]=0),\"\",Table_PI[[#This Row],[Peak kW]])","v":""},{"$f":"IFERROR(IF(Table_SummaryPI[[#This Row],[kWhSavings]]=\"\",\"\",$AU$9*Table_SummaryPI[[#This Row],[kWhSavings]]),0)","v":""},{"$f":"IFERROR(IF(Table_SummaryPI[[#This Row],[kWhSavings]]=\"\",\"\",$AU$14*Table_SummaryPI[[#This Row],[kWhSavings]]),0)","v":""},{"$f":"IFERROR(IF(Table_SummaryPI[[#This Row],[kWhSavings]]=\"\",\"\",$AU$18*Table_SummaryPI[[#This Row],[kWhSavings]]),0)","v":""},{"$f":"IFERROR(IF(Table_SummaryPI[[#This Row],[kWhSavings]]=\"\",\"\",$AU$22*Table_SummaryPI[[#This Row],[kWhSavings]]),0)","v":""},{"$f":"IFERROR(IF(MeasureCalc(Table_PI[[#This Row],[Hide:\nFormula Name]],Table_SummaryPI[[#This Row],[Quantity]],Table_PI[[#This Row],[List 1]],Table_PI[[#This Row],[List 2]],Table_PI[[#This Row],[List 3]],Table_PI[[#This Row],[Size]],Table_PI[[#This Row],[Input 1]],Table_PI[[#This Row],[Input 2]],Table_PI[[#This Row],[Input 3]],Table_PI[[#This Row],[Input 4]],'Customer Information'!$AR$12,200,ROW())<>\"No Rebate\",MeasureCalc(Table_PI[[#This Row],[Hide:\nFormula Name]],Table_SummaryPI[[#This Row],[Quantity]],Table_PI[[#This Row],[List 1]],Table_PI[[#This Row],[List 2]],Table_PI[[#This Row],[List 3]],Table_PI[[#This Row],[Size]],Table_PI[[#This Row],[Input 1]],Table_PI[[#This Row],[Input 2]],Table_PI[[#This Row],[Input 3]],Table_PI[[#This Row],[Input 4]],'Customer Information'!$AR$12,200,ROW()),\"\"),\"\")","v":""},{"$f":"IFERROR(IF(MeasureCalc(Table_PI[[#This Row],[Hide:\nFormula Name]],Table_SummaryPI[[#This Row],[Quantity]],Table_PI[[#This Row],[List 1]],Table_PI[[#This Row],[List 2]],Table_PI[[#This Row],[List 3]],Table_PI[[#This Row],[Size]],Table_PI[[#This Row],[Input 1]],Table_PI[[#This Row],[Input 2]],Table_PI[[#This Row],[Input 3]],Table_PI[[#This Row],[Input 4]],'Customer Information'!$AR$12,201,ROW())<>\"No Rebate\",MeasureCalc(Table_PI[[#This Row],[Hide:\nFormula Name]],Table_SummaryPI[[#This Row],[Quantity]],Table_PI[[#This Row],[List 1]],Table_PI[[#This Row],[List 2]],Table_PI[[#This Row],[List 3]],Table_PI[[#This Row],[Size]],Table_PI[[#This Row],[Input 1]],Table_PI[[#This Row],[Input 2]],Table_PI[[#This Row],[Input 3]],Table_PI[[#This Row],[Input 4]],'Customer Information'!$AR$12,201,ROW()),\"\"),\"\")","v":""}]
[{"$f":"Table_PI[[#This Row],[Line No.]]","v":""},{"$f":"IF(Table_SummaryPI[[#This Row],[MeassureCategory]]<>\"\",CONCATENATE(Table_SummaryPI[[#This Row],[MeassureCategory]],  \" - \", Table_SummaryPI[[#This Row],[ProposedMeasureCategory]],  \" - \", TEXT(Table_SummaryPI[[#This Row],[Size]],\"#,##0.00\"),\" \",Table_SummaryPI[[#This Row],[SizeUnit]]),\"\")","v":""},{"$f":"SUBSTITUTE(Table_PI[[#This Row],[Measure]],\"     \",\"\",1)","v":""},{"$f":"IF(Table_PI[[#This Row],[List 1]]<>\"\",Table_PI[[#This Row],[List 1]],\"\")","v":""},{"$f":"IF(Table_PI[[#This Row],[List 2]]<>\"\",Table_PI[[#This Row],[List 2]],\"\")","v":""},{"$f":"IF(Table_PI[[#This Row],[List 3]]<>\"\",Table_PI[[#This Row],[List 3]],\"\")","v":""},{"$f":"IF(Table_PI[[#This Row],[Manufacturer]]=\"\",\"\",Table_PI[[#This Row],[Manufacturer]])","v":""},{"$f":"IF(Table_PI[[#This Row],[Model Number]]=\"\",\"\",Table_PI[[#This Row],[Model Number]])","v":""},{"$f":"IF(Table_PI[[#This Row],[Serial Number(s)]]=\"\",\"\",Table_PI[[#This Row],[Serial Number(s)]])","v":""},null,{"$f":"IF(Table_PI[[#This Row],[Size]]=\"\",\"\",Table_PI[[#This Row],[Size]])","v":""},null,{"$f":"IFERROR(IF(AND(MeasureCalc(Table_PI[[#This Row],[Hide:\nFormula Name]],Table_SummaryPI[[#This Row],[Quantity]],Table_PI[[#This Row],[List 1]],Table_PI[[#This Row],[List 2]],Table_PI[[#This Row],[List 3]],Table_PI[[#This Row],[Size]],Table_PI[[#This Row],[Input 1]],Table_PI[[#This Row],[Input 2]],Table_PI[[#This Row],[Input 3]],Table_PI[[#This Row],[Input 4]],'Customer Information'!$AR$12,100,ROW())<>0,MeasureCalc(Table_PI[[#This Row],[Hide:\nFormula Name]],Table_SummaryPI[[#This Row],[Quantity]],Table_PI[[#This Row],[List 1]],Table_PI[[#This Row],[List 2]],Table_PI[[#This Row],[List 3]],Table_PI[[#This Row],[Size]],Table_PI[[#This Row],[Input 1]],Table_PI[[#This Row],[Input 2]],Table_PI[[#This Row],[Input 3]],Table_PI[[#This Row],[Input 4]],'Customer Information'!$AR$12,100,ROW())<>\"No Rebate\"),MeasureCalc(Table_PI[[#This Row],[Hide:\nFormula Name]],Table_SummaryPI[[#This Row],[Quantity]],Table_PI[[#This Row],[List 1]],Table_PI[[#This Row],[List 2]],Table_PI[[#This Row],[List 3]],Table_PI[[#This Row],[Size]],Table_PI[[#This Row],[Input 1]],Table_PI[[#This Row],[Input 2]],Table_PI[[#This Row],[Input 3]],Table_PI[[#This Row],[Input 4]],'Customer Information'!$AR$12,100,ROW()),\"\"),\"\")","v":""},{"$f":"IF(Table_PI[[#This Row],[Input 1]]<>\"\",Table_PI[[#This Row],[Input 1]],\"\")","v":""},null,{"$f":"IFERROR(IF(AND(MeasureCalc(Table_PI[[#This Row],[Hide:\nFormula Name]],Table_SummaryPI[[#This Row],[Quantity]],Table_PI[[#This Row],[List 1]],Table_PI[[#This Row],[List 2]],Table_PI[[#This Row],[List 3]],Table_PI[[#This Row],[Size]],Table_PI[[#This Row],[Input 1]],Table_PI[[#This Row],[Input 2]],Table_PI[[#This Row],[Input 3]],Table_PI[[#This Row],[Input 4]],'Customer Information'!$AR$12,101,ROW())<>0,MeasureCalc(Table_PI[[#This Row],[Hide:\nFormula Name]],Table_SummaryPI[[#This Row],[Quantity]],Table_PI[[#This Row],[List 1]],Table_PI[[#This Row],[List 2]],Table_PI[[#This Row],[List 3]],Table_PI[[#This Row],[Size]],Table_PI[[#This Row],[Input 1]],Table_PI[[#This Row],[Input 2]],Table_PI[[#This Row],[Input 3]],Table_PI[[#This Row],[Input 4]],'Customer Information'!$AR$12,101,ROW())<>\"No Rebate\"),MeasureCalc(Table_PI[[#This Row],[Hide:\nFormula Name]],Table_SummaryPI[[#This Row],[Quantity]],Table_PI[[#This Row],[List 1]],Table_PI[[#This Row],[List 2]],Table_PI[[#This Row],[List 3]],Table_PI[[#This Row],[Size]],Table_PI[[#This Row],[Input 1]],Table_PI[[#This Row],[Input 2]],Table_PI[[#This Row],[Input 3]],Table_PI[[#This Row],[Input 4]],'Customer Information'!$AR$12,101,ROW()),\"\"),\"\")","v":""},{"$f":"IF(Table_PI[[#This Row],[Input 2]]<>\"\",Table_PI[[#This Row],[Input 2]],\"\")","v":""},null,{"$f":"IFERROR(IF(AND(MeasureCalc(Table_PI[[#This Row],[Hide:\nFormula Name]],Table_SummaryPI[[#This Row],[Quantity]],Table_PI[[#This Row],[List 1]],Table_PI[[#This Row],[List 2]],Table_PI[[#This Row],[List 3]],Table_PI[[#This Row],[Size]],Table_PI[[#This Row],[Input 1]],Table_PI[[#This Row],[Input 2]],Table_PI[[#This Row],[Input 3]],Table_PI[[#This Row],[Input 4]],'Customer Information'!$AR$12,102,ROW())<>0,MeasureCalc(Table_PI[[#This Row],[Hide:\nFormula Name]],Table_SummaryPI[[#This Row],[Quantity]],Table_PI[[#This Row],[List 1]],Table_PI[[#This Row],[List 2]],Table_PI[[#This Row],[List 3]],Table_PI[[#This Row],[Size]],Table_PI[[#This Row],[Input 1]],Table_PI[[#This Row],[Input 2]],Table_PI[[#This Row],[Input 3]],Table_PI[[#This Row],[Input 4]],'Customer Information'!$AR$12,102,ROW())<>\"No Rebate\"),MeasureCalc(Table_PI[[#This Row],[Hide:\nFormula Name]],Table_SummaryPI[[#This Row],[Quantity]],Table_PI[[#This Row],[List 1]],Table_PI[[#This Row],[List 2]],Table_PI[[#This Row],[List 3]],Table_PI[[#This Row],[Size]],Table_PI[[#This Row],[Input 1]],Table_PI[[#This Row],[Input 2]],Table_PI[[#This Row],[Input 3]],Table_PI[[#This Row],[Input 4]],'Customer Information'!$AR$12,102,ROW()),\"\"),\"\")","v":""},{"$f":"IF(Table_PI[[#This Row],[Input 3]]<>\"\",Table_PI[[#This Row],[Input 3]],\"\")","v":""},null,{"$f":"IFERROR(IF(AND(MeasureCalc(Table_PI[[#This Row],[Hide:\nFormula Name]],Table_SummaryPI[[#This Row],[Quantity]],Table_PI[[#This Row],[List 1]],Table_PI[[#This Row],[List 2]],Table_PI[[#This Row],[List 3]],Table_PI[[#This Row],[Size]],Table_PI[[#This Row],[Input 1]],Table_PI[[#This Row],[Input 2]],Table_PI[[#This Row],[Input 3]],Table_PI[[#This Row],[Input 4]],'Customer Information'!$AR$12,103,ROW())<>0,MeasureCalc(Table_PI[[#This Row],[Hide:\nFormula Name]],Table_SummaryPI[[#This Row],[Quantity]],Table_PI[[#This Row],[List 1]],Table_PI[[#This Row],[List 2]],Table_PI[[#This Row],[List 3]],Table_PI[[#This Row],[Size]],Table_PI[[#This Row],[Input 1]],Table_PI[[#This Row],[Input 2]],Table_PI[[#This Row],[Input 3]],Table_PI[[#This Row],[Input 4]],'Customer Information'!$AR$12,103,ROW())<>\"No Rebate\"),MeasureCalc(Table_PI[[#This Row],[Hide:\nFormula Name]],Table_SummaryPI[[#This Row],[Quantity]],Table_PI[[#This Row],[List 1]],Table_PI[[#This Row],[List 2]],Table_PI[[#This Row],[List 3]],Table_PI[[#This Row],[Size]],Table_PI[[#This Row],[Input 1]],Table_PI[[#This Row],[Input 2]],Table_PI[[#This Row],[Input 3]],Table_PI[[#This Row],[Input 4]],'Customer Information'!$AR$12,103,ROW()),\"\"),\"\")","v":""},{"$f":"IF(Table_PI[[#This Row],[Input 4]]<>\"\",Table_PI[[#This Row],[Input 4]],\"\")","v":""},{"$f":"IF(Table_PI[[#This Row],[Quantity]]=\"\",\"\",Table_PI[[#This Row],[Quantity]])","v":""},{"$f":"IF(Table_PI[[#This Row],[Notes]]=\"\",\"\",Table_PI[[#This Row],[Notes]])","v":""},{"$f":"IF(OR(Table_PI[[#This Row],[Hide:\nBaseline kWh]]=\"\",Table_PI[[#This Row],[Hide:\nBaseline kWh]]=0),\"\",Table_PI[[#This Row],[Hide:\nBaseline kWh]])","v":""},{"$f":"IF(OR(Table_PI[[#This Row],[Hide:\nBaseline kW]]=\"\",Table_PI[[#This Row],[Hide:\nBaseline kW]]=0),\"\",Table_PI[[#This Row],[Hide:\nBaseline kW]])","v":""},{"$f":"IF(OR(Table_PI[[#This Row],[Hide:\nProposed kWh]]=\"\",Table_PI[[#This Row],[Hide:\nProposed kWh]]=0),\"\",Table_PI[[#This Row],[Hide:\nProposed kWh]])","v":""},{"$f":"IF(OR(Table_PI[[#This Row],[Hide:\nProposed kW]]=\"\",Table_PI[[#This Row],[Hide:\nProposed kW]]=0),\"\",Table_PI[[#This Row],[Hide:\nProposed kW]])","v":""},{"$f":"IF(OR(Table_PI[[#This Row],[Rebate]]=\"\",Table_PI[[#This Row],[Rebate]]=0),\"\",Table_PI[[#This Row],[Rebate]])","v":""},{"$f":"IF(OR(Table_PI[[#This Row],[Hide:\nIncremental Cost]]=\"\",Table_PI[[#This Row],[Hide:\nIncremental Cost]]=0),\"\",Table_PI[[#This Row],[Hide:\nIncremental Cost]])","v":""},{"$f":"IFERROR(IF(Table_SummaryPI[[#This Row],[kWhSavings]]=\"\",\"\",ROUND(Table_SummaryPI[[#This Row],[kWhSavings]]/$AG$401*'Customer Information'!$BC$17,2)),0)","v":""},{"$f":"IF(OR(Table_PI[[#This Row],[Annual kWh]]=\"\",Table_PI[[#This Row],[Annual kWh]]=0),\"\",Table_PI[[#This Row],[Annual kWh]])","v":""},{"$f":"IF(OR(Table_PI[[#This Row],[Peak kW]]=\"\",Table_PI[[#This Row],[Peak kW]]=0),\"\",Table_PI[[#This Row],[Peak kW]])","v":""},{"$f":"IFERROR(IF(Table_SummaryPI[[#This Row],[kWhSavings]]=\"\",\"\",$AU$9*Table_SummaryPI[[#This Row],[kWhSavings]]),0)","v":""},{"$f":"IFERROR(IF(Table_SummaryPI[[#This Row],[kWhSavings]]=\"\",\"\",$AU$14*Table_SummaryPI[[#This Row],[kWhSavings]]),0)","v":""},{"$f":"IFERROR(IF(Table_SummaryPI[[#This Row],[kWhSavings]]=\"\",\"\",$AU$18*Table_SummaryPI[[#This Row],[kWhSavings]]),0)","v":""},{"$f":"IFERROR(IF(Table_SummaryPI[[#This Row],[kWhSavings]]=\"\",\"\",$AU$22*Table_SummaryPI[[#This Row],[kWhSavings]]),0)","v":""},{"$f":"IFERROR(IF(MeasureCalc(Table_PI[[#This Row],[Hide:\nFormula Name]],Table_SummaryPI[[#This Row],[Quantity]],Table_PI[[#This Row],[List 1]],Table_PI[[#This Row],[List 2]],Table_PI[[#This Row],[List 3]],Table_PI[[#This Row],[Size]],Table_PI[[#This Row],[Input 1]],Table_PI[[#This Row],[Input 2]],Table_PI[[#This Row],[Input 3]],Table_PI[[#This Row],[Input 4]],'Customer Information'!$AR$12,200,ROW())<>\"No Rebate\",MeasureCalc(Table_PI[[#This Row],[Hide:\nFormula Name]],Table_SummaryPI[[#This Row],[Quantity]],Table_PI[[#This Row],[List 1]],Table_PI[[#This Row],[List 2]],Table_PI[[#This Row],[List 3]],Table_PI[[#This Row],[Size]],Table_PI[[#This Row],[Input 1]],Table_PI[[#This Row],[Input 2]],Table_PI[[#This Row],[Input 3]],Table_PI[[#This Row],[Input 4]],'Customer Information'!$AR$12,200,ROW()),\"\"),\"\")","v":""},{"$f":"IFERROR(IF(MeasureCalc(Table_PI[[#This Row],[Hide:\nFormula Name]],Table_SummaryPI[[#This Row],[Quantity]],Table_PI[[#This Row],[List 1]],Table_PI[[#This Row],[List 2]],Table_PI[[#This Row],[List 3]],Table_PI[[#This Row],[Size]],Table_PI[[#This Row],[Input 1]],Table_PI[[#This Row],[Input 2]],Table_PI[[#This Row],[Input 3]],Table_PI[[#This Row],[Input 4]],'Customer Information'!$AR$12,201,ROW())<>\"No Rebate\",MeasureCalc(Table_PI[[#This Row],[Hide:\nFormula Name]],Table_SummaryPI[[#This Row],[Quantity]],Table_PI[[#This Row],[List 1]],Table_PI[[#This Row],[List 2]],Table_PI[[#This Row],[List 3]],Table_PI[[#This Row],[Size]],Table_PI[[#This Row],[Input 1]],Table_PI[[#This Row],[Input 2]],Table_PI[[#This Row],[Input 3]],Table_PI[[#This Row],[Input 4]],'Customer Information'!$AR$12,201,ROW()),\"\"),\"\")","v":""}]
[{"$f":"Table_PI[[#This Row],[Line No.]]","v":""},{"$f":"IF(Table_SummaryPI[[#This Row],[MeassureCategory]]<>\"\",CONCATENATE(Table_SummaryPI[[#This Row],[MeassureCategory]],  \" - \", Table_SummaryPI[[#This Row],[ProposedMeasureCategory]],  \" - \", TEXT(Table_SummaryPI[[#This Row],[Size]],\"#,##0.00\"),\" \",Table_SummaryPI[[#This Row],[SizeUnit]]),\"\")","v":""},{"$f":"SUBSTITUTE(Table_PI[[#This Row],[Measure]],\"     \",\"\",1)","v":""},{"$f":"IF(Table_PI[[#This Row],[List 1]]<>\"\",Table_PI[[#This Row],[List 1]],\"\")","v":""},{"$f":"IF(Table_PI[[#This Row],[List 2]]<>\"\",Table_PI[[#This Row],[List 2]],\"\")","v":""},{"$f":"IF(Table_PI[[#This Row],[List 3]]<>\"\",Table_PI[[#This Row],[List 3]],\"\")","v":""},{"$f":"IF(Table_PI[[#This Row],[Manufacturer]]=\"\",\"\",Table_PI[[#This Row],[Manufacturer]])","v":""},{"$f":"IF(Table_PI[[#This Row],[Model Number]]=\"\",\"\",Table_PI[[#This Row],[Model Number]])","v":""},{"$f":"IF(Table_PI[[#This Row],[Serial Number(s)]]=\"\",\"\",Table_PI[[#This Row],[Serial Number(s)]])","v":""},null,{"$f":"IF(Table_PI[[#This Row],[Size]]=\"\",\"\",Table_PI[[#This Row],[Size]])","v":""},null,{"$f":"IFERROR(IF(AND(MeasureCalc(Table_PI[[#This Row],[Hide:\nFormula Name]],Table_SummaryPI[[#This Row],[Quantity]],Table_PI[[#This Row],[List 1]],Table_PI[[#This Row],[List 2]],Table_PI[[#This Row],[List 3]],Table_PI[[#This Row],[Size]],Table_PI[[#This Row],[Input 1]],Table_PI[[#This Row],[Input 2]],Table_PI[[#This Row],[Input 3]],Table_PI[[#This Row],[Input 4]],'Customer Information'!$AR$12,100,ROW())<>0,MeasureCalc(Table_PI[[#This Row],[Hide:\nFormula Name]],Table_SummaryPI[[#This Row],[Quantity]],Table_PI[[#This Row],[List 1]],Table_PI[[#This Row],[List 2]],Table_PI[[#This Row],[List 3]],Table_PI[[#This Row],[Size]],Table_PI[[#This Row],[Input 1]],Table_PI[[#This Row],[Input 2]],Table_PI[[#This Row],[Input 3]],Table_PI[[#This Row],[Input 4]],'Customer Information'!$AR$12,100,ROW())<>\"No Rebate\"),MeasureCalc(Table_PI[[#This Row],[Hide:\nFormula Name]],Table_SummaryPI[[#This Row],[Quantity]],Table_PI[[#This Row],[List 1]],Table_PI[[#This Row],[List 2]],Table_PI[[#This Row],[List 3]],Table_PI[[#This Row],[Size]],Table_PI[[#This Row],[Input 1]],Table_PI[[#This Row],[Input 2]],Table_PI[[#This Row],[Input 3]],Table_PI[[#This Row],[Input 4]],'Customer Information'!$AR$12,100,ROW()),\"\"),\"\")","v":""},{"$f":"IF(Table_PI[[#This Row],[Input 1]]<>\"\",Table_PI[[#This Row],[Input 1]],\"\")","v":""},null,{"$f":"IFERROR(IF(AND(MeasureCalc(Table_PI[[#This Row],[Hide:\nFormula Name]],Table_SummaryPI[[#This Row],[Quantity]],Table_PI[[#This Row],[List 1]],Table_PI[[#This Row],[List 2]],Table_PI[[#This Row],[List 3]],Table_PI[[#This Row],[Size]],Table_PI[[#This Row],[Input 1]],Table_PI[[#This Row],[Input 2]],Table_PI[[#This Row],[Input 3]],Table_PI[[#This Row],[Input 4]],'Customer Information'!$AR$12,101,ROW())<>0,MeasureCalc(Table_PI[[#This Row],[Hide:\nFormula Name]],Table_SummaryPI[[#This Row],[Quantity]],Table_PI[[#This Row],[List 1]],Table_PI[[#This Row],[List 2]],Table_PI[[#This Row],[List 3]],Table_PI[[#This Row],[Size]],Table_PI[[#This Row],[Input 1]],Table_PI[[#This Row],[Input 2]],Table_PI[[#This Row],[Input 3]],Table_PI[[#This Row],[Input 4]],'Customer Information'!$AR$12,101,ROW())<>\"No Rebate\"),MeasureCalc(Table_PI[[#This Row],[Hide:\nFormula Name]],Table_SummaryPI[[#This Row],[Quantity]],Table_PI[[#This Row],[List 1]],Table_PI[[#This Row],[List 2]],Table_PI[[#This Row],[List 3]],Table_PI[[#This Row],[Size]],Table_PI[[#This Row],[Input 1]],Table_PI[[#This Row],[Input 2]],Table_PI[[#This Row],[Input 3]],Table_PI[[#This Row],[Input 4]],'Customer Information'!$AR$12,101,ROW()),\"\"),\"\")","v":""},{"$f":"IF(Table_PI[[#This Row],[Input 2]]<>\"\",Table_PI[[#This Row],[Input 2]],\"\")","v":""},null,{"$f":"IFERROR(IF(AND(MeasureCalc(Table_PI[[#This Row],[Hide:\nFormula Name]],Table_SummaryPI[[#This Row],[Quantity]],Table_PI[[#This Row],[List 1]],Table_PI[[#This Row],[List 2]],Table_PI[[#This Row],[List 3]],Table_PI[[#This Row],[Size]],Table_PI[[#This Row],[Input 1]],Table_PI[[#This Row],[Input 2]],Table_PI[[#This Row],[Input 3]],Table_PI[[#This Row],[Input 4]],'Customer Information'!$AR$12,102,ROW())<>0,MeasureCalc(Table_PI[[#This Row],[Hide:\nFormula Name]],Table_SummaryPI[[#This Row],[Quantity]],Table_PI[[#This Row],[List 1]],Table_PI[[#This Row],[List 2]],Table_PI[[#This Row],[List 3]],Table_PI[[#This Row],[Size]],Table_PI[[#This Row],[Input 1]],Table_PI[[#This Row],[Input 2]],Table_PI[[#This Row],[Input 3]],Table_PI[[#This Row],[Input 4]],'Customer Information'!$AR$12,102,ROW())<>\"No Rebate\"),MeasureCalc(Table_PI[[#This Row],[Hide:\nFormula Name]],Table_SummaryPI[[#This Row],[Quantity]],Table_PI[[#This Row],[List 1]],Table_PI[[#This Row],[List 2]],Table_PI[[#This Row],[List 3]],Table_PI[[#This Row],[Size]],Table_PI[[#This Row],[Input 1]],Table_PI[[#This Row],[Input 2]],Table_PI[[#This Row],[Input 3]],Table_PI[[#This Row],[Input 4]],'Customer Information'!$AR$12,102,ROW()),\"\"),\"\")","v":""},{"$f":"IF(Table_PI[[#This Row],[Input 3]]<>\"\",Table_PI[[#This Row],[Input 3]],\"\")","v":""},null,{"$f":"IFERROR(IF(AND(MeasureCalc(Table_PI[[#This Row],[Hide:\nFormula Name]],Table_SummaryPI[[#This Row],[Quantity]],Table_PI[[#This Row],[List 1]],Table_PI[[#This Row],[List 2]],Table_PI[[#This Row],[List 3]],Table_PI[[#This Row],[Size]],Table_PI[[#This Row],[Input 1]],Table_PI[[#This Row],[Input 2]],Table_PI[[#This Row],[Input 3]],Table_PI[[#This Row],[Input 4]],'Customer Information'!$AR$12,103,ROW())<>0,MeasureCalc(Table_PI[[#This Row],[Hide:\nFormula Name]],Table_SummaryPI[[#This Row],[Quantity]],Table_PI[[#This Row],[List 1]],Table_PI[[#This Row],[List 2]],Table_PI[[#This Row],[List 3]],Table_PI[[#This Row],[Size]],Table_PI[[#This Row],[Input 1]],Table_PI[[#This Row],[Input 2]],Table_PI[[#This Row],[Input 3]],Table_PI[[#This Row],[Input 4]],'Customer Information'!$AR$12,103,ROW())<>\"No Rebate\"),MeasureCalc(Table_PI[[#This Row],[Hide:\nFormula Name]],Table_SummaryPI[[#This Row],[Quantity]],Table_PI[[#This Row],[List 1]],Table_PI[[#This Row],[List 2]],Table_PI[[#This Row],[List 3]],Table_PI[[#This Row],[Size]],Table_PI[[#This Row],[Input 1]],Table_PI[[#This Row],[Input 2]],Table_PI[[#This Row],[Input 3]],Table_PI[[#This Row],[Input 4]],'Customer Information'!$AR$12,103,ROW()),\"\"),\"\")","v":""},{"$f":"IF(Table_PI[[#This Row],[Input 4]]<>\"\",Table_PI[[#This Row],[Input 4]],\"\")","v":""},{"$f":"IF(Table_PI[[#This Row],[Quantity]]=\"\",\"\",Table_PI[[#This Row],[Quantity]])","v":""},{"$f":"IF(Table_PI[[#This Row],[Notes]]=\"\",\"\",Table_PI[[#This Row],[Notes]])","v":""},{"$f":"IF(OR(Table_PI[[#This Row],[Hide:\nBaseline kWh]]=\"\",Table_PI[[#This Row],[Hide:\nBaseline kWh]]=0),\"\",Table_PI[[#This Row],[Hide:\nBaseline kWh]])","v":""},{"$f":"IF(OR(Table_PI[[#This Row],[Hide:\nBaseline kW]]=\"\",Table_PI[[#This Row],[Hide:\nBaseline kW]]=0),\"\",Table_PI[[#This Row],[Hide:\nBaseline kW]])","v":""},{"$f":"IF(OR(Table_PI[[#This Row],[Hide:\nProposed kWh]]=\"\",Table_PI[[#This Row],[Hide:\nProposed kWh]]=0),\"\",Table_PI[[#This Row],[Hide:\nProposed kWh]])","v":""},{"$f":"IF(OR(Table_PI[[#This Row],[Hide:\nProposed kW]]=\"\",Table_PI[[#This Row],[Hide:\nProposed kW]]=0),\"\",Table_PI[[#This Row],[Hide:\nProposed kW]])","v":""},{"$f":"IF(OR(Table_PI[[#This Row],[Rebate]]=\"\",Table_PI[[#This Row],[Rebate]]=0),\"\",Table_PI[[#This Row],[Rebate]])","v":""},{"$f":"IF(OR(Table_PI[[#This Row],[Hide:\nIncremental Cost]]=\"\",Table_PI[[#This Row],[Hide:\nIncremental Cost]]=0),\"\",Table_PI[[#This Row],[Hide:\nIncremental Cost]])","v":""},{"$f":"IFERROR(IF(Table_SummaryPI[[#This Row],[kWhSavings]]=\"\",\"\",ROUND(Table_SummaryPI[[#This Row],[kWhSavings]]/$AG$401*'Customer Information'!$BC$17,2)),0)","v":""},{"$f":"IF(OR(Table_PI[[#This Row],[Annual kWh]]=\"\",Table_PI[[#This Row],[Annual kWh]]=0),\"\",Table_PI[[#This Row],[Annual kWh]])","v":""},{"$f":"IF(OR(Table_PI[[#This Row],[Peak kW]]=\"\",Table_PI[[#This Row],[Peak kW]]=0),\"\",Table_PI[[#This Row],[Peak kW]])","v":""},{"$f":"IFERROR(IF(Table_SummaryPI[[#This Row],[kWhSavings]]=\"\",\"\",$AU$9*Table_SummaryPI[[#This Row],[kWhSavings]]),0)","v":""},{"$f":"IFERROR(IF(Table_SummaryPI[[#This Row],[kWhSavings]]=\"\",\"\",$AU$14*Table_SummaryPI[[#This Row],[kWhSavings]]),0)","v":""},{"$f":"IFERROR(IF(Table_SummaryPI[[#This Row],[kWhSavings]]=\"\",\"\",$AU$18*Table_SummaryPI[[#This Row],[kWhSavings]]),0)","v":""},{"$f":"IFERROR(IF(Table_SummaryPI[[#This Row],[kWhSavings]]=\"\",\"\",$AU$22*Table_SummaryPI[[#This Row],[kWhSavings]]),0)","v":""},{"$f":"IFERROR(IF(MeasureCalc(Table_PI[[#This Row],[Hide:\nFormula Name]],Table_SummaryPI[[#This Row],[Quantity]],Table_PI[[#This Row],[List 1]],Table_PI[[#This Row],[List 2]],Table_PI[[#This Row],[List 3]],Table_PI[[#This Row],[Size]],Table_PI[[#This Row],[Input 1]],Table_PI[[#This Row],[Input 2]],Table_PI[[#This Row],[Input 3]],Table_PI[[#This Row],[Input 4]],'Customer Information'!$AR$12,200,ROW())<>\"No Rebate\",MeasureCalc(Table_PI[[#This Row],[Hide:\nFormula Name]],Table_SummaryPI[[#This Row],[Quantity]],Table_PI[[#This Row],[List 1]],Table_PI[[#This Row],[List 2]],Table_PI[[#This Row],[List 3]],Table_PI[[#This Row],[Size]],Table_PI[[#This Row],[Input 1]],Table_PI[[#This Row],[Input 2]],Table_PI[[#This Row],[Input 3]],Table_PI[[#This Row],[Input 4]],'Customer Information'!$AR$12,200,ROW()),\"\"),\"\")","v":""},{"$f":"IFERROR(IF(MeasureCalc(Table_PI[[#This Row],[Hide:\nFormula Name]],Table_SummaryPI[[#This Row],[Quantity]],Table_PI[[#This Row],[List 1]],Table_PI[[#This Row],[List 2]],Table_PI[[#This Row],[List 3]],Table_PI[[#This Row],[Size]],Table_PI[[#This Row],[Input 1]],Table_PI[[#This Row],[Input 2]],Table_PI[[#This Row],[Input 3]],Table_PI[[#This Row],[Input 4]],'Customer Information'!$AR$12,201,ROW())<>\"No Rebate\",MeasureCalc(Table_PI[[#This Row],[Hide:\nFormula Name]],Table_SummaryPI[[#This Row],[Quantity]],Table_PI[[#This Row],[List 1]],Table_PI[[#This Row],[List 2]],Table_PI[[#This Row],[List 3]],Table_PI[[#This Row],[Size]],Table_PI[[#This Row],[Input 1]],Table_PI[[#This Row],[Input 2]],Table_PI[[#This Row],[Input 3]],Table_PI[[#This Row],[Input 4]],'Customer Information'!$AR$12,201,ROW()),\"\"),\"\")","v":""}]
[{"$f":"Table_PI[[#This Row],[Line No.]]","v":""},{"$f":"IF(Table_SummaryPI[[#This Row],[MeassureCategory]]<>\"\",CONCATENATE(Table_SummaryPI[[#This Row],[MeassureCategory]],  \" - \", Table_SummaryPI[[#This Row],[ProposedMeasureCategory]],  \" - \", TEXT(Table_SummaryPI[[#This Row],[Size]],\"#,##0.00\"),\" \",Table_SummaryPI[[#This Row],[SizeUnit]]),\"\")","v":""},{"$f":"SUBSTITUTE(Table_PI[[#This Row],[Measure]],\"     \",\"\",1)","v":""},{"$f":"IF(Table_PI[[#This Row],[List 1]]<>\"\",Table_PI[[#This Row],[List 1]],\"\")","v":""},{"$f":"IF(Table_PI[[#This Row],[List 2]]<>\"\",Table_PI[[#This Row],[List 2]],\"\")","v":""},{"$f":"IF(Table_PI[[#This Row],[List 3]]<>\"\",Table_PI[[#This Row],[List 3]],\"\")","v":""},{"$f":"IF(Table_PI[[#This Row],[Manufacturer]]=\"\",\"\",Table_PI[[#This Row],[Manufacturer]])","v":""},{"$f":"IF(Table_PI[[#This Row],[Model Number]]=\"\",\"\",Table_PI[[#This Row],[Model Number]])","v":""},{"$f":"IF(Table_PI[[#This Row],[Serial Number(s)]]=\"\",\"\",Table_PI[[#This Row],[Serial Number(s)]])","v":""},null,{"$f":"IF(Table_PI[[#This Row],[Size]]=\"\",\"\",Table_PI[[#This Row],[Size]])","v":""},null,{"$f":"IFERROR(IF(AND(MeasureCalc(Table_PI[[#This Row],[Hide:\nFormula Name]],Table_SummaryPI[[#This Row],[Quantity]],Table_PI[[#This Row],[List 1]],Table_PI[[#This Row],[List 2]],Table_PI[[#This Row],[List 3]],Table_PI[[#This Row],[Size]],Table_PI[[#This Row],[Input 1]],Table_PI[[#This Row],[Input 2]],Table_PI[[#This Row],[Input 3]],Table_PI[[#This Row],[Input 4]],'Customer Information'!$AR$12,100,ROW())<>0,MeasureCalc(Table_PI[[#This Row],[Hide:\nFormula Name]],Table_SummaryPI[[#This Row],[Quantity]],Table_PI[[#This Row],[List 1]],Table_PI[[#This Row],[List 2]],Table_PI[[#This Row],[List 3]],Table_PI[[#This Row],[Size]],Table_PI[[#This Row],[Input 1]],Table_PI[[#This Row],[Input 2]],Table_PI[[#This Row],[Input 3]],Table_PI[[#This Row],[Input 4]],'Customer Information'!$AR$12,100,ROW())<>\"No Rebate\"),MeasureCalc(Table_PI[[#This Row],[Hide:\nFormula Name]],Table_SummaryPI[[#This Row],[Quantity]],Table_PI[[#This Row],[List 1]],Table_PI[[#This Row],[List 2]],Table_PI[[#This Row],[List 3]],Table_PI[[#This Row],[Size]],Table_PI[[#This Row],[Input 1]],Table_PI[[#This Row],[Input 2]],Table_PI[[#This Row],[Input 3]],Table_PI[[#This Row],[Input 4]],'Customer Information'!$AR$12,100,ROW()),\"\"),\"\")","v":""},{"$f":"IF(Table_PI[[#This Row],[Input 1]]<>\"\",Table_PI[[#This Row],[Input 1]],\"\")","v":""},null,{"$f":"IFERROR(IF(AND(MeasureCalc(Table_PI[[#This Row],[Hide:\nFormula Name]],Table_SummaryPI[[#This Row],[Quantity]],Table_PI[[#This Row],[List 1]],Table_PI[[#This Row],[List 2]],Table_PI[[#This Row],[List 3]],Table_PI[[#This Row],[Size]],Table_PI[[#This Row],[Input 1]],Table_PI[[#This Row],[Input 2]],Table_PI[[#This Row],[Input 3]],Table_PI[[#This Row],[Input 4]],'Customer Information'!$AR$12,101,ROW())<>0,MeasureCalc(Table_PI[[#This Row],[Hide:\nFormula Name]],Table_SummaryPI[[#This Row],[Quantity]],Table_PI[[#This Row],[List 1]],Table_PI[[#This Row],[List 2]],Table_PI[[#This Row],[List 3]],Table_PI[[#This Row],[Size]],Table_PI[[#This Row],[Input 1]],Table_PI[[#This Row],[Input 2]],Table_PI[[#This Row],[Input 3]],Table_PI[[#This Row],[Input 4]],'Customer Information'!$AR$12,101,ROW())<>\"No Rebate\"),MeasureCalc(Table_PI[[#This Row],[Hide:\nFormula Name]],Table_SummaryPI[[#This Row],[Quantity]],Table_PI[[#This Row],[List 1]],Table_PI[[#This Row],[List 2]],Table_PI[[#This Row],[List 3]],Table_PI[[#This Row],[Size]],Table_PI[[#This Row],[Input 1]],Table_PI[[#This Row],[Input 2]],Table_PI[[#This Row],[Input 3]],Table_PI[[#This Row],[Input 4]],'Customer Information'!$AR$12,101,ROW()),\"\"),\"\")","v":""},{"$f":"IF(Table_PI[[#This Row],[Input 2]]<>\"\",Table_PI[[#This Row],[Input 2]],\"\")","v":""},null,{"$f":"IFERROR(IF(AND(MeasureCalc(Table_PI[[#This Row],[Hide:\nFormula Name]],Table_SummaryPI[[#This Row],[Quantity]],Table_PI[[#This Row],[List 1]],Table_PI[[#This Row],[List 2]],Table_PI[[#This Row],[List 3]],Table_PI[[#This Row],[Size]],Table_PI[[#This Row],[Input 1]],Table_PI[[#This Row],[Input 2]],Table_PI[[#This Row],[Input 3]],Table_PI[[#This Row],[Input 4]],'Customer Information'!$AR$12,102,ROW())<>0,MeasureCalc(Table_PI[[#This Row],[Hide:\nFormula Name]],Table_SummaryPI[[#This Row],[Quantity]],Table_PI[[#This Row],[List 1]],Table_PI[[#This Row],[List 2]],Table_PI[[#This Row],[List 3]],Table_PI[[#This Row],[Size]],Table_PI[[#This Row],[Input 1]],Table_PI[[#This Row],[Input 2]],Table_PI[[#This Row],[Input 3]],Table_PI[[#This Row],[Input 4]],'Customer Information'!$AR$12,102,ROW())<>\"No Rebate\"),MeasureCalc(Table_PI[[#This Row],[Hide:\nFormula Name]],Table_SummaryPI[[#This Row],[Quantity]],Table_PI[[#This Row],[List 1]],Table_PI[[#This Row],[List 2]],Table_PI[[#This Row],[List 3]],Table_PI[[#This Row],[Size]],Table_PI[[#This Row],[Input 1]],Table_PI[[#This Row],[Input 2]],Table_PI[[#This Row],[Input 3]],Table_PI[[#This Row],[Input 4]],'Customer Information'!$AR$12,102,ROW()),\"\"),\"\")","v":""},{"$f":"IF(Table_PI[[#This Row],[Input 3]]<>\"\",Table_PI[[#This Row],[Input 3]],\"\")","v":""},null,{"$f":"IFERROR(IF(AND(MeasureCalc(Table_PI[[#This Row],[Hide:\nFormula Name]],Table_SummaryPI[[#This Row],[Quantity]],Table_PI[[#This Row],[List 1]],Table_PI[[#This Row],[List 2]],Table_PI[[#This Row],[List 3]],Table_PI[[#This Row],[Size]],Table_PI[[#This Row],[Input 1]],Table_PI[[#This Row],[Input 2]],Table_PI[[#This Row],[Input 3]],Table_PI[[#This Row],[Input 4]],'Customer Information'!$AR$12,103,ROW())<>0,MeasureCalc(Table_PI[[#This Row],[Hide:\nFormula Name]],Table_SummaryPI[[#This Row],[Quantity]],Table_PI[[#This Row],[List 1]],Table_PI[[#This Row],[List 2]],Table_PI[[#This Row],[List 3]],Table_PI[[#This Row],[Size]],Table_PI[[#This Row],[Input 1]],Table_PI[[#This Row],[Input 2]],Table_PI[[#This Row],[Input 3]],Table_PI[[#This Row],[Input 4]],'Customer Information'!$AR$12,103,ROW())<>\"No Rebate\"),MeasureCalc(Table_PI[[#This Row],[Hide:\nFormula Name]],Table_SummaryPI[[#This Row],[Quantity]],Table_PI[[#This Row],[List 1]],Table_PI[[#This Row],[List 2]],Table_PI[[#This Row],[List 3]],Table_PI[[#This Row],[Size]],Table_PI[[#This Row],[Input 1]],Table_PI[[#This Row],[Input 2]],Table_PI[[#This Row],[Input 3]],Table_PI[[#This Row],[Input 4]],'Customer Information'!$AR$12,103,ROW()),\"\"),\"\")","v":""},{"$f":"IF(Table_PI[[#This Row],[Input 4]]<>\"\",Table_PI[[#This Row],[Input 4]],\"\")","v":""},{"$f":"IF(Table_PI[[#This Row],[Quantity]]=\"\",\"\",Table_PI[[#This Row],[Quantity]])","v":""},{"$f":"IF(Table_PI[[#This Row],[Notes]]=\"\",\"\",Table_PI[[#This Row],[Notes]])","v":""},{"$f":"IF(OR(Table_PI[[#This Row],[Hide:\nBaseline kWh]]=\"\",Table_PI[[#This Row],[Hide:\nBaseline kWh]]=0),\"\",Table_PI[[#This Row],[Hide:\nBaseline kWh]])","v":""},{"$f":"IF(OR(Table_PI[[#This Row],[Hide:\nBaseline kW]]=\"\",Table_PI[[#This Row],[Hide:\nBaseline kW]]=0),\"\",Table_PI[[#This Row],[Hide:\nBaseline kW]])","v":""},{"$f":"IF(OR(Table_PI[[#This Row],[Hide:\nProposed kWh]]=\"\",Table_PI[[#This Row],[Hide:\nProposed kWh]]=0),\"\",Table_PI[[#This Row],[Hide:\nProposed kWh]])","v":""},{"$f":"IF(OR(Table_PI[[#This Row],[Hide:\nProposed kW]]=\"\",Table_PI[[#This Row],[Hide:\nProposed kW]]=0),\"\",Table_PI[[#This Row],[Hide:\nProposed kW]])","v":""},{"$f":"IF(OR(Table_PI[[#This Row],[Rebate]]=\"\",Table_PI[[#This Row],[Rebate]]=0),\"\",Table_PI[[#This Row],[Rebate]])","v":""},{"$f":"IF(OR(Table_PI[[#This Row],[Hide:\nIncremental Cost]]=\"\",Table_PI[[#This Row],[Hide:\nIncremental Cost]]=0),\"\",Table_PI[[#This Row],[Hide:\nIncremental Cost]])","v":""},{"$f":"IFERROR(IF(Table_SummaryPI[[#This Row],[kWhSavings]]=\"\",\"\",ROUND(Table_SummaryPI[[#This Row],[kWhSavings]]/$AG$401*'Customer Information'!$BC$17,2)),0)","v":""},{"$f":"IF(OR(Table_PI[[#This Row],[Annual kWh]]=\"\",Table_PI[[#This Row],[Annual kWh]]=0),\"\",Table_PI[[#This Row],[Annual kWh]])","v":""},{"$f":"IF(OR(Table_PI[[#This Row],[Peak kW]]=\"\",Table_PI[[#This Row],[Peak kW]]=0),\"\",Table_PI[[#This Row],[Peak kW]])","v":""},{"$f":"IFERROR(IF(Table_SummaryPI[[#This Row],[kWhSavings]]=\"\",\"\",$AU$9*Table_SummaryPI[[#This Row],[kWhSavings]]),0)","v":""},{"$f":"IFERROR(IF(Table_SummaryPI[[#This Row],[kWhSavings]]=\"\",\"\",$AU$14*Table_SummaryPI[[#This Row],[kWhSavings]]),0)","v":""},{"$f":"IFERROR(IF(Table_SummaryPI[[#This Row],[kWhSavings]]=\"\",\"\",$AU$18*Table_SummaryPI[[#This Row],[kWhSavings]]),0)","v":""},{"$f":"IFERROR(IF(Table_SummaryPI[[#This Row],[kWhSavings]]=\"\",\"\",$AU$22*Table_SummaryPI[[#This Row],[kWhSavings]]),0)","v":""},{"$f":"IFERROR(IF(MeasureCalc(Table_PI[[#This Row],[Hide:\nFormula Name]],Table_SummaryPI[[#This Row],[Quantity]],Table_PI[[#This Row],[List 1]],Table_PI[[#This Row],[List 2]],Table_PI[[#This Row],[List 3]],Table_PI[[#This Row],[Size]],Table_PI[[#This Row],[Input 1]],Table_PI[[#This Row],[Input 2]],Table_PI[[#This Row],[Input 3]],Table_PI[[#This Row],[Input 4]],'Customer Information'!$AR$12,200,ROW())<>\"No Rebate\",MeasureCalc(Table_PI[[#This Row],[Hide:\nFormula Name]],Table_SummaryPI[[#This Row],[Quantity]],Table_PI[[#This Row],[List 1]],Table_PI[[#This Row],[List 2]],Table_PI[[#This Row],[List 3]],Table_PI[[#This Row],[Size]],Table_PI[[#This Row],[Input 1]],Table_PI[[#This Row],[Input 2]],Table_PI[[#This Row],[Input 3]],Table_PI[[#This Row],[Input 4]],'Customer Information'!$AR$12,200,ROW()),\"\"),\"\")","v":""},{"$f":"IFERROR(IF(MeasureCalc(Table_PI[[#This Row],[Hide:\nFormula Name]],Table_SummaryPI[[#This Row],[Quantity]],Table_PI[[#This Row],[List 1]],Table_PI[[#This Row],[List 2]],Table_PI[[#This Row],[List 3]],Table_PI[[#This Row],[Size]],Table_PI[[#This Row],[Input 1]],Table_PI[[#This Row],[Input 2]],Table_PI[[#This Row],[Input 3]],Table_PI[[#This Row],[Input 4]],'Customer Information'!$AR$12,201,ROW())<>\"No Rebate\",MeasureCalc(Table_PI[[#This Row],[Hide:\nFormula Name]],Table_SummaryPI[[#This Row],[Quantity]],Table_PI[[#This Row],[List 1]],Table_PI[[#This Row],[List 2]],Table_PI[[#This Row],[List 3]],Table_PI[[#This Row],[Size]],Table_PI[[#This Row],[Input 1]],Table_PI[[#This Row],[Input 2]],Table_PI[[#This Row],[Input 3]],Table_PI[[#This Row],[Input 4]],'Customer Information'!$AR$12,201,ROW()),\"\"),\"\")","v":""}]
[{"$f":"Table_PI[[#This Row],[Line No.]]","v":""},{"$f":"IF(Table_SummaryPI[[#This Row],[MeassureCategory]]<>\"\",CONCATENATE(Table_SummaryPI[[#This Row],[MeassureCategory]],  \" - \", Table_SummaryPI[[#This Row],[ProposedMeasureCategory]],  \" - \", TEXT(Table_SummaryPI[[#This Row],[Size]],\"#,##0.00\"),\" \",Table_SummaryPI[[#This Row],[SizeUnit]]),\"\")","v":""},{"$f":"SUBSTITUTE(Table_PI[[#This Row],[Measure]],\"     \",\"\",1)","v":""},{"$f":"IF(Table_PI[[#This Row],[List 1]]<>\"\",Table_PI[[#This Row],[List 1]],\"\")","v":""},{"$f":"IF(Table_PI[[#This Row],[List 2]]<>\"\",Table_PI[[#This Row],[List 2]],\"\")","v":""},{"$f":"IF(Table_PI[[#This Row],[List 3]]<>\"\",Table_PI[[#This Row],[List 3]],\"\")","v":""},{"$f":"IF(Table_PI[[#This Row],[Manufacturer]]=\"\",\"\",Table_PI[[#This Row],[Manufacturer]])","v":""},{"$f":"IF(Table_PI[[#This Row],[Model Number]]=\"\",\"\",Table_PI[[#This Row],[Model Number]])","v":""},{"$f":"IF(Table_PI[[#This Row],[Serial Number(s)]]=\"\",\"\",Table_PI[[#This Row],[Serial Number(s)]])","v":""},null,{"$f":"IF(Table_PI[[#This Row],[Size]]=\"\",\"\",Table_PI[[#This Row],[Size]])","v":""},null,{"$f":"IFERROR(IF(AND(MeasureCalc(Table_PI[[#This Row],[Hide:\nFormula Name]],Table_SummaryPI[[#This Row],[Quantity]],Table_PI[[#This Row],[List 1]],Table_PI[[#This Row],[List 2]],Table_PI[[#This Row],[List 3]],Table_PI[[#This Row],[Size]],Table_PI[[#This Row],[Input 1]],Table_PI[[#This Row],[Input 2]],Table_PI[[#This Row],[Input 3]],Table_PI[[#This Row],[Input 4]],'Customer Information'!$AR$12,100,ROW())<>0,MeasureCalc(Table_PI[[#This Row],[Hide:\nFormula Name]],Table_SummaryPI[[#This Row],[Quantity]],Table_PI[[#This Row],[List 1]],Table_PI[[#This Row],[List 2]],Table_PI[[#This Row],[List 3]],Table_PI[[#This Row],[Size]],Table_PI[[#This Row],[Input 1]],Table_PI[[#This Row],[Input 2]],Table_PI[[#This Row],[Input 3]],Table_PI[[#This Row],[Input 4]],'Customer Information'!$AR$12,100,ROW())<>\"No Rebate\"),MeasureCalc(Table_PI[[#This Row],[Hide:\nFormula Name]],Table_SummaryPI[[#This Row],[Quantity]],Table_PI[[#This Row],[List 1]],Table_PI[[#This Row],[List 2]],Table_PI[[#This Row],[List 3]],Table_PI[[#This Row],[Size]],Table_PI[[#This Row],[Input 1]],Table_PI[[#This Row],[Input 2]],Table_PI[[#This Row],[Input 3]],Table_PI[[#This Row],[Input 4]],'Customer Information'!$AR$12,100,ROW()),\"\"),\"\")","v":""},{"$f":"IF(Table_PI[[#This Row],[Input 1]]<>\"\",Table_PI[[#This Row],[Input 1]],\"\")","v":""},null,{"$f":"IFERROR(IF(AND(MeasureCalc(Table_PI[[#This Row],[Hide:\nFormula Name]],Table_SummaryPI[[#This Row],[Quantity]],Table_PI[[#This Row],[List 1]],Table_PI[[#This Row],[List 2]],Table_PI[[#This Row],[List 3]],Table_PI[[#This Row],[Size]],Table_PI[[#This Row],[Input 1]],Table_PI[[#This Row],[Input 2]],Table_PI[[#This Row],[Input 3]],Table_PI[[#This Row],[Input 4]],'Customer Information'!$AR$12,101,ROW())<>0,MeasureCalc(Table_PI[[#This Row],[Hide:\nFormula Name]],Table_SummaryPI[[#This Row],[Quantity]],Table_PI[[#This Row],[List 1]],Table_PI[[#This Row],[List 2]],Table_PI[[#This Row],[List 3]],Table_PI[[#This Row],[Size]],Table_PI[[#This Row],[Input 1]],Table_PI[[#This Row],[Input 2]],Table_PI[[#This Row],[Input 3]],Table_PI[[#This Row],[Input 4]],'Customer Information'!$AR$12,101,ROW())<>\"No Rebate\"),MeasureCalc(Table_PI[[#This Row],[Hide:\nFormula Name]],Table_SummaryPI[[#This Row],[Quantity]],Table_PI[[#This Row],[List 1]],Table_PI[[#This Row],[List 2]],Table_PI[[#This Row],[List 3]],Table_PI[[#This Row],[Size]],Table_PI[[#This Row],[Input 1]],Table_PI[[#This Row],[Input 2]],Table_PI[[#This Row],[Input 3]],Table_PI[[#This Row],[Input 4]],'Customer Information'!$AR$12,101,ROW()),\"\"),\"\")","v":""},{"$f":"IF(Table_PI[[#This Row],[Input 2]]<>\"\",Table_PI[[#This Row],[Input 2]],\"\")","v":""},null,{"$f":"IFERROR(IF(AND(MeasureCalc(Table_PI[[#This Row],[Hide:\nFormula Name]],Table_SummaryPI[[#This Row],[Quantity]],Table_PI[[#This Row],[List 1]],Table_PI[[#This Row],[List 2]],Table_PI[[#This Row],[List 3]],Table_PI[[#This Row],[Size]],Table_PI[[#This Row],[Input 1]],Table_PI[[#This Row],[Input 2]],Table_PI[[#This Row],[Input 3]],Table_PI[[#This Row],[Input 4]],'Customer Information'!$AR$12,102,ROW())<>0,MeasureCalc(Table_PI[[#This Row],[Hide:\nFormula Name]],Table_SummaryPI[[#This Row],[Quantity]],Table_PI[[#This Row],[List 1]],Table_PI[[#This Row],[List 2]],Table_PI[[#This Row],[List 3]],Table_PI[[#This Row],[Size]],Table_PI[[#This Row],[Input 1]],Table_PI[[#This Row],[Input 2]],Table_PI[[#This Row],[Input 3]],Table_PI[[#This Row],[Input 4]],'Customer Information'!$AR$12,102,ROW())<>\"No Rebate\"),MeasureCalc(Table_PI[[#This Row],[Hide:\nFormula Name]],Table_SummaryPI[[#This Row],[Quantity]],Table_PI[[#This Row],[List 1]],Table_PI[[#This Row],[List 2]],Table_PI[[#This Row],[List 3]],Table_PI[[#This Row],[Size]],Table_PI[[#This Row],[Input 1]],Table_PI[[#This Row],[Input 2]],Table_PI[[#This Row],[Input 3]],Table_PI[[#This Row],[Input 4]],'Customer Information'!$AR$12,102,ROW()),\"\"),\"\")","v":""},{"$f":"IF(Table_PI[[#This Row],[Input 3]]<>\"\",Table_PI[[#This Row],[Input 3]],\"\")","v":""},null,{"$f":"IFERROR(IF(AND(MeasureCalc(Table_PI[[#This Row],[Hide:\nFormula Name]],Table_SummaryPI[[#This Row],[Quantity]],Table_PI[[#This Row],[List 1]],Table_PI[[#This Row],[List 2]],Table_PI[[#This Row],[List 3]],Table_PI[[#This Row],[Size]],Table_PI[[#This Row],[Input 1]],Table_PI[[#This Row],[Input 2]],Table_PI[[#This Row],[Input 3]],Table_PI[[#This Row],[Input 4]],'Customer Information'!$AR$12,103,ROW())<>0,MeasureCalc(Table_PI[[#This Row],[Hide:\nFormula Name]],Table_SummaryPI[[#This Row],[Quantity]],Table_PI[[#This Row],[List 1]],Table_PI[[#This Row],[List 2]],Table_PI[[#This Row],[List 3]],Table_PI[[#This Row],[Size]],Table_PI[[#This Row],[Input 1]],Table_PI[[#This Row],[Input 2]],Table_PI[[#This Row],[Input 3]],Table_PI[[#This Row],[Input 4]],'Customer Information'!$AR$12,103,ROW())<>\"No Rebate\"),MeasureCalc(Table_PI[[#This Row],[Hide:\nFormula Name]],Table_SummaryPI[[#This Row],[Quantity]],Table_PI[[#This Row],[List 1]],Table_PI[[#This Row],[List 2]],Table_PI[[#This Row],[List 3]],Table_PI[[#This Row],[Size]],Table_PI[[#This Row],[Input 1]],Table_PI[[#This Row],[Input 2]],Table_PI[[#This Row],[Input 3]],Table_PI[[#This Row],[Input 4]],'Customer Information'!$AR$12,103,ROW()),\"\"),\"\")","v":""},{"$f":"IF(Table_PI[[#This Row],[Input 4]]<>\"\",Table_PI[[#This Row],[Input 4]],\"\")","v":""},{"$f":"IF(Table_PI[[#This Row],[Quantity]]=\"\",\"\",Table_PI[[#This Row],[Quantity]])","v":""},{"$f":"IF(Table_PI[[#This Row],[Notes]]=\"\",\"\",Table_PI[[#This Row],[Notes]])","v":""},{"$f":"IF(OR(Table_PI[[#This Row],[Hide:\nBaseline kWh]]=\"\",Table_PI[[#This Row],[Hide:\nBaseline kWh]]=0),\"\",Table_PI[[#This Row],[Hide:\nBaseline kWh]])","v":""},{"$f":"IF(OR(Table_PI[[#This Row],[Hide:\nBaseline kW]]=\"\",Table_PI[[#This Row],[Hide:\nBaseline kW]]=0),\"\",Table_PI[[#This Row],[Hide:\nBaseline kW]])","v":""},{"$f":"IF(OR(Table_PI[[#This Row],[Hide:\nProposed kWh]]=\"\",Table_PI[[#This Row],[Hide:\nProposed kWh]]=0),\"\",Table_PI[[#This Row],[Hide:\nProposed kWh]])","v":""},{"$f":"IF(OR(Table_PI[[#This Row],[Hide:\nProposed kW]]=\"\",Table_PI[[#This Row],[Hide:\nProposed kW]]=0),\"\",Table_PI[[#This Row],[Hide:\nProposed kW]])","v":""},{"$f":"IF(OR(Table_PI[[#This Row],[Rebate]]=\"\",Table_PI[[#This Row],[Rebate]]=0),\"\",Table_PI[[#This Row],[Rebate]])","v":""},{"$f":"IF(OR(Table_PI[[#This Row],[Hide:\nIncremental Cost]]=\"\",Table_PI[[#This Row],[Hide:\nIncremental Cost]]=0),\"\",Table_PI[[#This Row],[Hide:\nIncremental Cost]])","v":""},{"$f":"IFERROR(IF(Table_SummaryPI[[#This Row],[kWhSavings]]=\"\",\"\",ROUND(Table_SummaryPI[[#This Row],[kWhSavings]]/$AG$401*'Customer Information'!$BC$17,2)),0)","v":""},{"$f":"IF(OR(Table_PI[[#This Row],[Annual kWh]]=\"\",Table_PI[[#This Row],[Annual kWh]]=0),\"\",Table_PI[[#This Row],[Annual kWh]])","v":""},{"$f":"IF(OR(Table_PI[[#This Row],[Peak kW]]=\"\",Table_PI[[#This Row],[Peak kW]]=0),\"\",Table_PI[[#This Row],[Peak kW]])","v":""},{"$f":"IFERROR(IF(Table_SummaryPI[[#This Row],[kWhSavings]]=\"\",\"\",$AU$9*Table_SummaryPI[[#This Row],[kWhSavings]]),0)","v":""},{"$f":"IFERROR(IF(Table_SummaryPI[[#This Row],[kWhSavings]]=\"\",\"\",$AU$14*Table_SummaryPI[[#This Row],[kWhSavings]]),0)","v":""},{"$f":"IFERROR(IF(Table_SummaryPI[[#This Row],[kWhSavings]]=\"\",\"\",$AU$18*Table_SummaryPI[[#This Row],[kWhSavings]]),0)","v":""},{"$f":"IFERROR(IF(Table_SummaryPI[[#This Row],[kWhSavings]]=\"\",\"\",$AU$22*Table_SummaryPI[[#This Row],[kWhSavings]]),0)","v":""},{"$f":"IFERROR(IF(MeasureCalc(Table_PI[[#This Row],[Hide:\nFormula Name]],Table_SummaryPI[[#This Row],[Quantity]],Table_PI[[#This Row],[List 1]],Table_PI[[#This Row],[List 2]],Table_PI[[#This Row],[List 3]],Table_PI[[#This Row],[Size]],Table_PI[[#This Row],[Input 1]],Table_PI[[#This Row],[Input 2]],Table_PI[[#This Row],[Input 3]],Table_PI[[#This Row],[Input 4]],'Customer Information'!$AR$12,200,ROW())<>\"No Rebate\",MeasureCalc(Table_PI[[#This Row],[Hide:\nFormula Name]],Table_SummaryPI[[#This Row],[Quantity]],Table_PI[[#This Row],[List 1]],Table_PI[[#This Row],[List 2]],Table_PI[[#This Row],[List 3]],Table_PI[[#This Row],[Size]],Table_PI[[#This Row],[Input 1]],Table_PI[[#This Row],[Input 2]],Table_PI[[#This Row],[Input 3]],Table_PI[[#This Row],[Input 4]],'Customer Information'!$AR$12,200,ROW()),\"\"),\"\")","v":""},{"$f":"IFERROR(IF(MeasureCalc(Table_PI[[#This Row],[Hide:\nFormula Name]],Table_SummaryPI[[#This Row],[Quantity]],Table_PI[[#This Row],[List 1]],Table_PI[[#This Row],[List 2]],Table_PI[[#This Row],[List 3]],Table_PI[[#This Row],[Size]],Table_PI[[#This Row],[Input 1]],Table_PI[[#This Row],[Input 2]],Table_PI[[#This Row],[Input 3]],Table_PI[[#This Row],[Input 4]],'Customer Information'!$AR$12,201,ROW())<>\"No Rebate\",MeasureCalc(Table_PI[[#This Row],[Hide:\nFormula Name]],Table_SummaryPI[[#This Row],[Quantity]],Table_PI[[#This Row],[List 1]],Table_PI[[#This Row],[List 2]],Table_PI[[#This Row],[List 3]],Table_PI[[#This Row],[Size]],Table_PI[[#This Row],[Input 1]],Table_PI[[#This Row],[Input 2]],Table_PI[[#This Row],[Input 3]],Table_PI[[#This Row],[Input 4]],'Customer Information'!$AR$12,201,ROW()),\"\"),\"\")","v":""}]
[{"$f":"Table_PI[[#This Row],[Line No.]]","v":""},{"$f":"IF(Table_SummaryPI[[#This Row],[MeassureCategory]]<>\"\",CONCATENATE(Table_SummaryPI[[#This Row],[MeassureCategory]],  \" - \", Table_SummaryPI[[#This Row],[ProposedMeasureCategory]],  \" - \", TEXT(Table_SummaryPI[[#This Row],[Size]],\"#,##0.00\"),\" \",Table_SummaryPI[[#This Row],[SizeUnit]]),\"\")","v":""},{"$f":"SUBSTITUTE(Table_PI[[#This Row],[Measure]],\"     \",\"\",1)","v":""},{"$f":"IF(Table_PI[[#This Row],[List 1]]<>\"\",Table_PI[[#This Row],[List 1]],\"\")","v":""},{"$f":"IF(Table_PI[[#This Row],[List 2]]<>\"\",Table_PI[[#This Row],[List 2]],\"\")","v":""},{"$f":"IF(Table_PI[[#This Row],[List 3]]<>\"\",Table_PI[[#This Row],[List 3]],\"\")","v":""},{"$f":"IF(Table_PI[[#This Row],[Manufacturer]]=\"\",\"\",Table_PI[[#This Row],[Manufacturer]])","v":""},{"$f":"IF(Table_PI[[#This Row],[Model Number]]=\"\",\"\",Table_PI[[#This Row],[Model Number]])","v":""},{"$f":"IF(Table_PI[[#This Row],[Serial Number(s)]]=\"\",\"\",Table_PI[[#This Row],[Serial Number(s)]])","v":""},null,{"$f":"IF(Table_PI[[#This Row],[Size]]=\"\",\"\",Table_PI[[#This Row],[Size]])","v":""},null,{"$f":"IFERROR(IF(AND(MeasureCalc(Table_PI[[#This Row],[Hide:\nFormula Name]],Table_SummaryPI[[#This Row],[Quantity]],Table_PI[[#This Row],[List 1]],Table_PI[[#This Row],[List 2]],Table_PI[[#This Row],[List 3]],Table_PI[[#This Row],[Size]],Table_PI[[#This Row],[Input 1]],Table_PI[[#This Row],[Input 2]],Table_PI[[#This Row],[Input 3]],Table_PI[[#This Row],[Input 4]],'Customer Information'!$AR$12,100,ROW())<>0,MeasureCalc(Table_PI[[#This Row],[Hide:\nFormula Name]],Table_SummaryPI[[#This Row],[Quantity]],Table_PI[[#This Row],[List 1]],Table_PI[[#This Row],[List 2]],Table_PI[[#This Row],[List 3]],Table_PI[[#This Row],[Size]],Table_PI[[#This Row],[Input 1]],Table_PI[[#This Row],[Input 2]],Table_PI[[#This Row],[Input 3]],Table_PI[[#This Row],[Input 4]],'Customer Information'!$AR$12,100,ROW())<>\"No Rebate\"),MeasureCalc(Table_PI[[#This Row],[Hide:\nFormula Name]],Table_SummaryPI[[#This Row],[Quantity]],Table_PI[[#This Row],[List 1]],Table_PI[[#This Row],[List 2]],Table_PI[[#This Row],[List 3]],Table_PI[[#This Row],[Size]],Table_PI[[#This Row],[Input 1]],Table_PI[[#This Row],[Input 2]],Table_PI[[#This Row],[Input 3]],Table_PI[[#This Row],[Input 4]],'Customer Information'!$AR$12,100,ROW()),\"\"),\"\")","v":""},{"$f":"IF(Table_PI[[#This Row],[Input 1]]<>\"\",Table_PI[[#This Row],[Input 1]],\"\")","v":""},null,{"$f":"IFERROR(IF(AND(MeasureCalc(Table_PI[[#This Row],[Hide:\nFormula Name]],Table_SummaryPI[[#This Row],[Quantity]],Table_PI[[#This Row],[List 1]],Table_PI[[#This Row],[List 2]],Table_PI[[#This Row],[List 3]],Table_PI[[#This Row],[Size]],Table_PI[[#This Row],[Input 1]],Table_PI[[#This Row],[Input 2]],Table_PI[[#This Row],[Input 3]],Table_PI[[#This Row],[Input 4]],'Customer Information'!$AR$12,101,ROW())<>0,MeasureCalc(Table_PI[[#This Row],[Hide:\nFormula Name]],Table_SummaryPI[[#This Row],[Quantity]],Table_PI[[#This Row],[List 1]],Table_PI[[#This Row],[List 2]],Table_PI[[#This Row],[List 3]],Table_PI[[#This Row],[Size]],Table_PI[[#This Row],[Input 1]],Table_PI[[#This Row],[Input 2]],Table_PI[[#This Row],[Input 3]],Table_PI[[#This Row],[Input 4]],'Customer Information'!$AR$12,101,ROW())<>\"No Rebate\"),MeasureCalc(Table_PI[[#This Row],[Hide:\nFormula Name]],Table_SummaryPI[[#This Row],[Quantity]],Table_PI[[#This Row],[List 1]],Table_PI[[#This Row],[List 2]],Table_PI[[#This Row],[List 3]],Table_PI[[#This Row],[Size]],Table_PI[[#This Row],[Input 1]],Table_PI[[#This Row],[Input 2]],Table_PI[[#This Row],[Input 3]],Table_PI[[#This Row],[Input 4]],'Customer Information'!$AR$12,101,ROW()),\"\"),\"\")","v":""},{"$f":"IF(Table_PI[[#This Row],[Input 2]]<>\"\",Table_PI[[#This Row],[Input 2]],\"\")","v":""},null,{"$f":"IFERROR(IF(AND(MeasureCalc(Table_PI[[#This Row],[Hide:\nFormula Name]],Table_SummaryPI[[#This Row],[Quantity]],Table_PI[[#This Row],[List 1]],Table_PI[[#This Row],[List 2]],Table_PI[[#This Row],[List 3]],Table_PI[[#This Row],[Size]],Table_PI[[#This Row],[Input 1]],Table_PI[[#This Row],[Input 2]],Table_PI[[#This Row],[Input 3]],Table_PI[[#This Row],[Input 4]],'Customer Information'!$AR$12,102,ROW())<>0,MeasureCalc(Table_PI[[#This Row],[Hide:\nFormula Name]],Table_SummaryPI[[#This Row],[Quantity]],Table_PI[[#This Row],[List 1]],Table_PI[[#This Row],[List 2]],Table_PI[[#This Row],[List 3]],Table_PI[[#This Row],[Size]],Table_PI[[#This Row],[Input 1]],Table_PI[[#This Row],[Input 2]],Table_PI[[#This Row],[Input 3]],Table_PI[[#This Row],[Input 4]],'Customer Information'!$AR$12,102,ROW())<>\"No Rebate\"),MeasureCalc(Table_PI[[#This Row],[Hide:\nFormula Name]],Table_SummaryPI[[#This Row],[Quantity]],Table_PI[[#This Row],[List 1]],Table_PI[[#This Row],[List 2]],Table_PI[[#This Row],[List 3]],Table_PI[[#This Row],[Size]],Table_PI[[#This Row],[Input 1]],Table_PI[[#This Row],[Input 2]],Table_PI[[#This Row],[Input 3]],Table_PI[[#This Row],[Input 4]],'Customer Information'!$AR$12,102,ROW()),\"\"),\"\")","v":""},{"$f":"IF(Table_PI[[#This Row],[Input 3]]<>\"\",Table_PI[[#This Row],[Input 3]],\"\")","v":""},null,{"$f":"IFERROR(IF(AND(MeasureCalc(Table_PI[[#This Row],[Hide:\nFormula Name]],Table_SummaryPI[[#This Row],[Quantity]],Table_PI[[#This Row],[List 1]],Table_PI[[#This Row],[List 2]],Table_PI[[#This Row],[List 3]],Table_PI[[#This Row],[Size]],Table_PI[[#This Row],[Input 1]],Table_PI[[#This Row],[Input 2]],Table_PI[[#This Row],[Input 3]],Table_PI[[#This Row],[Input 4]],'Customer Information'!$AR$12,103,ROW())<>0,MeasureCalc(Table_PI[[#This Row],[Hide:\nFormula Name]],Table_SummaryPI[[#This Row],[Quantity]],Table_PI[[#This Row],[List 1]],Table_PI[[#This Row],[List 2]],Table_PI[[#This Row],[List 3]],Table_PI[[#This Row],[Size]],Table_PI[[#This Row],[Input 1]],Table_PI[[#This Row],[Input 2]],Table_PI[[#This Row],[Input 3]],Table_PI[[#This Row],[Input 4]],'Customer Information'!$AR$12,103,ROW())<>\"No Rebate\"),MeasureCalc(Table_PI[[#This Row],[Hide:\nFormula Name]],Table_SummaryPI[[#This Row],[Quantity]],Table_PI[[#This Row],[List 1]],Table_PI[[#This Row],[List 2]],Table_PI[[#This Row],[List 3]],Table_PI[[#This Row],[Size]],Table_PI[[#This Row],[Input 1]],Table_PI[[#This Row],[Input 2]],Table_PI[[#This Row],[Input 3]],Table_PI[[#This Row],[Input 4]],'Customer Information'!$AR$12,103,ROW()),\"\"),\"\")","v":""},{"$f":"IF(Table_PI[[#This Row],[Input 4]]<>\"\",Table_PI[[#This Row],[Input 4]],\"\")","v":""},{"$f":"IF(Table_PI[[#This Row],[Quantity]]=\"\",\"\",Table_PI[[#This Row],[Quantity]])","v":""},{"$f":"IF(Table_PI[[#This Row],[Notes]]=\"\",\"\",Table_PI[[#This Row],[Notes]])","v":""},{"$f":"IF(OR(Table_PI[[#This Row],[Hide:\nBaseline kWh]]=\"\",Table_PI[[#This Row],[Hide:\nBaseline kWh]]=0),\"\",Table_PI[[#This Row],[Hide:\nBaseline kWh]])","v":""},{"$f":"IF(OR(Table_PI[[#This Row],[Hide:\nBaseline kW]]=\"\",Table_PI[[#This Row],[Hide:\nBaseline kW]]=0),\"\",Table_PI[[#This Row],[Hide:\nBaseline kW]])","v":""},{"$f":"IF(OR(Table_PI[[#This Row],[Hide:\nProposed kWh]]=\"\",Table_PI[[#This Row],[Hide:\nProposed kWh]]=0),\"\",Table_PI[[#This Row],[Hide:\nProposed kWh]])","v":""},{"$f":"IF(OR(Table_PI[[#This Row],[Hide:\nProposed kW]]=\"\",Table_PI[[#This Row],[Hide:\nProposed kW]]=0),\"\",Table_PI[[#This Row],[Hide:\nProposed kW]])","v":""},{"$f":"IF(OR(Table_PI[[#This Row],[Rebate]]=\"\",Table_PI[[#This Row],[Rebate]]=0),\"\",Table_PI[[#This Row],[Rebate]])","v":""},{"$f":"IF(OR(Table_PI[[#This Row],[Hide:\nIncremental Cost]]=\"\",Table_PI[[#This Row],[Hide:\nIncremental Cost]]=0),\"\",Table_PI[[#This Row],[Hide:\nIncremental Cost]])","v":""},{"$f":"IFERROR(IF(Table_SummaryPI[[#This Row],[kWhSavings]]=\"\",\"\",ROUND(Table_SummaryPI[[#This Row],[kWhSavings]]/$AG$401*'Customer Information'!$BC$17,2)),0)","v":""},{"$f":"IF(OR(Table_PI[[#This Row],[Annual kWh]]=\"\",Table_PI[[#This Row],[Annual kWh]]=0),\"\",Table_PI[[#This Row],[Annual kWh]])","v":""},{"$f":"IF(OR(Table_PI[[#This Row],[Peak kW]]=\"\",Table_PI[[#This Row],[Peak kW]]=0),\"\",Table_PI[[#This Row],[Peak kW]])","v":""},{"$f":"IFERROR(IF(Table_SummaryPI[[#This Row],[kWhSavings]]=\"\",\"\",$AU$9*Table_SummaryPI[[#This Row],[kWhSavings]]),0)","v":""},{"$f":"IFERROR(IF(Table_SummaryPI[[#This Row],[kWhSavings]]=\"\",\"\",$AU$14*Table_SummaryPI[[#This Row],[kWhSavings]]),0)","v":""},{"$f":"IFERROR(IF(Table_SummaryPI[[#This Row],[kWhSavings]]=\"\",\"\",$AU$18*Table_SummaryPI[[#This Row],[kWhSavings]]),0)","v":""},{"$f":"IFERROR(IF(Table_SummaryPI[[#This Row],[kWhSavings]]=\"\",\"\",$AU$22*Table_SummaryPI[[#This Row],[kWhSavings]]),0)","v":""},{"$f":"IFERROR(IF(MeasureCalc(Table_PI[[#This Row],[Hide:\nFormula Name]],Table_SummaryPI[[#This Row],[Quantity]],Table_PI[[#This Row],[List 1]],Table_PI[[#This Row],[List 2]],Table_PI[[#This Row],[List 3]],Table_PI[[#This Row],[Size]],Table_PI[[#This Row],[Input 1]],Table_PI[[#This Row],[Input 2]],Table_PI[[#This Row],[Input 3]],Table_PI[[#This Row],[Input 4]],'Customer Information'!$AR$12,200,ROW())<>\"No Rebate\",MeasureCalc(Table_PI[[#This Row],[Hide:\nFormula Name]],Table_SummaryPI[[#This Row],[Quantity]],Table_PI[[#This Row],[List 1]],Table_PI[[#This Row],[List 2]],Table_PI[[#This Row],[List 3]],Table_PI[[#This Row],[Size]],Table_PI[[#This Row],[Input 1]],Table_PI[[#This Row],[Input 2]],Table_PI[[#This Row],[Input 3]],Table_PI[[#This Row],[Input 4]],'Customer Information'!$AR$12,200,ROW()),\"\"),\"\")","v":""},{"$f":"IFERROR(IF(MeasureCalc(Table_PI[[#This Row],[Hide:\nFormula Name]],Table_SummaryPI[[#This Row],[Quantity]],Table_PI[[#This Row],[List 1]],Table_PI[[#This Row],[List 2]],Table_PI[[#This Row],[List 3]],Table_PI[[#This Row],[Size]],Table_PI[[#This Row],[Input 1]],Table_PI[[#This Row],[Input 2]],Table_PI[[#This Row],[Input 3]],Table_PI[[#This Row],[Input 4]],'Customer Information'!$AR$12,201,ROW())<>\"No Rebate\",MeasureCalc(Table_PI[[#This Row],[Hide:\nFormula Name]],Table_SummaryPI[[#This Row],[Quantity]],Table_PI[[#This Row],[List 1]],Table_PI[[#This Row],[List 2]],Table_PI[[#This Row],[List 3]],Table_PI[[#This Row],[Size]],Table_PI[[#This Row],[Input 1]],Table_PI[[#This Row],[Input 2]],Table_PI[[#This Row],[Input 3]],Table_PI[[#This Row],[Input 4]],'Customer Information'!$AR$12,201,ROW()),\"\"),\"\")","v":""}]
[{"$f":"Table_PI[[#This Row],[Line No.]]","v":""},{"$f":"IF(Table_SummaryPI[[#This Row],[MeassureCategory]]<>\"\",CONCATENATE(Table_SummaryPI[[#This Row],[MeassureCategory]],  \" - \", Table_SummaryPI[[#This Row],[ProposedMeasureCategory]],  \" - \", TEXT(Table_SummaryPI[[#This Row],[Size]],\"#,##0.00\"),\" \",Table_SummaryPI[[#This Row],[SizeUnit]]),\"\")","v":""},{"$f":"SUBSTITUTE(Table_PI[[#This Row],[Measure]],\"     \",\"\",1)","v":""},{"$f":"IF(Table_PI[[#This Row],[List 1]]<>\"\",Table_PI[[#This Row],[List 1]],\"\")","v":""},{"$f":"IF(Table_PI[[#This Row],[List 2]]<>\"\",Table_PI[[#This Row],[List 2]],\"\")","v":""},{"$f":"IF(Table_PI[[#This Row],[List 3]]<>\"\",Table_PI[[#This Row],[List 3]],\"\")","v":""},{"$f":"IF(Table_PI[[#This Row],[Manufacturer]]=\"\",\"\",Table_PI[[#This Row],[Manufacturer]])","v":""},{"$f":"IF(Table_PI[[#This Row],[Model Number]]=\"\",\"\",Table_PI[[#This Row],[Model Number]])","v":""},{"$f":"IF(Table_PI[[#This Row],[Serial Number(s)]]=\"\",\"\",Table_PI[[#This Row],[Serial Number(s)]])","v":""},null,{"$f":"IF(Table_PI[[#This Row],[Size]]=\"\",\"\",Table_PI[[#This Row],[Size]])","v":""},null,{"$f":"IFERROR(IF(AND(MeasureCalc(Table_PI[[#This Row],[Hide:\nFormula Name]],Table_SummaryPI[[#This Row],[Quantity]],Table_PI[[#This Row],[List 1]],Table_PI[[#This Row],[List 2]],Table_PI[[#This Row],[List 3]],Table_PI[[#This Row],[Size]],Table_PI[[#This Row],[Input 1]],Table_PI[[#This Row],[Input 2]],Table_PI[[#This Row],[Input 3]],Table_PI[[#This Row],[Input 4]],'Customer Information'!$AR$12,100,ROW())<>0,MeasureCalc(Table_PI[[#This Row],[Hide:\nFormula Name]],Table_SummaryPI[[#This Row],[Quantity]],Table_PI[[#This Row],[List 1]],Table_PI[[#This Row],[List 2]],Table_PI[[#This Row],[List 3]],Table_PI[[#This Row],[Size]],Table_PI[[#This Row],[Input 1]],Table_PI[[#This Row],[Input 2]],Table_PI[[#This Row],[Input 3]],Table_PI[[#This Row],[Input 4]],'Customer Information'!$AR$12,100,ROW())<>\"No Rebate\"),MeasureCalc(Table_PI[[#This Row],[Hide:\nFormula Name]],Table_SummaryPI[[#This Row],[Quantity]],Table_PI[[#This Row],[List 1]],Table_PI[[#This Row],[List 2]],Table_PI[[#This Row],[List 3]],Table_PI[[#This Row],[Size]],Table_PI[[#This Row],[Input 1]],Table_PI[[#This Row],[Input 2]],Table_PI[[#This Row],[Input 3]],Table_PI[[#This Row],[Input 4]],'Customer Information'!$AR$12,100,ROW()),\"\"),\"\")","v":""},{"$f":"IF(Table_PI[[#This Row],[Input 1]]<>\"\",Table_PI[[#This Row],[Input 1]],\"\")","v":""},null,{"$f":"IFERROR(IF(AND(MeasureCalc(Table_PI[[#This Row],[Hide:\nFormula Name]],Table_SummaryPI[[#This Row],[Quantity]],Table_PI[[#This Row],[List 1]],Table_PI[[#This Row],[List 2]],Table_PI[[#This Row],[List 3]],Table_PI[[#This Row],[Size]],Table_PI[[#This Row],[Input 1]],Table_PI[[#This Row],[Input 2]],Table_PI[[#This Row],[Input 3]],Table_PI[[#This Row],[Input 4]],'Customer Information'!$AR$12,101,ROW())<>0,MeasureCalc(Table_PI[[#This Row],[Hide:\nFormula Name]],Table_SummaryPI[[#This Row],[Quantity]],Table_PI[[#This Row],[List 1]],Table_PI[[#This Row],[List 2]],Table_PI[[#This Row],[List 3]],Table_PI[[#This Row],[Size]],Table_PI[[#This Row],[Input 1]],Table_PI[[#This Row],[Input 2]],Table_PI[[#This Row],[Input 3]],Table_PI[[#This Row],[Input 4]],'Customer Information'!$AR$12,101,ROW())<>\"No Rebate\"),MeasureCalc(Table_PI[[#This Row],[Hide:\nFormula Name]],Table_SummaryPI[[#This Row],[Quantity]],Table_PI[[#This Row],[List 1]],Table_PI[[#This Row],[List 2]],Table_PI[[#This Row],[List 3]],Table_PI[[#This Row],[Size]],Table_PI[[#This Row],[Input 1]],Table_PI[[#This Row],[Input 2]],Table_PI[[#This Row],[Input 3]],Table_PI[[#This Row],[Input 4]],'Customer Information'!$AR$12,101,ROW()),\"\"),\"\")","v":""},{"$f":"IF(Table_PI[[#This Row],[Input 2]]<>\"\",Table_PI[[#This Row],[Input 2]],\"\")","v":""},null,{"$f":"IFERROR(IF(AND(MeasureCalc(Table_PI[[#This Row],[Hide:\nFormula Name]],Table_SummaryPI[[#This Row],[Quantity]],Table_PI[[#This Row],[List 1]],Table_PI[[#This Row],[List 2]],Table_PI[[#This Row],[List 3]],Table_PI[[#This Row],[Size]],Table_PI[[#This Row],[Input 1]],Table_PI[[#This Row],[Input 2]],Table_PI[[#This Row],[Input 3]],Table_PI[[#This Row],[Input 4]],'Customer Information'!$AR$12,102,ROW())<>0,MeasureCalc(Table_PI[[#This Row],[Hide:\nFormula Name]],Table_SummaryPI[[#This Row],[Quantity]],Table_PI[[#This Row],[List 1]],Table_PI[[#This Row],[List 2]],Table_PI[[#This Row],[List 3]],Table_PI[[#This Row],[Size]],Table_PI[[#This Row],[Input 1]],Table_PI[[#This Row],[Input 2]],Table_PI[[#This Row],[Input 3]],Table_PI[[#This Row],[Input 4]],'Customer Information'!$AR$12,102,ROW())<>\"No Rebate\"),MeasureCalc(Table_PI[[#This Row],[Hide:\nFormula Name]],Table_SummaryPI[[#This Row],[Quantity]],Table_PI[[#This Row],[List 1]],Table_PI[[#This Row],[List 2]],Table_PI[[#This Row],[List 3]],Table_PI[[#This Row],[Size]],Table_PI[[#This Row],[Input 1]],Table_PI[[#This Row],[Input 2]],Table_PI[[#This Row],[Input 3]],Table_PI[[#This Row],[Input 4]],'Customer Information'!$AR$12,102,ROW()),\"\"),\"\")","v":""},{"$f":"IF(Table_PI[[#This Row],[Input 3]]<>\"\",Table_PI[[#This Row],[Input 3]],\"\")","v":""},null,{"$f":"IFERROR(IF(AND(MeasureCalc(Table_PI[[#This Row],[Hide:\nFormula Name]],Table_SummaryPI[[#This Row],[Quantity]],Table_PI[[#This Row],[List 1]],Table_PI[[#This Row],[List 2]],Table_PI[[#This Row],[List 3]],Table_PI[[#This Row],[Size]],Table_PI[[#This Row],[Input 1]],Table_PI[[#This Row],[Input 2]],Table_PI[[#This Row],[Input 3]],Table_PI[[#This Row],[Input 4]],'Customer Information'!$AR$12,103,ROW())<>0,MeasureCalc(Table_PI[[#This Row],[Hide:\nFormula Name]],Table_SummaryPI[[#This Row],[Quantity]],Table_PI[[#This Row],[List 1]],Table_PI[[#This Row],[List 2]],Table_PI[[#This Row],[List 3]],Table_PI[[#This Row],[Size]],Table_PI[[#This Row],[Input 1]],Table_PI[[#This Row],[Input 2]],Table_PI[[#This Row],[Input 3]],Table_PI[[#This Row],[Input 4]],'Customer Information'!$AR$12,103,ROW())<>\"No Rebate\"),MeasureCalc(Table_PI[[#This Row],[Hide:\nFormula Name]],Table_SummaryPI[[#This Row],[Quantity]],Table_PI[[#This Row],[List 1]],Table_PI[[#This Row],[List 2]],Table_PI[[#This Row],[List 3]],Table_PI[[#This Row],[Size]],Table_PI[[#This Row],[Input 1]],Table_PI[[#This Row],[Input 2]],Table_PI[[#This Row],[Input 3]],Table_PI[[#This Row],[Input 4]],'Customer Information'!$AR$12,103,ROW()),\"\"),\"\")","v":""},{"$f":"IF(Table_PI[[#This Row],[Input 4]]<>\"\",Table_PI[[#This Row],[Input 4]],\"\")","v":""},{"$f":"IF(Table_PI[[#This Row],[Quantity]]=\"\",\"\",Table_PI[[#This Row],[Quantity]])","v":""},{"$f":"IF(Table_PI[[#This Row],[Notes]]=\"\",\"\",Table_PI[[#This Row],[Notes]])","v":""},{"$f":"IF(OR(Table_PI[[#This Row],[Hide:\nBaseline kWh]]=\"\",Table_PI[[#This Row],[Hide:\nBaseline kWh]]=0),\"\",Table_PI[[#This Row],[Hide:\nBaseline kWh]])","v":""},{"$f":"IF(OR(Table_PI[[#This Row],[Hide:\nBaseline kW]]=\"\",Table_PI[[#This Row],[Hide:\nBaseline kW]]=0),\"\",Table_PI[[#This Row],[Hide:\nBaseline kW]])","v":""},{"$f":"IF(OR(Table_PI[[#This Row],[Hide:\nProposed kWh]]=\"\",Table_PI[[#This Row],[Hide:\nProposed kWh]]=0),\"\",Table_PI[[#This Row],[Hide:\nProposed kWh]])","v":""},{"$f":"IF(OR(Table_PI[[#This Row],[Hide:\nProposed kW]]=\"\",Table_PI[[#This Row],[Hide:\nProposed kW]]=0),\"\",Table_PI[[#This Row],[Hide:\nProposed kW]])","v":""},{"$f":"IF(OR(Table_PI[[#This Row],[Rebate]]=\"\",Table_PI[[#This Row],[Rebate]]=0),\"\",Table_PI[[#This Row],[Rebate]])","v":""},{"$f":"IF(OR(Table_PI[[#This Row],[Hide:\nIncremental Cost]]=\"\",Table_PI[[#This Row],[Hide:\nIncremental Cost]]=0),\"\",Table_PI[[#This Row],[Hide:\nIncremental Cost]])","v":""},{"$f":"IFERROR(IF(Table_SummaryPI[[#This Row],[kWhSavings]]=\"\",\"\",ROUND(Table_SummaryPI[[#This Row],[kWhSavings]]/$AG$401*'Customer Information'!$BC$17,2)),0)","v":""},{"$f":"IF(OR(Table_PI[[#This Row],[Annual kWh]]=\"\",Table_PI[[#This Row],[Annual kWh]]=0),\"\",Table_PI[[#This Row],[Annual kWh]])","v":""},{"$f":"IF(OR(Table_PI[[#This Row],[Peak kW]]=\"\",Table_PI[[#This Row],[Peak kW]]=0),\"\",Table_PI[[#This Row],[Peak kW]])","v":""},{"$f":"IFERROR(IF(Table_SummaryPI[[#This Row],[kWhSavings]]=\"\",\"\",$AU$9*Table_SummaryPI[[#This Row],[kWhSavings]]),0)","v":""},{"$f":"IFERROR(IF(Table_SummaryPI[[#This Row],[kWhSavings]]=\"\",\"\",$AU$14*Table_SummaryPI[[#This Row],[kWhSavings]]),0)","v":""},{"$f":"IFERROR(IF(Table_SummaryPI[[#This Row],[kWhSavings]]=\"\",\"\",$AU$18*Table_SummaryPI[[#This Row],[kWhSavings]]),0)","v":""},{"$f":"IFERROR(IF(Table_SummaryPI[[#This Row],[kWhSavings]]=\"\",\"\",$AU$22*Table_SummaryPI[[#This Row],[kWhSavings]]),0)","v":""},{"$f":"IFERROR(IF(MeasureCalc(Table_PI[[#This Row],[Hide:\nFormula Name]],Table_SummaryPI[[#This Row],[Quantity]],Table_PI[[#This Row],[List 1]],Table_PI[[#This Row],[List 2]],Table_PI[[#This Row],[List 3]],Table_PI[[#This Row],[Size]],Table_PI[[#This Row],[Input 1]],Table_PI[[#This Row],[Input 2]],Table_PI[[#This Row],[Input 3]],Table_PI[[#This Row],[Input 4]],'Customer Information'!$AR$12,200,ROW())<>\"No Rebate\",MeasureCalc(Table_PI[[#This Row],[Hide:\nFormula Name]],Table_SummaryPI[[#This Row],[Quantity]],Table_PI[[#This Row],[List 1]],Table_PI[[#This Row],[List 2]],Table_PI[[#This Row],[List 3]],Table_PI[[#This Row],[Size]],Table_PI[[#This Row],[Input 1]],Table_PI[[#This Row],[Input 2]],Table_PI[[#This Row],[Input 3]],Table_PI[[#This Row],[Input 4]],'Customer Information'!$AR$12,200,ROW()),\"\"),\"\")","v":""},{"$f":"IFERROR(IF(MeasureCalc(Table_PI[[#This Row],[Hide:\nFormula Name]],Table_SummaryPI[[#This Row],[Quantity]],Table_PI[[#This Row],[List 1]],Table_PI[[#This Row],[List 2]],Table_PI[[#This Row],[List 3]],Table_PI[[#This Row],[Size]],Table_PI[[#This Row],[Input 1]],Table_PI[[#This Row],[Input 2]],Table_PI[[#This Row],[Input 3]],Table_PI[[#This Row],[Input 4]],'Customer Information'!$AR$12,201,ROW())<>\"No Rebate\",MeasureCalc(Table_PI[[#This Row],[Hide:\nFormula Name]],Table_SummaryPI[[#This Row],[Quantity]],Table_PI[[#This Row],[List 1]],Table_PI[[#This Row],[List 2]],Table_PI[[#This Row],[List 3]],Table_PI[[#This Row],[Size]],Table_PI[[#This Row],[Input 1]],Table_PI[[#This Row],[Input 2]],Table_PI[[#This Row],[Input 3]],Table_PI[[#This Row],[Input 4]],'Customer Information'!$AR$12,201,ROW()),\"\"),\"\")","v":""}]
[{"$f":"Table_PI[[#This Row],[Line No.]]","v":""},{"$f":"IF(Table_SummaryPI[[#This Row],[MeassureCategory]]<>\"\",CONCATENATE(Table_SummaryPI[[#This Row],[MeassureCategory]],  \" - \", Table_SummaryPI[[#This Row],[ProposedMeasureCategory]],  \" - \", TEXT(Table_SummaryPI[[#This Row],[Size]],\"#,##0.00\"),\" \",Table_SummaryPI[[#This Row],[SizeUnit]]),\"\")","v":""},{"$f":"SUBSTITUTE(Table_PI[[#This Row],[Measure]],\"     \",\"\",1)","v":""},{"$f":"IF(Table_PI[[#This Row],[List 1]]<>\"\",Table_PI[[#This Row],[List 1]],\"\")","v":""},{"$f":"IF(Table_PI[[#This Row],[List 2]]<>\"\",Table_PI[[#This Row],[List 2]],\"\")","v":""},{"$f":"IF(Table_PI[[#This Row],[List 3]]<>\"\",Table_PI[[#This Row],[List 3]],\"\")","v":""},{"$f":"IF(Table_PI[[#This Row],[Manufacturer]]=\"\",\"\",Table_PI[[#This Row],[Manufacturer]])","v":""},{"$f":"IF(Table_PI[[#This Row],[Model Number]]=\"\",\"\",Table_PI[[#This Row],[Model Number]])","v":""},{"$f":"IF(Table_PI[[#This Row],[Serial Number(s)]]=\"\",\"\",Table_PI[[#This Row],[Serial Number(s)]])","v":""},null,{"$f":"IF(Table_PI[[#This Row],[Size]]=\"\",\"\",Table_PI[[#This Row],[Size]])","v":""},null,{"$f":"IFERROR(IF(AND(MeasureCalc(Table_PI[[#This Row],[Hide:\nFormula Name]],Table_SummaryPI[[#This Row],[Quantity]],Table_PI[[#This Row],[List 1]],Table_PI[[#This Row],[List 2]],Table_PI[[#This Row],[List 3]],Table_PI[[#This Row],[Size]],Table_PI[[#This Row],[Input 1]],Table_PI[[#This Row],[Input 2]],Table_PI[[#This Row],[Input 3]],Table_PI[[#This Row],[Input 4]],'Customer Information'!$AR$12,100,ROW())<>0,MeasureCalc(Table_PI[[#This Row],[Hide:\nFormula Name]],Table_SummaryPI[[#This Row],[Quantity]],Table_PI[[#This Row],[List 1]],Table_PI[[#This Row],[List 2]],Table_PI[[#This Row],[List 3]],Table_PI[[#This Row],[Size]],Table_PI[[#This Row],[Input 1]],Table_PI[[#This Row],[Input 2]],Table_PI[[#This Row],[Input 3]],Table_PI[[#This Row],[Input 4]],'Customer Information'!$AR$12,100,ROW())<>\"No Rebate\"),MeasureCalc(Table_PI[[#This Row],[Hide:\nFormula Name]],Table_SummaryPI[[#This Row],[Quantity]],Table_PI[[#This Row],[List 1]],Table_PI[[#This Row],[List 2]],Table_PI[[#This Row],[List 3]],Table_PI[[#This Row],[Size]],Table_PI[[#This Row],[Input 1]],Table_PI[[#This Row],[Input 2]],Table_PI[[#This Row],[Input 3]],Table_PI[[#This Row],[Input 4]],'Customer Information'!$AR$12,100,ROW()),\"\"),\"\")","v":""},{"$f":"IF(Table_PI[[#This Row],[Input 1]]<>\"\",Table_PI[[#This Row],[Input 1]],\"\")","v":""},null,{"$f":"IFERROR(IF(AND(MeasureCalc(Table_PI[[#This Row],[Hide:\nFormula Name]],Table_SummaryPI[[#This Row],[Quantity]],Table_PI[[#This Row],[List 1]],Table_PI[[#This Row],[List 2]],Table_PI[[#This Row],[List 3]],Table_PI[[#This Row],[Size]],Table_PI[[#This Row],[Input 1]],Table_PI[[#This Row],[Input 2]],Table_PI[[#This Row],[Input 3]],Table_PI[[#This Row],[Input 4]],'Customer Information'!$AR$12,101,ROW())<>0,MeasureCalc(Table_PI[[#This Row],[Hide:\nFormula Name]],Table_SummaryPI[[#This Row],[Quantity]],Table_PI[[#This Row],[List 1]],Table_PI[[#This Row],[List 2]],Table_PI[[#This Row],[List 3]],Table_PI[[#This Row],[Size]],Table_PI[[#This Row],[Input 1]],Table_PI[[#This Row],[Input 2]],Table_PI[[#This Row],[Input 3]],Table_PI[[#This Row],[Input 4]],'Customer Information'!$AR$12,101,ROW())<>\"No Rebate\"),MeasureCalc(Table_PI[[#This Row],[Hide:\nFormula Name]],Table_SummaryPI[[#This Row],[Quantity]],Table_PI[[#This Row],[List 1]],Table_PI[[#This Row],[List 2]],Table_PI[[#This Row],[List 3]],Table_PI[[#This Row],[Size]],Table_PI[[#This Row],[Input 1]],Table_PI[[#This Row],[Input 2]],Table_PI[[#This Row],[Input 3]],Table_PI[[#This Row],[Input 4]],'Customer Information'!$AR$12,101,ROW()),\"\"),\"\")","v":""},{"$f":"IF(Table_PI[[#This Row],[Input 2]]<>\"\",Table_PI[[#This Row],[Input 2]],\"\")","v":""},null,{"$f":"IFERROR(IF(AND(MeasureCalc(Table_PI[[#This Row],[Hide:\nFormula Name]],Table_SummaryPI[[#This Row],[Quantity]],Table_PI[[#This Row],[List 1]],Table_PI[[#This Row],[List 2]],Table_PI[[#This Row],[List 3]],Table_PI[[#This Row],[Size]],Table_PI[[#This Row],[Input 1]],Table_PI[[#This Row],[Input 2]],Table_PI[[#This Row],[Input 3]],Table_PI[[#This Row],[Input 4]],'Customer Information'!$AR$12,102,ROW())<>0,MeasureCalc(Table_PI[[#This Row],[Hide:\nFormula Name]],Table_SummaryPI[[#This Row],[Quantity]],Table_PI[[#This Row],[List 1]],Table_PI[[#This Row],[List 2]],Table_PI[[#This Row],[List 3]],Table_PI[[#This Row],[Size]],Table_PI[[#This Row],[Input 1]],Table_PI[[#This Row],[Input 2]],Table_PI[[#This Row],[Input 3]],Table_PI[[#This Row],[Input 4]],'Customer Information'!$AR$12,102,ROW())<>\"No Rebate\"),MeasureCalc(Table_PI[[#This Row],[Hide:\nFormula Name]],Table_SummaryPI[[#This Row],[Quantity]],Table_PI[[#This Row],[List 1]],Table_PI[[#This Row],[List 2]],Table_PI[[#This Row],[List 3]],Table_PI[[#This Row],[Size]],Table_PI[[#This Row],[Input 1]],Table_PI[[#This Row],[Input 2]],Table_PI[[#This Row],[Input 3]],Table_PI[[#This Row],[Input 4]],'Customer Information'!$AR$12,102,ROW()),\"\"),\"\")","v":""},{"$f":"IF(Table_PI[[#This Row],[Input 3]]<>\"\",Table_PI[[#This Row],[Input 3]],\"\")","v":""},null,{"$f":"IFERROR(IF(AND(MeasureCalc(Table_PI[[#This Row],[Hide:\nFormula Name]],Table_SummaryPI[[#This Row],[Quantity]],Table_PI[[#This Row],[List 1]],Table_PI[[#This Row],[List 2]],Table_PI[[#This Row],[List 3]],Table_PI[[#This Row],[Size]],Table_PI[[#This Row],[Input 1]],Table_PI[[#This Row],[Input 2]],Table_PI[[#This Row],[Input 3]],Table_PI[[#This Row],[Input 4]],'Customer Information'!$AR$12,103,ROW())<>0,MeasureCalc(Table_PI[[#This Row],[Hide:\nFormula Name]],Table_SummaryPI[[#This Row],[Quantity]],Table_PI[[#This Row],[List 1]],Table_PI[[#This Row],[List 2]],Table_PI[[#This Row],[List 3]],Table_PI[[#This Row],[Size]],Table_PI[[#This Row],[Input 1]],Table_PI[[#This Row],[Input 2]],Table_PI[[#This Row],[Input 3]],Table_PI[[#This Row],[Input 4]],'Customer Information'!$AR$12,103,ROW())<>\"No Rebate\"),MeasureCalc(Table_PI[[#This Row],[Hide:\nFormula Name]],Table_SummaryPI[[#This Row],[Quantity]],Table_PI[[#This Row],[List 1]],Table_PI[[#This Row],[List 2]],Table_PI[[#This Row],[List 3]],Table_PI[[#This Row],[Size]],Table_PI[[#This Row],[Input 1]],Table_PI[[#This Row],[Input 2]],Table_PI[[#This Row],[Input 3]],Table_PI[[#This Row],[Input 4]],'Customer Information'!$AR$12,103,ROW()),\"\"),\"\")","v":""},{"$f":"IF(Table_PI[[#This Row],[Input 4]]<>\"\",Table_PI[[#This Row],[Input 4]],\"\")","v":""},{"$f":"IF(Table_PI[[#This Row],[Quantity]]=\"\",\"\",Table_PI[[#This Row],[Quantity]])","v":""},{"$f":"IF(Table_PI[[#This Row],[Notes]]=\"\",\"\",Table_PI[[#This Row],[Notes]])","v":""},{"$f":"IF(OR(Table_PI[[#This Row],[Hide:\nBaseline kWh]]=\"\",Table_PI[[#This Row],[Hide:\nBaseline kWh]]=0),\"\",Table_PI[[#This Row],[Hide:\nBaseline kWh]])","v":""},{"$f":"IF(OR(Table_PI[[#This Row],[Hide:\nBaseline kW]]=\"\",Table_PI[[#This Row],[Hide:\nBaseline kW]]=0),\"\",Table_PI[[#This Row],[Hide:\nBaseline kW]])","v":""},{"$f":"IF(OR(Table_PI[[#This Row],[Hide:\nProposed kWh]]=\"\",Table_PI[[#This Row],[Hide:\nProposed kWh]]=0),\"\",Table_PI[[#This Row],[Hide:\nProposed kWh]])","v":""},{"$f":"IF(OR(Table_PI[[#This Row],[Hide:\nProposed kW]]=\"\",Table_PI[[#This Row],[Hide:\nProposed kW]]=0),\"\",Table_PI[[#This Row],[Hide:\nProposed kW]])","v":""},{"$f":"IF(OR(Table_PI[[#This Row],[Rebate]]=\"\",Table_PI[[#This Row],[Rebate]]=0),\"\",Table_PI[[#This Row],[Rebate]])","v":""},{"$f":"IF(OR(Table_PI[[#This Row],[Hide:\nIncremental Cost]]=\"\",Table_PI[[#This Row],[Hide:\nIncremental Cost]]=0),\"\",Table_PI[[#This Row],[Hide:\nIncremental Cost]])","v":""},{"$f":"IFERROR(IF(Table_SummaryPI[[#This Row],[kWhSavings]]=\"\",\"\",ROUND(Table_SummaryPI[[#This Row],[kWhSavings]]/$AG$401*'Customer Information'!$BC$17,2)),0)","v":""},{"$f":"IF(OR(Table_PI[[#This Row],[Annual kWh]]=\"\",Table_PI[[#This Row],[Annual kWh]]=0),\"\",Table_PI[[#This Row],[Annual kWh]])","v":""},{"$f":"IF(OR(Table_PI[[#This Row],[Peak kW]]=\"\",Table_PI[[#This Row],[Peak kW]]=0),\"\",Table_PI[[#This Row],[Peak kW]])","v":""},{"$f":"IFERROR(IF(Table_SummaryPI[[#This Row],[kWhSavings]]=\"\",\"\",$AU$9*Table_SummaryPI[[#This Row],[kWhSavings]]),0)","v":""},{"$f":"IFERROR(IF(Table_SummaryPI[[#This Row],[kWhSavings]]=\"\",\"\",$AU$14*Table_SummaryPI[[#This Row],[kWhSavings]]),0)","v":""},{"$f":"IFERROR(IF(Table_SummaryPI[[#This Row],[kWhSavings]]=\"\",\"\",$AU$18*Table_SummaryPI[[#This Row],[kWhSavings]]),0)","v":""},{"$f":"IFERROR(IF(Table_SummaryPI[[#This Row],[kWhSavings]]=\"\",\"\",$AU$22*Table_SummaryPI[[#This Row],[kWhSavings]]),0)","v":""},{"$f":"IFERROR(IF(MeasureCalc(Table_PI[[#This Row],[Hide:\nFormula Name]],Table_SummaryPI[[#This Row],[Quantity]],Table_PI[[#This Row],[List 1]],Table_PI[[#This Row],[List 2]],Table_PI[[#This Row],[List 3]],Table_PI[[#This Row],[Size]],Table_PI[[#This Row],[Input 1]],Table_PI[[#This Row],[Input 2]],Table_PI[[#This Row],[Input 3]],Table_PI[[#This Row],[Input 4]],'Customer Information'!$AR$12,200,ROW())<>\"No Rebate\",MeasureCalc(Table_PI[[#This Row],[Hide:\nFormula Name]],Table_SummaryPI[[#This Row],[Quantity]],Table_PI[[#This Row],[List 1]],Table_PI[[#This Row],[List 2]],Table_PI[[#This Row],[List 3]],Table_PI[[#This Row],[Size]],Table_PI[[#This Row],[Input 1]],Table_PI[[#This Row],[Input 2]],Table_PI[[#This Row],[Input 3]],Table_PI[[#This Row],[Input 4]],'Customer Information'!$AR$12,200,ROW()),\"\"),\"\")","v":""},{"$f":"IFERROR(IF(MeasureCalc(Table_PI[[#This Row],[Hide:\nFormula Name]],Table_SummaryPI[[#This Row],[Quantity]],Table_PI[[#This Row],[List 1]],Table_PI[[#This Row],[List 2]],Table_PI[[#This Row],[List 3]],Table_PI[[#This Row],[Size]],Table_PI[[#This Row],[Input 1]],Table_PI[[#This Row],[Input 2]],Table_PI[[#This Row],[Input 3]],Table_PI[[#This Row],[Input 4]],'Customer Information'!$AR$12,201,ROW())<>\"No Rebate\",MeasureCalc(Table_PI[[#This Row],[Hide:\nFormula Name]],Table_SummaryPI[[#This Row],[Quantity]],Table_PI[[#This Row],[List 1]],Table_PI[[#This Row],[List 2]],Table_PI[[#This Row],[List 3]],Table_PI[[#This Row],[Size]],Table_PI[[#This Row],[Input 1]],Table_PI[[#This Row],[Input 2]],Table_PI[[#This Row],[Input 3]],Table_PI[[#This Row],[Input 4]],'Customer Information'!$AR$12,201,ROW()),\"\"),\"\")","v":""}]
[{"$f":"Table_PI[[#This Row],[Line No.]]","v":""},{"$f":"IF(Table_SummaryPI[[#This Row],[MeassureCategory]]<>\"\",CONCATENATE(Table_SummaryPI[[#This Row],[MeassureCategory]],  \" - \", Table_SummaryPI[[#This Row],[ProposedMeasureCategory]],  \" - \", TEXT(Table_SummaryPI[[#This Row],[Size]],\"#,##0.00\"),\" \",Table_SummaryPI[[#This Row],[SizeUnit]]),\"\")","v":""},{"$f":"SUBSTITUTE(Table_PI[[#This Row],[Measure]],\"     \",\"\",1)","v":""},{"$f":"IF(Table_PI[[#This Row],[List 1]]<>\"\",Table_PI[[#This Row],[List 1]],\"\")","v":""},{"$f":"IF(Table_PI[[#This Row],[List 2]]<>\"\",Table_PI[[#This Row],[List 2]],\"\")","v":""},{"$f":"IF(Table_PI[[#This Row],[List 3]]<>\"\",Table_PI[[#This Row],[List 3]],\"\")","v":""},{"$f":"IF(Table_PI[[#This Row],[Manufacturer]]=\"\",\"\",Table_PI[[#This Row],[Manufacturer]])","v":""},{"$f":"IF(Table_PI[[#This Row],[Model Number]]=\"\",\"\",Table_PI[[#This Row],[Model Number]])","v":""},{"$f":"IF(Table_PI[[#This Row],[Serial Number(s)]]=\"\",\"\",Table_PI[[#This Row],[Serial Number(s)]])","v":""},null,{"$f":"IF(Table_PI[[#This Row],[Size]]=\"\",\"\",Table_PI[[#This Row],[Size]])","v":""},null,{"$f":"IFERROR(IF(AND(MeasureCalc(Table_PI[[#This Row],[Hide:\nFormula Name]],Table_SummaryPI[[#This Row],[Quantity]],Table_PI[[#This Row],[List 1]],Table_PI[[#This Row],[List 2]],Table_PI[[#This Row],[List 3]],Table_PI[[#This Row],[Size]],Table_PI[[#This Row],[Input 1]],Table_PI[[#This Row],[Input 2]],Table_PI[[#This Row],[Input 3]],Table_PI[[#This Row],[Input 4]],'Customer Information'!$AR$12,100,ROW())<>0,MeasureCalc(Table_PI[[#This Row],[Hide:\nFormula Name]],Table_SummaryPI[[#This Row],[Quantity]],Table_PI[[#This Row],[List 1]],Table_PI[[#This Row],[List 2]],Table_PI[[#This Row],[List 3]],Table_PI[[#This Row],[Size]],Table_PI[[#This Row],[Input 1]],Table_PI[[#This Row],[Input 2]],Table_PI[[#This Row],[Input 3]],Table_PI[[#This Row],[Input 4]],'Customer Information'!$AR$12,100,ROW())<>\"No Rebate\"),MeasureCalc(Table_PI[[#This Row],[Hide:\nFormula Name]],Table_SummaryPI[[#This Row],[Quantity]],Table_PI[[#This Row],[List 1]],Table_PI[[#This Row],[List 2]],Table_PI[[#This Row],[List 3]],Table_PI[[#This Row],[Size]],Table_PI[[#This Row],[Input 1]],Table_PI[[#This Row],[Input 2]],Table_PI[[#This Row],[Input 3]],Table_PI[[#This Row],[Input 4]],'Customer Information'!$AR$12,100,ROW()),\"\"),\"\")","v":""},{"$f":"IF(Table_PI[[#This Row],[Input 1]]<>\"\",Table_PI[[#This Row],[Input 1]],\"\")","v":""},null,{"$f":"IFERROR(IF(AND(MeasureCalc(Table_PI[[#This Row],[Hide:\nFormula Name]],Table_SummaryPI[[#This Row],[Quantity]],Table_PI[[#This Row],[List 1]],Table_PI[[#This Row],[List 2]],Table_PI[[#This Row],[List 3]],Table_PI[[#This Row],[Size]],Table_PI[[#This Row],[Input 1]],Table_PI[[#This Row],[Input 2]],Table_PI[[#This Row],[Input 3]],Table_PI[[#This Row],[Input 4]],'Customer Information'!$AR$12,101,ROW())<>0,MeasureCalc(Table_PI[[#This Row],[Hide:\nFormula Name]],Table_SummaryPI[[#This Row],[Quantity]],Table_PI[[#This Row],[List 1]],Table_PI[[#This Row],[List 2]],Table_PI[[#This Row],[List 3]],Table_PI[[#This Row],[Size]],Table_PI[[#This Row],[Input 1]],Table_PI[[#This Row],[Input 2]],Table_PI[[#This Row],[Input 3]],Table_PI[[#This Row],[Input 4]],'Customer Information'!$AR$12,101,ROW())<>\"No Rebate\"),MeasureCalc(Table_PI[[#This Row],[Hide:\nFormula Name]],Table_SummaryPI[[#This Row],[Quantity]],Table_PI[[#This Row],[List 1]],Table_PI[[#This Row],[List 2]],Table_PI[[#This Row],[List 3]],Table_PI[[#This Row],[Size]],Table_PI[[#This Row],[Input 1]],Table_PI[[#This Row],[Input 2]],Table_PI[[#This Row],[Input 3]],Table_PI[[#This Row],[Input 4]],'Customer Information'!$AR$12,101,ROW()),\"\"),\"\")","v":""},{"$f":"IF(Table_PI[[#This Row],[Input 2]]<>\"\",Table_PI[[#This Row],[Input 2]],\"\")","v":""},null,{"$f":"IFERROR(IF(AND(MeasureCalc(Table_PI[[#This Row],[Hide:\nFormula Name]],Table_SummaryPI[[#This Row],[Quantity]],Table_PI[[#This Row],[List 1]],Table_PI[[#This Row],[List 2]],Table_PI[[#This Row],[List 3]],Table_PI[[#This Row],[Size]],Table_PI[[#This Row],[Input 1]],Table_PI[[#This Row],[Input 2]],Table_PI[[#This Row],[Input 3]],Table_PI[[#This Row],[Input 4]],'Customer Information'!$AR$12,102,ROW())<>0,MeasureCalc(Table_PI[[#This Row],[Hide:\nFormula Name]],Table_SummaryPI[[#This Row],[Quantity]],Table_PI[[#This Row],[List 1]],Table_PI[[#This Row],[List 2]],Table_PI[[#This Row],[List 3]],Table_PI[[#This Row],[Size]],Table_PI[[#This Row],[Input 1]],Table_PI[[#This Row],[Input 2]],Table_PI[[#This Row],[Input 3]],Table_PI[[#This Row],[Input 4]],'Customer Information'!$AR$12,102,ROW())<>\"No Rebate\"),MeasureCalc(Table_PI[[#This Row],[Hide:\nFormula Name]],Table_SummaryPI[[#This Row],[Quantity]],Table_PI[[#This Row],[List 1]],Table_PI[[#This Row],[List 2]],Table_PI[[#This Row],[List 3]],Table_PI[[#This Row],[Size]],Table_PI[[#This Row],[Input 1]],Table_PI[[#This Row],[Input 2]],Table_PI[[#This Row],[Input 3]],Table_PI[[#This Row],[Input 4]],'Customer Information'!$AR$12,102,ROW()),\"\"),\"\")","v":""},{"$f":"IF(Table_PI[[#This Row],[Input 3]]<>\"\",Table_PI[[#This Row],[Input 3]],\"\")","v":""},null,{"$f":"IFERROR(IF(AND(MeasureCalc(Table_PI[[#This Row],[Hide:\nFormula Name]],Table_SummaryPI[[#This Row],[Quantity]],Table_PI[[#This Row],[List 1]],Table_PI[[#This Row],[List 2]],Table_PI[[#This Row],[List 3]],Table_PI[[#This Row],[Size]],Table_PI[[#This Row],[Input 1]],Table_PI[[#This Row],[Input 2]],Table_PI[[#This Row],[Input 3]],Table_PI[[#This Row],[Input 4]],'Customer Information'!$AR$12,103,ROW())<>0,MeasureCalc(Table_PI[[#This Row],[Hide:\nFormula Name]],Table_SummaryPI[[#This Row],[Quantity]],Table_PI[[#This Row],[List 1]],Table_PI[[#This Row],[List 2]],Table_PI[[#This Row],[List 3]],Table_PI[[#This Row],[Size]],Table_PI[[#This Row],[Input 1]],Table_PI[[#This Row],[Input 2]],Table_PI[[#This Row],[Input 3]],Table_PI[[#This Row],[Input 4]],'Customer Information'!$AR$12,103,ROW())<>\"No Rebate\"),MeasureCalc(Table_PI[[#This Row],[Hide:\nFormula Name]],Table_SummaryPI[[#This Row],[Quantity]],Table_PI[[#This Row],[List 1]],Table_PI[[#This Row],[List 2]],Table_PI[[#This Row],[List 3]],Table_PI[[#This Row],[Size]],Table_PI[[#This Row],[Input 1]],Table_PI[[#This Row],[Input 2]],Table_PI[[#This Row],[Input 3]],Table_PI[[#This Row],[Input 4]],'Customer Information'!$AR$12,103,ROW()),\"\"),\"\")","v":""},{"$f":"IF(Table_PI[[#This Row],[Input 4]]<>\"\",Table_PI[[#This Row],[Input 4]],\"\")","v":""},{"$f":"IF(Table_PI[[#This Row],[Quantity]]=\"\",\"\",Table_PI[[#This Row],[Quantity]])","v":""},{"$f":"IF(Table_PI[[#This Row],[Notes]]=\"\",\"\",Table_PI[[#This Row],[Notes]])","v":""},{"$f":"IF(OR(Table_PI[[#This Row],[Hide:\nBaseline kWh]]=\"\",Table_PI[[#This Row],[Hide:\nBaseline kWh]]=0),\"\",Table_PI[[#This Row],[Hide:\nBaseline kWh]])","v":""},{"$f":"IF(OR(Table_PI[[#This Row],[Hide:\nBaseline kW]]=\"\",Table_PI[[#This Row],[Hide:\nBaseline kW]]=0),\"\",Table_PI[[#This Row],[Hide:\nBaseline kW]])","v":""},{"$f":"IF(OR(Table_PI[[#This Row],[Hide:\nProposed kWh]]=\"\",Table_PI[[#This Row],[Hide:\nProposed kWh]]=0),\"\",Table_PI[[#This Row],[Hide:\nProposed kWh]])","v":""},{"$f":"IF(OR(Table_PI[[#This Row],[Hide:\nProposed kW]]=\"\",Table_PI[[#This Row],[Hide:\nProposed kW]]=0),\"\",Table_PI[[#This Row],[Hide:\nProposed kW]])","v":""},{"$f":"IF(OR(Table_PI[[#This Row],[Rebate]]=\"\",Table_PI[[#This Row],[Rebate]]=0),\"\",Table_PI[[#This Row],[Rebate]])","v":""},{"$f":"IF(OR(Table_PI[[#This Row],[Hide:\nIncremental Cost]]=\"\",Table_PI[[#This Row],[Hide:\nIncremental Cost]]=0),\"\",Table_PI[[#This Row],[Hide:\nIncremental Cost]])","v":""},{"$f":"IFERROR(IF(Table_SummaryPI[[#This Row],[kWhSavings]]=\"\",\"\",ROUND(Table_SummaryPI[[#This Row],[kWhSavings]]/$AG$401*'Customer Information'!$BC$17,2)),0)","v":""},{"$f":"IF(OR(Table_PI[[#This Row],[Annual kWh]]=\"\",Table_PI[[#This Row],[Annual kWh]]=0),\"\",Table_PI[[#This Row],[Annual kWh]])","v":""},{"$f":"IF(OR(Table_PI[[#This Row],[Peak kW]]=\"\",Table_PI[[#This Row],[Peak kW]]=0),\"\",Table_PI[[#This Row],[Peak kW]])","v":""},{"$f":"IFERROR(IF(Table_SummaryPI[[#This Row],[kWhSavings]]=\"\",\"\",$AU$9*Table_SummaryPI[[#This Row],[kWhSavings]]),0)","v":""},{"$f":"IFERROR(IF(Table_SummaryPI[[#This Row],[kWhSavings]]=\"\",\"\",$AU$14*Table_SummaryPI[[#This Row],[kWhSavings]]),0)","v":""},{"$f":"IFERROR(IF(Table_SummaryPI[[#This Row],[kWhSavings]]=\"\",\"\",$AU$18*Table_SummaryPI[[#This Row],[kWhSavings]]),0)","v":""},{"$f":"IFERROR(IF(Table_SummaryPI[[#This Row],[kWhSavings]]=\"\",\"\",$AU$22*Table_SummaryPI[[#This Row],[kWhSavings]]),0)","v":""},{"$f":"IFERROR(IF(MeasureCalc(Table_PI[[#This Row],[Hide:\nFormula Name]],Table_SummaryPI[[#This Row],[Quantity]],Table_PI[[#This Row],[List 1]],Table_PI[[#This Row],[List 2]],Table_PI[[#This Row],[List 3]],Table_PI[[#This Row],[Size]],Table_PI[[#This Row],[Input 1]],Table_PI[[#This Row],[Input 2]],Table_PI[[#This Row],[Input 3]],Table_PI[[#This Row],[Input 4]],'Customer Information'!$AR$12,200,ROW())<>\"No Rebate\",MeasureCalc(Table_PI[[#This Row],[Hide:\nFormula Name]],Table_SummaryPI[[#This Row],[Quantity]],Table_PI[[#This Row],[List 1]],Table_PI[[#This Row],[List 2]],Table_PI[[#This Row],[List 3]],Table_PI[[#This Row],[Size]],Table_PI[[#This Row],[Input 1]],Table_PI[[#This Row],[Input 2]],Table_PI[[#This Row],[Input 3]],Table_PI[[#This Row],[Input 4]],'Customer Information'!$AR$12,200,ROW()),\"\"),\"\")","v":""},{"$f":"IFERROR(IF(MeasureCalc(Table_PI[[#This Row],[Hide:\nFormula Name]],Table_SummaryPI[[#This Row],[Quantity]],Table_PI[[#This Row],[List 1]],Table_PI[[#This Row],[List 2]],Table_PI[[#This Row],[List 3]],Table_PI[[#This Row],[Size]],Table_PI[[#This Row],[Input 1]],Table_PI[[#This Row],[Input 2]],Table_PI[[#This Row],[Input 3]],Table_PI[[#This Row],[Input 4]],'Customer Information'!$AR$12,201,ROW())<>\"No Rebate\",MeasureCalc(Table_PI[[#This Row],[Hide:\nFormula Name]],Table_SummaryPI[[#This Row],[Quantity]],Table_PI[[#This Row],[List 1]],Table_PI[[#This Row],[List 2]],Table_PI[[#This Row],[List 3]],Table_PI[[#This Row],[Size]],Table_PI[[#This Row],[Input 1]],Table_PI[[#This Row],[Input 2]],Table_PI[[#This Row],[Input 3]],Table_PI[[#This Row],[Input 4]],'Customer Information'!$AR$12,201,ROW()),\"\"),\"\")","v":""}]
[{"$f":"Table_PI[[#This Row],[Line No.]]","v":""},{"$f":"IF(Table_SummaryPI[[#This Row],[MeassureCategory]]<>\"\",CONCATENATE(Table_SummaryPI[[#This Row],[MeassureCategory]],  \" - \", Table_SummaryPI[[#This Row],[ProposedMeasureCategory]],  \" - \", TEXT(Table_SummaryPI[[#This Row],[Size]],\"#,##0.00\"),\" \",Table_SummaryPI[[#This Row],[SizeUnit]]),\"\")","v":""},{"$f":"SUBSTITUTE(Table_PI[[#This Row],[Measure]],\"     \",\"\",1)","v":""},{"$f":"IF(Table_PI[[#This Row],[List 1]]<>\"\",Table_PI[[#This Row],[List 1]],\"\")","v":""},{"$f":"IF(Table_PI[[#This Row],[List 2]]<>\"\",Table_PI[[#This Row],[List 2]],\"\")","v":""},{"$f":"IF(Table_PI[[#This Row],[List 3]]<>\"\",Table_PI[[#This Row],[List 3]],\"\")","v":""},{"$f":"IF(Table_PI[[#This Row],[Manufacturer]]=\"\",\"\",Table_PI[[#This Row],[Manufacturer]])","v":""},{"$f":"IF(Table_PI[[#This Row],[Model Number]]=\"\",\"\",Table_PI[[#This Row],[Model Number]])","v":""},{"$f":"IF(Table_PI[[#This Row],[Serial Number(s)]]=\"\",\"\",Table_PI[[#This Row],[Serial Number(s)]])","v":""},null,{"$f":"IF(Table_PI[[#This Row],[Size]]=\"\",\"\",Table_PI[[#This Row],[Size]])","v":""},null,{"$f":"IFERROR(IF(AND(MeasureCalc(Table_PI[[#This Row],[Hide:\nFormula Name]],Table_SummaryPI[[#This Row],[Quantity]],Table_PI[[#This Row],[List 1]],Table_PI[[#This Row],[List 2]],Table_PI[[#This Row],[List 3]],Table_PI[[#This Row],[Size]],Table_PI[[#This Row],[Input 1]],Table_PI[[#This Row],[Input 2]],Table_PI[[#This Row],[Input 3]],Table_PI[[#This Row],[Input 4]],'Customer Information'!$AR$12,100,ROW())<>0,MeasureCalc(Table_PI[[#This Row],[Hide:\nFormula Name]],Table_SummaryPI[[#This Row],[Quantity]],Table_PI[[#This Row],[List 1]],Table_PI[[#This Row],[List 2]],Table_PI[[#This Row],[List 3]],Table_PI[[#This Row],[Size]],Table_PI[[#This Row],[Input 1]],Table_PI[[#This Row],[Input 2]],Table_PI[[#This Row],[Input 3]],Table_PI[[#This Row],[Input 4]],'Customer Information'!$AR$12,100,ROW())<>\"No Rebate\"),MeasureCalc(Table_PI[[#This Row],[Hide:\nFormula Name]],Table_SummaryPI[[#This Row],[Quantity]],Table_PI[[#This Row],[List 1]],Table_PI[[#This Row],[List 2]],Table_PI[[#This Row],[List 3]],Table_PI[[#This Row],[Size]],Table_PI[[#This Row],[Input 1]],Table_PI[[#This Row],[Input 2]],Table_PI[[#This Row],[Input 3]],Table_PI[[#This Row],[Input 4]],'Customer Information'!$AR$12,100,ROW()),\"\"),\"\")","v":""},{"$f":"IF(Table_PI[[#This Row],[Input 1]]<>\"\",Table_PI[[#This Row],[Input 1]],\"\")","v":""},null,{"$f":"IFERROR(IF(AND(MeasureCalc(Table_PI[[#This Row],[Hide:\nFormula Name]],Table_SummaryPI[[#This Row],[Quantity]],Table_PI[[#This Row],[List 1]],Table_PI[[#This Row],[List 2]],Table_PI[[#This Row],[List 3]],Table_PI[[#This Row],[Size]],Table_PI[[#This Row],[Input 1]],Table_PI[[#This Row],[Input 2]],Table_PI[[#This Row],[Input 3]],Table_PI[[#This Row],[Input 4]],'Customer Information'!$AR$12,101,ROW())<>0,MeasureCalc(Table_PI[[#This Row],[Hide:\nFormula Name]],Table_SummaryPI[[#This Row],[Quantity]],Table_PI[[#This Row],[List 1]],Table_PI[[#This Row],[List 2]],Table_PI[[#This Row],[List 3]],Table_PI[[#This Row],[Size]],Table_PI[[#This Row],[Input 1]],Table_PI[[#This Row],[Input 2]],Table_PI[[#This Row],[Input 3]],Table_PI[[#This Row],[Input 4]],'Customer Information'!$AR$12,101,ROW())<>\"No Rebate\"),MeasureCalc(Table_PI[[#This Row],[Hide:\nFormula Name]],Table_SummaryPI[[#This Row],[Quantity]],Table_PI[[#This Row],[List 1]],Table_PI[[#This Row],[List 2]],Table_PI[[#This Row],[List 3]],Table_PI[[#This Row],[Size]],Table_PI[[#This Row],[Input 1]],Table_PI[[#This Row],[Input 2]],Table_PI[[#This Row],[Input 3]],Table_PI[[#This Row],[Input 4]],'Customer Information'!$AR$12,101,ROW()),\"\"),\"\")","v":""},{"$f":"IF(Table_PI[[#This Row],[Input 2]]<>\"\",Table_PI[[#This Row],[Input 2]],\"\")","v":""},null,{"$f":"IFERROR(IF(AND(MeasureCalc(Table_PI[[#This Row],[Hide:\nFormula Name]],Table_SummaryPI[[#This Row],[Quantity]],Table_PI[[#This Row],[List 1]],Table_PI[[#This Row],[List 2]],Table_PI[[#This Row],[List 3]],Table_PI[[#This Row],[Size]],Table_PI[[#This Row],[Input 1]],Table_PI[[#This Row],[Input 2]],Table_PI[[#This Row],[Input 3]],Table_PI[[#This Row],[Input 4]],'Customer Information'!$AR$12,102,ROW())<>0,MeasureCalc(Table_PI[[#This Row],[Hide:\nFormula Name]],Table_SummaryPI[[#This Row],[Quantity]],Table_PI[[#This Row],[List 1]],Table_PI[[#This Row],[List 2]],Table_PI[[#This Row],[List 3]],Table_PI[[#This Row],[Size]],Table_PI[[#This Row],[Input 1]],Table_PI[[#This Row],[Input 2]],Table_PI[[#This Row],[Input 3]],Table_PI[[#This Row],[Input 4]],'Customer Information'!$AR$12,102,ROW())<>\"No Rebate\"),MeasureCalc(Table_PI[[#This Row],[Hide:\nFormula Name]],Table_SummaryPI[[#This Row],[Quantity]],Table_PI[[#This Row],[List 1]],Table_PI[[#This Row],[List 2]],Table_PI[[#This Row],[List 3]],Table_PI[[#This Row],[Size]],Table_PI[[#This Row],[Input 1]],Table_PI[[#This Row],[Input 2]],Table_PI[[#This Row],[Input 3]],Table_PI[[#This Row],[Input 4]],'Customer Information'!$AR$12,102,ROW()),\"\"),\"\")","v":""},{"$f":"IF(Table_PI[[#This Row],[Input 3]]<>\"\",Table_PI[[#This Row],[Input 3]],\"\")","v":""},null,{"$f":"IFERROR(IF(AND(MeasureCalc(Table_PI[[#This Row],[Hide:\nFormula Name]],Table_SummaryPI[[#This Row],[Quantity]],Table_PI[[#This Row],[List 1]],Table_PI[[#This Row],[List 2]],Table_PI[[#This Row],[List 3]],Table_PI[[#This Row],[Size]],Table_PI[[#This Row],[Input 1]],Table_PI[[#This Row],[Input 2]],Table_PI[[#This Row],[Input 3]],Table_PI[[#This Row],[Input 4]],'Customer Information'!$AR$12,103,ROW())<>0,MeasureCalc(Table_PI[[#This Row],[Hide:\nFormula Name]],Table_SummaryPI[[#This Row],[Quantity]],Table_PI[[#This Row],[List 1]],Table_PI[[#This Row],[List 2]],Table_PI[[#This Row],[List 3]],Table_PI[[#This Row],[Size]],Table_PI[[#This Row],[Input 1]],Table_PI[[#This Row],[Input 2]],Table_PI[[#This Row],[Input 3]],Table_PI[[#This Row],[Input 4]],'Customer Information'!$AR$12,103,ROW())<>\"No Rebate\"),MeasureCalc(Table_PI[[#This Row],[Hide:\nFormula Name]],Table_SummaryPI[[#This Row],[Quantity]],Table_PI[[#This Row],[List 1]],Table_PI[[#This Row],[List 2]],Table_PI[[#This Row],[List 3]],Table_PI[[#This Row],[Size]],Table_PI[[#This Row],[Input 1]],Table_PI[[#This Row],[Input 2]],Table_PI[[#This Row],[Input 3]],Table_PI[[#This Row],[Input 4]],'Customer Information'!$AR$12,103,ROW()),\"\"),\"\")","v":""},{"$f":"IF(Table_PI[[#This Row],[Input 4]]<>\"\",Table_PI[[#This Row],[Input 4]],\"\")","v":""},{"$f":"IF(Table_PI[[#This Row],[Quantity]]=\"\",\"\",Table_PI[[#This Row],[Quantity]])","v":""},{"$f":"IF(Table_PI[[#This Row],[Notes]]=\"\",\"\",Table_PI[[#This Row],[Notes]])","v":""},{"$f":"IF(OR(Table_PI[[#This Row],[Hide:\nBaseline kWh]]=\"\",Table_PI[[#This Row],[Hide:\nBaseline kWh]]=0),\"\",Table_PI[[#This Row],[Hide:\nBaseline kWh]])","v":""},{"$f":"IF(OR(Table_PI[[#This Row],[Hide:\nBaseline kW]]=\"\",Table_PI[[#This Row],[Hide:\nBaseline kW]]=0),\"\",Table_PI[[#This Row],[Hide:\nBaseline kW]])","v":""},{"$f":"IF(OR(Table_PI[[#This Row],[Hide:\nProposed kWh]]=\"\",Table_PI[[#This Row],[Hide:\nProposed kWh]]=0),\"\",Table_PI[[#This Row],[Hide:\nProposed kWh]])","v":""},{"$f":"IF(OR(Table_PI[[#This Row],[Hide:\nProposed kW]]=\"\",Table_PI[[#This Row],[Hide:\nProposed kW]]=0),\"\",Table_PI[[#This Row],[Hide:\nProposed kW]])","v":""},{"$f":"IF(OR(Table_PI[[#This Row],[Rebate]]=\"\",Table_PI[[#This Row],[Rebate]]=0),\"\",Table_PI[[#This Row],[Rebate]])","v":""},{"$f":"IF(OR(Table_PI[[#This Row],[Hide:\nIncremental Cost]]=\"\",Table_PI[[#This Row],[Hide:\nIncremental Cost]]=0),\"\",Table_PI[[#This Row],[Hide:\nIncremental Cost]])","v":""},{"$f":"IFERROR(IF(Table_SummaryPI[[#This Row],[kWhSavings]]=\"\",\"\",ROUND(Table_SummaryPI[[#This Row],[kWhSavings]]/$AG$401*'Customer Information'!$BC$17,2)),0)","v":""},{"$f":"IF(OR(Table_PI[[#This Row],[Annual kWh]]=\"\",Table_PI[[#This Row],[Annual kWh]]=0),\"\",Table_PI[[#This Row],[Annual kWh]])","v":""},{"$f":"IF(OR(Table_PI[[#This Row],[Peak kW]]=\"\",Table_PI[[#This Row],[Peak kW]]=0),\"\",Table_PI[[#This Row],[Peak kW]])","v":""},{"$f":"IFERROR(IF(Table_SummaryPI[[#This Row],[kWhSavings]]=\"\",\"\",$AU$9*Table_SummaryPI[[#This Row],[kWhSavings]]),0)","v":""},{"$f":"IFERROR(IF(Table_SummaryPI[[#This Row],[kWhSavings]]=\"\",\"\",$AU$14*Table_SummaryPI[[#This Row],[kWhSavings]]),0)","v":""},{"$f":"IFERROR(IF(Table_SummaryPI[[#This Row],[kWhSavings]]=\"\",\"\",$AU$18*Table_SummaryPI[[#This Row],[kWhSavings]]),0)","v":""},{"$f":"IFERROR(IF(Table_SummaryPI[[#This Row],[kWhSavings]]=\"\",\"\",$AU$22*Table_SummaryPI[[#This Row],[kWhSavings]]),0)","v":""},{"$f":"IFERROR(IF(MeasureCalc(Table_PI[[#This Row],[Hide:\nFormula Name]],Table_SummaryPI[[#This Row],[Quantity]],Table_PI[[#This Row],[List 1]],Table_PI[[#This Row],[List 2]],Table_PI[[#This Row],[List 3]],Table_PI[[#This Row],[Size]],Table_PI[[#This Row],[Input 1]],Table_PI[[#This Row],[Input 2]],Table_PI[[#This Row],[Input 3]],Table_PI[[#This Row],[Input 4]],'Customer Information'!$AR$12,200,ROW())<>\"No Rebate\",MeasureCalc(Table_PI[[#This Row],[Hide:\nFormula Name]],Table_SummaryPI[[#This Row],[Quantity]],Table_PI[[#This Row],[List 1]],Table_PI[[#This Row],[List 2]],Table_PI[[#This Row],[List 3]],Table_PI[[#This Row],[Size]],Table_PI[[#This Row],[Input 1]],Table_PI[[#This Row],[Input 2]],Table_PI[[#This Row],[Input 3]],Table_PI[[#This Row],[Input 4]],'Customer Information'!$AR$12,200,ROW()),\"\"),\"\")","v":""},{"$f":"IFERROR(IF(MeasureCalc(Table_PI[[#This Row],[Hide:\nFormula Name]],Table_SummaryPI[[#This Row],[Quantity]],Table_PI[[#This Row],[List 1]],Table_PI[[#This Row],[List 2]],Table_PI[[#This Row],[List 3]],Table_PI[[#This Row],[Size]],Table_PI[[#This Row],[Input 1]],Table_PI[[#This Row],[Input 2]],Table_PI[[#This Row],[Input 3]],Table_PI[[#This Row],[Input 4]],'Customer Information'!$AR$12,201,ROW())<>\"No Rebate\",MeasureCalc(Table_PI[[#This Row],[Hide:\nFormula Name]],Table_SummaryPI[[#This Row],[Quantity]],Table_PI[[#This Row],[List 1]],Table_PI[[#This Row],[List 2]],Table_PI[[#This Row],[List 3]],Table_PI[[#This Row],[Size]],Table_PI[[#This Row],[Input 1]],Table_PI[[#This Row],[Input 2]],Table_PI[[#This Row],[Input 3]],Table_PI[[#This Row],[Input 4]],'Customer Information'!$AR$12,201,ROW()),\"\"),\"\")","v":""}]
[{"$f":"Table_PI[[#This Row],[Line No.]]","v":""},{"$f":"IF(Table_SummaryPI[[#This Row],[MeassureCategory]]<>\"\",CONCATENATE(Table_SummaryPI[[#This Row],[MeassureCategory]],  \" - \", Table_SummaryPI[[#This Row],[ProposedMeasureCategory]],  \" - \", TEXT(Table_SummaryPI[[#This Row],[Size]],\"#,##0.00\"),\" \",Table_SummaryPI[[#This Row],[SizeUnit]]),\"\")","v":""},{"$f":"SUBSTITUTE(Table_PI[[#This Row],[Measure]],\"     \",\"\",1)","v":""},{"$f":"IF(Table_PI[[#This Row],[List 1]]<>\"\",Table_PI[[#This Row],[List 1]],\"\")","v":""},{"$f":"IF(Table_PI[[#This Row],[List 2]]<>\"\",Table_PI[[#This Row],[List 2]],\"\")","v":""},{"$f":"IF(Table_PI[[#This Row],[List 3]]<>\"\",Table_PI[[#This Row],[List 3]],\"\")","v":""},{"$f":"IF(Table_PI[[#This Row],[Manufacturer]]=\"\",\"\",Table_PI[[#This Row],[Manufacturer]])","v":""},{"$f":"IF(Table_PI[[#This Row],[Model Number]]=\"\",\"\",Table_PI[[#This Row],[Model Number]])","v":""},{"$f":"IF(Table_PI[[#This Row],[Serial Number(s)]]=\"\",\"\",Table_PI[[#This Row],[Serial Number(s)]])","v":""},null,{"$f":"IF(Table_PI[[#This Row],[Size]]=\"\",\"\",Table_PI[[#This Row],[Size]])","v":""},null,{"$f":"IFERROR(IF(AND(MeasureCalc(Table_PI[[#This Row],[Hide:\nFormula Name]],Table_SummaryPI[[#This Row],[Quantity]],Table_PI[[#This Row],[List 1]],Table_PI[[#This Row],[List 2]],Table_PI[[#This Row],[List 3]],Table_PI[[#This Row],[Size]],Table_PI[[#This Row],[Input 1]],Table_PI[[#This Row],[Input 2]],Table_PI[[#This Row],[Input 3]],Table_PI[[#This Row],[Input 4]],'Customer Information'!$AR$12,100,ROW())<>0,MeasureCalc(Table_PI[[#This Row],[Hide:\nFormula Name]],Table_SummaryPI[[#This Row],[Quantity]],Table_PI[[#This Row],[List 1]],Table_PI[[#This Row],[List 2]],Table_PI[[#This Row],[List 3]],Table_PI[[#This Row],[Size]],Table_PI[[#This Row],[Input 1]],Table_PI[[#This Row],[Input 2]],Table_PI[[#This Row],[Input 3]],Table_PI[[#This Row],[Input 4]],'Customer Information'!$AR$12,100,ROW())<>\"No Rebate\"),MeasureCalc(Table_PI[[#This Row],[Hide:\nFormula Name]],Table_SummaryPI[[#This Row],[Quantity]],Table_PI[[#This Row],[List 1]],Table_PI[[#This Row],[List 2]],Table_PI[[#This Row],[List 3]],Table_PI[[#This Row],[Size]],Table_PI[[#This Row],[Input 1]],Table_PI[[#This Row],[Input 2]],Table_PI[[#This Row],[Input 3]],Table_PI[[#This Row],[Input 4]],'Customer Information'!$AR$12,100,ROW()),\"\"),\"\")","v":""},{"$f":"IF(Table_PI[[#This Row],[Input 1]]<>\"\",Table_PI[[#This Row],[Input 1]],\"\")","v":""},null,{"$f":"IFERROR(IF(AND(MeasureCalc(Table_PI[[#This Row],[Hide:\nFormula Name]],Table_SummaryPI[[#This Row],[Quantity]],Table_PI[[#This Row],[List 1]],Table_PI[[#This Row],[List 2]],Table_PI[[#This Row],[List 3]],Table_PI[[#This Row],[Size]],Table_PI[[#This Row],[Input 1]],Table_PI[[#This Row],[Input 2]],Table_PI[[#This Row],[Input 3]],Table_PI[[#This Row],[Input 4]],'Customer Information'!$AR$12,101,ROW())<>0,MeasureCalc(Table_PI[[#This Row],[Hide:\nFormula Name]],Table_SummaryPI[[#This Row],[Quantity]],Table_PI[[#This Row],[List 1]],Table_PI[[#This Row],[List 2]],Table_PI[[#This Row],[List 3]],Table_PI[[#This Row],[Size]],Table_PI[[#This Row],[Input 1]],Table_PI[[#This Row],[Input 2]],Table_PI[[#This Row],[Input 3]],Table_PI[[#This Row],[Input 4]],'Customer Information'!$AR$12,101,ROW())<>\"No Rebate\"),MeasureCalc(Table_PI[[#This Row],[Hide:\nFormula Name]],Table_SummaryPI[[#This Row],[Quantity]],Table_PI[[#This Row],[List 1]],Table_PI[[#This Row],[List 2]],Table_PI[[#This Row],[List 3]],Table_PI[[#This Row],[Size]],Table_PI[[#This Row],[Input 1]],Table_PI[[#This Row],[Input 2]],Table_PI[[#This Row],[Input 3]],Table_PI[[#This Row],[Input 4]],'Customer Information'!$AR$12,101,ROW()),\"\"),\"\")","v":""},{"$f":"IF(Table_PI[[#This Row],[Input 2]]<>\"\",Table_PI[[#This Row],[Input 2]],\"\")","v":""},null,{"$f":"IFERROR(IF(AND(MeasureCalc(Table_PI[[#This Row],[Hide:\nFormula Name]],Table_SummaryPI[[#This Row],[Quantity]],Table_PI[[#This Row],[List 1]],Table_PI[[#This Row],[List 2]],Table_PI[[#This Row],[List 3]],Table_PI[[#This Row],[Size]],Table_PI[[#This Row],[Input 1]],Table_PI[[#This Row],[Input 2]],Table_PI[[#This Row],[Input 3]],Table_PI[[#This Row],[Input 4]],'Customer Information'!$AR$12,102,ROW())<>0,MeasureCalc(Table_PI[[#This Row],[Hide:\nFormula Name]],Table_SummaryPI[[#This Row],[Quantity]],Table_PI[[#This Row],[List 1]],Table_PI[[#This Row],[List 2]],Table_PI[[#This Row],[List 3]],Table_PI[[#This Row],[Size]],Table_PI[[#This Row],[Input 1]],Table_PI[[#This Row],[Input 2]],Table_PI[[#This Row],[Input 3]],Table_PI[[#This Row],[Input 4]],'Customer Information'!$AR$12,102,ROW())<>\"No Rebate\"),MeasureCalc(Table_PI[[#This Row],[Hide:\nFormula Name]],Table_SummaryPI[[#This Row],[Quantity]],Table_PI[[#This Row],[List 1]],Table_PI[[#This Row],[List 2]],Table_PI[[#This Row],[List 3]],Table_PI[[#This Row],[Size]],Table_PI[[#This Row],[Input 1]],Table_PI[[#This Row],[Input 2]],Table_PI[[#This Row],[Input 3]],Table_PI[[#This Row],[Input 4]],'Customer Information'!$AR$12,102,ROW()),\"\"),\"\")","v":""},{"$f":"IF(Table_PI[[#This Row],[Input 3]]<>\"\",Table_PI[[#This Row],[Input 3]],\"\")","v":""},null,{"$f":"IFERROR(IF(AND(MeasureCalc(Table_PI[[#This Row],[Hide:\nFormula Name]],Table_SummaryPI[[#This Row],[Quantity]],Table_PI[[#This Row],[List 1]],Table_PI[[#This Row],[List 2]],Table_PI[[#This Row],[List 3]],Table_PI[[#This Row],[Size]],Table_PI[[#This Row],[Input 1]],Table_PI[[#This Row],[Input 2]],Table_PI[[#This Row],[Input 3]],Table_PI[[#This Row],[Input 4]],'Customer Information'!$AR$12,103,ROW())<>0,MeasureCalc(Table_PI[[#This Row],[Hide:\nFormula Name]],Table_SummaryPI[[#This Row],[Quantity]],Table_PI[[#This Row],[List 1]],Table_PI[[#This Row],[List 2]],Table_PI[[#This Row],[List 3]],Table_PI[[#This Row],[Size]],Table_PI[[#This Row],[Input 1]],Table_PI[[#This Row],[Input 2]],Table_PI[[#This Row],[Input 3]],Table_PI[[#This Row],[Input 4]],'Customer Information'!$AR$12,103,ROW())<>\"No Rebate\"),MeasureCalc(Table_PI[[#This Row],[Hide:\nFormula Name]],Table_SummaryPI[[#This Row],[Quantity]],Table_PI[[#This Row],[List 1]],Table_PI[[#This Row],[List 2]],Table_PI[[#This Row],[List 3]],Table_PI[[#This Row],[Size]],Table_PI[[#This Row],[Input 1]],Table_PI[[#This Row],[Input 2]],Table_PI[[#This Row],[Input 3]],Table_PI[[#This Row],[Input 4]],'Customer Information'!$AR$12,103,ROW()),\"\"),\"\")","v":""},{"$f":"IF(Table_PI[[#This Row],[Input 4]]<>\"\",Table_PI[[#This Row],[Input 4]],\"\")","v":""},{"$f":"IF(Table_PI[[#This Row],[Quantity]]=\"\",\"\",Table_PI[[#This Row],[Quantity]])","v":""},{"$f":"IF(Table_PI[[#This Row],[Notes]]=\"\",\"\",Table_PI[[#This Row],[Notes]])","v":""},{"$f":"IF(OR(Table_PI[[#This Row],[Hide:\nBaseline kWh]]=\"\",Table_PI[[#This Row],[Hide:\nBaseline kWh]]=0),\"\",Table_PI[[#This Row],[Hide:\nBaseline kWh]])","v":""},{"$f":"IF(OR(Table_PI[[#This Row],[Hide:\nBaseline kW]]=\"\",Table_PI[[#This Row],[Hide:\nBaseline kW]]=0),\"\",Table_PI[[#This Row],[Hide:\nBaseline kW]])","v":""},{"$f":"IF(OR(Table_PI[[#This Row],[Hide:\nProposed kWh]]=\"\",Table_PI[[#This Row],[Hide:\nProposed kWh]]=0),\"\",Table_PI[[#This Row],[Hide:\nProposed kWh]])","v":""},{"$f":"IF(OR(Table_PI[[#This Row],[Hide:\nProposed kW]]=\"\",Table_PI[[#This Row],[Hide:\nProposed kW]]=0),\"\",Table_PI[[#This Row],[Hide:\nProposed kW]])","v":""},{"$f":"IF(OR(Table_PI[[#This Row],[Rebate]]=\"\",Table_PI[[#This Row],[Rebate]]=0),\"\",Table_PI[[#This Row],[Rebate]])","v":""},{"$f":"IF(OR(Table_PI[[#This Row],[Hide:\nIncremental Cost]]=\"\",Table_PI[[#This Row],[Hide:\nIncremental Cost]]=0),\"\",Table_PI[[#This Row],[Hide:\nIncremental Cost]])","v":""},{"$f":"IFERROR(IF(Table_SummaryPI[[#This Row],[kWhSavings]]=\"\",\"\",ROUND(Table_SummaryPI[[#This Row],[kWhSavings]]/$AG$401*'Customer Information'!$BC$17,2)),0)","v":""},{"$f":"IF(OR(Table_PI[[#This Row],[Annual kWh]]=\"\",Table_PI[[#This Row],[Annual kWh]]=0),\"\",Table_PI[[#This Row],[Annual kWh]])","v":""},{"$f":"IF(OR(Table_PI[[#This Row],[Peak kW]]=\"\",Table_PI[[#This Row],[Peak kW]]=0),\"\",Table_PI[[#This Row],[Peak kW]])","v":""},{"$f":"IFERROR(IF(Table_SummaryPI[[#This Row],[kWhSavings]]=\"\",\"\",$AU$9*Table_SummaryPI[[#This Row],[kWhSavings]]),0)","v":""},{"$f":"IFERROR(IF(Table_SummaryPI[[#This Row],[kWhSavings]]=\"\",\"\",$AU$14*Table_SummaryPI[[#This Row],[kWhSavings]]),0)","v":""},{"$f":"IFERROR(IF(Table_SummaryPI[[#This Row],[kWhSavings]]=\"\",\"\",$AU$18*Table_SummaryPI[[#This Row],[kWhSavings]]),0)","v":""},{"$f":"IFERROR(IF(Table_SummaryPI[[#This Row],[kWhSavings]]=\"\",\"\",$AU$22*Table_SummaryPI[[#This Row],[kWhSavings]]),0)","v":""},{"$f":"IFERROR(IF(MeasureCalc(Table_PI[[#This Row],[Hide:\nFormula Name]],Table_SummaryPI[[#This Row],[Quantity]],Table_PI[[#This Row],[List 1]],Table_PI[[#This Row],[List 2]],Table_PI[[#This Row],[List 3]],Table_PI[[#This Row],[Size]],Table_PI[[#This Row],[Input 1]],Table_PI[[#This Row],[Input 2]],Table_PI[[#This Row],[Input 3]],Table_PI[[#This Row],[Input 4]],'Customer Information'!$AR$12,200,ROW())<>\"No Rebate\",MeasureCalc(Table_PI[[#This Row],[Hide:\nFormula Name]],Table_SummaryPI[[#This Row],[Quantity]],Table_PI[[#This Row],[List 1]],Table_PI[[#This Row],[List 2]],Table_PI[[#This Row],[List 3]],Table_PI[[#This Row],[Size]],Table_PI[[#This Row],[Input 1]],Table_PI[[#This Row],[Input 2]],Table_PI[[#This Row],[Input 3]],Table_PI[[#This Row],[Input 4]],'Customer Information'!$AR$12,200,ROW()),\"\"),\"\")","v":""},{"$f":"IFERROR(IF(MeasureCalc(Table_PI[[#This Row],[Hide:\nFormula Name]],Table_SummaryPI[[#This Row],[Quantity]],Table_PI[[#This Row],[List 1]],Table_PI[[#This Row],[List 2]],Table_PI[[#This Row],[List 3]],Table_PI[[#This Row],[Size]],Table_PI[[#This Row],[Input 1]],Table_PI[[#This Row],[Input 2]],Table_PI[[#This Row],[Input 3]],Table_PI[[#This Row],[Input 4]],'Customer Information'!$AR$12,201,ROW())<>\"No Rebate\",MeasureCalc(Table_PI[[#This Row],[Hide:\nFormula Name]],Table_SummaryPI[[#This Row],[Quantity]],Table_PI[[#This Row],[List 1]],Table_PI[[#This Row],[List 2]],Table_PI[[#This Row],[List 3]],Table_PI[[#This Row],[Size]],Table_PI[[#This Row],[Input 1]],Table_PI[[#This Row],[Input 2]],Table_PI[[#This Row],[Input 3]],Table_PI[[#This Row],[Input 4]],'Customer Information'!$AR$12,201,ROW()),\"\"),\"\")","v":""}]
[{"$f":"Table_PI[[#This Row],[Line No.]]","v":""},{"$f":"IF(Table_SummaryPI[[#This Row],[MeassureCategory]]<>\"\",CONCATENATE(Table_SummaryPI[[#This Row],[MeassureCategory]],  \" - \", Table_SummaryPI[[#This Row],[ProposedMeasureCategory]],  \" - \", TEXT(Table_SummaryPI[[#This Row],[Size]],\"#,##0.00\"),\" \",Table_SummaryPI[[#This Row],[SizeUnit]]),\"\")","v":""},{"$f":"SUBSTITUTE(Table_PI[[#This Row],[Measure]],\"     \",\"\",1)","v":""},{"$f":"IF(Table_PI[[#This Row],[List 1]]<>\"\",Table_PI[[#This Row],[List 1]],\"\")","v":""},{"$f":"IF(Table_PI[[#This Row],[List 2]]<>\"\",Table_PI[[#This Row],[List 2]],\"\")","v":""},{"$f":"IF(Table_PI[[#This Row],[List 3]]<>\"\",Table_PI[[#This Row],[List 3]],\"\")","v":""},{"$f":"IF(Table_PI[[#This Row],[Manufacturer]]=\"\",\"\",Table_PI[[#This Row],[Manufacturer]])","v":""},{"$f":"IF(Table_PI[[#This Row],[Model Number]]=\"\",\"\",Table_PI[[#This Row],[Model Number]])","v":""},{"$f":"IF(Table_PI[[#This Row],[Serial Number(s)]]=\"\",\"\",Table_PI[[#This Row],[Serial Number(s)]])","v":""},null,{"$f":"IF(Table_PI[[#This Row],[Size]]=\"\",\"\",Table_PI[[#This Row],[Size]])","v":""},null,{"$f":"IFERROR(IF(AND(MeasureCalc(Table_PI[[#This Row],[Hide:\nFormula Name]],Table_SummaryPI[[#This Row],[Quantity]],Table_PI[[#This Row],[List 1]],Table_PI[[#This Row],[List 2]],Table_PI[[#This Row],[List 3]],Table_PI[[#This Row],[Size]],Table_PI[[#This Row],[Input 1]],Table_PI[[#This Row],[Input 2]],Table_PI[[#This Row],[Input 3]],Table_PI[[#This Row],[Input 4]],'Customer Information'!$AR$12,100,ROW())<>0,MeasureCalc(Table_PI[[#This Row],[Hide:\nFormula Name]],Table_SummaryPI[[#This Row],[Quantity]],Table_PI[[#This Row],[List 1]],Table_PI[[#This Row],[List 2]],Table_PI[[#This Row],[List 3]],Table_PI[[#This Row],[Size]],Table_PI[[#This Row],[Input 1]],Table_PI[[#This Row],[Input 2]],Table_PI[[#This Row],[Input 3]],Table_PI[[#This Row],[Input 4]],'Customer Information'!$AR$12,100,ROW())<>\"No Rebate\"),MeasureCalc(Table_PI[[#This Row],[Hide:\nFormula Name]],Table_SummaryPI[[#This Row],[Quantity]],Table_PI[[#This Row],[List 1]],Table_PI[[#This Row],[List 2]],Table_PI[[#This Row],[List 3]],Table_PI[[#This Row],[Size]],Table_PI[[#This Row],[Input 1]],Table_PI[[#This Row],[Input 2]],Table_PI[[#This Row],[Input 3]],Table_PI[[#This Row],[Input 4]],'Customer Information'!$AR$12,100,ROW()),\"\"),\"\")","v":""},{"$f":"IF(Table_PI[[#This Row],[Input 1]]<>\"\",Table_PI[[#This Row],[Input 1]],\"\")","v":""},null,{"$f":"IFERROR(IF(AND(MeasureCalc(Table_PI[[#This Row],[Hide:\nFormula Name]],Table_SummaryPI[[#This Row],[Quantity]],Table_PI[[#This Row],[List 1]],Table_PI[[#This Row],[List 2]],Table_PI[[#This Row],[List 3]],Table_PI[[#This Row],[Size]],Table_PI[[#This Row],[Input 1]],Table_PI[[#This Row],[Input 2]],Table_PI[[#This Row],[Input 3]],Table_PI[[#This Row],[Input 4]],'Customer Information'!$AR$12,101,ROW())<>0,MeasureCalc(Table_PI[[#This Row],[Hide:\nFormula Name]],Table_SummaryPI[[#This Row],[Quantity]],Table_PI[[#This Row],[List 1]],Table_PI[[#This Row],[List 2]],Table_PI[[#This Row],[List 3]],Table_PI[[#This Row],[Size]],Table_PI[[#This Row],[Input 1]],Table_PI[[#This Row],[Input 2]],Table_PI[[#This Row],[Input 3]],Table_PI[[#This Row],[Input 4]],'Customer Information'!$AR$12,101,ROW())<>\"No Rebate\"),MeasureCalc(Table_PI[[#This Row],[Hide:\nFormula Name]],Table_SummaryPI[[#This Row],[Quantity]],Table_PI[[#This Row],[List 1]],Table_PI[[#This Row],[List 2]],Table_PI[[#This Row],[List 3]],Table_PI[[#This Row],[Size]],Table_PI[[#This Row],[Input 1]],Table_PI[[#This Row],[Input 2]],Table_PI[[#This Row],[Input 3]],Table_PI[[#This Row],[Input 4]],'Customer Information'!$AR$12,101,ROW()),\"\"),\"\")","v":""},{"$f":"IF(Table_PI[[#This Row],[Input 2]]<>\"\",Table_PI[[#This Row],[Input 2]],\"\")","v":""},null,{"$f":"IFERROR(IF(AND(MeasureCalc(Table_PI[[#This Row],[Hide:\nFormula Name]],Table_SummaryPI[[#This Row],[Quantity]],Table_PI[[#This Row],[List 1]],Table_PI[[#This Row],[List 2]],Table_PI[[#This Row],[List 3]],Table_PI[[#This Row],[Size]],Table_PI[[#This Row],[Input 1]],Table_PI[[#This Row],[Input 2]],Table_PI[[#This Row],[Input 3]],Table_PI[[#This Row],[Input 4]],'Customer Information'!$AR$12,102,ROW())<>0,MeasureCalc(Table_PI[[#This Row],[Hide:\nFormula Name]],Table_SummaryPI[[#This Row],[Quantity]],Table_PI[[#This Row],[List 1]],Table_PI[[#This Row],[List 2]],Table_PI[[#This Row],[List 3]],Table_PI[[#This Row],[Size]],Table_PI[[#This Row],[Input 1]],Table_PI[[#This Row],[Input 2]],Table_PI[[#This Row],[Input 3]],Table_PI[[#This Row],[Input 4]],'Customer Information'!$AR$12,102,ROW())<>\"No Rebate\"),MeasureCalc(Table_PI[[#This Row],[Hide:\nFormula Name]],Table_SummaryPI[[#This Row],[Quantity]],Table_PI[[#This Row],[List 1]],Table_PI[[#This Row],[List 2]],Table_PI[[#This Row],[List 3]],Table_PI[[#This Row],[Size]],Table_PI[[#This Row],[Input 1]],Table_PI[[#This Row],[Input 2]],Table_PI[[#This Row],[Input 3]],Table_PI[[#This Row],[Input 4]],'Customer Information'!$AR$12,102,ROW()),\"\"),\"\")","v":""},{"$f":"IF(Table_PI[[#This Row],[Input 3]]<>\"\",Table_PI[[#This Row],[Input 3]],\"\")","v":""},null,{"$f":"IFERROR(IF(AND(MeasureCalc(Table_PI[[#This Row],[Hide:\nFormula Name]],Table_SummaryPI[[#This Row],[Quantity]],Table_PI[[#This Row],[List 1]],Table_PI[[#This Row],[List 2]],Table_PI[[#This Row],[List 3]],Table_PI[[#This Row],[Size]],Table_PI[[#This Row],[Input 1]],Table_PI[[#This Row],[Input 2]],Table_PI[[#This Row],[Input 3]],Table_PI[[#This Row],[Input 4]],'Customer Information'!$AR$12,103,ROW())<>0,MeasureCalc(Table_PI[[#This Row],[Hide:\nFormula Name]],Table_SummaryPI[[#This Row],[Quantity]],Table_PI[[#This Row],[List 1]],Table_PI[[#This Row],[List 2]],Table_PI[[#This Row],[List 3]],Table_PI[[#This Row],[Size]],Table_PI[[#This Row],[Input 1]],Table_PI[[#This Row],[Input 2]],Table_PI[[#This Row],[Input 3]],Table_PI[[#This Row],[Input 4]],'Customer Information'!$AR$12,103,ROW())<>\"No Rebate\"),MeasureCalc(Table_PI[[#This Row],[Hide:\nFormula Name]],Table_SummaryPI[[#This Row],[Quantity]],Table_PI[[#This Row],[List 1]],Table_PI[[#This Row],[List 2]],Table_PI[[#This Row],[List 3]],Table_PI[[#This Row],[Size]],Table_PI[[#This Row],[Input 1]],Table_PI[[#This Row],[Input 2]],Table_PI[[#This Row],[Input 3]],Table_PI[[#This Row],[Input 4]],'Customer Information'!$AR$12,103,ROW()),\"\"),\"\")","v":""},{"$f":"IF(Table_PI[[#This Row],[Input 4]]<>\"\",Table_PI[[#This Row],[Input 4]],\"\")","v":""},{"$f":"IF(Table_PI[[#This Row],[Quantity]]=\"\",\"\",Table_PI[[#This Row],[Quantity]])","v":""},{"$f":"IF(Table_PI[[#This Row],[Notes]]=\"\",\"\",Table_PI[[#This Row],[Notes]])","v":""},{"$f":"IF(OR(Table_PI[[#This Row],[Hide:\nBaseline kWh]]=\"\",Table_PI[[#This Row],[Hide:\nBaseline kWh]]=0),\"\",Table_PI[[#This Row],[Hide:\nBaseline kWh]])","v":""},{"$f":"IF(OR(Table_PI[[#This Row],[Hide:\nBaseline kW]]=\"\",Table_PI[[#This Row],[Hide:\nBaseline kW]]=0),\"\",Table_PI[[#This Row],[Hide:\nBaseline kW]])","v":""},{"$f":"IF(OR(Table_PI[[#This Row],[Hide:\nProposed kWh]]=\"\",Table_PI[[#This Row],[Hide:\nProposed kWh]]=0),\"\",Table_PI[[#This Row],[Hide:\nProposed kWh]])","v":""},{"$f":"IF(OR(Table_PI[[#This Row],[Hide:\nProposed kW]]=\"\",Table_PI[[#This Row],[Hide:\nProposed kW]]=0),\"\",Table_PI[[#This Row],[Hide:\nProposed kW]])","v":""},{"$f":"IF(OR(Table_PI[[#This Row],[Rebate]]=\"\",Table_PI[[#This Row],[Rebate]]=0),\"\",Table_PI[[#This Row],[Rebate]])","v":""},{"$f":"IF(OR(Table_PI[[#This Row],[Hide:\nIncremental Cost]]=\"\",Table_PI[[#This Row],[Hide:\nIncremental Cost]]=0),\"\",Table_PI[[#This Row],[Hide:\nIncremental Cost]])","v":""},{"$f":"IFERROR(IF(Table_SummaryPI[[#This Row],[kWhSavings]]=\"\",\"\",ROUND(Table_SummaryPI[[#This Row],[kWhSavings]]/$AG$401*'Customer Information'!$BC$17,2)),0)","v":""},{"$f":"IF(OR(Table_PI[[#This Row],[Annual kWh]]=\"\",Table_PI[[#This Row],[Annual kWh]]=0),\"\",Table_PI[[#This Row],[Annual kWh]])","v":""},{"$f":"IF(OR(Table_PI[[#This Row],[Peak kW]]=\"\",Table_PI[[#This Row],[Peak kW]]=0),\"\",Table_PI[[#This Row],[Peak kW]])","v":""},{"$f":"IFERROR(IF(Table_SummaryPI[[#This Row],[kWhSavings]]=\"\",\"\",$AU$9*Table_SummaryPI[[#This Row],[kWhSavings]]),0)","v":""},{"$f":"IFERROR(IF(Table_SummaryPI[[#This Row],[kWhSavings]]=\"\",\"\",$AU$14*Table_SummaryPI[[#This Row],[kWhSavings]]),0)","v":""},{"$f":"IFERROR(IF(Table_SummaryPI[[#This Row],[kWhSavings]]=\"\",\"\",$AU$18*Table_SummaryPI[[#This Row],[kWhSavings]]),0)","v":""},{"$f":"IFERROR(IF(Table_SummaryPI[[#This Row],[kWhSavings]]=\"\",\"\",$AU$22*Table_SummaryPI[[#This Row],[kWhSavings]]),0)","v":""},{"$f":"IFERROR(IF(MeasureCalc(Table_PI[[#This Row],[Hide:\nFormula Name]],Table_SummaryPI[[#This Row],[Quantity]],Table_PI[[#This Row],[List 1]],Table_PI[[#This Row],[List 2]],Table_PI[[#This Row],[List 3]],Table_PI[[#This Row],[Size]],Table_PI[[#This Row],[Input 1]],Table_PI[[#This Row],[Input 2]],Table_PI[[#This Row],[Input 3]],Table_PI[[#This Row],[Input 4]],'Customer Information'!$AR$12,200,ROW())<>\"No Rebate\",MeasureCalc(Table_PI[[#This Row],[Hide:\nFormula Name]],Table_SummaryPI[[#This Row],[Quantity]],Table_PI[[#This Row],[List 1]],Table_PI[[#This Row],[List 2]],Table_PI[[#This Row],[List 3]],Table_PI[[#This Row],[Size]],Table_PI[[#This Row],[Input 1]],Table_PI[[#This Row],[Input 2]],Table_PI[[#This Row],[Input 3]],Table_PI[[#This Row],[Input 4]],'Customer Information'!$AR$12,200,ROW()),\"\"),\"\")","v":""},{"$f":"IFERROR(IF(MeasureCalc(Table_PI[[#This Row],[Hide:\nFormula Name]],Table_SummaryPI[[#This Row],[Quantity]],Table_PI[[#This Row],[List 1]],Table_PI[[#This Row],[List 2]],Table_PI[[#This Row],[List 3]],Table_PI[[#This Row],[Size]],Table_PI[[#This Row],[Input 1]],Table_PI[[#This Row],[Input 2]],Table_PI[[#This Row],[Input 3]],Table_PI[[#This Row],[Input 4]],'Customer Information'!$AR$12,201,ROW())<>\"No Rebate\",MeasureCalc(Table_PI[[#This Row],[Hide:\nFormula Name]],Table_SummaryPI[[#This Row],[Quantity]],Table_PI[[#This Row],[List 1]],Table_PI[[#This Row],[List 2]],Table_PI[[#This Row],[List 3]],Table_PI[[#This Row],[Size]],Table_PI[[#This Row],[Input 1]],Table_PI[[#This Row],[Input 2]],Table_PI[[#This Row],[Input 3]],Table_PI[[#This Row],[Input 4]],'Customer Information'!$AR$12,201,ROW()),\"\"),\"\")","v":""}]
[{"$f":"Table_PI[[#This Row],[Line No.]]","v":""},{"$f":"IF(Table_SummaryPI[[#This Row],[MeassureCategory]]<>\"\",CONCATENATE(Table_SummaryPI[[#This Row],[MeassureCategory]],  \" - \", Table_SummaryPI[[#This Row],[ProposedMeasureCategory]],  \" - \", TEXT(Table_SummaryPI[[#This Row],[Size]],\"#,##0.00\"),\" \",Table_SummaryPI[[#This Row],[SizeUnit]]),\"\")","v":""},{"$f":"SUBSTITUTE(Table_PI[[#This Row],[Measure]],\"     \",\"\",1)","v":""},{"$f":"IF(Table_PI[[#This Row],[List 1]]<>\"\",Table_PI[[#This Row],[List 1]],\"\")","v":""},{"$f":"IF(Table_PI[[#This Row],[List 2]]<>\"\",Table_PI[[#This Row],[List 2]],\"\")","v":""},{"$f":"IF(Table_PI[[#This Row],[List 3]]<>\"\",Table_PI[[#This Row],[List 3]],\"\")","v":""},{"$f":"IF(Table_PI[[#This Row],[Manufacturer]]=\"\",\"\",Table_PI[[#This Row],[Manufacturer]])","v":""},{"$f":"IF(Table_PI[[#This Row],[Model Number]]=\"\",\"\",Table_PI[[#This Row],[Model Number]])","v":""},{"$f":"IF(Table_PI[[#This Row],[Serial Number(s)]]=\"\",\"\",Table_PI[[#This Row],[Serial Number(s)]])","v":""},null,{"$f":"IF(Table_PI[[#This Row],[Size]]=\"\",\"\",Table_PI[[#This Row],[Size]])","v":""},null,{"$f":"IFERROR(IF(AND(MeasureCalc(Table_PI[[#This Row],[Hide:\nFormula Name]],Table_SummaryPI[[#This Row],[Quantity]],Table_PI[[#This Row],[List 1]],Table_PI[[#This Row],[List 2]],Table_PI[[#This Row],[List 3]],Table_PI[[#This Row],[Size]],Table_PI[[#This Row],[Input 1]],Table_PI[[#This Row],[Input 2]],Table_PI[[#This Row],[Input 3]],Table_PI[[#This Row],[Input 4]],'Customer Information'!$AR$12,100,ROW())<>0,MeasureCalc(Table_PI[[#This Row],[Hide:\nFormula Name]],Table_SummaryPI[[#This Row],[Quantity]],Table_PI[[#This Row],[List 1]],Table_PI[[#This Row],[List 2]],Table_PI[[#This Row],[List 3]],Table_PI[[#This Row],[Size]],Table_PI[[#This Row],[Input 1]],Table_PI[[#This Row],[Input 2]],Table_PI[[#This Row],[Input 3]],Table_PI[[#This Row],[Input 4]],'Customer Information'!$AR$12,100,ROW())<>\"No Rebate\"),MeasureCalc(Table_PI[[#This Row],[Hide:\nFormula Name]],Table_SummaryPI[[#This Row],[Quantity]],Table_PI[[#This Row],[List 1]],Table_PI[[#This Row],[List 2]],Table_PI[[#This Row],[List 3]],Table_PI[[#This Row],[Size]],Table_PI[[#This Row],[Input 1]],Table_PI[[#This Row],[Input 2]],Table_PI[[#This Row],[Input 3]],Table_PI[[#This Row],[Input 4]],'Customer Information'!$AR$12,100,ROW()),\"\"),\"\")","v":""},{"$f":"IF(Table_PI[[#This Row],[Input 1]]<>\"\",Table_PI[[#This Row],[Input 1]],\"\")","v":""},null,{"$f":"IFERROR(IF(AND(MeasureCalc(Table_PI[[#This Row],[Hide:\nFormula Name]],Table_SummaryPI[[#This Row],[Quantity]],Table_PI[[#This Row],[List 1]],Table_PI[[#This Row],[List 2]],Table_PI[[#This Row],[List 3]],Table_PI[[#This Row],[Size]],Table_PI[[#This Row],[Input 1]],Table_PI[[#This Row],[Input 2]],Table_PI[[#This Row],[Input 3]],Table_PI[[#This Row],[Input 4]],'Customer Information'!$AR$12,101,ROW())<>0,MeasureCalc(Table_PI[[#This Row],[Hide:\nFormula Name]],Table_SummaryPI[[#This Row],[Quantity]],Table_PI[[#This Row],[List 1]],Table_PI[[#This Row],[List 2]],Table_PI[[#This Row],[List 3]],Table_PI[[#This Row],[Size]],Table_PI[[#This Row],[Input 1]],Table_PI[[#This Row],[Input 2]],Table_PI[[#This Row],[Input 3]],Table_PI[[#This Row],[Input 4]],'Customer Information'!$AR$12,101,ROW())<>\"No Rebate\"),MeasureCalc(Table_PI[[#This Row],[Hide:\nFormula Name]],Table_SummaryPI[[#This Row],[Quantity]],Table_PI[[#This Row],[List 1]],Table_PI[[#This Row],[List 2]],Table_PI[[#This Row],[List 3]],Table_PI[[#This Row],[Size]],Table_PI[[#This Row],[Input 1]],Table_PI[[#This Row],[Input 2]],Table_PI[[#This Row],[Input 3]],Table_PI[[#This Row],[Input 4]],'Customer Information'!$AR$12,101,ROW()),\"\"),\"\")","v":""},{"$f":"IF(Table_PI[[#This Row],[Input 2]]<>\"\",Table_PI[[#This Row],[Input 2]],\"\")","v":""},null,{"$f":"IFERROR(IF(AND(MeasureCalc(Table_PI[[#This Row],[Hide:\nFormula Name]],Table_SummaryPI[[#This Row],[Quantity]],Table_PI[[#This Row],[List 1]],Table_PI[[#This Row],[List 2]],Table_PI[[#This Row],[List 3]],Table_PI[[#This Row],[Size]],Table_PI[[#This Row],[Input 1]],Table_PI[[#This Row],[Input 2]],Table_PI[[#This Row],[Input 3]],Table_PI[[#This Row],[Input 4]],'Customer Information'!$AR$12,102,ROW())<>0,MeasureCalc(Table_PI[[#This Row],[Hide:\nFormula Name]],Table_SummaryPI[[#This Row],[Quantity]],Table_PI[[#This Row],[List 1]],Table_PI[[#This Row],[List 2]],Table_PI[[#This Row],[List 3]],Table_PI[[#This Row],[Size]],Table_PI[[#This Row],[Input 1]],Table_PI[[#This Row],[Input 2]],Table_PI[[#This Row],[Input 3]],Table_PI[[#This Row],[Input 4]],'Customer Information'!$AR$12,102,ROW())<>\"No Rebate\"),MeasureCalc(Table_PI[[#This Row],[Hide:\nFormula Name]],Table_SummaryPI[[#This Row],[Quantity]],Table_PI[[#This Row],[List 1]],Table_PI[[#This Row],[List 2]],Table_PI[[#This Row],[List 3]],Table_PI[[#This Row],[Size]],Table_PI[[#This Row],[Input 1]],Table_PI[[#This Row],[Input 2]],Table_PI[[#This Row],[Input 3]],Table_PI[[#This Row],[Input 4]],'Customer Information'!$AR$12,102,ROW()),\"\"),\"\")","v":""},{"$f":"IF(Table_PI[[#This Row],[Input 3]]<>\"\",Table_PI[[#This Row],[Input 3]],\"\")","v":""},null,{"$f":"IFERROR(IF(AND(MeasureCalc(Table_PI[[#This Row],[Hide:\nFormula Name]],Table_SummaryPI[[#This Row],[Quantity]],Table_PI[[#This Row],[List 1]],Table_PI[[#This Row],[List 2]],Table_PI[[#This Row],[List 3]],Table_PI[[#This Row],[Size]],Table_PI[[#This Row],[Input 1]],Table_PI[[#This Row],[Input 2]],Table_PI[[#This Row],[Input 3]],Table_PI[[#This Row],[Input 4]],'Customer Information'!$AR$12,103,ROW())<>0,MeasureCalc(Table_PI[[#This Row],[Hide:\nFormula Name]],Table_SummaryPI[[#This Row],[Quantity]],Table_PI[[#This Row],[List 1]],Table_PI[[#This Row],[List 2]],Table_PI[[#This Row],[List 3]],Table_PI[[#This Row],[Size]],Table_PI[[#This Row],[Input 1]],Table_PI[[#This Row],[Input 2]],Table_PI[[#This Row],[Input 3]],Table_PI[[#This Row],[Input 4]],'Customer Information'!$AR$12,103,ROW())<>\"No Rebate\"),MeasureCalc(Table_PI[[#This Row],[Hide:\nFormula Name]],Table_SummaryPI[[#This Row],[Quantity]],Table_PI[[#This Row],[List 1]],Table_PI[[#This Row],[List 2]],Table_PI[[#This Row],[List 3]],Table_PI[[#This Row],[Size]],Table_PI[[#This Row],[Input 1]],Table_PI[[#This Row],[Input 2]],Table_PI[[#This Row],[Input 3]],Table_PI[[#This Row],[Input 4]],'Customer Information'!$AR$12,103,ROW()),\"\"),\"\")","v":""},{"$f":"IF(Table_PI[[#This Row],[Input 4]]<>\"\",Table_PI[[#This Row],[Input 4]],\"\")","v":""},{"$f":"IF(Table_PI[[#This Row],[Quantity]]=\"\",\"\",Table_PI[[#This Row],[Quantity]])","v":""},{"$f":"IF(Table_PI[[#This Row],[Notes]]=\"\",\"\",Table_PI[[#This Row],[Notes]])","v":""},{"$f":"IF(OR(Table_PI[[#This Row],[Hide:\nBaseline kWh]]=\"\",Table_PI[[#This Row],[Hide:\nBaseline kWh]]=0),\"\",Table_PI[[#This Row],[Hide:\nBaseline kWh]])","v":""},{"$f":"IF(OR(Table_PI[[#This Row],[Hide:\nBaseline kW]]=\"\",Table_PI[[#This Row],[Hide:\nBaseline kW]]=0),\"\",Table_PI[[#This Row],[Hide:\nBaseline kW]])","v":""},{"$f":"IF(OR(Table_PI[[#This Row],[Hide:\nProposed kWh]]=\"\",Table_PI[[#This Row],[Hide:\nProposed kWh]]=0),\"\",Table_PI[[#This Row],[Hide:\nProposed kWh]])","v":""},{"$f":"IF(OR(Table_PI[[#This Row],[Hide:\nProposed kW]]=\"\",Table_PI[[#This Row],[Hide:\nProposed kW]]=0),\"\",Table_PI[[#This Row],[Hide:\nProposed kW]])","v":""},{"$f":"IF(OR(Table_PI[[#This Row],[Rebate]]=\"\",Table_PI[[#This Row],[Rebate]]=0),\"\",Table_PI[[#This Row],[Rebate]])","v":""},{"$f":"IF(OR(Table_PI[[#This Row],[Hide:\nIncremental Cost]]=\"\",Table_PI[[#This Row],[Hide:\nIncremental Cost]]=0),\"\",Table_PI[[#This Row],[Hide:\nIncremental Cost]])","v":""},{"$f":"IFERROR(IF(Table_SummaryPI[[#This Row],[kWhSavings]]=\"\",\"\",ROUND(Table_SummaryPI[[#This Row],[kWhSavings]]/$AG$401*'Customer Information'!$BC$17,2)),0)","v":""},{"$f":"IF(OR(Table_PI[[#This Row],[Annual kWh]]=\"\",Table_PI[[#This Row],[Annual kWh]]=0),\"\",Table_PI[[#This Row],[Annual kWh]])","v":""},{"$f":"IF(OR(Table_PI[[#This Row],[Peak kW]]=\"\",Table_PI[[#This Row],[Peak kW]]=0),\"\",Table_PI[[#This Row],[Peak kW]])","v":""},{"$f":"IFERROR(IF(Table_SummaryPI[[#This Row],[kWhSavings]]=\"\",\"\",$AU$9*Table_SummaryPI[[#This Row],[kWhSavings]]),0)","v":""},{"$f":"IFERROR(IF(Table_SummaryPI[[#This Row],[kWhSavings]]=\"\",\"\",$AU$14*Table_SummaryPI[[#This Row],[kWhSavings]]),0)","v":""},{"$f":"IFERROR(IF(Table_SummaryPI[[#This Row],[kWhSavings]]=\"\",\"\",$AU$18*Table_SummaryPI[[#This Row],[kWhSavings]]),0)","v":""},{"$f":"IFERROR(IF(Table_SummaryPI[[#This Row],[kWhSavings]]=\"\",\"\",$AU$22*Table_SummaryPI[[#This Row],[kWhSavings]]),0)","v":""},{"$f":"IFERROR(IF(MeasureCalc(Table_PI[[#This Row],[Hide:\nFormula Name]],Table_SummaryPI[[#This Row],[Quantity]],Table_PI[[#This Row],[List 1]],Table_PI[[#This Row],[List 2]],Table_PI[[#This Row],[List 3]],Table_PI[[#This Row],[Size]],Table_PI[[#This Row],[Input 1]],Table_PI[[#This Row],[Input 2]],Table_PI[[#This Row],[Input 3]],Table_PI[[#This Row],[Input 4]],'Customer Information'!$AR$12,200,ROW())<>\"No Rebate\",MeasureCalc(Table_PI[[#This Row],[Hide:\nFormula Name]],Table_SummaryPI[[#This Row],[Quantity]],Table_PI[[#This Row],[List 1]],Table_PI[[#This Row],[List 2]],Table_PI[[#This Row],[List 3]],Table_PI[[#This Row],[Size]],Table_PI[[#This Row],[Input 1]],Table_PI[[#This Row],[Input 2]],Table_PI[[#This Row],[Input 3]],Table_PI[[#This Row],[Input 4]],'Customer Information'!$AR$12,200,ROW()),\"\"),\"\")","v":""},{"$f":"IFERROR(IF(MeasureCalc(Table_PI[[#This Row],[Hide:\nFormula Name]],Table_SummaryPI[[#This Row],[Quantity]],Table_PI[[#This Row],[List 1]],Table_PI[[#This Row],[List 2]],Table_PI[[#This Row],[List 3]],Table_PI[[#This Row],[Size]],Table_PI[[#This Row],[Input 1]],Table_PI[[#This Row],[Input 2]],Table_PI[[#This Row],[Input 3]],Table_PI[[#This Row],[Input 4]],'Customer Information'!$AR$12,201,ROW())<>\"No Rebate\",MeasureCalc(Table_PI[[#This Row],[Hide:\nFormula Name]],Table_SummaryPI[[#This Row],[Quantity]],Table_PI[[#This Row],[List 1]],Table_PI[[#This Row],[List 2]],Table_PI[[#This Row],[List 3]],Table_PI[[#This Row],[Size]],Table_PI[[#This Row],[Input 1]],Table_PI[[#This Row],[Input 2]],Table_PI[[#This Row],[Input 3]],Table_PI[[#This Row],[Input 4]],'Customer Information'!$AR$12,201,ROW()),\"\"),\"\")","v":""}]
[{"$f":"Table_PI[[#This Row],[Line No.]]","v":""},{"$f":"IF(Table_SummaryPI[[#This Row],[MeassureCategory]]<>\"\",CONCATENATE(Table_SummaryPI[[#This Row],[MeassureCategory]],  \" - \", Table_SummaryPI[[#This Row],[ProposedMeasureCategory]],  \" - \", TEXT(Table_SummaryPI[[#This Row],[Size]],\"#,##0.00\"),\" \",Table_SummaryPI[[#This Row],[SizeUnit]]),\"\")","v":""},{"$f":"SUBSTITUTE(Table_PI[[#This Row],[Measure]],\"     \",\"\",1)","v":""},{"$f":"IF(Table_PI[[#This Row],[List 1]]<>\"\",Table_PI[[#This Row],[List 1]],\"\")","v":""},{"$f":"IF(Table_PI[[#This Row],[List 2]]<>\"\",Table_PI[[#This Row],[List 2]],\"\")","v":""},{"$f":"IF(Table_PI[[#This Row],[List 3]]<>\"\",Table_PI[[#This Row],[List 3]],\"\")","v":""},{"$f":"IF(Table_PI[[#This Row],[Manufacturer]]=\"\",\"\",Table_PI[[#This Row],[Manufacturer]])","v":""},{"$f":"IF(Table_PI[[#This Row],[Model Number]]=\"\",\"\",Table_PI[[#This Row],[Model Number]])","v":""},{"$f":"IF(Table_PI[[#This Row],[Serial Number(s)]]=\"\",\"\",Table_PI[[#This Row],[Serial Number(s)]])","v":""},null,{"$f":"IF(Table_PI[[#This Row],[Size]]=\"\",\"\",Table_PI[[#This Row],[Size]])","v":""},null,{"$f":"IFERROR(IF(AND(MeasureCalc(Table_PI[[#This Row],[Hide:\nFormula Name]],Table_SummaryPI[[#This Row],[Quantity]],Table_PI[[#This Row],[List 1]],Table_PI[[#This Row],[List 2]],Table_PI[[#This Row],[List 3]],Table_PI[[#This Row],[Size]],Table_PI[[#This Row],[Input 1]],Table_PI[[#This Row],[Input 2]],Table_PI[[#This Row],[Input 3]],Table_PI[[#This Row],[Input 4]],'Customer Information'!$AR$12,100,ROW())<>0,MeasureCalc(Table_PI[[#This Row],[Hide:\nFormula Name]],Table_SummaryPI[[#This Row],[Quantity]],Table_PI[[#This Row],[List 1]],Table_PI[[#This Row],[List 2]],Table_PI[[#This Row],[List 3]],Table_PI[[#This Row],[Size]],Table_PI[[#This Row],[Input 1]],Table_PI[[#This Row],[Input 2]],Table_PI[[#This Row],[Input 3]],Table_PI[[#This Row],[Input 4]],'Customer Information'!$AR$12,100,ROW())<>\"No Rebate\"),MeasureCalc(Table_PI[[#This Row],[Hide:\nFormula Name]],Table_SummaryPI[[#This Row],[Quantity]],Table_PI[[#This Row],[List 1]],Table_PI[[#This Row],[List 2]],Table_PI[[#This Row],[List 3]],Table_PI[[#This Row],[Size]],Table_PI[[#This Row],[Input 1]],Table_PI[[#This Row],[Input 2]],Table_PI[[#This Row],[Input 3]],Table_PI[[#This Row],[Input 4]],'Customer Information'!$AR$12,100,ROW()),\"\"),\"\")","v":""},{"$f":"IF(Table_PI[[#This Row],[Input 1]]<>\"\",Table_PI[[#This Row],[Input 1]],\"\")","v":""},null,{"$f":"IFERROR(IF(AND(MeasureCalc(Table_PI[[#This Row],[Hide:\nFormula Name]],Table_SummaryPI[[#This Row],[Quantity]],Table_PI[[#This Row],[List 1]],Table_PI[[#This Row],[List 2]],Table_PI[[#This Row],[List 3]],Table_PI[[#This Row],[Size]],Table_PI[[#This Row],[Input 1]],Table_PI[[#This Row],[Input 2]],Table_PI[[#This Row],[Input 3]],Table_PI[[#This Row],[Input 4]],'Customer Information'!$AR$12,101,ROW())<>0,MeasureCalc(Table_PI[[#This Row],[Hide:\nFormula Name]],Table_SummaryPI[[#This Row],[Quantity]],Table_PI[[#This Row],[List 1]],Table_PI[[#This Row],[List 2]],Table_PI[[#This Row],[List 3]],Table_PI[[#This Row],[Size]],Table_PI[[#This Row],[Input 1]],Table_PI[[#This Row],[Input 2]],Table_PI[[#This Row],[Input 3]],Table_PI[[#This Row],[Input 4]],'Customer Information'!$AR$12,101,ROW())<>\"No Rebate\"),MeasureCalc(Table_PI[[#This Row],[Hide:\nFormula Name]],Table_SummaryPI[[#This Row],[Quantity]],Table_PI[[#This Row],[List 1]],Table_PI[[#This Row],[List 2]],Table_PI[[#This Row],[List 3]],Table_PI[[#This Row],[Size]],Table_PI[[#This Row],[Input 1]],Table_PI[[#This Row],[Input 2]],Table_PI[[#This Row],[Input 3]],Table_PI[[#This Row],[Input 4]],'Customer Information'!$AR$12,101,ROW()),\"\"),\"\")","v":""},{"$f":"IF(Table_PI[[#This Row],[Input 2]]<>\"\",Table_PI[[#This Row],[Input 2]],\"\")","v":""},null,{"$f":"IFERROR(IF(AND(MeasureCalc(Table_PI[[#This Row],[Hide:\nFormula Name]],Table_SummaryPI[[#This Row],[Quantity]],Table_PI[[#This Row],[List 1]],Table_PI[[#This Row],[List 2]],Table_PI[[#This Row],[List 3]],Table_PI[[#This Row],[Size]],Table_PI[[#This Row],[Input 1]],Table_PI[[#This Row],[Input 2]],Table_PI[[#This Row],[Input 3]],Table_PI[[#This Row],[Input 4]],'Customer Information'!$AR$12,102,ROW())<>0,MeasureCalc(Table_PI[[#This Row],[Hide:\nFormula Name]],Table_SummaryPI[[#This Row],[Quantity]],Table_PI[[#This Row],[List 1]],Table_PI[[#This Row],[List 2]],Table_PI[[#This Row],[List 3]],Table_PI[[#This Row],[Size]],Table_PI[[#This Row],[Input 1]],Table_PI[[#This Row],[Input 2]],Table_PI[[#This Row],[Input 3]],Table_PI[[#This Row],[Input 4]],'Customer Information'!$AR$12,102,ROW())<>\"No Rebate\"),MeasureCalc(Table_PI[[#This Row],[Hide:\nFormula Name]],Table_SummaryPI[[#This Row],[Quantity]],Table_PI[[#This Row],[List 1]],Table_PI[[#This Row],[List 2]],Table_PI[[#This Row],[List 3]],Table_PI[[#This Row],[Size]],Table_PI[[#This Row],[Input 1]],Table_PI[[#This Row],[Input 2]],Table_PI[[#This Row],[Input 3]],Table_PI[[#This Row],[Input 4]],'Customer Information'!$AR$12,102,ROW()),\"\"),\"\")","v":""},{"$f":"IF(Table_PI[[#This Row],[Input 3]]<>\"\",Table_PI[[#This Row],[Input 3]],\"\")","v":""},null,{"$f":"IFERROR(IF(AND(MeasureCalc(Table_PI[[#This Row],[Hide:\nFormula Name]],Table_SummaryPI[[#This Row],[Quantity]],Table_PI[[#This Row],[List 1]],Table_PI[[#This Row],[List 2]],Table_PI[[#This Row],[List 3]],Table_PI[[#This Row],[Size]],Table_PI[[#This Row],[Input 1]],Table_PI[[#This Row],[Input 2]],Table_PI[[#This Row],[Input 3]],Table_PI[[#This Row],[Input 4]],'Customer Information'!$AR$12,103,ROW())<>0,MeasureCalc(Table_PI[[#This Row],[Hide:\nFormula Name]],Table_SummaryPI[[#This Row],[Quantity]],Table_PI[[#This Row],[List 1]],Table_PI[[#This Row],[List 2]],Table_PI[[#This Row],[List 3]],Table_PI[[#This Row],[Size]],Table_PI[[#This Row],[Input 1]],Table_PI[[#This Row],[Input 2]],Table_PI[[#This Row],[Input 3]],Table_PI[[#This Row],[Input 4]],'Customer Information'!$AR$12,103,ROW())<>\"No Rebate\"),MeasureCalc(Table_PI[[#This Row],[Hide:\nFormula Name]],Table_SummaryPI[[#This Row],[Quantity]],Table_PI[[#This Row],[List 1]],Table_PI[[#This Row],[List 2]],Table_PI[[#This Row],[List 3]],Table_PI[[#This Row],[Size]],Table_PI[[#This Row],[Input 1]],Table_PI[[#This Row],[Input 2]],Table_PI[[#This Row],[Input 3]],Table_PI[[#This Row],[Input 4]],'Customer Information'!$AR$12,103,ROW()),\"\"),\"\")","v":""},{"$f":"IF(Table_PI[[#This Row],[Input 4]]<>\"\",Table_PI[[#This Row],[Input 4]],\"\")","v":""},{"$f":"IF(Table_PI[[#This Row],[Quantity]]=\"\",\"\",Table_PI[[#This Row],[Quantity]])","v":""},{"$f":"IF(Table_PI[[#This Row],[Notes]]=\"\",\"\",Table_PI[[#This Row],[Notes]])","v":""},{"$f":"IF(OR(Table_PI[[#This Row],[Hide:\nBaseline kWh]]=\"\",Table_PI[[#This Row],[Hide:\nBaseline kWh]]=0),\"\",Table_PI[[#This Row],[Hide:\nBaseline kWh]])","v":""},{"$f":"IF(OR(Table_PI[[#This Row],[Hide:\nBaseline kW]]=\"\",Table_PI[[#This Row],[Hide:\nBaseline kW]]=0),\"\",Table_PI[[#This Row],[Hide:\nBaseline kW]])","v":""},{"$f":"IF(OR(Table_PI[[#This Row],[Hide:\nProposed kWh]]=\"\",Table_PI[[#This Row],[Hide:\nProposed kWh]]=0),\"\",Table_PI[[#This Row],[Hide:\nProposed kWh]])","v":""},{"$f":"IF(OR(Table_PI[[#This Row],[Hide:\nProposed kW]]=\"\",Table_PI[[#This Row],[Hide:\nProposed kW]]=0),\"\",Table_PI[[#This Row],[Hide:\nProposed kW]])","v":""},{"$f":"IF(OR(Table_PI[[#This Row],[Rebate]]=\"\",Table_PI[[#This Row],[Rebate]]=0),\"\",Table_PI[[#This Row],[Rebate]])","v":""},{"$f":"IF(OR(Table_PI[[#This Row],[Hide:\nIncremental Cost]]=\"\",Table_PI[[#This Row],[Hide:\nIncremental Cost]]=0),\"\",Table_PI[[#This Row],[Hide:\nIncremental Cost]])","v":""},{"$f":"IFERROR(IF(Table_SummaryPI[[#This Row],[kWhSavings]]=\"\",\"\",ROUND(Table_SummaryPI[[#This Row],[kWhSavings]]/$AG$401*'Customer Information'!$BC$17,2)),0)","v":""},{"$f":"IF(OR(Table_PI[[#This Row],[Annual kWh]]=\"\",Table_PI[[#This Row],[Annual kWh]]=0),\"\",Table_PI[[#This Row],[Annual kWh]])","v":""},{"$f":"IF(OR(Table_PI[[#This Row],[Peak kW]]=\"\",Table_PI[[#This Row],[Peak kW]]=0),\"\",Table_PI[[#This Row],[Peak kW]])","v":""},{"$f":"IFERROR(IF(Table_SummaryPI[[#This Row],[kWhSavings]]=\"\",\"\",$AU$9*Table_SummaryPI[[#This Row],[kWhSavings]]),0)","v":""},{"$f":"IFERROR(IF(Table_SummaryPI[[#This Row],[kWhSavings]]=\"\",\"\",$AU$14*Table_SummaryPI[[#This Row],[kWhSavings]]),0)","v":""},{"$f":"IFERROR(IF(Table_SummaryPI[[#This Row],[kWhSavings]]=\"\",\"\",$AU$18*Table_SummaryPI[[#This Row],[kWhSavings]]),0)","v":""},{"$f":"IFERROR(IF(Table_SummaryPI[[#This Row],[kWhSavings]]=\"\",\"\",$AU$22*Table_SummaryPI[[#This Row],[kWhSavings]]),0)","v":""},{"$f":"IFERROR(IF(MeasureCalc(Table_PI[[#This Row],[Hide:\nFormula Name]],Table_SummaryPI[[#This Row],[Quantity]],Table_PI[[#This Row],[List 1]],Table_PI[[#This Row],[List 2]],Table_PI[[#This Row],[List 3]],Table_PI[[#This Row],[Size]],Table_PI[[#This Row],[Input 1]],Table_PI[[#This Row],[Input 2]],Table_PI[[#This Row],[Input 3]],Table_PI[[#This Row],[Input 4]],'Customer Information'!$AR$12,200,ROW())<>\"No Rebate\",MeasureCalc(Table_PI[[#This Row],[Hide:\nFormula Name]],Table_SummaryPI[[#This Row],[Quantity]],Table_PI[[#This Row],[List 1]],Table_PI[[#This Row],[List 2]],Table_PI[[#This Row],[List 3]],Table_PI[[#This Row],[Size]],Table_PI[[#This Row],[Input 1]],Table_PI[[#This Row],[Input 2]],Table_PI[[#This Row],[Input 3]],Table_PI[[#This Row],[Input 4]],'Customer Information'!$AR$12,200,ROW()),\"\"),\"\")","v":""},{"$f":"IFERROR(IF(MeasureCalc(Table_PI[[#This Row],[Hide:\nFormula Name]],Table_SummaryPI[[#This Row],[Quantity]],Table_PI[[#This Row],[List 1]],Table_PI[[#This Row],[List 2]],Table_PI[[#This Row],[List 3]],Table_PI[[#This Row],[Size]],Table_PI[[#This Row],[Input 1]],Table_PI[[#This Row],[Input 2]],Table_PI[[#This Row],[Input 3]],Table_PI[[#This Row],[Input 4]],'Customer Information'!$AR$12,201,ROW())<>\"No Rebate\",MeasureCalc(Table_PI[[#This Row],[Hide:\nFormula Name]],Table_SummaryPI[[#This Row],[Quantity]],Table_PI[[#This Row],[List 1]],Table_PI[[#This Row],[List 2]],Table_PI[[#This Row],[List 3]],Table_PI[[#This Row],[Size]],Table_PI[[#This Row],[Input 1]],Table_PI[[#This Row],[Input 2]],Table_PI[[#This Row],[Input 3]],Table_PI[[#This Row],[Input 4]],'Customer Information'!$AR$12,201,ROW()),\"\"),\"\")","v":""}]
[{"$f":"Table_PI[[#This Row],[Line No.]]","v":""},{"$f":"IF(Table_SummaryPI[[#This Row],[MeassureCategory]]<>\"\",CONCATENATE(Table_SummaryPI[[#This Row],[MeassureCategory]],  \" - \", Table_SummaryPI[[#This Row],[ProposedMeasureCategory]],  \" - \", TEXT(Table_SummaryPI[[#This Row],[Size]],\"#,##0.00\"),\" \",Table_SummaryPI[[#This Row],[SizeUnit]]),\"\")","v":""},{"$f":"SUBSTITUTE(Table_PI[[#This Row],[Measure]],\"     \",\"\",1)","v":""},{"$f":"IF(Table_PI[[#This Row],[List 1]]<>\"\",Table_PI[[#This Row],[List 1]],\"\")","v":""},{"$f":"IF(Table_PI[[#This Row],[List 2]]<>\"\",Table_PI[[#This Row],[List 2]],\"\")","v":""},{"$f":"IF(Table_PI[[#This Row],[List 3]]<>\"\",Table_PI[[#This Row],[List 3]],\"\")","v":""},{"$f":"IF(Table_PI[[#This Row],[Manufacturer]]=\"\",\"\",Table_PI[[#This Row],[Manufacturer]])","v":""},{"$f":"IF(Table_PI[[#This Row],[Model Number]]=\"\",\"\",Table_PI[[#This Row],[Model Number]])","v":""},{"$f":"IF(Table_PI[[#This Row],[Serial Number(s)]]=\"\",\"\",Table_PI[[#This Row],[Serial Number(s)]])","v":""},null,{"$f":"IF(Table_PI[[#This Row],[Size]]=\"\",\"\",Table_PI[[#This Row],[Size]])","v":""},null,{"$f":"IFERROR(IF(AND(MeasureCalc(Table_PI[[#This Row],[Hide:\nFormula Name]],Table_SummaryPI[[#This Row],[Quantity]],Table_PI[[#This Row],[List 1]],Table_PI[[#This Row],[List 2]],Table_PI[[#This Row],[List 3]],Table_PI[[#This Row],[Size]],Table_PI[[#This Row],[Input 1]],Table_PI[[#This Row],[Input 2]],Table_PI[[#This Row],[Input 3]],Table_PI[[#This Row],[Input 4]],'Customer Information'!$AR$12,100,ROW())<>0,MeasureCalc(Table_PI[[#This Row],[Hide:\nFormula Name]],Table_SummaryPI[[#This Row],[Quantity]],Table_PI[[#This Row],[List 1]],Table_PI[[#This Row],[List 2]],Table_PI[[#This Row],[List 3]],Table_PI[[#This Row],[Size]],Table_PI[[#This Row],[Input 1]],Table_PI[[#This Row],[Input 2]],Table_PI[[#This Row],[Input 3]],Table_PI[[#This Row],[Input 4]],'Customer Information'!$AR$12,100,ROW())<>\"No Rebate\"),MeasureCalc(Table_PI[[#This Row],[Hide:\nFormula Name]],Table_SummaryPI[[#This Row],[Quantity]],Table_PI[[#This Row],[List 1]],Table_PI[[#This Row],[List 2]],Table_PI[[#This Row],[List 3]],Table_PI[[#This Row],[Size]],Table_PI[[#This Row],[Input 1]],Table_PI[[#This Row],[Input 2]],Table_PI[[#This Row],[Input 3]],Table_PI[[#This Row],[Input 4]],'Customer Information'!$AR$12,100,ROW()),\"\"),\"\")","v":""},{"$f":"IF(Table_PI[[#This Row],[Input 1]]<>\"\",Table_PI[[#This Row],[Input 1]],\"\")","v":""},null,{"$f":"IFERROR(IF(AND(MeasureCalc(Table_PI[[#This Row],[Hide:\nFormula Name]],Table_SummaryPI[[#This Row],[Quantity]],Table_PI[[#This Row],[List 1]],Table_PI[[#This Row],[List 2]],Table_PI[[#This Row],[List 3]],Table_PI[[#This Row],[Size]],Table_PI[[#This Row],[Input 1]],Table_PI[[#This Row],[Input 2]],Table_PI[[#This Row],[Input 3]],Table_PI[[#This Row],[Input 4]],'Customer Information'!$AR$12,101,ROW())<>0,MeasureCalc(Table_PI[[#This Row],[Hide:\nFormula Name]],Table_SummaryPI[[#This Row],[Quantity]],Table_PI[[#This Row],[List 1]],Table_PI[[#This Row],[List 2]],Table_PI[[#This Row],[List 3]],Table_PI[[#This Row],[Size]],Table_PI[[#This Row],[Input 1]],Table_PI[[#This Row],[Input 2]],Table_PI[[#This Row],[Input 3]],Table_PI[[#This Row],[Input 4]],'Customer Information'!$AR$12,101,ROW())<>\"No Rebate\"),MeasureCalc(Table_PI[[#This Row],[Hide:\nFormula Name]],Table_SummaryPI[[#This Row],[Quantity]],Table_PI[[#This Row],[List 1]],Table_PI[[#This Row],[List 2]],Table_PI[[#This Row],[List 3]],Table_PI[[#This Row],[Size]],Table_PI[[#This Row],[Input 1]],Table_PI[[#This Row],[Input 2]],Table_PI[[#This Row],[Input 3]],Table_PI[[#This Row],[Input 4]],'Customer Information'!$AR$12,101,ROW()),\"\"),\"\")","v":""},{"$f":"IF(Table_PI[[#This Row],[Input 2]]<>\"\",Table_PI[[#This Row],[Input 2]],\"\")","v":""},null,{"$f":"IFERROR(IF(AND(MeasureCalc(Table_PI[[#This Row],[Hide:\nFormula Name]],Table_SummaryPI[[#This Row],[Quantity]],Table_PI[[#This Row],[List 1]],Table_PI[[#This Row],[List 2]],Table_PI[[#This Row],[List 3]],Table_PI[[#This Row],[Size]],Table_PI[[#This Row],[Input 1]],Table_PI[[#This Row],[Input 2]],Table_PI[[#This Row],[Input 3]],Table_PI[[#This Row],[Input 4]],'Customer Information'!$AR$12,102,ROW())<>0,MeasureCalc(Table_PI[[#This Row],[Hide:\nFormula Name]],Table_SummaryPI[[#This Row],[Quantity]],Table_PI[[#This Row],[List 1]],Table_PI[[#This Row],[List 2]],Table_PI[[#This Row],[List 3]],Table_PI[[#This Row],[Size]],Table_PI[[#This Row],[Input 1]],Table_PI[[#This Row],[Input 2]],Table_PI[[#This Row],[Input 3]],Table_PI[[#This Row],[Input 4]],'Customer Information'!$AR$12,102,ROW())<>\"No Rebate\"),MeasureCalc(Table_PI[[#This Row],[Hide:\nFormula Name]],Table_SummaryPI[[#This Row],[Quantity]],Table_PI[[#This Row],[List 1]],Table_PI[[#This Row],[List 2]],Table_PI[[#This Row],[List 3]],Table_PI[[#This Row],[Size]],Table_PI[[#This Row],[Input 1]],Table_PI[[#This Row],[Input 2]],Table_PI[[#This Row],[Input 3]],Table_PI[[#This Row],[Input 4]],'Customer Information'!$AR$12,102,ROW()),\"\"),\"\")","v":""},{"$f":"IF(Table_PI[[#This Row],[Input 3]]<>\"\",Table_PI[[#This Row],[Input 3]],\"\")","v":""},null,{"$f":"IFERROR(IF(AND(MeasureCalc(Table_PI[[#This Row],[Hide:\nFormula Name]],Table_SummaryPI[[#This Row],[Quantity]],Table_PI[[#This Row],[List 1]],Table_PI[[#This Row],[List 2]],Table_PI[[#This Row],[List 3]],Table_PI[[#This Row],[Size]],Table_PI[[#This Row],[Input 1]],Table_PI[[#This Row],[Input 2]],Table_PI[[#This Row],[Input 3]],Table_PI[[#This Row],[Input 4]],'Customer Information'!$AR$12,103,ROW())<>0,MeasureCalc(Table_PI[[#This Row],[Hide:\nFormula Name]],Table_SummaryPI[[#This Row],[Quantity]],Table_PI[[#This Row],[List 1]],Table_PI[[#This Row],[List 2]],Table_PI[[#This Row],[List 3]],Table_PI[[#This Row],[Size]],Table_PI[[#This Row],[Input 1]],Table_PI[[#This Row],[Input 2]],Table_PI[[#This Row],[Input 3]],Table_PI[[#This Row],[Input 4]],'Customer Information'!$AR$12,103,ROW())<>\"No Rebate\"),MeasureCalc(Table_PI[[#This Row],[Hide:\nFormula Name]],Table_SummaryPI[[#This Row],[Quantity]],Table_PI[[#This Row],[List 1]],Table_PI[[#This Row],[List 2]],Table_PI[[#This Row],[List 3]],Table_PI[[#This Row],[Size]],Table_PI[[#This Row],[Input 1]],Table_PI[[#This Row],[Input 2]],Table_PI[[#This Row],[Input 3]],Table_PI[[#This Row],[Input 4]],'Customer Information'!$AR$12,103,ROW()),\"\"),\"\")","v":""},{"$f":"IF(Table_PI[[#This Row],[Input 4]]<>\"\",Table_PI[[#This Row],[Input 4]],\"\")","v":""},{"$f":"IF(Table_PI[[#This Row],[Quantity]]=\"\",\"\",Table_PI[[#This Row],[Quantity]])","v":""},{"$f":"IF(Table_PI[[#This Row],[Notes]]=\"\",\"\",Table_PI[[#This Row],[Notes]])","v":""},{"$f":"IF(OR(Table_PI[[#This Row],[Hide:\nBaseline kWh]]=\"\",Table_PI[[#This Row],[Hide:\nBaseline kWh]]=0),\"\",Table_PI[[#This Row],[Hide:\nBaseline kWh]])","v":""},{"$f":"IF(OR(Table_PI[[#This Row],[Hide:\nBaseline kW]]=\"\",Table_PI[[#This Row],[Hide:\nBaseline kW]]=0),\"\",Table_PI[[#This Row],[Hide:\nBaseline kW]])","v":""},{"$f":"IF(OR(Table_PI[[#This Row],[Hide:\nProposed kWh]]=\"\",Table_PI[[#This Row],[Hide:\nProposed kWh]]=0),\"\",Table_PI[[#This Row],[Hide:\nProposed kWh]])","v":""},{"$f":"IF(OR(Table_PI[[#This Row],[Hide:\nProposed kW]]=\"\",Table_PI[[#This Row],[Hide:\nProposed kW]]=0),\"\",Table_PI[[#This Row],[Hide:\nProposed kW]])","v":""},{"$f":"IF(OR(Table_PI[[#This Row],[Rebate]]=\"\",Table_PI[[#This Row],[Rebate]]=0),\"\",Table_PI[[#This Row],[Rebate]])","v":""},{"$f":"IF(OR(Table_PI[[#This Row],[Hide:\nIncremental Cost]]=\"\",Table_PI[[#This Row],[Hide:\nIncremental Cost]]=0),\"\",Table_PI[[#This Row],[Hide:\nIncremental Cost]])","v":""},{"$f":"IFERROR(IF(Table_SummaryPI[[#This Row],[kWhSavings]]=\"\",\"\",ROUND(Table_SummaryPI[[#This Row],[kWhSavings]]/$AG$401*'Customer Information'!$BC$17,2)),0)","v":""},{"$f":"IF(OR(Table_PI[[#This Row],[Annual kWh]]=\"\",Table_PI[[#This Row],[Annual kWh]]=0),\"\",Table_PI[[#This Row],[Annual kWh]])","v":""},{"$f":"IF(OR(Table_PI[[#This Row],[Peak kW]]=\"\",Table_PI[[#This Row],[Peak kW]]=0),\"\",Table_PI[[#This Row],[Peak kW]])","v":""},{"$f":"IFERROR(IF(Table_SummaryPI[[#This Row],[kWhSavings]]=\"\",\"\",$AU$9*Table_SummaryPI[[#This Row],[kWhSavings]]),0)","v":""},{"$f":"IFERROR(IF(Table_SummaryPI[[#This Row],[kWhSavings]]=\"\",\"\",$AU$14*Table_SummaryPI[[#This Row],[kWhSavings]]),0)","v":""},{"$f":"IFERROR(IF(Table_SummaryPI[[#This Row],[kWhSavings]]=\"\",\"\",$AU$18*Table_SummaryPI[[#This Row],[kWhSavings]]),0)","v":""},{"$f":"IFERROR(IF(Table_SummaryPI[[#This Row],[kWhSavings]]=\"\",\"\",$AU$22*Table_SummaryPI[[#This Row],[kWhSavings]]),0)","v":""},{"$f":"IFERROR(IF(MeasureCalc(Table_PI[[#This Row],[Hide:\nFormula Name]],Table_SummaryPI[[#This Row],[Quantity]],Table_PI[[#This Row],[List 1]],Table_PI[[#This Row],[List 2]],Table_PI[[#This Row],[List 3]],Table_PI[[#This Row],[Size]],Table_PI[[#This Row],[Input 1]],Table_PI[[#This Row],[Input 2]],Table_PI[[#This Row],[Input 3]],Table_PI[[#This Row],[Input 4]],'Customer Information'!$AR$12,200,ROW())<>\"No Rebate\",MeasureCalc(Table_PI[[#This Row],[Hide:\nFormula Name]],Table_SummaryPI[[#This Row],[Quantity]],Table_PI[[#This Row],[List 1]],Table_PI[[#This Row],[List 2]],Table_PI[[#This Row],[List 3]],Table_PI[[#This Row],[Size]],Table_PI[[#This Row],[Input 1]],Table_PI[[#This Row],[Input 2]],Table_PI[[#This Row],[Input 3]],Table_PI[[#This Row],[Input 4]],'Customer Information'!$AR$12,200,ROW()),\"\"),\"\")","v":""},{"$f":"IFERROR(IF(MeasureCalc(Table_PI[[#This Row],[Hide:\nFormula Name]],Table_SummaryPI[[#This Row],[Quantity]],Table_PI[[#This Row],[List 1]],Table_PI[[#This Row],[List 2]],Table_PI[[#This Row],[List 3]],Table_PI[[#This Row],[Size]],Table_PI[[#This Row],[Input 1]],Table_PI[[#This Row],[Input 2]],Table_PI[[#This Row],[Input 3]],Table_PI[[#This Row],[Input 4]],'Customer Information'!$AR$12,201,ROW())<>\"No Rebate\",MeasureCalc(Table_PI[[#This Row],[Hide:\nFormula Name]],Table_SummaryPI[[#This Row],[Quantity]],Table_PI[[#This Row],[List 1]],Table_PI[[#This Row],[List 2]],Table_PI[[#This Row],[List 3]],Table_PI[[#This Row],[Size]],Table_PI[[#This Row],[Input 1]],Table_PI[[#This Row],[Input 2]],Table_PI[[#This Row],[Input 3]],Table_PI[[#This Row],[Input 4]],'Customer Information'!$AR$12,201,ROW()),\"\"),\"\")","v":""}]
[{"$f":"Table_PI[[#This Row],[Line No.]]","v":""},{"$f":"IF(Table_SummaryPI[[#This Row],[MeassureCategory]]<>\"\",CONCATENATE(Table_SummaryPI[[#This Row],[MeassureCategory]],  \" - \", Table_SummaryPI[[#This Row],[ProposedMeasureCategory]],  \" - \", TEXT(Table_SummaryPI[[#This Row],[Size]],\"#,##0.00\"),\" \",Table_SummaryPI[[#This Row],[SizeUnit]]),\"\")","v":""},{"$f":"SUBSTITUTE(Table_PI[[#This Row],[Measure]],\"     \",\"\",1)","v":""},{"$f":"IF(Table_PI[[#This Row],[List 1]]<>\"\",Table_PI[[#This Row],[List 1]],\"\")","v":""},{"$f":"IF(Table_PI[[#This Row],[List 2]]<>\"\",Table_PI[[#This Row],[List 2]],\"\")","v":""},{"$f":"IF(Table_PI[[#This Row],[List 3]]<>\"\",Table_PI[[#This Row],[List 3]],\"\")","v":""},{"$f":"IF(Table_PI[[#This Row],[Manufacturer]]=\"\",\"\",Table_PI[[#This Row],[Manufacturer]])","v":""},{"$f":"IF(Table_PI[[#This Row],[Model Number]]=\"\",\"\",Table_PI[[#This Row],[Model Number]])","v":""},{"$f":"IF(Table_PI[[#This Row],[Serial Number(s)]]=\"\",\"\",Table_PI[[#This Row],[Serial Number(s)]])","v":""},null,{"$f":"IF(Table_PI[[#This Row],[Size]]=\"\",\"\",Table_PI[[#This Row],[Size]])","v":""},null,{"$f":"IFERROR(IF(AND(MeasureCalc(Table_PI[[#This Row],[Hide:\nFormula Name]],Table_SummaryPI[[#This Row],[Quantity]],Table_PI[[#This Row],[List 1]],Table_PI[[#This Row],[List 2]],Table_PI[[#This Row],[List 3]],Table_PI[[#This Row],[Size]],Table_PI[[#This Row],[Input 1]],Table_PI[[#This Row],[Input 2]],Table_PI[[#This Row],[Input 3]],Table_PI[[#This Row],[Input 4]],'Customer Information'!$AR$12,100,ROW())<>0,MeasureCalc(Table_PI[[#This Row],[Hide:\nFormula Name]],Table_SummaryPI[[#This Row],[Quantity]],Table_PI[[#This Row],[List 1]],Table_PI[[#This Row],[List 2]],Table_PI[[#This Row],[List 3]],Table_PI[[#This Row],[Size]],Table_PI[[#This Row],[Input 1]],Table_PI[[#This Row],[Input 2]],Table_PI[[#This Row],[Input 3]],Table_PI[[#This Row],[Input 4]],'Customer Information'!$AR$12,100,ROW())<>\"No Rebate\"),MeasureCalc(Table_PI[[#This Row],[Hide:\nFormula Name]],Table_SummaryPI[[#This Row],[Quantity]],Table_PI[[#This Row],[List 1]],Table_PI[[#This Row],[List 2]],Table_PI[[#This Row],[List 3]],Table_PI[[#This Row],[Size]],Table_PI[[#This Row],[Input 1]],Table_PI[[#This Row],[Input 2]],Table_PI[[#This Row],[Input 3]],Table_PI[[#This Row],[Input 4]],'Customer Information'!$AR$12,100,ROW()),\"\"),\"\")","v":""},{"$f":"IF(Table_PI[[#This Row],[Input 1]]<>\"\",Table_PI[[#This Row],[Input 1]],\"\")","v":""},null,{"$f":"IFERROR(IF(AND(MeasureCalc(Table_PI[[#This Row],[Hide:\nFormula Name]],Table_SummaryPI[[#This Row],[Quantity]],Table_PI[[#This Row],[List 1]],Table_PI[[#This Row],[List 2]],Table_PI[[#This Row],[List 3]],Table_PI[[#This Row],[Size]],Table_PI[[#This Row],[Input 1]],Table_PI[[#This Row],[Input 2]],Table_PI[[#This Row],[Input 3]],Table_PI[[#This Row],[Input 4]],'Customer Information'!$AR$12,101,ROW())<>0,MeasureCalc(Table_PI[[#This Row],[Hide:\nFormula Name]],Table_SummaryPI[[#This Row],[Quantity]],Table_PI[[#This Row],[List 1]],Table_PI[[#This Row],[List 2]],Table_PI[[#This Row],[List 3]],Table_PI[[#This Row],[Size]],Table_PI[[#This Row],[Input 1]],Table_PI[[#This Row],[Input 2]],Table_PI[[#This Row],[Input 3]],Table_PI[[#This Row],[Input 4]],'Customer Information'!$AR$12,101,ROW())<>\"No Rebate\"),MeasureCalc(Table_PI[[#This Row],[Hide:\nFormula Name]],Table_SummaryPI[[#This Row],[Quantity]],Table_PI[[#This Row],[List 1]],Table_PI[[#This Row],[List 2]],Table_PI[[#This Row],[List 3]],Table_PI[[#This Row],[Size]],Table_PI[[#This Row],[Input 1]],Table_PI[[#This Row],[Input 2]],Table_PI[[#This Row],[Input 3]],Table_PI[[#This Row],[Input 4]],'Customer Information'!$AR$12,101,ROW()),\"\"),\"\")","v":""},{"$f":"IF(Table_PI[[#This Row],[Input 2]]<>\"\",Table_PI[[#This Row],[Input 2]],\"\")","v":""},null,{"$f":"IFERROR(IF(AND(MeasureCalc(Table_PI[[#This Row],[Hide:\nFormula Name]],Table_SummaryPI[[#This Row],[Quantity]],Table_PI[[#This Row],[List 1]],Table_PI[[#This Row],[List 2]],Table_PI[[#This Row],[List 3]],Table_PI[[#This Row],[Size]],Table_PI[[#This Row],[Input 1]],Table_PI[[#This Row],[Input 2]],Table_PI[[#This Row],[Input 3]],Table_PI[[#This Row],[Input 4]],'Customer Information'!$AR$12,102,ROW())<>0,MeasureCalc(Table_PI[[#This Row],[Hide:\nFormula Name]],Table_SummaryPI[[#This Row],[Quantity]],Table_PI[[#This Row],[List 1]],Table_PI[[#This Row],[List 2]],Table_PI[[#This Row],[List 3]],Table_PI[[#This Row],[Size]],Table_PI[[#This Row],[Input 1]],Table_PI[[#This Row],[Input 2]],Table_PI[[#This Row],[Input 3]],Table_PI[[#This Row],[Input 4]],'Customer Information'!$AR$12,102,ROW())<>\"No Rebate\"),MeasureCalc(Table_PI[[#This Row],[Hide:\nFormula Name]],Table_SummaryPI[[#This Row],[Quantity]],Table_PI[[#This Row],[List 1]],Table_PI[[#This Row],[List 2]],Table_PI[[#This Row],[List 3]],Table_PI[[#This Row],[Size]],Table_PI[[#This Row],[Input 1]],Table_PI[[#This Row],[Input 2]],Table_PI[[#This Row],[Input 3]],Table_PI[[#This Row],[Input 4]],'Customer Information'!$AR$12,102,ROW()),\"\"),\"\")","v":""},{"$f":"IF(Table_PI[[#This Row],[Input 3]]<>\"\",Table_PI[[#This Row],[Input 3]],\"\")","v":""},null,{"$f":"IFERROR(IF(AND(MeasureCalc(Table_PI[[#This Row],[Hide:\nFormula Name]],Table_SummaryPI[[#This Row],[Quantity]],Table_PI[[#This Row],[List 1]],Table_PI[[#This Row],[List 2]],Table_PI[[#This Row],[List 3]],Table_PI[[#This Row],[Size]],Table_PI[[#This Row],[Input 1]],Table_PI[[#This Row],[Input 2]],Table_PI[[#This Row],[Input 3]],Table_PI[[#This Row],[Input 4]],'Customer Information'!$AR$12,103,ROW())<>0,MeasureCalc(Table_PI[[#This Row],[Hide:\nFormula Name]],Table_SummaryPI[[#This Row],[Quantity]],Table_PI[[#This Row],[List 1]],Table_PI[[#This Row],[List 2]],Table_PI[[#This Row],[List 3]],Table_PI[[#This Row],[Size]],Table_PI[[#This Row],[Input 1]],Table_PI[[#This Row],[Input 2]],Table_PI[[#This Row],[Input 3]],Table_PI[[#This Row],[Input 4]],'Customer Information'!$AR$12,103,ROW())<>\"No Rebate\"),MeasureCalc(Table_PI[[#This Row],[Hide:\nFormula Name]],Table_SummaryPI[[#This Row],[Quantity]],Table_PI[[#This Row],[List 1]],Table_PI[[#This Row],[List 2]],Table_PI[[#This Row],[List 3]],Table_PI[[#This Row],[Size]],Table_PI[[#This Row],[Input 1]],Table_PI[[#This Row],[Input 2]],Table_PI[[#This Row],[Input 3]],Table_PI[[#This Row],[Input 4]],'Customer Information'!$AR$12,103,ROW()),\"\"),\"\")","v":""},{"$f":"IF(Table_PI[[#This Row],[Input 4]]<>\"\",Table_PI[[#This Row],[Input 4]],\"\")","v":""},{"$f":"IF(Table_PI[[#This Row],[Quantity]]=\"\",\"\",Table_PI[[#This Row],[Quantity]])","v":""},{"$f":"IF(Table_PI[[#This Row],[Notes]]=\"\",\"\",Table_PI[[#This Row],[Notes]])","v":""},{"$f":"IF(OR(Table_PI[[#This Row],[Hide:\nBaseline kWh]]=\"\",Table_PI[[#This Row],[Hide:\nBaseline kWh]]=0),\"\",Table_PI[[#This Row],[Hide:\nBaseline kWh]])","v":""},{"$f":"IF(OR(Table_PI[[#This Row],[Hide:\nBaseline kW]]=\"\",Table_PI[[#This Row],[Hide:\nBaseline kW]]=0),\"\",Table_PI[[#This Row],[Hide:\nBaseline kW]])","v":""},{"$f":"IF(OR(Table_PI[[#This Row],[Hide:\nProposed kWh]]=\"\",Table_PI[[#This Row],[Hide:\nProposed kWh]]=0),\"\",Table_PI[[#This Row],[Hide:\nProposed kWh]])","v":""},{"$f":"IF(OR(Table_PI[[#This Row],[Hide:\nProposed kW]]=\"\",Table_PI[[#This Row],[Hide:\nProposed kW]]=0),\"\",Table_PI[[#This Row],[Hide:\nProposed kW]])","v":""},{"$f":"IF(OR(Table_PI[[#This Row],[Rebate]]=\"\",Table_PI[[#This Row],[Rebate]]=0),\"\",Table_PI[[#This Row],[Rebate]])","v":""},{"$f":"IF(OR(Table_PI[[#This Row],[Hide:\nIncremental Cost]]=\"\",Table_PI[[#This Row],[Hide:\nIncremental Cost]]=0),\"\",Table_PI[[#This Row],[Hide:\nIncremental Cost]])","v":""},{"$f":"IFERROR(IF(Table_SummaryPI[[#This Row],[kWhSavings]]=\"\",\"\",ROUND(Table_SummaryPI[[#This Row],[kWhSavings]]/$AG$401*'Customer Information'!$BC$17,2)),0)","v":""},{"$f":"IF(OR(Table_PI[[#This Row],[Annual kWh]]=\"\",Table_PI[[#This Row],[Annual kWh]]=0),\"\",Table_PI[[#This Row],[Annual kWh]])","v":""},{"$f":"IF(OR(Table_PI[[#This Row],[Peak kW]]=\"\",Table_PI[[#This Row],[Peak kW]]=0),\"\",Table_PI[[#This Row],[Peak kW]])","v":""},{"$f":"IFERROR(IF(Table_SummaryPI[[#This Row],[kWhSavings]]=\"\",\"\",$AU$9*Table_SummaryPI[[#This Row],[kWhSavings]]),0)","v":""},{"$f":"IFERROR(IF(Table_SummaryPI[[#This Row],[kWhSavings]]=\"\",\"\",$AU$14*Table_SummaryPI[[#This Row],[kWhSavings]]),0)","v":""},{"$f":"IFERROR(IF(Table_SummaryPI[[#This Row],[kWhSavings]]=\"\",\"\",$AU$18*Table_SummaryPI[[#This Row],[kWhSavings]]),0)","v":""},{"$f":"IFERROR(IF(Table_SummaryPI[[#This Row],[kWhSavings]]=\"\",\"\",$AU$22*Table_SummaryPI[[#This Row],[kWhSavings]]),0)","v":""},{"$f":"IFERROR(IF(MeasureCalc(Table_PI[[#This Row],[Hide:\nFormula Name]],Table_SummaryPI[[#This Row],[Quantity]],Table_PI[[#This Row],[List 1]],Table_PI[[#This Row],[List 2]],Table_PI[[#This Row],[List 3]],Table_PI[[#This Row],[Size]],Table_PI[[#This Row],[Input 1]],Table_PI[[#This Row],[Input 2]],Table_PI[[#This Row],[Input 3]],Table_PI[[#This Row],[Input 4]],'Customer Information'!$AR$12,200,ROW())<>\"No Rebate\",MeasureCalc(Table_PI[[#This Row],[Hide:\nFormula Name]],Table_SummaryPI[[#This Row],[Quantity]],Table_PI[[#This Row],[List 1]],Table_PI[[#This Row],[List 2]],Table_PI[[#This Row],[List 3]],Table_PI[[#This Row],[Size]],Table_PI[[#This Row],[Input 1]],Table_PI[[#This Row],[Input 2]],Table_PI[[#This Row],[Input 3]],Table_PI[[#This Row],[Input 4]],'Customer Information'!$AR$12,200,ROW()),\"\"),\"\")","v":""},{"$f":"IFERROR(IF(MeasureCalc(Table_PI[[#This Row],[Hide:\nFormula Name]],Table_SummaryPI[[#This Row],[Quantity]],Table_PI[[#This Row],[List 1]],Table_PI[[#This Row],[List 2]],Table_PI[[#This Row],[List 3]],Table_PI[[#This Row],[Size]],Table_PI[[#This Row],[Input 1]],Table_PI[[#This Row],[Input 2]],Table_PI[[#This Row],[Input 3]],Table_PI[[#This Row],[Input 4]],'Customer Information'!$AR$12,201,ROW())<>\"No Rebate\",MeasureCalc(Table_PI[[#This Row],[Hide:\nFormula Name]],Table_SummaryPI[[#This Row],[Quantity]],Table_PI[[#This Row],[List 1]],Table_PI[[#This Row],[List 2]],Table_PI[[#This Row],[List 3]],Table_PI[[#This Row],[Size]],Table_PI[[#This Row],[Input 1]],Table_PI[[#This Row],[Input 2]],Table_PI[[#This Row],[Input 3]],Table_PI[[#This Row],[Input 4]],'Customer Information'!$AR$12,201,ROW()),\"\"),\"\")","v":""}]
[{"$f":"Table_PI[[#This Row],[Line No.]]","v":""},{"$f":"IF(Table_SummaryPI[[#This Row],[MeassureCategory]]<>\"\",CONCATENATE(Table_SummaryPI[[#This Row],[MeassureCategory]],  \" - \", Table_SummaryPI[[#This Row],[ProposedMeasureCategory]],  \" - \", TEXT(Table_SummaryPI[[#This Row],[Size]],\"#,##0.00\"),\" \",Table_SummaryPI[[#This Row],[SizeUnit]]),\"\")","v":""},{"$f":"SUBSTITUTE(Table_PI[[#This Row],[Measure]],\"     \",\"\",1)","v":""},{"$f":"IF(Table_PI[[#This Row],[List 1]]<>\"\",Table_PI[[#This Row],[List 1]],\"\")","v":""},{"$f":"IF(Table_PI[[#This Row],[List 2]]<>\"\",Table_PI[[#This Row],[List 2]],\"\")","v":""},{"$f":"IF(Table_PI[[#This Row],[List 3]]<>\"\",Table_PI[[#This Row],[List 3]],\"\")","v":""},{"$f":"IF(Table_PI[[#This Row],[Manufacturer]]=\"\",\"\",Table_PI[[#This Row],[Manufacturer]])","v":""},{"$f":"IF(Table_PI[[#This Row],[Model Number]]=\"\",\"\",Table_PI[[#This Row],[Model Number]])","v":""},{"$f":"IF(Table_PI[[#This Row],[Serial Number(s)]]=\"\",\"\",Table_PI[[#This Row],[Serial Number(s)]])","v":""},null,{"$f":"IF(Table_PI[[#This Row],[Size]]=\"\",\"\",Table_PI[[#This Row],[Size]])","v":""},null,{"$f":"IFERROR(IF(AND(MeasureCalc(Table_PI[[#This Row],[Hide:\nFormula Name]],Table_SummaryPI[[#This Row],[Quantity]],Table_PI[[#This Row],[List 1]],Table_PI[[#This Row],[List 2]],Table_PI[[#This Row],[List 3]],Table_PI[[#This Row],[Size]],Table_PI[[#This Row],[Input 1]],Table_PI[[#This Row],[Input 2]],Table_PI[[#This Row],[Input 3]],Table_PI[[#This Row],[Input 4]],'Customer Information'!$AR$12,100,ROW())<>0,MeasureCalc(Table_PI[[#This Row],[Hide:\nFormula Name]],Table_SummaryPI[[#This Row],[Quantity]],Table_PI[[#This Row],[List 1]],Table_PI[[#This Row],[List 2]],Table_PI[[#This Row],[List 3]],Table_PI[[#This Row],[Size]],Table_PI[[#This Row],[Input 1]],Table_PI[[#This Row],[Input 2]],Table_PI[[#This Row],[Input 3]],Table_PI[[#This Row],[Input 4]],'Customer Information'!$AR$12,100,ROW())<>\"No Rebate\"),MeasureCalc(Table_PI[[#This Row],[Hide:\nFormula Name]],Table_SummaryPI[[#This Row],[Quantity]],Table_PI[[#This Row],[List 1]],Table_PI[[#This Row],[List 2]],Table_PI[[#This Row],[List 3]],Table_PI[[#This Row],[Size]],Table_PI[[#This Row],[Input 1]],Table_PI[[#This Row],[Input 2]],Table_PI[[#This Row],[Input 3]],Table_PI[[#This Row],[Input 4]],'Customer Information'!$AR$12,100,ROW()),\"\"),\"\")","v":""},{"$f":"IF(Table_PI[[#This Row],[Input 1]]<>\"\",Table_PI[[#This Row],[Input 1]],\"\")","v":""},null,{"$f":"IFERROR(IF(AND(MeasureCalc(Table_PI[[#This Row],[Hide:\nFormula Name]],Table_SummaryPI[[#This Row],[Quantity]],Table_PI[[#This Row],[List 1]],Table_PI[[#This Row],[List 2]],Table_PI[[#This Row],[List 3]],Table_PI[[#This Row],[Size]],Table_PI[[#This Row],[Input 1]],Table_PI[[#This Row],[Input 2]],Table_PI[[#This Row],[Input 3]],Table_PI[[#This Row],[Input 4]],'Customer Information'!$AR$12,101,ROW())<>0,MeasureCalc(Table_PI[[#This Row],[Hide:\nFormula Name]],Table_SummaryPI[[#This Row],[Quantity]],Table_PI[[#This Row],[List 1]],Table_PI[[#This Row],[List 2]],Table_PI[[#This Row],[List 3]],Table_PI[[#This Row],[Size]],Table_PI[[#This Row],[Input 1]],Table_PI[[#This Row],[Input 2]],Table_PI[[#This Row],[Input 3]],Table_PI[[#This Row],[Input 4]],'Customer Information'!$AR$12,101,ROW())<>\"No Rebate\"),MeasureCalc(Table_PI[[#This Row],[Hide:\nFormula Name]],Table_SummaryPI[[#This Row],[Quantity]],Table_PI[[#This Row],[List 1]],Table_PI[[#This Row],[List 2]],Table_PI[[#This Row],[List 3]],Table_PI[[#This Row],[Size]],Table_PI[[#This Row],[Input 1]],Table_PI[[#This Row],[Input 2]],Table_PI[[#This Row],[Input 3]],Table_PI[[#This Row],[Input 4]],'Customer Information'!$AR$12,101,ROW()),\"\"),\"\")","v":""},{"$f":"IF(Table_PI[[#This Row],[Input 2]]<>\"\",Table_PI[[#This Row],[Input 2]],\"\")","v":""},null,{"$f":"IFERROR(IF(AND(MeasureCalc(Table_PI[[#This Row],[Hide:\nFormula Name]],Table_SummaryPI[[#This Row],[Quantity]],Table_PI[[#This Row],[List 1]],Table_PI[[#This Row],[List 2]],Table_PI[[#This Row],[List 3]],Table_PI[[#This Row],[Size]],Table_PI[[#This Row],[Input 1]],Table_PI[[#This Row],[Input 2]],Table_PI[[#This Row],[Input 3]],Table_PI[[#This Row],[Input 4]],'Customer Information'!$AR$12,102,ROW())<>0,MeasureCalc(Table_PI[[#This Row],[Hide:\nFormula Name]],Table_SummaryPI[[#This Row],[Quantity]],Table_PI[[#This Row],[List 1]],Table_PI[[#This Row],[List 2]],Table_PI[[#This Row],[List 3]],Table_PI[[#This Row],[Size]],Table_PI[[#This Row],[Input 1]],Table_PI[[#This Row],[Input 2]],Table_PI[[#This Row],[Input 3]],Table_PI[[#This Row],[Input 4]],'Customer Information'!$AR$12,102,ROW())<>\"No Rebate\"),MeasureCalc(Table_PI[[#This Row],[Hide:\nFormula Name]],Table_SummaryPI[[#This Row],[Quantity]],Table_PI[[#This Row],[List 1]],Table_PI[[#This Row],[List 2]],Table_PI[[#This Row],[List 3]],Table_PI[[#This Row],[Size]],Table_PI[[#This Row],[Input 1]],Table_PI[[#This Row],[Input 2]],Table_PI[[#This Row],[Input 3]],Table_PI[[#This Row],[Input 4]],'Customer Information'!$AR$12,102,ROW()),\"\"),\"\")","v":""},{"$f":"IF(Table_PI[[#This Row],[Input 3]]<>\"\",Table_PI[[#This Row],[Input 3]],\"\")","v":""},null,{"$f":"IFERROR(IF(AND(MeasureCalc(Table_PI[[#This Row],[Hide:\nFormula Name]],Table_SummaryPI[[#This Row],[Quantity]],Table_PI[[#This Row],[List 1]],Table_PI[[#This Row],[List 2]],Table_PI[[#This Row],[List 3]],Table_PI[[#This Row],[Size]],Table_PI[[#This Row],[Input 1]],Table_PI[[#This Row],[Input 2]],Table_PI[[#This Row],[Input 3]],Table_PI[[#This Row],[Input 4]],'Customer Information'!$AR$12,103,ROW())<>0,MeasureCalc(Table_PI[[#This Row],[Hide:\nFormula Name]],Table_SummaryPI[[#This Row],[Quantity]],Table_PI[[#This Row],[List 1]],Table_PI[[#This Row],[List 2]],Table_PI[[#This Row],[List 3]],Table_PI[[#This Row],[Size]],Table_PI[[#This Row],[Input 1]],Table_PI[[#This Row],[Input 2]],Table_PI[[#This Row],[Input 3]],Table_PI[[#This Row],[Input 4]],'Customer Information'!$AR$12,103,ROW())<>\"No Rebate\"),MeasureCalc(Table_PI[[#This Row],[Hide:\nFormula Name]],Table_SummaryPI[[#This Row],[Quantity]],Table_PI[[#This Row],[List 1]],Table_PI[[#This Row],[List 2]],Table_PI[[#This Row],[List 3]],Table_PI[[#This Row],[Size]],Table_PI[[#This Row],[Input 1]],Table_PI[[#This Row],[Input 2]],Table_PI[[#This Row],[Input 3]],Table_PI[[#This Row],[Input 4]],'Customer Information'!$AR$12,103,ROW()),\"\"),\"\")","v":""},{"$f":"IF(Table_PI[[#This Row],[Input 4]]<>\"\",Table_PI[[#This Row],[Input 4]],\"\")","v":""},{"$f":"IF(Table_PI[[#This Row],[Quantity]]=\"\",\"\",Table_PI[[#This Row],[Quantity]])","v":""},{"$f":"IF(Table_PI[[#This Row],[Notes]]=\"\",\"\",Table_PI[[#This Row],[Notes]])","v":""},{"$f":"IF(OR(Table_PI[[#This Row],[Hide:\nBaseline kWh]]=\"\",Table_PI[[#This Row],[Hide:\nBaseline kWh]]=0),\"\",Table_PI[[#This Row],[Hide:\nBaseline kWh]])","v":""},{"$f":"IF(OR(Table_PI[[#This Row],[Hide:\nBaseline kW]]=\"\",Table_PI[[#This Row],[Hide:\nBaseline kW]]=0),\"\",Table_PI[[#This Row],[Hide:\nBaseline kW]])","v":""},{"$f":"IF(OR(Table_PI[[#This Row],[Hide:\nProposed kWh]]=\"\",Table_PI[[#This Row],[Hide:\nProposed kWh]]=0),\"\",Table_PI[[#This Row],[Hide:\nProposed kWh]])","v":""},{"$f":"IF(OR(Table_PI[[#This Row],[Hide:\nProposed kW]]=\"\",Table_PI[[#This Row],[Hide:\nProposed kW]]=0),\"\",Table_PI[[#This Row],[Hide:\nProposed kW]])","v":""},{"$f":"IF(OR(Table_PI[[#This Row],[Rebate]]=\"\",Table_PI[[#This Row],[Rebate]]=0),\"\",Table_PI[[#This Row],[Rebate]])","v":""},{"$f":"IF(OR(Table_PI[[#This Row],[Hide:\nIncremental Cost]]=\"\",Table_PI[[#This Row],[Hide:\nIncremental Cost]]=0),\"\",Table_PI[[#This Row],[Hide:\nIncremental Cost]])","v":""},{"$f":"IFERROR(IF(Table_SummaryPI[[#This Row],[kWhSavings]]=\"\",\"\",ROUND(Table_SummaryPI[[#This Row],[kWhSavings]]/$AG$401*'Customer Information'!$BC$17,2)),0)","v":""},{"$f":"IF(OR(Table_PI[[#This Row],[Annual kWh]]=\"\",Table_PI[[#This Row],[Annual kWh]]=0),\"\",Table_PI[[#This Row],[Annual kWh]])","v":""},{"$f":"IF(OR(Table_PI[[#This Row],[Peak kW]]=\"\",Table_PI[[#This Row],[Peak kW]]=0),\"\",Table_PI[[#This Row],[Peak kW]])","v":""},{"$f":"IFERROR(IF(Table_SummaryPI[[#This Row],[kWhSavings]]=\"\",\"\",$AU$9*Table_SummaryPI[[#This Row],[kWhSavings]]),0)","v":""},{"$f":"IFERROR(IF(Table_SummaryPI[[#This Row],[kWhSavings]]=\"\",\"\",$AU$14*Table_SummaryPI[[#This Row],[kWhSavings]]),0)","v":""},{"$f":"IFERROR(IF(Table_SummaryPI[[#This Row],[kWhSavings]]=\"\",\"\",$AU$18*Table_SummaryPI[[#This Row],[kWhSavings]]),0)","v":""},{"$f":"IFERROR(IF(Table_SummaryPI[[#This Row],[kWhSavings]]=\"\",\"\",$AU$22*Table_SummaryPI[[#This Row],[kWhSavings]]),0)","v":""},{"$f":"IFERROR(IF(MeasureCalc(Table_PI[[#This Row],[Hide:\nFormula Name]],Table_SummaryPI[[#This Row],[Quantity]],Table_PI[[#This Row],[List 1]],Table_PI[[#This Row],[List 2]],Table_PI[[#This Row],[List 3]],Table_PI[[#This Row],[Size]],Table_PI[[#This Row],[Input 1]],Table_PI[[#This Row],[Input 2]],Table_PI[[#This Row],[Input 3]],Table_PI[[#This Row],[Input 4]],'Customer Information'!$AR$12,200,ROW())<>\"No Rebate\",MeasureCalc(Table_PI[[#This Row],[Hide:\nFormula Name]],Table_SummaryPI[[#This Row],[Quantity]],Table_PI[[#This Row],[List 1]],Table_PI[[#This Row],[List 2]],Table_PI[[#This Row],[List 3]],Table_PI[[#This Row],[Size]],Table_PI[[#This Row],[Input 1]],Table_PI[[#This Row],[Input 2]],Table_PI[[#This Row],[Input 3]],Table_PI[[#This Row],[Input 4]],'Customer Information'!$AR$12,200,ROW()),\"\"),\"\")","v":""},{"$f":"IFERROR(IF(MeasureCalc(Table_PI[[#This Row],[Hide:\nFormula Name]],Table_SummaryPI[[#This Row],[Quantity]],Table_PI[[#This Row],[List 1]],Table_PI[[#This Row],[List 2]],Table_PI[[#This Row],[List 3]],Table_PI[[#This Row],[Size]],Table_PI[[#This Row],[Input 1]],Table_PI[[#This Row],[Input 2]],Table_PI[[#This Row],[Input 3]],Table_PI[[#This Row],[Input 4]],'Customer Information'!$AR$12,201,ROW())<>\"No Rebate\",MeasureCalc(Table_PI[[#This Row],[Hide:\nFormula Name]],Table_SummaryPI[[#This Row],[Quantity]],Table_PI[[#This Row],[List 1]],Table_PI[[#This Row],[List 2]],Table_PI[[#This Row],[List 3]],Table_PI[[#This Row],[Size]],Table_PI[[#This Row],[Input 1]],Table_PI[[#This Row],[Input 2]],Table_PI[[#This Row],[Input 3]],Table_PI[[#This Row],[Input 4]],'Customer Information'!$AR$12,201,ROW()),\"\"),\"\")","v":""}]
[{"$f":"Table_PI[[#This Row],[Line No.]]","v":""},{"$f":"IF(Table_SummaryPI[[#This Row],[MeassureCategory]]<>\"\",CONCATENATE(Table_SummaryPI[[#This Row],[MeassureCategory]],  \" - \", Table_SummaryPI[[#This Row],[ProposedMeasureCategory]],  \" - \", TEXT(Table_SummaryPI[[#This Row],[Size]],\"#,##0.00\"),\" \",Table_SummaryPI[[#This Row],[SizeUnit]]),\"\")","v":""},{"$f":"SUBSTITUTE(Table_PI[[#This Row],[Measure]],\"     \",\"\",1)","v":""},{"$f":"IF(Table_PI[[#This Row],[List 1]]<>\"\",Table_PI[[#This Row],[List 1]],\"\")","v":""},{"$f":"IF(Table_PI[[#This Row],[List 2]]<>\"\",Table_PI[[#This Row],[List 2]],\"\")","v":""},{"$f":"IF(Table_PI[[#This Row],[List 3]]<>\"\",Table_PI[[#This Row],[List 3]],\"\")","v":""},{"$f":"IF(Table_PI[[#This Row],[Manufacturer]]=\"\",\"\",Table_PI[[#This Row],[Manufacturer]])","v":""},{"$f":"IF(Table_PI[[#This Row],[Model Number]]=\"\",\"\",Table_PI[[#This Row],[Model Number]])","v":""},{"$f":"IF(Table_PI[[#This Row],[Serial Number(s)]]=\"\",\"\",Table_PI[[#This Row],[Serial Number(s)]])","v":""},null,{"$f":"IF(Table_PI[[#This Row],[Size]]=\"\",\"\",Table_PI[[#This Row],[Size]])","v":""},null,{"$f":"IFERROR(IF(AND(MeasureCalc(Table_PI[[#This Row],[Hide:\nFormula Name]],Table_SummaryPI[[#This Row],[Quantity]],Table_PI[[#This Row],[List 1]],Table_PI[[#This Row],[List 2]],Table_PI[[#This Row],[List 3]],Table_PI[[#This Row],[Size]],Table_PI[[#This Row],[Input 1]],Table_PI[[#This Row],[Input 2]],Table_PI[[#This Row],[Input 3]],Table_PI[[#This Row],[Input 4]],'Customer Information'!$AR$12,100,ROW())<>0,MeasureCalc(Table_PI[[#This Row],[Hide:\nFormula Name]],Table_SummaryPI[[#This Row],[Quantity]],Table_PI[[#This Row],[List 1]],Table_PI[[#This Row],[List 2]],Table_PI[[#This Row],[List 3]],Table_PI[[#This Row],[Size]],Table_PI[[#This Row],[Input 1]],Table_PI[[#This Row],[Input 2]],Table_PI[[#This Row],[Input 3]],Table_PI[[#This Row],[Input 4]],'Customer Information'!$AR$12,100,ROW())<>\"No Rebate\"),MeasureCalc(Table_PI[[#This Row],[Hide:\nFormula Name]],Table_SummaryPI[[#This Row],[Quantity]],Table_PI[[#This Row],[List 1]],Table_PI[[#This Row],[List 2]],Table_PI[[#This Row],[List 3]],Table_PI[[#This Row],[Size]],Table_PI[[#This Row],[Input 1]],Table_PI[[#This Row],[Input 2]],Table_PI[[#This Row],[Input 3]],Table_PI[[#This Row],[Input 4]],'Customer Information'!$AR$12,100,ROW()),\"\"),\"\")","v":""},{"$f":"IF(Table_PI[[#This Row],[Input 1]]<>\"\",Table_PI[[#This Row],[Input 1]],\"\")","v":""},null,{"$f":"IFERROR(IF(AND(MeasureCalc(Table_PI[[#This Row],[Hide:\nFormula Name]],Table_SummaryPI[[#This Row],[Quantity]],Table_PI[[#This Row],[List 1]],Table_PI[[#This Row],[List 2]],Table_PI[[#This Row],[List 3]],Table_PI[[#This Row],[Size]],Table_PI[[#This Row],[Input 1]],Table_PI[[#This Row],[Input 2]],Table_PI[[#This Row],[Input 3]],Table_PI[[#This Row],[Input 4]],'Customer Information'!$AR$12,101,ROW())<>0,MeasureCalc(Table_PI[[#This Row],[Hide:\nFormula Name]],Table_SummaryPI[[#This Row],[Quantity]],Table_PI[[#This Row],[List 1]],Table_PI[[#This Row],[List 2]],Table_PI[[#This Row],[List 3]],Table_PI[[#This Row],[Size]],Table_PI[[#This Row],[Input 1]],Table_PI[[#This Row],[Input 2]],Table_PI[[#This Row],[Input 3]],Table_PI[[#This Row],[Input 4]],'Customer Information'!$AR$12,101,ROW())<>\"No Rebate\"),MeasureCalc(Table_PI[[#This Row],[Hide:\nFormula Name]],Table_SummaryPI[[#This Row],[Quantity]],Table_PI[[#This Row],[List 1]],Table_PI[[#This Row],[List 2]],Table_PI[[#This Row],[List 3]],Table_PI[[#This Row],[Size]],Table_PI[[#This Row],[Input 1]],Table_PI[[#This Row],[Input 2]],Table_PI[[#This Row],[Input 3]],Table_PI[[#This Row],[Input 4]],'Customer Information'!$AR$12,101,ROW()),\"\"),\"\")","v":""},{"$f":"IF(Table_PI[[#This Row],[Input 2]]<>\"\",Table_PI[[#This Row],[Input 2]],\"\")","v":""},null,{"$f":"IFERROR(IF(AND(MeasureCalc(Table_PI[[#This Row],[Hide:\nFormula Name]],Table_SummaryPI[[#This Row],[Quantity]],Table_PI[[#This Row],[List 1]],Table_PI[[#This Row],[List 2]],Table_PI[[#This Row],[List 3]],Table_PI[[#This Row],[Size]],Table_PI[[#This Row],[Input 1]],Table_PI[[#This Row],[Input 2]],Table_PI[[#This Row],[Input 3]],Table_PI[[#This Row],[Input 4]],'Customer Information'!$AR$12,102,ROW())<>0,MeasureCalc(Table_PI[[#This Row],[Hide:\nFormula Name]],Table_SummaryPI[[#This Row],[Quantity]],Table_PI[[#This Row],[List 1]],Table_PI[[#This Row],[List 2]],Table_PI[[#This Row],[List 3]],Table_PI[[#This Row],[Size]],Table_PI[[#This Row],[Input 1]],Table_PI[[#This Row],[Input 2]],Table_PI[[#This Row],[Input 3]],Table_PI[[#This Row],[Input 4]],'Customer Information'!$AR$12,102,ROW())<>\"No Rebate\"),MeasureCalc(Table_PI[[#This Row],[Hide:\nFormula Name]],Table_SummaryPI[[#This Row],[Quantity]],Table_PI[[#This Row],[List 1]],Table_PI[[#This Row],[List 2]],Table_PI[[#This Row],[List 3]],Table_PI[[#This Row],[Size]],Table_PI[[#This Row],[Input 1]],Table_PI[[#This Row],[Input 2]],Table_PI[[#This Row],[Input 3]],Table_PI[[#This Row],[Input 4]],'Customer Information'!$AR$12,102,ROW()),\"\"),\"\")","v":""},{"$f":"IF(Table_PI[[#This Row],[Input 3]]<>\"\",Table_PI[[#This Row],[Input 3]],\"\")","v":""},null,{"$f":"IFERROR(IF(AND(MeasureCalc(Table_PI[[#This Row],[Hide:\nFormula Name]],Table_SummaryPI[[#This Row],[Quantity]],Table_PI[[#This Row],[List 1]],Table_PI[[#This Row],[List 2]],Table_PI[[#This Row],[List 3]],Table_PI[[#This Row],[Size]],Table_PI[[#This Row],[Input 1]],Table_PI[[#This Row],[Input 2]],Table_PI[[#This Row],[Input 3]],Table_PI[[#This Row],[Input 4]],'Customer Information'!$AR$12,103,ROW())<>0,MeasureCalc(Table_PI[[#This Row],[Hide:\nFormula Name]],Table_SummaryPI[[#This Row],[Quantity]],Table_PI[[#This Row],[List 1]],Table_PI[[#This Row],[List 2]],Table_PI[[#This Row],[List 3]],Table_PI[[#This Row],[Size]],Table_PI[[#This Row],[Input 1]],Table_PI[[#This Row],[Input 2]],Table_PI[[#This Row],[Input 3]],Table_PI[[#This Row],[Input 4]],'Customer Information'!$AR$12,103,ROW())<>\"No Rebate\"),MeasureCalc(Table_PI[[#This Row],[Hide:\nFormula Name]],Table_SummaryPI[[#This Row],[Quantity]],Table_PI[[#This Row],[List 1]],Table_PI[[#This Row],[List 2]],Table_PI[[#This Row],[List 3]],Table_PI[[#This Row],[Size]],Table_PI[[#This Row],[Input 1]],Table_PI[[#This Row],[Input 2]],Table_PI[[#This Row],[Input 3]],Table_PI[[#This Row],[Input 4]],'Customer Information'!$AR$12,103,ROW()),\"\"),\"\")","v":""},{"$f":"IF(Table_PI[[#This Row],[Input 4]]<>\"\",Table_PI[[#This Row],[Input 4]],\"\")","v":""},{"$f":"IF(Table_PI[[#This Row],[Quantity]]=\"\",\"\",Table_PI[[#This Row],[Quantity]])","v":""},{"$f":"IF(Table_PI[[#This Row],[Notes]]=\"\",\"\",Table_PI[[#This Row],[Notes]])","v":""},{"$f":"IF(OR(Table_PI[[#This Row],[Hide:\nBaseline kWh]]=\"\",Table_PI[[#This Row],[Hide:\nBaseline kWh]]=0),\"\",Table_PI[[#This Row],[Hide:\nBaseline kWh]])","v":""},{"$f":"IF(OR(Table_PI[[#This Row],[Hide:\nBaseline kW]]=\"\",Table_PI[[#This Row],[Hide:\nBaseline kW]]=0),\"\",Table_PI[[#This Row],[Hide:\nBaseline kW]])","v":""},{"$f":"IF(OR(Table_PI[[#This Row],[Hide:\nProposed kWh]]=\"\",Table_PI[[#This Row],[Hide:\nProposed kWh]]=0),\"\",Table_PI[[#This Row],[Hide:\nProposed kWh]])","v":""},{"$f":"IF(OR(Table_PI[[#This Row],[Hide:\nProposed kW]]=\"\",Table_PI[[#This Row],[Hide:\nProposed kW]]=0),\"\",Table_PI[[#This Row],[Hide:\nProposed kW]])","v":""},{"$f":"IF(OR(Table_PI[[#This Row],[Rebate]]=\"\",Table_PI[[#This Row],[Rebate]]=0),\"\",Table_PI[[#This Row],[Rebate]])","v":""},{"$f":"IF(OR(Table_PI[[#This Row],[Hide:\nIncremental Cost]]=\"\",Table_PI[[#This Row],[Hide:\nIncremental Cost]]=0),\"\",Table_PI[[#This Row],[Hide:\nIncremental Cost]])","v":""},{"$f":"IFERROR(IF(Table_SummaryPI[[#This Row],[kWhSavings]]=\"\",\"\",ROUND(Table_SummaryPI[[#This Row],[kWhSavings]]/$AG$401*'Customer Information'!$BC$17,2)),0)","v":""},{"$f":"IF(OR(Table_PI[[#This Row],[Annual kWh]]=\"\",Table_PI[[#This Row],[Annual kWh]]=0),\"\",Table_PI[[#This Row],[Annual kWh]])","v":""},{"$f":"IF(OR(Table_PI[[#This Row],[Peak kW]]=\"\",Table_PI[[#This Row],[Peak kW]]=0),\"\",Table_PI[[#This Row],[Peak kW]])","v":""},{"$f":"IFERROR(IF(Table_SummaryPI[[#This Row],[kWhSavings]]=\"\",\"\",$AU$9*Table_SummaryPI[[#This Row],[kWhSavings]]),0)","v":""},{"$f":"IFERROR(IF(Table_SummaryPI[[#This Row],[kWhSavings]]=\"\",\"\",$AU$14*Table_SummaryPI[[#This Row],[kWhSavings]]),0)","v":""},{"$f":"IFERROR(IF(Table_SummaryPI[[#This Row],[kWhSavings]]=\"\",\"\",$AU$18*Table_SummaryPI[[#This Row],[kWhSavings]]),0)","v":""},{"$f":"IFERROR(IF(Table_SummaryPI[[#This Row],[kWhSavings]]=\"\",\"\",$AU$22*Table_SummaryPI[[#This Row],[kWhSavings]]),0)","v":""},{"$f":"IFERROR(IF(MeasureCalc(Table_PI[[#This Row],[Hide:\nFormula Name]],Table_SummaryPI[[#This Row],[Quantity]],Table_PI[[#This Row],[List 1]],Table_PI[[#This Row],[List 2]],Table_PI[[#This Row],[List 3]],Table_PI[[#This Row],[Size]],Table_PI[[#This Row],[Input 1]],Table_PI[[#This Row],[Input 2]],Table_PI[[#This Row],[Input 3]],Table_PI[[#This Row],[Input 4]],'Customer Information'!$AR$12,200,ROW())<>\"No Rebate\",MeasureCalc(Table_PI[[#This Row],[Hide:\nFormula Name]],Table_SummaryPI[[#This Row],[Quantity]],Table_PI[[#This Row],[List 1]],Table_PI[[#This Row],[List 2]],Table_PI[[#This Row],[List 3]],Table_PI[[#This Row],[Size]],Table_PI[[#This Row],[Input 1]],Table_PI[[#This Row],[Input 2]],Table_PI[[#This Row],[Input 3]],Table_PI[[#This Row],[Input 4]],'Customer Information'!$AR$12,200,ROW()),\"\"),\"\")","v":""},{"$f":"IFERROR(IF(MeasureCalc(Table_PI[[#This Row],[Hide:\nFormula Name]],Table_SummaryPI[[#This Row],[Quantity]],Table_PI[[#This Row],[List 1]],Table_PI[[#This Row],[List 2]],Table_PI[[#This Row],[List 3]],Table_PI[[#This Row],[Size]],Table_PI[[#This Row],[Input 1]],Table_PI[[#This Row],[Input 2]],Table_PI[[#This Row],[Input 3]],Table_PI[[#This Row],[Input 4]],'Customer Information'!$AR$12,201,ROW())<>\"No Rebate\",MeasureCalc(Table_PI[[#This Row],[Hide:\nFormula Name]],Table_SummaryPI[[#This Row],[Quantity]],Table_PI[[#This Row],[List 1]],Table_PI[[#This Row],[List 2]],Table_PI[[#This Row],[List 3]],Table_PI[[#This Row],[Size]],Table_PI[[#This Row],[Input 1]],Table_PI[[#This Row],[Input 2]],Table_PI[[#This Row],[Input 3]],Table_PI[[#This Row],[Input 4]],'Customer Information'!$AR$12,201,ROW()),\"\"),\"\")","v":""}]
[{"$f":"Table_PI[[#This Row],[Line No.]]","v":""},{"$f":"IF(Table_SummaryPI[[#This Row],[MeassureCategory]]<>\"\",CONCATENATE(Table_SummaryPI[[#This Row],[MeassureCategory]],  \" - \", Table_SummaryPI[[#This Row],[ProposedMeasureCategory]],  \" - \", TEXT(Table_SummaryPI[[#This Row],[Size]],\"#,##0.00\"),\" \",Table_SummaryPI[[#This Row],[SizeUnit]]),\"\")","v":""},{"$f":"SUBSTITUTE(Table_PI[[#This Row],[Measure]],\"     \",\"\",1)","v":""},{"$f":"IF(Table_PI[[#This Row],[List 1]]<>\"\",Table_PI[[#This Row],[List 1]],\"\")","v":""},{"$f":"IF(Table_PI[[#This Row],[List 2]]<>\"\",Table_PI[[#This Row],[List 2]],\"\")","v":""},{"$f":"IF(Table_PI[[#This Row],[List 3]]<>\"\",Table_PI[[#This Row],[List 3]],\"\")","v":""},{"$f":"IF(Table_PI[[#This Row],[Manufacturer]]=\"\",\"\",Table_PI[[#This Row],[Manufacturer]])","v":""},{"$f":"IF(Table_PI[[#This Row],[Model Number]]=\"\",\"\",Table_PI[[#This Row],[Model Number]])","v":""},{"$f":"IF(Table_PI[[#This Row],[Serial Number(s)]]=\"\",\"\",Table_PI[[#This Row],[Serial Number(s)]])","v":""},null,{"$f":"IF(Table_PI[[#This Row],[Size]]=\"\",\"\",Table_PI[[#This Row],[Size]])","v":""},null,{"$f":"IFERROR(IF(AND(MeasureCalc(Table_PI[[#This Row],[Hide:\nFormula Name]],Table_SummaryPI[[#This Row],[Quantity]],Table_PI[[#This Row],[List 1]],Table_PI[[#This Row],[List 2]],Table_PI[[#This Row],[List 3]],Table_PI[[#This Row],[Size]],Table_PI[[#This Row],[Input 1]],Table_PI[[#This Row],[Input 2]],Table_PI[[#This Row],[Input 3]],Table_PI[[#This Row],[Input 4]],'Customer Information'!$AR$12,100,ROW())<>0,MeasureCalc(Table_PI[[#This Row],[Hide:\nFormula Name]],Table_SummaryPI[[#This Row],[Quantity]],Table_PI[[#This Row],[List 1]],Table_PI[[#This Row],[List 2]],Table_PI[[#This Row],[List 3]],Table_PI[[#This Row],[Size]],Table_PI[[#This Row],[Input 1]],Table_PI[[#This Row],[Input 2]],Table_PI[[#This Row],[Input 3]],Table_PI[[#This Row],[Input 4]],'Customer Information'!$AR$12,100,ROW())<>\"No Rebate\"),MeasureCalc(Table_PI[[#This Row],[Hide:\nFormula Name]],Table_SummaryPI[[#This Row],[Quantity]],Table_PI[[#This Row],[List 1]],Table_PI[[#This Row],[List 2]],Table_PI[[#This Row],[List 3]],Table_PI[[#This Row],[Size]],Table_PI[[#This Row],[Input 1]],Table_PI[[#This Row],[Input 2]],Table_PI[[#This Row],[Input 3]],Table_PI[[#This Row],[Input 4]],'Customer Information'!$AR$12,100,ROW()),\"\"),\"\")","v":""},{"$f":"IF(Table_PI[[#This Row],[Input 1]]<>\"\",Table_PI[[#This Row],[Input 1]],\"\")","v":""},null,{"$f":"IFERROR(IF(AND(MeasureCalc(Table_PI[[#This Row],[Hide:\nFormula Name]],Table_SummaryPI[[#This Row],[Quantity]],Table_PI[[#This Row],[List 1]],Table_PI[[#This Row],[List 2]],Table_PI[[#This Row],[List 3]],Table_PI[[#This Row],[Size]],Table_PI[[#This Row],[Input 1]],Table_PI[[#This Row],[Input 2]],Table_PI[[#This Row],[Input 3]],Table_PI[[#This Row],[Input 4]],'Customer Information'!$AR$12,101,ROW())<>0,MeasureCalc(Table_PI[[#This Row],[Hide:\nFormula Name]],Table_SummaryPI[[#This Row],[Quantity]],Table_PI[[#This Row],[List 1]],Table_PI[[#This Row],[List 2]],Table_PI[[#This Row],[List 3]],Table_PI[[#This Row],[Size]],Table_PI[[#This Row],[Input 1]],Table_PI[[#This Row],[Input 2]],Table_PI[[#This Row],[Input 3]],Table_PI[[#This Row],[Input 4]],'Customer Information'!$AR$12,101,ROW())<>\"No Rebate\"),MeasureCalc(Table_PI[[#This Row],[Hide:\nFormula Name]],Table_SummaryPI[[#This Row],[Quantity]],Table_PI[[#This Row],[List 1]],Table_PI[[#This Row],[List 2]],Table_PI[[#This Row],[List 3]],Table_PI[[#This Row],[Size]],Table_PI[[#This Row],[Input 1]],Table_PI[[#This Row],[Input 2]],Table_PI[[#This Row],[Input 3]],Table_PI[[#This Row],[Input 4]],'Customer Information'!$AR$12,101,ROW()),\"\"),\"\")","v":""},{"$f":"IF(Table_PI[[#This Row],[Input 2]]<>\"\",Table_PI[[#This Row],[Input 2]],\"\")","v":""},null,{"$f":"IFERROR(IF(AND(MeasureCalc(Table_PI[[#This Row],[Hide:\nFormula Name]],Table_SummaryPI[[#This Row],[Quantity]],Table_PI[[#This Row],[List 1]],Table_PI[[#This Row],[List 2]],Table_PI[[#This Row],[List 3]],Table_PI[[#This Row],[Size]],Table_PI[[#This Row],[Input 1]],Table_PI[[#This Row],[Input 2]],Table_PI[[#This Row],[Input 3]],Table_PI[[#This Row],[Input 4]],'Customer Information'!$AR$12,102,ROW())<>0,MeasureCalc(Table_PI[[#This Row],[Hide:\nFormula Name]],Table_SummaryPI[[#This Row],[Quantity]],Table_PI[[#This Row],[List 1]],Table_PI[[#This Row],[List 2]],Table_PI[[#This Row],[List 3]],Table_PI[[#This Row],[Size]],Table_PI[[#This Row],[Input 1]],Table_PI[[#This Row],[Input 2]],Table_PI[[#This Row],[Input 3]],Table_PI[[#This Row],[Input 4]],'Customer Information'!$AR$12,102,ROW())<>\"No Rebate\"),MeasureCalc(Table_PI[[#This Row],[Hide:\nFormula Name]],Table_SummaryPI[[#This Row],[Quantity]],Table_PI[[#This Row],[List 1]],Table_PI[[#This Row],[List 2]],Table_PI[[#This Row],[List 3]],Table_PI[[#This Row],[Size]],Table_PI[[#This Row],[Input 1]],Table_PI[[#This Row],[Input 2]],Table_PI[[#This Row],[Input 3]],Table_PI[[#This Row],[Input 4]],'Customer Information'!$AR$12,102,ROW()),\"\"),\"\")","v":""},{"$f":"IF(Table_PI[[#This Row],[Input 3]]<>\"\",Table_PI[[#This Row],[Input 3]],\"\")","v":""},null,{"$f":"IFERROR(IF(AND(MeasureCalc(Table_PI[[#This Row],[Hide:\nFormula Name]],Table_SummaryPI[[#This Row],[Quantity]],Table_PI[[#This Row],[List 1]],Table_PI[[#This Row],[List 2]],Table_PI[[#This Row],[List 3]],Table_PI[[#This Row],[Size]],Table_PI[[#This Row],[Input 1]],Table_PI[[#This Row],[Input 2]],Table_PI[[#This Row],[Input 3]],Table_PI[[#This Row],[Input 4]],'Customer Information'!$AR$12,103,ROW())<>0,MeasureCalc(Table_PI[[#This Row],[Hide:\nFormula Name]],Table_SummaryPI[[#This Row],[Quantity]],Table_PI[[#This Row],[List 1]],Table_PI[[#This Row],[List 2]],Table_PI[[#This Row],[List 3]],Table_PI[[#This Row],[Size]],Table_PI[[#This Row],[Input 1]],Table_PI[[#This Row],[Input 2]],Table_PI[[#This Row],[Input 3]],Table_PI[[#This Row],[Input 4]],'Customer Information'!$AR$12,103,ROW())<>\"No Rebate\"),MeasureCalc(Table_PI[[#This Row],[Hide:\nFormula Name]],Table_SummaryPI[[#This Row],[Quantity]],Table_PI[[#This Row],[List 1]],Table_PI[[#This Row],[List 2]],Table_PI[[#This Row],[List 3]],Table_PI[[#This Row],[Size]],Table_PI[[#This Row],[Input 1]],Table_PI[[#This Row],[Input 2]],Table_PI[[#This Row],[Input 3]],Table_PI[[#This Row],[Input 4]],'Customer Information'!$AR$12,103,ROW()),\"\"),\"\")","v":""},{"$f":"IF(Table_PI[[#This Row],[Input 4]]<>\"\",Table_PI[[#This Row],[Input 4]],\"\")","v":""},{"$f":"IF(Table_PI[[#This Row],[Quantity]]=\"\",\"\",Table_PI[[#This Row],[Quantity]])","v":""},{"$f":"IF(Table_PI[[#This Row],[Notes]]=\"\",\"\",Table_PI[[#This Row],[Notes]])","v":""},{"$f":"IF(OR(Table_PI[[#This Row],[Hide:\nBaseline kWh]]=\"\",Table_PI[[#This Row],[Hide:\nBaseline kWh]]=0),\"\",Table_PI[[#This Row],[Hide:\nBaseline kWh]])","v":""},{"$f":"IF(OR(Table_PI[[#This Row],[Hide:\nBaseline kW]]=\"\",Table_PI[[#This Row],[Hide:\nBaseline kW]]=0),\"\",Table_PI[[#This Row],[Hide:\nBaseline kW]])","v":""},{"$f":"IF(OR(Table_PI[[#This Row],[Hide:\nProposed kWh]]=\"\",Table_PI[[#This Row],[Hide:\nProposed kWh]]=0),\"\",Table_PI[[#This Row],[Hide:\nProposed kWh]])","v":""},{"$f":"IF(OR(Table_PI[[#This Row],[Hide:\nProposed kW]]=\"\",Table_PI[[#This Row],[Hide:\nProposed kW]]=0),\"\",Table_PI[[#This Row],[Hide:\nProposed kW]])","v":""},{"$f":"IF(OR(Table_PI[[#This Row],[Rebate]]=\"\",Table_PI[[#This Row],[Rebate]]=0),\"\",Table_PI[[#This Row],[Rebate]])","v":""},{"$f":"IF(OR(Table_PI[[#This Row],[Hide:\nIncremental Cost]]=\"\",Table_PI[[#This Row],[Hide:\nIncremental Cost]]=0),\"\",Table_PI[[#This Row],[Hide:\nIncremental Cost]])","v":""},{"$f":"IFERROR(IF(Table_SummaryPI[[#This Row],[kWhSavings]]=\"\",\"\",ROUND(Table_SummaryPI[[#This Row],[kWhSavings]]/$AG$401*'Customer Information'!$BC$17,2)),0)","v":""},{"$f":"IF(OR(Table_PI[[#This Row],[Annual kWh]]=\"\",Table_PI[[#This Row],[Annual kWh]]=0),\"\",Table_PI[[#This Row],[Annual kWh]])","v":""},{"$f":"IF(OR(Table_PI[[#This Row],[Peak kW]]=\"\",Table_PI[[#This Row],[Peak kW]]=0),\"\",Table_PI[[#This Row],[Peak kW]])","v":""},{"$f":"IFERROR(IF(Table_SummaryPI[[#This Row],[kWhSavings]]=\"\",\"\",$AU$9*Table_SummaryPI[[#This Row],[kWhSavings]]),0)","v":""},{"$f":"IFERROR(IF(Table_SummaryPI[[#This Row],[kWhSavings]]=\"\",\"\",$AU$14*Table_SummaryPI[[#This Row],[kWhSavings]]),0)","v":""},{"$f":"IFERROR(IF(Table_SummaryPI[[#This Row],[kWhSavings]]=\"\",\"\",$AU$18*Table_SummaryPI[[#This Row],[kWhSavings]]),0)","v":""},{"$f":"IFERROR(IF(Table_SummaryPI[[#This Row],[kWhSavings]]=\"\",\"\",$AU$22*Table_SummaryPI[[#This Row],[kWhSavings]]),0)","v":""},{"$f":"IFERROR(IF(MeasureCalc(Table_PI[[#This Row],[Hide:\nFormula Name]],Table_SummaryPI[[#This Row],[Quantity]],Table_PI[[#This Row],[List 1]],Table_PI[[#This Row],[List 2]],Table_PI[[#This Row],[List 3]],Table_PI[[#This Row],[Size]],Table_PI[[#This Row],[Input 1]],Table_PI[[#This Row],[Input 2]],Table_PI[[#This Row],[Input 3]],Table_PI[[#This Row],[Input 4]],'Customer Information'!$AR$12,200,ROW())<>\"No Rebate\",MeasureCalc(Table_PI[[#This Row],[Hide:\nFormula Name]],Table_SummaryPI[[#This Row],[Quantity]],Table_PI[[#This Row],[List 1]],Table_PI[[#This Row],[List 2]],Table_PI[[#This Row],[List 3]],Table_PI[[#This Row],[Size]],Table_PI[[#This Row],[Input 1]],Table_PI[[#This Row],[Input 2]],Table_PI[[#This Row],[Input 3]],Table_PI[[#This Row],[Input 4]],'Customer Information'!$AR$12,200,ROW()),\"\"),\"\")","v":""},{"$f":"IFERROR(IF(MeasureCalc(Table_PI[[#This Row],[Hide:\nFormula Name]],Table_SummaryPI[[#This Row],[Quantity]],Table_PI[[#This Row],[List 1]],Table_PI[[#This Row],[List 2]],Table_PI[[#This Row],[List 3]],Table_PI[[#This Row],[Size]],Table_PI[[#This Row],[Input 1]],Table_PI[[#This Row],[Input 2]],Table_PI[[#This Row],[Input 3]],Table_PI[[#This Row],[Input 4]],'Customer Information'!$AR$12,201,ROW())<>\"No Rebate\",MeasureCalc(Table_PI[[#This Row],[Hide:\nFormula Name]],Table_SummaryPI[[#This Row],[Quantity]],Table_PI[[#This Row],[List 1]],Table_PI[[#This Row],[List 2]],Table_PI[[#This Row],[List 3]],Table_PI[[#This Row],[Size]],Table_PI[[#This Row],[Input 1]],Table_PI[[#This Row],[Input 2]],Table_PI[[#This Row],[Input 3]],Table_PI[[#This Row],[Input 4]],'Customer Information'!$AR$12,201,ROW()),\"\"),\"\")","v":""}]
[{"$f":"Table_PI[[#This Row],[Line No.]]","v":""},{"$f":"IF(Table_SummaryPI[[#This Row],[MeassureCategory]]<>\"\",CONCATENATE(Table_SummaryPI[[#This Row],[MeassureCategory]],  \" - \", Table_SummaryPI[[#This Row],[ProposedMeasureCategory]],  \" - \", TEXT(Table_SummaryPI[[#This Row],[Size]],\"#,##0.00\"),\" \",Table_SummaryPI[[#This Row],[SizeUnit]]),\"\")","v":""},{"$f":"SUBSTITUTE(Table_PI[[#This Row],[Measure]],\"     \",\"\",1)","v":""},{"$f":"IF(Table_PI[[#This Row],[List 1]]<>\"\",Table_PI[[#This Row],[List 1]],\"\")","v":""},{"$f":"IF(Table_PI[[#This Row],[List 2]]<>\"\",Table_PI[[#This Row],[List 2]],\"\")","v":""},{"$f":"IF(Table_PI[[#This Row],[List 3]]<>\"\",Table_PI[[#This Row],[List 3]],\"\")","v":""},{"$f":"IF(Table_PI[[#This Row],[Manufacturer]]=\"\",\"\",Table_PI[[#This Row],[Manufacturer]])","v":""},{"$f":"IF(Table_PI[[#This Row],[Model Number]]=\"\",\"\",Table_PI[[#This Row],[Model Number]])","v":""},{"$f":"IF(Table_PI[[#This Row],[Serial Number(s)]]=\"\",\"\",Table_PI[[#This Row],[Serial Number(s)]])","v":""},null,{"$f":"IF(Table_PI[[#This Row],[Size]]=\"\",\"\",Table_PI[[#This Row],[Size]])","v":""},null,{"$f":"IFERROR(IF(AND(MeasureCalc(Table_PI[[#This Row],[Hide:\nFormula Name]],Table_SummaryPI[[#This Row],[Quantity]],Table_PI[[#This Row],[List 1]],Table_PI[[#This Row],[List 2]],Table_PI[[#This Row],[List 3]],Table_PI[[#This Row],[Size]],Table_PI[[#This Row],[Input 1]],Table_PI[[#This Row],[Input 2]],Table_PI[[#This Row],[Input 3]],Table_PI[[#This Row],[Input 4]],'Customer Information'!$AR$12,100,ROW())<>0,MeasureCalc(Table_PI[[#This Row],[Hide:\nFormula Name]],Table_SummaryPI[[#This Row],[Quantity]],Table_PI[[#This Row],[List 1]],Table_PI[[#This Row],[List 2]],Table_PI[[#This Row],[List 3]],Table_PI[[#This Row],[Size]],Table_PI[[#This Row],[Input 1]],Table_PI[[#This Row],[Input 2]],Table_PI[[#This Row],[Input 3]],Table_PI[[#This Row],[Input 4]],'Customer Information'!$AR$12,100,ROW())<>\"No Rebate\"),MeasureCalc(Table_PI[[#This Row],[Hide:\nFormula Name]],Table_SummaryPI[[#This Row],[Quantity]],Table_PI[[#This Row],[List 1]],Table_PI[[#This Row],[List 2]],Table_PI[[#This Row],[List 3]],Table_PI[[#This Row],[Size]],Table_PI[[#This Row],[Input 1]],Table_PI[[#This Row],[Input 2]],Table_PI[[#This Row],[Input 3]],Table_PI[[#This Row],[Input 4]],'Customer Information'!$AR$12,100,ROW()),\"\"),\"\")","v":""},{"$f":"IF(Table_PI[[#This Row],[Input 1]]<>\"\",Table_PI[[#This Row],[Input 1]],\"\")","v":""},null,{"$f":"IFERROR(IF(AND(MeasureCalc(Table_PI[[#This Row],[Hide:\nFormula Name]],Table_SummaryPI[[#This Row],[Quantity]],Table_PI[[#This Row],[List 1]],Table_PI[[#This Row],[List 2]],Table_PI[[#This Row],[List 3]],Table_PI[[#This Row],[Size]],Table_PI[[#This Row],[Input 1]],Table_PI[[#This Row],[Input 2]],Table_PI[[#This Row],[Input 3]],Table_PI[[#This Row],[Input 4]],'Customer Information'!$AR$12,101,ROW())<>0,MeasureCalc(Table_PI[[#This Row],[Hide:\nFormula Name]],Table_SummaryPI[[#This Row],[Quantity]],Table_PI[[#This Row],[List 1]],Table_PI[[#This Row],[List 2]],Table_PI[[#This Row],[List 3]],Table_PI[[#This Row],[Size]],Table_PI[[#This Row],[Input 1]],Table_PI[[#This Row],[Input 2]],Table_PI[[#This Row],[Input 3]],Table_PI[[#This Row],[Input 4]],'Customer Information'!$AR$12,101,ROW())<>\"No Rebate\"),MeasureCalc(Table_PI[[#This Row],[Hide:\nFormula Name]],Table_SummaryPI[[#This Row],[Quantity]],Table_PI[[#This Row],[List 1]],Table_PI[[#This Row],[List 2]],Table_PI[[#This Row],[List 3]],Table_PI[[#This Row],[Size]],Table_PI[[#This Row],[Input 1]],Table_PI[[#This Row],[Input 2]],Table_PI[[#This Row],[Input 3]],Table_PI[[#This Row],[Input 4]],'Customer Information'!$AR$12,101,ROW()),\"\"),\"\")","v":""},{"$f":"IF(Table_PI[[#This Row],[Input 2]]<>\"\",Table_PI[[#This Row],[Input 2]],\"\")","v":""},null,{"$f":"IFERROR(IF(AND(MeasureCalc(Table_PI[[#This Row],[Hide:\nFormula Name]],Table_SummaryPI[[#This Row],[Quantity]],Table_PI[[#This Row],[List 1]],Table_PI[[#This Row],[List 2]],Table_PI[[#This Row],[List 3]],Table_PI[[#This Row],[Size]],Table_PI[[#This Row],[Input 1]],Table_PI[[#This Row],[Input 2]],Table_PI[[#This Row],[Input 3]],Table_PI[[#This Row],[Input 4]],'Customer Information'!$AR$12,102,ROW())<>0,MeasureCalc(Table_PI[[#This Row],[Hide:\nFormula Name]],Table_SummaryPI[[#This Row],[Quantity]],Table_PI[[#This Row],[List 1]],Table_PI[[#This Row],[List 2]],Table_PI[[#This Row],[List 3]],Table_PI[[#This Row],[Size]],Table_PI[[#This Row],[Input 1]],Table_PI[[#This Row],[Input 2]],Table_PI[[#This Row],[Input 3]],Table_PI[[#This Row],[Input 4]],'Customer Information'!$AR$12,102,ROW())<>\"No Rebate\"),MeasureCalc(Table_PI[[#This Row],[Hide:\nFormula Name]],Table_SummaryPI[[#This Row],[Quantity]],Table_PI[[#This Row],[List 1]],Table_PI[[#This Row],[List 2]],Table_PI[[#This Row],[List 3]],Table_PI[[#This Row],[Size]],Table_PI[[#This Row],[Input 1]],Table_PI[[#This Row],[Input 2]],Table_PI[[#This Row],[Input 3]],Table_PI[[#This Row],[Input 4]],'Customer Information'!$AR$12,102,ROW()),\"\"),\"\")","v":""},{"$f":"IF(Table_PI[[#This Row],[Input 3]]<>\"\",Table_PI[[#This Row],[Input 3]],\"\")","v":""},null,{"$f":"IFERROR(IF(AND(MeasureCalc(Table_PI[[#This Row],[Hide:\nFormula Name]],Table_SummaryPI[[#This Row],[Quantity]],Table_PI[[#This Row],[List 1]],Table_PI[[#This Row],[List 2]],Table_PI[[#This Row],[List 3]],Table_PI[[#This Row],[Size]],Table_PI[[#This Row],[Input 1]],Table_PI[[#This Row],[Input 2]],Table_PI[[#This Row],[Input 3]],Table_PI[[#This Row],[Input 4]],'Customer Information'!$AR$12,103,ROW())<>0,MeasureCalc(Table_PI[[#This Row],[Hide:\nFormula Name]],Table_SummaryPI[[#This Row],[Quantity]],Table_PI[[#This Row],[List 1]],Table_PI[[#This Row],[List 2]],Table_PI[[#This Row],[List 3]],Table_PI[[#This Row],[Size]],Table_PI[[#This Row],[Input 1]],Table_PI[[#This Row],[Input 2]],Table_PI[[#This Row],[Input 3]],Table_PI[[#This Row],[Input 4]],'Customer Information'!$AR$12,103,ROW())<>\"No Rebate\"),MeasureCalc(Table_PI[[#This Row],[Hide:\nFormula Name]],Table_SummaryPI[[#This Row],[Quantity]],Table_PI[[#This Row],[List 1]],Table_PI[[#This Row],[List 2]],Table_PI[[#This Row],[List 3]],Table_PI[[#This Row],[Size]],Table_PI[[#This Row],[Input 1]],Table_PI[[#This Row],[Input 2]],Table_PI[[#This Row],[Input 3]],Table_PI[[#This Row],[Input 4]],'Customer Information'!$AR$12,103,ROW()),\"\"),\"\")","v":""},{"$f":"IF(Table_PI[[#This Row],[Input 4]]<>\"\",Table_PI[[#This Row],[Input 4]],\"\")","v":""},{"$f":"IF(Table_PI[[#This Row],[Quantity]]=\"\",\"\",Table_PI[[#This Row],[Quantity]])","v":""},{"$f":"IF(Table_PI[[#This Row],[Notes]]=\"\",\"\",Table_PI[[#This Row],[Notes]])","v":""},{"$f":"IF(OR(Table_PI[[#This Row],[Hide:\nBaseline kWh]]=\"\",Table_PI[[#This Row],[Hide:\nBaseline kWh]]=0),\"\",Table_PI[[#This Row],[Hide:\nBaseline kWh]])","v":""},{"$f":"IF(OR(Table_PI[[#This Row],[Hide:\nBaseline kW]]=\"\",Table_PI[[#This Row],[Hide:\nBaseline kW]]=0),\"\",Table_PI[[#This Row],[Hide:\nBaseline kW]])","v":""},{"$f":"IF(OR(Table_PI[[#This Row],[Hide:\nProposed kWh]]=\"\",Table_PI[[#This Row],[Hide:\nProposed kWh]]=0),\"\",Table_PI[[#This Row],[Hide:\nProposed kWh]])","v":""},{"$f":"IF(OR(Table_PI[[#This Row],[Hide:\nProposed kW]]=\"\",Table_PI[[#This Row],[Hide:\nProposed kW]]=0),\"\",Table_PI[[#This Row],[Hide:\nProposed kW]])","v":""},{"$f":"IF(OR(Table_PI[[#This Row],[Rebate]]=\"\",Table_PI[[#This Row],[Rebate]]=0),\"\",Table_PI[[#This Row],[Rebate]])","v":""},{"$f":"IF(OR(Table_PI[[#This Row],[Hide:\nIncremental Cost]]=\"\",Table_PI[[#This Row],[Hide:\nIncremental Cost]]=0),\"\",Table_PI[[#This Row],[Hide:\nIncremental Cost]])","v":""},{"$f":"IFERROR(IF(Table_SummaryPI[[#This Row],[kWhSavings]]=\"\",\"\",ROUND(Table_SummaryPI[[#This Row],[kWhSavings]]/$AG$401*'Customer Information'!$BC$17,2)),0)","v":""},{"$f":"IF(OR(Table_PI[[#This Row],[Annual kWh]]=\"\",Table_PI[[#This Row],[Annual kWh]]=0),\"\",Table_PI[[#This Row],[Annual kWh]])","v":""},{"$f":"IF(OR(Table_PI[[#This Row],[Peak kW]]=\"\",Table_PI[[#This Row],[Peak kW]]=0),\"\",Table_PI[[#This Row],[Peak kW]])","v":""},{"$f":"IFERROR(IF(Table_SummaryPI[[#This Row],[kWhSavings]]=\"\",\"\",$AU$9*Table_SummaryPI[[#This Row],[kWhSavings]]),0)","v":""},{"$f":"IFERROR(IF(Table_SummaryPI[[#This Row],[kWhSavings]]=\"\",\"\",$AU$14*Table_SummaryPI[[#This Row],[kWhSavings]]),0)","v":""},{"$f":"IFERROR(IF(Table_SummaryPI[[#This Row],[kWhSavings]]=\"\",\"\",$AU$18*Table_SummaryPI[[#This Row],[kWhSavings]]),0)","v":""},{"$f":"IFERROR(IF(Table_SummaryPI[[#This Row],[kWhSavings]]=\"\",\"\",$AU$22*Table_SummaryPI[[#This Row],[kWhSavings]]),0)","v":""},{"$f":"IFERROR(IF(MeasureCalc(Table_PI[[#This Row],[Hide:\nFormula Name]],Table_SummaryPI[[#This Row],[Quantity]],Table_PI[[#This Row],[List 1]],Table_PI[[#This Row],[List 2]],Table_PI[[#This Row],[List 3]],Table_PI[[#This Row],[Size]],Table_PI[[#This Row],[Input 1]],Table_PI[[#This Row],[Input 2]],Table_PI[[#This Row],[Input 3]],Table_PI[[#This Row],[Input 4]],'Customer Information'!$AR$12,200,ROW())<>\"No Rebate\",MeasureCalc(Table_PI[[#This Row],[Hide:\nFormula Name]],Table_SummaryPI[[#This Row],[Quantity]],Table_PI[[#This Row],[List 1]],Table_PI[[#This Row],[List 2]],Table_PI[[#This Row],[List 3]],Table_PI[[#This Row],[Size]],Table_PI[[#This Row],[Input 1]],Table_PI[[#This Row],[Input 2]],Table_PI[[#This Row],[Input 3]],Table_PI[[#This Row],[Input 4]],'Customer Information'!$AR$12,200,ROW()),\"\"),\"\")","v":""},{"$f":"IFERROR(IF(MeasureCalc(Table_PI[[#This Row],[Hide:\nFormula Name]],Table_SummaryPI[[#This Row],[Quantity]],Table_PI[[#This Row],[List 1]],Table_PI[[#This Row],[List 2]],Table_PI[[#This Row],[List 3]],Table_PI[[#This Row],[Size]],Table_PI[[#This Row],[Input 1]],Table_PI[[#This Row],[Input 2]],Table_PI[[#This Row],[Input 3]],Table_PI[[#This Row],[Input 4]],'Customer Information'!$AR$12,201,ROW())<>\"No Rebate\",MeasureCalc(Table_PI[[#This Row],[Hide:\nFormula Name]],Table_SummaryPI[[#This Row],[Quantity]],Table_PI[[#This Row],[List 1]],Table_PI[[#This Row],[List 2]],Table_PI[[#This Row],[List 3]],Table_PI[[#This Row],[Size]],Table_PI[[#This Row],[Input 1]],Table_PI[[#This Row],[Input 2]],Table_PI[[#This Row],[Input 3]],Table_PI[[#This Row],[Input 4]],'Customer Information'!$AR$12,201,ROW()),\"\"),\"\")","v":""}]
[{"$f":"Table_PI[[#This Row],[Line No.]]","v":""},{"$f":"IF(Table_SummaryPI[[#This Row],[MeassureCategory]]<>\"\",CONCATENATE(Table_SummaryPI[[#This Row],[MeassureCategory]],  \" - \", Table_SummaryPI[[#This Row],[ProposedMeasureCategory]],  \" - \", TEXT(Table_SummaryPI[[#This Row],[Size]],\"#,##0.00\"),\" \",Table_SummaryPI[[#This Row],[SizeUnit]]),\"\")","v":""},{"$f":"SUBSTITUTE(Table_PI[[#This Row],[Measure]],\"     \",\"\",1)","v":""},{"$f":"IF(Table_PI[[#This Row],[List 1]]<>\"\",Table_PI[[#This Row],[List 1]],\"\")","v":""},{"$f":"IF(Table_PI[[#This Row],[List 2]]<>\"\",Table_PI[[#This Row],[List 2]],\"\")","v":""},{"$f":"IF(Table_PI[[#This Row],[List 3]]<>\"\",Table_PI[[#This Row],[List 3]],\"\")","v":""},{"$f":"IF(Table_PI[[#This Row],[Manufacturer]]=\"\",\"\",Table_PI[[#This Row],[Manufacturer]])","v":""},{"$f":"IF(Table_PI[[#This Row],[Model Number]]=\"\",\"\",Table_PI[[#This Row],[Model Number]])","v":""},{"$f":"IF(Table_PI[[#This Row],[Serial Number(s)]]=\"\",\"\",Table_PI[[#This Row],[Serial Number(s)]])","v":""},null,{"$f":"IF(Table_PI[[#This Row],[Size]]=\"\",\"\",Table_PI[[#This Row],[Size]])","v":""},null,{"$f":"IFERROR(IF(AND(MeasureCalc(Table_PI[[#This Row],[Hide:\nFormula Name]],Table_SummaryPI[[#This Row],[Quantity]],Table_PI[[#This Row],[List 1]],Table_PI[[#This Row],[List 2]],Table_PI[[#This Row],[List 3]],Table_PI[[#This Row],[Size]],Table_PI[[#This Row],[Input 1]],Table_PI[[#This Row],[Input 2]],Table_PI[[#This Row],[Input 3]],Table_PI[[#This Row],[Input 4]],'Customer Information'!$AR$12,100,ROW())<>0,MeasureCalc(Table_PI[[#This Row],[Hide:\nFormula Name]],Table_SummaryPI[[#This Row],[Quantity]],Table_PI[[#This Row],[List 1]],Table_PI[[#This Row],[List 2]],Table_PI[[#This Row],[List 3]],Table_PI[[#This Row],[Size]],Table_PI[[#This Row],[Input 1]],Table_PI[[#This Row],[Input 2]],Table_PI[[#This Row],[Input 3]],Table_PI[[#This Row],[Input 4]],'Customer Information'!$AR$12,100,ROW())<>\"No Rebate\"),MeasureCalc(Table_PI[[#This Row],[Hide:\nFormula Name]],Table_SummaryPI[[#This Row],[Quantity]],Table_PI[[#This Row],[List 1]],Table_PI[[#This Row],[List 2]],Table_PI[[#This Row],[List 3]],Table_PI[[#This Row],[Size]],Table_PI[[#This Row],[Input 1]],Table_PI[[#This Row],[Input 2]],Table_PI[[#This Row],[Input 3]],Table_PI[[#This Row],[Input 4]],'Customer Information'!$AR$12,100,ROW()),\"\"),\"\")","v":""},{"$f":"IF(Table_PI[[#This Row],[Input 1]]<>\"\",Table_PI[[#This Row],[Input 1]],\"\")","v":""},null,{"$f":"IFERROR(IF(AND(MeasureCalc(Table_PI[[#This Row],[Hide:\nFormula Name]],Table_SummaryPI[[#This Row],[Quantity]],Table_PI[[#This Row],[List 1]],Table_PI[[#This Row],[List 2]],Table_PI[[#This Row],[List 3]],Table_PI[[#This Row],[Size]],Table_PI[[#This Row],[Input 1]],Table_PI[[#This Row],[Input 2]],Table_PI[[#This Row],[Input 3]],Table_PI[[#This Row],[Input 4]],'Customer Information'!$AR$12,101,ROW())<>0,MeasureCalc(Table_PI[[#This Row],[Hide:\nFormula Name]],Table_SummaryPI[[#This Row],[Quantity]],Table_PI[[#This Row],[List 1]],Table_PI[[#This Row],[List 2]],Table_PI[[#This Row],[List 3]],Table_PI[[#This Row],[Size]],Table_PI[[#This Row],[Input 1]],Table_PI[[#This Row],[Input 2]],Table_PI[[#This Row],[Input 3]],Table_PI[[#This Row],[Input 4]],'Customer Information'!$AR$12,101,ROW())<>\"No Rebate\"),MeasureCalc(Table_PI[[#This Row],[Hide:\nFormula Name]],Table_SummaryPI[[#This Row],[Quantity]],Table_PI[[#This Row],[List 1]],Table_PI[[#This Row],[List 2]],Table_PI[[#This Row],[List 3]],Table_PI[[#This Row],[Size]],Table_PI[[#This Row],[Input 1]],Table_PI[[#This Row],[Input 2]],Table_PI[[#This Row],[Input 3]],Table_PI[[#This Row],[Input 4]],'Customer Information'!$AR$12,101,ROW()),\"\"),\"\")","v":""},{"$f":"IF(Table_PI[[#This Row],[Input 2]]<>\"\",Table_PI[[#This Row],[Input 2]],\"\")","v":""},null,{"$f":"IFERROR(IF(AND(MeasureCalc(Table_PI[[#This Row],[Hide:\nFormula Name]],Table_SummaryPI[[#This Row],[Quantity]],Table_PI[[#This Row],[List 1]],Table_PI[[#This Row],[List 2]],Table_PI[[#This Row],[List 3]],Table_PI[[#This Row],[Size]],Table_PI[[#This Row],[Input 1]],Table_PI[[#This Row],[Input 2]],Table_PI[[#This Row],[Input 3]],Table_PI[[#This Row],[Input 4]],'Customer Information'!$AR$12,102,ROW())<>0,MeasureCalc(Table_PI[[#This Row],[Hide:\nFormula Name]],Table_SummaryPI[[#This Row],[Quantity]],Table_PI[[#This Row],[List 1]],Table_PI[[#This Row],[List 2]],Table_PI[[#This Row],[List 3]],Table_PI[[#This Row],[Size]],Table_PI[[#This Row],[Input 1]],Table_PI[[#This Row],[Input 2]],Table_PI[[#This Row],[Input 3]],Table_PI[[#This Row],[Input 4]],'Customer Information'!$AR$12,102,ROW())<>\"No Rebate\"),MeasureCalc(Table_PI[[#This Row],[Hide:\nFormula Name]],Table_SummaryPI[[#This Row],[Quantity]],Table_PI[[#This Row],[List 1]],Table_PI[[#This Row],[List 2]],Table_PI[[#This Row],[List 3]],Table_PI[[#This Row],[Size]],Table_PI[[#This Row],[Input 1]],Table_PI[[#This Row],[Input 2]],Table_PI[[#This Row],[Input 3]],Table_PI[[#This Row],[Input 4]],'Customer Information'!$AR$12,102,ROW()),\"\"),\"\")","v":""},{"$f":"IF(Table_PI[[#This Row],[Input 3]]<>\"\",Table_PI[[#This Row],[Input 3]],\"\")","v":""},null,{"$f":"IFERROR(IF(AND(MeasureCalc(Table_PI[[#This Row],[Hide:\nFormula Name]],Table_SummaryPI[[#This Row],[Quantity]],Table_PI[[#This Row],[List 1]],Table_PI[[#This Row],[List 2]],Table_PI[[#This Row],[List 3]],Table_PI[[#This Row],[Size]],Table_PI[[#This Row],[Input 1]],Table_PI[[#This Row],[Input 2]],Table_PI[[#This Row],[Input 3]],Table_PI[[#This Row],[Input 4]],'Customer Information'!$AR$12,103,ROW())<>0,MeasureCalc(Table_PI[[#This Row],[Hide:\nFormula Name]],Table_SummaryPI[[#This Row],[Quantity]],Table_PI[[#This Row],[List 1]],Table_PI[[#This Row],[List 2]],Table_PI[[#This Row],[List 3]],Table_PI[[#This Row],[Size]],Table_PI[[#This Row],[Input 1]],Table_PI[[#This Row],[Input 2]],Table_PI[[#This Row],[Input 3]],Table_PI[[#This Row],[Input 4]],'Customer Information'!$AR$12,103,ROW())<>\"No Rebate\"),MeasureCalc(Table_PI[[#This Row],[Hide:\nFormula Name]],Table_SummaryPI[[#This Row],[Quantity]],Table_PI[[#This Row],[List 1]],Table_PI[[#This Row],[List 2]],Table_PI[[#This Row],[List 3]],Table_PI[[#This Row],[Size]],Table_PI[[#This Row],[Input 1]],Table_PI[[#This Row],[Input 2]],Table_PI[[#This Row],[Input 3]],Table_PI[[#This Row],[Input 4]],'Customer Information'!$AR$12,103,ROW()),\"\"),\"\")","v":""},{"$f":"IF(Table_PI[[#This Row],[Input 4]]<>\"\",Table_PI[[#This Row],[Input 4]],\"\")","v":""},{"$f":"IF(Table_PI[[#This Row],[Quantity]]=\"\",\"\",Table_PI[[#This Row],[Quantity]])","v":""},{"$f":"IF(Table_PI[[#This Row],[Notes]]=\"\",\"\",Table_PI[[#This Row],[Notes]])","v":""},{"$f":"IF(OR(Table_PI[[#This Row],[Hide:\nBaseline kWh]]=\"\",Table_PI[[#This Row],[Hide:\nBaseline kWh]]=0),\"\",Table_PI[[#This Row],[Hide:\nBaseline kWh]])","v":""},{"$f":"IF(OR(Table_PI[[#This Row],[Hide:\nBaseline kW]]=\"\",Table_PI[[#This Row],[Hide:\nBaseline kW]]=0),\"\",Table_PI[[#This Row],[Hide:\nBaseline kW]])","v":""},{"$f":"IF(OR(Table_PI[[#This Row],[Hide:\nProposed kWh]]=\"\",Table_PI[[#This Row],[Hide:\nProposed kWh]]=0),\"\",Table_PI[[#This Row],[Hide:\nProposed kWh]])","v":""},{"$f":"IF(OR(Table_PI[[#This Row],[Hide:\nProposed kW]]=\"\",Table_PI[[#This Row],[Hide:\nProposed kW]]=0),\"\",Table_PI[[#This Row],[Hide:\nProposed kW]])","v":""},{"$f":"IF(OR(Table_PI[[#This Row],[Rebate]]=\"\",Table_PI[[#This Row],[Rebate]]=0),\"\",Table_PI[[#This Row],[Rebate]])","v":""},{"$f":"IF(OR(Table_PI[[#This Row],[Hide:\nIncremental Cost]]=\"\",Table_PI[[#This Row],[Hide:\nIncremental Cost]]=0),\"\",Table_PI[[#This Row],[Hide:\nIncremental Cost]])","v":""},{"$f":"IFERROR(IF(Table_SummaryPI[[#This Row],[kWhSavings]]=\"\",\"\",ROUND(Table_SummaryPI[[#This Row],[kWhSavings]]/$AG$401*'Customer Information'!$BC$17,2)),0)","v":""},{"$f":"IF(OR(Table_PI[[#This Row],[Annual kWh]]=\"\",Table_PI[[#This Row],[Annual kWh]]=0),\"\",Table_PI[[#This Row],[Annual kWh]])","v":""},{"$f":"IF(OR(Table_PI[[#This Row],[Peak kW]]=\"\",Table_PI[[#This Row],[Peak kW]]=0),\"\",Table_PI[[#This Row],[Peak kW]])","v":""},{"$f":"IFERROR(IF(Table_SummaryPI[[#This Row],[kWhSavings]]=\"\",\"\",$AU$9*Table_SummaryPI[[#This Row],[kWhSavings]]),0)","v":""},{"$f":"IFERROR(IF(Table_SummaryPI[[#This Row],[kWhSavings]]=\"\",\"\",$AU$14*Table_SummaryPI[[#This Row],[kWhSavings]]),0)","v":""},{"$f":"IFERROR(IF(Table_SummaryPI[[#This Row],[kWhSavings]]=\"\",\"\",$AU$18*Table_SummaryPI[[#This Row],[kWhSavings]]),0)","v":""},{"$f":"IFERROR(IF(Table_SummaryPI[[#This Row],[kWhSavings]]=\"\",\"\",$AU$22*Table_SummaryPI[[#This Row],[kWhSavings]]),0)","v":""},{"$f":"IFERROR(IF(MeasureCalc(Table_PI[[#This Row],[Hide:\nFormula Name]],Table_SummaryPI[[#This Row],[Quantity]],Table_PI[[#This Row],[List 1]],Table_PI[[#This Row],[List 2]],Table_PI[[#This Row],[List 3]],Table_PI[[#This Row],[Size]],Table_PI[[#This Row],[Input 1]],Table_PI[[#This Row],[Input 2]],Table_PI[[#This Row],[Input 3]],Table_PI[[#This Row],[Input 4]],'Customer Information'!$AR$12,200,ROW())<>\"No Rebate\",MeasureCalc(Table_PI[[#This Row],[Hide:\nFormula Name]],Table_SummaryPI[[#This Row],[Quantity]],Table_PI[[#This Row],[List 1]],Table_PI[[#This Row],[List 2]],Table_PI[[#This Row],[List 3]],Table_PI[[#This Row],[Size]],Table_PI[[#This Row],[Input 1]],Table_PI[[#This Row],[Input 2]],Table_PI[[#This Row],[Input 3]],Table_PI[[#This Row],[Input 4]],'Customer Information'!$AR$12,200,ROW()),\"\"),\"\")","v":""},{"$f":"IFERROR(IF(MeasureCalc(Table_PI[[#This Row],[Hide:\nFormula Name]],Table_SummaryPI[[#This Row],[Quantity]],Table_PI[[#This Row],[List 1]],Table_PI[[#This Row],[List 2]],Table_PI[[#This Row],[List 3]],Table_PI[[#This Row],[Size]],Table_PI[[#This Row],[Input 1]],Table_PI[[#This Row],[Input 2]],Table_PI[[#This Row],[Input 3]],Table_PI[[#This Row],[Input 4]],'Customer Information'!$AR$12,201,ROW())<>\"No Rebate\",MeasureCalc(Table_PI[[#This Row],[Hide:\nFormula Name]],Table_SummaryPI[[#This Row],[Quantity]],Table_PI[[#This Row],[List 1]],Table_PI[[#This Row],[List 2]],Table_PI[[#This Row],[List 3]],Table_PI[[#This Row],[Size]],Table_PI[[#This Row],[Input 1]],Table_PI[[#This Row],[Input 2]],Table_PI[[#This Row],[Input 3]],Table_PI[[#This Row],[Input 4]],'Customer Information'!$AR$12,201,ROW()),\"\"),\"\")","v":""}]
[{"$f":"Table_PI[[#This Row],[Line No.]]","v":""},{"$f":"IF(Table_SummaryPI[[#This Row],[MeassureCategory]]<>\"\",CONCATENATE(Table_SummaryPI[[#This Row],[MeassureCategory]],  \" - \", Table_SummaryPI[[#This Row],[ProposedMeasureCategory]],  \" - \", TEXT(Table_SummaryPI[[#This Row],[Size]],\"#,##0.00\"),\" \",Table_SummaryPI[[#This Row],[SizeUnit]]),\"\")","v":""},{"$f":"SUBSTITUTE(Table_PI[[#This Row],[Measure]],\"     \",\"\",1)","v":""},{"$f":"IF(Table_PI[[#This Row],[List 1]]<>\"\",Table_PI[[#This Row],[List 1]],\"\")","v":""},{"$f":"IF(Table_PI[[#This Row],[List 2]]<>\"\",Table_PI[[#This Row],[List 2]],\"\")","v":""},{"$f":"IF(Table_PI[[#This Row],[List 3]]<>\"\",Table_PI[[#This Row],[List 3]],\"\")","v":""},{"$f":"IF(Table_PI[[#This Row],[Manufacturer]]=\"\",\"\",Table_PI[[#This Row],[Manufacturer]])","v":""},{"$f":"IF(Table_PI[[#This Row],[Model Number]]=\"\",\"\",Table_PI[[#This Row],[Model Number]])","v":""},{"$f":"IF(Table_PI[[#This Row],[Serial Number(s)]]=\"\",\"\",Table_PI[[#This Row],[Serial Number(s)]])","v":""},null,{"$f":"IF(Table_PI[[#This Row],[Size]]=\"\",\"\",Table_PI[[#This Row],[Size]])","v":""},null,{"$f":"IFERROR(IF(AND(MeasureCalc(Table_PI[[#This Row],[Hide:\nFormula Name]],Table_SummaryPI[[#This Row],[Quantity]],Table_PI[[#This Row],[List 1]],Table_PI[[#This Row],[List 2]],Table_PI[[#This Row],[List 3]],Table_PI[[#This Row],[Size]],Table_PI[[#This Row],[Input 1]],Table_PI[[#This Row],[Input 2]],Table_PI[[#This Row],[Input 3]],Table_PI[[#This Row],[Input 4]],'Customer Information'!$AR$12,100,ROW())<>0,MeasureCalc(Table_PI[[#This Row],[Hide:\nFormula Name]],Table_SummaryPI[[#This Row],[Quantity]],Table_PI[[#This Row],[List 1]],Table_PI[[#This Row],[List 2]],Table_PI[[#This Row],[List 3]],Table_PI[[#This Row],[Size]],Table_PI[[#This Row],[Input 1]],Table_PI[[#This Row],[Input 2]],Table_PI[[#This Row],[Input 3]],Table_PI[[#This Row],[Input 4]],'Customer Information'!$AR$12,100,ROW())<>\"No Rebate\"),MeasureCalc(Table_PI[[#This Row],[Hide:\nFormula Name]],Table_SummaryPI[[#This Row],[Quantity]],Table_PI[[#This Row],[List 1]],Table_PI[[#This Row],[List 2]],Table_PI[[#This Row],[List 3]],Table_PI[[#This Row],[Size]],Table_PI[[#This Row],[Input 1]],Table_PI[[#This Row],[Input 2]],Table_PI[[#This Row],[Input 3]],Table_PI[[#This Row],[Input 4]],'Customer Information'!$AR$12,100,ROW()),\"\"),\"\")","v":""},{"$f":"IF(Table_PI[[#This Row],[Input 1]]<>\"\",Table_PI[[#This Row],[Input 1]],\"\")","v":""},null,{"$f":"IFERROR(IF(AND(MeasureCalc(Table_PI[[#This Row],[Hide:\nFormula Name]],Table_SummaryPI[[#This Row],[Quantity]],Table_PI[[#This Row],[List 1]],Table_PI[[#This Row],[List 2]],Table_PI[[#This Row],[List 3]],Table_PI[[#This Row],[Size]],Table_PI[[#This Row],[Input 1]],Table_PI[[#This Row],[Input 2]],Table_PI[[#This Row],[Input 3]],Table_PI[[#This Row],[Input 4]],'Customer Information'!$AR$12,101,ROW())<>0,MeasureCalc(Table_PI[[#This Row],[Hide:\nFormula Name]],Table_SummaryPI[[#This Row],[Quantity]],Table_PI[[#This Row],[List 1]],Table_PI[[#This Row],[List 2]],Table_PI[[#This Row],[List 3]],Table_PI[[#This Row],[Size]],Table_PI[[#This Row],[Input 1]],Table_PI[[#This Row],[Input 2]],Table_PI[[#This Row],[Input 3]],Table_PI[[#This Row],[Input 4]],'Customer Information'!$AR$12,101,ROW())<>\"No Rebate\"),MeasureCalc(Table_PI[[#This Row],[Hide:\nFormula Name]],Table_SummaryPI[[#This Row],[Quantity]],Table_PI[[#This Row],[List 1]],Table_PI[[#This Row],[List 2]],Table_PI[[#This Row],[List 3]],Table_PI[[#This Row],[Size]],Table_PI[[#This Row],[Input 1]],Table_PI[[#This Row],[Input 2]],Table_PI[[#This Row],[Input 3]],Table_PI[[#This Row],[Input 4]],'Customer Information'!$AR$12,101,ROW()),\"\"),\"\")","v":""},{"$f":"IF(Table_PI[[#This Row],[Input 2]]<>\"\",Table_PI[[#This Row],[Input 2]],\"\")","v":""},null,{"$f":"IFERROR(IF(AND(MeasureCalc(Table_PI[[#This Row],[Hide:\nFormula Name]],Table_SummaryPI[[#This Row],[Quantity]],Table_PI[[#This Row],[List 1]],Table_PI[[#This Row],[List 2]],Table_PI[[#This Row],[List 3]],Table_PI[[#This Row],[Size]],Table_PI[[#This Row],[Input 1]],Table_PI[[#This Row],[Input 2]],Table_PI[[#This Row],[Input 3]],Table_PI[[#This Row],[Input 4]],'Customer Information'!$AR$12,102,ROW())<>0,MeasureCalc(Table_PI[[#This Row],[Hide:\nFormula Name]],Table_SummaryPI[[#This Row],[Quantity]],Table_PI[[#This Row],[List 1]],Table_PI[[#This Row],[List 2]],Table_PI[[#This Row],[List 3]],Table_PI[[#This Row],[Size]],Table_PI[[#This Row],[Input 1]],Table_PI[[#This Row],[Input 2]],Table_PI[[#This Row],[Input 3]],Table_PI[[#This Row],[Input 4]],'Customer Information'!$AR$12,102,ROW())<>\"No Rebate\"),MeasureCalc(Table_PI[[#This Row],[Hide:\nFormula Name]],Table_SummaryPI[[#This Row],[Quantity]],Table_PI[[#This Row],[List 1]],Table_PI[[#This Row],[List 2]],Table_PI[[#This Row],[List 3]],Table_PI[[#This Row],[Size]],Table_PI[[#This Row],[Input 1]],Table_PI[[#This Row],[Input 2]],Table_PI[[#This Row],[Input 3]],Table_PI[[#This Row],[Input 4]],'Customer Information'!$AR$12,102,ROW()),\"\"),\"\")","v":""},{"$f":"IF(Table_PI[[#This Row],[Input 3]]<>\"\",Table_PI[[#This Row],[Input 3]],\"\")","v":""},null,{"$f":"IFERROR(IF(AND(MeasureCalc(Table_PI[[#This Row],[Hide:\nFormula Name]],Table_SummaryPI[[#This Row],[Quantity]],Table_PI[[#This Row],[List 1]],Table_PI[[#This Row],[List 2]],Table_PI[[#This Row],[List 3]],Table_PI[[#This Row],[Size]],Table_PI[[#This Row],[Input 1]],Table_PI[[#This Row],[Input 2]],Table_PI[[#This Row],[Input 3]],Table_PI[[#This Row],[Input 4]],'Customer Information'!$AR$12,103,ROW())<>0,MeasureCalc(Table_PI[[#This Row],[Hide:\nFormula Name]],Table_SummaryPI[[#This Row],[Quantity]],Table_PI[[#This Row],[List 1]],Table_PI[[#This Row],[List 2]],Table_PI[[#This Row],[List 3]],Table_PI[[#This Row],[Size]],Table_PI[[#This Row],[Input 1]],Table_PI[[#This Row],[Input 2]],Table_PI[[#This Row],[Input 3]],Table_PI[[#This Row],[Input 4]],'Customer Information'!$AR$12,103,ROW())<>\"No Rebate\"),MeasureCalc(Table_PI[[#This Row],[Hide:\nFormula Name]],Table_SummaryPI[[#This Row],[Quantity]],Table_PI[[#This Row],[List 1]],Table_PI[[#This Row],[List 2]],Table_PI[[#This Row],[List 3]],Table_PI[[#This Row],[Size]],Table_PI[[#This Row],[Input 1]],Table_PI[[#This Row],[Input 2]],Table_PI[[#This Row],[Input 3]],Table_PI[[#This Row],[Input 4]],'Customer Information'!$AR$12,103,ROW()),\"\"),\"\")","v":""},{"$f":"IF(Table_PI[[#This Row],[Input 4]]<>\"\",Table_PI[[#This Row],[Input 4]],\"\")","v":""},{"$f":"IF(Table_PI[[#This Row],[Quantity]]=\"\",\"\",Table_PI[[#This Row],[Quantity]])","v":""},{"$f":"IF(Table_PI[[#This Row],[Notes]]=\"\",\"\",Table_PI[[#This Row],[Notes]])","v":""},{"$f":"IF(OR(Table_PI[[#This Row],[Hide:\nBaseline kWh]]=\"\",Table_PI[[#This Row],[Hide:\nBaseline kWh]]=0),\"\",Table_PI[[#This Row],[Hide:\nBaseline kWh]])","v":""},{"$f":"IF(OR(Table_PI[[#This Row],[Hide:\nBaseline kW]]=\"\",Table_PI[[#This Row],[Hide:\nBaseline kW]]=0),\"\",Table_PI[[#This Row],[Hide:\nBaseline kW]])","v":""},{"$f":"IF(OR(Table_PI[[#This Row],[Hide:\nProposed kWh]]=\"\",Table_PI[[#This Row],[Hide:\nProposed kWh]]=0),\"\",Table_PI[[#This Row],[Hide:\nProposed kWh]])","v":""},{"$f":"IF(OR(Table_PI[[#This Row],[Hide:\nProposed kW]]=\"\",Table_PI[[#This Row],[Hide:\nProposed kW]]=0),\"\",Table_PI[[#This Row],[Hide:\nProposed kW]])","v":""},{"$f":"IF(OR(Table_PI[[#This Row],[Rebate]]=\"\",Table_PI[[#This Row],[Rebate]]=0),\"\",Table_PI[[#This Row],[Rebate]])","v":""},{"$f":"IF(OR(Table_PI[[#This Row],[Hide:\nIncremental Cost]]=\"\",Table_PI[[#This Row],[Hide:\nIncremental Cost]]=0),\"\",Table_PI[[#This Row],[Hide:\nIncremental Cost]])","v":""},{"$f":"IFERROR(IF(Table_SummaryPI[[#This Row],[kWhSavings]]=\"\",\"\",ROUND(Table_SummaryPI[[#This Row],[kWhSavings]]/$AG$401*'Customer Information'!$BC$17,2)),0)","v":""},{"$f":"IF(OR(Table_PI[[#This Row],[Annual kWh]]=\"\",Table_PI[[#This Row],[Annual kWh]]=0),\"\",Table_PI[[#This Row],[Annual kWh]])","v":""},{"$f":"IF(OR(Table_PI[[#This Row],[Peak kW]]=\"\",Table_PI[[#This Row],[Peak kW]]=0),\"\",Table_PI[[#This Row],[Peak kW]])","v":""},{"$f":"IFERROR(IF(Table_SummaryPI[[#This Row],[kWhSavings]]=\"\",\"\",$AU$9*Table_SummaryPI[[#This Row],[kWhSavings]]),0)","v":""},{"$f":"IFERROR(IF(Table_SummaryPI[[#This Row],[kWhSavings]]=\"\",\"\",$AU$14*Table_SummaryPI[[#This Row],[kWhSavings]]),0)","v":""},{"$f":"IFERROR(IF(Table_SummaryPI[[#This Row],[kWhSavings]]=\"\",\"\",$AU$18*Table_SummaryPI[[#This Row],[kWhSavings]]),0)","v":""},{"$f":"IFERROR(IF(Table_SummaryPI[[#This Row],[kWhSavings]]=\"\",\"\",$AU$22*Table_SummaryPI[[#This Row],[kWhSavings]]),0)","v":""},{"$f":"IFERROR(IF(MeasureCalc(Table_PI[[#This Row],[Hide:\nFormula Name]],Table_SummaryPI[[#This Row],[Quantity]],Table_PI[[#This Row],[List 1]],Table_PI[[#This Row],[List 2]],Table_PI[[#This Row],[List 3]],Table_PI[[#This Row],[Size]],Table_PI[[#This Row],[Input 1]],Table_PI[[#This Row],[Input 2]],Table_PI[[#This Row],[Input 3]],Table_PI[[#This Row],[Input 4]],'Customer Information'!$AR$12,200,ROW())<>\"No Rebate\",MeasureCalc(Table_PI[[#This Row],[Hide:\nFormula Name]],Table_SummaryPI[[#This Row],[Quantity]],Table_PI[[#This Row],[List 1]],Table_PI[[#This Row],[List 2]],Table_PI[[#This Row],[List 3]],Table_PI[[#This Row],[Size]],Table_PI[[#This Row],[Input 1]],Table_PI[[#This Row],[Input 2]],Table_PI[[#This Row],[Input 3]],Table_PI[[#This Row],[Input 4]],'Customer Information'!$AR$12,200,ROW()),\"\"),\"\")","v":""},{"$f":"IFERROR(IF(MeasureCalc(Table_PI[[#This Row],[Hide:\nFormula Name]],Table_SummaryPI[[#This Row],[Quantity]],Table_PI[[#This Row],[List 1]],Table_PI[[#This Row],[List 2]],Table_PI[[#This Row],[List 3]],Table_PI[[#This Row],[Size]],Table_PI[[#This Row],[Input 1]],Table_PI[[#This Row],[Input 2]],Table_PI[[#This Row],[Input 3]],Table_PI[[#This Row],[Input 4]],'Customer Information'!$AR$12,201,ROW())<>\"No Rebate\",MeasureCalc(Table_PI[[#This Row],[Hide:\nFormula Name]],Table_SummaryPI[[#This Row],[Quantity]],Table_PI[[#This Row],[List 1]],Table_PI[[#This Row],[List 2]],Table_PI[[#This Row],[List 3]],Table_PI[[#This Row],[Size]],Table_PI[[#This Row],[Input 1]],Table_PI[[#This Row],[Input 2]],Table_PI[[#This Row],[Input 3]],Table_PI[[#This Row],[Input 4]],'Customer Information'!$AR$12,201,ROW()),\"\"),\"\")","v":""}]
[{"$f":"Table_PI[[#This Row],[Line No.]]","v":""},{"$f":"IF(Table_SummaryPI[[#This Row],[MeassureCategory]]<>\"\",CONCATENATE(Table_SummaryPI[[#This Row],[MeassureCategory]],  \" - \", Table_SummaryPI[[#This Row],[ProposedMeasureCategory]],  \" - \", TEXT(Table_SummaryPI[[#This Row],[Size]],\"#,##0.00\"),\" \",Table_SummaryPI[[#This Row],[SizeUnit]]),\"\")","v":""},{"$f":"SUBSTITUTE(Table_PI[[#This Row],[Measure]],\"     \",\"\",1)","v":""},{"$f":"IF(Table_PI[[#This Row],[List 1]]<>\"\",Table_PI[[#This Row],[List 1]],\"\")","v":""},{"$f":"IF(Table_PI[[#This Row],[List 2]]<>\"\",Table_PI[[#This Row],[List 2]],\"\")","v":""},{"$f":"IF(Table_PI[[#This Row],[List 3]]<>\"\",Table_PI[[#This Row],[List 3]],\"\")","v":""},{"$f":"IF(Table_PI[[#This Row],[Manufacturer]]=\"\",\"\",Table_PI[[#This Row],[Manufacturer]])","v":""},{"$f":"IF(Table_PI[[#This Row],[Model Number]]=\"\",\"\",Table_PI[[#This Row],[Model Number]])","v":""},{"$f":"IF(Table_PI[[#This Row],[Serial Number(s)]]=\"\",\"\",Table_PI[[#This Row],[Serial Number(s)]])","v":""},null,{"$f":"IF(Table_PI[[#This Row],[Size]]=\"\",\"\",Table_PI[[#This Row],[Size]])","v":""},null,{"$f":"IFERROR(IF(AND(MeasureCalc(Table_PI[[#This Row],[Hide:\nFormula Name]],Table_SummaryPI[[#This Row],[Quantity]],Table_PI[[#This Row],[List 1]],Table_PI[[#This Row],[List 2]],Table_PI[[#This Row],[List 3]],Table_PI[[#This Row],[Size]],Table_PI[[#This Row],[Input 1]],Table_PI[[#This Row],[Input 2]],Table_PI[[#This Row],[Input 3]],Table_PI[[#This Row],[Input 4]],'Customer Information'!$AR$12,100,ROW())<>0,MeasureCalc(Table_PI[[#This Row],[Hide:\nFormula Name]],Table_SummaryPI[[#This Row],[Quantity]],Table_PI[[#This Row],[List 1]],Table_PI[[#This Row],[List 2]],Table_PI[[#This Row],[List 3]],Table_PI[[#This Row],[Size]],Table_PI[[#This Row],[Input 1]],Table_PI[[#This Row],[Input 2]],Table_PI[[#This Row],[Input 3]],Table_PI[[#This Row],[Input 4]],'Customer Information'!$AR$12,100,ROW())<>\"No Rebate\"),MeasureCalc(Table_PI[[#This Row],[Hide:\nFormula Name]],Table_SummaryPI[[#This Row],[Quantity]],Table_PI[[#This Row],[List 1]],Table_PI[[#This Row],[List 2]],Table_PI[[#This Row],[List 3]],Table_PI[[#This Row],[Size]],Table_PI[[#This Row],[Input 1]],Table_PI[[#This Row],[Input 2]],Table_PI[[#This Row],[Input 3]],Table_PI[[#This Row],[Input 4]],'Customer Information'!$AR$12,100,ROW()),\"\"),\"\")","v":""},{"$f":"IF(Table_PI[[#This Row],[Input 1]]<>\"\",Table_PI[[#This Row],[Input 1]],\"\")","v":""},null,{"$f":"IFERROR(IF(AND(MeasureCalc(Table_PI[[#This Row],[Hide:\nFormula Name]],Table_SummaryPI[[#This Row],[Quantity]],Table_PI[[#This Row],[List 1]],Table_PI[[#This Row],[List 2]],Table_PI[[#This Row],[List 3]],Table_PI[[#This Row],[Size]],Table_PI[[#This Row],[Input 1]],Table_PI[[#This Row],[Input 2]],Table_PI[[#This Row],[Input 3]],Table_PI[[#This Row],[Input 4]],'Customer Information'!$AR$12,101,ROW())<>0,MeasureCalc(Table_PI[[#This Row],[Hide:\nFormula Name]],Table_SummaryPI[[#This Row],[Quantity]],Table_PI[[#This Row],[List 1]],Table_PI[[#This Row],[List 2]],Table_PI[[#This Row],[List 3]],Table_PI[[#This Row],[Size]],Table_PI[[#This Row],[Input 1]],Table_PI[[#This Row],[Input 2]],Table_PI[[#This Row],[Input 3]],Table_PI[[#This Row],[Input 4]],'Customer Information'!$AR$12,101,ROW())<>\"No Rebate\"),MeasureCalc(Table_PI[[#This Row],[Hide:\nFormula Name]],Table_SummaryPI[[#This Row],[Quantity]],Table_PI[[#This Row],[List 1]],Table_PI[[#This Row],[List 2]],Table_PI[[#This Row],[List 3]],Table_PI[[#This Row],[Size]],Table_PI[[#This Row],[Input 1]],Table_PI[[#This Row],[Input 2]],Table_PI[[#This Row],[Input 3]],Table_PI[[#This Row],[Input 4]],'Customer Information'!$AR$12,101,ROW()),\"\"),\"\")","v":""},{"$f":"IF(Table_PI[[#This Row],[Input 2]]<>\"\",Table_PI[[#This Row],[Input 2]],\"\")","v":""},null,{"$f":"IFERROR(IF(AND(MeasureCalc(Table_PI[[#This Row],[Hide:\nFormula Name]],Table_SummaryPI[[#This Row],[Quantity]],Table_PI[[#This Row],[List 1]],Table_PI[[#This Row],[List 2]],Table_PI[[#This Row],[List 3]],Table_PI[[#This Row],[Size]],Table_PI[[#This Row],[Input 1]],Table_PI[[#This Row],[Input 2]],Table_PI[[#This Row],[Input 3]],Table_PI[[#This Row],[Input 4]],'Customer Information'!$AR$12,102,ROW())<>0,MeasureCalc(Table_PI[[#This Row],[Hide:\nFormula Name]],Table_SummaryPI[[#This Row],[Quantity]],Table_PI[[#This Row],[List 1]],Table_PI[[#This Row],[List 2]],Table_PI[[#This Row],[List 3]],Table_PI[[#This Row],[Size]],Table_PI[[#This Row],[Input 1]],Table_PI[[#This Row],[Input 2]],Table_PI[[#This Row],[Input 3]],Table_PI[[#This Row],[Input 4]],'Customer Information'!$AR$12,102,ROW())<>\"No Rebate\"),MeasureCalc(Table_PI[[#This Row],[Hide:\nFormula Name]],Table_SummaryPI[[#This Row],[Quantity]],Table_PI[[#This Row],[List 1]],Table_PI[[#This Row],[List 2]],Table_PI[[#This Row],[List 3]],Table_PI[[#This Row],[Size]],Table_PI[[#This Row],[Input 1]],Table_PI[[#This Row],[Input 2]],Table_PI[[#This Row],[Input 3]],Table_PI[[#This Row],[Input 4]],'Customer Information'!$AR$12,102,ROW()),\"\"),\"\")","v":""},{"$f":"IF(Table_PI[[#This Row],[Input 3]]<>\"\",Table_PI[[#This Row],[Input 3]],\"\")","v":""},null,{"$f":"IFERROR(IF(AND(MeasureCalc(Table_PI[[#This Row],[Hide:\nFormula Name]],Table_SummaryPI[[#This Row],[Quantity]],Table_PI[[#This Row],[List 1]],Table_PI[[#This Row],[List 2]],Table_PI[[#This Row],[List 3]],Table_PI[[#This Row],[Size]],Table_PI[[#This Row],[Input 1]],Table_PI[[#This Row],[Input 2]],Table_PI[[#This Row],[Input 3]],Table_PI[[#This Row],[Input 4]],'Customer Information'!$AR$12,103,ROW())<>0,MeasureCalc(Table_PI[[#This Row],[Hide:\nFormula Name]],Table_SummaryPI[[#This Row],[Quantity]],Table_PI[[#This Row],[List 1]],Table_PI[[#This Row],[List 2]],Table_PI[[#This Row],[List 3]],Table_PI[[#This Row],[Size]],Table_PI[[#This Row],[Input 1]],Table_PI[[#This Row],[Input 2]],Table_PI[[#This Row],[Input 3]],Table_PI[[#This Row],[Input 4]],'Customer Information'!$AR$12,103,ROW())<>\"No Rebate\"),MeasureCalc(Table_PI[[#This Row],[Hide:\nFormula Name]],Table_SummaryPI[[#This Row],[Quantity]],Table_PI[[#This Row],[List 1]],Table_PI[[#This Row],[List 2]],Table_PI[[#This Row],[List 3]],Table_PI[[#This Row],[Size]],Table_PI[[#This Row],[Input 1]],Table_PI[[#This Row],[Input 2]],Table_PI[[#This Row],[Input 3]],Table_PI[[#This Row],[Input 4]],'Customer Information'!$AR$12,103,ROW()),\"\"),\"\")","v":""},{"$f":"IF(Table_PI[[#This Row],[Input 4]]<>\"\",Table_PI[[#This Row],[Input 4]],\"\")","v":""},{"$f":"IF(Table_PI[[#This Row],[Quantity]]=\"\",\"\",Table_PI[[#This Row],[Quantity]])","v":""},{"$f":"IF(Table_PI[[#This Row],[Notes]]=\"\",\"\",Table_PI[[#This Row],[Notes]])","v":""},{"$f":"IF(OR(Table_PI[[#This Row],[Hide:\nBaseline kWh]]=\"\",Table_PI[[#This Row],[Hide:\nBaseline kWh]]=0),\"\",Table_PI[[#This Row],[Hide:\nBaseline kWh]])","v":""},{"$f":"IF(OR(Table_PI[[#This Row],[Hide:\nBaseline kW]]=\"\",Table_PI[[#This Row],[Hide:\nBaseline kW]]=0),\"\",Table_PI[[#This Row],[Hide:\nBaseline kW]])","v":""},{"$f":"IF(OR(Table_PI[[#This Row],[Hide:\nProposed kWh]]=\"\",Table_PI[[#This Row],[Hide:\nProposed kWh]]=0),\"\",Table_PI[[#This Row],[Hide:\nProposed kWh]])","v":""},{"$f":"IF(OR(Table_PI[[#This Row],[Hide:\nProposed kW]]=\"\",Table_PI[[#This Row],[Hide:\nProposed kW]]=0),\"\",Table_PI[[#This Row],[Hide:\nProposed kW]])","v":""},{"$f":"IF(OR(Table_PI[[#This Row],[Rebate]]=\"\",Table_PI[[#This Row],[Rebate]]=0),\"\",Table_PI[[#This Row],[Rebate]])","v":""},{"$f":"IF(OR(Table_PI[[#This Row],[Hide:\nIncremental Cost]]=\"\",Table_PI[[#This Row],[Hide:\nIncremental Cost]]=0),\"\",Table_PI[[#This Row],[Hide:\nIncremental Cost]])","v":""},{"$f":"IFERROR(IF(Table_SummaryPI[[#This Row],[kWhSavings]]=\"\",\"\",ROUND(Table_SummaryPI[[#This Row],[kWhSavings]]/$AG$401*'Customer Information'!$BC$17,2)),0)","v":""},{"$f":"IF(OR(Table_PI[[#This Row],[Annual kWh]]=\"\",Table_PI[[#This Row],[Annual kWh]]=0),\"\",Table_PI[[#This Row],[Annual kWh]])","v":""},{"$f":"IF(OR(Table_PI[[#This Row],[Peak kW]]=\"\",Table_PI[[#This Row],[Peak kW]]=0),\"\",Table_PI[[#This Row],[Peak kW]])","v":""},{"$f":"IFERROR(IF(Table_SummaryPI[[#This Row],[kWhSavings]]=\"\",\"\",$AU$9*Table_SummaryPI[[#This Row],[kWhSavings]]),0)","v":""},{"$f":"IFERROR(IF(Table_SummaryPI[[#This Row],[kWhSavings]]=\"\",\"\",$AU$14*Table_SummaryPI[[#This Row],[kWhSavings]]),0)","v":""},{"$f":"IFERROR(IF(Table_SummaryPI[[#This Row],[kWhSavings]]=\"\",\"\",$AU$18*Table_SummaryPI[[#This Row],[kWhSavings]]),0)","v":""},{"$f":"IFERROR(IF(Table_SummaryPI[[#This Row],[kWhSavings]]=\"\",\"\",$AU$22*Table_SummaryPI[[#This Row],[kWhSavings]]),0)","v":""},{"$f":"IFERROR(IF(MeasureCalc(Table_PI[[#This Row],[Hide:\nFormula Name]],Table_SummaryPI[[#This Row],[Quantity]],Table_PI[[#This Row],[List 1]],Table_PI[[#This Row],[List 2]],Table_PI[[#This Row],[List 3]],Table_PI[[#This Row],[Size]],Table_PI[[#This Row],[Input 1]],Table_PI[[#This Row],[Input 2]],Table_PI[[#This Row],[Input 3]],Table_PI[[#This Row],[Input 4]],'Customer Information'!$AR$12,200,ROW())<>\"No Rebate\",MeasureCalc(Table_PI[[#This Row],[Hide:\nFormula Name]],Table_SummaryPI[[#This Row],[Quantity]],Table_PI[[#This Row],[List 1]],Table_PI[[#This Row],[List 2]],Table_PI[[#This Row],[List 3]],Table_PI[[#This Row],[Size]],Table_PI[[#This Row],[Input 1]],Table_PI[[#This Row],[Input 2]],Table_PI[[#This Row],[Input 3]],Table_PI[[#This Row],[Input 4]],'Customer Information'!$AR$12,200,ROW()),\"\"),\"\")","v":""},{"$f":"IFERROR(IF(MeasureCalc(Table_PI[[#This Row],[Hide:\nFormula Name]],Table_SummaryPI[[#This Row],[Quantity]],Table_PI[[#This Row],[List 1]],Table_PI[[#This Row],[List 2]],Table_PI[[#This Row],[List 3]],Table_PI[[#This Row],[Size]],Table_PI[[#This Row],[Input 1]],Table_PI[[#This Row],[Input 2]],Table_PI[[#This Row],[Input 3]],Table_PI[[#This Row],[Input 4]],'Customer Information'!$AR$12,201,ROW())<>\"No Rebate\",MeasureCalc(Table_PI[[#This Row],[Hide:\nFormula Name]],Table_SummaryPI[[#This Row],[Quantity]],Table_PI[[#This Row],[List 1]],Table_PI[[#This Row],[List 2]],Table_PI[[#This Row],[List 3]],Table_PI[[#This Row],[Size]],Table_PI[[#This Row],[Input 1]],Table_PI[[#This Row],[Input 2]],Table_PI[[#This Row],[Input 3]],Table_PI[[#This Row],[Input 4]],'Customer Information'!$AR$12,201,ROW()),\"\"),\"\")","v":""}]
[{"$f":"Table_PI[[#This Row],[Line No.]]","v":""},{"$f":"IF(Table_SummaryPI[[#This Row],[MeassureCategory]]<>\"\",CONCATENATE(Table_SummaryPI[[#This Row],[MeassureCategory]],  \" - \", Table_SummaryPI[[#This Row],[ProposedMeasureCategory]],  \" - \", TEXT(Table_SummaryPI[[#This Row],[Size]],\"#,##0.00\"),\" \",Table_SummaryPI[[#This Row],[SizeUnit]]),\"\")","v":""},{"$f":"SUBSTITUTE(Table_PI[[#This Row],[Measure]],\"     \",\"\",1)","v":""},{"$f":"IF(Table_PI[[#This Row],[List 1]]<>\"\",Table_PI[[#This Row],[List 1]],\"\")","v":""},{"$f":"IF(Table_PI[[#This Row],[List 2]]<>\"\",Table_PI[[#This Row],[List 2]],\"\")","v":""},{"$f":"IF(Table_PI[[#This Row],[List 3]]<>\"\",Table_PI[[#This Row],[List 3]],\"\")","v":""},{"$f":"IF(Table_PI[[#This Row],[Manufacturer]]=\"\",\"\",Table_PI[[#This Row],[Manufacturer]])","v":""},{"$f":"IF(Table_PI[[#This Row],[Model Number]]=\"\",\"\",Table_PI[[#This Row],[Model Number]])","v":""},{"$f":"IF(Table_PI[[#This Row],[Serial Number(s)]]=\"\",\"\",Table_PI[[#This Row],[Serial Number(s)]])","v":""},null,{"$f":"IF(Table_PI[[#This Row],[Size]]=\"\",\"\",Table_PI[[#This Row],[Size]])","v":""},null,{"$f":"IFERROR(IF(AND(MeasureCalc(Table_PI[[#This Row],[Hide:\nFormula Name]],Table_SummaryPI[[#This Row],[Quantity]],Table_PI[[#This Row],[List 1]],Table_PI[[#This Row],[List 2]],Table_PI[[#This Row],[List 3]],Table_PI[[#This Row],[Size]],Table_PI[[#This Row],[Input 1]],Table_PI[[#This Row],[Input 2]],Table_PI[[#This Row],[Input 3]],Table_PI[[#This Row],[Input 4]],'Customer Information'!$AR$12,100,ROW())<>0,MeasureCalc(Table_PI[[#This Row],[Hide:\nFormula Name]],Table_SummaryPI[[#This Row],[Quantity]],Table_PI[[#This Row],[List 1]],Table_PI[[#This Row],[List 2]],Table_PI[[#This Row],[List 3]],Table_PI[[#This Row],[Size]],Table_PI[[#This Row],[Input 1]],Table_PI[[#This Row],[Input 2]],Table_PI[[#This Row],[Input 3]],Table_PI[[#This Row],[Input 4]],'Customer Information'!$AR$12,100,ROW())<>\"No Rebate\"),MeasureCalc(Table_PI[[#This Row],[Hide:\nFormula Name]],Table_SummaryPI[[#This Row],[Quantity]],Table_PI[[#This Row],[List 1]],Table_PI[[#This Row],[List 2]],Table_PI[[#This Row],[List 3]],Table_PI[[#This Row],[Size]],Table_PI[[#This Row],[Input 1]],Table_PI[[#This Row],[Input 2]],Table_PI[[#This Row],[Input 3]],Table_PI[[#This Row],[Input 4]],'Customer Information'!$AR$12,100,ROW()),\"\"),\"\")","v":""},{"$f":"IF(Table_PI[[#This Row],[Input 1]]<>\"\",Table_PI[[#This Row],[Input 1]],\"\")","v":""},null,{"$f":"IFERROR(IF(AND(MeasureCalc(Table_PI[[#This Row],[Hide:\nFormula Name]],Table_SummaryPI[[#This Row],[Quantity]],Table_PI[[#This Row],[List 1]],Table_PI[[#This Row],[List 2]],Table_PI[[#This Row],[List 3]],Table_PI[[#This Row],[Size]],Table_PI[[#This Row],[Input 1]],Table_PI[[#This Row],[Input 2]],Table_PI[[#This Row],[Input 3]],Table_PI[[#This Row],[Input 4]],'Customer Information'!$AR$12,101,ROW())<>0,MeasureCalc(Table_PI[[#This Row],[Hide:\nFormula Name]],Table_SummaryPI[[#This Row],[Quantity]],Table_PI[[#This Row],[List 1]],Table_PI[[#This Row],[List 2]],Table_PI[[#This Row],[List 3]],Table_PI[[#This Row],[Size]],Table_PI[[#This Row],[Input 1]],Table_PI[[#This Row],[Input 2]],Table_PI[[#This Row],[Input 3]],Table_PI[[#This Row],[Input 4]],'Customer Information'!$AR$12,101,ROW())<>\"No Rebate\"),MeasureCalc(Table_PI[[#This Row],[Hide:\nFormula Name]],Table_SummaryPI[[#This Row],[Quantity]],Table_PI[[#This Row],[List 1]],Table_PI[[#This Row],[List 2]],Table_PI[[#This Row],[List 3]],Table_PI[[#This Row],[Size]],Table_PI[[#This Row],[Input 1]],Table_PI[[#This Row],[Input 2]],Table_PI[[#This Row],[Input 3]],Table_PI[[#This Row],[Input 4]],'Customer Information'!$AR$12,101,ROW()),\"\"),\"\")","v":""},{"$f":"IF(Table_PI[[#This Row],[Input 2]]<>\"\",Table_PI[[#This Row],[Input 2]],\"\")","v":""},null,{"$f":"IFERROR(IF(AND(MeasureCalc(Table_PI[[#This Row],[Hide:\nFormula Name]],Table_SummaryPI[[#This Row],[Quantity]],Table_PI[[#This Row],[List 1]],Table_PI[[#This Row],[List 2]],Table_PI[[#This Row],[List 3]],Table_PI[[#This Row],[Size]],Table_PI[[#This Row],[Input 1]],Table_PI[[#This Row],[Input 2]],Table_PI[[#This Row],[Input 3]],Table_PI[[#This Row],[Input 4]],'Customer Information'!$AR$12,102,ROW())<>0,MeasureCalc(Table_PI[[#This Row],[Hide:\nFormula Name]],Table_SummaryPI[[#This Row],[Quantity]],Table_PI[[#This Row],[List 1]],Table_PI[[#This Row],[List 2]],Table_PI[[#This Row],[List 3]],Table_PI[[#This Row],[Size]],Table_PI[[#This Row],[Input 1]],Table_PI[[#This Row],[Input 2]],Table_PI[[#This Row],[Input 3]],Table_PI[[#This Row],[Input 4]],'Customer Information'!$AR$12,102,ROW())<>\"No Rebate\"),MeasureCalc(Table_PI[[#This Row],[Hide:\nFormula Name]],Table_SummaryPI[[#This Row],[Quantity]],Table_PI[[#This Row],[List 1]],Table_PI[[#This Row],[List 2]],Table_PI[[#This Row],[List 3]],Table_PI[[#This Row],[Size]],Table_PI[[#This Row],[Input 1]],Table_PI[[#This Row],[Input 2]],Table_PI[[#This Row],[Input 3]],Table_PI[[#This Row],[Input 4]],'Customer Information'!$AR$12,102,ROW()),\"\"),\"\")","v":""},{"$f":"IF(Table_PI[[#This Row],[Input 3]]<>\"\",Table_PI[[#This Row],[Input 3]],\"\")","v":""},null,{"$f":"IFERROR(IF(AND(MeasureCalc(Table_PI[[#This Row],[Hide:\nFormula Name]],Table_SummaryPI[[#This Row],[Quantity]],Table_PI[[#This Row],[List 1]],Table_PI[[#This Row],[List 2]],Table_PI[[#This Row],[List 3]],Table_PI[[#This Row],[Size]],Table_PI[[#This Row],[Input 1]],Table_PI[[#This Row],[Input 2]],Table_PI[[#This Row],[Input 3]],Table_PI[[#This Row],[Input 4]],'Customer Information'!$AR$12,103,ROW())<>0,MeasureCalc(Table_PI[[#This Row],[Hide:\nFormula Name]],Table_SummaryPI[[#This Row],[Quantity]],Table_PI[[#This Row],[List 1]],Table_PI[[#This Row],[List 2]],Table_PI[[#This Row],[List 3]],Table_PI[[#This Row],[Size]],Table_PI[[#This Row],[Input 1]],Table_PI[[#This Row],[Input 2]],Table_PI[[#This Row],[Input 3]],Table_PI[[#This Row],[Input 4]],'Customer Information'!$AR$12,103,ROW())<>\"No Rebate\"),MeasureCalc(Table_PI[[#This Row],[Hide:\nFormula Name]],Table_SummaryPI[[#This Row],[Quantity]],Table_PI[[#This Row],[List 1]],Table_PI[[#This Row],[List 2]],Table_PI[[#This Row],[List 3]],Table_PI[[#This Row],[Size]],Table_PI[[#This Row],[Input 1]],Table_PI[[#This Row],[Input 2]],Table_PI[[#This Row],[Input 3]],Table_PI[[#This Row],[Input 4]],'Customer Information'!$AR$12,103,ROW()),\"\"),\"\")","v":""},{"$f":"IF(Table_PI[[#This Row],[Input 4]]<>\"\",Table_PI[[#This Row],[Input 4]],\"\")","v":""},{"$f":"IF(Table_PI[[#This Row],[Quantity]]=\"\",\"\",Table_PI[[#This Row],[Quantity]])","v":""},{"$f":"IF(Table_PI[[#This Row],[Notes]]=\"\",\"\",Table_PI[[#This Row],[Notes]])","v":""},{"$f":"IF(OR(Table_PI[[#This Row],[Hide:\nBaseline kWh]]=\"\",Table_PI[[#This Row],[Hide:\nBaseline kWh]]=0),\"\",Table_PI[[#This Row],[Hide:\nBaseline kWh]])","v":""},{"$f":"IF(OR(Table_PI[[#This Row],[Hide:\nBaseline kW]]=\"\",Table_PI[[#This Row],[Hide:\nBaseline kW]]=0),\"\",Table_PI[[#This Row],[Hide:\nBaseline kW]])","v":""},{"$f":"IF(OR(Table_PI[[#This Row],[Hide:\nProposed kWh]]=\"\",Table_PI[[#This Row],[Hide:\nProposed kWh]]=0),\"\",Table_PI[[#This Row],[Hide:\nProposed kWh]])","v":""},{"$f":"IF(OR(Table_PI[[#This Row],[Hide:\nProposed kW]]=\"\",Table_PI[[#This Row],[Hide:\nProposed kW]]=0),\"\",Table_PI[[#This Row],[Hide:\nProposed kW]])","v":""},{"$f":"IF(OR(Table_PI[[#This Row],[Rebate]]=\"\",Table_PI[[#This Row],[Rebate]]=0),\"\",Table_PI[[#This Row],[Rebate]])","v":""},{"$f":"IF(OR(Table_PI[[#This Row],[Hide:\nIncremental Cost]]=\"\",Table_PI[[#This Row],[Hide:\nIncremental Cost]]=0),\"\",Table_PI[[#This Row],[Hide:\nIncremental Cost]])","v":""},{"$f":"IFERROR(IF(Table_SummaryPI[[#This Row],[kWhSavings]]=\"\",\"\",ROUND(Table_SummaryPI[[#This Row],[kWhSavings]]/$AG$401*'Customer Information'!$BC$17,2)),0)","v":""},{"$f":"IF(OR(Table_PI[[#This Row],[Annual kWh]]=\"\",Table_PI[[#This Row],[Annual kWh]]=0),\"\",Table_PI[[#This Row],[Annual kWh]])","v":""},{"$f":"IF(OR(Table_PI[[#This Row],[Peak kW]]=\"\",Table_PI[[#This Row],[Peak kW]]=0),\"\",Table_PI[[#This Row],[Peak kW]])","v":""},{"$f":"IFERROR(IF(Table_SummaryPI[[#This Row],[kWhSavings]]=\"\",\"\",$AU$9*Table_SummaryPI[[#This Row],[kWhSavings]]),0)","v":""},{"$f":"IFERROR(IF(Table_SummaryPI[[#This Row],[kWhSavings]]=\"\",\"\",$AU$14*Table_SummaryPI[[#This Row],[kWhSavings]]),0)","v":""},{"$f":"IFERROR(IF(Table_SummaryPI[[#This Row],[kWhSavings]]=\"\",\"\",$AU$18*Table_SummaryPI[[#This Row],[kWhSavings]]),0)","v":""},{"$f":"IFERROR(IF(Table_SummaryPI[[#This Row],[kWhSavings]]=\"\",\"\",$AU$22*Table_SummaryPI[[#This Row],[kWhSavings]]),0)","v":""},{"$f":"IFERROR(IF(MeasureCalc(Table_PI[[#This Row],[Hide:\nFormula Name]],Table_SummaryPI[[#This Row],[Quantity]],Table_PI[[#This Row],[List 1]],Table_PI[[#This Row],[List 2]],Table_PI[[#This Row],[List 3]],Table_PI[[#This Row],[Size]],Table_PI[[#This Row],[Input 1]],Table_PI[[#This Row],[Input 2]],Table_PI[[#This Row],[Input 3]],Table_PI[[#This Row],[Input 4]],'Customer Information'!$AR$12,200,ROW())<>\"No Rebate\",MeasureCalc(Table_PI[[#This Row],[Hide:\nFormula Name]],Table_SummaryPI[[#This Row],[Quantity]],Table_PI[[#This Row],[List 1]],Table_PI[[#This Row],[List 2]],Table_PI[[#This Row],[List 3]],Table_PI[[#This Row],[Size]],Table_PI[[#This Row],[Input 1]],Table_PI[[#This Row],[Input 2]],Table_PI[[#This Row],[Input 3]],Table_PI[[#This Row],[Input 4]],'Customer Information'!$AR$12,200,ROW()),\"\"),\"\")","v":""},{"$f":"IFERROR(IF(MeasureCalc(Table_PI[[#This Row],[Hide:\nFormula Name]],Table_SummaryPI[[#This Row],[Quantity]],Table_PI[[#This Row],[List 1]],Table_PI[[#This Row],[List 2]],Table_PI[[#This Row],[List 3]],Table_PI[[#This Row],[Size]],Table_PI[[#This Row],[Input 1]],Table_PI[[#This Row],[Input 2]],Table_PI[[#This Row],[Input 3]],Table_PI[[#This Row],[Input 4]],'Customer Information'!$AR$12,201,ROW())<>\"No Rebate\",MeasureCalc(Table_PI[[#This Row],[Hide:\nFormula Name]],Table_SummaryPI[[#This Row],[Quantity]],Table_PI[[#This Row],[List 1]],Table_PI[[#This Row],[List 2]],Table_PI[[#This Row],[List 3]],Table_PI[[#This Row],[Size]],Table_PI[[#This Row],[Input 1]],Table_PI[[#This Row],[Input 2]],Table_PI[[#This Row],[Input 3]],Table_PI[[#This Row],[Input 4]],'Customer Information'!$AR$12,201,ROW()),\"\"),\"\")","v":""}]
[{"$f":"Table_PI[[#This Row],[Line No.]]","v":""},{"$f":"IF(Table_SummaryPI[[#This Row],[MeassureCategory]]<>\"\",CONCATENATE(Table_SummaryPI[[#This Row],[MeassureCategory]],  \" - \", Table_SummaryPI[[#This Row],[ProposedMeasureCategory]],  \" - \", TEXT(Table_SummaryPI[[#This Row],[Size]],\"#,##0.00\"),\" \",Table_SummaryPI[[#This Row],[SizeUnit]]),\"\")","v":""},{"$f":"SUBSTITUTE(Table_PI[[#This Row],[Measure]],\"     \",\"\",1)","v":""},{"$f":"IF(Table_PI[[#This Row],[List 1]]<>\"\",Table_PI[[#This Row],[List 1]],\"\")","v":""},{"$f":"IF(Table_PI[[#This Row],[List 2]]<>\"\",Table_PI[[#This Row],[List 2]],\"\")","v":""},{"$f":"IF(Table_PI[[#This Row],[List 3]]<>\"\",Table_PI[[#This Row],[List 3]],\"\")","v":""},{"$f":"IF(Table_PI[[#This Row],[Manufacturer]]=\"\",\"\",Table_PI[[#This Row],[Manufacturer]])","v":""},{"$f":"IF(Table_PI[[#This Row],[Model Number]]=\"\",\"\",Table_PI[[#This Row],[Model Number]])","v":""},{"$f":"IF(Table_PI[[#This Row],[Serial Number(s)]]=\"\",\"\",Table_PI[[#This Row],[Serial Number(s)]])","v":""},null,{"$f":"IF(Table_PI[[#This Row],[Size]]=\"\",\"\",Table_PI[[#This Row],[Size]])","v":""},null,{"$f":"IFERROR(IF(AND(MeasureCalc(Table_PI[[#This Row],[Hide:\nFormula Name]],Table_SummaryPI[[#This Row],[Quantity]],Table_PI[[#This Row],[List 1]],Table_PI[[#This Row],[List 2]],Table_PI[[#This Row],[List 3]],Table_PI[[#This Row],[Size]],Table_PI[[#This Row],[Input 1]],Table_PI[[#This Row],[Input 2]],Table_PI[[#This Row],[Input 3]],Table_PI[[#This Row],[Input 4]],'Customer Information'!$AR$12,100,ROW())<>0,MeasureCalc(Table_PI[[#This Row],[Hide:\nFormula Name]],Table_SummaryPI[[#This Row],[Quantity]],Table_PI[[#This Row],[List 1]],Table_PI[[#This Row],[List 2]],Table_PI[[#This Row],[List 3]],Table_PI[[#This Row],[Size]],Table_PI[[#This Row],[Input 1]],Table_PI[[#This Row],[Input 2]],Table_PI[[#This Row],[Input 3]],Table_PI[[#This Row],[Input 4]],'Customer Information'!$AR$12,100,ROW())<>\"No Rebate\"),MeasureCalc(Table_PI[[#This Row],[Hide:\nFormula Name]],Table_SummaryPI[[#This Row],[Quantity]],Table_PI[[#This Row],[List 1]],Table_PI[[#This Row],[List 2]],Table_PI[[#This Row],[List 3]],Table_PI[[#This Row],[Size]],Table_PI[[#This Row],[Input 1]],Table_PI[[#This Row],[Input 2]],Table_PI[[#This Row],[Input 3]],Table_PI[[#This Row],[Input 4]],'Customer Information'!$AR$12,100,ROW()),\"\"),\"\")","v":""},{"$f":"IF(Table_PI[[#This Row],[Input 1]]<>\"\",Table_PI[[#This Row],[Input 1]],\"\")","v":""},null,{"$f":"IFERROR(IF(AND(MeasureCalc(Table_PI[[#This Row],[Hide:\nFormula Name]],Table_SummaryPI[[#This Row],[Quantity]],Table_PI[[#This Row],[List 1]],Table_PI[[#This Row],[List 2]],Table_PI[[#This Row],[List 3]],Table_PI[[#This Row],[Size]],Table_PI[[#This Row],[Input 1]],Table_PI[[#This Row],[Input 2]],Table_PI[[#This Row],[Input 3]],Table_PI[[#This Row],[Input 4]],'Customer Information'!$AR$12,101,ROW())<>0,MeasureCalc(Table_PI[[#This Row],[Hide:\nFormula Name]],Table_SummaryPI[[#This Row],[Quantity]],Table_PI[[#This Row],[List 1]],Table_PI[[#This Row],[List 2]],Table_PI[[#This Row],[List 3]],Table_PI[[#This Row],[Size]],Table_PI[[#This Row],[Input 1]],Table_PI[[#This Row],[Input 2]],Table_PI[[#This Row],[Input 3]],Table_PI[[#This Row],[Input 4]],'Customer Information'!$AR$12,101,ROW())<>\"No Rebate\"),MeasureCalc(Table_PI[[#This Row],[Hide:\nFormula Name]],Table_SummaryPI[[#This Row],[Quantity]],Table_PI[[#This Row],[List 1]],Table_PI[[#This Row],[List 2]],Table_PI[[#This Row],[List 3]],Table_PI[[#This Row],[Size]],Table_PI[[#This Row],[Input 1]],Table_PI[[#This Row],[Input 2]],Table_PI[[#This Row],[Input 3]],Table_PI[[#This Row],[Input 4]],'Customer Information'!$AR$12,101,ROW()),\"\"),\"\")","v":""},{"$f":"IF(Table_PI[[#This Row],[Input 2]]<>\"\",Table_PI[[#This Row],[Input 2]],\"\")","v":""},null,{"$f":"IFERROR(IF(AND(MeasureCalc(Table_PI[[#This Row],[Hide:\nFormula Name]],Table_SummaryPI[[#This Row],[Quantity]],Table_PI[[#This Row],[List 1]],Table_PI[[#This Row],[List 2]],Table_PI[[#This Row],[List 3]],Table_PI[[#This Row],[Size]],Table_PI[[#This Row],[Input 1]],Table_PI[[#This Row],[Input 2]],Table_PI[[#This Row],[Input 3]],Table_PI[[#This Row],[Input 4]],'Customer Information'!$AR$12,102,ROW())<>0,MeasureCalc(Table_PI[[#This Row],[Hide:\nFormula Name]],Table_SummaryPI[[#This Row],[Quantity]],Table_PI[[#This Row],[List 1]],Table_PI[[#This Row],[List 2]],Table_PI[[#This Row],[List 3]],Table_PI[[#This Row],[Size]],Table_PI[[#This Row],[Input 1]],Table_PI[[#This Row],[Input 2]],Table_PI[[#This Row],[Input 3]],Table_PI[[#This Row],[Input 4]],'Customer Information'!$AR$12,102,ROW())<>\"No Rebate\"),MeasureCalc(Table_PI[[#This Row],[Hide:\nFormula Name]],Table_SummaryPI[[#This Row],[Quantity]],Table_PI[[#This Row],[List 1]],Table_PI[[#This Row],[List 2]],Table_PI[[#This Row],[List 3]],Table_PI[[#This Row],[Size]],Table_PI[[#This Row],[Input 1]],Table_PI[[#This Row],[Input 2]],Table_PI[[#This Row],[Input 3]],Table_PI[[#This Row],[Input 4]],'Customer Information'!$AR$12,102,ROW()),\"\"),\"\")","v":""},{"$f":"IF(Table_PI[[#This Row],[Input 3]]<>\"\",Table_PI[[#This Row],[Input 3]],\"\")","v":""},null,{"$f":"IFERROR(IF(AND(MeasureCalc(Table_PI[[#This Row],[Hide:\nFormula Name]],Table_SummaryPI[[#This Row],[Quantity]],Table_PI[[#This Row],[List 1]],Table_PI[[#This Row],[List 2]],Table_PI[[#This Row],[List 3]],Table_PI[[#This Row],[Size]],Table_PI[[#This Row],[Input 1]],Table_PI[[#This Row],[Input 2]],Table_PI[[#This Row],[Input 3]],Table_PI[[#This Row],[Input 4]],'Customer Information'!$AR$12,103,ROW())<>0,MeasureCalc(Table_PI[[#This Row],[Hide:\nFormula Name]],Table_SummaryPI[[#This Row],[Quantity]],Table_PI[[#This Row],[List 1]],Table_PI[[#This Row],[List 2]],Table_PI[[#This Row],[List 3]],Table_PI[[#This Row],[Size]],Table_PI[[#This Row],[Input 1]],Table_PI[[#This Row],[Input 2]],Table_PI[[#This Row],[Input 3]],Table_PI[[#This Row],[Input 4]],'Customer Information'!$AR$12,103,ROW())<>\"No Rebate\"),MeasureCalc(Table_PI[[#This Row],[Hide:\nFormula Name]],Table_SummaryPI[[#This Row],[Quantity]],Table_PI[[#This Row],[List 1]],Table_PI[[#This Row],[List 2]],Table_PI[[#This Row],[List 3]],Table_PI[[#This Row],[Size]],Table_PI[[#This Row],[Input 1]],Table_PI[[#This Row],[Input 2]],Table_PI[[#This Row],[Input 3]],Table_PI[[#This Row],[Input 4]],'Customer Information'!$AR$12,103,ROW()),\"\"),\"\")","v":""},{"$f":"IF(Table_PI[[#This Row],[Input 4]]<>\"\",Table_PI[[#This Row],[Input 4]],\"\")","v":""},{"$f":"IF(Table_PI[[#This Row],[Quantity]]=\"\",\"\",Table_PI[[#This Row],[Quantity]])","v":""},{"$f":"IF(Table_PI[[#This Row],[Notes]]=\"\",\"\",Table_PI[[#This Row],[Notes]])","v":""},{"$f":"IF(OR(Table_PI[[#This Row],[Hide:\nBaseline kWh]]=\"\",Table_PI[[#This Row],[Hide:\nBaseline kWh]]=0),\"\",Table_PI[[#This Row],[Hide:\nBaseline kWh]])","v":""},{"$f":"IF(OR(Table_PI[[#This Row],[Hide:\nBaseline kW]]=\"\",Table_PI[[#This Row],[Hide:\nBaseline kW]]=0),\"\",Table_PI[[#This Row],[Hide:\nBaseline kW]])","v":""},{"$f":"IF(OR(Table_PI[[#This Row],[Hide:\nProposed kWh]]=\"\",Table_PI[[#This Row],[Hide:\nProposed kWh]]=0),\"\",Table_PI[[#This Row],[Hide:\nProposed kWh]])","v":""},{"$f":"IF(OR(Table_PI[[#This Row],[Hide:\nProposed kW]]=\"\",Table_PI[[#This Row],[Hide:\nProposed kW]]=0),\"\",Table_PI[[#This Row],[Hide:\nProposed kW]])","v":""},{"$f":"IF(OR(Table_PI[[#This Row],[Rebate]]=\"\",Table_PI[[#This Row],[Rebate]]=0),\"\",Table_PI[[#This Row],[Rebate]])","v":""},{"$f":"IF(OR(Table_PI[[#This Row],[Hide:\nIncremental Cost]]=\"\",Table_PI[[#This Row],[Hide:\nIncremental Cost]]=0),\"\",Table_PI[[#This Row],[Hide:\nIncremental Cost]])","v":""},{"$f":"IFERROR(IF(Table_SummaryPI[[#This Row],[kWhSavings]]=\"\",\"\",ROUND(Table_SummaryPI[[#This Row],[kWhSavings]]/$AG$401*'Customer Information'!$BC$17,2)),0)","v":""},{"$f":"IF(OR(Table_PI[[#This Row],[Annual kWh]]=\"\",Table_PI[[#This Row],[Annual kWh]]=0),\"\",Table_PI[[#This Row],[Annual kWh]])","v":""},{"$f":"IF(OR(Table_PI[[#This Row],[Peak kW]]=\"\",Table_PI[[#This Row],[Peak kW]]=0),\"\",Table_PI[[#This Row],[Peak kW]])","v":""},{"$f":"IFERROR(IF(Table_SummaryPI[[#This Row],[kWhSavings]]=\"\",\"\",$AU$9*Table_SummaryPI[[#This Row],[kWhSavings]]),0)","v":""},{"$f":"IFERROR(IF(Table_SummaryPI[[#This Row],[kWhSavings]]=\"\",\"\",$AU$14*Table_SummaryPI[[#This Row],[kWhSavings]]),0)","v":""},{"$f":"IFERROR(IF(Table_SummaryPI[[#This Row],[kWhSavings]]=\"\",\"\",$AU$18*Table_SummaryPI[[#This Row],[kWhSavings]]),0)","v":""},{"$f":"IFERROR(IF(Table_SummaryPI[[#This Row],[kWhSavings]]=\"\",\"\",$AU$22*Table_SummaryPI[[#This Row],[kWhSavings]]),0)","v":""},{"$f":"IFERROR(IF(MeasureCalc(Table_PI[[#This Row],[Hide:\nFormula Name]],Table_SummaryPI[[#This Row],[Quantity]],Table_PI[[#This Row],[List 1]],Table_PI[[#This Row],[List 2]],Table_PI[[#This Row],[List 3]],Table_PI[[#This Row],[Size]],Table_PI[[#This Row],[Input 1]],Table_PI[[#This Row],[Input 2]],Table_PI[[#This Row],[Input 3]],Table_PI[[#This Row],[Input 4]],'Customer Information'!$AR$12,200,ROW())<>\"No Rebate\",MeasureCalc(Table_PI[[#This Row],[Hide:\nFormula Name]],Table_SummaryPI[[#This Row],[Quantity]],Table_PI[[#This Row],[List 1]],Table_PI[[#This Row],[List 2]],Table_PI[[#This Row],[List 3]],Table_PI[[#This Row],[Size]],Table_PI[[#This Row],[Input 1]],Table_PI[[#This Row],[Input 2]],Table_PI[[#This Row],[Input 3]],Table_PI[[#This Row],[Input 4]],'Customer Information'!$AR$12,200,ROW()),\"\"),\"\")","v":""},{"$f":"IFERROR(IF(MeasureCalc(Table_PI[[#This Row],[Hide:\nFormula Name]],Table_SummaryPI[[#This Row],[Quantity]],Table_PI[[#This Row],[List 1]],Table_PI[[#This Row],[List 2]],Table_PI[[#This Row],[List 3]],Table_PI[[#This Row],[Size]],Table_PI[[#This Row],[Input 1]],Table_PI[[#This Row],[Input 2]],Table_PI[[#This Row],[Input 3]],Table_PI[[#This Row],[Input 4]],'Customer Information'!$AR$12,201,ROW())<>\"No Rebate\",MeasureCalc(Table_PI[[#This Row],[Hide:\nFormula Name]],Table_SummaryPI[[#This Row],[Quantity]],Table_PI[[#This Row],[List 1]],Table_PI[[#This Row],[List 2]],Table_PI[[#This Row],[List 3]],Table_PI[[#This Row],[Size]],Table_PI[[#This Row],[Input 1]],Table_PI[[#This Row],[Input 2]],Table_PI[[#This Row],[Input 3]],Table_PI[[#This Row],[Input 4]],'Customer Information'!$AR$12,201,ROW()),\"\"),\"\")","v":""}]
[{"$f":"Table_PI[[#This Row],[Line No.]]","v":""},{"$f":"IF(Table_SummaryPI[[#This Row],[MeassureCategory]]<>\"\",CONCATENATE(Table_SummaryPI[[#This Row],[MeassureCategory]],  \" - \", Table_SummaryPI[[#This Row],[ProposedMeasureCategory]],  \" - \", TEXT(Table_SummaryPI[[#This Row],[Size]],\"#,##0.00\"),\" \",Table_SummaryPI[[#This Row],[SizeUnit]]),\"\")","v":""},{"$f":"SUBSTITUTE(Table_PI[[#This Row],[Measure]],\"     \",\"\",1)","v":""},{"$f":"IF(Table_PI[[#This Row],[List 1]]<>\"\",Table_PI[[#This Row],[List 1]],\"\")","v":""},{"$f":"IF(Table_PI[[#This Row],[List 2]]<>\"\",Table_PI[[#This Row],[List 2]],\"\")","v":""},{"$f":"IF(Table_PI[[#This Row],[List 3]]<>\"\",Table_PI[[#This Row],[List 3]],\"\")","v":""},{"$f":"IF(Table_PI[[#This Row],[Manufacturer]]=\"\",\"\",Table_PI[[#This Row],[Manufacturer]])","v":""},{"$f":"IF(Table_PI[[#This Row],[Model Number]]=\"\",\"\",Table_PI[[#This Row],[Model Number]])","v":""},{"$f":"IF(Table_PI[[#This Row],[Serial Number(s)]]=\"\",\"\",Table_PI[[#This Row],[Serial Number(s)]])","v":""},null,{"$f":"IF(Table_PI[[#This Row],[Size]]=\"\",\"\",Table_PI[[#This Row],[Size]])","v":""},null,{"$f":"IFERROR(IF(AND(MeasureCalc(Table_PI[[#This Row],[Hide:\nFormula Name]],Table_SummaryPI[[#This Row],[Quantity]],Table_PI[[#This Row],[List 1]],Table_PI[[#This Row],[List 2]],Table_PI[[#This Row],[List 3]],Table_PI[[#This Row],[Size]],Table_PI[[#This Row],[Input 1]],Table_PI[[#This Row],[Input 2]],Table_PI[[#This Row],[Input 3]],Table_PI[[#This Row],[Input 4]],'Customer Information'!$AR$12,100,ROW())<>0,MeasureCalc(Table_PI[[#This Row],[Hide:\nFormula Name]],Table_SummaryPI[[#This Row],[Quantity]],Table_PI[[#This Row],[List 1]],Table_PI[[#This Row],[List 2]],Table_PI[[#This Row],[List 3]],Table_PI[[#This Row],[Size]],Table_PI[[#This Row],[Input 1]],Table_PI[[#This Row],[Input 2]],Table_PI[[#This Row],[Input 3]],Table_PI[[#This Row],[Input 4]],'Customer Information'!$AR$12,100,ROW())<>\"No Rebate\"),MeasureCalc(Table_PI[[#This Row],[Hide:\nFormula Name]],Table_SummaryPI[[#This Row],[Quantity]],Table_PI[[#This Row],[List 1]],Table_PI[[#This Row],[List 2]],Table_PI[[#This Row],[List 3]],Table_PI[[#This Row],[Size]],Table_PI[[#This Row],[Input 1]],Table_PI[[#This Row],[Input 2]],Table_PI[[#This Row],[Input 3]],Table_PI[[#This Row],[Input 4]],'Customer Information'!$AR$12,100,ROW()),\"\"),\"\")","v":""},{"$f":"IF(Table_PI[[#This Row],[Input 1]]<>\"\",Table_PI[[#This Row],[Input 1]],\"\")","v":""},null,{"$f":"IFERROR(IF(AND(MeasureCalc(Table_PI[[#This Row],[Hide:\nFormula Name]],Table_SummaryPI[[#This Row],[Quantity]],Table_PI[[#This Row],[List 1]],Table_PI[[#This Row],[List 2]],Table_PI[[#This Row],[List 3]],Table_PI[[#This Row],[Size]],Table_PI[[#This Row],[Input 1]],Table_PI[[#This Row],[Input 2]],Table_PI[[#This Row],[Input 3]],Table_PI[[#This Row],[Input 4]],'Customer Information'!$AR$12,101,ROW())<>0,MeasureCalc(Table_PI[[#This Row],[Hide:\nFormula Name]],Table_SummaryPI[[#This Row],[Quantity]],Table_PI[[#This Row],[List 1]],Table_PI[[#This Row],[List 2]],Table_PI[[#This Row],[List 3]],Table_PI[[#This Row],[Size]],Table_PI[[#This Row],[Input 1]],Table_PI[[#This Row],[Input 2]],Table_PI[[#This Row],[Input 3]],Table_PI[[#This Row],[Input 4]],'Customer Information'!$AR$12,101,ROW())<>\"No Rebate\"),MeasureCalc(Table_PI[[#This Row],[Hide:\nFormula Name]],Table_SummaryPI[[#This Row],[Quantity]],Table_PI[[#This Row],[List 1]],Table_PI[[#This Row],[List 2]],Table_PI[[#This Row],[List 3]],Table_PI[[#This Row],[Size]],Table_PI[[#This Row],[Input 1]],Table_PI[[#This Row],[Input 2]],Table_PI[[#This Row],[Input 3]],Table_PI[[#This Row],[Input 4]],'Customer Information'!$AR$12,101,ROW()),\"\"),\"\")","v":""},{"$f":"IF(Table_PI[[#This Row],[Input 2]]<>\"\",Table_PI[[#This Row],[Input 2]],\"\")","v":""},null,{"$f":"IFERROR(IF(AND(MeasureCalc(Table_PI[[#This Row],[Hide:\nFormula Name]],Table_SummaryPI[[#This Row],[Quantity]],Table_PI[[#This Row],[List 1]],Table_PI[[#This Row],[List 2]],Table_PI[[#This Row],[List 3]],Table_PI[[#This Row],[Size]],Table_PI[[#This Row],[Input 1]],Table_PI[[#This Row],[Input 2]],Table_PI[[#This Row],[Input 3]],Table_PI[[#This Row],[Input 4]],'Customer Information'!$AR$12,102,ROW())<>0,MeasureCalc(Table_PI[[#This Row],[Hide:\nFormula Name]],Table_SummaryPI[[#This Row],[Quantity]],Table_PI[[#This Row],[List 1]],Table_PI[[#This Row],[List 2]],Table_PI[[#This Row],[List 3]],Table_PI[[#This Row],[Size]],Table_PI[[#This Row],[Input 1]],Table_PI[[#This Row],[Input 2]],Table_PI[[#This Row],[Input 3]],Table_PI[[#This Row],[Input 4]],'Customer Information'!$AR$12,102,ROW())<>\"No Rebate\"),MeasureCalc(Table_PI[[#This Row],[Hide:\nFormula Name]],Table_SummaryPI[[#This Row],[Quantity]],Table_PI[[#This Row],[List 1]],Table_PI[[#This Row],[List 2]],Table_PI[[#This Row],[List 3]],Table_PI[[#This Row],[Size]],Table_PI[[#This Row],[Input 1]],Table_PI[[#This Row],[Input 2]],Table_PI[[#This Row],[Input 3]],Table_PI[[#This Row],[Input 4]],'Customer Information'!$AR$12,102,ROW()),\"\"),\"\")","v":""},{"$f":"IF(Table_PI[[#This Row],[Input 3]]<>\"\",Table_PI[[#This Row],[Input 3]],\"\")","v":""},null,{"$f":"IFERROR(IF(AND(MeasureCalc(Table_PI[[#This Row],[Hide:\nFormula Name]],Table_SummaryPI[[#This Row],[Quantity]],Table_PI[[#This Row],[List 1]],Table_PI[[#This Row],[List 2]],Table_PI[[#This Row],[List 3]],Table_PI[[#This Row],[Size]],Table_PI[[#This Row],[Input 1]],Table_PI[[#This Row],[Input 2]],Table_PI[[#This Row],[Input 3]],Table_PI[[#This Row],[Input 4]],'Customer Information'!$AR$12,103,ROW())<>0,MeasureCalc(Table_PI[[#This Row],[Hide:\nFormula Name]],Table_SummaryPI[[#This Row],[Quantity]],Table_PI[[#This Row],[List 1]],Table_PI[[#This Row],[List 2]],Table_PI[[#This Row],[List 3]],Table_PI[[#This Row],[Size]],Table_PI[[#This Row],[Input 1]],Table_PI[[#This Row],[Input 2]],Table_PI[[#This Row],[Input 3]],Table_PI[[#This Row],[Input 4]],'Customer Information'!$AR$12,103,ROW())<>\"No Rebate\"),MeasureCalc(Table_PI[[#This Row],[Hide:\nFormula Name]],Table_SummaryPI[[#This Row],[Quantity]],Table_PI[[#This Row],[List 1]],Table_PI[[#This Row],[List 2]],Table_PI[[#This Row],[List 3]],Table_PI[[#This Row],[Size]],Table_PI[[#This Row],[Input 1]],Table_PI[[#This Row],[Input 2]],Table_PI[[#This Row],[Input 3]],Table_PI[[#This Row],[Input 4]],'Customer Information'!$AR$12,103,ROW()),\"\"),\"\")","v":""},{"$f":"IF(Table_PI[[#This Row],[Input 4]]<>\"\",Table_PI[[#This Row],[Input 4]],\"\")","v":""},{"$f":"IF(Table_PI[[#This Row],[Quantity]]=\"\",\"\",Table_PI[[#This Row],[Quantity]])","v":""},{"$f":"IF(Table_PI[[#This Row],[Notes]]=\"\",\"\",Table_PI[[#This Row],[Notes]])","v":""},{"$f":"IF(OR(Table_PI[[#This Row],[Hide:\nBaseline kWh]]=\"\",Table_PI[[#This Row],[Hide:\nBaseline kWh]]=0),\"\",Table_PI[[#This Row],[Hide:\nBaseline kWh]])","v":""},{"$f":"IF(OR(Table_PI[[#This Row],[Hide:\nBaseline kW]]=\"\",Table_PI[[#This Row],[Hide:\nBaseline kW]]=0),\"\",Table_PI[[#This Row],[Hide:\nBaseline kW]])","v":""},{"$f":"IF(OR(Table_PI[[#This Row],[Hide:\nProposed kWh]]=\"\",Table_PI[[#This Row],[Hide:\nProposed kWh]]=0),\"\",Table_PI[[#This Row],[Hide:\nProposed kWh]])","v":""},{"$f":"IF(OR(Table_PI[[#This Row],[Hide:\nProposed kW]]=\"\",Table_PI[[#This Row],[Hide:\nProposed kW]]=0),\"\",Table_PI[[#This Row],[Hide:\nProposed kW]])","v":""},{"$f":"IF(OR(Table_PI[[#This Row],[Rebate]]=\"\",Table_PI[[#This Row],[Rebate]]=0),\"\",Table_PI[[#This Row],[Rebate]])","v":""},{"$f":"IF(OR(Table_PI[[#This Row],[Hide:\nIncremental Cost]]=\"\",Table_PI[[#This Row],[Hide:\nIncremental Cost]]=0),\"\",Table_PI[[#This Row],[Hide:\nIncremental Cost]])","v":""},{"$f":"IFERROR(IF(Table_SummaryPI[[#This Row],[kWhSavings]]=\"\",\"\",ROUND(Table_SummaryPI[[#This Row],[kWhSavings]]/$AG$401*'Customer Information'!$BC$17,2)),0)","v":""},{"$f":"IF(OR(Table_PI[[#This Row],[Annual kWh]]=\"\",Table_PI[[#This Row],[Annual kWh]]=0),\"\",Table_PI[[#This Row],[Annual kWh]])","v":""},{"$f":"IF(OR(Table_PI[[#This Row],[Peak kW]]=\"\",Table_PI[[#This Row],[Peak kW]]=0),\"\",Table_PI[[#This Row],[Peak kW]])","v":""},{"$f":"IFERROR(IF(Table_SummaryPI[[#This Row],[kWhSavings]]=\"\",\"\",$AU$9*Table_SummaryPI[[#This Row],[kWhSavings]]),0)","v":""},{"$f":"IFERROR(IF(Table_SummaryPI[[#This Row],[kWhSavings]]=\"\",\"\",$AU$14*Table_SummaryPI[[#This Row],[kWhSavings]]),0)","v":""},{"$f":"IFERROR(IF(Table_SummaryPI[[#This Row],[kWhSavings]]=\"\",\"\",$AU$18*Table_SummaryPI[[#This Row],[kWhSavings]]),0)","v":""},{"$f":"IFERROR(IF(Table_SummaryPI[[#This Row],[kWhSavings]]=\"\",\"\",$AU$22*Table_SummaryPI[[#This Row],[kWhSavings]]),0)","v":""},{"$f":"IFERROR(IF(MeasureCalc(Table_PI[[#This Row],[Hide:\nFormula Name]],Table_SummaryPI[[#This Row],[Quantity]],Table_PI[[#This Row],[List 1]],Table_PI[[#This Row],[List 2]],Table_PI[[#This Row],[List 3]],Table_PI[[#This Row],[Size]],Table_PI[[#This Row],[Input 1]],Table_PI[[#This Row],[Input 2]],Table_PI[[#This Row],[Input 3]],Table_PI[[#This Row],[Input 4]],'Customer Information'!$AR$12,200,ROW())<>\"No Rebate\",MeasureCalc(Table_PI[[#This Row],[Hide:\nFormula Name]],Table_SummaryPI[[#This Row],[Quantity]],Table_PI[[#This Row],[List 1]],Table_PI[[#This Row],[List 2]],Table_PI[[#This Row],[List 3]],Table_PI[[#This Row],[Size]],Table_PI[[#This Row],[Input 1]],Table_PI[[#This Row],[Input 2]],Table_PI[[#This Row],[Input 3]],Table_PI[[#This Row],[Input 4]],'Customer Information'!$AR$12,200,ROW()),\"\"),\"\")","v":""},{"$f":"IFERROR(IF(MeasureCalc(Table_PI[[#This Row],[Hide:\nFormula Name]],Table_SummaryPI[[#This Row],[Quantity]],Table_PI[[#This Row],[List 1]],Table_PI[[#This Row],[List 2]],Table_PI[[#This Row],[List 3]],Table_PI[[#This Row],[Size]],Table_PI[[#This Row],[Input 1]],Table_PI[[#This Row],[Input 2]],Table_PI[[#This Row],[Input 3]],Table_PI[[#This Row],[Input 4]],'Customer Information'!$AR$12,201,ROW())<>\"No Rebate\",MeasureCalc(Table_PI[[#This Row],[Hide:\nFormula Name]],Table_SummaryPI[[#This Row],[Quantity]],Table_PI[[#This Row],[List 1]],Table_PI[[#This Row],[List 2]],Table_PI[[#This Row],[List 3]],Table_PI[[#This Row],[Size]],Table_PI[[#This Row],[Input 1]],Table_PI[[#This Row],[Input 2]],Table_PI[[#This Row],[Input 3]],Table_PI[[#This Row],[Input 4]],'Customer Information'!$AR$12,201,ROW()),\"\"),\"\")","v":""}]
[{"$f":"Table_PI[[#This Row],[Line No.]]","v":""},{"$f":"IF(Table_SummaryPI[[#This Row],[MeassureCategory]]<>\"\",CONCATENATE(Table_SummaryPI[[#This Row],[MeassureCategory]],  \" - \", Table_SummaryPI[[#This Row],[ProposedMeasureCategory]],  \" - \", TEXT(Table_SummaryPI[[#This Row],[Size]],\"#,##0.00\"),\" \",Table_SummaryPI[[#This Row],[SizeUnit]]),\"\")","v":""},{"$f":"SUBSTITUTE(Table_PI[[#This Row],[Measure]],\"     \",\"\",1)","v":""},{"$f":"IF(Table_PI[[#This Row],[List 1]]<>\"\",Table_PI[[#This Row],[List 1]],\"\")","v":""},{"$f":"IF(Table_PI[[#This Row],[List 2]]<>\"\",Table_PI[[#This Row],[List 2]],\"\")","v":""},{"$f":"IF(Table_PI[[#This Row],[List 3]]<>\"\",Table_PI[[#This Row],[List 3]],\"\")","v":""},{"$f":"IF(Table_PI[[#This Row],[Manufacturer]]=\"\",\"\",Table_PI[[#This Row],[Manufacturer]])","v":""},{"$f":"IF(Table_PI[[#This Row],[Model Number]]=\"\",\"\",Table_PI[[#This Row],[Model Number]])","v":""},{"$f":"IF(Table_PI[[#This Row],[Serial Number(s)]]=\"\",\"\",Table_PI[[#This Row],[Serial Number(s)]])","v":""},null,{"$f":"IF(Table_PI[[#This Row],[Size]]=\"\",\"\",Table_PI[[#This Row],[Size]])","v":""},null,{"$f":"IFERROR(IF(AND(MeasureCalc(Table_PI[[#This Row],[Hide:\nFormula Name]],Table_SummaryPI[[#This Row],[Quantity]],Table_PI[[#This Row],[List 1]],Table_PI[[#This Row],[List 2]],Table_PI[[#This Row],[List 3]],Table_PI[[#This Row],[Size]],Table_PI[[#This Row],[Input 1]],Table_PI[[#This Row],[Input 2]],Table_PI[[#This Row],[Input 3]],Table_PI[[#This Row],[Input 4]],'Customer Information'!$AR$12,100,ROW())<>0,MeasureCalc(Table_PI[[#This Row],[Hide:\nFormula Name]],Table_SummaryPI[[#This Row],[Quantity]],Table_PI[[#This Row],[List 1]],Table_PI[[#This Row],[List 2]],Table_PI[[#This Row],[List 3]],Table_PI[[#This Row],[Size]],Table_PI[[#This Row],[Input 1]],Table_PI[[#This Row],[Input 2]],Table_PI[[#This Row],[Input 3]],Table_PI[[#This Row],[Input 4]],'Customer Information'!$AR$12,100,ROW())<>\"No Rebate\"),MeasureCalc(Table_PI[[#This Row],[Hide:\nFormula Name]],Table_SummaryPI[[#This Row],[Quantity]],Table_PI[[#This Row],[List 1]],Table_PI[[#This Row],[List 2]],Table_PI[[#This Row],[List 3]],Table_PI[[#This Row],[Size]],Table_PI[[#This Row],[Input 1]],Table_PI[[#This Row],[Input 2]],Table_PI[[#This Row],[Input 3]],Table_PI[[#This Row],[Input 4]],'Customer Information'!$AR$12,100,ROW()),\"\"),\"\")","v":""},{"$f":"IF(Table_PI[[#This Row],[Input 1]]<>\"\",Table_PI[[#This Row],[Input 1]],\"\")","v":""},null,{"$f":"IFERROR(IF(AND(MeasureCalc(Table_PI[[#This Row],[Hide:\nFormula Name]],Table_SummaryPI[[#This Row],[Quantity]],Table_PI[[#This Row],[List 1]],Table_PI[[#This Row],[List 2]],Table_PI[[#This Row],[List 3]],Table_PI[[#This Row],[Size]],Table_PI[[#This Row],[Input 1]],Table_PI[[#This Row],[Input 2]],Table_PI[[#This Row],[Input 3]],Table_PI[[#This Row],[Input 4]],'Customer Information'!$AR$12,101,ROW())<>0,MeasureCalc(Table_PI[[#This Row],[Hide:\nFormula Name]],Table_SummaryPI[[#This Row],[Quantity]],Table_PI[[#This Row],[List 1]],Table_PI[[#This Row],[List 2]],Table_PI[[#This Row],[List 3]],Table_PI[[#This Row],[Size]],Table_PI[[#This Row],[Input 1]],Table_PI[[#This Row],[Input 2]],Table_PI[[#This Row],[Input 3]],Table_PI[[#This Row],[Input 4]],'Customer Information'!$AR$12,101,ROW())<>\"No Rebate\"),MeasureCalc(Table_PI[[#This Row],[Hide:\nFormula Name]],Table_SummaryPI[[#This Row],[Quantity]],Table_PI[[#This Row],[List 1]],Table_PI[[#This Row],[List 2]],Table_PI[[#This Row],[List 3]],Table_PI[[#This Row],[Size]],Table_PI[[#This Row],[Input 1]],Table_PI[[#This Row],[Input 2]],Table_PI[[#This Row],[Input 3]],Table_PI[[#This Row],[Input 4]],'Customer Information'!$AR$12,101,ROW()),\"\"),\"\")","v":""},{"$f":"IF(Table_PI[[#This Row],[Input 2]]<>\"\",Table_PI[[#This Row],[Input 2]],\"\")","v":""},null,{"$f":"IFERROR(IF(AND(MeasureCalc(Table_PI[[#This Row],[Hide:\nFormula Name]],Table_SummaryPI[[#This Row],[Quantity]],Table_PI[[#This Row],[List 1]],Table_PI[[#This Row],[List 2]],Table_PI[[#This Row],[List 3]],Table_PI[[#This Row],[Size]],Table_PI[[#This Row],[Input 1]],Table_PI[[#This Row],[Input 2]],Table_PI[[#This Row],[Input 3]],Table_PI[[#This Row],[Input 4]],'Customer Information'!$AR$12,102,ROW())<>0,MeasureCalc(Table_PI[[#This Row],[Hide:\nFormula Name]],Table_SummaryPI[[#This Row],[Quantity]],Table_PI[[#This Row],[List 1]],Table_PI[[#This Row],[List 2]],Table_PI[[#This Row],[List 3]],Table_PI[[#This Row],[Size]],Table_PI[[#This Row],[Input 1]],Table_PI[[#This Row],[Input 2]],Table_PI[[#This Row],[Input 3]],Table_PI[[#This Row],[Input 4]],'Customer Information'!$AR$12,102,ROW())<>\"No Rebate\"),MeasureCalc(Table_PI[[#This Row],[Hide:\nFormula Name]],Table_SummaryPI[[#This Row],[Quantity]],Table_PI[[#This Row],[List 1]],Table_PI[[#This Row],[List 2]],Table_PI[[#This Row],[List 3]],Table_PI[[#This Row],[Size]],Table_PI[[#This Row],[Input 1]],Table_PI[[#This Row],[Input 2]],Table_PI[[#This Row],[Input 3]],Table_PI[[#This Row],[Input 4]],'Customer Information'!$AR$12,102,ROW()),\"\"),\"\")","v":""},{"$f":"IF(Table_PI[[#This Row],[Input 3]]<>\"\",Table_PI[[#This Row],[Input 3]],\"\")","v":""},null,{"$f":"IFERROR(IF(AND(MeasureCalc(Table_PI[[#This Row],[Hide:\nFormula Name]],Table_SummaryPI[[#This Row],[Quantity]],Table_PI[[#This Row],[List 1]],Table_PI[[#This Row],[List 2]],Table_PI[[#This Row],[List 3]],Table_PI[[#This Row],[Size]],Table_PI[[#This Row],[Input 1]],Table_PI[[#This Row],[Input 2]],Table_PI[[#This Row],[Input 3]],Table_PI[[#This Row],[Input 4]],'Customer Information'!$AR$12,103,ROW())<>0,MeasureCalc(Table_PI[[#This Row],[Hide:\nFormula Name]],Table_SummaryPI[[#This Row],[Quantity]],Table_PI[[#This Row],[List 1]],Table_PI[[#This Row],[List 2]],Table_PI[[#This Row],[List 3]],Table_PI[[#This Row],[Size]],Table_PI[[#This Row],[Input 1]],Table_PI[[#This Row],[Input 2]],Table_PI[[#This Row],[Input 3]],Table_PI[[#This Row],[Input 4]],'Customer Information'!$AR$12,103,ROW())<>\"No Rebate\"),MeasureCalc(Table_PI[[#This Row],[Hide:\nFormula Name]],Table_SummaryPI[[#This Row],[Quantity]],Table_PI[[#This Row],[List 1]],Table_PI[[#This Row],[List 2]],Table_PI[[#This Row],[List 3]],Table_PI[[#This Row],[Size]],Table_PI[[#This Row],[Input 1]],Table_PI[[#This Row],[Input 2]],Table_PI[[#This Row],[Input 3]],Table_PI[[#This Row],[Input 4]],'Customer Information'!$AR$12,103,ROW()),\"\"),\"\")","v":""},{"$f":"IF(Table_PI[[#This Row],[Input 4]]<>\"\",Table_PI[[#This Row],[Input 4]],\"\")","v":""},{"$f":"IF(Table_PI[[#This Row],[Quantity]]=\"\",\"\",Table_PI[[#This Row],[Quantity]])","v":""},{"$f":"IF(Table_PI[[#This Row],[Notes]]=\"\",\"\",Table_PI[[#This Row],[Notes]])","v":""},{"$f":"IF(OR(Table_PI[[#This Row],[Hide:\nBaseline kWh]]=\"\",Table_PI[[#This Row],[Hide:\nBaseline kWh]]=0),\"\",Table_PI[[#This Row],[Hide:\nBaseline kWh]])","v":""},{"$f":"IF(OR(Table_PI[[#This Row],[Hide:\nBaseline kW]]=\"\",Table_PI[[#This Row],[Hide:\nBaseline kW]]=0),\"\",Table_PI[[#This Row],[Hide:\nBaseline kW]])","v":""},{"$f":"IF(OR(Table_PI[[#This Row],[Hide:\nProposed kWh]]=\"\",Table_PI[[#This Row],[Hide:\nProposed kWh]]=0),\"\",Table_PI[[#This Row],[Hide:\nProposed kWh]])","v":""},{"$f":"IF(OR(Table_PI[[#This Row],[Hide:\nProposed kW]]=\"\",Table_PI[[#This Row],[Hide:\nProposed kW]]=0),\"\",Table_PI[[#This Row],[Hide:\nProposed kW]])","v":""},{"$f":"IF(OR(Table_PI[[#This Row],[Rebate]]=\"\",Table_PI[[#This Row],[Rebate]]=0),\"\",Table_PI[[#This Row],[Rebate]])","v":""},{"$f":"IF(OR(Table_PI[[#This Row],[Hide:\nIncremental Cost]]=\"\",Table_PI[[#This Row],[Hide:\nIncremental Cost]]=0),\"\",Table_PI[[#This Row],[Hide:\nIncremental Cost]])","v":""},{"$f":"IFERROR(IF(Table_SummaryPI[[#This Row],[kWhSavings]]=\"\",\"\",ROUND(Table_SummaryPI[[#This Row],[kWhSavings]]/$AG$401*'Customer Information'!$BC$17,2)),0)","v":""},{"$f":"IF(OR(Table_PI[[#This Row],[Annual kWh]]=\"\",Table_PI[[#This Row],[Annual kWh]]=0),\"\",Table_PI[[#This Row],[Annual kWh]])","v":""},{"$f":"IF(OR(Table_PI[[#This Row],[Peak kW]]=\"\",Table_PI[[#This Row],[Peak kW]]=0),\"\",Table_PI[[#This Row],[Peak kW]])","v":""},{"$f":"IFERROR(IF(Table_SummaryPI[[#This Row],[kWhSavings]]=\"\",\"\",$AU$9*Table_SummaryPI[[#This Row],[kWhSavings]]),0)","v":""},{"$f":"IFERROR(IF(Table_SummaryPI[[#This Row],[kWhSavings]]=\"\",\"\",$AU$14*Table_SummaryPI[[#This Row],[kWhSavings]]),0)","v":""},{"$f":"IFERROR(IF(Table_SummaryPI[[#This Row],[kWhSavings]]=\"\",\"\",$AU$18*Table_SummaryPI[[#This Row],[kWhSavings]]),0)","v":""},{"$f":"IFERROR(IF(Table_SummaryPI[[#This Row],[kWhSavings]]=\"\",\"\",$AU$22*Table_SummaryPI[[#This Row],[kWhSavings]]),0)","v":""},{"$f":"IFERROR(IF(MeasureCalc(Table_PI[[#This Row],[Hide:\nFormula Name]],Table_SummaryPI[[#This Row],[Quantity]],Table_PI[[#This Row],[List 1]],Table_PI[[#This Row],[List 2]],Table_PI[[#This Row],[List 3]],Table_PI[[#This Row],[Size]],Table_PI[[#This Row],[Input 1]],Table_PI[[#This Row],[Input 2]],Table_PI[[#This Row],[Input 3]],Table_PI[[#This Row],[Input 4]],'Customer Information'!$AR$12,200,ROW())<>\"No Rebate\",MeasureCalc(Table_PI[[#This Row],[Hide:\nFormula Name]],Table_SummaryPI[[#This Row],[Quantity]],Table_PI[[#This Row],[List 1]],Table_PI[[#This Row],[List 2]],Table_PI[[#This Row],[List 3]],Table_PI[[#This Row],[Size]],Table_PI[[#This Row],[Input 1]],Table_PI[[#This Row],[Input 2]],Table_PI[[#This Row],[Input 3]],Table_PI[[#This Row],[Input 4]],'Customer Information'!$AR$12,200,ROW()),\"\"),\"\")","v":""},{"$f":"IFERROR(IF(MeasureCalc(Table_PI[[#This Row],[Hide:\nFormula Name]],Table_SummaryPI[[#This Row],[Quantity]],Table_PI[[#This Row],[List 1]],Table_PI[[#This Row],[List 2]],Table_PI[[#This Row],[List 3]],Table_PI[[#This Row],[Size]],Table_PI[[#This Row],[Input 1]],Table_PI[[#This Row],[Input 2]],Table_PI[[#This Row],[Input 3]],Table_PI[[#This Row],[Input 4]],'Customer Information'!$AR$12,201,ROW())<>\"No Rebate\",MeasureCalc(Table_PI[[#This Row],[Hide:\nFormula Name]],Table_SummaryPI[[#This Row],[Quantity]],Table_PI[[#This Row],[List 1]],Table_PI[[#This Row],[List 2]],Table_PI[[#This Row],[List 3]],Table_PI[[#This Row],[Size]],Table_PI[[#This Row],[Input 1]],Table_PI[[#This Row],[Input 2]],Table_PI[[#This Row],[Input 3]],Table_PI[[#This Row],[Input 4]],'Customer Information'!$AR$12,201,ROW()),\"\"),\"\")","v":""}]
[{"$f":"Table_PI[[#This Row],[Line No.]]","v":""},{"$f":"IF(Table_SummaryPI[[#This Row],[MeassureCategory]]<>\"\",CONCATENATE(Table_SummaryPI[[#This Row],[MeassureCategory]],  \" - \", Table_SummaryPI[[#This Row],[ProposedMeasureCategory]],  \" - \", TEXT(Table_SummaryPI[[#This Row],[Size]],\"#,##0.00\"),\" \",Table_SummaryPI[[#This Row],[SizeUnit]]),\"\")","v":""},{"$f":"SUBSTITUTE(Table_PI[[#This Row],[Measure]],\"     \",\"\",1)","v":""},{"$f":"IF(Table_PI[[#This Row],[List 1]]<>\"\",Table_PI[[#This Row],[List 1]],\"\")","v":""},{"$f":"IF(Table_PI[[#This Row],[List 2]]<>\"\",Table_PI[[#This Row],[List 2]],\"\")","v":""},{"$f":"IF(Table_PI[[#This Row],[List 3]]<>\"\",Table_PI[[#This Row],[List 3]],\"\")","v":""},{"$f":"IF(Table_PI[[#This Row],[Manufacturer]]=\"\",\"\",Table_PI[[#This Row],[Manufacturer]])","v":""},{"$f":"IF(Table_PI[[#This Row],[Model Number]]=\"\",\"\",Table_PI[[#This Row],[Model Number]])","v":""},{"$f":"IF(Table_PI[[#This Row],[Serial Number(s)]]=\"\",\"\",Table_PI[[#This Row],[Serial Number(s)]])","v":""},null,{"$f":"IF(Table_PI[[#This Row],[Size]]=\"\",\"\",Table_PI[[#This Row],[Size]])","v":""},null,{"$f":"IFERROR(IF(AND(MeasureCalc(Table_PI[[#This Row],[Hide:\nFormula Name]],Table_SummaryPI[[#This Row],[Quantity]],Table_PI[[#This Row],[List 1]],Table_PI[[#This Row],[List 2]],Table_PI[[#This Row],[List 3]],Table_PI[[#This Row],[Size]],Table_PI[[#This Row],[Input 1]],Table_PI[[#This Row],[Input 2]],Table_PI[[#This Row],[Input 3]],Table_PI[[#This Row],[Input 4]],'Customer Information'!$AR$12,100,ROW())<>0,MeasureCalc(Table_PI[[#This Row],[Hide:\nFormula Name]],Table_SummaryPI[[#This Row],[Quantity]],Table_PI[[#This Row],[List 1]],Table_PI[[#This Row],[List 2]],Table_PI[[#This Row],[List 3]],Table_PI[[#This Row],[Size]],Table_PI[[#This Row],[Input 1]],Table_PI[[#This Row],[Input 2]],Table_PI[[#This Row],[Input 3]],Table_PI[[#This Row],[Input 4]],'Customer Information'!$AR$12,100,ROW())<>\"No Rebate\"),MeasureCalc(Table_PI[[#This Row],[Hide:\nFormula Name]],Table_SummaryPI[[#This Row],[Quantity]],Table_PI[[#This Row],[List 1]],Table_PI[[#This Row],[List 2]],Table_PI[[#This Row],[List 3]],Table_PI[[#This Row],[Size]],Table_PI[[#This Row],[Input 1]],Table_PI[[#This Row],[Input 2]],Table_PI[[#This Row],[Input 3]],Table_PI[[#This Row],[Input 4]],'Customer Information'!$AR$12,100,ROW()),\"\"),\"\")","v":""},{"$f":"IF(Table_PI[[#This Row],[Input 1]]<>\"\",Table_PI[[#This Row],[Input 1]],\"\")","v":""},null,{"$f":"IFERROR(IF(AND(MeasureCalc(Table_PI[[#This Row],[Hide:\nFormula Name]],Table_SummaryPI[[#This Row],[Quantity]],Table_PI[[#This Row],[List 1]],Table_PI[[#This Row],[List 2]],Table_PI[[#This Row],[List 3]],Table_PI[[#This Row],[Size]],Table_PI[[#This Row],[Input 1]],Table_PI[[#This Row],[Input 2]],Table_PI[[#This Row],[Input 3]],Table_PI[[#This Row],[Input 4]],'Customer Information'!$AR$12,101,ROW())<>0,MeasureCalc(Table_PI[[#This Row],[Hide:\nFormula Name]],Table_SummaryPI[[#This Row],[Quantity]],Table_PI[[#This Row],[List 1]],Table_PI[[#This Row],[List 2]],Table_PI[[#This Row],[List 3]],Table_PI[[#This Row],[Size]],Table_PI[[#This Row],[Input 1]],Table_PI[[#This Row],[Input 2]],Table_PI[[#This Row],[Input 3]],Table_PI[[#This Row],[Input 4]],'Customer Information'!$AR$12,101,ROW())<>\"No Rebate\"),MeasureCalc(Table_PI[[#This Row],[Hide:\nFormula Name]],Table_SummaryPI[[#This Row],[Quantity]],Table_PI[[#This Row],[List 1]],Table_PI[[#This Row],[List 2]],Table_PI[[#This Row],[List 3]],Table_PI[[#This Row],[Size]],Table_PI[[#This Row],[Input 1]],Table_PI[[#This Row],[Input 2]],Table_PI[[#This Row],[Input 3]],Table_PI[[#This Row],[Input 4]],'Customer Information'!$AR$12,101,ROW()),\"\"),\"\")","v":""},{"$f":"IF(Table_PI[[#This Row],[Input 2]]<>\"\",Table_PI[[#This Row],[Input 2]],\"\")","v":""},null,{"$f":"IFERROR(IF(AND(MeasureCalc(Table_PI[[#This Row],[Hide:\nFormula Name]],Table_SummaryPI[[#This Row],[Quantity]],Table_PI[[#This Row],[List 1]],Table_PI[[#This Row],[List 2]],Table_PI[[#This Row],[List 3]],Table_PI[[#This Row],[Size]],Table_PI[[#This Row],[Input 1]],Table_PI[[#This Row],[Input 2]],Table_PI[[#This Row],[Input 3]],Table_PI[[#This Row],[Input 4]],'Customer Information'!$AR$12,102,ROW())<>0,MeasureCalc(Table_PI[[#This Row],[Hide:\nFormula Name]],Table_SummaryPI[[#This Row],[Quantity]],Table_PI[[#This Row],[List 1]],Table_PI[[#This Row],[List 2]],Table_PI[[#This Row],[List 3]],Table_PI[[#This Row],[Size]],Table_PI[[#This Row],[Input 1]],Table_PI[[#This Row],[Input 2]],Table_PI[[#This Row],[Input 3]],Table_PI[[#This Row],[Input 4]],'Customer Information'!$AR$12,102,ROW())<>\"No Rebate\"),MeasureCalc(Table_PI[[#This Row],[Hide:\nFormula Name]],Table_SummaryPI[[#This Row],[Quantity]],Table_PI[[#This Row],[List 1]],Table_PI[[#This Row],[List 2]],Table_PI[[#This Row],[List 3]],Table_PI[[#This Row],[Size]],Table_PI[[#This Row],[Input 1]],Table_PI[[#This Row],[Input 2]],Table_PI[[#This Row],[Input 3]],Table_PI[[#This Row],[Input 4]],'Customer Information'!$AR$12,102,ROW()),\"\"),\"\")","v":""},{"$f":"IF(Table_PI[[#This Row],[Input 3]]<>\"\",Table_PI[[#This Row],[Input 3]],\"\")","v":""},null,{"$f":"IFERROR(IF(AND(MeasureCalc(Table_PI[[#This Row],[Hide:\nFormula Name]],Table_SummaryPI[[#This Row],[Quantity]],Table_PI[[#This Row],[List 1]],Table_PI[[#This Row],[List 2]],Table_PI[[#This Row],[List 3]],Table_PI[[#This Row],[Size]],Table_PI[[#This Row],[Input 1]],Table_PI[[#This Row],[Input 2]],Table_PI[[#This Row],[Input 3]],Table_PI[[#This Row],[Input 4]],'Customer Information'!$AR$12,103,ROW())<>0,MeasureCalc(Table_PI[[#This Row],[Hide:\nFormula Name]],Table_SummaryPI[[#This Row],[Quantity]],Table_PI[[#This Row],[List 1]],Table_PI[[#This Row],[List 2]],Table_PI[[#This Row],[List 3]],Table_PI[[#This Row],[Size]],Table_PI[[#This Row],[Input 1]],Table_PI[[#This Row],[Input 2]],Table_PI[[#This Row],[Input 3]],Table_PI[[#This Row],[Input 4]],'Customer Information'!$AR$12,103,ROW())<>\"No Rebate\"),MeasureCalc(Table_PI[[#This Row],[Hide:\nFormula Name]],Table_SummaryPI[[#This Row],[Quantity]],Table_PI[[#This Row],[List 1]],Table_PI[[#This Row],[List 2]],Table_PI[[#This Row],[List 3]],Table_PI[[#This Row],[Size]],Table_PI[[#This Row],[Input 1]],Table_PI[[#This Row],[Input 2]],Table_PI[[#This Row],[Input 3]],Table_PI[[#This Row],[Input 4]],'Customer Information'!$AR$12,103,ROW()),\"\"),\"\")","v":""},{"$f":"IF(Table_PI[[#This Row],[Input 4]]<>\"\",Table_PI[[#This Row],[Input 4]],\"\")","v":""},{"$f":"IF(Table_PI[[#This Row],[Quantity]]=\"\",\"\",Table_PI[[#This Row],[Quantity]])","v":""},{"$f":"IF(Table_PI[[#This Row],[Notes]]=\"\",\"\",Table_PI[[#This Row],[Notes]])","v":""},{"$f":"IF(OR(Table_PI[[#This Row],[Hide:\nBaseline kWh]]=\"\",Table_PI[[#This Row],[Hide:\nBaseline kWh]]=0),\"\",Table_PI[[#This Row],[Hide:\nBaseline kWh]])","v":""},{"$f":"IF(OR(Table_PI[[#This Row],[Hide:\nBaseline kW]]=\"\",Table_PI[[#This Row],[Hide:\nBaseline kW]]=0),\"\",Table_PI[[#This Row],[Hide:\nBaseline kW]])","v":""},{"$f":"IF(OR(Table_PI[[#This Row],[Hide:\nProposed kWh]]=\"\",Table_PI[[#This Row],[Hide:\nProposed kWh]]=0),\"\",Table_PI[[#This Row],[Hide:\nProposed kWh]])","v":""},{"$f":"IF(OR(Table_PI[[#This Row],[Hide:\nProposed kW]]=\"\",Table_PI[[#This Row],[Hide:\nProposed kW]]=0),\"\",Table_PI[[#This Row],[Hide:\nProposed kW]])","v":""},{"$f":"IF(OR(Table_PI[[#This Row],[Rebate]]=\"\",Table_PI[[#This Row],[Rebate]]=0),\"\",Table_PI[[#This Row],[Rebate]])","v":""},{"$f":"IF(OR(Table_PI[[#This Row],[Hide:\nIncremental Cost]]=\"\",Table_PI[[#This Row],[Hide:\nIncremental Cost]]=0),\"\",Table_PI[[#This Row],[Hide:\nIncremental Cost]])","v":""},{"$f":"IFERROR(IF(Table_SummaryPI[[#This Row],[kWhSavings]]=\"\",\"\",ROUND(Table_SummaryPI[[#This Row],[kWhSavings]]/$AG$401*'Customer Information'!$BC$17,2)),0)","v":""},{"$f":"IF(OR(Table_PI[[#This Row],[Annual kWh]]=\"\",Table_PI[[#This Row],[Annual kWh]]=0),\"\",Table_PI[[#This Row],[Annual kWh]])","v":""},{"$f":"IF(OR(Table_PI[[#This Row],[Peak kW]]=\"\",Table_PI[[#This Row],[Peak kW]]=0),\"\",Table_PI[[#This Row],[Peak kW]])","v":""},{"$f":"IFERROR(IF(Table_SummaryPI[[#This Row],[kWhSavings]]=\"\",\"\",$AU$9*Table_SummaryPI[[#This Row],[kWhSavings]]),0)","v":""},{"$f":"IFERROR(IF(Table_SummaryPI[[#This Row],[kWhSavings]]=\"\",\"\",$AU$14*Table_SummaryPI[[#This Row],[kWhSavings]]),0)","v":""},{"$f":"IFERROR(IF(Table_SummaryPI[[#This Row],[kWhSavings]]=\"\",\"\",$AU$18*Table_SummaryPI[[#This Row],[kWhSavings]]),0)","v":""},{"$f":"IFERROR(IF(Table_SummaryPI[[#This Row],[kWhSavings]]=\"\",\"\",$AU$22*Table_SummaryPI[[#This Row],[kWhSavings]]),0)","v":""},{"$f":"IFERROR(IF(MeasureCalc(Table_PI[[#This Row],[Hide:\nFormula Name]],Table_SummaryPI[[#This Row],[Quantity]],Table_PI[[#This Row],[List 1]],Table_PI[[#This Row],[List 2]],Table_PI[[#This Row],[List 3]],Table_PI[[#This Row],[Size]],Table_PI[[#This Row],[Input 1]],Table_PI[[#This Row],[Input 2]],Table_PI[[#This Row],[Input 3]],Table_PI[[#This Row],[Input 4]],'Customer Information'!$AR$12,200,ROW())<>\"No Rebate\",MeasureCalc(Table_PI[[#This Row],[Hide:\nFormula Name]],Table_SummaryPI[[#This Row],[Quantity]],Table_PI[[#This Row],[List 1]],Table_PI[[#This Row],[List 2]],Table_PI[[#This Row],[List 3]],Table_PI[[#This Row],[Size]],Table_PI[[#This Row],[Input 1]],Table_PI[[#This Row],[Input 2]],Table_PI[[#This Row],[Input 3]],Table_PI[[#This Row],[Input 4]],'Customer Information'!$AR$12,200,ROW()),\"\"),\"\")","v":""},{"$f":"IFERROR(IF(MeasureCalc(Table_PI[[#This Row],[Hide:\nFormula Name]],Table_SummaryPI[[#This Row],[Quantity]],Table_PI[[#This Row],[List 1]],Table_PI[[#This Row],[List 2]],Table_PI[[#This Row],[List 3]],Table_PI[[#This Row],[Size]],Table_PI[[#This Row],[Input 1]],Table_PI[[#This Row],[Input 2]],Table_PI[[#This Row],[Input 3]],Table_PI[[#This Row],[Input 4]],'Customer Information'!$AR$12,201,ROW())<>\"No Rebate\",MeasureCalc(Table_PI[[#This Row],[Hide:\nFormula Name]],Table_SummaryPI[[#This Row],[Quantity]],Table_PI[[#This Row],[List 1]],Table_PI[[#This Row],[List 2]],Table_PI[[#This Row],[List 3]],Table_PI[[#This Row],[Size]],Table_PI[[#This Row],[Input 1]],Table_PI[[#This Row],[Input 2]],Table_PI[[#This Row],[Input 3]],Table_PI[[#This Row],[Input 4]],'Customer Information'!$AR$12,201,ROW()),\"\"),\"\")","v":""}]
[{"$f":"Table_PI[[#This Row],[Line No.]]","v":""},{"$f":"IF(Table_SummaryPI[[#This Row],[MeassureCategory]]<>\"\",CONCATENATE(Table_SummaryPI[[#This Row],[MeassureCategory]],  \" - \", Table_SummaryPI[[#This Row],[ProposedMeasureCategory]],  \" - \", TEXT(Table_SummaryPI[[#This Row],[Size]],\"#,##0.00\"),\" \",Table_SummaryPI[[#This Row],[SizeUnit]]),\"\")","v":""},{"$f":"SUBSTITUTE(Table_PI[[#This Row],[Measure]],\"     \",\"\",1)","v":""},{"$f":"IF(Table_PI[[#This Row],[List 1]]<>\"\",Table_PI[[#This Row],[List 1]],\"\")","v":""},{"$f":"IF(Table_PI[[#This Row],[List 2]]<>\"\",Table_PI[[#This Row],[List 2]],\"\")","v":""},{"$f":"IF(Table_PI[[#This Row],[List 3]]<>\"\",Table_PI[[#This Row],[List 3]],\"\")","v":""},{"$f":"IF(Table_PI[[#This Row],[Manufacturer]]=\"\",\"\",Table_PI[[#This Row],[Manufacturer]])","v":""},{"$f":"IF(Table_PI[[#This Row],[Model Number]]=\"\",\"\",Table_PI[[#This Row],[Model Number]])","v":""},{"$f":"IF(Table_PI[[#This Row],[Serial Number(s)]]=\"\",\"\",Table_PI[[#This Row],[Serial Number(s)]])","v":""},null,{"$f":"IF(Table_PI[[#This Row],[Size]]=\"\",\"\",Table_PI[[#This Row],[Size]])","v":""},null,{"$f":"IFERROR(IF(AND(MeasureCalc(Table_PI[[#This Row],[Hide:\nFormula Name]],Table_SummaryPI[[#This Row],[Quantity]],Table_PI[[#This Row],[List 1]],Table_PI[[#This Row],[List 2]],Table_PI[[#This Row],[List 3]],Table_PI[[#This Row],[Size]],Table_PI[[#This Row],[Input 1]],Table_PI[[#This Row],[Input 2]],Table_PI[[#This Row],[Input 3]],Table_PI[[#This Row],[Input 4]],'Customer Information'!$AR$12,100,ROW())<>0,MeasureCalc(Table_PI[[#This Row],[Hide:\nFormula Name]],Table_SummaryPI[[#This Row],[Quantity]],Table_PI[[#This Row],[List 1]],Table_PI[[#This Row],[List 2]],Table_PI[[#This Row],[List 3]],Table_PI[[#This Row],[Size]],Table_PI[[#This Row],[Input 1]],Table_PI[[#This Row],[Input 2]],Table_PI[[#This Row],[Input 3]],Table_PI[[#This Row],[Input 4]],'Customer Information'!$AR$12,100,ROW())<>\"No Rebate\"),MeasureCalc(Table_PI[[#This Row],[Hide:\nFormula Name]],Table_SummaryPI[[#This Row],[Quantity]],Table_PI[[#This Row],[List 1]],Table_PI[[#This Row],[List 2]],Table_PI[[#This Row],[List 3]],Table_PI[[#This Row],[Size]],Table_PI[[#This Row],[Input 1]],Table_PI[[#This Row],[Input 2]],Table_PI[[#This Row],[Input 3]],Table_PI[[#This Row],[Input 4]],'Customer Information'!$AR$12,100,ROW()),\"\"),\"\")","v":""},{"$f":"IF(Table_PI[[#This Row],[Input 1]]<>\"\",Table_PI[[#This Row],[Input 1]],\"\")","v":""},null,{"$f":"IFERROR(IF(AND(MeasureCalc(Table_PI[[#This Row],[Hide:\nFormula Name]],Table_SummaryPI[[#This Row],[Quantity]],Table_PI[[#This Row],[List 1]],Table_PI[[#This Row],[List 2]],Table_PI[[#This Row],[List 3]],Table_PI[[#This Row],[Size]],Table_PI[[#This Row],[Input 1]],Table_PI[[#This Row],[Input 2]],Table_PI[[#This Row],[Input 3]],Table_PI[[#This Row],[Input 4]],'Customer Information'!$AR$12,101,ROW())<>0,MeasureCalc(Table_PI[[#This Row],[Hide:\nFormula Name]],Table_SummaryPI[[#This Row],[Quantity]],Table_PI[[#This Row],[List 1]],Table_PI[[#This Row],[List 2]],Table_PI[[#This Row],[List 3]],Table_PI[[#This Row],[Size]],Table_PI[[#This Row],[Input 1]],Table_PI[[#This Row],[Input 2]],Table_PI[[#This Row],[Input 3]],Table_PI[[#This Row],[Input 4]],'Customer Information'!$AR$12,101,ROW())<>\"No Rebate\"),MeasureCalc(Table_PI[[#This Row],[Hide:\nFormula Name]],Table_SummaryPI[[#This Row],[Quantity]],Table_PI[[#This Row],[List 1]],Table_PI[[#This Row],[List 2]],Table_PI[[#This Row],[List 3]],Table_PI[[#This Row],[Size]],Table_PI[[#This Row],[Input 1]],Table_PI[[#This Row],[Input 2]],Table_PI[[#This Row],[Input 3]],Table_PI[[#This Row],[Input 4]],'Customer Information'!$AR$12,101,ROW()),\"\"),\"\")","v":""},{"$f":"IF(Table_PI[[#This Row],[Input 2]]<>\"\",Table_PI[[#This Row],[Input 2]],\"\")","v":""},null,{"$f":"IFERROR(IF(AND(MeasureCalc(Table_PI[[#This Row],[Hide:\nFormula Name]],Table_SummaryPI[[#This Row],[Quantity]],Table_PI[[#This Row],[List 1]],Table_PI[[#This Row],[List 2]],Table_PI[[#This Row],[List 3]],Table_PI[[#This Row],[Size]],Table_PI[[#This Row],[Input 1]],Table_PI[[#This Row],[Input 2]],Table_PI[[#This Row],[Input 3]],Table_PI[[#This Row],[Input 4]],'Customer Information'!$AR$12,102,ROW())<>0,MeasureCalc(Table_PI[[#This Row],[Hide:\nFormula Name]],Table_SummaryPI[[#This Row],[Quantity]],Table_PI[[#This Row],[List 1]],Table_PI[[#This Row],[List 2]],Table_PI[[#This Row],[List 3]],Table_PI[[#This Row],[Size]],Table_PI[[#This Row],[Input 1]],Table_PI[[#This Row],[Input 2]],Table_PI[[#This Row],[Input 3]],Table_PI[[#This Row],[Input 4]],'Customer Information'!$AR$12,102,ROW())<>\"No Rebate\"),MeasureCalc(Table_PI[[#This Row],[Hide:\nFormula Name]],Table_SummaryPI[[#This Row],[Quantity]],Table_PI[[#This Row],[List 1]],Table_PI[[#This Row],[List 2]],Table_PI[[#This Row],[List 3]],Table_PI[[#This Row],[Size]],Table_PI[[#This Row],[Input 1]],Table_PI[[#This Row],[Input 2]],Table_PI[[#This Row],[Input 3]],Table_PI[[#This Row],[Input 4]],'Customer Information'!$AR$12,102,ROW()),\"\"),\"\")","v":""},{"$f":"IF(Table_PI[[#This Row],[Input 3]]<>\"\",Table_PI[[#This Row],[Input 3]],\"\")","v":""},null,{"$f":"IFERROR(IF(AND(MeasureCalc(Table_PI[[#This Row],[Hide:\nFormula Name]],Table_SummaryPI[[#This Row],[Quantity]],Table_PI[[#This Row],[List 1]],Table_PI[[#This Row],[List 2]],Table_PI[[#This Row],[List 3]],Table_PI[[#This Row],[Size]],Table_PI[[#This Row],[Input 1]],Table_PI[[#This Row],[Input 2]],Table_PI[[#This Row],[Input 3]],Table_PI[[#This Row],[Input 4]],'Customer Information'!$AR$12,103,ROW())<>0,MeasureCalc(Table_PI[[#This Row],[Hide:\nFormula Name]],Table_SummaryPI[[#This Row],[Quantity]],Table_PI[[#This Row],[List 1]],Table_PI[[#This Row],[List 2]],Table_PI[[#This Row],[List 3]],Table_PI[[#This Row],[Size]],Table_PI[[#This Row],[Input 1]],Table_PI[[#This Row],[Input 2]],Table_PI[[#This Row],[Input 3]],Table_PI[[#This Row],[Input 4]],'Customer Information'!$AR$12,103,ROW())<>\"No Rebate\"),MeasureCalc(Table_PI[[#This Row],[Hide:\nFormula Name]],Table_SummaryPI[[#This Row],[Quantity]],Table_PI[[#This Row],[List 1]],Table_PI[[#This Row],[List 2]],Table_PI[[#This Row],[List 3]],Table_PI[[#This Row],[Size]],Table_PI[[#This Row],[Input 1]],Table_PI[[#This Row],[Input 2]],Table_PI[[#This Row],[Input 3]],Table_PI[[#This Row],[Input 4]],'Customer Information'!$AR$12,103,ROW()),\"\"),\"\")","v":""},{"$f":"IF(Table_PI[[#This Row],[Input 4]]<>\"\",Table_PI[[#This Row],[Input 4]],\"\")","v":""},{"$f":"IF(Table_PI[[#This Row],[Quantity]]=\"\",\"\",Table_PI[[#This Row],[Quantity]])","v":""},{"$f":"IF(Table_PI[[#This Row],[Notes]]=\"\",\"\",Table_PI[[#This Row],[Notes]])","v":""},{"$f":"IF(OR(Table_PI[[#This Row],[Hide:\nBaseline kWh]]=\"\",Table_PI[[#This Row],[Hide:\nBaseline kWh]]=0),\"\",Table_PI[[#This Row],[Hide:\nBaseline kWh]])","v":""},{"$f":"IF(OR(Table_PI[[#This Row],[Hide:\nBaseline kW]]=\"\",Table_PI[[#This Row],[Hide:\nBaseline kW]]=0),\"\",Table_PI[[#This Row],[Hide:\nBaseline kW]])","v":""},{"$f":"IF(OR(Table_PI[[#This Row],[Hide:\nProposed kWh]]=\"\",Table_PI[[#This Row],[Hide:\nProposed kWh]]=0),\"\",Table_PI[[#This Row],[Hide:\nProposed kWh]])","v":""},{"$f":"IF(OR(Table_PI[[#This Row],[Hide:\nProposed kW]]=\"\",Table_PI[[#This Row],[Hide:\nProposed kW]]=0),\"\",Table_PI[[#This Row],[Hide:\nProposed kW]])","v":""},{"$f":"IF(OR(Table_PI[[#This Row],[Rebate]]=\"\",Table_PI[[#This Row],[Rebate]]=0),\"\",Table_PI[[#This Row],[Rebate]])","v":""},{"$f":"IF(OR(Table_PI[[#This Row],[Hide:\nIncremental Cost]]=\"\",Table_PI[[#This Row],[Hide:\nIncremental Cost]]=0),\"\",Table_PI[[#This Row],[Hide:\nIncremental Cost]])","v":""},{"$f":"IFERROR(IF(Table_SummaryPI[[#This Row],[kWhSavings]]=\"\",\"\",ROUND(Table_SummaryPI[[#This Row],[kWhSavings]]/$AG$401*'Customer Information'!$BC$17,2)),0)","v":""},{"$f":"IF(OR(Table_PI[[#This Row],[Annual kWh]]=\"\",Table_PI[[#This Row],[Annual kWh]]=0),\"\",Table_PI[[#This Row],[Annual kWh]])","v":""},{"$f":"IF(OR(Table_PI[[#This Row],[Peak kW]]=\"\",Table_PI[[#This Row],[Peak kW]]=0),\"\",Table_PI[[#This Row],[Peak kW]])","v":""},{"$f":"IFERROR(IF(Table_SummaryPI[[#This Row],[kWhSavings]]=\"\",\"\",$AU$9*Table_SummaryPI[[#This Row],[kWhSavings]]),0)","v":""},{"$f":"IFERROR(IF(Table_SummaryPI[[#This Row],[kWhSavings]]=\"\",\"\",$AU$14*Table_SummaryPI[[#This Row],[kWhSavings]]),0)","v":""},{"$f":"IFERROR(IF(Table_SummaryPI[[#This Row],[kWhSavings]]=\"\",\"\",$AU$18*Table_SummaryPI[[#This Row],[kWhSavings]]),0)","v":""},{"$f":"IFERROR(IF(Table_SummaryPI[[#This Row],[kWhSavings]]=\"\",\"\",$AU$22*Table_SummaryPI[[#This Row],[kWhSavings]]),0)","v":""},{"$f":"IFERROR(IF(MeasureCalc(Table_PI[[#This Row],[Hide:\nFormula Name]],Table_SummaryPI[[#This Row],[Quantity]],Table_PI[[#This Row],[List 1]],Table_PI[[#This Row],[List 2]],Table_PI[[#This Row],[List 3]],Table_PI[[#This Row],[Size]],Table_PI[[#This Row],[Input 1]],Table_PI[[#This Row],[Input 2]],Table_PI[[#This Row],[Input 3]],Table_PI[[#This Row],[Input 4]],'Customer Information'!$AR$12,200,ROW())<>\"No Rebate\",MeasureCalc(Table_PI[[#This Row],[Hide:\nFormula Name]],Table_SummaryPI[[#This Row],[Quantity]],Table_PI[[#This Row],[List 1]],Table_PI[[#This Row],[List 2]],Table_PI[[#This Row],[List 3]],Table_PI[[#This Row],[Size]],Table_PI[[#This Row],[Input 1]],Table_PI[[#This Row],[Input 2]],Table_PI[[#This Row],[Input 3]],Table_PI[[#This Row],[Input 4]],'Customer Information'!$AR$12,200,ROW()),\"\"),\"\")","v":""},{"$f":"IFERROR(IF(MeasureCalc(Table_PI[[#This Row],[Hide:\nFormula Name]],Table_SummaryPI[[#This Row],[Quantity]],Table_PI[[#This Row],[List 1]],Table_PI[[#This Row],[List 2]],Table_PI[[#This Row],[List 3]],Table_PI[[#This Row],[Size]],Table_PI[[#This Row],[Input 1]],Table_PI[[#This Row],[Input 2]],Table_PI[[#This Row],[Input 3]],Table_PI[[#This Row],[Input 4]],'Customer Information'!$AR$12,201,ROW())<>\"No Rebate\",MeasureCalc(Table_PI[[#This Row],[Hide:\nFormula Name]],Table_SummaryPI[[#This Row],[Quantity]],Table_PI[[#This Row],[List 1]],Table_PI[[#This Row],[List 2]],Table_PI[[#This Row],[List 3]],Table_PI[[#This Row],[Size]],Table_PI[[#This Row],[Input 1]],Table_PI[[#This Row],[Input 2]],Table_PI[[#This Row],[Input 3]],Table_PI[[#This Row],[Input 4]],'Customer Information'!$AR$12,201,ROW()),\"\"),\"\")","v":""}]
[{"$f":"Table_PI[[#This Row],[Line No.]]","v":""},{"$f":"IF(Table_SummaryPI[[#This Row],[MeassureCategory]]<>\"\",CONCATENATE(Table_SummaryPI[[#This Row],[MeassureCategory]],  \" - \", Table_SummaryPI[[#This Row],[ProposedMeasureCategory]],  \" - \", TEXT(Table_SummaryPI[[#This Row],[Size]],\"#,##0.00\"),\" \",Table_SummaryPI[[#This Row],[SizeUnit]]),\"\")","v":""},{"$f":"SUBSTITUTE(Table_PI[[#This Row],[Measure]],\"     \",\"\",1)","v":""},{"$f":"IF(Table_PI[[#This Row],[List 1]]<>\"\",Table_PI[[#This Row],[List 1]],\"\")","v":""},{"$f":"IF(Table_PI[[#This Row],[List 2]]<>\"\",Table_PI[[#This Row],[List 2]],\"\")","v":""},{"$f":"IF(Table_PI[[#This Row],[List 3]]<>\"\",Table_PI[[#This Row],[List 3]],\"\")","v":""},{"$f":"IF(Table_PI[[#This Row],[Manufacturer]]=\"\",\"\",Table_PI[[#This Row],[Manufacturer]])","v":""},{"$f":"IF(Table_PI[[#This Row],[Model Number]]=\"\",\"\",Table_PI[[#This Row],[Model Number]])","v":""},{"$f":"IF(Table_PI[[#This Row],[Serial Number(s)]]=\"\",\"\",Table_PI[[#This Row],[Serial Number(s)]])","v":""},null,{"$f":"IF(Table_PI[[#This Row],[Size]]=\"\",\"\",Table_PI[[#This Row],[Size]])","v":""},null,{"$f":"IFERROR(IF(AND(MeasureCalc(Table_PI[[#This Row],[Hide:\nFormula Name]],Table_SummaryPI[[#This Row],[Quantity]],Table_PI[[#This Row],[List 1]],Table_PI[[#This Row],[List 2]],Table_PI[[#This Row],[List 3]],Table_PI[[#This Row],[Size]],Table_PI[[#This Row],[Input 1]],Table_PI[[#This Row],[Input 2]],Table_PI[[#This Row],[Input 3]],Table_PI[[#This Row],[Input 4]],'Customer Information'!$AR$12,100,ROW())<>0,MeasureCalc(Table_PI[[#This Row],[Hide:\nFormula Name]],Table_SummaryPI[[#This Row],[Quantity]],Table_PI[[#This Row],[List 1]],Table_PI[[#This Row],[List 2]],Table_PI[[#This Row],[List 3]],Table_PI[[#This Row],[Size]],Table_PI[[#This Row],[Input 1]],Table_PI[[#This Row],[Input 2]],Table_PI[[#This Row],[Input 3]],Table_PI[[#This Row],[Input 4]],'Customer Information'!$AR$12,100,ROW())<>\"No Rebate\"),MeasureCalc(Table_PI[[#This Row],[Hide:\nFormula Name]],Table_SummaryPI[[#This Row],[Quantity]],Table_PI[[#This Row],[List 1]],Table_PI[[#This Row],[List 2]],Table_PI[[#This Row],[List 3]],Table_PI[[#This Row],[Size]],Table_PI[[#This Row],[Input 1]],Table_PI[[#This Row],[Input 2]],Table_PI[[#This Row],[Input 3]],Table_PI[[#This Row],[Input 4]],'Customer Information'!$AR$12,100,ROW()),\"\"),\"\")","v":""},{"$f":"IF(Table_PI[[#This Row],[Input 1]]<>\"\",Table_PI[[#This Row],[Input 1]],\"\")","v":""},null,{"$f":"IFERROR(IF(AND(MeasureCalc(Table_PI[[#This Row],[Hide:\nFormula Name]],Table_SummaryPI[[#This Row],[Quantity]],Table_PI[[#This Row],[List 1]],Table_PI[[#This Row],[List 2]],Table_PI[[#This Row],[List 3]],Table_PI[[#This Row],[Size]],Table_PI[[#This Row],[Input 1]],Table_PI[[#This Row],[Input 2]],Table_PI[[#This Row],[Input 3]],Table_PI[[#This Row],[Input 4]],'Customer Information'!$AR$12,101,ROW())<>0,MeasureCalc(Table_PI[[#This Row],[Hide:\nFormula Name]],Table_SummaryPI[[#This Row],[Quantity]],Table_PI[[#This Row],[List 1]],Table_PI[[#This Row],[List 2]],Table_PI[[#This Row],[List 3]],Table_PI[[#This Row],[Size]],Table_PI[[#This Row],[Input 1]],Table_PI[[#This Row],[Input 2]],Table_PI[[#This Row],[Input 3]],Table_PI[[#This Row],[Input 4]],'Customer Information'!$AR$12,101,ROW())<>\"No Rebate\"),MeasureCalc(Table_PI[[#This Row],[Hide:\nFormula Name]],Table_SummaryPI[[#This Row],[Quantity]],Table_PI[[#This Row],[List 1]],Table_PI[[#This Row],[List 2]],Table_PI[[#This Row],[List 3]],Table_PI[[#This Row],[Size]],Table_PI[[#This Row],[Input 1]],Table_PI[[#This Row],[Input 2]],Table_PI[[#This Row],[Input 3]],Table_PI[[#This Row],[Input 4]],'Customer Information'!$AR$12,101,ROW()),\"\"),\"\")","v":""},{"$f":"IF(Table_PI[[#This Row],[Input 2]]<>\"\",Table_PI[[#This Row],[Input 2]],\"\")","v":""},null,{"$f":"IFERROR(IF(AND(MeasureCalc(Table_PI[[#This Row],[Hide:\nFormula Name]],Table_SummaryPI[[#This Row],[Quantity]],Table_PI[[#This Row],[List 1]],Table_PI[[#This Row],[List 2]],Table_PI[[#This Row],[List 3]],Table_PI[[#This Row],[Size]],Table_PI[[#This Row],[Input 1]],Table_PI[[#This Row],[Input 2]],Table_PI[[#This Row],[Input 3]],Table_PI[[#This Row],[Input 4]],'Customer Information'!$AR$12,102,ROW())<>0,MeasureCalc(Table_PI[[#This Row],[Hide:\nFormula Name]],Table_SummaryPI[[#This Row],[Quantity]],Table_PI[[#This Row],[List 1]],Table_PI[[#This Row],[List 2]],Table_PI[[#This Row],[List 3]],Table_PI[[#This Row],[Size]],Table_PI[[#This Row],[Input 1]],Table_PI[[#This Row],[Input 2]],Table_PI[[#This Row],[Input 3]],Table_PI[[#This Row],[Input 4]],'Customer Information'!$AR$12,102,ROW())<>\"No Rebate\"),MeasureCalc(Table_PI[[#This Row],[Hide:\nFormula Name]],Table_SummaryPI[[#This Row],[Quantity]],Table_PI[[#This Row],[List 1]],Table_PI[[#This Row],[List 2]],Table_PI[[#This Row],[List 3]],Table_PI[[#This Row],[Size]],Table_PI[[#This Row],[Input 1]],Table_PI[[#This Row],[Input 2]],Table_PI[[#This Row],[Input 3]],Table_PI[[#This Row],[Input 4]],'Customer Information'!$AR$12,102,ROW()),\"\"),\"\")","v":""},{"$f":"IF(Table_PI[[#This Row],[Input 3]]<>\"\",Table_PI[[#This Row],[Input 3]],\"\")","v":""},null,{"$f":"IFERROR(IF(AND(MeasureCalc(Table_PI[[#This Row],[Hide:\nFormula Name]],Table_SummaryPI[[#This Row],[Quantity]],Table_PI[[#This Row],[List 1]],Table_PI[[#This Row],[List 2]],Table_PI[[#This Row],[List 3]],Table_PI[[#This Row],[Size]],Table_PI[[#This Row],[Input 1]],Table_PI[[#This Row],[Input 2]],Table_PI[[#This Row],[Input 3]],Table_PI[[#This Row],[Input 4]],'Customer Information'!$AR$12,103,ROW())<>0,MeasureCalc(Table_PI[[#This Row],[Hide:\nFormula Name]],Table_SummaryPI[[#This Row],[Quantity]],Table_PI[[#This Row],[List 1]],Table_PI[[#This Row],[List 2]],Table_PI[[#This Row],[List 3]],Table_PI[[#This Row],[Size]],Table_PI[[#This Row],[Input 1]],Table_PI[[#This Row],[Input 2]],Table_PI[[#This Row],[Input 3]],Table_PI[[#This Row],[Input 4]],'Customer Information'!$AR$12,103,ROW())<>\"No Rebate\"),MeasureCalc(Table_PI[[#This Row],[Hide:\nFormula Name]],Table_SummaryPI[[#This Row],[Quantity]],Table_PI[[#This Row],[List 1]],Table_PI[[#This Row],[List 2]],Table_PI[[#This Row],[List 3]],Table_PI[[#This Row],[Size]],Table_PI[[#This Row],[Input 1]],Table_PI[[#This Row],[Input 2]],Table_PI[[#This Row],[Input 3]],Table_PI[[#This Row],[Input 4]],'Customer Information'!$AR$12,103,ROW()),\"\"),\"\")","v":""},{"$f":"IF(Table_PI[[#This Row],[Input 4]]<>\"\",Table_PI[[#This Row],[Input 4]],\"\")","v":""},{"$f":"IF(Table_PI[[#This Row],[Quantity]]=\"\",\"\",Table_PI[[#This Row],[Quantity]])","v":""},{"$f":"IF(Table_PI[[#This Row],[Notes]]=\"\",\"\",Table_PI[[#This Row],[Notes]])","v":""},{"$f":"IF(OR(Table_PI[[#This Row],[Hide:\nBaseline kWh]]=\"\",Table_PI[[#This Row],[Hide:\nBaseline kWh]]=0),\"\",Table_PI[[#This Row],[Hide:\nBaseline kWh]])","v":""},{"$f":"IF(OR(Table_PI[[#This Row],[Hide:\nBaseline kW]]=\"\",Table_PI[[#This Row],[Hide:\nBaseline kW]]=0),\"\",Table_PI[[#This Row],[Hide:\nBaseline kW]])","v":""},{"$f":"IF(OR(Table_PI[[#This Row],[Hide:\nProposed kWh]]=\"\",Table_PI[[#This Row],[Hide:\nProposed kWh]]=0),\"\",Table_PI[[#This Row],[Hide:\nProposed kWh]])","v":""},{"$f":"IF(OR(Table_PI[[#This Row],[Hide:\nProposed kW]]=\"\",Table_PI[[#This Row],[Hide:\nProposed kW]]=0),\"\",Table_PI[[#This Row],[Hide:\nProposed kW]])","v":""},{"$f":"IF(OR(Table_PI[[#This Row],[Rebate]]=\"\",Table_PI[[#This Row],[Rebate]]=0),\"\",Table_PI[[#This Row],[Rebate]])","v":""},{"$f":"IF(OR(Table_PI[[#This Row],[Hide:\nIncremental Cost]]=\"\",Table_PI[[#This Row],[Hide:\nIncremental Cost]]=0),\"\",Table_PI[[#This Row],[Hide:\nIncremental Cost]])","v":""},{"$f":"IFERROR(IF(Table_SummaryPI[[#This Row],[kWhSavings]]=\"\",\"\",ROUND(Table_SummaryPI[[#This Row],[kWhSavings]]/$AG$401*'Customer Information'!$BC$17,2)),0)","v":""},{"$f":"IF(OR(Table_PI[[#This Row],[Annual kWh]]=\"\",Table_PI[[#This Row],[Annual kWh]]=0),\"\",Table_PI[[#This Row],[Annual kWh]])","v":""},{"$f":"IF(OR(Table_PI[[#This Row],[Peak kW]]=\"\",Table_PI[[#This Row],[Peak kW]]=0),\"\",Table_PI[[#This Row],[Peak kW]])","v":""},{"$f":"IFERROR(IF(Table_SummaryPI[[#This Row],[kWhSavings]]=\"\",\"\",$AU$9*Table_SummaryPI[[#This Row],[kWhSavings]]),0)","v":""},{"$f":"IFERROR(IF(Table_SummaryPI[[#This Row],[kWhSavings]]=\"\",\"\",$AU$14*Table_SummaryPI[[#This Row],[kWhSavings]]),0)","v":""},{"$f":"IFERROR(IF(Table_SummaryPI[[#This Row],[kWhSavings]]=\"\",\"\",$AU$18*Table_SummaryPI[[#This Row],[kWhSavings]]),0)","v":""},{"$f":"IFERROR(IF(Table_SummaryPI[[#This Row],[kWhSavings]]=\"\",\"\",$AU$22*Table_SummaryPI[[#This Row],[kWhSavings]]),0)","v":""},{"$f":"IFERROR(IF(MeasureCalc(Table_PI[[#This Row],[Hide:\nFormula Name]],Table_SummaryPI[[#This Row],[Quantity]],Table_PI[[#This Row],[List 1]],Table_PI[[#This Row],[List 2]],Table_PI[[#This Row],[List 3]],Table_PI[[#This Row],[Size]],Table_PI[[#This Row],[Input 1]],Table_PI[[#This Row],[Input 2]],Table_PI[[#This Row],[Input 3]],Table_PI[[#This Row],[Input 4]],'Customer Information'!$AR$12,200,ROW())<>\"No Rebate\",MeasureCalc(Table_PI[[#This Row],[Hide:\nFormula Name]],Table_SummaryPI[[#This Row],[Quantity]],Table_PI[[#This Row],[List 1]],Table_PI[[#This Row],[List 2]],Table_PI[[#This Row],[List 3]],Table_PI[[#This Row],[Size]],Table_PI[[#This Row],[Input 1]],Table_PI[[#This Row],[Input 2]],Table_PI[[#This Row],[Input 3]],Table_PI[[#This Row],[Input 4]],'Customer Information'!$AR$12,200,ROW()),\"\"),\"\")","v":""},{"$f":"IFERROR(IF(MeasureCalc(Table_PI[[#This Row],[Hide:\nFormula Name]],Table_SummaryPI[[#This Row],[Quantity]],Table_PI[[#This Row],[List 1]],Table_PI[[#This Row],[List 2]],Table_PI[[#This Row],[List 3]],Table_PI[[#This Row],[Size]],Table_PI[[#This Row],[Input 1]],Table_PI[[#This Row],[Input 2]],Table_PI[[#This Row],[Input 3]],Table_PI[[#This Row],[Input 4]],'Customer Information'!$AR$12,201,ROW())<>\"No Rebate\",MeasureCalc(Table_PI[[#This Row],[Hide:\nFormula Name]],Table_SummaryPI[[#This Row],[Quantity]],Table_PI[[#This Row],[List 1]],Table_PI[[#This Row],[List 2]],Table_PI[[#This Row],[List 3]],Table_PI[[#This Row],[Size]],Table_PI[[#This Row],[Input 1]],Table_PI[[#This Row],[Input 2]],Table_PI[[#This Row],[Input 3]],Table_PI[[#This Row],[Input 4]],'Customer Information'!$AR$12,201,ROW()),\"\"),\"\")","v":""}]
[{"$f":"Table_PI[[#This Row],[Line No.]]","v":""},{"$f":"IF(Table_SummaryPI[[#This Row],[MeassureCategory]]<>\"\",CONCATENATE(Table_SummaryPI[[#This Row],[MeassureCategory]],  \" - \", Table_SummaryPI[[#This Row],[ProposedMeasureCategory]],  \" - \", TEXT(Table_SummaryPI[[#This Row],[Size]],\"#,##0.00\"),\" \",Table_SummaryPI[[#This Row],[SizeUnit]]),\"\")","v":""},{"$f":"SUBSTITUTE(Table_PI[[#This Row],[Measure]],\"     \",\"\",1)","v":""},{"$f":"IF(Table_PI[[#This Row],[List 1]]<>\"\",Table_PI[[#This Row],[List 1]],\"\")","v":""},{"$f":"IF(Table_PI[[#This Row],[List 2]]<>\"\",Table_PI[[#This Row],[List 2]],\"\")","v":""},{"$f":"IF(Table_PI[[#This Row],[List 3]]<>\"\",Table_PI[[#This Row],[List 3]],\"\")","v":""},{"$f":"IF(Table_PI[[#This Row],[Manufacturer]]=\"\",\"\",Table_PI[[#This Row],[Manufacturer]])","v":""},{"$f":"IF(Table_PI[[#This Row],[Model Number]]=\"\",\"\",Table_PI[[#This Row],[Model Number]])","v":""},{"$f":"IF(Table_PI[[#This Row],[Serial Number(s)]]=\"\",\"\",Table_PI[[#This Row],[Serial Number(s)]])","v":""},null,{"$f":"IF(Table_PI[[#This Row],[Size]]=\"\",\"\",Table_PI[[#This Row],[Size]])","v":""},null,{"$f":"IFERROR(IF(AND(MeasureCalc(Table_PI[[#This Row],[Hide:\nFormula Name]],Table_SummaryPI[[#This Row],[Quantity]],Table_PI[[#This Row],[List 1]],Table_PI[[#This Row],[List 2]],Table_PI[[#This Row],[List 3]],Table_PI[[#This Row],[Size]],Table_PI[[#This Row],[Input 1]],Table_PI[[#This Row],[Input 2]],Table_PI[[#This Row],[Input 3]],Table_PI[[#This Row],[Input 4]],'Customer Information'!$AR$12,100,ROW())<>0,MeasureCalc(Table_PI[[#This Row],[Hide:\nFormula Name]],Table_SummaryPI[[#This Row],[Quantity]],Table_PI[[#This Row],[List 1]],Table_PI[[#This Row],[List 2]],Table_PI[[#This Row],[List 3]],Table_PI[[#This Row],[Size]],Table_PI[[#This Row],[Input 1]],Table_PI[[#This Row],[Input 2]],Table_PI[[#This Row],[Input 3]],Table_PI[[#This Row],[Input 4]],'Customer Information'!$AR$12,100,ROW())<>\"No Rebate\"),MeasureCalc(Table_PI[[#This Row],[Hide:\nFormula Name]],Table_SummaryPI[[#This Row],[Quantity]],Table_PI[[#This Row],[List 1]],Table_PI[[#This Row],[List 2]],Table_PI[[#This Row],[List 3]],Table_PI[[#This Row],[Size]],Table_PI[[#This Row],[Input 1]],Table_PI[[#This Row],[Input 2]],Table_PI[[#This Row],[Input 3]],Table_PI[[#This Row],[Input 4]],'Customer Information'!$AR$12,100,ROW()),\"\"),\"\")","v":""},{"$f":"IF(Table_PI[[#This Row],[Input 1]]<>\"\",Table_PI[[#This Row],[Input 1]],\"\")","v":""},null,{"$f":"IFERROR(IF(AND(MeasureCalc(Table_PI[[#This Row],[Hide:\nFormula Name]],Table_SummaryPI[[#This Row],[Quantity]],Table_PI[[#This Row],[List 1]],Table_PI[[#This Row],[List 2]],Table_PI[[#This Row],[List 3]],Table_PI[[#This Row],[Size]],Table_PI[[#This Row],[Input 1]],Table_PI[[#This Row],[Input 2]],Table_PI[[#This Row],[Input 3]],Table_PI[[#This Row],[Input 4]],'Customer Information'!$AR$12,101,ROW())<>0,MeasureCalc(Table_PI[[#This Row],[Hide:\nFormula Name]],Table_SummaryPI[[#This Row],[Quantity]],Table_PI[[#This Row],[List 1]],Table_PI[[#This Row],[List 2]],Table_PI[[#This Row],[List 3]],Table_PI[[#This Row],[Size]],Table_PI[[#This Row],[Input 1]],Table_PI[[#This Row],[Input 2]],Table_PI[[#This Row],[Input 3]],Table_PI[[#This Row],[Input 4]],'Customer Information'!$AR$12,101,ROW())<>\"No Rebate\"),MeasureCalc(Table_PI[[#This Row],[Hide:\nFormula Name]],Table_SummaryPI[[#This Row],[Quantity]],Table_PI[[#This Row],[List 1]],Table_PI[[#This Row],[List 2]],Table_PI[[#This Row],[List 3]],Table_PI[[#This Row],[Size]],Table_PI[[#This Row],[Input 1]],Table_PI[[#This Row],[Input 2]],Table_PI[[#This Row],[Input 3]],Table_PI[[#This Row],[Input 4]],'Customer Information'!$AR$12,101,ROW()),\"\"),\"\")","v":""},{"$f":"IF(Table_PI[[#This Row],[Input 2]]<>\"\",Table_PI[[#This Row],[Input 2]],\"\")","v":""},null,{"$f":"IFERROR(IF(AND(MeasureCalc(Table_PI[[#This Row],[Hide:\nFormula Name]],Table_SummaryPI[[#This Row],[Quantity]],Table_PI[[#This Row],[List 1]],Table_PI[[#This Row],[List 2]],Table_PI[[#This Row],[List 3]],Table_PI[[#This Row],[Size]],Table_PI[[#This Row],[Input 1]],Table_PI[[#This Row],[Input 2]],Table_PI[[#This Row],[Input 3]],Table_PI[[#This Row],[Input 4]],'Customer Information'!$AR$12,102,ROW())<>0,MeasureCalc(Table_PI[[#This Row],[Hide:\nFormula Name]],Table_SummaryPI[[#This Row],[Quantity]],Table_PI[[#This Row],[List 1]],Table_PI[[#This Row],[List 2]],Table_PI[[#This Row],[List 3]],Table_PI[[#This Row],[Size]],Table_PI[[#This Row],[Input 1]],Table_PI[[#This Row],[Input 2]],Table_PI[[#This Row],[Input 3]],Table_PI[[#This Row],[Input 4]],'Customer Information'!$AR$12,102,ROW())<>\"No Rebate\"),MeasureCalc(Table_PI[[#This Row],[Hide:\nFormula Name]],Table_SummaryPI[[#This Row],[Quantity]],Table_PI[[#This Row],[List 1]],Table_PI[[#This Row],[List 2]],Table_PI[[#This Row],[List 3]],Table_PI[[#This Row],[Size]],Table_PI[[#This Row],[Input 1]],Table_PI[[#This Row],[Input 2]],Table_PI[[#This Row],[Input 3]],Table_PI[[#This Row],[Input 4]],'Customer Information'!$AR$12,102,ROW()),\"\"),\"\")","v":""},{"$f":"IF(Table_PI[[#This Row],[Input 3]]<>\"\",Table_PI[[#This Row],[Input 3]],\"\")","v":""},null,{"$f":"IFERROR(IF(AND(MeasureCalc(Table_PI[[#This Row],[Hide:\nFormula Name]],Table_SummaryPI[[#This Row],[Quantity]],Table_PI[[#This Row],[List 1]],Table_PI[[#This Row],[List 2]],Table_PI[[#This Row],[List 3]],Table_PI[[#This Row],[Size]],Table_PI[[#This Row],[Input 1]],Table_PI[[#This Row],[Input 2]],Table_PI[[#This Row],[Input 3]],Table_PI[[#This Row],[Input 4]],'Customer Information'!$AR$12,103,ROW())<>0,MeasureCalc(Table_PI[[#This Row],[Hide:\nFormula Name]],Table_SummaryPI[[#This Row],[Quantity]],Table_PI[[#This Row],[List 1]],Table_PI[[#This Row],[List 2]],Table_PI[[#This Row],[List 3]],Table_PI[[#This Row],[Size]],Table_PI[[#This Row],[Input 1]],Table_PI[[#This Row],[Input 2]],Table_PI[[#This Row],[Input 3]],Table_PI[[#This Row],[Input 4]],'Customer Information'!$AR$12,103,ROW())<>\"No Rebate\"),MeasureCalc(Table_PI[[#This Row],[Hide:\nFormula Name]],Table_SummaryPI[[#This Row],[Quantity]],Table_PI[[#This Row],[List 1]],Table_PI[[#This Row],[List 2]],Table_PI[[#This Row],[List 3]],Table_PI[[#This Row],[Size]],Table_PI[[#This Row],[Input 1]],Table_PI[[#This Row],[Input 2]],Table_PI[[#This Row],[Input 3]],Table_PI[[#This Row],[Input 4]],'Customer Information'!$AR$12,103,ROW()),\"\"),\"\")","v":""},{"$f":"IF(Table_PI[[#This Row],[Input 4]]<>\"\",Table_PI[[#This Row],[Input 4]],\"\")","v":""},{"$f":"IF(Table_PI[[#This Row],[Quantity]]=\"\",\"\",Table_PI[[#This Row],[Quantity]])","v":""},{"$f":"IF(Table_PI[[#This Row],[Notes]]=\"\",\"\",Table_PI[[#This Row],[Notes]])","v":""},{"$f":"IF(OR(Table_PI[[#This Row],[Hide:\nBaseline kWh]]=\"\",Table_PI[[#This Row],[Hide:\nBaseline kWh]]=0),\"\",Table_PI[[#This Row],[Hide:\nBaseline kWh]])","v":""},{"$f":"IF(OR(Table_PI[[#This Row],[Hide:\nBaseline kW]]=\"\",Table_PI[[#This Row],[Hide:\nBaseline kW]]=0),\"\",Table_PI[[#This Row],[Hide:\nBaseline kW]])","v":""},{"$f":"IF(OR(Table_PI[[#This Row],[Hide:\nProposed kWh]]=\"\",Table_PI[[#This Row],[Hide:\nProposed kWh]]=0),\"\",Table_PI[[#This Row],[Hide:\nProposed kWh]])","v":""},{"$f":"IF(OR(Table_PI[[#This Row],[Hide:\nProposed kW]]=\"\",Table_PI[[#This Row],[Hide:\nProposed kW]]=0),\"\",Table_PI[[#This Row],[Hide:\nProposed kW]])","v":""},{"$f":"IF(OR(Table_PI[[#This Row],[Rebate]]=\"\",Table_PI[[#This Row],[Rebate]]=0),\"\",Table_PI[[#This Row],[Rebate]])","v":""},{"$f":"IF(OR(Table_PI[[#This Row],[Hide:\nIncremental Cost]]=\"\",Table_PI[[#This Row],[Hide:\nIncremental Cost]]=0),\"\",Table_PI[[#This Row],[Hide:\nIncremental Cost]])","v":""},{"$f":"IFERROR(IF(Table_SummaryPI[[#This Row],[kWhSavings]]=\"\",\"\",ROUND(Table_SummaryPI[[#This Row],[kWhSavings]]/$AG$401*'Customer Information'!$BC$17,2)),0)","v":""},{"$f":"IF(OR(Table_PI[[#This Row],[Annual kWh]]=\"\",Table_PI[[#This Row],[Annual kWh]]=0),\"\",Table_PI[[#This Row],[Annual kWh]])","v":""},{"$f":"IF(OR(Table_PI[[#This Row],[Peak kW]]=\"\",Table_PI[[#This Row],[Peak kW]]=0),\"\",Table_PI[[#This Row],[Peak kW]])","v":""},{"$f":"IFERROR(IF(Table_SummaryPI[[#This Row],[kWhSavings]]=\"\",\"\",$AU$9*Table_SummaryPI[[#This Row],[kWhSavings]]),0)","v":""},{"$f":"IFERROR(IF(Table_SummaryPI[[#This Row],[kWhSavings]]=\"\",\"\",$AU$14*Table_SummaryPI[[#This Row],[kWhSavings]]),0)","v":""},{"$f":"IFERROR(IF(Table_SummaryPI[[#This Row],[kWhSavings]]=\"\",\"\",$AU$18*Table_SummaryPI[[#This Row],[kWhSavings]]),0)","v":""},{"$f":"IFERROR(IF(Table_SummaryPI[[#This Row],[kWhSavings]]=\"\",\"\",$AU$22*Table_SummaryPI[[#This Row],[kWhSavings]]),0)","v":""},{"$f":"IFERROR(IF(MeasureCalc(Table_PI[[#This Row],[Hide:\nFormula Name]],Table_SummaryPI[[#This Row],[Quantity]],Table_PI[[#This Row],[List 1]],Table_PI[[#This Row],[List 2]],Table_PI[[#This Row],[List 3]],Table_PI[[#This Row],[Size]],Table_PI[[#This Row],[Input 1]],Table_PI[[#This Row],[Input 2]],Table_PI[[#This Row],[Input 3]],Table_PI[[#This Row],[Input 4]],'Customer Information'!$AR$12,200,ROW())<>\"No Rebate\",MeasureCalc(Table_PI[[#This Row],[Hide:\nFormula Name]],Table_SummaryPI[[#This Row],[Quantity]],Table_PI[[#This Row],[List 1]],Table_PI[[#This Row],[List 2]],Table_PI[[#This Row],[List 3]],Table_PI[[#This Row],[Size]],Table_PI[[#This Row],[Input 1]],Table_PI[[#This Row],[Input 2]],Table_PI[[#This Row],[Input 3]],Table_PI[[#This Row],[Input 4]],'Customer Information'!$AR$12,200,ROW()),\"\"),\"\")","v":""},{"$f":"IFERROR(IF(MeasureCalc(Table_PI[[#This Row],[Hide:\nFormula Name]],Table_SummaryPI[[#This Row],[Quantity]],Table_PI[[#This Row],[List 1]],Table_PI[[#This Row],[List 2]],Table_PI[[#This Row],[List 3]],Table_PI[[#This Row],[Size]],Table_PI[[#This Row],[Input 1]],Table_PI[[#This Row],[Input 2]],Table_PI[[#This Row],[Input 3]],Table_PI[[#This Row],[Input 4]],'Customer Information'!$AR$12,201,ROW())<>\"No Rebate\",MeasureCalc(Table_PI[[#This Row],[Hide:\nFormula Name]],Table_SummaryPI[[#This Row],[Quantity]],Table_PI[[#This Row],[List 1]],Table_PI[[#This Row],[List 2]],Table_PI[[#This Row],[List 3]],Table_PI[[#This Row],[Size]],Table_PI[[#This Row],[Input 1]],Table_PI[[#This Row],[Input 2]],Table_PI[[#This Row],[Input 3]],Table_PI[[#This Row],[Input 4]],'Customer Information'!$AR$12,201,ROW()),\"\"),\"\")","v":""}]
[{"$f":"Table_PI[[#This Row],[Line No.]]","v":""},{"$f":"IF(Table_SummaryPI[[#This Row],[MeassureCategory]]<>\"\",CONCATENATE(Table_SummaryPI[[#This Row],[MeassureCategory]],  \" - \", Table_SummaryPI[[#This Row],[ProposedMeasureCategory]],  \" - \", TEXT(Table_SummaryPI[[#This Row],[Size]],\"#,##0.00\"),\" \",Table_SummaryPI[[#This Row],[SizeUnit]]),\"\")","v":""},{"$f":"SUBSTITUTE(Table_PI[[#This Row],[Measure]],\"     \",\"\",1)","v":""},{"$f":"IF(Table_PI[[#This Row],[List 1]]<>\"\",Table_PI[[#This Row],[List 1]],\"\")","v":""},{"$f":"IF(Table_PI[[#This Row],[List 2]]<>\"\",Table_PI[[#This Row],[List 2]],\"\")","v":""},{"$f":"IF(Table_PI[[#This Row],[List 3]]<>\"\",Table_PI[[#This Row],[List 3]],\"\")","v":""},{"$f":"IF(Table_PI[[#This Row],[Manufacturer]]=\"\",\"\",Table_PI[[#This Row],[Manufacturer]])","v":""},{"$f":"IF(Table_PI[[#This Row],[Model Number]]=\"\",\"\",Table_PI[[#This Row],[Model Number]])","v":""},{"$f":"IF(Table_PI[[#This Row],[Serial Number(s)]]=\"\",\"\",Table_PI[[#This Row],[Serial Number(s)]])","v":""},null,{"$f":"IF(Table_PI[[#This Row],[Size]]=\"\",\"\",Table_PI[[#This Row],[Size]])","v":""},null,{"$f":"IFERROR(IF(AND(MeasureCalc(Table_PI[[#This Row],[Hide:\nFormula Name]],Table_SummaryPI[[#This Row],[Quantity]],Table_PI[[#This Row],[List 1]],Table_PI[[#This Row],[List 2]],Table_PI[[#This Row],[List 3]],Table_PI[[#This Row],[Size]],Table_PI[[#This Row],[Input 1]],Table_PI[[#This Row],[Input 2]],Table_PI[[#This Row],[Input 3]],Table_PI[[#This Row],[Input 4]],'Customer Information'!$AR$12,100,ROW())<>0,MeasureCalc(Table_PI[[#This Row],[Hide:\nFormula Name]],Table_SummaryPI[[#This Row],[Quantity]],Table_PI[[#This Row],[List 1]],Table_PI[[#This Row],[List 2]],Table_PI[[#This Row],[List 3]],Table_PI[[#This Row],[Size]],Table_PI[[#This Row],[Input 1]],Table_PI[[#This Row],[Input 2]],Table_PI[[#This Row],[Input 3]],Table_PI[[#This Row],[Input 4]],'Customer Information'!$AR$12,100,ROW())<>\"No Rebate\"),MeasureCalc(Table_PI[[#This Row],[Hide:\nFormula Name]],Table_SummaryPI[[#This Row],[Quantity]],Table_PI[[#This Row],[List 1]],Table_PI[[#This Row],[List 2]],Table_PI[[#This Row],[List 3]],Table_PI[[#This Row],[Size]],Table_PI[[#This Row],[Input 1]],Table_PI[[#This Row],[Input 2]],Table_PI[[#This Row],[Input 3]],Table_PI[[#This Row],[Input 4]],'Customer Information'!$AR$12,100,ROW()),\"\"),\"\")","v":""},{"$f":"IF(Table_PI[[#This Row],[Input 1]]<>\"\",Table_PI[[#This Row],[Input 1]],\"\")","v":""},null,{"$f":"IFERROR(IF(AND(MeasureCalc(Table_PI[[#This Row],[Hide:\nFormula Name]],Table_SummaryPI[[#This Row],[Quantity]],Table_PI[[#This Row],[List 1]],Table_PI[[#This Row],[List 2]],Table_PI[[#This Row],[List 3]],Table_PI[[#This Row],[Size]],Table_PI[[#This Row],[Input 1]],Table_PI[[#This Row],[Input 2]],Table_PI[[#This Row],[Input 3]],Table_PI[[#This Row],[Input 4]],'Customer Information'!$AR$12,101,ROW())<>0,MeasureCalc(Table_PI[[#This Row],[Hide:\nFormula Name]],Table_SummaryPI[[#This Row],[Quantity]],Table_PI[[#This Row],[List 1]],Table_PI[[#This Row],[List 2]],Table_PI[[#This Row],[List 3]],Table_PI[[#This Row],[Size]],Table_PI[[#This Row],[Input 1]],Table_PI[[#This Row],[Input 2]],Table_PI[[#This Row],[Input 3]],Table_PI[[#This Row],[Input 4]],'Customer Information'!$AR$12,101,ROW())<>\"No Rebate\"),MeasureCalc(Table_PI[[#This Row],[Hide:\nFormula Name]],Table_SummaryPI[[#This Row],[Quantity]],Table_PI[[#This Row],[List 1]],Table_PI[[#This Row],[List 2]],Table_PI[[#This Row],[List 3]],Table_PI[[#This Row],[Size]],Table_PI[[#This Row],[Input 1]],Table_PI[[#This Row],[Input 2]],Table_PI[[#This Row],[Input 3]],Table_PI[[#This Row],[Input 4]],'Customer Information'!$AR$12,101,ROW()),\"\"),\"\")","v":""},{"$f":"IF(Table_PI[[#This Row],[Input 2]]<>\"\",Table_PI[[#This Row],[Input 2]],\"\")","v":""},null,{"$f":"IFERROR(IF(AND(MeasureCalc(Table_PI[[#This Row],[Hide:\nFormula Name]],Table_SummaryPI[[#This Row],[Quantity]],Table_PI[[#This Row],[List 1]],Table_PI[[#This Row],[List 2]],Table_PI[[#This Row],[List 3]],Table_PI[[#This Row],[Size]],Table_PI[[#This Row],[Input 1]],Table_PI[[#This Row],[Input 2]],Table_PI[[#This Row],[Input 3]],Table_PI[[#This Row],[Input 4]],'Customer Information'!$AR$12,102,ROW())<>0,MeasureCalc(Table_PI[[#This Row],[Hide:\nFormula Name]],Table_SummaryPI[[#This Row],[Quantity]],Table_PI[[#This Row],[List 1]],Table_PI[[#This Row],[List 2]],Table_PI[[#This Row],[List 3]],Table_PI[[#This Row],[Size]],Table_PI[[#This Row],[Input 1]],Table_PI[[#This Row],[Input 2]],Table_PI[[#This Row],[Input 3]],Table_PI[[#This Row],[Input 4]],'Customer Information'!$AR$12,102,ROW())<>\"No Rebate\"),MeasureCalc(Table_PI[[#This Row],[Hide:\nFormula Name]],Table_SummaryPI[[#This Row],[Quantity]],Table_PI[[#This Row],[List 1]],Table_PI[[#This Row],[List 2]],Table_PI[[#This Row],[List 3]],Table_PI[[#This Row],[Size]],Table_PI[[#This Row],[Input 1]],Table_PI[[#This Row],[Input 2]],Table_PI[[#This Row],[Input 3]],Table_PI[[#This Row],[Input 4]],'Customer Information'!$AR$12,102,ROW()),\"\"),\"\")","v":""},{"$f":"IF(Table_PI[[#This Row],[Input 3]]<>\"\",Table_PI[[#This Row],[Input 3]],\"\")","v":""},null,{"$f":"IFERROR(IF(AND(MeasureCalc(Table_PI[[#This Row],[Hide:\nFormula Name]],Table_SummaryPI[[#This Row],[Quantity]],Table_PI[[#This Row],[List 1]],Table_PI[[#This Row],[List 2]],Table_PI[[#This Row],[List 3]],Table_PI[[#This Row],[Size]],Table_PI[[#This Row],[Input 1]],Table_PI[[#This Row],[Input 2]],Table_PI[[#This Row],[Input 3]],Table_PI[[#This Row],[Input 4]],'Customer Information'!$AR$12,103,ROW())<>0,MeasureCalc(Table_PI[[#This Row],[Hide:\nFormula Name]],Table_SummaryPI[[#This Row],[Quantity]],Table_PI[[#This Row],[List 1]],Table_PI[[#This Row],[List 2]],Table_PI[[#This Row],[List 3]],Table_PI[[#This Row],[Size]],Table_PI[[#This Row],[Input 1]],Table_PI[[#This Row],[Input 2]],Table_PI[[#This Row],[Input 3]],Table_PI[[#This Row],[Input 4]],'Customer Information'!$AR$12,103,ROW())<>\"No Rebate\"),MeasureCalc(Table_PI[[#This Row],[Hide:\nFormula Name]],Table_SummaryPI[[#This Row],[Quantity]],Table_PI[[#This Row],[List 1]],Table_PI[[#This Row],[List 2]],Table_PI[[#This Row],[List 3]],Table_PI[[#This Row],[Size]],Table_PI[[#This Row],[Input 1]],Table_PI[[#This Row],[Input 2]],Table_PI[[#This Row],[Input 3]],Table_PI[[#This Row],[Input 4]],'Customer Information'!$AR$12,103,ROW()),\"\"),\"\")","v":""},{"$f":"IF(Table_PI[[#This Row],[Input 4]]<>\"\",Table_PI[[#This Row],[Input 4]],\"\")","v":""},{"$f":"IF(Table_PI[[#This Row],[Quantity]]=\"\",\"\",Table_PI[[#This Row],[Quantity]])","v":""},{"$f":"IF(Table_PI[[#This Row],[Notes]]=\"\",\"\",Table_PI[[#This Row],[Notes]])","v":""},{"$f":"IF(OR(Table_PI[[#This Row],[Hide:\nBaseline kWh]]=\"\",Table_PI[[#This Row],[Hide:\nBaseline kWh]]=0),\"\",Table_PI[[#This Row],[Hide:\nBaseline kWh]])","v":""},{"$f":"IF(OR(Table_PI[[#This Row],[Hide:\nBaseline kW]]=\"\",Table_PI[[#This Row],[Hide:\nBaseline kW]]=0),\"\",Table_PI[[#This Row],[Hide:\nBaseline kW]])","v":""},{"$f":"IF(OR(Table_PI[[#This Row],[Hide:\nProposed kWh]]=\"\",Table_PI[[#This Row],[Hide:\nProposed kWh]]=0),\"\",Table_PI[[#This Row],[Hide:\nProposed kWh]])","v":""},{"$f":"IF(OR(Table_PI[[#This Row],[Hide:\nProposed kW]]=\"\",Table_PI[[#This Row],[Hide:\nProposed kW]]=0),\"\",Table_PI[[#This Row],[Hide:\nProposed kW]])","v":""},{"$f":"IF(OR(Table_PI[[#This Row],[Rebate]]=\"\",Table_PI[[#This Row],[Rebate]]=0),\"\",Table_PI[[#This Row],[Rebate]])","v":""},{"$f":"IF(OR(Table_PI[[#This Row],[Hide:\nIncremental Cost]]=\"\",Table_PI[[#This Row],[Hide:\nIncremental Cost]]=0),\"\",Table_PI[[#This Row],[Hide:\nIncremental Cost]])","v":""},{"$f":"IFERROR(IF(Table_SummaryPI[[#This Row],[kWhSavings]]=\"\",\"\",ROUND(Table_SummaryPI[[#This Row],[kWhSavings]]/$AG$401*'Customer Information'!$BC$17,2)),0)","v":""},{"$f":"IF(OR(Table_PI[[#This Row],[Annual kWh]]=\"\",Table_PI[[#This Row],[Annual kWh]]=0),\"\",Table_PI[[#This Row],[Annual kWh]])","v":""},{"$f":"IF(OR(Table_PI[[#This Row],[Peak kW]]=\"\",Table_PI[[#This Row],[Peak kW]]=0),\"\",Table_PI[[#This Row],[Peak kW]])","v":""},{"$f":"IFERROR(IF(Table_SummaryPI[[#This Row],[kWhSavings]]=\"\",\"\",$AU$9*Table_SummaryPI[[#This Row],[kWhSavings]]),0)","v":""},{"$f":"IFERROR(IF(Table_SummaryPI[[#This Row],[kWhSavings]]=\"\",\"\",$AU$14*Table_SummaryPI[[#This Row],[kWhSavings]]),0)","v":""},{"$f":"IFERROR(IF(Table_SummaryPI[[#This Row],[kWhSavings]]=\"\",\"\",$AU$18*Table_SummaryPI[[#This Row],[kWhSavings]]),0)","v":""},{"$f":"IFERROR(IF(Table_SummaryPI[[#This Row],[kWhSavings]]=\"\",\"\",$AU$22*Table_SummaryPI[[#This Row],[kWhSavings]]),0)","v":""},{"$f":"IFERROR(IF(MeasureCalc(Table_PI[[#This Row],[Hide:\nFormula Name]],Table_SummaryPI[[#This Row],[Quantity]],Table_PI[[#This Row],[List 1]],Table_PI[[#This Row],[List 2]],Table_PI[[#This Row],[List 3]],Table_PI[[#This Row],[Size]],Table_PI[[#This Row],[Input 1]],Table_PI[[#This Row],[Input 2]],Table_PI[[#This Row],[Input 3]],Table_PI[[#This Row],[Input 4]],'Customer Information'!$AR$12,200,ROW())<>\"No Rebate\",MeasureCalc(Table_PI[[#This Row],[Hide:\nFormula Name]],Table_SummaryPI[[#This Row],[Quantity]],Table_PI[[#This Row],[List 1]],Table_PI[[#This Row],[List 2]],Table_PI[[#This Row],[List 3]],Table_PI[[#This Row],[Size]],Table_PI[[#This Row],[Input 1]],Table_PI[[#This Row],[Input 2]],Table_PI[[#This Row],[Input 3]],Table_PI[[#This Row],[Input 4]],'Customer Information'!$AR$12,200,ROW()),\"\"),\"\")","v":""},{"$f":"IFERROR(IF(MeasureCalc(Table_PI[[#This Row],[Hide:\nFormula Name]],Table_SummaryPI[[#This Row],[Quantity]],Table_PI[[#This Row],[List 1]],Table_PI[[#This Row],[List 2]],Table_PI[[#This Row],[List 3]],Table_PI[[#This Row],[Size]],Table_PI[[#This Row],[Input 1]],Table_PI[[#This Row],[Input 2]],Table_PI[[#This Row],[Input 3]],Table_PI[[#This Row],[Input 4]],'Customer Information'!$AR$12,201,ROW())<>\"No Rebate\",MeasureCalc(Table_PI[[#This Row],[Hide:\nFormula Name]],Table_SummaryPI[[#This Row],[Quantity]],Table_PI[[#This Row],[List 1]],Table_PI[[#This Row],[List 2]],Table_PI[[#This Row],[List 3]],Table_PI[[#This Row],[Size]],Table_PI[[#This Row],[Input 1]],Table_PI[[#This Row],[Input 2]],Table_PI[[#This Row],[Input 3]],Table_PI[[#This Row],[Input 4]],'Customer Information'!$AR$12,201,ROW()),\"\"),\"\")","v":""}]
[{"$f":"Table_PI[[#This Row],[Line No.]]","v":""},{"$f":"IF(Table_SummaryPI[[#This Row],[MeassureCategory]]<>\"\",CONCATENATE(Table_SummaryPI[[#This Row],[MeassureCategory]],  \" - \", Table_SummaryPI[[#This Row],[ProposedMeasureCategory]],  \" - \", TEXT(Table_SummaryPI[[#This Row],[Size]],\"#,##0.00\"),\" \",Table_SummaryPI[[#This Row],[SizeUnit]]),\"\")","v":""},{"$f":"SUBSTITUTE(Table_PI[[#This Row],[Measure]],\"     \",\"\",1)","v":""},{"$f":"IF(Table_PI[[#This Row],[List 1]]<>\"\",Table_PI[[#This Row],[List 1]],\"\")","v":""},{"$f":"IF(Table_PI[[#This Row],[List 2]]<>\"\",Table_PI[[#This Row],[List 2]],\"\")","v":""},{"$f":"IF(Table_PI[[#This Row],[List 3]]<>\"\",Table_PI[[#This Row],[List 3]],\"\")","v":""},{"$f":"IF(Table_PI[[#This Row],[Manufacturer]]=\"\",\"\",Table_PI[[#This Row],[Manufacturer]])","v":""},{"$f":"IF(Table_PI[[#This Row],[Model Number]]=\"\",\"\",Table_PI[[#This Row],[Model Number]])","v":""},{"$f":"IF(Table_PI[[#This Row],[Serial Number(s)]]=\"\",\"\",Table_PI[[#This Row],[Serial Number(s)]])","v":""},null,{"$f":"IF(Table_PI[[#This Row],[Size]]=\"\",\"\",Table_PI[[#This Row],[Size]])","v":""},null,{"$f":"IFERROR(IF(AND(MeasureCalc(Table_PI[[#This Row],[Hide:\nFormula Name]],Table_SummaryPI[[#This Row],[Quantity]],Table_PI[[#This Row],[List 1]],Table_PI[[#This Row],[List 2]],Table_PI[[#This Row],[List 3]],Table_PI[[#This Row],[Size]],Table_PI[[#This Row],[Input 1]],Table_PI[[#This Row],[Input 2]],Table_PI[[#This Row],[Input 3]],Table_PI[[#This Row],[Input 4]],'Customer Information'!$AR$12,100,ROW())<>0,MeasureCalc(Table_PI[[#This Row],[Hide:\nFormula Name]],Table_SummaryPI[[#This Row],[Quantity]],Table_PI[[#This Row],[List 1]],Table_PI[[#This Row],[List 2]],Table_PI[[#This Row],[List 3]],Table_PI[[#This Row],[Size]],Table_PI[[#This Row],[Input 1]],Table_PI[[#This Row],[Input 2]],Table_PI[[#This Row],[Input 3]],Table_PI[[#This Row],[Input 4]],'Customer Information'!$AR$12,100,ROW())<>\"No Rebate\"),MeasureCalc(Table_PI[[#This Row],[Hide:\nFormula Name]],Table_SummaryPI[[#This Row],[Quantity]],Table_PI[[#This Row],[List 1]],Table_PI[[#This Row],[List 2]],Table_PI[[#This Row],[List 3]],Table_PI[[#This Row],[Size]],Table_PI[[#This Row],[Input 1]],Table_PI[[#This Row],[Input 2]],Table_PI[[#This Row],[Input 3]],Table_PI[[#This Row],[Input 4]],'Customer Information'!$AR$12,100,ROW()),\"\"),\"\")","v":""},{"$f":"IF(Table_PI[[#This Row],[Input 1]]<>\"\",Table_PI[[#This Row],[Input 1]],\"\")","v":""},null,{"$f":"IFERROR(IF(AND(MeasureCalc(Table_PI[[#This Row],[Hide:\nFormula Name]],Table_SummaryPI[[#This Row],[Quantity]],Table_PI[[#This Row],[List 1]],Table_PI[[#This Row],[List 2]],Table_PI[[#This Row],[List 3]],Table_PI[[#This Row],[Size]],Table_PI[[#This Row],[Input 1]],Table_PI[[#This Row],[Input 2]],Table_PI[[#This Row],[Input 3]],Table_PI[[#This Row],[Input 4]],'Customer Information'!$AR$12,101,ROW())<>0,MeasureCalc(Table_PI[[#This Row],[Hide:\nFormula Name]],Table_SummaryPI[[#This Row],[Quantity]],Table_PI[[#This Row],[List 1]],Table_PI[[#This Row],[List 2]],Table_PI[[#This Row],[List 3]],Table_PI[[#This Row],[Size]],Table_PI[[#This Row],[Input 1]],Table_PI[[#This Row],[Input 2]],Table_PI[[#This Row],[Input 3]],Table_PI[[#This Row],[Input 4]],'Customer Information'!$AR$12,101,ROW())<>\"No Rebate\"),MeasureCalc(Table_PI[[#This Row],[Hide:\nFormula Name]],Table_SummaryPI[[#This Row],[Quantity]],Table_PI[[#This Row],[List 1]],Table_PI[[#This Row],[List 2]],Table_PI[[#This Row],[List 3]],Table_PI[[#This Row],[Size]],Table_PI[[#This Row],[Input 1]],Table_PI[[#This Row],[Input 2]],Table_PI[[#This Row],[Input 3]],Table_PI[[#This Row],[Input 4]],'Customer Information'!$AR$12,101,ROW()),\"\"),\"\")","v":""},{"$f":"IF(Table_PI[[#This Row],[Input 2]]<>\"\",Table_PI[[#This Row],[Input 2]],\"\")","v":""},null,{"$f":"IFERROR(IF(AND(MeasureCalc(Table_PI[[#This Row],[Hide:\nFormula Name]],Table_SummaryPI[[#This Row],[Quantity]],Table_PI[[#This Row],[List 1]],Table_PI[[#This Row],[List 2]],Table_PI[[#This Row],[List 3]],Table_PI[[#This Row],[Size]],Table_PI[[#This Row],[Input 1]],Table_PI[[#This Row],[Input 2]],Table_PI[[#This Row],[Input 3]],Table_PI[[#This Row],[Input 4]],'Customer Information'!$AR$12,102,ROW())<>0,MeasureCalc(Table_PI[[#This Row],[Hide:\nFormula Name]],Table_SummaryPI[[#This Row],[Quantity]],Table_PI[[#This Row],[List 1]],Table_PI[[#This Row],[List 2]],Table_PI[[#This Row],[List 3]],Table_PI[[#This Row],[Size]],Table_PI[[#This Row],[Input 1]],Table_PI[[#This Row],[Input 2]],Table_PI[[#This Row],[Input 3]],Table_PI[[#This Row],[Input 4]],'Customer Information'!$AR$12,102,ROW())<>\"No Rebate\"),MeasureCalc(Table_PI[[#This Row],[Hide:\nFormula Name]],Table_SummaryPI[[#This Row],[Quantity]],Table_PI[[#This Row],[List 1]],Table_PI[[#This Row],[List 2]],Table_PI[[#This Row],[List 3]],Table_PI[[#This Row],[Size]],Table_PI[[#This Row],[Input 1]],Table_PI[[#This Row],[Input 2]],Table_PI[[#This Row],[Input 3]],Table_PI[[#This Row],[Input 4]],'Customer Information'!$AR$12,102,ROW()),\"\"),\"\")","v":""},{"$f":"IF(Table_PI[[#This Row],[Input 3]]<>\"\",Table_PI[[#This Row],[Input 3]],\"\")","v":""},null,{"$f":"IFERROR(IF(AND(MeasureCalc(Table_PI[[#This Row],[Hide:\nFormula Name]],Table_SummaryPI[[#This Row],[Quantity]],Table_PI[[#This Row],[List 1]],Table_PI[[#This Row],[List 2]],Table_PI[[#This Row],[List 3]],Table_PI[[#This Row],[Size]],Table_PI[[#This Row],[Input 1]],Table_PI[[#This Row],[Input 2]],Table_PI[[#This Row],[Input 3]],Table_PI[[#This Row],[Input 4]],'Customer Information'!$AR$12,103,ROW())<>0,MeasureCalc(Table_PI[[#This Row],[Hide:\nFormula Name]],Table_SummaryPI[[#This Row],[Quantity]],Table_PI[[#This Row],[List 1]],Table_PI[[#This Row],[List 2]],Table_PI[[#This Row],[List 3]],Table_PI[[#This Row],[Size]],Table_PI[[#This Row],[Input 1]],Table_PI[[#This Row],[Input 2]],Table_PI[[#This Row],[Input 3]],Table_PI[[#This Row],[Input 4]],'Customer Information'!$AR$12,103,ROW())<>\"No Rebate\"),MeasureCalc(Table_PI[[#This Row],[Hide:\nFormula Name]],Table_SummaryPI[[#This Row],[Quantity]],Table_PI[[#This Row],[List 1]],Table_PI[[#This Row],[List 2]],Table_PI[[#This Row],[List 3]],Table_PI[[#This Row],[Size]],Table_PI[[#This Row],[Input 1]],Table_PI[[#This Row],[Input 2]],Table_PI[[#This Row],[Input 3]],Table_PI[[#This Row],[Input 4]],'Customer Information'!$AR$12,103,ROW()),\"\"),\"\")","v":""},{"$f":"IF(Table_PI[[#This Row],[Input 4]]<>\"\",Table_PI[[#This Row],[Input 4]],\"\")","v":""},{"$f":"IF(Table_PI[[#This Row],[Quantity]]=\"\",\"\",Table_PI[[#This Row],[Quantity]])","v":""},{"$f":"IF(Table_PI[[#This Row],[Notes]]=\"\",\"\",Table_PI[[#This Row],[Notes]])","v":""},{"$f":"IF(OR(Table_PI[[#This Row],[Hide:\nBaseline kWh]]=\"\",Table_PI[[#This Row],[Hide:\nBaseline kWh]]=0),\"\",Table_PI[[#This Row],[Hide:\nBaseline kWh]])","v":""},{"$f":"IF(OR(Table_PI[[#This Row],[Hide:\nBaseline kW]]=\"\",Table_PI[[#This Row],[Hide:\nBaseline kW]]=0),\"\",Table_PI[[#This Row],[Hide:\nBaseline kW]])","v":""},{"$f":"IF(OR(Table_PI[[#This Row],[Hide:\nProposed kWh]]=\"\",Table_PI[[#This Row],[Hide:\nProposed kWh]]=0),\"\",Table_PI[[#This Row],[Hide:\nProposed kWh]])","v":""},{"$f":"IF(OR(Table_PI[[#This Row],[Hide:\nProposed kW]]=\"\",Table_PI[[#This Row],[Hide:\nProposed kW]]=0),\"\",Table_PI[[#This Row],[Hide:\nProposed kW]])","v":""},{"$f":"IF(OR(Table_PI[[#This Row],[Rebate]]=\"\",Table_PI[[#This Row],[Rebate]]=0),\"\",Table_PI[[#This Row],[Rebate]])","v":""},{"$f":"IF(OR(Table_PI[[#This Row],[Hide:\nIncremental Cost]]=\"\",Table_PI[[#This Row],[Hide:\nIncremental Cost]]=0),\"\",Table_PI[[#This Row],[Hide:\nIncremental Cost]])","v":""},{"$f":"IFERROR(IF(Table_SummaryPI[[#This Row],[kWhSavings]]=\"\",\"\",ROUND(Table_SummaryPI[[#This Row],[kWhSavings]]/$AG$401*'Customer Information'!$BC$17,2)),0)","v":""},{"$f":"IF(OR(Table_PI[[#This Row],[Annual kWh]]=\"\",Table_PI[[#This Row],[Annual kWh]]=0),\"\",Table_PI[[#This Row],[Annual kWh]])","v":""},{"$f":"IF(OR(Table_PI[[#This Row],[Peak kW]]=\"\",Table_PI[[#This Row],[Peak kW]]=0),\"\",Table_PI[[#This Row],[Peak kW]])","v":""},{"$f":"IFERROR(IF(Table_SummaryPI[[#This Row],[kWhSavings]]=\"\",\"\",$AU$9*Table_SummaryPI[[#This Row],[kWhSavings]]),0)","v":""},{"$f":"IFERROR(IF(Table_SummaryPI[[#This Row],[kWhSavings]]=\"\",\"\",$AU$14*Table_SummaryPI[[#This Row],[kWhSavings]]),0)","v":""},{"$f":"IFERROR(IF(Table_SummaryPI[[#This Row],[kWhSavings]]=\"\",\"\",$AU$18*Table_SummaryPI[[#This Row],[kWhSavings]]),0)","v":""},{"$f":"IFERROR(IF(Table_SummaryPI[[#This Row],[kWhSavings]]=\"\",\"\",$AU$22*Table_SummaryPI[[#This Row],[kWhSavings]]),0)","v":""},{"$f":"IFERROR(IF(MeasureCalc(Table_PI[[#This Row],[Hide:\nFormula Name]],Table_SummaryPI[[#This Row],[Quantity]],Table_PI[[#This Row],[List 1]],Table_PI[[#This Row],[List 2]],Table_PI[[#This Row],[List 3]],Table_PI[[#This Row],[Size]],Table_PI[[#This Row],[Input 1]],Table_PI[[#This Row],[Input 2]],Table_PI[[#This Row],[Input 3]],Table_PI[[#This Row],[Input 4]],'Customer Information'!$AR$12,200,ROW())<>\"No Rebate\",MeasureCalc(Table_PI[[#This Row],[Hide:\nFormula Name]],Table_SummaryPI[[#This Row],[Quantity]],Table_PI[[#This Row],[List 1]],Table_PI[[#This Row],[List 2]],Table_PI[[#This Row],[List 3]],Table_PI[[#This Row],[Size]],Table_PI[[#This Row],[Input 1]],Table_PI[[#This Row],[Input 2]],Table_PI[[#This Row],[Input 3]],Table_PI[[#This Row],[Input 4]],'Customer Information'!$AR$12,200,ROW()),\"\"),\"\")","v":""},{"$f":"IFERROR(IF(MeasureCalc(Table_PI[[#This Row],[Hide:\nFormula Name]],Table_SummaryPI[[#This Row],[Quantity]],Table_PI[[#This Row],[List 1]],Table_PI[[#This Row],[List 2]],Table_PI[[#This Row],[List 3]],Table_PI[[#This Row],[Size]],Table_PI[[#This Row],[Input 1]],Table_PI[[#This Row],[Input 2]],Table_PI[[#This Row],[Input 3]],Table_PI[[#This Row],[Input 4]],'Customer Information'!$AR$12,201,ROW())<>\"No Rebate\",MeasureCalc(Table_PI[[#This Row],[Hide:\nFormula Name]],Table_SummaryPI[[#This Row],[Quantity]],Table_PI[[#This Row],[List 1]],Table_PI[[#This Row],[List 2]],Table_PI[[#This Row],[List 3]],Table_PI[[#This Row],[Size]],Table_PI[[#This Row],[Input 1]],Table_PI[[#This Row],[Input 2]],Table_PI[[#This Row],[Input 3]],Table_PI[[#This Row],[Input 4]],'Customer Information'!$AR$12,201,ROW()),\"\"),\"\")","v":""}]
[{"$f":"Table_PI[[#This Row],[Line No.]]","v":""},{"$f":"IF(Table_SummaryPI[[#This Row],[MeassureCategory]]<>\"\",CONCATENATE(Table_SummaryPI[[#This Row],[MeassureCategory]],  \" - \", Table_SummaryPI[[#This Row],[ProposedMeasureCategory]],  \" - \", TEXT(Table_SummaryPI[[#This Row],[Size]],\"#,##0.00\"),\" \",Table_SummaryPI[[#This Row],[SizeUnit]]),\"\")","v":""},{"$f":"SUBSTITUTE(Table_PI[[#This Row],[Measure]],\"     \",\"\",1)","v":""},{"$f":"IF(Table_PI[[#This Row],[List 1]]<>\"\",Table_PI[[#This Row],[List 1]],\"\")","v":""},{"$f":"IF(Table_PI[[#This Row],[List 2]]<>\"\",Table_PI[[#This Row],[List 2]],\"\")","v":""},{"$f":"IF(Table_PI[[#This Row],[List 3]]<>\"\",Table_PI[[#This Row],[List 3]],\"\")","v":""},{"$f":"IF(Table_PI[[#This Row],[Manufacturer]]=\"\",\"\",Table_PI[[#This Row],[Manufacturer]])","v":""},{"$f":"IF(Table_PI[[#This Row],[Model Number]]=\"\",\"\",Table_PI[[#This Row],[Model Number]])","v":""},{"$f":"IF(Table_PI[[#This Row],[Serial Number(s)]]=\"\",\"\",Table_PI[[#This Row],[Serial Number(s)]])","v":""},null,{"$f":"IF(Table_PI[[#This Row],[Size]]=\"\",\"\",Table_PI[[#This Row],[Size]])","v":""},null,{"$f":"IFERROR(IF(AND(MeasureCalc(Table_PI[[#This Row],[Hide:\nFormula Name]],Table_SummaryPI[[#This Row],[Quantity]],Table_PI[[#This Row],[List 1]],Table_PI[[#This Row],[List 2]],Table_PI[[#This Row],[List 3]],Table_PI[[#This Row],[Size]],Table_PI[[#This Row],[Input 1]],Table_PI[[#This Row],[Input 2]],Table_PI[[#This Row],[Input 3]],Table_PI[[#This Row],[Input 4]],'Customer Information'!$AR$12,100,ROW())<>0,MeasureCalc(Table_PI[[#This Row],[Hide:\nFormula Name]],Table_SummaryPI[[#This Row],[Quantity]],Table_PI[[#This Row],[List 1]],Table_PI[[#This Row],[List 2]],Table_PI[[#This Row],[List 3]],Table_PI[[#This Row],[Size]],Table_PI[[#This Row],[Input 1]],Table_PI[[#This Row],[Input 2]],Table_PI[[#This Row],[Input 3]],Table_PI[[#This Row],[Input 4]],'Customer Information'!$AR$12,100,ROW())<>\"No Rebate\"),MeasureCalc(Table_PI[[#This Row],[Hide:\nFormula Name]],Table_SummaryPI[[#This Row],[Quantity]],Table_PI[[#This Row],[List 1]],Table_PI[[#This Row],[List 2]],Table_PI[[#This Row],[List 3]],Table_PI[[#This Row],[Size]],Table_PI[[#This Row],[Input 1]],Table_PI[[#This Row],[Input 2]],Table_PI[[#This Row],[Input 3]],Table_PI[[#This Row],[Input 4]],'Customer Information'!$AR$12,100,ROW()),\"\"),\"\")","v":""},{"$f":"IF(Table_PI[[#This Row],[Input 1]]<>\"\",Table_PI[[#This Row],[Input 1]],\"\")","v":""},null,{"$f":"IFERROR(IF(AND(MeasureCalc(Table_PI[[#This Row],[Hide:\nFormula Name]],Table_SummaryPI[[#This Row],[Quantity]],Table_PI[[#This Row],[List 1]],Table_PI[[#This Row],[List 2]],Table_PI[[#This Row],[List 3]],Table_PI[[#This Row],[Size]],Table_PI[[#This Row],[Input 1]],Table_PI[[#This Row],[Input 2]],Table_PI[[#This Row],[Input 3]],Table_PI[[#This Row],[Input 4]],'Customer Information'!$AR$12,101,ROW())<>0,MeasureCalc(Table_PI[[#This Row],[Hide:\nFormula Name]],Table_SummaryPI[[#This Row],[Quantity]],Table_PI[[#This Row],[List 1]],Table_PI[[#This Row],[List 2]],Table_PI[[#This Row],[List 3]],Table_PI[[#This Row],[Size]],Table_PI[[#This Row],[Input 1]],Table_PI[[#This Row],[Input 2]],Table_PI[[#This Row],[Input 3]],Table_PI[[#This Row],[Input 4]],'Customer Information'!$AR$12,101,ROW())<>\"No Rebate\"),MeasureCalc(Table_PI[[#This Row],[Hide:\nFormula Name]],Table_SummaryPI[[#This Row],[Quantity]],Table_PI[[#This Row],[List 1]],Table_PI[[#This Row],[List 2]],Table_PI[[#This Row],[List 3]],Table_PI[[#This Row],[Size]],Table_PI[[#This Row],[Input 1]],Table_PI[[#This Row],[Input 2]],Table_PI[[#This Row],[Input 3]],Table_PI[[#This Row],[Input 4]],'Customer Information'!$AR$12,101,ROW()),\"\"),\"\")","v":""},{"$f":"IF(Table_PI[[#This Row],[Input 2]]<>\"\",Table_PI[[#This Row],[Input 2]],\"\")","v":""},null,{"$f":"IFERROR(IF(AND(MeasureCalc(Table_PI[[#This Row],[Hide:\nFormula Name]],Table_SummaryPI[[#This Row],[Quantity]],Table_PI[[#This Row],[List 1]],Table_PI[[#This Row],[List 2]],Table_PI[[#This Row],[List 3]],Table_PI[[#This Row],[Size]],Table_PI[[#This Row],[Input 1]],Table_PI[[#This Row],[Input 2]],Table_PI[[#This Row],[Input 3]],Table_PI[[#This Row],[Input 4]],'Customer Information'!$AR$12,102,ROW())<>0,MeasureCalc(Table_PI[[#This Row],[Hide:\nFormula Name]],Table_SummaryPI[[#This Row],[Quantity]],Table_PI[[#This Row],[List 1]],Table_PI[[#This Row],[List 2]],Table_PI[[#This Row],[List 3]],Table_PI[[#This Row],[Size]],Table_PI[[#This Row],[Input 1]],Table_PI[[#This Row],[Input 2]],Table_PI[[#This Row],[Input 3]],Table_PI[[#This Row],[Input 4]],'Customer Information'!$AR$12,102,ROW())<>\"No Rebate\"),MeasureCalc(Table_PI[[#This Row],[Hide:\nFormula Name]],Table_SummaryPI[[#This Row],[Quantity]],Table_PI[[#This Row],[List 1]],Table_PI[[#This Row],[List 2]],Table_PI[[#This Row],[List 3]],Table_PI[[#This Row],[Size]],Table_PI[[#This Row],[Input 1]],Table_PI[[#This Row],[Input 2]],Table_PI[[#This Row],[Input 3]],Table_PI[[#This Row],[Input 4]],'Customer Information'!$AR$12,102,ROW()),\"\"),\"\")","v":""},{"$f":"IF(Table_PI[[#This Row],[Input 3]]<>\"\",Table_PI[[#This Row],[Input 3]],\"\")","v":""},null,{"$f":"IFERROR(IF(AND(MeasureCalc(Table_PI[[#This Row],[Hide:\nFormula Name]],Table_SummaryPI[[#This Row],[Quantity]],Table_PI[[#This Row],[List 1]],Table_PI[[#This Row],[List 2]],Table_PI[[#This Row],[List 3]],Table_PI[[#This Row],[Size]],Table_PI[[#This Row],[Input 1]],Table_PI[[#This Row],[Input 2]],Table_PI[[#This Row],[Input 3]],Table_PI[[#This Row],[Input 4]],'Customer Information'!$AR$12,103,ROW())<>0,MeasureCalc(Table_PI[[#This Row],[Hide:\nFormula Name]],Table_SummaryPI[[#This Row],[Quantity]],Table_PI[[#This Row],[List 1]],Table_PI[[#This Row],[List 2]],Table_PI[[#This Row],[List 3]],Table_PI[[#This Row],[Size]],Table_PI[[#This Row],[Input 1]],Table_PI[[#This Row],[Input 2]],Table_PI[[#This Row],[Input 3]],Table_PI[[#This Row],[Input 4]],'Customer Information'!$AR$12,103,ROW())<>\"No Rebate\"),MeasureCalc(Table_PI[[#This Row],[Hide:\nFormula Name]],Table_SummaryPI[[#This Row],[Quantity]],Table_PI[[#This Row],[List 1]],Table_PI[[#This Row],[List 2]],Table_PI[[#This Row],[List 3]],Table_PI[[#This Row],[Size]],Table_PI[[#This Row],[Input 1]],Table_PI[[#This Row],[Input 2]],Table_PI[[#This Row],[Input 3]],Table_PI[[#This Row],[Input 4]],'Customer Information'!$AR$12,103,ROW()),\"\"),\"\")","v":""},{"$f":"IF(Table_PI[[#This Row],[Input 4]]<>\"\",Table_PI[[#This Row],[Input 4]],\"\")","v":""},{"$f":"IF(Table_PI[[#This Row],[Quantity]]=\"\",\"\",Table_PI[[#This Row],[Quantity]])","v":""},{"$f":"IF(Table_PI[[#This Row],[Notes]]=\"\",\"\",Table_PI[[#This Row],[Notes]])","v":""},{"$f":"IF(OR(Table_PI[[#This Row],[Hide:\nBaseline kWh]]=\"\",Table_PI[[#This Row],[Hide:\nBaseline kWh]]=0),\"\",Table_PI[[#This Row],[Hide:\nBaseline kWh]])","v":""},{"$f":"IF(OR(Table_PI[[#This Row],[Hide:\nBaseline kW]]=\"\",Table_PI[[#This Row],[Hide:\nBaseline kW]]=0),\"\",Table_PI[[#This Row],[Hide:\nBaseline kW]])","v":""},{"$f":"IF(OR(Table_PI[[#This Row],[Hide:\nProposed kWh]]=\"\",Table_PI[[#This Row],[Hide:\nProposed kWh]]=0),\"\",Table_PI[[#This Row],[Hide:\nProposed kWh]])","v":""},{"$f":"IF(OR(Table_PI[[#This Row],[Hide:\nProposed kW]]=\"\",Table_PI[[#This Row],[Hide:\nProposed kW]]=0),\"\",Table_PI[[#This Row],[Hide:\nProposed kW]])","v":""},{"$f":"IF(OR(Table_PI[[#This Row],[Rebate]]=\"\",Table_PI[[#This Row],[Rebate]]=0),\"\",Table_PI[[#This Row],[Rebate]])","v":""},{"$f":"IF(OR(Table_PI[[#This Row],[Hide:\nIncremental Cost]]=\"\",Table_PI[[#This Row],[Hide:\nIncremental Cost]]=0),\"\",Table_PI[[#This Row],[Hide:\nIncremental Cost]])","v":""},{"$f":"IFERROR(IF(Table_SummaryPI[[#This Row],[kWhSavings]]=\"\",\"\",ROUND(Table_SummaryPI[[#This Row],[kWhSavings]]/$AG$401*'Customer Information'!$BC$17,2)),0)","v":""},{"$f":"IF(OR(Table_PI[[#This Row],[Annual kWh]]=\"\",Table_PI[[#This Row],[Annual kWh]]=0),\"\",Table_PI[[#This Row],[Annual kWh]])","v":""},{"$f":"IF(OR(Table_PI[[#This Row],[Peak kW]]=\"\",Table_PI[[#This Row],[Peak kW]]=0),\"\",Table_PI[[#This Row],[Peak kW]])","v":""},{"$f":"IFERROR(IF(Table_SummaryPI[[#This Row],[kWhSavings]]=\"\",\"\",$AU$9*Table_SummaryPI[[#This Row],[kWhSavings]]),0)","v":""},{"$f":"IFERROR(IF(Table_SummaryPI[[#This Row],[kWhSavings]]=\"\",\"\",$AU$14*Table_SummaryPI[[#This Row],[kWhSavings]]),0)","v":""},{"$f":"IFERROR(IF(Table_SummaryPI[[#This Row],[kWhSavings]]=\"\",\"\",$AU$18*Table_SummaryPI[[#This Row],[kWhSavings]]),0)","v":""},{"$f":"IFERROR(IF(Table_SummaryPI[[#This Row],[kWhSavings]]=\"\",\"\",$AU$22*Table_SummaryPI[[#This Row],[kWhSavings]]),0)","v":""},{"$f":"IFERROR(IF(MeasureCalc(Table_PI[[#This Row],[Hide:\nFormula Name]],Table_SummaryPI[[#This Row],[Quantity]],Table_PI[[#This Row],[List 1]],Table_PI[[#This Row],[List 2]],Table_PI[[#This Row],[List 3]],Table_PI[[#This Row],[Size]],Table_PI[[#This Row],[Input 1]],Table_PI[[#This Row],[Input 2]],Table_PI[[#This Row],[Input 3]],Table_PI[[#This Row],[Input 4]],'Customer Information'!$AR$12,200,ROW())<>\"No Rebate\",MeasureCalc(Table_PI[[#This Row],[Hide:\nFormula Name]],Table_SummaryPI[[#This Row],[Quantity]],Table_PI[[#This Row],[List 1]],Table_PI[[#This Row],[List 2]],Table_PI[[#This Row],[List 3]],Table_PI[[#This Row],[Size]],Table_PI[[#This Row],[Input 1]],Table_PI[[#This Row],[Input 2]],Table_PI[[#This Row],[Input 3]],Table_PI[[#This Row],[Input 4]],'Customer Information'!$AR$12,200,ROW()),\"\"),\"\")","v":""},{"$f":"IFERROR(IF(MeasureCalc(Table_PI[[#This Row],[Hide:\nFormula Name]],Table_SummaryPI[[#This Row],[Quantity]],Table_PI[[#This Row],[List 1]],Table_PI[[#This Row],[List 2]],Table_PI[[#This Row],[List 3]],Table_PI[[#This Row],[Size]],Table_PI[[#This Row],[Input 1]],Table_PI[[#This Row],[Input 2]],Table_PI[[#This Row],[Input 3]],Table_PI[[#This Row],[Input 4]],'Customer Information'!$AR$12,201,ROW())<>\"No Rebate\",MeasureCalc(Table_PI[[#This Row],[Hide:\nFormula Name]],Table_SummaryPI[[#This Row],[Quantity]],Table_PI[[#This Row],[List 1]],Table_PI[[#This Row],[List 2]],Table_PI[[#This Row],[List 3]],Table_PI[[#This Row],[Size]],Table_PI[[#This Row],[Input 1]],Table_PI[[#This Row],[Input 2]],Table_PI[[#This Row],[Input 3]],Table_PI[[#This Row],[Input 4]],'Customer Information'!$AR$12,201,ROW()),\"\"),\"\")","v":""}]
[{"$f":"Table_PI[[#This Row],[Line No.]]","v":""},{"$f":"IF(Table_SummaryPI[[#This Row],[MeassureCategory]]<>\"\",CONCATENATE(Table_SummaryPI[[#This Row],[MeassureCategory]],  \" - \", Table_SummaryPI[[#This Row],[ProposedMeasureCategory]],  \" - \", TEXT(Table_SummaryPI[[#This Row],[Size]],\"#,##0.00\"),\" \",Table_SummaryPI[[#This Row],[SizeUnit]]),\"\")","v":""},{"$f":"SUBSTITUTE(Table_PI[[#This Row],[Measure]],\"     \",\"\",1)","v":""},{"$f":"IF(Table_PI[[#This Row],[List 1]]<>\"\",Table_PI[[#This Row],[List 1]],\"\")","v":""},{"$f":"IF(Table_PI[[#This Row],[List 2]]<>\"\",Table_PI[[#This Row],[List 2]],\"\")","v":""},{"$f":"IF(Table_PI[[#This Row],[List 3]]<>\"\",Table_PI[[#This Row],[List 3]],\"\")","v":""},{"$f":"IF(Table_PI[[#This Row],[Manufacturer]]=\"\",\"\",Table_PI[[#This Row],[Manufacturer]])","v":""},{"$f":"IF(Table_PI[[#This Row],[Model Number]]=\"\",\"\",Table_PI[[#This Row],[Model Number]])","v":""},{"$f":"IF(Table_PI[[#This Row],[Serial Number(s)]]=\"\",\"\",Table_PI[[#This Row],[Serial Number(s)]])","v":""},null,{"$f":"IF(Table_PI[[#This Row],[Size]]=\"\",\"\",Table_PI[[#This Row],[Size]])","v":""},null,{"$f":"IFERROR(IF(AND(MeasureCalc(Table_PI[[#This Row],[Hide:\nFormula Name]],Table_SummaryPI[[#This Row],[Quantity]],Table_PI[[#This Row],[List 1]],Table_PI[[#This Row],[List 2]],Table_PI[[#This Row],[List 3]],Table_PI[[#This Row],[Size]],Table_PI[[#This Row],[Input 1]],Table_PI[[#This Row],[Input 2]],Table_PI[[#This Row],[Input 3]],Table_PI[[#This Row],[Input 4]],'Customer Information'!$AR$12,100,ROW())<>0,MeasureCalc(Table_PI[[#This Row],[Hide:\nFormula Name]],Table_SummaryPI[[#This Row],[Quantity]],Table_PI[[#This Row],[List 1]],Table_PI[[#This Row],[List 2]],Table_PI[[#This Row],[List 3]],Table_PI[[#This Row],[Size]],Table_PI[[#This Row],[Input 1]],Table_PI[[#This Row],[Input 2]],Table_PI[[#This Row],[Input 3]],Table_PI[[#This Row],[Input 4]],'Customer Information'!$AR$12,100,ROW())<>\"No Rebate\"),MeasureCalc(Table_PI[[#This Row],[Hide:\nFormula Name]],Table_SummaryPI[[#This Row],[Quantity]],Table_PI[[#This Row],[List 1]],Table_PI[[#This Row],[List 2]],Table_PI[[#This Row],[List 3]],Table_PI[[#This Row],[Size]],Table_PI[[#This Row],[Input 1]],Table_PI[[#This Row],[Input 2]],Table_PI[[#This Row],[Input 3]],Table_PI[[#This Row],[Input 4]],'Customer Information'!$AR$12,100,ROW()),\"\"),\"\")","v":""},{"$f":"IF(Table_PI[[#This Row],[Input 1]]<>\"\",Table_PI[[#This Row],[Input 1]],\"\")","v":""},null,{"$f":"IFERROR(IF(AND(MeasureCalc(Table_PI[[#This Row],[Hide:\nFormula Name]],Table_SummaryPI[[#This Row],[Quantity]],Table_PI[[#This Row],[List 1]],Table_PI[[#This Row],[List 2]],Table_PI[[#This Row],[List 3]],Table_PI[[#This Row],[Size]],Table_PI[[#This Row],[Input 1]],Table_PI[[#This Row],[Input 2]],Table_PI[[#This Row],[Input 3]],Table_PI[[#This Row],[Input 4]],'Customer Information'!$AR$12,101,ROW())<>0,MeasureCalc(Table_PI[[#This Row],[Hide:\nFormula Name]],Table_SummaryPI[[#This Row],[Quantity]],Table_PI[[#This Row],[List 1]],Table_PI[[#This Row],[List 2]],Table_PI[[#This Row],[List 3]],Table_PI[[#This Row],[Size]],Table_PI[[#This Row],[Input 1]],Table_PI[[#This Row],[Input 2]],Table_PI[[#This Row],[Input 3]],Table_PI[[#This Row],[Input 4]],'Customer Information'!$AR$12,101,ROW())<>\"No Rebate\"),MeasureCalc(Table_PI[[#This Row],[Hide:\nFormula Name]],Table_SummaryPI[[#This Row],[Quantity]],Table_PI[[#This Row],[List 1]],Table_PI[[#This Row],[List 2]],Table_PI[[#This Row],[List 3]],Table_PI[[#This Row],[Size]],Table_PI[[#This Row],[Input 1]],Table_PI[[#This Row],[Input 2]],Table_PI[[#This Row],[Input 3]],Table_PI[[#This Row],[Input 4]],'Customer Information'!$AR$12,101,ROW()),\"\"),\"\")","v":""},{"$f":"IF(Table_PI[[#This Row],[Input 2]]<>\"\",Table_PI[[#This Row],[Input 2]],\"\")","v":""},null,{"$f":"IFERROR(IF(AND(MeasureCalc(Table_PI[[#This Row],[Hide:\nFormula Name]],Table_SummaryPI[[#This Row],[Quantity]],Table_PI[[#This Row],[List 1]],Table_PI[[#This Row],[List 2]],Table_PI[[#This Row],[List 3]],Table_PI[[#This Row],[Size]],Table_PI[[#This Row],[Input 1]],Table_PI[[#This Row],[Input 2]],Table_PI[[#This Row],[Input 3]],Table_PI[[#This Row],[Input 4]],'Customer Information'!$AR$12,102,ROW())<>0,MeasureCalc(Table_PI[[#This Row],[Hide:\nFormula Name]],Table_SummaryPI[[#This Row],[Quantity]],Table_PI[[#This Row],[List 1]],Table_PI[[#This Row],[List 2]],Table_PI[[#This Row],[List 3]],Table_PI[[#This Row],[Size]],Table_PI[[#This Row],[Input 1]],Table_PI[[#This Row],[Input 2]],Table_PI[[#This Row],[Input 3]],Table_PI[[#This Row],[Input 4]],'Customer Information'!$AR$12,102,ROW())<>\"No Rebate\"),MeasureCalc(Table_PI[[#This Row],[Hide:\nFormula Name]],Table_SummaryPI[[#This Row],[Quantity]],Table_PI[[#This Row],[List 1]],Table_PI[[#This Row],[List 2]],Table_PI[[#This Row],[List 3]],Table_PI[[#This Row],[Size]],Table_PI[[#This Row],[Input 1]],Table_PI[[#This Row],[Input 2]],Table_PI[[#This Row],[Input 3]],Table_PI[[#This Row],[Input 4]],'Customer Information'!$AR$12,102,ROW()),\"\"),\"\")","v":""},{"$f":"IF(Table_PI[[#This Row],[Input 3]]<>\"\",Table_PI[[#This Row],[Input 3]],\"\")","v":""},null,{"$f":"IFERROR(IF(AND(MeasureCalc(Table_PI[[#This Row],[Hide:\nFormula Name]],Table_SummaryPI[[#This Row],[Quantity]],Table_PI[[#This Row],[List 1]],Table_PI[[#This Row],[List 2]],Table_PI[[#This Row],[List 3]],Table_PI[[#This Row],[Size]],Table_PI[[#This Row],[Input 1]],Table_PI[[#This Row],[Input 2]],Table_PI[[#This Row],[Input 3]],Table_PI[[#This Row],[Input 4]],'Customer Information'!$AR$12,103,ROW())<>0,MeasureCalc(Table_PI[[#This Row],[Hide:\nFormula Name]],Table_SummaryPI[[#This Row],[Quantity]],Table_PI[[#This Row],[List 1]],Table_PI[[#This Row],[List 2]],Table_PI[[#This Row],[List 3]],Table_PI[[#This Row],[Size]],Table_PI[[#This Row],[Input 1]],Table_PI[[#This Row],[Input 2]],Table_PI[[#This Row],[Input 3]],Table_PI[[#This Row],[Input 4]],'Customer Information'!$AR$12,103,ROW())<>\"No Rebate\"),MeasureCalc(Table_PI[[#This Row],[Hide:\nFormula Name]],Table_SummaryPI[[#This Row],[Quantity]],Table_PI[[#This Row],[List 1]],Table_PI[[#This Row],[List 2]],Table_PI[[#This Row],[List 3]],Table_PI[[#This Row],[Size]],Table_PI[[#This Row],[Input 1]],Table_PI[[#This Row],[Input 2]],Table_PI[[#This Row],[Input 3]],Table_PI[[#This Row],[Input 4]],'Customer Information'!$AR$12,103,ROW()),\"\"),\"\")","v":""},{"$f":"IF(Table_PI[[#This Row],[Input 4]]<>\"\",Table_PI[[#This Row],[Input 4]],\"\")","v":""},{"$f":"IF(Table_PI[[#This Row],[Quantity]]=\"\",\"\",Table_PI[[#This Row],[Quantity]])","v":""},{"$f":"IF(Table_PI[[#This Row],[Notes]]=\"\",\"\",Table_PI[[#This Row],[Notes]])","v":""},{"$f":"IF(OR(Table_PI[[#This Row],[Hide:\nBaseline kWh]]=\"\",Table_PI[[#This Row],[Hide:\nBaseline kWh]]=0),\"\",Table_PI[[#This Row],[Hide:\nBaseline kWh]])","v":""},{"$f":"IF(OR(Table_PI[[#This Row],[Hide:\nBaseline kW]]=\"\",Table_PI[[#This Row],[Hide:\nBaseline kW]]=0),\"\",Table_PI[[#This Row],[Hide:\nBaseline kW]])","v":""},{"$f":"IF(OR(Table_PI[[#This Row],[Hide:\nProposed kWh]]=\"\",Table_PI[[#This Row],[Hide:\nProposed kWh]]=0),\"\",Table_PI[[#This Row],[Hide:\nProposed kWh]])","v":""},{"$f":"IF(OR(Table_PI[[#This Row],[Hide:\nProposed kW]]=\"\",Table_PI[[#This Row],[Hide:\nProposed kW]]=0),\"\",Table_PI[[#This Row],[Hide:\nProposed kW]])","v":""},{"$f":"IF(OR(Table_PI[[#This Row],[Rebate]]=\"\",Table_PI[[#This Row],[Rebate]]=0),\"\",Table_PI[[#This Row],[Rebate]])","v":""},{"$f":"IF(OR(Table_PI[[#This Row],[Hide:\nIncremental Cost]]=\"\",Table_PI[[#This Row],[Hide:\nIncremental Cost]]=0),\"\",Table_PI[[#This Row],[Hide:\nIncremental Cost]])","v":""},{"$f":"IFERROR(IF(Table_SummaryPI[[#This Row],[kWhSavings]]=\"\",\"\",ROUND(Table_SummaryPI[[#This Row],[kWhSavings]]/$AG$401*'Customer Information'!$BC$17,2)),0)","v":""},{"$f":"IF(OR(Table_PI[[#This Row],[Annual kWh]]=\"\",Table_PI[[#This Row],[Annual kWh]]=0),\"\",Table_PI[[#This Row],[Annual kWh]])","v":""},{"$f":"IF(OR(Table_PI[[#This Row],[Peak kW]]=\"\",Table_PI[[#This Row],[Peak kW]]=0),\"\",Table_PI[[#This Row],[Peak kW]])","v":""},{"$f":"IFERROR(IF(Table_SummaryPI[[#This Row],[kWhSavings]]=\"\",\"\",$AU$9*Table_SummaryPI[[#This Row],[kWhSavings]]),0)","v":""},{"$f":"IFERROR(IF(Table_SummaryPI[[#This Row],[kWhSavings]]=\"\",\"\",$AU$14*Table_SummaryPI[[#This Row],[kWhSavings]]),0)","v":""},{"$f":"IFERROR(IF(Table_SummaryPI[[#This Row],[kWhSavings]]=\"\",\"\",$AU$18*Table_SummaryPI[[#This Row],[kWhSavings]]),0)","v":""},{"$f":"IFERROR(IF(Table_SummaryPI[[#This Row],[kWhSavings]]=\"\",\"\",$AU$22*Table_SummaryPI[[#This Row],[kWhSavings]]),0)","v":""},{"$f":"IFERROR(IF(MeasureCalc(Table_PI[[#This Row],[Hide:\nFormula Name]],Table_SummaryPI[[#This Row],[Quantity]],Table_PI[[#This Row],[List 1]],Table_PI[[#This Row],[List 2]],Table_PI[[#This Row],[List 3]],Table_PI[[#This Row],[Size]],Table_PI[[#This Row],[Input 1]],Table_PI[[#This Row],[Input 2]],Table_PI[[#This Row],[Input 3]],Table_PI[[#This Row],[Input 4]],'Customer Information'!$AR$12,200,ROW())<>\"No Rebate\",MeasureCalc(Table_PI[[#This Row],[Hide:\nFormula Name]],Table_SummaryPI[[#This Row],[Quantity]],Table_PI[[#This Row],[List 1]],Table_PI[[#This Row],[List 2]],Table_PI[[#This Row],[List 3]],Table_PI[[#This Row],[Size]],Table_PI[[#This Row],[Input 1]],Table_PI[[#This Row],[Input 2]],Table_PI[[#This Row],[Input 3]],Table_PI[[#This Row],[Input 4]],'Customer Information'!$AR$12,200,ROW()),\"\"),\"\")","v":""},{"$f":"IFERROR(IF(MeasureCalc(Table_PI[[#This Row],[Hide:\nFormula Name]],Table_SummaryPI[[#This Row],[Quantity]],Table_PI[[#This Row],[List 1]],Table_PI[[#This Row],[List 2]],Table_PI[[#This Row],[List 3]],Table_PI[[#This Row],[Size]],Table_PI[[#This Row],[Input 1]],Table_PI[[#This Row],[Input 2]],Table_PI[[#This Row],[Input 3]],Table_PI[[#This Row],[Input 4]],'Customer Information'!$AR$12,201,ROW())<>\"No Rebate\",MeasureCalc(Table_PI[[#This Row],[Hide:\nFormula Name]],Table_SummaryPI[[#This Row],[Quantity]],Table_PI[[#This Row],[List 1]],Table_PI[[#This Row],[List 2]],Table_PI[[#This Row],[List 3]],Table_PI[[#This Row],[Size]],Table_PI[[#This Row],[Input 1]],Table_PI[[#This Row],[Input 2]],Table_PI[[#This Row],[Input 3]],Table_PI[[#This Row],[Input 4]],'Customer Information'!$AR$12,201,ROW()),\"\"),\"\")","v":""}]
[{"$f":"Table_PI[[#This Row],[Line No.]]","v":""},{"$f":"IF(Table_SummaryPI[[#This Row],[MeassureCategory]]<>\"\",CONCATENATE(Table_SummaryPI[[#This Row],[MeassureCategory]],  \" - \", Table_SummaryPI[[#This Row],[ProposedMeasureCategory]],  \" - \", TEXT(Table_SummaryPI[[#This Row],[Size]],\"#,##0.00\"),\" \",Table_SummaryPI[[#This Row],[SizeUnit]]),\"\")","v":""},{"$f":"SUBSTITUTE(Table_PI[[#This Row],[Measure]],\"     \",\"\",1)","v":""},{"$f":"IF(Table_PI[[#This Row],[List 1]]<>\"\",Table_PI[[#This Row],[List 1]],\"\")","v":""},{"$f":"IF(Table_PI[[#This Row],[List 2]]<>\"\",Table_PI[[#This Row],[List 2]],\"\")","v":""},{"$f":"IF(Table_PI[[#This Row],[List 3]]<>\"\",Table_PI[[#This Row],[List 3]],\"\")","v":""},{"$f":"IF(Table_PI[[#This Row],[Manufacturer]]=\"\",\"\",Table_PI[[#This Row],[Manufacturer]])","v":""},{"$f":"IF(Table_PI[[#This Row],[Model Number]]=\"\",\"\",Table_PI[[#This Row],[Model Number]])","v":""},{"$f":"IF(Table_PI[[#This Row],[Serial Number(s)]]=\"\",\"\",Table_PI[[#This Row],[Serial Number(s)]])","v":""},null,{"$f":"IF(Table_PI[[#This Row],[Size]]=\"\",\"\",Table_PI[[#This Row],[Size]])","v":""},null,{"$f":"IFERROR(IF(AND(MeasureCalc(Table_PI[[#This Row],[Hide:\nFormula Name]],Table_SummaryPI[[#This Row],[Quantity]],Table_PI[[#This Row],[List 1]],Table_PI[[#This Row],[List 2]],Table_PI[[#This Row],[List 3]],Table_PI[[#This Row],[Size]],Table_PI[[#This Row],[Input 1]],Table_PI[[#This Row],[Input 2]],Table_PI[[#This Row],[Input 3]],Table_PI[[#This Row],[Input 4]],'Customer Information'!$AR$12,100,ROW())<>0,MeasureCalc(Table_PI[[#This Row],[Hide:\nFormula Name]],Table_SummaryPI[[#This Row],[Quantity]],Table_PI[[#This Row],[List 1]],Table_PI[[#This Row],[List 2]],Table_PI[[#This Row],[List 3]],Table_PI[[#This Row],[Size]],Table_PI[[#This Row],[Input 1]],Table_PI[[#This Row],[Input 2]],Table_PI[[#This Row],[Input 3]],Table_PI[[#This Row],[Input 4]],'Customer Information'!$AR$12,100,ROW())<>\"No Rebate\"),MeasureCalc(Table_PI[[#This Row],[Hide:\nFormula Name]],Table_SummaryPI[[#This Row],[Quantity]],Table_PI[[#This Row],[List 1]],Table_PI[[#This Row],[List 2]],Table_PI[[#This Row],[List 3]],Table_PI[[#This Row],[Size]],Table_PI[[#This Row],[Input 1]],Table_PI[[#This Row],[Input 2]],Table_PI[[#This Row],[Input 3]],Table_PI[[#This Row],[Input 4]],'Customer Information'!$AR$12,100,ROW()),\"\"),\"\")","v":""},{"$f":"IF(Table_PI[[#This Row],[Input 1]]<>\"\",Table_PI[[#This Row],[Input 1]],\"\")","v":""},null,{"$f":"IFERROR(IF(AND(MeasureCalc(Table_PI[[#This Row],[Hide:\nFormula Name]],Table_SummaryPI[[#This Row],[Quantity]],Table_PI[[#This Row],[List 1]],Table_PI[[#This Row],[List 2]],Table_PI[[#This Row],[List 3]],Table_PI[[#This Row],[Size]],Table_PI[[#This Row],[Input 1]],Table_PI[[#This Row],[Input 2]],Table_PI[[#This Row],[Input 3]],Table_PI[[#This Row],[Input 4]],'Customer Information'!$AR$12,101,ROW())<>0,MeasureCalc(Table_PI[[#This Row],[Hide:\nFormula Name]],Table_SummaryPI[[#This Row],[Quantity]],Table_PI[[#This Row],[List 1]],Table_PI[[#This Row],[List 2]],Table_PI[[#This Row],[List 3]],Table_PI[[#This Row],[Size]],Table_PI[[#This Row],[Input 1]],Table_PI[[#This Row],[Input 2]],Table_PI[[#This Row],[Input 3]],Table_PI[[#This Row],[Input 4]],'Customer Information'!$AR$12,101,ROW())<>\"No Rebate\"),MeasureCalc(Table_PI[[#This Row],[Hide:\nFormula Name]],Table_SummaryPI[[#This Row],[Quantity]],Table_PI[[#This Row],[List 1]],Table_PI[[#This Row],[List 2]],Table_PI[[#This Row],[List 3]],Table_PI[[#This Row],[Size]],Table_PI[[#This Row],[Input 1]],Table_PI[[#This Row],[Input 2]],Table_PI[[#This Row],[Input 3]],Table_PI[[#This Row],[Input 4]],'Customer Information'!$AR$12,101,ROW()),\"\"),\"\")","v":""},{"$f":"IF(Table_PI[[#This Row],[Input 2]]<>\"\",Table_PI[[#This Row],[Input 2]],\"\")","v":""},null,{"$f":"IFERROR(IF(AND(MeasureCalc(Table_PI[[#This Row],[Hide:\nFormula Name]],Table_SummaryPI[[#This Row],[Quantity]],Table_PI[[#This Row],[List 1]],Table_PI[[#This Row],[List 2]],Table_PI[[#This Row],[List 3]],Table_PI[[#This Row],[Size]],Table_PI[[#This Row],[Input 1]],Table_PI[[#This Row],[Input 2]],Table_PI[[#This Row],[Input 3]],Table_PI[[#This Row],[Input 4]],'Customer Information'!$AR$12,102,ROW())<>0,MeasureCalc(Table_PI[[#This Row],[Hide:\nFormula Name]],Table_SummaryPI[[#This Row],[Quantity]],Table_PI[[#This Row],[List 1]],Table_PI[[#This Row],[List 2]],Table_PI[[#This Row],[List 3]],Table_PI[[#This Row],[Size]],Table_PI[[#This Row],[Input 1]],Table_PI[[#This Row],[Input 2]],Table_PI[[#This Row],[Input 3]],Table_PI[[#This Row],[Input 4]],'Customer Information'!$AR$12,102,ROW())<>\"No Rebate\"),MeasureCalc(Table_PI[[#This Row],[Hide:\nFormula Name]],Table_SummaryPI[[#This Row],[Quantity]],Table_PI[[#This Row],[List 1]],Table_PI[[#This Row],[List 2]],Table_PI[[#This Row],[List 3]],Table_PI[[#This Row],[Size]],Table_PI[[#This Row],[Input 1]],Table_PI[[#This Row],[Input 2]],Table_PI[[#This Row],[Input 3]],Table_PI[[#This Row],[Input 4]],'Customer Information'!$AR$12,102,ROW()),\"\"),\"\")","v":""},{"$f":"IF(Table_PI[[#This Row],[Input 3]]<>\"\",Table_PI[[#This Row],[Input 3]],\"\")","v":""},null,{"$f":"IFERROR(IF(AND(MeasureCalc(Table_PI[[#This Row],[Hide:\nFormula Name]],Table_SummaryPI[[#This Row],[Quantity]],Table_PI[[#This Row],[List 1]],Table_PI[[#This Row],[List 2]],Table_PI[[#This Row],[List 3]],Table_PI[[#This Row],[Size]],Table_PI[[#This Row],[Input 1]],Table_PI[[#This Row],[Input 2]],Table_PI[[#This Row],[Input 3]],Table_PI[[#This Row],[Input 4]],'Customer Information'!$AR$12,103,ROW())<>0,MeasureCalc(Table_PI[[#This Row],[Hide:\nFormula Name]],Table_SummaryPI[[#This Row],[Quantity]],Table_PI[[#This Row],[List 1]],Table_PI[[#This Row],[List 2]],Table_PI[[#This Row],[List 3]],Table_PI[[#This Row],[Size]],Table_PI[[#This Row],[Input 1]],Table_PI[[#This Row],[Input 2]],Table_PI[[#This Row],[Input 3]],Table_PI[[#This Row],[Input 4]],'Customer Information'!$AR$12,103,ROW())<>\"No Rebate\"),MeasureCalc(Table_PI[[#This Row],[Hide:\nFormula Name]],Table_SummaryPI[[#This Row],[Quantity]],Table_PI[[#This Row],[List 1]],Table_PI[[#This Row],[List 2]],Table_PI[[#This Row],[List 3]],Table_PI[[#This Row],[Size]],Table_PI[[#This Row],[Input 1]],Table_PI[[#This Row],[Input 2]],Table_PI[[#This Row],[Input 3]],Table_PI[[#This Row],[Input 4]],'Customer Information'!$AR$12,103,ROW()),\"\"),\"\")","v":""},{"$f":"IF(Table_PI[[#This Row],[Input 4]]<>\"\",Table_PI[[#This Row],[Input 4]],\"\")","v":""},{"$f":"IF(Table_PI[[#This Row],[Quantity]]=\"\",\"\",Table_PI[[#This Row],[Quantity]])","v":""},{"$f":"IF(Table_PI[[#This Row],[Notes]]=\"\",\"\",Table_PI[[#This Row],[Notes]])","v":""},{"$f":"IF(OR(Table_PI[[#This Row],[Hide:\nBaseline kWh]]=\"\",Table_PI[[#This Row],[Hide:\nBaseline kWh]]=0),\"\",Table_PI[[#This Row],[Hide:\nBaseline kWh]])","v":""},{"$f":"IF(OR(Table_PI[[#This Row],[Hide:\nBaseline kW]]=\"\",Table_PI[[#This Row],[Hide:\nBaseline kW]]=0),\"\",Table_PI[[#This Row],[Hide:\nBaseline kW]])","v":""},{"$f":"IF(OR(Table_PI[[#This Row],[Hide:\nProposed kWh]]=\"\",Table_PI[[#This Row],[Hide:\nProposed kWh]]=0),\"\",Table_PI[[#This Row],[Hide:\nProposed kWh]])","v":""},{"$f":"IF(OR(Table_PI[[#This Row],[Hide:\nProposed kW]]=\"\",Table_PI[[#This Row],[Hide:\nProposed kW]]=0),\"\",Table_PI[[#This Row],[Hide:\nProposed kW]])","v":""},{"$f":"IF(OR(Table_PI[[#This Row],[Rebate]]=\"\",Table_PI[[#This Row],[Rebate]]=0),\"\",Table_PI[[#This Row],[Rebate]])","v":""},{"$f":"IF(OR(Table_PI[[#This Row],[Hide:\nIncremental Cost]]=\"\",Table_PI[[#This Row],[Hide:\nIncremental Cost]]=0),\"\",Table_PI[[#This Row],[Hide:\nIncremental Cost]])","v":""},{"$f":"IFERROR(IF(Table_SummaryPI[[#This Row],[kWhSavings]]=\"\",\"\",ROUND(Table_SummaryPI[[#This Row],[kWhSavings]]/$AG$401*'Customer Information'!$BC$17,2)),0)","v":""},{"$f":"IF(OR(Table_PI[[#This Row],[Annual kWh]]=\"\",Table_PI[[#This Row],[Annual kWh]]=0),\"\",Table_PI[[#This Row],[Annual kWh]])","v":""},{"$f":"IF(OR(Table_PI[[#This Row],[Peak kW]]=\"\",Table_PI[[#This Row],[Peak kW]]=0),\"\",Table_PI[[#This Row],[Peak kW]])","v":""},{"$f":"IFERROR(IF(Table_SummaryPI[[#This Row],[kWhSavings]]=\"\",\"\",$AU$9*Table_SummaryPI[[#This Row],[kWhSavings]]),0)","v":""},{"$f":"IFERROR(IF(Table_SummaryPI[[#This Row],[kWhSavings]]=\"\",\"\",$AU$14*Table_SummaryPI[[#This Row],[kWhSavings]]),0)","v":""},{"$f":"IFERROR(IF(Table_SummaryPI[[#This Row],[kWhSavings]]=\"\",\"\",$AU$18*Table_SummaryPI[[#This Row],[kWhSavings]]),0)","v":""},{"$f":"IFERROR(IF(Table_SummaryPI[[#This Row],[kWhSavings]]=\"\",\"\",$AU$22*Table_SummaryPI[[#This Row],[kWhSavings]]),0)","v":""},{"$f":"IFERROR(IF(MeasureCalc(Table_PI[[#This Row],[Hide:\nFormula Name]],Table_SummaryPI[[#This Row],[Quantity]],Table_PI[[#This Row],[List 1]],Table_PI[[#This Row],[List 2]],Table_PI[[#This Row],[List 3]],Table_PI[[#This Row],[Size]],Table_PI[[#This Row],[Input 1]],Table_PI[[#This Row],[Input 2]],Table_PI[[#This Row],[Input 3]],Table_PI[[#This Row],[Input 4]],'Customer Information'!$AR$12,200,ROW())<>\"No Rebate\",MeasureCalc(Table_PI[[#This Row],[Hide:\nFormula Name]],Table_SummaryPI[[#This Row],[Quantity]],Table_PI[[#This Row],[List 1]],Table_PI[[#This Row],[List 2]],Table_PI[[#This Row],[List 3]],Table_PI[[#This Row],[Size]],Table_PI[[#This Row],[Input 1]],Table_PI[[#This Row],[Input 2]],Table_PI[[#This Row],[Input 3]],Table_PI[[#This Row],[Input 4]],'Customer Information'!$AR$12,200,ROW()),\"\"),\"\")","v":""},{"$f":"IFERROR(IF(MeasureCalc(Table_PI[[#This Row],[Hide:\nFormula Name]],Table_SummaryPI[[#This Row],[Quantity]],Table_PI[[#This Row],[List 1]],Table_PI[[#This Row],[List 2]],Table_PI[[#This Row],[List 3]],Table_PI[[#This Row],[Size]],Table_PI[[#This Row],[Input 1]],Table_PI[[#This Row],[Input 2]],Table_PI[[#This Row],[Input 3]],Table_PI[[#This Row],[Input 4]],'Customer Information'!$AR$12,201,ROW())<>\"No Rebate\",MeasureCalc(Table_PI[[#This Row],[Hide:\nFormula Name]],Table_SummaryPI[[#This Row],[Quantity]],Table_PI[[#This Row],[List 1]],Table_PI[[#This Row],[List 2]],Table_PI[[#This Row],[List 3]],Table_PI[[#This Row],[Size]],Table_PI[[#This Row],[Input 1]],Table_PI[[#This Row],[Input 2]],Table_PI[[#This Row],[Input 3]],Table_PI[[#This Row],[Input 4]],'Customer Information'!$AR$12,201,ROW()),\"\"),\"\")","v":""}]
[{"$f":"Table_PI[[#This Row],[Line No.]]","v":""},{"$f":"IF(Table_SummaryPI[[#This Row],[MeassureCategory]]<>\"\",CONCATENATE(Table_SummaryPI[[#This Row],[MeassureCategory]],  \" - \", Table_SummaryPI[[#This Row],[ProposedMeasureCategory]],  \" - \", TEXT(Table_SummaryPI[[#This Row],[Size]],\"#,##0.00\"),\" \",Table_SummaryPI[[#This Row],[SizeUnit]]),\"\")","v":""},{"$f":"SUBSTITUTE(Table_PI[[#This Row],[Measure]],\"     \",\"\",1)","v":""},{"$f":"IF(Table_PI[[#This Row],[List 1]]<>\"\",Table_PI[[#This Row],[List 1]],\"\")","v":""},{"$f":"IF(Table_PI[[#This Row],[List 2]]<>\"\",Table_PI[[#This Row],[List 2]],\"\")","v":""},{"$f":"IF(Table_PI[[#This Row],[List 3]]<>\"\",Table_PI[[#This Row],[List 3]],\"\")","v":""},{"$f":"IF(Table_PI[[#This Row],[Manufacturer]]=\"\",\"\",Table_PI[[#This Row],[Manufacturer]])","v":""},{"$f":"IF(Table_PI[[#This Row],[Model Number]]=\"\",\"\",Table_PI[[#This Row],[Model Number]])","v":""},{"$f":"IF(Table_PI[[#This Row],[Serial Number(s)]]=\"\",\"\",Table_PI[[#This Row],[Serial Number(s)]])","v":""},null,{"$f":"IF(Table_PI[[#This Row],[Size]]=\"\",\"\",Table_PI[[#This Row],[Size]])","v":""},null,{"$f":"IFERROR(IF(AND(MeasureCalc(Table_PI[[#This Row],[Hide:\nFormula Name]],Table_SummaryPI[[#This Row],[Quantity]],Table_PI[[#This Row],[List 1]],Table_PI[[#This Row],[List 2]],Table_PI[[#This Row],[List 3]],Table_PI[[#This Row],[Size]],Table_PI[[#This Row],[Input 1]],Table_PI[[#This Row],[Input 2]],Table_PI[[#This Row],[Input 3]],Table_PI[[#This Row],[Input 4]],'Customer Information'!$AR$12,100,ROW())<>0,MeasureCalc(Table_PI[[#This Row],[Hide:\nFormula Name]],Table_SummaryPI[[#This Row],[Quantity]],Table_PI[[#This Row],[List 1]],Table_PI[[#This Row],[List 2]],Table_PI[[#This Row],[List 3]],Table_PI[[#This Row],[Size]],Table_PI[[#This Row],[Input 1]],Table_PI[[#This Row],[Input 2]],Table_PI[[#This Row],[Input 3]],Table_PI[[#This Row],[Input 4]],'Customer Information'!$AR$12,100,ROW())<>\"No Rebate\"),MeasureCalc(Table_PI[[#This Row],[Hide:\nFormula Name]],Table_SummaryPI[[#This Row],[Quantity]],Table_PI[[#This Row],[List 1]],Table_PI[[#This Row],[List 2]],Table_PI[[#This Row],[List 3]],Table_PI[[#This Row],[Size]],Table_PI[[#This Row],[Input 1]],Table_PI[[#This Row],[Input 2]],Table_PI[[#This Row],[Input 3]],Table_PI[[#This Row],[Input 4]],'Customer Information'!$AR$12,100,ROW()),\"\"),\"\")","v":""},{"$f":"IF(Table_PI[[#This Row],[Input 1]]<>\"\",Table_PI[[#This Row],[Input 1]],\"\")","v":""},null,{"$f":"IFERROR(IF(AND(MeasureCalc(Table_PI[[#This Row],[Hide:\nFormula Name]],Table_SummaryPI[[#This Row],[Quantity]],Table_PI[[#This Row],[List 1]],Table_PI[[#This Row],[List 2]],Table_PI[[#This Row],[List 3]],Table_PI[[#This Row],[Size]],Table_PI[[#This Row],[Input 1]],Table_PI[[#This Row],[Input 2]],Table_PI[[#This Row],[Input 3]],Table_PI[[#This Row],[Input 4]],'Customer Information'!$AR$12,101,ROW())<>0,MeasureCalc(Table_PI[[#This Row],[Hide:\nFormula Name]],Table_SummaryPI[[#This Row],[Quantity]],Table_PI[[#This Row],[List 1]],Table_PI[[#This Row],[List 2]],Table_PI[[#This Row],[List 3]],Table_PI[[#This Row],[Size]],Table_PI[[#This Row],[Input 1]],Table_PI[[#This Row],[Input 2]],Table_PI[[#This Row],[Input 3]],Table_PI[[#This Row],[Input 4]],'Customer Information'!$AR$12,101,ROW())<>\"No Rebate\"),MeasureCalc(Table_PI[[#This Row],[Hide:\nFormula Name]],Table_SummaryPI[[#This Row],[Quantity]],Table_PI[[#This Row],[List 1]],Table_PI[[#This Row],[List 2]],Table_PI[[#This Row],[List 3]],Table_PI[[#This Row],[Size]],Table_PI[[#This Row],[Input 1]],Table_PI[[#This Row],[Input 2]],Table_PI[[#This Row],[Input 3]],Table_PI[[#This Row],[Input 4]],'Customer Information'!$AR$12,101,ROW()),\"\"),\"\")","v":""},{"$f":"IF(Table_PI[[#This Row],[Input 2]]<>\"\",Table_PI[[#This Row],[Input 2]],\"\")","v":""},null,{"$f":"IFERROR(IF(AND(MeasureCalc(Table_PI[[#This Row],[Hide:\nFormula Name]],Table_SummaryPI[[#This Row],[Quantity]],Table_PI[[#This Row],[List 1]],Table_PI[[#This Row],[List 2]],Table_PI[[#This Row],[List 3]],Table_PI[[#This Row],[Size]],Table_PI[[#This Row],[Input 1]],Table_PI[[#This Row],[Input 2]],Table_PI[[#This Row],[Input 3]],Table_PI[[#This Row],[Input 4]],'Customer Information'!$AR$12,102,ROW())<>0,MeasureCalc(Table_PI[[#This Row],[Hide:\nFormula Name]],Table_SummaryPI[[#This Row],[Quantity]],Table_PI[[#This Row],[List 1]],Table_PI[[#This Row],[List 2]],Table_PI[[#This Row],[List 3]],Table_PI[[#This Row],[Size]],Table_PI[[#This Row],[Input 1]],Table_PI[[#This Row],[Input 2]],Table_PI[[#This Row],[Input 3]],Table_PI[[#This Row],[Input 4]],'Customer Information'!$AR$12,102,ROW())<>\"No Rebate\"),MeasureCalc(Table_PI[[#This Row],[Hide:\nFormula Name]],Table_SummaryPI[[#This Row],[Quantity]],Table_PI[[#This Row],[List 1]],Table_PI[[#This Row],[List 2]],Table_PI[[#This Row],[List 3]],Table_PI[[#This Row],[Size]],Table_PI[[#This Row],[Input 1]],Table_PI[[#This Row],[Input 2]],Table_PI[[#This Row],[Input 3]],Table_PI[[#This Row],[Input 4]],'Customer Information'!$AR$12,102,ROW()),\"\"),\"\")","v":""},{"$f":"IF(Table_PI[[#This Row],[Input 3]]<>\"\",Table_PI[[#This Row],[Input 3]],\"\")","v":""},null,{"$f":"IFERROR(IF(AND(MeasureCalc(Table_PI[[#This Row],[Hide:\nFormula Name]],Table_SummaryPI[[#This Row],[Quantity]],Table_PI[[#This Row],[List 1]],Table_PI[[#This Row],[List 2]],Table_PI[[#This Row],[List 3]],Table_PI[[#This Row],[Size]],Table_PI[[#This Row],[Input 1]],Table_PI[[#This Row],[Input 2]],Table_PI[[#This Row],[Input 3]],Table_PI[[#This Row],[Input 4]],'Customer Information'!$AR$12,103,ROW())<>0,MeasureCalc(Table_PI[[#This Row],[Hide:\nFormula Name]],Table_SummaryPI[[#This Row],[Quantity]],Table_PI[[#This Row],[List 1]],Table_PI[[#This Row],[List 2]],Table_PI[[#This Row],[List 3]],Table_PI[[#This Row],[Size]],Table_PI[[#This Row],[Input 1]],Table_PI[[#This Row],[Input 2]],Table_PI[[#This Row],[Input 3]],Table_PI[[#This Row],[Input 4]],'Customer Information'!$AR$12,103,ROW())<>\"No Rebate\"),MeasureCalc(Table_PI[[#This Row],[Hide:\nFormula Name]],Table_SummaryPI[[#This Row],[Quantity]],Table_PI[[#This Row],[List 1]],Table_PI[[#This Row],[List 2]],Table_PI[[#This Row],[List 3]],Table_PI[[#This Row],[Size]],Table_PI[[#This Row],[Input 1]],Table_PI[[#This Row],[Input 2]],Table_PI[[#This Row],[Input 3]],Table_PI[[#This Row],[Input 4]],'Customer Information'!$AR$12,103,ROW()),\"\"),\"\")","v":""},{"$f":"IF(Table_PI[[#This Row],[Input 4]]<>\"\",Table_PI[[#This Row],[Input 4]],\"\")","v":""},{"$f":"IF(Table_PI[[#This Row],[Quantity]]=\"\",\"\",Table_PI[[#This Row],[Quantity]])","v":""},{"$f":"IF(Table_PI[[#This Row],[Notes]]=\"\",\"\",Table_PI[[#This Row],[Notes]])","v":""},{"$f":"IF(OR(Table_PI[[#This Row],[Hide:\nBaseline kWh]]=\"\",Table_PI[[#This Row],[Hide:\nBaseline kWh]]=0),\"\",Table_PI[[#This Row],[Hide:\nBaseline kWh]])","v":""},{"$f":"IF(OR(Table_PI[[#This Row],[Hide:\nBaseline kW]]=\"\",Table_PI[[#This Row],[Hide:\nBaseline kW]]=0),\"\",Table_PI[[#This Row],[Hide:\nBaseline kW]])","v":""},{"$f":"IF(OR(Table_PI[[#This Row],[Hide:\nProposed kWh]]=\"\",Table_PI[[#This Row],[Hide:\nProposed kWh]]=0),\"\",Table_PI[[#This Row],[Hide:\nProposed kWh]])","v":""},{"$f":"IF(OR(Table_PI[[#This Row],[Hide:\nProposed kW]]=\"\",Table_PI[[#This Row],[Hide:\nProposed kW]]=0),\"\",Table_PI[[#This Row],[Hide:\nProposed kW]])","v":""},{"$f":"IF(OR(Table_PI[[#This Row],[Rebate]]=\"\",Table_PI[[#This Row],[Rebate]]=0),\"\",Table_PI[[#This Row],[Rebate]])","v":""},{"$f":"IF(OR(Table_PI[[#This Row],[Hide:\nIncremental Cost]]=\"\",Table_PI[[#This Row],[Hide:\nIncremental Cost]]=0),\"\",Table_PI[[#This Row],[Hide:\nIncremental Cost]])","v":""},{"$f":"IFERROR(IF(Table_SummaryPI[[#This Row],[kWhSavings]]=\"\",\"\",ROUND(Table_SummaryPI[[#This Row],[kWhSavings]]/$AG$401*'Customer Information'!$BC$17,2)),0)","v":""},{"$f":"IF(OR(Table_PI[[#This Row],[Annual kWh]]=\"\",Table_PI[[#This Row],[Annual kWh]]=0),\"\",Table_PI[[#This Row],[Annual kWh]])","v":""},{"$f":"IF(OR(Table_PI[[#This Row],[Peak kW]]=\"\",Table_PI[[#This Row],[Peak kW]]=0),\"\",Table_PI[[#This Row],[Peak kW]])","v":""},{"$f":"IFERROR(IF(Table_SummaryPI[[#This Row],[kWhSavings]]=\"\",\"\",$AU$9*Table_SummaryPI[[#This Row],[kWhSavings]]),0)","v":""},{"$f":"IFERROR(IF(Table_SummaryPI[[#This Row],[kWhSavings]]=\"\",\"\",$AU$14*Table_SummaryPI[[#This Row],[kWhSavings]]),0)","v":""},{"$f":"IFERROR(IF(Table_SummaryPI[[#This Row],[kWhSavings]]=\"\",\"\",$AU$18*Table_SummaryPI[[#This Row],[kWhSavings]]),0)","v":""},{"$f":"IFERROR(IF(Table_SummaryPI[[#This Row],[kWhSavings]]=\"\",\"\",$AU$22*Table_SummaryPI[[#This Row],[kWhSavings]]),0)","v":""},{"$f":"IFERROR(IF(MeasureCalc(Table_PI[[#This Row],[Hide:\nFormula Name]],Table_SummaryPI[[#This Row],[Quantity]],Table_PI[[#This Row],[List 1]],Table_PI[[#This Row],[List 2]],Table_PI[[#This Row],[List 3]],Table_PI[[#This Row],[Size]],Table_PI[[#This Row],[Input 1]],Table_PI[[#This Row],[Input 2]],Table_PI[[#This Row],[Input 3]],Table_PI[[#This Row],[Input 4]],'Customer Information'!$AR$12,200,ROW())<>\"No Rebate\",MeasureCalc(Table_PI[[#This Row],[Hide:\nFormula Name]],Table_SummaryPI[[#This Row],[Quantity]],Table_PI[[#This Row],[List 1]],Table_PI[[#This Row],[List 2]],Table_PI[[#This Row],[List 3]],Table_PI[[#This Row],[Size]],Table_PI[[#This Row],[Input 1]],Table_PI[[#This Row],[Input 2]],Table_PI[[#This Row],[Input 3]],Table_PI[[#This Row],[Input 4]],'Customer Information'!$AR$12,200,ROW()),\"\"),\"\")","v":""},{"$f":"IFERROR(IF(MeasureCalc(Table_PI[[#This Row],[Hide:\nFormula Name]],Table_SummaryPI[[#This Row],[Quantity]],Table_PI[[#This Row],[List 1]],Table_PI[[#This Row],[List 2]],Table_PI[[#This Row],[List 3]],Table_PI[[#This Row],[Size]],Table_PI[[#This Row],[Input 1]],Table_PI[[#This Row],[Input 2]],Table_PI[[#This Row],[Input 3]],Table_PI[[#This Row],[Input 4]],'Customer Information'!$AR$12,201,ROW())<>\"No Rebate\",MeasureCalc(Table_PI[[#This Row],[Hide:\nFormula Name]],Table_SummaryPI[[#This Row],[Quantity]],Table_PI[[#This Row],[List 1]],Table_PI[[#This Row],[List 2]],Table_PI[[#This Row],[List 3]],Table_PI[[#This Row],[Size]],Table_PI[[#This Row],[Input 1]],Table_PI[[#This Row],[Input 2]],Table_PI[[#This Row],[Input 3]],Table_PI[[#This Row],[Input 4]],'Customer Information'!$AR$12,201,ROW()),\"\"),\"\")","v":""}]
[{"$f":"Table_PI[[#This Row],[Line No.]]","v":""},{"$f":"IF(Table_SummaryPI[[#This Row],[MeassureCategory]]<>\"\",CONCATENATE(Table_SummaryPI[[#This Row],[MeassureCategory]],  \" - \", Table_SummaryPI[[#This Row],[ProposedMeasureCategory]],  \" - \", TEXT(Table_SummaryPI[[#This Row],[Size]],\"#,##0.00\"),\" \",Table_SummaryPI[[#This Row],[SizeUnit]]),\"\")","v":""},{"$f":"SUBSTITUTE(Table_PI[[#This Row],[Measure]],\"     \",\"\",1)","v":""},{"$f":"IF(Table_PI[[#This Row],[List 1]]<>\"\",Table_PI[[#This Row],[List 1]],\"\")","v":""},{"$f":"IF(Table_PI[[#This Row],[List 2]]<>\"\",Table_PI[[#This Row],[List 2]],\"\")","v":""},{"$f":"IF(Table_PI[[#This Row],[List 3]]<>\"\",Table_PI[[#This Row],[List 3]],\"\")","v":""},{"$f":"IF(Table_PI[[#This Row],[Manufacturer]]=\"\",\"\",Table_PI[[#This Row],[Manufacturer]])","v":""},{"$f":"IF(Table_PI[[#This Row],[Model Number]]=\"\",\"\",Table_PI[[#This Row],[Model Number]])","v":""},{"$f":"IF(Table_PI[[#This Row],[Serial Number(s)]]=\"\",\"\",Table_PI[[#This Row],[Serial Number(s)]])","v":""},null,{"$f":"IF(Table_PI[[#This Row],[Size]]=\"\",\"\",Table_PI[[#This Row],[Size]])","v":""},null,{"$f":"IFERROR(IF(AND(MeasureCalc(Table_PI[[#This Row],[Hide:\nFormula Name]],Table_SummaryPI[[#This Row],[Quantity]],Table_PI[[#This Row],[List 1]],Table_PI[[#This Row],[List 2]],Table_PI[[#This Row],[List 3]],Table_PI[[#This Row],[Size]],Table_PI[[#This Row],[Input 1]],Table_PI[[#This Row],[Input 2]],Table_PI[[#This Row],[Input 3]],Table_PI[[#This Row],[Input 4]],'Customer Information'!$AR$12,100,ROW())<>0,MeasureCalc(Table_PI[[#This Row],[Hide:\nFormula Name]],Table_SummaryPI[[#This Row],[Quantity]],Table_PI[[#This Row],[List 1]],Table_PI[[#This Row],[List 2]],Table_PI[[#This Row],[List 3]],Table_PI[[#This Row],[Size]],Table_PI[[#This Row],[Input 1]],Table_PI[[#This Row],[Input 2]],Table_PI[[#This Row],[Input 3]],Table_PI[[#This Row],[Input 4]],'Customer Information'!$AR$12,100,ROW())<>\"No Rebate\"),MeasureCalc(Table_PI[[#This Row],[Hide:\nFormula Name]],Table_SummaryPI[[#This Row],[Quantity]],Table_PI[[#This Row],[List 1]],Table_PI[[#This Row],[List 2]],Table_PI[[#This Row],[List 3]],Table_PI[[#This Row],[Size]],Table_PI[[#This Row],[Input 1]],Table_PI[[#This Row],[Input 2]],Table_PI[[#This Row],[Input 3]],Table_PI[[#This Row],[Input 4]],'Customer Information'!$AR$12,100,ROW()),\"\"),\"\")","v":""},{"$f":"IF(Table_PI[[#This Row],[Input 1]]<>\"\",Table_PI[[#This Row],[Input 1]],\"\")","v":""},null,{"$f":"IFERROR(IF(AND(MeasureCalc(Table_PI[[#This Row],[Hide:\nFormula Name]],Table_SummaryPI[[#This Row],[Quantity]],Table_PI[[#This Row],[List 1]],Table_PI[[#This Row],[List 2]],Table_PI[[#This Row],[List 3]],Table_PI[[#This Row],[Size]],Table_PI[[#This Row],[Input 1]],Table_PI[[#This Row],[Input 2]],Table_PI[[#This Row],[Input 3]],Table_PI[[#This Row],[Input 4]],'Customer Information'!$AR$12,101,ROW())<>0,MeasureCalc(Table_PI[[#This Row],[Hide:\nFormula Name]],Table_SummaryPI[[#This Row],[Quantity]],Table_PI[[#This Row],[List 1]],Table_PI[[#This Row],[List 2]],Table_PI[[#This Row],[List 3]],Table_PI[[#This Row],[Size]],Table_PI[[#This Row],[Input 1]],Table_PI[[#This Row],[Input 2]],Table_PI[[#This Row],[Input 3]],Table_PI[[#This Row],[Input 4]],'Customer Information'!$AR$12,101,ROW())<>\"No Rebate\"),MeasureCalc(Table_PI[[#This Row],[Hide:\nFormula Name]],Table_SummaryPI[[#This Row],[Quantity]],Table_PI[[#This Row],[List 1]],Table_PI[[#This Row],[List 2]],Table_PI[[#This Row],[List 3]],Table_PI[[#This Row],[Size]],Table_PI[[#This Row],[Input 1]],Table_PI[[#This Row],[Input 2]],Table_PI[[#This Row],[Input 3]],Table_PI[[#This Row],[Input 4]],'Customer Information'!$AR$12,101,ROW()),\"\"),\"\")","v":""},{"$f":"IF(Table_PI[[#This Row],[Input 2]]<>\"\",Table_PI[[#This Row],[Input 2]],\"\")","v":""},null,{"$f":"IFERROR(IF(AND(MeasureCalc(Table_PI[[#This Row],[Hide:\nFormula Name]],Table_SummaryPI[[#This Row],[Quantity]],Table_PI[[#This Row],[List 1]],Table_PI[[#This Row],[List 2]],Table_PI[[#This Row],[List 3]],Table_PI[[#This Row],[Size]],Table_PI[[#This Row],[Input 1]],Table_PI[[#This Row],[Input 2]],Table_PI[[#This Row],[Input 3]],Table_PI[[#This Row],[Input 4]],'Customer Information'!$AR$12,102,ROW())<>0,MeasureCalc(Table_PI[[#This Row],[Hide:\nFormula Name]],Table_SummaryPI[[#This Row],[Quantity]],Table_PI[[#This Row],[List 1]],Table_PI[[#This Row],[List 2]],Table_PI[[#This Row],[List 3]],Table_PI[[#This Row],[Size]],Table_PI[[#This Row],[Input 1]],Table_PI[[#This Row],[Input 2]],Table_PI[[#This Row],[Input 3]],Table_PI[[#This Row],[Input 4]],'Customer Information'!$AR$12,102,ROW())<>\"No Rebate\"),MeasureCalc(Table_PI[[#This Row],[Hide:\nFormula Name]],Table_SummaryPI[[#This Row],[Quantity]],Table_PI[[#This Row],[List 1]],Table_PI[[#This Row],[List 2]],Table_PI[[#This Row],[List 3]],Table_PI[[#This Row],[Size]],Table_PI[[#This Row],[Input 1]],Table_PI[[#This Row],[Input 2]],Table_PI[[#This Row],[Input 3]],Table_PI[[#This Row],[Input 4]],'Customer Information'!$AR$12,102,ROW()),\"\"),\"\")","v":""},{"$f":"IF(Table_PI[[#This Row],[Input 3]]<>\"\",Table_PI[[#This Row],[Input 3]],\"\")","v":""},null,{"$f":"IFERROR(IF(AND(MeasureCalc(Table_PI[[#This Row],[Hide:\nFormula Name]],Table_SummaryPI[[#This Row],[Quantity]],Table_PI[[#This Row],[List 1]],Table_PI[[#This Row],[List 2]],Table_PI[[#This Row],[List 3]],Table_PI[[#This Row],[Size]],Table_PI[[#This Row],[Input 1]],Table_PI[[#This Row],[Input 2]],Table_PI[[#This Row],[Input 3]],Table_PI[[#This Row],[Input 4]],'Customer Information'!$AR$12,103,ROW())<>0,MeasureCalc(Table_PI[[#This Row],[Hide:\nFormula Name]],Table_SummaryPI[[#This Row],[Quantity]],Table_PI[[#This Row],[List 1]],Table_PI[[#This Row],[List 2]],Table_PI[[#This Row],[List 3]],Table_PI[[#This Row],[Size]],Table_PI[[#This Row],[Input 1]],Table_PI[[#This Row],[Input 2]],Table_PI[[#This Row],[Input 3]],Table_PI[[#This Row],[Input 4]],'Customer Information'!$AR$12,103,ROW())<>\"No Rebate\"),MeasureCalc(Table_PI[[#This Row],[Hide:\nFormula Name]],Table_SummaryPI[[#This Row],[Quantity]],Table_PI[[#This Row],[List 1]],Table_PI[[#This Row],[List 2]],Table_PI[[#This Row],[List 3]],Table_PI[[#This Row],[Size]],Table_PI[[#This Row],[Input 1]],Table_PI[[#This Row],[Input 2]],Table_PI[[#This Row],[Input 3]],Table_PI[[#This Row],[Input 4]],'Customer Information'!$AR$12,103,ROW()),\"\"),\"\")","v":""},{"$f":"IF(Table_PI[[#This Row],[Input 4]]<>\"\",Table_PI[[#This Row],[Input 4]],\"\")","v":""},{"$f":"IF(Table_PI[[#This Row],[Quantity]]=\"\",\"\",Table_PI[[#This Row],[Quantity]])","v":""},{"$f":"IF(Table_PI[[#This Row],[Notes]]=\"\",\"\",Table_PI[[#This Row],[Notes]])","v":""},{"$f":"IF(OR(Table_PI[[#This Row],[Hide:\nBaseline kWh]]=\"\",Table_PI[[#This Row],[Hide:\nBaseline kWh]]=0),\"\",Table_PI[[#This Row],[Hide:\nBaseline kWh]])","v":""},{"$f":"IF(OR(Table_PI[[#This Row],[Hide:\nBaseline kW]]=\"\",Table_PI[[#This Row],[Hide:\nBaseline kW]]=0),\"\",Table_PI[[#This Row],[Hide:\nBaseline kW]])","v":""},{"$f":"IF(OR(Table_PI[[#This Row],[Hide:\nProposed kWh]]=\"\",Table_PI[[#This Row],[Hide:\nProposed kWh]]=0),\"\",Table_PI[[#This Row],[Hide:\nProposed kWh]])","v":""},{"$f":"IF(OR(Table_PI[[#This Row],[Hide:\nProposed kW]]=\"\",Table_PI[[#This Row],[Hide:\nProposed kW]]=0),\"\",Table_PI[[#This Row],[Hide:\nProposed kW]])","v":""},{"$f":"IF(OR(Table_PI[[#This Row],[Rebate]]=\"\",Table_PI[[#This Row],[Rebate]]=0),\"\",Table_PI[[#This Row],[Rebate]])","v":""},{"$f":"IF(OR(Table_PI[[#This Row],[Hide:\nIncremental Cost]]=\"\",Table_PI[[#This Row],[Hide:\nIncremental Cost]]=0),\"\",Table_PI[[#This Row],[Hide:\nIncremental Cost]])","v":""},{"$f":"IFERROR(IF(Table_SummaryPI[[#This Row],[kWhSavings]]=\"\",\"\",ROUND(Table_SummaryPI[[#This Row],[kWhSavings]]/$AG$401*'Customer Information'!$BC$17,2)),0)","v":""},{"$f":"IF(OR(Table_PI[[#This Row],[Annual kWh]]=\"\",Table_PI[[#This Row],[Annual kWh]]=0),\"\",Table_PI[[#This Row],[Annual kWh]])","v":""},{"$f":"IF(OR(Table_PI[[#This Row],[Peak kW]]=\"\",Table_PI[[#This Row],[Peak kW]]=0),\"\",Table_PI[[#This Row],[Peak kW]])","v":""},{"$f":"IFERROR(IF(Table_SummaryPI[[#This Row],[kWhSavings]]=\"\",\"\",$AU$9*Table_SummaryPI[[#This Row],[kWhSavings]]),0)","v":""},{"$f":"IFERROR(IF(Table_SummaryPI[[#This Row],[kWhSavings]]=\"\",\"\",$AU$14*Table_SummaryPI[[#This Row],[kWhSavings]]),0)","v":""},{"$f":"IFERROR(IF(Table_SummaryPI[[#This Row],[kWhSavings]]=\"\",\"\",$AU$18*Table_SummaryPI[[#This Row],[kWhSavings]]),0)","v":""},{"$f":"IFERROR(IF(Table_SummaryPI[[#This Row],[kWhSavings]]=\"\",\"\",$AU$22*Table_SummaryPI[[#This Row],[kWhSavings]]),0)","v":""},{"$f":"IFERROR(IF(MeasureCalc(Table_PI[[#This Row],[Hide:\nFormula Name]],Table_SummaryPI[[#This Row],[Quantity]],Table_PI[[#This Row],[List 1]],Table_PI[[#This Row],[List 2]],Table_PI[[#This Row],[List 3]],Table_PI[[#This Row],[Size]],Table_PI[[#This Row],[Input 1]],Table_PI[[#This Row],[Input 2]],Table_PI[[#This Row],[Input 3]],Table_PI[[#This Row],[Input 4]],'Customer Information'!$AR$12,200,ROW())<>\"No Rebate\",MeasureCalc(Table_PI[[#This Row],[Hide:\nFormula Name]],Table_SummaryPI[[#This Row],[Quantity]],Table_PI[[#This Row],[List 1]],Table_PI[[#This Row],[List 2]],Table_PI[[#This Row],[List 3]],Table_PI[[#This Row],[Size]],Table_PI[[#This Row],[Input 1]],Table_PI[[#This Row],[Input 2]],Table_PI[[#This Row],[Input 3]],Table_PI[[#This Row],[Input 4]],'Customer Information'!$AR$12,200,ROW()),\"\"),\"\")","v":""},{"$f":"IFERROR(IF(MeasureCalc(Table_PI[[#This Row],[Hide:\nFormula Name]],Table_SummaryPI[[#This Row],[Quantity]],Table_PI[[#This Row],[List 1]],Table_PI[[#This Row],[List 2]],Table_PI[[#This Row],[List 3]],Table_PI[[#This Row],[Size]],Table_PI[[#This Row],[Input 1]],Table_PI[[#This Row],[Input 2]],Table_PI[[#This Row],[Input 3]],Table_PI[[#This Row],[Input 4]],'Customer Information'!$AR$12,201,ROW())<>\"No Rebate\",MeasureCalc(Table_PI[[#This Row],[Hide:\nFormula Name]],Table_SummaryPI[[#This Row],[Quantity]],Table_PI[[#This Row],[List 1]],Table_PI[[#This Row],[List 2]],Table_PI[[#This Row],[List 3]],Table_PI[[#This Row],[Size]],Table_PI[[#This Row],[Input 1]],Table_PI[[#This Row],[Input 2]],Table_PI[[#This Row],[Input 3]],Table_PI[[#This Row],[Input 4]],'Customer Information'!$AR$12,201,ROW()),\"\"),\"\")","v":""}]
[{"$f":"Table_PI[[#This Row],[Line No.]]","v":""},{"$f":"IF(Table_SummaryPI[[#This Row],[MeassureCategory]]<>\"\",CONCATENATE(Table_SummaryPI[[#This Row],[MeassureCategory]],  \" - \", Table_SummaryPI[[#This Row],[ProposedMeasureCategory]],  \" - \", TEXT(Table_SummaryPI[[#This Row],[Size]],\"#,##0.00\"),\" \",Table_SummaryPI[[#This Row],[SizeUnit]]),\"\")","v":""},{"$f":"SUBSTITUTE(Table_PI[[#This Row],[Measure]],\"     \",\"\",1)","v":""},{"$f":"IF(Table_PI[[#This Row],[List 1]]<>\"\",Table_PI[[#This Row],[List 1]],\"\")","v":""},{"$f":"IF(Table_PI[[#This Row],[List 2]]<>\"\",Table_PI[[#This Row],[List 2]],\"\")","v":""},{"$f":"IF(Table_PI[[#This Row],[List 3]]<>\"\",Table_PI[[#This Row],[List 3]],\"\")","v":""},{"$f":"IF(Table_PI[[#This Row],[Manufacturer]]=\"\",\"\",Table_PI[[#This Row],[Manufacturer]])","v":""},{"$f":"IF(Table_PI[[#This Row],[Model Number]]=\"\",\"\",Table_PI[[#This Row],[Model Number]])","v":""},{"$f":"IF(Table_PI[[#This Row],[Serial Number(s)]]=\"\",\"\",Table_PI[[#This Row],[Serial Number(s)]])","v":""},null,{"$f":"IF(Table_PI[[#This Row],[Size]]=\"\",\"\",Table_PI[[#This Row],[Size]])","v":""},null,{"$f":"IFERROR(IF(AND(MeasureCalc(Table_PI[[#This Row],[Hide:\nFormula Name]],Table_SummaryPI[[#This Row],[Quantity]],Table_PI[[#This Row],[List 1]],Table_PI[[#This Row],[List 2]],Table_PI[[#This Row],[List 3]],Table_PI[[#This Row],[Size]],Table_PI[[#This Row],[Input 1]],Table_PI[[#This Row],[Input 2]],Table_PI[[#This Row],[Input 3]],Table_PI[[#This Row],[Input 4]],'Customer Information'!$AR$12,100,ROW())<>0,MeasureCalc(Table_PI[[#This Row],[Hide:\nFormula Name]],Table_SummaryPI[[#This Row],[Quantity]],Table_PI[[#This Row],[List 1]],Table_PI[[#This Row],[List 2]],Table_PI[[#This Row],[List 3]],Table_PI[[#This Row],[Size]],Table_PI[[#This Row],[Input 1]],Table_PI[[#This Row],[Input 2]],Table_PI[[#This Row],[Input 3]],Table_PI[[#This Row],[Input 4]],'Customer Information'!$AR$12,100,ROW())<>\"No Rebate\"),MeasureCalc(Table_PI[[#This Row],[Hide:\nFormula Name]],Table_SummaryPI[[#This Row],[Quantity]],Table_PI[[#This Row],[List 1]],Table_PI[[#This Row],[List 2]],Table_PI[[#This Row],[List 3]],Table_PI[[#This Row],[Size]],Table_PI[[#This Row],[Input 1]],Table_PI[[#This Row],[Input 2]],Table_PI[[#This Row],[Input 3]],Table_PI[[#This Row],[Input 4]],'Customer Information'!$AR$12,100,ROW()),\"\"),\"\")","v":""},{"$f":"IF(Table_PI[[#This Row],[Input 1]]<>\"\",Table_PI[[#This Row],[Input 1]],\"\")","v":""},null,{"$f":"IFERROR(IF(AND(MeasureCalc(Table_PI[[#This Row],[Hide:\nFormula Name]],Table_SummaryPI[[#This Row],[Quantity]],Table_PI[[#This Row],[List 1]],Table_PI[[#This Row],[List 2]],Table_PI[[#This Row],[List 3]],Table_PI[[#This Row],[Size]],Table_PI[[#This Row],[Input 1]],Table_PI[[#This Row],[Input 2]],Table_PI[[#This Row],[Input 3]],Table_PI[[#This Row],[Input 4]],'Customer Information'!$AR$12,101,ROW())<>0,MeasureCalc(Table_PI[[#This Row],[Hide:\nFormula Name]],Table_SummaryPI[[#This Row],[Quantity]],Table_PI[[#This Row],[List 1]],Table_PI[[#This Row],[List 2]],Table_PI[[#This Row],[List 3]],Table_PI[[#This Row],[Size]],Table_PI[[#This Row],[Input 1]],Table_PI[[#This Row],[Input 2]],Table_PI[[#This Row],[Input 3]],Table_PI[[#This Row],[Input 4]],'Customer Information'!$AR$12,101,ROW())<>\"No Rebate\"),MeasureCalc(Table_PI[[#This Row],[Hide:\nFormula Name]],Table_SummaryPI[[#This Row],[Quantity]],Table_PI[[#This Row],[List 1]],Table_PI[[#This Row],[List 2]],Table_PI[[#This Row],[List 3]],Table_PI[[#This Row],[Size]],Table_PI[[#This Row],[Input 1]],Table_PI[[#This Row],[Input 2]],Table_PI[[#This Row],[Input 3]],Table_PI[[#This Row],[Input 4]],'Customer Information'!$AR$12,101,ROW()),\"\"),\"\")","v":""},{"$f":"IF(Table_PI[[#This Row],[Input 2]]<>\"\",Table_PI[[#This Row],[Input 2]],\"\")","v":""},null,{"$f":"IFERROR(IF(AND(MeasureCalc(Table_PI[[#This Row],[Hide:\nFormula Name]],Table_SummaryPI[[#This Row],[Quantity]],Table_PI[[#This Row],[List 1]],Table_PI[[#This Row],[List 2]],Table_PI[[#This Row],[List 3]],Table_PI[[#This Row],[Size]],Table_PI[[#This Row],[Input 1]],Table_PI[[#This Row],[Input 2]],Table_PI[[#This Row],[Input 3]],Table_PI[[#This Row],[Input 4]],'Customer Information'!$AR$12,102,ROW())<>0,MeasureCalc(Table_PI[[#This Row],[Hide:\nFormula Name]],Table_SummaryPI[[#This Row],[Quantity]],Table_PI[[#This Row],[List 1]],Table_PI[[#This Row],[List 2]],Table_PI[[#This Row],[List 3]],Table_PI[[#This Row],[Size]],Table_PI[[#This Row],[Input 1]],Table_PI[[#This Row],[Input 2]],Table_PI[[#This Row],[Input 3]],Table_PI[[#This Row],[Input 4]],'Customer Information'!$AR$12,102,ROW())<>\"No Rebate\"),MeasureCalc(Table_PI[[#This Row],[Hide:\nFormula Name]],Table_SummaryPI[[#This Row],[Quantity]],Table_PI[[#This Row],[List 1]],Table_PI[[#This Row],[List 2]],Table_PI[[#This Row],[List 3]],Table_PI[[#This Row],[Size]],Table_PI[[#This Row],[Input 1]],Table_PI[[#This Row],[Input 2]],Table_PI[[#This Row],[Input 3]],Table_PI[[#This Row],[Input 4]],'Customer Information'!$AR$12,102,ROW()),\"\"),\"\")","v":""},{"$f":"IF(Table_PI[[#This Row],[Input 3]]<>\"\",Table_PI[[#This Row],[Input 3]],\"\")","v":""},null,{"$f":"IFERROR(IF(AND(MeasureCalc(Table_PI[[#This Row],[Hide:\nFormula Name]],Table_SummaryPI[[#This Row],[Quantity]],Table_PI[[#This Row],[List 1]],Table_PI[[#This Row],[List 2]],Table_PI[[#This Row],[List 3]],Table_PI[[#This Row],[Size]],Table_PI[[#This Row],[Input 1]],Table_PI[[#This Row],[Input 2]],Table_PI[[#This Row],[Input 3]],Table_PI[[#This Row],[Input 4]],'Customer Information'!$AR$12,103,ROW())<>0,MeasureCalc(Table_PI[[#This Row],[Hide:\nFormula Name]],Table_SummaryPI[[#This Row],[Quantity]],Table_PI[[#This Row],[List 1]],Table_PI[[#This Row],[List 2]],Table_PI[[#This Row],[List 3]],Table_PI[[#This Row],[Size]],Table_PI[[#This Row],[Input 1]],Table_PI[[#This Row],[Input 2]],Table_PI[[#This Row],[Input 3]],Table_PI[[#This Row],[Input 4]],'Customer Information'!$AR$12,103,ROW())<>\"No Rebate\"),MeasureCalc(Table_PI[[#This Row],[Hide:\nFormula Name]],Table_SummaryPI[[#This Row],[Quantity]],Table_PI[[#This Row],[List 1]],Table_PI[[#This Row],[List 2]],Table_PI[[#This Row],[List 3]],Table_PI[[#This Row],[Size]],Table_PI[[#This Row],[Input 1]],Table_PI[[#This Row],[Input 2]],Table_PI[[#This Row],[Input 3]],Table_PI[[#This Row],[Input 4]],'Customer Information'!$AR$12,103,ROW()),\"\"),\"\")","v":""},{"$f":"IF(Table_PI[[#This Row],[Input 4]]<>\"\",Table_PI[[#This Row],[Input 4]],\"\")","v":""},{"$f":"IF(Table_PI[[#This Row],[Quantity]]=\"\",\"\",Table_PI[[#This Row],[Quantity]])","v":""},{"$f":"IF(Table_PI[[#This Row],[Notes]]=\"\",\"\",Table_PI[[#This Row],[Notes]])","v":""},{"$f":"IF(OR(Table_PI[[#This Row],[Hide:\nBaseline kWh]]=\"\",Table_PI[[#This Row],[Hide:\nBaseline kWh]]=0),\"\",Table_PI[[#This Row],[Hide:\nBaseline kWh]])","v":""},{"$f":"IF(OR(Table_PI[[#This Row],[Hide:\nBaseline kW]]=\"\",Table_PI[[#This Row],[Hide:\nBaseline kW]]=0),\"\",Table_PI[[#This Row],[Hide:\nBaseline kW]])","v":""},{"$f":"IF(OR(Table_PI[[#This Row],[Hide:\nProposed kWh]]=\"\",Table_PI[[#This Row],[Hide:\nProposed kWh]]=0),\"\",Table_PI[[#This Row],[Hide:\nProposed kWh]])","v":""},{"$f":"IF(OR(Table_PI[[#This Row],[Hide:\nProposed kW]]=\"\",Table_PI[[#This Row],[Hide:\nProposed kW]]=0),\"\",Table_PI[[#This Row],[Hide:\nProposed kW]])","v":""},{"$f":"IF(OR(Table_PI[[#This Row],[Rebate]]=\"\",Table_PI[[#This Row],[Rebate]]=0),\"\",Table_PI[[#This Row],[Rebate]])","v":""},{"$f":"IF(OR(Table_PI[[#This Row],[Hide:\nIncremental Cost]]=\"\",Table_PI[[#This Row],[Hide:\nIncremental Cost]]=0),\"\",Table_PI[[#This Row],[Hide:\nIncremental Cost]])","v":""},{"$f":"IFERROR(IF(Table_SummaryPI[[#This Row],[kWhSavings]]=\"\",\"\",ROUND(Table_SummaryPI[[#This Row],[kWhSavings]]/$AG$401*'Customer Information'!$BC$17,2)),0)","v":""},{"$f":"IF(OR(Table_PI[[#This Row],[Annual kWh]]=\"\",Table_PI[[#This Row],[Annual kWh]]=0),\"\",Table_PI[[#This Row],[Annual kWh]])","v":""},{"$f":"IF(OR(Table_PI[[#This Row],[Peak kW]]=\"\",Table_PI[[#This Row],[Peak kW]]=0),\"\",Table_PI[[#This Row],[Peak kW]])","v":""},{"$f":"IFERROR(IF(Table_SummaryPI[[#This Row],[kWhSavings]]=\"\",\"\",$AU$9*Table_SummaryPI[[#This Row],[kWhSavings]]),0)","v":""},{"$f":"IFERROR(IF(Table_SummaryPI[[#This Row],[kWhSavings]]=\"\",\"\",$AU$14*Table_SummaryPI[[#This Row],[kWhSavings]]),0)","v":""},{"$f":"IFERROR(IF(Table_SummaryPI[[#This Row],[kWhSavings]]=\"\",\"\",$AU$18*Table_SummaryPI[[#This Row],[kWhSavings]]),0)","v":""},{"$f":"IFERROR(IF(Table_SummaryPI[[#This Row],[kWhSavings]]=\"\",\"\",$AU$22*Table_SummaryPI[[#This Row],[kWhSavings]]),0)","v":""},{"$f":"IFERROR(IF(MeasureCalc(Table_PI[[#This Row],[Hide:\nFormula Name]],Table_SummaryPI[[#This Row],[Quantity]],Table_PI[[#This Row],[List 1]],Table_PI[[#This Row],[List 2]],Table_PI[[#This Row],[List 3]],Table_PI[[#This Row],[Size]],Table_PI[[#This Row],[Input 1]],Table_PI[[#This Row],[Input 2]],Table_PI[[#This Row],[Input 3]],Table_PI[[#This Row],[Input 4]],'Customer Information'!$AR$12,200,ROW())<>\"No Rebate\",MeasureCalc(Table_PI[[#This Row],[Hide:\nFormula Name]],Table_SummaryPI[[#This Row],[Quantity]],Table_PI[[#This Row],[List 1]],Table_PI[[#This Row],[List 2]],Table_PI[[#This Row],[List 3]],Table_PI[[#This Row],[Size]],Table_PI[[#This Row],[Input 1]],Table_PI[[#This Row],[Input 2]],Table_PI[[#This Row],[Input 3]],Table_PI[[#This Row],[Input 4]],'Customer Information'!$AR$12,200,ROW()),\"\"),\"\")","v":""},{"$f":"IFERROR(IF(MeasureCalc(Table_PI[[#This Row],[Hide:\nFormula Name]],Table_SummaryPI[[#This Row],[Quantity]],Table_PI[[#This Row],[List 1]],Table_PI[[#This Row],[List 2]],Table_PI[[#This Row],[List 3]],Table_PI[[#This Row],[Size]],Table_PI[[#This Row],[Input 1]],Table_PI[[#This Row],[Input 2]],Table_PI[[#This Row],[Input 3]],Table_PI[[#This Row],[Input 4]],'Customer Information'!$AR$12,201,ROW())<>\"No Rebate\",MeasureCalc(Table_PI[[#This Row],[Hide:\nFormula Name]],Table_SummaryPI[[#This Row],[Quantity]],Table_PI[[#This Row],[List 1]],Table_PI[[#This Row],[List 2]],Table_PI[[#This Row],[List 3]],Table_PI[[#This Row],[Size]],Table_PI[[#This Row],[Input 1]],Table_PI[[#This Row],[Input 2]],Table_PI[[#This Row],[Input 3]],Table_PI[[#This Row],[Input 4]],'Customer Information'!$AR$12,201,ROW()),\"\"),\"\")","v":""}]
[{"$f":"Table_PI[[#This Row],[Line No.]]","v":""},{"$f":"IF(Table_SummaryPI[[#This Row],[MeassureCategory]]<>\"\",CONCATENATE(Table_SummaryPI[[#This Row],[MeassureCategory]],  \" - \", Table_SummaryPI[[#This Row],[ProposedMeasureCategory]],  \" - \", TEXT(Table_SummaryPI[[#This Row],[Size]],\"#,##0.00\"),\" \",Table_SummaryPI[[#This Row],[SizeUnit]]),\"\")","v":""},{"$f":"SUBSTITUTE(Table_PI[[#This Row],[Measure]],\"     \",\"\",1)","v":""},{"$f":"IF(Table_PI[[#This Row],[List 1]]<>\"\",Table_PI[[#This Row],[List 1]],\"\")","v":""},{"$f":"IF(Table_PI[[#This Row],[List 2]]<>\"\",Table_PI[[#This Row],[List 2]],\"\")","v":""},{"$f":"IF(Table_PI[[#This Row],[List 3]]<>\"\",Table_PI[[#This Row],[List 3]],\"\")","v":""},{"$f":"IF(Table_PI[[#This Row],[Manufacturer]]=\"\",\"\",Table_PI[[#This Row],[Manufacturer]])","v":""},{"$f":"IF(Table_PI[[#This Row],[Model Number]]=\"\",\"\",Table_PI[[#This Row],[Model Number]])","v":""},{"$f":"IF(Table_PI[[#This Row],[Serial Number(s)]]=\"\",\"\",Table_PI[[#This Row],[Serial Number(s)]])","v":""},null,{"$f":"IF(Table_PI[[#This Row],[Size]]=\"\",\"\",Table_PI[[#This Row],[Size]])","v":""},null,{"$f":"IFERROR(IF(AND(MeasureCalc(Table_PI[[#This Row],[Hide:\nFormula Name]],Table_SummaryPI[[#This Row],[Quantity]],Table_PI[[#This Row],[List 1]],Table_PI[[#This Row],[List 2]],Table_PI[[#This Row],[List 3]],Table_PI[[#This Row],[Size]],Table_PI[[#This Row],[Input 1]],Table_PI[[#This Row],[Input 2]],Table_PI[[#This Row],[Input 3]],Table_PI[[#This Row],[Input 4]],'Customer Information'!$AR$12,100,ROW())<>0,MeasureCalc(Table_PI[[#This Row],[Hide:\nFormula Name]],Table_SummaryPI[[#This Row],[Quantity]],Table_PI[[#This Row],[List 1]],Table_PI[[#This Row],[List 2]],Table_PI[[#This Row],[List 3]],Table_PI[[#This Row],[Size]],Table_PI[[#This Row],[Input 1]],Table_PI[[#This Row],[Input 2]],Table_PI[[#This Row],[Input 3]],Table_PI[[#This Row],[Input 4]],'Customer Information'!$AR$12,100,ROW())<>\"No Rebate\"),MeasureCalc(Table_PI[[#This Row],[Hide:\nFormula Name]],Table_SummaryPI[[#This Row],[Quantity]],Table_PI[[#This Row],[List 1]],Table_PI[[#This Row],[List 2]],Table_PI[[#This Row],[List 3]],Table_PI[[#This Row],[Size]],Table_PI[[#This Row],[Input 1]],Table_PI[[#This Row],[Input 2]],Table_PI[[#This Row],[Input 3]],Table_PI[[#This Row],[Input 4]],'Customer Information'!$AR$12,100,ROW()),\"\"),\"\")","v":""},{"$f":"IF(Table_PI[[#This Row],[Input 1]]<>\"\",Table_PI[[#This Row],[Input 1]],\"\")","v":""},null,{"$f":"IFERROR(IF(AND(MeasureCalc(Table_PI[[#This Row],[Hide:\nFormula Name]],Table_SummaryPI[[#This Row],[Quantity]],Table_PI[[#This Row],[List 1]],Table_PI[[#This Row],[List 2]],Table_PI[[#This Row],[List 3]],Table_PI[[#This Row],[Size]],Table_PI[[#This Row],[Input 1]],Table_PI[[#This Row],[Input 2]],Table_PI[[#This Row],[Input 3]],Table_PI[[#This Row],[Input 4]],'Customer Information'!$AR$12,101,ROW())<>0,MeasureCalc(Table_PI[[#This Row],[Hide:\nFormula Name]],Table_SummaryPI[[#This Row],[Quantity]],Table_PI[[#This Row],[List 1]],Table_PI[[#This Row],[List 2]],Table_PI[[#This Row],[List 3]],Table_PI[[#This Row],[Size]],Table_PI[[#This Row],[Input 1]],Table_PI[[#This Row],[Input 2]],Table_PI[[#This Row],[Input 3]],Table_PI[[#This Row],[Input 4]],'Customer Information'!$AR$12,101,ROW())<>\"No Rebate\"),MeasureCalc(Table_PI[[#This Row],[Hide:\nFormula Name]],Table_SummaryPI[[#This Row],[Quantity]],Table_PI[[#This Row],[List 1]],Table_PI[[#This Row],[List 2]],Table_PI[[#This Row],[List 3]],Table_PI[[#This Row],[Size]],Table_PI[[#This Row],[Input 1]],Table_PI[[#This Row],[Input 2]],Table_PI[[#This Row],[Input 3]],Table_PI[[#This Row],[Input 4]],'Customer Information'!$AR$12,101,ROW()),\"\"),\"\")","v":""},{"$f":"IF(Table_PI[[#This Row],[Input 2]]<>\"\",Table_PI[[#This Row],[Input 2]],\"\")","v":""},null,{"$f":"IFERROR(IF(AND(MeasureCalc(Table_PI[[#This Row],[Hide:\nFormula Name]],Table_SummaryPI[[#This Row],[Quantity]],Table_PI[[#This Row],[List 1]],Table_PI[[#This Row],[List 2]],Table_PI[[#This Row],[List 3]],Table_PI[[#This Row],[Size]],Table_PI[[#This Row],[Input 1]],Table_PI[[#This Row],[Input 2]],Table_PI[[#This Row],[Input 3]],Table_PI[[#This Row],[Input 4]],'Customer Information'!$AR$12,102,ROW())<>0,MeasureCalc(Table_PI[[#This Row],[Hide:\nFormula Name]],Table_SummaryPI[[#This Row],[Quantity]],Table_PI[[#This Row],[List 1]],Table_PI[[#This Row],[List 2]],Table_PI[[#This Row],[List 3]],Table_PI[[#This Row],[Size]],Table_PI[[#This Row],[Input 1]],Table_PI[[#This Row],[Input 2]],Table_PI[[#This Row],[Input 3]],Table_PI[[#This Row],[Input 4]],'Customer Information'!$AR$12,102,ROW())<>\"No Rebate\"),MeasureCalc(Table_PI[[#This Row],[Hide:\nFormula Name]],Table_SummaryPI[[#This Row],[Quantity]],Table_PI[[#This Row],[List 1]],Table_PI[[#This Row],[List 2]],Table_PI[[#This Row],[List 3]],Table_PI[[#This Row],[Size]],Table_PI[[#This Row],[Input 1]],Table_PI[[#This Row],[Input 2]],Table_PI[[#This Row],[Input 3]],Table_PI[[#This Row],[Input 4]],'Customer Information'!$AR$12,102,ROW()),\"\"),\"\")","v":""},{"$f":"IF(Table_PI[[#This Row],[Input 3]]<>\"\",Table_PI[[#This Row],[Input 3]],\"\")","v":""},null,{"$f":"IFERROR(IF(AND(MeasureCalc(Table_PI[[#This Row],[Hide:\nFormula Name]],Table_SummaryPI[[#This Row],[Quantity]],Table_PI[[#This Row],[List 1]],Table_PI[[#This Row],[List 2]],Table_PI[[#This Row],[List 3]],Table_PI[[#This Row],[Size]],Table_PI[[#This Row],[Input 1]],Table_PI[[#This Row],[Input 2]],Table_PI[[#This Row],[Input 3]],Table_PI[[#This Row],[Input 4]],'Customer Information'!$AR$12,103,ROW())<>0,MeasureCalc(Table_PI[[#This Row],[Hide:\nFormula Name]],Table_SummaryPI[[#This Row],[Quantity]],Table_PI[[#This Row],[List 1]],Table_PI[[#This Row],[List 2]],Table_PI[[#This Row],[List 3]],Table_PI[[#This Row],[Size]],Table_PI[[#This Row],[Input 1]],Table_PI[[#This Row],[Input 2]],Table_PI[[#This Row],[Input 3]],Table_PI[[#This Row],[Input 4]],'Customer Information'!$AR$12,103,ROW())<>\"No Rebate\"),MeasureCalc(Table_PI[[#This Row],[Hide:\nFormula Name]],Table_SummaryPI[[#This Row],[Quantity]],Table_PI[[#This Row],[List 1]],Table_PI[[#This Row],[List 2]],Table_PI[[#This Row],[List 3]],Table_PI[[#This Row],[Size]],Table_PI[[#This Row],[Input 1]],Table_PI[[#This Row],[Input 2]],Table_PI[[#This Row],[Input 3]],Table_PI[[#This Row],[Input 4]],'Customer Information'!$AR$12,103,ROW()),\"\"),\"\")","v":""},{"$f":"IF(Table_PI[[#This Row],[Input 4]]<>\"\",Table_PI[[#This Row],[Input 4]],\"\")","v":""},{"$f":"IF(Table_PI[[#This Row],[Quantity]]=\"\",\"\",Table_PI[[#This Row],[Quantity]])","v":""},{"$f":"IF(Table_PI[[#This Row],[Notes]]=\"\",\"\",Table_PI[[#This Row],[Notes]])","v":""},{"$f":"IF(OR(Table_PI[[#This Row],[Hide:\nBaseline kWh]]=\"\",Table_PI[[#This Row],[Hide:\nBaseline kWh]]=0),\"\",Table_PI[[#This Row],[Hide:\nBaseline kWh]])","v":""},{"$f":"IF(OR(Table_PI[[#This Row],[Hide:\nBaseline kW]]=\"\",Table_PI[[#This Row],[Hide:\nBaseline kW]]=0),\"\",Table_PI[[#This Row],[Hide:\nBaseline kW]])","v":""},{"$f":"IF(OR(Table_PI[[#This Row],[Hide:\nProposed kWh]]=\"\",Table_PI[[#This Row],[Hide:\nProposed kWh]]=0),\"\",Table_PI[[#This Row],[Hide:\nProposed kWh]])","v":""},{"$f":"IF(OR(Table_PI[[#This Row],[Hide:\nProposed kW]]=\"\",Table_PI[[#This Row],[Hide:\nProposed kW]]=0),\"\",Table_PI[[#This Row],[Hide:\nProposed kW]])","v":""},{"$f":"IF(OR(Table_PI[[#This Row],[Rebate]]=\"\",Table_PI[[#This Row],[Rebate]]=0),\"\",Table_PI[[#This Row],[Rebate]])","v":""},{"$f":"IF(OR(Table_PI[[#This Row],[Hide:\nIncremental Cost]]=\"\",Table_PI[[#This Row],[Hide:\nIncremental Cost]]=0),\"\",Table_PI[[#This Row],[Hide:\nIncremental Cost]])","v":""},{"$f":"IFERROR(IF(Table_SummaryPI[[#This Row],[kWhSavings]]=\"\",\"\",ROUND(Table_SummaryPI[[#This Row],[kWhSavings]]/$AG$401*'Customer Information'!$BC$17,2)),0)","v":""},{"$f":"IF(OR(Table_PI[[#This Row],[Annual kWh]]=\"\",Table_PI[[#This Row],[Annual kWh]]=0),\"\",Table_PI[[#This Row],[Annual kWh]])","v":""},{"$f":"IF(OR(Table_PI[[#This Row],[Peak kW]]=\"\",Table_PI[[#This Row],[Peak kW]]=0),\"\",Table_PI[[#This Row],[Peak kW]])","v":""},{"$f":"IFERROR(IF(Table_SummaryPI[[#This Row],[kWhSavings]]=\"\",\"\",$AU$9*Table_SummaryPI[[#This Row],[kWhSavings]]),0)","v":""},{"$f":"IFERROR(IF(Table_SummaryPI[[#This Row],[kWhSavings]]=\"\",\"\",$AU$14*Table_SummaryPI[[#This Row],[kWhSavings]]),0)","v":""},{"$f":"IFERROR(IF(Table_SummaryPI[[#This Row],[kWhSavings]]=\"\",\"\",$AU$18*Table_SummaryPI[[#This Row],[kWhSavings]]),0)","v":""},{"$f":"IFERROR(IF(Table_SummaryPI[[#This Row],[kWhSavings]]=\"\",\"\",$AU$22*Table_SummaryPI[[#This Row],[kWhSavings]]),0)","v":""},{"$f":"IFERROR(IF(MeasureCalc(Table_PI[[#This Row],[Hide:\nFormula Name]],Table_SummaryPI[[#This Row],[Quantity]],Table_PI[[#This Row],[List 1]],Table_PI[[#This Row],[List 2]],Table_PI[[#This Row],[List 3]],Table_PI[[#This Row],[Size]],Table_PI[[#This Row],[Input 1]],Table_PI[[#This Row],[Input 2]],Table_PI[[#This Row],[Input 3]],Table_PI[[#This Row],[Input 4]],'Customer Information'!$AR$12,200,ROW())<>\"No Rebate\",MeasureCalc(Table_PI[[#This Row],[Hide:\nFormula Name]],Table_SummaryPI[[#This Row],[Quantity]],Table_PI[[#This Row],[List 1]],Table_PI[[#This Row],[List 2]],Table_PI[[#This Row],[List 3]],Table_PI[[#This Row],[Size]],Table_PI[[#This Row],[Input 1]],Table_PI[[#This Row],[Input 2]],Table_PI[[#This Row],[Input 3]],Table_PI[[#This Row],[Input 4]],'Customer Information'!$AR$12,200,ROW()),\"\"),\"\")","v":""},{"$f":"IFERROR(IF(MeasureCalc(Table_PI[[#This Row],[Hide:\nFormula Name]],Table_SummaryPI[[#This Row],[Quantity]],Table_PI[[#This Row],[List 1]],Table_PI[[#This Row],[List 2]],Table_PI[[#This Row],[List 3]],Table_PI[[#This Row],[Size]],Table_PI[[#This Row],[Input 1]],Table_PI[[#This Row],[Input 2]],Table_PI[[#This Row],[Input 3]],Table_PI[[#This Row],[Input 4]],'Customer Information'!$AR$12,201,ROW())<>\"No Rebate\",MeasureCalc(Table_PI[[#This Row],[Hide:\nFormula Name]],Table_SummaryPI[[#This Row],[Quantity]],Table_PI[[#This Row],[List 1]],Table_PI[[#This Row],[List 2]],Table_PI[[#This Row],[List 3]],Table_PI[[#This Row],[Size]],Table_PI[[#This Row],[Input 1]],Table_PI[[#This Row],[Input 2]],Table_PI[[#This Row],[Input 3]],Table_PI[[#This Row],[Input 4]],'Customer Information'!$AR$12,201,ROW()),\"\"),\"\")","v":""}]
[{"$f":"Table_PI[[#This Row],[Line No.]]","v":""},{"$f":"IF(Table_SummaryPI[[#This Row],[MeassureCategory]]<>\"\",CONCATENATE(Table_SummaryPI[[#This Row],[MeassureCategory]],  \" - \", Table_SummaryPI[[#This Row],[ProposedMeasureCategory]],  \" - \", TEXT(Table_SummaryPI[[#This Row],[Size]],\"#,##0.00\"),\" \",Table_SummaryPI[[#This Row],[SizeUnit]]),\"\")","v":""},{"$f":"SUBSTITUTE(Table_PI[[#This Row],[Measure]],\"     \",\"\",1)","v":""},{"$f":"IF(Table_PI[[#This Row],[List 1]]<>\"\",Table_PI[[#This Row],[List 1]],\"\")","v":""},{"$f":"IF(Table_PI[[#This Row],[List 2]]<>\"\",Table_PI[[#This Row],[List 2]],\"\")","v":""},{"$f":"IF(Table_PI[[#This Row],[List 3]]<>\"\",Table_PI[[#This Row],[List 3]],\"\")","v":""},{"$f":"IF(Table_PI[[#This Row],[Manufacturer]]=\"\",\"\",Table_PI[[#This Row],[Manufacturer]])","v":""},{"$f":"IF(Table_PI[[#This Row],[Model Number]]=\"\",\"\",Table_PI[[#This Row],[Model Number]])","v":""},{"$f":"IF(Table_PI[[#This Row],[Serial Number(s)]]=\"\",\"\",Table_PI[[#This Row],[Serial Number(s)]])","v":""},null,{"$f":"IF(Table_PI[[#This Row],[Size]]=\"\",\"\",Table_PI[[#This Row],[Size]])","v":""},null,{"$f":"IFERROR(IF(AND(MeasureCalc(Table_PI[[#This Row],[Hide:\nFormula Name]],Table_SummaryPI[[#This Row],[Quantity]],Table_PI[[#This Row],[List 1]],Table_PI[[#This Row],[List 2]],Table_PI[[#This Row],[List 3]],Table_PI[[#This Row],[Size]],Table_PI[[#This Row],[Input 1]],Table_PI[[#This Row],[Input 2]],Table_PI[[#This Row],[Input 3]],Table_PI[[#This Row],[Input 4]],'Customer Information'!$AR$12,100,ROW())<>0,MeasureCalc(Table_PI[[#This Row],[Hide:\nFormula Name]],Table_SummaryPI[[#This Row],[Quantity]],Table_PI[[#This Row],[List 1]],Table_PI[[#This Row],[List 2]],Table_PI[[#This Row],[List 3]],Table_PI[[#This Row],[Size]],Table_PI[[#This Row],[Input 1]],Table_PI[[#This Row],[Input 2]],Table_PI[[#This Row],[Input 3]],Table_PI[[#This Row],[Input 4]],'Customer Information'!$AR$12,100,ROW())<>\"No Rebate\"),MeasureCalc(Table_PI[[#This Row],[Hide:\nFormula Name]],Table_SummaryPI[[#This Row],[Quantity]],Table_PI[[#This Row],[List 1]],Table_PI[[#This Row],[List 2]],Table_PI[[#This Row],[List 3]],Table_PI[[#This Row],[Size]],Table_PI[[#This Row],[Input 1]],Table_PI[[#This Row],[Input 2]],Table_PI[[#This Row],[Input 3]],Table_PI[[#This Row],[Input 4]],'Customer Information'!$AR$12,100,ROW()),\"\"),\"\")","v":""},{"$f":"IF(Table_PI[[#This Row],[Input 1]]<>\"\",Table_PI[[#This Row],[Input 1]],\"\")","v":""},null,{"$f":"IFERROR(IF(AND(MeasureCalc(Table_PI[[#This Row],[Hide:\nFormula Name]],Table_SummaryPI[[#This Row],[Quantity]],Table_PI[[#This Row],[List 1]],Table_PI[[#This Row],[List 2]],Table_PI[[#This Row],[List 3]],Table_PI[[#This Row],[Size]],Table_PI[[#This Row],[Input 1]],Table_PI[[#This Row],[Input 2]],Table_PI[[#This Row],[Input 3]],Table_PI[[#This Row],[Input 4]],'Customer Information'!$AR$12,101,ROW())<>0,MeasureCalc(Table_PI[[#This Row],[Hide:\nFormula Name]],Table_SummaryPI[[#This Row],[Quantity]],Table_PI[[#This Row],[List 1]],Table_PI[[#This Row],[List 2]],Table_PI[[#This Row],[List 3]],Table_PI[[#This Row],[Size]],Table_PI[[#This Row],[Input 1]],Table_PI[[#This Row],[Input 2]],Table_PI[[#This Row],[Input 3]],Table_PI[[#This Row],[Input 4]],'Customer Information'!$AR$12,101,ROW())<>\"No Rebate\"),MeasureCalc(Table_PI[[#This Row],[Hide:\nFormula Name]],Table_SummaryPI[[#This Row],[Quantity]],Table_PI[[#This Row],[List 1]],Table_PI[[#This Row],[List 2]],Table_PI[[#This Row],[List 3]],Table_PI[[#This Row],[Size]],Table_PI[[#This Row],[Input 1]],Table_PI[[#This Row],[Input 2]],Table_PI[[#This Row],[Input 3]],Table_PI[[#This Row],[Input 4]],'Customer Information'!$AR$12,101,ROW()),\"\"),\"\")","v":""},{"$f":"IF(Table_PI[[#This Row],[Input 2]]<>\"\",Table_PI[[#This Row],[Input 2]],\"\")","v":""},null,{"$f":"IFERROR(IF(AND(MeasureCalc(Table_PI[[#This Row],[Hide:\nFormula Name]],Table_SummaryPI[[#This Row],[Quantity]],Table_PI[[#This Row],[List 1]],Table_PI[[#This Row],[List 2]],Table_PI[[#This Row],[List 3]],Table_PI[[#This Row],[Size]],Table_PI[[#This Row],[Input 1]],Table_PI[[#This Row],[Input 2]],Table_PI[[#This Row],[Input 3]],Table_PI[[#This Row],[Input 4]],'Customer Information'!$AR$12,102,ROW())<>0,MeasureCalc(Table_PI[[#This Row],[Hide:\nFormula Name]],Table_SummaryPI[[#This Row],[Quantity]],Table_PI[[#This Row],[List 1]],Table_PI[[#This Row],[List 2]],Table_PI[[#This Row],[List 3]],Table_PI[[#This Row],[Size]],Table_PI[[#This Row],[Input 1]],Table_PI[[#This Row],[Input 2]],Table_PI[[#This Row],[Input 3]],Table_PI[[#This Row],[Input 4]],'Customer Information'!$AR$12,102,ROW())<>\"No Rebate\"),MeasureCalc(Table_PI[[#This Row],[Hide:\nFormula Name]],Table_SummaryPI[[#This Row],[Quantity]],Table_PI[[#This Row],[List 1]],Table_PI[[#This Row],[List 2]],Table_PI[[#This Row],[List 3]],Table_PI[[#This Row],[Size]],Table_PI[[#This Row],[Input 1]],Table_PI[[#This Row],[Input 2]],Table_PI[[#This Row],[Input 3]],Table_PI[[#This Row],[Input 4]],'Customer Information'!$AR$12,102,ROW()),\"\"),\"\")","v":""},{"$f":"IF(Table_PI[[#This Row],[Input 3]]<>\"\",Table_PI[[#This Row],[Input 3]],\"\")","v":""},null,{"$f":"IFERROR(IF(AND(MeasureCalc(Table_PI[[#This Row],[Hide:\nFormula Name]],Table_SummaryPI[[#This Row],[Quantity]],Table_PI[[#This Row],[List 1]],Table_PI[[#This Row],[List 2]],Table_PI[[#This Row],[List 3]],Table_PI[[#This Row],[Size]],Table_PI[[#This Row],[Input 1]],Table_PI[[#This Row],[Input 2]],Table_PI[[#This Row],[Input 3]],Table_PI[[#This Row],[Input 4]],'Customer Information'!$AR$12,103,ROW())<>0,MeasureCalc(Table_PI[[#This Row],[Hide:\nFormula Name]],Table_SummaryPI[[#This Row],[Quantity]],Table_PI[[#This Row],[List 1]],Table_PI[[#This Row],[List 2]],Table_PI[[#This Row],[List 3]],Table_PI[[#This Row],[Size]],Table_PI[[#This Row],[Input 1]],Table_PI[[#This Row],[Input 2]],Table_PI[[#This Row],[Input 3]],Table_PI[[#This Row],[Input 4]],'Customer Information'!$AR$12,103,ROW())<>\"No Rebate\"),MeasureCalc(Table_PI[[#This Row],[Hide:\nFormula Name]],Table_SummaryPI[[#This Row],[Quantity]],Table_PI[[#This Row],[List 1]],Table_PI[[#This Row],[List 2]],Table_PI[[#This Row],[List 3]],Table_PI[[#This Row],[Size]],Table_PI[[#This Row],[Input 1]],Table_PI[[#This Row],[Input 2]],Table_PI[[#This Row],[Input 3]],Table_PI[[#This Row],[Input 4]],'Customer Information'!$AR$12,103,ROW()),\"\"),\"\")","v":""},{"$f":"IF(Table_PI[[#This Row],[Input 4]]<>\"\",Table_PI[[#This Row],[Input 4]],\"\")","v":""},{"$f":"IF(Table_PI[[#This Row],[Quantity]]=\"\",\"\",Table_PI[[#This Row],[Quantity]])","v":""},{"$f":"IF(Table_PI[[#This Row],[Notes]]=\"\",\"\",Table_PI[[#This Row],[Notes]])","v":""},{"$f":"IF(OR(Table_PI[[#This Row],[Hide:\nBaseline kWh]]=\"\",Table_PI[[#This Row],[Hide:\nBaseline kWh]]=0),\"\",Table_PI[[#This Row],[Hide:\nBaseline kWh]])","v":""},{"$f":"IF(OR(Table_PI[[#This Row],[Hide:\nBaseline kW]]=\"\",Table_PI[[#This Row],[Hide:\nBaseline kW]]=0),\"\",Table_PI[[#This Row],[Hide:\nBaseline kW]])","v":""},{"$f":"IF(OR(Table_PI[[#This Row],[Hide:\nProposed kWh]]=\"\",Table_PI[[#This Row],[Hide:\nProposed kWh]]=0),\"\",Table_PI[[#This Row],[Hide:\nProposed kWh]])","v":""},{"$f":"IF(OR(Table_PI[[#This Row],[Hide:\nProposed kW]]=\"\",Table_PI[[#This Row],[Hide:\nProposed kW]]=0),\"\",Table_PI[[#This Row],[Hide:\nProposed kW]])","v":""},{"$f":"IF(OR(Table_PI[[#This Row],[Rebate]]=\"\",Table_PI[[#This Row],[Rebate]]=0),\"\",Table_PI[[#This Row],[Rebate]])","v":""},{"$f":"IF(OR(Table_PI[[#This Row],[Hide:\nIncremental Cost]]=\"\",Table_PI[[#This Row],[Hide:\nIncremental Cost]]=0),\"\",Table_PI[[#This Row],[Hide:\nIncremental Cost]])","v":""},{"$f":"IFERROR(IF(Table_SummaryPI[[#This Row],[kWhSavings]]=\"\",\"\",ROUND(Table_SummaryPI[[#This Row],[kWhSavings]]/$AG$401*'Customer Information'!$BC$17,2)),0)","v":""},{"$f":"IF(OR(Table_PI[[#This Row],[Annual kWh]]=\"\",Table_PI[[#This Row],[Annual kWh]]=0),\"\",Table_PI[[#This Row],[Annual kWh]])","v":""},{"$f":"IF(OR(Table_PI[[#This Row],[Peak kW]]=\"\",Table_PI[[#This Row],[Peak kW]]=0),\"\",Table_PI[[#This Row],[Peak kW]])","v":""},{"$f":"IFERROR(IF(Table_SummaryPI[[#This Row],[kWhSavings]]=\"\",\"\",$AU$9*Table_SummaryPI[[#This Row],[kWhSavings]]),0)","v":""},{"$f":"IFERROR(IF(Table_SummaryPI[[#This Row],[kWhSavings]]=\"\",\"\",$AU$14*Table_SummaryPI[[#This Row],[kWhSavings]]),0)","v":""},{"$f":"IFERROR(IF(Table_SummaryPI[[#This Row],[kWhSavings]]=\"\",\"\",$AU$18*Table_SummaryPI[[#This Row],[kWhSavings]]),0)","v":""},{"$f":"IFERROR(IF(Table_SummaryPI[[#This Row],[kWhSavings]]=\"\",\"\",$AU$22*Table_SummaryPI[[#This Row],[kWhSavings]]),0)","v":""},{"$f":"IFERROR(IF(MeasureCalc(Table_PI[[#This Row],[Hide:\nFormula Name]],Table_SummaryPI[[#This Row],[Quantity]],Table_PI[[#This Row],[List 1]],Table_PI[[#This Row],[List 2]],Table_PI[[#This Row],[List 3]],Table_PI[[#This Row],[Size]],Table_PI[[#This Row],[Input 1]],Table_PI[[#This Row],[Input 2]],Table_PI[[#This Row],[Input 3]],Table_PI[[#This Row],[Input 4]],'Customer Information'!$AR$12,200,ROW())<>\"No Rebate\",MeasureCalc(Table_PI[[#This Row],[Hide:\nFormula Name]],Table_SummaryPI[[#This Row],[Quantity]],Table_PI[[#This Row],[List 1]],Table_PI[[#This Row],[List 2]],Table_PI[[#This Row],[List 3]],Table_PI[[#This Row],[Size]],Table_PI[[#This Row],[Input 1]],Table_PI[[#This Row],[Input 2]],Table_PI[[#This Row],[Input 3]],Table_PI[[#This Row],[Input 4]],'Customer Information'!$AR$12,200,ROW()),\"\"),\"\")","v":""},{"$f":"IFERROR(IF(MeasureCalc(Table_PI[[#This Row],[Hide:\nFormula Name]],Table_SummaryPI[[#This Row],[Quantity]],Table_PI[[#This Row],[List 1]],Table_PI[[#This Row],[List 2]],Table_PI[[#This Row],[List 3]],Table_PI[[#This Row],[Size]],Table_PI[[#This Row],[Input 1]],Table_PI[[#This Row],[Input 2]],Table_PI[[#This Row],[Input 3]],Table_PI[[#This Row],[Input 4]],'Customer Information'!$AR$12,201,ROW())<>\"No Rebate\",MeasureCalc(Table_PI[[#This Row],[Hide:\nFormula Name]],Table_SummaryPI[[#This Row],[Quantity]],Table_PI[[#This Row],[List 1]],Table_PI[[#This Row],[List 2]],Table_PI[[#This Row],[List 3]],Table_PI[[#This Row],[Size]],Table_PI[[#This Row],[Input 1]],Table_PI[[#This Row],[Input 2]],Table_PI[[#This Row],[Input 3]],Table_PI[[#This Row],[Input 4]],'Customer Information'!$AR$12,201,ROW()),\"\"),\"\")","v":""}]
[{"$f":"Table_PI[[#This Row],[Line No.]]","v":""},{"$f":"IF(Table_SummaryPI[[#This Row],[MeassureCategory]]<>\"\",CONCATENATE(Table_SummaryPI[[#This Row],[MeassureCategory]],  \" - \", Table_SummaryPI[[#This Row],[ProposedMeasureCategory]],  \" - \", TEXT(Table_SummaryPI[[#This Row],[Size]],\"#,##0.00\"),\" \",Table_SummaryPI[[#This Row],[SizeUnit]]),\"\")","v":""},{"$f":"SUBSTITUTE(Table_PI[[#This Row],[Measure]],\"     \",\"\",1)","v":""},{"$f":"IF(Table_PI[[#This Row],[List 1]]<>\"\",Table_PI[[#This Row],[List 1]],\"\")","v":""},{"$f":"IF(Table_PI[[#This Row],[List 2]]<>\"\",Table_PI[[#This Row],[List 2]],\"\")","v":""},{"$f":"IF(Table_PI[[#This Row],[List 3]]<>\"\",Table_PI[[#This Row],[List 3]],\"\")","v":""},{"$f":"IF(Table_PI[[#This Row],[Manufacturer]]=\"\",\"\",Table_PI[[#This Row],[Manufacturer]])","v":""},{"$f":"IF(Table_PI[[#This Row],[Model Number]]=\"\",\"\",Table_PI[[#This Row],[Model Number]])","v":""},{"$f":"IF(Table_PI[[#This Row],[Serial Number(s)]]=\"\",\"\",Table_PI[[#This Row],[Serial Number(s)]])","v":""},null,{"$f":"IF(Table_PI[[#This Row],[Size]]=\"\",\"\",Table_PI[[#This Row],[Size]])","v":""},null,{"$f":"IFERROR(IF(AND(MeasureCalc(Table_PI[[#This Row],[Hide:\nFormula Name]],Table_SummaryPI[[#This Row],[Quantity]],Table_PI[[#This Row],[List 1]],Table_PI[[#This Row],[List 2]],Table_PI[[#This Row],[List 3]],Table_PI[[#This Row],[Size]],Table_PI[[#This Row],[Input 1]],Table_PI[[#This Row],[Input 2]],Table_PI[[#This Row],[Input 3]],Table_PI[[#This Row],[Input 4]],'Customer Information'!$AR$12,100,ROW())<>0,MeasureCalc(Table_PI[[#This Row],[Hide:\nFormula Name]],Table_SummaryPI[[#This Row],[Quantity]],Table_PI[[#This Row],[List 1]],Table_PI[[#This Row],[List 2]],Table_PI[[#This Row],[List 3]],Table_PI[[#This Row],[Size]],Table_PI[[#This Row],[Input 1]],Table_PI[[#This Row],[Input 2]],Table_PI[[#This Row],[Input 3]],Table_PI[[#This Row],[Input 4]],'Customer Information'!$AR$12,100,ROW())<>\"No Rebate\"),MeasureCalc(Table_PI[[#This Row],[Hide:\nFormula Name]],Table_SummaryPI[[#This Row],[Quantity]],Table_PI[[#This Row],[List 1]],Table_PI[[#This Row],[List 2]],Table_PI[[#This Row],[List 3]],Table_PI[[#This Row],[Size]],Table_PI[[#This Row],[Input 1]],Table_PI[[#This Row],[Input 2]],Table_PI[[#This Row],[Input 3]],Table_PI[[#This Row],[Input 4]],'Customer Information'!$AR$12,100,ROW()),\"\"),\"\")","v":""},{"$f":"IF(Table_PI[[#This Row],[Input 1]]<>\"\",Table_PI[[#This Row],[Input 1]],\"\")","v":""},null,{"$f":"IFERROR(IF(AND(MeasureCalc(Table_PI[[#This Row],[Hide:\nFormula Name]],Table_SummaryPI[[#This Row],[Quantity]],Table_PI[[#This Row],[List 1]],Table_PI[[#This Row],[List 2]],Table_PI[[#This Row],[List 3]],Table_PI[[#This Row],[Size]],Table_PI[[#This Row],[Input 1]],Table_PI[[#This Row],[Input 2]],Table_PI[[#This Row],[Input 3]],Table_PI[[#This Row],[Input 4]],'Customer Information'!$AR$12,101,ROW())<>0,MeasureCalc(Table_PI[[#This Row],[Hide:\nFormula Name]],Table_SummaryPI[[#This Row],[Quantity]],Table_PI[[#This Row],[List 1]],Table_PI[[#This Row],[List 2]],Table_PI[[#This Row],[List 3]],Table_PI[[#This Row],[Size]],Table_PI[[#This Row],[Input 1]],Table_PI[[#This Row],[Input 2]],Table_PI[[#This Row],[Input 3]],Table_PI[[#This Row],[Input 4]],'Customer Information'!$AR$12,101,ROW())<>\"No Rebate\"),MeasureCalc(Table_PI[[#This Row],[Hide:\nFormula Name]],Table_SummaryPI[[#This Row],[Quantity]],Table_PI[[#This Row],[List 1]],Table_PI[[#This Row],[List 2]],Table_PI[[#This Row],[List 3]],Table_PI[[#This Row],[Size]],Table_PI[[#This Row],[Input 1]],Table_PI[[#This Row],[Input 2]],Table_PI[[#This Row],[Input 3]],Table_PI[[#This Row],[Input 4]],'Customer Information'!$AR$12,101,ROW()),\"\"),\"\")","v":""},{"$f":"IF(Table_PI[[#This Row],[Input 2]]<>\"\",Table_PI[[#This Row],[Input 2]],\"\")","v":""},null,{"$f":"IFERROR(IF(AND(MeasureCalc(Table_PI[[#This Row],[Hide:\nFormula Name]],Table_SummaryPI[[#This Row],[Quantity]],Table_PI[[#This Row],[List 1]],Table_PI[[#This Row],[List 2]],Table_PI[[#This Row],[List 3]],Table_PI[[#This Row],[Size]],Table_PI[[#This Row],[Input 1]],Table_PI[[#This Row],[Input 2]],Table_PI[[#This Row],[Input 3]],Table_PI[[#This Row],[Input 4]],'Customer Information'!$AR$12,102,ROW())<>0,MeasureCalc(Table_PI[[#This Row],[Hide:\nFormula Name]],Table_SummaryPI[[#This Row],[Quantity]],Table_PI[[#This Row],[List 1]],Table_PI[[#This Row],[List 2]],Table_PI[[#This Row],[List 3]],Table_PI[[#This Row],[Size]],Table_PI[[#This Row],[Input 1]],Table_PI[[#This Row],[Input 2]],Table_PI[[#This Row],[Input 3]],Table_PI[[#This Row],[Input 4]],'Customer Information'!$AR$12,102,ROW())<>\"No Rebate\"),MeasureCalc(Table_PI[[#This Row],[Hide:\nFormula Name]],Table_SummaryPI[[#This Row],[Quantity]],Table_PI[[#This Row],[List 1]],Table_PI[[#This Row],[List 2]],Table_PI[[#This Row],[List 3]],Table_PI[[#This Row],[Size]],Table_PI[[#This Row],[Input 1]],Table_PI[[#This Row],[Input 2]],Table_PI[[#This Row],[Input 3]],Table_PI[[#This Row],[Input 4]],'Customer Information'!$AR$12,102,ROW()),\"\"),\"\")","v":""},{"$f":"IF(Table_PI[[#This Row],[Input 3]]<>\"\",Table_PI[[#This Row],[Input 3]],\"\")","v":""},null,{"$f":"IFERROR(IF(AND(MeasureCalc(Table_PI[[#This Row],[Hide:\nFormula Name]],Table_SummaryPI[[#This Row],[Quantity]],Table_PI[[#This Row],[List 1]],Table_PI[[#This Row],[List 2]],Table_PI[[#This Row],[List 3]],Table_PI[[#This Row],[Size]],Table_PI[[#This Row],[Input 1]],Table_PI[[#This Row],[Input 2]],Table_PI[[#This Row],[Input 3]],Table_PI[[#This Row],[Input 4]],'Customer Information'!$AR$12,103,ROW())<>0,MeasureCalc(Table_PI[[#This Row],[Hide:\nFormula Name]],Table_SummaryPI[[#This Row],[Quantity]],Table_PI[[#This Row],[List 1]],Table_PI[[#This Row],[List 2]],Table_PI[[#This Row],[List 3]],Table_PI[[#This Row],[Size]],Table_PI[[#This Row],[Input 1]],Table_PI[[#This Row],[Input 2]],Table_PI[[#This Row],[Input 3]],Table_PI[[#This Row],[Input 4]],'Customer Information'!$AR$12,103,ROW())<>\"No Rebate\"),MeasureCalc(Table_PI[[#This Row],[Hide:\nFormula Name]],Table_SummaryPI[[#This Row],[Quantity]],Table_PI[[#This Row],[List 1]],Table_PI[[#This Row],[List 2]],Table_PI[[#This Row],[List 3]],Table_PI[[#This Row],[Size]],Table_PI[[#This Row],[Input 1]],Table_PI[[#This Row],[Input 2]],Table_PI[[#This Row],[Input 3]],Table_PI[[#This Row],[Input 4]],'Customer Information'!$AR$12,103,ROW()),\"\"),\"\")","v":""},{"$f":"IF(Table_PI[[#This Row],[Input 4]]<>\"\",Table_PI[[#This Row],[Input 4]],\"\")","v":""},{"$f":"IF(Table_PI[[#This Row],[Quantity]]=\"\",\"\",Table_PI[[#This Row],[Quantity]])","v":""},{"$f":"IF(Table_PI[[#This Row],[Notes]]=\"\",\"\",Table_PI[[#This Row],[Notes]])","v":""},{"$f":"IF(OR(Table_PI[[#This Row],[Hide:\nBaseline kWh]]=\"\",Table_PI[[#This Row],[Hide:\nBaseline kWh]]=0),\"\",Table_PI[[#This Row],[Hide:\nBaseline kWh]])","v":""},{"$f":"IF(OR(Table_PI[[#This Row],[Hide:\nBaseline kW]]=\"\",Table_PI[[#This Row],[Hide:\nBaseline kW]]=0),\"\",Table_PI[[#This Row],[Hide:\nBaseline kW]])","v":""},{"$f":"IF(OR(Table_PI[[#This Row],[Hide:\nProposed kWh]]=\"\",Table_PI[[#This Row],[Hide:\nProposed kWh]]=0),\"\",Table_PI[[#This Row],[Hide:\nProposed kWh]])","v":""},{"$f":"IF(OR(Table_PI[[#This Row],[Hide:\nProposed kW]]=\"\",Table_PI[[#This Row],[Hide:\nProposed kW]]=0),\"\",Table_PI[[#This Row],[Hide:\nProposed kW]])","v":""},{"$f":"IF(OR(Table_PI[[#This Row],[Rebate]]=\"\",Table_PI[[#This Row],[Rebate]]=0),\"\",Table_PI[[#This Row],[Rebate]])","v":""},{"$f":"IF(OR(Table_PI[[#This Row],[Hide:\nIncremental Cost]]=\"\",Table_PI[[#This Row],[Hide:\nIncremental Cost]]=0),\"\",Table_PI[[#This Row],[Hide:\nIncremental Cost]])","v":""},{"$f":"IFERROR(IF(Table_SummaryPI[[#This Row],[kWhSavings]]=\"\",\"\",ROUND(Table_SummaryPI[[#This Row],[kWhSavings]]/$AG$401*'Customer Information'!$BC$17,2)),0)","v":""},{"$f":"IF(OR(Table_PI[[#This Row],[Annual kWh]]=\"\",Table_PI[[#This Row],[Annual kWh]]=0),\"\",Table_PI[[#This Row],[Annual kWh]])","v":""},{"$f":"IF(OR(Table_PI[[#This Row],[Peak kW]]=\"\",Table_PI[[#This Row],[Peak kW]]=0),\"\",Table_PI[[#This Row],[Peak kW]])","v":""},{"$f":"IFERROR(IF(Table_SummaryPI[[#This Row],[kWhSavings]]=\"\",\"\",$AU$9*Table_SummaryPI[[#This Row],[kWhSavings]]),0)","v":""},{"$f":"IFERROR(IF(Table_SummaryPI[[#This Row],[kWhSavings]]=\"\",\"\",$AU$14*Table_SummaryPI[[#This Row],[kWhSavings]]),0)","v":""},{"$f":"IFERROR(IF(Table_SummaryPI[[#This Row],[kWhSavings]]=\"\",\"\",$AU$18*Table_SummaryPI[[#This Row],[kWhSavings]]),0)","v":""},{"$f":"IFERROR(IF(Table_SummaryPI[[#This Row],[kWhSavings]]=\"\",\"\",$AU$22*Table_SummaryPI[[#This Row],[kWhSavings]]),0)","v":""},{"$f":"IFERROR(IF(MeasureCalc(Table_PI[[#This Row],[Hide:\nFormula Name]],Table_SummaryPI[[#This Row],[Quantity]],Table_PI[[#This Row],[List 1]],Table_PI[[#This Row],[List 2]],Table_PI[[#This Row],[List 3]],Table_PI[[#This Row],[Size]],Table_PI[[#This Row],[Input 1]],Table_PI[[#This Row],[Input 2]],Table_PI[[#This Row],[Input 3]],Table_PI[[#This Row],[Input 4]],'Customer Information'!$AR$12,200,ROW())<>\"No Rebate\",MeasureCalc(Table_PI[[#This Row],[Hide:\nFormula Name]],Table_SummaryPI[[#This Row],[Quantity]],Table_PI[[#This Row],[List 1]],Table_PI[[#This Row],[List 2]],Table_PI[[#This Row],[List 3]],Table_PI[[#This Row],[Size]],Table_PI[[#This Row],[Input 1]],Table_PI[[#This Row],[Input 2]],Table_PI[[#This Row],[Input 3]],Table_PI[[#This Row],[Input 4]],'Customer Information'!$AR$12,200,ROW()),\"\"),\"\")","v":""},{"$f":"IFERROR(IF(MeasureCalc(Table_PI[[#This Row],[Hide:\nFormula Name]],Table_SummaryPI[[#This Row],[Quantity]],Table_PI[[#This Row],[List 1]],Table_PI[[#This Row],[List 2]],Table_PI[[#This Row],[List 3]],Table_PI[[#This Row],[Size]],Table_PI[[#This Row],[Input 1]],Table_PI[[#This Row],[Input 2]],Table_PI[[#This Row],[Input 3]],Table_PI[[#This Row],[Input 4]],'Customer Information'!$AR$12,201,ROW())<>\"No Rebate\",MeasureCalc(Table_PI[[#This Row],[Hide:\nFormula Name]],Table_SummaryPI[[#This Row],[Quantity]],Table_PI[[#This Row],[List 1]],Table_PI[[#This Row],[List 2]],Table_PI[[#This Row],[List 3]],Table_PI[[#This Row],[Size]],Table_PI[[#This Row],[Input 1]],Table_PI[[#This Row],[Input 2]],Table_PI[[#This Row],[Input 3]],Table_PI[[#This Row],[Input 4]],'Customer Information'!$AR$12,201,ROW()),\"\"),\"\")","v":""}]
[{"$f":"Table_PI[[#This Row],[Line No.]]","v":""},{"$f":"IF(Table_SummaryPI[[#This Row],[MeassureCategory]]<>\"\",CONCATENATE(Table_SummaryPI[[#This Row],[MeassureCategory]],  \" - \", Table_SummaryPI[[#This Row],[ProposedMeasureCategory]],  \" - \", TEXT(Table_SummaryPI[[#This Row],[Size]],\"#,##0.00\"),\" \",Table_SummaryPI[[#This Row],[SizeUnit]]),\"\")","v":""},{"$f":"SUBSTITUTE(Table_PI[[#This Row],[Measure]],\"     \",\"\",1)","v":""},{"$f":"IF(Table_PI[[#This Row],[List 1]]<>\"\",Table_PI[[#This Row],[List 1]],\"\")","v":""},{"$f":"IF(Table_PI[[#This Row],[List 2]]<>\"\",Table_PI[[#This Row],[List 2]],\"\")","v":""},{"$f":"IF(Table_PI[[#This Row],[List 3]]<>\"\",Table_PI[[#This Row],[List 3]],\"\")","v":""},{"$f":"IF(Table_PI[[#This Row],[Manufacturer]]=\"\",\"\",Table_PI[[#This Row],[Manufacturer]])","v":""},{"$f":"IF(Table_PI[[#This Row],[Model Number]]=\"\",\"\",Table_PI[[#This Row],[Model Number]])","v":""},{"$f":"IF(Table_PI[[#This Row],[Serial Number(s)]]=\"\",\"\",Table_PI[[#This Row],[Serial Number(s)]])","v":""},null,{"$f":"IF(Table_PI[[#This Row],[Size]]=\"\",\"\",Table_PI[[#This Row],[Size]])","v":""},null,{"$f":"IFERROR(IF(AND(MeasureCalc(Table_PI[[#This Row],[Hide:\nFormula Name]],Table_SummaryPI[[#This Row],[Quantity]],Table_PI[[#This Row],[List 1]],Table_PI[[#This Row],[List 2]],Table_PI[[#This Row],[List 3]],Table_PI[[#This Row],[Size]],Table_PI[[#This Row],[Input 1]],Table_PI[[#This Row],[Input 2]],Table_PI[[#This Row],[Input 3]],Table_PI[[#This Row],[Input 4]],'Customer Information'!$AR$12,100,ROW())<>0,MeasureCalc(Table_PI[[#This Row],[Hide:\nFormula Name]],Table_SummaryPI[[#This Row],[Quantity]],Table_PI[[#This Row],[List 1]],Table_PI[[#This Row],[List 2]],Table_PI[[#This Row],[List 3]],Table_PI[[#This Row],[Size]],Table_PI[[#This Row],[Input 1]],Table_PI[[#This Row],[Input 2]],Table_PI[[#This Row],[Input 3]],Table_PI[[#This Row],[Input 4]],'Customer Information'!$AR$12,100,ROW())<>\"No Rebate\"),MeasureCalc(Table_PI[[#This Row],[Hide:\nFormula Name]],Table_SummaryPI[[#This Row],[Quantity]],Table_PI[[#This Row],[List 1]],Table_PI[[#This Row],[List 2]],Table_PI[[#This Row],[List 3]],Table_PI[[#This Row],[Size]],Table_PI[[#This Row],[Input 1]],Table_PI[[#This Row],[Input 2]],Table_PI[[#This Row],[Input 3]],Table_PI[[#This Row],[Input 4]],'Customer Information'!$AR$12,100,ROW()),\"\"),\"\")","v":""},{"$f":"IF(Table_PI[[#This Row],[Input 1]]<>\"\",Table_PI[[#This Row],[Input 1]],\"\")","v":""},null,{"$f":"IFERROR(IF(AND(MeasureCalc(Table_PI[[#This Row],[Hide:\nFormula Name]],Table_SummaryPI[[#This Row],[Quantity]],Table_PI[[#This Row],[List 1]],Table_PI[[#This Row],[List 2]],Table_PI[[#This Row],[List 3]],Table_PI[[#This Row],[Size]],Table_PI[[#This Row],[Input 1]],Table_PI[[#This Row],[Input 2]],Table_PI[[#This Row],[Input 3]],Table_PI[[#This Row],[Input 4]],'Customer Information'!$AR$12,101,ROW())<>0,MeasureCalc(Table_PI[[#This Row],[Hide:\nFormula Name]],Table_SummaryPI[[#This Row],[Quantity]],Table_PI[[#This Row],[List 1]],Table_PI[[#This Row],[List 2]],Table_PI[[#This Row],[List 3]],Table_PI[[#This Row],[Size]],Table_PI[[#This Row],[Input 1]],Table_PI[[#This Row],[Input 2]],Table_PI[[#This Row],[Input 3]],Table_PI[[#This Row],[Input 4]],'Customer Information'!$AR$12,101,ROW())<>\"No Rebate\"),MeasureCalc(Table_PI[[#This Row],[Hide:\nFormula Name]],Table_SummaryPI[[#This Row],[Quantity]],Table_PI[[#This Row],[List 1]],Table_PI[[#This Row],[List 2]],Table_PI[[#This Row],[List 3]],Table_PI[[#This Row],[Size]],Table_PI[[#This Row],[Input 1]],Table_PI[[#This Row],[Input 2]],Table_PI[[#This Row],[Input 3]],Table_PI[[#This Row],[Input 4]],'Customer Information'!$AR$12,101,ROW()),\"\"),\"\")","v":""},{"$f":"IF(Table_PI[[#This Row],[Input 2]]<>\"\",Table_PI[[#This Row],[Input 2]],\"\")","v":""},null,{"$f":"IFERROR(IF(AND(MeasureCalc(Table_PI[[#This Row],[Hide:\nFormula Name]],Table_SummaryPI[[#This Row],[Quantity]],Table_PI[[#This Row],[List 1]],Table_PI[[#This Row],[List 2]],Table_PI[[#This Row],[List 3]],Table_PI[[#This Row],[Size]],Table_PI[[#This Row],[Input 1]],Table_PI[[#This Row],[Input 2]],Table_PI[[#This Row],[Input 3]],Table_PI[[#This Row],[Input 4]],'Customer Information'!$AR$12,102,ROW())<>0,MeasureCalc(Table_PI[[#This Row],[Hide:\nFormula Name]],Table_SummaryPI[[#This Row],[Quantity]],Table_PI[[#This Row],[List 1]],Table_PI[[#This Row],[List 2]],Table_PI[[#This Row],[List 3]],Table_PI[[#This Row],[Size]],Table_PI[[#This Row],[Input 1]],Table_PI[[#This Row],[Input 2]],Table_PI[[#This Row],[Input 3]],Table_PI[[#This Row],[Input 4]],'Customer Information'!$AR$12,102,ROW())<>\"No Rebate\"),MeasureCalc(Table_PI[[#This Row],[Hide:\nFormula Name]],Table_SummaryPI[[#This Row],[Quantity]],Table_PI[[#This Row],[List 1]],Table_PI[[#This Row],[List 2]],Table_PI[[#This Row],[List 3]],Table_PI[[#This Row],[Size]],Table_PI[[#This Row],[Input 1]],Table_PI[[#This Row],[Input 2]],Table_PI[[#This Row],[Input 3]],Table_PI[[#This Row],[Input 4]],'Customer Information'!$AR$12,102,ROW()),\"\"),\"\")","v":""},{"$f":"IF(Table_PI[[#This Row],[Input 3]]<>\"\",Table_PI[[#This Row],[Input 3]],\"\")","v":""},null,{"$f":"IFERROR(IF(AND(MeasureCalc(Table_PI[[#This Row],[Hide:\nFormula Name]],Table_SummaryPI[[#This Row],[Quantity]],Table_PI[[#This Row],[List 1]],Table_PI[[#This Row],[List 2]],Table_PI[[#This Row],[List 3]],Table_PI[[#This Row],[Size]],Table_PI[[#This Row],[Input 1]],Table_PI[[#This Row],[Input 2]],Table_PI[[#This Row],[Input 3]],Table_PI[[#This Row],[Input 4]],'Customer Information'!$AR$12,103,ROW())<>0,MeasureCalc(Table_PI[[#This Row],[Hide:\nFormula Name]],Table_SummaryPI[[#This Row],[Quantity]],Table_PI[[#This Row],[List 1]],Table_PI[[#This Row],[List 2]],Table_PI[[#This Row],[List 3]],Table_PI[[#This Row],[Size]],Table_PI[[#This Row],[Input 1]],Table_PI[[#This Row],[Input 2]],Table_PI[[#This Row],[Input 3]],Table_PI[[#This Row],[Input 4]],'Customer Information'!$AR$12,103,ROW())<>\"No Rebate\"),MeasureCalc(Table_PI[[#This Row],[Hide:\nFormula Name]],Table_SummaryPI[[#This Row],[Quantity]],Table_PI[[#This Row],[List 1]],Table_PI[[#This Row],[List 2]],Table_PI[[#This Row],[List 3]],Table_PI[[#This Row],[Size]],Table_PI[[#This Row],[Input 1]],Table_PI[[#This Row],[Input 2]],Table_PI[[#This Row],[Input 3]],Table_PI[[#This Row],[Input 4]],'Customer Information'!$AR$12,103,ROW()),\"\"),\"\")","v":""},{"$f":"IF(Table_PI[[#This Row],[Input 4]]<>\"\",Table_PI[[#This Row],[Input 4]],\"\")","v":""},{"$f":"IF(Table_PI[[#This Row],[Quantity]]=\"\",\"\",Table_PI[[#This Row],[Quantity]])","v":""},{"$f":"IF(Table_PI[[#This Row],[Notes]]=\"\",\"\",Table_PI[[#This Row],[Notes]])","v":""},{"$f":"IF(OR(Table_PI[[#This Row],[Hide:\nBaseline kWh]]=\"\",Table_PI[[#This Row],[Hide:\nBaseline kWh]]=0),\"\",Table_PI[[#This Row],[Hide:\nBaseline kWh]])","v":""},{"$f":"IF(OR(Table_PI[[#This Row],[Hide:\nBaseline kW]]=\"\",Table_PI[[#This Row],[Hide:\nBaseline kW]]=0),\"\",Table_PI[[#This Row],[Hide:\nBaseline kW]])","v":""},{"$f":"IF(OR(Table_PI[[#This Row],[Hide:\nProposed kWh]]=\"\",Table_PI[[#This Row],[Hide:\nProposed kWh]]=0),\"\",Table_PI[[#This Row],[Hide:\nProposed kWh]])","v":""},{"$f":"IF(OR(Table_PI[[#This Row],[Hide:\nProposed kW]]=\"\",Table_PI[[#This Row],[Hide:\nProposed kW]]=0),\"\",Table_PI[[#This Row],[Hide:\nProposed kW]])","v":""},{"$f":"IF(OR(Table_PI[[#This Row],[Rebate]]=\"\",Table_PI[[#This Row],[Rebate]]=0),\"\",Table_PI[[#This Row],[Rebate]])","v":""},{"$f":"IF(OR(Table_PI[[#This Row],[Hide:\nIncremental Cost]]=\"\",Table_PI[[#This Row],[Hide:\nIncremental Cost]]=0),\"\",Table_PI[[#This Row],[Hide:\nIncremental Cost]])","v":""},{"$f":"IFERROR(IF(Table_SummaryPI[[#This Row],[kWhSavings]]=\"\",\"\",ROUND(Table_SummaryPI[[#This Row],[kWhSavings]]/$AG$401*'Customer Information'!$BC$17,2)),0)","v":""},{"$f":"IF(OR(Table_PI[[#This Row],[Annual kWh]]=\"\",Table_PI[[#This Row],[Annual kWh]]=0),\"\",Table_PI[[#This Row],[Annual kWh]])","v":""},{"$f":"IF(OR(Table_PI[[#This Row],[Peak kW]]=\"\",Table_PI[[#This Row],[Peak kW]]=0),\"\",Table_PI[[#This Row],[Peak kW]])","v":""},{"$f":"IFERROR(IF(Table_SummaryPI[[#This Row],[kWhSavings]]=\"\",\"\",$AU$9*Table_SummaryPI[[#This Row],[kWhSavings]]),0)","v":""},{"$f":"IFERROR(IF(Table_SummaryPI[[#This Row],[kWhSavings]]=\"\",\"\",$AU$14*Table_SummaryPI[[#This Row],[kWhSavings]]),0)","v":""},{"$f":"IFERROR(IF(Table_SummaryPI[[#This Row],[kWhSavings]]=\"\",\"\",$AU$18*Table_SummaryPI[[#This Row],[kWhSavings]]),0)","v":""},{"$f":"IFERROR(IF(Table_SummaryPI[[#This Row],[kWhSavings]]=\"\",\"\",$AU$22*Table_SummaryPI[[#This Row],[kWhSavings]]),0)","v":""},{"$f":"IFERROR(IF(MeasureCalc(Table_PI[[#This Row],[Hide:\nFormula Name]],Table_SummaryPI[[#This Row],[Quantity]],Table_PI[[#This Row],[List 1]],Table_PI[[#This Row],[List 2]],Table_PI[[#This Row],[List 3]],Table_PI[[#This Row],[Size]],Table_PI[[#This Row],[Input 1]],Table_PI[[#This Row],[Input 2]],Table_PI[[#This Row],[Input 3]],Table_PI[[#This Row],[Input 4]],'Customer Information'!$AR$12,200,ROW())<>\"No Rebate\",MeasureCalc(Table_PI[[#This Row],[Hide:\nFormula Name]],Table_SummaryPI[[#This Row],[Quantity]],Table_PI[[#This Row],[List 1]],Table_PI[[#This Row],[List 2]],Table_PI[[#This Row],[List 3]],Table_PI[[#This Row],[Size]],Table_PI[[#This Row],[Input 1]],Table_PI[[#This Row],[Input 2]],Table_PI[[#This Row],[Input 3]],Table_PI[[#This Row],[Input 4]],'Customer Information'!$AR$12,200,ROW()),\"\"),\"\")","v":""},{"$f":"IFERROR(IF(MeasureCalc(Table_PI[[#This Row],[Hide:\nFormula Name]],Table_SummaryPI[[#This Row],[Quantity]],Table_PI[[#This Row],[List 1]],Table_PI[[#This Row],[List 2]],Table_PI[[#This Row],[List 3]],Table_PI[[#This Row],[Size]],Table_PI[[#This Row],[Input 1]],Table_PI[[#This Row],[Input 2]],Table_PI[[#This Row],[Input 3]],Table_PI[[#This Row],[Input 4]],'Customer Information'!$AR$12,201,ROW())<>\"No Rebate\",MeasureCalc(Table_PI[[#This Row],[Hide:\nFormula Name]],Table_SummaryPI[[#This Row],[Quantity]],Table_PI[[#This Row],[List 1]],Table_PI[[#This Row],[List 2]],Table_PI[[#This Row],[List 3]],Table_PI[[#This Row],[Size]],Table_PI[[#This Row],[Input 1]],Table_PI[[#This Row],[Input 2]],Table_PI[[#This Row],[Input 3]],Table_PI[[#This Row],[Input 4]],'Customer Information'!$AR$12,201,ROW()),\"\"),\"\")","v":""}]
[{"$f":"Table_PI[[#This Row],[Line No.]]","v":""},{"$f":"IF(Table_SummaryPI[[#This Row],[MeassureCategory]]<>\"\",CONCATENATE(Table_SummaryPI[[#This Row],[MeassureCategory]],  \" - \", Table_SummaryPI[[#This Row],[ProposedMeasureCategory]],  \" - \", TEXT(Table_SummaryPI[[#This Row],[Size]],\"#,##0.00\"),\" \",Table_SummaryPI[[#This Row],[SizeUnit]]),\"\")","v":""},{"$f":"SUBSTITUTE(Table_PI[[#This Row],[Measure]],\"     \",\"\",1)","v":""},{"$f":"IF(Table_PI[[#This Row],[List 1]]<>\"\",Table_PI[[#This Row],[List 1]],\"\")","v":""},{"$f":"IF(Table_PI[[#This Row],[List 2]]<>\"\",Table_PI[[#This Row],[List 2]],\"\")","v":""},{"$f":"IF(Table_PI[[#This Row],[List 3]]<>\"\",Table_PI[[#This Row],[List 3]],\"\")","v":""},{"$f":"IF(Table_PI[[#This Row],[Manufacturer]]=\"\",\"\",Table_PI[[#This Row],[Manufacturer]])","v":""},{"$f":"IF(Table_PI[[#This Row],[Model Number]]=\"\",\"\",Table_PI[[#This Row],[Model Number]])","v":""},{"$f":"IF(Table_PI[[#This Row],[Serial Number(s)]]=\"\",\"\",Table_PI[[#This Row],[Serial Number(s)]])","v":""},null,{"$f":"IF(Table_PI[[#This Row],[Size]]=\"\",\"\",Table_PI[[#This Row],[Size]])","v":""},null,{"$f":"IFERROR(IF(AND(MeasureCalc(Table_PI[[#This Row],[Hide:\nFormula Name]],Table_SummaryPI[[#This Row],[Quantity]],Table_PI[[#This Row],[List 1]],Table_PI[[#This Row],[List 2]],Table_PI[[#This Row],[List 3]],Table_PI[[#This Row],[Size]],Table_PI[[#This Row],[Input 1]],Table_PI[[#This Row],[Input 2]],Table_PI[[#This Row],[Input 3]],Table_PI[[#This Row],[Input 4]],'Customer Information'!$AR$12,100,ROW())<>0,MeasureCalc(Table_PI[[#This Row],[Hide:\nFormula Name]],Table_SummaryPI[[#This Row],[Quantity]],Table_PI[[#This Row],[List 1]],Table_PI[[#This Row],[List 2]],Table_PI[[#This Row],[List 3]],Table_PI[[#This Row],[Size]],Table_PI[[#This Row],[Input 1]],Table_PI[[#This Row],[Input 2]],Table_PI[[#This Row],[Input 3]],Table_PI[[#This Row],[Input 4]],'Customer Information'!$AR$12,100,ROW())<>\"No Rebate\"),MeasureCalc(Table_PI[[#This Row],[Hide:\nFormula Name]],Table_SummaryPI[[#This Row],[Quantity]],Table_PI[[#This Row],[List 1]],Table_PI[[#This Row],[List 2]],Table_PI[[#This Row],[List 3]],Table_PI[[#This Row],[Size]],Table_PI[[#This Row],[Input 1]],Table_PI[[#This Row],[Input 2]],Table_PI[[#This Row],[Input 3]],Table_PI[[#This Row],[Input 4]],'Customer Information'!$AR$12,100,ROW()),\"\"),\"\")","v":""},{"$f":"IF(Table_PI[[#This Row],[Input 1]]<>\"\",Table_PI[[#This Row],[Input 1]],\"\")","v":""},null,{"$f":"IFERROR(IF(AND(MeasureCalc(Table_PI[[#This Row],[Hide:\nFormula Name]],Table_SummaryPI[[#This Row],[Quantity]],Table_PI[[#This Row],[List 1]],Table_PI[[#This Row],[List 2]],Table_PI[[#This Row],[List 3]],Table_PI[[#This Row],[Size]],Table_PI[[#This Row],[Input 1]],Table_PI[[#This Row],[Input 2]],Table_PI[[#This Row],[Input 3]],Table_PI[[#This Row],[Input 4]],'Customer Information'!$AR$12,101,ROW())<>0,MeasureCalc(Table_PI[[#This Row],[Hide:\nFormula Name]],Table_SummaryPI[[#This Row],[Quantity]],Table_PI[[#This Row],[List 1]],Table_PI[[#This Row],[List 2]],Table_PI[[#This Row],[List 3]],Table_PI[[#This Row],[Size]],Table_PI[[#This Row],[Input 1]],Table_PI[[#This Row],[Input 2]],Table_PI[[#This Row],[Input 3]],Table_PI[[#This Row],[Input 4]],'Customer Information'!$AR$12,101,ROW())<>\"No Rebate\"),MeasureCalc(Table_PI[[#This Row],[Hide:\nFormula Name]],Table_SummaryPI[[#This Row],[Quantity]],Table_PI[[#This Row],[List 1]],Table_PI[[#This Row],[List 2]],Table_PI[[#This Row],[List 3]],Table_PI[[#This Row],[Size]],Table_PI[[#This Row],[Input 1]],Table_PI[[#This Row],[Input 2]],Table_PI[[#This Row],[Input 3]],Table_PI[[#This Row],[Input 4]],'Customer Information'!$AR$12,101,ROW()),\"\"),\"\")","v":""},{"$f":"IF(Table_PI[[#This Row],[Input 2]]<>\"\",Table_PI[[#This Row],[Input 2]],\"\")","v":""},null,{"$f":"IFERROR(IF(AND(MeasureCalc(Table_PI[[#This Row],[Hide:\nFormula Name]],Table_SummaryPI[[#This Row],[Quantity]],Table_PI[[#This Row],[List 1]],Table_PI[[#This Row],[List 2]],Table_PI[[#This Row],[List 3]],Table_PI[[#This Row],[Size]],Table_PI[[#This Row],[Input 1]],Table_PI[[#This Row],[Input 2]],Table_PI[[#This Row],[Input 3]],Table_PI[[#This Row],[Input 4]],'Customer Information'!$AR$12,102,ROW())<>0,MeasureCalc(Table_PI[[#This Row],[Hide:\nFormula Name]],Table_SummaryPI[[#This Row],[Quantity]],Table_PI[[#This Row],[List 1]],Table_PI[[#This Row],[List 2]],Table_PI[[#This Row],[List 3]],Table_PI[[#This Row],[Size]],Table_PI[[#This Row],[Input 1]],Table_PI[[#This Row],[Input 2]],Table_PI[[#This Row],[Input 3]],Table_PI[[#This Row],[Input 4]],'Customer Information'!$AR$12,102,ROW())<>\"No Rebate\"),MeasureCalc(Table_PI[[#This Row],[Hide:\nFormula Name]],Table_SummaryPI[[#This Row],[Quantity]],Table_PI[[#This Row],[List 1]],Table_PI[[#This Row],[List 2]],Table_PI[[#This Row],[List 3]],Table_PI[[#This Row],[Size]],Table_PI[[#This Row],[Input 1]],Table_PI[[#This Row],[Input 2]],Table_PI[[#This Row],[Input 3]],Table_PI[[#This Row],[Input 4]],'Customer Information'!$AR$12,102,ROW()),\"\"),\"\")","v":""},{"$f":"IF(Table_PI[[#This Row],[Input 3]]<>\"\",Table_PI[[#This Row],[Input 3]],\"\")","v":""},null,{"$f":"IFERROR(IF(AND(MeasureCalc(Table_PI[[#This Row],[Hide:\nFormula Name]],Table_SummaryPI[[#This Row],[Quantity]],Table_PI[[#This Row],[List 1]],Table_PI[[#This Row],[List 2]],Table_PI[[#This Row],[List 3]],Table_PI[[#This Row],[Size]],Table_PI[[#This Row],[Input 1]],Table_PI[[#This Row],[Input 2]],Table_PI[[#This Row],[Input 3]],Table_PI[[#This Row],[Input 4]],'Customer Information'!$AR$12,103,ROW())<>0,MeasureCalc(Table_PI[[#This Row],[Hide:\nFormula Name]],Table_SummaryPI[[#This Row],[Quantity]],Table_PI[[#This Row],[List 1]],Table_PI[[#This Row],[List 2]],Table_PI[[#This Row],[List 3]],Table_PI[[#This Row],[Size]],Table_PI[[#This Row],[Input 1]],Table_PI[[#This Row],[Input 2]],Table_PI[[#This Row],[Input 3]],Table_PI[[#This Row],[Input 4]],'Customer Information'!$AR$12,103,ROW())<>\"No Rebate\"),MeasureCalc(Table_PI[[#This Row],[Hide:\nFormula Name]],Table_SummaryPI[[#This Row],[Quantity]],Table_PI[[#This Row],[List 1]],Table_PI[[#This Row],[List 2]],Table_PI[[#This Row],[List 3]],Table_PI[[#This Row],[Size]],Table_PI[[#This Row],[Input 1]],Table_PI[[#This Row],[Input 2]],Table_PI[[#This Row],[Input 3]],Table_PI[[#This Row],[Input 4]],'Customer Information'!$AR$12,103,ROW()),\"\"),\"\")","v":""},{"$f":"IF(Table_PI[[#This Row],[Input 4]]<>\"\",Table_PI[[#This Row],[Input 4]],\"\")","v":""},{"$f":"IF(Table_PI[[#This Row],[Quantity]]=\"\",\"\",Table_PI[[#This Row],[Quantity]])","v":""},{"$f":"IF(Table_PI[[#This Row],[Notes]]=\"\",\"\",Table_PI[[#This Row],[Notes]])","v":""},{"$f":"IF(OR(Table_PI[[#This Row],[Hide:\nBaseline kWh]]=\"\",Table_PI[[#This Row],[Hide:\nBaseline kWh]]=0),\"\",Table_PI[[#This Row],[Hide:\nBaseline kWh]])","v":""},{"$f":"IF(OR(Table_PI[[#This Row],[Hide:\nBaseline kW]]=\"\",Table_PI[[#This Row],[Hide:\nBaseline kW]]=0),\"\",Table_PI[[#This Row],[Hide:\nBaseline kW]])","v":""},{"$f":"IF(OR(Table_PI[[#This Row],[Hide:\nProposed kWh]]=\"\",Table_PI[[#This Row],[Hide:\nProposed kWh]]=0),\"\",Table_PI[[#This Row],[Hide:\nProposed kWh]])","v":""},{"$f":"IF(OR(Table_PI[[#This Row],[Hide:\nProposed kW]]=\"\",Table_PI[[#This Row],[Hide:\nProposed kW]]=0),\"\",Table_PI[[#This Row],[Hide:\nProposed kW]])","v":""},{"$f":"IF(OR(Table_PI[[#This Row],[Rebate]]=\"\",Table_PI[[#This Row],[Rebate]]=0),\"\",Table_PI[[#This Row],[Rebate]])","v":""},{"$f":"IF(OR(Table_PI[[#This Row],[Hide:\nIncremental Cost]]=\"\",Table_PI[[#This Row],[Hide:\nIncremental Cost]]=0),\"\",Table_PI[[#This Row],[Hide:\nIncremental Cost]])","v":""},{"$f":"IFERROR(IF(Table_SummaryPI[[#This Row],[kWhSavings]]=\"\",\"\",ROUND(Table_SummaryPI[[#This Row],[kWhSavings]]/$AG$401*'Customer Information'!$BC$17,2)),0)","v":""},{"$f":"IF(OR(Table_PI[[#This Row],[Annual kWh]]=\"\",Table_PI[[#This Row],[Annual kWh]]=0),\"\",Table_PI[[#This Row],[Annual kWh]])","v":""},{"$f":"IF(OR(Table_PI[[#This Row],[Peak kW]]=\"\",Table_PI[[#This Row],[Peak kW]]=0),\"\",Table_PI[[#This Row],[Peak kW]])","v":""},{"$f":"IFERROR(IF(Table_SummaryPI[[#This Row],[kWhSavings]]=\"\",\"\",$AU$9*Table_SummaryPI[[#This Row],[kWhSavings]]),0)","v":""},{"$f":"IFERROR(IF(Table_SummaryPI[[#This Row],[kWhSavings]]=\"\",\"\",$AU$14*Table_SummaryPI[[#This Row],[kWhSavings]]),0)","v":""},{"$f":"IFERROR(IF(Table_SummaryPI[[#This Row],[kWhSavings]]=\"\",\"\",$AU$18*Table_SummaryPI[[#This Row],[kWhSavings]]),0)","v":""},{"$f":"IFERROR(IF(Table_SummaryPI[[#This Row],[kWhSavings]]=\"\",\"\",$AU$22*Table_SummaryPI[[#This Row],[kWhSavings]]),0)","v":""},{"$f":"IFERROR(IF(MeasureCalc(Table_PI[[#This Row],[Hide:\nFormula Name]],Table_SummaryPI[[#This Row],[Quantity]],Table_PI[[#This Row],[List 1]],Table_PI[[#This Row],[List 2]],Table_PI[[#This Row],[List 3]],Table_PI[[#This Row],[Size]],Table_PI[[#This Row],[Input 1]],Table_PI[[#This Row],[Input 2]],Table_PI[[#This Row],[Input 3]],Table_PI[[#This Row],[Input 4]],'Customer Information'!$AR$12,200,ROW())<>\"No Rebate\",MeasureCalc(Table_PI[[#This Row],[Hide:\nFormula Name]],Table_SummaryPI[[#This Row],[Quantity]],Table_PI[[#This Row],[List 1]],Table_PI[[#This Row],[List 2]],Table_PI[[#This Row],[List 3]],Table_PI[[#This Row],[Size]],Table_PI[[#This Row],[Input 1]],Table_PI[[#This Row],[Input 2]],Table_PI[[#This Row],[Input 3]],Table_PI[[#This Row],[Input 4]],'Customer Information'!$AR$12,200,ROW()),\"\"),\"\")","v":""},{"$f":"IFERROR(IF(MeasureCalc(Table_PI[[#This Row],[Hide:\nFormula Name]],Table_SummaryPI[[#This Row],[Quantity]],Table_PI[[#This Row],[List 1]],Table_PI[[#This Row],[List 2]],Table_PI[[#This Row],[List 3]],Table_PI[[#This Row],[Size]],Table_PI[[#This Row],[Input 1]],Table_PI[[#This Row],[Input 2]],Table_PI[[#This Row],[Input 3]],Table_PI[[#This Row],[Input 4]],'Customer Information'!$AR$12,201,ROW())<>\"No Rebate\",MeasureCalc(Table_PI[[#This Row],[Hide:\nFormula Name]],Table_SummaryPI[[#This Row],[Quantity]],Table_PI[[#This Row],[List 1]],Table_PI[[#This Row],[List 2]],Table_PI[[#This Row],[List 3]],Table_PI[[#This Row],[Size]],Table_PI[[#This Row],[Input 1]],Table_PI[[#This Row],[Input 2]],Table_PI[[#This Row],[Input 3]],Table_PI[[#This Row],[Input 4]],'Customer Information'!$AR$12,201,ROW()),\"\"),\"\")","v":""}]
[{"$f":"Table_PI[[#This Row],[Line No.]]","v":""},{"$f":"IF(Table_SummaryPI[[#This Row],[MeassureCategory]]<>\"\",CONCATENATE(Table_SummaryPI[[#This Row],[MeassureCategory]],  \" - \", Table_SummaryPI[[#This Row],[ProposedMeasureCategory]],  \" - \", TEXT(Table_SummaryPI[[#This Row],[Size]],\"#,##0.00\"),\" \",Table_SummaryPI[[#This Row],[SizeUnit]]),\"\")","v":""},{"$f":"SUBSTITUTE(Table_PI[[#This Row],[Measure]],\"     \",\"\",1)","v":""},{"$f":"IF(Table_PI[[#This Row],[List 1]]<>\"\",Table_PI[[#This Row],[List 1]],\"\")","v":""},{"$f":"IF(Table_PI[[#This Row],[List 2]]<>\"\",Table_PI[[#This Row],[List 2]],\"\")","v":""},{"$f":"IF(Table_PI[[#This Row],[List 3]]<>\"\",Table_PI[[#This Row],[List 3]],\"\")","v":""},{"$f":"IF(Table_PI[[#This Row],[Manufacturer]]=\"\",\"\",Table_PI[[#This Row],[Manufacturer]])","v":""},{"$f":"IF(Table_PI[[#This Row],[Model Number]]=\"\",\"\",Table_PI[[#This Row],[Model Number]])","v":""},{"$f":"IF(Table_PI[[#This Row],[Serial Number(s)]]=\"\",\"\",Table_PI[[#This Row],[Serial Number(s)]])","v":""},null,{"$f":"IF(Table_PI[[#This Row],[Size]]=\"\",\"\",Table_PI[[#This Row],[Size]])","v":""},null,{"$f":"IFERROR(IF(AND(MeasureCalc(Table_PI[[#This Row],[Hide:\nFormula Name]],Table_SummaryPI[[#This Row],[Quantity]],Table_PI[[#This Row],[List 1]],Table_PI[[#This Row],[List 2]],Table_PI[[#This Row],[List 3]],Table_PI[[#This Row],[Size]],Table_PI[[#This Row],[Input 1]],Table_PI[[#This Row],[Input 2]],Table_PI[[#This Row],[Input 3]],Table_PI[[#This Row],[Input 4]],'Customer Information'!$AR$12,100,ROW())<>0,MeasureCalc(Table_PI[[#This Row],[Hide:\nFormula Name]],Table_SummaryPI[[#This Row],[Quantity]],Table_PI[[#This Row],[List 1]],Table_PI[[#This Row],[List 2]],Table_PI[[#This Row],[List 3]],Table_PI[[#This Row],[Size]],Table_PI[[#This Row],[Input 1]],Table_PI[[#This Row],[Input 2]],Table_PI[[#This Row],[Input 3]],Table_PI[[#This Row],[Input 4]],'Customer Information'!$AR$12,100,ROW())<>\"No Rebate\"),MeasureCalc(Table_PI[[#This Row],[Hide:\nFormula Name]],Table_SummaryPI[[#This Row],[Quantity]],Table_PI[[#This Row],[List 1]],Table_PI[[#This Row],[List 2]],Table_PI[[#This Row],[List 3]],Table_PI[[#This Row],[Size]],Table_PI[[#This Row],[Input 1]],Table_PI[[#This Row],[Input 2]],Table_PI[[#This Row],[Input 3]],Table_PI[[#This Row],[Input 4]],'Customer Information'!$AR$12,100,ROW()),\"\"),\"\")","v":""},{"$f":"IF(Table_PI[[#This Row],[Input 1]]<>\"\",Table_PI[[#This Row],[Input 1]],\"\")","v":""},null,{"$f":"IFERROR(IF(AND(MeasureCalc(Table_PI[[#This Row],[Hide:\nFormula Name]],Table_SummaryPI[[#This Row],[Quantity]],Table_PI[[#This Row],[List 1]],Table_PI[[#This Row],[List 2]],Table_PI[[#This Row],[List 3]],Table_PI[[#This Row],[Size]],Table_PI[[#This Row],[Input 1]],Table_PI[[#This Row],[Input 2]],Table_PI[[#This Row],[Input 3]],Table_PI[[#This Row],[Input 4]],'Customer Information'!$AR$12,101,ROW())<>0,MeasureCalc(Table_PI[[#This Row],[Hide:\nFormula Name]],Table_SummaryPI[[#This Row],[Quantity]],Table_PI[[#This Row],[List 1]],Table_PI[[#This Row],[List 2]],Table_PI[[#This Row],[List 3]],Table_PI[[#This Row],[Size]],Table_PI[[#This Row],[Input 1]],Table_PI[[#This Row],[Input 2]],Table_PI[[#This Row],[Input 3]],Table_PI[[#This Row],[Input 4]],'Customer Information'!$AR$12,101,ROW())<>\"No Rebate\"),MeasureCalc(Table_PI[[#This Row],[Hide:\nFormula Name]],Table_SummaryPI[[#This Row],[Quantity]],Table_PI[[#This Row],[List 1]],Table_PI[[#This Row],[List 2]],Table_PI[[#This Row],[List 3]],Table_PI[[#This Row],[Size]],Table_PI[[#This Row],[Input 1]],Table_PI[[#This Row],[Input 2]],Table_PI[[#This Row],[Input 3]],Table_PI[[#This Row],[Input 4]],'Customer Information'!$AR$12,101,ROW()),\"\"),\"\")","v":""},{"$f":"IF(Table_PI[[#This Row],[Input 2]]<>\"\",Table_PI[[#This Row],[Input 2]],\"\")","v":""},null,{"$f":"IFERROR(IF(AND(MeasureCalc(Table_PI[[#This Row],[Hide:\nFormula Name]],Table_SummaryPI[[#This Row],[Quantity]],Table_PI[[#This Row],[List 1]],Table_PI[[#This Row],[List 2]],Table_PI[[#This Row],[List 3]],Table_PI[[#This Row],[Size]],Table_PI[[#This Row],[Input 1]],Table_PI[[#This Row],[Input 2]],Table_PI[[#This Row],[Input 3]],Table_PI[[#This Row],[Input 4]],'Customer Information'!$AR$12,102,ROW())<>0,MeasureCalc(Table_PI[[#This Row],[Hide:\nFormula Name]],Table_SummaryPI[[#This Row],[Quantity]],Table_PI[[#This Row],[List 1]],Table_PI[[#This Row],[List 2]],Table_PI[[#This Row],[List 3]],Table_PI[[#This Row],[Size]],Table_PI[[#This Row],[Input 1]],Table_PI[[#This Row],[Input 2]],Table_PI[[#This Row],[Input 3]],Table_PI[[#This Row],[Input 4]],'Customer Information'!$AR$12,102,ROW())<>\"No Rebate\"),MeasureCalc(Table_PI[[#This Row],[Hide:\nFormula Name]],Table_SummaryPI[[#This Row],[Quantity]],Table_PI[[#This Row],[List 1]],Table_PI[[#This Row],[List 2]],Table_PI[[#This Row],[List 3]],Table_PI[[#This Row],[Size]],Table_PI[[#This Row],[Input 1]],Table_PI[[#This Row],[Input 2]],Table_PI[[#This Row],[Input 3]],Table_PI[[#This Row],[Input 4]],'Customer Information'!$AR$12,102,ROW()),\"\"),\"\")","v":""},{"$f":"IF(Table_PI[[#This Row],[Input 3]]<>\"\",Table_PI[[#This Row],[Input 3]],\"\")","v":""},null,{"$f":"IFERROR(IF(AND(MeasureCalc(Table_PI[[#This Row],[Hide:\nFormula Name]],Table_SummaryPI[[#This Row],[Quantity]],Table_PI[[#This Row],[List 1]],Table_PI[[#This Row],[List 2]],Table_PI[[#This Row],[List 3]],Table_PI[[#This Row],[Size]],Table_PI[[#This Row],[Input 1]],Table_PI[[#This Row],[Input 2]],Table_PI[[#This Row],[Input 3]],Table_PI[[#This Row],[Input 4]],'Customer Information'!$AR$12,103,ROW())<>0,MeasureCalc(Table_PI[[#This Row],[Hide:\nFormula Name]],Table_SummaryPI[[#This Row],[Quantity]],Table_PI[[#This Row],[List 1]],Table_PI[[#This Row],[List 2]],Table_PI[[#This Row],[List 3]],Table_PI[[#This Row],[Size]],Table_PI[[#This Row],[Input 1]],Table_PI[[#This Row],[Input 2]],Table_PI[[#This Row],[Input 3]],Table_PI[[#This Row],[Input 4]],'Customer Information'!$AR$12,103,ROW())<>\"No Rebate\"),MeasureCalc(Table_PI[[#This Row],[Hide:\nFormula Name]],Table_SummaryPI[[#This Row],[Quantity]],Table_PI[[#This Row],[List 1]],Table_PI[[#This Row],[List 2]],Table_PI[[#This Row],[List 3]],Table_PI[[#This Row],[Size]],Table_PI[[#This Row],[Input 1]],Table_PI[[#This Row],[Input 2]],Table_PI[[#This Row],[Input 3]],Table_PI[[#This Row],[Input 4]],'Customer Information'!$AR$12,103,ROW()),\"\"),\"\")","v":""},{"$f":"IF(Table_PI[[#This Row],[Input 4]]<>\"\",Table_PI[[#This Row],[Input 4]],\"\")","v":""},{"$f":"IF(Table_PI[[#This Row],[Quantity]]=\"\",\"\",Table_PI[[#This Row],[Quantity]])","v":""},{"$f":"IF(Table_PI[[#This Row],[Notes]]=\"\",\"\",Table_PI[[#This Row],[Notes]])","v":""},{"$f":"IF(OR(Table_PI[[#This Row],[Hide:\nBaseline kWh]]=\"\",Table_PI[[#This Row],[Hide:\nBaseline kWh]]=0),\"\",Table_PI[[#This Row],[Hide:\nBaseline kWh]])","v":""},{"$f":"IF(OR(Table_PI[[#This Row],[Hide:\nBaseline kW]]=\"\",Table_PI[[#This Row],[Hide:\nBaseline kW]]=0),\"\",Table_PI[[#This Row],[Hide:\nBaseline kW]])","v":""},{"$f":"IF(OR(Table_PI[[#This Row],[Hide:\nProposed kWh]]=\"\",Table_PI[[#This Row],[Hide:\nProposed kWh]]=0),\"\",Table_PI[[#This Row],[Hide:\nProposed kWh]])","v":""},{"$f":"IF(OR(Table_PI[[#This Row],[Hide:\nProposed kW]]=\"\",Table_PI[[#This Row],[Hide:\nProposed kW]]=0),\"\",Table_PI[[#This Row],[Hide:\nProposed kW]])","v":""},{"$f":"IF(OR(Table_PI[[#This Row],[Rebate]]=\"\",Table_PI[[#This Row],[Rebate]]=0),\"\",Table_PI[[#This Row],[Rebate]])","v":""},{"$f":"IF(OR(Table_PI[[#This Row],[Hide:\nIncremental Cost]]=\"\",Table_PI[[#This Row],[Hide:\nIncremental Cost]]=0),\"\",Table_PI[[#This Row],[Hide:\nIncremental Cost]])","v":""},{"$f":"IFERROR(IF(Table_SummaryPI[[#This Row],[kWhSavings]]=\"\",\"\",ROUND(Table_SummaryPI[[#This Row],[kWhSavings]]/$AG$401*'Customer Information'!$BC$17,2)),0)","v":""},{"$f":"IF(OR(Table_PI[[#This Row],[Annual kWh]]=\"\",Table_PI[[#This Row],[Annual kWh]]=0),\"\",Table_PI[[#This Row],[Annual kWh]])","v":""},{"$f":"IF(OR(Table_PI[[#This Row],[Peak kW]]=\"\",Table_PI[[#This Row],[Peak kW]]=0),\"\",Table_PI[[#This Row],[Peak kW]])","v":""},{"$f":"IFERROR(IF(Table_SummaryPI[[#This Row],[kWhSavings]]=\"\",\"\",$AU$9*Table_SummaryPI[[#This Row],[kWhSavings]]),0)","v":""},{"$f":"IFERROR(IF(Table_SummaryPI[[#This Row],[kWhSavings]]=\"\",\"\",$AU$14*Table_SummaryPI[[#This Row],[kWhSavings]]),0)","v":""},{"$f":"IFERROR(IF(Table_SummaryPI[[#This Row],[kWhSavings]]=\"\",\"\",$AU$18*Table_SummaryPI[[#This Row],[kWhSavings]]),0)","v":""},{"$f":"IFERROR(IF(Table_SummaryPI[[#This Row],[kWhSavings]]=\"\",\"\",$AU$22*Table_SummaryPI[[#This Row],[kWhSavings]]),0)","v":""},{"$f":"IFERROR(IF(MeasureCalc(Table_PI[[#This Row],[Hide:\nFormula Name]],Table_SummaryPI[[#This Row],[Quantity]],Table_PI[[#This Row],[List 1]],Table_PI[[#This Row],[List 2]],Table_PI[[#This Row],[List 3]],Table_PI[[#This Row],[Size]],Table_PI[[#This Row],[Input 1]],Table_PI[[#This Row],[Input 2]],Table_PI[[#This Row],[Input 3]],Table_PI[[#This Row],[Input 4]],'Customer Information'!$AR$12,200,ROW())<>\"No Rebate\",MeasureCalc(Table_PI[[#This Row],[Hide:\nFormula Name]],Table_SummaryPI[[#This Row],[Quantity]],Table_PI[[#This Row],[List 1]],Table_PI[[#This Row],[List 2]],Table_PI[[#This Row],[List 3]],Table_PI[[#This Row],[Size]],Table_PI[[#This Row],[Input 1]],Table_PI[[#This Row],[Input 2]],Table_PI[[#This Row],[Input 3]],Table_PI[[#This Row],[Input 4]],'Customer Information'!$AR$12,200,ROW()),\"\"),\"\")","v":""},{"$f":"IFERROR(IF(MeasureCalc(Table_PI[[#This Row],[Hide:\nFormula Name]],Table_SummaryPI[[#This Row],[Quantity]],Table_PI[[#This Row],[List 1]],Table_PI[[#This Row],[List 2]],Table_PI[[#This Row],[List 3]],Table_PI[[#This Row],[Size]],Table_PI[[#This Row],[Input 1]],Table_PI[[#This Row],[Input 2]],Table_PI[[#This Row],[Input 3]],Table_PI[[#This Row],[Input 4]],'Customer Information'!$AR$12,201,ROW())<>\"No Rebate\",MeasureCalc(Table_PI[[#This Row],[Hide:\nFormula Name]],Table_SummaryPI[[#This Row],[Quantity]],Table_PI[[#This Row],[List 1]],Table_PI[[#This Row],[List 2]],Table_PI[[#This Row],[List 3]],Table_PI[[#This Row],[Size]],Table_PI[[#This Row],[Input 1]],Table_PI[[#This Row],[Input 2]],Table_PI[[#This Row],[Input 3]],Table_PI[[#This Row],[Input 4]],'Customer Information'!$AR$12,201,ROW()),\"\"),\"\")","v":""}]
[{"$f":"Table_PI[[#This Row],[Line No.]]","v":""},{"$f":"IF(Table_SummaryPI[[#This Row],[MeassureCategory]]<>\"\",CONCATENATE(Table_SummaryPI[[#This Row],[MeassureCategory]],  \" - \", Table_SummaryPI[[#This Row],[ProposedMeasureCategory]],  \" - \", TEXT(Table_SummaryPI[[#This Row],[Size]],\"#,##0.00\"),\" \",Table_SummaryPI[[#This Row],[SizeUnit]]),\"\")","v":""},{"$f":"SUBSTITUTE(Table_PI[[#This Row],[Measure]],\"     \",\"\",1)","v":""},{"$f":"IF(Table_PI[[#This Row],[List 1]]<>\"\",Table_PI[[#This Row],[List 1]],\"\")","v":""},{"$f":"IF(Table_PI[[#This Row],[List 2]]<>\"\",Table_PI[[#This Row],[List 2]],\"\")","v":""},{"$f":"IF(Table_PI[[#This Row],[List 3]]<>\"\",Table_PI[[#This Row],[List 3]],\"\")","v":""},{"$f":"IF(Table_PI[[#This Row],[Manufacturer]]=\"\",\"\",Table_PI[[#This Row],[Manufacturer]])","v":""},{"$f":"IF(Table_PI[[#This Row],[Model Number]]=\"\",\"\",Table_PI[[#This Row],[Model Number]])","v":""},{"$f":"IF(Table_PI[[#This Row],[Serial Number(s)]]=\"\",\"\",Table_PI[[#This Row],[Serial Number(s)]])","v":""},null,{"$f":"IF(Table_PI[[#This Row],[Size]]=\"\",\"\",Table_PI[[#This Row],[Size]])","v":""},null,{"$f":"IFERROR(IF(AND(MeasureCalc(Table_PI[[#This Row],[Hide:\nFormula Name]],Table_SummaryPI[[#This Row],[Quantity]],Table_PI[[#This Row],[List 1]],Table_PI[[#This Row],[List 2]],Table_PI[[#This Row],[List 3]],Table_PI[[#This Row],[Size]],Table_PI[[#This Row],[Input 1]],Table_PI[[#This Row],[Input 2]],Table_PI[[#This Row],[Input 3]],Table_PI[[#This Row],[Input 4]],'Customer Information'!$AR$12,100,ROW())<>0,MeasureCalc(Table_PI[[#This Row],[Hide:\nFormula Name]],Table_SummaryPI[[#This Row],[Quantity]],Table_PI[[#This Row],[List 1]],Table_PI[[#This Row],[List 2]],Table_PI[[#This Row],[List 3]],Table_PI[[#This Row],[Size]],Table_PI[[#This Row],[Input 1]],Table_PI[[#This Row],[Input 2]],Table_PI[[#This Row],[Input 3]],Table_PI[[#This Row],[Input 4]],'Customer Information'!$AR$12,100,ROW())<>\"No Rebate\"),MeasureCalc(Table_PI[[#This Row],[Hide:\nFormula Name]],Table_SummaryPI[[#This Row],[Quantity]],Table_PI[[#This Row],[List 1]],Table_PI[[#This Row],[List 2]],Table_PI[[#This Row],[List 3]],Table_PI[[#This Row],[Size]],Table_PI[[#This Row],[Input 1]],Table_PI[[#This Row],[Input 2]],Table_PI[[#This Row],[Input 3]],Table_PI[[#This Row],[Input 4]],'Customer Information'!$AR$12,100,ROW()),\"\"),\"\")","v":""},{"$f":"IF(Table_PI[[#This Row],[Input 1]]<>\"\",Table_PI[[#This Row],[Input 1]],\"\")","v":""},null,{"$f":"IFERROR(IF(AND(MeasureCalc(Table_PI[[#This Row],[Hide:\nFormula Name]],Table_SummaryPI[[#This Row],[Quantity]],Table_PI[[#This Row],[List 1]],Table_PI[[#This Row],[List 2]],Table_PI[[#This Row],[List 3]],Table_PI[[#This Row],[Size]],Table_PI[[#This Row],[Input 1]],Table_PI[[#This Row],[Input 2]],Table_PI[[#This Row],[Input 3]],Table_PI[[#This Row],[Input 4]],'Customer Information'!$AR$12,101,ROW())<>0,MeasureCalc(Table_PI[[#This Row],[Hide:\nFormula Name]],Table_SummaryPI[[#This Row],[Quantity]],Table_PI[[#This Row],[List 1]],Table_PI[[#This Row],[List 2]],Table_PI[[#This Row],[List 3]],Table_PI[[#This Row],[Size]],Table_PI[[#This Row],[Input 1]],Table_PI[[#This Row],[Input 2]],Table_PI[[#This Row],[Input 3]],Table_PI[[#This Row],[Input 4]],'Customer Information'!$AR$12,101,ROW())<>\"No Rebate\"),MeasureCalc(Table_PI[[#This Row],[Hide:\nFormula Name]],Table_SummaryPI[[#This Row],[Quantity]],Table_PI[[#This Row],[List 1]],Table_PI[[#This Row],[List 2]],Table_PI[[#This Row],[List 3]],Table_PI[[#This Row],[Size]],Table_PI[[#This Row],[Input 1]],Table_PI[[#This Row],[Input 2]],Table_PI[[#This Row],[Input 3]],Table_PI[[#This Row],[Input 4]],'Customer Information'!$AR$12,101,ROW()),\"\"),\"\")","v":""},{"$f":"IF(Table_PI[[#This Row],[Input 2]]<>\"\",Table_PI[[#This Row],[Input 2]],\"\")","v":""},null,{"$f":"IFERROR(IF(AND(MeasureCalc(Table_PI[[#This Row],[Hide:\nFormula Name]],Table_SummaryPI[[#This Row],[Quantity]],Table_PI[[#This Row],[List 1]],Table_PI[[#This Row],[List 2]],Table_PI[[#This Row],[List 3]],Table_PI[[#This Row],[Size]],Table_PI[[#This Row],[Input 1]],Table_PI[[#This Row],[Input 2]],Table_PI[[#This Row],[Input 3]],Table_PI[[#This Row],[Input 4]],'Customer Information'!$AR$12,102,ROW())<>0,MeasureCalc(Table_PI[[#This Row],[Hide:\nFormula Name]],Table_SummaryPI[[#This Row],[Quantity]],Table_PI[[#This Row],[List 1]],Table_PI[[#This Row],[List 2]],Table_PI[[#This Row],[List 3]],Table_PI[[#This Row],[Size]],Table_PI[[#This Row],[Input 1]],Table_PI[[#This Row],[Input 2]],Table_PI[[#This Row],[Input 3]],Table_PI[[#This Row],[Input 4]],'Customer Information'!$AR$12,102,ROW())<>\"No Rebate\"),MeasureCalc(Table_PI[[#This Row],[Hide:\nFormula Name]],Table_SummaryPI[[#This Row],[Quantity]],Table_PI[[#This Row],[List 1]],Table_PI[[#This Row],[List 2]],Table_PI[[#This Row],[List 3]],Table_PI[[#This Row],[Size]],Table_PI[[#This Row],[Input 1]],Table_PI[[#This Row],[Input 2]],Table_PI[[#This Row],[Input 3]],Table_PI[[#This Row],[Input 4]],'Customer Information'!$AR$12,102,ROW()),\"\"),\"\")","v":""},{"$f":"IF(Table_PI[[#This Row],[Input 3]]<>\"\",Table_PI[[#This Row],[Input 3]],\"\")","v":""},null,{"$f":"IFERROR(IF(AND(MeasureCalc(Table_PI[[#This Row],[Hide:\nFormula Name]],Table_SummaryPI[[#This Row],[Quantity]],Table_PI[[#This Row],[List 1]],Table_PI[[#This Row],[List 2]],Table_PI[[#This Row],[List 3]],Table_PI[[#This Row],[Size]],Table_PI[[#This Row],[Input 1]],Table_PI[[#This Row],[Input 2]],Table_PI[[#This Row],[Input 3]],Table_PI[[#This Row],[Input 4]],'Customer Information'!$AR$12,103,ROW())<>0,MeasureCalc(Table_PI[[#This Row],[Hide:\nFormula Name]],Table_SummaryPI[[#This Row],[Quantity]],Table_PI[[#This Row],[List 1]],Table_PI[[#This Row],[List 2]],Table_PI[[#This Row],[List 3]],Table_PI[[#This Row],[Size]],Table_PI[[#This Row],[Input 1]],Table_PI[[#This Row],[Input 2]],Table_PI[[#This Row],[Input 3]],Table_PI[[#This Row],[Input 4]],'Customer Information'!$AR$12,103,ROW())<>\"No Rebate\"),MeasureCalc(Table_PI[[#This Row],[Hide:\nFormula Name]],Table_SummaryPI[[#This Row],[Quantity]],Table_PI[[#This Row],[List 1]],Table_PI[[#This Row],[List 2]],Table_PI[[#This Row],[List 3]],Table_PI[[#This Row],[Size]],Table_PI[[#This Row],[Input 1]],Table_PI[[#This Row],[Input 2]],Table_PI[[#This Row],[Input 3]],Table_PI[[#This Row],[Input 4]],'Customer Information'!$AR$12,103,ROW()),\"\"),\"\")","v":""},{"$f":"IF(Table_PI[[#This Row],[Input 4]]<>\"\",Table_PI[[#This Row],[Input 4]],\"\")","v":""},{"$f":"IF(Table_PI[[#This Row],[Quantity]]=\"\",\"\",Table_PI[[#This Row],[Quantity]])","v":""},{"$f":"IF(Table_PI[[#This Row],[Notes]]=\"\",\"\",Table_PI[[#This Row],[Notes]])","v":""},{"$f":"IF(OR(Table_PI[[#This Row],[Hide:\nBaseline kWh]]=\"\",Table_PI[[#This Row],[Hide:\nBaseline kWh]]=0),\"\",Table_PI[[#This Row],[Hide:\nBaseline kWh]])","v":""},{"$f":"IF(OR(Table_PI[[#This Row],[Hide:\nBaseline kW]]=\"\",Table_PI[[#This Row],[Hide:\nBaseline kW]]=0),\"\",Table_PI[[#This Row],[Hide:\nBaseline kW]])","v":""},{"$f":"IF(OR(Table_PI[[#This Row],[Hide:\nProposed kWh]]=\"\",Table_PI[[#This Row],[Hide:\nProposed kWh]]=0),\"\",Table_PI[[#This Row],[Hide:\nProposed kWh]])","v":""},{"$f":"IF(OR(Table_PI[[#This Row],[Hide:\nProposed kW]]=\"\",Table_PI[[#This Row],[Hide:\nProposed kW]]=0),\"\",Table_PI[[#This Row],[Hide:\nProposed kW]])","v":""},{"$f":"IF(OR(Table_PI[[#This Row],[Rebate]]=\"\",Table_PI[[#This Row],[Rebate]]=0),\"\",Table_PI[[#This Row],[Rebate]])","v":""},{"$f":"IF(OR(Table_PI[[#This Row],[Hide:\nIncremental Cost]]=\"\",Table_PI[[#This Row],[Hide:\nIncremental Cost]]=0),\"\",Table_PI[[#This Row],[Hide:\nIncremental Cost]])","v":""},{"$f":"IFERROR(IF(Table_SummaryPI[[#This Row],[kWhSavings]]=\"\",\"\",ROUND(Table_SummaryPI[[#This Row],[kWhSavings]]/$AG$401*'Customer Information'!$BC$17,2)),0)","v":""},{"$f":"IF(OR(Table_PI[[#This Row],[Annual kWh]]=\"\",Table_PI[[#This Row],[Annual kWh]]=0),\"\",Table_PI[[#This Row],[Annual kWh]])","v":""},{"$f":"IF(OR(Table_PI[[#This Row],[Peak kW]]=\"\",Table_PI[[#This Row],[Peak kW]]=0),\"\",Table_PI[[#This Row],[Peak kW]])","v":""},{"$f":"IFERROR(IF(Table_SummaryPI[[#This Row],[kWhSavings]]=\"\",\"\",$AU$9*Table_SummaryPI[[#This Row],[kWhSavings]]),0)","v":""},{"$f":"IFERROR(IF(Table_SummaryPI[[#This Row],[kWhSavings]]=\"\",\"\",$AU$14*Table_SummaryPI[[#This Row],[kWhSavings]]),0)","v":""},{"$f":"IFERROR(IF(Table_SummaryPI[[#This Row],[kWhSavings]]=\"\",\"\",$AU$18*Table_SummaryPI[[#This Row],[kWhSavings]]),0)","v":""},{"$f":"IFERROR(IF(Table_SummaryPI[[#This Row],[kWhSavings]]=\"\",\"\",$AU$22*Table_SummaryPI[[#This Row],[kWhSavings]]),0)","v":""},{"$f":"IFERROR(IF(MeasureCalc(Table_PI[[#This Row],[Hide:\nFormula Name]],Table_SummaryPI[[#This Row],[Quantity]],Table_PI[[#This Row],[List 1]],Table_PI[[#This Row],[List 2]],Table_PI[[#This Row],[List 3]],Table_PI[[#This Row],[Size]],Table_PI[[#This Row],[Input 1]],Table_PI[[#This Row],[Input 2]],Table_PI[[#This Row],[Input 3]],Table_PI[[#This Row],[Input 4]],'Customer Information'!$AR$12,200,ROW())<>\"No Rebate\",MeasureCalc(Table_PI[[#This Row],[Hide:\nFormula Name]],Table_SummaryPI[[#This Row],[Quantity]],Table_PI[[#This Row],[List 1]],Table_PI[[#This Row],[List 2]],Table_PI[[#This Row],[List 3]],Table_PI[[#This Row],[Size]],Table_PI[[#This Row],[Input 1]],Table_PI[[#This Row],[Input 2]],Table_PI[[#This Row],[Input 3]],Table_PI[[#This Row],[Input 4]],'Customer Information'!$AR$12,200,ROW()),\"\"),\"\")","v":""},{"$f":"IFERROR(IF(MeasureCalc(Table_PI[[#This Row],[Hide:\nFormula Name]],Table_SummaryPI[[#This Row],[Quantity]],Table_PI[[#This Row],[List 1]],Table_PI[[#This Row],[List 2]],Table_PI[[#This Row],[List 3]],Table_PI[[#This Row],[Size]],Table_PI[[#This Row],[Input 1]],Table_PI[[#This Row],[Input 2]],Table_PI[[#This Row],[Input 3]],Table_PI[[#This Row],[Input 4]],'Customer Information'!$AR$12,201,ROW())<>\"No Rebate\",MeasureCalc(Table_PI[[#This Row],[Hide:\nFormula Name]],Table_SummaryPI[[#This Row],[Quantity]],Table_PI[[#This Row],[List 1]],Table_PI[[#This Row],[List 2]],Table_PI[[#This Row],[List 3]],Table_PI[[#This Row],[Size]],Table_PI[[#This Row],[Input 1]],Table_PI[[#This Row],[Input 2]],Table_PI[[#This Row],[Input 3]],Table_PI[[#This Row],[Input 4]],'Customer Information'!$AR$12,201,ROW()),\"\"),\"\")","v":""}]
[{"$f":"Table_PI[[#This Row],[Line No.]]","v":""},{"$f":"IF(Table_SummaryPI[[#This Row],[MeassureCategory]]<>\"\",CONCATENATE(Table_SummaryPI[[#This Row],[MeassureCategory]],  \" - \", Table_SummaryPI[[#This Row],[ProposedMeasureCategory]],  \" - \", TEXT(Table_SummaryPI[[#This Row],[Size]],\"#,##0.00\"),\" \",Table_SummaryPI[[#This Row],[SizeUnit]]),\"\")","v":""},{"$f":"SUBSTITUTE(Table_PI[[#This Row],[Measure]],\"     \",\"\",1)","v":""},{"$f":"IF(Table_PI[[#This Row],[List 1]]<>\"\",Table_PI[[#This Row],[List 1]],\"\")","v":""},{"$f":"IF(Table_PI[[#This Row],[List 2]]<>\"\",Table_PI[[#This Row],[List 2]],\"\")","v":""},{"$f":"IF(Table_PI[[#This Row],[List 3]]<>\"\",Table_PI[[#This Row],[List 3]],\"\")","v":""},{"$f":"IF(Table_PI[[#This Row],[Manufacturer]]=\"\",\"\",Table_PI[[#This Row],[Manufacturer]])","v":""},{"$f":"IF(Table_PI[[#This Row],[Model Number]]=\"\",\"\",Table_PI[[#This Row],[Model Number]])","v":""},{"$f":"IF(Table_PI[[#This Row],[Serial Number(s)]]=\"\",\"\",Table_PI[[#This Row],[Serial Number(s)]])","v":""},null,{"$f":"IF(Table_PI[[#This Row],[Size]]=\"\",\"\",Table_PI[[#This Row],[Size]])","v":""},null,{"$f":"IFERROR(IF(AND(MeasureCalc(Table_PI[[#This Row],[Hide:\nFormula Name]],Table_SummaryPI[[#This Row],[Quantity]],Table_PI[[#This Row],[List 1]],Table_PI[[#This Row],[List 2]],Table_PI[[#This Row],[List 3]],Table_PI[[#This Row],[Size]],Table_PI[[#This Row],[Input 1]],Table_PI[[#This Row],[Input 2]],Table_PI[[#This Row],[Input 3]],Table_PI[[#This Row],[Input 4]],'Customer Information'!$AR$12,100,ROW())<>0,MeasureCalc(Table_PI[[#This Row],[Hide:\nFormula Name]],Table_SummaryPI[[#This Row],[Quantity]],Table_PI[[#This Row],[List 1]],Table_PI[[#This Row],[List 2]],Table_PI[[#This Row],[List 3]],Table_PI[[#This Row],[Size]],Table_PI[[#This Row],[Input 1]],Table_PI[[#This Row],[Input 2]],Table_PI[[#This Row],[Input 3]],Table_PI[[#This Row],[Input 4]],'Customer Information'!$AR$12,100,ROW())<>\"No Rebate\"),MeasureCalc(Table_PI[[#This Row],[Hide:\nFormula Name]],Table_SummaryPI[[#This Row],[Quantity]],Table_PI[[#This Row],[List 1]],Table_PI[[#This Row],[List 2]],Table_PI[[#This Row],[List 3]],Table_PI[[#This Row],[Size]],Table_PI[[#This Row],[Input 1]],Table_PI[[#This Row],[Input 2]],Table_PI[[#This Row],[Input 3]],Table_PI[[#This Row],[Input 4]],'Customer Information'!$AR$12,100,ROW()),\"\"),\"\")","v":""},{"$f":"IF(Table_PI[[#This Row],[Input 1]]<>\"\",Table_PI[[#This Row],[Input 1]],\"\")","v":""},null,{"$f":"IFERROR(IF(AND(MeasureCalc(Table_PI[[#This Row],[Hide:\nFormula Name]],Table_SummaryPI[[#This Row],[Quantity]],Table_PI[[#This Row],[List 1]],Table_PI[[#This Row],[List 2]],Table_PI[[#This Row],[List 3]],Table_PI[[#This Row],[Size]],Table_PI[[#This Row],[Input 1]],Table_PI[[#This Row],[Input 2]],Table_PI[[#This Row],[Input 3]],Table_PI[[#This Row],[Input 4]],'Customer Information'!$AR$12,101,ROW())<>0,MeasureCalc(Table_PI[[#This Row],[Hide:\nFormula Name]],Table_SummaryPI[[#This Row],[Quantity]],Table_PI[[#This Row],[List 1]],Table_PI[[#This Row],[List 2]],Table_PI[[#This Row],[List 3]],Table_PI[[#This Row],[Size]],Table_PI[[#This Row],[Input 1]],Table_PI[[#This Row],[Input 2]],Table_PI[[#This Row],[Input 3]],Table_PI[[#This Row],[Input 4]],'Customer Information'!$AR$12,101,ROW())<>\"No Rebate\"),MeasureCalc(Table_PI[[#This Row],[Hide:\nFormula Name]],Table_SummaryPI[[#This Row],[Quantity]],Table_PI[[#This Row],[List 1]],Table_PI[[#This Row],[List 2]],Table_PI[[#This Row],[List 3]],Table_PI[[#This Row],[Size]],Table_PI[[#This Row],[Input 1]],Table_PI[[#This Row],[Input 2]],Table_PI[[#This Row],[Input 3]],Table_PI[[#This Row],[Input 4]],'Customer Information'!$AR$12,101,ROW()),\"\"),\"\")","v":""},{"$f":"IF(Table_PI[[#This Row],[Input 2]]<>\"\",Table_PI[[#This Row],[Input 2]],\"\")","v":""},null,{"$f":"IFERROR(IF(AND(MeasureCalc(Table_PI[[#This Row],[Hide:\nFormula Name]],Table_SummaryPI[[#This Row],[Quantity]],Table_PI[[#This Row],[List 1]],Table_PI[[#This Row],[List 2]],Table_PI[[#This Row],[List 3]],Table_PI[[#This Row],[Size]],Table_PI[[#This Row],[Input 1]],Table_PI[[#This Row],[Input 2]],Table_PI[[#This Row],[Input 3]],Table_PI[[#This Row],[Input 4]],'Customer Information'!$AR$12,102,ROW())<>0,MeasureCalc(Table_PI[[#This Row],[Hide:\nFormula Name]],Table_SummaryPI[[#This Row],[Quantity]],Table_PI[[#This Row],[List 1]],Table_PI[[#This Row],[List 2]],Table_PI[[#This Row],[List 3]],Table_PI[[#This Row],[Size]],Table_PI[[#This Row],[Input 1]],Table_PI[[#This Row],[Input 2]],Table_PI[[#This Row],[Input 3]],Table_PI[[#This Row],[Input 4]],'Customer Information'!$AR$12,102,ROW())<>\"No Rebate\"),MeasureCalc(Table_PI[[#This Row],[Hide:\nFormula Name]],Table_SummaryPI[[#This Row],[Quantity]],Table_PI[[#This Row],[List 1]],Table_PI[[#This Row],[List 2]],Table_PI[[#This Row],[List 3]],Table_PI[[#This Row],[Size]],Table_PI[[#This Row],[Input 1]],Table_PI[[#This Row],[Input 2]],Table_PI[[#This Row],[Input 3]],Table_PI[[#This Row],[Input 4]],'Customer Information'!$AR$12,102,ROW()),\"\"),\"\")","v":""},{"$f":"IF(Table_PI[[#This Row],[Input 3]]<>\"\",Table_PI[[#This Row],[Input 3]],\"\")","v":""},null,{"$f":"IFERROR(IF(AND(MeasureCalc(Table_PI[[#This Row],[Hide:\nFormula Name]],Table_SummaryPI[[#This Row],[Quantity]],Table_PI[[#This Row],[List 1]],Table_PI[[#This Row],[List 2]],Table_PI[[#This Row],[List 3]],Table_PI[[#This Row],[Size]],Table_PI[[#This Row],[Input 1]],Table_PI[[#This Row],[Input 2]],Table_PI[[#This Row],[Input 3]],Table_PI[[#This Row],[Input 4]],'Customer Information'!$AR$12,103,ROW())<>0,MeasureCalc(Table_PI[[#This Row],[Hide:\nFormula Name]],Table_SummaryPI[[#This Row],[Quantity]],Table_PI[[#This Row],[List 1]],Table_PI[[#This Row],[List 2]],Table_PI[[#This Row],[List 3]],Table_PI[[#This Row],[Size]],Table_PI[[#This Row],[Input 1]],Table_PI[[#This Row],[Input 2]],Table_PI[[#This Row],[Input 3]],Table_PI[[#This Row],[Input 4]],'Customer Information'!$AR$12,103,ROW())<>\"No Rebate\"),MeasureCalc(Table_PI[[#This Row],[Hide:\nFormula Name]],Table_SummaryPI[[#This Row],[Quantity]],Table_PI[[#This Row],[List 1]],Table_PI[[#This Row],[List 2]],Table_PI[[#This Row],[List 3]],Table_PI[[#This Row],[Size]],Table_PI[[#This Row],[Input 1]],Table_PI[[#This Row],[Input 2]],Table_PI[[#This Row],[Input 3]],Table_PI[[#This Row],[Input 4]],'Customer Information'!$AR$12,103,ROW()),\"\"),\"\")","v":""},{"$f":"IF(Table_PI[[#This Row],[Input 4]]<>\"\",Table_PI[[#This Row],[Input 4]],\"\")","v":""},{"$f":"IF(Table_PI[[#This Row],[Quantity]]=\"\",\"\",Table_PI[[#This Row],[Quantity]])","v":""},{"$f":"IF(Table_PI[[#This Row],[Notes]]=\"\",\"\",Table_PI[[#This Row],[Notes]])","v":""},{"$f":"IF(OR(Table_PI[[#This Row],[Hide:\nBaseline kWh]]=\"\",Table_PI[[#This Row],[Hide:\nBaseline kWh]]=0),\"\",Table_PI[[#This Row],[Hide:\nBaseline kWh]])","v":""},{"$f":"IF(OR(Table_PI[[#This Row],[Hide:\nBaseline kW]]=\"\",Table_PI[[#This Row],[Hide:\nBaseline kW]]=0),\"\",Table_PI[[#This Row],[Hide:\nBaseline kW]])","v":""},{"$f":"IF(OR(Table_PI[[#This Row],[Hide:\nProposed kWh]]=\"\",Table_PI[[#This Row],[Hide:\nProposed kWh]]=0),\"\",Table_PI[[#This Row],[Hide:\nProposed kWh]])","v":""},{"$f":"IF(OR(Table_PI[[#This Row],[Hide:\nProposed kW]]=\"\",Table_PI[[#This Row],[Hide:\nProposed kW]]=0),\"\",Table_PI[[#This Row],[Hide:\nProposed kW]])","v":""},{"$f":"IF(OR(Table_PI[[#This Row],[Rebate]]=\"\",Table_PI[[#This Row],[Rebate]]=0),\"\",Table_PI[[#This Row],[Rebate]])","v":""},{"$f":"IF(OR(Table_PI[[#This Row],[Hide:\nIncremental Cost]]=\"\",Table_PI[[#This Row],[Hide:\nIncremental Cost]]=0),\"\",Table_PI[[#This Row],[Hide:\nIncremental Cost]])","v":""},{"$f":"IFERROR(IF(Table_SummaryPI[[#This Row],[kWhSavings]]=\"\",\"\",ROUND(Table_SummaryPI[[#This Row],[kWhSavings]]/$AG$401*'Customer Information'!$BC$17,2)),0)","v":""},{"$f":"IF(OR(Table_PI[[#This Row],[Annual kWh]]=\"\",Table_PI[[#This Row],[Annual kWh]]=0),\"\",Table_PI[[#This Row],[Annual kWh]])","v":""},{"$f":"IF(OR(Table_PI[[#This Row],[Peak kW]]=\"\",Table_PI[[#This Row],[Peak kW]]=0),\"\",Table_PI[[#This Row],[Peak kW]])","v":""},{"$f":"IFERROR(IF(Table_SummaryPI[[#This Row],[kWhSavings]]=\"\",\"\",$AU$9*Table_SummaryPI[[#This Row],[kWhSavings]]),0)","v":""},{"$f":"IFERROR(IF(Table_SummaryPI[[#This Row],[kWhSavings]]=\"\",\"\",$AU$14*Table_SummaryPI[[#This Row],[kWhSavings]]),0)","v":""},{"$f":"IFERROR(IF(Table_SummaryPI[[#This Row],[kWhSavings]]=\"\",\"\",$AU$18*Table_SummaryPI[[#This Row],[kWhSavings]]),0)","v":""},{"$f":"IFERROR(IF(Table_SummaryPI[[#This Row],[kWhSavings]]=\"\",\"\",$AU$22*Table_SummaryPI[[#This Row],[kWhSavings]]),0)","v":""},{"$f":"IFERROR(IF(MeasureCalc(Table_PI[[#This Row],[Hide:\nFormula Name]],Table_SummaryPI[[#This Row],[Quantity]],Table_PI[[#This Row],[List 1]],Table_PI[[#This Row],[List 2]],Table_PI[[#This Row],[List 3]],Table_PI[[#This Row],[Size]],Table_PI[[#This Row],[Input 1]],Table_PI[[#This Row],[Input 2]],Table_PI[[#This Row],[Input 3]],Table_PI[[#This Row],[Input 4]],'Customer Information'!$AR$12,200,ROW())<>\"No Rebate\",MeasureCalc(Table_PI[[#This Row],[Hide:\nFormula Name]],Table_SummaryPI[[#This Row],[Quantity]],Table_PI[[#This Row],[List 1]],Table_PI[[#This Row],[List 2]],Table_PI[[#This Row],[List 3]],Table_PI[[#This Row],[Size]],Table_PI[[#This Row],[Input 1]],Table_PI[[#This Row],[Input 2]],Table_PI[[#This Row],[Input 3]],Table_PI[[#This Row],[Input 4]],'Customer Information'!$AR$12,200,ROW()),\"\"),\"\")","v":""},{"$f":"IFERROR(IF(MeasureCalc(Table_PI[[#This Row],[Hide:\nFormula Name]],Table_SummaryPI[[#This Row],[Quantity]],Table_PI[[#This Row],[List 1]],Table_PI[[#This Row],[List 2]],Table_PI[[#This Row],[List 3]],Table_PI[[#This Row],[Size]],Table_PI[[#This Row],[Input 1]],Table_PI[[#This Row],[Input 2]],Table_PI[[#This Row],[Input 3]],Table_PI[[#This Row],[Input 4]],'Customer Information'!$AR$12,201,ROW())<>\"No Rebate\",MeasureCalc(Table_PI[[#This Row],[Hide:\nFormula Name]],Table_SummaryPI[[#This Row],[Quantity]],Table_PI[[#This Row],[List 1]],Table_PI[[#This Row],[List 2]],Table_PI[[#This Row],[List 3]],Table_PI[[#This Row],[Size]],Table_PI[[#This Row],[Input 1]],Table_PI[[#This Row],[Input 2]],Table_PI[[#This Row],[Input 3]],Table_PI[[#This Row],[Input 4]],'Customer Information'!$AR$12,201,ROW()),\"\"),\"\")","v":""}]
[{"$f":"Table_PI[[#This Row],[Line No.]]","v":""},{"$f":"IF(Table_SummaryPI[[#This Row],[MeassureCategory]]<>\"\",CONCATENATE(Table_SummaryPI[[#This Row],[MeassureCategory]],  \" - \", Table_SummaryPI[[#This Row],[ProposedMeasureCategory]],  \" - \", TEXT(Table_SummaryPI[[#This Row],[Size]],\"#,##0.00\"),\" \",Table_SummaryPI[[#This Row],[SizeUnit]]),\"\")","v":""},{"$f":"SUBSTITUTE(Table_PI[[#This Row],[Measure]],\"     \",\"\",1)","v":""},{"$f":"IF(Table_PI[[#This Row],[List 1]]<>\"\",Table_PI[[#This Row],[List 1]],\"\")","v":""},{"$f":"IF(Table_PI[[#This Row],[List 2]]<>\"\",Table_PI[[#This Row],[List 2]],\"\")","v":""},{"$f":"IF(Table_PI[[#This Row],[List 3]]<>\"\",Table_PI[[#This Row],[List 3]],\"\")","v":""},{"$f":"IF(Table_PI[[#This Row],[Manufacturer]]=\"\",\"\",Table_PI[[#This Row],[Manufacturer]])","v":""},{"$f":"IF(Table_PI[[#This Row],[Model Number]]=\"\",\"\",Table_PI[[#This Row],[Model Number]])","v":""},{"$f":"IF(Table_PI[[#This Row],[Serial Number(s)]]=\"\",\"\",Table_PI[[#This Row],[Serial Number(s)]])","v":""},null,{"$f":"IF(Table_PI[[#This Row],[Size]]=\"\",\"\",Table_PI[[#This Row],[Size]])","v":""},null,{"$f":"IFERROR(IF(AND(MeasureCalc(Table_PI[[#This Row],[Hide:\nFormula Name]],Table_SummaryPI[[#This Row],[Quantity]],Table_PI[[#This Row],[List 1]],Table_PI[[#This Row],[List 2]],Table_PI[[#This Row],[List 3]],Table_PI[[#This Row],[Size]],Table_PI[[#This Row],[Input 1]],Table_PI[[#This Row],[Input 2]],Table_PI[[#This Row],[Input 3]],Table_PI[[#This Row],[Input 4]],'Customer Information'!$AR$12,100,ROW())<>0,MeasureCalc(Table_PI[[#This Row],[Hide:\nFormula Name]],Table_SummaryPI[[#This Row],[Quantity]],Table_PI[[#This Row],[List 1]],Table_PI[[#This Row],[List 2]],Table_PI[[#This Row],[List 3]],Table_PI[[#This Row],[Size]],Table_PI[[#This Row],[Input 1]],Table_PI[[#This Row],[Input 2]],Table_PI[[#This Row],[Input 3]],Table_PI[[#This Row],[Input 4]],'Customer Information'!$AR$12,100,ROW())<>\"No Rebate\"),MeasureCalc(Table_PI[[#This Row],[Hide:\nFormula Name]],Table_SummaryPI[[#This Row],[Quantity]],Table_PI[[#This Row],[List 1]],Table_PI[[#This Row],[List 2]],Table_PI[[#This Row],[List 3]],Table_PI[[#This Row],[Size]],Table_PI[[#This Row],[Input 1]],Table_PI[[#This Row],[Input 2]],Table_PI[[#This Row],[Input 3]],Table_PI[[#This Row],[Input 4]],'Customer Information'!$AR$12,100,ROW()),\"\"),\"\")","v":""},{"$f":"IF(Table_PI[[#This Row],[Input 1]]<>\"\",Table_PI[[#This Row],[Input 1]],\"\")","v":""},null,{"$f":"IFERROR(IF(AND(MeasureCalc(Table_PI[[#This Row],[Hide:\nFormula Name]],Table_SummaryPI[[#This Row],[Quantity]],Table_PI[[#This Row],[List 1]],Table_PI[[#This Row],[List 2]],Table_PI[[#This Row],[List 3]],Table_PI[[#This Row],[Size]],Table_PI[[#This Row],[Input 1]],Table_PI[[#This Row],[Input 2]],Table_PI[[#This Row],[Input 3]],Table_PI[[#This Row],[Input 4]],'Customer Information'!$AR$12,101,ROW())<>0,MeasureCalc(Table_PI[[#This Row],[Hide:\nFormula Name]],Table_SummaryPI[[#This Row],[Quantity]],Table_PI[[#This Row],[List 1]],Table_PI[[#This Row],[List 2]],Table_PI[[#This Row],[List 3]],Table_PI[[#This Row],[Size]],Table_PI[[#This Row],[Input 1]],Table_PI[[#This Row],[Input 2]],Table_PI[[#This Row],[Input 3]],Table_PI[[#This Row],[Input 4]],'Customer Information'!$AR$12,101,ROW())<>\"No Rebate\"),MeasureCalc(Table_PI[[#This Row],[Hide:\nFormula Name]],Table_SummaryPI[[#This Row],[Quantity]],Table_PI[[#This Row],[List 1]],Table_PI[[#This Row],[List 2]],Table_PI[[#This Row],[List 3]],Table_PI[[#This Row],[Size]],Table_PI[[#This Row],[Input 1]],Table_PI[[#This Row],[Input 2]],Table_PI[[#This Row],[Input 3]],Table_PI[[#This Row],[Input 4]],'Customer Information'!$AR$12,101,ROW()),\"\"),\"\")","v":""},{"$f":"IF(Table_PI[[#This Row],[Input 2]]<>\"\",Table_PI[[#This Row],[Input 2]],\"\")","v":""},null,{"$f":"IFERROR(IF(AND(MeasureCalc(Table_PI[[#This Row],[Hide:\nFormula Name]],Table_SummaryPI[[#This Row],[Quantity]],Table_PI[[#This Row],[List 1]],Table_PI[[#This Row],[List 2]],Table_PI[[#This Row],[List 3]],Table_PI[[#This Row],[Size]],Table_PI[[#This Row],[Input 1]],Table_PI[[#This Row],[Input 2]],Table_PI[[#This Row],[Input 3]],Table_PI[[#This Row],[Input 4]],'Customer Information'!$AR$12,102,ROW())<>0,MeasureCalc(Table_PI[[#This Row],[Hide:\nFormula Name]],Table_SummaryPI[[#This Row],[Quantity]],Table_PI[[#This Row],[List 1]],Table_PI[[#This Row],[List 2]],Table_PI[[#This Row],[List 3]],Table_PI[[#This Row],[Size]],Table_PI[[#This Row],[Input 1]],Table_PI[[#This Row],[Input 2]],Table_PI[[#This Row],[Input 3]],Table_PI[[#This Row],[Input 4]],'Customer Information'!$AR$12,102,ROW())<>\"No Rebate\"),MeasureCalc(Table_PI[[#This Row],[Hide:\nFormula Name]],Table_SummaryPI[[#This Row],[Quantity]],Table_PI[[#This Row],[List 1]],Table_PI[[#This Row],[List 2]],Table_PI[[#This Row],[List 3]],Table_PI[[#This Row],[Size]],Table_PI[[#This Row],[Input 1]],Table_PI[[#This Row],[Input 2]],Table_PI[[#This Row],[Input 3]],Table_PI[[#This Row],[Input 4]],'Customer Information'!$AR$12,102,ROW()),\"\"),\"\")","v":""},{"$f":"IF(Table_PI[[#This Row],[Input 3]]<>\"\",Table_PI[[#This Row],[Input 3]],\"\")","v":""},null,{"$f":"IFERROR(IF(AND(MeasureCalc(Table_PI[[#This Row],[Hide:\nFormula Name]],Table_SummaryPI[[#This Row],[Quantity]],Table_PI[[#This Row],[List 1]],Table_PI[[#This Row],[List 2]],Table_PI[[#This Row],[List 3]],Table_PI[[#This Row],[Size]],Table_PI[[#This Row],[Input 1]],Table_PI[[#This Row],[Input 2]],Table_PI[[#This Row],[Input 3]],Table_PI[[#This Row],[Input 4]],'Customer Information'!$AR$12,103,ROW())<>0,MeasureCalc(Table_PI[[#This Row],[Hide:\nFormula Name]],Table_SummaryPI[[#This Row],[Quantity]],Table_PI[[#This Row],[List 1]],Table_PI[[#This Row],[List 2]],Table_PI[[#This Row],[List 3]],Table_PI[[#This Row],[Size]],Table_PI[[#This Row],[Input 1]],Table_PI[[#This Row],[Input 2]],Table_PI[[#This Row],[Input 3]],Table_PI[[#This Row],[Input 4]],'Customer Information'!$AR$12,103,ROW())<>\"No Rebate\"),MeasureCalc(Table_PI[[#This Row],[Hide:\nFormula Name]],Table_SummaryPI[[#This Row],[Quantity]],Table_PI[[#This Row],[List 1]],Table_PI[[#This Row],[List 2]],Table_PI[[#This Row],[List 3]],Table_PI[[#This Row],[Size]],Table_PI[[#This Row],[Input 1]],Table_PI[[#This Row],[Input 2]],Table_PI[[#This Row],[Input 3]],Table_PI[[#This Row],[Input 4]],'Customer Information'!$AR$12,103,ROW()),\"\"),\"\")","v":""},{"$f":"IF(Table_PI[[#This Row],[Input 4]]<>\"\",Table_PI[[#This Row],[Input 4]],\"\")","v":""},{"$f":"IF(Table_PI[[#This Row],[Quantity]]=\"\",\"\",Table_PI[[#This Row],[Quantity]])","v":""},{"$f":"IF(Table_PI[[#This Row],[Notes]]=\"\",\"\",Table_PI[[#This Row],[Notes]])","v":""},{"$f":"IF(OR(Table_PI[[#This Row],[Hide:\nBaseline kWh]]=\"\",Table_PI[[#This Row],[Hide:\nBaseline kWh]]=0),\"\",Table_PI[[#This Row],[Hide:\nBaseline kWh]])","v":""},{"$f":"IF(OR(Table_PI[[#This Row],[Hide:\nBaseline kW]]=\"\",Table_PI[[#This Row],[Hide:\nBaseline kW]]=0),\"\",Table_PI[[#This Row],[Hide:\nBaseline kW]])","v":""},{"$f":"IF(OR(Table_PI[[#This Row],[Hide:\nProposed kWh]]=\"\",Table_PI[[#This Row],[Hide:\nProposed kWh]]=0),\"\",Table_PI[[#This Row],[Hide:\nProposed kWh]])","v":""},{"$f":"IF(OR(Table_PI[[#This Row],[Hide:\nProposed kW]]=\"\",Table_PI[[#This Row],[Hide:\nProposed kW]]=0),\"\",Table_PI[[#This Row],[Hide:\nProposed kW]])","v":""},{"$f":"IF(OR(Table_PI[[#This Row],[Rebate]]=\"\",Table_PI[[#This Row],[Rebate]]=0),\"\",Table_PI[[#This Row],[Rebate]])","v":""},{"$f":"IF(OR(Table_PI[[#This Row],[Hide:\nIncremental Cost]]=\"\",Table_PI[[#This Row],[Hide:\nIncremental Cost]]=0),\"\",Table_PI[[#This Row],[Hide:\nIncremental Cost]])","v":""},{"$f":"IFERROR(IF(Table_SummaryPI[[#This Row],[kWhSavings]]=\"\",\"\",ROUND(Table_SummaryPI[[#This Row],[kWhSavings]]/$AG$401*'Customer Information'!$BC$17,2)),0)","v":""},{"$f":"IF(OR(Table_PI[[#This Row],[Annual kWh]]=\"\",Table_PI[[#This Row],[Annual kWh]]=0),\"\",Table_PI[[#This Row],[Annual kWh]])","v":""},{"$f":"IF(OR(Table_PI[[#This Row],[Peak kW]]=\"\",Table_PI[[#This Row],[Peak kW]]=0),\"\",Table_PI[[#This Row],[Peak kW]])","v":""},{"$f":"IFERROR(IF(Table_SummaryPI[[#This Row],[kWhSavings]]=\"\",\"\",$AU$9*Table_SummaryPI[[#This Row],[kWhSavings]]),0)","v":""},{"$f":"IFERROR(IF(Table_SummaryPI[[#This Row],[kWhSavings]]=\"\",\"\",$AU$14*Table_SummaryPI[[#This Row],[kWhSavings]]),0)","v":""},{"$f":"IFERROR(IF(Table_SummaryPI[[#This Row],[kWhSavings]]=\"\",\"\",$AU$18*Table_SummaryPI[[#This Row],[kWhSavings]]),0)","v":""},{"$f":"IFERROR(IF(Table_SummaryPI[[#This Row],[kWhSavings]]=\"\",\"\",$AU$22*Table_SummaryPI[[#This Row],[kWhSavings]]),0)","v":""},{"$f":"IFERROR(IF(MeasureCalc(Table_PI[[#This Row],[Hide:\nFormula Name]],Table_SummaryPI[[#This Row],[Quantity]],Table_PI[[#This Row],[List 1]],Table_PI[[#This Row],[List 2]],Table_PI[[#This Row],[List 3]],Table_PI[[#This Row],[Size]],Table_PI[[#This Row],[Input 1]],Table_PI[[#This Row],[Input 2]],Table_PI[[#This Row],[Input 3]],Table_PI[[#This Row],[Input 4]],'Customer Information'!$AR$12,200,ROW())<>\"No Rebate\",MeasureCalc(Table_PI[[#This Row],[Hide:\nFormula Name]],Table_SummaryPI[[#This Row],[Quantity]],Table_PI[[#This Row],[List 1]],Table_PI[[#This Row],[List 2]],Table_PI[[#This Row],[List 3]],Table_PI[[#This Row],[Size]],Table_PI[[#This Row],[Input 1]],Table_PI[[#This Row],[Input 2]],Table_PI[[#This Row],[Input 3]],Table_PI[[#This Row],[Input 4]],'Customer Information'!$AR$12,200,ROW()),\"\"),\"\")","v":""},{"$f":"IFERROR(IF(MeasureCalc(Table_PI[[#This Row],[Hide:\nFormula Name]],Table_SummaryPI[[#This Row],[Quantity]],Table_PI[[#This Row],[List 1]],Table_PI[[#This Row],[List 2]],Table_PI[[#This Row],[List 3]],Table_PI[[#This Row],[Size]],Table_PI[[#This Row],[Input 1]],Table_PI[[#This Row],[Input 2]],Table_PI[[#This Row],[Input 3]],Table_PI[[#This Row],[Input 4]],'Customer Information'!$AR$12,201,ROW())<>\"No Rebate\",MeasureCalc(Table_PI[[#This Row],[Hide:\nFormula Name]],Table_SummaryPI[[#This Row],[Quantity]],Table_PI[[#This Row],[List 1]],Table_PI[[#This Row],[List 2]],Table_PI[[#This Row],[List 3]],Table_PI[[#This Row],[Size]],Table_PI[[#This Row],[Input 1]],Table_PI[[#This Row],[Input 2]],Table_PI[[#This Row],[Input 3]],Table_PI[[#This Row],[Input 4]],'Customer Information'!$AR$12,201,ROW()),\"\"),\"\")","v":""}]
[{"$f":"Table_PI[[#This Row],[Line No.]]","v":""},{"$f":"IF(Table_SummaryPI[[#This Row],[MeassureCategory]]<>\"\",CONCATENATE(Table_SummaryPI[[#This Row],[MeassureCategory]],  \" - \", Table_SummaryPI[[#This Row],[ProposedMeasureCategory]],  \" - \", TEXT(Table_SummaryPI[[#This Row],[Size]],\"#,##0.00\"),\" \",Table_SummaryPI[[#This Row],[SizeUnit]]),\"\")","v":""},{"$f":"SUBSTITUTE(Table_PI[[#This Row],[Measure]],\"     \",\"\",1)","v":""},{"$f":"IF(Table_PI[[#This Row],[List 1]]<>\"\",Table_PI[[#This Row],[List 1]],\"\")","v":""},{"$f":"IF(Table_PI[[#This Row],[List 2]]<>\"\",Table_PI[[#This Row],[List 2]],\"\")","v":""},{"$f":"IF(Table_PI[[#This Row],[List 3]]<>\"\",Table_PI[[#This Row],[List 3]],\"\")","v":""},{"$f":"IF(Table_PI[[#This Row],[Manufacturer]]=\"\",\"\",Table_PI[[#This Row],[Manufacturer]])","v":""},{"$f":"IF(Table_PI[[#This Row],[Model Number]]=\"\",\"\",Table_PI[[#This Row],[Model Number]])","v":""},{"$f":"IF(Table_PI[[#This Row],[Serial Number(s)]]=\"\",\"\",Table_PI[[#This Row],[Serial Number(s)]])","v":""},null,{"$f":"IF(Table_PI[[#This Row],[Size]]=\"\",\"\",Table_PI[[#This Row],[Size]])","v":""},null,{"$f":"IFERROR(IF(AND(MeasureCalc(Table_PI[[#This Row],[Hide:\nFormula Name]],Table_SummaryPI[[#This Row],[Quantity]],Table_PI[[#This Row],[List 1]],Table_PI[[#This Row],[List 2]],Table_PI[[#This Row],[List 3]],Table_PI[[#This Row],[Size]],Table_PI[[#This Row],[Input 1]],Table_PI[[#This Row],[Input 2]],Table_PI[[#This Row],[Input 3]],Table_PI[[#This Row],[Input 4]],'Customer Information'!$AR$12,100,ROW())<>0,MeasureCalc(Table_PI[[#This Row],[Hide:\nFormula Name]],Table_SummaryPI[[#This Row],[Quantity]],Table_PI[[#This Row],[List 1]],Table_PI[[#This Row],[List 2]],Table_PI[[#This Row],[List 3]],Table_PI[[#This Row],[Size]],Table_PI[[#This Row],[Input 1]],Table_PI[[#This Row],[Input 2]],Table_PI[[#This Row],[Input 3]],Table_PI[[#This Row],[Input 4]],'Customer Information'!$AR$12,100,ROW())<>\"No Rebate\"),MeasureCalc(Table_PI[[#This Row],[Hide:\nFormula Name]],Table_SummaryPI[[#This Row],[Quantity]],Table_PI[[#This Row],[List 1]],Table_PI[[#This Row],[List 2]],Table_PI[[#This Row],[List 3]],Table_PI[[#This Row],[Size]],Table_PI[[#This Row],[Input 1]],Table_PI[[#This Row],[Input 2]],Table_PI[[#This Row],[Input 3]],Table_PI[[#This Row],[Input 4]],'Customer Information'!$AR$12,100,ROW()),\"\"),\"\")","v":""},{"$f":"IF(Table_PI[[#This Row],[Input 1]]<>\"\",Table_PI[[#This Row],[Input 1]],\"\")","v":""},null,{"$f":"IFERROR(IF(AND(MeasureCalc(Table_PI[[#This Row],[Hide:\nFormula Name]],Table_SummaryPI[[#This Row],[Quantity]],Table_PI[[#This Row],[List 1]],Table_PI[[#This Row],[List 2]],Table_PI[[#This Row],[List 3]],Table_PI[[#This Row],[Size]],Table_PI[[#This Row],[Input 1]],Table_PI[[#This Row],[Input 2]],Table_PI[[#This Row],[Input 3]],Table_PI[[#This Row],[Input 4]],'Customer Information'!$AR$12,101,ROW())<>0,MeasureCalc(Table_PI[[#This Row],[Hide:\nFormula Name]],Table_SummaryPI[[#This Row],[Quantity]],Table_PI[[#This Row],[List 1]],Table_PI[[#This Row],[List 2]],Table_PI[[#This Row],[List 3]],Table_PI[[#This Row],[Size]],Table_PI[[#This Row],[Input 1]],Table_PI[[#This Row],[Input 2]],Table_PI[[#This Row],[Input 3]],Table_PI[[#This Row],[Input 4]],'Customer Information'!$AR$12,101,ROW())<>\"No Rebate\"),MeasureCalc(Table_PI[[#This Row],[Hide:\nFormula Name]],Table_SummaryPI[[#This Row],[Quantity]],Table_PI[[#This Row],[List 1]],Table_PI[[#This Row],[List 2]],Table_PI[[#This Row],[List 3]],Table_PI[[#This Row],[Size]],Table_PI[[#This Row],[Input 1]],Table_PI[[#This Row],[Input 2]],Table_PI[[#This Row],[Input 3]],Table_PI[[#This Row],[Input 4]],'Customer Information'!$AR$12,101,ROW()),\"\"),\"\")","v":""},{"$f":"IF(Table_PI[[#This Row],[Input 2]]<>\"\",Table_PI[[#This Row],[Input 2]],\"\")","v":""},null,{"$f":"IFERROR(IF(AND(MeasureCalc(Table_PI[[#This Row],[Hide:\nFormula Name]],Table_SummaryPI[[#This Row],[Quantity]],Table_PI[[#This Row],[List 1]],Table_PI[[#This Row],[List 2]],Table_PI[[#This Row],[List 3]],Table_PI[[#This Row],[Size]],Table_PI[[#This Row],[Input 1]],Table_PI[[#This Row],[Input 2]],Table_PI[[#This Row],[Input 3]],Table_PI[[#This Row],[Input 4]],'Customer Information'!$AR$12,102,ROW())<>0,MeasureCalc(Table_PI[[#This Row],[Hide:\nFormula Name]],Table_SummaryPI[[#This Row],[Quantity]],Table_PI[[#This Row],[List 1]],Table_PI[[#This Row],[List 2]],Table_PI[[#This Row],[List 3]],Table_PI[[#This Row],[Size]],Table_PI[[#This Row],[Input 1]],Table_PI[[#This Row],[Input 2]],Table_PI[[#This Row],[Input 3]],Table_PI[[#This Row],[Input 4]],'Customer Information'!$AR$12,102,ROW())<>\"No Rebate\"),MeasureCalc(Table_PI[[#This Row],[Hide:\nFormula Name]],Table_SummaryPI[[#This Row],[Quantity]],Table_PI[[#This Row],[List 1]],Table_PI[[#This Row],[List 2]],Table_PI[[#This Row],[List 3]],Table_PI[[#This Row],[Size]],Table_PI[[#This Row],[Input 1]],Table_PI[[#This Row],[Input 2]],Table_PI[[#This Row],[Input 3]],Table_PI[[#This Row],[Input 4]],'Customer Information'!$AR$12,102,ROW()),\"\"),\"\")","v":""},{"$f":"IF(Table_PI[[#This Row],[Input 3]]<>\"\",Table_PI[[#This Row],[Input 3]],\"\")","v":""},null,{"$f":"IFERROR(IF(AND(MeasureCalc(Table_PI[[#This Row],[Hide:\nFormula Name]],Table_SummaryPI[[#This Row],[Quantity]],Table_PI[[#This Row],[List 1]],Table_PI[[#This Row],[List 2]],Table_PI[[#This Row],[List 3]],Table_PI[[#This Row],[Size]],Table_PI[[#This Row],[Input 1]],Table_PI[[#This Row],[Input 2]],Table_PI[[#This Row],[Input 3]],Table_PI[[#This Row],[Input 4]],'Customer Information'!$AR$12,103,ROW())<>0,MeasureCalc(Table_PI[[#This Row],[Hide:\nFormula Name]],Table_SummaryPI[[#This Row],[Quantity]],Table_PI[[#This Row],[List 1]],Table_PI[[#This Row],[List 2]],Table_PI[[#This Row],[List 3]],Table_PI[[#This Row],[Size]],Table_PI[[#This Row],[Input 1]],Table_PI[[#This Row],[Input 2]],Table_PI[[#This Row],[Input 3]],Table_PI[[#This Row],[Input 4]],'Customer Information'!$AR$12,103,ROW())<>\"No Rebate\"),MeasureCalc(Table_PI[[#This Row],[Hide:\nFormula Name]],Table_SummaryPI[[#This Row],[Quantity]],Table_PI[[#This Row],[List 1]],Table_PI[[#This Row],[List 2]],Table_PI[[#This Row],[List 3]],Table_PI[[#This Row],[Size]],Table_PI[[#This Row],[Input 1]],Table_PI[[#This Row],[Input 2]],Table_PI[[#This Row],[Input 3]],Table_PI[[#This Row],[Input 4]],'Customer Information'!$AR$12,103,ROW()),\"\"),\"\")","v":""},{"$f":"IF(Table_PI[[#This Row],[Input 4]]<>\"\",Table_PI[[#This Row],[Input 4]],\"\")","v":""},{"$f":"IF(Table_PI[[#This Row],[Quantity]]=\"\",\"\",Table_PI[[#This Row],[Quantity]])","v":""},{"$f":"IF(Table_PI[[#This Row],[Notes]]=\"\",\"\",Table_PI[[#This Row],[Notes]])","v":""},{"$f":"IF(OR(Table_PI[[#This Row],[Hide:\nBaseline kWh]]=\"\",Table_PI[[#This Row],[Hide:\nBaseline kWh]]=0),\"\",Table_PI[[#This Row],[Hide:\nBaseline kWh]])","v":""},{"$f":"IF(OR(Table_PI[[#This Row],[Hide:\nBaseline kW]]=\"\",Table_PI[[#This Row],[Hide:\nBaseline kW]]=0),\"\",Table_PI[[#This Row],[Hide:\nBaseline kW]])","v":""},{"$f":"IF(OR(Table_PI[[#This Row],[Hide:\nProposed kWh]]=\"\",Table_PI[[#This Row],[Hide:\nProposed kWh]]=0),\"\",Table_PI[[#This Row],[Hide:\nProposed kWh]])","v":""},{"$f":"IF(OR(Table_PI[[#This Row],[Hide:\nProposed kW]]=\"\",Table_PI[[#This Row],[Hide:\nProposed kW]]=0),\"\",Table_PI[[#This Row],[Hide:\nProposed kW]])","v":""},{"$f":"IF(OR(Table_PI[[#This Row],[Rebate]]=\"\",Table_PI[[#This Row],[Rebate]]=0),\"\",Table_PI[[#This Row],[Rebate]])","v":""},{"$f":"IF(OR(Table_PI[[#This Row],[Hide:\nIncremental Cost]]=\"\",Table_PI[[#This Row],[Hide:\nIncremental Cost]]=0),\"\",Table_PI[[#This Row],[Hide:\nIncremental Cost]])","v":""},{"$f":"IFERROR(IF(Table_SummaryPI[[#This Row],[kWhSavings]]=\"\",\"\",ROUND(Table_SummaryPI[[#This Row],[kWhSavings]]/$AG$401*'Customer Information'!$BC$17,2)),0)","v":""},{"$f":"IF(OR(Table_PI[[#This Row],[Annual kWh]]=\"\",Table_PI[[#This Row],[Annual kWh]]=0),\"\",Table_PI[[#This Row],[Annual kWh]])","v":""},{"$f":"IF(OR(Table_PI[[#This Row],[Peak kW]]=\"\",Table_PI[[#This Row],[Peak kW]]=0),\"\",Table_PI[[#This Row],[Peak kW]])","v":""},{"$f":"IFERROR(IF(Table_SummaryPI[[#This Row],[kWhSavings]]=\"\",\"\",$AU$9*Table_SummaryPI[[#This Row],[kWhSavings]]),0)","v":""},{"$f":"IFERROR(IF(Table_SummaryPI[[#This Row],[kWhSavings]]=\"\",\"\",$AU$14*Table_SummaryPI[[#This Row],[kWhSavings]]),0)","v":""},{"$f":"IFERROR(IF(Table_SummaryPI[[#This Row],[kWhSavings]]=\"\",\"\",$AU$18*Table_SummaryPI[[#This Row],[kWhSavings]]),0)","v":""},{"$f":"IFERROR(IF(Table_SummaryPI[[#This Row],[kWhSavings]]=\"\",\"\",$AU$22*Table_SummaryPI[[#This Row],[kWhSavings]]),0)","v":""},{"$f":"IFERROR(IF(MeasureCalc(Table_PI[[#This Row],[Hide:\nFormula Name]],Table_SummaryPI[[#This Row],[Quantity]],Table_PI[[#This Row],[List 1]],Table_PI[[#This Row],[List 2]],Table_PI[[#This Row],[List 3]],Table_PI[[#This Row],[Size]],Table_PI[[#This Row],[Input 1]],Table_PI[[#This Row],[Input 2]],Table_PI[[#This Row],[Input 3]],Table_PI[[#This Row],[Input 4]],'Customer Information'!$AR$12,200,ROW())<>\"No Rebate\",MeasureCalc(Table_PI[[#This Row],[Hide:\nFormula Name]],Table_SummaryPI[[#This Row],[Quantity]],Table_PI[[#This Row],[List 1]],Table_PI[[#This Row],[List 2]],Table_PI[[#This Row],[List 3]],Table_PI[[#This Row],[Size]],Table_PI[[#This Row],[Input 1]],Table_PI[[#This Row],[Input 2]],Table_PI[[#This Row],[Input 3]],Table_PI[[#This Row],[Input 4]],'Customer Information'!$AR$12,200,ROW()),\"\"),\"\")","v":""},{"$f":"IFERROR(IF(MeasureCalc(Table_PI[[#This Row],[Hide:\nFormula Name]],Table_SummaryPI[[#This Row],[Quantity]],Table_PI[[#This Row],[List 1]],Table_PI[[#This Row],[List 2]],Table_PI[[#This Row],[List 3]],Table_PI[[#This Row],[Size]],Table_PI[[#This Row],[Input 1]],Table_PI[[#This Row],[Input 2]],Table_PI[[#This Row],[Input 3]],Table_PI[[#This Row],[Input 4]],'Customer Information'!$AR$12,201,ROW())<>\"No Rebate\",MeasureCalc(Table_PI[[#This Row],[Hide:\nFormula Name]],Table_SummaryPI[[#This Row],[Quantity]],Table_PI[[#This Row],[List 1]],Table_PI[[#This Row],[List 2]],Table_PI[[#This Row],[List 3]],Table_PI[[#This Row],[Size]],Table_PI[[#This Row],[Input 1]],Table_PI[[#This Row],[Input 2]],Table_PI[[#This Row],[Input 3]],Table_PI[[#This Row],[Input 4]],'Customer Information'!$AR$12,201,ROW()),\"\"),\"\")","v":""}]
[{"$f":"Table_PI[[#This Row],[Line No.]]","v":""},{"$f":"IF(Table_SummaryPI[[#This Row],[MeassureCategory]]<>\"\",CONCATENATE(Table_SummaryPI[[#This Row],[MeassureCategory]],  \" - \", Table_SummaryPI[[#This Row],[ProposedMeasureCategory]],  \" - \", TEXT(Table_SummaryPI[[#This Row],[Size]],\"#,##0.00\"),\" \",Table_SummaryPI[[#This Row],[SizeUnit]]),\"\")","v":""},{"$f":"SUBSTITUTE(Table_PI[[#This Row],[Measure]],\"     \",\"\",1)","v":""},{"$f":"IF(Table_PI[[#This Row],[List 1]]<>\"\",Table_PI[[#This Row],[List 1]],\"\")","v":""},{"$f":"IF(Table_PI[[#This Row],[List 2]]<>\"\",Table_PI[[#This Row],[List 2]],\"\")","v":""},{"$f":"IF(Table_PI[[#This Row],[List 3]]<>\"\",Table_PI[[#This Row],[List 3]],\"\")","v":""},{"$f":"IF(Table_PI[[#This Row],[Manufacturer]]=\"\",\"\",Table_PI[[#This Row],[Manufacturer]])","v":""},{"$f":"IF(Table_PI[[#This Row],[Model Number]]=\"\",\"\",Table_PI[[#This Row],[Model Number]])","v":""},{"$f":"IF(Table_PI[[#This Row],[Serial Number(s)]]=\"\",\"\",Table_PI[[#This Row],[Serial Number(s)]])","v":""},null,{"$f":"IF(Table_PI[[#This Row],[Size]]=\"\",\"\",Table_PI[[#This Row],[Size]])","v":""},null,{"$f":"IFERROR(IF(AND(MeasureCalc(Table_PI[[#This Row],[Hide:\nFormula Name]],Table_SummaryPI[[#This Row],[Quantity]],Table_PI[[#This Row],[List 1]],Table_PI[[#This Row],[List 2]],Table_PI[[#This Row],[List 3]],Table_PI[[#This Row],[Size]],Table_PI[[#This Row],[Input 1]],Table_PI[[#This Row],[Input 2]],Table_PI[[#This Row],[Input 3]],Table_PI[[#This Row],[Input 4]],'Customer Information'!$AR$12,100,ROW())<>0,MeasureCalc(Table_PI[[#This Row],[Hide:\nFormula Name]],Table_SummaryPI[[#This Row],[Quantity]],Table_PI[[#This Row],[List 1]],Table_PI[[#This Row],[List 2]],Table_PI[[#This Row],[List 3]],Table_PI[[#This Row],[Size]],Table_PI[[#This Row],[Input 1]],Table_PI[[#This Row],[Input 2]],Table_PI[[#This Row],[Input 3]],Table_PI[[#This Row],[Input 4]],'Customer Information'!$AR$12,100,ROW())<>\"No Rebate\"),MeasureCalc(Table_PI[[#This Row],[Hide:\nFormula Name]],Table_SummaryPI[[#This Row],[Quantity]],Table_PI[[#This Row],[List 1]],Table_PI[[#This Row],[List 2]],Table_PI[[#This Row],[List 3]],Table_PI[[#This Row],[Size]],Table_PI[[#This Row],[Input 1]],Table_PI[[#This Row],[Input 2]],Table_PI[[#This Row],[Input 3]],Table_PI[[#This Row],[Input 4]],'Customer Information'!$AR$12,100,ROW()),\"\"),\"\")","v":""},{"$f":"IF(Table_PI[[#This Row],[Input 1]]<>\"\",Table_PI[[#This Row],[Input 1]],\"\")","v":""},null,{"$f":"IFERROR(IF(AND(MeasureCalc(Table_PI[[#This Row],[Hide:\nFormula Name]],Table_SummaryPI[[#This Row],[Quantity]],Table_PI[[#This Row],[List 1]],Table_PI[[#This Row],[List 2]],Table_PI[[#This Row],[List 3]],Table_PI[[#This Row],[Size]],Table_PI[[#This Row],[Input 1]],Table_PI[[#This Row],[Input 2]],Table_PI[[#This Row],[Input 3]],Table_PI[[#This Row],[Input 4]],'Customer Information'!$AR$12,101,ROW())<>0,MeasureCalc(Table_PI[[#This Row],[Hide:\nFormula Name]],Table_SummaryPI[[#This Row],[Quantity]],Table_PI[[#This Row],[List 1]],Table_PI[[#This Row],[List 2]],Table_PI[[#This Row],[List 3]],Table_PI[[#This Row],[Size]],Table_PI[[#This Row],[Input 1]],Table_PI[[#This Row],[Input 2]],Table_PI[[#This Row],[Input 3]],Table_PI[[#This Row],[Input 4]],'Customer Information'!$AR$12,101,ROW())<>\"No Rebate\"),MeasureCalc(Table_PI[[#This Row],[Hide:\nFormula Name]],Table_SummaryPI[[#This Row],[Quantity]],Table_PI[[#This Row],[List 1]],Table_PI[[#This Row],[List 2]],Table_PI[[#This Row],[List 3]],Table_PI[[#This Row],[Size]],Table_PI[[#This Row],[Input 1]],Table_PI[[#This Row],[Input 2]],Table_PI[[#This Row],[Input 3]],Table_PI[[#This Row],[Input 4]],'Customer Information'!$AR$12,101,ROW()),\"\"),\"\")","v":""},{"$f":"IF(Table_PI[[#This Row],[Input 2]]<>\"\",Table_PI[[#This Row],[Input 2]],\"\")","v":""},null,{"$f":"IFERROR(IF(AND(MeasureCalc(Table_PI[[#This Row],[Hide:\nFormula Name]],Table_SummaryPI[[#This Row],[Quantity]],Table_PI[[#This Row],[List 1]],Table_PI[[#This Row],[List 2]],Table_PI[[#This Row],[List 3]],Table_PI[[#This Row],[Size]],Table_PI[[#This Row],[Input 1]],Table_PI[[#This Row],[Input 2]],Table_PI[[#This Row],[Input 3]],Table_PI[[#This Row],[Input 4]],'Customer Information'!$AR$12,102,ROW())<>0,MeasureCalc(Table_PI[[#This Row],[Hide:\nFormula Name]],Table_SummaryPI[[#This Row],[Quantity]],Table_PI[[#This Row],[List 1]],Table_PI[[#This Row],[List 2]],Table_PI[[#This Row],[List 3]],Table_PI[[#This Row],[Size]],Table_PI[[#This Row],[Input 1]],Table_PI[[#This Row],[Input 2]],Table_PI[[#This Row],[Input 3]],Table_PI[[#This Row],[Input 4]],'Customer Information'!$AR$12,102,ROW())<>\"No Rebate\"),MeasureCalc(Table_PI[[#This Row],[Hide:\nFormula Name]],Table_SummaryPI[[#This Row],[Quantity]],Table_PI[[#This Row],[List 1]],Table_PI[[#This Row],[List 2]],Table_PI[[#This Row],[List 3]],Table_PI[[#This Row],[Size]],Table_PI[[#This Row],[Input 1]],Table_PI[[#This Row],[Input 2]],Table_PI[[#This Row],[Input 3]],Table_PI[[#This Row],[Input 4]],'Customer Information'!$AR$12,102,ROW()),\"\"),\"\")","v":""},{"$f":"IF(Table_PI[[#This Row],[Input 3]]<>\"\",Table_PI[[#This Row],[Input 3]],\"\")","v":""},null,{"$f":"IFERROR(IF(AND(MeasureCalc(Table_PI[[#This Row],[Hide:\nFormula Name]],Table_SummaryPI[[#This Row],[Quantity]],Table_PI[[#This Row],[List 1]],Table_PI[[#This Row],[List 2]],Table_PI[[#This Row],[List 3]],Table_PI[[#This Row],[Size]],Table_PI[[#This Row],[Input 1]],Table_PI[[#This Row],[Input 2]],Table_PI[[#This Row],[Input 3]],Table_PI[[#This Row],[Input 4]],'Customer Information'!$AR$12,103,ROW())<>0,MeasureCalc(Table_PI[[#This Row],[Hide:\nFormula Name]],Table_SummaryPI[[#This Row],[Quantity]],Table_PI[[#This Row],[List 1]],Table_PI[[#This Row],[List 2]],Table_PI[[#This Row],[List 3]],Table_PI[[#This Row],[Size]],Table_PI[[#This Row],[Input 1]],Table_PI[[#This Row],[Input 2]],Table_PI[[#This Row],[Input 3]],Table_PI[[#This Row],[Input 4]],'Customer Information'!$AR$12,103,ROW())<>\"No Rebate\"),MeasureCalc(Table_PI[[#This Row],[Hide:\nFormula Name]],Table_SummaryPI[[#This Row],[Quantity]],Table_PI[[#This Row],[List 1]],Table_PI[[#This Row],[List 2]],Table_PI[[#This Row],[List 3]],Table_PI[[#This Row],[Size]],Table_PI[[#This Row],[Input 1]],Table_PI[[#This Row],[Input 2]],Table_PI[[#This Row],[Input 3]],Table_PI[[#This Row],[Input 4]],'Customer Information'!$AR$12,103,ROW()),\"\"),\"\")","v":""},{"$f":"IF(Table_PI[[#This Row],[Input 4]]<>\"\",Table_PI[[#This Row],[Input 4]],\"\")","v":""},{"$f":"IF(Table_PI[[#This Row],[Quantity]]=\"\",\"\",Table_PI[[#This Row],[Quantity]])","v":""},{"$f":"IF(Table_PI[[#This Row],[Notes]]=\"\",\"\",Table_PI[[#This Row],[Notes]])","v":""},{"$f":"IF(OR(Table_PI[[#This Row],[Hide:\nBaseline kWh]]=\"\",Table_PI[[#This Row],[Hide:\nBaseline kWh]]=0),\"\",Table_PI[[#This Row],[Hide:\nBaseline kWh]])","v":""},{"$f":"IF(OR(Table_PI[[#This Row],[Hide:\nBaseline kW]]=\"\",Table_PI[[#This Row],[Hide:\nBaseline kW]]=0),\"\",Table_PI[[#This Row],[Hide:\nBaseline kW]])","v":""},{"$f":"IF(OR(Table_PI[[#This Row],[Hide:\nProposed kWh]]=\"\",Table_PI[[#This Row],[Hide:\nProposed kWh]]=0),\"\",Table_PI[[#This Row],[Hide:\nProposed kWh]])","v":""},{"$f":"IF(OR(Table_PI[[#This Row],[Hide:\nProposed kW]]=\"\",Table_PI[[#This Row],[Hide:\nProposed kW]]=0),\"\",Table_PI[[#This Row],[Hide:\nProposed kW]])","v":""},{"$f":"IF(OR(Table_PI[[#This Row],[Rebate]]=\"\",Table_PI[[#This Row],[Rebate]]=0),\"\",Table_PI[[#This Row],[Rebate]])","v":""},{"$f":"IF(OR(Table_PI[[#This Row],[Hide:\nIncremental Cost]]=\"\",Table_PI[[#This Row],[Hide:\nIncremental Cost]]=0),\"\",Table_PI[[#This Row],[Hide:\nIncremental Cost]])","v":""},{"$f":"IFERROR(IF(Table_SummaryPI[[#This Row],[kWhSavings]]=\"\",\"\",ROUND(Table_SummaryPI[[#This Row],[kWhSavings]]/$AG$401*'Customer Information'!$BC$17,2)),0)","v":""},{"$f":"IF(OR(Table_PI[[#This Row],[Annual kWh]]=\"\",Table_PI[[#This Row],[Annual kWh]]=0),\"\",Table_PI[[#This Row],[Annual kWh]])","v":""},{"$f":"IF(OR(Table_PI[[#This Row],[Peak kW]]=\"\",Table_PI[[#This Row],[Peak kW]]=0),\"\",Table_PI[[#This Row],[Peak kW]])","v":""},{"$f":"IFERROR(IF(Table_SummaryPI[[#This Row],[kWhSavings]]=\"\",\"\",$AU$9*Table_SummaryPI[[#This Row],[kWhSavings]]),0)","v":""},{"$f":"IFERROR(IF(Table_SummaryPI[[#This Row],[kWhSavings]]=\"\",\"\",$AU$14*Table_SummaryPI[[#This Row],[kWhSavings]]),0)","v":""},{"$f":"IFERROR(IF(Table_SummaryPI[[#This Row],[kWhSavings]]=\"\",\"\",$AU$18*Table_SummaryPI[[#This Row],[kWhSavings]]),0)","v":""},{"$f":"IFERROR(IF(Table_SummaryPI[[#This Row],[kWhSavings]]=\"\",\"\",$AU$22*Table_SummaryPI[[#This Row],[kWhSavings]]),0)","v":""},{"$f":"IFERROR(IF(MeasureCalc(Table_PI[[#This Row],[Hide:\nFormula Name]],Table_SummaryPI[[#This Row],[Quantity]],Table_PI[[#This Row],[List 1]],Table_PI[[#This Row],[List 2]],Table_PI[[#This Row],[List 3]],Table_PI[[#This Row],[Size]],Table_PI[[#This Row],[Input 1]],Table_PI[[#This Row],[Input 2]],Table_PI[[#This Row],[Input 3]],Table_PI[[#This Row],[Input 4]],'Customer Information'!$AR$12,200,ROW())<>\"No Rebate\",MeasureCalc(Table_PI[[#This Row],[Hide:\nFormula Name]],Table_SummaryPI[[#This Row],[Quantity]],Table_PI[[#This Row],[List 1]],Table_PI[[#This Row],[List 2]],Table_PI[[#This Row],[List 3]],Table_PI[[#This Row],[Size]],Table_PI[[#This Row],[Input 1]],Table_PI[[#This Row],[Input 2]],Table_PI[[#This Row],[Input 3]],Table_PI[[#This Row],[Input 4]],'Customer Information'!$AR$12,200,ROW()),\"\"),\"\")","v":""},{"$f":"IFERROR(IF(MeasureCalc(Table_PI[[#This Row],[Hide:\nFormula Name]],Table_SummaryPI[[#This Row],[Quantity]],Table_PI[[#This Row],[List 1]],Table_PI[[#This Row],[List 2]],Table_PI[[#This Row],[List 3]],Table_PI[[#This Row],[Size]],Table_PI[[#This Row],[Input 1]],Table_PI[[#This Row],[Input 2]],Table_PI[[#This Row],[Input 3]],Table_PI[[#This Row],[Input 4]],'Customer Information'!$AR$12,201,ROW())<>\"No Rebate\",MeasureCalc(Table_PI[[#This Row],[Hide:\nFormula Name]],Table_SummaryPI[[#This Row],[Quantity]],Table_PI[[#This Row],[List 1]],Table_PI[[#This Row],[List 2]],Table_PI[[#This Row],[List 3]],Table_PI[[#This Row],[Size]],Table_PI[[#This Row],[Input 1]],Table_PI[[#This Row],[Input 2]],Table_PI[[#This Row],[Input 3]],Table_PI[[#This Row],[Input 4]],'Customer Information'!$AR$12,201,ROW()),\"\"),\"\")","v":""}]
[{"$f":"Table_PI[[#This Row],[Line No.]]","v":""},{"$f":"IF(Table_SummaryPI[[#This Row],[MeassureCategory]]<>\"\",CONCATENATE(Table_SummaryPI[[#This Row],[MeassureCategory]],  \" - \", Table_SummaryPI[[#This Row],[ProposedMeasureCategory]],  \" - \", TEXT(Table_SummaryPI[[#This Row],[Size]],\"#,##0.00\"),\" \",Table_SummaryPI[[#This Row],[SizeUnit]]),\"\")","v":""},{"$f":"SUBSTITUTE(Table_PI[[#This Row],[Measure]],\"     \",\"\",1)","v":""},{"$f":"IF(Table_PI[[#This Row],[List 1]]<>\"\",Table_PI[[#This Row],[List 1]],\"\")","v":""},{"$f":"IF(Table_PI[[#This Row],[List 2]]<>\"\",Table_PI[[#This Row],[List 2]],\"\")","v":""},{"$f":"IF(Table_PI[[#This Row],[List 3]]<>\"\",Table_PI[[#This Row],[List 3]],\"\")","v":""},{"$f":"IF(Table_PI[[#This Row],[Manufacturer]]=\"\",\"\",Table_PI[[#This Row],[Manufacturer]])","v":""},{"$f":"IF(Table_PI[[#This Row],[Model Number]]=\"\",\"\",Table_PI[[#This Row],[Model Number]])","v":""},{"$f":"IF(Table_PI[[#This Row],[Serial Number(s)]]=\"\",\"\",Table_PI[[#This Row],[Serial Number(s)]])","v":""},null,{"$f":"IF(Table_PI[[#This Row],[Size]]=\"\",\"\",Table_PI[[#This Row],[Size]])","v":""},null,{"$f":"IFERROR(IF(AND(MeasureCalc(Table_PI[[#This Row],[Hide:\nFormula Name]],Table_SummaryPI[[#This Row],[Quantity]],Table_PI[[#This Row],[List 1]],Table_PI[[#This Row],[List 2]],Table_PI[[#This Row],[List 3]],Table_PI[[#This Row],[Size]],Table_PI[[#This Row],[Input 1]],Table_PI[[#This Row],[Input 2]],Table_PI[[#This Row],[Input 3]],Table_PI[[#This Row],[Input 4]],'Customer Information'!$AR$12,100,ROW())<>0,MeasureCalc(Table_PI[[#This Row],[Hide:\nFormula Name]],Table_SummaryPI[[#This Row],[Quantity]],Table_PI[[#This Row],[List 1]],Table_PI[[#This Row],[List 2]],Table_PI[[#This Row],[List 3]],Table_PI[[#This Row],[Size]],Table_PI[[#This Row],[Input 1]],Table_PI[[#This Row],[Input 2]],Table_PI[[#This Row],[Input 3]],Table_PI[[#This Row],[Input 4]],'Customer Information'!$AR$12,100,ROW())<>\"No Rebate\"),MeasureCalc(Table_PI[[#This Row],[Hide:\nFormula Name]],Table_SummaryPI[[#This Row],[Quantity]],Table_PI[[#This Row],[List 1]],Table_PI[[#This Row],[List 2]],Table_PI[[#This Row],[List 3]],Table_PI[[#This Row],[Size]],Table_PI[[#This Row],[Input 1]],Table_PI[[#This Row],[Input 2]],Table_PI[[#This Row],[Input 3]],Table_PI[[#This Row],[Input 4]],'Customer Information'!$AR$12,100,ROW()),\"\"),\"\")","v":""},{"$f":"IF(Table_PI[[#This Row],[Input 1]]<>\"\",Table_PI[[#This Row],[Input 1]],\"\")","v":""},null,{"$f":"IFERROR(IF(AND(MeasureCalc(Table_PI[[#This Row],[Hide:\nFormula Name]],Table_SummaryPI[[#This Row],[Quantity]],Table_PI[[#This Row],[List 1]],Table_PI[[#This Row],[List 2]],Table_PI[[#This Row],[List 3]],Table_PI[[#This Row],[Size]],Table_PI[[#This Row],[Input 1]],Table_PI[[#This Row],[Input 2]],Table_PI[[#This Row],[Input 3]],Table_PI[[#This Row],[Input 4]],'Customer Information'!$AR$12,101,ROW())<>0,MeasureCalc(Table_PI[[#This Row],[Hide:\nFormula Name]],Table_SummaryPI[[#This Row],[Quantity]],Table_PI[[#This Row],[List 1]],Table_PI[[#This Row],[List 2]],Table_PI[[#This Row],[List 3]],Table_PI[[#This Row],[Size]],Table_PI[[#This Row],[Input 1]],Table_PI[[#This Row],[Input 2]],Table_PI[[#This Row],[Input 3]],Table_PI[[#This Row],[Input 4]],'Customer Information'!$AR$12,101,ROW())<>\"No Rebate\"),MeasureCalc(Table_PI[[#This Row],[Hide:\nFormula Name]],Table_SummaryPI[[#This Row],[Quantity]],Table_PI[[#This Row],[List 1]],Table_PI[[#This Row],[List 2]],Table_PI[[#This Row],[List 3]],Table_PI[[#This Row],[Size]],Table_PI[[#This Row],[Input 1]],Table_PI[[#This Row],[Input 2]],Table_PI[[#This Row],[Input 3]],Table_PI[[#This Row],[Input 4]],'Customer Information'!$AR$12,101,ROW()),\"\"),\"\")","v":""},{"$f":"IF(Table_PI[[#This Row],[Input 2]]<>\"\",Table_PI[[#This Row],[Input 2]],\"\")","v":""},null,{"$f":"IFERROR(IF(AND(MeasureCalc(Table_PI[[#This Row],[Hide:\nFormula Name]],Table_SummaryPI[[#This Row],[Quantity]],Table_PI[[#This Row],[List 1]],Table_PI[[#This Row],[List 2]],Table_PI[[#This Row],[List 3]],Table_PI[[#This Row],[Size]],Table_PI[[#This Row],[Input 1]],Table_PI[[#This Row],[Input 2]],Table_PI[[#This Row],[Input 3]],Table_PI[[#This Row],[Input 4]],'Customer Information'!$AR$12,102,ROW())<>0,MeasureCalc(Table_PI[[#This Row],[Hide:\nFormula Name]],Table_SummaryPI[[#This Row],[Quantity]],Table_PI[[#This Row],[List 1]],Table_PI[[#This Row],[List 2]],Table_PI[[#This Row],[List 3]],Table_PI[[#This Row],[Size]],Table_PI[[#This Row],[Input 1]],Table_PI[[#This Row],[Input 2]],Table_PI[[#This Row],[Input 3]],Table_PI[[#This Row],[Input 4]],'Customer Information'!$AR$12,102,ROW())<>\"No Rebate\"),MeasureCalc(Table_PI[[#This Row],[Hide:\nFormula Name]],Table_SummaryPI[[#This Row],[Quantity]],Table_PI[[#This Row],[List 1]],Table_PI[[#This Row],[List 2]],Table_PI[[#This Row],[List 3]],Table_PI[[#This Row],[Size]],Table_PI[[#This Row],[Input 1]],Table_PI[[#This Row],[Input 2]],Table_PI[[#This Row],[Input 3]],Table_PI[[#This Row],[Input 4]],'Customer Information'!$AR$12,102,ROW()),\"\"),\"\")","v":""},{"$f":"IF(Table_PI[[#This Row],[Input 3]]<>\"\",Table_PI[[#This Row],[Input 3]],\"\")","v":""},null,{"$f":"IFERROR(IF(AND(MeasureCalc(Table_PI[[#This Row],[Hide:\nFormula Name]],Table_SummaryPI[[#This Row],[Quantity]],Table_PI[[#This Row],[List 1]],Table_PI[[#This Row],[List 2]],Table_PI[[#This Row],[List 3]],Table_PI[[#This Row],[Size]],Table_PI[[#This Row],[Input 1]],Table_PI[[#This Row],[Input 2]],Table_PI[[#This Row],[Input 3]],Table_PI[[#This Row],[Input 4]],'Customer Information'!$AR$12,103,ROW())<>0,MeasureCalc(Table_PI[[#This Row],[Hide:\nFormula Name]],Table_SummaryPI[[#This Row],[Quantity]],Table_PI[[#This Row],[List 1]],Table_PI[[#This Row],[List 2]],Table_PI[[#This Row],[List 3]],Table_PI[[#This Row],[Size]],Table_PI[[#This Row],[Input 1]],Table_PI[[#This Row],[Input 2]],Table_PI[[#This Row],[Input 3]],Table_PI[[#This Row],[Input 4]],'Customer Information'!$AR$12,103,ROW())<>\"No Rebate\"),MeasureCalc(Table_PI[[#This Row],[Hide:\nFormula Name]],Table_SummaryPI[[#This Row],[Quantity]],Table_PI[[#This Row],[List 1]],Table_PI[[#This Row],[List 2]],Table_PI[[#This Row],[List 3]],Table_PI[[#This Row],[Size]],Table_PI[[#This Row],[Input 1]],Table_PI[[#This Row],[Input 2]],Table_PI[[#This Row],[Input 3]],Table_PI[[#This Row],[Input 4]],'Customer Information'!$AR$12,103,ROW()),\"\"),\"\")","v":""},{"$f":"IF(Table_PI[[#This Row],[Input 4]]<>\"\",Table_PI[[#This Row],[Input 4]],\"\")","v":""},{"$f":"IF(Table_PI[[#This Row],[Quantity]]=\"\",\"\",Table_PI[[#This Row],[Quantity]])","v":""},{"$f":"IF(Table_PI[[#This Row],[Notes]]=\"\",\"\",Table_PI[[#This Row],[Notes]])","v":""},{"$f":"IF(OR(Table_PI[[#This Row],[Hide:\nBaseline kWh]]=\"\",Table_PI[[#This Row],[Hide:\nBaseline kWh]]=0),\"\",Table_PI[[#This Row],[Hide:\nBaseline kWh]])","v":""},{"$f":"IF(OR(Table_PI[[#This Row],[Hide:\nBaseline kW]]=\"\",Table_PI[[#This Row],[Hide:\nBaseline kW]]=0),\"\",Table_PI[[#This Row],[Hide:\nBaseline kW]])","v":""},{"$f":"IF(OR(Table_PI[[#This Row],[Hide:\nProposed kWh]]=\"\",Table_PI[[#This Row],[Hide:\nProposed kWh]]=0),\"\",Table_PI[[#This Row],[Hide:\nProposed kWh]])","v":""},{"$f":"IF(OR(Table_PI[[#This Row],[Hide:\nProposed kW]]=\"\",Table_PI[[#This Row],[Hide:\nProposed kW]]=0),\"\",Table_PI[[#This Row],[Hide:\nProposed kW]])","v":""},{"$f":"IF(OR(Table_PI[[#This Row],[Rebate]]=\"\",Table_PI[[#This Row],[Rebate]]=0),\"\",Table_PI[[#This Row],[Rebate]])","v":""},{"$f":"IF(OR(Table_PI[[#This Row],[Hide:\nIncremental Cost]]=\"\",Table_PI[[#This Row],[Hide:\nIncremental Cost]]=0),\"\",Table_PI[[#This Row],[Hide:\nIncremental Cost]])","v":""},{"$f":"IFERROR(IF(Table_SummaryPI[[#This Row],[kWhSavings]]=\"\",\"\",ROUND(Table_SummaryPI[[#This Row],[kWhSavings]]/$AG$401*'Customer Information'!$BC$17,2)),0)","v":""},{"$f":"IF(OR(Table_PI[[#This Row],[Annual kWh]]=\"\",Table_PI[[#This Row],[Annual kWh]]=0),\"\",Table_PI[[#This Row],[Annual kWh]])","v":""},{"$f":"IF(OR(Table_PI[[#This Row],[Peak kW]]=\"\",Table_PI[[#This Row],[Peak kW]]=0),\"\",Table_PI[[#This Row],[Peak kW]])","v":""},{"$f":"IFERROR(IF(Table_SummaryPI[[#This Row],[kWhSavings]]=\"\",\"\",$AU$9*Table_SummaryPI[[#This Row],[kWhSavings]]),0)","v":""},{"$f":"IFERROR(IF(Table_SummaryPI[[#This Row],[kWhSavings]]=\"\",\"\",$AU$14*Table_SummaryPI[[#This Row],[kWhSavings]]),0)","v":""},{"$f":"IFERROR(IF(Table_SummaryPI[[#This Row],[kWhSavings]]=\"\",\"\",$AU$18*Table_SummaryPI[[#This Row],[kWhSavings]]),0)","v":""},{"$f":"IFERROR(IF(Table_SummaryPI[[#This Row],[kWhSavings]]=\"\",\"\",$AU$22*Table_SummaryPI[[#This Row],[kWhSavings]]),0)","v":""},{"$f":"IFERROR(IF(MeasureCalc(Table_PI[[#This Row],[Hide:\nFormula Name]],Table_SummaryPI[[#This Row],[Quantity]],Table_PI[[#This Row],[List 1]],Table_PI[[#This Row],[List 2]],Table_PI[[#This Row],[List 3]],Table_PI[[#This Row],[Size]],Table_PI[[#This Row],[Input 1]],Table_PI[[#This Row],[Input 2]],Table_PI[[#This Row],[Input 3]],Table_PI[[#This Row],[Input 4]],'Customer Information'!$AR$12,200,ROW())<>\"No Rebate\",MeasureCalc(Table_PI[[#This Row],[Hide:\nFormula Name]],Table_SummaryPI[[#This Row],[Quantity]],Table_PI[[#This Row],[List 1]],Table_PI[[#This Row],[List 2]],Table_PI[[#This Row],[List 3]],Table_PI[[#This Row],[Size]],Table_PI[[#This Row],[Input 1]],Table_PI[[#This Row],[Input 2]],Table_PI[[#This Row],[Input 3]],Table_PI[[#This Row],[Input 4]],'Customer Information'!$AR$12,200,ROW()),\"\"),\"\")","v":""},{"$f":"IFERROR(IF(MeasureCalc(Table_PI[[#This Row],[Hide:\nFormula Name]],Table_SummaryPI[[#This Row],[Quantity]],Table_PI[[#This Row],[List 1]],Table_PI[[#This Row],[List 2]],Table_PI[[#This Row],[List 3]],Table_PI[[#This Row],[Size]],Table_PI[[#This Row],[Input 1]],Table_PI[[#This Row],[Input 2]],Table_PI[[#This Row],[Input 3]],Table_PI[[#This Row],[Input 4]],'Customer Information'!$AR$12,201,ROW())<>\"No Rebate\",MeasureCalc(Table_PI[[#This Row],[Hide:\nFormula Name]],Table_SummaryPI[[#This Row],[Quantity]],Table_PI[[#This Row],[List 1]],Table_PI[[#This Row],[List 2]],Table_PI[[#This Row],[List 3]],Table_PI[[#This Row],[Size]],Table_PI[[#This Row],[Input 1]],Table_PI[[#This Row],[Input 2]],Table_PI[[#This Row],[Input 3]],Table_PI[[#This Row],[Input 4]],'Customer Information'!$AR$12,201,ROW()),\"\"),\"\")","v":""}]
[{"$f":"Table_PI[[#This Row],[Line No.]]","v":""},{"$f":"IF(Table_SummaryPI[[#This Row],[MeassureCategory]]<>\"\",CONCATENATE(Table_SummaryPI[[#This Row],[MeassureCategory]],  \" - \", Table_SummaryPI[[#This Row],[ProposedMeasureCategory]],  \" - \", TEXT(Table_SummaryPI[[#This Row],[Size]],\"#,##0.00\"),\" \",Table_SummaryPI[[#This Row],[SizeUnit]]),\"\")","v":""},{"$f":"SUBSTITUTE(Table_PI[[#This Row],[Measure]],\"     \",\"\",1)","v":""},{"$f":"IF(Table_PI[[#This Row],[List 1]]<>\"\",Table_PI[[#This Row],[List 1]],\"\")","v":""},{"$f":"IF(Table_PI[[#This Row],[List 2]]<>\"\",Table_PI[[#This Row],[List 2]],\"\")","v":""},{"$f":"IF(Table_PI[[#This Row],[List 3]]<>\"\",Table_PI[[#This Row],[List 3]],\"\")","v":""},{"$f":"IF(Table_PI[[#This Row],[Manufacturer]]=\"\",\"\",Table_PI[[#This Row],[Manufacturer]])","v":""},{"$f":"IF(Table_PI[[#This Row],[Model Number]]=\"\",\"\",Table_PI[[#This Row],[Model Number]])","v":""},{"$f":"IF(Table_PI[[#This Row],[Serial Number(s)]]=\"\",\"\",Table_PI[[#This Row],[Serial Number(s)]])","v":""},null,{"$f":"IF(Table_PI[[#This Row],[Size]]=\"\",\"\",Table_PI[[#This Row],[Size]])","v":""},null,{"$f":"IFERROR(IF(AND(MeasureCalc(Table_PI[[#This Row],[Hide:\nFormula Name]],Table_SummaryPI[[#This Row],[Quantity]],Table_PI[[#This Row],[List 1]],Table_PI[[#This Row],[List 2]],Table_PI[[#This Row],[List 3]],Table_PI[[#This Row],[Size]],Table_PI[[#This Row],[Input 1]],Table_PI[[#This Row],[Input 2]],Table_PI[[#This Row],[Input 3]],Table_PI[[#This Row],[Input 4]],'Customer Information'!$AR$12,100,ROW())<>0,MeasureCalc(Table_PI[[#This Row],[Hide:\nFormula Name]],Table_SummaryPI[[#This Row],[Quantity]],Table_PI[[#This Row],[List 1]],Table_PI[[#This Row],[List 2]],Table_PI[[#This Row],[List 3]],Table_PI[[#This Row],[Size]],Table_PI[[#This Row],[Input 1]],Table_PI[[#This Row],[Input 2]],Table_PI[[#This Row],[Input 3]],Table_PI[[#This Row],[Input 4]],'Customer Information'!$AR$12,100,ROW())<>\"No Rebate\"),MeasureCalc(Table_PI[[#This Row],[Hide:\nFormula Name]],Table_SummaryPI[[#This Row],[Quantity]],Table_PI[[#This Row],[List 1]],Table_PI[[#This Row],[List 2]],Table_PI[[#This Row],[List 3]],Table_PI[[#This Row],[Size]],Table_PI[[#This Row],[Input 1]],Table_PI[[#This Row],[Input 2]],Table_PI[[#This Row],[Input 3]],Table_PI[[#This Row],[Input 4]],'Customer Information'!$AR$12,100,ROW()),\"\"),\"\")","v":""},{"$f":"IF(Table_PI[[#This Row],[Input 1]]<>\"\",Table_PI[[#This Row],[Input 1]],\"\")","v":""},null,{"$f":"IFERROR(IF(AND(MeasureCalc(Table_PI[[#This Row],[Hide:\nFormula Name]],Table_SummaryPI[[#This Row],[Quantity]],Table_PI[[#This Row],[List 1]],Table_PI[[#This Row],[List 2]],Table_PI[[#This Row],[List 3]],Table_PI[[#This Row],[Size]],Table_PI[[#This Row],[Input 1]],Table_PI[[#This Row],[Input 2]],Table_PI[[#This Row],[Input 3]],Table_PI[[#This Row],[Input 4]],'Customer Information'!$AR$12,101,ROW())<>0,MeasureCalc(Table_PI[[#This Row],[Hide:\nFormula Name]],Table_SummaryPI[[#This Row],[Quantity]],Table_PI[[#This Row],[List 1]],Table_PI[[#This Row],[List 2]],Table_PI[[#This Row],[List 3]],Table_PI[[#This Row],[Size]],Table_PI[[#This Row],[Input 1]],Table_PI[[#This Row],[Input 2]],Table_PI[[#This Row],[Input 3]],Table_PI[[#This Row],[Input 4]],'Customer Information'!$AR$12,101,ROW())<>\"No Rebate\"),MeasureCalc(Table_PI[[#This Row],[Hide:\nFormula Name]],Table_SummaryPI[[#This Row],[Quantity]],Table_PI[[#This Row],[List 1]],Table_PI[[#This Row],[List 2]],Table_PI[[#This Row],[List 3]],Table_PI[[#This Row],[Size]],Table_PI[[#This Row],[Input 1]],Table_PI[[#This Row],[Input 2]],Table_PI[[#This Row],[Input 3]],Table_PI[[#This Row],[Input 4]],'Customer Information'!$AR$12,101,ROW()),\"\"),\"\")","v":""},{"$f":"IF(Table_PI[[#This Row],[Input 2]]<>\"\",Table_PI[[#This Row],[Input 2]],\"\")","v":""},null,{"$f":"IFERROR(IF(AND(MeasureCalc(Table_PI[[#This Row],[Hide:\nFormula Name]],Table_SummaryPI[[#This Row],[Quantity]],Table_PI[[#This Row],[List 1]],Table_PI[[#This Row],[List 2]],Table_PI[[#This Row],[List 3]],Table_PI[[#This Row],[Size]],Table_PI[[#This Row],[Input 1]],Table_PI[[#This Row],[Input 2]],Table_PI[[#This Row],[Input 3]],Table_PI[[#This Row],[Input 4]],'Customer Information'!$AR$12,102,ROW())<>0,MeasureCalc(Table_PI[[#This Row],[Hide:\nFormula Name]],Table_SummaryPI[[#This Row],[Quantity]],Table_PI[[#This Row],[List 1]],Table_PI[[#This Row],[List 2]],Table_PI[[#This Row],[List 3]],Table_PI[[#This Row],[Size]],Table_PI[[#This Row],[Input 1]],Table_PI[[#This Row],[Input 2]],Table_PI[[#This Row],[Input 3]],Table_PI[[#This Row],[Input 4]],'Customer Information'!$AR$12,102,ROW())<>\"No Rebate\"),MeasureCalc(Table_PI[[#This Row],[Hide:\nFormula Name]],Table_SummaryPI[[#This Row],[Quantity]],Table_PI[[#This Row],[List 1]],Table_PI[[#This Row],[List 2]],Table_PI[[#This Row],[List 3]],Table_PI[[#This Row],[Size]],Table_PI[[#This Row],[Input 1]],Table_PI[[#This Row],[Input 2]],Table_PI[[#This Row],[Input 3]],Table_PI[[#This Row],[Input 4]],'Customer Information'!$AR$12,102,ROW()),\"\"),\"\")","v":""},{"$f":"IF(Table_PI[[#This Row],[Input 3]]<>\"\",Table_PI[[#This Row],[Input 3]],\"\")","v":""},null,{"$f":"IFERROR(IF(AND(MeasureCalc(Table_PI[[#This Row],[Hide:\nFormula Name]],Table_SummaryPI[[#This Row],[Quantity]],Table_PI[[#This Row],[List 1]],Table_PI[[#This Row],[List 2]],Table_PI[[#This Row],[List 3]],Table_PI[[#This Row],[Size]],Table_PI[[#This Row],[Input 1]],Table_PI[[#This Row],[Input 2]],Table_PI[[#This Row],[Input 3]],Table_PI[[#This Row],[Input 4]],'Customer Information'!$AR$12,103,ROW())<>0,MeasureCalc(Table_PI[[#This Row],[Hide:\nFormula Name]],Table_SummaryPI[[#This Row],[Quantity]],Table_PI[[#This Row],[List 1]],Table_PI[[#This Row],[List 2]],Table_PI[[#This Row],[List 3]],Table_PI[[#This Row],[Size]],Table_PI[[#This Row],[Input 1]],Table_PI[[#This Row],[Input 2]],Table_PI[[#This Row],[Input 3]],Table_PI[[#This Row],[Input 4]],'Customer Information'!$AR$12,103,ROW())<>\"No Rebate\"),MeasureCalc(Table_PI[[#This Row],[Hide:\nFormula Name]],Table_SummaryPI[[#This Row],[Quantity]],Table_PI[[#This Row],[List 1]],Table_PI[[#This Row],[List 2]],Table_PI[[#This Row],[List 3]],Table_PI[[#This Row],[Size]],Table_PI[[#This Row],[Input 1]],Table_PI[[#This Row],[Input 2]],Table_PI[[#This Row],[Input 3]],Table_PI[[#This Row],[Input 4]],'Customer Information'!$AR$12,103,ROW()),\"\"),\"\")","v":""},{"$f":"IF(Table_PI[[#This Row],[Input 4]]<>\"\",Table_PI[[#This Row],[Input 4]],\"\")","v":""},{"$f":"IF(Table_PI[[#This Row],[Quantity]]=\"\",\"\",Table_PI[[#This Row],[Quantity]])","v":""},{"$f":"IF(Table_PI[[#This Row],[Notes]]=\"\",\"\",Table_PI[[#This Row],[Notes]])","v":""},{"$f":"IF(OR(Table_PI[[#This Row],[Hide:\nBaseline kWh]]=\"\",Table_PI[[#This Row],[Hide:\nBaseline kWh]]=0),\"\",Table_PI[[#This Row],[Hide:\nBaseline kWh]])","v":""},{"$f":"IF(OR(Table_PI[[#This Row],[Hide:\nBaseline kW]]=\"\",Table_PI[[#This Row],[Hide:\nBaseline kW]]=0),\"\",Table_PI[[#This Row],[Hide:\nBaseline kW]])","v":""},{"$f":"IF(OR(Table_PI[[#This Row],[Hide:\nProposed kWh]]=\"\",Table_PI[[#This Row],[Hide:\nProposed kWh]]=0),\"\",Table_PI[[#This Row],[Hide:\nProposed kWh]])","v":""},{"$f":"IF(OR(Table_PI[[#This Row],[Hide:\nProposed kW]]=\"\",Table_PI[[#This Row],[Hide:\nProposed kW]]=0),\"\",Table_PI[[#This Row],[Hide:\nProposed kW]])","v":""},{"$f":"IF(OR(Table_PI[[#This Row],[Rebate]]=\"\",Table_PI[[#This Row],[Rebate]]=0),\"\",Table_PI[[#This Row],[Rebate]])","v":""},{"$f":"IF(OR(Table_PI[[#This Row],[Hide:\nIncremental Cost]]=\"\",Table_PI[[#This Row],[Hide:\nIncremental Cost]]=0),\"\",Table_PI[[#This Row],[Hide:\nIncremental Cost]])","v":""},{"$f":"IFERROR(IF(Table_SummaryPI[[#This Row],[kWhSavings]]=\"\",\"\",ROUND(Table_SummaryPI[[#This Row],[kWhSavings]]/$AG$401*'Customer Information'!$BC$17,2)),0)","v":""},{"$f":"IF(OR(Table_PI[[#This Row],[Annual kWh]]=\"\",Table_PI[[#This Row],[Annual kWh]]=0),\"\",Table_PI[[#This Row],[Annual kWh]])","v":""},{"$f":"IF(OR(Table_PI[[#This Row],[Peak kW]]=\"\",Table_PI[[#This Row],[Peak kW]]=0),\"\",Table_PI[[#This Row],[Peak kW]])","v":""},{"$f":"IFERROR(IF(Table_SummaryPI[[#This Row],[kWhSavings]]=\"\",\"\",$AU$9*Table_SummaryPI[[#This Row],[kWhSavings]]),0)","v":""},{"$f":"IFERROR(IF(Table_SummaryPI[[#This Row],[kWhSavings]]=\"\",\"\",$AU$14*Table_SummaryPI[[#This Row],[kWhSavings]]),0)","v":""},{"$f":"IFERROR(IF(Table_SummaryPI[[#This Row],[kWhSavings]]=\"\",\"\",$AU$18*Table_SummaryPI[[#This Row],[kWhSavings]]),0)","v":""},{"$f":"IFERROR(IF(Table_SummaryPI[[#This Row],[kWhSavings]]=\"\",\"\",$AU$22*Table_SummaryPI[[#This Row],[kWhSavings]]),0)","v":""},{"$f":"IFERROR(IF(MeasureCalc(Table_PI[[#This Row],[Hide:\nFormula Name]],Table_SummaryPI[[#This Row],[Quantity]],Table_PI[[#This Row],[List 1]],Table_PI[[#This Row],[List 2]],Table_PI[[#This Row],[List 3]],Table_PI[[#This Row],[Size]],Table_PI[[#This Row],[Input 1]],Table_PI[[#This Row],[Input 2]],Table_PI[[#This Row],[Input 3]],Table_PI[[#This Row],[Input 4]],'Customer Information'!$AR$12,200,ROW())<>\"No Rebate\",MeasureCalc(Table_PI[[#This Row],[Hide:\nFormula Name]],Table_SummaryPI[[#This Row],[Quantity]],Table_PI[[#This Row],[List 1]],Table_PI[[#This Row],[List 2]],Table_PI[[#This Row],[List 3]],Table_PI[[#This Row],[Size]],Table_PI[[#This Row],[Input 1]],Table_PI[[#This Row],[Input 2]],Table_PI[[#This Row],[Input 3]],Table_PI[[#This Row],[Input 4]],'Customer Information'!$AR$12,200,ROW()),\"\"),\"\")","v":""},{"$f":"IFERROR(IF(MeasureCalc(Table_PI[[#This Row],[Hide:\nFormula Name]],Table_SummaryPI[[#This Row],[Quantity]],Table_PI[[#This Row],[List 1]],Table_PI[[#This Row],[List 2]],Table_PI[[#This Row],[List 3]],Table_PI[[#This Row],[Size]],Table_PI[[#This Row],[Input 1]],Table_PI[[#This Row],[Input 2]],Table_PI[[#This Row],[Input 3]],Table_PI[[#This Row],[Input 4]],'Customer Information'!$AR$12,201,ROW())<>\"No Rebate\",MeasureCalc(Table_PI[[#This Row],[Hide:\nFormula Name]],Table_SummaryPI[[#This Row],[Quantity]],Table_PI[[#This Row],[List 1]],Table_PI[[#This Row],[List 2]],Table_PI[[#This Row],[List 3]],Table_PI[[#This Row],[Size]],Table_PI[[#This Row],[Input 1]],Table_PI[[#This Row],[Input 2]],Table_PI[[#This Row],[Input 3]],Table_PI[[#This Row],[Input 4]],'Customer Information'!$AR$12,201,ROW()),\"\"),\"\")","v":""}]
[{"$f":"Table_PI[[#This Row],[Line No.]]","v":""},{"$f":"IF(Table_SummaryPI[[#This Row],[MeassureCategory]]<>\"\",CONCATENATE(Table_SummaryPI[[#This Row],[MeassureCategory]],  \" - \", Table_SummaryPI[[#This Row],[ProposedMeasureCategory]],  \" - \", TEXT(Table_SummaryPI[[#This Row],[Size]],\"#,##0.00\"),\" \",Table_SummaryPI[[#This Row],[SizeUnit]]),\"\")","v":""},{"$f":"SUBSTITUTE(Table_PI[[#This Row],[Measure]],\"     \",\"\",1)","v":""},{"$f":"IF(Table_PI[[#This Row],[List 1]]<>\"\",Table_PI[[#This Row],[List 1]],\"\")","v":""},{"$f":"IF(Table_PI[[#This Row],[List 2]]<>\"\",Table_PI[[#This Row],[List 2]],\"\")","v":""},{"$f":"IF(Table_PI[[#This Row],[List 3]]<>\"\",Table_PI[[#This Row],[List 3]],\"\")","v":""},{"$f":"IF(Table_PI[[#This Row],[Manufacturer]]=\"\",\"\",Table_PI[[#This Row],[Manufacturer]])","v":""},{"$f":"IF(Table_PI[[#This Row],[Model Number]]=\"\",\"\",Table_PI[[#This Row],[Model Number]])","v":""},{"$f":"IF(Table_PI[[#This Row],[Serial Number(s)]]=\"\",\"\",Table_PI[[#This Row],[Serial Number(s)]])","v":""},null,{"$f":"IF(Table_PI[[#This Row],[Size]]=\"\",\"\",Table_PI[[#This Row],[Size]])","v":""},null,{"$f":"IFERROR(IF(AND(MeasureCalc(Table_PI[[#This Row],[Hide:\nFormula Name]],Table_SummaryPI[[#This Row],[Quantity]],Table_PI[[#This Row],[List 1]],Table_PI[[#This Row],[List 2]],Table_PI[[#This Row],[List 3]],Table_PI[[#This Row],[Size]],Table_PI[[#This Row],[Input 1]],Table_PI[[#This Row],[Input 2]],Table_PI[[#This Row],[Input 3]],Table_PI[[#This Row],[Input 4]],'Customer Information'!$AR$12,100,ROW())<>0,MeasureCalc(Table_PI[[#This Row],[Hide:\nFormula Name]],Table_SummaryPI[[#This Row],[Quantity]],Table_PI[[#This Row],[List 1]],Table_PI[[#This Row],[List 2]],Table_PI[[#This Row],[List 3]],Table_PI[[#This Row],[Size]],Table_PI[[#This Row],[Input 1]],Table_PI[[#This Row],[Input 2]],Table_PI[[#This Row],[Input 3]],Table_PI[[#This Row],[Input 4]],'Customer Information'!$AR$12,100,ROW())<>\"No Rebate\"),MeasureCalc(Table_PI[[#This Row],[Hide:\nFormula Name]],Table_SummaryPI[[#This Row],[Quantity]],Table_PI[[#This Row],[List 1]],Table_PI[[#This Row],[List 2]],Table_PI[[#This Row],[List 3]],Table_PI[[#This Row],[Size]],Table_PI[[#This Row],[Input 1]],Table_PI[[#This Row],[Input 2]],Table_PI[[#This Row],[Input 3]],Table_PI[[#This Row],[Input 4]],'Customer Information'!$AR$12,100,ROW()),\"\"),\"\")","v":""},{"$f":"IF(Table_PI[[#This Row],[Input 1]]<>\"\",Table_PI[[#This Row],[Input 1]],\"\")","v":""},null,{"$f":"IFERROR(IF(AND(MeasureCalc(Table_PI[[#This Row],[Hide:\nFormula Name]],Table_SummaryPI[[#This Row],[Quantity]],Table_PI[[#This Row],[List 1]],Table_PI[[#This Row],[List 2]],Table_PI[[#This Row],[List 3]],Table_PI[[#This Row],[Size]],Table_PI[[#This Row],[Input 1]],Table_PI[[#This Row],[Input 2]],Table_PI[[#This Row],[Input 3]],Table_PI[[#This Row],[Input 4]],'Customer Information'!$AR$12,101,ROW())<>0,MeasureCalc(Table_PI[[#This Row],[Hide:\nFormula Name]],Table_SummaryPI[[#This Row],[Quantity]],Table_PI[[#This Row],[List 1]],Table_PI[[#This Row],[List 2]],Table_PI[[#This Row],[List 3]],Table_PI[[#This Row],[Size]],Table_PI[[#This Row],[Input 1]],Table_PI[[#This Row],[Input 2]],Table_PI[[#This Row],[Input 3]],Table_PI[[#This Row],[Input 4]],'Customer Information'!$AR$12,101,ROW())<>\"No Rebate\"),MeasureCalc(Table_PI[[#This Row],[Hide:\nFormula Name]],Table_SummaryPI[[#This Row],[Quantity]],Table_PI[[#This Row],[List 1]],Table_PI[[#This Row],[List 2]],Table_PI[[#This Row],[List 3]],Table_PI[[#This Row],[Size]],Table_PI[[#This Row],[Input 1]],Table_PI[[#This Row],[Input 2]],Table_PI[[#This Row],[Input 3]],Table_PI[[#This Row],[Input 4]],'Customer Information'!$AR$12,101,ROW()),\"\"),\"\")","v":""},{"$f":"IF(Table_PI[[#This Row],[Input 2]]<>\"\",Table_PI[[#This Row],[Input 2]],\"\")","v":""},null,{"$f":"IFERROR(IF(AND(MeasureCalc(Table_PI[[#This Row],[Hide:\nFormula Name]],Table_SummaryPI[[#This Row],[Quantity]],Table_PI[[#This Row],[List 1]],Table_PI[[#This Row],[List 2]],Table_PI[[#This Row],[List 3]],Table_PI[[#This Row],[Size]],Table_PI[[#This Row],[Input 1]],Table_PI[[#This Row],[Input 2]],Table_PI[[#This Row],[Input 3]],Table_PI[[#This Row],[Input 4]],'Customer Information'!$AR$12,102,ROW())<>0,MeasureCalc(Table_PI[[#This Row],[Hide:\nFormula Name]],Table_SummaryPI[[#This Row],[Quantity]],Table_PI[[#This Row],[List 1]],Table_PI[[#This Row],[List 2]],Table_PI[[#This Row],[List 3]],Table_PI[[#This Row],[Size]],Table_PI[[#This Row],[Input 1]],Table_PI[[#This Row],[Input 2]],Table_PI[[#This Row],[Input 3]],Table_PI[[#This Row],[Input 4]],'Customer Information'!$AR$12,102,ROW())<>\"No Rebate\"),MeasureCalc(Table_PI[[#This Row],[Hide:\nFormula Name]],Table_SummaryPI[[#This Row],[Quantity]],Table_PI[[#This Row],[List 1]],Table_PI[[#This Row],[List 2]],Table_PI[[#This Row],[List 3]],Table_PI[[#This Row],[Size]],Table_PI[[#This Row],[Input 1]],Table_PI[[#This Row],[Input 2]],Table_PI[[#This Row],[Input 3]],Table_PI[[#This Row],[Input 4]],'Customer Information'!$AR$12,102,ROW()),\"\"),\"\")","v":""},{"$f":"IF(Table_PI[[#This Row],[Input 3]]<>\"\",Table_PI[[#This Row],[Input 3]],\"\")","v":""},null,{"$f":"IFERROR(IF(AND(MeasureCalc(Table_PI[[#This Row],[Hide:\nFormula Name]],Table_SummaryPI[[#This Row],[Quantity]],Table_PI[[#This Row],[List 1]],Table_PI[[#This Row],[List 2]],Table_PI[[#This Row],[List 3]],Table_PI[[#This Row],[Size]],Table_PI[[#This Row],[Input 1]],Table_PI[[#This Row],[Input 2]],Table_PI[[#This Row],[Input 3]],Table_PI[[#This Row],[Input 4]],'Customer Information'!$AR$12,103,ROW())<>0,MeasureCalc(Table_PI[[#This Row],[Hide:\nFormula Name]],Table_SummaryPI[[#This Row],[Quantity]],Table_PI[[#This Row],[List 1]],Table_PI[[#This Row],[List 2]],Table_PI[[#This Row],[List 3]],Table_PI[[#This Row],[Size]],Table_PI[[#This Row],[Input 1]],Table_PI[[#This Row],[Input 2]],Table_PI[[#This Row],[Input 3]],Table_PI[[#This Row],[Input 4]],'Customer Information'!$AR$12,103,ROW())<>\"No Rebate\"),MeasureCalc(Table_PI[[#This Row],[Hide:\nFormula Name]],Table_SummaryPI[[#This Row],[Quantity]],Table_PI[[#This Row],[List 1]],Table_PI[[#This Row],[List 2]],Table_PI[[#This Row],[List 3]],Table_PI[[#This Row],[Size]],Table_PI[[#This Row],[Input 1]],Table_PI[[#This Row],[Input 2]],Table_PI[[#This Row],[Input 3]],Table_PI[[#This Row],[Input 4]],'Customer Information'!$AR$12,103,ROW()),\"\"),\"\")","v":""},{"$f":"IF(Table_PI[[#This Row],[Input 4]]<>\"\",Table_PI[[#This Row],[Input 4]],\"\")","v":""},{"$f":"IF(Table_PI[[#This Row],[Quantity]]=\"\",\"\",Table_PI[[#This Row],[Quantity]])","v":""},{"$f":"IF(Table_PI[[#This Row],[Notes]]=\"\",\"\",Table_PI[[#This Row],[Notes]])","v":""},{"$f":"IF(OR(Table_PI[[#This Row],[Hide:\nBaseline kWh]]=\"\",Table_PI[[#This Row],[Hide:\nBaseline kWh]]=0),\"\",Table_PI[[#This Row],[Hide:\nBaseline kWh]])","v":""},{"$f":"IF(OR(Table_PI[[#This Row],[Hide:\nBaseline kW]]=\"\",Table_PI[[#This Row],[Hide:\nBaseline kW]]=0),\"\",Table_PI[[#This Row],[Hide:\nBaseline kW]])","v":""},{"$f":"IF(OR(Table_PI[[#This Row],[Hide:\nProposed kWh]]=\"\",Table_PI[[#This Row],[Hide:\nProposed kWh]]=0),\"\",Table_PI[[#This Row],[Hide:\nProposed kWh]])","v":""},{"$f":"IF(OR(Table_PI[[#This Row],[Hide:\nProposed kW]]=\"\",Table_PI[[#This Row],[Hide:\nProposed kW]]=0),\"\",Table_PI[[#This Row],[Hide:\nProposed kW]])","v":""},{"$f":"IF(OR(Table_PI[[#This Row],[Rebate]]=\"\",Table_PI[[#This Row],[Rebate]]=0),\"\",Table_PI[[#This Row],[Rebate]])","v":""},{"$f":"IF(OR(Table_PI[[#This Row],[Hide:\nIncremental Cost]]=\"\",Table_PI[[#This Row],[Hide:\nIncremental Cost]]=0),\"\",Table_PI[[#This Row],[Hide:\nIncremental Cost]])","v":""},{"$f":"IFERROR(IF(Table_SummaryPI[[#This Row],[kWhSavings]]=\"\",\"\",ROUND(Table_SummaryPI[[#This Row],[kWhSavings]]/$AG$401*'Customer Information'!$BC$17,2)),0)","v":""},{"$f":"IF(OR(Table_PI[[#This Row],[Annual kWh]]=\"\",Table_PI[[#This Row],[Annual kWh]]=0),\"\",Table_PI[[#This Row],[Annual kWh]])","v":""},{"$f":"IF(OR(Table_PI[[#This Row],[Peak kW]]=\"\",Table_PI[[#This Row],[Peak kW]]=0),\"\",Table_PI[[#This Row],[Peak kW]])","v":""},{"$f":"IFERROR(IF(Table_SummaryPI[[#This Row],[kWhSavings]]=\"\",\"\",$AU$9*Table_SummaryPI[[#This Row],[kWhSavings]]),0)","v":""},{"$f":"IFERROR(IF(Table_SummaryPI[[#This Row],[kWhSavings]]=\"\",\"\",$AU$14*Table_SummaryPI[[#This Row],[kWhSavings]]),0)","v":""},{"$f":"IFERROR(IF(Table_SummaryPI[[#This Row],[kWhSavings]]=\"\",\"\",$AU$18*Table_SummaryPI[[#This Row],[kWhSavings]]),0)","v":""},{"$f":"IFERROR(IF(Table_SummaryPI[[#This Row],[kWhSavings]]=\"\",\"\",$AU$22*Table_SummaryPI[[#This Row],[kWhSavings]]),0)","v":""},{"$f":"IFERROR(IF(MeasureCalc(Table_PI[[#This Row],[Hide:\nFormula Name]],Table_SummaryPI[[#This Row],[Quantity]],Table_PI[[#This Row],[List 1]],Table_PI[[#This Row],[List 2]],Table_PI[[#This Row],[List 3]],Table_PI[[#This Row],[Size]],Table_PI[[#This Row],[Input 1]],Table_PI[[#This Row],[Input 2]],Table_PI[[#This Row],[Input 3]],Table_PI[[#This Row],[Input 4]],'Customer Information'!$AR$12,200,ROW())<>\"No Rebate\",MeasureCalc(Table_PI[[#This Row],[Hide:\nFormula Name]],Table_SummaryPI[[#This Row],[Quantity]],Table_PI[[#This Row],[List 1]],Table_PI[[#This Row],[List 2]],Table_PI[[#This Row],[List 3]],Table_PI[[#This Row],[Size]],Table_PI[[#This Row],[Input 1]],Table_PI[[#This Row],[Input 2]],Table_PI[[#This Row],[Input 3]],Table_PI[[#This Row],[Input 4]],'Customer Information'!$AR$12,200,ROW()),\"\"),\"\")","v":""},{"$f":"IFERROR(IF(MeasureCalc(Table_PI[[#This Row],[Hide:\nFormula Name]],Table_SummaryPI[[#This Row],[Quantity]],Table_PI[[#This Row],[List 1]],Table_PI[[#This Row],[List 2]],Table_PI[[#This Row],[List 3]],Table_PI[[#This Row],[Size]],Table_PI[[#This Row],[Input 1]],Table_PI[[#This Row],[Input 2]],Table_PI[[#This Row],[Input 3]],Table_PI[[#This Row],[Input 4]],'Customer Information'!$AR$12,201,ROW())<>\"No Rebate\",MeasureCalc(Table_PI[[#This Row],[Hide:\nFormula Name]],Table_SummaryPI[[#This Row],[Quantity]],Table_PI[[#This Row],[List 1]],Table_PI[[#This Row],[List 2]],Table_PI[[#This Row],[List 3]],Table_PI[[#This Row],[Size]],Table_PI[[#This Row],[Input 1]],Table_PI[[#This Row],[Input 2]],Table_PI[[#This Row],[Input 3]],Table_PI[[#This Row],[Input 4]],'Customer Information'!$AR$12,201,ROW()),\"\"),\"\")","v":""}]
[{"$f":"Table_PI[[#This Row],[Line No.]]","v":""},{"$f":"IF(Table_SummaryPI[[#This Row],[MeassureCategory]]<>\"\",CONCATENATE(Table_SummaryPI[[#This Row],[MeassureCategory]],  \" - \", Table_SummaryPI[[#This Row],[ProposedMeasureCategory]],  \" - \", TEXT(Table_SummaryPI[[#This Row],[Size]],\"#,##0.00\"),\" \",Table_SummaryPI[[#This Row],[SizeUnit]]),\"\")","v":""},{"$f":"SUBSTITUTE(Table_PI[[#This Row],[Measure]],\"     \",\"\",1)","v":""},{"$f":"IF(Table_PI[[#This Row],[List 1]]<>\"\",Table_PI[[#This Row],[List 1]],\"\")","v":""},{"$f":"IF(Table_PI[[#This Row],[List 2]]<>\"\",Table_PI[[#This Row],[List 2]],\"\")","v":""},{"$f":"IF(Table_PI[[#This Row],[List 3]]<>\"\",Table_PI[[#This Row],[List 3]],\"\")","v":""},{"$f":"IF(Table_PI[[#This Row],[Manufacturer]]=\"\",\"\",Table_PI[[#This Row],[Manufacturer]])","v":""},{"$f":"IF(Table_PI[[#This Row],[Model Number]]=\"\",\"\",Table_PI[[#This Row],[Model Number]])","v":""},{"$f":"IF(Table_PI[[#This Row],[Serial Number(s)]]=\"\",\"\",Table_PI[[#This Row],[Serial Number(s)]])","v":""},null,{"$f":"IF(Table_PI[[#This Row],[Size]]=\"\",\"\",Table_PI[[#This Row],[Size]])","v":""},null,{"$f":"IFERROR(IF(AND(MeasureCalc(Table_PI[[#This Row],[Hide:\nFormula Name]],Table_SummaryPI[[#This Row],[Quantity]],Table_PI[[#This Row],[List 1]],Table_PI[[#This Row],[List 2]],Table_PI[[#This Row],[List 3]],Table_PI[[#This Row],[Size]],Table_PI[[#This Row],[Input 1]],Table_PI[[#This Row],[Input 2]],Table_PI[[#This Row],[Input 3]],Table_PI[[#This Row],[Input 4]],'Customer Information'!$AR$12,100,ROW())<>0,MeasureCalc(Table_PI[[#This Row],[Hide:\nFormula Name]],Table_SummaryPI[[#This Row],[Quantity]],Table_PI[[#This Row],[List 1]],Table_PI[[#This Row],[List 2]],Table_PI[[#This Row],[List 3]],Table_PI[[#This Row],[Size]],Table_PI[[#This Row],[Input 1]],Table_PI[[#This Row],[Input 2]],Table_PI[[#This Row],[Input 3]],Table_PI[[#This Row],[Input 4]],'Customer Information'!$AR$12,100,ROW())<>\"No Rebate\"),MeasureCalc(Table_PI[[#This Row],[Hide:\nFormula Name]],Table_SummaryPI[[#This Row],[Quantity]],Table_PI[[#This Row],[List 1]],Table_PI[[#This Row],[List 2]],Table_PI[[#This Row],[List 3]],Table_PI[[#This Row],[Size]],Table_PI[[#This Row],[Input 1]],Table_PI[[#This Row],[Input 2]],Table_PI[[#This Row],[Input 3]],Table_PI[[#This Row],[Input 4]],'Customer Information'!$AR$12,100,ROW()),\"\"),\"\")","v":""},{"$f":"IF(Table_PI[[#This Row],[Input 1]]<>\"\",Table_PI[[#This Row],[Input 1]],\"\")","v":""},null,{"$f":"IFERROR(IF(AND(MeasureCalc(Table_PI[[#This Row],[Hide:\nFormula Name]],Table_SummaryPI[[#This Row],[Quantity]],Table_PI[[#This Row],[List 1]],Table_PI[[#This Row],[List 2]],Table_PI[[#This Row],[List 3]],Table_PI[[#This Row],[Size]],Table_PI[[#This Row],[Input 1]],Table_PI[[#This Row],[Input 2]],Table_PI[[#This Row],[Input 3]],Table_PI[[#This Row],[Input 4]],'Customer Information'!$AR$12,101,ROW())<>0,MeasureCalc(Table_PI[[#This Row],[Hide:\nFormula Name]],Table_SummaryPI[[#This Row],[Quantity]],Table_PI[[#This Row],[List 1]],Table_PI[[#This Row],[List 2]],Table_PI[[#This Row],[List 3]],Table_PI[[#This Row],[Size]],Table_PI[[#This Row],[Input 1]],Table_PI[[#This Row],[Input 2]],Table_PI[[#This Row],[Input 3]],Table_PI[[#This Row],[Input 4]],'Customer Information'!$AR$12,101,ROW())<>\"No Rebate\"),MeasureCalc(Table_PI[[#This Row],[Hide:\nFormula Name]],Table_SummaryPI[[#This Row],[Quantity]],Table_PI[[#This Row],[List 1]],Table_PI[[#This Row],[List 2]],Table_PI[[#This Row],[List 3]],Table_PI[[#This Row],[Size]],Table_PI[[#This Row],[Input 1]],Table_PI[[#This Row],[Input 2]],Table_PI[[#This Row],[Input 3]],Table_PI[[#This Row],[Input 4]],'Customer Information'!$AR$12,101,ROW()),\"\"),\"\")","v":""},{"$f":"IF(Table_PI[[#This Row],[Input 2]]<>\"\",Table_PI[[#This Row],[Input 2]],\"\")","v":""},null,{"$f":"IFERROR(IF(AND(MeasureCalc(Table_PI[[#This Row],[Hide:\nFormula Name]],Table_SummaryPI[[#This Row],[Quantity]],Table_PI[[#This Row],[List 1]],Table_PI[[#This Row],[List 2]],Table_PI[[#This Row],[List 3]],Table_PI[[#This Row],[Size]],Table_PI[[#This Row],[Input 1]],Table_PI[[#This Row],[Input 2]],Table_PI[[#This Row],[Input 3]],Table_PI[[#This Row],[Input 4]],'Customer Information'!$AR$12,102,ROW())<>0,MeasureCalc(Table_PI[[#This Row],[Hide:\nFormula Name]],Table_SummaryPI[[#This Row],[Quantity]],Table_PI[[#This Row],[List 1]],Table_PI[[#This Row],[List 2]],Table_PI[[#This Row],[List 3]],Table_PI[[#This Row],[Size]],Table_PI[[#This Row],[Input 1]],Table_PI[[#This Row],[Input 2]],Table_PI[[#This Row],[Input 3]],Table_PI[[#This Row],[Input 4]],'Customer Information'!$AR$12,102,ROW())<>\"No Rebate\"),MeasureCalc(Table_PI[[#This Row],[Hide:\nFormula Name]],Table_SummaryPI[[#This Row],[Quantity]],Table_PI[[#This Row],[List 1]],Table_PI[[#This Row],[List 2]],Table_PI[[#This Row],[List 3]],Table_PI[[#This Row],[Size]],Table_PI[[#This Row],[Input 1]],Table_PI[[#This Row],[Input 2]],Table_PI[[#This Row],[Input 3]],Table_PI[[#This Row],[Input 4]],'Customer Information'!$AR$12,102,ROW()),\"\"),\"\")","v":""},{"$f":"IF(Table_PI[[#This Row],[Input 3]]<>\"\",Table_PI[[#This Row],[Input 3]],\"\")","v":""},null,{"$f":"IFERROR(IF(AND(MeasureCalc(Table_PI[[#This Row],[Hide:\nFormula Name]],Table_SummaryPI[[#This Row],[Quantity]],Table_PI[[#This Row],[List 1]],Table_PI[[#This Row],[List 2]],Table_PI[[#This Row],[List 3]],Table_PI[[#This Row],[Size]],Table_PI[[#This Row],[Input 1]],Table_PI[[#This Row],[Input 2]],Table_PI[[#This Row],[Input 3]],Table_PI[[#This Row],[Input 4]],'Customer Information'!$AR$12,103,ROW())<>0,MeasureCalc(Table_PI[[#This Row],[Hide:\nFormula Name]],Table_SummaryPI[[#This Row],[Quantity]],Table_PI[[#This Row],[List 1]],Table_PI[[#This Row],[List 2]],Table_PI[[#This Row],[List 3]],Table_PI[[#This Row],[Size]],Table_PI[[#This Row],[Input 1]],Table_PI[[#This Row],[Input 2]],Table_PI[[#This Row],[Input 3]],Table_PI[[#This Row],[Input 4]],'Customer Information'!$AR$12,103,ROW())<>\"No Rebate\"),MeasureCalc(Table_PI[[#This Row],[Hide:\nFormula Name]],Table_SummaryPI[[#This Row],[Quantity]],Table_PI[[#This Row],[List 1]],Table_PI[[#This Row],[List 2]],Table_PI[[#This Row],[List 3]],Table_PI[[#This Row],[Size]],Table_PI[[#This Row],[Input 1]],Table_PI[[#This Row],[Input 2]],Table_PI[[#This Row],[Input 3]],Table_PI[[#This Row],[Input 4]],'Customer Information'!$AR$12,103,ROW()),\"\"),\"\")","v":""},{"$f":"IF(Table_PI[[#This Row],[Input 4]]<>\"\",Table_PI[[#This Row],[Input 4]],\"\")","v":""},{"$f":"IF(Table_PI[[#This Row],[Quantity]]=\"\",\"\",Table_PI[[#This Row],[Quantity]])","v":""},{"$f":"IF(Table_PI[[#This Row],[Notes]]=\"\",\"\",Table_PI[[#This Row],[Notes]])","v":""},{"$f":"IF(OR(Table_PI[[#This Row],[Hide:\nBaseline kWh]]=\"\",Table_PI[[#This Row],[Hide:\nBaseline kWh]]=0),\"\",Table_PI[[#This Row],[Hide:\nBaseline kWh]])","v":""},{"$f":"IF(OR(Table_PI[[#This Row],[Hide:\nBaseline kW]]=\"\",Table_PI[[#This Row],[Hide:\nBaseline kW]]=0),\"\",Table_PI[[#This Row],[Hide:\nBaseline kW]])","v":""},{"$f":"IF(OR(Table_PI[[#This Row],[Hide:\nProposed kWh]]=\"\",Table_PI[[#This Row],[Hide:\nProposed kWh]]=0),\"\",Table_PI[[#This Row],[Hide:\nProposed kWh]])","v":""},{"$f":"IF(OR(Table_PI[[#This Row],[Hide:\nProposed kW]]=\"\",Table_PI[[#This Row],[Hide:\nProposed kW]]=0),\"\",Table_PI[[#This Row],[Hide:\nProposed kW]])","v":""},{"$f":"IF(OR(Table_PI[[#This Row],[Rebate]]=\"\",Table_PI[[#This Row],[Rebate]]=0),\"\",Table_PI[[#This Row],[Rebate]])","v":""},{"$f":"IF(OR(Table_PI[[#This Row],[Hide:\nIncremental Cost]]=\"\",Table_PI[[#This Row],[Hide:\nIncremental Cost]]=0),\"\",Table_PI[[#This Row],[Hide:\nIncremental Cost]])","v":""},{"$f":"IFERROR(IF(Table_SummaryPI[[#This Row],[kWhSavings]]=\"\",\"\",ROUND(Table_SummaryPI[[#This Row],[kWhSavings]]/$AG$401*'Customer Information'!$BC$17,2)),0)","v":""},{"$f":"IF(OR(Table_PI[[#This Row],[Annual kWh]]=\"\",Table_PI[[#This Row],[Annual kWh]]=0),\"\",Table_PI[[#This Row],[Annual kWh]])","v":""},{"$f":"IF(OR(Table_PI[[#This Row],[Peak kW]]=\"\",Table_PI[[#This Row],[Peak kW]]=0),\"\",Table_PI[[#This Row],[Peak kW]])","v":""},{"$f":"IFERROR(IF(Table_SummaryPI[[#This Row],[kWhSavings]]=\"\",\"\",$AU$9*Table_SummaryPI[[#This Row],[kWhSavings]]),0)","v":""},{"$f":"IFERROR(IF(Table_SummaryPI[[#This Row],[kWhSavings]]=\"\",\"\",$AU$14*Table_SummaryPI[[#This Row],[kWhSavings]]),0)","v":""},{"$f":"IFERROR(IF(Table_SummaryPI[[#This Row],[kWhSavings]]=\"\",\"\",$AU$18*Table_SummaryPI[[#This Row],[kWhSavings]]),0)","v":""},{"$f":"IFERROR(IF(Table_SummaryPI[[#This Row],[kWhSavings]]=\"\",\"\",$AU$22*Table_SummaryPI[[#This Row],[kWhSavings]]),0)","v":""},{"$f":"IFERROR(IF(MeasureCalc(Table_PI[[#This Row],[Hide:\nFormula Name]],Table_SummaryPI[[#This Row],[Quantity]],Table_PI[[#This Row],[List 1]],Table_PI[[#This Row],[List 2]],Table_PI[[#This Row],[List 3]],Table_PI[[#This Row],[Size]],Table_PI[[#This Row],[Input 1]],Table_PI[[#This Row],[Input 2]],Table_PI[[#This Row],[Input 3]],Table_PI[[#This Row],[Input 4]],'Customer Information'!$AR$12,200,ROW())<>\"No Rebate\",MeasureCalc(Table_PI[[#This Row],[Hide:\nFormula Name]],Table_SummaryPI[[#This Row],[Quantity]],Table_PI[[#This Row],[List 1]],Table_PI[[#This Row],[List 2]],Table_PI[[#This Row],[List 3]],Table_PI[[#This Row],[Size]],Table_PI[[#This Row],[Input 1]],Table_PI[[#This Row],[Input 2]],Table_PI[[#This Row],[Input 3]],Table_PI[[#This Row],[Input 4]],'Customer Information'!$AR$12,200,ROW()),\"\"),\"\")","v":""},{"$f":"IFERROR(IF(MeasureCalc(Table_PI[[#This Row],[Hide:\nFormula Name]],Table_SummaryPI[[#This Row],[Quantity]],Table_PI[[#This Row],[List 1]],Table_PI[[#This Row],[List 2]],Table_PI[[#This Row],[List 3]],Table_PI[[#This Row],[Size]],Table_PI[[#This Row],[Input 1]],Table_PI[[#This Row],[Input 2]],Table_PI[[#This Row],[Input 3]],Table_PI[[#This Row],[Input 4]],'Customer Information'!$AR$12,201,ROW())<>\"No Rebate\",MeasureCalc(Table_PI[[#This Row],[Hide:\nFormula Name]],Table_SummaryPI[[#This Row],[Quantity]],Table_PI[[#This Row],[List 1]],Table_PI[[#This Row],[List 2]],Table_PI[[#This Row],[List 3]],Table_PI[[#This Row],[Size]],Table_PI[[#This Row],[Input 1]],Table_PI[[#This Row],[Input 2]],Table_PI[[#This Row],[Input 3]],Table_PI[[#This Row],[Input 4]],'Customer Information'!$AR$12,201,ROW()),\"\"),\"\")","v":""}]
[{"$f":"Table_PI[[#This Row],[Line No.]]","v":""},{"$f":"IF(Table_SummaryPI[[#This Row],[MeassureCategory]]<>\"\",CONCATENATE(Table_SummaryPI[[#This Row],[MeassureCategory]],  \" - \", Table_SummaryPI[[#This Row],[ProposedMeasureCategory]],  \" - \", TEXT(Table_SummaryPI[[#This Row],[Size]],\"#,##0.00\"),\" \",Table_SummaryPI[[#This Row],[SizeUnit]]),\"\")","v":""},{"$f":"SUBSTITUTE(Table_PI[[#This Row],[Measure]],\"     \",\"\",1)","v":""},{"$f":"IF(Table_PI[[#This Row],[List 1]]<>\"\",Table_PI[[#This Row],[List 1]],\"\")","v":""},{"$f":"IF(Table_PI[[#This Row],[List 2]]<>\"\",Table_PI[[#This Row],[List 2]],\"\")","v":""},{"$f":"IF(Table_PI[[#This Row],[List 3]]<>\"\",Table_PI[[#This Row],[List 3]],\"\")","v":""},{"$f":"IF(Table_PI[[#This Row],[Manufacturer]]=\"\",\"\",Table_PI[[#This Row],[Manufacturer]])","v":""},{"$f":"IF(Table_PI[[#This Row],[Model Number]]=\"\",\"\",Table_PI[[#This Row],[Model Number]])","v":""},{"$f":"IF(Table_PI[[#This Row],[Serial Number(s)]]=\"\",\"\",Table_PI[[#This Row],[Serial Number(s)]])","v":""},null,{"$f":"IF(Table_PI[[#This Row],[Size]]=\"\",\"\",Table_PI[[#This Row],[Size]])","v":""},null,{"$f":"IFERROR(IF(AND(MeasureCalc(Table_PI[[#This Row],[Hide:\nFormula Name]],Table_SummaryPI[[#This Row],[Quantity]],Table_PI[[#This Row],[List 1]],Table_PI[[#This Row],[List 2]],Table_PI[[#This Row],[List 3]],Table_PI[[#This Row],[Size]],Table_PI[[#This Row],[Input 1]],Table_PI[[#This Row],[Input 2]],Table_PI[[#This Row],[Input 3]],Table_PI[[#This Row],[Input 4]],'Customer Information'!$AR$12,100,ROW())<>0,MeasureCalc(Table_PI[[#This Row],[Hide:\nFormula Name]],Table_SummaryPI[[#This Row],[Quantity]],Table_PI[[#This Row],[List 1]],Table_PI[[#This Row],[List 2]],Table_PI[[#This Row],[List 3]],Table_PI[[#This Row],[Size]],Table_PI[[#This Row],[Input 1]],Table_PI[[#This Row],[Input 2]],Table_PI[[#This Row],[Input 3]],Table_PI[[#This Row],[Input 4]],'Customer Information'!$AR$12,100,ROW())<>\"No Rebate\"),MeasureCalc(Table_PI[[#This Row],[Hide:\nFormula Name]],Table_SummaryPI[[#This Row],[Quantity]],Table_PI[[#This Row],[List 1]],Table_PI[[#This Row],[List 2]],Table_PI[[#This Row],[List 3]],Table_PI[[#This Row],[Size]],Table_PI[[#This Row],[Input 1]],Table_PI[[#This Row],[Input 2]],Table_PI[[#This Row],[Input 3]],Table_PI[[#This Row],[Input 4]],'Customer Information'!$AR$12,100,ROW()),\"\"),\"\")","v":""},{"$f":"IF(Table_PI[[#This Row],[Input 1]]<>\"\",Table_PI[[#This Row],[Input 1]],\"\")","v":""},null,{"$f":"IFERROR(IF(AND(MeasureCalc(Table_PI[[#This Row],[Hide:\nFormula Name]],Table_SummaryPI[[#This Row],[Quantity]],Table_PI[[#This Row],[List 1]],Table_PI[[#This Row],[List 2]],Table_PI[[#This Row],[List 3]],Table_PI[[#This Row],[Size]],Table_PI[[#This Row],[Input 1]],Table_PI[[#This Row],[Input 2]],Table_PI[[#This Row],[Input 3]],Table_PI[[#This Row],[Input 4]],'Customer Information'!$AR$12,101,ROW())<>0,MeasureCalc(Table_PI[[#This Row],[Hide:\nFormula Name]],Table_SummaryPI[[#This Row],[Quantity]],Table_PI[[#This Row],[List 1]],Table_PI[[#This Row],[List 2]],Table_PI[[#This Row],[List 3]],Table_PI[[#This Row],[Size]],Table_PI[[#This Row],[Input 1]],Table_PI[[#This Row],[Input 2]],Table_PI[[#This Row],[Input 3]],Table_PI[[#This Row],[Input 4]],'Customer Information'!$AR$12,101,ROW())<>\"No Rebate\"),MeasureCalc(Table_PI[[#This Row],[Hide:\nFormula Name]],Table_SummaryPI[[#This Row],[Quantity]],Table_PI[[#This Row],[List 1]],Table_PI[[#This Row],[List 2]],Table_PI[[#This Row],[List 3]],Table_PI[[#This Row],[Size]],Table_PI[[#This Row],[Input 1]],Table_PI[[#This Row],[Input 2]],Table_PI[[#This Row],[Input 3]],Table_PI[[#This Row],[Input 4]],'Customer Information'!$AR$12,101,ROW()),\"\"),\"\")","v":""},{"$f":"IF(Table_PI[[#This Row],[Input 2]]<>\"\",Table_PI[[#This Row],[Input 2]],\"\")","v":""},null,{"$f":"IFERROR(IF(AND(MeasureCalc(Table_PI[[#This Row],[Hide:\nFormula Name]],Table_SummaryPI[[#This Row],[Quantity]],Table_PI[[#This Row],[List 1]],Table_PI[[#This Row],[List 2]],Table_PI[[#This Row],[List 3]],Table_PI[[#This Row],[Size]],Table_PI[[#This Row],[Input 1]],Table_PI[[#This Row],[Input 2]],Table_PI[[#This Row],[Input 3]],Table_PI[[#This Row],[Input 4]],'Customer Information'!$AR$12,102,ROW())<>0,MeasureCalc(Table_PI[[#This Row],[Hide:\nFormula Name]],Table_SummaryPI[[#This Row],[Quantity]],Table_PI[[#This Row],[List 1]],Table_PI[[#This Row],[List 2]],Table_PI[[#This Row],[List 3]],Table_PI[[#This Row],[Size]],Table_PI[[#This Row],[Input 1]],Table_PI[[#This Row],[Input 2]],Table_PI[[#This Row],[Input 3]],Table_PI[[#This Row],[Input 4]],'Customer Information'!$AR$12,102,ROW())<>\"No Rebate\"),MeasureCalc(Table_PI[[#This Row],[Hide:\nFormula Name]],Table_SummaryPI[[#This Row],[Quantity]],Table_PI[[#This Row],[List 1]],Table_PI[[#This Row],[List 2]],Table_PI[[#This Row],[List 3]],Table_PI[[#This Row],[Size]],Table_PI[[#This Row],[Input 1]],Table_PI[[#This Row],[Input 2]],Table_PI[[#This Row],[Input 3]],Table_PI[[#This Row],[Input 4]],'Customer Information'!$AR$12,102,ROW()),\"\"),\"\")","v":""},{"$f":"IF(Table_PI[[#This Row],[Input 3]]<>\"\",Table_PI[[#This Row],[Input 3]],\"\")","v":""},null,{"$f":"IFERROR(IF(AND(MeasureCalc(Table_PI[[#This Row],[Hide:\nFormula Name]],Table_SummaryPI[[#This Row],[Quantity]],Table_PI[[#This Row],[List 1]],Table_PI[[#This Row],[List 2]],Table_PI[[#This Row],[List 3]],Table_PI[[#This Row],[Size]],Table_PI[[#This Row],[Input 1]],Table_PI[[#This Row],[Input 2]],Table_PI[[#This Row],[Input 3]],Table_PI[[#This Row],[Input 4]],'Customer Information'!$AR$12,103,ROW())<>0,MeasureCalc(Table_PI[[#This Row],[Hide:\nFormula Name]],Table_SummaryPI[[#This Row],[Quantity]],Table_PI[[#This Row],[List 1]],Table_PI[[#This Row],[List 2]],Table_PI[[#This Row],[List 3]],Table_PI[[#This Row],[Size]],Table_PI[[#This Row],[Input 1]],Table_PI[[#This Row],[Input 2]],Table_PI[[#This Row],[Input 3]],Table_PI[[#This Row],[Input 4]],'Customer Information'!$AR$12,103,ROW())<>\"No Rebate\"),MeasureCalc(Table_PI[[#This Row],[Hide:\nFormula Name]],Table_SummaryPI[[#This Row],[Quantity]],Table_PI[[#This Row],[List 1]],Table_PI[[#This Row],[List 2]],Table_PI[[#This Row],[List 3]],Table_PI[[#This Row],[Size]],Table_PI[[#This Row],[Input 1]],Table_PI[[#This Row],[Input 2]],Table_PI[[#This Row],[Input 3]],Table_PI[[#This Row],[Input 4]],'Customer Information'!$AR$12,103,ROW()),\"\"),\"\")","v":""},{"$f":"IF(Table_PI[[#This Row],[Input 4]]<>\"\",Table_PI[[#This Row],[Input 4]],\"\")","v":""},{"$f":"IF(Table_PI[[#This Row],[Quantity]]=\"\",\"\",Table_PI[[#This Row],[Quantity]])","v":""},{"$f":"IF(Table_PI[[#This Row],[Notes]]=\"\",\"\",Table_PI[[#This Row],[Notes]])","v":""},{"$f":"IF(OR(Table_PI[[#This Row],[Hide:\nBaseline kWh]]=\"\",Table_PI[[#This Row],[Hide:\nBaseline kWh]]=0),\"\",Table_PI[[#This Row],[Hide:\nBaseline kWh]])","v":""},{"$f":"IF(OR(Table_PI[[#This Row],[Hide:\nBaseline kW]]=\"\",Table_PI[[#This Row],[Hide:\nBaseline kW]]=0),\"\",Table_PI[[#This Row],[Hide:\nBaseline kW]])","v":""},{"$f":"IF(OR(Table_PI[[#This Row],[Hide:\nProposed kWh]]=\"\",Table_PI[[#This Row],[Hide:\nProposed kWh]]=0),\"\",Table_PI[[#This Row],[Hide:\nProposed kWh]])","v":""},{"$f":"IF(OR(Table_PI[[#This Row],[Hide:\nProposed kW]]=\"\",Table_PI[[#This Row],[Hide:\nProposed kW]]=0),\"\",Table_PI[[#This Row],[Hide:\nProposed kW]])","v":""},{"$f":"IF(OR(Table_PI[[#This Row],[Rebate]]=\"\",Table_PI[[#This Row],[Rebate]]=0),\"\",Table_PI[[#This Row],[Rebate]])","v":""},{"$f":"IF(OR(Table_PI[[#This Row],[Hide:\nIncremental Cost]]=\"\",Table_PI[[#This Row],[Hide:\nIncremental Cost]]=0),\"\",Table_PI[[#This Row],[Hide:\nIncremental Cost]])","v":""},{"$f":"IFERROR(IF(Table_SummaryPI[[#This Row],[kWhSavings]]=\"\",\"\",ROUND(Table_SummaryPI[[#This Row],[kWhSavings]]/$AG$401*'Customer Information'!$BC$17,2)),0)","v":""},{"$f":"IF(OR(Table_PI[[#This Row],[Annual kWh]]=\"\",Table_PI[[#This Row],[Annual kWh]]=0),\"\",Table_PI[[#This Row],[Annual kWh]])","v":""},{"$f":"IF(OR(Table_PI[[#This Row],[Peak kW]]=\"\",Table_PI[[#This Row],[Peak kW]]=0),\"\",Table_PI[[#This Row],[Peak kW]])","v":""},{"$f":"IFERROR(IF(Table_SummaryPI[[#This Row],[kWhSavings]]=\"\",\"\",$AU$9*Table_SummaryPI[[#This Row],[kWhSavings]]),0)","v":""},{"$f":"IFERROR(IF(Table_SummaryPI[[#This Row],[kWhSavings]]=\"\",\"\",$AU$14*Table_SummaryPI[[#This Row],[kWhSavings]]),0)","v":""},{"$f":"IFERROR(IF(Table_SummaryPI[[#This Row],[kWhSavings]]=\"\",\"\",$AU$18*Table_SummaryPI[[#This Row],[kWhSavings]]),0)","v":""},{"$f":"IFERROR(IF(Table_SummaryPI[[#This Row],[kWhSavings]]=\"\",\"\",$AU$22*Table_SummaryPI[[#This Row],[kWhSavings]]),0)","v":""},{"$f":"IFERROR(IF(MeasureCalc(Table_PI[[#This Row],[Hide:\nFormula Name]],Table_SummaryPI[[#This Row],[Quantity]],Table_PI[[#This Row],[List 1]],Table_PI[[#This Row],[List 2]],Table_PI[[#This Row],[List 3]],Table_PI[[#This Row],[Size]],Table_PI[[#This Row],[Input 1]],Table_PI[[#This Row],[Input 2]],Table_PI[[#This Row],[Input 3]],Table_PI[[#This Row],[Input 4]],'Customer Information'!$AR$12,200,ROW())<>\"No Rebate\",MeasureCalc(Table_PI[[#This Row],[Hide:\nFormula Name]],Table_SummaryPI[[#This Row],[Quantity]],Table_PI[[#This Row],[List 1]],Table_PI[[#This Row],[List 2]],Table_PI[[#This Row],[List 3]],Table_PI[[#This Row],[Size]],Table_PI[[#This Row],[Input 1]],Table_PI[[#This Row],[Input 2]],Table_PI[[#This Row],[Input 3]],Table_PI[[#This Row],[Input 4]],'Customer Information'!$AR$12,200,ROW()),\"\"),\"\")","v":""},{"$f":"IFERROR(IF(MeasureCalc(Table_PI[[#This Row],[Hide:\nFormula Name]],Table_SummaryPI[[#This Row],[Quantity]],Table_PI[[#This Row],[List 1]],Table_PI[[#This Row],[List 2]],Table_PI[[#This Row],[List 3]],Table_PI[[#This Row],[Size]],Table_PI[[#This Row],[Input 1]],Table_PI[[#This Row],[Input 2]],Table_PI[[#This Row],[Input 3]],Table_PI[[#This Row],[Input 4]],'Customer Information'!$AR$12,201,ROW())<>\"No Rebate\",MeasureCalc(Table_PI[[#This Row],[Hide:\nFormula Name]],Table_SummaryPI[[#This Row],[Quantity]],Table_PI[[#This Row],[List 1]],Table_PI[[#This Row],[List 2]],Table_PI[[#This Row],[List 3]],Table_PI[[#This Row],[Size]],Table_PI[[#This Row],[Input 1]],Table_PI[[#This Row],[Input 2]],Table_PI[[#This Row],[Input 3]],Table_PI[[#This Row],[Input 4]],'Customer Information'!$AR$12,201,ROW()),\"\"),\"\")","v":""}]
[{"$f":"Table_PI[[#This Row],[Line No.]]","v":""},{"$f":"IF(Table_SummaryPI[[#This Row],[MeassureCategory]]<>\"\",CONCATENATE(Table_SummaryPI[[#This Row],[MeassureCategory]],  \" - \", Table_SummaryPI[[#This Row],[ProposedMeasureCategory]],  \" - \", TEXT(Table_SummaryPI[[#This Row],[Size]],\"#,##0.00\"),\" \",Table_SummaryPI[[#This Row],[SizeUnit]]),\"\")","v":""},{"$f":"SUBSTITUTE(Table_PI[[#This Row],[Measure]],\"     \",\"\",1)","v":""},{"$f":"IF(Table_PI[[#This Row],[List 1]]<>\"\",Table_PI[[#This Row],[List 1]],\"\")","v":""},{"$f":"IF(Table_PI[[#This Row],[List 2]]<>\"\",Table_PI[[#This Row],[List 2]],\"\")","v":""},{"$f":"IF(Table_PI[[#This Row],[List 3]]<>\"\",Table_PI[[#This Row],[List 3]],\"\")","v":""},{"$f":"IF(Table_PI[[#This Row],[Manufacturer]]=\"\",\"\",Table_PI[[#This Row],[Manufacturer]])","v":""},{"$f":"IF(Table_PI[[#This Row],[Model Number]]=\"\",\"\",Table_PI[[#This Row],[Model Number]])","v":""},{"$f":"IF(Table_PI[[#This Row],[Serial Number(s)]]=\"\",\"\",Table_PI[[#This Row],[Serial Number(s)]])","v":""},null,{"$f":"IF(Table_PI[[#This Row],[Size]]=\"\",\"\",Table_PI[[#This Row],[Size]])","v":""},null,{"$f":"IFERROR(IF(AND(MeasureCalc(Table_PI[[#This Row],[Hide:\nFormula Name]],Table_SummaryPI[[#This Row],[Quantity]],Table_PI[[#This Row],[List 1]],Table_PI[[#This Row],[List 2]],Table_PI[[#This Row],[List 3]],Table_PI[[#This Row],[Size]],Table_PI[[#This Row],[Input 1]],Table_PI[[#This Row],[Input 2]],Table_PI[[#This Row],[Input 3]],Table_PI[[#This Row],[Input 4]],'Customer Information'!$AR$12,100,ROW())<>0,MeasureCalc(Table_PI[[#This Row],[Hide:\nFormula Name]],Table_SummaryPI[[#This Row],[Quantity]],Table_PI[[#This Row],[List 1]],Table_PI[[#This Row],[List 2]],Table_PI[[#This Row],[List 3]],Table_PI[[#This Row],[Size]],Table_PI[[#This Row],[Input 1]],Table_PI[[#This Row],[Input 2]],Table_PI[[#This Row],[Input 3]],Table_PI[[#This Row],[Input 4]],'Customer Information'!$AR$12,100,ROW())<>\"No Rebate\"),MeasureCalc(Table_PI[[#This Row],[Hide:\nFormula Name]],Table_SummaryPI[[#This Row],[Quantity]],Table_PI[[#This Row],[List 1]],Table_PI[[#This Row],[List 2]],Table_PI[[#This Row],[List 3]],Table_PI[[#This Row],[Size]],Table_PI[[#This Row],[Input 1]],Table_PI[[#This Row],[Input 2]],Table_PI[[#This Row],[Input 3]],Table_PI[[#This Row],[Input 4]],'Customer Information'!$AR$12,100,ROW()),\"\"),\"\")","v":""},{"$f":"IF(Table_PI[[#This Row],[Input 1]]<>\"\",Table_PI[[#This Row],[Input 1]],\"\")","v":""},null,{"$f":"IFERROR(IF(AND(MeasureCalc(Table_PI[[#This Row],[Hide:\nFormula Name]],Table_SummaryPI[[#This Row],[Quantity]],Table_PI[[#This Row],[List 1]],Table_PI[[#This Row],[List 2]],Table_PI[[#This Row],[List 3]],Table_PI[[#This Row],[Size]],Table_PI[[#This Row],[Input 1]],Table_PI[[#This Row],[Input 2]],Table_PI[[#This Row],[Input 3]],Table_PI[[#This Row],[Input 4]],'Customer Information'!$AR$12,101,ROW())<>0,MeasureCalc(Table_PI[[#This Row],[Hide:\nFormula Name]],Table_SummaryPI[[#This Row],[Quantity]],Table_PI[[#This Row],[List 1]],Table_PI[[#This Row],[List 2]],Table_PI[[#This Row],[List 3]],Table_PI[[#This Row],[Size]],Table_PI[[#This Row],[Input 1]],Table_PI[[#This Row],[Input 2]],Table_PI[[#This Row],[Input 3]],Table_PI[[#This Row],[Input 4]],'Customer Information'!$AR$12,101,ROW())<>\"No Rebate\"),MeasureCalc(Table_PI[[#This Row],[Hide:\nFormula Name]],Table_SummaryPI[[#This Row],[Quantity]],Table_PI[[#This Row],[List 1]],Table_PI[[#This Row],[List 2]],Table_PI[[#This Row],[List 3]],Table_PI[[#This Row],[Size]],Table_PI[[#This Row],[Input 1]],Table_PI[[#This Row],[Input 2]],Table_PI[[#This Row],[Input 3]],Table_PI[[#This Row],[Input 4]],'Customer Information'!$AR$12,101,ROW()),\"\"),\"\")","v":""},{"$f":"IF(Table_PI[[#This Row],[Input 2]]<>\"\",Table_PI[[#This Row],[Input 2]],\"\")","v":""},null,{"$f":"IFERROR(IF(AND(MeasureCalc(Table_PI[[#This Row],[Hide:\nFormula Name]],Table_SummaryPI[[#This Row],[Quantity]],Table_PI[[#This Row],[List 1]],Table_PI[[#This Row],[List 2]],Table_PI[[#This Row],[List 3]],Table_PI[[#This Row],[Size]],Table_PI[[#This Row],[Input 1]],Table_PI[[#This Row],[Input 2]],Table_PI[[#This Row],[Input 3]],Table_PI[[#This Row],[Input 4]],'Customer Information'!$AR$12,102,ROW())<>0,MeasureCalc(Table_PI[[#This Row],[Hide:\nFormula Name]],Table_SummaryPI[[#This Row],[Quantity]],Table_PI[[#This Row],[List 1]],Table_PI[[#This Row],[List 2]],Table_PI[[#This Row],[List 3]],Table_PI[[#This Row],[Size]],Table_PI[[#This Row],[Input 1]],Table_PI[[#This Row],[Input 2]],Table_PI[[#This Row],[Input 3]],Table_PI[[#This Row],[Input 4]],'Customer Information'!$AR$12,102,ROW())<>\"No Rebate\"),MeasureCalc(Table_PI[[#This Row],[Hide:\nFormula Name]],Table_SummaryPI[[#This Row],[Quantity]],Table_PI[[#This Row],[List 1]],Table_PI[[#This Row],[List 2]],Table_PI[[#This Row],[List 3]],Table_PI[[#This Row],[Size]],Table_PI[[#This Row],[Input 1]],Table_PI[[#This Row],[Input 2]],Table_PI[[#This Row],[Input 3]],Table_PI[[#This Row],[Input 4]],'Customer Information'!$AR$12,102,ROW()),\"\"),\"\")","v":""},{"$f":"IF(Table_PI[[#This Row],[Input 3]]<>\"\",Table_PI[[#This Row],[Input 3]],\"\")","v":""},null,{"$f":"IFERROR(IF(AND(MeasureCalc(Table_PI[[#This Row],[Hide:\nFormula Name]],Table_SummaryPI[[#This Row],[Quantity]],Table_PI[[#This Row],[List 1]],Table_PI[[#This Row],[List 2]],Table_PI[[#This Row],[List 3]],Table_PI[[#This Row],[Size]],Table_PI[[#This Row],[Input 1]],Table_PI[[#This Row],[Input 2]],Table_PI[[#This Row],[Input 3]],Table_PI[[#This Row],[Input 4]],'Customer Information'!$AR$12,103,ROW())<>0,MeasureCalc(Table_PI[[#This Row],[Hide:\nFormula Name]],Table_SummaryPI[[#This Row],[Quantity]],Table_PI[[#This Row],[List 1]],Table_PI[[#This Row],[List 2]],Table_PI[[#This Row],[List 3]],Table_PI[[#This Row],[Size]],Table_PI[[#This Row],[Input 1]],Table_PI[[#This Row],[Input 2]],Table_PI[[#This Row],[Input 3]],Table_PI[[#This Row],[Input 4]],'Customer Information'!$AR$12,103,ROW())<>\"No Rebate\"),MeasureCalc(Table_PI[[#This Row],[Hide:\nFormula Name]],Table_SummaryPI[[#This Row],[Quantity]],Table_PI[[#This Row],[List 1]],Table_PI[[#This Row],[List 2]],Table_PI[[#This Row],[List 3]],Table_PI[[#This Row],[Size]],Table_PI[[#This Row],[Input 1]],Table_PI[[#This Row],[Input 2]],Table_PI[[#This Row],[Input 3]],Table_PI[[#This Row],[Input 4]],'Customer Information'!$AR$12,103,ROW()),\"\"),\"\")","v":""},{"$f":"IF(Table_PI[[#This Row],[Input 4]]<>\"\",Table_PI[[#This Row],[Input 4]],\"\")","v":""},{"$f":"IF(Table_PI[[#This Row],[Quantity]]=\"\",\"\",Table_PI[[#This Row],[Quantity]])","v":""},{"$f":"IF(Table_PI[[#This Row],[Notes]]=\"\",\"\",Table_PI[[#This Row],[Notes]])","v":""},{"$f":"IF(OR(Table_PI[[#This Row],[Hide:\nBaseline kWh]]=\"\",Table_PI[[#This Row],[Hide:\nBaseline kWh]]=0),\"\",Table_PI[[#This Row],[Hide:\nBaseline kWh]])","v":""},{"$f":"IF(OR(Table_PI[[#This Row],[Hide:\nBaseline kW]]=\"\",Table_PI[[#This Row],[Hide:\nBaseline kW]]=0),\"\",Table_PI[[#This Row],[Hide:\nBaseline kW]])","v":""},{"$f":"IF(OR(Table_PI[[#This Row],[Hide:\nProposed kWh]]=\"\",Table_PI[[#This Row],[Hide:\nProposed kWh]]=0),\"\",Table_PI[[#This Row],[Hide:\nProposed kWh]])","v":""},{"$f":"IF(OR(Table_PI[[#This Row],[Hide:\nProposed kW]]=\"\",Table_PI[[#This Row],[Hide:\nProposed kW]]=0),\"\",Table_PI[[#This Row],[Hide:\nProposed kW]])","v":""},{"$f":"IF(OR(Table_PI[[#This Row],[Rebate]]=\"\",Table_PI[[#This Row],[Rebate]]=0),\"\",Table_PI[[#This Row],[Rebate]])","v":""},{"$f":"IF(OR(Table_PI[[#This Row],[Hide:\nIncremental Cost]]=\"\",Table_PI[[#This Row],[Hide:\nIncremental Cost]]=0),\"\",Table_PI[[#This Row],[Hide:\nIncremental Cost]])","v":""},{"$f":"IFERROR(IF(Table_SummaryPI[[#This Row],[kWhSavings]]=\"\",\"\",ROUND(Table_SummaryPI[[#This Row],[kWhSavings]]/$AG$401*'Customer Information'!$BC$17,2)),0)","v":""},{"$f":"IF(OR(Table_PI[[#This Row],[Annual kWh]]=\"\",Table_PI[[#This Row],[Annual kWh]]=0),\"\",Table_PI[[#This Row],[Annual kWh]])","v":""},{"$f":"IF(OR(Table_PI[[#This Row],[Peak kW]]=\"\",Table_PI[[#This Row],[Peak kW]]=0),\"\",Table_PI[[#This Row],[Peak kW]])","v":""},{"$f":"IFERROR(IF(Table_SummaryPI[[#This Row],[kWhSavings]]=\"\",\"\",$AU$9*Table_SummaryPI[[#This Row],[kWhSavings]]),0)","v":""},{"$f":"IFERROR(IF(Table_SummaryPI[[#This Row],[kWhSavings]]=\"\",\"\",$AU$14*Table_SummaryPI[[#This Row],[kWhSavings]]),0)","v":""},{"$f":"IFERROR(IF(Table_SummaryPI[[#This Row],[kWhSavings]]=\"\",\"\",$AU$18*Table_SummaryPI[[#This Row],[kWhSavings]]),0)","v":""},{"$f":"IFERROR(IF(Table_SummaryPI[[#This Row],[kWhSavings]]=\"\",\"\",$AU$22*Table_SummaryPI[[#This Row],[kWhSavings]]),0)","v":""},{"$f":"IFERROR(IF(MeasureCalc(Table_PI[[#This Row],[Hide:\nFormula Name]],Table_SummaryPI[[#This Row],[Quantity]],Table_PI[[#This Row],[List 1]],Table_PI[[#This Row],[List 2]],Table_PI[[#This Row],[List 3]],Table_PI[[#This Row],[Size]],Table_PI[[#This Row],[Input 1]],Table_PI[[#This Row],[Input 2]],Table_PI[[#This Row],[Input 3]],Table_PI[[#This Row],[Input 4]],'Customer Information'!$AR$12,200,ROW())<>\"No Rebate\",MeasureCalc(Table_PI[[#This Row],[Hide:\nFormula Name]],Table_SummaryPI[[#This Row],[Quantity]],Table_PI[[#This Row],[List 1]],Table_PI[[#This Row],[List 2]],Table_PI[[#This Row],[List 3]],Table_PI[[#This Row],[Size]],Table_PI[[#This Row],[Input 1]],Table_PI[[#This Row],[Input 2]],Table_PI[[#This Row],[Input 3]],Table_PI[[#This Row],[Input 4]],'Customer Information'!$AR$12,200,ROW()),\"\"),\"\")","v":""},{"$f":"IFERROR(IF(MeasureCalc(Table_PI[[#This Row],[Hide:\nFormula Name]],Table_SummaryPI[[#This Row],[Quantity]],Table_PI[[#This Row],[List 1]],Table_PI[[#This Row],[List 2]],Table_PI[[#This Row],[List 3]],Table_PI[[#This Row],[Size]],Table_PI[[#This Row],[Input 1]],Table_PI[[#This Row],[Input 2]],Table_PI[[#This Row],[Input 3]],Table_PI[[#This Row],[Input 4]],'Customer Information'!$AR$12,201,ROW())<>\"No Rebate\",MeasureCalc(Table_PI[[#This Row],[Hide:\nFormula Name]],Table_SummaryPI[[#This Row],[Quantity]],Table_PI[[#This Row],[List 1]],Table_PI[[#This Row],[List 2]],Table_PI[[#This Row],[List 3]],Table_PI[[#This Row],[Size]],Table_PI[[#This Row],[Input 1]],Table_PI[[#This Row],[Input 2]],Table_PI[[#This Row],[Input 3]],Table_PI[[#This Row],[Input 4]],'Customer Information'!$AR$12,201,ROW()),\"\"),\"\")","v":""}]
[{"$f":"Table_PI[[#This Row],[Line No.]]","v":""},{"$f":"IF(Table_SummaryPI[[#This Row],[MeassureCategory]]<>\"\",CONCATENATE(Table_SummaryPI[[#This Row],[MeassureCategory]],  \" - \", Table_SummaryPI[[#This Row],[ProposedMeasureCategory]],  \" - \", TEXT(Table_SummaryPI[[#This Row],[Size]],\"#,##0.00\"),\" \",Table_SummaryPI[[#This Row],[SizeUnit]]),\"\")","v":""},{"$f":"SUBSTITUTE(Table_PI[[#This Row],[Measure]],\"     \",\"\",1)","v":""},{"$f":"IF(Table_PI[[#This Row],[List 1]]<>\"\",Table_PI[[#This Row],[List 1]],\"\")","v":""},{"$f":"IF(Table_PI[[#This Row],[List 2]]<>\"\",Table_PI[[#This Row],[List 2]],\"\")","v":""},{"$f":"IF(Table_PI[[#This Row],[List 3]]<>\"\",Table_PI[[#This Row],[List 3]],\"\")","v":""},{"$f":"IF(Table_PI[[#This Row],[Manufacturer]]=\"\",\"\",Table_PI[[#This Row],[Manufacturer]])","v":""},{"$f":"IF(Table_PI[[#This Row],[Model Number]]=\"\",\"\",Table_PI[[#This Row],[Model Number]])","v":""},{"$f":"IF(Table_PI[[#This Row],[Serial Number(s)]]=\"\",\"\",Table_PI[[#This Row],[Serial Number(s)]])","v":""},null,{"$f":"IF(Table_PI[[#This Row],[Size]]=\"\",\"\",Table_PI[[#This Row],[Size]])","v":""},null,{"$f":"IFERROR(IF(AND(MeasureCalc(Table_PI[[#This Row],[Hide:\nFormula Name]],Table_SummaryPI[[#This Row],[Quantity]],Table_PI[[#This Row],[List 1]],Table_PI[[#This Row],[List 2]],Table_PI[[#This Row],[List 3]],Table_PI[[#This Row],[Size]],Table_PI[[#This Row],[Input 1]],Table_PI[[#This Row],[Input 2]],Table_PI[[#This Row],[Input 3]],Table_PI[[#This Row],[Input 4]],'Customer Information'!$AR$12,100,ROW())<>0,MeasureCalc(Table_PI[[#This Row],[Hide:\nFormula Name]],Table_SummaryPI[[#This Row],[Quantity]],Table_PI[[#This Row],[List 1]],Table_PI[[#This Row],[List 2]],Table_PI[[#This Row],[List 3]],Table_PI[[#This Row],[Size]],Table_PI[[#This Row],[Input 1]],Table_PI[[#This Row],[Input 2]],Table_PI[[#This Row],[Input 3]],Table_PI[[#This Row],[Input 4]],'Customer Information'!$AR$12,100,ROW())<>\"No Rebate\"),MeasureCalc(Table_PI[[#This Row],[Hide:\nFormula Name]],Table_SummaryPI[[#This Row],[Quantity]],Table_PI[[#This Row],[List 1]],Table_PI[[#This Row],[List 2]],Table_PI[[#This Row],[List 3]],Table_PI[[#This Row],[Size]],Table_PI[[#This Row],[Input 1]],Table_PI[[#This Row],[Input 2]],Table_PI[[#This Row],[Input 3]],Table_PI[[#This Row],[Input 4]],'Customer Information'!$AR$12,100,ROW()),\"\"),\"\")","v":""},{"$f":"IF(Table_PI[[#This Row],[Input 1]]<>\"\",Table_PI[[#This Row],[Input 1]],\"\")","v":""},null,{"$f":"IFERROR(IF(AND(MeasureCalc(Table_PI[[#This Row],[Hide:\nFormula Name]],Table_SummaryPI[[#This Row],[Quantity]],Table_PI[[#This Row],[List 1]],Table_PI[[#This Row],[List 2]],Table_PI[[#This Row],[List 3]],Table_PI[[#This Row],[Size]],Table_PI[[#This Row],[Input 1]],Table_PI[[#This Row],[Input 2]],Table_PI[[#This Row],[Input 3]],Table_PI[[#This Row],[Input 4]],'Customer Information'!$AR$12,101,ROW())<>0,MeasureCalc(Table_PI[[#This Row],[Hide:\nFormula Name]],Table_SummaryPI[[#This Row],[Quantity]],Table_PI[[#This Row],[List 1]],Table_PI[[#This Row],[List 2]],Table_PI[[#This Row],[List 3]],Table_PI[[#This Row],[Size]],Table_PI[[#This Row],[Input 1]],Table_PI[[#This Row],[Input 2]],Table_PI[[#This Row],[Input 3]],Table_PI[[#This Row],[Input 4]],'Customer Information'!$AR$12,101,ROW())<>\"No Rebate\"),MeasureCalc(Table_PI[[#This Row],[Hide:\nFormula Name]],Table_SummaryPI[[#This Row],[Quantity]],Table_PI[[#This Row],[List 1]],Table_PI[[#This Row],[List 2]],Table_PI[[#This Row],[List 3]],Table_PI[[#This Row],[Size]],Table_PI[[#This Row],[Input 1]],Table_PI[[#This Row],[Input 2]],Table_PI[[#This Row],[Input 3]],Table_PI[[#This Row],[Input 4]],'Customer Information'!$AR$12,101,ROW()),\"\"),\"\")","v":""},{"$f":"IF(Table_PI[[#This Row],[Input 2]]<>\"\",Table_PI[[#This Row],[Input 2]],\"\")","v":""},null,{"$f":"IFERROR(IF(AND(MeasureCalc(Table_PI[[#This Row],[Hide:\nFormula Name]],Table_SummaryPI[[#This Row],[Quantity]],Table_PI[[#This Row],[List 1]],Table_PI[[#This Row],[List 2]],Table_PI[[#This Row],[List 3]],Table_PI[[#This Row],[Size]],Table_PI[[#This Row],[Input 1]],Table_PI[[#This Row],[Input 2]],Table_PI[[#This Row],[Input 3]],Table_PI[[#This Row],[Input 4]],'Customer Information'!$AR$12,102,ROW())<>0,MeasureCalc(Table_PI[[#This Row],[Hide:\nFormula Name]],Table_SummaryPI[[#This Row],[Quantity]],Table_PI[[#This Row],[List 1]],Table_PI[[#This Row],[List 2]],Table_PI[[#This Row],[List 3]],Table_PI[[#This Row],[Size]],Table_PI[[#This Row],[Input 1]],Table_PI[[#This Row],[Input 2]],Table_PI[[#This Row],[Input 3]],Table_PI[[#This Row],[Input 4]],'Customer Information'!$AR$12,102,ROW())<>\"No Rebate\"),MeasureCalc(Table_PI[[#This Row],[Hide:\nFormula Name]],Table_SummaryPI[[#This Row],[Quantity]],Table_PI[[#This Row],[List 1]],Table_PI[[#This Row],[List 2]],Table_PI[[#This Row],[List 3]],Table_PI[[#This Row],[Size]],Table_PI[[#This Row],[Input 1]],Table_PI[[#This Row],[Input 2]],Table_PI[[#This Row],[Input 3]],Table_PI[[#This Row],[Input 4]],'Customer Information'!$AR$12,102,ROW()),\"\"),\"\")","v":""},{"$f":"IF(Table_PI[[#This Row],[Input 3]]<>\"\",Table_PI[[#This Row],[Input 3]],\"\")","v":""},null,{"$f":"IFERROR(IF(AND(MeasureCalc(Table_PI[[#This Row],[Hide:\nFormula Name]],Table_SummaryPI[[#This Row],[Quantity]],Table_PI[[#This Row],[List 1]],Table_PI[[#This Row],[List 2]],Table_PI[[#This Row],[List 3]],Table_PI[[#This Row],[Size]],Table_PI[[#This Row],[Input 1]],Table_PI[[#This Row],[Input 2]],Table_PI[[#This Row],[Input 3]],Table_PI[[#This Row],[Input 4]],'Customer Information'!$AR$12,103,ROW())<>0,MeasureCalc(Table_PI[[#This Row],[Hide:\nFormula Name]],Table_SummaryPI[[#This Row],[Quantity]],Table_PI[[#This Row],[List 1]],Table_PI[[#This Row],[List 2]],Table_PI[[#This Row],[List 3]],Table_PI[[#This Row],[Size]],Table_PI[[#This Row],[Input 1]],Table_PI[[#This Row],[Input 2]],Table_PI[[#This Row],[Input 3]],Table_PI[[#This Row],[Input 4]],'Customer Information'!$AR$12,103,ROW())<>\"No Rebate\"),MeasureCalc(Table_PI[[#This Row],[Hide:\nFormula Name]],Table_SummaryPI[[#This Row],[Quantity]],Table_PI[[#This Row],[List 1]],Table_PI[[#This Row],[List 2]],Table_PI[[#This Row],[List 3]],Table_PI[[#This Row],[Size]],Table_PI[[#This Row],[Input 1]],Table_PI[[#This Row],[Input 2]],Table_PI[[#This Row],[Input 3]],Table_PI[[#This Row],[Input 4]],'Customer Information'!$AR$12,103,ROW()),\"\"),\"\")","v":""},{"$f":"IF(Table_PI[[#This Row],[Input 4]]<>\"\",Table_PI[[#This Row],[Input 4]],\"\")","v":""},{"$f":"IF(Table_PI[[#This Row],[Quantity]]=\"\",\"\",Table_PI[[#This Row],[Quantity]])","v":""},{"$f":"IF(Table_PI[[#This Row],[Notes]]=\"\",\"\",Table_PI[[#This Row],[Notes]])","v":""},{"$f":"IF(OR(Table_PI[[#This Row],[Hide:\nBaseline kWh]]=\"\",Table_PI[[#This Row],[Hide:\nBaseline kWh]]=0),\"\",Table_PI[[#This Row],[Hide:\nBaseline kWh]])","v":""},{"$f":"IF(OR(Table_PI[[#This Row],[Hide:\nBaseline kW]]=\"\",Table_PI[[#This Row],[Hide:\nBaseline kW]]=0),\"\",Table_PI[[#This Row],[Hide:\nBaseline kW]])","v":""},{"$f":"IF(OR(Table_PI[[#This Row],[Hide:\nProposed kWh]]=\"\",Table_PI[[#This Row],[Hide:\nProposed kWh]]=0),\"\",Table_PI[[#This Row],[Hide:\nProposed kWh]])","v":""},{"$f":"IF(OR(Table_PI[[#This Row],[Hide:\nProposed kW]]=\"\",Table_PI[[#This Row],[Hide:\nProposed kW]]=0),\"\",Table_PI[[#This Row],[Hide:\nProposed kW]])","v":""},{"$f":"IF(OR(Table_PI[[#This Row],[Rebate]]=\"\",Table_PI[[#This Row],[Rebate]]=0),\"\",Table_PI[[#This Row],[Rebate]])","v":""},{"$f":"IF(OR(Table_PI[[#This Row],[Hide:\nIncremental Cost]]=\"\",Table_PI[[#This Row],[Hide:\nIncremental Cost]]=0),\"\",Table_PI[[#This Row],[Hide:\nIncremental Cost]])","v":""},{"$f":"IFERROR(IF(Table_SummaryPI[[#This Row],[kWhSavings]]=\"\",\"\",ROUND(Table_SummaryPI[[#This Row],[kWhSavings]]/$AG$401*'Customer Information'!$BC$17,2)),0)","v":""},{"$f":"IF(OR(Table_PI[[#This Row],[Annual kWh]]=\"\",Table_PI[[#This Row],[Annual kWh]]=0),\"\",Table_PI[[#This Row],[Annual kWh]])","v":""},{"$f":"IF(OR(Table_PI[[#This Row],[Peak kW]]=\"\",Table_PI[[#This Row],[Peak kW]]=0),\"\",Table_PI[[#This Row],[Peak kW]])","v":""},{"$f":"IFERROR(IF(Table_SummaryPI[[#This Row],[kWhSavings]]=\"\",\"\",$AU$9*Table_SummaryPI[[#This Row],[kWhSavings]]),0)","v":""},{"$f":"IFERROR(IF(Table_SummaryPI[[#This Row],[kWhSavings]]=\"\",\"\",$AU$14*Table_SummaryPI[[#This Row],[kWhSavings]]),0)","v":""},{"$f":"IFERROR(IF(Table_SummaryPI[[#This Row],[kWhSavings]]=\"\",\"\",$AU$18*Table_SummaryPI[[#This Row],[kWhSavings]]),0)","v":""},{"$f":"IFERROR(IF(Table_SummaryPI[[#This Row],[kWhSavings]]=\"\",\"\",$AU$22*Table_SummaryPI[[#This Row],[kWhSavings]]),0)","v":""},{"$f":"IFERROR(IF(MeasureCalc(Table_PI[[#This Row],[Hide:\nFormula Name]],Table_SummaryPI[[#This Row],[Quantity]],Table_PI[[#This Row],[List 1]],Table_PI[[#This Row],[List 2]],Table_PI[[#This Row],[List 3]],Table_PI[[#This Row],[Size]],Table_PI[[#This Row],[Input 1]],Table_PI[[#This Row],[Input 2]],Table_PI[[#This Row],[Input 3]],Table_PI[[#This Row],[Input 4]],'Customer Information'!$AR$12,200,ROW())<>\"No Rebate\",MeasureCalc(Table_PI[[#This Row],[Hide:\nFormula Name]],Table_SummaryPI[[#This Row],[Quantity]],Table_PI[[#This Row],[List 1]],Table_PI[[#This Row],[List 2]],Table_PI[[#This Row],[List 3]],Table_PI[[#This Row],[Size]],Table_PI[[#This Row],[Input 1]],Table_PI[[#This Row],[Input 2]],Table_PI[[#This Row],[Input 3]],Table_PI[[#This Row],[Input 4]],'Customer Information'!$AR$12,200,ROW()),\"\"),\"\")","v":""},{"$f":"IFERROR(IF(MeasureCalc(Table_PI[[#This Row],[Hide:\nFormula Name]],Table_SummaryPI[[#This Row],[Quantity]],Table_PI[[#This Row],[List 1]],Table_PI[[#This Row],[List 2]],Table_PI[[#This Row],[List 3]],Table_PI[[#This Row],[Size]],Table_PI[[#This Row],[Input 1]],Table_PI[[#This Row],[Input 2]],Table_PI[[#This Row],[Input 3]],Table_PI[[#This Row],[Input 4]],'Customer Information'!$AR$12,201,ROW())<>\"No Rebate\",MeasureCalc(Table_PI[[#This Row],[Hide:\nFormula Name]],Table_SummaryPI[[#This Row],[Quantity]],Table_PI[[#This Row],[List 1]],Table_PI[[#This Row],[List 2]],Table_PI[[#This Row],[List 3]],Table_PI[[#This Row],[Size]],Table_PI[[#This Row],[Input 1]],Table_PI[[#This Row],[Input 2]],Table_PI[[#This Row],[Input 3]],Table_PI[[#This Row],[Input 4]],'Customer Information'!$AR$12,201,ROW()),\"\"),\"\")","v":""}]
[{"$f":"Table_PI[[#This Row],[Line No.]]","v":""},{"$f":"IF(Table_SummaryPI[[#This Row],[MeassureCategory]]<>\"\",CONCATENATE(Table_SummaryPI[[#This Row],[MeassureCategory]],  \" - \", Table_SummaryPI[[#This Row],[ProposedMeasureCategory]],  \" - \", TEXT(Table_SummaryPI[[#This Row],[Size]],\"#,##0.00\"),\" \",Table_SummaryPI[[#This Row],[SizeUnit]]),\"\")","v":""},{"$f":"SUBSTITUTE(Table_PI[[#This Row],[Measure]],\"     \",\"\",1)","v":""},{"$f":"IF(Table_PI[[#This Row],[List 1]]<>\"\",Table_PI[[#This Row],[List 1]],\"\")","v":""},{"$f":"IF(Table_PI[[#This Row],[List 2]]<>\"\",Table_PI[[#This Row],[List 2]],\"\")","v":""},{"$f":"IF(Table_PI[[#This Row],[List 3]]<>\"\",Table_PI[[#This Row],[List 3]],\"\")","v":""},{"$f":"IF(Table_PI[[#This Row],[Manufacturer]]=\"\",\"\",Table_PI[[#This Row],[Manufacturer]])","v":""},{"$f":"IF(Table_PI[[#This Row],[Model Number]]=\"\",\"\",Table_PI[[#This Row],[Model Number]])","v":""},{"$f":"IF(Table_PI[[#This Row],[Serial Number(s)]]=\"\",\"\",Table_PI[[#This Row],[Serial Number(s)]])","v":""},null,{"$f":"IF(Table_PI[[#This Row],[Size]]=\"\",\"\",Table_PI[[#This Row],[Size]])","v":""},null,{"$f":"IFERROR(IF(AND(MeasureCalc(Table_PI[[#This Row],[Hide:\nFormula Name]],Table_SummaryPI[[#This Row],[Quantity]],Table_PI[[#This Row],[List 1]],Table_PI[[#This Row],[List 2]],Table_PI[[#This Row],[List 3]],Table_PI[[#This Row],[Size]],Table_PI[[#This Row],[Input 1]],Table_PI[[#This Row],[Input 2]],Table_PI[[#This Row],[Input 3]],Table_PI[[#This Row],[Input 4]],'Customer Information'!$AR$12,100,ROW())<>0,MeasureCalc(Table_PI[[#This Row],[Hide:\nFormula Name]],Table_SummaryPI[[#This Row],[Quantity]],Table_PI[[#This Row],[List 1]],Table_PI[[#This Row],[List 2]],Table_PI[[#This Row],[List 3]],Table_PI[[#This Row],[Size]],Table_PI[[#This Row],[Input 1]],Table_PI[[#This Row],[Input 2]],Table_PI[[#This Row],[Input 3]],Table_PI[[#This Row],[Input 4]],'Customer Information'!$AR$12,100,ROW())<>\"No Rebate\"),MeasureCalc(Table_PI[[#This Row],[Hide:\nFormula Name]],Table_SummaryPI[[#This Row],[Quantity]],Table_PI[[#This Row],[List 1]],Table_PI[[#This Row],[List 2]],Table_PI[[#This Row],[List 3]],Table_PI[[#This Row],[Size]],Table_PI[[#This Row],[Input 1]],Table_PI[[#This Row],[Input 2]],Table_PI[[#This Row],[Input 3]],Table_PI[[#This Row],[Input 4]],'Customer Information'!$AR$12,100,ROW()),\"\"),\"\")","v":""},{"$f":"IF(Table_PI[[#This Row],[Input 1]]<>\"\",Table_PI[[#This Row],[Input 1]],\"\")","v":""},null,{"$f":"IFERROR(IF(AND(MeasureCalc(Table_PI[[#This Row],[Hide:\nFormula Name]],Table_SummaryPI[[#This Row],[Quantity]],Table_PI[[#This Row],[List 1]],Table_PI[[#This Row],[List 2]],Table_PI[[#This Row],[List 3]],Table_PI[[#This Row],[Size]],Table_PI[[#This Row],[Input 1]],Table_PI[[#This Row],[Input 2]],Table_PI[[#This Row],[Input 3]],Table_PI[[#This Row],[Input 4]],'Customer Information'!$AR$12,101,ROW())<>0,MeasureCalc(Table_PI[[#This Row],[Hide:\nFormula Name]],Table_SummaryPI[[#This Row],[Quantity]],Table_PI[[#This Row],[List 1]],Table_PI[[#This Row],[List 2]],Table_PI[[#This Row],[List 3]],Table_PI[[#This Row],[Size]],Table_PI[[#This Row],[Input 1]],Table_PI[[#This Row],[Input 2]],Table_PI[[#This Row],[Input 3]],Table_PI[[#This Row],[Input 4]],'Customer Information'!$AR$12,101,ROW())<>\"No Rebate\"),MeasureCalc(Table_PI[[#This Row],[Hide:\nFormula Name]],Table_SummaryPI[[#This Row],[Quantity]],Table_PI[[#This Row],[List 1]],Table_PI[[#This Row],[List 2]],Table_PI[[#This Row],[List 3]],Table_PI[[#This Row],[Size]],Table_PI[[#This Row],[Input 1]],Table_PI[[#This Row],[Input 2]],Table_PI[[#This Row],[Input 3]],Table_PI[[#This Row],[Input 4]],'Customer Information'!$AR$12,101,ROW()),\"\"),\"\")","v":""},{"$f":"IF(Table_PI[[#This Row],[Input 2]]<>\"\",Table_PI[[#This Row],[Input 2]],\"\")","v":""},null,{"$f":"IFERROR(IF(AND(MeasureCalc(Table_PI[[#This Row],[Hide:\nFormula Name]],Table_SummaryPI[[#This Row],[Quantity]],Table_PI[[#This Row],[List 1]],Table_PI[[#This Row],[List 2]],Table_PI[[#This Row],[List 3]],Table_PI[[#This Row],[Size]],Table_PI[[#This Row],[Input 1]],Table_PI[[#This Row],[Input 2]],Table_PI[[#This Row],[Input 3]],Table_PI[[#This Row],[Input 4]],'Customer Information'!$AR$12,102,ROW())<>0,MeasureCalc(Table_PI[[#This Row],[Hide:\nFormula Name]],Table_SummaryPI[[#This Row],[Quantity]],Table_PI[[#This Row],[List 1]],Table_PI[[#This Row],[List 2]],Table_PI[[#This Row],[List 3]],Table_PI[[#This Row],[Size]],Table_PI[[#This Row],[Input 1]],Table_PI[[#This Row],[Input 2]],Table_PI[[#This Row],[Input 3]],Table_PI[[#This Row],[Input 4]],'Customer Information'!$AR$12,102,ROW())<>\"No Rebate\"),MeasureCalc(Table_PI[[#This Row],[Hide:\nFormula Name]],Table_SummaryPI[[#This Row],[Quantity]],Table_PI[[#This Row],[List 1]],Table_PI[[#This Row],[List 2]],Table_PI[[#This Row],[List 3]],Table_PI[[#This Row],[Size]],Table_PI[[#This Row],[Input 1]],Table_PI[[#This Row],[Input 2]],Table_PI[[#This Row],[Input 3]],Table_PI[[#This Row],[Input 4]],'Customer Information'!$AR$12,102,ROW()),\"\"),\"\")","v":""},{"$f":"IF(Table_PI[[#This Row],[Input 3]]<>\"\",Table_PI[[#This Row],[Input 3]],\"\")","v":""},null,{"$f":"IFERROR(IF(AND(MeasureCalc(Table_PI[[#This Row],[Hide:\nFormula Name]],Table_SummaryPI[[#This Row],[Quantity]],Table_PI[[#This Row],[List 1]],Table_PI[[#This Row],[List 2]],Table_PI[[#This Row],[List 3]],Table_PI[[#This Row],[Size]],Table_PI[[#This Row],[Input 1]],Table_PI[[#This Row],[Input 2]],Table_PI[[#This Row],[Input 3]],Table_PI[[#This Row],[Input 4]],'Customer Information'!$AR$12,103,ROW())<>0,MeasureCalc(Table_PI[[#This Row],[Hide:\nFormula Name]],Table_SummaryPI[[#This Row],[Quantity]],Table_PI[[#This Row],[List 1]],Table_PI[[#This Row],[List 2]],Table_PI[[#This Row],[List 3]],Table_PI[[#This Row],[Size]],Table_PI[[#This Row],[Input 1]],Table_PI[[#This Row],[Input 2]],Table_PI[[#This Row],[Input 3]],Table_PI[[#This Row],[Input 4]],'Customer Information'!$AR$12,103,ROW())<>\"No Rebate\"),MeasureCalc(Table_PI[[#This Row],[Hide:\nFormula Name]],Table_SummaryPI[[#This Row],[Quantity]],Table_PI[[#This Row],[List 1]],Table_PI[[#This Row],[List 2]],Table_PI[[#This Row],[List 3]],Table_PI[[#This Row],[Size]],Table_PI[[#This Row],[Input 1]],Table_PI[[#This Row],[Input 2]],Table_PI[[#This Row],[Input 3]],Table_PI[[#This Row],[Input 4]],'Customer Information'!$AR$12,103,ROW()),\"\"),\"\")","v":""},{"$f":"IF(Table_PI[[#This Row],[Input 4]]<>\"\",Table_PI[[#This Row],[Input 4]],\"\")","v":""},{"$f":"IF(Table_PI[[#This Row],[Quantity]]=\"\",\"\",Table_PI[[#This Row],[Quantity]])","v":""},{"$f":"IF(Table_PI[[#This Row],[Notes]]=\"\",\"\",Table_PI[[#This Row],[Notes]])","v":""},{"$f":"IF(OR(Table_PI[[#This Row],[Hide:\nBaseline kWh]]=\"\",Table_PI[[#This Row],[Hide:\nBaseline kWh]]=0),\"\",Table_PI[[#This Row],[Hide:\nBaseline kWh]])","v":""},{"$f":"IF(OR(Table_PI[[#This Row],[Hide:\nBaseline kW]]=\"\",Table_PI[[#This Row],[Hide:\nBaseline kW]]=0),\"\",Table_PI[[#This Row],[Hide:\nBaseline kW]])","v":""},{"$f":"IF(OR(Table_PI[[#This Row],[Hide:\nProposed kWh]]=\"\",Table_PI[[#This Row],[Hide:\nProposed kWh]]=0),\"\",Table_PI[[#This Row],[Hide:\nProposed kWh]])","v":""},{"$f":"IF(OR(Table_PI[[#This Row],[Hide:\nProposed kW]]=\"\",Table_PI[[#This Row],[Hide:\nProposed kW]]=0),\"\",Table_PI[[#This Row],[Hide:\nProposed kW]])","v":""},{"$f":"IF(OR(Table_PI[[#This Row],[Rebate]]=\"\",Table_PI[[#This Row],[Rebate]]=0),\"\",Table_PI[[#This Row],[Rebate]])","v":""},{"$f":"IF(OR(Table_PI[[#This Row],[Hide:\nIncremental Cost]]=\"\",Table_PI[[#This Row],[Hide:\nIncremental Cost]]=0),\"\",Table_PI[[#This Row],[Hide:\nIncremental Cost]])","v":""},{"$f":"IFERROR(IF(Table_SummaryPI[[#This Row],[kWhSavings]]=\"\",\"\",ROUND(Table_SummaryPI[[#This Row],[kWhSavings]]/$AG$401*'Customer Information'!$BC$17,2)),0)","v":""},{"$f":"IF(OR(Table_PI[[#This Row],[Annual kWh]]=\"\",Table_PI[[#This Row],[Annual kWh]]=0),\"\",Table_PI[[#This Row],[Annual kWh]])","v":""},{"$f":"IF(OR(Table_PI[[#This Row],[Peak kW]]=\"\",Table_PI[[#This Row],[Peak kW]]=0),\"\",Table_PI[[#This Row],[Peak kW]])","v":""},{"$f":"IFERROR(IF(Table_SummaryPI[[#This Row],[kWhSavings]]=\"\",\"\",$AU$9*Table_SummaryPI[[#This Row],[kWhSavings]]),0)","v":""},{"$f":"IFERROR(IF(Table_SummaryPI[[#This Row],[kWhSavings]]=\"\",\"\",$AU$14*Table_SummaryPI[[#This Row],[kWhSavings]]),0)","v":""},{"$f":"IFERROR(IF(Table_SummaryPI[[#This Row],[kWhSavings]]=\"\",\"\",$AU$18*Table_SummaryPI[[#This Row],[kWhSavings]]),0)","v":""},{"$f":"IFERROR(IF(Table_SummaryPI[[#This Row],[kWhSavings]]=\"\",\"\",$AU$22*Table_SummaryPI[[#This Row],[kWhSavings]]),0)","v":""},{"$f":"IFERROR(IF(MeasureCalc(Table_PI[[#This Row],[Hide:\nFormula Name]],Table_SummaryPI[[#This Row],[Quantity]],Table_PI[[#This Row],[List 1]],Table_PI[[#This Row],[List 2]],Table_PI[[#This Row],[List 3]],Table_PI[[#This Row],[Size]],Table_PI[[#This Row],[Input 1]],Table_PI[[#This Row],[Input 2]],Table_PI[[#This Row],[Input 3]],Table_PI[[#This Row],[Input 4]],'Customer Information'!$AR$12,200,ROW())<>\"No Rebate\",MeasureCalc(Table_PI[[#This Row],[Hide:\nFormula Name]],Table_SummaryPI[[#This Row],[Quantity]],Table_PI[[#This Row],[List 1]],Table_PI[[#This Row],[List 2]],Table_PI[[#This Row],[List 3]],Table_PI[[#This Row],[Size]],Table_PI[[#This Row],[Input 1]],Table_PI[[#This Row],[Input 2]],Table_PI[[#This Row],[Input 3]],Table_PI[[#This Row],[Input 4]],'Customer Information'!$AR$12,200,ROW()),\"\"),\"\")","v":""},{"$f":"IFERROR(IF(MeasureCalc(Table_PI[[#This Row],[Hide:\nFormula Name]],Table_SummaryPI[[#This Row],[Quantity]],Table_PI[[#This Row],[List 1]],Table_PI[[#This Row],[List 2]],Table_PI[[#This Row],[List 3]],Table_PI[[#This Row],[Size]],Table_PI[[#This Row],[Input 1]],Table_PI[[#This Row],[Input 2]],Table_PI[[#This Row],[Input 3]],Table_PI[[#This Row],[Input 4]],'Customer Information'!$AR$12,201,ROW())<>\"No Rebate\",MeasureCalc(Table_PI[[#This Row],[Hide:\nFormula Name]],Table_SummaryPI[[#This Row],[Quantity]],Table_PI[[#This Row],[List 1]],Table_PI[[#This Row],[List 2]],Table_PI[[#This Row],[List 3]],Table_PI[[#This Row],[Size]],Table_PI[[#This Row],[Input 1]],Table_PI[[#This Row],[Input 2]],Table_PI[[#This Row],[Input 3]],Table_PI[[#This Row],[Input 4]],'Customer Information'!$AR$12,201,ROW()),\"\"),\"\")","v":""}]
[{"$f":"Table_PI[[#This Row],[Line No.]]","v":""},{"$f":"IF(Table_SummaryPI[[#This Row],[MeassureCategory]]<>\"\",CONCATENATE(Table_SummaryPI[[#This Row],[MeassureCategory]],  \" - \", Table_SummaryPI[[#This Row],[ProposedMeasureCategory]],  \" - \", TEXT(Table_SummaryPI[[#This Row],[Size]],\"#,##0.00\"),\" \",Table_SummaryPI[[#This Row],[SizeUnit]]),\"\")","v":""},{"$f":"SUBSTITUTE(Table_PI[[#This Row],[Measure]],\"     \",\"\",1)","v":""},{"$f":"IF(Table_PI[[#This Row],[List 1]]<>\"\",Table_PI[[#This Row],[List 1]],\"\")","v":""},{"$f":"IF(Table_PI[[#This Row],[List 2]]<>\"\",Table_PI[[#This Row],[List 2]],\"\")","v":""},{"$f":"IF(Table_PI[[#This Row],[List 3]]<>\"\",Table_PI[[#This Row],[List 3]],\"\")","v":""},{"$f":"IF(Table_PI[[#This Row],[Manufacturer]]=\"\",\"\",Table_PI[[#This Row],[Manufacturer]])","v":""},{"$f":"IF(Table_PI[[#This Row],[Model Number]]=\"\",\"\",Table_PI[[#This Row],[Model Number]])","v":""},{"$f":"IF(Table_PI[[#This Row],[Serial Number(s)]]=\"\",\"\",Table_PI[[#This Row],[Serial Number(s)]])","v":""},null,{"$f":"IF(Table_PI[[#This Row],[Size]]=\"\",\"\",Table_PI[[#This Row],[Size]])","v":""},null,{"$f":"IFERROR(IF(AND(MeasureCalc(Table_PI[[#This Row],[Hide:\nFormula Name]],Table_SummaryPI[[#This Row],[Quantity]],Table_PI[[#This Row],[List 1]],Table_PI[[#This Row],[List 2]],Table_PI[[#This Row],[List 3]],Table_PI[[#This Row],[Size]],Table_PI[[#This Row],[Input 1]],Table_PI[[#This Row],[Input 2]],Table_PI[[#This Row],[Input 3]],Table_PI[[#This Row],[Input 4]],'Customer Information'!$AR$12,100,ROW())<>0,MeasureCalc(Table_PI[[#This Row],[Hide:\nFormula Name]],Table_SummaryPI[[#This Row],[Quantity]],Table_PI[[#This Row],[List 1]],Table_PI[[#This Row],[List 2]],Table_PI[[#This Row],[List 3]],Table_PI[[#This Row],[Size]],Table_PI[[#This Row],[Input 1]],Table_PI[[#This Row],[Input 2]],Table_PI[[#This Row],[Input 3]],Table_PI[[#This Row],[Input 4]],'Customer Information'!$AR$12,100,ROW())<>\"No Rebate\"),MeasureCalc(Table_PI[[#This Row],[Hide:\nFormula Name]],Table_SummaryPI[[#This Row],[Quantity]],Table_PI[[#This Row],[List 1]],Table_PI[[#This Row],[List 2]],Table_PI[[#This Row],[List 3]],Table_PI[[#This Row],[Size]],Table_PI[[#This Row],[Input 1]],Table_PI[[#This Row],[Input 2]],Table_PI[[#This Row],[Input 3]],Table_PI[[#This Row],[Input 4]],'Customer Information'!$AR$12,100,ROW()),\"\"),\"\")","v":""},{"$f":"IF(Table_PI[[#This Row],[Input 1]]<>\"\",Table_PI[[#This Row],[Input 1]],\"\")","v":""},null,{"$f":"IFERROR(IF(AND(MeasureCalc(Table_PI[[#This Row],[Hide:\nFormula Name]],Table_SummaryPI[[#This Row],[Quantity]],Table_PI[[#This Row],[List 1]],Table_PI[[#This Row],[List 2]],Table_PI[[#This Row],[List 3]],Table_PI[[#This Row],[Size]],Table_PI[[#This Row],[Input 1]],Table_PI[[#This Row],[Input 2]],Table_PI[[#This Row],[Input 3]],Table_PI[[#This Row],[Input 4]],'Customer Information'!$AR$12,101,ROW())<>0,MeasureCalc(Table_PI[[#This Row],[Hide:\nFormula Name]],Table_SummaryPI[[#This Row],[Quantity]],Table_PI[[#This Row],[List 1]],Table_PI[[#This Row],[List 2]],Table_PI[[#This Row],[List 3]],Table_PI[[#This Row],[Size]],Table_PI[[#This Row],[Input 1]],Table_PI[[#This Row],[Input 2]],Table_PI[[#This Row],[Input 3]],Table_PI[[#This Row],[Input 4]],'Customer Information'!$AR$12,101,ROW())<>\"No Rebate\"),MeasureCalc(Table_PI[[#This Row],[Hide:\nFormula Name]],Table_SummaryPI[[#This Row],[Quantity]],Table_PI[[#This Row],[List 1]],Table_PI[[#This Row],[List 2]],Table_PI[[#This Row],[List 3]],Table_PI[[#This Row],[Size]],Table_PI[[#This Row],[Input 1]],Table_PI[[#This Row],[Input 2]],Table_PI[[#This Row],[Input 3]],Table_PI[[#This Row],[Input 4]],'Customer Information'!$AR$12,101,ROW()),\"\"),\"\")","v":""},{"$f":"IF(Table_PI[[#This Row],[Input 2]]<>\"\",Table_PI[[#This Row],[Input 2]],\"\")","v":""},null,{"$f":"IFERROR(IF(AND(MeasureCalc(Table_PI[[#This Row],[Hide:\nFormula Name]],Table_SummaryPI[[#This Row],[Quantity]],Table_PI[[#This Row],[List 1]],Table_PI[[#This Row],[List 2]],Table_PI[[#This Row],[List 3]],Table_PI[[#This Row],[Size]],Table_PI[[#This Row],[Input 1]],Table_PI[[#This Row],[Input 2]],Table_PI[[#This Row],[Input 3]],Table_PI[[#This Row],[Input 4]],'Customer Information'!$AR$12,102,ROW())<>0,MeasureCalc(Table_PI[[#This Row],[Hide:\nFormula Name]],Table_SummaryPI[[#This Row],[Quantity]],Table_PI[[#This Row],[List 1]],Table_PI[[#This Row],[List 2]],Table_PI[[#This Row],[List 3]],Table_PI[[#This Row],[Size]],Table_PI[[#This Row],[Input 1]],Table_PI[[#This Row],[Input 2]],Table_PI[[#This Row],[Input 3]],Table_PI[[#This Row],[Input 4]],'Customer Information'!$AR$12,102,ROW())<>\"No Rebate\"),MeasureCalc(Table_PI[[#This Row],[Hide:\nFormula Name]],Table_SummaryPI[[#This Row],[Quantity]],Table_PI[[#This Row],[List 1]],Table_PI[[#This Row],[List 2]],Table_PI[[#This Row],[List 3]],Table_PI[[#This Row],[Size]],Table_PI[[#This Row],[Input 1]],Table_PI[[#This Row],[Input 2]],Table_PI[[#This Row],[Input 3]],Table_PI[[#This Row],[Input 4]],'Customer Information'!$AR$12,102,ROW()),\"\"),\"\")","v":""},{"$f":"IF(Table_PI[[#This Row],[Input 3]]<>\"\",Table_PI[[#This Row],[Input 3]],\"\")","v":""},null,{"$f":"IFERROR(IF(AND(MeasureCalc(Table_PI[[#This Row],[Hide:\nFormula Name]],Table_SummaryPI[[#This Row],[Quantity]],Table_PI[[#This Row],[List 1]],Table_PI[[#This Row],[List 2]],Table_PI[[#This Row],[List 3]],Table_PI[[#This Row],[Size]],Table_PI[[#This Row],[Input 1]],Table_PI[[#This Row],[Input 2]],Table_PI[[#This Row],[Input 3]],Table_PI[[#This Row],[Input 4]],'Customer Information'!$AR$12,103,ROW())<>0,MeasureCalc(Table_PI[[#This Row],[Hide:\nFormula Name]],Table_SummaryPI[[#This Row],[Quantity]],Table_PI[[#This Row],[List 1]],Table_PI[[#This Row],[List 2]],Table_PI[[#This Row],[List 3]],Table_PI[[#This Row],[Size]],Table_PI[[#This Row],[Input 1]],Table_PI[[#This Row],[Input 2]],Table_PI[[#This Row],[Input 3]],Table_PI[[#This Row],[Input 4]],'Customer Information'!$AR$12,103,ROW())<>\"No Rebate\"),MeasureCalc(Table_PI[[#This Row],[Hide:\nFormula Name]],Table_SummaryPI[[#This Row],[Quantity]],Table_PI[[#This Row],[List 1]],Table_PI[[#This Row],[List 2]],Table_PI[[#This Row],[List 3]],Table_PI[[#This Row],[Size]],Table_PI[[#This Row],[Input 1]],Table_PI[[#This Row],[Input 2]],Table_PI[[#This Row],[Input 3]],Table_PI[[#This Row],[Input 4]],'Customer Information'!$AR$12,103,ROW()),\"\"),\"\")","v":""},{"$f":"IF(Table_PI[[#This Row],[Input 4]]<>\"\",Table_PI[[#This Row],[Input 4]],\"\")","v":""},{"$f":"IF(Table_PI[[#This Row],[Quantity]]=\"\",\"\",Table_PI[[#This Row],[Quantity]])","v":""},{"$f":"IF(Table_PI[[#This Row],[Notes]]=\"\",\"\",Table_PI[[#This Row],[Notes]])","v":""},{"$f":"IF(OR(Table_PI[[#This Row],[Hide:\nBaseline kWh]]=\"\",Table_PI[[#This Row],[Hide:\nBaseline kWh]]=0),\"\",Table_PI[[#This Row],[Hide:\nBaseline kWh]])","v":""},{"$f":"IF(OR(Table_PI[[#This Row],[Hide:\nBaseline kW]]=\"\",Table_PI[[#This Row],[Hide:\nBaseline kW]]=0),\"\",Table_PI[[#This Row],[Hide:\nBaseline kW]])","v":""},{"$f":"IF(OR(Table_PI[[#This Row],[Hide:\nProposed kWh]]=\"\",Table_PI[[#This Row],[Hide:\nProposed kWh]]=0),\"\",Table_PI[[#This Row],[Hide:\nProposed kWh]])","v":""},{"$f":"IF(OR(Table_PI[[#This Row],[Hide:\nProposed kW]]=\"\",Table_PI[[#This Row],[Hide:\nProposed kW]]=0),\"\",Table_PI[[#This Row],[Hide:\nProposed kW]])","v":""},{"$f":"IF(OR(Table_PI[[#This Row],[Rebate]]=\"\",Table_PI[[#This Row],[Rebate]]=0),\"\",Table_PI[[#This Row],[Rebate]])","v":""},{"$f":"IF(OR(Table_PI[[#This Row],[Hide:\nIncremental Cost]]=\"\",Table_PI[[#This Row],[Hide:\nIncremental Cost]]=0),\"\",Table_PI[[#This Row],[Hide:\nIncremental Cost]])","v":""},{"$f":"IFERROR(IF(Table_SummaryPI[[#This Row],[kWhSavings]]=\"\",\"\",ROUND(Table_SummaryPI[[#This Row],[kWhSavings]]/$AG$401*'Customer Information'!$BC$17,2)),0)","v":""},{"$f":"IF(OR(Table_PI[[#This Row],[Annual kWh]]=\"\",Table_PI[[#This Row],[Annual kWh]]=0),\"\",Table_PI[[#This Row],[Annual kWh]])","v":""},{"$f":"IF(OR(Table_PI[[#This Row],[Peak kW]]=\"\",Table_PI[[#This Row],[Peak kW]]=0),\"\",Table_PI[[#This Row],[Peak kW]])","v":""},{"$f":"IFERROR(IF(Table_SummaryPI[[#This Row],[kWhSavings]]=\"\",\"\",$AU$9*Table_SummaryPI[[#This Row],[kWhSavings]]),0)","v":""},{"$f":"IFERROR(IF(Table_SummaryPI[[#This Row],[kWhSavings]]=\"\",\"\",$AU$14*Table_SummaryPI[[#This Row],[kWhSavings]]),0)","v":""},{"$f":"IFERROR(IF(Table_SummaryPI[[#This Row],[kWhSavings]]=\"\",\"\",$AU$18*Table_SummaryPI[[#This Row],[kWhSavings]]),0)","v":""},{"$f":"IFERROR(IF(Table_SummaryPI[[#This Row],[kWhSavings]]=\"\",\"\",$AU$22*Table_SummaryPI[[#This Row],[kWhSavings]]),0)","v":""},{"$f":"IFERROR(IF(MeasureCalc(Table_PI[[#This Row],[Hide:\nFormula Name]],Table_SummaryPI[[#This Row],[Quantity]],Table_PI[[#This Row],[List 1]],Table_PI[[#This Row],[List 2]],Table_PI[[#This Row],[List 3]],Table_PI[[#This Row],[Size]],Table_PI[[#This Row],[Input 1]],Table_PI[[#This Row],[Input 2]],Table_PI[[#This Row],[Input 3]],Table_PI[[#This Row],[Input 4]],'Customer Information'!$AR$12,200,ROW())<>\"No Rebate\",MeasureCalc(Table_PI[[#This Row],[Hide:\nFormula Name]],Table_SummaryPI[[#This Row],[Quantity]],Table_PI[[#This Row],[List 1]],Table_PI[[#This Row],[List 2]],Table_PI[[#This Row],[List 3]],Table_PI[[#This Row],[Size]],Table_PI[[#This Row],[Input 1]],Table_PI[[#This Row],[Input 2]],Table_PI[[#This Row],[Input 3]],Table_PI[[#This Row],[Input 4]],'Customer Information'!$AR$12,200,ROW()),\"\"),\"\")","v":""},{"$f":"IFERROR(IF(MeasureCalc(Table_PI[[#This Row],[Hide:\nFormula Name]],Table_SummaryPI[[#This Row],[Quantity]],Table_PI[[#This Row],[List 1]],Table_PI[[#This Row],[List 2]],Table_PI[[#This Row],[List 3]],Table_PI[[#This Row],[Size]],Table_PI[[#This Row],[Input 1]],Table_PI[[#This Row],[Input 2]],Table_PI[[#This Row],[Input 3]],Table_PI[[#This Row],[Input 4]],'Customer Information'!$AR$12,201,ROW())<>\"No Rebate\",MeasureCalc(Table_PI[[#This Row],[Hide:\nFormula Name]],Table_SummaryPI[[#This Row],[Quantity]],Table_PI[[#This Row],[List 1]],Table_PI[[#This Row],[List 2]],Table_PI[[#This Row],[List 3]],Table_PI[[#This Row],[Size]],Table_PI[[#This Row],[Input 1]],Table_PI[[#This Row],[Input 2]],Table_PI[[#This Row],[Input 3]],Table_PI[[#This Row],[Input 4]],'Customer Information'!$AR$12,201,ROW()),\"\"),\"\")","v":""}]
[{"$f":"Table_PI[[#This Row],[Line No.]]","v":""},{"$f":"IF(Table_SummaryPI[[#This Row],[MeassureCategory]]<>\"\",CONCATENATE(Table_SummaryPI[[#This Row],[MeassureCategory]],  \" - \", Table_SummaryPI[[#This Row],[ProposedMeasureCategory]],  \" - \", TEXT(Table_SummaryPI[[#This Row],[Size]],\"#,##0.00\"),\" \",Table_SummaryPI[[#This Row],[SizeUnit]]),\"\")","v":""},{"$f":"SUBSTITUTE(Table_PI[[#This Row],[Measure]],\"     \",\"\",1)","v":""},{"$f":"IF(Table_PI[[#This Row],[List 1]]<>\"\",Table_PI[[#This Row],[List 1]],\"\")","v":""},{"$f":"IF(Table_PI[[#This Row],[List 2]]<>\"\",Table_PI[[#This Row],[List 2]],\"\")","v":""},{"$f":"IF(Table_PI[[#This Row],[List 3]]<>\"\",Table_PI[[#This Row],[List 3]],\"\")","v":""},{"$f":"IF(Table_PI[[#This Row],[Manufacturer]]=\"\",\"\",Table_PI[[#This Row],[Manufacturer]])","v":""},{"$f":"IF(Table_PI[[#This Row],[Model Number]]=\"\",\"\",Table_PI[[#This Row],[Model Number]])","v":""},{"$f":"IF(Table_PI[[#This Row],[Serial Number(s)]]=\"\",\"\",Table_PI[[#This Row],[Serial Number(s)]])","v":""},null,{"$f":"IF(Table_PI[[#This Row],[Size]]=\"\",\"\",Table_PI[[#This Row],[Size]])","v":""},null,{"$f":"IFERROR(IF(AND(MeasureCalc(Table_PI[[#This Row],[Hide:\nFormula Name]],Table_SummaryPI[[#This Row],[Quantity]],Table_PI[[#This Row],[List 1]],Table_PI[[#This Row],[List 2]],Table_PI[[#This Row],[List 3]],Table_PI[[#This Row],[Size]],Table_PI[[#This Row],[Input 1]],Table_PI[[#This Row],[Input 2]],Table_PI[[#This Row],[Input 3]],Table_PI[[#This Row],[Input 4]],'Customer Information'!$AR$12,100,ROW())<>0,MeasureCalc(Table_PI[[#This Row],[Hide:\nFormula Name]],Table_SummaryPI[[#This Row],[Quantity]],Table_PI[[#This Row],[List 1]],Table_PI[[#This Row],[List 2]],Table_PI[[#This Row],[List 3]],Table_PI[[#This Row],[Size]],Table_PI[[#This Row],[Input 1]],Table_PI[[#This Row],[Input 2]],Table_PI[[#This Row],[Input 3]],Table_PI[[#This Row],[Input 4]],'Customer Information'!$AR$12,100,ROW())<>\"No Rebate\"),MeasureCalc(Table_PI[[#This Row],[Hide:\nFormula Name]],Table_SummaryPI[[#This Row],[Quantity]],Table_PI[[#This Row],[List 1]],Table_PI[[#This Row],[List 2]],Table_PI[[#This Row],[List 3]],Table_PI[[#This Row],[Size]],Table_PI[[#This Row],[Input 1]],Table_PI[[#This Row],[Input 2]],Table_PI[[#This Row],[Input 3]],Table_PI[[#This Row],[Input 4]],'Customer Information'!$AR$12,100,ROW()),\"\"),\"\")","v":""},{"$f":"IF(Table_PI[[#This Row],[Input 1]]<>\"\",Table_PI[[#This Row],[Input 1]],\"\")","v":""},null,{"$f":"IFERROR(IF(AND(MeasureCalc(Table_PI[[#This Row],[Hide:\nFormula Name]],Table_SummaryPI[[#This Row],[Quantity]],Table_PI[[#This Row],[List 1]],Table_PI[[#This Row],[List 2]],Table_PI[[#This Row],[List 3]],Table_PI[[#This Row],[Size]],Table_PI[[#This Row],[Input 1]],Table_PI[[#This Row],[Input 2]],Table_PI[[#This Row],[Input 3]],Table_PI[[#This Row],[Input 4]],'Customer Information'!$AR$12,101,ROW())<>0,MeasureCalc(Table_PI[[#This Row],[Hide:\nFormula Name]],Table_SummaryPI[[#This Row],[Quantity]],Table_PI[[#This Row],[List 1]],Table_PI[[#This Row],[List 2]],Table_PI[[#This Row],[List 3]],Table_PI[[#This Row],[Size]],Table_PI[[#This Row],[Input 1]],Table_PI[[#This Row],[Input 2]],Table_PI[[#This Row],[Input 3]],Table_PI[[#This Row],[Input 4]],'Customer Information'!$AR$12,101,ROW())<>\"No Rebate\"),MeasureCalc(Table_PI[[#This Row],[Hide:\nFormula Name]],Table_SummaryPI[[#This Row],[Quantity]],Table_PI[[#This Row],[List 1]],Table_PI[[#This Row],[List 2]],Table_PI[[#This Row],[List 3]],Table_PI[[#This Row],[Size]],Table_PI[[#This Row],[Input 1]],Table_PI[[#This Row],[Input 2]],Table_PI[[#This Row],[Input 3]],Table_PI[[#This Row],[Input 4]],'Customer Information'!$AR$12,101,ROW()),\"\"),\"\")","v":""},{"$f":"IF(Table_PI[[#This Row],[Input 2]]<>\"\",Table_PI[[#This Row],[Input 2]],\"\")","v":""},null,{"$f":"IFERROR(IF(AND(MeasureCalc(Table_PI[[#This Row],[Hide:\nFormula Name]],Table_SummaryPI[[#This Row],[Quantity]],Table_PI[[#This Row],[List 1]],Table_PI[[#This Row],[List 2]],Table_PI[[#This Row],[List 3]],Table_PI[[#This Row],[Size]],Table_PI[[#This Row],[Input 1]],Table_PI[[#This Row],[Input 2]],Table_PI[[#This Row],[Input 3]],Table_PI[[#This Row],[Input 4]],'Customer Information'!$AR$12,102,ROW())<>0,MeasureCalc(Table_PI[[#This Row],[Hide:\nFormula Name]],Table_SummaryPI[[#This Row],[Quantity]],Table_PI[[#This Row],[List 1]],Table_PI[[#This Row],[List 2]],Table_PI[[#This Row],[List 3]],Table_PI[[#This Row],[Size]],Table_PI[[#This Row],[Input 1]],Table_PI[[#This Row],[Input 2]],Table_PI[[#This Row],[Input 3]],Table_PI[[#This Row],[Input 4]],'Customer Information'!$AR$12,102,ROW())<>\"No Rebate\"),MeasureCalc(Table_PI[[#This Row],[Hide:\nFormula Name]],Table_SummaryPI[[#This Row],[Quantity]],Table_PI[[#This Row],[List 1]],Table_PI[[#This Row],[List 2]],Table_PI[[#This Row],[List 3]],Table_PI[[#This Row],[Size]],Table_PI[[#This Row],[Input 1]],Table_PI[[#This Row],[Input 2]],Table_PI[[#This Row],[Input 3]],Table_PI[[#This Row],[Input 4]],'Customer Information'!$AR$12,102,ROW()),\"\"),\"\")","v":""},{"$f":"IF(Table_PI[[#This Row],[Input 3]]<>\"\",Table_PI[[#This Row],[Input 3]],\"\")","v":""},null,{"$f":"IFERROR(IF(AND(MeasureCalc(Table_PI[[#This Row],[Hide:\nFormula Name]],Table_SummaryPI[[#This Row],[Quantity]],Table_PI[[#This Row],[List 1]],Table_PI[[#This Row],[List 2]],Table_PI[[#This Row],[List 3]],Table_PI[[#This Row],[Size]],Table_PI[[#This Row],[Input 1]],Table_PI[[#This Row],[Input 2]],Table_PI[[#This Row],[Input 3]],Table_PI[[#This Row],[Input 4]],'Customer Information'!$AR$12,103,ROW())<>0,MeasureCalc(Table_PI[[#This Row],[Hide:\nFormula Name]],Table_SummaryPI[[#This Row],[Quantity]],Table_PI[[#This Row],[List 1]],Table_PI[[#This Row],[List 2]],Table_PI[[#This Row],[List 3]],Table_PI[[#This Row],[Size]],Table_PI[[#This Row],[Input 1]],Table_PI[[#This Row],[Input 2]],Table_PI[[#This Row],[Input 3]],Table_PI[[#This Row],[Input 4]],'Customer Information'!$AR$12,103,ROW())<>\"No Rebate\"),MeasureCalc(Table_PI[[#This Row],[Hide:\nFormula Name]],Table_SummaryPI[[#This Row],[Quantity]],Table_PI[[#This Row],[List 1]],Table_PI[[#This Row],[List 2]],Table_PI[[#This Row],[List 3]],Table_PI[[#This Row],[Size]],Table_PI[[#This Row],[Input 1]],Table_PI[[#This Row],[Input 2]],Table_PI[[#This Row],[Input 3]],Table_PI[[#This Row],[Input 4]],'Customer Information'!$AR$12,103,ROW()),\"\"),\"\")","v":""},{"$f":"IF(Table_PI[[#This Row],[Input 4]]<>\"\",Table_PI[[#This Row],[Input 4]],\"\")","v":""},{"$f":"IF(Table_PI[[#This Row],[Quantity]]=\"\",\"\",Table_PI[[#This Row],[Quantity]])","v":""},{"$f":"IF(Table_PI[[#This Row],[Notes]]=\"\",\"\",Table_PI[[#This Row],[Notes]])","v":""},{"$f":"IF(OR(Table_PI[[#This Row],[Hide:\nBaseline kWh]]=\"\",Table_PI[[#This Row],[Hide:\nBaseline kWh]]=0),\"\",Table_PI[[#This Row],[Hide:\nBaseline kWh]])","v":""},{"$f":"IF(OR(Table_PI[[#This Row],[Hide:\nBaseline kW]]=\"\",Table_PI[[#This Row],[Hide:\nBaseline kW]]=0),\"\",Table_PI[[#This Row],[Hide:\nBaseline kW]])","v":""},{"$f":"IF(OR(Table_PI[[#This Row],[Hide:\nProposed kWh]]=\"\",Table_PI[[#This Row],[Hide:\nProposed kWh]]=0),\"\",Table_PI[[#This Row],[Hide:\nProposed kWh]])","v":""},{"$f":"IF(OR(Table_PI[[#This Row],[Hide:\nProposed kW]]=\"\",Table_PI[[#This Row],[Hide:\nProposed kW]]=0),\"\",Table_PI[[#This Row],[Hide:\nProposed kW]])","v":""},{"$f":"IF(OR(Table_PI[[#This Row],[Rebate]]=\"\",Table_PI[[#This Row],[Rebate]]=0),\"\",Table_PI[[#This Row],[Rebate]])","v":""},{"$f":"IF(OR(Table_PI[[#This Row],[Hide:\nIncremental Cost]]=\"\",Table_PI[[#This Row],[Hide:\nIncremental Cost]]=0),\"\",Table_PI[[#This Row],[Hide:\nIncremental Cost]])","v":""},{"$f":"IFERROR(IF(Table_SummaryPI[[#This Row],[kWhSavings]]=\"\",\"\",ROUND(Table_SummaryPI[[#This Row],[kWhSavings]]/$AG$401*'Customer Information'!$BC$17,2)),0)","v":""},{"$f":"IF(OR(Table_PI[[#This Row],[Annual kWh]]=\"\",Table_PI[[#This Row],[Annual kWh]]=0),\"\",Table_PI[[#This Row],[Annual kWh]])","v":""},{"$f":"IF(OR(Table_PI[[#This Row],[Peak kW]]=\"\",Table_PI[[#This Row],[Peak kW]]=0),\"\",Table_PI[[#This Row],[Peak kW]])","v":""},{"$f":"IFERROR(IF(Table_SummaryPI[[#This Row],[kWhSavings]]=\"\",\"\",$AU$9*Table_SummaryPI[[#This Row],[kWhSavings]]),0)","v":""},{"$f":"IFERROR(IF(Table_SummaryPI[[#This Row],[kWhSavings]]=\"\",\"\",$AU$14*Table_SummaryPI[[#This Row],[kWhSavings]]),0)","v":""},{"$f":"IFERROR(IF(Table_SummaryPI[[#This Row],[kWhSavings]]=\"\",\"\",$AU$18*Table_SummaryPI[[#This Row],[kWhSavings]]),0)","v":""},{"$f":"IFERROR(IF(Table_SummaryPI[[#This Row],[kWhSavings]]=\"\",\"\",$AU$22*Table_SummaryPI[[#This Row],[kWhSavings]]),0)","v":""},{"$f":"IFERROR(IF(MeasureCalc(Table_PI[[#This Row],[Hide:\nFormula Name]],Table_SummaryPI[[#This Row],[Quantity]],Table_PI[[#This Row],[List 1]],Table_PI[[#This Row],[List 2]],Table_PI[[#This Row],[List 3]],Table_PI[[#This Row],[Size]],Table_PI[[#This Row],[Input 1]],Table_PI[[#This Row],[Input 2]],Table_PI[[#This Row],[Input 3]],Table_PI[[#This Row],[Input 4]],'Customer Information'!$AR$12,200,ROW())<>\"No Rebate\",MeasureCalc(Table_PI[[#This Row],[Hide:\nFormula Name]],Table_SummaryPI[[#This Row],[Quantity]],Table_PI[[#This Row],[List 1]],Table_PI[[#This Row],[List 2]],Table_PI[[#This Row],[List 3]],Table_PI[[#This Row],[Size]],Table_PI[[#This Row],[Input 1]],Table_PI[[#This Row],[Input 2]],Table_PI[[#This Row],[Input 3]],Table_PI[[#This Row],[Input 4]],'Customer Information'!$AR$12,200,ROW()),\"\"),\"\")","v":""},{"$f":"IFERROR(IF(MeasureCalc(Table_PI[[#This Row],[Hide:\nFormula Name]],Table_SummaryPI[[#This Row],[Quantity]],Table_PI[[#This Row],[List 1]],Table_PI[[#This Row],[List 2]],Table_PI[[#This Row],[List 3]],Table_PI[[#This Row],[Size]],Table_PI[[#This Row],[Input 1]],Table_PI[[#This Row],[Input 2]],Table_PI[[#This Row],[Input 3]],Table_PI[[#This Row],[Input 4]],'Customer Information'!$AR$12,201,ROW())<>\"No Rebate\",MeasureCalc(Table_PI[[#This Row],[Hide:\nFormula Name]],Table_SummaryPI[[#This Row],[Quantity]],Table_PI[[#This Row],[List 1]],Table_PI[[#This Row],[List 2]],Table_PI[[#This Row],[List 3]],Table_PI[[#This Row],[Size]],Table_PI[[#This Row],[Input 1]],Table_PI[[#This Row],[Input 2]],Table_PI[[#This Row],[Input 3]],Table_PI[[#This Row],[Input 4]],'Customer Information'!$AR$12,201,ROW()),\"\"),\"\")","v":""}]
[{"$f":"Table_PI[[#This Row],[Line No.]]","v":""},{"$f":"IF(Table_SummaryPI[[#This Row],[MeassureCategory]]<>\"\",CONCATENATE(Table_SummaryPI[[#This Row],[MeassureCategory]],  \" - \", Table_SummaryPI[[#This Row],[ProposedMeasureCategory]],  \" - \", TEXT(Table_SummaryPI[[#This Row],[Size]],\"#,##0.00\"),\" \",Table_SummaryPI[[#This Row],[SizeUnit]]),\"\")","v":""},{"$f":"SUBSTITUTE(Table_PI[[#This Row],[Measure]],\"     \",\"\",1)","v":""},{"$f":"IF(Table_PI[[#This Row],[List 1]]<>\"\",Table_PI[[#This Row],[List 1]],\"\")","v":""},{"$f":"IF(Table_PI[[#This Row],[List 2]]<>\"\",Table_PI[[#This Row],[List 2]],\"\")","v":""},{"$f":"IF(Table_PI[[#This Row],[List 3]]<>\"\",Table_PI[[#This Row],[List 3]],\"\")","v":""},{"$f":"IF(Table_PI[[#This Row],[Manufacturer]]=\"\",\"\",Table_PI[[#This Row],[Manufacturer]])","v":""},{"$f":"IF(Table_PI[[#This Row],[Model Number]]=\"\",\"\",Table_PI[[#This Row],[Model Number]])","v":""},{"$f":"IF(Table_PI[[#This Row],[Serial Number(s)]]=\"\",\"\",Table_PI[[#This Row],[Serial Number(s)]])","v":""},null,{"$f":"IF(Table_PI[[#This Row],[Size]]=\"\",\"\",Table_PI[[#This Row],[Size]])","v":""},null,{"$f":"IFERROR(IF(AND(MeasureCalc(Table_PI[[#This Row],[Hide:\nFormula Name]],Table_SummaryPI[[#This Row],[Quantity]],Table_PI[[#This Row],[List 1]],Table_PI[[#This Row],[List 2]],Table_PI[[#This Row],[List 3]],Table_PI[[#This Row],[Size]],Table_PI[[#This Row],[Input 1]],Table_PI[[#This Row],[Input 2]],Table_PI[[#This Row],[Input 3]],Table_PI[[#This Row],[Input 4]],'Customer Information'!$AR$12,100,ROW())<>0,MeasureCalc(Table_PI[[#This Row],[Hide:\nFormula Name]],Table_SummaryPI[[#This Row],[Quantity]],Table_PI[[#This Row],[List 1]],Table_PI[[#This Row],[List 2]],Table_PI[[#This Row],[List 3]],Table_PI[[#This Row],[Size]],Table_PI[[#This Row],[Input 1]],Table_PI[[#This Row],[Input 2]],Table_PI[[#This Row],[Input 3]],Table_PI[[#This Row],[Input 4]],'Customer Information'!$AR$12,100,ROW())<>\"No Rebate\"),MeasureCalc(Table_PI[[#This Row],[Hide:\nFormula Name]],Table_SummaryPI[[#This Row],[Quantity]],Table_PI[[#This Row],[List 1]],Table_PI[[#This Row],[List 2]],Table_PI[[#This Row],[List 3]],Table_PI[[#This Row],[Size]],Table_PI[[#This Row],[Input 1]],Table_PI[[#This Row],[Input 2]],Table_PI[[#This Row],[Input 3]],Table_PI[[#This Row],[Input 4]],'Customer Information'!$AR$12,100,ROW()),\"\"),\"\")","v":""},{"$f":"IF(Table_PI[[#This Row],[Input 1]]<>\"\",Table_PI[[#This Row],[Input 1]],\"\")","v":""},null,{"$f":"IFERROR(IF(AND(MeasureCalc(Table_PI[[#This Row],[Hide:\nFormula Name]],Table_SummaryPI[[#This Row],[Quantity]],Table_PI[[#This Row],[List 1]],Table_PI[[#This Row],[List 2]],Table_PI[[#This Row],[List 3]],Table_PI[[#This Row],[Size]],Table_PI[[#This Row],[Input 1]],Table_PI[[#This Row],[Input 2]],Table_PI[[#This Row],[Input 3]],Table_PI[[#This Row],[Input 4]],'Customer Information'!$AR$12,101,ROW())<>0,MeasureCalc(Table_PI[[#This Row],[Hide:\nFormula Name]],Table_SummaryPI[[#This Row],[Quantity]],Table_PI[[#This Row],[List 1]],Table_PI[[#This Row],[List 2]],Table_PI[[#This Row],[List 3]],Table_PI[[#This Row],[Size]],Table_PI[[#This Row],[Input 1]],Table_PI[[#This Row],[Input 2]],Table_PI[[#This Row],[Input 3]],Table_PI[[#This Row],[Input 4]],'Customer Information'!$AR$12,101,ROW())<>\"No Rebate\"),MeasureCalc(Table_PI[[#This Row],[Hide:\nFormula Name]],Table_SummaryPI[[#This Row],[Quantity]],Table_PI[[#This Row],[List 1]],Table_PI[[#This Row],[List 2]],Table_PI[[#This Row],[List 3]],Table_PI[[#This Row],[Size]],Table_PI[[#This Row],[Input 1]],Table_PI[[#This Row],[Input 2]],Table_PI[[#This Row],[Input 3]],Table_PI[[#This Row],[Input 4]],'Customer Information'!$AR$12,101,ROW()),\"\"),\"\")","v":""},{"$f":"IF(Table_PI[[#This Row],[Input 2]]<>\"\",Table_PI[[#This Row],[Input 2]],\"\")","v":""},null,{"$f":"IFERROR(IF(AND(MeasureCalc(Table_PI[[#This Row],[Hide:\nFormula Name]],Table_SummaryPI[[#This Row],[Quantity]],Table_PI[[#This Row],[List 1]],Table_PI[[#This Row],[List 2]],Table_PI[[#This Row],[List 3]],Table_PI[[#This Row],[Size]],Table_PI[[#This Row],[Input 1]],Table_PI[[#This Row],[Input 2]],Table_PI[[#This Row],[Input 3]],Table_PI[[#This Row],[Input 4]],'Customer Information'!$AR$12,102,ROW())<>0,MeasureCalc(Table_PI[[#This Row],[Hide:\nFormula Name]],Table_SummaryPI[[#This Row],[Quantity]],Table_PI[[#This Row],[List 1]],Table_PI[[#This Row],[List 2]],Table_PI[[#This Row],[List 3]],Table_PI[[#This Row],[Size]],Table_PI[[#This Row],[Input 1]],Table_PI[[#This Row],[Input 2]],Table_PI[[#This Row],[Input 3]],Table_PI[[#This Row],[Input 4]],'Customer Information'!$AR$12,102,ROW())<>\"No Rebate\"),MeasureCalc(Table_PI[[#This Row],[Hide:\nFormula Name]],Table_SummaryPI[[#This Row],[Quantity]],Table_PI[[#This Row],[List 1]],Table_PI[[#This Row],[List 2]],Table_PI[[#This Row],[List 3]],Table_PI[[#This Row],[Size]],Table_PI[[#This Row],[Input 1]],Table_PI[[#This Row],[Input 2]],Table_PI[[#This Row],[Input 3]],Table_PI[[#This Row],[Input 4]],'Customer Information'!$AR$12,102,ROW()),\"\"),\"\")","v":""},{"$f":"IF(Table_PI[[#This Row],[Input 3]]<>\"\",Table_PI[[#This Row],[Input 3]],\"\")","v":""},null,{"$f":"IFERROR(IF(AND(MeasureCalc(Table_PI[[#This Row],[Hide:\nFormula Name]],Table_SummaryPI[[#This Row],[Quantity]],Table_PI[[#This Row],[List 1]],Table_PI[[#This Row],[List 2]],Table_PI[[#This Row],[List 3]],Table_PI[[#This Row],[Size]],Table_PI[[#This Row],[Input 1]],Table_PI[[#This Row],[Input 2]],Table_PI[[#This Row],[Input 3]],Table_PI[[#This Row],[Input 4]],'Customer Information'!$AR$12,103,ROW())<>0,MeasureCalc(Table_PI[[#This Row],[Hide:\nFormula Name]],Table_SummaryPI[[#This Row],[Quantity]],Table_PI[[#This Row],[List 1]],Table_PI[[#This Row],[List 2]],Table_PI[[#This Row],[List 3]],Table_PI[[#This Row],[Size]],Table_PI[[#This Row],[Input 1]],Table_PI[[#This Row],[Input 2]],Table_PI[[#This Row],[Input 3]],Table_PI[[#This Row],[Input 4]],'Customer Information'!$AR$12,103,ROW())<>\"No Rebate\"),MeasureCalc(Table_PI[[#This Row],[Hide:\nFormula Name]],Table_SummaryPI[[#This Row],[Quantity]],Table_PI[[#This Row],[List 1]],Table_PI[[#This Row],[List 2]],Table_PI[[#This Row],[List 3]],Table_PI[[#This Row],[Size]],Table_PI[[#This Row],[Input 1]],Table_PI[[#This Row],[Input 2]],Table_PI[[#This Row],[Input 3]],Table_PI[[#This Row],[Input 4]],'Customer Information'!$AR$12,103,ROW()),\"\"),\"\")","v":""},{"$f":"IF(Table_PI[[#This Row],[Input 4]]<>\"\",Table_PI[[#This Row],[Input 4]],\"\")","v":""},{"$f":"IF(Table_PI[[#This Row],[Quantity]]=\"\",\"\",Table_PI[[#This Row],[Quantity]])","v":""},{"$f":"IF(Table_PI[[#This Row],[Notes]]=\"\",\"\",Table_PI[[#This Row],[Notes]])","v":""},{"$f":"IF(OR(Table_PI[[#This Row],[Hide:\nBaseline kWh]]=\"\",Table_PI[[#This Row],[Hide:\nBaseline kWh]]=0),\"\",Table_PI[[#This Row],[Hide:\nBaseline kWh]])","v":""},{"$f":"IF(OR(Table_PI[[#This Row],[Hide:\nBaseline kW]]=\"\",Table_PI[[#This Row],[Hide:\nBaseline kW]]=0),\"\",Table_PI[[#This Row],[Hide:\nBaseline kW]])","v":""},{"$f":"IF(OR(Table_PI[[#This Row],[Hide:\nProposed kWh]]=\"\",Table_PI[[#This Row],[Hide:\nProposed kWh]]=0),\"\",Table_PI[[#This Row],[Hide:\nProposed kWh]])","v":""},{"$f":"IF(OR(Table_PI[[#This Row],[Hide:\nProposed kW]]=\"\",Table_PI[[#This Row],[Hide:\nProposed kW]]=0),\"\",Table_PI[[#This Row],[Hide:\nProposed kW]])","v":""},{"$f":"IF(OR(Table_PI[[#This Row],[Rebate]]=\"\",Table_PI[[#This Row],[Rebate]]=0),\"\",Table_PI[[#This Row],[Rebate]])","v":""},{"$f":"IF(OR(Table_PI[[#This Row],[Hide:\nIncremental Cost]]=\"\",Table_PI[[#This Row],[Hide:\nIncremental Cost]]=0),\"\",Table_PI[[#This Row],[Hide:\nIncremental Cost]])","v":""},{"$f":"IFERROR(IF(Table_SummaryPI[[#This Row],[kWhSavings]]=\"\",\"\",ROUND(Table_SummaryPI[[#This Row],[kWhSavings]]/$AG$401*'Customer Information'!$BC$17,2)),0)","v":""},{"$f":"IF(OR(Table_PI[[#This Row],[Annual kWh]]=\"\",Table_PI[[#This Row],[Annual kWh]]=0),\"\",Table_PI[[#This Row],[Annual kWh]])","v":""},{"$f":"IF(OR(Table_PI[[#This Row],[Peak kW]]=\"\",Table_PI[[#This Row],[Peak kW]]=0),\"\",Table_PI[[#This Row],[Peak kW]])","v":""},{"$f":"IFERROR(IF(Table_SummaryPI[[#This Row],[kWhSavings]]=\"\",\"\",$AU$9*Table_SummaryPI[[#This Row],[kWhSavings]]),0)","v":""},{"$f":"IFERROR(IF(Table_SummaryPI[[#This Row],[kWhSavings]]=\"\",\"\",$AU$14*Table_SummaryPI[[#This Row],[kWhSavings]]),0)","v":""},{"$f":"IFERROR(IF(Table_SummaryPI[[#This Row],[kWhSavings]]=\"\",\"\",$AU$18*Table_SummaryPI[[#This Row],[kWhSavings]]),0)","v":""},{"$f":"IFERROR(IF(Table_SummaryPI[[#This Row],[kWhSavings]]=\"\",\"\",$AU$22*Table_SummaryPI[[#This Row],[kWhSavings]]),0)","v":""},{"$f":"IFERROR(IF(MeasureCalc(Table_PI[[#This Row],[Hide:\nFormula Name]],Table_SummaryPI[[#This Row],[Quantity]],Table_PI[[#This Row],[List 1]],Table_PI[[#This Row],[List 2]],Table_PI[[#This Row],[List 3]],Table_PI[[#This Row],[Size]],Table_PI[[#This Row],[Input 1]],Table_PI[[#This Row],[Input 2]],Table_PI[[#This Row],[Input 3]],Table_PI[[#This Row],[Input 4]],'Customer Information'!$AR$12,200,ROW())<>\"No Rebate\",MeasureCalc(Table_PI[[#This Row],[Hide:\nFormula Name]],Table_SummaryPI[[#This Row],[Quantity]],Table_PI[[#This Row],[List 1]],Table_PI[[#This Row],[List 2]],Table_PI[[#This Row],[List 3]],Table_PI[[#This Row],[Size]],Table_PI[[#This Row],[Input 1]],Table_PI[[#This Row],[Input 2]],Table_PI[[#This Row],[Input 3]],Table_PI[[#This Row],[Input 4]],'Customer Information'!$AR$12,200,ROW()),\"\"),\"\")","v":""},{"$f":"IFERROR(IF(MeasureCalc(Table_PI[[#This Row],[Hide:\nFormula Name]],Table_SummaryPI[[#This Row],[Quantity]],Table_PI[[#This Row],[List 1]],Table_PI[[#This Row],[List 2]],Table_PI[[#This Row],[List 3]],Table_PI[[#This Row],[Size]],Table_PI[[#This Row],[Input 1]],Table_PI[[#This Row],[Input 2]],Table_PI[[#This Row],[Input 3]],Table_PI[[#This Row],[Input 4]],'Customer Information'!$AR$12,201,ROW())<>\"No Rebate\",MeasureCalc(Table_PI[[#This Row],[Hide:\nFormula Name]],Table_SummaryPI[[#This Row],[Quantity]],Table_PI[[#This Row],[List 1]],Table_PI[[#This Row],[List 2]],Table_PI[[#This Row],[List 3]],Table_PI[[#This Row],[Size]],Table_PI[[#This Row],[Input 1]],Table_PI[[#This Row],[Input 2]],Table_PI[[#This Row],[Input 3]],Table_PI[[#This Row],[Input 4]],'Customer Information'!$AR$12,201,ROW()),\"\"),\"\")","v":""}]
[{"$f":"Table_PI[[#This Row],[Line No.]]","v":""},{"$f":"IF(Table_SummaryPI[[#This Row],[MeassureCategory]]<>\"\",CONCATENATE(Table_SummaryPI[[#This Row],[MeassureCategory]],  \" - \", Table_SummaryPI[[#This Row],[ProposedMeasureCategory]],  \" - \", TEXT(Table_SummaryPI[[#This Row],[Size]],\"#,##0.00\"),\" \",Table_SummaryPI[[#This Row],[SizeUnit]]),\"\")","v":""},{"$f":"SUBSTITUTE(Table_PI[[#This Row],[Measure]],\"     \",\"\",1)","v":""},{"$f":"IF(Table_PI[[#This Row],[List 1]]<>\"\",Table_PI[[#This Row],[List 1]],\"\")","v":""},{"$f":"IF(Table_PI[[#This Row],[List 2]]<>\"\",Table_PI[[#This Row],[List 2]],\"\")","v":""},{"$f":"IF(Table_PI[[#This Row],[List 3]]<>\"\",Table_PI[[#This Row],[List 3]],\"\")","v":""},{"$f":"IF(Table_PI[[#This Row],[Manufacturer]]=\"\",\"\",Table_PI[[#This Row],[Manufacturer]])","v":""},{"$f":"IF(Table_PI[[#This Row],[Model Number]]=\"\",\"\",Table_PI[[#This Row],[Model Number]])","v":""},{"$f":"IF(Table_PI[[#This Row],[Serial Number(s)]]=\"\",\"\",Table_PI[[#This Row],[Serial Number(s)]])","v":""},null,{"$f":"IF(Table_PI[[#This Row],[Size]]=\"\",\"\",Table_PI[[#This Row],[Size]])","v":""},null,{"$f":"IFERROR(IF(AND(MeasureCalc(Table_PI[[#This Row],[Hide:\nFormula Name]],Table_SummaryPI[[#This Row],[Quantity]],Table_PI[[#This Row],[List 1]],Table_PI[[#This Row],[List 2]],Table_PI[[#This Row],[List 3]],Table_PI[[#This Row],[Size]],Table_PI[[#This Row],[Input 1]],Table_PI[[#This Row],[Input 2]],Table_PI[[#This Row],[Input 3]],Table_PI[[#This Row],[Input 4]],'Customer Information'!$AR$12,100,ROW())<>0,MeasureCalc(Table_PI[[#This Row],[Hide:\nFormula Name]],Table_SummaryPI[[#This Row],[Quantity]],Table_PI[[#This Row],[List 1]],Table_PI[[#This Row],[List 2]],Table_PI[[#This Row],[List 3]],Table_PI[[#This Row],[Size]],Table_PI[[#This Row],[Input 1]],Table_PI[[#This Row],[Input 2]],Table_PI[[#This Row],[Input 3]],Table_PI[[#This Row],[Input 4]],'Customer Information'!$AR$12,100,ROW())<>\"No Rebate\"),MeasureCalc(Table_PI[[#This Row],[Hide:\nFormula Name]],Table_SummaryPI[[#This Row],[Quantity]],Table_PI[[#This Row],[List 1]],Table_PI[[#This Row],[List 2]],Table_PI[[#This Row],[List 3]],Table_PI[[#This Row],[Size]],Table_PI[[#This Row],[Input 1]],Table_PI[[#This Row],[Input 2]],Table_PI[[#This Row],[Input 3]],Table_PI[[#This Row],[Input 4]],'Customer Information'!$AR$12,100,ROW()),\"\"),\"\")","v":""},{"$f":"IF(Table_PI[[#This Row],[Input 1]]<>\"\",Table_PI[[#This Row],[Input 1]],\"\")","v":""},null,{"$f":"IFERROR(IF(AND(MeasureCalc(Table_PI[[#This Row],[Hide:\nFormula Name]],Table_SummaryPI[[#This Row],[Quantity]],Table_PI[[#This Row],[List 1]],Table_PI[[#This Row],[List 2]],Table_PI[[#This Row],[List 3]],Table_PI[[#This Row],[Size]],Table_PI[[#This Row],[Input 1]],Table_PI[[#This Row],[Input 2]],Table_PI[[#This Row],[Input 3]],Table_PI[[#This Row],[Input 4]],'Customer Information'!$AR$12,101,ROW())<>0,MeasureCalc(Table_PI[[#This Row],[Hide:\nFormula Name]],Table_SummaryPI[[#This Row],[Quantity]],Table_PI[[#This Row],[List 1]],Table_PI[[#This Row],[List 2]],Table_PI[[#This Row],[List 3]],Table_PI[[#This Row],[Size]],Table_PI[[#This Row],[Input 1]],Table_PI[[#This Row],[Input 2]],Table_PI[[#This Row],[Input 3]],Table_PI[[#This Row],[Input 4]],'Customer Information'!$AR$12,101,ROW())<>\"No Rebate\"),MeasureCalc(Table_PI[[#This Row],[Hide:\nFormula Name]],Table_SummaryPI[[#This Row],[Quantity]],Table_PI[[#This Row],[List 1]],Table_PI[[#This Row],[List 2]],Table_PI[[#This Row],[List 3]],Table_PI[[#This Row],[Size]],Table_PI[[#This Row],[Input 1]],Table_PI[[#This Row],[Input 2]],Table_PI[[#This Row],[Input 3]],Table_PI[[#This Row],[Input 4]],'Customer Information'!$AR$12,101,ROW()),\"\"),\"\")","v":""},{"$f":"IF(Table_PI[[#This Row],[Input 2]]<>\"\",Table_PI[[#This Row],[Input 2]],\"\")","v":""},null,{"$f":"IFERROR(IF(AND(MeasureCalc(Table_PI[[#This Row],[Hide:\nFormula Name]],Table_SummaryPI[[#This Row],[Quantity]],Table_PI[[#This Row],[List 1]],Table_PI[[#This Row],[List 2]],Table_PI[[#This Row],[List 3]],Table_PI[[#This Row],[Size]],Table_PI[[#This Row],[Input 1]],Table_PI[[#This Row],[Input 2]],Table_PI[[#This Row],[Input 3]],Table_PI[[#This Row],[Input 4]],'Customer Information'!$AR$12,102,ROW())<>0,MeasureCalc(Table_PI[[#This Row],[Hide:\nFormula Name]],Table_SummaryPI[[#This Row],[Quantity]],Table_PI[[#This Row],[List 1]],Table_PI[[#This Row],[List 2]],Table_PI[[#This Row],[List 3]],Table_PI[[#This Row],[Size]],Table_PI[[#This Row],[Input 1]],Table_PI[[#This Row],[Input 2]],Table_PI[[#This Row],[Input 3]],Table_PI[[#This Row],[Input 4]],'Customer Information'!$AR$12,102,ROW())<>\"No Rebate\"),MeasureCalc(Table_PI[[#This Row],[Hide:\nFormula Name]],Table_SummaryPI[[#This Row],[Quantity]],Table_PI[[#This Row],[List 1]],Table_PI[[#This Row],[List 2]],Table_PI[[#This Row],[List 3]],Table_PI[[#This Row],[Size]],Table_PI[[#This Row],[Input 1]],Table_PI[[#This Row],[Input 2]],Table_PI[[#This Row],[Input 3]],Table_PI[[#This Row],[Input 4]],'Customer Information'!$AR$12,102,ROW()),\"\"),\"\")","v":""},{"$f":"IF(Table_PI[[#This Row],[Input 3]]<>\"\",Table_PI[[#This Row],[Input 3]],\"\")","v":""},null,{"$f":"IFERROR(IF(AND(MeasureCalc(Table_PI[[#This Row],[Hide:\nFormula Name]],Table_SummaryPI[[#This Row],[Quantity]],Table_PI[[#This Row],[List 1]],Table_PI[[#This Row],[List 2]],Table_PI[[#This Row],[List 3]],Table_PI[[#This Row],[Size]],Table_PI[[#This Row],[Input 1]],Table_PI[[#This Row],[Input 2]],Table_PI[[#This Row],[Input 3]],Table_PI[[#This Row],[Input 4]],'Customer Information'!$AR$12,103,ROW())<>0,MeasureCalc(Table_PI[[#This Row],[Hide:\nFormula Name]],Table_SummaryPI[[#This Row],[Quantity]],Table_PI[[#This Row],[List 1]],Table_PI[[#This Row],[List 2]],Table_PI[[#This Row],[List 3]],Table_PI[[#This Row],[Size]],Table_PI[[#This Row],[Input 1]],Table_PI[[#This Row],[Input 2]],Table_PI[[#This Row],[Input 3]],Table_PI[[#This Row],[Input 4]],'Customer Information'!$AR$12,103,ROW())<>\"No Rebate\"),MeasureCalc(Table_PI[[#This Row],[Hide:\nFormula Name]],Table_SummaryPI[[#This Row],[Quantity]],Table_PI[[#This Row],[List 1]],Table_PI[[#This Row],[List 2]],Table_PI[[#This Row],[List 3]],Table_PI[[#This Row],[Size]],Table_PI[[#This Row],[Input 1]],Table_PI[[#This Row],[Input 2]],Table_PI[[#This Row],[Input 3]],Table_PI[[#This Row],[Input 4]],'Customer Information'!$AR$12,103,ROW()),\"\"),\"\")","v":""},{"$f":"IF(Table_PI[[#This Row],[Input 4]]<>\"\",Table_PI[[#This Row],[Input 4]],\"\")","v":""},{"$f":"IF(Table_PI[[#This Row],[Quantity]]=\"\",\"\",Table_PI[[#This Row],[Quantity]])","v":""},{"$f":"IF(Table_PI[[#This Row],[Notes]]=\"\",\"\",Table_PI[[#This Row],[Notes]])","v":""},{"$f":"IF(OR(Table_PI[[#This Row],[Hide:\nBaseline kWh]]=\"\",Table_PI[[#This Row],[Hide:\nBaseline kWh]]=0),\"\",Table_PI[[#This Row],[Hide:\nBaseline kWh]])","v":""},{"$f":"IF(OR(Table_PI[[#This Row],[Hide:\nBaseline kW]]=\"\",Table_PI[[#This Row],[Hide:\nBaseline kW]]=0),\"\",Table_PI[[#This Row],[Hide:\nBaseline kW]])","v":""},{"$f":"IF(OR(Table_PI[[#This Row],[Hide:\nProposed kWh]]=\"\",Table_PI[[#This Row],[Hide:\nProposed kWh]]=0),\"\",Table_PI[[#This Row],[Hide:\nProposed kWh]])","v":""},{"$f":"IF(OR(Table_PI[[#This Row],[Hide:\nProposed kW]]=\"\",Table_PI[[#This Row],[Hide:\nProposed kW]]=0),\"\",Table_PI[[#This Row],[Hide:\nProposed kW]])","v":""},{"$f":"IF(OR(Table_PI[[#This Row],[Rebate]]=\"\",Table_PI[[#This Row],[Rebate]]=0),\"\",Table_PI[[#This Row],[Rebate]])","v":""},{"$f":"IF(OR(Table_PI[[#This Row],[Hide:\nIncremental Cost]]=\"\",Table_PI[[#This Row],[Hide:\nIncremental Cost]]=0),\"\",Table_PI[[#This Row],[Hide:\nIncremental Cost]])","v":""},{"$f":"IFERROR(IF(Table_SummaryPI[[#This Row],[kWhSavings]]=\"\",\"\",ROUND(Table_SummaryPI[[#This Row],[kWhSavings]]/$AG$401*'Customer Information'!$BC$17,2)),0)","v":""},{"$f":"IF(OR(Table_PI[[#This Row],[Annual kWh]]=\"\",Table_PI[[#This Row],[Annual kWh]]=0),\"\",Table_PI[[#This Row],[Annual kWh]])","v":""},{"$f":"IF(OR(Table_PI[[#This Row],[Peak kW]]=\"\",Table_PI[[#This Row],[Peak kW]]=0),\"\",Table_PI[[#This Row],[Peak kW]])","v":""},{"$f":"IFERROR(IF(Table_SummaryPI[[#This Row],[kWhSavings]]=\"\",\"\",$AU$9*Table_SummaryPI[[#This Row],[kWhSavings]]),0)","v":""},{"$f":"IFERROR(IF(Table_SummaryPI[[#This Row],[kWhSavings]]=\"\",\"\",$AU$14*Table_SummaryPI[[#This Row],[kWhSavings]]),0)","v":""},{"$f":"IFERROR(IF(Table_SummaryPI[[#This Row],[kWhSavings]]=\"\",\"\",$AU$18*Table_SummaryPI[[#This Row],[kWhSavings]]),0)","v":""},{"$f":"IFERROR(IF(Table_SummaryPI[[#This Row],[kWhSavings]]=\"\",\"\",$AU$22*Table_SummaryPI[[#This Row],[kWhSavings]]),0)","v":""},{"$f":"IFERROR(IF(MeasureCalc(Table_PI[[#This Row],[Hide:\nFormula Name]],Table_SummaryPI[[#This Row],[Quantity]],Table_PI[[#This Row],[List 1]],Table_PI[[#This Row],[List 2]],Table_PI[[#This Row],[List 3]],Table_PI[[#This Row],[Size]],Table_PI[[#This Row],[Input 1]],Table_PI[[#This Row],[Input 2]],Table_PI[[#This Row],[Input 3]],Table_PI[[#This Row],[Input 4]],'Customer Information'!$AR$12,200,ROW())<>\"No Rebate\",MeasureCalc(Table_PI[[#This Row],[Hide:\nFormula Name]],Table_SummaryPI[[#This Row],[Quantity]],Table_PI[[#This Row],[List 1]],Table_PI[[#This Row],[List 2]],Table_PI[[#This Row],[List 3]],Table_PI[[#This Row],[Size]],Table_PI[[#This Row],[Input 1]],Table_PI[[#This Row],[Input 2]],Table_PI[[#This Row],[Input 3]],Table_PI[[#This Row],[Input 4]],'Customer Information'!$AR$12,200,ROW()),\"\"),\"\")","v":""},{"$f":"IFERROR(IF(MeasureCalc(Table_PI[[#This Row],[Hide:\nFormula Name]],Table_SummaryPI[[#This Row],[Quantity]],Table_PI[[#This Row],[List 1]],Table_PI[[#This Row],[List 2]],Table_PI[[#This Row],[List 3]],Table_PI[[#This Row],[Size]],Table_PI[[#This Row],[Input 1]],Table_PI[[#This Row],[Input 2]],Table_PI[[#This Row],[Input 3]],Table_PI[[#This Row],[Input 4]],'Customer Information'!$AR$12,201,ROW())<>\"No Rebate\",MeasureCalc(Table_PI[[#This Row],[Hide:\nFormula Name]],Table_SummaryPI[[#This Row],[Quantity]],Table_PI[[#This Row],[List 1]],Table_PI[[#This Row],[List 2]],Table_PI[[#This Row],[List 3]],Table_PI[[#This Row],[Size]],Table_PI[[#This Row],[Input 1]],Table_PI[[#This Row],[Input 2]],Table_PI[[#This Row],[Input 3]],Table_PI[[#This Row],[Input 4]],'Customer Information'!$AR$12,201,ROW()),\"\"),\"\")","v":""}]
[{"$f":"Table_PI[[#This Row],[Line No.]]","v":""},{"$f":"IF(Table_SummaryPI[[#This Row],[MeassureCategory]]<>\"\",CONCATENATE(Table_SummaryPI[[#This Row],[MeassureCategory]],  \" - \", Table_SummaryPI[[#This Row],[ProposedMeasureCategory]],  \" - \", TEXT(Table_SummaryPI[[#This Row],[Size]],\"#,##0.00\"),\" \",Table_SummaryPI[[#This Row],[SizeUnit]]),\"\")","v":""},{"$f":"SUBSTITUTE(Table_PI[[#This Row],[Measure]],\"     \",\"\",1)","v":""},{"$f":"IF(Table_PI[[#This Row],[List 1]]<>\"\",Table_PI[[#This Row],[List 1]],\"\")","v":""},{"$f":"IF(Table_PI[[#This Row],[List 2]]<>\"\",Table_PI[[#This Row],[List 2]],\"\")","v":""},{"$f":"IF(Table_PI[[#This Row],[List 3]]<>\"\",Table_PI[[#This Row],[List 3]],\"\")","v":""},{"$f":"IF(Table_PI[[#This Row],[Manufacturer]]=\"\",\"\",Table_PI[[#This Row],[Manufacturer]])","v":""},{"$f":"IF(Table_PI[[#This Row],[Model Number]]=\"\",\"\",Table_PI[[#This Row],[Model Number]])","v":""},{"$f":"IF(Table_PI[[#This Row],[Serial Number(s)]]=\"\",\"\",Table_PI[[#This Row],[Serial Number(s)]])","v":""},null,{"$f":"IF(Table_PI[[#This Row],[Size]]=\"\",\"\",Table_PI[[#This Row],[Size]])","v":""},null,{"$f":"IFERROR(IF(AND(MeasureCalc(Table_PI[[#This Row],[Hide:\nFormula Name]],Table_SummaryPI[[#This Row],[Quantity]],Table_PI[[#This Row],[List 1]],Table_PI[[#This Row],[List 2]],Table_PI[[#This Row],[List 3]],Table_PI[[#This Row],[Size]],Table_PI[[#This Row],[Input 1]],Table_PI[[#This Row],[Input 2]],Table_PI[[#This Row],[Input 3]],Table_PI[[#This Row],[Input 4]],'Customer Information'!$AR$12,100,ROW())<>0,MeasureCalc(Table_PI[[#This Row],[Hide:\nFormula Name]],Table_SummaryPI[[#This Row],[Quantity]],Table_PI[[#This Row],[List 1]],Table_PI[[#This Row],[List 2]],Table_PI[[#This Row],[List 3]],Table_PI[[#This Row],[Size]],Table_PI[[#This Row],[Input 1]],Table_PI[[#This Row],[Input 2]],Table_PI[[#This Row],[Input 3]],Table_PI[[#This Row],[Input 4]],'Customer Information'!$AR$12,100,ROW())<>\"No Rebate\"),MeasureCalc(Table_PI[[#This Row],[Hide:\nFormula Name]],Table_SummaryPI[[#This Row],[Quantity]],Table_PI[[#This Row],[List 1]],Table_PI[[#This Row],[List 2]],Table_PI[[#This Row],[List 3]],Table_PI[[#This Row],[Size]],Table_PI[[#This Row],[Input 1]],Table_PI[[#This Row],[Input 2]],Table_PI[[#This Row],[Input 3]],Table_PI[[#This Row],[Input 4]],'Customer Information'!$AR$12,100,ROW()),\"\"),\"\")","v":""},{"$f":"IF(Table_PI[[#This Row],[Input 1]]<>\"\",Table_PI[[#This Row],[Input 1]],\"\")","v":""},null,{"$f":"IFERROR(IF(AND(MeasureCalc(Table_PI[[#This Row],[Hide:\nFormula Name]],Table_SummaryPI[[#This Row],[Quantity]],Table_PI[[#This Row],[List 1]],Table_PI[[#This Row],[List 2]],Table_PI[[#This Row],[List 3]],Table_PI[[#This Row],[Size]],Table_PI[[#This Row],[Input 1]],Table_PI[[#This Row],[Input 2]],Table_PI[[#This Row],[Input 3]],Table_PI[[#This Row],[Input 4]],'Customer Information'!$AR$12,101,ROW())<>0,MeasureCalc(Table_PI[[#This Row],[Hide:\nFormula Name]],Table_SummaryPI[[#This Row],[Quantity]],Table_PI[[#This Row],[List 1]],Table_PI[[#This Row],[List 2]],Table_PI[[#This Row],[List 3]],Table_PI[[#This Row],[Size]],Table_PI[[#This Row],[Input 1]],Table_PI[[#This Row],[Input 2]],Table_PI[[#This Row],[Input 3]],Table_PI[[#This Row],[Input 4]],'Customer Information'!$AR$12,101,ROW())<>\"No Rebate\"),MeasureCalc(Table_PI[[#This Row],[Hide:\nFormula Name]],Table_SummaryPI[[#This Row],[Quantity]],Table_PI[[#This Row],[List 1]],Table_PI[[#This Row],[List 2]],Table_PI[[#This Row],[List 3]],Table_PI[[#This Row],[Size]],Table_PI[[#This Row],[Input 1]],Table_PI[[#This Row],[Input 2]],Table_PI[[#This Row],[Input 3]],Table_PI[[#This Row],[Input 4]],'Customer Information'!$AR$12,101,ROW()),\"\"),\"\")","v":""},{"$f":"IF(Table_PI[[#This Row],[Input 2]]<>\"\",Table_PI[[#This Row],[Input 2]],\"\")","v":""},null,{"$f":"IFERROR(IF(AND(MeasureCalc(Table_PI[[#This Row],[Hide:\nFormula Name]],Table_SummaryPI[[#This Row],[Quantity]],Table_PI[[#This Row],[List 1]],Table_PI[[#This Row],[List 2]],Table_PI[[#This Row],[List 3]],Table_PI[[#This Row],[Size]],Table_PI[[#This Row],[Input 1]],Table_PI[[#This Row],[Input 2]],Table_PI[[#This Row],[Input 3]],Table_PI[[#This Row],[Input 4]],'Customer Information'!$AR$12,102,ROW())<>0,MeasureCalc(Table_PI[[#This Row],[Hide:\nFormula Name]],Table_SummaryPI[[#This Row],[Quantity]],Table_PI[[#This Row],[List 1]],Table_PI[[#This Row],[List 2]],Table_PI[[#This Row],[List 3]],Table_PI[[#This Row],[Size]],Table_PI[[#This Row],[Input 1]],Table_PI[[#This Row],[Input 2]],Table_PI[[#This Row],[Input 3]],Table_PI[[#This Row],[Input 4]],'Customer Information'!$AR$12,102,ROW())<>\"No Rebate\"),MeasureCalc(Table_PI[[#This Row],[Hide:\nFormula Name]],Table_SummaryPI[[#This Row],[Quantity]],Table_PI[[#This Row],[List 1]],Table_PI[[#This Row],[List 2]],Table_PI[[#This Row],[List 3]],Table_PI[[#This Row],[Size]],Table_PI[[#This Row],[Input 1]],Table_PI[[#This Row],[Input 2]],Table_PI[[#This Row],[Input 3]],Table_PI[[#This Row],[Input 4]],'Customer Information'!$AR$12,102,ROW()),\"\"),\"\")","v":""},{"$f":"IF(Table_PI[[#This Row],[Input 3]]<>\"\",Table_PI[[#This Row],[Input 3]],\"\")","v":""},null,{"$f":"IFERROR(IF(AND(MeasureCalc(Table_PI[[#This Row],[Hide:\nFormula Name]],Table_SummaryPI[[#This Row],[Quantity]],Table_PI[[#This Row],[List 1]],Table_PI[[#This Row],[List 2]],Table_PI[[#This Row],[List 3]],Table_PI[[#This Row],[Size]],Table_PI[[#This Row],[Input 1]],Table_PI[[#This Row],[Input 2]],Table_PI[[#This Row],[Input 3]],Table_PI[[#This Row],[Input 4]],'Customer Information'!$AR$12,103,ROW())<>0,MeasureCalc(Table_PI[[#This Row],[Hide:\nFormula Name]],Table_SummaryPI[[#This Row],[Quantity]],Table_PI[[#This Row],[List 1]],Table_PI[[#This Row],[List 2]],Table_PI[[#This Row],[List 3]],Table_PI[[#This Row],[Size]],Table_PI[[#This Row],[Input 1]],Table_PI[[#This Row],[Input 2]],Table_PI[[#This Row],[Input 3]],Table_PI[[#This Row],[Input 4]],'Customer Information'!$AR$12,103,ROW())<>\"No Rebate\"),MeasureCalc(Table_PI[[#This Row],[Hide:\nFormula Name]],Table_SummaryPI[[#This Row],[Quantity]],Table_PI[[#This Row],[List 1]],Table_PI[[#This Row],[List 2]],Table_PI[[#This Row],[List 3]],Table_PI[[#This Row],[Size]],Table_PI[[#This Row],[Input 1]],Table_PI[[#This Row],[Input 2]],Table_PI[[#This Row],[Input 3]],Table_PI[[#This Row],[Input 4]],'Customer Information'!$AR$12,103,ROW()),\"\"),\"\")","v":""},{"$f":"IF(Table_PI[[#This Row],[Input 4]]<>\"\",Table_PI[[#This Row],[Input 4]],\"\")","v":""},{"$f":"IF(Table_PI[[#This Row],[Quantity]]=\"\",\"\",Table_PI[[#This Row],[Quantity]])","v":""},{"$f":"IF(Table_PI[[#This Row],[Notes]]=\"\",\"\",Table_PI[[#This Row],[Notes]])","v":""},{"$f":"IF(OR(Table_PI[[#This Row],[Hide:\nBaseline kWh]]=\"\",Table_PI[[#This Row],[Hide:\nBaseline kWh]]=0),\"\",Table_PI[[#This Row],[Hide:\nBaseline kWh]])","v":""},{"$f":"IF(OR(Table_PI[[#This Row],[Hide:\nBaseline kW]]=\"\",Table_PI[[#This Row],[Hide:\nBaseline kW]]=0),\"\",Table_PI[[#This Row],[Hide:\nBaseline kW]])","v":""},{"$f":"IF(OR(Table_PI[[#This Row],[Hide:\nProposed kWh]]=\"\",Table_PI[[#This Row],[Hide:\nProposed kWh]]=0),\"\",Table_PI[[#This Row],[Hide:\nProposed kWh]])","v":""},{"$f":"IF(OR(Table_PI[[#This Row],[Hide:\nProposed kW]]=\"\",Table_PI[[#This Row],[Hide:\nProposed kW]]=0),\"\",Table_PI[[#This Row],[Hide:\nProposed kW]])","v":""},{"$f":"IF(OR(Table_PI[[#This Row],[Rebate]]=\"\",Table_PI[[#This Row],[Rebate]]=0),\"\",Table_PI[[#This Row],[Rebate]])","v":""},{"$f":"IF(OR(Table_PI[[#This Row],[Hide:\nIncremental Cost]]=\"\",Table_PI[[#This Row],[Hide:\nIncremental Cost]]=0),\"\",Table_PI[[#This Row],[Hide:\nIncremental Cost]])","v":""},{"$f":"IFERROR(IF(Table_SummaryPI[[#This Row],[kWhSavings]]=\"\",\"\",ROUND(Table_SummaryPI[[#This Row],[kWhSavings]]/$AG$401*'Customer Information'!$BC$17,2)),0)","v":""},{"$f":"IF(OR(Table_PI[[#This Row],[Annual kWh]]=\"\",Table_PI[[#This Row],[Annual kWh]]=0),\"\",Table_PI[[#This Row],[Annual kWh]])","v":""},{"$f":"IF(OR(Table_PI[[#This Row],[Peak kW]]=\"\",Table_PI[[#This Row],[Peak kW]]=0),\"\",Table_PI[[#This Row],[Peak kW]])","v":""},{"$f":"IFERROR(IF(Table_SummaryPI[[#This Row],[kWhSavings]]=\"\",\"\",$AU$9*Table_SummaryPI[[#This Row],[kWhSavings]]),0)","v":""},{"$f":"IFERROR(IF(Table_SummaryPI[[#This Row],[kWhSavings]]=\"\",\"\",$AU$14*Table_SummaryPI[[#This Row],[kWhSavings]]),0)","v":""},{"$f":"IFERROR(IF(Table_SummaryPI[[#This Row],[kWhSavings]]=\"\",\"\",$AU$18*Table_SummaryPI[[#This Row],[kWhSavings]]),0)","v":""},{"$f":"IFERROR(IF(Table_SummaryPI[[#This Row],[kWhSavings]]=\"\",\"\",$AU$22*Table_SummaryPI[[#This Row],[kWhSavings]]),0)","v":""},{"$f":"IFERROR(IF(MeasureCalc(Table_PI[[#This Row],[Hide:\nFormula Name]],Table_SummaryPI[[#This Row],[Quantity]],Table_PI[[#This Row],[List 1]],Table_PI[[#This Row],[List 2]],Table_PI[[#This Row],[List 3]],Table_PI[[#This Row],[Size]],Table_PI[[#This Row],[Input 1]],Table_PI[[#This Row],[Input 2]],Table_PI[[#This Row],[Input 3]],Table_PI[[#This Row],[Input 4]],'Customer Information'!$AR$12,200,ROW())<>\"No Rebate\",MeasureCalc(Table_PI[[#This Row],[Hide:\nFormula Name]],Table_SummaryPI[[#This Row],[Quantity]],Table_PI[[#This Row],[List 1]],Table_PI[[#This Row],[List 2]],Table_PI[[#This Row],[List 3]],Table_PI[[#This Row],[Size]],Table_PI[[#This Row],[Input 1]],Table_PI[[#This Row],[Input 2]],Table_PI[[#This Row],[Input 3]],Table_PI[[#This Row],[Input 4]],'Customer Information'!$AR$12,200,ROW()),\"\"),\"\")","v":""},{"$f":"IFERROR(IF(MeasureCalc(Table_PI[[#This Row],[Hide:\nFormula Name]],Table_SummaryPI[[#This Row],[Quantity]],Table_PI[[#This Row],[List 1]],Table_PI[[#This Row],[List 2]],Table_PI[[#This Row],[List 3]],Table_PI[[#This Row],[Size]],Table_PI[[#This Row],[Input 1]],Table_PI[[#This Row],[Input 2]],Table_PI[[#This Row],[Input 3]],Table_PI[[#This Row],[Input 4]],'Customer Information'!$AR$12,201,ROW())<>\"No Rebate\",MeasureCalc(Table_PI[[#This Row],[Hide:\nFormula Name]],Table_SummaryPI[[#This Row],[Quantity]],Table_PI[[#This Row],[List 1]],Table_PI[[#This Row],[List 2]],Table_PI[[#This Row],[List 3]],Table_PI[[#This Row],[Size]],Table_PI[[#This Row],[Input 1]],Table_PI[[#This Row],[Input 2]],Table_PI[[#This Row],[Input 3]],Table_PI[[#This Row],[Input 4]],'Customer Information'!$AR$12,201,ROW()),\"\"),\"\")","v":""}]
[{"$f":"Table_PI[[#This Row],[Line No.]]","v":""},{"$f":"IF(Table_SummaryPI[[#This Row],[MeassureCategory]]<>\"\",CONCATENATE(Table_SummaryPI[[#This Row],[MeassureCategory]],  \" - \", Table_SummaryPI[[#This Row],[ProposedMeasureCategory]],  \" - \", TEXT(Table_SummaryPI[[#This Row],[Size]],\"#,##0.00\"),\" \",Table_SummaryPI[[#This Row],[SizeUnit]]),\"\")","v":""},{"$f":"SUBSTITUTE(Table_PI[[#This Row],[Measure]],\"     \",\"\",1)","v":""},{"$f":"IF(Table_PI[[#This Row],[List 1]]<>\"\",Table_PI[[#This Row],[List 1]],\"\")","v":""},{"$f":"IF(Table_PI[[#This Row],[List 2]]<>\"\",Table_PI[[#This Row],[List 2]],\"\")","v":""},{"$f":"IF(Table_PI[[#This Row],[List 3]]<>\"\",Table_PI[[#This Row],[List 3]],\"\")","v":""},{"$f":"IF(Table_PI[[#This Row],[Manufacturer]]=\"\",\"\",Table_PI[[#This Row],[Manufacturer]])","v":""},{"$f":"IF(Table_PI[[#This Row],[Model Number]]=\"\",\"\",Table_PI[[#This Row],[Model Number]])","v":""},{"$f":"IF(Table_PI[[#This Row],[Serial Number(s)]]=\"\",\"\",Table_PI[[#This Row],[Serial Number(s)]])","v":""},null,{"$f":"IF(Table_PI[[#This Row],[Size]]=\"\",\"\",Table_PI[[#This Row],[Size]])","v":""},null,{"$f":"IFERROR(IF(AND(MeasureCalc(Table_PI[[#This Row],[Hide:\nFormula Name]],Table_SummaryPI[[#This Row],[Quantity]],Table_PI[[#This Row],[List 1]],Table_PI[[#This Row],[List 2]],Table_PI[[#This Row],[List 3]],Table_PI[[#This Row],[Size]],Table_PI[[#This Row],[Input 1]],Table_PI[[#This Row],[Input 2]],Table_PI[[#This Row],[Input 3]],Table_PI[[#This Row],[Input 4]],'Customer Information'!$AR$12,100,ROW())<>0,MeasureCalc(Table_PI[[#This Row],[Hide:\nFormula Name]],Table_SummaryPI[[#This Row],[Quantity]],Table_PI[[#This Row],[List 1]],Table_PI[[#This Row],[List 2]],Table_PI[[#This Row],[List 3]],Table_PI[[#This Row],[Size]],Table_PI[[#This Row],[Input 1]],Table_PI[[#This Row],[Input 2]],Table_PI[[#This Row],[Input 3]],Table_PI[[#This Row],[Input 4]],'Customer Information'!$AR$12,100,ROW())<>\"No Rebate\"),MeasureCalc(Table_PI[[#This Row],[Hide:\nFormula Name]],Table_SummaryPI[[#This Row],[Quantity]],Table_PI[[#This Row],[List 1]],Table_PI[[#This Row],[List 2]],Table_PI[[#This Row],[List 3]],Table_PI[[#This Row],[Size]],Table_PI[[#This Row],[Input 1]],Table_PI[[#This Row],[Input 2]],Table_PI[[#This Row],[Input 3]],Table_PI[[#This Row],[Input 4]],'Customer Information'!$AR$12,100,ROW()),\"\"),\"\")","v":""},{"$f":"IF(Table_PI[[#This Row],[Input 1]]<>\"\",Table_PI[[#This Row],[Input 1]],\"\")","v":""},null,{"$f":"IFERROR(IF(AND(MeasureCalc(Table_PI[[#This Row],[Hide:\nFormula Name]],Table_SummaryPI[[#This Row],[Quantity]],Table_PI[[#This Row],[List 1]],Table_PI[[#This Row],[List 2]],Table_PI[[#This Row],[List 3]],Table_PI[[#This Row],[Size]],Table_PI[[#This Row],[Input 1]],Table_PI[[#This Row],[Input 2]],Table_PI[[#This Row],[Input 3]],Table_PI[[#This Row],[Input 4]],'Customer Information'!$AR$12,101,ROW())<>0,MeasureCalc(Table_PI[[#This Row],[Hide:\nFormula Name]],Table_SummaryPI[[#This Row],[Quantity]],Table_PI[[#This Row],[List 1]],Table_PI[[#This Row],[List 2]],Table_PI[[#This Row],[List 3]],Table_PI[[#This Row],[Size]],Table_PI[[#This Row],[Input 1]],Table_PI[[#This Row],[Input 2]],Table_PI[[#This Row],[Input 3]],Table_PI[[#This Row],[Input 4]],'Customer Information'!$AR$12,101,ROW())<>\"No Rebate\"),MeasureCalc(Table_PI[[#This Row],[Hide:\nFormula Name]],Table_SummaryPI[[#This Row],[Quantity]],Table_PI[[#This Row],[List 1]],Table_PI[[#This Row],[List 2]],Table_PI[[#This Row],[List 3]],Table_PI[[#This Row],[Size]],Table_PI[[#This Row],[Input 1]],Table_PI[[#This Row],[Input 2]],Table_PI[[#This Row],[Input 3]],Table_PI[[#This Row],[Input 4]],'Customer Information'!$AR$12,101,ROW()),\"\"),\"\")","v":""},{"$f":"IF(Table_PI[[#This Row],[Input 2]]<>\"\",Table_PI[[#This Row],[Input 2]],\"\")","v":""},null,{"$f":"IFERROR(IF(AND(MeasureCalc(Table_PI[[#This Row],[Hide:\nFormula Name]],Table_SummaryPI[[#This Row],[Quantity]],Table_PI[[#This Row],[List 1]],Table_PI[[#This Row],[List 2]],Table_PI[[#This Row],[List 3]],Table_PI[[#This Row],[Size]],Table_PI[[#This Row],[Input 1]],Table_PI[[#This Row],[Input 2]],Table_PI[[#This Row],[Input 3]],Table_PI[[#This Row],[Input 4]],'Customer Information'!$AR$12,102,ROW())<>0,MeasureCalc(Table_PI[[#This Row],[Hide:\nFormula Name]],Table_SummaryPI[[#This Row],[Quantity]],Table_PI[[#This Row],[List 1]],Table_PI[[#This Row],[List 2]],Table_PI[[#This Row],[List 3]],Table_PI[[#This Row],[Size]],Table_PI[[#This Row],[Input 1]],Table_PI[[#This Row],[Input 2]],Table_PI[[#This Row],[Input 3]],Table_PI[[#This Row],[Input 4]],'Customer Information'!$AR$12,102,ROW())<>\"No Rebate\"),MeasureCalc(Table_PI[[#This Row],[Hide:\nFormula Name]],Table_SummaryPI[[#This Row],[Quantity]],Table_PI[[#This Row],[List 1]],Table_PI[[#This Row],[List 2]],Table_PI[[#This Row],[List 3]],Table_PI[[#This Row],[Size]],Table_PI[[#This Row],[Input 1]],Table_PI[[#This Row],[Input 2]],Table_PI[[#This Row],[Input 3]],Table_PI[[#This Row],[Input 4]],'Customer Information'!$AR$12,102,ROW()),\"\"),\"\")","v":""},{"$f":"IF(Table_PI[[#This Row],[Input 3]]<>\"\",Table_PI[[#This Row],[Input 3]],\"\")","v":""},null,{"$f":"IFERROR(IF(AND(MeasureCalc(Table_PI[[#This Row],[Hide:\nFormula Name]],Table_SummaryPI[[#This Row],[Quantity]],Table_PI[[#This Row],[List 1]],Table_PI[[#This Row],[List 2]],Table_PI[[#This Row],[List 3]],Table_PI[[#This Row],[Size]],Table_PI[[#This Row],[Input 1]],Table_PI[[#This Row],[Input 2]],Table_PI[[#This Row],[Input 3]],Table_PI[[#This Row],[Input 4]],'Customer Information'!$AR$12,103,ROW())<>0,MeasureCalc(Table_PI[[#This Row],[Hide:\nFormula Name]],Table_SummaryPI[[#This Row],[Quantity]],Table_PI[[#This Row],[List 1]],Table_PI[[#This Row],[List 2]],Table_PI[[#This Row],[List 3]],Table_PI[[#This Row],[Size]],Table_PI[[#This Row],[Input 1]],Table_PI[[#This Row],[Input 2]],Table_PI[[#This Row],[Input 3]],Table_PI[[#This Row],[Input 4]],'Customer Information'!$AR$12,103,ROW())<>\"No Rebate\"),MeasureCalc(Table_PI[[#This Row],[Hide:\nFormula Name]],Table_SummaryPI[[#This Row],[Quantity]],Table_PI[[#This Row],[List 1]],Table_PI[[#This Row],[List 2]],Table_PI[[#This Row],[List 3]],Table_PI[[#This Row],[Size]],Table_PI[[#This Row],[Input 1]],Table_PI[[#This Row],[Input 2]],Table_PI[[#This Row],[Input 3]],Table_PI[[#This Row],[Input 4]],'Customer Information'!$AR$12,103,ROW()),\"\"),\"\")","v":""},{"$f":"IF(Table_PI[[#This Row],[Input 4]]<>\"\",Table_PI[[#This Row],[Input 4]],\"\")","v":""},{"$f":"IF(Table_PI[[#This Row],[Quantity]]=\"\",\"\",Table_PI[[#This Row],[Quantity]])","v":""},{"$f":"IF(Table_PI[[#This Row],[Notes]]=\"\",\"\",Table_PI[[#This Row],[Notes]])","v":""},{"$f":"IF(OR(Table_PI[[#This Row],[Hide:\nBaseline kWh]]=\"\",Table_PI[[#This Row],[Hide:\nBaseline kWh]]=0),\"\",Table_PI[[#This Row],[Hide:\nBaseline kWh]])","v":""},{"$f":"IF(OR(Table_PI[[#This Row],[Hide:\nBaseline kW]]=\"\",Table_PI[[#This Row],[Hide:\nBaseline kW]]=0),\"\",Table_PI[[#This Row],[Hide:\nBaseline kW]])","v":""},{"$f":"IF(OR(Table_PI[[#This Row],[Hide:\nProposed kWh]]=\"\",Table_PI[[#This Row],[Hide:\nProposed kWh]]=0),\"\",Table_PI[[#This Row],[Hide:\nProposed kWh]])","v":""},{"$f":"IF(OR(Table_PI[[#This Row],[Hide:\nProposed kW]]=\"\",Table_PI[[#This Row],[Hide:\nProposed kW]]=0),\"\",Table_PI[[#This Row],[Hide:\nProposed kW]])","v":""},{"$f":"IF(OR(Table_PI[[#This Row],[Rebate]]=\"\",Table_PI[[#This Row],[Rebate]]=0),\"\",Table_PI[[#This Row],[Rebate]])","v":""},{"$f":"IF(OR(Table_PI[[#This Row],[Hide:\nIncremental Cost]]=\"\",Table_PI[[#This Row],[Hide:\nIncremental Cost]]=0),\"\",Table_PI[[#This Row],[Hide:\nIncremental Cost]])","v":""},{"$f":"IFERROR(IF(Table_SummaryPI[[#This Row],[kWhSavings]]=\"\",\"\",ROUND(Table_SummaryPI[[#This Row],[kWhSavings]]/$AG$401*'Customer Information'!$BC$17,2)),0)","v":""},{"$f":"IF(OR(Table_PI[[#This Row],[Annual kWh]]=\"\",Table_PI[[#This Row],[Annual kWh]]=0),\"\",Table_PI[[#This Row],[Annual kWh]])","v":""},{"$f":"IF(OR(Table_PI[[#This Row],[Peak kW]]=\"\",Table_PI[[#This Row],[Peak kW]]=0),\"\",Table_PI[[#This Row],[Peak kW]])","v":""},{"$f":"IFERROR(IF(Table_SummaryPI[[#This Row],[kWhSavings]]=\"\",\"\",$AU$9*Table_SummaryPI[[#This Row],[kWhSavings]]),0)","v":""},{"$f":"IFERROR(IF(Table_SummaryPI[[#This Row],[kWhSavings]]=\"\",\"\",$AU$14*Table_SummaryPI[[#This Row],[kWhSavings]]),0)","v":""},{"$f":"IFERROR(IF(Table_SummaryPI[[#This Row],[kWhSavings]]=\"\",\"\",$AU$18*Table_SummaryPI[[#This Row],[kWhSavings]]),0)","v":""},{"$f":"IFERROR(IF(Table_SummaryPI[[#This Row],[kWhSavings]]=\"\",\"\",$AU$22*Table_SummaryPI[[#This Row],[kWhSavings]]),0)","v":""},{"$f":"IFERROR(IF(MeasureCalc(Table_PI[[#This Row],[Hide:\nFormula Name]],Table_SummaryPI[[#This Row],[Quantity]],Table_PI[[#This Row],[List 1]],Table_PI[[#This Row],[List 2]],Table_PI[[#This Row],[List 3]],Table_PI[[#This Row],[Size]],Table_PI[[#This Row],[Input 1]],Table_PI[[#This Row],[Input 2]],Table_PI[[#This Row],[Input 3]],Table_PI[[#This Row],[Input 4]],'Customer Information'!$AR$12,200,ROW())<>\"No Rebate\",MeasureCalc(Table_PI[[#This Row],[Hide:\nFormula Name]],Table_SummaryPI[[#This Row],[Quantity]],Table_PI[[#This Row],[List 1]],Table_PI[[#This Row],[List 2]],Table_PI[[#This Row],[List 3]],Table_PI[[#This Row],[Size]],Table_PI[[#This Row],[Input 1]],Table_PI[[#This Row],[Input 2]],Table_PI[[#This Row],[Input 3]],Table_PI[[#This Row],[Input 4]],'Customer Information'!$AR$12,200,ROW()),\"\"),\"\")","v":""},{"$f":"IFERROR(IF(MeasureCalc(Table_PI[[#This Row],[Hide:\nFormula Name]],Table_SummaryPI[[#This Row],[Quantity]],Table_PI[[#This Row],[List 1]],Table_PI[[#This Row],[List 2]],Table_PI[[#This Row],[List 3]],Table_PI[[#This Row],[Size]],Table_PI[[#This Row],[Input 1]],Table_PI[[#This Row],[Input 2]],Table_PI[[#This Row],[Input 3]],Table_PI[[#This Row],[Input 4]],'Customer Information'!$AR$12,201,ROW())<>\"No Rebate\",MeasureCalc(Table_PI[[#This Row],[Hide:\nFormula Name]],Table_SummaryPI[[#This Row],[Quantity]],Table_PI[[#This Row],[List 1]],Table_PI[[#This Row],[List 2]],Table_PI[[#This Row],[List 3]],Table_PI[[#This Row],[Size]],Table_PI[[#This Row],[Input 1]],Table_PI[[#This Row],[Input 2]],Table_PI[[#This Row],[Input 3]],Table_PI[[#This Row],[Input 4]],'Customer Information'!$AR$12,201,ROW()),\"\"),\"\")","v":""}]
[{"$f":"Table_PI[[#This Row],[Line No.]]","v":""},{"$f":"IF(Table_SummaryPI[[#This Row],[MeassureCategory]]<>\"\",CONCATENATE(Table_SummaryPI[[#This Row],[MeassureCategory]],  \" - \", Table_SummaryPI[[#This Row],[ProposedMeasureCategory]],  \" - \", TEXT(Table_SummaryPI[[#This Row],[Size]],\"#,##0.00\"),\" \",Table_SummaryPI[[#This Row],[SizeUnit]]),\"\")","v":""},{"$f":"SUBSTITUTE(Table_PI[[#This Row],[Measure]],\"     \",\"\",1)","v":""},{"$f":"IF(Table_PI[[#This Row],[List 1]]<>\"\",Table_PI[[#This Row],[List 1]],\"\")","v":""},{"$f":"IF(Table_PI[[#This Row],[List 2]]<>\"\",Table_PI[[#This Row],[List 2]],\"\")","v":""},{"$f":"IF(Table_PI[[#This Row],[List 3]]<>\"\",Table_PI[[#This Row],[List 3]],\"\")","v":""},{"$f":"IF(Table_PI[[#This Row],[Manufacturer]]=\"\",\"\",Table_PI[[#This Row],[Manufacturer]])","v":""},{"$f":"IF(Table_PI[[#This Row],[Model Number]]=\"\",\"\",Table_PI[[#This Row],[Model Number]])","v":""},{"$f":"IF(Table_PI[[#This Row],[Serial Number(s)]]=\"\",\"\",Table_PI[[#This Row],[Serial Number(s)]])","v":""},null,{"$f":"IF(Table_PI[[#This Row],[Size]]=\"\",\"\",Table_PI[[#This Row],[Size]])","v":""},null,{"$f":"IFERROR(IF(AND(MeasureCalc(Table_PI[[#This Row],[Hide:\nFormula Name]],Table_SummaryPI[[#This Row],[Quantity]],Table_PI[[#This Row],[List 1]],Table_PI[[#This Row],[List 2]],Table_PI[[#This Row],[List 3]],Table_PI[[#This Row],[Size]],Table_PI[[#This Row],[Input 1]],Table_PI[[#This Row],[Input 2]],Table_PI[[#This Row],[Input 3]],Table_PI[[#This Row],[Input 4]],'Customer Information'!$AR$12,100,ROW())<>0,MeasureCalc(Table_PI[[#This Row],[Hide:\nFormula Name]],Table_SummaryPI[[#This Row],[Quantity]],Table_PI[[#This Row],[List 1]],Table_PI[[#This Row],[List 2]],Table_PI[[#This Row],[List 3]],Table_PI[[#This Row],[Size]],Table_PI[[#This Row],[Input 1]],Table_PI[[#This Row],[Input 2]],Table_PI[[#This Row],[Input 3]],Table_PI[[#This Row],[Input 4]],'Customer Information'!$AR$12,100,ROW())<>\"No Rebate\"),MeasureCalc(Table_PI[[#This Row],[Hide:\nFormula Name]],Table_SummaryPI[[#This Row],[Quantity]],Table_PI[[#This Row],[List 1]],Table_PI[[#This Row],[List 2]],Table_PI[[#This Row],[List 3]],Table_PI[[#This Row],[Size]],Table_PI[[#This Row],[Input 1]],Table_PI[[#This Row],[Input 2]],Table_PI[[#This Row],[Input 3]],Table_PI[[#This Row],[Input 4]],'Customer Information'!$AR$12,100,ROW()),\"\"),\"\")","v":""},{"$f":"IF(Table_PI[[#This Row],[Input 1]]<>\"\",Table_PI[[#This Row],[Input 1]],\"\")","v":""},null,{"$f":"IFERROR(IF(AND(MeasureCalc(Table_PI[[#This Row],[Hide:\nFormula Name]],Table_SummaryPI[[#This Row],[Quantity]],Table_PI[[#This Row],[List 1]],Table_PI[[#This Row],[List 2]],Table_PI[[#This Row],[List 3]],Table_PI[[#This Row],[Size]],Table_PI[[#This Row],[Input 1]],Table_PI[[#This Row],[Input 2]],Table_PI[[#This Row],[Input 3]],Table_PI[[#This Row],[Input 4]],'Customer Information'!$AR$12,101,ROW())<>0,MeasureCalc(Table_PI[[#This Row],[Hide:\nFormula Name]],Table_SummaryPI[[#This Row],[Quantity]],Table_PI[[#This Row],[List 1]],Table_PI[[#This Row],[List 2]],Table_PI[[#This Row],[List 3]],Table_PI[[#This Row],[Size]],Table_PI[[#This Row],[Input 1]],Table_PI[[#This Row],[Input 2]],Table_PI[[#This Row],[Input 3]],Table_PI[[#This Row],[Input 4]],'Customer Information'!$AR$12,101,ROW())<>\"No Rebate\"),MeasureCalc(Table_PI[[#This Row],[Hide:\nFormula Name]],Table_SummaryPI[[#This Row],[Quantity]],Table_PI[[#This Row],[List 1]],Table_PI[[#This Row],[List 2]],Table_PI[[#This Row],[List 3]],Table_PI[[#This Row],[Size]],Table_PI[[#This Row],[Input 1]],Table_PI[[#This Row],[Input 2]],Table_PI[[#This Row],[Input 3]],Table_PI[[#This Row],[Input 4]],'Customer Information'!$AR$12,101,ROW()),\"\"),\"\")","v":""},{"$f":"IF(Table_PI[[#This Row],[Input 2]]<>\"\",Table_PI[[#This Row],[Input 2]],\"\")","v":""},null,{"$f":"IFERROR(IF(AND(MeasureCalc(Table_PI[[#This Row],[Hide:\nFormula Name]],Table_SummaryPI[[#This Row],[Quantity]],Table_PI[[#This Row],[List 1]],Table_PI[[#This Row],[List 2]],Table_PI[[#This Row],[List 3]],Table_PI[[#This Row],[Size]],Table_PI[[#This Row],[Input 1]],Table_PI[[#This Row],[Input 2]],Table_PI[[#This Row],[Input 3]],Table_PI[[#This Row],[Input 4]],'Customer Information'!$AR$12,102,ROW())<>0,MeasureCalc(Table_PI[[#This Row],[Hide:\nFormula Name]],Table_SummaryPI[[#This Row],[Quantity]],Table_PI[[#This Row],[List 1]],Table_PI[[#This Row],[List 2]],Table_PI[[#This Row],[List 3]],Table_PI[[#This Row],[Size]],Table_PI[[#This Row],[Input 1]],Table_PI[[#This Row],[Input 2]],Table_PI[[#This Row],[Input 3]],Table_PI[[#This Row],[Input 4]],'Customer Information'!$AR$12,102,ROW())<>\"No Rebate\"),MeasureCalc(Table_PI[[#This Row],[Hide:\nFormula Name]],Table_SummaryPI[[#This Row],[Quantity]],Table_PI[[#This Row],[List 1]],Table_PI[[#This Row],[List 2]],Table_PI[[#This Row],[List 3]],Table_PI[[#This Row],[Size]],Table_PI[[#This Row],[Input 1]],Table_PI[[#This Row],[Input 2]],Table_PI[[#This Row],[Input 3]],Table_PI[[#This Row],[Input 4]],'Customer Information'!$AR$12,102,ROW()),\"\"),\"\")","v":""},{"$f":"IF(Table_PI[[#This Row],[Input 3]]<>\"\",Table_PI[[#This Row],[Input 3]],\"\")","v":""},null,{"$f":"IFERROR(IF(AND(MeasureCalc(Table_PI[[#This Row],[Hide:\nFormula Name]],Table_SummaryPI[[#This Row],[Quantity]],Table_PI[[#This Row],[List 1]],Table_PI[[#This Row],[List 2]],Table_PI[[#This Row],[List 3]],Table_PI[[#This Row],[Size]],Table_PI[[#This Row],[Input 1]],Table_PI[[#This Row],[Input 2]],Table_PI[[#This Row],[Input 3]],Table_PI[[#This Row],[Input 4]],'Customer Information'!$AR$12,103,ROW())<>0,MeasureCalc(Table_PI[[#This Row],[Hide:\nFormula Name]],Table_SummaryPI[[#This Row],[Quantity]],Table_PI[[#This Row],[List 1]],Table_PI[[#This Row],[List 2]],Table_PI[[#This Row],[List 3]],Table_PI[[#This Row],[Size]],Table_PI[[#This Row],[Input 1]],Table_PI[[#This Row],[Input 2]],Table_PI[[#This Row],[Input 3]],Table_PI[[#This Row],[Input 4]],'Customer Information'!$AR$12,103,ROW())<>\"No Rebate\"),MeasureCalc(Table_PI[[#This Row],[Hide:\nFormula Name]],Table_SummaryPI[[#This Row],[Quantity]],Table_PI[[#This Row],[List 1]],Table_PI[[#This Row],[List 2]],Table_PI[[#This Row],[List 3]],Table_PI[[#This Row],[Size]],Table_PI[[#This Row],[Input 1]],Table_PI[[#This Row],[Input 2]],Table_PI[[#This Row],[Input 3]],Table_PI[[#This Row],[Input 4]],'Customer Information'!$AR$12,103,ROW()),\"\"),\"\")","v":""},{"$f":"IF(Table_PI[[#This Row],[Input 4]]<>\"\",Table_PI[[#This Row],[Input 4]],\"\")","v":""},{"$f":"IF(Table_PI[[#This Row],[Quantity]]=\"\",\"\",Table_PI[[#This Row],[Quantity]])","v":""},{"$f":"IF(Table_PI[[#This Row],[Notes]]=\"\",\"\",Table_PI[[#This Row],[Notes]])","v":""},{"$f":"IF(OR(Table_PI[[#This Row],[Hide:\nBaseline kWh]]=\"\",Table_PI[[#This Row],[Hide:\nBaseline kWh]]=0),\"\",Table_PI[[#This Row],[Hide:\nBaseline kWh]])","v":""},{"$f":"IF(OR(Table_PI[[#This Row],[Hide:\nBaseline kW]]=\"\",Table_PI[[#This Row],[Hide:\nBaseline kW]]=0),\"\",Table_PI[[#This Row],[Hide:\nBaseline kW]])","v":""},{"$f":"IF(OR(Table_PI[[#This Row],[Hide:\nProposed kWh]]=\"\",Table_PI[[#This Row],[Hide:\nProposed kWh]]=0),\"\",Table_PI[[#This Row],[Hide:\nProposed kWh]])","v":""},{"$f":"IF(OR(Table_PI[[#This Row],[Hide:\nProposed kW]]=\"\",Table_PI[[#This Row],[Hide:\nProposed kW]]=0),\"\",Table_PI[[#This Row],[Hide:\nProposed kW]])","v":""},{"$f":"IF(OR(Table_PI[[#This Row],[Rebate]]=\"\",Table_PI[[#This Row],[Rebate]]=0),\"\",Table_PI[[#This Row],[Rebate]])","v":""},{"$f":"IF(OR(Table_PI[[#This Row],[Hide:\nIncremental Cost]]=\"\",Table_PI[[#This Row],[Hide:\nIncremental Cost]]=0),\"\",Table_PI[[#This Row],[Hide:\nIncremental Cost]])","v":""},{"$f":"IFERROR(IF(Table_SummaryPI[[#This Row],[kWhSavings]]=\"\",\"\",ROUND(Table_SummaryPI[[#This Row],[kWhSavings]]/$AG$401*'Customer Information'!$BC$17,2)),0)","v":""},{"$f":"IF(OR(Table_PI[[#This Row],[Annual kWh]]=\"\",Table_PI[[#This Row],[Annual kWh]]=0),\"\",Table_PI[[#This Row],[Annual kWh]])","v":""},{"$f":"IF(OR(Table_PI[[#This Row],[Peak kW]]=\"\",Table_PI[[#This Row],[Peak kW]]=0),\"\",Table_PI[[#This Row],[Peak kW]])","v":""},{"$f":"IFERROR(IF(Table_SummaryPI[[#This Row],[kWhSavings]]=\"\",\"\",$AU$9*Table_SummaryPI[[#This Row],[kWhSavings]]),0)","v":""},{"$f":"IFERROR(IF(Table_SummaryPI[[#This Row],[kWhSavings]]=\"\",\"\",$AU$14*Table_SummaryPI[[#This Row],[kWhSavings]]),0)","v":""},{"$f":"IFERROR(IF(Table_SummaryPI[[#This Row],[kWhSavings]]=\"\",\"\",$AU$18*Table_SummaryPI[[#This Row],[kWhSavings]]),0)","v":""},{"$f":"IFERROR(IF(Table_SummaryPI[[#This Row],[kWhSavings]]=\"\",\"\",$AU$22*Table_SummaryPI[[#This Row],[kWhSavings]]),0)","v":""},{"$f":"IFERROR(IF(MeasureCalc(Table_PI[[#This Row],[Hide:\nFormula Name]],Table_SummaryPI[[#This Row],[Quantity]],Table_PI[[#This Row],[List 1]],Table_PI[[#This Row],[List 2]],Table_PI[[#This Row],[List 3]],Table_PI[[#This Row],[Size]],Table_PI[[#This Row],[Input 1]],Table_PI[[#This Row],[Input 2]],Table_PI[[#This Row],[Input 3]],Table_PI[[#This Row],[Input 4]],'Customer Information'!$AR$12,200,ROW())<>\"No Rebate\",MeasureCalc(Table_PI[[#This Row],[Hide:\nFormula Name]],Table_SummaryPI[[#This Row],[Quantity]],Table_PI[[#This Row],[List 1]],Table_PI[[#This Row],[List 2]],Table_PI[[#This Row],[List 3]],Table_PI[[#This Row],[Size]],Table_PI[[#This Row],[Input 1]],Table_PI[[#This Row],[Input 2]],Table_PI[[#This Row],[Input 3]],Table_PI[[#This Row],[Input 4]],'Customer Information'!$AR$12,200,ROW()),\"\"),\"\")","v":""},{"$f":"IFERROR(IF(MeasureCalc(Table_PI[[#This Row],[Hide:\nFormula Name]],Table_SummaryPI[[#This Row],[Quantity]],Table_PI[[#This Row],[List 1]],Table_PI[[#This Row],[List 2]],Table_PI[[#This Row],[List 3]],Table_PI[[#This Row],[Size]],Table_PI[[#This Row],[Input 1]],Table_PI[[#This Row],[Input 2]],Table_PI[[#This Row],[Input 3]],Table_PI[[#This Row],[Input 4]],'Customer Information'!$AR$12,201,ROW())<>\"No Rebate\",MeasureCalc(Table_PI[[#This Row],[Hide:\nFormula Name]],Table_SummaryPI[[#This Row],[Quantity]],Table_PI[[#This Row],[List 1]],Table_PI[[#This Row],[List 2]],Table_PI[[#This Row],[List 3]],Table_PI[[#This Row],[Size]],Table_PI[[#This Row],[Input 1]],Table_PI[[#This Row],[Input 2]],Table_PI[[#This Row],[Input 3]],Table_PI[[#This Row],[Input 4]],'Customer Information'!$AR$12,201,ROW()),\"\"),\"\")","v":""}]
[{"$f":"Table_PI[[#This Row],[Line No.]]","v":""},{"$f":"IF(Table_SummaryPI[[#This Row],[MeassureCategory]]<>\"\",CONCATENATE(Table_SummaryPI[[#This Row],[MeassureCategory]],  \" - \", Table_SummaryPI[[#This Row],[ProposedMeasureCategory]],  \" - \", TEXT(Table_SummaryPI[[#This Row],[Size]],\"#,##0.00\"),\" \",Table_SummaryPI[[#This Row],[SizeUnit]]),\"\")","v":""},{"$f":"SUBSTITUTE(Table_PI[[#This Row],[Measure]],\"     \",\"\",1)","v":""},{"$f":"IF(Table_PI[[#This Row],[List 1]]<>\"\",Table_PI[[#This Row],[List 1]],\"\")","v":""},{"$f":"IF(Table_PI[[#This Row],[List 2]]<>\"\",Table_PI[[#This Row],[List 2]],\"\")","v":""},{"$f":"IF(Table_PI[[#This Row],[List 3]]<>\"\",Table_PI[[#This Row],[List 3]],\"\")","v":""},{"$f":"IF(Table_PI[[#This Row],[Manufacturer]]=\"\",\"\",Table_PI[[#This Row],[Manufacturer]])","v":""},{"$f":"IF(Table_PI[[#This Row],[Model Number]]=\"\",\"\",Table_PI[[#This Row],[Model Number]])","v":""},{"$f":"IF(Table_PI[[#This Row],[Serial Number(s)]]=\"\",\"\",Table_PI[[#This Row],[Serial Number(s)]])","v":""},null,{"$f":"IF(Table_PI[[#This Row],[Size]]=\"\",\"\",Table_PI[[#This Row],[Size]])","v":""},null,{"$f":"IFERROR(IF(AND(MeasureCalc(Table_PI[[#This Row],[Hide:\nFormula Name]],Table_SummaryPI[[#This Row],[Quantity]],Table_PI[[#This Row],[List 1]],Table_PI[[#This Row],[List 2]],Table_PI[[#This Row],[List 3]],Table_PI[[#This Row],[Size]],Table_PI[[#This Row],[Input 1]],Table_PI[[#This Row],[Input 2]],Table_PI[[#This Row],[Input 3]],Table_PI[[#This Row],[Input 4]],'Customer Information'!$AR$12,100,ROW())<>0,MeasureCalc(Table_PI[[#This Row],[Hide:\nFormula Name]],Table_SummaryPI[[#This Row],[Quantity]],Table_PI[[#This Row],[List 1]],Table_PI[[#This Row],[List 2]],Table_PI[[#This Row],[List 3]],Table_PI[[#This Row],[Size]],Table_PI[[#This Row],[Input 1]],Table_PI[[#This Row],[Input 2]],Table_PI[[#This Row],[Input 3]],Table_PI[[#This Row],[Input 4]],'Customer Information'!$AR$12,100,ROW())<>\"No Rebate\"),MeasureCalc(Table_PI[[#This Row],[Hide:\nFormula Name]],Table_SummaryPI[[#This Row],[Quantity]],Table_PI[[#This Row],[List 1]],Table_PI[[#This Row],[List 2]],Table_PI[[#This Row],[List 3]],Table_PI[[#This Row],[Size]],Table_PI[[#This Row],[Input 1]],Table_PI[[#This Row],[Input 2]],Table_PI[[#This Row],[Input 3]],Table_PI[[#This Row],[Input 4]],'Customer Information'!$AR$12,100,ROW()),\"\"),\"\")","v":""},{"$f":"IF(Table_PI[[#This Row],[Input 1]]<>\"\",Table_PI[[#This Row],[Input 1]],\"\")","v":""},null,{"$f":"IFERROR(IF(AND(MeasureCalc(Table_PI[[#This Row],[Hide:\nFormula Name]],Table_SummaryPI[[#This Row],[Quantity]],Table_PI[[#This Row],[List 1]],Table_PI[[#This Row],[List 2]],Table_PI[[#This Row],[List 3]],Table_PI[[#This Row],[Size]],Table_PI[[#This Row],[Input 1]],Table_PI[[#This Row],[Input 2]],Table_PI[[#This Row],[Input 3]],Table_PI[[#This Row],[Input 4]],'Customer Information'!$AR$12,101,ROW())<>0,MeasureCalc(Table_PI[[#This Row],[Hide:\nFormula Name]],Table_SummaryPI[[#This Row],[Quantity]],Table_PI[[#This Row],[List 1]],Table_PI[[#This Row],[List 2]],Table_PI[[#This Row],[List 3]],Table_PI[[#This Row],[Size]],Table_PI[[#This Row],[Input 1]],Table_PI[[#This Row],[Input 2]],Table_PI[[#This Row],[Input 3]],Table_PI[[#This Row],[Input 4]],'Customer Information'!$AR$12,101,ROW())<>\"No Rebate\"),MeasureCalc(Table_PI[[#This Row],[Hide:\nFormula Name]],Table_SummaryPI[[#This Row],[Quantity]],Table_PI[[#This Row],[List 1]],Table_PI[[#This Row],[List 2]],Table_PI[[#This Row],[List 3]],Table_PI[[#This Row],[Size]],Table_PI[[#This Row],[Input 1]],Table_PI[[#This Row],[Input 2]],Table_PI[[#This Row],[Input 3]],Table_PI[[#This Row],[Input 4]],'Customer Information'!$AR$12,101,ROW()),\"\"),\"\")","v":""},{"$f":"IF(Table_PI[[#This Row],[Input 2]]<>\"\",Table_PI[[#This Row],[Input 2]],\"\")","v":""},null,{"$f":"IFERROR(IF(AND(MeasureCalc(Table_PI[[#This Row],[Hide:\nFormula Name]],Table_SummaryPI[[#This Row],[Quantity]],Table_PI[[#This Row],[List 1]],Table_PI[[#This Row],[List 2]],Table_PI[[#This Row],[List 3]],Table_PI[[#This Row],[Size]],Table_PI[[#This Row],[Input 1]],Table_PI[[#This Row],[Input 2]],Table_PI[[#This Row],[Input 3]],Table_PI[[#This Row],[Input 4]],'Customer Information'!$AR$12,102,ROW())<>0,MeasureCalc(Table_PI[[#This Row],[Hide:\nFormula Name]],Table_SummaryPI[[#This Row],[Quantity]],Table_PI[[#This Row],[List 1]],Table_PI[[#This Row],[List 2]],Table_PI[[#This Row],[List 3]],Table_PI[[#This Row],[Size]],Table_PI[[#This Row],[Input 1]],Table_PI[[#This Row],[Input 2]],Table_PI[[#This Row],[Input 3]],Table_PI[[#This Row],[Input 4]],'Customer Information'!$AR$12,102,ROW())<>\"No Rebate\"),MeasureCalc(Table_PI[[#This Row],[Hide:\nFormula Name]],Table_SummaryPI[[#This Row],[Quantity]],Table_PI[[#This Row],[List 1]],Table_PI[[#This Row],[List 2]],Table_PI[[#This Row],[List 3]],Table_PI[[#This Row],[Size]],Table_PI[[#This Row],[Input 1]],Table_PI[[#This Row],[Input 2]],Table_PI[[#This Row],[Input 3]],Table_PI[[#This Row],[Input 4]],'Customer Information'!$AR$12,102,ROW()),\"\"),\"\")","v":""},{"$f":"IF(Table_PI[[#This Row],[Input 3]]<>\"\",Table_PI[[#This Row],[Input 3]],\"\")","v":""},null,{"$f":"IFERROR(IF(AND(MeasureCalc(Table_PI[[#This Row],[Hide:\nFormula Name]],Table_SummaryPI[[#This Row],[Quantity]],Table_PI[[#This Row],[List 1]],Table_PI[[#This Row],[List 2]],Table_PI[[#This Row],[List 3]],Table_PI[[#This Row],[Size]],Table_PI[[#This Row],[Input 1]],Table_PI[[#This Row],[Input 2]],Table_PI[[#This Row],[Input 3]],Table_PI[[#This Row],[Input 4]],'Customer Information'!$AR$12,103,ROW())<>0,MeasureCalc(Table_PI[[#This Row],[Hide:\nFormula Name]],Table_SummaryPI[[#This Row],[Quantity]],Table_PI[[#This Row],[List 1]],Table_PI[[#This Row],[List 2]],Table_PI[[#This Row],[List 3]],Table_PI[[#This Row],[Size]],Table_PI[[#This Row],[Input 1]],Table_PI[[#This Row],[Input 2]],Table_PI[[#This Row],[Input 3]],Table_PI[[#This Row],[Input 4]],'Customer Information'!$AR$12,103,ROW())<>\"No Rebate\"),MeasureCalc(Table_PI[[#This Row],[Hide:\nFormula Name]],Table_SummaryPI[[#This Row],[Quantity]],Table_PI[[#This Row],[List 1]],Table_PI[[#This Row],[List 2]],Table_PI[[#This Row],[List 3]],Table_PI[[#This Row],[Size]],Table_PI[[#This Row],[Input 1]],Table_PI[[#This Row],[Input 2]],Table_PI[[#This Row],[Input 3]],Table_PI[[#This Row],[Input 4]],'Customer Information'!$AR$12,103,ROW()),\"\"),\"\")","v":""},{"$f":"IF(Table_PI[[#This Row],[Input 4]]<>\"\",Table_PI[[#This Row],[Input 4]],\"\")","v":""},{"$f":"IF(Table_PI[[#This Row],[Quantity]]=\"\",\"\",Table_PI[[#This Row],[Quantity]])","v":""},{"$f":"IF(Table_PI[[#This Row],[Notes]]=\"\",\"\",Table_PI[[#This Row],[Notes]])","v":""},{"$f":"IF(OR(Table_PI[[#This Row],[Hide:\nBaseline kWh]]=\"\",Table_PI[[#This Row],[Hide:\nBaseline kWh]]=0),\"\",Table_PI[[#This Row],[Hide:\nBaseline kWh]])","v":""},{"$f":"IF(OR(Table_PI[[#This Row],[Hide:\nBaseline kW]]=\"\",Table_PI[[#This Row],[Hide:\nBaseline kW]]=0),\"\",Table_PI[[#This Row],[Hide:\nBaseline kW]])","v":""},{"$f":"IF(OR(Table_PI[[#This Row],[Hide:\nProposed kWh]]=\"\",Table_PI[[#This Row],[Hide:\nProposed kWh]]=0),\"\",Table_PI[[#This Row],[Hide:\nProposed kWh]])","v":""},{"$f":"IF(OR(Table_PI[[#This Row],[Hide:\nProposed kW]]=\"\",Table_PI[[#This Row],[Hide:\nProposed kW]]=0),\"\",Table_PI[[#This Row],[Hide:\nProposed kW]])","v":""},{"$f":"IF(OR(Table_PI[[#This Row],[Rebate]]=\"\",Table_PI[[#This Row],[Rebate]]=0),\"\",Table_PI[[#This Row],[Rebate]])","v":""},{"$f":"IF(OR(Table_PI[[#This Row],[Hide:\nIncremental Cost]]=\"\",Table_PI[[#This Row],[Hide:\nIncremental Cost]]=0),\"\",Table_PI[[#This Row],[Hide:\nIncremental Cost]])","v":""},{"$f":"IFERROR(IF(Table_SummaryPI[[#This Row],[kWhSavings]]=\"\",\"\",ROUND(Table_SummaryPI[[#This Row],[kWhSavings]]/$AG$401*'Customer Information'!$BC$17,2)),0)","v":""},{"$f":"IF(OR(Table_PI[[#This Row],[Annual kWh]]=\"\",Table_PI[[#This Row],[Annual kWh]]=0),\"\",Table_PI[[#This Row],[Annual kWh]])","v":""},{"$f":"IF(OR(Table_PI[[#This Row],[Peak kW]]=\"\",Table_PI[[#This Row],[Peak kW]]=0),\"\",Table_PI[[#This Row],[Peak kW]])","v":""},{"$f":"IFERROR(IF(Table_SummaryPI[[#This Row],[kWhSavings]]=\"\",\"\",$AU$9*Table_SummaryPI[[#This Row],[kWhSavings]]),0)","v":""},{"$f":"IFERROR(IF(Table_SummaryPI[[#This Row],[kWhSavings]]=\"\",\"\",$AU$14*Table_SummaryPI[[#This Row],[kWhSavings]]),0)","v":""},{"$f":"IFERROR(IF(Table_SummaryPI[[#This Row],[kWhSavings]]=\"\",\"\",$AU$18*Table_SummaryPI[[#This Row],[kWhSavings]]),0)","v":""},{"$f":"IFERROR(IF(Table_SummaryPI[[#This Row],[kWhSavings]]=\"\",\"\",$AU$22*Table_SummaryPI[[#This Row],[kWhSavings]]),0)","v":""},{"$f":"IFERROR(IF(MeasureCalc(Table_PI[[#This Row],[Hide:\nFormula Name]],Table_SummaryPI[[#This Row],[Quantity]],Table_PI[[#This Row],[List 1]],Table_PI[[#This Row],[List 2]],Table_PI[[#This Row],[List 3]],Table_PI[[#This Row],[Size]],Table_PI[[#This Row],[Input 1]],Table_PI[[#This Row],[Input 2]],Table_PI[[#This Row],[Input 3]],Table_PI[[#This Row],[Input 4]],'Customer Information'!$AR$12,200,ROW())<>\"No Rebate\",MeasureCalc(Table_PI[[#This Row],[Hide:\nFormula Name]],Table_SummaryPI[[#This Row],[Quantity]],Table_PI[[#This Row],[List 1]],Table_PI[[#This Row],[List 2]],Table_PI[[#This Row],[List 3]],Table_PI[[#This Row],[Size]],Table_PI[[#This Row],[Input 1]],Table_PI[[#This Row],[Input 2]],Table_PI[[#This Row],[Input 3]],Table_PI[[#This Row],[Input 4]],'Customer Information'!$AR$12,200,ROW()),\"\"),\"\")","v":""},{"$f":"IFERROR(IF(MeasureCalc(Table_PI[[#This Row],[Hide:\nFormula Name]],Table_SummaryPI[[#This Row],[Quantity]],Table_PI[[#This Row],[List 1]],Table_PI[[#This Row],[List 2]],Table_PI[[#This Row],[List 3]],Table_PI[[#This Row],[Size]],Table_PI[[#This Row],[Input 1]],Table_PI[[#This Row],[Input 2]],Table_PI[[#This Row],[Input 3]],Table_PI[[#This Row],[Input 4]],'Customer Information'!$AR$12,201,ROW())<>\"No Rebate\",MeasureCalc(Table_PI[[#This Row],[Hide:\nFormula Name]],Table_SummaryPI[[#This Row],[Quantity]],Table_PI[[#This Row],[List 1]],Table_PI[[#This Row],[List 2]],Table_PI[[#This Row],[List 3]],Table_PI[[#This Row],[Size]],Table_PI[[#This Row],[Input 1]],Table_PI[[#This Row],[Input 2]],Table_PI[[#This Row],[Input 3]],Table_PI[[#This Row],[Input 4]],'Customer Information'!$AR$12,201,ROW()),\"\"),\"\")","v":""}]
[{"$f":"Table_PI[[#This Row],[Line No.]]","v":""},{"$f":"IF(Table_SummaryPI[[#This Row],[MeassureCategory]]<>\"\",CONCATENATE(Table_SummaryPI[[#This Row],[MeassureCategory]],  \" - \", Table_SummaryPI[[#This Row],[ProposedMeasureCategory]],  \" - \", TEXT(Table_SummaryPI[[#This Row],[Size]],\"#,##0.00\"),\" \",Table_SummaryPI[[#This Row],[SizeUnit]]),\"\")","v":""},{"$f":"SUBSTITUTE(Table_PI[[#This Row],[Measure]],\"     \",\"\",1)","v":""},{"$f":"IF(Table_PI[[#This Row],[List 1]]<>\"\",Table_PI[[#This Row],[List 1]],\"\")","v":""},{"$f":"IF(Table_PI[[#This Row],[List 2]]<>\"\",Table_PI[[#This Row],[List 2]],\"\")","v":""},{"$f":"IF(Table_PI[[#This Row],[List 3]]<>\"\",Table_PI[[#This Row],[List 3]],\"\")","v":""},{"$f":"IF(Table_PI[[#This Row],[Manufacturer]]=\"\",\"\",Table_PI[[#This Row],[Manufacturer]])","v":""},{"$f":"IF(Table_PI[[#This Row],[Model Number]]=\"\",\"\",Table_PI[[#This Row],[Model Number]])","v":""},{"$f":"IF(Table_PI[[#This Row],[Serial Number(s)]]=\"\",\"\",Table_PI[[#This Row],[Serial Number(s)]])","v":""},null,{"$f":"IF(Table_PI[[#This Row],[Size]]=\"\",\"\",Table_PI[[#This Row],[Size]])","v":""},null,{"$f":"IFERROR(IF(AND(MeasureCalc(Table_PI[[#This Row],[Hide:\nFormula Name]],Table_SummaryPI[[#This Row],[Quantity]],Table_PI[[#This Row],[List 1]],Table_PI[[#This Row],[List 2]],Table_PI[[#This Row],[List 3]],Table_PI[[#This Row],[Size]],Table_PI[[#This Row],[Input 1]],Table_PI[[#This Row],[Input 2]],Table_PI[[#This Row],[Input 3]],Table_PI[[#This Row],[Input 4]],'Customer Information'!$AR$12,100,ROW())<>0,MeasureCalc(Table_PI[[#This Row],[Hide:\nFormula Name]],Table_SummaryPI[[#This Row],[Quantity]],Table_PI[[#This Row],[List 1]],Table_PI[[#This Row],[List 2]],Table_PI[[#This Row],[List 3]],Table_PI[[#This Row],[Size]],Table_PI[[#This Row],[Input 1]],Table_PI[[#This Row],[Input 2]],Table_PI[[#This Row],[Input 3]],Table_PI[[#This Row],[Input 4]],'Customer Information'!$AR$12,100,ROW())<>\"No Rebate\"),MeasureCalc(Table_PI[[#This Row],[Hide:\nFormula Name]],Table_SummaryPI[[#This Row],[Quantity]],Table_PI[[#This Row],[List 1]],Table_PI[[#This Row],[List 2]],Table_PI[[#This Row],[List 3]],Table_PI[[#This Row],[Size]],Table_PI[[#This Row],[Input 1]],Table_PI[[#This Row],[Input 2]],Table_PI[[#This Row],[Input 3]],Table_PI[[#This Row],[Input 4]],'Customer Information'!$AR$12,100,ROW()),\"\"),\"\")","v":""},{"$f":"IF(Table_PI[[#This Row],[Input 1]]<>\"\",Table_PI[[#This Row],[Input 1]],\"\")","v":""},null,{"$f":"IFERROR(IF(AND(MeasureCalc(Table_PI[[#This Row],[Hide:\nFormula Name]],Table_SummaryPI[[#This Row],[Quantity]],Table_PI[[#This Row],[List 1]],Table_PI[[#This Row],[List 2]],Table_PI[[#This Row],[List 3]],Table_PI[[#This Row],[Size]],Table_PI[[#This Row],[Input 1]],Table_PI[[#This Row],[Input 2]],Table_PI[[#This Row],[Input 3]],Table_PI[[#This Row],[Input 4]],'Customer Information'!$AR$12,101,ROW())<>0,MeasureCalc(Table_PI[[#This Row],[Hide:\nFormula Name]],Table_SummaryPI[[#This Row],[Quantity]],Table_PI[[#This Row],[List 1]],Table_PI[[#This Row],[List 2]],Table_PI[[#This Row],[List 3]],Table_PI[[#This Row],[Size]],Table_PI[[#This Row],[Input 1]],Table_PI[[#This Row],[Input 2]],Table_PI[[#This Row],[Input 3]],Table_PI[[#This Row],[Input 4]],'Customer Information'!$AR$12,101,ROW())<>\"No Rebate\"),MeasureCalc(Table_PI[[#This Row],[Hide:\nFormula Name]],Table_SummaryPI[[#This Row],[Quantity]],Table_PI[[#This Row],[List 1]],Table_PI[[#This Row],[List 2]],Table_PI[[#This Row],[List 3]],Table_PI[[#This Row],[Size]],Table_PI[[#This Row],[Input 1]],Table_PI[[#This Row],[Input 2]],Table_PI[[#This Row],[Input 3]],Table_PI[[#This Row],[Input 4]],'Customer Information'!$AR$12,101,ROW()),\"\"),\"\")","v":""},{"$f":"IF(Table_PI[[#This Row],[Input 2]]<>\"\",Table_PI[[#This Row],[Input 2]],\"\")","v":""},null,{"$f":"IFERROR(IF(AND(MeasureCalc(Table_PI[[#This Row],[Hide:\nFormula Name]],Table_SummaryPI[[#This Row],[Quantity]],Table_PI[[#This Row],[List 1]],Table_PI[[#This Row],[List 2]],Table_PI[[#This Row],[List 3]],Table_PI[[#This Row],[Size]],Table_PI[[#This Row],[Input 1]],Table_PI[[#This Row],[Input 2]],Table_PI[[#This Row],[Input 3]],Table_PI[[#This Row],[Input 4]],'Customer Information'!$AR$12,102,ROW())<>0,MeasureCalc(Table_PI[[#This Row],[Hide:\nFormula Name]],Table_SummaryPI[[#This Row],[Quantity]],Table_PI[[#This Row],[List 1]],Table_PI[[#This Row],[List 2]],Table_PI[[#This Row],[List 3]],Table_PI[[#This Row],[Size]],Table_PI[[#This Row],[Input 1]],Table_PI[[#This Row],[Input 2]],Table_PI[[#This Row],[Input 3]],Table_PI[[#This Row],[Input 4]],'Customer Information'!$AR$12,102,ROW())<>\"No Rebate\"),MeasureCalc(Table_PI[[#This Row],[Hide:\nFormula Name]],Table_SummaryPI[[#This Row],[Quantity]],Table_PI[[#This Row],[List 1]],Table_PI[[#This Row],[List 2]],Table_PI[[#This Row],[List 3]],Table_PI[[#This Row],[Size]],Table_PI[[#This Row],[Input 1]],Table_PI[[#This Row],[Input 2]],Table_PI[[#This Row],[Input 3]],Table_PI[[#This Row],[Input 4]],'Customer Information'!$AR$12,102,ROW()),\"\"),\"\")","v":""},{"$f":"IF(Table_PI[[#This Row],[Input 3]]<>\"\",Table_PI[[#This Row],[Input 3]],\"\")","v":""},null,{"$f":"IFERROR(IF(AND(MeasureCalc(Table_PI[[#This Row],[Hide:\nFormula Name]],Table_SummaryPI[[#This Row],[Quantity]],Table_PI[[#This Row],[List 1]],Table_PI[[#This Row],[List 2]],Table_PI[[#This Row],[List 3]],Table_PI[[#This Row],[Size]],Table_PI[[#This Row],[Input 1]],Table_PI[[#This Row],[Input 2]],Table_PI[[#This Row],[Input 3]],Table_PI[[#This Row],[Input 4]],'Customer Information'!$AR$12,103,ROW())<>0,MeasureCalc(Table_PI[[#This Row],[Hide:\nFormula Name]],Table_SummaryPI[[#This Row],[Quantity]],Table_PI[[#This Row],[List 1]],Table_PI[[#This Row],[List 2]],Table_PI[[#This Row],[List 3]],Table_PI[[#This Row],[Size]],Table_PI[[#This Row],[Input 1]],Table_PI[[#This Row],[Input 2]],Table_PI[[#This Row],[Input 3]],Table_PI[[#This Row],[Input 4]],'Customer Information'!$AR$12,103,ROW())<>\"No Rebate\"),MeasureCalc(Table_PI[[#This Row],[Hide:\nFormula Name]],Table_SummaryPI[[#This Row],[Quantity]],Table_PI[[#This Row],[List 1]],Table_PI[[#This Row],[List 2]],Table_PI[[#This Row],[List 3]],Table_PI[[#This Row],[Size]],Table_PI[[#This Row],[Input 1]],Table_PI[[#This Row],[Input 2]],Table_PI[[#This Row],[Input 3]],Table_PI[[#This Row],[Input 4]],'Customer Information'!$AR$12,103,ROW()),\"\"),\"\")","v":""},{"$f":"IF(Table_PI[[#This Row],[Input 4]]<>\"\",Table_PI[[#This Row],[Input 4]],\"\")","v":""},{"$f":"IF(Table_PI[[#This Row],[Quantity]]=\"\",\"\",Table_PI[[#This Row],[Quantity]])","v":""},{"$f":"IF(Table_PI[[#This Row],[Notes]]=\"\",\"\",Table_PI[[#This Row],[Notes]])","v":""},{"$f":"IF(OR(Table_PI[[#This Row],[Hide:\nBaseline kWh]]=\"\",Table_PI[[#This Row],[Hide:\nBaseline kWh]]=0),\"\",Table_PI[[#This Row],[Hide:\nBaseline kWh]])","v":""},{"$f":"IF(OR(Table_PI[[#This Row],[Hide:\nBaseline kW]]=\"\",Table_PI[[#This Row],[Hide:\nBaseline kW]]=0),\"\",Table_PI[[#This Row],[Hide:\nBaseline kW]])","v":""},{"$f":"IF(OR(Table_PI[[#This Row],[Hide:\nProposed kWh]]=\"\",Table_PI[[#This Row],[Hide:\nProposed kWh]]=0),\"\",Table_PI[[#This Row],[Hide:\nProposed kWh]])","v":""},{"$f":"IF(OR(Table_PI[[#This Row],[Hide:\nProposed kW]]=\"\",Table_PI[[#This Row],[Hide:\nProposed kW]]=0),\"\",Table_PI[[#This Row],[Hide:\nProposed kW]])","v":""},{"$f":"IF(OR(Table_PI[[#This Row],[Rebate]]=\"\",Table_PI[[#This Row],[Rebate]]=0),\"\",Table_PI[[#This Row],[Rebate]])","v":""},{"$f":"IF(OR(Table_PI[[#This Row],[Hide:\nIncremental Cost]]=\"\",Table_PI[[#This Row],[Hide:\nIncremental Cost]]=0),\"\",Table_PI[[#This Row],[Hide:\nIncremental Cost]])","v":""},{"$f":"IFERROR(IF(Table_SummaryPI[[#This Row],[kWhSavings]]=\"\",\"\",ROUND(Table_SummaryPI[[#This Row],[kWhSavings]]/$AG$401*'Customer Information'!$BC$17,2)),0)","v":""},{"$f":"IF(OR(Table_PI[[#This Row],[Annual kWh]]=\"\",Table_PI[[#This Row],[Annual kWh]]=0),\"\",Table_PI[[#This Row],[Annual kWh]])","v":""},{"$f":"IF(OR(Table_PI[[#This Row],[Peak kW]]=\"\",Table_PI[[#This Row],[Peak kW]]=0),\"\",Table_PI[[#This Row],[Peak kW]])","v":""},{"$f":"IFERROR(IF(Table_SummaryPI[[#This Row],[kWhSavings]]=\"\",\"\",$AU$9*Table_SummaryPI[[#This Row],[kWhSavings]]),0)","v":""},{"$f":"IFERROR(IF(Table_SummaryPI[[#This Row],[kWhSavings]]=\"\",\"\",$AU$14*Table_SummaryPI[[#This Row],[kWhSavings]]),0)","v":""},{"$f":"IFERROR(IF(Table_SummaryPI[[#This Row],[kWhSavings]]=\"\",\"\",$AU$18*Table_SummaryPI[[#This Row],[kWhSavings]]),0)","v":""},{"$f":"IFERROR(IF(Table_SummaryPI[[#This Row],[kWhSavings]]=\"\",\"\",$AU$22*Table_SummaryPI[[#This Row],[kWhSavings]]),0)","v":""},{"$f":"IFERROR(IF(MeasureCalc(Table_PI[[#This Row],[Hide:\nFormula Name]],Table_SummaryPI[[#This Row],[Quantity]],Table_PI[[#This Row],[List 1]],Table_PI[[#This Row],[List 2]],Table_PI[[#This Row],[List 3]],Table_PI[[#This Row],[Size]],Table_PI[[#This Row],[Input 1]],Table_PI[[#This Row],[Input 2]],Table_PI[[#This Row],[Input 3]],Table_PI[[#This Row],[Input 4]],'Customer Information'!$AR$12,200,ROW())<>\"No Rebate\",MeasureCalc(Table_PI[[#This Row],[Hide:\nFormula Name]],Table_SummaryPI[[#This Row],[Quantity]],Table_PI[[#This Row],[List 1]],Table_PI[[#This Row],[List 2]],Table_PI[[#This Row],[List 3]],Table_PI[[#This Row],[Size]],Table_PI[[#This Row],[Input 1]],Table_PI[[#This Row],[Input 2]],Table_PI[[#This Row],[Input 3]],Table_PI[[#This Row],[Input 4]],'Customer Information'!$AR$12,200,ROW()),\"\"),\"\")","v":""},{"$f":"IFERROR(IF(MeasureCalc(Table_PI[[#This Row],[Hide:\nFormula Name]],Table_SummaryPI[[#This Row],[Quantity]],Table_PI[[#This Row],[List 1]],Table_PI[[#This Row],[List 2]],Table_PI[[#This Row],[List 3]],Table_PI[[#This Row],[Size]],Table_PI[[#This Row],[Input 1]],Table_PI[[#This Row],[Input 2]],Table_PI[[#This Row],[Input 3]],Table_PI[[#This Row],[Input 4]],'Customer Information'!$AR$12,201,ROW())<>\"No Rebate\",MeasureCalc(Table_PI[[#This Row],[Hide:\nFormula Name]],Table_SummaryPI[[#This Row],[Quantity]],Table_PI[[#This Row],[List 1]],Table_PI[[#This Row],[List 2]],Table_PI[[#This Row],[List 3]],Table_PI[[#This Row],[Size]],Table_PI[[#This Row],[Input 1]],Table_PI[[#This Row],[Input 2]],Table_PI[[#This Row],[Input 3]],Table_PI[[#This Row],[Input 4]],'Customer Information'!$AR$12,201,ROW()),\"\"),\"\")","v":""}]
[{"$f":"Table_PI[[#This Row],[Line No.]]","v":""},{"$f":"IF(Table_SummaryPI[[#This Row],[MeassureCategory]]<>\"\",CONCATENATE(Table_SummaryPI[[#This Row],[MeassureCategory]],  \" - \", Table_SummaryPI[[#This Row],[ProposedMeasureCategory]],  \" - \", TEXT(Table_SummaryPI[[#This Row],[Size]],\"#,##0.00\"),\" \",Table_SummaryPI[[#This Row],[SizeUnit]]),\"\")","v":""},{"$f":"SUBSTITUTE(Table_PI[[#This Row],[Measure]],\"     \",\"\",1)","v":""},{"$f":"IF(Table_PI[[#This Row],[List 1]]<>\"\",Table_PI[[#This Row],[List 1]],\"\")","v":""},{"$f":"IF(Table_PI[[#This Row],[List 2]]<>\"\",Table_PI[[#This Row],[List 2]],\"\")","v":""},{"$f":"IF(Table_PI[[#This Row],[List 3]]<>\"\",Table_PI[[#This Row],[List 3]],\"\")","v":""},{"$f":"IF(Table_PI[[#This Row],[Manufacturer]]=\"\",\"\",Table_PI[[#This Row],[Manufacturer]])","v":""},{"$f":"IF(Table_PI[[#This Row],[Model Number]]=\"\",\"\",Table_PI[[#This Row],[Model Number]])","v":""},{"$f":"IF(Table_PI[[#This Row],[Serial Number(s)]]=\"\",\"\",Table_PI[[#This Row],[Serial Number(s)]])","v":""},null,{"$f":"IF(Table_PI[[#This Row],[Size]]=\"\",\"\",Table_PI[[#This Row],[Size]])","v":""},null,{"$f":"IFERROR(IF(AND(MeasureCalc(Table_PI[[#This Row],[Hide:\nFormula Name]],Table_SummaryPI[[#This Row],[Quantity]],Table_PI[[#This Row],[List 1]],Table_PI[[#This Row],[List 2]],Table_PI[[#This Row],[List 3]],Table_PI[[#This Row],[Size]],Table_PI[[#This Row],[Input 1]],Table_PI[[#This Row],[Input 2]],Table_PI[[#This Row],[Input 3]],Table_PI[[#This Row],[Input 4]],'Customer Information'!$AR$12,100,ROW())<>0,MeasureCalc(Table_PI[[#This Row],[Hide:\nFormula Name]],Table_SummaryPI[[#This Row],[Quantity]],Table_PI[[#This Row],[List 1]],Table_PI[[#This Row],[List 2]],Table_PI[[#This Row],[List 3]],Table_PI[[#This Row],[Size]],Table_PI[[#This Row],[Input 1]],Table_PI[[#This Row],[Input 2]],Table_PI[[#This Row],[Input 3]],Table_PI[[#This Row],[Input 4]],'Customer Information'!$AR$12,100,ROW())<>\"No Rebate\"),MeasureCalc(Table_PI[[#This Row],[Hide:\nFormula Name]],Table_SummaryPI[[#This Row],[Quantity]],Table_PI[[#This Row],[List 1]],Table_PI[[#This Row],[List 2]],Table_PI[[#This Row],[List 3]],Table_PI[[#This Row],[Size]],Table_PI[[#This Row],[Input 1]],Table_PI[[#This Row],[Input 2]],Table_PI[[#This Row],[Input 3]],Table_PI[[#This Row],[Input 4]],'Customer Information'!$AR$12,100,ROW()),\"\"),\"\")","v":""},{"$f":"IF(Table_PI[[#This Row],[Input 1]]<>\"\",Table_PI[[#This Row],[Input 1]],\"\")","v":""},null,{"$f":"IFERROR(IF(AND(MeasureCalc(Table_PI[[#This Row],[Hide:\nFormula Name]],Table_SummaryPI[[#This Row],[Quantity]],Table_PI[[#This Row],[List 1]],Table_PI[[#This Row],[List 2]],Table_PI[[#This Row],[List 3]],Table_PI[[#This Row],[Size]],Table_PI[[#This Row],[Input 1]],Table_PI[[#This Row],[Input 2]],Table_PI[[#This Row],[Input 3]],Table_PI[[#This Row],[Input 4]],'Customer Information'!$AR$12,101,ROW())<>0,MeasureCalc(Table_PI[[#This Row],[Hide:\nFormula Name]],Table_SummaryPI[[#This Row],[Quantity]],Table_PI[[#This Row],[List 1]],Table_PI[[#This Row],[List 2]],Table_PI[[#This Row],[List 3]],Table_PI[[#This Row],[Size]],Table_PI[[#This Row],[Input 1]],Table_PI[[#This Row],[Input 2]],Table_PI[[#This Row],[Input 3]],Table_PI[[#This Row],[Input 4]],'Customer Information'!$AR$12,101,ROW())<>\"No Rebate\"),MeasureCalc(Table_PI[[#This Row],[Hide:\nFormula Name]],Table_SummaryPI[[#This Row],[Quantity]],Table_PI[[#This Row],[List 1]],Table_PI[[#This Row],[List 2]],Table_PI[[#This Row],[List 3]],Table_PI[[#This Row],[Size]],Table_PI[[#This Row],[Input 1]],Table_PI[[#This Row],[Input 2]],Table_PI[[#This Row],[Input 3]],Table_PI[[#This Row],[Input 4]],'Customer Information'!$AR$12,101,ROW()),\"\"),\"\")","v":""},{"$f":"IF(Table_PI[[#This Row],[Input 2]]<>\"\",Table_PI[[#This Row],[Input 2]],\"\")","v":""},null,{"$f":"IFERROR(IF(AND(MeasureCalc(Table_PI[[#This Row],[Hide:\nFormula Name]],Table_SummaryPI[[#This Row],[Quantity]],Table_PI[[#This Row],[List 1]],Table_PI[[#This Row],[List 2]],Table_PI[[#This Row],[List 3]],Table_PI[[#This Row],[Size]],Table_PI[[#This Row],[Input 1]],Table_PI[[#This Row],[Input 2]],Table_PI[[#This Row],[Input 3]],Table_PI[[#This Row],[Input 4]],'Customer Information'!$AR$12,102,ROW())<>0,MeasureCalc(Table_PI[[#This Row],[Hide:\nFormula Name]],Table_SummaryPI[[#This Row],[Quantity]],Table_PI[[#This Row],[List 1]],Table_PI[[#This Row],[List 2]],Table_PI[[#This Row],[List 3]],Table_PI[[#This Row],[Size]],Table_PI[[#This Row],[Input 1]],Table_PI[[#This Row],[Input 2]],Table_PI[[#This Row],[Input 3]],Table_PI[[#This Row],[Input 4]],'Customer Information'!$AR$12,102,ROW())<>\"No Rebate\"),MeasureCalc(Table_PI[[#This Row],[Hide:\nFormula Name]],Table_SummaryPI[[#This Row],[Quantity]],Table_PI[[#This Row],[List 1]],Table_PI[[#This Row],[List 2]],Table_PI[[#This Row],[List 3]],Table_PI[[#This Row],[Size]],Table_PI[[#This Row],[Input 1]],Table_PI[[#This Row],[Input 2]],Table_PI[[#This Row],[Input 3]],Table_PI[[#This Row],[Input 4]],'Customer Information'!$AR$12,102,ROW()),\"\"),\"\")","v":""},{"$f":"IF(Table_PI[[#This Row],[Input 3]]<>\"\",Table_PI[[#This Row],[Input 3]],\"\")","v":""},null,{"$f":"IFERROR(IF(AND(MeasureCalc(Table_PI[[#This Row],[Hide:\nFormula Name]],Table_SummaryPI[[#This Row],[Quantity]],Table_PI[[#This Row],[List 1]],Table_PI[[#This Row],[List 2]],Table_PI[[#This Row],[List 3]],Table_PI[[#This Row],[Size]],Table_PI[[#This Row],[Input 1]],Table_PI[[#This Row],[Input 2]],Table_PI[[#This Row],[Input 3]],Table_PI[[#This Row],[Input 4]],'Customer Information'!$AR$12,103,ROW())<>0,MeasureCalc(Table_PI[[#This Row],[Hide:\nFormula Name]],Table_SummaryPI[[#This Row],[Quantity]],Table_PI[[#This Row],[List 1]],Table_PI[[#This Row],[List 2]],Table_PI[[#This Row],[List 3]],Table_PI[[#This Row],[Size]],Table_PI[[#This Row],[Input 1]],Table_PI[[#This Row],[Input 2]],Table_PI[[#This Row],[Input 3]],Table_PI[[#This Row],[Input 4]],'Customer Information'!$AR$12,103,ROW())<>\"No Rebate\"),MeasureCalc(Table_PI[[#This Row],[Hide:\nFormula Name]],Table_SummaryPI[[#This Row],[Quantity]],Table_PI[[#This Row],[List 1]],Table_PI[[#This Row],[List 2]],Table_PI[[#This Row],[List 3]],Table_PI[[#This Row],[Size]],Table_PI[[#This Row],[Input 1]],Table_PI[[#This Row],[Input 2]],Table_PI[[#This Row],[Input 3]],Table_PI[[#This Row],[Input 4]],'Customer Information'!$AR$12,103,ROW()),\"\"),\"\")","v":""},{"$f":"IF(Table_PI[[#This Row],[Input 4]]<>\"\",Table_PI[[#This Row],[Input 4]],\"\")","v":""},{"$f":"IF(Table_PI[[#This Row],[Quantity]]=\"\",\"\",Table_PI[[#This Row],[Quantity]])","v":""},{"$f":"IF(Table_PI[[#This Row],[Notes]]=\"\",\"\",Table_PI[[#This Row],[Notes]])","v":""},{"$f":"IF(OR(Table_PI[[#This Row],[Hide:\nBaseline kWh]]=\"\",Table_PI[[#This Row],[Hide:\nBaseline kWh]]=0),\"\",Table_PI[[#This Row],[Hide:\nBaseline kWh]])","v":""},{"$f":"IF(OR(Table_PI[[#This Row],[Hide:\nBaseline kW]]=\"\",Table_PI[[#This Row],[Hide:\nBaseline kW]]=0),\"\",Table_PI[[#This Row],[Hide:\nBaseline kW]])","v":""},{"$f":"IF(OR(Table_PI[[#This Row],[Hide:\nProposed kWh]]=\"\",Table_PI[[#This Row],[Hide:\nProposed kWh]]=0),\"\",Table_PI[[#This Row],[Hide:\nProposed kWh]])","v":""},{"$f":"IF(OR(Table_PI[[#This Row],[Hide:\nProposed kW]]=\"\",Table_PI[[#This Row],[Hide:\nProposed kW]]=0),\"\",Table_PI[[#This Row],[Hide:\nProposed kW]])","v":""},{"$f":"IF(OR(Table_PI[[#This Row],[Rebate]]=\"\",Table_PI[[#This Row],[Rebate]]=0),\"\",Table_PI[[#This Row],[Rebate]])","v":""},{"$f":"IF(OR(Table_PI[[#This Row],[Hide:\nIncremental Cost]]=\"\",Table_PI[[#This Row],[Hide:\nIncremental Cost]]=0),\"\",Table_PI[[#This Row],[Hide:\nIncremental Cost]])","v":""},{"$f":"IFERROR(IF(Table_SummaryPI[[#This Row],[kWhSavings]]=\"\",\"\",ROUND(Table_SummaryPI[[#This Row],[kWhSavings]]/$AG$401*'Customer Information'!$BC$17,2)),0)","v":""},{"$f":"IF(OR(Table_PI[[#This Row],[Annual kWh]]=\"\",Table_PI[[#This Row],[Annual kWh]]=0),\"\",Table_PI[[#This Row],[Annual kWh]])","v":""},{"$f":"IF(OR(Table_PI[[#This Row],[Peak kW]]=\"\",Table_PI[[#This Row],[Peak kW]]=0),\"\",Table_PI[[#This Row],[Peak kW]])","v":""},{"$f":"IFERROR(IF(Table_SummaryPI[[#This Row],[kWhSavings]]=\"\",\"\",$AU$9*Table_SummaryPI[[#This Row],[kWhSavings]]),0)","v":""},{"$f":"IFERROR(IF(Table_SummaryPI[[#This Row],[kWhSavings]]=\"\",\"\",$AU$14*Table_SummaryPI[[#This Row],[kWhSavings]]),0)","v":""},{"$f":"IFERROR(IF(Table_SummaryPI[[#This Row],[kWhSavings]]=\"\",\"\",$AU$18*Table_SummaryPI[[#This Row],[kWhSavings]]),0)","v":""},{"$f":"IFERROR(IF(Table_SummaryPI[[#This Row],[kWhSavings]]=\"\",\"\",$AU$22*Table_SummaryPI[[#This Row],[kWhSavings]]),0)","v":""},{"$f":"IFERROR(IF(MeasureCalc(Table_PI[[#This Row],[Hide:\nFormula Name]],Table_SummaryPI[[#This Row],[Quantity]],Table_PI[[#This Row],[List 1]],Table_PI[[#This Row],[List 2]],Table_PI[[#This Row],[List 3]],Table_PI[[#This Row],[Size]],Table_PI[[#This Row],[Input 1]],Table_PI[[#This Row],[Input 2]],Table_PI[[#This Row],[Input 3]],Table_PI[[#This Row],[Input 4]],'Customer Information'!$AR$12,200,ROW())<>\"No Rebate\",MeasureCalc(Table_PI[[#This Row],[Hide:\nFormula Name]],Table_SummaryPI[[#This Row],[Quantity]],Table_PI[[#This Row],[List 1]],Table_PI[[#This Row],[List 2]],Table_PI[[#This Row],[List 3]],Table_PI[[#This Row],[Size]],Table_PI[[#This Row],[Input 1]],Table_PI[[#This Row],[Input 2]],Table_PI[[#This Row],[Input 3]],Table_PI[[#This Row],[Input 4]],'Customer Information'!$AR$12,200,ROW()),\"\"),\"\")","v":""},{"$f":"IFERROR(IF(MeasureCalc(Table_PI[[#This Row],[Hide:\nFormula Name]],Table_SummaryPI[[#This Row],[Quantity]],Table_PI[[#This Row],[List 1]],Table_PI[[#This Row],[List 2]],Table_PI[[#This Row],[List 3]],Table_PI[[#This Row],[Size]],Table_PI[[#This Row],[Input 1]],Table_PI[[#This Row],[Input 2]],Table_PI[[#This Row],[Input 3]],Table_PI[[#This Row],[Input 4]],'Customer Information'!$AR$12,201,ROW())<>\"No Rebate\",MeasureCalc(Table_PI[[#This Row],[Hide:\nFormula Name]],Table_SummaryPI[[#This Row],[Quantity]],Table_PI[[#This Row],[List 1]],Table_PI[[#This Row],[List 2]],Table_PI[[#This Row],[List 3]],Table_PI[[#This Row],[Size]],Table_PI[[#This Row],[Input 1]],Table_PI[[#This Row],[Input 2]],Table_PI[[#This Row],[Input 3]],Table_PI[[#This Row],[Input 4]],'Customer Information'!$AR$12,201,ROW()),\"\"),\"\")","v":""}]
[{"$f":"Table_PI[[#This Row],[Line No.]]","v":""},{"$f":"IF(Table_SummaryPI[[#This Row],[MeassureCategory]]<>\"\",CONCATENATE(Table_SummaryPI[[#This Row],[MeassureCategory]],  \" - \", Table_SummaryPI[[#This Row],[ProposedMeasureCategory]],  \" - \", TEXT(Table_SummaryPI[[#This Row],[Size]],\"#,##0.00\"),\" \",Table_SummaryPI[[#This Row],[SizeUnit]]),\"\")","v":""},{"$f":"SUBSTITUTE(Table_PI[[#This Row],[Measure]],\"     \",\"\",1)","v":""},{"$f":"IF(Table_PI[[#This Row],[List 1]]<>\"\",Table_PI[[#This Row],[List 1]],\"\")","v":""},{"$f":"IF(Table_PI[[#This Row],[List 2]]<>\"\",Table_PI[[#This Row],[List 2]],\"\")","v":""},{"$f":"IF(Table_PI[[#This Row],[List 3]]<>\"\",Table_PI[[#This Row],[List 3]],\"\")","v":""},{"$f":"IF(Table_PI[[#This Row],[Manufacturer]]=\"\",\"\",Table_PI[[#This Row],[Manufacturer]])","v":""},{"$f":"IF(Table_PI[[#This Row],[Model Number]]=\"\",\"\",Table_PI[[#This Row],[Model Number]])","v":""},{"$f":"IF(Table_PI[[#This Row],[Serial Number(s)]]=\"\",\"\",Table_PI[[#This Row],[Serial Number(s)]])","v":""},null,{"$f":"IF(Table_PI[[#This Row],[Size]]=\"\",\"\",Table_PI[[#This Row],[Size]])","v":""},null,{"$f":"IFERROR(IF(AND(MeasureCalc(Table_PI[[#This Row],[Hide:\nFormula Name]],Table_SummaryPI[[#This Row],[Quantity]],Table_PI[[#This Row],[List 1]],Table_PI[[#This Row],[List 2]],Table_PI[[#This Row],[List 3]],Table_PI[[#This Row],[Size]],Table_PI[[#This Row],[Input 1]],Table_PI[[#This Row],[Input 2]],Table_PI[[#This Row],[Input 3]],Table_PI[[#This Row],[Input 4]],'Customer Information'!$AR$12,100,ROW())<>0,MeasureCalc(Table_PI[[#This Row],[Hide:\nFormula Name]],Table_SummaryPI[[#This Row],[Quantity]],Table_PI[[#This Row],[List 1]],Table_PI[[#This Row],[List 2]],Table_PI[[#This Row],[List 3]],Table_PI[[#This Row],[Size]],Table_PI[[#This Row],[Input 1]],Table_PI[[#This Row],[Input 2]],Table_PI[[#This Row],[Input 3]],Table_PI[[#This Row],[Input 4]],'Customer Information'!$AR$12,100,ROW())<>\"No Rebate\"),MeasureCalc(Table_PI[[#This Row],[Hide:\nFormula Name]],Table_SummaryPI[[#This Row],[Quantity]],Table_PI[[#This Row],[List 1]],Table_PI[[#This Row],[List 2]],Table_PI[[#This Row],[List 3]],Table_PI[[#This Row],[Size]],Table_PI[[#This Row],[Input 1]],Table_PI[[#This Row],[Input 2]],Table_PI[[#This Row],[Input 3]],Table_PI[[#This Row],[Input 4]],'Customer Information'!$AR$12,100,ROW()),\"\"),\"\")","v":""},{"$f":"IF(Table_PI[[#This Row],[Input 1]]<>\"\",Table_PI[[#This Row],[Input 1]],\"\")","v":""},null,{"$f":"IFERROR(IF(AND(MeasureCalc(Table_PI[[#This Row],[Hide:\nFormula Name]],Table_SummaryPI[[#This Row],[Quantity]],Table_PI[[#This Row],[List 1]],Table_PI[[#This Row],[List 2]],Table_PI[[#This Row],[List 3]],Table_PI[[#This Row],[Size]],Table_PI[[#This Row],[Input 1]],Table_PI[[#This Row],[Input 2]],Table_PI[[#This Row],[Input 3]],Table_PI[[#This Row],[Input 4]],'Customer Information'!$AR$12,101,ROW())<>0,MeasureCalc(Table_PI[[#This Row],[Hide:\nFormula Name]],Table_SummaryPI[[#This Row],[Quantity]],Table_PI[[#This Row],[List 1]],Table_PI[[#This Row],[List 2]],Table_PI[[#This Row],[List 3]],Table_PI[[#This Row],[Size]],Table_PI[[#This Row],[Input 1]],Table_PI[[#This Row],[Input 2]],Table_PI[[#This Row],[Input 3]],Table_PI[[#This Row],[Input 4]],'Customer Information'!$AR$12,101,ROW())<>\"No Rebate\"),MeasureCalc(Table_PI[[#This Row],[Hide:\nFormula Name]],Table_SummaryPI[[#This Row],[Quantity]],Table_PI[[#This Row],[List 1]],Table_PI[[#This Row],[List 2]],Table_PI[[#This Row],[List 3]],Table_PI[[#This Row],[Size]],Table_PI[[#This Row],[Input 1]],Table_PI[[#This Row],[Input 2]],Table_PI[[#This Row],[Input 3]],Table_PI[[#This Row],[Input 4]],'Customer Information'!$AR$12,101,ROW()),\"\"),\"\")","v":""},{"$f":"IF(Table_PI[[#This Row],[Input 2]]<>\"\",Table_PI[[#This Row],[Input 2]],\"\")","v":""},null,{"$f":"IFERROR(IF(AND(MeasureCalc(Table_PI[[#This Row],[Hide:\nFormula Name]],Table_SummaryPI[[#This Row],[Quantity]],Table_PI[[#This Row],[List 1]],Table_PI[[#This Row],[List 2]],Table_PI[[#This Row],[List 3]],Table_PI[[#This Row],[Size]],Table_PI[[#This Row],[Input 1]],Table_PI[[#This Row],[Input 2]],Table_PI[[#This Row],[Input 3]],Table_PI[[#This Row],[Input 4]],'Customer Information'!$AR$12,102,ROW())<>0,MeasureCalc(Table_PI[[#This Row],[Hide:\nFormula Name]],Table_SummaryPI[[#This Row],[Quantity]],Table_PI[[#This Row],[List 1]],Table_PI[[#This Row],[List 2]],Table_PI[[#This Row],[List 3]],Table_PI[[#This Row],[Size]],Table_PI[[#This Row],[Input 1]],Table_PI[[#This Row],[Input 2]],Table_PI[[#This Row],[Input 3]],Table_PI[[#This Row],[Input 4]],'Customer Information'!$AR$12,102,ROW())<>\"No Rebate\"),MeasureCalc(Table_PI[[#This Row],[Hide:\nFormula Name]],Table_SummaryPI[[#This Row],[Quantity]],Table_PI[[#This Row],[List 1]],Table_PI[[#This Row],[List 2]],Table_PI[[#This Row],[List 3]],Table_PI[[#This Row],[Size]],Table_PI[[#This Row],[Input 1]],Table_PI[[#This Row],[Input 2]],Table_PI[[#This Row],[Input 3]],Table_PI[[#This Row],[Input 4]],'Customer Information'!$AR$12,102,ROW()),\"\"),\"\")","v":""},{"$f":"IF(Table_PI[[#This Row],[Input 3]]<>\"\",Table_PI[[#This Row],[Input 3]],\"\")","v":""},null,{"$f":"IFERROR(IF(AND(MeasureCalc(Table_PI[[#This Row],[Hide:\nFormula Name]],Table_SummaryPI[[#This Row],[Quantity]],Table_PI[[#This Row],[List 1]],Table_PI[[#This Row],[List 2]],Table_PI[[#This Row],[List 3]],Table_PI[[#This Row],[Size]],Table_PI[[#This Row],[Input 1]],Table_PI[[#This Row],[Input 2]],Table_PI[[#This Row],[Input 3]],Table_PI[[#This Row],[Input 4]],'Customer Information'!$AR$12,103,ROW())<>0,MeasureCalc(Table_PI[[#This Row],[Hide:\nFormula Name]],Table_SummaryPI[[#This Row],[Quantity]],Table_PI[[#This Row],[List 1]],Table_PI[[#This Row],[List 2]],Table_PI[[#This Row],[List 3]],Table_PI[[#This Row],[Size]],Table_PI[[#This Row],[Input 1]],Table_PI[[#This Row],[Input 2]],Table_PI[[#This Row],[Input 3]],Table_PI[[#This Row],[Input 4]],'Customer Information'!$AR$12,103,ROW())<>\"No Rebate\"),MeasureCalc(Table_PI[[#This Row],[Hide:\nFormula Name]],Table_SummaryPI[[#This Row],[Quantity]],Table_PI[[#This Row],[List 1]],Table_PI[[#This Row],[List 2]],Table_PI[[#This Row],[List 3]],Table_PI[[#This Row],[Size]],Table_PI[[#This Row],[Input 1]],Table_PI[[#This Row],[Input 2]],Table_PI[[#This Row],[Input 3]],Table_PI[[#This Row],[Input 4]],'Customer Information'!$AR$12,103,ROW()),\"\"),\"\")","v":""},{"$f":"IF(Table_PI[[#This Row],[Input 4]]<>\"\",Table_PI[[#This Row],[Input 4]],\"\")","v":""},{"$f":"IF(Table_PI[[#This Row],[Quantity]]=\"\",\"\",Table_PI[[#This Row],[Quantity]])","v":""},{"$f":"IF(Table_PI[[#This Row],[Notes]]=\"\",\"\",Table_PI[[#This Row],[Notes]])","v":""},{"$f":"IF(OR(Table_PI[[#This Row],[Hide:\nBaseline kWh]]=\"\",Table_PI[[#This Row],[Hide:\nBaseline kWh]]=0),\"\",Table_PI[[#This Row],[Hide:\nBaseline kWh]])","v":""},{"$f":"IF(OR(Table_PI[[#This Row],[Hide:\nBaseline kW]]=\"\",Table_PI[[#This Row],[Hide:\nBaseline kW]]=0),\"\",Table_PI[[#This Row],[Hide:\nBaseline kW]])","v":""},{"$f":"IF(OR(Table_PI[[#This Row],[Hide:\nProposed kWh]]=\"\",Table_PI[[#This Row],[Hide:\nProposed kWh]]=0),\"\",Table_PI[[#This Row],[Hide:\nProposed kWh]])","v":""},{"$f":"IF(OR(Table_PI[[#This Row],[Hide:\nProposed kW]]=\"\",Table_PI[[#This Row],[Hide:\nProposed kW]]=0),\"\",Table_PI[[#This Row],[Hide:\nProposed kW]])","v":""},{"$f":"IF(OR(Table_PI[[#This Row],[Rebate]]=\"\",Table_PI[[#This Row],[Rebate]]=0),\"\",Table_PI[[#This Row],[Rebate]])","v":""},{"$f":"IF(OR(Table_PI[[#This Row],[Hide:\nIncremental Cost]]=\"\",Table_PI[[#This Row],[Hide:\nIncremental Cost]]=0),\"\",Table_PI[[#This Row],[Hide:\nIncremental Cost]])","v":""},{"$f":"IFERROR(IF(Table_SummaryPI[[#This Row],[kWhSavings]]=\"\",\"\",ROUND(Table_SummaryPI[[#This Row],[kWhSavings]]/$AG$401*'Customer Information'!$BC$17,2)),0)","v":""},{"$f":"IF(OR(Table_PI[[#This Row],[Annual kWh]]=\"\",Table_PI[[#This Row],[Annual kWh]]=0),\"\",Table_PI[[#This Row],[Annual kWh]])","v":""},{"$f":"IF(OR(Table_PI[[#This Row],[Peak kW]]=\"\",Table_PI[[#This Row],[Peak kW]]=0),\"\",Table_PI[[#This Row],[Peak kW]])","v":""},{"$f":"IFERROR(IF(Table_SummaryPI[[#This Row],[kWhSavings]]=\"\",\"\",$AU$9*Table_SummaryPI[[#This Row],[kWhSavings]]),0)","v":""},{"$f":"IFERROR(IF(Table_SummaryPI[[#This Row],[kWhSavings]]=\"\",\"\",$AU$14*Table_SummaryPI[[#This Row],[kWhSavings]]),0)","v":""},{"$f":"IFERROR(IF(Table_SummaryPI[[#This Row],[kWhSavings]]=\"\",\"\",$AU$18*Table_SummaryPI[[#This Row],[kWhSavings]]),0)","v":""},{"$f":"IFERROR(IF(Table_SummaryPI[[#This Row],[kWhSavings]]=\"\",\"\",$AU$22*Table_SummaryPI[[#This Row],[kWhSavings]]),0)","v":""},{"$f":"IFERROR(IF(MeasureCalc(Table_PI[[#This Row],[Hide:\nFormula Name]],Table_SummaryPI[[#This Row],[Quantity]],Table_PI[[#This Row],[List 1]],Table_PI[[#This Row],[List 2]],Table_PI[[#This Row],[List 3]],Table_PI[[#This Row],[Size]],Table_PI[[#This Row],[Input 1]],Table_PI[[#This Row],[Input 2]],Table_PI[[#This Row],[Input 3]],Table_PI[[#This Row],[Input 4]],'Customer Information'!$AR$12,200,ROW())<>\"No Rebate\",MeasureCalc(Table_PI[[#This Row],[Hide:\nFormula Name]],Table_SummaryPI[[#This Row],[Quantity]],Table_PI[[#This Row],[List 1]],Table_PI[[#This Row],[List 2]],Table_PI[[#This Row],[List 3]],Table_PI[[#This Row],[Size]],Table_PI[[#This Row],[Input 1]],Table_PI[[#This Row],[Input 2]],Table_PI[[#This Row],[Input 3]],Table_PI[[#This Row],[Input 4]],'Customer Information'!$AR$12,200,ROW()),\"\"),\"\")","v":""},{"$f":"IFERROR(IF(MeasureCalc(Table_PI[[#This Row],[Hide:\nFormula Name]],Table_SummaryPI[[#This Row],[Quantity]],Table_PI[[#This Row],[List 1]],Table_PI[[#This Row],[List 2]],Table_PI[[#This Row],[List 3]],Table_PI[[#This Row],[Size]],Table_PI[[#This Row],[Input 1]],Table_PI[[#This Row],[Input 2]],Table_PI[[#This Row],[Input 3]],Table_PI[[#This Row],[Input 4]],'Customer Information'!$AR$12,201,ROW())<>\"No Rebate\",MeasureCalc(Table_PI[[#This Row],[Hide:\nFormula Name]],Table_SummaryPI[[#This Row],[Quantity]],Table_PI[[#This Row],[List 1]],Table_PI[[#This Row],[List 2]],Table_PI[[#This Row],[List 3]],Table_PI[[#This Row],[Size]],Table_PI[[#This Row],[Input 1]],Table_PI[[#This Row],[Input 2]],Table_PI[[#This Row],[Input 3]],Table_PI[[#This Row],[Input 4]],'Customer Information'!$AR$12,201,ROW()),\"\"),\"\")","v":""}]
[{"$f":"Table_PI[[#This Row],[Line No.]]","v":""},{"$f":"IF(Table_SummaryPI[[#This Row],[MeassureCategory]]<>\"\",CONCATENATE(Table_SummaryPI[[#This Row],[MeassureCategory]],  \" - \", Table_SummaryPI[[#This Row],[ProposedMeasureCategory]],  \" - \", TEXT(Table_SummaryPI[[#This Row],[Size]],\"#,##0.00\"),\" \",Table_SummaryPI[[#This Row],[SizeUnit]]),\"\")","v":""},{"$f":"SUBSTITUTE(Table_PI[[#This Row],[Measure]],\"     \",\"\",1)","v":""},{"$f":"IF(Table_PI[[#This Row],[List 1]]<>\"\",Table_PI[[#This Row],[List 1]],\"\")","v":""},{"$f":"IF(Table_PI[[#This Row],[List 2]]<>\"\",Table_PI[[#This Row],[List 2]],\"\")","v":""},{"$f":"IF(Table_PI[[#This Row],[List 3]]<>\"\",Table_PI[[#This Row],[List 3]],\"\")","v":""},{"$f":"IF(Table_PI[[#This Row],[Manufacturer]]=\"\",\"\",Table_PI[[#This Row],[Manufacturer]])","v":""},{"$f":"IF(Table_PI[[#This Row],[Model Number]]=\"\",\"\",Table_PI[[#This Row],[Model Number]])","v":""},{"$f":"IF(Table_PI[[#This Row],[Serial Number(s)]]=\"\",\"\",Table_PI[[#This Row],[Serial Number(s)]])","v":""},null,{"$f":"IF(Table_PI[[#This Row],[Size]]=\"\",\"\",Table_PI[[#This Row],[Size]])","v":""},null,{"$f":"IFERROR(IF(AND(MeasureCalc(Table_PI[[#This Row],[Hide:\nFormula Name]],Table_SummaryPI[[#This Row],[Quantity]],Table_PI[[#This Row],[List 1]],Table_PI[[#This Row],[List 2]],Table_PI[[#This Row],[List 3]],Table_PI[[#This Row],[Size]],Table_PI[[#This Row],[Input 1]],Table_PI[[#This Row],[Input 2]],Table_PI[[#This Row],[Input 3]],Table_PI[[#This Row],[Input 4]],'Customer Information'!$AR$12,100,ROW())<>0,MeasureCalc(Table_PI[[#This Row],[Hide:\nFormula Name]],Table_SummaryPI[[#This Row],[Quantity]],Table_PI[[#This Row],[List 1]],Table_PI[[#This Row],[List 2]],Table_PI[[#This Row],[List 3]],Table_PI[[#This Row],[Size]],Table_PI[[#This Row],[Input 1]],Table_PI[[#This Row],[Input 2]],Table_PI[[#This Row],[Input 3]],Table_PI[[#This Row],[Input 4]],'Customer Information'!$AR$12,100,ROW())<>\"No Rebate\"),MeasureCalc(Table_PI[[#This Row],[Hide:\nFormula Name]],Table_SummaryPI[[#This Row],[Quantity]],Table_PI[[#This Row],[List 1]],Table_PI[[#This Row],[List 2]],Table_PI[[#This Row],[List 3]],Table_PI[[#This Row],[Size]],Table_PI[[#This Row],[Input 1]],Table_PI[[#This Row],[Input 2]],Table_PI[[#This Row],[Input 3]],Table_PI[[#This Row],[Input 4]],'Customer Information'!$AR$12,100,ROW()),\"\"),\"\")","v":""},{"$f":"IF(Table_PI[[#This Row],[Input 1]]<>\"\",Table_PI[[#This Row],[Input 1]],\"\")","v":""},null,{"$f":"IFERROR(IF(AND(MeasureCalc(Table_PI[[#This Row],[Hide:\nFormula Name]],Table_SummaryPI[[#This Row],[Quantity]],Table_PI[[#This Row],[List 1]],Table_PI[[#This Row],[List 2]],Table_PI[[#This Row],[List 3]],Table_PI[[#This Row],[Size]],Table_PI[[#This Row],[Input 1]],Table_PI[[#This Row],[Input 2]],Table_PI[[#This Row],[Input 3]],Table_PI[[#This Row],[Input 4]],'Customer Information'!$AR$12,101,ROW())<>0,MeasureCalc(Table_PI[[#This Row],[Hide:\nFormula Name]],Table_SummaryPI[[#This Row],[Quantity]],Table_PI[[#This Row],[List 1]],Table_PI[[#This Row],[List 2]],Table_PI[[#This Row],[List 3]],Table_PI[[#This Row],[Size]],Table_PI[[#This Row],[Input 1]],Table_PI[[#This Row],[Input 2]],Table_PI[[#This Row],[Input 3]],Table_PI[[#This Row],[Input 4]],'Customer Information'!$AR$12,101,ROW())<>\"No Rebate\"),MeasureCalc(Table_PI[[#This Row],[Hide:\nFormula Name]],Table_SummaryPI[[#This Row],[Quantity]],Table_PI[[#This Row],[List 1]],Table_PI[[#This Row],[List 2]],Table_PI[[#This Row],[List 3]],Table_PI[[#This Row],[Size]],Table_PI[[#This Row],[Input 1]],Table_PI[[#This Row],[Input 2]],Table_PI[[#This Row],[Input 3]],Table_PI[[#This Row],[Input 4]],'Customer Information'!$AR$12,101,ROW()),\"\"),\"\")","v":""},{"$f":"IF(Table_PI[[#This Row],[Input 2]]<>\"\",Table_PI[[#This Row],[Input 2]],\"\")","v":""},null,{"$f":"IFERROR(IF(AND(MeasureCalc(Table_PI[[#This Row],[Hide:\nFormula Name]],Table_SummaryPI[[#This Row],[Quantity]],Table_PI[[#This Row],[List 1]],Table_PI[[#This Row],[List 2]],Table_PI[[#This Row],[List 3]],Table_PI[[#This Row],[Size]],Table_PI[[#This Row],[Input 1]],Table_PI[[#This Row],[Input 2]],Table_PI[[#This Row],[Input 3]],Table_PI[[#This Row],[Input 4]],'Customer Information'!$AR$12,102,ROW())<>0,MeasureCalc(Table_PI[[#This Row],[Hide:\nFormula Name]],Table_SummaryPI[[#This Row],[Quantity]],Table_PI[[#This Row],[List 1]],Table_PI[[#This Row],[List 2]],Table_PI[[#This Row],[List 3]],Table_PI[[#This Row],[Size]],Table_PI[[#This Row],[Input 1]],Table_PI[[#This Row],[Input 2]],Table_PI[[#This Row],[Input 3]],Table_PI[[#This Row],[Input 4]],'Customer Information'!$AR$12,102,ROW())<>\"No Rebate\"),MeasureCalc(Table_PI[[#This Row],[Hide:\nFormula Name]],Table_SummaryPI[[#This Row],[Quantity]],Table_PI[[#This Row],[List 1]],Table_PI[[#This Row],[List 2]],Table_PI[[#This Row],[List 3]],Table_PI[[#This Row],[Size]],Table_PI[[#This Row],[Input 1]],Table_PI[[#This Row],[Input 2]],Table_PI[[#This Row],[Input 3]],Table_PI[[#This Row],[Input 4]],'Customer Information'!$AR$12,102,ROW()),\"\"),\"\")","v":""},{"$f":"IF(Table_PI[[#This Row],[Input 3]]<>\"\",Table_PI[[#This Row],[Input 3]],\"\")","v":""},null,{"$f":"IFERROR(IF(AND(MeasureCalc(Table_PI[[#This Row],[Hide:\nFormula Name]],Table_SummaryPI[[#This Row],[Quantity]],Table_PI[[#This Row],[List 1]],Table_PI[[#This Row],[List 2]],Table_PI[[#This Row],[List 3]],Table_PI[[#This Row],[Size]],Table_PI[[#This Row],[Input 1]],Table_PI[[#This Row],[Input 2]],Table_PI[[#This Row],[Input 3]],Table_PI[[#This Row],[Input 4]],'Customer Information'!$AR$12,103,ROW())<>0,MeasureCalc(Table_PI[[#This Row],[Hide:\nFormula Name]],Table_SummaryPI[[#This Row],[Quantity]],Table_PI[[#This Row],[List 1]],Table_PI[[#This Row],[List 2]],Table_PI[[#This Row],[List 3]],Table_PI[[#This Row],[Size]],Table_PI[[#This Row],[Input 1]],Table_PI[[#This Row],[Input 2]],Table_PI[[#This Row],[Input 3]],Table_PI[[#This Row],[Input 4]],'Customer Information'!$AR$12,103,ROW())<>\"No Rebate\"),MeasureCalc(Table_PI[[#This Row],[Hide:\nFormula Name]],Table_SummaryPI[[#This Row],[Quantity]],Table_PI[[#This Row],[List 1]],Table_PI[[#This Row],[List 2]],Table_PI[[#This Row],[List 3]],Table_PI[[#This Row],[Size]],Table_PI[[#This Row],[Input 1]],Table_PI[[#This Row],[Input 2]],Table_PI[[#This Row],[Input 3]],Table_PI[[#This Row],[Input 4]],'Customer Information'!$AR$12,103,ROW()),\"\"),\"\")","v":""},{"$f":"IF(Table_PI[[#This Row],[Input 4]]<>\"\",Table_PI[[#This Row],[Input 4]],\"\")","v":""},{"$f":"IF(Table_PI[[#This Row],[Quantity]]=\"\",\"\",Table_PI[[#This Row],[Quantity]])","v":""},{"$f":"IF(Table_PI[[#This Row],[Notes]]=\"\",\"\",Table_PI[[#This Row],[Notes]])","v":""},{"$f":"IF(OR(Table_PI[[#This Row],[Hide:\nBaseline kWh]]=\"\",Table_PI[[#This Row],[Hide:\nBaseline kWh]]=0),\"\",Table_PI[[#This Row],[Hide:\nBaseline kWh]])","v":""},{"$f":"IF(OR(Table_PI[[#This Row],[Hide:\nBaseline kW]]=\"\",Table_PI[[#This Row],[Hide:\nBaseline kW]]=0),\"\",Table_PI[[#This Row],[Hide:\nBaseline kW]])","v":""},{"$f":"IF(OR(Table_PI[[#This Row],[Hide:\nProposed kWh]]=\"\",Table_PI[[#This Row],[Hide:\nProposed kWh]]=0),\"\",Table_PI[[#This Row],[Hide:\nProposed kWh]])","v":""},{"$f":"IF(OR(Table_PI[[#This Row],[Hide:\nProposed kW]]=\"\",Table_PI[[#This Row],[Hide:\nProposed kW]]=0),\"\",Table_PI[[#This Row],[Hide:\nProposed kW]])","v":""},{"$f":"IF(OR(Table_PI[[#This Row],[Rebate]]=\"\",Table_PI[[#This Row],[Rebate]]=0),\"\",Table_PI[[#This Row],[Rebate]])","v":""},{"$f":"IF(OR(Table_PI[[#This Row],[Hide:\nIncremental Cost]]=\"\",Table_PI[[#This Row],[Hide:\nIncremental Cost]]=0),\"\",Table_PI[[#This Row],[Hide:\nIncremental Cost]])","v":""},{"$f":"IFERROR(IF(Table_SummaryPI[[#This Row],[kWhSavings]]=\"\",\"\",ROUND(Table_SummaryPI[[#This Row],[kWhSavings]]/$AG$401*'Customer Information'!$BC$17,2)),0)","v":""},{"$f":"IF(OR(Table_PI[[#This Row],[Annual kWh]]=\"\",Table_PI[[#This Row],[Annual kWh]]=0),\"\",Table_PI[[#This Row],[Annual kWh]])","v":""},{"$f":"IF(OR(Table_PI[[#This Row],[Peak kW]]=\"\",Table_PI[[#This Row],[Peak kW]]=0),\"\",Table_PI[[#This Row],[Peak kW]])","v":""},{"$f":"IFERROR(IF(Table_SummaryPI[[#This Row],[kWhSavings]]=\"\",\"\",$AU$9*Table_SummaryPI[[#This Row],[kWhSavings]]),0)","v":""},{"$f":"IFERROR(IF(Table_SummaryPI[[#This Row],[kWhSavings]]=\"\",\"\",$AU$14*Table_SummaryPI[[#This Row],[kWhSavings]]),0)","v":""},{"$f":"IFERROR(IF(Table_SummaryPI[[#This Row],[kWhSavings]]=\"\",\"\",$AU$18*Table_SummaryPI[[#This Row],[kWhSavings]]),0)","v":""},{"$f":"IFERROR(IF(Table_SummaryPI[[#This Row],[kWhSavings]]=\"\",\"\",$AU$22*Table_SummaryPI[[#This Row],[kWhSavings]]),0)","v":""},{"$f":"IFERROR(IF(MeasureCalc(Table_PI[[#This Row],[Hide:\nFormula Name]],Table_SummaryPI[[#This Row],[Quantity]],Table_PI[[#This Row],[List 1]],Table_PI[[#This Row],[List 2]],Table_PI[[#This Row],[List 3]],Table_PI[[#This Row],[Size]],Table_PI[[#This Row],[Input 1]],Table_PI[[#This Row],[Input 2]],Table_PI[[#This Row],[Input 3]],Table_PI[[#This Row],[Input 4]],'Customer Information'!$AR$12,200,ROW())<>\"No Rebate\",MeasureCalc(Table_PI[[#This Row],[Hide:\nFormula Name]],Table_SummaryPI[[#This Row],[Quantity]],Table_PI[[#This Row],[List 1]],Table_PI[[#This Row],[List 2]],Table_PI[[#This Row],[List 3]],Table_PI[[#This Row],[Size]],Table_PI[[#This Row],[Input 1]],Table_PI[[#This Row],[Input 2]],Table_PI[[#This Row],[Input 3]],Table_PI[[#This Row],[Input 4]],'Customer Information'!$AR$12,200,ROW()),\"\"),\"\")","v":""},{"$f":"IFERROR(IF(MeasureCalc(Table_PI[[#This Row],[Hide:\nFormula Name]],Table_SummaryPI[[#This Row],[Quantity]],Table_PI[[#This Row],[List 1]],Table_PI[[#This Row],[List 2]],Table_PI[[#This Row],[List 3]],Table_PI[[#This Row],[Size]],Table_PI[[#This Row],[Input 1]],Table_PI[[#This Row],[Input 2]],Table_PI[[#This Row],[Input 3]],Table_PI[[#This Row],[Input 4]],'Customer Information'!$AR$12,201,ROW())<>\"No Rebate\",MeasureCalc(Table_PI[[#This Row],[Hide:\nFormula Name]],Table_SummaryPI[[#This Row],[Quantity]],Table_PI[[#This Row],[List 1]],Table_PI[[#This Row],[List 2]],Table_PI[[#This Row],[List 3]],Table_PI[[#This Row],[Size]],Table_PI[[#This Row],[Input 1]],Table_PI[[#This Row],[Input 2]],Table_PI[[#This Row],[Input 3]],Table_PI[[#This Row],[Input 4]],'Customer Information'!$AR$12,201,ROW()),\"\"),\"\")","v":""}]
[{"$f":"Table_PI[[#This Row],[Line No.]]","v":""},{"$f":"IF(Table_SummaryPI[[#This Row],[MeassureCategory]]<>\"\",CONCATENATE(Table_SummaryPI[[#This Row],[MeassureCategory]],  \" - \", Table_SummaryPI[[#This Row],[ProposedMeasureCategory]],  \" - \", TEXT(Table_SummaryPI[[#This Row],[Size]],\"#,##0.00\"),\" \",Table_SummaryPI[[#This Row],[SizeUnit]]),\"\")","v":""},{"$f":"SUBSTITUTE(Table_PI[[#This Row],[Measure]],\"     \",\"\",1)","v":""},{"$f":"IF(Table_PI[[#This Row],[List 1]]<>\"\",Table_PI[[#This Row],[List 1]],\"\")","v":""},{"$f":"IF(Table_PI[[#This Row],[List 2]]<>\"\",Table_PI[[#This Row],[List 2]],\"\")","v":""},{"$f":"IF(Table_PI[[#This Row],[List 3]]<>\"\",Table_PI[[#This Row],[List 3]],\"\")","v":""},{"$f":"IF(Table_PI[[#This Row],[Manufacturer]]=\"\",\"\",Table_PI[[#This Row],[Manufacturer]])","v":""},{"$f":"IF(Table_PI[[#This Row],[Model Number]]=\"\",\"\",Table_PI[[#This Row],[Model Number]])","v":""},{"$f":"IF(Table_PI[[#This Row],[Serial Number(s)]]=\"\",\"\",Table_PI[[#This Row],[Serial Number(s)]])","v":""},null,{"$f":"IF(Table_PI[[#This Row],[Size]]=\"\",\"\",Table_PI[[#This Row],[Size]])","v":""},null,{"$f":"IFERROR(IF(AND(MeasureCalc(Table_PI[[#This Row],[Hide:\nFormula Name]],Table_SummaryPI[[#This Row],[Quantity]],Table_PI[[#This Row],[List 1]],Table_PI[[#This Row],[List 2]],Table_PI[[#This Row],[List 3]],Table_PI[[#This Row],[Size]],Table_PI[[#This Row],[Input 1]],Table_PI[[#This Row],[Input 2]],Table_PI[[#This Row],[Input 3]],Table_PI[[#This Row],[Input 4]],'Customer Information'!$AR$12,100,ROW())<>0,MeasureCalc(Table_PI[[#This Row],[Hide:\nFormula Name]],Table_SummaryPI[[#This Row],[Quantity]],Table_PI[[#This Row],[List 1]],Table_PI[[#This Row],[List 2]],Table_PI[[#This Row],[List 3]],Table_PI[[#This Row],[Size]],Table_PI[[#This Row],[Input 1]],Table_PI[[#This Row],[Input 2]],Table_PI[[#This Row],[Input 3]],Table_PI[[#This Row],[Input 4]],'Customer Information'!$AR$12,100,ROW())<>\"No Rebate\"),MeasureCalc(Table_PI[[#This Row],[Hide:\nFormula Name]],Table_SummaryPI[[#This Row],[Quantity]],Table_PI[[#This Row],[List 1]],Table_PI[[#This Row],[List 2]],Table_PI[[#This Row],[List 3]],Table_PI[[#This Row],[Size]],Table_PI[[#This Row],[Input 1]],Table_PI[[#This Row],[Input 2]],Table_PI[[#This Row],[Input 3]],Table_PI[[#This Row],[Input 4]],'Customer Information'!$AR$12,100,ROW()),\"\"),\"\")","v":""},{"$f":"IF(Table_PI[[#This Row],[Input 1]]<>\"\",Table_PI[[#This Row],[Input 1]],\"\")","v":""},null,{"$f":"IFERROR(IF(AND(MeasureCalc(Table_PI[[#This Row],[Hide:\nFormula Name]],Table_SummaryPI[[#This Row],[Quantity]],Table_PI[[#This Row],[List 1]],Table_PI[[#This Row],[List 2]],Table_PI[[#This Row],[List 3]],Table_PI[[#This Row],[Size]],Table_PI[[#This Row],[Input 1]],Table_PI[[#This Row],[Input 2]],Table_PI[[#This Row],[Input 3]],Table_PI[[#This Row],[Input 4]],'Customer Information'!$AR$12,101,ROW())<>0,MeasureCalc(Table_PI[[#This Row],[Hide:\nFormula Name]],Table_SummaryPI[[#This Row],[Quantity]],Table_PI[[#This Row],[List 1]],Table_PI[[#This Row],[List 2]],Table_PI[[#This Row],[List 3]],Table_PI[[#This Row],[Size]],Table_PI[[#This Row],[Input 1]],Table_PI[[#This Row],[Input 2]],Table_PI[[#This Row],[Input 3]],Table_PI[[#This Row],[Input 4]],'Customer Information'!$AR$12,101,ROW())<>\"No Rebate\"),MeasureCalc(Table_PI[[#This Row],[Hide:\nFormula Name]],Table_SummaryPI[[#This Row],[Quantity]],Table_PI[[#This Row],[List 1]],Table_PI[[#This Row],[List 2]],Table_PI[[#This Row],[List 3]],Table_PI[[#This Row],[Size]],Table_PI[[#This Row],[Input 1]],Table_PI[[#This Row],[Input 2]],Table_PI[[#This Row],[Input 3]],Table_PI[[#This Row],[Input 4]],'Customer Information'!$AR$12,101,ROW()),\"\"),\"\")","v":""},{"$f":"IF(Table_PI[[#This Row],[Input 2]]<>\"\",Table_PI[[#This Row],[Input 2]],\"\")","v":""},null,{"$f":"IFERROR(IF(AND(MeasureCalc(Table_PI[[#This Row],[Hide:\nFormula Name]],Table_SummaryPI[[#This Row],[Quantity]],Table_PI[[#This Row],[List 1]],Table_PI[[#This Row],[List 2]],Table_PI[[#This Row],[List 3]],Table_PI[[#This Row],[Size]],Table_PI[[#This Row],[Input 1]],Table_PI[[#This Row],[Input 2]],Table_PI[[#This Row],[Input 3]],Table_PI[[#This Row],[Input 4]],'Customer Information'!$AR$12,102,ROW())<>0,MeasureCalc(Table_PI[[#This Row],[Hide:\nFormula Name]],Table_SummaryPI[[#This Row],[Quantity]],Table_PI[[#This Row],[List 1]],Table_PI[[#This Row],[List 2]],Table_PI[[#This Row],[List 3]],Table_PI[[#This Row],[Size]],Table_PI[[#This Row],[Input 1]],Table_PI[[#This Row],[Input 2]],Table_PI[[#This Row],[Input 3]],Table_PI[[#This Row],[Input 4]],'Customer Information'!$AR$12,102,ROW())<>\"No Rebate\"),MeasureCalc(Table_PI[[#This Row],[Hide:\nFormula Name]],Table_SummaryPI[[#This Row],[Quantity]],Table_PI[[#This Row],[List 1]],Table_PI[[#This Row],[List 2]],Table_PI[[#This Row],[List 3]],Table_PI[[#This Row],[Size]],Table_PI[[#This Row],[Input 1]],Table_PI[[#This Row],[Input 2]],Table_PI[[#This Row],[Input 3]],Table_PI[[#This Row],[Input 4]],'Customer Information'!$AR$12,102,ROW()),\"\"),\"\")","v":""},{"$f":"IF(Table_PI[[#This Row],[Input 3]]<>\"\",Table_PI[[#This Row],[Input 3]],\"\")","v":""},null,{"$f":"IFERROR(IF(AND(MeasureCalc(Table_PI[[#This Row],[Hide:\nFormula Name]],Table_SummaryPI[[#This Row],[Quantity]],Table_PI[[#This Row],[List 1]],Table_PI[[#This Row],[List 2]],Table_PI[[#This Row],[List 3]],Table_PI[[#This Row],[Size]],Table_PI[[#This Row],[Input 1]],Table_PI[[#This Row],[Input 2]],Table_PI[[#This Row],[Input 3]],Table_PI[[#This Row],[Input 4]],'Customer Information'!$AR$12,103,ROW())<>0,MeasureCalc(Table_PI[[#This Row],[Hide:\nFormula Name]],Table_SummaryPI[[#This Row],[Quantity]],Table_PI[[#This Row],[List 1]],Table_PI[[#This Row],[List 2]],Table_PI[[#This Row],[List 3]],Table_PI[[#This Row],[Size]],Table_PI[[#This Row],[Input 1]],Table_PI[[#This Row],[Input 2]],Table_PI[[#This Row],[Input 3]],Table_PI[[#This Row],[Input 4]],'Customer Information'!$AR$12,103,ROW())<>\"No Rebate\"),MeasureCalc(Table_PI[[#This Row],[Hide:\nFormula Name]],Table_SummaryPI[[#This Row],[Quantity]],Table_PI[[#This Row],[List 1]],Table_PI[[#This Row],[List 2]],Table_PI[[#This Row],[List 3]],Table_PI[[#This Row],[Size]],Table_PI[[#This Row],[Input 1]],Table_PI[[#This Row],[Input 2]],Table_PI[[#This Row],[Input 3]],Table_PI[[#This Row],[Input 4]],'Customer Information'!$AR$12,103,ROW()),\"\"),\"\")","v":""},{"$f":"IF(Table_PI[[#This Row],[Input 4]]<>\"\",Table_PI[[#This Row],[Input 4]],\"\")","v":""},{"$f":"IF(Table_PI[[#This Row],[Quantity]]=\"\",\"\",Table_PI[[#This Row],[Quantity]])","v":""},{"$f":"IF(Table_PI[[#This Row],[Notes]]=\"\",\"\",Table_PI[[#This Row],[Notes]])","v":""},{"$f":"IF(OR(Table_PI[[#This Row],[Hide:\nBaseline kWh]]=\"\",Table_PI[[#This Row],[Hide:\nBaseline kWh]]=0),\"\",Table_PI[[#This Row],[Hide:\nBaseline kWh]])","v":""},{"$f":"IF(OR(Table_PI[[#This Row],[Hide:\nBaseline kW]]=\"\",Table_PI[[#This Row],[Hide:\nBaseline kW]]=0),\"\",Table_PI[[#This Row],[Hide:\nBaseline kW]])","v":""},{"$f":"IF(OR(Table_PI[[#This Row],[Hide:\nProposed kWh]]=\"\",Table_PI[[#This Row],[Hide:\nProposed kWh]]=0),\"\",Table_PI[[#This Row],[Hide:\nProposed kWh]])","v":""},{"$f":"IF(OR(Table_PI[[#This Row],[Hide:\nProposed kW]]=\"\",Table_PI[[#This Row],[Hide:\nProposed kW]]=0),\"\",Table_PI[[#This Row],[Hide:\nProposed kW]])","v":""},{"$f":"IF(OR(Table_PI[[#This Row],[Rebate]]=\"\",Table_PI[[#This Row],[Rebate]]=0),\"\",Table_PI[[#This Row],[Rebate]])","v":""},{"$f":"IF(OR(Table_PI[[#This Row],[Hide:\nIncremental Cost]]=\"\",Table_PI[[#This Row],[Hide:\nIncremental Cost]]=0),\"\",Table_PI[[#This Row],[Hide:\nIncremental Cost]])","v":""},{"$f":"IFERROR(IF(Table_SummaryPI[[#This Row],[kWhSavings]]=\"\",\"\",ROUND(Table_SummaryPI[[#This Row],[kWhSavings]]/$AG$401*'Customer Information'!$BC$17,2)),0)","v":""},{"$f":"IF(OR(Table_PI[[#This Row],[Annual kWh]]=\"\",Table_PI[[#This Row],[Annual kWh]]=0),\"\",Table_PI[[#This Row],[Annual kWh]])","v":""},{"$f":"IF(OR(Table_PI[[#This Row],[Peak kW]]=\"\",Table_PI[[#This Row],[Peak kW]]=0),\"\",Table_PI[[#This Row],[Peak kW]])","v":""},{"$f":"IFERROR(IF(Table_SummaryPI[[#This Row],[kWhSavings]]=\"\",\"\",$AU$9*Table_SummaryPI[[#This Row],[kWhSavings]]),0)","v":""},{"$f":"IFERROR(IF(Table_SummaryPI[[#This Row],[kWhSavings]]=\"\",\"\",$AU$14*Table_SummaryPI[[#This Row],[kWhSavings]]),0)","v":""},{"$f":"IFERROR(IF(Table_SummaryPI[[#This Row],[kWhSavings]]=\"\",\"\",$AU$18*Table_SummaryPI[[#This Row],[kWhSavings]]),0)","v":""},{"$f":"IFERROR(IF(Table_SummaryPI[[#This Row],[kWhSavings]]=\"\",\"\",$AU$22*Table_SummaryPI[[#This Row],[kWhSavings]]),0)","v":""},{"$f":"IFERROR(IF(MeasureCalc(Table_PI[[#This Row],[Hide:\nFormula Name]],Table_SummaryPI[[#This Row],[Quantity]],Table_PI[[#This Row],[List 1]],Table_PI[[#This Row],[List 2]],Table_PI[[#This Row],[List 3]],Table_PI[[#This Row],[Size]],Table_PI[[#This Row],[Input 1]],Table_PI[[#This Row],[Input 2]],Table_PI[[#This Row],[Input 3]],Table_PI[[#This Row],[Input 4]],'Customer Information'!$AR$12,200,ROW())<>\"No Rebate\",MeasureCalc(Table_PI[[#This Row],[Hide:\nFormula Name]],Table_SummaryPI[[#This Row],[Quantity]],Table_PI[[#This Row],[List 1]],Table_PI[[#This Row],[List 2]],Table_PI[[#This Row],[List 3]],Table_PI[[#This Row],[Size]],Table_PI[[#This Row],[Input 1]],Table_PI[[#This Row],[Input 2]],Table_PI[[#This Row],[Input 3]],Table_PI[[#This Row],[Input 4]],'Customer Information'!$AR$12,200,ROW()),\"\"),\"\")","v":""},{"$f":"IFERROR(IF(MeasureCalc(Table_PI[[#This Row],[Hide:\nFormula Name]],Table_SummaryPI[[#This Row],[Quantity]],Table_PI[[#This Row],[List 1]],Table_PI[[#This Row],[List 2]],Table_PI[[#This Row],[List 3]],Table_PI[[#This Row],[Size]],Table_PI[[#This Row],[Input 1]],Table_PI[[#This Row],[Input 2]],Table_PI[[#This Row],[Input 3]],Table_PI[[#This Row],[Input 4]],'Customer Information'!$AR$12,201,ROW())<>\"No Rebate\",MeasureCalc(Table_PI[[#This Row],[Hide:\nFormula Name]],Table_SummaryPI[[#This Row],[Quantity]],Table_PI[[#This Row],[List 1]],Table_PI[[#This Row],[List 2]],Table_PI[[#This Row],[List 3]],Table_PI[[#This Row],[Size]],Table_PI[[#This Row],[Input 1]],Table_PI[[#This Row],[Input 2]],Table_PI[[#This Row],[Input 3]],Table_PI[[#This Row],[Input 4]],'Customer Information'!$AR$12,201,ROW()),\"\"),\"\")","v":""}]
[{"$f":"Table_PI[[#This Row],[Line No.]]","v":""},{"$f":"IF(Table_SummaryPI[[#This Row],[MeassureCategory]]<>\"\",CONCATENATE(Table_SummaryPI[[#This Row],[MeassureCategory]],  \" - \", Table_SummaryPI[[#This Row],[ProposedMeasureCategory]],  \" - \", TEXT(Table_SummaryPI[[#This Row],[Size]],\"#,##0.00\"),\" \",Table_SummaryPI[[#This Row],[SizeUnit]]),\"\")","v":""},{"$f":"SUBSTITUTE(Table_PI[[#This Row],[Measure]],\"     \",\"\",1)","v":""},{"$f":"IF(Table_PI[[#This Row],[List 1]]<>\"\",Table_PI[[#This Row],[List 1]],\"\")","v":""},{"$f":"IF(Table_PI[[#This Row],[List 2]]<>\"\",Table_PI[[#This Row],[List 2]],\"\")","v":""},{"$f":"IF(Table_PI[[#This Row],[List 3]]<>\"\",Table_PI[[#This Row],[List 3]],\"\")","v":""},{"$f":"IF(Table_PI[[#This Row],[Manufacturer]]=\"\",\"\",Table_PI[[#This Row],[Manufacturer]])","v":""},{"$f":"IF(Table_PI[[#This Row],[Model Number]]=\"\",\"\",Table_PI[[#This Row],[Model Number]])","v":""},{"$f":"IF(Table_PI[[#This Row],[Serial Number(s)]]=\"\",\"\",Table_PI[[#This Row],[Serial Number(s)]])","v":""},null,{"$f":"IF(Table_PI[[#This Row],[Size]]=\"\",\"\",Table_PI[[#This Row],[Size]])","v":""},null,{"$f":"IFERROR(IF(AND(MeasureCalc(Table_PI[[#This Row],[Hide:\nFormula Name]],Table_SummaryPI[[#This Row],[Quantity]],Table_PI[[#This Row],[List 1]],Table_PI[[#This Row],[List 2]],Table_PI[[#This Row],[List 3]],Table_PI[[#This Row],[Size]],Table_PI[[#This Row],[Input 1]],Table_PI[[#This Row],[Input 2]],Table_PI[[#This Row],[Input 3]],Table_PI[[#This Row],[Input 4]],'Customer Information'!$AR$12,100,ROW())<>0,MeasureCalc(Table_PI[[#This Row],[Hide:\nFormula Name]],Table_SummaryPI[[#This Row],[Quantity]],Table_PI[[#This Row],[List 1]],Table_PI[[#This Row],[List 2]],Table_PI[[#This Row],[List 3]],Table_PI[[#This Row],[Size]],Table_PI[[#This Row],[Input 1]],Table_PI[[#This Row],[Input 2]],Table_PI[[#This Row],[Input 3]],Table_PI[[#This Row],[Input 4]],'Customer Information'!$AR$12,100,ROW())<>\"No Rebate\"),MeasureCalc(Table_PI[[#This Row],[Hide:\nFormula Name]],Table_SummaryPI[[#This Row],[Quantity]],Table_PI[[#This Row],[List 1]],Table_PI[[#This Row],[List 2]],Table_PI[[#This Row],[List 3]],Table_PI[[#This Row],[Size]],Table_PI[[#This Row],[Input 1]],Table_PI[[#This Row],[Input 2]],Table_PI[[#This Row],[Input 3]],Table_PI[[#This Row],[Input 4]],'Customer Information'!$AR$12,100,ROW()),\"\"),\"\")","v":""},{"$f":"IF(Table_PI[[#This Row],[Input 1]]<>\"\",Table_PI[[#This Row],[Input 1]],\"\")","v":""},null,{"$f":"IFERROR(IF(AND(MeasureCalc(Table_PI[[#This Row],[Hide:\nFormula Name]],Table_SummaryPI[[#This Row],[Quantity]],Table_PI[[#This Row],[List 1]],Table_PI[[#This Row],[List 2]],Table_PI[[#This Row],[List 3]],Table_PI[[#This Row],[Size]],Table_PI[[#This Row],[Input 1]],Table_PI[[#This Row],[Input 2]],Table_PI[[#This Row],[Input 3]],Table_PI[[#This Row],[Input 4]],'Customer Information'!$AR$12,101,ROW())<>0,MeasureCalc(Table_PI[[#This Row],[Hide:\nFormula Name]],Table_SummaryPI[[#This Row],[Quantity]],Table_PI[[#This Row],[List 1]],Table_PI[[#This Row],[List 2]],Table_PI[[#This Row],[List 3]],Table_PI[[#This Row],[Size]],Table_PI[[#This Row],[Input 1]],Table_PI[[#This Row],[Input 2]],Table_PI[[#This Row],[Input 3]],Table_PI[[#This Row],[Input 4]],'Customer Information'!$AR$12,101,ROW())<>\"No Rebate\"),MeasureCalc(Table_PI[[#This Row],[Hide:\nFormula Name]],Table_SummaryPI[[#This Row],[Quantity]],Table_PI[[#This Row],[List 1]],Table_PI[[#This Row],[List 2]],Table_PI[[#This Row],[List 3]],Table_PI[[#This Row],[Size]],Table_PI[[#This Row],[Input 1]],Table_PI[[#This Row],[Input 2]],Table_PI[[#This Row],[Input 3]],Table_PI[[#This Row],[Input 4]],'Customer Information'!$AR$12,101,ROW()),\"\"),\"\")","v":""},{"$f":"IF(Table_PI[[#This Row],[Input 2]]<>\"\",Table_PI[[#This Row],[Input 2]],\"\")","v":""},null,{"$f":"IFERROR(IF(AND(MeasureCalc(Table_PI[[#This Row],[Hide:\nFormula Name]],Table_SummaryPI[[#This Row],[Quantity]],Table_PI[[#This Row],[List 1]],Table_PI[[#This Row],[List 2]],Table_PI[[#This Row],[List 3]],Table_PI[[#This Row],[Size]],Table_PI[[#This Row],[Input 1]],Table_PI[[#This Row],[Input 2]],Table_PI[[#This Row],[Input 3]],Table_PI[[#This Row],[Input 4]],'Customer Information'!$AR$12,102,ROW())<>0,MeasureCalc(Table_PI[[#This Row],[Hide:\nFormula Name]],Table_SummaryPI[[#This Row],[Quantity]],Table_PI[[#This Row],[List 1]],Table_PI[[#This Row],[List 2]],Table_PI[[#This Row],[List 3]],Table_PI[[#This Row],[Size]],Table_PI[[#This Row],[Input 1]],Table_PI[[#This Row],[Input 2]],Table_PI[[#This Row],[Input 3]],Table_PI[[#This Row],[Input 4]],'Customer Information'!$AR$12,102,ROW())<>\"No Rebate\"),MeasureCalc(Table_PI[[#This Row],[Hide:\nFormula Name]],Table_SummaryPI[[#This Row],[Quantity]],Table_PI[[#This Row],[List 1]],Table_PI[[#This Row],[List 2]],Table_PI[[#This Row],[List 3]],Table_PI[[#This Row],[Size]],Table_PI[[#This Row],[Input 1]],Table_PI[[#This Row],[Input 2]],Table_PI[[#This Row],[Input 3]],Table_PI[[#This Row],[Input 4]],'Customer Information'!$AR$12,102,ROW()),\"\"),\"\")","v":""},{"$f":"IF(Table_PI[[#This Row],[Input 3]]<>\"\",Table_PI[[#This Row],[Input 3]],\"\")","v":""},null,{"$f":"IFERROR(IF(AND(MeasureCalc(Table_PI[[#This Row],[Hide:\nFormula Name]],Table_SummaryPI[[#This Row],[Quantity]],Table_PI[[#This Row],[List 1]],Table_PI[[#This Row],[List 2]],Table_PI[[#This Row],[List 3]],Table_PI[[#This Row],[Size]],Table_PI[[#This Row],[Input 1]],Table_PI[[#This Row],[Input 2]],Table_PI[[#This Row],[Input 3]],Table_PI[[#This Row],[Input 4]],'Customer Information'!$AR$12,103,ROW())<>0,MeasureCalc(Table_PI[[#This Row],[Hide:\nFormula Name]],Table_SummaryPI[[#This Row],[Quantity]],Table_PI[[#This Row],[List 1]],Table_PI[[#This Row],[List 2]],Table_PI[[#This Row],[List 3]],Table_PI[[#This Row],[Size]],Table_PI[[#This Row],[Input 1]],Table_PI[[#This Row],[Input 2]],Table_PI[[#This Row],[Input 3]],Table_PI[[#This Row],[Input 4]],'Customer Information'!$AR$12,103,ROW())<>\"No Rebate\"),MeasureCalc(Table_PI[[#This Row],[Hide:\nFormula Name]],Table_SummaryPI[[#This Row],[Quantity]],Table_PI[[#This Row],[List 1]],Table_PI[[#This Row],[List 2]],Table_PI[[#This Row],[List 3]],Table_PI[[#This Row],[Size]],Table_PI[[#This Row],[Input 1]],Table_PI[[#This Row],[Input 2]],Table_PI[[#This Row],[Input 3]],Table_PI[[#This Row],[Input 4]],'Customer Information'!$AR$12,103,ROW()),\"\"),\"\")","v":""},{"$f":"IF(Table_PI[[#This Row],[Input 4]]<>\"\",Table_PI[[#This Row],[Input 4]],\"\")","v":""},{"$f":"IF(Table_PI[[#This Row],[Quantity]]=\"\",\"\",Table_PI[[#This Row],[Quantity]])","v":""},{"$f":"IF(Table_PI[[#This Row],[Notes]]=\"\",\"\",Table_PI[[#This Row],[Notes]])","v":""},{"$f":"IF(OR(Table_PI[[#This Row],[Hide:\nBaseline kWh]]=\"\",Table_PI[[#This Row],[Hide:\nBaseline kWh]]=0),\"\",Table_PI[[#This Row],[Hide:\nBaseline kWh]])","v":""},{"$f":"IF(OR(Table_PI[[#This Row],[Hide:\nBaseline kW]]=\"\",Table_PI[[#This Row],[Hide:\nBaseline kW]]=0),\"\",Table_PI[[#This Row],[Hide:\nBaseline kW]])","v":""},{"$f":"IF(OR(Table_PI[[#This Row],[Hide:\nProposed kWh]]=\"\",Table_PI[[#This Row],[Hide:\nProposed kWh]]=0),\"\",Table_PI[[#This Row],[Hide:\nProposed kWh]])","v":""},{"$f":"IF(OR(Table_PI[[#This Row],[Hide:\nProposed kW]]=\"\",Table_PI[[#This Row],[Hide:\nProposed kW]]=0),\"\",Table_PI[[#This Row],[Hide:\nProposed kW]])","v":""},{"$f":"IF(OR(Table_PI[[#This Row],[Rebate]]=\"\",Table_PI[[#This Row],[Rebate]]=0),\"\",Table_PI[[#This Row],[Rebate]])","v":""},{"$f":"IF(OR(Table_PI[[#This Row],[Hide:\nIncremental Cost]]=\"\",Table_PI[[#This Row],[Hide:\nIncremental Cost]]=0),\"\",Table_PI[[#This Row],[Hide:\nIncremental Cost]])","v":""},{"$f":"IFERROR(IF(Table_SummaryPI[[#This Row],[kWhSavings]]=\"\",\"\",ROUND(Table_SummaryPI[[#This Row],[kWhSavings]]/$AG$401*'Customer Information'!$BC$17,2)),0)","v":""},{"$f":"IF(OR(Table_PI[[#This Row],[Annual kWh]]=\"\",Table_PI[[#This Row],[Annual kWh]]=0),\"\",Table_PI[[#This Row],[Annual kWh]])","v":""},{"$f":"IF(OR(Table_PI[[#This Row],[Peak kW]]=\"\",Table_PI[[#This Row],[Peak kW]]=0),\"\",Table_PI[[#This Row],[Peak kW]])","v":""},{"$f":"IFERROR(IF(Table_SummaryPI[[#This Row],[kWhSavings]]=\"\",\"\",$AU$9*Table_SummaryPI[[#This Row],[kWhSavings]]),0)","v":""},{"$f":"IFERROR(IF(Table_SummaryPI[[#This Row],[kWhSavings]]=\"\",\"\",$AU$14*Table_SummaryPI[[#This Row],[kWhSavings]]),0)","v":""},{"$f":"IFERROR(IF(Table_SummaryPI[[#This Row],[kWhSavings]]=\"\",\"\",$AU$18*Table_SummaryPI[[#This Row],[kWhSavings]]),0)","v":""},{"$f":"IFERROR(IF(Table_SummaryPI[[#This Row],[kWhSavings]]=\"\",\"\",$AU$22*Table_SummaryPI[[#This Row],[kWhSavings]]),0)","v":""},{"$f":"IFERROR(IF(MeasureCalc(Table_PI[[#This Row],[Hide:\nFormula Name]],Table_SummaryPI[[#This Row],[Quantity]],Table_PI[[#This Row],[List 1]],Table_PI[[#This Row],[List 2]],Table_PI[[#This Row],[List 3]],Table_PI[[#This Row],[Size]],Table_PI[[#This Row],[Input 1]],Table_PI[[#This Row],[Input 2]],Table_PI[[#This Row],[Input 3]],Table_PI[[#This Row],[Input 4]],'Customer Information'!$AR$12,200,ROW())<>\"No Rebate\",MeasureCalc(Table_PI[[#This Row],[Hide:\nFormula Name]],Table_SummaryPI[[#This Row],[Quantity]],Table_PI[[#This Row],[List 1]],Table_PI[[#This Row],[List 2]],Table_PI[[#This Row],[List 3]],Table_PI[[#This Row],[Size]],Table_PI[[#This Row],[Input 1]],Table_PI[[#This Row],[Input 2]],Table_PI[[#This Row],[Input 3]],Table_PI[[#This Row],[Input 4]],'Customer Information'!$AR$12,200,ROW()),\"\"),\"\")","v":""},{"$f":"IFERROR(IF(MeasureCalc(Table_PI[[#This Row],[Hide:\nFormula Name]],Table_SummaryPI[[#This Row],[Quantity]],Table_PI[[#This Row],[List 1]],Table_PI[[#This Row],[List 2]],Table_PI[[#This Row],[List 3]],Table_PI[[#This Row],[Size]],Table_PI[[#This Row],[Input 1]],Table_PI[[#This Row],[Input 2]],Table_PI[[#This Row],[Input 3]],Table_PI[[#This Row],[Input 4]],'Customer Information'!$AR$12,201,ROW())<>\"No Rebate\",MeasureCalc(Table_PI[[#This Row],[Hide:\nFormula Name]],Table_SummaryPI[[#This Row],[Quantity]],Table_PI[[#This Row],[List 1]],Table_PI[[#This Row],[List 2]],Table_PI[[#This Row],[List 3]],Table_PI[[#This Row],[Size]],Table_PI[[#This Row],[Input 1]],Table_PI[[#This Row],[Input 2]],Table_PI[[#This Row],[Input 3]],Table_PI[[#This Row],[Input 4]],'Customer Information'!$AR$12,201,ROW()),\"\"),\"\")","v":""}]
[{"$f":"Table_PI[[#This Row],[Line No.]]","v":""},{"$f":"IF(Table_SummaryPI[[#This Row],[MeassureCategory]]<>\"\",CONCATENATE(Table_SummaryPI[[#This Row],[MeassureCategory]],  \" - \", Table_SummaryPI[[#This Row],[ProposedMeasureCategory]],  \" - \", TEXT(Table_SummaryPI[[#This Row],[Size]],\"#,##0.00\"),\" \",Table_SummaryPI[[#This Row],[SizeUnit]]),\"\")","v":""},{"$f":"SUBSTITUTE(Table_PI[[#This Row],[Measure]],\"     \",\"\",1)","v":""},{"$f":"IF(Table_PI[[#This Row],[List 1]]<>\"\",Table_PI[[#This Row],[List 1]],\"\")","v":""},{"$f":"IF(Table_PI[[#This Row],[List 2]]<>\"\",Table_PI[[#This Row],[List 2]],\"\")","v":""},{"$f":"IF(Table_PI[[#This Row],[List 3]]<>\"\",Table_PI[[#This Row],[List 3]],\"\")","v":""},{"$f":"IF(Table_PI[[#This Row],[Manufacturer]]=\"\",\"\",Table_PI[[#This Row],[Manufacturer]])","v":""},{"$f":"IF(Table_PI[[#This Row],[Model Number]]=\"\",\"\",Table_PI[[#This Row],[Model Number]])","v":""},{"$f":"IF(Table_PI[[#This Row],[Serial Number(s)]]=\"\",\"\",Table_PI[[#This Row],[Serial Number(s)]])","v":""},null,{"$f":"IF(Table_PI[[#This Row],[Size]]=\"\",\"\",Table_PI[[#This Row],[Size]])","v":""},null,{"$f":"IFERROR(IF(AND(MeasureCalc(Table_PI[[#This Row],[Hide:\nFormula Name]],Table_SummaryPI[[#This Row],[Quantity]],Table_PI[[#This Row],[List 1]],Table_PI[[#This Row],[List 2]],Table_PI[[#This Row],[List 3]],Table_PI[[#This Row],[Size]],Table_PI[[#This Row],[Input 1]],Table_PI[[#This Row],[Input 2]],Table_PI[[#This Row],[Input 3]],Table_PI[[#This Row],[Input 4]],'Customer Information'!$AR$12,100,ROW())<>0,MeasureCalc(Table_PI[[#This Row],[Hide:\nFormula Name]],Table_SummaryPI[[#This Row],[Quantity]],Table_PI[[#This Row],[List 1]],Table_PI[[#This Row],[List 2]],Table_PI[[#This Row],[List 3]],Table_PI[[#This Row],[Size]],Table_PI[[#This Row],[Input 1]],Table_PI[[#This Row],[Input 2]],Table_PI[[#This Row],[Input 3]],Table_PI[[#This Row],[Input 4]],'Customer Information'!$AR$12,100,ROW())<>\"No Rebate\"),MeasureCalc(Table_PI[[#This Row],[Hide:\nFormula Name]],Table_SummaryPI[[#This Row],[Quantity]],Table_PI[[#This Row],[List 1]],Table_PI[[#This Row],[List 2]],Table_PI[[#This Row],[List 3]],Table_PI[[#This Row],[Size]],Table_PI[[#This Row],[Input 1]],Table_PI[[#This Row],[Input 2]],Table_PI[[#This Row],[Input 3]],Table_PI[[#This Row],[Input 4]],'Customer Information'!$AR$12,100,ROW()),\"\"),\"\")","v":""},{"$f":"IF(Table_PI[[#This Row],[Input 1]]<>\"\",Table_PI[[#This Row],[Input 1]],\"\")","v":""},null,{"$f":"IFERROR(IF(AND(MeasureCalc(Table_PI[[#This Row],[Hide:\nFormula Name]],Table_SummaryPI[[#This Row],[Quantity]],Table_PI[[#This Row],[List 1]],Table_PI[[#This Row],[List 2]],Table_PI[[#This Row],[List 3]],Table_PI[[#This Row],[Size]],Table_PI[[#This Row],[Input 1]],Table_PI[[#This Row],[Input 2]],Table_PI[[#This Row],[Input 3]],Table_PI[[#This Row],[Input 4]],'Customer Information'!$AR$12,101,ROW())<>0,MeasureCalc(Table_PI[[#This Row],[Hide:\nFormula Name]],Table_SummaryPI[[#This Row],[Quantity]],Table_PI[[#This Row],[List 1]],Table_PI[[#This Row],[List 2]],Table_PI[[#This Row],[List 3]],Table_PI[[#This Row],[Size]],Table_PI[[#This Row],[Input 1]],Table_PI[[#This Row],[Input 2]],Table_PI[[#This Row],[Input 3]],Table_PI[[#This Row],[Input 4]],'Customer Information'!$AR$12,101,ROW())<>\"No Rebate\"),MeasureCalc(Table_PI[[#This Row],[Hide:\nFormula Name]],Table_SummaryPI[[#This Row],[Quantity]],Table_PI[[#This Row],[List 1]],Table_PI[[#This Row],[List 2]],Table_PI[[#This Row],[List 3]],Table_PI[[#This Row],[Size]],Table_PI[[#This Row],[Input 1]],Table_PI[[#This Row],[Input 2]],Table_PI[[#This Row],[Input 3]],Table_PI[[#This Row],[Input 4]],'Customer Information'!$AR$12,101,ROW()),\"\"),\"\")","v":""},{"$f":"IF(Table_PI[[#This Row],[Input 2]]<>\"\",Table_PI[[#This Row],[Input 2]],\"\")","v":""},null,{"$f":"IFERROR(IF(AND(MeasureCalc(Table_PI[[#This Row],[Hide:\nFormula Name]],Table_SummaryPI[[#This Row],[Quantity]],Table_PI[[#This Row],[List 1]],Table_PI[[#This Row],[List 2]],Table_PI[[#This Row],[List 3]],Table_PI[[#This Row],[Size]],Table_PI[[#This Row],[Input 1]],Table_PI[[#This Row],[Input 2]],Table_PI[[#This Row],[Input 3]],Table_PI[[#This Row],[Input 4]],'Customer Information'!$AR$12,102,ROW())<>0,MeasureCalc(Table_PI[[#This Row],[Hide:\nFormula Name]],Table_SummaryPI[[#This Row],[Quantity]],Table_PI[[#This Row],[List 1]],Table_PI[[#This Row],[List 2]],Table_PI[[#This Row],[List 3]],Table_PI[[#This Row],[Size]],Table_PI[[#This Row],[Input 1]],Table_PI[[#This Row],[Input 2]],Table_PI[[#This Row],[Input 3]],Table_PI[[#This Row],[Input 4]],'Customer Information'!$AR$12,102,ROW())<>\"No Rebate\"),MeasureCalc(Table_PI[[#This Row],[Hide:\nFormula Name]],Table_SummaryPI[[#This Row],[Quantity]],Table_PI[[#This Row],[List 1]],Table_PI[[#This Row],[List 2]],Table_PI[[#This Row],[List 3]],Table_PI[[#This Row],[Size]],Table_PI[[#This Row],[Input 1]],Table_PI[[#This Row],[Input 2]],Table_PI[[#This Row],[Input 3]],Table_PI[[#This Row],[Input 4]],'Customer Information'!$AR$12,102,ROW()),\"\"),\"\")","v":""},{"$f":"IF(Table_PI[[#This Row],[Input 3]]<>\"\",Table_PI[[#This Row],[Input 3]],\"\")","v":""},null,{"$f":"IFERROR(IF(AND(MeasureCalc(Table_PI[[#This Row],[Hide:\nFormula Name]],Table_SummaryPI[[#This Row],[Quantity]],Table_PI[[#This Row],[List 1]],Table_PI[[#This Row],[List 2]],Table_PI[[#This Row],[List 3]],Table_PI[[#This Row],[Size]],Table_PI[[#This Row],[Input 1]],Table_PI[[#This Row],[Input 2]],Table_PI[[#This Row],[Input 3]],Table_PI[[#This Row],[Input 4]],'Customer Information'!$AR$12,103,ROW())<>0,MeasureCalc(Table_PI[[#This Row],[Hide:\nFormula Name]],Table_SummaryPI[[#This Row],[Quantity]],Table_PI[[#This Row],[List 1]],Table_PI[[#This Row],[List 2]],Table_PI[[#This Row],[List 3]],Table_PI[[#This Row],[Size]],Table_PI[[#This Row],[Input 1]],Table_PI[[#This Row],[Input 2]],Table_PI[[#This Row],[Input 3]],Table_PI[[#This Row],[Input 4]],'Customer Information'!$AR$12,103,ROW())<>\"No Rebate\"),MeasureCalc(Table_PI[[#This Row],[Hide:\nFormula Name]],Table_SummaryPI[[#This Row],[Quantity]],Table_PI[[#This Row],[List 1]],Table_PI[[#This Row],[List 2]],Table_PI[[#This Row],[List 3]],Table_PI[[#This Row],[Size]],Table_PI[[#This Row],[Input 1]],Table_PI[[#This Row],[Input 2]],Table_PI[[#This Row],[Input 3]],Table_PI[[#This Row],[Input 4]],'Customer Information'!$AR$12,103,ROW()),\"\"),\"\")","v":""},{"$f":"IF(Table_PI[[#This Row],[Input 4]]<>\"\",Table_PI[[#This Row],[Input 4]],\"\")","v":""},{"$f":"IF(Table_PI[[#This Row],[Quantity]]=\"\",\"\",Table_PI[[#This Row],[Quantity]])","v":""},{"$f":"IF(Table_PI[[#This Row],[Notes]]=\"\",\"\",Table_PI[[#This Row],[Notes]])","v":""},{"$f":"IF(OR(Table_PI[[#This Row],[Hide:\nBaseline kWh]]=\"\",Table_PI[[#This Row],[Hide:\nBaseline kWh]]=0),\"\",Table_PI[[#This Row],[Hide:\nBaseline kWh]])","v":""},{"$f":"IF(OR(Table_PI[[#This Row],[Hide:\nBaseline kW]]=\"\",Table_PI[[#This Row],[Hide:\nBaseline kW]]=0),\"\",Table_PI[[#This Row],[Hide:\nBaseline kW]])","v":""},{"$f":"IF(OR(Table_PI[[#This Row],[Hide:\nProposed kWh]]=\"\",Table_PI[[#This Row],[Hide:\nProposed kWh]]=0),\"\",Table_PI[[#This Row],[Hide:\nProposed kWh]])","v":""},{"$f":"IF(OR(Table_PI[[#This Row],[Hide:\nProposed kW]]=\"\",Table_PI[[#This Row],[Hide:\nProposed kW]]=0),\"\",Table_PI[[#This Row],[Hide:\nProposed kW]])","v":""},{"$f":"IF(OR(Table_PI[[#This Row],[Rebate]]=\"\",Table_PI[[#This Row],[Rebate]]=0),\"\",Table_PI[[#This Row],[Rebate]])","v":""},{"$f":"IF(OR(Table_PI[[#This Row],[Hide:\nIncremental Cost]]=\"\",Table_PI[[#This Row],[Hide:\nIncremental Cost]]=0),\"\",Table_PI[[#This Row],[Hide:\nIncremental Cost]])","v":""},{"$f":"IFERROR(IF(Table_SummaryPI[[#This Row],[kWhSavings]]=\"\",\"\",ROUND(Table_SummaryPI[[#This Row],[kWhSavings]]/$AG$401*'Customer Information'!$BC$17,2)),0)","v":""},{"$f":"IF(OR(Table_PI[[#This Row],[Annual kWh]]=\"\",Table_PI[[#This Row],[Annual kWh]]=0),\"\",Table_PI[[#This Row],[Annual kWh]])","v":""},{"$f":"IF(OR(Table_PI[[#This Row],[Peak kW]]=\"\",Table_PI[[#This Row],[Peak kW]]=0),\"\",Table_PI[[#This Row],[Peak kW]])","v":""},{"$f":"IFERROR(IF(Table_SummaryPI[[#This Row],[kWhSavings]]=\"\",\"\",$AU$9*Table_SummaryPI[[#This Row],[kWhSavings]]),0)","v":""},{"$f":"IFERROR(IF(Table_SummaryPI[[#This Row],[kWhSavings]]=\"\",\"\",$AU$14*Table_SummaryPI[[#This Row],[kWhSavings]]),0)","v":""},{"$f":"IFERROR(IF(Table_SummaryPI[[#This Row],[kWhSavings]]=\"\",\"\",$AU$18*Table_SummaryPI[[#This Row],[kWhSavings]]),0)","v":""},{"$f":"IFERROR(IF(Table_SummaryPI[[#This Row],[kWhSavings]]=\"\",\"\",$AU$22*Table_SummaryPI[[#This Row],[kWhSavings]]),0)","v":""},{"$f":"IFERROR(IF(MeasureCalc(Table_PI[[#This Row],[Hide:\nFormula Name]],Table_SummaryPI[[#This Row],[Quantity]],Table_PI[[#This Row],[List 1]],Table_PI[[#This Row],[List 2]],Table_PI[[#This Row],[List 3]],Table_PI[[#This Row],[Size]],Table_PI[[#This Row],[Input 1]],Table_PI[[#This Row],[Input 2]],Table_PI[[#This Row],[Input 3]],Table_PI[[#This Row],[Input 4]],'Customer Information'!$AR$12,200,ROW())<>\"No Rebate\",MeasureCalc(Table_PI[[#This Row],[Hide:\nFormula Name]],Table_SummaryPI[[#This Row],[Quantity]],Table_PI[[#This Row],[List 1]],Table_PI[[#This Row],[List 2]],Table_PI[[#This Row],[List 3]],Table_PI[[#This Row],[Size]],Table_PI[[#This Row],[Input 1]],Table_PI[[#This Row],[Input 2]],Table_PI[[#This Row],[Input 3]],Table_PI[[#This Row],[Input 4]],'Customer Information'!$AR$12,200,ROW()),\"\"),\"\")","v":""},{"$f":"IFERROR(IF(MeasureCalc(Table_PI[[#This Row],[Hide:\nFormula Name]],Table_SummaryPI[[#This Row],[Quantity]],Table_PI[[#This Row],[List 1]],Table_PI[[#This Row],[List 2]],Table_PI[[#This Row],[List 3]],Table_PI[[#This Row],[Size]],Table_PI[[#This Row],[Input 1]],Table_PI[[#This Row],[Input 2]],Table_PI[[#This Row],[Input 3]],Table_PI[[#This Row],[Input 4]],'Customer Information'!$AR$12,201,ROW())<>\"No Rebate\",MeasureCalc(Table_PI[[#This Row],[Hide:\nFormula Name]],Table_SummaryPI[[#This Row],[Quantity]],Table_PI[[#This Row],[List 1]],Table_PI[[#This Row],[List 2]],Table_PI[[#This Row],[List 3]],Table_PI[[#This Row],[Size]],Table_PI[[#This Row],[Input 1]],Table_PI[[#This Row],[Input 2]],Table_PI[[#This Row],[Input 3]],Table_PI[[#This Row],[Input 4]],'Customer Information'!$AR$12,201,ROW()),\"\"),\"\")","v":""}]
[{"$f":"Table_PI[[#This Row],[Line No.]]","v":""},{"$f":"IF(Table_SummaryPI[[#This Row],[MeassureCategory]]<>\"\",CONCATENATE(Table_SummaryPI[[#This Row],[MeassureCategory]],  \" - \", Table_SummaryPI[[#This Row],[ProposedMeasureCategory]],  \" - \", TEXT(Table_SummaryPI[[#This Row],[Size]],\"#,##0.00\"),\" \",Table_SummaryPI[[#This Row],[SizeUnit]]),\"\")","v":""},{"$f":"SUBSTITUTE(Table_PI[[#This Row],[Measure]],\"     \",\"\",1)","v":""},{"$f":"IF(Table_PI[[#This Row],[List 1]]<>\"\",Table_PI[[#This Row],[List 1]],\"\")","v":""},{"$f":"IF(Table_PI[[#This Row],[List 2]]<>\"\",Table_PI[[#This Row],[List 2]],\"\")","v":""},{"$f":"IF(Table_PI[[#This Row],[List 3]]<>\"\",Table_PI[[#This Row],[List 3]],\"\")","v":""},{"$f":"IF(Table_PI[[#This Row],[Manufacturer]]=\"\",\"\",Table_PI[[#This Row],[Manufacturer]])","v":""},{"$f":"IF(Table_PI[[#This Row],[Model Number]]=\"\",\"\",Table_PI[[#This Row],[Model Number]])","v":""},{"$f":"IF(Table_PI[[#This Row],[Serial Number(s)]]=\"\",\"\",Table_PI[[#This Row],[Serial Number(s)]])","v":""},null,{"$f":"IF(Table_PI[[#This Row],[Size]]=\"\",\"\",Table_PI[[#This Row],[Size]])","v":""},null,{"$f":"IFERROR(IF(AND(MeasureCalc(Table_PI[[#This Row],[Hide:\nFormula Name]],Table_SummaryPI[[#This Row],[Quantity]],Table_PI[[#This Row],[List 1]],Table_PI[[#This Row],[List 2]],Table_PI[[#This Row],[List 3]],Table_PI[[#This Row],[Size]],Table_PI[[#This Row],[Input 1]],Table_PI[[#This Row],[Input 2]],Table_PI[[#This Row],[Input 3]],Table_PI[[#This Row],[Input 4]],'Customer Information'!$AR$12,100,ROW())<>0,MeasureCalc(Table_PI[[#This Row],[Hide:\nFormula Name]],Table_SummaryPI[[#This Row],[Quantity]],Table_PI[[#This Row],[List 1]],Table_PI[[#This Row],[List 2]],Table_PI[[#This Row],[List 3]],Table_PI[[#This Row],[Size]],Table_PI[[#This Row],[Input 1]],Table_PI[[#This Row],[Input 2]],Table_PI[[#This Row],[Input 3]],Table_PI[[#This Row],[Input 4]],'Customer Information'!$AR$12,100,ROW())<>\"No Rebate\"),MeasureCalc(Table_PI[[#This Row],[Hide:\nFormula Name]],Table_SummaryPI[[#This Row],[Quantity]],Table_PI[[#This Row],[List 1]],Table_PI[[#This Row],[List 2]],Table_PI[[#This Row],[List 3]],Table_PI[[#This Row],[Size]],Table_PI[[#This Row],[Input 1]],Table_PI[[#This Row],[Input 2]],Table_PI[[#This Row],[Input 3]],Table_PI[[#This Row],[Input 4]],'Customer Information'!$AR$12,100,ROW()),\"\"),\"\")","v":""},{"$f":"IF(Table_PI[[#This Row],[Input 1]]<>\"\",Table_PI[[#This Row],[Input 1]],\"\")","v":""},null,{"$f":"IFERROR(IF(AND(MeasureCalc(Table_PI[[#This Row],[Hide:\nFormula Name]],Table_SummaryPI[[#This Row],[Quantity]],Table_PI[[#This Row],[List 1]],Table_PI[[#This Row],[List 2]],Table_PI[[#This Row],[List 3]],Table_PI[[#This Row],[Size]],Table_PI[[#This Row],[Input 1]],Table_PI[[#This Row],[Input 2]],Table_PI[[#This Row],[Input 3]],Table_PI[[#This Row],[Input 4]],'Customer Information'!$AR$12,101,ROW())<>0,MeasureCalc(Table_PI[[#This Row],[Hide:\nFormula Name]],Table_SummaryPI[[#This Row],[Quantity]],Table_PI[[#This Row],[List 1]],Table_PI[[#This Row],[List 2]],Table_PI[[#This Row],[List 3]],Table_PI[[#This Row],[Size]],Table_PI[[#This Row],[Input 1]],Table_PI[[#This Row],[Input 2]],Table_PI[[#This Row],[Input 3]],Table_PI[[#This Row],[Input 4]],'Customer Information'!$AR$12,101,ROW())<>\"No Rebate\"),MeasureCalc(Table_PI[[#This Row],[Hide:\nFormula Name]],Table_SummaryPI[[#This Row],[Quantity]],Table_PI[[#This Row],[List 1]],Table_PI[[#This Row],[List 2]],Table_PI[[#This Row],[List 3]],Table_PI[[#This Row],[Size]],Table_PI[[#This Row],[Input 1]],Table_PI[[#This Row],[Input 2]],Table_PI[[#This Row],[Input 3]],Table_PI[[#This Row],[Input 4]],'Customer Information'!$AR$12,101,ROW()),\"\"),\"\")","v":""},{"$f":"IF(Table_PI[[#This Row],[Input 2]]<>\"\",Table_PI[[#This Row],[Input 2]],\"\")","v":""},null,{"$f":"IFERROR(IF(AND(MeasureCalc(Table_PI[[#This Row],[Hide:\nFormula Name]],Table_SummaryPI[[#This Row],[Quantity]],Table_PI[[#This Row],[List 1]],Table_PI[[#This Row],[List 2]],Table_PI[[#This Row],[List 3]],Table_PI[[#This Row],[Size]],Table_PI[[#This Row],[Input 1]],Table_PI[[#This Row],[Input 2]],Table_PI[[#This Row],[Input 3]],Table_PI[[#This Row],[Input 4]],'Customer Information'!$AR$12,102,ROW())<>0,MeasureCalc(Table_PI[[#This Row],[Hide:\nFormula Name]],Table_SummaryPI[[#This Row],[Quantity]],Table_PI[[#This Row],[List 1]],Table_PI[[#This Row],[List 2]],Table_PI[[#This Row],[List 3]],Table_PI[[#This Row],[Size]],Table_PI[[#This Row],[Input 1]],Table_PI[[#This Row],[Input 2]],Table_PI[[#This Row],[Input 3]],Table_PI[[#This Row],[Input 4]],'Customer Information'!$AR$12,102,ROW())<>\"No Rebate\"),MeasureCalc(Table_PI[[#This Row],[Hide:\nFormula Name]],Table_SummaryPI[[#This Row],[Quantity]],Table_PI[[#This Row],[List 1]],Table_PI[[#This Row],[List 2]],Table_PI[[#This Row],[List 3]],Table_PI[[#This Row],[Size]],Table_PI[[#This Row],[Input 1]],Table_PI[[#This Row],[Input 2]],Table_PI[[#This Row],[Input 3]],Table_PI[[#This Row],[Input 4]],'Customer Information'!$AR$12,102,ROW()),\"\"),\"\")","v":""},{"$f":"IF(Table_PI[[#This Row],[Input 3]]<>\"\",Table_PI[[#This Row],[Input 3]],\"\")","v":""},null,{"$f":"IFERROR(IF(AND(MeasureCalc(Table_PI[[#This Row],[Hide:\nFormula Name]],Table_SummaryPI[[#This Row],[Quantity]],Table_PI[[#This Row],[List 1]],Table_PI[[#This Row],[List 2]],Table_PI[[#This Row],[List 3]],Table_PI[[#This Row],[Size]],Table_PI[[#This Row],[Input 1]],Table_PI[[#This Row],[Input 2]],Table_PI[[#This Row],[Input 3]],Table_PI[[#This Row],[Input 4]],'Customer Information'!$AR$12,103,ROW())<>0,MeasureCalc(Table_PI[[#This Row],[Hide:\nFormula Name]],Table_SummaryPI[[#This Row],[Quantity]],Table_PI[[#This Row],[List 1]],Table_PI[[#This Row],[List 2]],Table_PI[[#This Row],[List 3]],Table_PI[[#This Row],[Size]],Table_PI[[#This Row],[Input 1]],Table_PI[[#This Row],[Input 2]],Table_PI[[#This Row],[Input 3]],Table_PI[[#This Row],[Input 4]],'Customer Information'!$AR$12,103,ROW())<>\"No Rebate\"),MeasureCalc(Table_PI[[#This Row],[Hide:\nFormula Name]],Table_SummaryPI[[#This Row],[Quantity]],Table_PI[[#This Row],[List 1]],Table_PI[[#This Row],[List 2]],Table_PI[[#This Row],[List 3]],Table_PI[[#This Row],[Size]],Table_PI[[#This Row],[Input 1]],Table_PI[[#This Row],[Input 2]],Table_PI[[#This Row],[Input 3]],Table_PI[[#This Row],[Input 4]],'Customer Information'!$AR$12,103,ROW()),\"\"),\"\")","v":""},{"$f":"IF(Table_PI[[#This Row],[Input 4]]<>\"\",Table_PI[[#This Row],[Input 4]],\"\")","v":""},{"$f":"IF(Table_PI[[#This Row],[Quantity]]=\"\",\"\",Table_PI[[#This Row],[Quantity]])","v":""},{"$f":"IF(Table_PI[[#This Row],[Notes]]=\"\",\"\",Table_PI[[#This Row],[Notes]])","v":""},{"$f":"IF(OR(Table_PI[[#This Row],[Hide:\nBaseline kWh]]=\"\",Table_PI[[#This Row],[Hide:\nBaseline kWh]]=0),\"\",Table_PI[[#This Row],[Hide:\nBaseline kWh]])","v":""},{"$f":"IF(OR(Table_PI[[#This Row],[Hide:\nBaseline kW]]=\"\",Table_PI[[#This Row],[Hide:\nBaseline kW]]=0),\"\",Table_PI[[#This Row],[Hide:\nBaseline kW]])","v":""},{"$f":"IF(OR(Table_PI[[#This Row],[Hide:\nProposed kWh]]=\"\",Table_PI[[#This Row],[Hide:\nProposed kWh]]=0),\"\",Table_PI[[#This Row],[Hide:\nProposed kWh]])","v":""},{"$f":"IF(OR(Table_PI[[#This Row],[Hide:\nProposed kW]]=\"\",Table_PI[[#This Row],[Hide:\nProposed kW]]=0),\"\",Table_PI[[#This Row],[Hide:\nProposed kW]])","v":""},{"$f":"IF(OR(Table_PI[[#This Row],[Rebate]]=\"\",Table_PI[[#This Row],[Rebate]]=0),\"\",Table_PI[[#This Row],[Rebate]])","v":""},{"$f":"IF(OR(Table_PI[[#This Row],[Hide:\nIncremental Cost]]=\"\",Table_PI[[#This Row],[Hide:\nIncremental Cost]]=0),\"\",Table_PI[[#This Row],[Hide:\nIncremental Cost]])","v":""},{"$f":"IFERROR(IF(Table_SummaryPI[[#This Row],[kWhSavings]]=\"\",\"\",ROUND(Table_SummaryPI[[#This Row],[kWhSavings]]/$AG$401*'Customer Information'!$BC$17,2)),0)","v":""},{"$f":"IF(OR(Table_PI[[#This Row],[Annual kWh]]=\"\",Table_PI[[#This Row],[Annual kWh]]=0),\"\",Table_PI[[#This Row],[Annual kWh]])","v":""},{"$f":"IF(OR(Table_PI[[#This Row],[Peak kW]]=\"\",Table_PI[[#This Row],[Peak kW]]=0),\"\",Table_PI[[#This Row],[Peak kW]])","v":""},{"$f":"IFERROR(IF(Table_SummaryPI[[#This Row],[kWhSavings]]=\"\",\"\",$AU$9*Table_SummaryPI[[#This Row],[kWhSavings]]),0)","v":""},{"$f":"IFERROR(IF(Table_SummaryPI[[#This Row],[kWhSavings]]=\"\",\"\",$AU$14*Table_SummaryPI[[#This Row],[kWhSavings]]),0)","v":""},{"$f":"IFERROR(IF(Table_SummaryPI[[#This Row],[kWhSavings]]=\"\",\"\",$AU$18*Table_SummaryPI[[#This Row],[kWhSavings]]),0)","v":""},{"$f":"IFERROR(IF(Table_SummaryPI[[#This Row],[kWhSavings]]=\"\",\"\",$AU$22*Table_SummaryPI[[#This Row],[kWhSavings]]),0)","v":""},{"$f":"IFERROR(IF(MeasureCalc(Table_PI[[#This Row],[Hide:\nFormula Name]],Table_SummaryPI[[#This Row],[Quantity]],Table_PI[[#This Row],[List 1]],Table_PI[[#This Row],[List 2]],Table_PI[[#This Row],[List 3]],Table_PI[[#This Row],[Size]],Table_PI[[#This Row],[Input 1]],Table_PI[[#This Row],[Input 2]],Table_PI[[#This Row],[Input 3]],Table_PI[[#This Row],[Input 4]],'Customer Information'!$AR$12,200,ROW())<>\"No Rebate\",MeasureCalc(Table_PI[[#This Row],[Hide:\nFormula Name]],Table_SummaryPI[[#This Row],[Quantity]],Table_PI[[#This Row],[List 1]],Table_PI[[#This Row],[List 2]],Table_PI[[#This Row],[List 3]],Table_PI[[#This Row],[Size]],Table_PI[[#This Row],[Input 1]],Table_PI[[#This Row],[Input 2]],Table_PI[[#This Row],[Input 3]],Table_PI[[#This Row],[Input 4]],'Customer Information'!$AR$12,200,ROW()),\"\"),\"\")","v":""},{"$f":"IFERROR(IF(MeasureCalc(Table_PI[[#This Row],[Hide:\nFormula Name]],Table_SummaryPI[[#This Row],[Quantity]],Table_PI[[#This Row],[List 1]],Table_PI[[#This Row],[List 2]],Table_PI[[#This Row],[List 3]],Table_PI[[#This Row],[Size]],Table_PI[[#This Row],[Input 1]],Table_PI[[#This Row],[Input 2]],Table_PI[[#This Row],[Input 3]],Table_PI[[#This Row],[Input 4]],'Customer Information'!$AR$12,201,ROW())<>\"No Rebate\",MeasureCalc(Table_PI[[#This Row],[Hide:\nFormula Name]],Table_SummaryPI[[#This Row],[Quantity]],Table_PI[[#This Row],[List 1]],Table_PI[[#This Row],[List 2]],Table_PI[[#This Row],[List 3]],Table_PI[[#This Row],[Size]],Table_PI[[#This Row],[Input 1]],Table_PI[[#This Row],[Input 2]],Table_PI[[#This Row],[Input 3]],Table_PI[[#This Row],[Input 4]],'Customer Information'!$AR$12,201,ROW()),\"\"),\"\")","v":""}]
[{"$f":"Table_PI[[#This Row],[Line No.]]","v":""},{"$f":"IF(Table_SummaryPI[[#This Row],[MeassureCategory]]<>\"\",CONCATENATE(Table_SummaryPI[[#This Row],[MeassureCategory]],  \" - \", Table_SummaryPI[[#This Row],[ProposedMeasureCategory]],  \" - \", TEXT(Table_SummaryPI[[#This Row],[Size]],\"#,##0.00\"),\" \",Table_SummaryPI[[#This Row],[SizeUnit]]),\"\")","v":""},{"$f":"SUBSTITUTE(Table_PI[[#This Row],[Measure]],\"     \",\"\",1)","v":""},{"$f":"IF(Table_PI[[#This Row],[List 1]]<>\"\",Table_PI[[#This Row],[List 1]],\"\")","v":""},{"$f":"IF(Table_PI[[#This Row],[List 2]]<>\"\",Table_PI[[#This Row],[List 2]],\"\")","v":""},{"$f":"IF(Table_PI[[#This Row],[List 3]]<>\"\",Table_PI[[#This Row],[List 3]],\"\")","v":""},{"$f":"IF(Table_PI[[#This Row],[Manufacturer]]=\"\",\"\",Table_PI[[#This Row],[Manufacturer]])","v":""},{"$f":"IF(Table_PI[[#This Row],[Model Number]]=\"\",\"\",Table_PI[[#This Row],[Model Number]])","v":""},{"$f":"IF(Table_PI[[#This Row],[Serial Number(s)]]=\"\",\"\",Table_PI[[#This Row],[Serial Number(s)]])","v":""},null,{"$f":"IF(Table_PI[[#This Row],[Size]]=\"\",\"\",Table_PI[[#This Row],[Size]])","v":""},null,{"$f":"IFERROR(IF(AND(MeasureCalc(Table_PI[[#This Row],[Hide:\nFormula Name]],Table_SummaryPI[[#This Row],[Quantity]],Table_PI[[#This Row],[List 1]],Table_PI[[#This Row],[List 2]],Table_PI[[#This Row],[List 3]],Table_PI[[#This Row],[Size]],Table_PI[[#This Row],[Input 1]],Table_PI[[#This Row],[Input 2]],Table_PI[[#This Row],[Input 3]],Table_PI[[#This Row],[Input 4]],'Customer Information'!$AR$12,100,ROW())<>0,MeasureCalc(Table_PI[[#This Row],[Hide:\nFormula Name]],Table_SummaryPI[[#This Row],[Quantity]],Table_PI[[#This Row],[List 1]],Table_PI[[#This Row],[List 2]],Table_PI[[#This Row],[List 3]],Table_PI[[#This Row],[Size]],Table_PI[[#This Row],[Input 1]],Table_PI[[#This Row],[Input 2]],Table_PI[[#This Row],[Input 3]],Table_PI[[#This Row],[Input 4]],'Customer Information'!$AR$12,100,ROW())<>\"No Rebate\"),MeasureCalc(Table_PI[[#This Row],[Hide:\nFormula Name]],Table_SummaryPI[[#This Row],[Quantity]],Table_PI[[#This Row],[List 1]],Table_PI[[#This Row],[List 2]],Table_PI[[#This Row],[List 3]],Table_PI[[#This Row],[Size]],Table_PI[[#This Row],[Input 1]],Table_PI[[#This Row],[Input 2]],Table_PI[[#This Row],[Input 3]],Table_PI[[#This Row],[Input 4]],'Customer Information'!$AR$12,100,ROW()),\"\"),\"\")","v":""},{"$f":"IF(Table_PI[[#This Row],[Input 1]]<>\"\",Table_PI[[#This Row],[Input 1]],\"\")","v":""},null,{"$f":"IFERROR(IF(AND(MeasureCalc(Table_PI[[#This Row],[Hide:\nFormula Name]],Table_SummaryPI[[#This Row],[Quantity]],Table_PI[[#This Row],[List 1]],Table_PI[[#This Row],[List 2]],Table_PI[[#This Row],[List 3]],Table_PI[[#This Row],[Size]],Table_PI[[#This Row],[Input 1]],Table_PI[[#This Row],[Input 2]],Table_PI[[#This Row],[Input 3]],Table_PI[[#This Row],[Input 4]],'Customer Information'!$AR$12,101,ROW())<>0,MeasureCalc(Table_PI[[#This Row],[Hide:\nFormula Name]],Table_SummaryPI[[#This Row],[Quantity]],Table_PI[[#This Row],[List 1]],Table_PI[[#This Row],[List 2]],Table_PI[[#This Row],[List 3]],Table_PI[[#This Row],[Size]],Table_PI[[#This Row],[Input 1]],Table_PI[[#This Row],[Input 2]],Table_PI[[#This Row],[Input 3]],Table_PI[[#This Row],[Input 4]],'Customer Information'!$AR$12,101,ROW())<>\"No Rebate\"),MeasureCalc(Table_PI[[#This Row],[Hide:\nFormula Name]],Table_SummaryPI[[#This Row],[Quantity]],Table_PI[[#This Row],[List 1]],Table_PI[[#This Row],[List 2]],Table_PI[[#This Row],[List 3]],Table_PI[[#This Row],[Size]],Table_PI[[#This Row],[Input 1]],Table_PI[[#This Row],[Input 2]],Table_PI[[#This Row],[Input 3]],Table_PI[[#This Row],[Input 4]],'Customer Information'!$AR$12,101,ROW()),\"\"),\"\")","v":""},{"$f":"IF(Table_PI[[#This Row],[Input 2]]<>\"\",Table_PI[[#This Row],[Input 2]],\"\")","v":""},null,{"$f":"IFERROR(IF(AND(MeasureCalc(Table_PI[[#This Row],[Hide:\nFormula Name]],Table_SummaryPI[[#This Row],[Quantity]],Table_PI[[#This Row],[List 1]],Table_PI[[#This Row],[List 2]],Table_PI[[#This Row],[List 3]],Table_PI[[#This Row],[Size]],Table_PI[[#This Row],[Input 1]],Table_PI[[#This Row],[Input 2]],Table_PI[[#This Row],[Input 3]],Table_PI[[#This Row],[Input 4]],'Customer Information'!$AR$12,102,ROW())<>0,MeasureCalc(Table_PI[[#This Row],[Hide:\nFormula Name]],Table_SummaryPI[[#This Row],[Quantity]],Table_PI[[#This Row],[List 1]],Table_PI[[#This Row],[List 2]],Table_PI[[#This Row],[List 3]],Table_PI[[#This Row],[Size]],Table_PI[[#This Row],[Input 1]],Table_PI[[#This Row],[Input 2]],Table_PI[[#This Row],[Input 3]],Table_PI[[#This Row],[Input 4]],'Customer Information'!$AR$12,102,ROW())<>\"No Rebate\"),MeasureCalc(Table_PI[[#This Row],[Hide:\nFormula Name]],Table_SummaryPI[[#This Row],[Quantity]],Table_PI[[#This Row],[List 1]],Table_PI[[#This Row],[List 2]],Table_PI[[#This Row],[List 3]],Table_PI[[#This Row],[Size]],Table_PI[[#This Row],[Input 1]],Table_PI[[#This Row],[Input 2]],Table_PI[[#This Row],[Input 3]],Table_PI[[#This Row],[Input 4]],'Customer Information'!$AR$12,102,ROW()),\"\"),\"\")","v":""},{"$f":"IF(Table_PI[[#This Row],[Input 3]]<>\"\",Table_PI[[#This Row],[Input 3]],\"\")","v":""},null,{"$f":"IFERROR(IF(AND(MeasureCalc(Table_PI[[#This Row],[Hide:\nFormula Name]],Table_SummaryPI[[#This Row],[Quantity]],Table_PI[[#This Row],[List 1]],Table_PI[[#This Row],[List 2]],Table_PI[[#This Row],[List 3]],Table_PI[[#This Row],[Size]],Table_PI[[#This Row],[Input 1]],Table_PI[[#This Row],[Input 2]],Table_PI[[#This Row],[Input 3]],Table_PI[[#This Row],[Input 4]],'Customer Information'!$AR$12,103,ROW())<>0,MeasureCalc(Table_PI[[#This Row],[Hide:\nFormula Name]],Table_SummaryPI[[#This Row],[Quantity]],Table_PI[[#This Row],[List 1]],Table_PI[[#This Row],[List 2]],Table_PI[[#This Row],[List 3]],Table_PI[[#This Row],[Size]],Table_PI[[#This Row],[Input 1]],Table_PI[[#This Row],[Input 2]],Table_PI[[#This Row],[Input 3]],Table_PI[[#This Row],[Input 4]],'Customer Information'!$AR$12,103,ROW())<>\"No Rebate\"),MeasureCalc(Table_PI[[#This Row],[Hide:\nFormula Name]],Table_SummaryPI[[#This Row],[Quantity]],Table_PI[[#This Row],[List 1]],Table_PI[[#This Row],[List 2]],Table_PI[[#This Row],[List 3]],Table_PI[[#This Row],[Size]],Table_PI[[#This Row],[Input 1]],Table_PI[[#This Row],[Input 2]],Table_PI[[#This Row],[Input 3]],Table_PI[[#This Row],[Input 4]],'Customer Information'!$AR$12,103,ROW()),\"\"),\"\")","v":""},{"$f":"IF(Table_PI[[#This Row],[Input 4]]<>\"\",Table_PI[[#This Row],[Input 4]],\"\")","v":""},{"$f":"IF(Table_PI[[#This Row],[Quantity]]=\"\",\"\",Table_PI[[#This Row],[Quantity]])","v":""},{"$f":"IF(Table_PI[[#This Row],[Notes]]=\"\",\"\",Table_PI[[#This Row],[Notes]])","v":""},{"$f":"IF(OR(Table_PI[[#This Row],[Hide:\nBaseline kWh]]=\"\",Table_PI[[#This Row],[Hide:\nBaseline kWh]]=0),\"\",Table_PI[[#This Row],[Hide:\nBaseline kWh]])","v":""},{"$f":"IF(OR(Table_PI[[#This Row],[Hide:\nBaseline kW]]=\"\",Table_PI[[#This Row],[Hide:\nBaseline kW]]=0),\"\",Table_PI[[#This Row],[Hide:\nBaseline kW]])","v":""},{"$f":"IF(OR(Table_PI[[#This Row],[Hide:\nProposed kWh]]=\"\",Table_PI[[#This Row],[Hide:\nProposed kWh]]=0),\"\",Table_PI[[#This Row],[Hide:\nProposed kWh]])","v":""},{"$f":"IF(OR(Table_PI[[#This Row],[Hide:\nProposed kW]]=\"\",Table_PI[[#This Row],[Hide:\nProposed kW]]=0),\"\",Table_PI[[#This Row],[Hide:\nProposed kW]])","v":""},{"$f":"IF(OR(Table_PI[[#This Row],[Rebate]]=\"\",Table_PI[[#This Row],[Rebate]]=0),\"\",Table_PI[[#This Row],[Rebate]])","v":""},{"$f":"IF(OR(Table_PI[[#This Row],[Hide:\nIncremental Cost]]=\"\",Table_PI[[#This Row],[Hide:\nIncremental Cost]]=0),\"\",Table_PI[[#This Row],[Hide:\nIncremental Cost]])","v":""},{"$f":"IFERROR(IF(Table_SummaryPI[[#This Row],[kWhSavings]]=\"\",\"\",ROUND(Table_SummaryPI[[#This Row],[kWhSavings]]/$AG$401*'Customer Information'!$BC$17,2)),0)","v":""},{"$f":"IF(OR(Table_PI[[#This Row],[Annual kWh]]=\"\",Table_PI[[#This Row],[Annual kWh]]=0),\"\",Table_PI[[#This Row],[Annual kWh]])","v":""},{"$f":"IF(OR(Table_PI[[#This Row],[Peak kW]]=\"\",Table_PI[[#This Row],[Peak kW]]=0),\"\",Table_PI[[#This Row],[Peak kW]])","v":""},{"$f":"IFERROR(IF(Table_SummaryPI[[#This Row],[kWhSavings]]=\"\",\"\",$AU$9*Table_SummaryPI[[#This Row],[kWhSavings]]),0)","v":""},{"$f":"IFERROR(IF(Table_SummaryPI[[#This Row],[kWhSavings]]=\"\",\"\",$AU$14*Table_SummaryPI[[#This Row],[kWhSavings]]),0)","v":""},{"$f":"IFERROR(IF(Table_SummaryPI[[#This Row],[kWhSavings]]=\"\",\"\",$AU$18*Table_SummaryPI[[#This Row],[kWhSavings]]),0)","v":""},{"$f":"IFERROR(IF(Table_SummaryPI[[#This Row],[kWhSavings]]=\"\",\"\",$AU$22*Table_SummaryPI[[#This Row],[kWhSavings]]),0)","v":""},{"$f":"IFERROR(IF(MeasureCalc(Table_PI[[#This Row],[Hide:\nFormula Name]],Table_SummaryPI[[#This Row],[Quantity]],Table_PI[[#This Row],[List 1]],Table_PI[[#This Row],[List 2]],Table_PI[[#This Row],[List 3]],Table_PI[[#This Row],[Size]],Table_PI[[#This Row],[Input 1]],Table_PI[[#This Row],[Input 2]],Table_PI[[#This Row],[Input 3]],Table_PI[[#This Row],[Input 4]],'Customer Information'!$AR$12,200,ROW())<>\"No Rebate\",MeasureCalc(Table_PI[[#This Row],[Hide:\nFormula Name]],Table_SummaryPI[[#This Row],[Quantity]],Table_PI[[#This Row],[List 1]],Table_PI[[#This Row],[List 2]],Table_PI[[#This Row],[List 3]],Table_PI[[#This Row],[Size]],Table_PI[[#This Row],[Input 1]],Table_PI[[#This Row],[Input 2]],Table_PI[[#This Row],[Input 3]],Table_PI[[#This Row],[Input 4]],'Customer Information'!$AR$12,200,ROW()),\"\"),\"\")","v":""},{"$f":"IFERROR(IF(MeasureCalc(Table_PI[[#This Row],[Hide:\nFormula Name]],Table_SummaryPI[[#This Row],[Quantity]],Table_PI[[#This Row],[List 1]],Table_PI[[#This Row],[List 2]],Table_PI[[#This Row],[List 3]],Table_PI[[#This Row],[Size]],Table_PI[[#This Row],[Input 1]],Table_PI[[#This Row],[Input 2]],Table_PI[[#This Row],[Input 3]],Table_PI[[#This Row],[Input 4]],'Customer Information'!$AR$12,201,ROW())<>\"No Rebate\",MeasureCalc(Table_PI[[#This Row],[Hide:\nFormula Name]],Table_SummaryPI[[#This Row],[Quantity]],Table_PI[[#This Row],[List 1]],Table_PI[[#This Row],[List 2]],Table_PI[[#This Row],[List 3]],Table_PI[[#This Row],[Size]],Table_PI[[#This Row],[Input 1]],Table_PI[[#This Row],[Input 2]],Table_PI[[#This Row],[Input 3]],Table_PI[[#This Row],[Input 4]],'Customer Information'!$AR$12,201,ROW()),\"\"),\"\")","v":""}]
[{"$f":"Table_PI[[#This Row],[Line No.]]","v":""},{"$f":"IF(Table_SummaryPI[[#This Row],[MeassureCategory]]<>\"\",CONCATENATE(Table_SummaryPI[[#This Row],[MeassureCategory]],  \" - \", Table_SummaryPI[[#This Row],[ProposedMeasureCategory]],  \" - \", TEXT(Table_SummaryPI[[#This Row],[Size]],\"#,##0.00\"),\" \",Table_SummaryPI[[#This Row],[SizeUnit]]),\"\")","v":""},{"$f":"SUBSTITUTE(Table_PI[[#This Row],[Measure]],\"     \",\"\",1)","v":""},{"$f":"IF(Table_PI[[#This Row],[List 1]]<>\"\",Table_PI[[#This Row],[List 1]],\"\")","v":""},{"$f":"IF(Table_PI[[#This Row],[List 2]]<>\"\",Table_PI[[#This Row],[List 2]],\"\")","v":""},{"$f":"IF(Table_PI[[#This Row],[List 3]]<>\"\",Table_PI[[#This Row],[List 3]],\"\")","v":""},{"$f":"IF(Table_PI[[#This Row],[Manufacturer]]=\"\",\"\",Table_PI[[#This Row],[Manufacturer]])","v":""},{"$f":"IF(Table_PI[[#This Row],[Model Number]]=\"\",\"\",Table_PI[[#This Row],[Model Number]])","v":""},{"$f":"IF(Table_PI[[#This Row],[Serial Number(s)]]=\"\",\"\",Table_PI[[#This Row],[Serial Number(s)]])","v":""},null,{"$f":"IF(Table_PI[[#This Row],[Size]]=\"\",\"\",Table_PI[[#This Row],[Size]])","v":""},null,{"$f":"IFERROR(IF(AND(MeasureCalc(Table_PI[[#This Row],[Hide:\nFormula Name]],Table_SummaryPI[[#This Row],[Quantity]],Table_PI[[#This Row],[List 1]],Table_PI[[#This Row],[List 2]],Table_PI[[#This Row],[List 3]],Table_PI[[#This Row],[Size]],Table_PI[[#This Row],[Input 1]],Table_PI[[#This Row],[Input 2]],Table_PI[[#This Row],[Input 3]],Table_PI[[#This Row],[Input 4]],'Customer Information'!$AR$12,100,ROW())<>0,MeasureCalc(Table_PI[[#This Row],[Hide:\nFormula Name]],Table_SummaryPI[[#This Row],[Quantity]],Table_PI[[#This Row],[List 1]],Table_PI[[#This Row],[List 2]],Table_PI[[#This Row],[List 3]],Table_PI[[#This Row],[Size]],Table_PI[[#This Row],[Input 1]],Table_PI[[#This Row],[Input 2]],Table_PI[[#This Row],[Input 3]],Table_PI[[#This Row],[Input 4]],'Customer Information'!$AR$12,100,ROW())<>\"No Rebate\"),MeasureCalc(Table_PI[[#This Row],[Hide:\nFormula Name]],Table_SummaryPI[[#This Row],[Quantity]],Table_PI[[#This Row],[List 1]],Table_PI[[#This Row],[List 2]],Table_PI[[#This Row],[List 3]],Table_PI[[#This Row],[Size]],Table_PI[[#This Row],[Input 1]],Table_PI[[#This Row],[Input 2]],Table_PI[[#This Row],[Input 3]],Table_PI[[#This Row],[Input 4]],'Customer Information'!$AR$12,100,ROW()),\"\"),\"\")","v":""},{"$f":"IF(Table_PI[[#This Row],[Input 1]]<>\"\",Table_PI[[#This Row],[Input 1]],\"\")","v":""},null,{"$f":"IFERROR(IF(AND(MeasureCalc(Table_PI[[#This Row],[Hide:\nFormula Name]],Table_SummaryPI[[#This Row],[Quantity]],Table_PI[[#This Row],[List 1]],Table_PI[[#This Row],[List 2]],Table_PI[[#This Row],[List 3]],Table_PI[[#This Row],[Size]],Table_PI[[#This Row],[Input 1]],Table_PI[[#This Row],[Input 2]],Table_PI[[#This Row],[Input 3]],Table_PI[[#This Row],[Input 4]],'Customer Information'!$AR$12,101,ROW())<>0,MeasureCalc(Table_PI[[#This Row],[Hide:\nFormula Name]],Table_SummaryPI[[#This Row],[Quantity]],Table_PI[[#This Row],[List 1]],Table_PI[[#This Row],[List 2]],Table_PI[[#This Row],[List 3]],Table_PI[[#This Row],[Size]],Table_PI[[#This Row],[Input 1]],Table_PI[[#This Row],[Input 2]],Table_PI[[#This Row],[Input 3]],Table_PI[[#This Row],[Input 4]],'Customer Information'!$AR$12,101,ROW())<>\"No Rebate\"),MeasureCalc(Table_PI[[#This Row],[Hide:\nFormula Name]],Table_SummaryPI[[#This Row],[Quantity]],Table_PI[[#This Row],[List 1]],Table_PI[[#This Row],[List 2]],Table_PI[[#This Row],[List 3]],Table_PI[[#This Row],[Size]],Table_PI[[#This Row],[Input 1]],Table_PI[[#This Row],[Input 2]],Table_PI[[#This Row],[Input 3]],Table_PI[[#This Row],[Input 4]],'Customer Information'!$AR$12,101,ROW()),\"\"),\"\")","v":""},{"$f":"IF(Table_PI[[#This Row],[Input 2]]<>\"\",Table_PI[[#This Row],[Input 2]],\"\")","v":""},null,{"$f":"IFERROR(IF(AND(MeasureCalc(Table_PI[[#This Row],[Hide:\nFormula Name]],Table_SummaryPI[[#This Row],[Quantity]],Table_PI[[#This Row],[List 1]],Table_PI[[#This Row],[List 2]],Table_PI[[#This Row],[List 3]],Table_PI[[#This Row],[Size]],Table_PI[[#This Row],[Input 1]],Table_PI[[#This Row],[Input 2]],Table_PI[[#This Row],[Input 3]],Table_PI[[#This Row],[Input 4]],'Customer Information'!$AR$12,102,ROW())<>0,MeasureCalc(Table_PI[[#This Row],[Hide:\nFormula Name]],Table_SummaryPI[[#This Row],[Quantity]],Table_PI[[#This Row],[List 1]],Table_PI[[#This Row],[List 2]],Table_PI[[#This Row],[List 3]],Table_PI[[#This Row],[Size]],Table_PI[[#This Row],[Input 1]],Table_PI[[#This Row],[Input 2]],Table_PI[[#This Row],[Input 3]],Table_PI[[#This Row],[Input 4]],'Customer Information'!$AR$12,102,ROW())<>\"No Rebate\"),MeasureCalc(Table_PI[[#This Row],[Hide:\nFormula Name]],Table_SummaryPI[[#This Row],[Quantity]],Table_PI[[#This Row],[List 1]],Table_PI[[#This Row],[List 2]],Table_PI[[#This Row],[List 3]],Table_PI[[#This Row],[Size]],Table_PI[[#This Row],[Input 1]],Table_PI[[#This Row],[Input 2]],Table_PI[[#This Row],[Input 3]],Table_PI[[#This Row],[Input 4]],'Customer Information'!$AR$12,102,ROW()),\"\"),\"\")","v":""},{"$f":"IF(Table_PI[[#This Row],[Input 3]]<>\"\",Table_PI[[#This Row],[Input 3]],\"\")","v":""},null,{"$f":"IFERROR(IF(AND(MeasureCalc(Table_PI[[#This Row],[Hide:\nFormula Name]],Table_SummaryPI[[#This Row],[Quantity]],Table_PI[[#This Row],[List 1]],Table_PI[[#This Row],[List 2]],Table_PI[[#This Row],[List 3]],Table_PI[[#This Row],[Size]],Table_PI[[#This Row],[Input 1]],Table_PI[[#This Row],[Input 2]],Table_PI[[#This Row],[Input 3]],Table_PI[[#This Row],[Input 4]],'Customer Information'!$AR$12,103,ROW())<>0,MeasureCalc(Table_PI[[#This Row],[Hide:\nFormula Name]],Table_SummaryPI[[#This Row],[Quantity]],Table_PI[[#This Row],[List 1]],Table_PI[[#This Row],[List 2]],Table_PI[[#This Row],[List 3]],Table_PI[[#This Row],[Size]],Table_PI[[#This Row],[Input 1]],Table_PI[[#This Row],[Input 2]],Table_PI[[#This Row],[Input 3]],Table_PI[[#This Row],[Input 4]],'Customer Information'!$AR$12,103,ROW())<>\"No Rebate\"),MeasureCalc(Table_PI[[#This Row],[Hide:\nFormula Name]],Table_SummaryPI[[#This Row],[Quantity]],Table_PI[[#This Row],[List 1]],Table_PI[[#This Row],[List 2]],Table_PI[[#This Row],[List 3]],Table_PI[[#This Row],[Size]],Table_PI[[#This Row],[Input 1]],Table_PI[[#This Row],[Input 2]],Table_PI[[#This Row],[Input 3]],Table_PI[[#This Row],[Input 4]],'Customer Information'!$AR$12,103,ROW()),\"\"),\"\")","v":""},{"$f":"IF(Table_PI[[#This Row],[Input 4]]<>\"\",Table_PI[[#This Row],[Input 4]],\"\")","v":""},{"$f":"IF(Table_PI[[#This Row],[Quantity]]=\"\",\"\",Table_PI[[#This Row],[Quantity]])","v":""},{"$f":"IF(Table_PI[[#This Row],[Notes]]=\"\",\"\",Table_PI[[#This Row],[Notes]])","v":""},{"$f":"IF(OR(Table_PI[[#This Row],[Hide:\nBaseline kWh]]=\"\",Table_PI[[#This Row],[Hide:\nBaseline kWh]]=0),\"\",Table_PI[[#This Row],[Hide:\nBaseline kWh]])","v":""},{"$f":"IF(OR(Table_PI[[#This Row],[Hide:\nBaseline kW]]=\"\",Table_PI[[#This Row],[Hide:\nBaseline kW]]=0),\"\",Table_PI[[#This Row],[Hide:\nBaseline kW]])","v":""},{"$f":"IF(OR(Table_PI[[#This Row],[Hide:\nProposed kWh]]=\"\",Table_PI[[#This Row],[Hide:\nProposed kWh]]=0),\"\",Table_PI[[#This Row],[Hide:\nProposed kWh]])","v":""},{"$f":"IF(OR(Table_PI[[#This Row],[Hide:\nProposed kW]]=\"\",Table_PI[[#This Row],[Hide:\nProposed kW]]=0),\"\",Table_PI[[#This Row],[Hide:\nProposed kW]])","v":""},{"$f":"IF(OR(Table_PI[[#This Row],[Rebate]]=\"\",Table_PI[[#This Row],[Rebate]]=0),\"\",Table_PI[[#This Row],[Rebate]])","v":""},{"$f":"IF(OR(Table_PI[[#This Row],[Hide:\nIncremental Cost]]=\"\",Table_PI[[#This Row],[Hide:\nIncremental Cost]]=0),\"\",Table_PI[[#This Row],[Hide:\nIncremental Cost]])","v":""},{"$f":"IFERROR(IF(Table_SummaryPI[[#This Row],[kWhSavings]]=\"\",\"\",ROUND(Table_SummaryPI[[#This Row],[kWhSavings]]/$AG$401*'Customer Information'!$BC$17,2)),0)","v":""},{"$f":"IF(OR(Table_PI[[#This Row],[Annual kWh]]=\"\",Table_PI[[#This Row],[Annual kWh]]=0),\"\",Table_PI[[#This Row],[Annual kWh]])","v":""},{"$f":"IF(OR(Table_PI[[#This Row],[Peak kW]]=\"\",Table_PI[[#This Row],[Peak kW]]=0),\"\",Table_PI[[#This Row],[Peak kW]])","v":""},{"$f":"IFERROR(IF(Table_SummaryPI[[#This Row],[kWhSavings]]=\"\",\"\",$AU$9*Table_SummaryPI[[#This Row],[kWhSavings]]),0)","v":""},{"$f":"IFERROR(IF(Table_SummaryPI[[#This Row],[kWhSavings]]=\"\",\"\",$AU$14*Table_SummaryPI[[#This Row],[kWhSavings]]),0)","v":""},{"$f":"IFERROR(IF(Table_SummaryPI[[#This Row],[kWhSavings]]=\"\",\"\",$AU$18*Table_SummaryPI[[#This Row],[kWhSavings]]),0)","v":""},{"$f":"IFERROR(IF(Table_SummaryPI[[#This Row],[kWhSavings]]=\"\",\"\",$AU$22*Table_SummaryPI[[#This Row],[kWhSavings]]),0)","v":""},{"$f":"IFERROR(IF(MeasureCalc(Table_PI[[#This Row],[Hide:\nFormula Name]],Table_SummaryPI[[#This Row],[Quantity]],Table_PI[[#This Row],[List 1]],Table_PI[[#This Row],[List 2]],Table_PI[[#This Row],[List 3]],Table_PI[[#This Row],[Size]],Table_PI[[#This Row],[Input 1]],Table_PI[[#This Row],[Input 2]],Table_PI[[#This Row],[Input 3]],Table_PI[[#This Row],[Input 4]],'Customer Information'!$AR$12,200,ROW())<>\"No Rebate\",MeasureCalc(Table_PI[[#This Row],[Hide:\nFormula Name]],Table_SummaryPI[[#This Row],[Quantity]],Table_PI[[#This Row],[List 1]],Table_PI[[#This Row],[List 2]],Table_PI[[#This Row],[List 3]],Table_PI[[#This Row],[Size]],Table_PI[[#This Row],[Input 1]],Table_PI[[#This Row],[Input 2]],Table_PI[[#This Row],[Input 3]],Table_PI[[#This Row],[Input 4]],'Customer Information'!$AR$12,200,ROW()),\"\"),\"\")","v":""},{"$f":"IFERROR(IF(MeasureCalc(Table_PI[[#This Row],[Hide:\nFormula Name]],Table_SummaryPI[[#This Row],[Quantity]],Table_PI[[#This Row],[List 1]],Table_PI[[#This Row],[List 2]],Table_PI[[#This Row],[List 3]],Table_PI[[#This Row],[Size]],Table_PI[[#This Row],[Input 1]],Table_PI[[#This Row],[Input 2]],Table_PI[[#This Row],[Input 3]],Table_PI[[#This Row],[Input 4]],'Customer Information'!$AR$12,201,ROW())<>\"No Rebate\",MeasureCalc(Table_PI[[#This Row],[Hide:\nFormula Name]],Table_SummaryPI[[#This Row],[Quantity]],Table_PI[[#This Row],[List 1]],Table_PI[[#This Row],[List 2]],Table_PI[[#This Row],[List 3]],Table_PI[[#This Row],[Size]],Table_PI[[#This Row],[Input 1]],Table_PI[[#This Row],[Input 2]],Table_PI[[#This Row],[Input 3]],Table_PI[[#This Row],[Input 4]],'Customer Information'!$AR$12,201,ROW()),\"\"),\"\")","v":""}]
[{"$f":"Table_PI[[#This Row],[Line No.]]","v":""},{"$f":"IF(Table_SummaryPI[[#This Row],[MeassureCategory]]<>\"\",CONCATENATE(Table_SummaryPI[[#This Row],[MeassureCategory]],  \" - \", Table_SummaryPI[[#This Row],[ProposedMeasureCategory]],  \" - \", TEXT(Table_SummaryPI[[#This Row],[Size]],\"#,##0.00\"),\" \",Table_SummaryPI[[#This Row],[SizeUnit]]),\"\")","v":""},{"$f":"SUBSTITUTE(Table_PI[[#This Row],[Measure]],\"     \",\"\",1)","v":""},{"$f":"IF(Table_PI[[#This Row],[List 1]]<>\"\",Table_PI[[#This Row],[List 1]],\"\")","v":""},{"$f":"IF(Table_PI[[#This Row],[List 2]]<>\"\",Table_PI[[#This Row],[List 2]],\"\")","v":""},{"$f":"IF(Table_PI[[#This Row],[List 3]]<>\"\",Table_PI[[#This Row],[List 3]],\"\")","v":""},{"$f":"IF(Table_PI[[#This Row],[Manufacturer]]=\"\",\"\",Table_PI[[#This Row],[Manufacturer]])","v":""},{"$f":"IF(Table_PI[[#This Row],[Model Number]]=\"\",\"\",Table_PI[[#This Row],[Model Number]])","v":""},{"$f":"IF(Table_PI[[#This Row],[Serial Number(s)]]=\"\",\"\",Table_PI[[#This Row],[Serial Number(s)]])","v":""},null,{"$f":"IF(Table_PI[[#This Row],[Size]]=\"\",\"\",Table_PI[[#This Row],[Size]])","v":""},null,{"$f":"IFERROR(IF(AND(MeasureCalc(Table_PI[[#This Row],[Hide:\nFormula Name]],Table_SummaryPI[[#This Row],[Quantity]],Table_PI[[#This Row],[List 1]],Table_PI[[#This Row],[List 2]],Table_PI[[#This Row],[List 3]],Table_PI[[#This Row],[Size]],Table_PI[[#This Row],[Input 1]],Table_PI[[#This Row],[Input 2]],Table_PI[[#This Row],[Input 3]],Table_PI[[#This Row],[Input 4]],'Customer Information'!$AR$12,100,ROW())<>0,MeasureCalc(Table_PI[[#This Row],[Hide:\nFormula Name]],Table_SummaryPI[[#This Row],[Quantity]],Table_PI[[#This Row],[List 1]],Table_PI[[#This Row],[List 2]],Table_PI[[#This Row],[List 3]],Table_PI[[#This Row],[Size]],Table_PI[[#This Row],[Input 1]],Table_PI[[#This Row],[Input 2]],Table_PI[[#This Row],[Input 3]],Table_PI[[#This Row],[Input 4]],'Customer Information'!$AR$12,100,ROW())<>\"No Rebate\"),MeasureCalc(Table_PI[[#This Row],[Hide:\nFormula Name]],Table_SummaryPI[[#This Row],[Quantity]],Table_PI[[#This Row],[List 1]],Table_PI[[#This Row],[List 2]],Table_PI[[#This Row],[List 3]],Table_PI[[#This Row],[Size]],Table_PI[[#This Row],[Input 1]],Table_PI[[#This Row],[Input 2]],Table_PI[[#This Row],[Input 3]],Table_PI[[#This Row],[Input 4]],'Customer Information'!$AR$12,100,ROW()),\"\"),\"\")","v":""},{"$f":"IF(Table_PI[[#This Row],[Input 1]]<>\"\",Table_PI[[#This Row],[Input 1]],\"\")","v":""},null,{"$f":"IFERROR(IF(AND(MeasureCalc(Table_PI[[#This Row],[Hide:\nFormula Name]],Table_SummaryPI[[#This Row],[Quantity]],Table_PI[[#This Row],[List 1]],Table_PI[[#This Row],[List 2]],Table_PI[[#This Row],[List 3]],Table_PI[[#This Row],[Size]],Table_PI[[#This Row],[Input 1]],Table_PI[[#This Row],[Input 2]],Table_PI[[#This Row],[Input 3]],Table_PI[[#This Row],[Input 4]],'Customer Information'!$AR$12,101,ROW())<>0,MeasureCalc(Table_PI[[#This Row],[Hide:\nFormula Name]],Table_SummaryPI[[#This Row],[Quantity]],Table_PI[[#This Row],[List 1]],Table_PI[[#This Row],[List 2]],Table_PI[[#This Row],[List 3]],Table_PI[[#This Row],[Size]],Table_PI[[#This Row],[Input 1]],Table_PI[[#This Row],[Input 2]],Table_PI[[#This Row],[Input 3]],Table_PI[[#This Row],[Input 4]],'Customer Information'!$AR$12,101,ROW())<>\"No Rebate\"),MeasureCalc(Table_PI[[#This Row],[Hide:\nFormula Name]],Table_SummaryPI[[#This Row],[Quantity]],Table_PI[[#This Row],[List 1]],Table_PI[[#This Row],[List 2]],Table_PI[[#This Row],[List 3]],Table_PI[[#This Row],[Size]],Table_PI[[#This Row],[Input 1]],Table_PI[[#This Row],[Input 2]],Table_PI[[#This Row],[Input 3]],Table_PI[[#This Row],[Input 4]],'Customer Information'!$AR$12,101,ROW()),\"\"),\"\")","v":""},{"$f":"IF(Table_PI[[#This Row],[Input 2]]<>\"\",Table_PI[[#This Row],[Input 2]],\"\")","v":""},null,{"$f":"IFERROR(IF(AND(MeasureCalc(Table_PI[[#This Row],[Hide:\nFormula Name]],Table_SummaryPI[[#This Row],[Quantity]],Table_PI[[#This Row],[List 1]],Table_PI[[#This Row],[List 2]],Table_PI[[#This Row],[List 3]],Table_PI[[#This Row],[Size]],Table_PI[[#This Row],[Input 1]],Table_PI[[#This Row],[Input 2]],Table_PI[[#This Row],[Input 3]],Table_PI[[#This Row],[Input 4]],'Customer Information'!$AR$12,102,ROW())<>0,MeasureCalc(Table_PI[[#This Row],[Hide:\nFormula Name]],Table_SummaryPI[[#This Row],[Quantity]],Table_PI[[#This Row],[List 1]],Table_PI[[#This Row],[List 2]],Table_PI[[#This Row],[List 3]],Table_PI[[#This Row],[Size]],Table_PI[[#This Row],[Input 1]],Table_PI[[#This Row],[Input 2]],Table_PI[[#This Row],[Input 3]],Table_PI[[#This Row],[Input 4]],'Customer Information'!$AR$12,102,ROW())<>\"No Rebate\"),MeasureCalc(Table_PI[[#This Row],[Hide:\nFormula Name]],Table_SummaryPI[[#This Row],[Quantity]],Table_PI[[#This Row],[List 1]],Table_PI[[#This Row],[List 2]],Table_PI[[#This Row],[List 3]],Table_PI[[#This Row],[Size]],Table_PI[[#This Row],[Input 1]],Table_PI[[#This Row],[Input 2]],Table_PI[[#This Row],[Input 3]],Table_PI[[#This Row],[Input 4]],'Customer Information'!$AR$12,102,ROW()),\"\"),\"\")","v":""},{"$f":"IF(Table_PI[[#This Row],[Input 3]]<>\"\",Table_PI[[#This Row],[Input 3]],\"\")","v":""},null,{"$f":"IFERROR(IF(AND(MeasureCalc(Table_PI[[#This Row],[Hide:\nFormula Name]],Table_SummaryPI[[#This Row],[Quantity]],Table_PI[[#This Row],[List 1]],Table_PI[[#This Row],[List 2]],Table_PI[[#This Row],[List 3]],Table_PI[[#This Row],[Size]],Table_PI[[#This Row],[Input 1]],Table_PI[[#This Row],[Input 2]],Table_PI[[#This Row],[Input 3]],Table_PI[[#This Row],[Input 4]],'Customer Information'!$AR$12,103,ROW())<>0,MeasureCalc(Table_PI[[#This Row],[Hide:\nFormula Name]],Table_SummaryPI[[#This Row],[Quantity]],Table_PI[[#This Row],[List 1]],Table_PI[[#This Row],[List 2]],Table_PI[[#This Row],[List 3]],Table_PI[[#This Row],[Size]],Table_PI[[#This Row],[Input 1]],Table_PI[[#This Row],[Input 2]],Table_PI[[#This Row],[Input 3]],Table_PI[[#This Row],[Input 4]],'Customer Information'!$AR$12,103,ROW())<>\"No Rebate\"),MeasureCalc(Table_PI[[#This Row],[Hide:\nFormula Name]],Table_SummaryPI[[#This Row],[Quantity]],Table_PI[[#This Row],[List 1]],Table_PI[[#This Row],[List 2]],Table_PI[[#This Row],[List 3]],Table_PI[[#This Row],[Size]],Table_PI[[#This Row],[Input 1]],Table_PI[[#This Row],[Input 2]],Table_PI[[#This Row],[Input 3]],Table_PI[[#This Row],[Input 4]],'Customer Information'!$AR$12,103,ROW()),\"\"),\"\")","v":""},{"$f":"IF(Table_PI[[#This Row],[Input 4]]<>\"\",Table_PI[[#This Row],[Input 4]],\"\")","v":""},{"$f":"IF(Table_PI[[#This Row],[Quantity]]=\"\",\"\",Table_PI[[#This Row],[Quantity]])","v":""},{"$f":"IF(Table_PI[[#This Row],[Notes]]=\"\",\"\",Table_PI[[#This Row],[Notes]])","v":""},{"$f":"IF(OR(Table_PI[[#This Row],[Hide:\nBaseline kWh]]=\"\",Table_PI[[#This Row],[Hide:\nBaseline kWh]]=0),\"\",Table_PI[[#This Row],[Hide:\nBaseline kWh]])","v":""},{"$f":"IF(OR(Table_PI[[#This Row],[Hide:\nBaseline kW]]=\"\",Table_PI[[#This Row],[Hide:\nBaseline kW]]=0),\"\",Table_PI[[#This Row],[Hide:\nBaseline kW]])","v":""},{"$f":"IF(OR(Table_PI[[#This Row],[Hide:\nProposed kWh]]=\"\",Table_PI[[#This Row],[Hide:\nProposed kWh]]=0),\"\",Table_PI[[#This Row],[Hide:\nProposed kWh]])","v":""},{"$f":"IF(OR(Table_PI[[#This Row],[Hide:\nProposed kW]]=\"\",Table_PI[[#This Row],[Hide:\nProposed kW]]=0),\"\",Table_PI[[#This Row],[Hide:\nProposed kW]])","v":""},{"$f":"IF(OR(Table_PI[[#This Row],[Rebate]]=\"\",Table_PI[[#This Row],[Rebate]]=0),\"\",Table_PI[[#This Row],[Rebate]])","v":""},{"$f":"IF(OR(Table_PI[[#This Row],[Hide:\nIncremental Cost]]=\"\",Table_PI[[#This Row],[Hide:\nIncremental Cost]]=0),\"\",Table_PI[[#This Row],[Hide:\nIncremental Cost]])","v":""},{"$f":"IFERROR(IF(Table_SummaryPI[[#This Row],[kWhSavings]]=\"\",\"\",ROUND(Table_SummaryPI[[#This Row],[kWhSavings]]/$AG$401*'Customer Information'!$BC$17,2)),0)","v":""},{"$f":"IF(OR(Table_PI[[#This Row],[Annual kWh]]=\"\",Table_PI[[#This Row],[Annual kWh]]=0),\"\",Table_PI[[#This Row],[Annual kWh]])","v":""},{"$f":"IF(OR(Table_PI[[#This Row],[Peak kW]]=\"\",Table_PI[[#This Row],[Peak kW]]=0),\"\",Table_PI[[#This Row],[Peak kW]])","v":""},{"$f":"IFERROR(IF(Table_SummaryPI[[#This Row],[kWhSavings]]=\"\",\"\",$AU$9*Table_SummaryPI[[#This Row],[kWhSavings]]),0)","v":""},{"$f":"IFERROR(IF(Table_SummaryPI[[#This Row],[kWhSavings]]=\"\",\"\",$AU$14*Table_SummaryPI[[#This Row],[kWhSavings]]),0)","v":""},{"$f":"IFERROR(IF(Table_SummaryPI[[#This Row],[kWhSavings]]=\"\",\"\",$AU$18*Table_SummaryPI[[#This Row],[kWhSavings]]),0)","v":""},{"$f":"IFERROR(IF(Table_SummaryPI[[#This Row],[kWhSavings]]=\"\",\"\",$AU$22*Table_SummaryPI[[#This Row],[kWhSavings]]),0)","v":""},{"$f":"IFERROR(IF(MeasureCalc(Table_PI[[#This Row],[Hide:\nFormula Name]],Table_SummaryPI[[#This Row],[Quantity]],Table_PI[[#This Row],[List 1]],Table_PI[[#This Row],[List 2]],Table_PI[[#This Row],[List 3]],Table_PI[[#This Row],[Size]],Table_PI[[#This Row],[Input 1]],Table_PI[[#This Row],[Input 2]],Table_PI[[#This Row],[Input 3]],Table_PI[[#This Row],[Input 4]],'Customer Information'!$AR$12,200,ROW())<>\"No Rebate\",MeasureCalc(Table_PI[[#This Row],[Hide:\nFormula Name]],Table_SummaryPI[[#This Row],[Quantity]],Table_PI[[#This Row],[List 1]],Table_PI[[#This Row],[List 2]],Table_PI[[#This Row],[List 3]],Table_PI[[#This Row],[Size]],Table_PI[[#This Row],[Input 1]],Table_PI[[#This Row],[Input 2]],Table_PI[[#This Row],[Input 3]],Table_PI[[#This Row],[Input 4]],'Customer Information'!$AR$12,200,ROW()),\"\"),\"\")","v":""},{"$f":"IFERROR(IF(MeasureCalc(Table_PI[[#This Row],[Hide:\nFormula Name]],Table_SummaryPI[[#This Row],[Quantity]],Table_PI[[#This Row],[List 1]],Table_PI[[#This Row],[List 2]],Table_PI[[#This Row],[List 3]],Table_PI[[#This Row],[Size]],Table_PI[[#This Row],[Input 1]],Table_PI[[#This Row],[Input 2]],Table_PI[[#This Row],[Input 3]],Table_PI[[#This Row],[Input 4]],'Customer Information'!$AR$12,201,ROW())<>\"No Rebate\",MeasureCalc(Table_PI[[#This Row],[Hide:\nFormula Name]],Table_SummaryPI[[#This Row],[Quantity]],Table_PI[[#This Row],[List 1]],Table_PI[[#This Row],[List 2]],Table_PI[[#This Row],[List 3]],Table_PI[[#This Row],[Size]],Table_PI[[#This Row],[Input 1]],Table_PI[[#This Row],[Input 2]],Table_PI[[#This Row],[Input 3]],Table_PI[[#This Row],[Input 4]],'Customer Information'!$AR$12,201,ROW()),\"\"),\"\")","v":""}]
[{"$f":"Table_PI[[#This Row],[Line No.]]","v":""},{"$f":"IF(Table_SummaryPI[[#This Row],[MeassureCategory]]<>\"\",CONCATENATE(Table_SummaryPI[[#This Row],[MeassureCategory]],  \" - \", Table_SummaryPI[[#This Row],[ProposedMeasureCategory]],  \" - \", TEXT(Table_SummaryPI[[#This Row],[Size]],\"#,##0.00\"),\" \",Table_SummaryPI[[#This Row],[SizeUnit]]),\"\")","v":""},{"$f":"SUBSTITUTE(Table_PI[[#This Row],[Measure]],\"     \",\"\",1)","v":""},{"$f":"IF(Table_PI[[#This Row],[List 1]]<>\"\",Table_PI[[#This Row],[List 1]],\"\")","v":""},{"$f":"IF(Table_PI[[#This Row],[List 2]]<>\"\",Table_PI[[#This Row],[List 2]],\"\")","v":""},{"$f":"IF(Table_PI[[#This Row],[List 3]]<>\"\",Table_PI[[#This Row],[List 3]],\"\")","v":""},{"$f":"IF(Table_PI[[#This Row],[Manufacturer]]=\"\",\"\",Table_PI[[#This Row],[Manufacturer]])","v":""},{"$f":"IF(Table_PI[[#This Row],[Model Number]]=\"\",\"\",Table_PI[[#This Row],[Model Number]])","v":""},{"$f":"IF(Table_PI[[#This Row],[Serial Number(s)]]=\"\",\"\",Table_PI[[#This Row],[Serial Number(s)]])","v":""},null,{"$f":"IF(Table_PI[[#This Row],[Size]]=\"\",\"\",Table_PI[[#This Row],[Size]])","v":""},null,{"$f":"IFERROR(IF(AND(MeasureCalc(Table_PI[[#This Row],[Hide:\nFormula Name]],Table_SummaryPI[[#This Row],[Quantity]],Table_PI[[#This Row],[List 1]],Table_PI[[#This Row],[List 2]],Table_PI[[#This Row],[List 3]],Table_PI[[#This Row],[Size]],Table_PI[[#This Row],[Input 1]],Table_PI[[#This Row],[Input 2]],Table_PI[[#This Row],[Input 3]],Table_PI[[#This Row],[Input 4]],'Customer Information'!$AR$12,100,ROW())<>0,MeasureCalc(Table_PI[[#This Row],[Hide:\nFormula Name]],Table_SummaryPI[[#This Row],[Quantity]],Table_PI[[#This Row],[List 1]],Table_PI[[#This Row],[List 2]],Table_PI[[#This Row],[List 3]],Table_PI[[#This Row],[Size]],Table_PI[[#This Row],[Input 1]],Table_PI[[#This Row],[Input 2]],Table_PI[[#This Row],[Input 3]],Table_PI[[#This Row],[Input 4]],'Customer Information'!$AR$12,100,ROW())<>\"No Rebate\"),MeasureCalc(Table_PI[[#This Row],[Hide:\nFormula Name]],Table_SummaryPI[[#This Row],[Quantity]],Table_PI[[#This Row],[List 1]],Table_PI[[#This Row],[List 2]],Table_PI[[#This Row],[List 3]],Table_PI[[#This Row],[Size]],Table_PI[[#This Row],[Input 1]],Table_PI[[#This Row],[Input 2]],Table_PI[[#This Row],[Input 3]],Table_PI[[#This Row],[Input 4]],'Customer Information'!$AR$12,100,ROW()),\"\"),\"\")","v":""},{"$f":"IF(Table_PI[[#This Row],[Input 1]]<>\"\",Table_PI[[#This Row],[Input 1]],\"\")","v":""},null,{"$f":"IFERROR(IF(AND(MeasureCalc(Table_PI[[#This Row],[Hide:\nFormula Name]],Table_SummaryPI[[#This Row],[Quantity]],Table_PI[[#This Row],[List 1]],Table_PI[[#This Row],[List 2]],Table_PI[[#This Row],[List 3]],Table_PI[[#This Row],[Size]],Table_PI[[#This Row],[Input 1]],Table_PI[[#This Row],[Input 2]],Table_PI[[#This Row],[Input 3]],Table_PI[[#This Row],[Input 4]],'Customer Information'!$AR$12,101,ROW())<>0,MeasureCalc(Table_PI[[#This Row],[Hide:\nFormula Name]],Table_SummaryPI[[#This Row],[Quantity]],Table_PI[[#This Row],[List 1]],Table_PI[[#This Row],[List 2]],Table_PI[[#This Row],[List 3]],Table_PI[[#This Row],[Size]],Table_PI[[#This Row],[Input 1]],Table_PI[[#This Row],[Input 2]],Table_PI[[#This Row],[Input 3]],Table_PI[[#This Row],[Input 4]],'Customer Information'!$AR$12,101,ROW())<>\"No Rebate\"),MeasureCalc(Table_PI[[#This Row],[Hide:\nFormula Name]],Table_SummaryPI[[#This Row],[Quantity]],Table_PI[[#This Row],[List 1]],Table_PI[[#This Row],[List 2]],Table_PI[[#This Row],[List 3]],Table_PI[[#This Row],[Size]],Table_PI[[#This Row],[Input 1]],Table_PI[[#This Row],[Input 2]],Table_PI[[#This Row],[Input 3]],Table_PI[[#This Row],[Input 4]],'Customer Information'!$AR$12,101,ROW()),\"\"),\"\")","v":""},{"$f":"IF(Table_PI[[#This Row],[Input 2]]<>\"\",Table_PI[[#This Row],[Input 2]],\"\")","v":""},null,{"$f":"IFERROR(IF(AND(MeasureCalc(Table_PI[[#This Row],[Hide:\nFormula Name]],Table_SummaryPI[[#This Row],[Quantity]],Table_PI[[#This Row],[List 1]],Table_PI[[#This Row],[List 2]],Table_PI[[#This Row],[List 3]],Table_PI[[#This Row],[Size]],Table_PI[[#This Row],[Input 1]],Table_PI[[#This Row],[Input 2]],Table_PI[[#This Row],[Input 3]],Table_PI[[#This Row],[Input 4]],'Customer Information'!$AR$12,102,ROW())<>0,MeasureCalc(Table_PI[[#This Row],[Hide:\nFormula Name]],Table_SummaryPI[[#This Row],[Quantity]],Table_PI[[#This Row],[List 1]],Table_PI[[#This Row],[List 2]],Table_PI[[#This Row],[List 3]],Table_PI[[#This Row],[Size]],Table_PI[[#This Row],[Input 1]],Table_PI[[#This Row],[Input 2]],Table_PI[[#This Row],[Input 3]],Table_PI[[#This Row],[Input 4]],'Customer Information'!$AR$12,102,ROW())<>\"No Rebate\"),MeasureCalc(Table_PI[[#This Row],[Hide:\nFormula Name]],Table_SummaryPI[[#This Row],[Quantity]],Table_PI[[#This Row],[List 1]],Table_PI[[#This Row],[List 2]],Table_PI[[#This Row],[List 3]],Table_PI[[#This Row],[Size]],Table_PI[[#This Row],[Input 1]],Table_PI[[#This Row],[Input 2]],Table_PI[[#This Row],[Input 3]],Table_PI[[#This Row],[Input 4]],'Customer Information'!$AR$12,102,ROW()),\"\"),\"\")","v":""},{"$f":"IF(Table_PI[[#This Row],[Input 3]]<>\"\",Table_PI[[#This Row],[Input 3]],\"\")","v":""},null,{"$f":"IFERROR(IF(AND(MeasureCalc(Table_PI[[#This Row],[Hide:\nFormula Name]],Table_SummaryPI[[#This Row],[Quantity]],Table_PI[[#This Row],[List 1]],Table_PI[[#This Row],[List 2]],Table_PI[[#This Row],[List 3]],Table_PI[[#This Row],[Size]],Table_PI[[#This Row],[Input 1]],Table_PI[[#This Row],[Input 2]],Table_PI[[#This Row],[Input 3]],Table_PI[[#This Row],[Input 4]],'Customer Information'!$AR$12,103,ROW())<>0,MeasureCalc(Table_PI[[#This Row],[Hide:\nFormula Name]],Table_SummaryPI[[#This Row],[Quantity]],Table_PI[[#This Row],[List 1]],Table_PI[[#This Row],[List 2]],Table_PI[[#This Row],[List 3]],Table_PI[[#This Row],[Size]],Table_PI[[#This Row],[Input 1]],Table_PI[[#This Row],[Input 2]],Table_PI[[#This Row],[Input 3]],Table_PI[[#This Row],[Input 4]],'Customer Information'!$AR$12,103,ROW())<>\"No Rebate\"),MeasureCalc(Table_PI[[#This Row],[Hide:\nFormula Name]],Table_SummaryPI[[#This Row],[Quantity]],Table_PI[[#This Row],[List 1]],Table_PI[[#This Row],[List 2]],Table_PI[[#This Row],[List 3]],Table_PI[[#This Row],[Size]],Table_PI[[#This Row],[Input 1]],Table_PI[[#This Row],[Input 2]],Table_PI[[#This Row],[Input 3]],Table_PI[[#This Row],[Input 4]],'Customer Information'!$AR$12,103,ROW()),\"\"),\"\")","v":""},{"$f":"IF(Table_PI[[#This Row],[Input 4]]<>\"\",Table_PI[[#This Row],[Input 4]],\"\")","v":""},{"$f":"IF(Table_PI[[#This Row],[Quantity]]=\"\",\"\",Table_PI[[#This Row],[Quantity]])","v":""},{"$f":"IF(Table_PI[[#This Row],[Notes]]=\"\",\"\",Table_PI[[#This Row],[Notes]])","v":""},{"$f":"IF(OR(Table_PI[[#This Row],[Hide:\nBaseline kWh]]=\"\",Table_PI[[#This Row],[Hide:\nBaseline kWh]]=0),\"\",Table_PI[[#This Row],[Hide:\nBaseline kWh]])","v":""},{"$f":"IF(OR(Table_PI[[#This Row],[Hide:\nBaseline kW]]=\"\",Table_PI[[#This Row],[Hide:\nBaseline kW]]=0),\"\",Table_PI[[#This Row],[Hide:\nBaseline kW]])","v":""},{"$f":"IF(OR(Table_PI[[#This Row],[Hide:\nProposed kWh]]=\"\",Table_PI[[#This Row],[Hide:\nProposed kWh]]=0),\"\",Table_PI[[#This Row],[Hide:\nProposed kWh]])","v":""},{"$f":"IF(OR(Table_PI[[#This Row],[Hide:\nProposed kW]]=\"\",Table_PI[[#This Row],[Hide:\nProposed kW]]=0),\"\",Table_PI[[#This Row],[Hide:\nProposed kW]])","v":""},{"$f":"IF(OR(Table_PI[[#This Row],[Rebate]]=\"\",Table_PI[[#This Row],[Rebate]]=0),\"\",Table_PI[[#This Row],[Rebate]])","v":""},{"$f":"IF(OR(Table_PI[[#This Row],[Hide:\nIncremental Cost]]=\"\",Table_PI[[#This Row],[Hide:\nIncremental Cost]]=0),\"\",Table_PI[[#This Row],[Hide:\nIncremental Cost]])","v":""},{"$f":"IFERROR(IF(Table_SummaryPI[[#This Row],[kWhSavings]]=\"\",\"\",ROUND(Table_SummaryPI[[#This Row],[kWhSavings]]/$AG$401*'Customer Information'!$BC$17,2)),0)","v":""},{"$f":"IF(OR(Table_PI[[#This Row],[Annual kWh]]=\"\",Table_PI[[#This Row],[Annual kWh]]=0),\"\",Table_PI[[#This Row],[Annual kWh]])","v":""},{"$f":"IF(OR(Table_PI[[#This Row],[Peak kW]]=\"\",Table_PI[[#This Row],[Peak kW]]=0),\"\",Table_PI[[#This Row],[Peak kW]])","v":""},{"$f":"IFERROR(IF(Table_SummaryPI[[#This Row],[kWhSavings]]=\"\",\"\",$AU$9*Table_SummaryPI[[#This Row],[kWhSavings]]),0)","v":""},{"$f":"IFERROR(IF(Table_SummaryPI[[#This Row],[kWhSavings]]=\"\",\"\",$AU$14*Table_SummaryPI[[#This Row],[kWhSavings]]),0)","v":""},{"$f":"IFERROR(IF(Table_SummaryPI[[#This Row],[kWhSavings]]=\"\",\"\",$AU$18*Table_SummaryPI[[#This Row],[kWhSavings]]),0)","v":""},{"$f":"IFERROR(IF(Table_SummaryPI[[#This Row],[kWhSavings]]=\"\",\"\",$AU$22*Table_SummaryPI[[#This Row],[kWhSavings]]),0)","v":""},{"$f":"IFERROR(IF(MeasureCalc(Table_PI[[#This Row],[Hide:\nFormula Name]],Table_SummaryPI[[#This Row],[Quantity]],Table_PI[[#This Row],[List 1]],Table_PI[[#This Row],[List 2]],Table_PI[[#This Row],[List 3]],Table_PI[[#This Row],[Size]],Table_PI[[#This Row],[Input 1]],Table_PI[[#This Row],[Input 2]],Table_PI[[#This Row],[Input 3]],Table_PI[[#This Row],[Input 4]],'Customer Information'!$AR$12,200,ROW())<>\"No Rebate\",MeasureCalc(Table_PI[[#This Row],[Hide:\nFormula Name]],Table_SummaryPI[[#This Row],[Quantity]],Table_PI[[#This Row],[List 1]],Table_PI[[#This Row],[List 2]],Table_PI[[#This Row],[List 3]],Table_PI[[#This Row],[Size]],Table_PI[[#This Row],[Input 1]],Table_PI[[#This Row],[Input 2]],Table_PI[[#This Row],[Input 3]],Table_PI[[#This Row],[Input 4]],'Customer Information'!$AR$12,200,ROW()),\"\"),\"\")","v":""},{"$f":"IFERROR(IF(MeasureCalc(Table_PI[[#This Row],[Hide:\nFormula Name]],Table_SummaryPI[[#This Row],[Quantity]],Table_PI[[#This Row],[List 1]],Table_PI[[#This Row],[List 2]],Table_PI[[#This Row],[List 3]],Table_PI[[#This Row],[Size]],Table_PI[[#This Row],[Input 1]],Table_PI[[#This Row],[Input 2]],Table_PI[[#This Row],[Input 3]],Table_PI[[#This Row],[Input 4]],'Customer Information'!$AR$12,201,ROW())<>\"No Rebate\",MeasureCalc(Table_PI[[#This Row],[Hide:\nFormula Name]],Table_SummaryPI[[#This Row],[Quantity]],Table_PI[[#This Row],[List 1]],Table_PI[[#This Row],[List 2]],Table_PI[[#This Row],[List 3]],Table_PI[[#This Row],[Size]],Table_PI[[#This Row],[Input 1]],Table_PI[[#This Row],[Input 2]],Table_PI[[#This Row],[Input 3]],Table_PI[[#This Row],[Input 4]],'Customer Information'!$AR$12,201,ROW()),\"\"),\"\")","v":""}]
[{"$f":"Table_PI[[#This Row],[Line No.]]","v":""},{"$f":"IF(Table_SummaryPI[[#This Row],[MeassureCategory]]<>\"\",CONCATENATE(Table_SummaryPI[[#This Row],[MeassureCategory]],  \" - \", Table_SummaryPI[[#This Row],[ProposedMeasureCategory]],  \" - \", TEXT(Table_SummaryPI[[#This Row],[Size]],\"#,##0.00\"),\" \",Table_SummaryPI[[#This Row],[SizeUnit]]),\"\")","v":""},{"$f":"SUBSTITUTE(Table_PI[[#This Row],[Measure]],\"     \",\"\",1)","v":""},{"$f":"IF(Table_PI[[#This Row],[List 1]]<>\"\",Table_PI[[#This Row],[List 1]],\"\")","v":""},{"$f":"IF(Table_PI[[#This Row],[List 2]]<>\"\",Table_PI[[#This Row],[List 2]],\"\")","v":""},{"$f":"IF(Table_PI[[#This Row],[List 3]]<>\"\",Table_PI[[#This Row],[List 3]],\"\")","v":""},{"$f":"IF(Table_PI[[#This Row],[Manufacturer]]=\"\",\"\",Table_PI[[#This Row],[Manufacturer]])","v":""},{"$f":"IF(Table_PI[[#This Row],[Model Number]]=\"\",\"\",Table_PI[[#This Row],[Model Number]])","v":""},{"$f":"IF(Table_PI[[#This Row],[Serial Number(s)]]=\"\",\"\",Table_PI[[#This Row],[Serial Number(s)]])","v":""},null,{"$f":"IF(Table_PI[[#This Row],[Size]]=\"\",\"\",Table_PI[[#This Row],[Size]])","v":""},null,{"$f":"IFERROR(IF(AND(MeasureCalc(Table_PI[[#This Row],[Hide:\nFormula Name]],Table_SummaryPI[[#This Row],[Quantity]],Table_PI[[#This Row],[List 1]],Table_PI[[#This Row],[List 2]],Table_PI[[#This Row],[List 3]],Table_PI[[#This Row],[Size]],Table_PI[[#This Row],[Input 1]],Table_PI[[#This Row],[Input 2]],Table_PI[[#This Row],[Input 3]],Table_PI[[#This Row],[Input 4]],'Customer Information'!$AR$12,100,ROW())<>0,MeasureCalc(Table_PI[[#This Row],[Hide:\nFormula Name]],Table_SummaryPI[[#This Row],[Quantity]],Table_PI[[#This Row],[List 1]],Table_PI[[#This Row],[List 2]],Table_PI[[#This Row],[List 3]],Table_PI[[#This Row],[Size]],Table_PI[[#This Row],[Input 1]],Table_PI[[#This Row],[Input 2]],Table_PI[[#This Row],[Input 3]],Table_PI[[#This Row],[Input 4]],'Customer Information'!$AR$12,100,ROW())<>\"No Rebate\"),MeasureCalc(Table_PI[[#This Row],[Hide:\nFormula Name]],Table_SummaryPI[[#This Row],[Quantity]],Table_PI[[#This Row],[List 1]],Table_PI[[#This Row],[List 2]],Table_PI[[#This Row],[List 3]],Table_PI[[#This Row],[Size]],Table_PI[[#This Row],[Input 1]],Table_PI[[#This Row],[Input 2]],Table_PI[[#This Row],[Input 3]],Table_PI[[#This Row],[Input 4]],'Customer Information'!$AR$12,100,ROW()),\"\"),\"\")","v":""},{"$f":"IF(Table_PI[[#This Row],[Input 1]]<>\"\",Table_PI[[#This Row],[Input 1]],\"\")","v":""},null,{"$f":"IFERROR(IF(AND(MeasureCalc(Table_PI[[#This Row],[Hide:\nFormula Name]],Table_SummaryPI[[#This Row],[Quantity]],Table_PI[[#This Row],[List 1]],Table_PI[[#This Row],[List 2]],Table_PI[[#This Row],[List 3]],Table_PI[[#This Row],[Size]],Table_PI[[#This Row],[Input 1]],Table_PI[[#This Row],[Input 2]],Table_PI[[#This Row],[Input 3]],Table_PI[[#This Row],[Input 4]],'Customer Information'!$AR$12,101,ROW())<>0,MeasureCalc(Table_PI[[#This Row],[Hide:\nFormula Name]],Table_SummaryPI[[#This Row],[Quantity]],Table_PI[[#This Row],[List 1]],Table_PI[[#This Row],[List 2]],Table_PI[[#This Row],[List 3]],Table_PI[[#This Row],[Size]],Table_PI[[#This Row],[Input 1]],Table_PI[[#This Row],[Input 2]],Table_PI[[#This Row],[Input 3]],Table_PI[[#This Row],[Input 4]],'Customer Information'!$AR$12,101,ROW())<>\"No Rebate\"),MeasureCalc(Table_PI[[#This Row],[Hide:\nFormula Name]],Table_SummaryPI[[#This Row],[Quantity]],Table_PI[[#This Row],[List 1]],Table_PI[[#This Row],[List 2]],Table_PI[[#This Row],[List 3]],Table_PI[[#This Row],[Size]],Table_PI[[#This Row],[Input 1]],Table_PI[[#This Row],[Input 2]],Table_PI[[#This Row],[Input 3]],Table_PI[[#This Row],[Input 4]],'Customer Information'!$AR$12,101,ROW()),\"\"),\"\")","v":""},{"$f":"IF(Table_PI[[#This Row],[Input 2]]<>\"\",Table_PI[[#This Row],[Input 2]],\"\")","v":""},null,{"$f":"IFERROR(IF(AND(MeasureCalc(Table_PI[[#This Row],[Hide:\nFormula Name]],Table_SummaryPI[[#This Row],[Quantity]],Table_PI[[#This Row],[List 1]],Table_PI[[#This Row],[List 2]],Table_PI[[#This Row],[List 3]],Table_PI[[#This Row],[Size]],Table_PI[[#This Row],[Input 1]],Table_PI[[#This Row],[Input 2]],Table_PI[[#This Row],[Input 3]],Table_PI[[#This Row],[Input 4]],'Customer Information'!$AR$12,102,ROW())<>0,MeasureCalc(Table_PI[[#This Row],[Hide:\nFormula Name]],Table_SummaryPI[[#This Row],[Quantity]],Table_PI[[#This Row],[List 1]],Table_PI[[#This Row],[List 2]],Table_PI[[#This Row],[List 3]],Table_PI[[#This Row],[Size]],Table_PI[[#This Row],[Input 1]],Table_PI[[#This Row],[Input 2]],Table_PI[[#This Row],[Input 3]],Table_PI[[#This Row],[Input 4]],'Customer Information'!$AR$12,102,ROW())<>\"No Rebate\"),MeasureCalc(Table_PI[[#This Row],[Hide:\nFormula Name]],Table_SummaryPI[[#This Row],[Quantity]],Table_PI[[#This Row],[List 1]],Table_PI[[#This Row],[List 2]],Table_PI[[#This Row],[List 3]],Table_PI[[#This Row],[Size]],Table_PI[[#This Row],[Input 1]],Table_PI[[#This Row],[Input 2]],Table_PI[[#This Row],[Input 3]],Table_PI[[#This Row],[Input 4]],'Customer Information'!$AR$12,102,ROW()),\"\"),\"\")","v":""},{"$f":"IF(Table_PI[[#This Row],[Input 3]]<>\"\",Table_PI[[#This Row],[Input 3]],\"\")","v":""},null,{"$f":"IFERROR(IF(AND(MeasureCalc(Table_PI[[#This Row],[Hide:\nFormula Name]],Table_SummaryPI[[#This Row],[Quantity]],Table_PI[[#This Row],[List 1]],Table_PI[[#This Row],[List 2]],Table_PI[[#This Row],[List 3]],Table_PI[[#This Row],[Size]],Table_PI[[#This Row],[Input 1]],Table_PI[[#This Row],[Input 2]],Table_PI[[#This Row],[Input 3]],Table_PI[[#This Row],[Input 4]],'Customer Information'!$AR$12,103,ROW())<>0,MeasureCalc(Table_PI[[#This Row],[Hide:\nFormula Name]],Table_SummaryPI[[#This Row],[Quantity]],Table_PI[[#This Row],[List 1]],Table_PI[[#This Row],[List 2]],Table_PI[[#This Row],[List 3]],Table_PI[[#This Row],[Size]],Table_PI[[#This Row],[Input 1]],Table_PI[[#This Row],[Input 2]],Table_PI[[#This Row],[Input 3]],Table_PI[[#This Row],[Input 4]],'Customer Information'!$AR$12,103,ROW())<>\"No Rebate\"),MeasureCalc(Table_PI[[#This Row],[Hide:\nFormula Name]],Table_SummaryPI[[#This Row],[Quantity]],Table_PI[[#This Row],[List 1]],Table_PI[[#This Row],[List 2]],Table_PI[[#This Row],[List 3]],Table_PI[[#This Row],[Size]],Table_PI[[#This Row],[Input 1]],Table_PI[[#This Row],[Input 2]],Table_PI[[#This Row],[Input 3]],Table_PI[[#This Row],[Input 4]],'Customer Information'!$AR$12,103,ROW()),\"\"),\"\")","v":""},{"$f":"IF(Table_PI[[#This Row],[Input 4]]<>\"\",Table_PI[[#This Row],[Input 4]],\"\")","v":""},{"$f":"IF(Table_PI[[#This Row],[Quantity]]=\"\",\"\",Table_PI[[#This Row],[Quantity]])","v":""},{"$f":"IF(Table_PI[[#This Row],[Notes]]=\"\",\"\",Table_PI[[#This Row],[Notes]])","v":""},{"$f":"IF(OR(Table_PI[[#This Row],[Hide:\nBaseline kWh]]=\"\",Table_PI[[#This Row],[Hide:\nBaseline kWh]]=0),\"\",Table_PI[[#This Row],[Hide:\nBaseline kWh]])","v":""},{"$f":"IF(OR(Table_PI[[#This Row],[Hide:\nBaseline kW]]=\"\",Table_PI[[#This Row],[Hide:\nBaseline kW]]=0),\"\",Table_PI[[#This Row],[Hide:\nBaseline kW]])","v":""},{"$f":"IF(OR(Table_PI[[#This Row],[Hide:\nProposed kWh]]=\"\",Table_PI[[#This Row],[Hide:\nProposed kWh]]=0),\"\",Table_PI[[#This Row],[Hide:\nProposed kWh]])","v":""},{"$f":"IF(OR(Table_PI[[#This Row],[Hide:\nProposed kW]]=\"\",Table_PI[[#This Row],[Hide:\nProposed kW]]=0),\"\",Table_PI[[#This Row],[Hide:\nProposed kW]])","v":""},{"$f":"IF(OR(Table_PI[[#This Row],[Rebate]]=\"\",Table_PI[[#This Row],[Rebate]]=0),\"\",Table_PI[[#This Row],[Rebate]])","v":""},{"$f":"IF(OR(Table_PI[[#This Row],[Hide:\nIncremental Cost]]=\"\",Table_PI[[#This Row],[Hide:\nIncremental Cost]]=0),\"\",Table_PI[[#This Row],[Hide:\nIncremental Cost]])","v":""},{"$f":"IFERROR(IF(Table_SummaryPI[[#This Row],[kWhSavings]]=\"\",\"\",ROUND(Table_SummaryPI[[#This Row],[kWhSavings]]/$AG$401*'Customer Information'!$BC$17,2)),0)","v":""},{"$f":"IF(OR(Table_PI[[#This Row],[Annual kWh]]=\"\",Table_PI[[#This Row],[Annual kWh]]=0),\"\",Table_PI[[#This Row],[Annual kWh]])","v":""},{"$f":"IF(OR(Table_PI[[#This Row],[Peak kW]]=\"\",Table_PI[[#This Row],[Peak kW]]=0),\"\",Table_PI[[#This Row],[Peak kW]])","v":""},{"$f":"IFERROR(IF(Table_SummaryPI[[#This Row],[kWhSavings]]=\"\",\"\",$AU$9*Table_SummaryPI[[#This Row],[kWhSavings]]),0)","v":""},{"$f":"IFERROR(IF(Table_SummaryPI[[#This Row],[kWhSavings]]=\"\",\"\",$AU$14*Table_SummaryPI[[#This Row],[kWhSavings]]),0)","v":""},{"$f":"IFERROR(IF(Table_SummaryPI[[#This Row],[kWhSavings]]=\"\",\"\",$AU$18*Table_SummaryPI[[#This Row],[kWhSavings]]),0)","v":""},{"$f":"IFERROR(IF(Table_SummaryPI[[#This Row],[kWhSavings]]=\"\",\"\",$AU$22*Table_SummaryPI[[#This Row],[kWhSavings]]),0)","v":""},{"$f":"IFERROR(IF(MeasureCalc(Table_PI[[#This Row],[Hide:\nFormula Name]],Table_SummaryPI[[#This Row],[Quantity]],Table_PI[[#This Row],[List 1]],Table_PI[[#This Row],[List 2]],Table_PI[[#This Row],[List 3]],Table_PI[[#This Row],[Size]],Table_PI[[#This Row],[Input 1]],Table_PI[[#This Row],[Input 2]],Table_PI[[#This Row],[Input 3]],Table_PI[[#This Row],[Input 4]],'Customer Information'!$AR$12,200,ROW())<>\"No Rebate\",MeasureCalc(Table_PI[[#This Row],[Hide:\nFormula Name]],Table_SummaryPI[[#This Row],[Quantity]],Table_PI[[#This Row],[List 1]],Table_PI[[#This Row],[List 2]],Table_PI[[#This Row],[List 3]],Table_PI[[#This Row],[Size]],Table_PI[[#This Row],[Input 1]],Table_PI[[#This Row],[Input 2]],Table_PI[[#This Row],[Input 3]],Table_PI[[#This Row],[Input 4]],'Customer Information'!$AR$12,200,ROW()),\"\"),\"\")","v":""},{"$f":"IFERROR(IF(MeasureCalc(Table_PI[[#This Row],[Hide:\nFormula Name]],Table_SummaryPI[[#This Row],[Quantity]],Table_PI[[#This Row],[List 1]],Table_PI[[#This Row],[List 2]],Table_PI[[#This Row],[List 3]],Table_PI[[#This Row],[Size]],Table_PI[[#This Row],[Input 1]],Table_PI[[#This Row],[Input 2]],Table_PI[[#This Row],[Input 3]],Table_PI[[#This Row],[Input 4]],'Customer Information'!$AR$12,201,ROW())<>\"No Rebate\",MeasureCalc(Table_PI[[#This Row],[Hide:\nFormula Name]],Table_SummaryPI[[#This Row],[Quantity]],Table_PI[[#This Row],[List 1]],Table_PI[[#This Row],[List 2]],Table_PI[[#This Row],[List 3]],Table_PI[[#This Row],[Size]],Table_PI[[#This Row],[Input 1]],Table_PI[[#This Row],[Input 2]],Table_PI[[#This Row],[Input 3]],Table_PI[[#This Row],[Input 4]],'Customer Information'!$AR$12,201,ROW()),\"\"),\"\")","v":""}]
[{"$f":"Table_PI[[#This Row],[Line No.]]","v":""},{"$f":"IF(Table_SummaryPI[[#This Row],[MeassureCategory]]<>\"\",CONCATENATE(Table_SummaryPI[[#This Row],[MeassureCategory]],  \" - \", Table_SummaryPI[[#This Row],[ProposedMeasureCategory]],  \" - \", TEXT(Table_SummaryPI[[#This Row],[Size]],\"#,##0.00\"),\" \",Table_SummaryPI[[#This Row],[SizeUnit]]),\"\")","v":""},{"$f":"SUBSTITUTE(Table_PI[[#This Row],[Measure]],\"     \",\"\",1)","v":""},{"$f":"IF(Table_PI[[#This Row],[List 1]]<>\"\",Table_PI[[#This Row],[List 1]],\"\")","v":""},{"$f":"IF(Table_PI[[#This Row],[List 2]]<>\"\",Table_PI[[#This Row],[List 2]],\"\")","v":""},{"$f":"IF(Table_PI[[#This Row],[List 3]]<>\"\",Table_PI[[#This Row],[List 3]],\"\")","v":""},{"$f":"IF(Table_PI[[#This Row],[Manufacturer]]=\"\",\"\",Table_PI[[#This Row],[Manufacturer]])","v":""},{"$f":"IF(Table_PI[[#This Row],[Model Number]]=\"\",\"\",Table_PI[[#This Row],[Model Number]])","v":""},{"$f":"IF(Table_PI[[#This Row],[Serial Number(s)]]=\"\",\"\",Table_PI[[#This Row],[Serial Number(s)]])","v":""},null,{"$f":"IF(Table_PI[[#This Row],[Size]]=\"\",\"\",Table_PI[[#This Row],[Size]])","v":""},null,{"$f":"IFERROR(IF(AND(MeasureCalc(Table_PI[[#This Row],[Hide:\nFormula Name]],Table_SummaryPI[[#This Row],[Quantity]],Table_PI[[#This Row],[List 1]],Table_PI[[#This Row],[List 2]],Table_PI[[#This Row],[List 3]],Table_PI[[#This Row],[Size]],Table_PI[[#This Row],[Input 1]],Table_PI[[#This Row],[Input 2]],Table_PI[[#This Row],[Input 3]],Table_PI[[#This Row],[Input 4]],'Customer Information'!$AR$12,100,ROW())<>0,MeasureCalc(Table_PI[[#This Row],[Hide:\nFormula Name]],Table_SummaryPI[[#This Row],[Quantity]],Table_PI[[#This Row],[List 1]],Table_PI[[#This Row],[List 2]],Table_PI[[#This Row],[List 3]],Table_PI[[#This Row],[Size]],Table_PI[[#This Row],[Input 1]],Table_PI[[#This Row],[Input 2]],Table_PI[[#This Row],[Input 3]],Table_PI[[#This Row],[Input 4]],'Customer Information'!$AR$12,100,ROW())<>\"No Rebate\"),MeasureCalc(Table_PI[[#This Row],[Hide:\nFormula Name]],Table_SummaryPI[[#This Row],[Quantity]],Table_PI[[#This Row],[List 1]],Table_PI[[#This Row],[List 2]],Table_PI[[#This Row],[List 3]],Table_PI[[#This Row],[Size]],Table_PI[[#This Row],[Input 1]],Table_PI[[#This Row],[Input 2]],Table_PI[[#This Row],[Input 3]],Table_PI[[#This Row],[Input 4]],'Customer Information'!$AR$12,100,ROW()),\"\"),\"\")","v":""},{"$f":"IF(Table_PI[[#This Row],[Input 1]]<>\"\",Table_PI[[#This Row],[Input 1]],\"\")","v":""},null,{"$f":"IFERROR(IF(AND(MeasureCalc(Table_PI[[#This Row],[Hide:\nFormula Name]],Table_SummaryPI[[#This Row],[Quantity]],Table_PI[[#This Row],[List 1]],Table_PI[[#This Row],[List 2]],Table_PI[[#This Row],[List 3]],Table_PI[[#This Row],[Size]],Table_PI[[#This Row],[Input 1]],Table_PI[[#This Row],[Input 2]],Table_PI[[#This Row],[Input 3]],Table_PI[[#This Row],[Input 4]],'Customer Information'!$AR$12,101,ROW())<>0,MeasureCalc(Table_PI[[#This Row],[Hide:\nFormula Name]],Table_SummaryPI[[#This Row],[Quantity]],Table_PI[[#This Row],[List 1]],Table_PI[[#This Row],[List 2]],Table_PI[[#This Row],[List 3]],Table_PI[[#This Row],[Size]],Table_PI[[#This Row],[Input 1]],Table_PI[[#This Row],[Input 2]],Table_PI[[#This Row],[Input 3]],Table_PI[[#This Row],[Input 4]],'Customer Information'!$AR$12,101,ROW())<>\"No Rebate\"),MeasureCalc(Table_PI[[#This Row],[Hide:\nFormula Name]],Table_SummaryPI[[#This Row],[Quantity]],Table_PI[[#This Row],[List 1]],Table_PI[[#This Row],[List 2]],Table_PI[[#This Row],[List 3]],Table_PI[[#This Row],[Size]],Table_PI[[#This Row],[Input 1]],Table_PI[[#This Row],[Input 2]],Table_PI[[#This Row],[Input 3]],Table_PI[[#This Row],[Input 4]],'Customer Information'!$AR$12,101,ROW()),\"\"),\"\")","v":""},{"$f":"IF(Table_PI[[#This Row],[Input 2]]<>\"\",Table_PI[[#This Row],[Input 2]],\"\")","v":""},null,{"$f":"IFERROR(IF(AND(MeasureCalc(Table_PI[[#This Row],[Hide:\nFormula Name]],Table_SummaryPI[[#This Row],[Quantity]],Table_PI[[#This Row],[List 1]],Table_PI[[#This Row],[List 2]],Table_PI[[#This Row],[List 3]],Table_PI[[#This Row],[Size]],Table_PI[[#This Row],[Input 1]],Table_PI[[#This Row],[Input 2]],Table_PI[[#This Row],[Input 3]],Table_PI[[#This Row],[Input 4]],'Customer Information'!$AR$12,102,ROW())<>0,MeasureCalc(Table_PI[[#This Row],[Hide:\nFormula Name]],Table_SummaryPI[[#This Row],[Quantity]],Table_PI[[#This Row],[List 1]],Table_PI[[#This Row],[List 2]],Table_PI[[#This Row],[List 3]],Table_PI[[#This Row],[Size]],Table_PI[[#This Row],[Input 1]],Table_PI[[#This Row],[Input 2]],Table_PI[[#This Row],[Input 3]],Table_PI[[#This Row],[Input 4]],'Customer Information'!$AR$12,102,ROW())<>\"No Rebate\"),MeasureCalc(Table_PI[[#This Row],[Hide:\nFormula Name]],Table_SummaryPI[[#This Row],[Quantity]],Table_PI[[#This Row],[List 1]],Table_PI[[#This Row],[List 2]],Table_PI[[#This Row],[List 3]],Table_PI[[#This Row],[Size]],Table_PI[[#This Row],[Input 1]],Table_PI[[#This Row],[Input 2]],Table_PI[[#This Row],[Input 3]],Table_PI[[#This Row],[Input 4]],'Customer Information'!$AR$12,102,ROW()),\"\"),\"\")","v":""},{"$f":"IF(Table_PI[[#This Row],[Input 3]]<>\"\",Table_PI[[#This Row],[Input 3]],\"\")","v":""},null,{"$f":"IFERROR(IF(AND(MeasureCalc(Table_PI[[#This Row],[Hide:\nFormula Name]],Table_SummaryPI[[#This Row],[Quantity]],Table_PI[[#This Row],[List 1]],Table_PI[[#This Row],[List 2]],Table_PI[[#This Row],[List 3]],Table_PI[[#This Row],[Size]],Table_PI[[#This Row],[Input 1]],Table_PI[[#This Row],[Input 2]],Table_PI[[#This Row],[Input 3]],Table_PI[[#This Row],[Input 4]],'Customer Information'!$AR$12,103,ROW())<>0,MeasureCalc(Table_PI[[#This Row],[Hide:\nFormula Name]],Table_SummaryPI[[#This Row],[Quantity]],Table_PI[[#This Row],[List 1]],Table_PI[[#This Row],[List 2]],Table_PI[[#This Row],[List 3]],Table_PI[[#This Row],[Size]],Table_PI[[#This Row],[Input 1]],Table_PI[[#This Row],[Input 2]],Table_PI[[#This Row],[Input 3]],Table_PI[[#This Row],[Input 4]],'Customer Information'!$AR$12,103,ROW())<>\"No Rebate\"),MeasureCalc(Table_PI[[#This Row],[Hide:\nFormula Name]],Table_SummaryPI[[#This Row],[Quantity]],Table_PI[[#This Row],[List 1]],Table_PI[[#This Row],[List 2]],Table_PI[[#This Row],[List 3]],Table_PI[[#This Row],[Size]],Table_PI[[#This Row],[Input 1]],Table_PI[[#This Row],[Input 2]],Table_PI[[#This Row],[Input 3]],Table_PI[[#This Row],[Input 4]],'Customer Information'!$AR$12,103,ROW()),\"\"),\"\")","v":""},{"$f":"IF(Table_PI[[#This Row],[Input 4]]<>\"\",Table_PI[[#This Row],[Input 4]],\"\")","v":""},{"$f":"IF(Table_PI[[#This Row],[Quantity]]=\"\",\"\",Table_PI[[#This Row],[Quantity]])","v":""},{"$f":"IF(Table_PI[[#This Row],[Notes]]=\"\",\"\",Table_PI[[#This Row],[Notes]])","v":""},{"$f":"IF(OR(Table_PI[[#This Row],[Hide:\nBaseline kWh]]=\"\",Table_PI[[#This Row],[Hide:\nBaseline kWh]]=0),\"\",Table_PI[[#This Row],[Hide:\nBaseline kWh]])","v":""},{"$f":"IF(OR(Table_PI[[#This Row],[Hide:\nBaseline kW]]=\"\",Table_PI[[#This Row],[Hide:\nBaseline kW]]=0),\"\",Table_PI[[#This Row],[Hide:\nBaseline kW]])","v":""},{"$f":"IF(OR(Table_PI[[#This Row],[Hide:\nProposed kWh]]=\"\",Table_PI[[#This Row],[Hide:\nProposed kWh]]=0),\"\",Table_PI[[#This Row],[Hide:\nProposed kWh]])","v":""},{"$f":"IF(OR(Table_PI[[#This Row],[Hide:\nProposed kW]]=\"\",Table_PI[[#This Row],[Hide:\nProposed kW]]=0),\"\",Table_PI[[#This Row],[Hide:\nProposed kW]])","v":""},{"$f":"IF(OR(Table_PI[[#This Row],[Rebate]]=\"\",Table_PI[[#This Row],[Rebate]]=0),\"\",Table_PI[[#This Row],[Rebate]])","v":""},{"$f":"IF(OR(Table_PI[[#This Row],[Hide:\nIncremental Cost]]=\"\",Table_PI[[#This Row],[Hide:\nIncremental Cost]]=0),\"\",Table_PI[[#This Row],[Hide:\nIncremental Cost]])","v":""},{"$f":"IFERROR(IF(Table_SummaryPI[[#This Row],[kWhSavings]]=\"\",\"\",ROUND(Table_SummaryPI[[#This Row],[kWhSavings]]/$AG$401*'Customer Information'!$BC$17,2)),0)","v":""},{"$f":"IF(OR(Table_PI[[#This Row],[Annual kWh]]=\"\",Table_PI[[#This Row],[Annual kWh]]=0),\"\",Table_PI[[#This Row],[Annual kWh]])","v":""},{"$f":"IF(OR(Table_PI[[#This Row],[Peak kW]]=\"\",Table_PI[[#This Row],[Peak kW]]=0),\"\",Table_PI[[#This Row],[Peak kW]])","v":""},{"$f":"IFERROR(IF(Table_SummaryPI[[#This Row],[kWhSavings]]=\"\",\"\",$AU$9*Table_SummaryPI[[#This Row],[kWhSavings]]),0)","v":""},{"$f":"IFERROR(IF(Table_SummaryPI[[#This Row],[kWhSavings]]=\"\",\"\",$AU$14*Table_SummaryPI[[#This Row],[kWhSavings]]),0)","v":""},{"$f":"IFERROR(IF(Table_SummaryPI[[#This Row],[kWhSavings]]=\"\",\"\",$AU$18*Table_SummaryPI[[#This Row],[kWhSavings]]),0)","v":""},{"$f":"IFERROR(IF(Table_SummaryPI[[#This Row],[kWhSavings]]=\"\",\"\",$AU$22*Table_SummaryPI[[#This Row],[kWhSavings]]),0)","v":""},{"$f":"IFERROR(IF(MeasureCalc(Table_PI[[#This Row],[Hide:\nFormula Name]],Table_SummaryPI[[#This Row],[Quantity]],Table_PI[[#This Row],[List 1]],Table_PI[[#This Row],[List 2]],Table_PI[[#This Row],[List 3]],Table_PI[[#This Row],[Size]],Table_PI[[#This Row],[Input 1]],Table_PI[[#This Row],[Input 2]],Table_PI[[#This Row],[Input 3]],Table_PI[[#This Row],[Input 4]],'Customer Information'!$AR$12,200,ROW())<>\"No Rebate\",MeasureCalc(Table_PI[[#This Row],[Hide:\nFormula Name]],Table_SummaryPI[[#This Row],[Quantity]],Table_PI[[#This Row],[List 1]],Table_PI[[#This Row],[List 2]],Table_PI[[#This Row],[List 3]],Table_PI[[#This Row],[Size]],Table_PI[[#This Row],[Input 1]],Table_PI[[#This Row],[Input 2]],Table_PI[[#This Row],[Input 3]],Table_PI[[#This Row],[Input 4]],'Customer Information'!$AR$12,200,ROW()),\"\"),\"\")","v":""},{"$f":"IFERROR(IF(MeasureCalc(Table_PI[[#This Row],[Hide:\nFormula Name]],Table_SummaryPI[[#This Row],[Quantity]],Table_PI[[#This Row],[List 1]],Table_PI[[#This Row],[List 2]],Table_PI[[#This Row],[List 3]],Table_PI[[#This Row],[Size]],Table_PI[[#This Row],[Input 1]],Table_PI[[#This Row],[Input 2]],Table_PI[[#This Row],[Input 3]],Table_PI[[#This Row],[Input 4]],'Customer Information'!$AR$12,201,ROW())<>\"No Rebate\",MeasureCalc(Table_PI[[#This Row],[Hide:\nFormula Name]],Table_SummaryPI[[#This Row],[Quantity]],Table_PI[[#This Row],[List 1]],Table_PI[[#This Row],[List 2]],Table_PI[[#This Row],[List 3]],Table_PI[[#This Row],[Size]],Table_PI[[#This Row],[Input 1]],Table_PI[[#This Row],[Input 2]],Table_PI[[#This Row],[Input 3]],Table_PI[[#This Row],[Input 4]],'Customer Information'!$AR$12,201,ROW()),\"\"),\"\")","v":""}]
[{"$f":"Table_PI[[#This Row],[Line No.]]","v":""},{"$f":"IF(Table_SummaryPI[[#This Row],[MeassureCategory]]<>\"\",CONCATENATE(Table_SummaryPI[[#This Row],[MeassureCategory]],  \" - \", Table_SummaryPI[[#This Row],[ProposedMeasureCategory]],  \" - \", TEXT(Table_SummaryPI[[#This Row],[Size]],\"#,##0.00\"),\" \",Table_SummaryPI[[#This Row],[SizeUnit]]),\"\")","v":""},{"$f":"SUBSTITUTE(Table_PI[[#This Row],[Measure]],\"     \",\"\",1)","v":""},{"$f":"IF(Table_PI[[#This Row],[List 1]]<>\"\",Table_PI[[#This Row],[List 1]],\"\")","v":""},{"$f":"IF(Table_PI[[#This Row],[List 2]]<>\"\",Table_PI[[#This Row],[List 2]],\"\")","v":""},{"$f":"IF(Table_PI[[#This Row],[List 3]]<>\"\",Table_PI[[#This Row],[List 3]],\"\")","v":""},{"$f":"IF(Table_PI[[#This Row],[Manufacturer]]=\"\",\"\",Table_PI[[#This Row],[Manufacturer]])","v":""},{"$f":"IF(Table_PI[[#This Row],[Model Number]]=\"\",\"\",Table_PI[[#This Row],[Model Number]])","v":""},{"$f":"IF(Table_PI[[#This Row],[Serial Number(s)]]=\"\",\"\",Table_PI[[#This Row],[Serial Number(s)]])","v":""},null,{"$f":"IF(Table_PI[[#This Row],[Size]]=\"\",\"\",Table_PI[[#This Row],[Size]])","v":""},null,{"$f":"IFERROR(IF(AND(MeasureCalc(Table_PI[[#This Row],[Hide:\nFormula Name]],Table_SummaryPI[[#This Row],[Quantity]],Table_PI[[#This Row],[List 1]],Table_PI[[#This Row],[List 2]],Table_PI[[#This Row],[List 3]],Table_PI[[#This Row],[Size]],Table_PI[[#This Row],[Input 1]],Table_PI[[#This Row],[Input 2]],Table_PI[[#This Row],[Input 3]],Table_PI[[#This Row],[Input 4]],'Customer Information'!$AR$12,100,ROW())<>0,MeasureCalc(Table_PI[[#This Row],[Hide:\nFormula Name]],Table_SummaryPI[[#This Row],[Quantity]],Table_PI[[#This Row],[List 1]],Table_PI[[#This Row],[List 2]],Table_PI[[#This Row],[List 3]],Table_PI[[#This Row],[Size]],Table_PI[[#This Row],[Input 1]],Table_PI[[#This Row],[Input 2]],Table_PI[[#This Row],[Input 3]],Table_PI[[#This Row],[Input 4]],'Customer Information'!$AR$12,100,ROW())<>\"No Rebate\"),MeasureCalc(Table_PI[[#This Row],[Hide:\nFormula Name]],Table_SummaryPI[[#This Row],[Quantity]],Table_PI[[#This Row],[List 1]],Table_PI[[#This Row],[List 2]],Table_PI[[#This Row],[List 3]],Table_PI[[#This Row],[Size]],Table_PI[[#This Row],[Input 1]],Table_PI[[#This Row],[Input 2]],Table_PI[[#This Row],[Input 3]],Table_PI[[#This Row],[Input 4]],'Customer Information'!$AR$12,100,ROW()),\"\"),\"\")","v":""},{"$f":"IF(Table_PI[[#This Row],[Input 1]]<>\"\",Table_PI[[#This Row],[Input 1]],\"\")","v":""},null,{"$f":"IFERROR(IF(AND(MeasureCalc(Table_PI[[#This Row],[Hide:\nFormula Name]],Table_SummaryPI[[#This Row],[Quantity]],Table_PI[[#This Row],[List 1]],Table_PI[[#This Row],[List 2]],Table_PI[[#This Row],[List 3]],Table_PI[[#This Row],[Size]],Table_PI[[#This Row],[Input 1]],Table_PI[[#This Row],[Input 2]],Table_PI[[#This Row],[Input 3]],Table_PI[[#This Row],[Input 4]],'Customer Information'!$AR$12,101,ROW())<>0,MeasureCalc(Table_PI[[#This Row],[Hide:\nFormula Name]],Table_SummaryPI[[#This Row],[Quantity]],Table_PI[[#This Row],[List 1]],Table_PI[[#This Row],[List 2]],Table_PI[[#This Row],[List 3]],Table_PI[[#This Row],[Size]],Table_PI[[#This Row],[Input 1]],Table_PI[[#This Row],[Input 2]],Table_PI[[#This Row],[Input 3]],Table_PI[[#This Row],[Input 4]],'Customer Information'!$AR$12,101,ROW())<>\"No Rebate\"),MeasureCalc(Table_PI[[#This Row],[Hide:\nFormula Name]],Table_SummaryPI[[#This Row],[Quantity]],Table_PI[[#This Row],[List 1]],Table_PI[[#This Row],[List 2]],Table_PI[[#This Row],[List 3]],Table_PI[[#This Row],[Size]],Table_PI[[#This Row],[Input 1]],Table_PI[[#This Row],[Input 2]],Table_PI[[#This Row],[Input 3]],Table_PI[[#This Row],[Input 4]],'Customer Information'!$AR$12,101,ROW()),\"\"),\"\")","v":""},{"$f":"IF(Table_PI[[#This Row],[Input 2]]<>\"\",Table_PI[[#This Row],[Input 2]],\"\")","v":""},null,{"$f":"IFERROR(IF(AND(MeasureCalc(Table_PI[[#This Row],[Hide:\nFormula Name]],Table_SummaryPI[[#This Row],[Quantity]],Table_PI[[#This Row],[List 1]],Table_PI[[#This Row],[List 2]],Table_PI[[#This Row],[List 3]],Table_PI[[#This Row],[Size]],Table_PI[[#This Row],[Input 1]],Table_PI[[#This Row],[Input 2]],Table_PI[[#This Row],[Input 3]],Table_PI[[#This Row],[Input 4]],'Customer Information'!$AR$12,102,ROW())<>0,MeasureCalc(Table_PI[[#This Row],[Hide:\nFormula Name]],Table_SummaryPI[[#This Row],[Quantity]],Table_PI[[#This Row],[List 1]],Table_PI[[#This Row],[List 2]],Table_PI[[#This Row],[List 3]],Table_PI[[#This Row],[Size]],Table_PI[[#This Row],[Input 1]],Table_PI[[#This Row],[Input 2]],Table_PI[[#This Row],[Input 3]],Table_PI[[#This Row],[Input 4]],'Customer Information'!$AR$12,102,ROW())<>\"No Rebate\"),MeasureCalc(Table_PI[[#This Row],[Hide:\nFormula Name]],Table_SummaryPI[[#This Row],[Quantity]],Table_PI[[#This Row],[List 1]],Table_PI[[#This Row],[List 2]],Table_PI[[#This Row],[List 3]],Table_PI[[#This Row],[Size]],Table_PI[[#This Row],[Input 1]],Table_PI[[#This Row],[Input 2]],Table_PI[[#This Row],[Input 3]],Table_PI[[#This Row],[Input 4]],'Customer Information'!$AR$12,102,ROW()),\"\"),\"\")","v":""},{"$f":"IF(Table_PI[[#This Row],[Input 3]]<>\"\",Table_PI[[#This Row],[Input 3]],\"\")","v":""},null,{"$f":"IFERROR(IF(AND(MeasureCalc(Table_PI[[#This Row],[Hide:\nFormula Name]],Table_SummaryPI[[#This Row],[Quantity]],Table_PI[[#This Row],[List 1]],Table_PI[[#This Row],[List 2]],Table_PI[[#This Row],[List 3]],Table_PI[[#This Row],[Size]],Table_PI[[#This Row],[Input 1]],Table_PI[[#This Row],[Input 2]],Table_PI[[#This Row],[Input 3]],Table_PI[[#This Row],[Input 4]],'Customer Information'!$AR$12,103,ROW())<>0,MeasureCalc(Table_PI[[#This Row],[Hide:\nFormula Name]],Table_SummaryPI[[#This Row],[Quantity]],Table_PI[[#This Row],[List 1]],Table_PI[[#This Row],[List 2]],Table_PI[[#This Row],[List 3]],Table_PI[[#This Row],[Size]],Table_PI[[#This Row],[Input 1]],Table_PI[[#This Row],[Input 2]],Table_PI[[#This Row],[Input 3]],Table_PI[[#This Row],[Input 4]],'Customer Information'!$AR$12,103,ROW())<>\"No Rebate\"),MeasureCalc(Table_PI[[#This Row],[Hide:\nFormula Name]],Table_SummaryPI[[#This Row],[Quantity]],Table_PI[[#This Row],[List 1]],Table_PI[[#This Row],[List 2]],Table_PI[[#This Row],[List 3]],Table_PI[[#This Row],[Size]],Table_PI[[#This Row],[Input 1]],Table_PI[[#This Row],[Input 2]],Table_PI[[#This Row],[Input 3]],Table_PI[[#This Row],[Input 4]],'Customer Information'!$AR$12,103,ROW()),\"\"),\"\")","v":""},{"$f":"IF(Table_PI[[#This Row],[Input 4]]<>\"\",Table_PI[[#This Row],[Input 4]],\"\")","v":""},{"$f":"IF(Table_PI[[#This Row],[Quantity]]=\"\",\"\",Table_PI[[#This Row],[Quantity]])","v":""},{"$f":"IF(Table_PI[[#This Row],[Notes]]=\"\",\"\",Table_PI[[#This Row],[Notes]])","v":""},{"$f":"IF(OR(Table_PI[[#This Row],[Hide:\nBaseline kWh]]=\"\",Table_PI[[#This Row],[Hide:\nBaseline kWh]]=0),\"\",Table_PI[[#This Row],[Hide:\nBaseline kWh]])","v":""},{"$f":"IF(OR(Table_PI[[#This Row],[Hide:\nBaseline kW]]=\"\",Table_PI[[#This Row],[Hide:\nBaseline kW]]=0),\"\",Table_PI[[#This Row],[Hide:\nBaseline kW]])","v":""},{"$f":"IF(OR(Table_PI[[#This Row],[Hide:\nProposed kWh]]=\"\",Table_PI[[#This Row],[Hide:\nProposed kWh]]=0),\"\",Table_PI[[#This Row],[Hide:\nProposed kWh]])","v":""},{"$f":"IF(OR(Table_PI[[#This Row],[Hide:\nProposed kW]]=\"\",Table_PI[[#This Row],[Hide:\nProposed kW]]=0),\"\",Table_PI[[#This Row],[Hide:\nProposed kW]])","v":""},{"$f":"IF(OR(Table_PI[[#This Row],[Rebate]]=\"\",Table_PI[[#This Row],[Rebate]]=0),\"\",Table_PI[[#This Row],[Rebate]])","v":""},{"$f":"IF(OR(Table_PI[[#This Row],[Hide:\nIncremental Cost]]=\"\",Table_PI[[#This Row],[Hide:\nIncremental Cost]]=0),\"\",Table_PI[[#This Row],[Hide:\nIncremental Cost]])","v":""},{"$f":"IFERROR(IF(Table_SummaryPI[[#This Row],[kWhSavings]]=\"\",\"\",ROUND(Table_SummaryPI[[#This Row],[kWhSavings]]/$AG$401*'Customer Information'!$BC$17,2)),0)","v":""},{"$f":"IF(OR(Table_PI[[#This Row],[Annual kWh]]=\"\",Table_PI[[#This Row],[Annual kWh]]=0),\"\",Table_PI[[#This Row],[Annual kWh]])","v":""},{"$f":"IF(OR(Table_PI[[#This Row],[Peak kW]]=\"\",Table_PI[[#This Row],[Peak kW]]=0),\"\",Table_PI[[#This Row],[Peak kW]])","v":""},{"$f":"IFERROR(IF(Table_SummaryPI[[#This Row],[kWhSavings]]=\"\",\"\",$AU$9*Table_SummaryPI[[#This Row],[kWhSavings]]),0)","v":""},{"$f":"IFERROR(IF(Table_SummaryPI[[#This Row],[kWhSavings]]=\"\",\"\",$AU$14*Table_SummaryPI[[#This Row],[kWhSavings]]),0)","v":""},{"$f":"IFERROR(IF(Table_SummaryPI[[#This Row],[kWhSavings]]=\"\",\"\",$AU$18*Table_SummaryPI[[#This Row],[kWhSavings]]),0)","v":""},{"$f":"IFERROR(IF(Table_SummaryPI[[#This Row],[kWhSavings]]=\"\",\"\",$AU$22*Table_SummaryPI[[#This Row],[kWhSavings]]),0)","v":""},{"$f":"IFERROR(IF(MeasureCalc(Table_PI[[#This Row],[Hide:\nFormula Name]],Table_SummaryPI[[#This Row],[Quantity]],Table_PI[[#This Row],[List 1]],Table_PI[[#This Row],[List 2]],Table_PI[[#This Row],[List 3]],Table_PI[[#This Row],[Size]],Table_PI[[#This Row],[Input 1]],Table_PI[[#This Row],[Input 2]],Table_PI[[#This Row],[Input 3]],Table_PI[[#This Row],[Input 4]],'Customer Information'!$AR$12,200,ROW())<>\"No Rebate\",MeasureCalc(Table_PI[[#This Row],[Hide:\nFormula Name]],Table_SummaryPI[[#This Row],[Quantity]],Table_PI[[#This Row],[List 1]],Table_PI[[#This Row],[List 2]],Table_PI[[#This Row],[List 3]],Table_PI[[#This Row],[Size]],Table_PI[[#This Row],[Input 1]],Table_PI[[#This Row],[Input 2]],Table_PI[[#This Row],[Input 3]],Table_PI[[#This Row],[Input 4]],'Customer Information'!$AR$12,200,ROW()),\"\"),\"\")","v":""},{"$f":"IFERROR(IF(MeasureCalc(Table_PI[[#This Row],[Hide:\nFormula Name]],Table_SummaryPI[[#This Row],[Quantity]],Table_PI[[#This Row],[List 1]],Table_PI[[#This Row],[List 2]],Table_PI[[#This Row],[List 3]],Table_PI[[#This Row],[Size]],Table_PI[[#This Row],[Input 1]],Table_PI[[#This Row],[Input 2]],Table_PI[[#This Row],[Input 3]],Table_PI[[#This Row],[Input 4]],'Customer Information'!$AR$12,201,ROW())<>\"No Rebate\",MeasureCalc(Table_PI[[#This Row],[Hide:\nFormula Name]],Table_SummaryPI[[#This Row],[Quantity]],Table_PI[[#This Row],[List 1]],Table_PI[[#This Row],[List 2]],Table_PI[[#This Row],[List 3]],Table_PI[[#This Row],[Size]],Table_PI[[#This Row],[Input 1]],Table_PI[[#This Row],[Input 2]],Table_PI[[#This Row],[Input 3]],Table_PI[[#This Row],[Input 4]],'Customer Information'!$AR$12,201,ROW()),\"\"),\"\")","v":""}]
[{"$f":"Table_PI[[#This Row],[Line No.]]","v":""},{"$f":"IF(Table_SummaryPI[[#This Row],[MeassureCategory]]<>\"\",CONCATENATE(Table_SummaryPI[[#This Row],[MeassureCategory]],  \" - \", Table_SummaryPI[[#This Row],[ProposedMeasureCategory]],  \" - \", TEXT(Table_SummaryPI[[#This Row],[Size]],\"#,##0.00\"),\" \",Table_SummaryPI[[#This Row],[SizeUnit]]),\"\")","v":""},{"$f":"SUBSTITUTE(Table_PI[[#This Row],[Measure]],\"     \",\"\",1)","v":""},{"$f":"IF(Table_PI[[#This Row],[List 1]]<>\"\",Table_PI[[#This Row],[List 1]],\"\")","v":""},{"$f":"IF(Table_PI[[#This Row],[List 2]]<>\"\",Table_PI[[#This Row],[List 2]],\"\")","v":""},{"$f":"IF(Table_PI[[#This Row],[List 3]]<>\"\",Table_PI[[#This Row],[List 3]],\"\")","v":""},{"$f":"IF(Table_PI[[#This Row],[Manufacturer]]=\"\",\"\",Table_PI[[#This Row],[Manufacturer]])","v":""},{"$f":"IF(Table_PI[[#This Row],[Model Number]]=\"\",\"\",Table_PI[[#This Row],[Model Number]])","v":""},{"$f":"IF(Table_PI[[#This Row],[Serial Number(s)]]=\"\",\"\",Table_PI[[#This Row],[Serial Number(s)]])","v":""},null,{"$f":"IF(Table_PI[[#This Row],[Size]]=\"\",\"\",Table_PI[[#This Row],[Size]])","v":""},null,{"$f":"IFERROR(IF(AND(MeasureCalc(Table_PI[[#This Row],[Hide:\nFormula Name]],Table_SummaryPI[[#This Row],[Quantity]],Table_PI[[#This Row],[List 1]],Table_PI[[#This Row],[List 2]],Table_PI[[#This Row],[List 3]],Table_PI[[#This Row],[Size]],Table_PI[[#This Row],[Input 1]],Table_PI[[#This Row],[Input 2]],Table_PI[[#This Row],[Input 3]],Table_PI[[#This Row],[Input 4]],'Customer Information'!$AR$12,100,ROW())<>0,MeasureCalc(Table_PI[[#This Row],[Hide:\nFormula Name]],Table_SummaryPI[[#This Row],[Quantity]],Table_PI[[#This Row],[List 1]],Table_PI[[#This Row],[List 2]],Table_PI[[#This Row],[List 3]],Table_PI[[#This Row],[Size]],Table_PI[[#This Row],[Input 1]],Table_PI[[#This Row],[Input 2]],Table_PI[[#This Row],[Input 3]],Table_PI[[#This Row],[Input 4]],'Customer Information'!$AR$12,100,ROW())<>\"No Rebate\"),MeasureCalc(Table_PI[[#This Row],[Hide:\nFormula Name]],Table_SummaryPI[[#This Row],[Quantity]],Table_PI[[#This Row],[List 1]],Table_PI[[#This Row],[List 2]],Table_PI[[#This Row],[List 3]],Table_PI[[#This Row],[Size]],Table_PI[[#This Row],[Input 1]],Table_PI[[#This Row],[Input 2]],Table_PI[[#This Row],[Input 3]],Table_PI[[#This Row],[Input 4]],'Customer Information'!$AR$12,100,ROW()),\"\"),\"\")","v":""},{"$f":"IF(Table_PI[[#This Row],[Input 1]]<>\"\",Table_PI[[#This Row],[Input 1]],\"\")","v":""},null,{"$f":"IFERROR(IF(AND(MeasureCalc(Table_PI[[#This Row],[Hide:\nFormula Name]],Table_SummaryPI[[#This Row],[Quantity]],Table_PI[[#This Row],[List 1]],Table_PI[[#This Row],[List 2]],Table_PI[[#This Row],[List 3]],Table_PI[[#This Row],[Size]],Table_PI[[#This Row],[Input 1]],Table_PI[[#This Row],[Input 2]],Table_PI[[#This Row],[Input 3]],Table_PI[[#This Row],[Input 4]],'Customer Information'!$AR$12,101,ROW())<>0,MeasureCalc(Table_PI[[#This Row],[Hide:\nFormula Name]],Table_SummaryPI[[#This Row],[Quantity]],Table_PI[[#This Row],[List 1]],Table_PI[[#This Row],[List 2]],Table_PI[[#This Row],[List 3]],Table_PI[[#This Row],[Size]],Table_PI[[#This Row],[Input 1]],Table_PI[[#This Row],[Input 2]],Table_PI[[#This Row],[Input 3]],Table_PI[[#This Row],[Input 4]],'Customer Information'!$AR$12,101,ROW())<>\"No Rebate\"),MeasureCalc(Table_PI[[#This Row],[Hide:\nFormula Name]],Table_SummaryPI[[#This Row],[Quantity]],Table_PI[[#This Row],[List 1]],Table_PI[[#This Row],[List 2]],Table_PI[[#This Row],[List 3]],Table_PI[[#This Row],[Size]],Table_PI[[#This Row],[Input 1]],Table_PI[[#This Row],[Input 2]],Table_PI[[#This Row],[Input 3]],Table_PI[[#This Row],[Input 4]],'Customer Information'!$AR$12,101,ROW()),\"\"),\"\")","v":""},{"$f":"IF(Table_PI[[#This Row],[Input 2]]<>\"\",Table_PI[[#This Row],[Input 2]],\"\")","v":""},null,{"$f":"IFERROR(IF(AND(MeasureCalc(Table_PI[[#This Row],[Hide:\nFormula Name]],Table_SummaryPI[[#This Row],[Quantity]],Table_PI[[#This Row],[List 1]],Table_PI[[#This Row],[List 2]],Table_PI[[#This Row],[List 3]],Table_PI[[#This Row],[Size]],Table_PI[[#This Row],[Input 1]],Table_PI[[#This Row],[Input 2]],Table_PI[[#This Row],[Input 3]],Table_PI[[#This Row],[Input 4]],'Customer Information'!$AR$12,102,ROW())<>0,MeasureCalc(Table_PI[[#This Row],[Hide:\nFormula Name]],Table_SummaryPI[[#This Row],[Quantity]],Table_PI[[#This Row],[List 1]],Table_PI[[#This Row],[List 2]],Table_PI[[#This Row],[List 3]],Table_PI[[#This Row],[Size]],Table_PI[[#This Row],[Input 1]],Table_PI[[#This Row],[Input 2]],Table_PI[[#This Row],[Input 3]],Table_PI[[#This Row],[Input 4]],'Customer Information'!$AR$12,102,ROW())<>\"No Rebate\"),MeasureCalc(Table_PI[[#This Row],[Hide:\nFormula Name]],Table_SummaryPI[[#This Row],[Quantity]],Table_PI[[#This Row],[List 1]],Table_PI[[#This Row],[List 2]],Table_PI[[#This Row],[List 3]],Table_PI[[#This Row],[Size]],Table_PI[[#This Row],[Input 1]],Table_PI[[#This Row],[Input 2]],Table_PI[[#This Row],[Input 3]],Table_PI[[#This Row],[Input 4]],'Customer Information'!$AR$12,102,ROW()),\"\"),\"\")","v":""},{"$f":"IF(Table_PI[[#This Row],[Input 3]]<>\"\",Table_PI[[#This Row],[Input 3]],\"\")","v":""},null,{"$f":"IFERROR(IF(AND(MeasureCalc(Table_PI[[#This Row],[Hide:\nFormula Name]],Table_SummaryPI[[#This Row],[Quantity]],Table_PI[[#This Row],[List 1]],Table_PI[[#This Row],[List 2]],Table_PI[[#This Row],[List 3]],Table_PI[[#This Row],[Size]],Table_PI[[#This Row],[Input 1]],Table_PI[[#This Row],[Input 2]],Table_PI[[#This Row],[Input 3]],Table_PI[[#This Row],[Input 4]],'Customer Information'!$AR$12,103,ROW())<>0,MeasureCalc(Table_PI[[#This Row],[Hide:\nFormula Name]],Table_SummaryPI[[#This Row],[Quantity]],Table_PI[[#This Row],[List 1]],Table_PI[[#This Row],[List 2]],Table_PI[[#This Row],[List 3]],Table_PI[[#This Row],[Size]],Table_PI[[#This Row],[Input 1]],Table_PI[[#This Row],[Input 2]],Table_PI[[#This Row],[Input 3]],Table_PI[[#This Row],[Input 4]],'Customer Information'!$AR$12,103,ROW())<>\"No Rebate\"),MeasureCalc(Table_PI[[#This Row],[Hide:\nFormula Name]],Table_SummaryPI[[#This Row],[Quantity]],Table_PI[[#This Row],[List 1]],Table_PI[[#This Row],[List 2]],Table_PI[[#This Row],[List 3]],Table_PI[[#This Row],[Size]],Table_PI[[#This Row],[Input 1]],Table_PI[[#This Row],[Input 2]],Table_PI[[#This Row],[Input 3]],Table_PI[[#This Row],[Input 4]],'Customer Information'!$AR$12,103,ROW()),\"\"),\"\")","v":""},{"$f":"IF(Table_PI[[#This Row],[Input 4]]<>\"\",Table_PI[[#This Row],[Input 4]],\"\")","v":""},{"$f":"IF(Table_PI[[#This Row],[Quantity]]=\"\",\"\",Table_PI[[#This Row],[Quantity]])","v":""},{"$f":"IF(Table_PI[[#This Row],[Notes]]=\"\",\"\",Table_PI[[#This Row],[Notes]])","v":""},{"$f":"IF(OR(Table_PI[[#This Row],[Hide:\nBaseline kWh]]=\"\",Table_PI[[#This Row],[Hide:\nBaseline kWh]]=0),\"\",Table_PI[[#This Row],[Hide:\nBaseline kWh]])","v":""},{"$f":"IF(OR(Table_PI[[#This Row],[Hide:\nBaseline kW]]=\"\",Table_PI[[#This Row],[Hide:\nBaseline kW]]=0),\"\",Table_PI[[#This Row],[Hide:\nBaseline kW]])","v":""},{"$f":"IF(OR(Table_PI[[#This Row],[Hide:\nProposed kWh]]=\"\",Table_PI[[#This Row],[Hide:\nProposed kWh]]=0),\"\",Table_PI[[#This Row],[Hide:\nProposed kWh]])","v":""},{"$f":"IF(OR(Table_PI[[#This Row],[Hide:\nProposed kW]]=\"\",Table_PI[[#This Row],[Hide:\nProposed kW]]=0),\"\",Table_PI[[#This Row],[Hide:\nProposed kW]])","v":""},{"$f":"IF(OR(Table_PI[[#This Row],[Rebate]]=\"\",Table_PI[[#This Row],[Rebate]]=0),\"\",Table_PI[[#This Row],[Rebate]])","v":""},{"$f":"IF(OR(Table_PI[[#This Row],[Hide:\nIncremental Cost]]=\"\",Table_PI[[#This Row],[Hide:\nIncremental Cost]]=0),\"\",Table_PI[[#This Row],[Hide:\nIncremental Cost]])","v":""},{"$f":"IFERROR(IF(Table_SummaryPI[[#This Row],[kWhSavings]]=\"\",\"\",ROUND(Table_SummaryPI[[#This Row],[kWhSavings]]/$AG$401*'Customer Information'!$BC$17,2)),0)","v":""},{"$f":"IF(OR(Table_PI[[#This Row],[Annual kWh]]=\"\",Table_PI[[#This Row],[Annual kWh]]=0),\"\",Table_PI[[#This Row],[Annual kWh]])","v":""},{"$f":"IF(OR(Table_PI[[#This Row],[Peak kW]]=\"\",Table_PI[[#This Row],[Peak kW]]=0),\"\",Table_PI[[#This Row],[Peak kW]])","v":""},{"$f":"IFERROR(IF(Table_SummaryPI[[#This Row],[kWhSavings]]=\"\",\"\",$AU$9*Table_SummaryPI[[#This Row],[kWhSavings]]),0)","v":""},{"$f":"IFERROR(IF(Table_SummaryPI[[#This Row],[kWhSavings]]=\"\",\"\",$AU$14*Table_SummaryPI[[#This Row],[kWhSavings]]),0)","v":""},{"$f":"IFERROR(IF(Table_SummaryPI[[#This Row],[kWhSavings]]=\"\",\"\",$AU$18*Table_SummaryPI[[#This Row],[kWhSavings]]),0)","v":""},{"$f":"IFERROR(IF(Table_SummaryPI[[#This Row],[kWhSavings]]=\"\",\"\",$AU$22*Table_SummaryPI[[#This Row],[kWhSavings]]),0)","v":""},{"$f":"IFERROR(IF(MeasureCalc(Table_PI[[#This Row],[Hide:\nFormula Name]],Table_SummaryPI[[#This Row],[Quantity]],Table_PI[[#This Row],[List 1]],Table_PI[[#This Row],[List 2]],Table_PI[[#This Row],[List 3]],Table_PI[[#This Row],[Size]],Table_PI[[#This Row],[Input 1]],Table_PI[[#This Row],[Input 2]],Table_PI[[#This Row],[Input 3]],Table_PI[[#This Row],[Input 4]],'Customer Information'!$AR$12,200,ROW())<>\"No Rebate\",MeasureCalc(Table_PI[[#This Row],[Hide:\nFormula Name]],Table_SummaryPI[[#This Row],[Quantity]],Table_PI[[#This Row],[List 1]],Table_PI[[#This Row],[List 2]],Table_PI[[#This Row],[List 3]],Table_PI[[#This Row],[Size]],Table_PI[[#This Row],[Input 1]],Table_PI[[#This Row],[Input 2]],Table_PI[[#This Row],[Input 3]],Table_PI[[#This Row],[Input 4]],'Customer Information'!$AR$12,200,ROW()),\"\"),\"\")","v":""},{"$f":"IFERROR(IF(MeasureCalc(Table_PI[[#This Row],[Hide:\nFormula Name]],Table_SummaryPI[[#This Row],[Quantity]],Table_PI[[#This Row],[List 1]],Table_PI[[#This Row],[List 2]],Table_PI[[#This Row],[List 3]],Table_PI[[#This Row],[Size]],Table_PI[[#This Row],[Input 1]],Table_PI[[#This Row],[Input 2]],Table_PI[[#This Row],[Input 3]],Table_PI[[#This Row],[Input 4]],'Customer Information'!$AR$12,201,ROW())<>\"No Rebate\",MeasureCalc(Table_PI[[#This Row],[Hide:\nFormula Name]],Table_SummaryPI[[#This Row],[Quantity]],Table_PI[[#This Row],[List 1]],Table_PI[[#This Row],[List 2]],Table_PI[[#This Row],[List 3]],Table_PI[[#This Row],[Size]],Table_PI[[#This Row],[Input 1]],Table_PI[[#This Row],[Input 2]],Table_PI[[#This Row],[Input 3]],Table_PI[[#This Row],[Input 4]],'Customer Information'!$AR$12,201,ROW()),\"\"),\"\")","v":""}]
[{"$f":"Table_PI[[#This Row],[Line No.]]","v":""},{"$f":"IF(Table_SummaryPI[[#This Row],[MeassureCategory]]<>\"\",CONCATENATE(Table_SummaryPI[[#This Row],[MeassureCategory]],  \" - \", Table_SummaryPI[[#This Row],[ProposedMeasureCategory]],  \" - \", TEXT(Table_SummaryPI[[#This Row],[Size]],\"#,##0.00\"),\" \",Table_SummaryPI[[#This Row],[SizeUnit]]),\"\")","v":""},{"$f":"SUBSTITUTE(Table_PI[[#This Row],[Measure]],\"     \",\"\",1)","v":""},{"$f":"IF(Table_PI[[#This Row],[List 1]]<>\"\",Table_PI[[#This Row],[List 1]],\"\")","v":""},{"$f":"IF(Table_PI[[#This Row],[List 2]]<>\"\",Table_PI[[#This Row],[List 2]],\"\")","v":""},{"$f":"IF(Table_PI[[#This Row],[List 3]]<>\"\",Table_PI[[#This Row],[List 3]],\"\")","v":""},{"$f":"IF(Table_PI[[#This Row],[Manufacturer]]=\"\",\"\",Table_PI[[#This Row],[Manufacturer]])","v":""},{"$f":"IF(Table_PI[[#This Row],[Model Number]]=\"\",\"\",Table_PI[[#This Row],[Model Number]])","v":""},{"$f":"IF(Table_PI[[#This Row],[Serial Number(s)]]=\"\",\"\",Table_PI[[#This Row],[Serial Number(s)]])","v":""},null,{"$f":"IF(Table_PI[[#This Row],[Size]]=\"\",\"\",Table_PI[[#This Row],[Size]])","v":""},null,{"$f":"IFERROR(IF(AND(MeasureCalc(Table_PI[[#This Row],[Hide:\nFormula Name]],Table_SummaryPI[[#This Row],[Quantity]],Table_PI[[#This Row],[List 1]],Table_PI[[#This Row],[List 2]],Table_PI[[#This Row],[List 3]],Table_PI[[#This Row],[Size]],Table_PI[[#This Row],[Input 1]],Table_PI[[#This Row],[Input 2]],Table_PI[[#This Row],[Input 3]],Table_PI[[#This Row],[Input 4]],'Customer Information'!$AR$12,100,ROW())<>0,MeasureCalc(Table_PI[[#This Row],[Hide:\nFormula Name]],Table_SummaryPI[[#This Row],[Quantity]],Table_PI[[#This Row],[List 1]],Table_PI[[#This Row],[List 2]],Table_PI[[#This Row],[List 3]],Table_PI[[#This Row],[Size]],Table_PI[[#This Row],[Input 1]],Table_PI[[#This Row],[Input 2]],Table_PI[[#This Row],[Input 3]],Table_PI[[#This Row],[Input 4]],'Customer Information'!$AR$12,100,ROW())<>\"No Rebate\"),MeasureCalc(Table_PI[[#This Row],[Hide:\nFormula Name]],Table_SummaryPI[[#This Row],[Quantity]],Table_PI[[#This Row],[List 1]],Table_PI[[#This Row],[List 2]],Table_PI[[#This Row],[List 3]],Table_PI[[#This Row],[Size]],Table_PI[[#This Row],[Input 1]],Table_PI[[#This Row],[Input 2]],Table_PI[[#This Row],[Input 3]],Table_PI[[#This Row],[Input 4]],'Customer Information'!$AR$12,100,ROW()),\"\"),\"\")","v":""},{"$f":"IF(Table_PI[[#This Row],[Input 1]]<>\"\",Table_PI[[#This Row],[Input 1]],\"\")","v":""},null,{"$f":"IFERROR(IF(AND(MeasureCalc(Table_PI[[#This Row],[Hide:\nFormula Name]],Table_SummaryPI[[#This Row],[Quantity]],Table_PI[[#This Row],[List 1]],Table_PI[[#This Row],[List 2]],Table_PI[[#This Row],[List 3]],Table_PI[[#This Row],[Size]],Table_PI[[#This Row],[Input 1]],Table_PI[[#This Row],[Input 2]],Table_PI[[#This Row],[Input 3]],Table_PI[[#This Row],[Input 4]],'Customer Information'!$AR$12,101,ROW())<>0,MeasureCalc(Table_PI[[#This Row],[Hide:\nFormula Name]],Table_SummaryPI[[#This Row],[Quantity]],Table_PI[[#This Row],[List 1]],Table_PI[[#This Row],[List 2]],Table_PI[[#This Row],[List 3]],Table_PI[[#This Row],[Size]],Table_PI[[#This Row],[Input 1]],Table_PI[[#This Row],[Input 2]],Table_PI[[#This Row],[Input 3]],Table_PI[[#This Row],[Input 4]],'Customer Information'!$AR$12,101,ROW())<>\"No Rebate\"),MeasureCalc(Table_PI[[#This Row],[Hide:\nFormula Name]],Table_SummaryPI[[#This Row],[Quantity]],Table_PI[[#This Row],[List 1]],Table_PI[[#This Row],[List 2]],Table_PI[[#This Row],[List 3]],Table_PI[[#This Row],[Size]],Table_PI[[#This Row],[Input 1]],Table_PI[[#This Row],[Input 2]],Table_PI[[#This Row],[Input 3]],Table_PI[[#This Row],[Input 4]],'Customer Information'!$AR$12,101,ROW()),\"\"),\"\")","v":""},{"$f":"IF(Table_PI[[#This Row],[Input 2]]<>\"\",Table_PI[[#This Row],[Input 2]],\"\")","v":""},null,{"$f":"IFERROR(IF(AND(MeasureCalc(Table_PI[[#This Row],[Hide:\nFormula Name]],Table_SummaryPI[[#This Row],[Quantity]],Table_PI[[#This Row],[List 1]],Table_PI[[#This Row],[List 2]],Table_PI[[#This Row],[List 3]],Table_PI[[#This Row],[Size]],Table_PI[[#This Row],[Input 1]],Table_PI[[#This Row],[Input 2]],Table_PI[[#This Row],[Input 3]],Table_PI[[#This Row],[Input 4]],'Customer Information'!$AR$12,102,ROW())<>0,MeasureCalc(Table_PI[[#This Row],[Hide:\nFormula Name]],Table_SummaryPI[[#This Row],[Quantity]],Table_PI[[#This Row],[List 1]],Table_PI[[#This Row],[List 2]],Table_PI[[#This Row],[List 3]],Table_PI[[#This Row],[Size]],Table_PI[[#This Row],[Input 1]],Table_PI[[#This Row],[Input 2]],Table_PI[[#This Row],[Input 3]],Table_PI[[#This Row],[Input 4]],'Customer Information'!$AR$12,102,ROW())<>\"No Rebate\"),MeasureCalc(Table_PI[[#This Row],[Hide:\nFormula Name]],Table_SummaryPI[[#This Row],[Quantity]],Table_PI[[#This Row],[List 1]],Table_PI[[#This Row],[List 2]],Table_PI[[#This Row],[List 3]],Table_PI[[#This Row],[Size]],Table_PI[[#This Row],[Input 1]],Table_PI[[#This Row],[Input 2]],Table_PI[[#This Row],[Input 3]],Table_PI[[#This Row],[Input 4]],'Customer Information'!$AR$12,102,ROW()),\"\"),\"\")","v":""},{"$f":"IF(Table_PI[[#This Row],[Input 3]]<>\"\",Table_PI[[#This Row],[Input 3]],\"\")","v":""},null,{"$f":"IFERROR(IF(AND(MeasureCalc(Table_PI[[#This Row],[Hide:\nFormula Name]],Table_SummaryPI[[#This Row],[Quantity]],Table_PI[[#This Row],[List 1]],Table_PI[[#This Row],[List 2]],Table_PI[[#This Row],[List 3]],Table_PI[[#This Row],[Size]],Table_PI[[#This Row],[Input 1]],Table_PI[[#This Row],[Input 2]],Table_PI[[#This Row],[Input 3]],Table_PI[[#This Row],[Input 4]],'Customer Information'!$AR$12,103,ROW())<>0,MeasureCalc(Table_PI[[#This Row],[Hide:\nFormula Name]],Table_SummaryPI[[#This Row],[Quantity]],Table_PI[[#This Row],[List 1]],Table_PI[[#This Row],[List 2]],Table_PI[[#This Row],[List 3]],Table_PI[[#This Row],[Size]],Table_PI[[#This Row],[Input 1]],Table_PI[[#This Row],[Input 2]],Table_PI[[#This Row],[Input 3]],Table_PI[[#This Row],[Input 4]],'Customer Information'!$AR$12,103,ROW())<>\"No Rebate\"),MeasureCalc(Table_PI[[#This Row],[Hide:\nFormula Name]],Table_SummaryPI[[#This Row],[Quantity]],Table_PI[[#This Row],[List 1]],Table_PI[[#This Row],[List 2]],Table_PI[[#This Row],[List 3]],Table_PI[[#This Row],[Size]],Table_PI[[#This Row],[Input 1]],Table_PI[[#This Row],[Input 2]],Table_PI[[#This Row],[Input 3]],Table_PI[[#This Row],[Input 4]],'Customer Information'!$AR$12,103,ROW()),\"\"),\"\")","v":""},{"$f":"IF(Table_PI[[#This Row],[Input 4]]<>\"\",Table_PI[[#This Row],[Input 4]],\"\")","v":""},{"$f":"IF(Table_PI[[#This Row],[Quantity]]=\"\",\"\",Table_PI[[#This Row],[Quantity]])","v":""},{"$f":"IF(Table_PI[[#This Row],[Notes]]=\"\",\"\",Table_PI[[#This Row],[Notes]])","v":""},{"$f":"IF(OR(Table_PI[[#This Row],[Hide:\nBaseline kWh]]=\"\",Table_PI[[#This Row],[Hide:\nBaseline kWh]]=0),\"\",Table_PI[[#This Row],[Hide:\nBaseline kWh]])","v":""},{"$f":"IF(OR(Table_PI[[#This Row],[Hide:\nBaseline kW]]=\"\",Table_PI[[#This Row],[Hide:\nBaseline kW]]=0),\"\",Table_PI[[#This Row],[Hide:\nBaseline kW]])","v":""},{"$f":"IF(OR(Table_PI[[#This Row],[Hide:\nProposed kWh]]=\"\",Table_PI[[#This Row],[Hide:\nProposed kWh]]=0),\"\",Table_PI[[#This Row],[Hide:\nProposed kWh]])","v":""},{"$f":"IF(OR(Table_PI[[#This Row],[Hide:\nProposed kW]]=\"\",Table_PI[[#This Row],[Hide:\nProposed kW]]=0),\"\",Table_PI[[#This Row],[Hide:\nProposed kW]])","v":""},{"$f":"IF(OR(Table_PI[[#This Row],[Rebate]]=\"\",Table_PI[[#This Row],[Rebate]]=0),\"\",Table_PI[[#This Row],[Rebate]])","v":""},{"$f":"IF(OR(Table_PI[[#This Row],[Hide:\nIncremental Cost]]=\"\",Table_PI[[#This Row],[Hide:\nIncremental Cost]]=0),\"\",Table_PI[[#This Row],[Hide:\nIncremental Cost]])","v":""},{"$f":"IFERROR(IF(Table_SummaryPI[[#This Row],[kWhSavings]]=\"\",\"\",ROUND(Table_SummaryPI[[#This Row],[kWhSavings]]/$AG$401*'Customer Information'!$BC$17,2)),0)","v":""},{"$f":"IF(OR(Table_PI[[#This Row],[Annual kWh]]=\"\",Table_PI[[#This Row],[Annual kWh]]=0),\"\",Table_PI[[#This Row],[Annual kWh]])","v":""},{"$f":"IF(OR(Table_PI[[#This Row],[Peak kW]]=\"\",Table_PI[[#This Row],[Peak kW]]=0),\"\",Table_PI[[#This Row],[Peak kW]])","v":""},{"$f":"IFERROR(IF(Table_SummaryPI[[#This Row],[kWhSavings]]=\"\",\"\",$AU$9*Table_SummaryPI[[#This Row],[kWhSavings]]),0)","v":""},{"$f":"IFERROR(IF(Table_SummaryPI[[#This Row],[kWhSavings]]=\"\",\"\",$AU$14*Table_SummaryPI[[#This Row],[kWhSavings]]),0)","v":""},{"$f":"IFERROR(IF(Table_SummaryPI[[#This Row],[kWhSavings]]=\"\",\"\",$AU$18*Table_SummaryPI[[#This Row],[kWhSavings]]),0)","v":""},{"$f":"IFERROR(IF(Table_SummaryPI[[#This Row],[kWhSavings]]=\"\",\"\",$AU$22*Table_SummaryPI[[#This Row],[kWhSavings]]),0)","v":""},{"$f":"IFERROR(IF(MeasureCalc(Table_PI[[#This Row],[Hide:\nFormula Name]],Table_SummaryPI[[#This Row],[Quantity]],Table_PI[[#This Row],[List 1]],Table_PI[[#This Row],[List 2]],Table_PI[[#This Row],[List 3]],Table_PI[[#This Row],[Size]],Table_PI[[#This Row],[Input 1]],Table_PI[[#This Row],[Input 2]],Table_PI[[#This Row],[Input 3]],Table_PI[[#This Row],[Input 4]],'Customer Information'!$AR$12,200,ROW())<>\"No Rebate\",MeasureCalc(Table_PI[[#This Row],[Hide:\nFormula Name]],Table_SummaryPI[[#This Row],[Quantity]],Table_PI[[#This Row],[List 1]],Table_PI[[#This Row],[List 2]],Table_PI[[#This Row],[List 3]],Table_PI[[#This Row],[Size]],Table_PI[[#This Row],[Input 1]],Table_PI[[#This Row],[Input 2]],Table_PI[[#This Row],[Input 3]],Table_PI[[#This Row],[Input 4]],'Customer Information'!$AR$12,200,ROW()),\"\"),\"\")","v":""},{"$f":"IFERROR(IF(MeasureCalc(Table_PI[[#This Row],[Hide:\nFormula Name]],Table_SummaryPI[[#This Row],[Quantity]],Table_PI[[#This Row],[List 1]],Table_PI[[#This Row],[List 2]],Table_PI[[#This Row],[List 3]],Table_PI[[#This Row],[Size]],Table_PI[[#This Row],[Input 1]],Table_PI[[#This Row],[Input 2]],Table_PI[[#This Row],[Input 3]],Table_PI[[#This Row],[Input 4]],'Customer Information'!$AR$12,201,ROW())<>\"No Rebate\",MeasureCalc(Table_PI[[#This Row],[Hide:\nFormula Name]],Table_SummaryPI[[#This Row],[Quantity]],Table_PI[[#This Row],[List 1]],Table_PI[[#This Row],[List 2]],Table_PI[[#This Row],[List 3]],Table_PI[[#This Row],[Size]],Table_PI[[#This Row],[Input 1]],Table_PI[[#This Row],[Input 2]],Table_PI[[#This Row],[Input 3]],Table_PI[[#This Row],[Input 4]],'Customer Information'!$AR$12,201,ROW()),\"\"),\"\")","v":""}]
[{"$f":"Table_PI[[#This Row],[Line No.]]","v":""},{"$f":"IF(Table_SummaryPI[[#This Row],[MeassureCategory]]<>\"\",CONCATENATE(Table_SummaryPI[[#This Row],[MeassureCategory]],  \" - \", Table_SummaryPI[[#This Row],[ProposedMeasureCategory]],  \" - \", TEXT(Table_SummaryPI[[#This Row],[Size]],\"#,##0.00\"),\" \",Table_SummaryPI[[#This Row],[SizeUnit]]),\"\")","v":""},{"$f":"SUBSTITUTE(Table_PI[[#This Row],[Measure]],\"     \",\"\",1)","v":""},{"$f":"IF(Table_PI[[#This Row],[List 1]]<>\"\",Table_PI[[#This Row],[List 1]],\"\")","v":""},{"$f":"IF(Table_PI[[#This Row],[List 2]]<>\"\",Table_PI[[#This Row],[List 2]],\"\")","v":""},{"$f":"IF(Table_PI[[#This Row],[List 3]]<>\"\",Table_PI[[#This Row],[List 3]],\"\")","v":""},{"$f":"IF(Table_PI[[#This Row],[Manufacturer]]=\"\",\"\",Table_PI[[#This Row],[Manufacturer]])","v":""},{"$f":"IF(Table_PI[[#This Row],[Model Number]]=\"\",\"\",Table_PI[[#This Row],[Model Number]])","v":""},{"$f":"IF(Table_PI[[#This Row],[Serial Number(s)]]=\"\",\"\",Table_PI[[#This Row],[Serial Number(s)]])","v":""},null,{"$f":"IF(Table_PI[[#This Row],[Size]]=\"\",\"\",Table_PI[[#This Row],[Size]])","v":""},null,{"$f":"IFERROR(IF(AND(MeasureCalc(Table_PI[[#This Row],[Hide:\nFormula Name]],Table_SummaryPI[[#This Row],[Quantity]],Table_PI[[#This Row],[List 1]],Table_PI[[#This Row],[List 2]],Table_PI[[#This Row],[List 3]],Table_PI[[#This Row],[Size]],Table_PI[[#This Row],[Input 1]],Table_PI[[#This Row],[Input 2]],Table_PI[[#This Row],[Input 3]],Table_PI[[#This Row],[Input 4]],'Customer Information'!$AR$12,100,ROW())<>0,MeasureCalc(Table_PI[[#This Row],[Hide:\nFormula Name]],Table_SummaryPI[[#This Row],[Quantity]],Table_PI[[#This Row],[List 1]],Table_PI[[#This Row],[List 2]],Table_PI[[#This Row],[List 3]],Table_PI[[#This Row],[Size]],Table_PI[[#This Row],[Input 1]],Table_PI[[#This Row],[Input 2]],Table_PI[[#This Row],[Input 3]],Table_PI[[#This Row],[Input 4]],'Customer Information'!$AR$12,100,ROW())<>\"No Rebate\"),MeasureCalc(Table_PI[[#This Row],[Hide:\nFormula Name]],Table_SummaryPI[[#This Row],[Quantity]],Table_PI[[#This Row],[List 1]],Table_PI[[#This Row],[List 2]],Table_PI[[#This Row],[List 3]],Table_PI[[#This Row],[Size]],Table_PI[[#This Row],[Input 1]],Table_PI[[#This Row],[Input 2]],Table_PI[[#This Row],[Input 3]],Table_PI[[#This Row],[Input 4]],'Customer Information'!$AR$12,100,ROW()),\"\"),\"\")","v":""},{"$f":"IF(Table_PI[[#This Row],[Input 1]]<>\"\",Table_PI[[#This Row],[Input 1]],\"\")","v":""},null,{"$f":"IFERROR(IF(AND(MeasureCalc(Table_PI[[#This Row],[Hide:\nFormula Name]],Table_SummaryPI[[#This Row],[Quantity]],Table_PI[[#This Row],[List 1]],Table_PI[[#This Row],[List 2]],Table_PI[[#This Row],[List 3]],Table_PI[[#This Row],[Size]],Table_PI[[#This Row],[Input 1]],Table_PI[[#This Row],[Input 2]],Table_PI[[#This Row],[Input 3]],Table_PI[[#This Row],[Input 4]],'Customer Information'!$AR$12,101,ROW())<>0,MeasureCalc(Table_PI[[#This Row],[Hide:\nFormula Name]],Table_SummaryPI[[#This Row],[Quantity]],Table_PI[[#This Row],[List 1]],Table_PI[[#This Row],[List 2]],Table_PI[[#This Row],[List 3]],Table_PI[[#This Row],[Size]],Table_PI[[#This Row],[Input 1]],Table_PI[[#This Row],[Input 2]],Table_PI[[#This Row],[Input 3]],Table_PI[[#This Row],[Input 4]],'Customer Information'!$AR$12,101,ROW())<>\"No Rebate\"),MeasureCalc(Table_PI[[#This Row],[Hide:\nFormula Name]],Table_SummaryPI[[#This Row],[Quantity]],Table_PI[[#This Row],[List 1]],Table_PI[[#This Row],[List 2]],Table_PI[[#This Row],[List 3]],Table_PI[[#This Row],[Size]],Table_PI[[#This Row],[Input 1]],Table_PI[[#This Row],[Input 2]],Table_PI[[#This Row],[Input 3]],Table_PI[[#This Row],[Input 4]],'Customer Information'!$AR$12,101,ROW()),\"\"),\"\")","v":""},{"$f":"IF(Table_PI[[#This Row],[Input 2]]<>\"\",Table_PI[[#This Row],[Input 2]],\"\")","v":""},null,{"$f":"IFERROR(IF(AND(MeasureCalc(Table_PI[[#This Row],[Hide:\nFormula Name]],Table_SummaryPI[[#This Row],[Quantity]],Table_PI[[#This Row],[List 1]],Table_PI[[#This Row],[List 2]],Table_PI[[#This Row],[List 3]],Table_PI[[#This Row],[Size]],Table_PI[[#This Row],[Input 1]],Table_PI[[#This Row],[Input 2]],Table_PI[[#This Row],[Input 3]],Table_PI[[#This Row],[Input 4]],'Customer Information'!$AR$12,102,ROW())<>0,MeasureCalc(Table_PI[[#This Row],[Hide:\nFormula Name]],Table_SummaryPI[[#This Row],[Quantity]],Table_PI[[#This Row],[List 1]],Table_PI[[#This Row],[List 2]],Table_PI[[#This Row],[List 3]],Table_PI[[#This Row],[Size]],Table_PI[[#This Row],[Input 1]],Table_PI[[#This Row],[Input 2]],Table_PI[[#This Row],[Input 3]],Table_PI[[#This Row],[Input 4]],'Customer Information'!$AR$12,102,ROW())<>\"No Rebate\"),MeasureCalc(Table_PI[[#This Row],[Hide:\nFormula Name]],Table_SummaryPI[[#This Row],[Quantity]],Table_PI[[#This Row],[List 1]],Table_PI[[#This Row],[List 2]],Table_PI[[#This Row],[List 3]],Table_PI[[#This Row],[Size]],Table_PI[[#This Row],[Input 1]],Table_PI[[#This Row],[Input 2]],Table_PI[[#This Row],[Input 3]],Table_PI[[#This Row],[Input 4]],'Customer Information'!$AR$12,102,ROW()),\"\"),\"\")","v":""},{"$f":"IF(Table_PI[[#This Row],[Input 3]]<>\"\",Table_PI[[#This Row],[Input 3]],\"\")","v":""},null,{"$f":"IFERROR(IF(AND(MeasureCalc(Table_PI[[#This Row],[Hide:\nFormula Name]],Table_SummaryPI[[#This Row],[Quantity]],Table_PI[[#This Row],[List 1]],Table_PI[[#This Row],[List 2]],Table_PI[[#This Row],[List 3]],Table_PI[[#This Row],[Size]],Table_PI[[#This Row],[Input 1]],Table_PI[[#This Row],[Input 2]],Table_PI[[#This Row],[Input 3]],Table_PI[[#This Row],[Input 4]],'Customer Information'!$AR$12,103,ROW())<>0,MeasureCalc(Table_PI[[#This Row],[Hide:\nFormula Name]],Table_SummaryPI[[#This Row],[Quantity]],Table_PI[[#This Row],[List 1]],Table_PI[[#This Row],[List 2]],Table_PI[[#This Row],[List 3]],Table_PI[[#This Row],[Size]],Table_PI[[#This Row],[Input 1]],Table_PI[[#This Row],[Input 2]],Table_PI[[#This Row],[Input 3]],Table_PI[[#This Row],[Input 4]],'Customer Information'!$AR$12,103,ROW())<>\"No Rebate\"),MeasureCalc(Table_PI[[#This Row],[Hide:\nFormula Name]],Table_SummaryPI[[#This Row],[Quantity]],Table_PI[[#This Row],[List 1]],Table_PI[[#This Row],[List 2]],Table_PI[[#This Row],[List 3]],Table_PI[[#This Row],[Size]],Table_PI[[#This Row],[Input 1]],Table_PI[[#This Row],[Input 2]],Table_PI[[#This Row],[Input 3]],Table_PI[[#This Row],[Input 4]],'Customer Information'!$AR$12,103,ROW()),\"\"),\"\")","v":""},{"$f":"IF(Table_PI[[#This Row],[Input 4]]<>\"\",Table_PI[[#This Row],[Input 4]],\"\")","v":""},{"$f":"IF(Table_PI[[#This Row],[Quantity]]=\"\",\"\",Table_PI[[#This Row],[Quantity]])","v":""},{"$f":"IF(Table_PI[[#This Row],[Notes]]=\"\",\"\",Table_PI[[#This Row],[Notes]])","v":""},{"$f":"IF(OR(Table_PI[[#This Row],[Hide:\nBaseline kWh]]=\"\",Table_PI[[#This Row],[Hide:\nBaseline kWh]]=0),\"\",Table_PI[[#This Row],[Hide:\nBaseline kWh]])","v":""},{"$f":"IF(OR(Table_PI[[#This Row],[Hide:\nBaseline kW]]=\"\",Table_PI[[#This Row],[Hide:\nBaseline kW]]=0),\"\",Table_PI[[#This Row],[Hide:\nBaseline kW]])","v":""},{"$f":"IF(OR(Table_PI[[#This Row],[Hide:\nProposed kWh]]=\"\",Table_PI[[#This Row],[Hide:\nProposed kWh]]=0),\"\",Table_PI[[#This Row],[Hide:\nProposed kWh]])","v":""},{"$f":"IF(OR(Table_PI[[#This Row],[Hide:\nProposed kW]]=\"\",Table_PI[[#This Row],[Hide:\nProposed kW]]=0),\"\",Table_PI[[#This Row],[Hide:\nProposed kW]])","v":""},{"$f":"IF(OR(Table_PI[[#This Row],[Rebate]]=\"\",Table_PI[[#This Row],[Rebate]]=0),\"\",Table_PI[[#This Row],[Rebate]])","v":""},{"$f":"IF(OR(Table_PI[[#This Row],[Hide:\nIncremental Cost]]=\"\",Table_PI[[#This Row],[Hide:\nIncremental Cost]]=0),\"\",Table_PI[[#This Row],[Hide:\nIncremental Cost]])","v":""},{"$f":"IFERROR(IF(Table_SummaryPI[[#This Row],[kWhSavings]]=\"\",\"\",ROUND(Table_SummaryPI[[#This Row],[kWhSavings]]/$AG$401*'Customer Information'!$BC$17,2)),0)","v":""},{"$f":"IF(OR(Table_PI[[#This Row],[Annual kWh]]=\"\",Table_PI[[#This Row],[Annual kWh]]=0),\"\",Table_PI[[#This Row],[Annual kWh]])","v":""},{"$f":"IF(OR(Table_PI[[#This Row],[Peak kW]]=\"\",Table_PI[[#This Row],[Peak kW]]=0),\"\",Table_PI[[#This Row],[Peak kW]])","v":""},{"$f":"IFERROR(IF(Table_SummaryPI[[#This Row],[kWhSavings]]=\"\",\"\",$AU$9*Table_SummaryPI[[#This Row],[kWhSavings]]),0)","v":""},{"$f":"IFERROR(IF(Table_SummaryPI[[#This Row],[kWhSavings]]=\"\",\"\",$AU$14*Table_SummaryPI[[#This Row],[kWhSavings]]),0)","v":""},{"$f":"IFERROR(IF(Table_SummaryPI[[#This Row],[kWhSavings]]=\"\",\"\",$AU$18*Table_SummaryPI[[#This Row],[kWhSavings]]),0)","v":""},{"$f":"IFERROR(IF(Table_SummaryPI[[#This Row],[kWhSavings]]=\"\",\"\",$AU$22*Table_SummaryPI[[#This Row],[kWhSavings]]),0)","v":""},{"$f":"IFERROR(IF(MeasureCalc(Table_PI[[#This Row],[Hide:\nFormula Name]],Table_SummaryPI[[#This Row],[Quantity]],Table_PI[[#This Row],[List 1]],Table_PI[[#This Row],[List 2]],Table_PI[[#This Row],[List 3]],Table_PI[[#This Row],[Size]],Table_PI[[#This Row],[Input 1]],Table_PI[[#This Row],[Input 2]],Table_PI[[#This Row],[Input 3]],Table_PI[[#This Row],[Input 4]],'Customer Information'!$AR$12,200,ROW())<>\"No Rebate\",MeasureCalc(Table_PI[[#This Row],[Hide:\nFormula Name]],Table_SummaryPI[[#This Row],[Quantity]],Table_PI[[#This Row],[List 1]],Table_PI[[#This Row],[List 2]],Table_PI[[#This Row],[List 3]],Table_PI[[#This Row],[Size]],Table_PI[[#This Row],[Input 1]],Table_PI[[#This Row],[Input 2]],Table_PI[[#This Row],[Input 3]],Table_PI[[#This Row],[Input 4]],'Customer Information'!$AR$12,200,ROW()),\"\"),\"\")","v":""},{"$f":"IFERROR(IF(MeasureCalc(Table_PI[[#This Row],[Hide:\nFormula Name]],Table_SummaryPI[[#This Row],[Quantity]],Table_PI[[#This Row],[List 1]],Table_PI[[#This Row],[List 2]],Table_PI[[#This Row],[List 3]],Table_PI[[#This Row],[Size]],Table_PI[[#This Row],[Input 1]],Table_PI[[#This Row],[Input 2]],Table_PI[[#This Row],[Input 3]],Table_PI[[#This Row],[Input 4]],'Customer Information'!$AR$12,201,ROW())<>\"No Rebate\",MeasureCalc(Table_PI[[#This Row],[Hide:\nFormula Name]],Table_SummaryPI[[#This Row],[Quantity]],Table_PI[[#This Row],[List 1]],Table_PI[[#This Row],[List 2]],Table_PI[[#This Row],[List 3]],Table_PI[[#This Row],[Size]],Table_PI[[#This Row],[Input 1]],Table_PI[[#This Row],[Input 2]],Table_PI[[#This Row],[Input 3]],Table_PI[[#This Row],[Input 4]],'Customer Information'!$AR$12,201,ROW()),\"\"),\"\")","v":""}]
[{"$f":"Table_PI[[#This Row],[Line No.]]","v":""},{"$f":"IF(Table_SummaryPI[[#This Row],[MeassureCategory]]<>\"\",CONCATENATE(Table_SummaryPI[[#This Row],[MeassureCategory]],  \" - \", Table_SummaryPI[[#This Row],[ProposedMeasureCategory]],  \" - \", TEXT(Table_SummaryPI[[#This Row],[Size]],\"#,##0.00\"),\" \",Table_SummaryPI[[#This Row],[SizeUnit]]),\"\")","v":""},{"$f":"SUBSTITUTE(Table_PI[[#This Row],[Measure]],\"     \",\"\",1)","v":""},{"$f":"IF(Table_PI[[#This Row],[List 1]]<>\"\",Table_PI[[#This Row],[List 1]],\"\")","v":""},{"$f":"IF(Table_PI[[#This Row],[List 2]]<>\"\",Table_PI[[#This Row],[List 2]],\"\")","v":""},{"$f":"IF(Table_PI[[#This Row],[List 3]]<>\"\",Table_PI[[#This Row],[List 3]],\"\")","v":""},{"$f":"IF(Table_PI[[#This Row],[Manufacturer]]=\"\",\"\",Table_PI[[#This Row],[Manufacturer]])","v":""},{"$f":"IF(Table_PI[[#This Row],[Model Number]]=\"\",\"\",Table_PI[[#This Row],[Model Number]])","v":""},{"$f":"IF(Table_PI[[#This Row],[Serial Number(s)]]=\"\",\"\",Table_PI[[#This Row],[Serial Number(s)]])","v":""},null,{"$f":"IF(Table_PI[[#This Row],[Size]]=\"\",\"\",Table_PI[[#This Row],[Size]])","v":""},null,{"$f":"IFERROR(IF(AND(MeasureCalc(Table_PI[[#This Row],[Hide:\nFormula Name]],Table_SummaryPI[[#This Row],[Quantity]],Table_PI[[#This Row],[List 1]],Table_PI[[#This Row],[List 2]],Table_PI[[#This Row],[List 3]],Table_PI[[#This Row],[Size]],Table_PI[[#This Row],[Input 1]],Table_PI[[#This Row],[Input 2]],Table_PI[[#This Row],[Input 3]],Table_PI[[#This Row],[Input 4]],'Customer Information'!$AR$12,100,ROW())<>0,MeasureCalc(Table_PI[[#This Row],[Hide:\nFormula Name]],Table_SummaryPI[[#This Row],[Quantity]],Table_PI[[#This Row],[List 1]],Table_PI[[#This Row],[List 2]],Table_PI[[#This Row],[List 3]],Table_PI[[#This Row],[Size]],Table_PI[[#This Row],[Input 1]],Table_PI[[#This Row],[Input 2]],Table_PI[[#This Row],[Input 3]],Table_PI[[#This Row],[Input 4]],'Customer Information'!$AR$12,100,ROW())<>\"No Rebate\"),MeasureCalc(Table_PI[[#This Row],[Hide:\nFormula Name]],Table_SummaryPI[[#This Row],[Quantity]],Table_PI[[#This Row],[List 1]],Table_PI[[#This Row],[List 2]],Table_PI[[#This Row],[List 3]],Table_PI[[#This Row],[Size]],Table_PI[[#This Row],[Input 1]],Table_PI[[#This Row],[Input 2]],Table_PI[[#This Row],[Input 3]],Table_PI[[#This Row],[Input 4]],'Customer Information'!$AR$12,100,ROW()),\"\"),\"\")","v":""},{"$f":"IF(Table_PI[[#This Row],[Input 1]]<>\"\",Table_PI[[#This Row],[Input 1]],\"\")","v":""},null,{"$f":"IFERROR(IF(AND(MeasureCalc(Table_PI[[#This Row],[Hide:\nFormula Name]],Table_SummaryPI[[#This Row],[Quantity]],Table_PI[[#This Row],[List 1]],Table_PI[[#This Row],[List 2]],Table_PI[[#This Row],[List 3]],Table_PI[[#This Row],[Size]],Table_PI[[#This Row],[Input 1]],Table_PI[[#This Row],[Input 2]],Table_PI[[#This Row],[Input 3]],Table_PI[[#This Row],[Input 4]],'Customer Information'!$AR$12,101,ROW())<>0,MeasureCalc(Table_PI[[#This Row],[Hide:\nFormula Name]],Table_SummaryPI[[#This Row],[Quantity]],Table_PI[[#This Row],[List 1]],Table_PI[[#This Row],[List 2]],Table_PI[[#This Row],[List 3]],Table_PI[[#This Row],[Size]],Table_PI[[#This Row],[Input 1]],Table_PI[[#This Row],[Input 2]],Table_PI[[#This Row],[Input 3]],Table_PI[[#This Row],[Input 4]],'Customer Information'!$AR$12,101,ROW())<>\"No Rebate\"),MeasureCalc(Table_PI[[#This Row],[Hide:\nFormula Name]],Table_SummaryPI[[#This Row],[Quantity]],Table_PI[[#This Row],[List 1]],Table_PI[[#This Row],[List 2]],Table_PI[[#This Row],[List 3]],Table_PI[[#This Row],[Size]],Table_PI[[#This Row],[Input 1]],Table_PI[[#This Row],[Input 2]],Table_PI[[#This Row],[Input 3]],Table_PI[[#This Row],[Input 4]],'Customer Information'!$AR$12,101,ROW()),\"\"),\"\")","v":""},{"$f":"IF(Table_PI[[#This Row],[Input 2]]<>\"\",Table_PI[[#This Row],[Input 2]],\"\")","v":""},null,{"$f":"IFERROR(IF(AND(MeasureCalc(Table_PI[[#This Row],[Hide:\nFormula Name]],Table_SummaryPI[[#This Row],[Quantity]],Table_PI[[#This Row],[List 1]],Table_PI[[#This Row],[List 2]],Table_PI[[#This Row],[List 3]],Table_PI[[#This Row],[Size]],Table_PI[[#This Row],[Input 1]],Table_PI[[#This Row],[Input 2]],Table_PI[[#This Row],[Input 3]],Table_PI[[#This Row],[Input 4]],'Customer Information'!$AR$12,102,ROW())<>0,MeasureCalc(Table_PI[[#This Row],[Hide:\nFormula Name]],Table_SummaryPI[[#This Row],[Quantity]],Table_PI[[#This Row],[List 1]],Table_PI[[#This Row],[List 2]],Table_PI[[#This Row],[List 3]],Table_PI[[#This Row],[Size]],Table_PI[[#This Row],[Input 1]],Table_PI[[#This Row],[Input 2]],Table_PI[[#This Row],[Input 3]],Table_PI[[#This Row],[Input 4]],'Customer Information'!$AR$12,102,ROW())<>\"No Rebate\"),MeasureCalc(Table_PI[[#This Row],[Hide:\nFormula Name]],Table_SummaryPI[[#This Row],[Quantity]],Table_PI[[#This Row],[List 1]],Table_PI[[#This Row],[List 2]],Table_PI[[#This Row],[List 3]],Table_PI[[#This Row],[Size]],Table_PI[[#This Row],[Input 1]],Table_PI[[#This Row],[Input 2]],Table_PI[[#This Row],[Input 3]],Table_PI[[#This Row],[Input 4]],'Customer Information'!$AR$12,102,ROW()),\"\"),\"\")","v":""},{"$f":"IF(Table_PI[[#This Row],[Input 3]]<>\"\",Table_PI[[#This Row],[Input 3]],\"\")","v":""},null,{"$f":"IFERROR(IF(AND(MeasureCalc(Table_PI[[#This Row],[Hide:\nFormula Name]],Table_SummaryPI[[#This Row],[Quantity]],Table_PI[[#This Row],[List 1]],Table_PI[[#This Row],[List 2]],Table_PI[[#This Row],[List 3]],Table_PI[[#This Row],[Size]],Table_PI[[#This Row],[Input 1]],Table_PI[[#This Row],[Input 2]],Table_PI[[#This Row],[Input 3]],Table_PI[[#This Row],[Input 4]],'Customer Information'!$AR$12,103,ROW())<>0,MeasureCalc(Table_PI[[#This Row],[Hide:\nFormula Name]],Table_SummaryPI[[#This Row],[Quantity]],Table_PI[[#This Row],[List 1]],Table_PI[[#This Row],[List 2]],Table_PI[[#This Row],[List 3]],Table_PI[[#This Row],[Size]],Table_PI[[#This Row],[Input 1]],Table_PI[[#This Row],[Input 2]],Table_PI[[#This Row],[Input 3]],Table_PI[[#This Row],[Input 4]],'Customer Information'!$AR$12,103,ROW())<>\"No Rebate\"),MeasureCalc(Table_PI[[#This Row],[Hide:\nFormula Name]],Table_SummaryPI[[#This Row],[Quantity]],Table_PI[[#This Row],[List 1]],Table_PI[[#This Row],[List 2]],Table_PI[[#This Row],[List 3]],Table_PI[[#This Row],[Size]],Table_PI[[#This Row],[Input 1]],Table_PI[[#This Row],[Input 2]],Table_PI[[#This Row],[Input 3]],Table_PI[[#This Row],[Input 4]],'Customer Information'!$AR$12,103,ROW()),\"\"),\"\")","v":""},{"$f":"IF(Table_PI[[#This Row],[Input 4]]<>\"\",Table_PI[[#This Row],[Input 4]],\"\")","v":""},{"$f":"IF(Table_PI[[#This Row],[Quantity]]=\"\",\"\",Table_PI[[#This Row],[Quantity]])","v":""},{"$f":"IF(Table_PI[[#This Row],[Notes]]=\"\",\"\",Table_PI[[#This Row],[Notes]])","v":""},{"$f":"IF(OR(Table_PI[[#This Row],[Hide:\nBaseline kWh]]=\"\",Table_PI[[#This Row],[Hide:\nBaseline kWh]]=0),\"\",Table_PI[[#This Row],[Hide:\nBaseline kWh]])","v":""},{"$f":"IF(OR(Table_PI[[#This Row],[Hide:\nBaseline kW]]=\"\",Table_PI[[#This Row],[Hide:\nBaseline kW]]=0),\"\",Table_PI[[#This Row],[Hide:\nBaseline kW]])","v":""},{"$f":"IF(OR(Table_PI[[#This Row],[Hide:\nProposed kWh]]=\"\",Table_PI[[#This Row],[Hide:\nProposed kWh]]=0),\"\",Table_PI[[#This Row],[Hide:\nProposed kWh]])","v":""},{"$f":"IF(OR(Table_PI[[#This Row],[Hide:\nProposed kW]]=\"\",Table_PI[[#This Row],[Hide:\nProposed kW]]=0),\"\",Table_PI[[#This Row],[Hide:\nProposed kW]])","v":""},{"$f":"IF(OR(Table_PI[[#This Row],[Rebate]]=\"\",Table_PI[[#This Row],[Rebate]]=0),\"\",Table_PI[[#This Row],[Rebate]])","v":""},{"$f":"IF(OR(Table_PI[[#This Row],[Hide:\nIncremental Cost]]=\"\",Table_PI[[#This Row],[Hide:\nIncremental Cost]]=0),\"\",Table_PI[[#This Row],[Hide:\nIncremental Cost]])","v":""},{"$f":"IFERROR(IF(Table_SummaryPI[[#This Row],[kWhSavings]]=\"\",\"\",ROUND(Table_SummaryPI[[#This Row],[kWhSavings]]/$AG$401*'Customer Information'!$BC$17,2)),0)","v":""},{"$f":"IF(OR(Table_PI[[#This Row],[Annual kWh]]=\"\",Table_PI[[#This Row],[Annual kWh]]=0),\"\",Table_PI[[#This Row],[Annual kWh]])","v":""},{"$f":"IF(OR(Table_PI[[#This Row],[Peak kW]]=\"\",Table_PI[[#This Row],[Peak kW]]=0),\"\",Table_PI[[#This Row],[Peak kW]])","v":""},{"$f":"IFERROR(IF(Table_SummaryPI[[#This Row],[kWhSavings]]=\"\",\"\",$AU$9*Table_SummaryPI[[#This Row],[kWhSavings]]),0)","v":""},{"$f":"IFERROR(IF(Table_SummaryPI[[#This Row],[kWhSavings]]=\"\",\"\",$AU$14*Table_SummaryPI[[#This Row],[kWhSavings]]),0)","v":""},{"$f":"IFERROR(IF(Table_SummaryPI[[#This Row],[kWhSavings]]=\"\",\"\",$AU$18*Table_SummaryPI[[#This Row],[kWhSavings]]),0)","v":""},{"$f":"IFERROR(IF(Table_SummaryPI[[#This Row],[kWhSavings]]=\"\",\"\",$AU$22*Table_SummaryPI[[#This Row],[kWhSavings]]),0)","v":""},{"$f":"IFERROR(IF(MeasureCalc(Table_PI[[#This Row],[Hide:\nFormula Name]],Table_SummaryPI[[#This Row],[Quantity]],Table_PI[[#This Row],[List 1]],Table_PI[[#This Row],[List 2]],Table_PI[[#This Row],[List 3]],Table_PI[[#This Row],[Size]],Table_PI[[#This Row],[Input 1]],Table_PI[[#This Row],[Input 2]],Table_PI[[#This Row],[Input 3]],Table_PI[[#This Row],[Input 4]],'Customer Information'!$AR$12,200,ROW())<>\"No Rebate\",MeasureCalc(Table_PI[[#This Row],[Hide:\nFormula Name]],Table_SummaryPI[[#This Row],[Quantity]],Table_PI[[#This Row],[List 1]],Table_PI[[#This Row],[List 2]],Table_PI[[#This Row],[List 3]],Table_PI[[#This Row],[Size]],Table_PI[[#This Row],[Input 1]],Table_PI[[#This Row],[Input 2]],Table_PI[[#This Row],[Input 3]],Table_PI[[#This Row],[Input 4]],'Customer Information'!$AR$12,200,ROW()),\"\"),\"\")","v":""},{"$f":"IFERROR(IF(MeasureCalc(Table_PI[[#This Row],[Hide:\nFormula Name]],Table_SummaryPI[[#This Row],[Quantity]],Table_PI[[#This Row],[List 1]],Table_PI[[#This Row],[List 2]],Table_PI[[#This Row],[List 3]],Table_PI[[#This Row],[Size]],Table_PI[[#This Row],[Input 1]],Table_PI[[#This Row],[Input 2]],Table_PI[[#This Row],[Input 3]],Table_PI[[#This Row],[Input 4]],'Customer Information'!$AR$12,201,ROW())<>\"No Rebate\",MeasureCalc(Table_PI[[#This Row],[Hide:\nFormula Name]],Table_SummaryPI[[#This Row],[Quantity]],Table_PI[[#This Row],[List 1]],Table_PI[[#This Row],[List 2]],Table_PI[[#This Row],[List 3]],Table_PI[[#This Row],[Size]],Table_PI[[#This Row],[Input 1]],Table_PI[[#This Row],[Input 2]],Table_PI[[#This Row],[Input 3]],Table_PI[[#This Row],[Input 4]],'Customer Information'!$AR$12,201,ROW()),\"\"),\"\")","v":""}]
[{"$f":"Table_PI[[#This Row],[Line No.]]","v":""},{"$f":"IF(Table_SummaryPI[[#This Row],[MeassureCategory]]<>\"\",CONCATENATE(Table_SummaryPI[[#This Row],[MeassureCategory]],  \" - \", Table_SummaryPI[[#This Row],[ProposedMeasureCategory]],  \" - \", TEXT(Table_SummaryPI[[#This Row],[Size]],\"#,##0.00\"),\" \",Table_SummaryPI[[#This Row],[SizeUnit]]),\"\")","v":""},{"$f":"SUBSTITUTE(Table_PI[[#This Row],[Measure]],\"     \",\"\",1)","v":""},{"$f":"IF(Table_PI[[#This Row],[List 1]]<>\"\",Table_PI[[#This Row],[List 1]],\"\")","v":""},{"$f":"IF(Table_PI[[#This Row],[List 2]]<>\"\",Table_PI[[#This Row],[List 2]],\"\")","v":""},{"$f":"IF(Table_PI[[#This Row],[List 3]]<>\"\",Table_PI[[#This Row],[List 3]],\"\")","v":""},{"$f":"IF(Table_PI[[#This Row],[Manufacturer]]=\"\",\"\",Table_PI[[#This Row],[Manufacturer]])","v":""},{"$f":"IF(Table_PI[[#This Row],[Model Number]]=\"\",\"\",Table_PI[[#This Row],[Model Number]])","v":""},{"$f":"IF(Table_PI[[#This Row],[Serial Number(s)]]=\"\",\"\",Table_PI[[#This Row],[Serial Number(s)]])","v":""},null,{"$f":"IF(Table_PI[[#This Row],[Size]]=\"\",\"\",Table_PI[[#This Row],[Size]])","v":""},null,{"$f":"IFERROR(IF(AND(MeasureCalc(Table_PI[[#This Row],[Hide:\nFormula Name]],Table_SummaryPI[[#This Row],[Quantity]],Table_PI[[#This Row],[List 1]],Table_PI[[#This Row],[List 2]],Table_PI[[#This Row],[List 3]],Table_PI[[#This Row],[Size]],Table_PI[[#This Row],[Input 1]],Table_PI[[#This Row],[Input 2]],Table_PI[[#This Row],[Input 3]],Table_PI[[#This Row],[Input 4]],'Customer Information'!$AR$12,100,ROW())<>0,MeasureCalc(Table_PI[[#This Row],[Hide:\nFormula Name]],Table_SummaryPI[[#This Row],[Quantity]],Table_PI[[#This Row],[List 1]],Table_PI[[#This Row],[List 2]],Table_PI[[#This Row],[List 3]],Table_PI[[#This Row],[Size]],Table_PI[[#This Row],[Input 1]],Table_PI[[#This Row],[Input 2]],Table_PI[[#This Row],[Input 3]],Table_PI[[#This Row],[Input 4]],'Customer Information'!$AR$12,100,ROW())<>\"No Rebate\"),MeasureCalc(Table_PI[[#This Row],[Hide:\nFormula Name]],Table_SummaryPI[[#This Row],[Quantity]],Table_PI[[#This Row],[List 1]],Table_PI[[#This Row],[List 2]],Table_PI[[#This Row],[List 3]],Table_PI[[#This Row],[Size]],Table_PI[[#This Row],[Input 1]],Table_PI[[#This Row],[Input 2]],Table_PI[[#This Row],[Input 3]],Table_PI[[#This Row],[Input 4]],'Customer Information'!$AR$12,100,ROW()),\"\"),\"\")","v":""},{"$f":"IF(Table_PI[[#This Row],[Input 1]]<>\"\",Table_PI[[#This Row],[Input 1]],\"\")","v":""},null,{"$f":"IFERROR(IF(AND(MeasureCalc(Table_PI[[#This Row],[Hide:\nFormula Name]],Table_SummaryPI[[#This Row],[Quantity]],Table_PI[[#This Row],[List 1]],Table_PI[[#This Row],[List 2]],Table_PI[[#This Row],[List 3]],Table_PI[[#This Row],[Size]],Table_PI[[#This Row],[Input 1]],Table_PI[[#This Row],[Input 2]],Table_PI[[#This Row],[Input 3]],Table_PI[[#This Row],[Input 4]],'Customer Information'!$AR$12,101,ROW())<>0,MeasureCalc(Table_PI[[#This Row],[Hide:\nFormula Name]],Table_SummaryPI[[#This Row],[Quantity]],Table_PI[[#This Row],[List 1]],Table_PI[[#This Row],[List 2]],Table_PI[[#This Row],[List 3]],Table_PI[[#This Row],[Size]],Table_PI[[#This Row],[Input 1]],Table_PI[[#This Row],[Input 2]],Table_PI[[#This Row],[Input 3]],Table_PI[[#This Row],[Input 4]],'Customer Information'!$AR$12,101,ROW())<>\"No Rebate\"),MeasureCalc(Table_PI[[#This Row],[Hide:\nFormula Name]],Table_SummaryPI[[#This Row],[Quantity]],Table_PI[[#This Row],[List 1]],Table_PI[[#This Row],[List 2]],Table_PI[[#This Row],[List 3]],Table_PI[[#This Row],[Size]],Table_PI[[#This Row],[Input 1]],Table_PI[[#This Row],[Input 2]],Table_PI[[#This Row],[Input 3]],Table_PI[[#This Row],[Input 4]],'Customer Information'!$AR$12,101,ROW()),\"\"),\"\")","v":""},{"$f":"IF(Table_PI[[#This Row],[Input 2]]<>\"\",Table_PI[[#This Row],[Input 2]],\"\")","v":""},null,{"$f":"IFERROR(IF(AND(MeasureCalc(Table_PI[[#This Row],[Hide:\nFormula Name]],Table_SummaryPI[[#This Row],[Quantity]],Table_PI[[#This Row],[List 1]],Table_PI[[#This Row],[List 2]],Table_PI[[#This Row],[List 3]],Table_PI[[#This Row],[Size]],Table_PI[[#This Row],[Input 1]],Table_PI[[#This Row],[Input 2]],Table_PI[[#This Row],[Input 3]],Table_PI[[#This Row],[Input 4]],'Customer Information'!$AR$12,102,ROW())<>0,MeasureCalc(Table_PI[[#This Row],[Hide:\nFormula Name]],Table_SummaryPI[[#This Row],[Quantity]],Table_PI[[#This Row],[List 1]],Table_PI[[#This Row],[List 2]],Table_PI[[#This Row],[List 3]],Table_PI[[#This Row],[Size]],Table_PI[[#This Row],[Input 1]],Table_PI[[#This Row],[Input 2]],Table_PI[[#This Row],[Input 3]],Table_PI[[#This Row],[Input 4]],'Customer Information'!$AR$12,102,ROW())<>\"No Rebate\"),MeasureCalc(Table_PI[[#This Row],[Hide:\nFormula Name]],Table_SummaryPI[[#This Row],[Quantity]],Table_PI[[#This Row],[List 1]],Table_PI[[#This Row],[List 2]],Table_PI[[#This Row],[List 3]],Table_PI[[#This Row],[Size]],Table_PI[[#This Row],[Input 1]],Table_PI[[#This Row],[Input 2]],Table_PI[[#This Row],[Input 3]],Table_PI[[#This Row],[Input 4]],'Customer Information'!$AR$12,102,ROW()),\"\"),\"\")","v":""},{"$f":"IF(Table_PI[[#This Row],[Input 3]]<>\"\",Table_PI[[#This Row],[Input 3]],\"\")","v":""},null,{"$f":"IFERROR(IF(AND(MeasureCalc(Table_PI[[#This Row],[Hide:\nFormula Name]],Table_SummaryPI[[#This Row],[Quantity]],Table_PI[[#This Row],[List 1]],Table_PI[[#This Row],[List 2]],Table_PI[[#This Row],[List 3]],Table_PI[[#This Row],[Size]],Table_PI[[#This Row],[Input 1]],Table_PI[[#This Row],[Input 2]],Table_PI[[#This Row],[Input 3]],Table_PI[[#This Row],[Input 4]],'Customer Information'!$AR$12,103,ROW())<>0,MeasureCalc(Table_PI[[#This Row],[Hide:\nFormula Name]],Table_SummaryPI[[#This Row],[Quantity]],Table_PI[[#This Row],[List 1]],Table_PI[[#This Row],[List 2]],Table_PI[[#This Row],[List 3]],Table_PI[[#This Row],[Size]],Table_PI[[#This Row],[Input 1]],Table_PI[[#This Row],[Input 2]],Table_PI[[#This Row],[Input 3]],Table_PI[[#This Row],[Input 4]],'Customer Information'!$AR$12,103,ROW())<>\"No Rebate\"),MeasureCalc(Table_PI[[#This Row],[Hide:\nFormula Name]],Table_SummaryPI[[#This Row],[Quantity]],Table_PI[[#This Row],[List 1]],Table_PI[[#This Row],[List 2]],Table_PI[[#This Row],[List 3]],Table_PI[[#This Row],[Size]],Table_PI[[#This Row],[Input 1]],Table_PI[[#This Row],[Input 2]],Table_PI[[#This Row],[Input 3]],Table_PI[[#This Row],[Input 4]],'Customer Information'!$AR$12,103,ROW()),\"\"),\"\")","v":""},{"$f":"IF(Table_PI[[#This Row],[Input 4]]<>\"\",Table_PI[[#This Row],[Input 4]],\"\")","v":""},{"$f":"IF(Table_PI[[#This Row],[Quantity]]=\"\",\"\",Table_PI[[#This Row],[Quantity]])","v":""},{"$f":"IF(Table_PI[[#This Row],[Notes]]=\"\",\"\",Table_PI[[#This Row],[Notes]])","v":""},{"$f":"IF(OR(Table_PI[[#This Row],[Hide:\nBaseline kWh]]=\"\",Table_PI[[#This Row],[Hide:\nBaseline kWh]]=0),\"\",Table_PI[[#This Row],[Hide:\nBaseline kWh]])","v":""},{"$f":"IF(OR(Table_PI[[#This Row],[Hide:\nBaseline kW]]=\"\",Table_PI[[#This Row],[Hide:\nBaseline kW]]=0),\"\",Table_PI[[#This Row],[Hide:\nBaseline kW]])","v":""},{"$f":"IF(OR(Table_PI[[#This Row],[Hide:\nProposed kWh]]=\"\",Table_PI[[#This Row],[Hide:\nProposed kWh]]=0),\"\",Table_PI[[#This Row],[Hide:\nProposed kWh]])","v":""},{"$f":"IF(OR(Table_PI[[#This Row],[Hide:\nProposed kW]]=\"\",Table_PI[[#This Row],[Hide:\nProposed kW]]=0),\"\",Table_PI[[#This Row],[Hide:\nProposed kW]])","v":""},{"$f":"IF(OR(Table_PI[[#This Row],[Rebate]]=\"\",Table_PI[[#This Row],[Rebate]]=0),\"\",Table_PI[[#This Row],[Rebate]])","v":""},{"$f":"IF(OR(Table_PI[[#This Row],[Hide:\nIncremental Cost]]=\"\",Table_PI[[#This Row],[Hide:\nIncremental Cost]]=0),\"\",Table_PI[[#This Row],[Hide:\nIncremental Cost]])","v":""},{"$f":"IFERROR(IF(Table_SummaryPI[[#This Row],[kWhSavings]]=\"\",\"\",ROUND(Table_SummaryPI[[#This Row],[kWhSavings]]/$AG$401*'Customer Information'!$BC$17,2)),0)","v":""},{"$f":"IF(OR(Table_PI[[#This Row],[Annual kWh]]=\"\",Table_PI[[#This Row],[Annual kWh]]=0),\"\",Table_PI[[#This Row],[Annual kWh]])","v":""},{"$f":"IF(OR(Table_PI[[#This Row],[Peak kW]]=\"\",Table_PI[[#This Row],[Peak kW]]=0),\"\",Table_PI[[#This Row],[Peak kW]])","v":""},{"$f":"IFERROR(IF(Table_SummaryPI[[#This Row],[kWhSavings]]=\"\",\"\",$AU$9*Table_SummaryPI[[#This Row],[kWhSavings]]),0)","v":""},{"$f":"IFERROR(IF(Table_SummaryPI[[#This Row],[kWhSavings]]=\"\",\"\",$AU$14*Table_SummaryPI[[#This Row],[kWhSavings]]),0)","v":""},{"$f":"IFERROR(IF(Table_SummaryPI[[#This Row],[kWhSavings]]=\"\",\"\",$AU$18*Table_SummaryPI[[#This Row],[kWhSavings]]),0)","v":""},{"$f":"IFERROR(IF(Table_SummaryPI[[#This Row],[kWhSavings]]=\"\",\"\",$AU$22*Table_SummaryPI[[#This Row],[kWhSavings]]),0)","v":""},{"$f":"IFERROR(IF(MeasureCalc(Table_PI[[#This Row],[Hide:\nFormula Name]],Table_SummaryPI[[#This Row],[Quantity]],Table_PI[[#This Row],[List 1]],Table_PI[[#This Row],[List 2]],Table_PI[[#This Row],[List 3]],Table_PI[[#This Row],[Size]],Table_PI[[#This Row],[Input 1]],Table_PI[[#This Row],[Input 2]],Table_PI[[#This Row],[Input 3]],Table_PI[[#This Row],[Input 4]],'Customer Information'!$AR$12,200,ROW())<>\"No Rebate\",MeasureCalc(Table_PI[[#This Row],[Hide:\nFormula Name]],Table_SummaryPI[[#This Row],[Quantity]],Table_PI[[#This Row],[List 1]],Table_PI[[#This Row],[List 2]],Table_PI[[#This Row],[List 3]],Table_PI[[#This Row],[Size]],Table_PI[[#This Row],[Input 1]],Table_PI[[#This Row],[Input 2]],Table_PI[[#This Row],[Input 3]],Table_PI[[#This Row],[Input 4]],'Customer Information'!$AR$12,200,ROW()),\"\"),\"\")","v":""},{"$f":"IFERROR(IF(MeasureCalc(Table_PI[[#This Row],[Hide:\nFormula Name]],Table_SummaryPI[[#This Row],[Quantity]],Table_PI[[#This Row],[List 1]],Table_PI[[#This Row],[List 2]],Table_PI[[#This Row],[List 3]],Table_PI[[#This Row],[Size]],Table_PI[[#This Row],[Input 1]],Table_PI[[#This Row],[Input 2]],Table_PI[[#This Row],[Input 3]],Table_PI[[#This Row],[Input 4]],'Customer Information'!$AR$12,201,ROW())<>\"No Rebate\",MeasureCalc(Table_PI[[#This Row],[Hide:\nFormula Name]],Table_SummaryPI[[#This Row],[Quantity]],Table_PI[[#This Row],[List 1]],Table_PI[[#This Row],[List 2]],Table_PI[[#This Row],[List 3]],Table_PI[[#This Row],[Size]],Table_PI[[#This Row],[Input 1]],Table_PI[[#This Row],[Input 2]],Table_PI[[#This Row],[Input 3]],Table_PI[[#This Row],[Input 4]],'Customer Information'!$AR$12,201,ROW()),\"\"),\"\")","v":""}]
[{"$f":"Table_PI[[#This Row],[Line No.]]","v":""},{"$f":"IF(Table_SummaryPI[[#This Row],[MeassureCategory]]<>\"\",CONCATENATE(Table_SummaryPI[[#This Row],[MeassureCategory]],  \" - \", Table_SummaryPI[[#This Row],[ProposedMeasureCategory]],  \" - \", TEXT(Table_SummaryPI[[#This Row],[Size]],\"#,##0.00\"),\" \",Table_SummaryPI[[#This Row],[SizeUnit]]),\"\")","v":""},{"$f":"SUBSTITUTE(Table_PI[[#This Row],[Measure]],\"     \",\"\",1)","v":""},{"$f":"IF(Table_PI[[#This Row],[List 1]]<>\"\",Table_PI[[#This Row],[List 1]],\"\")","v":""},{"$f":"IF(Table_PI[[#This Row],[List 2]]<>\"\",Table_PI[[#This Row],[List 2]],\"\")","v":""},{"$f":"IF(Table_PI[[#This Row],[List 3]]<>\"\",Table_PI[[#This Row],[List 3]],\"\")","v":""},{"$f":"IF(Table_PI[[#This Row],[Manufacturer]]=\"\",\"\",Table_PI[[#This Row],[Manufacturer]])","v":""},{"$f":"IF(Table_PI[[#This Row],[Model Number]]=\"\",\"\",Table_PI[[#This Row],[Model Number]])","v":""},{"$f":"IF(Table_PI[[#This Row],[Serial Number(s)]]=\"\",\"\",Table_PI[[#This Row],[Serial Number(s)]])","v":""},null,{"$f":"IF(Table_PI[[#This Row],[Size]]=\"\",\"\",Table_PI[[#This Row],[Size]])","v":""},null,{"$f":"IFERROR(IF(AND(MeasureCalc(Table_PI[[#This Row],[Hide:\nFormula Name]],Table_SummaryPI[[#This Row],[Quantity]],Table_PI[[#This Row],[List 1]],Table_PI[[#This Row],[List 2]],Table_PI[[#This Row],[List 3]],Table_PI[[#This Row],[Size]],Table_PI[[#This Row],[Input 1]],Table_PI[[#This Row],[Input 2]],Table_PI[[#This Row],[Input 3]],Table_PI[[#This Row],[Input 4]],'Customer Information'!$AR$12,100,ROW())<>0,MeasureCalc(Table_PI[[#This Row],[Hide:\nFormula Name]],Table_SummaryPI[[#This Row],[Quantity]],Table_PI[[#This Row],[List 1]],Table_PI[[#This Row],[List 2]],Table_PI[[#This Row],[List 3]],Table_PI[[#This Row],[Size]],Table_PI[[#This Row],[Input 1]],Table_PI[[#This Row],[Input 2]],Table_PI[[#This Row],[Input 3]],Table_PI[[#This Row],[Input 4]],'Customer Information'!$AR$12,100,ROW())<>\"No Rebate\"),MeasureCalc(Table_PI[[#This Row],[Hide:\nFormula Name]],Table_SummaryPI[[#This Row],[Quantity]],Table_PI[[#This Row],[List 1]],Table_PI[[#This Row],[List 2]],Table_PI[[#This Row],[List 3]],Table_PI[[#This Row],[Size]],Table_PI[[#This Row],[Input 1]],Table_PI[[#This Row],[Input 2]],Table_PI[[#This Row],[Input 3]],Table_PI[[#This Row],[Input 4]],'Customer Information'!$AR$12,100,ROW()),\"\"),\"\")","v":""},{"$f":"IF(Table_PI[[#This Row],[Input 1]]<>\"\",Table_PI[[#This Row],[Input 1]],\"\")","v":""},null,{"$f":"IFERROR(IF(AND(MeasureCalc(Table_PI[[#This Row],[Hide:\nFormula Name]],Table_SummaryPI[[#This Row],[Quantity]],Table_PI[[#This Row],[List 1]],Table_PI[[#This Row],[List 2]],Table_PI[[#This Row],[List 3]],Table_PI[[#This Row],[Size]],Table_PI[[#This Row],[Input 1]],Table_PI[[#This Row],[Input 2]],Table_PI[[#This Row],[Input 3]],Table_PI[[#This Row],[Input 4]],'Customer Information'!$AR$12,101,ROW())<>0,MeasureCalc(Table_PI[[#This Row],[Hide:\nFormula Name]],Table_SummaryPI[[#This Row],[Quantity]],Table_PI[[#This Row],[List 1]],Table_PI[[#This Row],[List 2]],Table_PI[[#This Row],[List 3]],Table_PI[[#This Row],[Size]],Table_PI[[#This Row],[Input 1]],Table_PI[[#This Row],[Input 2]],Table_PI[[#This Row],[Input 3]],Table_PI[[#This Row],[Input 4]],'Customer Information'!$AR$12,101,ROW())<>\"No Rebate\"),MeasureCalc(Table_PI[[#This Row],[Hide:\nFormula Name]],Table_SummaryPI[[#This Row],[Quantity]],Table_PI[[#This Row],[List 1]],Table_PI[[#This Row],[List 2]],Table_PI[[#This Row],[List 3]],Table_PI[[#This Row],[Size]],Table_PI[[#This Row],[Input 1]],Table_PI[[#This Row],[Input 2]],Table_PI[[#This Row],[Input 3]],Table_PI[[#This Row],[Input 4]],'Customer Information'!$AR$12,101,ROW()),\"\"),\"\")","v":""},{"$f":"IF(Table_PI[[#This Row],[Input 2]]<>\"\",Table_PI[[#This Row],[Input 2]],\"\")","v":""},null,{"$f":"IFERROR(IF(AND(MeasureCalc(Table_PI[[#This Row],[Hide:\nFormula Name]],Table_SummaryPI[[#This Row],[Quantity]],Table_PI[[#This Row],[List 1]],Table_PI[[#This Row],[List 2]],Table_PI[[#This Row],[List 3]],Table_PI[[#This Row],[Size]],Table_PI[[#This Row],[Input 1]],Table_PI[[#This Row],[Input 2]],Table_PI[[#This Row],[Input 3]],Table_PI[[#This Row],[Input 4]],'Customer Information'!$AR$12,102,ROW())<>0,MeasureCalc(Table_PI[[#This Row],[Hide:\nFormula Name]],Table_SummaryPI[[#This Row],[Quantity]],Table_PI[[#This Row],[List 1]],Table_PI[[#This Row],[List 2]],Table_PI[[#This Row],[List 3]],Table_PI[[#This Row],[Size]],Table_PI[[#This Row],[Input 1]],Table_PI[[#This Row],[Input 2]],Table_PI[[#This Row],[Input 3]],Table_PI[[#This Row],[Input 4]],'Customer Information'!$AR$12,102,ROW())<>\"No Rebate\"),MeasureCalc(Table_PI[[#This Row],[Hide:\nFormula Name]],Table_SummaryPI[[#This Row],[Quantity]],Table_PI[[#This Row],[List 1]],Table_PI[[#This Row],[List 2]],Table_PI[[#This Row],[List 3]],Table_PI[[#This Row],[Size]],Table_PI[[#This Row],[Input 1]],Table_PI[[#This Row],[Input 2]],Table_PI[[#This Row],[Input 3]],Table_PI[[#This Row],[Input 4]],'Customer Information'!$AR$12,102,ROW()),\"\"),\"\")","v":""},{"$f":"IF(Table_PI[[#This Row],[Input 3]]<>\"\",Table_PI[[#This Row],[Input 3]],\"\")","v":""},null,{"$f":"IFERROR(IF(AND(MeasureCalc(Table_PI[[#This Row],[Hide:\nFormula Name]],Table_SummaryPI[[#This Row],[Quantity]],Table_PI[[#This Row],[List 1]],Table_PI[[#This Row],[List 2]],Table_PI[[#This Row],[List 3]],Table_PI[[#This Row],[Size]],Table_PI[[#This Row],[Input 1]],Table_PI[[#This Row],[Input 2]],Table_PI[[#This Row],[Input 3]],Table_PI[[#This Row],[Input 4]],'Customer Information'!$AR$12,103,ROW())<>0,MeasureCalc(Table_PI[[#This Row],[Hide:\nFormula Name]],Table_SummaryPI[[#This Row],[Quantity]],Table_PI[[#This Row],[List 1]],Table_PI[[#This Row],[List 2]],Table_PI[[#This Row],[List 3]],Table_PI[[#This Row],[Size]],Table_PI[[#This Row],[Input 1]],Table_PI[[#This Row],[Input 2]],Table_PI[[#This Row],[Input 3]],Table_PI[[#This Row],[Input 4]],'Customer Information'!$AR$12,103,ROW())<>\"No Rebate\"),MeasureCalc(Table_PI[[#This Row],[Hide:\nFormula Name]],Table_SummaryPI[[#This Row],[Quantity]],Table_PI[[#This Row],[List 1]],Table_PI[[#This Row],[List 2]],Table_PI[[#This Row],[List 3]],Table_PI[[#This Row],[Size]],Table_PI[[#This Row],[Input 1]],Table_PI[[#This Row],[Input 2]],Table_PI[[#This Row],[Input 3]],Table_PI[[#This Row],[Input 4]],'Customer Information'!$AR$12,103,ROW()),\"\"),\"\")","v":""},{"$f":"IF(Table_PI[[#This Row],[Input 4]]<>\"\",Table_PI[[#This Row],[Input 4]],\"\")","v":""},{"$f":"IF(Table_PI[[#This Row],[Quantity]]=\"\",\"\",Table_PI[[#This Row],[Quantity]])","v":""},{"$f":"IF(Table_PI[[#This Row],[Notes]]=\"\",\"\",Table_PI[[#This Row],[Notes]])","v":""},{"$f":"IF(OR(Table_PI[[#This Row],[Hide:\nBaseline kWh]]=\"\",Table_PI[[#This Row],[Hide:\nBaseline kWh]]=0),\"\",Table_PI[[#This Row],[Hide:\nBaseline kWh]])","v":""},{"$f":"IF(OR(Table_PI[[#This Row],[Hide:\nBaseline kW]]=\"\",Table_PI[[#This Row],[Hide:\nBaseline kW]]=0),\"\",Table_PI[[#This Row],[Hide:\nBaseline kW]])","v":""},{"$f":"IF(OR(Table_PI[[#This Row],[Hide:\nProposed kWh]]=\"\",Table_PI[[#This Row],[Hide:\nProposed kWh]]=0),\"\",Table_PI[[#This Row],[Hide:\nProposed kWh]])","v":""},{"$f":"IF(OR(Table_PI[[#This Row],[Hide:\nProposed kW]]=\"\",Table_PI[[#This Row],[Hide:\nProposed kW]]=0),\"\",Table_PI[[#This Row],[Hide:\nProposed kW]])","v":""},{"$f":"IF(OR(Table_PI[[#This Row],[Rebate]]=\"\",Table_PI[[#This Row],[Rebate]]=0),\"\",Table_PI[[#This Row],[Rebate]])","v":""},{"$f":"IF(OR(Table_PI[[#This Row],[Hide:\nIncremental Cost]]=\"\",Table_PI[[#This Row],[Hide:\nIncremental Cost]]=0),\"\",Table_PI[[#This Row],[Hide:\nIncremental Cost]])","v":""},{"$f":"IFERROR(IF(Table_SummaryPI[[#This Row],[kWhSavings]]=\"\",\"\",ROUND(Table_SummaryPI[[#This Row],[kWhSavings]]/$AG$401*'Customer Information'!$BC$17,2)),0)","v":""},{"$f":"IF(OR(Table_PI[[#This Row],[Annual kWh]]=\"\",Table_PI[[#This Row],[Annual kWh]]=0),\"\",Table_PI[[#This Row],[Annual kWh]])","v":""},{"$f":"IF(OR(Table_PI[[#This Row],[Peak kW]]=\"\",Table_PI[[#This Row],[Peak kW]]=0),\"\",Table_PI[[#This Row],[Peak kW]])","v":""},{"$f":"IFERROR(IF(Table_SummaryPI[[#This Row],[kWhSavings]]=\"\",\"\",$AU$9*Table_SummaryPI[[#This Row],[kWhSavings]]),0)","v":""},{"$f":"IFERROR(IF(Table_SummaryPI[[#This Row],[kWhSavings]]=\"\",\"\",$AU$14*Table_SummaryPI[[#This Row],[kWhSavings]]),0)","v":""},{"$f":"IFERROR(IF(Table_SummaryPI[[#This Row],[kWhSavings]]=\"\",\"\",$AU$18*Table_SummaryPI[[#This Row],[kWhSavings]]),0)","v":""},{"$f":"IFERROR(IF(Table_SummaryPI[[#This Row],[kWhSavings]]=\"\",\"\",$AU$22*Table_SummaryPI[[#This Row],[kWhSavings]]),0)","v":""},{"$f":"IFERROR(IF(MeasureCalc(Table_PI[[#This Row],[Hide:\nFormula Name]],Table_SummaryPI[[#This Row],[Quantity]],Table_PI[[#This Row],[List 1]],Table_PI[[#This Row],[List 2]],Table_PI[[#This Row],[List 3]],Table_PI[[#This Row],[Size]],Table_PI[[#This Row],[Input 1]],Table_PI[[#This Row],[Input 2]],Table_PI[[#This Row],[Input 3]],Table_PI[[#This Row],[Input 4]],'Customer Information'!$AR$12,200,ROW())<>\"No Rebate\",MeasureCalc(Table_PI[[#This Row],[Hide:\nFormula Name]],Table_SummaryPI[[#This Row],[Quantity]],Table_PI[[#This Row],[List 1]],Table_PI[[#This Row],[List 2]],Table_PI[[#This Row],[List 3]],Table_PI[[#This Row],[Size]],Table_PI[[#This Row],[Input 1]],Table_PI[[#This Row],[Input 2]],Table_PI[[#This Row],[Input 3]],Table_PI[[#This Row],[Input 4]],'Customer Information'!$AR$12,200,ROW()),\"\"),\"\")","v":""},{"$f":"IFERROR(IF(MeasureCalc(Table_PI[[#This Row],[Hide:\nFormula Name]],Table_SummaryPI[[#This Row],[Quantity]],Table_PI[[#This Row],[List 1]],Table_PI[[#This Row],[List 2]],Table_PI[[#This Row],[List 3]],Table_PI[[#This Row],[Size]],Table_PI[[#This Row],[Input 1]],Table_PI[[#This Row],[Input 2]],Table_PI[[#This Row],[Input 3]],Table_PI[[#This Row],[Input 4]],'Customer Information'!$AR$12,201,ROW())<>\"No Rebate\",MeasureCalc(Table_PI[[#This Row],[Hide:\nFormula Name]],Table_SummaryPI[[#This Row],[Quantity]],Table_PI[[#This Row],[List 1]],Table_PI[[#This Row],[List 2]],Table_PI[[#This Row],[List 3]],Table_PI[[#This Row],[Size]],Table_PI[[#This Row],[Input 1]],Table_PI[[#This Row],[Input 2]],Table_PI[[#This Row],[Input 3]],Table_PI[[#This Row],[Input 4]],'Customer Information'!$AR$12,201,ROW()),\"\"),\"\")","v":""}]
[{"$f":"Table_PI[[#This Row],[Line No.]]","v":""},{"$f":"IF(Table_SummaryPI[[#This Row],[MeassureCategory]]<>\"\",CONCATENATE(Table_SummaryPI[[#This Row],[MeassureCategory]],  \" - \", Table_SummaryPI[[#This Row],[ProposedMeasureCategory]],  \" - \", TEXT(Table_SummaryPI[[#This Row],[Size]],\"#,##0.00\"),\" \",Table_SummaryPI[[#This Row],[SizeUnit]]),\"\")","v":""},{"$f":"SUBSTITUTE(Table_PI[[#This Row],[Measure]],\"     \",\"\",1)","v":""},{"$f":"IF(Table_PI[[#This Row],[List 1]]<>\"\",Table_PI[[#This Row],[List 1]],\"\")","v":""},{"$f":"IF(Table_PI[[#This Row],[List 2]]<>\"\",Table_PI[[#This Row],[List 2]],\"\")","v":""},{"$f":"IF(Table_PI[[#This Row],[List 3]]<>\"\",Table_PI[[#This Row],[List 3]],\"\")","v":""},{"$f":"IF(Table_PI[[#This Row],[Manufacturer]]=\"\",\"\",Table_PI[[#This Row],[Manufacturer]])","v":""},{"$f":"IF(Table_PI[[#This Row],[Model Number]]=\"\",\"\",Table_PI[[#This Row],[Model Number]])","v":""},{"$f":"IF(Table_PI[[#This Row],[Serial Number(s)]]=\"\",\"\",Table_PI[[#This Row],[Serial Number(s)]])","v":""},null,{"$f":"IF(Table_PI[[#This Row],[Size]]=\"\",\"\",Table_PI[[#This Row],[Size]])","v":""},null,{"$f":"IFERROR(IF(AND(MeasureCalc(Table_PI[[#This Row],[Hide:\nFormula Name]],Table_SummaryPI[[#This Row],[Quantity]],Table_PI[[#This Row],[List 1]],Table_PI[[#This Row],[List 2]],Table_PI[[#This Row],[List 3]],Table_PI[[#This Row],[Size]],Table_PI[[#This Row],[Input 1]],Table_PI[[#This Row],[Input 2]],Table_PI[[#This Row],[Input 3]],Table_PI[[#This Row],[Input 4]],'Customer Information'!$AR$12,100,ROW())<>0,MeasureCalc(Table_PI[[#This Row],[Hide:\nFormula Name]],Table_SummaryPI[[#This Row],[Quantity]],Table_PI[[#This Row],[List 1]],Table_PI[[#This Row],[List 2]],Table_PI[[#This Row],[List 3]],Table_PI[[#This Row],[Size]],Table_PI[[#This Row],[Input 1]],Table_PI[[#This Row],[Input 2]],Table_PI[[#This Row],[Input 3]],Table_PI[[#This Row],[Input 4]],'Customer Information'!$AR$12,100,ROW())<>\"No Rebate\"),MeasureCalc(Table_PI[[#This Row],[Hide:\nFormula Name]],Table_SummaryPI[[#This Row],[Quantity]],Table_PI[[#This Row],[List 1]],Table_PI[[#This Row],[List 2]],Table_PI[[#This Row],[List 3]],Table_PI[[#This Row],[Size]],Table_PI[[#This Row],[Input 1]],Table_PI[[#This Row],[Input 2]],Table_PI[[#This Row],[Input 3]],Table_PI[[#This Row],[Input 4]],'Customer Information'!$AR$12,100,ROW()),\"\"),\"\")","v":""},{"$f":"IF(Table_PI[[#This Row],[Input 1]]<>\"\",Table_PI[[#This Row],[Input 1]],\"\")","v":""},null,{"$f":"IFERROR(IF(AND(MeasureCalc(Table_PI[[#This Row],[Hide:\nFormula Name]],Table_SummaryPI[[#This Row],[Quantity]],Table_PI[[#This Row],[List 1]],Table_PI[[#This Row],[List 2]],Table_PI[[#This Row],[List 3]],Table_PI[[#This Row],[Size]],Table_PI[[#This Row],[Input 1]],Table_PI[[#This Row],[Input 2]],Table_PI[[#This Row],[Input 3]],Table_PI[[#This Row],[Input 4]],'Customer Information'!$AR$12,101,ROW())<>0,MeasureCalc(Table_PI[[#This Row],[Hide:\nFormula Name]],Table_SummaryPI[[#This Row],[Quantity]],Table_PI[[#This Row],[List 1]],Table_PI[[#This Row],[List 2]],Table_PI[[#This Row],[List 3]],Table_PI[[#This Row],[Size]],Table_PI[[#This Row],[Input 1]],Table_PI[[#This Row],[Input 2]],Table_PI[[#This Row],[Input 3]],Table_PI[[#This Row],[Input 4]],'Customer Information'!$AR$12,101,ROW())<>\"No Rebate\"),MeasureCalc(Table_PI[[#This Row],[Hide:\nFormula Name]],Table_SummaryPI[[#This Row],[Quantity]],Table_PI[[#This Row],[List 1]],Table_PI[[#This Row],[List 2]],Table_PI[[#This Row],[List 3]],Table_PI[[#This Row],[Size]],Table_PI[[#This Row],[Input 1]],Table_PI[[#This Row],[Input 2]],Table_PI[[#This Row],[Input 3]],Table_PI[[#This Row],[Input 4]],'Customer Information'!$AR$12,101,ROW()),\"\"),\"\")","v":""},{"$f":"IF(Table_PI[[#This Row],[Input 2]]<>\"\",Table_PI[[#This Row],[Input 2]],\"\")","v":""},null,{"$f":"IFERROR(IF(AND(MeasureCalc(Table_PI[[#This Row],[Hide:\nFormula Name]],Table_SummaryPI[[#This Row],[Quantity]],Table_PI[[#This Row],[List 1]],Table_PI[[#This Row],[List 2]],Table_PI[[#This Row],[List 3]],Table_PI[[#This Row],[Size]],Table_PI[[#This Row],[Input 1]],Table_PI[[#This Row],[Input 2]],Table_PI[[#This Row],[Input 3]],Table_PI[[#This Row],[Input 4]],'Customer Information'!$AR$12,102,ROW())<>0,MeasureCalc(Table_PI[[#This Row],[Hide:\nFormula Name]],Table_SummaryPI[[#This Row],[Quantity]],Table_PI[[#This Row],[List 1]],Table_PI[[#This Row],[List 2]],Table_PI[[#This Row],[List 3]],Table_PI[[#This Row],[Size]],Table_PI[[#This Row],[Input 1]],Table_PI[[#This Row],[Input 2]],Table_PI[[#This Row],[Input 3]],Table_PI[[#This Row],[Input 4]],'Customer Information'!$AR$12,102,ROW())<>\"No Rebate\"),MeasureCalc(Table_PI[[#This Row],[Hide:\nFormula Name]],Table_SummaryPI[[#This Row],[Quantity]],Table_PI[[#This Row],[List 1]],Table_PI[[#This Row],[List 2]],Table_PI[[#This Row],[List 3]],Table_PI[[#This Row],[Size]],Table_PI[[#This Row],[Input 1]],Table_PI[[#This Row],[Input 2]],Table_PI[[#This Row],[Input 3]],Table_PI[[#This Row],[Input 4]],'Customer Information'!$AR$12,102,ROW()),\"\"),\"\")","v":""},{"$f":"IF(Table_PI[[#This Row],[Input 3]]<>\"\",Table_PI[[#This Row],[Input 3]],\"\")","v":""},null,{"$f":"IFERROR(IF(AND(MeasureCalc(Table_PI[[#This Row],[Hide:\nFormula Name]],Table_SummaryPI[[#This Row],[Quantity]],Table_PI[[#This Row],[List 1]],Table_PI[[#This Row],[List 2]],Table_PI[[#This Row],[List 3]],Table_PI[[#This Row],[Size]],Table_PI[[#This Row],[Input 1]],Table_PI[[#This Row],[Input 2]],Table_PI[[#This Row],[Input 3]],Table_PI[[#This Row],[Input 4]],'Customer Information'!$AR$12,103,ROW())<>0,MeasureCalc(Table_PI[[#This Row],[Hide:\nFormula Name]],Table_SummaryPI[[#This Row],[Quantity]],Table_PI[[#This Row],[List 1]],Table_PI[[#This Row],[List 2]],Table_PI[[#This Row],[List 3]],Table_PI[[#This Row],[Size]],Table_PI[[#This Row],[Input 1]],Table_PI[[#This Row],[Input 2]],Table_PI[[#This Row],[Input 3]],Table_PI[[#This Row],[Input 4]],'Customer Information'!$AR$12,103,ROW())<>\"No Rebate\"),MeasureCalc(Table_PI[[#This Row],[Hide:\nFormula Name]],Table_SummaryPI[[#This Row],[Quantity]],Table_PI[[#This Row],[List 1]],Table_PI[[#This Row],[List 2]],Table_PI[[#This Row],[List 3]],Table_PI[[#This Row],[Size]],Table_PI[[#This Row],[Input 1]],Table_PI[[#This Row],[Input 2]],Table_PI[[#This Row],[Input 3]],Table_PI[[#This Row],[Input 4]],'Customer Information'!$AR$12,103,ROW()),\"\"),\"\")","v":""},{"$f":"IF(Table_PI[[#This Row],[Input 4]]<>\"\",Table_PI[[#This Row],[Input 4]],\"\")","v":""},{"$f":"IF(Table_PI[[#This Row],[Quantity]]=\"\",\"\",Table_PI[[#This Row],[Quantity]])","v":""},{"$f":"IF(Table_PI[[#This Row],[Notes]]=\"\",\"\",Table_PI[[#This Row],[Notes]])","v":""},{"$f":"IF(OR(Table_PI[[#This Row],[Hide:\nBaseline kWh]]=\"\",Table_PI[[#This Row],[Hide:\nBaseline kWh]]=0),\"\",Table_PI[[#This Row],[Hide:\nBaseline kWh]])","v":""},{"$f":"IF(OR(Table_PI[[#This Row],[Hide:\nBaseline kW]]=\"\",Table_PI[[#This Row],[Hide:\nBaseline kW]]=0),\"\",Table_PI[[#This Row],[Hide:\nBaseline kW]])","v":""},{"$f":"IF(OR(Table_PI[[#This Row],[Hide:\nProposed kWh]]=\"\",Table_PI[[#This Row],[Hide:\nProposed kWh]]=0),\"\",Table_PI[[#This Row],[Hide:\nProposed kWh]])","v":""},{"$f":"IF(OR(Table_PI[[#This Row],[Hide:\nProposed kW]]=\"\",Table_PI[[#This Row],[Hide:\nProposed kW]]=0),\"\",Table_PI[[#This Row],[Hide:\nProposed kW]])","v":""},{"$f":"IF(OR(Table_PI[[#This Row],[Rebate]]=\"\",Table_PI[[#This Row],[Rebate]]=0),\"\",Table_PI[[#This Row],[Rebate]])","v":""},{"$f":"IF(OR(Table_PI[[#This Row],[Hide:\nIncremental Cost]]=\"\",Table_PI[[#This Row],[Hide:\nIncremental Cost]]=0),\"\",Table_PI[[#This Row],[Hide:\nIncremental Cost]])","v":""},{"$f":"IFERROR(IF(Table_SummaryPI[[#This Row],[kWhSavings]]=\"\",\"\",ROUND(Table_SummaryPI[[#This Row],[kWhSavings]]/$AG$401*'Customer Information'!$BC$17,2)),0)","v":""},{"$f":"IF(OR(Table_PI[[#This Row],[Annual kWh]]=\"\",Table_PI[[#This Row],[Annual kWh]]=0),\"\",Table_PI[[#This Row],[Annual kWh]])","v":""},{"$f":"IF(OR(Table_PI[[#This Row],[Peak kW]]=\"\",Table_PI[[#This Row],[Peak kW]]=0),\"\",Table_PI[[#This Row],[Peak kW]])","v":""},{"$f":"IFERROR(IF(Table_SummaryPI[[#This Row],[kWhSavings]]=\"\",\"\",$AU$9*Table_SummaryPI[[#This Row],[kWhSavings]]),0)","v":""},{"$f":"IFERROR(IF(Table_SummaryPI[[#This Row],[kWhSavings]]=\"\",\"\",$AU$14*Table_SummaryPI[[#This Row],[kWhSavings]]),0)","v":""},{"$f":"IFERROR(IF(Table_SummaryPI[[#This Row],[kWhSavings]]=\"\",\"\",$AU$18*Table_SummaryPI[[#This Row],[kWhSavings]]),0)","v":""},{"$f":"IFERROR(IF(Table_SummaryPI[[#This Row],[kWhSavings]]=\"\",\"\",$AU$22*Table_SummaryPI[[#This Row],[kWhSavings]]),0)","v":""},{"$f":"IFERROR(IF(MeasureCalc(Table_PI[[#This Row],[Hide:\nFormula Name]],Table_SummaryPI[[#This Row],[Quantity]],Table_PI[[#This Row],[List 1]],Table_PI[[#This Row],[List 2]],Table_PI[[#This Row],[List 3]],Table_PI[[#This Row],[Size]],Table_PI[[#This Row],[Input 1]],Table_PI[[#This Row],[Input 2]],Table_PI[[#This Row],[Input 3]],Table_PI[[#This Row],[Input 4]],'Customer Information'!$AR$12,200,ROW())<>\"No Rebate\",MeasureCalc(Table_PI[[#This Row],[Hide:\nFormula Name]],Table_SummaryPI[[#This Row],[Quantity]],Table_PI[[#This Row],[List 1]],Table_PI[[#This Row],[List 2]],Table_PI[[#This Row],[List 3]],Table_PI[[#This Row],[Size]],Table_PI[[#This Row],[Input 1]],Table_PI[[#This Row],[Input 2]],Table_PI[[#This Row],[Input 3]],Table_PI[[#This Row],[Input 4]],'Customer Information'!$AR$12,200,ROW()),\"\"),\"\")","v":""},{"$f":"IFERROR(IF(MeasureCalc(Table_PI[[#This Row],[Hide:\nFormula Name]],Table_SummaryPI[[#This Row],[Quantity]],Table_PI[[#This Row],[List 1]],Table_PI[[#This Row],[List 2]],Table_PI[[#This Row],[List 3]],Table_PI[[#This Row],[Size]],Table_PI[[#This Row],[Input 1]],Table_PI[[#This Row],[Input 2]],Table_PI[[#This Row],[Input 3]],Table_PI[[#This Row],[Input 4]],'Customer Information'!$AR$12,201,ROW())<>\"No Rebate\",MeasureCalc(Table_PI[[#This Row],[Hide:\nFormula Name]],Table_SummaryPI[[#This Row],[Quantity]],Table_PI[[#This Row],[List 1]],Table_PI[[#This Row],[List 2]],Table_PI[[#This Row],[List 3]],Table_PI[[#This Row],[Size]],Table_PI[[#This Row],[Input 1]],Table_PI[[#This Row],[Input 2]],Table_PI[[#This Row],[Input 3]],Table_PI[[#This Row],[Input 4]],'Customer Information'!$AR$12,201,ROW()),\"\"),\"\")","v":""}]
[{"$f":"Table_PI[[#This Row],[Line No.]]","v":""},{"$f":"IF(Table_SummaryPI[[#This Row],[MeassureCategory]]<>\"\",CONCATENATE(Table_SummaryPI[[#This Row],[MeassureCategory]],  \" - \", Table_SummaryPI[[#This Row],[ProposedMeasureCategory]],  \" - \", TEXT(Table_SummaryPI[[#This Row],[Size]],\"#,##0.00\"),\" \",Table_SummaryPI[[#This Row],[SizeUnit]]),\"\")","v":""},{"$f":"SUBSTITUTE(Table_PI[[#This Row],[Measure]],\"     \",\"\",1)","v":""},{"$f":"IF(Table_PI[[#This Row],[List 1]]<>\"\",Table_PI[[#This Row],[List 1]],\"\")","v":""},{"$f":"IF(Table_PI[[#This Row],[List 2]]<>\"\",Table_PI[[#This Row],[List 2]],\"\")","v":""},{"$f":"IF(Table_PI[[#This Row],[List 3]]<>\"\",Table_PI[[#This Row],[List 3]],\"\")","v":""},{"$f":"IF(Table_PI[[#This Row],[Manufacturer]]=\"\",\"\",Table_PI[[#This Row],[Manufacturer]])","v":""},{"$f":"IF(Table_PI[[#This Row],[Model Number]]=\"\",\"\",Table_PI[[#This Row],[Model Number]])","v":""},{"$f":"IF(Table_PI[[#This Row],[Serial Number(s)]]=\"\",\"\",Table_PI[[#This Row],[Serial Number(s)]])","v":""},null,{"$f":"IF(Table_PI[[#This Row],[Size]]=\"\",\"\",Table_PI[[#This Row],[Size]])","v":""},null,{"$f":"IFERROR(IF(AND(MeasureCalc(Table_PI[[#This Row],[Hide:\nFormula Name]],Table_SummaryPI[[#This Row],[Quantity]],Table_PI[[#This Row],[List 1]],Table_PI[[#This Row],[List 2]],Table_PI[[#This Row],[List 3]],Table_PI[[#This Row],[Size]],Table_PI[[#This Row],[Input 1]],Table_PI[[#This Row],[Input 2]],Table_PI[[#This Row],[Input 3]],Table_PI[[#This Row],[Input 4]],'Customer Information'!$AR$12,100,ROW())<>0,MeasureCalc(Table_PI[[#This Row],[Hide:\nFormula Name]],Table_SummaryPI[[#This Row],[Quantity]],Table_PI[[#This Row],[List 1]],Table_PI[[#This Row],[List 2]],Table_PI[[#This Row],[List 3]],Table_PI[[#This Row],[Size]],Table_PI[[#This Row],[Input 1]],Table_PI[[#This Row],[Input 2]],Table_PI[[#This Row],[Input 3]],Table_PI[[#This Row],[Input 4]],'Customer Information'!$AR$12,100,ROW())<>\"No Rebate\"),MeasureCalc(Table_PI[[#This Row],[Hide:\nFormula Name]],Table_SummaryPI[[#This Row],[Quantity]],Table_PI[[#This Row],[List 1]],Table_PI[[#This Row],[List 2]],Table_PI[[#This Row],[List 3]],Table_PI[[#This Row],[Size]],Table_PI[[#This Row],[Input 1]],Table_PI[[#This Row],[Input 2]],Table_PI[[#This Row],[Input 3]],Table_PI[[#This Row],[Input 4]],'Customer Information'!$AR$12,100,ROW()),\"\"),\"\")","v":""},{"$f":"IF(Table_PI[[#This Row],[Input 1]]<>\"\",Table_PI[[#This Row],[Input 1]],\"\")","v":""},null,{"$f":"IFERROR(IF(AND(MeasureCalc(Table_PI[[#This Row],[Hide:\nFormula Name]],Table_SummaryPI[[#This Row],[Quantity]],Table_PI[[#This Row],[List 1]],Table_PI[[#This Row],[List 2]],Table_PI[[#This Row],[List 3]],Table_PI[[#This Row],[Size]],Table_PI[[#This Row],[Input 1]],Table_PI[[#This Row],[Input 2]],Table_PI[[#This Row],[Input 3]],Table_PI[[#This Row],[Input 4]],'Customer Information'!$AR$12,101,ROW())<>0,MeasureCalc(Table_PI[[#This Row],[Hide:\nFormula Name]],Table_SummaryPI[[#This Row],[Quantity]],Table_PI[[#This Row],[List 1]],Table_PI[[#This Row],[List 2]],Table_PI[[#This Row],[List 3]],Table_PI[[#This Row],[Size]],Table_PI[[#This Row],[Input 1]],Table_PI[[#This Row],[Input 2]],Table_PI[[#This Row],[Input 3]],Table_PI[[#This Row],[Input 4]],'Customer Information'!$AR$12,101,ROW())<>\"No Rebate\"),MeasureCalc(Table_PI[[#This Row],[Hide:\nFormula Name]],Table_SummaryPI[[#This Row],[Quantity]],Table_PI[[#This Row],[List 1]],Table_PI[[#This Row],[List 2]],Table_PI[[#This Row],[List 3]],Table_PI[[#This Row],[Size]],Table_PI[[#This Row],[Input 1]],Table_PI[[#This Row],[Input 2]],Table_PI[[#This Row],[Input 3]],Table_PI[[#This Row],[Input 4]],'Customer Information'!$AR$12,101,ROW()),\"\"),\"\")","v":""},{"$f":"IF(Table_PI[[#This Row],[Input 2]]<>\"\",Table_PI[[#This Row],[Input 2]],\"\")","v":""},null,{"$f":"IFERROR(IF(AND(MeasureCalc(Table_PI[[#This Row],[Hide:\nFormula Name]],Table_SummaryPI[[#This Row],[Quantity]],Table_PI[[#This Row],[List 1]],Table_PI[[#This Row],[List 2]],Table_PI[[#This Row],[List 3]],Table_PI[[#This Row],[Size]],Table_PI[[#This Row],[Input 1]],Table_PI[[#This Row],[Input 2]],Table_PI[[#This Row],[Input 3]],Table_PI[[#This Row],[Input 4]],'Customer Information'!$AR$12,102,ROW())<>0,MeasureCalc(Table_PI[[#This Row],[Hide:\nFormula Name]],Table_SummaryPI[[#This Row],[Quantity]],Table_PI[[#This Row],[List 1]],Table_PI[[#This Row],[List 2]],Table_PI[[#This Row],[List 3]],Table_PI[[#This Row],[Size]],Table_PI[[#This Row],[Input 1]],Table_PI[[#This Row],[Input 2]],Table_PI[[#This Row],[Input 3]],Table_PI[[#This Row],[Input 4]],'Customer Information'!$AR$12,102,ROW())<>\"No Rebate\"),MeasureCalc(Table_PI[[#This Row],[Hide:\nFormula Name]],Table_SummaryPI[[#This Row],[Quantity]],Table_PI[[#This Row],[List 1]],Table_PI[[#This Row],[List 2]],Table_PI[[#This Row],[List 3]],Table_PI[[#This Row],[Size]],Table_PI[[#This Row],[Input 1]],Table_PI[[#This Row],[Input 2]],Table_PI[[#This Row],[Input 3]],Table_PI[[#This Row],[Input 4]],'Customer Information'!$AR$12,102,ROW()),\"\"),\"\")","v":""},{"$f":"IF(Table_PI[[#This Row],[Input 3]]<>\"\",Table_PI[[#This Row],[Input 3]],\"\")","v":""},null,{"$f":"IFERROR(IF(AND(MeasureCalc(Table_PI[[#This Row],[Hide:\nFormula Name]],Table_SummaryPI[[#This Row],[Quantity]],Table_PI[[#This Row],[List 1]],Table_PI[[#This Row],[List 2]],Table_PI[[#This Row],[List 3]],Table_PI[[#This Row],[Size]],Table_PI[[#This Row],[Input 1]],Table_PI[[#This Row],[Input 2]],Table_PI[[#This Row],[Input 3]],Table_PI[[#This Row],[Input 4]],'Customer Information'!$AR$12,103,ROW())<>0,MeasureCalc(Table_PI[[#This Row],[Hide:\nFormula Name]],Table_SummaryPI[[#This Row],[Quantity]],Table_PI[[#This Row],[List 1]],Table_PI[[#This Row],[List 2]],Table_PI[[#This Row],[List 3]],Table_PI[[#This Row],[Size]],Table_PI[[#This Row],[Input 1]],Table_PI[[#This Row],[Input 2]],Table_PI[[#This Row],[Input 3]],Table_PI[[#This Row],[Input 4]],'Customer Information'!$AR$12,103,ROW())<>\"No Rebate\"),MeasureCalc(Table_PI[[#This Row],[Hide:\nFormula Name]],Table_SummaryPI[[#This Row],[Quantity]],Table_PI[[#This Row],[List 1]],Table_PI[[#This Row],[List 2]],Table_PI[[#This Row],[List 3]],Table_PI[[#This Row],[Size]],Table_PI[[#This Row],[Input 1]],Table_PI[[#This Row],[Input 2]],Table_PI[[#This Row],[Input 3]],Table_PI[[#This Row],[Input 4]],'Customer Information'!$AR$12,103,ROW()),\"\"),\"\")","v":""},{"$f":"IF(Table_PI[[#This Row],[Input 4]]<>\"\",Table_PI[[#This Row],[Input 4]],\"\")","v":""},{"$f":"IF(Table_PI[[#This Row],[Quantity]]=\"\",\"\",Table_PI[[#This Row],[Quantity]])","v":""},{"$f":"IF(Table_PI[[#This Row],[Notes]]=\"\",\"\",Table_PI[[#This Row],[Notes]])","v":""},{"$f":"IF(OR(Table_PI[[#This Row],[Hide:\nBaseline kWh]]=\"\",Table_PI[[#This Row],[Hide:\nBaseline kWh]]=0),\"\",Table_PI[[#This Row],[Hide:\nBaseline kWh]])","v":""},{"$f":"IF(OR(Table_PI[[#This Row],[Hide:\nBaseline kW]]=\"\",Table_PI[[#This Row],[Hide:\nBaseline kW]]=0),\"\",Table_PI[[#This Row],[Hide:\nBaseline kW]])","v":""},{"$f":"IF(OR(Table_PI[[#This Row],[Hide:\nProposed kWh]]=\"\",Table_PI[[#This Row],[Hide:\nProposed kWh]]=0),\"\",Table_PI[[#This Row],[Hide:\nProposed kWh]])","v":""},{"$f":"IF(OR(Table_PI[[#This Row],[Hide:\nProposed kW]]=\"\",Table_PI[[#This Row],[Hide:\nProposed kW]]=0),\"\",Table_PI[[#This Row],[Hide:\nProposed kW]])","v":""},{"$f":"IF(OR(Table_PI[[#This Row],[Rebate]]=\"\",Table_PI[[#This Row],[Rebate]]=0),\"\",Table_PI[[#This Row],[Rebate]])","v":""},{"$f":"IF(OR(Table_PI[[#This Row],[Hide:\nIncremental Cost]]=\"\",Table_PI[[#This Row],[Hide:\nIncremental Cost]]=0),\"\",Table_PI[[#This Row],[Hide:\nIncremental Cost]])","v":""},{"$f":"IFERROR(IF(Table_SummaryPI[[#This Row],[kWhSavings]]=\"\",\"\",ROUND(Table_SummaryPI[[#This Row],[kWhSavings]]/$AG$401*'Customer Information'!$BC$17,2)),0)","v":""},{"$f":"IF(OR(Table_PI[[#This Row],[Annual kWh]]=\"\",Table_PI[[#This Row],[Annual kWh]]=0),\"\",Table_PI[[#This Row],[Annual kWh]])","v":""},{"$f":"IF(OR(Table_PI[[#This Row],[Peak kW]]=\"\",Table_PI[[#This Row],[Peak kW]]=0),\"\",Table_PI[[#This Row],[Peak kW]])","v":""},{"$f":"IFERROR(IF(Table_SummaryPI[[#This Row],[kWhSavings]]=\"\",\"\",$AU$9*Table_SummaryPI[[#This Row],[kWhSavings]]),0)","v":""},{"$f":"IFERROR(IF(Table_SummaryPI[[#This Row],[kWhSavings]]=\"\",\"\",$AU$14*Table_SummaryPI[[#This Row],[kWhSavings]]),0)","v":""},{"$f":"IFERROR(IF(Table_SummaryPI[[#This Row],[kWhSavings]]=\"\",\"\",$AU$18*Table_SummaryPI[[#This Row],[kWhSavings]]),0)","v":""},{"$f":"IFERROR(IF(Table_SummaryPI[[#This Row],[kWhSavings]]=\"\",\"\",$AU$22*Table_SummaryPI[[#This Row],[kWhSavings]]),0)","v":""},{"$f":"IFERROR(IF(MeasureCalc(Table_PI[[#This Row],[Hide:\nFormula Name]],Table_SummaryPI[[#This Row],[Quantity]],Table_PI[[#This Row],[List 1]],Table_PI[[#This Row],[List 2]],Table_PI[[#This Row],[List 3]],Table_PI[[#This Row],[Size]],Table_PI[[#This Row],[Input 1]],Table_PI[[#This Row],[Input 2]],Table_PI[[#This Row],[Input 3]],Table_PI[[#This Row],[Input 4]],'Customer Information'!$AR$12,200,ROW())<>\"No Rebate\",MeasureCalc(Table_PI[[#This Row],[Hide:\nFormula Name]],Table_SummaryPI[[#This Row],[Quantity]],Table_PI[[#This Row],[List 1]],Table_PI[[#This Row],[List 2]],Table_PI[[#This Row],[List 3]],Table_PI[[#This Row],[Size]],Table_PI[[#This Row],[Input 1]],Table_PI[[#This Row],[Input 2]],Table_PI[[#This Row],[Input 3]],Table_PI[[#This Row],[Input 4]],'Customer Information'!$AR$12,200,ROW()),\"\"),\"\")","v":""},{"$f":"IFERROR(IF(MeasureCalc(Table_PI[[#This Row],[Hide:\nFormula Name]],Table_SummaryPI[[#This Row],[Quantity]],Table_PI[[#This Row],[List 1]],Table_PI[[#This Row],[List 2]],Table_PI[[#This Row],[List 3]],Table_PI[[#This Row],[Size]],Table_PI[[#This Row],[Input 1]],Table_PI[[#This Row],[Input 2]],Table_PI[[#This Row],[Input 3]],Table_PI[[#This Row],[Input 4]],'Customer Information'!$AR$12,201,ROW())<>\"No Rebate\",MeasureCalc(Table_PI[[#This Row],[Hide:\nFormula Name]],Table_SummaryPI[[#This Row],[Quantity]],Table_PI[[#This Row],[List 1]],Table_PI[[#This Row],[List 2]],Table_PI[[#This Row],[List 3]],Table_PI[[#This Row],[Size]],Table_PI[[#This Row],[Input 1]],Table_PI[[#This Row],[Input 2]],Table_PI[[#This Row],[Input 3]],Table_PI[[#This Row],[Input 4]],'Customer Information'!$AR$12,201,ROW()),\"\"),\"\")","v":""}]
[{"$f":"Table_PI[[#This Row],[Line No.]]","v":""},{"$f":"IF(Table_SummaryPI[[#This Row],[MeassureCategory]]<>\"\",CONCATENATE(Table_SummaryPI[[#This Row],[MeassureCategory]],  \" - \", Table_SummaryPI[[#This Row],[ProposedMeasureCategory]],  \" - \", TEXT(Table_SummaryPI[[#This Row],[Size]],\"#,##0.00\"),\" \",Table_SummaryPI[[#This Row],[SizeUnit]]),\"\")","v":""},{"$f":"SUBSTITUTE(Table_PI[[#This Row],[Measure]],\"     \",\"\",1)","v":""},{"$f":"IF(Table_PI[[#This Row],[List 1]]<>\"\",Table_PI[[#This Row],[List 1]],\"\")","v":""},{"$f":"IF(Table_PI[[#This Row],[List 2]]<>\"\",Table_PI[[#This Row],[List 2]],\"\")","v":""},{"$f":"IF(Table_PI[[#This Row],[List 3]]<>\"\",Table_PI[[#This Row],[List 3]],\"\")","v":""},{"$f":"IF(Table_PI[[#This Row],[Manufacturer]]=\"\",\"\",Table_PI[[#This Row],[Manufacturer]])","v":""},{"$f":"IF(Table_PI[[#This Row],[Model Number]]=\"\",\"\",Table_PI[[#This Row],[Model Number]])","v":""},{"$f":"IF(Table_PI[[#This Row],[Serial Number(s)]]=\"\",\"\",Table_PI[[#This Row],[Serial Number(s)]])","v":""},null,{"$f":"IF(Table_PI[[#This Row],[Size]]=\"\",\"\",Table_PI[[#This Row],[Size]])","v":""},null,{"$f":"IFERROR(IF(AND(MeasureCalc(Table_PI[[#This Row],[Hide:\nFormula Name]],Table_SummaryPI[[#This Row],[Quantity]],Table_PI[[#This Row],[List 1]],Table_PI[[#This Row],[List 2]],Table_PI[[#This Row],[List 3]],Table_PI[[#This Row],[Size]],Table_PI[[#This Row],[Input 1]],Table_PI[[#This Row],[Input 2]],Table_PI[[#This Row],[Input 3]],Table_PI[[#This Row],[Input 4]],'Customer Information'!$AR$12,100,ROW())<>0,MeasureCalc(Table_PI[[#This Row],[Hide:\nFormula Name]],Table_SummaryPI[[#This Row],[Quantity]],Table_PI[[#This Row],[List 1]],Table_PI[[#This Row],[List 2]],Table_PI[[#This Row],[List 3]],Table_PI[[#This Row],[Size]],Table_PI[[#This Row],[Input 1]],Table_PI[[#This Row],[Input 2]],Table_PI[[#This Row],[Input 3]],Table_PI[[#This Row],[Input 4]],'Customer Information'!$AR$12,100,ROW())<>\"No Rebate\"),MeasureCalc(Table_PI[[#This Row],[Hide:\nFormula Name]],Table_SummaryPI[[#This Row],[Quantity]],Table_PI[[#This Row],[List 1]],Table_PI[[#This Row],[List 2]],Table_PI[[#This Row],[List 3]],Table_PI[[#This Row],[Size]],Table_PI[[#This Row],[Input 1]],Table_PI[[#This Row],[Input 2]],Table_PI[[#This Row],[Input 3]],Table_PI[[#This Row],[Input 4]],'Customer Information'!$AR$12,100,ROW()),\"\"),\"\")","v":""},{"$f":"IF(Table_PI[[#This Row],[Input 1]]<>\"\",Table_PI[[#This Row],[Input 1]],\"\")","v":""},null,{"$f":"IFERROR(IF(AND(MeasureCalc(Table_PI[[#This Row],[Hide:\nFormula Name]],Table_SummaryPI[[#This Row],[Quantity]],Table_PI[[#This Row],[List 1]],Table_PI[[#This Row],[List 2]],Table_PI[[#This Row],[List 3]],Table_PI[[#This Row],[Size]],Table_PI[[#This Row],[Input 1]],Table_PI[[#This Row],[Input 2]],Table_PI[[#This Row],[Input 3]],Table_PI[[#This Row],[Input 4]],'Customer Information'!$AR$12,101,ROW())<>0,MeasureCalc(Table_PI[[#This Row],[Hide:\nFormula Name]],Table_SummaryPI[[#This Row],[Quantity]],Table_PI[[#This Row],[List 1]],Table_PI[[#This Row],[List 2]],Table_PI[[#This Row],[List 3]],Table_PI[[#This Row],[Size]],Table_PI[[#This Row],[Input 1]],Table_PI[[#This Row],[Input 2]],Table_PI[[#This Row],[Input 3]],Table_PI[[#This Row],[Input 4]],'Customer Information'!$AR$12,101,ROW())<>\"No Rebate\"),MeasureCalc(Table_PI[[#This Row],[Hide:\nFormula Name]],Table_SummaryPI[[#This Row],[Quantity]],Table_PI[[#This Row],[List 1]],Table_PI[[#This Row],[List 2]],Table_PI[[#This Row],[List 3]],Table_PI[[#This Row],[Size]],Table_PI[[#This Row],[Input 1]],Table_PI[[#This Row],[Input 2]],Table_PI[[#This Row],[Input 3]],Table_PI[[#This Row],[Input 4]],'Customer Information'!$AR$12,101,ROW()),\"\"),\"\")","v":""},{"$f":"IF(Table_PI[[#This Row],[Input 2]]<>\"\",Table_PI[[#This Row],[Input 2]],\"\")","v":""},null,{"$f":"IFERROR(IF(AND(MeasureCalc(Table_PI[[#This Row],[Hide:\nFormula Name]],Table_SummaryPI[[#This Row],[Quantity]],Table_PI[[#This Row],[List 1]],Table_PI[[#This Row],[List 2]],Table_PI[[#This Row],[List 3]],Table_PI[[#This Row],[Size]],Table_PI[[#This Row],[Input 1]],Table_PI[[#This Row],[Input 2]],Table_PI[[#This Row],[Input 3]],Table_PI[[#This Row],[Input 4]],'Customer Information'!$AR$12,102,ROW())<>0,MeasureCalc(Table_PI[[#This Row],[Hide:\nFormula Name]],Table_SummaryPI[[#This Row],[Quantity]],Table_PI[[#This Row],[List 1]],Table_PI[[#This Row],[List 2]],Table_PI[[#This Row],[List 3]],Table_PI[[#This Row],[Size]],Table_PI[[#This Row],[Input 1]],Table_PI[[#This Row],[Input 2]],Table_PI[[#This Row],[Input 3]],Table_PI[[#This Row],[Input 4]],'Customer Information'!$AR$12,102,ROW())<>\"No Rebate\"),MeasureCalc(Table_PI[[#This Row],[Hide:\nFormula Name]],Table_SummaryPI[[#This Row],[Quantity]],Table_PI[[#This Row],[List 1]],Table_PI[[#This Row],[List 2]],Table_PI[[#This Row],[List 3]],Table_PI[[#This Row],[Size]],Table_PI[[#This Row],[Input 1]],Table_PI[[#This Row],[Input 2]],Table_PI[[#This Row],[Input 3]],Table_PI[[#This Row],[Input 4]],'Customer Information'!$AR$12,102,ROW()),\"\"),\"\")","v":""},{"$f":"IF(Table_PI[[#This Row],[Input 3]]<>\"\",Table_PI[[#This Row],[Input 3]],\"\")","v":""},null,{"$f":"IFERROR(IF(AND(MeasureCalc(Table_PI[[#This Row],[Hide:\nFormula Name]],Table_SummaryPI[[#This Row],[Quantity]],Table_PI[[#This Row],[List 1]],Table_PI[[#This Row],[List 2]],Table_PI[[#This Row],[List 3]],Table_PI[[#This Row],[Size]],Table_PI[[#This Row],[Input 1]],Table_PI[[#This Row],[Input 2]],Table_PI[[#This Row],[Input 3]],Table_PI[[#This Row],[Input 4]],'Customer Information'!$AR$12,103,ROW())<>0,MeasureCalc(Table_PI[[#This Row],[Hide:\nFormula Name]],Table_SummaryPI[[#This Row],[Quantity]],Table_PI[[#This Row],[List 1]],Table_PI[[#This Row],[List 2]],Table_PI[[#This Row],[List 3]],Table_PI[[#This Row],[Size]],Table_PI[[#This Row],[Input 1]],Table_PI[[#This Row],[Input 2]],Table_PI[[#This Row],[Input 3]],Table_PI[[#This Row],[Input 4]],'Customer Information'!$AR$12,103,ROW())<>\"No Rebate\"),MeasureCalc(Table_PI[[#This Row],[Hide:\nFormula Name]],Table_SummaryPI[[#This Row],[Quantity]],Table_PI[[#This Row],[List 1]],Table_PI[[#This Row],[List 2]],Table_PI[[#This Row],[List 3]],Table_PI[[#This Row],[Size]],Table_PI[[#This Row],[Input 1]],Table_PI[[#This Row],[Input 2]],Table_PI[[#This Row],[Input 3]],Table_PI[[#This Row],[Input 4]],'Customer Information'!$AR$12,103,ROW()),\"\"),\"\")","v":""},{"$f":"IF(Table_PI[[#This Row],[Input 4]]<>\"\",Table_PI[[#This Row],[Input 4]],\"\")","v":""},{"$f":"IF(Table_PI[[#This Row],[Quantity]]=\"\",\"\",Table_PI[[#This Row],[Quantity]])","v":""},{"$f":"IF(Table_PI[[#This Row],[Notes]]=\"\",\"\",Table_PI[[#This Row],[Notes]])","v":""},{"$f":"IF(OR(Table_PI[[#This Row],[Hide:\nBaseline kWh]]=\"\",Table_PI[[#This Row],[Hide:\nBaseline kWh]]=0),\"\",Table_PI[[#This Row],[Hide:\nBaseline kWh]])","v":""},{"$f":"IF(OR(Table_PI[[#This Row],[Hide:\nBaseline kW]]=\"\",Table_PI[[#This Row],[Hide:\nBaseline kW]]=0),\"\",Table_PI[[#This Row],[Hide:\nBaseline kW]])","v":""},{"$f":"IF(OR(Table_PI[[#This Row],[Hide:\nProposed kWh]]=\"\",Table_PI[[#This Row],[Hide:\nProposed kWh]]=0),\"\",Table_PI[[#This Row],[Hide:\nProposed kWh]])","v":""},{"$f":"IF(OR(Table_PI[[#This Row],[Hide:\nProposed kW]]=\"\",Table_PI[[#This Row],[Hide:\nProposed kW]]=0),\"\",Table_PI[[#This Row],[Hide:\nProposed kW]])","v":""},{"$f":"IF(OR(Table_PI[[#This Row],[Rebate]]=\"\",Table_PI[[#This Row],[Rebate]]=0),\"\",Table_PI[[#This Row],[Rebate]])","v":""},{"$f":"IF(OR(Table_PI[[#This Row],[Hide:\nIncremental Cost]]=\"\",Table_PI[[#This Row],[Hide:\nIncremental Cost]]=0),\"\",Table_PI[[#This Row],[Hide:\nIncremental Cost]])","v":""},{"$f":"IFERROR(IF(Table_SummaryPI[[#This Row],[kWhSavings]]=\"\",\"\",ROUND(Table_SummaryPI[[#This Row],[kWhSavings]]/$AG$401*'Customer Information'!$BC$17,2)),0)","v":""},{"$f":"IF(OR(Table_PI[[#This Row],[Annual kWh]]=\"\",Table_PI[[#This Row],[Annual kWh]]=0),\"\",Table_PI[[#This Row],[Annual kWh]])","v":""},{"$f":"IF(OR(Table_PI[[#This Row],[Peak kW]]=\"\",Table_PI[[#This Row],[Peak kW]]=0),\"\",Table_PI[[#This Row],[Peak kW]])","v":""},{"$f":"IFERROR(IF(Table_SummaryPI[[#This Row],[kWhSavings]]=\"\",\"\",$AU$9*Table_SummaryPI[[#This Row],[kWhSavings]]),0)","v":""},{"$f":"IFERROR(IF(Table_SummaryPI[[#This Row],[kWhSavings]]=\"\",\"\",$AU$14*Table_SummaryPI[[#This Row],[kWhSavings]]),0)","v":""},{"$f":"IFERROR(IF(Table_SummaryPI[[#This Row],[kWhSavings]]=\"\",\"\",$AU$18*Table_SummaryPI[[#This Row],[kWhSavings]]),0)","v":""},{"$f":"IFERROR(IF(Table_SummaryPI[[#This Row],[kWhSavings]]=\"\",\"\",$AU$22*Table_SummaryPI[[#This Row],[kWhSavings]]),0)","v":""},{"$f":"IFERROR(IF(MeasureCalc(Table_PI[[#This Row],[Hide:\nFormula Name]],Table_SummaryPI[[#This Row],[Quantity]],Table_PI[[#This Row],[List 1]],Table_PI[[#This Row],[List 2]],Table_PI[[#This Row],[List 3]],Table_PI[[#This Row],[Size]],Table_PI[[#This Row],[Input 1]],Table_PI[[#This Row],[Input 2]],Table_PI[[#This Row],[Input 3]],Table_PI[[#This Row],[Input 4]],'Customer Information'!$AR$12,200,ROW())<>\"No Rebate\",MeasureCalc(Table_PI[[#This Row],[Hide:\nFormula Name]],Table_SummaryPI[[#This Row],[Quantity]],Table_PI[[#This Row],[List 1]],Table_PI[[#This Row],[List 2]],Table_PI[[#This Row],[List 3]],Table_PI[[#This Row],[Size]],Table_PI[[#This Row],[Input 1]],Table_PI[[#This Row],[Input 2]],Table_PI[[#This Row],[Input 3]],Table_PI[[#This Row],[Input 4]],'Customer Information'!$AR$12,200,ROW()),\"\"),\"\")","v":""},{"$f":"IFERROR(IF(MeasureCalc(Table_PI[[#This Row],[Hide:\nFormula Name]],Table_SummaryPI[[#This Row],[Quantity]],Table_PI[[#This Row],[List 1]],Table_PI[[#This Row],[List 2]],Table_PI[[#This Row],[List 3]],Table_PI[[#This Row],[Size]],Table_PI[[#This Row],[Input 1]],Table_PI[[#This Row],[Input 2]],Table_PI[[#This Row],[Input 3]],Table_PI[[#This Row],[Input 4]],'Customer Information'!$AR$12,201,ROW())<>\"No Rebate\",MeasureCalc(Table_PI[[#This Row],[Hide:\nFormula Name]],Table_SummaryPI[[#This Row],[Quantity]],Table_PI[[#This Row],[List 1]],Table_PI[[#This Row],[List 2]],Table_PI[[#This Row],[List 3]],Table_PI[[#This Row],[Size]],Table_PI[[#This Row],[Input 1]],Table_PI[[#This Row],[Input 2]],Table_PI[[#This Row],[Input 3]],Table_PI[[#This Row],[Input 4]],'Customer Information'!$AR$12,201,ROW()),\"\"),\"\")","v":""}]
[{"$f":"Table_PI[[#This Row],[Line No.]]","v":""},{"$f":"IF(Table_SummaryPI[[#This Row],[MeassureCategory]]<>\"\",CONCATENATE(Table_SummaryPI[[#This Row],[MeassureCategory]],  \" - \", Table_SummaryPI[[#This Row],[ProposedMeasureCategory]],  \" - \", TEXT(Table_SummaryPI[[#This Row],[Size]],\"#,##0.00\"),\" \",Table_SummaryPI[[#This Row],[SizeUnit]]),\"\")","v":""},{"$f":"SUBSTITUTE(Table_PI[[#This Row],[Measure]],\"     \",\"\",1)","v":""},{"$f":"IF(Table_PI[[#This Row],[List 1]]<>\"\",Table_PI[[#This Row],[List 1]],\"\")","v":""},{"$f":"IF(Table_PI[[#This Row],[List 2]]<>\"\",Table_PI[[#This Row],[List 2]],\"\")","v":""},{"$f":"IF(Table_PI[[#This Row],[List 3]]<>\"\",Table_PI[[#This Row],[List 3]],\"\")","v":""},{"$f":"IF(Table_PI[[#This Row],[Manufacturer]]=\"\",\"\",Table_PI[[#This Row],[Manufacturer]])","v":""},{"$f":"IF(Table_PI[[#This Row],[Model Number]]=\"\",\"\",Table_PI[[#This Row],[Model Number]])","v":""},{"$f":"IF(Table_PI[[#This Row],[Serial Number(s)]]=\"\",\"\",Table_PI[[#This Row],[Serial Number(s)]])","v":""},null,{"$f":"IF(Table_PI[[#This Row],[Size]]=\"\",\"\",Table_PI[[#This Row],[Size]])","v":""},null,{"$f":"IFERROR(IF(AND(MeasureCalc(Table_PI[[#This Row],[Hide:\nFormula Name]],Table_SummaryPI[[#This Row],[Quantity]],Table_PI[[#This Row],[List 1]],Table_PI[[#This Row],[List 2]],Table_PI[[#This Row],[List 3]],Table_PI[[#This Row],[Size]],Table_PI[[#This Row],[Input 1]],Table_PI[[#This Row],[Input 2]],Table_PI[[#This Row],[Input 3]],Table_PI[[#This Row],[Input 4]],'Customer Information'!$AR$12,100,ROW())<>0,MeasureCalc(Table_PI[[#This Row],[Hide:\nFormula Name]],Table_SummaryPI[[#This Row],[Quantity]],Table_PI[[#This Row],[List 1]],Table_PI[[#This Row],[List 2]],Table_PI[[#This Row],[List 3]],Table_PI[[#This Row],[Size]],Table_PI[[#This Row],[Input 1]],Table_PI[[#This Row],[Input 2]],Table_PI[[#This Row],[Input 3]],Table_PI[[#This Row],[Input 4]],'Customer Information'!$AR$12,100,ROW())<>\"No Rebate\"),MeasureCalc(Table_PI[[#This Row],[Hide:\nFormula Name]],Table_SummaryPI[[#This Row],[Quantity]],Table_PI[[#This Row],[List 1]],Table_PI[[#This Row],[List 2]],Table_PI[[#This Row],[List 3]],Table_PI[[#This Row],[Size]],Table_PI[[#This Row],[Input 1]],Table_PI[[#This Row],[Input 2]],Table_PI[[#This Row],[Input 3]],Table_PI[[#This Row],[Input 4]],'Customer Information'!$AR$12,100,ROW()),\"\"),\"\")","v":""},{"$f":"IF(Table_PI[[#This Row],[Input 1]]<>\"\",Table_PI[[#This Row],[Input 1]],\"\")","v":""},null,{"$f":"IFERROR(IF(AND(MeasureCalc(Table_PI[[#This Row],[Hide:\nFormula Name]],Table_SummaryPI[[#This Row],[Quantity]],Table_PI[[#This Row],[List 1]],Table_PI[[#This Row],[List 2]],Table_PI[[#This Row],[List 3]],Table_PI[[#This Row],[Size]],Table_PI[[#This Row],[Input 1]],Table_PI[[#This Row],[Input 2]],Table_PI[[#This Row],[Input 3]],Table_PI[[#This Row],[Input 4]],'Customer Information'!$AR$12,101,ROW())<>0,MeasureCalc(Table_PI[[#This Row],[Hide:\nFormula Name]],Table_SummaryPI[[#This Row],[Quantity]],Table_PI[[#This Row],[List 1]],Table_PI[[#This Row],[List 2]],Table_PI[[#This Row],[List 3]],Table_PI[[#This Row],[Size]],Table_PI[[#This Row],[Input 1]],Table_PI[[#This Row],[Input 2]],Table_PI[[#This Row],[Input 3]],Table_PI[[#This Row],[Input 4]],'Customer Information'!$AR$12,101,ROW())<>\"No Rebate\"),MeasureCalc(Table_PI[[#This Row],[Hide:\nFormula Name]],Table_SummaryPI[[#This Row],[Quantity]],Table_PI[[#This Row],[List 1]],Table_PI[[#This Row],[List 2]],Table_PI[[#This Row],[List 3]],Table_PI[[#This Row],[Size]],Table_PI[[#This Row],[Input 1]],Table_PI[[#This Row],[Input 2]],Table_PI[[#This Row],[Input 3]],Table_PI[[#This Row],[Input 4]],'Customer Information'!$AR$12,101,ROW()),\"\"),\"\")","v":""},{"$f":"IF(Table_PI[[#This Row],[Input 2]]<>\"\",Table_PI[[#This Row],[Input 2]],\"\")","v":""},null,{"$f":"IFERROR(IF(AND(MeasureCalc(Table_PI[[#This Row],[Hide:\nFormula Name]],Table_SummaryPI[[#This Row],[Quantity]],Table_PI[[#This Row],[List 1]],Table_PI[[#This Row],[List 2]],Table_PI[[#This Row],[List 3]],Table_PI[[#This Row],[Size]],Table_PI[[#This Row],[Input 1]],Table_PI[[#This Row],[Input 2]],Table_PI[[#This Row],[Input 3]],Table_PI[[#This Row],[Input 4]],'Customer Information'!$AR$12,102,ROW())<>0,MeasureCalc(Table_PI[[#This Row],[Hide:\nFormula Name]],Table_SummaryPI[[#This Row],[Quantity]],Table_PI[[#This Row],[List 1]],Table_PI[[#This Row],[List 2]],Table_PI[[#This Row],[List 3]],Table_PI[[#This Row],[Size]],Table_PI[[#This Row],[Input 1]],Table_PI[[#This Row],[Input 2]],Table_PI[[#This Row],[Input 3]],Table_PI[[#This Row],[Input 4]],'Customer Information'!$AR$12,102,ROW())<>\"No Rebate\"),MeasureCalc(Table_PI[[#This Row],[Hide:\nFormula Name]],Table_SummaryPI[[#This Row],[Quantity]],Table_PI[[#This Row],[List 1]],Table_PI[[#This Row],[List 2]],Table_PI[[#This Row],[List 3]],Table_PI[[#This Row],[Size]],Table_PI[[#This Row],[Input 1]],Table_PI[[#This Row],[Input 2]],Table_PI[[#This Row],[Input 3]],Table_PI[[#This Row],[Input 4]],'Customer Information'!$AR$12,102,ROW()),\"\"),\"\")","v":""},{"$f":"IF(Table_PI[[#This Row],[Input 3]]<>\"\",Table_PI[[#This Row],[Input 3]],\"\")","v":""},null,{"$f":"IFERROR(IF(AND(MeasureCalc(Table_PI[[#This Row],[Hide:\nFormula Name]],Table_SummaryPI[[#This Row],[Quantity]],Table_PI[[#This Row],[List 1]],Table_PI[[#This Row],[List 2]],Table_PI[[#This Row],[List 3]],Table_PI[[#This Row],[Size]],Table_PI[[#This Row],[Input 1]],Table_PI[[#This Row],[Input 2]],Table_PI[[#This Row],[Input 3]],Table_PI[[#This Row],[Input 4]],'Customer Information'!$AR$12,103,ROW())<>0,MeasureCalc(Table_PI[[#This Row],[Hide:\nFormula Name]],Table_SummaryPI[[#This Row],[Quantity]],Table_PI[[#This Row],[List 1]],Table_PI[[#This Row],[List 2]],Table_PI[[#This Row],[List 3]],Table_PI[[#This Row],[Size]],Table_PI[[#This Row],[Input 1]],Table_PI[[#This Row],[Input 2]],Table_PI[[#This Row],[Input 3]],Table_PI[[#This Row],[Input 4]],'Customer Information'!$AR$12,103,ROW())<>\"No Rebate\"),MeasureCalc(Table_PI[[#This Row],[Hide:\nFormula Name]],Table_SummaryPI[[#This Row],[Quantity]],Table_PI[[#This Row],[List 1]],Table_PI[[#This Row],[List 2]],Table_PI[[#This Row],[List 3]],Table_PI[[#This Row],[Size]],Table_PI[[#This Row],[Input 1]],Table_PI[[#This Row],[Input 2]],Table_PI[[#This Row],[Input 3]],Table_PI[[#This Row],[Input 4]],'Customer Information'!$AR$12,103,ROW()),\"\"),\"\")","v":""},{"$f":"IF(Table_PI[[#This Row],[Input 4]]<>\"\",Table_PI[[#This Row],[Input 4]],\"\")","v":""},{"$f":"IF(Table_PI[[#This Row],[Quantity]]=\"\",\"\",Table_PI[[#This Row],[Quantity]])","v":""},{"$f":"IF(Table_PI[[#This Row],[Notes]]=\"\",\"\",Table_PI[[#This Row],[Notes]])","v":""},{"$f":"IF(OR(Table_PI[[#This Row],[Hide:\nBaseline kWh]]=\"\",Table_PI[[#This Row],[Hide:\nBaseline kWh]]=0),\"\",Table_PI[[#This Row],[Hide:\nBaseline kWh]])","v":""},{"$f":"IF(OR(Table_PI[[#This Row],[Hide:\nBaseline kW]]=\"\",Table_PI[[#This Row],[Hide:\nBaseline kW]]=0),\"\",Table_PI[[#This Row],[Hide:\nBaseline kW]])","v":""},{"$f":"IF(OR(Table_PI[[#This Row],[Hide:\nProposed kWh]]=\"\",Table_PI[[#This Row],[Hide:\nProposed kWh]]=0),\"\",Table_PI[[#This Row],[Hide:\nProposed kWh]])","v":""},{"$f":"IF(OR(Table_PI[[#This Row],[Hide:\nProposed kW]]=\"\",Table_PI[[#This Row],[Hide:\nProposed kW]]=0),\"\",Table_PI[[#This Row],[Hide:\nProposed kW]])","v":""},{"$f":"IF(OR(Table_PI[[#This Row],[Rebate]]=\"\",Table_PI[[#This Row],[Rebate]]=0),\"\",Table_PI[[#This Row],[Rebate]])","v":""},{"$f":"IF(OR(Table_PI[[#This Row],[Hide:\nIncremental Cost]]=\"\",Table_PI[[#This Row],[Hide:\nIncremental Cost]]=0),\"\",Table_PI[[#This Row],[Hide:\nIncremental Cost]])","v":""},{"$f":"IFERROR(IF(Table_SummaryPI[[#This Row],[kWhSavings]]=\"\",\"\",ROUND(Table_SummaryPI[[#This Row],[kWhSavings]]/$AG$401*'Customer Information'!$BC$17,2)),0)","v":""},{"$f":"IF(OR(Table_PI[[#This Row],[Annual kWh]]=\"\",Table_PI[[#This Row],[Annual kWh]]=0),\"\",Table_PI[[#This Row],[Annual kWh]])","v":""},{"$f":"IF(OR(Table_PI[[#This Row],[Peak kW]]=\"\",Table_PI[[#This Row],[Peak kW]]=0),\"\",Table_PI[[#This Row],[Peak kW]])","v":""},{"$f":"IFERROR(IF(Table_SummaryPI[[#This Row],[kWhSavings]]=\"\",\"\",$AU$9*Table_SummaryPI[[#This Row],[kWhSavings]]),0)","v":""},{"$f":"IFERROR(IF(Table_SummaryPI[[#This Row],[kWhSavings]]=\"\",\"\",$AU$14*Table_SummaryPI[[#This Row],[kWhSavings]]),0)","v":""},{"$f":"IFERROR(IF(Table_SummaryPI[[#This Row],[kWhSavings]]=\"\",\"\",$AU$18*Table_SummaryPI[[#This Row],[kWhSavings]]),0)","v":""},{"$f":"IFERROR(IF(Table_SummaryPI[[#This Row],[kWhSavings]]=\"\",\"\",$AU$22*Table_SummaryPI[[#This Row],[kWhSavings]]),0)","v":""},{"$f":"IFERROR(IF(MeasureCalc(Table_PI[[#This Row],[Hide:\nFormula Name]],Table_SummaryPI[[#This Row],[Quantity]],Table_PI[[#This Row],[List 1]],Table_PI[[#This Row],[List 2]],Table_PI[[#This Row],[List 3]],Table_PI[[#This Row],[Size]],Table_PI[[#This Row],[Input 1]],Table_PI[[#This Row],[Input 2]],Table_PI[[#This Row],[Input 3]],Table_PI[[#This Row],[Input 4]],'Customer Information'!$AR$12,200,ROW())<>\"No Rebate\",MeasureCalc(Table_PI[[#This Row],[Hide:\nFormula Name]],Table_SummaryPI[[#This Row],[Quantity]],Table_PI[[#This Row],[List 1]],Table_PI[[#This Row],[List 2]],Table_PI[[#This Row],[List 3]],Table_PI[[#This Row],[Size]],Table_PI[[#This Row],[Input 1]],Table_PI[[#This Row],[Input 2]],Table_PI[[#This Row],[Input 3]],Table_PI[[#This Row],[Input 4]],'Customer Information'!$AR$12,200,ROW()),\"\"),\"\")","v":""},{"$f":"IFERROR(IF(MeasureCalc(Table_PI[[#This Row],[Hide:\nFormula Name]],Table_SummaryPI[[#This Row],[Quantity]],Table_PI[[#This Row],[List 1]],Table_PI[[#This Row],[List 2]],Table_PI[[#This Row],[List 3]],Table_PI[[#This Row],[Size]],Table_PI[[#This Row],[Input 1]],Table_PI[[#This Row],[Input 2]],Table_PI[[#This Row],[Input 3]],Table_PI[[#This Row],[Input 4]],'Customer Information'!$AR$12,201,ROW())<>\"No Rebate\",MeasureCalc(Table_PI[[#This Row],[Hide:\nFormula Name]],Table_SummaryPI[[#This Row],[Quantity]],Table_PI[[#This Row],[List 1]],Table_PI[[#This Row],[List 2]],Table_PI[[#This Row],[List 3]],Table_PI[[#This Row],[Size]],Table_PI[[#This Row],[Input 1]],Table_PI[[#This Row],[Input 2]],Table_PI[[#This Row],[Input 3]],Table_PI[[#This Row],[Input 4]],'Customer Information'!$AR$12,201,ROW()),\"\"),\"\")","v":""}]
[{"$f":"Table_PI[[#This Row],[Line No.]]","v":""},{"$f":"IF(Table_SummaryPI[[#This Row],[MeassureCategory]]<>\"\",CONCATENATE(Table_SummaryPI[[#This Row],[MeassureCategory]],  \" - \", Table_SummaryPI[[#This Row],[ProposedMeasureCategory]],  \" - \", TEXT(Table_SummaryPI[[#This Row],[Size]],\"#,##0.00\"),\" \",Table_SummaryPI[[#This Row],[SizeUnit]]),\"\")","v":""},{"$f":"SUBSTITUTE(Table_PI[[#This Row],[Measure]],\"     \",\"\",1)","v":""},{"$f":"IF(Table_PI[[#This Row],[List 1]]<>\"\",Table_PI[[#This Row],[List 1]],\"\")","v":""},{"$f":"IF(Table_PI[[#This Row],[List 2]]<>\"\",Table_PI[[#This Row],[List 2]],\"\")","v":""},{"$f":"IF(Table_PI[[#This Row],[List 3]]<>\"\",Table_PI[[#This Row],[List 3]],\"\")","v":""},{"$f":"IF(Table_PI[[#This Row],[Manufacturer]]=\"\",\"\",Table_PI[[#This Row],[Manufacturer]])","v":""},{"$f":"IF(Table_PI[[#This Row],[Model Number]]=\"\",\"\",Table_PI[[#This Row],[Model Number]])","v":""},{"$f":"IF(Table_PI[[#This Row],[Serial Number(s)]]=\"\",\"\",Table_PI[[#This Row],[Serial Number(s)]])","v":""},null,{"$f":"IF(Table_PI[[#This Row],[Size]]=\"\",\"\",Table_PI[[#This Row],[Size]])","v":""},null,{"$f":"IFERROR(IF(AND(MeasureCalc(Table_PI[[#This Row],[Hide:\nFormula Name]],Table_SummaryPI[[#This Row],[Quantity]],Table_PI[[#This Row],[List 1]],Table_PI[[#This Row],[List 2]],Table_PI[[#This Row],[List 3]],Table_PI[[#This Row],[Size]],Table_PI[[#This Row],[Input 1]],Table_PI[[#This Row],[Input 2]],Table_PI[[#This Row],[Input 3]],Table_PI[[#This Row],[Input 4]],'Customer Information'!$AR$12,100,ROW())<>0,MeasureCalc(Table_PI[[#This Row],[Hide:\nFormula Name]],Table_SummaryPI[[#This Row],[Quantity]],Table_PI[[#This Row],[List 1]],Table_PI[[#This Row],[List 2]],Table_PI[[#This Row],[List 3]],Table_PI[[#This Row],[Size]],Table_PI[[#This Row],[Input 1]],Table_PI[[#This Row],[Input 2]],Table_PI[[#This Row],[Input 3]],Table_PI[[#This Row],[Input 4]],'Customer Information'!$AR$12,100,ROW())<>\"No Rebate\"),MeasureCalc(Table_PI[[#This Row],[Hide:\nFormula Name]],Table_SummaryPI[[#This Row],[Quantity]],Table_PI[[#This Row],[List 1]],Table_PI[[#This Row],[List 2]],Table_PI[[#This Row],[List 3]],Table_PI[[#This Row],[Size]],Table_PI[[#This Row],[Input 1]],Table_PI[[#This Row],[Input 2]],Table_PI[[#This Row],[Input 3]],Table_PI[[#This Row],[Input 4]],'Customer Information'!$AR$12,100,ROW()),\"\"),\"\")","v":""},{"$f":"IF(Table_PI[[#This Row],[Input 1]]<>\"\",Table_PI[[#This Row],[Input 1]],\"\")","v":""},null,{"$f":"IFERROR(IF(AND(MeasureCalc(Table_PI[[#This Row],[Hide:\nFormula Name]],Table_SummaryPI[[#This Row],[Quantity]],Table_PI[[#This Row],[List 1]],Table_PI[[#This Row],[List 2]],Table_PI[[#This Row],[List 3]],Table_PI[[#This Row],[Size]],Table_PI[[#This Row],[Input 1]],Table_PI[[#This Row],[Input 2]],Table_PI[[#This Row],[Input 3]],Table_PI[[#This Row],[Input 4]],'Customer Information'!$AR$12,101,ROW())<>0,MeasureCalc(Table_PI[[#This Row],[Hide:\nFormula Name]],Table_SummaryPI[[#This Row],[Quantity]],Table_PI[[#This Row],[List 1]],Table_PI[[#This Row],[List 2]],Table_PI[[#This Row],[List 3]],Table_PI[[#This Row],[Size]],Table_PI[[#This Row],[Input 1]],Table_PI[[#This Row],[Input 2]],Table_PI[[#This Row],[Input 3]],Table_PI[[#This Row],[Input 4]],'Customer Information'!$AR$12,101,ROW())<>\"No Rebate\"),MeasureCalc(Table_PI[[#This Row],[Hide:\nFormula Name]],Table_SummaryPI[[#This Row],[Quantity]],Table_PI[[#This Row],[List 1]],Table_PI[[#This Row],[List 2]],Table_PI[[#This Row],[List 3]],Table_PI[[#This Row],[Size]],Table_PI[[#This Row],[Input 1]],Table_PI[[#This Row],[Input 2]],Table_PI[[#This Row],[Input 3]],Table_PI[[#This Row],[Input 4]],'Customer Information'!$AR$12,101,ROW()),\"\"),\"\")","v":""},{"$f":"IF(Table_PI[[#This Row],[Input 2]]<>\"\",Table_PI[[#This Row],[Input 2]],\"\")","v":""},null,{"$f":"IFERROR(IF(AND(MeasureCalc(Table_PI[[#This Row],[Hide:\nFormula Name]],Table_SummaryPI[[#This Row],[Quantity]],Table_PI[[#This Row],[List 1]],Table_PI[[#This Row],[List 2]],Table_PI[[#This Row],[List 3]],Table_PI[[#This Row],[Size]],Table_PI[[#This Row],[Input 1]],Table_PI[[#This Row],[Input 2]],Table_PI[[#This Row],[Input 3]],Table_PI[[#This Row],[Input 4]],'Customer Information'!$AR$12,102,ROW())<>0,MeasureCalc(Table_PI[[#This Row],[Hide:\nFormula Name]],Table_SummaryPI[[#This Row],[Quantity]],Table_PI[[#This Row],[List 1]],Table_PI[[#This Row],[List 2]],Table_PI[[#This Row],[List 3]],Table_PI[[#This Row],[Size]],Table_PI[[#This Row],[Input 1]],Table_PI[[#This Row],[Input 2]],Table_PI[[#This Row],[Input 3]],Table_PI[[#This Row],[Input 4]],'Customer Information'!$AR$12,102,ROW())<>\"No Rebate\"),MeasureCalc(Table_PI[[#This Row],[Hide:\nFormula Name]],Table_SummaryPI[[#This Row],[Quantity]],Table_PI[[#This Row],[List 1]],Table_PI[[#This Row],[List 2]],Table_PI[[#This Row],[List 3]],Table_PI[[#This Row],[Size]],Table_PI[[#This Row],[Input 1]],Table_PI[[#This Row],[Input 2]],Table_PI[[#This Row],[Input 3]],Table_PI[[#This Row],[Input 4]],'Customer Information'!$AR$12,102,ROW()),\"\"),\"\")","v":""},{"$f":"IF(Table_PI[[#This Row],[Input 3]]<>\"\",Table_PI[[#This Row],[Input 3]],\"\")","v":""},null,{"$f":"IFERROR(IF(AND(MeasureCalc(Table_PI[[#This Row],[Hide:\nFormula Name]],Table_SummaryPI[[#This Row],[Quantity]],Table_PI[[#This Row],[List 1]],Table_PI[[#This Row],[List 2]],Table_PI[[#This Row],[List 3]],Table_PI[[#This Row],[Size]],Table_PI[[#This Row],[Input 1]],Table_PI[[#This Row],[Input 2]],Table_PI[[#This Row],[Input 3]],Table_PI[[#This Row],[Input 4]],'Customer Information'!$AR$12,103,ROW())<>0,MeasureCalc(Table_PI[[#This Row],[Hide:\nFormula Name]],Table_SummaryPI[[#This Row],[Quantity]],Table_PI[[#This Row],[List 1]],Table_PI[[#This Row],[List 2]],Table_PI[[#This Row],[List 3]],Table_PI[[#This Row],[Size]],Table_PI[[#This Row],[Input 1]],Table_PI[[#This Row],[Input 2]],Table_PI[[#This Row],[Input 3]],Table_PI[[#This Row],[Input 4]],'Customer Information'!$AR$12,103,ROW())<>\"No Rebate\"),MeasureCalc(Table_PI[[#This Row],[Hide:\nFormula Name]],Table_SummaryPI[[#This Row],[Quantity]],Table_PI[[#This Row],[List 1]],Table_PI[[#This Row],[List 2]],Table_PI[[#This Row],[List 3]],Table_PI[[#This Row],[Size]],Table_PI[[#This Row],[Input 1]],Table_PI[[#This Row],[Input 2]],Table_PI[[#This Row],[Input 3]],Table_PI[[#This Row],[Input 4]],'Customer Information'!$AR$12,103,ROW()),\"\"),\"\")","v":""},{"$f":"IF(Table_PI[[#This Row],[Input 4]]<>\"\",Table_PI[[#This Row],[Input 4]],\"\")","v":""},{"$f":"IF(Table_PI[[#This Row],[Quantity]]=\"\",\"\",Table_PI[[#This Row],[Quantity]])","v":""},{"$f":"IF(Table_PI[[#This Row],[Notes]]=\"\",\"\",Table_PI[[#This Row],[Notes]])","v":""},{"$f":"IF(OR(Table_PI[[#This Row],[Hide:\nBaseline kWh]]=\"\",Table_PI[[#This Row],[Hide:\nBaseline kWh]]=0),\"\",Table_PI[[#This Row],[Hide:\nBaseline kWh]])","v":""},{"$f":"IF(OR(Table_PI[[#This Row],[Hide:\nBaseline kW]]=\"\",Table_PI[[#This Row],[Hide:\nBaseline kW]]=0),\"\",Table_PI[[#This Row],[Hide:\nBaseline kW]])","v":""},{"$f":"IF(OR(Table_PI[[#This Row],[Hide:\nProposed kWh]]=\"\",Table_PI[[#This Row],[Hide:\nProposed kWh]]=0),\"\",Table_PI[[#This Row],[Hide:\nProposed kWh]])","v":""},{"$f":"IF(OR(Table_PI[[#This Row],[Hide:\nProposed kW]]=\"\",Table_PI[[#This Row],[Hide:\nProposed kW]]=0),\"\",Table_PI[[#This Row],[Hide:\nProposed kW]])","v":""},{"$f":"IF(OR(Table_PI[[#This Row],[Rebate]]=\"\",Table_PI[[#This Row],[Rebate]]=0),\"\",Table_PI[[#This Row],[Rebate]])","v":""},{"$f":"IF(OR(Table_PI[[#This Row],[Hide:\nIncremental Cost]]=\"\",Table_PI[[#This Row],[Hide:\nIncremental Cost]]=0),\"\",Table_PI[[#This Row],[Hide:\nIncremental Cost]])","v":""},{"$f":"IFERROR(IF(Table_SummaryPI[[#This Row],[kWhSavings]]=\"\",\"\",ROUND(Table_SummaryPI[[#This Row],[kWhSavings]]/$AG$401*'Customer Information'!$BC$17,2)),0)","v":""},{"$f":"IF(OR(Table_PI[[#This Row],[Annual kWh]]=\"\",Table_PI[[#This Row],[Annual kWh]]=0),\"\",Table_PI[[#This Row],[Annual kWh]])","v":""},{"$f":"IF(OR(Table_PI[[#This Row],[Peak kW]]=\"\",Table_PI[[#This Row],[Peak kW]]=0),\"\",Table_PI[[#This Row],[Peak kW]])","v":""},{"$f":"IFERROR(IF(Table_SummaryPI[[#This Row],[kWhSavings]]=\"\",\"\",$AU$9*Table_SummaryPI[[#This Row],[kWhSavings]]),0)","v":""},{"$f":"IFERROR(IF(Table_SummaryPI[[#This Row],[kWhSavings]]=\"\",\"\",$AU$14*Table_SummaryPI[[#This Row],[kWhSavings]]),0)","v":""},{"$f":"IFERROR(IF(Table_SummaryPI[[#This Row],[kWhSavings]]=\"\",\"\",$AU$18*Table_SummaryPI[[#This Row],[kWhSavings]]),0)","v":""},{"$f":"IFERROR(IF(Table_SummaryPI[[#This Row],[kWhSavings]]=\"\",\"\",$AU$22*Table_SummaryPI[[#This Row],[kWhSavings]]),0)","v":""},{"$f":"IFERROR(IF(MeasureCalc(Table_PI[[#This Row],[Hide:\nFormula Name]],Table_SummaryPI[[#This Row],[Quantity]],Table_PI[[#This Row],[List 1]],Table_PI[[#This Row],[List 2]],Table_PI[[#This Row],[List 3]],Table_PI[[#This Row],[Size]],Table_PI[[#This Row],[Input 1]],Table_PI[[#This Row],[Input 2]],Table_PI[[#This Row],[Input 3]],Table_PI[[#This Row],[Input 4]],'Customer Information'!$AR$12,200,ROW())<>\"No Rebate\",MeasureCalc(Table_PI[[#This Row],[Hide:\nFormula Name]],Table_SummaryPI[[#This Row],[Quantity]],Table_PI[[#This Row],[List 1]],Table_PI[[#This Row],[List 2]],Table_PI[[#This Row],[List 3]],Table_PI[[#This Row],[Size]],Table_PI[[#This Row],[Input 1]],Table_PI[[#This Row],[Input 2]],Table_PI[[#This Row],[Input 3]],Table_PI[[#This Row],[Input 4]],'Customer Information'!$AR$12,200,ROW()),\"\"),\"\")","v":""},{"$f":"IFERROR(IF(MeasureCalc(Table_PI[[#This Row],[Hide:\nFormula Name]],Table_SummaryPI[[#This Row],[Quantity]],Table_PI[[#This Row],[List 1]],Table_PI[[#This Row],[List 2]],Table_PI[[#This Row],[List 3]],Table_PI[[#This Row],[Size]],Table_PI[[#This Row],[Input 1]],Table_PI[[#This Row],[Input 2]],Table_PI[[#This Row],[Input 3]],Table_PI[[#This Row],[Input 4]],'Customer Information'!$AR$12,201,ROW())<>\"No Rebate\",MeasureCalc(Table_PI[[#This Row],[Hide:\nFormula Name]],Table_SummaryPI[[#This Row],[Quantity]],Table_PI[[#This Row],[List 1]],Table_PI[[#This Row],[List 2]],Table_PI[[#This Row],[List 3]],Table_PI[[#This Row],[Size]],Table_PI[[#This Row],[Input 1]],Table_PI[[#This Row],[Input 2]],Table_PI[[#This Row],[Input 3]],Table_PI[[#This Row],[Input 4]],'Customer Information'!$AR$12,201,ROW()),\"\"),\"\")","v":""}]
[{"$f":"Table_PI[[#This Row],[Line No.]]","v":""},{"$f":"IF(Table_SummaryPI[[#This Row],[MeassureCategory]]<>\"\",CONCATENATE(Table_SummaryPI[[#This Row],[MeassureCategory]],  \" - \", Table_SummaryPI[[#This Row],[ProposedMeasureCategory]],  \" - \", TEXT(Table_SummaryPI[[#This Row],[Size]],\"#,##0.00\"),\" \",Table_SummaryPI[[#This Row],[SizeUnit]]),\"\")","v":""},{"$f":"SUBSTITUTE(Table_PI[[#This Row],[Measure]],\"     \",\"\",1)","v":""},{"$f":"IF(Table_PI[[#This Row],[List 1]]<>\"\",Table_PI[[#This Row],[List 1]],\"\")","v":""},{"$f":"IF(Table_PI[[#This Row],[List 2]]<>\"\",Table_PI[[#This Row],[List 2]],\"\")","v":""},{"$f":"IF(Table_PI[[#This Row],[List 3]]<>\"\",Table_PI[[#This Row],[List 3]],\"\")","v":""},{"$f":"IF(Table_PI[[#This Row],[Manufacturer]]=\"\",\"\",Table_PI[[#This Row],[Manufacturer]])","v":""},{"$f":"IF(Table_PI[[#This Row],[Model Number]]=\"\",\"\",Table_PI[[#This Row],[Model Number]])","v":""},{"$f":"IF(Table_PI[[#This Row],[Serial Number(s)]]=\"\",\"\",Table_PI[[#This Row],[Serial Number(s)]])","v":""},null,{"$f":"IF(Table_PI[[#This Row],[Size]]=\"\",\"\",Table_PI[[#This Row],[Size]])","v":""},null,{"$f":"IFERROR(IF(AND(MeasureCalc(Table_PI[[#This Row],[Hide:\nFormula Name]],Table_SummaryPI[[#This Row],[Quantity]],Table_PI[[#This Row],[List 1]],Table_PI[[#This Row],[List 2]],Table_PI[[#This Row],[List 3]],Table_PI[[#This Row],[Size]],Table_PI[[#This Row],[Input 1]],Table_PI[[#This Row],[Input 2]],Table_PI[[#This Row],[Input 3]],Table_PI[[#This Row],[Input 4]],'Customer Information'!$AR$12,100,ROW())<>0,MeasureCalc(Table_PI[[#This Row],[Hide:\nFormula Name]],Table_SummaryPI[[#This Row],[Quantity]],Table_PI[[#This Row],[List 1]],Table_PI[[#This Row],[List 2]],Table_PI[[#This Row],[List 3]],Table_PI[[#This Row],[Size]],Table_PI[[#This Row],[Input 1]],Table_PI[[#This Row],[Input 2]],Table_PI[[#This Row],[Input 3]],Table_PI[[#This Row],[Input 4]],'Customer Information'!$AR$12,100,ROW())<>\"No Rebate\"),MeasureCalc(Table_PI[[#This Row],[Hide:\nFormula Name]],Table_SummaryPI[[#This Row],[Quantity]],Table_PI[[#This Row],[List 1]],Table_PI[[#This Row],[List 2]],Table_PI[[#This Row],[List 3]],Table_PI[[#This Row],[Size]],Table_PI[[#This Row],[Input 1]],Table_PI[[#This Row],[Input 2]],Table_PI[[#This Row],[Input 3]],Table_PI[[#This Row],[Input 4]],'Customer Information'!$AR$12,100,ROW()),\"\"),\"\")","v":""},{"$f":"IF(Table_PI[[#This Row],[Input 1]]<>\"\",Table_PI[[#This Row],[Input 1]],\"\")","v":""},null,{"$f":"IFERROR(IF(AND(MeasureCalc(Table_PI[[#This Row],[Hide:\nFormula Name]],Table_SummaryPI[[#This Row],[Quantity]],Table_PI[[#This Row],[List 1]],Table_PI[[#This Row],[List 2]],Table_PI[[#This Row],[List 3]],Table_PI[[#This Row],[Size]],Table_PI[[#This Row],[Input 1]],Table_PI[[#This Row],[Input 2]],Table_PI[[#This Row],[Input 3]],Table_PI[[#This Row],[Input 4]],'Customer Information'!$AR$12,101,ROW())<>0,MeasureCalc(Table_PI[[#This Row],[Hide:\nFormula Name]],Table_SummaryPI[[#This Row],[Quantity]],Table_PI[[#This Row],[List 1]],Table_PI[[#This Row],[List 2]],Table_PI[[#This Row],[List 3]],Table_PI[[#This Row],[Size]],Table_PI[[#This Row],[Input 1]],Table_PI[[#This Row],[Input 2]],Table_PI[[#This Row],[Input 3]],Table_PI[[#This Row],[Input 4]],'Customer Information'!$AR$12,101,ROW())<>\"No Rebate\"),MeasureCalc(Table_PI[[#This Row],[Hide:\nFormula Name]],Table_SummaryPI[[#This Row],[Quantity]],Table_PI[[#This Row],[List 1]],Table_PI[[#This Row],[List 2]],Table_PI[[#This Row],[List 3]],Table_PI[[#This Row],[Size]],Table_PI[[#This Row],[Input 1]],Table_PI[[#This Row],[Input 2]],Table_PI[[#This Row],[Input 3]],Table_PI[[#This Row],[Input 4]],'Customer Information'!$AR$12,101,ROW()),\"\"),\"\")","v":""},{"$f":"IF(Table_PI[[#This Row],[Input 2]]<>\"\",Table_PI[[#This Row],[Input 2]],\"\")","v":""},null,{"$f":"IFERROR(IF(AND(MeasureCalc(Table_PI[[#This Row],[Hide:\nFormula Name]],Table_SummaryPI[[#This Row],[Quantity]],Table_PI[[#This Row],[List 1]],Table_PI[[#This Row],[List 2]],Table_PI[[#This Row],[List 3]],Table_PI[[#This Row],[Size]],Table_PI[[#This Row],[Input 1]],Table_PI[[#This Row],[Input 2]],Table_PI[[#This Row],[Input 3]],Table_PI[[#This Row],[Input 4]],'Customer Information'!$AR$12,102,ROW())<>0,MeasureCalc(Table_PI[[#This Row],[Hide:\nFormula Name]],Table_SummaryPI[[#This Row],[Quantity]],Table_PI[[#This Row],[List 1]],Table_PI[[#This Row],[List 2]],Table_PI[[#This Row],[List 3]],Table_PI[[#This Row],[Size]],Table_PI[[#This Row],[Input 1]],Table_PI[[#This Row],[Input 2]],Table_PI[[#This Row],[Input 3]],Table_PI[[#This Row],[Input 4]],'Customer Information'!$AR$12,102,ROW())<>\"No Rebate\"),MeasureCalc(Table_PI[[#This Row],[Hide:\nFormula Name]],Table_SummaryPI[[#This Row],[Quantity]],Table_PI[[#This Row],[List 1]],Table_PI[[#This Row],[List 2]],Table_PI[[#This Row],[List 3]],Table_PI[[#This Row],[Size]],Table_PI[[#This Row],[Input 1]],Table_PI[[#This Row],[Input 2]],Table_PI[[#This Row],[Input 3]],Table_PI[[#This Row],[Input 4]],'Customer Information'!$AR$12,102,ROW()),\"\"),\"\")","v":""},{"$f":"IF(Table_PI[[#This Row],[Input 3]]<>\"\",Table_PI[[#This Row],[Input 3]],\"\")","v":""},null,{"$f":"IFERROR(IF(AND(MeasureCalc(Table_PI[[#This Row],[Hide:\nFormula Name]],Table_SummaryPI[[#This Row],[Quantity]],Table_PI[[#This Row],[List 1]],Table_PI[[#This Row],[List 2]],Table_PI[[#This Row],[List 3]],Table_PI[[#This Row],[Size]],Table_PI[[#This Row],[Input 1]],Table_PI[[#This Row],[Input 2]],Table_PI[[#This Row],[Input 3]],Table_PI[[#This Row],[Input 4]],'Customer Information'!$AR$12,103,ROW())<>0,MeasureCalc(Table_PI[[#This Row],[Hide:\nFormula Name]],Table_SummaryPI[[#This Row],[Quantity]],Table_PI[[#This Row],[List 1]],Table_PI[[#This Row],[List 2]],Table_PI[[#This Row],[List 3]],Table_PI[[#This Row],[Size]],Table_PI[[#This Row],[Input 1]],Table_PI[[#This Row],[Input 2]],Table_PI[[#This Row],[Input 3]],Table_PI[[#This Row],[Input 4]],'Customer Information'!$AR$12,103,ROW())<>\"No Rebate\"),MeasureCalc(Table_PI[[#This Row],[Hide:\nFormula Name]],Table_SummaryPI[[#This Row],[Quantity]],Table_PI[[#This Row],[List 1]],Table_PI[[#This Row],[List 2]],Table_PI[[#This Row],[List 3]],Table_PI[[#This Row],[Size]],Table_PI[[#This Row],[Input 1]],Table_PI[[#This Row],[Input 2]],Table_PI[[#This Row],[Input 3]],Table_PI[[#This Row],[Input 4]],'Customer Information'!$AR$12,103,ROW()),\"\"),\"\")","v":""},{"$f":"IF(Table_PI[[#This Row],[Input 4]]<>\"\",Table_PI[[#This Row],[Input 4]],\"\")","v":""},{"$f":"IF(Table_PI[[#This Row],[Quantity]]=\"\",\"\",Table_PI[[#This Row],[Quantity]])","v":""},{"$f":"IF(Table_PI[[#This Row],[Notes]]=\"\",\"\",Table_PI[[#This Row],[Notes]])","v":""},{"$f":"IF(OR(Table_PI[[#This Row],[Hide:\nBaseline kWh]]=\"\",Table_PI[[#This Row],[Hide:\nBaseline kWh]]=0),\"\",Table_PI[[#This Row],[Hide:\nBaseline kWh]])","v":""},{"$f":"IF(OR(Table_PI[[#This Row],[Hide:\nBaseline kW]]=\"\",Table_PI[[#This Row],[Hide:\nBaseline kW]]=0),\"\",Table_PI[[#This Row],[Hide:\nBaseline kW]])","v":""},{"$f":"IF(OR(Table_PI[[#This Row],[Hide:\nProposed kWh]]=\"\",Table_PI[[#This Row],[Hide:\nProposed kWh]]=0),\"\",Table_PI[[#This Row],[Hide:\nProposed kWh]])","v":""},{"$f":"IF(OR(Table_PI[[#This Row],[Hide:\nProposed kW]]=\"\",Table_PI[[#This Row],[Hide:\nProposed kW]]=0),\"\",Table_PI[[#This Row],[Hide:\nProposed kW]])","v":""},{"$f":"IF(OR(Table_PI[[#This Row],[Rebate]]=\"\",Table_PI[[#This Row],[Rebate]]=0),\"\",Table_PI[[#This Row],[Rebate]])","v":""},{"$f":"IF(OR(Table_PI[[#This Row],[Hide:\nIncremental Cost]]=\"\",Table_PI[[#This Row],[Hide:\nIncremental Cost]]=0),\"\",Table_PI[[#This Row],[Hide:\nIncremental Cost]])","v":""},{"$f":"IFERROR(IF(Table_SummaryPI[[#This Row],[kWhSavings]]=\"\",\"\",ROUND(Table_SummaryPI[[#This Row],[kWhSavings]]/$AG$401*'Customer Information'!$BC$17,2)),0)","v":""},{"$f":"IF(OR(Table_PI[[#This Row],[Annual kWh]]=\"\",Table_PI[[#This Row],[Annual kWh]]=0),\"\",Table_PI[[#This Row],[Annual kWh]])","v":""},{"$f":"IF(OR(Table_PI[[#This Row],[Peak kW]]=\"\",Table_PI[[#This Row],[Peak kW]]=0),\"\",Table_PI[[#This Row],[Peak kW]])","v":""},{"$f":"IFERROR(IF(Table_SummaryPI[[#This Row],[kWhSavings]]=\"\",\"\",$AU$9*Table_SummaryPI[[#This Row],[kWhSavings]]),0)","v":""},{"$f":"IFERROR(IF(Table_SummaryPI[[#This Row],[kWhSavings]]=\"\",\"\",$AU$14*Table_SummaryPI[[#This Row],[kWhSavings]]),0)","v":""},{"$f":"IFERROR(IF(Table_SummaryPI[[#This Row],[kWhSavings]]=\"\",\"\",$AU$18*Table_SummaryPI[[#This Row],[kWhSavings]]),0)","v":""},{"$f":"IFERROR(IF(Table_SummaryPI[[#This Row],[kWhSavings]]=\"\",\"\",$AU$22*Table_SummaryPI[[#This Row],[kWhSavings]]),0)","v":""},{"$f":"IFERROR(IF(MeasureCalc(Table_PI[[#This Row],[Hide:\nFormula Name]],Table_SummaryPI[[#This Row],[Quantity]],Table_PI[[#This Row],[List 1]],Table_PI[[#This Row],[List 2]],Table_PI[[#This Row],[List 3]],Table_PI[[#This Row],[Size]],Table_PI[[#This Row],[Input 1]],Table_PI[[#This Row],[Input 2]],Table_PI[[#This Row],[Input 3]],Table_PI[[#This Row],[Input 4]],'Customer Information'!$AR$12,200,ROW())<>\"No Rebate\",MeasureCalc(Table_PI[[#This Row],[Hide:\nFormula Name]],Table_SummaryPI[[#This Row],[Quantity]],Table_PI[[#This Row],[List 1]],Table_PI[[#This Row],[List 2]],Table_PI[[#This Row],[List 3]],Table_PI[[#This Row],[Size]],Table_PI[[#This Row],[Input 1]],Table_PI[[#This Row],[Input 2]],Table_PI[[#This Row],[Input 3]],Table_PI[[#This Row],[Input 4]],'Customer Information'!$AR$12,200,ROW()),\"\"),\"\")","v":""},{"$f":"IFERROR(IF(MeasureCalc(Table_PI[[#This Row],[Hide:\nFormula Name]],Table_SummaryPI[[#This Row],[Quantity]],Table_PI[[#This Row],[List 1]],Table_PI[[#This Row],[List 2]],Table_PI[[#This Row],[List 3]],Table_PI[[#This Row],[Size]],Table_PI[[#This Row],[Input 1]],Table_PI[[#This Row],[Input 2]],Table_PI[[#This Row],[Input 3]],Table_PI[[#This Row],[Input 4]],'Customer Information'!$AR$12,201,ROW())<>\"No Rebate\",MeasureCalc(Table_PI[[#This Row],[Hide:\nFormula Name]],Table_SummaryPI[[#This Row],[Quantity]],Table_PI[[#This Row],[List 1]],Table_PI[[#This Row],[List 2]],Table_PI[[#This Row],[List 3]],Table_PI[[#This Row],[Size]],Table_PI[[#This Row],[Input 1]],Table_PI[[#This Row],[Input 2]],Table_PI[[#This Row],[Input 3]],Table_PI[[#This Row],[Input 4]],'Customer Information'!$AR$12,201,ROW()),\"\"),\"\")","v":""}]
[{"$f":"Table_PI[[#This Row],[Line No.]]","v":""},{"$f":"IF(Table_SummaryPI[[#This Row],[MeassureCategory]]<>\"\",CONCATENATE(Table_SummaryPI[[#This Row],[MeassureCategory]],  \" - \", Table_SummaryPI[[#This Row],[ProposedMeasureCategory]],  \" - \", TEXT(Table_SummaryPI[[#This Row],[Size]],\"#,##0.00\"),\" \",Table_SummaryPI[[#This Row],[SizeUnit]]),\"\")","v":""},{"$f":"SUBSTITUTE(Table_PI[[#This Row],[Measure]],\"     \",\"\",1)","v":""},{"$f":"IF(Table_PI[[#This Row],[List 1]]<>\"\",Table_PI[[#This Row],[List 1]],\"\")","v":""},{"$f":"IF(Table_PI[[#This Row],[List 2]]<>\"\",Table_PI[[#This Row],[List 2]],\"\")","v":""},{"$f":"IF(Table_PI[[#This Row],[List 3]]<>\"\",Table_PI[[#This Row],[List 3]],\"\")","v":""},{"$f":"IF(Table_PI[[#This Row],[Manufacturer]]=\"\",\"\",Table_PI[[#This Row],[Manufacturer]])","v":""},{"$f":"IF(Table_PI[[#This Row],[Model Number]]=\"\",\"\",Table_PI[[#This Row],[Model Number]])","v":""},{"$f":"IF(Table_PI[[#This Row],[Serial Number(s)]]=\"\",\"\",Table_PI[[#This Row],[Serial Number(s)]])","v":""},null,{"$f":"IF(Table_PI[[#This Row],[Size]]=\"\",\"\",Table_PI[[#This Row],[Size]])","v":""},null,{"$f":"IFERROR(IF(AND(MeasureCalc(Table_PI[[#This Row],[Hide:\nFormula Name]],Table_SummaryPI[[#This Row],[Quantity]],Table_PI[[#This Row],[List 1]],Table_PI[[#This Row],[List 2]],Table_PI[[#This Row],[List 3]],Table_PI[[#This Row],[Size]],Table_PI[[#This Row],[Input 1]],Table_PI[[#This Row],[Input 2]],Table_PI[[#This Row],[Input 3]],Table_PI[[#This Row],[Input 4]],'Customer Information'!$AR$12,100,ROW())<>0,MeasureCalc(Table_PI[[#This Row],[Hide:\nFormula Name]],Table_SummaryPI[[#This Row],[Quantity]],Table_PI[[#This Row],[List 1]],Table_PI[[#This Row],[List 2]],Table_PI[[#This Row],[List 3]],Table_PI[[#This Row],[Size]],Table_PI[[#This Row],[Input 1]],Table_PI[[#This Row],[Input 2]],Table_PI[[#This Row],[Input 3]],Table_PI[[#This Row],[Input 4]],'Customer Information'!$AR$12,100,ROW())<>\"No Rebate\"),MeasureCalc(Table_PI[[#This Row],[Hide:\nFormula Name]],Table_SummaryPI[[#This Row],[Quantity]],Table_PI[[#This Row],[List 1]],Table_PI[[#This Row],[List 2]],Table_PI[[#This Row],[List 3]],Table_PI[[#This Row],[Size]],Table_PI[[#This Row],[Input 1]],Table_PI[[#This Row],[Input 2]],Table_PI[[#This Row],[Input 3]],Table_PI[[#This Row],[Input 4]],'Customer Information'!$AR$12,100,ROW()),\"\"),\"\")","v":""},{"$f":"IF(Table_PI[[#This Row],[Input 1]]<>\"\",Table_PI[[#This Row],[Input 1]],\"\")","v":""},null,{"$f":"IFERROR(IF(AND(MeasureCalc(Table_PI[[#This Row],[Hide:\nFormula Name]],Table_SummaryPI[[#This Row],[Quantity]],Table_PI[[#This Row],[List 1]],Table_PI[[#This Row],[List 2]],Table_PI[[#This Row],[List 3]],Table_PI[[#This Row],[Size]],Table_PI[[#This Row],[Input 1]],Table_PI[[#This Row],[Input 2]],Table_PI[[#This Row],[Input 3]],Table_PI[[#This Row],[Input 4]],'Customer Information'!$AR$12,101,ROW())<>0,MeasureCalc(Table_PI[[#This Row],[Hide:\nFormula Name]],Table_SummaryPI[[#This Row],[Quantity]],Table_PI[[#This Row],[List 1]],Table_PI[[#This Row],[List 2]],Table_PI[[#This Row],[List 3]],Table_PI[[#This Row],[Size]],Table_PI[[#This Row],[Input 1]],Table_PI[[#This Row],[Input 2]],Table_PI[[#This Row],[Input 3]],Table_PI[[#This Row],[Input 4]],'Customer Information'!$AR$12,101,ROW())<>\"No Rebate\"),MeasureCalc(Table_PI[[#This Row],[Hide:\nFormula Name]],Table_SummaryPI[[#This Row],[Quantity]],Table_PI[[#This Row],[List 1]],Table_PI[[#This Row],[List 2]],Table_PI[[#This Row],[List 3]],Table_PI[[#This Row],[Size]],Table_PI[[#This Row],[Input 1]],Table_PI[[#This Row],[Input 2]],Table_PI[[#This Row],[Input 3]],Table_PI[[#This Row],[Input 4]],'Customer Information'!$AR$12,101,ROW()),\"\"),\"\")","v":""},{"$f":"IF(Table_PI[[#This Row],[Input 2]]<>\"\",Table_PI[[#This Row],[Input 2]],\"\")","v":""},null,{"$f":"IFERROR(IF(AND(MeasureCalc(Table_PI[[#This Row],[Hide:\nFormula Name]],Table_SummaryPI[[#This Row],[Quantity]],Table_PI[[#This Row],[List 1]],Table_PI[[#This Row],[List 2]],Table_PI[[#This Row],[List 3]],Table_PI[[#This Row],[Size]],Table_PI[[#This Row],[Input 1]],Table_PI[[#This Row],[Input 2]],Table_PI[[#This Row],[Input 3]],Table_PI[[#This Row],[Input 4]],'Customer Information'!$AR$12,102,ROW())<>0,MeasureCalc(Table_PI[[#This Row],[Hide:\nFormula Name]],Table_SummaryPI[[#This Row],[Quantity]],Table_PI[[#This Row],[List 1]],Table_PI[[#This Row],[List 2]],Table_PI[[#This Row],[List 3]],Table_PI[[#This Row],[Size]],Table_PI[[#This Row],[Input 1]],Table_PI[[#This Row],[Input 2]],Table_PI[[#This Row],[Input 3]],Table_PI[[#This Row],[Input 4]],'Customer Information'!$AR$12,102,ROW())<>\"No Rebate\"),MeasureCalc(Table_PI[[#This Row],[Hide:\nFormula Name]],Table_SummaryPI[[#This Row],[Quantity]],Table_PI[[#This Row],[List 1]],Table_PI[[#This Row],[List 2]],Table_PI[[#This Row],[List 3]],Table_PI[[#This Row],[Size]],Table_PI[[#This Row],[Input 1]],Table_PI[[#This Row],[Input 2]],Table_PI[[#This Row],[Input 3]],Table_PI[[#This Row],[Input 4]],'Customer Information'!$AR$12,102,ROW()),\"\"),\"\")","v":""},{"$f":"IF(Table_PI[[#This Row],[Input 3]]<>\"\",Table_PI[[#This Row],[Input 3]],\"\")","v":""},null,{"$f":"IFERROR(IF(AND(MeasureCalc(Table_PI[[#This Row],[Hide:\nFormula Name]],Table_SummaryPI[[#This Row],[Quantity]],Table_PI[[#This Row],[List 1]],Table_PI[[#This Row],[List 2]],Table_PI[[#This Row],[List 3]],Table_PI[[#This Row],[Size]],Table_PI[[#This Row],[Input 1]],Table_PI[[#This Row],[Input 2]],Table_PI[[#This Row],[Input 3]],Table_PI[[#This Row],[Input 4]],'Customer Information'!$AR$12,103,ROW())<>0,MeasureCalc(Table_PI[[#This Row],[Hide:\nFormula Name]],Table_SummaryPI[[#This Row],[Quantity]],Table_PI[[#This Row],[List 1]],Table_PI[[#This Row],[List 2]],Table_PI[[#This Row],[List 3]],Table_PI[[#This Row],[Size]],Table_PI[[#This Row],[Input 1]],Table_PI[[#This Row],[Input 2]],Table_PI[[#This Row],[Input 3]],Table_PI[[#This Row],[Input 4]],'Customer Information'!$AR$12,103,ROW())<>\"No Rebate\"),MeasureCalc(Table_PI[[#This Row],[Hide:\nFormula Name]],Table_SummaryPI[[#This Row],[Quantity]],Table_PI[[#This Row],[List 1]],Table_PI[[#This Row],[List 2]],Table_PI[[#This Row],[List 3]],Table_PI[[#This Row],[Size]],Table_PI[[#This Row],[Input 1]],Table_PI[[#This Row],[Input 2]],Table_PI[[#This Row],[Input 3]],Table_PI[[#This Row],[Input 4]],'Customer Information'!$AR$12,103,ROW()),\"\"),\"\")","v":""},{"$f":"IF(Table_PI[[#This Row],[Input 4]]<>\"\",Table_PI[[#This Row],[Input 4]],\"\")","v":""},{"$f":"IF(Table_PI[[#This Row],[Quantity]]=\"\",\"\",Table_PI[[#This Row],[Quantity]])","v":""},{"$f":"IF(Table_PI[[#This Row],[Notes]]=\"\",\"\",Table_PI[[#This Row],[Notes]])","v":""},{"$f":"IF(OR(Table_PI[[#This Row],[Hide:\nBaseline kWh]]=\"\",Table_PI[[#This Row],[Hide:\nBaseline kWh]]=0),\"\",Table_PI[[#This Row],[Hide:\nBaseline kWh]])","v":""},{"$f":"IF(OR(Table_PI[[#This Row],[Hide:\nBaseline kW]]=\"\",Table_PI[[#This Row],[Hide:\nBaseline kW]]=0),\"\",Table_PI[[#This Row],[Hide:\nBaseline kW]])","v":""},{"$f":"IF(OR(Table_PI[[#This Row],[Hide:\nProposed kWh]]=\"\",Table_PI[[#This Row],[Hide:\nProposed kWh]]=0),\"\",Table_PI[[#This Row],[Hide:\nProposed kWh]])","v":""},{"$f":"IF(OR(Table_PI[[#This Row],[Hide:\nProposed kW]]=\"\",Table_PI[[#This Row],[Hide:\nProposed kW]]=0),\"\",Table_PI[[#This Row],[Hide:\nProposed kW]])","v":""},{"$f":"IF(OR(Table_PI[[#This Row],[Rebate]]=\"\",Table_PI[[#This Row],[Rebate]]=0),\"\",Table_PI[[#This Row],[Rebate]])","v":""},{"$f":"IF(OR(Table_PI[[#This Row],[Hide:\nIncremental Cost]]=\"\",Table_PI[[#This Row],[Hide:\nIncremental Cost]]=0),\"\",Table_PI[[#This Row],[Hide:\nIncremental Cost]])","v":""},{"$f":"IFERROR(IF(Table_SummaryPI[[#This Row],[kWhSavings]]=\"\",\"\",ROUND(Table_SummaryPI[[#This Row],[kWhSavings]]/$AG$401*'Customer Information'!$BC$17,2)),0)","v":""},{"$f":"IF(OR(Table_PI[[#This Row],[Annual kWh]]=\"\",Table_PI[[#This Row],[Annual kWh]]=0),\"\",Table_PI[[#This Row],[Annual kWh]])","v":""},{"$f":"IF(OR(Table_PI[[#This Row],[Peak kW]]=\"\",Table_PI[[#This Row],[Peak kW]]=0),\"\",Table_PI[[#This Row],[Peak kW]])","v":""},{"$f":"IFERROR(IF(Table_SummaryPI[[#This Row],[kWhSavings]]=\"\",\"\",$AU$9*Table_SummaryPI[[#This Row],[kWhSavings]]),0)","v":""},{"$f":"IFERROR(IF(Table_SummaryPI[[#This Row],[kWhSavings]]=\"\",\"\",$AU$14*Table_SummaryPI[[#This Row],[kWhSavings]]),0)","v":""},{"$f":"IFERROR(IF(Table_SummaryPI[[#This Row],[kWhSavings]]=\"\",\"\",$AU$18*Table_SummaryPI[[#This Row],[kWhSavings]]),0)","v":""},{"$f":"IFERROR(IF(Table_SummaryPI[[#This Row],[kWhSavings]]=\"\",\"\",$AU$22*Table_SummaryPI[[#This Row],[kWhSavings]]),0)","v":""},{"$f":"IFERROR(IF(MeasureCalc(Table_PI[[#This Row],[Hide:\nFormula Name]],Table_SummaryPI[[#This Row],[Quantity]],Table_PI[[#This Row],[List 1]],Table_PI[[#This Row],[List 2]],Table_PI[[#This Row],[List 3]],Table_PI[[#This Row],[Size]],Table_PI[[#This Row],[Input 1]],Table_PI[[#This Row],[Input 2]],Table_PI[[#This Row],[Input 3]],Table_PI[[#This Row],[Input 4]],'Customer Information'!$AR$12,200,ROW())<>\"No Rebate\",MeasureCalc(Table_PI[[#This Row],[Hide:\nFormula Name]],Table_SummaryPI[[#This Row],[Quantity]],Table_PI[[#This Row],[List 1]],Table_PI[[#This Row],[List 2]],Table_PI[[#This Row],[List 3]],Table_PI[[#This Row],[Size]],Table_PI[[#This Row],[Input 1]],Table_PI[[#This Row],[Input 2]],Table_PI[[#This Row],[Input 3]],Table_PI[[#This Row],[Input 4]],'Customer Information'!$AR$12,200,ROW()),\"\"),\"\")","v":""},{"$f":"IFERROR(IF(MeasureCalc(Table_PI[[#This Row],[Hide:\nFormula Name]],Table_SummaryPI[[#This Row],[Quantity]],Table_PI[[#This Row],[List 1]],Table_PI[[#This Row],[List 2]],Table_PI[[#This Row],[List 3]],Table_PI[[#This Row],[Size]],Table_PI[[#This Row],[Input 1]],Table_PI[[#This Row],[Input 2]],Table_PI[[#This Row],[Input 3]],Table_PI[[#This Row],[Input 4]],'Customer Information'!$AR$12,201,ROW())<>\"No Rebate\",MeasureCalc(Table_PI[[#This Row],[Hide:\nFormula Name]],Table_SummaryPI[[#This Row],[Quantity]],Table_PI[[#This Row],[List 1]],Table_PI[[#This Row],[List 2]],Table_PI[[#This Row],[List 3]],Table_PI[[#This Row],[Size]],Table_PI[[#This Row],[Input 1]],Table_PI[[#This Row],[Input 2]],Table_PI[[#This Row],[Input 3]],Table_PI[[#This Row],[Input 4]],'Customer Information'!$AR$12,201,ROW()),\"\"),\"\")","v":""}]
[{"$f":"Table_PI[[#This Row],[Line No.]]","v":""},{"$f":"IF(Table_SummaryPI[[#This Row],[MeassureCategory]]<>\"\",CONCATENATE(Table_SummaryPI[[#This Row],[MeassureCategory]],  \" - \", Table_SummaryPI[[#This Row],[ProposedMeasureCategory]],  \" - \", TEXT(Table_SummaryPI[[#This Row],[Size]],\"#,##0.00\"),\" \",Table_SummaryPI[[#This Row],[SizeUnit]]),\"\")","v":""},{"$f":"SUBSTITUTE(Table_PI[[#This Row],[Measure]],\"     \",\"\",1)","v":""},{"$f":"IF(Table_PI[[#This Row],[List 1]]<>\"\",Table_PI[[#This Row],[List 1]],\"\")","v":""},{"$f":"IF(Table_PI[[#This Row],[List 2]]<>\"\",Table_PI[[#This Row],[List 2]],\"\")","v":""},{"$f":"IF(Table_PI[[#This Row],[List 3]]<>\"\",Table_PI[[#This Row],[List 3]],\"\")","v":""},{"$f":"IF(Table_PI[[#This Row],[Manufacturer]]=\"\",\"\",Table_PI[[#This Row],[Manufacturer]])","v":""},{"$f":"IF(Table_PI[[#This Row],[Model Number]]=\"\",\"\",Table_PI[[#This Row],[Model Number]])","v":""},{"$f":"IF(Table_PI[[#This Row],[Serial Number(s)]]=\"\",\"\",Table_PI[[#This Row],[Serial Number(s)]])","v":""},null,{"$f":"IF(Table_PI[[#This Row],[Size]]=\"\",\"\",Table_PI[[#This Row],[Size]])","v":""},null,{"$f":"IFERROR(IF(AND(MeasureCalc(Table_PI[[#This Row],[Hide:\nFormula Name]],Table_SummaryPI[[#This Row],[Quantity]],Table_PI[[#This Row],[List 1]],Table_PI[[#This Row],[List 2]],Table_PI[[#This Row],[List 3]],Table_PI[[#This Row],[Size]],Table_PI[[#This Row],[Input 1]],Table_PI[[#This Row],[Input 2]],Table_PI[[#This Row],[Input 3]],Table_PI[[#This Row],[Input 4]],'Customer Information'!$AR$12,100,ROW())<>0,MeasureCalc(Table_PI[[#This Row],[Hide:\nFormula Name]],Table_SummaryPI[[#This Row],[Quantity]],Table_PI[[#This Row],[List 1]],Table_PI[[#This Row],[List 2]],Table_PI[[#This Row],[List 3]],Table_PI[[#This Row],[Size]],Table_PI[[#This Row],[Input 1]],Table_PI[[#This Row],[Input 2]],Table_PI[[#This Row],[Input 3]],Table_PI[[#This Row],[Input 4]],'Customer Information'!$AR$12,100,ROW())<>\"No Rebate\"),MeasureCalc(Table_PI[[#This Row],[Hide:\nFormula Name]],Table_SummaryPI[[#This Row],[Quantity]],Table_PI[[#This Row],[List 1]],Table_PI[[#This Row],[List 2]],Table_PI[[#This Row],[List 3]],Table_PI[[#This Row],[Size]],Table_PI[[#This Row],[Input 1]],Table_PI[[#This Row],[Input 2]],Table_PI[[#This Row],[Input 3]],Table_PI[[#This Row],[Input 4]],'Customer Information'!$AR$12,100,ROW()),\"\"),\"\")","v":""},{"$f":"IF(Table_PI[[#This Row],[Input 1]]<>\"\",Table_PI[[#This Row],[Input 1]],\"\")","v":""},null,{"$f":"IFERROR(IF(AND(MeasureCalc(Table_PI[[#This Row],[Hide:\nFormula Name]],Table_SummaryPI[[#This Row],[Quantity]],Table_PI[[#This Row],[List 1]],Table_PI[[#This Row],[List 2]],Table_PI[[#This Row],[List 3]],Table_PI[[#This Row],[Size]],Table_PI[[#This Row],[Input 1]],Table_PI[[#This Row],[Input 2]],Table_PI[[#This Row],[Input 3]],Table_PI[[#This Row],[Input 4]],'Customer Information'!$AR$12,101,ROW())<>0,MeasureCalc(Table_PI[[#This Row],[Hide:\nFormula Name]],Table_SummaryPI[[#This Row],[Quantity]],Table_PI[[#This Row],[List 1]],Table_PI[[#This Row],[List 2]],Table_PI[[#This Row],[List 3]],Table_PI[[#This Row],[Size]],Table_PI[[#This Row],[Input 1]],Table_PI[[#This Row],[Input 2]],Table_PI[[#This Row],[Input 3]],Table_PI[[#This Row],[Input 4]],'Customer Information'!$AR$12,101,ROW())<>\"No Rebate\"),MeasureCalc(Table_PI[[#This Row],[Hide:\nFormula Name]],Table_SummaryPI[[#This Row],[Quantity]],Table_PI[[#This Row],[List 1]],Table_PI[[#This Row],[List 2]],Table_PI[[#This Row],[List 3]],Table_PI[[#This Row],[Size]],Table_PI[[#This Row],[Input 1]],Table_PI[[#This Row],[Input 2]],Table_PI[[#This Row],[Input 3]],Table_PI[[#This Row],[Input 4]],'Customer Information'!$AR$12,101,ROW()),\"\"),\"\")","v":""},{"$f":"IF(Table_PI[[#This Row],[Input 2]]<>\"\",Table_PI[[#This Row],[Input 2]],\"\")","v":""},null,{"$f":"IFERROR(IF(AND(MeasureCalc(Table_PI[[#This Row],[Hide:\nFormula Name]],Table_SummaryPI[[#This Row],[Quantity]],Table_PI[[#This Row],[List 1]],Table_PI[[#This Row],[List 2]],Table_PI[[#This Row],[List 3]],Table_PI[[#This Row],[Size]],Table_PI[[#This Row],[Input 1]],Table_PI[[#This Row],[Input 2]],Table_PI[[#This Row],[Input 3]],Table_PI[[#This Row],[Input 4]],'Customer Information'!$AR$12,102,ROW())<>0,MeasureCalc(Table_PI[[#This Row],[Hide:\nFormula Name]],Table_SummaryPI[[#This Row],[Quantity]],Table_PI[[#This Row],[List 1]],Table_PI[[#This Row],[List 2]],Table_PI[[#This Row],[List 3]],Table_PI[[#This Row],[Size]],Table_PI[[#This Row],[Input 1]],Table_PI[[#This Row],[Input 2]],Table_PI[[#This Row],[Input 3]],Table_PI[[#This Row],[Input 4]],'Customer Information'!$AR$12,102,ROW())<>\"No Rebate\"),MeasureCalc(Table_PI[[#This Row],[Hide:\nFormula Name]],Table_SummaryPI[[#This Row],[Quantity]],Table_PI[[#This Row],[List 1]],Table_PI[[#This Row],[List 2]],Table_PI[[#This Row],[List 3]],Table_PI[[#This Row],[Size]],Table_PI[[#This Row],[Input 1]],Table_PI[[#This Row],[Input 2]],Table_PI[[#This Row],[Input 3]],Table_PI[[#This Row],[Input 4]],'Customer Information'!$AR$12,102,ROW()),\"\"),\"\")","v":""},{"$f":"IF(Table_PI[[#This Row],[Input 3]]<>\"\",Table_PI[[#This Row],[Input 3]],\"\")","v":""},null,{"$f":"IFERROR(IF(AND(MeasureCalc(Table_PI[[#This Row],[Hide:\nFormula Name]],Table_SummaryPI[[#This Row],[Quantity]],Table_PI[[#This Row],[List 1]],Table_PI[[#This Row],[List 2]],Table_PI[[#This Row],[List 3]],Table_PI[[#This Row],[Size]],Table_PI[[#This Row],[Input 1]],Table_PI[[#This Row],[Input 2]],Table_PI[[#This Row],[Input 3]],Table_PI[[#This Row],[Input 4]],'Customer Information'!$AR$12,103,ROW())<>0,MeasureCalc(Table_PI[[#This Row],[Hide:\nFormula Name]],Table_SummaryPI[[#This Row],[Quantity]],Table_PI[[#This Row],[List 1]],Table_PI[[#This Row],[List 2]],Table_PI[[#This Row],[List 3]],Table_PI[[#This Row],[Size]],Table_PI[[#This Row],[Input 1]],Table_PI[[#This Row],[Input 2]],Table_PI[[#This Row],[Input 3]],Table_PI[[#This Row],[Input 4]],'Customer Information'!$AR$12,103,ROW())<>\"No Rebate\"),MeasureCalc(Table_PI[[#This Row],[Hide:\nFormula Name]],Table_SummaryPI[[#This Row],[Quantity]],Table_PI[[#This Row],[List 1]],Table_PI[[#This Row],[List 2]],Table_PI[[#This Row],[List 3]],Table_PI[[#This Row],[Size]],Table_PI[[#This Row],[Input 1]],Table_PI[[#This Row],[Input 2]],Table_PI[[#This Row],[Input 3]],Table_PI[[#This Row],[Input 4]],'Customer Information'!$AR$12,103,ROW()),\"\"),\"\")","v":""},{"$f":"IF(Table_PI[[#This Row],[Input 4]]<>\"\",Table_PI[[#This Row],[Input 4]],\"\")","v":""},{"$f":"IF(Table_PI[[#This Row],[Quantity]]=\"\",\"\",Table_PI[[#This Row],[Quantity]])","v":""},{"$f":"IF(Table_PI[[#This Row],[Notes]]=\"\",\"\",Table_PI[[#This Row],[Notes]])","v":""},{"$f":"IF(OR(Table_PI[[#This Row],[Hide:\nBaseline kWh]]=\"\",Table_PI[[#This Row],[Hide:\nBaseline kWh]]=0),\"\",Table_PI[[#This Row],[Hide:\nBaseline kWh]])","v":""},{"$f":"IF(OR(Table_PI[[#This Row],[Hide:\nBaseline kW]]=\"\",Table_PI[[#This Row],[Hide:\nBaseline kW]]=0),\"\",Table_PI[[#This Row],[Hide:\nBaseline kW]])","v":""},{"$f":"IF(OR(Table_PI[[#This Row],[Hide:\nProposed kWh]]=\"\",Table_PI[[#This Row],[Hide:\nProposed kWh]]=0),\"\",Table_PI[[#This Row],[Hide:\nProposed kWh]])","v":""},{"$f":"IF(OR(Table_PI[[#This Row],[Hide:\nProposed kW]]=\"\",Table_PI[[#This Row],[Hide:\nProposed kW]]=0),\"\",Table_PI[[#This Row],[Hide:\nProposed kW]])","v":""},{"$f":"IF(OR(Table_PI[[#This Row],[Rebate]]=\"\",Table_PI[[#This Row],[Rebate]]=0),\"\",Table_PI[[#This Row],[Rebate]])","v":""},{"$f":"IF(OR(Table_PI[[#This Row],[Hide:\nIncremental Cost]]=\"\",Table_PI[[#This Row],[Hide:\nIncremental Cost]]=0),\"\",Table_PI[[#This Row],[Hide:\nIncremental Cost]])","v":""},{"$f":"IFERROR(IF(Table_SummaryPI[[#This Row],[kWhSavings]]=\"\",\"\",ROUND(Table_SummaryPI[[#This Row],[kWhSavings]]/$AG$401*'Customer Information'!$BC$17,2)),0)","v":""},{"$f":"IF(OR(Table_PI[[#This Row],[Annual kWh]]=\"\",Table_PI[[#This Row],[Annual kWh]]=0),\"\",Table_PI[[#This Row],[Annual kWh]])","v":""},{"$f":"IF(OR(Table_PI[[#This Row],[Peak kW]]=\"\",Table_PI[[#This Row],[Peak kW]]=0),\"\",Table_PI[[#This Row],[Peak kW]])","v":""},{"$f":"IFERROR(IF(Table_SummaryPI[[#This Row],[kWhSavings]]=\"\",\"\",$AU$9*Table_SummaryPI[[#This Row],[kWhSavings]]),0)","v":""},{"$f":"IFERROR(IF(Table_SummaryPI[[#This Row],[kWhSavings]]=\"\",\"\",$AU$14*Table_SummaryPI[[#This Row],[kWhSavings]]),0)","v":""},{"$f":"IFERROR(IF(Table_SummaryPI[[#This Row],[kWhSavings]]=\"\",\"\",$AU$18*Table_SummaryPI[[#This Row],[kWhSavings]]),0)","v":""},{"$f":"IFERROR(IF(Table_SummaryPI[[#This Row],[kWhSavings]]=\"\",\"\",$AU$22*Table_SummaryPI[[#This Row],[kWhSavings]]),0)","v":""},{"$f":"IFERROR(IF(MeasureCalc(Table_PI[[#This Row],[Hide:\nFormula Name]],Table_SummaryPI[[#This Row],[Quantity]],Table_PI[[#This Row],[List 1]],Table_PI[[#This Row],[List 2]],Table_PI[[#This Row],[List 3]],Table_PI[[#This Row],[Size]],Table_PI[[#This Row],[Input 1]],Table_PI[[#This Row],[Input 2]],Table_PI[[#This Row],[Input 3]],Table_PI[[#This Row],[Input 4]],'Customer Information'!$AR$12,200,ROW())<>\"No Rebate\",MeasureCalc(Table_PI[[#This Row],[Hide:\nFormula Name]],Table_SummaryPI[[#This Row],[Quantity]],Table_PI[[#This Row],[List 1]],Table_PI[[#This Row],[List 2]],Table_PI[[#This Row],[List 3]],Table_PI[[#This Row],[Size]],Table_PI[[#This Row],[Input 1]],Table_PI[[#This Row],[Input 2]],Table_PI[[#This Row],[Input 3]],Table_PI[[#This Row],[Input 4]],'Customer Information'!$AR$12,200,ROW()),\"\"),\"\")","v":""},{"$f":"IFERROR(IF(MeasureCalc(Table_PI[[#This Row],[Hide:\nFormula Name]],Table_SummaryPI[[#This Row],[Quantity]],Table_PI[[#This Row],[List 1]],Table_PI[[#This Row],[List 2]],Table_PI[[#This Row],[List 3]],Table_PI[[#This Row],[Size]],Table_PI[[#This Row],[Input 1]],Table_PI[[#This Row],[Input 2]],Table_PI[[#This Row],[Input 3]],Table_PI[[#This Row],[Input 4]],'Customer Information'!$AR$12,201,ROW())<>\"No Rebate\",MeasureCalc(Table_PI[[#This Row],[Hide:\nFormula Name]],Table_SummaryPI[[#This Row],[Quantity]],Table_PI[[#This Row],[List 1]],Table_PI[[#This Row],[List 2]],Table_PI[[#This Row],[List 3]],Table_PI[[#This Row],[Size]],Table_PI[[#This Row],[Input 1]],Table_PI[[#This Row],[Input 2]],Table_PI[[#This Row],[Input 3]],Table_PI[[#This Row],[Input 4]],'Customer Information'!$AR$12,201,ROW()),\"\"),\"\")","v":""}]
[{"$f":"Table_PI[[#This Row],[Line No.]]","v":""},{"$f":"IF(Table_SummaryPI[[#This Row],[MeassureCategory]]<>\"\",CONCATENATE(Table_SummaryPI[[#This Row],[MeassureCategory]],  \" - \", Table_SummaryPI[[#This Row],[ProposedMeasureCategory]],  \" - \", TEXT(Table_SummaryPI[[#This Row],[Size]],\"#,##0.00\"),\" \",Table_SummaryPI[[#This Row],[SizeUnit]]),\"\")","v":""},{"$f":"SUBSTITUTE(Table_PI[[#This Row],[Measure]],\"     \",\"\",1)","v":""},{"$f":"IF(Table_PI[[#This Row],[List 1]]<>\"\",Table_PI[[#This Row],[List 1]],\"\")","v":""},{"$f":"IF(Table_PI[[#This Row],[List 2]]<>\"\",Table_PI[[#This Row],[List 2]],\"\")","v":""},{"$f":"IF(Table_PI[[#This Row],[List 3]]<>\"\",Table_PI[[#This Row],[List 3]],\"\")","v":""},{"$f":"IF(Table_PI[[#This Row],[Manufacturer]]=\"\",\"\",Table_PI[[#This Row],[Manufacturer]])","v":""},{"$f":"IF(Table_PI[[#This Row],[Model Number]]=\"\",\"\",Table_PI[[#This Row],[Model Number]])","v":""},{"$f":"IF(Table_PI[[#This Row],[Serial Number(s)]]=\"\",\"\",Table_PI[[#This Row],[Serial Number(s)]])","v":""},null,{"$f":"IF(Table_PI[[#This Row],[Size]]=\"\",\"\",Table_PI[[#This Row],[Size]])","v":""},null,{"$f":"IFERROR(IF(AND(MeasureCalc(Table_PI[[#This Row],[Hide:\nFormula Name]],Table_SummaryPI[[#This Row],[Quantity]],Table_PI[[#This Row],[List 1]],Table_PI[[#This Row],[List 2]],Table_PI[[#This Row],[List 3]],Table_PI[[#This Row],[Size]],Table_PI[[#This Row],[Input 1]],Table_PI[[#This Row],[Input 2]],Table_PI[[#This Row],[Input 3]],Table_PI[[#This Row],[Input 4]],'Customer Information'!$AR$12,100,ROW())<>0,MeasureCalc(Table_PI[[#This Row],[Hide:\nFormula Name]],Table_SummaryPI[[#This Row],[Quantity]],Table_PI[[#This Row],[List 1]],Table_PI[[#This Row],[List 2]],Table_PI[[#This Row],[List 3]],Table_PI[[#This Row],[Size]],Table_PI[[#This Row],[Input 1]],Table_PI[[#This Row],[Input 2]],Table_PI[[#This Row],[Input 3]],Table_PI[[#This Row],[Input 4]],'Customer Information'!$AR$12,100,ROW())<>\"No Rebate\"),MeasureCalc(Table_PI[[#This Row],[Hide:\nFormula Name]],Table_SummaryPI[[#This Row],[Quantity]],Table_PI[[#This Row],[List 1]],Table_PI[[#This Row],[List 2]],Table_PI[[#This Row],[List 3]],Table_PI[[#This Row],[Size]],Table_PI[[#This Row],[Input 1]],Table_PI[[#This Row],[Input 2]],Table_PI[[#This Row],[Input 3]],Table_PI[[#This Row],[Input 4]],'Customer Information'!$AR$12,100,ROW()),\"\"),\"\")","v":""},{"$f":"IF(Table_PI[[#This Row],[Input 1]]<>\"\",Table_PI[[#This Row],[Input 1]],\"\")","v":""},null,{"$f":"IFERROR(IF(AND(MeasureCalc(Table_PI[[#This Row],[Hide:\nFormula Name]],Table_SummaryPI[[#This Row],[Quantity]],Table_PI[[#This Row],[List 1]],Table_PI[[#This Row],[List 2]],Table_PI[[#This Row],[List 3]],Table_PI[[#This Row],[Size]],Table_PI[[#This Row],[Input 1]],Table_PI[[#This Row],[Input 2]],Table_PI[[#This Row],[Input 3]],Table_PI[[#This Row],[Input 4]],'Customer Information'!$AR$12,101,ROW())<>0,MeasureCalc(Table_PI[[#This Row],[Hide:\nFormula Name]],Table_SummaryPI[[#This Row],[Quantity]],Table_PI[[#This Row],[List 1]],Table_PI[[#This Row],[List 2]],Table_PI[[#This Row],[List 3]],Table_PI[[#This Row],[Size]],Table_PI[[#This Row],[Input 1]],Table_PI[[#This Row],[Input 2]],Table_PI[[#This Row],[Input 3]],Table_PI[[#This Row],[Input 4]],'Customer Information'!$AR$12,101,ROW())<>\"No Rebate\"),MeasureCalc(Table_PI[[#This Row],[Hide:\nFormula Name]],Table_SummaryPI[[#This Row],[Quantity]],Table_PI[[#This Row],[List 1]],Table_PI[[#This Row],[List 2]],Table_PI[[#This Row],[List 3]],Table_PI[[#This Row],[Size]],Table_PI[[#This Row],[Input 1]],Table_PI[[#This Row],[Input 2]],Table_PI[[#This Row],[Input 3]],Table_PI[[#This Row],[Input 4]],'Customer Information'!$AR$12,101,ROW()),\"\"),\"\")","v":""},{"$f":"IF(Table_PI[[#This Row],[Input 2]]<>\"\",Table_PI[[#This Row],[Input 2]],\"\")","v":""},null,{"$f":"IFERROR(IF(AND(MeasureCalc(Table_PI[[#This Row],[Hide:\nFormula Name]],Table_SummaryPI[[#This Row],[Quantity]],Table_PI[[#This Row],[List 1]],Table_PI[[#This Row],[List 2]],Table_PI[[#This Row],[List 3]],Table_PI[[#This Row],[Size]],Table_PI[[#This Row],[Input 1]],Table_PI[[#This Row],[Input 2]],Table_PI[[#This Row],[Input 3]],Table_PI[[#This Row],[Input 4]],'Customer Information'!$AR$12,102,ROW())<>0,MeasureCalc(Table_PI[[#This Row],[Hide:\nFormula Name]],Table_SummaryPI[[#This Row],[Quantity]],Table_PI[[#This Row],[List 1]],Table_PI[[#This Row],[List 2]],Table_PI[[#This Row],[List 3]],Table_PI[[#This Row],[Size]],Table_PI[[#This Row],[Input 1]],Table_PI[[#This Row],[Input 2]],Table_PI[[#This Row],[Input 3]],Table_PI[[#This Row],[Input 4]],'Customer Information'!$AR$12,102,ROW())<>\"No Rebate\"),MeasureCalc(Table_PI[[#This Row],[Hide:\nFormula Name]],Table_SummaryPI[[#This Row],[Quantity]],Table_PI[[#This Row],[List 1]],Table_PI[[#This Row],[List 2]],Table_PI[[#This Row],[List 3]],Table_PI[[#This Row],[Size]],Table_PI[[#This Row],[Input 1]],Table_PI[[#This Row],[Input 2]],Table_PI[[#This Row],[Input 3]],Table_PI[[#This Row],[Input 4]],'Customer Information'!$AR$12,102,ROW()),\"\"),\"\")","v":""},{"$f":"IF(Table_PI[[#This Row],[Input 3]]<>\"\",Table_PI[[#This Row],[Input 3]],\"\")","v":""},null,{"$f":"IFERROR(IF(AND(MeasureCalc(Table_PI[[#This Row],[Hide:\nFormula Name]],Table_SummaryPI[[#This Row],[Quantity]],Table_PI[[#This Row],[List 1]],Table_PI[[#This Row],[List 2]],Table_PI[[#This Row],[List 3]],Table_PI[[#This Row],[Size]],Table_PI[[#This Row],[Input 1]],Table_PI[[#This Row],[Input 2]],Table_PI[[#This Row],[Input 3]],Table_PI[[#This Row],[Input 4]],'Customer Information'!$AR$12,103,ROW())<>0,MeasureCalc(Table_PI[[#This Row],[Hide:\nFormula Name]],Table_SummaryPI[[#This Row],[Quantity]],Table_PI[[#This Row],[List 1]],Table_PI[[#This Row],[List 2]],Table_PI[[#This Row],[List 3]],Table_PI[[#This Row],[Size]],Table_PI[[#This Row],[Input 1]],Table_PI[[#This Row],[Input 2]],Table_PI[[#This Row],[Input 3]],Table_PI[[#This Row],[Input 4]],'Customer Information'!$AR$12,103,ROW())<>\"No Rebate\"),MeasureCalc(Table_PI[[#This Row],[Hide:\nFormula Name]],Table_SummaryPI[[#This Row],[Quantity]],Table_PI[[#This Row],[List 1]],Table_PI[[#This Row],[List 2]],Table_PI[[#This Row],[List 3]],Table_PI[[#This Row],[Size]],Table_PI[[#This Row],[Input 1]],Table_PI[[#This Row],[Input 2]],Table_PI[[#This Row],[Input 3]],Table_PI[[#This Row],[Input 4]],'Customer Information'!$AR$12,103,ROW()),\"\"),\"\")","v":""},{"$f":"IF(Table_PI[[#This Row],[Input 4]]<>\"\",Table_PI[[#This Row],[Input 4]],\"\")","v":""},{"$f":"IF(Table_PI[[#This Row],[Quantity]]=\"\",\"\",Table_PI[[#This Row],[Quantity]])","v":""},{"$f":"IF(Table_PI[[#This Row],[Notes]]=\"\",\"\",Table_PI[[#This Row],[Notes]])","v":""},{"$f":"IF(OR(Table_PI[[#This Row],[Hide:\nBaseline kWh]]=\"\",Table_PI[[#This Row],[Hide:\nBaseline kWh]]=0),\"\",Table_PI[[#This Row],[Hide:\nBaseline kWh]])","v":""},{"$f":"IF(OR(Table_PI[[#This Row],[Hide:\nBaseline kW]]=\"\",Table_PI[[#This Row],[Hide:\nBaseline kW]]=0),\"\",Table_PI[[#This Row],[Hide:\nBaseline kW]])","v":""},{"$f":"IF(OR(Table_PI[[#This Row],[Hide:\nProposed kWh]]=\"\",Table_PI[[#This Row],[Hide:\nProposed kWh]]=0),\"\",Table_PI[[#This Row],[Hide:\nProposed kWh]])","v":""},{"$f":"IF(OR(Table_PI[[#This Row],[Hide:\nProposed kW]]=\"\",Table_PI[[#This Row],[Hide:\nProposed kW]]=0),\"\",Table_PI[[#This Row],[Hide:\nProposed kW]])","v":""},{"$f":"IF(OR(Table_PI[[#This Row],[Rebate]]=\"\",Table_PI[[#This Row],[Rebate]]=0),\"\",Table_PI[[#This Row],[Rebate]])","v":""},{"$f":"IF(OR(Table_PI[[#This Row],[Hide:\nIncremental Cost]]=\"\",Table_PI[[#This Row],[Hide:\nIncremental Cost]]=0),\"\",Table_PI[[#This Row],[Hide:\nIncremental Cost]])","v":""},{"$f":"IFERROR(IF(Table_SummaryPI[[#This Row],[kWhSavings]]=\"\",\"\",ROUND(Table_SummaryPI[[#This Row],[kWhSavings]]/$AG$401*'Customer Information'!$BC$17,2)),0)","v":""},{"$f":"IF(OR(Table_PI[[#This Row],[Annual kWh]]=\"\",Table_PI[[#This Row],[Annual kWh]]=0),\"\",Table_PI[[#This Row],[Annual kWh]])","v":""},{"$f":"IF(OR(Table_PI[[#This Row],[Peak kW]]=\"\",Table_PI[[#This Row],[Peak kW]]=0),\"\",Table_PI[[#This Row],[Peak kW]])","v":""},{"$f":"IFERROR(IF(Table_SummaryPI[[#This Row],[kWhSavings]]=\"\",\"\",$AU$9*Table_SummaryPI[[#This Row],[kWhSavings]]),0)","v":""},{"$f":"IFERROR(IF(Table_SummaryPI[[#This Row],[kWhSavings]]=\"\",\"\",$AU$14*Table_SummaryPI[[#This Row],[kWhSavings]]),0)","v":""},{"$f":"IFERROR(IF(Table_SummaryPI[[#This Row],[kWhSavings]]=\"\",\"\",$AU$18*Table_SummaryPI[[#This Row],[kWhSavings]]),0)","v":""},{"$f":"IFERROR(IF(Table_SummaryPI[[#This Row],[kWhSavings]]=\"\",\"\",$AU$22*Table_SummaryPI[[#This Row],[kWhSavings]]),0)","v":""},{"$f":"IFERROR(IF(MeasureCalc(Table_PI[[#This Row],[Hide:\nFormula Name]],Table_SummaryPI[[#This Row],[Quantity]],Table_PI[[#This Row],[List 1]],Table_PI[[#This Row],[List 2]],Table_PI[[#This Row],[List 3]],Table_PI[[#This Row],[Size]],Table_PI[[#This Row],[Input 1]],Table_PI[[#This Row],[Input 2]],Table_PI[[#This Row],[Input 3]],Table_PI[[#This Row],[Input 4]],'Customer Information'!$AR$12,200,ROW())<>\"No Rebate\",MeasureCalc(Table_PI[[#This Row],[Hide:\nFormula Name]],Table_SummaryPI[[#This Row],[Quantity]],Table_PI[[#This Row],[List 1]],Table_PI[[#This Row],[List 2]],Table_PI[[#This Row],[List 3]],Table_PI[[#This Row],[Size]],Table_PI[[#This Row],[Input 1]],Table_PI[[#This Row],[Input 2]],Table_PI[[#This Row],[Input 3]],Table_PI[[#This Row],[Input 4]],'Customer Information'!$AR$12,200,ROW()),\"\"),\"\")","v":""},{"$f":"IFERROR(IF(MeasureCalc(Table_PI[[#This Row],[Hide:\nFormula Name]],Table_SummaryPI[[#This Row],[Quantity]],Table_PI[[#This Row],[List 1]],Table_PI[[#This Row],[List 2]],Table_PI[[#This Row],[List 3]],Table_PI[[#This Row],[Size]],Table_PI[[#This Row],[Input 1]],Table_PI[[#This Row],[Input 2]],Table_PI[[#This Row],[Input 3]],Table_PI[[#This Row],[Input 4]],'Customer Information'!$AR$12,201,ROW())<>\"No Rebate\",MeasureCalc(Table_PI[[#This Row],[Hide:\nFormula Name]],Table_SummaryPI[[#This Row],[Quantity]],Table_PI[[#This Row],[List 1]],Table_PI[[#This Row],[List 2]],Table_PI[[#This Row],[List 3]],Table_PI[[#This Row],[Size]],Table_PI[[#This Row],[Input 1]],Table_PI[[#This Row],[Input 2]],Table_PI[[#This Row],[Input 3]],Table_PI[[#This Row],[Input 4]],'Customer Information'!$AR$12,201,ROW()),\"\"),\"\")","v":""}]
[{"$f":"Table_PI[[#This Row],[Line No.]]","v":""},{"$f":"IF(Table_SummaryPI[[#This Row],[MeassureCategory]]<>\"\",CONCATENATE(Table_SummaryPI[[#This Row],[MeassureCategory]],  \" - \", Table_SummaryPI[[#This Row],[ProposedMeasureCategory]],  \" - \", TEXT(Table_SummaryPI[[#This Row],[Size]],\"#,##0.00\"),\" \",Table_SummaryPI[[#This Row],[SizeUnit]]),\"\")","v":""},{"$f":"SUBSTITUTE(Table_PI[[#This Row],[Measure]],\"     \",\"\",1)","v":""},{"$f":"IF(Table_PI[[#This Row],[List 1]]<>\"\",Table_PI[[#This Row],[List 1]],\"\")","v":""},{"$f":"IF(Table_PI[[#This Row],[List 2]]<>\"\",Table_PI[[#This Row],[List 2]],\"\")","v":""},{"$f":"IF(Table_PI[[#This Row],[List 3]]<>\"\",Table_PI[[#This Row],[List 3]],\"\")","v":""},{"$f":"IF(Table_PI[[#This Row],[Manufacturer]]=\"\",\"\",Table_PI[[#This Row],[Manufacturer]])","v":""},{"$f":"IF(Table_PI[[#This Row],[Model Number]]=\"\",\"\",Table_PI[[#This Row],[Model Number]])","v":""},{"$f":"IF(Table_PI[[#This Row],[Serial Number(s)]]=\"\",\"\",Table_PI[[#This Row],[Serial Number(s)]])","v":""},null,{"$f":"IF(Table_PI[[#This Row],[Size]]=\"\",\"\",Table_PI[[#This Row],[Size]])","v":""},null,{"$f":"IFERROR(IF(AND(MeasureCalc(Table_PI[[#This Row],[Hide:\nFormula Name]],Table_SummaryPI[[#This Row],[Quantity]],Table_PI[[#This Row],[List 1]],Table_PI[[#This Row],[List 2]],Table_PI[[#This Row],[List 3]],Table_PI[[#This Row],[Size]],Table_PI[[#This Row],[Input 1]],Table_PI[[#This Row],[Input 2]],Table_PI[[#This Row],[Input 3]],Table_PI[[#This Row],[Input 4]],'Customer Information'!$AR$12,100,ROW())<>0,MeasureCalc(Table_PI[[#This Row],[Hide:\nFormula Name]],Table_SummaryPI[[#This Row],[Quantity]],Table_PI[[#This Row],[List 1]],Table_PI[[#This Row],[List 2]],Table_PI[[#This Row],[List 3]],Table_PI[[#This Row],[Size]],Table_PI[[#This Row],[Input 1]],Table_PI[[#This Row],[Input 2]],Table_PI[[#This Row],[Input 3]],Table_PI[[#This Row],[Input 4]],'Customer Information'!$AR$12,100,ROW())<>\"No Rebate\"),MeasureCalc(Table_PI[[#This Row],[Hide:\nFormula Name]],Table_SummaryPI[[#This Row],[Quantity]],Table_PI[[#This Row],[List 1]],Table_PI[[#This Row],[List 2]],Table_PI[[#This Row],[List 3]],Table_PI[[#This Row],[Size]],Table_PI[[#This Row],[Input 1]],Table_PI[[#This Row],[Input 2]],Table_PI[[#This Row],[Input 3]],Table_PI[[#This Row],[Input 4]],'Customer Information'!$AR$12,100,ROW()),\"\"),\"\")","v":""},{"$f":"IF(Table_PI[[#This Row],[Input 1]]<>\"\",Table_PI[[#This Row],[Input 1]],\"\")","v":""},null,{"$f":"IFERROR(IF(AND(MeasureCalc(Table_PI[[#This Row],[Hide:\nFormula Name]],Table_SummaryPI[[#This Row],[Quantity]],Table_PI[[#This Row],[List 1]],Table_PI[[#This Row],[List 2]],Table_PI[[#This Row],[List 3]],Table_PI[[#This Row],[Size]],Table_PI[[#This Row],[Input 1]],Table_PI[[#This Row],[Input 2]],Table_PI[[#This Row],[Input 3]],Table_PI[[#This Row],[Input 4]],'Customer Information'!$AR$12,101,ROW())<>0,MeasureCalc(Table_PI[[#This Row],[Hide:\nFormula Name]],Table_SummaryPI[[#This Row],[Quantity]],Table_PI[[#This Row],[List 1]],Table_PI[[#This Row],[List 2]],Table_PI[[#This Row],[List 3]],Table_PI[[#This Row],[Size]],Table_PI[[#This Row],[Input 1]],Table_PI[[#This Row],[Input 2]],Table_PI[[#This Row],[Input 3]],Table_PI[[#This Row],[Input 4]],'Customer Information'!$AR$12,101,ROW())<>\"No Rebate\"),MeasureCalc(Table_PI[[#This Row],[Hide:\nFormula Name]],Table_SummaryPI[[#This Row],[Quantity]],Table_PI[[#This Row],[List 1]],Table_PI[[#This Row],[List 2]],Table_PI[[#This Row],[List 3]],Table_PI[[#This Row],[Size]],Table_PI[[#This Row],[Input 1]],Table_PI[[#This Row],[Input 2]],Table_PI[[#This Row],[Input 3]],Table_PI[[#This Row],[Input 4]],'Customer Information'!$AR$12,101,ROW()),\"\"),\"\")","v":""},{"$f":"IF(Table_PI[[#This Row],[Input 2]]<>\"\",Table_PI[[#This Row],[Input 2]],\"\")","v":""},null,{"$f":"IFERROR(IF(AND(MeasureCalc(Table_PI[[#This Row],[Hide:\nFormula Name]],Table_SummaryPI[[#This Row],[Quantity]],Table_PI[[#This Row],[List 1]],Table_PI[[#This Row],[List 2]],Table_PI[[#This Row],[List 3]],Table_PI[[#This Row],[Size]],Table_PI[[#This Row],[Input 1]],Table_PI[[#This Row],[Input 2]],Table_PI[[#This Row],[Input 3]],Table_PI[[#This Row],[Input 4]],'Customer Information'!$AR$12,102,ROW())<>0,MeasureCalc(Table_PI[[#This Row],[Hide:\nFormula Name]],Table_SummaryPI[[#This Row],[Quantity]],Table_PI[[#This Row],[List 1]],Table_PI[[#This Row],[List 2]],Table_PI[[#This Row],[List 3]],Table_PI[[#This Row],[Size]],Table_PI[[#This Row],[Input 1]],Table_PI[[#This Row],[Input 2]],Table_PI[[#This Row],[Input 3]],Table_PI[[#This Row],[Input 4]],'Customer Information'!$AR$12,102,ROW())<>\"No Rebate\"),MeasureCalc(Table_PI[[#This Row],[Hide:\nFormula Name]],Table_SummaryPI[[#This Row],[Quantity]],Table_PI[[#This Row],[List 1]],Table_PI[[#This Row],[List 2]],Table_PI[[#This Row],[List 3]],Table_PI[[#This Row],[Size]],Table_PI[[#This Row],[Input 1]],Table_PI[[#This Row],[Input 2]],Table_PI[[#This Row],[Input 3]],Table_PI[[#This Row],[Input 4]],'Customer Information'!$AR$12,102,ROW()),\"\"),\"\")","v":""},{"$f":"IF(Table_PI[[#This Row],[Input 3]]<>\"\",Table_PI[[#This Row],[Input 3]],\"\")","v":""},null,{"$f":"IFERROR(IF(AND(MeasureCalc(Table_PI[[#This Row],[Hide:\nFormula Name]],Table_SummaryPI[[#This Row],[Quantity]],Table_PI[[#This Row],[List 1]],Table_PI[[#This Row],[List 2]],Table_PI[[#This Row],[List 3]],Table_PI[[#This Row],[Size]],Table_PI[[#This Row],[Input 1]],Table_PI[[#This Row],[Input 2]],Table_PI[[#This Row],[Input 3]],Table_PI[[#This Row],[Input 4]],'Customer Information'!$AR$12,103,ROW())<>0,MeasureCalc(Table_PI[[#This Row],[Hide:\nFormula Name]],Table_SummaryPI[[#This Row],[Quantity]],Table_PI[[#This Row],[List 1]],Table_PI[[#This Row],[List 2]],Table_PI[[#This Row],[List 3]],Table_PI[[#This Row],[Size]],Table_PI[[#This Row],[Input 1]],Table_PI[[#This Row],[Input 2]],Table_PI[[#This Row],[Input 3]],Table_PI[[#This Row],[Input 4]],'Customer Information'!$AR$12,103,ROW())<>\"No Rebate\"),MeasureCalc(Table_PI[[#This Row],[Hide:\nFormula Name]],Table_SummaryPI[[#This Row],[Quantity]],Table_PI[[#This Row],[List 1]],Table_PI[[#This Row],[List 2]],Table_PI[[#This Row],[List 3]],Table_PI[[#This Row],[Size]],Table_PI[[#This Row],[Input 1]],Table_PI[[#This Row],[Input 2]],Table_PI[[#This Row],[Input 3]],Table_PI[[#This Row],[Input 4]],'Customer Information'!$AR$12,103,ROW()),\"\"),\"\")","v":""},{"$f":"IF(Table_PI[[#This Row],[Input 4]]<>\"\",Table_PI[[#This Row],[Input 4]],\"\")","v":""},{"$f":"IF(Table_PI[[#This Row],[Quantity]]=\"\",\"\",Table_PI[[#This Row],[Quantity]])","v":""},{"$f":"IF(Table_PI[[#This Row],[Notes]]=\"\",\"\",Table_PI[[#This Row],[Notes]])","v":""},{"$f":"IF(OR(Table_PI[[#This Row],[Hide:\nBaseline kWh]]=\"\",Table_PI[[#This Row],[Hide:\nBaseline kWh]]=0),\"\",Table_PI[[#This Row],[Hide:\nBaseline kWh]])","v":""},{"$f":"IF(OR(Table_PI[[#This Row],[Hide:\nBaseline kW]]=\"\",Table_PI[[#This Row],[Hide:\nBaseline kW]]=0),\"\",Table_PI[[#This Row],[Hide:\nBaseline kW]])","v":""},{"$f":"IF(OR(Table_PI[[#This Row],[Hide:\nProposed kWh]]=\"\",Table_PI[[#This Row],[Hide:\nProposed kWh]]=0),\"\",Table_PI[[#This Row],[Hide:\nProposed kWh]])","v":""},{"$f":"IF(OR(Table_PI[[#This Row],[Hide:\nProposed kW]]=\"\",Table_PI[[#This Row],[Hide:\nProposed kW]]=0),\"\",Table_PI[[#This Row],[Hide:\nProposed kW]])","v":""},{"$f":"IF(OR(Table_PI[[#This Row],[Rebate]]=\"\",Table_PI[[#This Row],[Rebate]]=0),\"\",Table_PI[[#This Row],[Rebate]])","v":""},{"$f":"IF(OR(Table_PI[[#This Row],[Hide:\nIncremental Cost]]=\"\",Table_PI[[#This Row],[Hide:\nIncremental Cost]]=0),\"\",Table_PI[[#This Row],[Hide:\nIncremental Cost]])","v":""},{"$f":"IFERROR(IF(Table_SummaryPI[[#This Row],[kWhSavings]]=\"\",\"\",ROUND(Table_SummaryPI[[#This Row],[kWhSavings]]/$AG$401*'Customer Information'!$BC$17,2)),0)","v":""},{"$f":"IF(OR(Table_PI[[#This Row],[Annual kWh]]=\"\",Table_PI[[#This Row],[Annual kWh]]=0),\"\",Table_PI[[#This Row],[Annual kWh]])","v":""},{"$f":"IF(OR(Table_PI[[#This Row],[Peak kW]]=\"\",Table_PI[[#This Row],[Peak kW]]=0),\"\",Table_PI[[#This Row],[Peak kW]])","v":""},{"$f":"IFERROR(IF(Table_SummaryPI[[#This Row],[kWhSavings]]=\"\",\"\",$AU$9*Table_SummaryPI[[#This Row],[kWhSavings]]),0)","v":""},{"$f":"IFERROR(IF(Table_SummaryPI[[#This Row],[kWhSavings]]=\"\",\"\",$AU$14*Table_SummaryPI[[#This Row],[kWhSavings]]),0)","v":""},{"$f":"IFERROR(IF(Table_SummaryPI[[#This Row],[kWhSavings]]=\"\",\"\",$AU$18*Table_SummaryPI[[#This Row],[kWhSavings]]),0)","v":""},{"$f":"IFERROR(IF(Table_SummaryPI[[#This Row],[kWhSavings]]=\"\",\"\",$AU$22*Table_SummaryPI[[#This Row],[kWhSavings]]),0)","v":""},{"$f":"IFERROR(IF(MeasureCalc(Table_PI[[#This Row],[Hide:\nFormula Name]],Table_SummaryPI[[#This Row],[Quantity]],Table_PI[[#This Row],[List 1]],Table_PI[[#This Row],[List 2]],Table_PI[[#This Row],[List 3]],Table_PI[[#This Row],[Size]],Table_PI[[#This Row],[Input 1]],Table_PI[[#This Row],[Input 2]],Table_PI[[#This Row],[Input 3]],Table_PI[[#This Row],[Input 4]],'Customer Information'!$AR$12,200,ROW())<>\"No Rebate\",MeasureCalc(Table_PI[[#This Row],[Hide:\nFormula Name]],Table_SummaryPI[[#This Row],[Quantity]],Table_PI[[#This Row],[List 1]],Table_PI[[#This Row],[List 2]],Table_PI[[#This Row],[List 3]],Table_PI[[#This Row],[Size]],Table_PI[[#This Row],[Input 1]],Table_PI[[#This Row],[Input 2]],Table_PI[[#This Row],[Input 3]],Table_PI[[#This Row],[Input 4]],'Customer Information'!$AR$12,200,ROW()),\"\"),\"\")","v":""},{"$f":"IFERROR(IF(MeasureCalc(Table_PI[[#This Row],[Hide:\nFormula Name]],Table_SummaryPI[[#This Row],[Quantity]],Table_PI[[#This Row],[List 1]],Table_PI[[#This Row],[List 2]],Table_PI[[#This Row],[List 3]],Table_PI[[#This Row],[Size]],Table_PI[[#This Row],[Input 1]],Table_PI[[#This Row],[Input 2]],Table_PI[[#This Row],[Input 3]],Table_PI[[#This Row],[Input 4]],'Customer Information'!$AR$12,201,ROW())<>\"No Rebate\",MeasureCalc(Table_PI[[#This Row],[Hide:\nFormula Name]],Table_SummaryPI[[#This Row],[Quantity]],Table_PI[[#This Row],[List 1]],Table_PI[[#This Row],[List 2]],Table_PI[[#This Row],[List 3]],Table_PI[[#This Row],[Size]],Table_PI[[#This Row],[Input 1]],Table_PI[[#This Row],[Input 2]],Table_PI[[#This Row],[Input 3]],Table_PI[[#This Row],[Input 4]],'Customer Information'!$AR$12,201,ROW()),\"\"),\"\")","v":""}]
[{"$f":"Table_PI[[#This Row],[Line No.]]","v":""},{"$f":"IF(Table_SummaryPI[[#This Row],[MeassureCategory]]<>\"\",CONCATENATE(Table_SummaryPI[[#This Row],[MeassureCategory]],  \" - \", Table_SummaryPI[[#This Row],[ProposedMeasureCategory]],  \" - \", TEXT(Table_SummaryPI[[#This Row],[Size]],\"#,##0.00\"),\" \",Table_SummaryPI[[#This Row],[SizeUnit]]),\"\")","v":""},{"$f":"SUBSTITUTE(Table_PI[[#This Row],[Measure]],\"     \",\"\",1)","v":""},{"$f":"IF(Table_PI[[#This Row],[List 1]]<>\"\",Table_PI[[#This Row],[List 1]],\"\")","v":""},{"$f":"IF(Table_PI[[#This Row],[List 2]]<>\"\",Table_PI[[#This Row],[List 2]],\"\")","v":""},{"$f":"IF(Table_PI[[#This Row],[List 3]]<>\"\",Table_PI[[#This Row],[List 3]],\"\")","v":""},{"$f":"IF(Table_PI[[#This Row],[Manufacturer]]=\"\",\"\",Table_PI[[#This Row],[Manufacturer]])","v":""},{"$f":"IF(Table_PI[[#This Row],[Model Number]]=\"\",\"\",Table_PI[[#This Row],[Model Number]])","v":""},{"$f":"IF(Table_PI[[#This Row],[Serial Number(s)]]=\"\",\"\",Table_PI[[#This Row],[Serial Number(s)]])","v":""},null,{"$f":"IF(Table_PI[[#This Row],[Size]]=\"\",\"\",Table_PI[[#This Row],[Size]])","v":""},null,{"$f":"IFERROR(IF(AND(MeasureCalc(Table_PI[[#This Row],[Hide:\nFormula Name]],Table_SummaryPI[[#This Row],[Quantity]],Table_PI[[#This Row],[List 1]],Table_PI[[#This Row],[List 2]],Table_PI[[#This Row],[List 3]],Table_PI[[#This Row],[Size]],Table_PI[[#This Row],[Input 1]],Table_PI[[#This Row],[Input 2]],Table_PI[[#This Row],[Input 3]],Table_PI[[#This Row],[Input 4]],'Customer Information'!$AR$12,100,ROW())<>0,MeasureCalc(Table_PI[[#This Row],[Hide:\nFormula Name]],Table_SummaryPI[[#This Row],[Quantity]],Table_PI[[#This Row],[List 1]],Table_PI[[#This Row],[List 2]],Table_PI[[#This Row],[List 3]],Table_PI[[#This Row],[Size]],Table_PI[[#This Row],[Input 1]],Table_PI[[#This Row],[Input 2]],Table_PI[[#This Row],[Input 3]],Table_PI[[#This Row],[Input 4]],'Customer Information'!$AR$12,100,ROW())<>\"No Rebate\"),MeasureCalc(Table_PI[[#This Row],[Hide:\nFormula Name]],Table_SummaryPI[[#This Row],[Quantity]],Table_PI[[#This Row],[List 1]],Table_PI[[#This Row],[List 2]],Table_PI[[#This Row],[List 3]],Table_PI[[#This Row],[Size]],Table_PI[[#This Row],[Input 1]],Table_PI[[#This Row],[Input 2]],Table_PI[[#This Row],[Input 3]],Table_PI[[#This Row],[Input 4]],'Customer Information'!$AR$12,100,ROW()),\"\"),\"\")","v":""},{"$f":"IF(Table_PI[[#This Row],[Input 1]]<>\"\",Table_PI[[#This Row],[Input 1]],\"\")","v":""},null,{"$f":"IFERROR(IF(AND(MeasureCalc(Table_PI[[#This Row],[Hide:\nFormula Name]],Table_SummaryPI[[#This Row],[Quantity]],Table_PI[[#This Row],[List 1]],Table_PI[[#This Row],[List 2]],Table_PI[[#This Row],[List 3]],Table_PI[[#This Row],[Size]],Table_PI[[#This Row],[Input 1]],Table_PI[[#This Row],[Input 2]],Table_PI[[#This Row],[Input 3]],Table_PI[[#This Row],[Input 4]],'Customer Information'!$AR$12,101,ROW())<>0,MeasureCalc(Table_PI[[#This Row],[Hide:\nFormula Name]],Table_SummaryPI[[#This Row],[Quantity]],Table_PI[[#This Row],[List 1]],Table_PI[[#This Row],[List 2]],Table_PI[[#This Row],[List 3]],Table_PI[[#This Row],[Size]],Table_PI[[#This Row],[Input 1]],Table_PI[[#This Row],[Input 2]],Table_PI[[#This Row],[Input 3]],Table_PI[[#This Row],[Input 4]],'Customer Information'!$AR$12,101,ROW())<>\"No Rebate\"),MeasureCalc(Table_PI[[#This Row],[Hide:\nFormula Name]],Table_SummaryPI[[#This Row],[Quantity]],Table_PI[[#This Row],[List 1]],Table_PI[[#This Row],[List 2]],Table_PI[[#This Row],[List 3]],Table_PI[[#This Row],[Size]],Table_PI[[#This Row],[Input 1]],Table_PI[[#This Row],[Input 2]],Table_PI[[#This Row],[Input 3]],Table_PI[[#This Row],[Input 4]],'Customer Information'!$AR$12,101,ROW()),\"\"),\"\")","v":""},{"$f":"IF(Table_PI[[#This Row],[Input 2]]<>\"\",Table_PI[[#This Row],[Input 2]],\"\")","v":""},null,{"$f":"IFERROR(IF(AND(MeasureCalc(Table_PI[[#This Row],[Hide:\nFormula Name]],Table_SummaryPI[[#This Row],[Quantity]],Table_PI[[#This Row],[List 1]],Table_PI[[#This Row],[List 2]],Table_PI[[#This Row],[List 3]],Table_PI[[#This Row],[Size]],Table_PI[[#This Row],[Input 1]],Table_PI[[#This Row],[Input 2]],Table_PI[[#This Row],[Input 3]],Table_PI[[#This Row],[Input 4]],'Customer Information'!$AR$12,102,ROW())<>0,MeasureCalc(Table_PI[[#This Row],[Hide:\nFormula Name]],Table_SummaryPI[[#This Row],[Quantity]],Table_PI[[#This Row],[List 1]],Table_PI[[#This Row],[List 2]],Table_PI[[#This Row],[List 3]],Table_PI[[#This Row],[Size]],Table_PI[[#This Row],[Input 1]],Table_PI[[#This Row],[Input 2]],Table_PI[[#This Row],[Input 3]],Table_PI[[#This Row],[Input 4]],'Customer Information'!$AR$12,102,ROW())<>\"No Rebate\"),MeasureCalc(Table_PI[[#This Row],[Hide:\nFormula Name]],Table_SummaryPI[[#This Row],[Quantity]],Table_PI[[#This Row],[List 1]],Table_PI[[#This Row],[List 2]],Table_PI[[#This Row],[List 3]],Table_PI[[#This Row],[Size]],Table_PI[[#This Row],[Input 1]],Table_PI[[#This Row],[Input 2]],Table_PI[[#This Row],[Input 3]],Table_PI[[#This Row],[Input 4]],'Customer Information'!$AR$12,102,ROW()),\"\"),\"\")","v":""},{"$f":"IF(Table_PI[[#This Row],[Input 3]]<>\"\",Table_PI[[#This Row],[Input 3]],\"\")","v":""},null,{"$f":"IFERROR(IF(AND(MeasureCalc(Table_PI[[#This Row],[Hide:\nFormula Name]],Table_SummaryPI[[#This Row],[Quantity]],Table_PI[[#This Row],[List 1]],Table_PI[[#This Row],[List 2]],Table_PI[[#This Row],[List 3]],Table_PI[[#This Row],[Size]],Table_PI[[#This Row],[Input 1]],Table_PI[[#This Row],[Input 2]],Table_PI[[#This Row],[Input 3]],Table_PI[[#This Row],[Input 4]],'Customer Information'!$AR$12,103,ROW())<>0,MeasureCalc(Table_PI[[#This Row],[Hide:\nFormula Name]],Table_SummaryPI[[#This Row],[Quantity]],Table_PI[[#This Row],[List 1]],Table_PI[[#This Row],[List 2]],Table_PI[[#This Row],[List 3]],Table_PI[[#This Row],[Size]],Table_PI[[#This Row],[Input 1]],Table_PI[[#This Row],[Input 2]],Table_PI[[#This Row],[Input 3]],Table_PI[[#This Row],[Input 4]],'Customer Information'!$AR$12,103,ROW())<>\"No Rebate\"),MeasureCalc(Table_PI[[#This Row],[Hide:\nFormula Name]],Table_SummaryPI[[#This Row],[Quantity]],Table_PI[[#This Row],[List 1]],Table_PI[[#This Row],[List 2]],Table_PI[[#This Row],[List 3]],Table_PI[[#This Row],[Size]],Table_PI[[#This Row],[Input 1]],Table_PI[[#This Row],[Input 2]],Table_PI[[#This Row],[Input 3]],Table_PI[[#This Row],[Input 4]],'Customer Information'!$AR$12,103,ROW()),\"\"),\"\")","v":""},{"$f":"IF(Table_PI[[#This Row],[Input 4]]<>\"\",Table_PI[[#This Row],[Input 4]],\"\")","v":""},{"$f":"IF(Table_PI[[#This Row],[Quantity]]=\"\",\"\",Table_PI[[#This Row],[Quantity]])","v":""},{"$f":"IF(Table_PI[[#This Row],[Notes]]=\"\",\"\",Table_PI[[#This Row],[Notes]])","v":""},{"$f":"IF(OR(Table_PI[[#This Row],[Hide:\nBaseline kWh]]=\"\",Table_PI[[#This Row],[Hide:\nBaseline kWh]]=0),\"\",Table_PI[[#This Row],[Hide:\nBaseline kWh]])","v":""},{"$f":"IF(OR(Table_PI[[#This Row],[Hide:\nBaseline kW]]=\"\",Table_PI[[#This Row],[Hide:\nBaseline kW]]=0),\"\",Table_PI[[#This Row],[Hide:\nBaseline kW]])","v":""},{"$f":"IF(OR(Table_PI[[#This Row],[Hide:\nProposed kWh]]=\"\",Table_PI[[#This Row],[Hide:\nProposed kWh]]=0),\"\",Table_PI[[#This Row],[Hide:\nProposed kWh]])","v":""},{"$f":"IF(OR(Table_PI[[#This Row],[Hide:\nProposed kW]]=\"\",Table_PI[[#This Row],[Hide:\nProposed kW]]=0),\"\",Table_PI[[#This Row],[Hide:\nProposed kW]])","v":""},{"$f":"IF(OR(Table_PI[[#This Row],[Rebate]]=\"\",Table_PI[[#This Row],[Rebate]]=0),\"\",Table_PI[[#This Row],[Rebate]])","v":""},{"$f":"IF(OR(Table_PI[[#This Row],[Hide:\nIncremental Cost]]=\"\",Table_PI[[#This Row],[Hide:\nIncremental Cost]]=0),\"\",Table_PI[[#This Row],[Hide:\nIncremental Cost]])","v":""},{"$f":"IFERROR(IF(Table_SummaryPI[[#This Row],[kWhSavings]]=\"\",\"\",ROUND(Table_SummaryPI[[#This Row],[kWhSavings]]/$AG$401*'Customer Information'!$BC$17,2)),0)","v":""},{"$f":"IF(OR(Table_PI[[#This Row],[Annual kWh]]=\"\",Table_PI[[#This Row],[Annual kWh]]=0),\"\",Table_PI[[#This Row],[Annual kWh]])","v":""},{"$f":"IF(OR(Table_PI[[#This Row],[Peak kW]]=\"\",Table_PI[[#This Row],[Peak kW]]=0),\"\",Table_PI[[#This Row],[Peak kW]])","v":""},{"$f":"IFERROR(IF(Table_SummaryPI[[#This Row],[kWhSavings]]=\"\",\"\",$AU$9*Table_SummaryPI[[#This Row],[kWhSavings]]),0)","v":""},{"$f":"IFERROR(IF(Table_SummaryPI[[#This Row],[kWhSavings]]=\"\",\"\",$AU$14*Table_SummaryPI[[#This Row],[kWhSavings]]),0)","v":""},{"$f":"IFERROR(IF(Table_SummaryPI[[#This Row],[kWhSavings]]=\"\",\"\",$AU$18*Table_SummaryPI[[#This Row],[kWhSavings]]),0)","v":""},{"$f":"IFERROR(IF(Table_SummaryPI[[#This Row],[kWhSavings]]=\"\",\"\",$AU$22*Table_SummaryPI[[#This Row],[kWhSavings]]),0)","v":""},{"$f":"IFERROR(IF(MeasureCalc(Table_PI[[#This Row],[Hide:\nFormula Name]],Table_SummaryPI[[#This Row],[Quantity]],Table_PI[[#This Row],[List 1]],Table_PI[[#This Row],[List 2]],Table_PI[[#This Row],[List 3]],Table_PI[[#This Row],[Size]],Table_PI[[#This Row],[Input 1]],Table_PI[[#This Row],[Input 2]],Table_PI[[#This Row],[Input 3]],Table_PI[[#This Row],[Input 4]],'Customer Information'!$AR$12,200,ROW())<>\"No Rebate\",MeasureCalc(Table_PI[[#This Row],[Hide:\nFormula Name]],Table_SummaryPI[[#This Row],[Quantity]],Table_PI[[#This Row],[List 1]],Table_PI[[#This Row],[List 2]],Table_PI[[#This Row],[List 3]],Table_PI[[#This Row],[Size]],Table_PI[[#This Row],[Input 1]],Table_PI[[#This Row],[Input 2]],Table_PI[[#This Row],[Input 3]],Table_PI[[#This Row],[Input 4]],'Customer Information'!$AR$12,200,ROW()),\"\"),\"\")","v":""},{"$f":"IFERROR(IF(MeasureCalc(Table_PI[[#This Row],[Hide:\nFormula Name]],Table_SummaryPI[[#This Row],[Quantity]],Table_PI[[#This Row],[List 1]],Table_PI[[#This Row],[List 2]],Table_PI[[#This Row],[List 3]],Table_PI[[#This Row],[Size]],Table_PI[[#This Row],[Input 1]],Table_PI[[#This Row],[Input 2]],Table_PI[[#This Row],[Input 3]],Table_PI[[#This Row],[Input 4]],'Customer Information'!$AR$12,201,ROW())<>\"No Rebate\",MeasureCalc(Table_PI[[#This Row],[Hide:\nFormula Name]],Table_SummaryPI[[#This Row],[Quantity]],Table_PI[[#This Row],[List 1]],Table_PI[[#This Row],[List 2]],Table_PI[[#This Row],[List 3]],Table_PI[[#This Row],[Size]],Table_PI[[#This Row],[Input 1]],Table_PI[[#This Row],[Input 2]],Table_PI[[#This Row],[Input 3]],Table_PI[[#This Row],[Input 4]],'Customer Information'!$AR$12,201,ROW()),\"\"),\"\")","v":""}]
[{"$f":"Table_PI[[#This Row],[Line No.]]","v":""},{"$f":"IF(Table_SummaryPI[[#This Row],[MeassureCategory]]<>\"\",CONCATENATE(Table_SummaryPI[[#This Row],[MeassureCategory]],  \" - \", Table_SummaryPI[[#This Row],[ProposedMeasureCategory]],  \" - \", TEXT(Table_SummaryPI[[#This Row],[Size]],\"#,##0.00\"),\" \",Table_SummaryPI[[#This Row],[SizeUnit]]),\"\")","v":""},{"$f":"SUBSTITUTE(Table_PI[[#This Row],[Measure]],\"     \",\"\",1)","v":""},{"$f":"IF(Table_PI[[#This Row],[List 1]]<>\"\",Table_PI[[#This Row],[List 1]],\"\")","v":""},{"$f":"IF(Table_PI[[#This Row],[List 2]]<>\"\",Table_PI[[#This Row],[List 2]],\"\")","v":""},{"$f":"IF(Table_PI[[#This Row],[List 3]]<>\"\",Table_PI[[#This Row],[List 3]],\"\")","v":""},{"$f":"IF(Table_PI[[#This Row],[Manufacturer]]=\"\",\"\",Table_PI[[#This Row],[Manufacturer]])","v":""},{"$f":"IF(Table_PI[[#This Row],[Model Number]]=\"\",\"\",Table_PI[[#This Row],[Model Number]])","v":""},{"$f":"IF(Table_PI[[#This Row],[Serial Number(s)]]=\"\",\"\",Table_PI[[#This Row],[Serial Number(s)]])","v":""},null,{"$f":"IF(Table_PI[[#This Row],[Size]]=\"\",\"\",Table_PI[[#This Row],[Size]])","v":""},null,{"$f":"IFERROR(IF(AND(MeasureCalc(Table_PI[[#This Row],[Hide:\nFormula Name]],Table_SummaryPI[[#This Row],[Quantity]],Table_PI[[#This Row],[List 1]],Table_PI[[#This Row],[List 2]],Table_PI[[#This Row],[List 3]],Table_PI[[#This Row],[Size]],Table_PI[[#This Row],[Input 1]],Table_PI[[#This Row],[Input 2]],Table_PI[[#This Row],[Input 3]],Table_PI[[#This Row],[Input 4]],'Customer Information'!$AR$12,100,ROW())<>0,MeasureCalc(Table_PI[[#This Row],[Hide:\nFormula Name]],Table_SummaryPI[[#This Row],[Quantity]],Table_PI[[#This Row],[List 1]],Table_PI[[#This Row],[List 2]],Table_PI[[#This Row],[List 3]],Table_PI[[#This Row],[Size]],Table_PI[[#This Row],[Input 1]],Table_PI[[#This Row],[Input 2]],Table_PI[[#This Row],[Input 3]],Table_PI[[#This Row],[Input 4]],'Customer Information'!$AR$12,100,ROW())<>\"No Rebate\"),MeasureCalc(Table_PI[[#This Row],[Hide:\nFormula Name]],Table_SummaryPI[[#This Row],[Quantity]],Table_PI[[#This Row],[List 1]],Table_PI[[#This Row],[List 2]],Table_PI[[#This Row],[List 3]],Table_PI[[#This Row],[Size]],Table_PI[[#This Row],[Input 1]],Table_PI[[#This Row],[Input 2]],Table_PI[[#This Row],[Input 3]],Table_PI[[#This Row],[Input 4]],'Customer Information'!$AR$12,100,ROW()),\"\"),\"\")","v":""},{"$f":"IF(Table_PI[[#This Row],[Input 1]]<>\"\",Table_PI[[#This Row],[Input 1]],\"\")","v":""},null,{"$f":"IFERROR(IF(AND(MeasureCalc(Table_PI[[#This Row],[Hide:\nFormula Name]],Table_SummaryPI[[#This Row],[Quantity]],Table_PI[[#This Row],[List 1]],Table_PI[[#This Row],[List 2]],Table_PI[[#This Row],[List 3]],Table_PI[[#This Row],[Size]],Table_PI[[#This Row],[Input 1]],Table_PI[[#This Row],[Input 2]],Table_PI[[#This Row],[Input 3]],Table_PI[[#This Row],[Input 4]],'Customer Information'!$AR$12,101,ROW())<>0,MeasureCalc(Table_PI[[#This Row],[Hide:\nFormula Name]],Table_SummaryPI[[#This Row],[Quantity]],Table_PI[[#This Row],[List 1]],Table_PI[[#This Row],[List 2]],Table_PI[[#This Row],[List 3]],Table_PI[[#This Row],[Size]],Table_PI[[#This Row],[Input 1]],Table_PI[[#This Row],[Input 2]],Table_PI[[#This Row],[Input 3]],Table_PI[[#This Row],[Input 4]],'Customer Information'!$AR$12,101,ROW())<>\"No Rebate\"),MeasureCalc(Table_PI[[#This Row],[Hide:\nFormula Name]],Table_SummaryPI[[#This Row],[Quantity]],Table_PI[[#This Row],[List 1]],Table_PI[[#This Row],[List 2]],Table_PI[[#This Row],[List 3]],Table_PI[[#This Row],[Size]],Table_PI[[#This Row],[Input 1]],Table_PI[[#This Row],[Input 2]],Table_PI[[#This Row],[Input 3]],Table_PI[[#This Row],[Input 4]],'Customer Information'!$AR$12,101,ROW()),\"\"),\"\")","v":""},{"$f":"IF(Table_PI[[#This Row],[Input 2]]<>\"\",Table_PI[[#This Row],[Input 2]],\"\")","v":""},null,{"$f":"IFERROR(IF(AND(MeasureCalc(Table_PI[[#This Row],[Hide:\nFormula Name]],Table_SummaryPI[[#This Row],[Quantity]],Table_PI[[#This Row],[List 1]],Table_PI[[#This Row],[List 2]],Table_PI[[#This Row],[List 3]],Table_PI[[#This Row],[Size]],Table_PI[[#This Row],[Input 1]],Table_PI[[#This Row],[Input 2]],Table_PI[[#This Row],[Input 3]],Table_PI[[#This Row],[Input 4]],'Customer Information'!$AR$12,102,ROW())<>0,MeasureCalc(Table_PI[[#This Row],[Hide:\nFormula Name]],Table_SummaryPI[[#This Row],[Quantity]],Table_PI[[#This Row],[List 1]],Table_PI[[#This Row],[List 2]],Table_PI[[#This Row],[List 3]],Table_PI[[#This Row],[Size]],Table_PI[[#This Row],[Input 1]],Table_PI[[#This Row],[Input 2]],Table_PI[[#This Row],[Input 3]],Table_PI[[#This Row],[Input 4]],'Customer Information'!$AR$12,102,ROW())<>\"No Rebate\"),MeasureCalc(Table_PI[[#This Row],[Hide:\nFormula Name]],Table_SummaryPI[[#This Row],[Quantity]],Table_PI[[#This Row],[List 1]],Table_PI[[#This Row],[List 2]],Table_PI[[#This Row],[List 3]],Table_PI[[#This Row],[Size]],Table_PI[[#This Row],[Input 1]],Table_PI[[#This Row],[Input 2]],Table_PI[[#This Row],[Input 3]],Table_PI[[#This Row],[Input 4]],'Customer Information'!$AR$12,102,ROW()),\"\"),\"\")","v":""},{"$f":"IF(Table_PI[[#This Row],[Input 3]]<>\"\",Table_PI[[#This Row],[Input 3]],\"\")","v":""},null,{"$f":"IFERROR(IF(AND(MeasureCalc(Table_PI[[#This Row],[Hide:\nFormula Name]],Table_SummaryPI[[#This Row],[Quantity]],Table_PI[[#This Row],[List 1]],Table_PI[[#This Row],[List 2]],Table_PI[[#This Row],[List 3]],Table_PI[[#This Row],[Size]],Table_PI[[#This Row],[Input 1]],Table_PI[[#This Row],[Input 2]],Table_PI[[#This Row],[Input 3]],Table_PI[[#This Row],[Input 4]],'Customer Information'!$AR$12,103,ROW())<>0,MeasureCalc(Table_PI[[#This Row],[Hide:\nFormula Name]],Table_SummaryPI[[#This Row],[Quantity]],Table_PI[[#This Row],[List 1]],Table_PI[[#This Row],[List 2]],Table_PI[[#This Row],[List 3]],Table_PI[[#This Row],[Size]],Table_PI[[#This Row],[Input 1]],Table_PI[[#This Row],[Input 2]],Table_PI[[#This Row],[Input 3]],Table_PI[[#This Row],[Input 4]],'Customer Information'!$AR$12,103,ROW())<>\"No Rebate\"),MeasureCalc(Table_PI[[#This Row],[Hide:\nFormula Name]],Table_SummaryPI[[#This Row],[Quantity]],Table_PI[[#This Row],[List 1]],Table_PI[[#This Row],[List 2]],Table_PI[[#This Row],[List 3]],Table_PI[[#This Row],[Size]],Table_PI[[#This Row],[Input 1]],Table_PI[[#This Row],[Input 2]],Table_PI[[#This Row],[Input 3]],Table_PI[[#This Row],[Input 4]],'Customer Information'!$AR$12,103,ROW()),\"\"),\"\")","v":""},{"$f":"IF(Table_PI[[#This Row],[Input 4]]<>\"\",Table_PI[[#This Row],[Input 4]],\"\")","v":""},{"$f":"IF(Table_PI[[#This Row],[Quantity]]=\"\",\"\",Table_PI[[#This Row],[Quantity]])","v":""},{"$f":"IF(Table_PI[[#This Row],[Notes]]=\"\",\"\",Table_PI[[#This Row],[Notes]])","v":""},{"$f":"IF(OR(Table_PI[[#This Row],[Hide:\nBaseline kWh]]=\"\",Table_PI[[#This Row],[Hide:\nBaseline kWh]]=0),\"\",Table_PI[[#This Row],[Hide:\nBaseline kWh]])","v":""},{"$f":"IF(OR(Table_PI[[#This Row],[Hide:\nBaseline kW]]=\"\",Table_PI[[#This Row],[Hide:\nBaseline kW]]=0),\"\",Table_PI[[#This Row],[Hide:\nBaseline kW]])","v":""},{"$f":"IF(OR(Table_PI[[#This Row],[Hide:\nProposed kWh]]=\"\",Table_PI[[#This Row],[Hide:\nProposed kWh]]=0),\"\",Table_PI[[#This Row],[Hide:\nProposed kWh]])","v":""},{"$f":"IF(OR(Table_PI[[#This Row],[Hide:\nProposed kW]]=\"\",Table_PI[[#This Row],[Hide:\nProposed kW]]=0),\"\",Table_PI[[#This Row],[Hide:\nProposed kW]])","v":""},{"$f":"IF(OR(Table_PI[[#This Row],[Rebate]]=\"\",Table_PI[[#This Row],[Rebate]]=0),\"\",Table_PI[[#This Row],[Rebate]])","v":""},{"$f":"IF(OR(Table_PI[[#This Row],[Hide:\nIncremental Cost]]=\"\",Table_PI[[#This Row],[Hide:\nIncremental Cost]]=0),\"\",Table_PI[[#This Row],[Hide:\nIncremental Cost]])","v":""},{"$f":"IFERROR(IF(Table_SummaryPI[[#This Row],[kWhSavings]]=\"\",\"\",ROUND(Table_SummaryPI[[#This Row],[kWhSavings]]/$AG$401*'Customer Information'!$BC$17,2)),0)","v":""},{"$f":"IF(OR(Table_PI[[#This Row],[Annual kWh]]=\"\",Table_PI[[#This Row],[Annual kWh]]=0),\"\",Table_PI[[#This Row],[Annual kWh]])","v":""},{"$f":"IF(OR(Table_PI[[#This Row],[Peak kW]]=\"\",Table_PI[[#This Row],[Peak kW]]=0),\"\",Table_PI[[#This Row],[Peak kW]])","v":""},{"$f":"IFERROR(IF(Table_SummaryPI[[#This Row],[kWhSavings]]=\"\",\"\",$AU$9*Table_SummaryPI[[#This Row],[kWhSavings]]),0)","v":""},{"$f":"IFERROR(IF(Table_SummaryPI[[#This Row],[kWhSavings]]=\"\",\"\",$AU$14*Table_SummaryPI[[#This Row],[kWhSavings]]),0)","v":""},{"$f":"IFERROR(IF(Table_SummaryPI[[#This Row],[kWhSavings]]=\"\",\"\",$AU$18*Table_SummaryPI[[#This Row],[kWhSavings]]),0)","v":""},{"$f":"IFERROR(IF(Table_SummaryPI[[#This Row],[kWhSavings]]=\"\",\"\",$AU$22*Table_SummaryPI[[#This Row],[kWhSavings]]),0)","v":""},{"$f":"IFERROR(IF(MeasureCalc(Table_PI[[#This Row],[Hide:\nFormula Name]],Table_SummaryPI[[#This Row],[Quantity]],Table_PI[[#This Row],[List 1]],Table_PI[[#This Row],[List 2]],Table_PI[[#This Row],[List 3]],Table_PI[[#This Row],[Size]],Table_PI[[#This Row],[Input 1]],Table_PI[[#This Row],[Input 2]],Table_PI[[#This Row],[Input 3]],Table_PI[[#This Row],[Input 4]],'Customer Information'!$AR$12,200,ROW())<>\"No Rebate\",MeasureCalc(Table_PI[[#This Row],[Hide:\nFormula Name]],Table_SummaryPI[[#This Row],[Quantity]],Table_PI[[#This Row],[List 1]],Table_PI[[#This Row],[List 2]],Table_PI[[#This Row],[List 3]],Table_PI[[#This Row],[Size]],Table_PI[[#This Row],[Input 1]],Table_PI[[#This Row],[Input 2]],Table_PI[[#This Row],[Input 3]],Table_PI[[#This Row],[Input 4]],'Customer Information'!$AR$12,200,ROW()),\"\"),\"\")","v":""},{"$f":"IFERROR(IF(MeasureCalc(Table_PI[[#This Row],[Hide:\nFormula Name]],Table_SummaryPI[[#This Row],[Quantity]],Table_PI[[#This Row],[List 1]],Table_PI[[#This Row],[List 2]],Table_PI[[#This Row],[List 3]],Table_PI[[#This Row],[Size]],Table_PI[[#This Row],[Input 1]],Table_PI[[#This Row],[Input 2]],Table_PI[[#This Row],[Input 3]],Table_PI[[#This Row],[Input 4]],'Customer Information'!$AR$12,201,ROW())<>\"No Rebate\",MeasureCalc(Table_PI[[#This Row],[Hide:\nFormula Name]],Table_SummaryPI[[#This Row],[Quantity]],Table_PI[[#This Row],[List 1]],Table_PI[[#This Row],[List 2]],Table_PI[[#This Row],[List 3]],Table_PI[[#This Row],[Size]],Table_PI[[#This Row],[Input 1]],Table_PI[[#This Row],[Input 2]],Table_PI[[#This Row],[Input 3]],Table_PI[[#This Row],[Input 4]],'Customer Information'!$AR$12,201,ROW()),\"\"),\"\")","v":""}]
[{"$f":"Table_PI[[#This Row],[Line No.]]","v":""},{"$f":"IF(Table_SummaryPI[[#This Row],[MeassureCategory]]<>\"\",CONCATENATE(Table_SummaryPI[[#This Row],[MeassureCategory]],  \" - \", Table_SummaryPI[[#This Row],[ProposedMeasureCategory]],  \" - \", TEXT(Table_SummaryPI[[#This Row],[Size]],\"#,##0.00\"),\" \",Table_SummaryPI[[#This Row],[SizeUnit]]),\"\")","v":""},{"$f":"SUBSTITUTE(Table_PI[[#This Row],[Measure]],\"     \",\"\",1)","v":""},{"$f":"IF(Table_PI[[#This Row],[List 1]]<>\"\",Table_PI[[#This Row],[List 1]],\"\")","v":""},{"$f":"IF(Table_PI[[#This Row],[List 2]]<>\"\",Table_PI[[#This Row],[List 2]],\"\")","v":""},{"$f":"IF(Table_PI[[#This Row],[List 3]]<>\"\",Table_PI[[#This Row],[List 3]],\"\")","v":""},{"$f":"IF(Table_PI[[#This Row],[Manufacturer]]=\"\",\"\",Table_PI[[#This Row],[Manufacturer]])","v":""},{"$f":"IF(Table_PI[[#This Row],[Model Number]]=\"\",\"\",Table_PI[[#This Row],[Model Number]])","v":""},{"$f":"IF(Table_PI[[#This Row],[Serial Number(s)]]=\"\",\"\",Table_PI[[#This Row],[Serial Number(s)]])","v":""},null,{"$f":"IF(Table_PI[[#This Row],[Size]]=\"\",\"\",Table_PI[[#This Row],[Size]])","v":""},null,{"$f":"IFERROR(IF(AND(MeasureCalc(Table_PI[[#This Row],[Hide:\nFormula Name]],Table_SummaryPI[[#This Row],[Quantity]],Table_PI[[#This Row],[List 1]],Table_PI[[#This Row],[List 2]],Table_PI[[#This Row],[List 3]],Table_PI[[#This Row],[Size]],Table_PI[[#This Row],[Input 1]],Table_PI[[#This Row],[Input 2]],Table_PI[[#This Row],[Input 3]],Table_PI[[#This Row],[Input 4]],'Customer Information'!$AR$12,100,ROW())<>0,MeasureCalc(Table_PI[[#This Row],[Hide:\nFormula Name]],Table_SummaryPI[[#This Row],[Quantity]],Table_PI[[#This Row],[List 1]],Table_PI[[#This Row],[List 2]],Table_PI[[#This Row],[List 3]],Table_PI[[#This Row],[Size]],Table_PI[[#This Row],[Input 1]],Table_PI[[#This Row],[Input 2]],Table_PI[[#This Row],[Input 3]],Table_PI[[#This Row],[Input 4]],'Customer Information'!$AR$12,100,ROW())<>\"No Rebate\"),MeasureCalc(Table_PI[[#This Row],[Hide:\nFormula Name]],Table_SummaryPI[[#This Row],[Quantity]],Table_PI[[#This Row],[List 1]],Table_PI[[#This Row],[List 2]],Table_PI[[#This Row],[List 3]],Table_PI[[#This Row],[Size]],Table_PI[[#This Row],[Input 1]],Table_PI[[#This Row],[Input 2]],Table_PI[[#This Row],[Input 3]],Table_PI[[#This Row],[Input 4]],'Customer Information'!$AR$12,100,ROW()),\"\"),\"\")","v":""},{"$f":"IF(Table_PI[[#This Row],[Input 1]]<>\"\",Table_PI[[#This Row],[Input 1]],\"\")","v":""},null,{"$f":"IFERROR(IF(AND(MeasureCalc(Table_PI[[#This Row],[Hide:\nFormula Name]],Table_SummaryPI[[#This Row],[Quantity]],Table_PI[[#This Row],[List 1]],Table_PI[[#This Row],[List 2]],Table_PI[[#This Row],[List 3]],Table_PI[[#This Row],[Size]],Table_PI[[#This Row],[Input 1]],Table_PI[[#This Row],[Input 2]],Table_PI[[#This Row],[Input 3]],Table_PI[[#This Row],[Input 4]],'Customer Information'!$AR$12,101,ROW())<>0,MeasureCalc(Table_PI[[#This Row],[Hide:\nFormula Name]],Table_SummaryPI[[#This Row],[Quantity]],Table_PI[[#This Row],[List 1]],Table_PI[[#This Row],[List 2]],Table_PI[[#This Row],[List 3]],Table_PI[[#This Row],[Size]],Table_PI[[#This Row],[Input 1]],Table_PI[[#This Row],[Input 2]],Table_PI[[#This Row],[Input 3]],Table_PI[[#This Row],[Input 4]],'Customer Information'!$AR$12,101,ROW())<>\"No Rebate\"),MeasureCalc(Table_PI[[#This Row],[Hide:\nFormula Name]],Table_SummaryPI[[#This Row],[Quantity]],Table_PI[[#This Row],[List 1]],Table_PI[[#This Row],[List 2]],Table_PI[[#This Row],[List 3]],Table_PI[[#This Row],[Size]],Table_PI[[#This Row],[Input 1]],Table_PI[[#This Row],[Input 2]],Table_PI[[#This Row],[Input 3]],Table_PI[[#This Row],[Input 4]],'Customer Information'!$AR$12,101,ROW()),\"\"),\"\")","v":""},{"$f":"IF(Table_PI[[#This Row],[Input 2]]<>\"\",Table_PI[[#This Row],[Input 2]],\"\")","v":""},null,{"$f":"IFERROR(IF(AND(MeasureCalc(Table_PI[[#This Row],[Hide:\nFormula Name]],Table_SummaryPI[[#This Row],[Quantity]],Table_PI[[#This Row],[List 1]],Table_PI[[#This Row],[List 2]],Table_PI[[#This Row],[List 3]],Table_PI[[#This Row],[Size]],Table_PI[[#This Row],[Input 1]],Table_PI[[#This Row],[Input 2]],Table_PI[[#This Row],[Input 3]],Table_PI[[#This Row],[Input 4]],'Customer Information'!$AR$12,102,ROW())<>0,MeasureCalc(Table_PI[[#This Row],[Hide:\nFormula Name]],Table_SummaryPI[[#This Row],[Quantity]],Table_PI[[#This Row],[List 1]],Table_PI[[#This Row],[List 2]],Table_PI[[#This Row],[List 3]],Table_PI[[#This Row],[Size]],Table_PI[[#This Row],[Input 1]],Table_PI[[#This Row],[Input 2]],Table_PI[[#This Row],[Input 3]],Table_PI[[#This Row],[Input 4]],'Customer Information'!$AR$12,102,ROW())<>\"No Rebate\"),MeasureCalc(Table_PI[[#This Row],[Hide:\nFormula Name]],Table_SummaryPI[[#This Row],[Quantity]],Table_PI[[#This Row],[List 1]],Table_PI[[#This Row],[List 2]],Table_PI[[#This Row],[List 3]],Table_PI[[#This Row],[Size]],Table_PI[[#This Row],[Input 1]],Table_PI[[#This Row],[Input 2]],Table_PI[[#This Row],[Input 3]],Table_PI[[#This Row],[Input 4]],'Customer Information'!$AR$12,102,ROW()),\"\"),\"\")","v":""},{"$f":"IF(Table_PI[[#This Row],[Input 3]]<>\"\",Table_PI[[#This Row],[Input 3]],\"\")","v":""},null,{"$f":"IFERROR(IF(AND(MeasureCalc(Table_PI[[#This Row],[Hide:\nFormula Name]],Table_SummaryPI[[#This Row],[Quantity]],Table_PI[[#This Row],[List 1]],Table_PI[[#This Row],[List 2]],Table_PI[[#This Row],[List 3]],Table_PI[[#This Row],[Size]],Table_PI[[#This Row],[Input 1]],Table_PI[[#This Row],[Input 2]],Table_PI[[#This Row],[Input 3]],Table_PI[[#This Row],[Input 4]],'Customer Information'!$AR$12,103,ROW())<>0,MeasureCalc(Table_PI[[#This Row],[Hide:\nFormula Name]],Table_SummaryPI[[#This Row],[Quantity]],Table_PI[[#This Row],[List 1]],Table_PI[[#This Row],[List 2]],Table_PI[[#This Row],[List 3]],Table_PI[[#This Row],[Size]],Table_PI[[#This Row],[Input 1]],Table_PI[[#This Row],[Input 2]],Table_PI[[#This Row],[Input 3]],Table_PI[[#This Row],[Input 4]],'Customer Information'!$AR$12,103,ROW())<>\"No Rebate\"),MeasureCalc(Table_PI[[#This Row],[Hide:\nFormula Name]],Table_SummaryPI[[#This Row],[Quantity]],Table_PI[[#This Row],[List 1]],Table_PI[[#This Row],[List 2]],Table_PI[[#This Row],[List 3]],Table_PI[[#This Row],[Size]],Table_PI[[#This Row],[Input 1]],Table_PI[[#This Row],[Input 2]],Table_PI[[#This Row],[Input 3]],Table_PI[[#This Row],[Input 4]],'Customer Information'!$AR$12,103,ROW()),\"\"),\"\")","v":""},{"$f":"IF(Table_PI[[#This Row],[Input 4]]<>\"\",Table_PI[[#This Row],[Input 4]],\"\")","v":""},{"$f":"IF(Table_PI[[#This Row],[Quantity]]=\"\",\"\",Table_PI[[#This Row],[Quantity]])","v":""},{"$f":"IF(Table_PI[[#This Row],[Notes]]=\"\",\"\",Table_PI[[#This Row],[Notes]])","v":""},{"$f":"IF(OR(Table_PI[[#This Row],[Hide:\nBaseline kWh]]=\"\",Table_PI[[#This Row],[Hide:\nBaseline kWh]]=0),\"\",Table_PI[[#This Row],[Hide:\nBaseline kWh]])","v":""},{"$f":"IF(OR(Table_PI[[#This Row],[Hide:\nBaseline kW]]=\"\",Table_PI[[#This Row],[Hide:\nBaseline kW]]=0),\"\",Table_PI[[#This Row],[Hide:\nBaseline kW]])","v":""},{"$f":"IF(OR(Table_PI[[#This Row],[Hide:\nProposed kWh]]=\"\",Table_PI[[#This Row],[Hide:\nProposed kWh]]=0),\"\",Table_PI[[#This Row],[Hide:\nProposed kWh]])","v":""},{"$f":"IF(OR(Table_PI[[#This Row],[Hide:\nProposed kW]]=\"\",Table_PI[[#This Row],[Hide:\nProposed kW]]=0),\"\",Table_PI[[#This Row],[Hide:\nProposed kW]])","v":""},{"$f":"IF(OR(Table_PI[[#This Row],[Rebate]]=\"\",Table_PI[[#This Row],[Rebate]]=0),\"\",Table_PI[[#This Row],[Rebate]])","v":""},{"$f":"IF(OR(Table_PI[[#This Row],[Hide:\nIncremental Cost]]=\"\",Table_PI[[#This Row],[Hide:\nIncremental Cost]]=0),\"\",Table_PI[[#This Row],[Hide:\nIncremental Cost]])","v":""},{"$f":"IFERROR(IF(Table_SummaryPI[[#This Row],[kWhSavings]]=\"\",\"\",ROUND(Table_SummaryPI[[#This Row],[kWhSavings]]/$AG$401*'Customer Information'!$BC$17,2)),0)","v":""},{"$f":"IF(OR(Table_PI[[#This Row],[Annual kWh]]=\"\",Table_PI[[#This Row],[Annual kWh]]=0),\"\",Table_PI[[#This Row],[Annual kWh]])","v":""},{"$f":"IF(OR(Table_PI[[#This Row],[Peak kW]]=\"\",Table_PI[[#This Row],[Peak kW]]=0),\"\",Table_PI[[#This Row],[Peak kW]])","v":""},{"$f":"IFERROR(IF(Table_SummaryPI[[#This Row],[kWhSavings]]=\"\",\"\",$AU$9*Table_SummaryPI[[#This Row],[kWhSavings]]),0)","v":""},{"$f":"IFERROR(IF(Table_SummaryPI[[#This Row],[kWhSavings]]=\"\",\"\",$AU$14*Table_SummaryPI[[#This Row],[kWhSavings]]),0)","v":""},{"$f":"IFERROR(IF(Table_SummaryPI[[#This Row],[kWhSavings]]=\"\",\"\",$AU$18*Table_SummaryPI[[#This Row],[kWhSavings]]),0)","v":""},{"$f":"IFERROR(IF(Table_SummaryPI[[#This Row],[kWhSavings]]=\"\",\"\",$AU$22*Table_SummaryPI[[#This Row],[kWhSavings]]),0)","v":""},{"$f":"IFERROR(IF(MeasureCalc(Table_PI[[#This Row],[Hide:\nFormula Name]],Table_SummaryPI[[#This Row],[Quantity]],Table_PI[[#This Row],[List 1]],Table_PI[[#This Row],[List 2]],Table_PI[[#This Row],[List 3]],Table_PI[[#This Row],[Size]],Table_PI[[#This Row],[Input 1]],Table_PI[[#This Row],[Input 2]],Table_PI[[#This Row],[Input 3]],Table_PI[[#This Row],[Input 4]],'Customer Information'!$AR$12,200,ROW())<>\"No Rebate\",MeasureCalc(Table_PI[[#This Row],[Hide:\nFormula Name]],Table_SummaryPI[[#This Row],[Quantity]],Table_PI[[#This Row],[List 1]],Table_PI[[#This Row],[List 2]],Table_PI[[#This Row],[List 3]],Table_PI[[#This Row],[Size]],Table_PI[[#This Row],[Input 1]],Table_PI[[#This Row],[Input 2]],Table_PI[[#This Row],[Input 3]],Table_PI[[#This Row],[Input 4]],'Customer Information'!$AR$12,200,ROW()),\"\"),\"\")","v":""},{"$f":"IFERROR(IF(MeasureCalc(Table_PI[[#This Row],[Hide:\nFormula Name]],Table_SummaryPI[[#This Row],[Quantity]],Table_PI[[#This Row],[List 1]],Table_PI[[#This Row],[List 2]],Table_PI[[#This Row],[List 3]],Table_PI[[#This Row],[Size]],Table_PI[[#This Row],[Input 1]],Table_PI[[#This Row],[Input 2]],Table_PI[[#This Row],[Input 3]],Table_PI[[#This Row],[Input 4]],'Customer Information'!$AR$12,201,ROW())<>\"No Rebate\",MeasureCalc(Table_PI[[#This Row],[Hide:\nFormula Name]],Table_SummaryPI[[#This Row],[Quantity]],Table_PI[[#This Row],[List 1]],Table_PI[[#This Row],[List 2]],Table_PI[[#This Row],[List 3]],Table_PI[[#This Row],[Size]],Table_PI[[#This Row],[Input 1]],Table_PI[[#This Row],[Input 2]],Table_PI[[#This Row],[Input 3]],Table_PI[[#This Row],[Input 4]],'Customer Information'!$AR$12,201,ROW()),\"\"),\"\")","v":""}]
[{"$f":"Table_PI[[#This Row],[Line No.]]","v":""},{"$f":"IF(Table_SummaryPI[[#This Row],[MeassureCategory]]<>\"\",CONCATENATE(Table_SummaryPI[[#This Row],[MeassureCategory]],  \" - \", Table_SummaryPI[[#This Row],[ProposedMeasureCategory]],  \" - \", TEXT(Table_SummaryPI[[#This Row],[Size]],\"#,##0.00\"),\" \",Table_SummaryPI[[#This Row],[SizeUnit]]),\"\")","v":""},{"$f":"SUBSTITUTE(Table_PI[[#This Row],[Measure]],\"     \",\"\",1)","v":""},{"$f":"IF(Table_PI[[#This Row],[List 1]]<>\"\",Table_PI[[#This Row],[List 1]],\"\")","v":""},{"$f":"IF(Table_PI[[#This Row],[List 2]]<>\"\",Table_PI[[#This Row],[List 2]],\"\")","v":""},{"$f":"IF(Table_PI[[#This Row],[List 3]]<>\"\",Table_PI[[#This Row],[List 3]],\"\")","v":""},{"$f":"IF(Table_PI[[#This Row],[Manufacturer]]=\"\",\"\",Table_PI[[#This Row],[Manufacturer]])","v":""},{"$f":"IF(Table_PI[[#This Row],[Model Number]]=\"\",\"\",Table_PI[[#This Row],[Model Number]])","v":""},{"$f":"IF(Table_PI[[#This Row],[Serial Number(s)]]=\"\",\"\",Table_PI[[#This Row],[Serial Number(s)]])","v":""},null,{"$f":"IF(Table_PI[[#This Row],[Size]]=\"\",\"\",Table_PI[[#This Row],[Size]])","v":""},null,{"$f":"IFERROR(IF(AND(MeasureCalc(Table_PI[[#This Row],[Hide:\nFormula Name]],Table_SummaryPI[[#This Row],[Quantity]],Table_PI[[#This Row],[List 1]],Table_PI[[#This Row],[List 2]],Table_PI[[#This Row],[List 3]],Table_PI[[#This Row],[Size]],Table_PI[[#This Row],[Input 1]],Table_PI[[#This Row],[Input 2]],Table_PI[[#This Row],[Input 3]],Table_PI[[#This Row],[Input 4]],'Customer Information'!$AR$12,100,ROW())<>0,MeasureCalc(Table_PI[[#This Row],[Hide:\nFormula Name]],Table_SummaryPI[[#This Row],[Quantity]],Table_PI[[#This Row],[List 1]],Table_PI[[#This Row],[List 2]],Table_PI[[#This Row],[List 3]],Table_PI[[#This Row],[Size]],Table_PI[[#This Row],[Input 1]],Table_PI[[#This Row],[Input 2]],Table_PI[[#This Row],[Input 3]],Table_PI[[#This Row],[Input 4]],'Customer Information'!$AR$12,100,ROW())<>\"No Rebate\"),MeasureCalc(Table_PI[[#This Row],[Hide:\nFormula Name]],Table_SummaryPI[[#This Row],[Quantity]],Table_PI[[#This Row],[List 1]],Table_PI[[#This Row],[List 2]],Table_PI[[#This Row],[List 3]],Table_PI[[#This Row],[Size]],Table_PI[[#This Row],[Input 1]],Table_PI[[#This Row],[Input 2]],Table_PI[[#This Row],[Input 3]],Table_PI[[#This Row],[Input 4]],'Customer Information'!$AR$12,100,ROW()),\"\"),\"\")","v":""},{"$f":"IF(Table_PI[[#This Row],[Input 1]]<>\"\",Table_PI[[#This Row],[Input 1]],\"\")","v":""},null,{"$f":"IFERROR(IF(AND(MeasureCalc(Table_PI[[#This Row],[Hide:\nFormula Name]],Table_SummaryPI[[#This Row],[Quantity]],Table_PI[[#This Row],[List 1]],Table_PI[[#This Row],[List 2]],Table_PI[[#This Row],[List 3]],Table_PI[[#This Row],[Size]],Table_PI[[#This Row],[Input 1]],Table_PI[[#This Row],[Input 2]],Table_PI[[#This Row],[Input 3]],Table_PI[[#This Row],[Input 4]],'Customer Information'!$AR$12,101,ROW())<>0,MeasureCalc(Table_PI[[#This Row],[Hide:\nFormula Name]],Table_SummaryPI[[#This Row],[Quantity]],Table_PI[[#This Row],[List 1]],Table_PI[[#This Row],[List 2]],Table_PI[[#This Row],[List 3]],Table_PI[[#This Row],[Size]],Table_PI[[#This Row],[Input 1]],Table_PI[[#This Row],[Input 2]],Table_PI[[#This Row],[Input 3]],Table_PI[[#This Row],[Input 4]],'Customer Information'!$AR$12,101,ROW())<>\"No Rebate\"),MeasureCalc(Table_PI[[#This Row],[Hide:\nFormula Name]],Table_SummaryPI[[#This Row],[Quantity]],Table_PI[[#This Row],[List 1]],Table_PI[[#This Row],[List 2]],Table_PI[[#This Row],[List 3]],Table_PI[[#This Row],[Size]],Table_PI[[#This Row],[Input 1]],Table_PI[[#This Row],[Input 2]],Table_PI[[#This Row],[Input 3]],Table_PI[[#This Row],[Input 4]],'Customer Information'!$AR$12,101,ROW()),\"\"),\"\")","v":""},{"$f":"IF(Table_PI[[#This Row],[Input 2]]<>\"\",Table_PI[[#This Row],[Input 2]],\"\")","v":""},null,{"$f":"IFERROR(IF(AND(MeasureCalc(Table_PI[[#This Row],[Hide:\nFormula Name]],Table_SummaryPI[[#This Row],[Quantity]],Table_PI[[#This Row],[List 1]],Table_PI[[#This Row],[List 2]],Table_PI[[#This Row],[List 3]],Table_PI[[#This Row],[Size]],Table_PI[[#This Row],[Input 1]],Table_PI[[#This Row],[Input 2]],Table_PI[[#This Row],[Input 3]],Table_PI[[#This Row],[Input 4]],'Customer Information'!$AR$12,102,ROW())<>0,MeasureCalc(Table_PI[[#This Row],[Hide:\nFormula Name]],Table_SummaryPI[[#This Row],[Quantity]],Table_PI[[#This Row],[List 1]],Table_PI[[#This Row],[List 2]],Table_PI[[#This Row],[List 3]],Table_PI[[#This Row],[Size]],Table_PI[[#This Row],[Input 1]],Table_PI[[#This Row],[Input 2]],Table_PI[[#This Row],[Input 3]],Table_PI[[#This Row],[Input 4]],'Customer Information'!$AR$12,102,ROW())<>\"No Rebate\"),MeasureCalc(Table_PI[[#This Row],[Hide:\nFormula Name]],Table_SummaryPI[[#This Row],[Quantity]],Table_PI[[#This Row],[List 1]],Table_PI[[#This Row],[List 2]],Table_PI[[#This Row],[List 3]],Table_PI[[#This Row],[Size]],Table_PI[[#This Row],[Input 1]],Table_PI[[#This Row],[Input 2]],Table_PI[[#This Row],[Input 3]],Table_PI[[#This Row],[Input 4]],'Customer Information'!$AR$12,102,ROW()),\"\"),\"\")","v":""},{"$f":"IF(Table_PI[[#This Row],[Input 3]]<>\"\",Table_PI[[#This Row],[Input 3]],\"\")","v":""},null,{"$f":"IFERROR(IF(AND(MeasureCalc(Table_PI[[#This Row],[Hide:\nFormula Name]],Table_SummaryPI[[#This Row],[Quantity]],Table_PI[[#This Row],[List 1]],Table_PI[[#This Row],[List 2]],Table_PI[[#This Row],[List 3]],Table_PI[[#This Row],[Size]],Table_PI[[#This Row],[Input 1]],Table_PI[[#This Row],[Input 2]],Table_PI[[#This Row],[Input 3]],Table_PI[[#This Row],[Input 4]],'Customer Information'!$AR$12,103,ROW())<>0,MeasureCalc(Table_PI[[#This Row],[Hide:\nFormula Name]],Table_SummaryPI[[#This Row],[Quantity]],Table_PI[[#This Row],[List 1]],Table_PI[[#This Row],[List 2]],Table_PI[[#This Row],[List 3]],Table_PI[[#This Row],[Size]],Table_PI[[#This Row],[Input 1]],Table_PI[[#This Row],[Input 2]],Table_PI[[#This Row],[Input 3]],Table_PI[[#This Row],[Input 4]],'Customer Information'!$AR$12,103,ROW())<>\"No Rebate\"),MeasureCalc(Table_PI[[#This Row],[Hide:\nFormula Name]],Table_SummaryPI[[#This Row],[Quantity]],Table_PI[[#This Row],[List 1]],Table_PI[[#This Row],[List 2]],Table_PI[[#This Row],[List 3]],Table_PI[[#This Row],[Size]],Table_PI[[#This Row],[Input 1]],Table_PI[[#This Row],[Input 2]],Table_PI[[#This Row],[Input 3]],Table_PI[[#This Row],[Input 4]],'Customer Information'!$AR$12,103,ROW()),\"\"),\"\")","v":""},{"$f":"IF(Table_PI[[#This Row],[Input 4]]<>\"\",Table_PI[[#This Row],[Input 4]],\"\")","v":""},{"$f":"IF(Table_PI[[#This Row],[Quantity]]=\"\",\"\",Table_PI[[#This Row],[Quantity]])","v":""},{"$f":"IF(Table_PI[[#This Row],[Notes]]=\"\",\"\",Table_PI[[#This Row],[Notes]])","v":""},{"$f":"IF(OR(Table_PI[[#This Row],[Hide:\nBaseline kWh]]=\"\",Table_PI[[#This Row],[Hide:\nBaseline kWh]]=0),\"\",Table_PI[[#This Row],[Hide:\nBaseline kWh]])","v":""},{"$f":"IF(OR(Table_PI[[#This Row],[Hide:\nBaseline kW]]=\"\",Table_PI[[#This Row],[Hide:\nBaseline kW]]=0),\"\",Table_PI[[#This Row],[Hide:\nBaseline kW]])","v":""},{"$f":"IF(OR(Table_PI[[#This Row],[Hide:\nProposed kWh]]=\"\",Table_PI[[#This Row],[Hide:\nProposed kWh]]=0),\"\",Table_PI[[#This Row],[Hide:\nProposed kWh]])","v":""},{"$f":"IF(OR(Table_PI[[#This Row],[Hide:\nProposed kW]]=\"\",Table_PI[[#This Row],[Hide:\nProposed kW]]=0),\"\",Table_PI[[#This Row],[Hide:\nProposed kW]])","v":""},{"$f":"IF(OR(Table_PI[[#This Row],[Rebate]]=\"\",Table_PI[[#This Row],[Rebate]]=0),\"\",Table_PI[[#This Row],[Rebate]])","v":""},{"$f":"IF(OR(Table_PI[[#This Row],[Hide:\nIncremental Cost]]=\"\",Table_PI[[#This Row],[Hide:\nIncremental Cost]]=0),\"\",Table_PI[[#This Row],[Hide:\nIncremental Cost]])","v":""},{"$f":"IFERROR(IF(Table_SummaryPI[[#This Row],[kWhSavings]]=\"\",\"\",ROUND(Table_SummaryPI[[#This Row],[kWhSavings]]/$AG$401*'Customer Information'!$BC$17,2)),0)","v":""},{"$f":"IF(OR(Table_PI[[#This Row],[Annual kWh]]=\"\",Table_PI[[#This Row],[Annual kWh]]=0),\"\",Table_PI[[#This Row],[Annual kWh]])","v":""},{"$f":"IF(OR(Table_PI[[#This Row],[Peak kW]]=\"\",Table_PI[[#This Row],[Peak kW]]=0),\"\",Table_PI[[#This Row],[Peak kW]])","v":""},{"$f":"IFERROR(IF(Table_SummaryPI[[#This Row],[kWhSavings]]=\"\",\"\",$AU$9*Table_SummaryPI[[#This Row],[kWhSavings]]),0)","v":""},{"$f":"IFERROR(IF(Table_SummaryPI[[#This Row],[kWhSavings]]=\"\",\"\",$AU$14*Table_SummaryPI[[#This Row],[kWhSavings]]),0)","v":""},{"$f":"IFERROR(IF(Table_SummaryPI[[#This Row],[kWhSavings]]=\"\",\"\",$AU$18*Table_SummaryPI[[#This Row],[kWhSavings]]),0)","v":""},{"$f":"IFERROR(IF(Table_SummaryPI[[#This Row],[kWhSavings]]=\"\",\"\",$AU$22*Table_SummaryPI[[#This Row],[kWhSavings]]),0)","v":""},{"$f":"IFERROR(IF(MeasureCalc(Table_PI[[#This Row],[Hide:\nFormula Name]],Table_SummaryPI[[#This Row],[Quantity]],Table_PI[[#This Row],[List 1]],Table_PI[[#This Row],[List 2]],Table_PI[[#This Row],[List 3]],Table_PI[[#This Row],[Size]],Table_PI[[#This Row],[Input 1]],Table_PI[[#This Row],[Input 2]],Table_PI[[#This Row],[Input 3]],Table_PI[[#This Row],[Input 4]],'Customer Information'!$AR$12,200,ROW())<>\"No Rebate\",MeasureCalc(Table_PI[[#This Row],[Hide:\nFormula Name]],Table_SummaryPI[[#This Row],[Quantity]],Table_PI[[#This Row],[List 1]],Table_PI[[#This Row],[List 2]],Table_PI[[#This Row],[List 3]],Table_PI[[#This Row],[Size]],Table_PI[[#This Row],[Input 1]],Table_PI[[#This Row],[Input 2]],Table_PI[[#This Row],[Input 3]],Table_PI[[#This Row],[Input 4]],'Customer Information'!$AR$12,200,ROW()),\"\"),\"\")","v":""},{"$f":"IFERROR(IF(MeasureCalc(Table_PI[[#This Row],[Hide:\nFormula Name]],Table_SummaryPI[[#This Row],[Quantity]],Table_PI[[#This Row],[List 1]],Table_PI[[#This Row],[List 2]],Table_PI[[#This Row],[List 3]],Table_PI[[#This Row],[Size]],Table_PI[[#This Row],[Input 1]],Table_PI[[#This Row],[Input 2]],Table_PI[[#This Row],[Input 3]],Table_PI[[#This Row],[Input 4]],'Customer Information'!$AR$12,201,ROW())<>\"No Rebate\",MeasureCalc(Table_PI[[#This Row],[Hide:\nFormula Name]],Table_SummaryPI[[#This Row],[Quantity]],Table_PI[[#This Row],[List 1]],Table_PI[[#This Row],[List 2]],Table_PI[[#This Row],[List 3]],Table_PI[[#This Row],[Size]],Table_PI[[#This Row],[Input 1]],Table_PI[[#This Row],[Input 2]],Table_PI[[#This Row],[Input 3]],Table_PI[[#This Row],[Input 4]],'Customer Information'!$AR$12,201,ROW()),\"\"),\"\")","v":""}]
[{"$f":"Table_PI[[#This Row],[Line No.]]","v":""},{"$f":"IF(Table_SummaryPI[[#This Row],[MeassureCategory]]<>\"\",CONCATENATE(Table_SummaryPI[[#This Row],[MeassureCategory]],  \" - \", Table_SummaryPI[[#This Row],[ProposedMeasureCategory]],  \" - \", TEXT(Table_SummaryPI[[#This Row],[Size]],\"#,##0.00\"),\" \",Table_SummaryPI[[#This Row],[SizeUnit]]),\"\")","v":""},{"$f":"SUBSTITUTE(Table_PI[[#This Row],[Measure]],\"     \",\"\",1)","v":""},{"$f":"IF(Table_PI[[#This Row],[List 1]]<>\"\",Table_PI[[#This Row],[List 1]],\"\")","v":""},{"$f":"IF(Table_PI[[#This Row],[List 2]]<>\"\",Table_PI[[#This Row],[List 2]],\"\")","v":""},{"$f":"IF(Table_PI[[#This Row],[List 3]]<>\"\",Table_PI[[#This Row],[List 3]],\"\")","v":""},{"$f":"IF(Table_PI[[#This Row],[Manufacturer]]=\"\",\"\",Table_PI[[#This Row],[Manufacturer]])","v":""},{"$f":"IF(Table_PI[[#This Row],[Model Number]]=\"\",\"\",Table_PI[[#This Row],[Model Number]])","v":""},{"$f":"IF(Table_PI[[#This Row],[Serial Number(s)]]=\"\",\"\",Table_PI[[#This Row],[Serial Number(s)]])","v":""},null,{"$f":"IF(Table_PI[[#This Row],[Size]]=\"\",\"\",Table_PI[[#This Row],[Size]])","v":""},null,{"$f":"IFERROR(IF(AND(MeasureCalc(Table_PI[[#This Row],[Hide:\nFormula Name]],Table_SummaryPI[[#This Row],[Quantity]],Table_PI[[#This Row],[List 1]],Table_PI[[#This Row],[List 2]],Table_PI[[#This Row],[List 3]],Table_PI[[#This Row],[Size]],Table_PI[[#This Row],[Input 1]],Table_PI[[#This Row],[Input 2]],Table_PI[[#This Row],[Input 3]],Table_PI[[#This Row],[Input 4]],'Customer Information'!$AR$12,100,ROW())<>0,MeasureCalc(Table_PI[[#This Row],[Hide:\nFormula Name]],Table_SummaryPI[[#This Row],[Quantity]],Table_PI[[#This Row],[List 1]],Table_PI[[#This Row],[List 2]],Table_PI[[#This Row],[List 3]],Table_PI[[#This Row],[Size]],Table_PI[[#This Row],[Input 1]],Table_PI[[#This Row],[Input 2]],Table_PI[[#This Row],[Input 3]],Table_PI[[#This Row],[Input 4]],'Customer Information'!$AR$12,100,ROW())<>\"No Rebate\"),MeasureCalc(Table_PI[[#This Row],[Hide:\nFormula Name]],Table_SummaryPI[[#This Row],[Quantity]],Table_PI[[#This Row],[List 1]],Table_PI[[#This Row],[List 2]],Table_PI[[#This Row],[List 3]],Table_PI[[#This Row],[Size]],Table_PI[[#This Row],[Input 1]],Table_PI[[#This Row],[Input 2]],Table_PI[[#This Row],[Input 3]],Table_PI[[#This Row],[Input 4]],'Customer Information'!$AR$12,100,ROW()),\"\"),\"\")","v":""},{"$f":"IF(Table_PI[[#This Row],[Input 1]]<>\"\",Table_PI[[#This Row],[Input 1]],\"\")","v":""},null,{"$f":"IFERROR(IF(AND(MeasureCalc(Table_PI[[#This Row],[Hide:\nFormula Name]],Table_SummaryPI[[#This Row],[Quantity]],Table_PI[[#This Row],[List 1]],Table_PI[[#This Row],[List 2]],Table_PI[[#This Row],[List 3]],Table_PI[[#This Row],[Size]],Table_PI[[#This Row],[Input 1]],Table_PI[[#This Row],[Input 2]],Table_PI[[#This Row],[Input 3]],Table_PI[[#This Row],[Input 4]],'Customer Information'!$AR$12,101,ROW())<>0,MeasureCalc(Table_PI[[#This Row],[Hide:\nFormula Name]],Table_SummaryPI[[#This Row],[Quantity]],Table_PI[[#This Row],[List 1]],Table_PI[[#This Row],[List 2]],Table_PI[[#This Row],[List 3]],Table_PI[[#This Row],[Size]],Table_PI[[#This Row],[Input 1]],Table_PI[[#This Row],[Input 2]],Table_PI[[#This Row],[Input 3]],Table_PI[[#This Row],[Input 4]],'Customer Information'!$AR$12,101,ROW())<>\"No Rebate\"),MeasureCalc(Table_PI[[#This Row],[Hide:\nFormula Name]],Table_SummaryPI[[#This Row],[Quantity]],Table_PI[[#This Row],[List 1]],Table_PI[[#This Row],[List 2]],Table_PI[[#This Row],[List 3]],Table_PI[[#This Row],[Size]],Table_PI[[#This Row],[Input 1]],Table_PI[[#This Row],[Input 2]],Table_PI[[#This Row],[Input 3]],Table_PI[[#This Row],[Input 4]],'Customer Information'!$AR$12,101,ROW()),\"\"),\"\")","v":""},{"$f":"IF(Table_PI[[#This Row],[Input 2]]<>\"\",Table_PI[[#This Row],[Input 2]],\"\")","v":""},null,{"$f":"IFERROR(IF(AND(MeasureCalc(Table_PI[[#This Row],[Hide:\nFormula Name]],Table_SummaryPI[[#This Row],[Quantity]],Table_PI[[#This Row],[List 1]],Table_PI[[#This Row],[List 2]],Table_PI[[#This Row],[List 3]],Table_PI[[#This Row],[Size]],Table_PI[[#This Row],[Input 1]],Table_PI[[#This Row],[Input 2]],Table_PI[[#This Row],[Input 3]],Table_PI[[#This Row],[Input 4]],'Customer Information'!$AR$12,102,ROW())<>0,MeasureCalc(Table_PI[[#This Row],[Hide:\nFormula Name]],Table_SummaryPI[[#This Row],[Quantity]],Table_PI[[#This Row],[List 1]],Table_PI[[#This Row],[List 2]],Table_PI[[#This Row],[List 3]],Table_PI[[#This Row],[Size]],Table_PI[[#This Row],[Input 1]],Table_PI[[#This Row],[Input 2]],Table_PI[[#This Row],[Input 3]],Table_PI[[#This Row],[Input 4]],'Customer Information'!$AR$12,102,ROW())<>\"No Rebate\"),MeasureCalc(Table_PI[[#This Row],[Hide:\nFormula Name]],Table_SummaryPI[[#This Row],[Quantity]],Table_PI[[#This Row],[List 1]],Table_PI[[#This Row],[List 2]],Table_PI[[#This Row],[List 3]],Table_PI[[#This Row],[Size]],Table_PI[[#This Row],[Input 1]],Table_PI[[#This Row],[Input 2]],Table_PI[[#This Row],[Input 3]],Table_PI[[#This Row],[Input 4]],'Customer Information'!$AR$12,102,ROW()),\"\"),\"\")","v":""},{"$f":"IF(Table_PI[[#This Row],[Input 3]]<>\"\",Table_PI[[#This Row],[Input 3]],\"\")","v":""},null,{"$f":"IFERROR(IF(AND(MeasureCalc(Table_PI[[#This Row],[Hide:\nFormula Name]],Table_SummaryPI[[#This Row],[Quantity]],Table_PI[[#This Row],[List 1]],Table_PI[[#This Row],[List 2]],Table_PI[[#This Row],[List 3]],Table_PI[[#This Row],[Size]],Table_PI[[#This Row],[Input 1]],Table_PI[[#This Row],[Input 2]],Table_PI[[#This Row],[Input 3]],Table_PI[[#This Row],[Input 4]],'Customer Information'!$AR$12,103,ROW())<>0,MeasureCalc(Table_PI[[#This Row],[Hide:\nFormula Name]],Table_SummaryPI[[#This Row],[Quantity]],Table_PI[[#This Row],[List 1]],Table_PI[[#This Row],[List 2]],Table_PI[[#This Row],[List 3]],Table_PI[[#This Row],[Size]],Table_PI[[#This Row],[Input 1]],Table_PI[[#This Row],[Input 2]],Table_PI[[#This Row],[Input 3]],Table_PI[[#This Row],[Input 4]],'Customer Information'!$AR$12,103,ROW())<>\"No Rebate\"),MeasureCalc(Table_PI[[#This Row],[Hide:\nFormula Name]],Table_SummaryPI[[#This Row],[Quantity]],Table_PI[[#This Row],[List 1]],Table_PI[[#This Row],[List 2]],Table_PI[[#This Row],[List 3]],Table_PI[[#This Row],[Size]],Table_PI[[#This Row],[Input 1]],Table_PI[[#This Row],[Input 2]],Table_PI[[#This Row],[Input 3]],Table_PI[[#This Row],[Input 4]],'Customer Information'!$AR$12,103,ROW()),\"\"),\"\")","v":""},{"$f":"IF(Table_PI[[#This Row],[Input 4]]<>\"\",Table_PI[[#This Row],[Input 4]],\"\")","v":""},{"$f":"IF(Table_PI[[#This Row],[Quantity]]=\"\",\"\",Table_PI[[#This Row],[Quantity]])","v":""},{"$f":"IF(Table_PI[[#This Row],[Notes]]=\"\",\"\",Table_PI[[#This Row],[Notes]])","v":""},{"$f":"IF(OR(Table_PI[[#This Row],[Hide:\nBaseline kWh]]=\"\",Table_PI[[#This Row],[Hide:\nBaseline kWh]]=0),\"\",Table_PI[[#This Row],[Hide:\nBaseline kWh]])","v":""},{"$f":"IF(OR(Table_PI[[#This Row],[Hide:\nBaseline kW]]=\"\",Table_PI[[#This Row],[Hide:\nBaseline kW]]=0),\"\",Table_PI[[#This Row],[Hide:\nBaseline kW]])","v":""},{"$f":"IF(OR(Table_PI[[#This Row],[Hide:\nProposed kWh]]=\"\",Table_PI[[#This Row],[Hide:\nProposed kWh]]=0),\"\",Table_PI[[#This Row],[Hide:\nProposed kWh]])","v":""},{"$f":"IF(OR(Table_PI[[#This Row],[Hide:\nProposed kW]]=\"\",Table_PI[[#This Row],[Hide:\nProposed kW]]=0),\"\",Table_PI[[#This Row],[Hide:\nProposed kW]])","v":""},{"$f":"IF(OR(Table_PI[[#This Row],[Rebate]]=\"\",Table_PI[[#This Row],[Rebate]]=0),\"\",Table_PI[[#This Row],[Rebate]])","v":""},{"$f":"IF(OR(Table_PI[[#This Row],[Hide:\nIncremental Cost]]=\"\",Table_PI[[#This Row],[Hide:\nIncremental Cost]]=0),\"\",Table_PI[[#This Row],[Hide:\nIncremental Cost]])","v":""},{"$f":"IFERROR(IF(Table_SummaryPI[[#This Row],[kWhSavings]]=\"\",\"\",ROUND(Table_SummaryPI[[#This Row],[kWhSavings]]/$AG$401*'Customer Information'!$BC$17,2)),0)","v":""},{"$f":"IF(OR(Table_PI[[#This Row],[Annual kWh]]=\"\",Table_PI[[#This Row],[Annual kWh]]=0),\"\",Table_PI[[#This Row],[Annual kWh]])","v":""},{"$f":"IF(OR(Table_PI[[#This Row],[Peak kW]]=\"\",Table_PI[[#This Row],[Peak kW]]=0),\"\",Table_PI[[#This Row],[Peak kW]])","v":""},{"$f":"IFERROR(IF(Table_SummaryPI[[#This Row],[kWhSavings]]=\"\",\"\",$AU$9*Table_SummaryPI[[#This Row],[kWhSavings]]),0)","v":""},{"$f":"IFERROR(IF(Table_SummaryPI[[#This Row],[kWhSavings]]=\"\",\"\",$AU$14*Table_SummaryPI[[#This Row],[kWhSavings]]),0)","v":""},{"$f":"IFERROR(IF(Table_SummaryPI[[#This Row],[kWhSavings]]=\"\",\"\",$AU$18*Table_SummaryPI[[#This Row],[kWhSavings]]),0)","v":""},{"$f":"IFERROR(IF(Table_SummaryPI[[#This Row],[kWhSavings]]=\"\",\"\",$AU$22*Table_SummaryPI[[#This Row],[kWhSavings]]),0)","v":""},{"$f":"IFERROR(IF(MeasureCalc(Table_PI[[#This Row],[Hide:\nFormula Name]],Table_SummaryPI[[#This Row],[Quantity]],Table_PI[[#This Row],[List 1]],Table_PI[[#This Row],[List 2]],Table_PI[[#This Row],[List 3]],Table_PI[[#This Row],[Size]],Table_PI[[#This Row],[Input 1]],Table_PI[[#This Row],[Input 2]],Table_PI[[#This Row],[Input 3]],Table_PI[[#This Row],[Input 4]],'Customer Information'!$AR$12,200,ROW())<>\"No Rebate\",MeasureCalc(Table_PI[[#This Row],[Hide:\nFormula Name]],Table_SummaryPI[[#This Row],[Quantity]],Table_PI[[#This Row],[List 1]],Table_PI[[#This Row],[List 2]],Table_PI[[#This Row],[List 3]],Table_PI[[#This Row],[Size]],Table_PI[[#This Row],[Input 1]],Table_PI[[#This Row],[Input 2]],Table_PI[[#This Row],[Input 3]],Table_PI[[#This Row],[Input 4]],'Customer Information'!$AR$12,200,ROW()),\"\"),\"\")","v":""},{"$f":"IFERROR(IF(MeasureCalc(Table_PI[[#This Row],[Hide:\nFormula Name]],Table_SummaryPI[[#This Row],[Quantity]],Table_PI[[#This Row],[List 1]],Table_PI[[#This Row],[List 2]],Table_PI[[#This Row],[List 3]],Table_PI[[#This Row],[Size]],Table_PI[[#This Row],[Input 1]],Table_PI[[#This Row],[Input 2]],Table_PI[[#This Row],[Input 3]],Table_PI[[#This Row],[Input 4]],'Customer Information'!$AR$12,201,ROW())<>\"No Rebate\",MeasureCalc(Table_PI[[#This Row],[Hide:\nFormula Name]],Table_SummaryPI[[#This Row],[Quantity]],Table_PI[[#This Row],[List 1]],Table_PI[[#This Row],[List 2]],Table_PI[[#This Row],[List 3]],Table_PI[[#This Row],[Size]],Table_PI[[#This Row],[Input 1]],Table_PI[[#This Row],[Input 2]],Table_PI[[#This Row],[Input 3]],Table_PI[[#This Row],[Input 4]],'Customer Information'!$AR$12,201,ROW()),\"\"),\"\")","v":""}]
[{"$f":"Table_PI[[#This Row],[Line No.]]","v":""},{"$f":"IF(Table_SummaryPI[[#This Row],[MeassureCategory]]<>\"\",CONCATENATE(Table_SummaryPI[[#This Row],[MeassureCategory]],  \" - \", Table_SummaryPI[[#This Row],[ProposedMeasureCategory]],  \" - \", TEXT(Table_SummaryPI[[#This Row],[Size]],\"#,##0.00\"),\" \",Table_SummaryPI[[#This Row],[SizeUnit]]),\"\")","v":""},{"$f":"SUBSTITUTE(Table_PI[[#This Row],[Measure]],\"     \",\"\",1)","v":""},{"$f":"IF(Table_PI[[#This Row],[List 1]]<>\"\",Table_PI[[#This Row],[List 1]],\"\")","v":""},{"$f":"IF(Table_PI[[#This Row],[List 2]]<>\"\",Table_PI[[#This Row],[List 2]],\"\")","v":""},{"$f":"IF(Table_PI[[#This Row],[List 3]]<>\"\",Table_PI[[#This Row],[List 3]],\"\")","v":""},{"$f":"IF(Table_PI[[#This Row],[Manufacturer]]=\"\",\"\",Table_PI[[#This Row],[Manufacturer]])","v":""},{"$f":"IF(Table_PI[[#This Row],[Model Number]]=\"\",\"\",Table_PI[[#This Row],[Model Number]])","v":""},{"$f":"IF(Table_PI[[#This Row],[Serial Number(s)]]=\"\",\"\",Table_PI[[#This Row],[Serial Number(s)]])","v":""},null,{"$f":"IF(Table_PI[[#This Row],[Size]]=\"\",\"\",Table_PI[[#This Row],[Size]])","v":""},null,{"$f":"IFERROR(IF(AND(MeasureCalc(Table_PI[[#This Row],[Hide:\nFormula Name]],Table_SummaryPI[[#This Row],[Quantity]],Table_PI[[#This Row],[List 1]],Table_PI[[#This Row],[List 2]],Table_PI[[#This Row],[List 3]],Table_PI[[#This Row],[Size]],Table_PI[[#This Row],[Input 1]],Table_PI[[#This Row],[Input 2]],Table_PI[[#This Row],[Input 3]],Table_PI[[#This Row],[Input 4]],'Customer Information'!$AR$12,100,ROW())<>0,MeasureCalc(Table_PI[[#This Row],[Hide:\nFormula Name]],Table_SummaryPI[[#This Row],[Quantity]],Table_PI[[#This Row],[List 1]],Table_PI[[#This Row],[List 2]],Table_PI[[#This Row],[List 3]],Table_PI[[#This Row],[Size]],Table_PI[[#This Row],[Input 1]],Table_PI[[#This Row],[Input 2]],Table_PI[[#This Row],[Input 3]],Table_PI[[#This Row],[Input 4]],'Customer Information'!$AR$12,100,ROW())<>\"No Rebate\"),MeasureCalc(Table_PI[[#This Row],[Hide:\nFormula Name]],Table_SummaryPI[[#This Row],[Quantity]],Table_PI[[#This Row],[List 1]],Table_PI[[#This Row],[List 2]],Table_PI[[#This Row],[List 3]],Table_PI[[#This Row],[Size]],Table_PI[[#This Row],[Input 1]],Table_PI[[#This Row],[Input 2]],Table_PI[[#This Row],[Input 3]],Table_PI[[#This Row],[Input 4]],'Customer Information'!$AR$12,100,ROW()),\"\"),\"\")","v":""},{"$f":"IF(Table_PI[[#This Row],[Input 1]]<>\"\",Table_PI[[#This Row],[Input 1]],\"\")","v":""},null,{"$f":"IFERROR(IF(AND(MeasureCalc(Table_PI[[#This Row],[Hide:\nFormula Name]],Table_SummaryPI[[#This Row],[Quantity]],Table_PI[[#This Row],[List 1]],Table_PI[[#This Row],[List 2]],Table_PI[[#This Row],[List 3]],Table_PI[[#This Row],[Size]],Table_PI[[#This Row],[Input 1]],Table_PI[[#This Row],[Input 2]],Table_PI[[#This Row],[Input 3]],Table_PI[[#This Row],[Input 4]],'Customer Information'!$AR$12,101,ROW())<>0,MeasureCalc(Table_PI[[#This Row],[Hide:\nFormula Name]],Table_SummaryPI[[#This Row],[Quantity]],Table_PI[[#This Row],[List 1]],Table_PI[[#This Row],[List 2]],Table_PI[[#This Row],[List 3]],Table_PI[[#This Row],[Size]],Table_PI[[#This Row],[Input 1]],Table_PI[[#This Row],[Input 2]],Table_PI[[#This Row],[Input 3]],Table_PI[[#This Row],[Input 4]],'Customer Information'!$AR$12,101,ROW())<>\"No Rebate\"),MeasureCalc(Table_PI[[#This Row],[Hide:\nFormula Name]],Table_SummaryPI[[#This Row],[Quantity]],Table_PI[[#This Row],[List 1]],Table_PI[[#This Row],[List 2]],Table_PI[[#This Row],[List 3]],Table_PI[[#This Row],[Size]],Table_PI[[#This Row],[Input 1]],Table_PI[[#This Row],[Input 2]],Table_PI[[#This Row],[Input 3]],Table_PI[[#This Row],[Input 4]],'Customer Information'!$AR$12,101,ROW()),\"\"),\"\")","v":""},{"$f":"IF(Table_PI[[#This Row],[Input 2]]<>\"\",Table_PI[[#This Row],[Input 2]],\"\")","v":""},null,{"$f":"IFERROR(IF(AND(MeasureCalc(Table_PI[[#This Row],[Hide:\nFormula Name]],Table_SummaryPI[[#This Row],[Quantity]],Table_PI[[#This Row],[List 1]],Table_PI[[#This Row],[List 2]],Table_PI[[#This Row],[List 3]],Table_PI[[#This Row],[Size]],Table_PI[[#This Row],[Input 1]],Table_PI[[#This Row],[Input 2]],Table_PI[[#This Row],[Input 3]],Table_PI[[#This Row],[Input 4]],'Customer Information'!$AR$12,102,ROW())<>0,MeasureCalc(Table_PI[[#This Row],[Hide:\nFormula Name]],Table_SummaryPI[[#This Row],[Quantity]],Table_PI[[#This Row],[List 1]],Table_PI[[#This Row],[List 2]],Table_PI[[#This Row],[List 3]],Table_PI[[#This Row],[Size]],Table_PI[[#This Row],[Input 1]],Table_PI[[#This Row],[Input 2]],Table_PI[[#This Row],[Input 3]],Table_PI[[#This Row],[Input 4]],'Customer Information'!$AR$12,102,ROW())<>\"No Rebate\"),MeasureCalc(Table_PI[[#This Row],[Hide:\nFormula Name]],Table_SummaryPI[[#This Row],[Quantity]],Table_PI[[#This Row],[List 1]],Table_PI[[#This Row],[List 2]],Table_PI[[#This Row],[List 3]],Table_PI[[#This Row],[Size]],Table_PI[[#This Row],[Input 1]],Table_PI[[#This Row],[Input 2]],Table_PI[[#This Row],[Input 3]],Table_PI[[#This Row],[Input 4]],'Customer Information'!$AR$12,102,ROW()),\"\"),\"\")","v":""},{"$f":"IF(Table_PI[[#This Row],[Input 3]]<>\"\",Table_PI[[#This Row],[Input 3]],\"\")","v":""},null,{"$f":"IFERROR(IF(AND(MeasureCalc(Table_PI[[#This Row],[Hide:\nFormula Name]],Table_SummaryPI[[#This Row],[Quantity]],Table_PI[[#This Row],[List 1]],Table_PI[[#This Row],[List 2]],Table_PI[[#This Row],[List 3]],Table_PI[[#This Row],[Size]],Table_PI[[#This Row],[Input 1]],Table_PI[[#This Row],[Input 2]],Table_PI[[#This Row],[Input 3]],Table_PI[[#This Row],[Input 4]],'Customer Information'!$AR$12,103,ROW())<>0,MeasureCalc(Table_PI[[#This Row],[Hide:\nFormula Name]],Table_SummaryPI[[#This Row],[Quantity]],Table_PI[[#This Row],[List 1]],Table_PI[[#This Row],[List 2]],Table_PI[[#This Row],[List 3]],Table_PI[[#This Row],[Size]],Table_PI[[#This Row],[Input 1]],Table_PI[[#This Row],[Input 2]],Table_PI[[#This Row],[Input 3]],Table_PI[[#This Row],[Input 4]],'Customer Information'!$AR$12,103,ROW())<>\"No Rebate\"),MeasureCalc(Table_PI[[#This Row],[Hide:\nFormula Name]],Table_SummaryPI[[#This Row],[Quantity]],Table_PI[[#This Row],[List 1]],Table_PI[[#This Row],[List 2]],Table_PI[[#This Row],[List 3]],Table_PI[[#This Row],[Size]],Table_PI[[#This Row],[Input 1]],Table_PI[[#This Row],[Input 2]],Table_PI[[#This Row],[Input 3]],Table_PI[[#This Row],[Input 4]],'Customer Information'!$AR$12,103,ROW()),\"\"),\"\")","v":""},{"$f":"IF(Table_PI[[#This Row],[Input 4]]<>\"\",Table_PI[[#This Row],[Input 4]],\"\")","v":""},{"$f":"IF(Table_PI[[#This Row],[Quantity]]=\"\",\"\",Table_PI[[#This Row],[Quantity]])","v":""},{"$f":"IF(Table_PI[[#This Row],[Notes]]=\"\",\"\",Table_PI[[#This Row],[Notes]])","v":""},{"$f":"IF(OR(Table_PI[[#This Row],[Hide:\nBaseline kWh]]=\"\",Table_PI[[#This Row],[Hide:\nBaseline kWh]]=0),\"\",Table_PI[[#This Row],[Hide:\nBaseline kWh]])","v":""},{"$f":"IF(OR(Table_PI[[#This Row],[Hide:\nBaseline kW]]=\"\",Table_PI[[#This Row],[Hide:\nBaseline kW]]=0),\"\",Table_PI[[#This Row],[Hide:\nBaseline kW]])","v":""},{"$f":"IF(OR(Table_PI[[#This Row],[Hide:\nProposed kWh]]=\"\",Table_PI[[#This Row],[Hide:\nProposed kWh]]=0),\"\",Table_PI[[#This Row],[Hide:\nProposed kWh]])","v":""},{"$f":"IF(OR(Table_PI[[#This Row],[Hide:\nProposed kW]]=\"\",Table_PI[[#This Row],[Hide:\nProposed kW]]=0),\"\",Table_PI[[#This Row],[Hide:\nProposed kW]])","v":""},{"$f":"IF(OR(Table_PI[[#This Row],[Rebate]]=\"\",Table_PI[[#This Row],[Rebate]]=0),\"\",Table_PI[[#This Row],[Rebate]])","v":""},{"$f":"IF(OR(Table_PI[[#This Row],[Hide:\nIncremental Cost]]=\"\",Table_PI[[#This Row],[Hide:\nIncremental Cost]]=0),\"\",Table_PI[[#This Row],[Hide:\nIncremental Cost]])","v":""},{"$f":"IFERROR(IF(Table_SummaryPI[[#This Row],[kWhSavings]]=\"\",\"\",ROUND(Table_SummaryPI[[#This Row],[kWhSavings]]/$AG$401*'Customer Information'!$BC$17,2)),0)","v":""},{"$f":"IF(OR(Table_PI[[#This Row],[Annual kWh]]=\"\",Table_PI[[#This Row],[Annual kWh]]=0),\"\",Table_PI[[#This Row],[Annual kWh]])","v":""},{"$f":"IF(OR(Table_PI[[#This Row],[Peak kW]]=\"\",Table_PI[[#This Row],[Peak kW]]=0),\"\",Table_PI[[#This Row],[Peak kW]])","v":""},{"$f":"IFERROR(IF(Table_SummaryPI[[#This Row],[kWhSavings]]=\"\",\"\",$AU$9*Table_SummaryPI[[#This Row],[kWhSavings]]),0)","v":""},{"$f":"IFERROR(IF(Table_SummaryPI[[#This Row],[kWhSavings]]=\"\",\"\",$AU$14*Table_SummaryPI[[#This Row],[kWhSavings]]),0)","v":""},{"$f":"IFERROR(IF(Table_SummaryPI[[#This Row],[kWhSavings]]=\"\",\"\",$AU$18*Table_SummaryPI[[#This Row],[kWhSavings]]),0)","v":""},{"$f":"IFERROR(IF(Table_SummaryPI[[#This Row],[kWhSavings]]=\"\",\"\",$AU$22*Table_SummaryPI[[#This Row],[kWhSavings]]),0)","v":""},{"$f":"IFERROR(IF(MeasureCalc(Table_PI[[#This Row],[Hide:\nFormula Name]],Table_SummaryPI[[#This Row],[Quantity]],Table_PI[[#This Row],[List 1]],Table_PI[[#This Row],[List 2]],Table_PI[[#This Row],[List 3]],Table_PI[[#This Row],[Size]],Table_PI[[#This Row],[Input 1]],Table_PI[[#This Row],[Input 2]],Table_PI[[#This Row],[Input 3]],Table_PI[[#This Row],[Input 4]],'Customer Information'!$AR$12,200,ROW())<>\"No Rebate\",MeasureCalc(Table_PI[[#This Row],[Hide:\nFormula Name]],Table_SummaryPI[[#This Row],[Quantity]],Table_PI[[#This Row],[List 1]],Table_PI[[#This Row],[List 2]],Table_PI[[#This Row],[List 3]],Table_PI[[#This Row],[Size]],Table_PI[[#This Row],[Input 1]],Table_PI[[#This Row],[Input 2]],Table_PI[[#This Row],[Input 3]],Table_PI[[#This Row],[Input 4]],'Customer Information'!$AR$12,200,ROW()),\"\"),\"\")","v":""},{"$f":"IFERROR(IF(MeasureCalc(Table_PI[[#This Row],[Hide:\nFormula Name]],Table_SummaryPI[[#This Row],[Quantity]],Table_PI[[#This Row],[List 1]],Table_PI[[#This Row],[List 2]],Table_PI[[#This Row],[List 3]],Table_PI[[#This Row],[Size]],Table_PI[[#This Row],[Input 1]],Table_PI[[#This Row],[Input 2]],Table_PI[[#This Row],[Input 3]],Table_PI[[#This Row],[Input 4]],'Customer Information'!$AR$12,201,ROW())<>\"No Rebate\",MeasureCalc(Table_PI[[#This Row],[Hide:\nFormula Name]],Table_SummaryPI[[#This Row],[Quantity]],Table_PI[[#This Row],[List 1]],Table_PI[[#This Row],[List 2]],Table_PI[[#This Row],[List 3]],Table_PI[[#This Row],[Size]],Table_PI[[#This Row],[Input 1]],Table_PI[[#This Row],[Input 2]],Table_PI[[#This Row],[Input 3]],Table_PI[[#This Row],[Input 4]],'Customer Information'!$AR$12,201,ROW()),\"\"),\"\")","v":""}]
[{"$f":"Table_PI[[#This Row],[Line No.]]","v":""},{"$f":"IF(Table_SummaryPI[[#This Row],[MeassureCategory]]<>\"\",CONCATENATE(Table_SummaryPI[[#This Row],[MeassureCategory]],  \" - \", Table_SummaryPI[[#This Row],[ProposedMeasureCategory]],  \" - \", TEXT(Table_SummaryPI[[#This Row],[Size]],\"#,##0.00\"),\" \",Table_SummaryPI[[#This Row],[SizeUnit]]),\"\")","v":""},{"$f":"SUBSTITUTE(Table_PI[[#This Row],[Measure]],\"     \",\"\",1)","v":""},{"$f":"IF(Table_PI[[#This Row],[List 1]]<>\"\",Table_PI[[#This Row],[List 1]],\"\")","v":""},{"$f":"IF(Table_PI[[#This Row],[List 2]]<>\"\",Table_PI[[#This Row],[List 2]],\"\")","v":""},{"$f":"IF(Table_PI[[#This Row],[List 3]]<>\"\",Table_PI[[#This Row],[List 3]],\"\")","v":""},{"$f":"IF(Table_PI[[#This Row],[Manufacturer]]=\"\",\"\",Table_PI[[#This Row],[Manufacturer]])","v":""},{"$f":"IF(Table_PI[[#This Row],[Model Number]]=\"\",\"\",Table_PI[[#This Row],[Model Number]])","v":""},{"$f":"IF(Table_PI[[#This Row],[Serial Number(s)]]=\"\",\"\",Table_PI[[#This Row],[Serial Number(s)]])","v":""},null,{"$f":"IF(Table_PI[[#This Row],[Size]]=\"\",\"\",Table_PI[[#This Row],[Size]])","v":""},null,{"$f":"IFERROR(IF(AND(MeasureCalc(Table_PI[[#This Row],[Hide:\nFormula Name]],Table_SummaryPI[[#This Row],[Quantity]],Table_PI[[#This Row],[List 1]],Table_PI[[#This Row],[List 2]],Table_PI[[#This Row],[List 3]],Table_PI[[#This Row],[Size]],Table_PI[[#This Row],[Input 1]],Table_PI[[#This Row],[Input 2]],Table_PI[[#This Row],[Input 3]],Table_PI[[#This Row],[Input 4]],'Customer Information'!$AR$12,100,ROW())<>0,MeasureCalc(Table_PI[[#This Row],[Hide:\nFormula Name]],Table_SummaryPI[[#This Row],[Quantity]],Table_PI[[#This Row],[List 1]],Table_PI[[#This Row],[List 2]],Table_PI[[#This Row],[List 3]],Table_PI[[#This Row],[Size]],Table_PI[[#This Row],[Input 1]],Table_PI[[#This Row],[Input 2]],Table_PI[[#This Row],[Input 3]],Table_PI[[#This Row],[Input 4]],'Customer Information'!$AR$12,100,ROW())<>\"No Rebate\"),MeasureCalc(Table_PI[[#This Row],[Hide:\nFormula Name]],Table_SummaryPI[[#This Row],[Quantity]],Table_PI[[#This Row],[List 1]],Table_PI[[#This Row],[List 2]],Table_PI[[#This Row],[List 3]],Table_PI[[#This Row],[Size]],Table_PI[[#This Row],[Input 1]],Table_PI[[#This Row],[Input 2]],Table_PI[[#This Row],[Input 3]],Table_PI[[#This Row],[Input 4]],'Customer Information'!$AR$12,100,ROW()),\"\"),\"\")","v":""},{"$f":"IF(Table_PI[[#This Row],[Input 1]]<>\"\",Table_PI[[#This Row],[Input 1]],\"\")","v":""},null,{"$f":"IFERROR(IF(AND(MeasureCalc(Table_PI[[#This Row],[Hide:\nFormula Name]],Table_SummaryPI[[#This Row],[Quantity]],Table_PI[[#This Row],[List 1]],Table_PI[[#This Row],[List 2]],Table_PI[[#This Row],[List 3]],Table_PI[[#This Row],[Size]],Table_PI[[#This Row],[Input 1]],Table_PI[[#This Row],[Input 2]],Table_PI[[#This Row],[Input 3]],Table_PI[[#This Row],[Input 4]],'Customer Information'!$AR$12,101,ROW())<>0,MeasureCalc(Table_PI[[#This Row],[Hide:\nFormula Name]],Table_SummaryPI[[#This Row],[Quantity]],Table_PI[[#This Row],[List 1]],Table_PI[[#This Row],[List 2]],Table_PI[[#This Row],[List 3]],Table_PI[[#This Row],[Size]],Table_PI[[#This Row],[Input 1]],Table_PI[[#This Row],[Input 2]],Table_PI[[#This Row],[Input 3]],Table_PI[[#This Row],[Input 4]],'Customer Information'!$AR$12,101,ROW())<>\"No Rebate\"),MeasureCalc(Table_PI[[#This Row],[Hide:\nFormula Name]],Table_SummaryPI[[#This Row],[Quantity]],Table_PI[[#This Row],[List 1]],Table_PI[[#This Row],[List 2]],Table_PI[[#This Row],[List 3]],Table_PI[[#This Row],[Size]],Table_PI[[#This Row],[Input 1]],Table_PI[[#This Row],[Input 2]],Table_PI[[#This Row],[Input 3]],Table_PI[[#This Row],[Input 4]],'Customer Information'!$AR$12,101,ROW()),\"\"),\"\")","v":""},{"$f":"IF(Table_PI[[#This Row],[Input 2]]<>\"\",Table_PI[[#This Row],[Input 2]],\"\")","v":""},null,{"$f":"IFERROR(IF(AND(MeasureCalc(Table_PI[[#This Row],[Hide:\nFormula Name]],Table_SummaryPI[[#This Row],[Quantity]],Table_PI[[#This Row],[List 1]],Table_PI[[#This Row],[List 2]],Table_PI[[#This Row],[List 3]],Table_PI[[#This Row],[Size]],Table_PI[[#This Row],[Input 1]],Table_PI[[#This Row],[Input 2]],Table_PI[[#This Row],[Input 3]],Table_PI[[#This Row],[Input 4]],'Customer Information'!$AR$12,102,ROW())<>0,MeasureCalc(Table_PI[[#This Row],[Hide:\nFormula Name]],Table_SummaryPI[[#This Row],[Quantity]],Table_PI[[#This Row],[List 1]],Table_PI[[#This Row],[List 2]],Table_PI[[#This Row],[List 3]],Table_PI[[#This Row],[Size]],Table_PI[[#This Row],[Input 1]],Table_PI[[#This Row],[Input 2]],Table_PI[[#This Row],[Input 3]],Table_PI[[#This Row],[Input 4]],'Customer Information'!$AR$12,102,ROW())<>\"No Rebate\"),MeasureCalc(Table_PI[[#This Row],[Hide:\nFormula Name]],Table_SummaryPI[[#This Row],[Quantity]],Table_PI[[#This Row],[List 1]],Table_PI[[#This Row],[List 2]],Table_PI[[#This Row],[List 3]],Table_PI[[#This Row],[Size]],Table_PI[[#This Row],[Input 1]],Table_PI[[#This Row],[Input 2]],Table_PI[[#This Row],[Input 3]],Table_PI[[#This Row],[Input 4]],'Customer Information'!$AR$12,102,ROW()),\"\"),\"\")","v":""},{"$f":"IF(Table_PI[[#This Row],[Input 3]]<>\"\",Table_PI[[#This Row],[Input 3]],\"\")","v":""},null,{"$f":"IFERROR(IF(AND(MeasureCalc(Table_PI[[#This Row],[Hide:\nFormula Name]],Table_SummaryPI[[#This Row],[Quantity]],Table_PI[[#This Row],[List 1]],Table_PI[[#This Row],[List 2]],Table_PI[[#This Row],[List 3]],Table_PI[[#This Row],[Size]],Table_PI[[#This Row],[Input 1]],Table_PI[[#This Row],[Input 2]],Table_PI[[#This Row],[Input 3]],Table_PI[[#This Row],[Input 4]],'Customer Information'!$AR$12,103,ROW())<>0,MeasureCalc(Table_PI[[#This Row],[Hide:\nFormula Name]],Table_SummaryPI[[#This Row],[Quantity]],Table_PI[[#This Row],[List 1]],Table_PI[[#This Row],[List 2]],Table_PI[[#This Row],[List 3]],Table_PI[[#This Row],[Size]],Table_PI[[#This Row],[Input 1]],Table_PI[[#This Row],[Input 2]],Table_PI[[#This Row],[Input 3]],Table_PI[[#This Row],[Input 4]],'Customer Information'!$AR$12,103,ROW())<>\"No Rebate\"),MeasureCalc(Table_PI[[#This Row],[Hide:\nFormula Name]],Table_SummaryPI[[#This Row],[Quantity]],Table_PI[[#This Row],[List 1]],Table_PI[[#This Row],[List 2]],Table_PI[[#This Row],[List 3]],Table_PI[[#This Row],[Size]],Table_PI[[#This Row],[Input 1]],Table_PI[[#This Row],[Input 2]],Table_PI[[#This Row],[Input 3]],Table_PI[[#This Row],[Input 4]],'Customer Information'!$AR$12,103,ROW()),\"\"),\"\")","v":""},{"$f":"IF(Table_PI[[#This Row],[Input 4]]<>\"\",Table_PI[[#This Row],[Input 4]],\"\")","v":""},{"$f":"IF(Table_PI[[#This Row],[Quantity]]=\"\",\"\",Table_PI[[#This Row],[Quantity]])","v":""},{"$f":"IF(Table_PI[[#This Row],[Notes]]=\"\",\"\",Table_PI[[#This Row],[Notes]])","v":""},{"$f":"IF(OR(Table_PI[[#This Row],[Hide:\nBaseline kWh]]=\"\",Table_PI[[#This Row],[Hide:\nBaseline kWh]]=0),\"\",Table_PI[[#This Row],[Hide:\nBaseline kWh]])","v":""},{"$f":"IF(OR(Table_PI[[#This Row],[Hide:\nBaseline kW]]=\"\",Table_PI[[#This Row],[Hide:\nBaseline kW]]=0),\"\",Table_PI[[#This Row],[Hide:\nBaseline kW]])","v":""},{"$f":"IF(OR(Table_PI[[#This Row],[Hide:\nProposed kWh]]=\"\",Table_PI[[#This Row],[Hide:\nProposed kWh]]=0),\"\",Table_PI[[#This Row],[Hide:\nProposed kWh]])","v":""},{"$f":"IF(OR(Table_PI[[#This Row],[Hide:\nProposed kW]]=\"\",Table_PI[[#This Row],[Hide:\nProposed kW]]=0),\"\",Table_PI[[#This Row],[Hide:\nProposed kW]])","v":""},{"$f":"IF(OR(Table_PI[[#This Row],[Rebate]]=\"\",Table_PI[[#This Row],[Rebate]]=0),\"\",Table_PI[[#This Row],[Rebate]])","v":""},{"$f":"IF(OR(Table_PI[[#This Row],[Hide:\nIncremental Cost]]=\"\",Table_PI[[#This Row],[Hide:\nIncremental Cost]]=0),\"\",Table_PI[[#This Row],[Hide:\nIncremental Cost]])","v":""},{"$f":"IFERROR(IF(Table_SummaryPI[[#This Row],[kWhSavings]]=\"\",\"\",ROUND(Table_SummaryPI[[#This Row],[kWhSavings]]/$AG$401*'Customer Information'!$BC$17,2)),0)","v":""},{"$f":"IF(OR(Table_PI[[#This Row],[Annual kWh]]=\"\",Table_PI[[#This Row],[Annual kWh]]=0),\"\",Table_PI[[#This Row],[Annual kWh]])","v":""},{"$f":"IF(OR(Table_PI[[#This Row],[Peak kW]]=\"\",Table_PI[[#This Row],[Peak kW]]=0),\"\",Table_PI[[#This Row],[Peak kW]])","v":""},{"$f":"IFERROR(IF(Table_SummaryPI[[#This Row],[kWhSavings]]=\"\",\"\",$AU$9*Table_SummaryPI[[#This Row],[kWhSavings]]),0)","v":""},{"$f":"IFERROR(IF(Table_SummaryPI[[#This Row],[kWhSavings]]=\"\",\"\",$AU$14*Table_SummaryPI[[#This Row],[kWhSavings]]),0)","v":""},{"$f":"IFERROR(IF(Table_SummaryPI[[#This Row],[kWhSavings]]=\"\",\"\",$AU$18*Table_SummaryPI[[#This Row],[kWhSavings]]),0)","v":""},{"$f":"IFERROR(IF(Table_SummaryPI[[#This Row],[kWhSavings]]=\"\",\"\",$AU$22*Table_SummaryPI[[#This Row],[kWhSavings]]),0)","v":""},{"$f":"IFERROR(IF(MeasureCalc(Table_PI[[#This Row],[Hide:\nFormula Name]],Table_SummaryPI[[#This Row],[Quantity]],Table_PI[[#This Row],[List 1]],Table_PI[[#This Row],[List 2]],Table_PI[[#This Row],[List 3]],Table_PI[[#This Row],[Size]],Table_PI[[#This Row],[Input 1]],Table_PI[[#This Row],[Input 2]],Table_PI[[#This Row],[Input 3]],Table_PI[[#This Row],[Input 4]],'Customer Information'!$AR$12,200,ROW())<>\"No Rebate\",MeasureCalc(Table_PI[[#This Row],[Hide:\nFormula Name]],Table_SummaryPI[[#This Row],[Quantity]],Table_PI[[#This Row],[List 1]],Table_PI[[#This Row],[List 2]],Table_PI[[#This Row],[List 3]],Table_PI[[#This Row],[Size]],Table_PI[[#This Row],[Input 1]],Table_PI[[#This Row],[Input 2]],Table_PI[[#This Row],[Input 3]],Table_PI[[#This Row],[Input 4]],'Customer Information'!$AR$12,200,ROW()),\"\"),\"\")","v":""},{"$f":"IFERROR(IF(MeasureCalc(Table_PI[[#This Row],[Hide:\nFormula Name]],Table_SummaryPI[[#This Row],[Quantity]],Table_PI[[#This Row],[List 1]],Table_PI[[#This Row],[List 2]],Table_PI[[#This Row],[List 3]],Table_PI[[#This Row],[Size]],Table_PI[[#This Row],[Input 1]],Table_PI[[#This Row],[Input 2]],Table_PI[[#This Row],[Input 3]],Table_PI[[#This Row],[Input 4]],'Customer Information'!$AR$12,201,ROW())<>\"No Rebate\",MeasureCalc(Table_PI[[#This Row],[Hide:\nFormula Name]],Table_SummaryPI[[#This Row],[Quantity]],Table_PI[[#This Row],[List 1]],Table_PI[[#This Row],[List 2]],Table_PI[[#This Row],[List 3]],Table_PI[[#This Row],[Size]],Table_PI[[#This Row],[Input 1]],Table_PI[[#This Row],[Input 2]],Table_PI[[#This Row],[Input 3]],Table_PI[[#This Row],[Input 4]],'Customer Information'!$AR$12,201,ROW()),\"\"),\"\")","v":""}]
[{"$f":"Table_PI[[#This Row],[Line No.]]","v":""},{"$f":"IF(Table_SummaryPI[[#This Row],[MeassureCategory]]<>\"\",CONCATENATE(Table_SummaryPI[[#This Row],[MeassureCategory]],  \" - \", Table_SummaryPI[[#This Row],[ProposedMeasureCategory]],  \" - \", TEXT(Table_SummaryPI[[#This Row],[Size]],\"#,##0.00\"),\" \",Table_SummaryPI[[#This Row],[SizeUnit]]),\"\")","v":""},{"$f":"SUBSTITUTE(Table_PI[[#This Row],[Measure]],\"     \",\"\",1)","v":""},{"$f":"IF(Table_PI[[#This Row],[List 1]]<>\"\",Table_PI[[#This Row],[List 1]],\"\")","v":""},{"$f":"IF(Table_PI[[#This Row],[List 2]]<>\"\",Table_PI[[#This Row],[List 2]],\"\")","v":""},{"$f":"IF(Table_PI[[#This Row],[List 3]]<>\"\",Table_PI[[#This Row],[List 3]],\"\")","v":""},{"$f":"IF(Table_PI[[#This Row],[Manufacturer]]=\"\",\"\",Table_PI[[#This Row],[Manufacturer]])","v":""},{"$f":"IF(Table_PI[[#This Row],[Model Number]]=\"\",\"\",Table_PI[[#This Row],[Model Number]])","v":""},{"$f":"IF(Table_PI[[#This Row],[Serial Number(s)]]=\"\",\"\",Table_PI[[#This Row],[Serial Number(s)]])","v":""},null,{"$f":"IF(Table_PI[[#This Row],[Size]]=\"\",\"\",Table_PI[[#This Row],[Size]])","v":""},null,{"$f":"IFERROR(IF(AND(MeasureCalc(Table_PI[[#This Row],[Hide:\nFormula Name]],Table_SummaryPI[[#This Row],[Quantity]],Table_PI[[#This Row],[List 1]],Table_PI[[#This Row],[List 2]],Table_PI[[#This Row],[List 3]],Table_PI[[#This Row],[Size]],Table_PI[[#This Row],[Input 1]],Table_PI[[#This Row],[Input 2]],Table_PI[[#This Row],[Input 3]],Table_PI[[#This Row],[Input 4]],'Customer Information'!$AR$12,100,ROW())<>0,MeasureCalc(Table_PI[[#This Row],[Hide:\nFormula Name]],Table_SummaryPI[[#This Row],[Quantity]],Table_PI[[#This Row],[List 1]],Table_PI[[#This Row],[List 2]],Table_PI[[#This Row],[List 3]],Table_PI[[#This Row],[Size]],Table_PI[[#This Row],[Input 1]],Table_PI[[#This Row],[Input 2]],Table_PI[[#This Row],[Input 3]],Table_PI[[#This Row],[Input 4]],'Customer Information'!$AR$12,100,ROW())<>\"No Rebate\"),MeasureCalc(Table_PI[[#This Row],[Hide:\nFormula Name]],Table_SummaryPI[[#This Row],[Quantity]],Table_PI[[#This Row],[List 1]],Table_PI[[#This Row],[List 2]],Table_PI[[#This Row],[List 3]],Table_PI[[#This Row],[Size]],Table_PI[[#This Row],[Input 1]],Table_PI[[#This Row],[Input 2]],Table_PI[[#This Row],[Input 3]],Table_PI[[#This Row],[Input 4]],'Customer Information'!$AR$12,100,ROW()),\"\"),\"\")","v":""},{"$f":"IF(Table_PI[[#This Row],[Input 1]]<>\"\",Table_PI[[#This Row],[Input 1]],\"\")","v":""},null,{"$f":"IFERROR(IF(AND(MeasureCalc(Table_PI[[#This Row],[Hide:\nFormula Name]],Table_SummaryPI[[#This Row],[Quantity]],Table_PI[[#This Row],[List 1]],Table_PI[[#This Row],[List 2]],Table_PI[[#This Row],[List 3]],Table_PI[[#This Row],[Size]],Table_PI[[#This Row],[Input 1]],Table_PI[[#This Row],[Input 2]],Table_PI[[#This Row],[Input 3]],Table_PI[[#This Row],[Input 4]],'Customer Information'!$AR$12,101,ROW())<>0,MeasureCalc(Table_PI[[#This Row],[Hide:\nFormula Name]],Table_SummaryPI[[#This Row],[Quantity]],Table_PI[[#This Row],[List 1]],Table_PI[[#This Row],[List 2]],Table_PI[[#This Row],[List 3]],Table_PI[[#This Row],[Size]],Table_PI[[#This Row],[Input 1]],Table_PI[[#This Row],[Input 2]],Table_PI[[#This Row],[Input 3]],Table_PI[[#This Row],[Input 4]],'Customer Information'!$AR$12,101,ROW())<>\"No Rebate\"),MeasureCalc(Table_PI[[#This Row],[Hide:\nFormula Name]],Table_SummaryPI[[#This Row],[Quantity]],Table_PI[[#This Row],[List 1]],Table_PI[[#This Row],[List 2]],Table_PI[[#This Row],[List 3]],Table_PI[[#This Row],[Size]],Table_PI[[#This Row],[Input 1]],Table_PI[[#This Row],[Input 2]],Table_PI[[#This Row],[Input 3]],Table_PI[[#This Row],[Input 4]],'Customer Information'!$AR$12,101,ROW()),\"\"),\"\")","v":""},{"$f":"IF(Table_PI[[#This Row],[Input 2]]<>\"\",Table_PI[[#This Row],[Input 2]],\"\")","v":""},null,{"$f":"IFERROR(IF(AND(MeasureCalc(Table_PI[[#This Row],[Hide:\nFormula Name]],Table_SummaryPI[[#This Row],[Quantity]],Table_PI[[#This Row],[List 1]],Table_PI[[#This Row],[List 2]],Table_PI[[#This Row],[List 3]],Table_PI[[#This Row],[Size]],Table_PI[[#This Row],[Input 1]],Table_PI[[#This Row],[Input 2]],Table_PI[[#This Row],[Input 3]],Table_PI[[#This Row],[Input 4]],'Customer Information'!$AR$12,102,ROW())<>0,MeasureCalc(Table_PI[[#This Row],[Hide:\nFormula Name]],Table_SummaryPI[[#This Row],[Quantity]],Table_PI[[#This Row],[List 1]],Table_PI[[#This Row],[List 2]],Table_PI[[#This Row],[List 3]],Table_PI[[#This Row],[Size]],Table_PI[[#This Row],[Input 1]],Table_PI[[#This Row],[Input 2]],Table_PI[[#This Row],[Input 3]],Table_PI[[#This Row],[Input 4]],'Customer Information'!$AR$12,102,ROW())<>\"No Rebate\"),MeasureCalc(Table_PI[[#This Row],[Hide:\nFormula Name]],Table_SummaryPI[[#This Row],[Quantity]],Table_PI[[#This Row],[List 1]],Table_PI[[#This Row],[List 2]],Table_PI[[#This Row],[List 3]],Table_PI[[#This Row],[Size]],Table_PI[[#This Row],[Input 1]],Table_PI[[#This Row],[Input 2]],Table_PI[[#This Row],[Input 3]],Table_PI[[#This Row],[Input 4]],'Customer Information'!$AR$12,102,ROW()),\"\"),\"\")","v":""},{"$f":"IF(Table_PI[[#This Row],[Input 3]]<>\"\",Table_PI[[#This Row],[Input 3]],\"\")","v":""},null,{"$f":"IFERROR(IF(AND(MeasureCalc(Table_PI[[#This Row],[Hide:\nFormula Name]],Table_SummaryPI[[#This Row],[Quantity]],Table_PI[[#This Row],[List 1]],Table_PI[[#This Row],[List 2]],Table_PI[[#This Row],[List 3]],Table_PI[[#This Row],[Size]],Table_PI[[#This Row],[Input 1]],Table_PI[[#This Row],[Input 2]],Table_PI[[#This Row],[Input 3]],Table_PI[[#This Row],[Input 4]],'Customer Information'!$AR$12,103,ROW())<>0,MeasureCalc(Table_PI[[#This Row],[Hide:\nFormula Name]],Table_SummaryPI[[#This Row],[Quantity]],Table_PI[[#This Row],[List 1]],Table_PI[[#This Row],[List 2]],Table_PI[[#This Row],[List 3]],Table_PI[[#This Row],[Size]],Table_PI[[#This Row],[Input 1]],Table_PI[[#This Row],[Input 2]],Table_PI[[#This Row],[Input 3]],Table_PI[[#This Row],[Input 4]],'Customer Information'!$AR$12,103,ROW())<>\"No Rebate\"),MeasureCalc(Table_PI[[#This Row],[Hide:\nFormula Name]],Table_SummaryPI[[#This Row],[Quantity]],Table_PI[[#This Row],[List 1]],Table_PI[[#This Row],[List 2]],Table_PI[[#This Row],[List 3]],Table_PI[[#This Row],[Size]],Table_PI[[#This Row],[Input 1]],Table_PI[[#This Row],[Input 2]],Table_PI[[#This Row],[Input 3]],Table_PI[[#This Row],[Input 4]],'Customer Information'!$AR$12,103,ROW()),\"\"),\"\")","v":""},{"$f":"IF(Table_PI[[#This Row],[Input 4]]<>\"\",Table_PI[[#This Row],[Input 4]],\"\")","v":""},{"$f":"IF(Table_PI[[#This Row],[Quantity]]=\"\",\"\",Table_PI[[#This Row],[Quantity]])","v":""},{"$f":"IF(Table_PI[[#This Row],[Notes]]=\"\",\"\",Table_PI[[#This Row],[Notes]])","v":""},{"$f":"IF(OR(Table_PI[[#This Row],[Hide:\nBaseline kWh]]=\"\",Table_PI[[#This Row],[Hide:\nBaseline kWh]]=0),\"\",Table_PI[[#This Row],[Hide:\nBaseline kWh]])","v":""},{"$f":"IF(OR(Table_PI[[#This Row],[Hide:\nBaseline kW]]=\"\",Table_PI[[#This Row],[Hide:\nBaseline kW]]=0),\"\",Table_PI[[#This Row],[Hide:\nBaseline kW]])","v":""},{"$f":"IF(OR(Table_PI[[#This Row],[Hide:\nProposed kWh]]=\"\",Table_PI[[#This Row],[Hide:\nProposed kWh]]=0),\"\",Table_PI[[#This Row],[Hide:\nProposed kWh]])","v":""},{"$f":"IF(OR(Table_PI[[#This Row],[Hide:\nProposed kW]]=\"\",Table_PI[[#This Row],[Hide:\nProposed kW]]=0),\"\",Table_PI[[#This Row],[Hide:\nProposed kW]])","v":""},{"$f":"IF(OR(Table_PI[[#This Row],[Rebate]]=\"\",Table_PI[[#This Row],[Rebate]]=0),\"\",Table_PI[[#This Row],[Rebate]])","v":""},{"$f":"IF(OR(Table_PI[[#This Row],[Hide:\nIncremental Cost]]=\"\",Table_PI[[#This Row],[Hide:\nIncremental Cost]]=0),\"\",Table_PI[[#This Row],[Hide:\nIncremental Cost]])","v":""},{"$f":"IFERROR(IF(Table_SummaryPI[[#This Row],[kWhSavings]]=\"\",\"\",ROUND(Table_SummaryPI[[#This Row],[kWhSavings]]/$AG$401*'Customer Information'!$BC$17,2)),0)","v":""},{"$f":"IF(OR(Table_PI[[#This Row],[Annual kWh]]=\"\",Table_PI[[#This Row],[Annual kWh]]=0),\"\",Table_PI[[#This Row],[Annual kWh]])","v":""},{"$f":"IF(OR(Table_PI[[#This Row],[Peak kW]]=\"\",Table_PI[[#This Row],[Peak kW]]=0),\"\",Table_PI[[#This Row],[Peak kW]])","v":""},{"$f":"IFERROR(IF(Table_SummaryPI[[#This Row],[kWhSavings]]=\"\",\"\",$AU$9*Table_SummaryPI[[#This Row],[kWhSavings]]),0)","v":""},{"$f":"IFERROR(IF(Table_SummaryPI[[#This Row],[kWhSavings]]=\"\",\"\",$AU$14*Table_SummaryPI[[#This Row],[kWhSavings]]),0)","v":""},{"$f":"IFERROR(IF(Table_SummaryPI[[#This Row],[kWhSavings]]=\"\",\"\",$AU$18*Table_SummaryPI[[#This Row],[kWhSavings]]),0)","v":""},{"$f":"IFERROR(IF(Table_SummaryPI[[#This Row],[kWhSavings]]=\"\",\"\",$AU$22*Table_SummaryPI[[#This Row],[kWhSavings]]),0)","v":""},{"$f":"IFERROR(IF(MeasureCalc(Table_PI[[#This Row],[Hide:\nFormula Name]],Table_SummaryPI[[#This Row],[Quantity]],Table_PI[[#This Row],[List 1]],Table_PI[[#This Row],[List 2]],Table_PI[[#This Row],[List 3]],Table_PI[[#This Row],[Size]],Table_PI[[#This Row],[Input 1]],Table_PI[[#This Row],[Input 2]],Table_PI[[#This Row],[Input 3]],Table_PI[[#This Row],[Input 4]],'Customer Information'!$AR$12,200,ROW())<>\"No Rebate\",MeasureCalc(Table_PI[[#This Row],[Hide:\nFormula Name]],Table_SummaryPI[[#This Row],[Quantity]],Table_PI[[#This Row],[List 1]],Table_PI[[#This Row],[List 2]],Table_PI[[#This Row],[List 3]],Table_PI[[#This Row],[Size]],Table_PI[[#This Row],[Input 1]],Table_PI[[#This Row],[Input 2]],Table_PI[[#This Row],[Input 3]],Table_PI[[#This Row],[Input 4]],'Customer Information'!$AR$12,200,ROW()),\"\"),\"\")","v":""},{"$f":"IFERROR(IF(MeasureCalc(Table_PI[[#This Row],[Hide:\nFormula Name]],Table_SummaryPI[[#This Row],[Quantity]],Table_PI[[#This Row],[List 1]],Table_PI[[#This Row],[List 2]],Table_PI[[#This Row],[List 3]],Table_PI[[#This Row],[Size]],Table_PI[[#This Row],[Input 1]],Table_PI[[#This Row],[Input 2]],Table_PI[[#This Row],[Input 3]],Table_PI[[#This Row],[Input 4]],'Customer Information'!$AR$12,201,ROW())<>\"No Rebate\",MeasureCalc(Table_PI[[#This Row],[Hide:\nFormula Name]],Table_SummaryPI[[#This Row],[Quantity]],Table_PI[[#This Row],[List 1]],Table_PI[[#This Row],[List 2]],Table_PI[[#This Row],[List 3]],Table_PI[[#This Row],[Size]],Table_PI[[#This Row],[Input 1]],Table_PI[[#This Row],[Input 2]],Table_PI[[#This Row],[Input 3]],Table_PI[[#This Row],[Input 4]],'Customer Information'!$AR$12,201,ROW()),\"\"),\"\")","v":""}]
[{"$f":"Table_PI[[#This Row],[Line No.]]","v":""},{"$f":"IF(Table_SummaryPI[[#This Row],[MeassureCategory]]<>\"\",CONCATENATE(Table_SummaryPI[[#This Row],[MeassureCategory]],  \" - \", Table_SummaryPI[[#This Row],[ProposedMeasureCategory]],  \" - \", TEXT(Table_SummaryPI[[#This Row],[Size]],\"#,##0.00\"),\" \",Table_SummaryPI[[#This Row],[SizeUnit]]),\"\")","v":""},{"$f":"SUBSTITUTE(Table_PI[[#This Row],[Measure]],\"     \",\"\",1)","v":""},{"$f":"IF(Table_PI[[#This Row],[List 1]]<>\"\",Table_PI[[#This Row],[List 1]],\"\")","v":""},{"$f":"IF(Table_PI[[#This Row],[List 2]]<>\"\",Table_PI[[#This Row],[List 2]],\"\")","v":""},{"$f":"IF(Table_PI[[#This Row],[List 3]]<>\"\",Table_PI[[#This Row],[List 3]],\"\")","v":""},{"$f":"IF(Table_PI[[#This Row],[Manufacturer]]=\"\",\"\",Table_PI[[#This Row],[Manufacturer]])","v":""},{"$f":"IF(Table_PI[[#This Row],[Model Number]]=\"\",\"\",Table_PI[[#This Row],[Model Number]])","v":""},{"$f":"IF(Table_PI[[#This Row],[Serial Number(s)]]=\"\",\"\",Table_PI[[#This Row],[Serial Number(s)]])","v":""},null,{"$f":"IF(Table_PI[[#This Row],[Size]]=\"\",\"\",Table_PI[[#This Row],[Size]])","v":""},null,{"$f":"IFERROR(IF(AND(MeasureCalc(Table_PI[[#This Row],[Hide:\nFormula Name]],Table_SummaryPI[[#This Row],[Quantity]],Table_PI[[#This Row],[List 1]],Table_PI[[#This Row],[List 2]],Table_PI[[#This Row],[List 3]],Table_PI[[#This Row],[Size]],Table_PI[[#This Row],[Input 1]],Table_PI[[#This Row],[Input 2]],Table_PI[[#This Row],[Input 3]],Table_PI[[#This Row],[Input 4]],'Customer Information'!$AR$12,100,ROW())<>0,MeasureCalc(Table_PI[[#This Row],[Hide:\nFormula Name]],Table_SummaryPI[[#This Row],[Quantity]],Table_PI[[#This Row],[List 1]],Table_PI[[#This Row],[List 2]],Table_PI[[#This Row],[List 3]],Table_PI[[#This Row],[Size]],Table_PI[[#This Row],[Input 1]],Table_PI[[#This Row],[Input 2]],Table_PI[[#This Row],[Input 3]],Table_PI[[#This Row],[Input 4]],'Customer Information'!$AR$12,100,ROW())<>\"No Rebate\"),MeasureCalc(Table_PI[[#This Row],[Hide:\nFormula Name]],Table_SummaryPI[[#This Row],[Quantity]],Table_PI[[#This Row],[List 1]],Table_PI[[#This Row],[List 2]],Table_PI[[#This Row],[List 3]],Table_PI[[#This Row],[Size]],Table_PI[[#This Row],[Input 1]],Table_PI[[#This Row],[Input 2]],Table_PI[[#This Row],[Input 3]],Table_PI[[#This Row],[Input 4]],'Customer Information'!$AR$12,100,ROW()),\"\"),\"\")","v":""},{"$f":"IF(Table_PI[[#This Row],[Input 1]]<>\"\",Table_PI[[#This Row],[Input 1]],\"\")","v":""},null,{"$f":"IFERROR(IF(AND(MeasureCalc(Table_PI[[#This Row],[Hide:\nFormula Name]],Table_SummaryPI[[#This Row],[Quantity]],Table_PI[[#This Row],[List 1]],Table_PI[[#This Row],[List 2]],Table_PI[[#This Row],[List 3]],Table_PI[[#This Row],[Size]],Table_PI[[#This Row],[Input 1]],Table_PI[[#This Row],[Input 2]],Table_PI[[#This Row],[Input 3]],Table_PI[[#This Row],[Input 4]],'Customer Information'!$AR$12,101,ROW())<>0,MeasureCalc(Table_PI[[#This Row],[Hide:\nFormula Name]],Table_SummaryPI[[#This Row],[Quantity]],Table_PI[[#This Row],[List 1]],Table_PI[[#This Row],[List 2]],Table_PI[[#This Row],[List 3]],Table_PI[[#This Row],[Size]],Table_PI[[#This Row],[Input 1]],Table_PI[[#This Row],[Input 2]],Table_PI[[#This Row],[Input 3]],Table_PI[[#This Row],[Input 4]],'Customer Information'!$AR$12,101,ROW())<>\"No Rebate\"),MeasureCalc(Table_PI[[#This Row],[Hide:\nFormula Name]],Table_SummaryPI[[#This Row],[Quantity]],Table_PI[[#This Row],[List 1]],Table_PI[[#This Row],[List 2]],Table_PI[[#This Row],[List 3]],Table_PI[[#This Row],[Size]],Table_PI[[#This Row],[Input 1]],Table_PI[[#This Row],[Input 2]],Table_PI[[#This Row],[Input 3]],Table_PI[[#This Row],[Input 4]],'Customer Information'!$AR$12,101,ROW()),\"\"),\"\")","v":""},{"$f":"IF(Table_PI[[#This Row],[Input 2]]<>\"\",Table_PI[[#This Row],[Input 2]],\"\")","v":""},null,{"$f":"IFERROR(IF(AND(MeasureCalc(Table_PI[[#This Row],[Hide:\nFormula Name]],Table_SummaryPI[[#This Row],[Quantity]],Table_PI[[#This Row],[List 1]],Table_PI[[#This Row],[List 2]],Table_PI[[#This Row],[List 3]],Table_PI[[#This Row],[Size]],Table_PI[[#This Row],[Input 1]],Table_PI[[#This Row],[Input 2]],Table_PI[[#This Row],[Input 3]],Table_PI[[#This Row],[Input 4]],'Customer Information'!$AR$12,102,ROW())<>0,MeasureCalc(Table_PI[[#This Row],[Hide:\nFormula Name]],Table_SummaryPI[[#This Row],[Quantity]],Table_PI[[#This Row],[List 1]],Table_PI[[#This Row],[List 2]],Table_PI[[#This Row],[List 3]],Table_PI[[#This Row],[Size]],Table_PI[[#This Row],[Input 1]],Table_PI[[#This Row],[Input 2]],Table_PI[[#This Row],[Input 3]],Table_PI[[#This Row],[Input 4]],'Customer Information'!$AR$12,102,ROW())<>\"No Rebate\"),MeasureCalc(Table_PI[[#This Row],[Hide:\nFormula Name]],Table_SummaryPI[[#This Row],[Quantity]],Table_PI[[#This Row],[List 1]],Table_PI[[#This Row],[List 2]],Table_PI[[#This Row],[List 3]],Table_PI[[#This Row],[Size]],Table_PI[[#This Row],[Input 1]],Table_PI[[#This Row],[Input 2]],Table_PI[[#This Row],[Input 3]],Table_PI[[#This Row],[Input 4]],'Customer Information'!$AR$12,102,ROW()),\"\"),\"\")","v":""},{"$f":"IF(Table_PI[[#This Row],[Input 3]]<>\"\",Table_PI[[#This Row],[Input 3]],\"\")","v":""},null,{"$f":"IFERROR(IF(AND(MeasureCalc(Table_PI[[#This Row],[Hide:\nFormula Name]],Table_SummaryPI[[#This Row],[Quantity]],Table_PI[[#This Row],[List 1]],Table_PI[[#This Row],[List 2]],Table_PI[[#This Row],[List 3]],Table_PI[[#This Row],[Size]],Table_PI[[#This Row],[Input 1]],Table_PI[[#This Row],[Input 2]],Table_PI[[#This Row],[Input 3]],Table_PI[[#This Row],[Input 4]],'Customer Information'!$AR$12,103,ROW())<>0,MeasureCalc(Table_PI[[#This Row],[Hide:\nFormula Name]],Table_SummaryPI[[#This Row],[Quantity]],Table_PI[[#This Row],[List 1]],Table_PI[[#This Row],[List 2]],Table_PI[[#This Row],[List 3]],Table_PI[[#This Row],[Size]],Table_PI[[#This Row],[Input 1]],Table_PI[[#This Row],[Input 2]],Table_PI[[#This Row],[Input 3]],Table_PI[[#This Row],[Input 4]],'Customer Information'!$AR$12,103,ROW())<>\"No Rebate\"),MeasureCalc(Table_PI[[#This Row],[Hide:\nFormula Name]],Table_SummaryPI[[#This Row],[Quantity]],Table_PI[[#This Row],[List 1]],Table_PI[[#This Row],[List 2]],Table_PI[[#This Row],[List 3]],Table_PI[[#This Row],[Size]],Table_PI[[#This Row],[Input 1]],Table_PI[[#This Row],[Input 2]],Table_PI[[#This Row],[Input 3]],Table_PI[[#This Row],[Input 4]],'Customer Information'!$AR$12,103,ROW()),\"\"),\"\")","v":""},{"$f":"IF(Table_PI[[#This Row],[Input 4]]<>\"\",Table_PI[[#This Row],[Input 4]],\"\")","v":""},{"$f":"IF(Table_PI[[#This Row],[Quantity]]=\"\",\"\",Table_PI[[#This Row],[Quantity]])","v":""},{"$f":"IF(Table_PI[[#This Row],[Notes]]=\"\",\"\",Table_PI[[#This Row],[Notes]])","v":""},{"$f":"IF(OR(Table_PI[[#This Row],[Hide:\nBaseline kWh]]=\"\",Table_PI[[#This Row],[Hide:\nBaseline kWh]]=0),\"\",Table_PI[[#This Row],[Hide:\nBaseline kWh]])","v":""},{"$f":"IF(OR(Table_PI[[#This Row],[Hide:\nBaseline kW]]=\"\",Table_PI[[#This Row],[Hide:\nBaseline kW]]=0),\"\",Table_PI[[#This Row],[Hide:\nBaseline kW]])","v":""},{"$f":"IF(OR(Table_PI[[#This Row],[Hide:\nProposed kWh]]=\"\",Table_PI[[#This Row],[Hide:\nProposed kWh]]=0),\"\",Table_PI[[#This Row],[Hide:\nProposed kWh]])","v":""},{"$f":"IF(OR(Table_PI[[#This Row],[Hide:\nProposed kW]]=\"\",Table_PI[[#This Row],[Hide:\nProposed kW]]=0),\"\",Table_PI[[#This Row],[Hide:\nProposed kW]])","v":""},{"$f":"IF(OR(Table_PI[[#This Row],[Rebate]]=\"\",Table_PI[[#This Row],[Rebate]]=0),\"\",Table_PI[[#This Row],[Rebate]])","v":""},{"$f":"IF(OR(Table_PI[[#This Row],[Hide:\nIncremental Cost]]=\"\",Table_PI[[#This Row],[Hide:\nIncremental Cost]]=0),\"\",Table_PI[[#This Row],[Hide:\nIncremental Cost]])","v":""},{"$f":"IFERROR(IF(Table_SummaryPI[[#This Row],[kWhSavings]]=\"\",\"\",ROUND(Table_SummaryPI[[#This Row],[kWhSavings]]/$AG$401*'Customer Information'!$BC$17,2)),0)","v":""},{"$f":"IF(OR(Table_PI[[#This Row],[Annual kWh]]=\"\",Table_PI[[#This Row],[Annual kWh]]=0),\"\",Table_PI[[#This Row],[Annual kWh]])","v":""},{"$f":"IF(OR(Table_PI[[#This Row],[Peak kW]]=\"\",Table_PI[[#This Row],[Peak kW]]=0),\"\",Table_PI[[#This Row],[Peak kW]])","v":""},{"$f":"IFERROR(IF(Table_SummaryPI[[#This Row],[kWhSavings]]=\"\",\"\",$AU$9*Table_SummaryPI[[#This Row],[kWhSavings]]),0)","v":""},{"$f":"IFERROR(IF(Table_SummaryPI[[#This Row],[kWhSavings]]=\"\",\"\",$AU$14*Table_SummaryPI[[#This Row],[kWhSavings]]),0)","v":""},{"$f":"IFERROR(IF(Table_SummaryPI[[#This Row],[kWhSavings]]=\"\",\"\",$AU$18*Table_SummaryPI[[#This Row],[kWhSavings]]),0)","v":""},{"$f":"IFERROR(IF(Table_SummaryPI[[#This Row],[kWhSavings]]=\"\",\"\",$AU$22*Table_SummaryPI[[#This Row],[kWhSavings]]),0)","v":""},{"$f":"IFERROR(IF(MeasureCalc(Table_PI[[#This Row],[Hide:\nFormula Name]],Table_SummaryPI[[#This Row],[Quantity]],Table_PI[[#This Row],[List 1]],Table_PI[[#This Row],[List 2]],Table_PI[[#This Row],[List 3]],Table_PI[[#This Row],[Size]],Table_PI[[#This Row],[Input 1]],Table_PI[[#This Row],[Input 2]],Table_PI[[#This Row],[Input 3]],Table_PI[[#This Row],[Input 4]],'Customer Information'!$AR$12,200,ROW())<>\"No Rebate\",MeasureCalc(Table_PI[[#This Row],[Hide:\nFormula Name]],Table_SummaryPI[[#This Row],[Quantity]],Table_PI[[#This Row],[List 1]],Table_PI[[#This Row],[List 2]],Table_PI[[#This Row],[List 3]],Table_PI[[#This Row],[Size]],Table_PI[[#This Row],[Input 1]],Table_PI[[#This Row],[Input 2]],Table_PI[[#This Row],[Input 3]],Table_PI[[#This Row],[Input 4]],'Customer Information'!$AR$12,200,ROW()),\"\"),\"\")","v":""},{"$f":"IFERROR(IF(MeasureCalc(Table_PI[[#This Row],[Hide:\nFormula Name]],Table_SummaryPI[[#This Row],[Quantity]],Table_PI[[#This Row],[List 1]],Table_PI[[#This Row],[List 2]],Table_PI[[#This Row],[List 3]],Table_PI[[#This Row],[Size]],Table_PI[[#This Row],[Input 1]],Table_PI[[#This Row],[Input 2]],Table_PI[[#This Row],[Input 3]],Table_PI[[#This Row],[Input 4]],'Customer Information'!$AR$12,201,ROW())<>\"No Rebate\",MeasureCalc(Table_PI[[#This Row],[Hide:\nFormula Name]],Table_SummaryPI[[#This Row],[Quantity]],Table_PI[[#This Row],[List 1]],Table_PI[[#This Row],[List 2]],Table_PI[[#This Row],[List 3]],Table_PI[[#This Row],[Size]],Table_PI[[#This Row],[Input 1]],Table_PI[[#This Row],[Input 2]],Table_PI[[#This Row],[Input 3]],Table_PI[[#This Row],[Input 4]],'Customer Information'!$AR$12,201,ROW()),\"\"),\"\")","v":""}]
[{"$f":"Table_PI[[#This Row],[Line No.]]","v":""},{"$f":"IF(Table_SummaryPI[[#This Row],[MeassureCategory]]<>\"\",CONCATENATE(Table_SummaryPI[[#This Row],[MeassureCategory]],  \" - \", Table_SummaryPI[[#This Row],[ProposedMeasureCategory]],  \" - \", TEXT(Table_SummaryPI[[#This Row],[Size]],\"#,##0.00\"),\" \",Table_SummaryPI[[#This Row],[SizeUnit]]),\"\")","v":""},{"$f":"SUBSTITUTE(Table_PI[[#This Row],[Measure]],\"     \",\"\",1)","v":""},{"$f":"IF(Table_PI[[#This Row],[List 1]]<>\"\",Table_PI[[#This Row],[List 1]],\"\")","v":""},{"$f":"IF(Table_PI[[#This Row],[List 2]]<>\"\",Table_PI[[#This Row],[List 2]],\"\")","v":""},{"$f":"IF(Table_PI[[#This Row],[List 3]]<>\"\",Table_PI[[#This Row],[List 3]],\"\")","v":""},{"$f":"IF(Table_PI[[#This Row],[Manufacturer]]=\"\",\"\",Table_PI[[#This Row],[Manufacturer]])","v":""},{"$f":"IF(Table_PI[[#This Row],[Model Number]]=\"\",\"\",Table_PI[[#This Row],[Model Number]])","v":""},{"$f":"IF(Table_PI[[#This Row],[Serial Number(s)]]=\"\",\"\",Table_PI[[#This Row],[Serial Number(s)]])","v":""},null,{"$f":"IF(Table_PI[[#This Row],[Size]]=\"\",\"\",Table_PI[[#This Row],[Size]])","v":""},null,{"$f":"IFERROR(IF(AND(MeasureCalc(Table_PI[[#This Row],[Hide:\nFormula Name]],Table_SummaryPI[[#This Row],[Quantity]],Table_PI[[#This Row],[List 1]],Table_PI[[#This Row],[List 2]],Table_PI[[#This Row],[List 3]],Table_PI[[#This Row],[Size]],Table_PI[[#This Row],[Input 1]],Table_PI[[#This Row],[Input 2]],Table_PI[[#This Row],[Input 3]],Table_PI[[#This Row],[Input 4]],'Customer Information'!$AR$12,100,ROW())<>0,MeasureCalc(Table_PI[[#This Row],[Hide:\nFormula Name]],Table_SummaryPI[[#This Row],[Quantity]],Table_PI[[#This Row],[List 1]],Table_PI[[#This Row],[List 2]],Table_PI[[#This Row],[List 3]],Table_PI[[#This Row],[Size]],Table_PI[[#This Row],[Input 1]],Table_PI[[#This Row],[Input 2]],Table_PI[[#This Row],[Input 3]],Table_PI[[#This Row],[Input 4]],'Customer Information'!$AR$12,100,ROW())<>\"No Rebate\"),MeasureCalc(Table_PI[[#This Row],[Hide:\nFormula Name]],Table_SummaryPI[[#This Row],[Quantity]],Table_PI[[#This Row],[List 1]],Table_PI[[#This Row],[List 2]],Table_PI[[#This Row],[List 3]],Table_PI[[#This Row],[Size]],Table_PI[[#This Row],[Input 1]],Table_PI[[#This Row],[Input 2]],Table_PI[[#This Row],[Input 3]],Table_PI[[#This Row],[Input 4]],'Customer Information'!$AR$12,100,ROW()),\"\"),\"\")","v":""},{"$f":"IF(Table_PI[[#This Row],[Input 1]]<>\"\",Table_PI[[#This Row],[Input 1]],\"\")","v":""},null,{"$f":"IFERROR(IF(AND(MeasureCalc(Table_PI[[#This Row],[Hide:\nFormula Name]],Table_SummaryPI[[#This Row],[Quantity]],Table_PI[[#This Row],[List 1]],Table_PI[[#This Row],[List 2]],Table_PI[[#This Row],[List 3]],Table_PI[[#This Row],[Size]],Table_PI[[#This Row],[Input 1]],Table_PI[[#This Row],[Input 2]],Table_PI[[#This Row],[Input 3]],Table_PI[[#This Row],[Input 4]],'Customer Information'!$AR$12,101,ROW())<>0,MeasureCalc(Table_PI[[#This Row],[Hide:\nFormula Name]],Table_SummaryPI[[#This Row],[Quantity]],Table_PI[[#This Row],[List 1]],Table_PI[[#This Row],[List 2]],Table_PI[[#This Row],[List 3]],Table_PI[[#This Row],[Size]],Table_PI[[#This Row],[Input 1]],Table_PI[[#This Row],[Input 2]],Table_PI[[#This Row],[Input 3]],Table_PI[[#This Row],[Input 4]],'Customer Information'!$AR$12,101,ROW())<>\"No Rebate\"),MeasureCalc(Table_PI[[#This Row],[Hide:\nFormula Name]],Table_SummaryPI[[#This Row],[Quantity]],Table_PI[[#This Row],[List 1]],Table_PI[[#This Row],[List 2]],Table_PI[[#This Row],[List 3]],Table_PI[[#This Row],[Size]],Table_PI[[#This Row],[Input 1]],Table_PI[[#This Row],[Input 2]],Table_PI[[#This Row],[Input 3]],Table_PI[[#This Row],[Input 4]],'Customer Information'!$AR$12,101,ROW()),\"\"),\"\")","v":""},{"$f":"IF(Table_PI[[#This Row],[Input 2]]<>\"\",Table_PI[[#This Row],[Input 2]],\"\")","v":""},null,{"$f":"IFERROR(IF(AND(MeasureCalc(Table_PI[[#This Row],[Hide:\nFormula Name]],Table_SummaryPI[[#This Row],[Quantity]],Table_PI[[#This Row],[List 1]],Table_PI[[#This Row],[List 2]],Table_PI[[#This Row],[List 3]],Table_PI[[#This Row],[Size]],Table_PI[[#This Row],[Input 1]],Table_PI[[#This Row],[Input 2]],Table_PI[[#This Row],[Input 3]],Table_PI[[#This Row],[Input 4]],'Customer Information'!$AR$12,102,ROW())<>0,MeasureCalc(Table_PI[[#This Row],[Hide:\nFormula Name]],Table_SummaryPI[[#This Row],[Quantity]],Table_PI[[#This Row],[List 1]],Table_PI[[#This Row],[List 2]],Table_PI[[#This Row],[List 3]],Table_PI[[#This Row],[Size]],Table_PI[[#This Row],[Input 1]],Table_PI[[#This Row],[Input 2]],Table_PI[[#This Row],[Input 3]],Table_PI[[#This Row],[Input 4]],'Customer Information'!$AR$12,102,ROW())<>\"No Rebate\"),MeasureCalc(Table_PI[[#This Row],[Hide:\nFormula Name]],Table_SummaryPI[[#This Row],[Quantity]],Table_PI[[#This Row],[List 1]],Table_PI[[#This Row],[List 2]],Table_PI[[#This Row],[List 3]],Table_PI[[#This Row],[Size]],Table_PI[[#This Row],[Input 1]],Table_PI[[#This Row],[Input 2]],Table_PI[[#This Row],[Input 3]],Table_PI[[#This Row],[Input 4]],'Customer Information'!$AR$12,102,ROW()),\"\"),\"\")","v":""},{"$f":"IF(Table_PI[[#This Row],[Input 3]]<>\"\",Table_PI[[#This Row],[Input 3]],\"\")","v":""},null,{"$f":"IFERROR(IF(AND(MeasureCalc(Table_PI[[#This Row],[Hide:\nFormula Name]],Table_SummaryPI[[#This Row],[Quantity]],Table_PI[[#This Row],[List 1]],Table_PI[[#This Row],[List 2]],Table_PI[[#This Row],[List 3]],Table_PI[[#This Row],[Size]],Table_PI[[#This Row],[Input 1]],Table_PI[[#This Row],[Input 2]],Table_PI[[#This Row],[Input 3]],Table_PI[[#This Row],[Input 4]],'Customer Information'!$AR$12,103,ROW())<>0,MeasureCalc(Table_PI[[#This Row],[Hide:\nFormula Name]],Table_SummaryPI[[#This Row],[Quantity]],Table_PI[[#This Row],[List 1]],Table_PI[[#This Row],[List 2]],Table_PI[[#This Row],[List 3]],Table_PI[[#This Row],[Size]],Table_PI[[#This Row],[Input 1]],Table_PI[[#This Row],[Input 2]],Table_PI[[#This Row],[Input 3]],Table_PI[[#This Row],[Input 4]],'Customer Information'!$AR$12,103,ROW())<>\"No Rebate\"),MeasureCalc(Table_PI[[#This Row],[Hide:\nFormula Name]],Table_SummaryPI[[#This Row],[Quantity]],Table_PI[[#This Row],[List 1]],Table_PI[[#This Row],[List 2]],Table_PI[[#This Row],[List 3]],Table_PI[[#This Row],[Size]],Table_PI[[#This Row],[Input 1]],Table_PI[[#This Row],[Input 2]],Table_PI[[#This Row],[Input 3]],Table_PI[[#This Row],[Input 4]],'Customer Information'!$AR$12,103,ROW()),\"\"),\"\")","v":""},{"$f":"IF(Table_PI[[#This Row],[Input 4]]<>\"\",Table_PI[[#This Row],[Input 4]],\"\")","v":""},{"$f":"IF(Table_PI[[#This Row],[Quantity]]=\"\",\"\",Table_PI[[#This Row],[Quantity]])","v":""},{"$f":"IF(Table_PI[[#This Row],[Notes]]=\"\",\"\",Table_PI[[#This Row],[Notes]])","v":""},{"$f":"IF(OR(Table_PI[[#This Row],[Hide:\nBaseline kWh]]=\"\",Table_PI[[#This Row],[Hide:\nBaseline kWh]]=0),\"\",Table_PI[[#This Row],[Hide:\nBaseline kWh]])","v":""},{"$f":"IF(OR(Table_PI[[#This Row],[Hide:\nBaseline kW]]=\"\",Table_PI[[#This Row],[Hide:\nBaseline kW]]=0),\"\",Table_PI[[#This Row],[Hide:\nBaseline kW]])","v":""},{"$f":"IF(OR(Table_PI[[#This Row],[Hide:\nProposed kWh]]=\"\",Table_PI[[#This Row],[Hide:\nProposed kWh]]=0),\"\",Table_PI[[#This Row],[Hide:\nProposed kWh]])","v":""},{"$f":"IF(OR(Table_PI[[#This Row],[Hide:\nProposed kW]]=\"\",Table_PI[[#This Row],[Hide:\nProposed kW]]=0),\"\",Table_PI[[#This Row],[Hide:\nProposed kW]])","v":""},{"$f":"IF(OR(Table_PI[[#This Row],[Rebate]]=\"\",Table_PI[[#This Row],[Rebate]]=0),\"\",Table_PI[[#This Row],[Rebate]])","v":""},{"$f":"IF(OR(Table_PI[[#This Row],[Hide:\nIncremental Cost]]=\"\",Table_PI[[#This Row],[Hide:\nIncremental Cost]]=0),\"\",Table_PI[[#This Row],[Hide:\nIncremental Cost]])","v":""},{"$f":"IFERROR(IF(Table_SummaryPI[[#This Row],[kWhSavings]]=\"\",\"\",ROUND(Table_SummaryPI[[#This Row],[kWhSavings]]/$AG$401*'Customer Information'!$BC$17,2)),0)","v":""},{"$f":"IF(OR(Table_PI[[#This Row],[Annual kWh]]=\"\",Table_PI[[#This Row],[Annual kWh]]=0),\"\",Table_PI[[#This Row],[Annual kWh]])","v":""},{"$f":"IF(OR(Table_PI[[#This Row],[Peak kW]]=\"\",Table_PI[[#This Row],[Peak kW]]=0),\"\",Table_PI[[#This Row],[Peak kW]])","v":""},{"$f":"IFERROR(IF(Table_SummaryPI[[#This Row],[kWhSavings]]=\"\",\"\",$AU$9*Table_SummaryPI[[#This Row],[kWhSavings]]),0)","v":""},{"$f":"IFERROR(IF(Table_SummaryPI[[#This Row],[kWhSavings]]=\"\",\"\",$AU$14*Table_SummaryPI[[#This Row],[kWhSavings]]),0)","v":""},{"$f":"IFERROR(IF(Table_SummaryPI[[#This Row],[kWhSavings]]=\"\",\"\",$AU$18*Table_SummaryPI[[#This Row],[kWhSavings]]),0)","v":""},{"$f":"IFERROR(IF(Table_SummaryPI[[#This Row],[kWhSavings]]=\"\",\"\",$AU$22*Table_SummaryPI[[#This Row],[kWhSavings]]),0)","v":""},{"$f":"IFERROR(IF(MeasureCalc(Table_PI[[#This Row],[Hide:\nFormula Name]],Table_SummaryPI[[#This Row],[Quantity]],Table_PI[[#This Row],[List 1]],Table_PI[[#This Row],[List 2]],Table_PI[[#This Row],[List 3]],Table_PI[[#This Row],[Size]],Table_PI[[#This Row],[Input 1]],Table_PI[[#This Row],[Input 2]],Table_PI[[#This Row],[Input 3]],Table_PI[[#This Row],[Input 4]],'Customer Information'!$AR$12,200,ROW())<>\"No Rebate\",MeasureCalc(Table_PI[[#This Row],[Hide:\nFormula Name]],Table_SummaryPI[[#This Row],[Quantity]],Table_PI[[#This Row],[List 1]],Table_PI[[#This Row],[List 2]],Table_PI[[#This Row],[List 3]],Table_PI[[#This Row],[Size]],Table_PI[[#This Row],[Input 1]],Table_PI[[#This Row],[Input 2]],Table_PI[[#This Row],[Input 3]],Table_PI[[#This Row],[Input 4]],'Customer Information'!$AR$12,200,ROW()),\"\"),\"\")","v":""},{"$f":"IFERROR(IF(MeasureCalc(Table_PI[[#This Row],[Hide:\nFormula Name]],Table_SummaryPI[[#This Row],[Quantity]],Table_PI[[#This Row],[List 1]],Table_PI[[#This Row],[List 2]],Table_PI[[#This Row],[List 3]],Table_PI[[#This Row],[Size]],Table_PI[[#This Row],[Input 1]],Table_PI[[#This Row],[Input 2]],Table_PI[[#This Row],[Input 3]],Table_PI[[#This Row],[Input 4]],'Customer Information'!$AR$12,201,ROW())<>\"No Rebate\",MeasureCalc(Table_PI[[#This Row],[Hide:\nFormula Name]],Table_SummaryPI[[#This Row],[Quantity]],Table_PI[[#This Row],[List 1]],Table_PI[[#This Row],[List 2]],Table_PI[[#This Row],[List 3]],Table_PI[[#This Row],[Size]],Table_PI[[#This Row],[Input 1]],Table_PI[[#This Row],[Input 2]],Table_PI[[#This Row],[Input 3]],Table_PI[[#This Row],[Input 4]],'Customer Information'!$AR$12,201,ROW()),\"\"),\"\")","v":""}]
[{"$f":"Table_PI[[#This Row],[Line No.]]","v":""},{"$f":"IF(Table_SummaryPI[[#This Row],[MeassureCategory]]<>\"\",CONCATENATE(Table_SummaryPI[[#This Row],[MeassureCategory]],  \" - \", Table_SummaryPI[[#This Row],[ProposedMeasureCategory]],  \" - \", TEXT(Table_SummaryPI[[#This Row],[Size]],\"#,##0.00\"),\" \",Table_SummaryPI[[#This Row],[SizeUnit]]),\"\")","v":""},{"$f":"SUBSTITUTE(Table_PI[[#This Row],[Measure]],\"     \",\"\",1)","v":""},{"$f":"IF(Table_PI[[#This Row],[List 1]]<>\"\",Table_PI[[#This Row],[List 1]],\"\")","v":""},{"$f":"IF(Table_PI[[#This Row],[List 2]]<>\"\",Table_PI[[#This Row],[List 2]],\"\")","v":""},{"$f":"IF(Table_PI[[#This Row],[List 3]]<>\"\",Table_PI[[#This Row],[List 3]],\"\")","v":""},{"$f":"IF(Table_PI[[#This Row],[Manufacturer]]=\"\",\"\",Table_PI[[#This Row],[Manufacturer]])","v":""},{"$f":"IF(Table_PI[[#This Row],[Model Number]]=\"\",\"\",Table_PI[[#This Row],[Model Number]])","v":""},{"$f":"IF(Table_PI[[#This Row],[Serial Number(s)]]=\"\",\"\",Table_PI[[#This Row],[Serial Number(s)]])","v":""},null,{"$f":"IF(Table_PI[[#This Row],[Size]]=\"\",\"\",Table_PI[[#This Row],[Size]])","v":""},null,{"$f":"IFERROR(IF(AND(MeasureCalc(Table_PI[[#This Row],[Hide:\nFormula Name]],Table_SummaryPI[[#This Row],[Quantity]],Table_PI[[#This Row],[List 1]],Table_PI[[#This Row],[List 2]],Table_PI[[#This Row],[List 3]],Table_PI[[#This Row],[Size]],Table_PI[[#This Row],[Input 1]],Table_PI[[#This Row],[Input 2]],Table_PI[[#This Row],[Input 3]],Table_PI[[#This Row],[Input 4]],'Customer Information'!$AR$12,100,ROW())<>0,MeasureCalc(Table_PI[[#This Row],[Hide:\nFormula Name]],Table_SummaryPI[[#This Row],[Quantity]],Table_PI[[#This Row],[List 1]],Table_PI[[#This Row],[List 2]],Table_PI[[#This Row],[List 3]],Table_PI[[#This Row],[Size]],Table_PI[[#This Row],[Input 1]],Table_PI[[#This Row],[Input 2]],Table_PI[[#This Row],[Input 3]],Table_PI[[#This Row],[Input 4]],'Customer Information'!$AR$12,100,ROW())<>\"No Rebate\"),MeasureCalc(Table_PI[[#This Row],[Hide:\nFormula Name]],Table_SummaryPI[[#This Row],[Quantity]],Table_PI[[#This Row],[List 1]],Table_PI[[#This Row],[List 2]],Table_PI[[#This Row],[List 3]],Table_PI[[#This Row],[Size]],Table_PI[[#This Row],[Input 1]],Table_PI[[#This Row],[Input 2]],Table_PI[[#This Row],[Input 3]],Table_PI[[#This Row],[Input 4]],'Customer Information'!$AR$12,100,ROW()),\"\"),\"\")","v":""},{"$f":"IF(Table_PI[[#This Row],[Input 1]]<>\"\",Table_PI[[#This Row],[Input 1]],\"\")","v":""},null,{"$f":"IFERROR(IF(AND(MeasureCalc(Table_PI[[#This Row],[Hide:\nFormula Name]],Table_SummaryPI[[#This Row],[Quantity]],Table_PI[[#This Row],[List 1]],Table_PI[[#This Row],[List 2]],Table_PI[[#This Row],[List 3]],Table_PI[[#This Row],[Size]],Table_PI[[#This Row],[Input 1]],Table_PI[[#This Row],[Input 2]],Table_PI[[#This Row],[Input 3]],Table_PI[[#This Row],[Input 4]],'Customer Information'!$AR$12,101,ROW())<>0,MeasureCalc(Table_PI[[#This Row],[Hide:\nFormula Name]],Table_SummaryPI[[#This Row],[Quantity]],Table_PI[[#This Row],[List 1]],Table_PI[[#This Row],[List 2]],Table_PI[[#This Row],[List 3]],Table_PI[[#This Row],[Size]],Table_PI[[#This Row],[Input 1]],Table_PI[[#This Row],[Input 2]],Table_PI[[#This Row],[Input 3]],Table_PI[[#This Row],[Input 4]],'Customer Information'!$AR$12,101,ROW())<>\"No Rebate\"),MeasureCalc(Table_PI[[#This Row],[Hide:\nFormula Name]],Table_SummaryPI[[#This Row],[Quantity]],Table_PI[[#This Row],[List 1]],Table_PI[[#This Row],[List 2]],Table_PI[[#This Row],[List 3]],Table_PI[[#This Row],[Size]],Table_PI[[#This Row],[Input 1]],Table_PI[[#This Row],[Input 2]],Table_PI[[#This Row],[Input 3]],Table_PI[[#This Row],[Input 4]],'Customer Information'!$AR$12,101,ROW()),\"\"),\"\")","v":""},{"$f":"IF(Table_PI[[#This Row],[Input 2]]<>\"\",Table_PI[[#This Row],[Input 2]],\"\")","v":""},null,{"$f":"IFERROR(IF(AND(MeasureCalc(Table_PI[[#This Row],[Hide:\nFormula Name]],Table_SummaryPI[[#This Row],[Quantity]],Table_PI[[#This Row],[List 1]],Table_PI[[#This Row],[List 2]],Table_PI[[#This Row],[List 3]],Table_PI[[#This Row],[Size]],Table_PI[[#This Row],[Input 1]],Table_PI[[#This Row],[Input 2]],Table_PI[[#This Row],[Input 3]],Table_PI[[#This Row],[Input 4]],'Customer Information'!$AR$12,102,ROW())<>0,MeasureCalc(Table_PI[[#This Row],[Hide:\nFormula Name]],Table_SummaryPI[[#This Row],[Quantity]],Table_PI[[#This Row],[List 1]],Table_PI[[#This Row],[List 2]],Table_PI[[#This Row],[List 3]],Table_PI[[#This Row],[Size]],Table_PI[[#This Row],[Input 1]],Table_PI[[#This Row],[Input 2]],Table_PI[[#This Row],[Input 3]],Table_PI[[#This Row],[Input 4]],'Customer Information'!$AR$12,102,ROW())<>\"No Rebate\"),MeasureCalc(Table_PI[[#This Row],[Hide:\nFormula Name]],Table_SummaryPI[[#This Row],[Quantity]],Table_PI[[#This Row],[List 1]],Table_PI[[#This Row],[List 2]],Table_PI[[#This Row],[List 3]],Table_PI[[#This Row],[Size]],Table_PI[[#This Row],[Input 1]],Table_PI[[#This Row],[Input 2]],Table_PI[[#This Row],[Input 3]],Table_PI[[#This Row],[Input 4]],'Customer Information'!$AR$12,102,ROW()),\"\"),\"\")","v":""},{"$f":"IF(Table_PI[[#This Row],[Input 3]]<>\"\",Table_PI[[#This Row],[Input 3]],\"\")","v":""},null,{"$f":"IFERROR(IF(AND(MeasureCalc(Table_PI[[#This Row],[Hide:\nFormula Name]],Table_SummaryPI[[#This Row],[Quantity]],Table_PI[[#This Row],[List 1]],Table_PI[[#This Row],[List 2]],Table_PI[[#This Row],[List 3]],Table_PI[[#This Row],[Size]],Table_PI[[#This Row],[Input 1]],Table_PI[[#This Row],[Input 2]],Table_PI[[#This Row],[Input 3]],Table_PI[[#This Row],[Input 4]],'Customer Information'!$AR$12,103,ROW())<>0,MeasureCalc(Table_PI[[#This Row],[Hide:\nFormula Name]],Table_SummaryPI[[#This Row],[Quantity]],Table_PI[[#This Row],[List 1]],Table_PI[[#This Row],[List 2]],Table_PI[[#This Row],[List 3]],Table_PI[[#This Row],[Size]],Table_PI[[#This Row],[Input 1]],Table_PI[[#This Row],[Input 2]],Table_PI[[#This Row],[Input 3]],Table_PI[[#This Row],[Input 4]],'Customer Information'!$AR$12,103,ROW())<>\"No Rebate\"),MeasureCalc(Table_PI[[#This Row],[Hide:\nFormula Name]],Table_SummaryPI[[#This Row],[Quantity]],Table_PI[[#This Row],[List 1]],Table_PI[[#This Row],[List 2]],Table_PI[[#This Row],[List 3]],Table_PI[[#This Row],[Size]],Table_PI[[#This Row],[Input 1]],Table_PI[[#This Row],[Input 2]],Table_PI[[#This Row],[Input 3]],Table_PI[[#This Row],[Input 4]],'Customer Information'!$AR$12,103,ROW()),\"\"),\"\")","v":""},{"$f":"IF(Table_PI[[#This Row],[Input 4]]<>\"\",Table_PI[[#This Row],[Input 4]],\"\")","v":""},{"$f":"IF(Table_PI[[#This Row],[Quantity]]=\"\",\"\",Table_PI[[#This Row],[Quantity]])","v":""},{"$f":"IF(Table_PI[[#This Row],[Notes]]=\"\",\"\",Table_PI[[#This Row],[Notes]])","v":""},{"$f":"IF(OR(Table_PI[[#This Row],[Hide:\nBaseline kWh]]=\"\",Table_PI[[#This Row],[Hide:\nBaseline kWh]]=0),\"\",Table_PI[[#This Row],[Hide:\nBaseline kWh]])","v":""},{"$f":"IF(OR(Table_PI[[#This Row],[Hide:\nBaseline kW]]=\"\",Table_PI[[#This Row],[Hide:\nBaseline kW]]=0),\"\",Table_PI[[#This Row],[Hide:\nBaseline kW]])","v":""},{"$f":"IF(OR(Table_PI[[#This Row],[Hide:\nProposed kWh]]=\"\",Table_PI[[#This Row],[Hide:\nProposed kWh]]=0),\"\",Table_PI[[#This Row],[Hide:\nProposed kWh]])","v":""},{"$f":"IF(OR(Table_PI[[#This Row],[Hide:\nProposed kW]]=\"\",Table_PI[[#This Row],[Hide:\nProposed kW]]=0),\"\",Table_PI[[#This Row],[Hide:\nProposed kW]])","v":""},{"$f":"IF(OR(Table_PI[[#This Row],[Rebate]]=\"\",Table_PI[[#This Row],[Rebate]]=0),\"\",Table_PI[[#This Row],[Rebate]])","v":""},{"$f":"IF(OR(Table_PI[[#This Row],[Hide:\nIncremental Cost]]=\"\",Table_PI[[#This Row],[Hide:\nIncremental Cost]]=0),\"\",Table_PI[[#This Row],[Hide:\nIncremental Cost]])","v":""},{"$f":"IFERROR(IF(Table_SummaryPI[[#This Row],[kWhSavings]]=\"\",\"\",ROUND(Table_SummaryPI[[#This Row],[kWhSavings]]/$AG$401*'Customer Information'!$BC$17,2)),0)","v":""},{"$f":"IF(OR(Table_PI[[#This Row],[Annual kWh]]=\"\",Table_PI[[#This Row],[Annual kWh]]=0),\"\",Table_PI[[#This Row],[Annual kWh]])","v":""},{"$f":"IF(OR(Table_PI[[#This Row],[Peak kW]]=\"\",Table_PI[[#This Row],[Peak kW]]=0),\"\",Table_PI[[#This Row],[Peak kW]])","v":""},{"$f":"IFERROR(IF(Table_SummaryPI[[#This Row],[kWhSavings]]=\"\",\"\",$AU$9*Table_SummaryPI[[#This Row],[kWhSavings]]),0)","v":""},{"$f":"IFERROR(IF(Table_SummaryPI[[#This Row],[kWhSavings]]=\"\",\"\",$AU$14*Table_SummaryPI[[#This Row],[kWhSavings]]),0)","v":""},{"$f":"IFERROR(IF(Table_SummaryPI[[#This Row],[kWhSavings]]=\"\",\"\",$AU$18*Table_SummaryPI[[#This Row],[kWhSavings]]),0)","v":""},{"$f":"IFERROR(IF(Table_SummaryPI[[#This Row],[kWhSavings]]=\"\",\"\",$AU$22*Table_SummaryPI[[#This Row],[kWhSavings]]),0)","v":""},{"$f":"IFERROR(IF(MeasureCalc(Table_PI[[#This Row],[Hide:\nFormula Name]],Table_SummaryPI[[#This Row],[Quantity]],Table_PI[[#This Row],[List 1]],Table_PI[[#This Row],[List 2]],Table_PI[[#This Row],[List 3]],Table_PI[[#This Row],[Size]],Table_PI[[#This Row],[Input 1]],Table_PI[[#This Row],[Input 2]],Table_PI[[#This Row],[Input 3]],Table_PI[[#This Row],[Input 4]],'Customer Information'!$AR$12,200,ROW())<>\"No Rebate\",MeasureCalc(Table_PI[[#This Row],[Hide:\nFormula Name]],Table_SummaryPI[[#This Row],[Quantity]],Table_PI[[#This Row],[List 1]],Table_PI[[#This Row],[List 2]],Table_PI[[#This Row],[List 3]],Table_PI[[#This Row],[Size]],Table_PI[[#This Row],[Input 1]],Table_PI[[#This Row],[Input 2]],Table_PI[[#This Row],[Input 3]],Table_PI[[#This Row],[Input 4]],'Customer Information'!$AR$12,200,ROW()),\"\"),\"\")","v":""},{"$f":"IFERROR(IF(MeasureCalc(Table_PI[[#This Row],[Hide:\nFormula Name]],Table_SummaryPI[[#This Row],[Quantity]],Table_PI[[#This Row],[List 1]],Table_PI[[#This Row],[List 2]],Table_PI[[#This Row],[List 3]],Table_PI[[#This Row],[Size]],Table_PI[[#This Row],[Input 1]],Table_PI[[#This Row],[Input 2]],Table_PI[[#This Row],[Input 3]],Table_PI[[#This Row],[Input 4]],'Customer Information'!$AR$12,201,ROW())<>\"No Rebate\",MeasureCalc(Table_PI[[#This Row],[Hide:\nFormula Name]],Table_SummaryPI[[#This Row],[Quantity]],Table_PI[[#This Row],[List 1]],Table_PI[[#This Row],[List 2]],Table_PI[[#This Row],[List 3]],Table_PI[[#This Row],[Size]],Table_PI[[#This Row],[Input 1]],Table_PI[[#This Row],[Input 2]],Table_PI[[#This Row],[Input 3]],Table_PI[[#This Row],[Input 4]],'Customer Information'!$AR$12,201,ROW()),\"\"),\"\")","v":""}]
[{"$f":"Table_PI[[#This Row],[Line No.]]","v":""},{"$f":"IF(Table_SummaryPI[[#This Row],[MeassureCategory]]<>\"\",CONCATENATE(Table_SummaryPI[[#This Row],[MeassureCategory]],  \" - \", Table_SummaryPI[[#This Row],[ProposedMeasureCategory]],  \" - \", TEXT(Table_SummaryPI[[#This Row],[Size]],\"#,##0.00\"),\" \",Table_SummaryPI[[#This Row],[SizeUnit]]),\"\")","v":""},{"$f":"SUBSTITUTE(Table_PI[[#This Row],[Measure]],\"     \",\"\",1)","v":""},{"$f":"IF(Table_PI[[#This Row],[List 1]]<>\"\",Table_PI[[#This Row],[List 1]],\"\")","v":""},{"$f":"IF(Table_PI[[#This Row],[List 2]]<>\"\",Table_PI[[#This Row],[List 2]],\"\")","v":""},{"$f":"IF(Table_PI[[#This Row],[List 3]]<>\"\",Table_PI[[#This Row],[List 3]],\"\")","v":""},{"$f":"IF(Table_PI[[#This Row],[Manufacturer]]=\"\",\"\",Table_PI[[#This Row],[Manufacturer]])","v":""},{"$f":"IF(Table_PI[[#This Row],[Model Number]]=\"\",\"\",Table_PI[[#This Row],[Model Number]])","v":""},{"$f":"IF(Table_PI[[#This Row],[Serial Number(s)]]=\"\",\"\",Table_PI[[#This Row],[Serial Number(s)]])","v":""},null,{"$f":"IF(Table_PI[[#This Row],[Size]]=\"\",\"\",Table_PI[[#This Row],[Size]])","v":""},null,{"$f":"IFERROR(IF(AND(MeasureCalc(Table_PI[[#This Row],[Hide:\nFormula Name]],Table_SummaryPI[[#This Row],[Quantity]],Table_PI[[#This Row],[List 1]],Table_PI[[#This Row],[List 2]],Table_PI[[#This Row],[List 3]],Table_PI[[#This Row],[Size]],Table_PI[[#This Row],[Input 1]],Table_PI[[#This Row],[Input 2]],Table_PI[[#This Row],[Input 3]],Table_PI[[#This Row],[Input 4]],'Customer Information'!$AR$12,100,ROW())<>0,MeasureCalc(Table_PI[[#This Row],[Hide:\nFormula Name]],Table_SummaryPI[[#This Row],[Quantity]],Table_PI[[#This Row],[List 1]],Table_PI[[#This Row],[List 2]],Table_PI[[#This Row],[List 3]],Table_PI[[#This Row],[Size]],Table_PI[[#This Row],[Input 1]],Table_PI[[#This Row],[Input 2]],Table_PI[[#This Row],[Input 3]],Table_PI[[#This Row],[Input 4]],'Customer Information'!$AR$12,100,ROW())<>\"No Rebate\"),MeasureCalc(Table_PI[[#This Row],[Hide:\nFormula Name]],Table_SummaryPI[[#This Row],[Quantity]],Table_PI[[#This Row],[List 1]],Table_PI[[#This Row],[List 2]],Table_PI[[#This Row],[List 3]],Table_PI[[#This Row],[Size]],Table_PI[[#This Row],[Input 1]],Table_PI[[#This Row],[Input 2]],Table_PI[[#This Row],[Input 3]],Table_PI[[#This Row],[Input 4]],'Customer Information'!$AR$12,100,ROW()),\"\"),\"\")","v":""},{"$f":"IF(Table_PI[[#This Row],[Input 1]]<>\"\",Table_PI[[#This Row],[Input 1]],\"\")","v":""},null,{"$f":"IFERROR(IF(AND(MeasureCalc(Table_PI[[#This Row],[Hide:\nFormula Name]],Table_SummaryPI[[#This Row],[Quantity]],Table_PI[[#This Row],[List 1]],Table_PI[[#This Row],[List 2]],Table_PI[[#This Row],[List 3]],Table_PI[[#This Row],[Size]],Table_PI[[#This Row],[Input 1]],Table_PI[[#This Row],[Input 2]],Table_PI[[#This Row],[Input 3]],Table_PI[[#This Row],[Input 4]],'Customer Information'!$AR$12,101,ROW())<>0,MeasureCalc(Table_PI[[#This Row],[Hide:\nFormula Name]],Table_SummaryPI[[#This Row],[Quantity]],Table_PI[[#This Row],[List 1]],Table_PI[[#This Row],[List 2]],Table_PI[[#This Row],[List 3]],Table_PI[[#This Row],[Size]],Table_PI[[#This Row],[Input 1]],Table_PI[[#This Row],[Input 2]],Table_PI[[#This Row],[Input 3]],Table_PI[[#This Row],[Input 4]],'Customer Information'!$AR$12,101,ROW())<>\"No Rebate\"),MeasureCalc(Table_PI[[#This Row],[Hide:\nFormula Name]],Table_SummaryPI[[#This Row],[Quantity]],Table_PI[[#This Row],[List 1]],Table_PI[[#This Row],[List 2]],Table_PI[[#This Row],[List 3]],Table_PI[[#This Row],[Size]],Table_PI[[#This Row],[Input 1]],Table_PI[[#This Row],[Input 2]],Table_PI[[#This Row],[Input 3]],Table_PI[[#This Row],[Input 4]],'Customer Information'!$AR$12,101,ROW()),\"\"),\"\")","v":""},{"$f":"IF(Table_PI[[#This Row],[Input 2]]<>\"\",Table_PI[[#This Row],[Input 2]],\"\")","v":""},null,{"$f":"IFERROR(IF(AND(MeasureCalc(Table_PI[[#This Row],[Hide:\nFormula Name]],Table_SummaryPI[[#This Row],[Quantity]],Table_PI[[#This Row],[List 1]],Table_PI[[#This Row],[List 2]],Table_PI[[#This Row],[List 3]],Table_PI[[#This Row],[Size]],Table_PI[[#This Row],[Input 1]],Table_PI[[#This Row],[Input 2]],Table_PI[[#This Row],[Input 3]],Table_PI[[#This Row],[Input 4]],'Customer Information'!$AR$12,102,ROW())<>0,MeasureCalc(Table_PI[[#This Row],[Hide:\nFormula Name]],Table_SummaryPI[[#This Row],[Quantity]],Table_PI[[#This Row],[List 1]],Table_PI[[#This Row],[List 2]],Table_PI[[#This Row],[List 3]],Table_PI[[#This Row],[Size]],Table_PI[[#This Row],[Input 1]],Table_PI[[#This Row],[Input 2]],Table_PI[[#This Row],[Input 3]],Table_PI[[#This Row],[Input 4]],'Customer Information'!$AR$12,102,ROW())<>\"No Rebate\"),MeasureCalc(Table_PI[[#This Row],[Hide:\nFormula Name]],Table_SummaryPI[[#This Row],[Quantity]],Table_PI[[#This Row],[List 1]],Table_PI[[#This Row],[List 2]],Table_PI[[#This Row],[List 3]],Table_PI[[#This Row],[Size]],Table_PI[[#This Row],[Input 1]],Table_PI[[#This Row],[Input 2]],Table_PI[[#This Row],[Input 3]],Table_PI[[#This Row],[Input 4]],'Customer Information'!$AR$12,102,ROW()),\"\"),\"\")","v":""},{"$f":"IF(Table_PI[[#This Row],[Input 3]]<>\"\",Table_PI[[#This Row],[Input 3]],\"\")","v":""},null,{"$f":"IFERROR(IF(AND(MeasureCalc(Table_PI[[#This Row],[Hide:\nFormula Name]],Table_SummaryPI[[#This Row],[Quantity]],Table_PI[[#This Row],[List 1]],Table_PI[[#This Row],[List 2]],Table_PI[[#This Row],[List 3]],Table_PI[[#This Row],[Size]],Table_PI[[#This Row],[Input 1]],Table_PI[[#This Row],[Input 2]],Table_PI[[#This Row],[Input 3]],Table_PI[[#This Row],[Input 4]],'Customer Information'!$AR$12,103,ROW())<>0,MeasureCalc(Table_PI[[#This Row],[Hide:\nFormula Name]],Table_SummaryPI[[#This Row],[Quantity]],Table_PI[[#This Row],[List 1]],Table_PI[[#This Row],[List 2]],Table_PI[[#This Row],[List 3]],Table_PI[[#This Row],[Size]],Table_PI[[#This Row],[Input 1]],Table_PI[[#This Row],[Input 2]],Table_PI[[#This Row],[Input 3]],Table_PI[[#This Row],[Input 4]],'Customer Information'!$AR$12,103,ROW())<>\"No Rebate\"),MeasureCalc(Table_PI[[#This Row],[Hide:\nFormula Name]],Table_SummaryPI[[#This Row],[Quantity]],Table_PI[[#This Row],[List 1]],Table_PI[[#This Row],[List 2]],Table_PI[[#This Row],[List 3]],Table_PI[[#This Row],[Size]],Table_PI[[#This Row],[Input 1]],Table_PI[[#This Row],[Input 2]],Table_PI[[#This Row],[Input 3]],Table_PI[[#This Row],[Input 4]],'Customer Information'!$AR$12,103,ROW()),\"\"),\"\")","v":""},{"$f":"IF(Table_PI[[#This Row],[Input 4]]<>\"\",Table_PI[[#This Row],[Input 4]],\"\")","v":""},{"$f":"IF(Table_PI[[#This Row],[Quantity]]=\"\",\"\",Table_PI[[#This Row],[Quantity]])","v":""},{"$f":"IF(Table_PI[[#This Row],[Notes]]=\"\",\"\",Table_PI[[#This Row],[Notes]])","v":""},{"$f":"IF(OR(Table_PI[[#This Row],[Hide:\nBaseline kWh]]=\"\",Table_PI[[#This Row],[Hide:\nBaseline kWh]]=0),\"\",Table_PI[[#This Row],[Hide:\nBaseline kWh]])","v":""},{"$f":"IF(OR(Table_PI[[#This Row],[Hide:\nBaseline kW]]=\"\",Table_PI[[#This Row],[Hide:\nBaseline kW]]=0),\"\",Table_PI[[#This Row],[Hide:\nBaseline kW]])","v":""},{"$f":"IF(OR(Table_PI[[#This Row],[Hide:\nProposed kWh]]=\"\",Table_PI[[#This Row],[Hide:\nProposed kWh]]=0),\"\",Table_PI[[#This Row],[Hide:\nProposed kWh]])","v":""},{"$f":"IF(OR(Table_PI[[#This Row],[Hide:\nProposed kW]]=\"\",Table_PI[[#This Row],[Hide:\nProposed kW]]=0),\"\",Table_PI[[#This Row],[Hide:\nProposed kW]])","v":""},{"$f":"IF(OR(Table_PI[[#This Row],[Rebate]]=\"\",Table_PI[[#This Row],[Rebate]]=0),\"\",Table_PI[[#This Row],[Rebate]])","v":""},{"$f":"IF(OR(Table_PI[[#This Row],[Hide:\nIncremental Cost]]=\"\",Table_PI[[#This Row],[Hide:\nIncremental Cost]]=0),\"\",Table_PI[[#This Row],[Hide:\nIncremental Cost]])","v":""},{"$f":"IFERROR(IF(Table_SummaryPI[[#This Row],[kWhSavings]]=\"\",\"\",ROUND(Table_SummaryPI[[#This Row],[kWhSavings]]/$AG$401*'Customer Information'!$BC$17,2)),0)","v":""},{"$f":"IF(OR(Table_PI[[#This Row],[Annual kWh]]=\"\",Table_PI[[#This Row],[Annual kWh]]=0),\"\",Table_PI[[#This Row],[Annual kWh]])","v":""},{"$f":"IF(OR(Table_PI[[#This Row],[Peak kW]]=\"\",Table_PI[[#This Row],[Peak kW]]=0),\"\",Table_PI[[#This Row],[Peak kW]])","v":""},{"$f":"IFERROR(IF(Table_SummaryPI[[#This Row],[kWhSavings]]=\"\",\"\",$AU$9*Table_SummaryPI[[#This Row],[kWhSavings]]),0)","v":""},{"$f":"IFERROR(IF(Table_SummaryPI[[#This Row],[kWhSavings]]=\"\",\"\",$AU$14*Table_SummaryPI[[#This Row],[kWhSavings]]),0)","v":""},{"$f":"IFERROR(IF(Table_SummaryPI[[#This Row],[kWhSavings]]=\"\",\"\",$AU$18*Table_SummaryPI[[#This Row],[kWhSavings]]),0)","v":""},{"$f":"IFERROR(IF(Table_SummaryPI[[#This Row],[kWhSavings]]=\"\",\"\",$AU$22*Table_SummaryPI[[#This Row],[kWhSavings]]),0)","v":""},{"$f":"IFERROR(IF(MeasureCalc(Table_PI[[#This Row],[Hide:\nFormula Name]],Table_SummaryPI[[#This Row],[Quantity]],Table_PI[[#This Row],[List 1]],Table_PI[[#This Row],[List 2]],Table_PI[[#This Row],[List 3]],Table_PI[[#This Row],[Size]],Table_PI[[#This Row],[Input 1]],Table_PI[[#This Row],[Input 2]],Table_PI[[#This Row],[Input 3]],Table_PI[[#This Row],[Input 4]],'Customer Information'!$AR$12,200,ROW())<>\"No Rebate\",MeasureCalc(Table_PI[[#This Row],[Hide:\nFormula Name]],Table_SummaryPI[[#This Row],[Quantity]],Table_PI[[#This Row],[List 1]],Table_PI[[#This Row],[List 2]],Table_PI[[#This Row],[List 3]],Table_PI[[#This Row],[Size]],Table_PI[[#This Row],[Input 1]],Table_PI[[#This Row],[Input 2]],Table_PI[[#This Row],[Input 3]],Table_PI[[#This Row],[Input 4]],'Customer Information'!$AR$12,200,ROW()),\"\"),\"\")","v":""},{"$f":"IFERROR(IF(MeasureCalc(Table_PI[[#This Row],[Hide:\nFormula Name]],Table_SummaryPI[[#This Row],[Quantity]],Table_PI[[#This Row],[List 1]],Table_PI[[#This Row],[List 2]],Table_PI[[#This Row],[List 3]],Table_PI[[#This Row],[Size]],Table_PI[[#This Row],[Input 1]],Table_PI[[#This Row],[Input 2]],Table_PI[[#This Row],[Input 3]],Table_PI[[#This Row],[Input 4]],'Customer Information'!$AR$12,201,ROW())<>\"No Rebate\",MeasureCalc(Table_PI[[#This Row],[Hide:\nFormula Name]],Table_SummaryPI[[#This Row],[Quantity]],Table_PI[[#This Row],[List 1]],Table_PI[[#This Row],[List 2]],Table_PI[[#This Row],[List 3]],Table_PI[[#This Row],[Size]],Table_PI[[#This Row],[Input 1]],Table_PI[[#This Row],[Input 2]],Table_PI[[#This Row],[Input 3]],Table_PI[[#This Row],[Input 4]],'Customer Information'!$AR$12,201,ROW()),\"\"),\"\")","v":""}]
[{"$f":"Table_PI[[#This Row],[Line No.]]","v":""},{"$f":"IF(Table_SummaryPI[[#This Row],[MeassureCategory]]<>\"\",CONCATENATE(Table_SummaryPI[[#This Row],[MeassureCategory]],  \" - \", Table_SummaryPI[[#This Row],[ProposedMeasureCategory]],  \" - \", TEXT(Table_SummaryPI[[#This Row],[Size]],\"#,##0.00\"),\" \",Table_SummaryPI[[#This Row],[SizeUnit]]),\"\")","v":""},{"$f":"SUBSTITUTE(Table_PI[[#This Row],[Measure]],\"     \",\"\",1)","v":""},{"$f":"IF(Table_PI[[#This Row],[List 1]]<>\"\",Table_PI[[#This Row],[List 1]],\"\")","v":""},{"$f":"IF(Table_PI[[#This Row],[List 2]]<>\"\",Table_PI[[#This Row],[List 2]],\"\")","v":""},{"$f":"IF(Table_PI[[#This Row],[List 3]]<>\"\",Table_PI[[#This Row],[List 3]],\"\")","v":""},{"$f":"IF(Table_PI[[#This Row],[Manufacturer]]=\"\",\"\",Table_PI[[#This Row],[Manufacturer]])","v":""},{"$f":"IF(Table_PI[[#This Row],[Model Number]]=\"\",\"\",Table_PI[[#This Row],[Model Number]])","v":""},{"$f":"IF(Table_PI[[#This Row],[Serial Number(s)]]=\"\",\"\",Table_PI[[#This Row],[Serial Number(s)]])","v":""},null,{"$f":"IF(Table_PI[[#This Row],[Size]]=\"\",\"\",Table_PI[[#This Row],[Size]])","v":""},null,{"$f":"IFERROR(IF(AND(MeasureCalc(Table_PI[[#This Row],[Hide:\nFormula Name]],Table_SummaryPI[[#This Row],[Quantity]],Table_PI[[#This Row],[List 1]],Table_PI[[#This Row],[List 2]],Table_PI[[#This Row],[List 3]],Table_PI[[#This Row],[Size]],Table_PI[[#This Row],[Input 1]],Table_PI[[#This Row],[Input 2]],Table_PI[[#This Row],[Input 3]],Table_PI[[#This Row],[Input 4]],'Customer Information'!$AR$12,100,ROW())<>0,MeasureCalc(Table_PI[[#This Row],[Hide:\nFormula Name]],Table_SummaryPI[[#This Row],[Quantity]],Table_PI[[#This Row],[List 1]],Table_PI[[#This Row],[List 2]],Table_PI[[#This Row],[List 3]],Table_PI[[#This Row],[Size]],Table_PI[[#This Row],[Input 1]],Table_PI[[#This Row],[Input 2]],Table_PI[[#This Row],[Input 3]],Table_PI[[#This Row],[Input 4]],'Customer Information'!$AR$12,100,ROW())<>\"No Rebate\"),MeasureCalc(Table_PI[[#This Row],[Hide:\nFormula Name]],Table_SummaryPI[[#This Row],[Quantity]],Table_PI[[#This Row],[List 1]],Table_PI[[#This Row],[List 2]],Table_PI[[#This Row],[List 3]],Table_PI[[#This Row],[Size]],Table_PI[[#This Row],[Input 1]],Table_PI[[#This Row],[Input 2]],Table_PI[[#This Row],[Input 3]],Table_PI[[#This Row],[Input 4]],'Customer Information'!$AR$12,100,ROW()),\"\"),\"\")","v":""},{"$f":"IF(Table_PI[[#This Row],[Input 1]]<>\"\",Table_PI[[#This Row],[Input 1]],\"\")","v":""},null,{"$f":"IFERROR(IF(AND(MeasureCalc(Table_PI[[#This Row],[Hide:\nFormula Name]],Table_SummaryPI[[#This Row],[Quantity]],Table_PI[[#This Row],[List 1]],Table_PI[[#This Row],[List 2]],Table_PI[[#This Row],[List 3]],Table_PI[[#This Row],[Size]],Table_PI[[#This Row],[Input 1]],Table_PI[[#This Row],[Input 2]],Table_PI[[#This Row],[Input 3]],Table_PI[[#This Row],[Input 4]],'Customer Information'!$AR$12,101,ROW())<>0,MeasureCalc(Table_PI[[#This Row],[Hide:\nFormula Name]],Table_SummaryPI[[#This Row],[Quantity]],Table_PI[[#This Row],[List 1]],Table_PI[[#This Row],[List 2]],Table_PI[[#This Row],[List 3]],Table_PI[[#This Row],[Size]],Table_PI[[#This Row],[Input 1]],Table_PI[[#This Row],[Input 2]],Table_PI[[#This Row],[Input 3]],Table_PI[[#This Row],[Input 4]],'Customer Information'!$AR$12,101,ROW())<>\"No Rebate\"),MeasureCalc(Table_PI[[#This Row],[Hide:\nFormula Name]],Table_SummaryPI[[#This Row],[Quantity]],Table_PI[[#This Row],[List 1]],Table_PI[[#This Row],[List 2]],Table_PI[[#This Row],[List 3]],Table_PI[[#This Row],[Size]],Table_PI[[#This Row],[Input 1]],Table_PI[[#This Row],[Input 2]],Table_PI[[#This Row],[Input 3]],Table_PI[[#This Row],[Input 4]],'Customer Information'!$AR$12,101,ROW()),\"\"),\"\")","v":""},{"$f":"IF(Table_PI[[#This Row],[Input 2]]<>\"\",Table_PI[[#This Row],[Input 2]],\"\")","v":""},null,{"$f":"IFERROR(IF(AND(MeasureCalc(Table_PI[[#This Row],[Hide:\nFormula Name]],Table_SummaryPI[[#This Row],[Quantity]],Table_PI[[#This Row],[List 1]],Table_PI[[#This Row],[List 2]],Table_PI[[#This Row],[List 3]],Table_PI[[#This Row],[Size]],Table_PI[[#This Row],[Input 1]],Table_PI[[#This Row],[Input 2]],Table_PI[[#This Row],[Input 3]],Table_PI[[#This Row],[Input 4]],'Customer Information'!$AR$12,102,ROW())<>0,MeasureCalc(Table_PI[[#This Row],[Hide:\nFormula Name]],Table_SummaryPI[[#This Row],[Quantity]],Table_PI[[#This Row],[List 1]],Table_PI[[#This Row],[List 2]],Table_PI[[#This Row],[List 3]],Table_PI[[#This Row],[Size]],Table_PI[[#This Row],[Input 1]],Table_PI[[#This Row],[Input 2]],Table_PI[[#This Row],[Input 3]],Table_PI[[#This Row],[Input 4]],'Customer Information'!$AR$12,102,ROW())<>\"No Rebate\"),MeasureCalc(Table_PI[[#This Row],[Hide:\nFormula Name]],Table_SummaryPI[[#This Row],[Quantity]],Table_PI[[#This Row],[List 1]],Table_PI[[#This Row],[List 2]],Table_PI[[#This Row],[List 3]],Table_PI[[#This Row],[Size]],Table_PI[[#This Row],[Input 1]],Table_PI[[#This Row],[Input 2]],Table_PI[[#This Row],[Input 3]],Table_PI[[#This Row],[Input 4]],'Customer Information'!$AR$12,102,ROW()),\"\"),\"\")","v":""},{"$f":"IF(Table_PI[[#This Row],[Input 3]]<>\"\",Table_PI[[#This Row],[Input 3]],\"\")","v":""},null,{"$f":"IFERROR(IF(AND(MeasureCalc(Table_PI[[#This Row],[Hide:\nFormula Name]],Table_SummaryPI[[#This Row],[Quantity]],Table_PI[[#This Row],[List 1]],Table_PI[[#This Row],[List 2]],Table_PI[[#This Row],[List 3]],Table_PI[[#This Row],[Size]],Table_PI[[#This Row],[Input 1]],Table_PI[[#This Row],[Input 2]],Table_PI[[#This Row],[Input 3]],Table_PI[[#This Row],[Input 4]],'Customer Information'!$AR$12,103,ROW())<>0,MeasureCalc(Table_PI[[#This Row],[Hide:\nFormula Name]],Table_SummaryPI[[#This Row],[Quantity]],Table_PI[[#This Row],[List 1]],Table_PI[[#This Row],[List 2]],Table_PI[[#This Row],[List 3]],Table_PI[[#This Row],[Size]],Table_PI[[#This Row],[Input 1]],Table_PI[[#This Row],[Input 2]],Table_PI[[#This Row],[Input 3]],Table_PI[[#This Row],[Input 4]],'Customer Information'!$AR$12,103,ROW())<>\"No Rebate\"),MeasureCalc(Table_PI[[#This Row],[Hide:\nFormula Name]],Table_SummaryPI[[#This Row],[Quantity]],Table_PI[[#This Row],[List 1]],Table_PI[[#This Row],[List 2]],Table_PI[[#This Row],[List 3]],Table_PI[[#This Row],[Size]],Table_PI[[#This Row],[Input 1]],Table_PI[[#This Row],[Input 2]],Table_PI[[#This Row],[Input 3]],Table_PI[[#This Row],[Input 4]],'Customer Information'!$AR$12,103,ROW()),\"\"),\"\")","v":""},{"$f":"IF(Table_PI[[#This Row],[Input 4]]<>\"\",Table_PI[[#This Row],[Input 4]],\"\")","v":""},{"$f":"IF(Table_PI[[#This Row],[Quantity]]=\"\",\"\",Table_PI[[#This Row],[Quantity]])","v":""},{"$f":"IF(Table_PI[[#This Row],[Notes]]=\"\",\"\",Table_PI[[#This Row],[Notes]])","v":""},{"$f":"IF(OR(Table_PI[[#This Row],[Hide:\nBaseline kWh]]=\"\",Table_PI[[#This Row],[Hide:\nBaseline kWh]]=0),\"\",Table_PI[[#This Row],[Hide:\nBaseline kWh]])","v":""},{"$f":"IF(OR(Table_PI[[#This Row],[Hide:\nBaseline kW]]=\"\",Table_PI[[#This Row],[Hide:\nBaseline kW]]=0),\"\",Table_PI[[#This Row],[Hide:\nBaseline kW]])","v":""},{"$f":"IF(OR(Table_PI[[#This Row],[Hide:\nProposed kWh]]=\"\",Table_PI[[#This Row],[Hide:\nProposed kWh]]=0),\"\",Table_PI[[#This Row],[Hide:\nProposed kWh]])","v":""},{"$f":"IF(OR(Table_PI[[#This Row],[Hide:\nProposed kW]]=\"\",Table_PI[[#This Row],[Hide:\nProposed kW]]=0),\"\",Table_PI[[#This Row],[Hide:\nProposed kW]])","v":""},{"$f":"IF(OR(Table_PI[[#This Row],[Rebate]]=\"\",Table_PI[[#This Row],[Rebate]]=0),\"\",Table_PI[[#This Row],[Rebate]])","v":""},{"$f":"IF(OR(Table_PI[[#This Row],[Hide:\nIncremental Cost]]=\"\",Table_PI[[#This Row],[Hide:\nIncremental Cost]]=0),\"\",Table_PI[[#This Row],[Hide:\nIncremental Cost]])","v":""},{"$f":"IFERROR(IF(Table_SummaryPI[[#This Row],[kWhSavings]]=\"\",\"\",ROUND(Table_SummaryPI[[#This Row],[kWhSavings]]/$AG$401*'Customer Information'!$BC$17,2)),0)","v":""},{"$f":"IF(OR(Table_PI[[#This Row],[Annual kWh]]=\"\",Table_PI[[#This Row],[Annual kWh]]=0),\"\",Table_PI[[#This Row],[Annual kWh]])","v":""},{"$f":"IF(OR(Table_PI[[#This Row],[Peak kW]]=\"\",Table_PI[[#This Row],[Peak kW]]=0),\"\",Table_PI[[#This Row],[Peak kW]])","v":""},{"$f":"IFERROR(IF(Table_SummaryPI[[#This Row],[kWhSavings]]=\"\",\"\",$AU$9*Table_SummaryPI[[#This Row],[kWhSavings]]),0)","v":""},{"$f":"IFERROR(IF(Table_SummaryPI[[#This Row],[kWhSavings]]=\"\",\"\",$AU$14*Table_SummaryPI[[#This Row],[kWhSavings]]),0)","v":""},{"$f":"IFERROR(IF(Table_SummaryPI[[#This Row],[kWhSavings]]=\"\",\"\",$AU$18*Table_SummaryPI[[#This Row],[kWhSavings]]),0)","v":""},{"$f":"IFERROR(IF(Table_SummaryPI[[#This Row],[kWhSavings]]=\"\",\"\",$AU$22*Table_SummaryPI[[#This Row],[kWhSavings]]),0)","v":""},{"$f":"IFERROR(IF(MeasureCalc(Table_PI[[#This Row],[Hide:\nFormula Name]],Table_SummaryPI[[#This Row],[Quantity]],Table_PI[[#This Row],[List 1]],Table_PI[[#This Row],[List 2]],Table_PI[[#This Row],[List 3]],Table_PI[[#This Row],[Size]],Table_PI[[#This Row],[Input 1]],Table_PI[[#This Row],[Input 2]],Table_PI[[#This Row],[Input 3]],Table_PI[[#This Row],[Input 4]],'Customer Information'!$AR$12,200,ROW())<>\"No Rebate\",MeasureCalc(Table_PI[[#This Row],[Hide:\nFormula Name]],Table_SummaryPI[[#This Row],[Quantity]],Table_PI[[#This Row],[List 1]],Table_PI[[#This Row],[List 2]],Table_PI[[#This Row],[List 3]],Table_PI[[#This Row],[Size]],Table_PI[[#This Row],[Input 1]],Table_PI[[#This Row],[Input 2]],Table_PI[[#This Row],[Input 3]],Table_PI[[#This Row],[Input 4]],'Customer Information'!$AR$12,200,ROW()),\"\"),\"\")","v":""},{"$f":"IFERROR(IF(MeasureCalc(Table_PI[[#This Row],[Hide:\nFormula Name]],Table_SummaryPI[[#This Row],[Quantity]],Table_PI[[#This Row],[List 1]],Table_PI[[#This Row],[List 2]],Table_PI[[#This Row],[List 3]],Table_PI[[#This Row],[Size]],Table_PI[[#This Row],[Input 1]],Table_PI[[#This Row],[Input 2]],Table_PI[[#This Row],[Input 3]],Table_PI[[#This Row],[Input 4]],'Customer Information'!$AR$12,201,ROW())<>\"No Rebate\",MeasureCalc(Table_PI[[#This Row],[Hide:\nFormula Name]],Table_SummaryPI[[#This Row],[Quantity]],Table_PI[[#This Row],[List 1]],Table_PI[[#This Row],[List 2]],Table_PI[[#This Row],[List 3]],Table_PI[[#This Row],[Size]],Table_PI[[#This Row],[Input 1]],Table_PI[[#This Row],[Input 2]],Table_PI[[#This Row],[Input 3]],Table_PI[[#This Row],[Input 4]],'Customer Information'!$AR$12,201,ROW()),\"\"),\"\")","v":""}]
[{"$f":"Table_PI[[#This Row],[Line No.]]","v":""},{"$f":"IF(Table_SummaryPI[[#This Row],[MeassureCategory]]<>\"\",CONCATENATE(Table_SummaryPI[[#This Row],[MeassureCategory]],  \" - \", Table_SummaryPI[[#This Row],[ProposedMeasureCategory]],  \" - \", TEXT(Table_SummaryPI[[#This Row],[Size]],\"#,##0.00\"),\" \",Table_SummaryPI[[#This Row],[SizeUnit]]),\"\")","v":""},{"$f":"SUBSTITUTE(Table_PI[[#This Row],[Measure]],\"     \",\"\",1)","v":""},{"$f":"IF(Table_PI[[#This Row],[List 1]]<>\"\",Table_PI[[#This Row],[List 1]],\"\")","v":""},{"$f":"IF(Table_PI[[#This Row],[List 2]]<>\"\",Table_PI[[#This Row],[List 2]],\"\")","v":""},{"$f":"IF(Table_PI[[#This Row],[List 3]]<>\"\",Table_PI[[#This Row],[List 3]],\"\")","v":""},{"$f":"IF(Table_PI[[#This Row],[Manufacturer]]=\"\",\"\",Table_PI[[#This Row],[Manufacturer]])","v":""},{"$f":"IF(Table_PI[[#This Row],[Model Number]]=\"\",\"\",Table_PI[[#This Row],[Model Number]])","v":""},{"$f":"IF(Table_PI[[#This Row],[Serial Number(s)]]=\"\",\"\",Table_PI[[#This Row],[Serial Number(s)]])","v":""},null,{"$f":"IF(Table_PI[[#This Row],[Size]]=\"\",\"\",Table_PI[[#This Row],[Size]])","v":""},null,{"$f":"IFERROR(IF(AND(MeasureCalc(Table_PI[[#This Row],[Hide:\nFormula Name]],Table_SummaryPI[[#This Row],[Quantity]],Table_PI[[#This Row],[List 1]],Table_PI[[#This Row],[List 2]],Table_PI[[#This Row],[List 3]],Table_PI[[#This Row],[Size]],Table_PI[[#This Row],[Input 1]],Table_PI[[#This Row],[Input 2]],Table_PI[[#This Row],[Input 3]],Table_PI[[#This Row],[Input 4]],'Customer Information'!$AR$12,100,ROW())<>0,MeasureCalc(Table_PI[[#This Row],[Hide:\nFormula Name]],Table_SummaryPI[[#This Row],[Quantity]],Table_PI[[#This Row],[List 1]],Table_PI[[#This Row],[List 2]],Table_PI[[#This Row],[List 3]],Table_PI[[#This Row],[Size]],Table_PI[[#This Row],[Input 1]],Table_PI[[#This Row],[Input 2]],Table_PI[[#This Row],[Input 3]],Table_PI[[#This Row],[Input 4]],'Customer Information'!$AR$12,100,ROW())<>\"No Rebate\"),MeasureCalc(Table_PI[[#This Row],[Hide:\nFormula Name]],Table_SummaryPI[[#This Row],[Quantity]],Table_PI[[#This Row],[List 1]],Table_PI[[#This Row],[List 2]],Table_PI[[#This Row],[List 3]],Table_PI[[#This Row],[Size]],Table_PI[[#This Row],[Input 1]],Table_PI[[#This Row],[Input 2]],Table_PI[[#This Row],[Input 3]],Table_PI[[#This Row],[Input 4]],'Customer Information'!$AR$12,100,ROW()),\"\"),\"\")","v":""},{"$f":"IF(Table_PI[[#This Row],[Input 1]]<>\"\",Table_PI[[#This Row],[Input 1]],\"\")","v":""},null,{"$f":"IFERROR(IF(AND(MeasureCalc(Table_PI[[#This Row],[Hide:\nFormula Name]],Table_SummaryPI[[#This Row],[Quantity]],Table_PI[[#This Row],[List 1]],Table_PI[[#This Row],[List 2]],Table_PI[[#This Row],[List 3]],Table_PI[[#This Row],[Size]],Table_PI[[#This Row],[Input 1]],Table_PI[[#This Row],[Input 2]],Table_PI[[#This Row],[Input 3]],Table_PI[[#This Row],[Input 4]],'Customer Information'!$AR$12,101,ROW())<>0,MeasureCalc(Table_PI[[#This Row],[Hide:\nFormula Name]],Table_SummaryPI[[#This Row],[Quantity]],Table_PI[[#This Row],[List 1]],Table_PI[[#This Row],[List 2]],Table_PI[[#This Row],[List 3]],Table_PI[[#This Row],[Size]],Table_PI[[#This Row],[Input 1]],Table_PI[[#This Row],[Input 2]],Table_PI[[#This Row],[Input 3]],Table_PI[[#This Row],[Input 4]],'Customer Information'!$AR$12,101,ROW())<>\"No Rebate\"),MeasureCalc(Table_PI[[#This Row],[Hide:\nFormula Name]],Table_SummaryPI[[#This Row],[Quantity]],Table_PI[[#This Row],[List 1]],Table_PI[[#This Row],[List 2]],Table_PI[[#This Row],[List 3]],Table_PI[[#This Row],[Size]],Table_PI[[#This Row],[Input 1]],Table_PI[[#This Row],[Input 2]],Table_PI[[#This Row],[Input 3]],Table_PI[[#This Row],[Input 4]],'Customer Information'!$AR$12,101,ROW()),\"\"),\"\")","v":""},{"$f":"IF(Table_PI[[#This Row],[Input 2]]<>\"\",Table_PI[[#This Row],[Input 2]],\"\")","v":""},null,{"$f":"IFERROR(IF(AND(MeasureCalc(Table_PI[[#This Row],[Hide:\nFormula Name]],Table_SummaryPI[[#This Row],[Quantity]],Table_PI[[#This Row],[List 1]],Table_PI[[#This Row],[List 2]],Table_PI[[#This Row],[List 3]],Table_PI[[#This Row],[Size]],Table_PI[[#This Row],[Input 1]],Table_PI[[#This Row],[Input 2]],Table_PI[[#This Row],[Input 3]],Table_PI[[#This Row],[Input 4]],'Customer Information'!$AR$12,102,ROW())<>0,MeasureCalc(Table_PI[[#This Row],[Hide:\nFormula Name]],Table_SummaryPI[[#This Row],[Quantity]],Table_PI[[#This Row],[List 1]],Table_PI[[#This Row],[List 2]],Table_PI[[#This Row],[List 3]],Table_PI[[#This Row],[Size]],Table_PI[[#This Row],[Input 1]],Table_PI[[#This Row],[Input 2]],Table_PI[[#This Row],[Input 3]],Table_PI[[#This Row],[Input 4]],'Customer Information'!$AR$12,102,ROW())<>\"No Rebate\"),MeasureCalc(Table_PI[[#This Row],[Hide:\nFormula Name]],Table_SummaryPI[[#This Row],[Quantity]],Table_PI[[#This Row],[List 1]],Table_PI[[#This Row],[List 2]],Table_PI[[#This Row],[List 3]],Table_PI[[#This Row],[Size]],Table_PI[[#This Row],[Input 1]],Table_PI[[#This Row],[Input 2]],Table_PI[[#This Row],[Input 3]],Table_PI[[#This Row],[Input 4]],'Customer Information'!$AR$12,102,ROW()),\"\"),\"\")","v":""},{"$f":"IF(Table_PI[[#This Row],[Input 3]]<>\"\",Table_PI[[#This Row],[Input 3]],\"\")","v":""},null,{"$f":"IFERROR(IF(AND(MeasureCalc(Table_PI[[#This Row],[Hide:\nFormula Name]],Table_SummaryPI[[#This Row],[Quantity]],Table_PI[[#This Row],[List 1]],Table_PI[[#This Row],[List 2]],Table_PI[[#This Row],[List 3]],Table_PI[[#This Row],[Size]],Table_PI[[#This Row],[Input 1]],Table_PI[[#This Row],[Input 2]],Table_PI[[#This Row],[Input 3]],Table_PI[[#This Row],[Input 4]],'Customer Information'!$AR$12,103,ROW())<>0,MeasureCalc(Table_PI[[#This Row],[Hide:\nFormula Name]],Table_SummaryPI[[#This Row],[Quantity]],Table_PI[[#This Row],[List 1]],Table_PI[[#This Row],[List 2]],Table_PI[[#This Row],[List 3]],Table_PI[[#This Row],[Size]],Table_PI[[#This Row],[Input 1]],Table_PI[[#This Row],[Input 2]],Table_PI[[#This Row],[Input 3]],Table_PI[[#This Row],[Input 4]],'Customer Information'!$AR$12,103,ROW())<>\"No Rebate\"),MeasureCalc(Table_PI[[#This Row],[Hide:\nFormula Name]],Table_SummaryPI[[#This Row],[Quantity]],Table_PI[[#This Row],[List 1]],Table_PI[[#This Row],[List 2]],Table_PI[[#This Row],[List 3]],Table_PI[[#This Row],[Size]],Table_PI[[#This Row],[Input 1]],Table_PI[[#This Row],[Input 2]],Table_PI[[#This Row],[Input 3]],Table_PI[[#This Row],[Input 4]],'Customer Information'!$AR$12,103,ROW()),\"\"),\"\")","v":""},{"$f":"IF(Table_PI[[#This Row],[Input 4]]<>\"\",Table_PI[[#This Row],[Input 4]],\"\")","v":""},{"$f":"IF(Table_PI[[#This Row],[Quantity]]=\"\",\"\",Table_PI[[#This Row],[Quantity]])","v":""},{"$f":"IF(Table_PI[[#This Row],[Notes]]=\"\",\"\",Table_PI[[#This Row],[Notes]])","v":""},{"$f":"IF(OR(Table_PI[[#This Row],[Hide:\nBaseline kWh]]=\"\",Table_PI[[#This Row],[Hide:\nBaseline kWh]]=0),\"\",Table_PI[[#This Row],[Hide:\nBaseline kWh]])","v":""},{"$f":"IF(OR(Table_PI[[#This Row],[Hide:\nBaseline kW]]=\"\",Table_PI[[#This Row],[Hide:\nBaseline kW]]=0),\"\",Table_PI[[#This Row],[Hide:\nBaseline kW]])","v":""},{"$f":"IF(OR(Table_PI[[#This Row],[Hide:\nProposed kWh]]=\"\",Table_PI[[#This Row],[Hide:\nProposed kWh]]=0),\"\",Table_PI[[#This Row],[Hide:\nProposed kWh]])","v":""},{"$f":"IF(OR(Table_PI[[#This Row],[Hide:\nProposed kW]]=\"\",Table_PI[[#This Row],[Hide:\nProposed kW]]=0),\"\",Table_PI[[#This Row],[Hide:\nProposed kW]])","v":""},{"$f":"IF(OR(Table_PI[[#This Row],[Rebate]]=\"\",Table_PI[[#This Row],[Rebate]]=0),\"\",Table_PI[[#This Row],[Rebate]])","v":""},{"$f":"IF(OR(Table_PI[[#This Row],[Hide:\nIncremental Cost]]=\"\",Table_PI[[#This Row],[Hide:\nIncremental Cost]]=0),\"\",Table_PI[[#This Row],[Hide:\nIncremental Cost]])","v":""},{"$f":"IFERROR(IF(Table_SummaryPI[[#This Row],[kWhSavings]]=\"\",\"\",ROUND(Table_SummaryPI[[#This Row],[kWhSavings]]/$AG$401*'Customer Information'!$BC$17,2)),0)","v":""},{"$f":"IF(OR(Table_PI[[#This Row],[Annual kWh]]=\"\",Table_PI[[#This Row],[Annual kWh]]=0),\"\",Table_PI[[#This Row],[Annual kWh]])","v":""},{"$f":"IF(OR(Table_PI[[#This Row],[Peak kW]]=\"\",Table_PI[[#This Row],[Peak kW]]=0),\"\",Table_PI[[#This Row],[Peak kW]])","v":""},{"$f":"IFERROR(IF(Table_SummaryPI[[#This Row],[kWhSavings]]=\"\",\"\",$AU$9*Table_SummaryPI[[#This Row],[kWhSavings]]),0)","v":""},{"$f":"IFERROR(IF(Table_SummaryPI[[#This Row],[kWhSavings]]=\"\",\"\",$AU$14*Table_SummaryPI[[#This Row],[kWhSavings]]),0)","v":""},{"$f":"IFERROR(IF(Table_SummaryPI[[#This Row],[kWhSavings]]=\"\",\"\",$AU$18*Table_SummaryPI[[#This Row],[kWhSavings]]),0)","v":""},{"$f":"IFERROR(IF(Table_SummaryPI[[#This Row],[kWhSavings]]=\"\",\"\",$AU$22*Table_SummaryPI[[#This Row],[kWhSavings]]),0)","v":""},{"$f":"IFERROR(IF(MeasureCalc(Table_PI[[#This Row],[Hide:\nFormula Name]],Table_SummaryPI[[#This Row],[Quantity]],Table_PI[[#This Row],[List 1]],Table_PI[[#This Row],[List 2]],Table_PI[[#This Row],[List 3]],Table_PI[[#This Row],[Size]],Table_PI[[#This Row],[Input 1]],Table_PI[[#This Row],[Input 2]],Table_PI[[#This Row],[Input 3]],Table_PI[[#This Row],[Input 4]],'Customer Information'!$AR$12,200,ROW())<>\"No Rebate\",MeasureCalc(Table_PI[[#This Row],[Hide:\nFormula Name]],Table_SummaryPI[[#This Row],[Quantity]],Table_PI[[#This Row],[List 1]],Table_PI[[#This Row],[List 2]],Table_PI[[#This Row],[List 3]],Table_PI[[#This Row],[Size]],Table_PI[[#This Row],[Input 1]],Table_PI[[#This Row],[Input 2]],Table_PI[[#This Row],[Input 3]],Table_PI[[#This Row],[Input 4]],'Customer Information'!$AR$12,200,ROW()),\"\"),\"\")","v":""},{"$f":"IFERROR(IF(MeasureCalc(Table_PI[[#This Row],[Hide:\nFormula Name]],Table_SummaryPI[[#This Row],[Quantity]],Table_PI[[#This Row],[List 1]],Table_PI[[#This Row],[List 2]],Table_PI[[#This Row],[List 3]],Table_PI[[#This Row],[Size]],Table_PI[[#This Row],[Input 1]],Table_PI[[#This Row],[Input 2]],Table_PI[[#This Row],[Input 3]],Table_PI[[#This Row],[Input 4]],'Customer Information'!$AR$12,201,ROW())<>\"No Rebate\",MeasureCalc(Table_PI[[#This Row],[Hide:\nFormula Name]],Table_SummaryPI[[#This Row],[Quantity]],Table_PI[[#This Row],[List 1]],Table_PI[[#This Row],[List 2]],Table_PI[[#This Row],[List 3]],Table_PI[[#This Row],[Size]],Table_PI[[#This Row],[Input 1]],Table_PI[[#This Row],[Input 2]],Table_PI[[#This Row],[Input 3]],Table_PI[[#This Row],[Input 4]],'Customer Information'!$AR$12,201,ROW()),\"\"),\"\")","v":""}]
[{"$f":"Table_PI[[#This Row],[Line No.]]","v":""},{"$f":"IF(Table_SummaryPI[[#This Row],[MeassureCategory]]<>\"\",CONCATENATE(Table_SummaryPI[[#This Row],[MeassureCategory]],  \" - \", Table_SummaryPI[[#This Row],[ProposedMeasureCategory]],  \" - \", TEXT(Table_SummaryPI[[#This Row],[Size]],\"#,##0.00\"),\" \",Table_SummaryPI[[#This Row],[SizeUnit]]),\"\")","v":""},{"$f":"SUBSTITUTE(Table_PI[[#This Row],[Measure]],\"     \",\"\",1)","v":""},{"$f":"IF(Table_PI[[#This Row],[List 1]]<>\"\",Table_PI[[#This Row],[List 1]],\"\")","v":""},{"$f":"IF(Table_PI[[#This Row],[List 2]]<>\"\",Table_PI[[#This Row],[List 2]],\"\")","v":""},{"$f":"IF(Table_PI[[#This Row],[List 3]]<>\"\",Table_PI[[#This Row],[List 3]],\"\")","v":""},{"$f":"IF(Table_PI[[#This Row],[Manufacturer]]=\"\",\"\",Table_PI[[#This Row],[Manufacturer]])","v":""},{"$f":"IF(Table_PI[[#This Row],[Model Number]]=\"\",\"\",Table_PI[[#This Row],[Model Number]])","v":""},{"$f":"IF(Table_PI[[#This Row],[Serial Number(s)]]=\"\",\"\",Table_PI[[#This Row],[Serial Number(s)]])","v":""},null,{"$f":"IF(Table_PI[[#This Row],[Size]]=\"\",\"\",Table_PI[[#This Row],[Size]])","v":""},null,{"$f":"IFERROR(IF(AND(MeasureCalc(Table_PI[[#This Row],[Hide:\nFormula Name]],Table_SummaryPI[[#This Row],[Quantity]],Table_PI[[#This Row],[List 1]],Table_PI[[#This Row],[List 2]],Table_PI[[#This Row],[List 3]],Table_PI[[#This Row],[Size]],Table_PI[[#This Row],[Input 1]],Table_PI[[#This Row],[Input 2]],Table_PI[[#This Row],[Input 3]],Table_PI[[#This Row],[Input 4]],'Customer Information'!$AR$12,100,ROW())<>0,MeasureCalc(Table_PI[[#This Row],[Hide:\nFormula Name]],Table_SummaryPI[[#This Row],[Quantity]],Table_PI[[#This Row],[List 1]],Table_PI[[#This Row],[List 2]],Table_PI[[#This Row],[List 3]],Table_PI[[#This Row],[Size]],Table_PI[[#This Row],[Input 1]],Table_PI[[#This Row],[Input 2]],Table_PI[[#This Row],[Input 3]],Table_PI[[#This Row],[Input 4]],'Customer Information'!$AR$12,100,ROW())<>\"No Rebate\"),MeasureCalc(Table_PI[[#This Row],[Hide:\nFormula Name]],Table_SummaryPI[[#This Row],[Quantity]],Table_PI[[#This Row],[List 1]],Table_PI[[#This Row],[List 2]],Table_PI[[#This Row],[List 3]],Table_PI[[#This Row],[Size]],Table_PI[[#This Row],[Input 1]],Table_PI[[#This Row],[Input 2]],Table_PI[[#This Row],[Input 3]],Table_PI[[#This Row],[Input 4]],'Customer Information'!$AR$12,100,ROW()),\"\"),\"\")","v":""},{"$f":"IF(Table_PI[[#This Row],[Input 1]]<>\"\",Table_PI[[#This Row],[Input 1]],\"\")","v":""},null,{"$f":"IFERROR(IF(AND(MeasureCalc(Table_PI[[#This Row],[Hide:\nFormula Name]],Table_SummaryPI[[#This Row],[Quantity]],Table_PI[[#This Row],[List 1]],Table_PI[[#This Row],[List 2]],Table_PI[[#This Row],[List 3]],Table_PI[[#This Row],[Size]],Table_PI[[#This Row],[Input 1]],Table_PI[[#This Row],[Input 2]],Table_PI[[#This Row],[Input 3]],Table_PI[[#This Row],[Input 4]],'Customer Information'!$AR$12,101,ROW())<>0,MeasureCalc(Table_PI[[#This Row],[Hide:\nFormula Name]],Table_SummaryPI[[#This Row],[Quantity]],Table_PI[[#This Row],[List 1]],Table_PI[[#This Row],[List 2]],Table_PI[[#This Row],[List 3]],Table_PI[[#This Row],[Size]],Table_PI[[#This Row],[Input 1]],Table_PI[[#This Row],[Input 2]],Table_PI[[#This Row],[Input 3]],Table_PI[[#This Row],[Input 4]],'Customer Information'!$AR$12,101,ROW())<>\"No Rebate\"),MeasureCalc(Table_PI[[#This Row],[Hide:\nFormula Name]],Table_SummaryPI[[#This Row],[Quantity]],Table_PI[[#This Row],[List 1]],Table_PI[[#This Row],[List 2]],Table_PI[[#This Row],[List 3]],Table_PI[[#This Row],[Size]],Table_PI[[#This Row],[Input 1]],Table_PI[[#This Row],[Input 2]],Table_PI[[#This Row],[Input 3]],Table_PI[[#This Row],[Input 4]],'Customer Information'!$AR$12,101,ROW()),\"\"),\"\")","v":""},{"$f":"IF(Table_PI[[#This Row],[Input 2]]<>\"\",Table_PI[[#This Row],[Input 2]],\"\")","v":""},null,{"$f":"IFERROR(IF(AND(MeasureCalc(Table_PI[[#This Row],[Hide:\nFormula Name]],Table_SummaryPI[[#This Row],[Quantity]],Table_PI[[#This Row],[List 1]],Table_PI[[#This Row],[List 2]],Table_PI[[#This Row],[List 3]],Table_PI[[#This Row],[Size]],Table_PI[[#This Row],[Input 1]],Table_PI[[#This Row],[Input 2]],Table_PI[[#This Row],[Input 3]],Table_PI[[#This Row],[Input 4]],'Customer Information'!$AR$12,102,ROW())<>0,MeasureCalc(Table_PI[[#This Row],[Hide:\nFormula Name]],Table_SummaryPI[[#This Row],[Quantity]],Table_PI[[#This Row],[List 1]],Table_PI[[#This Row],[List 2]],Table_PI[[#This Row],[List 3]],Table_PI[[#This Row],[Size]],Table_PI[[#This Row],[Input 1]],Table_PI[[#This Row],[Input 2]],Table_PI[[#This Row],[Input 3]],Table_PI[[#This Row],[Input 4]],'Customer Information'!$AR$12,102,ROW())<>\"No Rebate\"),MeasureCalc(Table_PI[[#This Row],[Hide:\nFormula Name]],Table_SummaryPI[[#This Row],[Quantity]],Table_PI[[#This Row],[List 1]],Table_PI[[#This Row],[List 2]],Table_PI[[#This Row],[List 3]],Table_PI[[#This Row],[Size]],Table_PI[[#This Row],[Input 1]],Table_PI[[#This Row],[Input 2]],Table_PI[[#This Row],[Input 3]],Table_PI[[#This Row],[Input 4]],'Customer Information'!$AR$12,102,ROW()),\"\"),\"\")","v":""},{"$f":"IF(Table_PI[[#This Row],[Input 3]]<>\"\",Table_PI[[#This Row],[Input 3]],\"\")","v":""},null,{"$f":"IFERROR(IF(AND(MeasureCalc(Table_PI[[#This Row],[Hide:\nFormula Name]],Table_SummaryPI[[#This Row],[Quantity]],Table_PI[[#This Row],[List 1]],Table_PI[[#This Row],[List 2]],Table_PI[[#This Row],[List 3]],Table_PI[[#This Row],[Size]],Table_PI[[#This Row],[Input 1]],Table_PI[[#This Row],[Input 2]],Table_PI[[#This Row],[Input 3]],Table_PI[[#This Row],[Input 4]],'Customer Information'!$AR$12,103,ROW())<>0,MeasureCalc(Table_PI[[#This Row],[Hide:\nFormula Name]],Table_SummaryPI[[#This Row],[Quantity]],Table_PI[[#This Row],[List 1]],Table_PI[[#This Row],[List 2]],Table_PI[[#This Row],[List 3]],Table_PI[[#This Row],[Size]],Table_PI[[#This Row],[Input 1]],Table_PI[[#This Row],[Input 2]],Table_PI[[#This Row],[Input 3]],Table_PI[[#This Row],[Input 4]],'Customer Information'!$AR$12,103,ROW())<>\"No Rebate\"),MeasureCalc(Table_PI[[#This Row],[Hide:\nFormula Name]],Table_SummaryPI[[#This Row],[Quantity]],Table_PI[[#This Row],[List 1]],Table_PI[[#This Row],[List 2]],Table_PI[[#This Row],[List 3]],Table_PI[[#This Row],[Size]],Table_PI[[#This Row],[Input 1]],Table_PI[[#This Row],[Input 2]],Table_PI[[#This Row],[Input 3]],Table_PI[[#This Row],[Input 4]],'Customer Information'!$AR$12,103,ROW()),\"\"),\"\")","v":""},{"$f":"IF(Table_PI[[#This Row],[Input 4]]<>\"\",Table_PI[[#This Row],[Input 4]],\"\")","v":""},{"$f":"IF(Table_PI[[#This Row],[Quantity]]=\"\",\"\",Table_PI[[#This Row],[Quantity]])","v":""},{"$f":"IF(Table_PI[[#This Row],[Notes]]=\"\",\"\",Table_PI[[#This Row],[Notes]])","v":""},{"$f":"IF(OR(Table_PI[[#This Row],[Hide:\nBaseline kWh]]=\"\",Table_PI[[#This Row],[Hide:\nBaseline kWh]]=0),\"\",Table_PI[[#This Row],[Hide:\nBaseline kWh]])","v":""},{"$f":"IF(OR(Table_PI[[#This Row],[Hide:\nBaseline kW]]=\"\",Table_PI[[#This Row],[Hide:\nBaseline kW]]=0),\"\",Table_PI[[#This Row],[Hide:\nBaseline kW]])","v":""},{"$f":"IF(OR(Table_PI[[#This Row],[Hide:\nProposed kWh]]=\"\",Table_PI[[#This Row],[Hide:\nProposed kWh]]=0),\"\",Table_PI[[#This Row],[Hide:\nProposed kWh]])","v":""},{"$f":"IF(OR(Table_PI[[#This Row],[Hide:\nProposed kW]]=\"\",Table_PI[[#This Row],[Hide:\nProposed kW]]=0),\"\",Table_PI[[#This Row],[Hide:\nProposed kW]])","v":""},{"$f":"IF(OR(Table_PI[[#This Row],[Rebate]]=\"\",Table_PI[[#This Row],[Rebate]]=0),\"\",Table_PI[[#This Row],[Rebate]])","v":""},{"$f":"IF(OR(Table_PI[[#This Row],[Hide:\nIncremental Cost]]=\"\",Table_PI[[#This Row],[Hide:\nIncremental Cost]]=0),\"\",Table_PI[[#This Row],[Hide:\nIncremental Cost]])","v":""},{"$f":"IFERROR(IF(Table_SummaryPI[[#This Row],[kWhSavings]]=\"\",\"\",ROUND(Table_SummaryPI[[#This Row],[kWhSavings]]/$AG$401*'Customer Information'!$BC$17,2)),0)","v":""},{"$f":"IF(OR(Table_PI[[#This Row],[Annual kWh]]=\"\",Table_PI[[#This Row],[Annual kWh]]=0),\"\",Table_PI[[#This Row],[Annual kWh]])","v":""},{"$f":"IF(OR(Table_PI[[#This Row],[Peak kW]]=\"\",Table_PI[[#This Row],[Peak kW]]=0),\"\",Table_PI[[#This Row],[Peak kW]])","v":""},{"$f":"IFERROR(IF(Table_SummaryPI[[#This Row],[kWhSavings]]=\"\",\"\",$AU$9*Table_SummaryPI[[#This Row],[kWhSavings]]),0)","v":""},{"$f":"IFERROR(IF(Table_SummaryPI[[#This Row],[kWhSavings]]=\"\",\"\",$AU$14*Table_SummaryPI[[#This Row],[kWhSavings]]),0)","v":""},{"$f":"IFERROR(IF(Table_SummaryPI[[#This Row],[kWhSavings]]=\"\",\"\",$AU$18*Table_SummaryPI[[#This Row],[kWhSavings]]),0)","v":""},{"$f":"IFERROR(IF(Table_SummaryPI[[#This Row],[kWhSavings]]=\"\",\"\",$AU$22*Table_SummaryPI[[#This Row],[kWhSavings]]),0)","v":""},{"$f":"IFERROR(IF(MeasureCalc(Table_PI[[#This Row],[Hide:\nFormula Name]],Table_SummaryPI[[#This Row],[Quantity]],Table_PI[[#This Row],[List 1]],Table_PI[[#This Row],[List 2]],Table_PI[[#This Row],[List 3]],Table_PI[[#This Row],[Size]],Table_PI[[#This Row],[Input 1]],Table_PI[[#This Row],[Input 2]],Table_PI[[#This Row],[Input 3]],Table_PI[[#This Row],[Input 4]],'Customer Information'!$AR$12,200,ROW())<>\"No Rebate\",MeasureCalc(Table_PI[[#This Row],[Hide:\nFormula Name]],Table_SummaryPI[[#This Row],[Quantity]],Table_PI[[#This Row],[List 1]],Table_PI[[#This Row],[List 2]],Table_PI[[#This Row],[List 3]],Table_PI[[#This Row],[Size]],Table_PI[[#This Row],[Input 1]],Table_PI[[#This Row],[Input 2]],Table_PI[[#This Row],[Input 3]],Table_PI[[#This Row],[Input 4]],'Customer Information'!$AR$12,200,ROW()),\"\"),\"\")","v":""},{"$f":"IFERROR(IF(MeasureCalc(Table_PI[[#This Row],[Hide:\nFormula Name]],Table_SummaryPI[[#This Row],[Quantity]],Table_PI[[#This Row],[List 1]],Table_PI[[#This Row],[List 2]],Table_PI[[#This Row],[List 3]],Table_PI[[#This Row],[Size]],Table_PI[[#This Row],[Input 1]],Table_PI[[#This Row],[Input 2]],Table_PI[[#This Row],[Input 3]],Table_PI[[#This Row],[Input 4]],'Customer Information'!$AR$12,201,ROW())<>\"No Rebate\",MeasureCalc(Table_PI[[#This Row],[Hide:\nFormula Name]],Table_SummaryPI[[#This Row],[Quantity]],Table_PI[[#This Row],[List 1]],Table_PI[[#This Row],[List 2]],Table_PI[[#This Row],[List 3]],Table_PI[[#This Row],[Size]],Table_PI[[#This Row],[Input 1]],Table_PI[[#This Row],[Input 2]],Table_PI[[#This Row],[Input 3]],Table_PI[[#This Row],[Input 4]],'Customer Information'!$AR$12,201,ROW()),\"\"),\"\")","v":""}]
[{"$f":"Table_PI[[#This Row],[Line No.]]","v":""},{"$f":"IF(Table_SummaryPI[[#This Row],[MeassureCategory]]<>\"\",CONCATENATE(Table_SummaryPI[[#This Row],[MeassureCategory]],  \" - \", Table_SummaryPI[[#This Row],[ProposedMeasureCategory]],  \" - \", TEXT(Table_SummaryPI[[#This Row],[Size]],\"#,##0.00\"),\" \",Table_SummaryPI[[#This Row],[SizeUnit]]),\"\")","v":""},{"$f":"SUBSTITUTE(Table_PI[[#This Row],[Measure]],\"     \",\"\",1)","v":""},{"$f":"IF(Table_PI[[#This Row],[List 1]]<>\"\",Table_PI[[#This Row],[List 1]],\"\")","v":""},{"$f":"IF(Table_PI[[#This Row],[List 2]]<>\"\",Table_PI[[#This Row],[List 2]],\"\")","v":""},{"$f":"IF(Table_PI[[#This Row],[List 3]]<>\"\",Table_PI[[#This Row],[List 3]],\"\")","v":""},{"$f":"IF(Table_PI[[#This Row],[Manufacturer]]=\"\",\"\",Table_PI[[#This Row],[Manufacturer]])","v":""},{"$f":"IF(Table_PI[[#This Row],[Model Number]]=\"\",\"\",Table_PI[[#This Row],[Model Number]])","v":""},{"$f":"IF(Table_PI[[#This Row],[Serial Number(s)]]=\"\",\"\",Table_PI[[#This Row],[Serial Number(s)]])","v":""},null,{"$f":"IF(Table_PI[[#This Row],[Size]]=\"\",\"\",Table_PI[[#This Row],[Size]])","v":""},null,{"$f":"IFERROR(IF(AND(MeasureCalc(Table_PI[[#This Row],[Hide:\nFormula Name]],Table_SummaryPI[[#This Row],[Quantity]],Table_PI[[#This Row],[List 1]],Table_PI[[#This Row],[List 2]],Table_PI[[#This Row],[List 3]],Table_PI[[#This Row],[Size]],Table_PI[[#This Row],[Input 1]],Table_PI[[#This Row],[Input 2]],Table_PI[[#This Row],[Input 3]],Table_PI[[#This Row],[Input 4]],'Customer Information'!$AR$12,100,ROW())<>0,MeasureCalc(Table_PI[[#This Row],[Hide:\nFormula Name]],Table_SummaryPI[[#This Row],[Quantity]],Table_PI[[#This Row],[List 1]],Table_PI[[#This Row],[List 2]],Table_PI[[#This Row],[List 3]],Table_PI[[#This Row],[Size]],Table_PI[[#This Row],[Input 1]],Table_PI[[#This Row],[Input 2]],Table_PI[[#This Row],[Input 3]],Table_PI[[#This Row],[Input 4]],'Customer Information'!$AR$12,100,ROW())<>\"No Rebate\"),MeasureCalc(Table_PI[[#This Row],[Hide:\nFormula Name]],Table_SummaryPI[[#This Row],[Quantity]],Table_PI[[#This Row],[List 1]],Table_PI[[#This Row],[List 2]],Table_PI[[#This Row],[List 3]],Table_PI[[#This Row],[Size]],Table_PI[[#This Row],[Input 1]],Table_PI[[#This Row],[Input 2]],Table_PI[[#This Row],[Input 3]],Table_PI[[#This Row],[Input 4]],'Customer Information'!$AR$12,100,ROW()),\"\"),\"\")","v":""},{"$f":"IF(Table_PI[[#This Row],[Input 1]]<>\"\",Table_PI[[#This Row],[Input 1]],\"\")","v":""},null,{"$f":"IFERROR(IF(AND(MeasureCalc(Table_PI[[#This Row],[Hide:\nFormula Name]],Table_SummaryPI[[#This Row],[Quantity]],Table_PI[[#This Row],[List 1]],Table_PI[[#This Row],[List 2]],Table_PI[[#This Row],[List 3]],Table_PI[[#This Row],[Size]],Table_PI[[#This Row],[Input 1]],Table_PI[[#This Row],[Input 2]],Table_PI[[#This Row],[Input 3]],Table_PI[[#This Row],[Input 4]],'Customer Information'!$AR$12,101,ROW())<>0,MeasureCalc(Table_PI[[#This Row],[Hide:\nFormula Name]],Table_SummaryPI[[#This Row],[Quantity]],Table_PI[[#This Row],[List 1]],Table_PI[[#This Row],[List 2]],Table_PI[[#This Row],[List 3]],Table_PI[[#This Row],[Size]],Table_PI[[#This Row],[Input 1]],Table_PI[[#This Row],[Input 2]],Table_PI[[#This Row],[Input 3]],Table_PI[[#This Row],[Input 4]],'Customer Information'!$AR$12,101,ROW())<>\"No Rebate\"),MeasureCalc(Table_PI[[#This Row],[Hide:\nFormula Name]],Table_SummaryPI[[#This Row],[Quantity]],Table_PI[[#This Row],[List 1]],Table_PI[[#This Row],[List 2]],Table_PI[[#This Row],[List 3]],Table_PI[[#This Row],[Size]],Table_PI[[#This Row],[Input 1]],Table_PI[[#This Row],[Input 2]],Table_PI[[#This Row],[Input 3]],Table_PI[[#This Row],[Input 4]],'Customer Information'!$AR$12,101,ROW()),\"\"),\"\")","v":""},{"$f":"IF(Table_PI[[#This Row],[Input 2]]<>\"\",Table_PI[[#This Row],[Input 2]],\"\")","v":""},null,{"$f":"IFERROR(IF(AND(MeasureCalc(Table_PI[[#This Row],[Hide:\nFormula Name]],Table_SummaryPI[[#This Row],[Quantity]],Table_PI[[#This Row],[List 1]],Table_PI[[#This Row],[List 2]],Table_PI[[#This Row],[List 3]],Table_PI[[#This Row],[Size]],Table_PI[[#This Row],[Input 1]],Table_PI[[#This Row],[Input 2]],Table_PI[[#This Row],[Input 3]],Table_PI[[#This Row],[Input 4]],'Customer Information'!$AR$12,102,ROW())<>0,MeasureCalc(Table_PI[[#This Row],[Hide:\nFormula Name]],Table_SummaryPI[[#This Row],[Quantity]],Table_PI[[#This Row],[List 1]],Table_PI[[#This Row],[List 2]],Table_PI[[#This Row],[List 3]],Table_PI[[#This Row],[Size]],Table_PI[[#This Row],[Input 1]],Table_PI[[#This Row],[Input 2]],Table_PI[[#This Row],[Input 3]],Table_PI[[#This Row],[Input 4]],'Customer Information'!$AR$12,102,ROW())<>\"No Rebate\"),MeasureCalc(Table_PI[[#This Row],[Hide:\nFormula Name]],Table_SummaryPI[[#This Row],[Quantity]],Table_PI[[#This Row],[List 1]],Table_PI[[#This Row],[List 2]],Table_PI[[#This Row],[List 3]],Table_PI[[#This Row],[Size]],Table_PI[[#This Row],[Input 1]],Table_PI[[#This Row],[Input 2]],Table_PI[[#This Row],[Input 3]],Table_PI[[#This Row],[Input 4]],'Customer Information'!$AR$12,102,ROW()),\"\"),\"\")","v":""},{"$f":"IF(Table_PI[[#This Row],[Input 3]]<>\"\",Table_PI[[#This Row],[Input 3]],\"\")","v":""},null,{"$f":"IFERROR(IF(AND(MeasureCalc(Table_PI[[#This Row],[Hide:\nFormula Name]],Table_SummaryPI[[#This Row],[Quantity]],Table_PI[[#This Row],[List 1]],Table_PI[[#This Row],[List 2]],Table_PI[[#This Row],[List 3]],Table_PI[[#This Row],[Size]],Table_PI[[#This Row],[Input 1]],Table_PI[[#This Row],[Input 2]],Table_PI[[#This Row],[Input 3]],Table_PI[[#This Row],[Input 4]],'Customer Information'!$AR$12,103,ROW())<>0,MeasureCalc(Table_PI[[#This Row],[Hide:\nFormula Name]],Table_SummaryPI[[#This Row],[Quantity]],Table_PI[[#This Row],[List 1]],Table_PI[[#This Row],[List 2]],Table_PI[[#This Row],[List 3]],Table_PI[[#This Row],[Size]],Table_PI[[#This Row],[Input 1]],Table_PI[[#This Row],[Input 2]],Table_PI[[#This Row],[Input 3]],Table_PI[[#This Row],[Input 4]],'Customer Information'!$AR$12,103,ROW())<>\"No Rebate\"),MeasureCalc(Table_PI[[#This Row],[Hide:\nFormula Name]],Table_SummaryPI[[#This Row],[Quantity]],Table_PI[[#This Row],[List 1]],Table_PI[[#This Row],[List 2]],Table_PI[[#This Row],[List 3]],Table_PI[[#This Row],[Size]],Table_PI[[#This Row],[Input 1]],Table_PI[[#This Row],[Input 2]],Table_PI[[#This Row],[Input 3]],Table_PI[[#This Row],[Input 4]],'Customer Information'!$AR$12,103,ROW()),\"\"),\"\")","v":""},{"$f":"IF(Table_PI[[#This Row],[Input 4]]<>\"\",Table_PI[[#This Row],[Input 4]],\"\")","v":""},{"$f":"IF(Table_PI[[#This Row],[Quantity]]=\"\",\"\",Table_PI[[#This Row],[Quantity]])","v":""},{"$f":"IF(Table_PI[[#This Row],[Notes]]=\"\",\"\",Table_PI[[#This Row],[Notes]])","v":""},{"$f":"IF(OR(Table_PI[[#This Row],[Hide:\nBaseline kWh]]=\"\",Table_PI[[#This Row],[Hide:\nBaseline kWh]]=0),\"\",Table_PI[[#This Row],[Hide:\nBaseline kWh]])","v":""},{"$f":"IF(OR(Table_PI[[#This Row],[Hide:\nBaseline kW]]=\"\",Table_PI[[#This Row],[Hide:\nBaseline kW]]=0),\"\",Table_PI[[#This Row],[Hide:\nBaseline kW]])","v":""},{"$f":"IF(OR(Table_PI[[#This Row],[Hide:\nProposed kWh]]=\"\",Table_PI[[#This Row],[Hide:\nProposed kWh]]=0),\"\",Table_PI[[#This Row],[Hide:\nProposed kWh]])","v":""},{"$f":"IF(OR(Table_PI[[#This Row],[Hide:\nProposed kW]]=\"\",Table_PI[[#This Row],[Hide:\nProposed kW]]=0),\"\",Table_PI[[#This Row],[Hide:\nProposed kW]])","v":""},{"$f":"IF(OR(Table_PI[[#This Row],[Rebate]]=\"\",Table_PI[[#This Row],[Rebate]]=0),\"\",Table_PI[[#This Row],[Rebate]])","v":""},{"$f":"IF(OR(Table_PI[[#This Row],[Hide:\nIncremental Cost]]=\"\",Table_PI[[#This Row],[Hide:\nIncremental Cost]]=0),\"\",Table_PI[[#This Row],[Hide:\nIncremental Cost]])","v":""},{"$f":"IFERROR(IF(Table_SummaryPI[[#This Row],[kWhSavings]]=\"\",\"\",ROUND(Table_SummaryPI[[#This Row],[kWhSavings]]/$AG$401*'Customer Information'!$BC$17,2)),0)","v":""},{"$f":"IF(OR(Table_PI[[#This Row],[Annual kWh]]=\"\",Table_PI[[#This Row],[Annual kWh]]=0),\"\",Table_PI[[#This Row],[Annual kWh]])","v":""},{"$f":"IF(OR(Table_PI[[#This Row],[Peak kW]]=\"\",Table_PI[[#This Row],[Peak kW]]=0),\"\",Table_PI[[#This Row],[Peak kW]])","v":""},{"$f":"IFERROR(IF(Table_SummaryPI[[#This Row],[kWhSavings]]=\"\",\"\",$AU$9*Table_SummaryPI[[#This Row],[kWhSavings]]),0)","v":""},{"$f":"IFERROR(IF(Table_SummaryPI[[#This Row],[kWhSavings]]=\"\",\"\",$AU$14*Table_SummaryPI[[#This Row],[kWhSavings]]),0)","v":""},{"$f":"IFERROR(IF(Table_SummaryPI[[#This Row],[kWhSavings]]=\"\",\"\",$AU$18*Table_SummaryPI[[#This Row],[kWhSavings]]),0)","v":""},{"$f":"IFERROR(IF(Table_SummaryPI[[#This Row],[kWhSavings]]=\"\",\"\",$AU$22*Table_SummaryPI[[#This Row],[kWhSavings]]),0)","v":""},{"$f":"IFERROR(IF(MeasureCalc(Table_PI[[#This Row],[Hide:\nFormula Name]],Table_SummaryPI[[#This Row],[Quantity]],Table_PI[[#This Row],[List 1]],Table_PI[[#This Row],[List 2]],Table_PI[[#This Row],[List 3]],Table_PI[[#This Row],[Size]],Table_PI[[#This Row],[Input 1]],Table_PI[[#This Row],[Input 2]],Table_PI[[#This Row],[Input 3]],Table_PI[[#This Row],[Input 4]],'Customer Information'!$AR$12,200,ROW())<>\"No Rebate\",MeasureCalc(Table_PI[[#This Row],[Hide:\nFormula Name]],Table_SummaryPI[[#This Row],[Quantity]],Table_PI[[#This Row],[List 1]],Table_PI[[#This Row],[List 2]],Table_PI[[#This Row],[List 3]],Table_PI[[#This Row],[Size]],Table_PI[[#This Row],[Input 1]],Table_PI[[#This Row],[Input 2]],Table_PI[[#This Row],[Input 3]],Table_PI[[#This Row],[Input 4]],'Customer Information'!$AR$12,200,ROW()),\"\"),\"\")","v":""},{"$f":"IFERROR(IF(MeasureCalc(Table_PI[[#This Row],[Hide:\nFormula Name]],Table_SummaryPI[[#This Row],[Quantity]],Table_PI[[#This Row],[List 1]],Table_PI[[#This Row],[List 2]],Table_PI[[#This Row],[List 3]],Table_PI[[#This Row],[Size]],Table_PI[[#This Row],[Input 1]],Table_PI[[#This Row],[Input 2]],Table_PI[[#This Row],[Input 3]],Table_PI[[#This Row],[Input 4]],'Customer Information'!$AR$12,201,ROW())<>\"No Rebate\",MeasureCalc(Table_PI[[#This Row],[Hide:\nFormula Name]],Table_SummaryPI[[#This Row],[Quantity]],Table_PI[[#This Row],[List 1]],Table_PI[[#This Row],[List 2]],Table_PI[[#This Row],[List 3]],Table_PI[[#This Row],[Size]],Table_PI[[#This Row],[Input 1]],Table_PI[[#This Row],[Input 2]],Table_PI[[#This Row],[Input 3]],Table_PI[[#This Row],[Input 4]],'Customer Information'!$AR$12,201,ROW()),\"\"),\"\")","v":""}]
[{"$f":"Table_PI[[#This Row],[Line No.]]","v":""},{"$f":"IF(Table_SummaryPI[[#This Row],[MeassureCategory]]<>\"\",CONCATENATE(Table_SummaryPI[[#This Row],[MeassureCategory]],  \" - \", Table_SummaryPI[[#This Row],[ProposedMeasureCategory]],  \" - \", TEXT(Table_SummaryPI[[#This Row],[Size]],\"#,##0.00\"),\" \",Table_SummaryPI[[#This Row],[SizeUnit]]),\"\")","v":""},{"$f":"SUBSTITUTE(Table_PI[[#This Row],[Measure]],\"     \",\"\",1)","v":""},{"$f":"IF(Table_PI[[#This Row],[List 1]]<>\"\",Table_PI[[#This Row],[List 1]],\"\")","v":""},{"$f":"IF(Table_PI[[#This Row],[List 2]]<>\"\",Table_PI[[#This Row],[List 2]],\"\")","v":""},{"$f":"IF(Table_PI[[#This Row],[List 3]]<>\"\",Table_PI[[#This Row],[List 3]],\"\")","v":""},{"$f":"IF(Table_PI[[#This Row],[Manufacturer]]=\"\",\"\",Table_PI[[#This Row],[Manufacturer]])","v":""},{"$f":"IF(Table_PI[[#This Row],[Model Number]]=\"\",\"\",Table_PI[[#This Row],[Model Number]])","v":""},{"$f":"IF(Table_PI[[#This Row],[Serial Number(s)]]=\"\",\"\",Table_PI[[#This Row],[Serial Number(s)]])","v":""},null,{"$f":"IF(Table_PI[[#This Row],[Size]]=\"\",\"\",Table_PI[[#This Row],[Size]])","v":""},null,{"$f":"IFERROR(IF(AND(MeasureCalc(Table_PI[[#This Row],[Hide:\nFormula Name]],Table_SummaryPI[[#This Row],[Quantity]],Table_PI[[#This Row],[List 1]],Table_PI[[#This Row],[List 2]],Table_PI[[#This Row],[List 3]],Table_PI[[#This Row],[Size]],Table_PI[[#This Row],[Input 1]],Table_PI[[#This Row],[Input 2]],Table_PI[[#This Row],[Input 3]],Table_PI[[#This Row],[Input 4]],'Customer Information'!$AR$12,100,ROW())<>0,MeasureCalc(Table_PI[[#This Row],[Hide:\nFormula Name]],Table_SummaryPI[[#This Row],[Quantity]],Table_PI[[#This Row],[List 1]],Table_PI[[#This Row],[List 2]],Table_PI[[#This Row],[List 3]],Table_PI[[#This Row],[Size]],Table_PI[[#This Row],[Input 1]],Table_PI[[#This Row],[Input 2]],Table_PI[[#This Row],[Input 3]],Table_PI[[#This Row],[Input 4]],'Customer Information'!$AR$12,100,ROW())<>\"No Rebate\"),MeasureCalc(Table_PI[[#This Row],[Hide:\nFormula Name]],Table_SummaryPI[[#This Row],[Quantity]],Table_PI[[#This Row],[List 1]],Table_PI[[#This Row],[List 2]],Table_PI[[#This Row],[List 3]],Table_PI[[#This Row],[Size]],Table_PI[[#This Row],[Input 1]],Table_PI[[#This Row],[Input 2]],Table_PI[[#This Row],[Input 3]],Table_PI[[#This Row],[Input 4]],'Customer Information'!$AR$12,100,ROW()),\"\"),\"\")","v":""},{"$f":"IF(Table_PI[[#This Row],[Input 1]]<>\"\",Table_PI[[#This Row],[Input 1]],\"\")","v":""},null,{"$f":"IFERROR(IF(AND(MeasureCalc(Table_PI[[#This Row],[Hide:\nFormula Name]],Table_SummaryPI[[#This Row],[Quantity]],Table_PI[[#This Row],[List 1]],Table_PI[[#This Row],[List 2]],Table_PI[[#This Row],[List 3]],Table_PI[[#This Row],[Size]],Table_PI[[#This Row],[Input 1]],Table_PI[[#This Row],[Input 2]],Table_PI[[#This Row],[Input 3]],Table_PI[[#This Row],[Input 4]],'Customer Information'!$AR$12,101,ROW())<>0,MeasureCalc(Table_PI[[#This Row],[Hide:\nFormula Name]],Table_SummaryPI[[#This Row],[Quantity]],Table_PI[[#This Row],[List 1]],Table_PI[[#This Row],[List 2]],Table_PI[[#This Row],[List 3]],Table_PI[[#This Row],[Size]],Table_PI[[#This Row],[Input 1]],Table_PI[[#This Row],[Input 2]],Table_PI[[#This Row],[Input 3]],Table_PI[[#This Row],[Input 4]],'Customer Information'!$AR$12,101,ROW())<>\"No Rebate\"),MeasureCalc(Table_PI[[#This Row],[Hide:\nFormula Name]],Table_SummaryPI[[#This Row],[Quantity]],Table_PI[[#This Row],[List 1]],Table_PI[[#This Row],[List 2]],Table_PI[[#This Row],[List 3]],Table_PI[[#This Row],[Size]],Table_PI[[#This Row],[Input 1]],Table_PI[[#This Row],[Input 2]],Table_PI[[#This Row],[Input 3]],Table_PI[[#This Row],[Input 4]],'Customer Information'!$AR$12,101,ROW()),\"\"),\"\")","v":""},{"$f":"IF(Table_PI[[#This Row],[Input 2]]<>\"\",Table_PI[[#This Row],[Input 2]],\"\")","v":""},null,{"$f":"IFERROR(IF(AND(MeasureCalc(Table_PI[[#This Row],[Hide:\nFormula Name]],Table_SummaryPI[[#This Row],[Quantity]],Table_PI[[#This Row],[List 1]],Table_PI[[#This Row],[List 2]],Table_PI[[#This Row],[List 3]],Table_PI[[#This Row],[Size]],Table_PI[[#This Row],[Input 1]],Table_PI[[#This Row],[Input 2]],Table_PI[[#This Row],[Input 3]],Table_PI[[#This Row],[Input 4]],'Customer Information'!$AR$12,102,ROW())<>0,MeasureCalc(Table_PI[[#This Row],[Hide:\nFormula Name]],Table_SummaryPI[[#This Row],[Quantity]],Table_PI[[#This Row],[List 1]],Table_PI[[#This Row],[List 2]],Table_PI[[#This Row],[List 3]],Table_PI[[#This Row],[Size]],Table_PI[[#This Row],[Input 1]],Table_PI[[#This Row],[Input 2]],Table_PI[[#This Row],[Input 3]],Table_PI[[#This Row],[Input 4]],'Customer Information'!$AR$12,102,ROW())<>\"No Rebate\"),MeasureCalc(Table_PI[[#This Row],[Hide:\nFormula Name]],Table_SummaryPI[[#This Row],[Quantity]],Table_PI[[#This Row],[List 1]],Table_PI[[#This Row],[List 2]],Table_PI[[#This Row],[List 3]],Table_PI[[#This Row],[Size]],Table_PI[[#This Row],[Input 1]],Table_PI[[#This Row],[Input 2]],Table_PI[[#This Row],[Input 3]],Table_PI[[#This Row],[Input 4]],'Customer Information'!$AR$12,102,ROW()),\"\"),\"\")","v":""},{"$f":"IF(Table_PI[[#This Row],[Input 3]]<>\"\",Table_PI[[#This Row],[Input 3]],\"\")","v":""},null,{"$f":"IFERROR(IF(AND(MeasureCalc(Table_PI[[#This Row],[Hide:\nFormula Name]],Table_SummaryPI[[#This Row],[Quantity]],Table_PI[[#This Row],[List 1]],Table_PI[[#This Row],[List 2]],Table_PI[[#This Row],[List 3]],Table_PI[[#This Row],[Size]],Table_PI[[#This Row],[Input 1]],Table_PI[[#This Row],[Input 2]],Table_PI[[#This Row],[Input 3]],Table_PI[[#This Row],[Input 4]],'Customer Information'!$AR$12,103,ROW())<>0,MeasureCalc(Table_PI[[#This Row],[Hide:\nFormula Name]],Table_SummaryPI[[#This Row],[Quantity]],Table_PI[[#This Row],[List 1]],Table_PI[[#This Row],[List 2]],Table_PI[[#This Row],[List 3]],Table_PI[[#This Row],[Size]],Table_PI[[#This Row],[Input 1]],Table_PI[[#This Row],[Input 2]],Table_PI[[#This Row],[Input 3]],Table_PI[[#This Row],[Input 4]],'Customer Information'!$AR$12,103,ROW())<>\"No Rebate\"),MeasureCalc(Table_PI[[#This Row],[Hide:\nFormula Name]],Table_SummaryPI[[#This Row],[Quantity]],Table_PI[[#This Row],[List 1]],Table_PI[[#This Row],[List 2]],Table_PI[[#This Row],[List 3]],Table_PI[[#This Row],[Size]],Table_PI[[#This Row],[Input 1]],Table_PI[[#This Row],[Input 2]],Table_PI[[#This Row],[Input 3]],Table_PI[[#This Row],[Input 4]],'Customer Information'!$AR$12,103,ROW()),\"\"),\"\")","v":""},{"$f":"IF(Table_PI[[#This Row],[Input 4]]<>\"\",Table_PI[[#This Row],[Input 4]],\"\")","v":""},{"$f":"IF(Table_PI[[#This Row],[Quantity]]=\"\",\"\",Table_PI[[#This Row],[Quantity]])","v":""},{"$f":"IF(Table_PI[[#This Row],[Notes]]=\"\",\"\",Table_PI[[#This Row],[Notes]])","v":""},{"$f":"IF(OR(Table_PI[[#This Row],[Hide:\nBaseline kWh]]=\"\",Table_PI[[#This Row],[Hide:\nBaseline kWh]]=0),\"\",Table_PI[[#This Row],[Hide:\nBaseline kWh]])","v":""},{"$f":"IF(OR(Table_PI[[#This Row],[Hide:\nBaseline kW]]=\"\",Table_PI[[#This Row],[Hide:\nBaseline kW]]=0),\"\",Table_PI[[#This Row],[Hide:\nBaseline kW]])","v":""},{"$f":"IF(OR(Table_PI[[#This Row],[Hide:\nProposed kWh]]=\"\",Table_PI[[#This Row],[Hide:\nProposed kWh]]=0),\"\",Table_PI[[#This Row],[Hide:\nProposed kWh]])","v":""},{"$f":"IF(OR(Table_PI[[#This Row],[Hide:\nProposed kW]]=\"\",Table_PI[[#This Row],[Hide:\nProposed kW]]=0),\"\",Table_PI[[#This Row],[Hide:\nProposed kW]])","v":""},{"$f":"IF(OR(Table_PI[[#This Row],[Rebate]]=\"\",Table_PI[[#This Row],[Rebate]]=0),\"\",Table_PI[[#This Row],[Rebate]])","v":""},{"$f":"IF(OR(Table_PI[[#This Row],[Hide:\nIncremental Cost]]=\"\",Table_PI[[#This Row],[Hide:\nIncremental Cost]]=0),\"\",Table_PI[[#This Row],[Hide:\nIncremental Cost]])","v":""},{"$f":"IFERROR(IF(Table_SummaryPI[[#This Row],[kWhSavings]]=\"\",\"\",ROUND(Table_SummaryPI[[#This Row],[kWhSavings]]/$AG$401*'Customer Information'!$BC$17,2)),0)","v":""},{"$f":"IF(OR(Table_PI[[#This Row],[Annual kWh]]=\"\",Table_PI[[#This Row],[Annual kWh]]=0),\"\",Table_PI[[#This Row],[Annual kWh]])","v":""},{"$f":"IF(OR(Table_PI[[#This Row],[Peak kW]]=\"\",Table_PI[[#This Row],[Peak kW]]=0),\"\",Table_PI[[#This Row],[Peak kW]])","v":""},{"$f":"IFERROR(IF(Table_SummaryPI[[#This Row],[kWhSavings]]=\"\",\"\",$AU$9*Table_SummaryPI[[#This Row],[kWhSavings]]),0)","v":""},{"$f":"IFERROR(IF(Table_SummaryPI[[#This Row],[kWhSavings]]=\"\",\"\",$AU$14*Table_SummaryPI[[#This Row],[kWhSavings]]),0)","v":""},{"$f":"IFERROR(IF(Table_SummaryPI[[#This Row],[kWhSavings]]=\"\",\"\",$AU$18*Table_SummaryPI[[#This Row],[kWhSavings]]),0)","v":""},{"$f":"IFERROR(IF(Table_SummaryPI[[#This Row],[kWhSavings]]=\"\",\"\",$AU$22*Table_SummaryPI[[#This Row],[kWhSavings]]),0)","v":""},{"$f":"IFERROR(IF(MeasureCalc(Table_PI[[#This Row],[Hide:\nFormula Name]],Table_SummaryPI[[#This Row],[Quantity]],Table_PI[[#This Row],[List 1]],Table_PI[[#This Row],[List 2]],Table_PI[[#This Row],[List 3]],Table_PI[[#This Row],[Size]],Table_PI[[#This Row],[Input 1]],Table_PI[[#This Row],[Input 2]],Table_PI[[#This Row],[Input 3]],Table_PI[[#This Row],[Input 4]],'Customer Information'!$AR$12,200,ROW())<>\"No Rebate\",MeasureCalc(Table_PI[[#This Row],[Hide:\nFormula Name]],Table_SummaryPI[[#This Row],[Quantity]],Table_PI[[#This Row],[List 1]],Table_PI[[#This Row],[List 2]],Table_PI[[#This Row],[List 3]],Table_PI[[#This Row],[Size]],Table_PI[[#This Row],[Input 1]],Table_PI[[#This Row],[Input 2]],Table_PI[[#This Row],[Input 3]],Table_PI[[#This Row],[Input 4]],'Customer Information'!$AR$12,200,ROW()),\"\"),\"\")","v":""},{"$f":"IFERROR(IF(MeasureCalc(Table_PI[[#This Row],[Hide:\nFormula Name]],Table_SummaryPI[[#This Row],[Quantity]],Table_PI[[#This Row],[List 1]],Table_PI[[#This Row],[List 2]],Table_PI[[#This Row],[List 3]],Table_PI[[#This Row],[Size]],Table_PI[[#This Row],[Input 1]],Table_PI[[#This Row],[Input 2]],Table_PI[[#This Row],[Input 3]],Table_PI[[#This Row],[Input 4]],'Customer Information'!$AR$12,201,ROW())<>\"No Rebate\",MeasureCalc(Table_PI[[#This Row],[Hide:\nFormula Name]],Table_SummaryPI[[#This Row],[Quantity]],Table_PI[[#This Row],[List 1]],Table_PI[[#This Row],[List 2]],Table_PI[[#This Row],[List 3]],Table_PI[[#This Row],[Size]],Table_PI[[#This Row],[Input 1]],Table_PI[[#This Row],[Input 2]],Table_PI[[#This Row],[Input 3]],Table_PI[[#This Row],[Input 4]],'Customer Information'!$AR$12,201,ROW()),\"\"),\"\")","v":""}]
[{"$f":"Table_PI[[#This Row],[Line No.]]","v":""},{"$f":"IF(Table_SummaryPI[[#This Row],[MeassureCategory]]<>\"\",CONCATENATE(Table_SummaryPI[[#This Row],[MeassureCategory]],  \" - \", Table_SummaryPI[[#This Row],[ProposedMeasureCategory]],  \" - \", TEXT(Table_SummaryPI[[#This Row],[Size]],\"#,##0.00\"),\" \",Table_SummaryPI[[#This Row],[SizeUnit]]),\"\")","v":""},{"$f":"SUBSTITUTE(Table_PI[[#This Row],[Measure]],\"     \",\"\",1)","v":""},{"$f":"IF(Table_PI[[#This Row],[List 1]]<>\"\",Table_PI[[#This Row],[List 1]],\"\")","v":""},{"$f":"IF(Table_PI[[#This Row],[List 2]]<>\"\",Table_PI[[#This Row],[List 2]],\"\")","v":""},{"$f":"IF(Table_PI[[#This Row],[List 3]]<>\"\",Table_PI[[#This Row],[List 3]],\"\")","v":""},{"$f":"IF(Table_PI[[#This Row],[Manufacturer]]=\"\",\"\",Table_PI[[#This Row],[Manufacturer]])","v":""},{"$f":"IF(Table_PI[[#This Row],[Model Number]]=\"\",\"\",Table_PI[[#This Row],[Model Number]])","v":""},{"$f":"IF(Table_PI[[#This Row],[Serial Number(s)]]=\"\",\"\",Table_PI[[#This Row],[Serial Number(s)]])","v":""},null,{"$f":"IF(Table_PI[[#This Row],[Size]]=\"\",\"\",Table_PI[[#This Row],[Size]])","v":""},null,{"$f":"IFERROR(IF(AND(MeasureCalc(Table_PI[[#This Row],[Hide:\nFormula Name]],Table_SummaryPI[[#This Row],[Quantity]],Table_PI[[#This Row],[List 1]],Table_PI[[#This Row],[List 2]],Table_PI[[#This Row],[List 3]],Table_PI[[#This Row],[Size]],Table_PI[[#This Row],[Input 1]],Table_PI[[#This Row],[Input 2]],Table_PI[[#This Row],[Input 3]],Table_PI[[#This Row],[Input 4]],'Customer Information'!$AR$12,100,ROW())<>0,MeasureCalc(Table_PI[[#This Row],[Hide:\nFormula Name]],Table_SummaryPI[[#This Row],[Quantity]],Table_PI[[#This Row],[List 1]],Table_PI[[#This Row],[List 2]],Table_PI[[#This Row],[List 3]],Table_PI[[#This Row],[Size]],Table_PI[[#This Row],[Input 1]],Table_PI[[#This Row],[Input 2]],Table_PI[[#This Row],[Input 3]],Table_PI[[#This Row],[Input 4]],'Customer Information'!$AR$12,100,ROW())<>\"No Rebate\"),MeasureCalc(Table_PI[[#This Row],[Hide:\nFormula Name]],Table_SummaryPI[[#This Row],[Quantity]],Table_PI[[#This Row],[List 1]],Table_PI[[#This Row],[List 2]],Table_PI[[#This Row],[List 3]],Table_PI[[#This Row],[Size]],Table_PI[[#This Row],[Input 1]],Table_PI[[#This Row],[Input 2]],Table_PI[[#This Row],[Input 3]],Table_PI[[#This Row],[Input 4]],'Customer Information'!$AR$12,100,ROW()),\"\"),\"\")","v":""},{"$f":"IF(Table_PI[[#This Row],[Input 1]]<>\"\",Table_PI[[#This Row],[Input 1]],\"\")","v":""},null,{"$f":"IFERROR(IF(AND(MeasureCalc(Table_PI[[#This Row],[Hide:\nFormula Name]],Table_SummaryPI[[#This Row],[Quantity]],Table_PI[[#This Row],[List 1]],Table_PI[[#This Row],[List 2]],Table_PI[[#This Row],[List 3]],Table_PI[[#This Row],[Size]],Table_PI[[#This Row],[Input 1]],Table_PI[[#This Row],[Input 2]],Table_PI[[#This Row],[Input 3]],Table_PI[[#This Row],[Input 4]],'Customer Information'!$AR$12,101,ROW())<>0,MeasureCalc(Table_PI[[#This Row],[Hide:\nFormula Name]],Table_SummaryPI[[#This Row],[Quantity]],Table_PI[[#This Row],[List 1]],Table_PI[[#This Row],[List 2]],Table_PI[[#This Row],[List 3]],Table_PI[[#This Row],[Size]],Table_PI[[#This Row],[Input 1]],Table_PI[[#This Row],[Input 2]],Table_PI[[#This Row],[Input 3]],Table_PI[[#This Row],[Input 4]],'Customer Information'!$AR$12,101,ROW())<>\"No Rebate\"),MeasureCalc(Table_PI[[#This Row],[Hide:\nFormula Name]],Table_SummaryPI[[#This Row],[Quantity]],Table_PI[[#This Row],[List 1]],Table_PI[[#This Row],[List 2]],Table_PI[[#This Row],[List 3]],Table_PI[[#This Row],[Size]],Table_PI[[#This Row],[Input 1]],Table_PI[[#This Row],[Input 2]],Table_PI[[#This Row],[Input 3]],Table_PI[[#This Row],[Input 4]],'Customer Information'!$AR$12,101,ROW()),\"\"),\"\")","v":""},{"$f":"IF(Table_PI[[#This Row],[Input 2]]<>\"\",Table_PI[[#This Row],[Input 2]],\"\")","v":""},null,{"$f":"IFERROR(IF(AND(MeasureCalc(Table_PI[[#This Row],[Hide:\nFormula Name]],Table_SummaryPI[[#This Row],[Quantity]],Table_PI[[#This Row],[List 1]],Table_PI[[#This Row],[List 2]],Table_PI[[#This Row],[List 3]],Table_PI[[#This Row],[Size]],Table_PI[[#This Row],[Input 1]],Table_PI[[#This Row],[Input 2]],Table_PI[[#This Row],[Input 3]],Table_PI[[#This Row],[Input 4]],'Customer Information'!$AR$12,102,ROW())<>0,MeasureCalc(Table_PI[[#This Row],[Hide:\nFormula Name]],Table_SummaryPI[[#This Row],[Quantity]],Table_PI[[#This Row],[List 1]],Table_PI[[#This Row],[List 2]],Table_PI[[#This Row],[List 3]],Table_PI[[#This Row],[Size]],Table_PI[[#This Row],[Input 1]],Table_PI[[#This Row],[Input 2]],Table_PI[[#This Row],[Input 3]],Table_PI[[#This Row],[Input 4]],'Customer Information'!$AR$12,102,ROW())<>\"No Rebate\"),MeasureCalc(Table_PI[[#This Row],[Hide:\nFormula Name]],Table_SummaryPI[[#This Row],[Quantity]],Table_PI[[#This Row],[List 1]],Table_PI[[#This Row],[List 2]],Table_PI[[#This Row],[List 3]],Table_PI[[#This Row],[Size]],Table_PI[[#This Row],[Input 1]],Table_PI[[#This Row],[Input 2]],Table_PI[[#This Row],[Input 3]],Table_PI[[#This Row],[Input 4]],'Customer Information'!$AR$12,102,ROW()),\"\"),\"\")","v":""},{"$f":"IF(Table_PI[[#This Row],[Input 3]]<>\"\",Table_PI[[#This Row],[Input 3]],\"\")","v":""},null,{"$f":"IFERROR(IF(AND(MeasureCalc(Table_PI[[#This Row],[Hide:\nFormula Name]],Table_SummaryPI[[#This Row],[Quantity]],Table_PI[[#This Row],[List 1]],Table_PI[[#This Row],[List 2]],Table_PI[[#This Row],[List 3]],Table_PI[[#This Row],[Size]],Table_PI[[#This Row],[Input 1]],Table_PI[[#This Row],[Input 2]],Table_PI[[#This Row],[Input 3]],Table_PI[[#This Row],[Input 4]],'Customer Information'!$AR$12,103,ROW())<>0,MeasureCalc(Table_PI[[#This Row],[Hide:\nFormula Name]],Table_SummaryPI[[#This Row],[Quantity]],Table_PI[[#This Row],[List 1]],Table_PI[[#This Row],[List 2]],Table_PI[[#This Row],[List 3]],Table_PI[[#This Row],[Size]],Table_PI[[#This Row],[Input 1]],Table_PI[[#This Row],[Input 2]],Table_PI[[#This Row],[Input 3]],Table_PI[[#This Row],[Input 4]],'Customer Information'!$AR$12,103,ROW())<>\"No Rebate\"),MeasureCalc(Table_PI[[#This Row],[Hide:\nFormula Name]],Table_SummaryPI[[#This Row],[Quantity]],Table_PI[[#This Row],[List 1]],Table_PI[[#This Row],[List 2]],Table_PI[[#This Row],[List 3]],Table_PI[[#This Row],[Size]],Table_PI[[#This Row],[Input 1]],Table_PI[[#This Row],[Input 2]],Table_PI[[#This Row],[Input 3]],Table_PI[[#This Row],[Input 4]],'Customer Information'!$AR$12,103,ROW()),\"\"),\"\")","v":""},{"$f":"IF(Table_PI[[#This Row],[Input 4]]<>\"\",Table_PI[[#This Row],[Input 4]],\"\")","v":""},{"$f":"IF(Table_PI[[#This Row],[Quantity]]=\"\",\"\",Table_PI[[#This Row],[Quantity]])","v":""},{"$f":"IF(Table_PI[[#This Row],[Notes]]=\"\",\"\",Table_PI[[#This Row],[Notes]])","v":""},{"$f":"IF(OR(Table_PI[[#This Row],[Hide:\nBaseline kWh]]=\"\",Table_PI[[#This Row],[Hide:\nBaseline kWh]]=0),\"\",Table_PI[[#This Row],[Hide:\nBaseline kWh]])","v":""},{"$f":"IF(OR(Table_PI[[#This Row],[Hide:\nBaseline kW]]=\"\",Table_PI[[#This Row],[Hide:\nBaseline kW]]=0),\"\",Table_PI[[#This Row],[Hide:\nBaseline kW]])","v":""},{"$f":"IF(OR(Table_PI[[#This Row],[Hide:\nProposed kWh]]=\"\",Table_PI[[#This Row],[Hide:\nProposed kWh]]=0),\"\",Table_PI[[#This Row],[Hide:\nProposed kWh]])","v":""},{"$f":"IF(OR(Table_PI[[#This Row],[Hide:\nProposed kW]]=\"\",Table_PI[[#This Row],[Hide:\nProposed kW]]=0),\"\",Table_PI[[#This Row],[Hide:\nProposed kW]])","v":""},{"$f":"IF(OR(Table_PI[[#This Row],[Rebate]]=\"\",Table_PI[[#This Row],[Rebate]]=0),\"\",Table_PI[[#This Row],[Rebate]])","v":""},{"$f":"IF(OR(Table_PI[[#This Row],[Hide:\nIncremental Cost]]=\"\",Table_PI[[#This Row],[Hide:\nIncremental Cost]]=0),\"\",Table_PI[[#This Row],[Hide:\nIncremental Cost]])","v":""},{"$f":"IFERROR(IF(Table_SummaryPI[[#This Row],[kWhSavings]]=\"\",\"\",ROUND(Table_SummaryPI[[#This Row],[kWhSavings]]/$AG$401*'Customer Information'!$BC$17,2)),0)","v":""},{"$f":"IF(OR(Table_PI[[#This Row],[Annual kWh]]=\"\",Table_PI[[#This Row],[Annual kWh]]=0),\"\",Table_PI[[#This Row],[Annual kWh]])","v":""},{"$f":"IF(OR(Table_PI[[#This Row],[Peak kW]]=\"\",Table_PI[[#This Row],[Peak kW]]=0),\"\",Table_PI[[#This Row],[Peak kW]])","v":""},{"$f":"IFERROR(IF(Table_SummaryPI[[#This Row],[kWhSavings]]=\"\",\"\",$AU$9*Table_SummaryPI[[#This Row],[kWhSavings]]),0)","v":""},{"$f":"IFERROR(IF(Table_SummaryPI[[#This Row],[kWhSavings]]=\"\",\"\",$AU$14*Table_SummaryPI[[#This Row],[kWhSavings]]),0)","v":""},{"$f":"IFERROR(IF(Table_SummaryPI[[#This Row],[kWhSavings]]=\"\",\"\",$AU$18*Table_SummaryPI[[#This Row],[kWhSavings]]),0)","v":""},{"$f":"IFERROR(IF(Table_SummaryPI[[#This Row],[kWhSavings]]=\"\",\"\",$AU$22*Table_SummaryPI[[#This Row],[kWhSavings]]),0)","v":""},{"$f":"IFERROR(IF(MeasureCalc(Table_PI[[#This Row],[Hide:\nFormula Name]],Table_SummaryPI[[#This Row],[Quantity]],Table_PI[[#This Row],[List 1]],Table_PI[[#This Row],[List 2]],Table_PI[[#This Row],[List 3]],Table_PI[[#This Row],[Size]],Table_PI[[#This Row],[Input 1]],Table_PI[[#This Row],[Input 2]],Table_PI[[#This Row],[Input 3]],Table_PI[[#This Row],[Input 4]],'Customer Information'!$AR$12,200,ROW())<>\"No Rebate\",MeasureCalc(Table_PI[[#This Row],[Hide:\nFormula Name]],Table_SummaryPI[[#This Row],[Quantity]],Table_PI[[#This Row],[List 1]],Table_PI[[#This Row],[List 2]],Table_PI[[#This Row],[List 3]],Table_PI[[#This Row],[Size]],Table_PI[[#This Row],[Input 1]],Table_PI[[#This Row],[Input 2]],Table_PI[[#This Row],[Input 3]],Table_PI[[#This Row],[Input 4]],'Customer Information'!$AR$12,200,ROW()),\"\"),\"\")","v":""},{"$f":"IFERROR(IF(MeasureCalc(Table_PI[[#This Row],[Hide:\nFormula Name]],Table_SummaryPI[[#This Row],[Quantity]],Table_PI[[#This Row],[List 1]],Table_PI[[#This Row],[List 2]],Table_PI[[#This Row],[List 3]],Table_PI[[#This Row],[Size]],Table_PI[[#This Row],[Input 1]],Table_PI[[#This Row],[Input 2]],Table_PI[[#This Row],[Input 3]],Table_PI[[#This Row],[Input 4]],'Customer Information'!$AR$12,201,ROW())<>\"No Rebate\",MeasureCalc(Table_PI[[#This Row],[Hide:\nFormula Name]],Table_SummaryPI[[#This Row],[Quantity]],Table_PI[[#This Row],[List 1]],Table_PI[[#This Row],[List 2]],Table_PI[[#This Row],[List 3]],Table_PI[[#This Row],[Size]],Table_PI[[#This Row],[Input 1]],Table_PI[[#This Row],[Input 2]],Table_PI[[#This Row],[Input 3]],Table_PI[[#This Row],[Input 4]],'Customer Information'!$AR$12,201,ROW()),\"\"),\"\")","v":""}]
[{"$f":"Table_PI[[#This Row],[Line No.]]","v":""},{"$f":"IF(Table_SummaryPI[[#This Row],[MeassureCategory]]<>\"\",CONCATENATE(Table_SummaryPI[[#This Row],[MeassureCategory]],  \" - \", Table_SummaryPI[[#This Row],[ProposedMeasureCategory]],  \" - \", TEXT(Table_SummaryPI[[#This Row],[Size]],\"#,##0.00\"),\" \",Table_SummaryPI[[#This Row],[SizeUnit]]),\"\")","v":""},{"$f":"SUBSTITUTE(Table_PI[[#This Row],[Measure]],\"     \",\"\",1)","v":""},{"$f":"IF(Table_PI[[#This Row],[List 1]]<>\"\",Table_PI[[#This Row],[List 1]],\"\")","v":""},{"$f":"IF(Table_PI[[#This Row],[List 2]]<>\"\",Table_PI[[#This Row],[List 2]],\"\")","v":""},{"$f":"IF(Table_PI[[#This Row],[List 3]]<>\"\",Table_PI[[#This Row],[List 3]],\"\")","v":""},{"$f":"IF(Table_PI[[#This Row],[Manufacturer]]=\"\",\"\",Table_PI[[#This Row],[Manufacturer]])","v":""},{"$f":"IF(Table_PI[[#This Row],[Model Number]]=\"\",\"\",Table_PI[[#This Row],[Model Number]])","v":""},{"$f":"IF(Table_PI[[#This Row],[Serial Number(s)]]=\"\",\"\",Table_PI[[#This Row],[Serial Number(s)]])","v":""},null,{"$f":"IF(Table_PI[[#This Row],[Size]]=\"\",\"\",Table_PI[[#This Row],[Size]])","v":""},null,{"$f":"IFERROR(IF(AND(MeasureCalc(Table_PI[[#This Row],[Hide:\nFormula Name]],Table_SummaryPI[[#This Row],[Quantity]],Table_PI[[#This Row],[List 1]],Table_PI[[#This Row],[List 2]],Table_PI[[#This Row],[List 3]],Table_PI[[#This Row],[Size]],Table_PI[[#This Row],[Input 1]],Table_PI[[#This Row],[Input 2]],Table_PI[[#This Row],[Input 3]],Table_PI[[#This Row],[Input 4]],'Customer Information'!$AR$12,100,ROW())<>0,MeasureCalc(Table_PI[[#This Row],[Hide:\nFormula Name]],Table_SummaryPI[[#This Row],[Quantity]],Table_PI[[#This Row],[List 1]],Table_PI[[#This Row],[List 2]],Table_PI[[#This Row],[List 3]],Table_PI[[#This Row],[Size]],Table_PI[[#This Row],[Input 1]],Table_PI[[#This Row],[Input 2]],Table_PI[[#This Row],[Input 3]],Table_PI[[#This Row],[Input 4]],'Customer Information'!$AR$12,100,ROW())<>\"No Rebate\"),MeasureCalc(Table_PI[[#This Row],[Hide:\nFormula Name]],Table_SummaryPI[[#This Row],[Quantity]],Table_PI[[#This Row],[List 1]],Table_PI[[#This Row],[List 2]],Table_PI[[#This Row],[List 3]],Table_PI[[#This Row],[Size]],Table_PI[[#This Row],[Input 1]],Table_PI[[#This Row],[Input 2]],Table_PI[[#This Row],[Input 3]],Table_PI[[#This Row],[Input 4]],'Customer Information'!$AR$12,100,ROW()),\"\"),\"\")","v":""},{"$f":"IF(Table_PI[[#This Row],[Input 1]]<>\"\",Table_PI[[#This Row],[Input 1]],\"\")","v":""},null,{"$f":"IFERROR(IF(AND(MeasureCalc(Table_PI[[#This Row],[Hide:\nFormula Name]],Table_SummaryPI[[#This Row],[Quantity]],Table_PI[[#This Row],[List 1]],Table_PI[[#This Row],[List 2]],Table_PI[[#This Row],[List 3]],Table_PI[[#This Row],[Size]],Table_PI[[#This Row],[Input 1]],Table_PI[[#This Row],[Input 2]],Table_PI[[#This Row],[Input 3]],Table_PI[[#This Row],[Input 4]],'Customer Information'!$AR$12,101,ROW())<>0,MeasureCalc(Table_PI[[#This Row],[Hide:\nFormula Name]],Table_SummaryPI[[#This Row],[Quantity]],Table_PI[[#This Row],[List 1]],Table_PI[[#This Row],[List 2]],Table_PI[[#This Row],[List 3]],Table_PI[[#This Row],[Size]],Table_PI[[#This Row],[Input 1]],Table_PI[[#This Row],[Input 2]],Table_PI[[#This Row],[Input 3]],Table_PI[[#This Row],[Input 4]],'Customer Information'!$AR$12,101,ROW())<>\"No Rebate\"),MeasureCalc(Table_PI[[#This Row],[Hide:\nFormula Name]],Table_SummaryPI[[#This Row],[Quantity]],Table_PI[[#This Row],[List 1]],Table_PI[[#This Row],[List 2]],Table_PI[[#This Row],[List 3]],Table_PI[[#This Row],[Size]],Table_PI[[#This Row],[Input 1]],Table_PI[[#This Row],[Input 2]],Table_PI[[#This Row],[Input 3]],Table_PI[[#This Row],[Input 4]],'Customer Information'!$AR$12,101,ROW()),\"\"),\"\")","v":""},{"$f":"IF(Table_PI[[#This Row],[Input 2]]<>\"\",Table_PI[[#This Row],[Input 2]],\"\")","v":""},null,{"$f":"IFERROR(IF(AND(MeasureCalc(Table_PI[[#This Row],[Hide:\nFormula Name]],Table_SummaryPI[[#This Row],[Quantity]],Table_PI[[#This Row],[List 1]],Table_PI[[#This Row],[List 2]],Table_PI[[#This Row],[List 3]],Table_PI[[#This Row],[Size]],Table_PI[[#This Row],[Input 1]],Table_PI[[#This Row],[Input 2]],Table_PI[[#This Row],[Input 3]],Table_PI[[#This Row],[Input 4]],'Customer Information'!$AR$12,102,ROW())<>0,MeasureCalc(Table_PI[[#This Row],[Hide:\nFormula Name]],Table_SummaryPI[[#This Row],[Quantity]],Table_PI[[#This Row],[List 1]],Table_PI[[#This Row],[List 2]],Table_PI[[#This Row],[List 3]],Table_PI[[#This Row],[Size]],Table_PI[[#This Row],[Input 1]],Table_PI[[#This Row],[Input 2]],Table_PI[[#This Row],[Input 3]],Table_PI[[#This Row],[Input 4]],'Customer Information'!$AR$12,102,ROW())<>\"No Rebate\"),MeasureCalc(Table_PI[[#This Row],[Hide:\nFormula Name]],Table_SummaryPI[[#This Row],[Quantity]],Table_PI[[#This Row],[List 1]],Table_PI[[#This Row],[List 2]],Table_PI[[#This Row],[List 3]],Table_PI[[#This Row],[Size]],Table_PI[[#This Row],[Input 1]],Table_PI[[#This Row],[Input 2]],Table_PI[[#This Row],[Input 3]],Table_PI[[#This Row],[Input 4]],'Customer Information'!$AR$12,102,ROW()),\"\"),\"\")","v":""},{"$f":"IF(Table_PI[[#This Row],[Input 3]]<>\"\",Table_PI[[#This Row],[Input 3]],\"\")","v":""},null,{"$f":"IFERROR(IF(AND(MeasureCalc(Table_PI[[#This Row],[Hide:\nFormula Name]],Table_SummaryPI[[#This Row],[Quantity]],Table_PI[[#This Row],[List 1]],Table_PI[[#This Row],[List 2]],Table_PI[[#This Row],[List 3]],Table_PI[[#This Row],[Size]],Table_PI[[#This Row],[Input 1]],Table_PI[[#This Row],[Input 2]],Table_PI[[#This Row],[Input 3]],Table_PI[[#This Row],[Input 4]],'Customer Information'!$AR$12,103,ROW())<>0,MeasureCalc(Table_PI[[#This Row],[Hide:\nFormula Name]],Table_SummaryPI[[#This Row],[Quantity]],Table_PI[[#This Row],[List 1]],Table_PI[[#This Row],[List 2]],Table_PI[[#This Row],[List 3]],Table_PI[[#This Row],[Size]],Table_PI[[#This Row],[Input 1]],Table_PI[[#This Row],[Input 2]],Table_PI[[#This Row],[Input 3]],Table_PI[[#This Row],[Input 4]],'Customer Information'!$AR$12,103,ROW())<>\"No Rebate\"),MeasureCalc(Table_PI[[#This Row],[Hide:\nFormula Name]],Table_SummaryPI[[#This Row],[Quantity]],Table_PI[[#This Row],[List 1]],Table_PI[[#This Row],[List 2]],Table_PI[[#This Row],[List 3]],Table_PI[[#This Row],[Size]],Table_PI[[#This Row],[Input 1]],Table_PI[[#This Row],[Input 2]],Table_PI[[#This Row],[Input 3]],Table_PI[[#This Row],[Input 4]],'Customer Information'!$AR$12,103,ROW()),\"\"),\"\")","v":""},{"$f":"IF(Table_PI[[#This Row],[Input 4]]<>\"\",Table_PI[[#This Row],[Input 4]],\"\")","v":""},{"$f":"IF(Table_PI[[#This Row],[Quantity]]=\"\",\"\",Table_PI[[#This Row],[Quantity]])","v":""},{"$f":"IF(Table_PI[[#This Row],[Notes]]=\"\",\"\",Table_PI[[#This Row],[Notes]])","v":""},{"$f":"IF(OR(Table_PI[[#This Row],[Hide:\nBaseline kWh]]=\"\",Table_PI[[#This Row],[Hide:\nBaseline kWh]]=0),\"\",Table_PI[[#This Row],[Hide:\nBaseline kWh]])","v":""},{"$f":"IF(OR(Table_PI[[#This Row],[Hide:\nBaseline kW]]=\"\",Table_PI[[#This Row],[Hide:\nBaseline kW]]=0),\"\",Table_PI[[#This Row],[Hide:\nBaseline kW]])","v":""},{"$f":"IF(OR(Table_PI[[#This Row],[Hide:\nProposed kWh]]=\"\",Table_PI[[#This Row],[Hide:\nProposed kWh]]=0),\"\",Table_PI[[#This Row],[Hide:\nProposed kWh]])","v":""},{"$f":"IF(OR(Table_PI[[#This Row],[Hide:\nProposed kW]]=\"\",Table_PI[[#This Row],[Hide:\nProposed kW]]=0),\"\",Table_PI[[#This Row],[Hide:\nProposed kW]])","v":""},{"$f":"IF(OR(Table_PI[[#This Row],[Rebate]]=\"\",Table_PI[[#This Row],[Rebate]]=0),\"\",Table_PI[[#This Row],[Rebate]])","v":""},{"$f":"IF(OR(Table_PI[[#This Row],[Hide:\nIncremental Cost]]=\"\",Table_PI[[#This Row],[Hide:\nIncremental Cost]]=0),\"\",Table_PI[[#This Row],[Hide:\nIncremental Cost]])","v":""},{"$f":"IFERROR(IF(Table_SummaryPI[[#This Row],[kWhSavings]]=\"\",\"\",ROUND(Table_SummaryPI[[#This Row],[kWhSavings]]/$AG$401*'Customer Information'!$BC$17,2)),0)","v":""},{"$f":"IF(OR(Table_PI[[#This Row],[Annual kWh]]=\"\",Table_PI[[#This Row],[Annual kWh]]=0),\"\",Table_PI[[#This Row],[Annual kWh]])","v":""},{"$f":"IF(OR(Table_PI[[#This Row],[Peak kW]]=\"\",Table_PI[[#This Row],[Peak kW]]=0),\"\",Table_PI[[#This Row],[Peak kW]])","v":""},{"$f":"IFERROR(IF(Table_SummaryPI[[#This Row],[kWhSavings]]=\"\",\"\",$AU$9*Table_SummaryPI[[#This Row],[kWhSavings]]),0)","v":""},{"$f":"IFERROR(IF(Table_SummaryPI[[#This Row],[kWhSavings]]=\"\",\"\",$AU$14*Table_SummaryPI[[#This Row],[kWhSavings]]),0)","v":""},{"$f":"IFERROR(IF(Table_SummaryPI[[#This Row],[kWhSavings]]=\"\",\"\",$AU$18*Table_SummaryPI[[#This Row],[kWhSavings]]),0)","v":""},{"$f":"IFERROR(IF(Table_SummaryPI[[#This Row],[kWhSavings]]=\"\",\"\",$AU$22*Table_SummaryPI[[#This Row],[kWhSavings]]),0)","v":""},{"$f":"IFERROR(IF(MeasureCalc(Table_PI[[#This Row],[Hide:\nFormula Name]],Table_SummaryPI[[#This Row],[Quantity]],Table_PI[[#This Row],[List 1]],Table_PI[[#This Row],[List 2]],Table_PI[[#This Row],[List 3]],Table_PI[[#This Row],[Size]],Table_PI[[#This Row],[Input 1]],Table_PI[[#This Row],[Input 2]],Table_PI[[#This Row],[Input 3]],Table_PI[[#This Row],[Input 4]],'Customer Information'!$AR$12,200,ROW())<>\"No Rebate\",MeasureCalc(Table_PI[[#This Row],[Hide:\nFormula Name]],Table_SummaryPI[[#This Row],[Quantity]],Table_PI[[#This Row],[List 1]],Table_PI[[#This Row],[List 2]],Table_PI[[#This Row],[List 3]],Table_PI[[#This Row],[Size]],Table_PI[[#This Row],[Input 1]],Table_PI[[#This Row],[Input 2]],Table_PI[[#This Row],[Input 3]],Table_PI[[#This Row],[Input 4]],'Customer Information'!$AR$12,200,ROW()),\"\"),\"\")","v":""},{"$f":"IFERROR(IF(MeasureCalc(Table_PI[[#This Row],[Hide:\nFormula Name]],Table_SummaryPI[[#This Row],[Quantity]],Table_PI[[#This Row],[List 1]],Table_PI[[#This Row],[List 2]],Table_PI[[#This Row],[List 3]],Table_PI[[#This Row],[Size]],Table_PI[[#This Row],[Input 1]],Table_PI[[#This Row],[Input 2]],Table_PI[[#This Row],[Input 3]],Table_PI[[#This Row],[Input 4]],'Customer Information'!$AR$12,201,ROW())<>\"No Rebate\",MeasureCalc(Table_PI[[#This Row],[Hide:\nFormula Name]],Table_SummaryPI[[#This Row],[Quantity]],Table_PI[[#This Row],[List 1]],Table_PI[[#This Row],[List 2]],Table_PI[[#This Row],[List 3]],Table_PI[[#This Row],[Size]],Table_PI[[#This Row],[Input 1]],Table_PI[[#This Row],[Input 2]],Table_PI[[#This Row],[Input 3]],Table_PI[[#This Row],[Input 4]],'Customer Information'!$AR$12,201,ROW()),\"\"),\"\")","v":""}]
[{"$f":"Table_PI[[#This Row],[Line No.]]","v":""},{"$f":"IF(Table_SummaryPI[[#This Row],[MeassureCategory]]<>\"\",CONCATENATE(Table_SummaryPI[[#This Row],[MeassureCategory]],  \" - \", Table_SummaryPI[[#This Row],[ProposedMeasureCategory]],  \" - \", TEXT(Table_SummaryPI[[#This Row],[Size]],\"#,##0.00\"),\" \",Table_SummaryPI[[#This Row],[SizeUnit]]),\"\")","v":""},{"$f":"SUBSTITUTE(Table_PI[[#This Row],[Measure]],\"     \",\"\",1)","v":""},{"$f":"IF(Table_PI[[#This Row],[List 1]]<>\"\",Table_PI[[#This Row],[List 1]],\"\")","v":""},{"$f":"IF(Table_PI[[#This Row],[List 2]]<>\"\",Table_PI[[#This Row],[List 2]],\"\")","v":""},{"$f":"IF(Table_PI[[#This Row],[List 3]]<>\"\",Table_PI[[#This Row],[List 3]],\"\")","v":""},{"$f":"IF(Table_PI[[#This Row],[Manufacturer]]=\"\",\"\",Table_PI[[#This Row],[Manufacturer]])","v":""},{"$f":"IF(Table_PI[[#This Row],[Model Number]]=\"\",\"\",Table_PI[[#This Row],[Model Number]])","v":""},{"$f":"IF(Table_PI[[#This Row],[Serial Number(s)]]=\"\",\"\",Table_PI[[#This Row],[Serial Number(s)]])","v":""},null,{"$f":"IF(Table_PI[[#This Row],[Size]]=\"\",\"\",Table_PI[[#This Row],[Size]])","v":""},null,{"$f":"IFERROR(IF(AND(MeasureCalc(Table_PI[[#This Row],[Hide:\nFormula Name]],Table_SummaryPI[[#This Row],[Quantity]],Table_PI[[#This Row],[List 1]],Table_PI[[#This Row],[List 2]],Table_PI[[#This Row],[List 3]],Table_PI[[#This Row],[Size]],Table_PI[[#This Row],[Input 1]],Table_PI[[#This Row],[Input 2]],Table_PI[[#This Row],[Input 3]],Table_PI[[#This Row],[Input 4]],'Customer Information'!$AR$12,100,ROW())<>0,MeasureCalc(Table_PI[[#This Row],[Hide:\nFormula Name]],Table_SummaryPI[[#This Row],[Quantity]],Table_PI[[#This Row],[List 1]],Table_PI[[#This Row],[List 2]],Table_PI[[#This Row],[List 3]],Table_PI[[#This Row],[Size]],Table_PI[[#This Row],[Input 1]],Table_PI[[#This Row],[Input 2]],Table_PI[[#This Row],[Input 3]],Table_PI[[#This Row],[Input 4]],'Customer Information'!$AR$12,100,ROW())<>\"No Rebate\"),MeasureCalc(Table_PI[[#This Row],[Hide:\nFormula Name]],Table_SummaryPI[[#This Row],[Quantity]],Table_PI[[#This Row],[List 1]],Table_PI[[#This Row],[List 2]],Table_PI[[#This Row],[List 3]],Table_PI[[#This Row],[Size]],Table_PI[[#This Row],[Input 1]],Table_PI[[#This Row],[Input 2]],Table_PI[[#This Row],[Input 3]],Table_PI[[#This Row],[Input 4]],'Customer Information'!$AR$12,100,ROW()),\"\"),\"\")","v":""},{"$f":"IF(Table_PI[[#This Row],[Input 1]]<>\"\",Table_PI[[#This Row],[Input 1]],\"\")","v":""},null,{"$f":"IFERROR(IF(AND(MeasureCalc(Table_PI[[#This Row],[Hide:\nFormula Name]],Table_SummaryPI[[#This Row],[Quantity]],Table_PI[[#This Row],[List 1]],Table_PI[[#This Row],[List 2]],Table_PI[[#This Row],[List 3]],Table_PI[[#This Row],[Size]],Table_PI[[#This Row],[Input 1]],Table_PI[[#This Row],[Input 2]],Table_PI[[#This Row],[Input 3]],Table_PI[[#This Row],[Input 4]],'Customer Information'!$AR$12,101,ROW())<>0,MeasureCalc(Table_PI[[#This Row],[Hide:\nFormula Name]],Table_SummaryPI[[#This Row],[Quantity]],Table_PI[[#This Row],[List 1]],Table_PI[[#This Row],[List 2]],Table_PI[[#This Row],[List 3]],Table_PI[[#This Row],[Size]],Table_PI[[#This Row],[Input 1]],Table_PI[[#This Row],[Input 2]],Table_PI[[#This Row],[Input 3]],Table_PI[[#This Row],[Input 4]],'Customer Information'!$AR$12,101,ROW())<>\"No Rebate\"),MeasureCalc(Table_PI[[#This Row],[Hide:\nFormula Name]],Table_SummaryPI[[#This Row],[Quantity]],Table_PI[[#This Row],[List 1]],Table_PI[[#This Row],[List 2]],Table_PI[[#This Row],[List 3]],Table_PI[[#This Row],[Size]],Table_PI[[#This Row],[Input 1]],Table_PI[[#This Row],[Input 2]],Table_PI[[#This Row],[Input 3]],Table_PI[[#This Row],[Input 4]],'Customer Information'!$AR$12,101,ROW()),\"\"),\"\")","v":""},{"$f":"IF(Table_PI[[#This Row],[Input 2]]<>\"\",Table_PI[[#This Row],[Input 2]],\"\")","v":""},null,{"$f":"IFERROR(IF(AND(MeasureCalc(Table_PI[[#This Row],[Hide:\nFormula Name]],Table_SummaryPI[[#This Row],[Quantity]],Table_PI[[#This Row],[List 1]],Table_PI[[#This Row],[List 2]],Table_PI[[#This Row],[List 3]],Table_PI[[#This Row],[Size]],Table_PI[[#This Row],[Input 1]],Table_PI[[#This Row],[Input 2]],Table_PI[[#This Row],[Input 3]],Table_PI[[#This Row],[Input 4]],'Customer Information'!$AR$12,102,ROW())<>0,MeasureCalc(Table_PI[[#This Row],[Hide:\nFormula Name]],Table_SummaryPI[[#This Row],[Quantity]],Table_PI[[#This Row],[List 1]],Table_PI[[#This Row],[List 2]],Table_PI[[#This Row],[List 3]],Table_PI[[#This Row],[Size]],Table_PI[[#This Row],[Input 1]],Table_PI[[#This Row],[Input 2]],Table_PI[[#This Row],[Input 3]],Table_PI[[#This Row],[Input 4]],'Customer Information'!$AR$12,102,ROW())<>\"No Rebate\"),MeasureCalc(Table_PI[[#This Row],[Hide:\nFormula Name]],Table_SummaryPI[[#This Row],[Quantity]],Table_PI[[#This Row],[List 1]],Table_PI[[#This Row],[List 2]],Table_PI[[#This Row],[List 3]],Table_PI[[#This Row],[Size]],Table_PI[[#This Row],[Input 1]],Table_PI[[#This Row],[Input 2]],Table_PI[[#This Row],[Input 3]],Table_PI[[#This Row],[Input 4]],'Customer Information'!$AR$12,102,ROW()),\"\"),\"\")","v":""},{"$f":"IF(Table_PI[[#This Row],[Input 3]]<>\"\",Table_PI[[#This Row],[Input 3]],\"\")","v":""},null,{"$f":"IFERROR(IF(AND(MeasureCalc(Table_PI[[#This Row],[Hide:\nFormula Name]],Table_SummaryPI[[#This Row],[Quantity]],Table_PI[[#This Row],[List 1]],Table_PI[[#This Row],[List 2]],Table_PI[[#This Row],[List 3]],Table_PI[[#This Row],[Size]],Table_PI[[#This Row],[Input 1]],Table_PI[[#This Row],[Input 2]],Table_PI[[#This Row],[Input 3]],Table_PI[[#This Row],[Input 4]],'Customer Information'!$AR$12,103,ROW())<>0,MeasureCalc(Table_PI[[#This Row],[Hide:\nFormula Name]],Table_SummaryPI[[#This Row],[Quantity]],Table_PI[[#This Row],[List 1]],Table_PI[[#This Row],[List 2]],Table_PI[[#This Row],[List 3]],Table_PI[[#This Row],[Size]],Table_PI[[#This Row],[Input 1]],Table_PI[[#This Row],[Input 2]],Table_PI[[#This Row],[Input 3]],Table_PI[[#This Row],[Input 4]],'Customer Information'!$AR$12,103,ROW())<>\"No Rebate\"),MeasureCalc(Table_PI[[#This Row],[Hide:\nFormula Name]],Table_SummaryPI[[#This Row],[Quantity]],Table_PI[[#This Row],[List 1]],Table_PI[[#This Row],[List 2]],Table_PI[[#This Row],[List 3]],Table_PI[[#This Row],[Size]],Table_PI[[#This Row],[Input 1]],Table_PI[[#This Row],[Input 2]],Table_PI[[#This Row],[Input 3]],Table_PI[[#This Row],[Input 4]],'Customer Information'!$AR$12,103,ROW()),\"\"),\"\")","v":""},{"$f":"IF(Table_PI[[#This Row],[Input 4]]<>\"\",Table_PI[[#This Row],[Input 4]],\"\")","v":""},{"$f":"IF(Table_PI[[#This Row],[Quantity]]=\"\",\"\",Table_PI[[#This Row],[Quantity]])","v":""},{"$f":"IF(Table_PI[[#This Row],[Notes]]=\"\",\"\",Table_PI[[#This Row],[Notes]])","v":""},{"$f":"IF(OR(Table_PI[[#This Row],[Hide:\nBaseline kWh]]=\"\",Table_PI[[#This Row],[Hide:\nBaseline kWh]]=0),\"\",Table_PI[[#This Row],[Hide:\nBaseline kWh]])","v":""},{"$f":"IF(OR(Table_PI[[#This Row],[Hide:\nBaseline kW]]=\"\",Table_PI[[#This Row],[Hide:\nBaseline kW]]=0),\"\",Table_PI[[#This Row],[Hide:\nBaseline kW]])","v":""},{"$f":"IF(OR(Table_PI[[#This Row],[Hide:\nProposed kWh]]=\"\",Table_PI[[#This Row],[Hide:\nProposed kWh]]=0),\"\",Table_PI[[#This Row],[Hide:\nProposed kWh]])","v":""},{"$f":"IF(OR(Table_PI[[#This Row],[Hide:\nProposed kW]]=\"\",Table_PI[[#This Row],[Hide:\nProposed kW]]=0),\"\",Table_PI[[#This Row],[Hide:\nProposed kW]])","v":""},{"$f":"IF(OR(Table_PI[[#This Row],[Rebate]]=\"\",Table_PI[[#This Row],[Rebate]]=0),\"\",Table_PI[[#This Row],[Rebate]])","v":""},{"$f":"IF(OR(Table_PI[[#This Row],[Hide:\nIncremental Cost]]=\"\",Table_PI[[#This Row],[Hide:\nIncremental Cost]]=0),\"\",Table_PI[[#This Row],[Hide:\nIncremental Cost]])","v":""},{"$f":"IFERROR(IF(Table_SummaryPI[[#This Row],[kWhSavings]]=\"\",\"\",ROUND(Table_SummaryPI[[#This Row],[kWhSavings]]/$AG$401*'Customer Information'!$BC$17,2)),0)","v":""},{"$f":"IF(OR(Table_PI[[#This Row],[Annual kWh]]=\"\",Table_PI[[#This Row],[Annual kWh]]=0),\"\",Table_PI[[#This Row],[Annual kWh]])","v":""},{"$f":"IF(OR(Table_PI[[#This Row],[Peak kW]]=\"\",Table_PI[[#This Row],[Peak kW]]=0),\"\",Table_PI[[#This Row],[Peak kW]])","v":""},{"$f":"IFERROR(IF(Table_SummaryPI[[#This Row],[kWhSavings]]=\"\",\"\",$AU$9*Table_SummaryPI[[#This Row],[kWhSavings]]),0)","v":""},{"$f":"IFERROR(IF(Table_SummaryPI[[#This Row],[kWhSavings]]=\"\",\"\",$AU$14*Table_SummaryPI[[#This Row],[kWhSavings]]),0)","v":""},{"$f":"IFERROR(IF(Table_SummaryPI[[#This Row],[kWhSavings]]=\"\",\"\",$AU$18*Table_SummaryPI[[#This Row],[kWhSavings]]),0)","v":""},{"$f":"IFERROR(IF(Table_SummaryPI[[#This Row],[kWhSavings]]=\"\",\"\",$AU$22*Table_SummaryPI[[#This Row],[kWhSavings]]),0)","v":""},{"$f":"IFERROR(IF(MeasureCalc(Table_PI[[#This Row],[Hide:\nFormula Name]],Table_SummaryPI[[#This Row],[Quantity]],Table_PI[[#This Row],[List 1]],Table_PI[[#This Row],[List 2]],Table_PI[[#This Row],[List 3]],Table_PI[[#This Row],[Size]],Table_PI[[#This Row],[Input 1]],Table_PI[[#This Row],[Input 2]],Table_PI[[#This Row],[Input 3]],Table_PI[[#This Row],[Input 4]],'Customer Information'!$AR$12,200,ROW())<>\"No Rebate\",MeasureCalc(Table_PI[[#This Row],[Hide:\nFormula Name]],Table_SummaryPI[[#This Row],[Quantity]],Table_PI[[#This Row],[List 1]],Table_PI[[#This Row],[List 2]],Table_PI[[#This Row],[List 3]],Table_PI[[#This Row],[Size]],Table_PI[[#This Row],[Input 1]],Table_PI[[#This Row],[Input 2]],Table_PI[[#This Row],[Input 3]],Table_PI[[#This Row],[Input 4]],'Customer Information'!$AR$12,200,ROW()),\"\"),\"\")","v":""},{"$f":"IFERROR(IF(MeasureCalc(Table_PI[[#This Row],[Hide:\nFormula Name]],Table_SummaryPI[[#This Row],[Quantity]],Table_PI[[#This Row],[List 1]],Table_PI[[#This Row],[List 2]],Table_PI[[#This Row],[List 3]],Table_PI[[#This Row],[Size]],Table_PI[[#This Row],[Input 1]],Table_PI[[#This Row],[Input 2]],Table_PI[[#This Row],[Input 3]],Table_PI[[#This Row],[Input 4]],'Customer Information'!$AR$12,201,ROW())<>\"No Rebate\",MeasureCalc(Table_PI[[#This Row],[Hide:\nFormula Name]],Table_SummaryPI[[#This Row],[Quantity]],Table_PI[[#This Row],[List 1]],Table_PI[[#This Row],[List 2]],Table_PI[[#This Row],[List 3]],Table_PI[[#This Row],[Size]],Table_PI[[#This Row],[Input 1]],Table_PI[[#This Row],[Input 2]],Table_PI[[#This Row],[Input 3]],Table_PI[[#This Row],[Input 4]],'Customer Information'!$AR$12,201,ROW()),\"\"),\"\")","v":""}]
[{"$f":"Table_PI[[#This Row],[Line No.]]","v":""},{"$f":"IF(Table_SummaryPI[[#This Row],[MeassureCategory]]<>\"\",CONCATENATE(Table_SummaryPI[[#This Row],[MeassureCategory]],  \" - \", Table_SummaryPI[[#This Row],[ProposedMeasureCategory]],  \" - \", TEXT(Table_SummaryPI[[#This Row],[Size]],\"#,##0.00\"),\" \",Table_SummaryPI[[#This Row],[SizeUnit]]),\"\")","v":""},{"$f":"SUBSTITUTE(Table_PI[[#This Row],[Measure]],\"     \",\"\",1)","v":""},{"$f":"IF(Table_PI[[#This Row],[List 1]]<>\"\",Table_PI[[#This Row],[List 1]],\"\")","v":""},{"$f":"IF(Table_PI[[#This Row],[List 2]]<>\"\",Table_PI[[#This Row],[List 2]],\"\")","v":""},{"$f":"IF(Table_PI[[#This Row],[List 3]]<>\"\",Table_PI[[#This Row],[List 3]],\"\")","v":""},{"$f":"IF(Table_PI[[#This Row],[Manufacturer]]=\"\",\"\",Table_PI[[#This Row],[Manufacturer]])","v":""},{"$f":"IF(Table_PI[[#This Row],[Model Number]]=\"\",\"\",Table_PI[[#This Row],[Model Number]])","v":""},{"$f":"IF(Table_PI[[#This Row],[Serial Number(s)]]=\"\",\"\",Table_PI[[#This Row],[Serial Number(s)]])","v":""},null,{"$f":"IF(Table_PI[[#This Row],[Size]]=\"\",\"\",Table_PI[[#This Row],[Size]])","v":""},null,{"$f":"IFERROR(IF(AND(MeasureCalc(Table_PI[[#This Row],[Hide:\nFormula Name]],Table_SummaryPI[[#This Row],[Quantity]],Table_PI[[#This Row],[List 1]],Table_PI[[#This Row],[List 2]],Table_PI[[#This Row],[List 3]],Table_PI[[#This Row],[Size]],Table_PI[[#This Row],[Input 1]],Table_PI[[#This Row],[Input 2]],Table_PI[[#This Row],[Input 3]],Table_PI[[#This Row],[Input 4]],'Customer Information'!$AR$12,100,ROW())<>0,MeasureCalc(Table_PI[[#This Row],[Hide:\nFormula Name]],Table_SummaryPI[[#This Row],[Quantity]],Table_PI[[#This Row],[List 1]],Table_PI[[#This Row],[List 2]],Table_PI[[#This Row],[List 3]],Table_PI[[#This Row],[Size]],Table_PI[[#This Row],[Input 1]],Table_PI[[#This Row],[Input 2]],Table_PI[[#This Row],[Input 3]],Table_PI[[#This Row],[Input 4]],'Customer Information'!$AR$12,100,ROW())<>\"No Rebate\"),MeasureCalc(Table_PI[[#This Row],[Hide:\nFormula Name]],Table_SummaryPI[[#This Row],[Quantity]],Table_PI[[#This Row],[List 1]],Table_PI[[#This Row],[List 2]],Table_PI[[#This Row],[List 3]],Table_PI[[#This Row],[Size]],Table_PI[[#This Row],[Input 1]],Table_PI[[#This Row],[Input 2]],Table_PI[[#This Row],[Input 3]],Table_PI[[#This Row],[Input 4]],'Customer Information'!$AR$12,100,ROW()),\"\"),\"\")","v":""},{"$f":"IF(Table_PI[[#This Row],[Input 1]]<>\"\",Table_PI[[#This Row],[Input 1]],\"\")","v":""},null,{"$f":"IFERROR(IF(AND(MeasureCalc(Table_PI[[#This Row],[Hide:\nFormula Name]],Table_SummaryPI[[#This Row],[Quantity]],Table_PI[[#This Row],[List 1]],Table_PI[[#This Row],[List 2]],Table_PI[[#This Row],[List 3]],Table_PI[[#This Row],[Size]],Table_PI[[#This Row],[Input 1]],Table_PI[[#This Row],[Input 2]],Table_PI[[#This Row],[Input 3]],Table_PI[[#This Row],[Input 4]],'Customer Information'!$AR$12,101,ROW())<>0,MeasureCalc(Table_PI[[#This Row],[Hide:\nFormula Name]],Table_SummaryPI[[#This Row],[Quantity]],Table_PI[[#This Row],[List 1]],Table_PI[[#This Row],[List 2]],Table_PI[[#This Row],[List 3]],Table_PI[[#This Row],[Size]],Table_PI[[#This Row],[Input 1]],Table_PI[[#This Row],[Input 2]],Table_PI[[#This Row],[Input 3]],Table_PI[[#This Row],[Input 4]],'Customer Information'!$AR$12,101,ROW())<>\"No Rebate\"),MeasureCalc(Table_PI[[#This Row],[Hide:\nFormula Name]],Table_SummaryPI[[#This Row],[Quantity]],Table_PI[[#This Row],[List 1]],Table_PI[[#This Row],[List 2]],Table_PI[[#This Row],[List 3]],Table_PI[[#This Row],[Size]],Table_PI[[#This Row],[Input 1]],Table_PI[[#This Row],[Input 2]],Table_PI[[#This Row],[Input 3]],Table_PI[[#This Row],[Input 4]],'Customer Information'!$AR$12,101,ROW()),\"\"),\"\")","v":""},{"$f":"IF(Table_PI[[#This Row],[Input 2]]<>\"\",Table_PI[[#This Row],[Input 2]],\"\")","v":""},null,{"$f":"IFERROR(IF(AND(MeasureCalc(Table_PI[[#This Row],[Hide:\nFormula Name]],Table_SummaryPI[[#This Row],[Quantity]],Table_PI[[#This Row],[List 1]],Table_PI[[#This Row],[List 2]],Table_PI[[#This Row],[List 3]],Table_PI[[#This Row],[Size]],Table_PI[[#This Row],[Input 1]],Table_PI[[#This Row],[Input 2]],Table_PI[[#This Row],[Input 3]],Table_PI[[#This Row],[Input 4]],'Customer Information'!$AR$12,102,ROW())<>0,MeasureCalc(Table_PI[[#This Row],[Hide:\nFormula Name]],Table_SummaryPI[[#This Row],[Quantity]],Table_PI[[#This Row],[List 1]],Table_PI[[#This Row],[List 2]],Table_PI[[#This Row],[List 3]],Table_PI[[#This Row],[Size]],Table_PI[[#This Row],[Input 1]],Table_PI[[#This Row],[Input 2]],Table_PI[[#This Row],[Input 3]],Table_PI[[#This Row],[Input 4]],'Customer Information'!$AR$12,102,ROW())<>\"No Rebate\"),MeasureCalc(Table_PI[[#This Row],[Hide:\nFormula Name]],Table_SummaryPI[[#This Row],[Quantity]],Table_PI[[#This Row],[List 1]],Table_PI[[#This Row],[List 2]],Table_PI[[#This Row],[List 3]],Table_PI[[#This Row],[Size]],Table_PI[[#This Row],[Input 1]],Table_PI[[#This Row],[Input 2]],Table_PI[[#This Row],[Input 3]],Table_PI[[#This Row],[Input 4]],'Customer Information'!$AR$12,102,ROW()),\"\"),\"\")","v":""},{"$f":"IF(Table_PI[[#This Row],[Input 3]]<>\"\",Table_PI[[#This Row],[Input 3]],\"\")","v":""},null,{"$f":"IFERROR(IF(AND(MeasureCalc(Table_PI[[#This Row],[Hide:\nFormula Name]],Table_SummaryPI[[#This Row],[Quantity]],Table_PI[[#This Row],[List 1]],Table_PI[[#This Row],[List 2]],Table_PI[[#This Row],[List 3]],Table_PI[[#This Row],[Size]],Table_PI[[#This Row],[Input 1]],Table_PI[[#This Row],[Input 2]],Table_PI[[#This Row],[Input 3]],Table_PI[[#This Row],[Input 4]],'Customer Information'!$AR$12,103,ROW())<>0,MeasureCalc(Table_PI[[#This Row],[Hide:\nFormula Name]],Table_SummaryPI[[#This Row],[Quantity]],Table_PI[[#This Row],[List 1]],Table_PI[[#This Row],[List 2]],Table_PI[[#This Row],[List 3]],Table_PI[[#This Row],[Size]],Table_PI[[#This Row],[Input 1]],Table_PI[[#This Row],[Input 2]],Table_PI[[#This Row],[Input 3]],Table_PI[[#This Row],[Input 4]],'Customer Information'!$AR$12,103,ROW())<>\"No Rebate\"),MeasureCalc(Table_PI[[#This Row],[Hide:\nFormula Name]],Table_SummaryPI[[#This Row],[Quantity]],Table_PI[[#This Row],[List 1]],Table_PI[[#This Row],[List 2]],Table_PI[[#This Row],[List 3]],Table_PI[[#This Row],[Size]],Table_PI[[#This Row],[Input 1]],Table_PI[[#This Row],[Input 2]],Table_PI[[#This Row],[Input 3]],Table_PI[[#This Row],[Input 4]],'Customer Information'!$AR$12,103,ROW()),\"\"),\"\")","v":""},{"$f":"IF(Table_PI[[#This Row],[Input 4]]<>\"\",Table_PI[[#This Row],[Input 4]],\"\")","v":""},{"$f":"IF(Table_PI[[#This Row],[Quantity]]=\"\",\"\",Table_PI[[#This Row],[Quantity]])","v":""},{"$f":"IF(Table_PI[[#This Row],[Notes]]=\"\",\"\",Table_PI[[#This Row],[Notes]])","v":""},{"$f":"IF(OR(Table_PI[[#This Row],[Hide:\nBaseline kWh]]=\"\",Table_PI[[#This Row],[Hide:\nBaseline kWh]]=0),\"\",Table_PI[[#This Row],[Hide:\nBaseline kWh]])","v":""},{"$f":"IF(OR(Table_PI[[#This Row],[Hide:\nBaseline kW]]=\"\",Table_PI[[#This Row],[Hide:\nBaseline kW]]=0),\"\",Table_PI[[#This Row],[Hide:\nBaseline kW]])","v":""},{"$f":"IF(OR(Table_PI[[#This Row],[Hide:\nProposed kWh]]=\"\",Table_PI[[#This Row],[Hide:\nProposed kWh]]=0),\"\",Table_PI[[#This Row],[Hide:\nProposed kWh]])","v":""},{"$f":"IF(OR(Table_PI[[#This Row],[Hide:\nProposed kW]]=\"\",Table_PI[[#This Row],[Hide:\nProposed kW]]=0),\"\",Table_PI[[#This Row],[Hide:\nProposed kW]])","v":""},{"$f":"IF(OR(Table_PI[[#This Row],[Rebate]]=\"\",Table_PI[[#This Row],[Rebate]]=0),\"\",Table_PI[[#This Row],[Rebate]])","v":""},{"$f":"IF(OR(Table_PI[[#This Row],[Hide:\nIncremental Cost]]=\"\",Table_PI[[#This Row],[Hide:\nIncremental Cost]]=0),\"\",Table_PI[[#This Row],[Hide:\nIncremental Cost]])","v":""},{"$f":"IFERROR(IF(Table_SummaryPI[[#This Row],[kWhSavings]]=\"\",\"\",ROUND(Table_SummaryPI[[#This Row],[kWhSavings]]/$AG$401*'Customer Information'!$BC$17,2)),0)","v":""},{"$f":"IF(OR(Table_PI[[#This Row],[Annual kWh]]=\"\",Table_PI[[#This Row],[Annual kWh]]=0),\"\",Table_PI[[#This Row],[Annual kWh]])","v":""},{"$f":"IF(OR(Table_PI[[#This Row],[Peak kW]]=\"\",Table_PI[[#This Row],[Peak kW]]=0),\"\",Table_PI[[#This Row],[Peak kW]])","v":""},{"$f":"IFERROR(IF(Table_SummaryPI[[#This Row],[kWhSavings]]=\"\",\"\",$AU$9*Table_SummaryPI[[#This Row],[kWhSavings]]),0)","v":""},{"$f":"IFERROR(IF(Table_SummaryPI[[#This Row],[kWhSavings]]=\"\",\"\",$AU$14*Table_SummaryPI[[#This Row],[kWhSavings]]),0)","v":""},{"$f":"IFERROR(IF(Table_SummaryPI[[#This Row],[kWhSavings]]=\"\",\"\",$AU$18*Table_SummaryPI[[#This Row],[kWhSavings]]),0)","v":""},{"$f":"IFERROR(IF(Table_SummaryPI[[#This Row],[kWhSavings]]=\"\",\"\",$AU$22*Table_SummaryPI[[#This Row],[kWhSavings]]),0)","v":""},{"$f":"IFERROR(IF(MeasureCalc(Table_PI[[#This Row],[Hide:\nFormula Name]],Table_SummaryPI[[#This Row],[Quantity]],Table_PI[[#This Row],[List 1]],Table_PI[[#This Row],[List 2]],Table_PI[[#This Row],[List 3]],Table_PI[[#This Row],[Size]],Table_PI[[#This Row],[Input 1]],Table_PI[[#This Row],[Input 2]],Table_PI[[#This Row],[Input 3]],Table_PI[[#This Row],[Input 4]],'Customer Information'!$AR$12,200,ROW())<>\"No Rebate\",MeasureCalc(Table_PI[[#This Row],[Hide:\nFormula Name]],Table_SummaryPI[[#This Row],[Quantity]],Table_PI[[#This Row],[List 1]],Table_PI[[#This Row],[List 2]],Table_PI[[#This Row],[List 3]],Table_PI[[#This Row],[Size]],Table_PI[[#This Row],[Input 1]],Table_PI[[#This Row],[Input 2]],Table_PI[[#This Row],[Input 3]],Table_PI[[#This Row],[Input 4]],'Customer Information'!$AR$12,200,ROW()),\"\"),\"\")","v":""},{"$f":"IFERROR(IF(MeasureCalc(Table_PI[[#This Row],[Hide:\nFormula Name]],Table_SummaryPI[[#This Row],[Quantity]],Table_PI[[#This Row],[List 1]],Table_PI[[#This Row],[List 2]],Table_PI[[#This Row],[List 3]],Table_PI[[#This Row],[Size]],Table_PI[[#This Row],[Input 1]],Table_PI[[#This Row],[Input 2]],Table_PI[[#This Row],[Input 3]],Table_PI[[#This Row],[Input 4]],'Customer Information'!$AR$12,201,ROW())<>\"No Rebate\",MeasureCalc(Table_PI[[#This Row],[Hide:\nFormula Name]],Table_SummaryPI[[#This Row],[Quantity]],Table_PI[[#This Row],[List 1]],Table_PI[[#This Row],[List 2]],Table_PI[[#This Row],[List 3]],Table_PI[[#This Row],[Size]],Table_PI[[#This Row],[Input 1]],Table_PI[[#This Row],[Input 2]],Table_PI[[#This Row],[Input 3]],Table_PI[[#This Row],[Input 4]],'Customer Information'!$AR$12,201,ROW()),\"\"),\"\")","v":""}]
[{"$f":"Table_PI[[#This Row],[Line No.]]","v":""},{"$f":"IF(Table_SummaryPI[[#This Row],[MeassureCategory]]<>\"\",CONCATENATE(Table_SummaryPI[[#This Row],[MeassureCategory]],  \" - \", Table_SummaryPI[[#This Row],[ProposedMeasureCategory]],  \" - \", TEXT(Table_SummaryPI[[#This Row],[Size]],\"#,##0.00\"),\" \",Table_SummaryPI[[#This Row],[SizeUnit]]),\"\")","v":""},{"$f":"SUBSTITUTE(Table_PI[[#This Row],[Measure]],\"     \",\"\",1)","v":""},{"$f":"IF(Table_PI[[#This Row],[List 1]]<>\"\",Table_PI[[#This Row],[List 1]],\"\")","v":""},{"$f":"IF(Table_PI[[#This Row],[List 2]]<>\"\",Table_PI[[#This Row],[List 2]],\"\")","v":""},{"$f":"IF(Table_PI[[#This Row],[List 3]]<>\"\",Table_PI[[#This Row],[List 3]],\"\")","v":""},{"$f":"IF(Table_PI[[#This Row],[Manufacturer]]=\"\",\"\",Table_PI[[#This Row],[Manufacturer]])","v":""},{"$f":"IF(Table_PI[[#This Row],[Model Number]]=\"\",\"\",Table_PI[[#This Row],[Model Number]])","v":""},{"$f":"IF(Table_PI[[#This Row],[Serial Number(s)]]=\"\",\"\",Table_PI[[#This Row],[Serial Number(s)]])","v":""},null,{"$f":"IF(Table_PI[[#This Row],[Size]]=\"\",\"\",Table_PI[[#This Row],[Size]])","v":""},null,{"$f":"IFERROR(IF(AND(MeasureCalc(Table_PI[[#This Row],[Hide:\nFormula Name]],Table_SummaryPI[[#This Row],[Quantity]],Table_PI[[#This Row],[List 1]],Table_PI[[#This Row],[List 2]],Table_PI[[#This Row],[List 3]],Table_PI[[#This Row],[Size]],Table_PI[[#This Row],[Input 1]],Table_PI[[#This Row],[Input 2]],Table_PI[[#This Row],[Input 3]],Table_PI[[#This Row],[Input 4]],'Customer Information'!$AR$12,100,ROW())<>0,MeasureCalc(Table_PI[[#This Row],[Hide:\nFormula Name]],Table_SummaryPI[[#This Row],[Quantity]],Table_PI[[#This Row],[List 1]],Table_PI[[#This Row],[List 2]],Table_PI[[#This Row],[List 3]],Table_PI[[#This Row],[Size]],Table_PI[[#This Row],[Input 1]],Table_PI[[#This Row],[Input 2]],Table_PI[[#This Row],[Input 3]],Table_PI[[#This Row],[Input 4]],'Customer Information'!$AR$12,100,ROW())<>\"No Rebate\"),MeasureCalc(Table_PI[[#This Row],[Hide:\nFormula Name]],Table_SummaryPI[[#This Row],[Quantity]],Table_PI[[#This Row],[List 1]],Table_PI[[#This Row],[List 2]],Table_PI[[#This Row],[List 3]],Table_PI[[#This Row],[Size]],Table_PI[[#This Row],[Input 1]],Table_PI[[#This Row],[Input 2]],Table_PI[[#This Row],[Input 3]],Table_PI[[#This Row],[Input 4]],'Customer Information'!$AR$12,100,ROW()),\"\"),\"\")","v":""},{"$f":"IF(Table_PI[[#This Row],[Input 1]]<>\"\",Table_PI[[#This Row],[Input 1]],\"\")","v":""},null,{"$f":"IFERROR(IF(AND(MeasureCalc(Table_PI[[#This Row],[Hide:\nFormula Name]],Table_SummaryPI[[#This Row],[Quantity]],Table_PI[[#This Row],[List 1]],Table_PI[[#This Row],[List 2]],Table_PI[[#This Row],[List 3]],Table_PI[[#This Row],[Size]],Table_PI[[#This Row],[Input 1]],Table_PI[[#This Row],[Input 2]],Table_PI[[#This Row],[Input 3]],Table_PI[[#This Row],[Input 4]],'Customer Information'!$AR$12,101,ROW())<>0,MeasureCalc(Table_PI[[#This Row],[Hide:\nFormula Name]],Table_SummaryPI[[#This Row],[Quantity]],Table_PI[[#This Row],[List 1]],Table_PI[[#This Row],[List 2]],Table_PI[[#This Row],[List 3]],Table_PI[[#This Row],[Size]],Table_PI[[#This Row],[Input 1]],Table_PI[[#This Row],[Input 2]],Table_PI[[#This Row],[Input 3]],Table_PI[[#This Row],[Input 4]],'Customer Information'!$AR$12,101,ROW())<>\"No Rebate\"),MeasureCalc(Table_PI[[#This Row],[Hide:\nFormula Name]],Table_SummaryPI[[#This Row],[Quantity]],Table_PI[[#This Row],[List 1]],Table_PI[[#This Row],[List 2]],Table_PI[[#This Row],[List 3]],Table_PI[[#This Row],[Size]],Table_PI[[#This Row],[Input 1]],Table_PI[[#This Row],[Input 2]],Table_PI[[#This Row],[Input 3]],Table_PI[[#This Row],[Input 4]],'Customer Information'!$AR$12,101,ROW()),\"\"),\"\")","v":""},{"$f":"IF(Table_PI[[#This Row],[Input 2]]<>\"\",Table_PI[[#This Row],[Input 2]],\"\")","v":""},null,{"$f":"IFERROR(IF(AND(MeasureCalc(Table_PI[[#This Row],[Hide:\nFormula Name]],Table_SummaryPI[[#This Row],[Quantity]],Table_PI[[#This Row],[List 1]],Table_PI[[#This Row],[List 2]],Table_PI[[#This Row],[List 3]],Table_PI[[#This Row],[Size]],Table_PI[[#This Row],[Input 1]],Table_PI[[#This Row],[Input 2]],Table_PI[[#This Row],[Input 3]],Table_PI[[#This Row],[Input 4]],'Customer Information'!$AR$12,102,ROW())<>0,MeasureCalc(Table_PI[[#This Row],[Hide:\nFormula Name]],Table_SummaryPI[[#This Row],[Quantity]],Table_PI[[#This Row],[List 1]],Table_PI[[#This Row],[List 2]],Table_PI[[#This Row],[List 3]],Table_PI[[#This Row],[Size]],Table_PI[[#This Row],[Input 1]],Table_PI[[#This Row],[Input 2]],Table_PI[[#This Row],[Input 3]],Table_PI[[#This Row],[Input 4]],'Customer Information'!$AR$12,102,ROW())<>\"No Rebate\"),MeasureCalc(Table_PI[[#This Row],[Hide:\nFormula Name]],Table_SummaryPI[[#This Row],[Quantity]],Table_PI[[#This Row],[List 1]],Table_PI[[#This Row],[List 2]],Table_PI[[#This Row],[List 3]],Table_PI[[#This Row],[Size]],Table_PI[[#This Row],[Input 1]],Table_PI[[#This Row],[Input 2]],Table_PI[[#This Row],[Input 3]],Table_PI[[#This Row],[Input 4]],'Customer Information'!$AR$12,102,ROW()),\"\"),\"\")","v":""},{"$f":"IF(Table_PI[[#This Row],[Input 3]]<>\"\",Table_PI[[#This Row],[Input 3]],\"\")","v":""},null,{"$f":"IFERROR(IF(AND(MeasureCalc(Table_PI[[#This Row],[Hide:\nFormula Name]],Table_SummaryPI[[#This Row],[Quantity]],Table_PI[[#This Row],[List 1]],Table_PI[[#This Row],[List 2]],Table_PI[[#This Row],[List 3]],Table_PI[[#This Row],[Size]],Table_PI[[#This Row],[Input 1]],Table_PI[[#This Row],[Input 2]],Table_PI[[#This Row],[Input 3]],Table_PI[[#This Row],[Input 4]],'Customer Information'!$AR$12,103,ROW())<>0,MeasureCalc(Table_PI[[#This Row],[Hide:\nFormula Name]],Table_SummaryPI[[#This Row],[Quantity]],Table_PI[[#This Row],[List 1]],Table_PI[[#This Row],[List 2]],Table_PI[[#This Row],[List 3]],Table_PI[[#This Row],[Size]],Table_PI[[#This Row],[Input 1]],Table_PI[[#This Row],[Input 2]],Table_PI[[#This Row],[Input 3]],Table_PI[[#This Row],[Input 4]],'Customer Information'!$AR$12,103,ROW())<>\"No Rebate\"),MeasureCalc(Table_PI[[#This Row],[Hide:\nFormula Name]],Table_SummaryPI[[#This Row],[Quantity]],Table_PI[[#This Row],[List 1]],Table_PI[[#This Row],[List 2]],Table_PI[[#This Row],[List 3]],Table_PI[[#This Row],[Size]],Table_PI[[#This Row],[Input 1]],Table_PI[[#This Row],[Input 2]],Table_PI[[#This Row],[Input 3]],Table_PI[[#This Row],[Input 4]],'Customer Information'!$AR$12,103,ROW()),\"\"),\"\")","v":""},{"$f":"IF(Table_PI[[#This Row],[Input 4]]<>\"\",Table_PI[[#This Row],[Input 4]],\"\")","v":""},{"$f":"IF(Table_PI[[#This Row],[Quantity]]=\"\",\"\",Table_PI[[#This Row],[Quantity]])","v":""},{"$f":"IF(Table_PI[[#This Row],[Notes]]=\"\",\"\",Table_PI[[#This Row],[Notes]])","v":""},{"$f":"IF(OR(Table_PI[[#This Row],[Hide:\nBaseline kWh]]=\"\",Table_PI[[#This Row],[Hide:\nBaseline kWh]]=0),\"\",Table_PI[[#This Row],[Hide:\nBaseline kWh]])","v":""},{"$f":"IF(OR(Table_PI[[#This Row],[Hide:\nBaseline kW]]=\"\",Table_PI[[#This Row],[Hide:\nBaseline kW]]=0),\"\",Table_PI[[#This Row],[Hide:\nBaseline kW]])","v":""},{"$f":"IF(OR(Table_PI[[#This Row],[Hide:\nProposed kWh]]=\"\",Table_PI[[#This Row],[Hide:\nProposed kWh]]=0),\"\",Table_PI[[#This Row],[Hide:\nProposed kWh]])","v":""},{"$f":"IF(OR(Table_PI[[#This Row],[Hide:\nProposed kW]]=\"\",Table_PI[[#This Row],[Hide:\nProposed kW]]=0),\"\",Table_PI[[#This Row],[Hide:\nProposed kW]])","v":""},{"$f":"IF(OR(Table_PI[[#This Row],[Rebate]]=\"\",Table_PI[[#This Row],[Rebate]]=0),\"\",Table_PI[[#This Row],[Rebate]])","v":""},{"$f":"IF(OR(Table_PI[[#This Row],[Hide:\nIncremental Cost]]=\"\",Table_PI[[#This Row],[Hide:\nIncremental Cost]]=0),\"\",Table_PI[[#This Row],[Hide:\nIncremental Cost]])","v":""},{"$f":"IFERROR(IF(Table_SummaryPI[[#This Row],[kWhSavings]]=\"\",\"\",ROUND(Table_SummaryPI[[#This Row],[kWhSavings]]/$AG$401*'Customer Information'!$BC$17,2)),0)","v":""},{"$f":"IF(OR(Table_PI[[#This Row],[Annual kWh]]=\"\",Table_PI[[#This Row],[Annual kWh]]=0),\"\",Table_PI[[#This Row],[Annual kWh]])","v":""},{"$f":"IF(OR(Table_PI[[#This Row],[Peak kW]]=\"\",Table_PI[[#This Row],[Peak kW]]=0),\"\",Table_PI[[#This Row],[Peak kW]])","v":""},{"$f":"IFERROR(IF(Table_SummaryPI[[#This Row],[kWhSavings]]=\"\",\"\",$AU$9*Table_SummaryPI[[#This Row],[kWhSavings]]),0)","v":""},{"$f":"IFERROR(IF(Table_SummaryPI[[#This Row],[kWhSavings]]=\"\",\"\",$AU$14*Table_SummaryPI[[#This Row],[kWhSavings]]),0)","v":""},{"$f":"IFERROR(IF(Table_SummaryPI[[#This Row],[kWhSavings]]=\"\",\"\",$AU$18*Table_SummaryPI[[#This Row],[kWhSavings]]),0)","v":""},{"$f":"IFERROR(IF(Table_SummaryPI[[#This Row],[kWhSavings]]=\"\",\"\",$AU$22*Table_SummaryPI[[#This Row],[kWhSavings]]),0)","v":""},{"$f":"IFERROR(IF(MeasureCalc(Table_PI[[#This Row],[Hide:\nFormula Name]],Table_SummaryPI[[#This Row],[Quantity]],Table_PI[[#This Row],[List 1]],Table_PI[[#This Row],[List 2]],Table_PI[[#This Row],[List 3]],Table_PI[[#This Row],[Size]],Table_PI[[#This Row],[Input 1]],Table_PI[[#This Row],[Input 2]],Table_PI[[#This Row],[Input 3]],Table_PI[[#This Row],[Input 4]],'Customer Information'!$AR$12,200,ROW())<>\"No Rebate\",MeasureCalc(Table_PI[[#This Row],[Hide:\nFormula Name]],Table_SummaryPI[[#This Row],[Quantity]],Table_PI[[#This Row],[List 1]],Table_PI[[#This Row],[List 2]],Table_PI[[#This Row],[List 3]],Table_PI[[#This Row],[Size]],Table_PI[[#This Row],[Input 1]],Table_PI[[#This Row],[Input 2]],Table_PI[[#This Row],[Input 3]],Table_PI[[#This Row],[Input 4]],'Customer Information'!$AR$12,200,ROW()),\"\"),\"\")","v":""},{"$f":"IFERROR(IF(MeasureCalc(Table_PI[[#This Row],[Hide:\nFormula Name]],Table_SummaryPI[[#This Row],[Quantity]],Table_PI[[#This Row],[List 1]],Table_PI[[#This Row],[List 2]],Table_PI[[#This Row],[List 3]],Table_PI[[#This Row],[Size]],Table_PI[[#This Row],[Input 1]],Table_PI[[#This Row],[Input 2]],Table_PI[[#This Row],[Input 3]],Table_PI[[#This Row],[Input 4]],'Customer Information'!$AR$12,201,ROW())<>\"No Rebate\",MeasureCalc(Table_PI[[#This Row],[Hide:\nFormula Name]],Table_SummaryPI[[#This Row],[Quantity]],Table_PI[[#This Row],[List 1]],Table_PI[[#This Row],[List 2]],Table_PI[[#This Row],[List 3]],Table_PI[[#This Row],[Size]],Table_PI[[#This Row],[Input 1]],Table_PI[[#This Row],[Input 2]],Table_PI[[#This Row],[Input 3]],Table_PI[[#This Row],[Input 4]],'Customer Information'!$AR$12,201,ROW()),\"\"),\"\")","v":""}]
[{"$f":"Table_PI[[#This Row],[Line No.]]","v":""},{"$f":"IF(Table_SummaryPI[[#This Row],[MeassureCategory]]<>\"\",CONCATENATE(Table_SummaryPI[[#This Row],[MeassureCategory]],  \" - \", Table_SummaryPI[[#This Row],[ProposedMeasureCategory]],  \" - \", TEXT(Table_SummaryPI[[#This Row],[Size]],\"#,##0.00\"),\" \",Table_SummaryPI[[#This Row],[SizeUnit]]),\"\")","v":""},{"$f":"SUBSTITUTE(Table_PI[[#This Row],[Measure]],\"     \",\"\",1)","v":""},{"$f":"IF(Table_PI[[#This Row],[List 1]]<>\"\",Table_PI[[#This Row],[List 1]],\"\")","v":""},{"$f":"IF(Table_PI[[#This Row],[List 2]]<>\"\",Table_PI[[#This Row],[List 2]],\"\")","v":""},{"$f":"IF(Table_PI[[#This Row],[List 3]]<>\"\",Table_PI[[#This Row],[List 3]],\"\")","v":""},{"$f":"IF(Table_PI[[#This Row],[Manufacturer]]=\"\",\"\",Table_PI[[#This Row],[Manufacturer]])","v":""},{"$f":"IF(Table_PI[[#This Row],[Model Number]]=\"\",\"\",Table_PI[[#This Row],[Model Number]])","v":""},{"$f":"IF(Table_PI[[#This Row],[Serial Number(s)]]=\"\",\"\",Table_PI[[#This Row],[Serial Number(s)]])","v":""},null,{"$f":"IF(Table_PI[[#This Row],[Size]]=\"\",\"\",Table_PI[[#This Row],[Size]])","v":""},null,{"$f":"IFERROR(IF(AND(MeasureCalc(Table_PI[[#This Row],[Hide:\nFormula Name]],Table_SummaryPI[[#This Row],[Quantity]],Table_PI[[#This Row],[List 1]],Table_PI[[#This Row],[List 2]],Table_PI[[#This Row],[List 3]],Table_PI[[#This Row],[Size]],Table_PI[[#This Row],[Input 1]],Table_PI[[#This Row],[Input 2]],Table_PI[[#This Row],[Input 3]],Table_PI[[#This Row],[Input 4]],'Customer Information'!$AR$12,100,ROW())<>0,MeasureCalc(Table_PI[[#This Row],[Hide:\nFormula Name]],Table_SummaryPI[[#This Row],[Quantity]],Table_PI[[#This Row],[List 1]],Table_PI[[#This Row],[List 2]],Table_PI[[#This Row],[List 3]],Table_PI[[#This Row],[Size]],Table_PI[[#This Row],[Input 1]],Table_PI[[#This Row],[Input 2]],Table_PI[[#This Row],[Input 3]],Table_PI[[#This Row],[Input 4]],'Customer Information'!$AR$12,100,ROW())<>\"No Rebate\"),MeasureCalc(Table_PI[[#This Row],[Hide:\nFormula Name]],Table_SummaryPI[[#This Row],[Quantity]],Table_PI[[#This Row],[List 1]],Table_PI[[#This Row],[List 2]],Table_PI[[#This Row],[List 3]],Table_PI[[#This Row],[Size]],Table_PI[[#This Row],[Input 1]],Table_PI[[#This Row],[Input 2]],Table_PI[[#This Row],[Input 3]],Table_PI[[#This Row],[Input 4]],'Customer Information'!$AR$12,100,ROW()),\"\"),\"\")","v":""},{"$f":"IF(Table_PI[[#This Row],[Input 1]]<>\"\",Table_PI[[#This Row],[Input 1]],\"\")","v":""},null,{"$f":"IFERROR(IF(AND(MeasureCalc(Table_PI[[#This Row],[Hide:\nFormula Name]],Table_SummaryPI[[#This Row],[Quantity]],Table_PI[[#This Row],[List 1]],Table_PI[[#This Row],[List 2]],Table_PI[[#This Row],[List 3]],Table_PI[[#This Row],[Size]],Table_PI[[#This Row],[Input 1]],Table_PI[[#This Row],[Input 2]],Table_PI[[#This Row],[Input 3]],Table_PI[[#This Row],[Input 4]],'Customer Information'!$AR$12,101,ROW())<>0,MeasureCalc(Table_PI[[#This Row],[Hide:\nFormula Name]],Table_SummaryPI[[#This Row],[Quantity]],Table_PI[[#This Row],[List 1]],Table_PI[[#This Row],[List 2]],Table_PI[[#This Row],[List 3]],Table_PI[[#This Row],[Size]],Table_PI[[#This Row],[Input 1]],Table_PI[[#This Row],[Input 2]],Table_PI[[#This Row],[Input 3]],Table_PI[[#This Row],[Input 4]],'Customer Information'!$AR$12,101,ROW())<>\"No Rebate\"),MeasureCalc(Table_PI[[#This Row],[Hide:\nFormula Name]],Table_SummaryPI[[#This Row],[Quantity]],Table_PI[[#This Row],[List 1]],Table_PI[[#This Row],[List 2]],Table_PI[[#This Row],[List 3]],Table_PI[[#This Row],[Size]],Table_PI[[#This Row],[Input 1]],Table_PI[[#This Row],[Input 2]],Table_PI[[#This Row],[Input 3]],Table_PI[[#This Row],[Input 4]],'Customer Information'!$AR$12,101,ROW()),\"\"),\"\")","v":""},{"$f":"IF(Table_PI[[#This Row],[Input 2]]<>\"\",Table_PI[[#This Row],[Input 2]],\"\")","v":""},null,{"$f":"IFERROR(IF(AND(MeasureCalc(Table_PI[[#This Row],[Hide:\nFormula Name]],Table_SummaryPI[[#This Row],[Quantity]],Table_PI[[#This Row],[List 1]],Table_PI[[#This Row],[List 2]],Table_PI[[#This Row],[List 3]],Table_PI[[#This Row],[Size]],Table_PI[[#This Row],[Input 1]],Table_PI[[#This Row],[Input 2]],Table_PI[[#This Row],[Input 3]],Table_PI[[#This Row],[Input 4]],'Customer Information'!$AR$12,102,ROW())<>0,MeasureCalc(Table_PI[[#This Row],[Hide:\nFormula Name]],Table_SummaryPI[[#This Row],[Quantity]],Table_PI[[#This Row],[List 1]],Table_PI[[#This Row],[List 2]],Table_PI[[#This Row],[List 3]],Table_PI[[#This Row],[Size]],Table_PI[[#This Row],[Input 1]],Table_PI[[#This Row],[Input 2]],Table_PI[[#This Row],[Input 3]],Table_PI[[#This Row],[Input 4]],'Customer Information'!$AR$12,102,ROW())<>\"No Rebate\"),MeasureCalc(Table_PI[[#This Row],[Hide:\nFormula Name]],Table_SummaryPI[[#This Row],[Quantity]],Table_PI[[#This Row],[List 1]],Table_PI[[#This Row],[List 2]],Table_PI[[#This Row],[List 3]],Table_PI[[#This Row],[Size]],Table_PI[[#This Row],[Input 1]],Table_PI[[#This Row],[Input 2]],Table_PI[[#This Row],[Input 3]],Table_PI[[#This Row],[Input 4]],'Customer Information'!$AR$12,102,ROW()),\"\"),\"\")","v":""},{"$f":"IF(Table_PI[[#This Row],[Input 3]]<>\"\",Table_PI[[#This Row],[Input 3]],\"\")","v":""},null,{"$f":"IFERROR(IF(AND(MeasureCalc(Table_PI[[#This Row],[Hide:\nFormula Name]],Table_SummaryPI[[#This Row],[Quantity]],Table_PI[[#This Row],[List 1]],Table_PI[[#This Row],[List 2]],Table_PI[[#This Row],[List 3]],Table_PI[[#This Row],[Size]],Table_PI[[#This Row],[Input 1]],Table_PI[[#This Row],[Input 2]],Table_PI[[#This Row],[Input 3]],Table_PI[[#This Row],[Input 4]],'Customer Information'!$AR$12,103,ROW())<>0,MeasureCalc(Table_PI[[#This Row],[Hide:\nFormula Name]],Table_SummaryPI[[#This Row],[Quantity]],Table_PI[[#This Row],[List 1]],Table_PI[[#This Row],[List 2]],Table_PI[[#This Row],[List 3]],Table_PI[[#This Row],[Size]],Table_PI[[#This Row],[Input 1]],Table_PI[[#This Row],[Input 2]],Table_PI[[#This Row],[Input 3]],Table_PI[[#This Row],[Input 4]],'Customer Information'!$AR$12,103,ROW())<>\"No Rebate\"),MeasureCalc(Table_PI[[#This Row],[Hide:\nFormula Name]],Table_SummaryPI[[#This Row],[Quantity]],Table_PI[[#This Row],[List 1]],Table_PI[[#This Row],[List 2]],Table_PI[[#This Row],[List 3]],Table_PI[[#This Row],[Size]],Table_PI[[#This Row],[Input 1]],Table_PI[[#This Row],[Input 2]],Table_PI[[#This Row],[Input 3]],Table_PI[[#This Row],[Input 4]],'Customer Information'!$AR$12,103,ROW()),\"\"),\"\")","v":""},{"$f":"IF(Table_PI[[#This Row],[Input 4]]<>\"\",Table_PI[[#This Row],[Input 4]],\"\")","v":""},{"$f":"IF(Table_PI[[#This Row],[Quantity]]=\"\",\"\",Table_PI[[#This Row],[Quantity]])","v":""},{"$f":"IF(Table_PI[[#This Row],[Notes]]=\"\",\"\",Table_PI[[#This Row],[Notes]])","v":""},{"$f":"IF(OR(Table_PI[[#This Row],[Hide:\nBaseline kWh]]=\"\",Table_PI[[#This Row],[Hide:\nBaseline kWh]]=0),\"\",Table_PI[[#This Row],[Hide:\nBaseline kWh]])","v":""},{"$f":"IF(OR(Table_PI[[#This Row],[Hide:\nBaseline kW]]=\"\",Table_PI[[#This Row],[Hide:\nBaseline kW]]=0),\"\",Table_PI[[#This Row],[Hide:\nBaseline kW]])","v":""},{"$f":"IF(OR(Table_PI[[#This Row],[Hide:\nProposed kWh]]=\"\",Table_PI[[#This Row],[Hide:\nProposed kWh]]=0),\"\",Table_PI[[#This Row],[Hide:\nProposed kWh]])","v":""},{"$f":"IF(OR(Table_PI[[#This Row],[Hide:\nProposed kW]]=\"\",Table_PI[[#This Row],[Hide:\nProposed kW]]=0),\"\",Table_PI[[#This Row],[Hide:\nProposed kW]])","v":""},{"$f":"IF(OR(Table_PI[[#This Row],[Rebate]]=\"\",Table_PI[[#This Row],[Rebate]]=0),\"\",Table_PI[[#This Row],[Rebate]])","v":""},{"$f":"IF(OR(Table_PI[[#This Row],[Hide:\nIncremental Cost]]=\"\",Table_PI[[#This Row],[Hide:\nIncremental Cost]]=0),\"\",Table_PI[[#This Row],[Hide:\nIncremental Cost]])","v":""},{"$f":"IFERROR(IF(Table_SummaryPI[[#This Row],[kWhSavings]]=\"\",\"\",ROUND(Table_SummaryPI[[#This Row],[kWhSavings]]/$AG$401*'Customer Information'!$BC$17,2)),0)","v":""},{"$f":"IF(OR(Table_PI[[#This Row],[Annual kWh]]=\"\",Table_PI[[#This Row],[Annual kWh]]=0),\"\",Table_PI[[#This Row],[Annual kWh]])","v":""},{"$f":"IF(OR(Table_PI[[#This Row],[Peak kW]]=\"\",Table_PI[[#This Row],[Peak kW]]=0),\"\",Table_PI[[#This Row],[Peak kW]])","v":""},{"$f":"IFERROR(IF(Table_SummaryPI[[#This Row],[kWhSavings]]=\"\",\"\",$AU$9*Table_SummaryPI[[#This Row],[kWhSavings]]),0)","v":""},{"$f":"IFERROR(IF(Table_SummaryPI[[#This Row],[kWhSavings]]=\"\",\"\",$AU$14*Table_SummaryPI[[#This Row],[kWhSavings]]),0)","v":""},{"$f":"IFERROR(IF(Table_SummaryPI[[#This Row],[kWhSavings]]=\"\",\"\",$AU$18*Table_SummaryPI[[#This Row],[kWhSavings]]),0)","v":""},{"$f":"IFERROR(IF(Table_SummaryPI[[#This Row],[kWhSavings]]=\"\",\"\",$AU$22*Table_SummaryPI[[#This Row],[kWhSavings]]),0)","v":""},{"$f":"IFERROR(IF(MeasureCalc(Table_PI[[#This Row],[Hide:\nFormula Name]],Table_SummaryPI[[#This Row],[Quantity]],Table_PI[[#This Row],[List 1]],Table_PI[[#This Row],[List 2]],Table_PI[[#This Row],[List 3]],Table_PI[[#This Row],[Size]],Table_PI[[#This Row],[Input 1]],Table_PI[[#This Row],[Input 2]],Table_PI[[#This Row],[Input 3]],Table_PI[[#This Row],[Input 4]],'Customer Information'!$AR$12,200,ROW())<>\"No Rebate\",MeasureCalc(Table_PI[[#This Row],[Hide:\nFormula Name]],Table_SummaryPI[[#This Row],[Quantity]],Table_PI[[#This Row],[List 1]],Table_PI[[#This Row],[List 2]],Table_PI[[#This Row],[List 3]],Table_PI[[#This Row],[Size]],Table_PI[[#This Row],[Input 1]],Table_PI[[#This Row],[Input 2]],Table_PI[[#This Row],[Input 3]],Table_PI[[#This Row],[Input 4]],'Customer Information'!$AR$12,200,ROW()),\"\"),\"\")","v":""},{"$f":"IFERROR(IF(MeasureCalc(Table_PI[[#This Row],[Hide:\nFormula Name]],Table_SummaryPI[[#This Row],[Quantity]],Table_PI[[#This Row],[List 1]],Table_PI[[#This Row],[List 2]],Table_PI[[#This Row],[List 3]],Table_PI[[#This Row],[Size]],Table_PI[[#This Row],[Input 1]],Table_PI[[#This Row],[Input 2]],Table_PI[[#This Row],[Input 3]],Table_PI[[#This Row],[Input 4]],'Customer Information'!$AR$12,201,ROW())<>\"No Rebate\",MeasureCalc(Table_PI[[#This Row],[Hide:\nFormula Name]],Table_SummaryPI[[#This Row],[Quantity]],Table_PI[[#This Row],[List 1]],Table_PI[[#This Row],[List 2]],Table_PI[[#This Row],[List 3]],Table_PI[[#This Row],[Size]],Table_PI[[#This Row],[Input 1]],Table_PI[[#This Row],[Input 2]],Table_PI[[#This Row],[Input 3]],Table_PI[[#This Row],[Input 4]],'Customer Information'!$AR$12,201,ROW()),\"\"),\"\")","v":""}]
[{"$f":"Table_PI[[#This Row],[Line No.]]","v":""},{"$f":"IF(Table_SummaryPI[[#This Row],[MeassureCategory]]<>\"\",CONCATENATE(Table_SummaryPI[[#This Row],[MeassureCategory]],  \" - \", Table_SummaryPI[[#This Row],[ProposedMeasureCategory]],  \" - \", TEXT(Table_SummaryPI[[#This Row],[Size]],\"#,##0.00\"),\" \",Table_SummaryPI[[#This Row],[SizeUnit]]),\"\")","v":""},{"$f":"SUBSTITUTE(Table_PI[[#This Row],[Measure]],\"     \",\"\",1)","v":""},{"$f":"IF(Table_PI[[#This Row],[List 1]]<>\"\",Table_PI[[#This Row],[List 1]],\"\")","v":""},{"$f":"IF(Table_PI[[#This Row],[List 2]]<>\"\",Table_PI[[#This Row],[List 2]],\"\")","v":""},{"$f":"IF(Table_PI[[#This Row],[List 3]]<>\"\",Table_PI[[#This Row],[List 3]],\"\")","v":""},{"$f":"IF(Table_PI[[#This Row],[Manufacturer]]=\"\",\"\",Table_PI[[#This Row],[Manufacturer]])","v":""},{"$f":"IF(Table_PI[[#This Row],[Model Number]]=\"\",\"\",Table_PI[[#This Row],[Model Number]])","v":""},{"$f":"IF(Table_PI[[#This Row],[Serial Number(s)]]=\"\",\"\",Table_PI[[#This Row],[Serial Number(s)]])","v":""},null,{"$f":"IF(Table_PI[[#This Row],[Size]]=\"\",\"\",Table_PI[[#This Row],[Size]])","v":""},null,{"$f":"IFERROR(IF(AND(MeasureCalc(Table_PI[[#This Row],[Hide:\nFormula Name]],Table_SummaryPI[[#This Row],[Quantity]],Table_PI[[#This Row],[List 1]],Table_PI[[#This Row],[List 2]],Table_PI[[#This Row],[List 3]],Table_PI[[#This Row],[Size]],Table_PI[[#This Row],[Input 1]],Table_PI[[#This Row],[Input 2]],Table_PI[[#This Row],[Input 3]],Table_PI[[#This Row],[Input 4]],'Customer Information'!$AR$12,100,ROW())<>0,MeasureCalc(Table_PI[[#This Row],[Hide:\nFormula Name]],Table_SummaryPI[[#This Row],[Quantity]],Table_PI[[#This Row],[List 1]],Table_PI[[#This Row],[List 2]],Table_PI[[#This Row],[List 3]],Table_PI[[#This Row],[Size]],Table_PI[[#This Row],[Input 1]],Table_PI[[#This Row],[Input 2]],Table_PI[[#This Row],[Input 3]],Table_PI[[#This Row],[Input 4]],'Customer Information'!$AR$12,100,ROW())<>\"No Rebate\"),MeasureCalc(Table_PI[[#This Row],[Hide:\nFormula Name]],Table_SummaryPI[[#This Row],[Quantity]],Table_PI[[#This Row],[List 1]],Table_PI[[#This Row],[List 2]],Table_PI[[#This Row],[List 3]],Table_PI[[#This Row],[Size]],Table_PI[[#This Row],[Input 1]],Table_PI[[#This Row],[Input 2]],Table_PI[[#This Row],[Input 3]],Table_PI[[#This Row],[Input 4]],'Customer Information'!$AR$12,100,ROW()),\"\"),\"\")","v":""},{"$f":"IF(Table_PI[[#This Row],[Input 1]]<>\"\",Table_PI[[#This Row],[Input 1]],\"\")","v":""},null,{"$f":"IFERROR(IF(AND(MeasureCalc(Table_PI[[#This Row],[Hide:\nFormula Name]],Table_SummaryPI[[#This Row],[Quantity]],Table_PI[[#This Row],[List 1]],Table_PI[[#This Row],[List 2]],Table_PI[[#This Row],[List 3]],Table_PI[[#This Row],[Size]],Table_PI[[#This Row],[Input 1]],Table_PI[[#This Row],[Input 2]],Table_PI[[#This Row],[Input 3]],Table_PI[[#This Row],[Input 4]],'Customer Information'!$AR$12,101,ROW())<>0,MeasureCalc(Table_PI[[#This Row],[Hide:\nFormula Name]],Table_SummaryPI[[#This Row],[Quantity]],Table_PI[[#This Row],[List 1]],Table_PI[[#This Row],[List 2]],Table_PI[[#This Row],[List 3]],Table_PI[[#This Row],[Size]],Table_PI[[#This Row],[Input 1]],Table_PI[[#This Row],[Input 2]],Table_PI[[#This Row],[Input 3]],Table_PI[[#This Row],[Input 4]],'Customer Information'!$AR$12,101,ROW())<>\"No Rebate\"),MeasureCalc(Table_PI[[#This Row],[Hide:\nFormula Name]],Table_SummaryPI[[#This Row],[Quantity]],Table_PI[[#This Row],[List 1]],Table_PI[[#This Row],[List 2]],Table_PI[[#This Row],[List 3]],Table_PI[[#This Row],[Size]],Table_PI[[#This Row],[Input 1]],Table_PI[[#This Row],[Input 2]],Table_PI[[#This Row],[Input 3]],Table_PI[[#This Row],[Input 4]],'Customer Information'!$AR$12,101,ROW()),\"\"),\"\")","v":""},{"$f":"IF(Table_PI[[#This Row],[Input 2]]<>\"\",Table_PI[[#This Row],[Input 2]],\"\")","v":""},null,{"$f":"IFERROR(IF(AND(MeasureCalc(Table_PI[[#This Row],[Hide:\nFormula Name]],Table_SummaryPI[[#This Row],[Quantity]],Table_PI[[#This Row],[List 1]],Table_PI[[#This Row],[List 2]],Table_PI[[#This Row],[List 3]],Table_PI[[#This Row],[Size]],Table_PI[[#This Row],[Input 1]],Table_PI[[#This Row],[Input 2]],Table_PI[[#This Row],[Input 3]],Table_PI[[#This Row],[Input 4]],'Customer Information'!$AR$12,102,ROW())<>0,MeasureCalc(Table_PI[[#This Row],[Hide:\nFormula Name]],Table_SummaryPI[[#This Row],[Quantity]],Table_PI[[#This Row],[List 1]],Table_PI[[#This Row],[List 2]],Table_PI[[#This Row],[List 3]],Table_PI[[#This Row],[Size]],Table_PI[[#This Row],[Input 1]],Table_PI[[#This Row],[Input 2]],Table_PI[[#This Row],[Input 3]],Table_PI[[#This Row],[Input 4]],'Customer Information'!$AR$12,102,ROW())<>\"No Rebate\"),MeasureCalc(Table_PI[[#This Row],[Hide:\nFormula Name]],Table_SummaryPI[[#This Row],[Quantity]],Table_PI[[#This Row],[List 1]],Table_PI[[#This Row],[List 2]],Table_PI[[#This Row],[List 3]],Table_PI[[#This Row],[Size]],Table_PI[[#This Row],[Input 1]],Table_PI[[#This Row],[Input 2]],Table_PI[[#This Row],[Input 3]],Table_PI[[#This Row],[Input 4]],'Customer Information'!$AR$12,102,ROW()),\"\"),\"\")","v":""},{"$f":"IF(Table_PI[[#This Row],[Input 3]]<>\"\",Table_PI[[#This Row],[Input 3]],\"\")","v":""},null,{"$f":"IFERROR(IF(AND(MeasureCalc(Table_PI[[#This Row],[Hide:\nFormula Name]],Table_SummaryPI[[#This Row],[Quantity]],Table_PI[[#This Row],[List 1]],Table_PI[[#This Row],[List 2]],Table_PI[[#This Row],[List 3]],Table_PI[[#This Row],[Size]],Table_PI[[#This Row],[Input 1]],Table_PI[[#This Row],[Input 2]],Table_PI[[#This Row],[Input 3]],Table_PI[[#This Row],[Input 4]],'Customer Information'!$AR$12,103,ROW())<>0,MeasureCalc(Table_PI[[#This Row],[Hide:\nFormula Name]],Table_SummaryPI[[#This Row],[Quantity]],Table_PI[[#This Row],[List 1]],Table_PI[[#This Row],[List 2]],Table_PI[[#This Row],[List 3]],Table_PI[[#This Row],[Size]],Table_PI[[#This Row],[Input 1]],Table_PI[[#This Row],[Input 2]],Table_PI[[#This Row],[Input 3]],Table_PI[[#This Row],[Input 4]],'Customer Information'!$AR$12,103,ROW())<>\"No Rebate\"),MeasureCalc(Table_PI[[#This Row],[Hide:\nFormula Name]],Table_SummaryPI[[#This Row],[Quantity]],Table_PI[[#This Row],[List 1]],Table_PI[[#This Row],[List 2]],Table_PI[[#This Row],[List 3]],Table_PI[[#This Row],[Size]],Table_PI[[#This Row],[Input 1]],Table_PI[[#This Row],[Input 2]],Table_PI[[#This Row],[Input 3]],Table_PI[[#This Row],[Input 4]],'Customer Information'!$AR$12,103,ROW()),\"\"),\"\")","v":""},{"$f":"IF(Table_PI[[#This Row],[Input 4]]<>\"\",Table_PI[[#This Row],[Input 4]],\"\")","v":""},{"$f":"IF(Table_PI[[#This Row],[Quantity]]=\"\",\"\",Table_PI[[#This Row],[Quantity]])","v":""},{"$f":"IF(Table_PI[[#This Row],[Notes]]=\"\",\"\",Table_PI[[#This Row],[Notes]])","v":""},{"$f":"IF(OR(Table_PI[[#This Row],[Hide:\nBaseline kWh]]=\"\",Table_PI[[#This Row],[Hide:\nBaseline kWh]]=0),\"\",Table_PI[[#This Row],[Hide:\nBaseline kWh]])","v":""},{"$f":"IF(OR(Table_PI[[#This Row],[Hide:\nBaseline kW]]=\"\",Table_PI[[#This Row],[Hide:\nBaseline kW]]=0),\"\",Table_PI[[#This Row],[Hide:\nBaseline kW]])","v":""},{"$f":"IF(OR(Table_PI[[#This Row],[Hide:\nProposed kWh]]=\"\",Table_PI[[#This Row],[Hide:\nProposed kWh]]=0),\"\",Table_PI[[#This Row],[Hide:\nProposed kWh]])","v":""},{"$f":"IF(OR(Table_PI[[#This Row],[Hide:\nProposed kW]]=\"\",Table_PI[[#This Row],[Hide:\nProposed kW]]=0),\"\",Table_PI[[#This Row],[Hide:\nProposed kW]])","v":""},{"$f":"IF(OR(Table_PI[[#This Row],[Rebate]]=\"\",Table_PI[[#This Row],[Rebate]]=0),\"\",Table_PI[[#This Row],[Rebate]])","v":""},{"$f":"IF(OR(Table_PI[[#This Row],[Hide:\nIncremental Cost]]=\"\",Table_PI[[#This Row],[Hide:\nIncremental Cost]]=0),\"\",Table_PI[[#This Row],[Hide:\nIncremental Cost]])","v":""},{"$f":"IFERROR(IF(Table_SummaryPI[[#This Row],[kWhSavings]]=\"\",\"\",ROUND(Table_SummaryPI[[#This Row],[kWhSavings]]/$AG$401*'Customer Information'!$BC$17,2)),0)","v":""},{"$f":"IF(OR(Table_PI[[#This Row],[Annual kWh]]=\"\",Table_PI[[#This Row],[Annual kWh]]=0),\"\",Table_PI[[#This Row],[Annual kWh]])","v":""},{"$f":"IF(OR(Table_PI[[#This Row],[Peak kW]]=\"\",Table_PI[[#This Row],[Peak kW]]=0),\"\",Table_PI[[#This Row],[Peak kW]])","v":""},{"$f":"IFERROR(IF(Table_SummaryPI[[#This Row],[kWhSavings]]=\"\",\"\",$AU$9*Table_SummaryPI[[#This Row],[kWhSavings]]),0)","v":""},{"$f":"IFERROR(IF(Table_SummaryPI[[#This Row],[kWhSavings]]=\"\",\"\",$AU$14*Table_SummaryPI[[#This Row],[kWhSavings]]),0)","v":""},{"$f":"IFERROR(IF(Table_SummaryPI[[#This Row],[kWhSavings]]=\"\",\"\",$AU$18*Table_SummaryPI[[#This Row],[kWhSavings]]),0)","v":""},{"$f":"IFERROR(IF(Table_SummaryPI[[#This Row],[kWhSavings]]=\"\",\"\",$AU$22*Table_SummaryPI[[#This Row],[kWhSavings]]),0)","v":""},{"$f":"IFERROR(IF(MeasureCalc(Table_PI[[#This Row],[Hide:\nFormula Name]],Table_SummaryPI[[#This Row],[Quantity]],Table_PI[[#This Row],[List 1]],Table_PI[[#This Row],[List 2]],Table_PI[[#This Row],[List 3]],Table_PI[[#This Row],[Size]],Table_PI[[#This Row],[Input 1]],Table_PI[[#This Row],[Input 2]],Table_PI[[#This Row],[Input 3]],Table_PI[[#This Row],[Input 4]],'Customer Information'!$AR$12,200,ROW())<>\"No Rebate\",MeasureCalc(Table_PI[[#This Row],[Hide:\nFormula Name]],Table_SummaryPI[[#This Row],[Quantity]],Table_PI[[#This Row],[List 1]],Table_PI[[#This Row],[List 2]],Table_PI[[#This Row],[List 3]],Table_PI[[#This Row],[Size]],Table_PI[[#This Row],[Input 1]],Table_PI[[#This Row],[Input 2]],Table_PI[[#This Row],[Input 3]],Table_PI[[#This Row],[Input 4]],'Customer Information'!$AR$12,200,ROW()),\"\"),\"\")","v":""},{"$f":"IFERROR(IF(MeasureCalc(Table_PI[[#This Row],[Hide:\nFormula Name]],Table_SummaryPI[[#This Row],[Quantity]],Table_PI[[#This Row],[List 1]],Table_PI[[#This Row],[List 2]],Table_PI[[#This Row],[List 3]],Table_PI[[#This Row],[Size]],Table_PI[[#This Row],[Input 1]],Table_PI[[#This Row],[Input 2]],Table_PI[[#This Row],[Input 3]],Table_PI[[#This Row],[Input 4]],'Customer Information'!$AR$12,201,ROW())<>\"No Rebate\",MeasureCalc(Table_PI[[#This Row],[Hide:\nFormula Name]],Table_SummaryPI[[#This Row],[Quantity]],Table_PI[[#This Row],[List 1]],Table_PI[[#This Row],[List 2]],Table_PI[[#This Row],[List 3]],Table_PI[[#This Row],[Size]],Table_PI[[#This Row],[Input 1]],Table_PI[[#This Row],[Input 2]],Table_PI[[#This Row],[Input 3]],Table_PI[[#This Row],[Input 4]],'Customer Information'!$AR$12,201,ROW()),\"\"),\"\")","v":""}]
[{"$f":"Table_PI[[#This Row],[Line No.]]","v":""},{"$f":"IF(Table_SummaryPI[[#This Row],[MeassureCategory]]<>\"\",CONCATENATE(Table_SummaryPI[[#This Row],[MeassureCategory]],  \" - \", Table_SummaryPI[[#This Row],[ProposedMeasureCategory]],  \" - \", TEXT(Table_SummaryPI[[#This Row],[Size]],\"#,##0.00\"),\" \",Table_SummaryPI[[#This Row],[SizeUnit]]),\"\")","v":""},{"$f":"SUBSTITUTE(Table_PI[[#This Row],[Measure]],\"     \",\"\",1)","v":""},{"$f":"IF(Table_PI[[#This Row],[List 1]]<>\"\",Table_PI[[#This Row],[List 1]],\"\")","v":""},{"$f":"IF(Table_PI[[#This Row],[List 2]]<>\"\",Table_PI[[#This Row],[List 2]],\"\")","v":""},{"$f":"IF(Table_PI[[#This Row],[List 3]]<>\"\",Table_PI[[#This Row],[List 3]],\"\")","v":""},{"$f":"IF(Table_PI[[#This Row],[Manufacturer]]=\"\",\"\",Table_PI[[#This Row],[Manufacturer]])","v":""},{"$f":"IF(Table_PI[[#This Row],[Model Number]]=\"\",\"\",Table_PI[[#This Row],[Model Number]])","v":""},{"$f":"IF(Table_PI[[#This Row],[Serial Number(s)]]=\"\",\"\",Table_PI[[#This Row],[Serial Number(s)]])","v":""},null,{"$f":"IF(Table_PI[[#This Row],[Size]]=\"\",\"\",Table_PI[[#This Row],[Size]])","v":""},null,{"$f":"IFERROR(IF(AND(MeasureCalc(Table_PI[[#This Row],[Hide:\nFormula Name]],Table_SummaryPI[[#This Row],[Quantity]],Table_PI[[#This Row],[List 1]],Table_PI[[#This Row],[List 2]],Table_PI[[#This Row],[List 3]],Table_PI[[#This Row],[Size]],Table_PI[[#This Row],[Input 1]],Table_PI[[#This Row],[Input 2]],Table_PI[[#This Row],[Input 3]],Table_PI[[#This Row],[Input 4]],'Customer Information'!$AR$12,100,ROW())<>0,MeasureCalc(Table_PI[[#This Row],[Hide:\nFormula Name]],Table_SummaryPI[[#This Row],[Quantity]],Table_PI[[#This Row],[List 1]],Table_PI[[#This Row],[List 2]],Table_PI[[#This Row],[List 3]],Table_PI[[#This Row],[Size]],Table_PI[[#This Row],[Input 1]],Table_PI[[#This Row],[Input 2]],Table_PI[[#This Row],[Input 3]],Table_PI[[#This Row],[Input 4]],'Customer Information'!$AR$12,100,ROW())<>\"No Rebate\"),MeasureCalc(Table_PI[[#This Row],[Hide:\nFormula Name]],Table_SummaryPI[[#This Row],[Quantity]],Table_PI[[#This Row],[List 1]],Table_PI[[#This Row],[List 2]],Table_PI[[#This Row],[List 3]],Table_PI[[#This Row],[Size]],Table_PI[[#This Row],[Input 1]],Table_PI[[#This Row],[Input 2]],Table_PI[[#This Row],[Input 3]],Table_PI[[#This Row],[Input 4]],'Customer Information'!$AR$12,100,ROW()),\"\"),\"\")","v":""},{"$f":"IF(Table_PI[[#This Row],[Input 1]]<>\"\",Table_PI[[#This Row],[Input 1]],\"\")","v":""},null,{"$f":"IFERROR(IF(AND(MeasureCalc(Table_PI[[#This Row],[Hide:\nFormula Name]],Table_SummaryPI[[#This Row],[Quantity]],Table_PI[[#This Row],[List 1]],Table_PI[[#This Row],[List 2]],Table_PI[[#This Row],[List 3]],Table_PI[[#This Row],[Size]],Table_PI[[#This Row],[Input 1]],Table_PI[[#This Row],[Input 2]],Table_PI[[#This Row],[Input 3]],Table_PI[[#This Row],[Input 4]],'Customer Information'!$AR$12,101,ROW())<>0,MeasureCalc(Table_PI[[#This Row],[Hide:\nFormula Name]],Table_SummaryPI[[#This Row],[Quantity]],Table_PI[[#This Row],[List 1]],Table_PI[[#This Row],[List 2]],Table_PI[[#This Row],[List 3]],Table_PI[[#This Row],[Size]],Table_PI[[#This Row],[Input 1]],Table_PI[[#This Row],[Input 2]],Table_PI[[#This Row],[Input 3]],Table_PI[[#This Row],[Input 4]],'Customer Information'!$AR$12,101,ROW())<>\"No Rebate\"),MeasureCalc(Table_PI[[#This Row],[Hide:\nFormula Name]],Table_SummaryPI[[#This Row],[Quantity]],Table_PI[[#This Row],[List 1]],Table_PI[[#This Row],[List 2]],Table_PI[[#This Row],[List 3]],Table_PI[[#This Row],[Size]],Table_PI[[#This Row],[Input 1]],Table_PI[[#This Row],[Input 2]],Table_PI[[#This Row],[Input 3]],Table_PI[[#This Row],[Input 4]],'Customer Information'!$AR$12,101,ROW()),\"\"),\"\")","v":""},{"$f":"IF(Table_PI[[#This Row],[Input 2]]<>\"\",Table_PI[[#This Row],[Input 2]],\"\")","v":""},null,{"$f":"IFERROR(IF(AND(MeasureCalc(Table_PI[[#This Row],[Hide:\nFormula Name]],Table_SummaryPI[[#This Row],[Quantity]],Table_PI[[#This Row],[List 1]],Table_PI[[#This Row],[List 2]],Table_PI[[#This Row],[List 3]],Table_PI[[#This Row],[Size]],Table_PI[[#This Row],[Input 1]],Table_PI[[#This Row],[Input 2]],Table_PI[[#This Row],[Input 3]],Table_PI[[#This Row],[Input 4]],'Customer Information'!$AR$12,102,ROW())<>0,MeasureCalc(Table_PI[[#This Row],[Hide:\nFormula Name]],Table_SummaryPI[[#This Row],[Quantity]],Table_PI[[#This Row],[List 1]],Table_PI[[#This Row],[List 2]],Table_PI[[#This Row],[List 3]],Table_PI[[#This Row],[Size]],Table_PI[[#This Row],[Input 1]],Table_PI[[#This Row],[Input 2]],Table_PI[[#This Row],[Input 3]],Table_PI[[#This Row],[Input 4]],'Customer Information'!$AR$12,102,ROW())<>\"No Rebate\"),MeasureCalc(Table_PI[[#This Row],[Hide:\nFormula Name]],Table_SummaryPI[[#This Row],[Quantity]],Table_PI[[#This Row],[List 1]],Table_PI[[#This Row],[List 2]],Table_PI[[#This Row],[List 3]],Table_PI[[#This Row],[Size]],Table_PI[[#This Row],[Input 1]],Table_PI[[#This Row],[Input 2]],Table_PI[[#This Row],[Input 3]],Table_PI[[#This Row],[Input 4]],'Customer Information'!$AR$12,102,ROW()),\"\"),\"\")","v":""},{"$f":"IF(Table_PI[[#This Row],[Input 3]]<>\"\",Table_PI[[#This Row],[Input 3]],\"\")","v":""},null,{"$f":"IFERROR(IF(AND(MeasureCalc(Table_PI[[#This Row],[Hide:\nFormula Name]],Table_SummaryPI[[#This Row],[Quantity]],Table_PI[[#This Row],[List 1]],Table_PI[[#This Row],[List 2]],Table_PI[[#This Row],[List 3]],Table_PI[[#This Row],[Size]],Table_PI[[#This Row],[Input 1]],Table_PI[[#This Row],[Input 2]],Table_PI[[#This Row],[Input 3]],Table_PI[[#This Row],[Input 4]],'Customer Information'!$AR$12,103,ROW())<>0,MeasureCalc(Table_PI[[#This Row],[Hide:\nFormula Name]],Table_SummaryPI[[#This Row],[Quantity]],Table_PI[[#This Row],[List 1]],Table_PI[[#This Row],[List 2]],Table_PI[[#This Row],[List 3]],Table_PI[[#This Row],[Size]],Table_PI[[#This Row],[Input 1]],Table_PI[[#This Row],[Input 2]],Table_PI[[#This Row],[Input 3]],Table_PI[[#This Row],[Input 4]],'Customer Information'!$AR$12,103,ROW())<>\"No Rebate\"),MeasureCalc(Table_PI[[#This Row],[Hide:\nFormula Name]],Table_SummaryPI[[#This Row],[Quantity]],Table_PI[[#This Row],[List 1]],Table_PI[[#This Row],[List 2]],Table_PI[[#This Row],[List 3]],Table_PI[[#This Row],[Size]],Table_PI[[#This Row],[Input 1]],Table_PI[[#This Row],[Input 2]],Table_PI[[#This Row],[Input 3]],Table_PI[[#This Row],[Input 4]],'Customer Information'!$AR$12,103,ROW()),\"\"),\"\")","v":""},{"$f":"IF(Table_PI[[#This Row],[Input 4]]<>\"\",Table_PI[[#This Row],[Input 4]],\"\")","v":""},{"$f":"IF(Table_PI[[#This Row],[Quantity]]=\"\",\"\",Table_PI[[#This Row],[Quantity]])","v":""},{"$f":"IF(Table_PI[[#This Row],[Notes]]=\"\",\"\",Table_PI[[#This Row],[Notes]])","v":""},{"$f":"IF(OR(Table_PI[[#This Row],[Hide:\nBaseline kWh]]=\"\",Table_PI[[#This Row],[Hide:\nBaseline kWh]]=0),\"\",Table_PI[[#This Row],[Hide:\nBaseline kWh]])","v":""},{"$f":"IF(OR(Table_PI[[#This Row],[Hide:\nBaseline kW]]=\"\",Table_PI[[#This Row],[Hide:\nBaseline kW]]=0),\"\",Table_PI[[#This Row],[Hide:\nBaseline kW]])","v":""},{"$f":"IF(OR(Table_PI[[#This Row],[Hide:\nProposed kWh]]=\"\",Table_PI[[#This Row],[Hide:\nProposed kWh]]=0),\"\",Table_PI[[#This Row],[Hide:\nProposed kWh]])","v":""},{"$f":"IF(OR(Table_PI[[#This Row],[Hide:\nProposed kW]]=\"\",Table_PI[[#This Row],[Hide:\nProposed kW]]=0),\"\",Table_PI[[#This Row],[Hide:\nProposed kW]])","v":""},{"$f":"IF(OR(Table_PI[[#This Row],[Rebate]]=\"\",Table_PI[[#This Row],[Rebate]]=0),\"\",Table_PI[[#This Row],[Rebate]])","v":""},{"$f":"IF(OR(Table_PI[[#This Row],[Hide:\nIncremental Cost]]=\"\",Table_PI[[#This Row],[Hide:\nIncremental Cost]]=0),\"\",Table_PI[[#This Row],[Hide:\nIncremental Cost]])","v":""},{"$f":"IFERROR(IF(Table_SummaryPI[[#This Row],[kWhSavings]]=\"\",\"\",ROUND(Table_SummaryPI[[#This Row],[kWhSavings]]/$AG$401*'Customer Information'!$BC$17,2)),0)","v":""},{"$f":"IF(OR(Table_PI[[#This Row],[Annual kWh]]=\"\",Table_PI[[#This Row],[Annual kWh]]=0),\"\",Table_PI[[#This Row],[Annual kWh]])","v":""},{"$f":"IF(OR(Table_PI[[#This Row],[Peak kW]]=\"\",Table_PI[[#This Row],[Peak kW]]=0),\"\",Table_PI[[#This Row],[Peak kW]])","v":""},{"$f":"IFERROR(IF(Table_SummaryPI[[#This Row],[kWhSavings]]=\"\",\"\",$AU$9*Table_SummaryPI[[#This Row],[kWhSavings]]),0)","v":""},{"$f":"IFERROR(IF(Table_SummaryPI[[#This Row],[kWhSavings]]=\"\",\"\",$AU$14*Table_SummaryPI[[#This Row],[kWhSavings]]),0)","v":""},{"$f":"IFERROR(IF(Table_SummaryPI[[#This Row],[kWhSavings]]=\"\",\"\",$AU$18*Table_SummaryPI[[#This Row],[kWhSavings]]),0)","v":""},{"$f":"IFERROR(IF(Table_SummaryPI[[#This Row],[kWhSavings]]=\"\",\"\",$AU$22*Table_SummaryPI[[#This Row],[kWhSavings]]),0)","v":""},{"$f":"IFERROR(IF(MeasureCalc(Table_PI[[#This Row],[Hide:\nFormula Name]],Table_SummaryPI[[#This Row],[Quantity]],Table_PI[[#This Row],[List 1]],Table_PI[[#This Row],[List 2]],Table_PI[[#This Row],[List 3]],Table_PI[[#This Row],[Size]],Table_PI[[#This Row],[Input 1]],Table_PI[[#This Row],[Input 2]],Table_PI[[#This Row],[Input 3]],Table_PI[[#This Row],[Input 4]],'Customer Information'!$AR$12,200,ROW())<>\"No Rebate\",MeasureCalc(Table_PI[[#This Row],[Hide:\nFormula Name]],Table_SummaryPI[[#This Row],[Quantity]],Table_PI[[#This Row],[List 1]],Table_PI[[#This Row],[List 2]],Table_PI[[#This Row],[List 3]],Table_PI[[#This Row],[Size]],Table_PI[[#This Row],[Input 1]],Table_PI[[#This Row],[Input 2]],Table_PI[[#This Row],[Input 3]],Table_PI[[#This Row],[Input 4]],'Customer Information'!$AR$12,200,ROW()),\"\"),\"\")","v":""},{"$f":"IFERROR(IF(MeasureCalc(Table_PI[[#This Row],[Hide:\nFormula Name]],Table_SummaryPI[[#This Row],[Quantity]],Table_PI[[#This Row],[List 1]],Table_PI[[#This Row],[List 2]],Table_PI[[#This Row],[List 3]],Table_PI[[#This Row],[Size]],Table_PI[[#This Row],[Input 1]],Table_PI[[#This Row],[Input 2]],Table_PI[[#This Row],[Input 3]],Table_PI[[#This Row],[Input 4]],'Customer Information'!$AR$12,201,ROW())<>\"No Rebate\",MeasureCalc(Table_PI[[#This Row],[Hide:\nFormula Name]],Table_SummaryPI[[#This Row],[Quantity]],Table_PI[[#This Row],[List 1]],Table_PI[[#This Row],[List 2]],Table_PI[[#This Row],[List 3]],Table_PI[[#This Row],[Size]],Table_PI[[#This Row],[Input 1]],Table_PI[[#This Row],[Input 2]],Table_PI[[#This Row],[Input 3]],Table_PI[[#This Row],[Input 4]],'Customer Information'!$AR$12,201,ROW()),\"\"),\"\")","v":""}]
[{"$f":"Table_PI[[#This Row],[Line No.]]","v":""},{"$f":"IF(Table_SummaryPI[[#This Row],[MeassureCategory]]<>\"\",CONCATENATE(Table_SummaryPI[[#This Row],[MeassureCategory]],  \" - \", Table_SummaryPI[[#This Row],[ProposedMeasureCategory]],  \" - \", TEXT(Table_SummaryPI[[#This Row],[Size]],\"#,##0.00\"),\" \",Table_SummaryPI[[#This Row],[SizeUnit]]),\"\")","v":""},{"$f":"SUBSTITUTE(Table_PI[[#This Row],[Measure]],\"     \",\"\",1)","v":""},{"$f":"IF(Table_PI[[#This Row],[List 1]]<>\"\",Table_PI[[#This Row],[List 1]],\"\")","v":""},{"$f":"IF(Table_PI[[#This Row],[List 2]]<>\"\",Table_PI[[#This Row],[List 2]],\"\")","v":""},{"$f":"IF(Table_PI[[#This Row],[List 3]]<>\"\",Table_PI[[#This Row],[List 3]],\"\")","v":""},{"$f":"IF(Table_PI[[#This Row],[Manufacturer]]=\"\",\"\",Table_PI[[#This Row],[Manufacturer]])","v":""},{"$f":"IF(Table_PI[[#This Row],[Model Number]]=\"\",\"\",Table_PI[[#This Row],[Model Number]])","v":""},{"$f":"IF(Table_PI[[#This Row],[Serial Number(s)]]=\"\",\"\",Table_PI[[#This Row],[Serial Number(s)]])","v":""},null,{"$f":"IF(Table_PI[[#This Row],[Size]]=\"\",\"\",Table_PI[[#This Row],[Size]])","v":""},null,{"$f":"IFERROR(IF(AND(MeasureCalc(Table_PI[[#This Row],[Hide:\nFormula Name]],Table_SummaryPI[[#This Row],[Quantity]],Table_PI[[#This Row],[List 1]],Table_PI[[#This Row],[List 2]],Table_PI[[#This Row],[List 3]],Table_PI[[#This Row],[Size]],Table_PI[[#This Row],[Input 1]],Table_PI[[#This Row],[Input 2]],Table_PI[[#This Row],[Input 3]],Table_PI[[#This Row],[Input 4]],'Customer Information'!$AR$12,100,ROW())<>0,MeasureCalc(Table_PI[[#This Row],[Hide:\nFormula Name]],Table_SummaryPI[[#This Row],[Quantity]],Table_PI[[#This Row],[List 1]],Table_PI[[#This Row],[List 2]],Table_PI[[#This Row],[List 3]],Table_PI[[#This Row],[Size]],Table_PI[[#This Row],[Input 1]],Table_PI[[#This Row],[Input 2]],Table_PI[[#This Row],[Input 3]],Table_PI[[#This Row],[Input 4]],'Customer Information'!$AR$12,100,ROW())<>\"No Rebate\"),MeasureCalc(Table_PI[[#This Row],[Hide:\nFormula Name]],Table_SummaryPI[[#This Row],[Quantity]],Table_PI[[#This Row],[List 1]],Table_PI[[#This Row],[List 2]],Table_PI[[#This Row],[List 3]],Table_PI[[#This Row],[Size]],Table_PI[[#This Row],[Input 1]],Table_PI[[#This Row],[Input 2]],Table_PI[[#This Row],[Input 3]],Table_PI[[#This Row],[Input 4]],'Customer Information'!$AR$12,100,ROW()),\"\"),\"\")","v":""},{"$f":"IF(Table_PI[[#This Row],[Input 1]]<>\"\",Table_PI[[#This Row],[Input 1]],\"\")","v":""},null,{"$f":"IFERROR(IF(AND(MeasureCalc(Table_PI[[#This Row],[Hide:\nFormula Name]],Table_SummaryPI[[#This Row],[Quantity]],Table_PI[[#This Row],[List 1]],Table_PI[[#This Row],[List 2]],Table_PI[[#This Row],[List 3]],Table_PI[[#This Row],[Size]],Table_PI[[#This Row],[Input 1]],Table_PI[[#This Row],[Input 2]],Table_PI[[#This Row],[Input 3]],Table_PI[[#This Row],[Input 4]],'Customer Information'!$AR$12,101,ROW())<>0,MeasureCalc(Table_PI[[#This Row],[Hide:\nFormula Name]],Table_SummaryPI[[#This Row],[Quantity]],Table_PI[[#This Row],[List 1]],Table_PI[[#This Row],[List 2]],Table_PI[[#This Row],[List 3]],Table_PI[[#This Row],[Size]],Table_PI[[#This Row],[Input 1]],Table_PI[[#This Row],[Input 2]],Table_PI[[#This Row],[Input 3]],Table_PI[[#This Row],[Input 4]],'Customer Information'!$AR$12,101,ROW())<>\"No Rebate\"),MeasureCalc(Table_PI[[#This Row],[Hide:\nFormula Name]],Table_SummaryPI[[#This Row],[Quantity]],Table_PI[[#This Row],[List 1]],Table_PI[[#This Row],[List 2]],Table_PI[[#This Row],[List 3]],Table_PI[[#This Row],[Size]],Table_PI[[#This Row],[Input 1]],Table_PI[[#This Row],[Input 2]],Table_PI[[#This Row],[Input 3]],Table_PI[[#This Row],[Input 4]],'Customer Information'!$AR$12,101,ROW()),\"\"),\"\")","v":""},{"$f":"IF(Table_PI[[#This Row],[Input 2]]<>\"\",Table_PI[[#This Row],[Input 2]],\"\")","v":""},null,{"$f":"IFERROR(IF(AND(MeasureCalc(Table_PI[[#This Row],[Hide:\nFormula Name]],Table_SummaryPI[[#This Row],[Quantity]],Table_PI[[#This Row],[List 1]],Table_PI[[#This Row],[List 2]],Table_PI[[#This Row],[List 3]],Table_PI[[#This Row],[Size]],Table_PI[[#This Row],[Input 1]],Table_PI[[#This Row],[Input 2]],Table_PI[[#This Row],[Input 3]],Table_PI[[#This Row],[Input 4]],'Customer Information'!$AR$12,102,ROW())<>0,MeasureCalc(Table_PI[[#This Row],[Hide:\nFormula Name]],Table_SummaryPI[[#This Row],[Quantity]],Table_PI[[#This Row],[List 1]],Table_PI[[#This Row],[List 2]],Table_PI[[#This Row],[List 3]],Table_PI[[#This Row],[Size]],Table_PI[[#This Row],[Input 1]],Table_PI[[#This Row],[Input 2]],Table_PI[[#This Row],[Input 3]],Table_PI[[#This Row],[Input 4]],'Customer Information'!$AR$12,102,ROW())<>\"No Rebate\"),MeasureCalc(Table_PI[[#This Row],[Hide:\nFormula Name]],Table_SummaryPI[[#This Row],[Quantity]],Table_PI[[#This Row],[List 1]],Table_PI[[#This Row],[List 2]],Table_PI[[#This Row],[List 3]],Table_PI[[#This Row],[Size]],Table_PI[[#This Row],[Input 1]],Table_PI[[#This Row],[Input 2]],Table_PI[[#This Row],[Input 3]],Table_PI[[#This Row],[Input 4]],'Customer Information'!$AR$12,102,ROW()),\"\"),\"\")","v":""},{"$f":"IF(Table_PI[[#This Row],[Input 3]]<>\"\",Table_PI[[#This Row],[Input 3]],\"\")","v":""},null,{"$f":"IFERROR(IF(AND(MeasureCalc(Table_PI[[#This Row],[Hide:\nFormula Name]],Table_SummaryPI[[#This Row],[Quantity]],Table_PI[[#This Row],[List 1]],Table_PI[[#This Row],[List 2]],Table_PI[[#This Row],[List 3]],Table_PI[[#This Row],[Size]],Table_PI[[#This Row],[Input 1]],Table_PI[[#This Row],[Input 2]],Table_PI[[#This Row],[Input 3]],Table_PI[[#This Row],[Input 4]],'Customer Information'!$AR$12,103,ROW())<>0,MeasureCalc(Table_PI[[#This Row],[Hide:\nFormula Name]],Table_SummaryPI[[#This Row],[Quantity]],Table_PI[[#This Row],[List 1]],Table_PI[[#This Row],[List 2]],Table_PI[[#This Row],[List 3]],Table_PI[[#This Row],[Size]],Table_PI[[#This Row],[Input 1]],Table_PI[[#This Row],[Input 2]],Table_PI[[#This Row],[Input 3]],Table_PI[[#This Row],[Input 4]],'Customer Information'!$AR$12,103,ROW())<>\"No Rebate\"),MeasureCalc(Table_PI[[#This Row],[Hide:\nFormula Name]],Table_SummaryPI[[#This Row],[Quantity]],Table_PI[[#This Row],[List 1]],Table_PI[[#This Row],[List 2]],Table_PI[[#This Row],[List 3]],Table_PI[[#This Row],[Size]],Table_PI[[#This Row],[Input 1]],Table_PI[[#This Row],[Input 2]],Table_PI[[#This Row],[Input 3]],Table_PI[[#This Row],[Input 4]],'Customer Information'!$AR$12,103,ROW()),\"\"),\"\")","v":""},{"$f":"IF(Table_PI[[#This Row],[Input 4]]<>\"\",Table_PI[[#This Row],[Input 4]],\"\")","v":""},{"$f":"IF(Table_PI[[#This Row],[Quantity]]=\"\",\"\",Table_PI[[#This Row],[Quantity]])","v":""},{"$f":"IF(Table_PI[[#This Row],[Notes]]=\"\",\"\",Table_PI[[#This Row],[Notes]])","v":""},{"$f":"IF(OR(Table_PI[[#This Row],[Hide:\nBaseline kWh]]=\"\",Table_PI[[#This Row],[Hide:\nBaseline kWh]]=0),\"\",Table_PI[[#This Row],[Hide:\nBaseline kWh]])","v":""},{"$f":"IF(OR(Table_PI[[#This Row],[Hide:\nBaseline kW]]=\"\",Table_PI[[#This Row],[Hide:\nBaseline kW]]=0),\"\",Table_PI[[#This Row],[Hide:\nBaseline kW]])","v":""},{"$f":"IF(OR(Table_PI[[#This Row],[Hide:\nProposed kWh]]=\"\",Table_PI[[#This Row],[Hide:\nProposed kWh]]=0),\"\",Table_PI[[#This Row],[Hide:\nProposed kWh]])","v":""},{"$f":"IF(OR(Table_PI[[#This Row],[Hide:\nProposed kW]]=\"\",Table_PI[[#This Row],[Hide:\nProposed kW]]=0),\"\",Table_PI[[#This Row],[Hide:\nProposed kW]])","v":""},{"$f":"IF(OR(Table_PI[[#This Row],[Rebate]]=\"\",Table_PI[[#This Row],[Rebate]]=0),\"\",Table_PI[[#This Row],[Rebate]])","v":""},{"$f":"IF(OR(Table_PI[[#This Row],[Hide:\nIncremental Cost]]=\"\",Table_PI[[#This Row],[Hide:\nIncremental Cost]]=0),\"\",Table_PI[[#This Row],[Hide:\nIncremental Cost]])","v":""},{"$f":"IFERROR(IF(Table_SummaryPI[[#This Row],[kWhSavings]]=\"\",\"\",ROUND(Table_SummaryPI[[#This Row],[kWhSavings]]/$AG$401*'Customer Information'!$BC$17,2)),0)","v":""},{"$f":"IF(OR(Table_PI[[#This Row],[Annual kWh]]=\"\",Table_PI[[#This Row],[Annual kWh]]=0),\"\",Table_PI[[#This Row],[Annual kWh]])","v":""},{"$f":"IF(OR(Table_PI[[#This Row],[Peak kW]]=\"\",Table_PI[[#This Row],[Peak kW]]=0),\"\",Table_PI[[#This Row],[Peak kW]])","v":""},{"$f":"IFERROR(IF(Table_SummaryPI[[#This Row],[kWhSavings]]=\"\",\"\",$AU$9*Table_SummaryPI[[#This Row],[kWhSavings]]),0)","v":""},{"$f":"IFERROR(IF(Table_SummaryPI[[#This Row],[kWhSavings]]=\"\",\"\",$AU$14*Table_SummaryPI[[#This Row],[kWhSavings]]),0)","v":""},{"$f":"IFERROR(IF(Table_SummaryPI[[#This Row],[kWhSavings]]=\"\",\"\",$AU$18*Table_SummaryPI[[#This Row],[kWhSavings]]),0)","v":""},{"$f":"IFERROR(IF(Table_SummaryPI[[#This Row],[kWhSavings]]=\"\",\"\",$AU$22*Table_SummaryPI[[#This Row],[kWhSavings]]),0)","v":""},{"$f":"IFERROR(IF(MeasureCalc(Table_PI[[#This Row],[Hide:\nFormula Name]],Table_SummaryPI[[#This Row],[Quantity]],Table_PI[[#This Row],[List 1]],Table_PI[[#This Row],[List 2]],Table_PI[[#This Row],[List 3]],Table_PI[[#This Row],[Size]],Table_PI[[#This Row],[Input 1]],Table_PI[[#This Row],[Input 2]],Table_PI[[#This Row],[Input 3]],Table_PI[[#This Row],[Input 4]],'Customer Information'!$AR$12,200,ROW())<>\"No Rebate\",MeasureCalc(Table_PI[[#This Row],[Hide:\nFormula Name]],Table_SummaryPI[[#This Row],[Quantity]],Table_PI[[#This Row],[List 1]],Table_PI[[#This Row],[List 2]],Table_PI[[#This Row],[List 3]],Table_PI[[#This Row],[Size]],Table_PI[[#This Row],[Input 1]],Table_PI[[#This Row],[Input 2]],Table_PI[[#This Row],[Input 3]],Table_PI[[#This Row],[Input 4]],'Customer Information'!$AR$12,200,ROW()),\"\"),\"\")","v":""},{"$f":"IFERROR(IF(MeasureCalc(Table_PI[[#This Row],[Hide:\nFormula Name]],Table_SummaryPI[[#This Row],[Quantity]],Table_PI[[#This Row],[List 1]],Table_PI[[#This Row],[List 2]],Table_PI[[#This Row],[List 3]],Table_PI[[#This Row],[Size]],Table_PI[[#This Row],[Input 1]],Table_PI[[#This Row],[Input 2]],Table_PI[[#This Row],[Input 3]],Table_PI[[#This Row],[Input 4]],'Customer Information'!$AR$12,201,ROW())<>\"No Rebate\",MeasureCalc(Table_PI[[#This Row],[Hide:\nFormula Name]],Table_SummaryPI[[#This Row],[Quantity]],Table_PI[[#This Row],[List 1]],Table_PI[[#This Row],[List 2]],Table_PI[[#This Row],[List 3]],Table_PI[[#This Row],[Size]],Table_PI[[#This Row],[Input 1]],Table_PI[[#This Row],[Input 2]],Table_PI[[#This Row],[Input 3]],Table_PI[[#This Row],[Input 4]],'Customer Information'!$AR$12,201,ROW()),\"\"),\"\")","v":""}]
[{"$f":"Table_PI[[#This Row],[Line No.]]","v":""},{"$f":"IF(Table_SummaryPI[[#This Row],[MeassureCategory]]<>\"\",CONCATENATE(Table_SummaryPI[[#This Row],[MeassureCategory]],  \" - \", Table_SummaryPI[[#This Row],[ProposedMeasureCategory]],  \" - \", TEXT(Table_SummaryPI[[#This Row],[Size]],\"#,##0.00\"),\" \",Table_SummaryPI[[#This Row],[SizeUnit]]),\"\")","v":""},{"$f":"SUBSTITUTE(Table_PI[[#This Row],[Measure]],\"     \",\"\",1)","v":""},{"$f":"IF(Table_PI[[#This Row],[List 1]]<>\"\",Table_PI[[#This Row],[List 1]],\"\")","v":""},{"$f":"IF(Table_PI[[#This Row],[List 2]]<>\"\",Table_PI[[#This Row],[List 2]],\"\")","v":""},{"$f":"IF(Table_PI[[#This Row],[List 3]]<>\"\",Table_PI[[#This Row],[List 3]],\"\")","v":""},{"$f":"IF(Table_PI[[#This Row],[Manufacturer]]=\"\",\"\",Table_PI[[#This Row],[Manufacturer]])","v":""},{"$f":"IF(Table_PI[[#This Row],[Model Number]]=\"\",\"\",Table_PI[[#This Row],[Model Number]])","v":""},{"$f":"IF(Table_PI[[#This Row],[Serial Number(s)]]=\"\",\"\",Table_PI[[#This Row],[Serial Number(s)]])","v":""},null,{"$f":"IF(Table_PI[[#This Row],[Size]]=\"\",\"\",Table_PI[[#This Row],[Size]])","v":""},null,{"$f":"IFERROR(IF(AND(MeasureCalc(Table_PI[[#This Row],[Hide:\nFormula Name]],Table_SummaryPI[[#This Row],[Quantity]],Table_PI[[#This Row],[List 1]],Table_PI[[#This Row],[List 2]],Table_PI[[#This Row],[List 3]],Table_PI[[#This Row],[Size]],Table_PI[[#This Row],[Input 1]],Table_PI[[#This Row],[Input 2]],Table_PI[[#This Row],[Input 3]],Table_PI[[#This Row],[Input 4]],'Customer Information'!$AR$12,100,ROW())<>0,MeasureCalc(Table_PI[[#This Row],[Hide:\nFormula Name]],Table_SummaryPI[[#This Row],[Quantity]],Table_PI[[#This Row],[List 1]],Table_PI[[#This Row],[List 2]],Table_PI[[#This Row],[List 3]],Table_PI[[#This Row],[Size]],Table_PI[[#This Row],[Input 1]],Table_PI[[#This Row],[Input 2]],Table_PI[[#This Row],[Input 3]],Table_PI[[#This Row],[Input 4]],'Customer Information'!$AR$12,100,ROW())<>\"No Rebate\"),MeasureCalc(Table_PI[[#This Row],[Hide:\nFormula Name]],Table_SummaryPI[[#This Row],[Quantity]],Table_PI[[#This Row],[List 1]],Table_PI[[#This Row],[List 2]],Table_PI[[#This Row],[List 3]],Table_PI[[#This Row],[Size]],Table_PI[[#This Row],[Input 1]],Table_PI[[#This Row],[Input 2]],Table_PI[[#This Row],[Input 3]],Table_PI[[#This Row],[Input 4]],'Customer Information'!$AR$12,100,ROW()),\"\"),\"\")","v":""},{"$f":"IF(Table_PI[[#This Row],[Input 1]]<>\"\",Table_PI[[#This Row],[Input 1]],\"\")","v":""},null,{"$f":"IFERROR(IF(AND(MeasureCalc(Table_PI[[#This Row],[Hide:\nFormula Name]],Table_SummaryPI[[#This Row],[Quantity]],Table_PI[[#This Row],[List 1]],Table_PI[[#This Row],[List 2]],Table_PI[[#This Row],[List 3]],Table_PI[[#This Row],[Size]],Table_PI[[#This Row],[Input 1]],Table_PI[[#This Row],[Input 2]],Table_PI[[#This Row],[Input 3]],Table_PI[[#This Row],[Input 4]],'Customer Information'!$AR$12,101,ROW())<>0,MeasureCalc(Table_PI[[#This Row],[Hide:\nFormula Name]],Table_SummaryPI[[#This Row],[Quantity]],Table_PI[[#This Row],[List 1]],Table_PI[[#This Row],[List 2]],Table_PI[[#This Row],[List 3]],Table_PI[[#This Row],[Size]],Table_PI[[#This Row],[Input 1]],Table_PI[[#This Row],[Input 2]],Table_PI[[#This Row],[Input 3]],Table_PI[[#This Row],[Input 4]],'Customer Information'!$AR$12,101,ROW())<>\"No Rebate\"),MeasureCalc(Table_PI[[#This Row],[Hide:\nFormula Name]],Table_SummaryPI[[#This Row],[Quantity]],Table_PI[[#This Row],[List 1]],Table_PI[[#This Row],[List 2]],Table_PI[[#This Row],[List 3]],Table_PI[[#This Row],[Size]],Table_PI[[#This Row],[Input 1]],Table_PI[[#This Row],[Input 2]],Table_PI[[#This Row],[Input 3]],Table_PI[[#This Row],[Input 4]],'Customer Information'!$AR$12,101,ROW()),\"\"),\"\")","v":""},{"$f":"IF(Table_PI[[#This Row],[Input 2]]<>\"\",Table_PI[[#This Row],[Input 2]],\"\")","v":""},null,{"$f":"IFERROR(IF(AND(MeasureCalc(Table_PI[[#This Row],[Hide:\nFormula Name]],Table_SummaryPI[[#This Row],[Quantity]],Table_PI[[#This Row],[List 1]],Table_PI[[#This Row],[List 2]],Table_PI[[#This Row],[List 3]],Table_PI[[#This Row],[Size]],Table_PI[[#This Row],[Input 1]],Table_PI[[#This Row],[Input 2]],Table_PI[[#This Row],[Input 3]],Table_PI[[#This Row],[Input 4]],'Customer Information'!$AR$12,102,ROW())<>0,MeasureCalc(Table_PI[[#This Row],[Hide:\nFormula Name]],Table_SummaryPI[[#This Row],[Quantity]],Table_PI[[#This Row],[List 1]],Table_PI[[#This Row],[List 2]],Table_PI[[#This Row],[List 3]],Table_PI[[#This Row],[Size]],Table_PI[[#This Row],[Input 1]],Table_PI[[#This Row],[Input 2]],Table_PI[[#This Row],[Input 3]],Table_PI[[#This Row],[Input 4]],'Customer Information'!$AR$12,102,ROW())<>\"No Rebate\"),MeasureCalc(Table_PI[[#This Row],[Hide:\nFormula Name]],Table_SummaryPI[[#This Row],[Quantity]],Table_PI[[#This Row],[List 1]],Table_PI[[#This Row],[List 2]],Table_PI[[#This Row],[List 3]],Table_PI[[#This Row],[Size]],Table_PI[[#This Row],[Input 1]],Table_PI[[#This Row],[Input 2]],Table_PI[[#This Row],[Input 3]],Table_PI[[#This Row],[Input 4]],'Customer Information'!$AR$12,102,ROW()),\"\"),\"\")","v":""},{"$f":"IF(Table_PI[[#This Row],[Input 3]]<>\"\",Table_PI[[#This Row],[Input 3]],\"\")","v":""},null,{"$f":"IFERROR(IF(AND(MeasureCalc(Table_PI[[#This Row],[Hide:\nFormula Name]],Table_SummaryPI[[#This Row],[Quantity]],Table_PI[[#This Row],[List 1]],Table_PI[[#This Row],[List 2]],Table_PI[[#This Row],[List 3]],Table_PI[[#This Row],[Size]],Table_PI[[#This Row],[Input 1]],Table_PI[[#This Row],[Input 2]],Table_PI[[#This Row],[Input 3]],Table_PI[[#This Row],[Input 4]],'Customer Information'!$AR$12,103,ROW())<>0,MeasureCalc(Table_PI[[#This Row],[Hide:\nFormula Name]],Table_SummaryPI[[#This Row],[Quantity]],Table_PI[[#This Row],[List 1]],Table_PI[[#This Row],[List 2]],Table_PI[[#This Row],[List 3]],Table_PI[[#This Row],[Size]],Table_PI[[#This Row],[Input 1]],Table_PI[[#This Row],[Input 2]],Table_PI[[#This Row],[Input 3]],Table_PI[[#This Row],[Input 4]],'Customer Information'!$AR$12,103,ROW())<>\"No Rebate\"),MeasureCalc(Table_PI[[#This Row],[Hide:\nFormula Name]],Table_SummaryPI[[#This Row],[Quantity]],Table_PI[[#This Row],[List 1]],Table_PI[[#This Row],[List 2]],Table_PI[[#This Row],[List 3]],Table_PI[[#This Row],[Size]],Table_PI[[#This Row],[Input 1]],Table_PI[[#This Row],[Input 2]],Table_PI[[#This Row],[Input 3]],Table_PI[[#This Row],[Input 4]],'Customer Information'!$AR$12,103,ROW()),\"\"),\"\")","v":""},{"$f":"IF(Table_PI[[#This Row],[Input 4]]<>\"\",Table_PI[[#This Row],[Input 4]],\"\")","v":""},{"$f":"IF(Table_PI[[#This Row],[Quantity]]=\"\",\"\",Table_PI[[#This Row],[Quantity]])","v":""},{"$f":"IF(Table_PI[[#This Row],[Notes]]=\"\",\"\",Table_PI[[#This Row],[Notes]])","v":""},{"$f":"IF(OR(Table_PI[[#This Row],[Hide:\nBaseline kWh]]=\"\",Table_PI[[#This Row],[Hide:\nBaseline kWh]]=0),\"\",Table_PI[[#This Row],[Hide:\nBaseline kWh]])","v":""},{"$f":"IF(OR(Table_PI[[#This Row],[Hide:\nBaseline kW]]=\"\",Table_PI[[#This Row],[Hide:\nBaseline kW]]=0),\"\",Table_PI[[#This Row],[Hide:\nBaseline kW]])","v":""},{"$f":"IF(OR(Table_PI[[#This Row],[Hide:\nProposed kWh]]=\"\",Table_PI[[#This Row],[Hide:\nProposed kWh]]=0),\"\",Table_PI[[#This Row],[Hide:\nProposed kWh]])","v":""},{"$f":"IF(OR(Table_PI[[#This Row],[Hide:\nProposed kW]]=\"\",Table_PI[[#This Row],[Hide:\nProposed kW]]=0),\"\",Table_PI[[#This Row],[Hide:\nProposed kW]])","v":""},{"$f":"IF(OR(Table_PI[[#This Row],[Rebate]]=\"\",Table_PI[[#This Row],[Rebate]]=0),\"\",Table_PI[[#This Row],[Rebate]])","v":""},{"$f":"IF(OR(Table_PI[[#This Row],[Hide:\nIncremental Cost]]=\"\",Table_PI[[#This Row],[Hide:\nIncremental Cost]]=0),\"\",Table_PI[[#This Row],[Hide:\nIncremental Cost]])","v":""},{"$f":"IFERROR(IF(Table_SummaryPI[[#This Row],[kWhSavings]]=\"\",\"\",ROUND(Table_SummaryPI[[#This Row],[kWhSavings]]/$AG$401*'Customer Information'!$BC$17,2)),0)","v":""},{"$f":"IF(OR(Table_PI[[#This Row],[Annual kWh]]=\"\",Table_PI[[#This Row],[Annual kWh]]=0),\"\",Table_PI[[#This Row],[Annual kWh]])","v":""},{"$f":"IF(OR(Table_PI[[#This Row],[Peak kW]]=\"\",Table_PI[[#This Row],[Peak kW]]=0),\"\",Table_PI[[#This Row],[Peak kW]])","v":""},{"$f":"IFERROR(IF(Table_SummaryPI[[#This Row],[kWhSavings]]=\"\",\"\",$AU$9*Table_SummaryPI[[#This Row],[kWhSavings]]),0)","v":""},{"$f":"IFERROR(IF(Table_SummaryPI[[#This Row],[kWhSavings]]=\"\",\"\",$AU$14*Table_SummaryPI[[#This Row],[kWhSavings]]),0)","v":""},{"$f":"IFERROR(IF(Table_SummaryPI[[#This Row],[kWhSavings]]=\"\",\"\",$AU$18*Table_SummaryPI[[#This Row],[kWhSavings]]),0)","v":""},{"$f":"IFERROR(IF(Table_SummaryPI[[#This Row],[kWhSavings]]=\"\",\"\",$AU$22*Table_SummaryPI[[#This Row],[kWhSavings]]),0)","v":""},{"$f":"IFERROR(IF(MeasureCalc(Table_PI[[#This Row],[Hide:\nFormula Name]],Table_SummaryPI[[#This Row],[Quantity]],Table_PI[[#This Row],[List 1]],Table_PI[[#This Row],[List 2]],Table_PI[[#This Row],[List 3]],Table_PI[[#This Row],[Size]],Table_PI[[#This Row],[Input 1]],Table_PI[[#This Row],[Input 2]],Table_PI[[#This Row],[Input 3]],Table_PI[[#This Row],[Input 4]],'Customer Information'!$AR$12,200,ROW())<>\"No Rebate\",MeasureCalc(Table_PI[[#This Row],[Hide:\nFormula Name]],Table_SummaryPI[[#This Row],[Quantity]],Table_PI[[#This Row],[List 1]],Table_PI[[#This Row],[List 2]],Table_PI[[#This Row],[List 3]],Table_PI[[#This Row],[Size]],Table_PI[[#This Row],[Input 1]],Table_PI[[#This Row],[Input 2]],Table_PI[[#This Row],[Input 3]],Table_PI[[#This Row],[Input 4]],'Customer Information'!$AR$12,200,ROW()),\"\"),\"\")","v":""},{"$f":"IFERROR(IF(MeasureCalc(Table_PI[[#This Row],[Hide:\nFormula Name]],Table_SummaryPI[[#This Row],[Quantity]],Table_PI[[#This Row],[List 1]],Table_PI[[#This Row],[List 2]],Table_PI[[#This Row],[List 3]],Table_PI[[#This Row],[Size]],Table_PI[[#This Row],[Input 1]],Table_PI[[#This Row],[Input 2]],Table_PI[[#This Row],[Input 3]],Table_PI[[#This Row],[Input 4]],'Customer Information'!$AR$12,201,ROW())<>\"No Rebate\",MeasureCalc(Table_PI[[#This Row],[Hide:\nFormula Name]],Table_SummaryPI[[#This Row],[Quantity]],Table_PI[[#This Row],[List 1]],Table_PI[[#This Row],[List 2]],Table_PI[[#This Row],[List 3]],Table_PI[[#This Row],[Size]],Table_PI[[#This Row],[Input 1]],Table_PI[[#This Row],[Input 2]],Table_PI[[#This Row],[Input 3]],Table_PI[[#This Row],[Input 4]],'Customer Information'!$AR$12,201,ROW()),\"\"),\"\")","v":""}]
[{"$f":"Table_PI[[#This Row],[Line No.]]","v":""},{"$f":"IF(Table_SummaryPI[[#This Row],[MeassureCategory]]<>\"\",CONCATENATE(Table_SummaryPI[[#This Row],[MeassureCategory]],  \" - \", Table_SummaryPI[[#This Row],[ProposedMeasureCategory]],  \" - \", TEXT(Table_SummaryPI[[#This Row],[Size]],\"#,##0.00\"),\" \",Table_SummaryPI[[#This Row],[SizeUnit]]),\"\")","v":""},{"$f":"SUBSTITUTE(Table_PI[[#This Row],[Measure]],\"     \",\"\",1)","v":""},{"$f":"IF(Table_PI[[#This Row],[List 1]]<>\"\",Table_PI[[#This Row],[List 1]],\"\")","v":""},{"$f":"IF(Table_PI[[#This Row],[List 2]]<>\"\",Table_PI[[#This Row],[List 2]],\"\")","v":""},{"$f":"IF(Table_PI[[#This Row],[List 3]]<>\"\",Table_PI[[#This Row],[List 3]],\"\")","v":""},{"$f":"IF(Table_PI[[#This Row],[Manufacturer]]=\"\",\"\",Table_PI[[#This Row],[Manufacturer]])","v":""},{"$f":"IF(Table_PI[[#This Row],[Model Number]]=\"\",\"\",Table_PI[[#This Row],[Model Number]])","v":""},{"$f":"IF(Table_PI[[#This Row],[Serial Number(s)]]=\"\",\"\",Table_PI[[#This Row],[Serial Number(s)]])","v":""},null,{"$f":"IF(Table_PI[[#This Row],[Size]]=\"\",\"\",Table_PI[[#This Row],[Size]])","v":""},null,{"$f":"IFERROR(IF(AND(MeasureCalc(Table_PI[[#This Row],[Hide:\nFormula Name]],Table_SummaryPI[[#This Row],[Quantity]],Table_PI[[#This Row],[List 1]],Table_PI[[#This Row],[List 2]],Table_PI[[#This Row],[List 3]],Table_PI[[#This Row],[Size]],Table_PI[[#This Row],[Input 1]],Table_PI[[#This Row],[Input 2]],Table_PI[[#This Row],[Input 3]],Table_PI[[#This Row],[Input 4]],'Customer Information'!$AR$12,100,ROW())<>0,MeasureCalc(Table_PI[[#This Row],[Hide:\nFormula Name]],Table_SummaryPI[[#This Row],[Quantity]],Table_PI[[#This Row],[List 1]],Table_PI[[#This Row],[List 2]],Table_PI[[#This Row],[List 3]],Table_PI[[#This Row],[Size]],Table_PI[[#This Row],[Input 1]],Table_PI[[#This Row],[Input 2]],Table_PI[[#This Row],[Input 3]],Table_PI[[#This Row],[Input 4]],'Customer Information'!$AR$12,100,ROW())<>\"No Rebate\"),MeasureCalc(Table_PI[[#This Row],[Hide:\nFormula Name]],Table_SummaryPI[[#This Row],[Quantity]],Table_PI[[#This Row],[List 1]],Table_PI[[#This Row],[List 2]],Table_PI[[#This Row],[List 3]],Table_PI[[#This Row],[Size]],Table_PI[[#This Row],[Input 1]],Table_PI[[#This Row],[Input 2]],Table_PI[[#This Row],[Input 3]],Table_PI[[#This Row],[Input 4]],'Customer Information'!$AR$12,100,ROW()),\"\"),\"\")","v":""},{"$f":"IF(Table_PI[[#This Row],[Input 1]]<>\"\",Table_PI[[#This Row],[Input 1]],\"\")","v":""},null,{"$f":"IFERROR(IF(AND(MeasureCalc(Table_PI[[#This Row],[Hide:\nFormula Name]],Table_SummaryPI[[#This Row],[Quantity]],Table_PI[[#This Row],[List 1]],Table_PI[[#This Row],[List 2]],Table_PI[[#This Row],[List 3]],Table_PI[[#This Row],[Size]],Table_PI[[#This Row],[Input 1]],Table_PI[[#This Row],[Input 2]],Table_PI[[#This Row],[Input 3]],Table_PI[[#This Row],[Input 4]],'Customer Information'!$AR$12,101,ROW())<>0,MeasureCalc(Table_PI[[#This Row],[Hide:\nFormula Name]],Table_SummaryPI[[#This Row],[Quantity]],Table_PI[[#This Row],[List 1]],Table_PI[[#This Row],[List 2]],Table_PI[[#This Row],[List 3]],Table_PI[[#This Row],[Size]],Table_PI[[#This Row],[Input 1]],Table_PI[[#This Row],[Input 2]],Table_PI[[#This Row],[Input 3]],Table_PI[[#This Row],[Input 4]],'Customer Information'!$AR$12,101,ROW())<>\"No Rebate\"),MeasureCalc(Table_PI[[#This Row],[Hide:\nFormula Name]],Table_SummaryPI[[#This Row],[Quantity]],Table_PI[[#This Row],[List 1]],Table_PI[[#This Row],[List 2]],Table_PI[[#This Row],[List 3]],Table_PI[[#This Row],[Size]],Table_PI[[#This Row],[Input 1]],Table_PI[[#This Row],[Input 2]],Table_PI[[#This Row],[Input 3]],Table_PI[[#This Row],[Input 4]],'Customer Information'!$AR$12,101,ROW()),\"\"),\"\")","v":""},{"$f":"IF(Table_PI[[#This Row],[Input 2]]<>\"\",Table_PI[[#This Row],[Input 2]],\"\")","v":""},null,{"$f":"IFERROR(IF(AND(MeasureCalc(Table_PI[[#This Row],[Hide:\nFormula Name]],Table_SummaryPI[[#This Row],[Quantity]],Table_PI[[#This Row],[List 1]],Table_PI[[#This Row],[List 2]],Table_PI[[#This Row],[List 3]],Table_PI[[#This Row],[Size]],Table_PI[[#This Row],[Input 1]],Table_PI[[#This Row],[Input 2]],Table_PI[[#This Row],[Input 3]],Table_PI[[#This Row],[Input 4]],'Customer Information'!$AR$12,102,ROW())<>0,MeasureCalc(Table_PI[[#This Row],[Hide:\nFormula Name]],Table_SummaryPI[[#This Row],[Quantity]],Table_PI[[#This Row],[List 1]],Table_PI[[#This Row],[List 2]],Table_PI[[#This Row],[List 3]],Table_PI[[#This Row],[Size]],Table_PI[[#This Row],[Input 1]],Table_PI[[#This Row],[Input 2]],Table_PI[[#This Row],[Input 3]],Table_PI[[#This Row],[Input 4]],'Customer Information'!$AR$12,102,ROW())<>\"No Rebate\"),MeasureCalc(Table_PI[[#This Row],[Hide:\nFormula Name]],Table_SummaryPI[[#This Row],[Quantity]],Table_PI[[#This Row],[List 1]],Table_PI[[#This Row],[List 2]],Table_PI[[#This Row],[List 3]],Table_PI[[#This Row],[Size]],Table_PI[[#This Row],[Input 1]],Table_PI[[#This Row],[Input 2]],Table_PI[[#This Row],[Input 3]],Table_PI[[#This Row],[Input 4]],'Customer Information'!$AR$12,102,ROW()),\"\"),\"\")","v":""},{"$f":"IF(Table_PI[[#This Row],[Input 3]]<>\"\",Table_PI[[#This Row],[Input 3]],\"\")","v":""},null,{"$f":"IFERROR(IF(AND(MeasureCalc(Table_PI[[#This Row],[Hide:\nFormula Name]],Table_SummaryPI[[#This Row],[Quantity]],Table_PI[[#This Row],[List 1]],Table_PI[[#This Row],[List 2]],Table_PI[[#This Row],[List 3]],Table_PI[[#This Row],[Size]],Table_PI[[#This Row],[Input 1]],Table_PI[[#This Row],[Input 2]],Table_PI[[#This Row],[Input 3]],Table_PI[[#This Row],[Input 4]],'Customer Information'!$AR$12,103,ROW())<>0,MeasureCalc(Table_PI[[#This Row],[Hide:\nFormula Name]],Table_SummaryPI[[#This Row],[Quantity]],Table_PI[[#This Row],[List 1]],Table_PI[[#This Row],[List 2]],Table_PI[[#This Row],[List 3]],Table_PI[[#This Row],[Size]],Table_PI[[#This Row],[Input 1]],Table_PI[[#This Row],[Input 2]],Table_PI[[#This Row],[Input 3]],Table_PI[[#This Row],[Input 4]],'Customer Information'!$AR$12,103,ROW())<>\"No Rebate\"),MeasureCalc(Table_PI[[#This Row],[Hide:\nFormula Name]],Table_SummaryPI[[#This Row],[Quantity]],Table_PI[[#This Row],[List 1]],Table_PI[[#This Row],[List 2]],Table_PI[[#This Row],[List 3]],Table_PI[[#This Row],[Size]],Table_PI[[#This Row],[Input 1]],Table_PI[[#This Row],[Input 2]],Table_PI[[#This Row],[Input 3]],Table_PI[[#This Row],[Input 4]],'Customer Information'!$AR$12,103,ROW()),\"\"),\"\")","v":""},{"$f":"IF(Table_PI[[#This Row],[Input 4]]<>\"\",Table_PI[[#This Row],[Input 4]],\"\")","v":""},{"$f":"IF(Table_PI[[#This Row],[Quantity]]=\"\",\"\",Table_PI[[#This Row],[Quantity]])","v":""},{"$f":"IF(Table_PI[[#This Row],[Notes]]=\"\",\"\",Table_PI[[#This Row],[Notes]])","v":""},{"$f":"IF(OR(Table_PI[[#This Row],[Hide:\nBaseline kWh]]=\"\",Table_PI[[#This Row],[Hide:\nBaseline kWh]]=0),\"\",Table_PI[[#This Row],[Hide:\nBaseline kWh]])","v":""},{"$f":"IF(OR(Table_PI[[#This Row],[Hide:\nBaseline kW]]=\"\",Table_PI[[#This Row],[Hide:\nBaseline kW]]=0),\"\",Table_PI[[#This Row],[Hide:\nBaseline kW]])","v":""},{"$f":"IF(OR(Table_PI[[#This Row],[Hide:\nProposed kWh]]=\"\",Table_PI[[#This Row],[Hide:\nProposed kWh]]=0),\"\",Table_PI[[#This Row],[Hide:\nProposed kWh]])","v":""},{"$f":"IF(OR(Table_PI[[#This Row],[Hide:\nProposed kW]]=\"\",Table_PI[[#This Row],[Hide:\nProposed kW]]=0),\"\",Table_PI[[#This Row],[Hide:\nProposed kW]])","v":""},{"$f":"IF(OR(Table_PI[[#This Row],[Rebate]]=\"\",Table_PI[[#This Row],[Rebate]]=0),\"\",Table_PI[[#This Row],[Rebate]])","v":""},{"$f":"IF(OR(Table_PI[[#This Row],[Hide:\nIncremental Cost]]=\"\",Table_PI[[#This Row],[Hide:\nIncremental Cost]]=0),\"\",Table_PI[[#This Row],[Hide:\nIncremental Cost]])","v":""},{"$f":"IFERROR(IF(Table_SummaryPI[[#This Row],[kWhSavings]]=\"\",\"\",ROUND(Table_SummaryPI[[#This Row],[kWhSavings]]/$AG$401*'Customer Information'!$BC$17,2)),0)","v":""},{"$f":"IF(OR(Table_PI[[#This Row],[Annual kWh]]=\"\",Table_PI[[#This Row],[Annual kWh]]=0),\"\",Table_PI[[#This Row],[Annual kWh]])","v":""},{"$f":"IF(OR(Table_PI[[#This Row],[Peak kW]]=\"\",Table_PI[[#This Row],[Peak kW]]=0),\"\",Table_PI[[#This Row],[Peak kW]])","v":""},{"$f":"IFERROR(IF(Table_SummaryPI[[#This Row],[kWhSavings]]=\"\",\"\",$AU$9*Table_SummaryPI[[#This Row],[kWhSavings]]),0)","v":""},{"$f":"IFERROR(IF(Table_SummaryPI[[#This Row],[kWhSavings]]=\"\",\"\",$AU$14*Table_SummaryPI[[#This Row],[kWhSavings]]),0)","v":""},{"$f":"IFERROR(IF(Table_SummaryPI[[#This Row],[kWhSavings]]=\"\",\"\",$AU$18*Table_SummaryPI[[#This Row],[kWhSavings]]),0)","v":""},{"$f":"IFERROR(IF(Table_SummaryPI[[#This Row],[kWhSavings]]=\"\",\"\",$AU$22*Table_SummaryPI[[#This Row],[kWhSavings]]),0)","v":""},{"$f":"IFERROR(IF(MeasureCalc(Table_PI[[#This Row],[Hide:\nFormula Name]],Table_SummaryPI[[#This Row],[Quantity]],Table_PI[[#This Row],[List 1]],Table_PI[[#This Row],[List 2]],Table_PI[[#This Row],[List 3]],Table_PI[[#This Row],[Size]],Table_PI[[#This Row],[Input 1]],Table_PI[[#This Row],[Input 2]],Table_PI[[#This Row],[Input 3]],Table_PI[[#This Row],[Input 4]],'Customer Information'!$AR$12,200,ROW())<>\"No Rebate\",MeasureCalc(Table_PI[[#This Row],[Hide:\nFormula Name]],Table_SummaryPI[[#This Row],[Quantity]],Table_PI[[#This Row],[List 1]],Table_PI[[#This Row],[List 2]],Table_PI[[#This Row],[List 3]],Table_PI[[#This Row],[Size]],Table_PI[[#This Row],[Input 1]],Table_PI[[#This Row],[Input 2]],Table_PI[[#This Row],[Input 3]],Table_PI[[#This Row],[Input 4]],'Customer Information'!$AR$12,200,ROW()),\"\"),\"\")","v":""},{"$f":"IFERROR(IF(MeasureCalc(Table_PI[[#This Row],[Hide:\nFormula Name]],Table_SummaryPI[[#This Row],[Quantity]],Table_PI[[#This Row],[List 1]],Table_PI[[#This Row],[List 2]],Table_PI[[#This Row],[List 3]],Table_PI[[#This Row],[Size]],Table_PI[[#This Row],[Input 1]],Table_PI[[#This Row],[Input 2]],Table_PI[[#This Row],[Input 3]],Table_PI[[#This Row],[Input 4]],'Customer Information'!$AR$12,201,ROW())<>\"No Rebate\",MeasureCalc(Table_PI[[#This Row],[Hide:\nFormula Name]],Table_SummaryPI[[#This Row],[Quantity]],Table_PI[[#This Row],[List 1]],Table_PI[[#This Row],[List 2]],Table_PI[[#This Row],[List 3]],Table_PI[[#This Row],[Size]],Table_PI[[#This Row],[Input 1]],Table_PI[[#This Row],[Input 2]],Table_PI[[#This Row],[Input 3]],Table_PI[[#This Row],[Input 4]],'Customer Information'!$AR$12,201,ROW()),\"\"),\"\")","v":""}]
[{"$f":"Table_PI[[#This Row],[Line No.]]","v":""},{"$f":"IF(Table_SummaryPI[[#This Row],[MeassureCategory]]<>\"\",CONCATENATE(Table_SummaryPI[[#This Row],[MeassureCategory]],  \" - \", Table_SummaryPI[[#This Row],[ProposedMeasureCategory]],  \" - \", TEXT(Table_SummaryPI[[#This Row],[Size]],\"#,##0.00\"),\" \",Table_SummaryPI[[#This Row],[SizeUnit]]),\"\")","v":""},{"$f":"SUBSTITUTE(Table_PI[[#This Row],[Measure]],\"     \",\"\",1)","v":""},{"$f":"IF(Table_PI[[#This Row],[List 1]]<>\"\",Table_PI[[#This Row],[List 1]],\"\")","v":""},{"$f":"IF(Table_PI[[#This Row],[List 2]]<>\"\",Table_PI[[#This Row],[List 2]],\"\")","v":""},{"$f":"IF(Table_PI[[#This Row],[List 3]]<>\"\",Table_PI[[#This Row],[List 3]],\"\")","v":""},{"$f":"IF(Table_PI[[#This Row],[Manufacturer]]=\"\",\"\",Table_PI[[#This Row],[Manufacturer]])","v":""},{"$f":"IF(Table_PI[[#This Row],[Model Number]]=\"\",\"\",Table_PI[[#This Row],[Model Number]])","v":""},{"$f":"IF(Table_PI[[#This Row],[Serial Number(s)]]=\"\",\"\",Table_PI[[#This Row],[Serial Number(s)]])","v":""},null,{"$f":"IF(Table_PI[[#This Row],[Size]]=\"\",\"\",Table_PI[[#This Row],[Size]])","v":""},null,{"$f":"IFERROR(IF(AND(MeasureCalc(Table_PI[[#This Row],[Hide:\nFormula Name]],Table_SummaryPI[[#This Row],[Quantity]],Table_PI[[#This Row],[List 1]],Table_PI[[#This Row],[List 2]],Table_PI[[#This Row],[List 3]],Table_PI[[#This Row],[Size]],Table_PI[[#This Row],[Input 1]],Table_PI[[#This Row],[Input 2]],Table_PI[[#This Row],[Input 3]],Table_PI[[#This Row],[Input 4]],'Customer Information'!$AR$12,100,ROW())<>0,MeasureCalc(Table_PI[[#This Row],[Hide:\nFormula Name]],Table_SummaryPI[[#This Row],[Quantity]],Table_PI[[#This Row],[List 1]],Table_PI[[#This Row],[List 2]],Table_PI[[#This Row],[List 3]],Table_PI[[#This Row],[Size]],Table_PI[[#This Row],[Input 1]],Table_PI[[#This Row],[Input 2]],Table_PI[[#This Row],[Input 3]],Table_PI[[#This Row],[Input 4]],'Customer Information'!$AR$12,100,ROW())<>\"No Rebate\"),MeasureCalc(Table_PI[[#This Row],[Hide:\nFormula Name]],Table_SummaryPI[[#This Row],[Quantity]],Table_PI[[#This Row],[List 1]],Table_PI[[#This Row],[List 2]],Table_PI[[#This Row],[List 3]],Table_PI[[#This Row],[Size]],Table_PI[[#This Row],[Input 1]],Table_PI[[#This Row],[Input 2]],Table_PI[[#This Row],[Input 3]],Table_PI[[#This Row],[Input 4]],'Customer Information'!$AR$12,100,ROW()),\"\"),\"\")","v":""},{"$f":"IF(Table_PI[[#This Row],[Input 1]]<>\"\",Table_PI[[#This Row],[Input 1]],\"\")","v":""},null,{"$f":"IFERROR(IF(AND(MeasureCalc(Table_PI[[#This Row],[Hide:\nFormula Name]],Table_SummaryPI[[#This Row],[Quantity]],Table_PI[[#This Row],[List 1]],Table_PI[[#This Row],[List 2]],Table_PI[[#This Row],[List 3]],Table_PI[[#This Row],[Size]],Table_PI[[#This Row],[Input 1]],Table_PI[[#This Row],[Input 2]],Table_PI[[#This Row],[Input 3]],Table_PI[[#This Row],[Input 4]],'Customer Information'!$AR$12,101,ROW())<>0,MeasureCalc(Table_PI[[#This Row],[Hide:\nFormula Name]],Table_SummaryPI[[#This Row],[Quantity]],Table_PI[[#This Row],[List 1]],Table_PI[[#This Row],[List 2]],Table_PI[[#This Row],[List 3]],Table_PI[[#This Row],[Size]],Table_PI[[#This Row],[Input 1]],Table_PI[[#This Row],[Input 2]],Table_PI[[#This Row],[Input 3]],Table_PI[[#This Row],[Input 4]],'Customer Information'!$AR$12,101,ROW())<>\"No Rebate\"),MeasureCalc(Table_PI[[#This Row],[Hide:\nFormula Name]],Table_SummaryPI[[#This Row],[Quantity]],Table_PI[[#This Row],[List 1]],Table_PI[[#This Row],[List 2]],Table_PI[[#This Row],[List 3]],Table_PI[[#This Row],[Size]],Table_PI[[#This Row],[Input 1]],Table_PI[[#This Row],[Input 2]],Table_PI[[#This Row],[Input 3]],Table_PI[[#This Row],[Input 4]],'Customer Information'!$AR$12,101,ROW()),\"\"),\"\")","v":""},{"$f":"IF(Table_PI[[#This Row],[Input 2]]<>\"\",Table_PI[[#This Row],[Input 2]],\"\")","v":""},null,{"$f":"IFERROR(IF(AND(MeasureCalc(Table_PI[[#This Row],[Hide:\nFormula Name]],Table_SummaryPI[[#This Row],[Quantity]],Table_PI[[#This Row],[List 1]],Table_PI[[#This Row],[List 2]],Table_PI[[#This Row],[List 3]],Table_PI[[#This Row],[Size]],Table_PI[[#This Row],[Input 1]],Table_PI[[#This Row],[Input 2]],Table_PI[[#This Row],[Input 3]],Table_PI[[#This Row],[Input 4]],'Customer Information'!$AR$12,102,ROW())<>0,MeasureCalc(Table_PI[[#This Row],[Hide:\nFormula Name]],Table_SummaryPI[[#This Row],[Quantity]],Table_PI[[#This Row],[List 1]],Table_PI[[#This Row],[List 2]],Table_PI[[#This Row],[List 3]],Table_PI[[#This Row],[Size]],Table_PI[[#This Row],[Input 1]],Table_PI[[#This Row],[Input 2]],Table_PI[[#This Row],[Input 3]],Table_PI[[#This Row],[Input 4]],'Customer Information'!$AR$12,102,ROW())<>\"No Rebate\"),MeasureCalc(Table_PI[[#This Row],[Hide:\nFormula Name]],Table_SummaryPI[[#This Row],[Quantity]],Table_PI[[#This Row],[List 1]],Table_PI[[#This Row],[List 2]],Table_PI[[#This Row],[List 3]],Table_PI[[#This Row],[Size]],Table_PI[[#This Row],[Input 1]],Table_PI[[#This Row],[Input 2]],Table_PI[[#This Row],[Input 3]],Table_PI[[#This Row],[Input 4]],'Customer Information'!$AR$12,102,ROW()),\"\"),\"\")","v":""},{"$f":"IF(Table_PI[[#This Row],[Input 3]]<>\"\",Table_PI[[#This Row],[Input 3]],\"\")","v":""},null,{"$f":"IFERROR(IF(AND(MeasureCalc(Table_PI[[#This Row],[Hide:\nFormula Name]],Table_SummaryPI[[#This Row],[Quantity]],Table_PI[[#This Row],[List 1]],Table_PI[[#This Row],[List 2]],Table_PI[[#This Row],[List 3]],Table_PI[[#This Row],[Size]],Table_PI[[#This Row],[Input 1]],Table_PI[[#This Row],[Input 2]],Table_PI[[#This Row],[Input 3]],Table_PI[[#This Row],[Input 4]],'Customer Information'!$AR$12,103,ROW())<>0,MeasureCalc(Table_PI[[#This Row],[Hide:\nFormula Name]],Table_SummaryPI[[#This Row],[Quantity]],Table_PI[[#This Row],[List 1]],Table_PI[[#This Row],[List 2]],Table_PI[[#This Row],[List 3]],Table_PI[[#This Row],[Size]],Table_PI[[#This Row],[Input 1]],Table_PI[[#This Row],[Input 2]],Table_PI[[#This Row],[Input 3]],Table_PI[[#This Row],[Input 4]],'Customer Information'!$AR$12,103,ROW())<>\"No Rebate\"),MeasureCalc(Table_PI[[#This Row],[Hide:\nFormula Name]],Table_SummaryPI[[#This Row],[Quantity]],Table_PI[[#This Row],[List 1]],Table_PI[[#This Row],[List 2]],Table_PI[[#This Row],[List 3]],Table_PI[[#This Row],[Size]],Table_PI[[#This Row],[Input 1]],Table_PI[[#This Row],[Input 2]],Table_PI[[#This Row],[Input 3]],Table_PI[[#This Row],[Input 4]],'Customer Information'!$AR$12,103,ROW()),\"\"),\"\")","v":""},{"$f":"IF(Table_PI[[#This Row],[Input 4]]<>\"\",Table_PI[[#This Row],[Input 4]],\"\")","v":""},{"$f":"IF(Table_PI[[#This Row],[Quantity]]=\"\",\"\",Table_PI[[#This Row],[Quantity]])","v":""},{"$f":"IF(Table_PI[[#This Row],[Notes]]=\"\",\"\",Table_PI[[#This Row],[Notes]])","v":""},{"$f":"IF(OR(Table_PI[[#This Row],[Hide:\nBaseline kWh]]=\"\",Table_PI[[#This Row],[Hide:\nBaseline kWh]]=0),\"\",Table_PI[[#This Row],[Hide:\nBaseline kWh]])","v":""},{"$f":"IF(OR(Table_PI[[#This Row],[Hide:\nBaseline kW]]=\"\",Table_PI[[#This Row],[Hide:\nBaseline kW]]=0),\"\",Table_PI[[#This Row],[Hide:\nBaseline kW]])","v":""},{"$f":"IF(OR(Table_PI[[#This Row],[Hide:\nProposed kWh]]=\"\",Table_PI[[#This Row],[Hide:\nProposed kWh]]=0),\"\",Table_PI[[#This Row],[Hide:\nProposed kWh]])","v":""},{"$f":"IF(OR(Table_PI[[#This Row],[Hide:\nProposed kW]]=\"\",Table_PI[[#This Row],[Hide:\nProposed kW]]=0),\"\",Table_PI[[#This Row],[Hide:\nProposed kW]])","v":""},{"$f":"IF(OR(Table_PI[[#This Row],[Rebate]]=\"\",Table_PI[[#This Row],[Rebate]]=0),\"\",Table_PI[[#This Row],[Rebate]])","v":""},{"$f":"IF(OR(Table_PI[[#This Row],[Hide:\nIncremental Cost]]=\"\",Table_PI[[#This Row],[Hide:\nIncremental Cost]]=0),\"\",Table_PI[[#This Row],[Hide:\nIncremental Cost]])","v":""},{"$f":"IFERROR(IF(Table_SummaryPI[[#This Row],[kWhSavings]]=\"\",\"\",ROUND(Table_SummaryPI[[#This Row],[kWhSavings]]/$AG$401*'Customer Information'!$BC$17,2)),0)","v":""},{"$f":"IF(OR(Table_PI[[#This Row],[Annual kWh]]=\"\",Table_PI[[#This Row],[Annual kWh]]=0),\"\",Table_PI[[#This Row],[Annual kWh]])","v":""},{"$f":"IF(OR(Table_PI[[#This Row],[Peak kW]]=\"\",Table_PI[[#This Row],[Peak kW]]=0),\"\",Table_PI[[#This Row],[Peak kW]])","v":""},{"$f":"IFERROR(IF(Table_SummaryPI[[#This Row],[kWhSavings]]=\"\",\"\",$AU$9*Table_SummaryPI[[#This Row],[kWhSavings]]),0)","v":""},{"$f":"IFERROR(IF(Table_SummaryPI[[#This Row],[kWhSavings]]=\"\",\"\",$AU$14*Table_SummaryPI[[#This Row],[kWhSavings]]),0)","v":""},{"$f":"IFERROR(IF(Table_SummaryPI[[#This Row],[kWhSavings]]=\"\",\"\",$AU$18*Table_SummaryPI[[#This Row],[kWhSavings]]),0)","v":""},{"$f":"IFERROR(IF(Table_SummaryPI[[#This Row],[kWhSavings]]=\"\",\"\",$AU$22*Table_SummaryPI[[#This Row],[kWhSavings]]),0)","v":""},{"$f":"IFERROR(IF(MeasureCalc(Table_PI[[#This Row],[Hide:\nFormula Name]],Table_SummaryPI[[#This Row],[Quantity]],Table_PI[[#This Row],[List 1]],Table_PI[[#This Row],[List 2]],Table_PI[[#This Row],[List 3]],Table_PI[[#This Row],[Size]],Table_PI[[#This Row],[Input 1]],Table_PI[[#This Row],[Input 2]],Table_PI[[#This Row],[Input 3]],Table_PI[[#This Row],[Input 4]],'Customer Information'!$AR$12,200,ROW())<>\"No Rebate\",MeasureCalc(Table_PI[[#This Row],[Hide:\nFormula Name]],Table_SummaryPI[[#This Row],[Quantity]],Table_PI[[#This Row],[List 1]],Table_PI[[#This Row],[List 2]],Table_PI[[#This Row],[List 3]],Table_PI[[#This Row],[Size]],Table_PI[[#This Row],[Input 1]],Table_PI[[#This Row],[Input 2]],Table_PI[[#This Row],[Input 3]],Table_PI[[#This Row],[Input 4]],'Customer Information'!$AR$12,200,ROW()),\"\"),\"\")","v":""},{"$f":"IFERROR(IF(MeasureCalc(Table_PI[[#This Row],[Hide:\nFormula Name]],Table_SummaryPI[[#This Row],[Quantity]],Table_PI[[#This Row],[List 1]],Table_PI[[#This Row],[List 2]],Table_PI[[#This Row],[List 3]],Table_PI[[#This Row],[Size]],Table_PI[[#This Row],[Input 1]],Table_PI[[#This Row],[Input 2]],Table_PI[[#This Row],[Input 3]],Table_PI[[#This Row],[Input 4]],'Customer Information'!$AR$12,201,ROW())<>\"No Rebate\",MeasureCalc(Table_PI[[#This Row],[Hide:\nFormula Name]],Table_SummaryPI[[#This Row],[Quantity]],Table_PI[[#This Row],[List 1]],Table_PI[[#This Row],[List 2]],Table_PI[[#This Row],[List 3]],Table_PI[[#This Row],[Size]],Table_PI[[#This Row],[Input 1]],Table_PI[[#This Row],[Input 2]],Table_PI[[#This Row],[Input 3]],Table_PI[[#This Row],[Input 4]],'Customer Information'!$AR$12,201,ROW()),\"\"),\"\")","v":""}]
[{"$f":"Table_PI[[#This Row],[Line No.]]","v":""},{"$f":"IF(Table_SummaryPI[[#This Row],[MeassureCategory]]<>\"\",CONCATENATE(Table_SummaryPI[[#This Row],[MeassureCategory]],  \" - \", Table_SummaryPI[[#This Row],[ProposedMeasureCategory]],  \" - \", TEXT(Table_SummaryPI[[#This Row],[Size]],\"#,##0.00\"),\" \",Table_SummaryPI[[#This Row],[SizeUnit]]),\"\")","v":""},{"$f":"SUBSTITUTE(Table_PI[[#This Row],[Measure]],\"     \",\"\",1)","v":""},{"$f":"IF(Table_PI[[#This Row],[List 1]]<>\"\",Table_PI[[#This Row],[List 1]],\"\")","v":""},{"$f":"IF(Table_PI[[#This Row],[List 2]]<>\"\",Table_PI[[#This Row],[List 2]],\"\")","v":""},{"$f":"IF(Table_PI[[#This Row],[List 3]]<>\"\",Table_PI[[#This Row],[List 3]],\"\")","v":""},{"$f":"IF(Table_PI[[#This Row],[Manufacturer]]=\"\",\"\",Table_PI[[#This Row],[Manufacturer]])","v":""},{"$f":"IF(Table_PI[[#This Row],[Model Number]]=\"\",\"\",Table_PI[[#This Row],[Model Number]])","v":""},{"$f":"IF(Table_PI[[#This Row],[Serial Number(s)]]=\"\",\"\",Table_PI[[#This Row],[Serial Number(s)]])","v":""},null,{"$f":"IF(Table_PI[[#This Row],[Size]]=\"\",\"\",Table_PI[[#This Row],[Size]])","v":""},null,{"$f":"IFERROR(IF(AND(MeasureCalc(Table_PI[[#This Row],[Hide:\nFormula Name]],Table_SummaryPI[[#This Row],[Quantity]],Table_PI[[#This Row],[List 1]],Table_PI[[#This Row],[List 2]],Table_PI[[#This Row],[List 3]],Table_PI[[#This Row],[Size]],Table_PI[[#This Row],[Input 1]],Table_PI[[#This Row],[Input 2]],Table_PI[[#This Row],[Input 3]],Table_PI[[#This Row],[Input 4]],'Customer Information'!$AR$12,100,ROW())<>0,MeasureCalc(Table_PI[[#This Row],[Hide:\nFormula Name]],Table_SummaryPI[[#This Row],[Quantity]],Table_PI[[#This Row],[List 1]],Table_PI[[#This Row],[List 2]],Table_PI[[#This Row],[List 3]],Table_PI[[#This Row],[Size]],Table_PI[[#This Row],[Input 1]],Table_PI[[#This Row],[Input 2]],Table_PI[[#This Row],[Input 3]],Table_PI[[#This Row],[Input 4]],'Customer Information'!$AR$12,100,ROW())<>\"No Rebate\"),MeasureCalc(Table_PI[[#This Row],[Hide:\nFormula Name]],Table_SummaryPI[[#This Row],[Quantity]],Table_PI[[#This Row],[List 1]],Table_PI[[#This Row],[List 2]],Table_PI[[#This Row],[List 3]],Table_PI[[#This Row],[Size]],Table_PI[[#This Row],[Input 1]],Table_PI[[#This Row],[Input 2]],Table_PI[[#This Row],[Input 3]],Table_PI[[#This Row],[Input 4]],'Customer Information'!$AR$12,100,ROW()),\"\"),\"\")","v":""},{"$f":"IF(Table_PI[[#This Row],[Input 1]]<>\"\",Table_PI[[#This Row],[Input 1]],\"\")","v":""},null,{"$f":"IFERROR(IF(AND(MeasureCalc(Table_PI[[#This Row],[Hide:\nFormula Name]],Table_SummaryPI[[#This Row],[Quantity]],Table_PI[[#This Row],[List 1]],Table_PI[[#This Row],[List 2]],Table_PI[[#This Row],[List 3]],Table_PI[[#This Row],[Size]],Table_PI[[#This Row],[Input 1]],Table_PI[[#This Row],[Input 2]],Table_PI[[#This Row],[Input 3]],Table_PI[[#This Row],[Input 4]],'Customer Information'!$AR$12,101,ROW())<>0,MeasureCalc(Table_PI[[#This Row],[Hide:\nFormula Name]],Table_SummaryPI[[#This Row],[Quantity]],Table_PI[[#This Row],[List 1]],Table_PI[[#This Row],[List 2]],Table_PI[[#This Row],[List 3]],Table_PI[[#This Row],[Size]],Table_PI[[#This Row],[Input 1]],Table_PI[[#This Row],[Input 2]],Table_PI[[#This Row],[Input 3]],Table_PI[[#This Row],[Input 4]],'Customer Information'!$AR$12,101,ROW())<>\"No Rebate\"),MeasureCalc(Table_PI[[#This Row],[Hide:\nFormula Name]],Table_SummaryPI[[#This Row],[Quantity]],Table_PI[[#This Row],[List 1]],Table_PI[[#This Row],[List 2]],Table_PI[[#This Row],[List 3]],Table_PI[[#This Row],[Size]],Table_PI[[#This Row],[Input 1]],Table_PI[[#This Row],[Input 2]],Table_PI[[#This Row],[Input 3]],Table_PI[[#This Row],[Input 4]],'Customer Information'!$AR$12,101,ROW()),\"\"),\"\")","v":""},{"$f":"IF(Table_PI[[#This Row],[Input 2]]<>\"\",Table_PI[[#This Row],[Input 2]],\"\")","v":""},null,{"$f":"IFERROR(IF(AND(MeasureCalc(Table_PI[[#This Row],[Hide:\nFormula Name]],Table_SummaryPI[[#This Row],[Quantity]],Table_PI[[#This Row],[List 1]],Table_PI[[#This Row],[List 2]],Table_PI[[#This Row],[List 3]],Table_PI[[#This Row],[Size]],Table_PI[[#This Row],[Input 1]],Table_PI[[#This Row],[Input 2]],Table_PI[[#This Row],[Input 3]],Table_PI[[#This Row],[Input 4]],'Customer Information'!$AR$12,102,ROW())<>0,MeasureCalc(Table_PI[[#This Row],[Hide:\nFormula Name]],Table_SummaryPI[[#This Row],[Quantity]],Table_PI[[#This Row],[List 1]],Table_PI[[#This Row],[List 2]],Table_PI[[#This Row],[List 3]],Table_PI[[#This Row],[Size]],Table_PI[[#This Row],[Input 1]],Table_PI[[#This Row],[Input 2]],Table_PI[[#This Row],[Input 3]],Table_PI[[#This Row],[Input 4]],'Customer Information'!$AR$12,102,ROW())<>\"No Rebate\"),MeasureCalc(Table_PI[[#This Row],[Hide:\nFormula Name]],Table_SummaryPI[[#This Row],[Quantity]],Table_PI[[#This Row],[List 1]],Table_PI[[#This Row],[List 2]],Table_PI[[#This Row],[List 3]],Table_PI[[#This Row],[Size]],Table_PI[[#This Row],[Input 1]],Table_PI[[#This Row],[Input 2]],Table_PI[[#This Row],[Input 3]],Table_PI[[#This Row],[Input 4]],'Customer Information'!$AR$12,102,ROW()),\"\"),\"\")","v":""},{"$f":"IF(Table_PI[[#This Row],[Input 3]]<>\"\",Table_PI[[#This Row],[Input 3]],\"\")","v":""},null,{"$f":"IFERROR(IF(AND(MeasureCalc(Table_PI[[#This Row],[Hide:\nFormula Name]],Table_SummaryPI[[#This Row],[Quantity]],Table_PI[[#This Row],[List 1]],Table_PI[[#This Row],[List 2]],Table_PI[[#This Row],[List 3]],Table_PI[[#This Row],[Size]],Table_PI[[#This Row],[Input 1]],Table_PI[[#This Row],[Input 2]],Table_PI[[#This Row],[Input 3]],Table_PI[[#This Row],[Input 4]],'Customer Information'!$AR$12,103,ROW())<>0,MeasureCalc(Table_PI[[#This Row],[Hide:\nFormula Name]],Table_SummaryPI[[#This Row],[Quantity]],Table_PI[[#This Row],[List 1]],Table_PI[[#This Row],[List 2]],Table_PI[[#This Row],[List 3]],Table_PI[[#This Row],[Size]],Table_PI[[#This Row],[Input 1]],Table_PI[[#This Row],[Input 2]],Table_PI[[#This Row],[Input 3]],Table_PI[[#This Row],[Input 4]],'Customer Information'!$AR$12,103,ROW())<>\"No Rebate\"),MeasureCalc(Table_PI[[#This Row],[Hide:\nFormula Name]],Table_SummaryPI[[#This Row],[Quantity]],Table_PI[[#This Row],[List 1]],Table_PI[[#This Row],[List 2]],Table_PI[[#This Row],[List 3]],Table_PI[[#This Row],[Size]],Table_PI[[#This Row],[Input 1]],Table_PI[[#This Row],[Input 2]],Table_PI[[#This Row],[Input 3]],Table_PI[[#This Row],[Input 4]],'Customer Information'!$AR$12,103,ROW()),\"\"),\"\")","v":""},{"$f":"IF(Table_PI[[#This Row],[Input 4]]<>\"\",Table_PI[[#This Row],[Input 4]],\"\")","v":""},{"$f":"IF(Table_PI[[#This Row],[Quantity]]=\"\",\"\",Table_PI[[#This Row],[Quantity]])","v":""},{"$f":"IF(Table_PI[[#This Row],[Notes]]=\"\",\"\",Table_PI[[#This Row],[Notes]])","v":""},{"$f":"IF(OR(Table_PI[[#This Row],[Hide:\nBaseline kWh]]=\"\",Table_PI[[#This Row],[Hide:\nBaseline kWh]]=0),\"\",Table_PI[[#This Row],[Hide:\nBaseline kWh]])","v":""},{"$f":"IF(OR(Table_PI[[#This Row],[Hide:\nBaseline kW]]=\"\",Table_PI[[#This Row],[Hide:\nBaseline kW]]=0),\"\",Table_PI[[#This Row],[Hide:\nBaseline kW]])","v":""},{"$f":"IF(OR(Table_PI[[#This Row],[Hide:\nProposed kWh]]=\"\",Table_PI[[#This Row],[Hide:\nProposed kWh]]=0),\"\",Table_PI[[#This Row],[Hide:\nProposed kWh]])","v":""},{"$f":"IF(OR(Table_PI[[#This Row],[Hide:\nProposed kW]]=\"\",Table_PI[[#This Row],[Hide:\nProposed kW]]=0),\"\",Table_PI[[#This Row],[Hide:\nProposed kW]])","v":""},{"$f":"IF(OR(Table_PI[[#This Row],[Rebate]]=\"\",Table_PI[[#This Row],[Rebate]]=0),\"\",Table_PI[[#This Row],[Rebate]])","v":""},{"$f":"IF(OR(Table_PI[[#This Row],[Hide:\nIncremental Cost]]=\"\",Table_PI[[#This Row],[Hide:\nIncremental Cost]]=0),\"\",Table_PI[[#This Row],[Hide:\nIncremental Cost]])","v":""},{"$f":"IFERROR(IF(Table_SummaryPI[[#This Row],[kWhSavings]]=\"\",\"\",ROUND(Table_SummaryPI[[#This Row],[kWhSavings]]/$AG$401*'Customer Information'!$BC$17,2)),0)","v":""},{"$f":"IF(OR(Table_PI[[#This Row],[Annual kWh]]=\"\",Table_PI[[#This Row],[Annual kWh]]=0),\"\",Table_PI[[#This Row],[Annual kWh]])","v":""},{"$f":"IF(OR(Table_PI[[#This Row],[Peak kW]]=\"\",Table_PI[[#This Row],[Peak kW]]=0),\"\",Table_PI[[#This Row],[Peak kW]])","v":""},{"$f":"IFERROR(IF(Table_SummaryPI[[#This Row],[kWhSavings]]=\"\",\"\",$AU$9*Table_SummaryPI[[#This Row],[kWhSavings]]),0)","v":""},{"$f":"IFERROR(IF(Table_SummaryPI[[#This Row],[kWhSavings]]=\"\",\"\",$AU$14*Table_SummaryPI[[#This Row],[kWhSavings]]),0)","v":""},{"$f":"IFERROR(IF(Table_SummaryPI[[#This Row],[kWhSavings]]=\"\",\"\",$AU$18*Table_SummaryPI[[#This Row],[kWhSavings]]),0)","v":""},{"$f":"IFERROR(IF(Table_SummaryPI[[#This Row],[kWhSavings]]=\"\",\"\",$AU$22*Table_SummaryPI[[#This Row],[kWhSavings]]),0)","v":""},{"$f":"IFERROR(IF(MeasureCalc(Table_PI[[#This Row],[Hide:\nFormula Name]],Table_SummaryPI[[#This Row],[Quantity]],Table_PI[[#This Row],[List 1]],Table_PI[[#This Row],[List 2]],Table_PI[[#This Row],[List 3]],Table_PI[[#This Row],[Size]],Table_PI[[#This Row],[Input 1]],Table_PI[[#This Row],[Input 2]],Table_PI[[#This Row],[Input 3]],Table_PI[[#This Row],[Input 4]],'Customer Information'!$AR$12,200,ROW())<>\"No Rebate\",MeasureCalc(Table_PI[[#This Row],[Hide:\nFormula Name]],Table_SummaryPI[[#This Row],[Quantity]],Table_PI[[#This Row],[List 1]],Table_PI[[#This Row],[List 2]],Table_PI[[#This Row],[List 3]],Table_PI[[#This Row],[Size]],Table_PI[[#This Row],[Input 1]],Table_PI[[#This Row],[Input 2]],Table_PI[[#This Row],[Input 3]],Table_PI[[#This Row],[Input 4]],'Customer Information'!$AR$12,200,ROW()),\"\"),\"\")","v":""},{"$f":"IFERROR(IF(MeasureCalc(Table_PI[[#This Row],[Hide:\nFormula Name]],Table_SummaryPI[[#This Row],[Quantity]],Table_PI[[#This Row],[List 1]],Table_PI[[#This Row],[List 2]],Table_PI[[#This Row],[List 3]],Table_PI[[#This Row],[Size]],Table_PI[[#This Row],[Input 1]],Table_PI[[#This Row],[Input 2]],Table_PI[[#This Row],[Input 3]],Table_PI[[#This Row],[Input 4]],'Customer Information'!$AR$12,201,ROW())<>\"No Rebate\",MeasureCalc(Table_PI[[#This Row],[Hide:\nFormula Name]],Table_SummaryPI[[#This Row],[Quantity]],Table_PI[[#This Row],[List 1]],Table_PI[[#This Row],[List 2]],Table_PI[[#This Row],[List 3]],Table_PI[[#This Row],[Size]],Table_PI[[#This Row],[Input 1]],Table_PI[[#This Row],[Input 2]],Table_PI[[#This Row],[Input 3]],Table_PI[[#This Row],[Input 4]],'Customer Information'!$AR$12,201,ROW()),\"\"),\"\")","v":""}]
[{"$f":"Table_PI[[#This Row],[Line No.]]","v":""},{"$f":"IF(Table_SummaryPI[[#This Row],[MeassureCategory]]<>\"\",CONCATENATE(Table_SummaryPI[[#This Row],[MeassureCategory]],  \" - \", Table_SummaryPI[[#This Row],[ProposedMeasureCategory]],  \" - \", TEXT(Table_SummaryPI[[#This Row],[Size]],\"#,##0.00\"),\" \",Table_SummaryPI[[#This Row],[SizeUnit]]),\"\")","v":""},{"$f":"SUBSTITUTE(Table_PI[[#This Row],[Measure]],\"     \",\"\",1)","v":""},{"$f":"IF(Table_PI[[#This Row],[List 1]]<>\"\",Table_PI[[#This Row],[List 1]],\"\")","v":""},{"$f":"IF(Table_PI[[#This Row],[List 2]]<>\"\",Table_PI[[#This Row],[List 2]],\"\")","v":""},{"$f":"IF(Table_PI[[#This Row],[List 3]]<>\"\",Table_PI[[#This Row],[List 3]],\"\")","v":""},{"$f":"IF(Table_PI[[#This Row],[Manufacturer]]=\"\",\"\",Table_PI[[#This Row],[Manufacturer]])","v":""},{"$f":"IF(Table_PI[[#This Row],[Model Number]]=\"\",\"\",Table_PI[[#This Row],[Model Number]])","v":""},{"$f":"IF(Table_PI[[#This Row],[Serial Number(s)]]=\"\",\"\",Table_PI[[#This Row],[Serial Number(s)]])","v":""},null,{"$f":"IF(Table_PI[[#This Row],[Size]]=\"\",\"\",Table_PI[[#This Row],[Size]])","v":""},null,{"$f":"IFERROR(IF(AND(MeasureCalc(Table_PI[[#This Row],[Hide:\nFormula Name]],Table_SummaryPI[[#This Row],[Quantity]],Table_PI[[#This Row],[List 1]],Table_PI[[#This Row],[List 2]],Table_PI[[#This Row],[List 3]],Table_PI[[#This Row],[Size]],Table_PI[[#This Row],[Input 1]],Table_PI[[#This Row],[Input 2]],Table_PI[[#This Row],[Input 3]],Table_PI[[#This Row],[Input 4]],'Customer Information'!$AR$12,100,ROW())<>0,MeasureCalc(Table_PI[[#This Row],[Hide:\nFormula Name]],Table_SummaryPI[[#This Row],[Quantity]],Table_PI[[#This Row],[List 1]],Table_PI[[#This Row],[List 2]],Table_PI[[#This Row],[List 3]],Table_PI[[#This Row],[Size]],Table_PI[[#This Row],[Input 1]],Table_PI[[#This Row],[Input 2]],Table_PI[[#This Row],[Input 3]],Table_PI[[#This Row],[Input 4]],'Customer Information'!$AR$12,100,ROW())<>\"No Rebate\"),MeasureCalc(Table_PI[[#This Row],[Hide:\nFormula Name]],Table_SummaryPI[[#This Row],[Quantity]],Table_PI[[#This Row],[List 1]],Table_PI[[#This Row],[List 2]],Table_PI[[#This Row],[List 3]],Table_PI[[#This Row],[Size]],Table_PI[[#This Row],[Input 1]],Table_PI[[#This Row],[Input 2]],Table_PI[[#This Row],[Input 3]],Table_PI[[#This Row],[Input 4]],'Customer Information'!$AR$12,100,ROW()),\"\"),\"\")","v":""},{"$f":"IF(Table_PI[[#This Row],[Input 1]]<>\"\",Table_PI[[#This Row],[Input 1]],\"\")","v":""},null,{"$f":"IFERROR(IF(AND(MeasureCalc(Table_PI[[#This Row],[Hide:\nFormula Name]],Table_SummaryPI[[#This Row],[Quantity]],Table_PI[[#This Row],[List 1]],Table_PI[[#This Row],[List 2]],Table_PI[[#This Row],[List 3]],Table_PI[[#This Row],[Size]],Table_PI[[#This Row],[Input 1]],Table_PI[[#This Row],[Input 2]],Table_PI[[#This Row],[Input 3]],Table_PI[[#This Row],[Input 4]],'Customer Information'!$AR$12,101,ROW())<>0,MeasureCalc(Table_PI[[#This Row],[Hide:\nFormula Name]],Table_SummaryPI[[#This Row],[Quantity]],Table_PI[[#This Row],[List 1]],Table_PI[[#This Row],[List 2]],Table_PI[[#This Row],[List 3]],Table_PI[[#This Row],[Size]],Table_PI[[#This Row],[Input 1]],Table_PI[[#This Row],[Input 2]],Table_PI[[#This Row],[Input 3]],Table_PI[[#This Row],[Input 4]],'Customer Information'!$AR$12,101,ROW())<>\"No Rebate\"),MeasureCalc(Table_PI[[#This Row],[Hide:\nFormula Name]],Table_SummaryPI[[#This Row],[Quantity]],Table_PI[[#This Row],[List 1]],Table_PI[[#This Row],[List 2]],Table_PI[[#This Row],[List 3]],Table_PI[[#This Row],[Size]],Table_PI[[#This Row],[Input 1]],Table_PI[[#This Row],[Input 2]],Table_PI[[#This Row],[Input 3]],Table_PI[[#This Row],[Input 4]],'Customer Information'!$AR$12,101,ROW()),\"\"),\"\")","v":""},{"$f":"IF(Table_PI[[#This Row],[Input 2]]<>\"\",Table_PI[[#This Row],[Input 2]],\"\")","v":""},null,{"$f":"IFERROR(IF(AND(MeasureCalc(Table_PI[[#This Row],[Hide:\nFormula Name]],Table_SummaryPI[[#This Row],[Quantity]],Table_PI[[#This Row],[List 1]],Table_PI[[#This Row],[List 2]],Table_PI[[#This Row],[List 3]],Table_PI[[#This Row],[Size]],Table_PI[[#This Row],[Input 1]],Table_PI[[#This Row],[Input 2]],Table_PI[[#This Row],[Input 3]],Table_PI[[#This Row],[Input 4]],'Customer Information'!$AR$12,102,ROW())<>0,MeasureCalc(Table_PI[[#This Row],[Hide:\nFormula Name]],Table_SummaryPI[[#This Row],[Quantity]],Table_PI[[#This Row],[List 1]],Table_PI[[#This Row],[List 2]],Table_PI[[#This Row],[List 3]],Table_PI[[#This Row],[Size]],Table_PI[[#This Row],[Input 1]],Table_PI[[#This Row],[Input 2]],Table_PI[[#This Row],[Input 3]],Table_PI[[#This Row],[Input 4]],'Customer Information'!$AR$12,102,ROW())<>\"No Rebate\"),MeasureCalc(Table_PI[[#This Row],[Hide:\nFormula Name]],Table_SummaryPI[[#This Row],[Quantity]],Table_PI[[#This Row],[List 1]],Table_PI[[#This Row],[List 2]],Table_PI[[#This Row],[List 3]],Table_PI[[#This Row],[Size]],Table_PI[[#This Row],[Input 1]],Table_PI[[#This Row],[Input 2]],Table_PI[[#This Row],[Input 3]],Table_PI[[#This Row],[Input 4]],'Customer Information'!$AR$12,102,ROW()),\"\"),\"\")","v":""},{"$f":"IF(Table_PI[[#This Row],[Input 3]]<>\"\",Table_PI[[#This Row],[Input 3]],\"\")","v":""},null,{"$f":"IFERROR(IF(AND(MeasureCalc(Table_PI[[#This Row],[Hide:\nFormula Name]],Table_SummaryPI[[#This Row],[Quantity]],Table_PI[[#This Row],[List 1]],Table_PI[[#This Row],[List 2]],Table_PI[[#This Row],[List 3]],Table_PI[[#This Row],[Size]],Table_PI[[#This Row],[Input 1]],Table_PI[[#This Row],[Input 2]],Table_PI[[#This Row],[Input 3]],Table_PI[[#This Row],[Input 4]],'Customer Information'!$AR$12,103,ROW())<>0,MeasureCalc(Table_PI[[#This Row],[Hide:\nFormula Name]],Table_SummaryPI[[#This Row],[Quantity]],Table_PI[[#This Row],[List 1]],Table_PI[[#This Row],[List 2]],Table_PI[[#This Row],[List 3]],Table_PI[[#This Row],[Size]],Table_PI[[#This Row],[Input 1]],Table_PI[[#This Row],[Input 2]],Table_PI[[#This Row],[Input 3]],Table_PI[[#This Row],[Input 4]],'Customer Information'!$AR$12,103,ROW())<>\"No Rebate\"),MeasureCalc(Table_PI[[#This Row],[Hide:\nFormula Name]],Table_SummaryPI[[#This Row],[Quantity]],Table_PI[[#This Row],[List 1]],Table_PI[[#This Row],[List 2]],Table_PI[[#This Row],[List 3]],Table_PI[[#This Row],[Size]],Table_PI[[#This Row],[Input 1]],Table_PI[[#This Row],[Input 2]],Table_PI[[#This Row],[Input 3]],Table_PI[[#This Row],[Input 4]],'Customer Information'!$AR$12,103,ROW()),\"\"),\"\")","v":""},{"$f":"IF(Table_PI[[#This Row],[Input 4]]<>\"\",Table_PI[[#This Row],[Input 4]],\"\")","v":""},{"$f":"IF(Table_PI[[#This Row],[Quantity]]=\"\",\"\",Table_PI[[#This Row],[Quantity]])","v":""},{"$f":"IF(Table_PI[[#This Row],[Notes]]=\"\",\"\",Table_PI[[#This Row],[Notes]])","v":""},{"$f":"IF(OR(Table_PI[[#This Row],[Hide:\nBaseline kWh]]=\"\",Table_PI[[#This Row],[Hide:\nBaseline kWh]]=0),\"\",Table_PI[[#This Row],[Hide:\nBaseline kWh]])","v":""},{"$f":"IF(OR(Table_PI[[#This Row],[Hide:\nBaseline kW]]=\"\",Table_PI[[#This Row],[Hide:\nBaseline kW]]=0),\"\",Table_PI[[#This Row],[Hide:\nBaseline kW]])","v":""},{"$f":"IF(OR(Table_PI[[#This Row],[Hide:\nProposed kWh]]=\"\",Table_PI[[#This Row],[Hide:\nProposed kWh]]=0),\"\",Table_PI[[#This Row],[Hide:\nProposed kWh]])","v":""},{"$f":"IF(OR(Table_PI[[#This Row],[Hide:\nProposed kW]]=\"\",Table_PI[[#This Row],[Hide:\nProposed kW]]=0),\"\",Table_PI[[#This Row],[Hide:\nProposed kW]])","v":""},{"$f":"IF(OR(Table_PI[[#This Row],[Rebate]]=\"\",Table_PI[[#This Row],[Rebate]]=0),\"\",Table_PI[[#This Row],[Rebate]])","v":""},{"$f":"IF(OR(Table_PI[[#This Row],[Hide:\nIncremental Cost]]=\"\",Table_PI[[#This Row],[Hide:\nIncremental Cost]]=0),\"\",Table_PI[[#This Row],[Hide:\nIncremental Cost]])","v":""},{"$f":"IFERROR(IF(Table_SummaryPI[[#This Row],[kWhSavings]]=\"\",\"\",ROUND(Table_SummaryPI[[#This Row],[kWhSavings]]/$AG$401*'Customer Information'!$BC$17,2)),0)","v":""},{"$f":"IF(OR(Table_PI[[#This Row],[Annual kWh]]=\"\",Table_PI[[#This Row],[Annual kWh]]=0),\"\",Table_PI[[#This Row],[Annual kWh]])","v":""},{"$f":"IF(OR(Table_PI[[#This Row],[Peak kW]]=\"\",Table_PI[[#This Row],[Peak kW]]=0),\"\",Table_PI[[#This Row],[Peak kW]])","v":""},{"$f":"IFERROR(IF(Table_SummaryPI[[#This Row],[kWhSavings]]=\"\",\"\",$AU$9*Table_SummaryPI[[#This Row],[kWhSavings]]),0)","v":""},{"$f":"IFERROR(IF(Table_SummaryPI[[#This Row],[kWhSavings]]=\"\",\"\",$AU$14*Table_SummaryPI[[#This Row],[kWhSavings]]),0)","v":""},{"$f":"IFERROR(IF(Table_SummaryPI[[#This Row],[kWhSavings]]=\"\",\"\",$AU$18*Table_SummaryPI[[#This Row],[kWhSavings]]),0)","v":""},{"$f":"IFERROR(IF(Table_SummaryPI[[#This Row],[kWhSavings]]=\"\",\"\",$AU$22*Table_SummaryPI[[#This Row],[kWhSavings]]),0)","v":""},{"$f":"IFERROR(IF(MeasureCalc(Table_PI[[#This Row],[Hide:\nFormula Name]],Table_SummaryPI[[#This Row],[Quantity]],Table_PI[[#This Row],[List 1]],Table_PI[[#This Row],[List 2]],Table_PI[[#This Row],[List 3]],Table_PI[[#This Row],[Size]],Table_PI[[#This Row],[Input 1]],Table_PI[[#This Row],[Input 2]],Table_PI[[#This Row],[Input 3]],Table_PI[[#This Row],[Input 4]],'Customer Information'!$AR$12,200,ROW())<>\"No Rebate\",MeasureCalc(Table_PI[[#This Row],[Hide:\nFormula Name]],Table_SummaryPI[[#This Row],[Quantity]],Table_PI[[#This Row],[List 1]],Table_PI[[#This Row],[List 2]],Table_PI[[#This Row],[List 3]],Table_PI[[#This Row],[Size]],Table_PI[[#This Row],[Input 1]],Table_PI[[#This Row],[Input 2]],Table_PI[[#This Row],[Input 3]],Table_PI[[#This Row],[Input 4]],'Customer Information'!$AR$12,200,ROW()),\"\"),\"\")","v":""},{"$f":"IFERROR(IF(MeasureCalc(Table_PI[[#This Row],[Hide:\nFormula Name]],Table_SummaryPI[[#This Row],[Quantity]],Table_PI[[#This Row],[List 1]],Table_PI[[#This Row],[List 2]],Table_PI[[#This Row],[List 3]],Table_PI[[#This Row],[Size]],Table_PI[[#This Row],[Input 1]],Table_PI[[#This Row],[Input 2]],Table_PI[[#This Row],[Input 3]],Table_PI[[#This Row],[Input 4]],'Customer Information'!$AR$12,201,ROW())<>\"No Rebate\",MeasureCalc(Table_PI[[#This Row],[Hide:\nFormula Name]],Table_SummaryPI[[#This Row],[Quantity]],Table_PI[[#This Row],[List 1]],Table_PI[[#This Row],[List 2]],Table_PI[[#This Row],[List 3]],Table_PI[[#This Row],[Size]],Table_PI[[#This Row],[Input 1]],Table_PI[[#This Row],[Input 2]],Table_PI[[#This Row],[Input 3]],Table_PI[[#This Row],[Input 4]],'Customer Information'!$AR$12,201,ROW()),\"\"),\"\")","v":""}]
[{"$f":"Table_PI[[#This Row],[Line No.]]","v":""},{"$f":"IF(Table_SummaryPI[[#This Row],[MeassureCategory]]<>\"\",CONCATENATE(Table_SummaryPI[[#This Row],[MeassureCategory]],  \" - \", Table_SummaryPI[[#This Row],[ProposedMeasureCategory]],  \" - \", TEXT(Table_SummaryPI[[#This Row],[Size]],\"#,##0.00\"),\" \",Table_SummaryPI[[#This Row],[SizeUnit]]),\"\")","v":""},{"$f":"SUBSTITUTE(Table_PI[[#This Row],[Measure]],\"     \",\"\",1)","v":""},{"$f":"IF(Table_PI[[#This Row],[List 1]]<>\"\",Table_PI[[#This Row],[List 1]],\"\")","v":""},{"$f":"IF(Table_PI[[#This Row],[List 2]]<>\"\",Table_PI[[#This Row],[List 2]],\"\")","v":""},{"$f":"IF(Table_PI[[#This Row],[List 3]]<>\"\",Table_PI[[#This Row],[List 3]],\"\")","v":""},{"$f":"IF(Table_PI[[#This Row],[Manufacturer]]=\"\",\"\",Table_PI[[#This Row],[Manufacturer]])","v":""},{"$f":"IF(Table_PI[[#This Row],[Model Number]]=\"\",\"\",Table_PI[[#This Row],[Model Number]])","v":""},{"$f":"IF(Table_PI[[#This Row],[Serial Number(s)]]=\"\",\"\",Table_PI[[#This Row],[Serial Number(s)]])","v":""},null,{"$f":"IF(Table_PI[[#This Row],[Size]]=\"\",\"\",Table_PI[[#This Row],[Size]])","v":""},null,{"$f":"IFERROR(IF(AND(MeasureCalc(Table_PI[[#This Row],[Hide:\nFormula Name]],Table_SummaryPI[[#This Row],[Quantity]],Table_PI[[#This Row],[List 1]],Table_PI[[#This Row],[List 2]],Table_PI[[#This Row],[List 3]],Table_PI[[#This Row],[Size]],Table_PI[[#This Row],[Input 1]],Table_PI[[#This Row],[Input 2]],Table_PI[[#This Row],[Input 3]],Table_PI[[#This Row],[Input 4]],'Customer Information'!$AR$12,100,ROW())<>0,MeasureCalc(Table_PI[[#This Row],[Hide:\nFormula Name]],Table_SummaryPI[[#This Row],[Quantity]],Table_PI[[#This Row],[List 1]],Table_PI[[#This Row],[List 2]],Table_PI[[#This Row],[List 3]],Table_PI[[#This Row],[Size]],Table_PI[[#This Row],[Input 1]],Table_PI[[#This Row],[Input 2]],Table_PI[[#This Row],[Input 3]],Table_PI[[#This Row],[Input 4]],'Customer Information'!$AR$12,100,ROW())<>\"No Rebate\"),MeasureCalc(Table_PI[[#This Row],[Hide:\nFormula Name]],Table_SummaryPI[[#This Row],[Quantity]],Table_PI[[#This Row],[List 1]],Table_PI[[#This Row],[List 2]],Table_PI[[#This Row],[List 3]],Table_PI[[#This Row],[Size]],Table_PI[[#This Row],[Input 1]],Table_PI[[#This Row],[Input 2]],Table_PI[[#This Row],[Input 3]],Table_PI[[#This Row],[Input 4]],'Customer Information'!$AR$12,100,ROW()),\"\"),\"\")","v":""},{"$f":"IF(Table_PI[[#This Row],[Input 1]]<>\"\",Table_PI[[#This Row],[Input 1]],\"\")","v":""},null,{"$f":"IFERROR(IF(AND(MeasureCalc(Table_PI[[#This Row],[Hide:\nFormula Name]],Table_SummaryPI[[#This Row],[Quantity]],Table_PI[[#This Row],[List 1]],Table_PI[[#This Row],[List 2]],Table_PI[[#This Row],[List 3]],Table_PI[[#This Row],[Size]],Table_PI[[#This Row],[Input 1]],Table_PI[[#This Row],[Input 2]],Table_PI[[#This Row],[Input 3]],Table_PI[[#This Row],[Input 4]],'Customer Information'!$AR$12,101,ROW())<>0,MeasureCalc(Table_PI[[#This Row],[Hide:\nFormula Name]],Table_SummaryPI[[#This Row],[Quantity]],Table_PI[[#This Row],[List 1]],Table_PI[[#This Row],[List 2]],Table_PI[[#This Row],[List 3]],Table_PI[[#This Row],[Size]],Table_PI[[#This Row],[Input 1]],Table_PI[[#This Row],[Input 2]],Table_PI[[#This Row],[Input 3]],Table_PI[[#This Row],[Input 4]],'Customer Information'!$AR$12,101,ROW())<>\"No Rebate\"),MeasureCalc(Table_PI[[#This Row],[Hide:\nFormula Name]],Table_SummaryPI[[#This Row],[Quantity]],Table_PI[[#This Row],[List 1]],Table_PI[[#This Row],[List 2]],Table_PI[[#This Row],[List 3]],Table_PI[[#This Row],[Size]],Table_PI[[#This Row],[Input 1]],Table_PI[[#This Row],[Input 2]],Table_PI[[#This Row],[Input 3]],Table_PI[[#This Row],[Input 4]],'Customer Information'!$AR$12,101,ROW()),\"\"),\"\")","v":""},{"$f":"IF(Table_PI[[#This Row],[Input 2]]<>\"\",Table_PI[[#This Row],[Input 2]],\"\")","v":""},null,{"$f":"IFERROR(IF(AND(MeasureCalc(Table_PI[[#This Row],[Hide:\nFormula Name]],Table_SummaryPI[[#This Row],[Quantity]],Table_PI[[#This Row],[List 1]],Table_PI[[#This Row],[List 2]],Table_PI[[#This Row],[List 3]],Table_PI[[#This Row],[Size]],Table_PI[[#This Row],[Input 1]],Table_PI[[#This Row],[Input 2]],Table_PI[[#This Row],[Input 3]],Table_PI[[#This Row],[Input 4]],'Customer Information'!$AR$12,102,ROW())<>0,MeasureCalc(Table_PI[[#This Row],[Hide:\nFormula Name]],Table_SummaryPI[[#This Row],[Quantity]],Table_PI[[#This Row],[List 1]],Table_PI[[#This Row],[List 2]],Table_PI[[#This Row],[List 3]],Table_PI[[#This Row],[Size]],Table_PI[[#This Row],[Input 1]],Table_PI[[#This Row],[Input 2]],Table_PI[[#This Row],[Input 3]],Table_PI[[#This Row],[Input 4]],'Customer Information'!$AR$12,102,ROW())<>\"No Rebate\"),MeasureCalc(Table_PI[[#This Row],[Hide:\nFormula Name]],Table_SummaryPI[[#This Row],[Quantity]],Table_PI[[#This Row],[List 1]],Table_PI[[#This Row],[List 2]],Table_PI[[#This Row],[List 3]],Table_PI[[#This Row],[Size]],Table_PI[[#This Row],[Input 1]],Table_PI[[#This Row],[Input 2]],Table_PI[[#This Row],[Input 3]],Table_PI[[#This Row],[Input 4]],'Customer Information'!$AR$12,102,ROW()),\"\"),\"\")","v":""},{"$f":"IF(Table_PI[[#This Row],[Input 3]]<>\"\",Table_PI[[#This Row],[Input 3]],\"\")","v":""},null,{"$f":"IFERROR(IF(AND(MeasureCalc(Table_PI[[#This Row],[Hide:\nFormula Name]],Table_SummaryPI[[#This Row],[Quantity]],Table_PI[[#This Row],[List 1]],Table_PI[[#This Row],[List 2]],Table_PI[[#This Row],[List 3]],Table_PI[[#This Row],[Size]],Table_PI[[#This Row],[Input 1]],Table_PI[[#This Row],[Input 2]],Table_PI[[#This Row],[Input 3]],Table_PI[[#This Row],[Input 4]],'Customer Information'!$AR$12,103,ROW())<>0,MeasureCalc(Table_PI[[#This Row],[Hide:\nFormula Name]],Table_SummaryPI[[#This Row],[Quantity]],Table_PI[[#This Row],[List 1]],Table_PI[[#This Row],[List 2]],Table_PI[[#This Row],[List 3]],Table_PI[[#This Row],[Size]],Table_PI[[#This Row],[Input 1]],Table_PI[[#This Row],[Input 2]],Table_PI[[#This Row],[Input 3]],Table_PI[[#This Row],[Input 4]],'Customer Information'!$AR$12,103,ROW())<>\"No Rebate\"),MeasureCalc(Table_PI[[#This Row],[Hide:\nFormula Name]],Table_SummaryPI[[#This Row],[Quantity]],Table_PI[[#This Row],[List 1]],Table_PI[[#This Row],[List 2]],Table_PI[[#This Row],[List 3]],Table_PI[[#This Row],[Size]],Table_PI[[#This Row],[Input 1]],Table_PI[[#This Row],[Input 2]],Table_PI[[#This Row],[Input 3]],Table_PI[[#This Row],[Input 4]],'Customer Information'!$AR$12,103,ROW()),\"\"),\"\")","v":""},{"$f":"IF(Table_PI[[#This Row],[Input 4]]<>\"\",Table_PI[[#This Row],[Input 4]],\"\")","v":""},{"$f":"IF(Table_PI[[#This Row],[Quantity]]=\"\",\"\",Table_PI[[#This Row],[Quantity]])","v":""},{"$f":"IF(Table_PI[[#This Row],[Notes]]=\"\",\"\",Table_PI[[#This Row],[Notes]])","v":""},{"$f":"IF(OR(Table_PI[[#This Row],[Hide:\nBaseline kWh]]=\"\",Table_PI[[#This Row],[Hide:\nBaseline kWh]]=0),\"\",Table_PI[[#This Row],[Hide:\nBaseline kWh]])","v":""},{"$f":"IF(OR(Table_PI[[#This Row],[Hide:\nBaseline kW]]=\"\",Table_PI[[#This Row],[Hide:\nBaseline kW]]=0),\"\",Table_PI[[#This Row],[Hide:\nBaseline kW]])","v":""},{"$f":"IF(OR(Table_PI[[#This Row],[Hide:\nProposed kWh]]=\"\",Table_PI[[#This Row],[Hide:\nProposed kWh]]=0),\"\",Table_PI[[#This Row],[Hide:\nProposed kWh]])","v":""},{"$f":"IF(OR(Table_PI[[#This Row],[Hide:\nProposed kW]]=\"\",Table_PI[[#This Row],[Hide:\nProposed kW]]=0),\"\",Table_PI[[#This Row],[Hide:\nProposed kW]])","v":""},{"$f":"IF(OR(Table_PI[[#This Row],[Rebate]]=\"\",Table_PI[[#This Row],[Rebate]]=0),\"\",Table_PI[[#This Row],[Rebate]])","v":""},{"$f":"IF(OR(Table_PI[[#This Row],[Hide:\nIncremental Cost]]=\"\",Table_PI[[#This Row],[Hide:\nIncremental Cost]]=0),\"\",Table_PI[[#This Row],[Hide:\nIncremental Cost]])","v":""},{"$f":"IFERROR(IF(Table_SummaryPI[[#This Row],[kWhSavings]]=\"\",\"\",ROUND(Table_SummaryPI[[#This Row],[kWhSavings]]/$AG$401*'Customer Information'!$BC$17,2)),0)","v":""},{"$f":"IF(OR(Table_PI[[#This Row],[Annual kWh]]=\"\",Table_PI[[#This Row],[Annual kWh]]=0),\"\",Table_PI[[#This Row],[Annual kWh]])","v":""},{"$f":"IF(OR(Table_PI[[#This Row],[Peak kW]]=\"\",Table_PI[[#This Row],[Peak kW]]=0),\"\",Table_PI[[#This Row],[Peak kW]])","v":""},{"$f":"IFERROR(IF(Table_SummaryPI[[#This Row],[kWhSavings]]=\"\",\"\",$AU$9*Table_SummaryPI[[#This Row],[kWhSavings]]),0)","v":""},{"$f":"IFERROR(IF(Table_SummaryPI[[#This Row],[kWhSavings]]=\"\",\"\",$AU$14*Table_SummaryPI[[#This Row],[kWhSavings]]),0)","v":""},{"$f":"IFERROR(IF(Table_SummaryPI[[#This Row],[kWhSavings]]=\"\",\"\",$AU$18*Table_SummaryPI[[#This Row],[kWhSavings]]),0)","v":""},{"$f":"IFERROR(IF(Table_SummaryPI[[#This Row],[kWhSavings]]=\"\",\"\",$AU$22*Table_SummaryPI[[#This Row],[kWhSavings]]),0)","v":""},{"$f":"IFERROR(IF(MeasureCalc(Table_PI[[#This Row],[Hide:\nFormula Name]],Table_SummaryPI[[#This Row],[Quantity]],Table_PI[[#This Row],[List 1]],Table_PI[[#This Row],[List 2]],Table_PI[[#This Row],[List 3]],Table_PI[[#This Row],[Size]],Table_PI[[#This Row],[Input 1]],Table_PI[[#This Row],[Input 2]],Table_PI[[#This Row],[Input 3]],Table_PI[[#This Row],[Input 4]],'Customer Information'!$AR$12,200,ROW())<>\"No Rebate\",MeasureCalc(Table_PI[[#This Row],[Hide:\nFormula Name]],Table_SummaryPI[[#This Row],[Quantity]],Table_PI[[#This Row],[List 1]],Table_PI[[#This Row],[List 2]],Table_PI[[#This Row],[List 3]],Table_PI[[#This Row],[Size]],Table_PI[[#This Row],[Input 1]],Table_PI[[#This Row],[Input 2]],Table_PI[[#This Row],[Input 3]],Table_PI[[#This Row],[Input 4]],'Customer Information'!$AR$12,200,ROW()),\"\"),\"\")","v":""},{"$f":"IFERROR(IF(MeasureCalc(Table_PI[[#This Row],[Hide:\nFormula Name]],Table_SummaryPI[[#This Row],[Quantity]],Table_PI[[#This Row],[List 1]],Table_PI[[#This Row],[List 2]],Table_PI[[#This Row],[List 3]],Table_PI[[#This Row],[Size]],Table_PI[[#This Row],[Input 1]],Table_PI[[#This Row],[Input 2]],Table_PI[[#This Row],[Input 3]],Table_PI[[#This Row],[Input 4]],'Customer Information'!$AR$12,201,ROW())<>\"No Rebate\",MeasureCalc(Table_PI[[#This Row],[Hide:\nFormula Name]],Table_SummaryPI[[#This Row],[Quantity]],Table_PI[[#This Row],[List 1]],Table_PI[[#This Row],[List 2]],Table_PI[[#This Row],[List 3]],Table_PI[[#This Row],[Size]],Table_PI[[#This Row],[Input 1]],Table_PI[[#This Row],[Input 2]],Table_PI[[#This Row],[Input 3]],Table_PI[[#This Row],[Input 4]],'Customer Information'!$AR$12,201,ROW()),\"\"),\"\")","v":""}]
[{"$f":"Table_PI[[#This Row],[Line No.]]","v":""},{"$f":"IF(Table_SummaryPI[[#This Row],[MeassureCategory]]<>\"\",CONCATENATE(Table_SummaryPI[[#This Row],[MeassureCategory]],  \" - \", Table_SummaryPI[[#This Row],[ProposedMeasureCategory]],  \" - \", TEXT(Table_SummaryPI[[#This Row],[Size]],\"#,##0.00\"),\" \",Table_SummaryPI[[#This Row],[SizeUnit]]),\"\")","v":""},{"$f":"SUBSTITUTE(Table_PI[[#This Row],[Measure]],\"     \",\"\",1)","v":""},{"$f":"IF(Table_PI[[#This Row],[List 1]]<>\"\",Table_PI[[#This Row],[List 1]],\"\")","v":""},{"$f":"IF(Table_PI[[#This Row],[List 2]]<>\"\",Table_PI[[#This Row],[List 2]],\"\")","v":""},{"$f":"IF(Table_PI[[#This Row],[List 3]]<>\"\",Table_PI[[#This Row],[List 3]],\"\")","v":""},{"$f":"IF(Table_PI[[#This Row],[Manufacturer]]=\"\",\"\",Table_PI[[#This Row],[Manufacturer]])","v":""},{"$f":"IF(Table_PI[[#This Row],[Model Number]]=\"\",\"\",Table_PI[[#This Row],[Model Number]])","v":""},{"$f":"IF(Table_PI[[#This Row],[Serial Number(s)]]=\"\",\"\",Table_PI[[#This Row],[Serial Number(s)]])","v":""},null,{"$f":"IF(Table_PI[[#This Row],[Size]]=\"\",\"\",Table_PI[[#This Row],[Size]])","v":""},null,{"$f":"IFERROR(IF(AND(MeasureCalc(Table_PI[[#This Row],[Hide:\nFormula Name]],Table_SummaryPI[[#This Row],[Quantity]],Table_PI[[#This Row],[List 1]],Table_PI[[#This Row],[List 2]],Table_PI[[#This Row],[List 3]],Table_PI[[#This Row],[Size]],Table_PI[[#This Row],[Input 1]],Table_PI[[#This Row],[Input 2]],Table_PI[[#This Row],[Input 3]],Table_PI[[#This Row],[Input 4]],'Customer Information'!$AR$12,100,ROW())<>0,MeasureCalc(Table_PI[[#This Row],[Hide:\nFormula Name]],Table_SummaryPI[[#This Row],[Quantity]],Table_PI[[#This Row],[List 1]],Table_PI[[#This Row],[List 2]],Table_PI[[#This Row],[List 3]],Table_PI[[#This Row],[Size]],Table_PI[[#This Row],[Input 1]],Table_PI[[#This Row],[Input 2]],Table_PI[[#This Row],[Input 3]],Table_PI[[#This Row],[Input 4]],'Customer Information'!$AR$12,100,ROW())<>\"No Rebate\"),MeasureCalc(Table_PI[[#This Row],[Hide:\nFormula Name]],Table_SummaryPI[[#This Row],[Quantity]],Table_PI[[#This Row],[List 1]],Table_PI[[#This Row],[List 2]],Table_PI[[#This Row],[List 3]],Table_PI[[#This Row],[Size]],Table_PI[[#This Row],[Input 1]],Table_PI[[#This Row],[Input 2]],Table_PI[[#This Row],[Input 3]],Table_PI[[#This Row],[Input 4]],'Customer Information'!$AR$12,100,ROW()),\"\"),\"\")","v":""},{"$f":"IF(Table_PI[[#This Row],[Input 1]]<>\"\",Table_PI[[#This Row],[Input 1]],\"\")","v":""},null,{"$f":"IFERROR(IF(AND(MeasureCalc(Table_PI[[#This Row],[Hide:\nFormula Name]],Table_SummaryPI[[#This Row],[Quantity]],Table_PI[[#This Row],[List 1]],Table_PI[[#This Row],[List 2]],Table_PI[[#This Row],[List 3]],Table_PI[[#This Row],[Size]],Table_PI[[#This Row],[Input 1]],Table_PI[[#This Row],[Input 2]],Table_PI[[#This Row],[Input 3]],Table_PI[[#This Row],[Input 4]],'Customer Information'!$AR$12,101,ROW())<>0,MeasureCalc(Table_PI[[#This Row],[Hide:\nFormula Name]],Table_SummaryPI[[#This Row],[Quantity]],Table_PI[[#This Row],[List 1]],Table_PI[[#This Row],[List 2]],Table_PI[[#This Row],[List 3]],Table_PI[[#This Row],[Size]],Table_PI[[#This Row],[Input 1]],Table_PI[[#This Row],[Input 2]],Table_PI[[#This Row],[Input 3]],Table_PI[[#This Row],[Input 4]],'Customer Information'!$AR$12,101,ROW())<>\"No Rebate\"),MeasureCalc(Table_PI[[#This Row],[Hide:\nFormula Name]],Table_SummaryPI[[#This Row],[Quantity]],Table_PI[[#This Row],[List 1]],Table_PI[[#This Row],[List 2]],Table_PI[[#This Row],[List 3]],Table_PI[[#This Row],[Size]],Table_PI[[#This Row],[Input 1]],Table_PI[[#This Row],[Input 2]],Table_PI[[#This Row],[Input 3]],Table_PI[[#This Row],[Input 4]],'Customer Information'!$AR$12,101,ROW()),\"\"),\"\")","v":""},{"$f":"IF(Table_PI[[#This Row],[Input 2]]<>\"\",Table_PI[[#This Row],[Input 2]],\"\")","v":""},null,{"$f":"IFERROR(IF(AND(MeasureCalc(Table_PI[[#This Row],[Hide:\nFormula Name]],Table_SummaryPI[[#This Row],[Quantity]],Table_PI[[#This Row],[List 1]],Table_PI[[#This Row],[List 2]],Table_PI[[#This Row],[List 3]],Table_PI[[#This Row],[Size]],Table_PI[[#This Row],[Input 1]],Table_PI[[#This Row],[Input 2]],Table_PI[[#This Row],[Input 3]],Table_PI[[#This Row],[Input 4]],'Customer Information'!$AR$12,102,ROW())<>0,MeasureCalc(Table_PI[[#This Row],[Hide:\nFormula Name]],Table_SummaryPI[[#This Row],[Quantity]],Table_PI[[#This Row],[List 1]],Table_PI[[#This Row],[List 2]],Table_PI[[#This Row],[List 3]],Table_PI[[#This Row],[Size]],Table_PI[[#This Row],[Input 1]],Table_PI[[#This Row],[Input 2]],Table_PI[[#This Row],[Input 3]],Table_PI[[#This Row],[Input 4]],'Customer Information'!$AR$12,102,ROW())<>\"No Rebate\"),MeasureCalc(Table_PI[[#This Row],[Hide:\nFormula Name]],Table_SummaryPI[[#This Row],[Quantity]],Table_PI[[#This Row],[List 1]],Table_PI[[#This Row],[List 2]],Table_PI[[#This Row],[List 3]],Table_PI[[#This Row],[Size]],Table_PI[[#This Row],[Input 1]],Table_PI[[#This Row],[Input 2]],Table_PI[[#This Row],[Input 3]],Table_PI[[#This Row],[Input 4]],'Customer Information'!$AR$12,102,ROW()),\"\"),\"\")","v":""},{"$f":"IF(Table_PI[[#This Row],[Input 3]]<>\"\",Table_PI[[#This Row],[Input 3]],\"\")","v":""},null,{"$f":"IFERROR(IF(AND(MeasureCalc(Table_PI[[#This Row],[Hide:\nFormula Name]],Table_SummaryPI[[#This Row],[Quantity]],Table_PI[[#This Row],[List 1]],Table_PI[[#This Row],[List 2]],Table_PI[[#This Row],[List 3]],Table_PI[[#This Row],[Size]],Table_PI[[#This Row],[Input 1]],Table_PI[[#This Row],[Input 2]],Table_PI[[#This Row],[Input 3]],Table_PI[[#This Row],[Input 4]],'Customer Information'!$AR$12,103,ROW())<>0,MeasureCalc(Table_PI[[#This Row],[Hide:\nFormula Name]],Table_SummaryPI[[#This Row],[Quantity]],Table_PI[[#This Row],[List 1]],Table_PI[[#This Row],[List 2]],Table_PI[[#This Row],[List 3]],Table_PI[[#This Row],[Size]],Table_PI[[#This Row],[Input 1]],Table_PI[[#This Row],[Input 2]],Table_PI[[#This Row],[Input 3]],Table_PI[[#This Row],[Input 4]],'Customer Information'!$AR$12,103,ROW())<>\"No Rebate\"),MeasureCalc(Table_PI[[#This Row],[Hide:\nFormula Name]],Table_SummaryPI[[#This Row],[Quantity]],Table_PI[[#This Row],[List 1]],Table_PI[[#This Row],[List 2]],Table_PI[[#This Row],[List 3]],Table_PI[[#This Row],[Size]],Table_PI[[#This Row],[Input 1]],Table_PI[[#This Row],[Input 2]],Table_PI[[#This Row],[Input 3]],Table_PI[[#This Row],[Input 4]],'Customer Information'!$AR$12,103,ROW()),\"\"),\"\")","v":""},{"$f":"IF(Table_PI[[#This Row],[Input 4]]<>\"\",Table_PI[[#This Row],[Input 4]],\"\")","v":""},{"$f":"IF(Table_PI[[#This Row],[Quantity]]=\"\",\"\",Table_PI[[#This Row],[Quantity]])","v":""},{"$f":"IF(Table_PI[[#This Row],[Notes]]=\"\",\"\",Table_PI[[#This Row],[Notes]])","v":""},{"$f":"IF(OR(Table_PI[[#This Row],[Hide:\nBaseline kWh]]=\"\",Table_PI[[#This Row],[Hide:\nBaseline kWh]]=0),\"\",Table_PI[[#This Row],[Hide:\nBaseline kWh]])","v":""},{"$f":"IF(OR(Table_PI[[#This Row],[Hide:\nBaseline kW]]=\"\",Table_PI[[#This Row],[Hide:\nBaseline kW]]=0),\"\",Table_PI[[#This Row],[Hide:\nBaseline kW]])","v":""},{"$f":"IF(OR(Table_PI[[#This Row],[Hide:\nProposed kWh]]=\"\",Table_PI[[#This Row],[Hide:\nProposed kWh]]=0),\"\",Table_PI[[#This Row],[Hide:\nProposed kWh]])","v":""},{"$f":"IF(OR(Table_PI[[#This Row],[Hide:\nProposed kW]]=\"\",Table_PI[[#This Row],[Hide:\nProposed kW]]=0),\"\",Table_PI[[#This Row],[Hide:\nProposed kW]])","v":""},{"$f":"IF(OR(Table_PI[[#This Row],[Rebate]]=\"\",Table_PI[[#This Row],[Rebate]]=0),\"\",Table_PI[[#This Row],[Rebate]])","v":""},{"$f":"IF(OR(Table_PI[[#This Row],[Hide:\nIncremental Cost]]=\"\",Table_PI[[#This Row],[Hide:\nIncremental Cost]]=0),\"\",Table_PI[[#This Row],[Hide:\nIncremental Cost]])","v":""},{"$f":"IFERROR(IF(Table_SummaryPI[[#This Row],[kWhSavings]]=\"\",\"\",ROUND(Table_SummaryPI[[#This Row],[kWhSavings]]/$AG$401*'Customer Information'!$BC$17,2)),0)","v":""},{"$f":"IF(OR(Table_PI[[#This Row],[Annual kWh]]=\"\",Table_PI[[#This Row],[Annual kWh]]=0),\"\",Table_PI[[#This Row],[Annual kWh]])","v":""},{"$f":"IF(OR(Table_PI[[#This Row],[Peak kW]]=\"\",Table_PI[[#This Row],[Peak kW]]=0),\"\",Table_PI[[#This Row],[Peak kW]])","v":""},{"$f":"IFERROR(IF(Table_SummaryPI[[#This Row],[kWhSavings]]=\"\",\"\",$AU$9*Table_SummaryPI[[#This Row],[kWhSavings]]),0)","v":""},{"$f":"IFERROR(IF(Table_SummaryPI[[#This Row],[kWhSavings]]=\"\",\"\",$AU$14*Table_SummaryPI[[#This Row],[kWhSavings]]),0)","v":""},{"$f":"IFERROR(IF(Table_SummaryPI[[#This Row],[kWhSavings]]=\"\",\"\",$AU$18*Table_SummaryPI[[#This Row],[kWhSavings]]),0)","v":""},{"$f":"IFERROR(IF(Table_SummaryPI[[#This Row],[kWhSavings]]=\"\",\"\",$AU$22*Table_SummaryPI[[#This Row],[kWhSavings]]),0)","v":""},{"$f":"IFERROR(IF(MeasureCalc(Table_PI[[#This Row],[Hide:\nFormula Name]],Table_SummaryPI[[#This Row],[Quantity]],Table_PI[[#This Row],[List 1]],Table_PI[[#This Row],[List 2]],Table_PI[[#This Row],[List 3]],Table_PI[[#This Row],[Size]],Table_PI[[#This Row],[Input 1]],Table_PI[[#This Row],[Input 2]],Table_PI[[#This Row],[Input 3]],Table_PI[[#This Row],[Input 4]],'Customer Information'!$AR$12,200,ROW())<>\"No Rebate\",MeasureCalc(Table_PI[[#This Row],[Hide:\nFormula Name]],Table_SummaryPI[[#This Row],[Quantity]],Table_PI[[#This Row],[List 1]],Table_PI[[#This Row],[List 2]],Table_PI[[#This Row],[List 3]],Table_PI[[#This Row],[Size]],Table_PI[[#This Row],[Input 1]],Table_PI[[#This Row],[Input 2]],Table_PI[[#This Row],[Input 3]],Table_PI[[#This Row],[Input 4]],'Customer Information'!$AR$12,200,ROW()),\"\"),\"\")","v":""},{"$f":"IFERROR(IF(MeasureCalc(Table_PI[[#This Row],[Hide:\nFormula Name]],Table_SummaryPI[[#This Row],[Quantity]],Table_PI[[#This Row],[List 1]],Table_PI[[#This Row],[List 2]],Table_PI[[#This Row],[List 3]],Table_PI[[#This Row],[Size]],Table_PI[[#This Row],[Input 1]],Table_PI[[#This Row],[Input 2]],Table_PI[[#This Row],[Input 3]],Table_PI[[#This Row],[Input 4]],'Customer Information'!$AR$12,201,ROW())<>\"No Rebate\",MeasureCalc(Table_PI[[#This Row],[Hide:\nFormula Name]],Table_SummaryPI[[#This Row],[Quantity]],Table_PI[[#This Row],[List 1]],Table_PI[[#This Row],[List 2]],Table_PI[[#This Row],[List 3]],Table_PI[[#This Row],[Size]],Table_PI[[#This Row],[Input 1]],Table_PI[[#This Row],[Input 2]],Table_PI[[#This Row],[Input 3]],Table_PI[[#This Row],[Input 4]],'Customer Information'!$AR$12,201,ROW()),\"\"),\"\")","v":""}]
[{"$f":"Table_PI[[#This Row],[Line No.]]","v":""},{"$f":"IF(Table_SummaryPI[[#This Row],[MeassureCategory]]<>\"\",CONCATENATE(Table_SummaryPI[[#This Row],[MeassureCategory]],  \" - \", Table_SummaryPI[[#This Row],[ProposedMeasureCategory]],  \" - \", TEXT(Table_SummaryPI[[#This Row],[Size]],\"#,##0.00\"),\" \",Table_SummaryPI[[#This Row],[SizeUnit]]),\"\")","v":""},{"$f":"SUBSTITUTE(Table_PI[[#This Row],[Measure]],\"     \",\"\",1)","v":""},{"$f":"IF(Table_PI[[#This Row],[List 1]]<>\"\",Table_PI[[#This Row],[List 1]],\"\")","v":""},{"$f":"IF(Table_PI[[#This Row],[List 2]]<>\"\",Table_PI[[#This Row],[List 2]],\"\")","v":""},{"$f":"IF(Table_PI[[#This Row],[List 3]]<>\"\",Table_PI[[#This Row],[List 3]],\"\")","v":""},{"$f":"IF(Table_PI[[#This Row],[Manufacturer]]=\"\",\"\",Table_PI[[#This Row],[Manufacturer]])","v":""},{"$f":"IF(Table_PI[[#This Row],[Model Number]]=\"\",\"\",Table_PI[[#This Row],[Model Number]])","v":""},{"$f":"IF(Table_PI[[#This Row],[Serial Number(s)]]=\"\",\"\",Table_PI[[#This Row],[Serial Number(s)]])","v":""},null,{"$f":"IF(Table_PI[[#This Row],[Size]]=\"\",\"\",Table_PI[[#This Row],[Size]])","v":""},null,{"$f":"IFERROR(IF(AND(MeasureCalc(Table_PI[[#This Row],[Hide:\nFormula Name]],Table_SummaryPI[[#This Row],[Quantity]],Table_PI[[#This Row],[List 1]],Table_PI[[#This Row],[List 2]],Table_PI[[#This Row],[List 3]],Table_PI[[#This Row],[Size]],Table_PI[[#This Row],[Input 1]],Table_PI[[#This Row],[Input 2]],Table_PI[[#This Row],[Input 3]],Table_PI[[#This Row],[Input 4]],'Customer Information'!$AR$12,100,ROW())<>0,MeasureCalc(Table_PI[[#This Row],[Hide:\nFormula Name]],Table_SummaryPI[[#This Row],[Quantity]],Table_PI[[#This Row],[List 1]],Table_PI[[#This Row],[List 2]],Table_PI[[#This Row],[List 3]],Table_PI[[#This Row],[Size]],Table_PI[[#This Row],[Input 1]],Table_PI[[#This Row],[Input 2]],Table_PI[[#This Row],[Input 3]],Table_PI[[#This Row],[Input 4]],'Customer Information'!$AR$12,100,ROW())<>\"No Rebate\"),MeasureCalc(Table_PI[[#This Row],[Hide:\nFormula Name]],Table_SummaryPI[[#This Row],[Quantity]],Table_PI[[#This Row],[List 1]],Table_PI[[#This Row],[List 2]],Table_PI[[#This Row],[List 3]],Table_PI[[#This Row],[Size]],Table_PI[[#This Row],[Input 1]],Table_PI[[#This Row],[Input 2]],Table_PI[[#This Row],[Input 3]],Table_PI[[#This Row],[Input 4]],'Customer Information'!$AR$12,100,ROW()),\"\"),\"\")","v":""},{"$f":"IF(Table_PI[[#This Row],[Input 1]]<>\"\",Table_PI[[#This Row],[Input 1]],\"\")","v":""},null,{"$f":"IFERROR(IF(AND(MeasureCalc(Table_PI[[#This Row],[Hide:\nFormula Name]],Table_SummaryPI[[#This Row],[Quantity]],Table_PI[[#This Row],[List 1]],Table_PI[[#This Row],[List 2]],Table_PI[[#This Row],[List 3]],Table_PI[[#This Row],[Size]],Table_PI[[#This Row],[Input 1]],Table_PI[[#This Row],[Input 2]],Table_PI[[#This Row],[Input 3]],Table_PI[[#This Row],[Input 4]],'Customer Information'!$AR$12,101,ROW())<>0,MeasureCalc(Table_PI[[#This Row],[Hide:\nFormula Name]],Table_SummaryPI[[#This Row],[Quantity]],Table_PI[[#This Row],[List 1]],Table_PI[[#This Row],[List 2]],Table_PI[[#This Row],[List 3]],Table_PI[[#This Row],[Size]],Table_PI[[#This Row],[Input 1]],Table_PI[[#This Row],[Input 2]],Table_PI[[#This Row],[Input 3]],Table_PI[[#This Row],[Input 4]],'Customer Information'!$AR$12,101,ROW())<>\"No Rebate\"),MeasureCalc(Table_PI[[#This Row],[Hide:\nFormula Name]],Table_SummaryPI[[#This Row],[Quantity]],Table_PI[[#This Row],[List 1]],Table_PI[[#This Row],[List 2]],Table_PI[[#This Row],[List 3]],Table_PI[[#This Row],[Size]],Table_PI[[#This Row],[Input 1]],Table_PI[[#This Row],[Input 2]],Table_PI[[#This Row],[Input 3]],Table_PI[[#This Row],[Input 4]],'Customer Information'!$AR$12,101,ROW()),\"\"),\"\")","v":""},{"$f":"IF(Table_PI[[#This Row],[Input 2]]<>\"\",Table_PI[[#This Row],[Input 2]],\"\")","v":""},null,{"$f":"IFERROR(IF(AND(MeasureCalc(Table_PI[[#This Row],[Hide:\nFormula Name]],Table_SummaryPI[[#This Row],[Quantity]],Table_PI[[#This Row],[List 1]],Table_PI[[#This Row],[List 2]],Table_PI[[#This Row],[List 3]],Table_PI[[#This Row],[Size]],Table_PI[[#This Row],[Input 1]],Table_PI[[#This Row],[Input 2]],Table_PI[[#This Row],[Input 3]],Table_PI[[#This Row],[Input 4]],'Customer Information'!$AR$12,102,ROW())<>0,MeasureCalc(Table_PI[[#This Row],[Hide:\nFormula Name]],Table_SummaryPI[[#This Row],[Quantity]],Table_PI[[#This Row],[List 1]],Table_PI[[#This Row],[List 2]],Table_PI[[#This Row],[List 3]],Table_PI[[#This Row],[Size]],Table_PI[[#This Row],[Input 1]],Table_PI[[#This Row],[Input 2]],Table_PI[[#This Row],[Input 3]],Table_PI[[#This Row],[Input 4]],'Customer Information'!$AR$12,102,ROW())<>\"No Rebate\"),MeasureCalc(Table_PI[[#This Row],[Hide:\nFormula Name]],Table_SummaryPI[[#This Row],[Quantity]],Table_PI[[#This Row],[List 1]],Table_PI[[#This Row],[List 2]],Table_PI[[#This Row],[List 3]],Table_PI[[#This Row],[Size]],Table_PI[[#This Row],[Input 1]],Table_PI[[#This Row],[Input 2]],Table_PI[[#This Row],[Input 3]],Table_PI[[#This Row],[Input 4]],'Customer Information'!$AR$12,102,ROW()),\"\"),\"\")","v":""},{"$f":"IF(Table_PI[[#This Row],[Input 3]]<>\"\",Table_PI[[#This Row],[Input 3]],\"\")","v":""},null,{"$f":"IFERROR(IF(AND(MeasureCalc(Table_PI[[#This Row],[Hide:\nFormula Name]],Table_SummaryPI[[#This Row],[Quantity]],Table_PI[[#This Row],[List 1]],Table_PI[[#This Row],[List 2]],Table_PI[[#This Row],[List 3]],Table_PI[[#This Row],[Size]],Table_PI[[#This Row],[Input 1]],Table_PI[[#This Row],[Input 2]],Table_PI[[#This Row],[Input 3]],Table_PI[[#This Row],[Input 4]],'Customer Information'!$AR$12,103,ROW())<>0,MeasureCalc(Table_PI[[#This Row],[Hide:\nFormula Name]],Table_SummaryPI[[#This Row],[Quantity]],Table_PI[[#This Row],[List 1]],Table_PI[[#This Row],[List 2]],Table_PI[[#This Row],[List 3]],Table_PI[[#This Row],[Size]],Table_PI[[#This Row],[Input 1]],Table_PI[[#This Row],[Input 2]],Table_PI[[#This Row],[Input 3]],Table_PI[[#This Row],[Input 4]],'Customer Information'!$AR$12,103,ROW())<>\"No Rebate\"),MeasureCalc(Table_PI[[#This Row],[Hide:\nFormula Name]],Table_SummaryPI[[#This Row],[Quantity]],Table_PI[[#This Row],[List 1]],Table_PI[[#This Row],[List 2]],Table_PI[[#This Row],[List 3]],Table_PI[[#This Row],[Size]],Table_PI[[#This Row],[Input 1]],Table_PI[[#This Row],[Input 2]],Table_PI[[#This Row],[Input 3]],Table_PI[[#This Row],[Input 4]],'Customer Information'!$AR$12,103,ROW()),\"\"),\"\")","v":""},{"$f":"IF(Table_PI[[#This Row],[Input 4]]<>\"\",Table_PI[[#This Row],[Input 4]],\"\")","v":""},{"$f":"IF(Table_PI[[#This Row],[Quantity]]=\"\",\"\",Table_PI[[#This Row],[Quantity]])","v":""},{"$f":"IF(Table_PI[[#This Row],[Notes]]=\"\",\"\",Table_PI[[#This Row],[Notes]])","v":""},{"$f":"IF(OR(Table_PI[[#This Row],[Hide:\nBaseline kWh]]=\"\",Table_PI[[#This Row],[Hide:\nBaseline kWh]]=0),\"\",Table_PI[[#This Row],[Hide:\nBaseline kWh]])","v":""},{"$f":"IF(OR(Table_PI[[#This Row],[Hide:\nBaseline kW]]=\"\",Table_PI[[#This Row],[Hide:\nBaseline kW]]=0),\"\",Table_PI[[#This Row],[Hide:\nBaseline kW]])","v":""},{"$f":"IF(OR(Table_PI[[#This Row],[Hide:\nProposed kWh]]=\"\",Table_PI[[#This Row],[Hide:\nProposed kWh]]=0),\"\",Table_PI[[#This Row],[Hide:\nProposed kWh]])","v":""},{"$f":"IF(OR(Table_PI[[#This Row],[Hide:\nProposed kW]]=\"\",Table_PI[[#This Row],[Hide:\nProposed kW]]=0),\"\",Table_PI[[#This Row],[Hide:\nProposed kW]])","v":""},{"$f":"IF(OR(Table_PI[[#This Row],[Rebate]]=\"\",Table_PI[[#This Row],[Rebate]]=0),\"\",Table_PI[[#This Row],[Rebate]])","v":""},{"$f":"IF(OR(Table_PI[[#This Row],[Hide:\nIncremental Cost]]=\"\",Table_PI[[#This Row],[Hide:\nIncremental Cost]]=0),\"\",Table_PI[[#This Row],[Hide:\nIncremental Cost]])","v":""},{"$f":"IFERROR(IF(Table_SummaryPI[[#This Row],[kWhSavings]]=\"\",\"\",ROUND(Table_SummaryPI[[#This Row],[kWhSavings]]/$AG$401*'Customer Information'!$BC$17,2)),0)","v":""},{"$f":"IF(OR(Table_PI[[#This Row],[Annual kWh]]=\"\",Table_PI[[#This Row],[Annual kWh]]=0),\"\",Table_PI[[#This Row],[Annual kWh]])","v":""},{"$f":"IF(OR(Table_PI[[#This Row],[Peak kW]]=\"\",Table_PI[[#This Row],[Peak kW]]=0),\"\",Table_PI[[#This Row],[Peak kW]])","v":""},{"$f":"IFERROR(IF(Table_SummaryPI[[#This Row],[kWhSavings]]=\"\",\"\",$AU$9*Table_SummaryPI[[#This Row],[kWhSavings]]),0)","v":""},{"$f":"IFERROR(IF(Table_SummaryPI[[#This Row],[kWhSavings]]=\"\",\"\",$AU$14*Table_SummaryPI[[#This Row],[kWhSavings]]),0)","v":""},{"$f":"IFERROR(IF(Table_SummaryPI[[#This Row],[kWhSavings]]=\"\",\"\",$AU$18*Table_SummaryPI[[#This Row],[kWhSavings]]),0)","v":""},{"$f":"IFERROR(IF(Table_SummaryPI[[#This Row],[kWhSavings]]=\"\",\"\",$AU$22*Table_SummaryPI[[#This Row],[kWhSavings]]),0)","v":""},{"$f":"IFERROR(IF(MeasureCalc(Table_PI[[#This Row],[Hide:\nFormula Name]],Table_SummaryPI[[#This Row],[Quantity]],Table_PI[[#This Row],[List 1]],Table_PI[[#This Row],[List 2]],Table_PI[[#This Row],[List 3]],Table_PI[[#This Row],[Size]],Table_PI[[#This Row],[Input 1]],Table_PI[[#This Row],[Input 2]],Table_PI[[#This Row],[Input 3]],Table_PI[[#This Row],[Input 4]],'Customer Information'!$AR$12,200,ROW())<>\"No Rebate\",MeasureCalc(Table_PI[[#This Row],[Hide:\nFormula Name]],Table_SummaryPI[[#This Row],[Quantity]],Table_PI[[#This Row],[List 1]],Table_PI[[#This Row],[List 2]],Table_PI[[#This Row],[List 3]],Table_PI[[#This Row],[Size]],Table_PI[[#This Row],[Input 1]],Table_PI[[#This Row],[Input 2]],Table_PI[[#This Row],[Input 3]],Table_PI[[#This Row],[Input 4]],'Customer Information'!$AR$12,200,ROW()),\"\"),\"\")","v":""},{"$f":"IFERROR(IF(MeasureCalc(Table_PI[[#This Row],[Hide:\nFormula Name]],Table_SummaryPI[[#This Row],[Quantity]],Table_PI[[#This Row],[List 1]],Table_PI[[#This Row],[List 2]],Table_PI[[#This Row],[List 3]],Table_PI[[#This Row],[Size]],Table_PI[[#This Row],[Input 1]],Table_PI[[#This Row],[Input 2]],Table_PI[[#This Row],[Input 3]],Table_PI[[#This Row],[Input 4]],'Customer Information'!$AR$12,201,ROW())<>\"No Rebate\",MeasureCalc(Table_PI[[#This Row],[Hide:\nFormula Name]],Table_SummaryPI[[#This Row],[Quantity]],Table_PI[[#This Row],[List 1]],Table_PI[[#This Row],[List 2]],Table_PI[[#This Row],[List 3]],Table_PI[[#This Row],[Size]],Table_PI[[#This Row],[Input 1]],Table_PI[[#This Row],[Input 2]],Table_PI[[#This Row],[Input 3]],Table_PI[[#This Row],[Input 4]],'Customer Information'!$AR$12,201,ROW()),\"\"),\"\")","v":""}]
[{"$f":"Table_PI[[#This Row],[Line No.]]","v":""},{"$f":"IF(Table_SummaryPI[[#This Row],[MeassureCategory]]<>\"\",CONCATENATE(Table_SummaryPI[[#This Row],[MeassureCategory]],  \" - \", Table_SummaryPI[[#This Row],[ProposedMeasureCategory]],  \" - \", TEXT(Table_SummaryPI[[#This Row],[Size]],\"#,##0.00\"),\" \",Table_SummaryPI[[#This Row],[SizeUnit]]),\"\")","v":""},{"$f":"SUBSTITUTE(Table_PI[[#This Row],[Measure]],\"     \",\"\",1)","v":""},{"$f":"IF(Table_PI[[#This Row],[List 1]]<>\"\",Table_PI[[#This Row],[List 1]],\"\")","v":""},{"$f":"IF(Table_PI[[#This Row],[List 2]]<>\"\",Table_PI[[#This Row],[List 2]],\"\")","v":""},{"$f":"IF(Table_PI[[#This Row],[List 3]]<>\"\",Table_PI[[#This Row],[List 3]],\"\")","v":""},{"$f":"IF(Table_PI[[#This Row],[Manufacturer]]=\"\",\"\",Table_PI[[#This Row],[Manufacturer]])","v":""},{"$f":"IF(Table_PI[[#This Row],[Model Number]]=\"\",\"\",Table_PI[[#This Row],[Model Number]])","v":""},{"$f":"IF(Table_PI[[#This Row],[Serial Number(s)]]=\"\",\"\",Table_PI[[#This Row],[Serial Number(s)]])","v":""},null,{"$f":"IF(Table_PI[[#This Row],[Size]]=\"\",\"\",Table_PI[[#This Row],[Size]])","v":""},null,{"$f":"IFERROR(IF(AND(MeasureCalc(Table_PI[[#This Row],[Hide:\nFormula Name]],Table_SummaryPI[[#This Row],[Quantity]],Table_PI[[#This Row],[List 1]],Table_PI[[#This Row],[List 2]],Table_PI[[#This Row],[List 3]],Table_PI[[#This Row],[Size]],Table_PI[[#This Row],[Input 1]],Table_PI[[#This Row],[Input 2]],Table_PI[[#This Row],[Input 3]],Table_PI[[#This Row],[Input 4]],'Customer Information'!$AR$12,100,ROW())<>0,MeasureCalc(Table_PI[[#This Row],[Hide:\nFormula Name]],Table_SummaryPI[[#This Row],[Quantity]],Table_PI[[#This Row],[List 1]],Table_PI[[#This Row],[List 2]],Table_PI[[#This Row],[List 3]],Table_PI[[#This Row],[Size]],Table_PI[[#This Row],[Input 1]],Table_PI[[#This Row],[Input 2]],Table_PI[[#This Row],[Input 3]],Table_PI[[#This Row],[Input 4]],'Customer Information'!$AR$12,100,ROW())<>\"No Rebate\"),MeasureCalc(Table_PI[[#This Row],[Hide:\nFormula Name]],Table_SummaryPI[[#This Row],[Quantity]],Table_PI[[#This Row],[List 1]],Table_PI[[#This Row],[List 2]],Table_PI[[#This Row],[List 3]],Table_PI[[#This Row],[Size]],Table_PI[[#This Row],[Input 1]],Table_PI[[#This Row],[Input 2]],Table_PI[[#This Row],[Input 3]],Table_PI[[#This Row],[Input 4]],'Customer Information'!$AR$12,100,ROW()),\"\"),\"\")","v":""},{"$f":"IF(Table_PI[[#This Row],[Input 1]]<>\"\",Table_PI[[#This Row],[Input 1]],\"\")","v":""},null,{"$f":"IFERROR(IF(AND(MeasureCalc(Table_PI[[#This Row],[Hide:\nFormula Name]],Table_SummaryPI[[#This Row],[Quantity]],Table_PI[[#This Row],[List 1]],Table_PI[[#This Row],[List 2]],Table_PI[[#This Row],[List 3]],Table_PI[[#This Row],[Size]],Table_PI[[#This Row],[Input 1]],Table_PI[[#This Row],[Input 2]],Table_PI[[#This Row],[Input 3]],Table_PI[[#This Row],[Input 4]],'Customer Information'!$AR$12,101,ROW())<>0,MeasureCalc(Table_PI[[#This Row],[Hide:\nFormula Name]],Table_SummaryPI[[#This Row],[Quantity]],Table_PI[[#This Row],[List 1]],Table_PI[[#This Row],[List 2]],Table_PI[[#This Row],[List 3]],Table_PI[[#This Row],[Size]],Table_PI[[#This Row],[Input 1]],Table_PI[[#This Row],[Input 2]],Table_PI[[#This Row],[Input 3]],Table_PI[[#This Row],[Input 4]],'Customer Information'!$AR$12,101,ROW())<>\"No Rebate\"),MeasureCalc(Table_PI[[#This Row],[Hide:\nFormula Name]],Table_SummaryPI[[#This Row],[Quantity]],Table_PI[[#This Row],[List 1]],Table_PI[[#This Row],[List 2]],Table_PI[[#This Row],[List 3]],Table_PI[[#This Row],[Size]],Table_PI[[#This Row],[Input 1]],Table_PI[[#This Row],[Input 2]],Table_PI[[#This Row],[Input 3]],Table_PI[[#This Row],[Input 4]],'Customer Information'!$AR$12,101,ROW()),\"\"),\"\")","v":""},{"$f":"IF(Table_PI[[#This Row],[Input 2]]<>\"\",Table_PI[[#This Row],[Input 2]],\"\")","v":""},null,{"$f":"IFERROR(IF(AND(MeasureCalc(Table_PI[[#This Row],[Hide:\nFormula Name]],Table_SummaryPI[[#This Row],[Quantity]],Table_PI[[#This Row],[List 1]],Table_PI[[#This Row],[List 2]],Table_PI[[#This Row],[List 3]],Table_PI[[#This Row],[Size]],Table_PI[[#This Row],[Input 1]],Table_PI[[#This Row],[Input 2]],Table_PI[[#This Row],[Input 3]],Table_PI[[#This Row],[Input 4]],'Customer Information'!$AR$12,102,ROW())<>0,MeasureCalc(Table_PI[[#This Row],[Hide:\nFormula Name]],Table_SummaryPI[[#This Row],[Quantity]],Table_PI[[#This Row],[List 1]],Table_PI[[#This Row],[List 2]],Table_PI[[#This Row],[List 3]],Table_PI[[#This Row],[Size]],Table_PI[[#This Row],[Input 1]],Table_PI[[#This Row],[Input 2]],Table_PI[[#This Row],[Input 3]],Table_PI[[#This Row],[Input 4]],'Customer Information'!$AR$12,102,ROW())<>\"No Rebate\"),MeasureCalc(Table_PI[[#This Row],[Hide:\nFormula Name]],Table_SummaryPI[[#This Row],[Quantity]],Table_PI[[#This Row],[List 1]],Table_PI[[#This Row],[List 2]],Table_PI[[#This Row],[List 3]],Table_PI[[#This Row],[Size]],Table_PI[[#This Row],[Input 1]],Table_PI[[#This Row],[Input 2]],Table_PI[[#This Row],[Input 3]],Table_PI[[#This Row],[Input 4]],'Customer Information'!$AR$12,102,ROW()),\"\"),\"\")","v":""},{"$f":"IF(Table_PI[[#This Row],[Input 3]]<>\"\",Table_PI[[#This Row],[Input 3]],\"\")","v":""},null,{"$f":"IFERROR(IF(AND(MeasureCalc(Table_PI[[#This Row],[Hide:\nFormula Name]],Table_SummaryPI[[#This Row],[Quantity]],Table_PI[[#This Row],[List 1]],Table_PI[[#This Row],[List 2]],Table_PI[[#This Row],[List 3]],Table_PI[[#This Row],[Size]],Table_PI[[#This Row],[Input 1]],Table_PI[[#This Row],[Input 2]],Table_PI[[#This Row],[Input 3]],Table_PI[[#This Row],[Input 4]],'Customer Information'!$AR$12,103,ROW())<>0,MeasureCalc(Table_PI[[#This Row],[Hide:\nFormula Name]],Table_SummaryPI[[#This Row],[Quantity]],Table_PI[[#This Row],[List 1]],Table_PI[[#This Row],[List 2]],Table_PI[[#This Row],[List 3]],Table_PI[[#This Row],[Size]],Table_PI[[#This Row],[Input 1]],Table_PI[[#This Row],[Input 2]],Table_PI[[#This Row],[Input 3]],Table_PI[[#This Row],[Input 4]],'Customer Information'!$AR$12,103,ROW())<>\"No Rebate\"),MeasureCalc(Table_PI[[#This Row],[Hide:\nFormula Name]],Table_SummaryPI[[#This Row],[Quantity]],Table_PI[[#This Row],[List 1]],Table_PI[[#This Row],[List 2]],Table_PI[[#This Row],[List 3]],Table_PI[[#This Row],[Size]],Table_PI[[#This Row],[Input 1]],Table_PI[[#This Row],[Input 2]],Table_PI[[#This Row],[Input 3]],Table_PI[[#This Row],[Input 4]],'Customer Information'!$AR$12,103,ROW()),\"\"),\"\")","v":""},{"$f":"IF(Table_PI[[#This Row],[Input 4]]<>\"\",Table_PI[[#This Row],[Input 4]],\"\")","v":""},{"$f":"IF(Table_PI[[#This Row],[Quantity]]=\"\",\"\",Table_PI[[#This Row],[Quantity]])","v":""},{"$f":"IF(Table_PI[[#This Row],[Notes]]=\"\",\"\",Table_PI[[#This Row],[Notes]])","v":""},{"$f":"IF(OR(Table_PI[[#This Row],[Hide:\nBaseline kWh]]=\"\",Table_PI[[#This Row],[Hide:\nBaseline kWh]]=0),\"\",Table_PI[[#This Row],[Hide:\nBaseline kWh]])","v":""},{"$f":"IF(OR(Table_PI[[#This Row],[Hide:\nBaseline kW]]=\"\",Table_PI[[#This Row],[Hide:\nBaseline kW]]=0),\"\",Table_PI[[#This Row],[Hide:\nBaseline kW]])","v":""},{"$f":"IF(OR(Table_PI[[#This Row],[Hide:\nProposed kWh]]=\"\",Table_PI[[#This Row],[Hide:\nProposed kWh]]=0),\"\",Table_PI[[#This Row],[Hide:\nProposed kWh]])","v":""},{"$f":"IF(OR(Table_PI[[#This Row],[Hide:\nProposed kW]]=\"\",Table_PI[[#This Row],[Hide:\nProposed kW]]=0),\"\",Table_PI[[#This Row],[Hide:\nProposed kW]])","v":""},{"$f":"IF(OR(Table_PI[[#This Row],[Rebate]]=\"\",Table_PI[[#This Row],[Rebate]]=0),\"\",Table_PI[[#This Row],[Rebate]])","v":""},{"$f":"IF(OR(Table_PI[[#This Row],[Hide:\nIncremental Cost]]=\"\",Table_PI[[#This Row],[Hide:\nIncremental Cost]]=0),\"\",Table_PI[[#This Row],[Hide:\nIncremental Cost]])","v":""},{"$f":"IFERROR(IF(Table_SummaryPI[[#This Row],[kWhSavings]]=\"\",\"\",ROUND(Table_SummaryPI[[#This Row],[kWhSavings]]/$AG$401*'Customer Information'!$BC$17,2)),0)","v":""},{"$f":"IF(OR(Table_PI[[#This Row],[Annual kWh]]=\"\",Table_PI[[#This Row],[Annual kWh]]=0),\"\",Table_PI[[#This Row],[Annual kWh]])","v":""},{"$f":"IF(OR(Table_PI[[#This Row],[Peak kW]]=\"\",Table_PI[[#This Row],[Peak kW]]=0),\"\",Table_PI[[#This Row],[Peak kW]])","v":""},{"$f":"IFERROR(IF(Table_SummaryPI[[#This Row],[kWhSavings]]=\"\",\"\",$AU$9*Table_SummaryPI[[#This Row],[kWhSavings]]),0)","v":""},{"$f":"IFERROR(IF(Table_SummaryPI[[#This Row],[kWhSavings]]=\"\",\"\",$AU$14*Table_SummaryPI[[#This Row],[kWhSavings]]),0)","v":""},{"$f":"IFERROR(IF(Table_SummaryPI[[#This Row],[kWhSavings]]=\"\",\"\",$AU$18*Table_SummaryPI[[#This Row],[kWhSavings]]),0)","v":""},{"$f":"IFERROR(IF(Table_SummaryPI[[#This Row],[kWhSavings]]=\"\",\"\",$AU$22*Table_SummaryPI[[#This Row],[kWhSavings]]),0)","v":""},{"$f":"IFERROR(IF(MeasureCalc(Table_PI[[#This Row],[Hide:\nFormula Name]],Table_SummaryPI[[#This Row],[Quantity]],Table_PI[[#This Row],[List 1]],Table_PI[[#This Row],[List 2]],Table_PI[[#This Row],[List 3]],Table_PI[[#This Row],[Size]],Table_PI[[#This Row],[Input 1]],Table_PI[[#This Row],[Input 2]],Table_PI[[#This Row],[Input 3]],Table_PI[[#This Row],[Input 4]],'Customer Information'!$AR$12,200,ROW())<>\"No Rebate\",MeasureCalc(Table_PI[[#This Row],[Hide:\nFormula Name]],Table_SummaryPI[[#This Row],[Quantity]],Table_PI[[#This Row],[List 1]],Table_PI[[#This Row],[List 2]],Table_PI[[#This Row],[List 3]],Table_PI[[#This Row],[Size]],Table_PI[[#This Row],[Input 1]],Table_PI[[#This Row],[Input 2]],Table_PI[[#This Row],[Input 3]],Table_PI[[#This Row],[Input 4]],'Customer Information'!$AR$12,200,ROW()),\"\"),\"\")","v":""},{"$f":"IFERROR(IF(MeasureCalc(Table_PI[[#This Row],[Hide:\nFormula Name]],Table_SummaryPI[[#This Row],[Quantity]],Table_PI[[#This Row],[List 1]],Table_PI[[#This Row],[List 2]],Table_PI[[#This Row],[List 3]],Table_PI[[#This Row],[Size]],Table_PI[[#This Row],[Input 1]],Table_PI[[#This Row],[Input 2]],Table_PI[[#This Row],[Input 3]],Table_PI[[#This Row],[Input 4]],'Customer Information'!$AR$12,201,ROW())<>\"No Rebate\",MeasureCalc(Table_PI[[#This Row],[Hide:\nFormula Name]],Table_SummaryPI[[#This Row],[Quantity]],Table_PI[[#This Row],[List 1]],Table_PI[[#This Row],[List 2]],Table_PI[[#This Row],[List 3]],Table_PI[[#This Row],[Size]],Table_PI[[#This Row],[Input 1]],Table_PI[[#This Row],[Input 2]],Table_PI[[#This Row],[Input 3]],Table_PI[[#This Row],[Input 4]],'Customer Information'!$AR$12,201,ROW()),\"\"),\"\")","v":""}]
[{"$f":"Table_PI[[#This Row],[Line No.]]","v":""},{"$f":"IF(Table_SummaryPI[[#This Row],[MeassureCategory]]<>\"\",CONCATENATE(Table_SummaryPI[[#This Row],[MeassureCategory]],  \" - \", Table_SummaryPI[[#This Row],[ProposedMeasureCategory]],  \" - \", TEXT(Table_SummaryPI[[#This Row],[Size]],\"#,##0.00\"),\" \",Table_SummaryPI[[#This Row],[SizeUnit]]),\"\")","v":""},{"$f":"SUBSTITUTE(Table_PI[[#This Row],[Measure]],\"     \",\"\",1)","v":""},{"$f":"IF(Table_PI[[#This Row],[List 1]]<>\"\",Table_PI[[#This Row],[List 1]],\"\")","v":""},{"$f":"IF(Table_PI[[#This Row],[List 2]]<>\"\",Table_PI[[#This Row],[List 2]],\"\")","v":""},{"$f":"IF(Table_PI[[#This Row],[List 3]]<>\"\",Table_PI[[#This Row],[List 3]],\"\")","v":""},{"$f":"IF(Table_PI[[#This Row],[Manufacturer]]=\"\",\"\",Table_PI[[#This Row],[Manufacturer]])","v":""},{"$f":"IF(Table_PI[[#This Row],[Model Number]]=\"\",\"\",Table_PI[[#This Row],[Model Number]])","v":""},{"$f":"IF(Table_PI[[#This Row],[Serial Number(s)]]=\"\",\"\",Table_PI[[#This Row],[Serial Number(s)]])","v":""},null,{"$f":"IF(Table_PI[[#This Row],[Size]]=\"\",\"\",Table_PI[[#This Row],[Size]])","v":""},null,{"$f":"IFERROR(IF(AND(MeasureCalc(Table_PI[[#This Row],[Hide:\nFormula Name]],Table_SummaryPI[[#This Row],[Quantity]],Table_PI[[#This Row],[List 1]],Table_PI[[#This Row],[List 2]],Table_PI[[#This Row],[List 3]],Table_PI[[#This Row],[Size]],Table_PI[[#This Row],[Input 1]],Table_PI[[#This Row],[Input 2]],Table_PI[[#This Row],[Input 3]],Table_PI[[#This Row],[Input 4]],'Customer Information'!$AR$12,100,ROW())<>0,MeasureCalc(Table_PI[[#This Row],[Hide:\nFormula Name]],Table_SummaryPI[[#This Row],[Quantity]],Table_PI[[#This Row],[List 1]],Table_PI[[#This Row],[List 2]],Table_PI[[#This Row],[List 3]],Table_PI[[#This Row],[Size]],Table_PI[[#This Row],[Input 1]],Table_PI[[#This Row],[Input 2]],Table_PI[[#This Row],[Input 3]],Table_PI[[#This Row],[Input 4]],'Customer Information'!$AR$12,100,ROW())<>\"No Rebate\"),MeasureCalc(Table_PI[[#This Row],[Hide:\nFormula Name]],Table_SummaryPI[[#This Row],[Quantity]],Table_PI[[#This Row],[List 1]],Table_PI[[#This Row],[List 2]],Table_PI[[#This Row],[List 3]],Table_PI[[#This Row],[Size]],Table_PI[[#This Row],[Input 1]],Table_PI[[#This Row],[Input 2]],Table_PI[[#This Row],[Input 3]],Table_PI[[#This Row],[Input 4]],'Customer Information'!$AR$12,100,ROW()),\"\"),\"\")","v":""},{"$f":"IF(Table_PI[[#This Row],[Input 1]]<>\"\",Table_PI[[#This Row],[Input 1]],\"\")","v":""},null,{"$f":"IFERROR(IF(AND(MeasureCalc(Table_PI[[#This Row],[Hide:\nFormula Name]],Table_SummaryPI[[#This Row],[Quantity]],Table_PI[[#This Row],[List 1]],Table_PI[[#This Row],[List 2]],Table_PI[[#This Row],[List 3]],Table_PI[[#This Row],[Size]],Table_PI[[#This Row],[Input 1]],Table_PI[[#This Row],[Input 2]],Table_PI[[#This Row],[Input 3]],Table_PI[[#This Row],[Input 4]],'Customer Information'!$AR$12,101,ROW())<>0,MeasureCalc(Table_PI[[#This Row],[Hide:\nFormula Name]],Table_SummaryPI[[#This Row],[Quantity]],Table_PI[[#This Row],[List 1]],Table_PI[[#This Row],[List 2]],Table_PI[[#This Row],[List 3]],Table_PI[[#This Row],[Size]],Table_PI[[#This Row],[Input 1]],Table_PI[[#This Row],[Input 2]],Table_PI[[#This Row],[Input 3]],Table_PI[[#This Row],[Input 4]],'Customer Information'!$AR$12,101,ROW())<>\"No Rebate\"),MeasureCalc(Table_PI[[#This Row],[Hide:\nFormula Name]],Table_SummaryPI[[#This Row],[Quantity]],Table_PI[[#This Row],[List 1]],Table_PI[[#This Row],[List 2]],Table_PI[[#This Row],[List 3]],Table_PI[[#This Row],[Size]],Table_PI[[#This Row],[Input 1]],Table_PI[[#This Row],[Input 2]],Table_PI[[#This Row],[Input 3]],Table_PI[[#This Row],[Input 4]],'Customer Information'!$AR$12,101,ROW()),\"\"),\"\")","v":""},{"$f":"IF(Table_PI[[#This Row],[Input 2]]<>\"\",Table_PI[[#This Row],[Input 2]],\"\")","v":""},null,{"$f":"IFERROR(IF(AND(MeasureCalc(Table_PI[[#This Row],[Hide:\nFormula Name]],Table_SummaryPI[[#This Row],[Quantity]],Table_PI[[#This Row],[List 1]],Table_PI[[#This Row],[List 2]],Table_PI[[#This Row],[List 3]],Table_PI[[#This Row],[Size]],Table_PI[[#This Row],[Input 1]],Table_PI[[#This Row],[Input 2]],Table_PI[[#This Row],[Input 3]],Table_PI[[#This Row],[Input 4]],'Customer Information'!$AR$12,102,ROW())<>0,MeasureCalc(Table_PI[[#This Row],[Hide:\nFormula Name]],Table_SummaryPI[[#This Row],[Quantity]],Table_PI[[#This Row],[List 1]],Table_PI[[#This Row],[List 2]],Table_PI[[#This Row],[List 3]],Table_PI[[#This Row],[Size]],Table_PI[[#This Row],[Input 1]],Table_PI[[#This Row],[Input 2]],Table_PI[[#This Row],[Input 3]],Table_PI[[#This Row],[Input 4]],'Customer Information'!$AR$12,102,ROW())<>\"No Rebate\"),MeasureCalc(Table_PI[[#This Row],[Hide:\nFormula Name]],Table_SummaryPI[[#This Row],[Quantity]],Table_PI[[#This Row],[List 1]],Table_PI[[#This Row],[List 2]],Table_PI[[#This Row],[List 3]],Table_PI[[#This Row],[Size]],Table_PI[[#This Row],[Input 1]],Table_PI[[#This Row],[Input 2]],Table_PI[[#This Row],[Input 3]],Table_PI[[#This Row],[Input 4]],'Customer Information'!$AR$12,102,ROW()),\"\"),\"\")","v":""},{"$f":"IF(Table_PI[[#This Row],[Input 3]]<>\"\",Table_PI[[#This Row],[Input 3]],\"\")","v":""},null,{"$f":"IFERROR(IF(AND(MeasureCalc(Table_PI[[#This Row],[Hide:\nFormula Name]],Table_SummaryPI[[#This Row],[Quantity]],Table_PI[[#This Row],[List 1]],Table_PI[[#This Row],[List 2]],Table_PI[[#This Row],[List 3]],Table_PI[[#This Row],[Size]],Table_PI[[#This Row],[Input 1]],Table_PI[[#This Row],[Input 2]],Table_PI[[#This Row],[Input 3]],Table_PI[[#This Row],[Input 4]],'Customer Information'!$AR$12,103,ROW())<>0,MeasureCalc(Table_PI[[#This Row],[Hide:\nFormula Name]],Table_SummaryPI[[#This Row],[Quantity]],Table_PI[[#This Row],[List 1]],Table_PI[[#This Row],[List 2]],Table_PI[[#This Row],[List 3]],Table_PI[[#This Row],[Size]],Table_PI[[#This Row],[Input 1]],Table_PI[[#This Row],[Input 2]],Table_PI[[#This Row],[Input 3]],Table_PI[[#This Row],[Input 4]],'Customer Information'!$AR$12,103,ROW())<>\"No Rebate\"),MeasureCalc(Table_PI[[#This Row],[Hide:\nFormula Name]],Table_SummaryPI[[#This Row],[Quantity]],Table_PI[[#This Row],[List 1]],Table_PI[[#This Row],[List 2]],Table_PI[[#This Row],[List 3]],Table_PI[[#This Row],[Size]],Table_PI[[#This Row],[Input 1]],Table_PI[[#This Row],[Input 2]],Table_PI[[#This Row],[Input 3]],Table_PI[[#This Row],[Input 4]],'Customer Information'!$AR$12,103,ROW()),\"\"),\"\")","v":""},{"$f":"IF(Table_PI[[#This Row],[Input 4]]<>\"\",Table_PI[[#This Row],[Input 4]],\"\")","v":""},{"$f":"IF(Table_PI[[#This Row],[Quantity]]=\"\",\"\",Table_PI[[#This Row],[Quantity]])","v":""},{"$f":"IF(Table_PI[[#This Row],[Notes]]=\"\",\"\",Table_PI[[#This Row],[Notes]])","v":""},{"$f":"IF(OR(Table_PI[[#This Row],[Hide:\nBaseline kWh]]=\"\",Table_PI[[#This Row],[Hide:\nBaseline kWh]]=0),\"\",Table_PI[[#This Row],[Hide:\nBaseline kWh]])","v":""},{"$f":"IF(OR(Table_PI[[#This Row],[Hide:\nBaseline kW]]=\"\",Table_PI[[#This Row],[Hide:\nBaseline kW]]=0),\"\",Table_PI[[#This Row],[Hide:\nBaseline kW]])","v":""},{"$f":"IF(OR(Table_PI[[#This Row],[Hide:\nProposed kWh]]=\"\",Table_PI[[#This Row],[Hide:\nProposed kWh]]=0),\"\",Table_PI[[#This Row],[Hide:\nProposed kWh]])","v":""},{"$f":"IF(OR(Table_PI[[#This Row],[Hide:\nProposed kW]]=\"\",Table_PI[[#This Row],[Hide:\nProposed kW]]=0),\"\",Table_PI[[#This Row],[Hide:\nProposed kW]])","v":""},{"$f":"IF(OR(Table_PI[[#This Row],[Rebate]]=\"\",Table_PI[[#This Row],[Rebate]]=0),\"\",Table_PI[[#This Row],[Rebate]])","v":""},{"$f":"IF(OR(Table_PI[[#This Row],[Hide:\nIncremental Cost]]=\"\",Table_PI[[#This Row],[Hide:\nIncremental Cost]]=0),\"\",Table_PI[[#This Row],[Hide:\nIncremental Cost]])","v":""},{"$f":"IFERROR(IF(Table_SummaryPI[[#This Row],[kWhSavings]]=\"\",\"\",ROUND(Table_SummaryPI[[#This Row],[kWhSavings]]/$AG$401*'Customer Information'!$BC$17,2)),0)","v":""},{"$f":"IF(OR(Table_PI[[#This Row],[Annual kWh]]=\"\",Table_PI[[#This Row],[Annual kWh]]=0),\"\",Table_PI[[#This Row],[Annual kWh]])","v":""},{"$f":"IF(OR(Table_PI[[#This Row],[Peak kW]]=\"\",Table_PI[[#This Row],[Peak kW]]=0),\"\",Table_PI[[#This Row],[Peak kW]])","v":""},{"$f":"IFERROR(IF(Table_SummaryPI[[#This Row],[kWhSavings]]=\"\",\"\",$AU$9*Table_SummaryPI[[#This Row],[kWhSavings]]),0)","v":""},{"$f":"IFERROR(IF(Table_SummaryPI[[#This Row],[kWhSavings]]=\"\",\"\",$AU$14*Table_SummaryPI[[#This Row],[kWhSavings]]),0)","v":""},{"$f":"IFERROR(IF(Table_SummaryPI[[#This Row],[kWhSavings]]=\"\",\"\",$AU$18*Table_SummaryPI[[#This Row],[kWhSavings]]),0)","v":""},{"$f":"IFERROR(IF(Table_SummaryPI[[#This Row],[kWhSavings]]=\"\",\"\",$AU$22*Table_SummaryPI[[#This Row],[kWhSavings]]),0)","v":""},{"$f":"IFERROR(IF(MeasureCalc(Table_PI[[#This Row],[Hide:\nFormula Name]],Table_SummaryPI[[#This Row],[Quantity]],Table_PI[[#This Row],[List 1]],Table_PI[[#This Row],[List 2]],Table_PI[[#This Row],[List 3]],Table_PI[[#This Row],[Size]],Table_PI[[#This Row],[Input 1]],Table_PI[[#This Row],[Input 2]],Table_PI[[#This Row],[Input 3]],Table_PI[[#This Row],[Input 4]],'Customer Information'!$AR$12,200,ROW())<>\"No Rebate\",MeasureCalc(Table_PI[[#This Row],[Hide:\nFormula Name]],Table_SummaryPI[[#This Row],[Quantity]],Table_PI[[#This Row],[List 1]],Table_PI[[#This Row],[List 2]],Table_PI[[#This Row],[List 3]],Table_PI[[#This Row],[Size]],Table_PI[[#This Row],[Input 1]],Table_PI[[#This Row],[Input 2]],Table_PI[[#This Row],[Input 3]],Table_PI[[#This Row],[Input 4]],'Customer Information'!$AR$12,200,ROW()),\"\"),\"\")","v":""},{"$f":"IFERROR(IF(MeasureCalc(Table_PI[[#This Row],[Hide:\nFormula Name]],Table_SummaryPI[[#This Row],[Quantity]],Table_PI[[#This Row],[List 1]],Table_PI[[#This Row],[List 2]],Table_PI[[#This Row],[List 3]],Table_PI[[#This Row],[Size]],Table_PI[[#This Row],[Input 1]],Table_PI[[#This Row],[Input 2]],Table_PI[[#This Row],[Input 3]],Table_PI[[#This Row],[Input 4]],'Customer Information'!$AR$12,201,ROW())<>\"No Rebate\",MeasureCalc(Table_PI[[#This Row],[Hide:\nFormula Name]],Table_SummaryPI[[#This Row],[Quantity]],Table_PI[[#This Row],[List 1]],Table_PI[[#This Row],[List 2]],Table_PI[[#This Row],[List 3]],Table_PI[[#This Row],[Size]],Table_PI[[#This Row],[Input 1]],Table_PI[[#This Row],[Input 2]],Table_PI[[#This Row],[Input 3]],Table_PI[[#This Row],[Input 4]],'Customer Information'!$AR$12,201,ROW()),\"\"),\"\")","v":""}]
[{"$f":"Table_PI[[#This Row],[Line No.]]","v":""},{"$f":"IF(Table_SummaryPI[[#This Row],[MeassureCategory]]<>\"\",CONCATENATE(Table_SummaryPI[[#This Row],[MeassureCategory]],  \" - \", Table_SummaryPI[[#This Row],[ProposedMeasureCategory]],  \" - \", TEXT(Table_SummaryPI[[#This Row],[Size]],\"#,##0.00\"),\" \",Table_SummaryPI[[#This Row],[SizeUnit]]),\"\")","v":""},{"$f":"SUBSTITUTE(Table_PI[[#This Row],[Measure]],\"     \",\"\",1)","v":""},{"$f":"IF(Table_PI[[#This Row],[List 1]]<>\"\",Table_PI[[#This Row],[List 1]],\"\")","v":""},{"$f":"IF(Table_PI[[#This Row],[List 2]]<>\"\",Table_PI[[#This Row],[List 2]],\"\")","v":""},{"$f":"IF(Table_PI[[#This Row],[List 3]]<>\"\",Table_PI[[#This Row],[List 3]],\"\")","v":""},{"$f":"IF(Table_PI[[#This Row],[Manufacturer]]=\"\",\"\",Table_PI[[#This Row],[Manufacturer]])","v":""},{"$f":"IF(Table_PI[[#This Row],[Model Number]]=\"\",\"\",Table_PI[[#This Row],[Model Number]])","v":""},{"$f":"IF(Table_PI[[#This Row],[Serial Number(s)]]=\"\",\"\",Table_PI[[#This Row],[Serial Number(s)]])","v":""},null,{"$f":"IF(Table_PI[[#This Row],[Size]]=\"\",\"\",Table_PI[[#This Row],[Size]])","v":""},null,{"$f":"IFERROR(IF(AND(MeasureCalc(Table_PI[[#This Row],[Hide:\nFormula Name]],Table_SummaryPI[[#This Row],[Quantity]],Table_PI[[#This Row],[List 1]],Table_PI[[#This Row],[List 2]],Table_PI[[#This Row],[List 3]],Table_PI[[#This Row],[Size]],Table_PI[[#This Row],[Input 1]],Table_PI[[#This Row],[Input 2]],Table_PI[[#This Row],[Input 3]],Table_PI[[#This Row],[Input 4]],'Customer Information'!$AR$12,100,ROW())<>0,MeasureCalc(Table_PI[[#This Row],[Hide:\nFormula Name]],Table_SummaryPI[[#This Row],[Quantity]],Table_PI[[#This Row],[List 1]],Table_PI[[#This Row],[List 2]],Table_PI[[#This Row],[List 3]],Table_PI[[#This Row],[Size]],Table_PI[[#This Row],[Input 1]],Table_PI[[#This Row],[Input 2]],Table_PI[[#This Row],[Input 3]],Table_PI[[#This Row],[Input 4]],'Customer Information'!$AR$12,100,ROW())<>\"No Rebate\"),MeasureCalc(Table_PI[[#This Row],[Hide:\nFormula Name]],Table_SummaryPI[[#This Row],[Quantity]],Table_PI[[#This Row],[List 1]],Table_PI[[#This Row],[List 2]],Table_PI[[#This Row],[List 3]],Table_PI[[#This Row],[Size]],Table_PI[[#This Row],[Input 1]],Table_PI[[#This Row],[Input 2]],Table_PI[[#This Row],[Input 3]],Table_PI[[#This Row],[Input 4]],'Customer Information'!$AR$12,100,ROW()),\"\"),\"\")","v":""},{"$f":"IF(Table_PI[[#This Row],[Input 1]]<>\"\",Table_PI[[#This Row],[Input 1]],\"\")","v":""},null,{"$f":"IFERROR(IF(AND(MeasureCalc(Table_PI[[#This Row],[Hide:\nFormula Name]],Table_SummaryPI[[#This Row],[Quantity]],Table_PI[[#This Row],[List 1]],Table_PI[[#This Row],[List 2]],Table_PI[[#This Row],[List 3]],Table_PI[[#This Row],[Size]],Table_PI[[#This Row],[Input 1]],Table_PI[[#This Row],[Input 2]],Table_PI[[#This Row],[Input 3]],Table_PI[[#This Row],[Input 4]],'Customer Information'!$AR$12,101,ROW())<>0,MeasureCalc(Table_PI[[#This Row],[Hide:\nFormula Name]],Table_SummaryPI[[#This Row],[Quantity]],Table_PI[[#This Row],[List 1]],Table_PI[[#This Row],[List 2]],Table_PI[[#This Row],[List 3]],Table_PI[[#This Row],[Size]],Table_PI[[#This Row],[Input 1]],Table_PI[[#This Row],[Input 2]],Table_PI[[#This Row],[Input 3]],Table_PI[[#This Row],[Input 4]],'Customer Information'!$AR$12,101,ROW())<>\"No Rebate\"),MeasureCalc(Table_PI[[#This Row],[Hide:\nFormula Name]],Table_SummaryPI[[#This Row],[Quantity]],Table_PI[[#This Row],[List 1]],Table_PI[[#This Row],[List 2]],Table_PI[[#This Row],[List 3]],Table_PI[[#This Row],[Size]],Table_PI[[#This Row],[Input 1]],Table_PI[[#This Row],[Input 2]],Table_PI[[#This Row],[Input 3]],Table_PI[[#This Row],[Input 4]],'Customer Information'!$AR$12,101,ROW()),\"\"),\"\")","v":""},{"$f":"IF(Table_PI[[#This Row],[Input 2]]<>\"\",Table_PI[[#This Row],[Input 2]],\"\")","v":""},null,{"$f":"IFERROR(IF(AND(MeasureCalc(Table_PI[[#This Row],[Hide:\nFormula Name]],Table_SummaryPI[[#This Row],[Quantity]],Table_PI[[#This Row],[List 1]],Table_PI[[#This Row],[List 2]],Table_PI[[#This Row],[List 3]],Table_PI[[#This Row],[Size]],Table_PI[[#This Row],[Input 1]],Table_PI[[#This Row],[Input 2]],Table_PI[[#This Row],[Input 3]],Table_PI[[#This Row],[Input 4]],'Customer Information'!$AR$12,102,ROW())<>0,MeasureCalc(Table_PI[[#This Row],[Hide:\nFormula Name]],Table_SummaryPI[[#This Row],[Quantity]],Table_PI[[#This Row],[List 1]],Table_PI[[#This Row],[List 2]],Table_PI[[#This Row],[List 3]],Table_PI[[#This Row],[Size]],Table_PI[[#This Row],[Input 1]],Table_PI[[#This Row],[Input 2]],Table_PI[[#This Row],[Input 3]],Table_PI[[#This Row],[Input 4]],'Customer Information'!$AR$12,102,ROW())<>\"No Rebate\"),MeasureCalc(Table_PI[[#This Row],[Hide:\nFormula Name]],Table_SummaryPI[[#This Row],[Quantity]],Table_PI[[#This Row],[List 1]],Table_PI[[#This Row],[List 2]],Table_PI[[#This Row],[List 3]],Table_PI[[#This Row],[Size]],Table_PI[[#This Row],[Input 1]],Table_PI[[#This Row],[Input 2]],Table_PI[[#This Row],[Input 3]],Table_PI[[#This Row],[Input 4]],'Customer Information'!$AR$12,102,ROW()),\"\"),\"\")","v":""},{"$f":"IF(Table_PI[[#This Row],[Input 3]]<>\"\",Table_PI[[#This Row],[Input 3]],\"\")","v":""},null,{"$f":"IFERROR(IF(AND(MeasureCalc(Table_PI[[#This Row],[Hide:\nFormula Name]],Table_SummaryPI[[#This Row],[Quantity]],Table_PI[[#This Row],[List 1]],Table_PI[[#This Row],[List 2]],Table_PI[[#This Row],[List 3]],Table_PI[[#This Row],[Size]],Table_PI[[#This Row],[Input 1]],Table_PI[[#This Row],[Input 2]],Table_PI[[#This Row],[Input 3]],Table_PI[[#This Row],[Input 4]],'Customer Information'!$AR$12,103,ROW())<>0,MeasureCalc(Table_PI[[#This Row],[Hide:\nFormula Name]],Table_SummaryPI[[#This Row],[Quantity]],Table_PI[[#This Row],[List 1]],Table_PI[[#This Row],[List 2]],Table_PI[[#This Row],[List 3]],Table_PI[[#This Row],[Size]],Table_PI[[#This Row],[Input 1]],Table_PI[[#This Row],[Input 2]],Table_PI[[#This Row],[Input 3]],Table_PI[[#This Row],[Input 4]],'Customer Information'!$AR$12,103,ROW())<>\"No Rebate\"),MeasureCalc(Table_PI[[#This Row],[Hide:\nFormula Name]],Table_SummaryPI[[#This Row],[Quantity]],Table_PI[[#This Row],[List 1]],Table_PI[[#This Row],[List 2]],Table_PI[[#This Row],[List 3]],Table_PI[[#This Row],[Size]],Table_PI[[#This Row],[Input 1]],Table_PI[[#This Row],[Input 2]],Table_PI[[#This Row],[Input 3]],Table_PI[[#This Row],[Input 4]],'Customer Information'!$AR$12,103,ROW()),\"\"),\"\")","v":""},{"$f":"IF(Table_PI[[#This Row],[Input 4]]<>\"\",Table_PI[[#This Row],[Input 4]],\"\")","v":""},{"$f":"IF(Table_PI[[#This Row],[Quantity]]=\"\",\"\",Table_PI[[#This Row],[Quantity]])","v":""},{"$f":"IF(Table_PI[[#This Row],[Notes]]=\"\",\"\",Table_PI[[#This Row],[Notes]])","v":""},{"$f":"IF(OR(Table_PI[[#This Row],[Hide:\nBaseline kWh]]=\"\",Table_PI[[#This Row],[Hide:\nBaseline kWh]]=0),\"\",Table_PI[[#This Row],[Hide:\nBaseline kWh]])","v":""},{"$f":"IF(OR(Table_PI[[#This Row],[Hide:\nBaseline kW]]=\"\",Table_PI[[#This Row],[Hide:\nBaseline kW]]=0),\"\",Table_PI[[#This Row],[Hide:\nBaseline kW]])","v":""},{"$f":"IF(OR(Table_PI[[#This Row],[Hide:\nProposed kWh]]=\"\",Table_PI[[#This Row],[Hide:\nProposed kWh]]=0),\"\",Table_PI[[#This Row],[Hide:\nProposed kWh]])","v":""},{"$f":"IF(OR(Table_PI[[#This Row],[Hide:\nProposed kW]]=\"\",Table_PI[[#This Row],[Hide:\nProposed kW]]=0),\"\",Table_PI[[#This Row],[Hide:\nProposed kW]])","v":""},{"$f":"IF(OR(Table_PI[[#This Row],[Rebate]]=\"\",Table_PI[[#This Row],[Rebate]]=0),\"\",Table_PI[[#This Row],[Rebate]])","v":""},{"$f":"IF(OR(Table_PI[[#This Row],[Hide:\nIncremental Cost]]=\"\",Table_PI[[#This Row],[Hide:\nIncremental Cost]]=0),\"\",Table_PI[[#This Row],[Hide:\nIncremental Cost]])","v":""},{"$f":"IFERROR(IF(Table_SummaryPI[[#This Row],[kWhSavings]]=\"\",\"\",ROUND(Table_SummaryPI[[#This Row],[kWhSavings]]/$AG$401*'Customer Information'!$BC$17,2)),0)","v":""},{"$f":"IF(OR(Table_PI[[#This Row],[Annual kWh]]=\"\",Table_PI[[#This Row],[Annual kWh]]=0),\"\",Table_PI[[#This Row],[Annual kWh]])","v":""},{"$f":"IF(OR(Table_PI[[#This Row],[Peak kW]]=\"\",Table_PI[[#This Row],[Peak kW]]=0),\"\",Table_PI[[#This Row],[Peak kW]])","v":""},{"$f":"IFERROR(IF(Table_SummaryPI[[#This Row],[kWhSavings]]=\"\",\"\",$AU$9*Table_SummaryPI[[#This Row],[kWhSavings]]),0)","v":""},{"$f":"IFERROR(IF(Table_SummaryPI[[#This Row],[kWhSavings]]=\"\",\"\",$AU$14*Table_SummaryPI[[#This Row],[kWhSavings]]),0)","v":""},{"$f":"IFERROR(IF(Table_SummaryPI[[#This Row],[kWhSavings]]=\"\",\"\",$AU$18*Table_SummaryPI[[#This Row],[kWhSavings]]),0)","v":""},{"$f":"IFERROR(IF(Table_SummaryPI[[#This Row],[kWhSavings]]=\"\",\"\",$AU$22*Table_SummaryPI[[#This Row],[kWhSavings]]),0)","v":""},{"$f":"IFERROR(IF(MeasureCalc(Table_PI[[#This Row],[Hide:\nFormula Name]],Table_SummaryPI[[#This Row],[Quantity]],Table_PI[[#This Row],[List 1]],Table_PI[[#This Row],[List 2]],Table_PI[[#This Row],[List 3]],Table_PI[[#This Row],[Size]],Table_PI[[#This Row],[Input 1]],Table_PI[[#This Row],[Input 2]],Table_PI[[#This Row],[Input 3]],Table_PI[[#This Row],[Input 4]],'Customer Information'!$AR$12,200,ROW())<>\"No Rebate\",MeasureCalc(Table_PI[[#This Row],[Hide:\nFormula Name]],Table_SummaryPI[[#This Row],[Quantity]],Table_PI[[#This Row],[List 1]],Table_PI[[#This Row],[List 2]],Table_PI[[#This Row],[List 3]],Table_PI[[#This Row],[Size]],Table_PI[[#This Row],[Input 1]],Table_PI[[#This Row],[Input 2]],Table_PI[[#This Row],[Input 3]],Table_PI[[#This Row],[Input 4]],'Customer Information'!$AR$12,200,ROW()),\"\"),\"\")","v":""},{"$f":"IFERROR(IF(MeasureCalc(Table_PI[[#This Row],[Hide:\nFormula Name]],Table_SummaryPI[[#This Row],[Quantity]],Table_PI[[#This Row],[List 1]],Table_PI[[#This Row],[List 2]],Table_PI[[#This Row],[List 3]],Table_PI[[#This Row],[Size]],Table_PI[[#This Row],[Input 1]],Table_PI[[#This Row],[Input 2]],Table_PI[[#This Row],[Input 3]],Table_PI[[#This Row],[Input 4]],'Customer Information'!$AR$12,201,ROW())<>\"No Rebate\",MeasureCalc(Table_PI[[#This Row],[Hide:\nFormula Name]],Table_SummaryPI[[#This Row],[Quantity]],Table_PI[[#This Row],[List 1]],Table_PI[[#This Row],[List 2]],Table_PI[[#This Row],[List 3]],Table_PI[[#This Row],[Size]],Table_PI[[#This Row],[Input 1]],Table_PI[[#This Row],[Input 2]],Table_PI[[#This Row],[Input 3]],Table_PI[[#This Row],[Input 4]],'Customer Information'!$AR$12,201,ROW()),\"\"),\"\")","v":""}]
[{"$f":"Table_PI[[#This Row],[Line No.]]","v":""},{"$f":"IF(Table_SummaryPI[[#This Row],[MeassureCategory]]<>\"\",CONCATENATE(Table_SummaryPI[[#This Row],[MeassureCategory]],  \" - \", Table_SummaryPI[[#This Row],[ProposedMeasureCategory]],  \" - \", TEXT(Table_SummaryPI[[#This Row],[Size]],\"#,##0.00\"),\" \",Table_SummaryPI[[#This Row],[SizeUnit]]),\"\")","v":""},{"$f":"SUBSTITUTE(Table_PI[[#This Row],[Measure]],\"     \",\"\",1)","v":""},{"$f":"IF(Table_PI[[#This Row],[List 1]]<>\"\",Table_PI[[#This Row],[List 1]],\"\")","v":""},{"$f":"IF(Table_PI[[#This Row],[List 2]]<>\"\",Table_PI[[#This Row],[List 2]],\"\")","v":""},{"$f":"IF(Table_PI[[#This Row],[List 3]]<>\"\",Table_PI[[#This Row],[List 3]],\"\")","v":""},{"$f":"IF(Table_PI[[#This Row],[Manufacturer]]=\"\",\"\",Table_PI[[#This Row],[Manufacturer]])","v":""},{"$f":"IF(Table_PI[[#This Row],[Model Number]]=\"\",\"\",Table_PI[[#This Row],[Model Number]])","v":""},{"$f":"IF(Table_PI[[#This Row],[Serial Number(s)]]=\"\",\"\",Table_PI[[#This Row],[Serial Number(s)]])","v":""},null,{"$f":"IF(Table_PI[[#This Row],[Size]]=\"\",\"\",Table_PI[[#This Row],[Size]])","v":""},null,{"$f":"IFERROR(IF(AND(MeasureCalc(Table_PI[[#This Row],[Hide:\nFormula Name]],Table_SummaryPI[[#This Row],[Quantity]],Table_PI[[#This Row],[List 1]],Table_PI[[#This Row],[List 2]],Table_PI[[#This Row],[List 3]],Table_PI[[#This Row],[Size]],Table_PI[[#This Row],[Input 1]],Table_PI[[#This Row],[Input 2]],Table_PI[[#This Row],[Input 3]],Table_PI[[#This Row],[Input 4]],'Customer Information'!$AR$12,100,ROW())<>0,MeasureCalc(Table_PI[[#This Row],[Hide:\nFormula Name]],Table_SummaryPI[[#This Row],[Quantity]],Table_PI[[#This Row],[List 1]],Table_PI[[#This Row],[List 2]],Table_PI[[#This Row],[List 3]],Table_PI[[#This Row],[Size]],Table_PI[[#This Row],[Input 1]],Table_PI[[#This Row],[Input 2]],Table_PI[[#This Row],[Input 3]],Table_PI[[#This Row],[Input 4]],'Customer Information'!$AR$12,100,ROW())<>\"No Rebate\"),MeasureCalc(Table_PI[[#This Row],[Hide:\nFormula Name]],Table_SummaryPI[[#This Row],[Quantity]],Table_PI[[#This Row],[List 1]],Table_PI[[#This Row],[List 2]],Table_PI[[#This Row],[List 3]],Table_PI[[#This Row],[Size]],Table_PI[[#This Row],[Input 1]],Table_PI[[#This Row],[Input 2]],Table_PI[[#This Row],[Input 3]],Table_PI[[#This Row],[Input 4]],'Customer Information'!$AR$12,100,ROW()),\"\"),\"\")","v":""},{"$f":"IF(Table_PI[[#This Row],[Input 1]]<>\"\",Table_PI[[#This Row],[Input 1]],\"\")","v":""},null,{"$f":"IFERROR(IF(AND(MeasureCalc(Table_PI[[#This Row],[Hide:\nFormula Name]],Table_SummaryPI[[#This Row],[Quantity]],Table_PI[[#This Row],[List 1]],Table_PI[[#This Row],[List 2]],Table_PI[[#This Row],[List 3]],Table_PI[[#This Row],[Size]],Table_PI[[#This Row],[Input 1]],Table_PI[[#This Row],[Input 2]],Table_PI[[#This Row],[Input 3]],Table_PI[[#This Row],[Input 4]],'Customer Information'!$AR$12,101,ROW())<>0,MeasureCalc(Table_PI[[#This Row],[Hide:\nFormula Name]],Table_SummaryPI[[#This Row],[Quantity]],Table_PI[[#This Row],[List 1]],Table_PI[[#This Row],[List 2]],Table_PI[[#This Row],[List 3]],Table_PI[[#This Row],[Size]],Table_PI[[#This Row],[Input 1]],Table_PI[[#This Row],[Input 2]],Table_PI[[#This Row],[Input 3]],Table_PI[[#This Row],[Input 4]],'Customer Information'!$AR$12,101,ROW())<>\"No Rebate\"),MeasureCalc(Table_PI[[#This Row],[Hide:\nFormula Name]],Table_SummaryPI[[#This Row],[Quantity]],Table_PI[[#This Row],[List 1]],Table_PI[[#This Row],[List 2]],Table_PI[[#This Row],[List 3]],Table_PI[[#This Row],[Size]],Table_PI[[#This Row],[Input 1]],Table_PI[[#This Row],[Input 2]],Table_PI[[#This Row],[Input 3]],Table_PI[[#This Row],[Input 4]],'Customer Information'!$AR$12,101,ROW()),\"\"),\"\")","v":""},{"$f":"IF(Table_PI[[#This Row],[Input 2]]<>\"\",Table_PI[[#This Row],[Input 2]],\"\")","v":""},null,{"$f":"IFERROR(IF(AND(MeasureCalc(Table_PI[[#This Row],[Hide:\nFormula Name]],Table_SummaryPI[[#This Row],[Quantity]],Table_PI[[#This Row],[List 1]],Table_PI[[#This Row],[List 2]],Table_PI[[#This Row],[List 3]],Table_PI[[#This Row],[Size]],Table_PI[[#This Row],[Input 1]],Table_PI[[#This Row],[Input 2]],Table_PI[[#This Row],[Input 3]],Table_PI[[#This Row],[Input 4]],'Customer Information'!$AR$12,102,ROW())<>0,MeasureCalc(Table_PI[[#This Row],[Hide:\nFormula Name]],Table_SummaryPI[[#This Row],[Quantity]],Table_PI[[#This Row],[List 1]],Table_PI[[#This Row],[List 2]],Table_PI[[#This Row],[List 3]],Table_PI[[#This Row],[Size]],Table_PI[[#This Row],[Input 1]],Table_PI[[#This Row],[Input 2]],Table_PI[[#This Row],[Input 3]],Table_PI[[#This Row],[Input 4]],'Customer Information'!$AR$12,102,ROW())<>\"No Rebate\"),MeasureCalc(Table_PI[[#This Row],[Hide:\nFormula Name]],Table_SummaryPI[[#This Row],[Quantity]],Table_PI[[#This Row],[List 1]],Table_PI[[#This Row],[List 2]],Table_PI[[#This Row],[List 3]],Table_PI[[#This Row],[Size]],Table_PI[[#This Row],[Input 1]],Table_PI[[#This Row],[Input 2]],Table_PI[[#This Row],[Input 3]],Table_PI[[#This Row],[Input 4]],'Customer Information'!$AR$12,102,ROW()),\"\"),\"\")","v":""},{"$f":"IF(Table_PI[[#This Row],[Input 3]]<>\"\",Table_PI[[#This Row],[Input 3]],\"\")","v":""},null,{"$f":"IFERROR(IF(AND(MeasureCalc(Table_PI[[#This Row],[Hide:\nFormula Name]],Table_SummaryPI[[#This Row],[Quantity]],Table_PI[[#This Row],[List 1]],Table_PI[[#This Row],[List 2]],Table_PI[[#This Row],[List 3]],Table_PI[[#This Row],[Size]],Table_PI[[#This Row],[Input 1]],Table_PI[[#This Row],[Input 2]],Table_PI[[#This Row],[Input 3]],Table_PI[[#This Row],[Input 4]],'Customer Information'!$AR$12,103,ROW())<>0,MeasureCalc(Table_PI[[#This Row],[Hide:\nFormula Name]],Table_SummaryPI[[#This Row],[Quantity]],Table_PI[[#This Row],[List 1]],Table_PI[[#This Row],[List 2]],Table_PI[[#This Row],[List 3]],Table_PI[[#This Row],[Size]],Table_PI[[#This Row],[Input 1]],Table_PI[[#This Row],[Input 2]],Table_PI[[#This Row],[Input 3]],Table_PI[[#This Row],[Input 4]],'Customer Information'!$AR$12,103,ROW())<>\"No Rebate\"),MeasureCalc(Table_PI[[#This Row],[Hide:\nFormula Name]],Table_SummaryPI[[#This Row],[Quantity]],Table_PI[[#This Row],[List 1]],Table_PI[[#This Row],[List 2]],Table_PI[[#This Row],[List 3]],Table_PI[[#This Row],[Size]],Table_PI[[#This Row],[Input 1]],Table_PI[[#This Row],[Input 2]],Table_PI[[#This Row],[Input 3]],Table_PI[[#This Row],[Input 4]],'Customer Information'!$AR$12,103,ROW()),\"\"),\"\")","v":""},{"$f":"IF(Table_PI[[#This Row],[Input 4]]<>\"\",Table_PI[[#This Row],[Input 4]],\"\")","v":""},{"$f":"IF(Table_PI[[#This Row],[Quantity]]=\"\",\"\",Table_PI[[#This Row],[Quantity]])","v":""},{"$f":"IF(Table_PI[[#This Row],[Notes]]=\"\",\"\",Table_PI[[#This Row],[Notes]])","v":""},{"$f":"IF(OR(Table_PI[[#This Row],[Hide:\nBaseline kWh]]=\"\",Table_PI[[#This Row],[Hide:\nBaseline kWh]]=0),\"\",Table_PI[[#This Row],[Hide:\nBaseline kWh]])","v":""},{"$f":"IF(OR(Table_PI[[#This Row],[Hide:\nBaseline kW]]=\"\",Table_PI[[#This Row],[Hide:\nBaseline kW]]=0),\"\",Table_PI[[#This Row],[Hide:\nBaseline kW]])","v":""},{"$f":"IF(OR(Table_PI[[#This Row],[Hide:\nProposed kWh]]=\"\",Table_PI[[#This Row],[Hide:\nProposed kWh]]=0),\"\",Table_PI[[#This Row],[Hide:\nProposed kWh]])","v":""},{"$f":"IF(OR(Table_PI[[#This Row],[Hide:\nProposed kW]]=\"\",Table_PI[[#This Row],[Hide:\nProposed kW]]=0),\"\",Table_PI[[#This Row],[Hide:\nProposed kW]])","v":""},{"$f":"IF(OR(Table_PI[[#This Row],[Rebate]]=\"\",Table_PI[[#This Row],[Rebate]]=0),\"\",Table_PI[[#This Row],[Rebate]])","v":""},{"$f":"IF(OR(Table_PI[[#This Row],[Hide:\nIncremental Cost]]=\"\",Table_PI[[#This Row],[Hide:\nIncremental Cost]]=0),\"\",Table_PI[[#This Row],[Hide:\nIncremental Cost]])","v":""},{"$f":"IFERROR(IF(Table_SummaryPI[[#This Row],[kWhSavings]]=\"\",\"\",ROUND(Table_SummaryPI[[#This Row],[kWhSavings]]/$AG$401*'Customer Information'!$BC$17,2)),0)","v":""},{"$f":"IF(OR(Table_PI[[#This Row],[Annual kWh]]=\"\",Table_PI[[#This Row],[Annual kWh]]=0),\"\",Table_PI[[#This Row],[Annual kWh]])","v":""},{"$f":"IF(OR(Table_PI[[#This Row],[Peak kW]]=\"\",Table_PI[[#This Row],[Peak kW]]=0),\"\",Table_PI[[#This Row],[Peak kW]])","v":""},{"$f":"IFERROR(IF(Table_SummaryPI[[#This Row],[kWhSavings]]=\"\",\"\",$AU$9*Table_SummaryPI[[#This Row],[kWhSavings]]),0)","v":""},{"$f":"IFERROR(IF(Table_SummaryPI[[#This Row],[kWhSavings]]=\"\",\"\",$AU$14*Table_SummaryPI[[#This Row],[kWhSavings]]),0)","v":""},{"$f":"IFERROR(IF(Table_SummaryPI[[#This Row],[kWhSavings]]=\"\",\"\",$AU$18*Table_SummaryPI[[#This Row],[kWhSavings]]),0)","v":""},{"$f":"IFERROR(IF(Table_SummaryPI[[#This Row],[kWhSavings]]=\"\",\"\",$AU$22*Table_SummaryPI[[#This Row],[kWhSavings]]),0)","v":""},{"$f":"IFERROR(IF(MeasureCalc(Table_PI[[#This Row],[Hide:\nFormula Name]],Table_SummaryPI[[#This Row],[Quantity]],Table_PI[[#This Row],[List 1]],Table_PI[[#This Row],[List 2]],Table_PI[[#This Row],[List 3]],Table_PI[[#This Row],[Size]],Table_PI[[#This Row],[Input 1]],Table_PI[[#This Row],[Input 2]],Table_PI[[#This Row],[Input 3]],Table_PI[[#This Row],[Input 4]],'Customer Information'!$AR$12,200,ROW())<>\"No Rebate\",MeasureCalc(Table_PI[[#This Row],[Hide:\nFormula Name]],Table_SummaryPI[[#This Row],[Quantity]],Table_PI[[#This Row],[List 1]],Table_PI[[#This Row],[List 2]],Table_PI[[#This Row],[List 3]],Table_PI[[#This Row],[Size]],Table_PI[[#This Row],[Input 1]],Table_PI[[#This Row],[Input 2]],Table_PI[[#This Row],[Input 3]],Table_PI[[#This Row],[Input 4]],'Customer Information'!$AR$12,200,ROW()),\"\"),\"\")","v":""},{"$f":"IFERROR(IF(MeasureCalc(Table_PI[[#This Row],[Hide:\nFormula Name]],Table_SummaryPI[[#This Row],[Quantity]],Table_PI[[#This Row],[List 1]],Table_PI[[#This Row],[List 2]],Table_PI[[#This Row],[List 3]],Table_PI[[#This Row],[Size]],Table_PI[[#This Row],[Input 1]],Table_PI[[#This Row],[Input 2]],Table_PI[[#This Row],[Input 3]],Table_PI[[#This Row],[Input 4]],'Customer Information'!$AR$12,201,ROW())<>\"No Rebate\",MeasureCalc(Table_PI[[#This Row],[Hide:\nFormula Name]],Table_SummaryPI[[#This Row],[Quantity]],Table_PI[[#This Row],[List 1]],Table_PI[[#This Row],[List 2]],Table_PI[[#This Row],[List 3]],Table_PI[[#This Row],[Size]],Table_PI[[#This Row],[Input 1]],Table_PI[[#This Row],[Input 2]],Table_PI[[#This Row],[Input 3]],Table_PI[[#This Row],[Input 4]],'Customer Information'!$AR$12,201,ROW()),\"\"),\"\")","v":""}]
[{"$f":"Table_PI[[#This Row],[Line No.]]","v":""},{"$f":"IF(Table_SummaryPI[[#This Row],[MeassureCategory]]<>\"\",CONCATENATE(Table_SummaryPI[[#This Row],[MeassureCategory]],  \" - \", Table_SummaryPI[[#This Row],[ProposedMeasureCategory]],  \" - \", TEXT(Table_SummaryPI[[#This Row],[Size]],\"#,##0.00\"),\" \",Table_SummaryPI[[#This Row],[SizeUnit]]),\"\")","v":""},{"$f":"SUBSTITUTE(Table_PI[[#This Row],[Measure]],\"     \",\"\",1)","v":""},{"$f":"IF(Table_PI[[#This Row],[List 1]]<>\"\",Table_PI[[#This Row],[List 1]],\"\")","v":""},{"$f":"IF(Table_PI[[#This Row],[List 2]]<>\"\",Table_PI[[#This Row],[List 2]],\"\")","v":""},{"$f":"IF(Table_PI[[#This Row],[List 3]]<>\"\",Table_PI[[#This Row],[List 3]],\"\")","v":""},{"$f":"IF(Table_PI[[#This Row],[Manufacturer]]=\"\",\"\",Table_PI[[#This Row],[Manufacturer]])","v":""},{"$f":"IF(Table_PI[[#This Row],[Model Number]]=\"\",\"\",Table_PI[[#This Row],[Model Number]])","v":""},{"$f":"IF(Table_PI[[#This Row],[Serial Number(s)]]=\"\",\"\",Table_PI[[#This Row],[Serial Number(s)]])","v":""},null,{"$f":"IF(Table_PI[[#This Row],[Size]]=\"\",\"\",Table_PI[[#This Row],[Size]])","v":""},null,{"$f":"IFERROR(IF(AND(MeasureCalc(Table_PI[[#This Row],[Hide:\nFormula Name]],Table_SummaryPI[[#This Row],[Quantity]],Table_PI[[#This Row],[List 1]],Table_PI[[#This Row],[List 2]],Table_PI[[#This Row],[List 3]],Table_PI[[#This Row],[Size]],Table_PI[[#This Row],[Input 1]],Table_PI[[#This Row],[Input 2]],Table_PI[[#This Row],[Input 3]],Table_PI[[#This Row],[Input 4]],'Customer Information'!$AR$12,100,ROW())<>0,MeasureCalc(Table_PI[[#This Row],[Hide:\nFormula Name]],Table_SummaryPI[[#This Row],[Quantity]],Table_PI[[#This Row],[List 1]],Table_PI[[#This Row],[List 2]],Table_PI[[#This Row],[List 3]],Table_PI[[#This Row],[Size]],Table_PI[[#This Row],[Input 1]],Table_PI[[#This Row],[Input 2]],Table_PI[[#This Row],[Input 3]],Table_PI[[#This Row],[Input 4]],'Customer Information'!$AR$12,100,ROW())<>\"No Rebate\"),MeasureCalc(Table_PI[[#This Row],[Hide:\nFormula Name]],Table_SummaryPI[[#This Row],[Quantity]],Table_PI[[#This Row],[List 1]],Table_PI[[#This Row],[List 2]],Table_PI[[#This Row],[List 3]],Table_PI[[#This Row],[Size]],Table_PI[[#This Row],[Input 1]],Table_PI[[#This Row],[Input 2]],Table_PI[[#This Row],[Input 3]],Table_PI[[#This Row],[Input 4]],'Customer Information'!$AR$12,100,ROW()),\"\"),\"\")","v":""},{"$f":"IF(Table_PI[[#This Row],[Input 1]]<>\"\",Table_PI[[#This Row],[Input 1]],\"\")","v":""},null,{"$f":"IFERROR(IF(AND(MeasureCalc(Table_PI[[#This Row],[Hide:\nFormula Name]],Table_SummaryPI[[#This Row],[Quantity]],Table_PI[[#This Row],[List 1]],Table_PI[[#This Row],[List 2]],Table_PI[[#This Row],[List 3]],Table_PI[[#This Row],[Size]],Table_PI[[#This Row],[Input 1]],Table_PI[[#This Row],[Input 2]],Table_PI[[#This Row],[Input 3]],Table_PI[[#This Row],[Input 4]],'Customer Information'!$AR$12,101,ROW())<>0,MeasureCalc(Table_PI[[#This Row],[Hide:\nFormula Name]],Table_SummaryPI[[#This Row],[Quantity]],Table_PI[[#This Row],[List 1]],Table_PI[[#This Row],[List 2]],Table_PI[[#This Row],[List 3]],Table_PI[[#This Row],[Size]],Table_PI[[#This Row],[Input 1]],Table_PI[[#This Row],[Input 2]],Table_PI[[#This Row],[Input 3]],Table_PI[[#This Row],[Input 4]],'Customer Information'!$AR$12,101,ROW())<>\"No Rebate\"),MeasureCalc(Table_PI[[#This Row],[Hide:\nFormula Name]],Table_SummaryPI[[#This Row],[Quantity]],Table_PI[[#This Row],[List 1]],Table_PI[[#This Row],[List 2]],Table_PI[[#This Row],[List 3]],Table_PI[[#This Row],[Size]],Table_PI[[#This Row],[Input 1]],Table_PI[[#This Row],[Input 2]],Table_PI[[#This Row],[Input 3]],Table_PI[[#This Row],[Input 4]],'Customer Information'!$AR$12,101,ROW()),\"\"),\"\")","v":""},{"$f":"IF(Table_PI[[#This Row],[Input 2]]<>\"\",Table_PI[[#This Row],[Input 2]],\"\")","v":""},null,{"$f":"IFERROR(IF(AND(MeasureCalc(Table_PI[[#This Row],[Hide:\nFormula Name]],Table_SummaryPI[[#This Row],[Quantity]],Table_PI[[#This Row],[List 1]],Table_PI[[#This Row],[List 2]],Table_PI[[#This Row],[List 3]],Table_PI[[#This Row],[Size]],Table_PI[[#This Row],[Input 1]],Table_PI[[#This Row],[Input 2]],Table_PI[[#This Row],[Input 3]],Table_PI[[#This Row],[Input 4]],'Customer Information'!$AR$12,102,ROW())<>0,MeasureCalc(Table_PI[[#This Row],[Hide:\nFormula Name]],Table_SummaryPI[[#This Row],[Quantity]],Table_PI[[#This Row],[List 1]],Table_PI[[#This Row],[List 2]],Table_PI[[#This Row],[List 3]],Table_PI[[#This Row],[Size]],Table_PI[[#This Row],[Input 1]],Table_PI[[#This Row],[Input 2]],Table_PI[[#This Row],[Input 3]],Table_PI[[#This Row],[Input 4]],'Customer Information'!$AR$12,102,ROW())<>\"No Rebate\"),MeasureCalc(Table_PI[[#This Row],[Hide:\nFormula Name]],Table_SummaryPI[[#This Row],[Quantity]],Table_PI[[#This Row],[List 1]],Table_PI[[#This Row],[List 2]],Table_PI[[#This Row],[List 3]],Table_PI[[#This Row],[Size]],Table_PI[[#This Row],[Input 1]],Table_PI[[#This Row],[Input 2]],Table_PI[[#This Row],[Input 3]],Table_PI[[#This Row],[Input 4]],'Customer Information'!$AR$12,102,ROW()),\"\"),\"\")","v":""},{"$f":"IF(Table_PI[[#This Row],[Input 3]]<>\"\",Table_PI[[#This Row],[Input 3]],\"\")","v":""},null,{"$f":"IFERROR(IF(AND(MeasureCalc(Table_PI[[#This Row],[Hide:\nFormula Name]],Table_SummaryPI[[#This Row],[Quantity]],Table_PI[[#This Row],[List 1]],Table_PI[[#This Row],[List 2]],Table_PI[[#This Row],[List 3]],Table_PI[[#This Row],[Size]],Table_PI[[#This Row],[Input 1]],Table_PI[[#This Row],[Input 2]],Table_PI[[#This Row],[Input 3]],Table_PI[[#This Row],[Input 4]],'Customer Information'!$AR$12,103,ROW())<>0,MeasureCalc(Table_PI[[#This Row],[Hide:\nFormula Name]],Table_SummaryPI[[#This Row],[Quantity]],Table_PI[[#This Row],[List 1]],Table_PI[[#This Row],[List 2]],Table_PI[[#This Row],[List 3]],Table_PI[[#This Row],[Size]],Table_PI[[#This Row],[Input 1]],Table_PI[[#This Row],[Input 2]],Table_PI[[#This Row],[Input 3]],Table_PI[[#This Row],[Input 4]],'Customer Information'!$AR$12,103,ROW())<>\"No Rebate\"),MeasureCalc(Table_PI[[#This Row],[Hide:\nFormula Name]],Table_SummaryPI[[#This Row],[Quantity]],Table_PI[[#This Row],[List 1]],Table_PI[[#This Row],[List 2]],Table_PI[[#This Row],[List 3]],Table_PI[[#This Row],[Size]],Table_PI[[#This Row],[Input 1]],Table_PI[[#This Row],[Input 2]],Table_PI[[#This Row],[Input 3]],Table_PI[[#This Row],[Input 4]],'Customer Information'!$AR$12,103,ROW()),\"\"),\"\")","v":""},{"$f":"IF(Table_PI[[#This Row],[Input 4]]<>\"\",Table_PI[[#This Row],[Input 4]],\"\")","v":""},{"$f":"IF(Table_PI[[#This Row],[Quantity]]=\"\",\"\",Table_PI[[#This Row],[Quantity]])","v":""},{"$f":"IF(Table_PI[[#This Row],[Notes]]=\"\",\"\",Table_PI[[#This Row],[Notes]])","v":""},{"$f":"IF(OR(Table_PI[[#This Row],[Hide:\nBaseline kWh]]=\"\",Table_PI[[#This Row],[Hide:\nBaseline kWh]]=0),\"\",Table_PI[[#This Row],[Hide:\nBaseline kWh]])","v":""},{"$f":"IF(OR(Table_PI[[#This Row],[Hide:\nBaseline kW]]=\"\",Table_PI[[#This Row],[Hide:\nBaseline kW]]=0),\"\",Table_PI[[#This Row],[Hide:\nBaseline kW]])","v":""},{"$f":"IF(OR(Table_PI[[#This Row],[Hide:\nProposed kWh]]=\"\",Table_PI[[#This Row],[Hide:\nProposed kWh]]=0),\"\",Table_PI[[#This Row],[Hide:\nProposed kWh]])","v":""},{"$f":"IF(OR(Table_PI[[#This Row],[Hide:\nProposed kW]]=\"\",Table_PI[[#This Row],[Hide:\nProposed kW]]=0),\"\",Table_PI[[#This Row],[Hide:\nProposed kW]])","v":""},{"$f":"IF(OR(Table_PI[[#This Row],[Rebate]]=\"\",Table_PI[[#This Row],[Rebate]]=0),\"\",Table_PI[[#This Row],[Rebate]])","v":""},{"$f":"IF(OR(Table_PI[[#This Row],[Hide:\nIncremental Cost]]=\"\",Table_PI[[#This Row],[Hide:\nIncremental Cost]]=0),\"\",Table_PI[[#This Row],[Hide:\nIncremental Cost]])","v":""},{"$f":"IFERROR(IF(Table_SummaryPI[[#This Row],[kWhSavings]]=\"\",\"\",ROUND(Table_SummaryPI[[#This Row],[kWhSavings]]/$AG$401*'Customer Information'!$BC$17,2)),0)","v":""},{"$f":"IF(OR(Table_PI[[#This Row],[Annual kWh]]=\"\",Table_PI[[#This Row],[Annual kWh]]=0),\"\",Table_PI[[#This Row],[Annual kWh]])","v":""},{"$f":"IF(OR(Table_PI[[#This Row],[Peak kW]]=\"\",Table_PI[[#This Row],[Peak kW]]=0),\"\",Table_PI[[#This Row],[Peak kW]])","v":""},{"$f":"IFERROR(IF(Table_SummaryPI[[#This Row],[kWhSavings]]=\"\",\"\",$AU$9*Table_SummaryPI[[#This Row],[kWhSavings]]),0)","v":""},{"$f":"IFERROR(IF(Table_SummaryPI[[#This Row],[kWhSavings]]=\"\",\"\",$AU$14*Table_SummaryPI[[#This Row],[kWhSavings]]),0)","v":""},{"$f":"IFERROR(IF(Table_SummaryPI[[#This Row],[kWhSavings]]=\"\",\"\",$AU$18*Table_SummaryPI[[#This Row],[kWhSavings]]),0)","v":""},{"$f":"IFERROR(IF(Table_SummaryPI[[#This Row],[kWhSavings]]=\"\",\"\",$AU$22*Table_SummaryPI[[#This Row],[kWhSavings]]),0)","v":""},{"$f":"IFERROR(IF(MeasureCalc(Table_PI[[#This Row],[Hide:\nFormula Name]],Table_SummaryPI[[#This Row],[Quantity]],Table_PI[[#This Row],[List 1]],Table_PI[[#This Row],[List 2]],Table_PI[[#This Row],[List 3]],Table_PI[[#This Row],[Size]],Table_PI[[#This Row],[Input 1]],Table_PI[[#This Row],[Input 2]],Table_PI[[#This Row],[Input 3]],Table_PI[[#This Row],[Input 4]],'Customer Information'!$AR$12,200,ROW())<>\"No Rebate\",MeasureCalc(Table_PI[[#This Row],[Hide:\nFormula Name]],Table_SummaryPI[[#This Row],[Quantity]],Table_PI[[#This Row],[List 1]],Table_PI[[#This Row],[List 2]],Table_PI[[#This Row],[List 3]],Table_PI[[#This Row],[Size]],Table_PI[[#This Row],[Input 1]],Table_PI[[#This Row],[Input 2]],Table_PI[[#This Row],[Input 3]],Table_PI[[#This Row],[Input 4]],'Customer Information'!$AR$12,200,ROW()),\"\"),\"\")","v":""},{"$f":"IFERROR(IF(MeasureCalc(Table_PI[[#This Row],[Hide:\nFormula Name]],Table_SummaryPI[[#This Row],[Quantity]],Table_PI[[#This Row],[List 1]],Table_PI[[#This Row],[List 2]],Table_PI[[#This Row],[List 3]],Table_PI[[#This Row],[Size]],Table_PI[[#This Row],[Input 1]],Table_PI[[#This Row],[Input 2]],Table_PI[[#This Row],[Input 3]],Table_PI[[#This Row],[Input 4]],'Customer Information'!$AR$12,201,ROW())<>\"No Rebate\",MeasureCalc(Table_PI[[#This Row],[Hide:\nFormula Name]],Table_SummaryPI[[#This Row],[Quantity]],Table_PI[[#This Row],[List 1]],Table_PI[[#This Row],[List 2]],Table_PI[[#This Row],[List 3]],Table_PI[[#This Row],[Size]],Table_PI[[#This Row],[Input 1]],Table_PI[[#This Row],[Input 2]],Table_PI[[#This Row],[Input 3]],Table_PI[[#This Row],[Input 4]],'Customer Information'!$AR$12,201,ROW()),\"\"),\"\")","v":""}]
[{"$f":"Table_PI[[#This Row],[Line No.]]","v":""},{"$f":"IF(Table_SummaryPI[[#This Row],[MeassureCategory]]<>\"\",CONCATENATE(Table_SummaryPI[[#This Row],[MeassureCategory]],  \" - \", Table_SummaryPI[[#This Row],[ProposedMeasureCategory]],  \" - \", TEXT(Table_SummaryPI[[#This Row],[Size]],\"#,##0.00\"),\" \",Table_SummaryPI[[#This Row],[SizeUnit]]),\"\")","v":""},{"$f":"SUBSTITUTE(Table_PI[[#This Row],[Measure]],\"     \",\"\",1)","v":""},{"$f":"IF(Table_PI[[#This Row],[List 1]]<>\"\",Table_PI[[#This Row],[List 1]],\"\")","v":""},{"$f":"IF(Table_PI[[#This Row],[List 2]]<>\"\",Table_PI[[#This Row],[List 2]],\"\")","v":""},{"$f":"IF(Table_PI[[#This Row],[List 3]]<>\"\",Table_PI[[#This Row],[List 3]],\"\")","v":""},{"$f":"IF(Table_PI[[#This Row],[Manufacturer]]=\"\",\"\",Table_PI[[#This Row],[Manufacturer]])","v":""},{"$f":"IF(Table_PI[[#This Row],[Model Number]]=\"\",\"\",Table_PI[[#This Row],[Model Number]])","v":""},{"$f":"IF(Table_PI[[#This Row],[Serial Number(s)]]=\"\",\"\",Table_PI[[#This Row],[Serial Number(s)]])","v":""},null,{"$f":"IF(Table_PI[[#This Row],[Size]]=\"\",\"\",Table_PI[[#This Row],[Size]])","v":""},null,{"$f":"IFERROR(IF(AND(MeasureCalc(Table_PI[[#This Row],[Hide:\nFormula Name]],Table_SummaryPI[[#This Row],[Quantity]],Table_PI[[#This Row],[List 1]],Table_PI[[#This Row],[List 2]],Table_PI[[#This Row],[List 3]],Table_PI[[#This Row],[Size]],Table_PI[[#This Row],[Input 1]],Table_PI[[#This Row],[Input 2]],Table_PI[[#This Row],[Input 3]],Table_PI[[#This Row],[Input 4]],'Customer Information'!$AR$12,100,ROW())<>0,MeasureCalc(Table_PI[[#This Row],[Hide:\nFormula Name]],Table_SummaryPI[[#This Row],[Quantity]],Table_PI[[#This Row],[List 1]],Table_PI[[#This Row],[List 2]],Table_PI[[#This Row],[List 3]],Table_PI[[#This Row],[Size]],Table_PI[[#This Row],[Input 1]],Table_PI[[#This Row],[Input 2]],Table_PI[[#This Row],[Input 3]],Table_PI[[#This Row],[Input 4]],'Customer Information'!$AR$12,100,ROW())<>\"No Rebate\"),MeasureCalc(Table_PI[[#This Row],[Hide:\nFormula Name]],Table_SummaryPI[[#This Row],[Quantity]],Table_PI[[#This Row],[List 1]],Table_PI[[#This Row],[List 2]],Table_PI[[#This Row],[List 3]],Table_PI[[#This Row],[Size]],Table_PI[[#This Row],[Input 1]],Table_PI[[#This Row],[Input 2]],Table_PI[[#This Row],[Input 3]],Table_PI[[#This Row],[Input 4]],'Customer Information'!$AR$12,100,ROW()),\"\"),\"\")","v":""},{"$f":"IF(Table_PI[[#This Row],[Input 1]]<>\"\",Table_PI[[#This Row],[Input 1]],\"\")","v":""},null,{"$f":"IFERROR(IF(AND(MeasureCalc(Table_PI[[#This Row],[Hide:\nFormula Name]],Table_SummaryPI[[#This Row],[Quantity]],Table_PI[[#This Row],[List 1]],Table_PI[[#This Row],[List 2]],Table_PI[[#This Row],[List 3]],Table_PI[[#This Row],[Size]],Table_PI[[#This Row],[Input 1]],Table_PI[[#This Row],[Input 2]],Table_PI[[#This Row],[Input 3]],Table_PI[[#This Row],[Input 4]],'Customer Information'!$AR$12,101,ROW())<>0,MeasureCalc(Table_PI[[#This Row],[Hide:\nFormula Name]],Table_SummaryPI[[#This Row],[Quantity]],Table_PI[[#This Row],[List 1]],Table_PI[[#This Row],[List 2]],Table_PI[[#This Row],[List 3]],Table_PI[[#This Row],[Size]],Table_PI[[#This Row],[Input 1]],Table_PI[[#This Row],[Input 2]],Table_PI[[#This Row],[Input 3]],Table_PI[[#This Row],[Input 4]],'Customer Information'!$AR$12,101,ROW())<>\"No Rebate\"),MeasureCalc(Table_PI[[#This Row],[Hide:\nFormula Name]],Table_SummaryPI[[#This Row],[Quantity]],Table_PI[[#This Row],[List 1]],Table_PI[[#This Row],[List 2]],Table_PI[[#This Row],[List 3]],Table_PI[[#This Row],[Size]],Table_PI[[#This Row],[Input 1]],Table_PI[[#This Row],[Input 2]],Table_PI[[#This Row],[Input 3]],Table_PI[[#This Row],[Input 4]],'Customer Information'!$AR$12,101,ROW()),\"\"),\"\")","v":""},{"$f":"IF(Table_PI[[#This Row],[Input 2]]<>\"\",Table_PI[[#This Row],[Input 2]],\"\")","v":""},null,{"$f":"IFERROR(IF(AND(MeasureCalc(Table_PI[[#This Row],[Hide:\nFormula Name]],Table_SummaryPI[[#This Row],[Quantity]],Table_PI[[#This Row],[List 1]],Table_PI[[#This Row],[List 2]],Table_PI[[#This Row],[List 3]],Table_PI[[#This Row],[Size]],Table_PI[[#This Row],[Input 1]],Table_PI[[#This Row],[Input 2]],Table_PI[[#This Row],[Input 3]],Table_PI[[#This Row],[Input 4]],'Customer Information'!$AR$12,102,ROW())<>0,MeasureCalc(Table_PI[[#This Row],[Hide:\nFormula Name]],Table_SummaryPI[[#This Row],[Quantity]],Table_PI[[#This Row],[List 1]],Table_PI[[#This Row],[List 2]],Table_PI[[#This Row],[List 3]],Table_PI[[#This Row],[Size]],Table_PI[[#This Row],[Input 1]],Table_PI[[#This Row],[Input 2]],Table_PI[[#This Row],[Input 3]],Table_PI[[#This Row],[Input 4]],'Customer Information'!$AR$12,102,ROW())<>\"No Rebate\"),MeasureCalc(Table_PI[[#This Row],[Hide:\nFormula Name]],Table_SummaryPI[[#This Row],[Quantity]],Table_PI[[#This Row],[List 1]],Table_PI[[#This Row],[List 2]],Table_PI[[#This Row],[List 3]],Table_PI[[#This Row],[Size]],Table_PI[[#This Row],[Input 1]],Table_PI[[#This Row],[Input 2]],Table_PI[[#This Row],[Input 3]],Table_PI[[#This Row],[Input 4]],'Customer Information'!$AR$12,102,ROW()),\"\"),\"\")","v":""},{"$f":"IF(Table_PI[[#This Row],[Input 3]]<>\"\",Table_PI[[#This Row],[Input 3]],\"\")","v":""},null,{"$f":"IFERROR(IF(AND(MeasureCalc(Table_PI[[#This Row],[Hide:\nFormula Name]],Table_SummaryPI[[#This Row],[Quantity]],Table_PI[[#This Row],[List 1]],Table_PI[[#This Row],[List 2]],Table_PI[[#This Row],[List 3]],Table_PI[[#This Row],[Size]],Table_PI[[#This Row],[Input 1]],Table_PI[[#This Row],[Input 2]],Table_PI[[#This Row],[Input 3]],Table_PI[[#This Row],[Input 4]],'Customer Information'!$AR$12,103,ROW())<>0,MeasureCalc(Table_PI[[#This Row],[Hide:\nFormula Name]],Table_SummaryPI[[#This Row],[Quantity]],Table_PI[[#This Row],[List 1]],Table_PI[[#This Row],[List 2]],Table_PI[[#This Row],[List 3]],Table_PI[[#This Row],[Size]],Table_PI[[#This Row],[Input 1]],Table_PI[[#This Row],[Input 2]],Table_PI[[#This Row],[Input 3]],Table_PI[[#This Row],[Input 4]],'Customer Information'!$AR$12,103,ROW())<>\"No Rebate\"),MeasureCalc(Table_PI[[#This Row],[Hide:\nFormula Name]],Table_SummaryPI[[#This Row],[Quantity]],Table_PI[[#This Row],[List 1]],Table_PI[[#This Row],[List 2]],Table_PI[[#This Row],[List 3]],Table_PI[[#This Row],[Size]],Table_PI[[#This Row],[Input 1]],Table_PI[[#This Row],[Input 2]],Table_PI[[#This Row],[Input 3]],Table_PI[[#This Row],[Input 4]],'Customer Information'!$AR$12,103,ROW()),\"\"),\"\")","v":""},{"$f":"IF(Table_PI[[#This Row],[Input 4]]<>\"\",Table_PI[[#This Row],[Input 4]],\"\")","v":""},{"$f":"IF(Table_PI[[#This Row],[Quantity]]=\"\",\"\",Table_PI[[#This Row],[Quantity]])","v":""},{"$f":"IF(Table_PI[[#This Row],[Notes]]=\"\",\"\",Table_PI[[#This Row],[Notes]])","v":""},{"$f":"IF(OR(Table_PI[[#This Row],[Hide:\nBaseline kWh]]=\"\",Table_PI[[#This Row],[Hide:\nBaseline kWh]]=0),\"\",Table_PI[[#This Row],[Hide:\nBaseline kWh]])","v":""},{"$f":"IF(OR(Table_PI[[#This Row],[Hide:\nBaseline kW]]=\"\",Table_PI[[#This Row],[Hide:\nBaseline kW]]=0),\"\",Table_PI[[#This Row],[Hide:\nBaseline kW]])","v":""},{"$f":"IF(OR(Table_PI[[#This Row],[Hide:\nProposed kWh]]=\"\",Table_PI[[#This Row],[Hide:\nProposed kWh]]=0),\"\",Table_PI[[#This Row],[Hide:\nProposed kWh]])","v":""},{"$f":"IF(OR(Table_PI[[#This Row],[Hide:\nProposed kW]]=\"\",Table_PI[[#This Row],[Hide:\nProposed kW]]=0),\"\",Table_PI[[#This Row],[Hide:\nProposed kW]])","v":""},{"$f":"IF(OR(Table_PI[[#This Row],[Rebate]]=\"\",Table_PI[[#This Row],[Rebate]]=0),\"\",Table_PI[[#This Row],[Rebate]])","v":""},{"$f":"IF(OR(Table_PI[[#This Row],[Hide:\nIncremental Cost]]=\"\",Table_PI[[#This Row],[Hide:\nIncremental Cost]]=0),\"\",Table_PI[[#This Row],[Hide:\nIncremental Cost]])","v":""},{"$f":"IFERROR(IF(Table_SummaryPI[[#This Row],[kWhSavings]]=\"\",\"\",ROUND(Table_SummaryPI[[#This Row],[kWhSavings]]/$AG$401*'Customer Information'!$BC$17,2)),0)","v":""},{"$f":"IF(OR(Table_PI[[#This Row],[Annual kWh]]=\"\",Table_PI[[#This Row],[Annual kWh]]=0),\"\",Table_PI[[#This Row],[Annual kWh]])","v":""},{"$f":"IF(OR(Table_PI[[#This Row],[Peak kW]]=\"\",Table_PI[[#This Row],[Peak kW]]=0),\"\",Table_PI[[#This Row],[Peak kW]])","v":""},{"$f":"IFERROR(IF(Table_SummaryPI[[#This Row],[kWhSavings]]=\"\",\"\",$AU$9*Table_SummaryPI[[#This Row],[kWhSavings]]),0)","v":""},{"$f":"IFERROR(IF(Table_SummaryPI[[#This Row],[kWhSavings]]=\"\",\"\",$AU$14*Table_SummaryPI[[#This Row],[kWhSavings]]),0)","v":""},{"$f":"IFERROR(IF(Table_SummaryPI[[#This Row],[kWhSavings]]=\"\",\"\",$AU$18*Table_SummaryPI[[#This Row],[kWhSavings]]),0)","v":""},{"$f":"IFERROR(IF(Table_SummaryPI[[#This Row],[kWhSavings]]=\"\",\"\",$AU$22*Table_SummaryPI[[#This Row],[kWhSavings]]),0)","v":""},{"$f":"IFERROR(IF(MeasureCalc(Table_PI[[#This Row],[Hide:\nFormula Name]],Table_SummaryPI[[#This Row],[Quantity]],Table_PI[[#This Row],[List 1]],Table_PI[[#This Row],[List 2]],Table_PI[[#This Row],[List 3]],Table_PI[[#This Row],[Size]],Table_PI[[#This Row],[Input 1]],Table_PI[[#This Row],[Input 2]],Table_PI[[#This Row],[Input 3]],Table_PI[[#This Row],[Input 4]],'Customer Information'!$AR$12,200,ROW())<>\"No Rebate\",MeasureCalc(Table_PI[[#This Row],[Hide:\nFormula Name]],Table_SummaryPI[[#This Row],[Quantity]],Table_PI[[#This Row],[List 1]],Table_PI[[#This Row],[List 2]],Table_PI[[#This Row],[List 3]],Table_PI[[#This Row],[Size]],Table_PI[[#This Row],[Input 1]],Table_PI[[#This Row],[Input 2]],Table_PI[[#This Row],[Input 3]],Table_PI[[#This Row],[Input 4]],'Customer Information'!$AR$12,200,ROW()),\"\"),\"\")","v":""},{"$f":"IFERROR(IF(MeasureCalc(Table_PI[[#This Row],[Hide:\nFormula Name]],Table_SummaryPI[[#This Row],[Quantity]],Table_PI[[#This Row],[List 1]],Table_PI[[#This Row],[List 2]],Table_PI[[#This Row],[List 3]],Table_PI[[#This Row],[Size]],Table_PI[[#This Row],[Input 1]],Table_PI[[#This Row],[Input 2]],Table_PI[[#This Row],[Input 3]],Table_PI[[#This Row],[Input 4]],'Customer Information'!$AR$12,201,ROW())<>\"No Rebate\",MeasureCalc(Table_PI[[#This Row],[Hide:\nFormula Name]],Table_SummaryPI[[#This Row],[Quantity]],Table_PI[[#This Row],[List 1]],Table_PI[[#This Row],[List 2]],Table_PI[[#This Row],[List 3]],Table_PI[[#This Row],[Size]],Table_PI[[#This Row],[Input 1]],Table_PI[[#This Row],[Input 2]],Table_PI[[#This Row],[Input 3]],Table_PI[[#This Row],[Input 4]],'Customer Information'!$AR$12,201,ROW()),\"\"),\"\")","v":""}]
[{"$f":"Table_PI[[#This Row],[Line No.]]","v":""},{"$f":"IF(Table_SummaryPI[[#This Row],[MeassureCategory]]<>\"\",CONCATENATE(Table_SummaryPI[[#This Row],[MeassureCategory]],  \" - \", Table_SummaryPI[[#This Row],[ProposedMeasureCategory]],  \" - \", TEXT(Table_SummaryPI[[#This Row],[Size]],\"#,##0.00\"),\" \",Table_SummaryPI[[#This Row],[SizeUnit]]),\"\")","v":""},{"$f":"SUBSTITUTE(Table_PI[[#This Row],[Measure]],\"     \",\"\",1)","v":""},{"$f":"IF(Table_PI[[#This Row],[List 1]]<>\"\",Table_PI[[#This Row],[List 1]],\"\")","v":""},{"$f":"IF(Table_PI[[#This Row],[List 2]]<>\"\",Table_PI[[#This Row],[List 2]],\"\")","v":""},{"$f":"IF(Table_PI[[#This Row],[List 3]]<>\"\",Table_PI[[#This Row],[List 3]],\"\")","v":""},{"$f":"IF(Table_PI[[#This Row],[Manufacturer]]=\"\",\"\",Table_PI[[#This Row],[Manufacturer]])","v":""},{"$f":"IF(Table_PI[[#This Row],[Model Number]]=\"\",\"\",Table_PI[[#This Row],[Model Number]])","v":""},{"$f":"IF(Table_PI[[#This Row],[Serial Number(s)]]=\"\",\"\",Table_PI[[#This Row],[Serial Number(s)]])","v":""},null,{"$f":"IF(Table_PI[[#This Row],[Size]]=\"\",\"\",Table_PI[[#This Row],[Size]])","v":""},null,{"$f":"IFERROR(IF(AND(MeasureCalc(Table_PI[[#This Row],[Hide:\nFormula Name]],Table_SummaryPI[[#This Row],[Quantity]],Table_PI[[#This Row],[List 1]],Table_PI[[#This Row],[List 2]],Table_PI[[#This Row],[List 3]],Table_PI[[#This Row],[Size]],Table_PI[[#This Row],[Input 1]],Table_PI[[#This Row],[Input 2]],Table_PI[[#This Row],[Input 3]],Table_PI[[#This Row],[Input 4]],'Customer Information'!$AR$12,100,ROW())<>0,MeasureCalc(Table_PI[[#This Row],[Hide:\nFormula Name]],Table_SummaryPI[[#This Row],[Quantity]],Table_PI[[#This Row],[List 1]],Table_PI[[#This Row],[List 2]],Table_PI[[#This Row],[List 3]],Table_PI[[#This Row],[Size]],Table_PI[[#This Row],[Input 1]],Table_PI[[#This Row],[Input 2]],Table_PI[[#This Row],[Input 3]],Table_PI[[#This Row],[Input 4]],'Customer Information'!$AR$12,100,ROW())<>\"No Rebate\"),MeasureCalc(Table_PI[[#This Row],[Hide:\nFormula Name]],Table_SummaryPI[[#This Row],[Quantity]],Table_PI[[#This Row],[List 1]],Table_PI[[#This Row],[List 2]],Table_PI[[#This Row],[List 3]],Table_PI[[#This Row],[Size]],Table_PI[[#This Row],[Input 1]],Table_PI[[#This Row],[Input 2]],Table_PI[[#This Row],[Input 3]],Table_PI[[#This Row],[Input 4]],'Customer Information'!$AR$12,100,ROW()),\"\"),\"\")","v":""},{"$f":"IF(Table_PI[[#This Row],[Input 1]]<>\"\",Table_PI[[#This Row],[Input 1]],\"\")","v":""},null,{"$f":"IFERROR(IF(AND(MeasureCalc(Table_PI[[#This Row],[Hide:\nFormula Name]],Table_SummaryPI[[#This Row],[Quantity]],Table_PI[[#This Row],[List 1]],Table_PI[[#This Row],[List 2]],Table_PI[[#This Row],[List 3]],Table_PI[[#This Row],[Size]],Table_PI[[#This Row],[Input 1]],Table_PI[[#This Row],[Input 2]],Table_PI[[#This Row],[Input 3]],Table_PI[[#This Row],[Input 4]],'Customer Information'!$AR$12,101,ROW())<>0,MeasureCalc(Table_PI[[#This Row],[Hide:\nFormula Name]],Table_SummaryPI[[#This Row],[Quantity]],Table_PI[[#This Row],[List 1]],Table_PI[[#This Row],[List 2]],Table_PI[[#This Row],[List 3]],Table_PI[[#This Row],[Size]],Table_PI[[#This Row],[Input 1]],Table_PI[[#This Row],[Input 2]],Table_PI[[#This Row],[Input 3]],Table_PI[[#This Row],[Input 4]],'Customer Information'!$AR$12,101,ROW())<>\"No Rebate\"),MeasureCalc(Table_PI[[#This Row],[Hide:\nFormula Name]],Table_SummaryPI[[#This Row],[Quantity]],Table_PI[[#This Row],[List 1]],Table_PI[[#This Row],[List 2]],Table_PI[[#This Row],[List 3]],Table_PI[[#This Row],[Size]],Table_PI[[#This Row],[Input 1]],Table_PI[[#This Row],[Input 2]],Table_PI[[#This Row],[Input 3]],Table_PI[[#This Row],[Input 4]],'Customer Information'!$AR$12,101,ROW()),\"\"),\"\")","v":""},{"$f":"IF(Table_PI[[#This Row],[Input 2]]<>\"\",Table_PI[[#This Row],[Input 2]],\"\")","v":""},null,{"$f":"IFERROR(IF(AND(MeasureCalc(Table_PI[[#This Row],[Hide:\nFormula Name]],Table_SummaryPI[[#This Row],[Quantity]],Table_PI[[#This Row],[List 1]],Table_PI[[#This Row],[List 2]],Table_PI[[#This Row],[List 3]],Table_PI[[#This Row],[Size]],Table_PI[[#This Row],[Input 1]],Table_PI[[#This Row],[Input 2]],Table_PI[[#This Row],[Input 3]],Table_PI[[#This Row],[Input 4]],'Customer Information'!$AR$12,102,ROW())<>0,MeasureCalc(Table_PI[[#This Row],[Hide:\nFormula Name]],Table_SummaryPI[[#This Row],[Quantity]],Table_PI[[#This Row],[List 1]],Table_PI[[#This Row],[List 2]],Table_PI[[#This Row],[List 3]],Table_PI[[#This Row],[Size]],Table_PI[[#This Row],[Input 1]],Table_PI[[#This Row],[Input 2]],Table_PI[[#This Row],[Input 3]],Table_PI[[#This Row],[Input 4]],'Customer Information'!$AR$12,102,ROW())<>\"No Rebate\"),MeasureCalc(Table_PI[[#This Row],[Hide:\nFormula Name]],Table_SummaryPI[[#This Row],[Quantity]],Table_PI[[#This Row],[List 1]],Table_PI[[#This Row],[List 2]],Table_PI[[#This Row],[List 3]],Table_PI[[#This Row],[Size]],Table_PI[[#This Row],[Input 1]],Table_PI[[#This Row],[Input 2]],Table_PI[[#This Row],[Input 3]],Table_PI[[#This Row],[Input 4]],'Customer Information'!$AR$12,102,ROW()),\"\"),\"\")","v":""},{"$f":"IF(Table_PI[[#This Row],[Input 3]]<>\"\",Table_PI[[#This Row],[Input 3]],\"\")","v":""},null,{"$f":"IFERROR(IF(AND(MeasureCalc(Table_PI[[#This Row],[Hide:\nFormula Name]],Table_SummaryPI[[#This Row],[Quantity]],Table_PI[[#This Row],[List 1]],Table_PI[[#This Row],[List 2]],Table_PI[[#This Row],[List 3]],Table_PI[[#This Row],[Size]],Table_PI[[#This Row],[Input 1]],Table_PI[[#This Row],[Input 2]],Table_PI[[#This Row],[Input 3]],Table_PI[[#This Row],[Input 4]],'Customer Information'!$AR$12,103,ROW())<>0,MeasureCalc(Table_PI[[#This Row],[Hide:\nFormula Name]],Table_SummaryPI[[#This Row],[Quantity]],Table_PI[[#This Row],[List 1]],Table_PI[[#This Row],[List 2]],Table_PI[[#This Row],[List 3]],Table_PI[[#This Row],[Size]],Table_PI[[#This Row],[Input 1]],Table_PI[[#This Row],[Input 2]],Table_PI[[#This Row],[Input 3]],Table_PI[[#This Row],[Input 4]],'Customer Information'!$AR$12,103,ROW())<>\"No Rebate\"),MeasureCalc(Table_PI[[#This Row],[Hide:\nFormula Name]],Table_SummaryPI[[#This Row],[Quantity]],Table_PI[[#This Row],[List 1]],Table_PI[[#This Row],[List 2]],Table_PI[[#This Row],[List 3]],Table_PI[[#This Row],[Size]],Table_PI[[#This Row],[Input 1]],Table_PI[[#This Row],[Input 2]],Table_PI[[#This Row],[Input 3]],Table_PI[[#This Row],[Input 4]],'Customer Information'!$AR$12,103,ROW()),\"\"),\"\")","v":""},{"$f":"IF(Table_PI[[#This Row],[Input 4]]<>\"\",Table_PI[[#This Row],[Input 4]],\"\")","v":""},{"$f":"IF(Table_PI[[#This Row],[Quantity]]=\"\",\"\",Table_PI[[#This Row],[Quantity]])","v":""},{"$f":"IF(Table_PI[[#This Row],[Notes]]=\"\",\"\",Table_PI[[#This Row],[Notes]])","v":""},{"$f":"IF(OR(Table_PI[[#This Row],[Hide:\nBaseline kWh]]=\"\",Table_PI[[#This Row],[Hide:\nBaseline kWh]]=0),\"\",Table_PI[[#This Row],[Hide:\nBaseline kWh]])","v":""},{"$f":"IF(OR(Table_PI[[#This Row],[Hide:\nBaseline kW]]=\"\",Table_PI[[#This Row],[Hide:\nBaseline kW]]=0),\"\",Table_PI[[#This Row],[Hide:\nBaseline kW]])","v":""},{"$f":"IF(OR(Table_PI[[#This Row],[Hide:\nProposed kWh]]=\"\",Table_PI[[#This Row],[Hide:\nProposed kWh]]=0),\"\",Table_PI[[#This Row],[Hide:\nProposed kWh]])","v":""},{"$f":"IF(OR(Table_PI[[#This Row],[Hide:\nProposed kW]]=\"\",Table_PI[[#This Row],[Hide:\nProposed kW]]=0),\"\",Table_PI[[#This Row],[Hide:\nProposed kW]])","v":""},{"$f":"IF(OR(Table_PI[[#This Row],[Rebate]]=\"\",Table_PI[[#This Row],[Rebate]]=0),\"\",Table_PI[[#This Row],[Rebate]])","v":""},{"$f":"IF(OR(Table_PI[[#This Row],[Hide:\nIncremental Cost]]=\"\",Table_PI[[#This Row],[Hide:\nIncremental Cost]]=0),\"\",Table_PI[[#This Row],[Hide:\nIncremental Cost]])","v":""},{"$f":"IFERROR(IF(Table_SummaryPI[[#This Row],[kWhSavings]]=\"\",\"\",ROUND(Table_SummaryPI[[#This Row],[kWhSavings]]/$AG$401*'Customer Information'!$BC$17,2)),0)","v":""},{"$f":"IF(OR(Table_PI[[#This Row],[Annual kWh]]=\"\",Table_PI[[#This Row],[Annual kWh]]=0),\"\",Table_PI[[#This Row],[Annual kWh]])","v":""},{"$f":"IF(OR(Table_PI[[#This Row],[Peak kW]]=\"\",Table_PI[[#This Row],[Peak kW]]=0),\"\",Table_PI[[#This Row],[Peak kW]])","v":""},{"$f":"IFERROR(IF(Table_SummaryPI[[#This Row],[kWhSavings]]=\"\",\"\",$AU$9*Table_SummaryPI[[#This Row],[kWhSavings]]),0)","v":""},{"$f":"IFERROR(IF(Table_SummaryPI[[#This Row],[kWhSavings]]=\"\",\"\",$AU$14*Table_SummaryPI[[#This Row],[kWhSavings]]),0)","v":""},{"$f":"IFERROR(IF(Table_SummaryPI[[#This Row],[kWhSavings]]=\"\",\"\",$AU$18*Table_SummaryPI[[#This Row],[kWhSavings]]),0)","v":""},{"$f":"IFERROR(IF(Table_SummaryPI[[#This Row],[kWhSavings]]=\"\",\"\",$AU$22*Table_SummaryPI[[#This Row],[kWhSavings]]),0)","v":""},{"$f":"IFERROR(IF(MeasureCalc(Table_PI[[#This Row],[Hide:\nFormula Name]],Table_SummaryPI[[#This Row],[Quantity]],Table_PI[[#This Row],[List 1]],Table_PI[[#This Row],[List 2]],Table_PI[[#This Row],[List 3]],Table_PI[[#This Row],[Size]],Table_PI[[#This Row],[Input 1]],Table_PI[[#This Row],[Input 2]],Table_PI[[#This Row],[Input 3]],Table_PI[[#This Row],[Input 4]],'Customer Information'!$AR$12,200,ROW())<>\"No Rebate\",MeasureCalc(Table_PI[[#This Row],[Hide:\nFormula Name]],Table_SummaryPI[[#This Row],[Quantity]],Table_PI[[#This Row],[List 1]],Table_PI[[#This Row],[List 2]],Table_PI[[#This Row],[List 3]],Table_PI[[#This Row],[Size]],Table_PI[[#This Row],[Input 1]],Table_PI[[#This Row],[Input 2]],Table_PI[[#This Row],[Input 3]],Table_PI[[#This Row],[Input 4]],'Customer Information'!$AR$12,200,ROW()),\"\"),\"\")","v":""},{"$f":"IFERROR(IF(MeasureCalc(Table_PI[[#This Row],[Hide:\nFormula Name]],Table_SummaryPI[[#This Row],[Quantity]],Table_PI[[#This Row],[List 1]],Table_PI[[#This Row],[List 2]],Table_PI[[#This Row],[List 3]],Table_PI[[#This Row],[Size]],Table_PI[[#This Row],[Input 1]],Table_PI[[#This Row],[Input 2]],Table_PI[[#This Row],[Input 3]],Table_PI[[#This Row],[Input 4]],'Customer Information'!$AR$12,201,ROW())<>\"No Rebate\",MeasureCalc(Table_PI[[#This Row],[Hide:\nFormula Name]],Table_SummaryPI[[#This Row],[Quantity]],Table_PI[[#This Row],[List 1]],Table_PI[[#This Row],[List 2]],Table_PI[[#This Row],[List 3]],Table_PI[[#This Row],[Size]],Table_PI[[#This Row],[Input 1]],Table_PI[[#This Row],[Input 2]],Table_PI[[#This Row],[Input 3]],Table_PI[[#This Row],[Input 4]],'Customer Information'!$AR$12,201,ROW()),\"\"),\"\")","v":""}]
[{"$f":"Table_PI[[#This Row],[Line No.]]","v":""},{"$f":"IF(Table_SummaryPI[[#This Row],[MeassureCategory]]<>\"\",CONCATENATE(Table_SummaryPI[[#This Row],[MeassureCategory]],  \" - \", Table_SummaryPI[[#This Row],[ProposedMeasureCategory]],  \" - \", TEXT(Table_SummaryPI[[#This Row],[Size]],\"#,##0.00\"),\" \",Table_SummaryPI[[#This Row],[SizeUnit]]),\"\")","v":""},{"$f":"SUBSTITUTE(Table_PI[[#This Row],[Measure]],\"     \",\"\",1)","v":""},{"$f":"IF(Table_PI[[#This Row],[List 1]]<>\"\",Table_PI[[#This Row],[List 1]],\"\")","v":""},{"$f":"IF(Table_PI[[#This Row],[List 2]]<>\"\",Table_PI[[#This Row],[List 2]],\"\")","v":""},{"$f":"IF(Table_PI[[#This Row],[List 3]]<>\"\",Table_PI[[#This Row],[List 3]],\"\")","v":""},{"$f":"IF(Table_PI[[#This Row],[Manufacturer]]=\"\",\"\",Table_PI[[#This Row],[Manufacturer]])","v":""},{"$f":"IF(Table_PI[[#This Row],[Model Number]]=\"\",\"\",Table_PI[[#This Row],[Model Number]])","v":""},{"$f":"IF(Table_PI[[#This Row],[Serial Number(s)]]=\"\",\"\",Table_PI[[#This Row],[Serial Number(s)]])","v":""},null,{"$f":"IF(Table_PI[[#This Row],[Size]]=\"\",\"\",Table_PI[[#This Row],[Size]])","v":""},null,{"$f":"IFERROR(IF(AND(MeasureCalc(Table_PI[[#This Row],[Hide:\nFormula Name]],Table_SummaryPI[[#This Row],[Quantity]],Table_PI[[#This Row],[List 1]],Table_PI[[#This Row],[List 2]],Table_PI[[#This Row],[List 3]],Table_PI[[#This Row],[Size]],Table_PI[[#This Row],[Input 1]],Table_PI[[#This Row],[Input 2]],Table_PI[[#This Row],[Input 3]],Table_PI[[#This Row],[Input 4]],'Customer Information'!$AR$12,100,ROW())<>0,MeasureCalc(Table_PI[[#This Row],[Hide:\nFormula Name]],Table_SummaryPI[[#This Row],[Quantity]],Table_PI[[#This Row],[List 1]],Table_PI[[#This Row],[List 2]],Table_PI[[#This Row],[List 3]],Table_PI[[#This Row],[Size]],Table_PI[[#This Row],[Input 1]],Table_PI[[#This Row],[Input 2]],Table_PI[[#This Row],[Input 3]],Table_PI[[#This Row],[Input 4]],'Customer Information'!$AR$12,100,ROW())<>\"No Rebate\"),MeasureCalc(Table_PI[[#This Row],[Hide:\nFormula Name]],Table_SummaryPI[[#This Row],[Quantity]],Table_PI[[#This Row],[List 1]],Table_PI[[#This Row],[List 2]],Table_PI[[#This Row],[List 3]],Table_PI[[#This Row],[Size]],Table_PI[[#This Row],[Input 1]],Table_PI[[#This Row],[Input 2]],Table_PI[[#This Row],[Input 3]],Table_PI[[#This Row],[Input 4]],'Customer Information'!$AR$12,100,ROW()),\"\"),\"\")","v":""},{"$f":"IF(Table_PI[[#This Row],[Input 1]]<>\"\",Table_PI[[#This Row],[Input 1]],\"\")","v":""},null,{"$f":"IFERROR(IF(AND(MeasureCalc(Table_PI[[#This Row],[Hide:\nFormula Name]],Table_SummaryPI[[#This Row],[Quantity]],Table_PI[[#This Row],[List 1]],Table_PI[[#This Row],[List 2]],Table_PI[[#This Row],[List 3]],Table_PI[[#This Row],[Size]],Table_PI[[#This Row],[Input 1]],Table_PI[[#This Row],[Input 2]],Table_PI[[#This Row],[Input 3]],Table_PI[[#This Row],[Input 4]],'Customer Information'!$AR$12,101,ROW())<>0,MeasureCalc(Table_PI[[#This Row],[Hide:\nFormula Name]],Table_SummaryPI[[#This Row],[Quantity]],Table_PI[[#This Row],[List 1]],Table_PI[[#This Row],[List 2]],Table_PI[[#This Row],[List 3]],Table_PI[[#This Row],[Size]],Table_PI[[#This Row],[Input 1]],Table_PI[[#This Row],[Input 2]],Table_PI[[#This Row],[Input 3]],Table_PI[[#This Row],[Input 4]],'Customer Information'!$AR$12,101,ROW())<>\"No Rebate\"),MeasureCalc(Table_PI[[#This Row],[Hide:\nFormula Name]],Table_SummaryPI[[#This Row],[Quantity]],Table_PI[[#This Row],[List 1]],Table_PI[[#This Row],[List 2]],Table_PI[[#This Row],[List 3]],Table_PI[[#This Row],[Size]],Table_PI[[#This Row],[Input 1]],Table_PI[[#This Row],[Input 2]],Table_PI[[#This Row],[Input 3]],Table_PI[[#This Row],[Input 4]],'Customer Information'!$AR$12,101,ROW()),\"\"),\"\")","v":""},{"$f":"IF(Table_PI[[#This Row],[Input 2]]<>\"\",Table_PI[[#This Row],[Input 2]],\"\")","v":""},null,{"$f":"IFERROR(IF(AND(MeasureCalc(Table_PI[[#This Row],[Hide:\nFormula Name]],Table_SummaryPI[[#This Row],[Quantity]],Table_PI[[#This Row],[List 1]],Table_PI[[#This Row],[List 2]],Table_PI[[#This Row],[List 3]],Table_PI[[#This Row],[Size]],Table_PI[[#This Row],[Input 1]],Table_PI[[#This Row],[Input 2]],Table_PI[[#This Row],[Input 3]],Table_PI[[#This Row],[Input 4]],'Customer Information'!$AR$12,102,ROW())<>0,MeasureCalc(Table_PI[[#This Row],[Hide:\nFormula Name]],Table_SummaryPI[[#This Row],[Quantity]],Table_PI[[#This Row],[List 1]],Table_PI[[#This Row],[List 2]],Table_PI[[#This Row],[List 3]],Table_PI[[#This Row],[Size]],Table_PI[[#This Row],[Input 1]],Table_PI[[#This Row],[Input 2]],Table_PI[[#This Row],[Input 3]],Table_PI[[#This Row],[Input 4]],'Customer Information'!$AR$12,102,ROW())<>\"No Rebate\"),MeasureCalc(Table_PI[[#This Row],[Hide:\nFormula Name]],Table_SummaryPI[[#This Row],[Quantity]],Table_PI[[#This Row],[List 1]],Table_PI[[#This Row],[List 2]],Table_PI[[#This Row],[List 3]],Table_PI[[#This Row],[Size]],Table_PI[[#This Row],[Input 1]],Table_PI[[#This Row],[Input 2]],Table_PI[[#This Row],[Input 3]],Table_PI[[#This Row],[Input 4]],'Customer Information'!$AR$12,102,ROW()),\"\"),\"\")","v":""},{"$f":"IF(Table_PI[[#This Row],[Input 3]]<>\"\",Table_PI[[#This Row],[Input 3]],\"\")","v":""},null,{"$f":"IFERROR(IF(AND(MeasureCalc(Table_PI[[#This Row],[Hide:\nFormula Name]],Table_SummaryPI[[#This Row],[Quantity]],Table_PI[[#This Row],[List 1]],Table_PI[[#This Row],[List 2]],Table_PI[[#This Row],[List 3]],Table_PI[[#This Row],[Size]],Table_PI[[#This Row],[Input 1]],Table_PI[[#This Row],[Input 2]],Table_PI[[#This Row],[Input 3]],Table_PI[[#This Row],[Input 4]],'Customer Information'!$AR$12,103,ROW())<>0,MeasureCalc(Table_PI[[#This Row],[Hide:\nFormula Name]],Table_SummaryPI[[#This Row],[Quantity]],Table_PI[[#This Row],[List 1]],Table_PI[[#This Row],[List 2]],Table_PI[[#This Row],[List 3]],Table_PI[[#This Row],[Size]],Table_PI[[#This Row],[Input 1]],Table_PI[[#This Row],[Input 2]],Table_PI[[#This Row],[Input 3]],Table_PI[[#This Row],[Input 4]],'Customer Information'!$AR$12,103,ROW())<>\"No Rebate\"),MeasureCalc(Table_PI[[#This Row],[Hide:\nFormula Name]],Table_SummaryPI[[#This Row],[Quantity]],Table_PI[[#This Row],[List 1]],Table_PI[[#This Row],[List 2]],Table_PI[[#This Row],[List 3]],Table_PI[[#This Row],[Size]],Table_PI[[#This Row],[Input 1]],Table_PI[[#This Row],[Input 2]],Table_PI[[#This Row],[Input 3]],Table_PI[[#This Row],[Input 4]],'Customer Information'!$AR$12,103,ROW()),\"\"),\"\")","v":""},{"$f":"IF(Table_PI[[#This Row],[Input 4]]<>\"\",Table_PI[[#This Row],[Input 4]],\"\")","v":""},{"$f":"IF(Table_PI[[#This Row],[Quantity]]=\"\",\"\",Table_PI[[#This Row],[Quantity]])","v":""},{"$f":"IF(Table_PI[[#This Row],[Notes]]=\"\",\"\",Table_PI[[#This Row],[Notes]])","v":""},{"$f":"IF(OR(Table_PI[[#This Row],[Hide:\nBaseline kWh]]=\"\",Table_PI[[#This Row],[Hide:\nBaseline kWh]]=0),\"\",Table_PI[[#This Row],[Hide:\nBaseline kWh]])","v":""},{"$f":"IF(OR(Table_PI[[#This Row],[Hide:\nBaseline kW]]=\"\",Table_PI[[#This Row],[Hide:\nBaseline kW]]=0),\"\",Table_PI[[#This Row],[Hide:\nBaseline kW]])","v":""},{"$f":"IF(OR(Table_PI[[#This Row],[Hide:\nProposed kWh]]=\"\",Table_PI[[#This Row],[Hide:\nProposed kWh]]=0),\"\",Table_PI[[#This Row],[Hide:\nProposed kWh]])","v":""},{"$f":"IF(OR(Table_PI[[#This Row],[Hide:\nProposed kW]]=\"\",Table_PI[[#This Row],[Hide:\nProposed kW]]=0),\"\",Table_PI[[#This Row],[Hide:\nProposed kW]])","v":""},{"$f":"IF(OR(Table_PI[[#This Row],[Rebate]]=\"\",Table_PI[[#This Row],[Rebate]]=0),\"\",Table_PI[[#This Row],[Rebate]])","v":""},{"$f":"IF(OR(Table_PI[[#This Row],[Hide:\nIncremental Cost]]=\"\",Table_PI[[#This Row],[Hide:\nIncremental Cost]]=0),\"\",Table_PI[[#This Row],[Hide:\nIncremental Cost]])","v":""},{"$f":"IFERROR(IF(Table_SummaryPI[[#This Row],[kWhSavings]]=\"\",\"\",ROUND(Table_SummaryPI[[#This Row],[kWhSavings]]/$AG$401*'Customer Information'!$BC$17,2)),0)","v":""},{"$f":"IF(OR(Table_PI[[#This Row],[Annual kWh]]=\"\",Table_PI[[#This Row],[Annual kWh]]=0),\"\",Table_PI[[#This Row],[Annual kWh]])","v":""},{"$f":"IF(OR(Table_PI[[#This Row],[Peak kW]]=\"\",Table_PI[[#This Row],[Peak kW]]=0),\"\",Table_PI[[#This Row],[Peak kW]])","v":""},{"$f":"IFERROR(IF(Table_SummaryPI[[#This Row],[kWhSavings]]=\"\",\"\",$AU$9*Table_SummaryPI[[#This Row],[kWhSavings]]),0)","v":""},{"$f":"IFERROR(IF(Table_SummaryPI[[#This Row],[kWhSavings]]=\"\",\"\",$AU$14*Table_SummaryPI[[#This Row],[kWhSavings]]),0)","v":""},{"$f":"IFERROR(IF(Table_SummaryPI[[#This Row],[kWhSavings]]=\"\",\"\",$AU$18*Table_SummaryPI[[#This Row],[kWhSavings]]),0)","v":""},{"$f":"IFERROR(IF(Table_SummaryPI[[#This Row],[kWhSavings]]=\"\",\"\",$AU$22*Table_SummaryPI[[#This Row],[kWhSavings]]),0)","v":""},{"$f":"IFERROR(IF(MeasureCalc(Table_PI[[#This Row],[Hide:\nFormula Name]],Table_SummaryPI[[#This Row],[Quantity]],Table_PI[[#This Row],[List 1]],Table_PI[[#This Row],[List 2]],Table_PI[[#This Row],[List 3]],Table_PI[[#This Row],[Size]],Table_PI[[#This Row],[Input 1]],Table_PI[[#This Row],[Input 2]],Table_PI[[#This Row],[Input 3]],Table_PI[[#This Row],[Input 4]],'Customer Information'!$AR$12,200,ROW())<>\"No Rebate\",MeasureCalc(Table_PI[[#This Row],[Hide:\nFormula Name]],Table_SummaryPI[[#This Row],[Quantity]],Table_PI[[#This Row],[List 1]],Table_PI[[#This Row],[List 2]],Table_PI[[#This Row],[List 3]],Table_PI[[#This Row],[Size]],Table_PI[[#This Row],[Input 1]],Table_PI[[#This Row],[Input 2]],Table_PI[[#This Row],[Input 3]],Table_PI[[#This Row],[Input 4]],'Customer Information'!$AR$12,200,ROW()),\"\"),\"\")","v":""},{"$f":"IFERROR(IF(MeasureCalc(Table_PI[[#This Row],[Hide:\nFormula Name]],Table_SummaryPI[[#This Row],[Quantity]],Table_PI[[#This Row],[List 1]],Table_PI[[#This Row],[List 2]],Table_PI[[#This Row],[List 3]],Table_PI[[#This Row],[Size]],Table_PI[[#This Row],[Input 1]],Table_PI[[#This Row],[Input 2]],Table_PI[[#This Row],[Input 3]],Table_PI[[#This Row],[Input 4]],'Customer Information'!$AR$12,201,ROW())<>\"No Rebate\",MeasureCalc(Table_PI[[#This Row],[Hide:\nFormula Name]],Table_SummaryPI[[#This Row],[Quantity]],Table_PI[[#This Row],[List 1]],Table_PI[[#This Row],[List 2]],Table_PI[[#This Row],[List 3]],Table_PI[[#This Row],[Size]],Table_PI[[#This Row],[Input 1]],Table_PI[[#This Row],[Input 2]],Table_PI[[#This Row],[Input 3]],Table_PI[[#This Row],[Input 4]],'Customer Information'!$AR$12,201,ROW()),\"\"),\"\")","v":""}]
[{"$f":"Table_PI[[#This Row],[Line No.]]","v":""},{"$f":"IF(Table_SummaryPI[[#This Row],[MeassureCategory]]<>\"\",CONCATENATE(Table_SummaryPI[[#This Row],[MeassureCategory]],  \" - \", Table_SummaryPI[[#This Row],[ProposedMeasureCategory]],  \" - \", TEXT(Table_SummaryPI[[#This Row],[Size]],\"#,##0.00\"),\" \",Table_SummaryPI[[#This Row],[SizeUnit]]),\"\")","v":""},{"$f":"SUBSTITUTE(Table_PI[[#This Row],[Measure]],\"     \",\"\",1)","v":""},{"$f":"IF(Table_PI[[#This Row],[List 1]]<>\"\",Table_PI[[#This Row],[List 1]],\"\")","v":""},{"$f":"IF(Table_PI[[#This Row],[List 2]]<>\"\",Table_PI[[#This Row],[List 2]],\"\")","v":""},{"$f":"IF(Table_PI[[#This Row],[List 3]]<>\"\",Table_PI[[#This Row],[List 3]],\"\")","v":""},{"$f":"IF(Table_PI[[#This Row],[Manufacturer]]=\"\",\"\",Table_PI[[#This Row],[Manufacturer]])","v":""},{"$f":"IF(Table_PI[[#This Row],[Model Number]]=\"\",\"\",Table_PI[[#This Row],[Model Number]])","v":""},{"$f":"IF(Table_PI[[#This Row],[Serial Number(s)]]=\"\",\"\",Table_PI[[#This Row],[Serial Number(s)]])","v":""},null,{"$f":"IF(Table_PI[[#This Row],[Size]]=\"\",\"\",Table_PI[[#This Row],[Size]])","v":""},null,{"$f":"IFERROR(IF(AND(MeasureCalc(Table_PI[[#This Row],[Hide:\nFormula Name]],Table_SummaryPI[[#This Row],[Quantity]],Table_PI[[#This Row],[List 1]],Table_PI[[#This Row],[List 2]],Table_PI[[#This Row],[List 3]],Table_PI[[#This Row],[Size]],Table_PI[[#This Row],[Input 1]],Table_PI[[#This Row],[Input 2]],Table_PI[[#This Row],[Input 3]],Table_PI[[#This Row],[Input 4]],'Customer Information'!$AR$12,100,ROW())<>0,MeasureCalc(Table_PI[[#This Row],[Hide:\nFormula Name]],Table_SummaryPI[[#This Row],[Quantity]],Table_PI[[#This Row],[List 1]],Table_PI[[#This Row],[List 2]],Table_PI[[#This Row],[List 3]],Table_PI[[#This Row],[Size]],Table_PI[[#This Row],[Input 1]],Table_PI[[#This Row],[Input 2]],Table_PI[[#This Row],[Input 3]],Table_PI[[#This Row],[Input 4]],'Customer Information'!$AR$12,100,ROW())<>\"No Rebate\"),MeasureCalc(Table_PI[[#This Row],[Hide:\nFormula Name]],Table_SummaryPI[[#This Row],[Quantity]],Table_PI[[#This Row],[List 1]],Table_PI[[#This Row],[List 2]],Table_PI[[#This Row],[List 3]],Table_PI[[#This Row],[Size]],Table_PI[[#This Row],[Input 1]],Table_PI[[#This Row],[Input 2]],Table_PI[[#This Row],[Input 3]],Table_PI[[#This Row],[Input 4]],'Customer Information'!$AR$12,100,ROW()),\"\"),\"\")","v":""},{"$f":"IF(Table_PI[[#This Row],[Input 1]]<>\"\",Table_PI[[#This Row],[Input 1]],\"\")","v":""},null,{"$f":"IFERROR(IF(AND(MeasureCalc(Table_PI[[#This Row],[Hide:\nFormula Name]],Table_SummaryPI[[#This Row],[Quantity]],Table_PI[[#This Row],[List 1]],Table_PI[[#This Row],[List 2]],Table_PI[[#This Row],[List 3]],Table_PI[[#This Row],[Size]],Table_PI[[#This Row],[Input 1]],Table_PI[[#This Row],[Input 2]],Table_PI[[#This Row],[Input 3]],Table_PI[[#This Row],[Input 4]],'Customer Information'!$AR$12,101,ROW())<>0,MeasureCalc(Table_PI[[#This Row],[Hide:\nFormula Name]],Table_SummaryPI[[#This Row],[Quantity]],Table_PI[[#This Row],[List 1]],Table_PI[[#This Row],[List 2]],Table_PI[[#This Row],[List 3]],Table_PI[[#This Row],[Size]],Table_PI[[#This Row],[Input 1]],Table_PI[[#This Row],[Input 2]],Table_PI[[#This Row],[Input 3]],Table_PI[[#This Row],[Input 4]],'Customer Information'!$AR$12,101,ROW())<>\"No Rebate\"),MeasureCalc(Table_PI[[#This Row],[Hide:\nFormula Name]],Table_SummaryPI[[#This Row],[Quantity]],Table_PI[[#This Row],[List 1]],Table_PI[[#This Row],[List 2]],Table_PI[[#This Row],[List 3]],Table_PI[[#This Row],[Size]],Table_PI[[#This Row],[Input 1]],Table_PI[[#This Row],[Input 2]],Table_PI[[#This Row],[Input 3]],Table_PI[[#This Row],[Input 4]],'Customer Information'!$AR$12,101,ROW()),\"\"),\"\")","v":""},{"$f":"IF(Table_PI[[#This Row],[Input 2]]<>\"\",Table_PI[[#This Row],[Input 2]],\"\")","v":""},null,{"$f":"IFERROR(IF(AND(MeasureCalc(Table_PI[[#This Row],[Hide:\nFormula Name]],Table_SummaryPI[[#This Row],[Quantity]],Table_PI[[#This Row],[List 1]],Table_PI[[#This Row],[List 2]],Table_PI[[#This Row],[List 3]],Table_PI[[#This Row],[Size]],Table_PI[[#This Row],[Input 1]],Table_PI[[#This Row],[Input 2]],Table_PI[[#This Row],[Input 3]],Table_PI[[#This Row],[Input 4]],'Customer Information'!$AR$12,102,ROW())<>0,MeasureCalc(Table_PI[[#This Row],[Hide:\nFormula Name]],Table_SummaryPI[[#This Row],[Quantity]],Table_PI[[#This Row],[List 1]],Table_PI[[#This Row],[List 2]],Table_PI[[#This Row],[List 3]],Table_PI[[#This Row],[Size]],Table_PI[[#This Row],[Input 1]],Table_PI[[#This Row],[Input 2]],Table_PI[[#This Row],[Input 3]],Table_PI[[#This Row],[Input 4]],'Customer Information'!$AR$12,102,ROW())<>\"No Rebate\"),MeasureCalc(Table_PI[[#This Row],[Hide:\nFormula Name]],Table_SummaryPI[[#This Row],[Quantity]],Table_PI[[#This Row],[List 1]],Table_PI[[#This Row],[List 2]],Table_PI[[#This Row],[List 3]],Table_PI[[#This Row],[Size]],Table_PI[[#This Row],[Input 1]],Table_PI[[#This Row],[Input 2]],Table_PI[[#This Row],[Input 3]],Table_PI[[#This Row],[Input 4]],'Customer Information'!$AR$12,102,ROW()),\"\"),\"\")","v":""},{"$f":"IF(Table_PI[[#This Row],[Input 3]]<>\"\",Table_PI[[#This Row],[Input 3]],\"\")","v":""},null,{"$f":"IFERROR(IF(AND(MeasureCalc(Table_PI[[#This Row],[Hide:\nFormula Name]],Table_SummaryPI[[#This Row],[Quantity]],Table_PI[[#This Row],[List 1]],Table_PI[[#This Row],[List 2]],Table_PI[[#This Row],[List 3]],Table_PI[[#This Row],[Size]],Table_PI[[#This Row],[Input 1]],Table_PI[[#This Row],[Input 2]],Table_PI[[#This Row],[Input 3]],Table_PI[[#This Row],[Input 4]],'Customer Information'!$AR$12,103,ROW())<>0,MeasureCalc(Table_PI[[#This Row],[Hide:\nFormula Name]],Table_SummaryPI[[#This Row],[Quantity]],Table_PI[[#This Row],[List 1]],Table_PI[[#This Row],[List 2]],Table_PI[[#This Row],[List 3]],Table_PI[[#This Row],[Size]],Table_PI[[#This Row],[Input 1]],Table_PI[[#This Row],[Input 2]],Table_PI[[#This Row],[Input 3]],Table_PI[[#This Row],[Input 4]],'Customer Information'!$AR$12,103,ROW())<>\"No Rebate\"),MeasureCalc(Table_PI[[#This Row],[Hide:\nFormula Name]],Table_SummaryPI[[#This Row],[Quantity]],Table_PI[[#This Row],[List 1]],Table_PI[[#This Row],[List 2]],Table_PI[[#This Row],[List 3]],Table_PI[[#This Row],[Size]],Table_PI[[#This Row],[Input 1]],Table_PI[[#This Row],[Input 2]],Table_PI[[#This Row],[Input 3]],Table_PI[[#This Row],[Input 4]],'Customer Information'!$AR$12,103,ROW()),\"\"),\"\")","v":""},{"$f":"IF(Table_PI[[#This Row],[Input 4]]<>\"\",Table_PI[[#This Row],[Input 4]],\"\")","v":""},{"$f":"IF(Table_PI[[#This Row],[Quantity]]=\"\",\"\",Table_PI[[#This Row],[Quantity]])","v":""},{"$f":"IF(Table_PI[[#This Row],[Notes]]=\"\",\"\",Table_PI[[#This Row],[Notes]])","v":""},{"$f":"IF(OR(Table_PI[[#This Row],[Hide:\nBaseline kWh]]=\"\",Table_PI[[#This Row],[Hide:\nBaseline kWh]]=0),\"\",Table_PI[[#This Row],[Hide:\nBaseline kWh]])","v":""},{"$f":"IF(OR(Table_PI[[#This Row],[Hide:\nBaseline kW]]=\"\",Table_PI[[#This Row],[Hide:\nBaseline kW]]=0),\"\",Table_PI[[#This Row],[Hide:\nBaseline kW]])","v":""},{"$f":"IF(OR(Table_PI[[#This Row],[Hide:\nProposed kWh]]=\"\",Table_PI[[#This Row],[Hide:\nProposed kWh]]=0),\"\",Table_PI[[#This Row],[Hide:\nProposed kWh]])","v":""},{"$f":"IF(OR(Table_PI[[#This Row],[Hide:\nProposed kW]]=\"\",Table_PI[[#This Row],[Hide:\nProposed kW]]=0),\"\",Table_PI[[#This Row],[Hide:\nProposed kW]])","v":""},{"$f":"IF(OR(Table_PI[[#This Row],[Rebate]]=\"\",Table_PI[[#This Row],[Rebate]]=0),\"\",Table_PI[[#This Row],[Rebate]])","v":""},{"$f":"IF(OR(Table_PI[[#This Row],[Hide:\nIncremental Cost]]=\"\",Table_PI[[#This Row],[Hide:\nIncremental Cost]]=0),\"\",Table_PI[[#This Row],[Hide:\nIncremental Cost]])","v":""},{"$f":"IFERROR(IF(Table_SummaryPI[[#This Row],[kWhSavings]]=\"\",\"\",ROUND(Table_SummaryPI[[#This Row],[kWhSavings]]/$AG$401*'Customer Information'!$BC$17,2)),0)","v":""},{"$f":"IF(OR(Table_PI[[#This Row],[Annual kWh]]=\"\",Table_PI[[#This Row],[Annual kWh]]=0),\"\",Table_PI[[#This Row],[Annual kWh]])","v":""},{"$f":"IF(OR(Table_PI[[#This Row],[Peak kW]]=\"\",Table_PI[[#This Row],[Peak kW]]=0),\"\",Table_PI[[#This Row],[Peak kW]])","v":""},{"$f":"IFERROR(IF(Table_SummaryPI[[#This Row],[kWhSavings]]=\"\",\"\",$AU$9*Table_SummaryPI[[#This Row],[kWhSavings]]),0)","v":""},{"$f":"IFERROR(IF(Table_SummaryPI[[#This Row],[kWhSavings]]=\"\",\"\",$AU$14*Table_SummaryPI[[#This Row],[kWhSavings]]),0)","v":""},{"$f":"IFERROR(IF(Table_SummaryPI[[#This Row],[kWhSavings]]=\"\",\"\",$AU$18*Table_SummaryPI[[#This Row],[kWhSavings]]),0)","v":""},{"$f":"IFERROR(IF(Table_SummaryPI[[#This Row],[kWhSavings]]=\"\",\"\",$AU$22*Table_SummaryPI[[#This Row],[kWhSavings]]),0)","v":""},{"$f":"IFERROR(IF(MeasureCalc(Table_PI[[#This Row],[Hide:\nFormula Name]],Table_SummaryPI[[#This Row],[Quantity]],Table_PI[[#This Row],[List 1]],Table_PI[[#This Row],[List 2]],Table_PI[[#This Row],[List 3]],Table_PI[[#This Row],[Size]],Table_PI[[#This Row],[Input 1]],Table_PI[[#This Row],[Input 2]],Table_PI[[#This Row],[Input 3]],Table_PI[[#This Row],[Input 4]],'Customer Information'!$AR$12,200,ROW())<>\"No Rebate\",MeasureCalc(Table_PI[[#This Row],[Hide:\nFormula Name]],Table_SummaryPI[[#This Row],[Quantity]],Table_PI[[#This Row],[List 1]],Table_PI[[#This Row],[List 2]],Table_PI[[#This Row],[List 3]],Table_PI[[#This Row],[Size]],Table_PI[[#This Row],[Input 1]],Table_PI[[#This Row],[Input 2]],Table_PI[[#This Row],[Input 3]],Table_PI[[#This Row],[Input 4]],'Customer Information'!$AR$12,200,ROW()),\"\"),\"\")","v":""},{"$f":"IFERROR(IF(MeasureCalc(Table_PI[[#This Row],[Hide:\nFormula Name]],Table_SummaryPI[[#This Row],[Quantity]],Table_PI[[#This Row],[List 1]],Table_PI[[#This Row],[List 2]],Table_PI[[#This Row],[List 3]],Table_PI[[#This Row],[Size]],Table_PI[[#This Row],[Input 1]],Table_PI[[#This Row],[Input 2]],Table_PI[[#This Row],[Input 3]],Table_PI[[#This Row],[Input 4]],'Customer Information'!$AR$12,201,ROW())<>\"No Rebate\",MeasureCalc(Table_PI[[#This Row],[Hide:\nFormula Name]],Table_SummaryPI[[#This Row],[Quantity]],Table_PI[[#This Row],[List 1]],Table_PI[[#This Row],[List 2]],Table_PI[[#This Row],[List 3]],Table_PI[[#This Row],[Size]],Table_PI[[#This Row],[Input 1]],Table_PI[[#This Row],[Input 2]],Table_PI[[#This Row],[Input 3]],Table_PI[[#This Row],[Input 4]],'Customer Information'!$AR$12,201,ROW()),\"\"),\"\")","v":""}]
[{"$f":"Table_PI[[#This Row],[Line No.]]","v":""},{"$f":"IF(Table_SummaryPI[[#This Row],[MeassureCategory]]<>\"\",CONCATENATE(Table_SummaryPI[[#This Row],[MeassureCategory]],  \" - \", Table_SummaryPI[[#This Row],[ProposedMeasureCategory]],  \" - \", TEXT(Table_SummaryPI[[#This Row],[Size]],\"#,##0.00\"),\" \",Table_SummaryPI[[#This Row],[SizeUnit]]),\"\")","v":""},{"$f":"SUBSTITUTE(Table_PI[[#This Row],[Measure]],\"     \",\"\",1)","v":""},{"$f":"IF(Table_PI[[#This Row],[List 1]]<>\"\",Table_PI[[#This Row],[List 1]],\"\")","v":""},{"$f":"IF(Table_PI[[#This Row],[List 2]]<>\"\",Table_PI[[#This Row],[List 2]],\"\")","v":""},{"$f":"IF(Table_PI[[#This Row],[List 3]]<>\"\",Table_PI[[#This Row],[List 3]],\"\")","v":""},{"$f":"IF(Table_PI[[#This Row],[Manufacturer]]=\"\",\"\",Table_PI[[#This Row],[Manufacturer]])","v":""},{"$f":"IF(Table_PI[[#This Row],[Model Number]]=\"\",\"\",Table_PI[[#This Row],[Model Number]])","v":""},{"$f":"IF(Table_PI[[#This Row],[Serial Number(s)]]=\"\",\"\",Table_PI[[#This Row],[Serial Number(s)]])","v":""},null,{"$f":"IF(Table_PI[[#This Row],[Size]]=\"\",\"\",Table_PI[[#This Row],[Size]])","v":""},null,{"$f":"IFERROR(IF(AND(MeasureCalc(Table_PI[[#This Row],[Hide:\nFormula Name]],Table_SummaryPI[[#This Row],[Quantity]],Table_PI[[#This Row],[List 1]],Table_PI[[#This Row],[List 2]],Table_PI[[#This Row],[List 3]],Table_PI[[#This Row],[Size]],Table_PI[[#This Row],[Input 1]],Table_PI[[#This Row],[Input 2]],Table_PI[[#This Row],[Input 3]],Table_PI[[#This Row],[Input 4]],'Customer Information'!$AR$12,100,ROW())<>0,MeasureCalc(Table_PI[[#This Row],[Hide:\nFormula Name]],Table_SummaryPI[[#This Row],[Quantity]],Table_PI[[#This Row],[List 1]],Table_PI[[#This Row],[List 2]],Table_PI[[#This Row],[List 3]],Table_PI[[#This Row],[Size]],Table_PI[[#This Row],[Input 1]],Table_PI[[#This Row],[Input 2]],Table_PI[[#This Row],[Input 3]],Table_PI[[#This Row],[Input 4]],'Customer Information'!$AR$12,100,ROW())<>\"No Rebate\"),MeasureCalc(Table_PI[[#This Row],[Hide:\nFormula Name]],Table_SummaryPI[[#This Row],[Quantity]],Table_PI[[#This Row],[List 1]],Table_PI[[#This Row],[List 2]],Table_PI[[#This Row],[List 3]],Table_PI[[#This Row],[Size]],Table_PI[[#This Row],[Input 1]],Table_PI[[#This Row],[Input 2]],Table_PI[[#This Row],[Input 3]],Table_PI[[#This Row],[Input 4]],'Customer Information'!$AR$12,100,ROW()),\"\"),\"\")","v":""},{"$f":"IF(Table_PI[[#This Row],[Input 1]]<>\"\",Table_PI[[#This Row],[Input 1]],\"\")","v":""},null,{"$f":"IFERROR(IF(AND(MeasureCalc(Table_PI[[#This Row],[Hide:\nFormula Name]],Table_SummaryPI[[#This Row],[Quantity]],Table_PI[[#This Row],[List 1]],Table_PI[[#This Row],[List 2]],Table_PI[[#This Row],[List 3]],Table_PI[[#This Row],[Size]],Table_PI[[#This Row],[Input 1]],Table_PI[[#This Row],[Input 2]],Table_PI[[#This Row],[Input 3]],Table_PI[[#This Row],[Input 4]],'Customer Information'!$AR$12,101,ROW())<>0,MeasureCalc(Table_PI[[#This Row],[Hide:\nFormula Name]],Table_SummaryPI[[#This Row],[Quantity]],Table_PI[[#This Row],[List 1]],Table_PI[[#This Row],[List 2]],Table_PI[[#This Row],[List 3]],Table_PI[[#This Row],[Size]],Table_PI[[#This Row],[Input 1]],Table_PI[[#This Row],[Input 2]],Table_PI[[#This Row],[Input 3]],Table_PI[[#This Row],[Input 4]],'Customer Information'!$AR$12,101,ROW())<>\"No Rebate\"),MeasureCalc(Table_PI[[#This Row],[Hide:\nFormula Name]],Table_SummaryPI[[#This Row],[Quantity]],Table_PI[[#This Row],[List 1]],Table_PI[[#This Row],[List 2]],Table_PI[[#This Row],[List 3]],Table_PI[[#This Row],[Size]],Table_PI[[#This Row],[Input 1]],Table_PI[[#This Row],[Input 2]],Table_PI[[#This Row],[Input 3]],Table_PI[[#This Row],[Input 4]],'Customer Information'!$AR$12,101,ROW()),\"\"),\"\")","v":""},{"$f":"IF(Table_PI[[#This Row],[Input 2]]<>\"\",Table_PI[[#This Row],[Input 2]],\"\")","v":""},null,{"$f":"IFERROR(IF(AND(MeasureCalc(Table_PI[[#This Row],[Hide:\nFormula Name]],Table_SummaryPI[[#This Row],[Quantity]],Table_PI[[#This Row],[List 1]],Table_PI[[#This Row],[List 2]],Table_PI[[#This Row],[List 3]],Table_PI[[#This Row],[Size]],Table_PI[[#This Row],[Input 1]],Table_PI[[#This Row],[Input 2]],Table_PI[[#This Row],[Input 3]],Table_PI[[#This Row],[Input 4]],'Customer Information'!$AR$12,102,ROW())<>0,MeasureCalc(Table_PI[[#This Row],[Hide:\nFormula Name]],Table_SummaryPI[[#This Row],[Quantity]],Table_PI[[#This Row],[List 1]],Table_PI[[#This Row],[List 2]],Table_PI[[#This Row],[List 3]],Table_PI[[#This Row],[Size]],Table_PI[[#This Row],[Input 1]],Table_PI[[#This Row],[Input 2]],Table_PI[[#This Row],[Input 3]],Table_PI[[#This Row],[Input 4]],'Customer Information'!$AR$12,102,ROW())<>\"No Rebate\"),MeasureCalc(Table_PI[[#This Row],[Hide:\nFormula Name]],Table_SummaryPI[[#This Row],[Quantity]],Table_PI[[#This Row],[List 1]],Table_PI[[#This Row],[List 2]],Table_PI[[#This Row],[List 3]],Table_PI[[#This Row],[Size]],Table_PI[[#This Row],[Input 1]],Table_PI[[#This Row],[Input 2]],Table_PI[[#This Row],[Input 3]],Table_PI[[#This Row],[Input 4]],'Customer Information'!$AR$12,102,ROW()),\"\"),\"\")","v":""},{"$f":"IF(Table_PI[[#This Row],[Input 3]]<>\"\",Table_PI[[#This Row],[Input 3]],\"\")","v":""},null,{"$f":"IFERROR(IF(AND(MeasureCalc(Table_PI[[#This Row],[Hide:\nFormula Name]],Table_SummaryPI[[#This Row],[Quantity]],Table_PI[[#This Row],[List 1]],Table_PI[[#This Row],[List 2]],Table_PI[[#This Row],[List 3]],Table_PI[[#This Row],[Size]],Table_PI[[#This Row],[Input 1]],Table_PI[[#This Row],[Input 2]],Table_PI[[#This Row],[Input 3]],Table_PI[[#This Row],[Input 4]],'Customer Information'!$AR$12,103,ROW())<>0,MeasureCalc(Table_PI[[#This Row],[Hide:\nFormula Name]],Table_SummaryPI[[#This Row],[Quantity]],Table_PI[[#This Row],[List 1]],Table_PI[[#This Row],[List 2]],Table_PI[[#This Row],[List 3]],Table_PI[[#This Row],[Size]],Table_PI[[#This Row],[Input 1]],Table_PI[[#This Row],[Input 2]],Table_PI[[#This Row],[Input 3]],Table_PI[[#This Row],[Input 4]],'Customer Information'!$AR$12,103,ROW())<>\"No Rebate\"),MeasureCalc(Table_PI[[#This Row],[Hide:\nFormula Name]],Table_SummaryPI[[#This Row],[Quantity]],Table_PI[[#This Row],[List 1]],Table_PI[[#This Row],[List 2]],Table_PI[[#This Row],[List 3]],Table_PI[[#This Row],[Size]],Table_PI[[#This Row],[Input 1]],Table_PI[[#This Row],[Input 2]],Table_PI[[#This Row],[Input 3]],Table_PI[[#This Row],[Input 4]],'Customer Information'!$AR$12,103,ROW()),\"\"),\"\")","v":""},{"$f":"IF(Table_PI[[#This Row],[Input 4]]<>\"\",Table_PI[[#This Row],[Input 4]],\"\")","v":""},{"$f":"IF(Table_PI[[#This Row],[Quantity]]=\"\",\"\",Table_PI[[#This Row],[Quantity]])","v":""},{"$f":"IF(Table_PI[[#This Row],[Notes]]=\"\",\"\",Table_PI[[#This Row],[Notes]])","v":""},{"$f":"IF(OR(Table_PI[[#This Row],[Hide:\nBaseline kWh]]=\"\",Table_PI[[#This Row],[Hide:\nBaseline kWh]]=0),\"\",Table_PI[[#This Row],[Hide:\nBaseline kWh]])","v":""},{"$f":"IF(OR(Table_PI[[#This Row],[Hide:\nBaseline kW]]=\"\",Table_PI[[#This Row],[Hide:\nBaseline kW]]=0),\"\",Table_PI[[#This Row],[Hide:\nBaseline kW]])","v":""},{"$f":"IF(OR(Table_PI[[#This Row],[Hide:\nProposed kWh]]=\"\",Table_PI[[#This Row],[Hide:\nProposed kWh]]=0),\"\",Table_PI[[#This Row],[Hide:\nProposed kWh]])","v":""},{"$f":"IF(OR(Table_PI[[#This Row],[Hide:\nProposed kW]]=\"\",Table_PI[[#This Row],[Hide:\nProposed kW]]=0),\"\",Table_PI[[#This Row],[Hide:\nProposed kW]])","v":""},{"$f":"IF(OR(Table_PI[[#This Row],[Rebate]]=\"\",Table_PI[[#This Row],[Rebate]]=0),\"\",Table_PI[[#This Row],[Rebate]])","v":""},{"$f":"IF(OR(Table_PI[[#This Row],[Hide:\nIncremental Cost]]=\"\",Table_PI[[#This Row],[Hide:\nIncremental Cost]]=0),\"\",Table_PI[[#This Row],[Hide:\nIncremental Cost]])","v":""},{"$f":"IFERROR(IF(Table_SummaryPI[[#This Row],[kWhSavings]]=\"\",\"\",ROUND(Table_SummaryPI[[#This Row],[kWhSavings]]/$AG$401*'Customer Information'!$BC$17,2)),0)","v":""},{"$f":"IF(OR(Table_PI[[#This Row],[Annual kWh]]=\"\",Table_PI[[#This Row],[Annual kWh]]=0),\"\",Table_PI[[#This Row],[Annual kWh]])","v":""},{"$f":"IF(OR(Table_PI[[#This Row],[Peak kW]]=\"\",Table_PI[[#This Row],[Peak kW]]=0),\"\",Table_PI[[#This Row],[Peak kW]])","v":""},{"$f":"IFERROR(IF(Table_SummaryPI[[#This Row],[kWhSavings]]=\"\",\"\",$AU$9*Table_SummaryPI[[#This Row],[kWhSavings]]),0)","v":""},{"$f":"IFERROR(IF(Table_SummaryPI[[#This Row],[kWhSavings]]=\"\",\"\",$AU$14*Table_SummaryPI[[#This Row],[kWhSavings]]),0)","v":""},{"$f":"IFERROR(IF(Table_SummaryPI[[#This Row],[kWhSavings]]=\"\",\"\",$AU$18*Table_SummaryPI[[#This Row],[kWhSavings]]),0)","v":""},{"$f":"IFERROR(IF(Table_SummaryPI[[#This Row],[kWhSavings]]=\"\",\"\",$AU$22*Table_SummaryPI[[#This Row],[kWhSavings]]),0)","v":""},{"$f":"IFERROR(IF(MeasureCalc(Table_PI[[#This Row],[Hide:\nFormula Name]],Table_SummaryPI[[#This Row],[Quantity]],Table_PI[[#This Row],[List 1]],Table_PI[[#This Row],[List 2]],Table_PI[[#This Row],[List 3]],Table_PI[[#This Row],[Size]],Table_PI[[#This Row],[Input 1]],Table_PI[[#This Row],[Input 2]],Table_PI[[#This Row],[Input 3]],Table_PI[[#This Row],[Input 4]],'Customer Information'!$AR$12,200,ROW())<>\"No Rebate\",MeasureCalc(Table_PI[[#This Row],[Hide:\nFormula Name]],Table_SummaryPI[[#This Row],[Quantity]],Table_PI[[#This Row],[List 1]],Table_PI[[#This Row],[List 2]],Table_PI[[#This Row],[List 3]],Table_PI[[#This Row],[Size]],Table_PI[[#This Row],[Input 1]],Table_PI[[#This Row],[Input 2]],Table_PI[[#This Row],[Input 3]],Table_PI[[#This Row],[Input 4]],'Customer Information'!$AR$12,200,ROW()),\"\"),\"\")","v":""},{"$f":"IFERROR(IF(MeasureCalc(Table_PI[[#This Row],[Hide:\nFormula Name]],Table_SummaryPI[[#This Row],[Quantity]],Table_PI[[#This Row],[List 1]],Table_PI[[#This Row],[List 2]],Table_PI[[#This Row],[List 3]],Table_PI[[#This Row],[Size]],Table_PI[[#This Row],[Input 1]],Table_PI[[#This Row],[Input 2]],Table_PI[[#This Row],[Input 3]],Table_PI[[#This Row],[Input 4]],'Customer Information'!$AR$12,201,ROW())<>\"No Rebate\",MeasureCalc(Table_PI[[#This Row],[Hide:\nFormula Name]],Table_SummaryPI[[#This Row],[Quantity]],Table_PI[[#This Row],[List 1]],Table_PI[[#This Row],[List 2]],Table_PI[[#This Row],[List 3]],Table_PI[[#This Row],[Size]],Table_PI[[#This Row],[Input 1]],Table_PI[[#This Row],[Input 2]],Table_PI[[#This Row],[Input 3]],Table_PI[[#This Row],[Input 4]],'Customer Information'!$AR$12,201,ROW()),\"\"),\"\")","v":""}]
[{"$f":"Table_PI[[#This Row],[Line No.]]","v":""},{"$f":"IF(Table_SummaryPI[[#This Row],[MeassureCategory]]<>\"\",CONCATENATE(Table_SummaryPI[[#This Row],[MeassureCategory]],  \" - \", Table_SummaryPI[[#This Row],[ProposedMeasureCategory]],  \" - \", TEXT(Table_SummaryPI[[#This Row],[Size]],\"#,##0.00\"),\" \",Table_SummaryPI[[#This Row],[SizeUnit]]),\"\")","v":""},{"$f":"SUBSTITUTE(Table_PI[[#This Row],[Measure]],\"     \",\"\",1)","v":""},{"$f":"IF(Table_PI[[#This Row],[List 1]]<>\"\",Table_PI[[#This Row],[List 1]],\"\")","v":""},{"$f":"IF(Table_PI[[#This Row],[List 2]]<>\"\",Table_PI[[#This Row],[List 2]],\"\")","v":""},{"$f":"IF(Table_PI[[#This Row],[List 3]]<>\"\",Table_PI[[#This Row],[List 3]],\"\")","v":""},{"$f":"IF(Table_PI[[#This Row],[Manufacturer]]=\"\",\"\",Table_PI[[#This Row],[Manufacturer]])","v":""},{"$f":"IF(Table_PI[[#This Row],[Model Number]]=\"\",\"\",Table_PI[[#This Row],[Model Number]])","v":""},{"$f":"IF(Table_PI[[#This Row],[Serial Number(s)]]=\"\",\"\",Table_PI[[#This Row],[Serial Number(s)]])","v":""},null,{"$f":"IF(Table_PI[[#This Row],[Size]]=\"\",\"\",Table_PI[[#This Row],[Size]])","v":""},null,{"$f":"IFERROR(IF(AND(MeasureCalc(Table_PI[[#This Row],[Hide:\nFormula Name]],Table_SummaryPI[[#This Row],[Quantity]],Table_PI[[#This Row],[List 1]],Table_PI[[#This Row],[List 2]],Table_PI[[#This Row],[List 3]],Table_PI[[#This Row],[Size]],Table_PI[[#This Row],[Input 1]],Table_PI[[#This Row],[Input 2]],Table_PI[[#This Row],[Input 3]],Table_PI[[#This Row],[Input 4]],'Customer Information'!$AR$12,100,ROW())<>0,MeasureCalc(Table_PI[[#This Row],[Hide:\nFormula Name]],Table_SummaryPI[[#This Row],[Quantity]],Table_PI[[#This Row],[List 1]],Table_PI[[#This Row],[List 2]],Table_PI[[#This Row],[List 3]],Table_PI[[#This Row],[Size]],Table_PI[[#This Row],[Input 1]],Table_PI[[#This Row],[Input 2]],Table_PI[[#This Row],[Input 3]],Table_PI[[#This Row],[Input 4]],'Customer Information'!$AR$12,100,ROW())<>\"No Rebate\"),MeasureCalc(Table_PI[[#This Row],[Hide:\nFormula Name]],Table_SummaryPI[[#This Row],[Quantity]],Table_PI[[#This Row],[List 1]],Table_PI[[#This Row],[List 2]],Table_PI[[#This Row],[List 3]],Table_PI[[#This Row],[Size]],Table_PI[[#This Row],[Input 1]],Table_PI[[#This Row],[Input 2]],Table_PI[[#This Row],[Input 3]],Table_PI[[#This Row],[Input 4]],'Customer Information'!$AR$12,100,ROW()),\"\"),\"\")","v":""},{"$f":"IF(Table_PI[[#This Row],[Input 1]]<>\"\",Table_PI[[#This Row],[Input 1]],\"\")","v":""},null,{"$f":"IFERROR(IF(AND(MeasureCalc(Table_PI[[#This Row],[Hide:\nFormula Name]],Table_SummaryPI[[#This Row],[Quantity]],Table_PI[[#This Row],[List 1]],Table_PI[[#This Row],[List 2]],Table_PI[[#This Row],[List 3]],Table_PI[[#This Row],[Size]],Table_PI[[#This Row],[Input 1]],Table_PI[[#This Row],[Input 2]],Table_PI[[#This Row],[Input 3]],Table_PI[[#This Row],[Input 4]],'Customer Information'!$AR$12,101,ROW())<>0,MeasureCalc(Table_PI[[#This Row],[Hide:\nFormula Name]],Table_SummaryPI[[#This Row],[Quantity]],Table_PI[[#This Row],[List 1]],Table_PI[[#This Row],[List 2]],Table_PI[[#This Row],[List 3]],Table_PI[[#This Row],[Size]],Table_PI[[#This Row],[Input 1]],Table_PI[[#This Row],[Input 2]],Table_PI[[#This Row],[Input 3]],Table_PI[[#This Row],[Input 4]],'Customer Information'!$AR$12,101,ROW())<>\"No Rebate\"),MeasureCalc(Table_PI[[#This Row],[Hide:\nFormula Name]],Table_SummaryPI[[#This Row],[Quantity]],Table_PI[[#This Row],[List 1]],Table_PI[[#This Row],[List 2]],Table_PI[[#This Row],[List 3]],Table_PI[[#This Row],[Size]],Table_PI[[#This Row],[Input 1]],Table_PI[[#This Row],[Input 2]],Table_PI[[#This Row],[Input 3]],Table_PI[[#This Row],[Input 4]],'Customer Information'!$AR$12,101,ROW()),\"\"),\"\")","v":""},{"$f":"IF(Table_PI[[#This Row],[Input 2]]<>\"\",Table_PI[[#This Row],[Input 2]],\"\")","v":""},null,{"$f":"IFERROR(IF(AND(MeasureCalc(Table_PI[[#This Row],[Hide:\nFormula Name]],Table_SummaryPI[[#This Row],[Quantity]],Table_PI[[#This Row],[List 1]],Table_PI[[#This Row],[List 2]],Table_PI[[#This Row],[List 3]],Table_PI[[#This Row],[Size]],Table_PI[[#This Row],[Input 1]],Table_PI[[#This Row],[Input 2]],Table_PI[[#This Row],[Input 3]],Table_PI[[#This Row],[Input 4]],'Customer Information'!$AR$12,102,ROW())<>0,MeasureCalc(Table_PI[[#This Row],[Hide:\nFormula Name]],Table_SummaryPI[[#This Row],[Quantity]],Table_PI[[#This Row],[List 1]],Table_PI[[#This Row],[List 2]],Table_PI[[#This Row],[List 3]],Table_PI[[#This Row],[Size]],Table_PI[[#This Row],[Input 1]],Table_PI[[#This Row],[Input 2]],Table_PI[[#This Row],[Input 3]],Table_PI[[#This Row],[Input 4]],'Customer Information'!$AR$12,102,ROW())<>\"No Rebate\"),MeasureCalc(Table_PI[[#This Row],[Hide:\nFormula Name]],Table_SummaryPI[[#This Row],[Quantity]],Table_PI[[#This Row],[List 1]],Table_PI[[#This Row],[List 2]],Table_PI[[#This Row],[List 3]],Table_PI[[#This Row],[Size]],Table_PI[[#This Row],[Input 1]],Table_PI[[#This Row],[Input 2]],Table_PI[[#This Row],[Input 3]],Table_PI[[#This Row],[Input 4]],'Customer Information'!$AR$12,102,ROW()),\"\"),\"\")","v":""},{"$f":"IF(Table_PI[[#This Row],[Input 3]]<>\"\",Table_PI[[#This Row],[Input 3]],\"\")","v":""},null,{"$f":"IFERROR(IF(AND(MeasureCalc(Table_PI[[#This Row],[Hide:\nFormula Name]],Table_SummaryPI[[#This Row],[Quantity]],Table_PI[[#This Row],[List 1]],Table_PI[[#This Row],[List 2]],Table_PI[[#This Row],[List 3]],Table_PI[[#This Row],[Size]],Table_PI[[#This Row],[Input 1]],Table_PI[[#This Row],[Input 2]],Table_PI[[#This Row],[Input 3]],Table_PI[[#This Row],[Input 4]],'Customer Information'!$AR$12,103,ROW())<>0,MeasureCalc(Table_PI[[#This Row],[Hide:\nFormula Name]],Table_SummaryPI[[#This Row],[Quantity]],Table_PI[[#This Row],[List 1]],Table_PI[[#This Row],[List 2]],Table_PI[[#This Row],[List 3]],Table_PI[[#This Row],[Size]],Table_PI[[#This Row],[Input 1]],Table_PI[[#This Row],[Input 2]],Table_PI[[#This Row],[Input 3]],Table_PI[[#This Row],[Input 4]],'Customer Information'!$AR$12,103,ROW())<>\"No Rebate\"),MeasureCalc(Table_PI[[#This Row],[Hide:\nFormula Name]],Table_SummaryPI[[#This Row],[Quantity]],Table_PI[[#This Row],[List 1]],Table_PI[[#This Row],[List 2]],Table_PI[[#This Row],[List 3]],Table_PI[[#This Row],[Size]],Table_PI[[#This Row],[Input 1]],Table_PI[[#This Row],[Input 2]],Table_PI[[#This Row],[Input 3]],Table_PI[[#This Row],[Input 4]],'Customer Information'!$AR$12,103,ROW()),\"\"),\"\")","v":""},{"$f":"IF(Table_PI[[#This Row],[Input 4]]<>\"\",Table_PI[[#This Row],[Input 4]],\"\")","v":""},{"$f":"IF(Table_PI[[#This Row],[Quantity]]=\"\",\"\",Table_PI[[#This Row],[Quantity]])","v":""},{"$f":"IF(Table_PI[[#This Row],[Notes]]=\"\",\"\",Table_PI[[#This Row],[Notes]])","v":""},{"$f":"IF(OR(Table_PI[[#This Row],[Hide:\nBaseline kWh]]=\"\",Table_PI[[#This Row],[Hide:\nBaseline kWh]]=0),\"\",Table_PI[[#This Row],[Hide:\nBaseline kWh]])","v":""},{"$f":"IF(OR(Table_PI[[#This Row],[Hide:\nBaseline kW]]=\"\",Table_PI[[#This Row],[Hide:\nBaseline kW]]=0),\"\",Table_PI[[#This Row],[Hide:\nBaseline kW]])","v":""},{"$f":"IF(OR(Table_PI[[#This Row],[Hide:\nProposed kWh]]=\"\",Table_PI[[#This Row],[Hide:\nProposed kWh]]=0),\"\",Table_PI[[#This Row],[Hide:\nProposed kWh]])","v":""},{"$f":"IF(OR(Table_PI[[#This Row],[Hide:\nProposed kW]]=\"\",Table_PI[[#This Row],[Hide:\nProposed kW]]=0),\"\",Table_PI[[#This Row],[Hide:\nProposed kW]])","v":""},{"$f":"IF(OR(Table_PI[[#This Row],[Rebate]]=\"\",Table_PI[[#This Row],[Rebate]]=0),\"\",Table_PI[[#This Row],[Rebate]])","v":""},{"$f":"IF(OR(Table_PI[[#This Row],[Hide:\nIncremental Cost]]=\"\",Table_PI[[#This Row],[Hide:\nIncremental Cost]]=0),\"\",Table_PI[[#This Row],[Hide:\nIncremental Cost]])","v":""},{"$f":"IFERROR(IF(Table_SummaryPI[[#This Row],[kWhSavings]]=\"\",\"\",ROUND(Table_SummaryPI[[#This Row],[kWhSavings]]/$AG$401*'Customer Information'!$BC$17,2)),0)","v":""},{"$f":"IF(OR(Table_PI[[#This Row],[Annual kWh]]=\"\",Table_PI[[#This Row],[Annual kWh]]=0),\"\",Table_PI[[#This Row],[Annual kWh]])","v":""},{"$f":"IF(OR(Table_PI[[#This Row],[Peak kW]]=\"\",Table_PI[[#This Row],[Peak kW]]=0),\"\",Table_PI[[#This Row],[Peak kW]])","v":""},{"$f":"IFERROR(IF(Table_SummaryPI[[#This Row],[kWhSavings]]=\"\",\"\",$AU$9*Table_SummaryPI[[#This Row],[kWhSavings]]),0)","v":""},{"$f":"IFERROR(IF(Table_SummaryPI[[#This Row],[kWhSavings]]=\"\",\"\",$AU$14*Table_SummaryPI[[#This Row],[kWhSavings]]),0)","v":""},{"$f":"IFERROR(IF(Table_SummaryPI[[#This Row],[kWhSavings]]=\"\",\"\",$AU$18*Table_SummaryPI[[#This Row],[kWhSavings]]),0)","v":""},{"$f":"IFERROR(IF(Table_SummaryPI[[#This Row],[kWhSavings]]=\"\",\"\",$AU$22*Table_SummaryPI[[#This Row],[kWhSavings]]),0)","v":""},{"$f":"IFERROR(IF(MeasureCalc(Table_PI[[#This Row],[Hide:\nFormula Name]],Table_SummaryPI[[#This Row],[Quantity]],Table_PI[[#This Row],[List 1]],Table_PI[[#This Row],[List 2]],Table_PI[[#This Row],[List 3]],Table_PI[[#This Row],[Size]],Table_PI[[#This Row],[Input 1]],Table_PI[[#This Row],[Input 2]],Table_PI[[#This Row],[Input 3]],Table_PI[[#This Row],[Input 4]],'Customer Information'!$AR$12,200,ROW())<>\"No Rebate\",MeasureCalc(Table_PI[[#This Row],[Hide:\nFormula Name]],Table_SummaryPI[[#This Row],[Quantity]],Table_PI[[#This Row],[List 1]],Table_PI[[#This Row],[List 2]],Table_PI[[#This Row],[List 3]],Table_PI[[#This Row],[Size]],Table_PI[[#This Row],[Input 1]],Table_PI[[#This Row],[Input 2]],Table_PI[[#This Row],[Input 3]],Table_PI[[#This Row],[Input 4]],'Customer Information'!$AR$12,200,ROW()),\"\"),\"\")","v":""},{"$f":"IFERROR(IF(MeasureCalc(Table_PI[[#This Row],[Hide:\nFormula Name]],Table_SummaryPI[[#This Row],[Quantity]],Table_PI[[#This Row],[List 1]],Table_PI[[#This Row],[List 2]],Table_PI[[#This Row],[List 3]],Table_PI[[#This Row],[Size]],Table_PI[[#This Row],[Input 1]],Table_PI[[#This Row],[Input 2]],Table_PI[[#This Row],[Input 3]],Table_PI[[#This Row],[Input 4]],'Customer Information'!$AR$12,201,ROW())<>\"No Rebate\",MeasureCalc(Table_PI[[#This Row],[Hide:\nFormula Name]],Table_SummaryPI[[#This Row],[Quantity]],Table_PI[[#This Row],[List 1]],Table_PI[[#This Row],[List 2]],Table_PI[[#This Row],[List 3]],Table_PI[[#This Row],[Size]],Table_PI[[#This Row],[Input 1]],Table_PI[[#This Row],[Input 2]],Table_PI[[#This Row],[Input 3]],Table_PI[[#This Row],[Input 4]],'Customer Information'!$AR$12,201,ROW()),\"\"),\"\")","v":""}]
[{"$f":"Table_PI[[#This Row],[Line No.]]","v":""},{"$f":"IF(Table_SummaryPI[[#This Row],[MeassureCategory]]<>\"\",CONCATENATE(Table_SummaryPI[[#This Row],[MeassureCategory]],  \" - \", Table_SummaryPI[[#This Row],[ProposedMeasureCategory]],  \" - \", TEXT(Table_SummaryPI[[#This Row],[Size]],\"#,##0.00\"),\" \",Table_SummaryPI[[#This Row],[SizeUnit]]),\"\")","v":""},{"$f":"SUBSTITUTE(Table_PI[[#This Row],[Measure]],\"     \",\"\",1)","v":""},{"$f":"IF(Table_PI[[#This Row],[List 1]]<>\"\",Table_PI[[#This Row],[List 1]],\"\")","v":""},{"$f":"IF(Table_PI[[#This Row],[List 2]]<>\"\",Table_PI[[#This Row],[List 2]],\"\")","v":""},{"$f":"IF(Table_PI[[#This Row],[List 3]]<>\"\",Table_PI[[#This Row],[List 3]],\"\")","v":""},{"$f":"IF(Table_PI[[#This Row],[Manufacturer]]=\"\",\"\",Table_PI[[#This Row],[Manufacturer]])","v":""},{"$f":"IF(Table_PI[[#This Row],[Model Number]]=\"\",\"\",Table_PI[[#This Row],[Model Number]])","v":""},{"$f":"IF(Table_PI[[#This Row],[Serial Number(s)]]=\"\",\"\",Table_PI[[#This Row],[Serial Number(s)]])","v":""},null,{"$f":"IF(Table_PI[[#This Row],[Size]]=\"\",\"\",Table_PI[[#This Row],[Size]])","v":""},null,{"$f":"IFERROR(IF(AND(MeasureCalc(Table_PI[[#This Row],[Hide:\nFormula Name]],Table_SummaryPI[[#This Row],[Quantity]],Table_PI[[#This Row],[List 1]],Table_PI[[#This Row],[List 2]],Table_PI[[#This Row],[List 3]],Table_PI[[#This Row],[Size]],Table_PI[[#This Row],[Input 1]],Table_PI[[#This Row],[Input 2]],Table_PI[[#This Row],[Input 3]],Table_PI[[#This Row],[Input 4]],'Customer Information'!$AR$12,100,ROW())<>0,MeasureCalc(Table_PI[[#This Row],[Hide:\nFormula Name]],Table_SummaryPI[[#This Row],[Quantity]],Table_PI[[#This Row],[List 1]],Table_PI[[#This Row],[List 2]],Table_PI[[#This Row],[List 3]],Table_PI[[#This Row],[Size]],Table_PI[[#This Row],[Input 1]],Table_PI[[#This Row],[Input 2]],Table_PI[[#This Row],[Input 3]],Table_PI[[#This Row],[Input 4]],'Customer Information'!$AR$12,100,ROW())<>\"No Rebate\"),MeasureCalc(Table_PI[[#This Row],[Hide:\nFormula Name]],Table_SummaryPI[[#This Row],[Quantity]],Table_PI[[#This Row],[List 1]],Table_PI[[#This Row],[List 2]],Table_PI[[#This Row],[List 3]],Table_PI[[#This Row],[Size]],Table_PI[[#This Row],[Input 1]],Table_PI[[#This Row],[Input 2]],Table_PI[[#This Row],[Input 3]],Table_PI[[#This Row],[Input 4]],'Customer Information'!$AR$12,100,ROW()),\"\"),\"\")","v":""},{"$f":"IF(Table_PI[[#This Row],[Input 1]]<>\"\",Table_PI[[#This Row],[Input 1]],\"\")","v":""},null,{"$f":"IFERROR(IF(AND(MeasureCalc(Table_PI[[#This Row],[Hide:\nFormula Name]],Table_SummaryPI[[#This Row],[Quantity]],Table_PI[[#This Row],[List 1]],Table_PI[[#This Row],[List 2]],Table_PI[[#This Row],[List 3]],Table_PI[[#This Row],[Size]],Table_PI[[#This Row],[Input 1]],Table_PI[[#This Row],[Input 2]],Table_PI[[#This Row],[Input 3]],Table_PI[[#This Row],[Input 4]],'Customer Information'!$AR$12,101,ROW())<>0,MeasureCalc(Table_PI[[#This Row],[Hide:\nFormula Name]],Table_SummaryPI[[#This Row],[Quantity]],Table_PI[[#This Row],[List 1]],Table_PI[[#This Row],[List 2]],Table_PI[[#This Row],[List 3]],Table_PI[[#This Row],[Size]],Table_PI[[#This Row],[Input 1]],Table_PI[[#This Row],[Input 2]],Table_PI[[#This Row],[Input 3]],Table_PI[[#This Row],[Input 4]],'Customer Information'!$AR$12,101,ROW())<>\"No Rebate\"),MeasureCalc(Table_PI[[#This Row],[Hide:\nFormula Name]],Table_SummaryPI[[#This Row],[Quantity]],Table_PI[[#This Row],[List 1]],Table_PI[[#This Row],[List 2]],Table_PI[[#This Row],[List 3]],Table_PI[[#This Row],[Size]],Table_PI[[#This Row],[Input 1]],Table_PI[[#This Row],[Input 2]],Table_PI[[#This Row],[Input 3]],Table_PI[[#This Row],[Input 4]],'Customer Information'!$AR$12,101,ROW()),\"\"),\"\")","v":""},{"$f":"IF(Table_PI[[#This Row],[Input 2]]<>\"\",Table_PI[[#This Row],[Input 2]],\"\")","v":""},null,{"$f":"IFERROR(IF(AND(MeasureCalc(Table_PI[[#This Row],[Hide:\nFormula Name]],Table_SummaryPI[[#This Row],[Quantity]],Table_PI[[#This Row],[List 1]],Table_PI[[#This Row],[List 2]],Table_PI[[#This Row],[List 3]],Table_PI[[#This Row],[Size]],Table_PI[[#This Row],[Input 1]],Table_PI[[#This Row],[Input 2]],Table_PI[[#This Row],[Input 3]],Table_PI[[#This Row],[Input 4]],'Customer Information'!$AR$12,102,ROW())<>0,MeasureCalc(Table_PI[[#This Row],[Hide:\nFormula Name]],Table_SummaryPI[[#This Row],[Quantity]],Table_PI[[#This Row],[List 1]],Table_PI[[#This Row],[List 2]],Table_PI[[#This Row],[List 3]],Table_PI[[#This Row],[Size]],Table_PI[[#This Row],[Input 1]],Table_PI[[#This Row],[Input 2]],Table_PI[[#This Row],[Input 3]],Table_PI[[#This Row],[Input 4]],'Customer Information'!$AR$12,102,ROW())<>\"No Rebate\"),MeasureCalc(Table_PI[[#This Row],[Hide:\nFormula Name]],Table_SummaryPI[[#This Row],[Quantity]],Table_PI[[#This Row],[List 1]],Table_PI[[#This Row],[List 2]],Table_PI[[#This Row],[List 3]],Table_PI[[#This Row],[Size]],Table_PI[[#This Row],[Input 1]],Table_PI[[#This Row],[Input 2]],Table_PI[[#This Row],[Input 3]],Table_PI[[#This Row],[Input 4]],'Customer Information'!$AR$12,102,ROW()),\"\"),\"\")","v":""},{"$f":"IF(Table_PI[[#This Row],[Input 3]]<>\"\",Table_PI[[#This Row],[Input 3]],\"\")","v":""},null,{"$f":"IFERROR(IF(AND(MeasureCalc(Table_PI[[#This Row],[Hide:\nFormula Name]],Table_SummaryPI[[#This Row],[Quantity]],Table_PI[[#This Row],[List 1]],Table_PI[[#This Row],[List 2]],Table_PI[[#This Row],[List 3]],Table_PI[[#This Row],[Size]],Table_PI[[#This Row],[Input 1]],Table_PI[[#This Row],[Input 2]],Table_PI[[#This Row],[Input 3]],Table_PI[[#This Row],[Input 4]],'Customer Information'!$AR$12,103,ROW())<>0,MeasureCalc(Table_PI[[#This Row],[Hide:\nFormula Name]],Table_SummaryPI[[#This Row],[Quantity]],Table_PI[[#This Row],[List 1]],Table_PI[[#This Row],[List 2]],Table_PI[[#This Row],[List 3]],Table_PI[[#This Row],[Size]],Table_PI[[#This Row],[Input 1]],Table_PI[[#This Row],[Input 2]],Table_PI[[#This Row],[Input 3]],Table_PI[[#This Row],[Input 4]],'Customer Information'!$AR$12,103,ROW())<>\"No Rebate\"),MeasureCalc(Table_PI[[#This Row],[Hide:\nFormula Name]],Table_SummaryPI[[#This Row],[Quantity]],Table_PI[[#This Row],[List 1]],Table_PI[[#This Row],[List 2]],Table_PI[[#This Row],[List 3]],Table_PI[[#This Row],[Size]],Table_PI[[#This Row],[Input 1]],Table_PI[[#This Row],[Input 2]],Table_PI[[#This Row],[Input 3]],Table_PI[[#This Row],[Input 4]],'Customer Information'!$AR$12,103,ROW()),\"\"),\"\")","v":""},{"$f":"IF(Table_PI[[#This Row],[Input 4]]<>\"\",Table_PI[[#This Row],[Input 4]],\"\")","v":""},{"$f":"IF(Table_PI[[#This Row],[Quantity]]=\"\",\"\",Table_PI[[#This Row],[Quantity]])","v":""},{"$f":"IF(Table_PI[[#This Row],[Notes]]=\"\",\"\",Table_PI[[#This Row],[Notes]])","v":""},{"$f":"IF(OR(Table_PI[[#This Row],[Hide:\nBaseline kWh]]=\"\",Table_PI[[#This Row],[Hide:\nBaseline kWh]]=0),\"\",Table_PI[[#This Row],[Hide:\nBaseline kWh]])","v":""},{"$f":"IF(OR(Table_PI[[#This Row],[Hide:\nBaseline kW]]=\"\",Table_PI[[#This Row],[Hide:\nBaseline kW]]=0),\"\",Table_PI[[#This Row],[Hide:\nBaseline kW]])","v":""},{"$f":"IF(OR(Table_PI[[#This Row],[Hide:\nProposed kWh]]=\"\",Table_PI[[#This Row],[Hide:\nProposed kWh]]=0),\"\",Table_PI[[#This Row],[Hide:\nProposed kWh]])","v":""},{"$f":"IF(OR(Table_PI[[#This Row],[Hide:\nProposed kW]]=\"\",Table_PI[[#This Row],[Hide:\nProposed kW]]=0),\"\",Table_PI[[#This Row],[Hide:\nProposed kW]])","v":""},{"$f":"IF(OR(Table_PI[[#This Row],[Rebate]]=\"\",Table_PI[[#This Row],[Rebate]]=0),\"\",Table_PI[[#This Row],[Rebate]])","v":""},{"$f":"IF(OR(Table_PI[[#This Row],[Hide:\nIncremental Cost]]=\"\",Table_PI[[#This Row],[Hide:\nIncremental Cost]]=0),\"\",Table_PI[[#This Row],[Hide:\nIncremental Cost]])","v":""},{"$f":"IFERROR(IF(Table_SummaryPI[[#This Row],[kWhSavings]]=\"\",\"\",ROUND(Table_SummaryPI[[#This Row],[kWhSavings]]/$AG$401*'Customer Information'!$BC$17,2)),0)","v":""},{"$f":"IF(OR(Table_PI[[#This Row],[Annual kWh]]=\"\",Table_PI[[#This Row],[Annual kWh]]=0),\"\",Table_PI[[#This Row],[Annual kWh]])","v":""},{"$f":"IF(OR(Table_PI[[#This Row],[Peak kW]]=\"\",Table_PI[[#This Row],[Peak kW]]=0),\"\",Table_PI[[#This Row],[Peak kW]])","v":""},{"$f":"IFERROR(IF(Table_SummaryPI[[#This Row],[kWhSavings]]=\"\",\"\",$AU$9*Table_SummaryPI[[#This Row],[kWhSavings]]),0)","v":""},{"$f":"IFERROR(IF(Table_SummaryPI[[#This Row],[kWhSavings]]=\"\",\"\",$AU$14*Table_SummaryPI[[#This Row],[kWhSavings]]),0)","v":""},{"$f":"IFERROR(IF(Table_SummaryPI[[#This Row],[kWhSavings]]=\"\",\"\",$AU$18*Table_SummaryPI[[#This Row],[kWhSavings]]),0)","v":""},{"$f":"IFERROR(IF(Table_SummaryPI[[#This Row],[kWhSavings]]=\"\",\"\",$AU$22*Table_SummaryPI[[#This Row],[kWhSavings]]),0)","v":""},{"$f":"IFERROR(IF(MeasureCalc(Table_PI[[#This Row],[Hide:\nFormula Name]],Table_SummaryPI[[#This Row],[Quantity]],Table_PI[[#This Row],[List 1]],Table_PI[[#This Row],[List 2]],Table_PI[[#This Row],[List 3]],Table_PI[[#This Row],[Size]],Table_PI[[#This Row],[Input 1]],Table_PI[[#This Row],[Input 2]],Table_PI[[#This Row],[Input 3]],Table_PI[[#This Row],[Input 4]],'Customer Information'!$AR$12,200,ROW())<>\"No Rebate\",MeasureCalc(Table_PI[[#This Row],[Hide:\nFormula Name]],Table_SummaryPI[[#This Row],[Quantity]],Table_PI[[#This Row],[List 1]],Table_PI[[#This Row],[List 2]],Table_PI[[#This Row],[List 3]],Table_PI[[#This Row],[Size]],Table_PI[[#This Row],[Input 1]],Table_PI[[#This Row],[Input 2]],Table_PI[[#This Row],[Input 3]],Table_PI[[#This Row],[Input 4]],'Customer Information'!$AR$12,200,ROW()),\"\"),\"\")","v":""},{"$f":"IFERROR(IF(MeasureCalc(Table_PI[[#This Row],[Hide:\nFormula Name]],Table_SummaryPI[[#This Row],[Quantity]],Table_PI[[#This Row],[List 1]],Table_PI[[#This Row],[List 2]],Table_PI[[#This Row],[List 3]],Table_PI[[#This Row],[Size]],Table_PI[[#This Row],[Input 1]],Table_PI[[#This Row],[Input 2]],Table_PI[[#This Row],[Input 3]],Table_PI[[#This Row],[Input 4]],'Customer Information'!$AR$12,201,ROW())<>\"No Rebate\",MeasureCalc(Table_PI[[#This Row],[Hide:\nFormula Name]],Table_SummaryPI[[#This Row],[Quantity]],Table_PI[[#This Row],[List 1]],Table_PI[[#This Row],[List 2]],Table_PI[[#This Row],[List 3]],Table_PI[[#This Row],[Size]],Table_PI[[#This Row],[Input 1]],Table_PI[[#This Row],[Input 2]],Table_PI[[#This Row],[Input 3]],Table_PI[[#This Row],[Input 4]],'Customer Information'!$AR$12,201,ROW()),\"\"),\"\")","v":""}]
[{"$f":"Table_PI[[#This Row],[Line No.]]","v":""},{"$f":"IF(Table_SummaryPI[[#This Row],[MeassureCategory]]<>\"\",CONCATENATE(Table_SummaryPI[[#This Row],[MeassureCategory]],  \" - \", Table_SummaryPI[[#This Row],[ProposedMeasureCategory]],  \" - \", TEXT(Table_SummaryPI[[#This Row],[Size]],\"#,##0.00\"),\" \",Table_SummaryPI[[#This Row],[SizeUnit]]),\"\")","v":""},{"$f":"SUBSTITUTE(Table_PI[[#This Row],[Measure]],\"     \",\"\",1)","v":""},{"$f":"IF(Table_PI[[#This Row],[List 1]]<>\"\",Table_PI[[#This Row],[List 1]],\"\")","v":""},{"$f":"IF(Table_PI[[#This Row],[List 2]]<>\"\",Table_PI[[#This Row],[List 2]],\"\")","v":""},{"$f":"IF(Table_PI[[#This Row],[List 3]]<>\"\",Table_PI[[#This Row],[List 3]],\"\")","v":""},{"$f":"IF(Table_PI[[#This Row],[Manufacturer]]=\"\",\"\",Table_PI[[#This Row],[Manufacturer]])","v":""},{"$f":"IF(Table_PI[[#This Row],[Model Number]]=\"\",\"\",Table_PI[[#This Row],[Model Number]])","v":""},{"$f":"IF(Table_PI[[#This Row],[Serial Number(s)]]=\"\",\"\",Table_PI[[#This Row],[Serial Number(s)]])","v":""},null,{"$f":"IF(Table_PI[[#This Row],[Size]]=\"\",\"\",Table_PI[[#This Row],[Size]])","v":""},null,{"$f":"IFERROR(IF(AND(MeasureCalc(Table_PI[[#This Row],[Hide:\nFormula Name]],Table_SummaryPI[[#This Row],[Quantity]],Table_PI[[#This Row],[List 1]],Table_PI[[#This Row],[List 2]],Table_PI[[#This Row],[List 3]],Table_PI[[#This Row],[Size]],Table_PI[[#This Row],[Input 1]],Table_PI[[#This Row],[Input 2]],Table_PI[[#This Row],[Input 3]],Table_PI[[#This Row],[Input 4]],'Customer Information'!$AR$12,100,ROW())<>0,MeasureCalc(Table_PI[[#This Row],[Hide:\nFormula Name]],Table_SummaryPI[[#This Row],[Quantity]],Table_PI[[#This Row],[List 1]],Table_PI[[#This Row],[List 2]],Table_PI[[#This Row],[List 3]],Table_PI[[#This Row],[Size]],Table_PI[[#This Row],[Input 1]],Table_PI[[#This Row],[Input 2]],Table_PI[[#This Row],[Input 3]],Table_PI[[#This Row],[Input 4]],'Customer Information'!$AR$12,100,ROW())<>\"No Rebate\"),MeasureCalc(Table_PI[[#This Row],[Hide:\nFormula Name]],Table_SummaryPI[[#This Row],[Quantity]],Table_PI[[#This Row],[List 1]],Table_PI[[#This Row],[List 2]],Table_PI[[#This Row],[List 3]],Table_PI[[#This Row],[Size]],Table_PI[[#This Row],[Input 1]],Table_PI[[#This Row],[Input 2]],Table_PI[[#This Row],[Input 3]],Table_PI[[#This Row],[Input 4]],'Customer Information'!$AR$12,100,ROW()),\"\"),\"\")","v":""},{"$f":"IF(Table_PI[[#This Row],[Input 1]]<>\"\",Table_PI[[#This Row],[Input 1]],\"\")","v":""},null,{"$f":"IFERROR(IF(AND(MeasureCalc(Table_PI[[#This Row],[Hide:\nFormula Name]],Table_SummaryPI[[#This Row],[Quantity]],Table_PI[[#This Row],[List 1]],Table_PI[[#This Row],[List 2]],Table_PI[[#This Row],[List 3]],Table_PI[[#This Row],[Size]],Table_PI[[#This Row],[Input 1]],Table_PI[[#This Row],[Input 2]],Table_PI[[#This Row],[Input 3]],Table_PI[[#This Row],[Input 4]],'Customer Information'!$AR$12,101,ROW())<>0,MeasureCalc(Table_PI[[#This Row],[Hide:\nFormula Name]],Table_SummaryPI[[#This Row],[Quantity]],Table_PI[[#This Row],[List 1]],Table_PI[[#This Row],[List 2]],Table_PI[[#This Row],[List 3]],Table_PI[[#This Row],[Size]],Table_PI[[#This Row],[Input 1]],Table_PI[[#This Row],[Input 2]],Table_PI[[#This Row],[Input 3]],Table_PI[[#This Row],[Input 4]],'Customer Information'!$AR$12,101,ROW())<>\"No Rebate\"),MeasureCalc(Table_PI[[#This Row],[Hide:\nFormula Name]],Table_SummaryPI[[#This Row],[Quantity]],Table_PI[[#This Row],[List 1]],Table_PI[[#This Row],[List 2]],Table_PI[[#This Row],[List 3]],Table_PI[[#This Row],[Size]],Table_PI[[#This Row],[Input 1]],Table_PI[[#This Row],[Input 2]],Table_PI[[#This Row],[Input 3]],Table_PI[[#This Row],[Input 4]],'Customer Information'!$AR$12,101,ROW()),\"\"),\"\")","v":""},{"$f":"IF(Table_PI[[#This Row],[Input 2]]<>\"\",Table_PI[[#This Row],[Input 2]],\"\")","v":""},null,{"$f":"IFERROR(IF(AND(MeasureCalc(Table_PI[[#This Row],[Hide:\nFormula Name]],Table_SummaryPI[[#This Row],[Quantity]],Table_PI[[#This Row],[List 1]],Table_PI[[#This Row],[List 2]],Table_PI[[#This Row],[List 3]],Table_PI[[#This Row],[Size]],Table_PI[[#This Row],[Input 1]],Table_PI[[#This Row],[Input 2]],Table_PI[[#This Row],[Input 3]],Table_PI[[#This Row],[Input 4]],'Customer Information'!$AR$12,102,ROW())<>0,MeasureCalc(Table_PI[[#This Row],[Hide:\nFormula Name]],Table_SummaryPI[[#This Row],[Quantity]],Table_PI[[#This Row],[List 1]],Table_PI[[#This Row],[List 2]],Table_PI[[#This Row],[List 3]],Table_PI[[#This Row],[Size]],Table_PI[[#This Row],[Input 1]],Table_PI[[#This Row],[Input 2]],Table_PI[[#This Row],[Input 3]],Table_PI[[#This Row],[Input 4]],'Customer Information'!$AR$12,102,ROW())<>\"No Rebate\"),MeasureCalc(Table_PI[[#This Row],[Hide:\nFormula Name]],Table_SummaryPI[[#This Row],[Quantity]],Table_PI[[#This Row],[List 1]],Table_PI[[#This Row],[List 2]],Table_PI[[#This Row],[List 3]],Table_PI[[#This Row],[Size]],Table_PI[[#This Row],[Input 1]],Table_PI[[#This Row],[Input 2]],Table_PI[[#This Row],[Input 3]],Table_PI[[#This Row],[Input 4]],'Customer Information'!$AR$12,102,ROW()),\"\"),\"\")","v":""},{"$f":"IF(Table_PI[[#This Row],[Input 3]]<>\"\",Table_PI[[#This Row],[Input 3]],\"\")","v":""},null,{"$f":"IFERROR(IF(AND(MeasureCalc(Table_PI[[#This Row],[Hide:\nFormula Name]],Table_SummaryPI[[#This Row],[Quantity]],Table_PI[[#This Row],[List 1]],Table_PI[[#This Row],[List 2]],Table_PI[[#This Row],[List 3]],Table_PI[[#This Row],[Size]],Table_PI[[#This Row],[Input 1]],Table_PI[[#This Row],[Input 2]],Table_PI[[#This Row],[Input 3]],Table_PI[[#This Row],[Input 4]],'Customer Information'!$AR$12,103,ROW())<>0,MeasureCalc(Table_PI[[#This Row],[Hide:\nFormula Name]],Table_SummaryPI[[#This Row],[Quantity]],Table_PI[[#This Row],[List 1]],Table_PI[[#This Row],[List 2]],Table_PI[[#This Row],[List 3]],Table_PI[[#This Row],[Size]],Table_PI[[#This Row],[Input 1]],Table_PI[[#This Row],[Input 2]],Table_PI[[#This Row],[Input 3]],Table_PI[[#This Row],[Input 4]],'Customer Information'!$AR$12,103,ROW())<>\"No Rebate\"),MeasureCalc(Table_PI[[#This Row],[Hide:\nFormula Name]],Table_SummaryPI[[#This Row],[Quantity]],Table_PI[[#This Row],[List 1]],Table_PI[[#This Row],[List 2]],Table_PI[[#This Row],[List 3]],Table_PI[[#This Row],[Size]],Table_PI[[#This Row],[Input 1]],Table_PI[[#This Row],[Input 2]],Table_PI[[#This Row],[Input 3]],Table_PI[[#This Row],[Input 4]],'Customer Information'!$AR$12,103,ROW()),\"\"),\"\")","v":""},{"$f":"IF(Table_PI[[#This Row],[Input 4]]<>\"\",Table_PI[[#This Row],[Input 4]],\"\")","v":""},{"$f":"IF(Table_PI[[#This Row],[Quantity]]=\"\",\"\",Table_PI[[#This Row],[Quantity]])","v":""},{"$f":"IF(Table_PI[[#This Row],[Notes]]=\"\",\"\",Table_PI[[#This Row],[Notes]])","v":""},{"$f":"IF(OR(Table_PI[[#This Row],[Hide:\nBaseline kWh]]=\"\",Table_PI[[#This Row],[Hide:\nBaseline kWh]]=0),\"\",Table_PI[[#This Row],[Hide:\nBaseline kWh]])","v":""},{"$f":"IF(OR(Table_PI[[#This Row],[Hide:\nBaseline kW]]=\"\",Table_PI[[#This Row],[Hide:\nBaseline kW]]=0),\"\",Table_PI[[#This Row],[Hide:\nBaseline kW]])","v":""},{"$f":"IF(OR(Table_PI[[#This Row],[Hide:\nProposed kWh]]=\"\",Table_PI[[#This Row],[Hide:\nProposed kWh]]=0),\"\",Table_PI[[#This Row],[Hide:\nProposed kWh]])","v":""},{"$f":"IF(OR(Table_PI[[#This Row],[Hide:\nProposed kW]]=\"\",Table_PI[[#This Row],[Hide:\nProposed kW]]=0),\"\",Table_PI[[#This Row],[Hide:\nProposed kW]])","v":""},{"$f":"IF(OR(Table_PI[[#This Row],[Rebate]]=\"\",Table_PI[[#This Row],[Rebate]]=0),\"\",Table_PI[[#This Row],[Rebate]])","v":""},{"$f":"IF(OR(Table_PI[[#This Row],[Hide:\nIncremental Cost]]=\"\",Table_PI[[#This Row],[Hide:\nIncremental Cost]]=0),\"\",Table_PI[[#This Row],[Hide:\nIncremental Cost]])","v":""},{"$f":"IFERROR(IF(Table_SummaryPI[[#This Row],[kWhSavings]]=\"\",\"\",ROUND(Table_SummaryPI[[#This Row],[kWhSavings]]/$AG$401*'Customer Information'!$BC$17,2)),0)","v":""},{"$f":"IF(OR(Table_PI[[#This Row],[Annual kWh]]=\"\",Table_PI[[#This Row],[Annual kWh]]=0),\"\",Table_PI[[#This Row],[Annual kWh]])","v":""},{"$f":"IF(OR(Table_PI[[#This Row],[Peak kW]]=\"\",Table_PI[[#This Row],[Peak kW]]=0),\"\",Table_PI[[#This Row],[Peak kW]])","v":""},{"$f":"IFERROR(IF(Table_SummaryPI[[#This Row],[kWhSavings]]=\"\",\"\",$AU$9*Table_SummaryPI[[#This Row],[kWhSavings]]),0)","v":""},{"$f":"IFERROR(IF(Table_SummaryPI[[#This Row],[kWhSavings]]=\"\",\"\",$AU$14*Table_SummaryPI[[#This Row],[kWhSavings]]),0)","v":""},{"$f":"IFERROR(IF(Table_SummaryPI[[#This Row],[kWhSavings]]=\"\",\"\",$AU$18*Table_SummaryPI[[#This Row],[kWhSavings]]),0)","v":""},{"$f":"IFERROR(IF(Table_SummaryPI[[#This Row],[kWhSavings]]=\"\",\"\",$AU$22*Table_SummaryPI[[#This Row],[kWhSavings]]),0)","v":""},{"$f":"IFERROR(IF(MeasureCalc(Table_PI[[#This Row],[Hide:\nFormula Name]],Table_SummaryPI[[#This Row],[Quantity]],Table_PI[[#This Row],[List 1]],Table_PI[[#This Row],[List 2]],Table_PI[[#This Row],[List 3]],Table_PI[[#This Row],[Size]],Table_PI[[#This Row],[Input 1]],Table_PI[[#This Row],[Input 2]],Table_PI[[#This Row],[Input 3]],Table_PI[[#This Row],[Input 4]],'Customer Information'!$AR$12,200,ROW())<>\"No Rebate\",MeasureCalc(Table_PI[[#This Row],[Hide:\nFormula Name]],Table_SummaryPI[[#This Row],[Quantity]],Table_PI[[#This Row],[List 1]],Table_PI[[#This Row],[List 2]],Table_PI[[#This Row],[List 3]],Table_PI[[#This Row],[Size]],Table_PI[[#This Row],[Input 1]],Table_PI[[#This Row],[Input 2]],Table_PI[[#This Row],[Input 3]],Table_PI[[#This Row],[Input 4]],'Customer Information'!$AR$12,200,ROW()),\"\"),\"\")","v":""},{"$f":"IFERROR(IF(MeasureCalc(Table_PI[[#This Row],[Hide:\nFormula Name]],Table_SummaryPI[[#This Row],[Quantity]],Table_PI[[#This Row],[List 1]],Table_PI[[#This Row],[List 2]],Table_PI[[#This Row],[List 3]],Table_PI[[#This Row],[Size]],Table_PI[[#This Row],[Input 1]],Table_PI[[#This Row],[Input 2]],Table_PI[[#This Row],[Input 3]],Table_PI[[#This Row],[Input 4]],'Customer Information'!$AR$12,201,ROW())<>\"No Rebate\",MeasureCalc(Table_PI[[#This Row],[Hide:\nFormula Name]],Table_SummaryPI[[#This Row],[Quantity]],Table_PI[[#This Row],[List 1]],Table_PI[[#This Row],[List 2]],Table_PI[[#This Row],[List 3]],Table_PI[[#This Row],[Size]],Table_PI[[#This Row],[Input 1]],Table_PI[[#This Row],[Input 2]],Table_PI[[#This Row],[Input 3]],Table_PI[[#This Row],[Input 4]],'Customer Information'!$AR$12,201,ROW()),\"\"),\"\")","v":""}]
[{"$f":"Table_PI[[#This Row],[Line No.]]","v":""},{"$f":"IF(Table_SummaryPI[[#This Row],[MeassureCategory]]<>\"\",CONCATENATE(Table_SummaryPI[[#This Row],[MeassureCategory]],  \" - \", Table_SummaryPI[[#This Row],[ProposedMeasureCategory]],  \" - \", TEXT(Table_SummaryPI[[#This Row],[Size]],\"#,##0.00\"),\" \",Table_SummaryPI[[#This Row],[SizeUnit]]),\"\")","v":""},{"$f":"SUBSTITUTE(Table_PI[[#This Row],[Measure]],\"     \",\"\",1)","v":""},{"$f":"IF(Table_PI[[#This Row],[List 1]]<>\"\",Table_PI[[#This Row],[List 1]],\"\")","v":""},{"$f":"IF(Table_PI[[#This Row],[List 2]]<>\"\",Table_PI[[#This Row],[List 2]],\"\")","v":""},{"$f":"IF(Table_PI[[#This Row],[List 3]]<>\"\",Table_PI[[#This Row],[List 3]],\"\")","v":""},{"$f":"IF(Table_PI[[#This Row],[Manufacturer]]=\"\",\"\",Table_PI[[#This Row],[Manufacturer]])","v":""},{"$f":"IF(Table_PI[[#This Row],[Model Number]]=\"\",\"\",Table_PI[[#This Row],[Model Number]])","v":""},{"$f":"IF(Table_PI[[#This Row],[Serial Number(s)]]=\"\",\"\",Table_PI[[#This Row],[Serial Number(s)]])","v":""},null,{"$f":"IF(Table_PI[[#This Row],[Size]]=\"\",\"\",Table_PI[[#This Row],[Size]])","v":""},null,{"$f":"IFERROR(IF(AND(MeasureCalc(Table_PI[[#This Row],[Hide:\nFormula Name]],Table_SummaryPI[[#This Row],[Quantity]],Table_PI[[#This Row],[List 1]],Table_PI[[#This Row],[List 2]],Table_PI[[#This Row],[List 3]],Table_PI[[#This Row],[Size]],Table_PI[[#This Row],[Input 1]],Table_PI[[#This Row],[Input 2]],Table_PI[[#This Row],[Input 3]],Table_PI[[#This Row],[Input 4]],'Customer Information'!$AR$12,100,ROW())<>0,MeasureCalc(Table_PI[[#This Row],[Hide:\nFormula Name]],Table_SummaryPI[[#This Row],[Quantity]],Table_PI[[#This Row],[List 1]],Table_PI[[#This Row],[List 2]],Table_PI[[#This Row],[List 3]],Table_PI[[#This Row],[Size]],Table_PI[[#This Row],[Input 1]],Table_PI[[#This Row],[Input 2]],Table_PI[[#This Row],[Input 3]],Table_PI[[#This Row],[Input 4]],'Customer Information'!$AR$12,100,ROW())<>\"No Rebate\"),MeasureCalc(Table_PI[[#This Row],[Hide:\nFormula Name]],Table_SummaryPI[[#This Row],[Quantity]],Table_PI[[#This Row],[List 1]],Table_PI[[#This Row],[List 2]],Table_PI[[#This Row],[List 3]],Table_PI[[#This Row],[Size]],Table_PI[[#This Row],[Input 1]],Table_PI[[#This Row],[Input 2]],Table_PI[[#This Row],[Input 3]],Table_PI[[#This Row],[Input 4]],'Customer Information'!$AR$12,100,ROW()),\"\"),\"\")","v":""},{"$f":"IF(Table_PI[[#This Row],[Input 1]]<>\"\",Table_PI[[#This Row],[Input 1]],\"\")","v":""},null,{"$f":"IFERROR(IF(AND(MeasureCalc(Table_PI[[#This Row],[Hide:\nFormula Name]],Table_SummaryPI[[#This Row],[Quantity]],Table_PI[[#This Row],[List 1]],Table_PI[[#This Row],[List 2]],Table_PI[[#This Row],[List 3]],Table_PI[[#This Row],[Size]],Table_PI[[#This Row],[Input 1]],Table_PI[[#This Row],[Input 2]],Table_PI[[#This Row],[Input 3]],Table_PI[[#This Row],[Input 4]],'Customer Information'!$AR$12,101,ROW())<>0,MeasureCalc(Table_PI[[#This Row],[Hide:\nFormula Name]],Table_SummaryPI[[#This Row],[Quantity]],Table_PI[[#This Row],[List 1]],Table_PI[[#This Row],[List 2]],Table_PI[[#This Row],[List 3]],Table_PI[[#This Row],[Size]],Table_PI[[#This Row],[Input 1]],Table_PI[[#This Row],[Input 2]],Table_PI[[#This Row],[Input 3]],Table_PI[[#This Row],[Input 4]],'Customer Information'!$AR$12,101,ROW())<>\"No Rebate\"),MeasureCalc(Table_PI[[#This Row],[Hide:\nFormula Name]],Table_SummaryPI[[#This Row],[Quantity]],Table_PI[[#This Row],[List 1]],Table_PI[[#This Row],[List 2]],Table_PI[[#This Row],[List 3]],Table_PI[[#This Row],[Size]],Table_PI[[#This Row],[Input 1]],Table_PI[[#This Row],[Input 2]],Table_PI[[#This Row],[Input 3]],Table_PI[[#This Row],[Input 4]],'Customer Information'!$AR$12,101,ROW()),\"\"),\"\")","v":""},{"$f":"IF(Table_PI[[#This Row],[Input 2]]<>\"\",Table_PI[[#This Row],[Input 2]],\"\")","v":""},null,{"$f":"IFERROR(IF(AND(MeasureCalc(Table_PI[[#This Row],[Hide:\nFormula Name]],Table_SummaryPI[[#This Row],[Quantity]],Table_PI[[#This Row],[List 1]],Table_PI[[#This Row],[List 2]],Table_PI[[#This Row],[List 3]],Table_PI[[#This Row],[Size]],Table_PI[[#This Row],[Input 1]],Table_PI[[#This Row],[Input 2]],Table_PI[[#This Row],[Input 3]],Table_PI[[#This Row],[Input 4]],'Customer Information'!$AR$12,102,ROW())<>0,MeasureCalc(Table_PI[[#This Row],[Hide:\nFormula Name]],Table_SummaryPI[[#This Row],[Quantity]],Table_PI[[#This Row],[List 1]],Table_PI[[#This Row],[List 2]],Table_PI[[#This Row],[List 3]],Table_PI[[#This Row],[Size]],Table_PI[[#This Row],[Input 1]],Table_PI[[#This Row],[Input 2]],Table_PI[[#This Row],[Input 3]],Table_PI[[#This Row],[Input 4]],'Customer Information'!$AR$12,102,ROW())<>\"No Rebate\"),MeasureCalc(Table_PI[[#This Row],[Hide:\nFormula Name]],Table_SummaryPI[[#This Row],[Quantity]],Table_PI[[#This Row],[List 1]],Table_PI[[#This Row],[List 2]],Table_PI[[#This Row],[List 3]],Table_PI[[#This Row],[Size]],Table_PI[[#This Row],[Input 1]],Table_PI[[#This Row],[Input 2]],Table_PI[[#This Row],[Input 3]],Table_PI[[#This Row],[Input 4]],'Customer Information'!$AR$12,102,ROW()),\"\"),\"\")","v":""},{"$f":"IF(Table_PI[[#This Row],[Input 3]]<>\"\",Table_PI[[#This Row],[Input 3]],\"\")","v":""},null,{"$f":"IFERROR(IF(AND(MeasureCalc(Table_PI[[#This Row],[Hide:\nFormula Name]],Table_SummaryPI[[#This Row],[Quantity]],Table_PI[[#This Row],[List 1]],Table_PI[[#This Row],[List 2]],Table_PI[[#This Row],[List 3]],Table_PI[[#This Row],[Size]],Table_PI[[#This Row],[Input 1]],Table_PI[[#This Row],[Input 2]],Table_PI[[#This Row],[Input 3]],Table_PI[[#This Row],[Input 4]],'Customer Information'!$AR$12,103,ROW())<>0,MeasureCalc(Table_PI[[#This Row],[Hide:\nFormula Name]],Table_SummaryPI[[#This Row],[Quantity]],Table_PI[[#This Row],[List 1]],Table_PI[[#This Row],[List 2]],Table_PI[[#This Row],[List 3]],Table_PI[[#This Row],[Size]],Table_PI[[#This Row],[Input 1]],Table_PI[[#This Row],[Input 2]],Table_PI[[#This Row],[Input 3]],Table_PI[[#This Row],[Input 4]],'Customer Information'!$AR$12,103,ROW())<>\"No Rebate\"),MeasureCalc(Table_PI[[#This Row],[Hide:\nFormula Name]],Table_SummaryPI[[#This Row],[Quantity]],Table_PI[[#This Row],[List 1]],Table_PI[[#This Row],[List 2]],Table_PI[[#This Row],[List 3]],Table_PI[[#This Row],[Size]],Table_PI[[#This Row],[Input 1]],Table_PI[[#This Row],[Input 2]],Table_PI[[#This Row],[Input 3]],Table_PI[[#This Row],[Input 4]],'Customer Information'!$AR$12,103,ROW()),\"\"),\"\")","v":""},{"$f":"IF(Table_PI[[#This Row],[Input 4]]<>\"\",Table_PI[[#This Row],[Input 4]],\"\")","v":""},{"$f":"IF(Table_PI[[#This Row],[Quantity]]=\"\",\"\",Table_PI[[#This Row],[Quantity]])","v":""},{"$f":"IF(Table_PI[[#This Row],[Notes]]=\"\",\"\",Table_PI[[#This Row],[Notes]])","v":""},{"$f":"IF(OR(Table_PI[[#This Row],[Hide:\nBaseline kWh]]=\"\",Table_PI[[#This Row],[Hide:\nBaseline kWh]]=0),\"\",Table_PI[[#This Row],[Hide:\nBaseline kWh]])","v":""},{"$f":"IF(OR(Table_PI[[#This Row],[Hide:\nBaseline kW]]=\"\",Table_PI[[#This Row],[Hide:\nBaseline kW]]=0),\"\",Table_PI[[#This Row],[Hide:\nBaseline kW]])","v":""},{"$f":"IF(OR(Table_PI[[#This Row],[Hide:\nProposed kWh]]=\"\",Table_PI[[#This Row],[Hide:\nProposed kWh]]=0),\"\",Table_PI[[#This Row],[Hide:\nProposed kWh]])","v":""},{"$f":"IF(OR(Table_PI[[#This Row],[Hide:\nProposed kW]]=\"\",Table_PI[[#This Row],[Hide:\nProposed kW]]=0),\"\",Table_PI[[#This Row],[Hide:\nProposed kW]])","v":""},{"$f":"IF(OR(Table_PI[[#This Row],[Rebate]]=\"\",Table_PI[[#This Row],[Rebate]]=0),\"\",Table_PI[[#This Row],[Rebate]])","v":""},{"$f":"IF(OR(Table_PI[[#This Row],[Hide:\nIncremental Cost]]=\"\",Table_PI[[#This Row],[Hide:\nIncremental Cost]]=0),\"\",Table_PI[[#This Row],[Hide:\nIncremental Cost]])","v":""},{"$f":"IFERROR(IF(Table_SummaryPI[[#This Row],[kWhSavings]]=\"\",\"\",ROUND(Table_SummaryPI[[#This Row],[kWhSavings]]/$AG$401*'Customer Information'!$BC$17,2)),0)","v":""},{"$f":"IF(OR(Table_PI[[#This Row],[Annual kWh]]=\"\",Table_PI[[#This Row],[Annual kWh]]=0),\"\",Table_PI[[#This Row],[Annual kWh]])","v":""},{"$f":"IF(OR(Table_PI[[#This Row],[Peak kW]]=\"\",Table_PI[[#This Row],[Peak kW]]=0),\"\",Table_PI[[#This Row],[Peak kW]])","v":""},{"$f":"IFERROR(IF(Table_SummaryPI[[#This Row],[kWhSavings]]=\"\",\"\",$AU$9*Table_SummaryPI[[#This Row],[kWhSavings]]),0)","v":""},{"$f":"IFERROR(IF(Table_SummaryPI[[#This Row],[kWhSavings]]=\"\",\"\",$AU$14*Table_SummaryPI[[#This Row],[kWhSavings]]),0)","v":""},{"$f":"IFERROR(IF(Table_SummaryPI[[#This Row],[kWhSavings]]=\"\",\"\",$AU$18*Table_SummaryPI[[#This Row],[kWhSavings]]),0)","v":""},{"$f":"IFERROR(IF(Table_SummaryPI[[#This Row],[kWhSavings]]=\"\",\"\",$AU$22*Table_SummaryPI[[#This Row],[kWhSavings]]),0)","v":""},{"$f":"IFERROR(IF(MeasureCalc(Table_PI[[#This Row],[Hide:\nFormula Name]],Table_SummaryPI[[#This Row],[Quantity]],Table_PI[[#This Row],[List 1]],Table_PI[[#This Row],[List 2]],Table_PI[[#This Row],[List 3]],Table_PI[[#This Row],[Size]],Table_PI[[#This Row],[Input 1]],Table_PI[[#This Row],[Input 2]],Table_PI[[#This Row],[Input 3]],Table_PI[[#This Row],[Input 4]],'Customer Information'!$AR$12,200,ROW())<>\"No Rebate\",MeasureCalc(Table_PI[[#This Row],[Hide:\nFormula Name]],Table_SummaryPI[[#This Row],[Quantity]],Table_PI[[#This Row],[List 1]],Table_PI[[#This Row],[List 2]],Table_PI[[#This Row],[List 3]],Table_PI[[#This Row],[Size]],Table_PI[[#This Row],[Input 1]],Table_PI[[#This Row],[Input 2]],Table_PI[[#This Row],[Input 3]],Table_PI[[#This Row],[Input 4]],'Customer Information'!$AR$12,200,ROW()),\"\"),\"\")","v":""},{"$f":"IFERROR(IF(MeasureCalc(Table_PI[[#This Row],[Hide:\nFormula Name]],Table_SummaryPI[[#This Row],[Quantity]],Table_PI[[#This Row],[List 1]],Table_PI[[#This Row],[List 2]],Table_PI[[#This Row],[List 3]],Table_PI[[#This Row],[Size]],Table_PI[[#This Row],[Input 1]],Table_PI[[#This Row],[Input 2]],Table_PI[[#This Row],[Input 3]],Table_PI[[#This Row],[Input 4]],'Customer Information'!$AR$12,201,ROW())<>\"No Rebate\",MeasureCalc(Table_PI[[#This Row],[Hide:\nFormula Name]],Table_SummaryPI[[#This Row],[Quantity]],Table_PI[[#This Row],[List 1]],Table_PI[[#This Row],[List 2]],Table_PI[[#This Row],[List 3]],Table_PI[[#This Row],[Size]],Table_PI[[#This Row],[Input 1]],Table_PI[[#This Row],[Input 2]],Table_PI[[#This Row],[Input 3]],Table_PI[[#This Row],[Input 4]],'Customer Information'!$AR$12,201,ROW()),\"\"),\"\")","v":""}]
[{"$f":"Table_PI[[#This Row],[Line No.]]","v":""},{"$f":"IF(Table_SummaryPI[[#This Row],[MeassureCategory]]<>\"\",CONCATENATE(Table_SummaryPI[[#This Row],[MeassureCategory]],  \" - \", Table_SummaryPI[[#This Row],[ProposedMeasureCategory]],  \" - \", TEXT(Table_SummaryPI[[#This Row],[Size]],\"#,##0.00\"),\" \",Table_SummaryPI[[#This Row],[SizeUnit]]),\"\")","v":""},{"$f":"SUBSTITUTE(Table_PI[[#This Row],[Measure]],\"     \",\"\",1)","v":""},{"$f":"IF(Table_PI[[#This Row],[List 1]]<>\"\",Table_PI[[#This Row],[List 1]],\"\")","v":""},{"$f":"IF(Table_PI[[#This Row],[List 2]]<>\"\",Table_PI[[#This Row],[List 2]],\"\")","v":""},{"$f":"IF(Table_PI[[#This Row],[List 3]]<>\"\",Table_PI[[#This Row],[List 3]],\"\")","v":""},{"$f":"IF(Table_PI[[#This Row],[Manufacturer]]=\"\",\"\",Table_PI[[#This Row],[Manufacturer]])","v":""},{"$f":"IF(Table_PI[[#This Row],[Model Number]]=\"\",\"\",Table_PI[[#This Row],[Model Number]])","v":""},{"$f":"IF(Table_PI[[#This Row],[Serial Number(s)]]=\"\",\"\",Table_PI[[#This Row],[Serial Number(s)]])","v":""},null,{"$f":"IF(Table_PI[[#This Row],[Size]]=\"\",\"\",Table_PI[[#This Row],[Size]])","v":""},null,{"$f":"IFERROR(IF(AND(MeasureCalc(Table_PI[[#This Row],[Hide:\nFormula Name]],Table_SummaryPI[[#This Row],[Quantity]],Table_PI[[#This Row],[List 1]],Table_PI[[#This Row],[List 2]],Table_PI[[#This Row],[List 3]],Table_PI[[#This Row],[Size]],Table_PI[[#This Row],[Input 1]],Table_PI[[#This Row],[Input 2]],Table_PI[[#This Row],[Input 3]],Table_PI[[#This Row],[Input 4]],'Customer Information'!$AR$12,100,ROW())<>0,MeasureCalc(Table_PI[[#This Row],[Hide:\nFormula Name]],Table_SummaryPI[[#This Row],[Quantity]],Table_PI[[#This Row],[List 1]],Table_PI[[#This Row],[List 2]],Table_PI[[#This Row],[List 3]],Table_PI[[#This Row],[Size]],Table_PI[[#This Row],[Input 1]],Table_PI[[#This Row],[Input 2]],Table_PI[[#This Row],[Input 3]],Table_PI[[#This Row],[Input 4]],'Customer Information'!$AR$12,100,ROW())<>\"No Rebate\"),MeasureCalc(Table_PI[[#This Row],[Hide:\nFormula Name]],Table_SummaryPI[[#This Row],[Quantity]],Table_PI[[#This Row],[List 1]],Table_PI[[#This Row],[List 2]],Table_PI[[#This Row],[List 3]],Table_PI[[#This Row],[Size]],Table_PI[[#This Row],[Input 1]],Table_PI[[#This Row],[Input 2]],Table_PI[[#This Row],[Input 3]],Table_PI[[#This Row],[Input 4]],'Customer Information'!$AR$12,100,ROW()),\"\"),\"\")","v":""},{"$f":"IF(Table_PI[[#This Row],[Input 1]]<>\"\",Table_PI[[#This Row],[Input 1]],\"\")","v":""},null,{"$f":"IFERROR(IF(AND(MeasureCalc(Table_PI[[#This Row],[Hide:\nFormula Name]],Table_SummaryPI[[#This Row],[Quantity]],Table_PI[[#This Row],[List 1]],Table_PI[[#This Row],[List 2]],Table_PI[[#This Row],[List 3]],Table_PI[[#This Row],[Size]],Table_PI[[#This Row],[Input 1]],Table_PI[[#This Row],[Input 2]],Table_PI[[#This Row],[Input 3]],Table_PI[[#This Row],[Input 4]],'Customer Information'!$AR$12,101,ROW())<>0,MeasureCalc(Table_PI[[#This Row],[Hide:\nFormula Name]],Table_SummaryPI[[#This Row],[Quantity]],Table_PI[[#This Row],[List 1]],Table_PI[[#This Row],[List 2]],Table_PI[[#This Row],[List 3]],Table_PI[[#This Row],[Size]],Table_PI[[#This Row],[Input 1]],Table_PI[[#This Row],[Input 2]],Table_PI[[#This Row],[Input 3]],Table_PI[[#This Row],[Input 4]],'Customer Information'!$AR$12,101,ROW())<>\"No Rebate\"),MeasureCalc(Table_PI[[#This Row],[Hide:\nFormula Name]],Table_SummaryPI[[#This Row],[Quantity]],Table_PI[[#This Row],[List 1]],Table_PI[[#This Row],[List 2]],Table_PI[[#This Row],[List 3]],Table_PI[[#This Row],[Size]],Table_PI[[#This Row],[Input 1]],Table_PI[[#This Row],[Input 2]],Table_PI[[#This Row],[Input 3]],Table_PI[[#This Row],[Input 4]],'Customer Information'!$AR$12,101,ROW()),\"\"),\"\")","v":""},{"$f":"IF(Table_PI[[#This Row],[Input 2]]<>\"\",Table_PI[[#This Row],[Input 2]],\"\")","v":""},null,{"$f":"IFERROR(IF(AND(MeasureCalc(Table_PI[[#This Row],[Hide:\nFormula Name]],Table_SummaryPI[[#This Row],[Quantity]],Table_PI[[#This Row],[List 1]],Table_PI[[#This Row],[List 2]],Table_PI[[#This Row],[List 3]],Table_PI[[#This Row],[Size]],Table_PI[[#This Row],[Input 1]],Table_PI[[#This Row],[Input 2]],Table_PI[[#This Row],[Input 3]],Table_PI[[#This Row],[Input 4]],'Customer Information'!$AR$12,102,ROW())<>0,MeasureCalc(Table_PI[[#This Row],[Hide:\nFormula Name]],Table_SummaryPI[[#This Row],[Quantity]],Table_PI[[#This Row],[List 1]],Table_PI[[#This Row],[List 2]],Table_PI[[#This Row],[List 3]],Table_PI[[#This Row],[Size]],Table_PI[[#This Row],[Input 1]],Table_PI[[#This Row],[Input 2]],Table_PI[[#This Row],[Input 3]],Table_PI[[#This Row],[Input 4]],'Customer Information'!$AR$12,102,ROW())<>\"No Rebate\"),MeasureCalc(Table_PI[[#This Row],[Hide:\nFormula Name]],Table_SummaryPI[[#This Row],[Quantity]],Table_PI[[#This Row],[List 1]],Table_PI[[#This Row],[List 2]],Table_PI[[#This Row],[List 3]],Table_PI[[#This Row],[Size]],Table_PI[[#This Row],[Input 1]],Table_PI[[#This Row],[Input 2]],Table_PI[[#This Row],[Input 3]],Table_PI[[#This Row],[Input 4]],'Customer Information'!$AR$12,102,ROW()),\"\"),\"\")","v":""},{"$f":"IF(Table_PI[[#This Row],[Input 3]]<>\"\",Table_PI[[#This Row],[Input 3]],\"\")","v":""},null,{"$f":"IFERROR(IF(AND(MeasureCalc(Table_PI[[#This Row],[Hide:\nFormula Name]],Table_SummaryPI[[#This Row],[Quantity]],Table_PI[[#This Row],[List 1]],Table_PI[[#This Row],[List 2]],Table_PI[[#This Row],[List 3]],Table_PI[[#This Row],[Size]],Table_PI[[#This Row],[Input 1]],Table_PI[[#This Row],[Input 2]],Table_PI[[#This Row],[Input 3]],Table_PI[[#This Row],[Input 4]],'Customer Information'!$AR$12,103,ROW())<>0,MeasureCalc(Table_PI[[#This Row],[Hide:\nFormula Name]],Table_SummaryPI[[#This Row],[Quantity]],Table_PI[[#This Row],[List 1]],Table_PI[[#This Row],[List 2]],Table_PI[[#This Row],[List 3]],Table_PI[[#This Row],[Size]],Table_PI[[#This Row],[Input 1]],Table_PI[[#This Row],[Input 2]],Table_PI[[#This Row],[Input 3]],Table_PI[[#This Row],[Input 4]],'Customer Information'!$AR$12,103,ROW())<>\"No Rebate\"),MeasureCalc(Table_PI[[#This Row],[Hide:\nFormula Name]],Table_SummaryPI[[#This Row],[Quantity]],Table_PI[[#This Row],[List 1]],Table_PI[[#This Row],[List 2]],Table_PI[[#This Row],[List 3]],Table_PI[[#This Row],[Size]],Table_PI[[#This Row],[Input 1]],Table_PI[[#This Row],[Input 2]],Table_PI[[#This Row],[Input 3]],Table_PI[[#This Row],[Input 4]],'Customer Information'!$AR$12,103,ROW()),\"\"),\"\")","v":""},{"$f":"IF(Table_PI[[#This Row],[Input 4]]<>\"\",Table_PI[[#This Row],[Input 4]],\"\")","v":""},{"$f":"IF(Table_PI[[#This Row],[Quantity]]=\"\",\"\",Table_PI[[#This Row],[Quantity]])","v":""},{"$f":"IF(Table_PI[[#This Row],[Notes]]=\"\",\"\",Table_PI[[#This Row],[Notes]])","v":""},{"$f":"IF(OR(Table_PI[[#This Row],[Hide:\nBaseline kWh]]=\"\",Table_PI[[#This Row],[Hide:\nBaseline kWh]]=0),\"\",Table_PI[[#This Row],[Hide:\nBaseline kWh]])","v":""},{"$f":"IF(OR(Table_PI[[#This Row],[Hide:\nBaseline kW]]=\"\",Table_PI[[#This Row],[Hide:\nBaseline kW]]=0),\"\",Table_PI[[#This Row],[Hide:\nBaseline kW]])","v":""},{"$f":"IF(OR(Table_PI[[#This Row],[Hide:\nProposed kWh]]=\"\",Table_PI[[#This Row],[Hide:\nProposed kWh]]=0),\"\",Table_PI[[#This Row],[Hide:\nProposed kWh]])","v":""},{"$f":"IF(OR(Table_PI[[#This Row],[Hide:\nProposed kW]]=\"\",Table_PI[[#This Row],[Hide:\nProposed kW]]=0),\"\",Table_PI[[#This Row],[Hide:\nProposed kW]])","v":""},{"$f":"IF(OR(Table_PI[[#This Row],[Rebate]]=\"\",Table_PI[[#This Row],[Rebate]]=0),\"\",Table_PI[[#This Row],[Rebate]])","v":""},{"$f":"IF(OR(Table_PI[[#This Row],[Hide:\nIncremental Cost]]=\"\",Table_PI[[#This Row],[Hide:\nIncremental Cost]]=0),\"\",Table_PI[[#This Row],[Hide:\nIncremental Cost]])","v":""},{"$f":"IFERROR(IF(Table_SummaryPI[[#This Row],[kWhSavings]]=\"\",\"\",ROUND(Table_SummaryPI[[#This Row],[kWhSavings]]/$AG$401*'Customer Information'!$BC$17,2)),0)","v":""},{"$f":"IF(OR(Table_PI[[#This Row],[Annual kWh]]=\"\",Table_PI[[#This Row],[Annual kWh]]=0),\"\",Table_PI[[#This Row],[Annual kWh]])","v":""},{"$f":"IF(OR(Table_PI[[#This Row],[Peak kW]]=\"\",Table_PI[[#This Row],[Peak kW]]=0),\"\",Table_PI[[#This Row],[Peak kW]])","v":""},{"$f":"IFERROR(IF(Table_SummaryPI[[#This Row],[kWhSavings]]=\"\",\"\",$AU$9*Table_SummaryPI[[#This Row],[kWhSavings]]),0)","v":""},{"$f":"IFERROR(IF(Table_SummaryPI[[#This Row],[kWhSavings]]=\"\",\"\",$AU$14*Table_SummaryPI[[#This Row],[kWhSavings]]),0)","v":""},{"$f":"IFERROR(IF(Table_SummaryPI[[#This Row],[kWhSavings]]=\"\",\"\",$AU$18*Table_SummaryPI[[#This Row],[kWhSavings]]),0)","v":""},{"$f":"IFERROR(IF(Table_SummaryPI[[#This Row],[kWhSavings]]=\"\",\"\",$AU$22*Table_SummaryPI[[#This Row],[kWhSavings]]),0)","v":""},{"$f":"IFERROR(IF(MeasureCalc(Table_PI[[#This Row],[Hide:\nFormula Name]],Table_SummaryPI[[#This Row],[Quantity]],Table_PI[[#This Row],[List 1]],Table_PI[[#This Row],[List 2]],Table_PI[[#This Row],[List 3]],Table_PI[[#This Row],[Size]],Table_PI[[#This Row],[Input 1]],Table_PI[[#This Row],[Input 2]],Table_PI[[#This Row],[Input 3]],Table_PI[[#This Row],[Input 4]],'Customer Information'!$AR$12,200,ROW())<>\"No Rebate\",MeasureCalc(Table_PI[[#This Row],[Hide:\nFormula Name]],Table_SummaryPI[[#This Row],[Quantity]],Table_PI[[#This Row],[List 1]],Table_PI[[#This Row],[List 2]],Table_PI[[#This Row],[List 3]],Table_PI[[#This Row],[Size]],Table_PI[[#This Row],[Input 1]],Table_PI[[#This Row],[Input 2]],Table_PI[[#This Row],[Input 3]],Table_PI[[#This Row],[Input 4]],'Customer Information'!$AR$12,200,ROW()),\"\"),\"\")","v":""},{"$f":"IFERROR(IF(MeasureCalc(Table_PI[[#This Row],[Hide:\nFormula Name]],Table_SummaryPI[[#This Row],[Quantity]],Table_PI[[#This Row],[List 1]],Table_PI[[#This Row],[List 2]],Table_PI[[#This Row],[List 3]],Table_PI[[#This Row],[Size]],Table_PI[[#This Row],[Input 1]],Table_PI[[#This Row],[Input 2]],Table_PI[[#This Row],[Input 3]],Table_PI[[#This Row],[Input 4]],'Customer Information'!$AR$12,201,ROW())<>\"No Rebate\",MeasureCalc(Table_PI[[#This Row],[Hide:\nFormula Name]],Table_SummaryPI[[#This Row],[Quantity]],Table_PI[[#This Row],[List 1]],Table_PI[[#This Row],[List 2]],Table_PI[[#This Row],[List 3]],Table_PI[[#This Row],[Size]],Table_PI[[#This Row],[Input 1]],Table_PI[[#This Row],[Input 2]],Table_PI[[#This Row],[Input 3]],Table_PI[[#This Row],[Input 4]],'Customer Information'!$AR$12,201,ROW()),\"\"),\"\")","v":""}]
[{"$f":"Table_PI[[#This Row],[Line No.]]","v":""},{"$f":"IF(Table_SummaryPI[[#This Row],[MeassureCategory]]<>\"\",CONCATENATE(Table_SummaryPI[[#This Row],[MeassureCategory]],  \" - \", Table_SummaryPI[[#This Row],[ProposedMeasureCategory]],  \" - \", TEXT(Table_SummaryPI[[#This Row],[Size]],\"#,##0.00\"),\" \",Table_SummaryPI[[#This Row],[SizeUnit]]),\"\")","v":""},{"$f":"SUBSTITUTE(Table_PI[[#This Row],[Measure]],\"     \",\"\",1)","v":""},{"$f":"IF(Table_PI[[#This Row],[List 1]]<>\"\",Table_PI[[#This Row],[List 1]],\"\")","v":""},{"$f":"IF(Table_PI[[#This Row],[List 2]]<>\"\",Table_PI[[#This Row],[List 2]],\"\")","v":""},{"$f":"IF(Table_PI[[#This Row],[List 3]]<>\"\",Table_PI[[#This Row],[List 3]],\"\")","v":""},{"$f":"IF(Table_PI[[#This Row],[Manufacturer]]=\"\",\"\",Table_PI[[#This Row],[Manufacturer]])","v":""},{"$f":"IF(Table_PI[[#This Row],[Model Number]]=\"\",\"\",Table_PI[[#This Row],[Model Number]])","v":""},{"$f":"IF(Table_PI[[#This Row],[Serial Number(s)]]=\"\",\"\",Table_PI[[#This Row],[Serial Number(s)]])","v":""},null,{"$f":"IF(Table_PI[[#This Row],[Size]]=\"\",\"\",Table_PI[[#This Row],[Size]])","v":""},null,{"$f":"IFERROR(IF(AND(MeasureCalc(Table_PI[[#This Row],[Hide:\nFormula Name]],Table_SummaryPI[[#This Row],[Quantity]],Table_PI[[#This Row],[List 1]],Table_PI[[#This Row],[List 2]],Table_PI[[#This Row],[List 3]],Table_PI[[#This Row],[Size]],Table_PI[[#This Row],[Input 1]],Table_PI[[#This Row],[Input 2]],Table_PI[[#This Row],[Input 3]],Table_PI[[#This Row],[Input 4]],'Customer Information'!$AR$12,100,ROW())<>0,MeasureCalc(Table_PI[[#This Row],[Hide:\nFormula Name]],Table_SummaryPI[[#This Row],[Quantity]],Table_PI[[#This Row],[List 1]],Table_PI[[#This Row],[List 2]],Table_PI[[#This Row],[List 3]],Table_PI[[#This Row],[Size]],Table_PI[[#This Row],[Input 1]],Table_PI[[#This Row],[Input 2]],Table_PI[[#This Row],[Input 3]],Table_PI[[#This Row],[Input 4]],'Customer Information'!$AR$12,100,ROW())<>\"No Rebate\"),MeasureCalc(Table_PI[[#This Row],[Hide:\nFormula Name]],Table_SummaryPI[[#This Row],[Quantity]],Table_PI[[#This Row],[List 1]],Table_PI[[#This Row],[List 2]],Table_PI[[#This Row],[List 3]],Table_PI[[#This Row],[Size]],Table_PI[[#This Row],[Input 1]],Table_PI[[#This Row],[Input 2]],Table_PI[[#This Row],[Input 3]],Table_PI[[#This Row],[Input 4]],'Customer Information'!$AR$12,100,ROW()),\"\"),\"\")","v":""},{"$f":"IF(Table_PI[[#This Row],[Input 1]]<>\"\",Table_PI[[#This Row],[Input 1]],\"\")","v":""},null,{"$f":"IFERROR(IF(AND(MeasureCalc(Table_PI[[#This Row],[Hide:\nFormula Name]],Table_SummaryPI[[#This Row],[Quantity]],Table_PI[[#This Row],[List 1]],Table_PI[[#This Row],[List 2]],Table_PI[[#This Row],[List 3]],Table_PI[[#This Row],[Size]],Table_PI[[#This Row],[Input 1]],Table_PI[[#This Row],[Input 2]],Table_PI[[#This Row],[Input 3]],Table_PI[[#This Row],[Input 4]],'Customer Information'!$AR$12,101,ROW())<>0,MeasureCalc(Table_PI[[#This Row],[Hide:\nFormula Name]],Table_SummaryPI[[#This Row],[Quantity]],Table_PI[[#This Row],[List 1]],Table_PI[[#This Row],[List 2]],Table_PI[[#This Row],[List 3]],Table_PI[[#This Row],[Size]],Table_PI[[#This Row],[Input 1]],Table_PI[[#This Row],[Input 2]],Table_PI[[#This Row],[Input 3]],Table_PI[[#This Row],[Input 4]],'Customer Information'!$AR$12,101,ROW())<>\"No Rebate\"),MeasureCalc(Table_PI[[#This Row],[Hide:\nFormula Name]],Table_SummaryPI[[#This Row],[Quantity]],Table_PI[[#This Row],[List 1]],Table_PI[[#This Row],[List 2]],Table_PI[[#This Row],[List 3]],Table_PI[[#This Row],[Size]],Table_PI[[#This Row],[Input 1]],Table_PI[[#This Row],[Input 2]],Table_PI[[#This Row],[Input 3]],Table_PI[[#This Row],[Input 4]],'Customer Information'!$AR$12,101,ROW()),\"\"),\"\")","v":""},{"$f":"IF(Table_PI[[#This Row],[Input 2]]<>\"\",Table_PI[[#This Row],[Input 2]],\"\")","v":""},null,{"$f":"IFERROR(IF(AND(MeasureCalc(Table_PI[[#This Row],[Hide:\nFormula Name]],Table_SummaryPI[[#This Row],[Quantity]],Table_PI[[#This Row],[List 1]],Table_PI[[#This Row],[List 2]],Table_PI[[#This Row],[List 3]],Table_PI[[#This Row],[Size]],Table_PI[[#This Row],[Input 1]],Table_PI[[#This Row],[Input 2]],Table_PI[[#This Row],[Input 3]],Table_PI[[#This Row],[Input 4]],'Customer Information'!$AR$12,102,ROW())<>0,MeasureCalc(Table_PI[[#This Row],[Hide:\nFormula Name]],Table_SummaryPI[[#This Row],[Quantity]],Table_PI[[#This Row],[List 1]],Table_PI[[#This Row],[List 2]],Table_PI[[#This Row],[List 3]],Table_PI[[#This Row],[Size]],Table_PI[[#This Row],[Input 1]],Table_PI[[#This Row],[Input 2]],Table_PI[[#This Row],[Input 3]],Table_PI[[#This Row],[Input 4]],'Customer Information'!$AR$12,102,ROW())<>\"No Rebate\"),MeasureCalc(Table_PI[[#This Row],[Hide:\nFormula Name]],Table_SummaryPI[[#This Row],[Quantity]],Table_PI[[#This Row],[List 1]],Table_PI[[#This Row],[List 2]],Table_PI[[#This Row],[List 3]],Table_PI[[#This Row],[Size]],Table_PI[[#This Row],[Input 1]],Table_PI[[#This Row],[Input 2]],Table_PI[[#This Row],[Input 3]],Table_PI[[#This Row],[Input 4]],'Customer Information'!$AR$12,102,ROW()),\"\"),\"\")","v":""},{"$f":"IF(Table_PI[[#This Row],[Input 3]]<>\"\",Table_PI[[#This Row],[Input 3]],\"\")","v":""},null,{"$f":"IFERROR(IF(AND(MeasureCalc(Table_PI[[#This Row],[Hide:\nFormula Name]],Table_SummaryPI[[#This Row],[Quantity]],Table_PI[[#This Row],[List 1]],Table_PI[[#This Row],[List 2]],Table_PI[[#This Row],[List 3]],Table_PI[[#This Row],[Size]],Table_PI[[#This Row],[Input 1]],Table_PI[[#This Row],[Input 2]],Table_PI[[#This Row],[Input 3]],Table_PI[[#This Row],[Input 4]],'Customer Information'!$AR$12,103,ROW())<>0,MeasureCalc(Table_PI[[#This Row],[Hide:\nFormula Name]],Table_SummaryPI[[#This Row],[Quantity]],Table_PI[[#This Row],[List 1]],Table_PI[[#This Row],[List 2]],Table_PI[[#This Row],[List 3]],Table_PI[[#This Row],[Size]],Table_PI[[#This Row],[Input 1]],Table_PI[[#This Row],[Input 2]],Table_PI[[#This Row],[Input 3]],Table_PI[[#This Row],[Input 4]],'Customer Information'!$AR$12,103,ROW())<>\"No Rebate\"),MeasureCalc(Table_PI[[#This Row],[Hide:\nFormula Name]],Table_SummaryPI[[#This Row],[Quantity]],Table_PI[[#This Row],[List 1]],Table_PI[[#This Row],[List 2]],Table_PI[[#This Row],[List 3]],Table_PI[[#This Row],[Size]],Table_PI[[#This Row],[Input 1]],Table_PI[[#This Row],[Input 2]],Table_PI[[#This Row],[Input 3]],Table_PI[[#This Row],[Input 4]],'Customer Information'!$AR$12,103,ROW()),\"\"),\"\")","v":""},{"$f":"IF(Table_PI[[#This Row],[Input 4]]<>\"\",Table_PI[[#This Row],[Input 4]],\"\")","v":""},{"$f":"IF(Table_PI[[#This Row],[Quantity]]=\"\",\"\",Table_PI[[#This Row],[Quantity]])","v":""},{"$f":"IF(Table_PI[[#This Row],[Notes]]=\"\",\"\",Table_PI[[#This Row],[Notes]])","v":""},{"$f":"IF(OR(Table_PI[[#This Row],[Hide:\nBaseline kWh]]=\"\",Table_PI[[#This Row],[Hide:\nBaseline kWh]]=0),\"\",Table_PI[[#This Row],[Hide:\nBaseline kWh]])","v":""},{"$f":"IF(OR(Table_PI[[#This Row],[Hide:\nBaseline kW]]=\"\",Table_PI[[#This Row],[Hide:\nBaseline kW]]=0),\"\",Table_PI[[#This Row],[Hide:\nBaseline kW]])","v":""},{"$f":"IF(OR(Table_PI[[#This Row],[Hide:\nProposed kWh]]=\"\",Table_PI[[#This Row],[Hide:\nProposed kWh]]=0),\"\",Table_PI[[#This Row],[Hide:\nProposed kWh]])","v":""},{"$f":"IF(OR(Table_PI[[#This Row],[Hide:\nProposed kW]]=\"\",Table_PI[[#This Row],[Hide:\nProposed kW]]=0),\"\",Table_PI[[#This Row],[Hide:\nProposed kW]])","v":""},{"$f":"IF(OR(Table_PI[[#This Row],[Rebate]]=\"\",Table_PI[[#This Row],[Rebate]]=0),\"\",Table_PI[[#This Row],[Rebate]])","v":""},{"$f":"IF(OR(Table_PI[[#This Row],[Hide:\nIncremental Cost]]=\"\",Table_PI[[#This Row],[Hide:\nIncremental Cost]]=0),\"\",Table_PI[[#This Row],[Hide:\nIncremental Cost]])","v":""},{"$f":"IFERROR(IF(Table_SummaryPI[[#This Row],[kWhSavings]]=\"\",\"\",ROUND(Table_SummaryPI[[#This Row],[kWhSavings]]/$AG$401*'Customer Information'!$BC$17,2)),0)","v":""},{"$f":"IF(OR(Table_PI[[#This Row],[Annual kWh]]=\"\",Table_PI[[#This Row],[Annual kWh]]=0),\"\",Table_PI[[#This Row],[Annual kWh]])","v":""},{"$f":"IF(OR(Table_PI[[#This Row],[Peak kW]]=\"\",Table_PI[[#This Row],[Peak kW]]=0),\"\",Table_PI[[#This Row],[Peak kW]])","v":""},{"$f":"IFERROR(IF(Table_SummaryPI[[#This Row],[kWhSavings]]=\"\",\"\",$AU$9*Table_SummaryPI[[#This Row],[kWhSavings]]),0)","v":""},{"$f":"IFERROR(IF(Table_SummaryPI[[#This Row],[kWhSavings]]=\"\",\"\",$AU$14*Table_SummaryPI[[#This Row],[kWhSavings]]),0)","v":""},{"$f":"IFERROR(IF(Table_SummaryPI[[#This Row],[kWhSavings]]=\"\",\"\",$AU$18*Table_SummaryPI[[#This Row],[kWhSavings]]),0)","v":""},{"$f":"IFERROR(IF(Table_SummaryPI[[#This Row],[kWhSavings]]=\"\",\"\",$AU$22*Table_SummaryPI[[#This Row],[kWhSavings]]),0)","v":""},{"$f":"IFERROR(IF(MeasureCalc(Table_PI[[#This Row],[Hide:\nFormula Name]],Table_SummaryPI[[#This Row],[Quantity]],Table_PI[[#This Row],[List 1]],Table_PI[[#This Row],[List 2]],Table_PI[[#This Row],[List 3]],Table_PI[[#This Row],[Size]],Table_PI[[#This Row],[Input 1]],Table_PI[[#This Row],[Input 2]],Table_PI[[#This Row],[Input 3]],Table_PI[[#This Row],[Input 4]],'Customer Information'!$AR$12,200,ROW())<>\"No Rebate\",MeasureCalc(Table_PI[[#This Row],[Hide:\nFormula Name]],Table_SummaryPI[[#This Row],[Quantity]],Table_PI[[#This Row],[List 1]],Table_PI[[#This Row],[List 2]],Table_PI[[#This Row],[List 3]],Table_PI[[#This Row],[Size]],Table_PI[[#This Row],[Input 1]],Table_PI[[#This Row],[Input 2]],Table_PI[[#This Row],[Input 3]],Table_PI[[#This Row],[Input 4]],'Customer Information'!$AR$12,200,ROW()),\"\"),\"\")","v":""},{"$f":"IFERROR(IF(MeasureCalc(Table_PI[[#This Row],[Hide:\nFormula Name]],Table_SummaryPI[[#This Row],[Quantity]],Table_PI[[#This Row],[List 1]],Table_PI[[#This Row],[List 2]],Table_PI[[#This Row],[List 3]],Table_PI[[#This Row],[Size]],Table_PI[[#This Row],[Input 1]],Table_PI[[#This Row],[Input 2]],Table_PI[[#This Row],[Input 3]],Table_PI[[#This Row],[Input 4]],'Customer Information'!$AR$12,201,ROW())<>\"No Rebate\",MeasureCalc(Table_PI[[#This Row],[Hide:\nFormula Name]],Table_SummaryPI[[#This Row],[Quantity]],Table_PI[[#This Row],[List 1]],Table_PI[[#This Row],[List 2]],Table_PI[[#This Row],[List 3]],Table_PI[[#This Row],[Size]],Table_PI[[#This Row],[Input 1]],Table_PI[[#This Row],[Input 2]],Table_PI[[#This Row],[Input 3]],Table_PI[[#This Row],[Input 4]],'Customer Information'!$AR$12,201,ROW()),\"\"),\"\")","v":""}]
[{"$f":"Table_PI[[#This Row],[Line No.]]","v":""},{"$f":"IF(Table_SummaryPI[[#This Row],[MeassureCategory]]<>\"\",CONCATENATE(Table_SummaryPI[[#This Row],[MeassureCategory]],  \" - \", Table_SummaryPI[[#This Row],[ProposedMeasureCategory]],  \" - \", TEXT(Table_SummaryPI[[#This Row],[Size]],\"#,##0.00\"),\" \",Table_SummaryPI[[#This Row],[SizeUnit]]),\"\")","v":""},{"$f":"SUBSTITUTE(Table_PI[[#This Row],[Measure]],\"     \",\"\",1)","v":""},{"$f":"IF(Table_PI[[#This Row],[List 1]]<>\"\",Table_PI[[#This Row],[List 1]],\"\")","v":""},{"$f":"IF(Table_PI[[#This Row],[List 2]]<>\"\",Table_PI[[#This Row],[List 2]],\"\")","v":""},{"$f":"IF(Table_PI[[#This Row],[List 3]]<>\"\",Table_PI[[#This Row],[List 3]],\"\")","v":""},{"$f":"IF(Table_PI[[#This Row],[Manufacturer]]=\"\",\"\",Table_PI[[#This Row],[Manufacturer]])","v":""},{"$f":"IF(Table_PI[[#This Row],[Model Number]]=\"\",\"\",Table_PI[[#This Row],[Model Number]])","v":""},{"$f":"IF(Table_PI[[#This Row],[Serial Number(s)]]=\"\",\"\",Table_PI[[#This Row],[Serial Number(s)]])","v":""},null,{"$f":"IF(Table_PI[[#This Row],[Size]]=\"\",\"\",Table_PI[[#This Row],[Size]])","v":""},null,{"$f":"IFERROR(IF(AND(MeasureCalc(Table_PI[[#This Row],[Hide:\nFormula Name]],Table_SummaryPI[[#This Row],[Quantity]],Table_PI[[#This Row],[List 1]],Table_PI[[#This Row],[List 2]],Table_PI[[#This Row],[List 3]],Table_PI[[#This Row],[Size]],Table_PI[[#This Row],[Input 1]],Table_PI[[#This Row],[Input 2]],Table_PI[[#This Row],[Input 3]],Table_PI[[#This Row],[Input 4]],'Customer Information'!$AR$12,100,ROW())<>0,MeasureCalc(Table_PI[[#This Row],[Hide:\nFormula Name]],Table_SummaryPI[[#This Row],[Quantity]],Table_PI[[#This Row],[List 1]],Table_PI[[#This Row],[List 2]],Table_PI[[#This Row],[List 3]],Table_PI[[#This Row],[Size]],Table_PI[[#This Row],[Input 1]],Table_PI[[#This Row],[Input 2]],Table_PI[[#This Row],[Input 3]],Table_PI[[#This Row],[Input 4]],'Customer Information'!$AR$12,100,ROW())<>\"No Rebate\"),MeasureCalc(Table_PI[[#This Row],[Hide:\nFormula Name]],Table_SummaryPI[[#This Row],[Quantity]],Table_PI[[#This Row],[List 1]],Table_PI[[#This Row],[List 2]],Table_PI[[#This Row],[List 3]],Table_PI[[#This Row],[Size]],Table_PI[[#This Row],[Input 1]],Table_PI[[#This Row],[Input 2]],Table_PI[[#This Row],[Input 3]],Table_PI[[#This Row],[Input 4]],'Customer Information'!$AR$12,100,ROW()),\"\"),\"\")","v":""},{"$f":"IF(Table_PI[[#This Row],[Input 1]]<>\"\",Table_PI[[#This Row],[Input 1]],\"\")","v":""},null,{"$f":"IFERROR(IF(AND(MeasureCalc(Table_PI[[#This Row],[Hide:\nFormula Name]],Table_SummaryPI[[#This Row],[Quantity]],Table_PI[[#This Row],[List 1]],Table_PI[[#This Row],[List 2]],Table_PI[[#This Row],[List 3]],Table_PI[[#This Row],[Size]],Table_PI[[#This Row],[Input 1]],Table_PI[[#This Row],[Input 2]],Table_PI[[#This Row],[Input 3]],Table_PI[[#This Row],[Input 4]],'Customer Information'!$AR$12,101,ROW())<>0,MeasureCalc(Table_PI[[#This Row],[Hide:\nFormula Name]],Table_SummaryPI[[#This Row],[Quantity]],Table_PI[[#This Row],[List 1]],Table_PI[[#This Row],[List 2]],Table_PI[[#This Row],[List 3]],Table_PI[[#This Row],[Size]],Table_PI[[#This Row],[Input 1]],Table_PI[[#This Row],[Input 2]],Table_PI[[#This Row],[Input 3]],Table_PI[[#This Row],[Input 4]],'Customer Information'!$AR$12,101,ROW())<>\"No Rebate\"),MeasureCalc(Table_PI[[#This Row],[Hide:\nFormula Name]],Table_SummaryPI[[#This Row],[Quantity]],Table_PI[[#This Row],[List 1]],Table_PI[[#This Row],[List 2]],Table_PI[[#This Row],[List 3]],Table_PI[[#This Row],[Size]],Table_PI[[#This Row],[Input 1]],Table_PI[[#This Row],[Input 2]],Table_PI[[#This Row],[Input 3]],Table_PI[[#This Row],[Input 4]],'Customer Information'!$AR$12,101,ROW()),\"\"),\"\")","v":""},{"$f":"IF(Table_PI[[#This Row],[Input 2]]<>\"\",Table_PI[[#This Row],[Input 2]],\"\")","v":""},null,{"$f":"IFERROR(IF(AND(MeasureCalc(Table_PI[[#This Row],[Hide:\nFormula Name]],Table_SummaryPI[[#This Row],[Quantity]],Table_PI[[#This Row],[List 1]],Table_PI[[#This Row],[List 2]],Table_PI[[#This Row],[List 3]],Table_PI[[#This Row],[Size]],Table_PI[[#This Row],[Input 1]],Table_PI[[#This Row],[Input 2]],Table_PI[[#This Row],[Input 3]],Table_PI[[#This Row],[Input 4]],'Customer Information'!$AR$12,102,ROW())<>0,MeasureCalc(Table_PI[[#This Row],[Hide:\nFormula Name]],Table_SummaryPI[[#This Row],[Quantity]],Table_PI[[#This Row],[List 1]],Table_PI[[#This Row],[List 2]],Table_PI[[#This Row],[List 3]],Table_PI[[#This Row],[Size]],Table_PI[[#This Row],[Input 1]],Table_PI[[#This Row],[Input 2]],Table_PI[[#This Row],[Input 3]],Table_PI[[#This Row],[Input 4]],'Customer Information'!$AR$12,102,ROW())<>\"No Rebate\"),MeasureCalc(Table_PI[[#This Row],[Hide:\nFormula Name]],Table_SummaryPI[[#This Row],[Quantity]],Table_PI[[#This Row],[List 1]],Table_PI[[#This Row],[List 2]],Table_PI[[#This Row],[List 3]],Table_PI[[#This Row],[Size]],Table_PI[[#This Row],[Input 1]],Table_PI[[#This Row],[Input 2]],Table_PI[[#This Row],[Input 3]],Table_PI[[#This Row],[Input 4]],'Customer Information'!$AR$12,102,ROW()),\"\"),\"\")","v":""},{"$f":"IF(Table_PI[[#This Row],[Input 3]]<>\"\",Table_PI[[#This Row],[Input 3]],\"\")","v":""},null,{"$f":"IFERROR(IF(AND(MeasureCalc(Table_PI[[#This Row],[Hide:\nFormula Name]],Table_SummaryPI[[#This Row],[Quantity]],Table_PI[[#This Row],[List 1]],Table_PI[[#This Row],[List 2]],Table_PI[[#This Row],[List 3]],Table_PI[[#This Row],[Size]],Table_PI[[#This Row],[Input 1]],Table_PI[[#This Row],[Input 2]],Table_PI[[#This Row],[Input 3]],Table_PI[[#This Row],[Input 4]],'Customer Information'!$AR$12,103,ROW())<>0,MeasureCalc(Table_PI[[#This Row],[Hide:\nFormula Name]],Table_SummaryPI[[#This Row],[Quantity]],Table_PI[[#This Row],[List 1]],Table_PI[[#This Row],[List 2]],Table_PI[[#This Row],[List 3]],Table_PI[[#This Row],[Size]],Table_PI[[#This Row],[Input 1]],Table_PI[[#This Row],[Input 2]],Table_PI[[#This Row],[Input 3]],Table_PI[[#This Row],[Input 4]],'Customer Information'!$AR$12,103,ROW())<>\"No Rebate\"),MeasureCalc(Table_PI[[#This Row],[Hide:\nFormula Name]],Table_SummaryPI[[#This Row],[Quantity]],Table_PI[[#This Row],[List 1]],Table_PI[[#This Row],[List 2]],Table_PI[[#This Row],[List 3]],Table_PI[[#This Row],[Size]],Table_PI[[#This Row],[Input 1]],Table_PI[[#This Row],[Input 2]],Table_PI[[#This Row],[Input 3]],Table_PI[[#This Row],[Input 4]],'Customer Information'!$AR$12,103,ROW()),\"\"),\"\")","v":""},{"$f":"IF(Table_PI[[#This Row],[Input 4]]<>\"\",Table_PI[[#This Row],[Input 4]],\"\")","v":""},{"$f":"IF(Table_PI[[#This Row],[Quantity]]=\"\",\"\",Table_PI[[#This Row],[Quantity]])","v":""},{"$f":"IF(Table_PI[[#This Row],[Notes]]=\"\",\"\",Table_PI[[#This Row],[Notes]])","v":""},{"$f":"IF(OR(Table_PI[[#This Row],[Hide:\nBaseline kWh]]=\"\",Table_PI[[#This Row],[Hide:\nBaseline kWh]]=0),\"\",Table_PI[[#This Row],[Hide:\nBaseline kWh]])","v":""},{"$f":"IF(OR(Table_PI[[#This Row],[Hide:\nBaseline kW]]=\"\",Table_PI[[#This Row],[Hide:\nBaseline kW]]=0),\"\",Table_PI[[#This Row],[Hide:\nBaseline kW]])","v":""},{"$f":"IF(OR(Table_PI[[#This Row],[Hide:\nProposed kWh]]=\"\",Table_PI[[#This Row],[Hide:\nProposed kWh]]=0),\"\",Table_PI[[#This Row],[Hide:\nProposed kWh]])","v":""},{"$f":"IF(OR(Table_PI[[#This Row],[Hide:\nProposed kW]]=\"\",Table_PI[[#This Row],[Hide:\nProposed kW]]=0),\"\",Table_PI[[#This Row],[Hide:\nProposed kW]])","v":""},{"$f":"IF(OR(Table_PI[[#This Row],[Rebate]]=\"\",Table_PI[[#This Row],[Rebate]]=0),\"\",Table_PI[[#This Row],[Rebate]])","v":""},{"$f":"IF(OR(Table_PI[[#This Row],[Hide:\nIncremental Cost]]=\"\",Table_PI[[#This Row],[Hide:\nIncremental Cost]]=0),\"\",Table_PI[[#This Row],[Hide:\nIncremental Cost]])","v":""},{"$f":"IFERROR(IF(Table_SummaryPI[[#This Row],[kWhSavings]]=\"\",\"\",ROUND(Table_SummaryPI[[#This Row],[kWhSavings]]/$AG$401*'Customer Information'!$BC$17,2)),0)","v":""},{"$f":"IF(OR(Table_PI[[#This Row],[Annual kWh]]=\"\",Table_PI[[#This Row],[Annual kWh]]=0),\"\",Table_PI[[#This Row],[Annual kWh]])","v":""},{"$f":"IF(OR(Table_PI[[#This Row],[Peak kW]]=\"\",Table_PI[[#This Row],[Peak kW]]=0),\"\",Table_PI[[#This Row],[Peak kW]])","v":""},{"$f":"IFERROR(IF(Table_SummaryPI[[#This Row],[kWhSavings]]=\"\",\"\",$AU$9*Table_SummaryPI[[#This Row],[kWhSavings]]),0)","v":""},{"$f":"IFERROR(IF(Table_SummaryPI[[#This Row],[kWhSavings]]=\"\",\"\",$AU$14*Table_SummaryPI[[#This Row],[kWhSavings]]),0)","v":""},{"$f":"IFERROR(IF(Table_SummaryPI[[#This Row],[kWhSavings]]=\"\",\"\",$AU$18*Table_SummaryPI[[#This Row],[kWhSavings]]),0)","v":""},{"$f":"IFERROR(IF(Table_SummaryPI[[#This Row],[kWhSavings]]=\"\",\"\",$AU$22*Table_SummaryPI[[#This Row],[kWhSavings]]),0)","v":""},{"$f":"IFERROR(IF(MeasureCalc(Table_PI[[#This Row],[Hide:\nFormula Name]],Table_SummaryPI[[#This Row],[Quantity]],Table_PI[[#This Row],[List 1]],Table_PI[[#This Row],[List 2]],Table_PI[[#This Row],[List 3]],Table_PI[[#This Row],[Size]],Table_PI[[#This Row],[Input 1]],Table_PI[[#This Row],[Input 2]],Table_PI[[#This Row],[Input 3]],Table_PI[[#This Row],[Input 4]],'Customer Information'!$AR$12,200,ROW())<>\"No Rebate\",MeasureCalc(Table_PI[[#This Row],[Hide:\nFormula Name]],Table_SummaryPI[[#This Row],[Quantity]],Table_PI[[#This Row],[List 1]],Table_PI[[#This Row],[List 2]],Table_PI[[#This Row],[List 3]],Table_PI[[#This Row],[Size]],Table_PI[[#This Row],[Input 1]],Table_PI[[#This Row],[Input 2]],Table_PI[[#This Row],[Input 3]],Table_PI[[#This Row],[Input 4]],'Customer Information'!$AR$12,200,ROW()),\"\"),\"\")","v":""},{"$f":"IFERROR(IF(MeasureCalc(Table_PI[[#This Row],[Hide:\nFormula Name]],Table_SummaryPI[[#This Row],[Quantity]],Table_PI[[#This Row],[List 1]],Table_PI[[#This Row],[List 2]],Table_PI[[#This Row],[List 3]],Table_PI[[#This Row],[Size]],Table_PI[[#This Row],[Input 1]],Table_PI[[#This Row],[Input 2]],Table_PI[[#This Row],[Input 3]],Table_PI[[#This Row],[Input 4]],'Customer Information'!$AR$12,201,ROW())<>\"No Rebate\",MeasureCalc(Table_PI[[#This Row],[Hide:\nFormula Name]],Table_SummaryPI[[#This Row],[Quantity]],Table_PI[[#This Row],[List 1]],Table_PI[[#This Row],[List 2]],Table_PI[[#This Row],[List 3]],Table_PI[[#This Row],[Size]],Table_PI[[#This Row],[Input 1]],Table_PI[[#This Row],[Input 2]],Table_PI[[#This Row],[Input 3]],Table_PI[[#This Row],[Input 4]],'Customer Information'!$AR$12,201,ROW()),\"\"),\"\")","v":""}]
[{"$f":"Table_PI[[#This Row],[Line No.]]","v":""},{"$f":"IF(Table_SummaryPI[[#This Row],[MeassureCategory]]<>\"\",CONCATENATE(Table_SummaryPI[[#This Row],[MeassureCategory]],  \" - \", Table_SummaryPI[[#This Row],[ProposedMeasureCategory]],  \" - \", TEXT(Table_SummaryPI[[#This Row],[Size]],\"#,##0.00\"),\" \",Table_SummaryPI[[#This Row],[SizeUnit]]),\"\")","v":""},{"$f":"SUBSTITUTE(Table_PI[[#This Row],[Measure]],\"     \",\"\",1)","v":""},{"$f":"IF(Table_PI[[#This Row],[List 1]]<>\"\",Table_PI[[#This Row],[List 1]],\"\")","v":""},{"$f":"IF(Table_PI[[#This Row],[List 2]]<>\"\",Table_PI[[#This Row],[List 2]],\"\")","v":""},{"$f":"IF(Table_PI[[#This Row],[List 3]]<>\"\",Table_PI[[#This Row],[List 3]],\"\")","v":""},{"$f":"IF(Table_PI[[#This Row],[Manufacturer]]=\"\",\"\",Table_PI[[#This Row],[Manufacturer]])","v":""},{"$f":"IF(Table_PI[[#This Row],[Model Number]]=\"\",\"\",Table_PI[[#This Row],[Model Number]])","v":""},{"$f":"IF(Table_PI[[#This Row],[Serial Number(s)]]=\"\",\"\",Table_PI[[#This Row],[Serial Number(s)]])","v":""},null,{"$f":"IF(Table_PI[[#This Row],[Size]]=\"\",\"\",Table_PI[[#This Row],[Size]])","v":""},null,{"$f":"IFERROR(IF(AND(MeasureCalc(Table_PI[[#This Row],[Hide:\nFormula Name]],Table_SummaryPI[[#This Row],[Quantity]],Table_PI[[#This Row],[List 1]],Table_PI[[#This Row],[List 2]],Table_PI[[#This Row],[List 3]],Table_PI[[#This Row],[Size]],Table_PI[[#This Row],[Input 1]],Table_PI[[#This Row],[Input 2]],Table_PI[[#This Row],[Input 3]],Table_PI[[#This Row],[Input 4]],'Customer Information'!$AR$12,100,ROW())<>0,MeasureCalc(Table_PI[[#This Row],[Hide:\nFormula Name]],Table_SummaryPI[[#This Row],[Quantity]],Table_PI[[#This Row],[List 1]],Table_PI[[#This Row],[List 2]],Table_PI[[#This Row],[List 3]],Table_PI[[#This Row],[Size]],Table_PI[[#This Row],[Input 1]],Table_PI[[#This Row],[Input 2]],Table_PI[[#This Row],[Input 3]],Table_PI[[#This Row],[Input 4]],'Customer Information'!$AR$12,100,ROW())<>\"No Rebate\"),MeasureCalc(Table_PI[[#This Row],[Hide:\nFormula Name]],Table_SummaryPI[[#This Row],[Quantity]],Table_PI[[#This Row],[List 1]],Table_PI[[#This Row],[List 2]],Table_PI[[#This Row],[List 3]],Table_PI[[#This Row],[Size]],Table_PI[[#This Row],[Input 1]],Table_PI[[#This Row],[Input 2]],Table_PI[[#This Row],[Input 3]],Table_PI[[#This Row],[Input 4]],'Customer Information'!$AR$12,100,ROW()),\"\"),\"\")","v":""},{"$f":"IF(Table_PI[[#This Row],[Input 1]]<>\"\",Table_PI[[#This Row],[Input 1]],\"\")","v":""},null,{"$f":"IFERROR(IF(AND(MeasureCalc(Table_PI[[#This Row],[Hide:\nFormula Name]],Table_SummaryPI[[#This Row],[Quantity]],Table_PI[[#This Row],[List 1]],Table_PI[[#This Row],[List 2]],Table_PI[[#This Row],[List 3]],Table_PI[[#This Row],[Size]],Table_PI[[#This Row],[Input 1]],Table_PI[[#This Row],[Input 2]],Table_PI[[#This Row],[Input 3]],Table_PI[[#This Row],[Input 4]],'Customer Information'!$AR$12,101,ROW())<>0,MeasureCalc(Table_PI[[#This Row],[Hide:\nFormula Name]],Table_SummaryPI[[#This Row],[Quantity]],Table_PI[[#This Row],[List 1]],Table_PI[[#This Row],[List 2]],Table_PI[[#This Row],[List 3]],Table_PI[[#This Row],[Size]],Table_PI[[#This Row],[Input 1]],Table_PI[[#This Row],[Input 2]],Table_PI[[#This Row],[Input 3]],Table_PI[[#This Row],[Input 4]],'Customer Information'!$AR$12,101,ROW())<>\"No Rebate\"),MeasureCalc(Table_PI[[#This Row],[Hide:\nFormula Name]],Table_SummaryPI[[#This Row],[Quantity]],Table_PI[[#This Row],[List 1]],Table_PI[[#This Row],[List 2]],Table_PI[[#This Row],[List 3]],Table_PI[[#This Row],[Size]],Table_PI[[#This Row],[Input 1]],Table_PI[[#This Row],[Input 2]],Table_PI[[#This Row],[Input 3]],Table_PI[[#This Row],[Input 4]],'Customer Information'!$AR$12,101,ROW()),\"\"),\"\")","v":""},{"$f":"IF(Table_PI[[#This Row],[Input 2]]<>\"\",Table_PI[[#This Row],[Input 2]],\"\")","v":""},null,{"$f":"IFERROR(IF(AND(MeasureCalc(Table_PI[[#This Row],[Hide:\nFormula Name]],Table_SummaryPI[[#This Row],[Quantity]],Table_PI[[#This Row],[List 1]],Table_PI[[#This Row],[List 2]],Table_PI[[#This Row],[List 3]],Table_PI[[#This Row],[Size]],Table_PI[[#This Row],[Input 1]],Table_PI[[#This Row],[Input 2]],Table_PI[[#This Row],[Input 3]],Table_PI[[#This Row],[Input 4]],'Customer Information'!$AR$12,102,ROW())<>0,MeasureCalc(Table_PI[[#This Row],[Hide:\nFormula Name]],Table_SummaryPI[[#This Row],[Quantity]],Table_PI[[#This Row],[List 1]],Table_PI[[#This Row],[List 2]],Table_PI[[#This Row],[List 3]],Table_PI[[#This Row],[Size]],Table_PI[[#This Row],[Input 1]],Table_PI[[#This Row],[Input 2]],Table_PI[[#This Row],[Input 3]],Table_PI[[#This Row],[Input 4]],'Customer Information'!$AR$12,102,ROW())<>\"No Rebate\"),MeasureCalc(Table_PI[[#This Row],[Hide:\nFormula Name]],Table_SummaryPI[[#This Row],[Quantity]],Table_PI[[#This Row],[List 1]],Table_PI[[#This Row],[List 2]],Table_PI[[#This Row],[List 3]],Table_PI[[#This Row],[Size]],Table_PI[[#This Row],[Input 1]],Table_PI[[#This Row],[Input 2]],Table_PI[[#This Row],[Input 3]],Table_PI[[#This Row],[Input 4]],'Customer Information'!$AR$12,102,ROW()),\"\"),\"\")","v":""},{"$f":"IF(Table_PI[[#This Row],[Input 3]]<>\"\",Table_PI[[#This Row],[Input 3]],\"\")","v":""},null,{"$f":"IFERROR(IF(AND(MeasureCalc(Table_PI[[#This Row],[Hide:\nFormula Name]],Table_SummaryPI[[#This Row],[Quantity]],Table_PI[[#This Row],[List 1]],Table_PI[[#This Row],[List 2]],Table_PI[[#This Row],[List 3]],Table_PI[[#This Row],[Size]],Table_PI[[#This Row],[Input 1]],Table_PI[[#This Row],[Input 2]],Table_PI[[#This Row],[Input 3]],Table_PI[[#This Row],[Input 4]],'Customer Information'!$AR$12,103,ROW())<>0,MeasureCalc(Table_PI[[#This Row],[Hide:\nFormula Name]],Table_SummaryPI[[#This Row],[Quantity]],Table_PI[[#This Row],[List 1]],Table_PI[[#This Row],[List 2]],Table_PI[[#This Row],[List 3]],Table_PI[[#This Row],[Size]],Table_PI[[#This Row],[Input 1]],Table_PI[[#This Row],[Input 2]],Table_PI[[#This Row],[Input 3]],Table_PI[[#This Row],[Input 4]],'Customer Information'!$AR$12,103,ROW())<>\"No Rebate\"),MeasureCalc(Table_PI[[#This Row],[Hide:\nFormula Name]],Table_SummaryPI[[#This Row],[Quantity]],Table_PI[[#This Row],[List 1]],Table_PI[[#This Row],[List 2]],Table_PI[[#This Row],[List 3]],Table_PI[[#This Row],[Size]],Table_PI[[#This Row],[Input 1]],Table_PI[[#This Row],[Input 2]],Table_PI[[#This Row],[Input 3]],Table_PI[[#This Row],[Input 4]],'Customer Information'!$AR$12,103,ROW()),\"\"),\"\")","v":""},{"$f":"IF(Table_PI[[#This Row],[Input 4]]<>\"\",Table_PI[[#This Row],[Input 4]],\"\")","v":""},{"$f":"IF(Table_PI[[#This Row],[Quantity]]=\"\",\"\",Table_PI[[#This Row],[Quantity]])","v":""},{"$f":"IF(Table_PI[[#This Row],[Notes]]=\"\",\"\",Table_PI[[#This Row],[Notes]])","v":""},{"$f":"IF(OR(Table_PI[[#This Row],[Hide:\nBaseline kWh]]=\"\",Table_PI[[#This Row],[Hide:\nBaseline kWh]]=0),\"\",Table_PI[[#This Row],[Hide:\nBaseline kWh]])","v":""},{"$f":"IF(OR(Table_PI[[#This Row],[Hide:\nBaseline kW]]=\"\",Table_PI[[#This Row],[Hide:\nBaseline kW]]=0),\"\",Table_PI[[#This Row],[Hide:\nBaseline kW]])","v":""},{"$f":"IF(OR(Table_PI[[#This Row],[Hide:\nProposed kWh]]=\"\",Table_PI[[#This Row],[Hide:\nProposed kWh]]=0),\"\",Table_PI[[#This Row],[Hide:\nProposed kWh]])","v":""},{"$f":"IF(OR(Table_PI[[#This Row],[Hide:\nProposed kW]]=\"\",Table_PI[[#This Row],[Hide:\nProposed kW]]=0),\"\",Table_PI[[#This Row],[Hide:\nProposed kW]])","v":""},{"$f":"IF(OR(Table_PI[[#This Row],[Rebate]]=\"\",Table_PI[[#This Row],[Rebate]]=0),\"\",Table_PI[[#This Row],[Rebate]])","v":""},{"$f":"IF(OR(Table_PI[[#This Row],[Hide:\nIncremental Cost]]=\"\",Table_PI[[#This Row],[Hide:\nIncremental Cost]]=0),\"\",Table_PI[[#This Row],[Hide:\nIncremental Cost]])","v":""},{"$f":"IFERROR(IF(Table_SummaryPI[[#This Row],[kWhSavings]]=\"\",\"\",ROUND(Table_SummaryPI[[#This Row],[kWhSavings]]/$AG$401*'Customer Information'!$BC$17,2)),0)","v":""},{"$f":"IF(OR(Table_PI[[#This Row],[Annual kWh]]=\"\",Table_PI[[#This Row],[Annual kWh]]=0),\"\",Table_PI[[#This Row],[Annual kWh]])","v":""},{"$f":"IF(OR(Table_PI[[#This Row],[Peak kW]]=\"\",Table_PI[[#This Row],[Peak kW]]=0),\"\",Table_PI[[#This Row],[Peak kW]])","v":""},{"$f":"IFERROR(IF(Table_SummaryPI[[#This Row],[kWhSavings]]=\"\",\"\",$AU$9*Table_SummaryPI[[#This Row],[kWhSavings]]),0)","v":""},{"$f":"IFERROR(IF(Table_SummaryPI[[#This Row],[kWhSavings]]=\"\",\"\",$AU$14*Table_SummaryPI[[#This Row],[kWhSavings]]),0)","v":""},{"$f":"IFERROR(IF(Table_SummaryPI[[#This Row],[kWhSavings]]=\"\",\"\",$AU$18*Table_SummaryPI[[#This Row],[kWhSavings]]),0)","v":""},{"$f":"IFERROR(IF(Table_SummaryPI[[#This Row],[kWhSavings]]=\"\",\"\",$AU$22*Table_SummaryPI[[#This Row],[kWhSavings]]),0)","v":""},{"$f":"IFERROR(IF(MeasureCalc(Table_PI[[#This Row],[Hide:\nFormula Name]],Table_SummaryPI[[#This Row],[Quantity]],Table_PI[[#This Row],[List 1]],Table_PI[[#This Row],[List 2]],Table_PI[[#This Row],[List 3]],Table_PI[[#This Row],[Size]],Table_PI[[#This Row],[Input 1]],Table_PI[[#This Row],[Input 2]],Table_PI[[#This Row],[Input 3]],Table_PI[[#This Row],[Input 4]],'Customer Information'!$AR$12,200,ROW())<>\"No Rebate\",MeasureCalc(Table_PI[[#This Row],[Hide:\nFormula Name]],Table_SummaryPI[[#This Row],[Quantity]],Table_PI[[#This Row],[List 1]],Table_PI[[#This Row],[List 2]],Table_PI[[#This Row],[List 3]],Table_PI[[#This Row],[Size]],Table_PI[[#This Row],[Input 1]],Table_PI[[#This Row],[Input 2]],Table_PI[[#This Row],[Input 3]],Table_PI[[#This Row],[Input 4]],'Customer Information'!$AR$12,200,ROW()),\"\"),\"\")","v":""},{"$f":"IFERROR(IF(MeasureCalc(Table_PI[[#This Row],[Hide:\nFormula Name]],Table_SummaryPI[[#This Row],[Quantity]],Table_PI[[#This Row],[List 1]],Table_PI[[#This Row],[List 2]],Table_PI[[#This Row],[List 3]],Table_PI[[#This Row],[Size]],Table_PI[[#This Row],[Input 1]],Table_PI[[#This Row],[Input 2]],Table_PI[[#This Row],[Input 3]],Table_PI[[#This Row],[Input 4]],'Customer Information'!$AR$12,201,ROW())<>\"No Rebate\",MeasureCalc(Table_PI[[#This Row],[Hide:\nFormula Name]],Table_SummaryPI[[#This Row],[Quantity]],Table_PI[[#This Row],[List 1]],Table_PI[[#This Row],[List 2]],Table_PI[[#This Row],[List 3]],Table_PI[[#This Row],[Size]],Table_PI[[#This Row],[Input 1]],Table_PI[[#This Row],[Input 2]],Table_PI[[#This Row],[Input 3]],Table_PI[[#This Row],[Input 4]],'Customer Information'!$AR$12,201,ROW()),\"\"),\"\")","v":""}]
[{"$f":"Table_PI[[#This Row],[Line No.]]","v":""},{"$f":"IF(Table_SummaryPI[[#This Row],[MeassureCategory]]<>\"\",CONCATENATE(Table_SummaryPI[[#This Row],[MeassureCategory]],  \" - \", Table_SummaryPI[[#This Row],[ProposedMeasureCategory]],  \" - \", TEXT(Table_SummaryPI[[#This Row],[Size]],\"#,##0.00\"),\" \",Table_SummaryPI[[#This Row],[SizeUnit]]),\"\")","v":""},{"$f":"SUBSTITUTE(Table_PI[[#This Row],[Measure]],\"     \",\"\",1)","v":""},{"$f":"IF(Table_PI[[#This Row],[List 1]]<>\"\",Table_PI[[#This Row],[List 1]],\"\")","v":""},{"$f":"IF(Table_PI[[#This Row],[List 2]]<>\"\",Table_PI[[#This Row],[List 2]],\"\")","v":""},{"$f":"IF(Table_PI[[#This Row],[List 3]]<>\"\",Table_PI[[#This Row],[List 3]],\"\")","v":""},{"$f":"IF(Table_PI[[#This Row],[Manufacturer]]=\"\",\"\",Table_PI[[#This Row],[Manufacturer]])","v":""},{"$f":"IF(Table_PI[[#This Row],[Model Number]]=\"\",\"\",Table_PI[[#This Row],[Model Number]])","v":""},{"$f":"IF(Table_PI[[#This Row],[Serial Number(s)]]=\"\",\"\",Table_PI[[#This Row],[Serial Number(s)]])","v":""},null,{"$f":"IF(Table_PI[[#This Row],[Size]]=\"\",\"\",Table_PI[[#This Row],[Size]])","v":""},null,{"$f":"IFERROR(IF(AND(MeasureCalc(Table_PI[[#This Row],[Hide:\nFormula Name]],Table_SummaryPI[[#This Row],[Quantity]],Table_PI[[#This Row],[List 1]],Table_PI[[#This Row],[List 2]],Table_PI[[#This Row],[List 3]],Table_PI[[#This Row],[Size]],Table_PI[[#This Row],[Input 1]],Table_PI[[#This Row],[Input 2]],Table_PI[[#This Row],[Input 3]],Table_PI[[#This Row],[Input 4]],'Customer Information'!$AR$12,100,ROW())<>0,MeasureCalc(Table_PI[[#This Row],[Hide:\nFormula Name]],Table_SummaryPI[[#This Row],[Quantity]],Table_PI[[#This Row],[List 1]],Table_PI[[#This Row],[List 2]],Table_PI[[#This Row],[List 3]],Table_PI[[#This Row],[Size]],Table_PI[[#This Row],[Input 1]],Table_PI[[#This Row],[Input 2]],Table_PI[[#This Row],[Input 3]],Table_PI[[#This Row],[Input 4]],'Customer Information'!$AR$12,100,ROW())<>\"No Rebate\"),MeasureCalc(Table_PI[[#This Row],[Hide:\nFormula Name]],Table_SummaryPI[[#This Row],[Quantity]],Table_PI[[#This Row],[List 1]],Table_PI[[#This Row],[List 2]],Table_PI[[#This Row],[List 3]],Table_PI[[#This Row],[Size]],Table_PI[[#This Row],[Input 1]],Table_PI[[#This Row],[Input 2]],Table_PI[[#This Row],[Input 3]],Table_PI[[#This Row],[Input 4]],'Customer Information'!$AR$12,100,ROW()),\"\"),\"\")","v":""},{"$f":"IF(Table_PI[[#This Row],[Input 1]]<>\"\",Table_PI[[#This Row],[Input 1]],\"\")","v":""},null,{"$f":"IFERROR(IF(AND(MeasureCalc(Table_PI[[#This Row],[Hide:\nFormula Name]],Table_SummaryPI[[#This Row],[Quantity]],Table_PI[[#This Row],[List 1]],Table_PI[[#This Row],[List 2]],Table_PI[[#This Row],[List 3]],Table_PI[[#This Row],[Size]],Table_PI[[#This Row],[Input 1]],Table_PI[[#This Row],[Input 2]],Table_PI[[#This Row],[Input 3]],Table_PI[[#This Row],[Input 4]],'Customer Information'!$AR$12,101,ROW())<>0,MeasureCalc(Table_PI[[#This Row],[Hide:\nFormula Name]],Table_SummaryPI[[#This Row],[Quantity]],Table_PI[[#This Row],[List 1]],Table_PI[[#This Row],[List 2]],Table_PI[[#This Row],[List 3]],Table_PI[[#This Row],[Size]],Table_PI[[#This Row],[Input 1]],Table_PI[[#This Row],[Input 2]],Table_PI[[#This Row],[Input 3]],Table_PI[[#This Row],[Input 4]],'Customer Information'!$AR$12,101,ROW())<>\"No Rebate\"),MeasureCalc(Table_PI[[#This Row],[Hide:\nFormula Name]],Table_SummaryPI[[#This Row],[Quantity]],Table_PI[[#This Row],[List 1]],Table_PI[[#This Row],[List 2]],Table_PI[[#This Row],[List 3]],Table_PI[[#This Row],[Size]],Table_PI[[#This Row],[Input 1]],Table_PI[[#This Row],[Input 2]],Table_PI[[#This Row],[Input 3]],Table_PI[[#This Row],[Input 4]],'Customer Information'!$AR$12,101,ROW()),\"\"),\"\")","v":""},{"$f":"IF(Table_PI[[#This Row],[Input 2]]<>\"\",Table_PI[[#This Row],[Input 2]],\"\")","v":""},null,{"$f":"IFERROR(IF(AND(MeasureCalc(Table_PI[[#This Row],[Hide:\nFormula Name]],Table_SummaryPI[[#This Row],[Quantity]],Table_PI[[#This Row],[List 1]],Table_PI[[#This Row],[List 2]],Table_PI[[#This Row],[List 3]],Table_PI[[#This Row],[Size]],Table_PI[[#This Row],[Input 1]],Table_PI[[#This Row],[Input 2]],Table_PI[[#This Row],[Input 3]],Table_PI[[#This Row],[Input 4]],'Customer Information'!$AR$12,102,ROW())<>0,MeasureCalc(Table_PI[[#This Row],[Hide:\nFormula Name]],Table_SummaryPI[[#This Row],[Quantity]],Table_PI[[#This Row],[List 1]],Table_PI[[#This Row],[List 2]],Table_PI[[#This Row],[List 3]],Table_PI[[#This Row],[Size]],Table_PI[[#This Row],[Input 1]],Table_PI[[#This Row],[Input 2]],Table_PI[[#This Row],[Input 3]],Table_PI[[#This Row],[Input 4]],'Customer Information'!$AR$12,102,ROW())<>\"No Rebate\"),MeasureCalc(Table_PI[[#This Row],[Hide:\nFormula Name]],Table_SummaryPI[[#This Row],[Quantity]],Table_PI[[#This Row],[List 1]],Table_PI[[#This Row],[List 2]],Table_PI[[#This Row],[List 3]],Table_PI[[#This Row],[Size]],Table_PI[[#This Row],[Input 1]],Table_PI[[#This Row],[Input 2]],Table_PI[[#This Row],[Input 3]],Table_PI[[#This Row],[Input 4]],'Customer Information'!$AR$12,102,ROW()),\"\"),\"\")","v":""},{"$f":"IF(Table_PI[[#This Row],[Input 3]]<>\"\",Table_PI[[#This Row],[Input 3]],\"\")","v":""},null,{"$f":"IFERROR(IF(AND(MeasureCalc(Table_PI[[#This Row],[Hide:\nFormula Name]],Table_SummaryPI[[#This Row],[Quantity]],Table_PI[[#This Row],[List 1]],Table_PI[[#This Row],[List 2]],Table_PI[[#This Row],[List 3]],Table_PI[[#This Row],[Size]],Table_PI[[#This Row],[Input 1]],Table_PI[[#This Row],[Input 2]],Table_PI[[#This Row],[Input 3]],Table_PI[[#This Row],[Input 4]],'Customer Information'!$AR$12,103,ROW())<>0,MeasureCalc(Table_PI[[#This Row],[Hide:\nFormula Name]],Table_SummaryPI[[#This Row],[Quantity]],Table_PI[[#This Row],[List 1]],Table_PI[[#This Row],[List 2]],Table_PI[[#This Row],[List 3]],Table_PI[[#This Row],[Size]],Table_PI[[#This Row],[Input 1]],Table_PI[[#This Row],[Input 2]],Table_PI[[#This Row],[Input 3]],Table_PI[[#This Row],[Input 4]],'Customer Information'!$AR$12,103,ROW())<>\"No Rebate\"),MeasureCalc(Table_PI[[#This Row],[Hide:\nFormula Name]],Table_SummaryPI[[#This Row],[Quantity]],Table_PI[[#This Row],[List 1]],Table_PI[[#This Row],[List 2]],Table_PI[[#This Row],[List 3]],Table_PI[[#This Row],[Size]],Table_PI[[#This Row],[Input 1]],Table_PI[[#This Row],[Input 2]],Table_PI[[#This Row],[Input 3]],Table_PI[[#This Row],[Input 4]],'Customer Information'!$AR$12,103,ROW()),\"\"),\"\")","v":""},{"$f":"IF(Table_PI[[#This Row],[Input 4]]<>\"\",Table_PI[[#This Row],[Input 4]],\"\")","v":""},{"$f":"IF(Table_PI[[#This Row],[Quantity]]=\"\",\"\",Table_PI[[#This Row],[Quantity]])","v":""},{"$f":"IF(Table_PI[[#This Row],[Notes]]=\"\",\"\",Table_PI[[#This Row],[Notes]])","v":""},{"$f":"IF(OR(Table_PI[[#This Row],[Hide:\nBaseline kWh]]=\"\",Table_PI[[#This Row],[Hide:\nBaseline kWh]]=0),\"\",Table_PI[[#This Row],[Hide:\nBaseline kWh]])","v":""},{"$f":"IF(OR(Table_PI[[#This Row],[Hide:\nBaseline kW]]=\"\",Table_PI[[#This Row],[Hide:\nBaseline kW]]=0),\"\",Table_PI[[#This Row],[Hide:\nBaseline kW]])","v":""},{"$f":"IF(OR(Table_PI[[#This Row],[Hide:\nProposed kWh]]=\"\",Table_PI[[#This Row],[Hide:\nProposed kWh]]=0),\"\",Table_PI[[#This Row],[Hide:\nProposed kWh]])","v":""},{"$f":"IF(OR(Table_PI[[#This Row],[Hide:\nProposed kW]]=\"\",Table_PI[[#This Row],[Hide:\nProposed kW]]=0),\"\",Table_PI[[#This Row],[Hide:\nProposed kW]])","v":""},{"$f":"IF(OR(Table_PI[[#This Row],[Rebate]]=\"\",Table_PI[[#This Row],[Rebate]]=0),\"\",Table_PI[[#This Row],[Rebate]])","v":""},{"$f":"IF(OR(Table_PI[[#This Row],[Hide:\nIncremental Cost]]=\"\",Table_PI[[#This Row],[Hide:\nIncremental Cost]]=0),\"\",Table_PI[[#This Row],[Hide:\nIncremental Cost]])","v":""},{"$f":"IFERROR(IF(Table_SummaryPI[[#This Row],[kWhSavings]]=\"\",\"\",ROUND(Table_SummaryPI[[#This Row],[kWhSavings]]/$AG$401*'Customer Information'!$BC$17,2)),0)","v":""},{"$f":"IF(OR(Table_PI[[#This Row],[Annual kWh]]=\"\",Table_PI[[#This Row],[Annual kWh]]=0),\"\",Table_PI[[#This Row],[Annual kWh]])","v":""},{"$f":"IF(OR(Table_PI[[#This Row],[Peak kW]]=\"\",Table_PI[[#This Row],[Peak kW]]=0),\"\",Table_PI[[#This Row],[Peak kW]])","v":""},{"$f":"IFERROR(IF(Table_SummaryPI[[#This Row],[kWhSavings]]=\"\",\"\",$AU$9*Table_SummaryPI[[#This Row],[kWhSavings]]),0)","v":""},{"$f":"IFERROR(IF(Table_SummaryPI[[#This Row],[kWhSavings]]=\"\",\"\",$AU$14*Table_SummaryPI[[#This Row],[kWhSavings]]),0)","v":""},{"$f":"IFERROR(IF(Table_SummaryPI[[#This Row],[kWhSavings]]=\"\",\"\",$AU$18*Table_SummaryPI[[#This Row],[kWhSavings]]),0)","v":""},{"$f":"IFERROR(IF(Table_SummaryPI[[#This Row],[kWhSavings]]=\"\",\"\",$AU$22*Table_SummaryPI[[#This Row],[kWhSavings]]),0)","v":""},{"$f":"IFERROR(IF(MeasureCalc(Table_PI[[#This Row],[Hide:\nFormula Name]],Table_SummaryPI[[#This Row],[Quantity]],Table_PI[[#This Row],[List 1]],Table_PI[[#This Row],[List 2]],Table_PI[[#This Row],[List 3]],Table_PI[[#This Row],[Size]],Table_PI[[#This Row],[Input 1]],Table_PI[[#This Row],[Input 2]],Table_PI[[#This Row],[Input 3]],Table_PI[[#This Row],[Input 4]],'Customer Information'!$AR$12,200,ROW())<>\"No Rebate\",MeasureCalc(Table_PI[[#This Row],[Hide:\nFormula Name]],Table_SummaryPI[[#This Row],[Quantity]],Table_PI[[#This Row],[List 1]],Table_PI[[#This Row],[List 2]],Table_PI[[#This Row],[List 3]],Table_PI[[#This Row],[Size]],Table_PI[[#This Row],[Input 1]],Table_PI[[#This Row],[Input 2]],Table_PI[[#This Row],[Input 3]],Table_PI[[#This Row],[Input 4]],'Customer Information'!$AR$12,200,ROW()),\"\"),\"\")","v":""},{"$f":"IFERROR(IF(MeasureCalc(Table_PI[[#This Row],[Hide:\nFormula Name]],Table_SummaryPI[[#This Row],[Quantity]],Table_PI[[#This Row],[List 1]],Table_PI[[#This Row],[List 2]],Table_PI[[#This Row],[List 3]],Table_PI[[#This Row],[Size]],Table_PI[[#This Row],[Input 1]],Table_PI[[#This Row],[Input 2]],Table_PI[[#This Row],[Input 3]],Table_PI[[#This Row],[Input 4]],'Customer Information'!$AR$12,201,ROW())<>\"No Rebate\",MeasureCalc(Table_PI[[#This Row],[Hide:\nFormula Name]],Table_SummaryPI[[#This Row],[Quantity]],Table_PI[[#This Row],[List 1]],Table_PI[[#This Row],[List 2]],Table_PI[[#This Row],[List 3]],Table_PI[[#This Row],[Size]],Table_PI[[#This Row],[Input 1]],Table_PI[[#This Row],[Input 2]],Table_PI[[#This Row],[Input 3]],Table_PI[[#This Row],[Input 4]],'Customer Information'!$AR$12,201,ROW()),\"\"),\"\")","v":""}]
[{"$f":"Table_PI[[#This Row],[Line No.]]","v":""},{"$f":"IF(Table_SummaryPI[[#This Row],[MeassureCategory]]<>\"\",CONCATENATE(Table_SummaryPI[[#This Row],[MeassureCategory]],  \" - \", Table_SummaryPI[[#This Row],[ProposedMeasureCategory]],  \" - \", TEXT(Table_SummaryPI[[#This Row],[Size]],\"#,##0.00\"),\" \",Table_SummaryPI[[#This Row],[SizeUnit]]),\"\")","v":""},{"$f":"SUBSTITUTE(Table_PI[[#This Row],[Measure]],\"     \",\"\",1)","v":""},{"$f":"IF(Table_PI[[#This Row],[List 1]]<>\"\",Table_PI[[#This Row],[List 1]],\"\")","v":""},{"$f":"IF(Table_PI[[#This Row],[List 2]]<>\"\",Table_PI[[#This Row],[List 2]],\"\")","v":""},{"$f":"IF(Table_PI[[#This Row],[List 3]]<>\"\",Table_PI[[#This Row],[List 3]],\"\")","v":""},{"$f":"IF(Table_PI[[#This Row],[Manufacturer]]=\"\",\"\",Table_PI[[#This Row],[Manufacturer]])","v":""},{"$f":"IF(Table_PI[[#This Row],[Model Number]]=\"\",\"\",Table_PI[[#This Row],[Model Number]])","v":""},{"$f":"IF(Table_PI[[#This Row],[Serial Number(s)]]=\"\",\"\",Table_PI[[#This Row],[Serial Number(s)]])","v":""},null,{"$f":"IF(Table_PI[[#This Row],[Size]]=\"\",\"\",Table_PI[[#This Row],[Size]])","v":""},null,{"$f":"IFERROR(IF(AND(MeasureCalc(Table_PI[[#This Row],[Hide:\nFormula Name]],Table_SummaryPI[[#This Row],[Quantity]],Table_PI[[#This Row],[List 1]],Table_PI[[#This Row],[List 2]],Table_PI[[#This Row],[List 3]],Table_PI[[#This Row],[Size]],Table_PI[[#This Row],[Input 1]],Table_PI[[#This Row],[Input 2]],Table_PI[[#This Row],[Input 3]],Table_PI[[#This Row],[Input 4]],'Customer Information'!$AR$12,100,ROW())<>0,MeasureCalc(Table_PI[[#This Row],[Hide:\nFormula Name]],Table_SummaryPI[[#This Row],[Quantity]],Table_PI[[#This Row],[List 1]],Table_PI[[#This Row],[List 2]],Table_PI[[#This Row],[List 3]],Table_PI[[#This Row],[Size]],Table_PI[[#This Row],[Input 1]],Table_PI[[#This Row],[Input 2]],Table_PI[[#This Row],[Input 3]],Table_PI[[#This Row],[Input 4]],'Customer Information'!$AR$12,100,ROW())<>\"No Rebate\"),MeasureCalc(Table_PI[[#This Row],[Hide:\nFormula Name]],Table_SummaryPI[[#This Row],[Quantity]],Table_PI[[#This Row],[List 1]],Table_PI[[#This Row],[List 2]],Table_PI[[#This Row],[List 3]],Table_PI[[#This Row],[Size]],Table_PI[[#This Row],[Input 1]],Table_PI[[#This Row],[Input 2]],Table_PI[[#This Row],[Input 3]],Table_PI[[#This Row],[Input 4]],'Customer Information'!$AR$12,100,ROW()),\"\"),\"\")","v":""},{"$f":"IF(Table_PI[[#This Row],[Input 1]]<>\"\",Table_PI[[#This Row],[Input 1]],\"\")","v":""},null,{"$f":"IFERROR(IF(AND(MeasureCalc(Table_PI[[#This Row],[Hide:\nFormula Name]],Table_SummaryPI[[#This Row],[Quantity]],Table_PI[[#This Row],[List 1]],Table_PI[[#This Row],[List 2]],Table_PI[[#This Row],[List 3]],Table_PI[[#This Row],[Size]],Table_PI[[#This Row],[Input 1]],Table_PI[[#This Row],[Input 2]],Table_PI[[#This Row],[Input 3]],Table_PI[[#This Row],[Input 4]],'Customer Information'!$AR$12,101,ROW())<>0,MeasureCalc(Table_PI[[#This Row],[Hide:\nFormula Name]],Table_SummaryPI[[#This Row],[Quantity]],Table_PI[[#This Row],[List 1]],Table_PI[[#This Row],[List 2]],Table_PI[[#This Row],[List 3]],Table_PI[[#This Row],[Size]],Table_PI[[#This Row],[Input 1]],Table_PI[[#This Row],[Input 2]],Table_PI[[#This Row],[Input 3]],Table_PI[[#This Row],[Input 4]],'Customer Information'!$AR$12,101,ROW())<>\"No Rebate\"),MeasureCalc(Table_PI[[#This Row],[Hide:\nFormula Name]],Table_SummaryPI[[#This Row],[Quantity]],Table_PI[[#This Row],[List 1]],Table_PI[[#This Row],[List 2]],Table_PI[[#This Row],[List 3]],Table_PI[[#This Row],[Size]],Table_PI[[#This Row],[Input 1]],Table_PI[[#This Row],[Input 2]],Table_PI[[#This Row],[Input 3]],Table_PI[[#This Row],[Input 4]],'Customer Information'!$AR$12,101,ROW()),\"\"),\"\")","v":""},{"$f":"IF(Table_PI[[#This Row],[Input 2]]<>\"\",Table_PI[[#This Row],[Input 2]],\"\")","v":""},null,{"$f":"IFERROR(IF(AND(MeasureCalc(Table_PI[[#This Row],[Hide:\nFormula Name]],Table_SummaryPI[[#This Row],[Quantity]],Table_PI[[#This Row],[List 1]],Table_PI[[#This Row],[List 2]],Table_PI[[#This Row],[List 3]],Table_PI[[#This Row],[Size]],Table_PI[[#This Row],[Input 1]],Table_PI[[#This Row],[Input 2]],Table_PI[[#This Row],[Input 3]],Table_PI[[#This Row],[Input 4]],'Customer Information'!$AR$12,102,ROW())<>0,MeasureCalc(Table_PI[[#This Row],[Hide:\nFormula Name]],Table_SummaryPI[[#This Row],[Quantity]],Table_PI[[#This Row],[List 1]],Table_PI[[#This Row],[List 2]],Table_PI[[#This Row],[List 3]],Table_PI[[#This Row],[Size]],Table_PI[[#This Row],[Input 1]],Table_PI[[#This Row],[Input 2]],Table_PI[[#This Row],[Input 3]],Table_PI[[#This Row],[Input 4]],'Customer Information'!$AR$12,102,ROW())<>\"No Rebate\"),MeasureCalc(Table_PI[[#This Row],[Hide:\nFormula Name]],Table_SummaryPI[[#This Row],[Quantity]],Table_PI[[#This Row],[List 1]],Table_PI[[#This Row],[List 2]],Table_PI[[#This Row],[List 3]],Table_PI[[#This Row],[Size]],Table_PI[[#This Row],[Input 1]],Table_PI[[#This Row],[Input 2]],Table_PI[[#This Row],[Input 3]],Table_PI[[#This Row],[Input 4]],'Customer Information'!$AR$12,102,ROW()),\"\"),\"\")","v":""},{"$f":"IF(Table_PI[[#This Row],[Input 3]]<>\"\",Table_PI[[#This Row],[Input 3]],\"\")","v":""},null,{"$f":"IFERROR(IF(AND(MeasureCalc(Table_PI[[#This Row],[Hide:\nFormula Name]],Table_SummaryPI[[#This Row],[Quantity]],Table_PI[[#This Row],[List 1]],Table_PI[[#This Row],[List 2]],Table_PI[[#This Row],[List 3]],Table_PI[[#This Row],[Size]],Table_PI[[#This Row],[Input 1]],Table_PI[[#This Row],[Input 2]],Table_PI[[#This Row],[Input 3]],Table_PI[[#This Row],[Input 4]],'Customer Information'!$AR$12,103,ROW())<>0,MeasureCalc(Table_PI[[#This Row],[Hide:\nFormula Name]],Table_SummaryPI[[#This Row],[Quantity]],Table_PI[[#This Row],[List 1]],Table_PI[[#This Row],[List 2]],Table_PI[[#This Row],[List 3]],Table_PI[[#This Row],[Size]],Table_PI[[#This Row],[Input 1]],Table_PI[[#This Row],[Input 2]],Table_PI[[#This Row],[Input 3]],Table_PI[[#This Row],[Input 4]],'Customer Information'!$AR$12,103,ROW())<>\"No Rebate\"),MeasureCalc(Table_PI[[#This Row],[Hide:\nFormula Name]],Table_SummaryPI[[#This Row],[Quantity]],Table_PI[[#This Row],[List 1]],Table_PI[[#This Row],[List 2]],Table_PI[[#This Row],[List 3]],Table_PI[[#This Row],[Size]],Table_PI[[#This Row],[Input 1]],Table_PI[[#This Row],[Input 2]],Table_PI[[#This Row],[Input 3]],Table_PI[[#This Row],[Input 4]],'Customer Information'!$AR$12,103,ROW()),\"\"),\"\")","v":""},{"$f":"IF(Table_PI[[#This Row],[Input 4]]<>\"\",Table_PI[[#This Row],[Input 4]],\"\")","v":""},{"$f":"IF(Table_PI[[#This Row],[Quantity]]=\"\",\"\",Table_PI[[#This Row],[Quantity]])","v":""},{"$f":"IF(Table_PI[[#This Row],[Notes]]=\"\",\"\",Table_PI[[#This Row],[Notes]])","v":""},{"$f":"IF(OR(Table_PI[[#This Row],[Hide:\nBaseline kWh]]=\"\",Table_PI[[#This Row],[Hide:\nBaseline kWh]]=0),\"\",Table_PI[[#This Row],[Hide:\nBaseline kWh]])","v":""},{"$f":"IF(OR(Table_PI[[#This Row],[Hide:\nBaseline kW]]=\"\",Table_PI[[#This Row],[Hide:\nBaseline kW]]=0),\"\",Table_PI[[#This Row],[Hide:\nBaseline kW]])","v":""},{"$f":"IF(OR(Table_PI[[#This Row],[Hide:\nProposed kWh]]=\"\",Table_PI[[#This Row],[Hide:\nProposed kWh]]=0),\"\",Table_PI[[#This Row],[Hide:\nProposed kWh]])","v":""},{"$f":"IF(OR(Table_PI[[#This Row],[Hide:\nProposed kW]]=\"\",Table_PI[[#This Row],[Hide:\nProposed kW]]=0),\"\",Table_PI[[#This Row],[Hide:\nProposed kW]])","v":""},{"$f":"IF(OR(Table_PI[[#This Row],[Rebate]]=\"\",Table_PI[[#This Row],[Rebate]]=0),\"\",Table_PI[[#This Row],[Rebate]])","v":""},{"$f":"IF(OR(Table_PI[[#This Row],[Hide:\nIncremental Cost]]=\"\",Table_PI[[#This Row],[Hide:\nIncremental Cost]]=0),\"\",Table_PI[[#This Row],[Hide:\nIncremental Cost]])","v":""},{"$f":"IFERROR(IF(Table_SummaryPI[[#This Row],[kWhSavings]]=\"\",\"\",ROUND(Table_SummaryPI[[#This Row],[kWhSavings]]/$AG$401*'Customer Information'!$BC$17,2)),0)","v":""},{"$f":"IF(OR(Table_PI[[#This Row],[Annual kWh]]=\"\",Table_PI[[#This Row],[Annual kWh]]=0),\"\",Table_PI[[#This Row],[Annual kWh]])","v":""},{"$f":"IF(OR(Table_PI[[#This Row],[Peak kW]]=\"\",Table_PI[[#This Row],[Peak kW]]=0),\"\",Table_PI[[#This Row],[Peak kW]])","v":""},{"$f":"IFERROR(IF(Table_SummaryPI[[#This Row],[kWhSavings]]=\"\",\"\",$AU$9*Table_SummaryPI[[#This Row],[kWhSavings]]),0)","v":""},{"$f":"IFERROR(IF(Table_SummaryPI[[#This Row],[kWhSavings]]=\"\",\"\",$AU$14*Table_SummaryPI[[#This Row],[kWhSavings]]),0)","v":""},{"$f":"IFERROR(IF(Table_SummaryPI[[#This Row],[kWhSavings]]=\"\",\"\",$AU$18*Table_SummaryPI[[#This Row],[kWhSavings]]),0)","v":""},{"$f":"IFERROR(IF(Table_SummaryPI[[#This Row],[kWhSavings]]=\"\",\"\",$AU$22*Table_SummaryPI[[#This Row],[kWhSavings]]),0)","v":""},{"$f":"IFERROR(IF(MeasureCalc(Table_PI[[#This Row],[Hide:\nFormula Name]],Table_SummaryPI[[#This Row],[Quantity]],Table_PI[[#This Row],[List 1]],Table_PI[[#This Row],[List 2]],Table_PI[[#This Row],[List 3]],Table_PI[[#This Row],[Size]],Table_PI[[#This Row],[Input 1]],Table_PI[[#This Row],[Input 2]],Table_PI[[#This Row],[Input 3]],Table_PI[[#This Row],[Input 4]],'Customer Information'!$AR$12,200,ROW())<>\"No Rebate\",MeasureCalc(Table_PI[[#This Row],[Hide:\nFormula Name]],Table_SummaryPI[[#This Row],[Quantity]],Table_PI[[#This Row],[List 1]],Table_PI[[#This Row],[List 2]],Table_PI[[#This Row],[List 3]],Table_PI[[#This Row],[Size]],Table_PI[[#This Row],[Input 1]],Table_PI[[#This Row],[Input 2]],Table_PI[[#This Row],[Input 3]],Table_PI[[#This Row],[Input 4]],'Customer Information'!$AR$12,200,ROW()),\"\"),\"\")","v":""},{"$f":"IFERROR(IF(MeasureCalc(Table_PI[[#This Row],[Hide:\nFormula Name]],Table_SummaryPI[[#This Row],[Quantity]],Table_PI[[#This Row],[List 1]],Table_PI[[#This Row],[List 2]],Table_PI[[#This Row],[List 3]],Table_PI[[#This Row],[Size]],Table_PI[[#This Row],[Input 1]],Table_PI[[#This Row],[Input 2]],Table_PI[[#This Row],[Input 3]],Table_PI[[#This Row],[Input 4]],'Customer Information'!$AR$12,201,ROW())<>\"No Rebate\",MeasureCalc(Table_PI[[#This Row],[Hide:\nFormula Name]],Table_SummaryPI[[#This Row],[Quantity]],Table_PI[[#This Row],[List 1]],Table_PI[[#This Row],[List 2]],Table_PI[[#This Row],[List 3]],Table_PI[[#This Row],[Size]],Table_PI[[#This Row],[Input 1]],Table_PI[[#This Row],[Input 2]],Table_PI[[#This Row],[Input 3]],Table_PI[[#This Row],[Input 4]],'Customer Information'!$AR$12,201,ROW()),\"\"),\"\")","v":""}]
[{"$f":"Table_PI[[#This Row],[Line No.]]","v":""},{"$f":"IF(Table_SummaryPI[[#This Row],[MeassureCategory]]<>\"\",CONCATENATE(Table_SummaryPI[[#This Row],[MeassureCategory]],  \" - \", Table_SummaryPI[[#This Row],[ProposedMeasureCategory]],  \" - \", TEXT(Table_SummaryPI[[#This Row],[Size]],\"#,##0.00\"),\" \",Table_SummaryPI[[#This Row],[SizeUnit]]),\"\")","v":""},{"$f":"SUBSTITUTE(Table_PI[[#This Row],[Measure]],\"     \",\"\",1)","v":""},{"$f":"IF(Table_PI[[#This Row],[List 1]]<>\"\",Table_PI[[#This Row],[List 1]],\"\")","v":""},{"$f":"IF(Table_PI[[#This Row],[List 2]]<>\"\",Table_PI[[#This Row],[List 2]],\"\")","v":""},{"$f":"IF(Table_PI[[#This Row],[List 3]]<>\"\",Table_PI[[#This Row],[List 3]],\"\")","v":""},{"$f":"IF(Table_PI[[#This Row],[Manufacturer]]=\"\",\"\",Table_PI[[#This Row],[Manufacturer]])","v":""},{"$f":"IF(Table_PI[[#This Row],[Model Number]]=\"\",\"\",Table_PI[[#This Row],[Model Number]])","v":""},{"$f":"IF(Table_PI[[#This Row],[Serial Number(s)]]=\"\",\"\",Table_PI[[#This Row],[Serial Number(s)]])","v":""},null,{"$f":"IF(Table_PI[[#This Row],[Size]]=\"\",\"\",Table_PI[[#This Row],[Size]])","v":""},null,{"$f":"IFERROR(IF(AND(MeasureCalc(Table_PI[[#This Row],[Hide:\nFormula Name]],Table_SummaryPI[[#This Row],[Quantity]],Table_PI[[#This Row],[List 1]],Table_PI[[#This Row],[List 2]],Table_PI[[#This Row],[List 3]],Table_PI[[#This Row],[Size]],Table_PI[[#This Row],[Input 1]],Table_PI[[#This Row],[Input 2]],Table_PI[[#This Row],[Input 3]],Table_PI[[#This Row],[Input 4]],'Customer Information'!$AR$12,100,ROW())<>0,MeasureCalc(Table_PI[[#This Row],[Hide:\nFormula Name]],Table_SummaryPI[[#This Row],[Quantity]],Table_PI[[#This Row],[List 1]],Table_PI[[#This Row],[List 2]],Table_PI[[#This Row],[List 3]],Table_PI[[#This Row],[Size]],Table_PI[[#This Row],[Input 1]],Table_PI[[#This Row],[Input 2]],Table_PI[[#This Row],[Input 3]],Table_PI[[#This Row],[Input 4]],'Customer Information'!$AR$12,100,ROW())<>\"No Rebate\"),MeasureCalc(Table_PI[[#This Row],[Hide:\nFormula Name]],Table_SummaryPI[[#This Row],[Quantity]],Table_PI[[#This Row],[List 1]],Table_PI[[#This Row],[List 2]],Table_PI[[#This Row],[List 3]],Table_PI[[#This Row],[Size]],Table_PI[[#This Row],[Input 1]],Table_PI[[#This Row],[Input 2]],Table_PI[[#This Row],[Input 3]],Table_PI[[#This Row],[Input 4]],'Customer Information'!$AR$12,100,ROW()),\"\"),\"\")","v":""},{"$f":"IF(Table_PI[[#This Row],[Input 1]]<>\"\",Table_PI[[#This Row],[Input 1]],\"\")","v":""},null,{"$f":"IFERROR(IF(AND(MeasureCalc(Table_PI[[#This Row],[Hide:\nFormula Name]],Table_SummaryPI[[#This Row],[Quantity]],Table_PI[[#This Row],[List 1]],Table_PI[[#This Row],[List 2]],Table_PI[[#This Row],[List 3]],Table_PI[[#This Row],[Size]],Table_PI[[#This Row],[Input 1]],Table_PI[[#This Row],[Input 2]],Table_PI[[#This Row],[Input 3]],Table_PI[[#This Row],[Input 4]],'Customer Information'!$AR$12,101,ROW())<>0,MeasureCalc(Table_PI[[#This Row],[Hide:\nFormula Name]],Table_SummaryPI[[#This Row],[Quantity]],Table_PI[[#This Row],[List 1]],Table_PI[[#This Row],[List 2]],Table_PI[[#This Row],[List 3]],Table_PI[[#This Row],[Size]],Table_PI[[#This Row],[Input 1]],Table_PI[[#This Row],[Input 2]],Table_PI[[#This Row],[Input 3]],Table_PI[[#This Row],[Input 4]],'Customer Information'!$AR$12,101,ROW())<>\"No Rebate\"),MeasureCalc(Table_PI[[#This Row],[Hide:\nFormula Name]],Table_SummaryPI[[#This Row],[Quantity]],Table_PI[[#This Row],[List 1]],Table_PI[[#This Row],[List 2]],Table_PI[[#This Row],[List 3]],Table_PI[[#This Row],[Size]],Table_PI[[#This Row],[Input 1]],Table_PI[[#This Row],[Input 2]],Table_PI[[#This Row],[Input 3]],Table_PI[[#This Row],[Input 4]],'Customer Information'!$AR$12,101,ROW()),\"\"),\"\")","v":""},{"$f":"IF(Table_PI[[#This Row],[Input 2]]<>\"\",Table_PI[[#This Row],[Input 2]],\"\")","v":""},null,{"$f":"IFERROR(IF(AND(MeasureCalc(Table_PI[[#This Row],[Hide:\nFormula Name]],Table_SummaryPI[[#This Row],[Quantity]],Table_PI[[#This Row],[List 1]],Table_PI[[#This Row],[List 2]],Table_PI[[#This Row],[List 3]],Table_PI[[#This Row],[Size]],Table_PI[[#This Row],[Input 1]],Table_PI[[#This Row],[Input 2]],Table_PI[[#This Row],[Input 3]],Table_PI[[#This Row],[Input 4]],'Customer Information'!$AR$12,102,ROW())<>0,MeasureCalc(Table_PI[[#This Row],[Hide:\nFormula Name]],Table_SummaryPI[[#This Row],[Quantity]],Table_PI[[#This Row],[List 1]],Table_PI[[#This Row],[List 2]],Table_PI[[#This Row],[List 3]],Table_PI[[#This Row],[Size]],Table_PI[[#This Row],[Input 1]],Table_PI[[#This Row],[Input 2]],Table_PI[[#This Row],[Input 3]],Table_PI[[#This Row],[Input 4]],'Customer Information'!$AR$12,102,ROW())<>\"No Rebate\"),MeasureCalc(Table_PI[[#This Row],[Hide:\nFormula Name]],Table_SummaryPI[[#This Row],[Quantity]],Table_PI[[#This Row],[List 1]],Table_PI[[#This Row],[List 2]],Table_PI[[#This Row],[List 3]],Table_PI[[#This Row],[Size]],Table_PI[[#This Row],[Input 1]],Table_PI[[#This Row],[Input 2]],Table_PI[[#This Row],[Input 3]],Table_PI[[#This Row],[Input 4]],'Customer Information'!$AR$12,102,ROW()),\"\"),\"\")","v":""},{"$f":"IF(Table_PI[[#This Row],[Input 3]]<>\"\",Table_PI[[#This Row],[Input 3]],\"\")","v":""},null,{"$f":"IFERROR(IF(AND(MeasureCalc(Table_PI[[#This Row],[Hide:\nFormula Name]],Table_SummaryPI[[#This Row],[Quantity]],Table_PI[[#This Row],[List 1]],Table_PI[[#This Row],[List 2]],Table_PI[[#This Row],[List 3]],Table_PI[[#This Row],[Size]],Table_PI[[#This Row],[Input 1]],Table_PI[[#This Row],[Input 2]],Table_PI[[#This Row],[Input 3]],Table_PI[[#This Row],[Input 4]],'Customer Information'!$AR$12,103,ROW())<>0,MeasureCalc(Table_PI[[#This Row],[Hide:\nFormula Name]],Table_SummaryPI[[#This Row],[Quantity]],Table_PI[[#This Row],[List 1]],Table_PI[[#This Row],[List 2]],Table_PI[[#This Row],[List 3]],Table_PI[[#This Row],[Size]],Table_PI[[#This Row],[Input 1]],Table_PI[[#This Row],[Input 2]],Table_PI[[#This Row],[Input 3]],Table_PI[[#This Row],[Input 4]],'Customer Information'!$AR$12,103,ROW())<>\"No Rebate\"),MeasureCalc(Table_PI[[#This Row],[Hide:\nFormula Name]],Table_SummaryPI[[#This Row],[Quantity]],Table_PI[[#This Row],[List 1]],Table_PI[[#This Row],[List 2]],Table_PI[[#This Row],[List 3]],Table_PI[[#This Row],[Size]],Table_PI[[#This Row],[Input 1]],Table_PI[[#This Row],[Input 2]],Table_PI[[#This Row],[Input 3]],Table_PI[[#This Row],[Input 4]],'Customer Information'!$AR$12,103,ROW()),\"\"),\"\")","v":""},{"$f":"IF(Table_PI[[#This Row],[Input 4]]<>\"\",Table_PI[[#This Row],[Input 4]],\"\")","v":""},{"$f":"IF(Table_PI[[#This Row],[Quantity]]=\"\",\"\",Table_PI[[#This Row],[Quantity]])","v":""},{"$f":"IF(Table_PI[[#This Row],[Notes]]=\"\",\"\",Table_PI[[#This Row],[Notes]])","v":""},{"$f":"IF(OR(Table_PI[[#This Row],[Hide:\nBaseline kWh]]=\"\",Table_PI[[#This Row],[Hide:\nBaseline kWh]]=0),\"\",Table_PI[[#This Row],[Hide:\nBaseline kWh]])","v":""},{"$f":"IF(OR(Table_PI[[#This Row],[Hide:\nBaseline kW]]=\"\",Table_PI[[#This Row],[Hide:\nBaseline kW]]=0),\"\",Table_PI[[#This Row],[Hide:\nBaseline kW]])","v":""},{"$f":"IF(OR(Table_PI[[#This Row],[Hide:\nProposed kWh]]=\"\",Table_PI[[#This Row],[Hide:\nProposed kWh]]=0),\"\",Table_PI[[#This Row],[Hide:\nProposed kWh]])","v":""},{"$f":"IF(OR(Table_PI[[#This Row],[Hide:\nProposed kW]]=\"\",Table_PI[[#This Row],[Hide:\nProposed kW]]=0),\"\",Table_PI[[#This Row],[Hide:\nProposed kW]])","v":""},{"$f":"IF(OR(Table_PI[[#This Row],[Rebate]]=\"\",Table_PI[[#This Row],[Rebate]]=0),\"\",Table_PI[[#This Row],[Rebate]])","v":""},{"$f":"IF(OR(Table_PI[[#This Row],[Hide:\nIncremental Cost]]=\"\",Table_PI[[#This Row],[Hide:\nIncremental Cost]]=0),\"\",Table_PI[[#This Row],[Hide:\nIncremental Cost]])","v":""},{"$f":"IFERROR(IF(Table_SummaryPI[[#This Row],[kWhSavings]]=\"\",\"\",ROUND(Table_SummaryPI[[#This Row],[kWhSavings]]/$AG$401*'Customer Information'!$BC$17,2)),0)","v":""},{"$f":"IF(OR(Table_PI[[#This Row],[Annual kWh]]=\"\",Table_PI[[#This Row],[Annual kWh]]=0),\"\",Table_PI[[#This Row],[Annual kWh]])","v":""},{"$f":"IF(OR(Table_PI[[#This Row],[Peak kW]]=\"\",Table_PI[[#This Row],[Peak kW]]=0),\"\",Table_PI[[#This Row],[Peak kW]])","v":""},{"$f":"IFERROR(IF(Table_SummaryPI[[#This Row],[kWhSavings]]=\"\",\"\",$AU$9*Table_SummaryPI[[#This Row],[kWhSavings]]),0)","v":""},{"$f":"IFERROR(IF(Table_SummaryPI[[#This Row],[kWhSavings]]=\"\",\"\",$AU$14*Table_SummaryPI[[#This Row],[kWhSavings]]),0)","v":""},{"$f":"IFERROR(IF(Table_SummaryPI[[#This Row],[kWhSavings]]=\"\",\"\",$AU$18*Table_SummaryPI[[#This Row],[kWhSavings]]),0)","v":""},{"$f":"IFERROR(IF(Table_SummaryPI[[#This Row],[kWhSavings]]=\"\",\"\",$AU$22*Table_SummaryPI[[#This Row],[kWhSavings]]),0)","v":""},{"$f":"IFERROR(IF(MeasureCalc(Table_PI[[#This Row],[Hide:\nFormula Name]],Table_SummaryPI[[#This Row],[Quantity]],Table_PI[[#This Row],[List 1]],Table_PI[[#This Row],[List 2]],Table_PI[[#This Row],[List 3]],Table_PI[[#This Row],[Size]],Table_PI[[#This Row],[Input 1]],Table_PI[[#This Row],[Input 2]],Table_PI[[#This Row],[Input 3]],Table_PI[[#This Row],[Input 4]],'Customer Information'!$AR$12,200,ROW())<>\"No Rebate\",MeasureCalc(Table_PI[[#This Row],[Hide:\nFormula Name]],Table_SummaryPI[[#This Row],[Quantity]],Table_PI[[#This Row],[List 1]],Table_PI[[#This Row],[List 2]],Table_PI[[#This Row],[List 3]],Table_PI[[#This Row],[Size]],Table_PI[[#This Row],[Input 1]],Table_PI[[#This Row],[Input 2]],Table_PI[[#This Row],[Input 3]],Table_PI[[#This Row],[Input 4]],'Customer Information'!$AR$12,200,ROW()),\"\"),\"\")","v":""},{"$f":"IFERROR(IF(MeasureCalc(Table_PI[[#This Row],[Hide:\nFormula Name]],Table_SummaryPI[[#This Row],[Quantity]],Table_PI[[#This Row],[List 1]],Table_PI[[#This Row],[List 2]],Table_PI[[#This Row],[List 3]],Table_PI[[#This Row],[Size]],Table_PI[[#This Row],[Input 1]],Table_PI[[#This Row],[Input 2]],Table_PI[[#This Row],[Input 3]],Table_PI[[#This Row],[Input 4]],'Customer Information'!$AR$12,201,ROW())<>\"No Rebate\",MeasureCalc(Table_PI[[#This Row],[Hide:\nFormula Name]],Table_SummaryPI[[#This Row],[Quantity]],Table_PI[[#This Row],[List 1]],Table_PI[[#This Row],[List 2]],Table_PI[[#This Row],[List 3]],Table_PI[[#This Row],[Size]],Table_PI[[#This Row],[Input 1]],Table_PI[[#This Row],[Input 2]],Table_PI[[#This Row],[Input 3]],Table_PI[[#This Row],[Input 4]],'Customer Information'!$AR$12,201,ROW()),\"\"),\"\")","v":""}]
[{"$f":"Table_PI[[#This Row],[Line No.]]","v":""},{"$f":"IF(Table_SummaryPI[[#This Row],[MeassureCategory]]<>\"\",CONCATENATE(Table_SummaryPI[[#This Row],[MeassureCategory]],  \" - \", Table_SummaryPI[[#This Row],[ProposedMeasureCategory]],  \" - \", TEXT(Table_SummaryPI[[#This Row],[Size]],\"#,##0.00\"),\" \",Table_SummaryPI[[#This Row],[SizeUnit]]),\"\")","v":""},{"$f":"SUBSTITUTE(Table_PI[[#This Row],[Measure]],\"     \",\"\",1)","v":""},{"$f":"IF(Table_PI[[#This Row],[List 1]]<>\"\",Table_PI[[#This Row],[List 1]],\"\")","v":""},{"$f":"IF(Table_PI[[#This Row],[List 2]]<>\"\",Table_PI[[#This Row],[List 2]],\"\")","v":""},{"$f":"IF(Table_PI[[#This Row],[List 3]]<>\"\",Table_PI[[#This Row],[List 3]],\"\")","v":""},{"$f":"IF(Table_PI[[#This Row],[Manufacturer]]=\"\",\"\",Table_PI[[#This Row],[Manufacturer]])","v":""},{"$f":"IF(Table_PI[[#This Row],[Model Number]]=\"\",\"\",Table_PI[[#This Row],[Model Number]])","v":""},{"$f":"IF(Table_PI[[#This Row],[Serial Number(s)]]=\"\",\"\",Table_PI[[#This Row],[Serial Number(s)]])","v":""},null,{"$f":"IF(Table_PI[[#This Row],[Size]]=\"\",\"\",Table_PI[[#This Row],[Size]])","v":""},null,{"$f":"IFERROR(IF(AND(MeasureCalc(Table_PI[[#This Row],[Hide:\nFormula Name]],Table_SummaryPI[[#This Row],[Quantity]],Table_PI[[#This Row],[List 1]],Table_PI[[#This Row],[List 2]],Table_PI[[#This Row],[List 3]],Table_PI[[#This Row],[Size]],Table_PI[[#This Row],[Input 1]],Table_PI[[#This Row],[Input 2]],Table_PI[[#This Row],[Input 3]],Table_PI[[#This Row],[Input 4]],'Customer Information'!$AR$12,100,ROW())<>0,MeasureCalc(Table_PI[[#This Row],[Hide:\nFormula Name]],Table_SummaryPI[[#This Row],[Quantity]],Table_PI[[#This Row],[List 1]],Table_PI[[#This Row],[List 2]],Table_PI[[#This Row],[List 3]],Table_PI[[#This Row],[Size]],Table_PI[[#This Row],[Input 1]],Table_PI[[#This Row],[Input 2]],Table_PI[[#This Row],[Input 3]],Table_PI[[#This Row],[Input 4]],'Customer Information'!$AR$12,100,ROW())<>\"No Rebate\"),MeasureCalc(Table_PI[[#This Row],[Hide:\nFormula Name]],Table_SummaryPI[[#This Row],[Quantity]],Table_PI[[#This Row],[List 1]],Table_PI[[#This Row],[List 2]],Table_PI[[#This Row],[List 3]],Table_PI[[#This Row],[Size]],Table_PI[[#This Row],[Input 1]],Table_PI[[#This Row],[Input 2]],Table_PI[[#This Row],[Input 3]],Table_PI[[#This Row],[Input 4]],'Customer Information'!$AR$12,100,ROW()),\"\"),\"\")","v":""},{"$f":"IF(Table_PI[[#This Row],[Input 1]]<>\"\",Table_PI[[#This Row],[Input 1]],\"\")","v":""},null,{"$f":"IFERROR(IF(AND(MeasureCalc(Table_PI[[#This Row],[Hide:\nFormula Name]],Table_SummaryPI[[#This Row],[Quantity]],Table_PI[[#This Row],[List 1]],Table_PI[[#This Row],[List 2]],Table_PI[[#This Row],[List 3]],Table_PI[[#This Row],[Size]],Table_PI[[#This Row],[Input 1]],Table_PI[[#This Row],[Input 2]],Table_PI[[#This Row],[Input 3]],Table_PI[[#This Row],[Input 4]],'Customer Information'!$AR$12,101,ROW())<>0,MeasureCalc(Table_PI[[#This Row],[Hide:\nFormula Name]],Table_SummaryPI[[#This Row],[Quantity]],Table_PI[[#This Row],[List 1]],Table_PI[[#This Row],[List 2]],Table_PI[[#This Row],[List 3]],Table_PI[[#This Row],[Size]],Table_PI[[#This Row],[Input 1]],Table_PI[[#This Row],[Input 2]],Table_PI[[#This Row],[Input 3]],Table_PI[[#This Row],[Input 4]],'Customer Information'!$AR$12,101,ROW())<>\"No Rebate\"),MeasureCalc(Table_PI[[#This Row],[Hide:\nFormula Name]],Table_SummaryPI[[#This Row],[Quantity]],Table_PI[[#This Row],[List 1]],Table_PI[[#This Row],[List 2]],Table_PI[[#This Row],[List 3]],Table_PI[[#This Row],[Size]],Table_PI[[#This Row],[Input 1]],Table_PI[[#This Row],[Input 2]],Table_PI[[#This Row],[Input 3]],Table_PI[[#This Row],[Input 4]],'Customer Information'!$AR$12,101,ROW()),\"\"),\"\")","v":""},{"$f":"IF(Table_PI[[#This Row],[Input 2]]<>\"\",Table_PI[[#This Row],[Input 2]],\"\")","v":""},null,{"$f":"IFERROR(IF(AND(MeasureCalc(Table_PI[[#This Row],[Hide:\nFormula Name]],Table_SummaryPI[[#This Row],[Quantity]],Table_PI[[#This Row],[List 1]],Table_PI[[#This Row],[List 2]],Table_PI[[#This Row],[List 3]],Table_PI[[#This Row],[Size]],Table_PI[[#This Row],[Input 1]],Table_PI[[#This Row],[Input 2]],Table_PI[[#This Row],[Input 3]],Table_PI[[#This Row],[Input 4]],'Customer Information'!$AR$12,102,ROW())<>0,MeasureCalc(Table_PI[[#This Row],[Hide:\nFormula Name]],Table_SummaryPI[[#This Row],[Quantity]],Table_PI[[#This Row],[List 1]],Table_PI[[#This Row],[List 2]],Table_PI[[#This Row],[List 3]],Table_PI[[#This Row],[Size]],Table_PI[[#This Row],[Input 1]],Table_PI[[#This Row],[Input 2]],Table_PI[[#This Row],[Input 3]],Table_PI[[#This Row],[Input 4]],'Customer Information'!$AR$12,102,ROW())<>\"No Rebate\"),MeasureCalc(Table_PI[[#This Row],[Hide:\nFormula Name]],Table_SummaryPI[[#This Row],[Quantity]],Table_PI[[#This Row],[List 1]],Table_PI[[#This Row],[List 2]],Table_PI[[#This Row],[List 3]],Table_PI[[#This Row],[Size]],Table_PI[[#This Row],[Input 1]],Table_PI[[#This Row],[Input 2]],Table_PI[[#This Row],[Input 3]],Table_PI[[#This Row],[Input 4]],'Customer Information'!$AR$12,102,ROW()),\"\"),\"\")","v":""},{"$f":"IF(Table_PI[[#This Row],[Input 3]]<>\"\",Table_PI[[#This Row],[Input 3]],\"\")","v":""},null,{"$f":"IFERROR(IF(AND(MeasureCalc(Table_PI[[#This Row],[Hide:\nFormula Name]],Table_SummaryPI[[#This Row],[Quantity]],Table_PI[[#This Row],[List 1]],Table_PI[[#This Row],[List 2]],Table_PI[[#This Row],[List 3]],Table_PI[[#This Row],[Size]],Table_PI[[#This Row],[Input 1]],Table_PI[[#This Row],[Input 2]],Table_PI[[#This Row],[Input 3]],Table_PI[[#This Row],[Input 4]],'Customer Information'!$AR$12,103,ROW())<>0,MeasureCalc(Table_PI[[#This Row],[Hide:\nFormula Name]],Table_SummaryPI[[#This Row],[Quantity]],Table_PI[[#This Row],[List 1]],Table_PI[[#This Row],[List 2]],Table_PI[[#This Row],[List 3]],Table_PI[[#This Row],[Size]],Table_PI[[#This Row],[Input 1]],Table_PI[[#This Row],[Input 2]],Table_PI[[#This Row],[Input 3]],Table_PI[[#This Row],[Input 4]],'Customer Information'!$AR$12,103,ROW())<>\"No Rebate\"),MeasureCalc(Table_PI[[#This Row],[Hide:\nFormula Name]],Table_SummaryPI[[#This Row],[Quantity]],Table_PI[[#This Row],[List 1]],Table_PI[[#This Row],[List 2]],Table_PI[[#This Row],[List 3]],Table_PI[[#This Row],[Size]],Table_PI[[#This Row],[Input 1]],Table_PI[[#This Row],[Input 2]],Table_PI[[#This Row],[Input 3]],Table_PI[[#This Row],[Input 4]],'Customer Information'!$AR$12,103,ROW()),\"\"),\"\")","v":""},{"$f":"IF(Table_PI[[#This Row],[Input 4]]<>\"\",Table_PI[[#This Row],[Input 4]],\"\")","v":""},{"$f":"IF(Table_PI[[#This Row],[Quantity]]=\"\",\"\",Table_PI[[#This Row],[Quantity]])","v":""},{"$f":"IF(Table_PI[[#This Row],[Notes]]=\"\",\"\",Table_PI[[#This Row],[Notes]])","v":""},{"$f":"IF(OR(Table_PI[[#This Row],[Hide:\nBaseline kWh]]=\"\",Table_PI[[#This Row],[Hide:\nBaseline kWh]]=0),\"\",Table_PI[[#This Row],[Hide:\nBaseline kWh]])","v":""},{"$f":"IF(OR(Table_PI[[#This Row],[Hide:\nBaseline kW]]=\"\",Table_PI[[#This Row],[Hide:\nBaseline kW]]=0),\"\",Table_PI[[#This Row],[Hide:\nBaseline kW]])","v":""},{"$f":"IF(OR(Table_PI[[#This Row],[Hide:\nProposed kWh]]=\"\",Table_PI[[#This Row],[Hide:\nProposed kWh]]=0),\"\",Table_PI[[#This Row],[Hide:\nProposed kWh]])","v":""},{"$f":"IF(OR(Table_PI[[#This Row],[Hide:\nProposed kW]]=\"\",Table_PI[[#This Row],[Hide:\nProposed kW]]=0),\"\",Table_PI[[#This Row],[Hide:\nProposed kW]])","v":""},{"$f":"IF(OR(Table_PI[[#This Row],[Rebate]]=\"\",Table_PI[[#This Row],[Rebate]]=0),\"\",Table_PI[[#This Row],[Rebate]])","v":""},{"$f":"IF(OR(Table_PI[[#This Row],[Hide:\nIncremental Cost]]=\"\",Table_PI[[#This Row],[Hide:\nIncremental Cost]]=0),\"\",Table_PI[[#This Row],[Hide:\nIncremental Cost]])","v":""},{"$f":"IFERROR(IF(Table_SummaryPI[[#This Row],[kWhSavings]]=\"\",\"\",ROUND(Table_SummaryPI[[#This Row],[kWhSavings]]/$AG$401*'Customer Information'!$BC$17,2)),0)","v":""},{"$f":"IF(OR(Table_PI[[#This Row],[Annual kWh]]=\"\",Table_PI[[#This Row],[Annual kWh]]=0),\"\",Table_PI[[#This Row],[Annual kWh]])","v":""},{"$f":"IF(OR(Table_PI[[#This Row],[Peak kW]]=\"\",Table_PI[[#This Row],[Peak kW]]=0),\"\",Table_PI[[#This Row],[Peak kW]])","v":""},{"$f":"IFERROR(IF(Table_SummaryPI[[#This Row],[kWhSavings]]=\"\",\"\",$AU$9*Table_SummaryPI[[#This Row],[kWhSavings]]),0)","v":""},{"$f":"IFERROR(IF(Table_SummaryPI[[#This Row],[kWhSavings]]=\"\",\"\",$AU$14*Table_SummaryPI[[#This Row],[kWhSavings]]),0)","v":""},{"$f":"IFERROR(IF(Table_SummaryPI[[#This Row],[kWhSavings]]=\"\",\"\",$AU$18*Table_SummaryPI[[#This Row],[kWhSavings]]),0)","v":""},{"$f":"IFERROR(IF(Table_SummaryPI[[#This Row],[kWhSavings]]=\"\",\"\",$AU$22*Table_SummaryPI[[#This Row],[kWhSavings]]),0)","v":""},{"$f":"IFERROR(IF(MeasureCalc(Table_PI[[#This Row],[Hide:\nFormula Name]],Table_SummaryPI[[#This Row],[Quantity]],Table_PI[[#This Row],[List 1]],Table_PI[[#This Row],[List 2]],Table_PI[[#This Row],[List 3]],Table_PI[[#This Row],[Size]],Table_PI[[#This Row],[Input 1]],Table_PI[[#This Row],[Input 2]],Table_PI[[#This Row],[Input 3]],Table_PI[[#This Row],[Input 4]],'Customer Information'!$AR$12,200,ROW())<>\"No Rebate\",MeasureCalc(Table_PI[[#This Row],[Hide:\nFormula Name]],Table_SummaryPI[[#This Row],[Quantity]],Table_PI[[#This Row],[List 1]],Table_PI[[#This Row],[List 2]],Table_PI[[#This Row],[List 3]],Table_PI[[#This Row],[Size]],Table_PI[[#This Row],[Input 1]],Table_PI[[#This Row],[Input 2]],Table_PI[[#This Row],[Input 3]],Table_PI[[#This Row],[Input 4]],'Customer Information'!$AR$12,200,ROW()),\"\"),\"\")","v":""},{"$f":"IFERROR(IF(MeasureCalc(Table_PI[[#This Row],[Hide:\nFormula Name]],Table_SummaryPI[[#This Row],[Quantity]],Table_PI[[#This Row],[List 1]],Table_PI[[#This Row],[List 2]],Table_PI[[#This Row],[List 3]],Table_PI[[#This Row],[Size]],Table_PI[[#This Row],[Input 1]],Table_PI[[#This Row],[Input 2]],Table_PI[[#This Row],[Input 3]],Table_PI[[#This Row],[Input 4]],'Customer Information'!$AR$12,201,ROW())<>\"No Rebate\",MeasureCalc(Table_PI[[#This Row],[Hide:\nFormula Name]],Table_SummaryPI[[#This Row],[Quantity]],Table_PI[[#This Row],[List 1]],Table_PI[[#This Row],[List 2]],Table_PI[[#This Row],[List 3]],Table_PI[[#This Row],[Size]],Table_PI[[#This Row],[Input 1]],Table_PI[[#This Row],[Input 2]],Table_PI[[#This Row],[Input 3]],Table_PI[[#This Row],[Input 4]],'Customer Information'!$AR$12,201,ROW()),\"\"),\"\")","v":""}]
[{"$f":"Table_PI[[#This Row],[Line No.]]","v":""},{"$f":"IF(Table_SummaryPI[[#This Row],[MeassureCategory]]<>\"\",CONCATENATE(Table_SummaryPI[[#This Row],[MeassureCategory]],  \" - \", Table_SummaryPI[[#This Row],[ProposedMeasureCategory]],  \" - \", TEXT(Table_SummaryPI[[#This Row],[Size]],\"#,##0.00\"),\" \",Table_SummaryPI[[#This Row],[SizeUnit]]),\"\")","v":""},{"$f":"SUBSTITUTE(Table_PI[[#This Row],[Measure]],\"     \",\"\",1)","v":""},{"$f":"IF(Table_PI[[#This Row],[List 1]]<>\"\",Table_PI[[#This Row],[List 1]],\"\")","v":""},{"$f":"IF(Table_PI[[#This Row],[List 2]]<>\"\",Table_PI[[#This Row],[List 2]],\"\")","v":""},{"$f":"IF(Table_PI[[#This Row],[List 3]]<>\"\",Table_PI[[#This Row],[List 3]],\"\")","v":""},{"$f":"IF(Table_PI[[#This Row],[Manufacturer]]=\"\",\"\",Table_PI[[#This Row],[Manufacturer]])","v":""},{"$f":"IF(Table_PI[[#This Row],[Model Number]]=\"\",\"\",Table_PI[[#This Row],[Model Number]])","v":""},{"$f":"IF(Table_PI[[#This Row],[Serial Number(s)]]=\"\",\"\",Table_PI[[#This Row],[Serial Number(s)]])","v":""},null,{"$f":"IF(Table_PI[[#This Row],[Size]]=\"\",\"\",Table_PI[[#This Row],[Size]])","v":""},null,{"$f":"IFERROR(IF(AND(MeasureCalc(Table_PI[[#This Row],[Hide:\nFormula Name]],Table_SummaryPI[[#This Row],[Quantity]],Table_PI[[#This Row],[List 1]],Table_PI[[#This Row],[List 2]],Table_PI[[#This Row],[List 3]],Table_PI[[#This Row],[Size]],Table_PI[[#This Row],[Input 1]],Table_PI[[#This Row],[Input 2]],Table_PI[[#This Row],[Input 3]],Table_PI[[#This Row],[Input 4]],'Customer Information'!$AR$12,100,ROW())<>0,MeasureCalc(Table_PI[[#This Row],[Hide:\nFormula Name]],Table_SummaryPI[[#This Row],[Quantity]],Table_PI[[#This Row],[List 1]],Table_PI[[#This Row],[List 2]],Table_PI[[#This Row],[List 3]],Table_PI[[#This Row],[Size]],Table_PI[[#This Row],[Input 1]],Table_PI[[#This Row],[Input 2]],Table_PI[[#This Row],[Input 3]],Table_PI[[#This Row],[Input 4]],'Customer Information'!$AR$12,100,ROW())<>\"No Rebate\"),MeasureCalc(Table_PI[[#This Row],[Hide:\nFormula Name]],Table_SummaryPI[[#This Row],[Quantity]],Table_PI[[#This Row],[List 1]],Table_PI[[#This Row],[List 2]],Table_PI[[#This Row],[List 3]],Table_PI[[#This Row],[Size]],Table_PI[[#This Row],[Input 1]],Table_PI[[#This Row],[Input 2]],Table_PI[[#This Row],[Input 3]],Table_PI[[#This Row],[Input 4]],'Customer Information'!$AR$12,100,ROW()),\"\"),\"\")","v":""},{"$f":"IF(Table_PI[[#This Row],[Input 1]]<>\"\",Table_PI[[#This Row],[Input 1]],\"\")","v":""},null,{"$f":"IFERROR(IF(AND(MeasureCalc(Table_PI[[#This Row],[Hide:\nFormula Name]],Table_SummaryPI[[#This Row],[Quantity]],Table_PI[[#This Row],[List 1]],Table_PI[[#This Row],[List 2]],Table_PI[[#This Row],[List 3]],Table_PI[[#This Row],[Size]],Table_PI[[#This Row],[Input 1]],Table_PI[[#This Row],[Input 2]],Table_PI[[#This Row],[Input 3]],Table_PI[[#This Row],[Input 4]],'Customer Information'!$AR$12,101,ROW())<>0,MeasureCalc(Table_PI[[#This Row],[Hide:\nFormula Name]],Table_SummaryPI[[#This Row],[Quantity]],Table_PI[[#This Row],[List 1]],Table_PI[[#This Row],[List 2]],Table_PI[[#This Row],[List 3]],Table_PI[[#This Row],[Size]],Table_PI[[#This Row],[Input 1]],Table_PI[[#This Row],[Input 2]],Table_PI[[#This Row],[Input 3]],Table_PI[[#This Row],[Input 4]],'Customer Information'!$AR$12,101,ROW())<>\"No Rebate\"),MeasureCalc(Table_PI[[#This Row],[Hide:\nFormula Name]],Table_SummaryPI[[#This Row],[Quantity]],Table_PI[[#This Row],[List 1]],Table_PI[[#This Row],[List 2]],Table_PI[[#This Row],[List 3]],Table_PI[[#This Row],[Size]],Table_PI[[#This Row],[Input 1]],Table_PI[[#This Row],[Input 2]],Table_PI[[#This Row],[Input 3]],Table_PI[[#This Row],[Input 4]],'Customer Information'!$AR$12,101,ROW()),\"\"),\"\")","v":""},{"$f":"IF(Table_PI[[#This Row],[Input 2]]<>\"\",Table_PI[[#This Row],[Input 2]],\"\")","v":""},null,{"$f":"IFERROR(IF(AND(MeasureCalc(Table_PI[[#This Row],[Hide:\nFormula Name]],Table_SummaryPI[[#This Row],[Quantity]],Table_PI[[#This Row],[List 1]],Table_PI[[#This Row],[List 2]],Table_PI[[#This Row],[List 3]],Table_PI[[#This Row],[Size]],Table_PI[[#This Row],[Input 1]],Table_PI[[#This Row],[Input 2]],Table_PI[[#This Row],[Input 3]],Table_PI[[#This Row],[Input 4]],'Customer Information'!$AR$12,102,ROW())<>0,MeasureCalc(Table_PI[[#This Row],[Hide:\nFormula Name]],Table_SummaryPI[[#This Row],[Quantity]],Table_PI[[#This Row],[List 1]],Table_PI[[#This Row],[List 2]],Table_PI[[#This Row],[List 3]],Table_PI[[#This Row],[Size]],Table_PI[[#This Row],[Input 1]],Table_PI[[#This Row],[Input 2]],Table_PI[[#This Row],[Input 3]],Table_PI[[#This Row],[Input 4]],'Customer Information'!$AR$12,102,ROW())<>\"No Rebate\"),MeasureCalc(Table_PI[[#This Row],[Hide:\nFormula Name]],Table_SummaryPI[[#This Row],[Quantity]],Table_PI[[#This Row],[List 1]],Table_PI[[#This Row],[List 2]],Table_PI[[#This Row],[List 3]],Table_PI[[#This Row],[Size]],Table_PI[[#This Row],[Input 1]],Table_PI[[#This Row],[Input 2]],Table_PI[[#This Row],[Input 3]],Table_PI[[#This Row],[Input 4]],'Customer Information'!$AR$12,102,ROW()),\"\"),\"\")","v":""},{"$f":"IF(Table_PI[[#This Row],[Input 3]]<>\"\",Table_PI[[#This Row],[Input 3]],\"\")","v":""},null,{"$f":"IFERROR(IF(AND(MeasureCalc(Table_PI[[#This Row],[Hide:\nFormula Name]],Table_SummaryPI[[#This Row],[Quantity]],Table_PI[[#This Row],[List 1]],Table_PI[[#This Row],[List 2]],Table_PI[[#This Row],[List 3]],Table_PI[[#This Row],[Size]],Table_PI[[#This Row],[Input 1]],Table_PI[[#This Row],[Input 2]],Table_PI[[#This Row],[Input 3]],Table_PI[[#This Row],[Input 4]],'Customer Information'!$AR$12,103,ROW())<>0,MeasureCalc(Table_PI[[#This Row],[Hide:\nFormula Name]],Table_SummaryPI[[#This Row],[Quantity]],Table_PI[[#This Row],[List 1]],Table_PI[[#This Row],[List 2]],Table_PI[[#This Row],[List 3]],Table_PI[[#This Row],[Size]],Table_PI[[#This Row],[Input 1]],Table_PI[[#This Row],[Input 2]],Table_PI[[#This Row],[Input 3]],Table_PI[[#This Row],[Input 4]],'Customer Information'!$AR$12,103,ROW())<>\"No Rebate\"),MeasureCalc(Table_PI[[#This Row],[Hide:\nFormula Name]],Table_SummaryPI[[#This Row],[Quantity]],Table_PI[[#This Row],[List 1]],Table_PI[[#This Row],[List 2]],Table_PI[[#This Row],[List 3]],Table_PI[[#This Row],[Size]],Table_PI[[#This Row],[Input 1]],Table_PI[[#This Row],[Input 2]],Table_PI[[#This Row],[Input 3]],Table_PI[[#This Row],[Input 4]],'Customer Information'!$AR$12,103,ROW()),\"\"),\"\")","v":""},{"$f":"IF(Table_PI[[#This Row],[Input 4]]<>\"\",Table_PI[[#This Row],[Input 4]],\"\")","v":""},{"$f":"IF(Table_PI[[#This Row],[Quantity]]=\"\",\"\",Table_PI[[#This Row],[Quantity]])","v":""},{"$f":"IF(Table_PI[[#This Row],[Notes]]=\"\",\"\",Table_PI[[#This Row],[Notes]])","v":""},{"$f":"IF(OR(Table_PI[[#This Row],[Hide:\nBaseline kWh]]=\"\",Table_PI[[#This Row],[Hide:\nBaseline kWh]]=0),\"\",Table_PI[[#This Row],[Hide:\nBaseline kWh]])","v":""},{"$f":"IF(OR(Table_PI[[#This Row],[Hide:\nBaseline kW]]=\"\",Table_PI[[#This Row],[Hide:\nBaseline kW]]=0),\"\",Table_PI[[#This Row],[Hide:\nBaseline kW]])","v":""},{"$f":"IF(OR(Table_PI[[#This Row],[Hide:\nProposed kWh]]=\"\",Table_PI[[#This Row],[Hide:\nProposed kWh]]=0),\"\",Table_PI[[#This Row],[Hide:\nProposed kWh]])","v":""},{"$f":"IF(OR(Table_PI[[#This Row],[Hide:\nProposed kW]]=\"\",Table_PI[[#This Row],[Hide:\nProposed kW]]=0),\"\",Table_PI[[#This Row],[Hide:\nProposed kW]])","v":""},{"$f":"IF(OR(Table_PI[[#This Row],[Rebate]]=\"\",Table_PI[[#This Row],[Rebate]]=0),\"\",Table_PI[[#This Row],[Rebate]])","v":""},{"$f":"IF(OR(Table_PI[[#This Row],[Hide:\nIncremental Cost]]=\"\",Table_PI[[#This Row],[Hide:\nIncremental Cost]]=0),\"\",Table_PI[[#This Row],[Hide:\nIncremental Cost]])","v":""},{"$f":"IFERROR(IF(Table_SummaryPI[[#This Row],[kWhSavings]]=\"\",\"\",ROUND(Table_SummaryPI[[#This Row],[kWhSavings]]/$AG$401*'Customer Information'!$BC$17,2)),0)","v":""},{"$f":"IF(OR(Table_PI[[#This Row],[Annual kWh]]=\"\",Table_PI[[#This Row],[Annual kWh]]=0),\"\",Table_PI[[#This Row],[Annual kWh]])","v":""},{"$f":"IF(OR(Table_PI[[#This Row],[Peak kW]]=\"\",Table_PI[[#This Row],[Peak kW]]=0),\"\",Table_PI[[#This Row],[Peak kW]])","v":""},{"$f":"IFERROR(IF(Table_SummaryPI[[#This Row],[kWhSavings]]=\"\",\"\",$AU$9*Table_SummaryPI[[#This Row],[kWhSavings]]),0)","v":""},{"$f":"IFERROR(IF(Table_SummaryPI[[#This Row],[kWhSavings]]=\"\",\"\",$AU$14*Table_SummaryPI[[#This Row],[kWhSavings]]),0)","v":""},{"$f":"IFERROR(IF(Table_SummaryPI[[#This Row],[kWhSavings]]=\"\",\"\",$AU$18*Table_SummaryPI[[#This Row],[kWhSavings]]),0)","v":""},{"$f":"IFERROR(IF(Table_SummaryPI[[#This Row],[kWhSavings]]=\"\",\"\",$AU$22*Table_SummaryPI[[#This Row],[kWhSavings]]),0)","v":""},{"$f":"IFERROR(IF(MeasureCalc(Table_PI[[#This Row],[Hide:\nFormula Name]],Table_SummaryPI[[#This Row],[Quantity]],Table_PI[[#This Row],[List 1]],Table_PI[[#This Row],[List 2]],Table_PI[[#This Row],[List 3]],Table_PI[[#This Row],[Size]],Table_PI[[#This Row],[Input 1]],Table_PI[[#This Row],[Input 2]],Table_PI[[#This Row],[Input 3]],Table_PI[[#This Row],[Input 4]],'Customer Information'!$AR$12,200,ROW())<>\"No Rebate\",MeasureCalc(Table_PI[[#This Row],[Hide:\nFormula Name]],Table_SummaryPI[[#This Row],[Quantity]],Table_PI[[#This Row],[List 1]],Table_PI[[#This Row],[List 2]],Table_PI[[#This Row],[List 3]],Table_PI[[#This Row],[Size]],Table_PI[[#This Row],[Input 1]],Table_PI[[#This Row],[Input 2]],Table_PI[[#This Row],[Input 3]],Table_PI[[#This Row],[Input 4]],'Customer Information'!$AR$12,200,ROW()),\"\"),\"\")","v":""},{"$f":"IFERROR(IF(MeasureCalc(Table_PI[[#This Row],[Hide:\nFormula Name]],Table_SummaryPI[[#This Row],[Quantity]],Table_PI[[#This Row],[List 1]],Table_PI[[#This Row],[List 2]],Table_PI[[#This Row],[List 3]],Table_PI[[#This Row],[Size]],Table_PI[[#This Row],[Input 1]],Table_PI[[#This Row],[Input 2]],Table_PI[[#This Row],[Input 3]],Table_PI[[#This Row],[Input 4]],'Customer Information'!$AR$12,201,ROW())<>\"No Rebate\",MeasureCalc(Table_PI[[#This Row],[Hide:\nFormula Name]],Table_SummaryPI[[#This Row],[Quantity]],Table_PI[[#This Row],[List 1]],Table_PI[[#This Row],[List 2]],Table_PI[[#This Row],[List 3]],Table_PI[[#This Row],[Size]],Table_PI[[#This Row],[Input 1]],Table_PI[[#This Row],[Input 2]],Table_PI[[#This Row],[Input 3]],Table_PI[[#This Row],[Input 4]],'Customer Information'!$AR$12,201,ROW()),\"\"),\"\")","v":""}]
[{"$f":"Table_PI[[#This Row],[Line No.]]","v":""},{"$f":"IF(Table_SummaryPI[[#This Row],[MeassureCategory]]<>\"\",CONCATENATE(Table_SummaryPI[[#This Row],[MeassureCategory]],  \" - \", Table_SummaryPI[[#This Row],[ProposedMeasureCategory]],  \" - \", TEXT(Table_SummaryPI[[#This Row],[Size]],\"#,##0.00\"),\" \",Table_SummaryPI[[#This Row],[SizeUnit]]),\"\")","v":""},{"$f":"SUBSTITUTE(Table_PI[[#This Row],[Measure]],\"     \",\"\",1)","v":""},{"$f":"IF(Table_PI[[#This Row],[List 1]]<>\"\",Table_PI[[#This Row],[List 1]],\"\")","v":""},{"$f":"IF(Table_PI[[#This Row],[List 2]]<>\"\",Table_PI[[#This Row],[List 2]],\"\")","v":""},{"$f":"IF(Table_PI[[#This Row],[List 3]]<>\"\",Table_PI[[#This Row],[List 3]],\"\")","v":""},{"$f":"IF(Table_PI[[#This Row],[Manufacturer]]=\"\",\"\",Table_PI[[#This Row],[Manufacturer]])","v":""},{"$f":"IF(Table_PI[[#This Row],[Model Number]]=\"\",\"\",Table_PI[[#This Row],[Model Number]])","v":""},{"$f":"IF(Table_PI[[#This Row],[Serial Number(s)]]=\"\",\"\",Table_PI[[#This Row],[Serial Number(s)]])","v":""},null,{"$f":"IF(Table_PI[[#This Row],[Size]]=\"\",\"\",Table_PI[[#This Row],[Size]])","v":""},null,{"$f":"IFERROR(IF(AND(MeasureCalc(Table_PI[[#This Row],[Hide:\nFormula Name]],Table_SummaryPI[[#This Row],[Quantity]],Table_PI[[#This Row],[List 1]],Table_PI[[#This Row],[List 2]],Table_PI[[#This Row],[List 3]],Table_PI[[#This Row],[Size]],Table_PI[[#This Row],[Input 1]],Table_PI[[#This Row],[Input 2]],Table_PI[[#This Row],[Input 3]],Table_PI[[#This Row],[Input 4]],'Customer Information'!$AR$12,100,ROW())<>0,MeasureCalc(Table_PI[[#This Row],[Hide:\nFormula Name]],Table_SummaryPI[[#This Row],[Quantity]],Table_PI[[#This Row],[List 1]],Table_PI[[#This Row],[List 2]],Table_PI[[#This Row],[List 3]],Table_PI[[#This Row],[Size]],Table_PI[[#This Row],[Input 1]],Table_PI[[#This Row],[Input 2]],Table_PI[[#This Row],[Input 3]],Table_PI[[#This Row],[Input 4]],'Customer Information'!$AR$12,100,ROW())<>\"No Rebate\"),MeasureCalc(Table_PI[[#This Row],[Hide:\nFormula Name]],Table_SummaryPI[[#This Row],[Quantity]],Table_PI[[#This Row],[List 1]],Table_PI[[#This Row],[List 2]],Table_PI[[#This Row],[List 3]],Table_PI[[#This Row],[Size]],Table_PI[[#This Row],[Input 1]],Table_PI[[#This Row],[Input 2]],Table_PI[[#This Row],[Input 3]],Table_PI[[#This Row],[Input 4]],'Customer Information'!$AR$12,100,ROW()),\"\"),\"\")","v":""},{"$f":"IF(Table_PI[[#This Row],[Input 1]]<>\"\",Table_PI[[#This Row],[Input 1]],\"\")","v":""},null,{"$f":"IFERROR(IF(AND(MeasureCalc(Table_PI[[#This Row],[Hide:\nFormula Name]],Table_SummaryPI[[#This Row],[Quantity]],Table_PI[[#This Row],[List 1]],Table_PI[[#This Row],[List 2]],Table_PI[[#This Row],[List 3]],Table_PI[[#This Row],[Size]],Table_PI[[#This Row],[Input 1]],Table_PI[[#This Row],[Input 2]],Table_PI[[#This Row],[Input 3]],Table_PI[[#This Row],[Input 4]],'Customer Information'!$AR$12,101,ROW())<>0,MeasureCalc(Table_PI[[#This Row],[Hide:\nFormula Name]],Table_SummaryPI[[#This Row],[Quantity]],Table_PI[[#This Row],[List 1]],Table_PI[[#This Row],[List 2]],Table_PI[[#This Row],[List 3]],Table_PI[[#This Row],[Size]],Table_PI[[#This Row],[Input 1]],Table_PI[[#This Row],[Input 2]],Table_PI[[#This Row],[Input 3]],Table_PI[[#This Row],[Input 4]],'Customer Information'!$AR$12,101,ROW())<>\"No Rebate\"),MeasureCalc(Table_PI[[#This Row],[Hide:\nFormula Name]],Table_SummaryPI[[#This Row],[Quantity]],Table_PI[[#This Row],[List 1]],Table_PI[[#This Row],[List 2]],Table_PI[[#This Row],[List 3]],Table_PI[[#This Row],[Size]],Table_PI[[#This Row],[Input 1]],Table_PI[[#This Row],[Input 2]],Table_PI[[#This Row],[Input 3]],Table_PI[[#This Row],[Input 4]],'Customer Information'!$AR$12,101,ROW()),\"\"),\"\")","v":""},{"$f":"IF(Table_PI[[#This Row],[Input 2]]<>\"\",Table_PI[[#This Row],[Input 2]],\"\")","v":""},null,{"$f":"IFERROR(IF(AND(MeasureCalc(Table_PI[[#This Row],[Hide:\nFormula Name]],Table_SummaryPI[[#This Row],[Quantity]],Table_PI[[#This Row],[List 1]],Table_PI[[#This Row],[List 2]],Table_PI[[#This Row],[List 3]],Table_PI[[#This Row],[Size]],Table_PI[[#This Row],[Input 1]],Table_PI[[#This Row],[Input 2]],Table_PI[[#This Row],[Input 3]],Table_PI[[#This Row],[Input 4]],'Customer Information'!$AR$12,102,ROW())<>0,MeasureCalc(Table_PI[[#This Row],[Hide:\nFormula Name]],Table_SummaryPI[[#This Row],[Quantity]],Table_PI[[#This Row],[List 1]],Table_PI[[#This Row],[List 2]],Table_PI[[#This Row],[List 3]],Table_PI[[#This Row],[Size]],Table_PI[[#This Row],[Input 1]],Table_PI[[#This Row],[Input 2]],Table_PI[[#This Row],[Input 3]],Table_PI[[#This Row],[Input 4]],'Customer Information'!$AR$12,102,ROW())<>\"No Rebate\"),MeasureCalc(Table_PI[[#This Row],[Hide:\nFormula Name]],Table_SummaryPI[[#This Row],[Quantity]],Table_PI[[#This Row],[List 1]],Table_PI[[#This Row],[List 2]],Table_PI[[#This Row],[List 3]],Table_PI[[#This Row],[Size]],Table_PI[[#This Row],[Input 1]],Table_PI[[#This Row],[Input 2]],Table_PI[[#This Row],[Input 3]],Table_PI[[#This Row],[Input 4]],'Customer Information'!$AR$12,102,ROW()),\"\"),\"\")","v":""},{"$f":"IF(Table_PI[[#This Row],[Input 3]]<>\"\",Table_PI[[#This Row],[Input 3]],\"\")","v":""},null,{"$f":"IFERROR(IF(AND(MeasureCalc(Table_PI[[#This Row],[Hide:\nFormula Name]],Table_SummaryPI[[#This Row],[Quantity]],Table_PI[[#This Row],[List 1]],Table_PI[[#This Row],[List 2]],Table_PI[[#This Row],[List 3]],Table_PI[[#This Row],[Size]],Table_PI[[#This Row],[Input 1]],Table_PI[[#This Row],[Input 2]],Table_PI[[#This Row],[Input 3]],Table_PI[[#This Row],[Input 4]],'Customer Information'!$AR$12,103,ROW())<>0,MeasureCalc(Table_PI[[#This Row],[Hide:\nFormula Name]],Table_SummaryPI[[#This Row],[Quantity]],Table_PI[[#This Row],[List 1]],Table_PI[[#This Row],[List 2]],Table_PI[[#This Row],[List 3]],Table_PI[[#This Row],[Size]],Table_PI[[#This Row],[Input 1]],Table_PI[[#This Row],[Input 2]],Table_PI[[#This Row],[Input 3]],Table_PI[[#This Row],[Input 4]],'Customer Information'!$AR$12,103,ROW())<>\"No Rebate\"),MeasureCalc(Table_PI[[#This Row],[Hide:\nFormula Name]],Table_SummaryPI[[#This Row],[Quantity]],Table_PI[[#This Row],[List 1]],Table_PI[[#This Row],[List 2]],Table_PI[[#This Row],[List 3]],Table_PI[[#This Row],[Size]],Table_PI[[#This Row],[Input 1]],Table_PI[[#This Row],[Input 2]],Table_PI[[#This Row],[Input 3]],Table_PI[[#This Row],[Input 4]],'Customer Information'!$AR$12,103,ROW()),\"\"),\"\")","v":""},{"$f":"IF(Table_PI[[#This Row],[Input 4]]<>\"\",Table_PI[[#This Row],[Input 4]],\"\")","v":""},{"$f":"IF(Table_PI[[#This Row],[Quantity]]=\"\",\"\",Table_PI[[#This Row],[Quantity]])","v":""},{"$f":"IF(Table_PI[[#This Row],[Notes]]=\"\",\"\",Table_PI[[#This Row],[Notes]])","v":""},{"$f":"IF(OR(Table_PI[[#This Row],[Hide:\nBaseline kWh]]=\"\",Table_PI[[#This Row],[Hide:\nBaseline kWh]]=0),\"\",Table_PI[[#This Row],[Hide:\nBaseline kWh]])","v":""},{"$f":"IF(OR(Table_PI[[#This Row],[Hide:\nBaseline kW]]=\"\",Table_PI[[#This Row],[Hide:\nBaseline kW]]=0),\"\",Table_PI[[#This Row],[Hide:\nBaseline kW]])","v":""},{"$f":"IF(OR(Table_PI[[#This Row],[Hide:\nProposed kWh]]=\"\",Table_PI[[#This Row],[Hide:\nProposed kWh]]=0),\"\",Table_PI[[#This Row],[Hide:\nProposed kWh]])","v":""},{"$f":"IF(OR(Table_PI[[#This Row],[Hide:\nProposed kW]]=\"\",Table_PI[[#This Row],[Hide:\nProposed kW]]=0),\"\",Table_PI[[#This Row],[Hide:\nProposed kW]])","v":""},{"$f":"IF(OR(Table_PI[[#This Row],[Rebate]]=\"\",Table_PI[[#This Row],[Rebate]]=0),\"\",Table_PI[[#This Row],[Rebate]])","v":""},{"$f":"IF(OR(Table_PI[[#This Row],[Hide:\nIncremental Cost]]=\"\",Table_PI[[#This Row],[Hide:\nIncremental Cost]]=0),\"\",Table_PI[[#This Row],[Hide:\nIncremental Cost]])","v":""},{"$f":"IFERROR(IF(Table_SummaryPI[[#This Row],[kWhSavings]]=\"\",\"\",ROUND(Table_SummaryPI[[#This Row],[kWhSavings]]/$AG$401*'Customer Information'!$BC$17,2)),0)","v":""},{"$f":"IF(OR(Table_PI[[#This Row],[Annual kWh]]=\"\",Table_PI[[#This Row],[Annual kWh]]=0),\"\",Table_PI[[#This Row],[Annual kWh]])","v":""},{"$f":"IF(OR(Table_PI[[#This Row],[Peak kW]]=\"\",Table_PI[[#This Row],[Peak kW]]=0),\"\",Table_PI[[#This Row],[Peak kW]])","v":""},{"$f":"IFERROR(IF(Table_SummaryPI[[#This Row],[kWhSavings]]=\"\",\"\",$AU$9*Table_SummaryPI[[#This Row],[kWhSavings]]),0)","v":""},{"$f":"IFERROR(IF(Table_SummaryPI[[#This Row],[kWhSavings]]=\"\",\"\",$AU$14*Table_SummaryPI[[#This Row],[kWhSavings]]),0)","v":""},{"$f":"IFERROR(IF(Table_SummaryPI[[#This Row],[kWhSavings]]=\"\",\"\",$AU$18*Table_SummaryPI[[#This Row],[kWhSavings]]),0)","v":""},{"$f":"IFERROR(IF(Table_SummaryPI[[#This Row],[kWhSavings]]=\"\",\"\",$AU$22*Table_SummaryPI[[#This Row],[kWhSavings]]),0)","v":""},{"$f":"IFERROR(IF(MeasureCalc(Table_PI[[#This Row],[Hide:\nFormula Name]],Table_SummaryPI[[#This Row],[Quantity]],Table_PI[[#This Row],[List 1]],Table_PI[[#This Row],[List 2]],Table_PI[[#This Row],[List 3]],Table_PI[[#This Row],[Size]],Table_PI[[#This Row],[Input 1]],Table_PI[[#This Row],[Input 2]],Table_PI[[#This Row],[Input 3]],Table_PI[[#This Row],[Input 4]],'Customer Information'!$AR$12,200,ROW())<>\"No Rebate\",MeasureCalc(Table_PI[[#This Row],[Hide:\nFormula Name]],Table_SummaryPI[[#This Row],[Quantity]],Table_PI[[#This Row],[List 1]],Table_PI[[#This Row],[List 2]],Table_PI[[#This Row],[List 3]],Table_PI[[#This Row],[Size]],Table_PI[[#This Row],[Input 1]],Table_PI[[#This Row],[Input 2]],Table_PI[[#This Row],[Input 3]],Table_PI[[#This Row],[Input 4]],'Customer Information'!$AR$12,200,ROW()),\"\"),\"\")","v":""},{"$f":"IFERROR(IF(MeasureCalc(Table_PI[[#This Row],[Hide:\nFormula Name]],Table_SummaryPI[[#This Row],[Quantity]],Table_PI[[#This Row],[List 1]],Table_PI[[#This Row],[List 2]],Table_PI[[#This Row],[List 3]],Table_PI[[#This Row],[Size]],Table_PI[[#This Row],[Input 1]],Table_PI[[#This Row],[Input 2]],Table_PI[[#This Row],[Input 3]],Table_PI[[#This Row],[Input 4]],'Customer Information'!$AR$12,201,ROW())<>\"No Rebate\",MeasureCalc(Table_PI[[#This Row],[Hide:\nFormula Name]],Table_SummaryPI[[#This Row],[Quantity]],Table_PI[[#This Row],[List 1]],Table_PI[[#This Row],[List 2]],Table_PI[[#This Row],[List 3]],Table_PI[[#This Row],[Size]],Table_PI[[#This Row],[Input 1]],Table_PI[[#This Row],[Input 2]],Table_PI[[#This Row],[Input 3]],Table_PI[[#This Row],[Input 4]],'Customer Information'!$AR$12,201,ROW()),\"\"),\"\")","v":""}]
[{"$f":"Table_PI[[#This Row],[Line No.]]","v":""},{"$f":"IF(Table_SummaryPI[[#This Row],[MeassureCategory]]<>\"\",CONCATENATE(Table_SummaryPI[[#This Row],[MeassureCategory]],  \" - \", Table_SummaryPI[[#This Row],[ProposedMeasureCategory]],  \" - \", TEXT(Table_SummaryPI[[#This Row],[Size]],\"#,##0.00\"),\" \",Table_SummaryPI[[#This Row],[SizeUnit]]),\"\")","v":""},{"$f":"SUBSTITUTE(Table_PI[[#This Row],[Measure]],\"     \",\"\",1)","v":""},{"$f":"IF(Table_PI[[#This Row],[List 1]]<>\"\",Table_PI[[#This Row],[List 1]],\"\")","v":""},{"$f":"IF(Table_PI[[#This Row],[List 2]]<>\"\",Table_PI[[#This Row],[List 2]],\"\")","v":""},{"$f":"IF(Table_PI[[#This Row],[List 3]]<>\"\",Table_PI[[#This Row],[List 3]],\"\")","v":""},{"$f":"IF(Table_PI[[#This Row],[Manufacturer]]=\"\",\"\",Table_PI[[#This Row],[Manufacturer]])","v":""},{"$f":"IF(Table_PI[[#This Row],[Model Number]]=\"\",\"\",Table_PI[[#This Row],[Model Number]])","v":""},{"$f":"IF(Table_PI[[#This Row],[Serial Number(s)]]=\"\",\"\",Table_PI[[#This Row],[Serial Number(s)]])","v":""},null,{"$f":"IF(Table_PI[[#This Row],[Size]]=\"\",\"\",Table_PI[[#This Row],[Size]])","v":""},null,{"$f":"IFERROR(IF(AND(MeasureCalc(Table_PI[[#This Row],[Hide:\nFormula Name]],Table_SummaryPI[[#This Row],[Quantity]],Table_PI[[#This Row],[List 1]],Table_PI[[#This Row],[List 2]],Table_PI[[#This Row],[List 3]],Table_PI[[#This Row],[Size]],Table_PI[[#This Row],[Input 1]],Table_PI[[#This Row],[Input 2]],Table_PI[[#This Row],[Input 3]],Table_PI[[#This Row],[Input 4]],'Customer Information'!$AR$12,100,ROW())<>0,MeasureCalc(Table_PI[[#This Row],[Hide:\nFormula Name]],Table_SummaryPI[[#This Row],[Quantity]],Table_PI[[#This Row],[List 1]],Table_PI[[#This Row],[List 2]],Table_PI[[#This Row],[List 3]],Table_PI[[#This Row],[Size]],Table_PI[[#This Row],[Input 1]],Table_PI[[#This Row],[Input 2]],Table_PI[[#This Row],[Input 3]],Table_PI[[#This Row],[Input 4]],'Customer Information'!$AR$12,100,ROW())<>\"No Rebate\"),MeasureCalc(Table_PI[[#This Row],[Hide:\nFormula Name]],Table_SummaryPI[[#This Row],[Quantity]],Table_PI[[#This Row],[List 1]],Table_PI[[#This Row],[List 2]],Table_PI[[#This Row],[List 3]],Table_PI[[#This Row],[Size]],Table_PI[[#This Row],[Input 1]],Table_PI[[#This Row],[Input 2]],Table_PI[[#This Row],[Input 3]],Table_PI[[#This Row],[Input 4]],'Customer Information'!$AR$12,100,ROW()),\"\"),\"\")","v":""},{"$f":"IF(Table_PI[[#This Row],[Input 1]]<>\"\",Table_PI[[#This Row],[Input 1]],\"\")","v":""},null,{"$f":"IFERROR(IF(AND(MeasureCalc(Table_PI[[#This Row],[Hide:\nFormula Name]],Table_SummaryPI[[#This Row],[Quantity]],Table_PI[[#This Row],[List 1]],Table_PI[[#This Row],[List 2]],Table_PI[[#This Row],[List 3]],Table_PI[[#This Row],[Size]],Table_PI[[#This Row],[Input 1]],Table_PI[[#This Row],[Input 2]],Table_PI[[#This Row],[Input 3]],Table_PI[[#This Row],[Input 4]],'Customer Information'!$AR$12,101,ROW())<>0,MeasureCalc(Table_PI[[#This Row],[Hide:\nFormula Name]],Table_SummaryPI[[#This Row],[Quantity]],Table_PI[[#This Row],[List 1]],Table_PI[[#This Row],[List 2]],Table_PI[[#This Row],[List 3]],Table_PI[[#This Row],[Size]],Table_PI[[#This Row],[Input 1]],Table_PI[[#This Row],[Input 2]],Table_PI[[#This Row],[Input 3]],Table_PI[[#This Row],[Input 4]],'Customer Information'!$AR$12,101,ROW())<>\"No Rebate\"),MeasureCalc(Table_PI[[#This Row],[Hide:\nFormula Name]],Table_SummaryPI[[#This Row],[Quantity]],Table_PI[[#This Row],[List 1]],Table_PI[[#This Row],[List 2]],Table_PI[[#This Row],[List 3]],Table_PI[[#This Row],[Size]],Table_PI[[#This Row],[Input 1]],Table_PI[[#This Row],[Input 2]],Table_PI[[#This Row],[Input 3]],Table_PI[[#This Row],[Input 4]],'Customer Information'!$AR$12,101,ROW()),\"\"),\"\")","v":""},{"$f":"IF(Table_PI[[#This Row],[Input 2]]<>\"\",Table_PI[[#This Row],[Input 2]],\"\")","v":""},null,{"$f":"IFERROR(IF(AND(MeasureCalc(Table_PI[[#This Row],[Hide:\nFormula Name]],Table_SummaryPI[[#This Row],[Quantity]],Table_PI[[#This Row],[List 1]],Table_PI[[#This Row],[List 2]],Table_PI[[#This Row],[List 3]],Table_PI[[#This Row],[Size]],Table_PI[[#This Row],[Input 1]],Table_PI[[#This Row],[Input 2]],Table_PI[[#This Row],[Input 3]],Table_PI[[#This Row],[Input 4]],'Customer Information'!$AR$12,102,ROW())<>0,MeasureCalc(Table_PI[[#This Row],[Hide:\nFormula Name]],Table_SummaryPI[[#This Row],[Quantity]],Table_PI[[#This Row],[List 1]],Table_PI[[#This Row],[List 2]],Table_PI[[#This Row],[List 3]],Table_PI[[#This Row],[Size]],Table_PI[[#This Row],[Input 1]],Table_PI[[#This Row],[Input 2]],Table_PI[[#This Row],[Input 3]],Table_PI[[#This Row],[Input 4]],'Customer Information'!$AR$12,102,ROW())<>\"No Rebate\"),MeasureCalc(Table_PI[[#This Row],[Hide:\nFormula Name]],Table_SummaryPI[[#This Row],[Quantity]],Table_PI[[#This Row],[List 1]],Table_PI[[#This Row],[List 2]],Table_PI[[#This Row],[List 3]],Table_PI[[#This Row],[Size]],Table_PI[[#This Row],[Input 1]],Table_PI[[#This Row],[Input 2]],Table_PI[[#This Row],[Input 3]],Table_PI[[#This Row],[Input 4]],'Customer Information'!$AR$12,102,ROW()),\"\"),\"\")","v":""},{"$f":"IF(Table_PI[[#This Row],[Input 3]]<>\"\",Table_PI[[#This Row],[Input 3]],\"\")","v":""},null,{"$f":"IFERROR(IF(AND(MeasureCalc(Table_PI[[#This Row],[Hide:\nFormula Name]],Table_SummaryPI[[#This Row],[Quantity]],Table_PI[[#This Row],[List 1]],Table_PI[[#This Row],[List 2]],Table_PI[[#This Row],[List 3]],Table_PI[[#This Row],[Size]],Table_PI[[#This Row],[Input 1]],Table_PI[[#This Row],[Input 2]],Table_PI[[#This Row],[Input 3]],Table_PI[[#This Row],[Input 4]],'Customer Information'!$AR$12,103,ROW())<>0,MeasureCalc(Table_PI[[#This Row],[Hide:\nFormula Name]],Table_SummaryPI[[#This Row],[Quantity]],Table_PI[[#This Row],[List 1]],Table_PI[[#This Row],[List 2]],Table_PI[[#This Row],[List 3]],Table_PI[[#This Row],[Size]],Table_PI[[#This Row],[Input 1]],Table_PI[[#This Row],[Input 2]],Table_PI[[#This Row],[Input 3]],Table_PI[[#This Row],[Input 4]],'Customer Information'!$AR$12,103,ROW())<>\"No Rebate\"),MeasureCalc(Table_PI[[#This Row],[Hide:\nFormula Name]],Table_SummaryPI[[#This Row],[Quantity]],Table_PI[[#This Row],[List 1]],Table_PI[[#This Row],[List 2]],Table_PI[[#This Row],[List 3]],Table_PI[[#This Row],[Size]],Table_PI[[#This Row],[Input 1]],Table_PI[[#This Row],[Input 2]],Table_PI[[#This Row],[Input 3]],Table_PI[[#This Row],[Input 4]],'Customer Information'!$AR$12,103,ROW()),\"\"),\"\")","v":""},{"$f":"IF(Table_PI[[#This Row],[Input 4]]<>\"\",Table_PI[[#This Row],[Input 4]],\"\")","v":""},{"$f":"IF(Table_PI[[#This Row],[Quantity]]=\"\",\"\",Table_PI[[#This Row],[Quantity]])","v":""},{"$f":"IF(Table_PI[[#This Row],[Notes]]=\"\",\"\",Table_PI[[#This Row],[Notes]])","v":""},{"$f":"IF(OR(Table_PI[[#This Row],[Hide:\nBaseline kWh]]=\"\",Table_PI[[#This Row],[Hide:\nBaseline kWh]]=0),\"\",Table_PI[[#This Row],[Hide:\nBaseline kWh]])","v":""},{"$f":"IF(OR(Table_PI[[#This Row],[Hide:\nBaseline kW]]=\"\",Table_PI[[#This Row],[Hide:\nBaseline kW]]=0),\"\",Table_PI[[#This Row],[Hide:\nBaseline kW]])","v":""},{"$f":"IF(OR(Table_PI[[#This Row],[Hide:\nProposed kWh]]=\"\",Table_PI[[#This Row],[Hide:\nProposed kWh]]=0),\"\",Table_PI[[#This Row],[Hide:\nProposed kWh]])","v":""},{"$f":"IF(OR(Table_PI[[#This Row],[Hide:\nProposed kW]]=\"\",Table_PI[[#This Row],[Hide:\nProposed kW]]=0),\"\",Table_PI[[#This Row],[Hide:\nProposed kW]])","v":""},{"$f":"IF(OR(Table_PI[[#This Row],[Rebate]]=\"\",Table_PI[[#This Row],[Rebate]]=0),\"\",Table_PI[[#This Row],[Rebate]])","v":""},{"$f":"IF(OR(Table_PI[[#This Row],[Hide:\nIncremental Cost]]=\"\",Table_PI[[#This Row],[Hide:\nIncremental Cost]]=0),\"\",Table_PI[[#This Row],[Hide:\nIncremental Cost]])","v":""},{"$f":"IFERROR(IF(Table_SummaryPI[[#This Row],[kWhSavings]]=\"\",\"\",ROUND(Table_SummaryPI[[#This Row],[kWhSavings]]/$AG$401*'Customer Information'!$BC$17,2)),0)","v":""},{"$f":"IF(OR(Table_PI[[#This Row],[Annual kWh]]=\"\",Table_PI[[#This Row],[Annual kWh]]=0),\"\",Table_PI[[#This Row],[Annual kWh]])","v":""},{"$f":"IF(OR(Table_PI[[#This Row],[Peak kW]]=\"\",Table_PI[[#This Row],[Peak kW]]=0),\"\",Table_PI[[#This Row],[Peak kW]])","v":""},{"$f":"IFERROR(IF(Table_SummaryPI[[#This Row],[kWhSavings]]=\"\",\"\",$AU$9*Table_SummaryPI[[#This Row],[kWhSavings]]),0)","v":""},{"$f":"IFERROR(IF(Table_SummaryPI[[#This Row],[kWhSavings]]=\"\",\"\",$AU$14*Table_SummaryPI[[#This Row],[kWhSavings]]),0)","v":""},{"$f":"IFERROR(IF(Table_SummaryPI[[#This Row],[kWhSavings]]=\"\",\"\",$AU$18*Table_SummaryPI[[#This Row],[kWhSavings]]),0)","v":""},{"$f":"IFERROR(IF(Table_SummaryPI[[#This Row],[kWhSavings]]=\"\",\"\",$AU$22*Table_SummaryPI[[#This Row],[kWhSavings]]),0)","v":""},{"$f":"IFERROR(IF(MeasureCalc(Table_PI[[#This Row],[Hide:\nFormula Name]],Table_SummaryPI[[#This Row],[Quantity]],Table_PI[[#This Row],[List 1]],Table_PI[[#This Row],[List 2]],Table_PI[[#This Row],[List 3]],Table_PI[[#This Row],[Size]],Table_PI[[#This Row],[Input 1]],Table_PI[[#This Row],[Input 2]],Table_PI[[#This Row],[Input 3]],Table_PI[[#This Row],[Input 4]],'Customer Information'!$AR$12,200,ROW())<>\"No Rebate\",MeasureCalc(Table_PI[[#This Row],[Hide:\nFormula Name]],Table_SummaryPI[[#This Row],[Quantity]],Table_PI[[#This Row],[List 1]],Table_PI[[#This Row],[List 2]],Table_PI[[#This Row],[List 3]],Table_PI[[#This Row],[Size]],Table_PI[[#This Row],[Input 1]],Table_PI[[#This Row],[Input 2]],Table_PI[[#This Row],[Input 3]],Table_PI[[#This Row],[Input 4]],'Customer Information'!$AR$12,200,ROW()),\"\"),\"\")","v":""},{"$f":"IFERROR(IF(MeasureCalc(Table_PI[[#This Row],[Hide:\nFormula Name]],Table_SummaryPI[[#This Row],[Quantity]],Table_PI[[#This Row],[List 1]],Table_PI[[#This Row],[List 2]],Table_PI[[#This Row],[List 3]],Table_PI[[#This Row],[Size]],Table_PI[[#This Row],[Input 1]],Table_PI[[#This Row],[Input 2]],Table_PI[[#This Row],[Input 3]],Table_PI[[#This Row],[Input 4]],'Customer Information'!$AR$12,201,ROW())<>\"No Rebate\",MeasureCalc(Table_PI[[#This Row],[Hide:\nFormula Name]],Table_SummaryPI[[#This Row],[Quantity]],Table_PI[[#This Row],[List 1]],Table_PI[[#This Row],[List 2]],Table_PI[[#This Row],[List 3]],Table_PI[[#This Row],[Size]],Table_PI[[#This Row],[Input 1]],Table_PI[[#This Row],[Input 2]],Table_PI[[#This Row],[Input 3]],Table_PI[[#This Row],[Input 4]],'Customer Information'!$AR$12,201,ROW()),\"\"),\"\")","v":""}]
[{"$f":"Table_PI[[#This Row],[Line No.]]","v":""},{"$f":"IF(Table_SummaryPI[[#This Row],[MeassureCategory]]<>\"\",CONCATENATE(Table_SummaryPI[[#This Row],[MeassureCategory]],  \" - \", Table_SummaryPI[[#This Row],[ProposedMeasureCategory]],  \" - \", TEXT(Table_SummaryPI[[#This Row],[Size]],\"#,##0.00\"),\" \",Table_SummaryPI[[#This Row],[SizeUnit]]),\"\")","v":""},{"$f":"SUBSTITUTE(Table_PI[[#This Row],[Measure]],\"     \",\"\",1)","v":""},{"$f":"IF(Table_PI[[#This Row],[List 1]]<>\"\",Table_PI[[#This Row],[List 1]],\"\")","v":""},{"$f":"IF(Table_PI[[#This Row],[List 2]]<>\"\",Table_PI[[#This Row],[List 2]],\"\")","v":""},{"$f":"IF(Table_PI[[#This Row],[List 3]]<>\"\",Table_PI[[#This Row],[List 3]],\"\")","v":""},{"$f":"IF(Table_PI[[#This Row],[Manufacturer]]=\"\",\"\",Table_PI[[#This Row],[Manufacturer]])","v":""},{"$f":"IF(Table_PI[[#This Row],[Model Number]]=\"\",\"\",Table_PI[[#This Row],[Model Number]])","v":""},{"$f":"IF(Table_PI[[#This Row],[Serial Number(s)]]=\"\",\"\",Table_PI[[#This Row],[Serial Number(s)]])","v":""},null,{"$f":"IF(Table_PI[[#This Row],[Size]]=\"\",\"\",Table_PI[[#This Row],[Size]])","v":""},null,{"$f":"IFERROR(IF(AND(MeasureCalc(Table_PI[[#This Row],[Hide:\nFormula Name]],Table_SummaryPI[[#This Row],[Quantity]],Table_PI[[#This Row],[List 1]],Table_PI[[#This Row],[List 2]],Table_PI[[#This Row],[List 3]],Table_PI[[#This Row],[Size]],Table_PI[[#This Row],[Input 1]],Table_PI[[#This Row],[Input 2]],Table_PI[[#This Row],[Input 3]],Table_PI[[#This Row],[Input 4]],'Customer Information'!$AR$12,100,ROW())<>0,MeasureCalc(Table_PI[[#This Row],[Hide:\nFormula Name]],Table_SummaryPI[[#This Row],[Quantity]],Table_PI[[#This Row],[List 1]],Table_PI[[#This Row],[List 2]],Table_PI[[#This Row],[List 3]],Table_PI[[#This Row],[Size]],Table_PI[[#This Row],[Input 1]],Table_PI[[#This Row],[Input 2]],Table_PI[[#This Row],[Input 3]],Table_PI[[#This Row],[Input 4]],'Customer Information'!$AR$12,100,ROW())<>\"No Rebate\"),MeasureCalc(Table_PI[[#This Row],[Hide:\nFormula Name]],Table_SummaryPI[[#This Row],[Quantity]],Table_PI[[#This Row],[List 1]],Table_PI[[#This Row],[List 2]],Table_PI[[#This Row],[List 3]],Table_PI[[#This Row],[Size]],Table_PI[[#This Row],[Input 1]],Table_PI[[#This Row],[Input 2]],Table_PI[[#This Row],[Input 3]],Table_PI[[#This Row],[Input 4]],'Customer Information'!$AR$12,100,ROW()),\"\"),\"\")","v":""},{"$f":"IF(Table_PI[[#This Row],[Input 1]]<>\"\",Table_PI[[#This Row],[Input 1]],\"\")","v":""},null,{"$f":"IFERROR(IF(AND(MeasureCalc(Table_PI[[#This Row],[Hide:\nFormula Name]],Table_SummaryPI[[#This Row],[Quantity]],Table_PI[[#This Row],[List 1]],Table_PI[[#This Row],[List 2]],Table_PI[[#This Row],[List 3]],Table_PI[[#This Row],[Size]],Table_PI[[#This Row],[Input 1]],Table_PI[[#This Row],[Input 2]],Table_PI[[#This Row],[Input 3]],Table_PI[[#This Row],[Input 4]],'Customer Information'!$AR$12,101,ROW())<>0,MeasureCalc(Table_PI[[#This Row],[Hide:\nFormula Name]],Table_SummaryPI[[#This Row],[Quantity]],Table_PI[[#This Row],[List 1]],Table_PI[[#This Row],[List 2]],Table_PI[[#This Row],[List 3]],Table_PI[[#This Row],[Size]],Table_PI[[#This Row],[Input 1]],Table_PI[[#This Row],[Input 2]],Table_PI[[#This Row],[Input 3]],Table_PI[[#This Row],[Input 4]],'Customer Information'!$AR$12,101,ROW())<>\"No Rebate\"),MeasureCalc(Table_PI[[#This Row],[Hide:\nFormula Name]],Table_SummaryPI[[#This Row],[Quantity]],Table_PI[[#This Row],[List 1]],Table_PI[[#This Row],[List 2]],Table_PI[[#This Row],[List 3]],Table_PI[[#This Row],[Size]],Table_PI[[#This Row],[Input 1]],Table_PI[[#This Row],[Input 2]],Table_PI[[#This Row],[Input 3]],Table_PI[[#This Row],[Input 4]],'Customer Information'!$AR$12,101,ROW()),\"\"),\"\")","v":""},{"$f":"IF(Table_PI[[#This Row],[Input 2]]<>\"\",Table_PI[[#This Row],[Input 2]],\"\")","v":""},null,{"$f":"IFERROR(IF(AND(MeasureCalc(Table_PI[[#This Row],[Hide:\nFormula Name]],Table_SummaryPI[[#This Row],[Quantity]],Table_PI[[#This Row],[List 1]],Table_PI[[#This Row],[List 2]],Table_PI[[#This Row],[List 3]],Table_PI[[#This Row],[Size]],Table_PI[[#This Row],[Input 1]],Table_PI[[#This Row],[Input 2]],Table_PI[[#This Row],[Input 3]],Table_PI[[#This Row],[Input 4]],'Customer Information'!$AR$12,102,ROW())<>0,MeasureCalc(Table_PI[[#This Row],[Hide:\nFormula Name]],Table_SummaryPI[[#This Row],[Quantity]],Table_PI[[#This Row],[List 1]],Table_PI[[#This Row],[List 2]],Table_PI[[#This Row],[List 3]],Table_PI[[#This Row],[Size]],Table_PI[[#This Row],[Input 1]],Table_PI[[#This Row],[Input 2]],Table_PI[[#This Row],[Input 3]],Table_PI[[#This Row],[Input 4]],'Customer Information'!$AR$12,102,ROW())<>\"No Rebate\"),MeasureCalc(Table_PI[[#This Row],[Hide:\nFormula Name]],Table_SummaryPI[[#This Row],[Quantity]],Table_PI[[#This Row],[List 1]],Table_PI[[#This Row],[List 2]],Table_PI[[#This Row],[List 3]],Table_PI[[#This Row],[Size]],Table_PI[[#This Row],[Input 1]],Table_PI[[#This Row],[Input 2]],Table_PI[[#This Row],[Input 3]],Table_PI[[#This Row],[Input 4]],'Customer Information'!$AR$12,102,ROW()),\"\"),\"\")","v":""},{"$f":"IF(Table_PI[[#This Row],[Input 3]]<>\"\",Table_PI[[#This Row],[Input 3]],\"\")","v":""},null,{"$f":"IFERROR(IF(AND(MeasureCalc(Table_PI[[#This Row],[Hide:\nFormula Name]],Table_SummaryPI[[#This Row],[Quantity]],Table_PI[[#This Row],[List 1]],Table_PI[[#This Row],[List 2]],Table_PI[[#This Row],[List 3]],Table_PI[[#This Row],[Size]],Table_PI[[#This Row],[Input 1]],Table_PI[[#This Row],[Input 2]],Table_PI[[#This Row],[Input 3]],Table_PI[[#This Row],[Input 4]],'Customer Information'!$AR$12,103,ROW())<>0,MeasureCalc(Table_PI[[#This Row],[Hide:\nFormula Name]],Table_SummaryPI[[#This Row],[Quantity]],Table_PI[[#This Row],[List 1]],Table_PI[[#This Row],[List 2]],Table_PI[[#This Row],[List 3]],Table_PI[[#This Row],[Size]],Table_PI[[#This Row],[Input 1]],Table_PI[[#This Row],[Input 2]],Table_PI[[#This Row],[Input 3]],Table_PI[[#This Row],[Input 4]],'Customer Information'!$AR$12,103,ROW())<>\"No Rebate\"),MeasureCalc(Table_PI[[#This Row],[Hide:\nFormula Name]],Table_SummaryPI[[#This Row],[Quantity]],Table_PI[[#This Row],[List 1]],Table_PI[[#This Row],[List 2]],Table_PI[[#This Row],[List 3]],Table_PI[[#This Row],[Size]],Table_PI[[#This Row],[Input 1]],Table_PI[[#This Row],[Input 2]],Table_PI[[#This Row],[Input 3]],Table_PI[[#This Row],[Input 4]],'Customer Information'!$AR$12,103,ROW()),\"\"),\"\")","v":""},{"$f":"IF(Table_PI[[#This Row],[Input 4]]<>\"\",Table_PI[[#This Row],[Input 4]],\"\")","v":""},{"$f":"IF(Table_PI[[#This Row],[Quantity]]=\"\",\"\",Table_PI[[#This Row],[Quantity]])","v":""},{"$f":"IF(Table_PI[[#This Row],[Notes]]=\"\",\"\",Table_PI[[#This Row],[Notes]])","v":""},{"$f":"IF(OR(Table_PI[[#This Row],[Hide:\nBaseline kWh]]=\"\",Table_PI[[#This Row],[Hide:\nBaseline kWh]]=0),\"\",Table_PI[[#This Row],[Hide:\nBaseline kWh]])","v":""},{"$f":"IF(OR(Table_PI[[#This Row],[Hide:\nBaseline kW]]=\"\",Table_PI[[#This Row],[Hide:\nBaseline kW]]=0),\"\",Table_PI[[#This Row],[Hide:\nBaseline kW]])","v":""},{"$f":"IF(OR(Table_PI[[#This Row],[Hide:\nProposed kWh]]=\"\",Table_PI[[#This Row],[Hide:\nProposed kWh]]=0),\"\",Table_PI[[#This Row],[Hide:\nProposed kWh]])","v":""},{"$f":"IF(OR(Table_PI[[#This Row],[Hide:\nProposed kW]]=\"\",Table_PI[[#This Row],[Hide:\nProposed kW]]=0),\"\",Table_PI[[#This Row],[Hide:\nProposed kW]])","v":""},{"$f":"IF(OR(Table_PI[[#This Row],[Rebate]]=\"\",Table_PI[[#This Row],[Rebate]]=0),\"\",Table_PI[[#This Row],[Rebate]])","v":""},{"$f":"IF(OR(Table_PI[[#This Row],[Hide:\nIncremental Cost]]=\"\",Table_PI[[#This Row],[Hide:\nIncremental Cost]]=0),\"\",Table_PI[[#This Row],[Hide:\nIncremental Cost]])","v":""},{"$f":"IFERROR(IF(Table_SummaryPI[[#This Row],[kWhSavings]]=\"\",\"\",ROUND(Table_SummaryPI[[#This Row],[kWhSavings]]/$AG$401*'Customer Information'!$BC$17,2)),0)","v":""},{"$f":"IF(OR(Table_PI[[#This Row],[Annual kWh]]=\"\",Table_PI[[#This Row],[Annual kWh]]=0),\"\",Table_PI[[#This Row],[Annual kWh]])","v":""},{"$f":"IF(OR(Table_PI[[#This Row],[Peak kW]]=\"\",Table_PI[[#This Row],[Peak kW]]=0),\"\",Table_PI[[#This Row],[Peak kW]])","v":""},{"$f":"IFERROR(IF(Table_SummaryPI[[#This Row],[kWhSavings]]=\"\",\"\",$AU$9*Table_SummaryPI[[#This Row],[kWhSavings]]),0)","v":""},{"$f":"IFERROR(IF(Table_SummaryPI[[#This Row],[kWhSavings]]=\"\",\"\",$AU$14*Table_SummaryPI[[#This Row],[kWhSavings]]),0)","v":""},{"$f":"IFERROR(IF(Table_SummaryPI[[#This Row],[kWhSavings]]=\"\",\"\",$AU$18*Table_SummaryPI[[#This Row],[kWhSavings]]),0)","v":""},{"$f":"IFERROR(IF(Table_SummaryPI[[#This Row],[kWhSavings]]=\"\",\"\",$AU$22*Table_SummaryPI[[#This Row],[kWhSavings]]),0)","v":""},{"$f":"IFERROR(IF(MeasureCalc(Table_PI[[#This Row],[Hide:\nFormula Name]],Table_SummaryPI[[#This Row],[Quantity]],Table_PI[[#This Row],[List 1]],Table_PI[[#This Row],[List 2]],Table_PI[[#This Row],[List 3]],Table_PI[[#This Row],[Size]],Table_PI[[#This Row],[Input 1]],Table_PI[[#This Row],[Input 2]],Table_PI[[#This Row],[Input 3]],Table_PI[[#This Row],[Input 4]],'Customer Information'!$AR$12,200,ROW())<>\"No Rebate\",MeasureCalc(Table_PI[[#This Row],[Hide:\nFormula Name]],Table_SummaryPI[[#This Row],[Quantity]],Table_PI[[#This Row],[List 1]],Table_PI[[#This Row],[List 2]],Table_PI[[#This Row],[List 3]],Table_PI[[#This Row],[Size]],Table_PI[[#This Row],[Input 1]],Table_PI[[#This Row],[Input 2]],Table_PI[[#This Row],[Input 3]],Table_PI[[#This Row],[Input 4]],'Customer Information'!$AR$12,200,ROW()),\"\"),\"\")","v":""},{"$f":"IFERROR(IF(MeasureCalc(Table_PI[[#This Row],[Hide:\nFormula Name]],Table_SummaryPI[[#This Row],[Quantity]],Table_PI[[#This Row],[List 1]],Table_PI[[#This Row],[List 2]],Table_PI[[#This Row],[List 3]],Table_PI[[#This Row],[Size]],Table_PI[[#This Row],[Input 1]],Table_PI[[#This Row],[Input 2]],Table_PI[[#This Row],[Input 3]],Table_PI[[#This Row],[Input 4]],'Customer Information'!$AR$12,201,ROW())<>\"No Rebate\",MeasureCalc(Table_PI[[#This Row],[Hide:\nFormula Name]],Table_SummaryPI[[#This Row],[Quantity]],Table_PI[[#This Row],[List 1]],Table_PI[[#This Row],[List 2]],Table_PI[[#This Row],[List 3]],Table_PI[[#This Row],[Size]],Table_PI[[#This Row],[Input 1]],Table_PI[[#This Row],[Input 2]],Table_PI[[#This Row],[Input 3]],Table_PI[[#This Row],[Input 4]],'Customer Information'!$AR$12,201,ROW()),\"\"),\"\")","v":""}]
[{"$f":"Table_PI[[#This Row],[Line No.]]","v":""},{"$f":"IF(Table_SummaryPI[[#This Row],[MeassureCategory]]<>\"\",CONCATENATE(Table_SummaryPI[[#This Row],[MeassureCategory]],  \" - \", Table_SummaryPI[[#This Row],[ProposedMeasureCategory]],  \" - \", TEXT(Table_SummaryPI[[#This Row],[Size]],\"#,##0.00\"),\" \",Table_SummaryPI[[#This Row],[SizeUnit]]),\"\")","v":""},{"$f":"SUBSTITUTE(Table_PI[[#This Row],[Measure]],\"     \",\"\",1)","v":""},{"$f":"IF(Table_PI[[#This Row],[List 1]]<>\"\",Table_PI[[#This Row],[List 1]],\"\")","v":""},{"$f":"IF(Table_PI[[#This Row],[List 2]]<>\"\",Table_PI[[#This Row],[List 2]],\"\")","v":""},{"$f":"IF(Table_PI[[#This Row],[List 3]]<>\"\",Table_PI[[#This Row],[List 3]],\"\")","v":""},{"$f":"IF(Table_PI[[#This Row],[Manufacturer]]=\"\",\"\",Table_PI[[#This Row],[Manufacturer]])","v":""},{"$f":"IF(Table_PI[[#This Row],[Model Number]]=\"\",\"\",Table_PI[[#This Row],[Model Number]])","v":""},{"$f":"IF(Table_PI[[#This Row],[Serial Number(s)]]=\"\",\"\",Table_PI[[#This Row],[Serial Number(s)]])","v":""},null,{"$f":"IF(Table_PI[[#This Row],[Size]]=\"\",\"\",Table_PI[[#This Row],[Size]])","v":""},null,{"$f":"IFERROR(IF(AND(MeasureCalc(Table_PI[[#This Row],[Hide:\nFormula Name]],Table_SummaryPI[[#This Row],[Quantity]],Table_PI[[#This Row],[List 1]],Table_PI[[#This Row],[List 2]],Table_PI[[#This Row],[List 3]],Table_PI[[#This Row],[Size]],Table_PI[[#This Row],[Input 1]],Table_PI[[#This Row],[Input 2]],Table_PI[[#This Row],[Input 3]],Table_PI[[#This Row],[Input 4]],'Customer Information'!$AR$12,100,ROW())<>0,MeasureCalc(Table_PI[[#This Row],[Hide:\nFormula Name]],Table_SummaryPI[[#This Row],[Quantity]],Table_PI[[#This Row],[List 1]],Table_PI[[#This Row],[List 2]],Table_PI[[#This Row],[List 3]],Table_PI[[#This Row],[Size]],Table_PI[[#This Row],[Input 1]],Table_PI[[#This Row],[Input 2]],Table_PI[[#This Row],[Input 3]],Table_PI[[#This Row],[Input 4]],'Customer Information'!$AR$12,100,ROW())<>\"No Rebate\"),MeasureCalc(Table_PI[[#This Row],[Hide:\nFormula Name]],Table_SummaryPI[[#This Row],[Quantity]],Table_PI[[#This Row],[List 1]],Table_PI[[#This Row],[List 2]],Table_PI[[#This Row],[List 3]],Table_PI[[#This Row],[Size]],Table_PI[[#This Row],[Input 1]],Table_PI[[#This Row],[Input 2]],Table_PI[[#This Row],[Input 3]],Table_PI[[#This Row],[Input 4]],'Customer Information'!$AR$12,100,ROW()),\"\"),\"\")","v":""},{"$f":"IF(Table_PI[[#This Row],[Input 1]]<>\"\",Table_PI[[#This Row],[Input 1]],\"\")","v":""},null,{"$f":"IFERROR(IF(AND(MeasureCalc(Table_PI[[#This Row],[Hide:\nFormula Name]],Table_SummaryPI[[#This Row],[Quantity]],Table_PI[[#This Row],[List 1]],Table_PI[[#This Row],[List 2]],Table_PI[[#This Row],[List 3]],Table_PI[[#This Row],[Size]],Table_PI[[#This Row],[Input 1]],Table_PI[[#This Row],[Input 2]],Table_PI[[#This Row],[Input 3]],Table_PI[[#This Row],[Input 4]],'Customer Information'!$AR$12,101,ROW())<>0,MeasureCalc(Table_PI[[#This Row],[Hide:\nFormula Name]],Table_SummaryPI[[#This Row],[Quantity]],Table_PI[[#This Row],[List 1]],Table_PI[[#This Row],[List 2]],Table_PI[[#This Row],[List 3]],Table_PI[[#This Row],[Size]],Table_PI[[#This Row],[Input 1]],Table_PI[[#This Row],[Input 2]],Table_PI[[#This Row],[Input 3]],Table_PI[[#This Row],[Input 4]],'Customer Information'!$AR$12,101,ROW())<>\"No Rebate\"),MeasureCalc(Table_PI[[#This Row],[Hide:\nFormula Name]],Table_SummaryPI[[#This Row],[Quantity]],Table_PI[[#This Row],[List 1]],Table_PI[[#This Row],[List 2]],Table_PI[[#This Row],[List 3]],Table_PI[[#This Row],[Size]],Table_PI[[#This Row],[Input 1]],Table_PI[[#This Row],[Input 2]],Table_PI[[#This Row],[Input 3]],Table_PI[[#This Row],[Input 4]],'Customer Information'!$AR$12,101,ROW()),\"\"),\"\")","v":""},{"$f":"IF(Table_PI[[#This Row],[Input 2]]<>\"\",Table_PI[[#This Row],[Input 2]],\"\")","v":""},null,{"$f":"IFERROR(IF(AND(MeasureCalc(Table_PI[[#This Row],[Hide:\nFormula Name]],Table_SummaryPI[[#This Row],[Quantity]],Table_PI[[#This Row],[List 1]],Table_PI[[#This Row],[List 2]],Table_PI[[#This Row],[List 3]],Table_PI[[#This Row],[Size]],Table_PI[[#This Row],[Input 1]],Table_PI[[#This Row],[Input 2]],Table_PI[[#This Row],[Input 3]],Table_PI[[#This Row],[Input 4]],'Customer Information'!$AR$12,102,ROW())<>0,MeasureCalc(Table_PI[[#This Row],[Hide:\nFormula Name]],Table_SummaryPI[[#This Row],[Quantity]],Table_PI[[#This Row],[List 1]],Table_PI[[#This Row],[List 2]],Table_PI[[#This Row],[List 3]],Table_PI[[#This Row],[Size]],Table_PI[[#This Row],[Input 1]],Table_PI[[#This Row],[Input 2]],Table_PI[[#This Row],[Input 3]],Table_PI[[#This Row],[Input 4]],'Customer Information'!$AR$12,102,ROW())<>\"No Rebate\"),MeasureCalc(Table_PI[[#This Row],[Hide:\nFormula Name]],Table_SummaryPI[[#This Row],[Quantity]],Table_PI[[#This Row],[List 1]],Table_PI[[#This Row],[List 2]],Table_PI[[#This Row],[List 3]],Table_PI[[#This Row],[Size]],Table_PI[[#This Row],[Input 1]],Table_PI[[#This Row],[Input 2]],Table_PI[[#This Row],[Input 3]],Table_PI[[#This Row],[Input 4]],'Customer Information'!$AR$12,102,ROW()),\"\"),\"\")","v":""},{"$f":"IF(Table_PI[[#This Row],[Input 3]]<>\"\",Table_PI[[#This Row],[Input 3]],\"\")","v":""},null,{"$f":"IFERROR(IF(AND(MeasureCalc(Table_PI[[#This Row],[Hide:\nFormula Name]],Table_SummaryPI[[#This Row],[Quantity]],Table_PI[[#This Row],[List 1]],Table_PI[[#This Row],[List 2]],Table_PI[[#This Row],[List 3]],Table_PI[[#This Row],[Size]],Table_PI[[#This Row],[Input 1]],Table_PI[[#This Row],[Input 2]],Table_PI[[#This Row],[Input 3]],Table_PI[[#This Row],[Input 4]],'Customer Information'!$AR$12,103,ROW())<>0,MeasureCalc(Table_PI[[#This Row],[Hide:\nFormula Name]],Table_SummaryPI[[#This Row],[Quantity]],Table_PI[[#This Row],[List 1]],Table_PI[[#This Row],[List 2]],Table_PI[[#This Row],[List 3]],Table_PI[[#This Row],[Size]],Table_PI[[#This Row],[Input 1]],Table_PI[[#This Row],[Input 2]],Table_PI[[#This Row],[Input 3]],Table_PI[[#This Row],[Input 4]],'Customer Information'!$AR$12,103,ROW())<>\"No Rebate\"),MeasureCalc(Table_PI[[#This Row],[Hide:\nFormula Name]],Table_SummaryPI[[#This Row],[Quantity]],Table_PI[[#This Row],[List 1]],Table_PI[[#This Row],[List 2]],Table_PI[[#This Row],[List 3]],Table_PI[[#This Row],[Size]],Table_PI[[#This Row],[Input 1]],Table_PI[[#This Row],[Input 2]],Table_PI[[#This Row],[Input 3]],Table_PI[[#This Row],[Input 4]],'Customer Information'!$AR$12,103,ROW()),\"\"),\"\")","v":""},{"$f":"IF(Table_PI[[#This Row],[Input 4]]<>\"\",Table_PI[[#This Row],[Input 4]],\"\")","v":""},{"$f":"IF(Table_PI[[#This Row],[Quantity]]=\"\",\"\",Table_PI[[#This Row],[Quantity]])","v":""},{"$f":"IF(Table_PI[[#This Row],[Notes]]=\"\",\"\",Table_PI[[#This Row],[Notes]])","v":""},{"$f":"IF(OR(Table_PI[[#This Row],[Hide:\nBaseline kWh]]=\"\",Table_PI[[#This Row],[Hide:\nBaseline kWh]]=0),\"\",Table_PI[[#This Row],[Hide:\nBaseline kWh]])","v":""},{"$f":"IF(OR(Table_PI[[#This Row],[Hide:\nBaseline kW]]=\"\",Table_PI[[#This Row],[Hide:\nBaseline kW]]=0),\"\",Table_PI[[#This Row],[Hide:\nBaseline kW]])","v":""},{"$f":"IF(OR(Table_PI[[#This Row],[Hide:\nProposed kWh]]=\"\",Table_PI[[#This Row],[Hide:\nProposed kWh]]=0),\"\",Table_PI[[#This Row],[Hide:\nProposed kWh]])","v":""},{"$f":"IF(OR(Table_PI[[#This Row],[Hide:\nProposed kW]]=\"\",Table_PI[[#This Row],[Hide:\nProposed kW]]=0),\"\",Table_PI[[#This Row],[Hide:\nProposed kW]])","v":""},{"$f":"IF(OR(Table_PI[[#This Row],[Rebate]]=\"\",Table_PI[[#This Row],[Rebate]]=0),\"\",Table_PI[[#This Row],[Rebate]])","v":""},{"$f":"IF(OR(Table_PI[[#This Row],[Hide:\nIncremental Cost]]=\"\",Table_PI[[#This Row],[Hide:\nIncremental Cost]]=0),\"\",Table_PI[[#This Row],[Hide:\nIncremental Cost]])","v":""},{"$f":"IFERROR(IF(Table_SummaryPI[[#This Row],[kWhSavings]]=\"\",\"\",ROUND(Table_SummaryPI[[#This Row],[kWhSavings]]/$AG$401*'Customer Information'!$BC$17,2)),0)","v":""},{"$f":"IF(OR(Table_PI[[#This Row],[Annual kWh]]=\"\",Table_PI[[#This Row],[Annual kWh]]=0),\"\",Table_PI[[#This Row],[Annual kWh]])","v":""},{"$f":"IF(OR(Table_PI[[#This Row],[Peak kW]]=\"\",Table_PI[[#This Row],[Peak kW]]=0),\"\",Table_PI[[#This Row],[Peak kW]])","v":""},{"$f":"IFERROR(IF(Table_SummaryPI[[#This Row],[kWhSavings]]=\"\",\"\",$AU$9*Table_SummaryPI[[#This Row],[kWhSavings]]),0)","v":""},{"$f":"IFERROR(IF(Table_SummaryPI[[#This Row],[kWhSavings]]=\"\",\"\",$AU$14*Table_SummaryPI[[#This Row],[kWhSavings]]),0)","v":""},{"$f":"IFERROR(IF(Table_SummaryPI[[#This Row],[kWhSavings]]=\"\",\"\",$AU$18*Table_SummaryPI[[#This Row],[kWhSavings]]),0)","v":""},{"$f":"IFERROR(IF(Table_SummaryPI[[#This Row],[kWhSavings]]=\"\",\"\",$AU$22*Table_SummaryPI[[#This Row],[kWhSavings]]),0)","v":""},{"$f":"IFERROR(IF(MeasureCalc(Table_PI[[#This Row],[Hide:\nFormula Name]],Table_SummaryPI[[#This Row],[Quantity]],Table_PI[[#This Row],[List 1]],Table_PI[[#This Row],[List 2]],Table_PI[[#This Row],[List 3]],Table_PI[[#This Row],[Size]],Table_PI[[#This Row],[Input 1]],Table_PI[[#This Row],[Input 2]],Table_PI[[#This Row],[Input 3]],Table_PI[[#This Row],[Input 4]],'Customer Information'!$AR$12,200,ROW())<>\"No Rebate\",MeasureCalc(Table_PI[[#This Row],[Hide:\nFormula Name]],Table_SummaryPI[[#This Row],[Quantity]],Table_PI[[#This Row],[List 1]],Table_PI[[#This Row],[List 2]],Table_PI[[#This Row],[List 3]],Table_PI[[#This Row],[Size]],Table_PI[[#This Row],[Input 1]],Table_PI[[#This Row],[Input 2]],Table_PI[[#This Row],[Input 3]],Table_PI[[#This Row],[Input 4]],'Customer Information'!$AR$12,200,ROW()),\"\"),\"\")","v":""},{"$f":"IFERROR(IF(MeasureCalc(Table_PI[[#This Row],[Hide:\nFormula Name]],Table_SummaryPI[[#This Row],[Quantity]],Table_PI[[#This Row],[List 1]],Table_PI[[#This Row],[List 2]],Table_PI[[#This Row],[List 3]],Table_PI[[#This Row],[Size]],Table_PI[[#This Row],[Input 1]],Table_PI[[#This Row],[Input 2]],Table_PI[[#This Row],[Input 3]],Table_PI[[#This Row],[Input 4]],'Customer Information'!$AR$12,201,ROW())<>\"No Rebate\",MeasureCalc(Table_PI[[#This Row],[Hide:\nFormula Name]],Table_SummaryPI[[#This Row],[Quantity]],Table_PI[[#This Row],[List 1]],Table_PI[[#This Row],[List 2]],Table_PI[[#This Row],[List 3]],Table_PI[[#This Row],[Size]],Table_PI[[#This Row],[Input 1]],Table_PI[[#This Row],[Input 2]],Table_PI[[#This Row],[Input 3]],Table_PI[[#This Row],[Input 4]],'Customer Information'!$AR$12,201,ROW()),\"\"),\"\")","v":""}]
[{"$f":"Table_PI[[#This Row],[Line No.]]","v":""},{"$f":"IF(Table_SummaryPI[[#This Row],[MeassureCategory]]<>\"\",CONCATENATE(Table_SummaryPI[[#This Row],[MeassureCategory]],  \" - \", Table_SummaryPI[[#This Row],[ProposedMeasureCategory]],  \" - \", TEXT(Table_SummaryPI[[#This Row],[Size]],\"#,##0.00\"),\" \",Table_SummaryPI[[#This Row],[SizeUnit]]),\"\")","v":""},{"$f":"SUBSTITUTE(Table_PI[[#This Row],[Measure]],\"     \",\"\",1)","v":""},{"$f":"IF(Table_PI[[#This Row],[List 1]]<>\"\",Table_PI[[#This Row],[List 1]],\"\")","v":""},{"$f":"IF(Table_PI[[#This Row],[List 2]]<>\"\",Table_PI[[#This Row],[List 2]],\"\")","v":""},{"$f":"IF(Table_PI[[#This Row],[List 3]]<>\"\",Table_PI[[#This Row],[List 3]],\"\")","v":""},{"$f":"IF(Table_PI[[#This Row],[Manufacturer]]=\"\",\"\",Table_PI[[#This Row],[Manufacturer]])","v":""},{"$f":"IF(Table_PI[[#This Row],[Model Number]]=\"\",\"\",Table_PI[[#This Row],[Model Number]])","v":""},{"$f":"IF(Table_PI[[#This Row],[Serial Number(s)]]=\"\",\"\",Table_PI[[#This Row],[Serial Number(s)]])","v":""},null,{"$f":"IF(Table_PI[[#This Row],[Size]]=\"\",\"\",Table_PI[[#This Row],[Size]])","v":""},null,{"$f":"IFERROR(IF(AND(MeasureCalc(Table_PI[[#This Row],[Hide:\nFormula Name]],Table_SummaryPI[[#This Row],[Quantity]],Table_PI[[#This Row],[List 1]],Table_PI[[#This Row],[List 2]],Table_PI[[#This Row],[List 3]],Table_PI[[#This Row],[Size]],Table_PI[[#This Row],[Input 1]],Table_PI[[#This Row],[Input 2]],Table_PI[[#This Row],[Input 3]],Table_PI[[#This Row],[Input 4]],'Customer Information'!$AR$12,100,ROW())<>0,MeasureCalc(Table_PI[[#This Row],[Hide:\nFormula Name]],Table_SummaryPI[[#This Row],[Quantity]],Table_PI[[#This Row],[List 1]],Table_PI[[#This Row],[List 2]],Table_PI[[#This Row],[List 3]],Table_PI[[#This Row],[Size]],Table_PI[[#This Row],[Input 1]],Table_PI[[#This Row],[Input 2]],Table_PI[[#This Row],[Input 3]],Table_PI[[#This Row],[Input 4]],'Customer Information'!$AR$12,100,ROW())<>\"No Rebate\"),MeasureCalc(Table_PI[[#This Row],[Hide:\nFormula Name]],Table_SummaryPI[[#This Row],[Quantity]],Table_PI[[#This Row],[List 1]],Table_PI[[#This Row],[List 2]],Table_PI[[#This Row],[List 3]],Table_PI[[#This Row],[Size]],Table_PI[[#This Row],[Input 1]],Table_PI[[#This Row],[Input 2]],Table_PI[[#This Row],[Input 3]],Table_PI[[#This Row],[Input 4]],'Customer Information'!$AR$12,100,ROW()),\"\"),\"\")","v":""},{"$f":"IF(Table_PI[[#This Row],[Input 1]]<>\"\",Table_PI[[#This Row],[Input 1]],\"\")","v":""},null,{"$f":"IFERROR(IF(AND(MeasureCalc(Table_PI[[#This Row],[Hide:\nFormula Name]],Table_SummaryPI[[#This Row],[Quantity]],Table_PI[[#This Row],[List 1]],Table_PI[[#This Row],[List 2]],Table_PI[[#This Row],[List 3]],Table_PI[[#This Row],[Size]],Table_PI[[#This Row],[Input 1]],Table_PI[[#This Row],[Input 2]],Table_PI[[#This Row],[Input 3]],Table_PI[[#This Row],[Input 4]],'Customer Information'!$AR$12,101,ROW())<>0,MeasureCalc(Table_PI[[#This Row],[Hide:\nFormula Name]],Table_SummaryPI[[#This Row],[Quantity]],Table_PI[[#This Row],[List 1]],Table_PI[[#This Row],[List 2]],Table_PI[[#This Row],[List 3]],Table_PI[[#This Row],[Size]],Table_PI[[#This Row],[Input 1]],Table_PI[[#This Row],[Input 2]],Table_PI[[#This Row],[Input 3]],Table_PI[[#This Row],[Input 4]],'Customer Information'!$AR$12,101,ROW())<>\"No Rebate\"),MeasureCalc(Table_PI[[#This Row],[Hide:\nFormula Name]],Table_SummaryPI[[#This Row],[Quantity]],Table_PI[[#This Row],[List 1]],Table_PI[[#This Row],[List 2]],Table_PI[[#This Row],[List 3]],Table_PI[[#This Row],[Size]],Table_PI[[#This Row],[Input 1]],Table_PI[[#This Row],[Input 2]],Table_PI[[#This Row],[Input 3]],Table_PI[[#This Row],[Input 4]],'Customer Information'!$AR$12,101,ROW()),\"\"),\"\")","v":""},{"$f":"IF(Table_PI[[#This Row],[Input 2]]<>\"\",Table_PI[[#This Row],[Input 2]],\"\")","v":""},null,{"$f":"IFERROR(IF(AND(MeasureCalc(Table_PI[[#This Row],[Hide:\nFormula Name]],Table_SummaryPI[[#This Row],[Quantity]],Table_PI[[#This Row],[List 1]],Table_PI[[#This Row],[List 2]],Table_PI[[#This Row],[List 3]],Table_PI[[#This Row],[Size]],Table_PI[[#This Row],[Input 1]],Table_PI[[#This Row],[Input 2]],Table_PI[[#This Row],[Input 3]],Table_PI[[#This Row],[Input 4]],'Customer Information'!$AR$12,102,ROW())<>0,MeasureCalc(Table_PI[[#This Row],[Hide:\nFormula Name]],Table_SummaryPI[[#This Row],[Quantity]],Table_PI[[#This Row],[List 1]],Table_PI[[#This Row],[List 2]],Table_PI[[#This Row],[List 3]],Table_PI[[#This Row],[Size]],Table_PI[[#This Row],[Input 1]],Table_PI[[#This Row],[Input 2]],Table_PI[[#This Row],[Input 3]],Table_PI[[#This Row],[Input 4]],'Customer Information'!$AR$12,102,ROW())<>\"No Rebate\"),MeasureCalc(Table_PI[[#This Row],[Hide:\nFormula Name]],Table_SummaryPI[[#This Row],[Quantity]],Table_PI[[#This Row],[List 1]],Table_PI[[#This Row],[List 2]],Table_PI[[#This Row],[List 3]],Table_PI[[#This Row],[Size]],Table_PI[[#This Row],[Input 1]],Table_PI[[#This Row],[Input 2]],Table_PI[[#This Row],[Input 3]],Table_PI[[#This Row],[Input 4]],'Customer Information'!$AR$12,102,ROW()),\"\"),\"\")","v":""},{"$f":"IF(Table_PI[[#This Row],[Input 3]]<>\"\",Table_PI[[#This Row],[Input 3]],\"\")","v":""},null,{"$f":"IFERROR(IF(AND(MeasureCalc(Table_PI[[#This Row],[Hide:\nFormula Name]],Table_SummaryPI[[#This Row],[Quantity]],Table_PI[[#This Row],[List 1]],Table_PI[[#This Row],[List 2]],Table_PI[[#This Row],[List 3]],Table_PI[[#This Row],[Size]],Table_PI[[#This Row],[Input 1]],Table_PI[[#This Row],[Input 2]],Table_PI[[#This Row],[Input 3]],Table_PI[[#This Row],[Input 4]],'Customer Information'!$AR$12,103,ROW())<>0,MeasureCalc(Table_PI[[#This Row],[Hide:\nFormula Name]],Table_SummaryPI[[#This Row],[Quantity]],Table_PI[[#This Row],[List 1]],Table_PI[[#This Row],[List 2]],Table_PI[[#This Row],[List 3]],Table_PI[[#This Row],[Size]],Table_PI[[#This Row],[Input 1]],Table_PI[[#This Row],[Input 2]],Table_PI[[#This Row],[Input 3]],Table_PI[[#This Row],[Input 4]],'Customer Information'!$AR$12,103,ROW())<>\"No Rebate\"),MeasureCalc(Table_PI[[#This Row],[Hide:\nFormula Name]],Table_SummaryPI[[#This Row],[Quantity]],Table_PI[[#This Row],[List 1]],Table_PI[[#This Row],[List 2]],Table_PI[[#This Row],[List 3]],Table_PI[[#This Row],[Size]],Table_PI[[#This Row],[Input 1]],Table_PI[[#This Row],[Input 2]],Table_PI[[#This Row],[Input 3]],Table_PI[[#This Row],[Input 4]],'Customer Information'!$AR$12,103,ROW()),\"\"),\"\")","v":""},{"$f":"IF(Table_PI[[#This Row],[Input 4]]<>\"\",Table_PI[[#This Row],[Input 4]],\"\")","v":""},{"$f":"IF(Table_PI[[#This Row],[Quantity]]=\"\",\"\",Table_PI[[#This Row],[Quantity]])","v":""},{"$f":"IF(Table_PI[[#This Row],[Notes]]=\"\",\"\",Table_PI[[#This Row],[Notes]])","v":""},{"$f":"IF(OR(Table_PI[[#This Row],[Hide:\nBaseline kWh]]=\"\",Table_PI[[#This Row],[Hide:\nBaseline kWh]]=0),\"\",Table_PI[[#This Row],[Hide:\nBaseline kWh]])","v":""},{"$f":"IF(OR(Table_PI[[#This Row],[Hide:\nBaseline kW]]=\"\",Table_PI[[#This Row],[Hide:\nBaseline kW]]=0),\"\",Table_PI[[#This Row],[Hide:\nBaseline kW]])","v":""},{"$f":"IF(OR(Table_PI[[#This Row],[Hide:\nProposed kWh]]=\"\",Table_PI[[#This Row],[Hide:\nProposed kWh]]=0),\"\",Table_PI[[#This Row],[Hide:\nProposed kWh]])","v":""},{"$f":"IF(OR(Table_PI[[#This Row],[Hide:\nProposed kW]]=\"\",Table_PI[[#This Row],[Hide:\nProposed kW]]=0),\"\",Table_PI[[#This Row],[Hide:\nProposed kW]])","v":""},{"$f":"IF(OR(Table_PI[[#This Row],[Rebate]]=\"\",Table_PI[[#This Row],[Rebate]]=0),\"\",Table_PI[[#This Row],[Rebate]])","v":""},{"$f":"IF(OR(Table_PI[[#This Row],[Hide:\nIncremental Cost]]=\"\",Table_PI[[#This Row],[Hide:\nIncremental Cost]]=0),\"\",Table_PI[[#This Row],[Hide:\nIncremental Cost]])","v":""},{"$f":"IFERROR(IF(Table_SummaryPI[[#This Row],[kWhSavings]]=\"\",\"\",ROUND(Table_SummaryPI[[#This Row],[kWhSavings]]/$AG$401*'Customer Information'!$BC$17,2)),0)","v":""},{"$f":"IF(OR(Table_PI[[#This Row],[Annual kWh]]=\"\",Table_PI[[#This Row],[Annual kWh]]=0),\"\",Table_PI[[#This Row],[Annual kWh]])","v":""},{"$f":"IF(OR(Table_PI[[#This Row],[Peak kW]]=\"\",Table_PI[[#This Row],[Peak kW]]=0),\"\",Table_PI[[#This Row],[Peak kW]])","v":""},{"$f":"IFERROR(IF(Table_SummaryPI[[#This Row],[kWhSavings]]=\"\",\"\",$AU$9*Table_SummaryPI[[#This Row],[kWhSavings]]),0)","v":""},{"$f":"IFERROR(IF(Table_SummaryPI[[#This Row],[kWhSavings]]=\"\",\"\",$AU$14*Table_SummaryPI[[#This Row],[kWhSavings]]),0)","v":""},{"$f":"IFERROR(IF(Table_SummaryPI[[#This Row],[kWhSavings]]=\"\",\"\",$AU$18*Table_SummaryPI[[#This Row],[kWhSavings]]),0)","v":""},{"$f":"IFERROR(IF(Table_SummaryPI[[#This Row],[kWhSavings]]=\"\",\"\",$AU$22*Table_SummaryPI[[#This Row],[kWhSavings]]),0)","v":""},{"$f":"IFERROR(IF(MeasureCalc(Table_PI[[#This Row],[Hide:\nFormula Name]],Table_SummaryPI[[#This Row],[Quantity]],Table_PI[[#This Row],[List 1]],Table_PI[[#This Row],[List 2]],Table_PI[[#This Row],[List 3]],Table_PI[[#This Row],[Size]],Table_PI[[#This Row],[Input 1]],Table_PI[[#This Row],[Input 2]],Table_PI[[#This Row],[Input 3]],Table_PI[[#This Row],[Input 4]],'Customer Information'!$AR$12,200,ROW())<>\"No Rebate\",MeasureCalc(Table_PI[[#This Row],[Hide:\nFormula Name]],Table_SummaryPI[[#This Row],[Quantity]],Table_PI[[#This Row],[List 1]],Table_PI[[#This Row],[List 2]],Table_PI[[#This Row],[List 3]],Table_PI[[#This Row],[Size]],Table_PI[[#This Row],[Input 1]],Table_PI[[#This Row],[Input 2]],Table_PI[[#This Row],[Input 3]],Table_PI[[#This Row],[Input 4]],'Customer Information'!$AR$12,200,ROW()),\"\"),\"\")","v":""},{"$f":"IFERROR(IF(MeasureCalc(Table_PI[[#This Row],[Hide:\nFormula Name]],Table_SummaryPI[[#This Row],[Quantity]],Table_PI[[#This Row],[List 1]],Table_PI[[#This Row],[List 2]],Table_PI[[#This Row],[List 3]],Table_PI[[#This Row],[Size]],Table_PI[[#This Row],[Input 1]],Table_PI[[#This Row],[Input 2]],Table_PI[[#This Row],[Input 3]],Table_PI[[#This Row],[Input 4]],'Customer Information'!$AR$12,201,ROW())<>\"No Rebate\",MeasureCalc(Table_PI[[#This Row],[Hide:\nFormula Name]],Table_SummaryPI[[#This Row],[Quantity]],Table_PI[[#This Row],[List 1]],Table_PI[[#This Row],[List 2]],Table_PI[[#This Row],[List 3]],Table_PI[[#This Row],[Size]],Table_PI[[#This Row],[Input 1]],Table_PI[[#This Row],[Input 2]],Table_PI[[#This Row],[Input 3]],Table_PI[[#This Row],[Input 4]],'Customer Information'!$AR$12,201,ROW()),\"\"),\"\")","v":""}]
[{"$f":"Table_PI[[#This Row],[Line No.]]","v":""},{"$f":"IF(Table_SummaryPI[[#This Row],[MeassureCategory]]<>\"\",CONCATENATE(Table_SummaryPI[[#This Row],[MeassureCategory]],  \" - \", Table_SummaryPI[[#This Row],[ProposedMeasureCategory]],  \" - \", TEXT(Table_SummaryPI[[#This Row],[Size]],\"#,##0.00\"),\" \",Table_SummaryPI[[#This Row],[SizeUnit]]),\"\")","v":""},{"$f":"SUBSTITUTE(Table_PI[[#This Row],[Measure]],\"     \",\"\",1)","v":""},{"$f":"IF(Table_PI[[#This Row],[List 1]]<>\"\",Table_PI[[#This Row],[List 1]],\"\")","v":""},{"$f":"IF(Table_PI[[#This Row],[List 2]]<>\"\",Table_PI[[#This Row],[List 2]],\"\")","v":""},{"$f":"IF(Table_PI[[#This Row],[List 3]]<>\"\",Table_PI[[#This Row],[List 3]],\"\")","v":""},{"$f":"IF(Table_PI[[#This Row],[Manufacturer]]=\"\",\"\",Table_PI[[#This Row],[Manufacturer]])","v":""},{"$f":"IF(Table_PI[[#This Row],[Model Number]]=\"\",\"\",Table_PI[[#This Row],[Model Number]])","v":""},{"$f":"IF(Table_PI[[#This Row],[Serial Number(s)]]=\"\",\"\",Table_PI[[#This Row],[Serial Number(s)]])","v":""},null,{"$f":"IF(Table_PI[[#This Row],[Size]]=\"\",\"\",Table_PI[[#This Row],[Size]])","v":""},null,{"$f":"IFERROR(IF(AND(MeasureCalc(Table_PI[[#This Row],[Hide:\nFormula Name]],Table_SummaryPI[[#This Row],[Quantity]],Table_PI[[#This Row],[List 1]],Table_PI[[#This Row],[List 2]],Table_PI[[#This Row],[List 3]],Table_PI[[#This Row],[Size]],Table_PI[[#This Row],[Input 1]],Table_PI[[#This Row],[Input 2]],Table_PI[[#This Row],[Input 3]],Table_PI[[#This Row],[Input 4]],'Customer Information'!$AR$12,100,ROW())<>0,MeasureCalc(Table_PI[[#This Row],[Hide:\nFormula Name]],Table_SummaryPI[[#This Row],[Quantity]],Table_PI[[#This Row],[List 1]],Table_PI[[#This Row],[List 2]],Table_PI[[#This Row],[List 3]],Table_PI[[#This Row],[Size]],Table_PI[[#This Row],[Input 1]],Table_PI[[#This Row],[Input 2]],Table_PI[[#This Row],[Input 3]],Table_PI[[#This Row],[Input 4]],'Customer Information'!$AR$12,100,ROW())<>\"No Rebate\"),MeasureCalc(Table_PI[[#This Row],[Hide:\nFormula Name]],Table_SummaryPI[[#This Row],[Quantity]],Table_PI[[#This Row],[List 1]],Table_PI[[#This Row],[List 2]],Table_PI[[#This Row],[List 3]],Table_PI[[#This Row],[Size]],Table_PI[[#This Row],[Input 1]],Table_PI[[#This Row],[Input 2]],Table_PI[[#This Row],[Input 3]],Table_PI[[#This Row],[Input 4]],'Customer Information'!$AR$12,100,ROW()),\"\"),\"\")","v":""},{"$f":"IF(Table_PI[[#This Row],[Input 1]]<>\"\",Table_PI[[#This Row],[Input 1]],\"\")","v":""},null,{"$f":"IFERROR(IF(AND(MeasureCalc(Table_PI[[#This Row],[Hide:\nFormula Name]],Table_SummaryPI[[#This Row],[Quantity]],Table_PI[[#This Row],[List 1]],Table_PI[[#This Row],[List 2]],Table_PI[[#This Row],[List 3]],Table_PI[[#This Row],[Size]],Table_PI[[#This Row],[Input 1]],Table_PI[[#This Row],[Input 2]],Table_PI[[#This Row],[Input 3]],Table_PI[[#This Row],[Input 4]],'Customer Information'!$AR$12,101,ROW())<>0,MeasureCalc(Table_PI[[#This Row],[Hide:\nFormula Name]],Table_SummaryPI[[#This Row],[Quantity]],Table_PI[[#This Row],[List 1]],Table_PI[[#This Row],[List 2]],Table_PI[[#This Row],[List 3]],Table_PI[[#This Row],[Size]],Table_PI[[#This Row],[Input 1]],Table_PI[[#This Row],[Input 2]],Table_PI[[#This Row],[Input 3]],Table_PI[[#This Row],[Input 4]],'Customer Information'!$AR$12,101,ROW())<>\"No Rebate\"),MeasureCalc(Table_PI[[#This Row],[Hide:\nFormula Name]],Table_SummaryPI[[#This Row],[Quantity]],Table_PI[[#This Row],[List 1]],Table_PI[[#This Row],[List 2]],Table_PI[[#This Row],[List 3]],Table_PI[[#This Row],[Size]],Table_PI[[#This Row],[Input 1]],Table_PI[[#This Row],[Input 2]],Table_PI[[#This Row],[Input 3]],Table_PI[[#This Row],[Input 4]],'Customer Information'!$AR$12,101,ROW()),\"\"),\"\")","v":""},{"$f":"IF(Table_PI[[#This Row],[Input 2]]<>\"\",Table_PI[[#This Row],[Input 2]],\"\")","v":""},null,{"$f":"IFERROR(IF(AND(MeasureCalc(Table_PI[[#This Row],[Hide:\nFormula Name]],Table_SummaryPI[[#This Row],[Quantity]],Table_PI[[#This Row],[List 1]],Table_PI[[#This Row],[List 2]],Table_PI[[#This Row],[List 3]],Table_PI[[#This Row],[Size]],Table_PI[[#This Row],[Input 1]],Table_PI[[#This Row],[Input 2]],Table_PI[[#This Row],[Input 3]],Table_PI[[#This Row],[Input 4]],'Customer Information'!$AR$12,102,ROW())<>0,MeasureCalc(Table_PI[[#This Row],[Hide:\nFormula Name]],Table_SummaryPI[[#This Row],[Quantity]],Table_PI[[#This Row],[List 1]],Table_PI[[#This Row],[List 2]],Table_PI[[#This Row],[List 3]],Table_PI[[#This Row],[Size]],Table_PI[[#This Row],[Input 1]],Table_PI[[#This Row],[Input 2]],Table_PI[[#This Row],[Input 3]],Table_PI[[#This Row],[Input 4]],'Customer Information'!$AR$12,102,ROW())<>\"No Rebate\"),MeasureCalc(Table_PI[[#This Row],[Hide:\nFormula Name]],Table_SummaryPI[[#This Row],[Quantity]],Table_PI[[#This Row],[List 1]],Table_PI[[#This Row],[List 2]],Table_PI[[#This Row],[List 3]],Table_PI[[#This Row],[Size]],Table_PI[[#This Row],[Input 1]],Table_PI[[#This Row],[Input 2]],Table_PI[[#This Row],[Input 3]],Table_PI[[#This Row],[Input 4]],'Customer Information'!$AR$12,102,ROW()),\"\"),\"\")","v":""},{"$f":"IF(Table_PI[[#This Row],[Input 3]]<>\"\",Table_PI[[#This Row],[Input 3]],\"\")","v":""},null,{"$f":"IFERROR(IF(AND(MeasureCalc(Table_PI[[#This Row],[Hide:\nFormula Name]],Table_SummaryPI[[#This Row],[Quantity]],Table_PI[[#This Row],[List 1]],Table_PI[[#This Row],[List 2]],Table_PI[[#This Row],[List 3]],Table_PI[[#This Row],[Size]],Table_PI[[#This Row],[Input 1]],Table_PI[[#This Row],[Input 2]],Table_PI[[#This Row],[Input 3]],Table_PI[[#This Row],[Input 4]],'Customer Information'!$AR$12,103,ROW())<>0,MeasureCalc(Table_PI[[#This Row],[Hide:\nFormula Name]],Table_SummaryPI[[#This Row],[Quantity]],Table_PI[[#This Row],[List 1]],Table_PI[[#This Row],[List 2]],Table_PI[[#This Row],[List 3]],Table_PI[[#This Row],[Size]],Table_PI[[#This Row],[Input 1]],Table_PI[[#This Row],[Input 2]],Table_PI[[#This Row],[Input 3]],Table_PI[[#This Row],[Input 4]],'Customer Information'!$AR$12,103,ROW())<>\"No Rebate\"),MeasureCalc(Table_PI[[#This Row],[Hide:\nFormula Name]],Table_SummaryPI[[#This Row],[Quantity]],Table_PI[[#This Row],[List 1]],Table_PI[[#This Row],[List 2]],Table_PI[[#This Row],[List 3]],Table_PI[[#This Row],[Size]],Table_PI[[#This Row],[Input 1]],Table_PI[[#This Row],[Input 2]],Table_PI[[#This Row],[Input 3]],Table_PI[[#This Row],[Input 4]],'Customer Information'!$AR$12,103,ROW()),\"\"),\"\")","v":""},{"$f":"IF(Table_PI[[#This Row],[Input 4]]<>\"\",Table_PI[[#This Row],[Input 4]],\"\")","v":""},{"$f":"IF(Table_PI[[#This Row],[Quantity]]=\"\",\"\",Table_PI[[#This Row],[Quantity]])","v":""},{"$f":"IF(Table_PI[[#This Row],[Notes]]=\"\",\"\",Table_PI[[#This Row],[Notes]])","v":""},{"$f":"IF(OR(Table_PI[[#This Row],[Hide:\nBaseline kWh]]=\"\",Table_PI[[#This Row],[Hide:\nBaseline kWh]]=0),\"\",Table_PI[[#This Row],[Hide:\nBaseline kWh]])","v":""},{"$f":"IF(OR(Table_PI[[#This Row],[Hide:\nBaseline kW]]=\"\",Table_PI[[#This Row],[Hide:\nBaseline kW]]=0),\"\",Table_PI[[#This Row],[Hide:\nBaseline kW]])","v":""},{"$f":"IF(OR(Table_PI[[#This Row],[Hide:\nProposed kWh]]=\"\",Table_PI[[#This Row],[Hide:\nProposed kWh]]=0),\"\",Table_PI[[#This Row],[Hide:\nProposed kWh]])","v":""},{"$f":"IF(OR(Table_PI[[#This Row],[Hide:\nProposed kW]]=\"\",Table_PI[[#This Row],[Hide:\nProposed kW]]=0),\"\",Table_PI[[#This Row],[Hide:\nProposed kW]])","v":""},{"$f":"IF(OR(Table_PI[[#This Row],[Rebate]]=\"\",Table_PI[[#This Row],[Rebate]]=0),\"\",Table_PI[[#This Row],[Rebate]])","v":""},{"$f":"IF(OR(Table_PI[[#This Row],[Hide:\nIncremental Cost]]=\"\",Table_PI[[#This Row],[Hide:\nIncremental Cost]]=0),\"\",Table_PI[[#This Row],[Hide:\nIncremental Cost]])","v":""},{"$f":"IFERROR(IF(Table_SummaryPI[[#This Row],[kWhSavings]]=\"\",\"\",ROUND(Table_SummaryPI[[#This Row],[kWhSavings]]/$AG$401*'Customer Information'!$BC$17,2)),0)","v":""},{"$f":"IF(OR(Table_PI[[#This Row],[Annual kWh]]=\"\",Table_PI[[#This Row],[Annual kWh]]=0),\"\",Table_PI[[#This Row],[Annual kWh]])","v":""},{"$f":"IF(OR(Table_PI[[#This Row],[Peak kW]]=\"\",Table_PI[[#This Row],[Peak kW]]=0),\"\",Table_PI[[#This Row],[Peak kW]])","v":""},{"$f":"IFERROR(IF(Table_SummaryPI[[#This Row],[kWhSavings]]=\"\",\"\",$AU$9*Table_SummaryPI[[#This Row],[kWhSavings]]),0)","v":""},{"$f":"IFERROR(IF(Table_SummaryPI[[#This Row],[kWhSavings]]=\"\",\"\",$AU$14*Table_SummaryPI[[#This Row],[kWhSavings]]),0)","v":""},{"$f":"IFERROR(IF(Table_SummaryPI[[#This Row],[kWhSavings]]=\"\",\"\",$AU$18*Table_SummaryPI[[#This Row],[kWhSavings]]),0)","v":""},{"$f":"IFERROR(IF(Table_SummaryPI[[#This Row],[kWhSavings]]=\"\",\"\",$AU$22*Table_SummaryPI[[#This Row],[kWhSavings]]),0)","v":""},{"$f":"IFERROR(IF(MeasureCalc(Table_PI[[#This Row],[Hide:\nFormula Name]],Table_SummaryPI[[#This Row],[Quantity]],Table_PI[[#This Row],[List 1]],Table_PI[[#This Row],[List 2]],Table_PI[[#This Row],[List 3]],Table_PI[[#This Row],[Size]],Table_PI[[#This Row],[Input 1]],Table_PI[[#This Row],[Input 2]],Table_PI[[#This Row],[Input 3]],Table_PI[[#This Row],[Input 4]],'Customer Information'!$AR$12,200,ROW())<>\"No Rebate\",MeasureCalc(Table_PI[[#This Row],[Hide:\nFormula Name]],Table_SummaryPI[[#This Row],[Quantity]],Table_PI[[#This Row],[List 1]],Table_PI[[#This Row],[List 2]],Table_PI[[#This Row],[List 3]],Table_PI[[#This Row],[Size]],Table_PI[[#This Row],[Input 1]],Table_PI[[#This Row],[Input 2]],Table_PI[[#This Row],[Input 3]],Table_PI[[#This Row],[Input 4]],'Customer Information'!$AR$12,200,ROW()),\"\"),\"\")","v":""},{"$f":"IFERROR(IF(MeasureCalc(Table_PI[[#This Row],[Hide:\nFormula Name]],Table_SummaryPI[[#This Row],[Quantity]],Table_PI[[#This Row],[List 1]],Table_PI[[#This Row],[List 2]],Table_PI[[#This Row],[List 3]],Table_PI[[#This Row],[Size]],Table_PI[[#This Row],[Input 1]],Table_PI[[#This Row],[Input 2]],Table_PI[[#This Row],[Input 3]],Table_PI[[#This Row],[Input 4]],'Customer Information'!$AR$12,201,ROW())<>\"No Rebate\",MeasureCalc(Table_PI[[#This Row],[Hide:\nFormula Name]],Table_SummaryPI[[#This Row],[Quantity]],Table_PI[[#This Row],[List 1]],Table_PI[[#This Row],[List 2]],Table_PI[[#This Row],[List 3]],Table_PI[[#This Row],[Size]],Table_PI[[#This Row],[Input 1]],Table_PI[[#This Row],[Input 2]],Table_PI[[#This Row],[Input 3]],Table_PI[[#This Row],[Input 4]],'Customer Information'!$AR$12,201,ROW()),\"\"),\"\")","v":""}]
[{"$f":"Table_PI[[#This Row],[Line No.]]","v":""},{"$f":"IF(Table_SummaryPI[[#This Row],[MeassureCategory]]<>\"\",CONCATENATE(Table_SummaryPI[[#This Row],[MeassureCategory]],  \" - \", Table_SummaryPI[[#This Row],[ProposedMeasureCategory]],  \" - \", TEXT(Table_SummaryPI[[#This Row],[Size]],\"#,##0.00\"),\" \",Table_SummaryPI[[#This Row],[SizeUnit]]),\"\")","v":""},{"$f":"SUBSTITUTE(Table_PI[[#This Row],[Measure]],\"     \",\"\",1)","v":""},{"$f":"IF(Table_PI[[#This Row],[List 1]]<>\"\",Table_PI[[#This Row],[List 1]],\"\")","v":""},{"$f":"IF(Table_PI[[#This Row],[List 2]]<>\"\",Table_PI[[#This Row],[List 2]],\"\")","v":""},{"$f":"IF(Table_PI[[#This Row],[List 3]]<>\"\",Table_PI[[#This Row],[List 3]],\"\")","v":""},{"$f":"IF(Table_PI[[#This Row],[Manufacturer]]=\"\",\"\",Table_PI[[#This Row],[Manufacturer]])","v":""},{"$f":"IF(Table_PI[[#This Row],[Model Number]]=\"\",\"\",Table_PI[[#This Row],[Model Number]])","v":""},{"$f":"IF(Table_PI[[#This Row],[Serial Number(s)]]=\"\",\"\",Table_PI[[#This Row],[Serial Number(s)]])","v":""},null,{"$f":"IF(Table_PI[[#This Row],[Size]]=\"\",\"\",Table_PI[[#This Row],[Size]])","v":""},null,{"$f":"IFERROR(IF(AND(MeasureCalc(Table_PI[[#This Row],[Hide:\nFormula Name]],Table_SummaryPI[[#This Row],[Quantity]],Table_PI[[#This Row],[List 1]],Table_PI[[#This Row],[List 2]],Table_PI[[#This Row],[List 3]],Table_PI[[#This Row],[Size]],Table_PI[[#This Row],[Input 1]],Table_PI[[#This Row],[Input 2]],Table_PI[[#This Row],[Input 3]],Table_PI[[#This Row],[Input 4]],'Customer Information'!$AR$12,100,ROW())<>0,MeasureCalc(Table_PI[[#This Row],[Hide:\nFormula Name]],Table_SummaryPI[[#This Row],[Quantity]],Table_PI[[#This Row],[List 1]],Table_PI[[#This Row],[List 2]],Table_PI[[#This Row],[List 3]],Table_PI[[#This Row],[Size]],Table_PI[[#This Row],[Input 1]],Table_PI[[#This Row],[Input 2]],Table_PI[[#This Row],[Input 3]],Table_PI[[#This Row],[Input 4]],'Customer Information'!$AR$12,100,ROW())<>\"No Rebate\"),MeasureCalc(Table_PI[[#This Row],[Hide:\nFormula Name]],Table_SummaryPI[[#This Row],[Quantity]],Table_PI[[#This Row],[List 1]],Table_PI[[#This Row],[List 2]],Table_PI[[#This Row],[List 3]],Table_PI[[#This Row],[Size]],Table_PI[[#This Row],[Input 1]],Table_PI[[#This Row],[Input 2]],Table_PI[[#This Row],[Input 3]],Table_PI[[#This Row],[Input 4]],'Customer Information'!$AR$12,100,ROW()),\"\"),\"\")","v":""},{"$f":"IF(Table_PI[[#This Row],[Input 1]]<>\"\",Table_PI[[#This Row],[Input 1]],\"\")","v":""},null,{"$f":"IFERROR(IF(AND(MeasureCalc(Table_PI[[#This Row],[Hide:\nFormula Name]],Table_SummaryPI[[#This Row],[Quantity]],Table_PI[[#This Row],[List 1]],Table_PI[[#This Row],[List 2]],Table_PI[[#This Row],[List 3]],Table_PI[[#This Row],[Size]],Table_PI[[#This Row],[Input 1]],Table_PI[[#This Row],[Input 2]],Table_PI[[#This Row],[Input 3]],Table_PI[[#This Row],[Input 4]],'Customer Information'!$AR$12,101,ROW())<>0,MeasureCalc(Table_PI[[#This Row],[Hide:\nFormula Name]],Table_SummaryPI[[#This Row],[Quantity]],Table_PI[[#This Row],[List 1]],Table_PI[[#This Row],[List 2]],Table_PI[[#This Row],[List 3]],Table_PI[[#This Row],[Size]],Table_PI[[#This Row],[Input 1]],Table_PI[[#This Row],[Input 2]],Table_PI[[#This Row],[Input 3]],Table_PI[[#This Row],[Input 4]],'Customer Information'!$AR$12,101,ROW())<>\"No Rebate\"),MeasureCalc(Table_PI[[#This Row],[Hide:\nFormula Name]],Table_SummaryPI[[#This Row],[Quantity]],Table_PI[[#This Row],[List 1]],Table_PI[[#This Row],[List 2]],Table_PI[[#This Row],[List 3]],Table_PI[[#This Row],[Size]],Table_PI[[#This Row],[Input 1]],Table_PI[[#This Row],[Input 2]],Table_PI[[#This Row],[Input 3]],Table_PI[[#This Row],[Input 4]],'Customer Information'!$AR$12,101,ROW()),\"\"),\"\")","v":""},{"$f":"IF(Table_PI[[#This Row],[Input 2]]<>\"\",Table_PI[[#This Row],[Input 2]],\"\")","v":""},null,{"$f":"IFERROR(IF(AND(MeasureCalc(Table_PI[[#This Row],[Hide:\nFormula Name]],Table_SummaryPI[[#This Row],[Quantity]],Table_PI[[#This Row],[List 1]],Table_PI[[#This Row],[List 2]],Table_PI[[#This Row],[List 3]],Table_PI[[#This Row],[Size]],Table_PI[[#This Row],[Input 1]],Table_PI[[#This Row],[Input 2]],Table_PI[[#This Row],[Input 3]],Table_PI[[#This Row],[Input 4]],'Customer Information'!$AR$12,102,ROW())<>0,MeasureCalc(Table_PI[[#This Row],[Hide:\nFormula Name]],Table_SummaryPI[[#This Row],[Quantity]],Table_PI[[#This Row],[List 1]],Table_PI[[#This Row],[List 2]],Table_PI[[#This Row],[List 3]],Table_PI[[#This Row],[Size]],Table_PI[[#This Row],[Input 1]],Table_PI[[#This Row],[Input 2]],Table_PI[[#This Row],[Input 3]],Table_PI[[#This Row],[Input 4]],'Customer Information'!$AR$12,102,ROW())<>\"No Rebate\"),MeasureCalc(Table_PI[[#This Row],[Hide:\nFormula Name]],Table_SummaryPI[[#This Row],[Quantity]],Table_PI[[#This Row],[List 1]],Table_PI[[#This Row],[List 2]],Table_PI[[#This Row],[List 3]],Table_PI[[#This Row],[Size]],Table_PI[[#This Row],[Input 1]],Table_PI[[#This Row],[Input 2]],Table_PI[[#This Row],[Input 3]],Table_PI[[#This Row],[Input 4]],'Customer Information'!$AR$12,102,ROW()),\"\"),\"\")","v":""},{"$f":"IF(Table_PI[[#This Row],[Input 3]]<>\"\",Table_PI[[#This Row],[Input 3]],\"\")","v":""},null,{"$f":"IFERROR(IF(AND(MeasureCalc(Table_PI[[#This Row],[Hide:\nFormula Name]],Table_SummaryPI[[#This Row],[Quantity]],Table_PI[[#This Row],[List 1]],Table_PI[[#This Row],[List 2]],Table_PI[[#This Row],[List 3]],Table_PI[[#This Row],[Size]],Table_PI[[#This Row],[Input 1]],Table_PI[[#This Row],[Input 2]],Table_PI[[#This Row],[Input 3]],Table_PI[[#This Row],[Input 4]],'Customer Information'!$AR$12,103,ROW())<>0,MeasureCalc(Table_PI[[#This Row],[Hide:\nFormula Name]],Table_SummaryPI[[#This Row],[Quantity]],Table_PI[[#This Row],[List 1]],Table_PI[[#This Row],[List 2]],Table_PI[[#This Row],[List 3]],Table_PI[[#This Row],[Size]],Table_PI[[#This Row],[Input 1]],Table_PI[[#This Row],[Input 2]],Table_PI[[#This Row],[Input 3]],Table_PI[[#This Row],[Input 4]],'Customer Information'!$AR$12,103,ROW())<>\"No Rebate\"),MeasureCalc(Table_PI[[#This Row],[Hide:\nFormula Name]],Table_SummaryPI[[#This Row],[Quantity]],Table_PI[[#This Row],[List 1]],Table_PI[[#This Row],[List 2]],Table_PI[[#This Row],[List 3]],Table_PI[[#This Row],[Size]],Table_PI[[#This Row],[Input 1]],Table_PI[[#This Row],[Input 2]],Table_PI[[#This Row],[Input 3]],Table_PI[[#This Row],[Input 4]],'Customer Information'!$AR$12,103,ROW()),\"\"),\"\")","v":""},{"$f":"IF(Table_PI[[#This Row],[Input 4]]<>\"\",Table_PI[[#This Row],[Input 4]],\"\")","v":""},{"$f":"IF(Table_PI[[#This Row],[Quantity]]=\"\",\"\",Table_PI[[#This Row],[Quantity]])","v":""},{"$f":"IF(Table_PI[[#This Row],[Notes]]=\"\",\"\",Table_PI[[#This Row],[Notes]])","v":""},{"$f":"IF(OR(Table_PI[[#This Row],[Hide:\nBaseline kWh]]=\"\",Table_PI[[#This Row],[Hide:\nBaseline kWh]]=0),\"\",Table_PI[[#This Row],[Hide:\nBaseline kWh]])","v":""},{"$f":"IF(OR(Table_PI[[#This Row],[Hide:\nBaseline kW]]=\"\",Table_PI[[#This Row],[Hide:\nBaseline kW]]=0),\"\",Table_PI[[#This Row],[Hide:\nBaseline kW]])","v":""},{"$f":"IF(OR(Table_PI[[#This Row],[Hide:\nProposed kWh]]=\"\",Table_PI[[#This Row],[Hide:\nProposed kWh]]=0),\"\",Table_PI[[#This Row],[Hide:\nProposed kWh]])","v":""},{"$f":"IF(OR(Table_PI[[#This Row],[Hide:\nProposed kW]]=\"\",Table_PI[[#This Row],[Hide:\nProposed kW]]=0),\"\",Table_PI[[#This Row],[Hide:\nProposed kW]])","v":""},{"$f":"IF(OR(Table_PI[[#This Row],[Rebate]]=\"\",Table_PI[[#This Row],[Rebate]]=0),\"\",Table_PI[[#This Row],[Rebate]])","v":""},{"$f":"IF(OR(Table_PI[[#This Row],[Hide:\nIncremental Cost]]=\"\",Table_PI[[#This Row],[Hide:\nIncremental Cost]]=0),\"\",Table_PI[[#This Row],[Hide:\nIncremental Cost]])","v":""},{"$f":"IFERROR(IF(Table_SummaryPI[[#This Row],[kWhSavings]]=\"\",\"\",ROUND(Table_SummaryPI[[#This Row],[kWhSavings]]/$AG$401*'Customer Information'!$BC$17,2)),0)","v":""},{"$f":"IF(OR(Table_PI[[#This Row],[Annual kWh]]=\"\",Table_PI[[#This Row],[Annual kWh]]=0),\"\",Table_PI[[#This Row],[Annual kWh]])","v":""},{"$f":"IF(OR(Table_PI[[#This Row],[Peak kW]]=\"\",Table_PI[[#This Row],[Peak kW]]=0),\"\",Table_PI[[#This Row],[Peak kW]])","v":""},{"$f":"IFERROR(IF(Table_SummaryPI[[#This Row],[kWhSavings]]=\"\",\"\",$AU$9*Table_SummaryPI[[#This Row],[kWhSavings]]),0)","v":""},{"$f":"IFERROR(IF(Table_SummaryPI[[#This Row],[kWhSavings]]=\"\",\"\",$AU$14*Table_SummaryPI[[#This Row],[kWhSavings]]),0)","v":""},{"$f":"IFERROR(IF(Table_SummaryPI[[#This Row],[kWhSavings]]=\"\",\"\",$AU$18*Table_SummaryPI[[#This Row],[kWhSavings]]),0)","v":""},{"$f":"IFERROR(IF(Table_SummaryPI[[#This Row],[kWhSavings]]=\"\",\"\",$AU$22*Table_SummaryPI[[#This Row],[kWhSavings]]),0)","v":""},{"$f":"IFERROR(IF(MeasureCalc(Table_PI[[#This Row],[Hide:\nFormula Name]],Table_SummaryPI[[#This Row],[Quantity]],Table_PI[[#This Row],[List 1]],Table_PI[[#This Row],[List 2]],Table_PI[[#This Row],[List 3]],Table_PI[[#This Row],[Size]],Table_PI[[#This Row],[Input 1]],Table_PI[[#This Row],[Input 2]],Table_PI[[#This Row],[Input 3]],Table_PI[[#This Row],[Input 4]],'Customer Information'!$AR$12,200,ROW())<>\"No Rebate\",MeasureCalc(Table_PI[[#This Row],[Hide:\nFormula Name]],Table_SummaryPI[[#This Row],[Quantity]],Table_PI[[#This Row],[List 1]],Table_PI[[#This Row],[List 2]],Table_PI[[#This Row],[List 3]],Table_PI[[#This Row],[Size]],Table_PI[[#This Row],[Input 1]],Table_PI[[#This Row],[Input 2]],Table_PI[[#This Row],[Input 3]],Table_PI[[#This Row],[Input 4]],'Customer Information'!$AR$12,200,ROW()),\"\"),\"\")","v":""},{"$f":"IFERROR(IF(MeasureCalc(Table_PI[[#This Row],[Hide:\nFormula Name]],Table_SummaryPI[[#This Row],[Quantity]],Table_PI[[#This Row],[List 1]],Table_PI[[#This Row],[List 2]],Table_PI[[#This Row],[List 3]],Table_PI[[#This Row],[Size]],Table_PI[[#This Row],[Input 1]],Table_PI[[#This Row],[Input 2]],Table_PI[[#This Row],[Input 3]],Table_PI[[#This Row],[Input 4]],'Customer Information'!$AR$12,201,ROW())<>\"No Rebate\",MeasureCalc(Table_PI[[#This Row],[Hide:\nFormula Name]],Table_SummaryPI[[#This Row],[Quantity]],Table_PI[[#This Row],[List 1]],Table_PI[[#This Row],[List 2]],Table_PI[[#This Row],[List 3]],Table_PI[[#This Row],[Size]],Table_PI[[#This Row],[Input 1]],Table_PI[[#This Row],[Input 2]],Table_PI[[#This Row],[Input 3]],Table_PI[[#This Row],[Input 4]],'Customer Information'!$AR$12,201,ROW()),\"\"),\"\")","v":""}]
[{"$f":"Table_PI[[#This Row],[Line No.]]","v":""},{"$f":"IF(Table_SummaryPI[[#This Row],[MeassureCategory]]<>\"\",CONCATENATE(Table_SummaryPI[[#This Row],[MeassureCategory]],  \" - \", Table_SummaryPI[[#This Row],[ProposedMeasureCategory]],  \" - \", TEXT(Table_SummaryPI[[#This Row],[Size]],\"#,##0.00\"),\" \",Table_SummaryPI[[#This Row],[SizeUnit]]),\"\")","v":""},{"$f":"SUBSTITUTE(Table_PI[[#This Row],[Measure]],\"     \",\"\",1)","v":""},{"$f":"IF(Table_PI[[#This Row],[List 1]]<>\"\",Table_PI[[#This Row],[List 1]],\"\")","v":""},{"$f":"IF(Table_PI[[#This Row],[List 2]]<>\"\",Table_PI[[#This Row],[List 2]],\"\")","v":""},{"$f":"IF(Table_PI[[#This Row],[List 3]]<>\"\",Table_PI[[#This Row],[List 3]],\"\")","v":""},{"$f":"IF(Table_PI[[#This Row],[Manufacturer]]=\"\",\"\",Table_PI[[#This Row],[Manufacturer]])","v":""},{"$f":"IF(Table_PI[[#This Row],[Model Number]]=\"\",\"\",Table_PI[[#This Row],[Model Number]])","v":""},{"$f":"IF(Table_PI[[#This Row],[Serial Number(s)]]=\"\",\"\",Table_PI[[#This Row],[Serial Number(s)]])","v":""},null,{"$f":"IF(Table_PI[[#This Row],[Size]]=\"\",\"\",Table_PI[[#This Row],[Size]])","v":""},null,{"$f":"IFERROR(IF(AND(MeasureCalc(Table_PI[[#This Row],[Hide:\nFormula Name]],Table_SummaryPI[[#This Row],[Quantity]],Table_PI[[#This Row],[List 1]],Table_PI[[#This Row],[List 2]],Table_PI[[#This Row],[List 3]],Table_PI[[#This Row],[Size]],Table_PI[[#This Row],[Input 1]],Table_PI[[#This Row],[Input 2]],Table_PI[[#This Row],[Input 3]],Table_PI[[#This Row],[Input 4]],'Customer Information'!$AR$12,100,ROW())<>0,MeasureCalc(Table_PI[[#This Row],[Hide:\nFormula Name]],Table_SummaryPI[[#This Row],[Quantity]],Table_PI[[#This Row],[List 1]],Table_PI[[#This Row],[List 2]],Table_PI[[#This Row],[List 3]],Table_PI[[#This Row],[Size]],Table_PI[[#This Row],[Input 1]],Table_PI[[#This Row],[Input 2]],Table_PI[[#This Row],[Input 3]],Table_PI[[#This Row],[Input 4]],'Customer Information'!$AR$12,100,ROW())<>\"No Rebate\"),MeasureCalc(Table_PI[[#This Row],[Hide:\nFormula Name]],Table_SummaryPI[[#This Row],[Quantity]],Table_PI[[#This Row],[List 1]],Table_PI[[#This Row],[List 2]],Table_PI[[#This Row],[List 3]],Table_PI[[#This Row],[Size]],Table_PI[[#This Row],[Input 1]],Table_PI[[#This Row],[Input 2]],Table_PI[[#This Row],[Input 3]],Table_PI[[#This Row],[Input 4]],'Customer Information'!$AR$12,100,ROW()),\"\"),\"\")","v":""},{"$f":"IF(Table_PI[[#This Row],[Input 1]]<>\"\",Table_PI[[#This Row],[Input 1]],\"\")","v":""},null,{"$f":"IFERROR(IF(AND(MeasureCalc(Table_PI[[#This Row],[Hide:\nFormula Name]],Table_SummaryPI[[#This Row],[Quantity]],Table_PI[[#This Row],[List 1]],Table_PI[[#This Row],[List 2]],Table_PI[[#This Row],[List 3]],Table_PI[[#This Row],[Size]],Table_PI[[#This Row],[Input 1]],Table_PI[[#This Row],[Input 2]],Table_PI[[#This Row],[Input 3]],Table_PI[[#This Row],[Input 4]],'Customer Information'!$AR$12,101,ROW())<>0,MeasureCalc(Table_PI[[#This Row],[Hide:\nFormula Name]],Table_SummaryPI[[#This Row],[Quantity]],Table_PI[[#This Row],[List 1]],Table_PI[[#This Row],[List 2]],Table_PI[[#This Row],[List 3]],Table_PI[[#This Row],[Size]],Table_PI[[#This Row],[Input 1]],Table_PI[[#This Row],[Input 2]],Table_PI[[#This Row],[Input 3]],Table_PI[[#This Row],[Input 4]],'Customer Information'!$AR$12,101,ROW())<>\"No Rebate\"),MeasureCalc(Table_PI[[#This Row],[Hide:\nFormula Name]],Table_SummaryPI[[#This Row],[Quantity]],Table_PI[[#This Row],[List 1]],Table_PI[[#This Row],[List 2]],Table_PI[[#This Row],[List 3]],Table_PI[[#This Row],[Size]],Table_PI[[#This Row],[Input 1]],Table_PI[[#This Row],[Input 2]],Table_PI[[#This Row],[Input 3]],Table_PI[[#This Row],[Input 4]],'Customer Information'!$AR$12,101,ROW()),\"\"),\"\")","v":""},{"$f":"IF(Table_PI[[#This Row],[Input 2]]<>\"\",Table_PI[[#This Row],[Input 2]],\"\")","v":""},null,{"$f":"IFERROR(IF(AND(MeasureCalc(Table_PI[[#This Row],[Hide:\nFormula Name]],Table_SummaryPI[[#This Row],[Quantity]],Table_PI[[#This Row],[List 1]],Table_PI[[#This Row],[List 2]],Table_PI[[#This Row],[List 3]],Table_PI[[#This Row],[Size]],Table_PI[[#This Row],[Input 1]],Table_PI[[#This Row],[Input 2]],Table_PI[[#This Row],[Input 3]],Table_PI[[#This Row],[Input 4]],'Customer Information'!$AR$12,102,ROW())<>0,MeasureCalc(Table_PI[[#This Row],[Hide:\nFormula Name]],Table_SummaryPI[[#This Row],[Quantity]],Table_PI[[#This Row],[List 1]],Table_PI[[#This Row],[List 2]],Table_PI[[#This Row],[List 3]],Table_PI[[#This Row],[Size]],Table_PI[[#This Row],[Input 1]],Table_PI[[#This Row],[Input 2]],Table_PI[[#This Row],[Input 3]],Table_PI[[#This Row],[Input 4]],'Customer Information'!$AR$12,102,ROW())<>\"No Rebate\"),MeasureCalc(Table_PI[[#This Row],[Hide:\nFormula Name]],Table_SummaryPI[[#This Row],[Quantity]],Table_PI[[#This Row],[List 1]],Table_PI[[#This Row],[List 2]],Table_PI[[#This Row],[List 3]],Table_PI[[#This Row],[Size]],Table_PI[[#This Row],[Input 1]],Table_PI[[#This Row],[Input 2]],Table_PI[[#This Row],[Input 3]],Table_PI[[#This Row],[Input 4]],'Customer Information'!$AR$12,102,ROW()),\"\"),\"\")","v":""},{"$f":"IF(Table_PI[[#This Row],[Input 3]]<>\"\",Table_PI[[#This Row],[Input 3]],\"\")","v":""},null,{"$f":"IFERROR(IF(AND(MeasureCalc(Table_PI[[#This Row],[Hide:\nFormula Name]],Table_SummaryPI[[#This Row],[Quantity]],Table_PI[[#This Row],[List 1]],Table_PI[[#This Row],[List 2]],Table_PI[[#This Row],[List 3]],Table_PI[[#This Row],[Size]],Table_PI[[#This Row],[Input 1]],Table_PI[[#This Row],[Input 2]],Table_PI[[#This Row],[Input 3]],Table_PI[[#This Row],[Input 4]],'Customer Information'!$AR$12,103,ROW())<>0,MeasureCalc(Table_PI[[#This Row],[Hide:\nFormula Name]],Table_SummaryPI[[#This Row],[Quantity]],Table_PI[[#This Row],[List 1]],Table_PI[[#This Row],[List 2]],Table_PI[[#This Row],[List 3]],Table_PI[[#This Row],[Size]],Table_PI[[#This Row],[Input 1]],Table_PI[[#This Row],[Input 2]],Table_PI[[#This Row],[Input 3]],Table_PI[[#This Row],[Input 4]],'Customer Information'!$AR$12,103,ROW())<>\"No Rebate\"),MeasureCalc(Table_PI[[#This Row],[Hide:\nFormula Name]],Table_SummaryPI[[#This Row],[Quantity]],Table_PI[[#This Row],[List 1]],Table_PI[[#This Row],[List 2]],Table_PI[[#This Row],[List 3]],Table_PI[[#This Row],[Size]],Table_PI[[#This Row],[Input 1]],Table_PI[[#This Row],[Input 2]],Table_PI[[#This Row],[Input 3]],Table_PI[[#This Row],[Input 4]],'Customer Information'!$AR$12,103,ROW()),\"\"),\"\")","v":""},{"$f":"IF(Table_PI[[#This Row],[Input 4]]<>\"\",Table_PI[[#This Row],[Input 4]],\"\")","v":""},{"$f":"IF(Table_PI[[#This Row],[Quantity]]=\"\",\"\",Table_PI[[#This Row],[Quantity]])","v":""},{"$f":"IF(Table_PI[[#This Row],[Notes]]=\"\",\"\",Table_PI[[#This Row],[Notes]])","v":""},{"$f":"IF(OR(Table_PI[[#This Row],[Hide:\nBaseline kWh]]=\"\",Table_PI[[#This Row],[Hide:\nBaseline kWh]]=0),\"\",Table_PI[[#This Row],[Hide:\nBaseline kWh]])","v":""},{"$f":"IF(OR(Table_PI[[#This Row],[Hide:\nBaseline kW]]=\"\",Table_PI[[#This Row],[Hide:\nBaseline kW]]=0),\"\",Table_PI[[#This Row],[Hide:\nBaseline kW]])","v":""},{"$f":"IF(OR(Table_PI[[#This Row],[Hide:\nProposed kWh]]=\"\",Table_PI[[#This Row],[Hide:\nProposed kWh]]=0),\"\",Table_PI[[#This Row],[Hide:\nProposed kWh]])","v":""},{"$f":"IF(OR(Table_PI[[#This Row],[Hide:\nProposed kW]]=\"\",Table_PI[[#This Row],[Hide:\nProposed kW]]=0),\"\",Table_PI[[#This Row],[Hide:\nProposed kW]])","v":""},{"$f":"IF(OR(Table_PI[[#This Row],[Rebate]]=\"\",Table_PI[[#This Row],[Rebate]]=0),\"\",Table_PI[[#This Row],[Rebate]])","v":""},{"$f":"IF(OR(Table_PI[[#This Row],[Hide:\nIncremental Cost]]=\"\",Table_PI[[#This Row],[Hide:\nIncremental Cost]]=0),\"\",Table_PI[[#This Row],[Hide:\nIncremental Cost]])","v":""},{"$f":"IFERROR(IF(Table_SummaryPI[[#This Row],[kWhSavings]]=\"\",\"\",ROUND(Table_SummaryPI[[#This Row],[kWhSavings]]/$AG$401*'Customer Information'!$BC$17,2)),0)","v":""},{"$f":"IF(OR(Table_PI[[#This Row],[Annual kWh]]=\"\",Table_PI[[#This Row],[Annual kWh]]=0),\"\",Table_PI[[#This Row],[Annual kWh]])","v":""},{"$f":"IF(OR(Table_PI[[#This Row],[Peak kW]]=\"\",Table_PI[[#This Row],[Peak kW]]=0),\"\",Table_PI[[#This Row],[Peak kW]])","v":""},{"$f":"IFERROR(IF(Table_SummaryPI[[#This Row],[kWhSavings]]=\"\",\"\",$AU$9*Table_SummaryPI[[#This Row],[kWhSavings]]),0)","v":""},{"$f":"IFERROR(IF(Table_SummaryPI[[#This Row],[kWhSavings]]=\"\",\"\",$AU$14*Table_SummaryPI[[#This Row],[kWhSavings]]),0)","v":""},{"$f":"IFERROR(IF(Table_SummaryPI[[#This Row],[kWhSavings]]=\"\",\"\",$AU$18*Table_SummaryPI[[#This Row],[kWhSavings]]),0)","v":""},{"$f":"IFERROR(IF(Table_SummaryPI[[#This Row],[kWhSavings]]=\"\",\"\",$AU$22*Table_SummaryPI[[#This Row],[kWhSavings]]),0)","v":""},{"$f":"IFERROR(IF(MeasureCalc(Table_PI[[#This Row],[Hide:\nFormula Name]],Table_SummaryPI[[#This Row],[Quantity]],Table_PI[[#This Row],[List 1]],Table_PI[[#This Row],[List 2]],Table_PI[[#This Row],[List 3]],Table_PI[[#This Row],[Size]],Table_PI[[#This Row],[Input 1]],Table_PI[[#This Row],[Input 2]],Table_PI[[#This Row],[Input 3]],Table_PI[[#This Row],[Input 4]],'Customer Information'!$AR$12,200,ROW())<>\"No Rebate\",MeasureCalc(Table_PI[[#This Row],[Hide:\nFormula Name]],Table_SummaryPI[[#This Row],[Quantity]],Table_PI[[#This Row],[List 1]],Table_PI[[#This Row],[List 2]],Table_PI[[#This Row],[List 3]],Table_PI[[#This Row],[Size]],Table_PI[[#This Row],[Input 1]],Table_PI[[#This Row],[Input 2]],Table_PI[[#This Row],[Input 3]],Table_PI[[#This Row],[Input 4]],'Customer Information'!$AR$12,200,ROW()),\"\"),\"\")","v":""},{"$f":"IFERROR(IF(MeasureCalc(Table_PI[[#This Row],[Hide:\nFormula Name]],Table_SummaryPI[[#This Row],[Quantity]],Table_PI[[#This Row],[List 1]],Table_PI[[#This Row],[List 2]],Table_PI[[#This Row],[List 3]],Table_PI[[#This Row],[Size]],Table_PI[[#This Row],[Input 1]],Table_PI[[#This Row],[Input 2]],Table_PI[[#This Row],[Input 3]],Table_PI[[#This Row],[Input 4]],'Customer Information'!$AR$12,201,ROW())<>\"No Rebate\",MeasureCalc(Table_PI[[#This Row],[Hide:\nFormula Name]],Table_SummaryPI[[#This Row],[Quantity]],Table_PI[[#This Row],[List 1]],Table_PI[[#This Row],[List 2]],Table_PI[[#This Row],[List 3]],Table_PI[[#This Row],[Size]],Table_PI[[#This Row],[Input 1]],Table_PI[[#This Row],[Input 2]],Table_PI[[#This Row],[Input 3]],Table_PI[[#This Row],[Input 4]],'Customer Information'!$AR$12,201,ROW()),\"\"),\"\")","v":""}]
[{"$f":"Table_PI[[#This Row],[Line No.]]","v":""},{"$f":"IF(Table_SummaryPI[[#This Row],[MeassureCategory]]<>\"\",CONCATENATE(Table_SummaryPI[[#This Row],[MeassureCategory]],  \" - \", Table_SummaryPI[[#This Row],[ProposedMeasureCategory]],  \" - \", TEXT(Table_SummaryPI[[#This Row],[Size]],\"#,##0.00\"),\" \",Table_SummaryPI[[#This Row],[SizeUnit]]),\"\")","v":""},{"$f":"SUBSTITUTE(Table_PI[[#This Row],[Measure]],\"     \",\"\",1)","v":""},{"$f":"IF(Table_PI[[#This Row],[List 1]]<>\"\",Table_PI[[#This Row],[List 1]],\"\")","v":""},{"$f":"IF(Table_PI[[#This Row],[List 2]]<>\"\",Table_PI[[#This Row],[List 2]],\"\")","v":""},{"$f":"IF(Table_PI[[#This Row],[List 3]]<>\"\",Table_PI[[#This Row],[List 3]],\"\")","v":""},{"$f":"IF(Table_PI[[#This Row],[Manufacturer]]=\"\",\"\",Table_PI[[#This Row],[Manufacturer]])","v":""},{"$f":"IF(Table_PI[[#This Row],[Model Number]]=\"\",\"\",Table_PI[[#This Row],[Model Number]])","v":""},{"$f":"IF(Table_PI[[#This Row],[Serial Number(s)]]=\"\",\"\",Table_PI[[#This Row],[Serial Number(s)]])","v":""},null,{"$f":"IF(Table_PI[[#This Row],[Size]]=\"\",\"\",Table_PI[[#This Row],[Size]])","v":""},null,{"$f":"IFERROR(IF(AND(MeasureCalc(Table_PI[[#This Row],[Hide:\nFormula Name]],Table_SummaryPI[[#This Row],[Quantity]],Table_PI[[#This Row],[List 1]],Table_PI[[#This Row],[List 2]],Table_PI[[#This Row],[List 3]],Table_PI[[#This Row],[Size]],Table_PI[[#This Row],[Input 1]],Table_PI[[#This Row],[Input 2]],Table_PI[[#This Row],[Input 3]],Table_PI[[#This Row],[Input 4]],'Customer Information'!$AR$12,100,ROW())<>0,MeasureCalc(Table_PI[[#This Row],[Hide:\nFormula Name]],Table_SummaryPI[[#This Row],[Quantity]],Table_PI[[#This Row],[List 1]],Table_PI[[#This Row],[List 2]],Table_PI[[#This Row],[List 3]],Table_PI[[#This Row],[Size]],Table_PI[[#This Row],[Input 1]],Table_PI[[#This Row],[Input 2]],Table_PI[[#This Row],[Input 3]],Table_PI[[#This Row],[Input 4]],'Customer Information'!$AR$12,100,ROW())<>\"No Rebate\"),MeasureCalc(Table_PI[[#This Row],[Hide:\nFormula Name]],Table_SummaryPI[[#This Row],[Quantity]],Table_PI[[#This Row],[List 1]],Table_PI[[#This Row],[List 2]],Table_PI[[#This Row],[List 3]],Table_PI[[#This Row],[Size]],Table_PI[[#This Row],[Input 1]],Table_PI[[#This Row],[Input 2]],Table_PI[[#This Row],[Input 3]],Table_PI[[#This Row],[Input 4]],'Customer Information'!$AR$12,100,ROW()),\"\"),\"\")","v":""},{"$f":"IF(Table_PI[[#This Row],[Input 1]]<>\"\",Table_PI[[#This Row],[Input 1]],\"\")","v":""},null,{"$f":"IFERROR(IF(AND(MeasureCalc(Table_PI[[#This Row],[Hide:\nFormula Name]],Table_SummaryPI[[#This Row],[Quantity]],Table_PI[[#This Row],[List 1]],Table_PI[[#This Row],[List 2]],Table_PI[[#This Row],[List 3]],Table_PI[[#This Row],[Size]],Table_PI[[#This Row],[Input 1]],Table_PI[[#This Row],[Input 2]],Table_PI[[#This Row],[Input 3]],Table_PI[[#This Row],[Input 4]],'Customer Information'!$AR$12,101,ROW())<>0,MeasureCalc(Table_PI[[#This Row],[Hide:\nFormula Name]],Table_SummaryPI[[#This Row],[Quantity]],Table_PI[[#This Row],[List 1]],Table_PI[[#This Row],[List 2]],Table_PI[[#This Row],[List 3]],Table_PI[[#This Row],[Size]],Table_PI[[#This Row],[Input 1]],Table_PI[[#This Row],[Input 2]],Table_PI[[#This Row],[Input 3]],Table_PI[[#This Row],[Input 4]],'Customer Information'!$AR$12,101,ROW())<>\"No Rebate\"),MeasureCalc(Table_PI[[#This Row],[Hide:\nFormula Name]],Table_SummaryPI[[#This Row],[Quantity]],Table_PI[[#This Row],[List 1]],Table_PI[[#This Row],[List 2]],Table_PI[[#This Row],[List 3]],Table_PI[[#This Row],[Size]],Table_PI[[#This Row],[Input 1]],Table_PI[[#This Row],[Input 2]],Table_PI[[#This Row],[Input 3]],Table_PI[[#This Row],[Input 4]],'Customer Information'!$AR$12,101,ROW()),\"\"),\"\")","v":""},{"$f":"IF(Table_PI[[#This Row],[Input 2]]<>\"\",Table_PI[[#This Row],[Input 2]],\"\")","v":""},null,{"$f":"IFERROR(IF(AND(MeasureCalc(Table_PI[[#This Row],[Hide:\nFormula Name]],Table_SummaryPI[[#This Row],[Quantity]],Table_PI[[#This Row],[List 1]],Table_PI[[#This Row],[List 2]],Table_PI[[#This Row],[List 3]],Table_PI[[#This Row],[Size]],Table_PI[[#This Row],[Input 1]],Table_PI[[#This Row],[Input 2]],Table_PI[[#This Row],[Input 3]],Table_PI[[#This Row],[Input 4]],'Customer Information'!$AR$12,102,ROW())<>0,MeasureCalc(Table_PI[[#This Row],[Hide:\nFormula Name]],Table_SummaryPI[[#This Row],[Quantity]],Table_PI[[#This Row],[List 1]],Table_PI[[#This Row],[List 2]],Table_PI[[#This Row],[List 3]],Table_PI[[#This Row],[Size]],Table_PI[[#This Row],[Input 1]],Table_PI[[#This Row],[Input 2]],Table_PI[[#This Row],[Input 3]],Table_PI[[#This Row],[Input 4]],'Customer Information'!$AR$12,102,ROW())<>\"No Rebate\"),MeasureCalc(Table_PI[[#This Row],[Hide:\nFormula Name]],Table_SummaryPI[[#This Row],[Quantity]],Table_PI[[#This Row],[List 1]],Table_PI[[#This Row],[List 2]],Table_PI[[#This Row],[List 3]],Table_PI[[#This Row],[Size]],Table_PI[[#This Row],[Input 1]],Table_PI[[#This Row],[Input 2]],Table_PI[[#This Row],[Input 3]],Table_PI[[#This Row],[Input 4]],'Customer Information'!$AR$12,102,ROW()),\"\"),\"\")","v":""},{"$f":"IF(Table_PI[[#This Row],[Input 3]]<>\"\",Table_PI[[#This Row],[Input 3]],\"\")","v":""},null,{"$f":"IFERROR(IF(AND(MeasureCalc(Table_PI[[#This Row],[Hide:\nFormula Name]],Table_SummaryPI[[#This Row],[Quantity]],Table_PI[[#This Row],[List 1]],Table_PI[[#This Row],[List 2]],Table_PI[[#This Row],[List 3]],Table_PI[[#This Row],[Size]],Table_PI[[#This Row],[Input 1]],Table_PI[[#This Row],[Input 2]],Table_PI[[#This Row],[Input 3]],Table_PI[[#This Row],[Input 4]],'Customer Information'!$AR$12,103,ROW())<>0,MeasureCalc(Table_PI[[#This Row],[Hide:\nFormula Name]],Table_SummaryPI[[#This Row],[Quantity]],Table_PI[[#This Row],[List 1]],Table_PI[[#This Row],[List 2]],Table_PI[[#This Row],[List 3]],Table_PI[[#This Row],[Size]],Table_PI[[#This Row],[Input 1]],Table_PI[[#This Row],[Input 2]],Table_PI[[#This Row],[Input 3]],Table_PI[[#This Row],[Input 4]],'Customer Information'!$AR$12,103,ROW())<>\"No Rebate\"),MeasureCalc(Table_PI[[#This Row],[Hide:\nFormula Name]],Table_SummaryPI[[#This Row],[Quantity]],Table_PI[[#This Row],[List 1]],Table_PI[[#This Row],[List 2]],Table_PI[[#This Row],[List 3]],Table_PI[[#This Row],[Size]],Table_PI[[#This Row],[Input 1]],Table_PI[[#This Row],[Input 2]],Table_PI[[#This Row],[Input 3]],Table_PI[[#This Row],[Input 4]],'Customer Information'!$AR$12,103,ROW()),\"\"),\"\")","v":""},{"$f":"IF(Table_PI[[#This Row],[Input 4]]<>\"\",Table_PI[[#This Row],[Input 4]],\"\")","v":""},{"$f":"IF(Table_PI[[#This Row],[Quantity]]=\"\",\"\",Table_PI[[#This Row],[Quantity]])","v":""},{"$f":"IF(Table_PI[[#This Row],[Notes]]=\"\",\"\",Table_PI[[#This Row],[Notes]])","v":""},{"$f":"IF(OR(Table_PI[[#This Row],[Hide:\nBaseline kWh]]=\"\",Table_PI[[#This Row],[Hide:\nBaseline kWh]]=0),\"\",Table_PI[[#This Row],[Hide:\nBaseline kWh]])","v":""},{"$f":"IF(OR(Table_PI[[#This Row],[Hide:\nBaseline kW]]=\"\",Table_PI[[#This Row],[Hide:\nBaseline kW]]=0),\"\",Table_PI[[#This Row],[Hide:\nBaseline kW]])","v":""},{"$f":"IF(OR(Table_PI[[#This Row],[Hide:\nProposed kWh]]=\"\",Table_PI[[#This Row],[Hide:\nProposed kWh]]=0),\"\",Table_PI[[#This Row],[Hide:\nProposed kWh]])","v":""},{"$f":"IF(OR(Table_PI[[#This Row],[Hide:\nProposed kW]]=\"\",Table_PI[[#This Row],[Hide:\nProposed kW]]=0),\"\",Table_PI[[#This Row],[Hide:\nProposed kW]])","v":""},{"$f":"IF(OR(Table_PI[[#This Row],[Rebate]]=\"\",Table_PI[[#This Row],[Rebate]]=0),\"\",Table_PI[[#This Row],[Rebate]])","v":""},{"$f":"IF(OR(Table_PI[[#This Row],[Hide:\nIncremental Cost]]=\"\",Table_PI[[#This Row],[Hide:\nIncremental Cost]]=0),\"\",Table_PI[[#This Row],[Hide:\nIncremental Cost]])","v":""},{"$f":"IFERROR(IF(Table_SummaryPI[[#This Row],[kWhSavings]]=\"\",\"\",ROUND(Table_SummaryPI[[#This Row],[kWhSavings]]/$AG$401*'Customer Information'!$BC$17,2)),0)","v":""},{"$f":"IF(OR(Table_PI[[#This Row],[Annual kWh]]=\"\",Table_PI[[#This Row],[Annual kWh]]=0),\"\",Table_PI[[#This Row],[Annual kWh]])","v":""},{"$f":"IF(OR(Table_PI[[#This Row],[Peak kW]]=\"\",Table_PI[[#This Row],[Peak kW]]=0),\"\",Table_PI[[#This Row],[Peak kW]])","v":""},{"$f":"IFERROR(IF(Table_SummaryPI[[#This Row],[kWhSavings]]=\"\",\"\",$AU$9*Table_SummaryPI[[#This Row],[kWhSavings]]),0)","v":""},{"$f":"IFERROR(IF(Table_SummaryPI[[#This Row],[kWhSavings]]=\"\",\"\",$AU$14*Table_SummaryPI[[#This Row],[kWhSavings]]),0)","v":""},{"$f":"IFERROR(IF(Table_SummaryPI[[#This Row],[kWhSavings]]=\"\",\"\",$AU$18*Table_SummaryPI[[#This Row],[kWhSavings]]),0)","v":""},{"$f":"IFERROR(IF(Table_SummaryPI[[#This Row],[kWhSavings]]=\"\",\"\",$AU$22*Table_SummaryPI[[#This Row],[kWhSavings]]),0)","v":""},{"$f":"IFERROR(IF(MeasureCalc(Table_PI[[#This Row],[Hide:\nFormula Name]],Table_SummaryPI[[#This Row],[Quantity]],Table_PI[[#This Row],[List 1]],Table_PI[[#This Row],[List 2]],Table_PI[[#This Row],[List 3]],Table_PI[[#This Row],[Size]],Table_PI[[#This Row],[Input 1]],Table_PI[[#This Row],[Input 2]],Table_PI[[#This Row],[Input 3]],Table_PI[[#This Row],[Input 4]],'Customer Information'!$AR$12,200,ROW())<>\"No Rebate\",MeasureCalc(Table_PI[[#This Row],[Hide:\nFormula Name]],Table_SummaryPI[[#This Row],[Quantity]],Table_PI[[#This Row],[List 1]],Table_PI[[#This Row],[List 2]],Table_PI[[#This Row],[List 3]],Table_PI[[#This Row],[Size]],Table_PI[[#This Row],[Input 1]],Table_PI[[#This Row],[Input 2]],Table_PI[[#This Row],[Input 3]],Table_PI[[#This Row],[Input 4]],'Customer Information'!$AR$12,200,ROW()),\"\"),\"\")","v":""},{"$f":"IFERROR(IF(MeasureCalc(Table_PI[[#This Row],[Hide:\nFormula Name]],Table_SummaryPI[[#This Row],[Quantity]],Table_PI[[#This Row],[List 1]],Table_PI[[#This Row],[List 2]],Table_PI[[#This Row],[List 3]],Table_PI[[#This Row],[Size]],Table_PI[[#This Row],[Input 1]],Table_PI[[#This Row],[Input 2]],Table_PI[[#This Row],[Input 3]],Table_PI[[#This Row],[Input 4]],'Customer Information'!$AR$12,201,ROW())<>\"No Rebate\",MeasureCalc(Table_PI[[#This Row],[Hide:\nFormula Name]],Table_SummaryPI[[#This Row],[Quantity]],Table_PI[[#This Row],[List 1]],Table_PI[[#This Row],[List 2]],Table_PI[[#This Row],[List 3]],Table_PI[[#This Row],[Size]],Table_PI[[#This Row],[Input 1]],Table_PI[[#This Row],[Input 2]],Table_PI[[#This Row],[Input 3]],Table_PI[[#This Row],[Input 4]],'Customer Information'!$AR$12,201,ROW()),\"\"),\"\")","v":""}]
[{"$f":"Table_PI[[#This Row],[Line No.]]","v":""},{"$f":"IF(Table_SummaryPI[[#This Row],[MeassureCategory]]<>\"\",CONCATENATE(Table_SummaryPI[[#This Row],[MeassureCategory]],  \" - \", Table_SummaryPI[[#This Row],[ProposedMeasureCategory]],  \" - \", TEXT(Table_SummaryPI[[#This Row],[Size]],\"#,##0.00\"),\" \",Table_SummaryPI[[#This Row],[SizeUnit]]),\"\")","v":""},{"$f":"SUBSTITUTE(Table_PI[[#This Row],[Measure]],\"     \",\"\",1)","v":""},{"$f":"IF(Table_PI[[#This Row],[List 1]]<>\"\",Table_PI[[#This Row],[List 1]],\"\")","v":""},{"$f":"IF(Table_PI[[#This Row],[List 2]]<>\"\",Table_PI[[#This Row],[List 2]],\"\")","v":""},{"$f":"IF(Table_PI[[#This Row],[List 3]]<>\"\",Table_PI[[#This Row],[List 3]],\"\")","v":""},{"$f":"IF(Table_PI[[#This Row],[Manufacturer]]=\"\",\"\",Table_PI[[#This Row],[Manufacturer]])","v":""},{"$f":"IF(Table_PI[[#This Row],[Model Number]]=\"\",\"\",Table_PI[[#This Row],[Model Number]])","v":""},{"$f":"IF(Table_PI[[#This Row],[Serial Number(s)]]=\"\",\"\",Table_PI[[#This Row],[Serial Number(s)]])","v":""},null,{"$f":"IF(Table_PI[[#This Row],[Size]]=\"\",\"\",Table_PI[[#This Row],[Size]])","v":""},null,{"$f":"IFERROR(IF(AND(MeasureCalc(Table_PI[[#This Row],[Hide:\nFormula Name]],Table_SummaryPI[[#This Row],[Quantity]],Table_PI[[#This Row],[List 1]],Table_PI[[#This Row],[List 2]],Table_PI[[#This Row],[List 3]],Table_PI[[#This Row],[Size]],Table_PI[[#This Row],[Input 1]],Table_PI[[#This Row],[Input 2]],Table_PI[[#This Row],[Input 3]],Table_PI[[#This Row],[Input 4]],'Customer Information'!$AR$12,100,ROW())<>0,MeasureCalc(Table_PI[[#This Row],[Hide:\nFormula Name]],Table_SummaryPI[[#This Row],[Quantity]],Table_PI[[#This Row],[List 1]],Table_PI[[#This Row],[List 2]],Table_PI[[#This Row],[List 3]],Table_PI[[#This Row],[Size]],Table_PI[[#This Row],[Input 1]],Table_PI[[#This Row],[Input 2]],Table_PI[[#This Row],[Input 3]],Table_PI[[#This Row],[Input 4]],'Customer Information'!$AR$12,100,ROW())<>\"No Rebate\"),MeasureCalc(Table_PI[[#This Row],[Hide:\nFormula Name]],Table_SummaryPI[[#This Row],[Quantity]],Table_PI[[#This Row],[List 1]],Table_PI[[#This Row],[List 2]],Table_PI[[#This Row],[List 3]],Table_PI[[#This Row],[Size]],Table_PI[[#This Row],[Input 1]],Table_PI[[#This Row],[Input 2]],Table_PI[[#This Row],[Input 3]],Table_PI[[#This Row],[Input 4]],'Customer Information'!$AR$12,100,ROW()),\"\"),\"\")","v":""},{"$f":"IF(Table_PI[[#This Row],[Input 1]]<>\"\",Table_PI[[#This Row],[Input 1]],\"\")","v":""},null,{"$f":"IFERROR(IF(AND(MeasureCalc(Table_PI[[#This Row],[Hide:\nFormula Name]],Table_SummaryPI[[#This Row],[Quantity]],Table_PI[[#This Row],[List 1]],Table_PI[[#This Row],[List 2]],Table_PI[[#This Row],[List 3]],Table_PI[[#This Row],[Size]],Table_PI[[#This Row],[Input 1]],Table_PI[[#This Row],[Input 2]],Table_PI[[#This Row],[Input 3]],Table_PI[[#This Row],[Input 4]],'Customer Information'!$AR$12,101,ROW())<>0,MeasureCalc(Table_PI[[#This Row],[Hide:\nFormula Name]],Table_SummaryPI[[#This Row],[Quantity]],Table_PI[[#This Row],[List 1]],Table_PI[[#This Row],[List 2]],Table_PI[[#This Row],[List 3]],Table_PI[[#This Row],[Size]],Table_PI[[#This Row],[Input 1]],Table_PI[[#This Row],[Input 2]],Table_PI[[#This Row],[Input 3]],Table_PI[[#This Row],[Input 4]],'Customer Information'!$AR$12,101,ROW())<>\"No Rebate\"),MeasureCalc(Table_PI[[#This Row],[Hide:\nFormula Name]],Table_SummaryPI[[#This Row],[Quantity]],Table_PI[[#This Row],[List 1]],Table_PI[[#This Row],[List 2]],Table_PI[[#This Row],[List 3]],Table_PI[[#This Row],[Size]],Table_PI[[#This Row],[Input 1]],Table_PI[[#This Row],[Input 2]],Table_PI[[#This Row],[Input 3]],Table_PI[[#This Row],[Input 4]],'Customer Information'!$AR$12,101,ROW()),\"\"),\"\")","v":""},{"$f":"IF(Table_PI[[#This Row],[Input 2]]<>\"\",Table_PI[[#This Row],[Input 2]],\"\")","v":""},null,{"$f":"IFERROR(IF(AND(MeasureCalc(Table_PI[[#This Row],[Hide:\nFormula Name]],Table_SummaryPI[[#This Row],[Quantity]],Table_PI[[#This Row],[List 1]],Table_PI[[#This Row],[List 2]],Table_PI[[#This Row],[List 3]],Table_PI[[#This Row],[Size]],Table_PI[[#This Row],[Input 1]],Table_PI[[#This Row],[Input 2]],Table_PI[[#This Row],[Input 3]],Table_PI[[#This Row],[Input 4]],'Customer Information'!$AR$12,102,ROW())<>0,MeasureCalc(Table_PI[[#This Row],[Hide:\nFormula Name]],Table_SummaryPI[[#This Row],[Quantity]],Table_PI[[#This Row],[List 1]],Table_PI[[#This Row],[List 2]],Table_PI[[#This Row],[List 3]],Table_PI[[#This Row],[Size]],Table_PI[[#This Row],[Input 1]],Table_PI[[#This Row],[Input 2]],Table_PI[[#This Row],[Input 3]],Table_PI[[#This Row],[Input 4]],'Customer Information'!$AR$12,102,ROW())<>\"No Rebate\"),MeasureCalc(Table_PI[[#This Row],[Hide:\nFormula Name]],Table_SummaryPI[[#This Row],[Quantity]],Table_PI[[#This Row],[List 1]],Table_PI[[#This Row],[List 2]],Table_PI[[#This Row],[List 3]],Table_PI[[#This Row],[Size]],Table_PI[[#This Row],[Input 1]],Table_PI[[#This Row],[Input 2]],Table_PI[[#This Row],[Input 3]],Table_PI[[#This Row],[Input 4]],'Customer Information'!$AR$12,102,ROW()),\"\"),\"\")","v":""},{"$f":"IF(Table_PI[[#This Row],[Input 3]]<>\"\",Table_PI[[#This Row],[Input 3]],\"\")","v":""},null,{"$f":"IFERROR(IF(AND(MeasureCalc(Table_PI[[#This Row],[Hide:\nFormula Name]],Table_SummaryPI[[#This Row],[Quantity]],Table_PI[[#This Row],[List 1]],Table_PI[[#This Row],[List 2]],Table_PI[[#This Row],[List 3]],Table_PI[[#This Row],[Size]],Table_PI[[#This Row],[Input 1]],Table_PI[[#This Row],[Input 2]],Table_PI[[#This Row],[Input 3]],Table_PI[[#This Row],[Input 4]],'Customer Information'!$AR$12,103,ROW())<>0,MeasureCalc(Table_PI[[#This Row],[Hide:\nFormula Name]],Table_SummaryPI[[#This Row],[Quantity]],Table_PI[[#This Row],[List 1]],Table_PI[[#This Row],[List 2]],Table_PI[[#This Row],[List 3]],Table_PI[[#This Row],[Size]],Table_PI[[#This Row],[Input 1]],Table_PI[[#This Row],[Input 2]],Table_PI[[#This Row],[Input 3]],Table_PI[[#This Row],[Input 4]],'Customer Information'!$AR$12,103,ROW())<>\"No Rebate\"),MeasureCalc(Table_PI[[#This Row],[Hide:\nFormula Name]],Table_SummaryPI[[#This Row],[Quantity]],Table_PI[[#This Row],[List 1]],Table_PI[[#This Row],[List 2]],Table_PI[[#This Row],[List 3]],Table_PI[[#This Row],[Size]],Table_PI[[#This Row],[Input 1]],Table_PI[[#This Row],[Input 2]],Table_PI[[#This Row],[Input 3]],Table_PI[[#This Row],[Input 4]],'Customer Information'!$AR$12,103,ROW()),\"\"),\"\")","v":""},{"$f":"IF(Table_PI[[#This Row],[Input 4]]<>\"\",Table_PI[[#This Row],[Input 4]],\"\")","v":""},{"$f":"IF(Table_PI[[#This Row],[Quantity]]=\"\",\"\",Table_PI[[#This Row],[Quantity]])","v":""},{"$f":"IF(Table_PI[[#This Row],[Notes]]=\"\",\"\",Table_PI[[#This Row],[Notes]])","v":""},{"$f":"IF(OR(Table_PI[[#This Row],[Hide:\nBaseline kWh]]=\"\",Table_PI[[#This Row],[Hide:\nBaseline kWh]]=0),\"\",Table_PI[[#This Row],[Hide:\nBaseline kWh]])","v":""},{"$f":"IF(OR(Table_PI[[#This Row],[Hide:\nBaseline kW]]=\"\",Table_PI[[#This Row],[Hide:\nBaseline kW]]=0),\"\",Table_PI[[#This Row],[Hide:\nBaseline kW]])","v":""},{"$f":"IF(OR(Table_PI[[#This Row],[Hide:\nProposed kWh]]=\"\",Table_PI[[#This Row],[Hide:\nProposed kWh]]=0),\"\",Table_PI[[#This Row],[Hide:\nProposed kWh]])","v":""},{"$f":"IF(OR(Table_PI[[#This Row],[Hide:\nProposed kW]]=\"\",Table_PI[[#This Row],[Hide:\nProposed kW]]=0),\"\",Table_PI[[#This Row],[Hide:\nProposed kW]])","v":""},{"$f":"IF(OR(Table_PI[[#This Row],[Rebate]]=\"\",Table_PI[[#This Row],[Rebate]]=0),\"\",Table_PI[[#This Row],[Rebate]])","v":""},{"$f":"IF(OR(Table_PI[[#This Row],[Hide:\nIncremental Cost]]=\"\",Table_PI[[#This Row],[Hide:\nIncremental Cost]]=0),\"\",Table_PI[[#This Row],[Hide:\nIncremental Cost]])","v":""},{"$f":"IFERROR(IF(Table_SummaryPI[[#This Row],[kWhSavings]]=\"\",\"\",ROUND(Table_SummaryPI[[#This Row],[kWhSavings]]/$AG$401*'Customer Information'!$BC$17,2)),0)","v":""},{"$f":"IF(OR(Table_PI[[#This Row],[Annual kWh]]=\"\",Table_PI[[#This Row],[Annual kWh]]=0),\"\",Table_PI[[#This Row],[Annual kWh]])","v":""},{"$f":"IF(OR(Table_PI[[#This Row],[Peak kW]]=\"\",Table_PI[[#This Row],[Peak kW]]=0),\"\",Table_PI[[#This Row],[Peak kW]])","v":""},{"$f":"IFERROR(IF(Table_SummaryPI[[#This Row],[kWhSavings]]=\"\",\"\",$AU$9*Table_SummaryPI[[#This Row],[kWhSavings]]),0)","v":""},{"$f":"IFERROR(IF(Table_SummaryPI[[#This Row],[kWhSavings]]=\"\",\"\",$AU$14*Table_SummaryPI[[#This Row],[kWhSavings]]),0)","v":""},{"$f":"IFERROR(IF(Table_SummaryPI[[#This Row],[kWhSavings]]=\"\",\"\",$AU$18*Table_SummaryPI[[#This Row],[kWhSavings]]),0)","v":""},{"$f":"IFERROR(IF(Table_SummaryPI[[#This Row],[kWhSavings]]=\"\",\"\",$AU$22*Table_SummaryPI[[#This Row],[kWhSavings]]),0)","v":""},{"$f":"IFERROR(IF(MeasureCalc(Table_PI[[#This Row],[Hide:\nFormula Name]],Table_SummaryPI[[#This Row],[Quantity]],Table_PI[[#This Row],[List 1]],Table_PI[[#This Row],[List 2]],Table_PI[[#This Row],[List 3]],Table_PI[[#This Row],[Size]],Table_PI[[#This Row],[Input 1]],Table_PI[[#This Row],[Input 2]],Table_PI[[#This Row],[Input 3]],Table_PI[[#This Row],[Input 4]],'Customer Information'!$AR$12,200,ROW())<>\"No Rebate\",MeasureCalc(Table_PI[[#This Row],[Hide:\nFormula Name]],Table_SummaryPI[[#This Row],[Quantity]],Table_PI[[#This Row],[List 1]],Table_PI[[#This Row],[List 2]],Table_PI[[#This Row],[List 3]],Table_PI[[#This Row],[Size]],Table_PI[[#This Row],[Input 1]],Table_PI[[#This Row],[Input 2]],Table_PI[[#This Row],[Input 3]],Table_PI[[#This Row],[Input 4]],'Customer Information'!$AR$12,200,ROW()),\"\"),\"\")","v":""},{"$f":"IFERROR(IF(MeasureCalc(Table_PI[[#This Row],[Hide:\nFormula Name]],Table_SummaryPI[[#This Row],[Quantity]],Table_PI[[#This Row],[List 1]],Table_PI[[#This Row],[List 2]],Table_PI[[#This Row],[List 3]],Table_PI[[#This Row],[Size]],Table_PI[[#This Row],[Input 1]],Table_PI[[#This Row],[Input 2]],Table_PI[[#This Row],[Input 3]],Table_PI[[#This Row],[Input 4]],'Customer Information'!$AR$12,201,ROW())<>\"No Rebate\",MeasureCalc(Table_PI[[#This Row],[Hide:\nFormula Name]],Table_SummaryPI[[#This Row],[Quantity]],Table_PI[[#This Row],[List 1]],Table_PI[[#This Row],[List 2]],Table_PI[[#This Row],[List 3]],Table_PI[[#This Row],[Size]],Table_PI[[#This Row],[Input 1]],Table_PI[[#This Row],[Input 2]],Table_PI[[#This Row],[Input 3]],Table_PI[[#This Row],[Input 4]],'Customer Information'!$AR$12,201,ROW()),\"\"),\"\")","v":""}]
[{"$f":"Table_PI[[#This Row],[Line No.]]","v":""},{"$f":"IF(Table_SummaryPI[[#This Row],[MeassureCategory]]<>\"\",CONCATENATE(Table_SummaryPI[[#This Row],[MeassureCategory]],  \" - \", Table_SummaryPI[[#This Row],[ProposedMeasureCategory]],  \" - \", TEXT(Table_SummaryPI[[#This Row],[Size]],\"#,##0.00\"),\" \",Table_SummaryPI[[#This Row],[SizeUnit]]),\"\")","v":""},{"$f":"SUBSTITUTE(Table_PI[[#This Row],[Measure]],\"     \",\"\",1)","v":""},{"$f":"IF(Table_PI[[#This Row],[List 1]]<>\"\",Table_PI[[#This Row],[List 1]],\"\")","v":""},{"$f":"IF(Table_PI[[#This Row],[List 2]]<>\"\",Table_PI[[#This Row],[List 2]],\"\")","v":""},{"$f":"IF(Table_PI[[#This Row],[List 3]]<>\"\",Table_PI[[#This Row],[List 3]],\"\")","v":""},{"$f":"IF(Table_PI[[#This Row],[Manufacturer]]=\"\",\"\",Table_PI[[#This Row],[Manufacturer]])","v":""},{"$f":"IF(Table_PI[[#This Row],[Model Number]]=\"\",\"\",Table_PI[[#This Row],[Model Number]])","v":""},{"$f":"IF(Table_PI[[#This Row],[Serial Number(s)]]=\"\",\"\",Table_PI[[#This Row],[Serial Number(s)]])","v":""},null,{"$f":"IF(Table_PI[[#This Row],[Size]]=\"\",\"\",Table_PI[[#This Row],[Size]])","v":""},null,{"$f":"IFERROR(IF(AND(MeasureCalc(Table_PI[[#This Row],[Hide:\nFormula Name]],Table_SummaryPI[[#This Row],[Quantity]],Table_PI[[#This Row],[List 1]],Table_PI[[#This Row],[List 2]],Table_PI[[#This Row],[List 3]],Table_PI[[#This Row],[Size]],Table_PI[[#This Row],[Input 1]],Table_PI[[#This Row],[Input 2]],Table_PI[[#This Row],[Input 3]],Table_PI[[#This Row],[Input 4]],'Customer Information'!$AR$12,100,ROW())<>0,MeasureCalc(Table_PI[[#This Row],[Hide:\nFormula Name]],Table_SummaryPI[[#This Row],[Quantity]],Table_PI[[#This Row],[List 1]],Table_PI[[#This Row],[List 2]],Table_PI[[#This Row],[List 3]],Table_PI[[#This Row],[Size]],Table_PI[[#This Row],[Input 1]],Table_PI[[#This Row],[Input 2]],Table_PI[[#This Row],[Input 3]],Table_PI[[#This Row],[Input 4]],'Customer Information'!$AR$12,100,ROW())<>\"No Rebate\"),MeasureCalc(Table_PI[[#This Row],[Hide:\nFormula Name]],Table_SummaryPI[[#This Row],[Quantity]],Table_PI[[#This Row],[List 1]],Table_PI[[#This Row],[List 2]],Table_PI[[#This Row],[List 3]],Table_PI[[#This Row],[Size]],Table_PI[[#This Row],[Input 1]],Table_PI[[#This Row],[Input 2]],Table_PI[[#This Row],[Input 3]],Table_PI[[#This Row],[Input 4]],'Customer Information'!$AR$12,100,ROW()),\"\"),\"\")","v":""},{"$f":"IF(Table_PI[[#This Row],[Input 1]]<>\"\",Table_PI[[#This Row],[Input 1]],\"\")","v":""},null,{"$f":"IFERROR(IF(AND(MeasureCalc(Table_PI[[#This Row],[Hide:\nFormula Name]],Table_SummaryPI[[#This Row],[Quantity]],Table_PI[[#This Row],[List 1]],Table_PI[[#This Row],[List 2]],Table_PI[[#This Row],[List 3]],Table_PI[[#This Row],[Size]],Table_PI[[#This Row],[Input 1]],Table_PI[[#This Row],[Input 2]],Table_PI[[#This Row],[Input 3]],Table_PI[[#This Row],[Input 4]],'Customer Information'!$AR$12,101,ROW())<>0,MeasureCalc(Table_PI[[#This Row],[Hide:\nFormula Name]],Table_SummaryPI[[#This Row],[Quantity]],Table_PI[[#This Row],[List 1]],Table_PI[[#This Row],[List 2]],Table_PI[[#This Row],[List 3]],Table_PI[[#This Row],[Size]],Table_PI[[#This Row],[Input 1]],Table_PI[[#This Row],[Input 2]],Table_PI[[#This Row],[Input 3]],Table_PI[[#This Row],[Input 4]],'Customer Information'!$AR$12,101,ROW())<>\"No Rebate\"),MeasureCalc(Table_PI[[#This Row],[Hide:\nFormula Name]],Table_SummaryPI[[#This Row],[Quantity]],Table_PI[[#This Row],[List 1]],Table_PI[[#This Row],[List 2]],Table_PI[[#This Row],[List 3]],Table_PI[[#This Row],[Size]],Table_PI[[#This Row],[Input 1]],Table_PI[[#This Row],[Input 2]],Table_PI[[#This Row],[Input 3]],Table_PI[[#This Row],[Input 4]],'Customer Information'!$AR$12,101,ROW()),\"\"),\"\")","v":""},{"$f":"IF(Table_PI[[#This Row],[Input 2]]<>\"\",Table_PI[[#This Row],[Input 2]],\"\")","v":""},null,{"$f":"IFERROR(IF(AND(MeasureCalc(Table_PI[[#This Row],[Hide:\nFormula Name]],Table_SummaryPI[[#This Row],[Quantity]],Table_PI[[#This Row],[List 1]],Table_PI[[#This Row],[List 2]],Table_PI[[#This Row],[List 3]],Table_PI[[#This Row],[Size]],Table_PI[[#This Row],[Input 1]],Table_PI[[#This Row],[Input 2]],Table_PI[[#This Row],[Input 3]],Table_PI[[#This Row],[Input 4]],'Customer Information'!$AR$12,102,ROW())<>0,MeasureCalc(Table_PI[[#This Row],[Hide:\nFormula Name]],Table_SummaryPI[[#This Row],[Quantity]],Table_PI[[#This Row],[List 1]],Table_PI[[#This Row],[List 2]],Table_PI[[#This Row],[List 3]],Table_PI[[#This Row],[Size]],Table_PI[[#This Row],[Input 1]],Table_PI[[#This Row],[Input 2]],Table_PI[[#This Row],[Input 3]],Table_PI[[#This Row],[Input 4]],'Customer Information'!$AR$12,102,ROW())<>\"No Rebate\"),MeasureCalc(Table_PI[[#This Row],[Hide:\nFormula Name]],Table_SummaryPI[[#This Row],[Quantity]],Table_PI[[#This Row],[List 1]],Table_PI[[#This Row],[List 2]],Table_PI[[#This Row],[List 3]],Table_PI[[#This Row],[Size]],Table_PI[[#This Row],[Input 1]],Table_PI[[#This Row],[Input 2]],Table_PI[[#This Row],[Input 3]],Table_PI[[#This Row],[Input 4]],'Customer Information'!$AR$12,102,ROW()),\"\"),\"\")","v":""},{"$f":"IF(Table_PI[[#This Row],[Input 3]]<>\"\",Table_PI[[#This Row],[Input 3]],\"\")","v":""},null,{"$f":"IFERROR(IF(AND(MeasureCalc(Table_PI[[#This Row],[Hide:\nFormula Name]],Table_SummaryPI[[#This Row],[Quantity]],Table_PI[[#This Row],[List 1]],Table_PI[[#This Row],[List 2]],Table_PI[[#This Row],[List 3]],Table_PI[[#This Row],[Size]],Table_PI[[#This Row],[Input 1]],Table_PI[[#This Row],[Input 2]],Table_PI[[#This Row],[Input 3]],Table_PI[[#This Row],[Input 4]],'Customer Information'!$AR$12,103,ROW())<>0,MeasureCalc(Table_PI[[#This Row],[Hide:\nFormula Name]],Table_SummaryPI[[#This Row],[Quantity]],Table_PI[[#This Row],[List 1]],Table_PI[[#This Row],[List 2]],Table_PI[[#This Row],[List 3]],Table_PI[[#This Row],[Size]],Table_PI[[#This Row],[Input 1]],Table_PI[[#This Row],[Input 2]],Table_PI[[#This Row],[Input 3]],Table_PI[[#This Row],[Input 4]],'Customer Information'!$AR$12,103,ROW())<>\"No Rebate\"),MeasureCalc(Table_PI[[#This Row],[Hide:\nFormula Name]],Table_SummaryPI[[#This Row],[Quantity]],Table_PI[[#This Row],[List 1]],Table_PI[[#This Row],[List 2]],Table_PI[[#This Row],[List 3]],Table_PI[[#This Row],[Size]],Table_PI[[#This Row],[Input 1]],Table_PI[[#This Row],[Input 2]],Table_PI[[#This Row],[Input 3]],Table_PI[[#This Row],[Input 4]],'Customer Information'!$AR$12,103,ROW()),\"\"),\"\")","v":""},{"$f":"IF(Table_PI[[#This Row],[Input 4]]<>\"\",Table_PI[[#This Row],[Input 4]],\"\")","v":""},{"$f":"IF(Table_PI[[#This Row],[Quantity]]=\"\",\"\",Table_PI[[#This Row],[Quantity]])","v":""},{"$f":"IF(Table_PI[[#This Row],[Notes]]=\"\",\"\",Table_PI[[#This Row],[Notes]])","v":""},{"$f":"IF(OR(Table_PI[[#This Row],[Hide:\nBaseline kWh]]=\"\",Table_PI[[#This Row],[Hide:\nBaseline kWh]]=0),\"\",Table_PI[[#This Row],[Hide:\nBaseline kWh]])","v":""},{"$f":"IF(OR(Table_PI[[#This Row],[Hide:\nBaseline kW]]=\"\",Table_PI[[#This Row],[Hide:\nBaseline kW]]=0),\"\",Table_PI[[#This Row],[Hide:\nBaseline kW]])","v":""},{"$f":"IF(OR(Table_PI[[#This Row],[Hide:\nProposed kWh]]=\"\",Table_PI[[#This Row],[Hide:\nProposed kWh]]=0),\"\",Table_PI[[#This Row],[Hide:\nProposed kWh]])","v":""},{"$f":"IF(OR(Table_PI[[#This Row],[Hide:\nProposed kW]]=\"\",Table_PI[[#This Row],[Hide:\nProposed kW]]=0),\"\",Table_PI[[#This Row],[Hide:\nProposed kW]])","v":""},{"$f":"IF(OR(Table_PI[[#This Row],[Rebate]]=\"\",Table_PI[[#This Row],[Rebate]]=0),\"\",Table_PI[[#This Row],[Rebate]])","v":""},{"$f":"IF(OR(Table_PI[[#This Row],[Hide:\nIncremental Cost]]=\"\",Table_PI[[#This Row],[Hide:\nIncremental Cost]]=0),\"\",Table_PI[[#This Row],[Hide:\nIncremental Cost]])","v":""},{"$f":"IFERROR(IF(Table_SummaryPI[[#This Row],[kWhSavings]]=\"\",\"\",ROUND(Table_SummaryPI[[#This Row],[kWhSavings]]/$AG$401*'Customer Information'!$BC$17,2)),0)","v":""},{"$f":"IF(OR(Table_PI[[#This Row],[Annual kWh]]=\"\",Table_PI[[#This Row],[Annual kWh]]=0),\"\",Table_PI[[#This Row],[Annual kWh]])","v":""},{"$f":"IF(OR(Table_PI[[#This Row],[Peak kW]]=\"\",Table_PI[[#This Row],[Peak kW]]=0),\"\",Table_PI[[#This Row],[Peak kW]])","v":""},{"$f":"IFERROR(IF(Table_SummaryPI[[#This Row],[kWhSavings]]=\"\",\"\",$AU$9*Table_SummaryPI[[#This Row],[kWhSavings]]),0)","v":""},{"$f":"IFERROR(IF(Table_SummaryPI[[#This Row],[kWhSavings]]=\"\",\"\",$AU$14*Table_SummaryPI[[#This Row],[kWhSavings]]),0)","v":""},{"$f":"IFERROR(IF(Table_SummaryPI[[#This Row],[kWhSavings]]=\"\",\"\",$AU$18*Table_SummaryPI[[#This Row],[kWhSavings]]),0)","v":""},{"$f":"IFERROR(IF(Table_SummaryPI[[#This Row],[kWhSavings]]=\"\",\"\",$AU$22*Table_SummaryPI[[#This Row],[kWhSavings]]),0)","v":""},{"$f":"IFERROR(IF(MeasureCalc(Table_PI[[#This Row],[Hide:\nFormula Name]],Table_SummaryPI[[#This Row],[Quantity]],Table_PI[[#This Row],[List 1]],Table_PI[[#This Row],[List 2]],Table_PI[[#This Row],[List 3]],Table_PI[[#This Row],[Size]],Table_PI[[#This Row],[Input 1]],Table_PI[[#This Row],[Input 2]],Table_PI[[#This Row],[Input 3]],Table_PI[[#This Row],[Input 4]],'Customer Information'!$AR$12,200,ROW())<>\"No Rebate\",MeasureCalc(Table_PI[[#This Row],[Hide:\nFormula Name]],Table_SummaryPI[[#This Row],[Quantity]],Table_PI[[#This Row],[List 1]],Table_PI[[#This Row],[List 2]],Table_PI[[#This Row],[List 3]],Table_PI[[#This Row],[Size]],Table_PI[[#This Row],[Input 1]],Table_PI[[#This Row],[Input 2]],Table_PI[[#This Row],[Input 3]],Table_PI[[#This Row],[Input 4]],'Customer Information'!$AR$12,200,ROW()),\"\"),\"\")","v":""},{"$f":"IFERROR(IF(MeasureCalc(Table_PI[[#This Row],[Hide:\nFormula Name]],Table_SummaryPI[[#This Row],[Quantity]],Table_PI[[#This Row],[List 1]],Table_PI[[#This Row],[List 2]],Table_PI[[#This Row],[List 3]],Table_PI[[#This Row],[Size]],Table_PI[[#This Row],[Input 1]],Table_PI[[#This Row],[Input 2]],Table_PI[[#This Row],[Input 3]],Table_PI[[#This Row],[Input 4]],'Customer Information'!$AR$12,201,ROW())<>\"No Rebate\",MeasureCalc(Table_PI[[#This Row],[Hide:\nFormula Name]],Table_SummaryPI[[#This Row],[Quantity]],Table_PI[[#This Row],[List 1]],Table_PI[[#This Row],[List 2]],Table_PI[[#This Row],[List 3]],Table_PI[[#This Row],[Size]],Table_PI[[#This Row],[Input 1]],Table_PI[[#This Row],[Input 2]],Table_PI[[#This Row],[Input 3]],Table_PI[[#This Row],[Input 4]],'Customer Information'!$AR$12,201,ROW()),\"\"),\"\")","v":""}]
[{"$f":"Table_PI[[#This Row],[Line No.]]","v":""},{"$f":"IF(Table_SummaryPI[[#This Row],[MeassureCategory]]<>\"\",CONCATENATE(Table_SummaryPI[[#This Row],[MeassureCategory]],  \" - \", Table_SummaryPI[[#This Row],[ProposedMeasureCategory]],  \" - \", TEXT(Table_SummaryPI[[#This Row],[Size]],\"#,##0.00\"),\" \",Table_SummaryPI[[#This Row],[SizeUnit]]),\"\")","v":""},{"$f":"SUBSTITUTE(Table_PI[[#This Row],[Measure]],\"     \",\"\",1)","v":""},{"$f":"IF(Table_PI[[#This Row],[List 1]]<>\"\",Table_PI[[#This Row],[List 1]],\"\")","v":""},{"$f":"IF(Table_PI[[#This Row],[List 2]]<>\"\",Table_PI[[#This Row],[List 2]],\"\")","v":""},{"$f":"IF(Table_PI[[#This Row],[List 3]]<>\"\",Table_PI[[#This Row],[List 3]],\"\")","v":""},{"$f":"IF(Table_PI[[#This Row],[Manufacturer]]=\"\",\"\",Table_PI[[#This Row],[Manufacturer]])","v":""},{"$f":"IF(Table_PI[[#This Row],[Model Number]]=\"\",\"\",Table_PI[[#This Row],[Model Number]])","v":""},{"$f":"IF(Table_PI[[#This Row],[Serial Number(s)]]=\"\",\"\",Table_PI[[#This Row],[Serial Number(s)]])","v":""},null,{"$f":"IF(Table_PI[[#This Row],[Size]]=\"\",\"\",Table_PI[[#This Row],[Size]])","v":""},null,{"$f":"IFERROR(IF(AND(MeasureCalc(Table_PI[[#This Row],[Hide:\nFormula Name]],Table_SummaryPI[[#This Row],[Quantity]],Table_PI[[#This Row],[List 1]],Table_PI[[#This Row],[List 2]],Table_PI[[#This Row],[List 3]],Table_PI[[#This Row],[Size]],Table_PI[[#This Row],[Input 1]],Table_PI[[#This Row],[Input 2]],Table_PI[[#This Row],[Input 3]],Table_PI[[#This Row],[Input 4]],'Customer Information'!$AR$12,100,ROW())<>0,MeasureCalc(Table_PI[[#This Row],[Hide:\nFormula Name]],Table_SummaryPI[[#This Row],[Quantity]],Table_PI[[#This Row],[List 1]],Table_PI[[#This Row],[List 2]],Table_PI[[#This Row],[List 3]],Table_PI[[#This Row],[Size]],Table_PI[[#This Row],[Input 1]],Table_PI[[#This Row],[Input 2]],Table_PI[[#This Row],[Input 3]],Table_PI[[#This Row],[Input 4]],'Customer Information'!$AR$12,100,ROW())<>\"No Rebate\"),MeasureCalc(Table_PI[[#This Row],[Hide:\nFormula Name]],Table_SummaryPI[[#This Row],[Quantity]],Table_PI[[#This Row],[List 1]],Table_PI[[#This Row],[List 2]],Table_PI[[#This Row],[List 3]],Table_PI[[#This Row],[Size]],Table_PI[[#This Row],[Input 1]],Table_PI[[#This Row],[Input 2]],Table_PI[[#This Row],[Input 3]],Table_PI[[#This Row],[Input 4]],'Customer Information'!$AR$12,100,ROW()),\"\"),\"\")","v":""},{"$f":"IF(Table_PI[[#This Row],[Input 1]]<>\"\",Table_PI[[#This Row],[Input 1]],\"\")","v":""},null,{"$f":"IFERROR(IF(AND(MeasureCalc(Table_PI[[#This Row],[Hide:\nFormula Name]],Table_SummaryPI[[#This Row],[Quantity]],Table_PI[[#This Row],[List 1]],Table_PI[[#This Row],[List 2]],Table_PI[[#This Row],[List 3]],Table_PI[[#This Row],[Size]],Table_PI[[#This Row],[Input 1]],Table_PI[[#This Row],[Input 2]],Table_PI[[#This Row],[Input 3]],Table_PI[[#This Row],[Input 4]],'Customer Information'!$AR$12,101,ROW())<>0,MeasureCalc(Table_PI[[#This Row],[Hide:\nFormula Name]],Table_SummaryPI[[#This Row],[Quantity]],Table_PI[[#This Row],[List 1]],Table_PI[[#This Row],[List 2]],Table_PI[[#This Row],[List 3]],Table_PI[[#This Row],[Size]],Table_PI[[#This Row],[Input 1]],Table_PI[[#This Row],[Input 2]],Table_PI[[#This Row],[Input 3]],Table_PI[[#This Row],[Input 4]],'Customer Information'!$AR$12,101,ROW())<>\"No Rebate\"),MeasureCalc(Table_PI[[#This Row],[Hide:\nFormula Name]],Table_SummaryPI[[#This Row],[Quantity]],Table_PI[[#This Row],[List 1]],Table_PI[[#This Row],[List 2]],Table_PI[[#This Row],[List 3]],Table_PI[[#This Row],[Size]],Table_PI[[#This Row],[Input 1]],Table_PI[[#This Row],[Input 2]],Table_PI[[#This Row],[Input 3]],Table_PI[[#This Row],[Input 4]],'Customer Information'!$AR$12,101,ROW()),\"\"),\"\")","v":""},{"$f":"IF(Table_PI[[#This Row],[Input 2]]<>\"\",Table_PI[[#This Row],[Input 2]],\"\")","v":""},null,{"$f":"IFERROR(IF(AND(MeasureCalc(Table_PI[[#This Row],[Hide:\nFormula Name]],Table_SummaryPI[[#This Row],[Quantity]],Table_PI[[#This Row],[List 1]],Table_PI[[#This Row],[List 2]],Table_PI[[#This Row],[List 3]],Table_PI[[#This Row],[Size]],Table_PI[[#This Row],[Input 1]],Table_PI[[#This Row],[Input 2]],Table_PI[[#This Row],[Input 3]],Table_PI[[#This Row],[Input 4]],'Customer Information'!$AR$12,102,ROW())<>0,MeasureCalc(Table_PI[[#This Row],[Hide:\nFormula Name]],Table_SummaryPI[[#This Row],[Quantity]],Table_PI[[#This Row],[List 1]],Table_PI[[#This Row],[List 2]],Table_PI[[#This Row],[List 3]],Table_PI[[#This Row],[Size]],Table_PI[[#This Row],[Input 1]],Table_PI[[#This Row],[Input 2]],Table_PI[[#This Row],[Input 3]],Table_PI[[#This Row],[Input 4]],'Customer Information'!$AR$12,102,ROW())<>\"No Rebate\"),MeasureCalc(Table_PI[[#This Row],[Hide:\nFormula Name]],Table_SummaryPI[[#This Row],[Quantity]],Table_PI[[#This Row],[List 1]],Table_PI[[#This Row],[List 2]],Table_PI[[#This Row],[List 3]],Table_PI[[#This Row],[Size]],Table_PI[[#This Row],[Input 1]],Table_PI[[#This Row],[Input 2]],Table_PI[[#This Row],[Input 3]],Table_PI[[#This Row],[Input 4]],'Customer Information'!$AR$12,102,ROW()),\"\"),\"\")","v":""},{"$f":"IF(Table_PI[[#This Row],[Input 3]]<>\"\",Table_PI[[#This Row],[Input 3]],\"\")","v":""},null,{"$f":"IFERROR(IF(AND(MeasureCalc(Table_PI[[#This Row],[Hide:\nFormula Name]],Table_SummaryPI[[#This Row],[Quantity]],Table_PI[[#This Row],[List 1]],Table_PI[[#This Row],[List 2]],Table_PI[[#This Row],[List 3]],Table_PI[[#This Row],[Size]],Table_PI[[#This Row],[Input 1]],Table_PI[[#This Row],[Input 2]],Table_PI[[#This Row],[Input 3]],Table_PI[[#This Row],[Input 4]],'Customer Information'!$AR$12,103,ROW())<>0,MeasureCalc(Table_PI[[#This Row],[Hide:\nFormula Name]],Table_SummaryPI[[#This Row],[Quantity]],Table_PI[[#This Row],[List 1]],Table_PI[[#This Row],[List 2]],Table_PI[[#This Row],[List 3]],Table_PI[[#This Row],[Size]],Table_PI[[#This Row],[Input 1]],Table_PI[[#This Row],[Input 2]],Table_PI[[#This Row],[Input 3]],Table_PI[[#This Row],[Input 4]],'Customer Information'!$AR$12,103,ROW())<>\"No Rebate\"),MeasureCalc(Table_PI[[#This Row],[Hide:\nFormula Name]],Table_SummaryPI[[#This Row],[Quantity]],Table_PI[[#This Row],[List 1]],Table_PI[[#This Row],[List 2]],Table_PI[[#This Row],[List 3]],Table_PI[[#This Row],[Size]],Table_PI[[#This Row],[Input 1]],Table_PI[[#This Row],[Input 2]],Table_PI[[#This Row],[Input 3]],Table_PI[[#This Row],[Input 4]],'Customer Information'!$AR$12,103,ROW()),\"\"),\"\")","v":""},{"$f":"IF(Table_PI[[#This Row],[Input 4]]<>\"\",Table_PI[[#This Row],[Input 4]],\"\")","v":""},{"$f":"IF(Table_PI[[#This Row],[Quantity]]=\"\",\"\",Table_PI[[#This Row],[Quantity]])","v":""},{"$f":"IF(Table_PI[[#This Row],[Notes]]=\"\",\"\",Table_PI[[#This Row],[Notes]])","v":""},{"$f":"IF(OR(Table_PI[[#This Row],[Hide:\nBaseline kWh]]=\"\",Table_PI[[#This Row],[Hide:\nBaseline kWh]]=0),\"\",Table_PI[[#This Row],[Hide:\nBaseline kWh]])","v":""},{"$f":"IF(OR(Table_PI[[#This Row],[Hide:\nBaseline kW]]=\"\",Table_PI[[#This Row],[Hide:\nBaseline kW]]=0),\"\",Table_PI[[#This Row],[Hide:\nBaseline kW]])","v":""},{"$f":"IF(OR(Table_PI[[#This Row],[Hide:\nProposed kWh]]=\"\",Table_PI[[#This Row],[Hide:\nProposed kWh]]=0),\"\",Table_PI[[#This Row],[Hide:\nProposed kWh]])","v":""},{"$f":"IF(OR(Table_PI[[#This Row],[Hide:\nProposed kW]]=\"\",Table_PI[[#This Row],[Hide:\nProposed kW]]=0),\"\",Table_PI[[#This Row],[Hide:\nProposed kW]])","v":""},{"$f":"IF(OR(Table_PI[[#This Row],[Rebate]]=\"\",Table_PI[[#This Row],[Rebate]]=0),\"\",Table_PI[[#This Row],[Rebate]])","v":""},{"$f":"IF(OR(Table_PI[[#This Row],[Hide:\nIncremental Cost]]=\"\",Table_PI[[#This Row],[Hide:\nIncremental Cost]]=0),\"\",Table_PI[[#This Row],[Hide:\nIncremental Cost]])","v":""},{"$f":"IFERROR(IF(Table_SummaryPI[[#This Row],[kWhSavings]]=\"\",\"\",ROUND(Table_SummaryPI[[#This Row],[kWhSavings]]/$AG$401*'Customer Information'!$BC$17,2)),0)","v":""},{"$f":"IF(OR(Table_PI[[#This Row],[Annual kWh]]=\"\",Table_PI[[#This Row],[Annual kWh]]=0),\"\",Table_PI[[#This Row],[Annual kWh]])","v":""},{"$f":"IF(OR(Table_PI[[#This Row],[Peak kW]]=\"\",Table_PI[[#This Row],[Peak kW]]=0),\"\",Table_PI[[#This Row],[Peak kW]])","v":""},{"$f":"IFERROR(IF(Table_SummaryPI[[#This Row],[kWhSavings]]=\"\",\"\",$AU$9*Table_SummaryPI[[#This Row],[kWhSavings]]),0)","v":""},{"$f":"IFERROR(IF(Table_SummaryPI[[#This Row],[kWhSavings]]=\"\",\"\",$AU$14*Table_SummaryPI[[#This Row],[kWhSavings]]),0)","v":""},{"$f":"IFERROR(IF(Table_SummaryPI[[#This Row],[kWhSavings]]=\"\",\"\",$AU$18*Table_SummaryPI[[#This Row],[kWhSavings]]),0)","v":""},{"$f":"IFERROR(IF(Table_SummaryPI[[#This Row],[kWhSavings]]=\"\",\"\",$AU$22*Table_SummaryPI[[#This Row],[kWhSavings]]),0)","v":""},{"$f":"IFERROR(IF(MeasureCalc(Table_PI[[#This Row],[Hide:\nFormula Name]],Table_SummaryPI[[#This Row],[Quantity]],Table_PI[[#This Row],[List 1]],Table_PI[[#This Row],[List 2]],Table_PI[[#This Row],[List 3]],Table_PI[[#This Row],[Size]],Table_PI[[#This Row],[Input 1]],Table_PI[[#This Row],[Input 2]],Table_PI[[#This Row],[Input 3]],Table_PI[[#This Row],[Input 4]],'Customer Information'!$AR$12,200,ROW())<>\"No Rebate\",MeasureCalc(Table_PI[[#This Row],[Hide:\nFormula Name]],Table_SummaryPI[[#This Row],[Quantity]],Table_PI[[#This Row],[List 1]],Table_PI[[#This Row],[List 2]],Table_PI[[#This Row],[List 3]],Table_PI[[#This Row],[Size]],Table_PI[[#This Row],[Input 1]],Table_PI[[#This Row],[Input 2]],Table_PI[[#This Row],[Input 3]],Table_PI[[#This Row],[Input 4]],'Customer Information'!$AR$12,200,ROW()),\"\"),\"\")","v":""},{"$f":"IFERROR(IF(MeasureCalc(Table_PI[[#This Row],[Hide:\nFormula Name]],Table_SummaryPI[[#This Row],[Quantity]],Table_PI[[#This Row],[List 1]],Table_PI[[#This Row],[List 2]],Table_PI[[#This Row],[List 3]],Table_PI[[#This Row],[Size]],Table_PI[[#This Row],[Input 1]],Table_PI[[#This Row],[Input 2]],Table_PI[[#This Row],[Input 3]],Table_PI[[#This Row],[Input 4]],'Customer Information'!$AR$12,201,ROW())<>\"No Rebate\",MeasureCalc(Table_PI[[#This Row],[Hide:\nFormula Name]],Table_SummaryPI[[#This Row],[Quantity]],Table_PI[[#This Row],[List 1]],Table_PI[[#This Row],[List 2]],Table_PI[[#This Row],[List 3]],Table_PI[[#This Row],[Size]],Table_PI[[#This Row],[Input 1]],Table_PI[[#This Row],[Input 2]],Table_PI[[#This Row],[Input 3]],Table_PI[[#This Row],[Input 4]],'Customer Information'!$AR$12,201,ROW()),\"\"),\"\")","v":""}]
[{"$f":"Table_PI[[#This Row],[Line No.]]","v":""},{"$f":"IF(Table_SummaryPI[[#This Row],[MeassureCategory]]<>\"\",CONCATENATE(Table_SummaryPI[[#This Row],[MeassureCategory]],  \" - \", Table_SummaryPI[[#This Row],[ProposedMeasureCategory]],  \" - \", TEXT(Table_SummaryPI[[#This Row],[Size]],\"#,##0.00\"),\" \",Table_SummaryPI[[#This Row],[SizeUnit]]),\"\")","v":""},{"$f":"SUBSTITUTE(Table_PI[[#This Row],[Measure]],\"     \",\"\",1)","v":""},{"$f":"IF(Table_PI[[#This Row],[List 1]]<>\"\",Table_PI[[#This Row],[List 1]],\"\")","v":""},{"$f":"IF(Table_PI[[#This Row],[List 2]]<>\"\",Table_PI[[#This Row],[List 2]],\"\")","v":""},{"$f":"IF(Table_PI[[#This Row],[List 3]]<>\"\",Table_PI[[#This Row],[List 3]],\"\")","v":""},{"$f":"IF(Table_PI[[#This Row],[Manufacturer]]=\"\",\"\",Table_PI[[#This Row],[Manufacturer]])","v":""},{"$f":"IF(Table_PI[[#This Row],[Model Number]]=\"\",\"\",Table_PI[[#This Row],[Model Number]])","v":""},{"$f":"IF(Table_PI[[#This Row],[Serial Number(s)]]=\"\",\"\",Table_PI[[#This Row],[Serial Number(s)]])","v":""},null,{"$f":"IF(Table_PI[[#This Row],[Size]]=\"\",\"\",Table_PI[[#This Row],[Size]])","v":""},null,{"$f":"IFERROR(IF(AND(MeasureCalc(Table_PI[[#This Row],[Hide:\nFormula Name]],Table_SummaryPI[[#This Row],[Quantity]],Table_PI[[#This Row],[List 1]],Table_PI[[#This Row],[List 2]],Table_PI[[#This Row],[List 3]],Table_PI[[#This Row],[Size]],Table_PI[[#This Row],[Input 1]],Table_PI[[#This Row],[Input 2]],Table_PI[[#This Row],[Input 3]],Table_PI[[#This Row],[Input 4]],'Customer Information'!$AR$12,100,ROW())<>0,MeasureCalc(Table_PI[[#This Row],[Hide:\nFormula Name]],Table_SummaryPI[[#This Row],[Quantity]],Table_PI[[#This Row],[List 1]],Table_PI[[#This Row],[List 2]],Table_PI[[#This Row],[List 3]],Table_PI[[#This Row],[Size]],Table_PI[[#This Row],[Input 1]],Table_PI[[#This Row],[Input 2]],Table_PI[[#This Row],[Input 3]],Table_PI[[#This Row],[Input 4]],'Customer Information'!$AR$12,100,ROW())<>\"No Rebate\"),MeasureCalc(Table_PI[[#This Row],[Hide:\nFormula Name]],Table_SummaryPI[[#This Row],[Quantity]],Table_PI[[#This Row],[List 1]],Table_PI[[#This Row],[List 2]],Table_PI[[#This Row],[List 3]],Table_PI[[#This Row],[Size]],Table_PI[[#This Row],[Input 1]],Table_PI[[#This Row],[Input 2]],Table_PI[[#This Row],[Input 3]],Table_PI[[#This Row],[Input 4]],'Customer Information'!$AR$12,100,ROW()),\"\"),\"\")","v":""},{"$f":"IF(Table_PI[[#This Row],[Input 1]]<>\"\",Table_PI[[#This Row],[Input 1]],\"\")","v":""},null,{"$f":"IFERROR(IF(AND(MeasureCalc(Table_PI[[#This Row],[Hide:\nFormula Name]],Table_SummaryPI[[#This Row],[Quantity]],Table_PI[[#This Row],[List 1]],Table_PI[[#This Row],[List 2]],Table_PI[[#This Row],[List 3]],Table_PI[[#This Row],[Size]],Table_PI[[#This Row],[Input 1]],Table_PI[[#This Row],[Input 2]],Table_PI[[#This Row],[Input 3]],Table_PI[[#This Row],[Input 4]],'Customer Information'!$AR$12,101,ROW())<>0,MeasureCalc(Table_PI[[#This Row],[Hide:\nFormula Name]],Table_SummaryPI[[#This Row],[Quantity]],Table_PI[[#This Row],[List 1]],Table_PI[[#This Row],[List 2]],Table_PI[[#This Row],[List 3]],Table_PI[[#This Row],[Size]],Table_PI[[#This Row],[Input 1]],Table_PI[[#This Row],[Input 2]],Table_PI[[#This Row],[Input 3]],Table_PI[[#This Row],[Input 4]],'Customer Information'!$AR$12,101,ROW())<>\"No Rebate\"),MeasureCalc(Table_PI[[#This Row],[Hide:\nFormula Name]],Table_SummaryPI[[#This Row],[Quantity]],Table_PI[[#This Row],[List 1]],Table_PI[[#This Row],[List 2]],Table_PI[[#This Row],[List 3]],Table_PI[[#This Row],[Size]],Table_PI[[#This Row],[Input 1]],Table_PI[[#This Row],[Input 2]],Table_PI[[#This Row],[Input 3]],Table_PI[[#This Row],[Input 4]],'Customer Information'!$AR$12,101,ROW()),\"\"),\"\")","v":""},{"$f":"IF(Table_PI[[#This Row],[Input 2]]<>\"\",Table_PI[[#This Row],[Input 2]],\"\")","v":""},null,{"$f":"IFERROR(IF(AND(MeasureCalc(Table_PI[[#This Row],[Hide:\nFormula Name]],Table_SummaryPI[[#This Row],[Quantity]],Table_PI[[#This Row],[List 1]],Table_PI[[#This Row],[List 2]],Table_PI[[#This Row],[List 3]],Table_PI[[#This Row],[Size]],Table_PI[[#This Row],[Input 1]],Table_PI[[#This Row],[Input 2]],Table_PI[[#This Row],[Input 3]],Table_PI[[#This Row],[Input 4]],'Customer Information'!$AR$12,102,ROW())<>0,MeasureCalc(Table_PI[[#This Row],[Hide:\nFormula Name]],Table_SummaryPI[[#This Row],[Quantity]],Table_PI[[#This Row],[List 1]],Table_PI[[#This Row],[List 2]],Table_PI[[#This Row],[List 3]],Table_PI[[#This Row],[Size]],Table_PI[[#This Row],[Input 1]],Table_PI[[#This Row],[Input 2]],Table_PI[[#This Row],[Input 3]],Table_PI[[#This Row],[Input 4]],'Customer Information'!$AR$12,102,ROW())<>\"No Rebate\"),MeasureCalc(Table_PI[[#This Row],[Hide:\nFormula Name]],Table_SummaryPI[[#This Row],[Quantity]],Table_PI[[#This Row],[List 1]],Table_PI[[#This Row],[List 2]],Table_PI[[#This Row],[List 3]],Table_PI[[#This Row],[Size]],Table_PI[[#This Row],[Input 1]],Table_PI[[#This Row],[Input 2]],Table_PI[[#This Row],[Input 3]],Table_PI[[#This Row],[Input 4]],'Customer Information'!$AR$12,102,ROW()),\"\"),\"\")","v":""},{"$f":"IF(Table_PI[[#This Row],[Input 3]]<>\"\",Table_PI[[#This Row],[Input 3]],\"\")","v":""},null,{"$f":"IFERROR(IF(AND(MeasureCalc(Table_PI[[#This Row],[Hide:\nFormula Name]],Table_SummaryPI[[#This Row],[Quantity]],Table_PI[[#This Row],[List 1]],Table_PI[[#This Row],[List 2]],Table_PI[[#This Row],[List 3]],Table_PI[[#This Row],[Size]],Table_PI[[#This Row],[Input 1]],Table_PI[[#This Row],[Input 2]],Table_PI[[#This Row],[Input 3]],Table_PI[[#This Row],[Input 4]],'Customer Information'!$AR$12,103,ROW())<>0,MeasureCalc(Table_PI[[#This Row],[Hide:\nFormula Name]],Table_SummaryPI[[#This Row],[Quantity]],Table_PI[[#This Row],[List 1]],Table_PI[[#This Row],[List 2]],Table_PI[[#This Row],[List 3]],Table_PI[[#This Row],[Size]],Table_PI[[#This Row],[Input 1]],Table_PI[[#This Row],[Input 2]],Table_PI[[#This Row],[Input 3]],Table_PI[[#This Row],[Input 4]],'Customer Information'!$AR$12,103,ROW())<>\"No Rebate\"),MeasureCalc(Table_PI[[#This Row],[Hide:\nFormula Name]],Table_SummaryPI[[#This Row],[Quantity]],Table_PI[[#This Row],[List 1]],Table_PI[[#This Row],[List 2]],Table_PI[[#This Row],[List 3]],Table_PI[[#This Row],[Size]],Table_PI[[#This Row],[Input 1]],Table_PI[[#This Row],[Input 2]],Table_PI[[#This Row],[Input 3]],Table_PI[[#This Row],[Input 4]],'Customer Information'!$AR$12,103,ROW()),\"\"),\"\")","v":""},{"$f":"IF(Table_PI[[#This Row],[Input 4]]<>\"\",Table_PI[[#This Row],[Input 4]],\"\")","v":""},{"$f":"IF(Table_PI[[#This Row],[Quantity]]=\"\",\"\",Table_PI[[#This Row],[Quantity]])","v":""},{"$f":"IF(Table_PI[[#This Row],[Notes]]=\"\",\"\",Table_PI[[#This Row],[Notes]])","v":""},{"$f":"IF(OR(Table_PI[[#This Row],[Hide:\nBaseline kWh]]=\"\",Table_PI[[#This Row],[Hide:\nBaseline kWh]]=0),\"\",Table_PI[[#This Row],[Hide:\nBaseline kWh]])","v":""},{"$f":"IF(OR(Table_PI[[#This Row],[Hide:\nBaseline kW]]=\"\",Table_PI[[#This Row],[Hide:\nBaseline kW]]=0),\"\",Table_PI[[#This Row],[Hide:\nBaseline kW]])","v":""},{"$f":"IF(OR(Table_PI[[#This Row],[Hide:\nProposed kWh]]=\"\",Table_PI[[#This Row],[Hide:\nProposed kWh]]=0),\"\",Table_PI[[#This Row],[Hide:\nProposed kWh]])","v":""},{"$f":"IF(OR(Table_PI[[#This Row],[Hide:\nProposed kW]]=\"\",Table_PI[[#This Row],[Hide:\nProposed kW]]=0),\"\",Table_PI[[#This Row],[Hide:\nProposed kW]])","v":""},{"$f":"IF(OR(Table_PI[[#This Row],[Rebate]]=\"\",Table_PI[[#This Row],[Rebate]]=0),\"\",Table_PI[[#This Row],[Rebate]])","v":""},{"$f":"IF(OR(Table_PI[[#This Row],[Hide:\nIncremental Cost]]=\"\",Table_PI[[#This Row],[Hide:\nIncremental Cost]]=0),\"\",Table_PI[[#This Row],[Hide:\nIncremental Cost]])","v":""},{"$f":"IFERROR(IF(Table_SummaryPI[[#This Row],[kWhSavings]]=\"\",\"\",ROUND(Table_SummaryPI[[#This Row],[kWhSavings]]/$AG$401*'Customer Information'!$BC$17,2)),0)","v":""},{"$f":"IF(OR(Table_PI[[#This Row],[Annual kWh]]=\"\",Table_PI[[#This Row],[Annual kWh]]=0),\"\",Table_PI[[#This Row],[Annual kWh]])","v":""},{"$f":"IF(OR(Table_PI[[#This Row],[Peak kW]]=\"\",Table_PI[[#This Row],[Peak kW]]=0),\"\",Table_PI[[#This Row],[Peak kW]])","v":""},{"$f":"IFERROR(IF(Table_SummaryPI[[#This Row],[kWhSavings]]=\"\",\"\",$AU$9*Table_SummaryPI[[#This Row],[kWhSavings]]),0)","v":""},{"$f":"IFERROR(IF(Table_SummaryPI[[#This Row],[kWhSavings]]=\"\",\"\",$AU$14*Table_SummaryPI[[#This Row],[kWhSavings]]),0)","v":""},{"$f":"IFERROR(IF(Table_SummaryPI[[#This Row],[kWhSavings]]=\"\",\"\",$AU$18*Table_SummaryPI[[#This Row],[kWhSavings]]),0)","v":""},{"$f":"IFERROR(IF(Table_SummaryPI[[#This Row],[kWhSavings]]=\"\",\"\",$AU$22*Table_SummaryPI[[#This Row],[kWhSavings]]),0)","v":""},{"$f":"IFERROR(IF(MeasureCalc(Table_PI[[#This Row],[Hide:\nFormula Name]],Table_SummaryPI[[#This Row],[Quantity]],Table_PI[[#This Row],[List 1]],Table_PI[[#This Row],[List 2]],Table_PI[[#This Row],[List 3]],Table_PI[[#This Row],[Size]],Table_PI[[#This Row],[Input 1]],Table_PI[[#This Row],[Input 2]],Table_PI[[#This Row],[Input 3]],Table_PI[[#This Row],[Input 4]],'Customer Information'!$AR$12,200,ROW())<>\"No Rebate\",MeasureCalc(Table_PI[[#This Row],[Hide:\nFormula Name]],Table_SummaryPI[[#This Row],[Quantity]],Table_PI[[#This Row],[List 1]],Table_PI[[#This Row],[List 2]],Table_PI[[#This Row],[List 3]],Table_PI[[#This Row],[Size]],Table_PI[[#This Row],[Input 1]],Table_PI[[#This Row],[Input 2]],Table_PI[[#This Row],[Input 3]],Table_PI[[#This Row],[Input 4]],'Customer Information'!$AR$12,200,ROW()),\"\"),\"\")","v":""},{"$f":"IFERROR(IF(MeasureCalc(Table_PI[[#This Row],[Hide:\nFormula Name]],Table_SummaryPI[[#This Row],[Quantity]],Table_PI[[#This Row],[List 1]],Table_PI[[#This Row],[List 2]],Table_PI[[#This Row],[List 3]],Table_PI[[#This Row],[Size]],Table_PI[[#This Row],[Input 1]],Table_PI[[#This Row],[Input 2]],Table_PI[[#This Row],[Input 3]],Table_PI[[#This Row],[Input 4]],'Customer Information'!$AR$12,201,ROW())<>\"No Rebate\",MeasureCalc(Table_PI[[#This Row],[Hide:\nFormula Name]],Table_SummaryPI[[#This Row],[Quantity]],Table_PI[[#This Row],[List 1]],Table_PI[[#This Row],[List 2]],Table_PI[[#This Row],[List 3]],Table_PI[[#This Row],[Size]],Table_PI[[#This Row],[Input 1]],Table_PI[[#This Row],[Input 2]],Table_PI[[#This Row],[Input 3]],Table_PI[[#This Row],[Input 4]],'Customer Information'!$AR$12,201,ROW()),\"\"),\"\")","v":""}]
[{"$f":"Table_PI[[#This Row],[Line No.]]","v":""},{"$f":"IF(Table_SummaryPI[[#This Row],[MeassureCategory]]<>\"\",CONCATENATE(Table_SummaryPI[[#This Row],[MeassureCategory]],  \" - \", Table_SummaryPI[[#This Row],[ProposedMeasureCategory]],  \" - \", TEXT(Table_SummaryPI[[#This Row],[Size]],\"#,##0.00\"),\" \",Table_SummaryPI[[#This Row],[SizeUnit]]),\"\")","v":""},{"$f":"SUBSTITUTE(Table_PI[[#This Row],[Measure]],\"     \",\"\",1)","v":""},{"$f":"IF(Table_PI[[#This Row],[List 1]]<>\"\",Table_PI[[#This Row],[List 1]],\"\")","v":""},{"$f":"IF(Table_PI[[#This Row],[List 2]]<>\"\",Table_PI[[#This Row],[List 2]],\"\")","v":""},{"$f":"IF(Table_PI[[#This Row],[List 3]]<>\"\",Table_PI[[#This Row],[List 3]],\"\")","v":""},{"$f":"IF(Table_PI[[#This Row],[Manufacturer]]=\"\",\"\",Table_PI[[#This Row],[Manufacturer]])","v":""},{"$f":"IF(Table_PI[[#This Row],[Model Number]]=\"\",\"\",Table_PI[[#This Row],[Model Number]])","v":""},{"$f":"IF(Table_PI[[#This Row],[Serial Number(s)]]=\"\",\"\",Table_PI[[#This Row],[Serial Number(s)]])","v":""},null,{"$f":"IF(Table_PI[[#This Row],[Size]]=\"\",\"\",Table_PI[[#This Row],[Size]])","v":""},null,{"$f":"IFERROR(IF(AND(MeasureCalc(Table_PI[[#This Row],[Hide:\nFormula Name]],Table_SummaryPI[[#This Row],[Quantity]],Table_PI[[#This Row],[List 1]],Table_PI[[#This Row],[List 2]],Table_PI[[#This Row],[List 3]],Table_PI[[#This Row],[Size]],Table_PI[[#This Row],[Input 1]],Table_PI[[#This Row],[Input 2]],Table_PI[[#This Row],[Input 3]],Table_PI[[#This Row],[Input 4]],'Customer Information'!$AR$12,100,ROW())<>0,MeasureCalc(Table_PI[[#This Row],[Hide:\nFormula Name]],Table_SummaryPI[[#This Row],[Quantity]],Table_PI[[#This Row],[List 1]],Table_PI[[#This Row],[List 2]],Table_PI[[#This Row],[List 3]],Table_PI[[#This Row],[Size]],Table_PI[[#This Row],[Input 1]],Table_PI[[#This Row],[Input 2]],Table_PI[[#This Row],[Input 3]],Table_PI[[#This Row],[Input 4]],'Customer Information'!$AR$12,100,ROW())<>\"No Rebate\"),MeasureCalc(Table_PI[[#This Row],[Hide:\nFormula Name]],Table_SummaryPI[[#This Row],[Quantity]],Table_PI[[#This Row],[List 1]],Table_PI[[#This Row],[List 2]],Table_PI[[#This Row],[List 3]],Table_PI[[#This Row],[Size]],Table_PI[[#This Row],[Input 1]],Table_PI[[#This Row],[Input 2]],Table_PI[[#This Row],[Input 3]],Table_PI[[#This Row],[Input 4]],'Customer Information'!$AR$12,100,ROW()),\"\"),\"\")","v":""},{"$f":"IF(Table_PI[[#This Row],[Input 1]]<>\"\",Table_PI[[#This Row],[Input 1]],\"\")","v":""},null,{"$f":"IFERROR(IF(AND(MeasureCalc(Table_PI[[#This Row],[Hide:\nFormula Name]],Table_SummaryPI[[#This Row],[Quantity]],Table_PI[[#This Row],[List 1]],Table_PI[[#This Row],[List 2]],Table_PI[[#This Row],[List 3]],Table_PI[[#This Row],[Size]],Table_PI[[#This Row],[Input 1]],Table_PI[[#This Row],[Input 2]],Table_PI[[#This Row],[Input 3]],Table_PI[[#This Row],[Input 4]],'Customer Information'!$AR$12,101,ROW())<>0,MeasureCalc(Table_PI[[#This Row],[Hide:\nFormula Name]],Table_SummaryPI[[#This Row],[Quantity]],Table_PI[[#This Row],[List 1]],Table_PI[[#This Row],[List 2]],Table_PI[[#This Row],[List 3]],Table_PI[[#This Row],[Size]],Table_PI[[#This Row],[Input 1]],Table_PI[[#This Row],[Input 2]],Table_PI[[#This Row],[Input 3]],Table_PI[[#This Row],[Input 4]],'Customer Information'!$AR$12,101,ROW())<>\"No Rebate\"),MeasureCalc(Table_PI[[#This Row],[Hide:\nFormula Name]],Table_SummaryPI[[#This Row],[Quantity]],Table_PI[[#This Row],[List 1]],Table_PI[[#This Row],[List 2]],Table_PI[[#This Row],[List 3]],Table_PI[[#This Row],[Size]],Table_PI[[#This Row],[Input 1]],Table_PI[[#This Row],[Input 2]],Table_PI[[#This Row],[Input 3]],Table_PI[[#This Row],[Input 4]],'Customer Information'!$AR$12,101,ROW()),\"\"),\"\")","v":""},{"$f":"IF(Table_PI[[#This Row],[Input 2]]<>\"\",Table_PI[[#This Row],[Input 2]],\"\")","v":""},null,{"$f":"IFERROR(IF(AND(MeasureCalc(Table_PI[[#This Row],[Hide:\nFormula Name]],Table_SummaryPI[[#This Row],[Quantity]],Table_PI[[#This Row],[List 1]],Table_PI[[#This Row],[List 2]],Table_PI[[#This Row],[List 3]],Table_PI[[#This Row],[Size]],Table_PI[[#This Row],[Input 1]],Table_PI[[#This Row],[Input 2]],Table_PI[[#This Row],[Input 3]],Table_PI[[#This Row],[Input 4]],'Customer Information'!$AR$12,102,ROW())<>0,MeasureCalc(Table_PI[[#This Row],[Hide:\nFormula Name]],Table_SummaryPI[[#This Row],[Quantity]],Table_PI[[#This Row],[List 1]],Table_PI[[#This Row],[List 2]],Table_PI[[#This Row],[List 3]],Table_PI[[#This Row],[Size]],Table_PI[[#This Row],[Input 1]],Table_PI[[#This Row],[Input 2]],Table_PI[[#This Row],[Input 3]],Table_PI[[#This Row],[Input 4]],'Customer Information'!$AR$12,102,ROW())<>\"No Rebate\"),MeasureCalc(Table_PI[[#This Row],[Hide:\nFormula Name]],Table_SummaryPI[[#This Row],[Quantity]],Table_PI[[#This Row],[List 1]],Table_PI[[#This Row],[List 2]],Table_PI[[#This Row],[List 3]],Table_PI[[#This Row],[Size]],Table_PI[[#This Row],[Input 1]],Table_PI[[#This Row],[Input 2]],Table_PI[[#This Row],[Input 3]],Table_PI[[#This Row],[Input 4]],'Customer Information'!$AR$12,102,ROW()),\"\"),\"\")","v":""},{"$f":"IF(Table_PI[[#This Row],[Input 3]]<>\"\",Table_PI[[#This Row],[Input 3]],\"\")","v":""},null,{"$f":"IFERROR(IF(AND(MeasureCalc(Table_PI[[#This Row],[Hide:\nFormula Name]],Table_SummaryPI[[#This Row],[Quantity]],Table_PI[[#This Row],[List 1]],Table_PI[[#This Row],[List 2]],Table_PI[[#This Row],[List 3]],Table_PI[[#This Row],[Size]],Table_PI[[#This Row],[Input 1]],Table_PI[[#This Row],[Input 2]],Table_PI[[#This Row],[Input 3]],Table_PI[[#This Row],[Input 4]],'Customer Information'!$AR$12,103,ROW())<>0,MeasureCalc(Table_PI[[#This Row],[Hide:\nFormula Name]],Table_SummaryPI[[#This Row],[Quantity]],Table_PI[[#This Row],[List 1]],Table_PI[[#This Row],[List 2]],Table_PI[[#This Row],[List 3]],Table_PI[[#This Row],[Size]],Table_PI[[#This Row],[Input 1]],Table_PI[[#This Row],[Input 2]],Table_PI[[#This Row],[Input 3]],Table_PI[[#This Row],[Input 4]],'Customer Information'!$AR$12,103,ROW())<>\"No Rebate\"),MeasureCalc(Table_PI[[#This Row],[Hide:\nFormula Name]],Table_SummaryPI[[#This Row],[Quantity]],Table_PI[[#This Row],[List 1]],Table_PI[[#This Row],[List 2]],Table_PI[[#This Row],[List 3]],Table_PI[[#This Row],[Size]],Table_PI[[#This Row],[Input 1]],Table_PI[[#This Row],[Input 2]],Table_PI[[#This Row],[Input 3]],Table_PI[[#This Row],[Input 4]],'Customer Information'!$AR$12,103,ROW()),\"\"),\"\")","v":""},{"$f":"IF(Table_PI[[#This Row],[Input 4]]<>\"\",Table_PI[[#This Row],[Input 4]],\"\")","v":""},{"$f":"IF(Table_PI[[#This Row],[Quantity]]=\"\",\"\",Table_PI[[#This Row],[Quantity]])","v":""},{"$f":"IF(Table_PI[[#This Row],[Notes]]=\"\",\"\",Table_PI[[#This Row],[Notes]])","v":""},{"$f":"IF(OR(Table_PI[[#This Row],[Hide:\nBaseline kWh]]=\"\",Table_PI[[#This Row],[Hide:\nBaseline kWh]]=0),\"\",Table_PI[[#This Row],[Hide:\nBaseline kWh]])","v":""},{"$f":"IF(OR(Table_PI[[#This Row],[Hide:\nBaseline kW]]=\"\",Table_PI[[#This Row],[Hide:\nBaseline kW]]=0),\"\",Table_PI[[#This Row],[Hide:\nBaseline kW]])","v":""},{"$f":"IF(OR(Table_PI[[#This Row],[Hide:\nProposed kWh]]=\"\",Table_PI[[#This Row],[Hide:\nProposed kWh]]=0),\"\",Table_PI[[#This Row],[Hide:\nProposed kWh]])","v":""},{"$f":"IF(OR(Table_PI[[#This Row],[Hide:\nProposed kW]]=\"\",Table_PI[[#This Row],[Hide:\nProposed kW]]=0),\"\",Table_PI[[#This Row],[Hide:\nProposed kW]])","v":""},{"$f":"IF(OR(Table_PI[[#This Row],[Rebate]]=\"\",Table_PI[[#This Row],[Rebate]]=0),\"\",Table_PI[[#This Row],[Rebate]])","v":""},{"$f":"IF(OR(Table_PI[[#This Row],[Hide:\nIncremental Cost]]=\"\",Table_PI[[#This Row],[Hide:\nIncremental Cost]]=0),\"\",Table_PI[[#This Row],[Hide:\nIncremental Cost]])","v":""},{"$f":"IFERROR(IF(Table_SummaryPI[[#This Row],[kWhSavings]]=\"\",\"\",ROUND(Table_SummaryPI[[#This Row],[kWhSavings]]/$AG$401*'Customer Information'!$BC$17,2)),0)","v":""},{"$f":"IF(OR(Table_PI[[#This Row],[Annual kWh]]=\"\",Table_PI[[#This Row],[Annual kWh]]=0),\"\",Table_PI[[#This Row],[Annual kWh]])","v":""},{"$f":"IF(OR(Table_PI[[#This Row],[Peak kW]]=\"\",Table_PI[[#This Row],[Peak kW]]=0),\"\",Table_PI[[#This Row],[Peak kW]])","v":""},{"$f":"IFERROR(IF(Table_SummaryPI[[#This Row],[kWhSavings]]=\"\",\"\",$AU$9*Table_SummaryPI[[#This Row],[kWhSavings]]),0)","v":""},{"$f":"IFERROR(IF(Table_SummaryPI[[#This Row],[kWhSavings]]=\"\",\"\",$AU$14*Table_SummaryPI[[#This Row],[kWhSavings]]),0)","v":""},{"$f":"IFERROR(IF(Table_SummaryPI[[#This Row],[kWhSavings]]=\"\",\"\",$AU$18*Table_SummaryPI[[#This Row],[kWhSavings]]),0)","v":""},{"$f":"IFERROR(IF(Table_SummaryPI[[#This Row],[kWhSavings]]=\"\",\"\",$AU$22*Table_SummaryPI[[#This Row],[kWhSavings]]),0)","v":""},{"$f":"IFERROR(IF(MeasureCalc(Table_PI[[#This Row],[Hide:\nFormula Name]],Table_SummaryPI[[#This Row],[Quantity]],Table_PI[[#This Row],[List 1]],Table_PI[[#This Row],[List 2]],Table_PI[[#This Row],[List 3]],Table_PI[[#This Row],[Size]],Table_PI[[#This Row],[Input 1]],Table_PI[[#This Row],[Input 2]],Table_PI[[#This Row],[Input 3]],Table_PI[[#This Row],[Input 4]],'Customer Information'!$AR$12,200,ROW())<>\"No Rebate\",MeasureCalc(Table_PI[[#This Row],[Hide:\nFormula Name]],Table_SummaryPI[[#This Row],[Quantity]],Table_PI[[#This Row],[List 1]],Table_PI[[#This Row],[List 2]],Table_PI[[#This Row],[List 3]],Table_PI[[#This Row],[Size]],Table_PI[[#This Row],[Input 1]],Table_PI[[#This Row],[Input 2]],Table_PI[[#This Row],[Input 3]],Table_PI[[#This Row],[Input 4]],'Customer Information'!$AR$12,200,ROW()),\"\"),\"\")","v":""},{"$f":"IFERROR(IF(MeasureCalc(Table_PI[[#This Row],[Hide:\nFormula Name]],Table_SummaryPI[[#This Row],[Quantity]],Table_PI[[#This Row],[List 1]],Table_PI[[#This Row],[List 2]],Table_PI[[#This Row],[List 3]],Table_PI[[#This Row],[Size]],Table_PI[[#This Row],[Input 1]],Table_PI[[#This Row],[Input 2]],Table_PI[[#This Row],[Input 3]],Table_PI[[#This Row],[Input 4]],'Customer Information'!$AR$12,201,ROW())<>\"No Rebate\",MeasureCalc(Table_PI[[#This Row],[Hide:\nFormula Name]],Table_SummaryPI[[#This Row],[Quantity]],Table_PI[[#This Row],[List 1]],Table_PI[[#This Row],[List 2]],Table_PI[[#This Row],[List 3]],Table_PI[[#This Row],[Size]],Table_PI[[#This Row],[Input 1]],Table_PI[[#This Row],[Input 2]],Table_PI[[#This Row],[Input 3]],Table_PI[[#This Row],[Input 4]],'Customer Information'!$AR$12,201,ROW()),\"\"),\"\")","v":""}]
[{"$f":"Table_PI[[#This Row],[Line No.]]","v":""},{"$f":"IF(Table_SummaryPI[[#This Row],[MeassureCategory]]<>\"\",CONCATENATE(Table_SummaryPI[[#This Row],[MeassureCategory]],  \" - \", Table_SummaryPI[[#This Row],[ProposedMeasureCategory]],  \" - \", TEXT(Table_SummaryPI[[#This Row],[Size]],\"#,##0.00\"),\" \",Table_SummaryPI[[#This Row],[SizeUnit]]),\"\")","v":""},{"$f":"SUBSTITUTE(Table_PI[[#This Row],[Measure]],\"     \",\"\",1)","v":""},{"$f":"IF(Table_PI[[#This Row],[List 1]]<>\"\",Table_PI[[#This Row],[List 1]],\"\")","v":""},{"$f":"IF(Table_PI[[#This Row],[List 2]]<>\"\",Table_PI[[#This Row],[List 2]],\"\")","v":""},{"$f":"IF(Table_PI[[#This Row],[List 3]]<>\"\",Table_PI[[#This Row],[List 3]],\"\")","v":""},{"$f":"IF(Table_PI[[#This Row],[Manufacturer]]=\"\",\"\",Table_PI[[#This Row],[Manufacturer]])","v":""},{"$f":"IF(Table_PI[[#This Row],[Model Number]]=\"\",\"\",Table_PI[[#This Row],[Model Number]])","v":""},{"$f":"IF(Table_PI[[#This Row],[Serial Number(s)]]=\"\",\"\",Table_PI[[#This Row],[Serial Number(s)]])","v":""},null,{"$f":"IF(Table_PI[[#This Row],[Size]]=\"\",\"\",Table_PI[[#This Row],[Size]])","v":""},null,{"$f":"IFERROR(IF(AND(MeasureCalc(Table_PI[[#This Row],[Hide:\nFormula Name]],Table_SummaryPI[[#This Row],[Quantity]],Table_PI[[#This Row],[List 1]],Table_PI[[#This Row],[List 2]],Table_PI[[#This Row],[List 3]],Table_PI[[#This Row],[Size]],Table_PI[[#This Row],[Input 1]],Table_PI[[#This Row],[Input 2]],Table_PI[[#This Row],[Input 3]],Table_PI[[#This Row],[Input 4]],'Customer Information'!$AR$12,100,ROW())<>0,MeasureCalc(Table_PI[[#This Row],[Hide:\nFormula Name]],Table_SummaryPI[[#This Row],[Quantity]],Table_PI[[#This Row],[List 1]],Table_PI[[#This Row],[List 2]],Table_PI[[#This Row],[List 3]],Table_PI[[#This Row],[Size]],Table_PI[[#This Row],[Input 1]],Table_PI[[#This Row],[Input 2]],Table_PI[[#This Row],[Input 3]],Table_PI[[#This Row],[Input 4]],'Customer Information'!$AR$12,100,ROW())<>\"No Rebate\"),MeasureCalc(Table_PI[[#This Row],[Hide:\nFormula Name]],Table_SummaryPI[[#This Row],[Quantity]],Table_PI[[#This Row],[List 1]],Table_PI[[#This Row],[List 2]],Table_PI[[#This Row],[List 3]],Table_PI[[#This Row],[Size]],Table_PI[[#This Row],[Input 1]],Table_PI[[#This Row],[Input 2]],Table_PI[[#This Row],[Input 3]],Table_PI[[#This Row],[Input 4]],'Customer Information'!$AR$12,100,ROW()),\"\"),\"\")","v":""},{"$f":"IF(Table_PI[[#This Row],[Input 1]]<>\"\",Table_PI[[#This Row],[Input 1]],\"\")","v":""},null,{"$f":"IFERROR(IF(AND(MeasureCalc(Table_PI[[#This Row],[Hide:\nFormula Name]],Table_SummaryPI[[#This Row],[Quantity]],Table_PI[[#This Row],[List 1]],Table_PI[[#This Row],[List 2]],Table_PI[[#This Row],[List 3]],Table_PI[[#This Row],[Size]],Table_PI[[#This Row],[Input 1]],Table_PI[[#This Row],[Input 2]],Table_PI[[#This Row],[Input 3]],Table_PI[[#This Row],[Input 4]],'Customer Information'!$AR$12,101,ROW())<>0,MeasureCalc(Table_PI[[#This Row],[Hide:\nFormula Name]],Table_SummaryPI[[#This Row],[Quantity]],Table_PI[[#This Row],[List 1]],Table_PI[[#This Row],[List 2]],Table_PI[[#This Row],[List 3]],Table_PI[[#This Row],[Size]],Table_PI[[#This Row],[Input 1]],Table_PI[[#This Row],[Input 2]],Table_PI[[#This Row],[Input 3]],Table_PI[[#This Row],[Input 4]],'Customer Information'!$AR$12,101,ROW())<>\"No Rebate\"),MeasureCalc(Table_PI[[#This Row],[Hide:\nFormula Name]],Table_SummaryPI[[#This Row],[Quantity]],Table_PI[[#This Row],[List 1]],Table_PI[[#This Row],[List 2]],Table_PI[[#This Row],[List 3]],Table_PI[[#This Row],[Size]],Table_PI[[#This Row],[Input 1]],Table_PI[[#This Row],[Input 2]],Table_PI[[#This Row],[Input 3]],Table_PI[[#This Row],[Input 4]],'Customer Information'!$AR$12,101,ROW()),\"\"),\"\")","v":""},{"$f":"IF(Table_PI[[#This Row],[Input 2]]<>\"\",Table_PI[[#This Row],[Input 2]],\"\")","v":""},null,{"$f":"IFERROR(IF(AND(MeasureCalc(Table_PI[[#This Row],[Hide:\nFormula Name]],Table_SummaryPI[[#This Row],[Quantity]],Table_PI[[#This Row],[List 1]],Table_PI[[#This Row],[List 2]],Table_PI[[#This Row],[List 3]],Table_PI[[#This Row],[Size]],Table_PI[[#This Row],[Input 1]],Table_PI[[#This Row],[Input 2]],Table_PI[[#This Row],[Input 3]],Table_PI[[#This Row],[Input 4]],'Customer Information'!$AR$12,102,ROW())<>0,MeasureCalc(Table_PI[[#This Row],[Hide:\nFormula Name]],Table_SummaryPI[[#This Row],[Quantity]],Table_PI[[#This Row],[List 1]],Table_PI[[#This Row],[List 2]],Table_PI[[#This Row],[List 3]],Table_PI[[#This Row],[Size]],Table_PI[[#This Row],[Input 1]],Table_PI[[#This Row],[Input 2]],Table_PI[[#This Row],[Input 3]],Table_PI[[#This Row],[Input 4]],'Customer Information'!$AR$12,102,ROW())<>\"No Rebate\"),MeasureCalc(Table_PI[[#This Row],[Hide:\nFormula Name]],Table_SummaryPI[[#This Row],[Quantity]],Table_PI[[#This Row],[List 1]],Table_PI[[#This Row],[List 2]],Table_PI[[#This Row],[List 3]],Table_PI[[#This Row],[Size]],Table_PI[[#This Row],[Input 1]],Table_PI[[#This Row],[Input 2]],Table_PI[[#This Row],[Input 3]],Table_PI[[#This Row],[Input 4]],'Customer Information'!$AR$12,102,ROW()),\"\"),\"\")","v":""},{"$f":"IF(Table_PI[[#This Row],[Input 3]]<>\"\",Table_PI[[#This Row],[Input 3]],\"\")","v":""},null,{"$f":"IFERROR(IF(AND(MeasureCalc(Table_PI[[#This Row],[Hide:\nFormula Name]],Table_SummaryPI[[#This Row],[Quantity]],Table_PI[[#This Row],[List 1]],Table_PI[[#This Row],[List 2]],Table_PI[[#This Row],[List 3]],Table_PI[[#This Row],[Size]],Table_PI[[#This Row],[Input 1]],Table_PI[[#This Row],[Input 2]],Table_PI[[#This Row],[Input 3]],Table_PI[[#This Row],[Input 4]],'Customer Information'!$AR$12,103,ROW())<>0,MeasureCalc(Table_PI[[#This Row],[Hide:\nFormula Name]],Table_SummaryPI[[#This Row],[Quantity]],Table_PI[[#This Row],[List 1]],Table_PI[[#This Row],[List 2]],Table_PI[[#This Row],[List 3]],Table_PI[[#This Row],[Size]],Table_PI[[#This Row],[Input 1]],Table_PI[[#This Row],[Input 2]],Table_PI[[#This Row],[Input 3]],Table_PI[[#This Row],[Input 4]],'Customer Information'!$AR$12,103,ROW())<>\"No Rebate\"),MeasureCalc(Table_PI[[#This Row],[Hide:\nFormula Name]],Table_SummaryPI[[#This Row],[Quantity]],Table_PI[[#This Row],[List 1]],Table_PI[[#This Row],[List 2]],Table_PI[[#This Row],[List 3]],Table_PI[[#This Row],[Size]],Table_PI[[#This Row],[Input 1]],Table_PI[[#This Row],[Input 2]],Table_PI[[#This Row],[Input 3]],Table_PI[[#This Row],[Input 4]],'Customer Information'!$AR$12,103,ROW()),\"\"),\"\")","v":""},{"$f":"IF(Table_PI[[#This Row],[Input 4]]<>\"\",Table_PI[[#This Row],[Input 4]],\"\")","v":""},{"$f":"IF(Table_PI[[#This Row],[Quantity]]=\"\",\"\",Table_PI[[#This Row],[Quantity]])","v":""},{"$f":"IF(Table_PI[[#This Row],[Notes]]=\"\",\"\",Table_PI[[#This Row],[Notes]])","v":""},{"$f":"IF(OR(Table_PI[[#This Row],[Hide:\nBaseline kWh]]=\"\",Table_PI[[#This Row],[Hide:\nBaseline kWh]]=0),\"\",Table_PI[[#This Row],[Hide:\nBaseline kWh]])","v":""},{"$f":"IF(OR(Table_PI[[#This Row],[Hide:\nBaseline kW]]=\"\",Table_PI[[#This Row],[Hide:\nBaseline kW]]=0),\"\",Table_PI[[#This Row],[Hide:\nBaseline kW]])","v":""},{"$f":"IF(OR(Table_PI[[#This Row],[Hide:\nProposed kWh]]=\"\",Table_PI[[#This Row],[Hide:\nProposed kWh]]=0),\"\",Table_PI[[#This Row],[Hide:\nProposed kWh]])","v":""},{"$f":"IF(OR(Table_PI[[#This Row],[Hide:\nProposed kW]]=\"\",Table_PI[[#This Row],[Hide:\nProposed kW]]=0),\"\",Table_PI[[#This Row],[Hide:\nProposed kW]])","v":""},{"$f":"IF(OR(Table_PI[[#This Row],[Rebate]]=\"\",Table_PI[[#This Row],[Rebate]]=0),\"\",Table_PI[[#This Row],[Rebate]])","v":""},{"$f":"IF(OR(Table_PI[[#This Row],[Hide:\nIncremental Cost]]=\"\",Table_PI[[#This Row],[Hide:\nIncremental Cost]]=0),\"\",Table_PI[[#This Row],[Hide:\nIncremental Cost]])","v":""},{"$f":"IFERROR(IF(Table_SummaryPI[[#This Row],[kWhSavings]]=\"\",\"\",ROUND(Table_SummaryPI[[#This Row],[kWhSavings]]/$AG$401*'Customer Information'!$BC$17,2)),0)","v":""},{"$f":"IF(OR(Table_PI[[#This Row],[Annual kWh]]=\"\",Table_PI[[#This Row],[Annual kWh]]=0),\"\",Table_PI[[#This Row],[Annual kWh]])","v":""},{"$f":"IF(OR(Table_PI[[#This Row],[Peak kW]]=\"\",Table_PI[[#This Row],[Peak kW]]=0),\"\",Table_PI[[#This Row],[Peak kW]])","v":""},{"$f":"IFERROR(IF(Table_SummaryPI[[#This Row],[kWhSavings]]=\"\",\"\",$AU$9*Table_SummaryPI[[#This Row],[kWhSavings]]),0)","v":""},{"$f":"IFERROR(IF(Table_SummaryPI[[#This Row],[kWhSavings]]=\"\",\"\",$AU$14*Table_SummaryPI[[#This Row],[kWhSavings]]),0)","v":""},{"$f":"IFERROR(IF(Table_SummaryPI[[#This Row],[kWhSavings]]=\"\",\"\",$AU$18*Table_SummaryPI[[#This Row],[kWhSavings]]),0)","v":""},{"$f":"IFERROR(IF(Table_SummaryPI[[#This Row],[kWhSavings]]=\"\",\"\",$AU$22*Table_SummaryPI[[#This Row],[kWhSavings]]),0)","v":""},{"$f":"IFERROR(IF(MeasureCalc(Table_PI[[#This Row],[Hide:\nFormula Name]],Table_SummaryPI[[#This Row],[Quantity]],Table_PI[[#This Row],[List 1]],Table_PI[[#This Row],[List 2]],Table_PI[[#This Row],[List 3]],Table_PI[[#This Row],[Size]],Table_PI[[#This Row],[Input 1]],Table_PI[[#This Row],[Input 2]],Table_PI[[#This Row],[Input 3]],Table_PI[[#This Row],[Input 4]],'Customer Information'!$AR$12,200,ROW())<>\"No Rebate\",MeasureCalc(Table_PI[[#This Row],[Hide:\nFormula Name]],Table_SummaryPI[[#This Row],[Quantity]],Table_PI[[#This Row],[List 1]],Table_PI[[#This Row],[List 2]],Table_PI[[#This Row],[List 3]],Table_PI[[#This Row],[Size]],Table_PI[[#This Row],[Input 1]],Table_PI[[#This Row],[Input 2]],Table_PI[[#This Row],[Input 3]],Table_PI[[#This Row],[Input 4]],'Customer Information'!$AR$12,200,ROW()),\"\"),\"\")","v":""},{"$f":"IFERROR(IF(MeasureCalc(Table_PI[[#This Row],[Hide:\nFormula Name]],Table_SummaryPI[[#This Row],[Quantity]],Table_PI[[#This Row],[List 1]],Table_PI[[#This Row],[List 2]],Table_PI[[#This Row],[List 3]],Table_PI[[#This Row],[Size]],Table_PI[[#This Row],[Input 1]],Table_PI[[#This Row],[Input 2]],Table_PI[[#This Row],[Input 3]],Table_PI[[#This Row],[Input 4]],'Customer Information'!$AR$12,201,ROW())<>\"No Rebate\",MeasureCalc(Table_PI[[#This Row],[Hide:\nFormula Name]],Table_SummaryPI[[#This Row],[Quantity]],Table_PI[[#This Row],[List 1]],Table_PI[[#This Row],[List 2]],Table_PI[[#This Row],[List 3]],Table_PI[[#This Row],[Size]],Table_PI[[#This Row],[Input 1]],Table_PI[[#This Row],[Input 2]],Table_PI[[#This Row],[Input 3]],Table_PI[[#This Row],[Input 4]],'Customer Information'!$AR$12,201,ROW()),\"\"),\"\")","v":""}]
[{"$f":"Table_PI[[#This Row],[Line No.]]","v":""},{"$f":"IF(Table_SummaryPI[[#This Row],[MeassureCategory]]<>\"\",CONCATENATE(Table_SummaryPI[[#This Row],[MeassureCategory]],  \" - \", Table_SummaryPI[[#This Row],[ProposedMeasureCategory]],  \" - \", TEXT(Table_SummaryPI[[#This Row],[Size]],\"#,##0.00\"),\" \",Table_SummaryPI[[#This Row],[SizeUnit]]),\"\")","v":""},{"$f":"SUBSTITUTE(Table_PI[[#This Row],[Measure]],\"     \",\"\",1)","v":""},{"$f":"IF(Table_PI[[#This Row],[List 1]]<>\"\",Table_PI[[#This Row],[List 1]],\"\")","v":""},{"$f":"IF(Table_PI[[#This Row],[List 2]]<>\"\",Table_PI[[#This Row],[List 2]],\"\")","v":""},{"$f":"IF(Table_PI[[#This Row],[List 3]]<>\"\",Table_PI[[#This Row],[List 3]],\"\")","v":""},{"$f":"IF(Table_PI[[#This Row],[Manufacturer]]=\"\",\"\",Table_PI[[#This Row],[Manufacturer]])","v":""},{"$f":"IF(Table_PI[[#This Row],[Model Number]]=\"\",\"\",Table_PI[[#This Row],[Model Number]])","v":""},{"$f":"IF(Table_PI[[#This Row],[Serial Number(s)]]=\"\",\"\",Table_PI[[#This Row],[Serial Number(s)]])","v":""},null,{"$f":"IF(Table_PI[[#This Row],[Size]]=\"\",\"\",Table_PI[[#This Row],[Size]])","v":""},null,{"$f":"IFERROR(IF(AND(MeasureCalc(Table_PI[[#This Row],[Hide:\nFormula Name]],Table_SummaryPI[[#This Row],[Quantity]],Table_PI[[#This Row],[List 1]],Table_PI[[#This Row],[List 2]],Table_PI[[#This Row],[List 3]],Table_PI[[#This Row],[Size]],Table_PI[[#This Row],[Input 1]],Table_PI[[#This Row],[Input 2]],Table_PI[[#This Row],[Input 3]],Table_PI[[#This Row],[Input 4]],'Customer Information'!$AR$12,100,ROW())<>0,MeasureCalc(Table_PI[[#This Row],[Hide:\nFormula Name]],Table_SummaryPI[[#This Row],[Quantity]],Table_PI[[#This Row],[List 1]],Table_PI[[#This Row],[List 2]],Table_PI[[#This Row],[List 3]],Table_PI[[#This Row],[Size]],Table_PI[[#This Row],[Input 1]],Table_PI[[#This Row],[Input 2]],Table_PI[[#This Row],[Input 3]],Table_PI[[#This Row],[Input 4]],'Customer Information'!$AR$12,100,ROW())<>\"No Rebate\"),MeasureCalc(Table_PI[[#This Row],[Hide:\nFormula Name]],Table_SummaryPI[[#This Row],[Quantity]],Table_PI[[#This Row],[List 1]],Table_PI[[#This Row],[List 2]],Table_PI[[#This Row],[List 3]],Table_PI[[#This Row],[Size]],Table_PI[[#This Row],[Input 1]],Table_PI[[#This Row],[Input 2]],Table_PI[[#This Row],[Input 3]],Table_PI[[#This Row],[Input 4]],'Customer Information'!$AR$12,100,ROW()),\"\"),\"\")","v":""},{"$f":"IF(Table_PI[[#This Row],[Input 1]]<>\"\",Table_PI[[#This Row],[Input 1]],\"\")","v":""},null,{"$f":"IFERROR(IF(AND(MeasureCalc(Table_PI[[#This Row],[Hide:\nFormula Name]],Table_SummaryPI[[#This Row],[Quantity]],Table_PI[[#This Row],[List 1]],Table_PI[[#This Row],[List 2]],Table_PI[[#This Row],[List 3]],Table_PI[[#This Row],[Size]],Table_PI[[#This Row],[Input 1]],Table_PI[[#This Row],[Input 2]],Table_PI[[#This Row],[Input 3]],Table_PI[[#This Row],[Input 4]],'Customer Information'!$AR$12,101,ROW())<>0,MeasureCalc(Table_PI[[#This Row],[Hide:\nFormula Name]],Table_SummaryPI[[#This Row],[Quantity]],Table_PI[[#This Row],[List 1]],Table_PI[[#This Row],[List 2]],Table_PI[[#This Row],[List 3]],Table_PI[[#This Row],[Size]],Table_PI[[#This Row],[Input 1]],Table_PI[[#This Row],[Input 2]],Table_PI[[#This Row],[Input 3]],Table_PI[[#This Row],[Input 4]],'Customer Information'!$AR$12,101,ROW())<>\"No Rebate\"),MeasureCalc(Table_PI[[#This Row],[Hide:\nFormula Name]],Table_SummaryPI[[#This Row],[Quantity]],Table_PI[[#This Row],[List 1]],Table_PI[[#This Row],[List 2]],Table_PI[[#This Row],[List 3]],Table_PI[[#This Row],[Size]],Table_PI[[#This Row],[Input 1]],Table_PI[[#This Row],[Input 2]],Table_PI[[#This Row],[Input 3]],Table_PI[[#This Row],[Input 4]],'Customer Information'!$AR$12,101,ROW()),\"\"),\"\")","v":""},{"$f":"IF(Table_PI[[#This Row],[Input 2]]<>\"\",Table_PI[[#This Row],[Input 2]],\"\")","v":""},null,{"$f":"IFERROR(IF(AND(MeasureCalc(Table_PI[[#This Row],[Hide:\nFormula Name]],Table_SummaryPI[[#This Row],[Quantity]],Table_PI[[#This Row],[List 1]],Table_PI[[#This Row],[List 2]],Table_PI[[#This Row],[List 3]],Table_PI[[#This Row],[Size]],Table_PI[[#This Row],[Input 1]],Table_PI[[#This Row],[Input 2]],Table_PI[[#This Row],[Input 3]],Table_PI[[#This Row],[Input 4]],'Customer Information'!$AR$12,102,ROW())<>0,MeasureCalc(Table_PI[[#This Row],[Hide:\nFormula Name]],Table_SummaryPI[[#This Row],[Quantity]],Table_PI[[#This Row],[List 1]],Table_PI[[#This Row],[List 2]],Table_PI[[#This Row],[List 3]],Table_PI[[#This Row],[Size]],Table_PI[[#This Row],[Input 1]],Table_PI[[#This Row],[Input 2]],Table_PI[[#This Row],[Input 3]],Table_PI[[#This Row],[Input 4]],'Customer Information'!$AR$12,102,ROW())<>\"No Rebate\"),MeasureCalc(Table_PI[[#This Row],[Hide:\nFormula Name]],Table_SummaryPI[[#This Row],[Quantity]],Table_PI[[#This Row],[List 1]],Table_PI[[#This Row],[List 2]],Table_PI[[#This Row],[List 3]],Table_PI[[#This Row],[Size]],Table_PI[[#This Row],[Input 1]],Table_PI[[#This Row],[Input 2]],Table_PI[[#This Row],[Input 3]],Table_PI[[#This Row],[Input 4]],'Customer Information'!$AR$12,102,ROW()),\"\"),\"\")","v":""},{"$f":"IF(Table_PI[[#This Row],[Input 3]]<>\"\",Table_PI[[#This Row],[Input 3]],\"\")","v":""},null,{"$f":"IFERROR(IF(AND(MeasureCalc(Table_PI[[#This Row],[Hide:\nFormula Name]],Table_SummaryPI[[#This Row],[Quantity]],Table_PI[[#This Row],[List 1]],Table_PI[[#This Row],[List 2]],Table_PI[[#This Row],[List 3]],Table_PI[[#This Row],[Size]],Table_PI[[#This Row],[Input 1]],Table_PI[[#This Row],[Input 2]],Table_PI[[#This Row],[Input 3]],Table_PI[[#This Row],[Input 4]],'Customer Information'!$AR$12,103,ROW())<>0,MeasureCalc(Table_PI[[#This Row],[Hide:\nFormula Name]],Table_SummaryPI[[#This Row],[Quantity]],Table_PI[[#This Row],[List 1]],Table_PI[[#This Row],[List 2]],Table_PI[[#This Row],[List 3]],Table_PI[[#This Row],[Size]],Table_PI[[#This Row],[Input 1]],Table_PI[[#This Row],[Input 2]],Table_PI[[#This Row],[Input 3]],Table_PI[[#This Row],[Input 4]],'Customer Information'!$AR$12,103,ROW())<>\"No Rebate\"),MeasureCalc(Table_PI[[#This Row],[Hide:\nFormula Name]],Table_SummaryPI[[#This Row],[Quantity]],Table_PI[[#This Row],[List 1]],Table_PI[[#This Row],[List 2]],Table_PI[[#This Row],[List 3]],Table_PI[[#This Row],[Size]],Table_PI[[#This Row],[Input 1]],Table_PI[[#This Row],[Input 2]],Table_PI[[#This Row],[Input 3]],Table_PI[[#This Row],[Input 4]],'Customer Information'!$AR$12,103,ROW()),\"\"),\"\")","v":""},{"$f":"IF(Table_PI[[#This Row],[Input 4]]<>\"\",Table_PI[[#This Row],[Input 4]],\"\")","v":""},{"$f":"IF(Table_PI[[#This Row],[Quantity]]=\"\",\"\",Table_PI[[#This Row],[Quantity]])","v":""},{"$f":"IF(Table_PI[[#This Row],[Notes]]=\"\",\"\",Table_PI[[#This Row],[Notes]])","v":""},{"$f":"IF(OR(Table_PI[[#This Row],[Hide:\nBaseline kWh]]=\"\",Table_PI[[#This Row],[Hide:\nBaseline kWh]]=0),\"\",Table_PI[[#This Row],[Hide:\nBaseline kWh]])","v":""},{"$f":"IF(OR(Table_PI[[#This Row],[Hide:\nBaseline kW]]=\"\",Table_PI[[#This Row],[Hide:\nBaseline kW]]=0),\"\",Table_PI[[#This Row],[Hide:\nBaseline kW]])","v":""},{"$f":"IF(OR(Table_PI[[#This Row],[Hide:\nProposed kWh]]=\"\",Table_PI[[#This Row],[Hide:\nProposed kWh]]=0),\"\",Table_PI[[#This Row],[Hide:\nProposed kWh]])","v":""},{"$f":"IF(OR(Table_PI[[#This Row],[Hide:\nProposed kW]]=\"\",Table_PI[[#This Row],[Hide:\nProposed kW]]=0),\"\",Table_PI[[#This Row],[Hide:\nProposed kW]])","v":""},{"$f":"IF(OR(Table_PI[[#This Row],[Rebate]]=\"\",Table_PI[[#This Row],[Rebate]]=0),\"\",Table_PI[[#This Row],[Rebate]])","v":""},{"$f":"IF(OR(Table_PI[[#This Row],[Hide:\nIncremental Cost]]=\"\",Table_PI[[#This Row],[Hide:\nIncremental Cost]]=0),\"\",Table_PI[[#This Row],[Hide:\nIncremental Cost]])","v":""},{"$f":"IFERROR(IF(Table_SummaryPI[[#This Row],[kWhSavings]]=\"\",\"\",ROUND(Table_SummaryPI[[#This Row],[kWhSavings]]/$AG$401*'Customer Information'!$BC$17,2)),0)","v":""},{"$f":"IF(OR(Table_PI[[#This Row],[Annual kWh]]=\"\",Table_PI[[#This Row],[Annual kWh]]=0),\"\",Table_PI[[#This Row],[Annual kWh]])","v":""},{"$f":"IF(OR(Table_PI[[#This Row],[Peak kW]]=\"\",Table_PI[[#This Row],[Peak kW]]=0),\"\",Table_PI[[#This Row],[Peak kW]])","v":""},{"$f":"IFERROR(IF(Table_SummaryPI[[#This Row],[kWhSavings]]=\"\",\"\",$AU$9*Table_SummaryPI[[#This Row],[kWhSavings]]),0)","v":""},{"$f":"IFERROR(IF(Table_SummaryPI[[#This Row],[kWhSavings]]=\"\",\"\",$AU$14*Table_SummaryPI[[#This Row],[kWhSavings]]),0)","v":""},{"$f":"IFERROR(IF(Table_SummaryPI[[#This Row],[kWhSavings]]=\"\",\"\",$AU$18*Table_SummaryPI[[#This Row],[kWhSavings]]),0)","v":""},{"$f":"IFERROR(IF(Table_SummaryPI[[#This Row],[kWhSavings]]=\"\",\"\",$AU$22*Table_SummaryPI[[#This Row],[kWhSavings]]),0)","v":""},{"$f":"IFERROR(IF(MeasureCalc(Table_PI[[#This Row],[Hide:\nFormula Name]],Table_SummaryPI[[#This Row],[Quantity]],Table_PI[[#This Row],[List 1]],Table_PI[[#This Row],[List 2]],Table_PI[[#This Row],[List 3]],Table_PI[[#This Row],[Size]],Table_PI[[#This Row],[Input 1]],Table_PI[[#This Row],[Input 2]],Table_PI[[#This Row],[Input 3]],Table_PI[[#This Row],[Input 4]],'Customer Information'!$AR$12,200,ROW())<>\"No Rebate\",MeasureCalc(Table_PI[[#This Row],[Hide:\nFormula Name]],Table_SummaryPI[[#This Row],[Quantity]],Table_PI[[#This Row],[List 1]],Table_PI[[#This Row],[List 2]],Table_PI[[#This Row],[List 3]],Table_PI[[#This Row],[Size]],Table_PI[[#This Row],[Input 1]],Table_PI[[#This Row],[Input 2]],Table_PI[[#This Row],[Input 3]],Table_PI[[#This Row],[Input 4]],'Customer Information'!$AR$12,200,ROW()),\"\"),\"\")","v":""},{"$f":"IFERROR(IF(MeasureCalc(Table_PI[[#This Row],[Hide:\nFormula Name]],Table_SummaryPI[[#This Row],[Quantity]],Table_PI[[#This Row],[List 1]],Table_PI[[#This Row],[List 2]],Table_PI[[#This Row],[List 3]],Table_PI[[#This Row],[Size]],Table_PI[[#This Row],[Input 1]],Table_PI[[#This Row],[Input 2]],Table_PI[[#This Row],[Input 3]],Table_PI[[#This Row],[Input 4]],'Customer Information'!$AR$12,201,ROW())<>\"No Rebate\",MeasureCalc(Table_PI[[#This Row],[Hide:\nFormula Name]],Table_SummaryPI[[#This Row],[Quantity]],Table_PI[[#This Row],[List 1]],Table_PI[[#This Row],[List 2]],Table_PI[[#This Row],[List 3]],Table_PI[[#This Row],[Size]],Table_PI[[#This Row],[Input 1]],Table_PI[[#This Row],[Input 2]],Table_PI[[#This Row],[Input 3]],Table_PI[[#This Row],[Input 4]],'Customer Information'!$AR$12,201,ROW()),\"\"),\"\")","v":""}]
[{"$f":"Table_PI[[#This Row],[Line No.]]","v":""},{"$f":"IF(Table_SummaryPI[[#This Row],[MeassureCategory]]<>\"\",CONCATENATE(Table_SummaryPI[[#This Row],[MeassureCategory]],  \" - \", Table_SummaryPI[[#This Row],[ProposedMeasureCategory]],  \" - \", TEXT(Table_SummaryPI[[#This Row],[Size]],\"#,##0.00\"),\" \",Table_SummaryPI[[#This Row],[SizeUnit]]),\"\")","v":""},{"$f":"SUBSTITUTE(Table_PI[[#This Row],[Measure]],\"     \",\"\",1)","v":""},{"$f":"IF(Table_PI[[#This Row],[List 1]]<>\"\",Table_PI[[#This Row],[List 1]],\"\")","v":""},{"$f":"IF(Table_PI[[#This Row],[List 2]]<>\"\",Table_PI[[#This Row],[List 2]],\"\")","v":""},{"$f":"IF(Table_PI[[#This Row],[List 3]]<>\"\",Table_PI[[#This Row],[List 3]],\"\")","v":""},{"$f":"IF(Table_PI[[#This Row],[Manufacturer]]=\"\",\"\",Table_PI[[#This Row],[Manufacturer]])","v":""},{"$f":"IF(Table_PI[[#This Row],[Model Number]]=\"\",\"\",Table_PI[[#This Row],[Model Number]])","v":""},{"$f":"IF(Table_PI[[#This Row],[Serial Number(s)]]=\"\",\"\",Table_PI[[#This Row],[Serial Number(s)]])","v":""},null,{"$f":"IF(Table_PI[[#This Row],[Size]]=\"\",\"\",Table_PI[[#This Row],[Size]])","v":""},null,{"$f":"IFERROR(IF(AND(MeasureCalc(Table_PI[[#This Row],[Hide:\nFormula Name]],Table_SummaryPI[[#This Row],[Quantity]],Table_PI[[#This Row],[List 1]],Table_PI[[#This Row],[List 2]],Table_PI[[#This Row],[List 3]],Table_PI[[#This Row],[Size]],Table_PI[[#This Row],[Input 1]],Table_PI[[#This Row],[Input 2]],Table_PI[[#This Row],[Input 3]],Table_PI[[#This Row],[Input 4]],'Customer Information'!$AR$12,100,ROW())<>0,MeasureCalc(Table_PI[[#This Row],[Hide:\nFormula Name]],Table_SummaryPI[[#This Row],[Quantity]],Table_PI[[#This Row],[List 1]],Table_PI[[#This Row],[List 2]],Table_PI[[#This Row],[List 3]],Table_PI[[#This Row],[Size]],Table_PI[[#This Row],[Input 1]],Table_PI[[#This Row],[Input 2]],Table_PI[[#This Row],[Input 3]],Table_PI[[#This Row],[Input 4]],'Customer Information'!$AR$12,100,ROW())<>\"No Rebate\"),MeasureCalc(Table_PI[[#This Row],[Hide:\nFormula Name]],Table_SummaryPI[[#This Row],[Quantity]],Table_PI[[#This Row],[List 1]],Table_PI[[#This Row],[List 2]],Table_PI[[#This Row],[List 3]],Table_PI[[#This Row],[Size]],Table_PI[[#This Row],[Input 1]],Table_PI[[#This Row],[Input 2]],Table_PI[[#This Row],[Input 3]],Table_PI[[#This Row],[Input 4]],'Customer Information'!$AR$12,100,ROW()),\"\"),\"\")","v":""},{"$f":"IF(Table_PI[[#This Row],[Input 1]]<>\"\",Table_PI[[#This Row],[Input 1]],\"\")","v":""},null,{"$f":"IFERROR(IF(AND(MeasureCalc(Table_PI[[#This Row],[Hide:\nFormula Name]],Table_SummaryPI[[#This Row],[Quantity]],Table_PI[[#This Row],[List 1]],Table_PI[[#This Row],[List 2]],Table_PI[[#This Row],[List 3]],Table_PI[[#This Row],[Size]],Table_PI[[#This Row],[Input 1]],Table_PI[[#This Row],[Input 2]],Table_PI[[#This Row],[Input 3]],Table_PI[[#This Row],[Input 4]],'Customer Information'!$AR$12,101,ROW())<>0,MeasureCalc(Table_PI[[#This Row],[Hide:\nFormula Name]],Table_SummaryPI[[#This Row],[Quantity]],Table_PI[[#This Row],[List 1]],Table_PI[[#This Row],[List 2]],Table_PI[[#This Row],[List 3]],Table_PI[[#This Row],[Size]],Table_PI[[#This Row],[Input 1]],Table_PI[[#This Row],[Input 2]],Table_PI[[#This Row],[Input 3]],Table_PI[[#This Row],[Input 4]],'Customer Information'!$AR$12,101,ROW())<>\"No Rebate\"),MeasureCalc(Table_PI[[#This Row],[Hide:\nFormula Name]],Table_SummaryPI[[#This Row],[Quantity]],Table_PI[[#This Row],[List 1]],Table_PI[[#This Row],[List 2]],Table_PI[[#This Row],[List 3]],Table_PI[[#This Row],[Size]],Table_PI[[#This Row],[Input 1]],Table_PI[[#This Row],[Input 2]],Table_PI[[#This Row],[Input 3]],Table_PI[[#This Row],[Input 4]],'Customer Information'!$AR$12,101,ROW()),\"\"),\"\")","v":""},{"$f":"IF(Table_PI[[#This Row],[Input 2]]<>\"\",Table_PI[[#This Row],[Input 2]],\"\")","v":""},null,{"$f":"IFERROR(IF(AND(MeasureCalc(Table_PI[[#This Row],[Hide:\nFormula Name]],Table_SummaryPI[[#This Row],[Quantity]],Table_PI[[#This Row],[List 1]],Table_PI[[#This Row],[List 2]],Table_PI[[#This Row],[List 3]],Table_PI[[#This Row],[Size]],Table_PI[[#This Row],[Input 1]],Table_PI[[#This Row],[Input 2]],Table_PI[[#This Row],[Input 3]],Table_PI[[#This Row],[Input 4]],'Customer Information'!$AR$12,102,ROW())<>0,MeasureCalc(Table_PI[[#This Row],[Hide:\nFormula Name]],Table_SummaryPI[[#This Row],[Quantity]],Table_PI[[#This Row],[List 1]],Table_PI[[#This Row],[List 2]],Table_PI[[#This Row],[List 3]],Table_PI[[#This Row],[Size]],Table_PI[[#This Row],[Input 1]],Table_PI[[#This Row],[Input 2]],Table_PI[[#This Row],[Input 3]],Table_PI[[#This Row],[Input 4]],'Customer Information'!$AR$12,102,ROW())<>\"No Rebate\"),MeasureCalc(Table_PI[[#This Row],[Hide:\nFormula Name]],Table_SummaryPI[[#This Row],[Quantity]],Table_PI[[#This Row],[List 1]],Table_PI[[#This Row],[List 2]],Table_PI[[#This Row],[List 3]],Table_PI[[#This Row],[Size]],Table_PI[[#This Row],[Input 1]],Table_PI[[#This Row],[Input 2]],Table_PI[[#This Row],[Input 3]],Table_PI[[#This Row],[Input 4]],'Customer Information'!$AR$12,102,ROW()),\"\"),\"\")","v":""},{"$f":"IF(Table_PI[[#This Row],[Input 3]]<>\"\",Table_PI[[#This Row],[Input 3]],\"\")","v":""},null,{"$f":"IFERROR(IF(AND(MeasureCalc(Table_PI[[#This Row],[Hide:\nFormula Name]],Table_SummaryPI[[#This Row],[Quantity]],Table_PI[[#This Row],[List 1]],Table_PI[[#This Row],[List 2]],Table_PI[[#This Row],[List 3]],Table_PI[[#This Row],[Size]],Table_PI[[#This Row],[Input 1]],Table_PI[[#This Row],[Input 2]],Table_PI[[#This Row],[Input 3]],Table_PI[[#This Row],[Input 4]],'Customer Information'!$AR$12,103,ROW())<>0,MeasureCalc(Table_PI[[#This Row],[Hide:\nFormula Name]],Table_SummaryPI[[#This Row],[Quantity]],Table_PI[[#This Row],[List 1]],Table_PI[[#This Row],[List 2]],Table_PI[[#This Row],[List 3]],Table_PI[[#This Row],[Size]],Table_PI[[#This Row],[Input 1]],Table_PI[[#This Row],[Input 2]],Table_PI[[#This Row],[Input 3]],Table_PI[[#This Row],[Input 4]],'Customer Information'!$AR$12,103,ROW())<>\"No Rebate\"),MeasureCalc(Table_PI[[#This Row],[Hide:\nFormula Name]],Table_SummaryPI[[#This Row],[Quantity]],Table_PI[[#This Row],[List 1]],Table_PI[[#This Row],[List 2]],Table_PI[[#This Row],[List 3]],Table_PI[[#This Row],[Size]],Table_PI[[#This Row],[Input 1]],Table_PI[[#This Row],[Input 2]],Table_PI[[#This Row],[Input 3]],Table_PI[[#This Row],[Input 4]],'Customer Information'!$AR$12,103,ROW()),\"\"),\"\")","v":""},{"$f":"IF(Table_PI[[#This Row],[Input 4]]<>\"\",Table_PI[[#This Row],[Input 4]],\"\")","v":""},{"$f":"IF(Table_PI[[#This Row],[Quantity]]=\"\",\"\",Table_PI[[#This Row],[Quantity]])","v":""},{"$f":"IF(Table_PI[[#This Row],[Notes]]=\"\",\"\",Table_PI[[#This Row],[Notes]])","v":""},{"$f":"IF(OR(Table_PI[[#This Row],[Hide:\nBaseline kWh]]=\"\",Table_PI[[#This Row],[Hide:\nBaseline kWh]]=0),\"\",Table_PI[[#This Row],[Hide:\nBaseline kWh]])","v":""},{"$f":"IF(OR(Table_PI[[#This Row],[Hide:\nBaseline kW]]=\"\",Table_PI[[#This Row],[Hide:\nBaseline kW]]=0),\"\",Table_PI[[#This Row],[Hide:\nBaseline kW]])","v":""},{"$f":"IF(OR(Table_PI[[#This Row],[Hide:\nProposed kWh]]=\"\",Table_PI[[#This Row],[Hide:\nProposed kWh]]=0),\"\",Table_PI[[#This Row],[Hide:\nProposed kWh]])","v":""},{"$f":"IF(OR(Table_PI[[#This Row],[Hide:\nProposed kW]]=\"\",Table_PI[[#This Row],[Hide:\nProposed kW]]=0),\"\",Table_PI[[#This Row],[Hide:\nProposed kW]])","v":""},{"$f":"IF(OR(Table_PI[[#This Row],[Rebate]]=\"\",Table_PI[[#This Row],[Rebate]]=0),\"\",Table_PI[[#This Row],[Rebate]])","v":""},{"$f":"IF(OR(Table_PI[[#This Row],[Hide:\nIncremental Cost]]=\"\",Table_PI[[#This Row],[Hide:\nIncremental Cost]]=0),\"\",Table_PI[[#This Row],[Hide:\nIncremental Cost]])","v":""},{"$f":"IFERROR(IF(Table_SummaryPI[[#This Row],[kWhSavings]]=\"\",\"\",ROUND(Table_SummaryPI[[#This Row],[kWhSavings]]/$AG$401*'Customer Information'!$BC$17,2)),0)","v":""},{"$f":"IF(OR(Table_PI[[#This Row],[Annual kWh]]=\"\",Table_PI[[#This Row],[Annual kWh]]=0),\"\",Table_PI[[#This Row],[Annual kWh]])","v":""},{"$f":"IF(OR(Table_PI[[#This Row],[Peak kW]]=\"\",Table_PI[[#This Row],[Peak kW]]=0),\"\",Table_PI[[#This Row],[Peak kW]])","v":""},{"$f":"IFERROR(IF(Table_SummaryPI[[#This Row],[kWhSavings]]=\"\",\"\",$AU$9*Table_SummaryPI[[#This Row],[kWhSavings]]),0)","v":""},{"$f":"IFERROR(IF(Table_SummaryPI[[#This Row],[kWhSavings]]=\"\",\"\",$AU$14*Table_SummaryPI[[#This Row],[kWhSavings]]),0)","v":""},{"$f":"IFERROR(IF(Table_SummaryPI[[#This Row],[kWhSavings]]=\"\",\"\",$AU$18*Table_SummaryPI[[#This Row],[kWhSavings]]),0)","v":""},{"$f":"IFERROR(IF(Table_SummaryPI[[#This Row],[kWhSavings]]=\"\",\"\",$AU$22*Table_SummaryPI[[#This Row],[kWhSavings]]),0)","v":""},{"$f":"IFERROR(IF(MeasureCalc(Table_PI[[#This Row],[Hide:\nFormula Name]],Table_SummaryPI[[#This Row],[Quantity]],Table_PI[[#This Row],[List 1]],Table_PI[[#This Row],[List 2]],Table_PI[[#This Row],[List 3]],Table_PI[[#This Row],[Size]],Table_PI[[#This Row],[Input 1]],Table_PI[[#This Row],[Input 2]],Table_PI[[#This Row],[Input 3]],Table_PI[[#This Row],[Input 4]],'Customer Information'!$AR$12,200,ROW())<>\"No Rebate\",MeasureCalc(Table_PI[[#This Row],[Hide:\nFormula Name]],Table_SummaryPI[[#This Row],[Quantity]],Table_PI[[#This Row],[List 1]],Table_PI[[#This Row],[List 2]],Table_PI[[#This Row],[List 3]],Table_PI[[#This Row],[Size]],Table_PI[[#This Row],[Input 1]],Table_PI[[#This Row],[Input 2]],Table_PI[[#This Row],[Input 3]],Table_PI[[#This Row],[Input 4]],'Customer Information'!$AR$12,200,ROW()),\"\"),\"\")","v":""},{"$f":"IFERROR(IF(MeasureCalc(Table_PI[[#This Row],[Hide:\nFormula Name]],Table_SummaryPI[[#This Row],[Quantity]],Table_PI[[#This Row],[List 1]],Table_PI[[#This Row],[List 2]],Table_PI[[#This Row],[List 3]],Table_PI[[#This Row],[Size]],Table_PI[[#This Row],[Input 1]],Table_PI[[#This Row],[Input 2]],Table_PI[[#This Row],[Input 3]],Table_PI[[#This Row],[Input 4]],'Customer Information'!$AR$12,201,ROW())<>\"No Rebate\",MeasureCalc(Table_PI[[#This Row],[Hide:\nFormula Name]],Table_SummaryPI[[#This Row],[Quantity]],Table_PI[[#This Row],[List 1]],Table_PI[[#This Row],[List 2]],Table_PI[[#This Row],[List 3]],Table_PI[[#This Row],[Size]],Table_PI[[#This Row],[Input 1]],Table_PI[[#This Row],[Input 2]],Table_PI[[#This Row],[Input 3]],Table_PI[[#This Row],[Input 4]],'Customer Information'!$AR$12,201,ROW()),\"\"),\"\")","v":""}]
[{"$f":"Table_PI[[#This Row],[Line No.]]","v":""},{"$f":"IF(Table_SummaryPI[[#This Row],[MeassureCategory]]<>\"\",CONCATENATE(Table_SummaryPI[[#This Row],[MeassureCategory]],  \" - \", Table_SummaryPI[[#This Row],[ProposedMeasureCategory]],  \" - \", TEXT(Table_SummaryPI[[#This Row],[Size]],\"#,##0.00\"),\" \",Table_SummaryPI[[#This Row],[SizeUnit]]),\"\")","v":""},{"$f":"SUBSTITUTE(Table_PI[[#This Row],[Measure]],\"     \",\"\",1)","v":""},{"$f":"IF(Table_PI[[#This Row],[List 1]]<>\"\",Table_PI[[#This Row],[List 1]],\"\")","v":""},{"$f":"IF(Table_PI[[#This Row],[List 2]]<>\"\",Table_PI[[#This Row],[List 2]],\"\")","v":""},{"$f":"IF(Table_PI[[#This Row],[List 3]]<>\"\",Table_PI[[#This Row],[List 3]],\"\")","v":""},{"$f":"IF(Table_PI[[#This Row],[Manufacturer]]=\"\",\"\",Table_PI[[#This Row],[Manufacturer]])","v":""},{"$f":"IF(Table_PI[[#This Row],[Model Number]]=\"\",\"\",Table_PI[[#This Row],[Model Number]])","v":""},{"$f":"IF(Table_PI[[#This Row],[Serial Number(s)]]=\"\",\"\",Table_PI[[#This Row],[Serial Number(s)]])","v":""},null,{"$f":"IF(Table_PI[[#This Row],[Size]]=\"\",\"\",Table_PI[[#This Row],[Size]])","v":""},null,{"$f":"IFERROR(IF(AND(MeasureCalc(Table_PI[[#This Row],[Hide:\nFormula Name]],Table_SummaryPI[[#This Row],[Quantity]],Table_PI[[#This Row],[List 1]],Table_PI[[#This Row],[List 2]],Table_PI[[#This Row],[List 3]],Table_PI[[#This Row],[Size]],Table_PI[[#This Row],[Input 1]],Table_PI[[#This Row],[Input 2]],Table_PI[[#This Row],[Input 3]],Table_PI[[#This Row],[Input 4]],'Customer Information'!$AR$12,100,ROW())<>0,MeasureCalc(Table_PI[[#This Row],[Hide:\nFormula Name]],Table_SummaryPI[[#This Row],[Quantity]],Table_PI[[#This Row],[List 1]],Table_PI[[#This Row],[List 2]],Table_PI[[#This Row],[List 3]],Table_PI[[#This Row],[Size]],Table_PI[[#This Row],[Input 1]],Table_PI[[#This Row],[Input 2]],Table_PI[[#This Row],[Input 3]],Table_PI[[#This Row],[Input 4]],'Customer Information'!$AR$12,100,ROW())<>\"No Rebate\"),MeasureCalc(Table_PI[[#This Row],[Hide:\nFormula Name]],Table_SummaryPI[[#This Row],[Quantity]],Table_PI[[#This Row],[List 1]],Table_PI[[#This Row],[List 2]],Table_PI[[#This Row],[List 3]],Table_PI[[#This Row],[Size]],Table_PI[[#This Row],[Input 1]],Table_PI[[#This Row],[Input 2]],Table_PI[[#This Row],[Input 3]],Table_PI[[#This Row],[Input 4]],'Customer Information'!$AR$12,100,ROW()),\"\"),\"\")","v":""},{"$f":"IF(Table_PI[[#This Row],[Input 1]]<>\"\",Table_PI[[#This Row],[Input 1]],\"\")","v":""},null,{"$f":"IFERROR(IF(AND(MeasureCalc(Table_PI[[#This Row],[Hide:\nFormula Name]],Table_SummaryPI[[#This Row],[Quantity]],Table_PI[[#This Row],[List 1]],Table_PI[[#This Row],[List 2]],Table_PI[[#This Row],[List 3]],Table_PI[[#This Row],[Size]],Table_PI[[#This Row],[Input 1]],Table_PI[[#This Row],[Input 2]],Table_PI[[#This Row],[Input 3]],Table_PI[[#This Row],[Input 4]],'Customer Information'!$AR$12,101,ROW())<>0,MeasureCalc(Table_PI[[#This Row],[Hide:\nFormula Name]],Table_SummaryPI[[#This Row],[Quantity]],Table_PI[[#This Row],[List 1]],Table_PI[[#This Row],[List 2]],Table_PI[[#This Row],[List 3]],Table_PI[[#This Row],[Size]],Table_PI[[#This Row],[Input 1]],Table_PI[[#This Row],[Input 2]],Table_PI[[#This Row],[Input 3]],Table_PI[[#This Row],[Input 4]],'Customer Information'!$AR$12,101,ROW())<>\"No Rebate\"),MeasureCalc(Table_PI[[#This Row],[Hide:\nFormula Name]],Table_SummaryPI[[#This Row],[Quantity]],Table_PI[[#This Row],[List 1]],Table_PI[[#This Row],[List 2]],Table_PI[[#This Row],[List 3]],Table_PI[[#This Row],[Size]],Table_PI[[#This Row],[Input 1]],Table_PI[[#This Row],[Input 2]],Table_PI[[#This Row],[Input 3]],Table_PI[[#This Row],[Input 4]],'Customer Information'!$AR$12,101,ROW()),\"\"),\"\")","v":""},{"$f":"IF(Table_PI[[#This Row],[Input 2]]<>\"\",Table_PI[[#This Row],[Input 2]],\"\")","v":""},null,{"$f":"IFERROR(IF(AND(MeasureCalc(Table_PI[[#This Row],[Hide:\nFormula Name]],Table_SummaryPI[[#This Row],[Quantity]],Table_PI[[#This Row],[List 1]],Table_PI[[#This Row],[List 2]],Table_PI[[#This Row],[List 3]],Table_PI[[#This Row],[Size]],Table_PI[[#This Row],[Input 1]],Table_PI[[#This Row],[Input 2]],Table_PI[[#This Row],[Input 3]],Table_PI[[#This Row],[Input 4]],'Customer Information'!$AR$12,102,ROW())<>0,MeasureCalc(Table_PI[[#This Row],[Hide:\nFormula Name]],Table_SummaryPI[[#This Row],[Quantity]],Table_PI[[#This Row],[List 1]],Table_PI[[#This Row],[List 2]],Table_PI[[#This Row],[List 3]],Table_PI[[#This Row],[Size]],Table_PI[[#This Row],[Input 1]],Table_PI[[#This Row],[Input 2]],Table_PI[[#This Row],[Input 3]],Table_PI[[#This Row],[Input 4]],'Customer Information'!$AR$12,102,ROW())<>\"No Rebate\"),MeasureCalc(Table_PI[[#This Row],[Hide:\nFormula Name]],Table_SummaryPI[[#This Row],[Quantity]],Table_PI[[#This Row],[List 1]],Table_PI[[#This Row],[List 2]],Table_PI[[#This Row],[List 3]],Table_PI[[#This Row],[Size]],Table_PI[[#This Row],[Input 1]],Table_PI[[#This Row],[Input 2]],Table_PI[[#This Row],[Input 3]],Table_PI[[#This Row],[Input 4]],'Customer Information'!$AR$12,102,ROW()),\"\"),\"\")","v":""},{"$f":"IF(Table_PI[[#This Row],[Input 3]]<>\"\",Table_PI[[#This Row],[Input 3]],\"\")","v":""},null,{"$f":"IFERROR(IF(AND(MeasureCalc(Table_PI[[#This Row],[Hide:\nFormula Name]],Table_SummaryPI[[#This Row],[Quantity]],Table_PI[[#This Row],[List 1]],Table_PI[[#This Row],[List 2]],Table_PI[[#This Row],[List 3]],Table_PI[[#This Row],[Size]],Table_PI[[#This Row],[Input 1]],Table_PI[[#This Row],[Input 2]],Table_PI[[#This Row],[Input 3]],Table_PI[[#This Row],[Input 4]],'Customer Information'!$AR$12,103,ROW())<>0,MeasureCalc(Table_PI[[#This Row],[Hide:\nFormula Name]],Table_SummaryPI[[#This Row],[Quantity]],Table_PI[[#This Row],[List 1]],Table_PI[[#This Row],[List 2]],Table_PI[[#This Row],[List 3]],Table_PI[[#This Row],[Size]],Table_PI[[#This Row],[Input 1]],Table_PI[[#This Row],[Input 2]],Table_PI[[#This Row],[Input 3]],Table_PI[[#This Row],[Input 4]],'Customer Information'!$AR$12,103,ROW())<>\"No Rebate\"),MeasureCalc(Table_PI[[#This Row],[Hide:\nFormula Name]],Table_SummaryPI[[#This Row],[Quantity]],Table_PI[[#This Row],[List 1]],Table_PI[[#This Row],[List 2]],Table_PI[[#This Row],[List 3]],Table_PI[[#This Row],[Size]],Table_PI[[#This Row],[Input 1]],Table_PI[[#This Row],[Input 2]],Table_PI[[#This Row],[Input 3]],Table_PI[[#This Row],[Input 4]],'Customer Information'!$AR$12,103,ROW()),\"\"),\"\")","v":""},{"$f":"IF(Table_PI[[#This Row],[Input 4]]<>\"\",Table_PI[[#This Row],[Input 4]],\"\")","v":""},{"$f":"IF(Table_PI[[#This Row],[Quantity]]=\"\",\"\",Table_PI[[#This Row],[Quantity]])","v":""},{"$f":"IF(Table_PI[[#This Row],[Notes]]=\"\",\"\",Table_PI[[#This Row],[Notes]])","v":""},{"$f":"IF(OR(Table_PI[[#This Row],[Hide:\nBaseline kWh]]=\"\",Table_PI[[#This Row],[Hide:\nBaseline kWh]]=0),\"\",Table_PI[[#This Row],[Hide:\nBaseline kWh]])","v":""},{"$f":"IF(OR(Table_PI[[#This Row],[Hide:\nBaseline kW]]=\"\",Table_PI[[#This Row],[Hide:\nBaseline kW]]=0),\"\",Table_PI[[#This Row],[Hide:\nBaseline kW]])","v":""},{"$f":"IF(OR(Table_PI[[#This Row],[Hide:\nProposed kWh]]=\"\",Table_PI[[#This Row],[Hide:\nProposed kWh]]=0),\"\",Table_PI[[#This Row],[Hide:\nProposed kWh]])","v":""},{"$f":"IF(OR(Table_PI[[#This Row],[Hide:\nProposed kW]]=\"\",Table_PI[[#This Row],[Hide:\nProposed kW]]=0),\"\",Table_PI[[#This Row],[Hide:\nProposed kW]])","v":""},{"$f":"IF(OR(Table_PI[[#This Row],[Rebate]]=\"\",Table_PI[[#This Row],[Rebate]]=0),\"\",Table_PI[[#This Row],[Rebate]])","v":""},{"$f":"IF(OR(Table_PI[[#This Row],[Hide:\nIncremental Cost]]=\"\",Table_PI[[#This Row],[Hide:\nIncremental Cost]]=0),\"\",Table_PI[[#This Row],[Hide:\nIncremental Cost]])","v":""},{"$f":"IFERROR(IF(Table_SummaryPI[[#This Row],[kWhSavings]]=\"\",\"\",ROUND(Table_SummaryPI[[#This Row],[kWhSavings]]/$AG$401*'Customer Information'!$BC$17,2)),0)","v":""},{"$f":"IF(OR(Table_PI[[#This Row],[Annual kWh]]=\"\",Table_PI[[#This Row],[Annual kWh]]=0),\"\",Table_PI[[#This Row],[Annual kWh]])","v":""},{"$f":"IF(OR(Table_PI[[#This Row],[Peak kW]]=\"\",Table_PI[[#This Row],[Peak kW]]=0),\"\",Table_PI[[#This Row],[Peak kW]])","v":""},{"$f":"IFERROR(IF(Table_SummaryPI[[#This Row],[kWhSavings]]=\"\",\"\",$AU$9*Table_SummaryPI[[#This Row],[kWhSavings]]),0)","v":""},{"$f":"IFERROR(IF(Table_SummaryPI[[#This Row],[kWhSavings]]=\"\",\"\",$AU$14*Table_SummaryPI[[#This Row],[kWhSavings]]),0)","v":""},{"$f":"IFERROR(IF(Table_SummaryPI[[#This Row],[kWhSavings]]=\"\",\"\",$AU$18*Table_SummaryPI[[#This Row],[kWhSavings]]),0)","v":""},{"$f":"IFERROR(IF(Table_SummaryPI[[#This Row],[kWhSavings]]=\"\",\"\",$AU$22*Table_SummaryPI[[#This Row],[kWhSavings]]),0)","v":""},{"$f":"IFERROR(IF(MeasureCalc(Table_PI[[#This Row],[Hide:\nFormula Name]],Table_SummaryPI[[#This Row],[Quantity]],Table_PI[[#This Row],[List 1]],Table_PI[[#This Row],[List 2]],Table_PI[[#This Row],[List 3]],Table_PI[[#This Row],[Size]],Table_PI[[#This Row],[Input 1]],Table_PI[[#This Row],[Input 2]],Table_PI[[#This Row],[Input 3]],Table_PI[[#This Row],[Input 4]],'Customer Information'!$AR$12,200,ROW())<>\"No Rebate\",MeasureCalc(Table_PI[[#This Row],[Hide:\nFormula Name]],Table_SummaryPI[[#This Row],[Quantity]],Table_PI[[#This Row],[List 1]],Table_PI[[#This Row],[List 2]],Table_PI[[#This Row],[List 3]],Table_PI[[#This Row],[Size]],Table_PI[[#This Row],[Input 1]],Table_PI[[#This Row],[Input 2]],Table_PI[[#This Row],[Input 3]],Table_PI[[#This Row],[Input 4]],'Customer Information'!$AR$12,200,ROW()),\"\"),\"\")","v":""},{"$f":"IFERROR(IF(MeasureCalc(Table_PI[[#This Row],[Hide:\nFormula Name]],Table_SummaryPI[[#This Row],[Quantity]],Table_PI[[#This Row],[List 1]],Table_PI[[#This Row],[List 2]],Table_PI[[#This Row],[List 3]],Table_PI[[#This Row],[Size]],Table_PI[[#This Row],[Input 1]],Table_PI[[#This Row],[Input 2]],Table_PI[[#This Row],[Input 3]],Table_PI[[#This Row],[Input 4]],'Customer Information'!$AR$12,201,ROW())<>\"No Rebate\",MeasureCalc(Table_PI[[#This Row],[Hide:\nFormula Name]],Table_SummaryPI[[#This Row],[Quantity]],Table_PI[[#This Row],[List 1]],Table_PI[[#This Row],[List 2]],Table_PI[[#This Row],[List 3]],Table_PI[[#This Row],[Size]],Table_PI[[#This Row],[Input 1]],Table_PI[[#This Row],[Input 2]],Table_PI[[#This Row],[Input 3]],Table_PI[[#This Row],[Input 4]],'Customer Information'!$AR$12,201,ROW()),\"\"),\"\")","v":""}]
[{"$f":"Table_PI[[#This Row],[Line No.]]","v":""},{"$f":"IF(Table_SummaryPI[[#This Row],[MeassureCategory]]<>\"\",CONCATENATE(Table_SummaryPI[[#This Row],[MeassureCategory]],  \" - \", Table_SummaryPI[[#This Row],[ProposedMeasureCategory]],  \" - \", TEXT(Table_SummaryPI[[#This Row],[Size]],\"#,##0.00\"),\" \",Table_SummaryPI[[#This Row],[SizeUnit]]),\"\")","v":""},{"$f":"SUBSTITUTE(Table_PI[[#This Row],[Measure]],\"     \",\"\",1)","v":""},{"$f":"IF(Table_PI[[#This Row],[List 1]]<>\"\",Table_PI[[#This Row],[List 1]],\"\")","v":""},{"$f":"IF(Table_PI[[#This Row],[List 2]]<>\"\",Table_PI[[#This Row],[List 2]],\"\")","v":""},{"$f":"IF(Table_PI[[#This Row],[List 3]]<>\"\",Table_PI[[#This Row],[List 3]],\"\")","v":""},{"$f":"IF(Table_PI[[#This Row],[Manufacturer]]=\"\",\"\",Table_PI[[#This Row],[Manufacturer]])","v":""},{"$f":"IF(Table_PI[[#This Row],[Model Number]]=\"\",\"\",Table_PI[[#This Row],[Model Number]])","v":""},{"$f":"IF(Table_PI[[#This Row],[Serial Number(s)]]=\"\",\"\",Table_PI[[#This Row],[Serial Number(s)]])","v":""},null,{"$f":"IF(Table_PI[[#This Row],[Size]]=\"\",\"\",Table_PI[[#This Row],[Size]])","v":""},null,{"$f":"IFERROR(IF(AND(MeasureCalc(Table_PI[[#This Row],[Hide:\nFormula Name]],Table_SummaryPI[[#This Row],[Quantity]],Table_PI[[#This Row],[List 1]],Table_PI[[#This Row],[List 2]],Table_PI[[#This Row],[List 3]],Table_PI[[#This Row],[Size]],Table_PI[[#This Row],[Input 1]],Table_PI[[#This Row],[Input 2]],Table_PI[[#This Row],[Input 3]],Table_PI[[#This Row],[Input 4]],'Customer Information'!$AR$12,100,ROW())<>0,MeasureCalc(Table_PI[[#This Row],[Hide:\nFormula Name]],Table_SummaryPI[[#This Row],[Quantity]],Table_PI[[#This Row],[List 1]],Table_PI[[#This Row],[List 2]],Table_PI[[#This Row],[List 3]],Table_PI[[#This Row],[Size]],Table_PI[[#This Row],[Input 1]],Table_PI[[#This Row],[Input 2]],Table_PI[[#This Row],[Input 3]],Table_PI[[#This Row],[Input 4]],'Customer Information'!$AR$12,100,ROW())<>\"No Rebate\"),MeasureCalc(Table_PI[[#This Row],[Hide:\nFormula Name]],Table_SummaryPI[[#This Row],[Quantity]],Table_PI[[#This Row],[List 1]],Table_PI[[#This Row],[List 2]],Table_PI[[#This Row],[List 3]],Table_PI[[#This Row],[Size]],Table_PI[[#This Row],[Input 1]],Table_PI[[#This Row],[Input 2]],Table_PI[[#This Row],[Input 3]],Table_PI[[#This Row],[Input 4]],'Customer Information'!$AR$12,100,ROW()),\"\"),\"\")","v":""},{"$f":"IF(Table_PI[[#This Row],[Input 1]]<>\"\",Table_PI[[#This Row],[Input 1]],\"\")","v":""},null,{"$f":"IFERROR(IF(AND(MeasureCalc(Table_PI[[#This Row],[Hide:\nFormula Name]],Table_SummaryPI[[#This Row],[Quantity]],Table_PI[[#This Row],[List 1]],Table_PI[[#This Row],[List 2]],Table_PI[[#This Row],[List 3]],Table_PI[[#This Row],[Size]],Table_PI[[#This Row],[Input 1]],Table_PI[[#This Row],[Input 2]],Table_PI[[#This Row],[Input 3]],Table_PI[[#This Row],[Input 4]],'Customer Information'!$AR$12,101,ROW())<>0,MeasureCalc(Table_PI[[#This Row],[Hide:\nFormula Name]],Table_SummaryPI[[#This Row],[Quantity]],Table_PI[[#This Row],[List 1]],Table_PI[[#This Row],[List 2]],Table_PI[[#This Row],[List 3]],Table_PI[[#This Row],[Size]],Table_PI[[#This Row],[Input 1]],Table_PI[[#This Row],[Input 2]],Table_PI[[#This Row],[Input 3]],Table_PI[[#This Row],[Input 4]],'Customer Information'!$AR$12,101,ROW())<>\"No Rebate\"),MeasureCalc(Table_PI[[#This Row],[Hide:\nFormula Name]],Table_SummaryPI[[#This Row],[Quantity]],Table_PI[[#This Row],[List 1]],Table_PI[[#This Row],[List 2]],Table_PI[[#This Row],[List 3]],Table_PI[[#This Row],[Size]],Table_PI[[#This Row],[Input 1]],Table_PI[[#This Row],[Input 2]],Table_PI[[#This Row],[Input 3]],Table_PI[[#This Row],[Input 4]],'Customer Information'!$AR$12,101,ROW()),\"\"),\"\")","v":""},{"$f":"IF(Table_PI[[#This Row],[Input 2]]<>\"\",Table_PI[[#This Row],[Input 2]],\"\")","v":""},null,{"$f":"IFERROR(IF(AND(MeasureCalc(Table_PI[[#This Row],[Hide:\nFormula Name]],Table_SummaryPI[[#This Row],[Quantity]],Table_PI[[#This Row],[List 1]],Table_PI[[#This Row],[List 2]],Table_PI[[#This Row],[List 3]],Table_PI[[#This Row],[Size]],Table_PI[[#This Row],[Input 1]],Table_PI[[#This Row],[Input 2]],Table_PI[[#This Row],[Input 3]],Table_PI[[#This Row],[Input 4]],'Customer Information'!$AR$12,102,ROW())<>0,MeasureCalc(Table_PI[[#This Row],[Hide:\nFormula Name]],Table_SummaryPI[[#This Row],[Quantity]],Table_PI[[#This Row],[List 1]],Table_PI[[#This Row],[List 2]],Table_PI[[#This Row],[List 3]],Table_PI[[#This Row],[Size]],Table_PI[[#This Row],[Input 1]],Table_PI[[#This Row],[Input 2]],Table_PI[[#This Row],[Input 3]],Table_PI[[#This Row],[Input 4]],'Customer Information'!$AR$12,102,ROW())<>\"No Rebate\"),MeasureCalc(Table_PI[[#This Row],[Hide:\nFormula Name]],Table_SummaryPI[[#This Row],[Quantity]],Table_PI[[#This Row],[List 1]],Table_PI[[#This Row],[List 2]],Table_PI[[#This Row],[List 3]],Table_PI[[#This Row],[Size]],Table_PI[[#This Row],[Input 1]],Table_PI[[#This Row],[Input 2]],Table_PI[[#This Row],[Input 3]],Table_PI[[#This Row],[Input 4]],'Customer Information'!$AR$12,102,ROW()),\"\"),\"\")","v":""},{"$f":"IF(Table_PI[[#This Row],[Input 3]]<>\"\",Table_PI[[#This Row],[Input 3]],\"\")","v":""},null,{"$f":"IFERROR(IF(AND(MeasureCalc(Table_PI[[#This Row],[Hide:\nFormula Name]],Table_SummaryPI[[#This Row],[Quantity]],Table_PI[[#This Row],[List 1]],Table_PI[[#This Row],[List 2]],Table_PI[[#This Row],[List 3]],Table_PI[[#This Row],[Size]],Table_PI[[#This Row],[Input 1]],Table_PI[[#This Row],[Input 2]],Table_PI[[#This Row],[Input 3]],Table_PI[[#This Row],[Input 4]],'Customer Information'!$AR$12,103,ROW())<>0,MeasureCalc(Table_PI[[#This Row],[Hide:\nFormula Name]],Table_SummaryPI[[#This Row],[Quantity]],Table_PI[[#This Row],[List 1]],Table_PI[[#This Row],[List 2]],Table_PI[[#This Row],[List 3]],Table_PI[[#This Row],[Size]],Table_PI[[#This Row],[Input 1]],Table_PI[[#This Row],[Input 2]],Table_PI[[#This Row],[Input 3]],Table_PI[[#This Row],[Input 4]],'Customer Information'!$AR$12,103,ROW())<>\"No Rebate\"),MeasureCalc(Table_PI[[#This Row],[Hide:\nFormula Name]],Table_SummaryPI[[#This Row],[Quantity]],Table_PI[[#This Row],[List 1]],Table_PI[[#This Row],[List 2]],Table_PI[[#This Row],[List 3]],Table_PI[[#This Row],[Size]],Table_PI[[#This Row],[Input 1]],Table_PI[[#This Row],[Input 2]],Table_PI[[#This Row],[Input 3]],Table_PI[[#This Row],[Input 4]],'Customer Information'!$AR$12,103,ROW()),\"\"),\"\")","v":""},{"$f":"IF(Table_PI[[#This Row],[Input 4]]<>\"\",Table_PI[[#This Row],[Input 4]],\"\")","v":""},{"$f":"IF(Table_PI[[#This Row],[Quantity]]=\"\",\"\",Table_PI[[#This Row],[Quantity]])","v":""},{"$f":"IF(Table_PI[[#This Row],[Notes]]=\"\",\"\",Table_PI[[#This Row],[Notes]])","v":""},{"$f":"IF(OR(Table_PI[[#This Row],[Hide:\nBaseline kWh]]=\"\",Table_PI[[#This Row],[Hide:\nBaseline kWh]]=0),\"\",Table_PI[[#This Row],[Hide:\nBaseline kWh]])","v":""},{"$f":"IF(OR(Table_PI[[#This Row],[Hide:\nBaseline kW]]=\"\",Table_PI[[#This Row],[Hide:\nBaseline kW]]=0),\"\",Table_PI[[#This Row],[Hide:\nBaseline kW]])","v":""},{"$f":"IF(OR(Table_PI[[#This Row],[Hide:\nProposed kWh]]=\"\",Table_PI[[#This Row],[Hide:\nProposed kWh]]=0),\"\",Table_PI[[#This Row],[Hide:\nProposed kWh]])","v":""},{"$f":"IF(OR(Table_PI[[#This Row],[Hide:\nProposed kW]]=\"\",Table_PI[[#This Row],[Hide:\nProposed kW]]=0),\"\",Table_PI[[#This Row],[Hide:\nProposed kW]])","v":""},{"$f":"IF(OR(Table_PI[[#This Row],[Rebate]]=\"\",Table_PI[[#This Row],[Rebate]]=0),\"\",Table_PI[[#This Row],[Rebate]])","v":""},{"$f":"IF(OR(Table_PI[[#This Row],[Hide:\nIncremental Cost]]=\"\",Table_PI[[#This Row],[Hide:\nIncremental Cost]]=0),\"\",Table_PI[[#This Row],[Hide:\nIncremental Cost]])","v":""},{"$f":"IFERROR(IF(Table_SummaryPI[[#This Row],[kWhSavings]]=\"\",\"\",ROUND(Table_SummaryPI[[#This Row],[kWhSavings]]/$AG$401*'Customer Information'!$BC$17,2)),0)","v":""},{"$f":"IF(OR(Table_PI[[#This Row],[Annual kWh]]=\"\",Table_PI[[#This Row],[Annual kWh]]=0),\"\",Table_PI[[#This Row],[Annual kWh]])","v":""},{"$f":"IF(OR(Table_PI[[#This Row],[Peak kW]]=\"\",Table_PI[[#This Row],[Peak kW]]=0),\"\",Table_PI[[#This Row],[Peak kW]])","v":""},{"$f":"IFERROR(IF(Table_SummaryPI[[#This Row],[kWhSavings]]=\"\",\"\",$AU$9*Table_SummaryPI[[#This Row],[kWhSavings]]),0)","v":""},{"$f":"IFERROR(IF(Table_SummaryPI[[#This Row],[kWhSavings]]=\"\",\"\",$AU$14*Table_SummaryPI[[#This Row],[kWhSavings]]),0)","v":""},{"$f":"IFERROR(IF(Table_SummaryPI[[#This Row],[kWhSavings]]=\"\",\"\",$AU$18*Table_SummaryPI[[#This Row],[kWhSavings]]),0)","v":""},{"$f":"IFERROR(IF(Table_SummaryPI[[#This Row],[kWhSavings]]=\"\",\"\",$AU$22*Table_SummaryPI[[#This Row],[kWhSavings]]),0)","v":""},{"$f":"IFERROR(IF(MeasureCalc(Table_PI[[#This Row],[Hide:\nFormula Name]],Table_SummaryPI[[#This Row],[Quantity]],Table_PI[[#This Row],[List 1]],Table_PI[[#This Row],[List 2]],Table_PI[[#This Row],[List 3]],Table_PI[[#This Row],[Size]],Table_PI[[#This Row],[Input 1]],Table_PI[[#This Row],[Input 2]],Table_PI[[#This Row],[Input 3]],Table_PI[[#This Row],[Input 4]],'Customer Information'!$AR$12,200,ROW())<>\"No Rebate\",MeasureCalc(Table_PI[[#This Row],[Hide:\nFormula Name]],Table_SummaryPI[[#This Row],[Quantity]],Table_PI[[#This Row],[List 1]],Table_PI[[#This Row],[List 2]],Table_PI[[#This Row],[List 3]],Table_PI[[#This Row],[Size]],Table_PI[[#This Row],[Input 1]],Table_PI[[#This Row],[Input 2]],Table_PI[[#This Row],[Input 3]],Table_PI[[#This Row],[Input 4]],'Customer Information'!$AR$12,200,ROW()),\"\"),\"\")","v":""},{"$f":"IFERROR(IF(MeasureCalc(Table_PI[[#This Row],[Hide:\nFormula Name]],Table_SummaryPI[[#This Row],[Quantity]],Table_PI[[#This Row],[List 1]],Table_PI[[#This Row],[List 2]],Table_PI[[#This Row],[List 3]],Table_PI[[#This Row],[Size]],Table_PI[[#This Row],[Input 1]],Table_PI[[#This Row],[Input 2]],Table_PI[[#This Row],[Input 3]],Table_PI[[#This Row],[Input 4]],'Customer Information'!$AR$12,201,ROW())<>\"No Rebate\",MeasureCalc(Table_PI[[#This Row],[Hide:\nFormula Name]],Table_SummaryPI[[#This Row],[Quantity]],Table_PI[[#This Row],[List 1]],Table_PI[[#This Row],[List 2]],Table_PI[[#This Row],[List 3]],Table_PI[[#This Row],[Size]],Table_PI[[#This Row],[Input 1]],Table_PI[[#This Row],[Input 2]],Table_PI[[#This Row],[Input 3]],Table_PI[[#This Row],[Input 4]],'Customer Information'!$AR$12,201,ROW()),\"\"),\"\")","v":""}]
[{"$f":"Table_PI[[#This Row],[Line No.]]","v":""},{"$f":"IF(Table_SummaryPI[[#This Row],[MeassureCategory]]<>\"\",CONCATENATE(Table_SummaryPI[[#This Row],[MeassureCategory]],  \" - \", Table_SummaryPI[[#This Row],[ProposedMeasureCategory]],  \" - \", TEXT(Table_SummaryPI[[#This Row],[Size]],\"#,##0.00\"),\" \",Table_SummaryPI[[#This Row],[SizeUnit]]),\"\")","v":""},{"$f":"SUBSTITUTE(Table_PI[[#This Row],[Measure]],\"     \",\"\",1)","v":""},{"$f":"IF(Table_PI[[#This Row],[List 1]]<>\"\",Table_PI[[#This Row],[List 1]],\"\")","v":""},{"$f":"IF(Table_PI[[#This Row],[List 2]]<>\"\",Table_PI[[#This Row],[List 2]],\"\")","v":""},{"$f":"IF(Table_PI[[#This Row],[List 3]]<>\"\",Table_PI[[#This Row],[List 3]],\"\")","v":""},{"$f":"IF(Table_PI[[#This Row],[Manufacturer]]=\"\",\"\",Table_PI[[#This Row],[Manufacturer]])","v":""},{"$f":"IF(Table_PI[[#This Row],[Model Number]]=\"\",\"\",Table_PI[[#This Row],[Model Number]])","v":""},{"$f":"IF(Table_PI[[#This Row],[Serial Number(s)]]=\"\",\"\",Table_PI[[#This Row],[Serial Number(s)]])","v":""},null,{"$f":"IF(Table_PI[[#This Row],[Size]]=\"\",\"\",Table_PI[[#This Row],[Size]])","v":""},null,{"$f":"IFERROR(IF(AND(MeasureCalc(Table_PI[[#This Row],[Hide:\nFormula Name]],Table_SummaryPI[[#This Row],[Quantity]],Table_PI[[#This Row],[List 1]],Table_PI[[#This Row],[List 2]],Table_PI[[#This Row],[List 3]],Table_PI[[#This Row],[Size]],Table_PI[[#This Row],[Input 1]],Table_PI[[#This Row],[Input 2]],Table_PI[[#This Row],[Input 3]],Table_PI[[#This Row],[Input 4]],'Customer Information'!$AR$12,100,ROW())<>0,MeasureCalc(Table_PI[[#This Row],[Hide:\nFormula Name]],Table_SummaryPI[[#This Row],[Quantity]],Table_PI[[#This Row],[List 1]],Table_PI[[#This Row],[List 2]],Table_PI[[#This Row],[List 3]],Table_PI[[#This Row],[Size]],Table_PI[[#This Row],[Input 1]],Table_PI[[#This Row],[Input 2]],Table_PI[[#This Row],[Input 3]],Table_PI[[#This Row],[Input 4]],'Customer Information'!$AR$12,100,ROW())<>\"No Rebate\"),MeasureCalc(Table_PI[[#This Row],[Hide:\nFormula Name]],Table_SummaryPI[[#This Row],[Quantity]],Table_PI[[#This Row],[List 1]],Table_PI[[#This Row],[List 2]],Table_PI[[#This Row],[List 3]],Table_PI[[#This Row],[Size]],Table_PI[[#This Row],[Input 1]],Table_PI[[#This Row],[Input 2]],Table_PI[[#This Row],[Input 3]],Table_PI[[#This Row],[Input 4]],'Customer Information'!$AR$12,100,ROW()),\"\"),\"\")","v":""},{"$f":"IF(Table_PI[[#This Row],[Input 1]]<>\"\",Table_PI[[#This Row],[Input 1]],\"\")","v":""},null,{"$f":"IFERROR(IF(AND(MeasureCalc(Table_PI[[#This Row],[Hide:\nFormula Name]],Table_SummaryPI[[#This Row],[Quantity]],Table_PI[[#This Row],[List 1]],Table_PI[[#This Row],[List 2]],Table_PI[[#This Row],[List 3]],Table_PI[[#This Row],[Size]],Table_PI[[#This Row],[Input 1]],Table_PI[[#This Row],[Input 2]],Table_PI[[#This Row],[Input 3]],Table_PI[[#This Row],[Input 4]],'Customer Information'!$AR$12,101,ROW())<>0,MeasureCalc(Table_PI[[#This Row],[Hide:\nFormula Name]],Table_SummaryPI[[#This Row],[Quantity]],Table_PI[[#This Row],[List 1]],Table_PI[[#This Row],[List 2]],Table_PI[[#This Row],[List 3]],Table_PI[[#This Row],[Size]],Table_PI[[#This Row],[Input 1]],Table_PI[[#This Row],[Input 2]],Table_PI[[#This Row],[Input 3]],Table_PI[[#This Row],[Input 4]],'Customer Information'!$AR$12,101,ROW())<>\"No Rebate\"),MeasureCalc(Table_PI[[#This Row],[Hide:\nFormula Name]],Table_SummaryPI[[#This Row],[Quantity]],Table_PI[[#This Row],[List 1]],Table_PI[[#This Row],[List 2]],Table_PI[[#This Row],[List 3]],Table_PI[[#This Row],[Size]],Table_PI[[#This Row],[Input 1]],Table_PI[[#This Row],[Input 2]],Table_PI[[#This Row],[Input 3]],Table_PI[[#This Row],[Input 4]],'Customer Information'!$AR$12,101,ROW()),\"\"),\"\")","v":""},{"$f":"IF(Table_PI[[#This Row],[Input 2]]<>\"\",Table_PI[[#This Row],[Input 2]],\"\")","v":""},null,{"$f":"IFERROR(IF(AND(MeasureCalc(Table_PI[[#This Row],[Hide:\nFormula Name]],Table_SummaryPI[[#This Row],[Quantity]],Table_PI[[#This Row],[List 1]],Table_PI[[#This Row],[List 2]],Table_PI[[#This Row],[List 3]],Table_PI[[#This Row],[Size]],Table_PI[[#This Row],[Input 1]],Table_PI[[#This Row],[Input 2]],Table_PI[[#This Row],[Input 3]],Table_PI[[#This Row],[Input 4]],'Customer Information'!$AR$12,102,ROW())<>0,MeasureCalc(Table_PI[[#This Row],[Hide:\nFormula Name]],Table_SummaryPI[[#This Row],[Quantity]],Table_PI[[#This Row],[List 1]],Table_PI[[#This Row],[List 2]],Table_PI[[#This Row],[List 3]],Table_PI[[#This Row],[Size]],Table_PI[[#This Row],[Input 1]],Table_PI[[#This Row],[Input 2]],Table_PI[[#This Row],[Input 3]],Table_PI[[#This Row],[Input 4]],'Customer Information'!$AR$12,102,ROW())<>\"No Rebate\"),MeasureCalc(Table_PI[[#This Row],[Hide:\nFormula Name]],Table_SummaryPI[[#This Row],[Quantity]],Table_PI[[#This Row],[List 1]],Table_PI[[#This Row],[List 2]],Table_PI[[#This Row],[List 3]],Table_PI[[#This Row],[Size]],Table_PI[[#This Row],[Input 1]],Table_PI[[#This Row],[Input 2]],Table_PI[[#This Row],[Input 3]],Table_PI[[#This Row],[Input 4]],'Customer Information'!$AR$12,102,ROW()),\"\"),\"\")","v":""},{"$f":"IF(Table_PI[[#This Row],[Input 3]]<>\"\",Table_PI[[#This Row],[Input 3]],\"\")","v":""},null,{"$f":"IFERROR(IF(AND(MeasureCalc(Table_PI[[#This Row],[Hide:\nFormula Name]],Table_SummaryPI[[#This Row],[Quantity]],Table_PI[[#This Row],[List 1]],Table_PI[[#This Row],[List 2]],Table_PI[[#This Row],[List 3]],Table_PI[[#This Row],[Size]],Table_PI[[#This Row],[Input 1]],Table_PI[[#This Row],[Input 2]],Table_PI[[#This Row],[Input 3]],Table_PI[[#This Row],[Input 4]],'Customer Information'!$AR$12,103,ROW())<>0,MeasureCalc(Table_PI[[#This Row],[Hide:\nFormula Name]],Table_SummaryPI[[#This Row],[Quantity]],Table_PI[[#This Row],[List 1]],Table_PI[[#This Row],[List 2]],Table_PI[[#This Row],[List 3]],Table_PI[[#This Row],[Size]],Table_PI[[#This Row],[Input 1]],Table_PI[[#This Row],[Input 2]],Table_PI[[#This Row],[Input 3]],Table_PI[[#This Row],[Input 4]],'Customer Information'!$AR$12,103,ROW())<>\"No Rebate\"),MeasureCalc(Table_PI[[#This Row],[Hide:\nFormula Name]],Table_SummaryPI[[#This Row],[Quantity]],Table_PI[[#This Row],[List 1]],Table_PI[[#This Row],[List 2]],Table_PI[[#This Row],[List 3]],Table_PI[[#This Row],[Size]],Table_PI[[#This Row],[Input 1]],Table_PI[[#This Row],[Input 2]],Table_PI[[#This Row],[Input 3]],Table_PI[[#This Row],[Input 4]],'Customer Information'!$AR$12,103,ROW()),\"\"),\"\")","v":""},{"$f":"IF(Table_PI[[#This Row],[Input 4]]<>\"\",Table_PI[[#This Row],[Input 4]],\"\")","v":""},{"$f":"IF(Table_PI[[#This Row],[Quantity]]=\"\",\"\",Table_PI[[#This Row],[Quantity]])","v":""},{"$f":"IF(Table_PI[[#This Row],[Notes]]=\"\",\"\",Table_PI[[#This Row],[Notes]])","v":""},{"$f":"IF(OR(Table_PI[[#This Row],[Hide:\nBaseline kWh]]=\"\",Table_PI[[#This Row],[Hide:\nBaseline kWh]]=0),\"\",Table_PI[[#This Row],[Hide:\nBaseline kWh]])","v":""},{"$f":"IF(OR(Table_PI[[#This Row],[Hide:\nBaseline kW]]=\"\",Table_PI[[#This Row],[Hide:\nBaseline kW]]=0),\"\",Table_PI[[#This Row],[Hide:\nBaseline kW]])","v":""},{"$f":"IF(OR(Table_PI[[#This Row],[Hide:\nProposed kWh]]=\"\",Table_PI[[#This Row],[Hide:\nProposed kWh]]=0),\"\",Table_PI[[#This Row],[Hide:\nProposed kWh]])","v":""},{"$f":"IF(OR(Table_PI[[#This Row],[Hide:\nProposed kW]]=\"\",Table_PI[[#This Row],[Hide:\nProposed kW]]=0),\"\",Table_PI[[#This Row],[Hide:\nProposed kW]])","v":""},{"$f":"IF(OR(Table_PI[[#This Row],[Rebate]]=\"\",Table_PI[[#This Row],[Rebate]]=0),\"\",Table_PI[[#This Row],[Rebate]])","v":""},{"$f":"IF(OR(Table_PI[[#This Row],[Hide:\nIncremental Cost]]=\"\",Table_PI[[#This Row],[Hide:\nIncremental Cost]]=0),\"\",Table_PI[[#This Row],[Hide:\nIncremental Cost]])","v":""},{"$f":"IFERROR(IF(Table_SummaryPI[[#This Row],[kWhSavings]]=\"\",\"\",ROUND(Table_SummaryPI[[#This Row],[kWhSavings]]/$AG$401*'Customer Information'!$BC$17,2)),0)","v":""},{"$f":"IF(OR(Table_PI[[#This Row],[Annual kWh]]=\"\",Table_PI[[#This Row],[Annual kWh]]=0),\"\",Table_PI[[#This Row],[Annual kWh]])","v":""},{"$f":"IF(OR(Table_PI[[#This Row],[Peak kW]]=\"\",Table_PI[[#This Row],[Peak kW]]=0),\"\",Table_PI[[#This Row],[Peak kW]])","v":""},{"$f":"IFERROR(IF(Table_SummaryPI[[#This Row],[kWhSavings]]=\"\",\"\",$AU$9*Table_SummaryPI[[#This Row],[kWhSavings]]),0)","v":""},{"$f":"IFERROR(IF(Table_SummaryPI[[#This Row],[kWhSavings]]=\"\",\"\",$AU$14*Table_SummaryPI[[#This Row],[kWhSavings]]),0)","v":""},{"$f":"IFERROR(IF(Table_SummaryPI[[#This Row],[kWhSavings]]=\"\",\"\",$AU$18*Table_SummaryPI[[#This Row],[kWhSavings]]),0)","v":""},{"$f":"IFERROR(IF(Table_SummaryPI[[#This Row],[kWhSavings]]=\"\",\"\",$AU$22*Table_SummaryPI[[#This Row],[kWhSavings]]),0)","v":""},{"$f":"IFERROR(IF(MeasureCalc(Table_PI[[#This Row],[Hide:\nFormula Name]],Table_SummaryPI[[#This Row],[Quantity]],Table_PI[[#This Row],[List 1]],Table_PI[[#This Row],[List 2]],Table_PI[[#This Row],[List 3]],Table_PI[[#This Row],[Size]],Table_PI[[#This Row],[Input 1]],Table_PI[[#This Row],[Input 2]],Table_PI[[#This Row],[Input 3]],Table_PI[[#This Row],[Input 4]],'Customer Information'!$AR$12,200,ROW())<>\"No Rebate\",MeasureCalc(Table_PI[[#This Row],[Hide:\nFormula Name]],Table_SummaryPI[[#This Row],[Quantity]],Table_PI[[#This Row],[List 1]],Table_PI[[#This Row],[List 2]],Table_PI[[#This Row],[List 3]],Table_PI[[#This Row],[Size]],Table_PI[[#This Row],[Input 1]],Table_PI[[#This Row],[Input 2]],Table_PI[[#This Row],[Input 3]],Table_PI[[#This Row],[Input 4]],'Customer Information'!$AR$12,200,ROW()),\"\"),\"\")","v":""},{"$f":"IFERROR(IF(MeasureCalc(Table_PI[[#This Row],[Hide:\nFormula Name]],Table_SummaryPI[[#This Row],[Quantity]],Table_PI[[#This Row],[List 1]],Table_PI[[#This Row],[List 2]],Table_PI[[#This Row],[List 3]],Table_PI[[#This Row],[Size]],Table_PI[[#This Row],[Input 1]],Table_PI[[#This Row],[Input 2]],Table_PI[[#This Row],[Input 3]],Table_PI[[#This Row],[Input 4]],'Customer Information'!$AR$12,201,ROW())<>\"No Rebate\",MeasureCalc(Table_PI[[#This Row],[Hide:\nFormula Name]],Table_SummaryPI[[#This Row],[Quantity]],Table_PI[[#This Row],[List 1]],Table_PI[[#This Row],[List 2]],Table_PI[[#This Row],[List 3]],Table_PI[[#This Row],[Size]],Table_PI[[#This Row],[Input 1]],Table_PI[[#This Row],[Input 2]],Table_PI[[#This Row],[Input 3]],Table_PI[[#This Row],[Input 4]],'Customer Information'!$AR$12,201,ROW()),\"\"),\"\")","v":""}]
[{"$f":"Table_PI[[#This Row],[Line No.]]","v":""},{"$f":"IF(Table_SummaryPI[[#This Row],[MeassureCategory]]<>\"\",CONCATENATE(Table_SummaryPI[[#This Row],[MeassureCategory]],  \" - \", Table_SummaryPI[[#This Row],[ProposedMeasureCategory]],  \" - \", TEXT(Table_SummaryPI[[#This Row],[Size]],\"#,##0.00\"),\" \",Table_SummaryPI[[#This Row],[SizeUnit]]),\"\")","v":""},{"$f":"SUBSTITUTE(Table_PI[[#This Row],[Measure]],\"     \",\"\",1)","v":""},{"$f":"IF(Table_PI[[#This Row],[List 1]]<>\"\",Table_PI[[#This Row],[List 1]],\"\")","v":""},{"$f":"IF(Table_PI[[#This Row],[List 2]]<>\"\",Table_PI[[#This Row],[List 2]],\"\")","v":""},{"$f":"IF(Table_PI[[#This Row],[List 3]]<>\"\",Table_PI[[#This Row],[List 3]],\"\")","v":""},{"$f":"IF(Table_PI[[#This Row],[Manufacturer]]=\"\",\"\",Table_PI[[#This Row],[Manufacturer]])","v":""},{"$f":"IF(Table_PI[[#This Row],[Model Number]]=\"\",\"\",Table_PI[[#This Row],[Model Number]])","v":""},{"$f":"IF(Table_PI[[#This Row],[Serial Number(s)]]=\"\",\"\",Table_PI[[#This Row],[Serial Number(s)]])","v":""},null,{"$f":"IF(Table_PI[[#This Row],[Size]]=\"\",\"\",Table_PI[[#This Row],[Size]])","v":""},null,{"$f":"IFERROR(IF(AND(MeasureCalc(Table_PI[[#This Row],[Hide:\nFormula Name]],Table_SummaryPI[[#This Row],[Quantity]],Table_PI[[#This Row],[List 1]],Table_PI[[#This Row],[List 2]],Table_PI[[#This Row],[List 3]],Table_PI[[#This Row],[Size]],Table_PI[[#This Row],[Input 1]],Table_PI[[#This Row],[Input 2]],Table_PI[[#This Row],[Input 3]],Table_PI[[#This Row],[Input 4]],'Customer Information'!$AR$12,100,ROW())<>0,MeasureCalc(Table_PI[[#This Row],[Hide:\nFormula Name]],Table_SummaryPI[[#This Row],[Quantity]],Table_PI[[#This Row],[List 1]],Table_PI[[#This Row],[List 2]],Table_PI[[#This Row],[List 3]],Table_PI[[#This Row],[Size]],Table_PI[[#This Row],[Input 1]],Table_PI[[#This Row],[Input 2]],Table_PI[[#This Row],[Input 3]],Table_PI[[#This Row],[Input 4]],'Customer Information'!$AR$12,100,ROW())<>\"No Rebate\"),MeasureCalc(Table_PI[[#This Row],[Hide:\nFormula Name]],Table_SummaryPI[[#This Row],[Quantity]],Table_PI[[#This Row],[List 1]],Table_PI[[#This Row],[List 2]],Table_PI[[#This Row],[List 3]],Table_PI[[#This Row],[Size]],Table_PI[[#This Row],[Input 1]],Table_PI[[#This Row],[Input 2]],Table_PI[[#This Row],[Input 3]],Table_PI[[#This Row],[Input 4]],'Customer Information'!$AR$12,100,ROW()),\"\"),\"\")","v":""},{"$f":"IF(Table_PI[[#This Row],[Input 1]]<>\"\",Table_PI[[#This Row],[Input 1]],\"\")","v":""},null,{"$f":"IFERROR(IF(AND(MeasureCalc(Table_PI[[#This Row],[Hide:\nFormula Name]],Table_SummaryPI[[#This Row],[Quantity]],Table_PI[[#This Row],[List 1]],Table_PI[[#This Row],[List 2]],Table_PI[[#This Row],[List 3]],Table_PI[[#This Row],[Size]],Table_PI[[#This Row],[Input 1]],Table_PI[[#This Row],[Input 2]],Table_PI[[#This Row],[Input 3]],Table_PI[[#This Row],[Input 4]],'Customer Information'!$AR$12,101,ROW())<>0,MeasureCalc(Table_PI[[#This Row],[Hide:\nFormula Name]],Table_SummaryPI[[#This Row],[Quantity]],Table_PI[[#This Row],[List 1]],Table_PI[[#This Row],[List 2]],Table_PI[[#This Row],[List 3]],Table_PI[[#This Row],[Size]],Table_PI[[#This Row],[Input 1]],Table_PI[[#This Row],[Input 2]],Table_PI[[#This Row],[Input 3]],Table_PI[[#This Row],[Input 4]],'Customer Information'!$AR$12,101,ROW())<>\"No Rebate\"),MeasureCalc(Table_PI[[#This Row],[Hide:\nFormula Name]],Table_SummaryPI[[#This Row],[Quantity]],Table_PI[[#This Row],[List 1]],Table_PI[[#This Row],[List 2]],Table_PI[[#This Row],[List 3]],Table_PI[[#This Row],[Size]],Table_PI[[#This Row],[Input 1]],Table_PI[[#This Row],[Input 2]],Table_PI[[#This Row],[Input 3]],Table_PI[[#This Row],[Input 4]],'Customer Information'!$AR$12,101,ROW()),\"\"),\"\")","v":""},{"$f":"IF(Table_PI[[#This Row],[Input 2]]<>\"\",Table_PI[[#This Row],[Input 2]],\"\")","v":""},null,{"$f":"IFERROR(IF(AND(MeasureCalc(Table_PI[[#This Row],[Hide:\nFormula Name]],Table_SummaryPI[[#This Row],[Quantity]],Table_PI[[#This Row],[List 1]],Table_PI[[#This Row],[List 2]],Table_PI[[#This Row],[List 3]],Table_PI[[#This Row],[Size]],Table_PI[[#This Row],[Input 1]],Table_PI[[#This Row],[Input 2]],Table_PI[[#This Row],[Input 3]],Table_PI[[#This Row],[Input 4]],'Customer Information'!$AR$12,102,ROW())<>0,MeasureCalc(Table_PI[[#This Row],[Hide:\nFormula Name]],Table_SummaryPI[[#This Row],[Quantity]],Table_PI[[#This Row],[List 1]],Table_PI[[#This Row],[List 2]],Table_PI[[#This Row],[List 3]],Table_PI[[#This Row],[Size]],Table_PI[[#This Row],[Input 1]],Table_PI[[#This Row],[Input 2]],Table_PI[[#This Row],[Input 3]],Table_PI[[#This Row],[Input 4]],'Customer Information'!$AR$12,102,ROW())<>\"No Rebate\"),MeasureCalc(Table_PI[[#This Row],[Hide:\nFormula Name]],Table_SummaryPI[[#This Row],[Quantity]],Table_PI[[#This Row],[List 1]],Table_PI[[#This Row],[List 2]],Table_PI[[#This Row],[List 3]],Table_PI[[#This Row],[Size]],Table_PI[[#This Row],[Input 1]],Table_PI[[#This Row],[Input 2]],Table_PI[[#This Row],[Input 3]],Table_PI[[#This Row],[Input 4]],'Customer Information'!$AR$12,102,ROW()),\"\"),\"\")","v":""},{"$f":"IF(Table_PI[[#This Row],[Input 3]]<>\"\",Table_PI[[#This Row],[Input 3]],\"\")","v":""},null,{"$f":"IFERROR(IF(AND(MeasureCalc(Table_PI[[#This Row],[Hide:\nFormula Name]],Table_SummaryPI[[#This Row],[Quantity]],Table_PI[[#This Row],[List 1]],Table_PI[[#This Row],[List 2]],Table_PI[[#This Row],[List 3]],Table_PI[[#This Row],[Size]],Table_PI[[#This Row],[Input 1]],Table_PI[[#This Row],[Input 2]],Table_PI[[#This Row],[Input 3]],Table_PI[[#This Row],[Input 4]],'Customer Information'!$AR$12,103,ROW())<>0,MeasureCalc(Table_PI[[#This Row],[Hide:\nFormula Name]],Table_SummaryPI[[#This Row],[Quantity]],Table_PI[[#This Row],[List 1]],Table_PI[[#This Row],[List 2]],Table_PI[[#This Row],[List 3]],Table_PI[[#This Row],[Size]],Table_PI[[#This Row],[Input 1]],Table_PI[[#This Row],[Input 2]],Table_PI[[#This Row],[Input 3]],Table_PI[[#This Row],[Input 4]],'Customer Information'!$AR$12,103,ROW())<>\"No Rebate\"),MeasureCalc(Table_PI[[#This Row],[Hide:\nFormula Name]],Table_SummaryPI[[#This Row],[Quantity]],Table_PI[[#This Row],[List 1]],Table_PI[[#This Row],[List 2]],Table_PI[[#This Row],[List 3]],Table_PI[[#This Row],[Size]],Table_PI[[#This Row],[Input 1]],Table_PI[[#This Row],[Input 2]],Table_PI[[#This Row],[Input 3]],Table_PI[[#This Row],[Input 4]],'Customer Information'!$AR$12,103,ROW()),\"\"),\"\")","v":""},{"$f":"IF(Table_PI[[#This Row],[Input 4]]<>\"\",Table_PI[[#This Row],[Input 4]],\"\")","v":""},{"$f":"IF(Table_PI[[#This Row],[Quantity]]=\"\",\"\",Table_PI[[#This Row],[Quantity]])","v":""},{"$f":"IF(Table_PI[[#This Row],[Notes]]=\"\",\"\",Table_PI[[#This Row],[Notes]])","v":""},{"$f":"IF(OR(Table_PI[[#This Row],[Hide:\nBaseline kWh]]=\"\",Table_PI[[#This Row],[Hide:\nBaseline kWh]]=0),\"\",Table_PI[[#This Row],[Hide:\nBaseline kWh]])","v":""},{"$f":"IF(OR(Table_PI[[#This Row],[Hide:\nBaseline kW]]=\"\",Table_PI[[#This Row],[Hide:\nBaseline kW]]=0),\"\",Table_PI[[#This Row],[Hide:\nBaseline kW]])","v":""},{"$f":"IF(OR(Table_PI[[#This Row],[Hide:\nProposed kWh]]=\"\",Table_PI[[#This Row],[Hide:\nProposed kWh]]=0),\"\",Table_PI[[#This Row],[Hide:\nProposed kWh]])","v":""},{"$f":"IF(OR(Table_PI[[#This Row],[Hide:\nProposed kW]]=\"\",Table_PI[[#This Row],[Hide:\nProposed kW]]=0),\"\",Table_PI[[#This Row],[Hide:\nProposed kW]])","v":""},{"$f":"IF(OR(Table_PI[[#This Row],[Rebate]]=\"\",Table_PI[[#This Row],[Rebate]]=0),\"\",Table_PI[[#This Row],[Rebate]])","v":""},{"$f":"IF(OR(Table_PI[[#This Row],[Hide:\nIncremental Cost]]=\"\",Table_PI[[#This Row],[Hide:\nIncremental Cost]]=0),\"\",Table_PI[[#This Row],[Hide:\nIncremental Cost]])","v":""},{"$f":"IFERROR(IF(Table_SummaryPI[[#This Row],[kWhSavings]]=\"\",\"\",ROUND(Table_SummaryPI[[#This Row],[kWhSavings]]/$AG$401*'Customer Information'!$BC$17,2)),0)","v":""},{"$f":"IF(OR(Table_PI[[#This Row],[Annual kWh]]=\"\",Table_PI[[#This Row],[Annual kWh]]=0),\"\",Table_PI[[#This Row],[Annual kWh]])","v":""},{"$f":"IF(OR(Table_PI[[#This Row],[Peak kW]]=\"\",Table_PI[[#This Row],[Peak kW]]=0),\"\",Table_PI[[#This Row],[Peak kW]])","v":""},{"$f":"IFERROR(IF(Table_SummaryPI[[#This Row],[kWhSavings]]=\"\",\"\",$AU$9*Table_SummaryPI[[#This Row],[kWhSavings]]),0)","v":""},{"$f":"IFERROR(IF(Table_SummaryPI[[#This Row],[kWhSavings]]=\"\",\"\",$AU$14*Table_SummaryPI[[#This Row],[kWhSavings]]),0)","v":""},{"$f":"IFERROR(IF(Table_SummaryPI[[#This Row],[kWhSavings]]=\"\",\"\",$AU$18*Table_SummaryPI[[#This Row],[kWhSavings]]),0)","v":""},{"$f":"IFERROR(IF(Table_SummaryPI[[#This Row],[kWhSavings]]=\"\",\"\",$AU$22*Table_SummaryPI[[#This Row],[kWhSavings]]),0)","v":""},{"$f":"IFERROR(IF(MeasureCalc(Table_PI[[#This Row],[Hide:\nFormula Name]],Table_SummaryPI[[#This Row],[Quantity]],Table_PI[[#This Row],[List 1]],Table_PI[[#This Row],[List 2]],Table_PI[[#This Row],[List 3]],Table_PI[[#This Row],[Size]],Table_PI[[#This Row],[Input 1]],Table_PI[[#This Row],[Input 2]],Table_PI[[#This Row],[Input 3]],Table_PI[[#This Row],[Input 4]],'Customer Information'!$AR$12,200,ROW())<>\"No Rebate\",MeasureCalc(Table_PI[[#This Row],[Hide:\nFormula Name]],Table_SummaryPI[[#This Row],[Quantity]],Table_PI[[#This Row],[List 1]],Table_PI[[#This Row],[List 2]],Table_PI[[#This Row],[List 3]],Table_PI[[#This Row],[Size]],Table_PI[[#This Row],[Input 1]],Table_PI[[#This Row],[Input 2]],Table_PI[[#This Row],[Input 3]],Table_PI[[#This Row],[Input 4]],'Customer Information'!$AR$12,200,ROW()),\"\"),\"\")","v":""},{"$f":"IFERROR(IF(MeasureCalc(Table_PI[[#This Row],[Hide:\nFormula Name]],Table_SummaryPI[[#This Row],[Quantity]],Table_PI[[#This Row],[List 1]],Table_PI[[#This Row],[List 2]],Table_PI[[#This Row],[List 3]],Table_PI[[#This Row],[Size]],Table_PI[[#This Row],[Input 1]],Table_PI[[#This Row],[Input 2]],Table_PI[[#This Row],[Input 3]],Table_PI[[#This Row],[Input 4]],'Customer Information'!$AR$12,201,ROW())<>\"No Rebate\",MeasureCalc(Table_PI[[#This Row],[Hide:\nFormula Name]],Table_SummaryPI[[#This Row],[Quantity]],Table_PI[[#This Row],[List 1]],Table_PI[[#This Row],[List 2]],Table_PI[[#This Row],[List 3]],Table_PI[[#This Row],[Size]],Table_PI[[#This Row],[Input 1]],Table_PI[[#This Row],[Input 2]],Table_PI[[#This Row],[Input 3]],Table_PI[[#This Row],[Input 4]],'Customer Information'!$AR$12,201,ROW()),\"\"),\"\")","v":""}]
[{"$f":"Table_PI[[#This Row],[Line No.]]","v":""},{"$f":"IF(Table_SummaryPI[[#This Row],[MeassureCategory]]<>\"\",CONCATENATE(Table_SummaryPI[[#This Row],[MeassureCategory]],  \" - \", Table_SummaryPI[[#This Row],[ProposedMeasureCategory]],  \" - \", TEXT(Table_SummaryPI[[#This Row],[Size]],\"#,##0.00\"),\" \",Table_SummaryPI[[#This Row],[SizeUnit]]),\"\")","v":""},{"$f":"SUBSTITUTE(Table_PI[[#This Row],[Measure]],\"     \",\"\",1)","v":""},{"$f":"IF(Table_PI[[#This Row],[List 1]]<>\"\",Table_PI[[#This Row],[List 1]],\"\")","v":""},{"$f":"IF(Table_PI[[#This Row],[List 2]]<>\"\",Table_PI[[#This Row],[List 2]],\"\")","v":""},{"$f":"IF(Table_PI[[#This Row],[List 3]]<>\"\",Table_PI[[#This Row],[List 3]],\"\")","v":""},{"$f":"IF(Table_PI[[#This Row],[Manufacturer]]=\"\",\"\",Table_PI[[#This Row],[Manufacturer]])","v":""},{"$f":"IF(Table_PI[[#This Row],[Model Number]]=\"\",\"\",Table_PI[[#This Row],[Model Number]])","v":""},{"$f":"IF(Table_PI[[#This Row],[Serial Number(s)]]=\"\",\"\",Table_PI[[#This Row],[Serial Number(s)]])","v":""},null,{"$f":"IF(Table_PI[[#This Row],[Size]]=\"\",\"\",Table_PI[[#This Row],[Size]])","v":""},null,{"$f":"IFERROR(IF(AND(MeasureCalc(Table_PI[[#This Row],[Hide:\nFormula Name]],Table_SummaryPI[[#This Row],[Quantity]],Table_PI[[#This Row],[List 1]],Table_PI[[#This Row],[List 2]],Table_PI[[#This Row],[List 3]],Table_PI[[#This Row],[Size]],Table_PI[[#This Row],[Input 1]],Table_PI[[#This Row],[Input 2]],Table_PI[[#This Row],[Input 3]],Table_PI[[#This Row],[Input 4]],'Customer Information'!$AR$12,100,ROW())<>0,MeasureCalc(Table_PI[[#This Row],[Hide:\nFormula Name]],Table_SummaryPI[[#This Row],[Quantity]],Table_PI[[#This Row],[List 1]],Table_PI[[#This Row],[List 2]],Table_PI[[#This Row],[List 3]],Table_PI[[#This Row],[Size]],Table_PI[[#This Row],[Input 1]],Table_PI[[#This Row],[Input 2]],Table_PI[[#This Row],[Input 3]],Table_PI[[#This Row],[Input 4]],'Customer Information'!$AR$12,100,ROW())<>\"No Rebate\"),MeasureCalc(Table_PI[[#This Row],[Hide:\nFormula Name]],Table_SummaryPI[[#This Row],[Quantity]],Table_PI[[#This Row],[List 1]],Table_PI[[#This Row],[List 2]],Table_PI[[#This Row],[List 3]],Table_PI[[#This Row],[Size]],Table_PI[[#This Row],[Input 1]],Table_PI[[#This Row],[Input 2]],Table_PI[[#This Row],[Input 3]],Table_PI[[#This Row],[Input 4]],'Customer Information'!$AR$12,100,ROW()),\"\"),\"\")","v":""},{"$f":"IF(Table_PI[[#This Row],[Input 1]]<>\"\",Table_PI[[#This Row],[Input 1]],\"\")","v":""},null,{"$f":"IFERROR(IF(AND(MeasureCalc(Table_PI[[#This Row],[Hide:\nFormula Name]],Table_SummaryPI[[#This Row],[Quantity]],Table_PI[[#This Row],[List 1]],Table_PI[[#This Row],[List 2]],Table_PI[[#This Row],[List 3]],Table_PI[[#This Row],[Size]],Table_PI[[#This Row],[Input 1]],Table_PI[[#This Row],[Input 2]],Table_PI[[#This Row],[Input 3]],Table_PI[[#This Row],[Input 4]],'Customer Information'!$AR$12,101,ROW())<>0,MeasureCalc(Table_PI[[#This Row],[Hide:\nFormula Name]],Table_SummaryPI[[#This Row],[Quantity]],Table_PI[[#This Row],[List 1]],Table_PI[[#This Row],[List 2]],Table_PI[[#This Row],[List 3]],Table_PI[[#This Row],[Size]],Table_PI[[#This Row],[Input 1]],Table_PI[[#This Row],[Input 2]],Table_PI[[#This Row],[Input 3]],Table_PI[[#This Row],[Input 4]],'Customer Information'!$AR$12,101,ROW())<>\"No Rebate\"),MeasureCalc(Table_PI[[#This Row],[Hide:\nFormula Name]],Table_SummaryPI[[#This Row],[Quantity]],Table_PI[[#This Row],[List 1]],Table_PI[[#This Row],[List 2]],Table_PI[[#This Row],[List 3]],Table_PI[[#This Row],[Size]],Table_PI[[#This Row],[Input 1]],Table_PI[[#This Row],[Input 2]],Table_PI[[#This Row],[Input 3]],Table_PI[[#This Row],[Input 4]],'Customer Information'!$AR$12,101,ROW()),\"\"),\"\")","v":""},{"$f":"IF(Table_PI[[#This Row],[Input 2]]<>\"\",Table_PI[[#This Row],[Input 2]],\"\")","v":""},null,{"$f":"IFERROR(IF(AND(MeasureCalc(Table_PI[[#This Row],[Hide:\nFormula Name]],Table_SummaryPI[[#This Row],[Quantity]],Table_PI[[#This Row],[List 1]],Table_PI[[#This Row],[List 2]],Table_PI[[#This Row],[List 3]],Table_PI[[#This Row],[Size]],Table_PI[[#This Row],[Input 1]],Table_PI[[#This Row],[Input 2]],Table_PI[[#This Row],[Input 3]],Table_PI[[#This Row],[Input 4]],'Customer Information'!$AR$12,102,ROW())<>0,MeasureCalc(Table_PI[[#This Row],[Hide:\nFormula Name]],Table_SummaryPI[[#This Row],[Quantity]],Table_PI[[#This Row],[List 1]],Table_PI[[#This Row],[List 2]],Table_PI[[#This Row],[List 3]],Table_PI[[#This Row],[Size]],Table_PI[[#This Row],[Input 1]],Table_PI[[#This Row],[Input 2]],Table_PI[[#This Row],[Input 3]],Table_PI[[#This Row],[Input 4]],'Customer Information'!$AR$12,102,ROW())<>\"No Rebate\"),MeasureCalc(Table_PI[[#This Row],[Hide:\nFormula Name]],Table_SummaryPI[[#This Row],[Quantity]],Table_PI[[#This Row],[List 1]],Table_PI[[#This Row],[List 2]],Table_PI[[#This Row],[List 3]],Table_PI[[#This Row],[Size]],Table_PI[[#This Row],[Input 1]],Table_PI[[#This Row],[Input 2]],Table_PI[[#This Row],[Input 3]],Table_PI[[#This Row],[Input 4]],'Customer Information'!$AR$12,102,ROW()),\"\"),\"\")","v":""},{"$f":"IF(Table_PI[[#This Row],[Input 3]]<>\"\",Table_PI[[#This Row],[Input 3]],\"\")","v":""},null,{"$f":"IFERROR(IF(AND(MeasureCalc(Table_PI[[#This Row],[Hide:\nFormula Name]],Table_SummaryPI[[#This Row],[Quantity]],Table_PI[[#This Row],[List 1]],Table_PI[[#This Row],[List 2]],Table_PI[[#This Row],[List 3]],Table_PI[[#This Row],[Size]],Table_PI[[#This Row],[Input 1]],Table_PI[[#This Row],[Input 2]],Table_PI[[#This Row],[Input 3]],Table_PI[[#This Row],[Input 4]],'Customer Information'!$AR$12,103,ROW())<>0,MeasureCalc(Table_PI[[#This Row],[Hide:\nFormula Name]],Table_SummaryPI[[#This Row],[Quantity]],Table_PI[[#This Row],[List 1]],Table_PI[[#This Row],[List 2]],Table_PI[[#This Row],[List 3]],Table_PI[[#This Row],[Size]],Table_PI[[#This Row],[Input 1]],Table_PI[[#This Row],[Input 2]],Table_PI[[#This Row],[Input 3]],Table_PI[[#This Row],[Input 4]],'Customer Information'!$AR$12,103,ROW())<>\"No Rebate\"),MeasureCalc(Table_PI[[#This Row],[Hide:\nFormula Name]],Table_SummaryPI[[#This Row],[Quantity]],Table_PI[[#This Row],[List 1]],Table_PI[[#This Row],[List 2]],Table_PI[[#This Row],[List 3]],Table_PI[[#This Row],[Size]],Table_PI[[#This Row],[Input 1]],Table_PI[[#This Row],[Input 2]],Table_PI[[#This Row],[Input 3]],Table_PI[[#This Row],[Input 4]],'Customer Information'!$AR$12,103,ROW()),\"\"),\"\")","v":""},{"$f":"IF(Table_PI[[#This Row],[Input 4]]<>\"\",Table_PI[[#This Row],[Input 4]],\"\")","v":""},{"$f":"IF(Table_PI[[#This Row],[Quantity]]=\"\",\"\",Table_PI[[#This Row],[Quantity]])","v":""},{"$f":"IF(Table_PI[[#This Row],[Notes]]=\"\",\"\",Table_PI[[#This Row],[Notes]])","v":""},{"$f":"IF(OR(Table_PI[[#This Row],[Hide:\nBaseline kWh]]=\"\",Table_PI[[#This Row],[Hide:\nBaseline kWh]]=0),\"\",Table_PI[[#This Row],[Hide:\nBaseline kWh]])","v":""},{"$f":"IF(OR(Table_PI[[#This Row],[Hide:\nBaseline kW]]=\"\",Table_PI[[#This Row],[Hide:\nBaseline kW]]=0),\"\",Table_PI[[#This Row],[Hide:\nBaseline kW]])","v":""},{"$f":"IF(OR(Table_PI[[#This Row],[Hide:\nProposed kWh]]=\"\",Table_PI[[#This Row],[Hide:\nProposed kWh]]=0),\"\",Table_PI[[#This Row],[Hide:\nProposed kWh]])","v":""},{"$f":"IF(OR(Table_PI[[#This Row],[Hide:\nProposed kW]]=\"\",Table_PI[[#This Row],[Hide:\nProposed kW]]=0),\"\",Table_PI[[#This Row],[Hide:\nProposed kW]])","v":""},{"$f":"IF(OR(Table_PI[[#This Row],[Rebate]]=\"\",Table_PI[[#This Row],[Rebate]]=0),\"\",Table_PI[[#This Row],[Rebate]])","v":""},{"$f":"IF(OR(Table_PI[[#This Row],[Hide:\nIncremental Cost]]=\"\",Table_PI[[#This Row],[Hide:\nIncremental Cost]]=0),\"\",Table_PI[[#This Row],[Hide:\nIncremental Cost]])","v":""},{"$f":"IFERROR(IF(Table_SummaryPI[[#This Row],[kWhSavings]]=\"\",\"\",ROUND(Table_SummaryPI[[#This Row],[kWhSavings]]/$AG$401*'Customer Information'!$BC$17,2)),0)","v":""},{"$f":"IF(OR(Table_PI[[#This Row],[Annual kWh]]=\"\",Table_PI[[#This Row],[Annual kWh]]=0),\"\",Table_PI[[#This Row],[Annual kWh]])","v":""},{"$f":"IF(OR(Table_PI[[#This Row],[Peak kW]]=\"\",Table_PI[[#This Row],[Peak kW]]=0),\"\",Table_PI[[#This Row],[Peak kW]])","v":""},{"$f":"IFERROR(IF(Table_SummaryPI[[#This Row],[kWhSavings]]=\"\",\"\",$AU$9*Table_SummaryPI[[#This Row],[kWhSavings]]),0)","v":""},{"$f":"IFERROR(IF(Table_SummaryPI[[#This Row],[kWhSavings]]=\"\",\"\",$AU$14*Table_SummaryPI[[#This Row],[kWhSavings]]),0)","v":""},{"$f":"IFERROR(IF(Table_SummaryPI[[#This Row],[kWhSavings]]=\"\",\"\",$AU$18*Table_SummaryPI[[#This Row],[kWhSavings]]),0)","v":""},{"$f":"IFERROR(IF(Table_SummaryPI[[#This Row],[kWhSavings]]=\"\",\"\",$AU$22*Table_SummaryPI[[#This Row],[kWhSavings]]),0)","v":""},{"$f":"IFERROR(IF(MeasureCalc(Table_PI[[#This Row],[Hide:\nFormula Name]],Table_SummaryPI[[#This Row],[Quantity]],Table_PI[[#This Row],[List 1]],Table_PI[[#This Row],[List 2]],Table_PI[[#This Row],[List 3]],Table_PI[[#This Row],[Size]],Table_PI[[#This Row],[Input 1]],Table_PI[[#This Row],[Input 2]],Table_PI[[#This Row],[Input 3]],Table_PI[[#This Row],[Input 4]],'Customer Information'!$AR$12,200,ROW())<>\"No Rebate\",MeasureCalc(Table_PI[[#This Row],[Hide:\nFormula Name]],Table_SummaryPI[[#This Row],[Quantity]],Table_PI[[#This Row],[List 1]],Table_PI[[#This Row],[List 2]],Table_PI[[#This Row],[List 3]],Table_PI[[#This Row],[Size]],Table_PI[[#This Row],[Input 1]],Table_PI[[#This Row],[Input 2]],Table_PI[[#This Row],[Input 3]],Table_PI[[#This Row],[Input 4]],'Customer Information'!$AR$12,200,ROW()),\"\"),\"\")","v":""},{"$f":"IFERROR(IF(MeasureCalc(Table_PI[[#This Row],[Hide:\nFormula Name]],Table_SummaryPI[[#This Row],[Quantity]],Table_PI[[#This Row],[List 1]],Table_PI[[#This Row],[List 2]],Table_PI[[#This Row],[List 3]],Table_PI[[#This Row],[Size]],Table_PI[[#This Row],[Input 1]],Table_PI[[#This Row],[Input 2]],Table_PI[[#This Row],[Input 3]],Table_PI[[#This Row],[Input 4]],'Customer Information'!$AR$12,201,ROW())<>\"No Rebate\",MeasureCalc(Table_PI[[#This Row],[Hide:\nFormula Name]],Table_SummaryPI[[#This Row],[Quantity]],Table_PI[[#This Row],[List 1]],Table_PI[[#This Row],[List 2]],Table_PI[[#This Row],[List 3]],Table_PI[[#This Row],[Size]],Table_PI[[#This Row],[Input 1]],Table_PI[[#This Row],[Input 2]],Table_PI[[#This Row],[Input 3]],Table_PI[[#This Row],[Input 4]],'Customer Information'!$AR$12,201,ROW()),\"\"),\"\")","v":""}]
[{"$f":"Table_PI[[#This Row],[Line No.]]","v":""},{"$f":"IF(Table_SummaryPI[[#This Row],[MeassureCategory]]<>\"\",CONCATENATE(Table_SummaryPI[[#This Row],[MeassureCategory]],  \" - \", Table_SummaryPI[[#This Row],[ProposedMeasureCategory]],  \" - \", TEXT(Table_SummaryPI[[#This Row],[Size]],\"#,##0.00\"),\" \",Table_SummaryPI[[#This Row],[SizeUnit]]),\"\")","v":""},{"$f":"SUBSTITUTE(Table_PI[[#This Row],[Measure]],\"     \",\"\",1)","v":""},{"$f":"IF(Table_PI[[#This Row],[List 1]]<>\"\",Table_PI[[#This Row],[List 1]],\"\")","v":""},{"$f":"IF(Table_PI[[#This Row],[List 2]]<>\"\",Table_PI[[#This Row],[List 2]],\"\")","v":""},{"$f":"IF(Table_PI[[#This Row],[List 3]]<>\"\",Table_PI[[#This Row],[List 3]],\"\")","v":""},{"$f":"IF(Table_PI[[#This Row],[Manufacturer]]=\"\",\"\",Table_PI[[#This Row],[Manufacturer]])","v":""},{"$f":"IF(Table_PI[[#This Row],[Model Number]]=\"\",\"\",Table_PI[[#This Row],[Model Number]])","v":""},{"$f":"IF(Table_PI[[#This Row],[Serial Number(s)]]=\"\",\"\",Table_PI[[#This Row],[Serial Number(s)]])","v":""},null,{"$f":"IF(Table_PI[[#This Row],[Size]]=\"\",\"\",Table_PI[[#This Row],[Size]])","v":""},null,{"$f":"IFERROR(IF(AND(MeasureCalc(Table_PI[[#This Row],[Hide:\nFormula Name]],Table_SummaryPI[[#This Row],[Quantity]],Table_PI[[#This Row],[List 1]],Table_PI[[#This Row],[List 2]],Table_PI[[#This Row],[List 3]],Table_PI[[#This Row],[Size]],Table_PI[[#This Row],[Input 1]],Table_PI[[#This Row],[Input 2]],Table_PI[[#This Row],[Input 3]],Table_PI[[#This Row],[Input 4]],'Customer Information'!$AR$12,100,ROW())<>0,MeasureCalc(Table_PI[[#This Row],[Hide:\nFormula Name]],Table_SummaryPI[[#This Row],[Quantity]],Table_PI[[#This Row],[List 1]],Table_PI[[#This Row],[List 2]],Table_PI[[#This Row],[List 3]],Table_PI[[#This Row],[Size]],Table_PI[[#This Row],[Input 1]],Table_PI[[#This Row],[Input 2]],Table_PI[[#This Row],[Input 3]],Table_PI[[#This Row],[Input 4]],'Customer Information'!$AR$12,100,ROW())<>\"No Rebate\"),MeasureCalc(Table_PI[[#This Row],[Hide:\nFormula Name]],Table_SummaryPI[[#This Row],[Quantity]],Table_PI[[#This Row],[List 1]],Table_PI[[#This Row],[List 2]],Table_PI[[#This Row],[List 3]],Table_PI[[#This Row],[Size]],Table_PI[[#This Row],[Input 1]],Table_PI[[#This Row],[Input 2]],Table_PI[[#This Row],[Input 3]],Table_PI[[#This Row],[Input 4]],'Customer Information'!$AR$12,100,ROW()),\"\"),\"\")","v":""},{"$f":"IF(Table_PI[[#This Row],[Input 1]]<>\"\",Table_PI[[#This Row],[Input 1]],\"\")","v":""},null,{"$f":"IFERROR(IF(AND(MeasureCalc(Table_PI[[#This Row],[Hide:\nFormula Name]],Table_SummaryPI[[#This Row],[Quantity]],Table_PI[[#This Row],[List 1]],Table_PI[[#This Row],[List 2]],Table_PI[[#This Row],[List 3]],Table_PI[[#This Row],[Size]],Table_PI[[#This Row],[Input 1]],Table_PI[[#This Row],[Input 2]],Table_PI[[#This Row],[Input 3]],Table_PI[[#This Row],[Input 4]],'Customer Information'!$AR$12,101,ROW())<>0,MeasureCalc(Table_PI[[#This Row],[Hide:\nFormula Name]],Table_SummaryPI[[#This Row],[Quantity]],Table_PI[[#This Row],[List 1]],Table_PI[[#This Row],[List 2]],Table_PI[[#This Row],[List 3]],Table_PI[[#This Row],[Size]],Table_PI[[#This Row],[Input 1]],Table_PI[[#This Row],[Input 2]],Table_PI[[#This Row],[Input 3]],Table_PI[[#This Row],[Input 4]],'Customer Information'!$AR$12,101,ROW())<>\"No Rebate\"),MeasureCalc(Table_PI[[#This Row],[Hide:\nFormula Name]],Table_SummaryPI[[#This Row],[Quantity]],Table_PI[[#This Row],[List 1]],Table_PI[[#This Row],[List 2]],Table_PI[[#This Row],[List 3]],Table_PI[[#This Row],[Size]],Table_PI[[#This Row],[Input 1]],Table_PI[[#This Row],[Input 2]],Table_PI[[#This Row],[Input 3]],Table_PI[[#This Row],[Input 4]],'Customer Information'!$AR$12,101,ROW()),\"\"),\"\")","v":""},{"$f":"IF(Table_PI[[#This Row],[Input 2]]<>\"\",Table_PI[[#This Row],[Input 2]],\"\")","v":""},null,{"$f":"IFERROR(IF(AND(MeasureCalc(Table_PI[[#This Row],[Hide:\nFormula Name]],Table_SummaryPI[[#This Row],[Quantity]],Table_PI[[#This Row],[List 1]],Table_PI[[#This Row],[List 2]],Table_PI[[#This Row],[List 3]],Table_PI[[#This Row],[Size]],Table_PI[[#This Row],[Input 1]],Table_PI[[#This Row],[Input 2]],Table_PI[[#This Row],[Input 3]],Table_PI[[#This Row],[Input 4]],'Customer Information'!$AR$12,102,ROW())<>0,MeasureCalc(Table_PI[[#This Row],[Hide:\nFormula Name]],Table_SummaryPI[[#This Row],[Quantity]],Table_PI[[#This Row],[List 1]],Table_PI[[#This Row],[List 2]],Table_PI[[#This Row],[List 3]],Table_PI[[#This Row],[Size]],Table_PI[[#This Row],[Input 1]],Table_PI[[#This Row],[Input 2]],Table_PI[[#This Row],[Input 3]],Table_PI[[#This Row],[Input 4]],'Customer Information'!$AR$12,102,ROW())<>\"No Rebate\"),MeasureCalc(Table_PI[[#This Row],[Hide:\nFormula Name]],Table_SummaryPI[[#This Row],[Quantity]],Table_PI[[#This Row],[List 1]],Table_PI[[#This Row],[List 2]],Table_PI[[#This Row],[List 3]],Table_PI[[#This Row],[Size]],Table_PI[[#This Row],[Input 1]],Table_PI[[#This Row],[Input 2]],Table_PI[[#This Row],[Input 3]],Table_PI[[#This Row],[Input 4]],'Customer Information'!$AR$12,102,ROW()),\"\"),\"\")","v":""},{"$f":"IF(Table_PI[[#This Row],[Input 3]]<>\"\",Table_PI[[#This Row],[Input 3]],\"\")","v":""},null,{"$f":"IFERROR(IF(AND(MeasureCalc(Table_PI[[#This Row],[Hide:\nFormula Name]],Table_SummaryPI[[#This Row],[Quantity]],Table_PI[[#This Row],[List 1]],Table_PI[[#This Row],[List 2]],Table_PI[[#This Row],[List 3]],Table_PI[[#This Row],[Size]],Table_PI[[#This Row],[Input 1]],Table_PI[[#This Row],[Input 2]],Table_PI[[#This Row],[Input 3]],Table_PI[[#This Row],[Input 4]],'Customer Information'!$AR$12,103,ROW())<>0,MeasureCalc(Table_PI[[#This Row],[Hide:\nFormula Name]],Table_SummaryPI[[#This Row],[Quantity]],Table_PI[[#This Row],[List 1]],Table_PI[[#This Row],[List 2]],Table_PI[[#This Row],[List 3]],Table_PI[[#This Row],[Size]],Table_PI[[#This Row],[Input 1]],Table_PI[[#This Row],[Input 2]],Table_PI[[#This Row],[Input 3]],Table_PI[[#This Row],[Input 4]],'Customer Information'!$AR$12,103,ROW())<>\"No Rebate\"),MeasureCalc(Table_PI[[#This Row],[Hide:\nFormula Name]],Table_SummaryPI[[#This Row],[Quantity]],Table_PI[[#This Row],[List 1]],Table_PI[[#This Row],[List 2]],Table_PI[[#This Row],[List 3]],Table_PI[[#This Row],[Size]],Table_PI[[#This Row],[Input 1]],Table_PI[[#This Row],[Input 2]],Table_PI[[#This Row],[Input 3]],Table_PI[[#This Row],[Input 4]],'Customer Information'!$AR$12,103,ROW()),\"\"),\"\")","v":""},{"$f":"IF(Table_PI[[#This Row],[Input 4]]<>\"\",Table_PI[[#This Row],[Input 4]],\"\")","v":""},{"$f":"IF(Table_PI[[#This Row],[Quantity]]=\"\",\"\",Table_PI[[#This Row],[Quantity]])","v":""},{"$f":"IF(Table_PI[[#This Row],[Notes]]=\"\",\"\",Table_PI[[#This Row],[Notes]])","v":""},{"$f":"IF(OR(Table_PI[[#This Row],[Hide:\nBaseline kWh]]=\"\",Table_PI[[#This Row],[Hide:\nBaseline kWh]]=0),\"\",Table_PI[[#This Row],[Hide:\nBaseline kWh]])","v":""},{"$f":"IF(OR(Table_PI[[#This Row],[Hide:\nBaseline kW]]=\"\",Table_PI[[#This Row],[Hide:\nBaseline kW]]=0),\"\",Table_PI[[#This Row],[Hide:\nBaseline kW]])","v":""},{"$f":"IF(OR(Table_PI[[#This Row],[Hide:\nProposed kWh]]=\"\",Table_PI[[#This Row],[Hide:\nProposed kWh]]=0),\"\",Table_PI[[#This Row],[Hide:\nProposed kWh]])","v":""},{"$f":"IF(OR(Table_PI[[#This Row],[Hide:\nProposed kW]]=\"\",Table_PI[[#This Row],[Hide:\nProposed kW]]=0),\"\",Table_PI[[#This Row],[Hide:\nProposed kW]])","v":""},{"$f":"IF(OR(Table_PI[[#This Row],[Rebate]]=\"\",Table_PI[[#This Row],[Rebate]]=0),\"\",Table_PI[[#This Row],[Rebate]])","v":""},{"$f":"IF(OR(Table_PI[[#This Row],[Hide:\nIncremental Cost]]=\"\",Table_PI[[#This Row],[Hide:\nIncremental Cost]]=0),\"\",Table_PI[[#This Row],[Hide:\nIncremental Cost]])","v":""},{"$f":"IFERROR(IF(Table_SummaryPI[[#This Row],[kWhSavings]]=\"\",\"\",ROUND(Table_SummaryPI[[#This Row],[kWhSavings]]/$AG$401*'Customer Information'!$BC$17,2)),0)","v":""},{"$f":"IF(OR(Table_PI[[#This Row],[Annual kWh]]=\"\",Table_PI[[#This Row],[Annual kWh]]=0),\"\",Table_PI[[#This Row],[Annual kWh]])","v":""},{"$f":"IF(OR(Table_PI[[#This Row],[Peak kW]]=\"\",Table_PI[[#This Row],[Peak kW]]=0),\"\",Table_PI[[#This Row],[Peak kW]])","v":""},{"$f":"IFERROR(IF(Table_SummaryPI[[#This Row],[kWhSavings]]=\"\",\"\",$AU$9*Table_SummaryPI[[#This Row],[kWhSavings]]),0)","v":""},{"$f":"IFERROR(IF(Table_SummaryPI[[#This Row],[kWhSavings]]=\"\",\"\",$AU$14*Table_SummaryPI[[#This Row],[kWhSavings]]),0)","v":""},{"$f":"IFERROR(IF(Table_SummaryPI[[#This Row],[kWhSavings]]=\"\",\"\",$AU$18*Table_SummaryPI[[#This Row],[kWhSavings]]),0)","v":""},{"$f":"IFERROR(IF(Table_SummaryPI[[#This Row],[kWhSavings]]=\"\",\"\",$AU$22*Table_SummaryPI[[#This Row],[kWhSavings]]),0)","v":""},{"$f":"IFERROR(IF(MeasureCalc(Table_PI[[#This Row],[Hide:\nFormula Name]],Table_SummaryPI[[#This Row],[Quantity]],Table_PI[[#This Row],[List 1]],Table_PI[[#This Row],[List 2]],Table_PI[[#This Row],[List 3]],Table_PI[[#This Row],[Size]],Table_PI[[#This Row],[Input 1]],Table_PI[[#This Row],[Input 2]],Table_PI[[#This Row],[Input 3]],Table_PI[[#This Row],[Input 4]],'Customer Information'!$AR$12,200,ROW())<>\"No Rebate\",MeasureCalc(Table_PI[[#This Row],[Hide:\nFormula Name]],Table_SummaryPI[[#This Row],[Quantity]],Table_PI[[#This Row],[List 1]],Table_PI[[#This Row],[List 2]],Table_PI[[#This Row],[List 3]],Table_PI[[#This Row],[Size]],Table_PI[[#This Row],[Input 1]],Table_PI[[#This Row],[Input 2]],Table_PI[[#This Row],[Input 3]],Table_PI[[#This Row],[Input 4]],'Customer Information'!$AR$12,200,ROW()),\"\"),\"\")","v":""},{"$f":"IFERROR(IF(MeasureCalc(Table_PI[[#This Row],[Hide:\nFormula Name]],Table_SummaryPI[[#This Row],[Quantity]],Table_PI[[#This Row],[List 1]],Table_PI[[#This Row],[List 2]],Table_PI[[#This Row],[List 3]],Table_PI[[#This Row],[Size]],Table_PI[[#This Row],[Input 1]],Table_PI[[#This Row],[Input 2]],Table_PI[[#This Row],[Input 3]],Table_PI[[#This Row],[Input 4]],'Customer Information'!$AR$12,201,ROW())<>\"No Rebate\",MeasureCalc(Table_PI[[#This Row],[Hide:\nFormula Name]],Table_SummaryPI[[#This Row],[Quantity]],Table_PI[[#This Row],[List 1]],Table_PI[[#This Row],[List 2]],Table_PI[[#This Row],[List 3]],Table_PI[[#This Row],[Size]],Table_PI[[#This Row],[Input 1]],Table_PI[[#This Row],[Input 2]],Table_PI[[#This Row],[Input 3]],Table_PI[[#This Row],[Input 4]],'Customer Information'!$AR$12,201,ROW()),\"\"),\"\")","v":""}]
[{"$f":"Table_PI[[#This Row],[Line No.]]","v":""},{"$f":"IF(Table_SummaryPI[[#This Row],[MeassureCategory]]<>\"\",CONCATENATE(Table_SummaryPI[[#This Row],[MeassureCategory]],  \" - \", Table_SummaryPI[[#This Row],[ProposedMeasureCategory]],  \" - \", TEXT(Table_SummaryPI[[#This Row],[Size]],\"#,##0.00\"),\" \",Table_SummaryPI[[#This Row],[SizeUnit]]),\"\")","v":""},{"$f":"SUBSTITUTE(Table_PI[[#This Row],[Measure]],\"     \",\"\",1)","v":""},{"$f":"IF(Table_PI[[#This Row],[List 1]]<>\"\",Table_PI[[#This Row],[List 1]],\"\")","v":""},{"$f":"IF(Table_PI[[#This Row],[List 2]]<>\"\",Table_PI[[#This Row],[List 2]],\"\")","v":""},{"$f":"IF(Table_PI[[#This Row],[List 3]]<>\"\",Table_PI[[#This Row],[List 3]],\"\")","v":""},{"$f":"IF(Table_PI[[#This Row],[Manufacturer]]=\"\",\"\",Table_PI[[#This Row],[Manufacturer]])","v":""},{"$f":"IF(Table_PI[[#This Row],[Model Number]]=\"\",\"\",Table_PI[[#This Row],[Model Number]])","v":""},{"$f":"IF(Table_PI[[#This Row],[Serial Number(s)]]=\"\",\"\",Table_PI[[#This Row],[Serial Number(s)]])","v":""},null,{"$f":"IF(Table_PI[[#This Row],[Size]]=\"\",\"\",Table_PI[[#This Row],[Size]])","v":""},null,{"$f":"IFERROR(IF(AND(MeasureCalc(Table_PI[[#This Row],[Hide:\nFormula Name]],Table_SummaryPI[[#This Row],[Quantity]],Table_PI[[#This Row],[List 1]],Table_PI[[#This Row],[List 2]],Table_PI[[#This Row],[List 3]],Table_PI[[#This Row],[Size]],Table_PI[[#This Row],[Input 1]],Table_PI[[#This Row],[Input 2]],Table_PI[[#This Row],[Input 3]],Table_PI[[#This Row],[Input 4]],'Customer Information'!$AR$12,100,ROW())<>0,MeasureCalc(Table_PI[[#This Row],[Hide:\nFormula Name]],Table_SummaryPI[[#This Row],[Quantity]],Table_PI[[#This Row],[List 1]],Table_PI[[#This Row],[List 2]],Table_PI[[#This Row],[List 3]],Table_PI[[#This Row],[Size]],Table_PI[[#This Row],[Input 1]],Table_PI[[#This Row],[Input 2]],Table_PI[[#This Row],[Input 3]],Table_PI[[#This Row],[Input 4]],'Customer Information'!$AR$12,100,ROW())<>\"No Rebate\"),MeasureCalc(Table_PI[[#This Row],[Hide:\nFormula Name]],Table_SummaryPI[[#This Row],[Quantity]],Table_PI[[#This Row],[List 1]],Table_PI[[#This Row],[List 2]],Table_PI[[#This Row],[List 3]],Table_PI[[#This Row],[Size]],Table_PI[[#This Row],[Input 1]],Table_PI[[#This Row],[Input 2]],Table_PI[[#This Row],[Input 3]],Table_PI[[#This Row],[Input 4]],'Customer Information'!$AR$12,100,ROW()),\"\"),\"\")","v":""},{"$f":"IF(Table_PI[[#This Row],[Input 1]]<>\"\",Table_PI[[#This Row],[Input 1]],\"\")","v":""},null,{"$f":"IFERROR(IF(AND(MeasureCalc(Table_PI[[#This Row],[Hide:\nFormula Name]],Table_SummaryPI[[#This Row],[Quantity]],Table_PI[[#This Row],[List 1]],Table_PI[[#This Row],[List 2]],Table_PI[[#This Row],[List 3]],Table_PI[[#This Row],[Size]],Table_PI[[#This Row],[Input 1]],Table_PI[[#This Row],[Input 2]],Table_PI[[#This Row],[Input 3]],Table_PI[[#This Row],[Input 4]],'Customer Information'!$AR$12,101,ROW())<>0,MeasureCalc(Table_PI[[#This Row],[Hide:\nFormula Name]],Table_SummaryPI[[#This Row],[Quantity]],Table_PI[[#This Row],[List 1]],Table_PI[[#This Row],[List 2]],Table_PI[[#This Row],[List 3]],Table_PI[[#This Row],[Size]],Table_PI[[#This Row],[Input 1]],Table_PI[[#This Row],[Input 2]],Table_PI[[#This Row],[Input 3]],Table_PI[[#This Row],[Input 4]],'Customer Information'!$AR$12,101,ROW())<>\"No Rebate\"),MeasureCalc(Table_PI[[#This Row],[Hide:\nFormula Name]],Table_SummaryPI[[#This Row],[Quantity]],Table_PI[[#This Row],[List 1]],Table_PI[[#This Row],[List 2]],Table_PI[[#This Row],[List 3]],Table_PI[[#This Row],[Size]],Table_PI[[#This Row],[Input 1]],Table_PI[[#This Row],[Input 2]],Table_PI[[#This Row],[Input 3]],Table_PI[[#This Row],[Input 4]],'Customer Information'!$AR$12,101,ROW()),\"\"),\"\")","v":""},{"$f":"IF(Table_PI[[#This Row],[Input 2]]<>\"\",Table_PI[[#This Row],[Input 2]],\"\")","v":""},null,{"$f":"IFERROR(IF(AND(MeasureCalc(Table_PI[[#This Row],[Hide:\nFormula Name]],Table_SummaryPI[[#This Row],[Quantity]],Table_PI[[#This Row],[List 1]],Table_PI[[#This Row],[List 2]],Table_PI[[#This Row],[List 3]],Table_PI[[#This Row],[Size]],Table_PI[[#This Row],[Input 1]],Table_PI[[#This Row],[Input 2]],Table_PI[[#This Row],[Input 3]],Table_PI[[#This Row],[Input 4]],'Customer Information'!$AR$12,102,ROW())<>0,MeasureCalc(Table_PI[[#This Row],[Hide:\nFormula Name]],Table_SummaryPI[[#This Row],[Quantity]],Table_PI[[#This Row],[List 1]],Table_PI[[#This Row],[List 2]],Table_PI[[#This Row],[List 3]],Table_PI[[#This Row],[Size]],Table_PI[[#This Row],[Input 1]],Table_PI[[#This Row],[Input 2]],Table_PI[[#This Row],[Input 3]],Table_PI[[#This Row],[Input 4]],'Customer Information'!$AR$12,102,ROW())<>\"No Rebate\"),MeasureCalc(Table_PI[[#This Row],[Hide:\nFormula Name]],Table_SummaryPI[[#This Row],[Quantity]],Table_PI[[#This Row],[List 1]],Table_PI[[#This Row],[List 2]],Table_PI[[#This Row],[List 3]],Table_PI[[#This Row],[Size]],Table_PI[[#This Row],[Input 1]],Table_PI[[#This Row],[Input 2]],Table_PI[[#This Row],[Input 3]],Table_PI[[#This Row],[Input 4]],'Customer Information'!$AR$12,102,ROW()),\"\"),\"\")","v":""},{"$f":"IF(Table_PI[[#This Row],[Input 3]]<>\"\",Table_PI[[#This Row],[Input 3]],\"\")","v":""},null,{"$f":"IFERROR(IF(AND(MeasureCalc(Table_PI[[#This Row],[Hide:\nFormula Name]],Table_SummaryPI[[#This Row],[Quantity]],Table_PI[[#This Row],[List 1]],Table_PI[[#This Row],[List 2]],Table_PI[[#This Row],[List 3]],Table_PI[[#This Row],[Size]],Table_PI[[#This Row],[Input 1]],Table_PI[[#This Row],[Input 2]],Table_PI[[#This Row],[Input 3]],Table_PI[[#This Row],[Input 4]],'Customer Information'!$AR$12,103,ROW())<>0,MeasureCalc(Table_PI[[#This Row],[Hide:\nFormula Name]],Table_SummaryPI[[#This Row],[Quantity]],Table_PI[[#This Row],[List 1]],Table_PI[[#This Row],[List 2]],Table_PI[[#This Row],[List 3]],Table_PI[[#This Row],[Size]],Table_PI[[#This Row],[Input 1]],Table_PI[[#This Row],[Input 2]],Table_PI[[#This Row],[Input 3]],Table_PI[[#This Row],[Input 4]],'Customer Information'!$AR$12,103,ROW())<>\"No Rebate\"),MeasureCalc(Table_PI[[#This Row],[Hide:\nFormula Name]],Table_SummaryPI[[#This Row],[Quantity]],Table_PI[[#This Row],[List 1]],Table_PI[[#This Row],[List 2]],Table_PI[[#This Row],[List 3]],Table_PI[[#This Row],[Size]],Table_PI[[#This Row],[Input 1]],Table_PI[[#This Row],[Input 2]],Table_PI[[#This Row],[Input 3]],Table_PI[[#This Row],[Input 4]],'Customer Information'!$AR$12,103,ROW()),\"\"),\"\")","v":""},{"$f":"IF(Table_PI[[#This Row],[Input 4]]<>\"\",Table_PI[[#This Row],[Input 4]],\"\")","v":""},{"$f":"IF(Table_PI[[#This Row],[Quantity]]=\"\",\"\",Table_PI[[#This Row],[Quantity]])","v":""},{"$f":"IF(Table_PI[[#This Row],[Notes]]=\"\",\"\",Table_PI[[#This Row],[Notes]])","v":""},{"$f":"IF(OR(Table_PI[[#This Row],[Hide:\nBaseline kWh]]=\"\",Table_PI[[#This Row],[Hide:\nBaseline kWh]]=0),\"\",Table_PI[[#This Row],[Hide:\nBaseline kWh]])","v":""},{"$f":"IF(OR(Table_PI[[#This Row],[Hide:\nBaseline kW]]=\"\",Table_PI[[#This Row],[Hide:\nBaseline kW]]=0),\"\",Table_PI[[#This Row],[Hide:\nBaseline kW]])","v":""},{"$f":"IF(OR(Table_PI[[#This Row],[Hide:\nProposed kWh]]=\"\",Table_PI[[#This Row],[Hide:\nProposed kWh]]=0),\"\",Table_PI[[#This Row],[Hide:\nProposed kWh]])","v":""},{"$f":"IF(OR(Table_PI[[#This Row],[Hide:\nProposed kW]]=\"\",Table_PI[[#This Row],[Hide:\nProposed kW]]=0),\"\",Table_PI[[#This Row],[Hide:\nProposed kW]])","v":""},{"$f":"IF(OR(Table_PI[[#This Row],[Rebate]]=\"\",Table_PI[[#This Row],[Rebate]]=0),\"\",Table_PI[[#This Row],[Rebate]])","v":""},{"$f":"IF(OR(Table_PI[[#This Row],[Hide:\nIncremental Cost]]=\"\",Table_PI[[#This Row],[Hide:\nIncremental Cost]]=0),\"\",Table_PI[[#This Row],[Hide:\nIncremental Cost]])","v":""},{"$f":"IFERROR(IF(Table_SummaryPI[[#This Row],[kWhSavings]]=\"\",\"\",ROUND(Table_SummaryPI[[#This Row],[kWhSavings]]/$AG$401*'Customer Information'!$BC$17,2)),0)","v":""},{"$f":"IF(OR(Table_PI[[#This Row],[Annual kWh]]=\"\",Table_PI[[#This Row],[Annual kWh]]=0),\"\",Table_PI[[#This Row],[Annual kWh]])","v":""},{"$f":"IF(OR(Table_PI[[#This Row],[Peak kW]]=\"\",Table_PI[[#This Row],[Peak kW]]=0),\"\",Table_PI[[#This Row],[Peak kW]])","v":""},{"$f":"IFERROR(IF(Table_SummaryPI[[#This Row],[kWhSavings]]=\"\",\"\",$AU$9*Table_SummaryPI[[#This Row],[kWhSavings]]),0)","v":""},{"$f":"IFERROR(IF(Table_SummaryPI[[#This Row],[kWhSavings]]=\"\",\"\",$AU$14*Table_SummaryPI[[#This Row],[kWhSavings]]),0)","v":""},{"$f":"IFERROR(IF(Table_SummaryPI[[#This Row],[kWhSavings]]=\"\",\"\",$AU$18*Table_SummaryPI[[#This Row],[kWhSavings]]),0)","v":""},{"$f":"IFERROR(IF(Table_SummaryPI[[#This Row],[kWhSavings]]=\"\",\"\",$AU$22*Table_SummaryPI[[#This Row],[kWhSavings]]),0)","v":""},{"$f":"IFERROR(IF(MeasureCalc(Table_PI[[#This Row],[Hide:\nFormula Name]],Table_SummaryPI[[#This Row],[Quantity]],Table_PI[[#This Row],[List 1]],Table_PI[[#This Row],[List 2]],Table_PI[[#This Row],[List 3]],Table_PI[[#This Row],[Size]],Table_PI[[#This Row],[Input 1]],Table_PI[[#This Row],[Input 2]],Table_PI[[#This Row],[Input 3]],Table_PI[[#This Row],[Input 4]],'Customer Information'!$AR$12,200,ROW())<>\"No Rebate\",MeasureCalc(Table_PI[[#This Row],[Hide:\nFormula Name]],Table_SummaryPI[[#This Row],[Quantity]],Table_PI[[#This Row],[List 1]],Table_PI[[#This Row],[List 2]],Table_PI[[#This Row],[List 3]],Table_PI[[#This Row],[Size]],Table_PI[[#This Row],[Input 1]],Table_PI[[#This Row],[Input 2]],Table_PI[[#This Row],[Input 3]],Table_PI[[#This Row],[Input 4]],'Customer Information'!$AR$12,200,ROW()),\"\"),\"\")","v":""},{"$f":"IFERROR(IF(MeasureCalc(Table_PI[[#This Row],[Hide:\nFormula Name]],Table_SummaryPI[[#This Row],[Quantity]],Table_PI[[#This Row],[List 1]],Table_PI[[#This Row],[List 2]],Table_PI[[#This Row],[List 3]],Table_PI[[#This Row],[Size]],Table_PI[[#This Row],[Input 1]],Table_PI[[#This Row],[Input 2]],Table_PI[[#This Row],[Input 3]],Table_PI[[#This Row],[Input 4]],'Customer Information'!$AR$12,201,ROW())<>\"No Rebate\",MeasureCalc(Table_PI[[#This Row],[Hide:\nFormula Name]],Table_SummaryPI[[#This Row],[Quantity]],Table_PI[[#This Row],[List 1]],Table_PI[[#This Row],[List 2]],Table_PI[[#This Row],[List 3]],Table_PI[[#This Row],[Size]],Table_PI[[#This Row],[Input 1]],Table_PI[[#This Row],[Input 2]],Table_PI[[#This Row],[Input 3]],Table_PI[[#This Row],[Input 4]],'Customer Information'!$AR$12,201,ROW()),\"\"),\"\")","v":""}]
[{"$f":"Table_PI[[#This Row],[Line No.]]","v":""},{"$f":"IF(Table_SummaryPI[[#This Row],[MeassureCategory]]<>\"\",CONCATENATE(Table_SummaryPI[[#This Row],[MeassureCategory]],  \" - \", Table_SummaryPI[[#This Row],[ProposedMeasureCategory]],  \" - \", TEXT(Table_SummaryPI[[#This Row],[Size]],\"#,##0.00\"),\" \",Table_SummaryPI[[#This Row],[SizeUnit]]),\"\")","v":""},{"$f":"SUBSTITUTE(Table_PI[[#This Row],[Measure]],\"     \",\"\",1)","v":""},{"$f":"IF(Table_PI[[#This Row],[List 1]]<>\"\",Table_PI[[#This Row],[List 1]],\"\")","v":""},{"$f":"IF(Table_PI[[#This Row],[List 2]]<>\"\",Table_PI[[#This Row],[List 2]],\"\")","v":""},{"$f":"IF(Table_PI[[#This Row],[List 3]]<>\"\",Table_PI[[#This Row],[List 3]],\"\")","v":""},{"$f":"IF(Table_PI[[#This Row],[Manufacturer]]=\"\",\"\",Table_PI[[#This Row],[Manufacturer]])","v":""},{"$f":"IF(Table_PI[[#This Row],[Model Number]]=\"\",\"\",Table_PI[[#This Row],[Model Number]])","v":""},{"$f":"IF(Table_PI[[#This Row],[Serial Number(s)]]=\"\",\"\",Table_PI[[#This Row],[Serial Number(s)]])","v":""},null,{"$f":"IF(Table_PI[[#This Row],[Size]]=\"\",\"\",Table_PI[[#This Row],[Size]])","v":""},null,{"$f":"IFERROR(IF(AND(MeasureCalc(Table_PI[[#This Row],[Hide:\nFormula Name]],Table_SummaryPI[[#This Row],[Quantity]],Table_PI[[#This Row],[List 1]],Table_PI[[#This Row],[List 2]],Table_PI[[#This Row],[List 3]],Table_PI[[#This Row],[Size]],Table_PI[[#This Row],[Input 1]],Table_PI[[#This Row],[Input 2]],Table_PI[[#This Row],[Input 3]],Table_PI[[#This Row],[Input 4]],'Customer Information'!$AR$12,100,ROW())<>0,MeasureCalc(Table_PI[[#This Row],[Hide:\nFormula Name]],Table_SummaryPI[[#This Row],[Quantity]],Table_PI[[#This Row],[List 1]],Table_PI[[#This Row],[List 2]],Table_PI[[#This Row],[List 3]],Table_PI[[#This Row],[Size]],Table_PI[[#This Row],[Input 1]],Table_PI[[#This Row],[Input 2]],Table_PI[[#This Row],[Input 3]],Table_PI[[#This Row],[Input 4]],'Customer Information'!$AR$12,100,ROW())<>\"No Rebate\"),MeasureCalc(Table_PI[[#This Row],[Hide:\nFormula Name]],Table_SummaryPI[[#This Row],[Quantity]],Table_PI[[#This Row],[List 1]],Table_PI[[#This Row],[List 2]],Table_PI[[#This Row],[List 3]],Table_PI[[#This Row],[Size]],Table_PI[[#This Row],[Input 1]],Table_PI[[#This Row],[Input 2]],Table_PI[[#This Row],[Input 3]],Table_PI[[#This Row],[Input 4]],'Customer Information'!$AR$12,100,ROW()),\"\"),\"\")","v":""},{"$f":"IF(Table_PI[[#This Row],[Input 1]]<>\"\",Table_PI[[#This Row],[Input 1]],\"\")","v":""},null,{"$f":"IFERROR(IF(AND(MeasureCalc(Table_PI[[#This Row],[Hide:\nFormula Name]],Table_SummaryPI[[#This Row],[Quantity]],Table_PI[[#This Row],[List 1]],Table_PI[[#This Row],[List 2]],Table_PI[[#This Row],[List 3]],Table_PI[[#This Row],[Size]],Table_PI[[#This Row],[Input 1]],Table_PI[[#This Row],[Input 2]],Table_PI[[#This Row],[Input 3]],Table_PI[[#This Row],[Input 4]],'Customer Information'!$AR$12,101,ROW())<>0,MeasureCalc(Table_PI[[#This Row],[Hide:\nFormula Name]],Table_SummaryPI[[#This Row],[Quantity]],Table_PI[[#This Row],[List 1]],Table_PI[[#This Row],[List 2]],Table_PI[[#This Row],[List 3]],Table_PI[[#This Row],[Size]],Table_PI[[#This Row],[Input 1]],Table_PI[[#This Row],[Input 2]],Table_PI[[#This Row],[Input 3]],Table_PI[[#This Row],[Input 4]],'Customer Information'!$AR$12,101,ROW())<>\"No Rebate\"),MeasureCalc(Table_PI[[#This Row],[Hide:\nFormula Name]],Table_SummaryPI[[#This Row],[Quantity]],Table_PI[[#This Row],[List 1]],Table_PI[[#This Row],[List 2]],Table_PI[[#This Row],[List 3]],Table_PI[[#This Row],[Size]],Table_PI[[#This Row],[Input 1]],Table_PI[[#This Row],[Input 2]],Table_PI[[#This Row],[Input 3]],Table_PI[[#This Row],[Input 4]],'Customer Information'!$AR$12,101,ROW()),\"\"),\"\")","v":""},{"$f":"IF(Table_PI[[#This Row],[Input 2]]<>\"\",Table_PI[[#This Row],[Input 2]],\"\")","v":""},null,{"$f":"IFERROR(IF(AND(MeasureCalc(Table_PI[[#This Row],[Hide:\nFormula Name]],Table_SummaryPI[[#This Row],[Quantity]],Table_PI[[#This Row],[List 1]],Table_PI[[#This Row],[List 2]],Table_PI[[#This Row],[List 3]],Table_PI[[#This Row],[Size]],Table_PI[[#This Row],[Input 1]],Table_PI[[#This Row],[Input 2]],Table_PI[[#This Row],[Input 3]],Table_PI[[#This Row],[Input 4]],'Customer Information'!$AR$12,102,ROW())<>0,MeasureCalc(Table_PI[[#This Row],[Hide:\nFormula Name]],Table_SummaryPI[[#This Row],[Quantity]],Table_PI[[#This Row],[List 1]],Table_PI[[#This Row],[List 2]],Table_PI[[#This Row],[List 3]],Table_PI[[#This Row],[Size]],Table_PI[[#This Row],[Input 1]],Table_PI[[#This Row],[Input 2]],Table_PI[[#This Row],[Input 3]],Table_PI[[#This Row],[Input 4]],'Customer Information'!$AR$12,102,ROW())<>\"No Rebate\"),MeasureCalc(Table_PI[[#This Row],[Hide:\nFormula Name]],Table_SummaryPI[[#This Row],[Quantity]],Table_PI[[#This Row],[List 1]],Table_PI[[#This Row],[List 2]],Table_PI[[#This Row],[List 3]],Table_PI[[#This Row],[Size]],Table_PI[[#This Row],[Input 1]],Table_PI[[#This Row],[Input 2]],Table_PI[[#This Row],[Input 3]],Table_PI[[#This Row],[Input 4]],'Customer Information'!$AR$12,102,ROW()),\"\"),\"\")","v":""},{"$f":"IF(Table_PI[[#This Row],[Input 3]]<>\"\",Table_PI[[#This Row],[Input 3]],\"\")","v":""},null,{"$f":"IFERROR(IF(AND(MeasureCalc(Table_PI[[#This Row],[Hide:\nFormula Name]],Table_SummaryPI[[#This Row],[Quantity]],Table_PI[[#This Row],[List 1]],Table_PI[[#This Row],[List 2]],Table_PI[[#This Row],[List 3]],Table_PI[[#This Row],[Size]],Table_PI[[#This Row],[Input 1]],Table_PI[[#This Row],[Input 2]],Table_PI[[#This Row],[Input 3]],Table_PI[[#This Row],[Input 4]],'Customer Information'!$AR$12,103,ROW())<>0,MeasureCalc(Table_PI[[#This Row],[Hide:\nFormula Name]],Table_SummaryPI[[#This Row],[Quantity]],Table_PI[[#This Row],[List 1]],Table_PI[[#This Row],[List 2]],Table_PI[[#This Row],[List 3]],Table_PI[[#This Row],[Size]],Table_PI[[#This Row],[Input 1]],Table_PI[[#This Row],[Input 2]],Table_PI[[#This Row],[Input 3]],Table_PI[[#This Row],[Input 4]],'Customer Information'!$AR$12,103,ROW())<>\"No Rebate\"),MeasureCalc(Table_PI[[#This Row],[Hide:\nFormula Name]],Table_SummaryPI[[#This Row],[Quantity]],Table_PI[[#This Row],[List 1]],Table_PI[[#This Row],[List 2]],Table_PI[[#This Row],[List 3]],Table_PI[[#This Row],[Size]],Table_PI[[#This Row],[Input 1]],Table_PI[[#This Row],[Input 2]],Table_PI[[#This Row],[Input 3]],Table_PI[[#This Row],[Input 4]],'Customer Information'!$AR$12,103,ROW()),\"\"),\"\")","v":""},{"$f":"IF(Table_PI[[#This Row],[Input 4]]<>\"\",Table_PI[[#This Row],[Input 4]],\"\")","v":""},{"$f":"IF(Table_PI[[#This Row],[Quantity]]=\"\",\"\",Table_PI[[#This Row],[Quantity]])","v":""},{"$f":"IF(Table_PI[[#This Row],[Notes]]=\"\",\"\",Table_PI[[#This Row],[Notes]])","v":""},{"$f":"IF(OR(Table_PI[[#This Row],[Hide:\nBaseline kWh]]=\"\",Table_PI[[#This Row],[Hide:\nBaseline kWh]]=0),\"\",Table_PI[[#This Row],[Hide:\nBaseline kWh]])","v":""},{"$f":"IF(OR(Table_PI[[#This Row],[Hide:\nBaseline kW]]=\"\",Table_PI[[#This Row],[Hide:\nBaseline kW]]=0),\"\",Table_PI[[#This Row],[Hide:\nBaseline kW]])","v":""},{"$f":"IF(OR(Table_PI[[#This Row],[Hide:\nProposed kWh]]=\"\",Table_PI[[#This Row],[Hide:\nProposed kWh]]=0),\"\",Table_PI[[#This Row],[Hide:\nProposed kWh]])","v":""},{"$f":"IF(OR(Table_PI[[#This Row],[Hide:\nProposed kW]]=\"\",Table_PI[[#This Row],[Hide:\nProposed kW]]=0),\"\",Table_PI[[#This Row],[Hide:\nProposed kW]])","v":""},{"$f":"IF(OR(Table_PI[[#This Row],[Rebate]]=\"\",Table_PI[[#This Row],[Rebate]]=0),\"\",Table_PI[[#This Row],[Rebate]])","v":""},{"$f":"IF(OR(Table_PI[[#This Row],[Hide:\nIncremental Cost]]=\"\",Table_PI[[#This Row],[Hide:\nIncremental Cost]]=0),\"\",Table_PI[[#This Row],[Hide:\nIncremental Cost]])","v":""},{"$f":"IFERROR(IF(Table_SummaryPI[[#This Row],[kWhSavings]]=\"\",\"\",ROUND(Table_SummaryPI[[#This Row],[kWhSavings]]/$AG$401*'Customer Information'!$BC$17,2)),0)","v":""},{"$f":"IF(OR(Table_PI[[#This Row],[Annual kWh]]=\"\",Table_PI[[#This Row],[Annual kWh]]=0),\"\",Table_PI[[#This Row],[Annual kWh]])","v":""},{"$f":"IF(OR(Table_PI[[#This Row],[Peak kW]]=\"\",Table_PI[[#This Row],[Peak kW]]=0),\"\",Table_PI[[#This Row],[Peak kW]])","v":""},{"$f":"IFERROR(IF(Table_SummaryPI[[#This Row],[kWhSavings]]=\"\",\"\",$AU$9*Table_SummaryPI[[#This Row],[kWhSavings]]),0)","v":""},{"$f":"IFERROR(IF(Table_SummaryPI[[#This Row],[kWhSavings]]=\"\",\"\",$AU$14*Table_SummaryPI[[#This Row],[kWhSavings]]),0)","v":""},{"$f":"IFERROR(IF(Table_SummaryPI[[#This Row],[kWhSavings]]=\"\",\"\",$AU$18*Table_SummaryPI[[#This Row],[kWhSavings]]),0)","v":""},{"$f":"IFERROR(IF(Table_SummaryPI[[#This Row],[kWhSavings]]=\"\",\"\",$AU$22*Table_SummaryPI[[#This Row],[kWhSavings]]),0)","v":""},{"$f":"IFERROR(IF(MeasureCalc(Table_PI[[#This Row],[Hide:\nFormula Name]],Table_SummaryPI[[#This Row],[Quantity]],Table_PI[[#This Row],[List 1]],Table_PI[[#This Row],[List 2]],Table_PI[[#This Row],[List 3]],Table_PI[[#This Row],[Size]],Table_PI[[#This Row],[Input 1]],Table_PI[[#This Row],[Input 2]],Table_PI[[#This Row],[Input 3]],Table_PI[[#This Row],[Input 4]],'Customer Information'!$AR$12,200,ROW())<>\"No Rebate\",MeasureCalc(Table_PI[[#This Row],[Hide:\nFormula Name]],Table_SummaryPI[[#This Row],[Quantity]],Table_PI[[#This Row],[List 1]],Table_PI[[#This Row],[List 2]],Table_PI[[#This Row],[List 3]],Table_PI[[#This Row],[Size]],Table_PI[[#This Row],[Input 1]],Table_PI[[#This Row],[Input 2]],Table_PI[[#This Row],[Input 3]],Table_PI[[#This Row],[Input 4]],'Customer Information'!$AR$12,200,ROW()),\"\"),\"\")","v":""},{"$f":"IFERROR(IF(MeasureCalc(Table_PI[[#This Row],[Hide:\nFormula Name]],Table_SummaryPI[[#This Row],[Quantity]],Table_PI[[#This Row],[List 1]],Table_PI[[#This Row],[List 2]],Table_PI[[#This Row],[List 3]],Table_PI[[#This Row],[Size]],Table_PI[[#This Row],[Input 1]],Table_PI[[#This Row],[Input 2]],Table_PI[[#This Row],[Input 3]],Table_PI[[#This Row],[Input 4]],'Customer Information'!$AR$12,201,ROW())<>\"No Rebate\",MeasureCalc(Table_PI[[#This Row],[Hide:\nFormula Name]],Table_SummaryPI[[#This Row],[Quantity]],Table_PI[[#This Row],[List 1]],Table_PI[[#This Row],[List 2]],Table_PI[[#This Row],[List 3]],Table_PI[[#This Row],[Size]],Table_PI[[#This Row],[Input 1]],Table_PI[[#This Row],[Input 2]],Table_PI[[#This Row],[Input 3]],Table_PI[[#This Row],[Input 4]],'Customer Information'!$AR$12,201,ROW()),\"\"),\"\")","v":""}]
[{"$f":"Table_PI[[#This Row],[Line No.]]","v":""},{"$f":"IF(Table_SummaryPI[[#This Row],[MeassureCategory]]<>\"\",CONCATENATE(Table_SummaryPI[[#This Row],[MeassureCategory]],  \" - \", Table_SummaryPI[[#This Row],[ProposedMeasureCategory]],  \" - \", TEXT(Table_SummaryPI[[#This Row],[Size]],\"#,##0.00\"),\" \",Table_SummaryPI[[#This Row],[SizeUnit]]),\"\")","v":""},{"$f":"SUBSTITUTE(Table_PI[[#This Row],[Measure]],\"     \",\"\",1)","v":""},{"$f":"IF(Table_PI[[#This Row],[List 1]]<>\"\",Table_PI[[#This Row],[List 1]],\"\")","v":""},{"$f":"IF(Table_PI[[#This Row],[List 2]]<>\"\",Table_PI[[#This Row],[List 2]],\"\")","v":""},{"$f":"IF(Table_PI[[#This Row],[List 3]]<>\"\",Table_PI[[#This Row],[List 3]],\"\")","v":""},{"$f":"IF(Table_PI[[#This Row],[Manufacturer]]=\"\",\"\",Table_PI[[#This Row],[Manufacturer]])","v":""},{"$f":"IF(Table_PI[[#This Row],[Model Number]]=\"\",\"\",Table_PI[[#This Row],[Model Number]])","v":""},{"$f":"IF(Table_PI[[#This Row],[Serial Number(s)]]=\"\",\"\",Table_PI[[#This Row],[Serial Number(s)]])","v":""},null,{"$f":"IF(Table_PI[[#This Row],[Size]]=\"\",\"\",Table_PI[[#This Row],[Size]])","v":""},null,{"$f":"IFERROR(IF(AND(MeasureCalc(Table_PI[[#This Row],[Hide:\nFormula Name]],Table_SummaryPI[[#This Row],[Quantity]],Table_PI[[#This Row],[List 1]],Table_PI[[#This Row],[List 2]],Table_PI[[#This Row],[List 3]],Table_PI[[#This Row],[Size]],Table_PI[[#This Row],[Input 1]],Table_PI[[#This Row],[Input 2]],Table_PI[[#This Row],[Input 3]],Table_PI[[#This Row],[Input 4]],'Customer Information'!$AR$12,100,ROW())<>0,MeasureCalc(Table_PI[[#This Row],[Hide:\nFormula Name]],Table_SummaryPI[[#This Row],[Quantity]],Table_PI[[#This Row],[List 1]],Table_PI[[#This Row],[List 2]],Table_PI[[#This Row],[List 3]],Table_PI[[#This Row],[Size]],Table_PI[[#This Row],[Input 1]],Table_PI[[#This Row],[Input 2]],Table_PI[[#This Row],[Input 3]],Table_PI[[#This Row],[Input 4]],'Customer Information'!$AR$12,100,ROW())<>\"No Rebate\"),MeasureCalc(Table_PI[[#This Row],[Hide:\nFormula Name]],Table_SummaryPI[[#This Row],[Quantity]],Table_PI[[#This Row],[List 1]],Table_PI[[#This Row],[List 2]],Table_PI[[#This Row],[List 3]],Table_PI[[#This Row],[Size]],Table_PI[[#This Row],[Input 1]],Table_PI[[#This Row],[Input 2]],Table_PI[[#This Row],[Input 3]],Table_PI[[#This Row],[Input 4]],'Customer Information'!$AR$12,100,ROW()),\"\"),\"\")","v":""},{"$f":"IF(Table_PI[[#This Row],[Input 1]]<>\"\",Table_PI[[#This Row],[Input 1]],\"\")","v":""},null,{"$f":"IFERROR(IF(AND(MeasureCalc(Table_PI[[#This Row],[Hide:\nFormula Name]],Table_SummaryPI[[#This Row],[Quantity]],Table_PI[[#This Row],[List 1]],Table_PI[[#This Row],[List 2]],Table_PI[[#This Row],[List 3]],Table_PI[[#This Row],[Size]],Table_PI[[#This Row],[Input 1]],Table_PI[[#This Row],[Input 2]],Table_PI[[#This Row],[Input 3]],Table_PI[[#This Row],[Input 4]],'Customer Information'!$AR$12,101,ROW())<>0,MeasureCalc(Table_PI[[#This Row],[Hide:\nFormula Name]],Table_SummaryPI[[#This Row],[Quantity]],Table_PI[[#This Row],[List 1]],Table_PI[[#This Row],[List 2]],Table_PI[[#This Row],[List 3]],Table_PI[[#This Row],[Size]],Table_PI[[#This Row],[Input 1]],Table_PI[[#This Row],[Input 2]],Table_PI[[#This Row],[Input 3]],Table_PI[[#This Row],[Input 4]],'Customer Information'!$AR$12,101,ROW())<>\"No Rebate\"),MeasureCalc(Table_PI[[#This Row],[Hide:\nFormula Name]],Table_SummaryPI[[#This Row],[Quantity]],Table_PI[[#This Row],[List 1]],Table_PI[[#This Row],[List 2]],Table_PI[[#This Row],[List 3]],Table_PI[[#This Row],[Size]],Table_PI[[#This Row],[Input 1]],Table_PI[[#This Row],[Input 2]],Table_PI[[#This Row],[Input 3]],Table_PI[[#This Row],[Input 4]],'Customer Information'!$AR$12,101,ROW()),\"\"),\"\")","v":""},{"$f":"IF(Table_PI[[#This Row],[Input 2]]<>\"\",Table_PI[[#This Row],[Input 2]],\"\")","v":""},null,{"$f":"IFERROR(IF(AND(MeasureCalc(Table_PI[[#This Row],[Hide:\nFormula Name]],Table_SummaryPI[[#This Row],[Quantity]],Table_PI[[#This Row],[List 1]],Table_PI[[#This Row],[List 2]],Table_PI[[#This Row],[List 3]],Table_PI[[#This Row],[Size]],Table_PI[[#This Row],[Input 1]],Table_PI[[#This Row],[Input 2]],Table_PI[[#This Row],[Input 3]],Table_PI[[#This Row],[Input 4]],'Customer Information'!$AR$12,102,ROW())<>0,MeasureCalc(Table_PI[[#This Row],[Hide:\nFormula Name]],Table_SummaryPI[[#This Row],[Quantity]],Table_PI[[#This Row],[List 1]],Table_PI[[#This Row],[List 2]],Table_PI[[#This Row],[List 3]],Table_PI[[#This Row],[Size]],Table_PI[[#This Row],[Input 1]],Table_PI[[#This Row],[Input 2]],Table_PI[[#This Row],[Input 3]],Table_PI[[#This Row],[Input 4]],'Customer Information'!$AR$12,102,ROW())<>\"No Rebate\"),MeasureCalc(Table_PI[[#This Row],[Hide:\nFormula Name]],Table_SummaryPI[[#This Row],[Quantity]],Table_PI[[#This Row],[List 1]],Table_PI[[#This Row],[List 2]],Table_PI[[#This Row],[List 3]],Table_PI[[#This Row],[Size]],Table_PI[[#This Row],[Input 1]],Table_PI[[#This Row],[Input 2]],Table_PI[[#This Row],[Input 3]],Table_PI[[#This Row],[Input 4]],'Customer Information'!$AR$12,102,ROW()),\"\"),\"\")","v":""},{"$f":"IF(Table_PI[[#This Row],[Input 3]]<>\"\",Table_PI[[#This Row],[Input 3]],\"\")","v":""},null,{"$f":"IFERROR(IF(AND(MeasureCalc(Table_PI[[#This Row],[Hide:\nFormula Name]],Table_SummaryPI[[#This Row],[Quantity]],Table_PI[[#This Row],[List 1]],Table_PI[[#This Row],[List 2]],Table_PI[[#This Row],[List 3]],Table_PI[[#This Row],[Size]],Table_PI[[#This Row],[Input 1]],Table_PI[[#This Row],[Input 2]],Table_PI[[#This Row],[Input 3]],Table_PI[[#This Row],[Input 4]],'Customer Information'!$AR$12,103,ROW())<>0,MeasureCalc(Table_PI[[#This Row],[Hide:\nFormula Name]],Table_SummaryPI[[#This Row],[Quantity]],Table_PI[[#This Row],[List 1]],Table_PI[[#This Row],[List 2]],Table_PI[[#This Row],[List 3]],Table_PI[[#This Row],[Size]],Table_PI[[#This Row],[Input 1]],Table_PI[[#This Row],[Input 2]],Table_PI[[#This Row],[Input 3]],Table_PI[[#This Row],[Input 4]],'Customer Information'!$AR$12,103,ROW())<>\"No Rebate\"),MeasureCalc(Table_PI[[#This Row],[Hide:\nFormula Name]],Table_SummaryPI[[#This Row],[Quantity]],Table_PI[[#This Row],[List 1]],Table_PI[[#This Row],[List 2]],Table_PI[[#This Row],[List 3]],Table_PI[[#This Row],[Size]],Table_PI[[#This Row],[Input 1]],Table_PI[[#This Row],[Input 2]],Table_PI[[#This Row],[Input 3]],Table_PI[[#This Row],[Input 4]],'Customer Information'!$AR$12,103,ROW()),\"\"),\"\")","v":""},{"$f":"IF(Table_PI[[#This Row],[Input 4]]<>\"\",Table_PI[[#This Row],[Input 4]],\"\")","v":""},{"$f":"IF(Table_PI[[#This Row],[Quantity]]=\"\",\"\",Table_PI[[#This Row],[Quantity]])","v":""},{"$f":"IF(Table_PI[[#This Row],[Notes]]=\"\",\"\",Table_PI[[#This Row],[Notes]])","v":""},{"$f":"IF(OR(Table_PI[[#This Row],[Hide:\nBaseline kWh]]=\"\",Table_PI[[#This Row],[Hide:\nBaseline kWh]]=0),\"\",Table_PI[[#This Row],[Hide:\nBaseline kWh]])","v":""},{"$f":"IF(OR(Table_PI[[#This Row],[Hide:\nBaseline kW]]=\"\",Table_PI[[#This Row],[Hide:\nBaseline kW]]=0),\"\",Table_PI[[#This Row],[Hide:\nBaseline kW]])","v":""},{"$f":"IF(OR(Table_PI[[#This Row],[Hide:\nProposed kWh]]=\"\",Table_PI[[#This Row],[Hide:\nProposed kWh]]=0),\"\",Table_PI[[#This Row],[Hide:\nProposed kWh]])","v":""},{"$f":"IF(OR(Table_PI[[#This Row],[Hide:\nProposed kW]]=\"\",Table_PI[[#This Row],[Hide:\nProposed kW]]=0),\"\",Table_PI[[#This Row],[Hide:\nProposed kW]])","v":""},{"$f":"IF(OR(Table_PI[[#This Row],[Rebate]]=\"\",Table_PI[[#This Row],[Rebate]]=0),\"\",Table_PI[[#This Row],[Rebate]])","v":""},{"$f":"IF(OR(Table_PI[[#This Row],[Hide:\nIncremental Cost]]=\"\",Table_PI[[#This Row],[Hide:\nIncremental Cost]]=0),\"\",Table_PI[[#This Row],[Hide:\nIncremental Cost]])","v":""},{"$f":"IFERROR(IF(Table_SummaryPI[[#This Row],[kWhSavings]]=\"\",\"\",ROUND(Table_SummaryPI[[#This Row],[kWhSavings]]/$AG$401*'Customer Information'!$BC$17,2)),0)","v":""},{"$f":"IF(OR(Table_PI[[#This Row],[Annual kWh]]=\"\",Table_PI[[#This Row],[Annual kWh]]=0),\"\",Table_PI[[#This Row],[Annual kWh]])","v":""},{"$f":"IF(OR(Table_PI[[#This Row],[Peak kW]]=\"\",Table_PI[[#This Row],[Peak kW]]=0),\"\",Table_PI[[#This Row],[Peak kW]])","v":""},{"$f":"IFERROR(IF(Table_SummaryPI[[#This Row],[kWhSavings]]=\"\",\"\",$AU$9*Table_SummaryPI[[#This Row],[kWhSavings]]),0)","v":""},{"$f":"IFERROR(IF(Table_SummaryPI[[#This Row],[kWhSavings]]=\"\",\"\",$AU$14*Table_SummaryPI[[#This Row],[kWhSavings]]),0)","v":""},{"$f":"IFERROR(IF(Table_SummaryPI[[#This Row],[kWhSavings]]=\"\",\"\",$AU$18*Table_SummaryPI[[#This Row],[kWhSavings]]),0)","v":""},{"$f":"IFERROR(IF(Table_SummaryPI[[#This Row],[kWhSavings]]=\"\",\"\",$AU$22*Table_SummaryPI[[#This Row],[kWhSavings]]),0)","v":""},{"$f":"IFERROR(IF(MeasureCalc(Table_PI[[#This Row],[Hide:\nFormula Name]],Table_SummaryPI[[#This Row],[Quantity]],Table_PI[[#This Row],[List 1]],Table_PI[[#This Row],[List 2]],Table_PI[[#This Row],[List 3]],Table_PI[[#This Row],[Size]],Table_PI[[#This Row],[Input 1]],Table_PI[[#This Row],[Input 2]],Table_PI[[#This Row],[Input 3]],Table_PI[[#This Row],[Input 4]],'Customer Information'!$AR$12,200,ROW())<>\"No Rebate\",MeasureCalc(Table_PI[[#This Row],[Hide:\nFormula Name]],Table_SummaryPI[[#This Row],[Quantity]],Table_PI[[#This Row],[List 1]],Table_PI[[#This Row],[List 2]],Table_PI[[#This Row],[List 3]],Table_PI[[#This Row],[Size]],Table_PI[[#This Row],[Input 1]],Table_PI[[#This Row],[Input 2]],Table_PI[[#This Row],[Input 3]],Table_PI[[#This Row],[Input 4]],'Customer Information'!$AR$12,200,ROW()),\"\"),\"\")","v":""},{"$f":"IFERROR(IF(MeasureCalc(Table_PI[[#This Row],[Hide:\nFormula Name]],Table_SummaryPI[[#This Row],[Quantity]],Table_PI[[#This Row],[List 1]],Table_PI[[#This Row],[List 2]],Table_PI[[#This Row],[List 3]],Table_PI[[#This Row],[Size]],Table_PI[[#This Row],[Input 1]],Table_PI[[#This Row],[Input 2]],Table_PI[[#This Row],[Input 3]],Table_PI[[#This Row],[Input 4]],'Customer Information'!$AR$12,201,ROW())<>\"No Rebate\",MeasureCalc(Table_PI[[#This Row],[Hide:\nFormula Name]],Table_SummaryPI[[#This Row],[Quantity]],Table_PI[[#This Row],[List 1]],Table_PI[[#This Row],[List 2]],Table_PI[[#This Row],[List 3]],Table_PI[[#This Row],[Size]],Table_PI[[#This Row],[Input 1]],Table_PI[[#This Row],[Input 2]],Table_PI[[#This Row],[Input 3]],Table_PI[[#This Row],[Input 4]],'Customer Information'!$AR$12,201,ROW()),\"\"),\"\")","v":""}]
[{"$f":"Table_PI[[#This Row],[Line No.]]","v":""},{"$f":"IF(Table_SummaryPI[[#This Row],[MeassureCategory]]<>\"\",CONCATENATE(Table_SummaryPI[[#This Row],[MeassureCategory]],  \" - \", Table_SummaryPI[[#This Row],[ProposedMeasureCategory]],  \" - \", TEXT(Table_SummaryPI[[#This Row],[Size]],\"#,##0.00\"),\" \",Table_SummaryPI[[#This Row],[SizeUnit]]),\"\")","v":""},{"$f":"SUBSTITUTE(Table_PI[[#This Row],[Measure]],\"     \",\"\",1)","v":""},{"$f":"IF(Table_PI[[#This Row],[List 1]]<>\"\",Table_PI[[#This Row],[List 1]],\"\")","v":""},{"$f":"IF(Table_PI[[#This Row],[List 2]]<>\"\",Table_PI[[#This Row],[List 2]],\"\")","v":""},{"$f":"IF(Table_PI[[#This Row],[List 3]]<>\"\",Table_PI[[#This Row],[List 3]],\"\")","v":""},{"$f":"IF(Table_PI[[#This Row],[Manufacturer]]=\"\",\"\",Table_PI[[#This Row],[Manufacturer]])","v":""},{"$f":"IF(Table_PI[[#This Row],[Model Number]]=\"\",\"\",Table_PI[[#This Row],[Model Number]])","v":""},{"$f":"IF(Table_PI[[#This Row],[Serial Number(s)]]=\"\",\"\",Table_PI[[#This Row],[Serial Number(s)]])","v":""},null,{"$f":"IF(Table_PI[[#This Row],[Size]]=\"\",\"\",Table_PI[[#This Row],[Size]])","v":""},null,{"$f":"IFERROR(IF(AND(MeasureCalc(Table_PI[[#This Row],[Hide:\nFormula Name]],Table_SummaryPI[[#This Row],[Quantity]],Table_PI[[#This Row],[List 1]],Table_PI[[#This Row],[List 2]],Table_PI[[#This Row],[List 3]],Table_PI[[#This Row],[Size]],Table_PI[[#This Row],[Input 1]],Table_PI[[#This Row],[Input 2]],Table_PI[[#This Row],[Input 3]],Table_PI[[#This Row],[Input 4]],'Customer Information'!$AR$12,100,ROW())<>0,MeasureCalc(Table_PI[[#This Row],[Hide:\nFormula Name]],Table_SummaryPI[[#This Row],[Quantity]],Table_PI[[#This Row],[List 1]],Table_PI[[#This Row],[List 2]],Table_PI[[#This Row],[List 3]],Table_PI[[#This Row],[Size]],Table_PI[[#This Row],[Input 1]],Table_PI[[#This Row],[Input 2]],Table_PI[[#This Row],[Input 3]],Table_PI[[#This Row],[Input 4]],'Customer Information'!$AR$12,100,ROW())<>\"No Rebate\"),MeasureCalc(Table_PI[[#This Row],[Hide:\nFormula Name]],Table_SummaryPI[[#This Row],[Quantity]],Table_PI[[#This Row],[List 1]],Table_PI[[#This Row],[List 2]],Table_PI[[#This Row],[List 3]],Table_PI[[#This Row],[Size]],Table_PI[[#This Row],[Input 1]],Table_PI[[#This Row],[Input 2]],Table_PI[[#This Row],[Input 3]],Table_PI[[#This Row],[Input 4]],'Customer Information'!$AR$12,100,ROW()),\"\"),\"\")","v":""},{"$f":"IF(Table_PI[[#This Row],[Input 1]]<>\"\",Table_PI[[#This Row],[Input 1]],\"\")","v":""},null,{"$f":"IFERROR(IF(AND(MeasureCalc(Table_PI[[#This Row],[Hide:\nFormula Name]],Table_SummaryPI[[#This Row],[Quantity]],Table_PI[[#This Row],[List 1]],Table_PI[[#This Row],[List 2]],Table_PI[[#This Row],[List 3]],Table_PI[[#This Row],[Size]],Table_PI[[#This Row],[Input 1]],Table_PI[[#This Row],[Input 2]],Table_PI[[#This Row],[Input 3]],Table_PI[[#This Row],[Input 4]],'Customer Information'!$AR$12,101,ROW())<>0,MeasureCalc(Table_PI[[#This Row],[Hide:\nFormula Name]],Table_SummaryPI[[#This Row],[Quantity]],Table_PI[[#This Row],[List 1]],Table_PI[[#This Row],[List 2]],Table_PI[[#This Row],[List 3]],Table_PI[[#This Row],[Size]],Table_PI[[#This Row],[Input 1]],Table_PI[[#This Row],[Input 2]],Table_PI[[#This Row],[Input 3]],Table_PI[[#This Row],[Input 4]],'Customer Information'!$AR$12,101,ROW())<>\"No Rebate\"),MeasureCalc(Table_PI[[#This Row],[Hide:\nFormula Name]],Table_SummaryPI[[#This Row],[Quantity]],Table_PI[[#This Row],[List 1]],Table_PI[[#This Row],[List 2]],Table_PI[[#This Row],[List 3]],Table_PI[[#This Row],[Size]],Table_PI[[#This Row],[Input 1]],Table_PI[[#This Row],[Input 2]],Table_PI[[#This Row],[Input 3]],Table_PI[[#This Row],[Input 4]],'Customer Information'!$AR$12,101,ROW()),\"\"),\"\")","v":""},{"$f":"IF(Table_PI[[#This Row],[Input 2]]<>\"\",Table_PI[[#This Row],[Input 2]],\"\")","v":""},null,{"$f":"IFERROR(IF(AND(MeasureCalc(Table_PI[[#This Row],[Hide:\nFormula Name]],Table_SummaryPI[[#This Row],[Quantity]],Table_PI[[#This Row],[List 1]],Table_PI[[#This Row],[List 2]],Table_PI[[#This Row],[List 3]],Table_PI[[#This Row],[Size]],Table_PI[[#This Row],[Input 1]],Table_PI[[#This Row],[Input 2]],Table_PI[[#This Row],[Input 3]],Table_PI[[#This Row],[Input 4]],'Customer Information'!$AR$12,102,ROW())<>0,MeasureCalc(Table_PI[[#This Row],[Hide:\nFormula Name]],Table_SummaryPI[[#This Row],[Quantity]],Table_PI[[#This Row],[List 1]],Table_PI[[#This Row],[List 2]],Table_PI[[#This Row],[List 3]],Table_PI[[#This Row],[Size]],Table_PI[[#This Row],[Input 1]],Table_PI[[#This Row],[Input 2]],Table_PI[[#This Row],[Input 3]],Table_PI[[#This Row],[Input 4]],'Customer Information'!$AR$12,102,ROW())<>\"No Rebate\"),MeasureCalc(Table_PI[[#This Row],[Hide:\nFormula Name]],Table_SummaryPI[[#This Row],[Quantity]],Table_PI[[#This Row],[List 1]],Table_PI[[#This Row],[List 2]],Table_PI[[#This Row],[List 3]],Table_PI[[#This Row],[Size]],Table_PI[[#This Row],[Input 1]],Table_PI[[#This Row],[Input 2]],Table_PI[[#This Row],[Input 3]],Table_PI[[#This Row],[Input 4]],'Customer Information'!$AR$12,102,ROW()),\"\"),\"\")","v":""},{"$f":"IF(Table_PI[[#This Row],[Input 3]]<>\"\",Table_PI[[#This Row],[Input 3]],\"\")","v":""},null,{"$f":"IFERROR(IF(AND(MeasureCalc(Table_PI[[#This Row],[Hide:\nFormula Name]],Table_SummaryPI[[#This Row],[Quantity]],Table_PI[[#This Row],[List 1]],Table_PI[[#This Row],[List 2]],Table_PI[[#This Row],[List 3]],Table_PI[[#This Row],[Size]],Table_PI[[#This Row],[Input 1]],Table_PI[[#This Row],[Input 2]],Table_PI[[#This Row],[Input 3]],Table_PI[[#This Row],[Input 4]],'Customer Information'!$AR$12,103,ROW())<>0,MeasureCalc(Table_PI[[#This Row],[Hide:\nFormula Name]],Table_SummaryPI[[#This Row],[Quantity]],Table_PI[[#This Row],[List 1]],Table_PI[[#This Row],[List 2]],Table_PI[[#This Row],[List 3]],Table_PI[[#This Row],[Size]],Table_PI[[#This Row],[Input 1]],Table_PI[[#This Row],[Input 2]],Table_PI[[#This Row],[Input 3]],Table_PI[[#This Row],[Input 4]],'Customer Information'!$AR$12,103,ROW())<>\"No Rebate\"),MeasureCalc(Table_PI[[#This Row],[Hide:\nFormula Name]],Table_SummaryPI[[#This Row],[Quantity]],Table_PI[[#This Row],[List 1]],Table_PI[[#This Row],[List 2]],Table_PI[[#This Row],[List 3]],Table_PI[[#This Row],[Size]],Table_PI[[#This Row],[Input 1]],Table_PI[[#This Row],[Input 2]],Table_PI[[#This Row],[Input 3]],Table_PI[[#This Row],[Input 4]],'Customer Information'!$AR$12,103,ROW()),\"\"),\"\")","v":""},{"$f":"IF(Table_PI[[#This Row],[Input 4]]<>\"\",Table_PI[[#This Row],[Input 4]],\"\")","v":""},{"$f":"IF(Table_PI[[#This Row],[Quantity]]=\"\",\"\",Table_PI[[#This Row],[Quantity]])","v":""},{"$f":"IF(Table_PI[[#This Row],[Notes]]=\"\",\"\",Table_PI[[#This Row],[Notes]])","v":""},{"$f":"IF(OR(Table_PI[[#This Row],[Hide:\nBaseline kWh]]=\"\",Table_PI[[#This Row],[Hide:\nBaseline kWh]]=0),\"\",Table_PI[[#This Row],[Hide:\nBaseline kWh]])","v":""},{"$f":"IF(OR(Table_PI[[#This Row],[Hide:\nBaseline kW]]=\"\",Table_PI[[#This Row],[Hide:\nBaseline kW]]=0),\"\",Table_PI[[#This Row],[Hide:\nBaseline kW]])","v":""},{"$f":"IF(OR(Table_PI[[#This Row],[Hide:\nProposed kWh]]=\"\",Table_PI[[#This Row],[Hide:\nProposed kWh]]=0),\"\",Table_PI[[#This Row],[Hide:\nProposed kWh]])","v":""},{"$f":"IF(OR(Table_PI[[#This Row],[Hide:\nProposed kW]]=\"\",Table_PI[[#This Row],[Hide:\nProposed kW]]=0),\"\",Table_PI[[#This Row],[Hide:\nProposed kW]])","v":""},{"$f":"IF(OR(Table_PI[[#This Row],[Rebate]]=\"\",Table_PI[[#This Row],[Rebate]]=0),\"\",Table_PI[[#This Row],[Rebate]])","v":""},{"$f":"IF(OR(Table_PI[[#This Row],[Hide:\nIncremental Cost]]=\"\",Table_PI[[#This Row],[Hide:\nIncremental Cost]]=0),\"\",Table_PI[[#This Row],[Hide:\nIncremental Cost]])","v":""},{"$f":"IFERROR(IF(Table_SummaryPI[[#This Row],[kWhSavings]]=\"\",\"\",ROUND(Table_SummaryPI[[#This Row],[kWhSavings]]/$AG$401*'Customer Information'!$BC$17,2)),0)","v":""},{"$f":"IF(OR(Table_PI[[#This Row],[Annual kWh]]=\"\",Table_PI[[#This Row],[Annual kWh]]=0),\"\",Table_PI[[#This Row],[Annual kWh]])","v":""},{"$f":"IF(OR(Table_PI[[#This Row],[Peak kW]]=\"\",Table_PI[[#This Row],[Peak kW]]=0),\"\",Table_PI[[#This Row],[Peak kW]])","v":""},{"$f":"IFERROR(IF(Table_SummaryPI[[#This Row],[kWhSavings]]=\"\",\"\",$AU$9*Table_SummaryPI[[#This Row],[kWhSavings]]),0)","v":""},{"$f":"IFERROR(IF(Table_SummaryPI[[#This Row],[kWhSavings]]=\"\",\"\",$AU$14*Table_SummaryPI[[#This Row],[kWhSavings]]),0)","v":""},{"$f":"IFERROR(IF(Table_SummaryPI[[#This Row],[kWhSavings]]=\"\",\"\",$AU$18*Table_SummaryPI[[#This Row],[kWhSavings]]),0)","v":""},{"$f":"IFERROR(IF(Table_SummaryPI[[#This Row],[kWhSavings]]=\"\",\"\",$AU$22*Table_SummaryPI[[#This Row],[kWhSavings]]),0)","v":""},{"$f":"IFERROR(IF(MeasureCalc(Table_PI[[#This Row],[Hide:\nFormula Name]],Table_SummaryPI[[#This Row],[Quantity]],Table_PI[[#This Row],[List 1]],Table_PI[[#This Row],[List 2]],Table_PI[[#This Row],[List 3]],Table_PI[[#This Row],[Size]],Table_PI[[#This Row],[Input 1]],Table_PI[[#This Row],[Input 2]],Table_PI[[#This Row],[Input 3]],Table_PI[[#This Row],[Input 4]],'Customer Information'!$AR$12,200,ROW())<>\"No Rebate\",MeasureCalc(Table_PI[[#This Row],[Hide:\nFormula Name]],Table_SummaryPI[[#This Row],[Quantity]],Table_PI[[#This Row],[List 1]],Table_PI[[#This Row],[List 2]],Table_PI[[#This Row],[List 3]],Table_PI[[#This Row],[Size]],Table_PI[[#This Row],[Input 1]],Table_PI[[#This Row],[Input 2]],Table_PI[[#This Row],[Input 3]],Table_PI[[#This Row],[Input 4]],'Customer Information'!$AR$12,200,ROW()),\"\"),\"\")","v":""},{"$f":"IFERROR(IF(MeasureCalc(Table_PI[[#This Row],[Hide:\nFormula Name]],Table_SummaryPI[[#This Row],[Quantity]],Table_PI[[#This Row],[List 1]],Table_PI[[#This Row],[List 2]],Table_PI[[#This Row],[List 3]],Table_PI[[#This Row],[Size]],Table_PI[[#This Row],[Input 1]],Table_PI[[#This Row],[Input 2]],Table_PI[[#This Row],[Input 3]],Table_PI[[#This Row],[Input 4]],'Customer Information'!$AR$12,201,ROW())<>\"No Rebate\",MeasureCalc(Table_PI[[#This Row],[Hide:\nFormula Name]],Table_SummaryPI[[#This Row],[Quantity]],Table_PI[[#This Row],[List 1]],Table_PI[[#This Row],[List 2]],Table_PI[[#This Row],[List 3]],Table_PI[[#This Row],[Size]],Table_PI[[#This Row],[Input 1]],Table_PI[[#This Row],[Input 2]],Table_PI[[#This Row],[Input 3]],Table_PI[[#This Row],[Input 4]],'Customer Information'!$AR$12,201,ROW()),\"\"),\"\")","v":""}]
[{"$f":"Table_PI[[#This Row],[Line No.]]","v":""},{"$f":"IF(Table_SummaryPI[[#This Row],[MeassureCategory]]<>\"\",CONCATENATE(Table_SummaryPI[[#This Row],[MeassureCategory]],  \" - \", Table_SummaryPI[[#This Row],[ProposedMeasureCategory]],  \" - \", TEXT(Table_SummaryPI[[#This Row],[Size]],\"#,##0.00\"),\" \",Table_SummaryPI[[#This Row],[SizeUnit]]),\"\")","v":""},{"$f":"SUBSTITUTE(Table_PI[[#This Row],[Measure]],\"     \",\"\",1)","v":""},{"$f":"IF(Table_PI[[#This Row],[List 1]]<>\"\",Table_PI[[#This Row],[List 1]],\"\")","v":""},{"$f":"IF(Table_PI[[#This Row],[List 2]]<>\"\",Table_PI[[#This Row],[List 2]],\"\")","v":""},{"$f":"IF(Table_PI[[#This Row],[List 3]]<>\"\",Table_PI[[#This Row],[List 3]],\"\")","v":""},{"$f":"IF(Table_PI[[#This Row],[Manufacturer]]=\"\",\"\",Table_PI[[#This Row],[Manufacturer]])","v":""},{"$f":"IF(Table_PI[[#This Row],[Model Number]]=\"\",\"\",Table_PI[[#This Row],[Model Number]])","v":""},{"$f":"IF(Table_PI[[#This Row],[Serial Number(s)]]=\"\",\"\",Table_PI[[#This Row],[Serial Number(s)]])","v":""},null,{"$f":"IF(Table_PI[[#This Row],[Size]]=\"\",\"\",Table_PI[[#This Row],[Size]])","v":""},null,{"$f":"IFERROR(IF(AND(MeasureCalc(Table_PI[[#This Row],[Hide:\nFormula Name]],Table_SummaryPI[[#This Row],[Quantity]],Table_PI[[#This Row],[List 1]],Table_PI[[#This Row],[List 2]],Table_PI[[#This Row],[List 3]],Table_PI[[#This Row],[Size]],Table_PI[[#This Row],[Input 1]],Table_PI[[#This Row],[Input 2]],Table_PI[[#This Row],[Input 3]],Table_PI[[#This Row],[Input 4]],'Customer Information'!$AR$12,100,ROW())<>0,MeasureCalc(Table_PI[[#This Row],[Hide:\nFormula Name]],Table_SummaryPI[[#This Row],[Quantity]],Table_PI[[#This Row],[List 1]],Table_PI[[#This Row],[List 2]],Table_PI[[#This Row],[List 3]],Table_PI[[#This Row],[Size]],Table_PI[[#This Row],[Input 1]],Table_PI[[#This Row],[Input 2]],Table_PI[[#This Row],[Input 3]],Table_PI[[#This Row],[Input 4]],'Customer Information'!$AR$12,100,ROW())<>\"No Rebate\"),MeasureCalc(Table_PI[[#This Row],[Hide:\nFormula Name]],Table_SummaryPI[[#This Row],[Quantity]],Table_PI[[#This Row],[List 1]],Table_PI[[#This Row],[List 2]],Table_PI[[#This Row],[List 3]],Table_PI[[#This Row],[Size]],Table_PI[[#This Row],[Input 1]],Table_PI[[#This Row],[Input 2]],Table_PI[[#This Row],[Input 3]],Table_PI[[#This Row],[Input 4]],'Customer Information'!$AR$12,100,ROW()),\"\"),\"\")","v":""},{"$f":"IF(Table_PI[[#This Row],[Input 1]]<>\"\",Table_PI[[#This Row],[Input 1]],\"\")","v":""},null,{"$f":"IFERROR(IF(AND(MeasureCalc(Table_PI[[#This Row],[Hide:\nFormula Name]],Table_SummaryPI[[#This Row],[Quantity]],Table_PI[[#This Row],[List 1]],Table_PI[[#This Row],[List 2]],Table_PI[[#This Row],[List 3]],Table_PI[[#This Row],[Size]],Table_PI[[#This Row],[Input 1]],Table_PI[[#This Row],[Input 2]],Table_PI[[#This Row],[Input 3]],Table_PI[[#This Row],[Input 4]],'Customer Information'!$AR$12,101,ROW())<>0,MeasureCalc(Table_PI[[#This Row],[Hide:\nFormula Name]],Table_SummaryPI[[#This Row],[Quantity]],Table_PI[[#This Row],[List 1]],Table_PI[[#This Row],[List 2]],Table_PI[[#This Row],[List 3]],Table_PI[[#This Row],[Size]],Table_PI[[#This Row],[Input 1]],Table_PI[[#This Row],[Input 2]],Table_PI[[#This Row],[Input 3]],Table_PI[[#This Row],[Input 4]],'Customer Information'!$AR$12,101,ROW())<>\"No Rebate\"),MeasureCalc(Table_PI[[#This Row],[Hide:\nFormula Name]],Table_SummaryPI[[#This Row],[Quantity]],Table_PI[[#This Row],[List 1]],Table_PI[[#This Row],[List 2]],Table_PI[[#This Row],[List 3]],Table_PI[[#This Row],[Size]],Table_PI[[#This Row],[Input 1]],Table_PI[[#This Row],[Input 2]],Table_PI[[#This Row],[Input 3]],Table_PI[[#This Row],[Input 4]],'Customer Information'!$AR$12,101,ROW()),\"\"),\"\")","v":""},{"$f":"IF(Table_PI[[#This Row],[Input 2]]<>\"\",Table_PI[[#This Row],[Input 2]],\"\")","v":""},null,{"$f":"IFERROR(IF(AND(MeasureCalc(Table_PI[[#This Row],[Hide:\nFormula Name]],Table_SummaryPI[[#This Row],[Quantity]],Table_PI[[#This Row],[List 1]],Table_PI[[#This Row],[List 2]],Table_PI[[#This Row],[List 3]],Table_PI[[#This Row],[Size]],Table_PI[[#This Row],[Input 1]],Table_PI[[#This Row],[Input 2]],Table_PI[[#This Row],[Input 3]],Table_PI[[#This Row],[Input 4]],'Customer Information'!$AR$12,102,ROW())<>0,MeasureCalc(Table_PI[[#This Row],[Hide:\nFormula Name]],Table_SummaryPI[[#This Row],[Quantity]],Table_PI[[#This Row],[List 1]],Table_PI[[#This Row],[List 2]],Table_PI[[#This Row],[List 3]],Table_PI[[#This Row],[Size]],Table_PI[[#This Row],[Input 1]],Table_PI[[#This Row],[Input 2]],Table_PI[[#This Row],[Input 3]],Table_PI[[#This Row],[Input 4]],'Customer Information'!$AR$12,102,ROW())<>\"No Rebate\"),MeasureCalc(Table_PI[[#This Row],[Hide:\nFormula Name]],Table_SummaryPI[[#This Row],[Quantity]],Table_PI[[#This Row],[List 1]],Table_PI[[#This Row],[List 2]],Table_PI[[#This Row],[List 3]],Table_PI[[#This Row],[Size]],Table_PI[[#This Row],[Input 1]],Table_PI[[#This Row],[Input 2]],Table_PI[[#This Row],[Input 3]],Table_PI[[#This Row],[Input 4]],'Customer Information'!$AR$12,102,ROW()),\"\"),\"\")","v":""},{"$f":"IF(Table_PI[[#This Row],[Input 3]]<>\"\",Table_PI[[#This Row],[Input 3]],\"\")","v":""},null,{"$f":"IFERROR(IF(AND(MeasureCalc(Table_PI[[#This Row],[Hide:\nFormula Name]],Table_SummaryPI[[#This Row],[Quantity]],Table_PI[[#This Row],[List 1]],Table_PI[[#This Row],[List 2]],Table_PI[[#This Row],[List 3]],Table_PI[[#This Row],[Size]],Table_PI[[#This Row],[Input 1]],Table_PI[[#This Row],[Input 2]],Table_PI[[#This Row],[Input 3]],Table_PI[[#This Row],[Input 4]],'Customer Information'!$AR$12,103,ROW())<>0,MeasureCalc(Table_PI[[#This Row],[Hide:\nFormula Name]],Table_SummaryPI[[#This Row],[Quantity]],Table_PI[[#This Row],[List 1]],Table_PI[[#This Row],[List 2]],Table_PI[[#This Row],[List 3]],Table_PI[[#This Row],[Size]],Table_PI[[#This Row],[Input 1]],Table_PI[[#This Row],[Input 2]],Table_PI[[#This Row],[Input 3]],Table_PI[[#This Row],[Input 4]],'Customer Information'!$AR$12,103,ROW())<>\"No Rebate\"),MeasureCalc(Table_PI[[#This Row],[Hide:\nFormula Name]],Table_SummaryPI[[#This Row],[Quantity]],Table_PI[[#This Row],[List 1]],Table_PI[[#This Row],[List 2]],Table_PI[[#This Row],[List 3]],Table_PI[[#This Row],[Size]],Table_PI[[#This Row],[Input 1]],Table_PI[[#This Row],[Input 2]],Table_PI[[#This Row],[Input 3]],Table_PI[[#This Row],[Input 4]],'Customer Information'!$AR$12,103,ROW()),\"\"),\"\")","v":""},{"$f":"IF(Table_PI[[#This Row],[Input 4]]<>\"\",Table_PI[[#This Row],[Input 4]],\"\")","v":""},{"$f":"IF(Table_PI[[#This Row],[Quantity]]=\"\",\"\",Table_PI[[#This Row],[Quantity]])","v":""},{"$f":"IF(Table_PI[[#This Row],[Notes]]=\"\",\"\",Table_PI[[#This Row],[Notes]])","v":""},{"$f":"IF(OR(Table_PI[[#This Row],[Hide:\nBaseline kWh]]=\"\",Table_PI[[#This Row],[Hide:\nBaseline kWh]]=0),\"\",Table_PI[[#This Row],[Hide:\nBaseline kWh]])","v":""},{"$f":"IF(OR(Table_PI[[#This Row],[Hide:\nBaseline kW]]=\"\",Table_PI[[#This Row],[Hide:\nBaseline kW]]=0),\"\",Table_PI[[#This Row],[Hide:\nBaseline kW]])","v":""},{"$f":"IF(OR(Table_PI[[#This Row],[Hide:\nProposed kWh]]=\"\",Table_PI[[#This Row],[Hide:\nProposed kWh]]=0),\"\",Table_PI[[#This Row],[Hide:\nProposed kWh]])","v":""},{"$f":"IF(OR(Table_PI[[#This Row],[Hide:\nProposed kW]]=\"\",Table_PI[[#This Row],[Hide:\nProposed kW]]=0),\"\",Table_PI[[#This Row],[Hide:\nProposed kW]])","v":""},{"$f":"IF(OR(Table_PI[[#This Row],[Rebate]]=\"\",Table_PI[[#This Row],[Rebate]]=0),\"\",Table_PI[[#This Row],[Rebate]])","v":""},{"$f":"IF(OR(Table_PI[[#This Row],[Hide:\nIncremental Cost]]=\"\",Table_PI[[#This Row],[Hide:\nIncremental Cost]]=0),\"\",Table_PI[[#This Row],[Hide:\nIncremental Cost]])","v":""},{"$f":"IFERROR(IF(Table_SummaryPI[[#This Row],[kWhSavings]]=\"\",\"\",ROUND(Table_SummaryPI[[#This Row],[kWhSavings]]/$AG$401*'Customer Information'!$BC$17,2)),0)","v":""},{"$f":"IF(OR(Table_PI[[#This Row],[Annual kWh]]=\"\",Table_PI[[#This Row],[Annual kWh]]=0),\"\",Table_PI[[#This Row],[Annual kWh]])","v":""},{"$f":"IF(OR(Table_PI[[#This Row],[Peak kW]]=\"\",Table_PI[[#This Row],[Peak kW]]=0),\"\",Table_PI[[#This Row],[Peak kW]])","v":""},{"$f":"IFERROR(IF(Table_SummaryPI[[#This Row],[kWhSavings]]=\"\",\"\",$AU$9*Table_SummaryPI[[#This Row],[kWhSavings]]),0)","v":""},{"$f":"IFERROR(IF(Table_SummaryPI[[#This Row],[kWhSavings]]=\"\",\"\",$AU$14*Table_SummaryPI[[#This Row],[kWhSavings]]),0)","v":""},{"$f":"IFERROR(IF(Table_SummaryPI[[#This Row],[kWhSavings]]=\"\",\"\",$AU$18*Table_SummaryPI[[#This Row],[kWhSavings]]),0)","v":""},{"$f":"IFERROR(IF(Table_SummaryPI[[#This Row],[kWhSavings]]=\"\",\"\",$AU$22*Table_SummaryPI[[#This Row],[kWhSavings]]),0)","v":""},{"$f":"IFERROR(IF(MeasureCalc(Table_PI[[#This Row],[Hide:\nFormula Name]],Table_SummaryPI[[#This Row],[Quantity]],Table_PI[[#This Row],[List 1]],Table_PI[[#This Row],[List 2]],Table_PI[[#This Row],[List 3]],Table_PI[[#This Row],[Size]],Table_PI[[#This Row],[Input 1]],Table_PI[[#This Row],[Input 2]],Table_PI[[#This Row],[Input 3]],Table_PI[[#This Row],[Input 4]],'Customer Information'!$AR$12,200,ROW())<>\"No Rebate\",MeasureCalc(Table_PI[[#This Row],[Hide:\nFormula Name]],Table_SummaryPI[[#This Row],[Quantity]],Table_PI[[#This Row],[List 1]],Table_PI[[#This Row],[List 2]],Table_PI[[#This Row],[List 3]],Table_PI[[#This Row],[Size]],Table_PI[[#This Row],[Input 1]],Table_PI[[#This Row],[Input 2]],Table_PI[[#This Row],[Input 3]],Table_PI[[#This Row],[Input 4]],'Customer Information'!$AR$12,200,ROW()),\"\"),\"\")","v":""},{"$f":"IFERROR(IF(MeasureCalc(Table_PI[[#This Row],[Hide:\nFormula Name]],Table_SummaryPI[[#This Row],[Quantity]],Table_PI[[#This Row],[List 1]],Table_PI[[#This Row],[List 2]],Table_PI[[#This Row],[List 3]],Table_PI[[#This Row],[Size]],Table_PI[[#This Row],[Input 1]],Table_PI[[#This Row],[Input 2]],Table_PI[[#This Row],[Input 3]],Table_PI[[#This Row],[Input 4]],'Customer Information'!$AR$12,201,ROW())<>\"No Rebate\",MeasureCalc(Table_PI[[#This Row],[Hide:\nFormula Name]],Table_SummaryPI[[#This Row],[Quantity]],Table_PI[[#This Row],[List 1]],Table_PI[[#This Row],[List 2]],Table_PI[[#This Row],[List 3]],Table_PI[[#This Row],[Size]],Table_PI[[#This Row],[Input 1]],Table_PI[[#This Row],[Input 2]],Table_PI[[#This Row],[Input 3]],Table_PI[[#This Row],[Input 4]],'Customer Information'!$AR$12,201,ROW()),\"\"),\"\")","v":""}]
[{"$f":"Table_PI[[#This Row],[Line No.]]","v":""},{"$f":"IF(Table_SummaryPI[[#This Row],[MeassureCategory]]<>\"\",CONCATENATE(Table_SummaryPI[[#This Row],[MeassureCategory]],  \" - \", Table_SummaryPI[[#This Row],[ProposedMeasureCategory]],  \" - \", TEXT(Table_SummaryPI[[#This Row],[Size]],\"#,##0.00\"),\" \",Table_SummaryPI[[#This Row],[SizeUnit]]),\"\")","v":""},{"$f":"SUBSTITUTE(Table_PI[[#This Row],[Measure]],\"     \",\"\",1)","v":""},{"$f":"IF(Table_PI[[#This Row],[List 1]]<>\"\",Table_PI[[#This Row],[List 1]],\"\")","v":""},{"$f":"IF(Table_PI[[#This Row],[List 2]]<>\"\",Table_PI[[#This Row],[List 2]],\"\")","v":""},{"$f":"IF(Table_PI[[#This Row],[List 3]]<>\"\",Table_PI[[#This Row],[List 3]],\"\")","v":""},{"$f":"IF(Table_PI[[#This Row],[Manufacturer]]=\"\",\"\",Table_PI[[#This Row],[Manufacturer]])","v":""},{"$f":"IF(Table_PI[[#This Row],[Model Number]]=\"\",\"\",Table_PI[[#This Row],[Model Number]])","v":""},{"$f":"IF(Table_PI[[#This Row],[Serial Number(s)]]=\"\",\"\",Table_PI[[#This Row],[Serial Number(s)]])","v":""},null,{"$f":"IF(Table_PI[[#This Row],[Size]]=\"\",\"\",Table_PI[[#This Row],[Size]])","v":""},null,{"$f":"IFERROR(IF(AND(MeasureCalc(Table_PI[[#This Row],[Hide:\nFormula Name]],Table_SummaryPI[[#This Row],[Quantity]],Table_PI[[#This Row],[List 1]],Table_PI[[#This Row],[List 2]],Table_PI[[#This Row],[List 3]],Table_PI[[#This Row],[Size]],Table_PI[[#This Row],[Input 1]],Table_PI[[#This Row],[Input 2]],Table_PI[[#This Row],[Input 3]],Table_PI[[#This Row],[Input 4]],'Customer Information'!$AR$12,100,ROW())<>0,MeasureCalc(Table_PI[[#This Row],[Hide:\nFormula Name]],Table_SummaryPI[[#This Row],[Quantity]],Table_PI[[#This Row],[List 1]],Table_PI[[#This Row],[List 2]],Table_PI[[#This Row],[List 3]],Table_PI[[#This Row],[Size]],Table_PI[[#This Row],[Input 1]],Table_PI[[#This Row],[Input 2]],Table_PI[[#This Row],[Input 3]],Table_PI[[#This Row],[Input 4]],'Customer Information'!$AR$12,100,ROW())<>\"No Rebate\"),MeasureCalc(Table_PI[[#This Row],[Hide:\nFormula Name]],Table_SummaryPI[[#This Row],[Quantity]],Table_PI[[#This Row],[List 1]],Table_PI[[#This Row],[List 2]],Table_PI[[#This Row],[List 3]],Table_PI[[#This Row],[Size]],Table_PI[[#This Row],[Input 1]],Table_PI[[#This Row],[Input 2]],Table_PI[[#This Row],[Input 3]],Table_PI[[#This Row],[Input 4]],'Customer Information'!$AR$12,100,ROW()),\"\"),\"\")","v":""},{"$f":"IF(Table_PI[[#This Row],[Input 1]]<>\"\",Table_PI[[#This Row],[Input 1]],\"\")","v":""},null,{"$f":"IFERROR(IF(AND(MeasureCalc(Table_PI[[#This Row],[Hide:\nFormula Name]],Table_SummaryPI[[#This Row],[Quantity]],Table_PI[[#This Row],[List 1]],Table_PI[[#This Row],[List 2]],Table_PI[[#This Row],[List 3]],Table_PI[[#This Row],[Size]],Table_PI[[#This Row],[Input 1]],Table_PI[[#This Row],[Input 2]],Table_PI[[#This Row],[Input 3]],Table_PI[[#This Row],[Input 4]],'Customer Information'!$AR$12,101,ROW())<>0,MeasureCalc(Table_PI[[#This Row],[Hide:\nFormula Name]],Table_SummaryPI[[#This Row],[Quantity]],Table_PI[[#This Row],[List 1]],Table_PI[[#This Row],[List 2]],Table_PI[[#This Row],[List 3]],Table_PI[[#This Row],[Size]],Table_PI[[#This Row],[Input 1]],Table_PI[[#This Row],[Input 2]],Table_PI[[#This Row],[Input 3]],Table_PI[[#This Row],[Input 4]],'Customer Information'!$AR$12,101,ROW())<>\"No Rebate\"),MeasureCalc(Table_PI[[#This Row],[Hide:\nFormula Name]],Table_SummaryPI[[#This Row],[Quantity]],Table_PI[[#This Row],[List 1]],Table_PI[[#This Row],[List 2]],Table_PI[[#This Row],[List 3]],Table_PI[[#This Row],[Size]],Table_PI[[#This Row],[Input 1]],Table_PI[[#This Row],[Input 2]],Table_PI[[#This Row],[Input 3]],Table_PI[[#This Row],[Input 4]],'Customer Information'!$AR$12,101,ROW()),\"\"),\"\")","v":""},{"$f":"IF(Table_PI[[#This Row],[Input 2]]<>\"\",Table_PI[[#This Row],[Input 2]],\"\")","v":""},null,{"$f":"IFERROR(IF(AND(MeasureCalc(Table_PI[[#This Row],[Hide:\nFormula Name]],Table_SummaryPI[[#This Row],[Quantity]],Table_PI[[#This Row],[List 1]],Table_PI[[#This Row],[List 2]],Table_PI[[#This Row],[List 3]],Table_PI[[#This Row],[Size]],Table_PI[[#This Row],[Input 1]],Table_PI[[#This Row],[Input 2]],Table_PI[[#This Row],[Input 3]],Table_PI[[#This Row],[Input 4]],'Customer Information'!$AR$12,102,ROW())<>0,MeasureCalc(Table_PI[[#This Row],[Hide:\nFormula Name]],Table_SummaryPI[[#This Row],[Quantity]],Table_PI[[#This Row],[List 1]],Table_PI[[#This Row],[List 2]],Table_PI[[#This Row],[List 3]],Table_PI[[#This Row],[Size]],Table_PI[[#This Row],[Input 1]],Table_PI[[#This Row],[Input 2]],Table_PI[[#This Row],[Input 3]],Table_PI[[#This Row],[Input 4]],'Customer Information'!$AR$12,102,ROW())<>\"No Rebate\"),MeasureCalc(Table_PI[[#This Row],[Hide:\nFormula Name]],Table_SummaryPI[[#This Row],[Quantity]],Table_PI[[#This Row],[List 1]],Table_PI[[#This Row],[List 2]],Table_PI[[#This Row],[List 3]],Table_PI[[#This Row],[Size]],Table_PI[[#This Row],[Input 1]],Table_PI[[#This Row],[Input 2]],Table_PI[[#This Row],[Input 3]],Table_PI[[#This Row],[Input 4]],'Customer Information'!$AR$12,102,ROW()),\"\"),\"\")","v":""},{"$f":"IF(Table_PI[[#This Row],[Input 3]]<>\"\",Table_PI[[#This Row],[Input 3]],\"\")","v":""},null,{"$f":"IFERROR(IF(AND(MeasureCalc(Table_PI[[#This Row],[Hide:\nFormula Name]],Table_SummaryPI[[#This Row],[Quantity]],Table_PI[[#This Row],[List 1]],Table_PI[[#This Row],[List 2]],Table_PI[[#This Row],[List 3]],Table_PI[[#This Row],[Size]],Table_PI[[#This Row],[Input 1]],Table_PI[[#This Row],[Input 2]],Table_PI[[#This Row],[Input 3]],Table_PI[[#This Row],[Input 4]],'Customer Information'!$AR$12,103,ROW())<>0,MeasureCalc(Table_PI[[#This Row],[Hide:\nFormula Name]],Table_SummaryPI[[#This Row],[Quantity]],Table_PI[[#This Row],[List 1]],Table_PI[[#This Row],[List 2]],Table_PI[[#This Row],[List 3]],Table_PI[[#This Row],[Size]],Table_PI[[#This Row],[Input 1]],Table_PI[[#This Row],[Input 2]],Table_PI[[#This Row],[Input 3]],Table_PI[[#This Row],[Input 4]],'Customer Information'!$AR$12,103,ROW())<>\"No Rebate\"),MeasureCalc(Table_PI[[#This Row],[Hide:\nFormula Name]],Table_SummaryPI[[#This Row],[Quantity]],Table_PI[[#This Row],[List 1]],Table_PI[[#This Row],[List 2]],Table_PI[[#This Row],[List 3]],Table_PI[[#This Row],[Size]],Table_PI[[#This Row],[Input 1]],Table_PI[[#This Row],[Input 2]],Table_PI[[#This Row],[Input 3]],Table_PI[[#This Row],[Input 4]],'Customer Information'!$AR$12,103,ROW()),\"\"),\"\")","v":""},{"$f":"IF(Table_PI[[#This Row],[Input 4]]<>\"\",Table_PI[[#This Row],[Input 4]],\"\")","v":""},{"$f":"IF(Table_PI[[#This Row],[Quantity]]=\"\",\"\",Table_PI[[#This Row],[Quantity]])","v":""},{"$f":"IF(Table_PI[[#This Row],[Notes]]=\"\",\"\",Table_PI[[#This Row],[Notes]])","v":""},{"$f":"IF(OR(Table_PI[[#This Row],[Hide:\nBaseline kWh]]=\"\",Table_PI[[#This Row],[Hide:\nBaseline kWh]]=0),\"\",Table_PI[[#This Row],[Hide:\nBaseline kWh]])","v":""},{"$f":"IF(OR(Table_PI[[#This Row],[Hide:\nBaseline kW]]=\"\",Table_PI[[#This Row],[Hide:\nBaseline kW]]=0),\"\",Table_PI[[#This Row],[Hide:\nBaseline kW]])","v":""},{"$f":"IF(OR(Table_PI[[#This Row],[Hide:\nProposed kWh]]=\"\",Table_PI[[#This Row],[Hide:\nProposed kWh]]=0),\"\",Table_PI[[#This Row],[Hide:\nProposed kWh]])","v":""},{"$f":"IF(OR(Table_PI[[#This Row],[Hide:\nProposed kW]]=\"\",Table_PI[[#This Row],[Hide:\nProposed kW]]=0),\"\",Table_PI[[#This Row],[Hide:\nProposed kW]])","v":""},{"$f":"IF(OR(Table_PI[[#This Row],[Rebate]]=\"\",Table_PI[[#This Row],[Rebate]]=0),\"\",Table_PI[[#This Row],[Rebate]])","v":""},{"$f":"IF(OR(Table_PI[[#This Row],[Hide:\nIncremental Cost]]=\"\",Table_PI[[#This Row],[Hide:\nIncremental Cost]]=0),\"\",Table_PI[[#This Row],[Hide:\nIncremental Cost]])","v":""},{"$f":"IFERROR(IF(Table_SummaryPI[[#This Row],[kWhSavings]]=\"\",\"\",ROUND(Table_SummaryPI[[#This Row],[kWhSavings]]/$AG$401*'Customer Information'!$BC$17,2)),0)","v":""},{"$f":"IF(OR(Table_PI[[#This Row],[Annual kWh]]=\"\",Table_PI[[#This Row],[Annual kWh]]=0),\"\",Table_PI[[#This Row],[Annual kWh]])","v":""},{"$f":"IF(OR(Table_PI[[#This Row],[Peak kW]]=\"\",Table_PI[[#This Row],[Peak kW]]=0),\"\",Table_PI[[#This Row],[Peak kW]])","v":""},{"$f":"IFERROR(IF(Table_SummaryPI[[#This Row],[kWhSavings]]=\"\",\"\",$AU$9*Table_SummaryPI[[#This Row],[kWhSavings]]),0)","v":""},{"$f":"IFERROR(IF(Table_SummaryPI[[#This Row],[kWhSavings]]=\"\",\"\",$AU$14*Table_SummaryPI[[#This Row],[kWhSavings]]),0)","v":""},{"$f":"IFERROR(IF(Table_SummaryPI[[#This Row],[kWhSavings]]=\"\",\"\",$AU$18*Table_SummaryPI[[#This Row],[kWhSavings]]),0)","v":""},{"$f":"IFERROR(IF(Table_SummaryPI[[#This Row],[kWhSavings]]=\"\",\"\",$AU$22*Table_SummaryPI[[#This Row],[kWhSavings]]),0)","v":""},{"$f":"IFERROR(IF(MeasureCalc(Table_PI[[#This Row],[Hide:\nFormula Name]],Table_SummaryPI[[#This Row],[Quantity]],Table_PI[[#This Row],[List 1]],Table_PI[[#This Row],[List 2]],Table_PI[[#This Row],[List 3]],Table_PI[[#This Row],[Size]],Table_PI[[#This Row],[Input 1]],Table_PI[[#This Row],[Input 2]],Table_PI[[#This Row],[Input 3]],Table_PI[[#This Row],[Input 4]],'Customer Information'!$AR$12,200,ROW())<>\"No Rebate\",MeasureCalc(Table_PI[[#This Row],[Hide:\nFormula Name]],Table_SummaryPI[[#This Row],[Quantity]],Table_PI[[#This Row],[List 1]],Table_PI[[#This Row],[List 2]],Table_PI[[#This Row],[List 3]],Table_PI[[#This Row],[Size]],Table_PI[[#This Row],[Input 1]],Table_PI[[#This Row],[Input 2]],Table_PI[[#This Row],[Input 3]],Table_PI[[#This Row],[Input 4]],'Customer Information'!$AR$12,200,ROW()),\"\"),\"\")","v":""},{"$f":"IFERROR(IF(MeasureCalc(Table_PI[[#This Row],[Hide:\nFormula Name]],Table_SummaryPI[[#This Row],[Quantity]],Table_PI[[#This Row],[List 1]],Table_PI[[#This Row],[List 2]],Table_PI[[#This Row],[List 3]],Table_PI[[#This Row],[Size]],Table_PI[[#This Row],[Input 1]],Table_PI[[#This Row],[Input 2]],Table_PI[[#This Row],[Input 3]],Table_PI[[#This Row],[Input 4]],'Customer Information'!$AR$12,201,ROW())<>\"No Rebate\",MeasureCalc(Table_PI[[#This Row],[Hide:\nFormula Name]],Table_SummaryPI[[#This Row],[Quantity]],Table_PI[[#This Row],[List 1]],Table_PI[[#This Row],[List 2]],Table_PI[[#This Row],[List 3]],Table_PI[[#This Row],[Size]],Table_PI[[#This Row],[Input 1]],Table_PI[[#This Row],[Input 2]],Table_PI[[#This Row],[Input 3]],Table_PI[[#This Row],[Input 4]],'Customer Information'!$AR$12,201,ROW()),\"\"),\"\")","v":""}]
[{"$f":"Table_PI[[#This Row],[Line No.]]","v":""},{"$f":"IF(Table_SummaryPI[[#This Row],[MeassureCategory]]<>\"\",CONCATENATE(Table_SummaryPI[[#This Row],[MeassureCategory]],  \" - \", Table_SummaryPI[[#This Row],[ProposedMeasureCategory]],  \" - \", TEXT(Table_SummaryPI[[#This Row],[Size]],\"#,##0.00\"),\" \",Table_SummaryPI[[#This Row],[SizeUnit]]),\"\")","v":""},{"$f":"SUBSTITUTE(Table_PI[[#This Row],[Measure]],\"     \",\"\",1)","v":""},{"$f":"IF(Table_PI[[#This Row],[List 1]]<>\"\",Table_PI[[#This Row],[List 1]],\"\")","v":""},{"$f":"IF(Table_PI[[#This Row],[List 2]]<>\"\",Table_PI[[#This Row],[List 2]],\"\")","v":""},{"$f":"IF(Table_PI[[#This Row],[List 3]]<>\"\",Table_PI[[#This Row],[List 3]],\"\")","v":""},{"$f":"IF(Table_PI[[#This Row],[Manufacturer]]=\"\",\"\",Table_PI[[#This Row],[Manufacturer]])","v":""},{"$f":"IF(Table_PI[[#This Row],[Model Number]]=\"\",\"\",Table_PI[[#This Row],[Model Number]])","v":""},{"$f":"IF(Table_PI[[#This Row],[Serial Number(s)]]=\"\",\"\",Table_PI[[#This Row],[Serial Number(s)]])","v":""},null,{"$f":"IF(Table_PI[[#This Row],[Size]]=\"\",\"\",Table_PI[[#This Row],[Size]])","v":""},null,{"$f":"IFERROR(IF(AND(MeasureCalc(Table_PI[[#This Row],[Hide:\nFormula Name]],Table_SummaryPI[[#This Row],[Quantity]],Table_PI[[#This Row],[List 1]],Table_PI[[#This Row],[List 2]],Table_PI[[#This Row],[List 3]],Table_PI[[#This Row],[Size]],Table_PI[[#This Row],[Input 1]],Table_PI[[#This Row],[Input 2]],Table_PI[[#This Row],[Input 3]],Table_PI[[#This Row],[Input 4]],'Customer Information'!$AR$12,100,ROW())<>0,MeasureCalc(Table_PI[[#This Row],[Hide:\nFormula Name]],Table_SummaryPI[[#This Row],[Quantity]],Table_PI[[#This Row],[List 1]],Table_PI[[#This Row],[List 2]],Table_PI[[#This Row],[List 3]],Table_PI[[#This Row],[Size]],Table_PI[[#This Row],[Input 1]],Table_PI[[#This Row],[Input 2]],Table_PI[[#This Row],[Input 3]],Table_PI[[#This Row],[Input 4]],'Customer Information'!$AR$12,100,ROW())<>\"No Rebate\"),MeasureCalc(Table_PI[[#This Row],[Hide:\nFormula Name]],Table_SummaryPI[[#This Row],[Quantity]],Table_PI[[#This Row],[List 1]],Table_PI[[#This Row],[List 2]],Table_PI[[#This Row],[List 3]],Table_PI[[#This Row],[Size]],Table_PI[[#This Row],[Input 1]],Table_PI[[#This Row],[Input 2]],Table_PI[[#This Row],[Input 3]],Table_PI[[#This Row],[Input 4]],'Customer Information'!$AR$12,100,ROW()),\"\"),\"\")","v":""},{"$f":"IF(Table_PI[[#This Row],[Input 1]]<>\"\",Table_PI[[#This Row],[Input 1]],\"\")","v":""},null,{"$f":"IFERROR(IF(AND(MeasureCalc(Table_PI[[#This Row],[Hide:\nFormula Name]],Table_SummaryPI[[#This Row],[Quantity]],Table_PI[[#This Row],[List 1]],Table_PI[[#This Row],[List 2]],Table_PI[[#This Row],[List 3]],Table_PI[[#This Row],[Size]],Table_PI[[#This Row],[Input 1]],Table_PI[[#This Row],[Input 2]],Table_PI[[#This Row],[Input 3]],Table_PI[[#This Row],[Input 4]],'Customer Information'!$AR$12,101,ROW())<>0,MeasureCalc(Table_PI[[#This Row],[Hide:\nFormula Name]],Table_SummaryPI[[#This Row],[Quantity]],Table_PI[[#This Row],[List 1]],Table_PI[[#This Row],[List 2]],Table_PI[[#This Row],[List 3]],Table_PI[[#This Row],[Size]],Table_PI[[#This Row],[Input 1]],Table_PI[[#This Row],[Input 2]],Table_PI[[#This Row],[Input 3]],Table_PI[[#This Row],[Input 4]],'Customer Information'!$AR$12,101,ROW())<>\"No Rebate\"),MeasureCalc(Table_PI[[#This Row],[Hide:\nFormula Name]],Table_SummaryPI[[#This Row],[Quantity]],Table_PI[[#This Row],[List 1]],Table_PI[[#This Row],[List 2]],Table_PI[[#This Row],[List 3]],Table_PI[[#This Row],[Size]],Table_PI[[#This Row],[Input 1]],Table_PI[[#This Row],[Input 2]],Table_PI[[#This Row],[Input 3]],Table_PI[[#This Row],[Input 4]],'Customer Information'!$AR$12,101,ROW()),\"\"),\"\")","v":""},{"$f":"IF(Table_PI[[#This Row],[Input 2]]<>\"\",Table_PI[[#This Row],[Input 2]],\"\")","v":""},null,{"$f":"IFERROR(IF(AND(MeasureCalc(Table_PI[[#This Row],[Hide:\nFormula Name]],Table_SummaryPI[[#This Row],[Quantity]],Table_PI[[#This Row],[List 1]],Table_PI[[#This Row],[List 2]],Table_PI[[#This Row],[List 3]],Table_PI[[#This Row],[Size]],Table_PI[[#This Row],[Input 1]],Table_PI[[#This Row],[Input 2]],Table_PI[[#This Row],[Input 3]],Table_PI[[#This Row],[Input 4]],'Customer Information'!$AR$12,102,ROW())<>0,MeasureCalc(Table_PI[[#This Row],[Hide:\nFormula Name]],Table_SummaryPI[[#This Row],[Quantity]],Table_PI[[#This Row],[List 1]],Table_PI[[#This Row],[List 2]],Table_PI[[#This Row],[List 3]],Table_PI[[#This Row],[Size]],Table_PI[[#This Row],[Input 1]],Table_PI[[#This Row],[Input 2]],Table_PI[[#This Row],[Input 3]],Table_PI[[#This Row],[Input 4]],'Customer Information'!$AR$12,102,ROW())<>\"No Rebate\"),MeasureCalc(Table_PI[[#This Row],[Hide:\nFormula Name]],Table_SummaryPI[[#This Row],[Quantity]],Table_PI[[#This Row],[List 1]],Table_PI[[#This Row],[List 2]],Table_PI[[#This Row],[List 3]],Table_PI[[#This Row],[Size]],Table_PI[[#This Row],[Input 1]],Table_PI[[#This Row],[Input 2]],Table_PI[[#This Row],[Input 3]],Table_PI[[#This Row],[Input 4]],'Customer Information'!$AR$12,102,ROW()),\"\"),\"\")","v":""},{"$f":"IF(Table_PI[[#This Row],[Input 3]]<>\"\",Table_PI[[#This Row],[Input 3]],\"\")","v":""},null,{"$f":"IFERROR(IF(AND(MeasureCalc(Table_PI[[#This Row],[Hide:\nFormula Name]],Table_SummaryPI[[#This Row],[Quantity]],Table_PI[[#This Row],[List 1]],Table_PI[[#This Row],[List 2]],Table_PI[[#This Row],[List 3]],Table_PI[[#This Row],[Size]],Table_PI[[#This Row],[Input 1]],Table_PI[[#This Row],[Input 2]],Table_PI[[#This Row],[Input 3]],Table_PI[[#This Row],[Input 4]],'Customer Information'!$AR$12,103,ROW())<>0,MeasureCalc(Table_PI[[#This Row],[Hide:\nFormula Name]],Table_SummaryPI[[#This Row],[Quantity]],Table_PI[[#This Row],[List 1]],Table_PI[[#This Row],[List 2]],Table_PI[[#This Row],[List 3]],Table_PI[[#This Row],[Size]],Table_PI[[#This Row],[Input 1]],Table_PI[[#This Row],[Input 2]],Table_PI[[#This Row],[Input 3]],Table_PI[[#This Row],[Input 4]],'Customer Information'!$AR$12,103,ROW())<>\"No Rebate\"),MeasureCalc(Table_PI[[#This Row],[Hide:\nFormula Name]],Table_SummaryPI[[#This Row],[Quantity]],Table_PI[[#This Row],[List 1]],Table_PI[[#This Row],[List 2]],Table_PI[[#This Row],[List 3]],Table_PI[[#This Row],[Size]],Table_PI[[#This Row],[Input 1]],Table_PI[[#This Row],[Input 2]],Table_PI[[#This Row],[Input 3]],Table_PI[[#This Row],[Input 4]],'Customer Information'!$AR$12,103,ROW()),\"\"),\"\")","v":""},{"$f":"IF(Table_PI[[#This Row],[Input 4]]<>\"\",Table_PI[[#This Row],[Input 4]],\"\")","v":""},{"$f":"IF(Table_PI[[#This Row],[Quantity]]=\"\",\"\",Table_PI[[#This Row],[Quantity]])","v":""},{"$f":"IF(Table_PI[[#This Row],[Notes]]=\"\",\"\",Table_PI[[#This Row],[Notes]])","v":""},{"$f":"IF(OR(Table_PI[[#This Row],[Hide:\nBaseline kWh]]=\"\",Table_PI[[#This Row],[Hide:\nBaseline kWh]]=0),\"\",Table_PI[[#This Row],[Hide:\nBaseline kWh]])","v":""},{"$f":"IF(OR(Table_PI[[#This Row],[Hide:\nBaseline kW]]=\"\",Table_PI[[#This Row],[Hide:\nBaseline kW]]=0),\"\",Table_PI[[#This Row],[Hide:\nBaseline kW]])","v":""},{"$f":"IF(OR(Table_PI[[#This Row],[Hide:\nProposed kWh]]=\"\",Table_PI[[#This Row],[Hide:\nProposed kWh]]=0),\"\",Table_PI[[#This Row],[Hide:\nProposed kWh]])","v":""},{"$f":"IF(OR(Table_PI[[#This Row],[Hide:\nProposed kW]]=\"\",Table_PI[[#This Row],[Hide:\nProposed kW]]=0),\"\",Table_PI[[#This Row],[Hide:\nProposed kW]])","v":""},{"$f":"IF(OR(Table_PI[[#This Row],[Rebate]]=\"\",Table_PI[[#This Row],[Rebate]]=0),\"\",Table_PI[[#This Row],[Rebate]])","v":""},{"$f":"IF(OR(Table_PI[[#This Row],[Hide:\nIncremental Cost]]=\"\",Table_PI[[#This Row],[Hide:\nIncremental Cost]]=0),\"\",Table_PI[[#This Row],[Hide:\nIncremental Cost]])","v":""},{"$f":"IFERROR(IF(Table_SummaryPI[[#This Row],[kWhSavings]]=\"\",\"\",ROUND(Table_SummaryPI[[#This Row],[kWhSavings]]/$AG$401*'Customer Information'!$BC$17,2)),0)","v":""},{"$f":"IF(OR(Table_PI[[#This Row],[Annual kWh]]=\"\",Table_PI[[#This Row],[Annual kWh]]=0),\"\",Table_PI[[#This Row],[Annual kWh]])","v":""},{"$f":"IF(OR(Table_PI[[#This Row],[Peak kW]]=\"\",Table_PI[[#This Row],[Peak kW]]=0),\"\",Table_PI[[#This Row],[Peak kW]])","v":""},{"$f":"IFERROR(IF(Table_SummaryPI[[#This Row],[kWhSavings]]=\"\",\"\",$AU$9*Table_SummaryPI[[#This Row],[kWhSavings]]),0)","v":""},{"$f":"IFERROR(IF(Table_SummaryPI[[#This Row],[kWhSavings]]=\"\",\"\",$AU$14*Table_SummaryPI[[#This Row],[kWhSavings]]),0)","v":""},{"$f":"IFERROR(IF(Table_SummaryPI[[#This Row],[kWhSavings]]=\"\",\"\",$AU$18*Table_SummaryPI[[#This Row],[kWhSavings]]),0)","v":""},{"$f":"IFERROR(IF(Table_SummaryPI[[#This Row],[kWhSavings]]=\"\",\"\",$AU$22*Table_SummaryPI[[#This Row],[kWhSavings]]),0)","v":""},{"$f":"IFERROR(IF(MeasureCalc(Table_PI[[#This Row],[Hide:\nFormula Name]],Table_SummaryPI[[#This Row],[Quantity]],Table_PI[[#This Row],[List 1]],Table_PI[[#This Row],[List 2]],Table_PI[[#This Row],[List 3]],Table_PI[[#This Row],[Size]],Table_PI[[#This Row],[Input 1]],Table_PI[[#This Row],[Input 2]],Table_PI[[#This Row],[Input 3]],Table_PI[[#This Row],[Input 4]],'Customer Information'!$AR$12,200,ROW())<>\"No Rebate\",MeasureCalc(Table_PI[[#This Row],[Hide:\nFormula Name]],Table_SummaryPI[[#This Row],[Quantity]],Table_PI[[#This Row],[List 1]],Table_PI[[#This Row],[List 2]],Table_PI[[#This Row],[List 3]],Table_PI[[#This Row],[Size]],Table_PI[[#This Row],[Input 1]],Table_PI[[#This Row],[Input 2]],Table_PI[[#This Row],[Input 3]],Table_PI[[#This Row],[Input 4]],'Customer Information'!$AR$12,200,ROW()),\"\"),\"\")","v":""},{"$f":"IFERROR(IF(MeasureCalc(Table_PI[[#This Row],[Hide:\nFormula Name]],Table_SummaryPI[[#This Row],[Quantity]],Table_PI[[#This Row],[List 1]],Table_PI[[#This Row],[List 2]],Table_PI[[#This Row],[List 3]],Table_PI[[#This Row],[Size]],Table_PI[[#This Row],[Input 1]],Table_PI[[#This Row],[Input 2]],Table_PI[[#This Row],[Input 3]],Table_PI[[#This Row],[Input 4]],'Customer Information'!$AR$12,201,ROW())<>\"No Rebate\",MeasureCalc(Table_PI[[#This Row],[Hide:\nFormula Name]],Table_SummaryPI[[#This Row],[Quantity]],Table_PI[[#This Row],[List 1]],Table_PI[[#This Row],[List 2]],Table_PI[[#This Row],[List 3]],Table_PI[[#This Row],[Size]],Table_PI[[#This Row],[Input 1]],Table_PI[[#This Row],[Input 2]],Table_PI[[#This Row],[Input 3]],Table_PI[[#This Row],[Input 4]],'Customer Information'!$AR$12,201,ROW()),\"\"),\"\")","v":""}]
[{"$f":"Table_PI[[#This Row],[Line No.]]","v":""},{"$f":"IF(Table_SummaryPI[[#This Row],[MeassureCategory]]<>\"\",CONCATENATE(Table_SummaryPI[[#This Row],[MeassureCategory]],  \" - \", Table_SummaryPI[[#This Row],[ProposedMeasureCategory]],  \" - \", TEXT(Table_SummaryPI[[#This Row],[Size]],\"#,##0.00\"),\" \",Table_SummaryPI[[#This Row],[SizeUnit]]),\"\")","v":""},{"$f":"SUBSTITUTE(Table_PI[[#This Row],[Measure]],\"     \",\"\",1)","v":""},{"$f":"IF(Table_PI[[#This Row],[List 1]]<>\"\",Table_PI[[#This Row],[List 1]],\"\")","v":""},{"$f":"IF(Table_PI[[#This Row],[List 2]]<>\"\",Table_PI[[#This Row],[List 2]],\"\")","v":""},{"$f":"IF(Table_PI[[#This Row],[List 3]]<>\"\",Table_PI[[#This Row],[List 3]],\"\")","v":""},{"$f":"IF(Table_PI[[#This Row],[Manufacturer]]=\"\",\"\",Table_PI[[#This Row],[Manufacturer]])","v":""},{"$f":"IF(Table_PI[[#This Row],[Model Number]]=\"\",\"\",Table_PI[[#This Row],[Model Number]])","v":""},{"$f":"IF(Table_PI[[#This Row],[Serial Number(s)]]=\"\",\"\",Table_PI[[#This Row],[Serial Number(s)]])","v":""},null,{"$f":"IF(Table_PI[[#This Row],[Size]]=\"\",\"\",Table_PI[[#This Row],[Size]])","v":""},null,{"$f":"IFERROR(IF(AND(MeasureCalc(Table_PI[[#This Row],[Hide:\nFormula Name]],Table_SummaryPI[[#This Row],[Quantity]],Table_PI[[#This Row],[List 1]],Table_PI[[#This Row],[List 2]],Table_PI[[#This Row],[List 3]],Table_PI[[#This Row],[Size]],Table_PI[[#This Row],[Input 1]],Table_PI[[#This Row],[Input 2]],Table_PI[[#This Row],[Input 3]],Table_PI[[#This Row],[Input 4]],'Customer Information'!$AR$12,100,ROW())<>0,MeasureCalc(Table_PI[[#This Row],[Hide:\nFormula Name]],Table_SummaryPI[[#This Row],[Quantity]],Table_PI[[#This Row],[List 1]],Table_PI[[#This Row],[List 2]],Table_PI[[#This Row],[List 3]],Table_PI[[#This Row],[Size]],Table_PI[[#This Row],[Input 1]],Table_PI[[#This Row],[Input 2]],Table_PI[[#This Row],[Input 3]],Table_PI[[#This Row],[Input 4]],'Customer Information'!$AR$12,100,ROW())<>\"No Rebate\"),MeasureCalc(Table_PI[[#This Row],[Hide:\nFormula Name]],Table_SummaryPI[[#This Row],[Quantity]],Table_PI[[#This Row],[List 1]],Table_PI[[#This Row],[List 2]],Table_PI[[#This Row],[List 3]],Table_PI[[#This Row],[Size]],Table_PI[[#This Row],[Input 1]],Table_PI[[#This Row],[Input 2]],Table_PI[[#This Row],[Input 3]],Table_PI[[#This Row],[Input 4]],'Customer Information'!$AR$12,100,ROW()),\"\"),\"\")","v":""},{"$f":"IF(Table_PI[[#This Row],[Input 1]]<>\"\",Table_PI[[#This Row],[Input 1]],\"\")","v":""},null,{"$f":"IFERROR(IF(AND(MeasureCalc(Table_PI[[#This Row],[Hide:\nFormula Name]],Table_SummaryPI[[#This Row],[Quantity]],Table_PI[[#This Row],[List 1]],Table_PI[[#This Row],[List 2]],Table_PI[[#This Row],[List 3]],Table_PI[[#This Row],[Size]],Table_PI[[#This Row],[Input 1]],Table_PI[[#This Row],[Input 2]],Table_PI[[#This Row],[Input 3]],Table_PI[[#This Row],[Input 4]],'Customer Information'!$AR$12,101,ROW())<>0,MeasureCalc(Table_PI[[#This Row],[Hide:\nFormula Name]],Table_SummaryPI[[#This Row],[Quantity]],Table_PI[[#This Row],[List 1]],Table_PI[[#This Row],[List 2]],Table_PI[[#This Row],[List 3]],Table_PI[[#This Row],[Size]],Table_PI[[#This Row],[Input 1]],Table_PI[[#This Row],[Input 2]],Table_PI[[#This Row],[Input 3]],Table_PI[[#This Row],[Input 4]],'Customer Information'!$AR$12,101,ROW())<>\"No Rebate\"),MeasureCalc(Table_PI[[#This Row],[Hide:\nFormula Name]],Table_SummaryPI[[#This Row],[Quantity]],Table_PI[[#This Row],[List 1]],Table_PI[[#This Row],[List 2]],Table_PI[[#This Row],[List 3]],Table_PI[[#This Row],[Size]],Table_PI[[#This Row],[Input 1]],Table_PI[[#This Row],[Input 2]],Table_PI[[#This Row],[Input 3]],Table_PI[[#This Row],[Input 4]],'Customer Information'!$AR$12,101,ROW()),\"\"),\"\")","v":""},{"$f":"IF(Table_PI[[#This Row],[Input 2]]<>\"\",Table_PI[[#This Row],[Input 2]],\"\")","v":""},null,{"$f":"IFERROR(IF(AND(MeasureCalc(Table_PI[[#This Row],[Hide:\nFormula Name]],Table_SummaryPI[[#This Row],[Quantity]],Table_PI[[#This Row],[List 1]],Table_PI[[#This Row],[List 2]],Table_PI[[#This Row],[List 3]],Table_PI[[#This Row],[Size]],Table_PI[[#This Row],[Input 1]],Table_PI[[#This Row],[Input 2]],Table_PI[[#This Row],[Input 3]],Table_PI[[#This Row],[Input 4]],'Customer Information'!$AR$12,102,ROW())<>0,MeasureCalc(Table_PI[[#This Row],[Hide:\nFormula Name]],Table_SummaryPI[[#This Row],[Quantity]],Table_PI[[#This Row],[List 1]],Table_PI[[#This Row],[List 2]],Table_PI[[#This Row],[List 3]],Table_PI[[#This Row],[Size]],Table_PI[[#This Row],[Input 1]],Table_PI[[#This Row],[Input 2]],Table_PI[[#This Row],[Input 3]],Table_PI[[#This Row],[Input 4]],'Customer Information'!$AR$12,102,ROW())<>\"No Rebate\"),MeasureCalc(Table_PI[[#This Row],[Hide:\nFormula Name]],Table_SummaryPI[[#This Row],[Quantity]],Table_PI[[#This Row],[List 1]],Table_PI[[#This Row],[List 2]],Table_PI[[#This Row],[List 3]],Table_PI[[#This Row],[Size]],Table_PI[[#This Row],[Input 1]],Table_PI[[#This Row],[Input 2]],Table_PI[[#This Row],[Input 3]],Table_PI[[#This Row],[Input 4]],'Customer Information'!$AR$12,102,ROW()),\"\"),\"\")","v":""},{"$f":"IF(Table_PI[[#This Row],[Input 3]]<>\"\",Table_PI[[#This Row],[Input 3]],\"\")","v":""},null,{"$f":"IFERROR(IF(AND(MeasureCalc(Table_PI[[#This Row],[Hide:\nFormula Name]],Table_SummaryPI[[#This Row],[Quantity]],Table_PI[[#This Row],[List 1]],Table_PI[[#This Row],[List 2]],Table_PI[[#This Row],[List 3]],Table_PI[[#This Row],[Size]],Table_PI[[#This Row],[Input 1]],Table_PI[[#This Row],[Input 2]],Table_PI[[#This Row],[Input 3]],Table_PI[[#This Row],[Input 4]],'Customer Information'!$AR$12,103,ROW())<>0,MeasureCalc(Table_PI[[#This Row],[Hide:\nFormula Name]],Table_SummaryPI[[#This Row],[Quantity]],Table_PI[[#This Row],[List 1]],Table_PI[[#This Row],[List 2]],Table_PI[[#This Row],[List 3]],Table_PI[[#This Row],[Size]],Table_PI[[#This Row],[Input 1]],Table_PI[[#This Row],[Input 2]],Table_PI[[#This Row],[Input 3]],Table_PI[[#This Row],[Input 4]],'Customer Information'!$AR$12,103,ROW())<>\"No Rebate\"),MeasureCalc(Table_PI[[#This Row],[Hide:\nFormula Name]],Table_SummaryPI[[#This Row],[Quantity]],Table_PI[[#This Row],[List 1]],Table_PI[[#This Row],[List 2]],Table_PI[[#This Row],[List 3]],Table_PI[[#This Row],[Size]],Table_PI[[#This Row],[Input 1]],Table_PI[[#This Row],[Input 2]],Table_PI[[#This Row],[Input 3]],Table_PI[[#This Row],[Input 4]],'Customer Information'!$AR$12,103,ROW()),\"\"),\"\")","v":""},{"$f":"IF(Table_PI[[#This Row],[Input 4]]<>\"\",Table_PI[[#This Row],[Input 4]],\"\")","v":""},{"$f":"IF(Table_PI[[#This Row],[Quantity]]=\"\",\"\",Table_PI[[#This Row],[Quantity]])","v":""},{"$f":"IF(Table_PI[[#This Row],[Notes]]=\"\",\"\",Table_PI[[#This Row],[Notes]])","v":""},{"$f":"IF(OR(Table_PI[[#This Row],[Hide:\nBaseline kWh]]=\"\",Table_PI[[#This Row],[Hide:\nBaseline kWh]]=0),\"\",Table_PI[[#This Row],[Hide:\nBaseline kWh]])","v":""},{"$f":"IF(OR(Table_PI[[#This Row],[Hide:\nBaseline kW]]=\"\",Table_PI[[#This Row],[Hide:\nBaseline kW]]=0),\"\",Table_PI[[#This Row],[Hide:\nBaseline kW]])","v":""},{"$f":"IF(OR(Table_PI[[#This Row],[Hide:\nProposed kWh]]=\"\",Table_PI[[#This Row],[Hide:\nProposed kWh]]=0),\"\",Table_PI[[#This Row],[Hide:\nProposed kWh]])","v":""},{"$f":"IF(OR(Table_PI[[#This Row],[Hide:\nProposed kW]]=\"\",Table_PI[[#This Row],[Hide:\nProposed kW]]=0),\"\",Table_PI[[#This Row],[Hide:\nProposed kW]])","v":""},{"$f":"IF(OR(Table_PI[[#This Row],[Rebate]]=\"\",Table_PI[[#This Row],[Rebate]]=0),\"\",Table_PI[[#This Row],[Rebate]])","v":""},{"$f":"IF(OR(Table_PI[[#This Row],[Hide:\nIncremental Cost]]=\"\",Table_PI[[#This Row],[Hide:\nIncremental Cost]]=0),\"\",Table_PI[[#This Row],[Hide:\nIncremental Cost]])","v":""},{"$f":"IFERROR(IF(Table_SummaryPI[[#This Row],[kWhSavings]]=\"\",\"\",ROUND(Table_SummaryPI[[#This Row],[kWhSavings]]/$AG$401*'Customer Information'!$BC$17,2)),0)","v":""},{"$f":"IF(OR(Table_PI[[#This Row],[Annual kWh]]=\"\",Table_PI[[#This Row],[Annual kWh]]=0),\"\",Table_PI[[#This Row],[Annual kWh]])","v":""},{"$f":"IF(OR(Table_PI[[#This Row],[Peak kW]]=\"\",Table_PI[[#This Row],[Peak kW]]=0),\"\",Table_PI[[#This Row],[Peak kW]])","v":""},{"$f":"IFERROR(IF(Table_SummaryPI[[#This Row],[kWhSavings]]=\"\",\"\",$AU$9*Table_SummaryPI[[#This Row],[kWhSavings]]),0)","v":""},{"$f":"IFERROR(IF(Table_SummaryPI[[#This Row],[kWhSavings]]=\"\",\"\",$AU$14*Table_SummaryPI[[#This Row],[kWhSavings]]),0)","v":""},{"$f":"IFERROR(IF(Table_SummaryPI[[#This Row],[kWhSavings]]=\"\",\"\",$AU$18*Table_SummaryPI[[#This Row],[kWhSavings]]),0)","v":""},{"$f":"IFERROR(IF(Table_SummaryPI[[#This Row],[kWhSavings]]=\"\",\"\",$AU$22*Table_SummaryPI[[#This Row],[kWhSavings]]),0)","v":""},{"$f":"IFERROR(IF(MeasureCalc(Table_PI[[#This Row],[Hide:\nFormula Name]],Table_SummaryPI[[#This Row],[Quantity]],Table_PI[[#This Row],[List 1]],Table_PI[[#This Row],[List 2]],Table_PI[[#This Row],[List 3]],Table_PI[[#This Row],[Size]],Table_PI[[#This Row],[Input 1]],Table_PI[[#This Row],[Input 2]],Table_PI[[#This Row],[Input 3]],Table_PI[[#This Row],[Input 4]],'Customer Information'!$AR$12,200,ROW())<>\"No Rebate\",MeasureCalc(Table_PI[[#This Row],[Hide:\nFormula Name]],Table_SummaryPI[[#This Row],[Quantity]],Table_PI[[#This Row],[List 1]],Table_PI[[#This Row],[List 2]],Table_PI[[#This Row],[List 3]],Table_PI[[#This Row],[Size]],Table_PI[[#This Row],[Input 1]],Table_PI[[#This Row],[Input 2]],Table_PI[[#This Row],[Input 3]],Table_PI[[#This Row],[Input 4]],'Customer Information'!$AR$12,200,ROW()),\"\"),\"\")","v":""},{"$f":"IFERROR(IF(MeasureCalc(Table_PI[[#This Row],[Hide:\nFormula Name]],Table_SummaryPI[[#This Row],[Quantity]],Table_PI[[#This Row],[List 1]],Table_PI[[#This Row],[List 2]],Table_PI[[#This Row],[List 3]],Table_PI[[#This Row],[Size]],Table_PI[[#This Row],[Input 1]],Table_PI[[#This Row],[Input 2]],Table_PI[[#This Row],[Input 3]],Table_PI[[#This Row],[Input 4]],'Customer Information'!$AR$12,201,ROW())<>\"No Rebate\",MeasureCalc(Table_PI[[#This Row],[Hide:\nFormula Name]],Table_SummaryPI[[#This Row],[Quantity]],Table_PI[[#This Row],[List 1]],Table_PI[[#This Row],[List 2]],Table_PI[[#This Row],[List 3]],Table_PI[[#This Row],[Size]],Table_PI[[#This Row],[Input 1]],Table_PI[[#This Row],[Input 2]],Table_PI[[#This Row],[Input 3]],Table_PI[[#This Row],[Input 4]],'Customer Information'!$AR$12,201,ROW()),\"\"),\"\")","v":""}]
[{"$f":"Table_PI[[#This Row],[Line No.]]","v":""},{"$f":"IF(Table_SummaryPI[[#This Row],[MeassureCategory]]<>\"\",CONCATENATE(Table_SummaryPI[[#This Row],[MeassureCategory]],  \" - \", Table_SummaryPI[[#This Row],[ProposedMeasureCategory]],  \" - \", TEXT(Table_SummaryPI[[#This Row],[Size]],\"#,##0.00\"),\" \",Table_SummaryPI[[#This Row],[SizeUnit]]),\"\")","v":""},{"$f":"SUBSTITUTE(Table_PI[[#This Row],[Measure]],\"     \",\"\",1)","v":""},{"$f":"IF(Table_PI[[#This Row],[List 1]]<>\"\",Table_PI[[#This Row],[List 1]],\"\")","v":""},{"$f":"IF(Table_PI[[#This Row],[List 2]]<>\"\",Table_PI[[#This Row],[List 2]],\"\")","v":""},{"$f":"IF(Table_PI[[#This Row],[List 3]]<>\"\",Table_PI[[#This Row],[List 3]],\"\")","v":""},{"$f":"IF(Table_PI[[#This Row],[Manufacturer]]=\"\",\"\",Table_PI[[#This Row],[Manufacturer]])","v":""},{"$f":"IF(Table_PI[[#This Row],[Model Number]]=\"\",\"\",Table_PI[[#This Row],[Model Number]])","v":""},{"$f":"IF(Table_PI[[#This Row],[Serial Number(s)]]=\"\",\"\",Table_PI[[#This Row],[Serial Number(s)]])","v":""},null,{"$f":"IF(Table_PI[[#This Row],[Size]]=\"\",\"\",Table_PI[[#This Row],[Size]])","v":""},null,{"$f":"IFERROR(IF(AND(MeasureCalc(Table_PI[[#This Row],[Hide:\nFormula Name]],Table_SummaryPI[[#This Row],[Quantity]],Table_PI[[#This Row],[List 1]],Table_PI[[#This Row],[List 2]],Table_PI[[#This Row],[List 3]],Table_PI[[#This Row],[Size]],Table_PI[[#This Row],[Input 1]],Table_PI[[#This Row],[Input 2]],Table_PI[[#This Row],[Input 3]],Table_PI[[#This Row],[Input 4]],'Customer Information'!$AR$12,100,ROW())<>0,MeasureCalc(Table_PI[[#This Row],[Hide:\nFormula Name]],Table_SummaryPI[[#This Row],[Quantity]],Table_PI[[#This Row],[List 1]],Table_PI[[#This Row],[List 2]],Table_PI[[#This Row],[List 3]],Table_PI[[#This Row],[Size]],Table_PI[[#This Row],[Input 1]],Table_PI[[#This Row],[Input 2]],Table_PI[[#This Row],[Input 3]],Table_PI[[#This Row],[Input 4]],'Customer Information'!$AR$12,100,ROW())<>\"No Rebate\"),MeasureCalc(Table_PI[[#This Row],[Hide:\nFormula Name]],Table_SummaryPI[[#This Row],[Quantity]],Table_PI[[#This Row],[List 1]],Table_PI[[#This Row],[List 2]],Table_PI[[#This Row],[List 3]],Table_PI[[#This Row],[Size]],Table_PI[[#This Row],[Input 1]],Table_PI[[#This Row],[Input 2]],Table_PI[[#This Row],[Input 3]],Table_PI[[#This Row],[Input 4]],'Customer Information'!$AR$12,100,ROW()),\"\"),\"\")","v":""},{"$f":"IF(Table_PI[[#This Row],[Input 1]]<>\"\",Table_PI[[#This Row],[Input 1]],\"\")","v":""},null,{"$f":"IFERROR(IF(AND(MeasureCalc(Table_PI[[#This Row],[Hide:\nFormula Name]],Table_SummaryPI[[#This Row],[Quantity]],Table_PI[[#This Row],[List 1]],Table_PI[[#This Row],[List 2]],Table_PI[[#This Row],[List 3]],Table_PI[[#This Row],[Size]],Table_PI[[#This Row],[Input 1]],Table_PI[[#This Row],[Input 2]],Table_PI[[#This Row],[Input 3]],Table_PI[[#This Row],[Input 4]],'Customer Information'!$AR$12,101,ROW())<>0,MeasureCalc(Table_PI[[#This Row],[Hide:\nFormula Name]],Table_SummaryPI[[#This Row],[Quantity]],Table_PI[[#This Row],[List 1]],Table_PI[[#This Row],[List 2]],Table_PI[[#This Row],[List 3]],Table_PI[[#This Row],[Size]],Table_PI[[#This Row],[Input 1]],Table_PI[[#This Row],[Input 2]],Table_PI[[#This Row],[Input 3]],Table_PI[[#This Row],[Input 4]],'Customer Information'!$AR$12,101,ROW())<>\"No Rebate\"),MeasureCalc(Table_PI[[#This Row],[Hide:\nFormula Name]],Table_SummaryPI[[#This Row],[Quantity]],Table_PI[[#This Row],[List 1]],Table_PI[[#This Row],[List 2]],Table_PI[[#This Row],[List 3]],Table_PI[[#This Row],[Size]],Table_PI[[#This Row],[Input 1]],Table_PI[[#This Row],[Input 2]],Table_PI[[#This Row],[Input 3]],Table_PI[[#This Row],[Input 4]],'Customer Information'!$AR$12,101,ROW()),\"\"),\"\")","v":""},{"$f":"IF(Table_PI[[#This Row],[Input 2]]<>\"\",Table_PI[[#This Row],[Input 2]],\"\")","v":""},null,{"$f":"IFERROR(IF(AND(MeasureCalc(Table_PI[[#This Row],[Hide:\nFormula Name]],Table_SummaryPI[[#This Row],[Quantity]],Table_PI[[#This Row],[List 1]],Table_PI[[#This Row],[List 2]],Table_PI[[#This Row],[List 3]],Table_PI[[#This Row],[Size]],Table_PI[[#This Row],[Input 1]],Table_PI[[#This Row],[Input 2]],Table_PI[[#This Row],[Input 3]],Table_PI[[#This Row],[Input 4]],'Customer Information'!$AR$12,102,ROW())<>0,MeasureCalc(Table_PI[[#This Row],[Hide:\nFormula Name]],Table_SummaryPI[[#This Row],[Quantity]],Table_PI[[#This Row],[List 1]],Table_PI[[#This Row],[List 2]],Table_PI[[#This Row],[List 3]],Table_PI[[#This Row],[Size]],Table_PI[[#This Row],[Input 1]],Table_PI[[#This Row],[Input 2]],Table_PI[[#This Row],[Input 3]],Table_PI[[#This Row],[Input 4]],'Customer Information'!$AR$12,102,ROW())<>\"No Rebate\"),MeasureCalc(Table_PI[[#This Row],[Hide:\nFormula Name]],Table_SummaryPI[[#This Row],[Quantity]],Table_PI[[#This Row],[List 1]],Table_PI[[#This Row],[List 2]],Table_PI[[#This Row],[List 3]],Table_PI[[#This Row],[Size]],Table_PI[[#This Row],[Input 1]],Table_PI[[#This Row],[Input 2]],Table_PI[[#This Row],[Input 3]],Table_PI[[#This Row],[Input 4]],'Customer Information'!$AR$12,102,ROW()),\"\"),\"\")","v":""},{"$f":"IF(Table_PI[[#This Row],[Input 3]]<>\"\",Table_PI[[#This Row],[Input 3]],\"\")","v":""},null,{"$f":"IFERROR(IF(AND(MeasureCalc(Table_PI[[#This Row],[Hide:\nFormula Name]],Table_SummaryPI[[#This Row],[Quantity]],Table_PI[[#This Row],[List 1]],Table_PI[[#This Row],[List 2]],Table_PI[[#This Row],[List 3]],Table_PI[[#This Row],[Size]],Table_PI[[#This Row],[Input 1]],Table_PI[[#This Row],[Input 2]],Table_PI[[#This Row],[Input 3]],Table_PI[[#This Row],[Input 4]],'Customer Information'!$AR$12,103,ROW())<>0,MeasureCalc(Table_PI[[#This Row],[Hide:\nFormula Name]],Table_SummaryPI[[#This Row],[Quantity]],Table_PI[[#This Row],[List 1]],Table_PI[[#This Row],[List 2]],Table_PI[[#This Row],[List 3]],Table_PI[[#This Row],[Size]],Table_PI[[#This Row],[Input 1]],Table_PI[[#This Row],[Input 2]],Table_PI[[#This Row],[Input 3]],Table_PI[[#This Row],[Input 4]],'Customer Information'!$AR$12,103,ROW())<>\"No Rebate\"),MeasureCalc(Table_PI[[#This Row],[Hide:\nFormula Name]],Table_SummaryPI[[#This Row],[Quantity]],Table_PI[[#This Row],[List 1]],Table_PI[[#This Row],[List 2]],Table_PI[[#This Row],[List 3]],Table_PI[[#This Row],[Size]],Table_PI[[#This Row],[Input 1]],Table_PI[[#This Row],[Input 2]],Table_PI[[#This Row],[Input 3]],Table_PI[[#This Row],[Input 4]],'Customer Information'!$AR$12,103,ROW()),\"\"),\"\")","v":""},{"$f":"IF(Table_PI[[#This Row],[Input 4]]<>\"\",Table_PI[[#This Row],[Input 4]],\"\")","v":""},{"$f":"IF(Table_PI[[#This Row],[Quantity]]=\"\",\"\",Table_PI[[#This Row],[Quantity]])","v":""},{"$f":"IF(Table_PI[[#This Row],[Notes]]=\"\",\"\",Table_PI[[#This Row],[Notes]])","v":""},{"$f":"IF(OR(Table_PI[[#This Row],[Hide:\nBaseline kWh]]=\"\",Table_PI[[#This Row],[Hide:\nBaseline kWh]]=0),\"\",Table_PI[[#This Row],[Hide:\nBaseline kWh]])","v":""},{"$f":"IF(OR(Table_PI[[#This Row],[Hide:\nBaseline kW]]=\"\",Table_PI[[#This Row],[Hide:\nBaseline kW]]=0),\"\",Table_PI[[#This Row],[Hide:\nBaseline kW]])","v":""},{"$f":"IF(OR(Table_PI[[#This Row],[Hide:\nProposed kWh]]=\"\",Table_PI[[#This Row],[Hide:\nProposed kWh]]=0),\"\",Table_PI[[#This Row],[Hide:\nProposed kWh]])","v":""},{"$f":"IF(OR(Table_PI[[#This Row],[Hide:\nProposed kW]]=\"\",Table_PI[[#This Row],[Hide:\nProposed kW]]=0),\"\",Table_PI[[#This Row],[Hide:\nProposed kW]])","v":""},{"$f":"IF(OR(Table_PI[[#This Row],[Rebate]]=\"\",Table_PI[[#This Row],[Rebate]]=0),\"\",Table_PI[[#This Row],[Rebate]])","v":""},{"$f":"IF(OR(Table_PI[[#This Row],[Hide:\nIncremental Cost]]=\"\",Table_PI[[#This Row],[Hide:\nIncremental Cost]]=0),\"\",Table_PI[[#This Row],[Hide:\nIncremental Cost]])","v":""},{"$f":"IFERROR(IF(Table_SummaryPI[[#This Row],[kWhSavings]]=\"\",\"\",ROUND(Table_SummaryPI[[#This Row],[kWhSavings]]/$AG$401*'Customer Information'!$BC$17,2)),0)","v":""},{"$f":"IF(OR(Table_PI[[#This Row],[Annual kWh]]=\"\",Table_PI[[#This Row],[Annual kWh]]=0),\"\",Table_PI[[#This Row],[Annual kWh]])","v":""},{"$f":"IF(OR(Table_PI[[#This Row],[Peak kW]]=\"\",Table_PI[[#This Row],[Peak kW]]=0),\"\",Table_PI[[#This Row],[Peak kW]])","v":""},{"$f":"IFERROR(IF(Table_SummaryPI[[#This Row],[kWhSavings]]=\"\",\"\",$AU$9*Table_SummaryPI[[#This Row],[kWhSavings]]),0)","v":""},{"$f":"IFERROR(IF(Table_SummaryPI[[#This Row],[kWhSavings]]=\"\",\"\",$AU$14*Table_SummaryPI[[#This Row],[kWhSavings]]),0)","v":""},{"$f":"IFERROR(IF(Table_SummaryPI[[#This Row],[kWhSavings]]=\"\",\"\",$AU$18*Table_SummaryPI[[#This Row],[kWhSavings]]),0)","v":""},{"$f":"IFERROR(IF(Table_SummaryPI[[#This Row],[kWhSavings]]=\"\",\"\",$AU$22*Table_SummaryPI[[#This Row],[kWhSavings]]),0)","v":""},{"$f":"IFERROR(IF(MeasureCalc(Table_PI[[#This Row],[Hide:\nFormula Name]],Table_SummaryPI[[#This Row],[Quantity]],Table_PI[[#This Row],[List 1]],Table_PI[[#This Row],[List 2]],Table_PI[[#This Row],[List 3]],Table_PI[[#This Row],[Size]],Table_PI[[#This Row],[Input 1]],Table_PI[[#This Row],[Input 2]],Table_PI[[#This Row],[Input 3]],Table_PI[[#This Row],[Input 4]],'Customer Information'!$AR$12,200,ROW())<>\"No Rebate\",MeasureCalc(Table_PI[[#This Row],[Hide:\nFormula Name]],Table_SummaryPI[[#This Row],[Quantity]],Table_PI[[#This Row],[List 1]],Table_PI[[#This Row],[List 2]],Table_PI[[#This Row],[List 3]],Table_PI[[#This Row],[Size]],Table_PI[[#This Row],[Input 1]],Table_PI[[#This Row],[Input 2]],Table_PI[[#This Row],[Input 3]],Table_PI[[#This Row],[Input 4]],'Customer Information'!$AR$12,200,ROW()),\"\"),\"\")","v":""},{"$f":"IFERROR(IF(MeasureCalc(Table_PI[[#This Row],[Hide:\nFormula Name]],Table_SummaryPI[[#This Row],[Quantity]],Table_PI[[#This Row],[List 1]],Table_PI[[#This Row],[List 2]],Table_PI[[#This Row],[List 3]],Table_PI[[#This Row],[Size]],Table_PI[[#This Row],[Input 1]],Table_PI[[#This Row],[Input 2]],Table_PI[[#This Row],[Input 3]],Table_PI[[#This Row],[Input 4]],'Customer Information'!$AR$12,201,ROW())<>\"No Rebate\",MeasureCalc(Table_PI[[#This Row],[Hide:\nFormula Name]],Table_SummaryPI[[#This Row],[Quantity]],Table_PI[[#This Row],[List 1]],Table_PI[[#This Row],[List 2]],Table_PI[[#This Row],[List 3]],Table_PI[[#This Row],[Size]],Table_PI[[#This Row],[Input 1]],Table_PI[[#This Row],[Input 2]],Table_PI[[#This Row],[Input 3]],Table_PI[[#This Row],[Input 4]],'Customer Information'!$AR$12,201,ROW()),\"\"),\"\")","v":""}]
[{"$f":"Table_PI[[#This Row],[Line No.]]","v":""},{"$f":"IF(Table_SummaryPI[[#This Row],[MeassureCategory]]<>\"\",CONCATENATE(Table_SummaryPI[[#This Row],[MeassureCategory]],  \" - \", Table_SummaryPI[[#This Row],[ProposedMeasureCategory]],  \" - \", TEXT(Table_SummaryPI[[#This Row],[Size]],\"#,##0.00\"),\" \",Table_SummaryPI[[#This Row],[SizeUnit]]),\"\")","v":""},{"$f":"SUBSTITUTE(Table_PI[[#This Row],[Measure]],\"     \",\"\",1)","v":""},{"$f":"IF(Table_PI[[#This Row],[List 1]]<>\"\",Table_PI[[#This Row],[List 1]],\"\")","v":""},{"$f":"IF(Table_PI[[#This Row],[List 2]]<>\"\",Table_PI[[#This Row],[List 2]],\"\")","v":""},{"$f":"IF(Table_PI[[#This Row],[List 3]]<>\"\",Table_PI[[#This Row],[List 3]],\"\")","v":""},{"$f":"IF(Table_PI[[#This Row],[Manufacturer]]=\"\",\"\",Table_PI[[#This Row],[Manufacturer]])","v":""},{"$f":"IF(Table_PI[[#This Row],[Model Number]]=\"\",\"\",Table_PI[[#This Row],[Model Number]])","v":""},{"$f":"IF(Table_PI[[#This Row],[Serial Number(s)]]=\"\",\"\",Table_PI[[#This Row],[Serial Number(s)]])","v":""},null,{"$f":"IF(Table_PI[[#This Row],[Size]]=\"\",\"\",Table_PI[[#This Row],[Size]])","v":""},null,{"$f":"IFERROR(IF(AND(MeasureCalc(Table_PI[[#This Row],[Hide:\nFormula Name]],Table_SummaryPI[[#This Row],[Quantity]],Table_PI[[#This Row],[List 1]],Table_PI[[#This Row],[List 2]],Table_PI[[#This Row],[List 3]],Table_PI[[#This Row],[Size]],Table_PI[[#This Row],[Input 1]],Table_PI[[#This Row],[Input 2]],Table_PI[[#This Row],[Input 3]],Table_PI[[#This Row],[Input 4]],'Customer Information'!$AR$12,100,ROW())<>0,MeasureCalc(Table_PI[[#This Row],[Hide:\nFormula Name]],Table_SummaryPI[[#This Row],[Quantity]],Table_PI[[#This Row],[List 1]],Table_PI[[#This Row],[List 2]],Table_PI[[#This Row],[List 3]],Table_PI[[#This Row],[Size]],Table_PI[[#This Row],[Input 1]],Table_PI[[#This Row],[Input 2]],Table_PI[[#This Row],[Input 3]],Table_PI[[#This Row],[Input 4]],'Customer Information'!$AR$12,100,ROW())<>\"No Rebate\"),MeasureCalc(Table_PI[[#This Row],[Hide:\nFormula Name]],Table_SummaryPI[[#This Row],[Quantity]],Table_PI[[#This Row],[List 1]],Table_PI[[#This Row],[List 2]],Table_PI[[#This Row],[List 3]],Table_PI[[#This Row],[Size]],Table_PI[[#This Row],[Input 1]],Table_PI[[#This Row],[Input 2]],Table_PI[[#This Row],[Input 3]],Table_PI[[#This Row],[Input 4]],'Customer Information'!$AR$12,100,ROW()),\"\"),\"\")","v":""},{"$f":"IF(Table_PI[[#This Row],[Input 1]]<>\"\",Table_PI[[#This Row],[Input 1]],\"\")","v":""},null,{"$f":"IFERROR(IF(AND(MeasureCalc(Table_PI[[#This Row],[Hide:\nFormula Name]],Table_SummaryPI[[#This Row],[Quantity]],Table_PI[[#This Row],[List 1]],Table_PI[[#This Row],[List 2]],Table_PI[[#This Row],[List 3]],Table_PI[[#This Row],[Size]],Table_PI[[#This Row],[Input 1]],Table_PI[[#This Row],[Input 2]],Table_PI[[#This Row],[Input 3]],Table_PI[[#This Row],[Input 4]],'Customer Information'!$AR$12,101,ROW())<>0,MeasureCalc(Table_PI[[#This Row],[Hide:\nFormula Name]],Table_SummaryPI[[#This Row],[Quantity]],Table_PI[[#This Row],[List 1]],Table_PI[[#This Row],[List 2]],Table_PI[[#This Row],[List 3]],Table_PI[[#This Row],[Size]],Table_PI[[#This Row],[Input 1]],Table_PI[[#This Row],[Input 2]],Table_PI[[#This Row],[Input 3]],Table_PI[[#This Row],[Input 4]],'Customer Information'!$AR$12,101,ROW())<>\"No Rebate\"),MeasureCalc(Table_PI[[#This Row],[Hide:\nFormula Name]],Table_SummaryPI[[#This Row],[Quantity]],Table_PI[[#This Row],[List 1]],Table_PI[[#This Row],[List 2]],Table_PI[[#This Row],[List 3]],Table_PI[[#This Row],[Size]],Table_PI[[#This Row],[Input 1]],Table_PI[[#This Row],[Input 2]],Table_PI[[#This Row],[Input 3]],Table_PI[[#This Row],[Input 4]],'Customer Information'!$AR$12,101,ROW()),\"\"),\"\")","v":""},{"$f":"IF(Table_PI[[#This Row],[Input 2]]<>\"\",Table_PI[[#This Row],[Input 2]],\"\")","v":""},null,{"$f":"IFERROR(IF(AND(MeasureCalc(Table_PI[[#This Row],[Hide:\nFormula Name]],Table_SummaryPI[[#This Row],[Quantity]],Table_PI[[#This Row],[List 1]],Table_PI[[#This Row],[List 2]],Table_PI[[#This Row],[List 3]],Table_PI[[#This Row],[Size]],Table_PI[[#This Row],[Input 1]],Table_PI[[#This Row],[Input 2]],Table_PI[[#This Row],[Input 3]],Table_PI[[#This Row],[Input 4]],'Customer Information'!$AR$12,102,ROW())<>0,MeasureCalc(Table_PI[[#This Row],[Hide:\nFormula Name]],Table_SummaryPI[[#This Row],[Quantity]],Table_PI[[#This Row],[List 1]],Table_PI[[#This Row],[List 2]],Table_PI[[#This Row],[List 3]],Table_PI[[#This Row],[Size]],Table_PI[[#This Row],[Input 1]],Table_PI[[#This Row],[Input 2]],Table_PI[[#This Row],[Input 3]],Table_PI[[#This Row],[Input 4]],'Customer Information'!$AR$12,102,ROW())<>\"No Rebate\"),MeasureCalc(Table_PI[[#This Row],[Hide:\nFormula Name]],Table_SummaryPI[[#This Row],[Quantity]],Table_PI[[#This Row],[List 1]],Table_PI[[#This Row],[List 2]],Table_PI[[#This Row],[List 3]],Table_PI[[#This Row],[Size]],Table_PI[[#This Row],[Input 1]],Table_PI[[#This Row],[Input 2]],Table_PI[[#This Row],[Input 3]],Table_PI[[#This Row],[Input 4]],'Customer Information'!$AR$12,102,ROW()),\"\"),\"\")","v":""},{"$f":"IF(Table_PI[[#This Row],[Input 3]]<>\"\",Table_PI[[#This Row],[Input 3]],\"\")","v":""},null,{"$f":"IFERROR(IF(AND(MeasureCalc(Table_PI[[#This Row],[Hide:\nFormula Name]],Table_SummaryPI[[#This Row],[Quantity]],Table_PI[[#This Row],[List 1]],Table_PI[[#This Row],[List 2]],Table_PI[[#This Row],[List 3]],Table_PI[[#This Row],[Size]],Table_PI[[#This Row],[Input 1]],Table_PI[[#This Row],[Input 2]],Table_PI[[#This Row],[Input 3]],Table_PI[[#This Row],[Input 4]],'Customer Information'!$AR$12,103,ROW())<>0,MeasureCalc(Table_PI[[#This Row],[Hide:\nFormula Name]],Table_SummaryPI[[#This Row],[Quantity]],Table_PI[[#This Row],[List 1]],Table_PI[[#This Row],[List 2]],Table_PI[[#This Row],[List 3]],Table_PI[[#This Row],[Size]],Table_PI[[#This Row],[Input 1]],Table_PI[[#This Row],[Input 2]],Table_PI[[#This Row],[Input 3]],Table_PI[[#This Row],[Input 4]],'Customer Information'!$AR$12,103,ROW())<>\"No Rebate\"),MeasureCalc(Table_PI[[#This Row],[Hide:\nFormula Name]],Table_SummaryPI[[#This Row],[Quantity]],Table_PI[[#This Row],[List 1]],Table_PI[[#This Row],[List 2]],Table_PI[[#This Row],[List 3]],Table_PI[[#This Row],[Size]],Table_PI[[#This Row],[Input 1]],Table_PI[[#This Row],[Input 2]],Table_PI[[#This Row],[Input 3]],Table_PI[[#This Row],[Input 4]],'Customer Information'!$AR$12,103,ROW()),\"\"),\"\")","v":""},{"$f":"IF(Table_PI[[#This Row],[Input 4]]<>\"\",Table_PI[[#This Row],[Input 4]],\"\")","v":""},{"$f":"IF(Table_PI[[#This Row],[Quantity]]=\"\",\"\",Table_PI[[#This Row],[Quantity]])","v":""},{"$f":"IF(Table_PI[[#This Row],[Notes]]=\"\",\"\",Table_PI[[#This Row],[Notes]])","v":""},{"$f":"IF(OR(Table_PI[[#This Row],[Hide:\nBaseline kWh]]=\"\",Table_PI[[#This Row],[Hide:\nBaseline kWh]]=0),\"\",Table_PI[[#This Row],[Hide:\nBaseline kWh]])","v":""},{"$f":"IF(OR(Table_PI[[#This Row],[Hide:\nBaseline kW]]=\"\",Table_PI[[#This Row],[Hide:\nBaseline kW]]=0),\"\",Table_PI[[#This Row],[Hide:\nBaseline kW]])","v":""},{"$f":"IF(OR(Table_PI[[#This Row],[Hide:\nProposed kWh]]=\"\",Table_PI[[#This Row],[Hide:\nProposed kWh]]=0),\"\",Table_PI[[#This Row],[Hide:\nProposed kWh]])","v":""},{"$f":"IF(OR(Table_PI[[#This Row],[Hide:\nProposed kW]]=\"\",Table_PI[[#This Row],[Hide:\nProposed kW]]=0),\"\",Table_PI[[#This Row],[Hide:\nProposed kW]])","v":""},{"$f":"IF(OR(Table_PI[[#This Row],[Rebate]]=\"\",Table_PI[[#This Row],[Rebate]]=0),\"\",Table_PI[[#This Row],[Rebate]])","v":""},{"$f":"IF(OR(Table_PI[[#This Row],[Hide:\nIncremental Cost]]=\"\",Table_PI[[#This Row],[Hide:\nIncremental Cost]]=0),\"\",Table_PI[[#This Row],[Hide:\nIncremental Cost]])","v":""},{"$f":"IFERROR(IF(Table_SummaryPI[[#This Row],[kWhSavings]]=\"\",\"\",ROUND(Table_SummaryPI[[#This Row],[kWhSavings]]/$AG$401*'Customer Information'!$BC$17,2)),0)","v":""},{"$f":"IF(OR(Table_PI[[#This Row],[Annual kWh]]=\"\",Table_PI[[#This Row],[Annual kWh]]=0),\"\",Table_PI[[#This Row],[Annual kWh]])","v":""},{"$f":"IF(OR(Table_PI[[#This Row],[Peak kW]]=\"\",Table_PI[[#This Row],[Peak kW]]=0),\"\",Table_PI[[#This Row],[Peak kW]])","v":""},{"$f":"IFERROR(IF(Table_SummaryPI[[#This Row],[kWhSavings]]=\"\",\"\",$AU$9*Table_SummaryPI[[#This Row],[kWhSavings]]),0)","v":""},{"$f":"IFERROR(IF(Table_SummaryPI[[#This Row],[kWhSavings]]=\"\",\"\",$AU$14*Table_SummaryPI[[#This Row],[kWhSavings]]),0)","v":""},{"$f":"IFERROR(IF(Table_SummaryPI[[#This Row],[kWhSavings]]=\"\",\"\",$AU$18*Table_SummaryPI[[#This Row],[kWhSavings]]),0)","v":""},{"$f":"IFERROR(IF(Table_SummaryPI[[#This Row],[kWhSavings]]=\"\",\"\",$AU$22*Table_SummaryPI[[#This Row],[kWhSavings]]),0)","v":""},{"$f":"IFERROR(IF(MeasureCalc(Table_PI[[#This Row],[Hide:\nFormula Name]],Table_SummaryPI[[#This Row],[Quantity]],Table_PI[[#This Row],[List 1]],Table_PI[[#This Row],[List 2]],Table_PI[[#This Row],[List 3]],Table_PI[[#This Row],[Size]],Table_PI[[#This Row],[Input 1]],Table_PI[[#This Row],[Input 2]],Table_PI[[#This Row],[Input 3]],Table_PI[[#This Row],[Input 4]],'Customer Information'!$AR$12,200,ROW())<>\"No Rebate\",MeasureCalc(Table_PI[[#This Row],[Hide:\nFormula Name]],Table_SummaryPI[[#This Row],[Quantity]],Table_PI[[#This Row],[List 1]],Table_PI[[#This Row],[List 2]],Table_PI[[#This Row],[List 3]],Table_PI[[#This Row],[Size]],Table_PI[[#This Row],[Input 1]],Table_PI[[#This Row],[Input 2]],Table_PI[[#This Row],[Input 3]],Table_PI[[#This Row],[Input 4]],'Customer Information'!$AR$12,200,ROW()),\"\"),\"\")","v":""},{"$f":"IFERROR(IF(MeasureCalc(Table_PI[[#This Row],[Hide:\nFormula Name]],Table_SummaryPI[[#This Row],[Quantity]],Table_PI[[#This Row],[List 1]],Table_PI[[#This Row],[List 2]],Table_PI[[#This Row],[List 3]],Table_PI[[#This Row],[Size]],Table_PI[[#This Row],[Input 1]],Table_PI[[#This Row],[Input 2]],Table_PI[[#This Row],[Input 3]],Table_PI[[#This Row],[Input 4]],'Customer Information'!$AR$12,201,ROW())<>\"No Rebate\",MeasureCalc(Table_PI[[#This Row],[Hide:\nFormula Name]],Table_SummaryPI[[#This Row],[Quantity]],Table_PI[[#This Row],[List 1]],Table_PI[[#This Row],[List 2]],Table_PI[[#This Row],[List 3]],Table_PI[[#This Row],[Size]],Table_PI[[#This Row],[Input 1]],Table_PI[[#This Row],[Input 2]],Table_PI[[#This Row],[Input 3]],Table_PI[[#This Row],[Input 4]],'Customer Information'!$AR$12,201,ROW()),\"\"),\"\")","v":""}]
[{"$f":"Table_PI[[#This Row],[Line No.]]","v":""},{"$f":"IF(Table_SummaryPI[[#This Row],[MeassureCategory]]<>\"\",CONCATENATE(Table_SummaryPI[[#This Row],[MeassureCategory]],  \" - \", Table_SummaryPI[[#This Row],[ProposedMeasureCategory]],  \" - \", TEXT(Table_SummaryPI[[#This Row],[Size]],\"#,##0.00\"),\" \",Table_SummaryPI[[#This Row],[SizeUnit]]),\"\")","v":""},{"$f":"SUBSTITUTE(Table_PI[[#This Row],[Measure]],\"     \",\"\",1)","v":""},{"$f":"IF(Table_PI[[#This Row],[List 1]]<>\"\",Table_PI[[#This Row],[List 1]],\"\")","v":""},{"$f":"IF(Table_PI[[#This Row],[List 2]]<>\"\",Table_PI[[#This Row],[List 2]],\"\")","v":""},{"$f":"IF(Table_PI[[#This Row],[List 3]]<>\"\",Table_PI[[#This Row],[List 3]],\"\")","v":""},{"$f":"IF(Table_PI[[#This Row],[Manufacturer]]=\"\",\"\",Table_PI[[#This Row],[Manufacturer]])","v":""},{"$f":"IF(Table_PI[[#This Row],[Model Number]]=\"\",\"\",Table_PI[[#This Row],[Model Number]])","v":""},{"$f":"IF(Table_PI[[#This Row],[Serial Number(s)]]=\"\",\"\",Table_PI[[#This Row],[Serial Number(s)]])","v":""},null,{"$f":"IF(Table_PI[[#This Row],[Size]]=\"\",\"\",Table_PI[[#This Row],[Size]])","v":""},null,{"$f":"IFERROR(IF(AND(MeasureCalc(Table_PI[[#This Row],[Hide:\nFormula Name]],Table_SummaryPI[[#This Row],[Quantity]],Table_PI[[#This Row],[List 1]],Table_PI[[#This Row],[List 2]],Table_PI[[#This Row],[List 3]],Table_PI[[#This Row],[Size]],Table_PI[[#This Row],[Input 1]],Table_PI[[#This Row],[Input 2]],Table_PI[[#This Row],[Input 3]],Table_PI[[#This Row],[Input 4]],'Customer Information'!$AR$12,100,ROW())<>0,MeasureCalc(Table_PI[[#This Row],[Hide:\nFormula Name]],Table_SummaryPI[[#This Row],[Quantity]],Table_PI[[#This Row],[List 1]],Table_PI[[#This Row],[List 2]],Table_PI[[#This Row],[List 3]],Table_PI[[#This Row],[Size]],Table_PI[[#This Row],[Input 1]],Table_PI[[#This Row],[Input 2]],Table_PI[[#This Row],[Input 3]],Table_PI[[#This Row],[Input 4]],'Customer Information'!$AR$12,100,ROW())<>\"No Rebate\"),MeasureCalc(Table_PI[[#This Row],[Hide:\nFormula Name]],Table_SummaryPI[[#This Row],[Quantity]],Table_PI[[#This Row],[List 1]],Table_PI[[#This Row],[List 2]],Table_PI[[#This Row],[List 3]],Table_PI[[#This Row],[Size]],Table_PI[[#This Row],[Input 1]],Table_PI[[#This Row],[Input 2]],Table_PI[[#This Row],[Input 3]],Table_PI[[#This Row],[Input 4]],'Customer Information'!$AR$12,100,ROW()),\"\"),\"\")","v":""},{"$f":"IF(Table_PI[[#This Row],[Input 1]]<>\"\",Table_PI[[#This Row],[Input 1]],\"\")","v":""},null,{"$f":"IFERROR(IF(AND(MeasureCalc(Table_PI[[#This Row],[Hide:\nFormula Name]],Table_SummaryPI[[#This Row],[Quantity]],Table_PI[[#This Row],[List 1]],Table_PI[[#This Row],[List 2]],Table_PI[[#This Row],[List 3]],Table_PI[[#This Row],[Size]],Table_PI[[#This Row],[Input 1]],Table_PI[[#This Row],[Input 2]],Table_PI[[#This Row],[Input 3]],Table_PI[[#This Row],[Input 4]],'Customer Information'!$AR$12,101,ROW())<>0,MeasureCalc(Table_PI[[#This Row],[Hide:\nFormula Name]],Table_SummaryPI[[#This Row],[Quantity]],Table_PI[[#This Row],[List 1]],Table_PI[[#This Row],[List 2]],Table_PI[[#This Row],[List 3]],Table_PI[[#This Row],[Size]],Table_PI[[#This Row],[Input 1]],Table_PI[[#This Row],[Input 2]],Table_PI[[#This Row],[Input 3]],Table_PI[[#This Row],[Input 4]],'Customer Information'!$AR$12,101,ROW())<>\"No Rebate\"),MeasureCalc(Table_PI[[#This Row],[Hide:\nFormula Name]],Table_SummaryPI[[#This Row],[Quantity]],Table_PI[[#This Row],[List 1]],Table_PI[[#This Row],[List 2]],Table_PI[[#This Row],[List 3]],Table_PI[[#This Row],[Size]],Table_PI[[#This Row],[Input 1]],Table_PI[[#This Row],[Input 2]],Table_PI[[#This Row],[Input 3]],Table_PI[[#This Row],[Input 4]],'Customer Information'!$AR$12,101,ROW()),\"\"),\"\")","v":""},{"$f":"IF(Table_PI[[#This Row],[Input 2]]<>\"\",Table_PI[[#This Row],[Input 2]],\"\")","v":""},null,{"$f":"IFERROR(IF(AND(MeasureCalc(Table_PI[[#This Row],[Hide:\nFormula Name]],Table_SummaryPI[[#This Row],[Quantity]],Table_PI[[#This Row],[List 1]],Table_PI[[#This Row],[List 2]],Table_PI[[#This Row],[List 3]],Table_PI[[#This Row],[Size]],Table_PI[[#This Row],[Input 1]],Table_PI[[#This Row],[Input 2]],Table_PI[[#This Row],[Input 3]],Table_PI[[#This Row],[Input 4]],'Customer Information'!$AR$12,102,ROW())<>0,MeasureCalc(Table_PI[[#This Row],[Hide:\nFormula Name]],Table_SummaryPI[[#This Row],[Quantity]],Table_PI[[#This Row],[List 1]],Table_PI[[#This Row],[List 2]],Table_PI[[#This Row],[List 3]],Table_PI[[#This Row],[Size]],Table_PI[[#This Row],[Input 1]],Table_PI[[#This Row],[Input 2]],Table_PI[[#This Row],[Input 3]],Table_PI[[#This Row],[Input 4]],'Customer Information'!$AR$12,102,ROW())<>\"No Rebate\"),MeasureCalc(Table_PI[[#This Row],[Hide:\nFormula Name]],Table_SummaryPI[[#This Row],[Quantity]],Table_PI[[#This Row],[List 1]],Table_PI[[#This Row],[List 2]],Table_PI[[#This Row],[List 3]],Table_PI[[#This Row],[Size]],Table_PI[[#This Row],[Input 1]],Table_PI[[#This Row],[Input 2]],Table_PI[[#This Row],[Input 3]],Table_PI[[#This Row],[Input 4]],'Customer Information'!$AR$12,102,ROW()),\"\"),\"\")","v":""},{"$f":"IF(Table_PI[[#This Row],[Input 3]]<>\"\",Table_PI[[#This Row],[Input 3]],\"\")","v":""},null,{"$f":"IFERROR(IF(AND(MeasureCalc(Table_PI[[#This Row],[Hide:\nFormula Name]],Table_SummaryPI[[#This Row],[Quantity]],Table_PI[[#This Row],[List 1]],Table_PI[[#This Row],[List 2]],Table_PI[[#This Row],[List 3]],Table_PI[[#This Row],[Size]],Table_PI[[#This Row],[Input 1]],Table_PI[[#This Row],[Input 2]],Table_PI[[#This Row],[Input 3]],Table_PI[[#This Row],[Input 4]],'Customer Information'!$AR$12,103,ROW())<>0,MeasureCalc(Table_PI[[#This Row],[Hide:\nFormula Name]],Table_SummaryPI[[#This Row],[Quantity]],Table_PI[[#This Row],[List 1]],Table_PI[[#This Row],[List 2]],Table_PI[[#This Row],[List 3]],Table_PI[[#This Row],[Size]],Table_PI[[#This Row],[Input 1]],Table_PI[[#This Row],[Input 2]],Table_PI[[#This Row],[Input 3]],Table_PI[[#This Row],[Input 4]],'Customer Information'!$AR$12,103,ROW())<>\"No Rebate\"),MeasureCalc(Table_PI[[#This Row],[Hide:\nFormula Name]],Table_SummaryPI[[#This Row],[Quantity]],Table_PI[[#This Row],[List 1]],Table_PI[[#This Row],[List 2]],Table_PI[[#This Row],[List 3]],Table_PI[[#This Row],[Size]],Table_PI[[#This Row],[Input 1]],Table_PI[[#This Row],[Input 2]],Table_PI[[#This Row],[Input 3]],Table_PI[[#This Row],[Input 4]],'Customer Information'!$AR$12,103,ROW()),\"\"),\"\")","v":""},{"$f":"IF(Table_PI[[#This Row],[Input 4]]<>\"\",Table_PI[[#This Row],[Input 4]],\"\")","v":""},{"$f":"IF(Table_PI[[#This Row],[Quantity]]=\"\",\"\",Table_PI[[#This Row],[Quantity]])","v":""},{"$f":"IF(Table_PI[[#This Row],[Notes]]=\"\",\"\",Table_PI[[#This Row],[Notes]])","v":""},{"$f":"IF(OR(Table_PI[[#This Row],[Hide:\nBaseline kWh]]=\"\",Table_PI[[#This Row],[Hide:\nBaseline kWh]]=0),\"\",Table_PI[[#This Row],[Hide:\nBaseline kWh]])","v":""},{"$f":"IF(OR(Table_PI[[#This Row],[Hide:\nBaseline kW]]=\"\",Table_PI[[#This Row],[Hide:\nBaseline kW]]=0),\"\",Table_PI[[#This Row],[Hide:\nBaseline kW]])","v":""},{"$f":"IF(OR(Table_PI[[#This Row],[Hide:\nProposed kWh]]=\"\",Table_PI[[#This Row],[Hide:\nProposed kWh]]=0),\"\",Table_PI[[#This Row],[Hide:\nProposed kWh]])","v":""},{"$f":"IF(OR(Table_PI[[#This Row],[Hide:\nProposed kW]]=\"\",Table_PI[[#This Row],[Hide:\nProposed kW]]=0),\"\",Table_PI[[#This Row],[Hide:\nProposed kW]])","v":""},{"$f":"IF(OR(Table_PI[[#This Row],[Rebate]]=\"\",Table_PI[[#This Row],[Rebate]]=0),\"\",Table_PI[[#This Row],[Rebate]])","v":""},{"$f":"IF(OR(Table_PI[[#This Row],[Hide:\nIncremental Cost]]=\"\",Table_PI[[#This Row],[Hide:\nIncremental Cost]]=0),\"\",Table_PI[[#This Row],[Hide:\nIncremental Cost]])","v":""},{"$f":"IFERROR(IF(Table_SummaryPI[[#This Row],[kWhSavings]]=\"\",\"\",ROUND(Table_SummaryPI[[#This Row],[kWhSavings]]/$AG$401*'Customer Information'!$BC$17,2)),0)","v":""},{"$f":"IF(OR(Table_PI[[#This Row],[Annual kWh]]=\"\",Table_PI[[#This Row],[Annual kWh]]=0),\"\",Table_PI[[#This Row],[Annual kWh]])","v":""},{"$f":"IF(OR(Table_PI[[#This Row],[Peak kW]]=\"\",Table_PI[[#This Row],[Peak kW]]=0),\"\",Table_PI[[#This Row],[Peak kW]])","v":""},{"$f":"IFERROR(IF(Table_SummaryPI[[#This Row],[kWhSavings]]=\"\",\"\",$AU$9*Table_SummaryPI[[#This Row],[kWhSavings]]),0)","v":""},{"$f":"IFERROR(IF(Table_SummaryPI[[#This Row],[kWhSavings]]=\"\",\"\",$AU$14*Table_SummaryPI[[#This Row],[kWhSavings]]),0)","v":""},{"$f":"IFERROR(IF(Table_SummaryPI[[#This Row],[kWhSavings]]=\"\",\"\",$AU$18*Table_SummaryPI[[#This Row],[kWhSavings]]),0)","v":""},{"$f":"IFERROR(IF(Table_SummaryPI[[#This Row],[kWhSavings]]=\"\",\"\",$AU$22*Table_SummaryPI[[#This Row],[kWhSavings]]),0)","v":""},{"$f":"IFERROR(IF(MeasureCalc(Table_PI[[#This Row],[Hide:\nFormula Name]],Table_SummaryPI[[#This Row],[Quantity]],Table_PI[[#This Row],[List 1]],Table_PI[[#This Row],[List 2]],Table_PI[[#This Row],[List 3]],Table_PI[[#This Row],[Size]],Table_PI[[#This Row],[Input 1]],Table_PI[[#This Row],[Input 2]],Table_PI[[#This Row],[Input 3]],Table_PI[[#This Row],[Input 4]],'Customer Information'!$AR$12,200,ROW())<>\"No Rebate\",MeasureCalc(Table_PI[[#This Row],[Hide:\nFormula Name]],Table_SummaryPI[[#This Row],[Quantity]],Table_PI[[#This Row],[List 1]],Table_PI[[#This Row],[List 2]],Table_PI[[#This Row],[List 3]],Table_PI[[#This Row],[Size]],Table_PI[[#This Row],[Input 1]],Table_PI[[#This Row],[Input 2]],Table_PI[[#This Row],[Input 3]],Table_PI[[#This Row],[Input 4]],'Customer Information'!$AR$12,200,ROW()),\"\"),\"\")","v":""},{"$f":"IFERROR(IF(MeasureCalc(Table_PI[[#This Row],[Hide:\nFormula Name]],Table_SummaryPI[[#This Row],[Quantity]],Table_PI[[#This Row],[List 1]],Table_PI[[#This Row],[List 2]],Table_PI[[#This Row],[List 3]],Table_PI[[#This Row],[Size]],Table_PI[[#This Row],[Input 1]],Table_PI[[#This Row],[Input 2]],Table_PI[[#This Row],[Input 3]],Table_PI[[#This Row],[Input 4]],'Customer Information'!$AR$12,201,ROW())<>\"No Rebate\",MeasureCalc(Table_PI[[#This Row],[Hide:\nFormula Name]],Table_SummaryPI[[#This Row],[Quantity]],Table_PI[[#This Row],[List 1]],Table_PI[[#This Row],[List 2]],Table_PI[[#This Row],[List 3]],Table_PI[[#This Row],[Size]],Table_PI[[#This Row],[Input 1]],Table_PI[[#This Row],[Input 2]],Table_PI[[#This Row],[Input 3]],Table_PI[[#This Row],[Input 4]],'Customer Information'!$AR$12,201,ROW()),\"\"),\"\")","v":""}]
[{"$f":"Table_PI[[#This Row],[Line No.]]","v":""},{"$f":"IF(Table_SummaryPI[[#This Row],[MeassureCategory]]<>\"\",CONCATENATE(Table_SummaryPI[[#This Row],[MeassureCategory]],  \" - \", Table_SummaryPI[[#This Row],[ProposedMeasureCategory]],  \" - \", TEXT(Table_SummaryPI[[#This Row],[Size]],\"#,##0.00\"),\" \",Table_SummaryPI[[#This Row],[SizeUnit]]),\"\")","v":""},{"$f":"SUBSTITUTE(Table_PI[[#This Row],[Measure]],\"     \",\"\",1)","v":""},{"$f":"IF(Table_PI[[#This Row],[List 1]]<>\"\",Table_PI[[#This Row],[List 1]],\"\")","v":""},{"$f":"IF(Table_PI[[#This Row],[List 2]]<>\"\",Table_PI[[#This Row],[List 2]],\"\")","v":""},{"$f":"IF(Table_PI[[#This Row],[List 3]]<>\"\",Table_PI[[#This Row],[List 3]],\"\")","v":""},{"$f":"IF(Table_PI[[#This Row],[Manufacturer]]=\"\",\"\",Table_PI[[#This Row],[Manufacturer]])","v":""},{"$f":"IF(Table_PI[[#This Row],[Model Number]]=\"\",\"\",Table_PI[[#This Row],[Model Number]])","v":""},{"$f":"IF(Table_PI[[#This Row],[Serial Number(s)]]=\"\",\"\",Table_PI[[#This Row],[Serial Number(s)]])","v":""},null,{"$f":"IF(Table_PI[[#This Row],[Size]]=\"\",\"\",Table_PI[[#This Row],[Size]])","v":""},null,{"$f":"IFERROR(IF(AND(MeasureCalc(Table_PI[[#This Row],[Hide:\nFormula Name]],Table_SummaryPI[[#This Row],[Quantity]],Table_PI[[#This Row],[List 1]],Table_PI[[#This Row],[List 2]],Table_PI[[#This Row],[List 3]],Table_PI[[#This Row],[Size]],Table_PI[[#This Row],[Input 1]],Table_PI[[#This Row],[Input 2]],Table_PI[[#This Row],[Input 3]],Table_PI[[#This Row],[Input 4]],'Customer Information'!$AR$12,100,ROW())<>0,MeasureCalc(Table_PI[[#This Row],[Hide:\nFormula Name]],Table_SummaryPI[[#This Row],[Quantity]],Table_PI[[#This Row],[List 1]],Table_PI[[#This Row],[List 2]],Table_PI[[#This Row],[List 3]],Table_PI[[#This Row],[Size]],Table_PI[[#This Row],[Input 1]],Table_PI[[#This Row],[Input 2]],Table_PI[[#This Row],[Input 3]],Table_PI[[#This Row],[Input 4]],'Customer Information'!$AR$12,100,ROW())<>\"No Rebate\"),MeasureCalc(Table_PI[[#This Row],[Hide:\nFormula Name]],Table_SummaryPI[[#This Row],[Quantity]],Table_PI[[#This Row],[List 1]],Table_PI[[#This Row],[List 2]],Table_PI[[#This Row],[List 3]],Table_PI[[#This Row],[Size]],Table_PI[[#This Row],[Input 1]],Table_PI[[#This Row],[Input 2]],Table_PI[[#This Row],[Input 3]],Table_PI[[#This Row],[Input 4]],'Customer Information'!$AR$12,100,ROW()),\"\"),\"\")","v":""},{"$f":"IF(Table_PI[[#This Row],[Input 1]]<>\"\",Table_PI[[#This Row],[Input 1]],\"\")","v":""},null,{"$f":"IFERROR(IF(AND(MeasureCalc(Table_PI[[#This Row],[Hide:\nFormula Name]],Table_SummaryPI[[#This Row],[Quantity]],Table_PI[[#This Row],[List 1]],Table_PI[[#This Row],[List 2]],Table_PI[[#This Row],[List 3]],Table_PI[[#This Row],[Size]],Table_PI[[#This Row],[Input 1]],Table_PI[[#This Row],[Input 2]],Table_PI[[#This Row],[Input 3]],Table_PI[[#This Row],[Input 4]],'Customer Information'!$AR$12,101,ROW())<>0,MeasureCalc(Table_PI[[#This Row],[Hide:\nFormula Name]],Table_SummaryPI[[#This Row],[Quantity]],Table_PI[[#This Row],[List 1]],Table_PI[[#This Row],[List 2]],Table_PI[[#This Row],[List 3]],Table_PI[[#This Row],[Size]],Table_PI[[#This Row],[Input 1]],Table_PI[[#This Row],[Input 2]],Table_PI[[#This Row],[Input 3]],Table_PI[[#This Row],[Input 4]],'Customer Information'!$AR$12,101,ROW())<>\"No Rebate\"),MeasureCalc(Table_PI[[#This Row],[Hide:\nFormula Name]],Table_SummaryPI[[#This Row],[Quantity]],Table_PI[[#This Row],[List 1]],Table_PI[[#This Row],[List 2]],Table_PI[[#This Row],[List 3]],Table_PI[[#This Row],[Size]],Table_PI[[#This Row],[Input 1]],Table_PI[[#This Row],[Input 2]],Table_PI[[#This Row],[Input 3]],Table_PI[[#This Row],[Input 4]],'Customer Information'!$AR$12,101,ROW()),\"\"),\"\")","v":""},{"$f":"IF(Table_PI[[#This Row],[Input 2]]<>\"\",Table_PI[[#This Row],[Input 2]],\"\")","v":""},null,{"$f":"IFERROR(IF(AND(MeasureCalc(Table_PI[[#This Row],[Hide:\nFormula Name]],Table_SummaryPI[[#This Row],[Quantity]],Table_PI[[#This Row],[List 1]],Table_PI[[#This Row],[List 2]],Table_PI[[#This Row],[List 3]],Table_PI[[#This Row],[Size]],Table_PI[[#This Row],[Input 1]],Table_PI[[#This Row],[Input 2]],Table_PI[[#This Row],[Input 3]],Table_PI[[#This Row],[Input 4]],'Customer Information'!$AR$12,102,ROW())<>0,MeasureCalc(Table_PI[[#This Row],[Hide:\nFormula Name]],Table_SummaryPI[[#This Row],[Quantity]],Table_PI[[#This Row],[List 1]],Table_PI[[#This Row],[List 2]],Table_PI[[#This Row],[List 3]],Table_PI[[#This Row],[Size]],Table_PI[[#This Row],[Input 1]],Table_PI[[#This Row],[Input 2]],Table_PI[[#This Row],[Input 3]],Table_PI[[#This Row],[Input 4]],'Customer Information'!$AR$12,102,ROW())<>\"No Rebate\"),MeasureCalc(Table_PI[[#This Row],[Hide:\nFormula Name]],Table_SummaryPI[[#This Row],[Quantity]],Table_PI[[#This Row],[List 1]],Table_PI[[#This Row],[List 2]],Table_PI[[#This Row],[List 3]],Table_PI[[#This Row],[Size]],Table_PI[[#This Row],[Input 1]],Table_PI[[#This Row],[Input 2]],Table_PI[[#This Row],[Input 3]],Table_PI[[#This Row],[Input 4]],'Customer Information'!$AR$12,102,ROW()),\"\"),\"\")","v":""},{"$f":"IF(Table_PI[[#This Row],[Input 3]]<>\"\",Table_PI[[#This Row],[Input 3]],\"\")","v":""},null,{"$f":"IFERROR(IF(AND(MeasureCalc(Table_PI[[#This Row],[Hide:\nFormula Name]],Table_SummaryPI[[#This Row],[Quantity]],Table_PI[[#This Row],[List 1]],Table_PI[[#This Row],[List 2]],Table_PI[[#This Row],[List 3]],Table_PI[[#This Row],[Size]],Table_PI[[#This Row],[Input 1]],Table_PI[[#This Row],[Input 2]],Table_PI[[#This Row],[Input 3]],Table_PI[[#This Row],[Input 4]],'Customer Information'!$AR$12,103,ROW())<>0,MeasureCalc(Table_PI[[#This Row],[Hide:\nFormula Name]],Table_SummaryPI[[#This Row],[Quantity]],Table_PI[[#This Row],[List 1]],Table_PI[[#This Row],[List 2]],Table_PI[[#This Row],[List 3]],Table_PI[[#This Row],[Size]],Table_PI[[#This Row],[Input 1]],Table_PI[[#This Row],[Input 2]],Table_PI[[#This Row],[Input 3]],Table_PI[[#This Row],[Input 4]],'Customer Information'!$AR$12,103,ROW())<>\"No Rebate\"),MeasureCalc(Table_PI[[#This Row],[Hide:\nFormula Name]],Table_SummaryPI[[#This Row],[Quantity]],Table_PI[[#This Row],[List 1]],Table_PI[[#This Row],[List 2]],Table_PI[[#This Row],[List 3]],Table_PI[[#This Row],[Size]],Table_PI[[#This Row],[Input 1]],Table_PI[[#This Row],[Input 2]],Table_PI[[#This Row],[Input 3]],Table_PI[[#This Row],[Input 4]],'Customer Information'!$AR$12,103,ROW()),\"\"),\"\")","v":""},{"$f":"IF(Table_PI[[#This Row],[Input 4]]<>\"\",Table_PI[[#This Row],[Input 4]],\"\")","v":""},{"$f":"IF(Table_PI[[#This Row],[Quantity]]=\"\",\"\",Table_PI[[#This Row],[Quantity]])","v":""},{"$f":"IF(Table_PI[[#This Row],[Notes]]=\"\",\"\",Table_PI[[#This Row],[Notes]])","v":""},{"$f":"IF(OR(Table_PI[[#This Row],[Hide:\nBaseline kWh]]=\"\",Table_PI[[#This Row],[Hide:\nBaseline kWh]]=0),\"\",Table_PI[[#This Row],[Hide:\nBaseline kWh]])","v":""},{"$f":"IF(OR(Table_PI[[#This Row],[Hide:\nBaseline kW]]=\"\",Table_PI[[#This Row],[Hide:\nBaseline kW]]=0),\"\",Table_PI[[#This Row],[Hide:\nBaseline kW]])","v":""},{"$f":"IF(OR(Table_PI[[#This Row],[Hide:\nProposed kWh]]=\"\",Table_PI[[#This Row],[Hide:\nProposed kWh]]=0),\"\",Table_PI[[#This Row],[Hide:\nProposed kWh]])","v":""},{"$f":"IF(OR(Table_PI[[#This Row],[Hide:\nProposed kW]]=\"\",Table_PI[[#This Row],[Hide:\nProposed kW]]=0),\"\",Table_PI[[#This Row],[Hide:\nProposed kW]])","v":""},{"$f":"IF(OR(Table_PI[[#This Row],[Rebate]]=\"\",Table_PI[[#This Row],[Rebate]]=0),\"\",Table_PI[[#This Row],[Rebate]])","v":""},{"$f":"IF(OR(Table_PI[[#This Row],[Hide:\nIncremental Cost]]=\"\",Table_PI[[#This Row],[Hide:\nIncremental Cost]]=0),\"\",Table_PI[[#This Row],[Hide:\nIncremental Cost]])","v":""},{"$f":"IFERROR(IF(Table_SummaryPI[[#This Row],[kWhSavings]]=\"\",\"\",ROUND(Table_SummaryPI[[#This Row],[kWhSavings]]/$AG$401*'Customer Information'!$BC$17,2)),0)","v":""},{"$f":"IF(OR(Table_PI[[#This Row],[Annual kWh]]=\"\",Table_PI[[#This Row],[Annual kWh]]=0),\"\",Table_PI[[#This Row],[Annual kWh]])","v":""},{"$f":"IF(OR(Table_PI[[#This Row],[Peak kW]]=\"\",Table_PI[[#This Row],[Peak kW]]=0),\"\",Table_PI[[#This Row],[Peak kW]])","v":""},{"$f":"IFERROR(IF(Table_SummaryPI[[#This Row],[kWhSavings]]=\"\",\"\",$AU$9*Table_SummaryPI[[#This Row],[kWhSavings]]),0)","v":""},{"$f":"IFERROR(IF(Table_SummaryPI[[#This Row],[kWhSavings]]=\"\",\"\",$AU$14*Table_SummaryPI[[#This Row],[kWhSavings]]),0)","v":""},{"$f":"IFERROR(IF(Table_SummaryPI[[#This Row],[kWhSavings]]=\"\",\"\",$AU$18*Table_SummaryPI[[#This Row],[kWhSavings]]),0)","v":""},{"$f":"IFERROR(IF(Table_SummaryPI[[#This Row],[kWhSavings]]=\"\",\"\",$AU$22*Table_SummaryPI[[#This Row],[kWhSavings]]),0)","v":""},{"$f":"IFERROR(IF(MeasureCalc(Table_PI[[#This Row],[Hide:\nFormula Name]],Table_SummaryPI[[#This Row],[Quantity]],Table_PI[[#This Row],[List 1]],Table_PI[[#This Row],[List 2]],Table_PI[[#This Row],[List 3]],Table_PI[[#This Row],[Size]],Table_PI[[#This Row],[Input 1]],Table_PI[[#This Row],[Input 2]],Table_PI[[#This Row],[Input 3]],Table_PI[[#This Row],[Input 4]],'Customer Information'!$AR$12,200,ROW())<>\"No Rebate\",MeasureCalc(Table_PI[[#This Row],[Hide:\nFormula Name]],Table_SummaryPI[[#This Row],[Quantity]],Table_PI[[#This Row],[List 1]],Table_PI[[#This Row],[List 2]],Table_PI[[#This Row],[List 3]],Table_PI[[#This Row],[Size]],Table_PI[[#This Row],[Input 1]],Table_PI[[#This Row],[Input 2]],Table_PI[[#This Row],[Input 3]],Table_PI[[#This Row],[Input 4]],'Customer Information'!$AR$12,200,ROW()),\"\"),\"\")","v":""},{"$f":"IFERROR(IF(MeasureCalc(Table_PI[[#This Row],[Hide:\nFormula Name]],Table_SummaryPI[[#This Row],[Quantity]],Table_PI[[#This Row],[List 1]],Table_PI[[#This Row],[List 2]],Table_PI[[#This Row],[List 3]],Table_PI[[#This Row],[Size]],Table_PI[[#This Row],[Input 1]],Table_PI[[#This Row],[Input 2]],Table_PI[[#This Row],[Input 3]],Table_PI[[#This Row],[Input 4]],'Customer Information'!$AR$12,201,ROW())<>\"No Rebate\",MeasureCalc(Table_PI[[#This Row],[Hide:\nFormula Name]],Table_SummaryPI[[#This Row],[Quantity]],Table_PI[[#This Row],[List 1]],Table_PI[[#This Row],[List 2]],Table_PI[[#This Row],[List 3]],Table_PI[[#This Row],[Size]],Table_PI[[#This Row],[Input 1]],Table_PI[[#This Row],[Input 2]],Table_PI[[#This Row],[Input 3]],Table_PI[[#This Row],[Input 4]],'Customer Information'!$AR$12,201,ROW()),\"\"),\"\")","v":""}]
[{"$f":"Table_PI[[#This Row],[Line No.]]","v":""},{"$f":"IF(Table_SummaryPI[[#This Row],[MeassureCategory]]<>\"\",CONCATENATE(Table_SummaryPI[[#This Row],[MeassureCategory]],  \" - \", Table_SummaryPI[[#This Row],[ProposedMeasureCategory]],  \" - \", TEXT(Table_SummaryPI[[#This Row],[Size]],\"#,##0.00\"),\" \",Table_SummaryPI[[#This Row],[SizeUnit]]),\"\")","v":""},{"$f":"SUBSTITUTE(Table_PI[[#This Row],[Measure]],\"     \",\"\",1)","v":""},{"$f":"IF(Table_PI[[#This Row],[List 1]]<>\"\",Table_PI[[#This Row],[List 1]],\"\")","v":""},{"$f":"IF(Table_PI[[#This Row],[List 2]]<>\"\",Table_PI[[#This Row],[List 2]],\"\")","v":""},{"$f":"IF(Table_PI[[#This Row],[List 3]]<>\"\",Table_PI[[#This Row],[List 3]],\"\")","v":""},{"$f":"IF(Table_PI[[#This Row],[Manufacturer]]=\"\",\"\",Table_PI[[#This Row],[Manufacturer]])","v":""},{"$f":"IF(Table_PI[[#This Row],[Model Number]]=\"\",\"\",Table_PI[[#This Row],[Model Number]])","v":""},{"$f":"IF(Table_PI[[#This Row],[Serial Number(s)]]=\"\",\"\",Table_PI[[#This Row],[Serial Number(s)]])","v":""},null,{"$f":"IF(Table_PI[[#This Row],[Size]]=\"\",\"\",Table_PI[[#This Row],[Size]])","v":""},null,{"$f":"IFERROR(IF(AND(MeasureCalc(Table_PI[[#This Row],[Hide:\nFormula Name]],Table_SummaryPI[[#This Row],[Quantity]],Table_PI[[#This Row],[List 1]],Table_PI[[#This Row],[List 2]],Table_PI[[#This Row],[List 3]],Table_PI[[#This Row],[Size]],Table_PI[[#This Row],[Input 1]],Table_PI[[#This Row],[Input 2]],Table_PI[[#This Row],[Input 3]],Table_PI[[#This Row],[Input 4]],'Customer Information'!$AR$12,100,ROW())<>0,MeasureCalc(Table_PI[[#This Row],[Hide:\nFormula Name]],Table_SummaryPI[[#This Row],[Quantity]],Table_PI[[#This Row],[List 1]],Table_PI[[#This Row],[List 2]],Table_PI[[#This Row],[List 3]],Table_PI[[#This Row],[Size]],Table_PI[[#This Row],[Input 1]],Table_PI[[#This Row],[Input 2]],Table_PI[[#This Row],[Input 3]],Table_PI[[#This Row],[Input 4]],'Customer Information'!$AR$12,100,ROW())<>\"No Rebate\"),MeasureCalc(Table_PI[[#This Row],[Hide:\nFormula Name]],Table_SummaryPI[[#This Row],[Quantity]],Table_PI[[#This Row],[List 1]],Table_PI[[#This Row],[List 2]],Table_PI[[#This Row],[List 3]],Table_PI[[#This Row],[Size]],Table_PI[[#This Row],[Input 1]],Table_PI[[#This Row],[Input 2]],Table_PI[[#This Row],[Input 3]],Table_PI[[#This Row],[Input 4]],'Customer Information'!$AR$12,100,ROW()),\"\"),\"\")","v":""},{"$f":"IF(Table_PI[[#This Row],[Input 1]]<>\"\",Table_PI[[#This Row],[Input 1]],\"\")","v":""},null,{"$f":"IFERROR(IF(AND(MeasureCalc(Table_PI[[#This Row],[Hide:\nFormula Name]],Table_SummaryPI[[#This Row],[Quantity]],Table_PI[[#This Row],[List 1]],Table_PI[[#This Row],[List 2]],Table_PI[[#This Row],[List 3]],Table_PI[[#This Row],[Size]],Table_PI[[#This Row],[Input 1]],Table_PI[[#This Row],[Input 2]],Table_PI[[#This Row],[Input 3]],Table_PI[[#This Row],[Input 4]],'Customer Information'!$AR$12,101,ROW())<>0,MeasureCalc(Table_PI[[#This Row],[Hide:\nFormula Name]],Table_SummaryPI[[#This Row],[Quantity]],Table_PI[[#This Row],[List 1]],Table_PI[[#This Row],[List 2]],Table_PI[[#This Row],[List 3]],Table_PI[[#This Row],[Size]],Table_PI[[#This Row],[Input 1]],Table_PI[[#This Row],[Input 2]],Table_PI[[#This Row],[Input 3]],Table_PI[[#This Row],[Input 4]],'Customer Information'!$AR$12,101,ROW())<>\"No Rebate\"),MeasureCalc(Table_PI[[#This Row],[Hide:\nFormula Name]],Table_SummaryPI[[#This Row],[Quantity]],Table_PI[[#This Row],[List 1]],Table_PI[[#This Row],[List 2]],Table_PI[[#This Row],[List 3]],Table_PI[[#This Row],[Size]],Table_PI[[#This Row],[Input 1]],Table_PI[[#This Row],[Input 2]],Table_PI[[#This Row],[Input 3]],Table_PI[[#This Row],[Input 4]],'Customer Information'!$AR$12,101,ROW()),\"\"),\"\")","v":""},{"$f":"IF(Table_PI[[#This Row],[Input 2]]<>\"\",Table_PI[[#This Row],[Input 2]],\"\")","v":""},null,{"$f":"IFERROR(IF(AND(MeasureCalc(Table_PI[[#This Row],[Hide:\nFormula Name]],Table_SummaryPI[[#This Row],[Quantity]],Table_PI[[#This Row],[List 1]],Table_PI[[#This Row],[List 2]],Table_PI[[#This Row],[List 3]],Table_PI[[#This Row],[Size]],Table_PI[[#This Row],[Input 1]],Table_PI[[#This Row],[Input 2]],Table_PI[[#This Row],[Input 3]],Table_PI[[#This Row],[Input 4]],'Customer Information'!$AR$12,102,ROW())<>0,MeasureCalc(Table_PI[[#This Row],[Hide:\nFormula Name]],Table_SummaryPI[[#This Row],[Quantity]],Table_PI[[#This Row],[List 1]],Table_PI[[#This Row],[List 2]],Table_PI[[#This Row],[List 3]],Table_PI[[#This Row],[Size]],Table_PI[[#This Row],[Input 1]],Table_PI[[#This Row],[Input 2]],Table_PI[[#This Row],[Input 3]],Table_PI[[#This Row],[Input 4]],'Customer Information'!$AR$12,102,ROW())<>\"No Rebate\"),MeasureCalc(Table_PI[[#This Row],[Hide:\nFormula Name]],Table_SummaryPI[[#This Row],[Quantity]],Table_PI[[#This Row],[List 1]],Table_PI[[#This Row],[List 2]],Table_PI[[#This Row],[List 3]],Table_PI[[#This Row],[Size]],Table_PI[[#This Row],[Input 1]],Table_PI[[#This Row],[Input 2]],Table_PI[[#This Row],[Input 3]],Table_PI[[#This Row],[Input 4]],'Customer Information'!$AR$12,102,ROW()),\"\"),\"\")","v":""},{"$f":"IF(Table_PI[[#This Row],[Input 3]]<>\"\",Table_PI[[#This Row],[Input 3]],\"\")","v":""},null,{"$f":"IFERROR(IF(AND(MeasureCalc(Table_PI[[#This Row],[Hide:\nFormula Name]],Table_SummaryPI[[#This Row],[Quantity]],Table_PI[[#This Row],[List 1]],Table_PI[[#This Row],[List 2]],Table_PI[[#This Row],[List 3]],Table_PI[[#This Row],[Size]],Table_PI[[#This Row],[Input 1]],Table_PI[[#This Row],[Input 2]],Table_PI[[#This Row],[Input 3]],Table_PI[[#This Row],[Input 4]],'Customer Information'!$AR$12,103,ROW())<>0,MeasureCalc(Table_PI[[#This Row],[Hide:\nFormula Name]],Table_SummaryPI[[#This Row],[Quantity]],Table_PI[[#This Row],[List 1]],Table_PI[[#This Row],[List 2]],Table_PI[[#This Row],[List 3]],Table_PI[[#This Row],[Size]],Table_PI[[#This Row],[Input 1]],Table_PI[[#This Row],[Input 2]],Table_PI[[#This Row],[Input 3]],Table_PI[[#This Row],[Input 4]],'Customer Information'!$AR$12,103,ROW())<>\"No Rebate\"),MeasureCalc(Table_PI[[#This Row],[Hide:\nFormula Name]],Table_SummaryPI[[#This Row],[Quantity]],Table_PI[[#This Row],[List 1]],Table_PI[[#This Row],[List 2]],Table_PI[[#This Row],[List 3]],Table_PI[[#This Row],[Size]],Table_PI[[#This Row],[Input 1]],Table_PI[[#This Row],[Input 2]],Table_PI[[#This Row],[Input 3]],Table_PI[[#This Row],[Input 4]],'Customer Information'!$AR$12,103,ROW()),\"\"),\"\")","v":""},{"$f":"IF(Table_PI[[#This Row],[Input 4]]<>\"\",Table_PI[[#This Row],[Input 4]],\"\")","v":""},{"$f":"IF(Table_PI[[#This Row],[Quantity]]=\"\",\"\",Table_PI[[#This Row],[Quantity]])","v":""},{"$f":"IF(Table_PI[[#This Row],[Notes]]=\"\",\"\",Table_PI[[#This Row],[Notes]])","v":""},{"$f":"IF(OR(Table_PI[[#This Row],[Hide:\nBaseline kWh]]=\"\",Table_PI[[#This Row],[Hide:\nBaseline kWh]]=0),\"\",Table_PI[[#This Row],[Hide:\nBaseline kWh]])","v":""},{"$f":"IF(OR(Table_PI[[#This Row],[Hide:\nBaseline kW]]=\"\",Table_PI[[#This Row],[Hide:\nBaseline kW]]=0),\"\",Table_PI[[#This Row],[Hide:\nBaseline kW]])","v":""},{"$f":"IF(OR(Table_PI[[#This Row],[Hide:\nProposed kWh]]=\"\",Table_PI[[#This Row],[Hide:\nProposed kWh]]=0),\"\",Table_PI[[#This Row],[Hide:\nProposed kWh]])","v":""},{"$f":"IF(OR(Table_PI[[#This Row],[Hide:\nProposed kW]]=\"\",Table_PI[[#This Row],[Hide:\nProposed kW]]=0),\"\",Table_PI[[#This Row],[Hide:\nProposed kW]])","v":""},{"$f":"IF(OR(Table_PI[[#This Row],[Rebate]]=\"\",Table_PI[[#This Row],[Rebate]]=0),\"\",Table_PI[[#This Row],[Rebate]])","v":""},{"$f":"IF(OR(Table_PI[[#This Row],[Hide:\nIncremental Cost]]=\"\",Table_PI[[#This Row],[Hide:\nIncremental Cost]]=0),\"\",Table_PI[[#This Row],[Hide:\nIncremental Cost]])","v":""},{"$f":"IFERROR(IF(Table_SummaryPI[[#This Row],[kWhSavings]]=\"\",\"\",ROUND(Table_SummaryPI[[#This Row],[kWhSavings]]/$AG$401*'Customer Information'!$BC$17,2)),0)","v":""},{"$f":"IF(OR(Table_PI[[#This Row],[Annual kWh]]=\"\",Table_PI[[#This Row],[Annual kWh]]=0),\"\",Table_PI[[#This Row],[Annual kWh]])","v":""},{"$f":"IF(OR(Table_PI[[#This Row],[Peak kW]]=\"\",Table_PI[[#This Row],[Peak kW]]=0),\"\",Table_PI[[#This Row],[Peak kW]])","v":""},{"$f":"IFERROR(IF(Table_SummaryPI[[#This Row],[kWhSavings]]=\"\",\"\",$AU$9*Table_SummaryPI[[#This Row],[kWhSavings]]),0)","v":""},{"$f":"IFERROR(IF(Table_SummaryPI[[#This Row],[kWhSavings]]=\"\",\"\",$AU$14*Table_SummaryPI[[#This Row],[kWhSavings]]),0)","v":""},{"$f":"IFERROR(IF(Table_SummaryPI[[#This Row],[kWhSavings]]=\"\",\"\",$AU$18*Table_SummaryPI[[#This Row],[kWhSavings]]),0)","v":""},{"$f":"IFERROR(IF(Table_SummaryPI[[#This Row],[kWhSavings]]=\"\",\"\",$AU$22*Table_SummaryPI[[#This Row],[kWhSavings]]),0)","v":""},{"$f":"IFERROR(IF(MeasureCalc(Table_PI[[#This Row],[Hide:\nFormula Name]],Table_SummaryPI[[#This Row],[Quantity]],Table_PI[[#This Row],[List 1]],Table_PI[[#This Row],[List 2]],Table_PI[[#This Row],[List 3]],Table_PI[[#This Row],[Size]],Table_PI[[#This Row],[Input 1]],Table_PI[[#This Row],[Input 2]],Table_PI[[#This Row],[Input 3]],Table_PI[[#This Row],[Input 4]],'Customer Information'!$AR$12,200,ROW())<>\"No Rebate\",MeasureCalc(Table_PI[[#This Row],[Hide:\nFormula Name]],Table_SummaryPI[[#This Row],[Quantity]],Table_PI[[#This Row],[List 1]],Table_PI[[#This Row],[List 2]],Table_PI[[#This Row],[List 3]],Table_PI[[#This Row],[Size]],Table_PI[[#This Row],[Input 1]],Table_PI[[#This Row],[Input 2]],Table_PI[[#This Row],[Input 3]],Table_PI[[#This Row],[Input 4]],'Customer Information'!$AR$12,200,ROW()),\"\"),\"\")","v":""},{"$f":"IFERROR(IF(MeasureCalc(Table_PI[[#This Row],[Hide:\nFormula Name]],Table_SummaryPI[[#This Row],[Quantity]],Table_PI[[#This Row],[List 1]],Table_PI[[#This Row],[List 2]],Table_PI[[#This Row],[List 3]],Table_PI[[#This Row],[Size]],Table_PI[[#This Row],[Input 1]],Table_PI[[#This Row],[Input 2]],Table_PI[[#This Row],[Input 3]],Table_PI[[#This Row],[Input 4]],'Customer Information'!$AR$12,201,ROW())<>\"No Rebate\",MeasureCalc(Table_PI[[#This Row],[Hide:\nFormula Name]],Table_SummaryPI[[#This Row],[Quantity]],Table_PI[[#This Row],[List 1]],Table_PI[[#This Row],[List 2]],Table_PI[[#This Row],[List 3]],Table_PI[[#This Row],[Size]],Table_PI[[#This Row],[Input 1]],Table_PI[[#This Row],[Input 2]],Table_PI[[#This Row],[Input 3]],Table_PI[[#This Row],[Input 4]],'Customer Information'!$AR$12,201,ROW()),\"\"),\"\")","v":""}]
[{"$f":"Table_PI[[#This Row],[Line No.]]","v":""},{"$f":"IF(Table_SummaryPI[[#This Row],[MeassureCategory]]<>\"\",CONCATENATE(Table_SummaryPI[[#This Row],[MeassureCategory]],  \" - \", Table_SummaryPI[[#This Row],[ProposedMeasureCategory]],  \" - \", TEXT(Table_SummaryPI[[#This Row],[Size]],\"#,##0.00\"),\" \",Table_SummaryPI[[#This Row],[SizeUnit]]),\"\")","v":""},{"$f":"SUBSTITUTE(Table_PI[[#This Row],[Measure]],\"     \",\"\",1)","v":""},{"$f":"IF(Table_PI[[#This Row],[List 1]]<>\"\",Table_PI[[#This Row],[List 1]],\"\")","v":""},{"$f":"IF(Table_PI[[#This Row],[List 2]]<>\"\",Table_PI[[#This Row],[List 2]],\"\")","v":""},{"$f":"IF(Table_PI[[#This Row],[List 3]]<>\"\",Table_PI[[#This Row],[List 3]],\"\")","v":""},{"$f":"IF(Table_PI[[#This Row],[Manufacturer]]=\"\",\"\",Table_PI[[#This Row],[Manufacturer]])","v":""},{"$f":"IF(Table_PI[[#This Row],[Model Number]]=\"\",\"\",Table_PI[[#This Row],[Model Number]])","v":""},{"$f":"IF(Table_PI[[#This Row],[Serial Number(s)]]=\"\",\"\",Table_PI[[#This Row],[Serial Number(s)]])","v":""},null,{"$f":"IF(Table_PI[[#This Row],[Size]]=\"\",\"\",Table_PI[[#This Row],[Size]])","v":""},null,{"$f":"IFERROR(IF(AND(MeasureCalc(Table_PI[[#This Row],[Hide:\nFormula Name]],Table_SummaryPI[[#This Row],[Quantity]],Table_PI[[#This Row],[List 1]],Table_PI[[#This Row],[List 2]],Table_PI[[#This Row],[List 3]],Table_PI[[#This Row],[Size]],Table_PI[[#This Row],[Input 1]],Table_PI[[#This Row],[Input 2]],Table_PI[[#This Row],[Input 3]],Table_PI[[#This Row],[Input 4]],'Customer Information'!$AR$12,100,ROW())<>0,MeasureCalc(Table_PI[[#This Row],[Hide:\nFormula Name]],Table_SummaryPI[[#This Row],[Quantity]],Table_PI[[#This Row],[List 1]],Table_PI[[#This Row],[List 2]],Table_PI[[#This Row],[List 3]],Table_PI[[#This Row],[Size]],Table_PI[[#This Row],[Input 1]],Table_PI[[#This Row],[Input 2]],Table_PI[[#This Row],[Input 3]],Table_PI[[#This Row],[Input 4]],'Customer Information'!$AR$12,100,ROW())<>\"No Rebate\"),MeasureCalc(Table_PI[[#This Row],[Hide:\nFormula Name]],Table_SummaryPI[[#This Row],[Quantity]],Table_PI[[#This Row],[List 1]],Table_PI[[#This Row],[List 2]],Table_PI[[#This Row],[List 3]],Table_PI[[#This Row],[Size]],Table_PI[[#This Row],[Input 1]],Table_PI[[#This Row],[Input 2]],Table_PI[[#This Row],[Input 3]],Table_PI[[#This Row],[Input 4]],'Customer Information'!$AR$12,100,ROW()),\"\"),\"\")","v":""},{"$f":"IF(Table_PI[[#This Row],[Input 1]]<>\"\",Table_PI[[#This Row],[Input 1]],\"\")","v":""},null,{"$f":"IFERROR(IF(AND(MeasureCalc(Table_PI[[#This Row],[Hide:\nFormula Name]],Table_SummaryPI[[#This Row],[Quantity]],Table_PI[[#This Row],[List 1]],Table_PI[[#This Row],[List 2]],Table_PI[[#This Row],[List 3]],Table_PI[[#This Row],[Size]],Table_PI[[#This Row],[Input 1]],Table_PI[[#This Row],[Input 2]],Table_PI[[#This Row],[Input 3]],Table_PI[[#This Row],[Input 4]],'Customer Information'!$AR$12,101,ROW())<>0,MeasureCalc(Table_PI[[#This Row],[Hide:\nFormula Name]],Table_SummaryPI[[#This Row],[Quantity]],Table_PI[[#This Row],[List 1]],Table_PI[[#This Row],[List 2]],Table_PI[[#This Row],[List 3]],Table_PI[[#This Row],[Size]],Table_PI[[#This Row],[Input 1]],Table_PI[[#This Row],[Input 2]],Table_PI[[#This Row],[Input 3]],Table_PI[[#This Row],[Input 4]],'Customer Information'!$AR$12,101,ROW())<>\"No Rebate\"),MeasureCalc(Table_PI[[#This Row],[Hide:\nFormula Name]],Table_SummaryPI[[#This Row],[Quantity]],Table_PI[[#This Row],[List 1]],Table_PI[[#This Row],[List 2]],Table_PI[[#This Row],[List 3]],Table_PI[[#This Row],[Size]],Table_PI[[#This Row],[Input 1]],Table_PI[[#This Row],[Input 2]],Table_PI[[#This Row],[Input 3]],Table_PI[[#This Row],[Input 4]],'Customer Information'!$AR$12,101,ROW()),\"\"),\"\")","v":""},{"$f":"IF(Table_PI[[#This Row],[Input 2]]<>\"\",Table_PI[[#This Row],[Input 2]],\"\")","v":""},null,{"$f":"IFERROR(IF(AND(MeasureCalc(Table_PI[[#This Row],[Hide:\nFormula Name]],Table_SummaryPI[[#This Row],[Quantity]],Table_PI[[#This Row],[List 1]],Table_PI[[#This Row],[List 2]],Table_PI[[#This Row],[List 3]],Table_PI[[#This Row],[Size]],Table_PI[[#This Row],[Input 1]],Table_PI[[#This Row],[Input 2]],Table_PI[[#This Row],[Input 3]],Table_PI[[#This Row],[Input 4]],'Customer Information'!$AR$12,102,ROW())<>0,MeasureCalc(Table_PI[[#This Row],[Hide:\nFormula Name]],Table_SummaryPI[[#This Row],[Quantity]],Table_PI[[#This Row],[List 1]],Table_PI[[#This Row],[List 2]],Table_PI[[#This Row],[List 3]],Table_PI[[#This Row],[Size]],Table_PI[[#This Row],[Input 1]],Table_PI[[#This Row],[Input 2]],Table_PI[[#This Row],[Input 3]],Table_PI[[#This Row],[Input 4]],'Customer Information'!$AR$12,102,ROW())<>\"No Rebate\"),MeasureCalc(Table_PI[[#This Row],[Hide:\nFormula Name]],Table_SummaryPI[[#This Row],[Quantity]],Table_PI[[#This Row],[List 1]],Table_PI[[#This Row],[List 2]],Table_PI[[#This Row],[List 3]],Table_PI[[#This Row],[Size]],Table_PI[[#This Row],[Input 1]],Table_PI[[#This Row],[Input 2]],Table_PI[[#This Row],[Input 3]],Table_PI[[#This Row],[Input 4]],'Customer Information'!$AR$12,102,ROW()),\"\"),\"\")","v":""},{"$f":"IF(Table_PI[[#This Row],[Input 3]]<>\"\",Table_PI[[#This Row],[Input 3]],\"\")","v":""},null,{"$f":"IFERROR(IF(AND(MeasureCalc(Table_PI[[#This Row],[Hide:\nFormula Name]],Table_SummaryPI[[#This Row],[Quantity]],Table_PI[[#This Row],[List 1]],Table_PI[[#This Row],[List 2]],Table_PI[[#This Row],[List 3]],Table_PI[[#This Row],[Size]],Table_PI[[#This Row],[Input 1]],Table_PI[[#This Row],[Input 2]],Table_PI[[#This Row],[Input 3]],Table_PI[[#This Row],[Input 4]],'Customer Information'!$AR$12,103,ROW())<>0,MeasureCalc(Table_PI[[#This Row],[Hide:\nFormula Name]],Table_SummaryPI[[#This Row],[Quantity]],Table_PI[[#This Row],[List 1]],Table_PI[[#This Row],[List 2]],Table_PI[[#This Row],[List 3]],Table_PI[[#This Row],[Size]],Table_PI[[#This Row],[Input 1]],Table_PI[[#This Row],[Input 2]],Table_PI[[#This Row],[Input 3]],Table_PI[[#This Row],[Input 4]],'Customer Information'!$AR$12,103,ROW())<>\"No Rebate\"),MeasureCalc(Table_PI[[#This Row],[Hide:\nFormula Name]],Table_SummaryPI[[#This Row],[Quantity]],Table_PI[[#This Row],[List 1]],Table_PI[[#This Row],[List 2]],Table_PI[[#This Row],[List 3]],Table_PI[[#This Row],[Size]],Table_PI[[#This Row],[Input 1]],Table_PI[[#This Row],[Input 2]],Table_PI[[#This Row],[Input 3]],Table_PI[[#This Row],[Input 4]],'Customer Information'!$AR$12,103,ROW()),\"\"),\"\")","v":""},{"$f":"IF(Table_PI[[#This Row],[Input 4]]<>\"\",Table_PI[[#This Row],[Input 4]],\"\")","v":""},{"$f":"IF(Table_PI[[#This Row],[Quantity]]=\"\",\"\",Table_PI[[#This Row],[Quantity]])","v":""},{"$f":"IF(Table_PI[[#This Row],[Notes]]=\"\",\"\",Table_PI[[#This Row],[Notes]])","v":""},{"$f":"IF(OR(Table_PI[[#This Row],[Hide:\nBaseline kWh]]=\"\",Table_PI[[#This Row],[Hide:\nBaseline kWh]]=0),\"\",Table_PI[[#This Row],[Hide:\nBaseline kWh]])","v":""},{"$f":"IF(OR(Table_PI[[#This Row],[Hide:\nBaseline kW]]=\"\",Table_PI[[#This Row],[Hide:\nBaseline kW]]=0),\"\",Table_PI[[#This Row],[Hide:\nBaseline kW]])","v":""},{"$f":"IF(OR(Table_PI[[#This Row],[Hide:\nProposed kWh]]=\"\",Table_PI[[#This Row],[Hide:\nProposed kWh]]=0),\"\",Table_PI[[#This Row],[Hide:\nProposed kWh]])","v":""},{"$f":"IF(OR(Table_PI[[#This Row],[Hide:\nProposed kW]]=\"\",Table_PI[[#This Row],[Hide:\nProposed kW]]=0),\"\",Table_PI[[#This Row],[Hide:\nProposed kW]])","v":""},{"$f":"IF(OR(Table_PI[[#This Row],[Rebate]]=\"\",Table_PI[[#This Row],[Rebate]]=0),\"\",Table_PI[[#This Row],[Rebate]])","v":""},{"$f":"IF(OR(Table_PI[[#This Row],[Hide:\nIncremental Cost]]=\"\",Table_PI[[#This Row],[Hide:\nIncremental Cost]]=0),\"\",Table_PI[[#This Row],[Hide:\nIncremental Cost]])","v":""},{"$f":"IFERROR(IF(Table_SummaryPI[[#This Row],[kWhSavings]]=\"\",\"\",ROUND(Table_SummaryPI[[#This Row],[kWhSavings]]/$AG$401*'Customer Information'!$BC$17,2)),0)","v":""},{"$f":"IF(OR(Table_PI[[#This Row],[Annual kWh]]=\"\",Table_PI[[#This Row],[Annual kWh]]=0),\"\",Table_PI[[#This Row],[Annual kWh]])","v":""},{"$f":"IF(OR(Table_PI[[#This Row],[Peak kW]]=\"\",Table_PI[[#This Row],[Peak kW]]=0),\"\",Table_PI[[#This Row],[Peak kW]])","v":""},{"$f":"IFERROR(IF(Table_SummaryPI[[#This Row],[kWhSavings]]=\"\",\"\",$AU$9*Table_SummaryPI[[#This Row],[kWhSavings]]),0)","v":""},{"$f":"IFERROR(IF(Table_SummaryPI[[#This Row],[kWhSavings]]=\"\",\"\",$AU$14*Table_SummaryPI[[#This Row],[kWhSavings]]),0)","v":""},{"$f":"IFERROR(IF(Table_SummaryPI[[#This Row],[kWhSavings]]=\"\",\"\",$AU$18*Table_SummaryPI[[#This Row],[kWhSavings]]),0)","v":""},{"$f":"IFERROR(IF(Table_SummaryPI[[#This Row],[kWhSavings]]=\"\",\"\",$AU$22*Table_SummaryPI[[#This Row],[kWhSavings]]),0)","v":""},{"$f":"IFERROR(IF(MeasureCalc(Table_PI[[#This Row],[Hide:\nFormula Name]],Table_SummaryPI[[#This Row],[Quantity]],Table_PI[[#This Row],[List 1]],Table_PI[[#This Row],[List 2]],Table_PI[[#This Row],[List 3]],Table_PI[[#This Row],[Size]],Table_PI[[#This Row],[Input 1]],Table_PI[[#This Row],[Input 2]],Table_PI[[#This Row],[Input 3]],Table_PI[[#This Row],[Input 4]],'Customer Information'!$AR$12,200,ROW())<>\"No Rebate\",MeasureCalc(Table_PI[[#This Row],[Hide:\nFormula Name]],Table_SummaryPI[[#This Row],[Quantity]],Table_PI[[#This Row],[List 1]],Table_PI[[#This Row],[List 2]],Table_PI[[#This Row],[List 3]],Table_PI[[#This Row],[Size]],Table_PI[[#This Row],[Input 1]],Table_PI[[#This Row],[Input 2]],Table_PI[[#This Row],[Input 3]],Table_PI[[#This Row],[Input 4]],'Customer Information'!$AR$12,200,ROW()),\"\"),\"\")","v":""},{"$f":"IFERROR(IF(MeasureCalc(Table_PI[[#This Row],[Hide:\nFormula Name]],Table_SummaryPI[[#This Row],[Quantity]],Table_PI[[#This Row],[List 1]],Table_PI[[#This Row],[List 2]],Table_PI[[#This Row],[List 3]],Table_PI[[#This Row],[Size]],Table_PI[[#This Row],[Input 1]],Table_PI[[#This Row],[Input 2]],Table_PI[[#This Row],[Input 3]],Table_PI[[#This Row],[Input 4]],'Customer Information'!$AR$12,201,ROW())<>\"No Rebate\",MeasureCalc(Table_PI[[#This Row],[Hide:\nFormula Name]],Table_SummaryPI[[#This Row],[Quantity]],Table_PI[[#This Row],[List 1]],Table_PI[[#This Row],[List 2]],Table_PI[[#This Row],[List 3]],Table_PI[[#This Row],[Size]],Table_PI[[#This Row],[Input 1]],Table_PI[[#This Row],[Input 2]],Table_PI[[#This Row],[Input 3]],Table_PI[[#This Row],[Input 4]],'Customer Information'!$AR$12,201,ROW()),\"\"),\"\")","v":""}]
[{"$f":"Table_PI[[#This Row],[Line No.]]","v":""},{"$f":"IF(Table_SummaryPI[[#This Row],[MeassureCategory]]<>\"\",CONCATENATE(Table_SummaryPI[[#This Row],[MeassureCategory]],  \" - \", Table_SummaryPI[[#This Row],[ProposedMeasureCategory]],  \" - \", TEXT(Table_SummaryPI[[#This Row],[Size]],\"#,##0.00\"),\" \",Table_SummaryPI[[#This Row],[SizeUnit]]),\"\")","v":""},{"$f":"SUBSTITUTE(Table_PI[[#This Row],[Measure]],\"     \",\"\",1)","v":""},{"$f":"IF(Table_PI[[#This Row],[List 1]]<>\"\",Table_PI[[#This Row],[List 1]],\"\")","v":""},{"$f":"IF(Table_PI[[#This Row],[List 2]]<>\"\",Table_PI[[#This Row],[List 2]],\"\")","v":""},{"$f":"IF(Table_PI[[#This Row],[List 3]]<>\"\",Table_PI[[#This Row],[List 3]],\"\")","v":""},{"$f":"IF(Table_PI[[#This Row],[Manufacturer]]=\"\",\"\",Table_PI[[#This Row],[Manufacturer]])","v":""},{"$f":"IF(Table_PI[[#This Row],[Model Number]]=\"\",\"\",Table_PI[[#This Row],[Model Number]])","v":""},{"$f":"IF(Table_PI[[#This Row],[Serial Number(s)]]=\"\",\"\",Table_PI[[#This Row],[Serial Number(s)]])","v":""},null,{"$f":"IF(Table_PI[[#This Row],[Size]]=\"\",\"\",Table_PI[[#This Row],[Size]])","v":""},null,{"$f":"IFERROR(IF(AND(MeasureCalc(Table_PI[[#This Row],[Hide:\nFormula Name]],Table_SummaryPI[[#This Row],[Quantity]],Table_PI[[#This Row],[List 1]],Table_PI[[#This Row],[List 2]],Table_PI[[#This Row],[List 3]],Table_PI[[#This Row],[Size]],Table_PI[[#This Row],[Input 1]],Table_PI[[#This Row],[Input 2]],Table_PI[[#This Row],[Input 3]],Table_PI[[#This Row],[Input 4]],'Customer Information'!$AR$12,100,ROW())<>0,MeasureCalc(Table_PI[[#This Row],[Hide:\nFormula Name]],Table_SummaryPI[[#This Row],[Quantity]],Table_PI[[#This Row],[List 1]],Table_PI[[#This Row],[List 2]],Table_PI[[#This Row],[List 3]],Table_PI[[#This Row],[Size]],Table_PI[[#This Row],[Input 1]],Table_PI[[#This Row],[Input 2]],Table_PI[[#This Row],[Input 3]],Table_PI[[#This Row],[Input 4]],'Customer Information'!$AR$12,100,ROW())<>\"No Rebate\"),MeasureCalc(Table_PI[[#This Row],[Hide:\nFormula Name]],Table_SummaryPI[[#This Row],[Quantity]],Table_PI[[#This Row],[List 1]],Table_PI[[#This Row],[List 2]],Table_PI[[#This Row],[List 3]],Table_PI[[#This Row],[Size]],Table_PI[[#This Row],[Input 1]],Table_PI[[#This Row],[Input 2]],Table_PI[[#This Row],[Input 3]],Table_PI[[#This Row],[Input 4]],'Customer Information'!$AR$12,100,ROW()),\"\"),\"\")","v":""},{"$f":"IF(Table_PI[[#This Row],[Input 1]]<>\"\",Table_PI[[#This Row],[Input 1]],\"\")","v":""},null,{"$f":"IFERROR(IF(AND(MeasureCalc(Table_PI[[#This Row],[Hide:\nFormula Name]],Table_SummaryPI[[#This Row],[Quantity]],Table_PI[[#This Row],[List 1]],Table_PI[[#This Row],[List 2]],Table_PI[[#This Row],[List 3]],Table_PI[[#This Row],[Size]],Table_PI[[#This Row],[Input 1]],Table_PI[[#This Row],[Input 2]],Table_PI[[#This Row],[Input 3]],Table_PI[[#This Row],[Input 4]],'Customer Information'!$AR$12,101,ROW())<>0,MeasureCalc(Table_PI[[#This Row],[Hide:\nFormula Name]],Table_SummaryPI[[#This Row],[Quantity]],Table_PI[[#This Row],[List 1]],Table_PI[[#This Row],[List 2]],Table_PI[[#This Row],[List 3]],Table_PI[[#This Row],[Size]],Table_PI[[#This Row],[Input 1]],Table_PI[[#This Row],[Input 2]],Table_PI[[#This Row],[Input 3]],Table_PI[[#This Row],[Input 4]],'Customer Information'!$AR$12,101,ROW())<>\"No Rebate\"),MeasureCalc(Table_PI[[#This Row],[Hide:\nFormula Name]],Table_SummaryPI[[#This Row],[Quantity]],Table_PI[[#This Row],[List 1]],Table_PI[[#This Row],[List 2]],Table_PI[[#This Row],[List 3]],Table_PI[[#This Row],[Size]],Table_PI[[#This Row],[Input 1]],Table_PI[[#This Row],[Input 2]],Table_PI[[#This Row],[Input 3]],Table_PI[[#This Row],[Input 4]],'Customer Information'!$AR$12,101,ROW()),\"\"),\"\")","v":""},{"$f":"IF(Table_PI[[#This Row],[Input 2]]<>\"\",Table_PI[[#This Row],[Input 2]],\"\")","v":""},null,{"$f":"IFERROR(IF(AND(MeasureCalc(Table_PI[[#This Row],[Hide:\nFormula Name]],Table_SummaryPI[[#This Row],[Quantity]],Table_PI[[#This Row],[List 1]],Table_PI[[#This Row],[List 2]],Table_PI[[#This Row],[List 3]],Table_PI[[#This Row],[Size]],Table_PI[[#This Row],[Input 1]],Table_PI[[#This Row],[Input 2]],Table_PI[[#This Row],[Input 3]],Table_PI[[#This Row],[Input 4]],'Customer Information'!$AR$12,102,ROW())<>0,MeasureCalc(Table_PI[[#This Row],[Hide:\nFormula Name]],Table_SummaryPI[[#This Row],[Quantity]],Table_PI[[#This Row],[List 1]],Table_PI[[#This Row],[List 2]],Table_PI[[#This Row],[List 3]],Table_PI[[#This Row],[Size]],Table_PI[[#This Row],[Input 1]],Table_PI[[#This Row],[Input 2]],Table_PI[[#This Row],[Input 3]],Table_PI[[#This Row],[Input 4]],'Customer Information'!$AR$12,102,ROW())<>\"No Rebate\"),MeasureCalc(Table_PI[[#This Row],[Hide:\nFormula Name]],Table_SummaryPI[[#This Row],[Quantity]],Table_PI[[#This Row],[List 1]],Table_PI[[#This Row],[List 2]],Table_PI[[#This Row],[List 3]],Table_PI[[#This Row],[Size]],Table_PI[[#This Row],[Input 1]],Table_PI[[#This Row],[Input 2]],Table_PI[[#This Row],[Input 3]],Table_PI[[#This Row],[Input 4]],'Customer Information'!$AR$12,102,ROW()),\"\"),\"\")","v":""},{"$f":"IF(Table_PI[[#This Row],[Input 3]]<>\"\",Table_PI[[#This Row],[Input 3]],\"\")","v":""},null,{"$f":"IFERROR(IF(AND(MeasureCalc(Table_PI[[#This Row],[Hide:\nFormula Name]],Table_SummaryPI[[#This Row],[Quantity]],Table_PI[[#This Row],[List 1]],Table_PI[[#This Row],[List 2]],Table_PI[[#This Row],[List 3]],Table_PI[[#This Row],[Size]],Table_PI[[#This Row],[Input 1]],Table_PI[[#This Row],[Input 2]],Table_PI[[#This Row],[Input 3]],Table_PI[[#This Row],[Input 4]],'Customer Information'!$AR$12,103,ROW())<>0,MeasureCalc(Table_PI[[#This Row],[Hide:\nFormula Name]],Table_SummaryPI[[#This Row],[Quantity]],Table_PI[[#This Row],[List 1]],Table_PI[[#This Row],[List 2]],Table_PI[[#This Row],[List 3]],Table_PI[[#This Row],[Size]],Table_PI[[#This Row],[Input 1]],Table_PI[[#This Row],[Input 2]],Table_PI[[#This Row],[Input 3]],Table_PI[[#This Row],[Input 4]],'Customer Information'!$AR$12,103,ROW())<>\"No Rebate\"),MeasureCalc(Table_PI[[#This Row],[Hide:\nFormula Name]],Table_SummaryPI[[#This Row],[Quantity]],Table_PI[[#This Row],[List 1]],Table_PI[[#This Row],[List 2]],Table_PI[[#This Row],[List 3]],Table_PI[[#This Row],[Size]],Table_PI[[#This Row],[Input 1]],Table_PI[[#This Row],[Input 2]],Table_PI[[#This Row],[Input 3]],Table_PI[[#This Row],[Input 4]],'Customer Information'!$AR$12,103,ROW()),\"\"),\"\")","v":""},{"$f":"IF(Table_PI[[#This Row],[Input 4]]<>\"\",Table_PI[[#This Row],[Input 4]],\"\")","v":""},{"$f":"IF(Table_PI[[#This Row],[Quantity]]=\"\",\"\",Table_PI[[#This Row],[Quantity]])","v":""},{"$f":"IF(Table_PI[[#This Row],[Notes]]=\"\",\"\",Table_PI[[#This Row],[Notes]])","v":""},{"$f":"IF(OR(Table_PI[[#This Row],[Hide:\nBaseline kWh]]=\"\",Table_PI[[#This Row],[Hide:\nBaseline kWh]]=0),\"\",Table_PI[[#This Row],[Hide:\nBaseline kWh]])","v":""},{"$f":"IF(OR(Table_PI[[#This Row],[Hide:\nBaseline kW]]=\"\",Table_PI[[#This Row],[Hide:\nBaseline kW]]=0),\"\",Table_PI[[#This Row],[Hide:\nBaseline kW]])","v":""},{"$f":"IF(OR(Table_PI[[#This Row],[Hide:\nProposed kWh]]=\"\",Table_PI[[#This Row],[Hide:\nProposed kWh]]=0),\"\",Table_PI[[#This Row],[Hide:\nProposed kWh]])","v":""},{"$f":"IF(OR(Table_PI[[#This Row],[Hide:\nProposed kW]]=\"\",Table_PI[[#This Row],[Hide:\nProposed kW]]=0),\"\",Table_PI[[#This Row],[Hide:\nProposed kW]])","v":""},{"$f":"IF(OR(Table_PI[[#This Row],[Rebate]]=\"\",Table_PI[[#This Row],[Rebate]]=0),\"\",Table_PI[[#This Row],[Rebate]])","v":""},{"$f":"IF(OR(Table_PI[[#This Row],[Hide:\nIncremental Cost]]=\"\",Table_PI[[#This Row],[Hide:\nIncremental Cost]]=0),\"\",Table_PI[[#This Row],[Hide:\nIncremental Cost]])","v":""},{"$f":"IFERROR(IF(Table_SummaryPI[[#This Row],[kWhSavings]]=\"\",\"\",ROUND(Table_SummaryPI[[#This Row],[kWhSavings]]/$AG$401*'Customer Information'!$BC$17,2)),0)","v":""},{"$f":"IF(OR(Table_PI[[#This Row],[Annual kWh]]=\"\",Table_PI[[#This Row],[Annual kWh]]=0),\"\",Table_PI[[#This Row],[Annual kWh]])","v":""},{"$f":"IF(OR(Table_PI[[#This Row],[Peak kW]]=\"\",Table_PI[[#This Row],[Peak kW]]=0),\"\",Table_PI[[#This Row],[Peak kW]])","v":""},{"$f":"IFERROR(IF(Table_SummaryPI[[#This Row],[kWhSavings]]=\"\",\"\",$AU$9*Table_SummaryPI[[#This Row],[kWhSavings]]),0)","v":""},{"$f":"IFERROR(IF(Table_SummaryPI[[#This Row],[kWhSavings]]=\"\",\"\",$AU$14*Table_SummaryPI[[#This Row],[kWhSavings]]),0)","v":""},{"$f":"IFERROR(IF(Table_SummaryPI[[#This Row],[kWhSavings]]=\"\",\"\",$AU$18*Table_SummaryPI[[#This Row],[kWhSavings]]),0)","v":""},{"$f":"IFERROR(IF(Table_SummaryPI[[#This Row],[kWhSavings]]=\"\",\"\",$AU$22*Table_SummaryPI[[#This Row],[kWhSavings]]),0)","v":""},{"$f":"IFERROR(IF(MeasureCalc(Table_PI[[#This Row],[Hide:\nFormula Name]],Table_SummaryPI[[#This Row],[Quantity]],Table_PI[[#This Row],[List 1]],Table_PI[[#This Row],[List 2]],Table_PI[[#This Row],[List 3]],Table_PI[[#This Row],[Size]],Table_PI[[#This Row],[Input 1]],Table_PI[[#This Row],[Input 2]],Table_PI[[#This Row],[Input 3]],Table_PI[[#This Row],[Input 4]],'Customer Information'!$AR$12,200,ROW())<>\"No Rebate\",MeasureCalc(Table_PI[[#This Row],[Hide:\nFormula Name]],Table_SummaryPI[[#This Row],[Quantity]],Table_PI[[#This Row],[List 1]],Table_PI[[#This Row],[List 2]],Table_PI[[#This Row],[List 3]],Table_PI[[#This Row],[Size]],Table_PI[[#This Row],[Input 1]],Table_PI[[#This Row],[Input 2]],Table_PI[[#This Row],[Input 3]],Table_PI[[#This Row],[Input 4]],'Customer Information'!$AR$12,200,ROW()),\"\"),\"\")","v":""},{"$f":"IFERROR(IF(MeasureCalc(Table_PI[[#This Row],[Hide:\nFormula Name]],Table_SummaryPI[[#This Row],[Quantity]],Table_PI[[#This Row],[List 1]],Table_PI[[#This Row],[List 2]],Table_PI[[#This Row],[List 3]],Table_PI[[#This Row],[Size]],Table_PI[[#This Row],[Input 1]],Table_PI[[#This Row],[Input 2]],Table_PI[[#This Row],[Input 3]],Table_PI[[#This Row],[Input 4]],'Customer Information'!$AR$12,201,ROW())<>\"No Rebate\",MeasureCalc(Table_PI[[#This Row],[Hide:\nFormula Name]],Table_SummaryPI[[#This Row],[Quantity]],Table_PI[[#This Row],[List 1]],Table_PI[[#This Row],[List 2]],Table_PI[[#This Row],[List 3]],Table_PI[[#This Row],[Size]],Table_PI[[#This Row],[Input 1]],Table_PI[[#This Row],[Input 2]],Table_PI[[#This Row],[Input 3]],Table_PI[[#This Row],[Input 4]],'Customer Information'!$AR$12,201,ROW()),\"\"),\"\")","v":""}]
[{"$f":"Table_PI[[#This Row],[Line No.]]","v":""},{"$f":"IF(Table_SummaryPI[[#This Row],[MeassureCategory]]<>\"\",CONCATENATE(Table_SummaryPI[[#This Row],[MeassureCategory]],  \" - \", Table_SummaryPI[[#This Row],[ProposedMeasureCategory]],  \" - \", TEXT(Table_SummaryPI[[#This Row],[Size]],\"#,##0.00\"),\" \",Table_SummaryPI[[#This Row],[SizeUnit]]),\"\")","v":""},{"$f":"SUBSTITUTE(Table_PI[[#This Row],[Measure]],\"     \",\"\",1)","v":""},{"$f":"IF(Table_PI[[#This Row],[List 1]]<>\"\",Table_PI[[#This Row],[List 1]],\"\")","v":""},{"$f":"IF(Table_PI[[#This Row],[List 2]]<>\"\",Table_PI[[#This Row],[List 2]],\"\")","v":""},{"$f":"IF(Table_PI[[#This Row],[List 3]]<>\"\",Table_PI[[#This Row],[List 3]],\"\")","v":""},{"$f":"IF(Table_PI[[#This Row],[Manufacturer]]=\"\",\"\",Table_PI[[#This Row],[Manufacturer]])","v":""},{"$f":"IF(Table_PI[[#This Row],[Model Number]]=\"\",\"\",Table_PI[[#This Row],[Model Number]])","v":""},{"$f":"IF(Table_PI[[#This Row],[Serial Number(s)]]=\"\",\"\",Table_PI[[#This Row],[Serial Number(s)]])","v":""},null,{"$f":"IF(Table_PI[[#This Row],[Size]]=\"\",\"\",Table_PI[[#This Row],[Size]])","v":""},null,{"$f":"IFERROR(IF(AND(MeasureCalc(Table_PI[[#This Row],[Hide:\nFormula Name]],Table_SummaryPI[[#This Row],[Quantity]],Table_PI[[#This Row],[List 1]],Table_PI[[#This Row],[List 2]],Table_PI[[#This Row],[List 3]],Table_PI[[#This Row],[Size]],Table_PI[[#This Row],[Input 1]],Table_PI[[#This Row],[Input 2]],Table_PI[[#This Row],[Input 3]],Table_PI[[#This Row],[Input 4]],'Customer Information'!$AR$12,100,ROW())<>0,MeasureCalc(Table_PI[[#This Row],[Hide:\nFormula Name]],Table_SummaryPI[[#This Row],[Quantity]],Table_PI[[#This Row],[List 1]],Table_PI[[#This Row],[List 2]],Table_PI[[#This Row],[List 3]],Table_PI[[#This Row],[Size]],Table_PI[[#This Row],[Input 1]],Table_PI[[#This Row],[Input 2]],Table_PI[[#This Row],[Input 3]],Table_PI[[#This Row],[Input 4]],'Customer Information'!$AR$12,100,ROW())<>\"No Rebate\"),MeasureCalc(Table_PI[[#This Row],[Hide:\nFormula Name]],Table_SummaryPI[[#This Row],[Quantity]],Table_PI[[#This Row],[List 1]],Table_PI[[#This Row],[List 2]],Table_PI[[#This Row],[List 3]],Table_PI[[#This Row],[Size]],Table_PI[[#This Row],[Input 1]],Table_PI[[#This Row],[Input 2]],Table_PI[[#This Row],[Input 3]],Table_PI[[#This Row],[Input 4]],'Customer Information'!$AR$12,100,ROW()),\"\"),\"\")","v":""},{"$f":"IF(Table_PI[[#This Row],[Input 1]]<>\"\",Table_PI[[#This Row],[Input 1]],\"\")","v":""},null,{"$f":"IFERROR(IF(AND(MeasureCalc(Table_PI[[#This Row],[Hide:\nFormula Name]],Table_SummaryPI[[#This Row],[Quantity]],Table_PI[[#This Row],[List 1]],Table_PI[[#This Row],[List 2]],Table_PI[[#This Row],[List 3]],Table_PI[[#This Row],[Size]],Table_PI[[#This Row],[Input 1]],Table_PI[[#This Row],[Input 2]],Table_PI[[#This Row],[Input 3]],Table_PI[[#This Row],[Input 4]],'Customer Information'!$AR$12,101,ROW())<>0,MeasureCalc(Table_PI[[#This Row],[Hide:\nFormula Name]],Table_SummaryPI[[#This Row],[Quantity]],Table_PI[[#This Row],[List 1]],Table_PI[[#This Row],[List 2]],Table_PI[[#This Row],[List 3]],Table_PI[[#This Row],[Size]],Table_PI[[#This Row],[Input 1]],Table_PI[[#This Row],[Input 2]],Table_PI[[#This Row],[Input 3]],Table_PI[[#This Row],[Input 4]],'Customer Information'!$AR$12,101,ROW())<>\"No Rebate\"),MeasureCalc(Table_PI[[#This Row],[Hide:\nFormula Name]],Table_SummaryPI[[#This Row],[Quantity]],Table_PI[[#This Row],[List 1]],Table_PI[[#This Row],[List 2]],Table_PI[[#This Row],[List 3]],Table_PI[[#This Row],[Size]],Table_PI[[#This Row],[Input 1]],Table_PI[[#This Row],[Input 2]],Table_PI[[#This Row],[Input 3]],Table_PI[[#This Row],[Input 4]],'Customer Information'!$AR$12,101,ROW()),\"\"),\"\")","v":""},{"$f":"IF(Table_PI[[#This Row],[Input 2]]<>\"\",Table_PI[[#This Row],[Input 2]],\"\")","v":""},null,{"$f":"IFERROR(IF(AND(MeasureCalc(Table_PI[[#This Row],[Hide:\nFormula Name]],Table_SummaryPI[[#This Row],[Quantity]],Table_PI[[#This Row],[List 1]],Table_PI[[#This Row],[List 2]],Table_PI[[#This Row],[List 3]],Table_PI[[#This Row],[Size]],Table_PI[[#This Row],[Input 1]],Table_PI[[#This Row],[Input 2]],Table_PI[[#This Row],[Input 3]],Table_PI[[#This Row],[Input 4]],'Customer Information'!$AR$12,102,ROW())<>0,MeasureCalc(Table_PI[[#This Row],[Hide:\nFormula Name]],Table_SummaryPI[[#This Row],[Quantity]],Table_PI[[#This Row],[List 1]],Table_PI[[#This Row],[List 2]],Table_PI[[#This Row],[List 3]],Table_PI[[#This Row],[Size]],Table_PI[[#This Row],[Input 1]],Table_PI[[#This Row],[Input 2]],Table_PI[[#This Row],[Input 3]],Table_PI[[#This Row],[Input 4]],'Customer Information'!$AR$12,102,ROW())<>\"No Rebate\"),MeasureCalc(Table_PI[[#This Row],[Hide:\nFormula Name]],Table_SummaryPI[[#This Row],[Quantity]],Table_PI[[#This Row],[List 1]],Table_PI[[#This Row],[List 2]],Table_PI[[#This Row],[List 3]],Table_PI[[#This Row],[Size]],Table_PI[[#This Row],[Input 1]],Table_PI[[#This Row],[Input 2]],Table_PI[[#This Row],[Input 3]],Table_PI[[#This Row],[Input 4]],'Customer Information'!$AR$12,102,ROW()),\"\"),\"\")","v":""},{"$f":"IF(Table_PI[[#This Row],[Input 3]]<>\"\",Table_PI[[#This Row],[Input 3]],\"\")","v":""},null,{"$f":"IFERROR(IF(AND(MeasureCalc(Table_PI[[#This Row],[Hide:\nFormula Name]],Table_SummaryPI[[#This Row],[Quantity]],Table_PI[[#This Row],[List 1]],Table_PI[[#This Row],[List 2]],Table_PI[[#This Row],[List 3]],Table_PI[[#This Row],[Size]],Table_PI[[#This Row],[Input 1]],Table_PI[[#This Row],[Input 2]],Table_PI[[#This Row],[Input 3]],Table_PI[[#This Row],[Input 4]],'Customer Information'!$AR$12,103,ROW())<>0,MeasureCalc(Table_PI[[#This Row],[Hide:\nFormula Name]],Table_SummaryPI[[#This Row],[Quantity]],Table_PI[[#This Row],[List 1]],Table_PI[[#This Row],[List 2]],Table_PI[[#This Row],[List 3]],Table_PI[[#This Row],[Size]],Table_PI[[#This Row],[Input 1]],Table_PI[[#This Row],[Input 2]],Table_PI[[#This Row],[Input 3]],Table_PI[[#This Row],[Input 4]],'Customer Information'!$AR$12,103,ROW())<>\"No Rebate\"),MeasureCalc(Table_PI[[#This Row],[Hide:\nFormula Name]],Table_SummaryPI[[#This Row],[Quantity]],Table_PI[[#This Row],[List 1]],Table_PI[[#This Row],[List 2]],Table_PI[[#This Row],[List 3]],Table_PI[[#This Row],[Size]],Table_PI[[#This Row],[Input 1]],Table_PI[[#This Row],[Input 2]],Table_PI[[#This Row],[Input 3]],Table_PI[[#This Row],[Input 4]],'Customer Information'!$AR$12,103,ROW()),\"\"),\"\")","v":""},{"$f":"IF(Table_PI[[#This Row],[Input 4]]<>\"\",Table_PI[[#This Row],[Input 4]],\"\")","v":""},{"$f":"IF(Table_PI[[#This Row],[Quantity]]=\"\",\"\",Table_PI[[#This Row],[Quantity]])","v":""},{"$f":"IF(Table_PI[[#This Row],[Notes]]=\"\",\"\",Table_PI[[#This Row],[Notes]])","v":""},{"$f":"IF(OR(Table_PI[[#This Row],[Hide:\nBaseline kWh]]=\"\",Table_PI[[#This Row],[Hide:\nBaseline kWh]]=0),\"\",Table_PI[[#This Row],[Hide:\nBaseline kWh]])","v":""},{"$f":"IF(OR(Table_PI[[#This Row],[Hide:\nBaseline kW]]=\"\",Table_PI[[#This Row],[Hide:\nBaseline kW]]=0),\"\",Table_PI[[#This Row],[Hide:\nBaseline kW]])","v":""},{"$f":"IF(OR(Table_PI[[#This Row],[Hide:\nProposed kWh]]=\"\",Table_PI[[#This Row],[Hide:\nProposed kWh]]=0),\"\",Table_PI[[#This Row],[Hide:\nProposed kWh]])","v":""},{"$f":"IF(OR(Table_PI[[#This Row],[Hide:\nProposed kW]]=\"\",Table_PI[[#This Row],[Hide:\nProposed kW]]=0),\"\",Table_PI[[#This Row],[Hide:\nProposed kW]])","v":""},{"$f":"IF(OR(Table_PI[[#This Row],[Rebate]]=\"\",Table_PI[[#This Row],[Rebate]]=0),\"\",Table_PI[[#This Row],[Rebate]])","v":""},{"$f":"IF(OR(Table_PI[[#This Row],[Hide:\nIncremental Cost]]=\"\",Table_PI[[#This Row],[Hide:\nIncremental Cost]]=0),\"\",Table_PI[[#This Row],[Hide:\nIncremental Cost]])","v":""},{"$f":"IFERROR(IF(Table_SummaryPI[[#This Row],[kWhSavings]]=\"\",\"\",ROUND(Table_SummaryPI[[#This Row],[kWhSavings]]/$AG$401*'Customer Information'!$BC$17,2)),0)","v":""},{"$f":"IF(OR(Table_PI[[#This Row],[Annual kWh]]=\"\",Table_PI[[#This Row],[Annual kWh]]=0),\"\",Table_PI[[#This Row],[Annual kWh]])","v":""},{"$f":"IF(OR(Table_PI[[#This Row],[Peak kW]]=\"\",Table_PI[[#This Row],[Peak kW]]=0),\"\",Table_PI[[#This Row],[Peak kW]])","v":""},{"$f":"IFERROR(IF(Table_SummaryPI[[#This Row],[kWhSavings]]=\"\",\"\",$AU$9*Table_SummaryPI[[#This Row],[kWhSavings]]),0)","v":""},{"$f":"IFERROR(IF(Table_SummaryPI[[#This Row],[kWhSavings]]=\"\",\"\",$AU$14*Table_SummaryPI[[#This Row],[kWhSavings]]),0)","v":""},{"$f":"IFERROR(IF(Table_SummaryPI[[#This Row],[kWhSavings]]=\"\",\"\",$AU$18*Table_SummaryPI[[#This Row],[kWhSavings]]),0)","v":""},{"$f":"IFERROR(IF(Table_SummaryPI[[#This Row],[kWhSavings]]=\"\",\"\",$AU$22*Table_SummaryPI[[#This Row],[kWhSavings]]),0)","v":""},{"$f":"IFERROR(IF(MeasureCalc(Table_PI[[#This Row],[Hide:\nFormula Name]],Table_SummaryPI[[#This Row],[Quantity]],Table_PI[[#This Row],[List 1]],Table_PI[[#This Row],[List 2]],Table_PI[[#This Row],[List 3]],Table_PI[[#This Row],[Size]],Table_PI[[#This Row],[Input 1]],Table_PI[[#This Row],[Input 2]],Table_PI[[#This Row],[Input 3]],Table_PI[[#This Row],[Input 4]],'Customer Information'!$AR$12,200,ROW())<>\"No Rebate\",MeasureCalc(Table_PI[[#This Row],[Hide:\nFormula Name]],Table_SummaryPI[[#This Row],[Quantity]],Table_PI[[#This Row],[List 1]],Table_PI[[#This Row],[List 2]],Table_PI[[#This Row],[List 3]],Table_PI[[#This Row],[Size]],Table_PI[[#This Row],[Input 1]],Table_PI[[#This Row],[Input 2]],Table_PI[[#This Row],[Input 3]],Table_PI[[#This Row],[Input 4]],'Customer Information'!$AR$12,200,ROW()),\"\"),\"\")","v":""},{"$f":"IFERROR(IF(MeasureCalc(Table_PI[[#This Row],[Hide:\nFormula Name]],Table_SummaryPI[[#This Row],[Quantity]],Table_PI[[#This Row],[List 1]],Table_PI[[#This Row],[List 2]],Table_PI[[#This Row],[List 3]],Table_PI[[#This Row],[Size]],Table_PI[[#This Row],[Input 1]],Table_PI[[#This Row],[Input 2]],Table_PI[[#This Row],[Input 3]],Table_PI[[#This Row],[Input 4]],'Customer Information'!$AR$12,201,ROW())<>\"No Rebate\",MeasureCalc(Table_PI[[#This Row],[Hide:\nFormula Name]],Table_SummaryPI[[#This Row],[Quantity]],Table_PI[[#This Row],[List 1]],Table_PI[[#This Row],[List 2]],Table_PI[[#This Row],[List 3]],Table_PI[[#This Row],[Size]],Table_PI[[#This Row],[Input 1]],Table_PI[[#This Row],[Input 2]],Table_PI[[#This Row],[Input 3]],Table_PI[[#This Row],[Input 4]],'Customer Information'!$AR$12,201,ROW()),\"\"),\"\")","v":""}]
[{"$f":"Table_PI[[#This Row],[Line No.]]","v":""},{"$f":"IF(Table_SummaryPI[[#This Row],[MeassureCategory]]<>\"\",CONCATENATE(Table_SummaryPI[[#This Row],[MeassureCategory]],  \" - \", Table_SummaryPI[[#This Row],[ProposedMeasureCategory]],  \" - \", TEXT(Table_SummaryPI[[#This Row],[Size]],\"#,##0.00\"),\" \",Table_SummaryPI[[#This Row],[SizeUnit]]),\"\")","v":""},{"$f":"SUBSTITUTE(Table_PI[[#This Row],[Measure]],\"     \",\"\",1)","v":""},{"$f":"IF(Table_PI[[#This Row],[List 1]]<>\"\",Table_PI[[#This Row],[List 1]],\"\")","v":""},{"$f":"IF(Table_PI[[#This Row],[List 2]]<>\"\",Table_PI[[#This Row],[List 2]],\"\")","v":""},{"$f":"IF(Table_PI[[#This Row],[List 3]]<>\"\",Table_PI[[#This Row],[List 3]],\"\")","v":""},{"$f":"IF(Table_PI[[#This Row],[Manufacturer]]=\"\",\"\",Table_PI[[#This Row],[Manufacturer]])","v":""},{"$f":"IF(Table_PI[[#This Row],[Model Number]]=\"\",\"\",Table_PI[[#This Row],[Model Number]])","v":""},{"$f":"IF(Table_PI[[#This Row],[Serial Number(s)]]=\"\",\"\",Table_PI[[#This Row],[Serial Number(s)]])","v":""},null,{"$f":"IF(Table_PI[[#This Row],[Size]]=\"\",\"\",Table_PI[[#This Row],[Size]])","v":""},null,{"$f":"IFERROR(IF(AND(MeasureCalc(Table_PI[[#This Row],[Hide:\nFormula Name]],Table_SummaryPI[[#This Row],[Quantity]],Table_PI[[#This Row],[List 1]],Table_PI[[#This Row],[List 2]],Table_PI[[#This Row],[List 3]],Table_PI[[#This Row],[Size]],Table_PI[[#This Row],[Input 1]],Table_PI[[#This Row],[Input 2]],Table_PI[[#This Row],[Input 3]],Table_PI[[#This Row],[Input 4]],'Customer Information'!$AR$12,100,ROW())<>0,MeasureCalc(Table_PI[[#This Row],[Hide:\nFormula Name]],Table_SummaryPI[[#This Row],[Quantity]],Table_PI[[#This Row],[List 1]],Table_PI[[#This Row],[List 2]],Table_PI[[#This Row],[List 3]],Table_PI[[#This Row],[Size]],Table_PI[[#This Row],[Input 1]],Table_PI[[#This Row],[Input 2]],Table_PI[[#This Row],[Input 3]],Table_PI[[#This Row],[Input 4]],'Customer Information'!$AR$12,100,ROW())<>\"No Rebate\"),MeasureCalc(Table_PI[[#This Row],[Hide:\nFormula Name]],Table_SummaryPI[[#This Row],[Quantity]],Table_PI[[#This Row],[List 1]],Table_PI[[#This Row],[List 2]],Table_PI[[#This Row],[List 3]],Table_PI[[#This Row],[Size]],Table_PI[[#This Row],[Input 1]],Table_PI[[#This Row],[Input 2]],Table_PI[[#This Row],[Input 3]],Table_PI[[#This Row],[Input 4]],'Customer Information'!$AR$12,100,ROW()),\"\"),\"\")","v":""},{"$f":"IF(Table_PI[[#This Row],[Input 1]]<>\"\",Table_PI[[#This Row],[Input 1]],\"\")","v":""},null,{"$f":"IFERROR(IF(AND(MeasureCalc(Table_PI[[#This Row],[Hide:\nFormula Name]],Table_SummaryPI[[#This Row],[Quantity]],Table_PI[[#This Row],[List 1]],Table_PI[[#This Row],[List 2]],Table_PI[[#This Row],[List 3]],Table_PI[[#This Row],[Size]],Table_PI[[#This Row],[Input 1]],Table_PI[[#This Row],[Input 2]],Table_PI[[#This Row],[Input 3]],Table_PI[[#This Row],[Input 4]],'Customer Information'!$AR$12,101,ROW())<>0,MeasureCalc(Table_PI[[#This Row],[Hide:\nFormula Name]],Table_SummaryPI[[#This Row],[Quantity]],Table_PI[[#This Row],[List 1]],Table_PI[[#This Row],[List 2]],Table_PI[[#This Row],[List 3]],Table_PI[[#This Row],[Size]],Table_PI[[#This Row],[Input 1]],Table_PI[[#This Row],[Input 2]],Table_PI[[#This Row],[Input 3]],Table_PI[[#This Row],[Input 4]],'Customer Information'!$AR$12,101,ROW())<>\"No Rebate\"),MeasureCalc(Table_PI[[#This Row],[Hide:\nFormula Name]],Table_SummaryPI[[#This Row],[Quantity]],Table_PI[[#This Row],[List 1]],Table_PI[[#This Row],[List 2]],Table_PI[[#This Row],[List 3]],Table_PI[[#This Row],[Size]],Table_PI[[#This Row],[Input 1]],Table_PI[[#This Row],[Input 2]],Table_PI[[#This Row],[Input 3]],Table_PI[[#This Row],[Input 4]],'Customer Information'!$AR$12,101,ROW()),\"\"),\"\")","v":""},{"$f":"IF(Table_PI[[#This Row],[Input 2]]<>\"\",Table_PI[[#This Row],[Input 2]],\"\")","v":""},null,{"$f":"IFERROR(IF(AND(MeasureCalc(Table_PI[[#This Row],[Hide:\nFormula Name]],Table_SummaryPI[[#This Row],[Quantity]],Table_PI[[#This Row],[List 1]],Table_PI[[#This Row],[List 2]],Table_PI[[#This Row],[List 3]],Table_PI[[#This Row],[Size]],Table_PI[[#This Row],[Input 1]],Table_PI[[#This Row],[Input 2]],Table_PI[[#This Row],[Input 3]],Table_PI[[#This Row],[Input 4]],'Customer Information'!$AR$12,102,ROW())<>0,MeasureCalc(Table_PI[[#This Row],[Hide:\nFormula Name]],Table_SummaryPI[[#This Row],[Quantity]],Table_PI[[#This Row],[List 1]],Table_PI[[#This Row],[List 2]],Table_PI[[#This Row],[List 3]],Table_PI[[#This Row],[Size]],Table_PI[[#This Row],[Input 1]],Table_PI[[#This Row],[Input 2]],Table_PI[[#This Row],[Input 3]],Table_PI[[#This Row],[Input 4]],'Customer Information'!$AR$12,102,ROW())<>\"No Rebate\"),MeasureCalc(Table_PI[[#This Row],[Hide:\nFormula Name]],Table_SummaryPI[[#This Row],[Quantity]],Table_PI[[#This Row],[List 1]],Table_PI[[#This Row],[List 2]],Table_PI[[#This Row],[List 3]],Table_PI[[#This Row],[Size]],Table_PI[[#This Row],[Input 1]],Table_PI[[#This Row],[Input 2]],Table_PI[[#This Row],[Input 3]],Table_PI[[#This Row],[Input 4]],'Customer Information'!$AR$12,102,ROW()),\"\"),\"\")","v":""},{"$f":"IF(Table_PI[[#This Row],[Input 3]]<>\"\",Table_PI[[#This Row],[Input 3]],\"\")","v":""},null,{"$f":"IFERROR(IF(AND(MeasureCalc(Table_PI[[#This Row],[Hide:\nFormula Name]],Table_SummaryPI[[#This Row],[Quantity]],Table_PI[[#This Row],[List 1]],Table_PI[[#This Row],[List 2]],Table_PI[[#This Row],[List 3]],Table_PI[[#This Row],[Size]],Table_PI[[#This Row],[Input 1]],Table_PI[[#This Row],[Input 2]],Table_PI[[#This Row],[Input 3]],Table_PI[[#This Row],[Input 4]],'Customer Information'!$AR$12,103,ROW())<>0,MeasureCalc(Table_PI[[#This Row],[Hide:\nFormula Name]],Table_SummaryPI[[#This Row],[Quantity]],Table_PI[[#This Row],[List 1]],Table_PI[[#This Row],[List 2]],Table_PI[[#This Row],[List 3]],Table_PI[[#This Row],[Size]],Table_PI[[#This Row],[Input 1]],Table_PI[[#This Row],[Input 2]],Table_PI[[#This Row],[Input 3]],Table_PI[[#This Row],[Input 4]],'Customer Information'!$AR$12,103,ROW())<>\"No Rebate\"),MeasureCalc(Table_PI[[#This Row],[Hide:\nFormula Name]],Table_SummaryPI[[#This Row],[Quantity]],Table_PI[[#This Row],[List 1]],Table_PI[[#This Row],[List 2]],Table_PI[[#This Row],[List 3]],Table_PI[[#This Row],[Size]],Table_PI[[#This Row],[Input 1]],Table_PI[[#This Row],[Input 2]],Table_PI[[#This Row],[Input 3]],Table_PI[[#This Row],[Input 4]],'Customer Information'!$AR$12,103,ROW()),\"\"),\"\")","v":""},{"$f":"IF(Table_PI[[#This Row],[Input 4]]<>\"\",Table_PI[[#This Row],[Input 4]],\"\")","v":""},{"$f":"IF(Table_PI[[#This Row],[Quantity]]=\"\",\"\",Table_PI[[#This Row],[Quantity]])","v":""},{"$f":"IF(Table_PI[[#This Row],[Notes]]=\"\",\"\",Table_PI[[#This Row],[Notes]])","v":""},{"$f":"IF(OR(Table_PI[[#This Row],[Hide:\nBaseline kWh]]=\"\",Table_PI[[#This Row],[Hide:\nBaseline kWh]]=0),\"\",Table_PI[[#This Row],[Hide:\nBaseline kWh]])","v":""},{"$f":"IF(OR(Table_PI[[#This Row],[Hide:\nBaseline kW]]=\"\",Table_PI[[#This Row],[Hide:\nBaseline kW]]=0),\"\",Table_PI[[#This Row],[Hide:\nBaseline kW]])","v":""},{"$f":"IF(OR(Table_PI[[#This Row],[Hide:\nProposed kWh]]=\"\",Table_PI[[#This Row],[Hide:\nProposed kWh]]=0),\"\",Table_PI[[#This Row],[Hide:\nProposed kWh]])","v":""},{"$f":"IF(OR(Table_PI[[#This Row],[Hide:\nProposed kW]]=\"\",Table_PI[[#This Row],[Hide:\nProposed kW]]=0),\"\",Table_PI[[#This Row],[Hide:\nProposed kW]])","v":""},{"$f":"IF(OR(Table_PI[[#This Row],[Rebate]]=\"\",Table_PI[[#This Row],[Rebate]]=0),\"\",Table_PI[[#This Row],[Rebate]])","v":""},{"$f":"IF(OR(Table_PI[[#This Row],[Hide:\nIncremental Cost]]=\"\",Table_PI[[#This Row],[Hide:\nIncremental Cost]]=0),\"\",Table_PI[[#This Row],[Hide:\nIncremental Cost]])","v":""},{"$f":"IFERROR(IF(Table_SummaryPI[[#This Row],[kWhSavings]]=\"\",\"\",ROUND(Table_SummaryPI[[#This Row],[kWhSavings]]/$AG$401*'Customer Information'!$BC$17,2)),0)","v":""},{"$f":"IF(OR(Table_PI[[#This Row],[Annual kWh]]=\"\",Table_PI[[#This Row],[Annual kWh]]=0),\"\",Table_PI[[#This Row],[Annual kWh]])","v":""},{"$f":"IF(OR(Table_PI[[#This Row],[Peak kW]]=\"\",Table_PI[[#This Row],[Peak kW]]=0),\"\",Table_PI[[#This Row],[Peak kW]])","v":""},{"$f":"IFERROR(IF(Table_SummaryPI[[#This Row],[kWhSavings]]=\"\",\"\",$AU$9*Table_SummaryPI[[#This Row],[kWhSavings]]),0)","v":""},{"$f":"IFERROR(IF(Table_SummaryPI[[#This Row],[kWhSavings]]=\"\",\"\",$AU$14*Table_SummaryPI[[#This Row],[kWhSavings]]),0)","v":""},{"$f":"IFERROR(IF(Table_SummaryPI[[#This Row],[kWhSavings]]=\"\",\"\",$AU$18*Table_SummaryPI[[#This Row],[kWhSavings]]),0)","v":""},{"$f":"IFERROR(IF(Table_SummaryPI[[#This Row],[kWhSavings]]=\"\",\"\",$AU$22*Table_SummaryPI[[#This Row],[kWhSavings]]),0)","v":""},{"$f":"IFERROR(IF(MeasureCalc(Table_PI[[#This Row],[Hide:\nFormula Name]],Table_SummaryPI[[#This Row],[Quantity]],Table_PI[[#This Row],[List 1]],Table_PI[[#This Row],[List 2]],Table_PI[[#This Row],[List 3]],Table_PI[[#This Row],[Size]],Table_PI[[#This Row],[Input 1]],Table_PI[[#This Row],[Input 2]],Table_PI[[#This Row],[Input 3]],Table_PI[[#This Row],[Input 4]],'Customer Information'!$AR$12,200,ROW())<>\"No Rebate\",MeasureCalc(Table_PI[[#This Row],[Hide:\nFormula Name]],Table_SummaryPI[[#This Row],[Quantity]],Table_PI[[#This Row],[List 1]],Table_PI[[#This Row],[List 2]],Table_PI[[#This Row],[List 3]],Table_PI[[#This Row],[Size]],Table_PI[[#This Row],[Input 1]],Table_PI[[#This Row],[Input 2]],Table_PI[[#This Row],[Input 3]],Table_PI[[#This Row],[Input 4]],'Customer Information'!$AR$12,200,ROW()),\"\"),\"\")","v":""},{"$f":"IFERROR(IF(MeasureCalc(Table_PI[[#This Row],[Hide:\nFormula Name]],Table_SummaryPI[[#This Row],[Quantity]],Table_PI[[#This Row],[List 1]],Table_PI[[#This Row],[List 2]],Table_PI[[#This Row],[List 3]],Table_PI[[#This Row],[Size]],Table_PI[[#This Row],[Input 1]],Table_PI[[#This Row],[Input 2]],Table_PI[[#This Row],[Input 3]],Table_PI[[#This Row],[Input 4]],'Customer Information'!$AR$12,201,ROW())<>\"No Rebate\",MeasureCalc(Table_PI[[#This Row],[Hide:\nFormula Name]],Table_SummaryPI[[#This Row],[Quantity]],Table_PI[[#This Row],[List 1]],Table_PI[[#This Row],[List 2]],Table_PI[[#This Row],[List 3]],Table_PI[[#This Row],[Size]],Table_PI[[#This Row],[Input 1]],Table_PI[[#This Row],[Input 2]],Table_PI[[#This Row],[Input 3]],Table_PI[[#This Row],[Input 4]],'Customer Information'!$AR$12,201,ROW()),\"\"),\"\")","v":""}]
[{"$f":"Table_PI[[#This Row],[Line No.]]","v":""},{"$f":"IF(Table_SummaryPI[[#This Row],[MeassureCategory]]<>\"\",CONCATENATE(Table_SummaryPI[[#This Row],[MeassureCategory]],  \" - \", Table_SummaryPI[[#This Row],[ProposedMeasureCategory]],  \" - \", TEXT(Table_SummaryPI[[#This Row],[Size]],\"#,##0.00\"),\" \",Table_SummaryPI[[#This Row],[SizeUnit]]),\"\")","v":""},{"$f":"SUBSTITUTE(Table_PI[[#This Row],[Measure]],\"     \",\"\",1)","v":""},{"$f":"IF(Table_PI[[#This Row],[List 1]]<>\"\",Table_PI[[#This Row],[List 1]],\"\")","v":""},{"$f":"IF(Table_PI[[#This Row],[List 2]]<>\"\",Table_PI[[#This Row],[List 2]],\"\")","v":""},{"$f":"IF(Table_PI[[#This Row],[List 3]]<>\"\",Table_PI[[#This Row],[List 3]],\"\")","v":""},{"$f":"IF(Table_PI[[#This Row],[Manufacturer]]=\"\",\"\",Table_PI[[#This Row],[Manufacturer]])","v":""},{"$f":"IF(Table_PI[[#This Row],[Model Number]]=\"\",\"\",Table_PI[[#This Row],[Model Number]])","v":""},{"$f":"IF(Table_PI[[#This Row],[Serial Number(s)]]=\"\",\"\",Table_PI[[#This Row],[Serial Number(s)]])","v":""},null,{"$f":"IF(Table_PI[[#This Row],[Size]]=\"\",\"\",Table_PI[[#This Row],[Size]])","v":""},null,{"$f":"IFERROR(IF(AND(MeasureCalc(Table_PI[[#This Row],[Hide:\nFormula Name]],Table_SummaryPI[[#This Row],[Quantity]],Table_PI[[#This Row],[List 1]],Table_PI[[#This Row],[List 2]],Table_PI[[#This Row],[List 3]],Table_PI[[#This Row],[Size]],Table_PI[[#This Row],[Input 1]],Table_PI[[#This Row],[Input 2]],Table_PI[[#This Row],[Input 3]],Table_PI[[#This Row],[Input 4]],'Customer Information'!$AR$12,100,ROW())<>0,MeasureCalc(Table_PI[[#This Row],[Hide:\nFormula Name]],Table_SummaryPI[[#This Row],[Quantity]],Table_PI[[#This Row],[List 1]],Table_PI[[#This Row],[List 2]],Table_PI[[#This Row],[List 3]],Table_PI[[#This Row],[Size]],Table_PI[[#This Row],[Input 1]],Table_PI[[#This Row],[Input 2]],Table_PI[[#This Row],[Input 3]],Table_PI[[#This Row],[Input 4]],'Customer Information'!$AR$12,100,ROW())<>\"No Rebate\"),MeasureCalc(Table_PI[[#This Row],[Hide:\nFormula Name]],Table_SummaryPI[[#This Row],[Quantity]],Table_PI[[#This Row],[List 1]],Table_PI[[#This Row],[List 2]],Table_PI[[#This Row],[List 3]],Table_PI[[#This Row],[Size]],Table_PI[[#This Row],[Input 1]],Table_PI[[#This Row],[Input 2]],Table_PI[[#This Row],[Input 3]],Table_PI[[#This Row],[Input 4]],'Customer Information'!$AR$12,100,ROW()),\"\"),\"\")","v":""},{"$f":"IF(Table_PI[[#This Row],[Input 1]]<>\"\",Table_PI[[#This Row],[Input 1]],\"\")","v":""},null,{"$f":"IFERROR(IF(AND(MeasureCalc(Table_PI[[#This Row],[Hide:\nFormula Name]],Table_SummaryPI[[#This Row],[Quantity]],Table_PI[[#This Row],[List 1]],Table_PI[[#This Row],[List 2]],Table_PI[[#This Row],[List 3]],Table_PI[[#This Row],[Size]],Table_PI[[#This Row],[Input 1]],Table_PI[[#This Row],[Input 2]],Table_PI[[#This Row],[Input 3]],Table_PI[[#This Row],[Input 4]],'Customer Information'!$AR$12,101,ROW())<>0,MeasureCalc(Table_PI[[#This Row],[Hide:\nFormula Name]],Table_SummaryPI[[#This Row],[Quantity]],Table_PI[[#This Row],[List 1]],Table_PI[[#This Row],[List 2]],Table_PI[[#This Row],[List 3]],Table_PI[[#This Row],[Size]],Table_PI[[#This Row],[Input 1]],Table_PI[[#This Row],[Input 2]],Table_PI[[#This Row],[Input 3]],Table_PI[[#This Row],[Input 4]],'Customer Information'!$AR$12,101,ROW())<>\"No Rebate\"),MeasureCalc(Table_PI[[#This Row],[Hide:\nFormula Name]],Table_SummaryPI[[#This Row],[Quantity]],Table_PI[[#This Row],[List 1]],Table_PI[[#This Row],[List 2]],Table_PI[[#This Row],[List 3]],Table_PI[[#This Row],[Size]],Table_PI[[#This Row],[Input 1]],Table_PI[[#This Row],[Input 2]],Table_PI[[#This Row],[Input 3]],Table_PI[[#This Row],[Input 4]],'Customer Information'!$AR$12,101,ROW()),\"\"),\"\")","v":""},{"$f":"IF(Table_PI[[#This Row],[Input 2]]<>\"\",Table_PI[[#This Row],[Input 2]],\"\")","v":""},null,{"$f":"IFERROR(IF(AND(MeasureCalc(Table_PI[[#This Row],[Hide:\nFormula Name]],Table_SummaryPI[[#This Row],[Quantity]],Table_PI[[#This Row],[List 1]],Table_PI[[#This Row],[List 2]],Table_PI[[#This Row],[List 3]],Table_PI[[#This Row],[Size]],Table_PI[[#This Row],[Input 1]],Table_PI[[#This Row],[Input 2]],Table_PI[[#This Row],[Input 3]],Table_PI[[#This Row],[Input 4]],'Customer Information'!$AR$12,102,ROW())<>0,MeasureCalc(Table_PI[[#This Row],[Hide:\nFormula Name]],Table_SummaryPI[[#This Row],[Quantity]],Table_PI[[#This Row],[List 1]],Table_PI[[#This Row],[List 2]],Table_PI[[#This Row],[List 3]],Table_PI[[#This Row],[Size]],Table_PI[[#This Row],[Input 1]],Table_PI[[#This Row],[Input 2]],Table_PI[[#This Row],[Input 3]],Table_PI[[#This Row],[Input 4]],'Customer Information'!$AR$12,102,ROW())<>\"No Rebate\"),MeasureCalc(Table_PI[[#This Row],[Hide:\nFormula Name]],Table_SummaryPI[[#This Row],[Quantity]],Table_PI[[#This Row],[List 1]],Table_PI[[#This Row],[List 2]],Table_PI[[#This Row],[List 3]],Table_PI[[#This Row],[Size]],Table_PI[[#This Row],[Input 1]],Table_PI[[#This Row],[Input 2]],Table_PI[[#This Row],[Input 3]],Table_PI[[#This Row],[Input 4]],'Customer Information'!$AR$12,102,ROW()),\"\"),\"\")","v":""},{"$f":"IF(Table_PI[[#This Row],[Input 3]]<>\"\",Table_PI[[#This Row],[Input 3]],\"\")","v":""},null,{"$f":"IFERROR(IF(AND(MeasureCalc(Table_PI[[#This Row],[Hide:\nFormula Name]],Table_SummaryPI[[#This Row],[Quantity]],Table_PI[[#This Row],[List 1]],Table_PI[[#This Row],[List 2]],Table_PI[[#This Row],[List 3]],Table_PI[[#This Row],[Size]],Table_PI[[#This Row],[Input 1]],Table_PI[[#This Row],[Input 2]],Table_PI[[#This Row],[Input 3]],Table_PI[[#This Row],[Input 4]],'Customer Information'!$AR$12,103,ROW())<>0,MeasureCalc(Table_PI[[#This Row],[Hide:\nFormula Name]],Table_SummaryPI[[#This Row],[Quantity]],Table_PI[[#This Row],[List 1]],Table_PI[[#This Row],[List 2]],Table_PI[[#This Row],[List 3]],Table_PI[[#This Row],[Size]],Table_PI[[#This Row],[Input 1]],Table_PI[[#This Row],[Input 2]],Table_PI[[#This Row],[Input 3]],Table_PI[[#This Row],[Input 4]],'Customer Information'!$AR$12,103,ROW())<>\"No Rebate\"),MeasureCalc(Table_PI[[#This Row],[Hide:\nFormula Name]],Table_SummaryPI[[#This Row],[Quantity]],Table_PI[[#This Row],[List 1]],Table_PI[[#This Row],[List 2]],Table_PI[[#This Row],[List 3]],Table_PI[[#This Row],[Size]],Table_PI[[#This Row],[Input 1]],Table_PI[[#This Row],[Input 2]],Table_PI[[#This Row],[Input 3]],Table_PI[[#This Row],[Input 4]],'Customer Information'!$AR$12,103,ROW()),\"\"),\"\")","v":""},{"$f":"IF(Table_PI[[#This Row],[Input 4]]<>\"\",Table_PI[[#This Row],[Input 4]],\"\")","v":""},{"$f":"IF(Table_PI[[#This Row],[Quantity]]=\"\",\"\",Table_PI[[#This Row],[Quantity]])","v":""},{"$f":"IF(Table_PI[[#This Row],[Notes]]=\"\",\"\",Table_PI[[#This Row],[Notes]])","v":""},{"$f":"IF(OR(Table_PI[[#This Row],[Hide:\nBaseline kWh]]=\"\",Table_PI[[#This Row],[Hide:\nBaseline kWh]]=0),\"\",Table_PI[[#This Row],[Hide:\nBaseline kWh]])","v":""},{"$f":"IF(OR(Table_PI[[#This Row],[Hide:\nBaseline kW]]=\"\",Table_PI[[#This Row],[Hide:\nBaseline kW]]=0),\"\",Table_PI[[#This Row],[Hide:\nBaseline kW]])","v":""},{"$f":"IF(OR(Table_PI[[#This Row],[Hide:\nProposed kWh]]=\"\",Table_PI[[#This Row],[Hide:\nProposed kWh]]=0),\"\",Table_PI[[#This Row],[Hide:\nProposed kWh]])","v":""},{"$f":"IF(OR(Table_PI[[#This Row],[Hide:\nProposed kW]]=\"\",Table_PI[[#This Row],[Hide:\nProposed kW]]=0),\"\",Table_PI[[#This Row],[Hide:\nProposed kW]])","v":""},{"$f":"IF(OR(Table_PI[[#This Row],[Rebate]]=\"\",Table_PI[[#This Row],[Rebate]]=0),\"\",Table_PI[[#This Row],[Rebate]])","v":""},{"$f":"IF(OR(Table_PI[[#This Row],[Hide:\nIncremental Cost]]=\"\",Table_PI[[#This Row],[Hide:\nIncremental Cost]]=0),\"\",Table_PI[[#This Row],[Hide:\nIncremental Cost]])","v":""},{"$f":"IFERROR(IF(Table_SummaryPI[[#This Row],[kWhSavings]]=\"\",\"\",ROUND(Table_SummaryPI[[#This Row],[kWhSavings]]/$AG$401*'Customer Information'!$BC$17,2)),0)","v":""},{"$f":"IF(OR(Table_PI[[#This Row],[Annual kWh]]=\"\",Table_PI[[#This Row],[Annual kWh]]=0),\"\",Table_PI[[#This Row],[Annual kWh]])","v":""},{"$f":"IF(OR(Table_PI[[#This Row],[Peak kW]]=\"\",Table_PI[[#This Row],[Peak kW]]=0),\"\",Table_PI[[#This Row],[Peak kW]])","v":""},{"$f":"IFERROR(IF(Table_SummaryPI[[#This Row],[kWhSavings]]=\"\",\"\",$AU$9*Table_SummaryPI[[#This Row],[kWhSavings]]),0)","v":""},{"$f":"IFERROR(IF(Table_SummaryPI[[#This Row],[kWhSavings]]=\"\",\"\",$AU$14*Table_SummaryPI[[#This Row],[kWhSavings]]),0)","v":""},{"$f":"IFERROR(IF(Table_SummaryPI[[#This Row],[kWhSavings]]=\"\",\"\",$AU$18*Table_SummaryPI[[#This Row],[kWhSavings]]),0)","v":""},{"$f":"IFERROR(IF(Table_SummaryPI[[#This Row],[kWhSavings]]=\"\",\"\",$AU$22*Table_SummaryPI[[#This Row],[kWhSavings]]),0)","v":""},{"$f":"IFERROR(IF(MeasureCalc(Table_PI[[#This Row],[Hide:\nFormula Name]],Table_SummaryPI[[#This Row],[Quantity]],Table_PI[[#This Row],[List 1]],Table_PI[[#This Row],[List 2]],Table_PI[[#This Row],[List 3]],Table_PI[[#This Row],[Size]],Table_PI[[#This Row],[Input 1]],Table_PI[[#This Row],[Input 2]],Table_PI[[#This Row],[Input 3]],Table_PI[[#This Row],[Input 4]],'Customer Information'!$AR$12,200,ROW())<>\"No Rebate\",MeasureCalc(Table_PI[[#This Row],[Hide:\nFormula Name]],Table_SummaryPI[[#This Row],[Quantity]],Table_PI[[#This Row],[List 1]],Table_PI[[#This Row],[List 2]],Table_PI[[#This Row],[List 3]],Table_PI[[#This Row],[Size]],Table_PI[[#This Row],[Input 1]],Table_PI[[#This Row],[Input 2]],Table_PI[[#This Row],[Input 3]],Table_PI[[#This Row],[Input 4]],'Customer Information'!$AR$12,200,ROW()),\"\"),\"\")","v":""},{"$f":"IFERROR(IF(MeasureCalc(Table_PI[[#This Row],[Hide:\nFormula Name]],Table_SummaryPI[[#This Row],[Quantity]],Table_PI[[#This Row],[List 1]],Table_PI[[#This Row],[List 2]],Table_PI[[#This Row],[List 3]],Table_PI[[#This Row],[Size]],Table_PI[[#This Row],[Input 1]],Table_PI[[#This Row],[Input 2]],Table_PI[[#This Row],[Input 3]],Table_PI[[#This Row],[Input 4]],'Customer Information'!$AR$12,201,ROW())<>\"No Rebate\",MeasureCalc(Table_PI[[#This Row],[Hide:\nFormula Name]],Table_SummaryPI[[#This Row],[Quantity]],Table_PI[[#This Row],[List 1]],Table_PI[[#This Row],[List 2]],Table_PI[[#This Row],[List 3]],Table_PI[[#This Row],[Size]],Table_PI[[#This Row],[Input 1]],Table_PI[[#This Row],[Input 2]],Table_PI[[#This Row],[Input 3]],Table_PI[[#This Row],[Input 4]],'Customer Information'!$AR$12,201,ROW()),\"\"),\"\")","v":""}]
[{"$f":"Table_PI[[#This Row],[Line No.]]","v":""},{"$f":"IF(Table_SummaryPI[[#This Row],[MeassureCategory]]<>\"\",CONCATENATE(Table_SummaryPI[[#This Row],[MeassureCategory]],  \" - \", Table_SummaryPI[[#This Row],[ProposedMeasureCategory]],  \" - \", TEXT(Table_SummaryPI[[#This Row],[Size]],\"#,##0.00\"),\" \",Table_SummaryPI[[#This Row],[SizeUnit]]),\"\")","v":""},{"$f":"SUBSTITUTE(Table_PI[[#This Row],[Measure]],\"     \",\"\",1)","v":""},{"$f":"IF(Table_PI[[#This Row],[List 1]]<>\"\",Table_PI[[#This Row],[List 1]],\"\")","v":""},{"$f":"IF(Table_PI[[#This Row],[List 2]]<>\"\",Table_PI[[#This Row],[List 2]],\"\")","v":""},{"$f":"IF(Table_PI[[#This Row],[List 3]]<>\"\",Table_PI[[#This Row],[List 3]],\"\")","v":""},{"$f":"IF(Table_PI[[#This Row],[Manufacturer]]=\"\",\"\",Table_PI[[#This Row],[Manufacturer]])","v":""},{"$f":"IF(Table_PI[[#This Row],[Model Number]]=\"\",\"\",Table_PI[[#This Row],[Model Number]])","v":""},{"$f":"IF(Table_PI[[#This Row],[Serial Number(s)]]=\"\",\"\",Table_PI[[#This Row],[Serial Number(s)]])","v":""},null,{"$f":"IF(Table_PI[[#This Row],[Size]]=\"\",\"\",Table_PI[[#This Row],[Size]])","v":""},null,{"$f":"IFERROR(IF(AND(MeasureCalc(Table_PI[[#This Row],[Hide:\nFormula Name]],Table_SummaryPI[[#This Row],[Quantity]],Table_PI[[#This Row],[List 1]],Table_PI[[#This Row],[List 2]],Table_PI[[#This Row],[List 3]],Table_PI[[#This Row],[Size]],Table_PI[[#This Row],[Input 1]],Table_PI[[#This Row],[Input 2]],Table_PI[[#This Row],[Input 3]],Table_PI[[#This Row],[Input 4]],'Customer Information'!$AR$12,100,ROW())<>0,MeasureCalc(Table_PI[[#This Row],[Hide:\nFormula Name]],Table_SummaryPI[[#This Row],[Quantity]],Table_PI[[#This Row],[List 1]],Table_PI[[#This Row],[List 2]],Table_PI[[#This Row],[List 3]],Table_PI[[#This Row],[Size]],Table_PI[[#This Row],[Input 1]],Table_PI[[#This Row],[Input 2]],Table_PI[[#This Row],[Input 3]],Table_PI[[#This Row],[Input 4]],'Customer Information'!$AR$12,100,ROW())<>\"No Rebate\"),MeasureCalc(Table_PI[[#This Row],[Hide:\nFormula Name]],Table_SummaryPI[[#This Row],[Quantity]],Table_PI[[#This Row],[List 1]],Table_PI[[#This Row],[List 2]],Table_PI[[#This Row],[List 3]],Table_PI[[#This Row],[Size]],Table_PI[[#This Row],[Input 1]],Table_PI[[#This Row],[Input 2]],Table_PI[[#This Row],[Input 3]],Table_PI[[#This Row],[Input 4]],'Customer Information'!$AR$12,100,ROW()),\"\"),\"\")","v":""},{"$f":"IF(Table_PI[[#This Row],[Input 1]]<>\"\",Table_PI[[#This Row],[Input 1]],\"\")","v":""},null,{"$f":"IFERROR(IF(AND(MeasureCalc(Table_PI[[#This Row],[Hide:\nFormula Name]],Table_SummaryPI[[#This Row],[Quantity]],Table_PI[[#This Row],[List 1]],Table_PI[[#This Row],[List 2]],Table_PI[[#This Row],[List 3]],Table_PI[[#This Row],[Size]],Table_PI[[#This Row],[Input 1]],Table_PI[[#This Row],[Input 2]],Table_PI[[#This Row],[Input 3]],Table_PI[[#This Row],[Input 4]],'Customer Information'!$AR$12,101,ROW())<>0,MeasureCalc(Table_PI[[#This Row],[Hide:\nFormula Name]],Table_SummaryPI[[#This Row],[Quantity]],Table_PI[[#This Row],[List 1]],Table_PI[[#This Row],[List 2]],Table_PI[[#This Row],[List 3]],Table_PI[[#This Row],[Size]],Table_PI[[#This Row],[Input 1]],Table_PI[[#This Row],[Input 2]],Table_PI[[#This Row],[Input 3]],Table_PI[[#This Row],[Input 4]],'Customer Information'!$AR$12,101,ROW())<>\"No Rebate\"),MeasureCalc(Table_PI[[#This Row],[Hide:\nFormula Name]],Table_SummaryPI[[#This Row],[Quantity]],Table_PI[[#This Row],[List 1]],Table_PI[[#This Row],[List 2]],Table_PI[[#This Row],[List 3]],Table_PI[[#This Row],[Size]],Table_PI[[#This Row],[Input 1]],Table_PI[[#This Row],[Input 2]],Table_PI[[#This Row],[Input 3]],Table_PI[[#This Row],[Input 4]],'Customer Information'!$AR$12,101,ROW()),\"\"),\"\")","v":""},{"$f":"IF(Table_PI[[#This Row],[Input 2]]<>\"\",Table_PI[[#This Row],[Input 2]],\"\")","v":""},null,{"$f":"IFERROR(IF(AND(MeasureCalc(Table_PI[[#This Row],[Hide:\nFormula Name]],Table_SummaryPI[[#This Row],[Quantity]],Table_PI[[#This Row],[List 1]],Table_PI[[#This Row],[List 2]],Table_PI[[#This Row],[List 3]],Table_PI[[#This Row],[Size]],Table_PI[[#This Row],[Input 1]],Table_PI[[#This Row],[Input 2]],Table_PI[[#This Row],[Input 3]],Table_PI[[#This Row],[Input 4]],'Customer Information'!$AR$12,102,ROW())<>0,MeasureCalc(Table_PI[[#This Row],[Hide:\nFormula Name]],Table_SummaryPI[[#This Row],[Quantity]],Table_PI[[#This Row],[List 1]],Table_PI[[#This Row],[List 2]],Table_PI[[#This Row],[List 3]],Table_PI[[#This Row],[Size]],Table_PI[[#This Row],[Input 1]],Table_PI[[#This Row],[Input 2]],Table_PI[[#This Row],[Input 3]],Table_PI[[#This Row],[Input 4]],'Customer Information'!$AR$12,102,ROW())<>\"No Rebate\"),MeasureCalc(Table_PI[[#This Row],[Hide:\nFormula Name]],Table_SummaryPI[[#This Row],[Quantity]],Table_PI[[#This Row],[List 1]],Table_PI[[#This Row],[List 2]],Table_PI[[#This Row],[List 3]],Table_PI[[#This Row],[Size]],Table_PI[[#This Row],[Input 1]],Table_PI[[#This Row],[Input 2]],Table_PI[[#This Row],[Input 3]],Table_PI[[#This Row],[Input 4]],'Customer Information'!$AR$12,102,ROW()),\"\"),\"\")","v":""},{"$f":"IF(Table_PI[[#This Row],[Input 3]]<>\"\",Table_PI[[#This Row],[Input 3]],\"\")","v":""},null,{"$f":"IFERROR(IF(AND(MeasureCalc(Table_PI[[#This Row],[Hide:\nFormula Name]],Table_SummaryPI[[#This Row],[Quantity]],Table_PI[[#This Row],[List 1]],Table_PI[[#This Row],[List 2]],Table_PI[[#This Row],[List 3]],Table_PI[[#This Row],[Size]],Table_PI[[#This Row],[Input 1]],Table_PI[[#This Row],[Input 2]],Table_PI[[#This Row],[Input 3]],Table_PI[[#This Row],[Input 4]],'Customer Information'!$AR$12,103,ROW())<>0,MeasureCalc(Table_PI[[#This Row],[Hide:\nFormula Name]],Table_SummaryPI[[#This Row],[Quantity]],Table_PI[[#This Row],[List 1]],Table_PI[[#This Row],[List 2]],Table_PI[[#This Row],[List 3]],Table_PI[[#This Row],[Size]],Table_PI[[#This Row],[Input 1]],Table_PI[[#This Row],[Input 2]],Table_PI[[#This Row],[Input 3]],Table_PI[[#This Row],[Input 4]],'Customer Information'!$AR$12,103,ROW())<>\"No Rebate\"),MeasureCalc(Table_PI[[#This Row],[Hide:\nFormula Name]],Table_SummaryPI[[#This Row],[Quantity]],Table_PI[[#This Row],[List 1]],Table_PI[[#This Row],[List 2]],Table_PI[[#This Row],[List 3]],Table_PI[[#This Row],[Size]],Table_PI[[#This Row],[Input 1]],Table_PI[[#This Row],[Input 2]],Table_PI[[#This Row],[Input 3]],Table_PI[[#This Row],[Input 4]],'Customer Information'!$AR$12,103,ROW()),\"\"),\"\")","v":""},{"$f":"IF(Table_PI[[#This Row],[Input 4]]<>\"\",Table_PI[[#This Row],[Input 4]],\"\")","v":""},{"$f":"IF(Table_PI[[#This Row],[Quantity]]=\"\",\"\",Table_PI[[#This Row],[Quantity]])","v":""},{"$f":"IF(Table_PI[[#This Row],[Notes]]=\"\",\"\",Table_PI[[#This Row],[Notes]])","v":""},{"$f":"IF(OR(Table_PI[[#This Row],[Hide:\nBaseline kWh]]=\"\",Table_PI[[#This Row],[Hide:\nBaseline kWh]]=0),\"\",Table_PI[[#This Row],[Hide:\nBaseline kWh]])","v":""},{"$f":"IF(OR(Table_PI[[#This Row],[Hide:\nBaseline kW]]=\"\",Table_PI[[#This Row],[Hide:\nBaseline kW]]=0),\"\",Table_PI[[#This Row],[Hide:\nBaseline kW]])","v":""},{"$f":"IF(OR(Table_PI[[#This Row],[Hide:\nProposed kWh]]=\"\",Table_PI[[#This Row],[Hide:\nProposed kWh]]=0),\"\",Table_PI[[#This Row],[Hide:\nProposed kWh]])","v":""},{"$f":"IF(OR(Table_PI[[#This Row],[Hide:\nProposed kW]]=\"\",Table_PI[[#This Row],[Hide:\nProposed kW]]=0),\"\",Table_PI[[#This Row],[Hide:\nProposed kW]])","v":""},{"$f":"IF(OR(Table_PI[[#This Row],[Rebate]]=\"\",Table_PI[[#This Row],[Rebate]]=0),\"\",Table_PI[[#This Row],[Rebate]])","v":""},{"$f":"IF(OR(Table_PI[[#This Row],[Hide:\nIncremental Cost]]=\"\",Table_PI[[#This Row],[Hide:\nIncremental Cost]]=0),\"\",Table_PI[[#This Row],[Hide:\nIncremental Cost]])","v":""},{"$f":"IFERROR(IF(Table_SummaryPI[[#This Row],[kWhSavings]]=\"\",\"\",ROUND(Table_SummaryPI[[#This Row],[kWhSavings]]/$AG$401*'Customer Information'!$BC$17,2)),0)","v":""},{"$f":"IF(OR(Table_PI[[#This Row],[Annual kWh]]=\"\",Table_PI[[#This Row],[Annual kWh]]=0),\"\",Table_PI[[#This Row],[Annual kWh]])","v":""},{"$f":"IF(OR(Table_PI[[#This Row],[Peak kW]]=\"\",Table_PI[[#This Row],[Peak kW]]=0),\"\",Table_PI[[#This Row],[Peak kW]])","v":""},{"$f":"IFERROR(IF(Table_SummaryPI[[#This Row],[kWhSavings]]=\"\",\"\",$AU$9*Table_SummaryPI[[#This Row],[kWhSavings]]),0)","v":""},{"$f":"IFERROR(IF(Table_SummaryPI[[#This Row],[kWhSavings]]=\"\",\"\",$AU$14*Table_SummaryPI[[#This Row],[kWhSavings]]),0)","v":""},{"$f":"IFERROR(IF(Table_SummaryPI[[#This Row],[kWhSavings]]=\"\",\"\",$AU$18*Table_SummaryPI[[#This Row],[kWhSavings]]),0)","v":""},{"$f":"IFERROR(IF(Table_SummaryPI[[#This Row],[kWhSavings]]=\"\",\"\",$AU$22*Table_SummaryPI[[#This Row],[kWhSavings]]),0)","v":""},{"$f":"IFERROR(IF(MeasureCalc(Table_PI[[#This Row],[Hide:\nFormula Name]],Table_SummaryPI[[#This Row],[Quantity]],Table_PI[[#This Row],[List 1]],Table_PI[[#This Row],[List 2]],Table_PI[[#This Row],[List 3]],Table_PI[[#This Row],[Size]],Table_PI[[#This Row],[Input 1]],Table_PI[[#This Row],[Input 2]],Table_PI[[#This Row],[Input 3]],Table_PI[[#This Row],[Input 4]],'Customer Information'!$AR$12,200,ROW())<>\"No Rebate\",MeasureCalc(Table_PI[[#This Row],[Hide:\nFormula Name]],Table_SummaryPI[[#This Row],[Quantity]],Table_PI[[#This Row],[List 1]],Table_PI[[#This Row],[List 2]],Table_PI[[#This Row],[List 3]],Table_PI[[#This Row],[Size]],Table_PI[[#This Row],[Input 1]],Table_PI[[#This Row],[Input 2]],Table_PI[[#This Row],[Input 3]],Table_PI[[#This Row],[Input 4]],'Customer Information'!$AR$12,200,ROW()),\"\"),\"\")","v":""},{"$f":"IFERROR(IF(MeasureCalc(Table_PI[[#This Row],[Hide:\nFormula Name]],Table_SummaryPI[[#This Row],[Quantity]],Table_PI[[#This Row],[List 1]],Table_PI[[#This Row],[List 2]],Table_PI[[#This Row],[List 3]],Table_PI[[#This Row],[Size]],Table_PI[[#This Row],[Input 1]],Table_PI[[#This Row],[Input 2]],Table_PI[[#This Row],[Input 3]],Table_PI[[#This Row],[Input 4]],'Customer Information'!$AR$12,201,ROW())<>\"No Rebate\",MeasureCalc(Table_PI[[#This Row],[Hide:\nFormula Name]],Table_SummaryPI[[#This Row],[Quantity]],Table_PI[[#This Row],[List 1]],Table_PI[[#This Row],[List 2]],Table_PI[[#This Row],[List 3]],Table_PI[[#This Row],[Size]],Table_PI[[#This Row],[Input 1]],Table_PI[[#This Row],[Input 2]],Table_PI[[#This Row],[Input 3]],Table_PI[[#This Row],[Input 4]],'Customer Information'!$AR$12,201,ROW()),\"\"),\"\")","v":""}]
[{"$f":"Table_PI[[#This Row],[Line No.]]","v":""},{"$f":"IF(Table_SummaryPI[[#This Row],[MeassureCategory]]<>\"\",CONCATENATE(Table_SummaryPI[[#This Row],[MeassureCategory]],  \" - \", Table_SummaryPI[[#This Row],[ProposedMeasureCategory]],  \" - \", TEXT(Table_SummaryPI[[#This Row],[Size]],\"#,##0.00\"),\" \",Table_SummaryPI[[#This Row],[SizeUnit]]),\"\")","v":""},{"$f":"SUBSTITUTE(Table_PI[[#This Row],[Measure]],\"     \",\"\",1)","v":""},{"$f":"IF(Table_PI[[#This Row],[List 1]]<>\"\",Table_PI[[#This Row],[List 1]],\"\")","v":""},{"$f":"IF(Table_PI[[#This Row],[List 2]]<>\"\",Table_PI[[#This Row],[List 2]],\"\")","v":""},{"$f":"IF(Table_PI[[#This Row],[List 3]]<>\"\",Table_PI[[#This Row],[List 3]],\"\")","v":""},{"$f":"IF(Table_PI[[#This Row],[Manufacturer]]=\"\",\"\",Table_PI[[#This Row],[Manufacturer]])","v":""},{"$f":"IF(Table_PI[[#This Row],[Model Number]]=\"\",\"\",Table_PI[[#This Row],[Model Number]])","v":""},{"$f":"IF(Table_PI[[#This Row],[Serial Number(s)]]=\"\",\"\",Table_PI[[#This Row],[Serial Number(s)]])","v":""},null,{"$f":"IF(Table_PI[[#This Row],[Size]]=\"\",\"\",Table_PI[[#This Row],[Size]])","v":""},null,{"$f":"IFERROR(IF(AND(MeasureCalc(Table_PI[[#This Row],[Hide:\nFormula Name]],Table_SummaryPI[[#This Row],[Quantity]],Table_PI[[#This Row],[List 1]],Table_PI[[#This Row],[List 2]],Table_PI[[#This Row],[List 3]],Table_PI[[#This Row],[Size]],Table_PI[[#This Row],[Input 1]],Table_PI[[#This Row],[Input 2]],Table_PI[[#This Row],[Input 3]],Table_PI[[#This Row],[Input 4]],'Customer Information'!$AR$12,100,ROW())<>0,MeasureCalc(Table_PI[[#This Row],[Hide:\nFormula Name]],Table_SummaryPI[[#This Row],[Quantity]],Table_PI[[#This Row],[List 1]],Table_PI[[#This Row],[List 2]],Table_PI[[#This Row],[List 3]],Table_PI[[#This Row],[Size]],Table_PI[[#This Row],[Input 1]],Table_PI[[#This Row],[Input 2]],Table_PI[[#This Row],[Input 3]],Table_PI[[#This Row],[Input 4]],'Customer Information'!$AR$12,100,ROW())<>\"No Rebate\"),MeasureCalc(Table_PI[[#This Row],[Hide:\nFormula Name]],Table_SummaryPI[[#This Row],[Quantity]],Table_PI[[#This Row],[List 1]],Table_PI[[#This Row],[List 2]],Table_PI[[#This Row],[List 3]],Table_PI[[#This Row],[Size]],Table_PI[[#This Row],[Input 1]],Table_PI[[#This Row],[Input 2]],Table_PI[[#This Row],[Input 3]],Table_PI[[#This Row],[Input 4]],'Customer Information'!$AR$12,100,ROW()),\"\"),\"\")","v":""},{"$f":"IF(Table_PI[[#This Row],[Input 1]]<>\"\",Table_PI[[#This Row],[Input 1]],\"\")","v":""},null,{"$f":"IFERROR(IF(AND(MeasureCalc(Table_PI[[#This Row],[Hide:\nFormula Name]],Table_SummaryPI[[#This Row],[Quantity]],Table_PI[[#This Row],[List 1]],Table_PI[[#This Row],[List 2]],Table_PI[[#This Row],[List 3]],Table_PI[[#This Row],[Size]],Table_PI[[#This Row],[Input 1]],Table_PI[[#This Row],[Input 2]],Table_PI[[#This Row],[Input 3]],Table_PI[[#This Row],[Input 4]],'Customer Information'!$AR$12,101,ROW())<>0,MeasureCalc(Table_PI[[#This Row],[Hide:\nFormula Name]],Table_SummaryPI[[#This Row],[Quantity]],Table_PI[[#This Row],[List 1]],Table_PI[[#This Row],[List 2]],Table_PI[[#This Row],[List 3]],Table_PI[[#This Row],[Size]],Table_PI[[#This Row],[Input 1]],Table_PI[[#This Row],[Input 2]],Table_PI[[#This Row],[Input 3]],Table_PI[[#This Row],[Input 4]],'Customer Information'!$AR$12,101,ROW())<>\"No Rebate\"),MeasureCalc(Table_PI[[#This Row],[Hide:\nFormula Name]],Table_SummaryPI[[#This Row],[Quantity]],Table_PI[[#This Row],[List 1]],Table_PI[[#This Row],[List 2]],Table_PI[[#This Row],[List 3]],Table_PI[[#This Row],[Size]],Table_PI[[#This Row],[Input 1]],Table_PI[[#This Row],[Input 2]],Table_PI[[#This Row],[Input 3]],Table_PI[[#This Row],[Input 4]],'Customer Information'!$AR$12,101,ROW()),\"\"),\"\")","v":""},{"$f":"IF(Table_PI[[#This Row],[Input 2]]<>\"\",Table_PI[[#This Row],[Input 2]],\"\")","v":""},null,{"$f":"IFERROR(IF(AND(MeasureCalc(Table_PI[[#This Row],[Hide:\nFormula Name]],Table_SummaryPI[[#This Row],[Quantity]],Table_PI[[#This Row],[List 1]],Table_PI[[#This Row],[List 2]],Table_PI[[#This Row],[List 3]],Table_PI[[#This Row],[Size]],Table_PI[[#This Row],[Input 1]],Table_PI[[#This Row],[Input 2]],Table_PI[[#This Row],[Input 3]],Table_PI[[#This Row],[Input 4]],'Customer Information'!$AR$12,102,ROW())<>0,MeasureCalc(Table_PI[[#This Row],[Hide:\nFormula Name]],Table_SummaryPI[[#This Row],[Quantity]],Table_PI[[#This Row],[List 1]],Table_PI[[#This Row],[List 2]],Table_PI[[#This Row],[List 3]],Table_PI[[#This Row],[Size]],Table_PI[[#This Row],[Input 1]],Table_PI[[#This Row],[Input 2]],Table_PI[[#This Row],[Input 3]],Table_PI[[#This Row],[Input 4]],'Customer Information'!$AR$12,102,ROW())<>\"No Rebate\"),MeasureCalc(Table_PI[[#This Row],[Hide:\nFormula Name]],Table_SummaryPI[[#This Row],[Quantity]],Table_PI[[#This Row],[List 1]],Table_PI[[#This Row],[List 2]],Table_PI[[#This Row],[List 3]],Table_PI[[#This Row],[Size]],Table_PI[[#This Row],[Input 1]],Table_PI[[#This Row],[Input 2]],Table_PI[[#This Row],[Input 3]],Table_PI[[#This Row],[Input 4]],'Customer Information'!$AR$12,102,ROW()),\"\"),\"\")","v":""},{"$f":"IF(Table_PI[[#This Row],[Input 3]]<>\"\",Table_PI[[#This Row],[Input 3]],\"\")","v":""},null,{"$f":"IFERROR(IF(AND(MeasureCalc(Table_PI[[#This Row],[Hide:\nFormula Name]],Table_SummaryPI[[#This Row],[Quantity]],Table_PI[[#This Row],[List 1]],Table_PI[[#This Row],[List 2]],Table_PI[[#This Row],[List 3]],Table_PI[[#This Row],[Size]],Table_PI[[#This Row],[Input 1]],Table_PI[[#This Row],[Input 2]],Table_PI[[#This Row],[Input 3]],Table_PI[[#This Row],[Input 4]],'Customer Information'!$AR$12,103,ROW())<>0,MeasureCalc(Table_PI[[#This Row],[Hide:\nFormula Name]],Table_SummaryPI[[#This Row],[Quantity]],Table_PI[[#This Row],[List 1]],Table_PI[[#This Row],[List 2]],Table_PI[[#This Row],[List 3]],Table_PI[[#This Row],[Size]],Table_PI[[#This Row],[Input 1]],Table_PI[[#This Row],[Input 2]],Table_PI[[#This Row],[Input 3]],Table_PI[[#This Row],[Input 4]],'Customer Information'!$AR$12,103,ROW())<>\"No Rebate\"),MeasureCalc(Table_PI[[#This Row],[Hide:\nFormula Name]],Table_SummaryPI[[#This Row],[Quantity]],Table_PI[[#This Row],[List 1]],Table_PI[[#This Row],[List 2]],Table_PI[[#This Row],[List 3]],Table_PI[[#This Row],[Size]],Table_PI[[#This Row],[Input 1]],Table_PI[[#This Row],[Input 2]],Table_PI[[#This Row],[Input 3]],Table_PI[[#This Row],[Input 4]],'Customer Information'!$AR$12,103,ROW()),\"\"),\"\")","v":""},{"$f":"IF(Table_PI[[#This Row],[Input 4]]<>\"\",Table_PI[[#This Row],[Input 4]],\"\")","v":""},{"$f":"IF(Table_PI[[#This Row],[Quantity]]=\"\",\"\",Table_PI[[#This Row],[Quantity]])","v":""},{"$f":"IF(Table_PI[[#This Row],[Notes]]=\"\",\"\",Table_PI[[#This Row],[Notes]])","v":""},{"$f":"IF(OR(Table_PI[[#This Row],[Hide:\nBaseline kWh]]=\"\",Table_PI[[#This Row],[Hide:\nBaseline kWh]]=0),\"\",Table_PI[[#This Row],[Hide:\nBaseline kWh]])","v":""},{"$f":"IF(OR(Table_PI[[#This Row],[Hide:\nBaseline kW]]=\"\",Table_PI[[#This Row],[Hide:\nBaseline kW]]=0),\"\",Table_PI[[#This Row],[Hide:\nBaseline kW]])","v":""},{"$f":"IF(OR(Table_PI[[#This Row],[Hide:\nProposed kWh]]=\"\",Table_PI[[#This Row],[Hide:\nProposed kWh]]=0),\"\",Table_PI[[#This Row],[Hide:\nProposed kWh]])","v":""},{"$f":"IF(OR(Table_PI[[#This Row],[Hide:\nProposed kW]]=\"\",Table_PI[[#This Row],[Hide:\nProposed kW]]=0),\"\",Table_PI[[#This Row],[Hide:\nProposed kW]])","v":""},{"$f":"IF(OR(Table_PI[[#This Row],[Rebate]]=\"\",Table_PI[[#This Row],[Rebate]]=0),\"\",Table_PI[[#This Row],[Rebate]])","v":""},{"$f":"IF(OR(Table_PI[[#This Row],[Hide:\nIncremental Cost]]=\"\",Table_PI[[#This Row],[Hide:\nIncremental Cost]]=0),\"\",Table_PI[[#This Row],[Hide:\nIncremental Cost]])","v":""},{"$f":"IFERROR(IF(Table_SummaryPI[[#This Row],[kWhSavings]]=\"\",\"\",ROUND(Table_SummaryPI[[#This Row],[kWhSavings]]/$AG$401*'Customer Information'!$BC$17,2)),0)","v":""},{"$f":"IF(OR(Table_PI[[#This Row],[Annual kWh]]=\"\",Table_PI[[#This Row],[Annual kWh]]=0),\"\",Table_PI[[#This Row],[Annual kWh]])","v":""},{"$f":"IF(OR(Table_PI[[#This Row],[Peak kW]]=\"\",Table_PI[[#This Row],[Peak kW]]=0),\"\",Table_PI[[#This Row],[Peak kW]])","v":""},{"$f":"IFERROR(IF(Table_SummaryPI[[#This Row],[kWhSavings]]=\"\",\"\",$AU$9*Table_SummaryPI[[#This Row],[kWhSavings]]),0)","v":""},{"$f":"IFERROR(IF(Table_SummaryPI[[#This Row],[kWhSavings]]=\"\",\"\",$AU$14*Table_SummaryPI[[#This Row],[kWhSavings]]),0)","v":""},{"$f":"IFERROR(IF(Table_SummaryPI[[#This Row],[kWhSavings]]=\"\",\"\",$AU$18*Table_SummaryPI[[#This Row],[kWhSavings]]),0)","v":""},{"$f":"IFERROR(IF(Table_SummaryPI[[#This Row],[kWhSavings]]=\"\",\"\",$AU$22*Table_SummaryPI[[#This Row],[kWhSavings]]),0)","v":""},{"$f":"IFERROR(IF(MeasureCalc(Table_PI[[#This Row],[Hide:\nFormula Name]],Table_SummaryPI[[#This Row],[Quantity]],Table_PI[[#This Row],[List 1]],Table_PI[[#This Row],[List 2]],Table_PI[[#This Row],[List 3]],Table_PI[[#This Row],[Size]],Table_PI[[#This Row],[Input 1]],Table_PI[[#This Row],[Input 2]],Table_PI[[#This Row],[Input 3]],Table_PI[[#This Row],[Input 4]],'Customer Information'!$AR$12,200,ROW())<>\"No Rebate\",MeasureCalc(Table_PI[[#This Row],[Hide:\nFormula Name]],Table_SummaryPI[[#This Row],[Quantity]],Table_PI[[#This Row],[List 1]],Table_PI[[#This Row],[List 2]],Table_PI[[#This Row],[List 3]],Table_PI[[#This Row],[Size]],Table_PI[[#This Row],[Input 1]],Table_PI[[#This Row],[Input 2]],Table_PI[[#This Row],[Input 3]],Table_PI[[#This Row],[Input 4]],'Customer Information'!$AR$12,200,ROW()),\"\"),\"\")","v":""},{"$f":"IFERROR(IF(MeasureCalc(Table_PI[[#This Row],[Hide:\nFormula Name]],Table_SummaryPI[[#This Row],[Quantity]],Table_PI[[#This Row],[List 1]],Table_PI[[#This Row],[List 2]],Table_PI[[#This Row],[List 3]],Table_PI[[#This Row],[Size]],Table_PI[[#This Row],[Input 1]],Table_PI[[#This Row],[Input 2]],Table_PI[[#This Row],[Input 3]],Table_PI[[#This Row],[Input 4]],'Customer Information'!$AR$12,201,ROW())<>\"No Rebate\",MeasureCalc(Table_PI[[#This Row],[Hide:\nFormula Name]],Table_SummaryPI[[#This Row],[Quantity]],Table_PI[[#This Row],[List 1]],Table_PI[[#This Row],[List 2]],Table_PI[[#This Row],[List 3]],Table_PI[[#This Row],[Size]],Table_PI[[#This Row],[Input 1]],Table_PI[[#This Row],[Input 2]],Table_PI[[#This Row],[Input 3]],Table_PI[[#This Row],[Input 4]],'Customer Information'!$AR$12,201,ROW()),\"\"),\"\")","v":""}]
[{"$f":"Table_PI[[#This Row],[Line No.]]","v":""},{"$f":"IF(Table_SummaryPI[[#This Row],[MeassureCategory]]<>\"\",CONCATENATE(Table_SummaryPI[[#This Row],[MeassureCategory]],  \" - \", Table_SummaryPI[[#This Row],[ProposedMeasureCategory]],  \" - \", TEXT(Table_SummaryPI[[#This Row],[Size]],\"#,##0.00\"),\" \",Table_SummaryPI[[#This Row],[SizeUnit]]),\"\")","v":""},{"$f":"SUBSTITUTE(Table_PI[[#This Row],[Measure]],\"     \",\"\",1)","v":""},{"$f":"IF(Table_PI[[#This Row],[List 1]]<>\"\",Table_PI[[#This Row],[List 1]],\"\")","v":""},{"$f":"IF(Table_PI[[#This Row],[List 2]]<>\"\",Table_PI[[#This Row],[List 2]],\"\")","v":""},{"$f":"IF(Table_PI[[#This Row],[List 3]]<>\"\",Table_PI[[#This Row],[List 3]],\"\")","v":""},{"$f":"IF(Table_PI[[#This Row],[Manufacturer]]=\"\",\"\",Table_PI[[#This Row],[Manufacturer]])","v":""},{"$f":"IF(Table_PI[[#This Row],[Model Number]]=\"\",\"\",Table_PI[[#This Row],[Model Number]])","v":""},{"$f":"IF(Table_PI[[#This Row],[Serial Number(s)]]=\"\",\"\",Table_PI[[#This Row],[Serial Number(s)]])","v":""},null,{"$f":"IF(Table_PI[[#This Row],[Size]]=\"\",\"\",Table_PI[[#This Row],[Size]])","v":""},null,{"$f":"IFERROR(IF(AND(MeasureCalc(Table_PI[[#This Row],[Hide:\nFormula Name]],Table_SummaryPI[[#This Row],[Quantity]],Table_PI[[#This Row],[List 1]],Table_PI[[#This Row],[List 2]],Table_PI[[#This Row],[List 3]],Table_PI[[#This Row],[Size]],Table_PI[[#This Row],[Input 1]],Table_PI[[#This Row],[Input 2]],Table_PI[[#This Row],[Input 3]],Table_PI[[#This Row],[Input 4]],'Customer Information'!$AR$12,100,ROW())<>0,MeasureCalc(Table_PI[[#This Row],[Hide:\nFormula Name]],Table_SummaryPI[[#This Row],[Quantity]],Table_PI[[#This Row],[List 1]],Table_PI[[#This Row],[List 2]],Table_PI[[#This Row],[List 3]],Table_PI[[#This Row],[Size]],Table_PI[[#This Row],[Input 1]],Table_PI[[#This Row],[Input 2]],Table_PI[[#This Row],[Input 3]],Table_PI[[#This Row],[Input 4]],'Customer Information'!$AR$12,100,ROW())<>\"No Rebate\"),MeasureCalc(Table_PI[[#This Row],[Hide:\nFormula Name]],Table_SummaryPI[[#This Row],[Quantity]],Table_PI[[#This Row],[List 1]],Table_PI[[#This Row],[List 2]],Table_PI[[#This Row],[List 3]],Table_PI[[#This Row],[Size]],Table_PI[[#This Row],[Input 1]],Table_PI[[#This Row],[Input 2]],Table_PI[[#This Row],[Input 3]],Table_PI[[#This Row],[Input 4]],'Customer Information'!$AR$12,100,ROW()),\"\"),\"\")","v":""},{"$f":"IF(Table_PI[[#This Row],[Input 1]]<>\"\",Table_PI[[#This Row],[Input 1]],\"\")","v":""},null,{"$f":"IFERROR(IF(AND(MeasureCalc(Table_PI[[#This Row],[Hide:\nFormula Name]],Table_SummaryPI[[#This Row],[Quantity]],Table_PI[[#This Row],[List 1]],Table_PI[[#This Row],[List 2]],Table_PI[[#This Row],[List 3]],Table_PI[[#This Row],[Size]],Table_PI[[#This Row],[Input 1]],Table_PI[[#This Row],[Input 2]],Table_PI[[#This Row],[Input 3]],Table_PI[[#This Row],[Input 4]],'Customer Information'!$AR$12,101,ROW())<>0,MeasureCalc(Table_PI[[#This Row],[Hide:\nFormula Name]],Table_SummaryPI[[#This Row],[Quantity]],Table_PI[[#This Row],[List 1]],Table_PI[[#This Row],[List 2]],Table_PI[[#This Row],[List 3]],Table_PI[[#This Row],[Size]],Table_PI[[#This Row],[Input 1]],Table_PI[[#This Row],[Input 2]],Table_PI[[#This Row],[Input 3]],Table_PI[[#This Row],[Input 4]],'Customer Information'!$AR$12,101,ROW())<>\"No Rebate\"),MeasureCalc(Table_PI[[#This Row],[Hide:\nFormula Name]],Table_SummaryPI[[#This Row],[Quantity]],Table_PI[[#This Row],[List 1]],Table_PI[[#This Row],[List 2]],Table_PI[[#This Row],[List 3]],Table_PI[[#This Row],[Size]],Table_PI[[#This Row],[Input 1]],Table_PI[[#This Row],[Input 2]],Table_PI[[#This Row],[Input 3]],Table_PI[[#This Row],[Input 4]],'Customer Information'!$AR$12,101,ROW()),\"\"),\"\")","v":""},{"$f":"IF(Table_PI[[#This Row],[Input 2]]<>\"\",Table_PI[[#This Row],[Input 2]],\"\")","v":""},null,{"$f":"IFERROR(IF(AND(MeasureCalc(Table_PI[[#This Row],[Hide:\nFormula Name]],Table_SummaryPI[[#This Row],[Quantity]],Table_PI[[#This Row],[List 1]],Table_PI[[#This Row],[List 2]],Table_PI[[#This Row],[List 3]],Table_PI[[#This Row],[Size]],Table_PI[[#This Row],[Input 1]],Table_PI[[#This Row],[Input 2]],Table_PI[[#This Row],[Input 3]],Table_PI[[#This Row],[Input 4]],'Customer Information'!$AR$12,102,ROW())<>0,MeasureCalc(Table_PI[[#This Row],[Hide:\nFormula Name]],Table_SummaryPI[[#This Row],[Quantity]],Table_PI[[#This Row],[List 1]],Table_PI[[#This Row],[List 2]],Table_PI[[#This Row],[List 3]],Table_PI[[#This Row],[Size]],Table_PI[[#This Row],[Input 1]],Table_PI[[#This Row],[Input 2]],Table_PI[[#This Row],[Input 3]],Table_PI[[#This Row],[Input 4]],'Customer Information'!$AR$12,102,ROW())<>\"No Rebate\"),MeasureCalc(Table_PI[[#This Row],[Hide:\nFormula Name]],Table_SummaryPI[[#This Row],[Quantity]],Table_PI[[#This Row],[List 1]],Table_PI[[#This Row],[List 2]],Table_PI[[#This Row],[List 3]],Table_PI[[#This Row],[Size]],Table_PI[[#This Row],[Input 1]],Table_PI[[#This Row],[Input 2]],Table_PI[[#This Row],[Input 3]],Table_PI[[#This Row],[Input 4]],'Customer Information'!$AR$12,102,ROW()),\"\"),\"\")","v":""},{"$f":"IF(Table_PI[[#This Row],[Input 3]]<>\"\",Table_PI[[#This Row],[Input 3]],\"\")","v":""},null,{"$f":"IFERROR(IF(AND(MeasureCalc(Table_PI[[#This Row],[Hide:\nFormula Name]],Table_SummaryPI[[#This Row],[Quantity]],Table_PI[[#This Row],[List 1]],Table_PI[[#This Row],[List 2]],Table_PI[[#This Row],[List 3]],Table_PI[[#This Row],[Size]],Table_PI[[#This Row],[Input 1]],Table_PI[[#This Row],[Input 2]],Table_PI[[#This Row],[Input 3]],Table_PI[[#This Row],[Input 4]],'Customer Information'!$AR$12,103,ROW())<>0,MeasureCalc(Table_PI[[#This Row],[Hide:\nFormula Name]],Table_SummaryPI[[#This Row],[Quantity]],Table_PI[[#This Row],[List 1]],Table_PI[[#This Row],[List 2]],Table_PI[[#This Row],[List 3]],Table_PI[[#This Row],[Size]],Table_PI[[#This Row],[Input 1]],Table_PI[[#This Row],[Input 2]],Table_PI[[#This Row],[Input 3]],Table_PI[[#This Row],[Input 4]],'Customer Information'!$AR$12,103,ROW())<>\"No Rebate\"),MeasureCalc(Table_PI[[#This Row],[Hide:\nFormula Name]],Table_SummaryPI[[#This Row],[Quantity]],Table_PI[[#This Row],[List 1]],Table_PI[[#This Row],[List 2]],Table_PI[[#This Row],[List 3]],Table_PI[[#This Row],[Size]],Table_PI[[#This Row],[Input 1]],Table_PI[[#This Row],[Input 2]],Table_PI[[#This Row],[Input 3]],Table_PI[[#This Row],[Input 4]],'Customer Information'!$AR$12,103,ROW()),\"\"),\"\")","v":""},{"$f":"IF(Table_PI[[#This Row],[Input 4]]<>\"\",Table_PI[[#This Row],[Input 4]],\"\")","v":""},{"$f":"IF(Table_PI[[#This Row],[Quantity]]=\"\",\"\",Table_PI[[#This Row],[Quantity]])","v":""},{"$f":"IF(Table_PI[[#This Row],[Notes]]=\"\",\"\",Table_PI[[#This Row],[Notes]])","v":""},{"$f":"IF(OR(Table_PI[[#This Row],[Hide:\nBaseline kWh]]=\"\",Table_PI[[#This Row],[Hide:\nBaseline kWh]]=0),\"\",Table_PI[[#This Row],[Hide:\nBaseline kWh]])","v":""},{"$f":"IF(OR(Table_PI[[#This Row],[Hide:\nBaseline kW]]=\"\",Table_PI[[#This Row],[Hide:\nBaseline kW]]=0),\"\",Table_PI[[#This Row],[Hide:\nBaseline kW]])","v":""},{"$f":"IF(OR(Table_PI[[#This Row],[Hide:\nProposed kWh]]=\"\",Table_PI[[#This Row],[Hide:\nProposed kWh]]=0),\"\",Table_PI[[#This Row],[Hide:\nProposed kWh]])","v":""},{"$f":"IF(OR(Table_PI[[#This Row],[Hide:\nProposed kW]]=\"\",Table_PI[[#This Row],[Hide:\nProposed kW]]=0),\"\",Table_PI[[#This Row],[Hide:\nProposed kW]])","v":""},{"$f":"IF(OR(Table_PI[[#This Row],[Rebate]]=\"\",Table_PI[[#This Row],[Rebate]]=0),\"\",Table_PI[[#This Row],[Rebate]])","v":""},{"$f":"IF(OR(Table_PI[[#This Row],[Hide:\nIncremental Cost]]=\"\",Table_PI[[#This Row],[Hide:\nIncremental Cost]]=0),\"\",Table_PI[[#This Row],[Hide:\nIncremental Cost]])","v":""},{"$f":"IFERROR(IF(Table_SummaryPI[[#This Row],[kWhSavings]]=\"\",\"\",ROUND(Table_SummaryPI[[#This Row],[kWhSavings]]/$AG$401*'Customer Information'!$BC$17,2)),0)","v":""},{"$f":"IF(OR(Table_PI[[#This Row],[Annual kWh]]=\"\",Table_PI[[#This Row],[Annual kWh]]=0),\"\",Table_PI[[#This Row],[Annual kWh]])","v":""},{"$f":"IF(OR(Table_PI[[#This Row],[Peak kW]]=\"\",Table_PI[[#This Row],[Peak kW]]=0),\"\",Table_PI[[#This Row],[Peak kW]])","v":""},{"$f":"IFERROR(IF(Table_SummaryPI[[#This Row],[kWhSavings]]=\"\",\"\",$AU$9*Table_SummaryPI[[#This Row],[kWhSavings]]),0)","v":""},{"$f":"IFERROR(IF(Table_SummaryPI[[#This Row],[kWhSavings]]=\"\",\"\",$AU$14*Table_SummaryPI[[#This Row],[kWhSavings]]),0)","v":""},{"$f":"IFERROR(IF(Table_SummaryPI[[#This Row],[kWhSavings]]=\"\",\"\",$AU$18*Table_SummaryPI[[#This Row],[kWhSavings]]),0)","v":""},{"$f":"IFERROR(IF(Table_SummaryPI[[#This Row],[kWhSavings]]=\"\",\"\",$AU$22*Table_SummaryPI[[#This Row],[kWhSavings]]),0)","v":""},{"$f":"IFERROR(IF(MeasureCalc(Table_PI[[#This Row],[Hide:\nFormula Name]],Table_SummaryPI[[#This Row],[Quantity]],Table_PI[[#This Row],[List 1]],Table_PI[[#This Row],[List 2]],Table_PI[[#This Row],[List 3]],Table_PI[[#This Row],[Size]],Table_PI[[#This Row],[Input 1]],Table_PI[[#This Row],[Input 2]],Table_PI[[#This Row],[Input 3]],Table_PI[[#This Row],[Input 4]],'Customer Information'!$AR$12,200,ROW())<>\"No Rebate\",MeasureCalc(Table_PI[[#This Row],[Hide:\nFormula Name]],Table_SummaryPI[[#This Row],[Quantity]],Table_PI[[#This Row],[List 1]],Table_PI[[#This Row],[List 2]],Table_PI[[#This Row],[List 3]],Table_PI[[#This Row],[Size]],Table_PI[[#This Row],[Input 1]],Table_PI[[#This Row],[Input 2]],Table_PI[[#This Row],[Input 3]],Table_PI[[#This Row],[Input 4]],'Customer Information'!$AR$12,200,ROW()),\"\"),\"\")","v":""},{"$f":"IFERROR(IF(MeasureCalc(Table_PI[[#This Row],[Hide:\nFormula Name]],Table_SummaryPI[[#This Row],[Quantity]],Table_PI[[#This Row],[List 1]],Table_PI[[#This Row],[List 2]],Table_PI[[#This Row],[List 3]],Table_PI[[#This Row],[Size]],Table_PI[[#This Row],[Input 1]],Table_PI[[#This Row],[Input 2]],Table_PI[[#This Row],[Input 3]],Table_PI[[#This Row],[Input 4]],'Customer Information'!$AR$12,201,ROW())<>\"No Rebate\",MeasureCalc(Table_PI[[#This Row],[Hide:\nFormula Name]],Table_SummaryPI[[#This Row],[Quantity]],Table_PI[[#This Row],[List 1]],Table_PI[[#This Row],[List 2]],Table_PI[[#This Row],[List 3]],Table_PI[[#This Row],[Size]],Table_PI[[#This Row],[Input 1]],Table_PI[[#This Row],[Input 2]],Table_PI[[#This Row],[Input 3]],Table_PI[[#This Row],[Input 4]],'Customer Information'!$AR$12,201,ROW()),\"\"),\"\")","v":""}]
[{"$f":"Table_PI[[#This Row],[Line No.]]","v":""},{"$f":"IF(Table_SummaryPI[[#This Row],[MeassureCategory]]<>\"\",CONCATENATE(Table_SummaryPI[[#This Row],[MeassureCategory]],  \" - \", Table_SummaryPI[[#This Row],[ProposedMeasureCategory]],  \" - \", TEXT(Table_SummaryPI[[#This Row],[Size]],\"#,##0.00\"),\" \",Table_SummaryPI[[#This Row],[SizeUnit]]),\"\")","v":""},{"$f":"SUBSTITUTE(Table_PI[[#This Row],[Measure]],\"     \",\"\",1)","v":""},{"$f":"IF(Table_PI[[#This Row],[List 1]]<>\"\",Table_PI[[#This Row],[List 1]],\"\")","v":""},{"$f":"IF(Table_PI[[#This Row],[List 2]]<>\"\",Table_PI[[#This Row],[List 2]],\"\")","v":""},{"$f":"IF(Table_PI[[#This Row],[List 3]]<>\"\",Table_PI[[#This Row],[List 3]],\"\")","v":""},{"$f":"IF(Table_PI[[#This Row],[Manufacturer]]=\"\",\"\",Table_PI[[#This Row],[Manufacturer]])","v":""},{"$f":"IF(Table_PI[[#This Row],[Model Number]]=\"\",\"\",Table_PI[[#This Row],[Model Number]])","v":""},{"$f":"IF(Table_PI[[#This Row],[Serial Number(s)]]=\"\",\"\",Table_PI[[#This Row],[Serial Number(s)]])","v":""},null,{"$f":"IF(Table_PI[[#This Row],[Size]]=\"\",\"\",Table_PI[[#This Row],[Size]])","v":""},null,{"$f":"IFERROR(IF(AND(MeasureCalc(Table_PI[[#This Row],[Hide:\nFormula Name]],Table_SummaryPI[[#This Row],[Quantity]],Table_PI[[#This Row],[List 1]],Table_PI[[#This Row],[List 2]],Table_PI[[#This Row],[List 3]],Table_PI[[#This Row],[Size]],Table_PI[[#This Row],[Input 1]],Table_PI[[#This Row],[Input 2]],Table_PI[[#This Row],[Input 3]],Table_PI[[#This Row],[Input 4]],'Customer Information'!$AR$12,100,ROW())<>0,MeasureCalc(Table_PI[[#This Row],[Hide:\nFormula Name]],Table_SummaryPI[[#This Row],[Quantity]],Table_PI[[#This Row],[List 1]],Table_PI[[#This Row],[List 2]],Table_PI[[#This Row],[List 3]],Table_PI[[#This Row],[Size]],Table_PI[[#This Row],[Input 1]],Table_PI[[#This Row],[Input 2]],Table_PI[[#This Row],[Input 3]],Table_PI[[#This Row],[Input 4]],'Customer Information'!$AR$12,100,ROW())<>\"No Rebate\"),MeasureCalc(Table_PI[[#This Row],[Hide:\nFormula Name]],Table_SummaryPI[[#This Row],[Quantity]],Table_PI[[#This Row],[List 1]],Table_PI[[#This Row],[List 2]],Table_PI[[#This Row],[List 3]],Table_PI[[#This Row],[Size]],Table_PI[[#This Row],[Input 1]],Table_PI[[#This Row],[Input 2]],Table_PI[[#This Row],[Input 3]],Table_PI[[#This Row],[Input 4]],'Customer Information'!$AR$12,100,ROW()),\"\"),\"\")","v":""},{"$f":"IF(Table_PI[[#This Row],[Input 1]]<>\"\",Table_PI[[#This Row],[Input 1]],\"\")","v":""},null,{"$f":"IFERROR(IF(AND(MeasureCalc(Table_PI[[#This Row],[Hide:\nFormula Name]],Table_SummaryPI[[#This Row],[Quantity]],Table_PI[[#This Row],[List 1]],Table_PI[[#This Row],[List 2]],Table_PI[[#This Row],[List 3]],Table_PI[[#This Row],[Size]],Table_PI[[#This Row],[Input 1]],Table_PI[[#This Row],[Input 2]],Table_PI[[#This Row],[Input 3]],Table_PI[[#This Row],[Input 4]],'Customer Information'!$AR$12,101,ROW())<>0,MeasureCalc(Table_PI[[#This Row],[Hide:\nFormula Name]],Table_SummaryPI[[#This Row],[Quantity]],Table_PI[[#This Row],[List 1]],Table_PI[[#This Row],[List 2]],Table_PI[[#This Row],[List 3]],Table_PI[[#This Row],[Size]],Table_PI[[#This Row],[Input 1]],Table_PI[[#This Row],[Input 2]],Table_PI[[#This Row],[Input 3]],Table_PI[[#This Row],[Input 4]],'Customer Information'!$AR$12,101,ROW())<>\"No Rebate\"),MeasureCalc(Table_PI[[#This Row],[Hide:\nFormula Name]],Table_SummaryPI[[#This Row],[Quantity]],Table_PI[[#This Row],[List 1]],Table_PI[[#This Row],[List 2]],Table_PI[[#This Row],[List 3]],Table_PI[[#This Row],[Size]],Table_PI[[#This Row],[Input 1]],Table_PI[[#This Row],[Input 2]],Table_PI[[#This Row],[Input 3]],Table_PI[[#This Row],[Input 4]],'Customer Information'!$AR$12,101,ROW()),\"\"),\"\")","v":""},{"$f":"IF(Table_PI[[#This Row],[Input 2]]<>\"\",Table_PI[[#This Row],[Input 2]],\"\")","v":""},null,{"$f":"IFERROR(IF(AND(MeasureCalc(Table_PI[[#This Row],[Hide:\nFormula Name]],Table_SummaryPI[[#This Row],[Quantity]],Table_PI[[#This Row],[List 1]],Table_PI[[#This Row],[List 2]],Table_PI[[#This Row],[List 3]],Table_PI[[#This Row],[Size]],Table_PI[[#This Row],[Input 1]],Table_PI[[#This Row],[Input 2]],Table_PI[[#This Row],[Input 3]],Table_PI[[#This Row],[Input 4]],'Customer Information'!$AR$12,102,ROW())<>0,MeasureCalc(Table_PI[[#This Row],[Hide:\nFormula Name]],Table_SummaryPI[[#This Row],[Quantity]],Table_PI[[#This Row],[List 1]],Table_PI[[#This Row],[List 2]],Table_PI[[#This Row],[List 3]],Table_PI[[#This Row],[Size]],Table_PI[[#This Row],[Input 1]],Table_PI[[#This Row],[Input 2]],Table_PI[[#This Row],[Input 3]],Table_PI[[#This Row],[Input 4]],'Customer Information'!$AR$12,102,ROW())<>\"No Rebate\"),MeasureCalc(Table_PI[[#This Row],[Hide:\nFormula Name]],Table_SummaryPI[[#This Row],[Quantity]],Table_PI[[#This Row],[List 1]],Table_PI[[#This Row],[List 2]],Table_PI[[#This Row],[List 3]],Table_PI[[#This Row],[Size]],Table_PI[[#This Row],[Input 1]],Table_PI[[#This Row],[Input 2]],Table_PI[[#This Row],[Input 3]],Table_PI[[#This Row],[Input 4]],'Customer Information'!$AR$12,102,ROW()),\"\"),\"\")","v":""},{"$f":"IF(Table_PI[[#This Row],[Input 3]]<>\"\",Table_PI[[#This Row],[Input 3]],\"\")","v":""},null,{"$f":"IFERROR(IF(AND(MeasureCalc(Table_PI[[#This Row],[Hide:\nFormula Name]],Table_SummaryPI[[#This Row],[Quantity]],Table_PI[[#This Row],[List 1]],Table_PI[[#This Row],[List 2]],Table_PI[[#This Row],[List 3]],Table_PI[[#This Row],[Size]],Table_PI[[#This Row],[Input 1]],Table_PI[[#This Row],[Input 2]],Table_PI[[#This Row],[Input 3]],Table_PI[[#This Row],[Input 4]],'Customer Information'!$AR$12,103,ROW())<>0,MeasureCalc(Table_PI[[#This Row],[Hide:\nFormula Name]],Table_SummaryPI[[#This Row],[Quantity]],Table_PI[[#This Row],[List 1]],Table_PI[[#This Row],[List 2]],Table_PI[[#This Row],[List 3]],Table_PI[[#This Row],[Size]],Table_PI[[#This Row],[Input 1]],Table_PI[[#This Row],[Input 2]],Table_PI[[#This Row],[Input 3]],Table_PI[[#This Row],[Input 4]],'Customer Information'!$AR$12,103,ROW())<>\"No Rebate\"),MeasureCalc(Table_PI[[#This Row],[Hide:\nFormula Name]],Table_SummaryPI[[#This Row],[Quantity]],Table_PI[[#This Row],[List 1]],Table_PI[[#This Row],[List 2]],Table_PI[[#This Row],[List 3]],Table_PI[[#This Row],[Size]],Table_PI[[#This Row],[Input 1]],Table_PI[[#This Row],[Input 2]],Table_PI[[#This Row],[Input 3]],Table_PI[[#This Row],[Input 4]],'Customer Information'!$AR$12,103,ROW()),\"\"),\"\")","v":""},{"$f":"IF(Table_PI[[#This Row],[Input 4]]<>\"\",Table_PI[[#This Row],[Input 4]],\"\")","v":""},{"$f":"IF(Table_PI[[#This Row],[Quantity]]=\"\",\"\",Table_PI[[#This Row],[Quantity]])","v":""},{"$f":"IF(Table_PI[[#This Row],[Notes]]=\"\",\"\",Table_PI[[#This Row],[Notes]])","v":""},{"$f":"IF(OR(Table_PI[[#This Row],[Hide:\nBaseline kWh]]=\"\",Table_PI[[#This Row],[Hide:\nBaseline kWh]]=0),\"\",Table_PI[[#This Row],[Hide:\nBaseline kWh]])","v":""},{"$f":"IF(OR(Table_PI[[#This Row],[Hide:\nBaseline kW]]=\"\",Table_PI[[#This Row],[Hide:\nBaseline kW]]=0),\"\",Table_PI[[#This Row],[Hide:\nBaseline kW]])","v":""},{"$f":"IF(OR(Table_PI[[#This Row],[Hide:\nProposed kWh]]=\"\",Table_PI[[#This Row],[Hide:\nProposed kWh]]=0),\"\",Table_PI[[#This Row],[Hide:\nProposed kWh]])","v":""},{"$f":"IF(OR(Table_PI[[#This Row],[Hide:\nProposed kW]]=\"\",Table_PI[[#This Row],[Hide:\nProposed kW]]=0),\"\",Table_PI[[#This Row],[Hide:\nProposed kW]])","v":""},{"$f":"IF(OR(Table_PI[[#This Row],[Rebate]]=\"\",Table_PI[[#This Row],[Rebate]]=0),\"\",Table_PI[[#This Row],[Rebate]])","v":""},{"$f":"IF(OR(Table_PI[[#This Row],[Hide:\nIncremental Cost]]=\"\",Table_PI[[#This Row],[Hide:\nIncremental Cost]]=0),\"\",Table_PI[[#This Row],[Hide:\nIncremental Cost]])","v":""},{"$f":"IFERROR(IF(Table_SummaryPI[[#This Row],[kWhSavings]]=\"\",\"\",ROUND(Table_SummaryPI[[#This Row],[kWhSavings]]/$AG$401*'Customer Information'!$BC$17,2)),0)","v":""},{"$f":"IF(OR(Table_PI[[#This Row],[Annual kWh]]=\"\",Table_PI[[#This Row],[Annual kWh]]=0),\"\",Table_PI[[#This Row],[Annual kWh]])","v":""},{"$f":"IF(OR(Table_PI[[#This Row],[Peak kW]]=\"\",Table_PI[[#This Row],[Peak kW]]=0),\"\",Table_PI[[#This Row],[Peak kW]])","v":""},{"$f":"IFERROR(IF(Table_SummaryPI[[#This Row],[kWhSavings]]=\"\",\"\",$AU$9*Table_SummaryPI[[#This Row],[kWhSavings]]),0)","v":""},{"$f":"IFERROR(IF(Table_SummaryPI[[#This Row],[kWhSavings]]=\"\",\"\",$AU$14*Table_SummaryPI[[#This Row],[kWhSavings]]),0)","v":""},{"$f":"IFERROR(IF(Table_SummaryPI[[#This Row],[kWhSavings]]=\"\",\"\",$AU$18*Table_SummaryPI[[#This Row],[kWhSavings]]),0)","v":""},{"$f":"IFERROR(IF(Table_SummaryPI[[#This Row],[kWhSavings]]=\"\",\"\",$AU$22*Table_SummaryPI[[#This Row],[kWhSavings]]),0)","v":""},{"$f":"IFERROR(IF(MeasureCalc(Table_PI[[#This Row],[Hide:\nFormula Name]],Table_SummaryPI[[#This Row],[Quantity]],Table_PI[[#This Row],[List 1]],Table_PI[[#This Row],[List 2]],Table_PI[[#This Row],[List 3]],Table_PI[[#This Row],[Size]],Table_PI[[#This Row],[Input 1]],Table_PI[[#This Row],[Input 2]],Table_PI[[#This Row],[Input 3]],Table_PI[[#This Row],[Input 4]],'Customer Information'!$AR$12,200,ROW())<>\"No Rebate\",MeasureCalc(Table_PI[[#This Row],[Hide:\nFormula Name]],Table_SummaryPI[[#This Row],[Quantity]],Table_PI[[#This Row],[List 1]],Table_PI[[#This Row],[List 2]],Table_PI[[#This Row],[List 3]],Table_PI[[#This Row],[Size]],Table_PI[[#This Row],[Input 1]],Table_PI[[#This Row],[Input 2]],Table_PI[[#This Row],[Input 3]],Table_PI[[#This Row],[Input 4]],'Customer Information'!$AR$12,200,ROW()),\"\"),\"\")","v":""},{"$f":"IFERROR(IF(MeasureCalc(Table_PI[[#This Row],[Hide:\nFormula Name]],Table_SummaryPI[[#This Row],[Quantity]],Table_PI[[#This Row],[List 1]],Table_PI[[#This Row],[List 2]],Table_PI[[#This Row],[List 3]],Table_PI[[#This Row],[Size]],Table_PI[[#This Row],[Input 1]],Table_PI[[#This Row],[Input 2]],Table_PI[[#This Row],[Input 3]],Table_PI[[#This Row],[Input 4]],'Customer Information'!$AR$12,201,ROW())<>\"No Rebate\",MeasureCalc(Table_PI[[#This Row],[Hide:\nFormula Name]],Table_SummaryPI[[#This Row],[Quantity]],Table_PI[[#This Row],[List 1]],Table_PI[[#This Row],[List 2]],Table_PI[[#This Row],[List 3]],Table_PI[[#This Row],[Size]],Table_PI[[#This Row],[Input 1]],Table_PI[[#This Row],[Input 2]],Table_PI[[#This Row],[Input 3]],Table_PI[[#This Row],[Input 4]],'Customer Information'!$AR$12,201,ROW()),\"\"),\"\")","v":""}]
[{"$f":"Table_PI[[#This Row],[Line No.]]","v":""},{"$f":"IF(Table_SummaryPI[[#This Row],[MeassureCategory]]<>\"\",CONCATENATE(Table_SummaryPI[[#This Row],[MeassureCategory]],  \" - \", Table_SummaryPI[[#This Row],[ProposedMeasureCategory]],  \" - \", TEXT(Table_SummaryPI[[#This Row],[Size]],\"#,##0.00\"),\" \",Table_SummaryPI[[#This Row],[SizeUnit]]),\"\")","v":""},{"$f":"SUBSTITUTE(Table_PI[[#This Row],[Measure]],\"     \",\"\",1)","v":""},{"$f":"IF(Table_PI[[#This Row],[List 1]]<>\"\",Table_PI[[#This Row],[List 1]],\"\")","v":""},{"$f":"IF(Table_PI[[#This Row],[List 2]]<>\"\",Table_PI[[#This Row],[List 2]],\"\")","v":""},{"$f":"IF(Table_PI[[#This Row],[List 3]]<>\"\",Table_PI[[#This Row],[List 3]],\"\")","v":""},{"$f":"IF(Table_PI[[#This Row],[Manufacturer]]=\"\",\"\",Table_PI[[#This Row],[Manufacturer]])","v":""},{"$f":"IF(Table_PI[[#This Row],[Model Number]]=\"\",\"\",Table_PI[[#This Row],[Model Number]])","v":""},{"$f":"IF(Table_PI[[#This Row],[Serial Number(s)]]=\"\",\"\",Table_PI[[#This Row],[Serial Number(s)]])","v":""},null,{"$f":"IF(Table_PI[[#This Row],[Size]]=\"\",\"\",Table_PI[[#This Row],[Size]])","v":""},null,{"$f":"IFERROR(IF(AND(MeasureCalc(Table_PI[[#This Row],[Hide:\nFormula Name]],Table_SummaryPI[[#This Row],[Quantity]],Table_PI[[#This Row],[List 1]],Table_PI[[#This Row],[List 2]],Table_PI[[#This Row],[List 3]],Table_PI[[#This Row],[Size]],Table_PI[[#This Row],[Input 1]],Table_PI[[#This Row],[Input 2]],Table_PI[[#This Row],[Input 3]],Table_PI[[#This Row],[Input 4]],'Customer Information'!$AR$12,100,ROW())<>0,MeasureCalc(Table_PI[[#This Row],[Hide:\nFormula Name]],Table_SummaryPI[[#This Row],[Quantity]],Table_PI[[#This Row],[List 1]],Table_PI[[#This Row],[List 2]],Table_PI[[#This Row],[List 3]],Table_PI[[#This Row],[Size]],Table_PI[[#This Row],[Input 1]],Table_PI[[#This Row],[Input 2]],Table_PI[[#This Row],[Input 3]],Table_PI[[#This Row],[Input 4]],'Customer Information'!$AR$12,100,ROW())<>\"No Rebate\"),MeasureCalc(Table_PI[[#This Row],[Hide:\nFormula Name]],Table_SummaryPI[[#This Row],[Quantity]],Table_PI[[#This Row],[List 1]],Table_PI[[#This Row],[List 2]],Table_PI[[#This Row],[List 3]],Table_PI[[#This Row],[Size]],Table_PI[[#This Row],[Input 1]],Table_PI[[#This Row],[Input 2]],Table_PI[[#This Row],[Input 3]],Table_PI[[#This Row],[Input 4]],'Customer Information'!$AR$12,100,ROW()),\"\"),\"\")","v":""},{"$f":"IF(Table_PI[[#This Row],[Input 1]]<>\"\",Table_PI[[#This Row],[Input 1]],\"\")","v":""},null,{"$f":"IFERROR(IF(AND(MeasureCalc(Table_PI[[#This Row],[Hide:\nFormula Name]],Table_SummaryPI[[#This Row],[Quantity]],Table_PI[[#This Row],[List 1]],Table_PI[[#This Row],[List 2]],Table_PI[[#This Row],[List 3]],Table_PI[[#This Row],[Size]],Table_PI[[#This Row],[Input 1]],Table_PI[[#This Row],[Input 2]],Table_PI[[#This Row],[Input 3]],Table_PI[[#This Row],[Input 4]],'Customer Information'!$AR$12,101,ROW())<>0,MeasureCalc(Table_PI[[#This Row],[Hide:\nFormula Name]],Table_SummaryPI[[#This Row],[Quantity]],Table_PI[[#This Row],[List 1]],Table_PI[[#This Row],[List 2]],Table_PI[[#This Row],[List 3]],Table_PI[[#This Row],[Size]],Table_PI[[#This Row],[Input 1]],Table_PI[[#This Row],[Input 2]],Table_PI[[#This Row],[Input 3]],Table_PI[[#This Row],[Input 4]],'Customer Information'!$AR$12,101,ROW())<>\"No Rebate\"),MeasureCalc(Table_PI[[#This Row],[Hide:\nFormula Name]],Table_SummaryPI[[#This Row],[Quantity]],Table_PI[[#This Row],[List 1]],Table_PI[[#This Row],[List 2]],Table_PI[[#This Row],[List 3]],Table_PI[[#This Row],[Size]],Table_PI[[#This Row],[Input 1]],Table_PI[[#This Row],[Input 2]],Table_PI[[#This Row],[Input 3]],Table_PI[[#This Row],[Input 4]],'Customer Information'!$AR$12,101,ROW()),\"\"),\"\")","v":""},{"$f":"IF(Table_PI[[#This Row],[Input 2]]<>\"\",Table_PI[[#This Row],[Input 2]],\"\")","v":""},null,{"$f":"IFERROR(IF(AND(MeasureCalc(Table_PI[[#This Row],[Hide:\nFormula Name]],Table_SummaryPI[[#This Row],[Quantity]],Table_PI[[#This Row],[List 1]],Table_PI[[#This Row],[List 2]],Table_PI[[#This Row],[List 3]],Table_PI[[#This Row],[Size]],Table_PI[[#This Row],[Input 1]],Table_PI[[#This Row],[Input 2]],Table_PI[[#This Row],[Input 3]],Table_PI[[#This Row],[Input 4]],'Customer Information'!$AR$12,102,ROW())<>0,MeasureCalc(Table_PI[[#This Row],[Hide:\nFormula Name]],Table_SummaryPI[[#This Row],[Quantity]],Table_PI[[#This Row],[List 1]],Table_PI[[#This Row],[List 2]],Table_PI[[#This Row],[List 3]],Table_PI[[#This Row],[Size]],Table_PI[[#This Row],[Input 1]],Table_PI[[#This Row],[Input 2]],Table_PI[[#This Row],[Input 3]],Table_PI[[#This Row],[Input 4]],'Customer Information'!$AR$12,102,ROW())<>\"No Rebate\"),MeasureCalc(Table_PI[[#This Row],[Hide:\nFormula Name]],Table_SummaryPI[[#This Row],[Quantity]],Table_PI[[#This Row],[List 1]],Table_PI[[#This Row],[List 2]],Table_PI[[#This Row],[List 3]],Table_PI[[#This Row],[Size]],Table_PI[[#This Row],[Input 1]],Table_PI[[#This Row],[Input 2]],Table_PI[[#This Row],[Input 3]],Table_PI[[#This Row],[Input 4]],'Customer Information'!$AR$12,102,ROW()),\"\"),\"\")","v":""},{"$f":"IF(Table_PI[[#This Row],[Input 3]]<>\"\",Table_PI[[#This Row],[Input 3]],\"\")","v":""},null,{"$f":"IFERROR(IF(AND(MeasureCalc(Table_PI[[#This Row],[Hide:\nFormula Name]],Table_SummaryPI[[#This Row],[Quantity]],Table_PI[[#This Row],[List 1]],Table_PI[[#This Row],[List 2]],Table_PI[[#This Row],[List 3]],Table_PI[[#This Row],[Size]],Table_PI[[#This Row],[Input 1]],Table_PI[[#This Row],[Input 2]],Table_PI[[#This Row],[Input 3]],Table_PI[[#This Row],[Input 4]],'Customer Information'!$AR$12,103,ROW())<>0,MeasureCalc(Table_PI[[#This Row],[Hide:\nFormula Name]],Table_SummaryPI[[#This Row],[Quantity]],Table_PI[[#This Row],[List 1]],Table_PI[[#This Row],[List 2]],Table_PI[[#This Row],[List 3]],Table_PI[[#This Row],[Size]],Table_PI[[#This Row],[Input 1]],Table_PI[[#This Row],[Input 2]],Table_PI[[#This Row],[Input 3]],Table_PI[[#This Row],[Input 4]],'Customer Information'!$AR$12,103,ROW())<>\"No Rebate\"),MeasureCalc(Table_PI[[#This Row],[Hide:\nFormula Name]],Table_SummaryPI[[#This Row],[Quantity]],Table_PI[[#This Row],[List 1]],Table_PI[[#This Row],[List 2]],Table_PI[[#This Row],[List 3]],Table_PI[[#This Row],[Size]],Table_PI[[#This Row],[Input 1]],Table_PI[[#This Row],[Input 2]],Table_PI[[#This Row],[Input 3]],Table_PI[[#This Row],[Input 4]],'Customer Information'!$AR$12,103,ROW()),\"\"),\"\")","v":""},{"$f":"IF(Table_PI[[#This Row],[Input 4]]<>\"\",Table_PI[[#This Row],[Input 4]],\"\")","v":""},{"$f":"IF(Table_PI[[#This Row],[Quantity]]=\"\",\"\",Table_PI[[#This Row],[Quantity]])","v":""},{"$f":"IF(Table_PI[[#This Row],[Notes]]=\"\",\"\",Table_PI[[#This Row],[Notes]])","v":""},{"$f":"IF(OR(Table_PI[[#This Row],[Hide:\nBaseline kWh]]=\"\",Table_PI[[#This Row],[Hide:\nBaseline kWh]]=0),\"\",Table_PI[[#This Row],[Hide:\nBaseline kWh]])","v":""},{"$f":"IF(OR(Table_PI[[#This Row],[Hide:\nBaseline kW]]=\"\",Table_PI[[#This Row],[Hide:\nBaseline kW]]=0),\"\",Table_PI[[#This Row],[Hide:\nBaseline kW]])","v":""},{"$f":"IF(OR(Table_PI[[#This Row],[Hide:\nProposed kWh]]=\"\",Table_PI[[#This Row],[Hide:\nProposed kWh]]=0),\"\",Table_PI[[#This Row],[Hide:\nProposed kWh]])","v":""},{"$f":"IF(OR(Table_PI[[#This Row],[Hide:\nProposed kW]]=\"\",Table_PI[[#This Row],[Hide:\nProposed kW]]=0),\"\",Table_PI[[#This Row],[Hide:\nProposed kW]])","v":""},{"$f":"IF(OR(Table_PI[[#This Row],[Rebate]]=\"\",Table_PI[[#This Row],[Rebate]]=0),\"\",Table_PI[[#This Row],[Rebate]])","v":""},{"$f":"IF(OR(Table_PI[[#This Row],[Hide:\nIncremental Cost]]=\"\",Table_PI[[#This Row],[Hide:\nIncremental Cost]]=0),\"\",Table_PI[[#This Row],[Hide:\nIncremental Cost]])","v":""},{"$f":"IFERROR(IF(Table_SummaryPI[[#This Row],[kWhSavings]]=\"\",\"\",ROUND(Table_SummaryPI[[#This Row],[kWhSavings]]/$AG$401*'Customer Information'!$BC$17,2)),0)","v":""},{"$f":"IF(OR(Table_PI[[#This Row],[Annual kWh]]=\"\",Table_PI[[#This Row],[Annual kWh]]=0),\"\",Table_PI[[#This Row],[Annual kWh]])","v":""},{"$f":"IF(OR(Table_PI[[#This Row],[Peak kW]]=\"\",Table_PI[[#This Row],[Peak kW]]=0),\"\",Table_PI[[#This Row],[Peak kW]])","v":""},{"$f":"IFERROR(IF(Table_SummaryPI[[#This Row],[kWhSavings]]=\"\",\"\",$AU$9*Table_SummaryPI[[#This Row],[kWhSavings]]),0)","v":""},{"$f":"IFERROR(IF(Table_SummaryPI[[#This Row],[kWhSavings]]=\"\",\"\",$AU$14*Table_SummaryPI[[#This Row],[kWhSavings]]),0)","v":""},{"$f":"IFERROR(IF(Table_SummaryPI[[#This Row],[kWhSavings]]=\"\",\"\",$AU$18*Table_SummaryPI[[#This Row],[kWhSavings]]),0)","v":""},{"$f":"IFERROR(IF(Table_SummaryPI[[#This Row],[kWhSavings]]=\"\",\"\",$AU$22*Table_SummaryPI[[#This Row],[kWhSavings]]),0)","v":""},{"$f":"IFERROR(IF(MeasureCalc(Table_PI[[#This Row],[Hide:\nFormula Name]],Table_SummaryPI[[#This Row],[Quantity]],Table_PI[[#This Row],[List 1]],Table_PI[[#This Row],[List 2]],Table_PI[[#This Row],[List 3]],Table_PI[[#This Row],[Size]],Table_PI[[#This Row],[Input 1]],Table_PI[[#This Row],[Input 2]],Table_PI[[#This Row],[Input 3]],Table_PI[[#This Row],[Input 4]],'Customer Information'!$AR$12,200,ROW())<>\"No Rebate\",MeasureCalc(Table_PI[[#This Row],[Hide:\nFormula Name]],Table_SummaryPI[[#This Row],[Quantity]],Table_PI[[#This Row],[List 1]],Table_PI[[#This Row],[List 2]],Table_PI[[#This Row],[List 3]],Table_PI[[#This Row],[Size]],Table_PI[[#This Row],[Input 1]],Table_PI[[#This Row],[Input 2]],Table_PI[[#This Row],[Input 3]],Table_PI[[#This Row],[Input 4]],'Customer Information'!$AR$12,200,ROW()),\"\"),\"\")","v":""},{"$f":"IFERROR(IF(MeasureCalc(Table_PI[[#This Row],[Hide:\nFormula Name]],Table_SummaryPI[[#This Row],[Quantity]],Table_PI[[#This Row],[List 1]],Table_PI[[#This Row],[List 2]],Table_PI[[#This Row],[List 3]],Table_PI[[#This Row],[Size]],Table_PI[[#This Row],[Input 1]],Table_PI[[#This Row],[Input 2]],Table_PI[[#This Row],[Input 3]],Table_PI[[#This Row],[Input 4]],'Customer Information'!$AR$12,201,ROW())<>\"No Rebate\",MeasureCalc(Table_PI[[#This Row],[Hide:\nFormula Name]],Table_SummaryPI[[#This Row],[Quantity]],Table_PI[[#This Row],[List 1]],Table_PI[[#This Row],[List 2]],Table_PI[[#This Row],[List 3]],Table_PI[[#This Row],[Size]],Table_PI[[#This Row],[Input 1]],Table_PI[[#This Row],[Input 2]],Table_PI[[#This Row],[Input 3]],Table_PI[[#This Row],[Input 4]],'Customer Information'!$AR$12,201,ROW()),\"\"),\"\")","v":""}]
[{"$f":"Table_PI[[#This Row],[Line No.]]","v":""},{"$f":"IF(Table_SummaryPI[[#This Row],[MeassureCategory]]<>\"\",CONCATENATE(Table_SummaryPI[[#This Row],[MeassureCategory]],  \" - \", Table_SummaryPI[[#This Row],[ProposedMeasureCategory]],  \" - \", TEXT(Table_SummaryPI[[#This Row],[Size]],\"#,##0.00\"),\" \",Table_SummaryPI[[#This Row],[SizeUnit]]),\"\")","v":""},{"$f":"SUBSTITUTE(Table_PI[[#This Row],[Measure]],\"     \",\"\",1)","v":""},{"$f":"IF(Table_PI[[#This Row],[List 1]]<>\"\",Table_PI[[#This Row],[List 1]],\"\")","v":""},{"$f":"IF(Table_PI[[#This Row],[List 2]]<>\"\",Table_PI[[#This Row],[List 2]],\"\")","v":""},{"$f":"IF(Table_PI[[#This Row],[List 3]]<>\"\",Table_PI[[#This Row],[List 3]],\"\")","v":""},{"$f":"IF(Table_PI[[#This Row],[Manufacturer]]=\"\",\"\",Table_PI[[#This Row],[Manufacturer]])","v":""},{"$f":"IF(Table_PI[[#This Row],[Model Number]]=\"\",\"\",Table_PI[[#This Row],[Model Number]])","v":""},{"$f":"IF(Table_PI[[#This Row],[Serial Number(s)]]=\"\",\"\",Table_PI[[#This Row],[Serial Number(s)]])","v":""},null,{"$f":"IF(Table_PI[[#This Row],[Size]]=\"\",\"\",Table_PI[[#This Row],[Size]])","v":""},null,{"$f":"IFERROR(IF(AND(MeasureCalc(Table_PI[[#This Row],[Hide:\nFormula Name]],Table_SummaryPI[[#This Row],[Quantity]],Table_PI[[#This Row],[List 1]],Table_PI[[#This Row],[List 2]],Table_PI[[#This Row],[List 3]],Table_PI[[#This Row],[Size]],Table_PI[[#This Row],[Input 1]],Table_PI[[#This Row],[Input 2]],Table_PI[[#This Row],[Input 3]],Table_PI[[#This Row],[Input 4]],'Customer Information'!$AR$12,100,ROW())<>0,MeasureCalc(Table_PI[[#This Row],[Hide:\nFormula Name]],Table_SummaryPI[[#This Row],[Quantity]],Table_PI[[#This Row],[List 1]],Table_PI[[#This Row],[List 2]],Table_PI[[#This Row],[List 3]],Table_PI[[#This Row],[Size]],Table_PI[[#This Row],[Input 1]],Table_PI[[#This Row],[Input 2]],Table_PI[[#This Row],[Input 3]],Table_PI[[#This Row],[Input 4]],'Customer Information'!$AR$12,100,ROW())<>\"No Rebate\"),MeasureCalc(Table_PI[[#This Row],[Hide:\nFormula Name]],Table_SummaryPI[[#This Row],[Quantity]],Table_PI[[#This Row],[List 1]],Table_PI[[#This Row],[List 2]],Table_PI[[#This Row],[List 3]],Table_PI[[#This Row],[Size]],Table_PI[[#This Row],[Input 1]],Table_PI[[#This Row],[Input 2]],Table_PI[[#This Row],[Input 3]],Table_PI[[#This Row],[Input 4]],'Customer Information'!$AR$12,100,ROW()),\"\"),\"\")","v":""},{"$f":"IF(Table_PI[[#This Row],[Input 1]]<>\"\",Table_PI[[#This Row],[Input 1]],\"\")","v":""},null,{"$f":"IFERROR(IF(AND(MeasureCalc(Table_PI[[#This Row],[Hide:\nFormula Name]],Table_SummaryPI[[#This Row],[Quantity]],Table_PI[[#This Row],[List 1]],Table_PI[[#This Row],[List 2]],Table_PI[[#This Row],[List 3]],Table_PI[[#This Row],[Size]],Table_PI[[#This Row],[Input 1]],Table_PI[[#This Row],[Input 2]],Table_PI[[#This Row],[Input 3]],Table_PI[[#This Row],[Input 4]],'Customer Information'!$AR$12,101,ROW())<>0,MeasureCalc(Table_PI[[#This Row],[Hide:\nFormula Name]],Table_SummaryPI[[#This Row],[Quantity]],Table_PI[[#This Row],[List 1]],Table_PI[[#This Row],[List 2]],Table_PI[[#This Row],[List 3]],Table_PI[[#This Row],[Size]],Table_PI[[#This Row],[Input 1]],Table_PI[[#This Row],[Input 2]],Table_PI[[#This Row],[Input 3]],Table_PI[[#This Row],[Input 4]],'Customer Information'!$AR$12,101,ROW())<>\"No Rebate\"),MeasureCalc(Table_PI[[#This Row],[Hide:\nFormula Name]],Table_SummaryPI[[#This Row],[Quantity]],Table_PI[[#This Row],[List 1]],Table_PI[[#This Row],[List 2]],Table_PI[[#This Row],[List 3]],Table_PI[[#This Row],[Size]],Table_PI[[#This Row],[Input 1]],Table_PI[[#This Row],[Input 2]],Table_PI[[#This Row],[Input 3]],Table_PI[[#This Row],[Input 4]],'Customer Information'!$AR$12,101,ROW()),\"\"),\"\")","v":""},{"$f":"IF(Table_PI[[#This Row],[Input 2]]<>\"\",Table_PI[[#This Row],[Input 2]],\"\")","v":""},null,{"$f":"IFERROR(IF(AND(MeasureCalc(Table_PI[[#This Row],[Hide:\nFormula Name]],Table_SummaryPI[[#This Row],[Quantity]],Table_PI[[#This Row],[List 1]],Table_PI[[#This Row],[List 2]],Table_PI[[#This Row],[List 3]],Table_PI[[#This Row],[Size]],Table_PI[[#This Row],[Input 1]],Table_PI[[#This Row],[Input 2]],Table_PI[[#This Row],[Input 3]],Table_PI[[#This Row],[Input 4]],'Customer Information'!$AR$12,102,ROW())<>0,MeasureCalc(Table_PI[[#This Row],[Hide:\nFormula Name]],Table_SummaryPI[[#This Row],[Quantity]],Table_PI[[#This Row],[List 1]],Table_PI[[#This Row],[List 2]],Table_PI[[#This Row],[List 3]],Table_PI[[#This Row],[Size]],Table_PI[[#This Row],[Input 1]],Table_PI[[#This Row],[Input 2]],Table_PI[[#This Row],[Input 3]],Table_PI[[#This Row],[Input 4]],'Customer Information'!$AR$12,102,ROW())<>\"No Rebate\"),MeasureCalc(Table_PI[[#This Row],[Hide:\nFormula Name]],Table_SummaryPI[[#This Row],[Quantity]],Table_PI[[#This Row],[List 1]],Table_PI[[#This Row],[List 2]],Table_PI[[#This Row],[List 3]],Table_PI[[#This Row],[Size]],Table_PI[[#This Row],[Input 1]],Table_PI[[#This Row],[Input 2]],Table_PI[[#This Row],[Input 3]],Table_PI[[#This Row],[Input 4]],'Customer Information'!$AR$12,102,ROW()),\"\"),\"\")","v":""},{"$f":"IF(Table_PI[[#This Row],[Input 3]]<>\"\",Table_PI[[#This Row],[Input 3]],\"\")","v":""},null,{"$f":"IFERROR(IF(AND(MeasureCalc(Table_PI[[#This Row],[Hide:\nFormula Name]],Table_SummaryPI[[#This Row],[Quantity]],Table_PI[[#This Row],[List 1]],Table_PI[[#This Row],[List 2]],Table_PI[[#This Row],[List 3]],Table_PI[[#This Row],[Size]],Table_PI[[#This Row],[Input 1]],Table_PI[[#This Row],[Input 2]],Table_PI[[#This Row],[Input 3]],Table_PI[[#This Row],[Input 4]],'Customer Information'!$AR$12,103,ROW())<>0,MeasureCalc(Table_PI[[#This Row],[Hide:\nFormula Name]],Table_SummaryPI[[#This Row],[Quantity]],Table_PI[[#This Row],[List 1]],Table_PI[[#This Row],[List 2]],Table_PI[[#This Row],[List 3]],Table_PI[[#This Row],[Size]],Table_PI[[#This Row],[Input 1]],Table_PI[[#This Row],[Input 2]],Table_PI[[#This Row],[Input 3]],Table_PI[[#This Row],[Input 4]],'Customer Information'!$AR$12,103,ROW())<>\"No Rebate\"),MeasureCalc(Table_PI[[#This Row],[Hide:\nFormula Name]],Table_SummaryPI[[#This Row],[Quantity]],Table_PI[[#This Row],[List 1]],Table_PI[[#This Row],[List 2]],Table_PI[[#This Row],[List 3]],Table_PI[[#This Row],[Size]],Table_PI[[#This Row],[Input 1]],Table_PI[[#This Row],[Input 2]],Table_PI[[#This Row],[Input 3]],Table_PI[[#This Row],[Input 4]],'Customer Information'!$AR$12,103,ROW()),\"\"),\"\")","v":""},{"$f":"IF(Table_PI[[#This Row],[Input 4]]<>\"\",Table_PI[[#This Row],[Input 4]],\"\")","v":""},{"$f":"IF(Table_PI[[#This Row],[Quantity]]=\"\",\"\",Table_PI[[#This Row],[Quantity]])","v":""},{"$f":"IF(Table_PI[[#This Row],[Notes]]=\"\",\"\",Table_PI[[#This Row],[Notes]])","v":""},{"$f":"IF(OR(Table_PI[[#This Row],[Hide:\nBaseline kWh]]=\"\",Table_PI[[#This Row],[Hide:\nBaseline kWh]]=0),\"\",Table_PI[[#This Row],[Hide:\nBaseline kWh]])","v":""},{"$f":"IF(OR(Table_PI[[#This Row],[Hide:\nBaseline kW]]=\"\",Table_PI[[#This Row],[Hide:\nBaseline kW]]=0),\"\",Table_PI[[#This Row],[Hide:\nBaseline kW]])","v":""},{"$f":"IF(OR(Table_PI[[#This Row],[Hide:\nProposed kWh]]=\"\",Table_PI[[#This Row],[Hide:\nProposed kWh]]=0),\"\",Table_PI[[#This Row],[Hide:\nProposed kWh]])","v":""},{"$f":"IF(OR(Table_PI[[#This Row],[Hide:\nProposed kW]]=\"\",Table_PI[[#This Row],[Hide:\nProposed kW]]=0),\"\",Table_PI[[#This Row],[Hide:\nProposed kW]])","v":""},{"$f":"IF(OR(Table_PI[[#This Row],[Rebate]]=\"\",Table_PI[[#This Row],[Rebate]]=0),\"\",Table_PI[[#This Row],[Rebate]])","v":""},{"$f":"IF(OR(Table_PI[[#This Row],[Hide:\nIncremental Cost]]=\"\",Table_PI[[#This Row],[Hide:\nIncremental Cost]]=0),\"\",Table_PI[[#This Row],[Hide:\nIncremental Cost]])","v":""},{"$f":"IFERROR(IF(Table_SummaryPI[[#This Row],[kWhSavings]]=\"\",\"\",ROUND(Table_SummaryPI[[#This Row],[kWhSavings]]/$AG$401*'Customer Information'!$BC$17,2)),0)","v":""},{"$f":"IF(OR(Table_PI[[#This Row],[Annual kWh]]=\"\",Table_PI[[#This Row],[Annual kWh]]=0),\"\",Table_PI[[#This Row],[Annual kWh]])","v":""},{"$f":"IF(OR(Table_PI[[#This Row],[Peak kW]]=\"\",Table_PI[[#This Row],[Peak kW]]=0),\"\",Table_PI[[#This Row],[Peak kW]])","v":""},{"$f":"IFERROR(IF(Table_SummaryPI[[#This Row],[kWhSavings]]=\"\",\"\",$AU$9*Table_SummaryPI[[#This Row],[kWhSavings]]),0)","v":""},{"$f":"IFERROR(IF(Table_SummaryPI[[#This Row],[kWhSavings]]=\"\",\"\",$AU$14*Table_SummaryPI[[#This Row],[kWhSavings]]),0)","v":""},{"$f":"IFERROR(IF(Table_SummaryPI[[#This Row],[kWhSavings]]=\"\",\"\",$AU$18*Table_SummaryPI[[#This Row],[kWhSavings]]),0)","v":""},{"$f":"IFERROR(IF(Table_SummaryPI[[#This Row],[kWhSavings]]=\"\",\"\",$AU$22*Table_SummaryPI[[#This Row],[kWhSavings]]),0)","v":""},{"$f":"IFERROR(IF(MeasureCalc(Table_PI[[#This Row],[Hide:\nFormula Name]],Table_SummaryPI[[#This Row],[Quantity]],Table_PI[[#This Row],[List 1]],Table_PI[[#This Row],[List 2]],Table_PI[[#This Row],[List 3]],Table_PI[[#This Row],[Size]],Table_PI[[#This Row],[Input 1]],Table_PI[[#This Row],[Input 2]],Table_PI[[#This Row],[Input 3]],Table_PI[[#This Row],[Input 4]],'Customer Information'!$AR$12,200,ROW())<>\"No Rebate\",MeasureCalc(Table_PI[[#This Row],[Hide:\nFormula Name]],Table_SummaryPI[[#This Row],[Quantity]],Table_PI[[#This Row],[List 1]],Table_PI[[#This Row],[List 2]],Table_PI[[#This Row],[List 3]],Table_PI[[#This Row],[Size]],Table_PI[[#This Row],[Input 1]],Table_PI[[#This Row],[Input 2]],Table_PI[[#This Row],[Input 3]],Table_PI[[#This Row],[Input 4]],'Customer Information'!$AR$12,200,ROW()),\"\"),\"\")","v":""},{"$f":"IFERROR(IF(MeasureCalc(Table_PI[[#This Row],[Hide:\nFormula Name]],Table_SummaryPI[[#This Row],[Quantity]],Table_PI[[#This Row],[List 1]],Table_PI[[#This Row],[List 2]],Table_PI[[#This Row],[List 3]],Table_PI[[#This Row],[Size]],Table_PI[[#This Row],[Input 1]],Table_PI[[#This Row],[Input 2]],Table_PI[[#This Row],[Input 3]],Table_PI[[#This Row],[Input 4]],'Customer Information'!$AR$12,201,ROW())<>\"No Rebate\",MeasureCalc(Table_PI[[#This Row],[Hide:\nFormula Name]],Table_SummaryPI[[#This Row],[Quantity]],Table_PI[[#This Row],[List 1]],Table_PI[[#This Row],[List 2]],Table_PI[[#This Row],[List 3]],Table_PI[[#This Row],[Size]],Table_PI[[#This Row],[Input 1]],Table_PI[[#This Row],[Input 2]],Table_PI[[#This Row],[Input 3]],Table_PI[[#This Row],[Input 4]],'Customer Information'!$AR$12,201,ROW()),\"\"),\"\")","v":""}]
[{"$f":"Table_PI[[#This Row],[Line No.]]","v":""},{"$f":"IF(Table_SummaryPI[[#This Row],[MeassureCategory]]<>\"\",CONCATENATE(Table_SummaryPI[[#This Row],[MeassureCategory]],  \" - \", Table_SummaryPI[[#This Row],[ProposedMeasureCategory]],  \" - \", TEXT(Table_SummaryPI[[#This Row],[Size]],\"#,##0.00\"),\" \",Table_SummaryPI[[#This Row],[SizeUnit]]),\"\")","v":""},{"$f":"SUBSTITUTE(Table_PI[[#This Row],[Measure]],\"     \",\"\",1)","v":""},{"$f":"IF(Table_PI[[#This Row],[List 1]]<>\"\",Table_PI[[#This Row],[List 1]],\"\")","v":""},{"$f":"IF(Table_PI[[#This Row],[List 2]]<>\"\",Table_PI[[#This Row],[List 2]],\"\")","v":""},{"$f":"IF(Table_PI[[#This Row],[List 3]]<>\"\",Table_PI[[#This Row],[List 3]],\"\")","v":""},{"$f":"IF(Table_PI[[#This Row],[Manufacturer]]=\"\",\"\",Table_PI[[#This Row],[Manufacturer]])","v":""},{"$f":"IF(Table_PI[[#This Row],[Model Number]]=\"\",\"\",Table_PI[[#This Row],[Model Number]])","v":""},{"$f":"IF(Table_PI[[#This Row],[Serial Number(s)]]=\"\",\"\",Table_PI[[#This Row],[Serial Number(s)]])","v":""},null,{"$f":"IF(Table_PI[[#This Row],[Size]]=\"\",\"\",Table_PI[[#This Row],[Size]])","v":""},null,{"$f":"IFERROR(IF(AND(MeasureCalc(Table_PI[[#This Row],[Hide:\nFormula Name]],Table_SummaryPI[[#This Row],[Quantity]],Table_PI[[#This Row],[List 1]],Table_PI[[#This Row],[List 2]],Table_PI[[#This Row],[List 3]],Table_PI[[#This Row],[Size]],Table_PI[[#This Row],[Input 1]],Table_PI[[#This Row],[Input 2]],Table_PI[[#This Row],[Input 3]],Table_PI[[#This Row],[Input 4]],'Customer Information'!$AR$12,100,ROW())<>0,MeasureCalc(Table_PI[[#This Row],[Hide:\nFormula Name]],Table_SummaryPI[[#This Row],[Quantity]],Table_PI[[#This Row],[List 1]],Table_PI[[#This Row],[List 2]],Table_PI[[#This Row],[List 3]],Table_PI[[#This Row],[Size]],Table_PI[[#This Row],[Input 1]],Table_PI[[#This Row],[Input 2]],Table_PI[[#This Row],[Input 3]],Table_PI[[#This Row],[Input 4]],'Customer Information'!$AR$12,100,ROW())<>\"No Rebate\"),MeasureCalc(Table_PI[[#This Row],[Hide:\nFormula Name]],Table_SummaryPI[[#This Row],[Quantity]],Table_PI[[#This Row],[List 1]],Table_PI[[#This Row],[List 2]],Table_PI[[#This Row],[List 3]],Table_PI[[#This Row],[Size]],Table_PI[[#This Row],[Input 1]],Table_PI[[#This Row],[Input 2]],Table_PI[[#This Row],[Input 3]],Table_PI[[#This Row],[Input 4]],'Customer Information'!$AR$12,100,ROW()),\"\"),\"\")","v":""},{"$f":"IF(Table_PI[[#This Row],[Input 1]]<>\"\",Table_PI[[#This Row],[Input 1]],\"\")","v":""},null,{"$f":"IFERROR(IF(AND(MeasureCalc(Table_PI[[#This Row],[Hide:\nFormula Name]],Table_SummaryPI[[#This Row],[Quantity]],Table_PI[[#This Row],[List 1]],Table_PI[[#This Row],[List 2]],Table_PI[[#This Row],[List 3]],Table_PI[[#This Row],[Size]],Table_PI[[#This Row],[Input 1]],Table_PI[[#This Row],[Input 2]],Table_PI[[#This Row],[Input 3]],Table_PI[[#This Row],[Input 4]],'Customer Information'!$AR$12,101,ROW())<>0,MeasureCalc(Table_PI[[#This Row],[Hide:\nFormula Name]],Table_SummaryPI[[#This Row],[Quantity]],Table_PI[[#This Row],[List 1]],Table_PI[[#This Row],[List 2]],Table_PI[[#This Row],[List 3]],Table_PI[[#This Row],[Size]],Table_PI[[#This Row],[Input 1]],Table_PI[[#This Row],[Input 2]],Table_PI[[#This Row],[Input 3]],Table_PI[[#This Row],[Input 4]],'Customer Information'!$AR$12,101,ROW())<>\"No Rebate\"),MeasureCalc(Table_PI[[#This Row],[Hide:\nFormula Name]],Table_SummaryPI[[#This Row],[Quantity]],Table_PI[[#This Row],[List 1]],Table_PI[[#This Row],[List 2]],Table_PI[[#This Row],[List 3]],Table_PI[[#This Row],[Size]],Table_PI[[#This Row],[Input 1]],Table_PI[[#This Row],[Input 2]],Table_PI[[#This Row],[Input 3]],Table_PI[[#This Row],[Input 4]],'Customer Information'!$AR$12,101,ROW()),\"\"),\"\")","v":""},{"$f":"IF(Table_PI[[#This Row],[Input 2]]<>\"\",Table_PI[[#This Row],[Input 2]],\"\")","v":""},null,{"$f":"IFERROR(IF(AND(MeasureCalc(Table_PI[[#This Row],[Hide:\nFormula Name]],Table_SummaryPI[[#This Row],[Quantity]],Table_PI[[#This Row],[List 1]],Table_PI[[#This Row],[List 2]],Table_PI[[#This Row],[List 3]],Table_PI[[#This Row],[Size]],Table_PI[[#This Row],[Input 1]],Table_PI[[#This Row],[Input 2]],Table_PI[[#This Row],[Input 3]],Table_PI[[#This Row],[Input 4]],'Customer Information'!$AR$12,102,ROW())<>0,MeasureCalc(Table_PI[[#This Row],[Hide:\nFormula Name]],Table_SummaryPI[[#This Row],[Quantity]],Table_PI[[#This Row],[List 1]],Table_PI[[#This Row],[List 2]],Table_PI[[#This Row],[List 3]],Table_PI[[#This Row],[Size]],Table_PI[[#This Row],[Input 1]],Table_PI[[#This Row],[Input 2]],Table_PI[[#This Row],[Input 3]],Table_PI[[#This Row],[Input 4]],'Customer Information'!$AR$12,102,ROW())<>\"No Rebate\"),MeasureCalc(Table_PI[[#This Row],[Hide:\nFormula Name]],Table_SummaryPI[[#This Row],[Quantity]],Table_PI[[#This Row],[List 1]],Table_PI[[#This Row],[List 2]],Table_PI[[#This Row],[List 3]],Table_PI[[#This Row],[Size]],Table_PI[[#This Row],[Input 1]],Table_PI[[#This Row],[Input 2]],Table_PI[[#This Row],[Input 3]],Table_PI[[#This Row],[Input 4]],'Customer Information'!$AR$12,102,ROW()),\"\"),\"\")","v":""},{"$f":"IF(Table_PI[[#This Row],[Input 3]]<>\"\",Table_PI[[#This Row],[Input 3]],\"\")","v":""},null,{"$f":"IFERROR(IF(AND(MeasureCalc(Table_PI[[#This Row],[Hide:\nFormula Name]],Table_SummaryPI[[#This Row],[Quantity]],Table_PI[[#This Row],[List 1]],Table_PI[[#This Row],[List 2]],Table_PI[[#This Row],[List 3]],Table_PI[[#This Row],[Size]],Table_PI[[#This Row],[Input 1]],Table_PI[[#This Row],[Input 2]],Table_PI[[#This Row],[Input 3]],Table_PI[[#This Row],[Input 4]],'Customer Information'!$AR$12,103,ROW())<>0,MeasureCalc(Table_PI[[#This Row],[Hide:\nFormula Name]],Table_SummaryPI[[#This Row],[Quantity]],Table_PI[[#This Row],[List 1]],Table_PI[[#This Row],[List 2]],Table_PI[[#This Row],[List 3]],Table_PI[[#This Row],[Size]],Table_PI[[#This Row],[Input 1]],Table_PI[[#This Row],[Input 2]],Table_PI[[#This Row],[Input 3]],Table_PI[[#This Row],[Input 4]],'Customer Information'!$AR$12,103,ROW())<>\"No Rebate\"),MeasureCalc(Table_PI[[#This Row],[Hide:\nFormula Name]],Table_SummaryPI[[#This Row],[Quantity]],Table_PI[[#This Row],[List 1]],Table_PI[[#This Row],[List 2]],Table_PI[[#This Row],[List 3]],Table_PI[[#This Row],[Size]],Table_PI[[#This Row],[Input 1]],Table_PI[[#This Row],[Input 2]],Table_PI[[#This Row],[Input 3]],Table_PI[[#This Row],[Input 4]],'Customer Information'!$AR$12,103,ROW()),\"\"),\"\")","v":""},{"$f":"IF(Table_PI[[#This Row],[Input 4]]<>\"\",Table_PI[[#This Row],[Input 4]],\"\")","v":""},{"$f":"IF(Table_PI[[#This Row],[Quantity]]=\"\",\"\",Table_PI[[#This Row],[Quantity]])","v":""},{"$f":"IF(Table_PI[[#This Row],[Notes]]=\"\",\"\",Table_PI[[#This Row],[Notes]])","v":""},{"$f":"IF(OR(Table_PI[[#This Row],[Hide:\nBaseline kWh]]=\"\",Table_PI[[#This Row],[Hide:\nBaseline kWh]]=0),\"\",Table_PI[[#This Row],[Hide:\nBaseline kWh]])","v":""},{"$f":"IF(OR(Table_PI[[#This Row],[Hide:\nBaseline kW]]=\"\",Table_PI[[#This Row],[Hide:\nBaseline kW]]=0),\"\",Table_PI[[#This Row],[Hide:\nBaseline kW]])","v":""},{"$f":"IF(OR(Table_PI[[#This Row],[Hide:\nProposed kWh]]=\"\",Table_PI[[#This Row],[Hide:\nProposed kWh]]=0),\"\",Table_PI[[#This Row],[Hide:\nProposed kWh]])","v":""},{"$f":"IF(OR(Table_PI[[#This Row],[Hide:\nProposed kW]]=\"\",Table_PI[[#This Row],[Hide:\nProposed kW]]=0),\"\",Table_PI[[#This Row],[Hide:\nProposed kW]])","v":""},{"$f":"IF(OR(Table_PI[[#This Row],[Rebate]]=\"\",Table_PI[[#This Row],[Rebate]]=0),\"\",Table_PI[[#This Row],[Rebate]])","v":""},{"$f":"IF(OR(Table_PI[[#This Row],[Hide:\nIncremental Cost]]=\"\",Table_PI[[#This Row],[Hide:\nIncremental Cost]]=0),\"\",Table_PI[[#This Row],[Hide:\nIncremental Cost]])","v":""},{"$f":"IFERROR(IF(Table_SummaryPI[[#This Row],[kWhSavings]]=\"\",\"\",ROUND(Table_SummaryPI[[#This Row],[kWhSavings]]/$AG$401*'Customer Information'!$BC$17,2)),0)","v":""},{"$f":"IF(OR(Table_PI[[#This Row],[Annual kWh]]=\"\",Table_PI[[#This Row],[Annual kWh]]=0),\"\",Table_PI[[#This Row],[Annual kWh]])","v":""},{"$f":"IF(OR(Table_PI[[#This Row],[Peak kW]]=\"\",Table_PI[[#This Row],[Peak kW]]=0),\"\",Table_PI[[#This Row],[Peak kW]])","v":""},{"$f":"IFERROR(IF(Table_SummaryPI[[#This Row],[kWhSavings]]=\"\",\"\",$AU$9*Table_SummaryPI[[#This Row],[kWhSavings]]),0)","v":""},{"$f":"IFERROR(IF(Table_SummaryPI[[#This Row],[kWhSavings]]=\"\",\"\",$AU$14*Table_SummaryPI[[#This Row],[kWhSavings]]),0)","v":""},{"$f":"IFERROR(IF(Table_SummaryPI[[#This Row],[kWhSavings]]=\"\",\"\",$AU$18*Table_SummaryPI[[#This Row],[kWhSavings]]),0)","v":""},{"$f":"IFERROR(IF(Table_SummaryPI[[#This Row],[kWhSavings]]=\"\",\"\",$AU$22*Table_SummaryPI[[#This Row],[kWhSavings]]),0)","v":""},{"$f":"IFERROR(IF(MeasureCalc(Table_PI[[#This Row],[Hide:\nFormula Name]],Table_SummaryPI[[#This Row],[Quantity]],Table_PI[[#This Row],[List 1]],Table_PI[[#This Row],[List 2]],Table_PI[[#This Row],[List 3]],Table_PI[[#This Row],[Size]],Table_PI[[#This Row],[Input 1]],Table_PI[[#This Row],[Input 2]],Table_PI[[#This Row],[Input 3]],Table_PI[[#This Row],[Input 4]],'Customer Information'!$AR$12,200,ROW())<>\"No Rebate\",MeasureCalc(Table_PI[[#This Row],[Hide:\nFormula Name]],Table_SummaryPI[[#This Row],[Quantity]],Table_PI[[#This Row],[List 1]],Table_PI[[#This Row],[List 2]],Table_PI[[#This Row],[List 3]],Table_PI[[#This Row],[Size]],Table_PI[[#This Row],[Input 1]],Table_PI[[#This Row],[Input 2]],Table_PI[[#This Row],[Input 3]],Table_PI[[#This Row],[Input 4]],'Customer Information'!$AR$12,200,ROW()),\"\"),\"\")","v":""},{"$f":"IFERROR(IF(MeasureCalc(Table_PI[[#This Row],[Hide:\nFormula Name]],Table_SummaryPI[[#This Row],[Quantity]],Table_PI[[#This Row],[List 1]],Table_PI[[#This Row],[List 2]],Table_PI[[#This Row],[List 3]],Table_PI[[#This Row],[Size]],Table_PI[[#This Row],[Input 1]],Table_PI[[#This Row],[Input 2]],Table_PI[[#This Row],[Input 3]],Table_PI[[#This Row],[Input 4]],'Customer Information'!$AR$12,201,ROW())<>\"No Rebate\",MeasureCalc(Table_PI[[#This Row],[Hide:\nFormula Name]],Table_SummaryPI[[#This Row],[Quantity]],Table_PI[[#This Row],[List 1]],Table_PI[[#This Row],[List 2]],Table_PI[[#This Row],[List 3]],Table_PI[[#This Row],[Size]],Table_PI[[#This Row],[Input 1]],Table_PI[[#This Row],[Input 2]],Table_PI[[#This Row],[Input 3]],Table_PI[[#This Row],[Input 4]],'Customer Information'!$AR$12,201,ROW()),\"\"),\"\")","v":""}]
[{"$f":"Table_PI[[#This Row],[Line No.]]","v":""},{"$f":"IF(Table_SummaryPI[[#This Row],[MeassureCategory]]<>\"\",CONCATENATE(Table_SummaryPI[[#This Row],[MeassureCategory]],  \" - \", Table_SummaryPI[[#This Row],[ProposedMeasureCategory]],  \" - \", TEXT(Table_SummaryPI[[#This Row],[Size]],\"#,##0.00\"),\" \",Table_SummaryPI[[#This Row],[SizeUnit]]),\"\")","v":""},{"$f":"SUBSTITUTE(Table_PI[[#This Row],[Measure]],\"     \",\"\",1)","v":""},{"$f":"IF(Table_PI[[#This Row],[List 1]]<>\"\",Table_PI[[#This Row],[List 1]],\"\")","v":""},{"$f":"IF(Table_PI[[#This Row],[List 2]]<>\"\",Table_PI[[#This Row],[List 2]],\"\")","v":""},{"$f":"IF(Table_PI[[#This Row],[List 3]]<>\"\",Table_PI[[#This Row],[List 3]],\"\")","v":""},{"$f":"IF(Table_PI[[#This Row],[Manufacturer]]=\"\",\"\",Table_PI[[#This Row],[Manufacturer]])","v":""},{"$f":"IF(Table_PI[[#This Row],[Model Number]]=\"\",\"\",Table_PI[[#This Row],[Model Number]])","v":""},{"$f":"IF(Table_PI[[#This Row],[Serial Number(s)]]=\"\",\"\",Table_PI[[#This Row],[Serial Number(s)]])","v":""},null,{"$f":"IF(Table_PI[[#This Row],[Size]]=\"\",\"\",Table_PI[[#This Row],[Size]])","v":""},null,{"$f":"IFERROR(IF(AND(MeasureCalc(Table_PI[[#This Row],[Hide:\nFormula Name]],Table_SummaryPI[[#This Row],[Quantity]],Table_PI[[#This Row],[List 1]],Table_PI[[#This Row],[List 2]],Table_PI[[#This Row],[List 3]],Table_PI[[#This Row],[Size]],Table_PI[[#This Row],[Input 1]],Table_PI[[#This Row],[Input 2]],Table_PI[[#This Row],[Input 3]],Table_PI[[#This Row],[Input 4]],'Customer Information'!$AR$12,100,ROW())<>0,MeasureCalc(Table_PI[[#This Row],[Hide:\nFormula Name]],Table_SummaryPI[[#This Row],[Quantity]],Table_PI[[#This Row],[List 1]],Table_PI[[#This Row],[List 2]],Table_PI[[#This Row],[List 3]],Table_PI[[#This Row],[Size]],Table_PI[[#This Row],[Input 1]],Table_PI[[#This Row],[Input 2]],Table_PI[[#This Row],[Input 3]],Table_PI[[#This Row],[Input 4]],'Customer Information'!$AR$12,100,ROW())<>\"No Rebate\"),MeasureCalc(Table_PI[[#This Row],[Hide:\nFormula Name]],Table_SummaryPI[[#This Row],[Quantity]],Table_PI[[#This Row],[List 1]],Table_PI[[#This Row],[List 2]],Table_PI[[#This Row],[List 3]],Table_PI[[#This Row],[Size]],Table_PI[[#This Row],[Input 1]],Table_PI[[#This Row],[Input 2]],Table_PI[[#This Row],[Input 3]],Table_PI[[#This Row],[Input 4]],'Customer Information'!$AR$12,100,ROW()),\"\"),\"\")","v":""},{"$f":"IF(Table_PI[[#This Row],[Input 1]]<>\"\",Table_PI[[#This Row],[Input 1]],\"\")","v":""},null,{"$f":"IFERROR(IF(AND(MeasureCalc(Table_PI[[#This Row],[Hide:\nFormula Name]],Table_SummaryPI[[#This Row],[Quantity]],Table_PI[[#This Row],[List 1]],Table_PI[[#This Row],[List 2]],Table_PI[[#This Row],[List 3]],Table_PI[[#This Row],[Size]],Table_PI[[#This Row],[Input 1]],Table_PI[[#This Row],[Input 2]],Table_PI[[#This Row],[Input 3]],Table_PI[[#This Row],[Input 4]],'Customer Information'!$AR$12,101,ROW())<>0,MeasureCalc(Table_PI[[#This Row],[Hide:\nFormula Name]],Table_SummaryPI[[#This Row],[Quantity]],Table_PI[[#This Row],[List 1]],Table_PI[[#This Row],[List 2]],Table_PI[[#This Row],[List 3]],Table_PI[[#This Row],[Size]],Table_PI[[#This Row],[Input 1]],Table_PI[[#This Row],[Input 2]],Table_PI[[#This Row],[Input 3]],Table_PI[[#This Row],[Input 4]],'Customer Information'!$AR$12,101,ROW())<>\"No Rebate\"),MeasureCalc(Table_PI[[#This Row],[Hide:\nFormula Name]],Table_SummaryPI[[#This Row],[Quantity]],Table_PI[[#This Row],[List 1]],Table_PI[[#This Row],[List 2]],Table_PI[[#This Row],[List 3]],Table_PI[[#This Row],[Size]],Table_PI[[#This Row],[Input 1]],Table_PI[[#This Row],[Input 2]],Table_PI[[#This Row],[Input 3]],Table_PI[[#This Row],[Input 4]],'Customer Information'!$AR$12,101,ROW()),\"\"),\"\")","v":""},{"$f":"IF(Table_PI[[#This Row],[Input 2]]<>\"\",Table_PI[[#This Row],[Input 2]],\"\")","v":""},null,{"$f":"IFERROR(IF(AND(MeasureCalc(Table_PI[[#This Row],[Hide:\nFormula Name]],Table_SummaryPI[[#This Row],[Quantity]],Table_PI[[#This Row],[List 1]],Table_PI[[#This Row],[List 2]],Table_PI[[#This Row],[List 3]],Table_PI[[#This Row],[Size]],Table_PI[[#This Row],[Input 1]],Table_PI[[#This Row],[Input 2]],Table_PI[[#This Row],[Input 3]],Table_PI[[#This Row],[Input 4]],'Customer Information'!$AR$12,102,ROW())<>0,MeasureCalc(Table_PI[[#This Row],[Hide:\nFormula Name]],Table_SummaryPI[[#This Row],[Quantity]],Table_PI[[#This Row],[List 1]],Table_PI[[#This Row],[List 2]],Table_PI[[#This Row],[List 3]],Table_PI[[#This Row],[Size]],Table_PI[[#This Row],[Input 1]],Table_PI[[#This Row],[Input 2]],Table_PI[[#This Row],[Input 3]],Table_PI[[#This Row],[Input 4]],'Customer Information'!$AR$12,102,ROW())<>\"No Rebate\"),MeasureCalc(Table_PI[[#This Row],[Hide:\nFormula Name]],Table_SummaryPI[[#This Row],[Quantity]],Table_PI[[#This Row],[List 1]],Table_PI[[#This Row],[List 2]],Table_PI[[#This Row],[List 3]],Table_PI[[#This Row],[Size]],Table_PI[[#This Row],[Input 1]],Table_PI[[#This Row],[Input 2]],Table_PI[[#This Row],[Input 3]],Table_PI[[#This Row],[Input 4]],'Customer Information'!$AR$12,102,ROW()),\"\"),\"\")","v":""},{"$f":"IF(Table_PI[[#This Row],[Input 3]]<>\"\",Table_PI[[#This Row],[Input 3]],\"\")","v":""},null,{"$f":"IFERROR(IF(AND(MeasureCalc(Table_PI[[#This Row],[Hide:\nFormula Name]],Table_SummaryPI[[#This Row],[Quantity]],Table_PI[[#This Row],[List 1]],Table_PI[[#This Row],[List 2]],Table_PI[[#This Row],[List 3]],Table_PI[[#This Row],[Size]],Table_PI[[#This Row],[Input 1]],Table_PI[[#This Row],[Input 2]],Table_PI[[#This Row],[Input 3]],Table_PI[[#This Row],[Input 4]],'Customer Information'!$AR$12,103,ROW())<>0,MeasureCalc(Table_PI[[#This Row],[Hide:\nFormula Name]],Table_SummaryPI[[#This Row],[Quantity]],Table_PI[[#This Row],[List 1]],Table_PI[[#This Row],[List 2]],Table_PI[[#This Row],[List 3]],Table_PI[[#This Row],[Size]],Table_PI[[#This Row],[Input 1]],Table_PI[[#This Row],[Input 2]],Table_PI[[#This Row],[Input 3]],Table_PI[[#This Row],[Input 4]],'Customer Information'!$AR$12,103,ROW())<>\"No Rebate\"),MeasureCalc(Table_PI[[#This Row],[Hide:\nFormula Name]],Table_SummaryPI[[#This Row],[Quantity]],Table_PI[[#This Row],[List 1]],Table_PI[[#This Row],[List 2]],Table_PI[[#This Row],[List 3]],Table_PI[[#This Row],[Size]],Table_PI[[#This Row],[Input 1]],Table_PI[[#This Row],[Input 2]],Table_PI[[#This Row],[Input 3]],Table_PI[[#This Row],[Input 4]],'Customer Information'!$AR$12,103,ROW()),\"\"),\"\")","v":""},{"$f":"IF(Table_PI[[#This Row],[Input 4]]<>\"\",Table_PI[[#This Row],[Input 4]],\"\")","v":""},{"$f":"IF(Table_PI[[#This Row],[Quantity]]=\"\",\"\",Table_PI[[#This Row],[Quantity]])","v":""},{"$f":"IF(Table_PI[[#This Row],[Notes]]=\"\",\"\",Table_PI[[#This Row],[Notes]])","v":""},{"$f":"IF(OR(Table_PI[[#This Row],[Hide:\nBaseline kWh]]=\"\",Table_PI[[#This Row],[Hide:\nBaseline kWh]]=0),\"\",Table_PI[[#This Row],[Hide:\nBaseline kWh]])","v":""},{"$f":"IF(OR(Table_PI[[#This Row],[Hide:\nBaseline kW]]=\"\",Table_PI[[#This Row],[Hide:\nBaseline kW]]=0),\"\",Table_PI[[#This Row],[Hide:\nBaseline kW]])","v":""},{"$f":"IF(OR(Table_PI[[#This Row],[Hide:\nProposed kWh]]=\"\",Table_PI[[#This Row],[Hide:\nProposed kWh]]=0),\"\",Table_PI[[#This Row],[Hide:\nProposed kWh]])","v":""},{"$f":"IF(OR(Table_PI[[#This Row],[Hide:\nProposed kW]]=\"\",Table_PI[[#This Row],[Hide:\nProposed kW]]=0),\"\",Table_PI[[#This Row],[Hide:\nProposed kW]])","v":""},{"$f":"IF(OR(Table_PI[[#This Row],[Rebate]]=\"\",Table_PI[[#This Row],[Rebate]]=0),\"\",Table_PI[[#This Row],[Rebate]])","v":""},{"$f":"IF(OR(Table_PI[[#This Row],[Hide:\nIncremental Cost]]=\"\",Table_PI[[#This Row],[Hide:\nIncremental Cost]]=0),\"\",Table_PI[[#This Row],[Hide:\nIncremental Cost]])","v":""},{"$f":"IFERROR(IF(Table_SummaryPI[[#This Row],[kWhSavings]]=\"\",\"\",ROUND(Table_SummaryPI[[#This Row],[kWhSavings]]/$AG$401*'Customer Information'!$BC$17,2)),0)","v":""},{"$f":"IF(OR(Table_PI[[#This Row],[Annual kWh]]=\"\",Table_PI[[#This Row],[Annual kWh]]=0),\"\",Table_PI[[#This Row],[Annual kWh]])","v":""},{"$f":"IF(OR(Table_PI[[#This Row],[Peak kW]]=\"\",Table_PI[[#This Row],[Peak kW]]=0),\"\",Table_PI[[#This Row],[Peak kW]])","v":""},{"$f":"IFERROR(IF(Table_SummaryPI[[#This Row],[kWhSavings]]=\"\",\"\",$AU$9*Table_SummaryPI[[#This Row],[kWhSavings]]),0)","v":""},{"$f":"IFERROR(IF(Table_SummaryPI[[#This Row],[kWhSavings]]=\"\",\"\",$AU$14*Table_SummaryPI[[#This Row],[kWhSavings]]),0)","v":""},{"$f":"IFERROR(IF(Table_SummaryPI[[#This Row],[kWhSavings]]=\"\",\"\",$AU$18*Table_SummaryPI[[#This Row],[kWhSavings]]),0)","v":""},{"$f":"IFERROR(IF(Table_SummaryPI[[#This Row],[kWhSavings]]=\"\",\"\",$AU$22*Table_SummaryPI[[#This Row],[kWhSavings]]),0)","v":""},{"$f":"IFERROR(IF(MeasureCalc(Table_PI[[#This Row],[Hide:\nFormula Name]],Table_SummaryPI[[#This Row],[Quantity]],Table_PI[[#This Row],[List 1]],Table_PI[[#This Row],[List 2]],Table_PI[[#This Row],[List 3]],Table_PI[[#This Row],[Size]],Table_PI[[#This Row],[Input 1]],Table_PI[[#This Row],[Input 2]],Table_PI[[#This Row],[Input 3]],Table_PI[[#This Row],[Input 4]],'Customer Information'!$AR$12,200,ROW())<>\"No Rebate\",MeasureCalc(Table_PI[[#This Row],[Hide:\nFormula Name]],Table_SummaryPI[[#This Row],[Quantity]],Table_PI[[#This Row],[List 1]],Table_PI[[#This Row],[List 2]],Table_PI[[#This Row],[List 3]],Table_PI[[#This Row],[Size]],Table_PI[[#This Row],[Input 1]],Table_PI[[#This Row],[Input 2]],Table_PI[[#This Row],[Input 3]],Table_PI[[#This Row],[Input 4]],'Customer Information'!$AR$12,200,ROW()),\"\"),\"\")","v":""},{"$f":"IFERROR(IF(MeasureCalc(Table_PI[[#This Row],[Hide:\nFormula Name]],Table_SummaryPI[[#This Row],[Quantity]],Table_PI[[#This Row],[List 1]],Table_PI[[#This Row],[List 2]],Table_PI[[#This Row],[List 3]],Table_PI[[#This Row],[Size]],Table_PI[[#This Row],[Input 1]],Table_PI[[#This Row],[Input 2]],Table_PI[[#This Row],[Input 3]],Table_PI[[#This Row],[Input 4]],'Customer Information'!$AR$12,201,ROW())<>\"No Rebate\",MeasureCalc(Table_PI[[#This Row],[Hide:\nFormula Name]],Table_SummaryPI[[#This Row],[Quantity]],Table_PI[[#This Row],[List 1]],Table_PI[[#This Row],[List 2]],Table_PI[[#This Row],[List 3]],Table_PI[[#This Row],[Size]],Table_PI[[#This Row],[Input 1]],Table_PI[[#This Row],[Input 2]],Table_PI[[#This Row],[Input 3]],Table_PI[[#This Row],[Input 4]],'Customer Information'!$AR$12,201,ROW()),\"\"),\"\")","v":""}]
[{"$f":"Table_PI[[#This Row],[Line No.]]","v":""},{"$f":"IF(Table_SummaryPI[[#This Row],[MeassureCategory]]<>\"\",CONCATENATE(Table_SummaryPI[[#This Row],[MeassureCategory]],  \" - \", Table_SummaryPI[[#This Row],[ProposedMeasureCategory]],  \" - \", TEXT(Table_SummaryPI[[#This Row],[Size]],\"#,##0.00\"),\" \",Table_SummaryPI[[#This Row],[SizeUnit]]),\"\")","v":""},{"$f":"SUBSTITUTE(Table_PI[[#This Row],[Measure]],\"     \",\"\",1)","v":""},{"$f":"IF(Table_PI[[#This Row],[List 1]]<>\"\",Table_PI[[#This Row],[List 1]],\"\")","v":""},{"$f":"IF(Table_PI[[#This Row],[List 2]]<>\"\",Table_PI[[#This Row],[List 2]],\"\")","v":""},{"$f":"IF(Table_PI[[#This Row],[List 3]]<>\"\",Table_PI[[#This Row],[List 3]],\"\")","v":""},{"$f":"IF(Table_PI[[#This Row],[Manufacturer]]=\"\",\"\",Table_PI[[#This Row],[Manufacturer]])","v":""},{"$f":"IF(Table_PI[[#This Row],[Model Number]]=\"\",\"\",Table_PI[[#This Row],[Model Number]])","v":""},{"$f":"IF(Table_PI[[#This Row],[Serial Number(s)]]=\"\",\"\",Table_PI[[#This Row],[Serial Number(s)]])","v":""},null,{"$f":"IF(Table_PI[[#This Row],[Size]]=\"\",\"\",Table_PI[[#This Row],[Size]])","v":""},null,{"$f":"IFERROR(IF(AND(MeasureCalc(Table_PI[[#This Row],[Hide:\nFormula Name]],Table_SummaryPI[[#This Row],[Quantity]],Table_PI[[#This Row],[List 1]],Table_PI[[#This Row],[List 2]],Table_PI[[#This Row],[List 3]],Table_PI[[#This Row],[Size]],Table_PI[[#This Row],[Input 1]],Table_PI[[#This Row],[Input 2]],Table_PI[[#This Row],[Input 3]],Table_PI[[#This Row],[Input 4]],'Customer Information'!$AR$12,100,ROW())<>0,MeasureCalc(Table_PI[[#This Row],[Hide:\nFormula Name]],Table_SummaryPI[[#This Row],[Quantity]],Table_PI[[#This Row],[List 1]],Table_PI[[#This Row],[List 2]],Table_PI[[#This Row],[List 3]],Table_PI[[#This Row],[Size]],Table_PI[[#This Row],[Input 1]],Table_PI[[#This Row],[Input 2]],Table_PI[[#This Row],[Input 3]],Table_PI[[#This Row],[Input 4]],'Customer Information'!$AR$12,100,ROW())<>\"No Rebate\"),MeasureCalc(Table_PI[[#This Row],[Hide:\nFormula Name]],Table_SummaryPI[[#This Row],[Quantity]],Table_PI[[#This Row],[List 1]],Table_PI[[#This Row],[List 2]],Table_PI[[#This Row],[List 3]],Table_PI[[#This Row],[Size]],Table_PI[[#This Row],[Input 1]],Table_PI[[#This Row],[Input 2]],Table_PI[[#This Row],[Input 3]],Table_PI[[#This Row],[Input 4]],'Customer Information'!$AR$12,100,ROW()),\"\"),\"\")","v":""},{"$f":"IF(Table_PI[[#This Row],[Input 1]]<>\"\",Table_PI[[#This Row],[Input 1]],\"\")","v":""},null,{"$f":"IFERROR(IF(AND(MeasureCalc(Table_PI[[#This Row],[Hide:\nFormula Name]],Table_SummaryPI[[#This Row],[Quantity]],Table_PI[[#This Row],[List 1]],Table_PI[[#This Row],[List 2]],Table_PI[[#This Row],[List 3]],Table_PI[[#This Row],[Size]],Table_PI[[#This Row],[Input 1]],Table_PI[[#This Row],[Input 2]],Table_PI[[#This Row],[Input 3]],Table_PI[[#This Row],[Input 4]],'Customer Information'!$AR$12,101,ROW())<>0,MeasureCalc(Table_PI[[#This Row],[Hide:\nFormula Name]],Table_SummaryPI[[#This Row],[Quantity]],Table_PI[[#This Row],[List 1]],Table_PI[[#This Row],[List 2]],Table_PI[[#This Row],[List 3]],Table_PI[[#This Row],[Size]],Table_PI[[#This Row],[Input 1]],Table_PI[[#This Row],[Input 2]],Table_PI[[#This Row],[Input 3]],Table_PI[[#This Row],[Input 4]],'Customer Information'!$AR$12,101,ROW())<>\"No Rebate\"),MeasureCalc(Table_PI[[#This Row],[Hide:\nFormula Name]],Table_SummaryPI[[#This Row],[Quantity]],Table_PI[[#This Row],[List 1]],Table_PI[[#This Row],[List 2]],Table_PI[[#This Row],[List 3]],Table_PI[[#This Row],[Size]],Table_PI[[#This Row],[Input 1]],Table_PI[[#This Row],[Input 2]],Table_PI[[#This Row],[Input 3]],Table_PI[[#This Row],[Input 4]],'Customer Information'!$AR$12,101,ROW()),\"\"),\"\")","v":""},{"$f":"IF(Table_PI[[#This Row],[Input 2]]<>\"\",Table_PI[[#This Row],[Input 2]],\"\")","v":""},null,{"$f":"IFERROR(IF(AND(MeasureCalc(Table_PI[[#This Row],[Hide:\nFormula Name]],Table_SummaryPI[[#This Row],[Quantity]],Table_PI[[#This Row],[List 1]],Table_PI[[#This Row],[List 2]],Table_PI[[#This Row],[List 3]],Table_PI[[#This Row],[Size]],Table_PI[[#This Row],[Input 1]],Table_PI[[#This Row],[Input 2]],Table_PI[[#This Row],[Input 3]],Table_PI[[#This Row],[Input 4]],'Customer Information'!$AR$12,102,ROW())<>0,MeasureCalc(Table_PI[[#This Row],[Hide:\nFormula Name]],Table_SummaryPI[[#This Row],[Quantity]],Table_PI[[#This Row],[List 1]],Table_PI[[#This Row],[List 2]],Table_PI[[#This Row],[List 3]],Table_PI[[#This Row],[Size]],Table_PI[[#This Row],[Input 1]],Table_PI[[#This Row],[Input 2]],Table_PI[[#This Row],[Input 3]],Table_PI[[#This Row],[Input 4]],'Customer Information'!$AR$12,102,ROW())<>\"No Rebate\"),MeasureCalc(Table_PI[[#This Row],[Hide:\nFormula Name]],Table_SummaryPI[[#This Row],[Quantity]],Table_PI[[#This Row],[List 1]],Table_PI[[#This Row],[List 2]],Table_PI[[#This Row],[List 3]],Table_PI[[#This Row],[Size]],Table_PI[[#This Row],[Input 1]],Table_PI[[#This Row],[Input 2]],Table_PI[[#This Row],[Input 3]],Table_PI[[#This Row],[Input 4]],'Customer Information'!$AR$12,102,ROW()),\"\"),\"\")","v":""},{"$f":"IF(Table_PI[[#This Row],[Input 3]]<>\"\",Table_PI[[#This Row],[Input 3]],\"\")","v":""},null,{"$f":"IFERROR(IF(AND(MeasureCalc(Table_PI[[#This Row],[Hide:\nFormula Name]],Table_SummaryPI[[#This Row],[Quantity]],Table_PI[[#This Row],[List 1]],Table_PI[[#This Row],[List 2]],Table_PI[[#This Row],[List 3]],Table_PI[[#This Row],[Size]],Table_PI[[#This Row],[Input 1]],Table_PI[[#This Row],[Input 2]],Table_PI[[#This Row],[Input 3]],Table_PI[[#This Row],[Input 4]],'Customer Information'!$AR$12,103,ROW())<>0,MeasureCalc(Table_PI[[#This Row],[Hide:\nFormula Name]],Table_SummaryPI[[#This Row],[Quantity]],Table_PI[[#This Row],[List 1]],Table_PI[[#This Row],[List 2]],Table_PI[[#This Row],[List 3]],Table_PI[[#This Row],[Size]],Table_PI[[#This Row],[Input 1]],Table_PI[[#This Row],[Input 2]],Table_PI[[#This Row],[Input 3]],Table_PI[[#This Row],[Input 4]],'Customer Information'!$AR$12,103,ROW())<>\"No Rebate\"),MeasureCalc(Table_PI[[#This Row],[Hide:\nFormula Name]],Table_SummaryPI[[#This Row],[Quantity]],Table_PI[[#This Row],[List 1]],Table_PI[[#This Row],[List 2]],Table_PI[[#This Row],[List 3]],Table_PI[[#This Row],[Size]],Table_PI[[#This Row],[Input 1]],Table_PI[[#This Row],[Input 2]],Table_PI[[#This Row],[Input 3]],Table_PI[[#This Row],[Input 4]],'Customer Information'!$AR$12,103,ROW()),\"\"),\"\")","v":""},{"$f":"IF(Table_PI[[#This Row],[Input 4]]<>\"\",Table_PI[[#This Row],[Input 4]],\"\")","v":""},{"$f":"IF(Table_PI[[#This Row],[Quantity]]=\"\",\"\",Table_PI[[#This Row],[Quantity]])","v":""},{"$f":"IF(Table_PI[[#This Row],[Notes]]=\"\",\"\",Table_PI[[#This Row],[Notes]])","v":""},{"$f":"IF(OR(Table_PI[[#This Row],[Hide:\nBaseline kWh]]=\"\",Table_PI[[#This Row],[Hide:\nBaseline kWh]]=0),\"\",Table_PI[[#This Row],[Hide:\nBaseline kWh]])","v":""},{"$f":"IF(OR(Table_PI[[#This Row],[Hide:\nBaseline kW]]=\"\",Table_PI[[#This Row],[Hide:\nBaseline kW]]=0),\"\",Table_PI[[#This Row],[Hide:\nBaseline kW]])","v":""},{"$f":"IF(OR(Table_PI[[#This Row],[Hide:\nProposed kWh]]=\"\",Table_PI[[#This Row],[Hide:\nProposed kWh]]=0),\"\",Table_PI[[#This Row],[Hide:\nProposed kWh]])","v":""},{"$f":"IF(OR(Table_PI[[#This Row],[Hide:\nProposed kW]]=\"\",Table_PI[[#This Row],[Hide:\nProposed kW]]=0),\"\",Table_PI[[#This Row],[Hide:\nProposed kW]])","v":""},{"$f":"IF(OR(Table_PI[[#This Row],[Rebate]]=\"\",Table_PI[[#This Row],[Rebate]]=0),\"\",Table_PI[[#This Row],[Rebate]])","v":""},{"$f":"IF(OR(Table_PI[[#This Row],[Hide:\nIncremental Cost]]=\"\",Table_PI[[#This Row],[Hide:\nIncremental Cost]]=0),\"\",Table_PI[[#This Row],[Hide:\nIncremental Cost]])","v":""},{"$f":"IFERROR(IF(Table_SummaryPI[[#This Row],[kWhSavings]]=\"\",\"\",ROUND(Table_SummaryPI[[#This Row],[kWhSavings]]/$AG$401*'Customer Information'!$BC$17,2)),0)","v":""},{"$f":"IF(OR(Table_PI[[#This Row],[Annual kWh]]=\"\",Table_PI[[#This Row],[Annual kWh]]=0),\"\",Table_PI[[#This Row],[Annual kWh]])","v":""},{"$f":"IF(OR(Table_PI[[#This Row],[Peak kW]]=\"\",Table_PI[[#This Row],[Peak kW]]=0),\"\",Table_PI[[#This Row],[Peak kW]])","v":""},{"$f":"IFERROR(IF(Table_SummaryPI[[#This Row],[kWhSavings]]=\"\",\"\",$AU$9*Table_SummaryPI[[#This Row],[kWhSavings]]),0)","v":""},{"$f":"IFERROR(IF(Table_SummaryPI[[#This Row],[kWhSavings]]=\"\",\"\",$AU$14*Table_SummaryPI[[#This Row],[kWhSavings]]),0)","v":""},{"$f":"IFERROR(IF(Table_SummaryPI[[#This Row],[kWhSavings]]=\"\",\"\",$AU$18*Table_SummaryPI[[#This Row],[kWhSavings]]),0)","v":""},{"$f":"IFERROR(IF(Table_SummaryPI[[#This Row],[kWhSavings]]=\"\",\"\",$AU$22*Table_SummaryPI[[#This Row],[kWhSavings]]),0)","v":""},{"$f":"IFERROR(IF(MeasureCalc(Table_PI[[#This Row],[Hide:\nFormula Name]],Table_SummaryPI[[#This Row],[Quantity]],Table_PI[[#This Row],[List 1]],Table_PI[[#This Row],[List 2]],Table_PI[[#This Row],[List 3]],Table_PI[[#This Row],[Size]],Table_PI[[#This Row],[Input 1]],Table_PI[[#This Row],[Input 2]],Table_PI[[#This Row],[Input 3]],Table_PI[[#This Row],[Input 4]],'Customer Information'!$AR$12,200,ROW())<>\"No Rebate\",MeasureCalc(Table_PI[[#This Row],[Hide:\nFormula Name]],Table_SummaryPI[[#This Row],[Quantity]],Table_PI[[#This Row],[List 1]],Table_PI[[#This Row],[List 2]],Table_PI[[#This Row],[List 3]],Table_PI[[#This Row],[Size]],Table_PI[[#This Row],[Input 1]],Table_PI[[#This Row],[Input 2]],Table_PI[[#This Row],[Input 3]],Table_PI[[#This Row],[Input 4]],'Customer Information'!$AR$12,200,ROW()),\"\"),\"\")","v":""},{"$f":"IFERROR(IF(MeasureCalc(Table_PI[[#This Row],[Hide:\nFormula Name]],Table_SummaryPI[[#This Row],[Quantity]],Table_PI[[#This Row],[List 1]],Table_PI[[#This Row],[List 2]],Table_PI[[#This Row],[List 3]],Table_PI[[#This Row],[Size]],Table_PI[[#This Row],[Input 1]],Table_PI[[#This Row],[Input 2]],Table_PI[[#This Row],[Input 3]],Table_PI[[#This Row],[Input 4]],'Customer Information'!$AR$12,201,ROW())<>\"No Rebate\",MeasureCalc(Table_PI[[#This Row],[Hide:\nFormula Name]],Table_SummaryPI[[#This Row],[Quantity]],Table_PI[[#This Row],[List 1]],Table_PI[[#This Row],[List 2]],Table_PI[[#This Row],[List 3]],Table_PI[[#This Row],[Size]],Table_PI[[#This Row],[Input 1]],Table_PI[[#This Row],[Input 2]],Table_PI[[#This Row],[Input 3]],Table_PI[[#This Row],[Input 4]],'Customer Information'!$AR$12,201,ROW()),\"\"),\"\")","v":""}]
[{"$f":"Table_PI[[#This Row],[Line No.]]","v":""},{"$f":"IF(Table_SummaryPI[[#This Row],[MeassureCategory]]<>\"\",CONCATENATE(Table_SummaryPI[[#This Row],[MeassureCategory]],  \" - \", Table_SummaryPI[[#This Row],[ProposedMeasureCategory]],  \" - \", TEXT(Table_SummaryPI[[#This Row],[Size]],\"#,##0.00\"),\" \",Table_SummaryPI[[#This Row],[SizeUnit]]),\"\")","v":""},{"$f":"SUBSTITUTE(Table_PI[[#This Row],[Measure]],\"     \",\"\",1)","v":""},{"$f":"IF(Table_PI[[#This Row],[List 1]]<>\"\",Table_PI[[#This Row],[List 1]],\"\")","v":""},{"$f":"IF(Table_PI[[#This Row],[List 2]]<>\"\",Table_PI[[#This Row],[List 2]],\"\")","v":""},{"$f":"IF(Table_PI[[#This Row],[List 3]]<>\"\",Table_PI[[#This Row],[List 3]],\"\")","v":""},{"$f":"IF(Table_PI[[#This Row],[Manufacturer]]=\"\",\"\",Table_PI[[#This Row],[Manufacturer]])","v":""},{"$f":"IF(Table_PI[[#This Row],[Model Number]]=\"\",\"\",Table_PI[[#This Row],[Model Number]])","v":""},{"$f":"IF(Table_PI[[#This Row],[Serial Number(s)]]=\"\",\"\",Table_PI[[#This Row],[Serial Number(s)]])","v":""},null,{"$f":"IF(Table_PI[[#This Row],[Size]]=\"\",\"\",Table_PI[[#This Row],[Size]])","v":""},null,{"$f":"IFERROR(IF(AND(MeasureCalc(Table_PI[[#This Row],[Hide:\nFormula Name]],Table_SummaryPI[[#This Row],[Quantity]],Table_PI[[#This Row],[List 1]],Table_PI[[#This Row],[List 2]],Table_PI[[#This Row],[List 3]],Table_PI[[#This Row],[Size]],Table_PI[[#This Row],[Input 1]],Table_PI[[#This Row],[Input 2]],Table_PI[[#This Row],[Input 3]],Table_PI[[#This Row],[Input 4]],'Customer Information'!$AR$12,100,ROW())<>0,MeasureCalc(Table_PI[[#This Row],[Hide:\nFormula Name]],Table_SummaryPI[[#This Row],[Quantity]],Table_PI[[#This Row],[List 1]],Table_PI[[#This Row],[List 2]],Table_PI[[#This Row],[List 3]],Table_PI[[#This Row],[Size]],Table_PI[[#This Row],[Input 1]],Table_PI[[#This Row],[Input 2]],Table_PI[[#This Row],[Input 3]],Table_PI[[#This Row],[Input 4]],'Customer Information'!$AR$12,100,ROW())<>\"No Rebate\"),MeasureCalc(Table_PI[[#This Row],[Hide:\nFormula Name]],Table_SummaryPI[[#This Row],[Quantity]],Table_PI[[#This Row],[List 1]],Table_PI[[#This Row],[List 2]],Table_PI[[#This Row],[List 3]],Table_PI[[#This Row],[Size]],Table_PI[[#This Row],[Input 1]],Table_PI[[#This Row],[Input 2]],Table_PI[[#This Row],[Input 3]],Table_PI[[#This Row],[Input 4]],'Customer Information'!$AR$12,100,ROW()),\"\"),\"\")","v":""},{"$f":"IF(Table_PI[[#This Row],[Input 1]]<>\"\",Table_PI[[#This Row],[Input 1]],\"\")","v":""},null,{"$f":"IFERROR(IF(AND(MeasureCalc(Table_PI[[#This Row],[Hide:\nFormula Name]],Table_SummaryPI[[#This Row],[Quantity]],Table_PI[[#This Row],[List 1]],Table_PI[[#This Row],[List 2]],Table_PI[[#This Row],[List 3]],Table_PI[[#This Row],[Size]],Table_PI[[#This Row],[Input 1]],Table_PI[[#This Row],[Input 2]],Table_PI[[#This Row],[Input 3]],Table_PI[[#This Row],[Input 4]],'Customer Information'!$AR$12,101,ROW())<>0,MeasureCalc(Table_PI[[#This Row],[Hide:\nFormula Name]],Table_SummaryPI[[#This Row],[Quantity]],Table_PI[[#This Row],[List 1]],Table_PI[[#This Row],[List 2]],Table_PI[[#This Row],[List 3]],Table_PI[[#This Row],[Size]],Table_PI[[#This Row],[Input 1]],Table_PI[[#This Row],[Input 2]],Table_PI[[#This Row],[Input 3]],Table_PI[[#This Row],[Input 4]],'Customer Information'!$AR$12,101,ROW())<>\"No Rebate\"),MeasureCalc(Table_PI[[#This Row],[Hide:\nFormula Name]],Table_SummaryPI[[#This Row],[Quantity]],Table_PI[[#This Row],[List 1]],Table_PI[[#This Row],[List 2]],Table_PI[[#This Row],[List 3]],Table_PI[[#This Row],[Size]],Table_PI[[#This Row],[Input 1]],Table_PI[[#This Row],[Input 2]],Table_PI[[#This Row],[Input 3]],Table_PI[[#This Row],[Input 4]],'Customer Information'!$AR$12,101,ROW()),\"\"),\"\")","v":""},{"$f":"IF(Table_PI[[#This Row],[Input 2]]<>\"\",Table_PI[[#This Row],[Input 2]],\"\")","v":""},null,{"$f":"IFERROR(IF(AND(MeasureCalc(Table_PI[[#This Row],[Hide:\nFormula Name]],Table_SummaryPI[[#This Row],[Quantity]],Table_PI[[#This Row],[List 1]],Table_PI[[#This Row],[List 2]],Table_PI[[#This Row],[List 3]],Table_PI[[#This Row],[Size]],Table_PI[[#This Row],[Input 1]],Table_PI[[#This Row],[Input 2]],Table_PI[[#This Row],[Input 3]],Table_PI[[#This Row],[Input 4]],'Customer Information'!$AR$12,102,ROW())<>0,MeasureCalc(Table_PI[[#This Row],[Hide:\nFormula Name]],Table_SummaryPI[[#This Row],[Quantity]],Table_PI[[#This Row],[List 1]],Table_PI[[#This Row],[List 2]],Table_PI[[#This Row],[List 3]],Table_PI[[#This Row],[Size]],Table_PI[[#This Row],[Input 1]],Table_PI[[#This Row],[Input 2]],Table_PI[[#This Row],[Input 3]],Table_PI[[#This Row],[Input 4]],'Customer Information'!$AR$12,102,ROW())<>\"No Rebate\"),MeasureCalc(Table_PI[[#This Row],[Hide:\nFormula Name]],Table_SummaryPI[[#This Row],[Quantity]],Table_PI[[#This Row],[List 1]],Table_PI[[#This Row],[List 2]],Table_PI[[#This Row],[List 3]],Table_PI[[#This Row],[Size]],Table_PI[[#This Row],[Input 1]],Table_PI[[#This Row],[Input 2]],Table_PI[[#This Row],[Input 3]],Table_PI[[#This Row],[Input 4]],'Customer Information'!$AR$12,102,ROW()),\"\"),\"\")","v":""},{"$f":"IF(Table_PI[[#This Row],[Input 3]]<>\"\",Table_PI[[#This Row],[Input 3]],\"\")","v":""},null,{"$f":"IFERROR(IF(AND(MeasureCalc(Table_PI[[#This Row],[Hide:\nFormula Name]],Table_SummaryPI[[#This Row],[Quantity]],Table_PI[[#This Row],[List 1]],Table_PI[[#This Row],[List 2]],Table_PI[[#This Row],[List 3]],Table_PI[[#This Row],[Size]],Table_PI[[#This Row],[Input 1]],Table_PI[[#This Row],[Input 2]],Table_PI[[#This Row],[Input 3]],Table_PI[[#This Row],[Input 4]],'Customer Information'!$AR$12,103,ROW())<>0,MeasureCalc(Table_PI[[#This Row],[Hide:\nFormula Name]],Table_SummaryPI[[#This Row],[Quantity]],Table_PI[[#This Row],[List 1]],Table_PI[[#This Row],[List 2]],Table_PI[[#This Row],[List 3]],Table_PI[[#This Row],[Size]],Table_PI[[#This Row],[Input 1]],Table_PI[[#This Row],[Input 2]],Table_PI[[#This Row],[Input 3]],Table_PI[[#This Row],[Input 4]],'Customer Information'!$AR$12,103,ROW())<>\"No Rebate\"),MeasureCalc(Table_PI[[#This Row],[Hide:\nFormula Name]],Table_SummaryPI[[#This Row],[Quantity]],Table_PI[[#This Row],[List 1]],Table_PI[[#This Row],[List 2]],Table_PI[[#This Row],[List 3]],Table_PI[[#This Row],[Size]],Table_PI[[#This Row],[Input 1]],Table_PI[[#This Row],[Input 2]],Table_PI[[#This Row],[Input 3]],Table_PI[[#This Row],[Input 4]],'Customer Information'!$AR$12,103,ROW()),\"\"),\"\")","v":""},{"$f":"IF(Table_PI[[#This Row],[Input 4]]<>\"\",Table_PI[[#This Row],[Input 4]],\"\")","v":""},{"$f":"IF(Table_PI[[#This Row],[Quantity]]=\"\",\"\",Table_PI[[#This Row],[Quantity]])","v":""},{"$f":"IF(Table_PI[[#This Row],[Notes]]=\"\",\"\",Table_PI[[#This Row],[Notes]])","v":""},{"$f":"IF(OR(Table_PI[[#This Row],[Hide:\nBaseline kWh]]=\"\",Table_PI[[#This Row],[Hide:\nBaseline kWh]]=0),\"\",Table_PI[[#This Row],[Hide:\nBaseline kWh]])","v":""},{"$f":"IF(OR(Table_PI[[#This Row],[Hide:\nBaseline kW]]=\"\",Table_PI[[#This Row],[Hide:\nBaseline kW]]=0),\"\",Table_PI[[#This Row],[Hide:\nBaseline kW]])","v":""},{"$f":"IF(OR(Table_PI[[#This Row],[Hide:\nProposed kWh]]=\"\",Table_PI[[#This Row],[Hide:\nProposed kWh]]=0),\"\",Table_PI[[#This Row],[Hide:\nProposed kWh]])","v":""},{"$f":"IF(OR(Table_PI[[#This Row],[Hide:\nProposed kW]]=\"\",Table_PI[[#This Row],[Hide:\nProposed kW]]=0),\"\",Table_PI[[#This Row],[Hide:\nProposed kW]])","v":""},{"$f":"IF(OR(Table_PI[[#This Row],[Rebate]]=\"\",Table_PI[[#This Row],[Rebate]]=0),\"\",Table_PI[[#This Row],[Rebate]])","v":""},{"$f":"IF(OR(Table_PI[[#This Row],[Hide:\nIncremental Cost]]=\"\",Table_PI[[#This Row],[Hide:\nIncremental Cost]]=0),\"\",Table_PI[[#This Row],[Hide:\nIncremental Cost]])","v":""},{"$f":"IFERROR(IF(Table_SummaryPI[[#This Row],[kWhSavings]]=\"\",\"\",ROUND(Table_SummaryPI[[#This Row],[kWhSavings]]/$AG$401*'Customer Information'!$BC$17,2)),0)","v":""},{"$f":"IF(OR(Table_PI[[#This Row],[Annual kWh]]=\"\",Table_PI[[#This Row],[Annual kWh]]=0),\"\",Table_PI[[#This Row],[Annual kWh]])","v":""},{"$f":"IF(OR(Table_PI[[#This Row],[Peak kW]]=\"\",Table_PI[[#This Row],[Peak kW]]=0),\"\",Table_PI[[#This Row],[Peak kW]])","v":""},{"$f":"IFERROR(IF(Table_SummaryPI[[#This Row],[kWhSavings]]=\"\",\"\",$AU$9*Table_SummaryPI[[#This Row],[kWhSavings]]),0)","v":""},{"$f":"IFERROR(IF(Table_SummaryPI[[#This Row],[kWhSavings]]=\"\",\"\",$AU$14*Table_SummaryPI[[#This Row],[kWhSavings]]),0)","v":""},{"$f":"IFERROR(IF(Table_SummaryPI[[#This Row],[kWhSavings]]=\"\",\"\",$AU$18*Table_SummaryPI[[#This Row],[kWhSavings]]),0)","v":""},{"$f":"IFERROR(IF(Table_SummaryPI[[#This Row],[kWhSavings]]=\"\",\"\",$AU$22*Table_SummaryPI[[#This Row],[kWhSavings]]),0)","v":""},{"$f":"IFERROR(IF(MeasureCalc(Table_PI[[#This Row],[Hide:\nFormula Name]],Table_SummaryPI[[#This Row],[Quantity]],Table_PI[[#This Row],[List 1]],Table_PI[[#This Row],[List 2]],Table_PI[[#This Row],[List 3]],Table_PI[[#This Row],[Size]],Table_PI[[#This Row],[Input 1]],Table_PI[[#This Row],[Input 2]],Table_PI[[#This Row],[Input 3]],Table_PI[[#This Row],[Input 4]],'Customer Information'!$AR$12,200,ROW())<>\"No Rebate\",MeasureCalc(Table_PI[[#This Row],[Hide:\nFormula Name]],Table_SummaryPI[[#This Row],[Quantity]],Table_PI[[#This Row],[List 1]],Table_PI[[#This Row],[List 2]],Table_PI[[#This Row],[List 3]],Table_PI[[#This Row],[Size]],Table_PI[[#This Row],[Input 1]],Table_PI[[#This Row],[Input 2]],Table_PI[[#This Row],[Input 3]],Table_PI[[#This Row],[Input 4]],'Customer Information'!$AR$12,200,ROW()),\"\"),\"\")","v":""},{"$f":"IFERROR(IF(MeasureCalc(Table_PI[[#This Row],[Hide:\nFormula Name]],Table_SummaryPI[[#This Row],[Quantity]],Table_PI[[#This Row],[List 1]],Table_PI[[#This Row],[List 2]],Table_PI[[#This Row],[List 3]],Table_PI[[#This Row],[Size]],Table_PI[[#This Row],[Input 1]],Table_PI[[#This Row],[Input 2]],Table_PI[[#This Row],[Input 3]],Table_PI[[#This Row],[Input 4]],'Customer Information'!$AR$12,201,ROW())<>\"No Rebate\",MeasureCalc(Table_PI[[#This Row],[Hide:\nFormula Name]],Table_SummaryPI[[#This Row],[Quantity]],Table_PI[[#This Row],[List 1]],Table_PI[[#This Row],[List 2]],Table_PI[[#This Row],[List 3]],Table_PI[[#This Row],[Size]],Table_PI[[#This Row],[Input 1]],Table_PI[[#This Row],[Input 2]],Table_PI[[#This Row],[Input 3]],Table_PI[[#This Row],[Input 4]],'Customer Information'!$AR$12,201,ROW()),\"\"),\"\")","v":""}]
[{"$f":"Table_PI[[#This Row],[Line No.]]","v":""},{"$f":"IF(Table_SummaryPI[[#This Row],[MeassureCategory]]<>\"\",CONCATENATE(Table_SummaryPI[[#This Row],[MeassureCategory]],  \" - \", Table_SummaryPI[[#This Row],[ProposedMeasureCategory]],  \" - \", TEXT(Table_SummaryPI[[#This Row],[Size]],\"#,##0.00\"),\" \",Table_SummaryPI[[#This Row],[SizeUnit]]),\"\")","v":""},{"$f":"SUBSTITUTE(Table_PI[[#This Row],[Measure]],\"     \",\"\",1)","v":""},{"$f":"IF(Table_PI[[#This Row],[List 1]]<>\"\",Table_PI[[#This Row],[List 1]],\"\")","v":""},{"$f":"IF(Table_PI[[#This Row],[List 2]]<>\"\",Table_PI[[#This Row],[List 2]],\"\")","v":""},{"$f":"IF(Table_PI[[#This Row],[List 3]]<>\"\",Table_PI[[#This Row],[List 3]],\"\")","v":""},{"$f":"IF(Table_PI[[#This Row],[Manufacturer]]=\"\",\"\",Table_PI[[#This Row],[Manufacturer]])","v":""},{"$f":"IF(Table_PI[[#This Row],[Model Number]]=\"\",\"\",Table_PI[[#This Row],[Model Number]])","v":""},{"$f":"IF(Table_PI[[#This Row],[Serial Number(s)]]=\"\",\"\",Table_PI[[#This Row],[Serial Number(s)]])","v":""},null,{"$f":"IF(Table_PI[[#This Row],[Size]]=\"\",\"\",Table_PI[[#This Row],[Size]])","v":""},null,{"$f":"IFERROR(IF(AND(MeasureCalc(Table_PI[[#This Row],[Hide:\nFormula Name]],Table_SummaryPI[[#This Row],[Quantity]],Table_PI[[#This Row],[List 1]],Table_PI[[#This Row],[List 2]],Table_PI[[#This Row],[List 3]],Table_PI[[#This Row],[Size]],Table_PI[[#This Row],[Input 1]],Table_PI[[#This Row],[Input 2]],Table_PI[[#This Row],[Input 3]],Table_PI[[#This Row],[Input 4]],'Customer Information'!$AR$12,100,ROW())<>0,MeasureCalc(Table_PI[[#This Row],[Hide:\nFormula Name]],Table_SummaryPI[[#This Row],[Quantity]],Table_PI[[#This Row],[List 1]],Table_PI[[#This Row],[List 2]],Table_PI[[#This Row],[List 3]],Table_PI[[#This Row],[Size]],Table_PI[[#This Row],[Input 1]],Table_PI[[#This Row],[Input 2]],Table_PI[[#This Row],[Input 3]],Table_PI[[#This Row],[Input 4]],'Customer Information'!$AR$12,100,ROW())<>\"No Rebate\"),MeasureCalc(Table_PI[[#This Row],[Hide:\nFormula Name]],Table_SummaryPI[[#This Row],[Quantity]],Table_PI[[#This Row],[List 1]],Table_PI[[#This Row],[List 2]],Table_PI[[#This Row],[List 3]],Table_PI[[#This Row],[Size]],Table_PI[[#This Row],[Input 1]],Table_PI[[#This Row],[Input 2]],Table_PI[[#This Row],[Input 3]],Table_PI[[#This Row],[Input 4]],'Customer Information'!$AR$12,100,ROW()),\"\"),\"\")","v":""},{"$f":"IF(Table_PI[[#This Row],[Input 1]]<>\"\",Table_PI[[#This Row],[Input 1]],\"\")","v":""},null,{"$f":"IFERROR(IF(AND(MeasureCalc(Table_PI[[#This Row],[Hide:\nFormula Name]],Table_SummaryPI[[#This Row],[Quantity]],Table_PI[[#This Row],[List 1]],Table_PI[[#This Row],[List 2]],Table_PI[[#This Row],[List 3]],Table_PI[[#This Row],[Size]],Table_PI[[#This Row],[Input 1]],Table_PI[[#This Row],[Input 2]],Table_PI[[#This Row],[Input 3]],Table_PI[[#This Row],[Input 4]],'Customer Information'!$AR$12,101,ROW())<>0,MeasureCalc(Table_PI[[#This Row],[Hide:\nFormula Name]],Table_SummaryPI[[#This Row],[Quantity]],Table_PI[[#This Row],[List 1]],Table_PI[[#This Row],[List 2]],Table_PI[[#This Row],[List 3]],Table_PI[[#This Row],[Size]],Table_PI[[#This Row],[Input 1]],Table_PI[[#This Row],[Input 2]],Table_PI[[#This Row],[Input 3]],Table_PI[[#This Row],[Input 4]],'Customer Information'!$AR$12,101,ROW())<>\"No Rebate\"),MeasureCalc(Table_PI[[#This Row],[Hide:\nFormula Name]],Table_SummaryPI[[#This Row],[Quantity]],Table_PI[[#This Row],[List 1]],Table_PI[[#This Row],[List 2]],Table_PI[[#This Row],[List 3]],Table_PI[[#This Row],[Size]],Table_PI[[#This Row],[Input 1]],Table_PI[[#This Row],[Input 2]],Table_PI[[#This Row],[Input 3]],Table_PI[[#This Row],[Input 4]],'Customer Information'!$AR$12,101,ROW()),\"\"),\"\")","v":""},{"$f":"IF(Table_PI[[#This Row],[Input 2]]<>\"\",Table_PI[[#This Row],[Input 2]],\"\")","v":""},null,{"$f":"IFERROR(IF(AND(MeasureCalc(Table_PI[[#This Row],[Hide:\nFormula Name]],Table_SummaryPI[[#This Row],[Quantity]],Table_PI[[#This Row],[List 1]],Table_PI[[#This Row],[List 2]],Table_PI[[#This Row],[List 3]],Table_PI[[#This Row],[Size]],Table_PI[[#This Row],[Input 1]],Table_PI[[#This Row],[Input 2]],Table_PI[[#This Row],[Input 3]],Table_PI[[#This Row],[Input 4]],'Customer Information'!$AR$12,102,ROW())<>0,MeasureCalc(Table_PI[[#This Row],[Hide:\nFormula Name]],Table_SummaryPI[[#This Row],[Quantity]],Table_PI[[#This Row],[List 1]],Table_PI[[#This Row],[List 2]],Table_PI[[#This Row],[List 3]],Table_PI[[#This Row],[Size]],Table_PI[[#This Row],[Input 1]],Table_PI[[#This Row],[Input 2]],Table_PI[[#This Row],[Input 3]],Table_PI[[#This Row],[Input 4]],'Customer Information'!$AR$12,102,ROW())<>\"No Rebate\"),MeasureCalc(Table_PI[[#This Row],[Hide:\nFormula Name]],Table_SummaryPI[[#This Row],[Quantity]],Table_PI[[#This Row],[List 1]],Table_PI[[#This Row],[List 2]],Table_PI[[#This Row],[List 3]],Table_PI[[#This Row],[Size]],Table_PI[[#This Row],[Input 1]],Table_PI[[#This Row],[Input 2]],Table_PI[[#This Row],[Input 3]],Table_PI[[#This Row],[Input 4]],'Customer Information'!$AR$12,102,ROW()),\"\"),\"\")","v":""},{"$f":"IF(Table_PI[[#This Row],[Input 3]]<>\"\",Table_PI[[#This Row],[Input 3]],\"\")","v":""},null,{"$f":"IFERROR(IF(AND(MeasureCalc(Table_PI[[#This Row],[Hide:\nFormula Name]],Table_SummaryPI[[#This Row],[Quantity]],Table_PI[[#This Row],[List 1]],Table_PI[[#This Row],[List 2]],Table_PI[[#This Row],[List 3]],Table_PI[[#This Row],[Size]],Table_PI[[#This Row],[Input 1]],Table_PI[[#This Row],[Input 2]],Table_PI[[#This Row],[Input 3]],Table_PI[[#This Row],[Input 4]],'Customer Information'!$AR$12,103,ROW())<>0,MeasureCalc(Table_PI[[#This Row],[Hide:\nFormula Name]],Table_SummaryPI[[#This Row],[Quantity]],Table_PI[[#This Row],[List 1]],Table_PI[[#This Row],[List 2]],Table_PI[[#This Row],[List 3]],Table_PI[[#This Row],[Size]],Table_PI[[#This Row],[Input 1]],Table_PI[[#This Row],[Input 2]],Table_PI[[#This Row],[Input 3]],Table_PI[[#This Row],[Input 4]],'Customer Information'!$AR$12,103,ROW())<>\"No Rebate\"),MeasureCalc(Table_PI[[#This Row],[Hide:\nFormula Name]],Table_SummaryPI[[#This Row],[Quantity]],Table_PI[[#This Row],[List 1]],Table_PI[[#This Row],[List 2]],Table_PI[[#This Row],[List 3]],Table_PI[[#This Row],[Size]],Table_PI[[#This Row],[Input 1]],Table_PI[[#This Row],[Input 2]],Table_PI[[#This Row],[Input 3]],Table_PI[[#This Row],[Input 4]],'Customer Information'!$AR$12,103,ROW()),\"\"),\"\")","v":""},{"$f":"IF(Table_PI[[#This Row],[Input 4]]<>\"\",Table_PI[[#This Row],[Input 4]],\"\")","v":""},{"$f":"IF(Table_PI[[#This Row],[Quantity]]=\"\",\"\",Table_PI[[#This Row],[Quantity]])","v":""},{"$f":"IF(Table_PI[[#This Row],[Notes]]=\"\",\"\",Table_PI[[#This Row],[Notes]])","v":""},{"$f":"IF(OR(Table_PI[[#This Row],[Hide:\nBaseline kWh]]=\"\",Table_PI[[#This Row],[Hide:\nBaseline kWh]]=0),\"\",Table_PI[[#This Row],[Hide:\nBaseline kWh]])","v":""},{"$f":"IF(OR(Table_PI[[#This Row],[Hide:\nBaseline kW]]=\"\",Table_PI[[#This Row],[Hide:\nBaseline kW]]=0),\"\",Table_PI[[#This Row],[Hide:\nBaseline kW]])","v":""},{"$f":"IF(OR(Table_PI[[#This Row],[Hide:\nProposed kWh]]=\"\",Table_PI[[#This Row],[Hide:\nProposed kWh]]=0),\"\",Table_PI[[#This Row],[Hide:\nProposed kWh]])","v":""},{"$f":"IF(OR(Table_PI[[#This Row],[Hide:\nProposed kW]]=\"\",Table_PI[[#This Row],[Hide:\nProposed kW]]=0),\"\",Table_PI[[#This Row],[Hide:\nProposed kW]])","v":""},{"$f":"IF(OR(Table_PI[[#This Row],[Rebate]]=\"\",Table_PI[[#This Row],[Rebate]]=0),\"\",Table_PI[[#This Row],[Rebate]])","v":""},{"$f":"IF(OR(Table_PI[[#This Row],[Hide:\nIncremental Cost]]=\"\",Table_PI[[#This Row],[Hide:\nIncremental Cost]]=0),\"\",Table_PI[[#This Row],[Hide:\nIncremental Cost]])","v":""},{"$f":"IFERROR(IF(Table_SummaryPI[[#This Row],[kWhSavings]]=\"\",\"\",ROUND(Table_SummaryPI[[#This Row],[kWhSavings]]/$AG$401*'Customer Information'!$BC$17,2)),0)","v":""},{"$f":"IF(OR(Table_PI[[#This Row],[Annual kWh]]=\"\",Table_PI[[#This Row],[Annual kWh]]=0),\"\",Table_PI[[#This Row],[Annual kWh]])","v":""},{"$f":"IF(OR(Table_PI[[#This Row],[Peak kW]]=\"\",Table_PI[[#This Row],[Peak kW]]=0),\"\",Table_PI[[#This Row],[Peak kW]])","v":""},{"$f":"IFERROR(IF(Table_SummaryPI[[#This Row],[kWhSavings]]=\"\",\"\",$AU$9*Table_SummaryPI[[#This Row],[kWhSavings]]),0)","v":""},{"$f":"IFERROR(IF(Table_SummaryPI[[#This Row],[kWhSavings]]=\"\",\"\",$AU$14*Table_SummaryPI[[#This Row],[kWhSavings]]),0)","v":""},{"$f":"IFERROR(IF(Table_SummaryPI[[#This Row],[kWhSavings]]=\"\",\"\",$AU$18*Table_SummaryPI[[#This Row],[kWhSavings]]),0)","v":""},{"$f":"IFERROR(IF(Table_SummaryPI[[#This Row],[kWhSavings]]=\"\",\"\",$AU$22*Table_SummaryPI[[#This Row],[kWhSavings]]),0)","v":""},{"$f":"IFERROR(IF(MeasureCalc(Table_PI[[#This Row],[Hide:\nFormula Name]],Table_SummaryPI[[#This Row],[Quantity]],Table_PI[[#This Row],[List 1]],Table_PI[[#This Row],[List 2]],Table_PI[[#This Row],[List 3]],Table_PI[[#This Row],[Size]],Table_PI[[#This Row],[Input 1]],Table_PI[[#This Row],[Input 2]],Table_PI[[#This Row],[Input 3]],Table_PI[[#This Row],[Input 4]],'Customer Information'!$AR$12,200,ROW())<>\"No Rebate\",MeasureCalc(Table_PI[[#This Row],[Hide:\nFormula Name]],Table_SummaryPI[[#This Row],[Quantity]],Table_PI[[#This Row],[List 1]],Table_PI[[#This Row],[List 2]],Table_PI[[#This Row],[List 3]],Table_PI[[#This Row],[Size]],Table_PI[[#This Row],[Input 1]],Table_PI[[#This Row],[Input 2]],Table_PI[[#This Row],[Input 3]],Table_PI[[#This Row],[Input 4]],'Customer Information'!$AR$12,200,ROW()),\"\"),\"\")","v":""},{"$f":"IFERROR(IF(MeasureCalc(Table_PI[[#This Row],[Hide:\nFormula Name]],Table_SummaryPI[[#This Row],[Quantity]],Table_PI[[#This Row],[List 1]],Table_PI[[#This Row],[List 2]],Table_PI[[#This Row],[List 3]],Table_PI[[#This Row],[Size]],Table_PI[[#This Row],[Input 1]],Table_PI[[#This Row],[Input 2]],Table_PI[[#This Row],[Input 3]],Table_PI[[#This Row],[Input 4]],'Customer Information'!$AR$12,201,ROW())<>\"No Rebate\",MeasureCalc(Table_PI[[#This Row],[Hide:\nFormula Name]],Table_SummaryPI[[#This Row],[Quantity]],Table_PI[[#This Row],[List 1]],Table_PI[[#This Row],[List 2]],Table_PI[[#This Row],[List 3]],Table_PI[[#This Row],[Size]],Table_PI[[#This Row],[Input 1]],Table_PI[[#This Row],[Input 2]],Table_PI[[#This Row],[Input 3]],Table_PI[[#This Row],[Input 4]],'Customer Information'!$AR$12,201,ROW()),\"\"),\"\")","v":""}]
[{"$f":"Table_PI[[#This Row],[Line No.]]","v":""},{"$f":"IF(Table_SummaryPI[[#This Row],[MeassureCategory]]<>\"\",CONCATENATE(Table_SummaryPI[[#This Row],[MeassureCategory]],  \" - \", Table_SummaryPI[[#This Row],[ProposedMeasureCategory]],  \" - \", TEXT(Table_SummaryPI[[#This Row],[Size]],\"#,##0.00\"),\" \",Table_SummaryPI[[#This Row],[SizeUnit]]),\"\")","v":""},{"$f":"SUBSTITUTE(Table_PI[[#This Row],[Measure]],\"     \",\"\",1)","v":""},{"$f":"IF(Table_PI[[#This Row],[List 1]]<>\"\",Table_PI[[#This Row],[List 1]],\"\")","v":""},{"$f":"IF(Table_PI[[#This Row],[List 2]]<>\"\",Table_PI[[#This Row],[List 2]],\"\")","v":""},{"$f":"IF(Table_PI[[#This Row],[List 3]]<>\"\",Table_PI[[#This Row],[List 3]],\"\")","v":""},{"$f":"IF(Table_PI[[#This Row],[Manufacturer]]=\"\",\"\",Table_PI[[#This Row],[Manufacturer]])","v":""},{"$f":"IF(Table_PI[[#This Row],[Model Number]]=\"\",\"\",Table_PI[[#This Row],[Model Number]])","v":""},{"$f":"IF(Table_PI[[#This Row],[Serial Number(s)]]=\"\",\"\",Table_PI[[#This Row],[Serial Number(s)]])","v":""},null,{"$f":"IF(Table_PI[[#This Row],[Size]]=\"\",\"\",Table_PI[[#This Row],[Size]])","v":""},null,{"$f":"IFERROR(IF(AND(MeasureCalc(Table_PI[[#This Row],[Hide:\nFormula Name]],Table_SummaryPI[[#This Row],[Quantity]],Table_PI[[#This Row],[List 1]],Table_PI[[#This Row],[List 2]],Table_PI[[#This Row],[List 3]],Table_PI[[#This Row],[Size]],Table_PI[[#This Row],[Input 1]],Table_PI[[#This Row],[Input 2]],Table_PI[[#This Row],[Input 3]],Table_PI[[#This Row],[Input 4]],'Customer Information'!$AR$12,100,ROW())<>0,MeasureCalc(Table_PI[[#This Row],[Hide:\nFormula Name]],Table_SummaryPI[[#This Row],[Quantity]],Table_PI[[#This Row],[List 1]],Table_PI[[#This Row],[List 2]],Table_PI[[#This Row],[List 3]],Table_PI[[#This Row],[Size]],Table_PI[[#This Row],[Input 1]],Table_PI[[#This Row],[Input 2]],Table_PI[[#This Row],[Input 3]],Table_PI[[#This Row],[Input 4]],'Customer Information'!$AR$12,100,ROW())<>\"No Rebate\"),MeasureCalc(Table_PI[[#This Row],[Hide:\nFormula Name]],Table_SummaryPI[[#This Row],[Quantity]],Table_PI[[#This Row],[List 1]],Table_PI[[#This Row],[List 2]],Table_PI[[#This Row],[List 3]],Table_PI[[#This Row],[Size]],Table_PI[[#This Row],[Input 1]],Table_PI[[#This Row],[Input 2]],Table_PI[[#This Row],[Input 3]],Table_PI[[#This Row],[Input 4]],'Customer Information'!$AR$12,100,ROW()),\"\"),\"\")","v":""},{"$f":"IF(Table_PI[[#This Row],[Input 1]]<>\"\",Table_PI[[#This Row],[Input 1]],\"\")","v":""},null,{"$f":"IFERROR(IF(AND(MeasureCalc(Table_PI[[#This Row],[Hide:\nFormula Name]],Table_SummaryPI[[#This Row],[Quantity]],Table_PI[[#This Row],[List 1]],Table_PI[[#This Row],[List 2]],Table_PI[[#This Row],[List 3]],Table_PI[[#This Row],[Size]],Table_PI[[#This Row],[Input 1]],Table_PI[[#This Row],[Input 2]],Table_PI[[#This Row],[Input 3]],Table_PI[[#This Row],[Input 4]],'Customer Information'!$AR$12,101,ROW())<>0,MeasureCalc(Table_PI[[#This Row],[Hide:\nFormula Name]],Table_SummaryPI[[#This Row],[Quantity]],Table_PI[[#This Row],[List 1]],Table_PI[[#This Row],[List 2]],Table_PI[[#This Row],[List 3]],Table_PI[[#This Row],[Size]],Table_PI[[#This Row],[Input 1]],Table_PI[[#This Row],[Input 2]],Table_PI[[#This Row],[Input 3]],Table_PI[[#This Row],[Input 4]],'Customer Information'!$AR$12,101,ROW())<>\"No Rebate\"),MeasureCalc(Table_PI[[#This Row],[Hide:\nFormula Name]],Table_SummaryPI[[#This Row],[Quantity]],Table_PI[[#This Row],[List 1]],Table_PI[[#This Row],[List 2]],Table_PI[[#This Row],[List 3]],Table_PI[[#This Row],[Size]],Table_PI[[#This Row],[Input 1]],Table_PI[[#This Row],[Input 2]],Table_PI[[#This Row],[Input 3]],Table_PI[[#This Row],[Input 4]],'Customer Information'!$AR$12,101,ROW()),\"\"),\"\")","v":""},{"$f":"IF(Table_PI[[#This Row],[Input 2]]<>\"\",Table_PI[[#This Row],[Input 2]],\"\")","v":""},null,{"$f":"IFERROR(IF(AND(MeasureCalc(Table_PI[[#This Row],[Hide:\nFormula Name]],Table_SummaryPI[[#This Row],[Quantity]],Table_PI[[#This Row],[List 1]],Table_PI[[#This Row],[List 2]],Table_PI[[#This Row],[List 3]],Table_PI[[#This Row],[Size]],Table_PI[[#This Row],[Input 1]],Table_PI[[#This Row],[Input 2]],Table_PI[[#This Row],[Input 3]],Table_PI[[#This Row],[Input 4]],'Customer Information'!$AR$12,102,ROW())<>0,MeasureCalc(Table_PI[[#This Row],[Hide:\nFormula Name]],Table_SummaryPI[[#This Row],[Quantity]],Table_PI[[#This Row],[List 1]],Table_PI[[#This Row],[List 2]],Table_PI[[#This Row],[List 3]],Table_PI[[#This Row],[Size]],Table_PI[[#This Row],[Input 1]],Table_PI[[#This Row],[Input 2]],Table_PI[[#This Row],[Input 3]],Table_PI[[#This Row],[Input 4]],'Customer Information'!$AR$12,102,ROW())<>\"No Rebate\"),MeasureCalc(Table_PI[[#This Row],[Hide:\nFormula Name]],Table_SummaryPI[[#This Row],[Quantity]],Table_PI[[#This Row],[List 1]],Table_PI[[#This Row],[List 2]],Table_PI[[#This Row],[List 3]],Table_PI[[#This Row],[Size]],Table_PI[[#This Row],[Input 1]],Table_PI[[#This Row],[Input 2]],Table_PI[[#This Row],[Input 3]],Table_PI[[#This Row],[Input 4]],'Customer Information'!$AR$12,102,ROW()),\"\"),\"\")","v":""},{"$f":"IF(Table_PI[[#This Row],[Input 3]]<>\"\",Table_PI[[#This Row],[Input 3]],\"\")","v":""},null,{"$f":"IFERROR(IF(AND(MeasureCalc(Table_PI[[#This Row],[Hide:\nFormula Name]],Table_SummaryPI[[#This Row],[Quantity]],Table_PI[[#This Row],[List 1]],Table_PI[[#This Row],[List 2]],Table_PI[[#This Row],[List 3]],Table_PI[[#This Row],[Size]],Table_PI[[#This Row],[Input 1]],Table_PI[[#This Row],[Input 2]],Table_PI[[#This Row],[Input 3]],Table_PI[[#This Row],[Input 4]],'Customer Information'!$AR$12,103,ROW())<>0,MeasureCalc(Table_PI[[#This Row],[Hide:\nFormula Name]],Table_SummaryPI[[#This Row],[Quantity]],Table_PI[[#This Row],[List 1]],Table_PI[[#This Row],[List 2]],Table_PI[[#This Row],[List 3]],Table_PI[[#This Row],[Size]],Table_PI[[#This Row],[Input 1]],Table_PI[[#This Row],[Input 2]],Table_PI[[#This Row],[Input 3]],Table_PI[[#This Row],[Input 4]],'Customer Information'!$AR$12,103,ROW())<>\"No Rebate\"),MeasureCalc(Table_PI[[#This Row],[Hide:\nFormula Name]],Table_SummaryPI[[#This Row],[Quantity]],Table_PI[[#This Row],[List 1]],Table_PI[[#This Row],[List 2]],Table_PI[[#This Row],[List 3]],Table_PI[[#This Row],[Size]],Table_PI[[#This Row],[Input 1]],Table_PI[[#This Row],[Input 2]],Table_PI[[#This Row],[Input 3]],Table_PI[[#This Row],[Input 4]],'Customer Information'!$AR$12,103,ROW()),\"\"),\"\")","v":""},{"$f":"IF(Table_PI[[#This Row],[Input 4]]<>\"\",Table_PI[[#This Row],[Input 4]],\"\")","v":""},{"$f":"IF(Table_PI[[#This Row],[Quantity]]=\"\",\"\",Table_PI[[#This Row],[Quantity]])","v":""},{"$f":"IF(Table_PI[[#This Row],[Notes]]=\"\",\"\",Table_PI[[#This Row],[Notes]])","v":""},{"$f":"IF(OR(Table_PI[[#This Row],[Hide:\nBaseline kWh]]=\"\",Table_PI[[#This Row],[Hide:\nBaseline kWh]]=0),\"\",Table_PI[[#This Row],[Hide:\nBaseline kWh]])","v":""},{"$f":"IF(OR(Table_PI[[#This Row],[Hide:\nBaseline kW]]=\"\",Table_PI[[#This Row],[Hide:\nBaseline kW]]=0),\"\",Table_PI[[#This Row],[Hide:\nBaseline kW]])","v":""},{"$f":"IF(OR(Table_PI[[#This Row],[Hide:\nProposed kWh]]=\"\",Table_PI[[#This Row],[Hide:\nProposed kWh]]=0),\"\",Table_PI[[#This Row],[Hide:\nProposed kWh]])","v":""},{"$f":"IF(OR(Table_PI[[#This Row],[Hide:\nProposed kW]]=\"\",Table_PI[[#This Row],[Hide:\nProposed kW]]=0),\"\",Table_PI[[#This Row],[Hide:\nProposed kW]])","v":""},{"$f":"IF(OR(Table_PI[[#This Row],[Rebate]]=\"\",Table_PI[[#This Row],[Rebate]]=0),\"\",Table_PI[[#This Row],[Rebate]])","v":""},{"$f":"IF(OR(Table_PI[[#This Row],[Hide:\nIncremental Cost]]=\"\",Table_PI[[#This Row],[Hide:\nIncremental Cost]]=0),\"\",Table_PI[[#This Row],[Hide:\nIncremental Cost]])","v":""},{"$f":"IFERROR(IF(Table_SummaryPI[[#This Row],[kWhSavings]]=\"\",\"\",ROUND(Table_SummaryPI[[#This Row],[kWhSavings]]/$AG$401*'Customer Information'!$BC$17,2)),0)","v":""},{"$f":"IF(OR(Table_PI[[#This Row],[Annual kWh]]=\"\",Table_PI[[#This Row],[Annual kWh]]=0),\"\",Table_PI[[#This Row],[Annual kWh]])","v":""},{"$f":"IF(OR(Table_PI[[#This Row],[Peak kW]]=\"\",Table_PI[[#This Row],[Peak kW]]=0),\"\",Table_PI[[#This Row],[Peak kW]])","v":""},{"$f":"IFERROR(IF(Table_SummaryPI[[#This Row],[kWhSavings]]=\"\",\"\",$AU$9*Table_SummaryPI[[#This Row],[kWhSavings]]),0)","v":""},{"$f":"IFERROR(IF(Table_SummaryPI[[#This Row],[kWhSavings]]=\"\",\"\",$AU$14*Table_SummaryPI[[#This Row],[kWhSavings]]),0)","v":""},{"$f":"IFERROR(IF(Table_SummaryPI[[#This Row],[kWhSavings]]=\"\",\"\",$AU$18*Table_SummaryPI[[#This Row],[kWhSavings]]),0)","v":""},{"$f":"IFERROR(IF(Table_SummaryPI[[#This Row],[kWhSavings]]=\"\",\"\",$AU$22*Table_SummaryPI[[#This Row],[kWhSavings]]),0)","v":""},{"$f":"IFERROR(IF(MeasureCalc(Table_PI[[#This Row],[Hide:\nFormula Name]],Table_SummaryPI[[#This Row],[Quantity]],Table_PI[[#This Row],[List 1]],Table_PI[[#This Row],[List 2]],Table_PI[[#This Row],[List 3]],Table_PI[[#This Row],[Size]],Table_PI[[#This Row],[Input 1]],Table_PI[[#This Row],[Input 2]],Table_PI[[#This Row],[Input 3]],Table_PI[[#This Row],[Input 4]],'Customer Information'!$AR$12,200,ROW())<>\"No Rebate\",MeasureCalc(Table_PI[[#This Row],[Hide:\nFormula Name]],Table_SummaryPI[[#This Row],[Quantity]],Table_PI[[#This Row],[List 1]],Table_PI[[#This Row],[List 2]],Table_PI[[#This Row],[List 3]],Table_PI[[#This Row],[Size]],Table_PI[[#This Row],[Input 1]],Table_PI[[#This Row],[Input 2]],Table_PI[[#This Row],[Input 3]],Table_PI[[#This Row],[Input 4]],'Customer Information'!$AR$12,200,ROW()),\"\"),\"\")","v":""},{"$f":"IFERROR(IF(MeasureCalc(Table_PI[[#This Row],[Hide:\nFormula Name]],Table_SummaryPI[[#This Row],[Quantity]],Table_PI[[#This Row],[List 1]],Table_PI[[#This Row],[List 2]],Table_PI[[#This Row],[List 3]],Table_PI[[#This Row],[Size]],Table_PI[[#This Row],[Input 1]],Table_PI[[#This Row],[Input 2]],Table_PI[[#This Row],[Input 3]],Table_PI[[#This Row],[Input 4]],'Customer Information'!$AR$12,201,ROW())<>\"No Rebate\",MeasureCalc(Table_PI[[#This Row],[Hide:\nFormula Name]],Table_SummaryPI[[#This Row],[Quantity]],Table_PI[[#This Row],[List 1]],Table_PI[[#This Row],[List 2]],Table_PI[[#This Row],[List 3]],Table_PI[[#This Row],[Size]],Table_PI[[#This Row],[Input 1]],Table_PI[[#This Row],[Input 2]],Table_PI[[#This Row],[Input 3]],Table_PI[[#This Row],[Input 4]],'Customer Information'!$AR$12,201,ROW()),\"\"),\"\")","v":""}]
[{"$f":"Table_PI[[#This Row],[Line No.]]","v":""},{"$f":"IF(Table_SummaryPI[[#This Row],[MeassureCategory]]<>\"\",CONCATENATE(Table_SummaryPI[[#This Row],[MeassureCategory]],  \" - \", Table_SummaryPI[[#This Row],[ProposedMeasureCategory]],  \" - \", TEXT(Table_SummaryPI[[#This Row],[Size]],\"#,##0.00\"),\" \",Table_SummaryPI[[#This Row],[SizeUnit]]),\"\")","v":""},{"$f":"SUBSTITUTE(Table_PI[[#This Row],[Measure]],\"     \",\"\",1)","v":""},{"$f":"IF(Table_PI[[#This Row],[List 1]]<>\"\",Table_PI[[#This Row],[List 1]],\"\")","v":""},{"$f":"IF(Table_PI[[#This Row],[List 2]]<>\"\",Table_PI[[#This Row],[List 2]],\"\")","v":""},{"$f":"IF(Table_PI[[#This Row],[List 3]]<>\"\",Table_PI[[#This Row],[List 3]],\"\")","v":""},{"$f":"IF(Table_PI[[#This Row],[Manufacturer]]=\"\",\"\",Table_PI[[#This Row],[Manufacturer]])","v":""},{"$f":"IF(Table_PI[[#This Row],[Model Number]]=\"\",\"\",Table_PI[[#This Row],[Model Number]])","v":""},{"$f":"IF(Table_PI[[#This Row],[Serial Number(s)]]=\"\",\"\",Table_PI[[#This Row],[Serial Number(s)]])","v":""},null,{"$f":"IF(Table_PI[[#This Row],[Size]]=\"\",\"\",Table_PI[[#This Row],[Size]])","v":""},null,{"$f":"IFERROR(IF(AND(MeasureCalc(Table_PI[[#This Row],[Hide:\nFormula Name]],Table_SummaryPI[[#This Row],[Quantity]],Table_PI[[#This Row],[List 1]],Table_PI[[#This Row],[List 2]],Table_PI[[#This Row],[List 3]],Table_PI[[#This Row],[Size]],Table_PI[[#This Row],[Input 1]],Table_PI[[#This Row],[Input 2]],Table_PI[[#This Row],[Input 3]],Table_PI[[#This Row],[Input 4]],'Customer Information'!$AR$12,100,ROW())<>0,MeasureCalc(Table_PI[[#This Row],[Hide:\nFormula Name]],Table_SummaryPI[[#This Row],[Quantity]],Table_PI[[#This Row],[List 1]],Table_PI[[#This Row],[List 2]],Table_PI[[#This Row],[List 3]],Table_PI[[#This Row],[Size]],Table_PI[[#This Row],[Input 1]],Table_PI[[#This Row],[Input 2]],Table_PI[[#This Row],[Input 3]],Table_PI[[#This Row],[Input 4]],'Customer Information'!$AR$12,100,ROW())<>\"No Rebate\"),MeasureCalc(Table_PI[[#This Row],[Hide:\nFormula Name]],Table_SummaryPI[[#This Row],[Quantity]],Table_PI[[#This Row],[List 1]],Table_PI[[#This Row],[List 2]],Table_PI[[#This Row],[List 3]],Table_PI[[#This Row],[Size]],Table_PI[[#This Row],[Input 1]],Table_PI[[#This Row],[Input 2]],Table_PI[[#This Row],[Input 3]],Table_PI[[#This Row],[Input 4]],'Customer Information'!$AR$12,100,ROW()),\"\"),\"\")","v":""},{"$f":"IF(Table_PI[[#This Row],[Input 1]]<>\"\",Table_PI[[#This Row],[Input 1]],\"\")","v":""},null,{"$f":"IFERROR(IF(AND(MeasureCalc(Table_PI[[#This Row],[Hide:\nFormula Name]],Table_SummaryPI[[#This Row],[Quantity]],Table_PI[[#This Row],[List 1]],Table_PI[[#This Row],[List 2]],Table_PI[[#This Row],[List 3]],Table_PI[[#This Row],[Size]],Table_PI[[#This Row],[Input 1]],Table_PI[[#This Row],[Input 2]],Table_PI[[#This Row],[Input 3]],Table_PI[[#This Row],[Input 4]],'Customer Information'!$AR$12,101,ROW())<>0,MeasureCalc(Table_PI[[#This Row],[Hide:\nFormula Name]],Table_SummaryPI[[#This Row],[Quantity]],Table_PI[[#This Row],[List 1]],Table_PI[[#This Row],[List 2]],Table_PI[[#This Row],[List 3]],Table_PI[[#This Row],[Size]],Table_PI[[#This Row],[Input 1]],Table_PI[[#This Row],[Input 2]],Table_PI[[#This Row],[Input 3]],Table_PI[[#This Row],[Input 4]],'Customer Information'!$AR$12,101,ROW())<>\"No Rebate\"),MeasureCalc(Table_PI[[#This Row],[Hide:\nFormula Name]],Table_SummaryPI[[#This Row],[Quantity]],Table_PI[[#This Row],[List 1]],Table_PI[[#This Row],[List 2]],Table_PI[[#This Row],[List 3]],Table_PI[[#This Row],[Size]],Table_PI[[#This Row],[Input 1]],Table_PI[[#This Row],[Input 2]],Table_PI[[#This Row],[Input 3]],Table_PI[[#This Row],[Input 4]],'Customer Information'!$AR$12,101,ROW()),\"\"),\"\")","v":""},{"$f":"IF(Table_PI[[#This Row],[Input 2]]<>\"\",Table_PI[[#This Row],[Input 2]],\"\")","v":""},null,{"$f":"IFERROR(IF(AND(MeasureCalc(Table_PI[[#This Row],[Hide:\nFormula Name]],Table_SummaryPI[[#This Row],[Quantity]],Table_PI[[#This Row],[List 1]],Table_PI[[#This Row],[List 2]],Table_PI[[#This Row],[List 3]],Table_PI[[#This Row],[Size]],Table_PI[[#This Row],[Input 1]],Table_PI[[#This Row],[Input 2]],Table_PI[[#This Row],[Input 3]],Table_PI[[#This Row],[Input 4]],'Customer Information'!$AR$12,102,ROW())<>0,MeasureCalc(Table_PI[[#This Row],[Hide:\nFormula Name]],Table_SummaryPI[[#This Row],[Quantity]],Table_PI[[#This Row],[List 1]],Table_PI[[#This Row],[List 2]],Table_PI[[#This Row],[List 3]],Table_PI[[#This Row],[Size]],Table_PI[[#This Row],[Input 1]],Table_PI[[#This Row],[Input 2]],Table_PI[[#This Row],[Input 3]],Table_PI[[#This Row],[Input 4]],'Customer Information'!$AR$12,102,ROW())<>\"No Rebate\"),MeasureCalc(Table_PI[[#This Row],[Hide:\nFormula Name]],Table_SummaryPI[[#This Row],[Quantity]],Table_PI[[#This Row],[List 1]],Table_PI[[#This Row],[List 2]],Table_PI[[#This Row],[List 3]],Table_PI[[#This Row],[Size]],Table_PI[[#This Row],[Input 1]],Table_PI[[#This Row],[Input 2]],Table_PI[[#This Row],[Input 3]],Table_PI[[#This Row],[Input 4]],'Customer Information'!$AR$12,102,ROW()),\"\"),\"\")","v":""},{"$f":"IF(Table_PI[[#This Row],[Input 3]]<>\"\",Table_PI[[#This Row],[Input 3]],\"\")","v":""},null,{"$f":"IFERROR(IF(AND(MeasureCalc(Table_PI[[#This Row],[Hide:\nFormula Name]],Table_SummaryPI[[#This Row],[Quantity]],Table_PI[[#This Row],[List 1]],Table_PI[[#This Row],[List 2]],Table_PI[[#This Row],[List 3]],Table_PI[[#This Row],[Size]],Table_PI[[#This Row],[Input 1]],Table_PI[[#This Row],[Input 2]],Table_PI[[#This Row],[Input 3]],Table_PI[[#This Row],[Input 4]],'Customer Information'!$AR$12,103,ROW())<>0,MeasureCalc(Table_PI[[#This Row],[Hide:\nFormula Name]],Table_SummaryPI[[#This Row],[Quantity]],Table_PI[[#This Row],[List 1]],Table_PI[[#This Row],[List 2]],Table_PI[[#This Row],[List 3]],Table_PI[[#This Row],[Size]],Table_PI[[#This Row],[Input 1]],Table_PI[[#This Row],[Input 2]],Table_PI[[#This Row],[Input 3]],Table_PI[[#This Row],[Input 4]],'Customer Information'!$AR$12,103,ROW())<>\"No Rebate\"),MeasureCalc(Table_PI[[#This Row],[Hide:\nFormula Name]],Table_SummaryPI[[#This Row],[Quantity]],Table_PI[[#This Row],[List 1]],Table_PI[[#This Row],[List 2]],Table_PI[[#This Row],[List 3]],Table_PI[[#This Row],[Size]],Table_PI[[#This Row],[Input 1]],Table_PI[[#This Row],[Input 2]],Table_PI[[#This Row],[Input 3]],Table_PI[[#This Row],[Input 4]],'Customer Information'!$AR$12,103,ROW()),\"\"),\"\")","v":""},{"$f":"IF(Table_PI[[#This Row],[Input 4]]<>\"\",Table_PI[[#This Row],[Input 4]],\"\")","v":""},{"$f":"IF(Table_PI[[#This Row],[Quantity]]=\"\",\"\",Table_PI[[#This Row],[Quantity]])","v":""},{"$f":"IF(Table_PI[[#This Row],[Notes]]=\"\",\"\",Table_PI[[#This Row],[Notes]])","v":""},{"$f":"IF(OR(Table_PI[[#This Row],[Hide:\nBaseline kWh]]=\"\",Table_PI[[#This Row],[Hide:\nBaseline kWh]]=0),\"\",Table_PI[[#This Row],[Hide:\nBaseline kWh]])","v":""},{"$f":"IF(OR(Table_PI[[#This Row],[Hide:\nBaseline kW]]=\"\",Table_PI[[#This Row],[Hide:\nBaseline kW]]=0),\"\",Table_PI[[#This Row],[Hide:\nBaseline kW]])","v":""},{"$f":"IF(OR(Table_PI[[#This Row],[Hide:\nProposed kWh]]=\"\",Table_PI[[#This Row],[Hide:\nProposed kWh]]=0),\"\",Table_PI[[#This Row],[Hide:\nProposed kWh]])","v":""},{"$f":"IF(OR(Table_PI[[#This Row],[Hide:\nProposed kW]]=\"\",Table_PI[[#This Row],[Hide:\nProposed kW]]=0),\"\",Table_PI[[#This Row],[Hide:\nProposed kW]])","v":""},{"$f":"IF(OR(Table_PI[[#This Row],[Rebate]]=\"\",Table_PI[[#This Row],[Rebate]]=0),\"\",Table_PI[[#This Row],[Rebate]])","v":""},{"$f":"IF(OR(Table_PI[[#This Row],[Hide:\nIncremental Cost]]=\"\",Table_PI[[#This Row],[Hide:\nIncremental Cost]]=0),\"\",Table_PI[[#This Row],[Hide:\nIncremental Cost]])","v":""},{"$f":"IFERROR(IF(Table_SummaryPI[[#This Row],[kWhSavings]]=\"\",\"\",ROUND(Table_SummaryPI[[#This Row],[kWhSavings]]/$AG$401*'Customer Information'!$BC$17,2)),0)","v":""},{"$f":"IF(OR(Table_PI[[#This Row],[Annual kWh]]=\"\",Table_PI[[#This Row],[Annual kWh]]=0),\"\",Table_PI[[#This Row],[Annual kWh]])","v":""},{"$f":"IF(OR(Table_PI[[#This Row],[Peak kW]]=\"\",Table_PI[[#This Row],[Peak kW]]=0),\"\",Table_PI[[#This Row],[Peak kW]])","v":""},{"$f":"IFERROR(IF(Table_SummaryPI[[#This Row],[kWhSavings]]=\"\",\"\",$AU$9*Table_SummaryPI[[#This Row],[kWhSavings]]),0)","v":""},{"$f":"IFERROR(IF(Table_SummaryPI[[#This Row],[kWhSavings]]=\"\",\"\",$AU$14*Table_SummaryPI[[#This Row],[kWhSavings]]),0)","v":""},{"$f":"IFERROR(IF(Table_SummaryPI[[#This Row],[kWhSavings]]=\"\",\"\",$AU$18*Table_SummaryPI[[#This Row],[kWhSavings]]),0)","v":""},{"$f":"IFERROR(IF(Table_SummaryPI[[#This Row],[kWhSavings]]=\"\",\"\",$AU$22*Table_SummaryPI[[#This Row],[kWhSavings]]),0)","v":""},{"$f":"IFERROR(IF(MeasureCalc(Table_PI[[#This Row],[Hide:\nFormula Name]],Table_SummaryPI[[#This Row],[Quantity]],Table_PI[[#This Row],[List 1]],Table_PI[[#This Row],[List 2]],Table_PI[[#This Row],[List 3]],Table_PI[[#This Row],[Size]],Table_PI[[#This Row],[Input 1]],Table_PI[[#This Row],[Input 2]],Table_PI[[#This Row],[Input 3]],Table_PI[[#This Row],[Input 4]],'Customer Information'!$AR$12,200,ROW())<>\"No Rebate\",MeasureCalc(Table_PI[[#This Row],[Hide:\nFormula Name]],Table_SummaryPI[[#This Row],[Quantity]],Table_PI[[#This Row],[List 1]],Table_PI[[#This Row],[List 2]],Table_PI[[#This Row],[List 3]],Table_PI[[#This Row],[Size]],Table_PI[[#This Row],[Input 1]],Table_PI[[#This Row],[Input 2]],Table_PI[[#This Row],[Input 3]],Table_PI[[#This Row],[Input 4]],'Customer Information'!$AR$12,200,ROW()),\"\"),\"\")","v":""},{"$f":"IFERROR(IF(MeasureCalc(Table_PI[[#This Row],[Hide:\nFormula Name]],Table_SummaryPI[[#This Row],[Quantity]],Table_PI[[#This Row],[List 1]],Table_PI[[#This Row],[List 2]],Table_PI[[#This Row],[List 3]],Table_PI[[#This Row],[Size]],Table_PI[[#This Row],[Input 1]],Table_PI[[#This Row],[Input 2]],Table_PI[[#This Row],[Input 3]],Table_PI[[#This Row],[Input 4]],'Customer Information'!$AR$12,201,ROW())<>\"No Rebate\",MeasureCalc(Table_PI[[#This Row],[Hide:\nFormula Name]],Table_SummaryPI[[#This Row],[Quantity]],Table_PI[[#This Row],[List 1]],Table_PI[[#This Row],[List 2]],Table_PI[[#This Row],[List 3]],Table_PI[[#This Row],[Size]],Table_PI[[#This Row],[Input 1]],Table_PI[[#This Row],[Input 2]],Table_PI[[#This Row],[Input 3]],Table_PI[[#This Row],[Input 4]],'Customer Information'!$AR$12,201,ROW()),\"\"),\"\")","v":""}]
[{"$f":"Table_PI[[#This Row],[Line No.]]","v":""},{"$f":"IF(Table_SummaryPI[[#This Row],[MeassureCategory]]<>\"\",CONCATENATE(Table_SummaryPI[[#This Row],[MeassureCategory]],  \" - \", Table_SummaryPI[[#This Row],[ProposedMeasureCategory]],  \" - \", TEXT(Table_SummaryPI[[#This Row],[Size]],\"#,##0.00\"),\" \",Table_SummaryPI[[#This Row],[SizeUnit]]),\"\")","v":""},{"$f":"SUBSTITUTE(Table_PI[[#This Row],[Measure]],\"     \",\"\",1)","v":""},{"$f":"IF(Table_PI[[#This Row],[List 1]]<>\"\",Table_PI[[#This Row],[List 1]],\"\")","v":""},{"$f":"IF(Table_PI[[#This Row],[List 2]]<>\"\",Table_PI[[#This Row],[List 2]],\"\")","v":""},{"$f":"IF(Table_PI[[#This Row],[List 3]]<>\"\",Table_PI[[#This Row],[List 3]],\"\")","v":""},{"$f":"IF(Table_PI[[#This Row],[Manufacturer]]=\"\",\"\",Table_PI[[#This Row],[Manufacturer]])","v":""},{"$f":"IF(Table_PI[[#This Row],[Model Number]]=\"\",\"\",Table_PI[[#This Row],[Model Number]])","v":""},{"$f":"IF(Table_PI[[#This Row],[Serial Number(s)]]=\"\",\"\",Table_PI[[#This Row],[Serial Number(s)]])","v":""},null,{"$f":"IF(Table_PI[[#This Row],[Size]]=\"\",\"\",Table_PI[[#This Row],[Size]])","v":""},null,{"$f":"IFERROR(IF(AND(MeasureCalc(Table_PI[[#This Row],[Hide:\nFormula Name]],Table_SummaryPI[[#This Row],[Quantity]],Table_PI[[#This Row],[List 1]],Table_PI[[#This Row],[List 2]],Table_PI[[#This Row],[List 3]],Table_PI[[#This Row],[Size]],Table_PI[[#This Row],[Input 1]],Table_PI[[#This Row],[Input 2]],Table_PI[[#This Row],[Input 3]],Table_PI[[#This Row],[Input 4]],'Customer Information'!$AR$12,100,ROW())<>0,MeasureCalc(Table_PI[[#This Row],[Hide:\nFormula Name]],Table_SummaryPI[[#This Row],[Quantity]],Table_PI[[#This Row],[List 1]],Table_PI[[#This Row],[List 2]],Table_PI[[#This Row],[List 3]],Table_PI[[#This Row],[Size]],Table_PI[[#This Row],[Input 1]],Table_PI[[#This Row],[Input 2]],Table_PI[[#This Row],[Input 3]],Table_PI[[#This Row],[Input 4]],'Customer Information'!$AR$12,100,ROW())<>\"No Rebate\"),MeasureCalc(Table_PI[[#This Row],[Hide:\nFormula Name]],Table_SummaryPI[[#This Row],[Quantity]],Table_PI[[#This Row],[List 1]],Table_PI[[#This Row],[List 2]],Table_PI[[#This Row],[List 3]],Table_PI[[#This Row],[Size]],Table_PI[[#This Row],[Input 1]],Table_PI[[#This Row],[Input 2]],Table_PI[[#This Row],[Input 3]],Table_PI[[#This Row],[Input 4]],'Customer Information'!$AR$12,100,ROW()),\"\"),\"\")","v":""},{"$f":"IF(Table_PI[[#This Row],[Input 1]]<>\"\",Table_PI[[#This Row],[Input 1]],\"\")","v":""},null,{"$f":"IFERROR(IF(AND(MeasureCalc(Table_PI[[#This Row],[Hide:\nFormula Name]],Table_SummaryPI[[#This Row],[Quantity]],Table_PI[[#This Row],[List 1]],Table_PI[[#This Row],[List 2]],Table_PI[[#This Row],[List 3]],Table_PI[[#This Row],[Size]],Table_PI[[#This Row],[Input 1]],Table_PI[[#This Row],[Input 2]],Table_PI[[#This Row],[Input 3]],Table_PI[[#This Row],[Input 4]],'Customer Information'!$AR$12,101,ROW())<>0,MeasureCalc(Table_PI[[#This Row],[Hide:\nFormula Name]],Table_SummaryPI[[#This Row],[Quantity]],Table_PI[[#This Row],[List 1]],Table_PI[[#This Row],[List 2]],Table_PI[[#This Row],[List 3]],Table_PI[[#This Row],[Size]],Table_PI[[#This Row],[Input 1]],Table_PI[[#This Row],[Input 2]],Table_PI[[#This Row],[Input 3]],Table_PI[[#This Row],[Input 4]],'Customer Information'!$AR$12,101,ROW())<>\"No Rebate\"),MeasureCalc(Table_PI[[#This Row],[Hide:\nFormula Name]],Table_SummaryPI[[#This Row],[Quantity]],Table_PI[[#This Row],[List 1]],Table_PI[[#This Row],[List 2]],Table_PI[[#This Row],[List 3]],Table_PI[[#This Row],[Size]],Table_PI[[#This Row],[Input 1]],Table_PI[[#This Row],[Input 2]],Table_PI[[#This Row],[Input 3]],Table_PI[[#This Row],[Input 4]],'Customer Information'!$AR$12,101,ROW()),\"\"),\"\")","v":""},{"$f":"IF(Table_PI[[#This Row],[Input 2]]<>\"\",Table_PI[[#This Row],[Input 2]],\"\")","v":""},null,{"$f":"IFERROR(IF(AND(MeasureCalc(Table_PI[[#This Row],[Hide:\nFormula Name]],Table_SummaryPI[[#This Row],[Quantity]],Table_PI[[#This Row],[List 1]],Table_PI[[#This Row],[List 2]],Table_PI[[#This Row],[List 3]],Table_PI[[#This Row],[Size]],Table_PI[[#This Row],[Input 1]],Table_PI[[#This Row],[Input 2]],Table_PI[[#This Row],[Input 3]],Table_PI[[#This Row],[Input 4]],'Customer Information'!$AR$12,102,ROW())<>0,MeasureCalc(Table_PI[[#This Row],[Hide:\nFormula Name]],Table_SummaryPI[[#This Row],[Quantity]],Table_PI[[#This Row],[List 1]],Table_PI[[#This Row],[List 2]],Table_PI[[#This Row],[List 3]],Table_PI[[#This Row],[Size]],Table_PI[[#This Row],[Input 1]],Table_PI[[#This Row],[Input 2]],Table_PI[[#This Row],[Input 3]],Table_PI[[#This Row],[Input 4]],'Customer Information'!$AR$12,102,ROW())<>\"No Rebate\"),MeasureCalc(Table_PI[[#This Row],[Hide:\nFormula Name]],Table_SummaryPI[[#This Row],[Quantity]],Table_PI[[#This Row],[List 1]],Table_PI[[#This Row],[List 2]],Table_PI[[#This Row],[List 3]],Table_PI[[#This Row],[Size]],Table_PI[[#This Row],[Input 1]],Table_PI[[#This Row],[Input 2]],Table_PI[[#This Row],[Input 3]],Table_PI[[#This Row],[Input 4]],'Customer Information'!$AR$12,102,ROW()),\"\"),\"\")","v":""},{"$f":"IF(Table_PI[[#This Row],[Input 3]]<>\"\",Table_PI[[#This Row],[Input 3]],\"\")","v":""},null,{"$f":"IFERROR(IF(AND(MeasureCalc(Table_PI[[#This Row],[Hide:\nFormula Name]],Table_SummaryPI[[#This Row],[Quantity]],Table_PI[[#This Row],[List 1]],Table_PI[[#This Row],[List 2]],Table_PI[[#This Row],[List 3]],Table_PI[[#This Row],[Size]],Table_PI[[#This Row],[Input 1]],Table_PI[[#This Row],[Input 2]],Table_PI[[#This Row],[Input 3]],Table_PI[[#This Row],[Input 4]],'Customer Information'!$AR$12,103,ROW())<>0,MeasureCalc(Table_PI[[#This Row],[Hide:\nFormula Name]],Table_SummaryPI[[#This Row],[Quantity]],Table_PI[[#This Row],[List 1]],Table_PI[[#This Row],[List 2]],Table_PI[[#This Row],[List 3]],Table_PI[[#This Row],[Size]],Table_PI[[#This Row],[Input 1]],Table_PI[[#This Row],[Input 2]],Table_PI[[#This Row],[Input 3]],Table_PI[[#This Row],[Input 4]],'Customer Information'!$AR$12,103,ROW())<>\"No Rebate\"),MeasureCalc(Table_PI[[#This Row],[Hide:\nFormula Name]],Table_SummaryPI[[#This Row],[Quantity]],Table_PI[[#This Row],[List 1]],Table_PI[[#This Row],[List 2]],Table_PI[[#This Row],[List 3]],Table_PI[[#This Row],[Size]],Table_PI[[#This Row],[Input 1]],Table_PI[[#This Row],[Input 2]],Table_PI[[#This Row],[Input 3]],Table_PI[[#This Row],[Input 4]],'Customer Information'!$AR$12,103,ROW()),\"\"),\"\")","v":""},{"$f":"IF(Table_PI[[#This Row],[Input 4]]<>\"\",Table_PI[[#This Row],[Input 4]],\"\")","v":""},{"$f":"IF(Table_PI[[#This Row],[Quantity]]=\"\",\"\",Table_PI[[#This Row],[Quantity]])","v":""},{"$f":"IF(Table_PI[[#This Row],[Notes]]=\"\",\"\",Table_PI[[#This Row],[Notes]])","v":""},{"$f":"IF(OR(Table_PI[[#This Row],[Hide:\nBaseline kWh]]=\"\",Table_PI[[#This Row],[Hide:\nBaseline kWh]]=0),\"\",Table_PI[[#This Row],[Hide:\nBaseline kWh]])","v":""},{"$f":"IF(OR(Table_PI[[#This Row],[Hide:\nBaseline kW]]=\"\",Table_PI[[#This Row],[Hide:\nBaseline kW]]=0),\"\",Table_PI[[#This Row],[Hide:\nBaseline kW]])","v":""},{"$f":"IF(OR(Table_PI[[#This Row],[Hide:\nProposed kWh]]=\"\",Table_PI[[#This Row],[Hide:\nProposed kWh]]=0),\"\",Table_PI[[#This Row],[Hide:\nProposed kWh]])","v":""},{"$f":"IF(OR(Table_PI[[#This Row],[Hide:\nProposed kW]]=\"\",Table_PI[[#This Row],[Hide:\nProposed kW]]=0),\"\",Table_PI[[#This Row],[Hide:\nProposed kW]])","v":""},{"$f":"IF(OR(Table_PI[[#This Row],[Rebate]]=\"\",Table_PI[[#This Row],[Rebate]]=0),\"\",Table_PI[[#This Row],[Rebate]])","v":""},{"$f":"IF(OR(Table_PI[[#This Row],[Hide:\nIncremental Cost]]=\"\",Table_PI[[#This Row],[Hide:\nIncremental Cost]]=0),\"\",Table_PI[[#This Row],[Hide:\nIncremental Cost]])","v":""},{"$f":"IFERROR(IF(Table_SummaryPI[[#This Row],[kWhSavings]]=\"\",\"\",ROUND(Table_SummaryPI[[#This Row],[kWhSavings]]/$AG$401*'Customer Information'!$BC$17,2)),0)","v":""},{"$f":"IF(OR(Table_PI[[#This Row],[Annual kWh]]=\"\",Table_PI[[#This Row],[Annual kWh]]=0),\"\",Table_PI[[#This Row],[Annual kWh]])","v":""},{"$f":"IF(OR(Table_PI[[#This Row],[Peak kW]]=\"\",Table_PI[[#This Row],[Peak kW]]=0),\"\",Table_PI[[#This Row],[Peak kW]])","v":""},{"$f":"IFERROR(IF(Table_SummaryPI[[#This Row],[kWhSavings]]=\"\",\"\",$AU$9*Table_SummaryPI[[#This Row],[kWhSavings]]),0)","v":""},{"$f":"IFERROR(IF(Table_SummaryPI[[#This Row],[kWhSavings]]=\"\",\"\",$AU$14*Table_SummaryPI[[#This Row],[kWhSavings]]),0)","v":""},{"$f":"IFERROR(IF(Table_SummaryPI[[#This Row],[kWhSavings]]=\"\",\"\",$AU$18*Table_SummaryPI[[#This Row],[kWhSavings]]),0)","v":""},{"$f":"IFERROR(IF(Table_SummaryPI[[#This Row],[kWhSavings]]=\"\",\"\",$AU$22*Table_SummaryPI[[#This Row],[kWhSavings]]),0)","v":""},{"$f":"IFERROR(IF(MeasureCalc(Table_PI[[#This Row],[Hide:\nFormula Name]],Table_SummaryPI[[#This Row],[Quantity]],Table_PI[[#This Row],[List 1]],Table_PI[[#This Row],[List 2]],Table_PI[[#This Row],[List 3]],Table_PI[[#This Row],[Size]],Table_PI[[#This Row],[Input 1]],Table_PI[[#This Row],[Input 2]],Table_PI[[#This Row],[Input 3]],Table_PI[[#This Row],[Input 4]],'Customer Information'!$AR$12,200,ROW())<>\"No Rebate\",MeasureCalc(Table_PI[[#This Row],[Hide:\nFormula Name]],Table_SummaryPI[[#This Row],[Quantity]],Table_PI[[#This Row],[List 1]],Table_PI[[#This Row],[List 2]],Table_PI[[#This Row],[List 3]],Table_PI[[#This Row],[Size]],Table_PI[[#This Row],[Input 1]],Table_PI[[#This Row],[Input 2]],Table_PI[[#This Row],[Input 3]],Table_PI[[#This Row],[Input 4]],'Customer Information'!$AR$12,200,ROW()),\"\"),\"\")","v":""},{"$f":"IFERROR(IF(MeasureCalc(Table_PI[[#This Row],[Hide:\nFormula Name]],Table_SummaryPI[[#This Row],[Quantity]],Table_PI[[#This Row],[List 1]],Table_PI[[#This Row],[List 2]],Table_PI[[#This Row],[List 3]],Table_PI[[#This Row],[Size]],Table_PI[[#This Row],[Input 1]],Table_PI[[#This Row],[Input 2]],Table_PI[[#This Row],[Input 3]],Table_PI[[#This Row],[Input 4]],'Customer Information'!$AR$12,201,ROW())<>\"No Rebate\",MeasureCalc(Table_PI[[#This Row],[Hide:\nFormula Name]],Table_SummaryPI[[#This Row],[Quantity]],Table_PI[[#This Row],[List 1]],Table_PI[[#This Row],[List 2]],Table_PI[[#This Row],[List 3]],Table_PI[[#This Row],[Size]],Table_PI[[#This Row],[Input 1]],Table_PI[[#This Row],[Input 2]],Table_PI[[#This Row],[Input 3]],Table_PI[[#This Row],[Input 4]],'Customer Information'!$AR$12,201,ROW()),\"\"),\"\")","v":""}]
[{"$f":"Table_PI[[#This Row],[Line No.]]","v":""},{"$f":"IF(Table_SummaryPI[[#This Row],[MeassureCategory]]<>\"\",CONCATENATE(Table_SummaryPI[[#This Row],[MeassureCategory]],  \" - \", Table_SummaryPI[[#This Row],[ProposedMeasureCategory]],  \" - \", TEXT(Table_SummaryPI[[#This Row],[Size]],\"#,##0.00\"),\" \",Table_SummaryPI[[#This Row],[SizeUnit]]),\"\")","v":""},{"$f":"SUBSTITUTE(Table_PI[[#This Row],[Measure]],\"     \",\"\",1)","v":""},{"$f":"IF(Table_PI[[#This Row],[List 1]]<>\"\",Table_PI[[#This Row],[List 1]],\"\")","v":""},{"$f":"IF(Table_PI[[#This Row],[List 2]]<>\"\",Table_PI[[#This Row],[List 2]],\"\")","v":""},{"$f":"IF(Table_PI[[#This Row],[List 3]]<>\"\",Table_PI[[#This Row],[List 3]],\"\")","v":""},{"$f":"IF(Table_PI[[#This Row],[Manufacturer]]=\"\",\"\",Table_PI[[#This Row],[Manufacturer]])","v":""},{"$f":"IF(Table_PI[[#This Row],[Model Number]]=\"\",\"\",Table_PI[[#This Row],[Model Number]])","v":""},{"$f":"IF(Table_PI[[#This Row],[Serial Number(s)]]=\"\",\"\",Table_PI[[#This Row],[Serial Number(s)]])","v":""},null,{"$f":"IF(Table_PI[[#This Row],[Size]]=\"\",\"\",Table_PI[[#This Row],[Size]])","v":""},null,{"$f":"IFERROR(IF(AND(MeasureCalc(Table_PI[[#This Row],[Hide:\nFormula Name]],Table_SummaryPI[[#This Row],[Quantity]],Table_PI[[#This Row],[List 1]],Table_PI[[#This Row],[List 2]],Table_PI[[#This Row],[List 3]],Table_PI[[#This Row],[Size]],Table_PI[[#This Row],[Input 1]],Table_PI[[#This Row],[Input 2]],Table_PI[[#This Row],[Input 3]],Table_PI[[#This Row],[Input 4]],'Customer Information'!$AR$12,100,ROW())<>0,MeasureCalc(Table_PI[[#This Row],[Hide:\nFormula Name]],Table_SummaryPI[[#This Row],[Quantity]],Table_PI[[#This Row],[List 1]],Table_PI[[#This Row],[List 2]],Table_PI[[#This Row],[List 3]],Table_PI[[#This Row],[Size]],Table_PI[[#This Row],[Input 1]],Table_PI[[#This Row],[Input 2]],Table_PI[[#This Row],[Input 3]],Table_PI[[#This Row],[Input 4]],'Customer Information'!$AR$12,100,ROW())<>\"No Rebate\"),MeasureCalc(Table_PI[[#This Row],[Hide:\nFormula Name]],Table_SummaryPI[[#This Row],[Quantity]],Table_PI[[#This Row],[List 1]],Table_PI[[#This Row],[List 2]],Table_PI[[#This Row],[List 3]],Table_PI[[#This Row],[Size]],Table_PI[[#This Row],[Input 1]],Table_PI[[#This Row],[Input 2]],Table_PI[[#This Row],[Input 3]],Table_PI[[#This Row],[Input 4]],'Customer Information'!$AR$12,100,ROW()),\"\"),\"\")","v":""},{"$f":"IF(Table_PI[[#This Row],[Input 1]]<>\"\",Table_PI[[#This Row],[Input 1]],\"\")","v":""},null,{"$f":"IFERROR(IF(AND(MeasureCalc(Table_PI[[#This Row],[Hide:\nFormula Name]],Table_SummaryPI[[#This Row],[Quantity]],Table_PI[[#This Row],[List 1]],Table_PI[[#This Row],[List 2]],Table_PI[[#This Row],[List 3]],Table_PI[[#This Row],[Size]],Table_PI[[#This Row],[Input 1]],Table_PI[[#This Row],[Input 2]],Table_PI[[#This Row],[Input 3]],Table_PI[[#This Row],[Input 4]],'Customer Information'!$AR$12,101,ROW())<>0,MeasureCalc(Table_PI[[#This Row],[Hide:\nFormula Name]],Table_SummaryPI[[#This Row],[Quantity]],Table_PI[[#This Row],[List 1]],Table_PI[[#This Row],[List 2]],Table_PI[[#This Row],[List 3]],Table_PI[[#This Row],[Size]],Table_PI[[#This Row],[Input 1]],Table_PI[[#This Row],[Input 2]],Table_PI[[#This Row],[Input 3]],Table_PI[[#This Row],[Input 4]],'Customer Information'!$AR$12,101,ROW())<>\"No Rebate\"),MeasureCalc(Table_PI[[#This Row],[Hide:\nFormula Name]],Table_SummaryPI[[#This Row],[Quantity]],Table_PI[[#This Row],[List 1]],Table_PI[[#This Row],[List 2]],Table_PI[[#This Row],[List 3]],Table_PI[[#This Row],[Size]],Table_PI[[#This Row],[Input 1]],Table_PI[[#This Row],[Input 2]],Table_PI[[#This Row],[Input 3]],Table_PI[[#This Row],[Input 4]],'Customer Information'!$AR$12,101,ROW()),\"\"),\"\")","v":""},{"$f":"IF(Table_PI[[#This Row],[Input 2]]<>\"\",Table_PI[[#This Row],[Input 2]],\"\")","v":""},null,{"$f":"IFERROR(IF(AND(MeasureCalc(Table_PI[[#This Row],[Hide:\nFormula Name]],Table_SummaryPI[[#This Row],[Quantity]],Table_PI[[#This Row],[List 1]],Table_PI[[#This Row],[List 2]],Table_PI[[#This Row],[List 3]],Table_PI[[#This Row],[Size]],Table_PI[[#This Row],[Input 1]],Table_PI[[#This Row],[Input 2]],Table_PI[[#This Row],[Input 3]],Table_PI[[#This Row],[Input 4]],'Customer Information'!$AR$12,102,ROW())<>0,MeasureCalc(Table_PI[[#This Row],[Hide:\nFormula Name]],Table_SummaryPI[[#This Row],[Quantity]],Table_PI[[#This Row],[List 1]],Table_PI[[#This Row],[List 2]],Table_PI[[#This Row],[List 3]],Table_PI[[#This Row],[Size]],Table_PI[[#This Row],[Input 1]],Table_PI[[#This Row],[Input 2]],Table_PI[[#This Row],[Input 3]],Table_PI[[#This Row],[Input 4]],'Customer Information'!$AR$12,102,ROW())<>\"No Rebate\"),MeasureCalc(Table_PI[[#This Row],[Hide:\nFormula Name]],Table_SummaryPI[[#This Row],[Quantity]],Table_PI[[#This Row],[List 1]],Table_PI[[#This Row],[List 2]],Table_PI[[#This Row],[List 3]],Table_PI[[#This Row],[Size]],Table_PI[[#This Row],[Input 1]],Table_PI[[#This Row],[Input 2]],Table_PI[[#This Row],[Input 3]],Table_PI[[#This Row],[Input 4]],'Customer Information'!$AR$12,102,ROW()),\"\"),\"\")","v":""},{"$f":"IF(Table_PI[[#This Row],[Input 3]]<>\"\",Table_PI[[#This Row],[Input 3]],\"\")","v":""},null,{"$f":"IFERROR(IF(AND(MeasureCalc(Table_PI[[#This Row],[Hide:\nFormula Name]],Table_SummaryPI[[#This Row],[Quantity]],Table_PI[[#This Row],[List 1]],Table_PI[[#This Row],[List 2]],Table_PI[[#This Row],[List 3]],Table_PI[[#This Row],[Size]],Table_PI[[#This Row],[Input 1]],Table_PI[[#This Row],[Input 2]],Table_PI[[#This Row],[Input 3]],Table_PI[[#This Row],[Input 4]],'Customer Information'!$AR$12,103,ROW())<>0,MeasureCalc(Table_PI[[#This Row],[Hide:\nFormula Name]],Table_SummaryPI[[#This Row],[Quantity]],Table_PI[[#This Row],[List 1]],Table_PI[[#This Row],[List 2]],Table_PI[[#This Row],[List 3]],Table_PI[[#This Row],[Size]],Table_PI[[#This Row],[Input 1]],Table_PI[[#This Row],[Input 2]],Table_PI[[#This Row],[Input 3]],Table_PI[[#This Row],[Input 4]],'Customer Information'!$AR$12,103,ROW())<>\"No Rebate\"),MeasureCalc(Table_PI[[#This Row],[Hide:\nFormula Name]],Table_SummaryPI[[#This Row],[Quantity]],Table_PI[[#This Row],[List 1]],Table_PI[[#This Row],[List 2]],Table_PI[[#This Row],[List 3]],Table_PI[[#This Row],[Size]],Table_PI[[#This Row],[Input 1]],Table_PI[[#This Row],[Input 2]],Table_PI[[#This Row],[Input 3]],Table_PI[[#This Row],[Input 4]],'Customer Information'!$AR$12,103,ROW()),\"\"),\"\")","v":""},{"$f":"IF(Table_PI[[#This Row],[Input 4]]<>\"\",Table_PI[[#This Row],[Input 4]],\"\")","v":""},{"$f":"IF(Table_PI[[#This Row],[Quantity]]=\"\",\"\",Table_PI[[#This Row],[Quantity]])","v":""},{"$f":"IF(Table_PI[[#This Row],[Notes]]=\"\",\"\",Table_PI[[#This Row],[Notes]])","v":""},{"$f":"IF(OR(Table_PI[[#This Row],[Hide:\nBaseline kWh]]=\"\",Table_PI[[#This Row],[Hide:\nBaseline kWh]]=0),\"\",Table_PI[[#This Row],[Hide:\nBaseline kWh]])","v":""},{"$f":"IF(OR(Table_PI[[#This Row],[Hide:\nBaseline kW]]=\"\",Table_PI[[#This Row],[Hide:\nBaseline kW]]=0),\"\",Table_PI[[#This Row],[Hide:\nBaseline kW]])","v":""},{"$f":"IF(OR(Table_PI[[#This Row],[Hide:\nProposed kWh]]=\"\",Table_PI[[#This Row],[Hide:\nProposed kWh]]=0),\"\",Table_PI[[#This Row],[Hide:\nProposed kWh]])","v":""},{"$f":"IF(OR(Table_PI[[#This Row],[Hide:\nProposed kW]]=\"\",Table_PI[[#This Row],[Hide:\nProposed kW]]=0),\"\",Table_PI[[#This Row],[Hide:\nProposed kW]])","v":""},{"$f":"IF(OR(Table_PI[[#This Row],[Rebate]]=\"\",Table_PI[[#This Row],[Rebate]]=0),\"\",Table_PI[[#This Row],[Rebate]])","v":""},{"$f":"IF(OR(Table_PI[[#This Row],[Hide:\nIncremental Cost]]=\"\",Table_PI[[#This Row],[Hide:\nIncremental Cost]]=0),\"\",Table_PI[[#This Row],[Hide:\nIncremental Cost]])","v":""},{"$f":"IFERROR(IF(Table_SummaryPI[[#This Row],[kWhSavings]]=\"\",\"\",ROUND(Table_SummaryPI[[#This Row],[kWhSavings]]/$AG$401*'Customer Information'!$BC$17,2)),0)","v":""},{"$f":"IF(OR(Table_PI[[#This Row],[Annual kWh]]=\"\",Table_PI[[#This Row],[Annual kWh]]=0),\"\",Table_PI[[#This Row],[Annual kWh]])","v":""},{"$f":"IF(OR(Table_PI[[#This Row],[Peak kW]]=\"\",Table_PI[[#This Row],[Peak kW]]=0),\"\",Table_PI[[#This Row],[Peak kW]])","v":""},{"$f":"IFERROR(IF(Table_SummaryPI[[#This Row],[kWhSavings]]=\"\",\"\",$AU$9*Table_SummaryPI[[#This Row],[kWhSavings]]),0)","v":""},{"$f":"IFERROR(IF(Table_SummaryPI[[#This Row],[kWhSavings]]=\"\",\"\",$AU$14*Table_SummaryPI[[#This Row],[kWhSavings]]),0)","v":""},{"$f":"IFERROR(IF(Table_SummaryPI[[#This Row],[kWhSavings]]=\"\",\"\",$AU$18*Table_SummaryPI[[#This Row],[kWhSavings]]),0)","v":""},{"$f":"IFERROR(IF(Table_SummaryPI[[#This Row],[kWhSavings]]=\"\",\"\",$AU$22*Table_SummaryPI[[#This Row],[kWhSavings]]),0)","v":""},{"$f":"IFERROR(IF(MeasureCalc(Table_PI[[#This Row],[Hide:\nFormula Name]],Table_SummaryPI[[#This Row],[Quantity]],Table_PI[[#This Row],[List 1]],Table_PI[[#This Row],[List 2]],Table_PI[[#This Row],[List 3]],Table_PI[[#This Row],[Size]],Table_PI[[#This Row],[Input 1]],Table_PI[[#This Row],[Input 2]],Table_PI[[#This Row],[Input 3]],Table_PI[[#This Row],[Input 4]],'Customer Information'!$AR$12,200,ROW())<>\"No Rebate\",MeasureCalc(Table_PI[[#This Row],[Hide:\nFormula Name]],Table_SummaryPI[[#This Row],[Quantity]],Table_PI[[#This Row],[List 1]],Table_PI[[#This Row],[List 2]],Table_PI[[#This Row],[List 3]],Table_PI[[#This Row],[Size]],Table_PI[[#This Row],[Input 1]],Table_PI[[#This Row],[Input 2]],Table_PI[[#This Row],[Input 3]],Table_PI[[#This Row],[Input 4]],'Customer Information'!$AR$12,200,ROW()),\"\"),\"\")","v":""},{"$f":"IFERROR(IF(MeasureCalc(Table_PI[[#This Row],[Hide:\nFormula Name]],Table_SummaryPI[[#This Row],[Quantity]],Table_PI[[#This Row],[List 1]],Table_PI[[#This Row],[List 2]],Table_PI[[#This Row],[List 3]],Table_PI[[#This Row],[Size]],Table_PI[[#This Row],[Input 1]],Table_PI[[#This Row],[Input 2]],Table_PI[[#This Row],[Input 3]],Table_PI[[#This Row],[Input 4]],'Customer Information'!$AR$12,201,ROW())<>\"No Rebate\",MeasureCalc(Table_PI[[#This Row],[Hide:\nFormula Name]],Table_SummaryPI[[#This Row],[Quantity]],Table_PI[[#This Row],[List 1]],Table_PI[[#This Row],[List 2]],Table_PI[[#This Row],[List 3]],Table_PI[[#This Row],[Size]],Table_PI[[#This Row],[Input 1]],Table_PI[[#This Row],[Input 2]],Table_PI[[#This Row],[Input 3]],Table_PI[[#This Row],[Input 4]],'Customer Information'!$AR$12,201,ROW()),\"\"),\"\")","v":""}]
[{"$f":"Table_PI[[#This Row],[Line No.]]","v":""},{"$f":"IF(Table_SummaryPI[[#This Row],[MeassureCategory]]<>\"\",CONCATENATE(Table_SummaryPI[[#This Row],[MeassureCategory]],  \" - \", Table_SummaryPI[[#This Row],[ProposedMeasureCategory]],  \" - \", TEXT(Table_SummaryPI[[#This Row],[Size]],\"#,##0.00\"),\" \",Table_SummaryPI[[#This Row],[SizeUnit]]),\"\")","v":""},{"$f":"SUBSTITUTE(Table_PI[[#This Row],[Measure]],\"     \",\"\",1)","v":""},{"$f":"IF(Table_PI[[#This Row],[List 1]]<>\"\",Table_PI[[#This Row],[List 1]],\"\")","v":""},{"$f":"IF(Table_PI[[#This Row],[List 2]]<>\"\",Table_PI[[#This Row],[List 2]],\"\")","v":""},{"$f":"IF(Table_PI[[#This Row],[List 3]]<>\"\",Table_PI[[#This Row],[List 3]],\"\")","v":""},{"$f":"IF(Table_PI[[#This Row],[Manufacturer]]=\"\",\"\",Table_PI[[#This Row],[Manufacturer]])","v":""},{"$f":"IF(Table_PI[[#This Row],[Model Number]]=\"\",\"\",Table_PI[[#This Row],[Model Number]])","v":""},{"$f":"IF(Table_PI[[#This Row],[Serial Number(s)]]=\"\",\"\",Table_PI[[#This Row],[Serial Number(s)]])","v":""},null,{"$f":"IF(Table_PI[[#This Row],[Size]]=\"\",\"\",Table_PI[[#This Row],[Size]])","v":""},null,{"$f":"IFERROR(IF(AND(MeasureCalc(Table_PI[[#This Row],[Hide:\nFormula Name]],Table_SummaryPI[[#This Row],[Quantity]],Table_PI[[#This Row],[List 1]],Table_PI[[#This Row],[List 2]],Table_PI[[#This Row],[List 3]],Table_PI[[#This Row],[Size]],Table_PI[[#This Row],[Input 1]],Table_PI[[#This Row],[Input 2]],Table_PI[[#This Row],[Input 3]],Table_PI[[#This Row],[Input 4]],'Customer Information'!$AR$12,100,ROW())<>0,MeasureCalc(Table_PI[[#This Row],[Hide:\nFormula Name]],Table_SummaryPI[[#This Row],[Quantity]],Table_PI[[#This Row],[List 1]],Table_PI[[#This Row],[List 2]],Table_PI[[#This Row],[List 3]],Table_PI[[#This Row],[Size]],Table_PI[[#This Row],[Input 1]],Table_PI[[#This Row],[Input 2]],Table_PI[[#This Row],[Input 3]],Table_PI[[#This Row],[Input 4]],'Customer Information'!$AR$12,100,ROW())<>\"No Rebate\"),MeasureCalc(Table_PI[[#This Row],[Hide:\nFormula Name]],Table_SummaryPI[[#This Row],[Quantity]],Table_PI[[#This Row],[List 1]],Table_PI[[#This Row],[List 2]],Table_PI[[#This Row],[List 3]],Table_PI[[#This Row],[Size]],Table_PI[[#This Row],[Input 1]],Table_PI[[#This Row],[Input 2]],Table_PI[[#This Row],[Input 3]],Table_PI[[#This Row],[Input 4]],'Customer Information'!$AR$12,100,ROW()),\"\"),\"\")","v":""},{"$f":"IF(Table_PI[[#This Row],[Input 1]]<>\"\",Table_PI[[#This Row],[Input 1]],\"\")","v":""},null,{"$f":"IFERROR(IF(AND(MeasureCalc(Table_PI[[#This Row],[Hide:\nFormula Name]],Table_SummaryPI[[#This Row],[Quantity]],Table_PI[[#This Row],[List 1]],Table_PI[[#This Row],[List 2]],Table_PI[[#This Row],[List 3]],Table_PI[[#This Row],[Size]],Table_PI[[#This Row],[Input 1]],Table_PI[[#This Row],[Input 2]],Table_PI[[#This Row],[Input 3]],Table_PI[[#This Row],[Input 4]],'Customer Information'!$AR$12,101,ROW())<>0,MeasureCalc(Table_PI[[#This Row],[Hide:\nFormula Name]],Table_SummaryPI[[#This Row],[Quantity]],Table_PI[[#This Row],[List 1]],Table_PI[[#This Row],[List 2]],Table_PI[[#This Row],[List 3]],Table_PI[[#This Row],[Size]],Table_PI[[#This Row],[Input 1]],Table_PI[[#This Row],[Input 2]],Table_PI[[#This Row],[Input 3]],Table_PI[[#This Row],[Input 4]],'Customer Information'!$AR$12,101,ROW())<>\"No Rebate\"),MeasureCalc(Table_PI[[#This Row],[Hide:\nFormula Name]],Table_SummaryPI[[#This Row],[Quantity]],Table_PI[[#This Row],[List 1]],Table_PI[[#This Row],[List 2]],Table_PI[[#This Row],[List 3]],Table_PI[[#This Row],[Size]],Table_PI[[#This Row],[Input 1]],Table_PI[[#This Row],[Input 2]],Table_PI[[#This Row],[Input 3]],Table_PI[[#This Row],[Input 4]],'Customer Information'!$AR$12,101,ROW()),\"\"),\"\")","v":""},{"$f":"IF(Table_PI[[#This Row],[Input 2]]<>\"\",Table_PI[[#This Row],[Input 2]],\"\")","v":""},null,{"$f":"IFERROR(IF(AND(MeasureCalc(Table_PI[[#This Row],[Hide:\nFormula Name]],Table_SummaryPI[[#This Row],[Quantity]],Table_PI[[#This Row],[List 1]],Table_PI[[#This Row],[List 2]],Table_PI[[#This Row],[List 3]],Table_PI[[#This Row],[Size]],Table_PI[[#This Row],[Input 1]],Table_PI[[#This Row],[Input 2]],Table_PI[[#This Row],[Input 3]],Table_PI[[#This Row],[Input 4]],'Customer Information'!$AR$12,102,ROW())<>0,MeasureCalc(Table_PI[[#This Row],[Hide:\nFormula Name]],Table_SummaryPI[[#This Row],[Quantity]],Table_PI[[#This Row],[List 1]],Table_PI[[#This Row],[List 2]],Table_PI[[#This Row],[List 3]],Table_PI[[#This Row],[Size]],Table_PI[[#This Row],[Input 1]],Table_PI[[#This Row],[Input 2]],Table_PI[[#This Row],[Input 3]],Table_PI[[#This Row],[Input 4]],'Customer Information'!$AR$12,102,ROW())<>\"No Rebate\"),MeasureCalc(Table_PI[[#This Row],[Hide:\nFormula Name]],Table_SummaryPI[[#This Row],[Quantity]],Table_PI[[#This Row],[List 1]],Table_PI[[#This Row],[List 2]],Table_PI[[#This Row],[List 3]],Table_PI[[#This Row],[Size]],Table_PI[[#This Row],[Input 1]],Table_PI[[#This Row],[Input 2]],Table_PI[[#This Row],[Input 3]],Table_PI[[#This Row],[Input 4]],'Customer Information'!$AR$12,102,ROW()),\"\"),\"\")","v":""},{"$f":"IF(Table_PI[[#This Row],[Input 3]]<>\"\",Table_PI[[#This Row],[Input 3]],\"\")","v":""},null,{"$f":"IFERROR(IF(AND(MeasureCalc(Table_PI[[#This Row],[Hide:\nFormula Name]],Table_SummaryPI[[#This Row],[Quantity]],Table_PI[[#This Row],[List 1]],Table_PI[[#This Row],[List 2]],Table_PI[[#This Row],[List 3]],Table_PI[[#This Row],[Size]],Table_PI[[#This Row],[Input 1]],Table_PI[[#This Row],[Input 2]],Table_PI[[#This Row],[Input 3]],Table_PI[[#This Row],[Input 4]],'Customer Information'!$AR$12,103,ROW())<>0,MeasureCalc(Table_PI[[#This Row],[Hide:\nFormula Name]],Table_SummaryPI[[#This Row],[Quantity]],Table_PI[[#This Row],[List 1]],Table_PI[[#This Row],[List 2]],Table_PI[[#This Row],[List 3]],Table_PI[[#This Row],[Size]],Table_PI[[#This Row],[Input 1]],Table_PI[[#This Row],[Input 2]],Table_PI[[#This Row],[Input 3]],Table_PI[[#This Row],[Input 4]],'Customer Information'!$AR$12,103,ROW())<>\"No Rebate\"),MeasureCalc(Table_PI[[#This Row],[Hide:\nFormula Name]],Table_SummaryPI[[#This Row],[Quantity]],Table_PI[[#This Row],[List 1]],Table_PI[[#This Row],[List 2]],Table_PI[[#This Row],[List 3]],Table_PI[[#This Row],[Size]],Table_PI[[#This Row],[Input 1]],Table_PI[[#This Row],[Input 2]],Table_PI[[#This Row],[Input 3]],Table_PI[[#This Row],[Input 4]],'Customer Information'!$AR$12,103,ROW()),\"\"),\"\")","v":""},{"$f":"IF(Table_PI[[#This Row],[Input 4]]<>\"\",Table_PI[[#This Row],[Input 4]],\"\")","v":""},{"$f":"IF(Table_PI[[#This Row],[Quantity]]=\"\",\"\",Table_PI[[#This Row],[Quantity]])","v":""},{"$f":"IF(Table_PI[[#This Row],[Notes]]=\"\",\"\",Table_PI[[#This Row],[Notes]])","v":""},{"$f":"IF(OR(Table_PI[[#This Row],[Hide:\nBaseline kWh]]=\"\",Table_PI[[#This Row],[Hide:\nBaseline kWh]]=0),\"\",Table_PI[[#This Row],[Hide:\nBaseline kWh]])","v":""},{"$f":"IF(OR(Table_PI[[#This Row],[Hide:\nBaseline kW]]=\"\",Table_PI[[#This Row],[Hide:\nBaseline kW]]=0),\"\",Table_PI[[#This Row],[Hide:\nBaseline kW]])","v":""},{"$f":"IF(OR(Table_PI[[#This Row],[Hide:\nProposed kWh]]=\"\",Table_PI[[#This Row],[Hide:\nProposed kWh]]=0),\"\",Table_PI[[#This Row],[Hide:\nProposed kWh]])","v":""},{"$f":"IF(OR(Table_PI[[#This Row],[Hide:\nProposed kW]]=\"\",Table_PI[[#This Row],[Hide:\nProposed kW]]=0),\"\",Table_PI[[#This Row],[Hide:\nProposed kW]])","v":""},{"$f":"IF(OR(Table_PI[[#This Row],[Rebate]]=\"\",Table_PI[[#This Row],[Rebate]]=0),\"\",Table_PI[[#This Row],[Rebate]])","v":""},{"$f":"IF(OR(Table_PI[[#This Row],[Hide:\nIncremental Cost]]=\"\",Table_PI[[#This Row],[Hide:\nIncremental Cost]]=0),\"\",Table_PI[[#This Row],[Hide:\nIncremental Cost]])","v":""},{"$f":"IFERROR(IF(Table_SummaryPI[[#This Row],[kWhSavings]]=\"\",\"\",ROUND(Table_SummaryPI[[#This Row],[kWhSavings]]/$AG$401*'Customer Information'!$BC$17,2)),0)","v":""},{"$f":"IF(OR(Table_PI[[#This Row],[Annual kWh]]=\"\",Table_PI[[#This Row],[Annual kWh]]=0),\"\",Table_PI[[#This Row],[Annual kWh]])","v":""},{"$f":"IF(OR(Table_PI[[#This Row],[Peak kW]]=\"\",Table_PI[[#This Row],[Peak kW]]=0),\"\",Table_PI[[#This Row],[Peak kW]])","v":""},{"$f":"IFERROR(IF(Table_SummaryPI[[#This Row],[kWhSavings]]=\"\",\"\",$AU$9*Table_SummaryPI[[#This Row],[kWhSavings]]),0)","v":""},{"$f":"IFERROR(IF(Table_SummaryPI[[#This Row],[kWhSavings]]=\"\",\"\",$AU$14*Table_SummaryPI[[#This Row],[kWhSavings]]),0)","v":""},{"$f":"IFERROR(IF(Table_SummaryPI[[#This Row],[kWhSavings]]=\"\",\"\",$AU$18*Table_SummaryPI[[#This Row],[kWhSavings]]),0)","v":""},{"$f":"IFERROR(IF(Table_SummaryPI[[#This Row],[kWhSavings]]=\"\",\"\",$AU$22*Table_SummaryPI[[#This Row],[kWhSavings]]),0)","v":""},{"$f":"IFERROR(IF(MeasureCalc(Table_PI[[#This Row],[Hide:\nFormula Name]],Table_SummaryPI[[#This Row],[Quantity]],Table_PI[[#This Row],[List 1]],Table_PI[[#This Row],[List 2]],Table_PI[[#This Row],[List 3]],Table_PI[[#This Row],[Size]],Table_PI[[#This Row],[Input 1]],Table_PI[[#This Row],[Input 2]],Table_PI[[#This Row],[Input 3]],Table_PI[[#This Row],[Input 4]],'Customer Information'!$AR$12,200,ROW())<>\"No Rebate\",MeasureCalc(Table_PI[[#This Row],[Hide:\nFormula Name]],Table_SummaryPI[[#This Row],[Quantity]],Table_PI[[#This Row],[List 1]],Table_PI[[#This Row],[List 2]],Table_PI[[#This Row],[List 3]],Table_PI[[#This Row],[Size]],Table_PI[[#This Row],[Input 1]],Table_PI[[#This Row],[Input 2]],Table_PI[[#This Row],[Input 3]],Table_PI[[#This Row],[Input 4]],'Customer Information'!$AR$12,200,ROW()),\"\"),\"\")","v":""},{"$f":"IFERROR(IF(MeasureCalc(Table_PI[[#This Row],[Hide:\nFormula Name]],Table_SummaryPI[[#This Row],[Quantity]],Table_PI[[#This Row],[List 1]],Table_PI[[#This Row],[List 2]],Table_PI[[#This Row],[List 3]],Table_PI[[#This Row],[Size]],Table_PI[[#This Row],[Input 1]],Table_PI[[#This Row],[Input 2]],Table_PI[[#This Row],[Input 3]],Table_PI[[#This Row],[Input 4]],'Customer Information'!$AR$12,201,ROW())<>\"No Rebate\",MeasureCalc(Table_PI[[#This Row],[Hide:\nFormula Name]],Table_SummaryPI[[#This Row],[Quantity]],Table_PI[[#This Row],[List 1]],Table_PI[[#This Row],[List 2]],Table_PI[[#This Row],[List 3]],Table_PI[[#This Row],[Size]],Table_PI[[#This Row],[Input 1]],Table_PI[[#This Row],[Input 2]],Table_PI[[#This Row],[Input 3]],Table_PI[[#This Row],[Input 4]],'Customer Information'!$AR$12,201,ROW()),\"\"),\"\")","v":""}]
[{"$f":"Table_PI[[#This Row],[Line No.]]","v":""},{"$f":"IF(Table_SummaryPI[[#This Row],[MeassureCategory]]<>\"\",CONCATENATE(Table_SummaryPI[[#This Row],[MeassureCategory]],  \" - \", Table_SummaryPI[[#This Row],[ProposedMeasureCategory]],  \" - \", TEXT(Table_SummaryPI[[#This Row],[Size]],\"#,##0.00\"),\" \",Table_SummaryPI[[#This Row],[SizeUnit]]),\"\")","v":""},{"$f":"SUBSTITUTE(Table_PI[[#This Row],[Measure]],\"     \",\"\",1)","v":""},{"$f":"IF(Table_PI[[#This Row],[List 1]]<>\"\",Table_PI[[#This Row],[List 1]],\"\")","v":""},{"$f":"IF(Table_PI[[#This Row],[List 2]]<>\"\",Table_PI[[#This Row],[List 2]],\"\")","v":""},{"$f":"IF(Table_PI[[#This Row],[List 3]]<>\"\",Table_PI[[#This Row],[List 3]],\"\")","v":""},{"$f":"IF(Table_PI[[#This Row],[Manufacturer]]=\"\",\"\",Table_PI[[#This Row],[Manufacturer]])","v":""},{"$f":"IF(Table_PI[[#This Row],[Model Number]]=\"\",\"\",Table_PI[[#This Row],[Model Number]])","v":""},{"$f":"IF(Table_PI[[#This Row],[Serial Number(s)]]=\"\",\"\",Table_PI[[#This Row],[Serial Number(s)]])","v":""},null,{"$f":"IF(Table_PI[[#This Row],[Size]]=\"\",\"\",Table_PI[[#This Row],[Size]])","v":""},null,{"$f":"IFERROR(IF(AND(MeasureCalc(Table_PI[[#This Row],[Hide:\nFormula Name]],Table_SummaryPI[[#This Row],[Quantity]],Table_PI[[#This Row],[List 1]],Table_PI[[#This Row],[List 2]],Table_PI[[#This Row],[List 3]],Table_PI[[#This Row],[Size]],Table_PI[[#This Row],[Input 1]],Table_PI[[#This Row],[Input 2]],Table_PI[[#This Row],[Input 3]],Table_PI[[#This Row],[Input 4]],'Customer Information'!$AR$12,100,ROW())<>0,MeasureCalc(Table_PI[[#This Row],[Hide:\nFormula Name]],Table_SummaryPI[[#This Row],[Quantity]],Table_PI[[#This Row],[List 1]],Table_PI[[#This Row],[List 2]],Table_PI[[#This Row],[List 3]],Table_PI[[#This Row],[Size]],Table_PI[[#This Row],[Input 1]],Table_PI[[#This Row],[Input 2]],Table_PI[[#This Row],[Input 3]],Table_PI[[#This Row],[Input 4]],'Customer Information'!$AR$12,100,ROW())<>\"No Rebate\"),MeasureCalc(Table_PI[[#This Row],[Hide:\nFormula Name]],Table_SummaryPI[[#This Row],[Quantity]],Table_PI[[#This Row],[List 1]],Table_PI[[#This Row],[List 2]],Table_PI[[#This Row],[List 3]],Table_PI[[#This Row],[Size]],Table_PI[[#This Row],[Input 1]],Table_PI[[#This Row],[Input 2]],Table_PI[[#This Row],[Input 3]],Table_PI[[#This Row],[Input 4]],'Customer Information'!$AR$12,100,ROW()),\"\"),\"\")","v":""},{"$f":"IF(Table_PI[[#This Row],[Input 1]]<>\"\",Table_PI[[#This Row],[Input 1]],\"\")","v":""},null,{"$f":"IFERROR(IF(AND(MeasureCalc(Table_PI[[#This Row],[Hide:\nFormula Name]],Table_SummaryPI[[#This Row],[Quantity]],Table_PI[[#This Row],[List 1]],Table_PI[[#This Row],[List 2]],Table_PI[[#This Row],[List 3]],Table_PI[[#This Row],[Size]],Table_PI[[#This Row],[Input 1]],Table_PI[[#This Row],[Input 2]],Table_PI[[#This Row],[Input 3]],Table_PI[[#This Row],[Input 4]],'Customer Information'!$AR$12,101,ROW())<>0,MeasureCalc(Table_PI[[#This Row],[Hide:\nFormula Name]],Table_SummaryPI[[#This Row],[Quantity]],Table_PI[[#This Row],[List 1]],Table_PI[[#This Row],[List 2]],Table_PI[[#This Row],[List 3]],Table_PI[[#This Row],[Size]],Table_PI[[#This Row],[Input 1]],Table_PI[[#This Row],[Input 2]],Table_PI[[#This Row],[Input 3]],Table_PI[[#This Row],[Input 4]],'Customer Information'!$AR$12,101,ROW())<>\"No Rebate\"),MeasureCalc(Table_PI[[#This Row],[Hide:\nFormula Name]],Table_SummaryPI[[#This Row],[Quantity]],Table_PI[[#This Row],[List 1]],Table_PI[[#This Row],[List 2]],Table_PI[[#This Row],[List 3]],Table_PI[[#This Row],[Size]],Table_PI[[#This Row],[Input 1]],Table_PI[[#This Row],[Input 2]],Table_PI[[#This Row],[Input 3]],Table_PI[[#This Row],[Input 4]],'Customer Information'!$AR$12,101,ROW()),\"\"),\"\")","v":""},{"$f":"IF(Table_PI[[#This Row],[Input 2]]<>\"\",Table_PI[[#This Row],[Input 2]],\"\")","v":""},null,{"$f":"IFERROR(IF(AND(MeasureCalc(Table_PI[[#This Row],[Hide:\nFormula Name]],Table_SummaryPI[[#This Row],[Quantity]],Table_PI[[#This Row],[List 1]],Table_PI[[#This Row],[List 2]],Table_PI[[#This Row],[List 3]],Table_PI[[#This Row],[Size]],Table_PI[[#This Row],[Input 1]],Table_PI[[#This Row],[Input 2]],Table_PI[[#This Row],[Input 3]],Table_PI[[#This Row],[Input 4]],'Customer Information'!$AR$12,102,ROW())<>0,MeasureCalc(Table_PI[[#This Row],[Hide:\nFormula Name]],Table_SummaryPI[[#This Row],[Quantity]],Table_PI[[#This Row],[List 1]],Table_PI[[#This Row],[List 2]],Table_PI[[#This Row],[List 3]],Table_PI[[#This Row],[Size]],Table_PI[[#This Row],[Input 1]],Table_PI[[#This Row],[Input 2]],Table_PI[[#This Row],[Input 3]],Table_PI[[#This Row],[Input 4]],'Customer Information'!$AR$12,102,ROW())<>\"No Rebate\"),MeasureCalc(Table_PI[[#This Row],[Hide:\nFormula Name]],Table_SummaryPI[[#This Row],[Quantity]],Table_PI[[#This Row],[List 1]],Table_PI[[#This Row],[List 2]],Table_PI[[#This Row],[List 3]],Table_PI[[#This Row],[Size]],Table_PI[[#This Row],[Input 1]],Table_PI[[#This Row],[Input 2]],Table_PI[[#This Row],[Input 3]],Table_PI[[#This Row],[Input 4]],'Customer Information'!$AR$12,102,ROW()),\"\"),\"\")","v":""},{"$f":"IF(Table_PI[[#This Row],[Input 3]]<>\"\",Table_PI[[#This Row],[Input 3]],\"\")","v":""},null,{"$f":"IFERROR(IF(AND(MeasureCalc(Table_PI[[#This Row],[Hide:\nFormula Name]],Table_SummaryPI[[#This Row],[Quantity]],Table_PI[[#This Row],[List 1]],Table_PI[[#This Row],[List 2]],Table_PI[[#This Row],[List 3]],Table_PI[[#This Row],[Size]],Table_PI[[#This Row],[Input 1]],Table_PI[[#This Row],[Input 2]],Table_PI[[#This Row],[Input 3]],Table_PI[[#This Row],[Input 4]],'Customer Information'!$AR$12,103,ROW())<>0,MeasureCalc(Table_PI[[#This Row],[Hide:\nFormula Name]],Table_SummaryPI[[#This Row],[Quantity]],Table_PI[[#This Row],[List 1]],Table_PI[[#This Row],[List 2]],Table_PI[[#This Row],[List 3]],Table_PI[[#This Row],[Size]],Table_PI[[#This Row],[Input 1]],Table_PI[[#This Row],[Input 2]],Table_PI[[#This Row],[Input 3]],Table_PI[[#This Row],[Input 4]],'Customer Information'!$AR$12,103,ROW())<>\"No Rebate\"),MeasureCalc(Table_PI[[#This Row],[Hide:\nFormula Name]],Table_SummaryPI[[#This Row],[Quantity]],Table_PI[[#This Row],[List 1]],Table_PI[[#This Row],[List 2]],Table_PI[[#This Row],[List 3]],Table_PI[[#This Row],[Size]],Table_PI[[#This Row],[Input 1]],Table_PI[[#This Row],[Input 2]],Table_PI[[#This Row],[Input 3]],Table_PI[[#This Row],[Input 4]],'Customer Information'!$AR$12,103,ROW()),\"\"),\"\")","v":""},{"$f":"IF(Table_PI[[#This Row],[Input 4]]<>\"\",Table_PI[[#This Row],[Input 4]],\"\")","v":""},{"$f":"IF(Table_PI[[#This Row],[Quantity]]=\"\",\"\",Table_PI[[#This Row],[Quantity]])","v":""},{"$f":"IF(Table_PI[[#This Row],[Notes]]=\"\",\"\",Table_PI[[#This Row],[Notes]])","v":""},{"$f":"IF(OR(Table_PI[[#This Row],[Hide:\nBaseline kWh]]=\"\",Table_PI[[#This Row],[Hide:\nBaseline kWh]]=0),\"\",Table_PI[[#This Row],[Hide:\nBaseline kWh]])","v":""},{"$f":"IF(OR(Table_PI[[#This Row],[Hide:\nBaseline kW]]=\"\",Table_PI[[#This Row],[Hide:\nBaseline kW]]=0),\"\",Table_PI[[#This Row],[Hide:\nBaseline kW]])","v":""},{"$f":"IF(OR(Table_PI[[#This Row],[Hide:\nProposed kWh]]=\"\",Table_PI[[#This Row],[Hide:\nProposed kWh]]=0),\"\",Table_PI[[#This Row],[Hide:\nProposed kWh]])","v":""},{"$f":"IF(OR(Table_PI[[#This Row],[Hide:\nProposed kW]]=\"\",Table_PI[[#This Row],[Hide:\nProposed kW]]=0),\"\",Table_PI[[#This Row],[Hide:\nProposed kW]])","v":""},{"$f":"IF(OR(Table_PI[[#This Row],[Rebate]]=\"\",Table_PI[[#This Row],[Rebate]]=0),\"\",Table_PI[[#This Row],[Rebate]])","v":""},{"$f":"IF(OR(Table_PI[[#This Row],[Hide:\nIncremental Cost]]=\"\",Table_PI[[#This Row],[Hide:\nIncremental Cost]]=0),\"\",Table_PI[[#This Row],[Hide:\nIncremental Cost]])","v":""},{"$f":"IFERROR(IF(Table_SummaryPI[[#This Row],[kWhSavings]]=\"\",\"\",ROUND(Table_SummaryPI[[#This Row],[kWhSavings]]/$AG$401*'Customer Information'!$BC$17,2)),0)","v":""},{"$f":"IF(OR(Table_PI[[#This Row],[Annual kWh]]=\"\",Table_PI[[#This Row],[Annual kWh]]=0),\"\",Table_PI[[#This Row],[Annual kWh]])","v":""},{"$f":"IF(OR(Table_PI[[#This Row],[Peak kW]]=\"\",Table_PI[[#This Row],[Peak kW]]=0),\"\",Table_PI[[#This Row],[Peak kW]])","v":""},{"$f":"IFERROR(IF(Table_SummaryPI[[#This Row],[kWhSavings]]=\"\",\"\",$AU$9*Table_SummaryPI[[#This Row],[kWhSavings]]),0)","v":""},{"$f":"IFERROR(IF(Table_SummaryPI[[#This Row],[kWhSavings]]=\"\",\"\",$AU$14*Table_SummaryPI[[#This Row],[kWhSavings]]),0)","v":""},{"$f":"IFERROR(IF(Table_SummaryPI[[#This Row],[kWhSavings]]=\"\",\"\",$AU$18*Table_SummaryPI[[#This Row],[kWhSavings]]),0)","v":""},{"$f":"IFERROR(IF(Table_SummaryPI[[#This Row],[kWhSavings]]=\"\",\"\",$AU$22*Table_SummaryPI[[#This Row],[kWhSavings]]),0)","v":""},{"$f":"IFERROR(IF(MeasureCalc(Table_PI[[#This Row],[Hide:\nFormula Name]],Table_SummaryPI[[#This Row],[Quantity]],Table_PI[[#This Row],[List 1]],Table_PI[[#This Row],[List 2]],Table_PI[[#This Row],[List 3]],Table_PI[[#This Row],[Size]],Table_PI[[#This Row],[Input 1]],Table_PI[[#This Row],[Input 2]],Table_PI[[#This Row],[Input 3]],Table_PI[[#This Row],[Input 4]],'Customer Information'!$AR$12,200,ROW())<>\"No Rebate\",MeasureCalc(Table_PI[[#This Row],[Hide:\nFormula Name]],Table_SummaryPI[[#This Row],[Quantity]],Table_PI[[#This Row],[List 1]],Table_PI[[#This Row],[List 2]],Table_PI[[#This Row],[List 3]],Table_PI[[#This Row],[Size]],Table_PI[[#This Row],[Input 1]],Table_PI[[#This Row],[Input 2]],Table_PI[[#This Row],[Input 3]],Table_PI[[#This Row],[Input 4]],'Customer Information'!$AR$12,200,ROW()),\"\"),\"\")","v":""},{"$f":"IFERROR(IF(MeasureCalc(Table_PI[[#This Row],[Hide:\nFormula Name]],Table_SummaryPI[[#This Row],[Quantity]],Table_PI[[#This Row],[List 1]],Table_PI[[#This Row],[List 2]],Table_PI[[#This Row],[List 3]],Table_PI[[#This Row],[Size]],Table_PI[[#This Row],[Input 1]],Table_PI[[#This Row],[Input 2]],Table_PI[[#This Row],[Input 3]],Table_PI[[#This Row],[Input 4]],'Customer Information'!$AR$12,201,ROW())<>\"No Rebate\",MeasureCalc(Table_PI[[#This Row],[Hide:\nFormula Name]],Table_SummaryPI[[#This Row],[Quantity]],Table_PI[[#This Row],[List 1]],Table_PI[[#This Row],[List 2]],Table_PI[[#This Row],[List 3]],Table_PI[[#This Row],[Size]],Table_PI[[#This Row],[Input 1]],Table_PI[[#This Row],[Input 2]],Table_PI[[#This Row],[Input 3]],Table_PI[[#This Row],[Input 4]],'Customer Information'!$AR$12,201,ROW()),\"\"),\"\")","v":""}]
[{"$f":"Table_PI[[#This Row],[Line No.]]","v":""},{"$f":"IF(Table_SummaryPI[[#This Row],[MeassureCategory]]<>\"\",CONCATENATE(Table_SummaryPI[[#This Row],[MeassureCategory]],  \" - \", Table_SummaryPI[[#This Row],[ProposedMeasureCategory]],  \" - \", TEXT(Table_SummaryPI[[#This Row],[Size]],\"#,##0.00\"),\" \",Table_SummaryPI[[#This Row],[SizeUnit]]),\"\")","v":""},{"$f":"SUBSTITUTE(Table_PI[[#This Row],[Measure]],\"     \",\"\",1)","v":""},{"$f":"IF(Table_PI[[#This Row],[List 1]]<>\"\",Table_PI[[#This Row],[List 1]],\"\")","v":""},{"$f":"IF(Table_PI[[#This Row],[List 2]]<>\"\",Table_PI[[#This Row],[List 2]],\"\")","v":""},{"$f":"IF(Table_PI[[#This Row],[List 3]]<>\"\",Table_PI[[#This Row],[List 3]],\"\")","v":""},{"$f":"IF(Table_PI[[#This Row],[Manufacturer]]=\"\",\"\",Table_PI[[#This Row],[Manufacturer]])","v":""},{"$f":"IF(Table_PI[[#This Row],[Model Number]]=\"\",\"\",Table_PI[[#This Row],[Model Number]])","v":""},{"$f":"IF(Table_PI[[#This Row],[Serial Number(s)]]=\"\",\"\",Table_PI[[#This Row],[Serial Number(s)]])","v":""},null,{"$f":"IF(Table_PI[[#This Row],[Size]]=\"\",\"\",Table_PI[[#This Row],[Size]])","v":""},null,{"$f":"IFERROR(IF(AND(MeasureCalc(Table_PI[[#This Row],[Hide:\nFormula Name]],Table_SummaryPI[[#This Row],[Quantity]],Table_PI[[#This Row],[List 1]],Table_PI[[#This Row],[List 2]],Table_PI[[#This Row],[List 3]],Table_PI[[#This Row],[Size]],Table_PI[[#This Row],[Input 1]],Table_PI[[#This Row],[Input 2]],Table_PI[[#This Row],[Input 3]],Table_PI[[#This Row],[Input 4]],'Customer Information'!$AR$12,100,ROW())<>0,MeasureCalc(Table_PI[[#This Row],[Hide:\nFormula Name]],Table_SummaryPI[[#This Row],[Quantity]],Table_PI[[#This Row],[List 1]],Table_PI[[#This Row],[List 2]],Table_PI[[#This Row],[List 3]],Table_PI[[#This Row],[Size]],Table_PI[[#This Row],[Input 1]],Table_PI[[#This Row],[Input 2]],Table_PI[[#This Row],[Input 3]],Table_PI[[#This Row],[Input 4]],'Customer Information'!$AR$12,100,ROW())<>\"No Rebate\"),MeasureCalc(Table_PI[[#This Row],[Hide:\nFormula Name]],Table_SummaryPI[[#This Row],[Quantity]],Table_PI[[#This Row],[List 1]],Table_PI[[#This Row],[List 2]],Table_PI[[#This Row],[List 3]],Table_PI[[#This Row],[Size]],Table_PI[[#This Row],[Input 1]],Table_PI[[#This Row],[Input 2]],Table_PI[[#This Row],[Input 3]],Table_PI[[#This Row],[Input 4]],'Customer Information'!$AR$12,100,ROW()),\"\"),\"\")","v":""},{"$f":"IF(Table_PI[[#This Row],[Input 1]]<>\"\",Table_PI[[#This Row],[Input 1]],\"\")","v":""},null,{"$f":"IFERROR(IF(AND(MeasureCalc(Table_PI[[#This Row],[Hide:\nFormula Name]],Table_SummaryPI[[#This Row],[Quantity]],Table_PI[[#This Row],[List 1]],Table_PI[[#This Row],[List 2]],Table_PI[[#This Row],[List 3]],Table_PI[[#This Row],[Size]],Table_PI[[#This Row],[Input 1]],Table_PI[[#This Row],[Input 2]],Table_PI[[#This Row],[Input 3]],Table_PI[[#This Row],[Input 4]],'Customer Information'!$AR$12,101,ROW())<>0,MeasureCalc(Table_PI[[#This Row],[Hide:\nFormula Name]],Table_SummaryPI[[#This Row],[Quantity]],Table_PI[[#This Row],[List 1]],Table_PI[[#This Row],[List 2]],Table_PI[[#This Row],[List 3]],Table_PI[[#This Row],[Size]],Table_PI[[#This Row],[Input 1]],Table_PI[[#This Row],[Input 2]],Table_PI[[#This Row],[Input 3]],Table_PI[[#This Row],[Input 4]],'Customer Information'!$AR$12,101,ROW())<>\"No Rebate\"),MeasureCalc(Table_PI[[#This Row],[Hide:\nFormula Name]],Table_SummaryPI[[#This Row],[Quantity]],Table_PI[[#This Row],[List 1]],Table_PI[[#This Row],[List 2]],Table_PI[[#This Row],[List 3]],Table_PI[[#This Row],[Size]],Table_PI[[#This Row],[Input 1]],Table_PI[[#This Row],[Input 2]],Table_PI[[#This Row],[Input 3]],Table_PI[[#This Row],[Input 4]],'Customer Information'!$AR$12,101,ROW()),\"\"),\"\")","v":""},{"$f":"IF(Table_PI[[#This Row],[Input 2]]<>\"\",Table_PI[[#This Row],[Input 2]],\"\")","v":""},null,{"$f":"IFERROR(IF(AND(MeasureCalc(Table_PI[[#This Row],[Hide:\nFormula Name]],Table_SummaryPI[[#This Row],[Quantity]],Table_PI[[#This Row],[List 1]],Table_PI[[#This Row],[List 2]],Table_PI[[#This Row],[List 3]],Table_PI[[#This Row],[Size]],Table_PI[[#This Row],[Input 1]],Table_PI[[#This Row],[Input 2]],Table_PI[[#This Row],[Input 3]],Table_PI[[#This Row],[Input 4]],'Customer Information'!$AR$12,102,ROW())<>0,MeasureCalc(Table_PI[[#This Row],[Hide:\nFormula Name]],Table_SummaryPI[[#This Row],[Quantity]],Table_PI[[#This Row],[List 1]],Table_PI[[#This Row],[List 2]],Table_PI[[#This Row],[List 3]],Table_PI[[#This Row],[Size]],Table_PI[[#This Row],[Input 1]],Table_PI[[#This Row],[Input 2]],Table_PI[[#This Row],[Input 3]],Table_PI[[#This Row],[Input 4]],'Customer Information'!$AR$12,102,ROW())<>\"No Rebate\"),MeasureCalc(Table_PI[[#This Row],[Hide:\nFormula Name]],Table_SummaryPI[[#This Row],[Quantity]],Table_PI[[#This Row],[List 1]],Table_PI[[#This Row],[List 2]],Table_PI[[#This Row],[List 3]],Table_PI[[#This Row],[Size]],Table_PI[[#This Row],[Input 1]],Table_PI[[#This Row],[Input 2]],Table_PI[[#This Row],[Input 3]],Table_PI[[#This Row],[Input 4]],'Customer Information'!$AR$12,102,ROW()),\"\"),\"\")","v":""},{"$f":"IF(Table_PI[[#This Row],[Input 3]]<>\"\",Table_PI[[#This Row],[Input 3]],\"\")","v":""},null,{"$f":"IFERROR(IF(AND(MeasureCalc(Table_PI[[#This Row],[Hide:\nFormula Name]],Table_SummaryPI[[#This Row],[Quantity]],Table_PI[[#This Row],[List 1]],Table_PI[[#This Row],[List 2]],Table_PI[[#This Row],[List 3]],Table_PI[[#This Row],[Size]],Table_PI[[#This Row],[Input 1]],Table_PI[[#This Row],[Input 2]],Table_PI[[#This Row],[Input 3]],Table_PI[[#This Row],[Input 4]],'Customer Information'!$AR$12,103,ROW())<>0,MeasureCalc(Table_PI[[#This Row],[Hide:\nFormula Name]],Table_SummaryPI[[#This Row],[Quantity]],Table_PI[[#This Row],[List 1]],Table_PI[[#This Row],[List 2]],Table_PI[[#This Row],[List 3]],Table_PI[[#This Row],[Size]],Table_PI[[#This Row],[Input 1]],Table_PI[[#This Row],[Input 2]],Table_PI[[#This Row],[Input 3]],Table_PI[[#This Row],[Input 4]],'Customer Information'!$AR$12,103,ROW())<>\"No Rebate\"),MeasureCalc(Table_PI[[#This Row],[Hide:\nFormula Name]],Table_SummaryPI[[#This Row],[Quantity]],Table_PI[[#This Row],[List 1]],Table_PI[[#This Row],[List 2]],Table_PI[[#This Row],[List 3]],Table_PI[[#This Row],[Size]],Table_PI[[#This Row],[Input 1]],Table_PI[[#This Row],[Input 2]],Table_PI[[#This Row],[Input 3]],Table_PI[[#This Row],[Input 4]],'Customer Information'!$AR$12,103,ROW()),\"\"),\"\")","v":""},{"$f":"IF(Table_PI[[#This Row],[Input 4]]<>\"\",Table_PI[[#This Row],[Input 4]],\"\")","v":""},{"$f":"IF(Table_PI[[#This Row],[Quantity]]=\"\",\"\",Table_PI[[#This Row],[Quantity]])","v":""},{"$f":"IF(Table_PI[[#This Row],[Notes]]=\"\",\"\",Table_PI[[#This Row],[Notes]])","v":""},{"$f":"IF(OR(Table_PI[[#This Row],[Hide:\nBaseline kWh]]=\"\",Table_PI[[#This Row],[Hide:\nBaseline kWh]]=0),\"\",Table_PI[[#This Row],[Hide:\nBaseline kWh]])","v":""},{"$f":"IF(OR(Table_PI[[#This Row],[Hide:\nBaseline kW]]=\"\",Table_PI[[#This Row],[Hide:\nBaseline kW]]=0),\"\",Table_PI[[#This Row],[Hide:\nBaseline kW]])","v":""},{"$f":"IF(OR(Table_PI[[#This Row],[Hide:\nProposed kWh]]=\"\",Table_PI[[#This Row],[Hide:\nProposed kWh]]=0),\"\",Table_PI[[#This Row],[Hide:\nProposed kWh]])","v":""},{"$f":"IF(OR(Table_PI[[#This Row],[Hide:\nProposed kW]]=\"\",Table_PI[[#This Row],[Hide:\nProposed kW]]=0),\"\",Table_PI[[#This Row],[Hide:\nProposed kW]])","v":""},{"$f":"IF(OR(Table_PI[[#This Row],[Rebate]]=\"\",Table_PI[[#This Row],[Rebate]]=0),\"\",Table_PI[[#This Row],[Rebate]])","v":""},{"$f":"IF(OR(Table_PI[[#This Row],[Hide:\nIncremental Cost]]=\"\",Table_PI[[#This Row],[Hide:\nIncremental Cost]]=0),\"\",Table_PI[[#This Row],[Hide:\nIncremental Cost]])","v":""},{"$f":"IFERROR(IF(Table_SummaryPI[[#This Row],[kWhSavings]]=\"\",\"\",ROUND(Table_SummaryPI[[#This Row],[kWhSavings]]/$AG$401*'Customer Information'!$BC$17,2)),0)","v":""},{"$f":"IF(OR(Table_PI[[#This Row],[Annual kWh]]=\"\",Table_PI[[#This Row],[Annual kWh]]=0),\"\",Table_PI[[#This Row],[Annual kWh]])","v":""},{"$f":"IF(OR(Table_PI[[#This Row],[Peak kW]]=\"\",Table_PI[[#This Row],[Peak kW]]=0),\"\",Table_PI[[#This Row],[Peak kW]])","v":""},{"$f":"IFERROR(IF(Table_SummaryPI[[#This Row],[kWhSavings]]=\"\",\"\",$AU$9*Table_SummaryPI[[#This Row],[kWhSavings]]),0)","v":""},{"$f":"IFERROR(IF(Table_SummaryPI[[#This Row],[kWhSavings]]=\"\",\"\",$AU$14*Table_SummaryPI[[#This Row],[kWhSavings]]),0)","v":""},{"$f":"IFERROR(IF(Table_SummaryPI[[#This Row],[kWhSavings]]=\"\",\"\",$AU$18*Table_SummaryPI[[#This Row],[kWhSavings]]),0)","v":""},{"$f":"IFERROR(IF(Table_SummaryPI[[#This Row],[kWhSavings]]=\"\",\"\",$AU$22*Table_SummaryPI[[#This Row],[kWhSavings]]),0)","v":""},{"$f":"IFERROR(IF(MeasureCalc(Table_PI[[#This Row],[Hide:\nFormula Name]],Table_SummaryPI[[#This Row],[Quantity]],Table_PI[[#This Row],[List 1]],Table_PI[[#This Row],[List 2]],Table_PI[[#This Row],[List 3]],Table_PI[[#This Row],[Size]],Table_PI[[#This Row],[Input 1]],Table_PI[[#This Row],[Input 2]],Table_PI[[#This Row],[Input 3]],Table_PI[[#This Row],[Input 4]],'Customer Information'!$AR$12,200,ROW())<>\"No Rebate\",MeasureCalc(Table_PI[[#This Row],[Hide:\nFormula Name]],Table_SummaryPI[[#This Row],[Quantity]],Table_PI[[#This Row],[List 1]],Table_PI[[#This Row],[List 2]],Table_PI[[#This Row],[List 3]],Table_PI[[#This Row],[Size]],Table_PI[[#This Row],[Input 1]],Table_PI[[#This Row],[Input 2]],Table_PI[[#This Row],[Input 3]],Table_PI[[#This Row],[Input 4]],'Customer Information'!$AR$12,200,ROW()),\"\"),\"\")","v":""},{"$f":"IFERROR(IF(MeasureCalc(Table_PI[[#This Row],[Hide:\nFormula Name]],Table_SummaryPI[[#This Row],[Quantity]],Table_PI[[#This Row],[List 1]],Table_PI[[#This Row],[List 2]],Table_PI[[#This Row],[List 3]],Table_PI[[#This Row],[Size]],Table_PI[[#This Row],[Input 1]],Table_PI[[#This Row],[Input 2]],Table_PI[[#This Row],[Input 3]],Table_PI[[#This Row],[Input 4]],'Customer Information'!$AR$12,201,ROW())<>\"No Rebate\",MeasureCalc(Table_PI[[#This Row],[Hide:\nFormula Name]],Table_SummaryPI[[#This Row],[Quantity]],Table_PI[[#This Row],[List 1]],Table_PI[[#This Row],[List 2]],Table_PI[[#This Row],[List 3]],Table_PI[[#This Row],[Size]],Table_PI[[#This Row],[Input 1]],Table_PI[[#This Row],[Input 2]],Table_PI[[#This Row],[Input 3]],Table_PI[[#This Row],[Input 4]],'Customer Information'!$AR$12,201,ROW()),\"\"),\"\")","v":""}]
[{"$f":"Table_PI[[#This Row],[Line No.]]","v":""},{"$f":"IF(Table_SummaryPI[[#This Row],[MeassureCategory]]<>\"\",CONCATENATE(Table_SummaryPI[[#This Row],[MeassureCategory]],  \" - \", Table_SummaryPI[[#This Row],[ProposedMeasureCategory]],  \" - \", TEXT(Table_SummaryPI[[#This Row],[Size]],\"#,##0.00\"),\" \",Table_SummaryPI[[#This Row],[SizeUnit]]),\"\")","v":""},{"$f":"SUBSTITUTE(Table_PI[[#This Row],[Measure]],\"     \",\"\",1)","v":""},{"$f":"IF(Table_PI[[#This Row],[List 1]]<>\"\",Table_PI[[#This Row],[List 1]],\"\")","v":""},{"$f":"IF(Table_PI[[#This Row],[List 2]]<>\"\",Table_PI[[#This Row],[List 2]],\"\")","v":""},{"$f":"IF(Table_PI[[#This Row],[List 3]]<>\"\",Table_PI[[#This Row],[List 3]],\"\")","v":""},{"$f":"IF(Table_PI[[#This Row],[Manufacturer]]=\"\",\"\",Table_PI[[#This Row],[Manufacturer]])","v":""},{"$f":"IF(Table_PI[[#This Row],[Model Number]]=\"\",\"\",Table_PI[[#This Row],[Model Number]])","v":""},{"$f":"IF(Table_PI[[#This Row],[Serial Number(s)]]=\"\",\"\",Table_PI[[#This Row],[Serial Number(s)]])","v":""},null,{"$f":"IF(Table_PI[[#This Row],[Size]]=\"\",\"\",Table_PI[[#This Row],[Size]])","v":""},null,{"$f":"IFERROR(IF(AND(MeasureCalc(Table_PI[[#This Row],[Hide:\nFormula Name]],Table_SummaryPI[[#This Row],[Quantity]],Table_PI[[#This Row],[List 1]],Table_PI[[#This Row],[List 2]],Table_PI[[#This Row],[List 3]],Table_PI[[#This Row],[Size]],Table_PI[[#This Row],[Input 1]],Table_PI[[#This Row],[Input 2]],Table_PI[[#This Row],[Input 3]],Table_PI[[#This Row],[Input 4]],'Customer Information'!$AR$12,100,ROW())<>0,MeasureCalc(Table_PI[[#This Row],[Hide:\nFormula Name]],Table_SummaryPI[[#This Row],[Quantity]],Table_PI[[#This Row],[List 1]],Table_PI[[#This Row],[List 2]],Table_PI[[#This Row],[List 3]],Table_PI[[#This Row],[Size]],Table_PI[[#This Row],[Input 1]],Table_PI[[#This Row],[Input 2]],Table_PI[[#This Row],[Input 3]],Table_PI[[#This Row],[Input 4]],'Customer Information'!$AR$12,100,ROW())<>\"No Rebate\"),MeasureCalc(Table_PI[[#This Row],[Hide:\nFormula Name]],Table_SummaryPI[[#This Row],[Quantity]],Table_PI[[#This Row],[List 1]],Table_PI[[#This Row],[List 2]],Table_PI[[#This Row],[List 3]],Table_PI[[#This Row],[Size]],Table_PI[[#This Row],[Input 1]],Table_PI[[#This Row],[Input 2]],Table_PI[[#This Row],[Input 3]],Table_PI[[#This Row],[Input 4]],'Customer Information'!$AR$12,100,ROW()),\"\"),\"\")","v":""},{"$f":"IF(Table_PI[[#This Row],[Input 1]]<>\"\",Table_PI[[#This Row],[Input 1]],\"\")","v":""},null,{"$f":"IFERROR(IF(AND(MeasureCalc(Table_PI[[#This Row],[Hide:\nFormula Name]],Table_SummaryPI[[#This Row],[Quantity]],Table_PI[[#This Row],[List 1]],Table_PI[[#This Row],[List 2]],Table_PI[[#This Row],[List 3]],Table_PI[[#This Row],[Size]],Table_PI[[#This Row],[Input 1]],Table_PI[[#This Row],[Input 2]],Table_PI[[#This Row],[Input 3]],Table_PI[[#This Row],[Input 4]],'Customer Information'!$AR$12,101,ROW())<>0,MeasureCalc(Table_PI[[#This Row],[Hide:\nFormula Name]],Table_SummaryPI[[#This Row],[Quantity]],Table_PI[[#This Row],[List 1]],Table_PI[[#This Row],[List 2]],Table_PI[[#This Row],[List 3]],Table_PI[[#This Row],[Size]],Table_PI[[#This Row],[Input 1]],Table_PI[[#This Row],[Input 2]],Table_PI[[#This Row],[Input 3]],Table_PI[[#This Row],[Input 4]],'Customer Information'!$AR$12,101,ROW())<>\"No Rebate\"),MeasureCalc(Table_PI[[#This Row],[Hide:\nFormula Name]],Table_SummaryPI[[#This Row],[Quantity]],Table_PI[[#This Row],[List 1]],Table_PI[[#This Row],[List 2]],Table_PI[[#This Row],[List 3]],Table_PI[[#This Row],[Size]],Table_PI[[#This Row],[Input 1]],Table_PI[[#This Row],[Input 2]],Table_PI[[#This Row],[Input 3]],Table_PI[[#This Row],[Input 4]],'Customer Information'!$AR$12,101,ROW()),\"\"),\"\")","v":""},{"$f":"IF(Table_PI[[#This Row],[Input 2]]<>\"\",Table_PI[[#This Row],[Input 2]],\"\")","v":""},null,{"$f":"IFERROR(IF(AND(MeasureCalc(Table_PI[[#This Row],[Hide:\nFormula Name]],Table_SummaryPI[[#This Row],[Quantity]],Table_PI[[#This Row],[List 1]],Table_PI[[#This Row],[List 2]],Table_PI[[#This Row],[List 3]],Table_PI[[#This Row],[Size]],Table_PI[[#This Row],[Input 1]],Table_PI[[#This Row],[Input 2]],Table_PI[[#This Row],[Input 3]],Table_PI[[#This Row],[Input 4]],'Customer Information'!$AR$12,102,ROW())<>0,MeasureCalc(Table_PI[[#This Row],[Hide:\nFormula Name]],Table_SummaryPI[[#This Row],[Quantity]],Table_PI[[#This Row],[List 1]],Table_PI[[#This Row],[List 2]],Table_PI[[#This Row],[List 3]],Table_PI[[#This Row],[Size]],Table_PI[[#This Row],[Input 1]],Table_PI[[#This Row],[Input 2]],Table_PI[[#This Row],[Input 3]],Table_PI[[#This Row],[Input 4]],'Customer Information'!$AR$12,102,ROW())<>\"No Rebate\"),MeasureCalc(Table_PI[[#This Row],[Hide:\nFormula Name]],Table_SummaryPI[[#This Row],[Quantity]],Table_PI[[#This Row],[List 1]],Table_PI[[#This Row],[List 2]],Table_PI[[#This Row],[List 3]],Table_PI[[#This Row],[Size]],Table_PI[[#This Row],[Input 1]],Table_PI[[#This Row],[Input 2]],Table_PI[[#This Row],[Input 3]],Table_PI[[#This Row],[Input 4]],'Customer Information'!$AR$12,102,ROW()),\"\"),\"\")","v":""},{"$f":"IF(Table_PI[[#This Row],[Input 3]]<>\"\",Table_PI[[#This Row],[Input 3]],\"\")","v":""},null,{"$f":"IFERROR(IF(AND(MeasureCalc(Table_PI[[#This Row],[Hide:\nFormula Name]],Table_SummaryPI[[#This Row],[Quantity]],Table_PI[[#This Row],[List 1]],Table_PI[[#This Row],[List 2]],Table_PI[[#This Row],[List 3]],Table_PI[[#This Row],[Size]],Table_PI[[#This Row],[Input 1]],Table_PI[[#This Row],[Input 2]],Table_PI[[#This Row],[Input 3]],Table_PI[[#This Row],[Input 4]],'Customer Information'!$AR$12,103,ROW())<>0,MeasureCalc(Table_PI[[#This Row],[Hide:\nFormula Name]],Table_SummaryPI[[#This Row],[Quantity]],Table_PI[[#This Row],[List 1]],Table_PI[[#This Row],[List 2]],Table_PI[[#This Row],[List 3]],Table_PI[[#This Row],[Size]],Table_PI[[#This Row],[Input 1]],Table_PI[[#This Row],[Input 2]],Table_PI[[#This Row],[Input 3]],Table_PI[[#This Row],[Input 4]],'Customer Information'!$AR$12,103,ROW())<>\"No Rebate\"),MeasureCalc(Table_PI[[#This Row],[Hide:\nFormula Name]],Table_SummaryPI[[#This Row],[Quantity]],Table_PI[[#This Row],[List 1]],Table_PI[[#This Row],[List 2]],Table_PI[[#This Row],[List 3]],Table_PI[[#This Row],[Size]],Table_PI[[#This Row],[Input 1]],Table_PI[[#This Row],[Input 2]],Table_PI[[#This Row],[Input 3]],Table_PI[[#This Row],[Input 4]],'Customer Information'!$AR$12,103,ROW()),\"\"),\"\")","v":""},{"$f":"IF(Table_PI[[#This Row],[Input 4]]<>\"\",Table_PI[[#This Row],[Input 4]],\"\")","v":""},{"$f":"IF(Table_PI[[#This Row],[Quantity]]=\"\",\"\",Table_PI[[#This Row],[Quantity]])","v":""},{"$f":"IF(Table_PI[[#This Row],[Notes]]=\"\",\"\",Table_PI[[#This Row],[Notes]])","v":""},{"$f":"IF(OR(Table_PI[[#This Row],[Hide:\nBaseline kWh]]=\"\",Table_PI[[#This Row],[Hide:\nBaseline kWh]]=0),\"\",Table_PI[[#This Row],[Hide:\nBaseline kWh]])","v":""},{"$f":"IF(OR(Table_PI[[#This Row],[Hide:\nBaseline kW]]=\"\",Table_PI[[#This Row],[Hide:\nBaseline kW]]=0),\"\",Table_PI[[#This Row],[Hide:\nBaseline kW]])","v":""},{"$f":"IF(OR(Table_PI[[#This Row],[Hide:\nProposed kWh]]=\"\",Table_PI[[#This Row],[Hide:\nProposed kWh]]=0),\"\",Table_PI[[#This Row],[Hide:\nProposed kWh]])","v":""},{"$f":"IF(OR(Table_PI[[#This Row],[Hide:\nProposed kW]]=\"\",Table_PI[[#This Row],[Hide:\nProposed kW]]=0),\"\",Table_PI[[#This Row],[Hide:\nProposed kW]])","v":""},{"$f":"IF(OR(Table_PI[[#This Row],[Rebate]]=\"\",Table_PI[[#This Row],[Rebate]]=0),\"\",Table_PI[[#This Row],[Rebate]])","v":""},{"$f":"IF(OR(Table_PI[[#This Row],[Hide:\nIncremental Cost]]=\"\",Table_PI[[#This Row],[Hide:\nIncremental Cost]]=0),\"\",Table_PI[[#This Row],[Hide:\nIncremental Cost]])","v":""},{"$f":"IFERROR(IF(Table_SummaryPI[[#This Row],[kWhSavings]]=\"\",\"\",ROUND(Table_SummaryPI[[#This Row],[kWhSavings]]/$AG$401*'Customer Information'!$BC$17,2)),0)","v":""},{"$f":"IF(OR(Table_PI[[#This Row],[Annual kWh]]=\"\",Table_PI[[#This Row],[Annual kWh]]=0),\"\",Table_PI[[#This Row],[Annual kWh]])","v":""},{"$f":"IF(OR(Table_PI[[#This Row],[Peak kW]]=\"\",Table_PI[[#This Row],[Peak kW]]=0),\"\",Table_PI[[#This Row],[Peak kW]])","v":""},{"$f":"IFERROR(IF(Table_SummaryPI[[#This Row],[kWhSavings]]=\"\",\"\",$AU$9*Table_SummaryPI[[#This Row],[kWhSavings]]),0)","v":""},{"$f":"IFERROR(IF(Table_SummaryPI[[#This Row],[kWhSavings]]=\"\",\"\",$AU$14*Table_SummaryPI[[#This Row],[kWhSavings]]),0)","v":""},{"$f":"IFERROR(IF(Table_SummaryPI[[#This Row],[kWhSavings]]=\"\",\"\",$AU$18*Table_SummaryPI[[#This Row],[kWhSavings]]),0)","v":""},{"$f":"IFERROR(IF(Table_SummaryPI[[#This Row],[kWhSavings]]=\"\",\"\",$AU$22*Table_SummaryPI[[#This Row],[kWhSavings]]),0)","v":""},{"$f":"IFERROR(IF(MeasureCalc(Table_PI[[#This Row],[Hide:\nFormula Name]],Table_SummaryPI[[#This Row],[Quantity]],Table_PI[[#This Row],[List 1]],Table_PI[[#This Row],[List 2]],Table_PI[[#This Row],[List 3]],Table_PI[[#This Row],[Size]],Table_PI[[#This Row],[Input 1]],Table_PI[[#This Row],[Input 2]],Table_PI[[#This Row],[Input 3]],Table_PI[[#This Row],[Input 4]],'Customer Information'!$AR$12,200,ROW())<>\"No Rebate\",MeasureCalc(Table_PI[[#This Row],[Hide:\nFormula Name]],Table_SummaryPI[[#This Row],[Quantity]],Table_PI[[#This Row],[List 1]],Table_PI[[#This Row],[List 2]],Table_PI[[#This Row],[List 3]],Table_PI[[#This Row],[Size]],Table_PI[[#This Row],[Input 1]],Table_PI[[#This Row],[Input 2]],Table_PI[[#This Row],[Input 3]],Table_PI[[#This Row],[Input 4]],'Customer Information'!$AR$12,200,ROW()),\"\"),\"\")","v":""},{"$f":"IFERROR(IF(MeasureCalc(Table_PI[[#This Row],[Hide:\nFormula Name]],Table_SummaryPI[[#This Row],[Quantity]],Table_PI[[#This Row],[List 1]],Table_PI[[#This Row],[List 2]],Table_PI[[#This Row],[List 3]],Table_PI[[#This Row],[Size]],Table_PI[[#This Row],[Input 1]],Table_PI[[#This Row],[Input 2]],Table_PI[[#This Row],[Input 3]],Table_PI[[#This Row],[Input 4]],'Customer Information'!$AR$12,201,ROW())<>\"No Rebate\",MeasureCalc(Table_PI[[#This Row],[Hide:\nFormula Name]],Table_SummaryPI[[#This Row],[Quantity]],Table_PI[[#This Row],[List 1]],Table_PI[[#This Row],[List 2]],Table_PI[[#This Row],[List 3]],Table_PI[[#This Row],[Size]],Table_PI[[#This Row],[Input 1]],Table_PI[[#This Row],[Input 2]],Table_PI[[#This Row],[Input 3]],Table_PI[[#This Row],[Input 4]],'Customer Information'!$AR$12,201,ROW()),\"\"),\"\")","v":""}]
[{"$f":"Table_PI[[#This Row],[Line No.]]","v":""},{"$f":"IF(Table_SummaryPI[[#This Row],[MeassureCategory]]<>\"\",CONCATENATE(Table_SummaryPI[[#This Row],[MeassureCategory]],  \" - \", Table_SummaryPI[[#This Row],[ProposedMeasureCategory]],  \" - \", TEXT(Table_SummaryPI[[#This Row],[Size]],\"#,##0.00\"),\" \",Table_SummaryPI[[#This Row],[SizeUnit]]),\"\")","v":""},{"$f":"SUBSTITUTE(Table_PI[[#This Row],[Measure]],\"     \",\"\",1)","v":""},{"$f":"IF(Table_PI[[#This Row],[List 1]]<>\"\",Table_PI[[#This Row],[List 1]],\"\")","v":""},{"$f":"IF(Table_PI[[#This Row],[List 2]]<>\"\",Table_PI[[#This Row],[List 2]],\"\")","v":""},{"$f":"IF(Table_PI[[#This Row],[List 3]]<>\"\",Table_PI[[#This Row],[List 3]],\"\")","v":""},{"$f":"IF(Table_PI[[#This Row],[Manufacturer]]=\"\",\"\",Table_PI[[#This Row],[Manufacturer]])","v":""},{"$f":"IF(Table_PI[[#This Row],[Model Number]]=\"\",\"\",Table_PI[[#This Row],[Model Number]])","v":""},{"$f":"IF(Table_PI[[#This Row],[Serial Number(s)]]=\"\",\"\",Table_PI[[#This Row],[Serial Number(s)]])","v":""},null,{"$f":"IF(Table_PI[[#This Row],[Size]]=\"\",\"\",Table_PI[[#This Row],[Size]])","v":""},null,{"$f":"IFERROR(IF(AND(MeasureCalc(Table_PI[[#This Row],[Hide:\nFormula Name]],Table_SummaryPI[[#This Row],[Quantity]],Table_PI[[#This Row],[List 1]],Table_PI[[#This Row],[List 2]],Table_PI[[#This Row],[List 3]],Table_PI[[#This Row],[Size]],Table_PI[[#This Row],[Input 1]],Table_PI[[#This Row],[Input 2]],Table_PI[[#This Row],[Input 3]],Table_PI[[#This Row],[Input 4]],'Customer Information'!$AR$12,100,ROW())<>0,MeasureCalc(Table_PI[[#This Row],[Hide:\nFormula Name]],Table_SummaryPI[[#This Row],[Quantity]],Table_PI[[#This Row],[List 1]],Table_PI[[#This Row],[List 2]],Table_PI[[#This Row],[List 3]],Table_PI[[#This Row],[Size]],Table_PI[[#This Row],[Input 1]],Table_PI[[#This Row],[Input 2]],Table_PI[[#This Row],[Input 3]],Table_PI[[#This Row],[Input 4]],'Customer Information'!$AR$12,100,ROW())<>\"No Rebate\"),MeasureCalc(Table_PI[[#This Row],[Hide:\nFormula Name]],Table_SummaryPI[[#This Row],[Quantity]],Table_PI[[#This Row],[List 1]],Table_PI[[#This Row],[List 2]],Table_PI[[#This Row],[List 3]],Table_PI[[#This Row],[Size]],Table_PI[[#This Row],[Input 1]],Table_PI[[#This Row],[Input 2]],Table_PI[[#This Row],[Input 3]],Table_PI[[#This Row],[Input 4]],'Customer Information'!$AR$12,100,ROW()),\"\"),\"\")","v":""},{"$f":"IF(Table_PI[[#This Row],[Input 1]]<>\"\",Table_PI[[#This Row],[Input 1]],\"\")","v":""},null,{"$f":"IFERROR(IF(AND(MeasureCalc(Table_PI[[#This Row],[Hide:\nFormula Name]],Table_SummaryPI[[#This Row],[Quantity]],Table_PI[[#This Row],[List 1]],Table_PI[[#This Row],[List 2]],Table_PI[[#This Row],[List 3]],Table_PI[[#This Row],[Size]],Table_PI[[#This Row],[Input 1]],Table_PI[[#This Row],[Input 2]],Table_PI[[#This Row],[Input 3]],Table_PI[[#This Row],[Input 4]],'Customer Information'!$AR$12,101,ROW())<>0,MeasureCalc(Table_PI[[#This Row],[Hide:\nFormula Name]],Table_SummaryPI[[#This Row],[Quantity]],Table_PI[[#This Row],[List 1]],Table_PI[[#This Row],[List 2]],Table_PI[[#This Row],[List 3]],Table_PI[[#This Row],[Size]],Table_PI[[#This Row],[Input 1]],Table_PI[[#This Row],[Input 2]],Table_PI[[#This Row],[Input 3]],Table_PI[[#This Row],[Input 4]],'Customer Information'!$AR$12,101,ROW())<>\"No Rebate\"),MeasureCalc(Table_PI[[#This Row],[Hide:\nFormula Name]],Table_SummaryPI[[#This Row],[Quantity]],Table_PI[[#This Row],[List 1]],Table_PI[[#This Row],[List 2]],Table_PI[[#This Row],[List 3]],Table_PI[[#This Row],[Size]],Table_PI[[#This Row],[Input 1]],Table_PI[[#This Row],[Input 2]],Table_PI[[#This Row],[Input 3]],Table_PI[[#This Row],[Input 4]],'Customer Information'!$AR$12,101,ROW()),\"\"),\"\")","v":""},{"$f":"IF(Table_PI[[#This Row],[Input 2]]<>\"\",Table_PI[[#This Row],[Input 2]],\"\")","v":""},null,{"$f":"IFERROR(IF(AND(MeasureCalc(Table_PI[[#This Row],[Hide:\nFormula Name]],Table_SummaryPI[[#This Row],[Quantity]],Table_PI[[#This Row],[List 1]],Table_PI[[#This Row],[List 2]],Table_PI[[#This Row],[List 3]],Table_PI[[#This Row],[Size]],Table_PI[[#This Row],[Input 1]],Table_PI[[#This Row],[Input 2]],Table_PI[[#This Row],[Input 3]],Table_PI[[#This Row],[Input 4]],'Customer Information'!$AR$12,102,ROW())<>0,MeasureCalc(Table_PI[[#This Row],[Hide:\nFormula Name]],Table_SummaryPI[[#This Row],[Quantity]],Table_PI[[#This Row],[List 1]],Table_PI[[#This Row],[List 2]],Table_PI[[#This Row],[List 3]],Table_PI[[#This Row],[Size]],Table_PI[[#This Row],[Input 1]],Table_PI[[#This Row],[Input 2]],Table_PI[[#This Row],[Input 3]],Table_PI[[#This Row],[Input 4]],'Customer Information'!$AR$12,102,ROW())<>\"No Rebate\"),MeasureCalc(Table_PI[[#This Row],[Hide:\nFormula Name]],Table_SummaryPI[[#This Row],[Quantity]],Table_PI[[#This Row],[List 1]],Table_PI[[#This Row],[List 2]],Table_PI[[#This Row],[List 3]],Table_PI[[#This Row],[Size]],Table_PI[[#This Row],[Input 1]],Table_PI[[#This Row],[Input 2]],Table_PI[[#This Row],[Input 3]],Table_PI[[#This Row],[Input 4]],'Customer Information'!$AR$12,102,ROW()),\"\"),\"\")","v":""},{"$f":"IF(Table_PI[[#This Row],[Input 3]]<>\"\",Table_PI[[#This Row],[Input 3]],\"\")","v":""},null,{"$f":"IFERROR(IF(AND(MeasureCalc(Table_PI[[#This Row],[Hide:\nFormula Name]],Table_SummaryPI[[#This Row],[Quantity]],Table_PI[[#This Row],[List 1]],Table_PI[[#This Row],[List 2]],Table_PI[[#This Row],[List 3]],Table_PI[[#This Row],[Size]],Table_PI[[#This Row],[Input 1]],Table_PI[[#This Row],[Input 2]],Table_PI[[#This Row],[Input 3]],Table_PI[[#This Row],[Input 4]],'Customer Information'!$AR$12,103,ROW())<>0,MeasureCalc(Table_PI[[#This Row],[Hide:\nFormula Name]],Table_SummaryPI[[#This Row],[Quantity]],Table_PI[[#This Row],[List 1]],Table_PI[[#This Row],[List 2]],Table_PI[[#This Row],[List 3]],Table_PI[[#This Row],[Size]],Table_PI[[#This Row],[Input 1]],Table_PI[[#This Row],[Input 2]],Table_PI[[#This Row],[Input 3]],Table_PI[[#This Row],[Input 4]],'Customer Information'!$AR$12,103,ROW())<>\"No Rebate\"),MeasureCalc(Table_PI[[#This Row],[Hide:\nFormula Name]],Table_SummaryPI[[#This Row],[Quantity]],Table_PI[[#This Row],[List 1]],Table_PI[[#This Row],[List 2]],Table_PI[[#This Row],[List 3]],Table_PI[[#This Row],[Size]],Table_PI[[#This Row],[Input 1]],Table_PI[[#This Row],[Input 2]],Table_PI[[#This Row],[Input 3]],Table_PI[[#This Row],[Input 4]],'Customer Information'!$AR$12,103,ROW()),\"\"),\"\")","v":""},{"$f":"IF(Table_PI[[#This Row],[Input 4]]<>\"\",Table_PI[[#This Row],[Input 4]],\"\")","v":""},{"$f":"IF(Table_PI[[#This Row],[Quantity]]=\"\",\"\",Table_PI[[#This Row],[Quantity]])","v":""},{"$f":"IF(Table_PI[[#This Row],[Notes]]=\"\",\"\",Table_PI[[#This Row],[Notes]])","v":""},{"$f":"IF(OR(Table_PI[[#This Row],[Hide:\nBaseline kWh]]=\"\",Table_PI[[#This Row],[Hide:\nBaseline kWh]]=0),\"\",Table_PI[[#This Row],[Hide:\nBaseline kWh]])","v":""},{"$f":"IF(OR(Table_PI[[#This Row],[Hide:\nBaseline kW]]=\"\",Table_PI[[#This Row],[Hide:\nBaseline kW]]=0),\"\",Table_PI[[#This Row],[Hide:\nBaseline kW]])","v":""},{"$f":"IF(OR(Table_PI[[#This Row],[Hide:\nProposed kWh]]=\"\",Table_PI[[#This Row],[Hide:\nProposed kWh]]=0),\"\",Table_PI[[#This Row],[Hide:\nProposed kWh]])","v":""},{"$f":"IF(OR(Table_PI[[#This Row],[Hide:\nProposed kW]]=\"\",Table_PI[[#This Row],[Hide:\nProposed kW]]=0),\"\",Table_PI[[#This Row],[Hide:\nProposed kW]])","v":""},{"$f":"IF(OR(Table_PI[[#This Row],[Rebate]]=\"\",Table_PI[[#This Row],[Rebate]]=0),\"\",Table_PI[[#This Row],[Rebate]])","v":""},{"$f":"IF(OR(Table_PI[[#This Row],[Hide:\nIncremental Cost]]=\"\",Table_PI[[#This Row],[Hide:\nIncremental Cost]]=0),\"\",Table_PI[[#This Row],[Hide:\nIncremental Cost]])","v":""},{"$f":"IFERROR(IF(Table_SummaryPI[[#This Row],[kWhSavings]]=\"\",\"\",ROUND(Table_SummaryPI[[#This Row],[kWhSavings]]/$AG$401*'Customer Information'!$BC$17,2)),0)","v":""},{"$f":"IF(OR(Table_PI[[#This Row],[Annual kWh]]=\"\",Table_PI[[#This Row],[Annual kWh]]=0),\"\",Table_PI[[#This Row],[Annual kWh]])","v":""},{"$f":"IF(OR(Table_PI[[#This Row],[Peak kW]]=\"\",Table_PI[[#This Row],[Peak kW]]=0),\"\",Table_PI[[#This Row],[Peak kW]])","v":""},{"$f":"IFERROR(IF(Table_SummaryPI[[#This Row],[kWhSavings]]=\"\",\"\",$AU$9*Table_SummaryPI[[#This Row],[kWhSavings]]),0)","v":""},{"$f":"IFERROR(IF(Table_SummaryPI[[#This Row],[kWhSavings]]=\"\",\"\",$AU$14*Table_SummaryPI[[#This Row],[kWhSavings]]),0)","v":""},{"$f":"IFERROR(IF(Table_SummaryPI[[#This Row],[kWhSavings]]=\"\",\"\",$AU$18*Table_SummaryPI[[#This Row],[kWhSavings]]),0)","v":""},{"$f":"IFERROR(IF(Table_SummaryPI[[#This Row],[kWhSavings]]=\"\",\"\",$AU$22*Table_SummaryPI[[#This Row],[kWhSavings]]),0)","v":""},{"$f":"IFERROR(IF(MeasureCalc(Table_PI[[#This Row],[Hide:\nFormula Name]],Table_SummaryPI[[#This Row],[Quantity]],Table_PI[[#This Row],[List 1]],Table_PI[[#This Row],[List 2]],Table_PI[[#This Row],[List 3]],Table_PI[[#This Row],[Size]],Table_PI[[#This Row],[Input 1]],Table_PI[[#This Row],[Input 2]],Table_PI[[#This Row],[Input 3]],Table_PI[[#This Row],[Input 4]],'Customer Information'!$AR$12,200,ROW())<>\"No Rebate\",MeasureCalc(Table_PI[[#This Row],[Hide:\nFormula Name]],Table_SummaryPI[[#This Row],[Quantity]],Table_PI[[#This Row],[List 1]],Table_PI[[#This Row],[List 2]],Table_PI[[#This Row],[List 3]],Table_PI[[#This Row],[Size]],Table_PI[[#This Row],[Input 1]],Table_PI[[#This Row],[Input 2]],Table_PI[[#This Row],[Input 3]],Table_PI[[#This Row],[Input 4]],'Customer Information'!$AR$12,200,ROW()),\"\"),\"\")","v":""},{"$f":"IFERROR(IF(MeasureCalc(Table_PI[[#This Row],[Hide:\nFormula Name]],Table_SummaryPI[[#This Row],[Quantity]],Table_PI[[#This Row],[List 1]],Table_PI[[#This Row],[List 2]],Table_PI[[#This Row],[List 3]],Table_PI[[#This Row],[Size]],Table_PI[[#This Row],[Input 1]],Table_PI[[#This Row],[Input 2]],Table_PI[[#This Row],[Input 3]],Table_PI[[#This Row],[Input 4]],'Customer Information'!$AR$12,201,ROW())<>\"No Rebate\",MeasureCalc(Table_PI[[#This Row],[Hide:\nFormula Name]],Table_SummaryPI[[#This Row],[Quantity]],Table_PI[[#This Row],[List 1]],Table_PI[[#This Row],[List 2]],Table_PI[[#This Row],[List 3]],Table_PI[[#This Row],[Size]],Table_PI[[#This Row],[Input 1]],Table_PI[[#This Row],[Input 2]],Table_PI[[#This Row],[Input 3]],Table_PI[[#This Row],[Input 4]],'Customer Information'!$AR$12,201,ROW()),\"\"),\"\")","v":""}]
[{"$f":"Table_PI[[#This Row],[Line No.]]","v":""},{"$f":"IF(Table_SummaryPI[[#This Row],[MeassureCategory]]<>\"\",CONCATENATE(Table_SummaryPI[[#This Row],[MeassureCategory]],  \" - \", Table_SummaryPI[[#This Row],[ProposedMeasureCategory]],  \" - \", TEXT(Table_SummaryPI[[#This Row],[Size]],\"#,##0.00\"),\" \",Table_SummaryPI[[#This Row],[SizeUnit]]),\"\")","v":""},{"$f":"SUBSTITUTE(Table_PI[[#This Row],[Measure]],\"     \",\"\",1)","v":""},{"$f":"IF(Table_PI[[#This Row],[List 1]]<>\"\",Table_PI[[#This Row],[List 1]],\"\")","v":""},{"$f":"IF(Table_PI[[#This Row],[List 2]]<>\"\",Table_PI[[#This Row],[List 2]],\"\")","v":""},{"$f":"IF(Table_PI[[#This Row],[List 3]]<>\"\",Table_PI[[#This Row],[List 3]],\"\")","v":""},{"$f":"IF(Table_PI[[#This Row],[Manufacturer]]=\"\",\"\",Table_PI[[#This Row],[Manufacturer]])","v":""},{"$f":"IF(Table_PI[[#This Row],[Model Number]]=\"\",\"\",Table_PI[[#This Row],[Model Number]])","v":""},{"$f":"IF(Table_PI[[#This Row],[Serial Number(s)]]=\"\",\"\",Table_PI[[#This Row],[Serial Number(s)]])","v":""},null,{"$f":"IF(Table_PI[[#This Row],[Size]]=\"\",\"\",Table_PI[[#This Row],[Size]])","v":""},null,{"$f":"IFERROR(IF(AND(MeasureCalc(Table_PI[[#This Row],[Hide:\nFormula Name]],Table_SummaryPI[[#This Row],[Quantity]],Table_PI[[#This Row],[List 1]],Table_PI[[#This Row],[List 2]],Table_PI[[#This Row],[List 3]],Table_PI[[#This Row],[Size]],Table_PI[[#This Row],[Input 1]],Table_PI[[#This Row],[Input 2]],Table_PI[[#This Row],[Input 3]],Table_PI[[#This Row],[Input 4]],'Customer Information'!$AR$12,100,ROW())<>0,MeasureCalc(Table_PI[[#This Row],[Hide:\nFormula Name]],Table_SummaryPI[[#This Row],[Quantity]],Table_PI[[#This Row],[List 1]],Table_PI[[#This Row],[List 2]],Table_PI[[#This Row],[List 3]],Table_PI[[#This Row],[Size]],Table_PI[[#This Row],[Input 1]],Table_PI[[#This Row],[Input 2]],Table_PI[[#This Row],[Input 3]],Table_PI[[#This Row],[Input 4]],'Customer Information'!$AR$12,100,ROW())<>\"No Rebate\"),MeasureCalc(Table_PI[[#This Row],[Hide:\nFormula Name]],Table_SummaryPI[[#This Row],[Quantity]],Table_PI[[#This Row],[List 1]],Table_PI[[#This Row],[List 2]],Table_PI[[#This Row],[List 3]],Table_PI[[#This Row],[Size]],Table_PI[[#This Row],[Input 1]],Table_PI[[#This Row],[Input 2]],Table_PI[[#This Row],[Input 3]],Table_PI[[#This Row],[Input 4]],'Customer Information'!$AR$12,100,ROW()),\"\"),\"\")","v":""},{"$f":"IF(Table_PI[[#This Row],[Input 1]]<>\"\",Table_PI[[#This Row],[Input 1]],\"\")","v":""},null,{"$f":"IFERROR(IF(AND(MeasureCalc(Table_PI[[#This Row],[Hide:\nFormula Name]],Table_SummaryPI[[#This Row],[Quantity]],Table_PI[[#This Row],[List 1]],Table_PI[[#This Row],[List 2]],Table_PI[[#This Row],[List 3]],Table_PI[[#This Row],[Size]],Table_PI[[#This Row],[Input 1]],Table_PI[[#This Row],[Input 2]],Table_PI[[#This Row],[Input 3]],Table_PI[[#This Row],[Input 4]],'Customer Information'!$AR$12,101,ROW())<>0,MeasureCalc(Table_PI[[#This Row],[Hide:\nFormula Name]],Table_SummaryPI[[#This Row],[Quantity]],Table_PI[[#This Row],[List 1]],Table_PI[[#This Row],[List 2]],Table_PI[[#This Row],[List 3]],Table_PI[[#This Row],[Size]],Table_PI[[#This Row],[Input 1]],Table_PI[[#This Row],[Input 2]],Table_PI[[#This Row],[Input 3]],Table_PI[[#This Row],[Input 4]],'Customer Information'!$AR$12,101,ROW())<>\"No Rebate\"),MeasureCalc(Table_PI[[#This Row],[Hide:\nFormula Name]],Table_SummaryPI[[#This Row],[Quantity]],Table_PI[[#This Row],[List 1]],Table_PI[[#This Row],[List 2]],Table_PI[[#This Row],[List 3]],Table_PI[[#This Row],[Size]],Table_PI[[#This Row],[Input 1]],Table_PI[[#This Row],[Input 2]],Table_PI[[#This Row],[Input 3]],Table_PI[[#This Row],[Input 4]],'Customer Information'!$AR$12,101,ROW()),\"\"),\"\")","v":""},{"$f":"IF(Table_PI[[#This Row],[Input 2]]<>\"\",Table_PI[[#This Row],[Input 2]],\"\")","v":""},null,{"$f":"IFERROR(IF(AND(MeasureCalc(Table_PI[[#This Row],[Hide:\nFormula Name]],Table_SummaryPI[[#This Row],[Quantity]],Table_PI[[#This Row],[List 1]],Table_PI[[#This Row],[List 2]],Table_PI[[#This Row],[List 3]],Table_PI[[#This Row],[Size]],Table_PI[[#This Row],[Input 1]],Table_PI[[#This Row],[Input 2]],Table_PI[[#This Row],[Input 3]],Table_PI[[#This Row],[Input 4]],'Customer Information'!$AR$12,102,ROW())<>0,MeasureCalc(Table_PI[[#This Row],[Hide:\nFormula Name]],Table_SummaryPI[[#This Row],[Quantity]],Table_PI[[#This Row],[List 1]],Table_PI[[#This Row],[List 2]],Table_PI[[#This Row],[List 3]],Table_PI[[#This Row],[Size]],Table_PI[[#This Row],[Input 1]],Table_PI[[#This Row],[Input 2]],Table_PI[[#This Row],[Input 3]],Table_PI[[#This Row],[Input 4]],'Customer Information'!$AR$12,102,ROW())<>\"No Rebate\"),MeasureCalc(Table_PI[[#This Row],[Hide:\nFormula Name]],Table_SummaryPI[[#This Row],[Quantity]],Table_PI[[#This Row],[List 1]],Table_PI[[#This Row],[List 2]],Table_PI[[#This Row],[List 3]],Table_PI[[#This Row],[Size]],Table_PI[[#This Row],[Input 1]],Table_PI[[#This Row],[Input 2]],Table_PI[[#This Row],[Input 3]],Table_PI[[#This Row],[Input 4]],'Customer Information'!$AR$12,102,ROW()),\"\"),\"\")","v":""},{"$f":"IF(Table_PI[[#This Row],[Input 3]]<>\"\",Table_PI[[#This Row],[Input 3]],\"\")","v":""},null,{"$f":"IFERROR(IF(AND(MeasureCalc(Table_PI[[#This Row],[Hide:\nFormula Name]],Table_SummaryPI[[#This Row],[Quantity]],Table_PI[[#This Row],[List 1]],Table_PI[[#This Row],[List 2]],Table_PI[[#This Row],[List 3]],Table_PI[[#This Row],[Size]],Table_PI[[#This Row],[Input 1]],Table_PI[[#This Row],[Input 2]],Table_PI[[#This Row],[Input 3]],Table_PI[[#This Row],[Input 4]],'Customer Information'!$AR$12,103,ROW())<>0,MeasureCalc(Table_PI[[#This Row],[Hide:\nFormula Name]],Table_SummaryPI[[#This Row],[Quantity]],Table_PI[[#This Row],[List 1]],Table_PI[[#This Row],[List 2]],Table_PI[[#This Row],[List 3]],Table_PI[[#This Row],[Size]],Table_PI[[#This Row],[Input 1]],Table_PI[[#This Row],[Input 2]],Table_PI[[#This Row],[Input 3]],Table_PI[[#This Row],[Input 4]],'Customer Information'!$AR$12,103,ROW())<>\"No Rebate\"),MeasureCalc(Table_PI[[#This Row],[Hide:\nFormula Name]],Table_SummaryPI[[#This Row],[Quantity]],Table_PI[[#This Row],[List 1]],Table_PI[[#This Row],[List 2]],Table_PI[[#This Row],[List 3]],Table_PI[[#This Row],[Size]],Table_PI[[#This Row],[Input 1]],Table_PI[[#This Row],[Input 2]],Table_PI[[#This Row],[Input 3]],Table_PI[[#This Row],[Input 4]],'Customer Information'!$AR$12,103,ROW()),\"\"),\"\")","v":""},{"$f":"IF(Table_PI[[#This Row],[Input 4]]<>\"\",Table_PI[[#This Row],[Input 4]],\"\")","v":""},{"$f":"IF(Table_PI[[#This Row],[Quantity]]=\"\",\"\",Table_PI[[#This Row],[Quantity]])","v":""},{"$f":"IF(Table_PI[[#This Row],[Notes]]=\"\",\"\",Table_PI[[#This Row],[Notes]])","v":""},{"$f":"IF(OR(Table_PI[[#This Row],[Hide:\nBaseline kWh]]=\"\",Table_PI[[#This Row],[Hide:\nBaseline kWh]]=0),\"\",Table_PI[[#This Row],[Hide:\nBaseline kWh]])","v":""},{"$f":"IF(OR(Table_PI[[#This Row],[Hide:\nBaseline kW]]=\"\",Table_PI[[#This Row],[Hide:\nBaseline kW]]=0),\"\",Table_PI[[#This Row],[Hide:\nBaseline kW]])","v":""},{"$f":"IF(OR(Table_PI[[#This Row],[Hide:\nProposed kWh]]=\"\",Table_PI[[#This Row],[Hide:\nProposed kWh]]=0),\"\",Table_PI[[#This Row],[Hide:\nProposed kWh]])","v":""},{"$f":"IF(OR(Table_PI[[#This Row],[Hide:\nProposed kW]]=\"\",Table_PI[[#This Row],[Hide:\nProposed kW]]=0),\"\",Table_PI[[#This Row],[Hide:\nProposed kW]])","v":""},{"$f":"IF(OR(Table_PI[[#This Row],[Rebate]]=\"\",Table_PI[[#This Row],[Rebate]]=0),\"\",Table_PI[[#This Row],[Rebate]])","v":""},{"$f":"IF(OR(Table_PI[[#This Row],[Hide:\nIncremental Cost]]=\"\",Table_PI[[#This Row],[Hide:\nIncremental Cost]]=0),\"\",Table_PI[[#This Row],[Hide:\nIncremental Cost]])","v":""},{"$f":"IFERROR(IF(Table_SummaryPI[[#This Row],[kWhSavings]]=\"\",\"\",ROUND(Table_SummaryPI[[#This Row],[kWhSavings]]/$AG$401*'Customer Information'!$BC$17,2)),0)","v":""},{"$f":"IF(OR(Table_PI[[#This Row],[Annual kWh]]=\"\",Table_PI[[#This Row],[Annual kWh]]=0),\"\",Table_PI[[#This Row],[Annual kWh]])","v":""},{"$f":"IF(OR(Table_PI[[#This Row],[Peak kW]]=\"\",Table_PI[[#This Row],[Peak kW]]=0),\"\",Table_PI[[#This Row],[Peak kW]])","v":""},{"$f":"IFERROR(IF(Table_SummaryPI[[#This Row],[kWhSavings]]=\"\",\"\",$AU$9*Table_SummaryPI[[#This Row],[kWhSavings]]),0)","v":""},{"$f":"IFERROR(IF(Table_SummaryPI[[#This Row],[kWhSavings]]=\"\",\"\",$AU$14*Table_SummaryPI[[#This Row],[kWhSavings]]),0)","v":""},{"$f":"IFERROR(IF(Table_SummaryPI[[#This Row],[kWhSavings]]=\"\",\"\",$AU$18*Table_SummaryPI[[#This Row],[kWhSavings]]),0)","v":""},{"$f":"IFERROR(IF(Table_SummaryPI[[#This Row],[kWhSavings]]=\"\",\"\",$AU$22*Table_SummaryPI[[#This Row],[kWhSavings]]),0)","v":""},{"$f":"IFERROR(IF(MeasureCalc(Table_PI[[#This Row],[Hide:\nFormula Name]],Table_SummaryPI[[#This Row],[Quantity]],Table_PI[[#This Row],[List 1]],Table_PI[[#This Row],[List 2]],Table_PI[[#This Row],[List 3]],Table_PI[[#This Row],[Size]],Table_PI[[#This Row],[Input 1]],Table_PI[[#This Row],[Input 2]],Table_PI[[#This Row],[Input 3]],Table_PI[[#This Row],[Input 4]],'Customer Information'!$AR$12,200,ROW())<>\"No Rebate\",MeasureCalc(Table_PI[[#This Row],[Hide:\nFormula Name]],Table_SummaryPI[[#This Row],[Quantity]],Table_PI[[#This Row],[List 1]],Table_PI[[#This Row],[List 2]],Table_PI[[#This Row],[List 3]],Table_PI[[#This Row],[Size]],Table_PI[[#This Row],[Input 1]],Table_PI[[#This Row],[Input 2]],Table_PI[[#This Row],[Input 3]],Table_PI[[#This Row],[Input 4]],'Customer Information'!$AR$12,200,ROW()),\"\"),\"\")","v":""},{"$f":"IFERROR(IF(MeasureCalc(Table_PI[[#This Row],[Hide:\nFormula Name]],Table_SummaryPI[[#This Row],[Quantity]],Table_PI[[#This Row],[List 1]],Table_PI[[#This Row],[List 2]],Table_PI[[#This Row],[List 3]],Table_PI[[#This Row],[Size]],Table_PI[[#This Row],[Input 1]],Table_PI[[#This Row],[Input 2]],Table_PI[[#This Row],[Input 3]],Table_PI[[#This Row],[Input 4]],'Customer Information'!$AR$12,201,ROW())<>\"No Rebate\",MeasureCalc(Table_PI[[#This Row],[Hide:\nFormula Name]],Table_SummaryPI[[#This Row],[Quantity]],Table_PI[[#This Row],[List 1]],Table_PI[[#This Row],[List 2]],Table_PI[[#This Row],[List 3]],Table_PI[[#This Row],[Size]],Table_PI[[#This Row],[Input 1]],Table_PI[[#This Row],[Input 2]],Table_PI[[#This Row],[Input 3]],Table_PI[[#This Row],[Input 4]],'Customer Information'!$AR$12,201,ROW()),\"\"),\"\")","v":""}]
[{"$f":"Table_PI[[#This Row],[Line No.]]","v":""},{"$f":"IF(Table_SummaryPI[[#This Row],[MeassureCategory]]<>\"\",CONCATENATE(Table_SummaryPI[[#This Row],[MeassureCategory]],  \" - \", Table_SummaryPI[[#This Row],[ProposedMeasureCategory]],  \" - \", TEXT(Table_SummaryPI[[#This Row],[Size]],\"#,##0.00\"),\" \",Table_SummaryPI[[#This Row],[SizeUnit]]),\"\")","v":""},{"$f":"SUBSTITUTE(Table_PI[[#This Row],[Measure]],\"     \",\"\",1)","v":""},{"$f":"IF(Table_PI[[#This Row],[List 1]]<>\"\",Table_PI[[#This Row],[List 1]],\"\")","v":""},{"$f":"IF(Table_PI[[#This Row],[List 2]]<>\"\",Table_PI[[#This Row],[List 2]],\"\")","v":""},{"$f":"IF(Table_PI[[#This Row],[List 3]]<>\"\",Table_PI[[#This Row],[List 3]],\"\")","v":""},{"$f":"IF(Table_PI[[#This Row],[Manufacturer]]=\"\",\"\",Table_PI[[#This Row],[Manufacturer]])","v":""},{"$f":"IF(Table_PI[[#This Row],[Model Number]]=\"\",\"\",Table_PI[[#This Row],[Model Number]])","v":""},{"$f":"IF(Table_PI[[#This Row],[Serial Number(s)]]=\"\",\"\",Table_PI[[#This Row],[Serial Number(s)]])","v":""},null,{"$f":"IF(Table_PI[[#This Row],[Size]]=\"\",\"\",Table_PI[[#This Row],[Size]])","v":""},null,{"$f":"IFERROR(IF(AND(MeasureCalc(Table_PI[[#This Row],[Hide:\nFormula Name]],Table_SummaryPI[[#This Row],[Quantity]],Table_PI[[#This Row],[List 1]],Table_PI[[#This Row],[List 2]],Table_PI[[#This Row],[List 3]],Table_PI[[#This Row],[Size]],Table_PI[[#This Row],[Input 1]],Table_PI[[#This Row],[Input 2]],Table_PI[[#This Row],[Input 3]],Table_PI[[#This Row],[Input 4]],'Customer Information'!$AR$12,100,ROW())<>0,MeasureCalc(Table_PI[[#This Row],[Hide:\nFormula Name]],Table_SummaryPI[[#This Row],[Quantity]],Table_PI[[#This Row],[List 1]],Table_PI[[#This Row],[List 2]],Table_PI[[#This Row],[List 3]],Table_PI[[#This Row],[Size]],Table_PI[[#This Row],[Input 1]],Table_PI[[#This Row],[Input 2]],Table_PI[[#This Row],[Input 3]],Table_PI[[#This Row],[Input 4]],'Customer Information'!$AR$12,100,ROW())<>\"No Rebate\"),MeasureCalc(Table_PI[[#This Row],[Hide:\nFormula Name]],Table_SummaryPI[[#This Row],[Quantity]],Table_PI[[#This Row],[List 1]],Table_PI[[#This Row],[List 2]],Table_PI[[#This Row],[List 3]],Table_PI[[#This Row],[Size]],Table_PI[[#This Row],[Input 1]],Table_PI[[#This Row],[Input 2]],Table_PI[[#This Row],[Input 3]],Table_PI[[#This Row],[Input 4]],'Customer Information'!$AR$12,100,ROW()),\"\"),\"\")","v":""},{"$f":"IF(Table_PI[[#This Row],[Input 1]]<>\"\",Table_PI[[#This Row],[Input 1]],\"\")","v":""},null,{"$f":"IFERROR(IF(AND(MeasureCalc(Table_PI[[#This Row],[Hide:\nFormula Name]],Table_SummaryPI[[#This Row],[Quantity]],Table_PI[[#This Row],[List 1]],Table_PI[[#This Row],[List 2]],Table_PI[[#This Row],[List 3]],Table_PI[[#This Row],[Size]],Table_PI[[#This Row],[Input 1]],Table_PI[[#This Row],[Input 2]],Table_PI[[#This Row],[Input 3]],Table_PI[[#This Row],[Input 4]],'Customer Information'!$AR$12,101,ROW())<>0,MeasureCalc(Table_PI[[#This Row],[Hide:\nFormula Name]],Table_SummaryPI[[#This Row],[Quantity]],Table_PI[[#This Row],[List 1]],Table_PI[[#This Row],[List 2]],Table_PI[[#This Row],[List 3]],Table_PI[[#This Row],[Size]],Table_PI[[#This Row],[Input 1]],Table_PI[[#This Row],[Input 2]],Table_PI[[#This Row],[Input 3]],Table_PI[[#This Row],[Input 4]],'Customer Information'!$AR$12,101,ROW())<>\"No Rebate\"),MeasureCalc(Table_PI[[#This Row],[Hide:\nFormula Name]],Table_SummaryPI[[#This Row],[Quantity]],Table_PI[[#This Row],[List 1]],Table_PI[[#This Row],[List 2]],Table_PI[[#This Row],[List 3]],Table_PI[[#This Row],[Size]],Table_PI[[#This Row],[Input 1]],Table_PI[[#This Row],[Input 2]],Table_PI[[#This Row],[Input 3]],Table_PI[[#This Row],[Input 4]],'Customer Information'!$AR$12,101,ROW()),\"\"),\"\")","v":""},{"$f":"IF(Table_PI[[#This Row],[Input 2]]<>\"\",Table_PI[[#This Row],[Input 2]],\"\")","v":""},null,{"$f":"IFERROR(IF(AND(MeasureCalc(Table_PI[[#This Row],[Hide:\nFormula Name]],Table_SummaryPI[[#This Row],[Quantity]],Table_PI[[#This Row],[List 1]],Table_PI[[#This Row],[List 2]],Table_PI[[#This Row],[List 3]],Table_PI[[#This Row],[Size]],Table_PI[[#This Row],[Input 1]],Table_PI[[#This Row],[Input 2]],Table_PI[[#This Row],[Input 3]],Table_PI[[#This Row],[Input 4]],'Customer Information'!$AR$12,102,ROW())<>0,MeasureCalc(Table_PI[[#This Row],[Hide:\nFormula Name]],Table_SummaryPI[[#This Row],[Quantity]],Table_PI[[#This Row],[List 1]],Table_PI[[#This Row],[List 2]],Table_PI[[#This Row],[List 3]],Table_PI[[#This Row],[Size]],Table_PI[[#This Row],[Input 1]],Table_PI[[#This Row],[Input 2]],Table_PI[[#This Row],[Input 3]],Table_PI[[#This Row],[Input 4]],'Customer Information'!$AR$12,102,ROW())<>\"No Rebate\"),MeasureCalc(Table_PI[[#This Row],[Hide:\nFormula Name]],Table_SummaryPI[[#This Row],[Quantity]],Table_PI[[#This Row],[List 1]],Table_PI[[#This Row],[List 2]],Table_PI[[#This Row],[List 3]],Table_PI[[#This Row],[Size]],Table_PI[[#This Row],[Input 1]],Table_PI[[#This Row],[Input 2]],Table_PI[[#This Row],[Input 3]],Table_PI[[#This Row],[Input 4]],'Customer Information'!$AR$12,102,ROW()),\"\"),\"\")","v":""},{"$f":"IF(Table_PI[[#This Row],[Input 3]]<>\"\",Table_PI[[#This Row],[Input 3]],\"\")","v":""},null,{"$f":"IFERROR(IF(AND(MeasureCalc(Table_PI[[#This Row],[Hide:\nFormula Name]],Table_SummaryPI[[#This Row],[Quantity]],Table_PI[[#This Row],[List 1]],Table_PI[[#This Row],[List 2]],Table_PI[[#This Row],[List 3]],Table_PI[[#This Row],[Size]],Table_PI[[#This Row],[Input 1]],Table_PI[[#This Row],[Input 2]],Table_PI[[#This Row],[Input 3]],Table_PI[[#This Row],[Input 4]],'Customer Information'!$AR$12,103,ROW())<>0,MeasureCalc(Table_PI[[#This Row],[Hide:\nFormula Name]],Table_SummaryPI[[#This Row],[Quantity]],Table_PI[[#This Row],[List 1]],Table_PI[[#This Row],[List 2]],Table_PI[[#This Row],[List 3]],Table_PI[[#This Row],[Size]],Table_PI[[#This Row],[Input 1]],Table_PI[[#This Row],[Input 2]],Table_PI[[#This Row],[Input 3]],Table_PI[[#This Row],[Input 4]],'Customer Information'!$AR$12,103,ROW())<>\"No Rebate\"),MeasureCalc(Table_PI[[#This Row],[Hide:\nFormula Name]],Table_SummaryPI[[#This Row],[Quantity]],Table_PI[[#This Row],[List 1]],Table_PI[[#This Row],[List 2]],Table_PI[[#This Row],[List 3]],Table_PI[[#This Row],[Size]],Table_PI[[#This Row],[Input 1]],Table_PI[[#This Row],[Input 2]],Table_PI[[#This Row],[Input 3]],Table_PI[[#This Row],[Input 4]],'Customer Information'!$AR$12,103,ROW()),\"\"),\"\")","v":""},{"$f":"IF(Table_PI[[#This Row],[Input 4]]<>\"\",Table_PI[[#This Row],[Input 4]],\"\")","v":""},{"$f":"IF(Table_PI[[#This Row],[Quantity]]=\"\",\"\",Table_PI[[#This Row],[Quantity]])","v":""},{"$f":"IF(Table_PI[[#This Row],[Notes]]=\"\",\"\",Table_PI[[#This Row],[Notes]])","v":""},{"$f":"IF(OR(Table_PI[[#This Row],[Hide:\nBaseline kWh]]=\"\",Table_PI[[#This Row],[Hide:\nBaseline kWh]]=0),\"\",Table_PI[[#This Row],[Hide:\nBaseline kWh]])","v":""},{"$f":"IF(OR(Table_PI[[#This Row],[Hide:\nBaseline kW]]=\"\",Table_PI[[#This Row],[Hide:\nBaseline kW]]=0),\"\",Table_PI[[#This Row],[Hide:\nBaseline kW]])","v":""},{"$f":"IF(OR(Table_PI[[#This Row],[Hide:\nProposed kWh]]=\"\",Table_PI[[#This Row],[Hide:\nProposed kWh]]=0),\"\",Table_PI[[#This Row],[Hide:\nProposed kWh]])","v":""},{"$f":"IF(OR(Table_PI[[#This Row],[Hide:\nProposed kW]]=\"\",Table_PI[[#This Row],[Hide:\nProposed kW]]=0),\"\",Table_PI[[#This Row],[Hide:\nProposed kW]])","v":""},{"$f":"IF(OR(Table_PI[[#This Row],[Rebate]]=\"\",Table_PI[[#This Row],[Rebate]]=0),\"\",Table_PI[[#This Row],[Rebate]])","v":""},{"$f":"IF(OR(Table_PI[[#This Row],[Hide:\nIncremental Cost]]=\"\",Table_PI[[#This Row],[Hide:\nIncremental Cost]]=0),\"\",Table_PI[[#This Row],[Hide:\nIncremental Cost]])","v":""},{"$f":"IFERROR(IF(Table_SummaryPI[[#This Row],[kWhSavings]]=\"\",\"\",ROUND(Table_SummaryPI[[#This Row],[kWhSavings]]/$AG$401*'Customer Information'!$BC$17,2)),0)","v":""},{"$f":"IF(OR(Table_PI[[#This Row],[Annual kWh]]=\"\",Table_PI[[#This Row],[Annual kWh]]=0),\"\",Table_PI[[#This Row],[Annual kWh]])","v":""},{"$f":"IF(OR(Table_PI[[#This Row],[Peak kW]]=\"\",Table_PI[[#This Row],[Peak kW]]=0),\"\",Table_PI[[#This Row],[Peak kW]])","v":""},{"$f":"IFERROR(IF(Table_SummaryPI[[#This Row],[kWhSavings]]=\"\",\"\",$AU$9*Table_SummaryPI[[#This Row],[kWhSavings]]),0)","v":""},{"$f":"IFERROR(IF(Table_SummaryPI[[#This Row],[kWhSavings]]=\"\",\"\",$AU$14*Table_SummaryPI[[#This Row],[kWhSavings]]),0)","v":""},{"$f":"IFERROR(IF(Table_SummaryPI[[#This Row],[kWhSavings]]=\"\",\"\",$AU$18*Table_SummaryPI[[#This Row],[kWhSavings]]),0)","v":""},{"$f":"IFERROR(IF(Table_SummaryPI[[#This Row],[kWhSavings]]=\"\",\"\",$AU$22*Table_SummaryPI[[#This Row],[kWhSavings]]),0)","v":""},{"$f":"IFERROR(IF(MeasureCalc(Table_PI[[#This Row],[Hide:\nFormula Name]],Table_SummaryPI[[#This Row],[Quantity]],Table_PI[[#This Row],[List 1]],Table_PI[[#This Row],[List 2]],Table_PI[[#This Row],[List 3]],Table_PI[[#This Row],[Size]],Table_PI[[#This Row],[Input 1]],Table_PI[[#This Row],[Input 2]],Table_PI[[#This Row],[Input 3]],Table_PI[[#This Row],[Input 4]],'Customer Information'!$AR$12,200,ROW())<>\"No Rebate\",MeasureCalc(Table_PI[[#This Row],[Hide:\nFormula Name]],Table_SummaryPI[[#This Row],[Quantity]],Table_PI[[#This Row],[List 1]],Table_PI[[#This Row],[List 2]],Table_PI[[#This Row],[List 3]],Table_PI[[#This Row],[Size]],Table_PI[[#This Row],[Input 1]],Table_PI[[#This Row],[Input 2]],Table_PI[[#This Row],[Input 3]],Table_PI[[#This Row],[Input 4]],'Customer Information'!$AR$12,200,ROW()),\"\"),\"\")","v":""},{"$f":"IFERROR(IF(MeasureCalc(Table_PI[[#This Row],[Hide:\nFormula Name]],Table_SummaryPI[[#This Row],[Quantity]],Table_PI[[#This Row],[List 1]],Table_PI[[#This Row],[List 2]],Table_PI[[#This Row],[List 3]],Table_PI[[#This Row],[Size]],Table_PI[[#This Row],[Input 1]],Table_PI[[#This Row],[Input 2]],Table_PI[[#This Row],[Input 3]],Table_PI[[#This Row],[Input 4]],'Customer Information'!$AR$12,201,ROW())<>\"No Rebate\",MeasureCalc(Table_PI[[#This Row],[Hide:\nFormula Name]],Table_SummaryPI[[#This Row],[Quantity]],Table_PI[[#This Row],[List 1]],Table_PI[[#This Row],[List 2]],Table_PI[[#This Row],[List 3]],Table_PI[[#This Row],[Size]],Table_PI[[#This Row],[Input 1]],Table_PI[[#This Row],[Input 2]],Table_PI[[#This Row],[Input 3]],Table_PI[[#This Row],[Input 4]],'Customer Information'!$AR$12,201,ROW()),\"\"),\"\")","v":""}]
[{"$f":"Table_PI[[#This Row],[Line No.]]","v":""},{"$f":"IF(Table_SummaryPI[[#This Row],[MeassureCategory]]<>\"\",CONCATENATE(Table_SummaryPI[[#This Row],[MeassureCategory]],  \" - \", Table_SummaryPI[[#This Row],[ProposedMeasureCategory]],  \" - \", TEXT(Table_SummaryPI[[#This Row],[Size]],\"#,##0.00\"),\" \",Table_SummaryPI[[#This Row],[SizeUnit]]),\"\")","v":""},{"$f":"SUBSTITUTE(Table_PI[[#This Row],[Measure]],\"     \",\"\",1)","v":""},{"$f":"IF(Table_PI[[#This Row],[List 1]]<>\"\",Table_PI[[#This Row],[List 1]],\"\")","v":""},{"$f":"IF(Table_PI[[#This Row],[List 2]]<>\"\",Table_PI[[#This Row],[List 2]],\"\")","v":""},{"$f":"IF(Table_PI[[#This Row],[List 3]]<>\"\",Table_PI[[#This Row],[List 3]],\"\")","v":""},{"$f":"IF(Table_PI[[#This Row],[Manufacturer]]=\"\",\"\",Table_PI[[#This Row],[Manufacturer]])","v":""},{"$f":"IF(Table_PI[[#This Row],[Model Number]]=\"\",\"\",Table_PI[[#This Row],[Model Number]])","v":""},{"$f":"IF(Table_PI[[#This Row],[Serial Number(s)]]=\"\",\"\",Table_PI[[#This Row],[Serial Number(s)]])","v":""},null,{"$f":"IF(Table_PI[[#This Row],[Size]]=\"\",\"\",Table_PI[[#This Row],[Size]])","v":""},null,{"$f":"IFERROR(IF(AND(MeasureCalc(Table_PI[[#This Row],[Hide:\nFormula Name]],Table_SummaryPI[[#This Row],[Quantity]],Table_PI[[#This Row],[List 1]],Table_PI[[#This Row],[List 2]],Table_PI[[#This Row],[List 3]],Table_PI[[#This Row],[Size]],Table_PI[[#This Row],[Input 1]],Table_PI[[#This Row],[Input 2]],Table_PI[[#This Row],[Input 3]],Table_PI[[#This Row],[Input 4]],'Customer Information'!$AR$12,100,ROW())<>0,MeasureCalc(Table_PI[[#This Row],[Hide:\nFormula Name]],Table_SummaryPI[[#This Row],[Quantity]],Table_PI[[#This Row],[List 1]],Table_PI[[#This Row],[List 2]],Table_PI[[#This Row],[List 3]],Table_PI[[#This Row],[Size]],Table_PI[[#This Row],[Input 1]],Table_PI[[#This Row],[Input 2]],Table_PI[[#This Row],[Input 3]],Table_PI[[#This Row],[Input 4]],'Customer Information'!$AR$12,100,ROW())<>\"No Rebate\"),MeasureCalc(Table_PI[[#This Row],[Hide:\nFormula Name]],Table_SummaryPI[[#This Row],[Quantity]],Table_PI[[#This Row],[List 1]],Table_PI[[#This Row],[List 2]],Table_PI[[#This Row],[List 3]],Table_PI[[#This Row],[Size]],Table_PI[[#This Row],[Input 1]],Table_PI[[#This Row],[Input 2]],Table_PI[[#This Row],[Input 3]],Table_PI[[#This Row],[Input 4]],'Customer Information'!$AR$12,100,ROW()),\"\"),\"\")","v":""},{"$f":"IF(Table_PI[[#This Row],[Input 1]]<>\"\",Table_PI[[#This Row],[Input 1]],\"\")","v":""},null,{"$f":"IFERROR(IF(AND(MeasureCalc(Table_PI[[#This Row],[Hide:\nFormula Name]],Table_SummaryPI[[#This Row],[Quantity]],Table_PI[[#This Row],[List 1]],Table_PI[[#This Row],[List 2]],Table_PI[[#This Row],[List 3]],Table_PI[[#This Row],[Size]],Table_PI[[#This Row],[Input 1]],Table_PI[[#This Row],[Input 2]],Table_PI[[#This Row],[Input 3]],Table_PI[[#This Row],[Input 4]],'Customer Information'!$AR$12,101,ROW())<>0,MeasureCalc(Table_PI[[#This Row],[Hide:\nFormula Name]],Table_SummaryPI[[#This Row],[Quantity]],Table_PI[[#This Row],[List 1]],Table_PI[[#This Row],[List 2]],Table_PI[[#This Row],[List 3]],Table_PI[[#This Row],[Size]],Table_PI[[#This Row],[Input 1]],Table_PI[[#This Row],[Input 2]],Table_PI[[#This Row],[Input 3]],Table_PI[[#This Row],[Input 4]],'Customer Information'!$AR$12,101,ROW())<>\"No Rebate\"),MeasureCalc(Table_PI[[#This Row],[Hide:\nFormula Name]],Table_SummaryPI[[#This Row],[Quantity]],Table_PI[[#This Row],[List 1]],Table_PI[[#This Row],[List 2]],Table_PI[[#This Row],[List 3]],Table_PI[[#This Row],[Size]],Table_PI[[#This Row],[Input 1]],Table_PI[[#This Row],[Input 2]],Table_PI[[#This Row],[Input 3]],Table_PI[[#This Row],[Input 4]],'Customer Information'!$AR$12,101,ROW()),\"\"),\"\")","v":""},{"$f":"IF(Table_PI[[#This Row],[Input 2]]<>\"\",Table_PI[[#This Row],[Input 2]],\"\")","v":""},null,{"$f":"IFERROR(IF(AND(MeasureCalc(Table_PI[[#This Row],[Hide:\nFormula Name]],Table_SummaryPI[[#This Row],[Quantity]],Table_PI[[#This Row],[List 1]],Table_PI[[#This Row],[List 2]],Table_PI[[#This Row],[List 3]],Table_PI[[#This Row],[Size]],Table_PI[[#This Row],[Input 1]],Table_PI[[#This Row],[Input 2]],Table_PI[[#This Row],[Input 3]],Table_PI[[#This Row],[Input 4]],'Customer Information'!$AR$12,102,ROW())<>0,MeasureCalc(Table_PI[[#This Row],[Hide:\nFormula Name]],Table_SummaryPI[[#This Row],[Quantity]],Table_PI[[#This Row],[List 1]],Table_PI[[#This Row],[List 2]],Table_PI[[#This Row],[List 3]],Table_PI[[#This Row],[Size]],Table_PI[[#This Row],[Input 1]],Table_PI[[#This Row],[Input 2]],Table_PI[[#This Row],[Input 3]],Table_PI[[#This Row],[Input 4]],'Customer Information'!$AR$12,102,ROW())<>\"No Rebate\"),MeasureCalc(Table_PI[[#This Row],[Hide:\nFormula Name]],Table_SummaryPI[[#This Row],[Quantity]],Table_PI[[#This Row],[List 1]],Table_PI[[#This Row],[List 2]],Table_PI[[#This Row],[List 3]],Table_PI[[#This Row],[Size]],Table_PI[[#This Row],[Input 1]],Table_PI[[#This Row],[Input 2]],Table_PI[[#This Row],[Input 3]],Table_PI[[#This Row],[Input 4]],'Customer Information'!$AR$12,102,ROW()),\"\"),\"\")","v":""},{"$f":"IF(Table_PI[[#This Row],[Input 3]]<>\"\",Table_PI[[#This Row],[Input 3]],\"\")","v":""},null,{"$f":"IFERROR(IF(AND(MeasureCalc(Table_PI[[#This Row],[Hide:\nFormula Name]],Table_SummaryPI[[#This Row],[Quantity]],Table_PI[[#This Row],[List 1]],Table_PI[[#This Row],[List 2]],Table_PI[[#This Row],[List 3]],Table_PI[[#This Row],[Size]],Table_PI[[#This Row],[Input 1]],Table_PI[[#This Row],[Input 2]],Table_PI[[#This Row],[Input 3]],Table_PI[[#This Row],[Input 4]],'Customer Information'!$AR$12,103,ROW())<>0,MeasureCalc(Table_PI[[#This Row],[Hide:\nFormula Name]],Table_SummaryPI[[#This Row],[Quantity]],Table_PI[[#This Row],[List 1]],Table_PI[[#This Row],[List 2]],Table_PI[[#This Row],[List 3]],Table_PI[[#This Row],[Size]],Table_PI[[#This Row],[Input 1]],Table_PI[[#This Row],[Input 2]],Table_PI[[#This Row],[Input 3]],Table_PI[[#This Row],[Input 4]],'Customer Information'!$AR$12,103,ROW())<>\"No Rebate\"),MeasureCalc(Table_PI[[#This Row],[Hide:\nFormula Name]],Table_SummaryPI[[#This Row],[Quantity]],Table_PI[[#This Row],[List 1]],Table_PI[[#This Row],[List 2]],Table_PI[[#This Row],[List 3]],Table_PI[[#This Row],[Size]],Table_PI[[#This Row],[Input 1]],Table_PI[[#This Row],[Input 2]],Table_PI[[#This Row],[Input 3]],Table_PI[[#This Row],[Input 4]],'Customer Information'!$AR$12,103,ROW()),\"\"),\"\")","v":""},{"$f":"IF(Table_PI[[#This Row],[Input 4]]<>\"\",Table_PI[[#This Row],[Input 4]],\"\")","v":""},{"$f":"IF(Table_PI[[#This Row],[Quantity]]=\"\",\"\",Table_PI[[#This Row],[Quantity]])","v":""},{"$f":"IF(Table_PI[[#This Row],[Notes]]=\"\",\"\",Table_PI[[#This Row],[Notes]])","v":""},{"$f":"IF(OR(Table_PI[[#This Row],[Hide:\nBaseline kWh]]=\"\",Table_PI[[#This Row],[Hide:\nBaseline kWh]]=0),\"\",Table_PI[[#This Row],[Hide:\nBaseline kWh]])","v":""},{"$f":"IF(OR(Table_PI[[#This Row],[Hide:\nBaseline kW]]=\"\",Table_PI[[#This Row],[Hide:\nBaseline kW]]=0),\"\",Table_PI[[#This Row],[Hide:\nBaseline kW]])","v":""},{"$f":"IF(OR(Table_PI[[#This Row],[Hide:\nProposed kWh]]=\"\",Table_PI[[#This Row],[Hide:\nProposed kWh]]=0),\"\",Table_PI[[#This Row],[Hide:\nProposed kWh]])","v":""},{"$f":"IF(OR(Table_PI[[#This Row],[Hide:\nProposed kW]]=\"\",Table_PI[[#This Row],[Hide:\nProposed kW]]=0),\"\",Table_PI[[#This Row],[Hide:\nProposed kW]])","v":""},{"$f":"IF(OR(Table_PI[[#This Row],[Rebate]]=\"\",Table_PI[[#This Row],[Rebate]]=0),\"\",Table_PI[[#This Row],[Rebate]])","v":""},{"$f":"IF(OR(Table_PI[[#This Row],[Hide:\nIncremental Cost]]=\"\",Table_PI[[#This Row],[Hide:\nIncremental Cost]]=0),\"\",Table_PI[[#This Row],[Hide:\nIncremental Cost]])","v":""},{"$f":"IFERROR(IF(Table_SummaryPI[[#This Row],[kWhSavings]]=\"\",\"\",ROUND(Table_SummaryPI[[#This Row],[kWhSavings]]/$AG$401*'Customer Information'!$BC$17,2)),0)","v":""},{"$f":"IF(OR(Table_PI[[#This Row],[Annual kWh]]=\"\",Table_PI[[#This Row],[Annual kWh]]=0),\"\",Table_PI[[#This Row],[Annual kWh]])","v":""},{"$f":"IF(OR(Table_PI[[#This Row],[Peak kW]]=\"\",Table_PI[[#This Row],[Peak kW]]=0),\"\",Table_PI[[#This Row],[Peak kW]])","v":""},{"$f":"IFERROR(IF(Table_SummaryPI[[#This Row],[kWhSavings]]=\"\",\"\",$AU$9*Table_SummaryPI[[#This Row],[kWhSavings]]),0)","v":""},{"$f":"IFERROR(IF(Table_SummaryPI[[#This Row],[kWhSavings]]=\"\",\"\",$AU$14*Table_SummaryPI[[#This Row],[kWhSavings]]),0)","v":""},{"$f":"IFERROR(IF(Table_SummaryPI[[#This Row],[kWhSavings]]=\"\",\"\",$AU$18*Table_SummaryPI[[#This Row],[kWhSavings]]),0)","v":""},{"$f":"IFERROR(IF(Table_SummaryPI[[#This Row],[kWhSavings]]=\"\",\"\",$AU$22*Table_SummaryPI[[#This Row],[kWhSavings]]),0)","v":""},{"$f":"IFERROR(IF(MeasureCalc(Table_PI[[#This Row],[Hide:\nFormula Name]],Table_SummaryPI[[#This Row],[Quantity]],Table_PI[[#This Row],[List 1]],Table_PI[[#This Row],[List 2]],Table_PI[[#This Row],[List 3]],Table_PI[[#This Row],[Size]],Table_PI[[#This Row],[Input 1]],Table_PI[[#This Row],[Input 2]],Table_PI[[#This Row],[Input 3]],Table_PI[[#This Row],[Input 4]],'Customer Information'!$AR$12,200,ROW())<>\"No Rebate\",MeasureCalc(Table_PI[[#This Row],[Hide:\nFormula Name]],Table_SummaryPI[[#This Row],[Quantity]],Table_PI[[#This Row],[List 1]],Table_PI[[#This Row],[List 2]],Table_PI[[#This Row],[List 3]],Table_PI[[#This Row],[Size]],Table_PI[[#This Row],[Input 1]],Table_PI[[#This Row],[Input 2]],Table_PI[[#This Row],[Input 3]],Table_PI[[#This Row],[Input 4]],'Customer Information'!$AR$12,200,ROW()),\"\"),\"\")","v":""},{"$f":"IFERROR(IF(MeasureCalc(Table_PI[[#This Row],[Hide:\nFormula Name]],Table_SummaryPI[[#This Row],[Quantity]],Table_PI[[#This Row],[List 1]],Table_PI[[#This Row],[List 2]],Table_PI[[#This Row],[List 3]],Table_PI[[#This Row],[Size]],Table_PI[[#This Row],[Input 1]],Table_PI[[#This Row],[Input 2]],Table_PI[[#This Row],[Input 3]],Table_PI[[#This Row],[Input 4]],'Customer Information'!$AR$12,201,ROW())<>\"No Rebate\",MeasureCalc(Table_PI[[#This Row],[Hide:\nFormula Name]],Table_SummaryPI[[#This Row],[Quantity]],Table_PI[[#This Row],[List 1]],Table_PI[[#This Row],[List 2]],Table_PI[[#This Row],[List 3]],Table_PI[[#This Row],[Size]],Table_PI[[#This Row],[Input 1]],Table_PI[[#This Row],[Input 2]],Table_PI[[#This Row],[Input 3]],Table_PI[[#This Row],[Input 4]],'Customer Information'!$AR$12,201,ROW()),\"\"),\"\")","v":""}]
[{"$f":"Table_PI[[#This Row],[Line No.]]","v":""},{"$f":"IF(Table_SummaryPI[[#This Row],[MeassureCategory]]<>\"\",CONCATENATE(Table_SummaryPI[[#This Row],[MeassureCategory]],  \" - \", Table_SummaryPI[[#This Row],[ProposedMeasureCategory]],  \" - \", TEXT(Table_SummaryPI[[#This Row],[Size]],\"#,##0.00\"),\" \",Table_SummaryPI[[#This Row],[SizeUnit]]),\"\")","v":""},{"$f":"SUBSTITUTE(Table_PI[[#This Row],[Measure]],\"     \",\"\",1)","v":""},{"$f":"IF(Table_PI[[#This Row],[List 1]]<>\"\",Table_PI[[#This Row],[List 1]],\"\")","v":""},{"$f":"IF(Table_PI[[#This Row],[List 2]]<>\"\",Table_PI[[#This Row],[List 2]],\"\")","v":""},{"$f":"IF(Table_PI[[#This Row],[List 3]]<>\"\",Table_PI[[#This Row],[List 3]],\"\")","v":""},{"$f":"IF(Table_PI[[#This Row],[Manufacturer]]=\"\",\"\",Table_PI[[#This Row],[Manufacturer]])","v":""},{"$f":"IF(Table_PI[[#This Row],[Model Number]]=\"\",\"\",Table_PI[[#This Row],[Model Number]])","v":""},{"$f":"IF(Table_PI[[#This Row],[Serial Number(s)]]=\"\",\"\",Table_PI[[#This Row],[Serial Number(s)]])","v":""},null,{"$f":"IF(Table_PI[[#This Row],[Size]]=\"\",\"\",Table_PI[[#This Row],[Size]])","v":""},null,{"$f":"IFERROR(IF(AND(MeasureCalc(Table_PI[[#This Row],[Hide:\nFormula Name]],Table_SummaryPI[[#This Row],[Quantity]],Table_PI[[#This Row],[List 1]],Table_PI[[#This Row],[List 2]],Table_PI[[#This Row],[List 3]],Table_PI[[#This Row],[Size]],Table_PI[[#This Row],[Input 1]],Table_PI[[#This Row],[Input 2]],Table_PI[[#This Row],[Input 3]],Table_PI[[#This Row],[Input 4]],'Customer Information'!$AR$12,100,ROW())<>0,MeasureCalc(Table_PI[[#This Row],[Hide:\nFormula Name]],Table_SummaryPI[[#This Row],[Quantity]],Table_PI[[#This Row],[List 1]],Table_PI[[#This Row],[List 2]],Table_PI[[#This Row],[List 3]],Table_PI[[#This Row],[Size]],Table_PI[[#This Row],[Input 1]],Table_PI[[#This Row],[Input 2]],Table_PI[[#This Row],[Input 3]],Table_PI[[#This Row],[Input 4]],'Customer Information'!$AR$12,100,ROW())<>\"No Rebate\"),MeasureCalc(Table_PI[[#This Row],[Hide:\nFormula Name]],Table_SummaryPI[[#This Row],[Quantity]],Table_PI[[#This Row],[List 1]],Table_PI[[#This Row],[List 2]],Table_PI[[#This Row],[List 3]],Table_PI[[#This Row],[Size]],Table_PI[[#This Row],[Input 1]],Table_PI[[#This Row],[Input 2]],Table_PI[[#This Row],[Input 3]],Table_PI[[#This Row],[Input 4]],'Customer Information'!$AR$12,100,ROW()),\"\"),\"\")","v":""},{"$f":"IF(Table_PI[[#This Row],[Input 1]]<>\"\",Table_PI[[#This Row],[Input 1]],\"\")","v":""},null,{"$f":"IFERROR(IF(AND(MeasureCalc(Table_PI[[#This Row],[Hide:\nFormula Name]],Table_SummaryPI[[#This Row],[Quantity]],Table_PI[[#This Row],[List 1]],Table_PI[[#This Row],[List 2]],Table_PI[[#This Row],[List 3]],Table_PI[[#This Row],[Size]],Table_PI[[#This Row],[Input 1]],Table_PI[[#This Row],[Input 2]],Table_PI[[#This Row],[Input 3]],Table_PI[[#This Row],[Input 4]],'Customer Information'!$AR$12,101,ROW())<>0,MeasureCalc(Table_PI[[#This Row],[Hide:\nFormula Name]],Table_SummaryPI[[#This Row],[Quantity]],Table_PI[[#This Row],[List 1]],Table_PI[[#This Row],[List 2]],Table_PI[[#This Row],[List 3]],Table_PI[[#This Row],[Size]],Table_PI[[#This Row],[Input 1]],Table_PI[[#This Row],[Input 2]],Table_PI[[#This Row],[Input 3]],Table_PI[[#This Row],[Input 4]],'Customer Information'!$AR$12,101,ROW())<>\"No Rebate\"),MeasureCalc(Table_PI[[#This Row],[Hide:\nFormula Name]],Table_SummaryPI[[#This Row],[Quantity]],Table_PI[[#This Row],[List 1]],Table_PI[[#This Row],[List 2]],Table_PI[[#This Row],[List 3]],Table_PI[[#This Row],[Size]],Table_PI[[#This Row],[Input 1]],Table_PI[[#This Row],[Input 2]],Table_PI[[#This Row],[Input 3]],Table_PI[[#This Row],[Input 4]],'Customer Information'!$AR$12,101,ROW()),\"\"),\"\")","v":""},{"$f":"IF(Table_PI[[#This Row],[Input 2]]<>\"\",Table_PI[[#This Row],[Input 2]],\"\")","v":""},null,{"$f":"IFERROR(IF(AND(MeasureCalc(Table_PI[[#This Row],[Hide:\nFormula Name]],Table_SummaryPI[[#This Row],[Quantity]],Table_PI[[#This Row],[List 1]],Table_PI[[#This Row],[List 2]],Table_PI[[#This Row],[List 3]],Table_PI[[#This Row],[Size]],Table_PI[[#This Row],[Input 1]],Table_PI[[#This Row],[Input 2]],Table_PI[[#This Row],[Input 3]],Table_PI[[#This Row],[Input 4]],'Customer Information'!$AR$12,102,ROW())<>0,MeasureCalc(Table_PI[[#This Row],[Hide:\nFormula Name]],Table_SummaryPI[[#This Row],[Quantity]],Table_PI[[#This Row],[List 1]],Table_PI[[#This Row],[List 2]],Table_PI[[#This Row],[List 3]],Table_PI[[#This Row],[Size]],Table_PI[[#This Row],[Input 1]],Table_PI[[#This Row],[Input 2]],Table_PI[[#This Row],[Input 3]],Table_PI[[#This Row],[Input 4]],'Customer Information'!$AR$12,102,ROW())<>\"No Rebate\"),MeasureCalc(Table_PI[[#This Row],[Hide:\nFormula Name]],Table_SummaryPI[[#This Row],[Quantity]],Table_PI[[#This Row],[List 1]],Table_PI[[#This Row],[List 2]],Table_PI[[#This Row],[List 3]],Table_PI[[#This Row],[Size]],Table_PI[[#This Row],[Input 1]],Table_PI[[#This Row],[Input 2]],Table_PI[[#This Row],[Input 3]],Table_PI[[#This Row],[Input 4]],'Customer Information'!$AR$12,102,ROW()),\"\"),\"\")","v":""},{"$f":"IF(Table_PI[[#This Row],[Input 3]]<>\"\",Table_PI[[#This Row],[Input 3]],\"\")","v":""},null,{"$f":"IFERROR(IF(AND(MeasureCalc(Table_PI[[#This Row],[Hide:\nFormula Name]],Table_SummaryPI[[#This Row],[Quantity]],Table_PI[[#This Row],[List 1]],Table_PI[[#This Row],[List 2]],Table_PI[[#This Row],[List 3]],Table_PI[[#This Row],[Size]],Table_PI[[#This Row],[Input 1]],Table_PI[[#This Row],[Input 2]],Table_PI[[#This Row],[Input 3]],Table_PI[[#This Row],[Input 4]],'Customer Information'!$AR$12,103,ROW())<>0,MeasureCalc(Table_PI[[#This Row],[Hide:\nFormula Name]],Table_SummaryPI[[#This Row],[Quantity]],Table_PI[[#This Row],[List 1]],Table_PI[[#This Row],[List 2]],Table_PI[[#This Row],[List 3]],Table_PI[[#This Row],[Size]],Table_PI[[#This Row],[Input 1]],Table_PI[[#This Row],[Input 2]],Table_PI[[#This Row],[Input 3]],Table_PI[[#This Row],[Input 4]],'Customer Information'!$AR$12,103,ROW())<>\"No Rebate\"),MeasureCalc(Table_PI[[#This Row],[Hide:\nFormula Name]],Table_SummaryPI[[#This Row],[Quantity]],Table_PI[[#This Row],[List 1]],Table_PI[[#This Row],[List 2]],Table_PI[[#This Row],[List 3]],Table_PI[[#This Row],[Size]],Table_PI[[#This Row],[Input 1]],Table_PI[[#This Row],[Input 2]],Table_PI[[#This Row],[Input 3]],Table_PI[[#This Row],[Input 4]],'Customer Information'!$AR$12,103,ROW()),\"\"),\"\")","v":""},{"$f":"IF(Table_PI[[#This Row],[Input 4]]<>\"\",Table_PI[[#This Row],[Input 4]],\"\")","v":""},{"$f":"IF(Table_PI[[#This Row],[Quantity]]=\"\",\"\",Table_PI[[#This Row],[Quantity]])","v":""},{"$f":"IF(Table_PI[[#This Row],[Notes]]=\"\",\"\",Table_PI[[#This Row],[Notes]])","v":""},{"$f":"IF(OR(Table_PI[[#This Row],[Hide:\nBaseline kWh]]=\"\",Table_PI[[#This Row],[Hide:\nBaseline kWh]]=0),\"\",Table_PI[[#This Row],[Hide:\nBaseline kWh]])","v":""},{"$f":"IF(OR(Table_PI[[#This Row],[Hide:\nBaseline kW]]=\"\",Table_PI[[#This Row],[Hide:\nBaseline kW]]=0),\"\",Table_PI[[#This Row],[Hide:\nBaseline kW]])","v":""},{"$f":"IF(OR(Table_PI[[#This Row],[Hide:\nProposed kWh]]=\"\",Table_PI[[#This Row],[Hide:\nProposed kWh]]=0),\"\",Table_PI[[#This Row],[Hide:\nProposed kWh]])","v":""},{"$f":"IF(OR(Table_PI[[#This Row],[Hide:\nProposed kW]]=\"\",Table_PI[[#This Row],[Hide:\nProposed kW]]=0),\"\",Table_PI[[#This Row],[Hide:\nProposed kW]])","v":""},{"$f":"IF(OR(Table_PI[[#This Row],[Rebate]]=\"\",Table_PI[[#This Row],[Rebate]]=0),\"\",Table_PI[[#This Row],[Rebate]])","v":""},{"$f":"IF(OR(Table_PI[[#This Row],[Hide:\nIncremental Cost]]=\"\",Table_PI[[#This Row],[Hide:\nIncremental Cost]]=0),\"\",Table_PI[[#This Row],[Hide:\nIncremental Cost]])","v":""},{"$f":"IFERROR(IF(Table_SummaryPI[[#This Row],[kWhSavings]]=\"\",\"\",ROUND(Table_SummaryPI[[#This Row],[kWhSavings]]/$AG$401*'Customer Information'!$BC$17,2)),0)","v":""},{"$f":"IF(OR(Table_PI[[#This Row],[Annual kWh]]=\"\",Table_PI[[#This Row],[Annual kWh]]=0),\"\",Table_PI[[#This Row],[Annual kWh]])","v":""},{"$f":"IF(OR(Table_PI[[#This Row],[Peak kW]]=\"\",Table_PI[[#This Row],[Peak kW]]=0),\"\",Table_PI[[#This Row],[Peak kW]])","v":""},{"$f":"IFERROR(IF(Table_SummaryPI[[#This Row],[kWhSavings]]=\"\",\"\",$AU$9*Table_SummaryPI[[#This Row],[kWhSavings]]),0)","v":""},{"$f":"IFERROR(IF(Table_SummaryPI[[#This Row],[kWhSavings]]=\"\",\"\",$AU$14*Table_SummaryPI[[#This Row],[kWhSavings]]),0)","v":""},{"$f":"IFERROR(IF(Table_SummaryPI[[#This Row],[kWhSavings]]=\"\",\"\",$AU$18*Table_SummaryPI[[#This Row],[kWhSavings]]),0)","v":""},{"$f":"IFERROR(IF(Table_SummaryPI[[#This Row],[kWhSavings]]=\"\",\"\",$AU$22*Table_SummaryPI[[#This Row],[kWhSavings]]),0)","v":""},{"$f":"IFERROR(IF(MeasureCalc(Table_PI[[#This Row],[Hide:\nFormula Name]],Table_SummaryPI[[#This Row],[Quantity]],Table_PI[[#This Row],[List 1]],Table_PI[[#This Row],[List 2]],Table_PI[[#This Row],[List 3]],Table_PI[[#This Row],[Size]],Table_PI[[#This Row],[Input 1]],Table_PI[[#This Row],[Input 2]],Table_PI[[#This Row],[Input 3]],Table_PI[[#This Row],[Input 4]],'Customer Information'!$AR$12,200,ROW())<>\"No Rebate\",MeasureCalc(Table_PI[[#This Row],[Hide:\nFormula Name]],Table_SummaryPI[[#This Row],[Quantity]],Table_PI[[#This Row],[List 1]],Table_PI[[#This Row],[List 2]],Table_PI[[#This Row],[List 3]],Table_PI[[#This Row],[Size]],Table_PI[[#This Row],[Input 1]],Table_PI[[#This Row],[Input 2]],Table_PI[[#This Row],[Input 3]],Table_PI[[#This Row],[Input 4]],'Customer Information'!$AR$12,200,ROW()),\"\"),\"\")","v":""},{"$f":"IFERROR(IF(MeasureCalc(Table_PI[[#This Row],[Hide:\nFormula Name]],Table_SummaryPI[[#This Row],[Quantity]],Table_PI[[#This Row],[List 1]],Table_PI[[#This Row],[List 2]],Table_PI[[#This Row],[List 3]],Table_PI[[#This Row],[Size]],Table_PI[[#This Row],[Input 1]],Table_PI[[#This Row],[Input 2]],Table_PI[[#This Row],[Input 3]],Table_PI[[#This Row],[Input 4]],'Customer Information'!$AR$12,201,ROW())<>\"No Rebate\",MeasureCalc(Table_PI[[#This Row],[Hide:\nFormula Name]],Table_SummaryPI[[#This Row],[Quantity]],Table_PI[[#This Row],[List 1]],Table_PI[[#This Row],[List 2]],Table_PI[[#This Row],[List 3]],Table_PI[[#This Row],[Size]],Table_PI[[#This Row],[Input 1]],Table_PI[[#This Row],[Input 2]],Table_PI[[#This Row],[Input 3]],Table_PI[[#This Row],[Input 4]],'Customer Information'!$AR$12,201,ROW()),\"\"),\"\")","v":""}]
[{"$f":"Table_PI[[#This Row],[Line No.]]","v":""},{"$f":"IF(Table_SummaryPI[[#This Row],[MeassureCategory]]<>\"\",CONCATENATE(Table_SummaryPI[[#This Row],[MeassureCategory]],  \" - \", Table_SummaryPI[[#This Row],[ProposedMeasureCategory]],  \" - \", TEXT(Table_SummaryPI[[#This Row],[Size]],\"#,##0.00\"),\" \",Table_SummaryPI[[#This Row],[SizeUnit]]),\"\")","v":""},{"$f":"SUBSTITUTE(Table_PI[[#This Row],[Measure]],\"     \",\"\",1)","v":""},{"$f":"IF(Table_PI[[#This Row],[List 1]]<>\"\",Table_PI[[#This Row],[List 1]],\"\")","v":""},{"$f":"IF(Table_PI[[#This Row],[List 2]]<>\"\",Table_PI[[#This Row],[List 2]],\"\")","v":""},{"$f":"IF(Table_PI[[#This Row],[List 3]]<>\"\",Table_PI[[#This Row],[List 3]],\"\")","v":""},{"$f":"IF(Table_PI[[#This Row],[Manufacturer]]=\"\",\"\",Table_PI[[#This Row],[Manufacturer]])","v":""},{"$f":"IF(Table_PI[[#This Row],[Model Number]]=\"\",\"\",Table_PI[[#This Row],[Model Number]])","v":""},{"$f":"IF(Table_PI[[#This Row],[Serial Number(s)]]=\"\",\"\",Table_PI[[#This Row],[Serial Number(s)]])","v":""},null,{"$f":"IF(Table_PI[[#This Row],[Size]]=\"\",\"\",Table_PI[[#This Row],[Size]])","v":""},null,{"$f":"IFERROR(IF(AND(MeasureCalc(Table_PI[[#This Row],[Hide:\nFormula Name]],Table_SummaryPI[[#This Row],[Quantity]],Table_PI[[#This Row],[List 1]],Table_PI[[#This Row],[List 2]],Table_PI[[#This Row],[List 3]],Table_PI[[#This Row],[Size]],Table_PI[[#This Row],[Input 1]],Table_PI[[#This Row],[Input 2]],Table_PI[[#This Row],[Input 3]],Table_PI[[#This Row],[Input 4]],'Customer Information'!$AR$12,100,ROW())<>0,MeasureCalc(Table_PI[[#This Row],[Hide:\nFormula Name]],Table_SummaryPI[[#This Row],[Quantity]],Table_PI[[#This Row],[List 1]],Table_PI[[#This Row],[List 2]],Table_PI[[#This Row],[List 3]],Table_PI[[#This Row],[Size]],Table_PI[[#This Row],[Input 1]],Table_PI[[#This Row],[Input 2]],Table_PI[[#This Row],[Input 3]],Table_PI[[#This Row],[Input 4]],'Customer Information'!$AR$12,100,ROW())<>\"No Rebate\"),MeasureCalc(Table_PI[[#This Row],[Hide:\nFormula Name]],Table_SummaryPI[[#This Row],[Quantity]],Table_PI[[#This Row],[List 1]],Table_PI[[#This Row],[List 2]],Table_PI[[#This Row],[List 3]],Table_PI[[#This Row],[Size]],Table_PI[[#This Row],[Input 1]],Table_PI[[#This Row],[Input 2]],Table_PI[[#This Row],[Input 3]],Table_PI[[#This Row],[Input 4]],'Customer Information'!$AR$12,100,ROW()),\"\"),\"\")","v":""},{"$f":"IF(Table_PI[[#This Row],[Input 1]]<>\"\",Table_PI[[#This Row],[Input 1]],\"\")","v":""},null,{"$f":"IFERROR(IF(AND(MeasureCalc(Table_PI[[#This Row],[Hide:\nFormula Name]],Table_SummaryPI[[#This Row],[Quantity]],Table_PI[[#This Row],[List 1]],Table_PI[[#This Row],[List 2]],Table_PI[[#This Row],[List 3]],Table_PI[[#This Row],[Size]],Table_PI[[#This Row],[Input 1]],Table_PI[[#This Row],[Input 2]],Table_PI[[#This Row],[Input 3]],Table_PI[[#This Row],[Input 4]],'Customer Information'!$AR$12,101,ROW())<>0,MeasureCalc(Table_PI[[#This Row],[Hide:\nFormula Name]],Table_SummaryPI[[#This Row],[Quantity]],Table_PI[[#This Row],[List 1]],Table_PI[[#This Row],[List 2]],Table_PI[[#This Row],[List 3]],Table_PI[[#This Row],[Size]],Table_PI[[#This Row],[Input 1]],Table_PI[[#This Row],[Input 2]],Table_PI[[#This Row],[Input 3]],Table_PI[[#This Row],[Input 4]],'Customer Information'!$AR$12,101,ROW())<>\"No Rebate\"),MeasureCalc(Table_PI[[#This Row],[Hide:\nFormula Name]],Table_SummaryPI[[#This Row],[Quantity]],Table_PI[[#This Row],[List 1]],Table_PI[[#This Row],[List 2]],Table_PI[[#This Row],[List 3]],Table_PI[[#This Row],[Size]],Table_PI[[#This Row],[Input 1]],Table_PI[[#This Row],[Input 2]],Table_PI[[#This Row],[Input 3]],Table_PI[[#This Row],[Input 4]],'Customer Information'!$AR$12,101,ROW()),\"\"),\"\")","v":""},{"$f":"IF(Table_PI[[#This Row],[Input 2]]<>\"\",Table_PI[[#This Row],[Input 2]],\"\")","v":""},null,{"$f":"IFERROR(IF(AND(MeasureCalc(Table_PI[[#This Row],[Hide:\nFormula Name]],Table_SummaryPI[[#This Row],[Quantity]],Table_PI[[#This Row],[List 1]],Table_PI[[#This Row],[List 2]],Table_PI[[#This Row],[List 3]],Table_PI[[#This Row],[Size]],Table_PI[[#This Row],[Input 1]],Table_PI[[#This Row],[Input 2]],Table_PI[[#This Row],[Input 3]],Table_PI[[#This Row],[Input 4]],'Customer Information'!$AR$12,102,ROW())<>0,MeasureCalc(Table_PI[[#This Row],[Hide:\nFormula Name]],Table_SummaryPI[[#This Row],[Quantity]],Table_PI[[#This Row],[List 1]],Table_PI[[#This Row],[List 2]],Table_PI[[#This Row],[List 3]],Table_PI[[#This Row],[Size]],Table_PI[[#This Row],[Input 1]],Table_PI[[#This Row],[Input 2]],Table_PI[[#This Row],[Input 3]],Table_PI[[#This Row],[Input 4]],'Customer Information'!$AR$12,102,ROW())<>\"No Rebate\"),MeasureCalc(Table_PI[[#This Row],[Hide:\nFormula Name]],Table_SummaryPI[[#This Row],[Quantity]],Table_PI[[#This Row],[List 1]],Table_PI[[#This Row],[List 2]],Table_PI[[#This Row],[List 3]],Table_PI[[#This Row],[Size]],Table_PI[[#This Row],[Input 1]],Table_PI[[#This Row],[Input 2]],Table_PI[[#This Row],[Input 3]],Table_PI[[#This Row],[Input 4]],'Customer Information'!$AR$12,102,ROW()),\"\"),\"\")","v":""},{"$f":"IF(Table_PI[[#This Row],[Input 3]]<>\"\",Table_PI[[#This Row],[Input 3]],\"\")","v":""},null,{"$f":"IFERROR(IF(AND(MeasureCalc(Table_PI[[#This Row],[Hide:\nFormula Name]],Table_SummaryPI[[#This Row],[Quantity]],Table_PI[[#This Row],[List 1]],Table_PI[[#This Row],[List 2]],Table_PI[[#This Row],[List 3]],Table_PI[[#This Row],[Size]],Table_PI[[#This Row],[Input 1]],Table_PI[[#This Row],[Input 2]],Table_PI[[#This Row],[Input 3]],Table_PI[[#This Row],[Input 4]],'Customer Information'!$AR$12,103,ROW())<>0,MeasureCalc(Table_PI[[#This Row],[Hide:\nFormula Name]],Table_SummaryPI[[#This Row],[Quantity]],Table_PI[[#This Row],[List 1]],Table_PI[[#This Row],[List 2]],Table_PI[[#This Row],[List 3]],Table_PI[[#This Row],[Size]],Table_PI[[#This Row],[Input 1]],Table_PI[[#This Row],[Input 2]],Table_PI[[#This Row],[Input 3]],Table_PI[[#This Row],[Input 4]],'Customer Information'!$AR$12,103,ROW())<>\"No Rebate\"),MeasureCalc(Table_PI[[#This Row],[Hide:\nFormula Name]],Table_SummaryPI[[#This Row],[Quantity]],Table_PI[[#This Row],[List 1]],Table_PI[[#This Row],[List 2]],Table_PI[[#This Row],[List 3]],Table_PI[[#This Row],[Size]],Table_PI[[#This Row],[Input 1]],Table_PI[[#This Row],[Input 2]],Table_PI[[#This Row],[Input 3]],Table_PI[[#This Row],[Input 4]],'Customer Information'!$AR$12,103,ROW()),\"\"),\"\")","v":""},{"$f":"IF(Table_PI[[#This Row],[Input 4]]<>\"\",Table_PI[[#This Row],[Input 4]],\"\")","v":""},{"$f":"IF(Table_PI[[#This Row],[Quantity]]=\"\",\"\",Table_PI[[#This Row],[Quantity]])","v":""},{"$f":"IF(Table_PI[[#This Row],[Notes]]=\"\",\"\",Table_PI[[#This Row],[Notes]])","v":""},{"$f":"IF(OR(Table_PI[[#This Row],[Hide:\nBaseline kWh]]=\"\",Table_PI[[#This Row],[Hide:\nBaseline kWh]]=0),\"\",Table_PI[[#This Row],[Hide:\nBaseline kWh]])","v":""},{"$f":"IF(OR(Table_PI[[#This Row],[Hide:\nBaseline kW]]=\"\",Table_PI[[#This Row],[Hide:\nBaseline kW]]=0),\"\",Table_PI[[#This Row],[Hide:\nBaseline kW]])","v":""},{"$f":"IF(OR(Table_PI[[#This Row],[Hide:\nProposed kWh]]=\"\",Table_PI[[#This Row],[Hide:\nProposed kWh]]=0),\"\",Table_PI[[#This Row],[Hide:\nProposed kWh]])","v":""},{"$f":"IF(OR(Table_PI[[#This Row],[Hide:\nProposed kW]]=\"\",Table_PI[[#This Row],[Hide:\nProposed kW]]=0),\"\",Table_PI[[#This Row],[Hide:\nProposed kW]])","v":""},{"$f":"IF(OR(Table_PI[[#This Row],[Rebate]]=\"\",Table_PI[[#This Row],[Rebate]]=0),\"\",Table_PI[[#This Row],[Rebate]])","v":""},{"$f":"IF(OR(Table_PI[[#This Row],[Hide:\nIncremental Cost]]=\"\",Table_PI[[#This Row],[Hide:\nIncremental Cost]]=0),\"\",Table_PI[[#This Row],[Hide:\nIncremental Cost]])","v":""},{"$f":"IFERROR(IF(Table_SummaryPI[[#This Row],[kWhSavings]]=\"\",\"\",ROUND(Table_SummaryPI[[#This Row],[kWhSavings]]/$AG$401*'Customer Information'!$BC$17,2)),0)","v":""},{"$f":"IF(OR(Table_PI[[#This Row],[Annual kWh]]=\"\",Table_PI[[#This Row],[Annual kWh]]=0),\"\",Table_PI[[#This Row],[Annual kWh]])","v":""},{"$f":"IF(OR(Table_PI[[#This Row],[Peak kW]]=\"\",Table_PI[[#This Row],[Peak kW]]=0),\"\",Table_PI[[#This Row],[Peak kW]])","v":""},{"$f":"IFERROR(IF(Table_SummaryPI[[#This Row],[kWhSavings]]=\"\",\"\",$AU$9*Table_SummaryPI[[#This Row],[kWhSavings]]),0)","v":""},{"$f":"IFERROR(IF(Table_SummaryPI[[#This Row],[kWhSavings]]=\"\",\"\",$AU$14*Table_SummaryPI[[#This Row],[kWhSavings]]),0)","v":""},{"$f":"IFERROR(IF(Table_SummaryPI[[#This Row],[kWhSavings]]=\"\",\"\",$AU$18*Table_SummaryPI[[#This Row],[kWhSavings]]),0)","v":""},{"$f":"IFERROR(IF(Table_SummaryPI[[#This Row],[kWhSavings]]=\"\",\"\",$AU$22*Table_SummaryPI[[#This Row],[kWhSavings]]),0)","v":""},{"$f":"IFERROR(IF(MeasureCalc(Table_PI[[#This Row],[Hide:\nFormula Name]],Table_SummaryPI[[#This Row],[Quantity]],Table_PI[[#This Row],[List 1]],Table_PI[[#This Row],[List 2]],Table_PI[[#This Row],[List 3]],Table_PI[[#This Row],[Size]],Table_PI[[#This Row],[Input 1]],Table_PI[[#This Row],[Input 2]],Table_PI[[#This Row],[Input 3]],Table_PI[[#This Row],[Input 4]],'Customer Information'!$AR$12,200,ROW())<>\"No Rebate\",MeasureCalc(Table_PI[[#This Row],[Hide:\nFormula Name]],Table_SummaryPI[[#This Row],[Quantity]],Table_PI[[#This Row],[List 1]],Table_PI[[#This Row],[List 2]],Table_PI[[#This Row],[List 3]],Table_PI[[#This Row],[Size]],Table_PI[[#This Row],[Input 1]],Table_PI[[#This Row],[Input 2]],Table_PI[[#This Row],[Input 3]],Table_PI[[#This Row],[Input 4]],'Customer Information'!$AR$12,200,ROW()),\"\"),\"\")","v":""},{"$f":"IFERROR(IF(MeasureCalc(Table_PI[[#This Row],[Hide:\nFormula Name]],Table_SummaryPI[[#This Row],[Quantity]],Table_PI[[#This Row],[List 1]],Table_PI[[#This Row],[List 2]],Table_PI[[#This Row],[List 3]],Table_PI[[#This Row],[Size]],Table_PI[[#This Row],[Input 1]],Table_PI[[#This Row],[Input 2]],Table_PI[[#This Row],[Input 3]],Table_PI[[#This Row],[Input 4]],'Customer Information'!$AR$12,201,ROW())<>\"No Rebate\",MeasureCalc(Table_PI[[#This Row],[Hide:\nFormula Name]],Table_SummaryPI[[#This Row],[Quantity]],Table_PI[[#This Row],[List 1]],Table_PI[[#This Row],[List 2]],Table_PI[[#This Row],[List 3]],Table_PI[[#This Row],[Size]],Table_PI[[#This Row],[Input 1]],Table_PI[[#This Row],[Input 2]],Table_PI[[#This Row],[Input 3]],Table_PI[[#This Row],[Input 4]],'Customer Information'!$AR$12,201,ROW()),\"\"),\"\")","v":""}]
[{"$f":"Table_PI[[#This Row],[Line No.]]","v":""},{"$f":"IF(Table_SummaryPI[[#This Row],[MeassureCategory]]<>\"\",CONCATENATE(Table_SummaryPI[[#This Row],[MeassureCategory]],  \" - \", Table_SummaryPI[[#This Row],[ProposedMeasureCategory]],  \" - \", TEXT(Table_SummaryPI[[#This Row],[Size]],\"#,##0.00\"),\" \",Table_SummaryPI[[#This Row],[SizeUnit]]),\"\")","v":""},{"$f":"SUBSTITUTE(Table_PI[[#This Row],[Measure]],\"     \",\"\",1)","v":""},{"$f":"IF(Table_PI[[#This Row],[List 1]]<>\"\",Table_PI[[#This Row],[List 1]],\"\")","v":""},{"$f":"IF(Table_PI[[#This Row],[List 2]]<>\"\",Table_PI[[#This Row],[List 2]],\"\")","v":""},{"$f":"IF(Table_PI[[#This Row],[List 3]]<>\"\",Table_PI[[#This Row],[List 3]],\"\")","v":""},{"$f":"IF(Table_PI[[#This Row],[Manufacturer]]=\"\",\"\",Table_PI[[#This Row],[Manufacturer]])","v":""},{"$f":"IF(Table_PI[[#This Row],[Model Number]]=\"\",\"\",Table_PI[[#This Row],[Model Number]])","v":""},{"$f":"IF(Table_PI[[#This Row],[Serial Number(s)]]=\"\",\"\",Table_PI[[#This Row],[Serial Number(s)]])","v":""},null,{"$f":"IF(Table_PI[[#This Row],[Size]]=\"\",\"\",Table_PI[[#This Row],[Size]])","v":""},null,{"$f":"IFERROR(IF(AND(MeasureCalc(Table_PI[[#This Row],[Hide:\nFormula Name]],Table_SummaryPI[[#This Row],[Quantity]],Table_PI[[#This Row],[List 1]],Table_PI[[#This Row],[List 2]],Table_PI[[#This Row],[List 3]],Table_PI[[#This Row],[Size]],Table_PI[[#This Row],[Input 1]],Table_PI[[#This Row],[Input 2]],Table_PI[[#This Row],[Input 3]],Table_PI[[#This Row],[Input 4]],'Customer Information'!$AR$12,100,ROW())<>0,MeasureCalc(Table_PI[[#This Row],[Hide:\nFormula Name]],Table_SummaryPI[[#This Row],[Quantity]],Table_PI[[#This Row],[List 1]],Table_PI[[#This Row],[List 2]],Table_PI[[#This Row],[List 3]],Table_PI[[#This Row],[Size]],Table_PI[[#This Row],[Input 1]],Table_PI[[#This Row],[Input 2]],Table_PI[[#This Row],[Input 3]],Table_PI[[#This Row],[Input 4]],'Customer Information'!$AR$12,100,ROW())<>\"No Rebate\"),MeasureCalc(Table_PI[[#This Row],[Hide:\nFormula Name]],Table_SummaryPI[[#This Row],[Quantity]],Table_PI[[#This Row],[List 1]],Table_PI[[#This Row],[List 2]],Table_PI[[#This Row],[List 3]],Table_PI[[#This Row],[Size]],Table_PI[[#This Row],[Input 1]],Table_PI[[#This Row],[Input 2]],Table_PI[[#This Row],[Input 3]],Table_PI[[#This Row],[Input 4]],'Customer Information'!$AR$12,100,ROW()),\"\"),\"\")","v":""},{"$f":"IF(Table_PI[[#This Row],[Input 1]]<>\"\",Table_PI[[#This Row],[Input 1]],\"\")","v":""},null,{"$f":"IFERROR(IF(AND(MeasureCalc(Table_PI[[#This Row],[Hide:\nFormula Name]],Table_SummaryPI[[#This Row],[Quantity]],Table_PI[[#This Row],[List 1]],Table_PI[[#This Row],[List 2]],Table_PI[[#This Row],[List 3]],Table_PI[[#This Row],[Size]],Table_PI[[#This Row],[Input 1]],Table_PI[[#This Row],[Input 2]],Table_PI[[#This Row],[Input 3]],Table_PI[[#This Row],[Input 4]],'Customer Information'!$AR$12,101,ROW())<>0,MeasureCalc(Table_PI[[#This Row],[Hide:\nFormula Name]],Table_SummaryPI[[#This Row],[Quantity]],Table_PI[[#This Row],[List 1]],Table_PI[[#This Row],[List 2]],Table_PI[[#This Row],[List 3]],Table_PI[[#This Row],[Size]],Table_PI[[#This Row],[Input 1]],Table_PI[[#This Row],[Input 2]],Table_PI[[#This Row],[Input 3]],Table_PI[[#This Row],[Input 4]],'Customer Information'!$AR$12,101,ROW())<>\"No Rebate\"),MeasureCalc(Table_PI[[#This Row],[Hide:\nFormula Name]],Table_SummaryPI[[#This Row],[Quantity]],Table_PI[[#This Row],[List 1]],Table_PI[[#This Row],[List 2]],Table_PI[[#This Row],[List 3]],Table_PI[[#This Row],[Size]],Table_PI[[#This Row],[Input 1]],Table_PI[[#This Row],[Input 2]],Table_PI[[#This Row],[Input 3]],Table_PI[[#This Row],[Input 4]],'Customer Information'!$AR$12,101,ROW()),\"\"),\"\")","v":""},{"$f":"IF(Table_PI[[#This Row],[Input 2]]<>\"\",Table_PI[[#This Row],[Input 2]],\"\")","v":""},null,{"$f":"IFERROR(IF(AND(MeasureCalc(Table_PI[[#This Row],[Hide:\nFormula Name]],Table_SummaryPI[[#This Row],[Quantity]],Table_PI[[#This Row],[List 1]],Table_PI[[#This Row],[List 2]],Table_PI[[#This Row],[List 3]],Table_PI[[#This Row],[Size]],Table_PI[[#This Row],[Input 1]],Table_PI[[#This Row],[Input 2]],Table_PI[[#This Row],[Input 3]],Table_PI[[#This Row],[Input 4]],'Customer Information'!$AR$12,102,ROW())<>0,MeasureCalc(Table_PI[[#This Row],[Hide:\nFormula Name]],Table_SummaryPI[[#This Row],[Quantity]],Table_PI[[#This Row],[List 1]],Table_PI[[#This Row],[List 2]],Table_PI[[#This Row],[List 3]],Table_PI[[#This Row],[Size]],Table_PI[[#This Row],[Input 1]],Table_PI[[#This Row],[Input 2]],Table_PI[[#This Row],[Input 3]],Table_PI[[#This Row],[Input 4]],'Customer Information'!$AR$12,102,ROW())<>\"No Rebate\"),MeasureCalc(Table_PI[[#This Row],[Hide:\nFormula Name]],Table_SummaryPI[[#This Row],[Quantity]],Table_PI[[#This Row],[List 1]],Table_PI[[#This Row],[List 2]],Table_PI[[#This Row],[List 3]],Table_PI[[#This Row],[Size]],Table_PI[[#This Row],[Input 1]],Table_PI[[#This Row],[Input 2]],Table_PI[[#This Row],[Input 3]],Table_PI[[#This Row],[Input 4]],'Customer Information'!$AR$12,102,ROW()),\"\"),\"\")","v":""},{"$f":"IF(Table_PI[[#This Row],[Input 3]]<>\"\",Table_PI[[#This Row],[Input 3]],\"\")","v":""},null,{"$f":"IFERROR(IF(AND(MeasureCalc(Table_PI[[#This Row],[Hide:\nFormula Name]],Table_SummaryPI[[#This Row],[Quantity]],Table_PI[[#This Row],[List 1]],Table_PI[[#This Row],[List 2]],Table_PI[[#This Row],[List 3]],Table_PI[[#This Row],[Size]],Table_PI[[#This Row],[Input 1]],Table_PI[[#This Row],[Input 2]],Table_PI[[#This Row],[Input 3]],Table_PI[[#This Row],[Input 4]],'Customer Information'!$AR$12,103,ROW())<>0,MeasureCalc(Table_PI[[#This Row],[Hide:\nFormula Name]],Table_SummaryPI[[#This Row],[Quantity]],Table_PI[[#This Row],[List 1]],Table_PI[[#This Row],[List 2]],Table_PI[[#This Row],[List 3]],Table_PI[[#This Row],[Size]],Table_PI[[#This Row],[Input 1]],Table_PI[[#This Row],[Input 2]],Table_PI[[#This Row],[Input 3]],Table_PI[[#This Row],[Input 4]],'Customer Information'!$AR$12,103,ROW())<>\"No Rebate\"),MeasureCalc(Table_PI[[#This Row],[Hide:\nFormula Name]],Table_SummaryPI[[#This Row],[Quantity]],Table_PI[[#This Row],[List 1]],Table_PI[[#This Row],[List 2]],Table_PI[[#This Row],[List 3]],Table_PI[[#This Row],[Size]],Table_PI[[#This Row],[Input 1]],Table_PI[[#This Row],[Input 2]],Table_PI[[#This Row],[Input 3]],Table_PI[[#This Row],[Input 4]],'Customer Information'!$AR$12,103,ROW()),\"\"),\"\")","v":""},{"$f":"IF(Table_PI[[#This Row],[Input 4]]<>\"\",Table_PI[[#This Row],[Input 4]],\"\")","v":""},{"$f":"IF(Table_PI[[#This Row],[Quantity]]=\"\",\"\",Table_PI[[#This Row],[Quantity]])","v":""},{"$f":"IF(Table_PI[[#This Row],[Notes]]=\"\",\"\",Table_PI[[#This Row],[Notes]])","v":""},{"$f":"IF(OR(Table_PI[[#This Row],[Hide:\nBaseline kWh]]=\"\",Table_PI[[#This Row],[Hide:\nBaseline kWh]]=0),\"\",Table_PI[[#This Row],[Hide:\nBaseline kWh]])","v":""},{"$f":"IF(OR(Table_PI[[#This Row],[Hide:\nBaseline kW]]=\"\",Table_PI[[#This Row],[Hide:\nBaseline kW]]=0),\"\",Table_PI[[#This Row],[Hide:\nBaseline kW]])","v":""},{"$f":"IF(OR(Table_PI[[#This Row],[Hide:\nProposed kWh]]=\"\",Table_PI[[#This Row],[Hide:\nProposed kWh]]=0),\"\",Table_PI[[#This Row],[Hide:\nProposed kWh]])","v":""},{"$f":"IF(OR(Table_PI[[#This Row],[Hide:\nProposed kW]]=\"\",Table_PI[[#This Row],[Hide:\nProposed kW]]=0),\"\",Table_PI[[#This Row],[Hide:\nProposed kW]])","v":""},{"$f":"IF(OR(Table_PI[[#This Row],[Rebate]]=\"\",Table_PI[[#This Row],[Rebate]]=0),\"\",Table_PI[[#This Row],[Rebate]])","v":""},{"$f":"IF(OR(Table_PI[[#This Row],[Hide:\nIncremental Cost]]=\"\",Table_PI[[#This Row],[Hide:\nIncremental Cost]]=0),\"\",Table_PI[[#This Row],[Hide:\nIncremental Cost]])","v":""},{"$f":"IFERROR(IF(Table_SummaryPI[[#This Row],[kWhSavings]]=\"\",\"\",ROUND(Table_SummaryPI[[#This Row],[kWhSavings]]/$AG$401*'Customer Information'!$BC$17,2)),0)","v":""},{"$f":"IF(OR(Table_PI[[#This Row],[Annual kWh]]=\"\",Table_PI[[#This Row],[Annual kWh]]=0),\"\",Table_PI[[#This Row],[Annual kWh]])","v":""},{"$f":"IF(OR(Table_PI[[#This Row],[Peak kW]]=\"\",Table_PI[[#This Row],[Peak kW]]=0),\"\",Table_PI[[#This Row],[Peak kW]])","v":""},{"$f":"IFERROR(IF(Table_SummaryPI[[#This Row],[kWhSavings]]=\"\",\"\",$AU$9*Table_SummaryPI[[#This Row],[kWhSavings]]),0)","v":""},{"$f":"IFERROR(IF(Table_SummaryPI[[#This Row],[kWhSavings]]=\"\",\"\",$AU$14*Table_SummaryPI[[#This Row],[kWhSavings]]),0)","v":""},{"$f":"IFERROR(IF(Table_SummaryPI[[#This Row],[kWhSavings]]=\"\",\"\",$AU$18*Table_SummaryPI[[#This Row],[kWhSavings]]),0)","v":""},{"$f":"IFERROR(IF(Table_SummaryPI[[#This Row],[kWhSavings]]=\"\",\"\",$AU$22*Table_SummaryPI[[#This Row],[kWhSavings]]),0)","v":""},{"$f":"IFERROR(IF(MeasureCalc(Table_PI[[#This Row],[Hide:\nFormula Name]],Table_SummaryPI[[#This Row],[Quantity]],Table_PI[[#This Row],[List 1]],Table_PI[[#This Row],[List 2]],Table_PI[[#This Row],[List 3]],Table_PI[[#This Row],[Size]],Table_PI[[#This Row],[Input 1]],Table_PI[[#This Row],[Input 2]],Table_PI[[#This Row],[Input 3]],Table_PI[[#This Row],[Input 4]],'Customer Information'!$AR$12,200,ROW())<>\"No Rebate\",MeasureCalc(Table_PI[[#This Row],[Hide:\nFormula Name]],Table_SummaryPI[[#This Row],[Quantity]],Table_PI[[#This Row],[List 1]],Table_PI[[#This Row],[List 2]],Table_PI[[#This Row],[List 3]],Table_PI[[#This Row],[Size]],Table_PI[[#This Row],[Input 1]],Table_PI[[#This Row],[Input 2]],Table_PI[[#This Row],[Input 3]],Table_PI[[#This Row],[Input 4]],'Customer Information'!$AR$12,200,ROW()),\"\"),\"\")","v":""},{"$f":"IFERROR(IF(MeasureCalc(Table_PI[[#This Row],[Hide:\nFormula Name]],Table_SummaryPI[[#This Row],[Quantity]],Table_PI[[#This Row],[List 1]],Table_PI[[#This Row],[List 2]],Table_PI[[#This Row],[List 3]],Table_PI[[#This Row],[Size]],Table_PI[[#This Row],[Input 1]],Table_PI[[#This Row],[Input 2]],Table_PI[[#This Row],[Input 3]],Table_PI[[#This Row],[Input 4]],'Customer Information'!$AR$12,201,ROW())<>\"No Rebate\",MeasureCalc(Table_PI[[#This Row],[Hide:\nFormula Name]],Table_SummaryPI[[#This Row],[Quantity]],Table_PI[[#This Row],[List 1]],Table_PI[[#This Row],[List 2]],Table_PI[[#This Row],[List 3]],Table_PI[[#This Row],[Size]],Table_PI[[#This Row],[Input 1]],Table_PI[[#This Row],[Input 2]],Table_PI[[#This Row],[Input 3]],Table_PI[[#This Row],[Input 4]],'Customer Information'!$AR$12,201,ROW()),\"\"),\"\")","v":""}]
[{"$f":"Table_PI[[#This Row],[Line No.]]","v":""},{"$f":"IF(Table_SummaryPI[[#This Row],[MeassureCategory]]<>\"\",CONCATENATE(Table_SummaryPI[[#This Row],[MeassureCategory]],  \" - \", Table_SummaryPI[[#This Row],[ProposedMeasureCategory]],  \" - \", TEXT(Table_SummaryPI[[#This Row],[Size]],\"#,##0.00\"),\" \",Table_SummaryPI[[#This Row],[SizeUnit]]),\"\")","v":""},{"$f":"SUBSTITUTE(Table_PI[[#This Row],[Measure]],\"     \",\"\",1)","v":""},{"$f":"IF(Table_PI[[#This Row],[List 1]]<>\"\",Table_PI[[#This Row],[List 1]],\"\")","v":""},{"$f":"IF(Table_PI[[#This Row],[List 2]]<>\"\",Table_PI[[#This Row],[List 2]],\"\")","v":""},{"$f":"IF(Table_PI[[#This Row],[List 3]]<>\"\",Table_PI[[#This Row],[List 3]],\"\")","v":""},{"$f":"IF(Table_PI[[#This Row],[Manufacturer]]=\"\",\"\",Table_PI[[#This Row],[Manufacturer]])","v":""},{"$f":"IF(Table_PI[[#This Row],[Model Number]]=\"\",\"\",Table_PI[[#This Row],[Model Number]])","v":""},{"$f":"IF(Table_PI[[#This Row],[Serial Number(s)]]=\"\",\"\",Table_PI[[#This Row],[Serial Number(s)]])","v":""},null,{"$f":"IF(Table_PI[[#This Row],[Size]]=\"\",\"\",Table_PI[[#This Row],[Size]])","v":""},null,{"$f":"IFERROR(IF(AND(MeasureCalc(Table_PI[[#This Row],[Hide:\nFormula Name]],Table_SummaryPI[[#This Row],[Quantity]],Table_PI[[#This Row],[List 1]],Table_PI[[#This Row],[List 2]],Table_PI[[#This Row],[List 3]],Table_PI[[#This Row],[Size]],Table_PI[[#This Row],[Input 1]],Table_PI[[#This Row],[Input 2]],Table_PI[[#This Row],[Input 3]],Table_PI[[#This Row],[Input 4]],'Customer Information'!$AR$12,100,ROW())<>0,MeasureCalc(Table_PI[[#This Row],[Hide:\nFormula Name]],Table_SummaryPI[[#This Row],[Quantity]],Table_PI[[#This Row],[List 1]],Table_PI[[#This Row],[List 2]],Table_PI[[#This Row],[List 3]],Table_PI[[#This Row],[Size]],Table_PI[[#This Row],[Input 1]],Table_PI[[#This Row],[Input 2]],Table_PI[[#This Row],[Input 3]],Table_PI[[#This Row],[Input 4]],'Customer Information'!$AR$12,100,ROW())<>\"No Rebate\"),MeasureCalc(Table_PI[[#This Row],[Hide:\nFormula Name]],Table_SummaryPI[[#This Row],[Quantity]],Table_PI[[#This Row],[List 1]],Table_PI[[#This Row],[List 2]],Table_PI[[#This Row],[List 3]],Table_PI[[#This Row],[Size]],Table_PI[[#This Row],[Input 1]],Table_PI[[#This Row],[Input 2]],Table_PI[[#This Row],[Input 3]],Table_PI[[#This Row],[Input 4]],'Customer Information'!$AR$12,100,ROW()),\"\"),\"\")","v":""},{"$f":"IF(Table_PI[[#This Row],[Input 1]]<>\"\",Table_PI[[#This Row],[Input 1]],\"\")","v":""},null,{"$f":"IFERROR(IF(AND(MeasureCalc(Table_PI[[#This Row],[Hide:\nFormula Name]],Table_SummaryPI[[#This Row],[Quantity]],Table_PI[[#This Row],[List 1]],Table_PI[[#This Row],[List 2]],Table_PI[[#This Row],[List 3]],Table_PI[[#This Row],[Size]],Table_PI[[#This Row],[Input 1]],Table_PI[[#This Row],[Input 2]],Table_PI[[#This Row],[Input 3]],Table_PI[[#This Row],[Input 4]],'Customer Information'!$AR$12,101,ROW())<>0,MeasureCalc(Table_PI[[#This Row],[Hide:\nFormula Name]],Table_SummaryPI[[#This Row],[Quantity]],Table_PI[[#This Row],[List 1]],Table_PI[[#This Row],[List 2]],Table_PI[[#This Row],[List 3]],Table_PI[[#This Row],[Size]],Table_PI[[#This Row],[Input 1]],Table_PI[[#This Row],[Input 2]],Table_PI[[#This Row],[Input 3]],Table_PI[[#This Row],[Input 4]],'Customer Information'!$AR$12,101,ROW())<>\"No Rebate\"),MeasureCalc(Table_PI[[#This Row],[Hide:\nFormula Name]],Table_SummaryPI[[#This Row],[Quantity]],Table_PI[[#This Row],[List 1]],Table_PI[[#This Row],[List 2]],Table_PI[[#This Row],[List 3]],Table_PI[[#This Row],[Size]],Table_PI[[#This Row],[Input 1]],Table_PI[[#This Row],[Input 2]],Table_PI[[#This Row],[Input 3]],Table_PI[[#This Row],[Input 4]],'Customer Information'!$AR$12,101,ROW()),\"\"),\"\")","v":""},{"$f":"IF(Table_PI[[#This Row],[Input 2]]<>\"\",Table_PI[[#This Row],[Input 2]],\"\")","v":""},null,{"$f":"IFERROR(IF(AND(MeasureCalc(Table_PI[[#This Row],[Hide:\nFormula Name]],Table_SummaryPI[[#This Row],[Quantity]],Table_PI[[#This Row],[List 1]],Table_PI[[#This Row],[List 2]],Table_PI[[#This Row],[List 3]],Table_PI[[#This Row],[Size]],Table_PI[[#This Row],[Input 1]],Table_PI[[#This Row],[Input 2]],Table_PI[[#This Row],[Input 3]],Table_PI[[#This Row],[Input 4]],'Customer Information'!$AR$12,102,ROW())<>0,MeasureCalc(Table_PI[[#This Row],[Hide:\nFormula Name]],Table_SummaryPI[[#This Row],[Quantity]],Table_PI[[#This Row],[List 1]],Table_PI[[#This Row],[List 2]],Table_PI[[#This Row],[List 3]],Table_PI[[#This Row],[Size]],Table_PI[[#This Row],[Input 1]],Table_PI[[#This Row],[Input 2]],Table_PI[[#This Row],[Input 3]],Table_PI[[#This Row],[Input 4]],'Customer Information'!$AR$12,102,ROW())<>\"No Rebate\"),MeasureCalc(Table_PI[[#This Row],[Hide:\nFormula Name]],Table_SummaryPI[[#This Row],[Quantity]],Table_PI[[#This Row],[List 1]],Table_PI[[#This Row],[List 2]],Table_PI[[#This Row],[List 3]],Table_PI[[#This Row],[Size]],Table_PI[[#This Row],[Input 1]],Table_PI[[#This Row],[Input 2]],Table_PI[[#This Row],[Input 3]],Table_PI[[#This Row],[Input 4]],'Customer Information'!$AR$12,102,ROW()),\"\"),\"\")","v":""},{"$f":"IF(Table_PI[[#This Row],[Input 3]]<>\"\",Table_PI[[#This Row],[Input 3]],\"\")","v":""},null,{"$f":"IFERROR(IF(AND(MeasureCalc(Table_PI[[#This Row],[Hide:\nFormula Name]],Table_SummaryPI[[#This Row],[Quantity]],Table_PI[[#This Row],[List 1]],Table_PI[[#This Row],[List 2]],Table_PI[[#This Row],[List 3]],Table_PI[[#This Row],[Size]],Table_PI[[#This Row],[Input 1]],Table_PI[[#This Row],[Input 2]],Table_PI[[#This Row],[Input 3]],Table_PI[[#This Row],[Input 4]],'Customer Information'!$AR$12,103,ROW())<>0,MeasureCalc(Table_PI[[#This Row],[Hide:\nFormula Name]],Table_SummaryPI[[#This Row],[Quantity]],Table_PI[[#This Row],[List 1]],Table_PI[[#This Row],[List 2]],Table_PI[[#This Row],[List 3]],Table_PI[[#This Row],[Size]],Table_PI[[#This Row],[Input 1]],Table_PI[[#This Row],[Input 2]],Table_PI[[#This Row],[Input 3]],Table_PI[[#This Row],[Input 4]],'Customer Information'!$AR$12,103,ROW())<>\"No Rebate\"),MeasureCalc(Table_PI[[#This Row],[Hide:\nFormula Name]],Table_SummaryPI[[#This Row],[Quantity]],Table_PI[[#This Row],[List 1]],Table_PI[[#This Row],[List 2]],Table_PI[[#This Row],[List 3]],Table_PI[[#This Row],[Size]],Table_PI[[#This Row],[Input 1]],Table_PI[[#This Row],[Input 2]],Table_PI[[#This Row],[Input 3]],Table_PI[[#This Row],[Input 4]],'Customer Information'!$AR$12,103,ROW()),\"\"),\"\")","v":""},{"$f":"IF(Table_PI[[#This Row],[Input 4]]<>\"\",Table_PI[[#This Row],[Input 4]],\"\")","v":""},{"$f":"IF(Table_PI[[#This Row],[Quantity]]=\"\",\"\",Table_PI[[#This Row],[Quantity]])","v":""},{"$f":"IF(Table_PI[[#This Row],[Notes]]=\"\",\"\",Table_PI[[#This Row],[Notes]])","v":""},{"$f":"IF(OR(Table_PI[[#This Row],[Hide:\nBaseline kWh]]=\"\",Table_PI[[#This Row],[Hide:\nBaseline kWh]]=0),\"\",Table_PI[[#This Row],[Hide:\nBaseline kWh]])","v":""},{"$f":"IF(OR(Table_PI[[#This Row],[Hide:\nBaseline kW]]=\"\",Table_PI[[#This Row],[Hide:\nBaseline kW]]=0),\"\",Table_PI[[#This Row],[Hide:\nBaseline kW]])","v":""},{"$f":"IF(OR(Table_PI[[#This Row],[Hide:\nProposed kWh]]=\"\",Table_PI[[#This Row],[Hide:\nProposed kWh]]=0),\"\",Table_PI[[#This Row],[Hide:\nProposed kWh]])","v":""},{"$f":"IF(OR(Table_PI[[#This Row],[Hide:\nProposed kW]]=\"\",Table_PI[[#This Row],[Hide:\nProposed kW]]=0),\"\",Table_PI[[#This Row],[Hide:\nProposed kW]])","v":""},{"$f":"IF(OR(Table_PI[[#This Row],[Rebate]]=\"\",Table_PI[[#This Row],[Rebate]]=0),\"\",Table_PI[[#This Row],[Rebate]])","v":""},{"$f":"IF(OR(Table_PI[[#This Row],[Hide:\nIncremental Cost]]=\"\",Table_PI[[#This Row],[Hide:\nIncremental Cost]]=0),\"\",Table_PI[[#This Row],[Hide:\nIncremental Cost]])","v":""},{"$f":"IFERROR(IF(Table_SummaryPI[[#This Row],[kWhSavings]]=\"\",\"\",ROUND(Table_SummaryPI[[#This Row],[kWhSavings]]/$AG$401*'Customer Information'!$BC$17,2)),0)","v":""},{"$f":"IF(OR(Table_PI[[#This Row],[Annual kWh]]=\"\",Table_PI[[#This Row],[Annual kWh]]=0),\"\",Table_PI[[#This Row],[Annual kWh]])","v":""},{"$f":"IF(OR(Table_PI[[#This Row],[Peak kW]]=\"\",Table_PI[[#This Row],[Peak kW]]=0),\"\",Table_PI[[#This Row],[Peak kW]])","v":""},{"$f":"IFERROR(IF(Table_SummaryPI[[#This Row],[kWhSavings]]=\"\",\"\",$AU$9*Table_SummaryPI[[#This Row],[kWhSavings]]),0)","v":""},{"$f":"IFERROR(IF(Table_SummaryPI[[#This Row],[kWhSavings]]=\"\",\"\",$AU$14*Table_SummaryPI[[#This Row],[kWhSavings]]),0)","v":""},{"$f":"IFERROR(IF(Table_SummaryPI[[#This Row],[kWhSavings]]=\"\",\"\",$AU$18*Table_SummaryPI[[#This Row],[kWhSavings]]),0)","v":""},{"$f":"IFERROR(IF(Table_SummaryPI[[#This Row],[kWhSavings]]=\"\",\"\",$AU$22*Table_SummaryPI[[#This Row],[kWhSavings]]),0)","v":""},{"$f":"IFERROR(IF(MeasureCalc(Table_PI[[#This Row],[Hide:\nFormula Name]],Table_SummaryPI[[#This Row],[Quantity]],Table_PI[[#This Row],[List 1]],Table_PI[[#This Row],[List 2]],Table_PI[[#This Row],[List 3]],Table_PI[[#This Row],[Size]],Table_PI[[#This Row],[Input 1]],Table_PI[[#This Row],[Input 2]],Table_PI[[#This Row],[Input 3]],Table_PI[[#This Row],[Input 4]],'Customer Information'!$AR$12,200,ROW())<>\"No Rebate\",MeasureCalc(Table_PI[[#This Row],[Hide:\nFormula Name]],Table_SummaryPI[[#This Row],[Quantity]],Table_PI[[#This Row],[List 1]],Table_PI[[#This Row],[List 2]],Table_PI[[#This Row],[List 3]],Table_PI[[#This Row],[Size]],Table_PI[[#This Row],[Input 1]],Table_PI[[#This Row],[Input 2]],Table_PI[[#This Row],[Input 3]],Table_PI[[#This Row],[Input 4]],'Customer Information'!$AR$12,200,ROW()),\"\"),\"\")","v":""},{"$f":"IFERROR(IF(MeasureCalc(Table_PI[[#This Row],[Hide:\nFormula Name]],Table_SummaryPI[[#This Row],[Quantity]],Table_PI[[#This Row],[List 1]],Table_PI[[#This Row],[List 2]],Table_PI[[#This Row],[List 3]],Table_PI[[#This Row],[Size]],Table_PI[[#This Row],[Input 1]],Table_PI[[#This Row],[Input 2]],Table_PI[[#This Row],[Input 3]],Table_PI[[#This Row],[Input 4]],'Customer Information'!$AR$12,201,ROW())<>\"No Rebate\",MeasureCalc(Table_PI[[#This Row],[Hide:\nFormula Name]],Table_SummaryPI[[#This Row],[Quantity]],Table_PI[[#This Row],[List 1]],Table_PI[[#This Row],[List 2]],Table_PI[[#This Row],[List 3]],Table_PI[[#This Row],[Size]],Table_PI[[#This Row],[Input 1]],Table_PI[[#This Row],[Input 2]],Table_PI[[#This Row],[Input 3]],Table_PI[[#This Row],[Input 4]],'Customer Information'!$AR$12,201,ROW()),\"\"),\"\")","v":""}]
[{"$f":"Table_PI[[#This Row],[Line No.]]","v":""},{"$f":"IF(Table_SummaryPI[[#This Row],[MeassureCategory]]<>\"\",CONCATENATE(Table_SummaryPI[[#This Row],[MeassureCategory]],  \" - \", Table_SummaryPI[[#This Row],[ProposedMeasureCategory]],  \" - \", TEXT(Table_SummaryPI[[#This Row],[Size]],\"#,##0.00\"),\" \",Table_SummaryPI[[#This Row],[SizeUnit]]),\"\")","v":""},{"$f":"SUBSTITUTE(Table_PI[[#This Row],[Measure]],\"     \",\"\",1)","v":""},{"$f":"IF(Table_PI[[#This Row],[List 1]]<>\"\",Table_PI[[#This Row],[List 1]],\"\")","v":""},{"$f":"IF(Table_PI[[#This Row],[List 2]]<>\"\",Table_PI[[#This Row],[List 2]],\"\")","v":""},{"$f":"IF(Table_PI[[#This Row],[List 3]]<>\"\",Table_PI[[#This Row],[List 3]],\"\")","v":""},{"$f":"IF(Table_PI[[#This Row],[Manufacturer]]=\"\",\"\",Table_PI[[#This Row],[Manufacturer]])","v":""},{"$f":"IF(Table_PI[[#This Row],[Model Number]]=\"\",\"\",Table_PI[[#This Row],[Model Number]])","v":""},{"$f":"IF(Table_PI[[#This Row],[Serial Number(s)]]=\"\",\"\",Table_PI[[#This Row],[Serial Number(s)]])","v":""},null,{"$f":"IF(Table_PI[[#This Row],[Size]]=\"\",\"\",Table_PI[[#This Row],[Size]])","v":""},null,{"$f":"IFERROR(IF(AND(MeasureCalc(Table_PI[[#This Row],[Hide:\nFormula Name]],Table_SummaryPI[[#This Row],[Quantity]],Table_PI[[#This Row],[List 1]],Table_PI[[#This Row],[List 2]],Table_PI[[#This Row],[List 3]],Table_PI[[#This Row],[Size]],Table_PI[[#This Row],[Input 1]],Table_PI[[#This Row],[Input 2]],Table_PI[[#This Row],[Input 3]],Table_PI[[#This Row],[Input 4]],'Customer Information'!$AR$12,100,ROW())<>0,MeasureCalc(Table_PI[[#This Row],[Hide:\nFormula Name]],Table_SummaryPI[[#This Row],[Quantity]],Table_PI[[#This Row],[List 1]],Table_PI[[#This Row],[List 2]],Table_PI[[#This Row],[List 3]],Table_PI[[#This Row],[Size]],Table_PI[[#This Row],[Input 1]],Table_PI[[#This Row],[Input 2]],Table_PI[[#This Row],[Input 3]],Table_PI[[#This Row],[Input 4]],'Customer Information'!$AR$12,100,ROW())<>\"No Rebate\"),MeasureCalc(Table_PI[[#This Row],[Hide:\nFormula Name]],Table_SummaryPI[[#This Row],[Quantity]],Table_PI[[#This Row],[List 1]],Table_PI[[#This Row],[List 2]],Table_PI[[#This Row],[List 3]],Table_PI[[#This Row],[Size]],Table_PI[[#This Row],[Input 1]],Table_PI[[#This Row],[Input 2]],Table_PI[[#This Row],[Input 3]],Table_PI[[#This Row],[Input 4]],'Customer Information'!$AR$12,100,ROW()),\"\"),\"\")","v":""},{"$f":"IF(Table_PI[[#This Row],[Input 1]]<>\"\",Table_PI[[#This Row],[Input 1]],\"\")","v":""},null,{"$f":"IFERROR(IF(AND(MeasureCalc(Table_PI[[#This Row],[Hide:\nFormula Name]],Table_SummaryPI[[#This Row],[Quantity]],Table_PI[[#This Row],[List 1]],Table_PI[[#This Row],[List 2]],Table_PI[[#This Row],[List 3]],Table_PI[[#This Row],[Size]],Table_PI[[#This Row],[Input 1]],Table_PI[[#This Row],[Input 2]],Table_PI[[#This Row],[Input 3]],Table_PI[[#This Row],[Input 4]],'Customer Information'!$AR$12,101,ROW())<>0,MeasureCalc(Table_PI[[#This Row],[Hide:\nFormula Name]],Table_SummaryPI[[#This Row],[Quantity]],Table_PI[[#This Row],[List 1]],Table_PI[[#This Row],[List 2]],Table_PI[[#This Row],[List 3]],Table_PI[[#This Row],[Size]],Table_PI[[#This Row],[Input 1]],Table_PI[[#This Row],[Input 2]],Table_PI[[#This Row],[Input 3]],Table_PI[[#This Row],[Input 4]],'Customer Information'!$AR$12,101,ROW())<>\"No Rebate\"),MeasureCalc(Table_PI[[#This Row],[Hide:\nFormula Name]],Table_SummaryPI[[#This Row],[Quantity]],Table_PI[[#This Row],[List 1]],Table_PI[[#This Row],[List 2]],Table_PI[[#This Row],[List 3]],Table_PI[[#This Row],[Size]],Table_PI[[#This Row],[Input 1]],Table_PI[[#This Row],[Input 2]],Table_PI[[#This Row],[Input 3]],Table_PI[[#This Row],[Input 4]],'Customer Information'!$AR$12,101,ROW()),\"\"),\"\")","v":""},{"$f":"IF(Table_PI[[#This Row],[Input 2]]<>\"\",Table_PI[[#This Row],[Input 2]],\"\")","v":""},null,{"$f":"IFERROR(IF(AND(MeasureCalc(Table_PI[[#This Row],[Hide:\nFormula Name]],Table_SummaryPI[[#This Row],[Quantity]],Table_PI[[#This Row],[List 1]],Table_PI[[#This Row],[List 2]],Table_PI[[#This Row],[List 3]],Table_PI[[#This Row],[Size]],Table_PI[[#This Row],[Input 1]],Table_PI[[#This Row],[Input 2]],Table_PI[[#This Row],[Input 3]],Table_PI[[#This Row],[Input 4]],'Customer Information'!$AR$12,102,ROW())<>0,MeasureCalc(Table_PI[[#This Row],[Hide:\nFormula Name]],Table_SummaryPI[[#This Row],[Quantity]],Table_PI[[#This Row],[List 1]],Table_PI[[#This Row],[List 2]],Table_PI[[#This Row],[List 3]],Table_PI[[#This Row],[Size]],Table_PI[[#This Row],[Input 1]],Table_PI[[#This Row],[Input 2]],Table_PI[[#This Row],[Input 3]],Table_PI[[#This Row],[Input 4]],'Customer Information'!$AR$12,102,ROW())<>\"No Rebate\"),MeasureCalc(Table_PI[[#This Row],[Hide:\nFormula Name]],Table_SummaryPI[[#This Row],[Quantity]],Table_PI[[#This Row],[List 1]],Table_PI[[#This Row],[List 2]],Table_PI[[#This Row],[List 3]],Table_PI[[#This Row],[Size]],Table_PI[[#This Row],[Input 1]],Table_PI[[#This Row],[Input 2]],Table_PI[[#This Row],[Input 3]],Table_PI[[#This Row],[Input 4]],'Customer Information'!$AR$12,102,ROW()),\"\"),\"\")","v":""},{"$f":"IF(Table_PI[[#This Row],[Input 3]]<>\"\",Table_PI[[#This Row],[Input 3]],\"\")","v":""},null,{"$f":"IFERROR(IF(AND(MeasureCalc(Table_PI[[#This Row],[Hide:\nFormula Name]],Table_SummaryPI[[#This Row],[Quantity]],Table_PI[[#This Row],[List 1]],Table_PI[[#This Row],[List 2]],Table_PI[[#This Row],[List 3]],Table_PI[[#This Row],[Size]],Table_PI[[#This Row],[Input 1]],Table_PI[[#This Row],[Input 2]],Table_PI[[#This Row],[Input 3]],Table_PI[[#This Row],[Input 4]],'Customer Information'!$AR$12,103,ROW())<>0,MeasureCalc(Table_PI[[#This Row],[Hide:\nFormula Name]],Table_SummaryPI[[#This Row],[Quantity]],Table_PI[[#This Row],[List 1]],Table_PI[[#This Row],[List 2]],Table_PI[[#This Row],[List 3]],Table_PI[[#This Row],[Size]],Table_PI[[#This Row],[Input 1]],Table_PI[[#This Row],[Input 2]],Table_PI[[#This Row],[Input 3]],Table_PI[[#This Row],[Input 4]],'Customer Information'!$AR$12,103,ROW())<>\"No Rebate\"),MeasureCalc(Table_PI[[#This Row],[Hide:\nFormula Name]],Table_SummaryPI[[#This Row],[Quantity]],Table_PI[[#This Row],[List 1]],Table_PI[[#This Row],[List 2]],Table_PI[[#This Row],[List 3]],Table_PI[[#This Row],[Size]],Table_PI[[#This Row],[Input 1]],Table_PI[[#This Row],[Input 2]],Table_PI[[#This Row],[Input 3]],Table_PI[[#This Row],[Input 4]],'Customer Information'!$AR$12,103,ROW()),\"\"),\"\")","v":""},{"$f":"IF(Table_PI[[#This Row],[Input 4]]<>\"\",Table_PI[[#This Row],[Input 4]],\"\")","v":""},{"$f":"IF(Table_PI[[#This Row],[Quantity]]=\"\",\"\",Table_PI[[#This Row],[Quantity]])","v":""},{"$f":"IF(Table_PI[[#This Row],[Notes]]=\"\",\"\",Table_PI[[#This Row],[Notes]])","v":""},{"$f":"IF(OR(Table_PI[[#This Row],[Hide:\nBaseline kWh]]=\"\",Table_PI[[#This Row],[Hide:\nBaseline kWh]]=0),\"\",Table_PI[[#This Row],[Hide:\nBaseline kWh]])","v":""},{"$f":"IF(OR(Table_PI[[#This Row],[Hide:\nBaseline kW]]=\"\",Table_PI[[#This Row],[Hide:\nBaseline kW]]=0),\"\",Table_PI[[#This Row],[Hide:\nBaseline kW]])","v":""},{"$f":"IF(OR(Table_PI[[#This Row],[Hide:\nProposed kWh]]=\"\",Table_PI[[#This Row],[Hide:\nProposed kWh]]=0),\"\",Table_PI[[#This Row],[Hide:\nProposed kWh]])","v":""},{"$f":"IF(OR(Table_PI[[#This Row],[Hide:\nProposed kW]]=\"\",Table_PI[[#This Row],[Hide:\nProposed kW]]=0),\"\",Table_PI[[#This Row],[Hide:\nProposed kW]])","v":""},{"$f":"IF(OR(Table_PI[[#This Row],[Rebate]]=\"\",Table_PI[[#This Row],[Rebate]]=0),\"\",Table_PI[[#This Row],[Rebate]])","v":""},{"$f":"IF(OR(Table_PI[[#This Row],[Hide:\nIncremental Cost]]=\"\",Table_PI[[#This Row],[Hide:\nIncremental Cost]]=0),\"\",Table_PI[[#This Row],[Hide:\nIncremental Cost]])","v":""},{"$f":"IFERROR(IF(Table_SummaryPI[[#This Row],[kWhSavings]]=\"\",\"\",ROUND(Table_SummaryPI[[#This Row],[kWhSavings]]/$AG$401*'Customer Information'!$BC$17,2)),0)","v":""},{"$f":"IF(OR(Table_PI[[#This Row],[Annual kWh]]=\"\",Table_PI[[#This Row],[Annual kWh]]=0),\"\",Table_PI[[#This Row],[Annual kWh]])","v":""},{"$f":"IF(OR(Table_PI[[#This Row],[Peak kW]]=\"\",Table_PI[[#This Row],[Peak kW]]=0),\"\",Table_PI[[#This Row],[Peak kW]])","v":""},{"$f":"IFERROR(IF(Table_SummaryPI[[#This Row],[kWhSavings]]=\"\",\"\",$AU$9*Table_SummaryPI[[#This Row],[kWhSavings]]),0)","v":""},{"$f":"IFERROR(IF(Table_SummaryPI[[#This Row],[kWhSavings]]=\"\",\"\",$AU$14*Table_SummaryPI[[#This Row],[kWhSavings]]),0)","v":""},{"$f":"IFERROR(IF(Table_SummaryPI[[#This Row],[kWhSavings]]=\"\",\"\",$AU$18*Table_SummaryPI[[#This Row],[kWhSavings]]),0)","v":""},{"$f":"IFERROR(IF(Table_SummaryPI[[#This Row],[kWhSavings]]=\"\",\"\",$AU$22*Table_SummaryPI[[#This Row],[kWhSavings]]),0)","v":""},{"$f":"IFERROR(IF(MeasureCalc(Table_PI[[#This Row],[Hide:\nFormula Name]],Table_SummaryPI[[#This Row],[Quantity]],Table_PI[[#This Row],[List 1]],Table_PI[[#This Row],[List 2]],Table_PI[[#This Row],[List 3]],Table_PI[[#This Row],[Size]],Table_PI[[#This Row],[Input 1]],Table_PI[[#This Row],[Input 2]],Table_PI[[#This Row],[Input 3]],Table_PI[[#This Row],[Input 4]],'Customer Information'!$AR$12,200,ROW())<>\"No Rebate\",MeasureCalc(Table_PI[[#This Row],[Hide:\nFormula Name]],Table_SummaryPI[[#This Row],[Quantity]],Table_PI[[#This Row],[List 1]],Table_PI[[#This Row],[List 2]],Table_PI[[#This Row],[List 3]],Table_PI[[#This Row],[Size]],Table_PI[[#This Row],[Input 1]],Table_PI[[#This Row],[Input 2]],Table_PI[[#This Row],[Input 3]],Table_PI[[#This Row],[Input 4]],'Customer Information'!$AR$12,200,ROW()),\"\"),\"\")","v":""},{"$f":"IFERROR(IF(MeasureCalc(Table_PI[[#This Row],[Hide:\nFormula Name]],Table_SummaryPI[[#This Row],[Quantity]],Table_PI[[#This Row],[List 1]],Table_PI[[#This Row],[List 2]],Table_PI[[#This Row],[List 3]],Table_PI[[#This Row],[Size]],Table_PI[[#This Row],[Input 1]],Table_PI[[#This Row],[Input 2]],Table_PI[[#This Row],[Input 3]],Table_PI[[#This Row],[Input 4]],'Customer Information'!$AR$12,201,ROW())<>\"No Rebate\",MeasureCalc(Table_PI[[#This Row],[Hide:\nFormula Name]],Table_SummaryPI[[#This Row],[Quantity]],Table_PI[[#This Row],[List 1]],Table_PI[[#This Row],[List 2]],Table_PI[[#This Row],[List 3]],Table_PI[[#This Row],[Size]],Table_PI[[#This Row],[Input 1]],Table_PI[[#This Row],[Input 2]],Table_PI[[#This Row],[Input 3]],Table_PI[[#This Row],[Input 4]],'Customer Information'!$AR$12,201,ROW()),\"\"),\"\")","v":""}]
[{"$f":"Table_PI[[#This Row],[Line No.]]","v":""},{"$f":"IF(Table_SummaryPI[[#This Row],[MeassureCategory]]<>\"\",CONCATENATE(Table_SummaryPI[[#This Row],[MeassureCategory]],  \" - \", Table_SummaryPI[[#This Row],[ProposedMeasureCategory]],  \" - \", TEXT(Table_SummaryPI[[#This Row],[Size]],\"#,##0.00\"),\" \",Table_SummaryPI[[#This Row],[SizeUnit]]),\"\")","v":""},{"$f":"SUBSTITUTE(Table_PI[[#This Row],[Measure]],\"     \",\"\",1)","v":""},{"$f":"IF(Table_PI[[#This Row],[List 1]]<>\"\",Table_PI[[#This Row],[List 1]],\"\")","v":""},{"$f":"IF(Table_PI[[#This Row],[List 2]]<>\"\",Table_PI[[#This Row],[List 2]],\"\")","v":""},{"$f":"IF(Table_PI[[#This Row],[List 3]]<>\"\",Table_PI[[#This Row],[List 3]],\"\")","v":""},{"$f":"IF(Table_PI[[#This Row],[Manufacturer]]=\"\",\"\",Table_PI[[#This Row],[Manufacturer]])","v":""},{"$f":"IF(Table_PI[[#This Row],[Model Number]]=\"\",\"\",Table_PI[[#This Row],[Model Number]])","v":""},{"$f":"IF(Table_PI[[#This Row],[Serial Number(s)]]=\"\",\"\",Table_PI[[#This Row],[Serial Number(s)]])","v":""},null,{"$f":"IF(Table_PI[[#This Row],[Size]]=\"\",\"\",Table_PI[[#This Row],[Size]])","v":""},null,{"$f":"IFERROR(IF(AND(MeasureCalc(Table_PI[[#This Row],[Hide:\nFormula Name]],Table_SummaryPI[[#This Row],[Quantity]],Table_PI[[#This Row],[List 1]],Table_PI[[#This Row],[List 2]],Table_PI[[#This Row],[List 3]],Table_PI[[#This Row],[Size]],Table_PI[[#This Row],[Input 1]],Table_PI[[#This Row],[Input 2]],Table_PI[[#This Row],[Input 3]],Table_PI[[#This Row],[Input 4]],'Customer Information'!$AR$12,100,ROW())<>0,MeasureCalc(Table_PI[[#This Row],[Hide:\nFormula Name]],Table_SummaryPI[[#This Row],[Quantity]],Table_PI[[#This Row],[List 1]],Table_PI[[#This Row],[List 2]],Table_PI[[#This Row],[List 3]],Table_PI[[#This Row],[Size]],Table_PI[[#This Row],[Input 1]],Table_PI[[#This Row],[Input 2]],Table_PI[[#This Row],[Input 3]],Table_PI[[#This Row],[Input 4]],'Customer Information'!$AR$12,100,ROW())<>\"No Rebate\"),MeasureCalc(Table_PI[[#This Row],[Hide:\nFormula Name]],Table_SummaryPI[[#This Row],[Quantity]],Table_PI[[#This Row],[List 1]],Table_PI[[#This Row],[List 2]],Table_PI[[#This Row],[List 3]],Table_PI[[#This Row],[Size]],Table_PI[[#This Row],[Input 1]],Table_PI[[#This Row],[Input 2]],Table_PI[[#This Row],[Input 3]],Table_PI[[#This Row],[Input 4]],'Customer Information'!$AR$12,100,ROW()),\"\"),\"\")","v":""},{"$f":"IF(Table_PI[[#This Row],[Input 1]]<>\"\",Table_PI[[#This Row],[Input 1]],\"\")","v":""},null,{"$f":"IFERROR(IF(AND(MeasureCalc(Table_PI[[#This Row],[Hide:\nFormula Name]],Table_SummaryPI[[#This Row],[Quantity]],Table_PI[[#This Row],[List 1]],Table_PI[[#This Row],[List 2]],Table_PI[[#This Row],[List 3]],Table_PI[[#This Row],[Size]],Table_PI[[#This Row],[Input 1]],Table_PI[[#This Row],[Input 2]],Table_PI[[#This Row],[Input 3]],Table_PI[[#This Row],[Input 4]],'Customer Information'!$AR$12,101,ROW())<>0,MeasureCalc(Table_PI[[#This Row],[Hide:\nFormula Name]],Table_SummaryPI[[#This Row],[Quantity]],Table_PI[[#This Row],[List 1]],Table_PI[[#This Row],[List 2]],Table_PI[[#This Row],[List 3]],Table_PI[[#This Row],[Size]],Table_PI[[#This Row],[Input 1]],Table_PI[[#This Row],[Input 2]],Table_PI[[#This Row],[Input 3]],Table_PI[[#This Row],[Input 4]],'Customer Information'!$AR$12,101,ROW())<>\"No Rebate\"),MeasureCalc(Table_PI[[#This Row],[Hide:\nFormula Name]],Table_SummaryPI[[#This Row],[Quantity]],Table_PI[[#This Row],[List 1]],Table_PI[[#This Row],[List 2]],Table_PI[[#This Row],[List 3]],Table_PI[[#This Row],[Size]],Table_PI[[#This Row],[Input 1]],Table_PI[[#This Row],[Input 2]],Table_PI[[#This Row],[Input 3]],Table_PI[[#This Row],[Input 4]],'Customer Information'!$AR$12,101,ROW()),\"\"),\"\")","v":""},{"$f":"IF(Table_PI[[#This Row],[Input 2]]<>\"\",Table_PI[[#This Row],[Input 2]],\"\")","v":""},null,{"$f":"IFERROR(IF(AND(MeasureCalc(Table_PI[[#This Row],[Hide:\nFormula Name]],Table_SummaryPI[[#This Row],[Quantity]],Table_PI[[#This Row],[List 1]],Table_PI[[#This Row],[List 2]],Table_PI[[#This Row],[List 3]],Table_PI[[#This Row],[Size]],Table_PI[[#This Row],[Input 1]],Table_PI[[#This Row],[Input 2]],Table_PI[[#This Row],[Input 3]],Table_PI[[#This Row],[Input 4]],'Customer Information'!$AR$12,102,ROW())<>0,MeasureCalc(Table_PI[[#This Row],[Hide:\nFormula Name]],Table_SummaryPI[[#This Row],[Quantity]],Table_PI[[#This Row],[List 1]],Table_PI[[#This Row],[List 2]],Table_PI[[#This Row],[List 3]],Table_PI[[#This Row],[Size]],Table_PI[[#This Row],[Input 1]],Table_PI[[#This Row],[Input 2]],Table_PI[[#This Row],[Input 3]],Table_PI[[#This Row],[Input 4]],'Customer Information'!$AR$12,102,ROW())<>\"No Rebate\"),MeasureCalc(Table_PI[[#This Row],[Hide:\nFormula Name]],Table_SummaryPI[[#This Row],[Quantity]],Table_PI[[#This Row],[List 1]],Table_PI[[#This Row],[List 2]],Table_PI[[#This Row],[List 3]],Table_PI[[#This Row],[Size]],Table_PI[[#This Row],[Input 1]],Table_PI[[#This Row],[Input 2]],Table_PI[[#This Row],[Input 3]],Table_PI[[#This Row],[Input 4]],'Customer Information'!$AR$12,102,ROW()),\"\"),\"\")","v":""},{"$f":"IF(Table_PI[[#This Row],[Input 3]]<>\"\",Table_PI[[#This Row],[Input 3]],\"\")","v":""},null,{"$f":"IFERROR(IF(AND(MeasureCalc(Table_PI[[#This Row],[Hide:\nFormula Name]],Table_SummaryPI[[#This Row],[Quantity]],Table_PI[[#This Row],[List 1]],Table_PI[[#This Row],[List 2]],Table_PI[[#This Row],[List 3]],Table_PI[[#This Row],[Size]],Table_PI[[#This Row],[Input 1]],Table_PI[[#This Row],[Input 2]],Table_PI[[#This Row],[Input 3]],Table_PI[[#This Row],[Input 4]],'Customer Information'!$AR$12,103,ROW())<>0,MeasureCalc(Table_PI[[#This Row],[Hide:\nFormula Name]],Table_SummaryPI[[#This Row],[Quantity]],Table_PI[[#This Row],[List 1]],Table_PI[[#This Row],[List 2]],Table_PI[[#This Row],[List 3]],Table_PI[[#This Row],[Size]],Table_PI[[#This Row],[Input 1]],Table_PI[[#This Row],[Input 2]],Table_PI[[#This Row],[Input 3]],Table_PI[[#This Row],[Input 4]],'Customer Information'!$AR$12,103,ROW())<>\"No Rebate\"),MeasureCalc(Table_PI[[#This Row],[Hide:\nFormula Name]],Table_SummaryPI[[#This Row],[Quantity]],Table_PI[[#This Row],[List 1]],Table_PI[[#This Row],[List 2]],Table_PI[[#This Row],[List 3]],Table_PI[[#This Row],[Size]],Table_PI[[#This Row],[Input 1]],Table_PI[[#This Row],[Input 2]],Table_PI[[#This Row],[Input 3]],Table_PI[[#This Row],[Input 4]],'Customer Information'!$AR$12,103,ROW()),\"\"),\"\")","v":""},{"$f":"IF(Table_PI[[#This Row],[Input 4]]<>\"\",Table_PI[[#This Row],[Input 4]],\"\")","v":""},{"$f":"IF(Table_PI[[#This Row],[Quantity]]=\"\",\"\",Table_PI[[#This Row],[Quantity]])","v":""},{"$f":"IF(Table_PI[[#This Row],[Notes]]=\"\",\"\",Table_PI[[#This Row],[Notes]])","v":""},{"$f":"IF(OR(Table_PI[[#This Row],[Hide:\nBaseline kWh]]=\"\",Table_PI[[#This Row],[Hide:\nBaseline kWh]]=0),\"\",Table_PI[[#This Row],[Hide:\nBaseline kWh]])","v":""},{"$f":"IF(OR(Table_PI[[#This Row],[Hide:\nBaseline kW]]=\"\",Table_PI[[#This Row],[Hide:\nBaseline kW]]=0),\"\",Table_PI[[#This Row],[Hide:\nBaseline kW]])","v":""},{"$f":"IF(OR(Table_PI[[#This Row],[Hide:\nProposed kWh]]=\"\",Table_PI[[#This Row],[Hide:\nProposed kWh]]=0),\"\",Table_PI[[#This Row],[Hide:\nProposed kWh]])","v":""},{"$f":"IF(OR(Table_PI[[#This Row],[Hide:\nProposed kW]]=\"\",Table_PI[[#This Row],[Hide:\nProposed kW]]=0),\"\",Table_PI[[#This Row],[Hide:\nProposed kW]])","v":""},{"$f":"IF(OR(Table_PI[[#This Row],[Rebate]]=\"\",Table_PI[[#This Row],[Rebate]]=0),\"\",Table_PI[[#This Row],[Rebate]])","v":""},{"$f":"IF(OR(Table_PI[[#This Row],[Hide:\nIncremental Cost]]=\"\",Table_PI[[#This Row],[Hide:\nIncremental Cost]]=0),\"\",Table_PI[[#This Row],[Hide:\nIncremental Cost]])","v":""},{"$f":"IFERROR(IF(Table_SummaryPI[[#This Row],[kWhSavings]]=\"\",\"\",ROUND(Table_SummaryPI[[#This Row],[kWhSavings]]/$AG$401*'Customer Information'!$BC$17,2)),0)","v":""},{"$f":"IF(OR(Table_PI[[#This Row],[Annual kWh]]=\"\",Table_PI[[#This Row],[Annual kWh]]=0),\"\",Table_PI[[#This Row],[Annual kWh]])","v":""},{"$f":"IF(OR(Table_PI[[#This Row],[Peak kW]]=\"\",Table_PI[[#This Row],[Peak kW]]=0),\"\",Table_PI[[#This Row],[Peak kW]])","v":""},{"$f":"IFERROR(IF(Table_SummaryPI[[#This Row],[kWhSavings]]=\"\",\"\",$AU$9*Table_SummaryPI[[#This Row],[kWhSavings]]),0)","v":""},{"$f":"IFERROR(IF(Table_SummaryPI[[#This Row],[kWhSavings]]=\"\",\"\",$AU$14*Table_SummaryPI[[#This Row],[kWhSavings]]),0)","v":""},{"$f":"IFERROR(IF(Table_SummaryPI[[#This Row],[kWhSavings]]=\"\",\"\",$AU$18*Table_SummaryPI[[#This Row],[kWhSavings]]),0)","v":""},{"$f":"IFERROR(IF(Table_SummaryPI[[#This Row],[kWhSavings]]=\"\",\"\",$AU$22*Table_SummaryPI[[#This Row],[kWhSavings]]),0)","v":""},{"$f":"IFERROR(IF(MeasureCalc(Table_PI[[#This Row],[Hide:\nFormula Name]],Table_SummaryPI[[#This Row],[Quantity]],Table_PI[[#This Row],[List 1]],Table_PI[[#This Row],[List 2]],Table_PI[[#This Row],[List 3]],Table_PI[[#This Row],[Size]],Table_PI[[#This Row],[Input 1]],Table_PI[[#This Row],[Input 2]],Table_PI[[#This Row],[Input 3]],Table_PI[[#This Row],[Input 4]],'Customer Information'!$AR$12,200,ROW())<>\"No Rebate\",MeasureCalc(Table_PI[[#This Row],[Hide:\nFormula Name]],Table_SummaryPI[[#This Row],[Quantity]],Table_PI[[#This Row],[List 1]],Table_PI[[#This Row],[List 2]],Table_PI[[#This Row],[List 3]],Table_PI[[#This Row],[Size]],Table_PI[[#This Row],[Input 1]],Table_PI[[#This Row],[Input 2]],Table_PI[[#This Row],[Input 3]],Table_PI[[#This Row],[Input 4]],'Customer Information'!$AR$12,200,ROW()),\"\"),\"\")","v":""},{"$f":"IFERROR(IF(MeasureCalc(Table_PI[[#This Row],[Hide:\nFormula Name]],Table_SummaryPI[[#This Row],[Quantity]],Table_PI[[#This Row],[List 1]],Table_PI[[#This Row],[List 2]],Table_PI[[#This Row],[List 3]],Table_PI[[#This Row],[Size]],Table_PI[[#This Row],[Input 1]],Table_PI[[#This Row],[Input 2]],Table_PI[[#This Row],[Input 3]],Table_PI[[#This Row],[Input 4]],'Customer Information'!$AR$12,201,ROW())<>\"No Rebate\",MeasureCalc(Table_PI[[#This Row],[Hide:\nFormula Name]],Table_SummaryPI[[#This Row],[Quantity]],Table_PI[[#This Row],[List 1]],Table_PI[[#This Row],[List 2]],Table_PI[[#This Row],[List 3]],Table_PI[[#This Row],[Size]],Table_PI[[#This Row],[Input 1]],Table_PI[[#This Row],[Input 2]],Table_PI[[#This Row],[Input 3]],Table_PI[[#This Row],[Input 4]],'Customer Information'!$AR$12,201,ROW()),\"\"),\"\")","v":""}]
[{"$f":"Table_PI[[#This Row],[Line No.]]","v":""},{"$f":"IF(Table_SummaryPI[[#This Row],[MeassureCategory]]<>\"\",CONCATENATE(Table_SummaryPI[[#This Row],[MeassureCategory]],  \" - \", Table_SummaryPI[[#This Row],[ProposedMeasureCategory]],  \" - \", TEXT(Table_SummaryPI[[#This Row],[Size]],\"#,##0.00\"),\" \",Table_SummaryPI[[#This Row],[SizeUnit]]),\"\")","v":""},{"$f":"SUBSTITUTE(Table_PI[[#This Row],[Measure]],\"     \",\"\",1)","v":""},{"$f":"IF(Table_PI[[#This Row],[List 1]]<>\"\",Table_PI[[#This Row],[List 1]],\"\")","v":""},{"$f":"IF(Table_PI[[#This Row],[List 2]]<>\"\",Table_PI[[#This Row],[List 2]],\"\")","v":""},{"$f":"IF(Table_PI[[#This Row],[List 3]]<>\"\",Table_PI[[#This Row],[List 3]],\"\")","v":""},{"$f":"IF(Table_PI[[#This Row],[Manufacturer]]=\"\",\"\",Table_PI[[#This Row],[Manufacturer]])","v":""},{"$f":"IF(Table_PI[[#This Row],[Model Number]]=\"\",\"\",Table_PI[[#This Row],[Model Number]])","v":""},{"$f":"IF(Table_PI[[#This Row],[Serial Number(s)]]=\"\",\"\",Table_PI[[#This Row],[Serial Number(s)]])","v":""},null,{"$f":"IF(Table_PI[[#This Row],[Size]]=\"\",\"\",Table_PI[[#This Row],[Size]])","v":""},null,{"$f":"IFERROR(IF(AND(MeasureCalc(Table_PI[[#This Row],[Hide:\nFormula Name]],Table_SummaryPI[[#This Row],[Quantity]],Table_PI[[#This Row],[List 1]],Table_PI[[#This Row],[List 2]],Table_PI[[#This Row],[List 3]],Table_PI[[#This Row],[Size]],Table_PI[[#This Row],[Input 1]],Table_PI[[#This Row],[Input 2]],Table_PI[[#This Row],[Input 3]],Table_PI[[#This Row],[Input 4]],'Customer Information'!$AR$12,100,ROW())<>0,MeasureCalc(Table_PI[[#This Row],[Hide:\nFormula Name]],Table_SummaryPI[[#This Row],[Quantity]],Table_PI[[#This Row],[List 1]],Table_PI[[#This Row],[List 2]],Table_PI[[#This Row],[List 3]],Table_PI[[#This Row],[Size]],Table_PI[[#This Row],[Input 1]],Table_PI[[#This Row],[Input 2]],Table_PI[[#This Row],[Input 3]],Table_PI[[#This Row],[Input 4]],'Customer Information'!$AR$12,100,ROW())<>\"No Rebate\"),MeasureCalc(Table_PI[[#This Row],[Hide:\nFormula Name]],Table_SummaryPI[[#This Row],[Quantity]],Table_PI[[#This Row],[List 1]],Table_PI[[#This Row],[List 2]],Table_PI[[#This Row],[List 3]],Table_PI[[#This Row],[Size]],Table_PI[[#This Row],[Input 1]],Table_PI[[#This Row],[Input 2]],Table_PI[[#This Row],[Input 3]],Table_PI[[#This Row],[Input 4]],'Customer Information'!$AR$12,100,ROW()),\"\"),\"\")","v":""},{"$f":"IF(Table_PI[[#This Row],[Input 1]]<>\"\",Table_PI[[#This Row],[Input 1]],\"\")","v":""},null,{"$f":"IFERROR(IF(AND(MeasureCalc(Table_PI[[#This Row],[Hide:\nFormula Name]],Table_SummaryPI[[#This Row],[Quantity]],Table_PI[[#This Row],[List 1]],Table_PI[[#This Row],[List 2]],Table_PI[[#This Row],[List 3]],Table_PI[[#This Row],[Size]],Table_PI[[#This Row],[Input 1]],Table_PI[[#This Row],[Input 2]],Table_PI[[#This Row],[Input 3]],Table_PI[[#This Row],[Input 4]],'Customer Information'!$AR$12,101,ROW())<>0,MeasureCalc(Table_PI[[#This Row],[Hide:\nFormula Name]],Table_SummaryPI[[#This Row],[Quantity]],Table_PI[[#This Row],[List 1]],Table_PI[[#This Row],[List 2]],Table_PI[[#This Row],[List 3]],Table_PI[[#This Row],[Size]],Table_PI[[#This Row],[Input 1]],Table_PI[[#This Row],[Input 2]],Table_PI[[#This Row],[Input 3]],Table_PI[[#This Row],[Input 4]],'Customer Information'!$AR$12,101,ROW())<>\"No Rebate\"),MeasureCalc(Table_PI[[#This Row],[Hide:\nFormula Name]],Table_SummaryPI[[#This Row],[Quantity]],Table_PI[[#This Row],[List 1]],Table_PI[[#This Row],[List 2]],Table_PI[[#This Row],[List 3]],Table_PI[[#This Row],[Size]],Table_PI[[#This Row],[Input 1]],Table_PI[[#This Row],[Input 2]],Table_PI[[#This Row],[Input 3]],Table_PI[[#This Row],[Input 4]],'Customer Information'!$AR$12,101,ROW()),\"\"),\"\")","v":""},{"$f":"IF(Table_PI[[#This Row],[Input 2]]<>\"\",Table_PI[[#This Row],[Input 2]],\"\")","v":""},null,{"$f":"IFERROR(IF(AND(MeasureCalc(Table_PI[[#This Row],[Hide:\nFormula Name]],Table_SummaryPI[[#This Row],[Quantity]],Table_PI[[#This Row],[List 1]],Table_PI[[#This Row],[List 2]],Table_PI[[#This Row],[List 3]],Table_PI[[#This Row],[Size]],Table_PI[[#This Row],[Input 1]],Table_PI[[#This Row],[Input 2]],Table_PI[[#This Row],[Input 3]],Table_PI[[#This Row],[Input 4]],'Customer Information'!$AR$12,102,ROW())<>0,MeasureCalc(Table_PI[[#This Row],[Hide:\nFormula Name]],Table_SummaryPI[[#This Row],[Quantity]],Table_PI[[#This Row],[List 1]],Table_PI[[#This Row],[List 2]],Table_PI[[#This Row],[List 3]],Table_PI[[#This Row],[Size]],Table_PI[[#This Row],[Input 1]],Table_PI[[#This Row],[Input 2]],Table_PI[[#This Row],[Input 3]],Table_PI[[#This Row],[Input 4]],'Customer Information'!$AR$12,102,ROW())<>\"No Rebate\"),MeasureCalc(Table_PI[[#This Row],[Hide:\nFormula Name]],Table_SummaryPI[[#This Row],[Quantity]],Table_PI[[#This Row],[List 1]],Table_PI[[#This Row],[List 2]],Table_PI[[#This Row],[List 3]],Table_PI[[#This Row],[Size]],Table_PI[[#This Row],[Input 1]],Table_PI[[#This Row],[Input 2]],Table_PI[[#This Row],[Input 3]],Table_PI[[#This Row],[Input 4]],'Customer Information'!$AR$12,102,ROW()),\"\"),\"\")","v":""},{"$f":"IF(Table_PI[[#This Row],[Input 3]]<>\"\",Table_PI[[#This Row],[Input 3]],\"\")","v":""},null,{"$f":"IFERROR(IF(AND(MeasureCalc(Table_PI[[#This Row],[Hide:\nFormula Name]],Table_SummaryPI[[#This Row],[Quantity]],Table_PI[[#This Row],[List 1]],Table_PI[[#This Row],[List 2]],Table_PI[[#This Row],[List 3]],Table_PI[[#This Row],[Size]],Table_PI[[#This Row],[Input 1]],Table_PI[[#This Row],[Input 2]],Table_PI[[#This Row],[Input 3]],Table_PI[[#This Row],[Input 4]],'Customer Information'!$AR$12,103,ROW())<>0,MeasureCalc(Table_PI[[#This Row],[Hide:\nFormula Name]],Table_SummaryPI[[#This Row],[Quantity]],Table_PI[[#This Row],[List 1]],Table_PI[[#This Row],[List 2]],Table_PI[[#This Row],[List 3]],Table_PI[[#This Row],[Size]],Table_PI[[#This Row],[Input 1]],Table_PI[[#This Row],[Input 2]],Table_PI[[#This Row],[Input 3]],Table_PI[[#This Row],[Input 4]],'Customer Information'!$AR$12,103,ROW())<>\"No Rebate\"),MeasureCalc(Table_PI[[#This Row],[Hide:\nFormula Name]],Table_SummaryPI[[#This Row],[Quantity]],Table_PI[[#This Row],[List 1]],Table_PI[[#This Row],[List 2]],Table_PI[[#This Row],[List 3]],Table_PI[[#This Row],[Size]],Table_PI[[#This Row],[Input 1]],Table_PI[[#This Row],[Input 2]],Table_PI[[#This Row],[Input 3]],Table_PI[[#This Row],[Input 4]],'Customer Information'!$AR$12,103,ROW()),\"\"),\"\")","v":""},{"$f":"IF(Table_PI[[#This Row],[Input 4]]<>\"\",Table_PI[[#This Row],[Input 4]],\"\")","v":""},{"$f":"IF(Table_PI[[#This Row],[Quantity]]=\"\",\"\",Table_PI[[#This Row],[Quantity]])","v":""},{"$f":"IF(Table_PI[[#This Row],[Notes]]=\"\",\"\",Table_PI[[#This Row],[Notes]])","v":""},{"$f":"IF(OR(Table_PI[[#This Row],[Hide:\nBaseline kWh]]=\"\",Table_PI[[#This Row],[Hide:\nBaseline kWh]]=0),\"\",Table_PI[[#This Row],[Hide:\nBaseline kWh]])","v":""},{"$f":"IF(OR(Table_PI[[#This Row],[Hide:\nBaseline kW]]=\"\",Table_PI[[#This Row],[Hide:\nBaseline kW]]=0),\"\",Table_PI[[#This Row],[Hide:\nBaseline kW]])","v":""},{"$f":"IF(OR(Table_PI[[#This Row],[Hide:\nProposed kWh]]=\"\",Table_PI[[#This Row],[Hide:\nProposed kWh]]=0),\"\",Table_PI[[#This Row],[Hide:\nProposed kWh]])","v":""},{"$f":"IF(OR(Table_PI[[#This Row],[Hide:\nProposed kW]]=\"\",Table_PI[[#This Row],[Hide:\nProposed kW]]=0),\"\",Table_PI[[#This Row],[Hide:\nProposed kW]])","v":""},{"$f":"IF(OR(Table_PI[[#This Row],[Rebate]]=\"\",Table_PI[[#This Row],[Rebate]]=0),\"\",Table_PI[[#This Row],[Rebate]])","v":""},{"$f":"IF(OR(Table_PI[[#This Row],[Hide:\nIncremental Cost]]=\"\",Table_PI[[#This Row],[Hide:\nIncremental Cost]]=0),\"\",Table_PI[[#This Row],[Hide:\nIncremental Cost]])","v":""},{"$f":"IFERROR(IF(Table_SummaryPI[[#This Row],[kWhSavings]]=\"\",\"\",ROUND(Table_SummaryPI[[#This Row],[kWhSavings]]/$AG$401*'Customer Information'!$BC$17,2)),0)","v":""},{"$f":"IF(OR(Table_PI[[#This Row],[Annual kWh]]=\"\",Table_PI[[#This Row],[Annual kWh]]=0),\"\",Table_PI[[#This Row],[Annual kWh]])","v":""},{"$f":"IF(OR(Table_PI[[#This Row],[Peak kW]]=\"\",Table_PI[[#This Row],[Peak kW]]=0),\"\",Table_PI[[#This Row],[Peak kW]])","v":""},{"$f":"IFERROR(IF(Table_SummaryPI[[#This Row],[kWhSavings]]=\"\",\"\",$AU$9*Table_SummaryPI[[#This Row],[kWhSavings]]),0)","v":""},{"$f":"IFERROR(IF(Table_SummaryPI[[#This Row],[kWhSavings]]=\"\",\"\",$AU$14*Table_SummaryPI[[#This Row],[kWhSavings]]),0)","v":""},{"$f":"IFERROR(IF(Table_SummaryPI[[#This Row],[kWhSavings]]=\"\",\"\",$AU$18*Table_SummaryPI[[#This Row],[kWhSavings]]),0)","v":""},{"$f":"IFERROR(IF(Table_SummaryPI[[#This Row],[kWhSavings]]=\"\",\"\",$AU$22*Table_SummaryPI[[#This Row],[kWhSavings]]),0)","v":""},{"$f":"IFERROR(IF(MeasureCalc(Table_PI[[#This Row],[Hide:\nFormula Name]],Table_SummaryPI[[#This Row],[Quantity]],Table_PI[[#This Row],[List 1]],Table_PI[[#This Row],[List 2]],Table_PI[[#This Row],[List 3]],Table_PI[[#This Row],[Size]],Table_PI[[#This Row],[Input 1]],Table_PI[[#This Row],[Input 2]],Table_PI[[#This Row],[Input 3]],Table_PI[[#This Row],[Input 4]],'Customer Information'!$AR$12,200,ROW())<>\"No Rebate\",MeasureCalc(Table_PI[[#This Row],[Hide:\nFormula Name]],Table_SummaryPI[[#This Row],[Quantity]],Table_PI[[#This Row],[List 1]],Table_PI[[#This Row],[List 2]],Table_PI[[#This Row],[List 3]],Table_PI[[#This Row],[Size]],Table_PI[[#This Row],[Input 1]],Table_PI[[#This Row],[Input 2]],Table_PI[[#This Row],[Input 3]],Table_PI[[#This Row],[Input 4]],'Customer Information'!$AR$12,200,ROW()),\"\"),\"\")","v":""},{"$f":"IFERROR(IF(MeasureCalc(Table_PI[[#This Row],[Hide:\nFormula Name]],Table_SummaryPI[[#This Row],[Quantity]],Table_PI[[#This Row],[List 1]],Table_PI[[#This Row],[List 2]],Table_PI[[#This Row],[List 3]],Table_PI[[#This Row],[Size]],Table_PI[[#This Row],[Input 1]],Table_PI[[#This Row],[Input 2]],Table_PI[[#This Row],[Input 3]],Table_PI[[#This Row],[Input 4]],'Customer Information'!$AR$12,201,ROW())<>\"No Rebate\",MeasureCalc(Table_PI[[#This Row],[Hide:\nFormula Name]],Table_SummaryPI[[#This Row],[Quantity]],Table_PI[[#This Row],[List 1]],Table_PI[[#This Row],[List 2]],Table_PI[[#This Row],[List 3]],Table_PI[[#This Row],[Size]],Table_PI[[#This Row],[Input 1]],Table_PI[[#This Row],[Input 2]],Table_PI[[#This Row],[Input 3]],Table_PI[[#This Row],[Input 4]],'Customer Information'!$AR$12,201,ROW()),\"\"),\"\")","v":""}]
[{"$f":"Table_PI[[#This Row],[Line No.]]","v":""},{"$f":"IF(Table_SummaryPI[[#This Row],[MeassureCategory]]<>\"\",CONCATENATE(Table_SummaryPI[[#This Row],[MeassureCategory]],  \" - \", Table_SummaryPI[[#This Row],[ProposedMeasureCategory]],  \" - \", TEXT(Table_SummaryPI[[#This Row],[Size]],\"#,##0.00\"),\" \",Table_SummaryPI[[#This Row],[SizeUnit]]),\"\")","v":""},{"$f":"SUBSTITUTE(Table_PI[[#This Row],[Measure]],\"     \",\"\",1)","v":""},{"$f":"IF(Table_PI[[#This Row],[List 1]]<>\"\",Table_PI[[#This Row],[List 1]],\"\")","v":""},{"$f":"IF(Table_PI[[#This Row],[List 2]]<>\"\",Table_PI[[#This Row],[List 2]],\"\")","v":""},{"$f":"IF(Table_PI[[#This Row],[List 3]]<>\"\",Table_PI[[#This Row],[List 3]],\"\")","v":""},{"$f":"IF(Table_PI[[#This Row],[Manufacturer]]=\"\",\"\",Table_PI[[#This Row],[Manufacturer]])","v":""},{"$f":"IF(Table_PI[[#This Row],[Model Number]]=\"\",\"\",Table_PI[[#This Row],[Model Number]])","v":""},{"$f":"IF(Table_PI[[#This Row],[Serial Number(s)]]=\"\",\"\",Table_PI[[#This Row],[Serial Number(s)]])","v":""},null,{"$f":"IF(Table_PI[[#This Row],[Size]]=\"\",\"\",Table_PI[[#This Row],[Size]])","v":""},null,{"$f":"IFERROR(IF(AND(MeasureCalc(Table_PI[[#This Row],[Hide:\nFormula Name]],Table_SummaryPI[[#This Row],[Quantity]],Table_PI[[#This Row],[List 1]],Table_PI[[#This Row],[List 2]],Table_PI[[#This Row],[List 3]],Table_PI[[#This Row],[Size]],Table_PI[[#This Row],[Input 1]],Table_PI[[#This Row],[Input 2]],Table_PI[[#This Row],[Input 3]],Table_PI[[#This Row],[Input 4]],'Customer Information'!$AR$12,100,ROW())<>0,MeasureCalc(Table_PI[[#This Row],[Hide:\nFormula Name]],Table_SummaryPI[[#This Row],[Quantity]],Table_PI[[#This Row],[List 1]],Table_PI[[#This Row],[List 2]],Table_PI[[#This Row],[List 3]],Table_PI[[#This Row],[Size]],Table_PI[[#This Row],[Input 1]],Table_PI[[#This Row],[Input 2]],Table_PI[[#This Row],[Input 3]],Table_PI[[#This Row],[Input 4]],'Customer Information'!$AR$12,100,ROW())<>\"No Rebate\"),MeasureCalc(Table_PI[[#This Row],[Hide:\nFormula Name]],Table_SummaryPI[[#This Row],[Quantity]],Table_PI[[#This Row],[List 1]],Table_PI[[#This Row],[List 2]],Table_PI[[#This Row],[List 3]],Table_PI[[#This Row],[Size]],Table_PI[[#This Row],[Input 1]],Table_PI[[#This Row],[Input 2]],Table_PI[[#This Row],[Input 3]],Table_PI[[#This Row],[Input 4]],'Customer Information'!$AR$12,100,ROW()),\"\"),\"\")","v":""},{"$f":"IF(Table_PI[[#This Row],[Input 1]]<>\"\",Table_PI[[#This Row],[Input 1]],\"\")","v":""},null,{"$f":"IFERROR(IF(AND(MeasureCalc(Table_PI[[#This Row],[Hide:\nFormula Name]],Table_SummaryPI[[#This Row],[Quantity]],Table_PI[[#This Row],[List 1]],Table_PI[[#This Row],[List 2]],Table_PI[[#This Row],[List 3]],Table_PI[[#This Row],[Size]],Table_PI[[#This Row],[Input 1]],Table_PI[[#This Row],[Input 2]],Table_PI[[#This Row],[Input 3]],Table_PI[[#This Row],[Input 4]],'Customer Information'!$AR$12,101,ROW())<>0,MeasureCalc(Table_PI[[#This Row],[Hide:\nFormula Name]],Table_SummaryPI[[#This Row],[Quantity]],Table_PI[[#This Row],[List 1]],Table_PI[[#This Row],[List 2]],Table_PI[[#This Row],[List 3]],Table_PI[[#This Row],[Size]],Table_PI[[#This Row],[Input 1]],Table_PI[[#This Row],[Input 2]],Table_PI[[#This Row],[Input 3]],Table_PI[[#This Row],[Input 4]],'Customer Information'!$AR$12,101,ROW())<>\"No Rebate\"),MeasureCalc(Table_PI[[#This Row],[Hide:\nFormula Name]],Table_SummaryPI[[#This Row],[Quantity]],Table_PI[[#This Row],[List 1]],Table_PI[[#This Row],[List 2]],Table_PI[[#This Row],[List 3]],Table_PI[[#This Row],[Size]],Table_PI[[#This Row],[Input 1]],Table_PI[[#This Row],[Input 2]],Table_PI[[#This Row],[Input 3]],Table_PI[[#This Row],[Input 4]],'Customer Information'!$AR$12,101,ROW()),\"\"),\"\")","v":""},{"$f":"IF(Table_PI[[#This Row],[Input 2]]<>\"\",Table_PI[[#This Row],[Input 2]],\"\")","v":""},null,{"$f":"IFERROR(IF(AND(MeasureCalc(Table_PI[[#This Row],[Hide:\nFormula Name]],Table_SummaryPI[[#This Row],[Quantity]],Table_PI[[#This Row],[List 1]],Table_PI[[#This Row],[List 2]],Table_PI[[#This Row],[List 3]],Table_PI[[#This Row],[Size]],Table_PI[[#This Row],[Input 1]],Table_PI[[#This Row],[Input 2]],Table_PI[[#This Row],[Input 3]],Table_PI[[#This Row],[Input 4]],'Customer Information'!$AR$12,102,ROW())<>0,MeasureCalc(Table_PI[[#This Row],[Hide:\nFormula Name]],Table_SummaryPI[[#This Row],[Quantity]],Table_PI[[#This Row],[List 1]],Table_PI[[#This Row],[List 2]],Table_PI[[#This Row],[List 3]],Table_PI[[#This Row],[Size]],Table_PI[[#This Row],[Input 1]],Table_PI[[#This Row],[Input 2]],Table_PI[[#This Row],[Input 3]],Table_PI[[#This Row],[Input 4]],'Customer Information'!$AR$12,102,ROW())<>\"No Rebate\"),MeasureCalc(Table_PI[[#This Row],[Hide:\nFormula Name]],Table_SummaryPI[[#This Row],[Quantity]],Table_PI[[#This Row],[List 1]],Table_PI[[#This Row],[List 2]],Table_PI[[#This Row],[List 3]],Table_PI[[#This Row],[Size]],Table_PI[[#This Row],[Input 1]],Table_PI[[#This Row],[Input 2]],Table_PI[[#This Row],[Input 3]],Table_PI[[#This Row],[Input 4]],'Customer Information'!$AR$12,102,ROW()),\"\"),\"\")","v":""},{"$f":"IF(Table_PI[[#This Row],[Input 3]]<>\"\",Table_PI[[#This Row],[Input 3]],\"\")","v":""},null,{"$f":"IFERROR(IF(AND(MeasureCalc(Table_PI[[#This Row],[Hide:\nFormula Name]],Table_SummaryPI[[#This Row],[Quantity]],Table_PI[[#This Row],[List 1]],Table_PI[[#This Row],[List 2]],Table_PI[[#This Row],[List 3]],Table_PI[[#This Row],[Size]],Table_PI[[#This Row],[Input 1]],Table_PI[[#This Row],[Input 2]],Table_PI[[#This Row],[Input 3]],Table_PI[[#This Row],[Input 4]],'Customer Information'!$AR$12,103,ROW())<>0,MeasureCalc(Table_PI[[#This Row],[Hide:\nFormula Name]],Table_SummaryPI[[#This Row],[Quantity]],Table_PI[[#This Row],[List 1]],Table_PI[[#This Row],[List 2]],Table_PI[[#This Row],[List 3]],Table_PI[[#This Row],[Size]],Table_PI[[#This Row],[Input 1]],Table_PI[[#This Row],[Input 2]],Table_PI[[#This Row],[Input 3]],Table_PI[[#This Row],[Input 4]],'Customer Information'!$AR$12,103,ROW())<>\"No Rebate\"),MeasureCalc(Table_PI[[#This Row],[Hide:\nFormula Name]],Table_SummaryPI[[#This Row],[Quantity]],Table_PI[[#This Row],[List 1]],Table_PI[[#This Row],[List 2]],Table_PI[[#This Row],[List 3]],Table_PI[[#This Row],[Size]],Table_PI[[#This Row],[Input 1]],Table_PI[[#This Row],[Input 2]],Table_PI[[#This Row],[Input 3]],Table_PI[[#This Row],[Input 4]],'Customer Information'!$AR$12,103,ROW()),\"\"),\"\")","v":""},{"$f":"IF(Table_PI[[#This Row],[Input 4]]<>\"\",Table_PI[[#This Row],[Input 4]],\"\")","v":""},{"$f":"IF(Table_PI[[#This Row],[Quantity]]=\"\",\"\",Table_PI[[#This Row],[Quantity]])","v":""},{"$f":"IF(Table_PI[[#This Row],[Notes]]=\"\",\"\",Table_PI[[#This Row],[Notes]])","v":""},{"$f":"IF(OR(Table_PI[[#This Row],[Hide:\nBaseline kWh]]=\"\",Table_PI[[#This Row],[Hide:\nBaseline kWh]]=0),\"\",Table_PI[[#This Row],[Hide:\nBaseline kWh]])","v":""},{"$f":"IF(OR(Table_PI[[#This Row],[Hide:\nBaseline kW]]=\"\",Table_PI[[#This Row],[Hide:\nBaseline kW]]=0),\"\",Table_PI[[#This Row],[Hide:\nBaseline kW]])","v":""},{"$f":"IF(OR(Table_PI[[#This Row],[Hide:\nProposed kWh]]=\"\",Table_PI[[#This Row],[Hide:\nProposed kWh]]=0),\"\",Table_PI[[#This Row],[Hide:\nProposed kWh]])","v":""},{"$f":"IF(OR(Table_PI[[#This Row],[Hide:\nProposed kW]]=\"\",Table_PI[[#This Row],[Hide:\nProposed kW]]=0),\"\",Table_PI[[#This Row],[Hide:\nProposed kW]])","v":""},{"$f":"IF(OR(Table_PI[[#This Row],[Rebate]]=\"\",Table_PI[[#This Row],[Rebate]]=0),\"\",Table_PI[[#This Row],[Rebate]])","v":""},{"$f":"IF(OR(Table_PI[[#This Row],[Hide:\nIncremental Cost]]=\"\",Table_PI[[#This Row],[Hide:\nIncremental Cost]]=0),\"\",Table_PI[[#This Row],[Hide:\nIncremental Cost]])","v":""},{"$f":"IFERROR(IF(Table_SummaryPI[[#This Row],[kWhSavings]]=\"\",\"\",ROUND(Table_SummaryPI[[#This Row],[kWhSavings]]/$AG$401*'Customer Information'!$BC$17,2)),0)","v":""},{"$f":"IF(OR(Table_PI[[#This Row],[Annual kWh]]=\"\",Table_PI[[#This Row],[Annual kWh]]=0),\"\",Table_PI[[#This Row],[Annual kWh]])","v":""},{"$f":"IF(OR(Table_PI[[#This Row],[Peak kW]]=\"\",Table_PI[[#This Row],[Peak kW]]=0),\"\",Table_PI[[#This Row],[Peak kW]])","v":""},{"$f":"IFERROR(IF(Table_SummaryPI[[#This Row],[kWhSavings]]=\"\",\"\",$AU$9*Table_SummaryPI[[#This Row],[kWhSavings]]),0)","v":""},{"$f":"IFERROR(IF(Table_SummaryPI[[#This Row],[kWhSavings]]=\"\",\"\",$AU$14*Table_SummaryPI[[#This Row],[kWhSavings]]),0)","v":""},{"$f":"IFERROR(IF(Table_SummaryPI[[#This Row],[kWhSavings]]=\"\",\"\",$AU$18*Table_SummaryPI[[#This Row],[kWhSavings]]),0)","v":""},{"$f":"IFERROR(IF(Table_SummaryPI[[#This Row],[kWhSavings]]=\"\",\"\",$AU$22*Table_SummaryPI[[#This Row],[kWhSavings]]),0)","v":""},{"$f":"IFERROR(IF(MeasureCalc(Table_PI[[#This Row],[Hide:\nFormula Name]],Table_SummaryPI[[#This Row],[Quantity]],Table_PI[[#This Row],[List 1]],Table_PI[[#This Row],[List 2]],Table_PI[[#This Row],[List 3]],Table_PI[[#This Row],[Size]],Table_PI[[#This Row],[Input 1]],Table_PI[[#This Row],[Input 2]],Table_PI[[#This Row],[Input 3]],Table_PI[[#This Row],[Input 4]],'Customer Information'!$AR$12,200,ROW())<>\"No Rebate\",MeasureCalc(Table_PI[[#This Row],[Hide:\nFormula Name]],Table_SummaryPI[[#This Row],[Quantity]],Table_PI[[#This Row],[List 1]],Table_PI[[#This Row],[List 2]],Table_PI[[#This Row],[List 3]],Table_PI[[#This Row],[Size]],Table_PI[[#This Row],[Input 1]],Table_PI[[#This Row],[Input 2]],Table_PI[[#This Row],[Input 3]],Table_PI[[#This Row],[Input 4]],'Customer Information'!$AR$12,200,ROW()),\"\"),\"\")","v":""},{"$f":"IFERROR(IF(MeasureCalc(Table_PI[[#This Row],[Hide:\nFormula Name]],Table_SummaryPI[[#This Row],[Quantity]],Table_PI[[#This Row],[List 1]],Table_PI[[#This Row],[List 2]],Table_PI[[#This Row],[List 3]],Table_PI[[#This Row],[Size]],Table_PI[[#This Row],[Input 1]],Table_PI[[#This Row],[Input 2]],Table_PI[[#This Row],[Input 3]],Table_PI[[#This Row],[Input 4]],'Customer Information'!$AR$12,201,ROW())<>\"No Rebate\",MeasureCalc(Table_PI[[#This Row],[Hide:\nFormula Name]],Table_SummaryPI[[#This Row],[Quantity]],Table_PI[[#This Row],[List 1]],Table_PI[[#This Row],[List 2]],Table_PI[[#This Row],[List 3]],Table_PI[[#This Row],[Size]],Table_PI[[#This Row],[Input 1]],Table_PI[[#This Row],[Input 2]],Table_PI[[#This Row],[Input 3]],Table_PI[[#This Row],[Input 4]],'Customer Information'!$AR$12,201,ROW()),\"\"),\"\")","v":""}]
[{"$f":"Table_PI[[#This Row],[Line No.]]","v":""},{"$f":"IF(Table_SummaryPI[[#This Row],[MeassureCategory]]<>\"\",CONCATENATE(Table_SummaryPI[[#This Row],[MeassureCategory]],  \" - \", Table_SummaryPI[[#This Row],[ProposedMeasureCategory]],  \" - \", TEXT(Table_SummaryPI[[#This Row],[Size]],\"#,##0.00\"),\" \",Table_SummaryPI[[#This Row],[SizeUnit]]),\"\")","v":""},{"$f":"SUBSTITUTE(Table_PI[[#This Row],[Measure]],\"     \",\"\",1)","v":""},{"$f":"IF(Table_PI[[#This Row],[List 1]]<>\"\",Table_PI[[#This Row],[List 1]],\"\")","v":""},{"$f":"IF(Table_PI[[#This Row],[List 2]]<>\"\",Table_PI[[#This Row],[List 2]],\"\")","v":""},{"$f":"IF(Table_PI[[#This Row],[List 3]]<>\"\",Table_PI[[#This Row],[List 3]],\"\")","v":""},{"$f":"IF(Table_PI[[#This Row],[Manufacturer]]=\"\",\"\",Table_PI[[#This Row],[Manufacturer]])","v":""},{"$f":"IF(Table_PI[[#This Row],[Model Number]]=\"\",\"\",Table_PI[[#This Row],[Model Number]])","v":""},{"$f":"IF(Table_PI[[#This Row],[Serial Number(s)]]=\"\",\"\",Table_PI[[#This Row],[Serial Number(s)]])","v":""},null,{"$f":"IF(Table_PI[[#This Row],[Size]]=\"\",\"\",Table_PI[[#This Row],[Size]])","v":""},null,{"$f":"IFERROR(IF(AND(MeasureCalc(Table_PI[[#This Row],[Hide:\nFormula Name]],Table_SummaryPI[[#This Row],[Quantity]],Table_PI[[#This Row],[List 1]],Table_PI[[#This Row],[List 2]],Table_PI[[#This Row],[List 3]],Table_PI[[#This Row],[Size]],Table_PI[[#This Row],[Input 1]],Table_PI[[#This Row],[Input 2]],Table_PI[[#This Row],[Input 3]],Table_PI[[#This Row],[Input 4]],'Customer Information'!$AR$12,100,ROW())<>0,MeasureCalc(Table_PI[[#This Row],[Hide:\nFormula Name]],Table_SummaryPI[[#This Row],[Quantity]],Table_PI[[#This Row],[List 1]],Table_PI[[#This Row],[List 2]],Table_PI[[#This Row],[List 3]],Table_PI[[#This Row],[Size]],Table_PI[[#This Row],[Input 1]],Table_PI[[#This Row],[Input 2]],Table_PI[[#This Row],[Input 3]],Table_PI[[#This Row],[Input 4]],'Customer Information'!$AR$12,100,ROW())<>\"No Rebate\"),MeasureCalc(Table_PI[[#This Row],[Hide:\nFormula Name]],Table_SummaryPI[[#This Row],[Quantity]],Table_PI[[#This Row],[List 1]],Table_PI[[#This Row],[List 2]],Table_PI[[#This Row],[List 3]],Table_PI[[#This Row],[Size]],Table_PI[[#This Row],[Input 1]],Table_PI[[#This Row],[Input 2]],Table_PI[[#This Row],[Input 3]],Table_PI[[#This Row],[Input 4]],'Customer Information'!$AR$12,100,ROW()),\"\"),\"\")","v":""},{"$f":"IF(Table_PI[[#This Row],[Input 1]]<>\"\",Table_PI[[#This Row],[Input 1]],\"\")","v":""},null,{"$f":"IFERROR(IF(AND(MeasureCalc(Table_PI[[#This Row],[Hide:\nFormula Name]],Table_SummaryPI[[#This Row],[Quantity]],Table_PI[[#This Row],[List 1]],Table_PI[[#This Row],[List 2]],Table_PI[[#This Row],[List 3]],Table_PI[[#This Row],[Size]],Table_PI[[#This Row],[Input 1]],Table_PI[[#This Row],[Input 2]],Table_PI[[#This Row],[Input 3]],Table_PI[[#This Row],[Input 4]],'Customer Information'!$AR$12,101,ROW())<>0,MeasureCalc(Table_PI[[#This Row],[Hide:\nFormula Name]],Table_SummaryPI[[#This Row],[Quantity]],Table_PI[[#This Row],[List 1]],Table_PI[[#This Row],[List 2]],Table_PI[[#This Row],[List 3]],Table_PI[[#This Row],[Size]],Table_PI[[#This Row],[Input 1]],Table_PI[[#This Row],[Input 2]],Table_PI[[#This Row],[Input 3]],Table_PI[[#This Row],[Input 4]],'Customer Information'!$AR$12,101,ROW())<>\"No Rebate\"),MeasureCalc(Table_PI[[#This Row],[Hide:\nFormula Name]],Table_SummaryPI[[#This Row],[Quantity]],Table_PI[[#This Row],[List 1]],Table_PI[[#This Row],[List 2]],Table_PI[[#This Row],[List 3]],Table_PI[[#This Row],[Size]],Table_PI[[#This Row],[Input 1]],Table_PI[[#This Row],[Input 2]],Table_PI[[#This Row],[Input 3]],Table_PI[[#This Row],[Input 4]],'Customer Information'!$AR$12,101,ROW()),\"\"),\"\")","v":""},{"$f":"IF(Table_PI[[#This Row],[Input 2]]<>\"\",Table_PI[[#This Row],[Input 2]],\"\")","v":""},null,{"$f":"IFERROR(IF(AND(MeasureCalc(Table_PI[[#This Row],[Hide:\nFormula Name]],Table_SummaryPI[[#This Row],[Quantity]],Table_PI[[#This Row],[List 1]],Table_PI[[#This Row],[List 2]],Table_PI[[#This Row],[List 3]],Table_PI[[#This Row],[Size]],Table_PI[[#This Row],[Input 1]],Table_PI[[#This Row],[Input 2]],Table_PI[[#This Row],[Input 3]],Table_PI[[#This Row],[Input 4]],'Customer Information'!$AR$12,102,ROW())<>0,MeasureCalc(Table_PI[[#This Row],[Hide:\nFormula Name]],Table_SummaryPI[[#This Row],[Quantity]],Table_PI[[#This Row],[List 1]],Table_PI[[#This Row],[List 2]],Table_PI[[#This Row],[List 3]],Table_PI[[#This Row],[Size]],Table_PI[[#This Row],[Input 1]],Table_PI[[#This Row],[Input 2]],Table_PI[[#This Row],[Input 3]],Table_PI[[#This Row],[Input 4]],'Customer Information'!$AR$12,102,ROW())<>\"No Rebate\"),MeasureCalc(Table_PI[[#This Row],[Hide:\nFormula Name]],Table_SummaryPI[[#This Row],[Quantity]],Table_PI[[#This Row],[List 1]],Table_PI[[#This Row],[List 2]],Table_PI[[#This Row],[List 3]],Table_PI[[#This Row],[Size]],Table_PI[[#This Row],[Input 1]],Table_PI[[#This Row],[Input 2]],Table_PI[[#This Row],[Input 3]],Table_PI[[#This Row],[Input 4]],'Customer Information'!$AR$12,102,ROW()),\"\"),\"\")","v":""},{"$f":"IF(Table_PI[[#This Row],[Input 3]]<>\"\",Table_PI[[#This Row],[Input 3]],\"\")","v":""},null,{"$f":"IFERROR(IF(AND(MeasureCalc(Table_PI[[#This Row],[Hide:\nFormula Name]],Table_SummaryPI[[#This Row],[Quantity]],Table_PI[[#This Row],[List 1]],Table_PI[[#This Row],[List 2]],Table_PI[[#This Row],[List 3]],Table_PI[[#This Row],[Size]],Table_PI[[#This Row],[Input 1]],Table_PI[[#This Row],[Input 2]],Table_PI[[#This Row],[Input 3]],Table_PI[[#This Row],[Input 4]],'Customer Information'!$AR$12,103,ROW())<>0,MeasureCalc(Table_PI[[#This Row],[Hide:\nFormula Name]],Table_SummaryPI[[#This Row],[Quantity]],Table_PI[[#This Row],[List 1]],Table_PI[[#This Row],[List 2]],Table_PI[[#This Row],[List 3]],Table_PI[[#This Row],[Size]],Table_PI[[#This Row],[Input 1]],Table_PI[[#This Row],[Input 2]],Table_PI[[#This Row],[Input 3]],Table_PI[[#This Row],[Input 4]],'Customer Information'!$AR$12,103,ROW())<>\"No Rebate\"),MeasureCalc(Table_PI[[#This Row],[Hide:\nFormula Name]],Table_SummaryPI[[#This Row],[Quantity]],Table_PI[[#This Row],[List 1]],Table_PI[[#This Row],[List 2]],Table_PI[[#This Row],[List 3]],Table_PI[[#This Row],[Size]],Table_PI[[#This Row],[Input 1]],Table_PI[[#This Row],[Input 2]],Table_PI[[#This Row],[Input 3]],Table_PI[[#This Row],[Input 4]],'Customer Information'!$AR$12,103,ROW()),\"\"),\"\")","v":""},{"$f":"IF(Table_PI[[#This Row],[Input 4]]<>\"\",Table_PI[[#This Row],[Input 4]],\"\")","v":""},{"$f":"IF(Table_PI[[#This Row],[Quantity]]=\"\",\"\",Table_PI[[#This Row],[Quantity]])","v":""},{"$f":"IF(Table_PI[[#This Row],[Notes]]=\"\",\"\",Table_PI[[#This Row],[Notes]])","v":""},{"$f":"IF(OR(Table_PI[[#This Row],[Hide:\nBaseline kWh]]=\"\",Table_PI[[#This Row],[Hide:\nBaseline kWh]]=0),\"\",Table_PI[[#This Row],[Hide:\nBaseline kWh]])","v":""},{"$f":"IF(OR(Table_PI[[#This Row],[Hide:\nBaseline kW]]=\"\",Table_PI[[#This Row],[Hide:\nBaseline kW]]=0),\"\",Table_PI[[#This Row],[Hide:\nBaseline kW]])","v":""},{"$f":"IF(OR(Table_PI[[#This Row],[Hide:\nProposed kWh]]=\"\",Table_PI[[#This Row],[Hide:\nProposed kWh]]=0),\"\",Table_PI[[#This Row],[Hide:\nProposed kWh]])","v":""},{"$f":"IF(OR(Table_PI[[#This Row],[Hide:\nProposed kW]]=\"\",Table_PI[[#This Row],[Hide:\nProposed kW]]=0),\"\",Table_PI[[#This Row],[Hide:\nProposed kW]])","v":""},{"$f":"IF(OR(Table_PI[[#This Row],[Rebate]]=\"\",Table_PI[[#This Row],[Rebate]]=0),\"\",Table_PI[[#This Row],[Rebate]])","v":""},{"$f":"IF(OR(Table_PI[[#This Row],[Hide:\nIncremental Cost]]=\"\",Table_PI[[#This Row],[Hide:\nIncremental Cost]]=0),\"\",Table_PI[[#This Row],[Hide:\nIncremental Cost]])","v":""},{"$f":"IFERROR(IF(Table_SummaryPI[[#This Row],[kWhSavings]]=\"\",\"\",ROUND(Table_SummaryPI[[#This Row],[kWhSavings]]/$AG$401*'Customer Information'!$BC$17,2)),0)","v":""},{"$f":"IF(OR(Table_PI[[#This Row],[Annual kWh]]=\"\",Table_PI[[#This Row],[Annual kWh]]=0),\"\",Table_PI[[#This Row],[Annual kWh]])","v":""},{"$f":"IF(OR(Table_PI[[#This Row],[Peak kW]]=\"\",Table_PI[[#This Row],[Peak kW]]=0),\"\",Table_PI[[#This Row],[Peak kW]])","v":""},{"$f":"IFERROR(IF(Table_SummaryPI[[#This Row],[kWhSavings]]=\"\",\"\",$AU$9*Table_SummaryPI[[#This Row],[kWhSavings]]),0)","v":""},{"$f":"IFERROR(IF(Table_SummaryPI[[#This Row],[kWhSavings]]=\"\",\"\",$AU$14*Table_SummaryPI[[#This Row],[kWhSavings]]),0)","v":""},{"$f":"IFERROR(IF(Table_SummaryPI[[#This Row],[kWhSavings]]=\"\",\"\",$AU$18*Table_SummaryPI[[#This Row],[kWhSavings]]),0)","v":""},{"$f":"IFERROR(IF(Table_SummaryPI[[#This Row],[kWhSavings]]=\"\",\"\",$AU$22*Table_SummaryPI[[#This Row],[kWhSavings]]),0)","v":""},{"$f":"IFERROR(IF(MeasureCalc(Table_PI[[#This Row],[Hide:\nFormula Name]],Table_SummaryPI[[#This Row],[Quantity]],Table_PI[[#This Row],[List 1]],Table_PI[[#This Row],[List 2]],Table_PI[[#This Row],[List 3]],Table_PI[[#This Row],[Size]],Table_PI[[#This Row],[Input 1]],Table_PI[[#This Row],[Input 2]],Table_PI[[#This Row],[Input 3]],Table_PI[[#This Row],[Input 4]],'Customer Information'!$AR$12,200,ROW())<>\"No Rebate\",MeasureCalc(Table_PI[[#This Row],[Hide:\nFormula Name]],Table_SummaryPI[[#This Row],[Quantity]],Table_PI[[#This Row],[List 1]],Table_PI[[#This Row],[List 2]],Table_PI[[#This Row],[List 3]],Table_PI[[#This Row],[Size]],Table_PI[[#This Row],[Input 1]],Table_PI[[#This Row],[Input 2]],Table_PI[[#This Row],[Input 3]],Table_PI[[#This Row],[Input 4]],'Customer Information'!$AR$12,200,ROW()),\"\"),\"\")","v":""},{"$f":"IFERROR(IF(MeasureCalc(Table_PI[[#This Row],[Hide:\nFormula Name]],Table_SummaryPI[[#This Row],[Quantity]],Table_PI[[#This Row],[List 1]],Table_PI[[#This Row],[List 2]],Table_PI[[#This Row],[List 3]],Table_PI[[#This Row],[Size]],Table_PI[[#This Row],[Input 1]],Table_PI[[#This Row],[Input 2]],Table_PI[[#This Row],[Input 3]],Table_PI[[#This Row],[Input 4]],'Customer Information'!$AR$12,201,ROW())<>\"No Rebate\",MeasureCalc(Table_PI[[#This Row],[Hide:\nFormula Name]],Table_SummaryPI[[#This Row],[Quantity]],Table_PI[[#This Row],[List 1]],Table_PI[[#This Row],[List 2]],Table_PI[[#This Row],[List 3]],Table_PI[[#This Row],[Size]],Table_PI[[#This Row],[Input 1]],Table_PI[[#This Row],[Input 2]],Table_PI[[#This Row],[Input 3]],Table_PI[[#This Row],[Input 4]],'Customer Information'!$AR$12,201,ROW()),\"\"),\"\")","v":""}]
[{"$f":"Table_PI[[#This Row],[Line No.]]","v":""},{"$f":"IF(Table_SummaryPI[[#This Row],[MeassureCategory]]<>\"\",CONCATENATE(Table_SummaryPI[[#This Row],[MeassureCategory]],  \" - \", Table_SummaryPI[[#This Row],[ProposedMeasureCategory]],  \" - \", TEXT(Table_SummaryPI[[#This Row],[Size]],\"#,##0.00\"),\" \",Table_SummaryPI[[#This Row],[SizeUnit]]),\"\")","v":""},{"$f":"SUBSTITUTE(Table_PI[[#This Row],[Measure]],\"     \",\"\",1)","v":""},{"$f":"IF(Table_PI[[#This Row],[List 1]]<>\"\",Table_PI[[#This Row],[List 1]],\"\")","v":""},{"$f":"IF(Table_PI[[#This Row],[List 2]]<>\"\",Table_PI[[#This Row],[List 2]],\"\")","v":""},{"$f":"IF(Table_PI[[#This Row],[List 3]]<>\"\",Table_PI[[#This Row],[List 3]],\"\")","v":""},{"$f":"IF(Table_PI[[#This Row],[Manufacturer]]=\"\",\"\",Table_PI[[#This Row],[Manufacturer]])","v":""},{"$f":"IF(Table_PI[[#This Row],[Model Number]]=\"\",\"\",Table_PI[[#This Row],[Model Number]])","v":""},{"$f":"IF(Table_PI[[#This Row],[Serial Number(s)]]=\"\",\"\",Table_PI[[#This Row],[Serial Number(s)]])","v":""},null,{"$f":"IF(Table_PI[[#This Row],[Size]]=\"\",\"\",Table_PI[[#This Row],[Size]])","v":""},null,{"$f":"IFERROR(IF(AND(MeasureCalc(Table_PI[[#This Row],[Hide:\nFormula Name]],Table_SummaryPI[[#This Row],[Quantity]],Table_PI[[#This Row],[List 1]],Table_PI[[#This Row],[List 2]],Table_PI[[#This Row],[List 3]],Table_PI[[#This Row],[Size]],Table_PI[[#This Row],[Input 1]],Table_PI[[#This Row],[Input 2]],Table_PI[[#This Row],[Input 3]],Table_PI[[#This Row],[Input 4]],'Customer Information'!$AR$12,100,ROW())<>0,MeasureCalc(Table_PI[[#This Row],[Hide:\nFormula Name]],Table_SummaryPI[[#This Row],[Quantity]],Table_PI[[#This Row],[List 1]],Table_PI[[#This Row],[List 2]],Table_PI[[#This Row],[List 3]],Table_PI[[#This Row],[Size]],Table_PI[[#This Row],[Input 1]],Table_PI[[#This Row],[Input 2]],Table_PI[[#This Row],[Input 3]],Table_PI[[#This Row],[Input 4]],'Customer Information'!$AR$12,100,ROW())<>\"No Rebate\"),MeasureCalc(Table_PI[[#This Row],[Hide:\nFormula Name]],Table_SummaryPI[[#This Row],[Quantity]],Table_PI[[#This Row],[List 1]],Table_PI[[#This Row],[List 2]],Table_PI[[#This Row],[List 3]],Table_PI[[#This Row],[Size]],Table_PI[[#This Row],[Input 1]],Table_PI[[#This Row],[Input 2]],Table_PI[[#This Row],[Input 3]],Table_PI[[#This Row],[Input 4]],'Customer Information'!$AR$12,100,ROW()),\"\"),\"\")","v":""},{"$f":"IF(Table_PI[[#This Row],[Input 1]]<>\"\",Table_PI[[#This Row],[Input 1]],\"\")","v":""},null,{"$f":"IFERROR(IF(AND(MeasureCalc(Table_PI[[#This Row],[Hide:\nFormula Name]],Table_SummaryPI[[#This Row],[Quantity]],Table_PI[[#This Row],[List 1]],Table_PI[[#This Row],[List 2]],Table_PI[[#This Row],[List 3]],Table_PI[[#This Row],[Size]],Table_PI[[#This Row],[Input 1]],Table_PI[[#This Row],[Input 2]],Table_PI[[#This Row],[Input 3]],Table_PI[[#This Row],[Input 4]],'Customer Information'!$AR$12,101,ROW())<>0,MeasureCalc(Table_PI[[#This Row],[Hide:\nFormula Name]],Table_SummaryPI[[#This Row],[Quantity]],Table_PI[[#This Row],[List 1]],Table_PI[[#This Row],[List 2]],Table_PI[[#This Row],[List 3]],Table_PI[[#This Row],[Size]],Table_PI[[#This Row],[Input 1]],Table_PI[[#This Row],[Input 2]],Table_PI[[#This Row],[Input 3]],Table_PI[[#This Row],[Input 4]],'Customer Information'!$AR$12,101,ROW())<>\"No Rebate\"),MeasureCalc(Table_PI[[#This Row],[Hide:\nFormula Name]],Table_SummaryPI[[#This Row],[Quantity]],Table_PI[[#This Row],[List 1]],Table_PI[[#This Row],[List 2]],Table_PI[[#This Row],[List 3]],Table_PI[[#This Row],[Size]],Table_PI[[#This Row],[Input 1]],Table_PI[[#This Row],[Input 2]],Table_PI[[#This Row],[Input 3]],Table_PI[[#This Row],[Input 4]],'Customer Information'!$AR$12,101,ROW()),\"\"),\"\")","v":""},{"$f":"IF(Table_PI[[#This Row],[Input 2]]<>\"\",Table_PI[[#This Row],[Input 2]],\"\")","v":""},null,{"$f":"IFERROR(IF(AND(MeasureCalc(Table_PI[[#This Row],[Hide:\nFormula Name]],Table_SummaryPI[[#This Row],[Quantity]],Table_PI[[#This Row],[List 1]],Table_PI[[#This Row],[List 2]],Table_PI[[#This Row],[List 3]],Table_PI[[#This Row],[Size]],Table_PI[[#This Row],[Input 1]],Table_PI[[#This Row],[Input 2]],Table_PI[[#This Row],[Input 3]],Table_PI[[#This Row],[Input 4]],'Customer Information'!$AR$12,102,ROW())<>0,MeasureCalc(Table_PI[[#This Row],[Hide:\nFormula Name]],Table_SummaryPI[[#This Row],[Quantity]],Table_PI[[#This Row],[List 1]],Table_PI[[#This Row],[List 2]],Table_PI[[#This Row],[List 3]],Table_PI[[#This Row],[Size]],Table_PI[[#This Row],[Input 1]],Table_PI[[#This Row],[Input 2]],Table_PI[[#This Row],[Input 3]],Table_PI[[#This Row],[Input 4]],'Customer Information'!$AR$12,102,ROW())<>\"No Rebate\"),MeasureCalc(Table_PI[[#This Row],[Hide:\nFormula Name]],Table_SummaryPI[[#This Row],[Quantity]],Table_PI[[#This Row],[List 1]],Table_PI[[#This Row],[List 2]],Table_PI[[#This Row],[List 3]],Table_PI[[#This Row],[Size]],Table_PI[[#This Row],[Input 1]],Table_PI[[#This Row],[Input 2]],Table_PI[[#This Row],[Input 3]],Table_PI[[#This Row],[Input 4]],'Customer Information'!$AR$12,102,ROW()),\"\"),\"\")","v":""},{"$f":"IF(Table_PI[[#This Row],[Input 3]]<>\"\",Table_PI[[#This Row],[Input 3]],\"\")","v":""},null,{"$f":"IFERROR(IF(AND(MeasureCalc(Table_PI[[#This Row],[Hide:\nFormula Name]],Table_SummaryPI[[#This Row],[Quantity]],Table_PI[[#This Row],[List 1]],Table_PI[[#This Row],[List 2]],Table_PI[[#This Row],[List 3]],Table_PI[[#This Row],[Size]],Table_PI[[#This Row],[Input 1]],Table_PI[[#This Row],[Input 2]],Table_PI[[#This Row],[Input 3]],Table_PI[[#This Row],[Input 4]],'Customer Information'!$AR$12,103,ROW())<>0,MeasureCalc(Table_PI[[#This Row],[Hide:\nFormula Name]],Table_SummaryPI[[#This Row],[Quantity]],Table_PI[[#This Row],[List 1]],Table_PI[[#This Row],[List 2]],Table_PI[[#This Row],[List 3]],Table_PI[[#This Row],[Size]],Table_PI[[#This Row],[Input 1]],Table_PI[[#This Row],[Input 2]],Table_PI[[#This Row],[Input 3]],Table_PI[[#This Row],[Input 4]],'Customer Information'!$AR$12,103,ROW())<>\"No Rebate\"),MeasureCalc(Table_PI[[#This Row],[Hide:\nFormula Name]],Table_SummaryPI[[#This Row],[Quantity]],Table_PI[[#This Row],[List 1]],Table_PI[[#This Row],[List 2]],Table_PI[[#This Row],[List 3]],Table_PI[[#This Row],[Size]],Table_PI[[#This Row],[Input 1]],Table_PI[[#This Row],[Input 2]],Table_PI[[#This Row],[Input 3]],Table_PI[[#This Row],[Input 4]],'Customer Information'!$AR$12,103,ROW()),\"\"),\"\")","v":""},{"$f":"IF(Table_PI[[#This Row],[Input 4]]<>\"\",Table_PI[[#This Row],[Input 4]],\"\")","v":""},{"$f":"IF(Table_PI[[#This Row],[Quantity]]=\"\",\"\",Table_PI[[#This Row],[Quantity]])","v":""},{"$f":"IF(Table_PI[[#This Row],[Notes]]=\"\",\"\",Table_PI[[#This Row],[Notes]])","v":""},{"$f":"IF(OR(Table_PI[[#This Row],[Hide:\nBaseline kWh]]=\"\",Table_PI[[#This Row],[Hide:\nBaseline kWh]]=0),\"\",Table_PI[[#This Row],[Hide:\nBaseline kWh]])","v":""},{"$f":"IF(OR(Table_PI[[#This Row],[Hide:\nBaseline kW]]=\"\",Table_PI[[#This Row],[Hide:\nBaseline kW]]=0),\"\",Table_PI[[#This Row],[Hide:\nBaseline kW]])","v":""},{"$f":"IF(OR(Table_PI[[#This Row],[Hide:\nProposed kWh]]=\"\",Table_PI[[#This Row],[Hide:\nProposed kWh]]=0),\"\",Table_PI[[#This Row],[Hide:\nProposed kWh]])","v":""},{"$f":"IF(OR(Table_PI[[#This Row],[Hide:\nProposed kW]]=\"\",Table_PI[[#This Row],[Hide:\nProposed kW]]=0),\"\",Table_PI[[#This Row],[Hide:\nProposed kW]])","v":""},{"$f":"IF(OR(Table_PI[[#This Row],[Rebate]]=\"\",Table_PI[[#This Row],[Rebate]]=0),\"\",Table_PI[[#This Row],[Rebate]])","v":""},{"$f":"IF(OR(Table_PI[[#This Row],[Hide:\nIncremental Cost]]=\"\",Table_PI[[#This Row],[Hide:\nIncremental Cost]]=0),\"\",Table_PI[[#This Row],[Hide:\nIncremental Cost]])","v":""},{"$f":"IFERROR(IF(Table_SummaryPI[[#This Row],[kWhSavings]]=\"\",\"\",ROUND(Table_SummaryPI[[#This Row],[kWhSavings]]/$AG$401*'Customer Information'!$BC$17,2)),0)","v":""},{"$f":"IF(OR(Table_PI[[#This Row],[Annual kWh]]=\"\",Table_PI[[#This Row],[Annual kWh]]=0),\"\",Table_PI[[#This Row],[Annual kWh]])","v":""},{"$f":"IF(OR(Table_PI[[#This Row],[Peak kW]]=\"\",Table_PI[[#This Row],[Peak kW]]=0),\"\",Table_PI[[#This Row],[Peak kW]])","v":""},{"$f":"IFERROR(IF(Table_SummaryPI[[#This Row],[kWhSavings]]=\"\",\"\",$AU$9*Table_SummaryPI[[#This Row],[kWhSavings]]),0)","v":""},{"$f":"IFERROR(IF(Table_SummaryPI[[#This Row],[kWhSavings]]=\"\",\"\",$AU$14*Table_SummaryPI[[#This Row],[kWhSavings]]),0)","v":""},{"$f":"IFERROR(IF(Table_SummaryPI[[#This Row],[kWhSavings]]=\"\",\"\",$AU$18*Table_SummaryPI[[#This Row],[kWhSavings]]),0)","v":""},{"$f":"IFERROR(IF(Table_SummaryPI[[#This Row],[kWhSavings]]=\"\",\"\",$AU$22*Table_SummaryPI[[#This Row],[kWhSavings]]),0)","v":""},{"$f":"IFERROR(IF(MeasureCalc(Table_PI[[#This Row],[Hide:\nFormula Name]],Table_SummaryPI[[#This Row],[Quantity]],Table_PI[[#This Row],[List 1]],Table_PI[[#This Row],[List 2]],Table_PI[[#This Row],[List 3]],Table_PI[[#This Row],[Size]],Table_PI[[#This Row],[Input 1]],Table_PI[[#This Row],[Input 2]],Table_PI[[#This Row],[Input 3]],Table_PI[[#This Row],[Input 4]],'Customer Information'!$AR$12,200,ROW())<>\"No Rebate\",MeasureCalc(Table_PI[[#This Row],[Hide:\nFormula Name]],Table_SummaryPI[[#This Row],[Quantity]],Table_PI[[#This Row],[List 1]],Table_PI[[#This Row],[List 2]],Table_PI[[#This Row],[List 3]],Table_PI[[#This Row],[Size]],Table_PI[[#This Row],[Input 1]],Table_PI[[#This Row],[Input 2]],Table_PI[[#This Row],[Input 3]],Table_PI[[#This Row],[Input 4]],'Customer Information'!$AR$12,200,ROW()),\"\"),\"\")","v":""},{"$f":"IFERROR(IF(MeasureCalc(Table_PI[[#This Row],[Hide:\nFormula Name]],Table_SummaryPI[[#This Row],[Quantity]],Table_PI[[#This Row],[List 1]],Table_PI[[#This Row],[List 2]],Table_PI[[#This Row],[List 3]],Table_PI[[#This Row],[Size]],Table_PI[[#This Row],[Input 1]],Table_PI[[#This Row],[Input 2]],Table_PI[[#This Row],[Input 3]],Table_PI[[#This Row],[Input 4]],'Customer Information'!$AR$12,201,ROW())<>\"No Rebate\",MeasureCalc(Table_PI[[#This Row],[Hide:\nFormula Name]],Table_SummaryPI[[#This Row],[Quantity]],Table_PI[[#This Row],[List 1]],Table_PI[[#This Row],[List 2]],Table_PI[[#This Row],[List 3]],Table_PI[[#This Row],[Size]],Table_PI[[#This Row],[Input 1]],Table_PI[[#This Row],[Input 2]],Table_PI[[#This Row],[Input 3]],Table_PI[[#This Row],[Input 4]],'Customer Information'!$AR$12,201,ROW()),\"\"),\"\")","v":""}]
[{"$f":"Table_PI[[#This Row],[Line No.]]","v":""},{"$f":"IF(Table_SummaryPI[[#This Row],[MeassureCategory]]<>\"\",CONCATENATE(Table_SummaryPI[[#This Row],[MeassureCategory]],  \" - \", Table_SummaryPI[[#This Row],[ProposedMeasureCategory]],  \" - \", TEXT(Table_SummaryPI[[#This Row],[Size]],\"#,##0.00\"),\" \",Table_SummaryPI[[#This Row],[SizeUnit]]),\"\")","v":""},{"$f":"SUBSTITUTE(Table_PI[[#This Row],[Measure]],\"     \",\"\",1)","v":""},{"$f":"IF(Table_PI[[#This Row],[List 1]]<>\"\",Table_PI[[#This Row],[List 1]],\"\")","v":""},{"$f":"IF(Table_PI[[#This Row],[List 2]]<>\"\",Table_PI[[#This Row],[List 2]],\"\")","v":""},{"$f":"IF(Table_PI[[#This Row],[List 3]]<>\"\",Table_PI[[#This Row],[List 3]],\"\")","v":""},{"$f":"IF(Table_PI[[#This Row],[Manufacturer]]=\"\",\"\",Table_PI[[#This Row],[Manufacturer]])","v":""},{"$f":"IF(Table_PI[[#This Row],[Model Number]]=\"\",\"\",Table_PI[[#This Row],[Model Number]])","v":""},{"$f":"IF(Table_PI[[#This Row],[Serial Number(s)]]=\"\",\"\",Table_PI[[#This Row],[Serial Number(s)]])","v":""},null,{"$f":"IF(Table_PI[[#This Row],[Size]]=\"\",\"\",Table_PI[[#This Row],[Size]])","v":""},null,{"$f":"IFERROR(IF(AND(MeasureCalc(Table_PI[[#This Row],[Hide:\nFormula Name]],Table_SummaryPI[[#This Row],[Quantity]],Table_PI[[#This Row],[List 1]],Table_PI[[#This Row],[List 2]],Table_PI[[#This Row],[List 3]],Table_PI[[#This Row],[Size]],Table_PI[[#This Row],[Input 1]],Table_PI[[#This Row],[Input 2]],Table_PI[[#This Row],[Input 3]],Table_PI[[#This Row],[Input 4]],'Customer Information'!$AR$12,100,ROW())<>0,MeasureCalc(Table_PI[[#This Row],[Hide:\nFormula Name]],Table_SummaryPI[[#This Row],[Quantity]],Table_PI[[#This Row],[List 1]],Table_PI[[#This Row],[List 2]],Table_PI[[#This Row],[List 3]],Table_PI[[#This Row],[Size]],Table_PI[[#This Row],[Input 1]],Table_PI[[#This Row],[Input 2]],Table_PI[[#This Row],[Input 3]],Table_PI[[#This Row],[Input 4]],'Customer Information'!$AR$12,100,ROW())<>\"No Rebate\"),MeasureCalc(Table_PI[[#This Row],[Hide:\nFormula Name]],Table_SummaryPI[[#This Row],[Quantity]],Table_PI[[#This Row],[List 1]],Table_PI[[#This Row],[List 2]],Table_PI[[#This Row],[List 3]],Table_PI[[#This Row],[Size]],Table_PI[[#This Row],[Input 1]],Table_PI[[#This Row],[Input 2]],Table_PI[[#This Row],[Input 3]],Table_PI[[#This Row],[Input 4]],'Customer Information'!$AR$12,100,ROW()),\"\"),\"\")","v":""},{"$f":"IF(Table_PI[[#This Row],[Input 1]]<>\"\",Table_PI[[#This Row],[Input 1]],\"\")","v":""},null,{"$f":"IFERROR(IF(AND(MeasureCalc(Table_PI[[#This Row],[Hide:\nFormula Name]],Table_SummaryPI[[#This Row],[Quantity]],Table_PI[[#This Row],[List 1]],Table_PI[[#This Row],[List 2]],Table_PI[[#This Row],[List 3]],Table_PI[[#This Row],[Size]],Table_PI[[#This Row],[Input 1]],Table_PI[[#This Row],[Input 2]],Table_PI[[#This Row],[Input 3]],Table_PI[[#This Row],[Input 4]],'Customer Information'!$AR$12,101,ROW())<>0,MeasureCalc(Table_PI[[#This Row],[Hide:\nFormula Name]],Table_SummaryPI[[#This Row],[Quantity]],Table_PI[[#This Row],[List 1]],Table_PI[[#This Row],[List 2]],Table_PI[[#This Row],[List 3]],Table_PI[[#This Row],[Size]],Table_PI[[#This Row],[Input 1]],Table_PI[[#This Row],[Input 2]],Table_PI[[#This Row],[Input 3]],Table_PI[[#This Row],[Input 4]],'Customer Information'!$AR$12,101,ROW())<>\"No Rebate\"),MeasureCalc(Table_PI[[#This Row],[Hide:\nFormula Name]],Table_SummaryPI[[#This Row],[Quantity]],Table_PI[[#This Row],[List 1]],Table_PI[[#This Row],[List 2]],Table_PI[[#This Row],[List 3]],Table_PI[[#This Row],[Size]],Table_PI[[#This Row],[Input 1]],Table_PI[[#This Row],[Input 2]],Table_PI[[#This Row],[Input 3]],Table_PI[[#This Row],[Input 4]],'Customer Information'!$AR$12,101,ROW()),\"\"),\"\")","v":""},{"$f":"IF(Table_PI[[#This Row],[Input 2]]<>\"\",Table_PI[[#This Row],[Input 2]],\"\")","v":""},null,{"$f":"IFERROR(IF(AND(MeasureCalc(Table_PI[[#This Row],[Hide:\nFormula Name]],Table_SummaryPI[[#This Row],[Quantity]],Table_PI[[#This Row],[List 1]],Table_PI[[#This Row],[List 2]],Table_PI[[#This Row],[List 3]],Table_PI[[#This Row],[Size]],Table_PI[[#This Row],[Input 1]],Table_PI[[#This Row],[Input 2]],Table_PI[[#This Row],[Input 3]],Table_PI[[#This Row],[Input 4]],'Customer Information'!$AR$12,102,ROW())<>0,MeasureCalc(Table_PI[[#This Row],[Hide:\nFormula Name]],Table_SummaryPI[[#This Row],[Quantity]],Table_PI[[#This Row],[List 1]],Table_PI[[#This Row],[List 2]],Table_PI[[#This Row],[List 3]],Table_PI[[#This Row],[Size]],Table_PI[[#This Row],[Input 1]],Table_PI[[#This Row],[Input 2]],Table_PI[[#This Row],[Input 3]],Table_PI[[#This Row],[Input 4]],'Customer Information'!$AR$12,102,ROW())<>\"No Rebate\"),MeasureCalc(Table_PI[[#This Row],[Hide:\nFormula Name]],Table_SummaryPI[[#This Row],[Quantity]],Table_PI[[#This Row],[List 1]],Table_PI[[#This Row],[List 2]],Table_PI[[#This Row],[List 3]],Table_PI[[#This Row],[Size]],Table_PI[[#This Row],[Input 1]],Table_PI[[#This Row],[Input 2]],Table_PI[[#This Row],[Input 3]],Table_PI[[#This Row],[Input 4]],'Customer Information'!$AR$12,102,ROW()),\"\"),\"\")","v":""},{"$f":"IF(Table_PI[[#This Row],[Input 3]]<>\"\",Table_PI[[#This Row],[Input 3]],\"\")","v":""},null,{"$f":"IFERROR(IF(AND(MeasureCalc(Table_PI[[#This Row],[Hide:\nFormula Name]],Table_SummaryPI[[#This Row],[Quantity]],Table_PI[[#This Row],[List 1]],Table_PI[[#This Row],[List 2]],Table_PI[[#This Row],[List 3]],Table_PI[[#This Row],[Size]],Table_PI[[#This Row],[Input 1]],Table_PI[[#This Row],[Input 2]],Table_PI[[#This Row],[Input 3]],Table_PI[[#This Row],[Input 4]],'Customer Information'!$AR$12,103,ROW())<>0,MeasureCalc(Table_PI[[#This Row],[Hide:\nFormula Name]],Table_SummaryPI[[#This Row],[Quantity]],Table_PI[[#This Row],[List 1]],Table_PI[[#This Row],[List 2]],Table_PI[[#This Row],[List 3]],Table_PI[[#This Row],[Size]],Table_PI[[#This Row],[Input 1]],Table_PI[[#This Row],[Input 2]],Table_PI[[#This Row],[Input 3]],Table_PI[[#This Row],[Input 4]],'Customer Information'!$AR$12,103,ROW())<>\"No Rebate\"),MeasureCalc(Table_PI[[#This Row],[Hide:\nFormula Name]],Table_SummaryPI[[#This Row],[Quantity]],Table_PI[[#This Row],[List 1]],Table_PI[[#This Row],[List 2]],Table_PI[[#This Row],[List 3]],Table_PI[[#This Row],[Size]],Table_PI[[#This Row],[Input 1]],Table_PI[[#This Row],[Input 2]],Table_PI[[#This Row],[Input 3]],Table_PI[[#This Row],[Input 4]],'Customer Information'!$AR$12,103,ROW()),\"\"),\"\")","v":""},{"$f":"IF(Table_PI[[#This Row],[Input 4]]<>\"\",Table_PI[[#This Row],[Input 4]],\"\")","v":""},{"$f":"IF(Table_PI[[#This Row],[Quantity]]=\"\",\"\",Table_PI[[#This Row],[Quantity]])","v":""},{"$f":"IF(Table_PI[[#This Row],[Notes]]=\"\",\"\",Table_PI[[#This Row],[Notes]])","v":""},{"$f":"IF(OR(Table_PI[[#This Row],[Hide:\nBaseline kWh]]=\"\",Table_PI[[#This Row],[Hide:\nBaseline kWh]]=0),\"\",Table_PI[[#This Row],[Hide:\nBaseline kWh]])","v":""},{"$f":"IF(OR(Table_PI[[#This Row],[Hide:\nBaseline kW]]=\"\",Table_PI[[#This Row],[Hide:\nBaseline kW]]=0),\"\",Table_PI[[#This Row],[Hide:\nBaseline kW]])","v":""},{"$f":"IF(OR(Table_PI[[#This Row],[Hide:\nProposed kWh]]=\"\",Table_PI[[#This Row],[Hide:\nProposed kWh]]=0),\"\",Table_PI[[#This Row],[Hide:\nProposed kWh]])","v":""},{"$f":"IF(OR(Table_PI[[#This Row],[Hide:\nProposed kW]]=\"\",Table_PI[[#This Row],[Hide:\nProposed kW]]=0),\"\",Table_PI[[#This Row],[Hide:\nProposed kW]])","v":""},{"$f":"IF(OR(Table_PI[[#This Row],[Rebate]]=\"\",Table_PI[[#This Row],[Rebate]]=0),\"\",Table_PI[[#This Row],[Rebate]])","v":""},{"$f":"IF(OR(Table_PI[[#This Row],[Hide:\nIncremental Cost]]=\"\",Table_PI[[#This Row],[Hide:\nIncremental Cost]]=0),\"\",Table_PI[[#This Row],[Hide:\nIncremental Cost]])","v":""},{"$f":"IFERROR(IF(Table_SummaryPI[[#This Row],[kWhSavings]]=\"\",\"\",ROUND(Table_SummaryPI[[#This Row],[kWhSavings]]/$AG$401*'Customer Information'!$BC$17,2)),0)","v":""},{"$f":"IF(OR(Table_PI[[#This Row],[Annual kWh]]=\"\",Table_PI[[#This Row],[Annual kWh]]=0),\"\",Table_PI[[#This Row],[Annual kWh]])","v":""},{"$f":"IF(OR(Table_PI[[#This Row],[Peak kW]]=\"\",Table_PI[[#This Row],[Peak kW]]=0),\"\",Table_PI[[#This Row],[Peak kW]])","v":""},{"$f":"IFERROR(IF(Table_SummaryPI[[#This Row],[kWhSavings]]=\"\",\"\",$AU$9*Table_SummaryPI[[#This Row],[kWhSavings]]),0)","v":""},{"$f":"IFERROR(IF(Table_SummaryPI[[#This Row],[kWhSavings]]=\"\",\"\",$AU$14*Table_SummaryPI[[#This Row],[kWhSavings]]),0)","v":""},{"$f":"IFERROR(IF(Table_SummaryPI[[#This Row],[kWhSavings]]=\"\",\"\",$AU$18*Table_SummaryPI[[#This Row],[kWhSavings]]),0)","v":""},{"$f":"IFERROR(IF(Table_SummaryPI[[#This Row],[kWhSavings]]=\"\",\"\",$AU$22*Table_SummaryPI[[#This Row],[kWhSavings]]),0)","v":""},{"$f":"IFERROR(IF(MeasureCalc(Table_PI[[#This Row],[Hide:\nFormula Name]],Table_SummaryPI[[#This Row],[Quantity]],Table_PI[[#This Row],[List 1]],Table_PI[[#This Row],[List 2]],Table_PI[[#This Row],[List 3]],Table_PI[[#This Row],[Size]],Table_PI[[#This Row],[Input 1]],Table_PI[[#This Row],[Input 2]],Table_PI[[#This Row],[Input 3]],Table_PI[[#This Row],[Input 4]],'Customer Information'!$AR$12,200,ROW())<>\"No Rebate\",MeasureCalc(Table_PI[[#This Row],[Hide:\nFormula Name]],Table_SummaryPI[[#This Row],[Quantity]],Table_PI[[#This Row],[List 1]],Table_PI[[#This Row],[List 2]],Table_PI[[#This Row],[List 3]],Table_PI[[#This Row],[Size]],Table_PI[[#This Row],[Input 1]],Table_PI[[#This Row],[Input 2]],Table_PI[[#This Row],[Input 3]],Table_PI[[#This Row],[Input 4]],'Customer Information'!$AR$12,200,ROW()),\"\"),\"\")","v":""},{"$f":"IFERROR(IF(MeasureCalc(Table_PI[[#This Row],[Hide:\nFormula Name]],Table_SummaryPI[[#This Row],[Quantity]],Table_PI[[#This Row],[List 1]],Table_PI[[#This Row],[List 2]],Table_PI[[#This Row],[List 3]],Table_PI[[#This Row],[Size]],Table_PI[[#This Row],[Input 1]],Table_PI[[#This Row],[Input 2]],Table_PI[[#This Row],[Input 3]],Table_PI[[#This Row],[Input 4]],'Customer Information'!$AR$12,201,ROW())<>\"No Rebate\",MeasureCalc(Table_PI[[#This Row],[Hide:\nFormula Name]],Table_SummaryPI[[#This Row],[Quantity]],Table_PI[[#This Row],[List 1]],Table_PI[[#This Row],[List 2]],Table_PI[[#This Row],[List 3]],Table_PI[[#This Row],[Size]],Table_PI[[#This Row],[Input 1]],Table_PI[[#This Row],[Input 2]],Table_PI[[#This Row],[Input 3]],Table_PI[[#This Row],[Input 4]],'Customer Information'!$AR$12,201,ROW()),\"\"),\"\")","v":""}]
[{"$f":"Table_PI[[#This Row],[Line No.]]","v":""},{"$f":"IF(Table_SummaryPI[[#This Row],[MeassureCategory]]<>\"\",CONCATENATE(Table_SummaryPI[[#This Row],[MeassureCategory]],  \" - \", Table_SummaryPI[[#This Row],[ProposedMeasureCategory]],  \" - \", TEXT(Table_SummaryPI[[#This Row],[Size]],\"#,##0.00\"),\" \",Table_SummaryPI[[#This Row],[SizeUnit]]),\"\")","v":""},{"$f":"SUBSTITUTE(Table_PI[[#This Row],[Measure]],\"     \",\"\",1)","v":""},{"$f":"IF(Table_PI[[#This Row],[List 1]]<>\"\",Table_PI[[#This Row],[List 1]],\"\")","v":""},{"$f":"IF(Table_PI[[#This Row],[List 2]]<>\"\",Table_PI[[#This Row],[List 2]],\"\")","v":""},{"$f":"IF(Table_PI[[#This Row],[List 3]]<>\"\",Table_PI[[#This Row],[List 3]],\"\")","v":""},{"$f":"IF(Table_PI[[#This Row],[Manufacturer]]=\"\",\"\",Table_PI[[#This Row],[Manufacturer]])","v":""},{"$f":"IF(Table_PI[[#This Row],[Model Number]]=\"\",\"\",Table_PI[[#This Row],[Model Number]])","v":""},{"$f":"IF(Table_PI[[#This Row],[Serial Number(s)]]=\"\",\"\",Table_PI[[#This Row],[Serial Number(s)]])","v":""},null,{"$f":"IF(Table_PI[[#This Row],[Size]]=\"\",\"\",Table_PI[[#This Row],[Size]])","v":""},null,{"$f":"IFERROR(IF(AND(MeasureCalc(Table_PI[[#This Row],[Hide:\nFormula Name]],Table_SummaryPI[[#This Row],[Quantity]],Table_PI[[#This Row],[List 1]],Table_PI[[#This Row],[List 2]],Table_PI[[#This Row],[List 3]],Table_PI[[#This Row],[Size]],Table_PI[[#This Row],[Input 1]],Table_PI[[#This Row],[Input 2]],Table_PI[[#This Row],[Input 3]],Table_PI[[#This Row],[Input 4]],'Customer Information'!$AR$12,100,ROW())<>0,MeasureCalc(Table_PI[[#This Row],[Hide:\nFormula Name]],Table_SummaryPI[[#This Row],[Quantity]],Table_PI[[#This Row],[List 1]],Table_PI[[#This Row],[List 2]],Table_PI[[#This Row],[List 3]],Table_PI[[#This Row],[Size]],Table_PI[[#This Row],[Input 1]],Table_PI[[#This Row],[Input 2]],Table_PI[[#This Row],[Input 3]],Table_PI[[#This Row],[Input 4]],'Customer Information'!$AR$12,100,ROW())<>\"No Rebate\"),MeasureCalc(Table_PI[[#This Row],[Hide:\nFormula Name]],Table_SummaryPI[[#This Row],[Quantity]],Table_PI[[#This Row],[List 1]],Table_PI[[#This Row],[List 2]],Table_PI[[#This Row],[List 3]],Table_PI[[#This Row],[Size]],Table_PI[[#This Row],[Input 1]],Table_PI[[#This Row],[Input 2]],Table_PI[[#This Row],[Input 3]],Table_PI[[#This Row],[Input 4]],'Customer Information'!$AR$12,100,ROW()),\"\"),\"\")","v":""},{"$f":"IF(Table_PI[[#This Row],[Input 1]]<>\"\",Table_PI[[#This Row],[Input 1]],\"\")","v":""},null,{"$f":"IFERROR(IF(AND(MeasureCalc(Table_PI[[#This Row],[Hide:\nFormula Name]],Table_SummaryPI[[#This Row],[Quantity]],Table_PI[[#This Row],[List 1]],Table_PI[[#This Row],[List 2]],Table_PI[[#This Row],[List 3]],Table_PI[[#This Row],[Size]],Table_PI[[#This Row],[Input 1]],Table_PI[[#This Row],[Input 2]],Table_PI[[#This Row],[Input 3]],Table_PI[[#This Row],[Input 4]],'Customer Information'!$AR$12,101,ROW())<>0,MeasureCalc(Table_PI[[#This Row],[Hide:\nFormula Name]],Table_SummaryPI[[#This Row],[Quantity]],Table_PI[[#This Row],[List 1]],Table_PI[[#This Row],[List 2]],Table_PI[[#This Row],[List 3]],Table_PI[[#This Row],[Size]],Table_PI[[#This Row],[Input 1]],Table_PI[[#This Row],[Input 2]],Table_PI[[#This Row],[Input 3]],Table_PI[[#This Row],[Input 4]],'Customer Information'!$AR$12,101,ROW())<>\"No Rebate\"),MeasureCalc(Table_PI[[#This Row],[Hide:\nFormula Name]],Table_SummaryPI[[#This Row],[Quantity]],Table_PI[[#This Row],[List 1]],Table_PI[[#This Row],[List 2]],Table_PI[[#This Row],[List 3]],Table_PI[[#This Row],[Size]],Table_PI[[#This Row],[Input 1]],Table_PI[[#This Row],[Input 2]],Table_PI[[#This Row],[Input 3]],Table_PI[[#This Row],[Input 4]],'Customer Information'!$AR$12,101,ROW()),\"\"),\"\")","v":""},{"$f":"IF(Table_PI[[#This Row],[Input 2]]<>\"\",Table_PI[[#This Row],[Input 2]],\"\")","v":""},null,{"$f":"IFERROR(IF(AND(MeasureCalc(Table_PI[[#This Row],[Hide:\nFormula Name]],Table_SummaryPI[[#This Row],[Quantity]],Table_PI[[#This Row],[List 1]],Table_PI[[#This Row],[List 2]],Table_PI[[#This Row],[List 3]],Table_PI[[#This Row],[Size]],Table_PI[[#This Row],[Input 1]],Table_PI[[#This Row],[Input 2]],Table_PI[[#This Row],[Input 3]],Table_PI[[#This Row],[Input 4]],'Customer Information'!$AR$12,102,ROW())<>0,MeasureCalc(Table_PI[[#This Row],[Hide:\nFormula Name]],Table_SummaryPI[[#This Row],[Quantity]],Table_PI[[#This Row],[List 1]],Table_PI[[#This Row],[List 2]],Table_PI[[#This Row],[List 3]],Table_PI[[#This Row],[Size]],Table_PI[[#This Row],[Input 1]],Table_PI[[#This Row],[Input 2]],Table_PI[[#This Row],[Input 3]],Table_PI[[#This Row],[Input 4]],'Customer Information'!$AR$12,102,ROW())<>\"No Rebate\"),MeasureCalc(Table_PI[[#This Row],[Hide:\nFormula Name]],Table_SummaryPI[[#This Row],[Quantity]],Table_PI[[#This Row],[List 1]],Table_PI[[#This Row],[List 2]],Table_PI[[#This Row],[List 3]],Table_PI[[#This Row],[Size]],Table_PI[[#This Row],[Input 1]],Table_PI[[#This Row],[Input 2]],Table_PI[[#This Row],[Input 3]],Table_PI[[#This Row],[Input 4]],'Customer Information'!$AR$12,102,ROW()),\"\"),\"\")","v":""},{"$f":"IF(Table_PI[[#This Row],[Input 3]]<>\"\",Table_PI[[#This Row],[Input 3]],\"\")","v":""},null,{"$f":"IFERROR(IF(AND(MeasureCalc(Table_PI[[#This Row],[Hide:\nFormula Name]],Table_SummaryPI[[#This Row],[Quantity]],Table_PI[[#This Row],[List 1]],Table_PI[[#This Row],[List 2]],Table_PI[[#This Row],[List 3]],Table_PI[[#This Row],[Size]],Table_PI[[#This Row],[Input 1]],Table_PI[[#This Row],[Input 2]],Table_PI[[#This Row],[Input 3]],Table_PI[[#This Row],[Input 4]],'Customer Information'!$AR$12,103,ROW())<>0,MeasureCalc(Table_PI[[#This Row],[Hide:\nFormula Name]],Table_SummaryPI[[#This Row],[Quantity]],Table_PI[[#This Row],[List 1]],Table_PI[[#This Row],[List 2]],Table_PI[[#This Row],[List 3]],Table_PI[[#This Row],[Size]],Table_PI[[#This Row],[Input 1]],Table_PI[[#This Row],[Input 2]],Table_PI[[#This Row],[Input 3]],Table_PI[[#This Row],[Input 4]],'Customer Information'!$AR$12,103,ROW())<>\"No Rebate\"),MeasureCalc(Table_PI[[#This Row],[Hide:\nFormula Name]],Table_SummaryPI[[#This Row],[Quantity]],Table_PI[[#This Row],[List 1]],Table_PI[[#This Row],[List 2]],Table_PI[[#This Row],[List 3]],Table_PI[[#This Row],[Size]],Table_PI[[#This Row],[Input 1]],Table_PI[[#This Row],[Input 2]],Table_PI[[#This Row],[Input 3]],Table_PI[[#This Row],[Input 4]],'Customer Information'!$AR$12,103,ROW()),\"\"),\"\")","v":""},{"$f":"IF(Table_PI[[#This Row],[Input 4]]<>\"\",Table_PI[[#This Row],[Input 4]],\"\")","v":""},{"$f":"IF(Table_PI[[#This Row],[Quantity]]=\"\",\"\",Table_PI[[#This Row],[Quantity]])","v":""},{"$f":"IF(Table_PI[[#This Row],[Notes]]=\"\",\"\",Table_PI[[#This Row],[Notes]])","v":""},{"$f":"IF(OR(Table_PI[[#This Row],[Hide:\nBaseline kWh]]=\"\",Table_PI[[#This Row],[Hide:\nBaseline kWh]]=0),\"\",Table_PI[[#This Row],[Hide:\nBaseline kWh]])","v":""},{"$f":"IF(OR(Table_PI[[#This Row],[Hide:\nBaseline kW]]=\"\",Table_PI[[#This Row],[Hide:\nBaseline kW]]=0),\"\",Table_PI[[#This Row],[Hide:\nBaseline kW]])","v":""},{"$f":"IF(OR(Table_PI[[#This Row],[Hide:\nProposed kWh]]=\"\",Table_PI[[#This Row],[Hide:\nProposed kWh]]=0),\"\",Table_PI[[#This Row],[Hide:\nProposed kWh]])","v":""},{"$f":"IF(OR(Table_PI[[#This Row],[Hide:\nProposed kW]]=\"\",Table_PI[[#This Row],[Hide:\nProposed kW]]=0),\"\",Table_PI[[#This Row],[Hide:\nProposed kW]])","v":""},{"$f":"IF(OR(Table_PI[[#This Row],[Rebate]]=\"\",Table_PI[[#This Row],[Rebate]]=0),\"\",Table_PI[[#This Row],[Rebate]])","v":""},{"$f":"IF(OR(Table_PI[[#This Row],[Hide:\nIncremental Cost]]=\"\",Table_PI[[#This Row],[Hide:\nIncremental Cost]]=0),\"\",Table_PI[[#This Row],[Hide:\nIncremental Cost]])","v":""},{"$f":"IFERROR(IF(Table_SummaryPI[[#This Row],[kWhSavings]]=\"\",\"\",ROUND(Table_SummaryPI[[#This Row],[kWhSavings]]/$AG$401*'Customer Information'!$BC$17,2)),0)","v":""},{"$f":"IF(OR(Table_PI[[#This Row],[Annual kWh]]=\"\",Table_PI[[#This Row],[Annual kWh]]=0),\"\",Table_PI[[#This Row],[Annual kWh]])","v":""},{"$f":"IF(OR(Table_PI[[#This Row],[Peak kW]]=\"\",Table_PI[[#This Row],[Peak kW]]=0),\"\",Table_PI[[#This Row],[Peak kW]])","v":""},{"$f":"IFERROR(IF(Table_SummaryPI[[#This Row],[kWhSavings]]=\"\",\"\",$AU$9*Table_SummaryPI[[#This Row],[kWhSavings]]),0)","v":""},{"$f":"IFERROR(IF(Table_SummaryPI[[#This Row],[kWhSavings]]=\"\",\"\",$AU$14*Table_SummaryPI[[#This Row],[kWhSavings]]),0)","v":""},{"$f":"IFERROR(IF(Table_SummaryPI[[#This Row],[kWhSavings]]=\"\",\"\",$AU$18*Table_SummaryPI[[#This Row],[kWhSavings]]),0)","v":""},{"$f":"IFERROR(IF(Table_SummaryPI[[#This Row],[kWhSavings]]=\"\",\"\",$AU$22*Table_SummaryPI[[#This Row],[kWhSavings]]),0)","v":""},{"$f":"IFERROR(IF(MeasureCalc(Table_PI[[#This Row],[Hide:\nFormula Name]],Table_SummaryPI[[#This Row],[Quantity]],Table_PI[[#This Row],[List 1]],Table_PI[[#This Row],[List 2]],Table_PI[[#This Row],[List 3]],Table_PI[[#This Row],[Size]],Table_PI[[#This Row],[Input 1]],Table_PI[[#This Row],[Input 2]],Table_PI[[#This Row],[Input 3]],Table_PI[[#This Row],[Input 4]],'Customer Information'!$AR$12,200,ROW())<>\"No Rebate\",MeasureCalc(Table_PI[[#This Row],[Hide:\nFormula Name]],Table_SummaryPI[[#This Row],[Quantity]],Table_PI[[#This Row],[List 1]],Table_PI[[#This Row],[List 2]],Table_PI[[#This Row],[List 3]],Table_PI[[#This Row],[Size]],Table_PI[[#This Row],[Input 1]],Table_PI[[#This Row],[Input 2]],Table_PI[[#This Row],[Input 3]],Table_PI[[#This Row],[Input 4]],'Customer Information'!$AR$12,200,ROW()),\"\"),\"\")","v":""},{"$f":"IFERROR(IF(MeasureCalc(Table_PI[[#This Row],[Hide:\nFormula Name]],Table_SummaryPI[[#This Row],[Quantity]],Table_PI[[#This Row],[List 1]],Table_PI[[#This Row],[List 2]],Table_PI[[#This Row],[List 3]],Table_PI[[#This Row],[Size]],Table_PI[[#This Row],[Input 1]],Table_PI[[#This Row],[Input 2]],Table_PI[[#This Row],[Input 3]],Table_PI[[#This Row],[Input 4]],'Customer Information'!$AR$12,201,ROW())<>\"No Rebate\",MeasureCalc(Table_PI[[#This Row],[Hide:\nFormula Name]],Table_SummaryPI[[#This Row],[Quantity]],Table_PI[[#This Row],[List 1]],Table_PI[[#This Row],[List 2]],Table_PI[[#This Row],[List 3]],Table_PI[[#This Row],[Size]],Table_PI[[#This Row],[Input 1]],Table_PI[[#This Row],[Input 2]],Table_PI[[#This Row],[Input 3]],Table_PI[[#This Row],[Input 4]],'Customer Information'!$AR$12,201,ROW()),\"\"),\"\")","v":""}]
[{"$f":"Table_PI[[#This Row],[Line No.]]","v":""},{"$f":"IF(Table_SummaryPI[[#This Row],[MeassureCategory]]<>\"\",CONCATENATE(Table_SummaryPI[[#This Row],[MeassureCategory]],  \" - \", Table_SummaryPI[[#This Row],[ProposedMeasureCategory]],  \" - \", TEXT(Table_SummaryPI[[#This Row],[Size]],\"#,##0.00\"),\" \",Table_SummaryPI[[#This Row],[SizeUnit]]),\"\")","v":""},{"$f":"SUBSTITUTE(Table_PI[[#This Row],[Measure]],\"     \",\"\",1)","v":""},{"$f":"IF(Table_PI[[#This Row],[List 1]]<>\"\",Table_PI[[#This Row],[List 1]],\"\")","v":""},{"$f":"IF(Table_PI[[#This Row],[List 2]]<>\"\",Table_PI[[#This Row],[List 2]],\"\")","v":""},{"$f":"IF(Table_PI[[#This Row],[List 3]]<>\"\",Table_PI[[#This Row],[List 3]],\"\")","v":""},{"$f":"IF(Table_PI[[#This Row],[Manufacturer]]=\"\",\"\",Table_PI[[#This Row],[Manufacturer]])","v":""},{"$f":"IF(Table_PI[[#This Row],[Model Number]]=\"\",\"\",Table_PI[[#This Row],[Model Number]])","v":""},{"$f":"IF(Table_PI[[#This Row],[Serial Number(s)]]=\"\",\"\",Table_PI[[#This Row],[Serial Number(s)]])","v":""},null,{"$f":"IF(Table_PI[[#This Row],[Size]]=\"\",\"\",Table_PI[[#This Row],[Size]])","v":""},null,{"$f":"IFERROR(IF(AND(MeasureCalc(Table_PI[[#This Row],[Hide:\nFormula Name]],Table_SummaryPI[[#This Row],[Quantity]],Table_PI[[#This Row],[List 1]],Table_PI[[#This Row],[List 2]],Table_PI[[#This Row],[List 3]],Table_PI[[#This Row],[Size]],Table_PI[[#This Row],[Input 1]],Table_PI[[#This Row],[Input 2]],Table_PI[[#This Row],[Input 3]],Table_PI[[#This Row],[Input 4]],'Customer Information'!$AR$12,100,ROW())<>0,MeasureCalc(Table_PI[[#This Row],[Hide:\nFormula Name]],Table_SummaryPI[[#This Row],[Quantity]],Table_PI[[#This Row],[List 1]],Table_PI[[#This Row],[List 2]],Table_PI[[#This Row],[List 3]],Table_PI[[#This Row],[Size]],Table_PI[[#This Row],[Input 1]],Table_PI[[#This Row],[Input 2]],Table_PI[[#This Row],[Input 3]],Table_PI[[#This Row],[Input 4]],'Customer Information'!$AR$12,100,ROW())<>\"No Rebate\"),MeasureCalc(Table_PI[[#This Row],[Hide:\nFormula Name]],Table_SummaryPI[[#This Row],[Quantity]],Table_PI[[#This Row],[List 1]],Table_PI[[#This Row],[List 2]],Table_PI[[#This Row],[List 3]],Table_PI[[#This Row],[Size]],Table_PI[[#This Row],[Input 1]],Table_PI[[#This Row],[Input 2]],Table_PI[[#This Row],[Input 3]],Table_PI[[#This Row],[Input 4]],'Customer Information'!$AR$12,100,ROW()),\"\"),\"\")","v":""},{"$f":"IF(Table_PI[[#This Row],[Input 1]]<>\"\",Table_PI[[#This Row],[Input 1]],\"\")","v":""},null,{"$f":"IFERROR(IF(AND(MeasureCalc(Table_PI[[#This Row],[Hide:\nFormula Name]],Table_SummaryPI[[#This Row],[Quantity]],Table_PI[[#This Row],[List 1]],Table_PI[[#This Row],[List 2]],Table_PI[[#This Row],[List 3]],Table_PI[[#This Row],[Size]],Table_PI[[#This Row],[Input 1]],Table_PI[[#This Row],[Input 2]],Table_PI[[#This Row],[Input 3]],Table_PI[[#This Row],[Input 4]],'Customer Information'!$AR$12,101,ROW())<>0,MeasureCalc(Table_PI[[#This Row],[Hide:\nFormula Name]],Table_SummaryPI[[#This Row],[Quantity]],Table_PI[[#This Row],[List 1]],Table_PI[[#This Row],[List 2]],Table_PI[[#This Row],[List 3]],Table_PI[[#This Row],[Size]],Table_PI[[#This Row],[Input 1]],Table_PI[[#This Row],[Input 2]],Table_PI[[#This Row],[Input 3]],Table_PI[[#This Row],[Input 4]],'Customer Information'!$AR$12,101,ROW())<>\"No Rebate\"),MeasureCalc(Table_PI[[#This Row],[Hide:\nFormula Name]],Table_SummaryPI[[#This Row],[Quantity]],Table_PI[[#This Row],[List 1]],Table_PI[[#This Row],[List 2]],Table_PI[[#This Row],[List 3]],Table_PI[[#This Row],[Size]],Table_PI[[#This Row],[Input 1]],Table_PI[[#This Row],[Input 2]],Table_PI[[#This Row],[Input 3]],Table_PI[[#This Row],[Input 4]],'Customer Information'!$AR$12,101,ROW()),\"\"),\"\")","v":""},{"$f":"IF(Table_PI[[#This Row],[Input 2]]<>\"\",Table_PI[[#This Row],[Input 2]],\"\")","v":""},null,{"$f":"IFERROR(IF(AND(MeasureCalc(Table_PI[[#This Row],[Hide:\nFormula Name]],Table_SummaryPI[[#This Row],[Quantity]],Table_PI[[#This Row],[List 1]],Table_PI[[#This Row],[List 2]],Table_PI[[#This Row],[List 3]],Table_PI[[#This Row],[Size]],Table_PI[[#This Row],[Input 1]],Table_PI[[#This Row],[Input 2]],Table_PI[[#This Row],[Input 3]],Table_PI[[#This Row],[Input 4]],'Customer Information'!$AR$12,102,ROW())<>0,MeasureCalc(Table_PI[[#This Row],[Hide:\nFormula Name]],Table_SummaryPI[[#This Row],[Quantity]],Table_PI[[#This Row],[List 1]],Table_PI[[#This Row],[List 2]],Table_PI[[#This Row],[List 3]],Table_PI[[#This Row],[Size]],Table_PI[[#This Row],[Input 1]],Table_PI[[#This Row],[Input 2]],Table_PI[[#This Row],[Input 3]],Table_PI[[#This Row],[Input 4]],'Customer Information'!$AR$12,102,ROW())<>\"No Rebate\"),MeasureCalc(Table_PI[[#This Row],[Hide:\nFormula Name]],Table_SummaryPI[[#This Row],[Quantity]],Table_PI[[#This Row],[List 1]],Table_PI[[#This Row],[List 2]],Table_PI[[#This Row],[List 3]],Table_PI[[#This Row],[Size]],Table_PI[[#This Row],[Input 1]],Table_PI[[#This Row],[Input 2]],Table_PI[[#This Row],[Input 3]],Table_PI[[#This Row],[Input 4]],'Customer Information'!$AR$12,102,ROW()),\"\"),\"\")","v":""},{"$f":"IF(Table_PI[[#This Row],[Input 3]]<>\"\",Table_PI[[#This Row],[Input 3]],\"\")","v":""},null,{"$f":"IFERROR(IF(AND(MeasureCalc(Table_PI[[#This Row],[Hide:\nFormula Name]],Table_SummaryPI[[#This Row],[Quantity]],Table_PI[[#This Row],[List 1]],Table_PI[[#This Row],[List 2]],Table_PI[[#This Row],[List 3]],Table_PI[[#This Row],[Size]],Table_PI[[#This Row],[Input 1]],Table_PI[[#This Row],[Input 2]],Table_PI[[#This Row],[Input 3]],Table_PI[[#This Row],[Input 4]],'Customer Information'!$AR$12,103,ROW())<>0,MeasureCalc(Table_PI[[#This Row],[Hide:\nFormula Name]],Table_SummaryPI[[#This Row],[Quantity]],Table_PI[[#This Row],[List 1]],Table_PI[[#This Row],[List 2]],Table_PI[[#This Row],[List 3]],Table_PI[[#This Row],[Size]],Table_PI[[#This Row],[Input 1]],Table_PI[[#This Row],[Input 2]],Table_PI[[#This Row],[Input 3]],Table_PI[[#This Row],[Input 4]],'Customer Information'!$AR$12,103,ROW())<>\"No Rebate\"),MeasureCalc(Table_PI[[#This Row],[Hide:\nFormula Name]],Table_SummaryPI[[#This Row],[Quantity]],Table_PI[[#This Row],[List 1]],Table_PI[[#This Row],[List 2]],Table_PI[[#This Row],[List 3]],Table_PI[[#This Row],[Size]],Table_PI[[#This Row],[Input 1]],Table_PI[[#This Row],[Input 2]],Table_PI[[#This Row],[Input 3]],Table_PI[[#This Row],[Input 4]],'Customer Information'!$AR$12,103,ROW()),\"\"),\"\")","v":""},{"$f":"IF(Table_PI[[#This Row],[Input 4]]<>\"\",Table_PI[[#This Row],[Input 4]],\"\")","v":""},{"$f":"IF(Table_PI[[#This Row],[Quantity]]=\"\",\"\",Table_PI[[#This Row],[Quantity]])","v":""},{"$f":"IF(Table_PI[[#This Row],[Notes]]=\"\",\"\",Table_PI[[#This Row],[Notes]])","v":""},{"$f":"IF(OR(Table_PI[[#This Row],[Hide:\nBaseline kWh]]=\"\",Table_PI[[#This Row],[Hide:\nBaseline kWh]]=0),\"\",Table_PI[[#This Row],[Hide:\nBaseline kWh]])","v":""},{"$f":"IF(OR(Table_PI[[#This Row],[Hide:\nBaseline kW]]=\"\",Table_PI[[#This Row],[Hide:\nBaseline kW]]=0),\"\",Table_PI[[#This Row],[Hide:\nBaseline kW]])","v":""},{"$f":"IF(OR(Table_PI[[#This Row],[Hide:\nProposed kWh]]=\"\",Table_PI[[#This Row],[Hide:\nProposed kWh]]=0),\"\",Table_PI[[#This Row],[Hide:\nProposed kWh]])","v":""},{"$f":"IF(OR(Table_PI[[#This Row],[Hide:\nProposed kW]]=\"\",Table_PI[[#This Row],[Hide:\nProposed kW]]=0),\"\",Table_PI[[#This Row],[Hide:\nProposed kW]])","v":""},{"$f":"IF(OR(Table_PI[[#This Row],[Rebate]]=\"\",Table_PI[[#This Row],[Rebate]]=0),\"\",Table_PI[[#This Row],[Rebate]])","v":""},{"$f":"IF(OR(Table_PI[[#This Row],[Hide:\nIncremental Cost]]=\"\",Table_PI[[#This Row],[Hide:\nIncremental Cost]]=0),\"\",Table_PI[[#This Row],[Hide:\nIncremental Cost]])","v":""},{"$f":"IFERROR(IF(Table_SummaryPI[[#This Row],[kWhSavings]]=\"\",\"\",ROUND(Table_SummaryPI[[#This Row],[kWhSavings]]/$AG$401*'Customer Information'!$BC$17,2)),0)","v":""},{"$f":"IF(OR(Table_PI[[#This Row],[Annual kWh]]=\"\",Table_PI[[#This Row],[Annual kWh]]=0),\"\",Table_PI[[#This Row],[Annual kWh]])","v":""},{"$f":"IF(OR(Table_PI[[#This Row],[Peak kW]]=\"\",Table_PI[[#This Row],[Peak kW]]=0),\"\",Table_PI[[#This Row],[Peak kW]])","v":""},{"$f":"IFERROR(IF(Table_SummaryPI[[#This Row],[kWhSavings]]=\"\",\"\",$AU$9*Table_SummaryPI[[#This Row],[kWhSavings]]),0)","v":""},{"$f":"IFERROR(IF(Table_SummaryPI[[#This Row],[kWhSavings]]=\"\",\"\",$AU$14*Table_SummaryPI[[#This Row],[kWhSavings]]),0)","v":""},{"$f":"IFERROR(IF(Table_SummaryPI[[#This Row],[kWhSavings]]=\"\",\"\",$AU$18*Table_SummaryPI[[#This Row],[kWhSavings]]),0)","v":""},{"$f":"IFERROR(IF(Table_SummaryPI[[#This Row],[kWhSavings]]=\"\",\"\",$AU$22*Table_SummaryPI[[#This Row],[kWhSavings]]),0)","v":""},{"$f":"IFERROR(IF(MeasureCalc(Table_PI[[#This Row],[Hide:\nFormula Name]],Table_SummaryPI[[#This Row],[Quantity]],Table_PI[[#This Row],[List 1]],Table_PI[[#This Row],[List 2]],Table_PI[[#This Row],[List 3]],Table_PI[[#This Row],[Size]],Table_PI[[#This Row],[Input 1]],Table_PI[[#This Row],[Input 2]],Table_PI[[#This Row],[Input 3]],Table_PI[[#This Row],[Input 4]],'Customer Information'!$AR$12,200,ROW())<>\"No Rebate\",MeasureCalc(Table_PI[[#This Row],[Hide:\nFormula Name]],Table_SummaryPI[[#This Row],[Quantity]],Table_PI[[#This Row],[List 1]],Table_PI[[#This Row],[List 2]],Table_PI[[#This Row],[List 3]],Table_PI[[#This Row],[Size]],Table_PI[[#This Row],[Input 1]],Table_PI[[#This Row],[Input 2]],Table_PI[[#This Row],[Input 3]],Table_PI[[#This Row],[Input 4]],'Customer Information'!$AR$12,200,ROW()),\"\"),\"\")","v":""},{"$f":"IFERROR(IF(MeasureCalc(Table_PI[[#This Row],[Hide:\nFormula Name]],Table_SummaryPI[[#This Row],[Quantity]],Table_PI[[#This Row],[List 1]],Table_PI[[#This Row],[List 2]],Table_PI[[#This Row],[List 3]],Table_PI[[#This Row],[Size]],Table_PI[[#This Row],[Input 1]],Table_PI[[#This Row],[Input 2]],Table_PI[[#This Row],[Input 3]],Table_PI[[#This Row],[Input 4]],'Customer Information'!$AR$12,201,ROW())<>\"No Rebate\",MeasureCalc(Table_PI[[#This Row],[Hide:\nFormula Name]],Table_SummaryPI[[#This Row],[Quantity]],Table_PI[[#This Row],[List 1]],Table_PI[[#This Row],[List 2]],Table_PI[[#This Row],[List 3]],Table_PI[[#This Row],[Size]],Table_PI[[#This Row],[Input 1]],Table_PI[[#This Row],[Input 2]],Table_PI[[#This Row],[Input 3]],Table_PI[[#This Row],[Input 4]],'Customer Information'!$AR$12,201,ROW()),\"\"),\"\")","v":""}]
[{"$f":"Table_PI[[#This Row],[Line No.]]","v":""},{"$f":"IF(Table_SummaryPI[[#This Row],[MeassureCategory]]<>\"\",CONCATENATE(Table_SummaryPI[[#This Row],[MeassureCategory]],  \" - \", Table_SummaryPI[[#This Row],[ProposedMeasureCategory]],  \" - \", TEXT(Table_SummaryPI[[#This Row],[Size]],\"#,##0.00\"),\" \",Table_SummaryPI[[#This Row],[SizeUnit]]),\"\")","v":""},{"$f":"SUBSTITUTE(Table_PI[[#This Row],[Measure]],\"     \",\"\",1)","v":""},{"$f":"IF(Table_PI[[#This Row],[List 1]]<>\"\",Table_PI[[#This Row],[List 1]],\"\")","v":""},{"$f":"IF(Table_PI[[#This Row],[List 2]]<>\"\",Table_PI[[#This Row],[List 2]],\"\")","v":""},{"$f":"IF(Table_PI[[#This Row],[List 3]]<>\"\",Table_PI[[#This Row],[List 3]],\"\")","v":""},{"$f":"IF(Table_PI[[#This Row],[Manufacturer]]=\"\",\"\",Table_PI[[#This Row],[Manufacturer]])","v":""},{"$f":"IF(Table_PI[[#This Row],[Model Number]]=\"\",\"\",Table_PI[[#This Row],[Model Number]])","v":""},{"$f":"IF(Table_PI[[#This Row],[Serial Number(s)]]=\"\",\"\",Table_PI[[#This Row],[Serial Number(s)]])","v":""},null,{"$f":"IF(Table_PI[[#This Row],[Size]]=\"\",\"\",Table_PI[[#This Row],[Size]])","v":""},null,{"$f":"IFERROR(IF(AND(MeasureCalc(Table_PI[[#This Row],[Hide:\nFormula Name]],Table_SummaryPI[[#This Row],[Quantity]],Table_PI[[#This Row],[List 1]],Table_PI[[#This Row],[List 2]],Table_PI[[#This Row],[List 3]],Table_PI[[#This Row],[Size]],Table_PI[[#This Row],[Input 1]],Table_PI[[#This Row],[Input 2]],Table_PI[[#This Row],[Input 3]],Table_PI[[#This Row],[Input 4]],'Customer Information'!$AR$12,100,ROW())<>0,MeasureCalc(Table_PI[[#This Row],[Hide:\nFormula Name]],Table_SummaryPI[[#This Row],[Quantity]],Table_PI[[#This Row],[List 1]],Table_PI[[#This Row],[List 2]],Table_PI[[#This Row],[List 3]],Table_PI[[#This Row],[Size]],Table_PI[[#This Row],[Input 1]],Table_PI[[#This Row],[Input 2]],Table_PI[[#This Row],[Input 3]],Table_PI[[#This Row],[Input 4]],'Customer Information'!$AR$12,100,ROW())<>\"No Rebate\"),MeasureCalc(Table_PI[[#This Row],[Hide:\nFormula Name]],Table_SummaryPI[[#This Row],[Quantity]],Table_PI[[#This Row],[List 1]],Table_PI[[#This Row],[List 2]],Table_PI[[#This Row],[List 3]],Table_PI[[#This Row],[Size]],Table_PI[[#This Row],[Input 1]],Table_PI[[#This Row],[Input 2]],Table_PI[[#This Row],[Input 3]],Table_PI[[#This Row],[Input 4]],'Customer Information'!$AR$12,100,ROW()),\"\"),\"\")","v":""},{"$f":"IF(Table_PI[[#This Row],[Input 1]]<>\"\",Table_PI[[#This Row],[Input 1]],\"\")","v":""},null,{"$f":"IFERROR(IF(AND(MeasureCalc(Table_PI[[#This Row],[Hide:\nFormula Name]],Table_SummaryPI[[#This Row],[Quantity]],Table_PI[[#This Row],[List 1]],Table_PI[[#This Row],[List 2]],Table_PI[[#This Row],[List 3]],Table_PI[[#This Row],[Size]],Table_PI[[#This Row],[Input 1]],Table_PI[[#This Row],[Input 2]],Table_PI[[#This Row],[Input 3]],Table_PI[[#This Row],[Input 4]],'Customer Information'!$AR$12,101,ROW())<>0,MeasureCalc(Table_PI[[#This Row],[Hide:\nFormula Name]],Table_SummaryPI[[#This Row],[Quantity]],Table_PI[[#This Row],[List 1]],Table_PI[[#This Row],[List 2]],Table_PI[[#This Row],[List 3]],Table_PI[[#This Row],[Size]],Table_PI[[#This Row],[Input 1]],Table_PI[[#This Row],[Input 2]],Table_PI[[#This Row],[Input 3]],Table_PI[[#This Row],[Input 4]],'Customer Information'!$AR$12,101,ROW())<>\"No Rebate\"),MeasureCalc(Table_PI[[#This Row],[Hide:\nFormula Name]],Table_SummaryPI[[#This Row],[Quantity]],Table_PI[[#This Row],[List 1]],Table_PI[[#This Row],[List 2]],Table_PI[[#This Row],[List 3]],Table_PI[[#This Row],[Size]],Table_PI[[#This Row],[Input 1]],Table_PI[[#This Row],[Input 2]],Table_PI[[#This Row],[Input 3]],Table_PI[[#This Row],[Input 4]],'Customer Information'!$AR$12,101,ROW()),\"\"),\"\")","v":""},{"$f":"IF(Table_PI[[#This Row],[Input 2]]<>\"\",Table_PI[[#This Row],[Input 2]],\"\")","v":""},null,{"$f":"IFERROR(IF(AND(MeasureCalc(Table_PI[[#This Row],[Hide:\nFormula Name]],Table_SummaryPI[[#This Row],[Quantity]],Table_PI[[#This Row],[List 1]],Table_PI[[#This Row],[List 2]],Table_PI[[#This Row],[List 3]],Table_PI[[#This Row],[Size]],Table_PI[[#This Row],[Input 1]],Table_PI[[#This Row],[Input 2]],Table_PI[[#This Row],[Input 3]],Table_PI[[#This Row],[Input 4]],'Customer Information'!$AR$12,102,ROW())<>0,MeasureCalc(Table_PI[[#This Row],[Hide:\nFormula Name]],Table_SummaryPI[[#This Row],[Quantity]],Table_PI[[#This Row],[List 1]],Table_PI[[#This Row],[List 2]],Table_PI[[#This Row],[List 3]],Table_PI[[#This Row],[Size]],Table_PI[[#This Row],[Input 1]],Table_PI[[#This Row],[Input 2]],Table_PI[[#This Row],[Input 3]],Table_PI[[#This Row],[Input 4]],'Customer Information'!$AR$12,102,ROW())<>\"No Rebate\"),MeasureCalc(Table_PI[[#This Row],[Hide:\nFormula Name]],Table_SummaryPI[[#This Row],[Quantity]],Table_PI[[#This Row],[List 1]],Table_PI[[#This Row],[List 2]],Table_PI[[#This Row],[List 3]],Table_PI[[#This Row],[Size]],Table_PI[[#This Row],[Input 1]],Table_PI[[#This Row],[Input 2]],Table_PI[[#This Row],[Input 3]],Table_PI[[#This Row],[Input 4]],'Customer Information'!$AR$12,102,ROW()),\"\"),\"\")","v":""},{"$f":"IF(Table_PI[[#This Row],[Input 3]]<>\"\",Table_PI[[#This Row],[Input 3]],\"\")","v":""},null,{"$f":"IFERROR(IF(AND(MeasureCalc(Table_PI[[#This Row],[Hide:\nFormula Name]],Table_SummaryPI[[#This Row],[Quantity]],Table_PI[[#This Row],[List 1]],Table_PI[[#This Row],[List 2]],Table_PI[[#This Row],[List 3]],Table_PI[[#This Row],[Size]],Table_PI[[#This Row],[Input 1]],Table_PI[[#This Row],[Input 2]],Table_PI[[#This Row],[Input 3]],Table_PI[[#This Row],[Input 4]],'Customer Information'!$AR$12,103,ROW())<>0,MeasureCalc(Table_PI[[#This Row],[Hide:\nFormula Name]],Table_SummaryPI[[#This Row],[Quantity]],Table_PI[[#This Row],[List 1]],Table_PI[[#This Row],[List 2]],Table_PI[[#This Row],[List 3]],Table_PI[[#This Row],[Size]],Table_PI[[#This Row],[Input 1]],Table_PI[[#This Row],[Input 2]],Table_PI[[#This Row],[Input 3]],Table_PI[[#This Row],[Input 4]],'Customer Information'!$AR$12,103,ROW())<>\"No Rebate\"),MeasureCalc(Table_PI[[#This Row],[Hide:\nFormula Name]],Table_SummaryPI[[#This Row],[Quantity]],Table_PI[[#This Row],[List 1]],Table_PI[[#This Row],[List 2]],Table_PI[[#This Row],[List 3]],Table_PI[[#This Row],[Size]],Table_PI[[#This Row],[Input 1]],Table_PI[[#This Row],[Input 2]],Table_PI[[#This Row],[Input 3]],Table_PI[[#This Row],[Input 4]],'Customer Information'!$AR$12,103,ROW()),\"\"),\"\")","v":""},{"$f":"IF(Table_PI[[#This Row],[Input 4]]<>\"\",Table_PI[[#This Row],[Input 4]],\"\")","v":""},{"$f":"IF(Table_PI[[#This Row],[Quantity]]=\"\",\"\",Table_PI[[#This Row],[Quantity]])","v":""},{"$f":"IF(Table_PI[[#This Row],[Notes]]=\"\",\"\",Table_PI[[#This Row],[Notes]])","v":""},{"$f":"IF(OR(Table_PI[[#This Row],[Hide:\nBaseline kWh]]=\"\",Table_PI[[#This Row],[Hide:\nBaseline kWh]]=0),\"\",Table_PI[[#This Row],[Hide:\nBaseline kWh]])","v":""},{"$f":"IF(OR(Table_PI[[#This Row],[Hide:\nBaseline kW]]=\"\",Table_PI[[#This Row],[Hide:\nBaseline kW]]=0),\"\",Table_PI[[#This Row],[Hide:\nBaseline kW]])","v":""},{"$f":"IF(OR(Table_PI[[#This Row],[Hide:\nProposed kWh]]=\"\",Table_PI[[#This Row],[Hide:\nProposed kWh]]=0),\"\",Table_PI[[#This Row],[Hide:\nProposed kWh]])","v":""},{"$f":"IF(OR(Table_PI[[#This Row],[Hide:\nProposed kW]]=\"\",Table_PI[[#This Row],[Hide:\nProposed kW]]=0),\"\",Table_PI[[#This Row],[Hide:\nProposed kW]])","v":""},{"$f":"IF(OR(Table_PI[[#This Row],[Rebate]]=\"\",Table_PI[[#This Row],[Rebate]]=0),\"\",Table_PI[[#This Row],[Rebate]])","v":""},{"$f":"IF(OR(Table_PI[[#This Row],[Hide:\nIncremental Cost]]=\"\",Table_PI[[#This Row],[Hide:\nIncremental Cost]]=0),\"\",Table_PI[[#This Row],[Hide:\nIncremental Cost]])","v":""},{"$f":"IFERROR(IF(Table_SummaryPI[[#This Row],[kWhSavings]]=\"\",\"\",ROUND(Table_SummaryPI[[#This Row],[kWhSavings]]/$AG$401*'Customer Information'!$BC$17,2)),0)","v":""},{"$f":"IF(OR(Table_PI[[#This Row],[Annual kWh]]=\"\",Table_PI[[#This Row],[Annual kWh]]=0),\"\",Table_PI[[#This Row],[Annual kWh]])","v":""},{"$f":"IF(OR(Table_PI[[#This Row],[Peak kW]]=\"\",Table_PI[[#This Row],[Peak kW]]=0),\"\",Table_PI[[#This Row],[Peak kW]])","v":""},{"$f":"IFERROR(IF(Table_SummaryPI[[#This Row],[kWhSavings]]=\"\",\"\",$AU$9*Table_SummaryPI[[#This Row],[kWhSavings]]),0)","v":""},{"$f":"IFERROR(IF(Table_SummaryPI[[#This Row],[kWhSavings]]=\"\",\"\",$AU$14*Table_SummaryPI[[#This Row],[kWhSavings]]),0)","v":""},{"$f":"IFERROR(IF(Table_SummaryPI[[#This Row],[kWhSavings]]=\"\",\"\",$AU$18*Table_SummaryPI[[#This Row],[kWhSavings]]),0)","v":""},{"$f":"IFERROR(IF(Table_SummaryPI[[#This Row],[kWhSavings]]=\"\",\"\",$AU$22*Table_SummaryPI[[#This Row],[kWhSavings]]),0)","v":""},{"$f":"IFERROR(IF(MeasureCalc(Table_PI[[#This Row],[Hide:\nFormula Name]],Table_SummaryPI[[#This Row],[Quantity]],Table_PI[[#This Row],[List 1]],Table_PI[[#This Row],[List 2]],Table_PI[[#This Row],[List 3]],Table_PI[[#This Row],[Size]],Table_PI[[#This Row],[Input 1]],Table_PI[[#This Row],[Input 2]],Table_PI[[#This Row],[Input 3]],Table_PI[[#This Row],[Input 4]],'Customer Information'!$AR$12,200,ROW())<>\"No Rebate\",MeasureCalc(Table_PI[[#This Row],[Hide:\nFormula Name]],Table_SummaryPI[[#This Row],[Quantity]],Table_PI[[#This Row],[List 1]],Table_PI[[#This Row],[List 2]],Table_PI[[#This Row],[List 3]],Table_PI[[#This Row],[Size]],Table_PI[[#This Row],[Input 1]],Table_PI[[#This Row],[Input 2]],Table_PI[[#This Row],[Input 3]],Table_PI[[#This Row],[Input 4]],'Customer Information'!$AR$12,200,ROW()),\"\"),\"\")","v":""},{"$f":"IFERROR(IF(MeasureCalc(Table_PI[[#This Row],[Hide:\nFormula Name]],Table_SummaryPI[[#This Row],[Quantity]],Table_PI[[#This Row],[List 1]],Table_PI[[#This Row],[List 2]],Table_PI[[#This Row],[List 3]],Table_PI[[#This Row],[Size]],Table_PI[[#This Row],[Input 1]],Table_PI[[#This Row],[Input 2]],Table_PI[[#This Row],[Input 3]],Table_PI[[#This Row],[Input 4]],'Customer Information'!$AR$12,201,ROW())<>\"No Rebate\",MeasureCalc(Table_PI[[#This Row],[Hide:\nFormula Name]],Table_SummaryPI[[#This Row],[Quantity]],Table_PI[[#This Row],[List 1]],Table_PI[[#This Row],[List 2]],Table_PI[[#This Row],[List 3]],Table_PI[[#This Row],[Size]],Table_PI[[#This Row],[Input 1]],Table_PI[[#This Row],[Input 2]],Table_PI[[#This Row],[Input 3]],Table_PI[[#This Row],[Input 4]],'Customer Information'!$AR$12,201,ROW()),\"\"),\"\")","v":""}]
[{"$f":"Table_PI[[#This Row],[Line No.]]","v":""},{"$f":"IF(Table_SummaryPI[[#This Row],[MeassureCategory]]<>\"\",CONCATENATE(Table_SummaryPI[[#This Row],[MeassureCategory]],  \" - \", Table_SummaryPI[[#This Row],[ProposedMeasureCategory]],  \" - \", TEXT(Table_SummaryPI[[#This Row],[Size]],\"#,##0.00\"),\" \",Table_SummaryPI[[#This Row],[SizeUnit]]),\"\")","v":""},{"$f":"SUBSTITUTE(Table_PI[[#This Row],[Measure]],\"     \",\"\",1)","v":""},{"$f":"IF(Table_PI[[#This Row],[List 1]]<>\"\",Table_PI[[#This Row],[List 1]],\"\")","v":""},{"$f":"IF(Table_PI[[#This Row],[List 2]]<>\"\",Table_PI[[#This Row],[List 2]],\"\")","v":""},{"$f":"IF(Table_PI[[#This Row],[List 3]]<>\"\",Table_PI[[#This Row],[List 3]],\"\")","v":""},{"$f":"IF(Table_PI[[#This Row],[Manufacturer]]=\"\",\"\",Table_PI[[#This Row],[Manufacturer]])","v":""},{"$f":"IF(Table_PI[[#This Row],[Model Number]]=\"\",\"\",Table_PI[[#This Row],[Model Number]])","v":""},{"$f":"IF(Table_PI[[#This Row],[Serial Number(s)]]=\"\",\"\",Table_PI[[#This Row],[Serial Number(s)]])","v":""},null,{"$f":"IF(Table_PI[[#This Row],[Size]]=\"\",\"\",Table_PI[[#This Row],[Size]])","v":""},null,{"$f":"IFERROR(IF(AND(MeasureCalc(Table_PI[[#This Row],[Hide:\nFormula Name]],Table_SummaryPI[[#This Row],[Quantity]],Table_PI[[#This Row],[List 1]],Table_PI[[#This Row],[List 2]],Table_PI[[#This Row],[List 3]],Table_PI[[#This Row],[Size]],Table_PI[[#This Row],[Input 1]],Table_PI[[#This Row],[Input 2]],Table_PI[[#This Row],[Input 3]],Table_PI[[#This Row],[Input 4]],'Customer Information'!$AR$12,100,ROW())<>0,MeasureCalc(Table_PI[[#This Row],[Hide:\nFormula Name]],Table_SummaryPI[[#This Row],[Quantity]],Table_PI[[#This Row],[List 1]],Table_PI[[#This Row],[List 2]],Table_PI[[#This Row],[List 3]],Table_PI[[#This Row],[Size]],Table_PI[[#This Row],[Input 1]],Table_PI[[#This Row],[Input 2]],Table_PI[[#This Row],[Input 3]],Table_PI[[#This Row],[Input 4]],'Customer Information'!$AR$12,100,ROW())<>\"No Rebate\"),MeasureCalc(Table_PI[[#This Row],[Hide:\nFormula Name]],Table_SummaryPI[[#This Row],[Quantity]],Table_PI[[#This Row],[List 1]],Table_PI[[#This Row],[List 2]],Table_PI[[#This Row],[List 3]],Table_PI[[#This Row],[Size]],Table_PI[[#This Row],[Input 1]],Table_PI[[#This Row],[Input 2]],Table_PI[[#This Row],[Input 3]],Table_PI[[#This Row],[Input 4]],'Customer Information'!$AR$12,100,ROW()),\"\"),\"\")","v":""},{"$f":"IF(Table_PI[[#This Row],[Input 1]]<>\"\",Table_PI[[#This Row],[Input 1]],\"\")","v":""},null,{"$f":"IFERROR(IF(AND(MeasureCalc(Table_PI[[#This Row],[Hide:\nFormula Name]],Table_SummaryPI[[#This Row],[Quantity]],Table_PI[[#This Row],[List 1]],Table_PI[[#This Row],[List 2]],Table_PI[[#This Row],[List 3]],Table_PI[[#This Row],[Size]],Table_PI[[#This Row],[Input 1]],Table_PI[[#This Row],[Input 2]],Table_PI[[#This Row],[Input 3]],Table_PI[[#This Row],[Input 4]],'Customer Information'!$AR$12,101,ROW())<>0,MeasureCalc(Table_PI[[#This Row],[Hide:\nFormula Name]],Table_SummaryPI[[#This Row],[Quantity]],Table_PI[[#This Row],[List 1]],Table_PI[[#This Row],[List 2]],Table_PI[[#This Row],[List 3]],Table_PI[[#This Row],[Size]],Table_PI[[#This Row],[Input 1]],Table_PI[[#This Row],[Input 2]],Table_PI[[#This Row],[Input 3]],Table_PI[[#This Row],[Input 4]],'Customer Information'!$AR$12,101,ROW())<>\"No Rebate\"),MeasureCalc(Table_PI[[#This Row],[Hide:\nFormula Name]],Table_SummaryPI[[#This Row],[Quantity]],Table_PI[[#This Row],[List 1]],Table_PI[[#This Row],[List 2]],Table_PI[[#This Row],[List 3]],Table_PI[[#This Row],[Size]],Table_PI[[#This Row],[Input 1]],Table_PI[[#This Row],[Input 2]],Table_PI[[#This Row],[Input 3]],Table_PI[[#This Row],[Input 4]],'Customer Information'!$AR$12,101,ROW()),\"\"),\"\")","v":""},{"$f":"IF(Table_PI[[#This Row],[Input 2]]<>\"\",Table_PI[[#This Row],[Input 2]],\"\")","v":""},null,{"$f":"IFERROR(IF(AND(MeasureCalc(Table_PI[[#This Row],[Hide:\nFormula Name]],Table_SummaryPI[[#This Row],[Quantity]],Table_PI[[#This Row],[List 1]],Table_PI[[#This Row],[List 2]],Table_PI[[#This Row],[List 3]],Table_PI[[#This Row],[Size]],Table_PI[[#This Row],[Input 1]],Table_PI[[#This Row],[Input 2]],Table_PI[[#This Row],[Input 3]],Table_PI[[#This Row],[Input 4]],'Customer Information'!$AR$12,102,ROW())<>0,MeasureCalc(Table_PI[[#This Row],[Hide:\nFormula Name]],Table_SummaryPI[[#This Row],[Quantity]],Table_PI[[#This Row],[List 1]],Table_PI[[#This Row],[List 2]],Table_PI[[#This Row],[List 3]],Table_PI[[#This Row],[Size]],Table_PI[[#This Row],[Input 1]],Table_PI[[#This Row],[Input 2]],Table_PI[[#This Row],[Input 3]],Table_PI[[#This Row],[Input 4]],'Customer Information'!$AR$12,102,ROW())<>\"No Rebate\"),MeasureCalc(Table_PI[[#This Row],[Hide:\nFormula Name]],Table_SummaryPI[[#This Row],[Quantity]],Table_PI[[#This Row],[List 1]],Table_PI[[#This Row],[List 2]],Table_PI[[#This Row],[List 3]],Table_PI[[#This Row],[Size]],Table_PI[[#This Row],[Input 1]],Table_PI[[#This Row],[Input 2]],Table_PI[[#This Row],[Input 3]],Table_PI[[#This Row],[Input 4]],'Customer Information'!$AR$12,102,ROW()),\"\"),\"\")","v":""},{"$f":"IF(Table_PI[[#This Row],[Input 3]]<>\"\",Table_PI[[#This Row],[Input 3]],\"\")","v":""},null,{"$f":"IFERROR(IF(AND(MeasureCalc(Table_PI[[#This Row],[Hide:\nFormula Name]],Table_SummaryPI[[#This Row],[Quantity]],Table_PI[[#This Row],[List 1]],Table_PI[[#This Row],[List 2]],Table_PI[[#This Row],[List 3]],Table_PI[[#This Row],[Size]],Table_PI[[#This Row],[Input 1]],Table_PI[[#This Row],[Input 2]],Table_PI[[#This Row],[Input 3]],Table_PI[[#This Row],[Input 4]],'Customer Information'!$AR$12,103,ROW())<>0,MeasureCalc(Table_PI[[#This Row],[Hide:\nFormula Name]],Table_SummaryPI[[#This Row],[Quantity]],Table_PI[[#This Row],[List 1]],Table_PI[[#This Row],[List 2]],Table_PI[[#This Row],[List 3]],Table_PI[[#This Row],[Size]],Table_PI[[#This Row],[Input 1]],Table_PI[[#This Row],[Input 2]],Table_PI[[#This Row],[Input 3]],Table_PI[[#This Row],[Input 4]],'Customer Information'!$AR$12,103,ROW())<>\"No Rebate\"),MeasureCalc(Table_PI[[#This Row],[Hide:\nFormula Name]],Table_SummaryPI[[#This Row],[Quantity]],Table_PI[[#This Row],[List 1]],Table_PI[[#This Row],[List 2]],Table_PI[[#This Row],[List 3]],Table_PI[[#This Row],[Size]],Table_PI[[#This Row],[Input 1]],Table_PI[[#This Row],[Input 2]],Table_PI[[#This Row],[Input 3]],Table_PI[[#This Row],[Input 4]],'Customer Information'!$AR$12,103,ROW()),\"\"),\"\")","v":""},{"$f":"IF(Table_PI[[#This Row],[Input 4]]<>\"\",Table_PI[[#This Row],[Input 4]],\"\")","v":""},{"$f":"IF(Table_PI[[#This Row],[Quantity]]=\"\",\"\",Table_PI[[#This Row],[Quantity]])","v":""},{"$f":"IF(Table_PI[[#This Row],[Notes]]=\"\",\"\",Table_PI[[#This Row],[Notes]])","v":""},{"$f":"IF(OR(Table_PI[[#This Row],[Hide:\nBaseline kWh]]=\"\",Table_PI[[#This Row],[Hide:\nBaseline kWh]]=0),\"\",Table_PI[[#This Row],[Hide:\nBaseline kWh]])","v":""},{"$f":"IF(OR(Table_PI[[#This Row],[Hide:\nBaseline kW]]=\"\",Table_PI[[#This Row],[Hide:\nBaseline kW]]=0),\"\",Table_PI[[#This Row],[Hide:\nBaseline kW]])","v":""},{"$f":"IF(OR(Table_PI[[#This Row],[Hide:\nProposed kWh]]=\"\",Table_PI[[#This Row],[Hide:\nProposed kWh]]=0),\"\",Table_PI[[#This Row],[Hide:\nProposed kWh]])","v":""},{"$f":"IF(OR(Table_PI[[#This Row],[Hide:\nProposed kW]]=\"\",Table_PI[[#This Row],[Hide:\nProposed kW]]=0),\"\",Table_PI[[#This Row],[Hide:\nProposed kW]])","v":""},{"$f":"IF(OR(Table_PI[[#This Row],[Rebate]]=\"\",Table_PI[[#This Row],[Rebate]]=0),\"\",Table_PI[[#This Row],[Rebate]])","v":""},{"$f":"IF(OR(Table_PI[[#This Row],[Hide:\nIncremental Cost]]=\"\",Table_PI[[#This Row],[Hide:\nIncremental Cost]]=0),\"\",Table_PI[[#This Row],[Hide:\nIncremental Cost]])","v":""},{"$f":"IFERROR(IF(Table_SummaryPI[[#This Row],[kWhSavings]]=\"\",\"\",ROUND(Table_SummaryPI[[#This Row],[kWhSavings]]/$AG$401*'Customer Information'!$BC$17,2)),0)","v":""},{"$f":"IF(OR(Table_PI[[#This Row],[Annual kWh]]=\"\",Table_PI[[#This Row],[Annual kWh]]=0),\"\",Table_PI[[#This Row],[Annual kWh]])","v":""},{"$f":"IF(OR(Table_PI[[#This Row],[Peak kW]]=\"\",Table_PI[[#This Row],[Peak kW]]=0),\"\",Table_PI[[#This Row],[Peak kW]])","v":""},{"$f":"IFERROR(IF(Table_SummaryPI[[#This Row],[kWhSavings]]=\"\",\"\",$AU$9*Table_SummaryPI[[#This Row],[kWhSavings]]),0)","v":""},{"$f":"IFERROR(IF(Table_SummaryPI[[#This Row],[kWhSavings]]=\"\",\"\",$AU$14*Table_SummaryPI[[#This Row],[kWhSavings]]),0)","v":""},{"$f":"IFERROR(IF(Table_SummaryPI[[#This Row],[kWhSavings]]=\"\",\"\",$AU$18*Table_SummaryPI[[#This Row],[kWhSavings]]),0)","v":""},{"$f":"IFERROR(IF(Table_SummaryPI[[#This Row],[kWhSavings]]=\"\",\"\",$AU$22*Table_SummaryPI[[#This Row],[kWhSavings]]),0)","v":""},{"$f":"IFERROR(IF(MeasureCalc(Table_PI[[#This Row],[Hide:\nFormula Name]],Table_SummaryPI[[#This Row],[Quantity]],Table_PI[[#This Row],[List 1]],Table_PI[[#This Row],[List 2]],Table_PI[[#This Row],[List 3]],Table_PI[[#This Row],[Size]],Table_PI[[#This Row],[Input 1]],Table_PI[[#This Row],[Input 2]],Table_PI[[#This Row],[Input 3]],Table_PI[[#This Row],[Input 4]],'Customer Information'!$AR$12,200,ROW())<>\"No Rebate\",MeasureCalc(Table_PI[[#This Row],[Hide:\nFormula Name]],Table_SummaryPI[[#This Row],[Quantity]],Table_PI[[#This Row],[List 1]],Table_PI[[#This Row],[List 2]],Table_PI[[#This Row],[List 3]],Table_PI[[#This Row],[Size]],Table_PI[[#This Row],[Input 1]],Table_PI[[#This Row],[Input 2]],Table_PI[[#This Row],[Input 3]],Table_PI[[#This Row],[Input 4]],'Customer Information'!$AR$12,200,ROW()),\"\"),\"\")","v":""},{"$f":"IFERROR(IF(MeasureCalc(Table_PI[[#This Row],[Hide:\nFormula Name]],Table_SummaryPI[[#This Row],[Quantity]],Table_PI[[#This Row],[List 1]],Table_PI[[#This Row],[List 2]],Table_PI[[#This Row],[List 3]],Table_PI[[#This Row],[Size]],Table_PI[[#This Row],[Input 1]],Table_PI[[#This Row],[Input 2]],Table_PI[[#This Row],[Input 3]],Table_PI[[#This Row],[Input 4]],'Customer Information'!$AR$12,201,ROW())<>\"No Rebate\",MeasureCalc(Table_PI[[#This Row],[Hide:\nFormula Name]],Table_SummaryPI[[#This Row],[Quantity]],Table_PI[[#This Row],[List 1]],Table_PI[[#This Row],[List 2]],Table_PI[[#This Row],[List 3]],Table_PI[[#This Row],[Size]],Table_PI[[#This Row],[Input 1]],Table_PI[[#This Row],[Input 2]],Table_PI[[#This Row],[Input 3]],Table_PI[[#This Row],[Input 4]],'Customer Information'!$AR$12,201,ROW()),\"\"),\"\")","v":""}]
[{"$f":"Table_PI[[#This Row],[Line No.]]","v":""},{"$f":"IF(Table_SummaryPI[[#This Row],[MeassureCategory]]<>\"\",CONCATENATE(Table_SummaryPI[[#This Row],[MeassureCategory]],  \" - \", Table_SummaryPI[[#This Row],[ProposedMeasureCategory]],  \" - \", TEXT(Table_SummaryPI[[#This Row],[Size]],\"#,##0.00\"),\" \",Table_SummaryPI[[#This Row],[SizeUnit]]),\"\")","v":""},{"$f":"SUBSTITUTE(Table_PI[[#This Row],[Measure]],\"     \",\"\",1)","v":""},{"$f":"IF(Table_PI[[#This Row],[List 1]]<>\"\",Table_PI[[#This Row],[List 1]],\"\")","v":""},{"$f":"IF(Table_PI[[#This Row],[List 2]]<>\"\",Table_PI[[#This Row],[List 2]],\"\")","v":""},{"$f":"IF(Table_PI[[#This Row],[List 3]]<>\"\",Table_PI[[#This Row],[List 3]],\"\")","v":""},{"$f":"IF(Table_PI[[#This Row],[Manufacturer]]=\"\",\"\",Table_PI[[#This Row],[Manufacturer]])","v":""},{"$f":"IF(Table_PI[[#This Row],[Model Number]]=\"\",\"\",Table_PI[[#This Row],[Model Number]])","v":""},{"$f":"IF(Table_PI[[#This Row],[Serial Number(s)]]=\"\",\"\",Table_PI[[#This Row],[Serial Number(s)]])","v":""},null,{"$f":"IF(Table_PI[[#This Row],[Size]]=\"\",\"\",Table_PI[[#This Row],[Size]])","v":""},null,{"$f":"IFERROR(IF(AND(MeasureCalc(Table_PI[[#This Row],[Hide:\nFormula Name]],Table_SummaryPI[[#This Row],[Quantity]],Table_PI[[#This Row],[List 1]],Table_PI[[#This Row],[List 2]],Table_PI[[#This Row],[List 3]],Table_PI[[#This Row],[Size]],Table_PI[[#This Row],[Input 1]],Table_PI[[#This Row],[Input 2]],Table_PI[[#This Row],[Input 3]],Table_PI[[#This Row],[Input 4]],'Customer Information'!$AR$12,100,ROW())<>0,MeasureCalc(Table_PI[[#This Row],[Hide:\nFormula Name]],Table_SummaryPI[[#This Row],[Quantity]],Table_PI[[#This Row],[List 1]],Table_PI[[#This Row],[List 2]],Table_PI[[#This Row],[List 3]],Table_PI[[#This Row],[Size]],Table_PI[[#This Row],[Input 1]],Table_PI[[#This Row],[Input 2]],Table_PI[[#This Row],[Input 3]],Table_PI[[#This Row],[Input 4]],'Customer Information'!$AR$12,100,ROW())<>\"No Rebate\"),MeasureCalc(Table_PI[[#This Row],[Hide:\nFormula Name]],Table_SummaryPI[[#This Row],[Quantity]],Table_PI[[#This Row],[List 1]],Table_PI[[#This Row],[List 2]],Table_PI[[#This Row],[List 3]],Table_PI[[#This Row],[Size]],Table_PI[[#This Row],[Input 1]],Table_PI[[#This Row],[Input 2]],Table_PI[[#This Row],[Input 3]],Table_PI[[#This Row],[Input 4]],'Customer Information'!$AR$12,100,ROW()),\"\"),\"\")","v":""},{"$f":"IF(Table_PI[[#This Row],[Input 1]]<>\"\",Table_PI[[#This Row],[Input 1]],\"\")","v":""},null,{"$f":"IFERROR(IF(AND(MeasureCalc(Table_PI[[#This Row],[Hide:\nFormula Name]],Table_SummaryPI[[#This Row],[Quantity]],Table_PI[[#This Row],[List 1]],Table_PI[[#This Row],[List 2]],Table_PI[[#This Row],[List 3]],Table_PI[[#This Row],[Size]],Table_PI[[#This Row],[Input 1]],Table_PI[[#This Row],[Input 2]],Table_PI[[#This Row],[Input 3]],Table_PI[[#This Row],[Input 4]],'Customer Information'!$AR$12,101,ROW())<>0,MeasureCalc(Table_PI[[#This Row],[Hide:\nFormula Name]],Table_SummaryPI[[#This Row],[Quantity]],Table_PI[[#This Row],[List 1]],Table_PI[[#This Row],[List 2]],Table_PI[[#This Row],[List 3]],Table_PI[[#This Row],[Size]],Table_PI[[#This Row],[Input 1]],Table_PI[[#This Row],[Input 2]],Table_PI[[#This Row],[Input 3]],Table_PI[[#This Row],[Input 4]],'Customer Information'!$AR$12,101,ROW())<>\"No Rebate\"),MeasureCalc(Table_PI[[#This Row],[Hide:\nFormula Name]],Table_SummaryPI[[#This Row],[Quantity]],Table_PI[[#This Row],[List 1]],Table_PI[[#This Row],[List 2]],Table_PI[[#This Row],[List 3]],Table_PI[[#This Row],[Size]],Table_PI[[#This Row],[Input 1]],Table_PI[[#This Row],[Input 2]],Table_PI[[#This Row],[Input 3]],Table_PI[[#This Row],[Input 4]],'Customer Information'!$AR$12,101,ROW()),\"\"),\"\")","v":""},{"$f":"IF(Table_PI[[#This Row],[Input 2]]<>\"\",Table_PI[[#This Row],[Input 2]],\"\")","v":""},null,{"$f":"IFERROR(IF(AND(MeasureCalc(Table_PI[[#This Row],[Hide:\nFormula Name]],Table_SummaryPI[[#This Row],[Quantity]],Table_PI[[#This Row],[List 1]],Table_PI[[#This Row],[List 2]],Table_PI[[#This Row],[List 3]],Table_PI[[#This Row],[Size]],Table_PI[[#This Row],[Input 1]],Table_PI[[#This Row],[Input 2]],Table_PI[[#This Row],[Input 3]],Table_PI[[#This Row],[Input 4]],'Customer Information'!$AR$12,102,ROW())<>0,MeasureCalc(Table_PI[[#This Row],[Hide:\nFormula Name]],Table_SummaryPI[[#This Row],[Quantity]],Table_PI[[#This Row],[List 1]],Table_PI[[#This Row],[List 2]],Table_PI[[#This Row],[List 3]],Table_PI[[#This Row],[Size]],Table_PI[[#This Row],[Input 1]],Table_PI[[#This Row],[Input 2]],Table_PI[[#This Row],[Input 3]],Table_PI[[#This Row],[Input 4]],'Customer Information'!$AR$12,102,ROW())<>\"No Rebate\"),MeasureCalc(Table_PI[[#This Row],[Hide:\nFormula Name]],Table_SummaryPI[[#This Row],[Quantity]],Table_PI[[#This Row],[List 1]],Table_PI[[#This Row],[List 2]],Table_PI[[#This Row],[List 3]],Table_PI[[#This Row],[Size]],Table_PI[[#This Row],[Input 1]],Table_PI[[#This Row],[Input 2]],Table_PI[[#This Row],[Input 3]],Table_PI[[#This Row],[Input 4]],'Customer Information'!$AR$12,102,ROW()),\"\"),\"\")","v":""},{"$f":"IF(Table_PI[[#This Row],[Input 3]]<>\"\",Table_PI[[#This Row],[Input 3]],\"\")","v":""},null,{"$f":"IFERROR(IF(AND(MeasureCalc(Table_PI[[#This Row],[Hide:\nFormula Name]],Table_SummaryPI[[#This Row],[Quantity]],Table_PI[[#This Row],[List 1]],Table_PI[[#This Row],[List 2]],Table_PI[[#This Row],[List 3]],Table_PI[[#This Row],[Size]],Table_PI[[#This Row],[Input 1]],Table_PI[[#This Row],[Input 2]],Table_PI[[#This Row],[Input 3]],Table_PI[[#This Row],[Input 4]],'Customer Information'!$AR$12,103,ROW())<>0,MeasureCalc(Table_PI[[#This Row],[Hide:\nFormula Name]],Table_SummaryPI[[#This Row],[Quantity]],Table_PI[[#This Row],[List 1]],Table_PI[[#This Row],[List 2]],Table_PI[[#This Row],[List 3]],Table_PI[[#This Row],[Size]],Table_PI[[#This Row],[Input 1]],Table_PI[[#This Row],[Input 2]],Table_PI[[#This Row],[Input 3]],Table_PI[[#This Row],[Input 4]],'Customer Information'!$AR$12,103,ROW())<>\"No Rebate\"),MeasureCalc(Table_PI[[#This Row],[Hide:\nFormula Name]],Table_SummaryPI[[#This Row],[Quantity]],Table_PI[[#This Row],[List 1]],Table_PI[[#This Row],[List 2]],Table_PI[[#This Row],[List 3]],Table_PI[[#This Row],[Size]],Table_PI[[#This Row],[Input 1]],Table_PI[[#This Row],[Input 2]],Table_PI[[#This Row],[Input 3]],Table_PI[[#This Row],[Input 4]],'Customer Information'!$AR$12,103,ROW()),\"\"),\"\")","v":""},{"$f":"IF(Table_PI[[#This Row],[Input 4]]<>\"\",Table_PI[[#This Row],[Input 4]],\"\")","v":""},{"$f":"IF(Table_PI[[#This Row],[Quantity]]=\"\",\"\",Table_PI[[#This Row],[Quantity]])","v":""},{"$f":"IF(Table_PI[[#This Row],[Notes]]=\"\",\"\",Table_PI[[#This Row],[Notes]])","v":""},{"$f":"IF(OR(Table_PI[[#This Row],[Hide:\nBaseline kWh]]=\"\",Table_PI[[#This Row],[Hide:\nBaseline kWh]]=0),\"\",Table_PI[[#This Row],[Hide:\nBaseline kWh]])","v":""},{"$f":"IF(OR(Table_PI[[#This Row],[Hide:\nBaseline kW]]=\"\",Table_PI[[#This Row],[Hide:\nBaseline kW]]=0),\"\",Table_PI[[#This Row],[Hide:\nBaseline kW]])","v":""},{"$f":"IF(OR(Table_PI[[#This Row],[Hide:\nProposed kWh]]=\"\",Table_PI[[#This Row],[Hide:\nProposed kWh]]=0),\"\",Table_PI[[#This Row],[Hide:\nProposed kWh]])","v":""},{"$f":"IF(OR(Table_PI[[#This Row],[Hide:\nProposed kW]]=\"\",Table_PI[[#This Row],[Hide:\nProposed kW]]=0),\"\",Table_PI[[#This Row],[Hide:\nProposed kW]])","v":""},{"$f":"IF(OR(Table_PI[[#This Row],[Rebate]]=\"\",Table_PI[[#This Row],[Rebate]]=0),\"\",Table_PI[[#This Row],[Rebate]])","v":""},{"$f":"IF(OR(Table_PI[[#This Row],[Hide:\nIncremental Cost]]=\"\",Table_PI[[#This Row],[Hide:\nIncremental Cost]]=0),\"\",Table_PI[[#This Row],[Hide:\nIncremental Cost]])","v":""},{"$f":"IFERROR(IF(Table_SummaryPI[[#This Row],[kWhSavings]]=\"\",\"\",ROUND(Table_SummaryPI[[#This Row],[kWhSavings]]/$AG$401*'Customer Information'!$BC$17,2)),0)","v":""},{"$f":"IF(OR(Table_PI[[#This Row],[Annual kWh]]=\"\",Table_PI[[#This Row],[Annual kWh]]=0),\"\",Table_PI[[#This Row],[Annual kWh]])","v":""},{"$f":"IF(OR(Table_PI[[#This Row],[Peak kW]]=\"\",Table_PI[[#This Row],[Peak kW]]=0),\"\",Table_PI[[#This Row],[Peak kW]])","v":""},{"$f":"IFERROR(IF(Table_SummaryPI[[#This Row],[kWhSavings]]=\"\",\"\",$AU$9*Table_SummaryPI[[#This Row],[kWhSavings]]),0)","v":""},{"$f":"IFERROR(IF(Table_SummaryPI[[#This Row],[kWhSavings]]=\"\",\"\",$AU$14*Table_SummaryPI[[#This Row],[kWhSavings]]),0)","v":""},{"$f":"IFERROR(IF(Table_SummaryPI[[#This Row],[kWhSavings]]=\"\",\"\",$AU$18*Table_SummaryPI[[#This Row],[kWhSavings]]),0)","v":""},{"$f":"IFERROR(IF(Table_SummaryPI[[#This Row],[kWhSavings]]=\"\",\"\",$AU$22*Table_SummaryPI[[#This Row],[kWhSavings]]),0)","v":""},{"$f":"IFERROR(IF(MeasureCalc(Table_PI[[#This Row],[Hide:\nFormula Name]],Table_SummaryPI[[#This Row],[Quantity]],Table_PI[[#This Row],[List 1]],Table_PI[[#This Row],[List 2]],Table_PI[[#This Row],[List 3]],Table_PI[[#This Row],[Size]],Table_PI[[#This Row],[Input 1]],Table_PI[[#This Row],[Input 2]],Table_PI[[#This Row],[Input 3]],Table_PI[[#This Row],[Input 4]],'Customer Information'!$AR$12,200,ROW())<>\"No Rebate\",MeasureCalc(Table_PI[[#This Row],[Hide:\nFormula Name]],Table_SummaryPI[[#This Row],[Quantity]],Table_PI[[#This Row],[List 1]],Table_PI[[#This Row],[List 2]],Table_PI[[#This Row],[List 3]],Table_PI[[#This Row],[Size]],Table_PI[[#This Row],[Input 1]],Table_PI[[#This Row],[Input 2]],Table_PI[[#This Row],[Input 3]],Table_PI[[#This Row],[Input 4]],'Customer Information'!$AR$12,200,ROW()),\"\"),\"\")","v":""},{"$f":"IFERROR(IF(MeasureCalc(Table_PI[[#This Row],[Hide:\nFormula Name]],Table_SummaryPI[[#This Row],[Quantity]],Table_PI[[#This Row],[List 1]],Table_PI[[#This Row],[List 2]],Table_PI[[#This Row],[List 3]],Table_PI[[#This Row],[Size]],Table_PI[[#This Row],[Input 1]],Table_PI[[#This Row],[Input 2]],Table_PI[[#This Row],[Input 3]],Table_PI[[#This Row],[Input 4]],'Customer Information'!$AR$12,201,ROW())<>\"No Rebate\",MeasureCalc(Table_PI[[#This Row],[Hide:\nFormula Name]],Table_SummaryPI[[#This Row],[Quantity]],Table_PI[[#This Row],[List 1]],Table_PI[[#This Row],[List 2]],Table_PI[[#This Row],[List 3]],Table_PI[[#This Row],[Size]],Table_PI[[#This Row],[Input 1]],Table_PI[[#This Row],[Input 2]],Table_PI[[#This Row],[Input 3]],Table_PI[[#This Row],[Input 4]],'Customer Information'!$AR$12,201,ROW()),\"\"),\"\")","v":""}]
[{"$f":"Table_PI[[#This Row],[Line No.]]","v":""},{"$f":"IF(Table_SummaryPI[[#This Row],[MeassureCategory]]<>\"\",CONCATENATE(Table_SummaryPI[[#This Row],[MeassureCategory]],  \" - \", Table_SummaryPI[[#This Row],[ProposedMeasureCategory]],  \" - \", TEXT(Table_SummaryPI[[#This Row],[Size]],\"#,##0.00\"),\" \",Table_SummaryPI[[#This Row],[SizeUnit]]),\"\")","v":""},{"$f":"SUBSTITUTE(Table_PI[[#This Row],[Measure]],\"     \",\"\",1)","v":""},{"$f":"IF(Table_PI[[#This Row],[List 1]]<>\"\",Table_PI[[#This Row],[List 1]],\"\")","v":""},{"$f":"IF(Table_PI[[#This Row],[List 2]]<>\"\",Table_PI[[#This Row],[List 2]],\"\")","v":""},{"$f":"IF(Table_PI[[#This Row],[List 3]]<>\"\",Table_PI[[#This Row],[List 3]],\"\")","v":""},{"$f":"IF(Table_PI[[#This Row],[Manufacturer]]=\"\",\"\",Table_PI[[#This Row],[Manufacturer]])","v":""},{"$f":"IF(Table_PI[[#This Row],[Model Number]]=\"\",\"\",Table_PI[[#This Row],[Model Number]])","v":""},{"$f":"IF(Table_PI[[#This Row],[Serial Number(s)]]=\"\",\"\",Table_PI[[#This Row],[Serial Number(s)]])","v":""},null,{"$f":"IF(Table_PI[[#This Row],[Size]]=\"\",\"\",Table_PI[[#This Row],[Size]])","v":""},null,{"$f":"IFERROR(IF(AND(MeasureCalc(Table_PI[[#This Row],[Hide:\nFormula Name]],Table_SummaryPI[[#This Row],[Quantity]],Table_PI[[#This Row],[List 1]],Table_PI[[#This Row],[List 2]],Table_PI[[#This Row],[List 3]],Table_PI[[#This Row],[Size]],Table_PI[[#This Row],[Input 1]],Table_PI[[#This Row],[Input 2]],Table_PI[[#This Row],[Input 3]],Table_PI[[#This Row],[Input 4]],'Customer Information'!$AR$12,100,ROW())<>0,MeasureCalc(Table_PI[[#This Row],[Hide:\nFormula Name]],Table_SummaryPI[[#This Row],[Quantity]],Table_PI[[#This Row],[List 1]],Table_PI[[#This Row],[List 2]],Table_PI[[#This Row],[List 3]],Table_PI[[#This Row],[Size]],Table_PI[[#This Row],[Input 1]],Table_PI[[#This Row],[Input 2]],Table_PI[[#This Row],[Input 3]],Table_PI[[#This Row],[Input 4]],'Customer Information'!$AR$12,100,ROW())<>\"No Rebate\"),MeasureCalc(Table_PI[[#This Row],[Hide:\nFormula Name]],Table_SummaryPI[[#This Row],[Quantity]],Table_PI[[#This Row],[List 1]],Table_PI[[#This Row],[List 2]],Table_PI[[#This Row],[List 3]],Table_PI[[#This Row],[Size]],Table_PI[[#This Row],[Input 1]],Table_PI[[#This Row],[Input 2]],Table_PI[[#This Row],[Input 3]],Table_PI[[#This Row],[Input 4]],'Customer Information'!$AR$12,100,ROW()),\"\"),\"\")","v":""},{"$f":"IF(Table_PI[[#This Row],[Input 1]]<>\"\",Table_PI[[#This Row],[Input 1]],\"\")","v":""},null,{"$f":"IFERROR(IF(AND(MeasureCalc(Table_PI[[#This Row],[Hide:\nFormula Name]],Table_SummaryPI[[#This Row],[Quantity]],Table_PI[[#This Row],[List 1]],Table_PI[[#This Row],[List 2]],Table_PI[[#This Row],[List 3]],Table_PI[[#This Row],[Size]],Table_PI[[#This Row],[Input 1]],Table_PI[[#This Row],[Input 2]],Table_PI[[#This Row],[Input 3]],Table_PI[[#This Row],[Input 4]],'Customer Information'!$AR$12,101,ROW())<>0,MeasureCalc(Table_PI[[#This Row],[Hide:\nFormula Name]],Table_SummaryPI[[#This Row],[Quantity]],Table_PI[[#This Row],[List 1]],Table_PI[[#This Row],[List 2]],Table_PI[[#This Row],[List 3]],Table_PI[[#This Row],[Size]],Table_PI[[#This Row],[Input 1]],Table_PI[[#This Row],[Input 2]],Table_PI[[#This Row],[Input 3]],Table_PI[[#This Row],[Input 4]],'Customer Information'!$AR$12,101,ROW())<>\"No Rebate\"),MeasureCalc(Table_PI[[#This Row],[Hide:\nFormula Name]],Table_SummaryPI[[#This Row],[Quantity]],Table_PI[[#This Row],[List 1]],Table_PI[[#This Row],[List 2]],Table_PI[[#This Row],[List 3]],Table_PI[[#This Row],[Size]],Table_PI[[#This Row],[Input 1]],Table_PI[[#This Row],[Input 2]],Table_PI[[#This Row],[Input 3]],Table_PI[[#This Row],[Input 4]],'Customer Information'!$AR$12,101,ROW()),\"\"),\"\")","v":""},{"$f":"IF(Table_PI[[#This Row],[Input 2]]<>\"\",Table_PI[[#This Row],[Input 2]],\"\")","v":""},null,{"$f":"IFERROR(IF(AND(MeasureCalc(Table_PI[[#This Row],[Hide:\nFormula Name]],Table_SummaryPI[[#This Row],[Quantity]],Table_PI[[#This Row],[List 1]],Table_PI[[#This Row],[List 2]],Table_PI[[#This Row],[List 3]],Table_PI[[#This Row],[Size]],Table_PI[[#This Row],[Input 1]],Table_PI[[#This Row],[Input 2]],Table_PI[[#This Row],[Input 3]],Table_PI[[#This Row],[Input 4]],'Customer Information'!$AR$12,102,ROW())<>0,MeasureCalc(Table_PI[[#This Row],[Hide:\nFormula Name]],Table_SummaryPI[[#This Row],[Quantity]],Table_PI[[#This Row],[List 1]],Table_PI[[#This Row],[List 2]],Table_PI[[#This Row],[List 3]],Table_PI[[#This Row],[Size]],Table_PI[[#This Row],[Input 1]],Table_PI[[#This Row],[Input 2]],Table_PI[[#This Row],[Input 3]],Table_PI[[#This Row],[Input 4]],'Customer Information'!$AR$12,102,ROW())<>\"No Rebate\"),MeasureCalc(Table_PI[[#This Row],[Hide:\nFormula Name]],Table_SummaryPI[[#This Row],[Quantity]],Table_PI[[#This Row],[List 1]],Table_PI[[#This Row],[List 2]],Table_PI[[#This Row],[List 3]],Table_PI[[#This Row],[Size]],Table_PI[[#This Row],[Input 1]],Table_PI[[#This Row],[Input 2]],Table_PI[[#This Row],[Input 3]],Table_PI[[#This Row],[Input 4]],'Customer Information'!$AR$12,102,ROW()),\"\"),\"\")","v":""},{"$f":"IF(Table_PI[[#This Row],[Input 3]]<>\"\",Table_PI[[#This Row],[Input 3]],\"\")","v":""},null,{"$f":"IFERROR(IF(AND(MeasureCalc(Table_PI[[#This Row],[Hide:\nFormula Name]],Table_SummaryPI[[#This Row],[Quantity]],Table_PI[[#This Row],[List 1]],Table_PI[[#This Row],[List 2]],Table_PI[[#This Row],[List 3]],Table_PI[[#This Row],[Size]],Table_PI[[#This Row],[Input 1]],Table_PI[[#This Row],[Input 2]],Table_PI[[#This Row],[Input 3]],Table_PI[[#This Row],[Input 4]],'Customer Information'!$AR$12,103,ROW())<>0,MeasureCalc(Table_PI[[#This Row],[Hide:\nFormula Name]],Table_SummaryPI[[#This Row],[Quantity]],Table_PI[[#This Row],[List 1]],Table_PI[[#This Row],[List 2]],Table_PI[[#This Row],[List 3]],Table_PI[[#This Row],[Size]],Table_PI[[#This Row],[Input 1]],Table_PI[[#This Row],[Input 2]],Table_PI[[#This Row],[Input 3]],Table_PI[[#This Row],[Input 4]],'Customer Information'!$AR$12,103,ROW())<>\"No Rebate\"),MeasureCalc(Table_PI[[#This Row],[Hide:\nFormula Name]],Table_SummaryPI[[#This Row],[Quantity]],Table_PI[[#This Row],[List 1]],Table_PI[[#This Row],[List 2]],Table_PI[[#This Row],[List 3]],Table_PI[[#This Row],[Size]],Table_PI[[#This Row],[Input 1]],Table_PI[[#This Row],[Input 2]],Table_PI[[#This Row],[Input 3]],Table_PI[[#This Row],[Input 4]],'Customer Information'!$AR$12,103,ROW()),\"\"),\"\")","v":""},{"$f":"IF(Table_PI[[#This Row],[Input 4]]<>\"\",Table_PI[[#This Row],[Input 4]],\"\")","v":""},{"$f":"IF(Table_PI[[#This Row],[Quantity]]=\"\",\"\",Table_PI[[#This Row],[Quantity]])","v":""},{"$f":"IF(Table_PI[[#This Row],[Notes]]=\"\",\"\",Table_PI[[#This Row],[Notes]])","v":""},{"$f":"IF(OR(Table_PI[[#This Row],[Hide:\nBaseline kWh]]=\"\",Table_PI[[#This Row],[Hide:\nBaseline kWh]]=0),\"\",Table_PI[[#This Row],[Hide:\nBaseline kWh]])","v":""},{"$f":"IF(OR(Table_PI[[#This Row],[Hide:\nBaseline kW]]=\"\",Table_PI[[#This Row],[Hide:\nBaseline kW]]=0),\"\",Table_PI[[#This Row],[Hide:\nBaseline kW]])","v":""},{"$f":"IF(OR(Table_PI[[#This Row],[Hide:\nProposed kWh]]=\"\",Table_PI[[#This Row],[Hide:\nProposed kWh]]=0),\"\",Table_PI[[#This Row],[Hide:\nProposed kWh]])","v":""},{"$f":"IF(OR(Table_PI[[#This Row],[Hide:\nProposed kW]]=\"\",Table_PI[[#This Row],[Hide:\nProposed kW]]=0),\"\",Table_PI[[#This Row],[Hide:\nProposed kW]])","v":""},{"$f":"IF(OR(Table_PI[[#This Row],[Rebate]]=\"\",Table_PI[[#This Row],[Rebate]]=0),\"\",Table_PI[[#This Row],[Rebate]])","v":""},{"$f":"IF(OR(Table_PI[[#This Row],[Hide:\nIncremental Cost]]=\"\",Table_PI[[#This Row],[Hide:\nIncremental Cost]]=0),\"\",Table_PI[[#This Row],[Hide:\nIncremental Cost]])","v":""},{"$f":"IFERROR(IF(Table_SummaryPI[[#This Row],[kWhSavings]]=\"\",\"\",ROUND(Table_SummaryPI[[#This Row],[kWhSavings]]/$AG$401*'Customer Information'!$BC$17,2)),0)","v":""},{"$f":"IF(OR(Table_PI[[#This Row],[Annual kWh]]=\"\",Table_PI[[#This Row],[Annual kWh]]=0),\"\",Table_PI[[#This Row],[Annual kWh]])","v":""},{"$f":"IF(OR(Table_PI[[#This Row],[Peak kW]]=\"\",Table_PI[[#This Row],[Peak kW]]=0),\"\",Table_PI[[#This Row],[Peak kW]])","v":""},{"$f":"IFERROR(IF(Table_SummaryPI[[#This Row],[kWhSavings]]=\"\",\"\",$AU$9*Table_SummaryPI[[#This Row],[kWhSavings]]),0)","v":""},{"$f":"IFERROR(IF(Table_SummaryPI[[#This Row],[kWhSavings]]=\"\",\"\",$AU$14*Table_SummaryPI[[#This Row],[kWhSavings]]),0)","v":""},{"$f":"IFERROR(IF(Table_SummaryPI[[#This Row],[kWhSavings]]=\"\",\"\",$AU$18*Table_SummaryPI[[#This Row],[kWhSavings]]),0)","v":""},{"$f":"IFERROR(IF(Table_SummaryPI[[#This Row],[kWhSavings]]=\"\",\"\",$AU$22*Table_SummaryPI[[#This Row],[kWhSavings]]),0)","v":""},{"$f":"IFERROR(IF(MeasureCalc(Table_PI[[#This Row],[Hide:\nFormula Name]],Table_SummaryPI[[#This Row],[Quantity]],Table_PI[[#This Row],[List 1]],Table_PI[[#This Row],[List 2]],Table_PI[[#This Row],[List 3]],Table_PI[[#This Row],[Size]],Table_PI[[#This Row],[Input 1]],Table_PI[[#This Row],[Input 2]],Table_PI[[#This Row],[Input 3]],Table_PI[[#This Row],[Input 4]],'Customer Information'!$AR$12,200,ROW())<>\"No Rebate\",MeasureCalc(Table_PI[[#This Row],[Hide:\nFormula Name]],Table_SummaryPI[[#This Row],[Quantity]],Table_PI[[#This Row],[List 1]],Table_PI[[#This Row],[List 2]],Table_PI[[#This Row],[List 3]],Table_PI[[#This Row],[Size]],Table_PI[[#This Row],[Input 1]],Table_PI[[#This Row],[Input 2]],Table_PI[[#This Row],[Input 3]],Table_PI[[#This Row],[Input 4]],'Customer Information'!$AR$12,200,ROW()),\"\"),\"\")","v":""},{"$f":"IFERROR(IF(MeasureCalc(Table_PI[[#This Row],[Hide:\nFormula Name]],Table_SummaryPI[[#This Row],[Quantity]],Table_PI[[#This Row],[List 1]],Table_PI[[#This Row],[List 2]],Table_PI[[#This Row],[List 3]],Table_PI[[#This Row],[Size]],Table_PI[[#This Row],[Input 1]],Table_PI[[#This Row],[Input 2]],Table_PI[[#This Row],[Input 3]],Table_PI[[#This Row],[Input 4]],'Customer Information'!$AR$12,201,ROW())<>\"No Rebate\",MeasureCalc(Table_PI[[#This Row],[Hide:\nFormula Name]],Table_SummaryPI[[#This Row],[Quantity]],Table_PI[[#This Row],[List 1]],Table_PI[[#This Row],[List 2]],Table_PI[[#This Row],[List 3]],Table_PI[[#This Row],[Size]],Table_PI[[#This Row],[Input 1]],Table_PI[[#This Row],[Input 2]],Table_PI[[#This Row],[Input 3]],Table_PI[[#This Row],[Input 4]],'Customer Information'!$AR$12,201,ROW()),\"\"),\"\")","v":""}]
[{"$f":"Table_PI[[#This Row],[Line No.]]","v":""},{"$f":"IF(Table_SummaryPI[[#This Row],[MeassureCategory]]<>\"\",CONCATENATE(Table_SummaryPI[[#This Row],[MeassureCategory]],  \" - \", Table_SummaryPI[[#This Row],[ProposedMeasureCategory]],  \" - \", TEXT(Table_SummaryPI[[#This Row],[Size]],\"#,##0.00\"),\" \",Table_SummaryPI[[#This Row],[SizeUnit]]),\"\")","v":""},{"$f":"SUBSTITUTE(Table_PI[[#This Row],[Measure]],\"     \",\"\",1)","v":""},{"$f":"IF(Table_PI[[#This Row],[List 1]]<>\"\",Table_PI[[#This Row],[List 1]],\"\")","v":""},{"$f":"IF(Table_PI[[#This Row],[List 2]]<>\"\",Table_PI[[#This Row],[List 2]],\"\")","v":""},{"$f":"IF(Table_PI[[#This Row],[List 3]]<>\"\",Table_PI[[#This Row],[List 3]],\"\")","v":""},{"$f":"IF(Table_PI[[#This Row],[Manufacturer]]=\"\",\"\",Table_PI[[#This Row],[Manufacturer]])","v":""},{"$f":"IF(Table_PI[[#This Row],[Model Number]]=\"\",\"\",Table_PI[[#This Row],[Model Number]])","v":""},{"$f":"IF(Table_PI[[#This Row],[Serial Number(s)]]=\"\",\"\",Table_PI[[#This Row],[Serial Number(s)]])","v":""},null,{"$f":"IF(Table_PI[[#This Row],[Size]]=\"\",\"\",Table_PI[[#This Row],[Size]])","v":""},null,{"$f":"IFERROR(IF(AND(MeasureCalc(Table_PI[[#This Row],[Hide:\nFormula Name]],Table_SummaryPI[[#This Row],[Quantity]],Table_PI[[#This Row],[List 1]],Table_PI[[#This Row],[List 2]],Table_PI[[#This Row],[List 3]],Table_PI[[#This Row],[Size]],Table_PI[[#This Row],[Input 1]],Table_PI[[#This Row],[Input 2]],Table_PI[[#This Row],[Input 3]],Table_PI[[#This Row],[Input 4]],'Customer Information'!$AR$12,100,ROW())<>0,MeasureCalc(Table_PI[[#This Row],[Hide:\nFormula Name]],Table_SummaryPI[[#This Row],[Quantity]],Table_PI[[#This Row],[List 1]],Table_PI[[#This Row],[List 2]],Table_PI[[#This Row],[List 3]],Table_PI[[#This Row],[Size]],Table_PI[[#This Row],[Input 1]],Table_PI[[#This Row],[Input 2]],Table_PI[[#This Row],[Input 3]],Table_PI[[#This Row],[Input 4]],'Customer Information'!$AR$12,100,ROW())<>\"No Rebate\"),MeasureCalc(Table_PI[[#This Row],[Hide:\nFormula Name]],Table_SummaryPI[[#This Row],[Quantity]],Table_PI[[#This Row],[List 1]],Table_PI[[#This Row],[List 2]],Table_PI[[#This Row],[List 3]],Table_PI[[#This Row],[Size]],Table_PI[[#This Row],[Input 1]],Table_PI[[#This Row],[Input 2]],Table_PI[[#This Row],[Input 3]],Table_PI[[#This Row],[Input 4]],'Customer Information'!$AR$12,100,ROW()),\"\"),\"\")","v":""},{"$f":"IF(Table_PI[[#This Row],[Input 1]]<>\"\",Table_PI[[#This Row],[Input 1]],\"\")","v":""},null,{"$f":"IFERROR(IF(AND(MeasureCalc(Table_PI[[#This Row],[Hide:\nFormula Name]],Table_SummaryPI[[#This Row],[Quantity]],Table_PI[[#This Row],[List 1]],Table_PI[[#This Row],[List 2]],Table_PI[[#This Row],[List 3]],Table_PI[[#This Row],[Size]],Table_PI[[#This Row],[Input 1]],Table_PI[[#This Row],[Input 2]],Table_PI[[#This Row],[Input 3]],Table_PI[[#This Row],[Input 4]],'Customer Information'!$AR$12,101,ROW())<>0,MeasureCalc(Table_PI[[#This Row],[Hide:\nFormula Name]],Table_SummaryPI[[#This Row],[Quantity]],Table_PI[[#This Row],[List 1]],Table_PI[[#This Row],[List 2]],Table_PI[[#This Row],[List 3]],Table_PI[[#This Row],[Size]],Table_PI[[#This Row],[Input 1]],Table_PI[[#This Row],[Input 2]],Table_PI[[#This Row],[Input 3]],Table_PI[[#This Row],[Input 4]],'Customer Information'!$AR$12,101,ROW())<>\"No Rebate\"),MeasureCalc(Table_PI[[#This Row],[Hide:\nFormula Name]],Table_SummaryPI[[#This Row],[Quantity]],Table_PI[[#This Row],[List 1]],Table_PI[[#This Row],[List 2]],Table_PI[[#This Row],[List 3]],Table_PI[[#This Row],[Size]],Table_PI[[#This Row],[Input 1]],Table_PI[[#This Row],[Input 2]],Table_PI[[#This Row],[Input 3]],Table_PI[[#This Row],[Input 4]],'Customer Information'!$AR$12,101,ROW()),\"\"),\"\")","v":""},{"$f":"IF(Table_PI[[#This Row],[Input 2]]<>\"\",Table_PI[[#This Row],[Input 2]],\"\")","v":""},null,{"$f":"IFERROR(IF(AND(MeasureCalc(Table_PI[[#This Row],[Hide:\nFormula Name]],Table_SummaryPI[[#This Row],[Quantity]],Table_PI[[#This Row],[List 1]],Table_PI[[#This Row],[List 2]],Table_PI[[#This Row],[List 3]],Table_PI[[#This Row],[Size]],Table_PI[[#This Row],[Input 1]],Table_PI[[#This Row],[Input 2]],Table_PI[[#This Row],[Input 3]],Table_PI[[#This Row],[Input 4]],'Customer Information'!$AR$12,102,ROW())<>0,MeasureCalc(Table_PI[[#This Row],[Hide:\nFormula Name]],Table_SummaryPI[[#This Row],[Quantity]],Table_PI[[#This Row],[List 1]],Table_PI[[#This Row],[List 2]],Table_PI[[#This Row],[List 3]],Table_PI[[#This Row],[Size]],Table_PI[[#This Row],[Input 1]],Table_PI[[#This Row],[Input 2]],Table_PI[[#This Row],[Input 3]],Table_PI[[#This Row],[Input 4]],'Customer Information'!$AR$12,102,ROW())<>\"No Rebate\"),MeasureCalc(Table_PI[[#This Row],[Hide:\nFormula Name]],Table_SummaryPI[[#This Row],[Quantity]],Table_PI[[#This Row],[List 1]],Table_PI[[#This Row],[List 2]],Table_PI[[#This Row],[List 3]],Table_PI[[#This Row],[Size]],Table_PI[[#This Row],[Input 1]],Table_PI[[#This Row],[Input 2]],Table_PI[[#This Row],[Input 3]],Table_PI[[#This Row],[Input 4]],'Customer Information'!$AR$12,102,ROW()),\"\"),\"\")","v":""},{"$f":"IF(Table_PI[[#This Row],[Input 3]]<>\"\",Table_PI[[#This Row],[Input 3]],\"\")","v":""},null,{"$f":"IFERROR(IF(AND(MeasureCalc(Table_PI[[#This Row],[Hide:\nFormula Name]],Table_SummaryPI[[#This Row],[Quantity]],Table_PI[[#This Row],[List 1]],Table_PI[[#This Row],[List 2]],Table_PI[[#This Row],[List 3]],Table_PI[[#This Row],[Size]],Table_PI[[#This Row],[Input 1]],Table_PI[[#This Row],[Input 2]],Table_PI[[#This Row],[Input 3]],Table_PI[[#This Row],[Input 4]],'Customer Information'!$AR$12,103,ROW())<>0,MeasureCalc(Table_PI[[#This Row],[Hide:\nFormula Name]],Table_SummaryPI[[#This Row],[Quantity]],Table_PI[[#This Row],[List 1]],Table_PI[[#This Row],[List 2]],Table_PI[[#This Row],[List 3]],Table_PI[[#This Row],[Size]],Table_PI[[#This Row],[Input 1]],Table_PI[[#This Row],[Input 2]],Table_PI[[#This Row],[Input 3]],Table_PI[[#This Row],[Input 4]],'Customer Information'!$AR$12,103,ROW())<>\"No Rebate\"),MeasureCalc(Table_PI[[#This Row],[Hide:\nFormula Name]],Table_SummaryPI[[#This Row],[Quantity]],Table_PI[[#This Row],[List 1]],Table_PI[[#This Row],[List 2]],Table_PI[[#This Row],[List 3]],Table_PI[[#This Row],[Size]],Table_PI[[#This Row],[Input 1]],Table_PI[[#This Row],[Input 2]],Table_PI[[#This Row],[Input 3]],Table_PI[[#This Row],[Input 4]],'Customer Information'!$AR$12,103,ROW()),\"\"),\"\")","v":""},{"$f":"IF(Table_PI[[#This Row],[Input 4]]<>\"\",Table_PI[[#This Row],[Input 4]],\"\")","v":""},{"$f":"IF(Table_PI[[#This Row],[Quantity]]=\"\",\"\",Table_PI[[#This Row],[Quantity]])","v":""},{"$f":"IF(Table_PI[[#This Row],[Notes]]=\"\",\"\",Table_PI[[#This Row],[Notes]])","v":""},{"$f":"IF(OR(Table_PI[[#This Row],[Hide:\nBaseline kWh]]=\"\",Table_PI[[#This Row],[Hide:\nBaseline kWh]]=0),\"\",Table_PI[[#This Row],[Hide:\nBaseline kWh]])","v":""},{"$f":"IF(OR(Table_PI[[#This Row],[Hide:\nBaseline kW]]=\"\",Table_PI[[#This Row],[Hide:\nBaseline kW]]=0),\"\",Table_PI[[#This Row],[Hide:\nBaseline kW]])","v":""},{"$f":"IF(OR(Table_PI[[#This Row],[Hide:\nProposed kWh]]=\"\",Table_PI[[#This Row],[Hide:\nProposed kWh]]=0),\"\",Table_PI[[#This Row],[Hide:\nProposed kWh]])","v":""},{"$f":"IF(OR(Table_PI[[#This Row],[Hide:\nProposed kW]]=\"\",Table_PI[[#This Row],[Hide:\nProposed kW]]=0),\"\",Table_PI[[#This Row],[Hide:\nProposed kW]])","v":""},{"$f":"IF(OR(Table_PI[[#This Row],[Rebate]]=\"\",Table_PI[[#This Row],[Rebate]]=0),\"\",Table_PI[[#This Row],[Rebate]])","v":""},{"$f":"IF(OR(Table_PI[[#This Row],[Hide:\nIncremental Cost]]=\"\",Table_PI[[#This Row],[Hide:\nIncremental Cost]]=0),\"\",Table_PI[[#This Row],[Hide:\nIncremental Cost]])","v":""},{"$f":"IFERROR(IF(Table_SummaryPI[[#This Row],[kWhSavings]]=\"\",\"\",ROUND(Table_SummaryPI[[#This Row],[kWhSavings]]/$AG$401*'Customer Information'!$BC$17,2)),0)","v":""},{"$f":"IF(OR(Table_PI[[#This Row],[Annual kWh]]=\"\",Table_PI[[#This Row],[Annual kWh]]=0),\"\",Table_PI[[#This Row],[Annual kWh]])","v":""},{"$f":"IF(OR(Table_PI[[#This Row],[Peak kW]]=\"\",Table_PI[[#This Row],[Peak kW]]=0),\"\",Table_PI[[#This Row],[Peak kW]])","v":""},{"$f":"IFERROR(IF(Table_SummaryPI[[#This Row],[kWhSavings]]=\"\",\"\",$AU$9*Table_SummaryPI[[#This Row],[kWhSavings]]),0)","v":""},{"$f":"IFERROR(IF(Table_SummaryPI[[#This Row],[kWhSavings]]=\"\",\"\",$AU$14*Table_SummaryPI[[#This Row],[kWhSavings]]),0)","v":""},{"$f":"IFERROR(IF(Table_SummaryPI[[#This Row],[kWhSavings]]=\"\",\"\",$AU$18*Table_SummaryPI[[#This Row],[kWhSavings]]),0)","v":""},{"$f":"IFERROR(IF(Table_SummaryPI[[#This Row],[kWhSavings]]=\"\",\"\",$AU$22*Table_SummaryPI[[#This Row],[kWhSavings]]),0)","v":""},{"$f":"IFERROR(IF(MeasureCalc(Table_PI[[#This Row],[Hide:\nFormula Name]],Table_SummaryPI[[#This Row],[Quantity]],Table_PI[[#This Row],[List 1]],Table_PI[[#This Row],[List 2]],Table_PI[[#This Row],[List 3]],Table_PI[[#This Row],[Size]],Table_PI[[#This Row],[Input 1]],Table_PI[[#This Row],[Input 2]],Table_PI[[#This Row],[Input 3]],Table_PI[[#This Row],[Input 4]],'Customer Information'!$AR$12,200,ROW())<>\"No Rebate\",MeasureCalc(Table_PI[[#This Row],[Hide:\nFormula Name]],Table_SummaryPI[[#This Row],[Quantity]],Table_PI[[#This Row],[List 1]],Table_PI[[#This Row],[List 2]],Table_PI[[#This Row],[List 3]],Table_PI[[#This Row],[Size]],Table_PI[[#This Row],[Input 1]],Table_PI[[#This Row],[Input 2]],Table_PI[[#This Row],[Input 3]],Table_PI[[#This Row],[Input 4]],'Customer Information'!$AR$12,200,ROW()),\"\"),\"\")","v":""},{"$f":"IFERROR(IF(MeasureCalc(Table_PI[[#This Row],[Hide:\nFormula Name]],Table_SummaryPI[[#This Row],[Quantity]],Table_PI[[#This Row],[List 1]],Table_PI[[#This Row],[List 2]],Table_PI[[#This Row],[List 3]],Table_PI[[#This Row],[Size]],Table_PI[[#This Row],[Input 1]],Table_PI[[#This Row],[Input 2]],Table_PI[[#This Row],[Input 3]],Table_PI[[#This Row],[Input 4]],'Customer Information'!$AR$12,201,ROW())<>\"No Rebate\",MeasureCalc(Table_PI[[#This Row],[Hide:\nFormula Name]],Table_SummaryPI[[#This Row],[Quantity]],Table_PI[[#This Row],[List 1]],Table_PI[[#This Row],[List 2]],Table_PI[[#This Row],[List 3]],Table_PI[[#This Row],[Size]],Table_PI[[#This Row],[Input 1]],Table_PI[[#This Row],[Input 2]],Table_PI[[#This Row],[Input 3]],Table_PI[[#This Row],[Input 4]],'Customer Information'!$AR$12,201,ROW()),\"\"),\"\")","v":""}]
[{"$f":"Table_PI[[#This Row],[Line No.]]","v":""},{"$f":"IF(Table_SummaryPI[[#This Row],[MeassureCategory]]<>\"\",CONCATENATE(Table_SummaryPI[[#This Row],[MeassureCategory]],  \" - \", Table_SummaryPI[[#This Row],[ProposedMeasureCategory]],  \" - \", TEXT(Table_SummaryPI[[#This Row],[Size]],\"#,##0.00\"),\" \",Table_SummaryPI[[#This Row],[SizeUnit]]),\"\")","v":""},{"$f":"SUBSTITUTE(Table_PI[[#This Row],[Measure]],\"     \",\"\",1)","v":""},{"$f":"IF(Table_PI[[#This Row],[List 1]]<>\"\",Table_PI[[#This Row],[List 1]],\"\")","v":""},{"$f":"IF(Table_PI[[#This Row],[List 2]]<>\"\",Table_PI[[#This Row],[List 2]],\"\")","v":""},{"$f":"IF(Table_PI[[#This Row],[List 3]]<>\"\",Table_PI[[#This Row],[List 3]],\"\")","v":""},{"$f":"IF(Table_PI[[#This Row],[Manufacturer]]=\"\",\"\",Table_PI[[#This Row],[Manufacturer]])","v":""},{"$f":"IF(Table_PI[[#This Row],[Model Number]]=\"\",\"\",Table_PI[[#This Row],[Model Number]])","v":""},{"$f":"IF(Table_PI[[#This Row],[Serial Number(s)]]=\"\",\"\",Table_PI[[#This Row],[Serial Number(s)]])","v":""},null,{"$f":"IF(Table_PI[[#This Row],[Size]]=\"\",\"\",Table_PI[[#This Row],[Size]])","v":""},null,{"$f":"IFERROR(IF(AND(MeasureCalc(Table_PI[[#This Row],[Hide:\nFormula Name]],Table_SummaryPI[[#This Row],[Quantity]],Table_PI[[#This Row],[List 1]],Table_PI[[#This Row],[List 2]],Table_PI[[#This Row],[List 3]],Table_PI[[#This Row],[Size]],Table_PI[[#This Row],[Input 1]],Table_PI[[#This Row],[Input 2]],Table_PI[[#This Row],[Input 3]],Table_PI[[#This Row],[Input 4]],'Customer Information'!$AR$12,100,ROW())<>0,MeasureCalc(Table_PI[[#This Row],[Hide:\nFormula Name]],Table_SummaryPI[[#This Row],[Quantity]],Table_PI[[#This Row],[List 1]],Table_PI[[#This Row],[List 2]],Table_PI[[#This Row],[List 3]],Table_PI[[#This Row],[Size]],Table_PI[[#This Row],[Input 1]],Table_PI[[#This Row],[Input 2]],Table_PI[[#This Row],[Input 3]],Table_PI[[#This Row],[Input 4]],'Customer Information'!$AR$12,100,ROW())<>\"No Rebate\"),MeasureCalc(Table_PI[[#This Row],[Hide:\nFormula Name]],Table_SummaryPI[[#This Row],[Quantity]],Table_PI[[#This Row],[List 1]],Table_PI[[#This Row],[List 2]],Table_PI[[#This Row],[List 3]],Table_PI[[#This Row],[Size]],Table_PI[[#This Row],[Input 1]],Table_PI[[#This Row],[Input 2]],Table_PI[[#This Row],[Input 3]],Table_PI[[#This Row],[Input 4]],'Customer Information'!$AR$12,100,ROW()),\"\"),\"\")","v":""},{"$f":"IF(Table_PI[[#This Row],[Input 1]]<>\"\",Table_PI[[#This Row],[Input 1]],\"\")","v":""},null,{"$f":"IFERROR(IF(AND(MeasureCalc(Table_PI[[#This Row],[Hide:\nFormula Name]],Table_SummaryPI[[#This Row],[Quantity]],Table_PI[[#This Row],[List 1]],Table_PI[[#This Row],[List 2]],Table_PI[[#This Row],[List 3]],Table_PI[[#This Row],[Size]],Table_PI[[#This Row],[Input 1]],Table_PI[[#This Row],[Input 2]],Table_PI[[#This Row],[Input 3]],Table_PI[[#This Row],[Input 4]],'Customer Information'!$AR$12,101,ROW())<>0,MeasureCalc(Table_PI[[#This Row],[Hide:\nFormula Name]],Table_SummaryPI[[#This Row],[Quantity]],Table_PI[[#This Row],[List 1]],Table_PI[[#This Row],[List 2]],Table_PI[[#This Row],[List 3]],Table_PI[[#This Row],[Size]],Table_PI[[#This Row],[Input 1]],Table_PI[[#This Row],[Input 2]],Table_PI[[#This Row],[Input 3]],Table_PI[[#This Row],[Input 4]],'Customer Information'!$AR$12,101,ROW())<>\"No Rebate\"),MeasureCalc(Table_PI[[#This Row],[Hide:\nFormula Name]],Table_SummaryPI[[#This Row],[Quantity]],Table_PI[[#This Row],[List 1]],Table_PI[[#This Row],[List 2]],Table_PI[[#This Row],[List 3]],Table_PI[[#This Row],[Size]],Table_PI[[#This Row],[Input 1]],Table_PI[[#This Row],[Input 2]],Table_PI[[#This Row],[Input 3]],Table_PI[[#This Row],[Input 4]],'Customer Information'!$AR$12,101,ROW()),\"\"),\"\")","v":""},{"$f":"IF(Table_PI[[#This Row],[Input 2]]<>\"\",Table_PI[[#This Row],[Input 2]],\"\")","v":""},null,{"$f":"IFERROR(IF(AND(MeasureCalc(Table_PI[[#This Row],[Hide:\nFormula Name]],Table_SummaryPI[[#This Row],[Quantity]],Table_PI[[#This Row],[List 1]],Table_PI[[#This Row],[List 2]],Table_PI[[#This Row],[List 3]],Table_PI[[#This Row],[Size]],Table_PI[[#This Row],[Input 1]],Table_PI[[#This Row],[Input 2]],Table_PI[[#This Row],[Input 3]],Table_PI[[#This Row],[Input 4]],'Customer Information'!$AR$12,102,ROW())<>0,MeasureCalc(Table_PI[[#This Row],[Hide:\nFormula Name]],Table_SummaryPI[[#This Row],[Quantity]],Table_PI[[#This Row],[List 1]],Table_PI[[#This Row],[List 2]],Table_PI[[#This Row],[List 3]],Table_PI[[#This Row],[Size]],Table_PI[[#This Row],[Input 1]],Table_PI[[#This Row],[Input 2]],Table_PI[[#This Row],[Input 3]],Table_PI[[#This Row],[Input 4]],'Customer Information'!$AR$12,102,ROW())<>\"No Rebate\"),MeasureCalc(Table_PI[[#This Row],[Hide:\nFormula Name]],Table_SummaryPI[[#This Row],[Quantity]],Table_PI[[#This Row],[List 1]],Table_PI[[#This Row],[List 2]],Table_PI[[#This Row],[List 3]],Table_PI[[#This Row],[Size]],Table_PI[[#This Row],[Input 1]],Table_PI[[#This Row],[Input 2]],Table_PI[[#This Row],[Input 3]],Table_PI[[#This Row],[Input 4]],'Customer Information'!$AR$12,102,ROW()),\"\"),\"\")","v":""},{"$f":"IF(Table_PI[[#This Row],[Input 3]]<>\"\",Table_PI[[#This Row],[Input 3]],\"\")","v":""},null,{"$f":"IFERROR(IF(AND(MeasureCalc(Table_PI[[#This Row],[Hide:\nFormula Name]],Table_SummaryPI[[#This Row],[Quantity]],Table_PI[[#This Row],[List 1]],Table_PI[[#This Row],[List 2]],Table_PI[[#This Row],[List 3]],Table_PI[[#This Row],[Size]],Table_PI[[#This Row],[Input 1]],Table_PI[[#This Row],[Input 2]],Table_PI[[#This Row],[Input 3]],Table_PI[[#This Row],[Input 4]],'Customer Information'!$AR$12,103,ROW())<>0,MeasureCalc(Table_PI[[#This Row],[Hide:\nFormula Name]],Table_SummaryPI[[#This Row],[Quantity]],Table_PI[[#This Row],[List 1]],Table_PI[[#This Row],[List 2]],Table_PI[[#This Row],[List 3]],Table_PI[[#This Row],[Size]],Table_PI[[#This Row],[Input 1]],Table_PI[[#This Row],[Input 2]],Table_PI[[#This Row],[Input 3]],Table_PI[[#This Row],[Input 4]],'Customer Information'!$AR$12,103,ROW())<>\"No Rebate\"),MeasureCalc(Table_PI[[#This Row],[Hide:\nFormula Name]],Table_SummaryPI[[#This Row],[Quantity]],Table_PI[[#This Row],[List 1]],Table_PI[[#This Row],[List 2]],Table_PI[[#This Row],[List 3]],Table_PI[[#This Row],[Size]],Table_PI[[#This Row],[Input 1]],Table_PI[[#This Row],[Input 2]],Table_PI[[#This Row],[Input 3]],Table_PI[[#This Row],[Input 4]],'Customer Information'!$AR$12,103,ROW()),\"\"),\"\")","v":""},{"$f":"IF(Table_PI[[#This Row],[Input 4]]<>\"\",Table_PI[[#This Row],[Input 4]],\"\")","v":""},{"$f":"IF(Table_PI[[#This Row],[Quantity]]=\"\",\"\",Table_PI[[#This Row],[Quantity]])","v":""},{"$f":"IF(Table_PI[[#This Row],[Notes]]=\"\",\"\",Table_PI[[#This Row],[Notes]])","v":""},{"$f":"IF(OR(Table_PI[[#This Row],[Hide:\nBaseline kWh]]=\"\",Table_PI[[#This Row],[Hide:\nBaseline kWh]]=0),\"\",Table_PI[[#This Row],[Hide:\nBaseline kWh]])","v":""},{"$f":"IF(OR(Table_PI[[#This Row],[Hide:\nBaseline kW]]=\"\",Table_PI[[#This Row],[Hide:\nBaseline kW]]=0),\"\",Table_PI[[#This Row],[Hide:\nBaseline kW]])","v":""},{"$f":"IF(OR(Table_PI[[#This Row],[Hide:\nProposed kWh]]=\"\",Table_PI[[#This Row],[Hide:\nProposed kWh]]=0),\"\",Table_PI[[#This Row],[Hide:\nProposed kWh]])","v":""},{"$f":"IF(OR(Table_PI[[#This Row],[Hide:\nProposed kW]]=\"\",Table_PI[[#This Row],[Hide:\nProposed kW]]=0),\"\",Table_PI[[#This Row],[Hide:\nProposed kW]])","v":""},{"$f":"IF(OR(Table_PI[[#This Row],[Rebate]]=\"\",Table_PI[[#This Row],[Rebate]]=0),\"\",Table_PI[[#This Row],[Rebate]])","v":""},{"$f":"IF(OR(Table_PI[[#This Row],[Hide:\nIncremental Cost]]=\"\",Table_PI[[#This Row],[Hide:\nIncremental Cost]]=0),\"\",Table_PI[[#This Row],[Hide:\nIncremental Cost]])","v":""},{"$f":"IFERROR(IF(Table_SummaryPI[[#This Row],[kWhSavings]]=\"\",\"\",ROUND(Table_SummaryPI[[#This Row],[kWhSavings]]/$AG$401*'Customer Information'!$BC$17,2)),0)","v":""},{"$f":"IF(OR(Table_PI[[#This Row],[Annual kWh]]=\"\",Table_PI[[#This Row],[Annual kWh]]=0),\"\",Table_PI[[#This Row],[Annual kWh]])","v":""},{"$f":"IF(OR(Table_PI[[#This Row],[Peak kW]]=\"\",Table_PI[[#This Row],[Peak kW]]=0),\"\",Table_PI[[#This Row],[Peak kW]])","v":""},{"$f":"IFERROR(IF(Table_SummaryPI[[#This Row],[kWhSavings]]=\"\",\"\",$AU$9*Table_SummaryPI[[#This Row],[kWhSavings]]),0)","v":""},{"$f":"IFERROR(IF(Table_SummaryPI[[#This Row],[kWhSavings]]=\"\",\"\",$AU$14*Table_SummaryPI[[#This Row],[kWhSavings]]),0)","v":""},{"$f":"IFERROR(IF(Table_SummaryPI[[#This Row],[kWhSavings]]=\"\",\"\",$AU$18*Table_SummaryPI[[#This Row],[kWhSavings]]),0)","v":""},{"$f":"IFERROR(IF(Table_SummaryPI[[#This Row],[kWhSavings]]=\"\",\"\",$AU$22*Table_SummaryPI[[#This Row],[kWhSavings]]),0)","v":""},{"$f":"IFERROR(IF(MeasureCalc(Table_PI[[#This Row],[Hide:\nFormula Name]],Table_SummaryPI[[#This Row],[Quantity]],Table_PI[[#This Row],[List 1]],Table_PI[[#This Row],[List 2]],Table_PI[[#This Row],[List 3]],Table_PI[[#This Row],[Size]],Table_PI[[#This Row],[Input 1]],Table_PI[[#This Row],[Input 2]],Table_PI[[#This Row],[Input 3]],Table_PI[[#This Row],[Input 4]],'Customer Information'!$AR$12,200,ROW())<>\"No Rebate\",MeasureCalc(Table_PI[[#This Row],[Hide:\nFormula Name]],Table_SummaryPI[[#This Row],[Quantity]],Table_PI[[#This Row],[List 1]],Table_PI[[#This Row],[List 2]],Table_PI[[#This Row],[List 3]],Table_PI[[#This Row],[Size]],Table_PI[[#This Row],[Input 1]],Table_PI[[#This Row],[Input 2]],Table_PI[[#This Row],[Input 3]],Table_PI[[#This Row],[Input 4]],'Customer Information'!$AR$12,200,ROW()),\"\"),\"\")","v":""},{"$f":"IFERROR(IF(MeasureCalc(Table_PI[[#This Row],[Hide:\nFormula Name]],Table_SummaryPI[[#This Row],[Quantity]],Table_PI[[#This Row],[List 1]],Table_PI[[#This Row],[List 2]],Table_PI[[#This Row],[List 3]],Table_PI[[#This Row],[Size]],Table_PI[[#This Row],[Input 1]],Table_PI[[#This Row],[Input 2]],Table_PI[[#This Row],[Input 3]],Table_PI[[#This Row],[Input 4]],'Customer Information'!$AR$12,201,ROW())<>\"No Rebate\",MeasureCalc(Table_PI[[#This Row],[Hide:\nFormula Name]],Table_SummaryPI[[#This Row],[Quantity]],Table_PI[[#This Row],[List 1]],Table_PI[[#This Row],[List 2]],Table_PI[[#This Row],[List 3]],Table_PI[[#This Row],[Size]],Table_PI[[#This Row],[Input 1]],Table_PI[[#This Row],[Input 2]],Table_PI[[#This Row],[Input 3]],Table_PI[[#This Row],[Input 4]],'Customer Information'!$AR$12,201,ROW()),\"\"),\"\")","v":""}]
[{"$f":"Table_PI[[#This Row],[Line No.]]","v":""},{"$f":"IF(Table_SummaryPI[[#This Row],[MeassureCategory]]<>\"\",CONCATENATE(Table_SummaryPI[[#This Row],[MeassureCategory]],  \" - \", Table_SummaryPI[[#This Row],[ProposedMeasureCategory]],  \" - \", TEXT(Table_SummaryPI[[#This Row],[Size]],\"#,##0.00\"),\" \",Table_SummaryPI[[#This Row],[SizeUnit]]),\"\")","v":""},{"$f":"SUBSTITUTE(Table_PI[[#This Row],[Measure]],\"     \",\"\",1)","v":""},{"$f":"IF(Table_PI[[#This Row],[List 1]]<>\"\",Table_PI[[#This Row],[List 1]],\"\")","v":""},{"$f":"IF(Table_PI[[#This Row],[List 2]]<>\"\",Table_PI[[#This Row],[List 2]],\"\")","v":""},{"$f":"IF(Table_PI[[#This Row],[List 3]]<>\"\",Table_PI[[#This Row],[List 3]],\"\")","v":""},{"$f":"IF(Table_PI[[#This Row],[Manufacturer]]=\"\",\"\",Table_PI[[#This Row],[Manufacturer]])","v":""},{"$f":"IF(Table_PI[[#This Row],[Model Number]]=\"\",\"\",Table_PI[[#This Row],[Model Number]])","v":""},{"$f":"IF(Table_PI[[#This Row],[Serial Number(s)]]=\"\",\"\",Table_PI[[#This Row],[Serial Number(s)]])","v":""},null,{"$f":"IF(Table_PI[[#This Row],[Size]]=\"\",\"\",Table_PI[[#This Row],[Size]])","v":""},null,{"$f":"IFERROR(IF(AND(MeasureCalc(Table_PI[[#This Row],[Hide:\nFormula Name]],Table_SummaryPI[[#This Row],[Quantity]],Table_PI[[#This Row],[List 1]],Table_PI[[#This Row],[List 2]],Table_PI[[#This Row],[List 3]],Table_PI[[#This Row],[Size]],Table_PI[[#This Row],[Input 1]],Table_PI[[#This Row],[Input 2]],Table_PI[[#This Row],[Input 3]],Table_PI[[#This Row],[Input 4]],'Customer Information'!$AR$12,100,ROW())<>0,MeasureCalc(Table_PI[[#This Row],[Hide:\nFormula Name]],Table_SummaryPI[[#This Row],[Quantity]],Table_PI[[#This Row],[List 1]],Table_PI[[#This Row],[List 2]],Table_PI[[#This Row],[List 3]],Table_PI[[#This Row],[Size]],Table_PI[[#This Row],[Input 1]],Table_PI[[#This Row],[Input 2]],Table_PI[[#This Row],[Input 3]],Table_PI[[#This Row],[Input 4]],'Customer Information'!$AR$12,100,ROW())<>\"No Rebate\"),MeasureCalc(Table_PI[[#This Row],[Hide:\nFormula Name]],Table_SummaryPI[[#This Row],[Quantity]],Table_PI[[#This Row],[List 1]],Table_PI[[#This Row],[List 2]],Table_PI[[#This Row],[List 3]],Table_PI[[#This Row],[Size]],Table_PI[[#This Row],[Input 1]],Table_PI[[#This Row],[Input 2]],Table_PI[[#This Row],[Input 3]],Table_PI[[#This Row],[Input 4]],'Customer Information'!$AR$12,100,ROW()),\"\"),\"\")","v":""},{"$f":"IF(Table_PI[[#This Row],[Input 1]]<>\"\",Table_PI[[#This Row],[Input 1]],\"\")","v":""},null,{"$f":"IFERROR(IF(AND(MeasureCalc(Table_PI[[#This Row],[Hide:\nFormula Name]],Table_SummaryPI[[#This Row],[Quantity]],Table_PI[[#This Row],[List 1]],Table_PI[[#This Row],[List 2]],Table_PI[[#This Row],[List 3]],Table_PI[[#This Row],[Size]],Table_PI[[#This Row],[Input 1]],Table_PI[[#This Row],[Input 2]],Table_PI[[#This Row],[Input 3]],Table_PI[[#This Row],[Input 4]],'Customer Information'!$AR$12,101,ROW())<>0,MeasureCalc(Table_PI[[#This Row],[Hide:\nFormula Name]],Table_SummaryPI[[#This Row],[Quantity]],Table_PI[[#This Row],[List 1]],Table_PI[[#This Row],[List 2]],Table_PI[[#This Row],[List 3]],Table_PI[[#This Row],[Size]],Table_PI[[#This Row],[Input 1]],Table_PI[[#This Row],[Input 2]],Table_PI[[#This Row],[Input 3]],Table_PI[[#This Row],[Input 4]],'Customer Information'!$AR$12,101,ROW())<>\"No Rebate\"),MeasureCalc(Table_PI[[#This Row],[Hide:\nFormula Name]],Table_SummaryPI[[#This Row],[Quantity]],Table_PI[[#This Row],[List 1]],Table_PI[[#This Row],[List 2]],Table_PI[[#This Row],[List 3]],Table_PI[[#This Row],[Size]],Table_PI[[#This Row],[Input 1]],Table_PI[[#This Row],[Input 2]],Table_PI[[#This Row],[Input 3]],Table_PI[[#This Row],[Input 4]],'Customer Information'!$AR$12,101,ROW()),\"\"),\"\")","v":""},{"$f":"IF(Table_PI[[#This Row],[Input 2]]<>\"\",Table_PI[[#This Row],[Input 2]],\"\")","v":""},null,{"$f":"IFERROR(IF(AND(MeasureCalc(Table_PI[[#This Row],[Hide:\nFormula Name]],Table_SummaryPI[[#This Row],[Quantity]],Table_PI[[#This Row],[List 1]],Table_PI[[#This Row],[List 2]],Table_PI[[#This Row],[List 3]],Table_PI[[#This Row],[Size]],Table_PI[[#This Row],[Input 1]],Table_PI[[#This Row],[Input 2]],Table_PI[[#This Row],[Input 3]],Table_PI[[#This Row],[Input 4]],'Customer Information'!$AR$12,102,ROW())<>0,MeasureCalc(Table_PI[[#This Row],[Hide:\nFormula Name]],Table_SummaryPI[[#This Row],[Quantity]],Table_PI[[#This Row],[List 1]],Table_PI[[#This Row],[List 2]],Table_PI[[#This Row],[List 3]],Table_PI[[#This Row],[Size]],Table_PI[[#This Row],[Input 1]],Table_PI[[#This Row],[Input 2]],Table_PI[[#This Row],[Input 3]],Table_PI[[#This Row],[Input 4]],'Customer Information'!$AR$12,102,ROW())<>\"No Rebate\"),MeasureCalc(Table_PI[[#This Row],[Hide:\nFormula Name]],Table_SummaryPI[[#This Row],[Quantity]],Table_PI[[#This Row],[List 1]],Table_PI[[#This Row],[List 2]],Table_PI[[#This Row],[List 3]],Table_PI[[#This Row],[Size]],Table_PI[[#This Row],[Input 1]],Table_PI[[#This Row],[Input 2]],Table_PI[[#This Row],[Input 3]],Table_PI[[#This Row],[Input 4]],'Customer Information'!$AR$12,102,ROW()),\"\"),\"\")","v":""},{"$f":"IF(Table_PI[[#This Row],[Input 3]]<>\"\",Table_PI[[#This Row],[Input 3]],\"\")","v":""},null,{"$f":"IFERROR(IF(AND(MeasureCalc(Table_PI[[#This Row],[Hide:\nFormula Name]],Table_SummaryPI[[#This Row],[Quantity]],Table_PI[[#This Row],[List 1]],Table_PI[[#This Row],[List 2]],Table_PI[[#This Row],[List 3]],Table_PI[[#This Row],[Size]],Table_PI[[#This Row],[Input 1]],Table_PI[[#This Row],[Input 2]],Table_PI[[#This Row],[Input 3]],Table_PI[[#This Row],[Input 4]],'Customer Information'!$AR$12,103,ROW())<>0,MeasureCalc(Table_PI[[#This Row],[Hide:\nFormula Name]],Table_SummaryPI[[#This Row],[Quantity]],Table_PI[[#This Row],[List 1]],Table_PI[[#This Row],[List 2]],Table_PI[[#This Row],[List 3]],Table_PI[[#This Row],[Size]],Table_PI[[#This Row],[Input 1]],Table_PI[[#This Row],[Input 2]],Table_PI[[#This Row],[Input 3]],Table_PI[[#This Row],[Input 4]],'Customer Information'!$AR$12,103,ROW())<>\"No Rebate\"),MeasureCalc(Table_PI[[#This Row],[Hide:\nFormula Name]],Table_SummaryPI[[#This Row],[Quantity]],Table_PI[[#This Row],[List 1]],Table_PI[[#This Row],[List 2]],Table_PI[[#This Row],[List 3]],Table_PI[[#This Row],[Size]],Table_PI[[#This Row],[Input 1]],Table_PI[[#This Row],[Input 2]],Table_PI[[#This Row],[Input 3]],Table_PI[[#This Row],[Input 4]],'Customer Information'!$AR$12,103,ROW()),\"\"),\"\")","v":""},{"$f":"IF(Table_PI[[#This Row],[Input 4]]<>\"\",Table_PI[[#This Row],[Input 4]],\"\")","v":""},{"$f":"IF(Table_PI[[#This Row],[Quantity]]=\"\",\"\",Table_PI[[#This Row],[Quantity]])","v":""},{"$f":"IF(Table_PI[[#This Row],[Notes]]=\"\",\"\",Table_PI[[#This Row],[Notes]])","v":""},{"$f":"IF(OR(Table_PI[[#This Row],[Hide:\nBaseline kWh]]=\"\",Table_PI[[#This Row],[Hide:\nBaseline kWh]]=0),\"\",Table_PI[[#This Row],[Hide:\nBaseline kWh]])","v":""},{"$f":"IF(OR(Table_PI[[#This Row],[Hide:\nBaseline kW]]=\"\",Table_PI[[#This Row],[Hide:\nBaseline kW]]=0),\"\",Table_PI[[#This Row],[Hide:\nBaseline kW]])","v":""},{"$f":"IF(OR(Table_PI[[#This Row],[Hide:\nProposed kWh]]=\"\",Table_PI[[#This Row],[Hide:\nProposed kWh]]=0),\"\",Table_PI[[#This Row],[Hide:\nProposed kWh]])","v":""},{"$f":"IF(OR(Table_PI[[#This Row],[Hide:\nProposed kW]]=\"\",Table_PI[[#This Row],[Hide:\nProposed kW]]=0),\"\",Table_PI[[#This Row],[Hide:\nProposed kW]])","v":""},{"$f":"IF(OR(Table_PI[[#This Row],[Rebate]]=\"\",Table_PI[[#This Row],[Rebate]]=0),\"\",Table_PI[[#This Row],[Rebate]])","v":""},{"$f":"IF(OR(Table_PI[[#This Row],[Hide:\nIncremental Cost]]=\"\",Table_PI[[#This Row],[Hide:\nIncremental Cost]]=0),\"\",Table_PI[[#This Row],[Hide:\nIncremental Cost]])","v":""},{"$f":"IFERROR(IF(Table_SummaryPI[[#This Row],[kWhSavings]]=\"\",\"\",ROUND(Table_SummaryPI[[#This Row],[kWhSavings]]/$AG$401*'Customer Information'!$BC$17,2)),0)","v":""},{"$f":"IF(OR(Table_PI[[#This Row],[Annual kWh]]=\"\",Table_PI[[#This Row],[Annual kWh]]=0),\"\",Table_PI[[#This Row],[Annual kWh]])","v":""},{"$f":"IF(OR(Table_PI[[#This Row],[Peak kW]]=\"\",Table_PI[[#This Row],[Peak kW]]=0),\"\",Table_PI[[#This Row],[Peak kW]])","v":""},{"$f":"IFERROR(IF(Table_SummaryPI[[#This Row],[kWhSavings]]=\"\",\"\",$AU$9*Table_SummaryPI[[#This Row],[kWhSavings]]),0)","v":""},{"$f":"IFERROR(IF(Table_SummaryPI[[#This Row],[kWhSavings]]=\"\",\"\",$AU$14*Table_SummaryPI[[#This Row],[kWhSavings]]),0)","v":""},{"$f":"IFERROR(IF(Table_SummaryPI[[#This Row],[kWhSavings]]=\"\",\"\",$AU$18*Table_SummaryPI[[#This Row],[kWhSavings]]),0)","v":""},{"$f":"IFERROR(IF(Table_SummaryPI[[#This Row],[kWhSavings]]=\"\",\"\",$AU$22*Table_SummaryPI[[#This Row],[kWhSavings]]),0)","v":""},{"$f":"IFERROR(IF(MeasureCalc(Table_PI[[#This Row],[Hide:\nFormula Name]],Table_SummaryPI[[#This Row],[Quantity]],Table_PI[[#This Row],[List 1]],Table_PI[[#This Row],[List 2]],Table_PI[[#This Row],[List 3]],Table_PI[[#This Row],[Size]],Table_PI[[#This Row],[Input 1]],Table_PI[[#This Row],[Input 2]],Table_PI[[#This Row],[Input 3]],Table_PI[[#This Row],[Input 4]],'Customer Information'!$AR$12,200,ROW())<>\"No Rebate\",MeasureCalc(Table_PI[[#This Row],[Hide:\nFormula Name]],Table_SummaryPI[[#This Row],[Quantity]],Table_PI[[#This Row],[List 1]],Table_PI[[#This Row],[List 2]],Table_PI[[#This Row],[List 3]],Table_PI[[#This Row],[Size]],Table_PI[[#This Row],[Input 1]],Table_PI[[#This Row],[Input 2]],Table_PI[[#This Row],[Input 3]],Table_PI[[#This Row],[Input 4]],'Customer Information'!$AR$12,200,ROW()),\"\"),\"\")","v":""},{"$f":"IFERROR(IF(MeasureCalc(Table_PI[[#This Row],[Hide:\nFormula Name]],Table_SummaryPI[[#This Row],[Quantity]],Table_PI[[#This Row],[List 1]],Table_PI[[#This Row],[List 2]],Table_PI[[#This Row],[List 3]],Table_PI[[#This Row],[Size]],Table_PI[[#This Row],[Input 1]],Table_PI[[#This Row],[Input 2]],Table_PI[[#This Row],[Input 3]],Table_PI[[#This Row],[Input 4]],'Customer Information'!$AR$12,201,ROW())<>\"No Rebate\",MeasureCalc(Table_PI[[#This Row],[Hide:\nFormula Name]],Table_SummaryPI[[#This Row],[Quantity]],Table_PI[[#This Row],[List 1]],Table_PI[[#This Row],[List 2]],Table_PI[[#This Row],[List 3]],Table_PI[[#This Row],[Size]],Table_PI[[#This Row],[Input 1]],Table_PI[[#This Row],[Input 2]],Table_PI[[#This Row],[Input 3]],Table_PI[[#This Row],[Input 4]],'Customer Information'!$AR$12,201,ROW()),\"\"),\"\")","v":""}]
[{"$f":"Table_PI[[#This Row],[Line No.]]","v":""},{"$f":"IF(Table_SummaryPI[[#This Row],[MeassureCategory]]<>\"\",CONCATENATE(Table_SummaryPI[[#This Row],[MeassureCategory]],  \" - \", Table_SummaryPI[[#This Row],[ProposedMeasureCategory]],  \" - \", TEXT(Table_SummaryPI[[#This Row],[Size]],\"#,##0.00\"),\" \",Table_SummaryPI[[#This Row],[SizeUnit]]),\"\")","v":""},{"$f":"SUBSTITUTE(Table_PI[[#This Row],[Measure]],\"     \",\"\",1)","v":""},{"$f":"IF(Table_PI[[#This Row],[List 1]]<>\"\",Table_PI[[#This Row],[List 1]],\"\")","v":""},{"$f":"IF(Table_PI[[#This Row],[List 2]]<>\"\",Table_PI[[#This Row],[List 2]],\"\")","v":""},{"$f":"IF(Table_PI[[#This Row],[List 3]]<>\"\",Table_PI[[#This Row],[List 3]],\"\")","v":""},{"$f":"IF(Table_PI[[#This Row],[Manufacturer]]=\"\",\"\",Table_PI[[#This Row],[Manufacturer]])","v":""},{"$f":"IF(Table_PI[[#This Row],[Model Number]]=\"\",\"\",Table_PI[[#This Row],[Model Number]])","v":""},{"$f":"IF(Table_PI[[#This Row],[Serial Number(s)]]=\"\",\"\",Table_PI[[#This Row],[Serial Number(s)]])","v":""},null,{"$f":"IF(Table_PI[[#This Row],[Size]]=\"\",\"\",Table_PI[[#This Row],[Size]])","v":""},null,{"$f":"IFERROR(IF(AND(MeasureCalc(Table_PI[[#This Row],[Hide:\nFormula Name]],Table_SummaryPI[[#This Row],[Quantity]],Table_PI[[#This Row],[List 1]],Table_PI[[#This Row],[List 2]],Table_PI[[#This Row],[List 3]],Table_PI[[#This Row],[Size]],Table_PI[[#This Row],[Input 1]],Table_PI[[#This Row],[Input 2]],Table_PI[[#This Row],[Input 3]],Table_PI[[#This Row],[Input 4]],'Customer Information'!$AR$12,100,ROW())<>0,MeasureCalc(Table_PI[[#This Row],[Hide:\nFormula Name]],Table_SummaryPI[[#This Row],[Quantity]],Table_PI[[#This Row],[List 1]],Table_PI[[#This Row],[List 2]],Table_PI[[#This Row],[List 3]],Table_PI[[#This Row],[Size]],Table_PI[[#This Row],[Input 1]],Table_PI[[#This Row],[Input 2]],Table_PI[[#This Row],[Input 3]],Table_PI[[#This Row],[Input 4]],'Customer Information'!$AR$12,100,ROW())<>\"No Rebate\"),MeasureCalc(Table_PI[[#This Row],[Hide:\nFormula Name]],Table_SummaryPI[[#This Row],[Quantity]],Table_PI[[#This Row],[List 1]],Table_PI[[#This Row],[List 2]],Table_PI[[#This Row],[List 3]],Table_PI[[#This Row],[Size]],Table_PI[[#This Row],[Input 1]],Table_PI[[#This Row],[Input 2]],Table_PI[[#This Row],[Input 3]],Table_PI[[#This Row],[Input 4]],'Customer Information'!$AR$12,100,ROW()),\"\"),\"\")","v":""},{"$f":"IF(Table_PI[[#This Row],[Input 1]]<>\"\",Table_PI[[#This Row],[Input 1]],\"\")","v":""},null,{"$f":"IFERROR(IF(AND(MeasureCalc(Table_PI[[#This Row],[Hide:\nFormula Name]],Table_SummaryPI[[#This Row],[Quantity]],Table_PI[[#This Row],[List 1]],Table_PI[[#This Row],[List 2]],Table_PI[[#This Row],[List 3]],Table_PI[[#This Row],[Size]],Table_PI[[#This Row],[Input 1]],Table_PI[[#This Row],[Input 2]],Table_PI[[#This Row],[Input 3]],Table_PI[[#This Row],[Input 4]],'Customer Information'!$AR$12,101,ROW())<>0,MeasureCalc(Table_PI[[#This Row],[Hide:\nFormula Name]],Table_SummaryPI[[#This Row],[Quantity]],Table_PI[[#This Row],[List 1]],Table_PI[[#This Row],[List 2]],Table_PI[[#This Row],[List 3]],Table_PI[[#This Row],[Size]],Table_PI[[#This Row],[Input 1]],Table_PI[[#This Row],[Input 2]],Table_PI[[#This Row],[Input 3]],Table_PI[[#This Row],[Input 4]],'Customer Information'!$AR$12,101,ROW())<>\"No Rebate\"),MeasureCalc(Table_PI[[#This Row],[Hide:\nFormula Name]],Table_SummaryPI[[#This Row],[Quantity]],Table_PI[[#This Row],[List 1]],Table_PI[[#This Row],[List 2]],Table_PI[[#This Row],[List 3]],Table_PI[[#This Row],[Size]],Table_PI[[#This Row],[Input 1]],Table_PI[[#This Row],[Input 2]],Table_PI[[#This Row],[Input 3]],Table_PI[[#This Row],[Input 4]],'Customer Information'!$AR$12,101,ROW()),\"\"),\"\")","v":""},{"$f":"IF(Table_PI[[#This Row],[Input 2]]<>\"\",Table_PI[[#This Row],[Input 2]],\"\")","v":""},null,{"$f":"IFERROR(IF(AND(MeasureCalc(Table_PI[[#This Row],[Hide:\nFormula Name]],Table_SummaryPI[[#This Row],[Quantity]],Table_PI[[#This Row],[List 1]],Table_PI[[#This Row],[List 2]],Table_PI[[#This Row],[List 3]],Table_PI[[#This Row],[Size]],Table_PI[[#This Row],[Input 1]],Table_PI[[#This Row],[Input 2]],Table_PI[[#This Row],[Input 3]],Table_PI[[#This Row],[Input 4]],'Customer Information'!$AR$12,102,ROW())<>0,MeasureCalc(Table_PI[[#This Row],[Hide:\nFormula Name]],Table_SummaryPI[[#This Row],[Quantity]],Table_PI[[#This Row],[List 1]],Table_PI[[#This Row],[List 2]],Table_PI[[#This Row],[List 3]],Table_PI[[#This Row],[Size]],Table_PI[[#This Row],[Input 1]],Table_PI[[#This Row],[Input 2]],Table_PI[[#This Row],[Input 3]],Table_PI[[#This Row],[Input 4]],'Customer Information'!$AR$12,102,ROW())<>\"No Rebate\"),MeasureCalc(Table_PI[[#This Row],[Hide:\nFormula Name]],Table_SummaryPI[[#This Row],[Quantity]],Table_PI[[#This Row],[List 1]],Table_PI[[#This Row],[List 2]],Table_PI[[#This Row],[List 3]],Table_PI[[#This Row],[Size]],Table_PI[[#This Row],[Input 1]],Table_PI[[#This Row],[Input 2]],Table_PI[[#This Row],[Input 3]],Table_PI[[#This Row],[Input 4]],'Customer Information'!$AR$12,102,ROW()),\"\"),\"\")","v":""},{"$f":"IF(Table_PI[[#This Row],[Input 3]]<>\"\",Table_PI[[#This Row],[Input 3]],\"\")","v":""},null,{"$f":"IFERROR(IF(AND(MeasureCalc(Table_PI[[#This Row],[Hide:\nFormula Name]],Table_SummaryPI[[#This Row],[Quantity]],Table_PI[[#This Row],[List 1]],Table_PI[[#This Row],[List 2]],Table_PI[[#This Row],[List 3]],Table_PI[[#This Row],[Size]],Table_PI[[#This Row],[Input 1]],Table_PI[[#This Row],[Input 2]],Table_PI[[#This Row],[Input 3]],Table_PI[[#This Row],[Input 4]],'Customer Information'!$AR$12,103,ROW())<>0,MeasureCalc(Table_PI[[#This Row],[Hide:\nFormula Name]],Table_SummaryPI[[#This Row],[Quantity]],Table_PI[[#This Row],[List 1]],Table_PI[[#This Row],[List 2]],Table_PI[[#This Row],[List 3]],Table_PI[[#This Row],[Size]],Table_PI[[#This Row],[Input 1]],Table_PI[[#This Row],[Input 2]],Table_PI[[#This Row],[Input 3]],Table_PI[[#This Row],[Input 4]],'Customer Information'!$AR$12,103,ROW())<>\"No Rebate\"),MeasureCalc(Table_PI[[#This Row],[Hide:\nFormula Name]],Table_SummaryPI[[#This Row],[Quantity]],Table_PI[[#This Row],[List 1]],Table_PI[[#This Row],[List 2]],Table_PI[[#This Row],[List 3]],Table_PI[[#This Row],[Size]],Table_PI[[#This Row],[Input 1]],Table_PI[[#This Row],[Input 2]],Table_PI[[#This Row],[Input 3]],Table_PI[[#This Row],[Input 4]],'Customer Information'!$AR$12,103,ROW()),\"\"),\"\")","v":""},{"$f":"IF(Table_PI[[#This Row],[Input 4]]<>\"\",Table_PI[[#This Row],[Input 4]],\"\")","v":""},{"$f":"IF(Table_PI[[#This Row],[Quantity]]=\"\",\"\",Table_PI[[#This Row],[Quantity]])","v":""},{"$f":"IF(Table_PI[[#This Row],[Notes]]=\"\",\"\",Table_PI[[#This Row],[Notes]])","v":""},{"$f":"IF(OR(Table_PI[[#This Row],[Hide:\nBaseline kWh]]=\"\",Table_PI[[#This Row],[Hide:\nBaseline kWh]]=0),\"\",Table_PI[[#This Row],[Hide:\nBaseline kWh]])","v":""},{"$f":"IF(OR(Table_PI[[#This Row],[Hide:\nBaseline kW]]=\"\",Table_PI[[#This Row],[Hide:\nBaseline kW]]=0),\"\",Table_PI[[#This Row],[Hide:\nBaseline kW]])","v":""},{"$f":"IF(OR(Table_PI[[#This Row],[Hide:\nProposed kWh]]=\"\",Table_PI[[#This Row],[Hide:\nProposed kWh]]=0),\"\",Table_PI[[#This Row],[Hide:\nProposed kWh]])","v":""},{"$f":"IF(OR(Table_PI[[#This Row],[Hide:\nProposed kW]]=\"\",Table_PI[[#This Row],[Hide:\nProposed kW]]=0),\"\",Table_PI[[#This Row],[Hide:\nProposed kW]])","v":""},{"$f":"IF(OR(Table_PI[[#This Row],[Rebate]]=\"\",Table_PI[[#This Row],[Rebate]]=0),\"\",Table_PI[[#This Row],[Rebate]])","v":""},{"$f":"IF(OR(Table_PI[[#This Row],[Hide:\nIncremental Cost]]=\"\",Table_PI[[#This Row],[Hide:\nIncremental Cost]]=0),\"\",Table_PI[[#This Row],[Hide:\nIncremental Cost]])","v":""},{"$f":"IFERROR(IF(Table_SummaryPI[[#This Row],[kWhSavings]]=\"\",\"\",ROUND(Table_SummaryPI[[#This Row],[kWhSavings]]/$AG$401*'Customer Information'!$BC$17,2)),0)","v":""},{"$f":"IF(OR(Table_PI[[#This Row],[Annual kWh]]=\"\",Table_PI[[#This Row],[Annual kWh]]=0),\"\",Table_PI[[#This Row],[Annual kWh]])","v":""},{"$f":"IF(OR(Table_PI[[#This Row],[Peak kW]]=\"\",Table_PI[[#This Row],[Peak kW]]=0),\"\",Table_PI[[#This Row],[Peak kW]])","v":""},{"$f":"IFERROR(IF(Table_SummaryPI[[#This Row],[kWhSavings]]=\"\",\"\",$AU$9*Table_SummaryPI[[#This Row],[kWhSavings]]),0)","v":""},{"$f":"IFERROR(IF(Table_SummaryPI[[#This Row],[kWhSavings]]=\"\",\"\",$AU$14*Table_SummaryPI[[#This Row],[kWhSavings]]),0)","v":""},{"$f":"IFERROR(IF(Table_SummaryPI[[#This Row],[kWhSavings]]=\"\",\"\",$AU$18*Table_SummaryPI[[#This Row],[kWhSavings]]),0)","v":""},{"$f":"IFERROR(IF(Table_SummaryPI[[#This Row],[kWhSavings]]=\"\",\"\",$AU$22*Table_SummaryPI[[#This Row],[kWhSavings]]),0)","v":""},{"$f":"IFERROR(IF(MeasureCalc(Table_PI[[#This Row],[Hide:\nFormula Name]],Table_SummaryPI[[#This Row],[Quantity]],Table_PI[[#This Row],[List 1]],Table_PI[[#This Row],[List 2]],Table_PI[[#This Row],[List 3]],Table_PI[[#This Row],[Size]],Table_PI[[#This Row],[Input 1]],Table_PI[[#This Row],[Input 2]],Table_PI[[#This Row],[Input 3]],Table_PI[[#This Row],[Input 4]],'Customer Information'!$AR$12,200,ROW())<>\"No Rebate\",MeasureCalc(Table_PI[[#This Row],[Hide:\nFormula Name]],Table_SummaryPI[[#This Row],[Quantity]],Table_PI[[#This Row],[List 1]],Table_PI[[#This Row],[List 2]],Table_PI[[#This Row],[List 3]],Table_PI[[#This Row],[Size]],Table_PI[[#This Row],[Input 1]],Table_PI[[#This Row],[Input 2]],Table_PI[[#This Row],[Input 3]],Table_PI[[#This Row],[Input 4]],'Customer Information'!$AR$12,200,ROW()),\"\"),\"\")","v":""},{"$f":"IFERROR(IF(MeasureCalc(Table_PI[[#This Row],[Hide:\nFormula Name]],Table_SummaryPI[[#This Row],[Quantity]],Table_PI[[#This Row],[List 1]],Table_PI[[#This Row],[List 2]],Table_PI[[#This Row],[List 3]],Table_PI[[#This Row],[Size]],Table_PI[[#This Row],[Input 1]],Table_PI[[#This Row],[Input 2]],Table_PI[[#This Row],[Input 3]],Table_PI[[#This Row],[Input 4]],'Customer Information'!$AR$12,201,ROW())<>\"No Rebate\",MeasureCalc(Table_PI[[#This Row],[Hide:\nFormula Name]],Table_SummaryPI[[#This Row],[Quantity]],Table_PI[[#This Row],[List 1]],Table_PI[[#This Row],[List 2]],Table_PI[[#This Row],[List 3]],Table_PI[[#This Row],[Size]],Table_PI[[#This Row],[Input 1]],Table_PI[[#This Row],[Input 2]],Table_PI[[#This Row],[Input 3]],Table_PI[[#This Row],[Input 4]],'Customer Information'!$AR$12,201,ROW()),\"\"),\"\")","v":""}]
[{"$f":"Table_PI[[#This Row],[Line No.]]","v":""},{"$f":"IF(Table_SummaryPI[[#This Row],[MeassureCategory]]<>\"\",CONCATENATE(Table_SummaryPI[[#This Row],[MeassureCategory]],  \" - \", Table_SummaryPI[[#This Row],[ProposedMeasureCategory]],  \" - \", TEXT(Table_SummaryPI[[#This Row],[Size]],\"#,##0.00\"),\" \",Table_SummaryPI[[#This Row],[SizeUnit]]),\"\")","v":""},{"$f":"SUBSTITUTE(Table_PI[[#This Row],[Measure]],\"     \",\"\",1)","v":""},{"$f":"IF(Table_PI[[#This Row],[List 1]]<>\"\",Table_PI[[#This Row],[List 1]],\"\")","v":""},{"$f":"IF(Table_PI[[#This Row],[List 2]]<>\"\",Table_PI[[#This Row],[List 2]],\"\")","v":""},{"$f":"IF(Table_PI[[#This Row],[List 3]]<>\"\",Table_PI[[#This Row],[List 3]],\"\")","v":""},{"$f":"IF(Table_PI[[#This Row],[Manufacturer]]=\"\",\"\",Table_PI[[#This Row],[Manufacturer]])","v":""},{"$f":"IF(Table_PI[[#This Row],[Model Number]]=\"\",\"\",Table_PI[[#This Row],[Model Number]])","v":""},{"$f":"IF(Table_PI[[#This Row],[Serial Number(s)]]=\"\",\"\",Table_PI[[#This Row],[Serial Number(s)]])","v":""},null,{"$f":"IF(Table_PI[[#This Row],[Size]]=\"\",\"\",Table_PI[[#This Row],[Size]])","v":""},null,{"$f":"IFERROR(IF(AND(MeasureCalc(Table_PI[[#This Row],[Hide:\nFormula Name]],Table_SummaryPI[[#This Row],[Quantity]],Table_PI[[#This Row],[List 1]],Table_PI[[#This Row],[List 2]],Table_PI[[#This Row],[List 3]],Table_PI[[#This Row],[Size]],Table_PI[[#This Row],[Input 1]],Table_PI[[#This Row],[Input 2]],Table_PI[[#This Row],[Input 3]],Table_PI[[#This Row],[Input 4]],'Customer Information'!$AR$12,100,ROW())<>0,MeasureCalc(Table_PI[[#This Row],[Hide:\nFormula Name]],Table_SummaryPI[[#This Row],[Quantity]],Table_PI[[#This Row],[List 1]],Table_PI[[#This Row],[List 2]],Table_PI[[#This Row],[List 3]],Table_PI[[#This Row],[Size]],Table_PI[[#This Row],[Input 1]],Table_PI[[#This Row],[Input 2]],Table_PI[[#This Row],[Input 3]],Table_PI[[#This Row],[Input 4]],'Customer Information'!$AR$12,100,ROW())<>\"No Rebate\"),MeasureCalc(Table_PI[[#This Row],[Hide:\nFormula Name]],Table_SummaryPI[[#This Row],[Quantity]],Table_PI[[#This Row],[List 1]],Table_PI[[#This Row],[List 2]],Table_PI[[#This Row],[List 3]],Table_PI[[#This Row],[Size]],Table_PI[[#This Row],[Input 1]],Table_PI[[#This Row],[Input 2]],Table_PI[[#This Row],[Input 3]],Table_PI[[#This Row],[Input 4]],'Customer Information'!$AR$12,100,ROW()),\"\"),\"\")","v":""},{"$f":"IF(Table_PI[[#This Row],[Input 1]]<>\"\",Table_PI[[#This Row],[Input 1]],\"\")","v":""},null,{"$f":"IFERROR(IF(AND(MeasureCalc(Table_PI[[#This Row],[Hide:\nFormula Name]],Table_SummaryPI[[#This Row],[Quantity]],Table_PI[[#This Row],[List 1]],Table_PI[[#This Row],[List 2]],Table_PI[[#This Row],[List 3]],Table_PI[[#This Row],[Size]],Table_PI[[#This Row],[Input 1]],Table_PI[[#This Row],[Input 2]],Table_PI[[#This Row],[Input 3]],Table_PI[[#This Row],[Input 4]],'Customer Information'!$AR$12,101,ROW())<>0,MeasureCalc(Table_PI[[#This Row],[Hide:\nFormula Name]],Table_SummaryPI[[#This Row],[Quantity]],Table_PI[[#This Row],[List 1]],Table_PI[[#This Row],[List 2]],Table_PI[[#This Row],[List 3]],Table_PI[[#This Row],[Size]],Table_PI[[#This Row],[Input 1]],Table_PI[[#This Row],[Input 2]],Table_PI[[#This Row],[Input 3]],Table_PI[[#This Row],[Input 4]],'Customer Information'!$AR$12,101,ROW())<>\"No Rebate\"),MeasureCalc(Table_PI[[#This Row],[Hide:\nFormula Name]],Table_SummaryPI[[#This Row],[Quantity]],Table_PI[[#This Row],[List 1]],Table_PI[[#This Row],[List 2]],Table_PI[[#This Row],[List 3]],Table_PI[[#This Row],[Size]],Table_PI[[#This Row],[Input 1]],Table_PI[[#This Row],[Input 2]],Table_PI[[#This Row],[Input 3]],Table_PI[[#This Row],[Input 4]],'Customer Information'!$AR$12,101,ROW()),\"\"),\"\")","v":""},{"$f":"IF(Table_PI[[#This Row],[Input 2]]<>\"\",Table_PI[[#This Row],[Input 2]],\"\")","v":""},null,{"$f":"IFERROR(IF(AND(MeasureCalc(Table_PI[[#This Row],[Hide:\nFormula Name]],Table_SummaryPI[[#This Row],[Quantity]],Table_PI[[#This Row],[List 1]],Table_PI[[#This Row],[List 2]],Table_PI[[#This Row],[List 3]],Table_PI[[#This Row],[Size]],Table_PI[[#This Row],[Input 1]],Table_PI[[#This Row],[Input 2]],Table_PI[[#This Row],[Input 3]],Table_PI[[#This Row],[Input 4]],'Customer Information'!$AR$12,102,ROW())<>0,MeasureCalc(Table_PI[[#This Row],[Hide:\nFormula Name]],Table_SummaryPI[[#This Row],[Quantity]],Table_PI[[#This Row],[List 1]],Table_PI[[#This Row],[List 2]],Table_PI[[#This Row],[List 3]],Table_PI[[#This Row],[Size]],Table_PI[[#This Row],[Input 1]],Table_PI[[#This Row],[Input 2]],Table_PI[[#This Row],[Input 3]],Table_PI[[#This Row],[Input 4]],'Customer Information'!$AR$12,102,ROW())<>\"No Rebate\"),MeasureCalc(Table_PI[[#This Row],[Hide:\nFormula Name]],Table_SummaryPI[[#This Row],[Quantity]],Table_PI[[#This Row],[List 1]],Table_PI[[#This Row],[List 2]],Table_PI[[#This Row],[List 3]],Table_PI[[#This Row],[Size]],Table_PI[[#This Row],[Input 1]],Table_PI[[#This Row],[Input 2]],Table_PI[[#This Row],[Input 3]],Table_PI[[#This Row],[Input 4]],'Customer Information'!$AR$12,102,ROW()),\"\"),\"\")","v":""},{"$f":"IF(Table_PI[[#This Row],[Input 3]]<>\"\",Table_PI[[#This Row],[Input 3]],\"\")","v":""},null,{"$f":"IFERROR(IF(AND(MeasureCalc(Table_PI[[#This Row],[Hide:\nFormula Name]],Table_SummaryPI[[#This Row],[Quantity]],Table_PI[[#This Row],[List 1]],Table_PI[[#This Row],[List 2]],Table_PI[[#This Row],[List 3]],Table_PI[[#This Row],[Size]],Table_PI[[#This Row],[Input 1]],Table_PI[[#This Row],[Input 2]],Table_PI[[#This Row],[Input 3]],Table_PI[[#This Row],[Input 4]],'Customer Information'!$AR$12,103,ROW())<>0,MeasureCalc(Table_PI[[#This Row],[Hide:\nFormula Name]],Table_SummaryPI[[#This Row],[Quantity]],Table_PI[[#This Row],[List 1]],Table_PI[[#This Row],[List 2]],Table_PI[[#This Row],[List 3]],Table_PI[[#This Row],[Size]],Table_PI[[#This Row],[Input 1]],Table_PI[[#This Row],[Input 2]],Table_PI[[#This Row],[Input 3]],Table_PI[[#This Row],[Input 4]],'Customer Information'!$AR$12,103,ROW())<>\"No Rebate\"),MeasureCalc(Table_PI[[#This Row],[Hide:\nFormula Name]],Table_SummaryPI[[#This Row],[Quantity]],Table_PI[[#This Row],[List 1]],Table_PI[[#This Row],[List 2]],Table_PI[[#This Row],[List 3]],Table_PI[[#This Row],[Size]],Table_PI[[#This Row],[Input 1]],Table_PI[[#This Row],[Input 2]],Table_PI[[#This Row],[Input 3]],Table_PI[[#This Row],[Input 4]],'Customer Information'!$AR$12,103,ROW()),\"\"),\"\")","v":""},{"$f":"IF(Table_PI[[#This Row],[Input 4]]<>\"\",Table_PI[[#This Row],[Input 4]],\"\")","v":""},{"$f":"IF(Table_PI[[#This Row],[Quantity]]=\"\",\"\",Table_PI[[#This Row],[Quantity]])","v":""},{"$f":"IF(Table_PI[[#This Row],[Notes]]=\"\",\"\",Table_PI[[#This Row],[Notes]])","v":""},{"$f":"IF(OR(Table_PI[[#This Row],[Hide:\nBaseline kWh]]=\"\",Table_PI[[#This Row],[Hide:\nBaseline kWh]]=0),\"\",Table_PI[[#This Row],[Hide:\nBaseline kWh]])","v":""},{"$f":"IF(OR(Table_PI[[#This Row],[Hide:\nBaseline kW]]=\"\",Table_PI[[#This Row],[Hide:\nBaseline kW]]=0),\"\",Table_PI[[#This Row],[Hide:\nBaseline kW]])","v":""},{"$f":"IF(OR(Table_PI[[#This Row],[Hide:\nProposed kWh]]=\"\",Table_PI[[#This Row],[Hide:\nProposed kWh]]=0),\"\",Table_PI[[#This Row],[Hide:\nProposed kWh]])","v":""},{"$f":"IF(OR(Table_PI[[#This Row],[Hide:\nProposed kW]]=\"\",Table_PI[[#This Row],[Hide:\nProposed kW]]=0),\"\",Table_PI[[#This Row],[Hide:\nProposed kW]])","v":""},{"$f":"IF(OR(Table_PI[[#This Row],[Rebate]]=\"\",Table_PI[[#This Row],[Rebate]]=0),\"\",Table_PI[[#This Row],[Rebate]])","v":""},{"$f":"IF(OR(Table_PI[[#This Row],[Hide:\nIncremental Cost]]=\"\",Table_PI[[#This Row],[Hide:\nIncremental Cost]]=0),\"\",Table_PI[[#This Row],[Hide:\nIncremental Cost]])","v":""},{"$f":"IFERROR(IF(Table_SummaryPI[[#This Row],[kWhSavings]]=\"\",\"\",ROUND(Table_SummaryPI[[#This Row],[kWhSavings]]/$AG$401*'Customer Information'!$BC$17,2)),0)","v":""},{"$f":"IF(OR(Table_PI[[#This Row],[Annual kWh]]=\"\",Table_PI[[#This Row],[Annual kWh]]=0),\"\",Table_PI[[#This Row],[Annual kWh]])","v":""},{"$f":"IF(OR(Table_PI[[#This Row],[Peak kW]]=\"\",Table_PI[[#This Row],[Peak kW]]=0),\"\",Table_PI[[#This Row],[Peak kW]])","v":""},{"$f":"IFERROR(IF(Table_SummaryPI[[#This Row],[kWhSavings]]=\"\",\"\",$AU$9*Table_SummaryPI[[#This Row],[kWhSavings]]),0)","v":""},{"$f":"IFERROR(IF(Table_SummaryPI[[#This Row],[kWhSavings]]=\"\",\"\",$AU$14*Table_SummaryPI[[#This Row],[kWhSavings]]),0)","v":""},{"$f":"IFERROR(IF(Table_SummaryPI[[#This Row],[kWhSavings]]=\"\",\"\",$AU$18*Table_SummaryPI[[#This Row],[kWhSavings]]),0)","v":""},{"$f":"IFERROR(IF(Table_SummaryPI[[#This Row],[kWhSavings]]=\"\",\"\",$AU$22*Table_SummaryPI[[#This Row],[kWhSavings]]),0)","v":""},{"$f":"IFERROR(IF(MeasureCalc(Table_PI[[#This Row],[Hide:\nFormula Name]],Table_SummaryPI[[#This Row],[Quantity]],Table_PI[[#This Row],[List 1]],Table_PI[[#This Row],[List 2]],Table_PI[[#This Row],[List 3]],Table_PI[[#This Row],[Size]],Table_PI[[#This Row],[Input 1]],Table_PI[[#This Row],[Input 2]],Table_PI[[#This Row],[Input 3]],Table_PI[[#This Row],[Input 4]],'Customer Information'!$AR$12,200,ROW())<>\"No Rebate\",MeasureCalc(Table_PI[[#This Row],[Hide:\nFormula Name]],Table_SummaryPI[[#This Row],[Quantity]],Table_PI[[#This Row],[List 1]],Table_PI[[#This Row],[List 2]],Table_PI[[#This Row],[List 3]],Table_PI[[#This Row],[Size]],Table_PI[[#This Row],[Input 1]],Table_PI[[#This Row],[Input 2]],Table_PI[[#This Row],[Input 3]],Table_PI[[#This Row],[Input 4]],'Customer Information'!$AR$12,200,ROW()),\"\"),\"\")","v":""},{"$f":"IFERROR(IF(MeasureCalc(Table_PI[[#This Row],[Hide:\nFormula Name]],Table_SummaryPI[[#This Row],[Quantity]],Table_PI[[#This Row],[List 1]],Table_PI[[#This Row],[List 2]],Table_PI[[#This Row],[List 3]],Table_PI[[#This Row],[Size]],Table_PI[[#This Row],[Input 1]],Table_PI[[#This Row],[Input 2]],Table_PI[[#This Row],[Input 3]],Table_PI[[#This Row],[Input 4]],'Customer Information'!$AR$12,201,ROW())<>\"No Rebate\",MeasureCalc(Table_PI[[#This Row],[Hide:\nFormula Name]],Table_SummaryPI[[#This Row],[Quantity]],Table_PI[[#This Row],[List 1]],Table_PI[[#This Row],[List 2]],Table_PI[[#This Row],[List 3]],Table_PI[[#This Row],[Size]],Table_PI[[#This Row],[Input 1]],Table_PI[[#This Row],[Input 2]],Table_PI[[#This Row],[Input 3]],Table_PI[[#This Row],[Input 4]],'Customer Information'!$AR$12,201,ROW()),\"\"),\"\")","v":""}]
[{"$f":"Table_PI[[#This Row],[Line No.]]","v":""},{"$f":"IF(Table_SummaryPI[[#This Row],[MeassureCategory]]<>\"\",CONCATENATE(Table_SummaryPI[[#This Row],[MeassureCategory]],  \" - \", Table_SummaryPI[[#This Row],[ProposedMeasureCategory]],  \" - \", TEXT(Table_SummaryPI[[#This Row],[Size]],\"#,##0.00\"),\" \",Table_SummaryPI[[#This Row],[SizeUnit]]),\"\")","v":""},{"$f":"SUBSTITUTE(Table_PI[[#This Row],[Measure]],\"     \",\"\",1)","v":""},{"$f":"IF(Table_PI[[#This Row],[List 1]]<>\"\",Table_PI[[#This Row],[List 1]],\"\")","v":""},{"$f":"IF(Table_PI[[#This Row],[List 2]]<>\"\",Table_PI[[#This Row],[List 2]],\"\")","v":""},{"$f":"IF(Table_PI[[#This Row],[List 3]]<>\"\",Table_PI[[#This Row],[List 3]],\"\")","v":""},{"$f":"IF(Table_PI[[#This Row],[Manufacturer]]=\"\",\"\",Table_PI[[#This Row],[Manufacturer]])","v":""},{"$f":"IF(Table_PI[[#This Row],[Model Number]]=\"\",\"\",Table_PI[[#This Row],[Model Number]])","v":""},{"$f":"IF(Table_PI[[#This Row],[Serial Number(s)]]=\"\",\"\",Table_PI[[#This Row],[Serial Number(s)]])","v":""},null,{"$f":"IF(Table_PI[[#This Row],[Size]]=\"\",\"\",Table_PI[[#This Row],[Size]])","v":""},null,{"$f":"IFERROR(IF(AND(MeasureCalc(Table_PI[[#This Row],[Hide:\nFormula Name]],Table_SummaryPI[[#This Row],[Quantity]],Table_PI[[#This Row],[List 1]],Table_PI[[#This Row],[List 2]],Table_PI[[#This Row],[List 3]],Table_PI[[#This Row],[Size]],Table_PI[[#This Row],[Input 1]],Table_PI[[#This Row],[Input 2]],Table_PI[[#This Row],[Input 3]],Table_PI[[#This Row],[Input 4]],'Customer Information'!$AR$12,100,ROW())<>0,MeasureCalc(Table_PI[[#This Row],[Hide:\nFormula Name]],Table_SummaryPI[[#This Row],[Quantity]],Table_PI[[#This Row],[List 1]],Table_PI[[#This Row],[List 2]],Table_PI[[#This Row],[List 3]],Table_PI[[#This Row],[Size]],Table_PI[[#This Row],[Input 1]],Table_PI[[#This Row],[Input 2]],Table_PI[[#This Row],[Input 3]],Table_PI[[#This Row],[Input 4]],'Customer Information'!$AR$12,100,ROW())<>\"No Rebate\"),MeasureCalc(Table_PI[[#This Row],[Hide:\nFormula Name]],Table_SummaryPI[[#This Row],[Quantity]],Table_PI[[#This Row],[List 1]],Table_PI[[#This Row],[List 2]],Table_PI[[#This Row],[List 3]],Table_PI[[#This Row],[Size]],Table_PI[[#This Row],[Input 1]],Table_PI[[#This Row],[Input 2]],Table_PI[[#This Row],[Input 3]],Table_PI[[#This Row],[Input 4]],'Customer Information'!$AR$12,100,ROW()),\"\"),\"\")","v":""},{"$f":"IF(Table_PI[[#This Row],[Input 1]]<>\"\",Table_PI[[#This Row],[Input 1]],\"\")","v":""},null,{"$f":"IFERROR(IF(AND(MeasureCalc(Table_PI[[#This Row],[Hide:\nFormula Name]],Table_SummaryPI[[#This Row],[Quantity]],Table_PI[[#This Row],[List 1]],Table_PI[[#This Row],[List 2]],Table_PI[[#This Row],[List 3]],Table_PI[[#This Row],[Size]],Table_PI[[#This Row],[Input 1]],Table_PI[[#This Row],[Input 2]],Table_PI[[#This Row],[Input 3]],Table_PI[[#This Row],[Input 4]],'Customer Information'!$AR$12,101,ROW())<>0,MeasureCalc(Table_PI[[#This Row],[Hide:\nFormula Name]],Table_SummaryPI[[#This Row],[Quantity]],Table_PI[[#This Row],[List 1]],Table_PI[[#This Row],[List 2]],Table_PI[[#This Row],[List 3]],Table_PI[[#This Row],[Size]],Table_PI[[#This Row],[Input 1]],Table_PI[[#This Row],[Input 2]],Table_PI[[#This Row],[Input 3]],Table_PI[[#This Row],[Input 4]],'Customer Information'!$AR$12,101,ROW())<>\"No Rebate\"),MeasureCalc(Table_PI[[#This Row],[Hide:\nFormula Name]],Table_SummaryPI[[#This Row],[Quantity]],Table_PI[[#This Row],[List 1]],Table_PI[[#This Row],[List 2]],Table_PI[[#This Row],[List 3]],Table_PI[[#This Row],[Size]],Table_PI[[#This Row],[Input 1]],Table_PI[[#This Row],[Input 2]],Table_PI[[#This Row],[Input 3]],Table_PI[[#This Row],[Input 4]],'Customer Information'!$AR$12,101,ROW()),\"\"),\"\")","v":""},{"$f":"IF(Table_PI[[#This Row],[Input 2]]<>\"\",Table_PI[[#This Row],[Input 2]],\"\")","v":""},null,{"$f":"IFERROR(IF(AND(MeasureCalc(Table_PI[[#This Row],[Hide:\nFormula Name]],Table_SummaryPI[[#This Row],[Quantity]],Table_PI[[#This Row],[List 1]],Table_PI[[#This Row],[List 2]],Table_PI[[#This Row],[List 3]],Table_PI[[#This Row],[Size]],Table_PI[[#This Row],[Input 1]],Table_PI[[#This Row],[Input 2]],Table_PI[[#This Row],[Input 3]],Table_PI[[#This Row],[Input 4]],'Customer Information'!$AR$12,102,ROW())<>0,MeasureCalc(Table_PI[[#This Row],[Hide:\nFormula Name]],Table_SummaryPI[[#This Row],[Quantity]],Table_PI[[#This Row],[List 1]],Table_PI[[#This Row],[List 2]],Table_PI[[#This Row],[List 3]],Table_PI[[#This Row],[Size]],Table_PI[[#This Row],[Input 1]],Table_PI[[#This Row],[Input 2]],Table_PI[[#This Row],[Input 3]],Table_PI[[#This Row],[Input 4]],'Customer Information'!$AR$12,102,ROW())<>\"No Rebate\"),MeasureCalc(Table_PI[[#This Row],[Hide:\nFormula Name]],Table_SummaryPI[[#This Row],[Quantity]],Table_PI[[#This Row],[List 1]],Table_PI[[#This Row],[List 2]],Table_PI[[#This Row],[List 3]],Table_PI[[#This Row],[Size]],Table_PI[[#This Row],[Input 1]],Table_PI[[#This Row],[Input 2]],Table_PI[[#This Row],[Input 3]],Table_PI[[#This Row],[Input 4]],'Customer Information'!$AR$12,102,ROW()),\"\"),\"\")","v":""},{"$f":"IF(Table_PI[[#This Row],[Input 3]]<>\"\",Table_PI[[#This Row],[Input 3]],\"\")","v":""},null,{"$f":"IFERROR(IF(AND(MeasureCalc(Table_PI[[#This Row],[Hide:\nFormula Name]],Table_SummaryPI[[#This Row],[Quantity]],Table_PI[[#This Row],[List 1]],Table_PI[[#This Row],[List 2]],Table_PI[[#This Row],[List 3]],Table_PI[[#This Row],[Size]],Table_PI[[#This Row],[Input 1]],Table_PI[[#This Row],[Input 2]],Table_PI[[#This Row],[Input 3]],Table_PI[[#This Row],[Input 4]],'Customer Information'!$AR$12,103,ROW())<>0,MeasureCalc(Table_PI[[#This Row],[Hide:\nFormula Name]],Table_SummaryPI[[#This Row],[Quantity]],Table_PI[[#This Row],[List 1]],Table_PI[[#This Row],[List 2]],Table_PI[[#This Row],[List 3]],Table_PI[[#This Row],[Size]],Table_PI[[#This Row],[Input 1]],Table_PI[[#This Row],[Input 2]],Table_PI[[#This Row],[Input 3]],Table_PI[[#This Row],[Input 4]],'Customer Information'!$AR$12,103,ROW())<>\"No Rebate\"),MeasureCalc(Table_PI[[#This Row],[Hide:\nFormula Name]],Table_SummaryPI[[#This Row],[Quantity]],Table_PI[[#This Row],[List 1]],Table_PI[[#This Row],[List 2]],Table_PI[[#This Row],[List 3]],Table_PI[[#This Row],[Size]],Table_PI[[#This Row],[Input 1]],Table_PI[[#This Row],[Input 2]],Table_PI[[#This Row],[Input 3]],Table_PI[[#This Row],[Input 4]],'Customer Information'!$AR$12,103,ROW()),\"\"),\"\")","v":""},{"$f":"IF(Table_PI[[#This Row],[Input 4]]<>\"\",Table_PI[[#This Row],[Input 4]],\"\")","v":""},{"$f":"IF(Table_PI[[#This Row],[Quantity]]=\"\",\"\",Table_PI[[#This Row],[Quantity]])","v":""},{"$f":"IF(Table_PI[[#This Row],[Notes]]=\"\",\"\",Table_PI[[#This Row],[Notes]])","v":""},{"$f":"IF(OR(Table_PI[[#This Row],[Hide:\nBaseline kWh]]=\"\",Table_PI[[#This Row],[Hide:\nBaseline kWh]]=0),\"\",Table_PI[[#This Row],[Hide:\nBaseline kWh]])","v":""},{"$f":"IF(OR(Table_PI[[#This Row],[Hide:\nBaseline kW]]=\"\",Table_PI[[#This Row],[Hide:\nBaseline kW]]=0),\"\",Table_PI[[#This Row],[Hide:\nBaseline kW]])","v":""},{"$f":"IF(OR(Table_PI[[#This Row],[Hide:\nProposed kWh]]=\"\",Table_PI[[#This Row],[Hide:\nProposed kWh]]=0),\"\",Table_PI[[#This Row],[Hide:\nProposed kWh]])","v":""},{"$f":"IF(OR(Table_PI[[#This Row],[Hide:\nProposed kW]]=\"\",Table_PI[[#This Row],[Hide:\nProposed kW]]=0),\"\",Table_PI[[#This Row],[Hide:\nProposed kW]])","v":""},{"$f":"IF(OR(Table_PI[[#This Row],[Rebate]]=\"\",Table_PI[[#This Row],[Rebate]]=0),\"\",Table_PI[[#This Row],[Rebate]])","v":""},{"$f":"IF(OR(Table_PI[[#This Row],[Hide:\nIncremental Cost]]=\"\",Table_PI[[#This Row],[Hide:\nIncremental Cost]]=0),\"\",Table_PI[[#This Row],[Hide:\nIncremental Cost]])","v":""},{"$f":"IFERROR(IF(Table_SummaryPI[[#This Row],[kWhSavings]]=\"\",\"\",ROUND(Table_SummaryPI[[#This Row],[kWhSavings]]/$AG$401*'Customer Information'!$BC$17,2)),0)","v":""},{"$f":"IF(OR(Table_PI[[#This Row],[Annual kWh]]=\"\",Table_PI[[#This Row],[Annual kWh]]=0),\"\",Table_PI[[#This Row],[Annual kWh]])","v":""},{"$f":"IF(OR(Table_PI[[#This Row],[Peak kW]]=\"\",Table_PI[[#This Row],[Peak kW]]=0),\"\",Table_PI[[#This Row],[Peak kW]])","v":""},{"$f":"IFERROR(IF(Table_SummaryPI[[#This Row],[kWhSavings]]=\"\",\"\",$AU$9*Table_SummaryPI[[#This Row],[kWhSavings]]),0)","v":""},{"$f":"IFERROR(IF(Table_SummaryPI[[#This Row],[kWhSavings]]=\"\",\"\",$AU$14*Table_SummaryPI[[#This Row],[kWhSavings]]),0)","v":""},{"$f":"IFERROR(IF(Table_SummaryPI[[#This Row],[kWhSavings]]=\"\",\"\",$AU$18*Table_SummaryPI[[#This Row],[kWhSavings]]),0)","v":""},{"$f":"IFERROR(IF(Table_SummaryPI[[#This Row],[kWhSavings]]=\"\",\"\",$AU$22*Table_SummaryPI[[#This Row],[kWhSavings]]),0)","v":""},{"$f":"IFERROR(IF(MeasureCalc(Table_PI[[#This Row],[Hide:\nFormula Name]],Table_SummaryPI[[#This Row],[Quantity]],Table_PI[[#This Row],[List 1]],Table_PI[[#This Row],[List 2]],Table_PI[[#This Row],[List 3]],Table_PI[[#This Row],[Size]],Table_PI[[#This Row],[Input 1]],Table_PI[[#This Row],[Input 2]],Table_PI[[#This Row],[Input 3]],Table_PI[[#This Row],[Input 4]],'Customer Information'!$AR$12,200,ROW())<>\"No Rebate\",MeasureCalc(Table_PI[[#This Row],[Hide:\nFormula Name]],Table_SummaryPI[[#This Row],[Quantity]],Table_PI[[#This Row],[List 1]],Table_PI[[#This Row],[List 2]],Table_PI[[#This Row],[List 3]],Table_PI[[#This Row],[Size]],Table_PI[[#This Row],[Input 1]],Table_PI[[#This Row],[Input 2]],Table_PI[[#This Row],[Input 3]],Table_PI[[#This Row],[Input 4]],'Customer Information'!$AR$12,200,ROW()),\"\"),\"\")","v":""},{"$f":"IFERROR(IF(MeasureCalc(Table_PI[[#This Row],[Hide:\nFormula Name]],Table_SummaryPI[[#This Row],[Quantity]],Table_PI[[#This Row],[List 1]],Table_PI[[#This Row],[List 2]],Table_PI[[#This Row],[List 3]],Table_PI[[#This Row],[Size]],Table_PI[[#This Row],[Input 1]],Table_PI[[#This Row],[Input 2]],Table_PI[[#This Row],[Input 3]],Table_PI[[#This Row],[Input 4]],'Customer Information'!$AR$12,201,ROW())<>\"No Rebate\",MeasureCalc(Table_PI[[#This Row],[Hide:\nFormula Name]],Table_SummaryPI[[#This Row],[Quantity]],Table_PI[[#This Row],[List 1]],Table_PI[[#This Row],[List 2]],Table_PI[[#This Row],[List 3]],Table_PI[[#This Row],[Size]],Table_PI[[#This Row],[Input 1]],Table_PI[[#This Row],[Input 2]],Table_PI[[#This Row],[Input 3]],Table_PI[[#This Row],[Input 4]],'Customer Information'!$AR$12,201,ROW()),\"\"),\"\")","v":""}]
[{"$f":"Table_PI[[#This Row],[Line No.]]","v":""},{"$f":"IF(Table_SummaryPI[[#This Row],[MeassureCategory]]<>\"\",CONCATENATE(Table_SummaryPI[[#This Row],[MeassureCategory]],  \" - \", Table_SummaryPI[[#This Row],[ProposedMeasureCategory]],  \" - \", TEXT(Table_SummaryPI[[#This Row],[Size]],\"#,##0.00\"),\" \",Table_SummaryPI[[#This Row],[SizeUnit]]),\"\")","v":""},{"$f":"SUBSTITUTE(Table_PI[[#This Row],[Measure]],\"     \",\"\",1)","v":""},{"$f":"IF(Table_PI[[#This Row],[List 1]]<>\"\",Table_PI[[#This Row],[List 1]],\"\")","v":""},{"$f":"IF(Table_PI[[#This Row],[List 2]]<>\"\",Table_PI[[#This Row],[List 2]],\"\")","v":""},{"$f":"IF(Table_PI[[#This Row],[List 3]]<>\"\",Table_PI[[#This Row],[List 3]],\"\")","v":""},{"$f":"IF(Table_PI[[#This Row],[Manufacturer]]=\"\",\"\",Table_PI[[#This Row],[Manufacturer]])","v":""},{"$f":"IF(Table_PI[[#This Row],[Model Number]]=\"\",\"\",Table_PI[[#This Row],[Model Number]])","v":""},{"$f":"IF(Table_PI[[#This Row],[Serial Number(s)]]=\"\",\"\",Table_PI[[#This Row],[Serial Number(s)]])","v":""},null,{"$f":"IF(Table_PI[[#This Row],[Size]]=\"\",\"\",Table_PI[[#This Row],[Size]])","v":""},null,{"$f":"IFERROR(IF(AND(MeasureCalc(Table_PI[[#This Row],[Hide:\nFormula Name]],Table_SummaryPI[[#This Row],[Quantity]],Table_PI[[#This Row],[List 1]],Table_PI[[#This Row],[List 2]],Table_PI[[#This Row],[List 3]],Table_PI[[#This Row],[Size]],Table_PI[[#This Row],[Input 1]],Table_PI[[#This Row],[Input 2]],Table_PI[[#This Row],[Input 3]],Table_PI[[#This Row],[Input 4]],'Customer Information'!$AR$12,100,ROW())<>0,MeasureCalc(Table_PI[[#This Row],[Hide:\nFormula Name]],Table_SummaryPI[[#This Row],[Quantity]],Table_PI[[#This Row],[List 1]],Table_PI[[#This Row],[List 2]],Table_PI[[#This Row],[List 3]],Table_PI[[#This Row],[Size]],Table_PI[[#This Row],[Input 1]],Table_PI[[#This Row],[Input 2]],Table_PI[[#This Row],[Input 3]],Table_PI[[#This Row],[Input 4]],'Customer Information'!$AR$12,100,ROW())<>\"No Rebate\"),MeasureCalc(Table_PI[[#This Row],[Hide:\nFormula Name]],Table_SummaryPI[[#This Row],[Quantity]],Table_PI[[#This Row],[List 1]],Table_PI[[#This Row],[List 2]],Table_PI[[#This Row],[List 3]],Table_PI[[#This Row],[Size]],Table_PI[[#This Row],[Input 1]],Table_PI[[#This Row],[Input 2]],Table_PI[[#This Row],[Input 3]],Table_PI[[#This Row],[Input 4]],'Customer Information'!$AR$12,100,ROW()),\"\"),\"\")","v":""},{"$f":"IF(Table_PI[[#This Row],[Input 1]]<>\"\",Table_PI[[#This Row],[Input 1]],\"\")","v":""},null,{"$f":"IFERROR(IF(AND(MeasureCalc(Table_PI[[#This Row],[Hide:\nFormula Name]],Table_SummaryPI[[#This Row],[Quantity]],Table_PI[[#This Row],[List 1]],Table_PI[[#This Row],[List 2]],Table_PI[[#This Row],[List 3]],Table_PI[[#This Row],[Size]],Table_PI[[#This Row],[Input 1]],Table_PI[[#This Row],[Input 2]],Table_PI[[#This Row],[Input 3]],Table_PI[[#This Row],[Input 4]],'Customer Information'!$AR$12,101,ROW())<>0,MeasureCalc(Table_PI[[#This Row],[Hide:\nFormula Name]],Table_SummaryPI[[#This Row],[Quantity]],Table_PI[[#This Row],[List 1]],Table_PI[[#This Row],[List 2]],Table_PI[[#This Row],[List 3]],Table_PI[[#This Row],[Size]],Table_PI[[#This Row],[Input 1]],Table_PI[[#This Row],[Input 2]],Table_PI[[#This Row],[Input 3]],Table_PI[[#This Row],[Input 4]],'Customer Information'!$AR$12,101,ROW())<>\"No Rebate\"),MeasureCalc(Table_PI[[#This Row],[Hide:\nFormula Name]],Table_SummaryPI[[#This Row],[Quantity]],Table_PI[[#This Row],[List 1]],Table_PI[[#This Row],[List 2]],Table_PI[[#This Row],[List 3]],Table_PI[[#This Row],[Size]],Table_PI[[#This Row],[Input 1]],Table_PI[[#This Row],[Input 2]],Table_PI[[#This Row],[Input 3]],Table_PI[[#This Row],[Input 4]],'Customer Information'!$AR$12,101,ROW()),\"\"),\"\")","v":""},{"$f":"IF(Table_PI[[#This Row],[Input 2]]<>\"\",Table_PI[[#This Row],[Input 2]],\"\")","v":""},null,{"$f":"IFERROR(IF(AND(MeasureCalc(Table_PI[[#This Row],[Hide:\nFormula Name]],Table_SummaryPI[[#This Row],[Quantity]],Table_PI[[#This Row],[List 1]],Table_PI[[#This Row],[List 2]],Table_PI[[#This Row],[List 3]],Table_PI[[#This Row],[Size]],Table_PI[[#This Row],[Input 1]],Table_PI[[#This Row],[Input 2]],Table_PI[[#This Row],[Input 3]],Table_PI[[#This Row],[Input 4]],'Customer Information'!$AR$12,102,ROW())<>0,MeasureCalc(Table_PI[[#This Row],[Hide:\nFormula Name]],Table_SummaryPI[[#This Row],[Quantity]],Table_PI[[#This Row],[List 1]],Table_PI[[#This Row],[List 2]],Table_PI[[#This Row],[List 3]],Table_PI[[#This Row],[Size]],Table_PI[[#This Row],[Input 1]],Table_PI[[#This Row],[Input 2]],Table_PI[[#This Row],[Input 3]],Table_PI[[#This Row],[Input 4]],'Customer Information'!$AR$12,102,ROW())<>\"No Rebate\"),MeasureCalc(Table_PI[[#This Row],[Hide:\nFormula Name]],Table_SummaryPI[[#This Row],[Quantity]],Table_PI[[#This Row],[List 1]],Table_PI[[#This Row],[List 2]],Table_PI[[#This Row],[List 3]],Table_PI[[#This Row],[Size]],Table_PI[[#This Row],[Input 1]],Table_PI[[#This Row],[Input 2]],Table_PI[[#This Row],[Input 3]],Table_PI[[#This Row],[Input 4]],'Customer Information'!$AR$12,102,ROW()),\"\"),\"\")","v":""},{"$f":"IF(Table_PI[[#This Row],[Input 3]]<>\"\",Table_PI[[#This Row],[Input 3]],\"\")","v":""},null,{"$f":"IFERROR(IF(AND(MeasureCalc(Table_PI[[#This Row],[Hide:\nFormula Name]],Table_SummaryPI[[#This Row],[Quantity]],Table_PI[[#This Row],[List 1]],Table_PI[[#This Row],[List 2]],Table_PI[[#This Row],[List 3]],Table_PI[[#This Row],[Size]],Table_PI[[#This Row],[Input 1]],Table_PI[[#This Row],[Input 2]],Table_PI[[#This Row],[Input 3]],Table_PI[[#This Row],[Input 4]],'Customer Information'!$AR$12,103,ROW())<>0,MeasureCalc(Table_PI[[#This Row],[Hide:\nFormula Name]],Table_SummaryPI[[#This Row],[Quantity]],Table_PI[[#This Row],[List 1]],Table_PI[[#This Row],[List 2]],Table_PI[[#This Row],[List 3]],Table_PI[[#This Row],[Size]],Table_PI[[#This Row],[Input 1]],Table_PI[[#This Row],[Input 2]],Table_PI[[#This Row],[Input 3]],Table_PI[[#This Row],[Input 4]],'Customer Information'!$AR$12,103,ROW())<>\"No Rebate\"),MeasureCalc(Table_PI[[#This Row],[Hide:\nFormula Name]],Table_SummaryPI[[#This Row],[Quantity]],Table_PI[[#This Row],[List 1]],Table_PI[[#This Row],[List 2]],Table_PI[[#This Row],[List 3]],Table_PI[[#This Row],[Size]],Table_PI[[#This Row],[Input 1]],Table_PI[[#This Row],[Input 2]],Table_PI[[#This Row],[Input 3]],Table_PI[[#This Row],[Input 4]],'Customer Information'!$AR$12,103,ROW()),\"\"),\"\")","v":""},{"$f":"IF(Table_PI[[#This Row],[Input 4]]<>\"\",Table_PI[[#This Row],[Input 4]],\"\")","v":""},{"$f":"IF(Table_PI[[#This Row],[Quantity]]=\"\",\"\",Table_PI[[#This Row],[Quantity]])","v":""},{"$f":"IF(Table_PI[[#This Row],[Notes]]=\"\",\"\",Table_PI[[#This Row],[Notes]])","v":""},{"$f":"IF(OR(Table_PI[[#This Row],[Hide:\nBaseline kWh]]=\"\",Table_PI[[#This Row],[Hide:\nBaseline kWh]]=0),\"\",Table_PI[[#This Row],[Hide:\nBaseline kWh]])","v":""},{"$f":"IF(OR(Table_PI[[#This Row],[Hide:\nBaseline kW]]=\"\",Table_PI[[#This Row],[Hide:\nBaseline kW]]=0),\"\",Table_PI[[#This Row],[Hide:\nBaseline kW]])","v":""},{"$f":"IF(OR(Table_PI[[#This Row],[Hide:\nProposed kWh]]=\"\",Table_PI[[#This Row],[Hide:\nProposed kWh]]=0),\"\",Table_PI[[#This Row],[Hide:\nProposed kWh]])","v":""},{"$f":"IF(OR(Table_PI[[#This Row],[Hide:\nProposed kW]]=\"\",Table_PI[[#This Row],[Hide:\nProposed kW]]=0),\"\",Table_PI[[#This Row],[Hide:\nProposed kW]])","v":""},{"$f":"IF(OR(Table_PI[[#This Row],[Rebate]]=\"\",Table_PI[[#This Row],[Rebate]]=0),\"\",Table_PI[[#This Row],[Rebate]])","v":""},{"$f":"IF(OR(Table_PI[[#This Row],[Hide:\nIncremental Cost]]=\"\",Table_PI[[#This Row],[Hide:\nIncremental Cost]]=0),\"\",Table_PI[[#This Row],[Hide:\nIncremental Cost]])","v":""},{"$f":"IFERROR(IF(Table_SummaryPI[[#This Row],[kWhSavings]]=\"\",\"\",ROUND(Table_SummaryPI[[#This Row],[kWhSavings]]/$AG$401*'Customer Information'!$BC$17,2)),0)","v":""},{"$f":"IF(OR(Table_PI[[#This Row],[Annual kWh]]=\"\",Table_PI[[#This Row],[Annual kWh]]=0),\"\",Table_PI[[#This Row],[Annual kWh]])","v":""},{"$f":"IF(OR(Table_PI[[#This Row],[Peak kW]]=\"\",Table_PI[[#This Row],[Peak kW]]=0),\"\",Table_PI[[#This Row],[Peak kW]])","v":""},{"$f":"IFERROR(IF(Table_SummaryPI[[#This Row],[kWhSavings]]=\"\",\"\",$AU$9*Table_SummaryPI[[#This Row],[kWhSavings]]),0)","v":""},{"$f":"IFERROR(IF(Table_SummaryPI[[#This Row],[kWhSavings]]=\"\",\"\",$AU$14*Table_SummaryPI[[#This Row],[kWhSavings]]),0)","v":""},{"$f":"IFERROR(IF(Table_SummaryPI[[#This Row],[kWhSavings]]=\"\",\"\",$AU$18*Table_SummaryPI[[#This Row],[kWhSavings]]),0)","v":""},{"$f":"IFERROR(IF(Table_SummaryPI[[#This Row],[kWhSavings]]=\"\",\"\",$AU$22*Table_SummaryPI[[#This Row],[kWhSavings]]),0)","v":""},{"$f":"IFERROR(IF(MeasureCalc(Table_PI[[#This Row],[Hide:\nFormula Name]],Table_SummaryPI[[#This Row],[Quantity]],Table_PI[[#This Row],[List 1]],Table_PI[[#This Row],[List 2]],Table_PI[[#This Row],[List 3]],Table_PI[[#This Row],[Size]],Table_PI[[#This Row],[Input 1]],Table_PI[[#This Row],[Input 2]],Table_PI[[#This Row],[Input 3]],Table_PI[[#This Row],[Input 4]],'Customer Information'!$AR$12,200,ROW())<>\"No Rebate\",MeasureCalc(Table_PI[[#This Row],[Hide:\nFormula Name]],Table_SummaryPI[[#This Row],[Quantity]],Table_PI[[#This Row],[List 1]],Table_PI[[#This Row],[List 2]],Table_PI[[#This Row],[List 3]],Table_PI[[#This Row],[Size]],Table_PI[[#This Row],[Input 1]],Table_PI[[#This Row],[Input 2]],Table_PI[[#This Row],[Input 3]],Table_PI[[#This Row],[Input 4]],'Customer Information'!$AR$12,200,ROW()),\"\"),\"\")","v":""},{"$f":"IFERROR(IF(MeasureCalc(Table_PI[[#This Row],[Hide:\nFormula Name]],Table_SummaryPI[[#This Row],[Quantity]],Table_PI[[#This Row],[List 1]],Table_PI[[#This Row],[List 2]],Table_PI[[#This Row],[List 3]],Table_PI[[#This Row],[Size]],Table_PI[[#This Row],[Input 1]],Table_PI[[#This Row],[Input 2]],Table_PI[[#This Row],[Input 3]],Table_PI[[#This Row],[Input 4]],'Customer Information'!$AR$12,201,ROW())<>\"No Rebate\",MeasureCalc(Table_PI[[#This Row],[Hide:\nFormula Name]],Table_SummaryPI[[#This Row],[Quantity]],Table_PI[[#This Row],[List 1]],Table_PI[[#This Row],[List 2]],Table_PI[[#This Row],[List 3]],Table_PI[[#This Row],[Size]],Table_PI[[#This Row],[Input 1]],Table_PI[[#This Row],[Input 2]],Table_PI[[#This Row],[Input 3]],Table_PI[[#This Row],[Input 4]],'Customer Information'!$AR$12,201,ROW()),\"\"),\"\")","v":""}]
[{"$f":"Table_PI[[#This Row],[Line No.]]","v":""},{"$f":"IF(Table_SummaryPI[[#This Row],[MeassureCategory]]<>\"\",CONCATENATE(Table_SummaryPI[[#This Row],[MeassureCategory]],  \" - \", Table_SummaryPI[[#This Row],[ProposedMeasureCategory]],  \" - \", TEXT(Table_SummaryPI[[#This Row],[Size]],\"#,##0.00\"),\" \",Table_SummaryPI[[#This Row],[SizeUnit]]),\"\")","v":""},{"$f":"SUBSTITUTE(Table_PI[[#This Row],[Measure]],\"     \",\"\",1)","v":""},{"$f":"IF(Table_PI[[#This Row],[List 1]]<>\"\",Table_PI[[#This Row],[List 1]],\"\")","v":""},{"$f":"IF(Table_PI[[#This Row],[List 2]]<>\"\",Table_PI[[#This Row],[List 2]],\"\")","v":""},{"$f":"IF(Table_PI[[#This Row],[List 3]]<>\"\",Table_PI[[#This Row],[List 3]],\"\")","v":""},{"$f":"IF(Table_PI[[#This Row],[Manufacturer]]=\"\",\"\",Table_PI[[#This Row],[Manufacturer]])","v":""},{"$f":"IF(Table_PI[[#This Row],[Model Number]]=\"\",\"\",Table_PI[[#This Row],[Model Number]])","v":""},{"$f":"IF(Table_PI[[#This Row],[Serial Number(s)]]=\"\",\"\",Table_PI[[#This Row],[Serial Number(s)]])","v":""},null,{"$f":"IF(Table_PI[[#This Row],[Size]]=\"\",\"\",Table_PI[[#This Row],[Size]])","v":""},null,{"$f":"IFERROR(IF(AND(MeasureCalc(Table_PI[[#This Row],[Hide:\nFormula Name]],Table_SummaryPI[[#This Row],[Quantity]],Table_PI[[#This Row],[List 1]],Table_PI[[#This Row],[List 2]],Table_PI[[#This Row],[List 3]],Table_PI[[#This Row],[Size]],Table_PI[[#This Row],[Input 1]],Table_PI[[#This Row],[Input 2]],Table_PI[[#This Row],[Input 3]],Table_PI[[#This Row],[Input 4]],'Customer Information'!$AR$12,100,ROW())<>0,MeasureCalc(Table_PI[[#This Row],[Hide:\nFormula Name]],Table_SummaryPI[[#This Row],[Quantity]],Table_PI[[#This Row],[List 1]],Table_PI[[#This Row],[List 2]],Table_PI[[#This Row],[List 3]],Table_PI[[#This Row],[Size]],Table_PI[[#This Row],[Input 1]],Table_PI[[#This Row],[Input 2]],Table_PI[[#This Row],[Input 3]],Table_PI[[#This Row],[Input 4]],'Customer Information'!$AR$12,100,ROW())<>\"No Rebate\"),MeasureCalc(Table_PI[[#This Row],[Hide:\nFormula Name]],Table_SummaryPI[[#This Row],[Quantity]],Table_PI[[#This Row],[List 1]],Table_PI[[#This Row],[List 2]],Table_PI[[#This Row],[List 3]],Table_PI[[#This Row],[Size]],Table_PI[[#This Row],[Input 1]],Table_PI[[#This Row],[Input 2]],Table_PI[[#This Row],[Input 3]],Table_PI[[#This Row],[Input 4]],'Customer Information'!$AR$12,100,ROW()),\"\"),\"\")","v":""},{"$f":"IF(Table_PI[[#This Row],[Input 1]]<>\"\",Table_PI[[#This Row],[Input 1]],\"\")","v":""},null,{"$f":"IFERROR(IF(AND(MeasureCalc(Table_PI[[#This Row],[Hide:\nFormula Name]],Table_SummaryPI[[#This Row],[Quantity]],Table_PI[[#This Row],[List 1]],Table_PI[[#This Row],[List 2]],Table_PI[[#This Row],[List 3]],Table_PI[[#This Row],[Size]],Table_PI[[#This Row],[Input 1]],Table_PI[[#This Row],[Input 2]],Table_PI[[#This Row],[Input 3]],Table_PI[[#This Row],[Input 4]],'Customer Information'!$AR$12,101,ROW())<>0,MeasureCalc(Table_PI[[#This Row],[Hide:\nFormula Name]],Table_SummaryPI[[#This Row],[Quantity]],Table_PI[[#This Row],[List 1]],Table_PI[[#This Row],[List 2]],Table_PI[[#This Row],[List 3]],Table_PI[[#This Row],[Size]],Table_PI[[#This Row],[Input 1]],Table_PI[[#This Row],[Input 2]],Table_PI[[#This Row],[Input 3]],Table_PI[[#This Row],[Input 4]],'Customer Information'!$AR$12,101,ROW())<>\"No Rebate\"),MeasureCalc(Table_PI[[#This Row],[Hide:\nFormula Name]],Table_SummaryPI[[#This Row],[Quantity]],Table_PI[[#This Row],[List 1]],Table_PI[[#This Row],[List 2]],Table_PI[[#This Row],[List 3]],Table_PI[[#This Row],[Size]],Table_PI[[#This Row],[Input 1]],Table_PI[[#This Row],[Input 2]],Table_PI[[#This Row],[Input 3]],Table_PI[[#This Row],[Input 4]],'Customer Information'!$AR$12,101,ROW()),\"\"),\"\")","v":""},{"$f":"IF(Table_PI[[#This Row],[Input 2]]<>\"\",Table_PI[[#This Row],[Input 2]],\"\")","v":""},null,{"$f":"IFERROR(IF(AND(MeasureCalc(Table_PI[[#This Row],[Hide:\nFormula Name]],Table_SummaryPI[[#This Row],[Quantity]],Table_PI[[#This Row],[List 1]],Table_PI[[#This Row],[List 2]],Table_PI[[#This Row],[List 3]],Table_PI[[#This Row],[Size]],Table_PI[[#This Row],[Input 1]],Table_PI[[#This Row],[Input 2]],Table_PI[[#This Row],[Input 3]],Table_PI[[#This Row],[Input 4]],'Customer Information'!$AR$12,102,ROW())<>0,MeasureCalc(Table_PI[[#This Row],[Hide:\nFormula Name]],Table_SummaryPI[[#This Row],[Quantity]],Table_PI[[#This Row],[List 1]],Table_PI[[#This Row],[List 2]],Table_PI[[#This Row],[List 3]],Table_PI[[#This Row],[Size]],Table_PI[[#This Row],[Input 1]],Table_PI[[#This Row],[Input 2]],Table_PI[[#This Row],[Input 3]],Table_PI[[#This Row],[Input 4]],'Customer Information'!$AR$12,102,ROW())<>\"No Rebate\"),MeasureCalc(Table_PI[[#This Row],[Hide:\nFormula Name]],Table_SummaryPI[[#This Row],[Quantity]],Table_PI[[#This Row],[List 1]],Table_PI[[#This Row],[List 2]],Table_PI[[#This Row],[List 3]],Table_PI[[#This Row],[Size]],Table_PI[[#This Row],[Input 1]],Table_PI[[#This Row],[Input 2]],Table_PI[[#This Row],[Input 3]],Table_PI[[#This Row],[Input 4]],'Customer Information'!$AR$12,102,ROW()),\"\"),\"\")","v":""},{"$f":"IF(Table_PI[[#This Row],[Input 3]]<>\"\",Table_PI[[#This Row],[Input 3]],\"\")","v":""},null,{"$f":"IFERROR(IF(AND(MeasureCalc(Table_PI[[#This Row],[Hide:\nFormula Name]],Table_SummaryPI[[#This Row],[Quantity]],Table_PI[[#This Row],[List 1]],Table_PI[[#This Row],[List 2]],Table_PI[[#This Row],[List 3]],Table_PI[[#This Row],[Size]],Table_PI[[#This Row],[Input 1]],Table_PI[[#This Row],[Input 2]],Table_PI[[#This Row],[Input 3]],Table_PI[[#This Row],[Input 4]],'Customer Information'!$AR$12,103,ROW())<>0,MeasureCalc(Table_PI[[#This Row],[Hide:\nFormula Name]],Table_SummaryPI[[#This Row],[Quantity]],Table_PI[[#This Row],[List 1]],Table_PI[[#This Row],[List 2]],Table_PI[[#This Row],[List 3]],Table_PI[[#This Row],[Size]],Table_PI[[#This Row],[Input 1]],Table_PI[[#This Row],[Input 2]],Table_PI[[#This Row],[Input 3]],Table_PI[[#This Row],[Input 4]],'Customer Information'!$AR$12,103,ROW())<>\"No Rebate\"),MeasureCalc(Table_PI[[#This Row],[Hide:\nFormula Name]],Table_SummaryPI[[#This Row],[Quantity]],Table_PI[[#This Row],[List 1]],Table_PI[[#This Row],[List 2]],Table_PI[[#This Row],[List 3]],Table_PI[[#This Row],[Size]],Table_PI[[#This Row],[Input 1]],Table_PI[[#This Row],[Input 2]],Table_PI[[#This Row],[Input 3]],Table_PI[[#This Row],[Input 4]],'Customer Information'!$AR$12,103,ROW()),\"\"),\"\")","v":""},{"$f":"IF(Table_PI[[#This Row],[Input 4]]<>\"\",Table_PI[[#This Row],[Input 4]],\"\")","v":""},{"$f":"IF(Table_PI[[#This Row],[Quantity]]=\"\",\"\",Table_PI[[#This Row],[Quantity]])","v":""},{"$f":"IF(Table_PI[[#This Row],[Notes]]=\"\",\"\",Table_PI[[#This Row],[Notes]])","v":""},{"$f":"IF(OR(Table_PI[[#This Row],[Hide:\nBaseline kWh]]=\"\",Table_PI[[#This Row],[Hide:\nBaseline kWh]]=0),\"\",Table_PI[[#This Row],[Hide:\nBaseline kWh]])","v":""},{"$f":"IF(OR(Table_PI[[#This Row],[Hide:\nBaseline kW]]=\"\",Table_PI[[#This Row],[Hide:\nBaseline kW]]=0),\"\",Table_PI[[#This Row],[Hide:\nBaseline kW]])","v":""},{"$f":"IF(OR(Table_PI[[#This Row],[Hide:\nProposed kWh]]=\"\",Table_PI[[#This Row],[Hide:\nProposed kWh]]=0),\"\",Table_PI[[#This Row],[Hide:\nProposed kWh]])","v":""},{"$f":"IF(OR(Table_PI[[#This Row],[Hide:\nProposed kW]]=\"\",Table_PI[[#This Row],[Hide:\nProposed kW]]=0),\"\",Table_PI[[#This Row],[Hide:\nProposed kW]])","v":""},{"$f":"IF(OR(Table_PI[[#This Row],[Rebate]]=\"\",Table_PI[[#This Row],[Rebate]]=0),\"\",Table_PI[[#This Row],[Rebate]])","v":""},{"$f":"IF(OR(Table_PI[[#This Row],[Hide:\nIncremental Cost]]=\"\",Table_PI[[#This Row],[Hide:\nIncremental Cost]]=0),\"\",Table_PI[[#This Row],[Hide:\nIncremental Cost]])","v":""},{"$f":"IFERROR(IF(Table_SummaryPI[[#This Row],[kWhSavings]]=\"\",\"\",ROUND(Table_SummaryPI[[#This Row],[kWhSavings]]/$AG$401*'Customer Information'!$BC$17,2)),0)","v":""},{"$f":"IF(OR(Table_PI[[#This Row],[Annual kWh]]=\"\",Table_PI[[#This Row],[Annual kWh]]=0),\"\",Table_PI[[#This Row],[Annual kWh]])","v":""},{"$f":"IF(OR(Table_PI[[#This Row],[Peak kW]]=\"\",Table_PI[[#This Row],[Peak kW]]=0),\"\",Table_PI[[#This Row],[Peak kW]])","v":""},{"$f":"IFERROR(IF(Table_SummaryPI[[#This Row],[kWhSavings]]=\"\",\"\",$AU$9*Table_SummaryPI[[#This Row],[kWhSavings]]),0)","v":""},{"$f":"IFERROR(IF(Table_SummaryPI[[#This Row],[kWhSavings]]=\"\",\"\",$AU$14*Table_SummaryPI[[#This Row],[kWhSavings]]),0)","v":""},{"$f":"IFERROR(IF(Table_SummaryPI[[#This Row],[kWhSavings]]=\"\",\"\",$AU$18*Table_SummaryPI[[#This Row],[kWhSavings]]),0)","v":""},{"$f":"IFERROR(IF(Table_SummaryPI[[#This Row],[kWhSavings]]=\"\",\"\",$AU$22*Table_SummaryPI[[#This Row],[kWhSavings]]),0)","v":""},{"$f":"IFERROR(IF(MeasureCalc(Table_PI[[#This Row],[Hide:\nFormula Name]],Table_SummaryPI[[#This Row],[Quantity]],Table_PI[[#This Row],[List 1]],Table_PI[[#This Row],[List 2]],Table_PI[[#This Row],[List 3]],Table_PI[[#This Row],[Size]],Table_PI[[#This Row],[Input 1]],Table_PI[[#This Row],[Input 2]],Table_PI[[#This Row],[Input 3]],Table_PI[[#This Row],[Input 4]],'Customer Information'!$AR$12,200,ROW())<>\"No Rebate\",MeasureCalc(Table_PI[[#This Row],[Hide:\nFormula Name]],Table_SummaryPI[[#This Row],[Quantity]],Table_PI[[#This Row],[List 1]],Table_PI[[#This Row],[List 2]],Table_PI[[#This Row],[List 3]],Table_PI[[#This Row],[Size]],Table_PI[[#This Row],[Input 1]],Table_PI[[#This Row],[Input 2]],Table_PI[[#This Row],[Input 3]],Table_PI[[#This Row],[Input 4]],'Customer Information'!$AR$12,200,ROW()),\"\"),\"\")","v":""},{"$f":"IFERROR(IF(MeasureCalc(Table_PI[[#This Row],[Hide:\nFormula Name]],Table_SummaryPI[[#This Row],[Quantity]],Table_PI[[#This Row],[List 1]],Table_PI[[#This Row],[List 2]],Table_PI[[#This Row],[List 3]],Table_PI[[#This Row],[Size]],Table_PI[[#This Row],[Input 1]],Table_PI[[#This Row],[Input 2]],Table_PI[[#This Row],[Input 3]],Table_PI[[#This Row],[Input 4]],'Customer Information'!$AR$12,201,ROW())<>\"No Rebate\",MeasureCalc(Table_PI[[#This Row],[Hide:\nFormula Name]],Table_SummaryPI[[#This Row],[Quantity]],Table_PI[[#This Row],[List 1]],Table_PI[[#This Row],[List 2]],Table_PI[[#This Row],[List 3]],Table_PI[[#This Row],[Size]],Table_PI[[#This Row],[Input 1]],Table_PI[[#This Row],[Input 2]],Table_PI[[#This Row],[Input 3]],Table_PI[[#This Row],[Input 4]],'Customer Information'!$AR$12,201,ROW()),\"\"),\"\")","v":""}]
[{"$f":"Table_PI[[#This Row],[Line No.]]","v":""},{"$f":"IF(Table_SummaryPI[[#This Row],[MeassureCategory]]<>\"\",CONCATENATE(Table_SummaryPI[[#This Row],[MeassureCategory]],  \" - \", Table_SummaryPI[[#This Row],[ProposedMeasureCategory]],  \" - \", TEXT(Table_SummaryPI[[#This Row],[Size]],\"#,##0.00\"),\" \",Table_SummaryPI[[#This Row],[SizeUnit]]),\"\")","v":""},{"$f":"SUBSTITUTE(Table_PI[[#This Row],[Measure]],\"     \",\"\",1)","v":""},{"$f":"IF(Table_PI[[#This Row],[List 1]]<>\"\",Table_PI[[#This Row],[List 1]],\"\")","v":""},{"$f":"IF(Table_PI[[#This Row],[List 2]]<>\"\",Table_PI[[#This Row],[List 2]],\"\")","v":""},{"$f":"IF(Table_PI[[#This Row],[List 3]]<>\"\",Table_PI[[#This Row],[List 3]],\"\")","v":""},{"$f":"IF(Table_PI[[#This Row],[Manufacturer]]=\"\",\"\",Table_PI[[#This Row],[Manufacturer]])","v":""},{"$f":"IF(Table_PI[[#This Row],[Model Number]]=\"\",\"\",Table_PI[[#This Row],[Model Number]])","v":""},{"$f":"IF(Table_PI[[#This Row],[Serial Number(s)]]=\"\",\"\",Table_PI[[#This Row],[Serial Number(s)]])","v":""},null,{"$f":"IF(Table_PI[[#This Row],[Size]]=\"\",\"\",Table_PI[[#This Row],[Size]])","v":""},null,{"$f":"IFERROR(IF(AND(MeasureCalc(Table_PI[[#This Row],[Hide:\nFormula Name]],Table_SummaryPI[[#This Row],[Quantity]],Table_PI[[#This Row],[List 1]],Table_PI[[#This Row],[List 2]],Table_PI[[#This Row],[List 3]],Table_PI[[#This Row],[Size]],Table_PI[[#This Row],[Input 1]],Table_PI[[#This Row],[Input 2]],Table_PI[[#This Row],[Input 3]],Table_PI[[#This Row],[Input 4]],'Customer Information'!$AR$12,100,ROW())<>0,MeasureCalc(Table_PI[[#This Row],[Hide:\nFormula Name]],Table_SummaryPI[[#This Row],[Quantity]],Table_PI[[#This Row],[List 1]],Table_PI[[#This Row],[List 2]],Table_PI[[#This Row],[List 3]],Table_PI[[#This Row],[Size]],Table_PI[[#This Row],[Input 1]],Table_PI[[#This Row],[Input 2]],Table_PI[[#This Row],[Input 3]],Table_PI[[#This Row],[Input 4]],'Customer Information'!$AR$12,100,ROW())<>\"No Rebate\"),MeasureCalc(Table_PI[[#This Row],[Hide:\nFormula Name]],Table_SummaryPI[[#This Row],[Quantity]],Table_PI[[#This Row],[List 1]],Table_PI[[#This Row],[List 2]],Table_PI[[#This Row],[List 3]],Table_PI[[#This Row],[Size]],Table_PI[[#This Row],[Input 1]],Table_PI[[#This Row],[Input 2]],Table_PI[[#This Row],[Input 3]],Table_PI[[#This Row],[Input 4]],'Customer Information'!$AR$12,100,ROW()),\"\"),\"\")","v":""},{"$f":"IF(Table_PI[[#This Row],[Input 1]]<>\"\",Table_PI[[#This Row],[Input 1]],\"\")","v":""},null,{"$f":"IFERROR(IF(AND(MeasureCalc(Table_PI[[#This Row],[Hide:\nFormula Name]],Table_SummaryPI[[#This Row],[Quantity]],Table_PI[[#This Row],[List 1]],Table_PI[[#This Row],[List 2]],Table_PI[[#This Row],[List 3]],Table_PI[[#This Row],[Size]],Table_PI[[#This Row],[Input 1]],Table_PI[[#This Row],[Input 2]],Table_PI[[#This Row],[Input 3]],Table_PI[[#This Row],[Input 4]],'Customer Information'!$AR$12,101,ROW())<>0,MeasureCalc(Table_PI[[#This Row],[Hide:\nFormula Name]],Table_SummaryPI[[#This Row],[Quantity]],Table_PI[[#This Row],[List 1]],Table_PI[[#This Row],[List 2]],Table_PI[[#This Row],[List 3]],Table_PI[[#This Row],[Size]],Table_PI[[#This Row],[Input 1]],Table_PI[[#This Row],[Input 2]],Table_PI[[#This Row],[Input 3]],Table_PI[[#This Row],[Input 4]],'Customer Information'!$AR$12,101,ROW())<>\"No Rebate\"),MeasureCalc(Table_PI[[#This Row],[Hide:\nFormula Name]],Table_SummaryPI[[#This Row],[Quantity]],Table_PI[[#This Row],[List 1]],Table_PI[[#This Row],[List 2]],Table_PI[[#This Row],[List 3]],Table_PI[[#This Row],[Size]],Table_PI[[#This Row],[Input 1]],Table_PI[[#This Row],[Input 2]],Table_PI[[#This Row],[Input 3]],Table_PI[[#This Row],[Input 4]],'Customer Information'!$AR$12,101,ROW()),\"\"),\"\")","v":""},{"$f":"IF(Table_PI[[#This Row],[Input 2]]<>\"\",Table_PI[[#This Row],[Input 2]],\"\")","v":""},null,{"$f":"IFERROR(IF(AND(MeasureCalc(Table_PI[[#This Row],[Hide:\nFormula Name]],Table_SummaryPI[[#This Row],[Quantity]],Table_PI[[#This Row],[List 1]],Table_PI[[#This Row],[List 2]],Table_PI[[#This Row],[List 3]],Table_PI[[#This Row],[Size]],Table_PI[[#This Row],[Input 1]],Table_PI[[#This Row],[Input 2]],Table_PI[[#This Row],[Input 3]],Table_PI[[#This Row],[Input 4]],'Customer Information'!$AR$12,102,ROW())<>0,MeasureCalc(Table_PI[[#This Row],[Hide:\nFormula Name]],Table_SummaryPI[[#This Row],[Quantity]],Table_PI[[#This Row],[List 1]],Table_PI[[#This Row],[List 2]],Table_PI[[#This Row],[List 3]],Table_PI[[#This Row],[Size]],Table_PI[[#This Row],[Input 1]],Table_PI[[#This Row],[Input 2]],Table_PI[[#This Row],[Input 3]],Table_PI[[#This Row],[Input 4]],'Customer Information'!$AR$12,102,ROW())<>\"No Rebate\"),MeasureCalc(Table_PI[[#This Row],[Hide:\nFormula Name]],Table_SummaryPI[[#This Row],[Quantity]],Table_PI[[#This Row],[List 1]],Table_PI[[#This Row],[List 2]],Table_PI[[#This Row],[List 3]],Table_PI[[#This Row],[Size]],Table_PI[[#This Row],[Input 1]],Table_PI[[#This Row],[Input 2]],Table_PI[[#This Row],[Input 3]],Table_PI[[#This Row],[Input 4]],'Customer Information'!$AR$12,102,ROW()),\"\"),\"\")","v":""},{"$f":"IF(Table_PI[[#This Row],[Input 3]]<>\"\",Table_PI[[#This Row],[Input 3]],\"\")","v":""},null,{"$f":"IFERROR(IF(AND(MeasureCalc(Table_PI[[#This Row],[Hide:\nFormula Name]],Table_SummaryPI[[#This Row],[Quantity]],Table_PI[[#This Row],[List 1]],Table_PI[[#This Row],[List 2]],Table_PI[[#This Row],[List 3]],Table_PI[[#This Row],[Size]],Table_PI[[#This Row],[Input 1]],Table_PI[[#This Row],[Input 2]],Table_PI[[#This Row],[Input 3]],Table_PI[[#This Row],[Input 4]],'Customer Information'!$AR$12,103,ROW())<>0,MeasureCalc(Table_PI[[#This Row],[Hide:\nFormula Name]],Table_SummaryPI[[#This Row],[Quantity]],Table_PI[[#This Row],[List 1]],Table_PI[[#This Row],[List 2]],Table_PI[[#This Row],[List 3]],Table_PI[[#This Row],[Size]],Table_PI[[#This Row],[Input 1]],Table_PI[[#This Row],[Input 2]],Table_PI[[#This Row],[Input 3]],Table_PI[[#This Row],[Input 4]],'Customer Information'!$AR$12,103,ROW())<>\"No Rebate\"),MeasureCalc(Table_PI[[#This Row],[Hide:\nFormula Name]],Table_SummaryPI[[#This Row],[Quantity]],Table_PI[[#This Row],[List 1]],Table_PI[[#This Row],[List 2]],Table_PI[[#This Row],[List 3]],Table_PI[[#This Row],[Size]],Table_PI[[#This Row],[Input 1]],Table_PI[[#This Row],[Input 2]],Table_PI[[#This Row],[Input 3]],Table_PI[[#This Row],[Input 4]],'Customer Information'!$AR$12,103,ROW()),\"\"),\"\")","v":""},{"$f":"IF(Table_PI[[#This Row],[Input 4]]<>\"\",Table_PI[[#This Row],[Input 4]],\"\")","v":""},{"$f":"IF(Table_PI[[#This Row],[Quantity]]=\"\",\"\",Table_PI[[#This Row],[Quantity]])","v":""},{"$f":"IF(Table_PI[[#This Row],[Notes]]=\"\",\"\",Table_PI[[#This Row],[Notes]])","v":""},{"$f":"IF(OR(Table_PI[[#This Row],[Hide:\nBaseline kWh]]=\"\",Table_PI[[#This Row],[Hide:\nBaseline kWh]]=0),\"\",Table_PI[[#This Row],[Hide:\nBaseline kWh]])","v":""},{"$f":"IF(OR(Table_PI[[#This Row],[Hide:\nBaseline kW]]=\"\",Table_PI[[#This Row],[Hide:\nBaseline kW]]=0),\"\",Table_PI[[#This Row],[Hide:\nBaseline kW]])","v":""},{"$f":"IF(OR(Table_PI[[#This Row],[Hide:\nProposed kWh]]=\"\",Table_PI[[#This Row],[Hide:\nProposed kWh]]=0),\"\",Table_PI[[#This Row],[Hide:\nProposed kWh]])","v":""},{"$f":"IF(OR(Table_PI[[#This Row],[Hide:\nProposed kW]]=\"\",Table_PI[[#This Row],[Hide:\nProposed kW]]=0),\"\",Table_PI[[#This Row],[Hide:\nProposed kW]])","v":""},{"$f":"IF(OR(Table_PI[[#This Row],[Rebate]]=\"\",Table_PI[[#This Row],[Rebate]]=0),\"\",Table_PI[[#This Row],[Rebate]])","v":""},{"$f":"IF(OR(Table_PI[[#This Row],[Hide:\nIncremental Cost]]=\"\",Table_PI[[#This Row],[Hide:\nIncremental Cost]]=0),\"\",Table_PI[[#This Row],[Hide:\nIncremental Cost]])","v":""},{"$f":"IFERROR(IF(Table_SummaryPI[[#This Row],[kWhSavings]]=\"\",\"\",ROUND(Table_SummaryPI[[#This Row],[kWhSavings]]/$AG$401*'Customer Information'!$BC$17,2)),0)","v":""},{"$f":"IF(OR(Table_PI[[#This Row],[Annual kWh]]=\"\",Table_PI[[#This Row],[Annual kWh]]=0),\"\",Table_PI[[#This Row],[Annual kWh]])","v":""},{"$f":"IF(OR(Table_PI[[#This Row],[Peak kW]]=\"\",Table_PI[[#This Row],[Peak kW]]=0),\"\",Table_PI[[#This Row],[Peak kW]])","v":""},{"$f":"IFERROR(IF(Table_SummaryPI[[#This Row],[kWhSavings]]=\"\",\"\",$AU$9*Table_SummaryPI[[#This Row],[kWhSavings]]),0)","v":""},{"$f":"IFERROR(IF(Table_SummaryPI[[#This Row],[kWhSavings]]=\"\",\"\",$AU$14*Table_SummaryPI[[#This Row],[kWhSavings]]),0)","v":""},{"$f":"IFERROR(IF(Table_SummaryPI[[#This Row],[kWhSavings]]=\"\",\"\",$AU$18*Table_SummaryPI[[#This Row],[kWhSavings]]),0)","v":""},{"$f":"IFERROR(IF(Table_SummaryPI[[#This Row],[kWhSavings]]=\"\",\"\",$AU$22*Table_SummaryPI[[#This Row],[kWhSavings]]),0)","v":""},{"$f":"IFERROR(IF(MeasureCalc(Table_PI[[#This Row],[Hide:\nFormula Name]],Table_SummaryPI[[#This Row],[Quantity]],Table_PI[[#This Row],[List 1]],Table_PI[[#This Row],[List 2]],Table_PI[[#This Row],[List 3]],Table_PI[[#This Row],[Size]],Table_PI[[#This Row],[Input 1]],Table_PI[[#This Row],[Input 2]],Table_PI[[#This Row],[Input 3]],Table_PI[[#This Row],[Input 4]],'Customer Information'!$AR$12,200,ROW())<>\"No Rebate\",MeasureCalc(Table_PI[[#This Row],[Hide:\nFormula Name]],Table_SummaryPI[[#This Row],[Quantity]],Table_PI[[#This Row],[List 1]],Table_PI[[#This Row],[List 2]],Table_PI[[#This Row],[List 3]],Table_PI[[#This Row],[Size]],Table_PI[[#This Row],[Input 1]],Table_PI[[#This Row],[Input 2]],Table_PI[[#This Row],[Input 3]],Table_PI[[#This Row],[Input 4]],'Customer Information'!$AR$12,200,ROW()),\"\"),\"\")","v":""},{"$f":"IFERROR(IF(MeasureCalc(Table_PI[[#This Row],[Hide:\nFormula Name]],Table_SummaryPI[[#This Row],[Quantity]],Table_PI[[#This Row],[List 1]],Table_PI[[#This Row],[List 2]],Table_PI[[#This Row],[List 3]],Table_PI[[#This Row],[Size]],Table_PI[[#This Row],[Input 1]],Table_PI[[#This Row],[Input 2]],Table_PI[[#This Row],[Input 3]],Table_PI[[#This Row],[Input 4]],'Customer Information'!$AR$12,201,ROW())<>\"No Rebate\",MeasureCalc(Table_PI[[#This Row],[Hide:\nFormula Name]],Table_SummaryPI[[#This Row],[Quantity]],Table_PI[[#This Row],[List 1]],Table_PI[[#This Row],[List 2]],Table_PI[[#This Row],[List 3]],Table_PI[[#This Row],[Size]],Table_PI[[#This Row],[Input 1]],Table_PI[[#This Row],[Input 2]],Table_PI[[#This Row],[Input 3]],Table_PI[[#This Row],[Input 4]],'Customer Information'!$AR$12,201,ROW()),\"\"),\"\")","v":""}]
[{"$f":"Table_PI[[#This Row],[Line No.]]","v":""},{"$f":"IF(Table_SummaryPI[[#This Row],[MeassureCategory]]<>\"\",CONCATENATE(Table_SummaryPI[[#This Row],[MeassureCategory]],  \" - \", Table_SummaryPI[[#This Row],[ProposedMeasureCategory]],  \" - \", TEXT(Table_SummaryPI[[#This Row],[Size]],\"#,##0.00\"),\" \",Table_SummaryPI[[#This Row],[SizeUnit]]),\"\")","v":""},{"$f":"SUBSTITUTE(Table_PI[[#This Row],[Measure]],\"     \",\"\",1)","v":""},{"$f":"IF(Table_PI[[#This Row],[List 1]]<>\"\",Table_PI[[#This Row],[List 1]],\"\")","v":""},{"$f":"IF(Table_PI[[#This Row],[List 2]]<>\"\",Table_PI[[#This Row],[List 2]],\"\")","v":""},{"$f":"IF(Table_PI[[#This Row],[List 3]]<>\"\",Table_PI[[#This Row],[List 3]],\"\")","v":""},{"$f":"IF(Table_PI[[#This Row],[Manufacturer]]=\"\",\"\",Table_PI[[#This Row],[Manufacturer]])","v":""},{"$f":"IF(Table_PI[[#This Row],[Model Number]]=\"\",\"\",Table_PI[[#This Row],[Model Number]])","v":""},{"$f":"IF(Table_PI[[#This Row],[Serial Number(s)]]=\"\",\"\",Table_PI[[#This Row],[Serial Number(s)]])","v":""},null,{"$f":"IF(Table_PI[[#This Row],[Size]]=\"\",\"\",Table_PI[[#This Row],[Size]])","v":""},null,{"$f":"IFERROR(IF(AND(MeasureCalc(Table_PI[[#This Row],[Hide:\nFormula Name]],Table_SummaryPI[[#This Row],[Quantity]],Table_PI[[#This Row],[List 1]],Table_PI[[#This Row],[List 2]],Table_PI[[#This Row],[List 3]],Table_PI[[#This Row],[Size]],Table_PI[[#This Row],[Input 1]],Table_PI[[#This Row],[Input 2]],Table_PI[[#This Row],[Input 3]],Table_PI[[#This Row],[Input 4]],'Customer Information'!$AR$12,100,ROW())<>0,MeasureCalc(Table_PI[[#This Row],[Hide:\nFormula Name]],Table_SummaryPI[[#This Row],[Quantity]],Table_PI[[#This Row],[List 1]],Table_PI[[#This Row],[List 2]],Table_PI[[#This Row],[List 3]],Table_PI[[#This Row],[Size]],Table_PI[[#This Row],[Input 1]],Table_PI[[#This Row],[Input 2]],Table_PI[[#This Row],[Input 3]],Table_PI[[#This Row],[Input 4]],'Customer Information'!$AR$12,100,ROW())<>\"No Rebate\"),MeasureCalc(Table_PI[[#This Row],[Hide:\nFormula Name]],Table_SummaryPI[[#This Row],[Quantity]],Table_PI[[#This Row],[List 1]],Table_PI[[#This Row],[List 2]],Table_PI[[#This Row],[List 3]],Table_PI[[#This Row],[Size]],Table_PI[[#This Row],[Input 1]],Table_PI[[#This Row],[Input 2]],Table_PI[[#This Row],[Input 3]],Table_PI[[#This Row],[Input 4]],'Customer Information'!$AR$12,100,ROW()),\"\"),\"\")","v":""},{"$f":"IF(Table_PI[[#This Row],[Input 1]]<>\"\",Table_PI[[#This Row],[Input 1]],\"\")","v":""},null,{"$f":"IFERROR(IF(AND(MeasureCalc(Table_PI[[#This Row],[Hide:\nFormula Name]],Table_SummaryPI[[#This Row],[Quantity]],Table_PI[[#This Row],[List 1]],Table_PI[[#This Row],[List 2]],Table_PI[[#This Row],[List 3]],Table_PI[[#This Row],[Size]],Table_PI[[#This Row],[Input 1]],Table_PI[[#This Row],[Input 2]],Table_PI[[#This Row],[Input 3]],Table_PI[[#This Row],[Input 4]],'Customer Information'!$AR$12,101,ROW())<>0,MeasureCalc(Table_PI[[#This Row],[Hide:\nFormula Name]],Table_SummaryPI[[#This Row],[Quantity]],Table_PI[[#This Row],[List 1]],Table_PI[[#This Row],[List 2]],Table_PI[[#This Row],[List 3]],Table_PI[[#This Row],[Size]],Table_PI[[#This Row],[Input 1]],Table_PI[[#This Row],[Input 2]],Table_PI[[#This Row],[Input 3]],Table_PI[[#This Row],[Input 4]],'Customer Information'!$AR$12,101,ROW())<>\"No Rebate\"),MeasureCalc(Table_PI[[#This Row],[Hide:\nFormula Name]],Table_SummaryPI[[#This Row],[Quantity]],Table_PI[[#This Row],[List 1]],Table_PI[[#This Row],[List 2]],Table_PI[[#This Row],[List 3]],Table_PI[[#This Row],[Size]],Table_PI[[#This Row],[Input 1]],Table_PI[[#This Row],[Input 2]],Table_PI[[#This Row],[Input 3]],Table_PI[[#This Row],[Input 4]],'Customer Information'!$AR$12,101,ROW()),\"\"),\"\")","v":""},{"$f":"IF(Table_PI[[#This Row],[Input 2]]<>\"\",Table_PI[[#This Row],[Input 2]],\"\")","v":""},null,{"$f":"IFERROR(IF(AND(MeasureCalc(Table_PI[[#This Row],[Hide:\nFormula Name]],Table_SummaryPI[[#This Row],[Quantity]],Table_PI[[#This Row],[List 1]],Table_PI[[#This Row],[List 2]],Table_PI[[#This Row],[List 3]],Table_PI[[#This Row],[Size]],Table_PI[[#This Row],[Input 1]],Table_PI[[#This Row],[Input 2]],Table_PI[[#This Row],[Input 3]],Table_PI[[#This Row],[Input 4]],'Customer Information'!$AR$12,102,ROW())<>0,MeasureCalc(Table_PI[[#This Row],[Hide:\nFormula Name]],Table_SummaryPI[[#This Row],[Quantity]],Table_PI[[#This Row],[List 1]],Table_PI[[#This Row],[List 2]],Table_PI[[#This Row],[List 3]],Table_PI[[#This Row],[Size]],Table_PI[[#This Row],[Input 1]],Table_PI[[#This Row],[Input 2]],Table_PI[[#This Row],[Input 3]],Table_PI[[#This Row],[Input 4]],'Customer Information'!$AR$12,102,ROW())<>\"No Rebate\"),MeasureCalc(Table_PI[[#This Row],[Hide:\nFormula Name]],Table_SummaryPI[[#This Row],[Quantity]],Table_PI[[#This Row],[List 1]],Table_PI[[#This Row],[List 2]],Table_PI[[#This Row],[List 3]],Table_PI[[#This Row],[Size]],Table_PI[[#This Row],[Input 1]],Table_PI[[#This Row],[Input 2]],Table_PI[[#This Row],[Input 3]],Table_PI[[#This Row],[Input 4]],'Customer Information'!$AR$12,102,ROW()),\"\"),\"\")","v":""},{"$f":"IF(Table_PI[[#This Row],[Input 3]]<>\"\",Table_PI[[#This Row],[Input 3]],\"\")","v":""},null,{"$f":"IFERROR(IF(AND(MeasureCalc(Table_PI[[#This Row],[Hide:\nFormula Name]],Table_SummaryPI[[#This Row],[Quantity]],Table_PI[[#This Row],[List 1]],Table_PI[[#This Row],[List 2]],Table_PI[[#This Row],[List 3]],Table_PI[[#This Row],[Size]],Table_PI[[#This Row],[Input 1]],Table_PI[[#This Row],[Input 2]],Table_PI[[#This Row],[Input 3]],Table_PI[[#This Row],[Input 4]],'Customer Information'!$AR$12,103,ROW())<>0,MeasureCalc(Table_PI[[#This Row],[Hide:\nFormula Name]],Table_SummaryPI[[#This Row],[Quantity]],Table_PI[[#This Row],[List 1]],Table_PI[[#This Row],[List 2]],Table_PI[[#This Row],[List 3]],Table_PI[[#This Row],[Size]],Table_PI[[#This Row],[Input 1]],Table_PI[[#This Row],[Input 2]],Table_PI[[#This Row],[Input 3]],Table_PI[[#This Row],[Input 4]],'Customer Information'!$AR$12,103,ROW())<>\"No Rebate\"),MeasureCalc(Table_PI[[#This Row],[Hide:\nFormula Name]],Table_SummaryPI[[#This Row],[Quantity]],Table_PI[[#This Row],[List 1]],Table_PI[[#This Row],[List 2]],Table_PI[[#This Row],[List 3]],Table_PI[[#This Row],[Size]],Table_PI[[#This Row],[Input 1]],Table_PI[[#This Row],[Input 2]],Table_PI[[#This Row],[Input 3]],Table_PI[[#This Row],[Input 4]],'Customer Information'!$AR$12,103,ROW()),\"\"),\"\")","v":""},{"$f":"IF(Table_PI[[#This Row],[Input 4]]<>\"\",Table_PI[[#This Row],[Input 4]],\"\")","v":""},{"$f":"IF(Table_PI[[#This Row],[Quantity]]=\"\",\"\",Table_PI[[#This Row],[Quantity]])","v":""},{"$f":"IF(Table_PI[[#This Row],[Notes]]=\"\",\"\",Table_PI[[#This Row],[Notes]])","v":""},{"$f":"IF(OR(Table_PI[[#This Row],[Hide:\nBaseline kWh]]=\"\",Table_PI[[#This Row],[Hide:\nBaseline kWh]]=0),\"\",Table_PI[[#This Row],[Hide:\nBaseline kWh]])","v":""},{"$f":"IF(OR(Table_PI[[#This Row],[Hide:\nBaseline kW]]=\"\",Table_PI[[#This Row],[Hide:\nBaseline kW]]=0),\"\",Table_PI[[#This Row],[Hide:\nBaseline kW]])","v":""},{"$f":"IF(OR(Table_PI[[#This Row],[Hide:\nProposed kWh]]=\"\",Table_PI[[#This Row],[Hide:\nProposed kWh]]=0),\"\",Table_PI[[#This Row],[Hide:\nProposed kWh]])","v":""},{"$f":"IF(OR(Table_PI[[#This Row],[Hide:\nProposed kW]]=\"\",Table_PI[[#This Row],[Hide:\nProposed kW]]=0),\"\",Table_PI[[#This Row],[Hide:\nProposed kW]])","v":""},{"$f":"IF(OR(Table_PI[[#This Row],[Rebate]]=\"\",Table_PI[[#This Row],[Rebate]]=0),\"\",Table_PI[[#This Row],[Rebate]])","v":""},{"$f":"IF(OR(Table_PI[[#This Row],[Hide:\nIncremental Cost]]=\"\",Table_PI[[#This Row],[Hide:\nIncremental Cost]]=0),\"\",Table_PI[[#This Row],[Hide:\nIncremental Cost]])","v":""},{"$f":"IFERROR(IF(Table_SummaryPI[[#This Row],[kWhSavings]]=\"\",\"\",ROUND(Table_SummaryPI[[#This Row],[kWhSavings]]/$AG$401*'Customer Information'!$BC$17,2)),0)","v":""},{"$f":"IF(OR(Table_PI[[#This Row],[Annual kWh]]=\"\",Table_PI[[#This Row],[Annual kWh]]=0),\"\",Table_PI[[#This Row],[Annual kWh]])","v":""},{"$f":"IF(OR(Table_PI[[#This Row],[Peak kW]]=\"\",Table_PI[[#This Row],[Peak kW]]=0),\"\",Table_PI[[#This Row],[Peak kW]])","v":""},{"$f":"IFERROR(IF(Table_SummaryPI[[#This Row],[kWhSavings]]=\"\",\"\",$AU$9*Table_SummaryPI[[#This Row],[kWhSavings]]),0)","v":""},{"$f":"IFERROR(IF(Table_SummaryPI[[#This Row],[kWhSavings]]=\"\",\"\",$AU$14*Table_SummaryPI[[#This Row],[kWhSavings]]),0)","v":""},{"$f":"IFERROR(IF(Table_SummaryPI[[#This Row],[kWhSavings]]=\"\",\"\",$AU$18*Table_SummaryPI[[#This Row],[kWhSavings]]),0)","v":""},{"$f":"IFERROR(IF(Table_SummaryPI[[#This Row],[kWhSavings]]=\"\",\"\",$AU$22*Table_SummaryPI[[#This Row],[kWhSavings]]),0)","v":""},{"$f":"IFERROR(IF(MeasureCalc(Table_PI[[#This Row],[Hide:\nFormula Name]],Table_SummaryPI[[#This Row],[Quantity]],Table_PI[[#This Row],[List 1]],Table_PI[[#This Row],[List 2]],Table_PI[[#This Row],[List 3]],Table_PI[[#This Row],[Size]],Table_PI[[#This Row],[Input 1]],Table_PI[[#This Row],[Input 2]],Table_PI[[#This Row],[Input 3]],Table_PI[[#This Row],[Input 4]],'Customer Information'!$AR$12,200,ROW())<>\"No Rebate\",MeasureCalc(Table_PI[[#This Row],[Hide:\nFormula Name]],Table_SummaryPI[[#This Row],[Quantity]],Table_PI[[#This Row],[List 1]],Table_PI[[#This Row],[List 2]],Table_PI[[#This Row],[List 3]],Table_PI[[#This Row],[Size]],Table_PI[[#This Row],[Input 1]],Table_PI[[#This Row],[Input 2]],Table_PI[[#This Row],[Input 3]],Table_PI[[#This Row],[Input 4]],'Customer Information'!$AR$12,200,ROW()),\"\"),\"\")","v":""},{"$f":"IFERROR(IF(MeasureCalc(Table_PI[[#This Row],[Hide:\nFormula Name]],Table_SummaryPI[[#This Row],[Quantity]],Table_PI[[#This Row],[List 1]],Table_PI[[#This Row],[List 2]],Table_PI[[#This Row],[List 3]],Table_PI[[#This Row],[Size]],Table_PI[[#This Row],[Input 1]],Table_PI[[#This Row],[Input 2]],Table_PI[[#This Row],[Input 3]],Table_PI[[#This Row],[Input 4]],'Customer Information'!$AR$12,201,ROW())<>\"No Rebate\",MeasureCalc(Table_PI[[#This Row],[Hide:\nFormula Name]],Table_SummaryPI[[#This Row],[Quantity]],Table_PI[[#This Row],[List 1]],Table_PI[[#This Row],[List 2]],Table_PI[[#This Row],[List 3]],Table_PI[[#This Row],[Size]],Table_PI[[#This Row],[Input 1]],Table_PI[[#This Row],[Input 2]],Table_PI[[#This Row],[Input 3]],Table_PI[[#This Row],[Input 4]],'Customer Information'!$AR$12,201,ROW()),\"\"),\"\")","v":""}]
[{"$f":"Table_PI[[#This Row],[Line No.]]","v":""},{"$f":"IF(Table_SummaryPI[[#This Row],[MeassureCategory]]<>\"\",CONCATENATE(Table_SummaryPI[[#This Row],[MeassureCategory]],  \" - \", Table_SummaryPI[[#This Row],[ProposedMeasureCategory]],  \" - \", TEXT(Table_SummaryPI[[#This Row],[Size]],\"#,##0.00\"),\" \",Table_SummaryPI[[#This Row],[SizeUnit]]),\"\")","v":""},{"$f":"SUBSTITUTE(Table_PI[[#This Row],[Measure]],\"     \",\"\",1)","v":""},{"$f":"IF(Table_PI[[#This Row],[List 1]]<>\"\",Table_PI[[#This Row],[List 1]],\"\")","v":""},{"$f":"IF(Table_PI[[#This Row],[List 2]]<>\"\",Table_PI[[#This Row],[List 2]],\"\")","v":""},{"$f":"IF(Table_PI[[#This Row],[List 3]]<>\"\",Table_PI[[#This Row],[List 3]],\"\")","v":""},{"$f":"IF(Table_PI[[#This Row],[Manufacturer]]=\"\",\"\",Table_PI[[#This Row],[Manufacturer]])","v":""},{"$f":"IF(Table_PI[[#This Row],[Model Number]]=\"\",\"\",Table_PI[[#This Row],[Model Number]])","v":""},{"$f":"IF(Table_PI[[#This Row],[Serial Number(s)]]=\"\",\"\",Table_PI[[#This Row],[Serial Number(s)]])","v":""},null,{"$f":"IF(Table_PI[[#This Row],[Size]]=\"\",\"\",Table_PI[[#This Row],[Size]])","v":""},null,{"$f":"IFERROR(IF(AND(MeasureCalc(Table_PI[[#This Row],[Hide:\nFormula Name]],Table_SummaryPI[[#This Row],[Quantity]],Table_PI[[#This Row],[List 1]],Table_PI[[#This Row],[List 2]],Table_PI[[#This Row],[List 3]],Table_PI[[#This Row],[Size]],Table_PI[[#This Row],[Input 1]],Table_PI[[#This Row],[Input 2]],Table_PI[[#This Row],[Input 3]],Table_PI[[#This Row],[Input 4]],'Customer Information'!$AR$12,100,ROW())<>0,MeasureCalc(Table_PI[[#This Row],[Hide:\nFormula Name]],Table_SummaryPI[[#This Row],[Quantity]],Table_PI[[#This Row],[List 1]],Table_PI[[#This Row],[List 2]],Table_PI[[#This Row],[List 3]],Table_PI[[#This Row],[Size]],Table_PI[[#This Row],[Input 1]],Table_PI[[#This Row],[Input 2]],Table_PI[[#This Row],[Input 3]],Table_PI[[#This Row],[Input 4]],'Customer Information'!$AR$12,100,ROW())<>\"No Rebate\"),MeasureCalc(Table_PI[[#This Row],[Hide:\nFormula Name]],Table_SummaryPI[[#This Row],[Quantity]],Table_PI[[#This Row],[List 1]],Table_PI[[#This Row],[List 2]],Table_PI[[#This Row],[List 3]],Table_PI[[#This Row],[Size]],Table_PI[[#This Row],[Input 1]],Table_PI[[#This Row],[Input 2]],Table_PI[[#This Row],[Input 3]],Table_PI[[#This Row],[Input 4]],'Customer Information'!$AR$12,100,ROW()),\"\"),\"\")","v":""},{"$f":"IF(Table_PI[[#This Row],[Input 1]]<>\"\",Table_PI[[#This Row],[Input 1]],\"\")","v":""},null,{"$f":"IFERROR(IF(AND(MeasureCalc(Table_PI[[#This Row],[Hide:\nFormula Name]],Table_SummaryPI[[#This Row],[Quantity]],Table_PI[[#This Row],[List 1]],Table_PI[[#This Row],[List 2]],Table_PI[[#This Row],[List 3]],Table_PI[[#This Row],[Size]],Table_PI[[#This Row],[Input 1]],Table_PI[[#This Row],[Input 2]],Table_PI[[#This Row],[Input 3]],Table_PI[[#This Row],[Input 4]],'Customer Information'!$AR$12,101,ROW())<>0,MeasureCalc(Table_PI[[#This Row],[Hide:\nFormula Name]],Table_SummaryPI[[#This Row],[Quantity]],Table_PI[[#This Row],[List 1]],Table_PI[[#This Row],[List 2]],Table_PI[[#This Row],[List 3]],Table_PI[[#This Row],[Size]],Table_PI[[#This Row],[Input 1]],Table_PI[[#This Row],[Input 2]],Table_PI[[#This Row],[Input 3]],Table_PI[[#This Row],[Input 4]],'Customer Information'!$AR$12,101,ROW())<>\"No Rebate\"),MeasureCalc(Table_PI[[#This Row],[Hide:\nFormula Name]],Table_SummaryPI[[#This Row],[Quantity]],Table_PI[[#This Row],[List 1]],Table_PI[[#This Row],[List 2]],Table_PI[[#This Row],[List 3]],Table_PI[[#This Row],[Size]],Table_PI[[#This Row],[Input 1]],Table_PI[[#This Row],[Input 2]],Table_PI[[#This Row],[Input 3]],Table_PI[[#This Row],[Input 4]],'Customer Information'!$AR$12,101,ROW()),\"\"),\"\")","v":""},{"$f":"IF(Table_PI[[#This Row],[Input 2]]<>\"\",Table_PI[[#This Row],[Input 2]],\"\")","v":""},null,{"$f":"IFERROR(IF(AND(MeasureCalc(Table_PI[[#This Row],[Hide:\nFormula Name]],Table_SummaryPI[[#This Row],[Quantity]],Table_PI[[#This Row],[List 1]],Table_PI[[#This Row],[List 2]],Table_PI[[#This Row],[List 3]],Table_PI[[#This Row],[Size]],Table_PI[[#This Row],[Input 1]],Table_PI[[#This Row],[Input 2]],Table_PI[[#This Row],[Input 3]],Table_PI[[#This Row],[Input 4]],'Customer Information'!$AR$12,102,ROW())<>0,MeasureCalc(Table_PI[[#This Row],[Hide:\nFormula Name]],Table_SummaryPI[[#This Row],[Quantity]],Table_PI[[#This Row],[List 1]],Table_PI[[#This Row],[List 2]],Table_PI[[#This Row],[List 3]],Table_PI[[#This Row],[Size]],Table_PI[[#This Row],[Input 1]],Table_PI[[#This Row],[Input 2]],Table_PI[[#This Row],[Input 3]],Table_PI[[#This Row],[Input 4]],'Customer Information'!$AR$12,102,ROW())<>\"No Rebate\"),MeasureCalc(Table_PI[[#This Row],[Hide:\nFormula Name]],Table_SummaryPI[[#This Row],[Quantity]],Table_PI[[#This Row],[List 1]],Table_PI[[#This Row],[List 2]],Table_PI[[#This Row],[List 3]],Table_PI[[#This Row],[Size]],Table_PI[[#This Row],[Input 1]],Table_PI[[#This Row],[Input 2]],Table_PI[[#This Row],[Input 3]],Table_PI[[#This Row],[Input 4]],'Customer Information'!$AR$12,102,ROW()),\"\"),\"\")","v":""},{"$f":"IF(Table_PI[[#This Row],[Input 3]]<>\"\",Table_PI[[#This Row],[Input 3]],\"\")","v":""},null,{"$f":"IFERROR(IF(AND(MeasureCalc(Table_PI[[#This Row],[Hide:\nFormula Name]],Table_SummaryPI[[#This Row],[Quantity]],Table_PI[[#This Row],[List 1]],Table_PI[[#This Row],[List 2]],Table_PI[[#This Row],[List 3]],Table_PI[[#This Row],[Size]],Table_PI[[#This Row],[Input 1]],Table_PI[[#This Row],[Input 2]],Table_PI[[#This Row],[Input 3]],Table_PI[[#This Row],[Input 4]],'Customer Information'!$AR$12,103,ROW())<>0,MeasureCalc(Table_PI[[#This Row],[Hide:\nFormula Name]],Table_SummaryPI[[#This Row],[Quantity]],Table_PI[[#This Row],[List 1]],Table_PI[[#This Row],[List 2]],Table_PI[[#This Row],[List 3]],Table_PI[[#This Row],[Size]],Table_PI[[#This Row],[Input 1]],Table_PI[[#This Row],[Input 2]],Table_PI[[#This Row],[Input 3]],Table_PI[[#This Row],[Input 4]],'Customer Information'!$AR$12,103,ROW())<>\"No Rebate\"),MeasureCalc(Table_PI[[#This Row],[Hide:\nFormula Name]],Table_SummaryPI[[#This Row],[Quantity]],Table_PI[[#This Row],[List 1]],Table_PI[[#This Row],[List 2]],Table_PI[[#This Row],[List 3]],Table_PI[[#This Row],[Size]],Table_PI[[#This Row],[Input 1]],Table_PI[[#This Row],[Input 2]],Table_PI[[#This Row],[Input 3]],Table_PI[[#This Row],[Input 4]],'Customer Information'!$AR$12,103,ROW()),\"\"),\"\")","v":""},{"$f":"IF(Table_PI[[#This Row],[Input 4]]<>\"\",Table_PI[[#This Row],[Input 4]],\"\")","v":""},{"$f":"IF(Table_PI[[#This Row],[Quantity]]=\"\",\"\",Table_PI[[#This Row],[Quantity]])","v":""},{"$f":"IF(Table_PI[[#This Row],[Notes]]=\"\",\"\",Table_PI[[#This Row],[Notes]])","v":""},{"$f":"IF(OR(Table_PI[[#This Row],[Hide:\nBaseline kWh]]=\"\",Table_PI[[#This Row],[Hide:\nBaseline kWh]]=0),\"\",Table_PI[[#This Row],[Hide:\nBaseline kWh]])","v":""},{"$f":"IF(OR(Table_PI[[#This Row],[Hide:\nBaseline kW]]=\"\",Table_PI[[#This Row],[Hide:\nBaseline kW]]=0),\"\",Table_PI[[#This Row],[Hide:\nBaseline kW]])","v":""},{"$f":"IF(OR(Table_PI[[#This Row],[Hide:\nProposed kWh]]=\"\",Table_PI[[#This Row],[Hide:\nProposed kWh]]=0),\"\",Table_PI[[#This Row],[Hide:\nProposed kWh]])","v":""},{"$f":"IF(OR(Table_PI[[#This Row],[Hide:\nProposed kW]]=\"\",Table_PI[[#This Row],[Hide:\nProposed kW]]=0),\"\",Table_PI[[#This Row],[Hide:\nProposed kW]])","v":""},{"$f":"IF(OR(Table_PI[[#This Row],[Rebate]]=\"\",Table_PI[[#This Row],[Rebate]]=0),\"\",Table_PI[[#This Row],[Rebate]])","v":""},{"$f":"IF(OR(Table_PI[[#This Row],[Hide:\nIncremental Cost]]=\"\",Table_PI[[#This Row],[Hide:\nIncremental Cost]]=0),\"\",Table_PI[[#This Row],[Hide:\nIncremental Cost]])","v":""},{"$f":"IFERROR(IF(Table_SummaryPI[[#This Row],[kWhSavings]]=\"\",\"\",ROUND(Table_SummaryPI[[#This Row],[kWhSavings]]/$AG$401*'Customer Information'!$BC$17,2)),0)","v":""},{"$f":"IF(OR(Table_PI[[#This Row],[Annual kWh]]=\"\",Table_PI[[#This Row],[Annual kWh]]=0),\"\",Table_PI[[#This Row],[Annual kWh]])","v":""},{"$f":"IF(OR(Table_PI[[#This Row],[Peak kW]]=\"\",Table_PI[[#This Row],[Peak kW]]=0),\"\",Table_PI[[#This Row],[Peak kW]])","v":""},{"$f":"IFERROR(IF(Table_SummaryPI[[#This Row],[kWhSavings]]=\"\",\"\",$AU$9*Table_SummaryPI[[#This Row],[kWhSavings]]),0)","v":""},{"$f":"IFERROR(IF(Table_SummaryPI[[#This Row],[kWhSavings]]=\"\",\"\",$AU$14*Table_SummaryPI[[#This Row],[kWhSavings]]),0)","v":""},{"$f":"IFERROR(IF(Table_SummaryPI[[#This Row],[kWhSavings]]=\"\",\"\",$AU$18*Table_SummaryPI[[#This Row],[kWhSavings]]),0)","v":""},{"$f":"IFERROR(IF(Table_SummaryPI[[#This Row],[kWhSavings]]=\"\",\"\",$AU$22*Table_SummaryPI[[#This Row],[kWhSavings]]),0)","v":""},{"$f":"IFERROR(IF(MeasureCalc(Table_PI[[#This Row],[Hide:\nFormula Name]],Table_SummaryPI[[#This Row],[Quantity]],Table_PI[[#This Row],[List 1]],Table_PI[[#This Row],[List 2]],Table_PI[[#This Row],[List 3]],Table_PI[[#This Row],[Size]],Table_PI[[#This Row],[Input 1]],Table_PI[[#This Row],[Input 2]],Table_PI[[#This Row],[Input 3]],Table_PI[[#This Row],[Input 4]],'Customer Information'!$AR$12,200,ROW())<>\"No Rebate\",MeasureCalc(Table_PI[[#This Row],[Hide:\nFormula Name]],Table_SummaryPI[[#This Row],[Quantity]],Table_PI[[#This Row],[List 1]],Table_PI[[#This Row],[List 2]],Table_PI[[#This Row],[List 3]],Table_PI[[#This Row],[Size]],Table_PI[[#This Row],[Input 1]],Table_PI[[#This Row],[Input 2]],Table_PI[[#This Row],[Input 3]],Table_PI[[#This Row],[Input 4]],'Customer Information'!$AR$12,200,ROW()),\"\"),\"\")","v":""},{"$f":"IFERROR(IF(MeasureCalc(Table_PI[[#This Row],[Hide:\nFormula Name]],Table_SummaryPI[[#This Row],[Quantity]],Table_PI[[#This Row],[List 1]],Table_PI[[#This Row],[List 2]],Table_PI[[#This Row],[List 3]],Table_PI[[#This Row],[Size]],Table_PI[[#This Row],[Input 1]],Table_PI[[#This Row],[Input 2]],Table_PI[[#This Row],[Input 3]],Table_PI[[#This Row],[Input 4]],'Customer Information'!$AR$12,201,ROW())<>\"No Rebate\",MeasureCalc(Table_PI[[#This Row],[Hide:\nFormula Name]],Table_SummaryPI[[#This Row],[Quantity]],Table_PI[[#This Row],[List 1]],Table_PI[[#This Row],[List 2]],Table_PI[[#This Row],[List 3]],Table_PI[[#This Row],[Size]],Table_PI[[#This Row],[Input 1]],Table_PI[[#This Row],[Input 2]],Table_PI[[#This Row],[Input 3]],Table_PI[[#This Row],[Input 4]],'Customer Information'!$AR$12,201,ROW()),\"\"),\"\")","v":""}]
[{"$f":"Table_PI[[#This Row],[Line No.]]","v":""},{"$f":"IF(Table_SummaryPI[[#This Row],[MeassureCategory]]<>\"\",CONCATENATE(Table_SummaryPI[[#This Row],[MeassureCategory]],  \" - \", Table_SummaryPI[[#This Row],[ProposedMeasureCategory]],  \" - \", TEXT(Table_SummaryPI[[#This Row],[Size]],\"#,##0.00\"),\" \",Table_SummaryPI[[#This Row],[SizeUnit]]),\"\")","v":""},{"$f":"SUBSTITUTE(Table_PI[[#This Row],[Measure]],\"     \",\"\",1)","v":""},{"$f":"IF(Table_PI[[#This Row],[List 1]]<>\"\",Table_PI[[#This Row],[List 1]],\"\")","v":""},{"$f":"IF(Table_PI[[#This Row],[List 2]]<>\"\",Table_PI[[#This Row],[List 2]],\"\")","v":""},{"$f":"IF(Table_PI[[#This Row],[List 3]]<>\"\",Table_PI[[#This Row],[List 3]],\"\")","v":""},{"$f":"IF(Table_PI[[#This Row],[Manufacturer]]=\"\",\"\",Table_PI[[#This Row],[Manufacturer]])","v":""},{"$f":"IF(Table_PI[[#This Row],[Model Number]]=\"\",\"\",Table_PI[[#This Row],[Model Number]])","v":""},{"$f":"IF(Table_PI[[#This Row],[Serial Number(s)]]=\"\",\"\",Table_PI[[#This Row],[Serial Number(s)]])","v":""},null,{"$f":"IF(Table_PI[[#This Row],[Size]]=\"\",\"\",Table_PI[[#This Row],[Size]])","v":""},null,{"$f":"IFERROR(IF(AND(MeasureCalc(Table_PI[[#This Row],[Hide:\nFormula Name]],Table_SummaryPI[[#This Row],[Quantity]],Table_PI[[#This Row],[List 1]],Table_PI[[#This Row],[List 2]],Table_PI[[#This Row],[List 3]],Table_PI[[#This Row],[Size]],Table_PI[[#This Row],[Input 1]],Table_PI[[#This Row],[Input 2]],Table_PI[[#This Row],[Input 3]],Table_PI[[#This Row],[Input 4]],'Customer Information'!$AR$12,100,ROW())<>0,MeasureCalc(Table_PI[[#This Row],[Hide:\nFormula Name]],Table_SummaryPI[[#This Row],[Quantity]],Table_PI[[#This Row],[List 1]],Table_PI[[#This Row],[List 2]],Table_PI[[#This Row],[List 3]],Table_PI[[#This Row],[Size]],Table_PI[[#This Row],[Input 1]],Table_PI[[#This Row],[Input 2]],Table_PI[[#This Row],[Input 3]],Table_PI[[#This Row],[Input 4]],'Customer Information'!$AR$12,100,ROW())<>\"No Rebate\"),MeasureCalc(Table_PI[[#This Row],[Hide:\nFormula Name]],Table_SummaryPI[[#This Row],[Quantity]],Table_PI[[#This Row],[List 1]],Table_PI[[#This Row],[List 2]],Table_PI[[#This Row],[List 3]],Table_PI[[#This Row],[Size]],Table_PI[[#This Row],[Input 1]],Table_PI[[#This Row],[Input 2]],Table_PI[[#This Row],[Input 3]],Table_PI[[#This Row],[Input 4]],'Customer Information'!$AR$12,100,ROW()),\"\"),\"\")","v":""},{"$f":"IF(Table_PI[[#This Row],[Input 1]]<>\"\",Table_PI[[#This Row],[Input 1]],\"\")","v":""},null,{"$f":"IFERROR(IF(AND(MeasureCalc(Table_PI[[#This Row],[Hide:\nFormula Name]],Table_SummaryPI[[#This Row],[Quantity]],Table_PI[[#This Row],[List 1]],Table_PI[[#This Row],[List 2]],Table_PI[[#This Row],[List 3]],Table_PI[[#This Row],[Size]],Table_PI[[#This Row],[Input 1]],Table_PI[[#This Row],[Input 2]],Table_PI[[#This Row],[Input 3]],Table_PI[[#This Row],[Input 4]],'Customer Information'!$AR$12,101,ROW())<>0,MeasureCalc(Table_PI[[#This Row],[Hide:\nFormula Name]],Table_SummaryPI[[#This Row],[Quantity]],Table_PI[[#This Row],[List 1]],Table_PI[[#This Row],[List 2]],Table_PI[[#This Row],[List 3]],Table_PI[[#This Row],[Size]],Table_PI[[#This Row],[Input 1]],Table_PI[[#This Row],[Input 2]],Table_PI[[#This Row],[Input 3]],Table_PI[[#This Row],[Input 4]],'Customer Information'!$AR$12,101,ROW())<>\"No Rebate\"),MeasureCalc(Table_PI[[#This Row],[Hide:\nFormula Name]],Table_SummaryPI[[#This Row],[Quantity]],Table_PI[[#This Row],[List 1]],Table_PI[[#This Row],[List 2]],Table_PI[[#This Row],[List 3]],Table_PI[[#This Row],[Size]],Table_PI[[#This Row],[Input 1]],Table_PI[[#This Row],[Input 2]],Table_PI[[#This Row],[Input 3]],Table_PI[[#This Row],[Input 4]],'Customer Information'!$AR$12,101,ROW()),\"\"),\"\")","v":""},{"$f":"IF(Table_PI[[#This Row],[Input 2]]<>\"\",Table_PI[[#This Row],[Input 2]],\"\")","v":""},null,{"$f":"IFERROR(IF(AND(MeasureCalc(Table_PI[[#This Row],[Hide:\nFormula Name]],Table_SummaryPI[[#This Row],[Quantity]],Table_PI[[#This Row],[List 1]],Table_PI[[#This Row],[List 2]],Table_PI[[#This Row],[List 3]],Table_PI[[#This Row],[Size]],Table_PI[[#This Row],[Input 1]],Table_PI[[#This Row],[Input 2]],Table_PI[[#This Row],[Input 3]],Table_PI[[#This Row],[Input 4]],'Customer Information'!$AR$12,102,ROW())<>0,MeasureCalc(Table_PI[[#This Row],[Hide:\nFormula Name]],Table_SummaryPI[[#This Row],[Quantity]],Table_PI[[#This Row],[List 1]],Table_PI[[#This Row],[List 2]],Table_PI[[#This Row],[List 3]],Table_PI[[#This Row],[Size]],Table_PI[[#This Row],[Input 1]],Table_PI[[#This Row],[Input 2]],Table_PI[[#This Row],[Input 3]],Table_PI[[#This Row],[Input 4]],'Customer Information'!$AR$12,102,ROW())<>\"No Rebate\"),MeasureCalc(Table_PI[[#This Row],[Hide:\nFormula Name]],Table_SummaryPI[[#This Row],[Quantity]],Table_PI[[#This Row],[List 1]],Table_PI[[#This Row],[List 2]],Table_PI[[#This Row],[List 3]],Table_PI[[#This Row],[Size]],Table_PI[[#This Row],[Input 1]],Table_PI[[#This Row],[Input 2]],Table_PI[[#This Row],[Input 3]],Table_PI[[#This Row],[Input 4]],'Customer Information'!$AR$12,102,ROW()),\"\"),\"\")","v":""},{"$f":"IF(Table_PI[[#This Row],[Input 3]]<>\"\",Table_PI[[#This Row],[Input 3]],\"\")","v":""},null,{"$f":"IFERROR(IF(AND(MeasureCalc(Table_PI[[#This Row],[Hide:\nFormula Name]],Table_SummaryPI[[#This Row],[Quantity]],Table_PI[[#This Row],[List 1]],Table_PI[[#This Row],[List 2]],Table_PI[[#This Row],[List 3]],Table_PI[[#This Row],[Size]],Table_PI[[#This Row],[Input 1]],Table_PI[[#This Row],[Input 2]],Table_PI[[#This Row],[Input 3]],Table_PI[[#This Row],[Input 4]],'Customer Information'!$AR$12,103,ROW())<>0,MeasureCalc(Table_PI[[#This Row],[Hide:\nFormula Name]],Table_SummaryPI[[#This Row],[Quantity]],Table_PI[[#This Row],[List 1]],Table_PI[[#This Row],[List 2]],Table_PI[[#This Row],[List 3]],Table_PI[[#This Row],[Size]],Table_PI[[#This Row],[Input 1]],Table_PI[[#This Row],[Input 2]],Table_PI[[#This Row],[Input 3]],Table_PI[[#This Row],[Input 4]],'Customer Information'!$AR$12,103,ROW())<>\"No Rebate\"),MeasureCalc(Table_PI[[#This Row],[Hide:\nFormula Name]],Table_SummaryPI[[#This Row],[Quantity]],Table_PI[[#This Row],[List 1]],Table_PI[[#This Row],[List 2]],Table_PI[[#This Row],[List 3]],Table_PI[[#This Row],[Size]],Table_PI[[#This Row],[Input 1]],Table_PI[[#This Row],[Input 2]],Table_PI[[#This Row],[Input 3]],Table_PI[[#This Row],[Input 4]],'Customer Information'!$AR$12,103,ROW()),\"\"),\"\")","v":""},{"$f":"IF(Table_PI[[#This Row],[Input 4]]<>\"\",Table_PI[[#This Row],[Input 4]],\"\")","v":""},{"$f":"IF(Table_PI[[#This Row],[Quantity]]=\"\",\"\",Table_PI[[#This Row],[Quantity]])","v":""},{"$f":"IF(Table_PI[[#This Row],[Notes]]=\"\",\"\",Table_PI[[#This Row],[Notes]])","v":""},{"$f":"IF(OR(Table_PI[[#This Row],[Hide:\nBaseline kWh]]=\"\",Table_PI[[#This Row],[Hide:\nBaseline kWh]]=0),\"\",Table_PI[[#This Row],[Hide:\nBaseline kWh]])","v":""},{"$f":"IF(OR(Table_PI[[#This Row],[Hide:\nBaseline kW]]=\"\",Table_PI[[#This Row],[Hide:\nBaseline kW]]=0),\"\",Table_PI[[#This Row],[Hide:\nBaseline kW]])","v":""},{"$f":"IF(OR(Table_PI[[#This Row],[Hide:\nProposed kWh]]=\"\",Table_PI[[#This Row],[Hide:\nProposed kWh]]=0),\"\",Table_PI[[#This Row],[Hide:\nProposed kWh]])","v":""},{"$f":"IF(OR(Table_PI[[#This Row],[Hide:\nProposed kW]]=\"\",Table_PI[[#This Row],[Hide:\nProposed kW]]=0),\"\",Table_PI[[#This Row],[Hide:\nProposed kW]])","v":""},{"$f":"IF(OR(Table_PI[[#This Row],[Rebate]]=\"\",Table_PI[[#This Row],[Rebate]]=0),\"\",Table_PI[[#This Row],[Rebate]])","v":""},{"$f":"IF(OR(Table_PI[[#This Row],[Hide:\nIncremental Cost]]=\"\",Table_PI[[#This Row],[Hide:\nIncremental Cost]]=0),\"\",Table_PI[[#This Row],[Hide:\nIncremental Cost]])","v":""},{"$f":"IFERROR(IF(Table_SummaryPI[[#This Row],[kWhSavings]]=\"\",\"\",ROUND(Table_SummaryPI[[#This Row],[kWhSavings]]/$AG$401*'Customer Information'!$BC$17,2)),0)","v":""},{"$f":"IF(OR(Table_PI[[#This Row],[Annual kWh]]=\"\",Table_PI[[#This Row],[Annual kWh]]=0),\"\",Table_PI[[#This Row],[Annual kWh]])","v":""},{"$f":"IF(OR(Table_PI[[#This Row],[Peak kW]]=\"\",Table_PI[[#This Row],[Peak kW]]=0),\"\",Table_PI[[#This Row],[Peak kW]])","v":""},{"$f":"IFERROR(IF(Table_SummaryPI[[#This Row],[kWhSavings]]=\"\",\"\",$AU$9*Table_SummaryPI[[#This Row],[kWhSavings]]),0)","v":""},{"$f":"IFERROR(IF(Table_SummaryPI[[#This Row],[kWhSavings]]=\"\",\"\",$AU$14*Table_SummaryPI[[#This Row],[kWhSavings]]),0)","v":""},{"$f":"IFERROR(IF(Table_SummaryPI[[#This Row],[kWhSavings]]=\"\",\"\",$AU$18*Table_SummaryPI[[#This Row],[kWhSavings]]),0)","v":""},{"$f":"IFERROR(IF(Table_SummaryPI[[#This Row],[kWhSavings]]=\"\",\"\",$AU$22*Table_SummaryPI[[#This Row],[kWhSavings]]),0)","v":""},{"$f":"IFERROR(IF(MeasureCalc(Table_PI[[#This Row],[Hide:\nFormula Name]],Table_SummaryPI[[#This Row],[Quantity]],Table_PI[[#This Row],[List 1]],Table_PI[[#This Row],[List 2]],Table_PI[[#This Row],[List 3]],Table_PI[[#This Row],[Size]],Table_PI[[#This Row],[Input 1]],Table_PI[[#This Row],[Input 2]],Table_PI[[#This Row],[Input 3]],Table_PI[[#This Row],[Input 4]],'Customer Information'!$AR$12,200,ROW())<>\"No Rebate\",MeasureCalc(Table_PI[[#This Row],[Hide:\nFormula Name]],Table_SummaryPI[[#This Row],[Quantity]],Table_PI[[#This Row],[List 1]],Table_PI[[#This Row],[List 2]],Table_PI[[#This Row],[List 3]],Table_PI[[#This Row],[Size]],Table_PI[[#This Row],[Input 1]],Table_PI[[#This Row],[Input 2]],Table_PI[[#This Row],[Input 3]],Table_PI[[#This Row],[Input 4]],'Customer Information'!$AR$12,200,ROW()),\"\"),\"\")","v":""},{"$f":"IFERROR(IF(MeasureCalc(Table_PI[[#This Row],[Hide:\nFormula Name]],Table_SummaryPI[[#This Row],[Quantity]],Table_PI[[#This Row],[List 1]],Table_PI[[#This Row],[List 2]],Table_PI[[#This Row],[List 3]],Table_PI[[#This Row],[Size]],Table_PI[[#This Row],[Input 1]],Table_PI[[#This Row],[Input 2]],Table_PI[[#This Row],[Input 3]],Table_PI[[#This Row],[Input 4]],'Customer Information'!$AR$12,201,ROW())<>\"No Rebate\",MeasureCalc(Table_PI[[#This Row],[Hide:\nFormula Name]],Table_SummaryPI[[#This Row],[Quantity]],Table_PI[[#This Row],[List 1]],Table_PI[[#This Row],[List 2]],Table_PI[[#This Row],[List 3]],Table_PI[[#This Row],[Size]],Table_PI[[#This Row],[Input 1]],Table_PI[[#This Row],[Input 2]],Table_PI[[#This Row],[Input 3]],Table_PI[[#This Row],[Input 4]],'Customer Information'!$AR$12,201,ROW()),\"\"),\"\")","v":""}]
[{"$f":"Table_PI[[#This Row],[Line No.]]","v":""},{"$f":"IF(Table_SummaryPI[[#This Row],[MeassureCategory]]<>\"\",CONCATENATE(Table_SummaryPI[[#This Row],[MeassureCategory]],  \" - \", Table_SummaryPI[[#This Row],[ProposedMeasureCategory]],  \" - \", TEXT(Table_SummaryPI[[#This Row],[Size]],\"#,##0.00\"),\" \",Table_SummaryPI[[#This Row],[SizeUnit]]),\"\")","v":""},{"$f":"SUBSTITUTE(Table_PI[[#This Row],[Measure]],\"     \",\"\",1)","v":""},{"$f":"IF(Table_PI[[#This Row],[List 1]]<>\"\",Table_PI[[#This Row],[List 1]],\"\")","v":""},{"$f":"IF(Table_PI[[#This Row],[List 2]]<>\"\",Table_PI[[#This Row],[List 2]],\"\")","v":""},{"$f":"IF(Table_PI[[#This Row],[List 3]]<>\"\",Table_PI[[#This Row],[List 3]],\"\")","v":""},{"$f":"IF(Table_PI[[#This Row],[Manufacturer]]=\"\",\"\",Table_PI[[#This Row],[Manufacturer]])","v":""},{"$f":"IF(Table_PI[[#This Row],[Model Number]]=\"\",\"\",Table_PI[[#This Row],[Model Number]])","v":""},{"$f":"IF(Table_PI[[#This Row],[Serial Number(s)]]=\"\",\"\",Table_PI[[#This Row],[Serial Number(s)]])","v":""},null,{"$f":"IF(Table_PI[[#This Row],[Size]]=\"\",\"\",Table_PI[[#This Row],[Size]])","v":""},null,{"$f":"IFERROR(IF(AND(MeasureCalc(Table_PI[[#This Row],[Hide:\nFormula Name]],Table_SummaryPI[[#This Row],[Quantity]],Table_PI[[#This Row],[List 1]],Table_PI[[#This Row],[List 2]],Table_PI[[#This Row],[List 3]],Table_PI[[#This Row],[Size]],Table_PI[[#This Row],[Input 1]],Table_PI[[#This Row],[Input 2]],Table_PI[[#This Row],[Input 3]],Table_PI[[#This Row],[Input 4]],'Customer Information'!$AR$12,100,ROW())<>0,MeasureCalc(Table_PI[[#This Row],[Hide:\nFormula Name]],Table_SummaryPI[[#This Row],[Quantity]],Table_PI[[#This Row],[List 1]],Table_PI[[#This Row],[List 2]],Table_PI[[#This Row],[List 3]],Table_PI[[#This Row],[Size]],Table_PI[[#This Row],[Input 1]],Table_PI[[#This Row],[Input 2]],Table_PI[[#This Row],[Input 3]],Table_PI[[#This Row],[Input 4]],'Customer Information'!$AR$12,100,ROW())<>\"No Rebate\"),MeasureCalc(Table_PI[[#This Row],[Hide:\nFormula Name]],Table_SummaryPI[[#This Row],[Quantity]],Table_PI[[#This Row],[List 1]],Table_PI[[#This Row],[List 2]],Table_PI[[#This Row],[List 3]],Table_PI[[#This Row],[Size]],Table_PI[[#This Row],[Input 1]],Table_PI[[#This Row],[Input 2]],Table_PI[[#This Row],[Input 3]],Table_PI[[#This Row],[Input 4]],'Customer Information'!$AR$12,100,ROW()),\"\"),\"\")","v":""},{"$f":"IF(Table_PI[[#This Row],[Input 1]]<>\"\",Table_PI[[#This Row],[Input 1]],\"\")","v":""},null,{"$f":"IFERROR(IF(AND(MeasureCalc(Table_PI[[#This Row],[Hide:\nFormula Name]],Table_SummaryPI[[#This Row],[Quantity]],Table_PI[[#This Row],[List 1]],Table_PI[[#This Row],[List 2]],Table_PI[[#This Row],[List 3]],Table_PI[[#This Row],[Size]],Table_PI[[#This Row],[Input 1]],Table_PI[[#This Row],[Input 2]],Table_PI[[#This Row],[Input 3]],Table_PI[[#This Row],[Input 4]],'Customer Information'!$AR$12,101,ROW())<>0,MeasureCalc(Table_PI[[#This Row],[Hide:\nFormula Name]],Table_SummaryPI[[#This Row],[Quantity]],Table_PI[[#This Row],[List 1]],Table_PI[[#This Row],[List 2]],Table_PI[[#This Row],[List 3]],Table_PI[[#This Row],[Size]],Table_PI[[#This Row],[Input 1]],Table_PI[[#This Row],[Input 2]],Table_PI[[#This Row],[Input 3]],Table_PI[[#This Row],[Input 4]],'Customer Information'!$AR$12,101,ROW())<>\"No Rebate\"),MeasureCalc(Table_PI[[#This Row],[Hide:\nFormula Name]],Table_SummaryPI[[#This Row],[Quantity]],Table_PI[[#This Row],[List 1]],Table_PI[[#This Row],[List 2]],Table_PI[[#This Row],[List 3]],Table_PI[[#This Row],[Size]],Table_PI[[#This Row],[Input 1]],Table_PI[[#This Row],[Input 2]],Table_PI[[#This Row],[Input 3]],Table_PI[[#This Row],[Input 4]],'Customer Information'!$AR$12,101,ROW()),\"\"),\"\")","v":""},{"$f":"IF(Table_PI[[#This Row],[Input 2]]<>\"\",Table_PI[[#This Row],[Input 2]],\"\")","v":""},null,{"$f":"IFERROR(IF(AND(MeasureCalc(Table_PI[[#This Row],[Hide:\nFormula Name]],Table_SummaryPI[[#This Row],[Quantity]],Table_PI[[#This Row],[List 1]],Table_PI[[#This Row],[List 2]],Table_PI[[#This Row],[List 3]],Table_PI[[#This Row],[Size]],Table_PI[[#This Row],[Input 1]],Table_PI[[#This Row],[Input 2]],Table_PI[[#This Row],[Input 3]],Table_PI[[#This Row],[Input 4]],'Customer Information'!$AR$12,102,ROW())<>0,MeasureCalc(Table_PI[[#This Row],[Hide:\nFormula Name]],Table_SummaryPI[[#This Row],[Quantity]],Table_PI[[#This Row],[List 1]],Table_PI[[#This Row],[List 2]],Table_PI[[#This Row],[List 3]],Table_PI[[#This Row],[Size]],Table_PI[[#This Row],[Input 1]],Table_PI[[#This Row],[Input 2]],Table_PI[[#This Row],[Input 3]],Table_PI[[#This Row],[Input 4]],'Customer Information'!$AR$12,102,ROW())<>\"No Rebate\"),MeasureCalc(Table_PI[[#This Row],[Hide:\nFormula Name]],Table_SummaryPI[[#This Row],[Quantity]],Table_PI[[#This Row],[List 1]],Table_PI[[#This Row],[List 2]],Table_PI[[#This Row],[List 3]],Table_PI[[#This Row],[Size]],Table_PI[[#This Row],[Input 1]],Table_PI[[#This Row],[Input 2]],Table_PI[[#This Row],[Input 3]],Table_PI[[#This Row],[Input 4]],'Customer Information'!$AR$12,102,ROW()),\"\"),\"\")","v":""},{"$f":"IF(Table_PI[[#This Row],[Input 3]]<>\"\",Table_PI[[#This Row],[Input 3]],\"\")","v":""},null,{"$f":"IFERROR(IF(AND(MeasureCalc(Table_PI[[#This Row],[Hide:\nFormula Name]],Table_SummaryPI[[#This Row],[Quantity]],Table_PI[[#This Row],[List 1]],Table_PI[[#This Row],[List 2]],Table_PI[[#This Row],[List 3]],Table_PI[[#This Row],[Size]],Table_PI[[#This Row],[Input 1]],Table_PI[[#This Row],[Input 2]],Table_PI[[#This Row],[Input 3]],Table_PI[[#This Row],[Input 4]],'Customer Information'!$AR$12,103,ROW())<>0,MeasureCalc(Table_PI[[#This Row],[Hide:\nFormula Name]],Table_SummaryPI[[#This Row],[Quantity]],Table_PI[[#This Row],[List 1]],Table_PI[[#This Row],[List 2]],Table_PI[[#This Row],[List 3]],Table_PI[[#This Row],[Size]],Table_PI[[#This Row],[Input 1]],Table_PI[[#This Row],[Input 2]],Table_PI[[#This Row],[Input 3]],Table_PI[[#This Row],[Input 4]],'Customer Information'!$AR$12,103,ROW())<>\"No Rebate\"),MeasureCalc(Table_PI[[#This Row],[Hide:\nFormula Name]],Table_SummaryPI[[#This Row],[Quantity]],Table_PI[[#This Row],[List 1]],Table_PI[[#This Row],[List 2]],Table_PI[[#This Row],[List 3]],Table_PI[[#This Row],[Size]],Table_PI[[#This Row],[Input 1]],Table_PI[[#This Row],[Input 2]],Table_PI[[#This Row],[Input 3]],Table_PI[[#This Row],[Input 4]],'Customer Information'!$AR$12,103,ROW()),\"\"),\"\")","v":""},{"$f":"IF(Table_PI[[#This Row],[Input 4]]<>\"\",Table_PI[[#This Row],[Input 4]],\"\")","v":""},{"$f":"IF(Table_PI[[#This Row],[Quantity]]=\"\",\"\",Table_PI[[#This Row],[Quantity]])","v":""},{"$f":"IF(Table_PI[[#This Row],[Notes]]=\"\",\"\",Table_PI[[#This Row],[Notes]])","v":""},{"$f":"IF(OR(Table_PI[[#This Row],[Hide:\nBaseline kWh]]=\"\",Table_PI[[#This Row],[Hide:\nBaseline kWh]]=0),\"\",Table_PI[[#This Row],[Hide:\nBaseline kWh]])","v":""},{"$f":"IF(OR(Table_PI[[#This Row],[Hide:\nBaseline kW]]=\"\",Table_PI[[#This Row],[Hide:\nBaseline kW]]=0),\"\",Table_PI[[#This Row],[Hide:\nBaseline kW]])","v":""},{"$f":"IF(OR(Table_PI[[#This Row],[Hide:\nProposed kWh]]=\"\",Table_PI[[#This Row],[Hide:\nProposed kWh]]=0),\"\",Table_PI[[#This Row],[Hide:\nProposed kWh]])","v":""},{"$f":"IF(OR(Table_PI[[#This Row],[Hide:\nProposed kW]]=\"\",Table_PI[[#This Row],[Hide:\nProposed kW]]=0),\"\",Table_PI[[#This Row],[Hide:\nProposed kW]])","v":""},{"$f":"IF(OR(Table_PI[[#This Row],[Rebate]]=\"\",Table_PI[[#This Row],[Rebate]]=0),\"\",Table_PI[[#This Row],[Rebate]])","v":""},{"$f":"IF(OR(Table_PI[[#This Row],[Hide:\nIncremental Cost]]=\"\",Table_PI[[#This Row],[Hide:\nIncremental Cost]]=0),\"\",Table_PI[[#This Row],[Hide:\nIncremental Cost]])","v":""},{"$f":"IFERROR(IF(Table_SummaryPI[[#This Row],[kWhSavings]]=\"\",\"\",ROUND(Table_SummaryPI[[#This Row],[kWhSavings]]/$AG$401*'Customer Information'!$BC$17,2)),0)","v":""},{"$f":"IF(OR(Table_PI[[#This Row],[Annual kWh]]=\"\",Table_PI[[#This Row],[Annual kWh]]=0),\"\",Table_PI[[#This Row],[Annual kWh]])","v":""},{"$f":"IF(OR(Table_PI[[#This Row],[Peak kW]]=\"\",Table_PI[[#This Row],[Peak kW]]=0),\"\",Table_PI[[#This Row],[Peak kW]])","v":""},{"$f":"IFERROR(IF(Table_SummaryPI[[#This Row],[kWhSavings]]=\"\",\"\",$AU$9*Table_SummaryPI[[#This Row],[kWhSavings]]),0)","v":""},{"$f":"IFERROR(IF(Table_SummaryPI[[#This Row],[kWhSavings]]=\"\",\"\",$AU$14*Table_SummaryPI[[#This Row],[kWhSavings]]),0)","v":""},{"$f":"IFERROR(IF(Table_SummaryPI[[#This Row],[kWhSavings]]=\"\",\"\",$AU$18*Table_SummaryPI[[#This Row],[kWhSavings]]),0)","v":""},{"$f":"IFERROR(IF(Table_SummaryPI[[#This Row],[kWhSavings]]=\"\",\"\",$AU$22*Table_SummaryPI[[#This Row],[kWhSavings]]),0)","v":""},{"$f":"IFERROR(IF(MeasureCalc(Table_PI[[#This Row],[Hide:\nFormula Name]],Table_SummaryPI[[#This Row],[Quantity]],Table_PI[[#This Row],[List 1]],Table_PI[[#This Row],[List 2]],Table_PI[[#This Row],[List 3]],Table_PI[[#This Row],[Size]],Table_PI[[#This Row],[Input 1]],Table_PI[[#This Row],[Input 2]],Table_PI[[#This Row],[Input 3]],Table_PI[[#This Row],[Input 4]],'Customer Information'!$AR$12,200,ROW())<>\"No Rebate\",MeasureCalc(Table_PI[[#This Row],[Hide:\nFormula Name]],Table_SummaryPI[[#This Row],[Quantity]],Table_PI[[#This Row],[List 1]],Table_PI[[#This Row],[List 2]],Table_PI[[#This Row],[List 3]],Table_PI[[#This Row],[Size]],Table_PI[[#This Row],[Input 1]],Table_PI[[#This Row],[Input 2]],Table_PI[[#This Row],[Input 3]],Table_PI[[#This Row],[Input 4]],'Customer Information'!$AR$12,200,ROW()),\"\"),\"\")","v":""},{"$f":"IFERROR(IF(MeasureCalc(Table_PI[[#This Row],[Hide:\nFormula Name]],Table_SummaryPI[[#This Row],[Quantity]],Table_PI[[#This Row],[List 1]],Table_PI[[#This Row],[List 2]],Table_PI[[#This Row],[List 3]],Table_PI[[#This Row],[Size]],Table_PI[[#This Row],[Input 1]],Table_PI[[#This Row],[Input 2]],Table_PI[[#This Row],[Input 3]],Table_PI[[#This Row],[Input 4]],'Customer Information'!$AR$12,201,ROW())<>\"No Rebate\",MeasureCalc(Table_PI[[#This Row],[Hide:\nFormula Name]],Table_SummaryPI[[#This Row],[Quantity]],Table_PI[[#This Row],[List 1]],Table_PI[[#This Row],[List 2]],Table_PI[[#This Row],[List 3]],Table_PI[[#This Row],[Size]],Table_PI[[#This Row],[Input 1]],Table_PI[[#This Row],[Input 2]],Table_PI[[#This Row],[Input 3]],Table_PI[[#This Row],[Input 4]],'Customer Information'!$AR$12,201,ROW()),\"\"),\"\")","v":""}]
[{"$f":"Table_PI[[#This Row],[Line No.]]","v":""},{"$f":"IF(Table_SummaryPI[[#This Row],[MeassureCategory]]<>\"\",CONCATENATE(Table_SummaryPI[[#This Row],[MeassureCategory]],  \" - \", Table_SummaryPI[[#This Row],[ProposedMeasureCategory]],  \" - \", TEXT(Table_SummaryPI[[#This Row],[Size]],\"#,##0.00\"),\" \",Table_SummaryPI[[#This Row],[SizeUnit]]),\"\")","v":""},{"$f":"SUBSTITUTE(Table_PI[[#This Row],[Measure]],\"     \",\"\",1)","v":""},{"$f":"IF(Table_PI[[#This Row],[List 1]]<>\"\",Table_PI[[#This Row],[List 1]],\"\")","v":""},{"$f":"IF(Table_PI[[#This Row],[List 2]]<>\"\",Table_PI[[#This Row],[List 2]],\"\")","v":""},{"$f":"IF(Table_PI[[#This Row],[List 3]]<>\"\",Table_PI[[#This Row],[List 3]],\"\")","v":""},{"$f":"IF(Table_PI[[#This Row],[Manufacturer]]=\"\",\"\",Table_PI[[#This Row],[Manufacturer]])","v":""},{"$f":"IF(Table_PI[[#This Row],[Model Number]]=\"\",\"\",Table_PI[[#This Row],[Model Number]])","v":""},{"$f":"IF(Table_PI[[#This Row],[Serial Number(s)]]=\"\",\"\",Table_PI[[#This Row],[Serial Number(s)]])","v":""},null,{"$f":"IF(Table_PI[[#This Row],[Size]]=\"\",\"\",Table_PI[[#This Row],[Size]])","v":""},null,{"$f":"IFERROR(IF(AND(MeasureCalc(Table_PI[[#This Row],[Hide:\nFormula Name]],Table_SummaryPI[[#This Row],[Quantity]],Table_PI[[#This Row],[List 1]],Table_PI[[#This Row],[List 2]],Table_PI[[#This Row],[List 3]],Table_PI[[#This Row],[Size]],Table_PI[[#This Row],[Input 1]],Table_PI[[#This Row],[Input 2]],Table_PI[[#This Row],[Input 3]],Table_PI[[#This Row],[Input 4]],'Customer Information'!$AR$12,100,ROW())<>0,MeasureCalc(Table_PI[[#This Row],[Hide:\nFormula Name]],Table_SummaryPI[[#This Row],[Quantity]],Table_PI[[#This Row],[List 1]],Table_PI[[#This Row],[List 2]],Table_PI[[#This Row],[List 3]],Table_PI[[#This Row],[Size]],Table_PI[[#This Row],[Input 1]],Table_PI[[#This Row],[Input 2]],Table_PI[[#This Row],[Input 3]],Table_PI[[#This Row],[Input 4]],'Customer Information'!$AR$12,100,ROW())<>\"No Rebate\"),MeasureCalc(Table_PI[[#This Row],[Hide:\nFormula Name]],Table_SummaryPI[[#This Row],[Quantity]],Table_PI[[#This Row],[List 1]],Table_PI[[#This Row],[List 2]],Table_PI[[#This Row],[List 3]],Table_PI[[#This Row],[Size]],Table_PI[[#This Row],[Input 1]],Table_PI[[#This Row],[Input 2]],Table_PI[[#This Row],[Input 3]],Table_PI[[#This Row],[Input 4]],'Customer Information'!$AR$12,100,ROW()),\"\"),\"\")","v":""},{"$f":"IF(Table_PI[[#This Row],[Input 1]]<>\"\",Table_PI[[#This Row],[Input 1]],\"\")","v":""},null,{"$f":"IFERROR(IF(AND(MeasureCalc(Table_PI[[#This Row],[Hide:\nFormula Name]],Table_SummaryPI[[#This Row],[Quantity]],Table_PI[[#This Row],[List 1]],Table_PI[[#This Row],[List 2]],Table_PI[[#This Row],[List 3]],Table_PI[[#This Row],[Size]],Table_PI[[#This Row],[Input 1]],Table_PI[[#This Row],[Input 2]],Table_PI[[#This Row],[Input 3]],Table_PI[[#This Row],[Input 4]],'Customer Information'!$AR$12,101,ROW())<>0,MeasureCalc(Table_PI[[#This Row],[Hide:\nFormula Name]],Table_SummaryPI[[#This Row],[Quantity]],Table_PI[[#This Row],[List 1]],Table_PI[[#This Row],[List 2]],Table_PI[[#This Row],[List 3]],Table_PI[[#This Row],[Size]],Table_PI[[#This Row],[Input 1]],Table_PI[[#This Row],[Input 2]],Table_PI[[#This Row],[Input 3]],Table_PI[[#This Row],[Input 4]],'Customer Information'!$AR$12,101,ROW())<>\"No Rebate\"),MeasureCalc(Table_PI[[#This Row],[Hide:\nFormula Name]],Table_SummaryPI[[#This Row],[Quantity]],Table_PI[[#This Row],[List 1]],Table_PI[[#This Row],[List 2]],Table_PI[[#This Row],[List 3]],Table_PI[[#This Row],[Size]],Table_PI[[#This Row],[Input 1]],Table_PI[[#This Row],[Input 2]],Table_PI[[#This Row],[Input 3]],Table_PI[[#This Row],[Input 4]],'Customer Information'!$AR$12,101,ROW()),\"\"),\"\")","v":""},{"$f":"IF(Table_PI[[#This Row],[Input 2]]<>\"\",Table_PI[[#This Row],[Input 2]],\"\")","v":""},null,{"$f":"IFERROR(IF(AND(MeasureCalc(Table_PI[[#This Row],[Hide:\nFormula Name]],Table_SummaryPI[[#This Row],[Quantity]],Table_PI[[#This Row],[List 1]],Table_PI[[#This Row],[List 2]],Table_PI[[#This Row],[List 3]],Table_PI[[#This Row],[Size]],Table_PI[[#This Row],[Input 1]],Table_PI[[#This Row],[Input 2]],Table_PI[[#This Row],[Input 3]],Table_PI[[#This Row],[Input 4]],'Customer Information'!$AR$12,102,ROW())<>0,MeasureCalc(Table_PI[[#This Row],[Hide:\nFormula Name]],Table_SummaryPI[[#This Row],[Quantity]],Table_PI[[#This Row],[List 1]],Table_PI[[#This Row],[List 2]],Table_PI[[#This Row],[List 3]],Table_PI[[#This Row],[Size]],Table_PI[[#This Row],[Input 1]],Table_PI[[#This Row],[Input 2]],Table_PI[[#This Row],[Input 3]],Table_PI[[#This Row],[Input 4]],'Customer Information'!$AR$12,102,ROW())<>\"No Rebate\"),MeasureCalc(Table_PI[[#This Row],[Hide:\nFormula Name]],Table_SummaryPI[[#This Row],[Quantity]],Table_PI[[#This Row],[List 1]],Table_PI[[#This Row],[List 2]],Table_PI[[#This Row],[List 3]],Table_PI[[#This Row],[Size]],Table_PI[[#This Row],[Input 1]],Table_PI[[#This Row],[Input 2]],Table_PI[[#This Row],[Input 3]],Table_PI[[#This Row],[Input 4]],'Customer Information'!$AR$12,102,ROW()),\"\"),\"\")","v":""},{"$f":"IF(Table_PI[[#This Row],[Input 3]]<>\"\",Table_PI[[#This Row],[Input 3]],\"\")","v":""},null,{"$f":"IFERROR(IF(AND(MeasureCalc(Table_PI[[#This Row],[Hide:\nFormula Name]],Table_SummaryPI[[#This Row],[Quantity]],Table_PI[[#This Row],[List 1]],Table_PI[[#This Row],[List 2]],Table_PI[[#This Row],[List 3]],Table_PI[[#This Row],[Size]],Table_PI[[#This Row],[Input 1]],Table_PI[[#This Row],[Input 2]],Table_PI[[#This Row],[Input 3]],Table_PI[[#This Row],[Input 4]],'Customer Information'!$AR$12,103,ROW())<>0,MeasureCalc(Table_PI[[#This Row],[Hide:\nFormula Name]],Table_SummaryPI[[#This Row],[Quantity]],Table_PI[[#This Row],[List 1]],Table_PI[[#This Row],[List 2]],Table_PI[[#This Row],[List 3]],Table_PI[[#This Row],[Size]],Table_PI[[#This Row],[Input 1]],Table_PI[[#This Row],[Input 2]],Table_PI[[#This Row],[Input 3]],Table_PI[[#This Row],[Input 4]],'Customer Information'!$AR$12,103,ROW())<>\"No Rebate\"),MeasureCalc(Table_PI[[#This Row],[Hide:\nFormula Name]],Table_SummaryPI[[#This Row],[Quantity]],Table_PI[[#This Row],[List 1]],Table_PI[[#This Row],[List 2]],Table_PI[[#This Row],[List 3]],Table_PI[[#This Row],[Size]],Table_PI[[#This Row],[Input 1]],Table_PI[[#This Row],[Input 2]],Table_PI[[#This Row],[Input 3]],Table_PI[[#This Row],[Input 4]],'Customer Information'!$AR$12,103,ROW()),\"\"),\"\")","v":""},{"$f":"IF(Table_PI[[#This Row],[Input 4]]<>\"\",Table_PI[[#This Row],[Input 4]],\"\")","v":""},{"$f":"IF(Table_PI[[#This Row],[Quantity]]=\"\",\"\",Table_PI[[#This Row],[Quantity]])","v":""},{"$f":"IF(Table_PI[[#This Row],[Notes]]=\"\",\"\",Table_PI[[#This Row],[Notes]])","v":""},{"$f":"IF(OR(Table_PI[[#This Row],[Hide:\nBaseline kWh]]=\"\",Table_PI[[#This Row],[Hide:\nBaseline kWh]]=0),\"\",Table_PI[[#This Row],[Hide:\nBaseline kWh]])","v":""},{"$f":"IF(OR(Table_PI[[#This Row],[Hide:\nBaseline kW]]=\"\",Table_PI[[#This Row],[Hide:\nBaseline kW]]=0),\"\",Table_PI[[#This Row],[Hide:\nBaseline kW]])","v":""},{"$f":"IF(OR(Table_PI[[#This Row],[Hide:\nProposed kWh]]=\"\",Table_PI[[#This Row],[Hide:\nProposed kWh]]=0),\"\",Table_PI[[#This Row],[Hide:\nProposed kWh]])","v":""},{"$f":"IF(OR(Table_PI[[#This Row],[Hide:\nProposed kW]]=\"\",Table_PI[[#This Row],[Hide:\nProposed kW]]=0),\"\",Table_PI[[#This Row],[Hide:\nProposed kW]])","v":""},{"$f":"IF(OR(Table_PI[[#This Row],[Rebate]]=\"\",Table_PI[[#This Row],[Rebate]]=0),\"\",Table_PI[[#This Row],[Rebate]])","v":""},{"$f":"IF(OR(Table_PI[[#This Row],[Hide:\nIncremental Cost]]=\"\",Table_PI[[#This Row],[Hide:\nIncremental Cost]]=0),\"\",Table_PI[[#This Row],[Hide:\nIncremental Cost]])","v":""},{"$f":"IFERROR(IF(Table_SummaryPI[[#This Row],[kWhSavings]]=\"\",\"\",ROUND(Table_SummaryPI[[#This Row],[kWhSavings]]/$AG$401*'Customer Information'!$BC$17,2)),0)","v":""},{"$f":"IF(OR(Table_PI[[#This Row],[Annual kWh]]=\"\",Table_PI[[#This Row],[Annual kWh]]=0),\"\",Table_PI[[#This Row],[Annual kWh]])","v":""},{"$f":"IF(OR(Table_PI[[#This Row],[Peak kW]]=\"\",Table_PI[[#This Row],[Peak kW]]=0),\"\",Table_PI[[#This Row],[Peak kW]])","v":""},{"$f":"IFERROR(IF(Table_SummaryPI[[#This Row],[kWhSavings]]=\"\",\"\",$AU$9*Table_SummaryPI[[#This Row],[kWhSavings]]),0)","v":""},{"$f":"IFERROR(IF(Table_SummaryPI[[#This Row],[kWhSavings]]=\"\",\"\",$AU$14*Table_SummaryPI[[#This Row],[kWhSavings]]),0)","v":""},{"$f":"IFERROR(IF(Table_SummaryPI[[#This Row],[kWhSavings]]=\"\",\"\",$AU$18*Table_SummaryPI[[#This Row],[kWhSavings]]),0)","v":""},{"$f":"IFERROR(IF(Table_SummaryPI[[#This Row],[kWhSavings]]=\"\",\"\",$AU$22*Table_SummaryPI[[#This Row],[kWhSavings]]),0)","v":""},{"$f":"IFERROR(IF(MeasureCalc(Table_PI[[#This Row],[Hide:\nFormula Name]],Table_SummaryPI[[#This Row],[Quantity]],Table_PI[[#This Row],[List 1]],Table_PI[[#This Row],[List 2]],Table_PI[[#This Row],[List 3]],Table_PI[[#This Row],[Size]],Table_PI[[#This Row],[Input 1]],Table_PI[[#This Row],[Input 2]],Table_PI[[#This Row],[Input 3]],Table_PI[[#This Row],[Input 4]],'Customer Information'!$AR$12,200,ROW())<>\"No Rebate\",MeasureCalc(Table_PI[[#This Row],[Hide:\nFormula Name]],Table_SummaryPI[[#This Row],[Quantity]],Table_PI[[#This Row],[List 1]],Table_PI[[#This Row],[List 2]],Table_PI[[#This Row],[List 3]],Table_PI[[#This Row],[Size]],Table_PI[[#This Row],[Input 1]],Table_PI[[#This Row],[Input 2]],Table_PI[[#This Row],[Input 3]],Table_PI[[#This Row],[Input 4]],'Customer Information'!$AR$12,200,ROW()),\"\"),\"\")","v":""},{"$f":"IFERROR(IF(MeasureCalc(Table_PI[[#This Row],[Hide:\nFormula Name]],Table_SummaryPI[[#This Row],[Quantity]],Table_PI[[#This Row],[List 1]],Table_PI[[#This Row],[List 2]],Table_PI[[#This Row],[List 3]],Table_PI[[#This Row],[Size]],Table_PI[[#This Row],[Input 1]],Table_PI[[#This Row],[Input 2]],Table_PI[[#This Row],[Input 3]],Table_PI[[#This Row],[Input 4]],'Customer Information'!$AR$12,201,ROW())<>\"No Rebate\",MeasureCalc(Table_PI[[#This Row],[Hide:\nFormula Name]],Table_SummaryPI[[#This Row],[Quantity]],Table_PI[[#This Row],[List 1]],Table_PI[[#This Row],[List 2]],Table_PI[[#This Row],[List 3]],Table_PI[[#This Row],[Size]],Table_PI[[#This Row],[Input 1]],Table_PI[[#This Row],[Input 2]],Table_PI[[#This Row],[Input 3]],Table_PI[[#This Row],[Input 4]],'Customer Information'!$AR$12,201,ROW()),\"\"),\"\")","v":""}]
[{"$f":"Table_PI[[#This Row],[Line No.]]","v":""},{"$f":"IF(Table_SummaryPI[[#This Row],[MeassureCategory]]<>\"\",CONCATENATE(Table_SummaryPI[[#This Row],[MeassureCategory]],  \" - \", Table_SummaryPI[[#This Row],[ProposedMeasureCategory]],  \" - \", TEXT(Table_SummaryPI[[#This Row],[Size]],\"#,##0.00\"),\" \",Table_SummaryPI[[#This Row],[SizeUnit]]),\"\")","v":""},{"$f":"SUBSTITUTE(Table_PI[[#This Row],[Measure]],\"     \",\"\",1)","v":""},{"$f":"IF(Table_PI[[#This Row],[List 1]]<>\"\",Table_PI[[#This Row],[List 1]],\"\")","v":""},{"$f":"IF(Table_PI[[#This Row],[List 2]]<>\"\",Table_PI[[#This Row],[List 2]],\"\")","v":""},{"$f":"IF(Table_PI[[#This Row],[List 3]]<>\"\",Table_PI[[#This Row],[List 3]],\"\")","v":""},{"$f":"IF(Table_PI[[#This Row],[Manufacturer]]=\"\",\"\",Table_PI[[#This Row],[Manufacturer]])","v":""},{"$f":"IF(Table_PI[[#This Row],[Model Number]]=\"\",\"\",Table_PI[[#This Row],[Model Number]])","v":""},{"$f":"IF(Table_PI[[#This Row],[Serial Number(s)]]=\"\",\"\",Table_PI[[#This Row],[Serial Number(s)]])","v":""},null,{"$f":"IF(Table_PI[[#This Row],[Size]]=\"\",\"\",Table_PI[[#This Row],[Size]])","v":""},null,{"$f":"IFERROR(IF(AND(MeasureCalc(Table_PI[[#This Row],[Hide:\nFormula Name]],Table_SummaryPI[[#This Row],[Quantity]],Table_PI[[#This Row],[List 1]],Table_PI[[#This Row],[List 2]],Table_PI[[#This Row],[List 3]],Table_PI[[#This Row],[Size]],Table_PI[[#This Row],[Input 1]],Table_PI[[#This Row],[Input 2]],Table_PI[[#This Row],[Input 3]],Table_PI[[#This Row],[Input 4]],'Customer Information'!$AR$12,100,ROW())<>0,MeasureCalc(Table_PI[[#This Row],[Hide:\nFormula Name]],Table_SummaryPI[[#This Row],[Quantity]],Table_PI[[#This Row],[List 1]],Table_PI[[#This Row],[List 2]],Table_PI[[#This Row],[List 3]],Table_PI[[#This Row],[Size]],Table_PI[[#This Row],[Input 1]],Table_PI[[#This Row],[Input 2]],Table_PI[[#This Row],[Input 3]],Table_PI[[#This Row],[Input 4]],'Customer Information'!$AR$12,100,ROW())<>\"No Rebate\"),MeasureCalc(Table_PI[[#This Row],[Hide:\nFormula Name]],Table_SummaryPI[[#This Row],[Quantity]],Table_PI[[#This Row],[List 1]],Table_PI[[#This Row],[List 2]],Table_PI[[#This Row],[List 3]],Table_PI[[#This Row],[Size]],Table_PI[[#This Row],[Input 1]],Table_PI[[#This Row],[Input 2]],Table_PI[[#This Row],[Input 3]],Table_PI[[#This Row],[Input 4]],'Customer Information'!$AR$12,100,ROW()),\"\"),\"\")","v":""},{"$f":"IF(Table_PI[[#This Row],[Input 1]]<>\"\",Table_PI[[#This Row],[Input 1]],\"\")","v":""},null,{"$f":"IFERROR(IF(AND(MeasureCalc(Table_PI[[#This Row],[Hide:\nFormula Name]],Table_SummaryPI[[#This Row],[Quantity]],Table_PI[[#This Row],[List 1]],Table_PI[[#This Row],[List 2]],Table_PI[[#This Row],[List 3]],Table_PI[[#This Row],[Size]],Table_PI[[#This Row],[Input 1]],Table_PI[[#This Row],[Input 2]],Table_PI[[#This Row],[Input 3]],Table_PI[[#This Row],[Input 4]],'Customer Information'!$AR$12,101,ROW())<>0,MeasureCalc(Table_PI[[#This Row],[Hide:\nFormula Name]],Table_SummaryPI[[#This Row],[Quantity]],Table_PI[[#This Row],[List 1]],Table_PI[[#This Row],[List 2]],Table_PI[[#This Row],[List 3]],Table_PI[[#This Row],[Size]],Table_PI[[#This Row],[Input 1]],Table_PI[[#This Row],[Input 2]],Table_PI[[#This Row],[Input 3]],Table_PI[[#This Row],[Input 4]],'Customer Information'!$AR$12,101,ROW())<>\"No Rebate\"),MeasureCalc(Table_PI[[#This Row],[Hide:\nFormula Name]],Table_SummaryPI[[#This Row],[Quantity]],Table_PI[[#This Row],[List 1]],Table_PI[[#This Row],[List 2]],Table_PI[[#This Row],[List 3]],Table_PI[[#This Row],[Size]],Table_PI[[#This Row],[Input 1]],Table_PI[[#This Row],[Input 2]],Table_PI[[#This Row],[Input 3]],Table_PI[[#This Row],[Input 4]],'Customer Information'!$AR$12,101,ROW()),\"\"),\"\")","v":""},{"$f":"IF(Table_PI[[#This Row],[Input 2]]<>\"\",Table_PI[[#This Row],[Input 2]],\"\")","v":""},null,{"$f":"IFERROR(IF(AND(MeasureCalc(Table_PI[[#This Row],[Hide:\nFormula Name]],Table_SummaryPI[[#This Row],[Quantity]],Table_PI[[#This Row],[List 1]],Table_PI[[#This Row],[List 2]],Table_PI[[#This Row],[List 3]],Table_PI[[#This Row],[Size]],Table_PI[[#This Row],[Input 1]],Table_PI[[#This Row],[Input 2]],Table_PI[[#This Row],[Input 3]],Table_PI[[#This Row],[Input 4]],'Customer Information'!$AR$12,102,ROW())<>0,MeasureCalc(Table_PI[[#This Row],[Hide:\nFormula Name]],Table_SummaryPI[[#This Row],[Quantity]],Table_PI[[#This Row],[List 1]],Table_PI[[#This Row],[List 2]],Table_PI[[#This Row],[List 3]],Table_PI[[#This Row],[Size]],Table_PI[[#This Row],[Input 1]],Table_PI[[#This Row],[Input 2]],Table_PI[[#This Row],[Input 3]],Table_PI[[#This Row],[Input 4]],'Customer Information'!$AR$12,102,ROW())<>\"No Rebate\"),MeasureCalc(Table_PI[[#This Row],[Hide:\nFormula Name]],Table_SummaryPI[[#This Row],[Quantity]],Table_PI[[#This Row],[List 1]],Table_PI[[#This Row],[List 2]],Table_PI[[#This Row],[List 3]],Table_PI[[#This Row],[Size]],Table_PI[[#This Row],[Input 1]],Table_PI[[#This Row],[Input 2]],Table_PI[[#This Row],[Input 3]],Table_PI[[#This Row],[Input 4]],'Customer Information'!$AR$12,102,ROW()),\"\"),\"\")","v":""},{"$f":"IF(Table_PI[[#This Row],[Input 3]]<>\"\",Table_PI[[#This Row],[Input 3]],\"\")","v":""},null,{"$f":"IFERROR(IF(AND(MeasureCalc(Table_PI[[#This Row],[Hide:\nFormula Name]],Table_SummaryPI[[#This Row],[Quantity]],Table_PI[[#This Row],[List 1]],Table_PI[[#This Row],[List 2]],Table_PI[[#This Row],[List 3]],Table_PI[[#This Row],[Size]],Table_PI[[#This Row],[Input 1]],Table_PI[[#This Row],[Input 2]],Table_PI[[#This Row],[Input 3]],Table_PI[[#This Row],[Input 4]],'Customer Information'!$AR$12,103,ROW())<>0,MeasureCalc(Table_PI[[#This Row],[Hide:\nFormula Name]],Table_SummaryPI[[#This Row],[Quantity]],Table_PI[[#This Row],[List 1]],Table_PI[[#This Row],[List 2]],Table_PI[[#This Row],[List 3]],Table_PI[[#This Row],[Size]],Table_PI[[#This Row],[Input 1]],Table_PI[[#This Row],[Input 2]],Table_PI[[#This Row],[Input 3]],Table_PI[[#This Row],[Input 4]],'Customer Information'!$AR$12,103,ROW())<>\"No Rebate\"),MeasureCalc(Table_PI[[#This Row],[Hide:\nFormula Name]],Table_SummaryPI[[#This Row],[Quantity]],Table_PI[[#This Row],[List 1]],Table_PI[[#This Row],[List 2]],Table_PI[[#This Row],[List 3]],Table_PI[[#This Row],[Size]],Table_PI[[#This Row],[Input 1]],Table_PI[[#This Row],[Input 2]],Table_PI[[#This Row],[Input 3]],Table_PI[[#This Row],[Input 4]],'Customer Information'!$AR$12,103,ROW()),\"\"),\"\")","v":""},{"$f":"IF(Table_PI[[#This Row],[Input 4]]<>\"\",Table_PI[[#This Row],[Input 4]],\"\")","v":""},{"$f":"IF(Table_PI[[#This Row],[Quantity]]=\"\",\"\",Table_PI[[#This Row],[Quantity]])","v":""},{"$f":"IF(Table_PI[[#This Row],[Notes]]=\"\",\"\",Table_PI[[#This Row],[Notes]])","v":""},{"$f":"IF(OR(Table_PI[[#This Row],[Hide:\nBaseline kWh]]=\"\",Table_PI[[#This Row],[Hide:\nBaseline kWh]]=0),\"\",Table_PI[[#This Row],[Hide:\nBaseline kWh]])","v":""},{"$f":"IF(OR(Table_PI[[#This Row],[Hide:\nBaseline kW]]=\"\",Table_PI[[#This Row],[Hide:\nBaseline kW]]=0),\"\",Table_PI[[#This Row],[Hide:\nBaseline kW]])","v":""},{"$f":"IF(OR(Table_PI[[#This Row],[Hide:\nProposed kWh]]=\"\",Table_PI[[#This Row],[Hide:\nProposed kWh]]=0),\"\",Table_PI[[#This Row],[Hide:\nProposed kWh]])","v":""},{"$f":"IF(OR(Table_PI[[#This Row],[Hide:\nProposed kW]]=\"\",Table_PI[[#This Row],[Hide:\nProposed kW]]=0),\"\",Table_PI[[#This Row],[Hide:\nProposed kW]])","v":""},{"$f":"IF(OR(Table_PI[[#This Row],[Rebate]]=\"\",Table_PI[[#This Row],[Rebate]]=0),\"\",Table_PI[[#This Row],[Rebate]])","v":""},{"$f":"IF(OR(Table_PI[[#This Row],[Hide:\nIncremental Cost]]=\"\",Table_PI[[#This Row],[Hide:\nIncremental Cost]]=0),\"\",Table_PI[[#This Row],[Hide:\nIncremental Cost]])","v":""},{"$f":"IFERROR(IF(Table_SummaryPI[[#This Row],[kWhSavings]]=\"\",\"\",ROUND(Table_SummaryPI[[#This Row],[kWhSavings]]/$AG$401*'Customer Information'!$BC$17,2)),0)","v":""},{"$f":"IF(OR(Table_PI[[#This Row],[Annual kWh]]=\"\",Table_PI[[#This Row],[Annual kWh]]=0),\"\",Table_PI[[#This Row],[Annual kWh]])","v":""},{"$f":"IF(OR(Table_PI[[#This Row],[Peak kW]]=\"\",Table_PI[[#This Row],[Peak kW]]=0),\"\",Table_PI[[#This Row],[Peak kW]])","v":""},{"$f":"IFERROR(IF(Table_SummaryPI[[#This Row],[kWhSavings]]=\"\",\"\",$AU$9*Table_SummaryPI[[#This Row],[kWhSavings]]),0)","v":""},{"$f":"IFERROR(IF(Table_SummaryPI[[#This Row],[kWhSavings]]=\"\",\"\",$AU$14*Table_SummaryPI[[#This Row],[kWhSavings]]),0)","v":""},{"$f":"IFERROR(IF(Table_SummaryPI[[#This Row],[kWhSavings]]=\"\",\"\",$AU$18*Table_SummaryPI[[#This Row],[kWhSavings]]),0)","v":""},{"$f":"IFERROR(IF(Table_SummaryPI[[#This Row],[kWhSavings]]=\"\",\"\",$AU$22*Table_SummaryPI[[#This Row],[kWhSavings]]),0)","v":""},{"$f":"IFERROR(IF(MeasureCalc(Table_PI[[#This Row],[Hide:\nFormula Name]],Table_SummaryPI[[#This Row],[Quantity]],Table_PI[[#This Row],[List 1]],Table_PI[[#This Row],[List 2]],Table_PI[[#This Row],[List 3]],Table_PI[[#This Row],[Size]],Table_PI[[#This Row],[Input 1]],Table_PI[[#This Row],[Input 2]],Table_PI[[#This Row],[Input 3]],Table_PI[[#This Row],[Input 4]],'Customer Information'!$AR$12,200,ROW())<>\"No Rebate\",MeasureCalc(Table_PI[[#This Row],[Hide:\nFormula Name]],Table_SummaryPI[[#This Row],[Quantity]],Table_PI[[#This Row],[List 1]],Table_PI[[#This Row],[List 2]],Table_PI[[#This Row],[List 3]],Table_PI[[#This Row],[Size]],Table_PI[[#This Row],[Input 1]],Table_PI[[#This Row],[Input 2]],Table_PI[[#This Row],[Input 3]],Table_PI[[#This Row],[Input 4]],'Customer Information'!$AR$12,200,ROW()),\"\"),\"\")","v":""},{"$f":"IFERROR(IF(MeasureCalc(Table_PI[[#This Row],[Hide:\nFormula Name]],Table_SummaryPI[[#This Row],[Quantity]],Table_PI[[#This Row],[List 1]],Table_PI[[#This Row],[List 2]],Table_PI[[#This Row],[List 3]],Table_PI[[#This Row],[Size]],Table_PI[[#This Row],[Input 1]],Table_PI[[#This Row],[Input 2]],Table_PI[[#This Row],[Input 3]],Table_PI[[#This Row],[Input 4]],'Customer Information'!$AR$12,201,ROW())<>\"No Rebate\",MeasureCalc(Table_PI[[#This Row],[Hide:\nFormula Name]],Table_SummaryPI[[#This Row],[Quantity]],Table_PI[[#This Row],[List 1]],Table_PI[[#This Row],[List 2]],Table_PI[[#This Row],[List 3]],Table_PI[[#This Row],[Size]],Table_PI[[#This Row],[Input 1]],Table_PI[[#This Row],[Input 2]],Table_PI[[#This Row],[Input 3]],Table_PI[[#This Row],[Input 4]],'Customer Information'!$AR$12,201,ROW()),\"\"),\"\")","v":""}]
[{"$f":"Table_PI[[#This Row],[Line No.]]","v":""},{"$f":"IF(Table_SummaryPI[[#This Row],[MeassureCategory]]<>\"\",CONCATENATE(Table_SummaryPI[[#This Row],[MeassureCategory]],  \" - \", Table_SummaryPI[[#This Row],[ProposedMeasureCategory]],  \" - \", TEXT(Table_SummaryPI[[#This Row],[Size]],\"#,##0.00\"),\" \",Table_SummaryPI[[#This Row],[SizeUnit]]),\"\")","v":""},{"$f":"SUBSTITUTE(Table_PI[[#This Row],[Measure]],\"     \",\"\",1)","v":""},{"$f":"IF(Table_PI[[#This Row],[List 1]]<>\"\",Table_PI[[#This Row],[List 1]],\"\")","v":""},{"$f":"IF(Table_PI[[#This Row],[List 2]]<>\"\",Table_PI[[#This Row],[List 2]],\"\")","v":""},{"$f":"IF(Table_PI[[#This Row],[List 3]]<>\"\",Table_PI[[#This Row],[List 3]],\"\")","v":""},{"$f":"IF(Table_PI[[#This Row],[Manufacturer]]=\"\",\"\",Table_PI[[#This Row],[Manufacturer]])","v":""},{"$f":"IF(Table_PI[[#This Row],[Model Number]]=\"\",\"\",Table_PI[[#This Row],[Model Number]])","v":""},{"$f":"IF(Table_PI[[#This Row],[Serial Number(s)]]=\"\",\"\",Table_PI[[#This Row],[Serial Number(s)]])","v":""},null,{"$f":"IF(Table_PI[[#This Row],[Size]]=\"\",\"\",Table_PI[[#This Row],[Size]])","v":""},null,{"$f":"IFERROR(IF(AND(MeasureCalc(Table_PI[[#This Row],[Hide:\nFormula Name]],Table_SummaryPI[[#This Row],[Quantity]],Table_PI[[#This Row],[List 1]],Table_PI[[#This Row],[List 2]],Table_PI[[#This Row],[List 3]],Table_PI[[#This Row],[Size]],Table_PI[[#This Row],[Input 1]],Table_PI[[#This Row],[Input 2]],Table_PI[[#This Row],[Input 3]],Table_PI[[#This Row],[Input 4]],'Customer Information'!$AR$12,100,ROW())<>0,MeasureCalc(Table_PI[[#This Row],[Hide:\nFormula Name]],Table_SummaryPI[[#This Row],[Quantity]],Table_PI[[#This Row],[List 1]],Table_PI[[#This Row],[List 2]],Table_PI[[#This Row],[List 3]],Table_PI[[#This Row],[Size]],Table_PI[[#This Row],[Input 1]],Table_PI[[#This Row],[Input 2]],Table_PI[[#This Row],[Input 3]],Table_PI[[#This Row],[Input 4]],'Customer Information'!$AR$12,100,ROW())<>\"No Rebate\"),MeasureCalc(Table_PI[[#This Row],[Hide:\nFormula Name]],Table_SummaryPI[[#This Row],[Quantity]],Table_PI[[#This Row],[List 1]],Table_PI[[#This Row],[List 2]],Table_PI[[#This Row],[List 3]],Table_PI[[#This Row],[Size]],Table_PI[[#This Row],[Input 1]],Table_PI[[#This Row],[Input 2]],Table_PI[[#This Row],[Input 3]],Table_PI[[#This Row],[Input 4]],'Customer Information'!$AR$12,100,ROW()),\"\"),\"\")","v":""},{"$f":"IF(Table_PI[[#This Row],[Input 1]]<>\"\",Table_PI[[#This Row],[Input 1]],\"\")","v":""},null,{"$f":"IFERROR(IF(AND(MeasureCalc(Table_PI[[#This Row],[Hide:\nFormula Name]],Table_SummaryPI[[#This Row],[Quantity]],Table_PI[[#This Row],[List 1]],Table_PI[[#This Row],[List 2]],Table_PI[[#This Row],[List 3]],Table_PI[[#This Row],[Size]],Table_PI[[#This Row],[Input 1]],Table_PI[[#This Row],[Input 2]],Table_PI[[#This Row],[Input 3]],Table_PI[[#This Row],[Input 4]],'Customer Information'!$AR$12,101,ROW())<>0,MeasureCalc(Table_PI[[#This Row],[Hide:\nFormula Name]],Table_SummaryPI[[#This Row],[Quantity]],Table_PI[[#This Row],[List 1]],Table_PI[[#This Row],[List 2]],Table_PI[[#This Row],[List 3]],Table_PI[[#This Row],[Size]],Table_PI[[#This Row],[Input 1]],Table_PI[[#This Row],[Input 2]],Table_PI[[#This Row],[Input 3]],Table_PI[[#This Row],[Input 4]],'Customer Information'!$AR$12,101,ROW())<>\"No Rebate\"),MeasureCalc(Table_PI[[#This Row],[Hide:\nFormula Name]],Table_SummaryPI[[#This Row],[Quantity]],Table_PI[[#This Row],[List 1]],Table_PI[[#This Row],[List 2]],Table_PI[[#This Row],[List 3]],Table_PI[[#This Row],[Size]],Table_PI[[#This Row],[Input 1]],Table_PI[[#This Row],[Input 2]],Table_PI[[#This Row],[Input 3]],Table_PI[[#This Row],[Input 4]],'Customer Information'!$AR$12,101,ROW()),\"\"),\"\")","v":""},{"$f":"IF(Table_PI[[#This Row],[Input 2]]<>\"\",Table_PI[[#This Row],[Input 2]],\"\")","v":""},null,{"$f":"IFERROR(IF(AND(MeasureCalc(Table_PI[[#This Row],[Hide:\nFormula Name]],Table_SummaryPI[[#This Row],[Quantity]],Table_PI[[#This Row],[List 1]],Table_PI[[#This Row],[List 2]],Table_PI[[#This Row],[List 3]],Table_PI[[#This Row],[Size]],Table_PI[[#This Row],[Input 1]],Table_PI[[#This Row],[Input 2]],Table_PI[[#This Row],[Input 3]],Table_PI[[#This Row],[Input 4]],'Customer Information'!$AR$12,102,ROW())<>0,MeasureCalc(Table_PI[[#This Row],[Hide:\nFormula Name]],Table_SummaryPI[[#This Row],[Quantity]],Table_PI[[#This Row],[List 1]],Table_PI[[#This Row],[List 2]],Table_PI[[#This Row],[List 3]],Table_PI[[#This Row],[Size]],Table_PI[[#This Row],[Input 1]],Table_PI[[#This Row],[Input 2]],Table_PI[[#This Row],[Input 3]],Table_PI[[#This Row],[Input 4]],'Customer Information'!$AR$12,102,ROW())<>\"No Rebate\"),MeasureCalc(Table_PI[[#This Row],[Hide:\nFormula Name]],Table_SummaryPI[[#This Row],[Quantity]],Table_PI[[#This Row],[List 1]],Table_PI[[#This Row],[List 2]],Table_PI[[#This Row],[List 3]],Table_PI[[#This Row],[Size]],Table_PI[[#This Row],[Input 1]],Table_PI[[#This Row],[Input 2]],Table_PI[[#This Row],[Input 3]],Table_PI[[#This Row],[Input 4]],'Customer Information'!$AR$12,102,ROW()),\"\"),\"\")","v":""},{"$f":"IF(Table_PI[[#This Row],[Input 3]]<>\"\",Table_PI[[#This Row],[Input 3]],\"\")","v":""},null,{"$f":"IFERROR(IF(AND(MeasureCalc(Table_PI[[#This Row],[Hide:\nFormula Name]],Table_SummaryPI[[#This Row],[Quantity]],Table_PI[[#This Row],[List 1]],Table_PI[[#This Row],[List 2]],Table_PI[[#This Row],[List 3]],Table_PI[[#This Row],[Size]],Table_PI[[#This Row],[Input 1]],Table_PI[[#This Row],[Input 2]],Table_PI[[#This Row],[Input 3]],Table_PI[[#This Row],[Input 4]],'Customer Information'!$AR$12,103,ROW())<>0,MeasureCalc(Table_PI[[#This Row],[Hide:\nFormula Name]],Table_SummaryPI[[#This Row],[Quantity]],Table_PI[[#This Row],[List 1]],Table_PI[[#This Row],[List 2]],Table_PI[[#This Row],[List 3]],Table_PI[[#This Row],[Size]],Table_PI[[#This Row],[Input 1]],Table_PI[[#This Row],[Input 2]],Table_PI[[#This Row],[Input 3]],Table_PI[[#This Row],[Input 4]],'Customer Information'!$AR$12,103,ROW())<>\"No Rebate\"),MeasureCalc(Table_PI[[#This Row],[Hide:\nFormula Name]],Table_SummaryPI[[#This Row],[Quantity]],Table_PI[[#This Row],[List 1]],Table_PI[[#This Row],[List 2]],Table_PI[[#This Row],[List 3]],Table_PI[[#This Row],[Size]],Table_PI[[#This Row],[Input 1]],Table_PI[[#This Row],[Input 2]],Table_PI[[#This Row],[Input 3]],Table_PI[[#This Row],[Input 4]],'Customer Information'!$AR$12,103,ROW()),\"\"),\"\")","v":""},{"$f":"IF(Table_PI[[#This Row],[Input 4]]<>\"\",Table_PI[[#This Row],[Input 4]],\"\")","v":""},{"$f":"IF(Table_PI[[#This Row],[Quantity]]=\"\",\"\",Table_PI[[#This Row],[Quantity]])","v":""},{"$f":"IF(Table_PI[[#This Row],[Notes]]=\"\",\"\",Table_PI[[#This Row],[Notes]])","v":""},{"$f":"IF(OR(Table_PI[[#This Row],[Hide:\nBaseline kWh]]=\"\",Table_PI[[#This Row],[Hide:\nBaseline kWh]]=0),\"\",Table_PI[[#This Row],[Hide:\nBaseline kWh]])","v":""},{"$f":"IF(OR(Table_PI[[#This Row],[Hide:\nBaseline kW]]=\"\",Table_PI[[#This Row],[Hide:\nBaseline kW]]=0),\"\",Table_PI[[#This Row],[Hide:\nBaseline kW]])","v":""},{"$f":"IF(OR(Table_PI[[#This Row],[Hide:\nProposed kWh]]=\"\",Table_PI[[#This Row],[Hide:\nProposed kWh]]=0),\"\",Table_PI[[#This Row],[Hide:\nProposed kWh]])","v":""},{"$f":"IF(OR(Table_PI[[#This Row],[Hide:\nProposed kW]]=\"\",Table_PI[[#This Row],[Hide:\nProposed kW]]=0),\"\",Table_PI[[#This Row],[Hide:\nProposed kW]])","v":""},{"$f":"IF(OR(Table_PI[[#This Row],[Rebate]]=\"\",Table_PI[[#This Row],[Rebate]]=0),\"\",Table_PI[[#This Row],[Rebate]])","v":""},{"$f":"IF(OR(Table_PI[[#This Row],[Hide:\nIncremental Cost]]=\"\",Table_PI[[#This Row],[Hide:\nIncremental Cost]]=0),\"\",Table_PI[[#This Row],[Hide:\nIncremental Cost]])","v":""},{"$f":"IFERROR(IF(Table_SummaryPI[[#This Row],[kWhSavings]]=\"\",\"\",ROUND(Table_SummaryPI[[#This Row],[kWhSavings]]/$AG$401*'Customer Information'!$BC$17,2)),0)","v":""},{"$f":"IF(OR(Table_PI[[#This Row],[Annual kWh]]=\"\",Table_PI[[#This Row],[Annual kWh]]=0),\"\",Table_PI[[#This Row],[Annual kWh]])","v":""},{"$f":"IF(OR(Table_PI[[#This Row],[Peak kW]]=\"\",Table_PI[[#This Row],[Peak kW]]=0),\"\",Table_PI[[#This Row],[Peak kW]])","v":""},{"$f":"IFERROR(IF(Table_SummaryPI[[#This Row],[kWhSavings]]=\"\",\"\",$AU$9*Table_SummaryPI[[#This Row],[kWhSavings]]),0)","v":""},{"$f":"IFERROR(IF(Table_SummaryPI[[#This Row],[kWhSavings]]=\"\",\"\",$AU$14*Table_SummaryPI[[#This Row],[kWhSavings]]),0)","v":""},{"$f":"IFERROR(IF(Table_SummaryPI[[#This Row],[kWhSavings]]=\"\",\"\",$AU$18*Table_SummaryPI[[#This Row],[kWhSavings]]),0)","v":""},{"$f":"IFERROR(IF(Table_SummaryPI[[#This Row],[kWhSavings]]=\"\",\"\",$AU$22*Table_SummaryPI[[#This Row],[kWhSavings]]),0)","v":""},{"$f":"IFERROR(IF(MeasureCalc(Table_PI[[#This Row],[Hide:\nFormula Name]],Table_SummaryPI[[#This Row],[Quantity]],Table_PI[[#This Row],[List 1]],Table_PI[[#This Row],[List 2]],Table_PI[[#This Row],[List 3]],Table_PI[[#This Row],[Size]],Table_PI[[#This Row],[Input 1]],Table_PI[[#This Row],[Input 2]],Table_PI[[#This Row],[Input 3]],Table_PI[[#This Row],[Input 4]],'Customer Information'!$AR$12,200,ROW())<>\"No Rebate\",MeasureCalc(Table_PI[[#This Row],[Hide:\nFormula Name]],Table_SummaryPI[[#This Row],[Quantity]],Table_PI[[#This Row],[List 1]],Table_PI[[#This Row],[List 2]],Table_PI[[#This Row],[List 3]],Table_PI[[#This Row],[Size]],Table_PI[[#This Row],[Input 1]],Table_PI[[#This Row],[Input 2]],Table_PI[[#This Row],[Input 3]],Table_PI[[#This Row],[Input 4]],'Customer Information'!$AR$12,200,ROW()),\"\"),\"\")","v":""},{"$f":"IFERROR(IF(MeasureCalc(Table_PI[[#This Row],[Hide:\nFormula Name]],Table_SummaryPI[[#This Row],[Quantity]],Table_PI[[#This Row],[List 1]],Table_PI[[#This Row],[List 2]],Table_PI[[#This Row],[List 3]],Table_PI[[#This Row],[Size]],Table_PI[[#This Row],[Input 1]],Table_PI[[#This Row],[Input 2]],Table_PI[[#This Row],[Input 3]],Table_PI[[#This Row],[Input 4]],'Customer Information'!$AR$12,201,ROW())<>\"No Rebate\",MeasureCalc(Table_PI[[#This Row],[Hide:\nFormula Name]],Table_SummaryPI[[#This Row],[Quantity]],Table_PI[[#This Row],[List 1]],Table_PI[[#This Row],[List 2]],Table_PI[[#This Row],[List 3]],Table_PI[[#This Row],[Size]],Table_PI[[#This Row],[Input 1]],Table_PI[[#This Row],[Input 2]],Table_PI[[#This Row],[Input 3]],Table_PI[[#This Row],[Input 4]],'Customer Information'!$AR$12,201,ROW()),\"\"),\"\")","v":""}]
[{"$f":"Table_PI[[#This Row],[Line No.]]","v":""},{"$f":"IF(Table_SummaryPI[[#This Row],[MeassureCategory]]<>\"\",CONCATENATE(Table_SummaryPI[[#This Row],[MeassureCategory]],  \" - \", Table_SummaryPI[[#This Row],[ProposedMeasureCategory]],  \" - \", TEXT(Table_SummaryPI[[#This Row],[Size]],\"#,##0.00\"),\" \",Table_SummaryPI[[#This Row],[SizeUnit]]),\"\")","v":""},{"$f":"SUBSTITUTE(Table_PI[[#This Row],[Measure]],\"     \",\"\",1)","v":""},{"$f":"IF(Table_PI[[#This Row],[List 1]]<>\"\",Table_PI[[#This Row],[List 1]],\"\")","v":""},{"$f":"IF(Table_PI[[#This Row],[List 2]]<>\"\",Table_PI[[#This Row],[List 2]],\"\")","v":""},{"$f":"IF(Table_PI[[#This Row],[List 3]]<>\"\",Table_PI[[#This Row],[List 3]],\"\")","v":""},{"$f":"IF(Table_PI[[#This Row],[Manufacturer]]=\"\",\"\",Table_PI[[#This Row],[Manufacturer]])","v":""},{"$f":"IF(Table_PI[[#This Row],[Model Number]]=\"\",\"\",Table_PI[[#This Row],[Model Number]])","v":""},{"$f":"IF(Table_PI[[#This Row],[Serial Number(s)]]=\"\",\"\",Table_PI[[#This Row],[Serial Number(s)]])","v":""},null,{"$f":"IF(Table_PI[[#This Row],[Size]]=\"\",\"\",Table_PI[[#This Row],[Size]])","v":""},null,{"$f":"IFERROR(IF(AND(MeasureCalc(Table_PI[[#This Row],[Hide:\nFormula Name]],Table_SummaryPI[[#This Row],[Quantity]],Table_PI[[#This Row],[List 1]],Table_PI[[#This Row],[List 2]],Table_PI[[#This Row],[List 3]],Table_PI[[#This Row],[Size]],Table_PI[[#This Row],[Input 1]],Table_PI[[#This Row],[Input 2]],Table_PI[[#This Row],[Input 3]],Table_PI[[#This Row],[Input 4]],'Customer Information'!$AR$12,100,ROW())<>0,MeasureCalc(Table_PI[[#This Row],[Hide:\nFormula Name]],Table_SummaryPI[[#This Row],[Quantity]],Table_PI[[#This Row],[List 1]],Table_PI[[#This Row],[List 2]],Table_PI[[#This Row],[List 3]],Table_PI[[#This Row],[Size]],Table_PI[[#This Row],[Input 1]],Table_PI[[#This Row],[Input 2]],Table_PI[[#This Row],[Input 3]],Table_PI[[#This Row],[Input 4]],'Customer Information'!$AR$12,100,ROW())<>\"No Rebate\"),MeasureCalc(Table_PI[[#This Row],[Hide:\nFormula Name]],Table_SummaryPI[[#This Row],[Quantity]],Table_PI[[#This Row],[List 1]],Table_PI[[#This Row],[List 2]],Table_PI[[#This Row],[List 3]],Table_PI[[#This Row],[Size]],Table_PI[[#This Row],[Input 1]],Table_PI[[#This Row],[Input 2]],Table_PI[[#This Row],[Input 3]],Table_PI[[#This Row],[Input 4]],'Customer Information'!$AR$12,100,ROW()),\"\"),\"\")","v":""},{"$f":"IF(Table_PI[[#This Row],[Input 1]]<>\"\",Table_PI[[#This Row],[Input 1]],\"\")","v":""},null,{"$f":"IFERROR(IF(AND(MeasureCalc(Table_PI[[#This Row],[Hide:\nFormula Name]],Table_SummaryPI[[#This Row],[Quantity]],Table_PI[[#This Row],[List 1]],Table_PI[[#This Row],[List 2]],Table_PI[[#This Row],[List 3]],Table_PI[[#This Row],[Size]],Table_PI[[#This Row],[Input 1]],Table_PI[[#This Row],[Input 2]],Table_PI[[#This Row],[Input 3]],Table_PI[[#This Row],[Input 4]],'Customer Information'!$AR$12,101,ROW())<>0,MeasureCalc(Table_PI[[#This Row],[Hide:\nFormula Name]],Table_SummaryPI[[#This Row],[Quantity]],Table_PI[[#This Row],[List 1]],Table_PI[[#This Row],[List 2]],Table_PI[[#This Row],[List 3]],Table_PI[[#This Row],[Size]],Table_PI[[#This Row],[Input 1]],Table_PI[[#This Row],[Input 2]],Table_PI[[#This Row],[Input 3]],Table_PI[[#This Row],[Input 4]],'Customer Information'!$AR$12,101,ROW())<>\"No Rebate\"),MeasureCalc(Table_PI[[#This Row],[Hide:\nFormula Name]],Table_SummaryPI[[#This Row],[Quantity]],Table_PI[[#This Row],[List 1]],Table_PI[[#This Row],[List 2]],Table_PI[[#This Row],[List 3]],Table_PI[[#This Row],[Size]],Table_PI[[#This Row],[Input 1]],Table_PI[[#This Row],[Input 2]],Table_PI[[#This Row],[Input 3]],Table_PI[[#This Row],[Input 4]],'Customer Information'!$AR$12,101,ROW()),\"\"),\"\")","v":""},{"$f":"IF(Table_PI[[#This Row],[Input 2]]<>\"\",Table_PI[[#This Row],[Input 2]],\"\")","v":""},null,{"$f":"IFERROR(IF(AND(MeasureCalc(Table_PI[[#This Row],[Hide:\nFormula Name]],Table_SummaryPI[[#This Row],[Quantity]],Table_PI[[#This Row],[List 1]],Table_PI[[#This Row],[List 2]],Table_PI[[#This Row],[List 3]],Table_PI[[#This Row],[Size]],Table_PI[[#This Row],[Input 1]],Table_PI[[#This Row],[Input 2]],Table_PI[[#This Row],[Input 3]],Table_PI[[#This Row],[Input 4]],'Customer Information'!$AR$12,102,ROW())<>0,MeasureCalc(Table_PI[[#This Row],[Hide:\nFormula Name]],Table_SummaryPI[[#This Row],[Quantity]],Table_PI[[#This Row],[List 1]],Table_PI[[#This Row],[List 2]],Table_PI[[#This Row],[List 3]],Table_PI[[#This Row],[Size]],Table_PI[[#This Row],[Input 1]],Table_PI[[#This Row],[Input 2]],Table_PI[[#This Row],[Input 3]],Table_PI[[#This Row],[Input 4]],'Customer Information'!$AR$12,102,ROW())<>\"No Rebate\"),MeasureCalc(Table_PI[[#This Row],[Hide:\nFormula Name]],Table_SummaryPI[[#This Row],[Quantity]],Table_PI[[#This Row],[List 1]],Table_PI[[#This Row],[List 2]],Table_PI[[#This Row],[List 3]],Table_PI[[#This Row],[Size]],Table_PI[[#This Row],[Input 1]],Table_PI[[#This Row],[Input 2]],Table_PI[[#This Row],[Input 3]],Table_PI[[#This Row],[Input 4]],'Customer Information'!$AR$12,102,ROW()),\"\"),\"\")","v":""},{"$f":"IF(Table_PI[[#This Row],[Input 3]]<>\"\",Table_PI[[#This Row],[Input 3]],\"\")","v":""},null,{"$f":"IFERROR(IF(AND(MeasureCalc(Table_PI[[#This Row],[Hide:\nFormula Name]],Table_SummaryPI[[#This Row],[Quantity]],Table_PI[[#This Row],[List 1]],Table_PI[[#This Row],[List 2]],Table_PI[[#This Row],[List 3]],Table_PI[[#This Row],[Size]],Table_PI[[#This Row],[Input 1]],Table_PI[[#This Row],[Input 2]],Table_PI[[#This Row],[Input 3]],Table_PI[[#This Row],[Input 4]],'Customer Information'!$AR$12,103,ROW())<>0,MeasureCalc(Table_PI[[#This Row],[Hide:\nFormula Name]],Table_SummaryPI[[#This Row],[Quantity]],Table_PI[[#This Row],[List 1]],Table_PI[[#This Row],[List 2]],Table_PI[[#This Row],[List 3]],Table_PI[[#This Row],[Size]],Table_PI[[#This Row],[Input 1]],Table_PI[[#This Row],[Input 2]],Table_PI[[#This Row],[Input 3]],Table_PI[[#This Row],[Input 4]],'Customer Information'!$AR$12,103,ROW())<>\"No Rebate\"),MeasureCalc(Table_PI[[#This Row],[Hide:\nFormula Name]],Table_SummaryPI[[#This Row],[Quantity]],Table_PI[[#This Row],[List 1]],Table_PI[[#This Row],[List 2]],Table_PI[[#This Row],[List 3]],Table_PI[[#This Row],[Size]],Table_PI[[#This Row],[Input 1]],Table_PI[[#This Row],[Input 2]],Table_PI[[#This Row],[Input 3]],Table_PI[[#This Row],[Input 4]],'Customer Information'!$AR$12,103,ROW()),\"\"),\"\")","v":""},{"$f":"IF(Table_PI[[#This Row],[Input 4]]<>\"\",Table_PI[[#This Row],[Input 4]],\"\")","v":""},{"$f":"IF(Table_PI[[#This Row],[Quantity]]=\"\",\"\",Table_PI[[#This Row],[Quantity]])","v":""},{"$f":"IF(Table_PI[[#This Row],[Notes]]=\"\",\"\",Table_PI[[#This Row],[Notes]])","v":""},{"$f":"IF(OR(Table_PI[[#This Row],[Hide:\nBaseline kWh]]=\"\",Table_PI[[#This Row],[Hide:\nBaseline kWh]]=0),\"\",Table_PI[[#This Row],[Hide:\nBaseline kWh]])","v":""},{"$f":"IF(OR(Table_PI[[#This Row],[Hide:\nBaseline kW]]=\"\",Table_PI[[#This Row],[Hide:\nBaseline kW]]=0),\"\",Table_PI[[#This Row],[Hide:\nBaseline kW]])","v":""},{"$f":"IF(OR(Table_PI[[#This Row],[Hide:\nProposed kWh]]=\"\",Table_PI[[#This Row],[Hide:\nProposed kWh]]=0),\"\",Table_PI[[#This Row],[Hide:\nProposed kWh]])","v":""},{"$f":"IF(OR(Table_PI[[#This Row],[Hide:\nProposed kW]]=\"\",Table_PI[[#This Row],[Hide:\nProposed kW]]=0),\"\",Table_PI[[#This Row],[Hide:\nProposed kW]])","v":""},{"$f":"IF(OR(Table_PI[[#This Row],[Rebate]]=\"\",Table_PI[[#This Row],[Rebate]]=0),\"\",Table_PI[[#This Row],[Rebate]])","v":""},{"$f":"IF(OR(Table_PI[[#This Row],[Hide:\nIncremental Cost]]=\"\",Table_PI[[#This Row],[Hide:\nIncremental Cost]]=0),\"\",Table_PI[[#This Row],[Hide:\nIncremental Cost]])","v":""},{"$f":"IFERROR(IF(Table_SummaryPI[[#This Row],[kWhSavings]]=\"\",\"\",ROUND(Table_SummaryPI[[#This Row],[kWhSavings]]/$AG$401*'Customer Information'!$BC$17,2)),0)","v":""},{"$f":"IF(OR(Table_PI[[#This Row],[Annual kWh]]=\"\",Table_PI[[#This Row],[Annual kWh]]=0),\"\",Table_PI[[#This Row],[Annual kWh]])","v":""},{"$f":"IF(OR(Table_PI[[#This Row],[Peak kW]]=\"\",Table_PI[[#This Row],[Peak kW]]=0),\"\",Table_PI[[#This Row],[Peak kW]])","v":""},{"$f":"IFERROR(IF(Table_SummaryPI[[#This Row],[kWhSavings]]=\"\",\"\",$AU$9*Table_SummaryPI[[#This Row],[kWhSavings]]),0)","v":""},{"$f":"IFERROR(IF(Table_SummaryPI[[#This Row],[kWhSavings]]=\"\",\"\",$AU$14*Table_SummaryPI[[#This Row],[kWhSavings]]),0)","v":""},{"$f":"IFERROR(IF(Table_SummaryPI[[#This Row],[kWhSavings]]=\"\",\"\",$AU$18*Table_SummaryPI[[#This Row],[kWhSavings]]),0)","v":""},{"$f":"IFERROR(IF(Table_SummaryPI[[#This Row],[kWhSavings]]=\"\",\"\",$AU$22*Table_SummaryPI[[#This Row],[kWhSavings]]),0)","v":""},{"$f":"IFERROR(IF(MeasureCalc(Table_PI[[#This Row],[Hide:\nFormula Name]],Table_SummaryPI[[#This Row],[Quantity]],Table_PI[[#This Row],[List 1]],Table_PI[[#This Row],[List 2]],Table_PI[[#This Row],[List 3]],Table_PI[[#This Row],[Size]],Table_PI[[#This Row],[Input 1]],Table_PI[[#This Row],[Input 2]],Table_PI[[#This Row],[Input 3]],Table_PI[[#This Row],[Input 4]],'Customer Information'!$AR$12,200,ROW())<>\"No Rebate\",MeasureCalc(Table_PI[[#This Row],[Hide:\nFormula Name]],Table_SummaryPI[[#This Row],[Quantity]],Table_PI[[#This Row],[List 1]],Table_PI[[#This Row],[List 2]],Table_PI[[#This Row],[List 3]],Table_PI[[#This Row],[Size]],Table_PI[[#This Row],[Input 1]],Table_PI[[#This Row],[Input 2]],Table_PI[[#This Row],[Input 3]],Table_PI[[#This Row],[Input 4]],'Customer Information'!$AR$12,200,ROW()),\"\"),\"\")","v":""},{"$f":"IFERROR(IF(MeasureCalc(Table_PI[[#This Row],[Hide:\nFormula Name]],Table_SummaryPI[[#This Row],[Quantity]],Table_PI[[#This Row],[List 1]],Table_PI[[#This Row],[List 2]],Table_PI[[#This Row],[List 3]],Table_PI[[#This Row],[Size]],Table_PI[[#This Row],[Input 1]],Table_PI[[#This Row],[Input 2]],Table_PI[[#This Row],[Input 3]],Table_PI[[#This Row],[Input 4]],'Customer Information'!$AR$12,201,ROW())<>\"No Rebate\",MeasureCalc(Table_PI[[#This Row],[Hide:\nFormula Name]],Table_SummaryPI[[#This Row],[Quantity]],Table_PI[[#This Row],[List 1]],Table_PI[[#This Row],[List 2]],Table_PI[[#This Row],[List 3]],Table_PI[[#This Row],[Size]],Table_PI[[#This Row],[Input 1]],Table_PI[[#This Row],[Input 2]],Table_PI[[#This Row],[Input 3]],Table_PI[[#This Row],[Input 4]],'Customer Information'!$AR$12,201,ROW()),\"\"),\"\")","v":""}]
[{"$f":"Table_PI[[#This Row],[Line No.]]","v":""},{"$f":"IF(Table_SummaryPI[[#This Row],[MeassureCategory]]<>\"\",CONCATENATE(Table_SummaryPI[[#This Row],[MeassureCategory]],  \" - \", Table_SummaryPI[[#This Row],[ProposedMeasureCategory]],  \" - \", TEXT(Table_SummaryPI[[#This Row],[Size]],\"#,##0.00\"),\" \",Table_SummaryPI[[#This Row],[SizeUnit]]),\"\")","v":""},{"$f":"SUBSTITUTE(Table_PI[[#This Row],[Measure]],\"     \",\"\",1)","v":""},{"$f":"IF(Table_PI[[#This Row],[List 1]]<>\"\",Table_PI[[#This Row],[List 1]],\"\")","v":""},{"$f":"IF(Table_PI[[#This Row],[List 2]]<>\"\",Table_PI[[#This Row],[List 2]],\"\")","v":""},{"$f":"IF(Table_PI[[#This Row],[List 3]]<>\"\",Table_PI[[#This Row],[List 3]],\"\")","v":""},{"$f":"IF(Table_PI[[#This Row],[Manufacturer]]=\"\",\"\",Table_PI[[#This Row],[Manufacturer]])","v":""},{"$f":"IF(Table_PI[[#This Row],[Model Number]]=\"\",\"\",Table_PI[[#This Row],[Model Number]])","v":""},{"$f":"IF(Table_PI[[#This Row],[Serial Number(s)]]=\"\",\"\",Table_PI[[#This Row],[Serial Number(s)]])","v":""},null,{"$f":"IF(Table_PI[[#This Row],[Size]]=\"\",\"\",Table_PI[[#This Row],[Size]])","v":""},null,{"$f":"IFERROR(IF(AND(MeasureCalc(Table_PI[[#This Row],[Hide:\nFormula Name]],Table_SummaryPI[[#This Row],[Quantity]],Table_PI[[#This Row],[List 1]],Table_PI[[#This Row],[List 2]],Table_PI[[#This Row],[List 3]],Table_PI[[#This Row],[Size]],Table_PI[[#This Row],[Input 1]],Table_PI[[#This Row],[Input 2]],Table_PI[[#This Row],[Input 3]],Table_PI[[#This Row],[Input 4]],'Customer Information'!$AR$12,100,ROW())<>0,MeasureCalc(Table_PI[[#This Row],[Hide:\nFormula Name]],Table_SummaryPI[[#This Row],[Quantity]],Table_PI[[#This Row],[List 1]],Table_PI[[#This Row],[List 2]],Table_PI[[#This Row],[List 3]],Table_PI[[#This Row],[Size]],Table_PI[[#This Row],[Input 1]],Table_PI[[#This Row],[Input 2]],Table_PI[[#This Row],[Input 3]],Table_PI[[#This Row],[Input 4]],'Customer Information'!$AR$12,100,ROW())<>\"No Rebate\"),MeasureCalc(Table_PI[[#This Row],[Hide:\nFormula Name]],Table_SummaryPI[[#This Row],[Quantity]],Table_PI[[#This Row],[List 1]],Table_PI[[#This Row],[List 2]],Table_PI[[#This Row],[List 3]],Table_PI[[#This Row],[Size]],Table_PI[[#This Row],[Input 1]],Table_PI[[#This Row],[Input 2]],Table_PI[[#This Row],[Input 3]],Table_PI[[#This Row],[Input 4]],'Customer Information'!$AR$12,100,ROW()),\"\"),\"\")","v":""},{"$f":"IF(Table_PI[[#This Row],[Input 1]]<>\"\",Table_PI[[#This Row],[Input 1]],\"\")","v":""},null,{"$f":"IFERROR(IF(AND(MeasureCalc(Table_PI[[#This Row],[Hide:\nFormula Name]],Table_SummaryPI[[#This Row],[Quantity]],Table_PI[[#This Row],[List 1]],Table_PI[[#This Row],[List 2]],Table_PI[[#This Row],[List 3]],Table_PI[[#This Row],[Size]],Table_PI[[#This Row],[Input 1]],Table_PI[[#This Row],[Input 2]],Table_PI[[#This Row],[Input 3]],Table_PI[[#This Row],[Input 4]],'Customer Information'!$AR$12,101,ROW())<>0,MeasureCalc(Table_PI[[#This Row],[Hide:\nFormula Name]],Table_SummaryPI[[#This Row],[Quantity]],Table_PI[[#This Row],[List 1]],Table_PI[[#This Row],[List 2]],Table_PI[[#This Row],[List 3]],Table_PI[[#This Row],[Size]],Table_PI[[#This Row],[Input 1]],Table_PI[[#This Row],[Input 2]],Table_PI[[#This Row],[Input 3]],Table_PI[[#This Row],[Input 4]],'Customer Information'!$AR$12,101,ROW())<>\"No Rebate\"),MeasureCalc(Table_PI[[#This Row],[Hide:\nFormula Name]],Table_SummaryPI[[#This Row],[Quantity]],Table_PI[[#This Row],[List 1]],Table_PI[[#This Row],[List 2]],Table_PI[[#This Row],[List 3]],Table_PI[[#This Row],[Size]],Table_PI[[#This Row],[Input 1]],Table_PI[[#This Row],[Input 2]],Table_PI[[#This Row],[Input 3]],Table_PI[[#This Row],[Input 4]],'Customer Information'!$AR$12,101,ROW()),\"\"),\"\")","v":""},{"$f":"IF(Table_PI[[#This Row],[Input 2]]<>\"\",Table_PI[[#This Row],[Input 2]],\"\")","v":""},null,{"$f":"IFERROR(IF(AND(MeasureCalc(Table_PI[[#This Row],[Hide:\nFormula Name]],Table_SummaryPI[[#This Row],[Quantity]],Table_PI[[#This Row],[List 1]],Table_PI[[#This Row],[List 2]],Table_PI[[#This Row],[List 3]],Table_PI[[#This Row],[Size]],Table_PI[[#This Row],[Input 1]],Table_PI[[#This Row],[Input 2]],Table_PI[[#This Row],[Input 3]],Table_PI[[#This Row],[Input 4]],'Customer Information'!$AR$12,102,ROW())<>0,MeasureCalc(Table_PI[[#This Row],[Hide:\nFormula Name]],Table_SummaryPI[[#This Row],[Quantity]],Table_PI[[#This Row],[List 1]],Table_PI[[#This Row],[List 2]],Table_PI[[#This Row],[List 3]],Table_PI[[#This Row],[Size]],Table_PI[[#This Row],[Input 1]],Table_PI[[#This Row],[Input 2]],Table_PI[[#This Row],[Input 3]],Table_PI[[#This Row],[Input 4]],'Customer Information'!$AR$12,102,ROW())<>\"No Rebate\"),MeasureCalc(Table_PI[[#This Row],[Hide:\nFormula Name]],Table_SummaryPI[[#This Row],[Quantity]],Table_PI[[#This Row],[List 1]],Table_PI[[#This Row],[List 2]],Table_PI[[#This Row],[List 3]],Table_PI[[#This Row],[Size]],Table_PI[[#This Row],[Input 1]],Table_PI[[#This Row],[Input 2]],Table_PI[[#This Row],[Input 3]],Table_PI[[#This Row],[Input 4]],'Customer Information'!$AR$12,102,ROW()),\"\"),\"\")","v":""},{"$f":"IF(Table_PI[[#This Row],[Input 3]]<>\"\",Table_PI[[#This Row],[Input 3]],\"\")","v":""},null,{"$f":"IFERROR(IF(AND(MeasureCalc(Table_PI[[#This Row],[Hide:\nFormula Name]],Table_SummaryPI[[#This Row],[Quantity]],Table_PI[[#This Row],[List 1]],Table_PI[[#This Row],[List 2]],Table_PI[[#This Row],[List 3]],Table_PI[[#This Row],[Size]],Table_PI[[#This Row],[Input 1]],Table_PI[[#This Row],[Input 2]],Table_PI[[#This Row],[Input 3]],Table_PI[[#This Row],[Input 4]],'Customer Information'!$AR$12,103,ROW())<>0,MeasureCalc(Table_PI[[#This Row],[Hide:\nFormula Name]],Table_SummaryPI[[#This Row],[Quantity]],Table_PI[[#This Row],[List 1]],Table_PI[[#This Row],[List 2]],Table_PI[[#This Row],[List 3]],Table_PI[[#This Row],[Size]],Table_PI[[#This Row],[Input 1]],Table_PI[[#This Row],[Input 2]],Table_PI[[#This Row],[Input 3]],Table_PI[[#This Row],[Input 4]],'Customer Information'!$AR$12,103,ROW())<>\"No Rebate\"),MeasureCalc(Table_PI[[#This Row],[Hide:\nFormula Name]],Table_SummaryPI[[#This Row],[Quantity]],Table_PI[[#This Row],[List 1]],Table_PI[[#This Row],[List 2]],Table_PI[[#This Row],[List 3]],Table_PI[[#This Row],[Size]],Table_PI[[#This Row],[Input 1]],Table_PI[[#This Row],[Input 2]],Table_PI[[#This Row],[Input 3]],Table_PI[[#This Row],[Input 4]],'Customer Information'!$AR$12,103,ROW()),\"\"),\"\")","v":""},{"$f":"IF(Table_PI[[#This Row],[Input 4]]<>\"\",Table_PI[[#This Row],[Input 4]],\"\")","v":""},{"$f":"IF(Table_PI[[#This Row],[Quantity]]=\"\",\"\",Table_PI[[#This Row],[Quantity]])","v":""},{"$f":"IF(Table_PI[[#This Row],[Notes]]=\"\",\"\",Table_PI[[#This Row],[Notes]])","v":""},{"$f":"IF(OR(Table_PI[[#This Row],[Hide:\nBaseline kWh]]=\"\",Table_PI[[#This Row],[Hide:\nBaseline kWh]]=0),\"\",Table_PI[[#This Row],[Hide:\nBaseline kWh]])","v":""},{"$f":"IF(OR(Table_PI[[#This Row],[Hide:\nBaseline kW]]=\"\",Table_PI[[#This Row],[Hide:\nBaseline kW]]=0),\"\",Table_PI[[#This Row],[Hide:\nBaseline kW]])","v":""},{"$f":"IF(OR(Table_PI[[#This Row],[Hide:\nProposed kWh]]=\"\",Table_PI[[#This Row],[Hide:\nProposed kWh]]=0),\"\",Table_PI[[#This Row],[Hide:\nProposed kWh]])","v":""},{"$f":"IF(OR(Table_PI[[#This Row],[Hide:\nProposed kW]]=\"\",Table_PI[[#This Row],[Hide:\nProposed kW]]=0),\"\",Table_PI[[#This Row],[Hide:\nProposed kW]])","v":""},{"$f":"IF(OR(Table_PI[[#This Row],[Rebate]]=\"\",Table_PI[[#This Row],[Rebate]]=0),\"\",Table_PI[[#This Row],[Rebate]])","v":""},{"$f":"IF(OR(Table_PI[[#This Row],[Hide:\nIncremental Cost]]=\"\",Table_PI[[#This Row],[Hide:\nIncremental Cost]]=0),\"\",Table_PI[[#This Row],[Hide:\nIncremental Cost]])","v":""},{"$f":"IFERROR(IF(Table_SummaryPI[[#This Row],[kWhSavings]]=\"\",\"\",ROUND(Table_SummaryPI[[#This Row],[kWhSavings]]/$AG$401*'Customer Information'!$BC$17,2)),0)","v":""},{"$f":"IF(OR(Table_PI[[#This Row],[Annual kWh]]=\"\",Table_PI[[#This Row],[Annual kWh]]=0),\"\",Table_PI[[#This Row],[Annual kWh]])","v":""},{"$f":"IF(OR(Table_PI[[#This Row],[Peak kW]]=\"\",Table_PI[[#This Row],[Peak kW]]=0),\"\",Table_PI[[#This Row],[Peak kW]])","v":""},{"$f":"IFERROR(IF(Table_SummaryPI[[#This Row],[kWhSavings]]=\"\",\"\",$AU$9*Table_SummaryPI[[#This Row],[kWhSavings]]),0)","v":""},{"$f":"IFERROR(IF(Table_SummaryPI[[#This Row],[kWhSavings]]=\"\",\"\",$AU$14*Table_SummaryPI[[#This Row],[kWhSavings]]),0)","v":""},{"$f":"IFERROR(IF(Table_SummaryPI[[#This Row],[kWhSavings]]=\"\",\"\",$AU$18*Table_SummaryPI[[#This Row],[kWhSavings]]),0)","v":""},{"$f":"IFERROR(IF(Table_SummaryPI[[#This Row],[kWhSavings]]=\"\",\"\",$AU$22*Table_SummaryPI[[#This Row],[kWhSavings]]),0)","v":""},{"$f":"IFERROR(IF(MeasureCalc(Table_PI[[#This Row],[Hide:\nFormula Name]],Table_SummaryPI[[#This Row],[Quantity]],Table_PI[[#This Row],[List 1]],Table_PI[[#This Row],[List 2]],Table_PI[[#This Row],[List 3]],Table_PI[[#This Row],[Size]],Table_PI[[#This Row],[Input 1]],Table_PI[[#This Row],[Input 2]],Table_PI[[#This Row],[Input 3]],Table_PI[[#This Row],[Input 4]],'Customer Information'!$AR$12,200,ROW())<>\"No Rebate\",MeasureCalc(Table_PI[[#This Row],[Hide:\nFormula Name]],Table_SummaryPI[[#This Row],[Quantity]],Table_PI[[#This Row],[List 1]],Table_PI[[#This Row],[List 2]],Table_PI[[#This Row],[List 3]],Table_PI[[#This Row],[Size]],Table_PI[[#This Row],[Input 1]],Table_PI[[#This Row],[Input 2]],Table_PI[[#This Row],[Input 3]],Table_PI[[#This Row],[Input 4]],'Customer Information'!$AR$12,200,ROW()),\"\"),\"\")","v":""},{"$f":"IFERROR(IF(MeasureCalc(Table_PI[[#This Row],[Hide:\nFormula Name]],Table_SummaryPI[[#This Row],[Quantity]],Table_PI[[#This Row],[List 1]],Table_PI[[#This Row],[List 2]],Table_PI[[#This Row],[List 3]],Table_PI[[#This Row],[Size]],Table_PI[[#This Row],[Input 1]],Table_PI[[#This Row],[Input 2]],Table_PI[[#This Row],[Input 3]],Table_PI[[#This Row],[Input 4]],'Customer Information'!$AR$12,201,ROW())<>\"No Rebate\",MeasureCalc(Table_PI[[#This Row],[Hide:\nFormula Name]],Table_SummaryPI[[#This Row],[Quantity]],Table_PI[[#This Row],[List 1]],Table_PI[[#This Row],[List 2]],Table_PI[[#This Row],[List 3]],Table_PI[[#This Row],[Size]],Table_PI[[#This Row],[Input 1]],Table_PI[[#This Row],[Input 2]],Table_PI[[#This Row],[Input 3]],Table_PI[[#This Row],[Input 4]],'Customer Information'!$AR$12,201,ROW()),\"\"),\"\")","v":""}]
[{"$f":"Table_PI[[#This Row],[Line No.]]","v":""},{"$f":"IF(Table_SummaryPI[[#This Row],[MeassureCategory]]<>\"\",CONCATENATE(Table_SummaryPI[[#This Row],[MeassureCategory]],  \" - \", Table_SummaryPI[[#This Row],[ProposedMeasureCategory]],  \" - \", TEXT(Table_SummaryPI[[#This Row],[Size]],\"#,##0.00\"),\" \",Table_SummaryPI[[#This Row],[SizeUnit]]),\"\")","v":""},{"$f":"SUBSTITUTE(Table_PI[[#This Row],[Measure]],\"     \",\"\",1)","v":""},{"$f":"IF(Table_PI[[#This Row],[List 1]]<>\"\",Table_PI[[#This Row],[List 1]],\"\")","v":""},{"$f":"IF(Table_PI[[#This Row],[List 2]]<>\"\",Table_PI[[#This Row],[List 2]],\"\")","v":""},{"$f":"IF(Table_PI[[#This Row],[List 3]]<>\"\",Table_PI[[#This Row],[List 3]],\"\")","v":""},{"$f":"IF(Table_PI[[#This Row],[Manufacturer]]=\"\",\"\",Table_PI[[#This Row],[Manufacturer]])","v":""},{"$f":"IF(Table_PI[[#This Row],[Model Number]]=\"\",\"\",Table_PI[[#This Row],[Model Number]])","v":""},{"$f":"IF(Table_PI[[#This Row],[Serial Number(s)]]=\"\",\"\",Table_PI[[#This Row],[Serial Number(s)]])","v":""},null,{"$f":"IF(Table_PI[[#This Row],[Size]]=\"\",\"\",Table_PI[[#This Row],[Size]])","v":""},null,{"$f":"IFERROR(IF(AND(MeasureCalc(Table_PI[[#This Row],[Hide:\nFormula Name]],Table_SummaryPI[[#This Row],[Quantity]],Table_PI[[#This Row],[List 1]],Table_PI[[#This Row],[List 2]],Table_PI[[#This Row],[List 3]],Table_PI[[#This Row],[Size]],Table_PI[[#This Row],[Input 1]],Table_PI[[#This Row],[Input 2]],Table_PI[[#This Row],[Input 3]],Table_PI[[#This Row],[Input 4]],'Customer Information'!$AR$12,100,ROW())<>0,MeasureCalc(Table_PI[[#This Row],[Hide:\nFormula Name]],Table_SummaryPI[[#This Row],[Quantity]],Table_PI[[#This Row],[List 1]],Table_PI[[#This Row],[List 2]],Table_PI[[#This Row],[List 3]],Table_PI[[#This Row],[Size]],Table_PI[[#This Row],[Input 1]],Table_PI[[#This Row],[Input 2]],Table_PI[[#This Row],[Input 3]],Table_PI[[#This Row],[Input 4]],'Customer Information'!$AR$12,100,ROW())<>\"No Rebate\"),MeasureCalc(Table_PI[[#This Row],[Hide:\nFormula Name]],Table_SummaryPI[[#This Row],[Quantity]],Table_PI[[#This Row],[List 1]],Table_PI[[#This Row],[List 2]],Table_PI[[#This Row],[List 3]],Table_PI[[#This Row],[Size]],Table_PI[[#This Row],[Input 1]],Table_PI[[#This Row],[Input 2]],Table_PI[[#This Row],[Input 3]],Table_PI[[#This Row],[Input 4]],'Customer Information'!$AR$12,100,ROW()),\"\"),\"\")","v":""},{"$f":"IF(Table_PI[[#This Row],[Input 1]]<>\"\",Table_PI[[#This Row],[Input 1]],\"\")","v":""},null,{"$f":"IFERROR(IF(AND(MeasureCalc(Table_PI[[#This Row],[Hide:\nFormula Name]],Table_SummaryPI[[#This Row],[Quantity]],Table_PI[[#This Row],[List 1]],Table_PI[[#This Row],[List 2]],Table_PI[[#This Row],[List 3]],Table_PI[[#This Row],[Size]],Table_PI[[#This Row],[Input 1]],Table_PI[[#This Row],[Input 2]],Table_PI[[#This Row],[Input 3]],Table_PI[[#This Row],[Input 4]],'Customer Information'!$AR$12,101,ROW())<>0,MeasureCalc(Table_PI[[#This Row],[Hide:\nFormula Name]],Table_SummaryPI[[#This Row],[Quantity]],Table_PI[[#This Row],[List 1]],Table_PI[[#This Row],[List 2]],Table_PI[[#This Row],[List 3]],Table_PI[[#This Row],[Size]],Table_PI[[#This Row],[Input 1]],Table_PI[[#This Row],[Input 2]],Table_PI[[#This Row],[Input 3]],Table_PI[[#This Row],[Input 4]],'Customer Information'!$AR$12,101,ROW())<>\"No Rebate\"),MeasureCalc(Table_PI[[#This Row],[Hide:\nFormula Name]],Table_SummaryPI[[#This Row],[Quantity]],Table_PI[[#This Row],[List 1]],Table_PI[[#This Row],[List 2]],Table_PI[[#This Row],[List 3]],Table_PI[[#This Row],[Size]],Table_PI[[#This Row],[Input 1]],Table_PI[[#This Row],[Input 2]],Table_PI[[#This Row],[Input 3]],Table_PI[[#This Row],[Input 4]],'Customer Information'!$AR$12,101,ROW()),\"\"),\"\")","v":""},{"$f":"IF(Table_PI[[#This Row],[Input 2]]<>\"\",Table_PI[[#This Row],[Input 2]],\"\")","v":""},null,{"$f":"IFERROR(IF(AND(MeasureCalc(Table_PI[[#This Row],[Hide:\nFormula Name]],Table_SummaryPI[[#This Row],[Quantity]],Table_PI[[#This Row],[List 1]],Table_PI[[#This Row],[List 2]],Table_PI[[#This Row],[List 3]],Table_PI[[#This Row],[Size]],Table_PI[[#This Row],[Input 1]],Table_PI[[#This Row],[Input 2]],Table_PI[[#This Row],[Input 3]],Table_PI[[#This Row],[Input 4]],'Customer Information'!$AR$12,102,ROW())<>0,MeasureCalc(Table_PI[[#This Row],[Hide:\nFormula Name]],Table_SummaryPI[[#This Row],[Quantity]],Table_PI[[#This Row],[List 1]],Table_PI[[#This Row],[List 2]],Table_PI[[#This Row],[List 3]],Table_PI[[#This Row],[Size]],Table_PI[[#This Row],[Input 1]],Table_PI[[#This Row],[Input 2]],Table_PI[[#This Row],[Input 3]],Table_PI[[#This Row],[Input 4]],'Customer Information'!$AR$12,102,ROW())<>\"No Rebate\"),MeasureCalc(Table_PI[[#This Row],[Hide:\nFormula Name]],Table_SummaryPI[[#This Row],[Quantity]],Table_PI[[#This Row],[List 1]],Table_PI[[#This Row],[List 2]],Table_PI[[#This Row],[List 3]],Table_PI[[#This Row],[Size]],Table_PI[[#This Row],[Input 1]],Table_PI[[#This Row],[Input 2]],Table_PI[[#This Row],[Input 3]],Table_PI[[#This Row],[Input 4]],'Customer Information'!$AR$12,102,ROW()),\"\"),\"\")","v":""},{"$f":"IF(Table_PI[[#This Row],[Input 3]]<>\"\",Table_PI[[#This Row],[Input 3]],\"\")","v":""},null,{"$f":"IFERROR(IF(AND(MeasureCalc(Table_PI[[#This Row],[Hide:\nFormula Name]],Table_SummaryPI[[#This Row],[Quantity]],Table_PI[[#This Row],[List 1]],Table_PI[[#This Row],[List 2]],Table_PI[[#This Row],[List 3]],Table_PI[[#This Row],[Size]],Table_PI[[#This Row],[Input 1]],Table_PI[[#This Row],[Input 2]],Table_PI[[#This Row],[Input 3]],Table_PI[[#This Row],[Input 4]],'Customer Information'!$AR$12,103,ROW())<>0,MeasureCalc(Table_PI[[#This Row],[Hide:\nFormula Name]],Table_SummaryPI[[#This Row],[Quantity]],Table_PI[[#This Row],[List 1]],Table_PI[[#This Row],[List 2]],Table_PI[[#This Row],[List 3]],Table_PI[[#This Row],[Size]],Table_PI[[#This Row],[Input 1]],Table_PI[[#This Row],[Input 2]],Table_PI[[#This Row],[Input 3]],Table_PI[[#This Row],[Input 4]],'Customer Information'!$AR$12,103,ROW())<>\"No Rebate\"),MeasureCalc(Table_PI[[#This Row],[Hide:\nFormula Name]],Table_SummaryPI[[#This Row],[Quantity]],Table_PI[[#This Row],[List 1]],Table_PI[[#This Row],[List 2]],Table_PI[[#This Row],[List 3]],Table_PI[[#This Row],[Size]],Table_PI[[#This Row],[Input 1]],Table_PI[[#This Row],[Input 2]],Table_PI[[#This Row],[Input 3]],Table_PI[[#This Row],[Input 4]],'Customer Information'!$AR$12,103,ROW()),\"\"),\"\")","v":""},{"$f":"IF(Table_PI[[#This Row],[Input 4]]<>\"\",Table_PI[[#This Row],[Input 4]],\"\")","v":""},{"$f":"IF(Table_PI[[#This Row],[Quantity]]=\"\",\"\",Table_PI[[#This Row],[Quantity]])","v":""},{"$f":"IF(Table_PI[[#This Row],[Notes]]=\"\",\"\",Table_PI[[#This Row],[Notes]])","v":""},{"$f":"IF(OR(Table_PI[[#This Row],[Hide:\nBaseline kWh]]=\"\",Table_PI[[#This Row],[Hide:\nBaseline kWh]]=0),\"\",Table_PI[[#This Row],[Hide:\nBaseline kWh]])","v":""},{"$f":"IF(OR(Table_PI[[#This Row],[Hide:\nBaseline kW]]=\"\",Table_PI[[#This Row],[Hide:\nBaseline kW]]=0),\"\",Table_PI[[#This Row],[Hide:\nBaseline kW]])","v":""},{"$f":"IF(OR(Table_PI[[#This Row],[Hide:\nProposed kWh]]=\"\",Table_PI[[#This Row],[Hide:\nProposed kWh]]=0),\"\",Table_PI[[#This Row],[Hide:\nProposed kWh]])","v":""},{"$f":"IF(OR(Table_PI[[#This Row],[Hide:\nProposed kW]]=\"\",Table_PI[[#This Row],[Hide:\nProposed kW]]=0),\"\",Table_PI[[#This Row],[Hide:\nProposed kW]])","v":""},{"$f":"IF(OR(Table_PI[[#This Row],[Rebate]]=\"\",Table_PI[[#This Row],[Rebate]]=0),\"\",Table_PI[[#This Row],[Rebate]])","v":""},{"$f":"IF(OR(Table_PI[[#This Row],[Hide:\nIncremental Cost]]=\"\",Table_PI[[#This Row],[Hide:\nIncremental Cost]]=0),\"\",Table_PI[[#This Row],[Hide:\nIncremental Cost]])","v":""},{"$f":"IFERROR(IF(Table_SummaryPI[[#This Row],[kWhSavings]]=\"\",\"\",ROUND(Table_SummaryPI[[#This Row],[kWhSavings]]/$AG$401*'Customer Information'!$BC$17,2)),0)","v":""},{"$f":"IF(OR(Table_PI[[#This Row],[Annual kWh]]=\"\",Table_PI[[#This Row],[Annual kWh]]=0),\"\",Table_PI[[#This Row],[Annual kWh]])","v":""},{"$f":"IF(OR(Table_PI[[#This Row],[Peak kW]]=\"\",Table_PI[[#This Row],[Peak kW]]=0),\"\",Table_PI[[#This Row],[Peak kW]])","v":""},{"$f":"IFERROR(IF(Table_SummaryPI[[#This Row],[kWhSavings]]=\"\",\"\",$AU$9*Table_SummaryPI[[#This Row],[kWhSavings]]),0)","v":""},{"$f":"IFERROR(IF(Table_SummaryPI[[#This Row],[kWhSavings]]=\"\",\"\",$AU$14*Table_SummaryPI[[#This Row],[kWhSavings]]),0)","v":""},{"$f":"IFERROR(IF(Table_SummaryPI[[#This Row],[kWhSavings]]=\"\",\"\",$AU$18*Table_SummaryPI[[#This Row],[kWhSavings]]),0)","v":""},{"$f":"IFERROR(IF(Table_SummaryPI[[#This Row],[kWhSavings]]=\"\",\"\",$AU$22*Table_SummaryPI[[#This Row],[kWhSavings]]),0)","v":""},{"$f":"IFERROR(IF(MeasureCalc(Table_PI[[#This Row],[Hide:\nFormula Name]],Table_SummaryPI[[#This Row],[Quantity]],Table_PI[[#This Row],[List 1]],Table_PI[[#This Row],[List 2]],Table_PI[[#This Row],[List 3]],Table_PI[[#This Row],[Size]],Table_PI[[#This Row],[Input 1]],Table_PI[[#This Row],[Input 2]],Table_PI[[#This Row],[Input 3]],Table_PI[[#This Row],[Input 4]],'Customer Information'!$AR$12,200,ROW())<>\"No Rebate\",MeasureCalc(Table_PI[[#This Row],[Hide:\nFormula Name]],Table_SummaryPI[[#This Row],[Quantity]],Table_PI[[#This Row],[List 1]],Table_PI[[#This Row],[List 2]],Table_PI[[#This Row],[List 3]],Table_PI[[#This Row],[Size]],Table_PI[[#This Row],[Input 1]],Table_PI[[#This Row],[Input 2]],Table_PI[[#This Row],[Input 3]],Table_PI[[#This Row],[Input 4]],'Customer Information'!$AR$12,200,ROW()),\"\"),\"\")","v":""},{"$f":"IFERROR(IF(MeasureCalc(Table_PI[[#This Row],[Hide:\nFormula Name]],Table_SummaryPI[[#This Row],[Quantity]],Table_PI[[#This Row],[List 1]],Table_PI[[#This Row],[List 2]],Table_PI[[#This Row],[List 3]],Table_PI[[#This Row],[Size]],Table_PI[[#This Row],[Input 1]],Table_PI[[#This Row],[Input 2]],Table_PI[[#This Row],[Input 3]],Table_PI[[#This Row],[Input 4]],'Customer Information'!$AR$12,201,ROW())<>\"No Rebate\",MeasureCalc(Table_PI[[#This Row],[Hide:\nFormula Name]],Table_SummaryPI[[#This Row],[Quantity]],Table_PI[[#This Row],[List 1]],Table_PI[[#This Row],[List 2]],Table_PI[[#This Row],[List 3]],Table_PI[[#This Row],[Size]],Table_PI[[#This Row],[Input 1]],Table_PI[[#This Row],[Input 2]],Table_PI[[#This Row],[Input 3]],Table_PI[[#This Row],[Input 4]],'Customer Information'!$AR$12,201,ROW()),\"\"),\"\")","v":""}]
[{"$f":"Table_PI[[#This Row],[Line No.]]","v":""},{"$f":"IF(Table_SummaryPI[[#This Row],[MeassureCategory]]<>\"\",CONCATENATE(Table_SummaryPI[[#This Row],[MeassureCategory]],  \" - \", Table_SummaryPI[[#This Row],[ProposedMeasureCategory]],  \" - \", TEXT(Table_SummaryPI[[#This Row],[Size]],\"#,##0.00\"),\" \",Table_SummaryPI[[#This Row],[SizeUnit]]),\"\")","v":""},{"$f":"SUBSTITUTE(Table_PI[[#This Row],[Measure]],\"     \",\"\",1)","v":""},{"$f":"IF(Table_PI[[#This Row],[List 1]]<>\"\",Table_PI[[#This Row],[List 1]],\"\")","v":""},{"$f":"IF(Table_PI[[#This Row],[List 2]]<>\"\",Table_PI[[#This Row],[List 2]],\"\")","v":""},{"$f":"IF(Table_PI[[#This Row],[List 3]]<>\"\",Table_PI[[#This Row],[List 3]],\"\")","v":""},{"$f":"IF(Table_PI[[#This Row],[Manufacturer]]=\"\",\"\",Table_PI[[#This Row],[Manufacturer]])","v":""},{"$f":"IF(Table_PI[[#This Row],[Model Number]]=\"\",\"\",Table_PI[[#This Row],[Model Number]])","v":""},{"$f":"IF(Table_PI[[#This Row],[Serial Number(s)]]=\"\",\"\",Table_PI[[#This Row],[Serial Number(s)]])","v":""},null,{"$f":"IF(Table_PI[[#This Row],[Size]]=\"\",\"\",Table_PI[[#This Row],[Size]])","v":""},null,{"$f":"IFERROR(IF(AND(MeasureCalc(Table_PI[[#This Row],[Hide:\nFormula Name]],Table_SummaryPI[[#This Row],[Quantity]],Table_PI[[#This Row],[List 1]],Table_PI[[#This Row],[List 2]],Table_PI[[#This Row],[List 3]],Table_PI[[#This Row],[Size]],Table_PI[[#This Row],[Input 1]],Table_PI[[#This Row],[Input 2]],Table_PI[[#This Row],[Input 3]],Table_PI[[#This Row],[Input 4]],'Customer Information'!$AR$12,100,ROW())<>0,MeasureCalc(Table_PI[[#This Row],[Hide:\nFormula Name]],Table_SummaryPI[[#This Row],[Quantity]],Table_PI[[#This Row],[List 1]],Table_PI[[#This Row],[List 2]],Table_PI[[#This Row],[List 3]],Table_PI[[#This Row],[Size]],Table_PI[[#This Row],[Input 1]],Table_PI[[#This Row],[Input 2]],Table_PI[[#This Row],[Input 3]],Table_PI[[#This Row],[Input 4]],'Customer Information'!$AR$12,100,ROW())<>\"No Rebate\"),MeasureCalc(Table_PI[[#This Row],[Hide:\nFormula Name]],Table_SummaryPI[[#This Row],[Quantity]],Table_PI[[#This Row],[List 1]],Table_PI[[#This Row],[List 2]],Table_PI[[#This Row],[List 3]],Table_PI[[#This Row],[Size]],Table_PI[[#This Row],[Input 1]],Table_PI[[#This Row],[Input 2]],Table_PI[[#This Row],[Input 3]],Table_PI[[#This Row],[Input 4]],'Customer Information'!$AR$12,100,ROW()),\"\"),\"\")","v":""},{"$f":"IF(Table_PI[[#This Row],[Input 1]]<>\"\",Table_PI[[#This Row],[Input 1]],\"\")","v":""},null,{"$f":"IFERROR(IF(AND(MeasureCalc(Table_PI[[#This Row],[Hide:\nFormula Name]],Table_SummaryPI[[#This Row],[Quantity]],Table_PI[[#This Row],[List 1]],Table_PI[[#This Row],[List 2]],Table_PI[[#This Row],[List 3]],Table_PI[[#This Row],[Size]],Table_PI[[#This Row],[Input 1]],Table_PI[[#This Row],[Input 2]],Table_PI[[#This Row],[Input 3]],Table_PI[[#This Row],[Input 4]],'Customer Information'!$AR$12,101,ROW())<>0,MeasureCalc(Table_PI[[#This Row],[Hide:\nFormula Name]],Table_SummaryPI[[#This Row],[Quantity]],Table_PI[[#This Row],[List 1]],Table_PI[[#This Row],[List 2]],Table_PI[[#This Row],[List 3]],Table_PI[[#This Row],[Size]],Table_PI[[#This Row],[Input 1]],Table_PI[[#This Row],[Input 2]],Table_PI[[#This Row],[Input 3]],Table_PI[[#This Row],[Input 4]],'Customer Information'!$AR$12,101,ROW())<>\"No Rebate\"),MeasureCalc(Table_PI[[#This Row],[Hide:\nFormula Name]],Table_SummaryPI[[#This Row],[Quantity]],Table_PI[[#This Row],[List 1]],Table_PI[[#This Row],[List 2]],Table_PI[[#This Row],[List 3]],Table_PI[[#This Row],[Size]],Table_PI[[#This Row],[Input 1]],Table_PI[[#This Row],[Input 2]],Table_PI[[#This Row],[Input 3]],Table_PI[[#This Row],[Input 4]],'Customer Information'!$AR$12,101,ROW()),\"\"),\"\")","v":""},{"$f":"IF(Table_PI[[#This Row],[Input 2]]<>\"\",Table_PI[[#This Row],[Input 2]],\"\")","v":""},null,{"$f":"IFERROR(IF(AND(MeasureCalc(Table_PI[[#This Row],[Hide:\nFormula Name]],Table_SummaryPI[[#This Row],[Quantity]],Table_PI[[#This Row],[List 1]],Table_PI[[#This Row],[List 2]],Table_PI[[#This Row],[List 3]],Table_PI[[#This Row],[Size]],Table_PI[[#This Row],[Input 1]],Table_PI[[#This Row],[Input 2]],Table_PI[[#This Row],[Input 3]],Table_PI[[#This Row],[Input 4]],'Customer Information'!$AR$12,102,ROW())<>0,MeasureCalc(Table_PI[[#This Row],[Hide:\nFormula Name]],Table_SummaryPI[[#This Row],[Quantity]],Table_PI[[#This Row],[List 1]],Table_PI[[#This Row],[List 2]],Table_PI[[#This Row],[List 3]],Table_PI[[#This Row],[Size]],Table_PI[[#This Row],[Input 1]],Table_PI[[#This Row],[Input 2]],Table_PI[[#This Row],[Input 3]],Table_PI[[#This Row],[Input 4]],'Customer Information'!$AR$12,102,ROW())<>\"No Rebate\"),MeasureCalc(Table_PI[[#This Row],[Hide:\nFormula Name]],Table_SummaryPI[[#This Row],[Quantity]],Table_PI[[#This Row],[List 1]],Table_PI[[#This Row],[List 2]],Table_PI[[#This Row],[List 3]],Table_PI[[#This Row],[Size]],Table_PI[[#This Row],[Input 1]],Table_PI[[#This Row],[Input 2]],Table_PI[[#This Row],[Input 3]],Table_PI[[#This Row],[Input 4]],'Customer Information'!$AR$12,102,ROW()),\"\"),\"\")","v":""},{"$f":"IF(Table_PI[[#This Row],[Input 3]]<>\"\",Table_PI[[#This Row],[Input 3]],\"\")","v":""},null,{"$f":"IFERROR(IF(AND(MeasureCalc(Table_PI[[#This Row],[Hide:\nFormula Name]],Table_SummaryPI[[#This Row],[Quantity]],Table_PI[[#This Row],[List 1]],Table_PI[[#This Row],[List 2]],Table_PI[[#This Row],[List 3]],Table_PI[[#This Row],[Size]],Table_PI[[#This Row],[Input 1]],Table_PI[[#This Row],[Input 2]],Table_PI[[#This Row],[Input 3]],Table_PI[[#This Row],[Input 4]],'Customer Information'!$AR$12,103,ROW())<>0,MeasureCalc(Table_PI[[#This Row],[Hide:\nFormula Name]],Table_SummaryPI[[#This Row],[Quantity]],Table_PI[[#This Row],[List 1]],Table_PI[[#This Row],[List 2]],Table_PI[[#This Row],[List 3]],Table_PI[[#This Row],[Size]],Table_PI[[#This Row],[Input 1]],Table_PI[[#This Row],[Input 2]],Table_PI[[#This Row],[Input 3]],Table_PI[[#This Row],[Input 4]],'Customer Information'!$AR$12,103,ROW())<>\"No Rebate\"),MeasureCalc(Table_PI[[#This Row],[Hide:\nFormula Name]],Table_SummaryPI[[#This Row],[Quantity]],Table_PI[[#This Row],[List 1]],Table_PI[[#This Row],[List 2]],Table_PI[[#This Row],[List 3]],Table_PI[[#This Row],[Size]],Table_PI[[#This Row],[Input 1]],Table_PI[[#This Row],[Input 2]],Table_PI[[#This Row],[Input 3]],Table_PI[[#This Row],[Input 4]],'Customer Information'!$AR$12,103,ROW()),\"\"),\"\")","v":""},{"$f":"IF(Table_PI[[#This Row],[Input 4]]<>\"\",Table_PI[[#This Row],[Input 4]],\"\")","v":""},{"$f":"IF(Table_PI[[#This Row],[Quantity]]=\"\",\"\",Table_PI[[#This Row],[Quantity]])","v":""},{"$f":"IF(Table_PI[[#This Row],[Notes]]=\"\",\"\",Table_PI[[#This Row],[Notes]])","v":""},{"$f":"IF(OR(Table_PI[[#This Row],[Hide:\nBaseline kWh]]=\"\",Table_PI[[#This Row],[Hide:\nBaseline kWh]]=0),\"\",Table_PI[[#This Row],[Hide:\nBaseline kWh]])","v":""},{"$f":"IF(OR(Table_PI[[#This Row],[Hide:\nBaseline kW]]=\"\",Table_PI[[#This Row],[Hide:\nBaseline kW]]=0),\"\",Table_PI[[#This Row],[Hide:\nBaseline kW]])","v":""},{"$f":"IF(OR(Table_PI[[#This Row],[Hide:\nProposed kWh]]=\"\",Table_PI[[#This Row],[Hide:\nProposed kWh]]=0),\"\",Table_PI[[#This Row],[Hide:\nProposed kWh]])","v":""},{"$f":"IF(OR(Table_PI[[#This Row],[Hide:\nProposed kW]]=\"\",Table_PI[[#This Row],[Hide:\nProposed kW]]=0),\"\",Table_PI[[#This Row],[Hide:\nProposed kW]])","v":""},{"$f":"IF(OR(Table_PI[[#This Row],[Rebate]]=\"\",Table_PI[[#This Row],[Rebate]]=0),\"\",Table_PI[[#This Row],[Rebate]])","v":""},{"$f":"IF(OR(Table_PI[[#This Row],[Hide:\nIncremental Cost]]=\"\",Table_PI[[#This Row],[Hide:\nIncremental Cost]]=0),\"\",Table_PI[[#This Row],[Hide:\nIncremental Cost]])","v":""},{"$f":"IFERROR(IF(Table_SummaryPI[[#This Row],[kWhSavings]]=\"\",\"\",ROUND(Table_SummaryPI[[#This Row],[kWhSavings]]/$AG$401*'Customer Information'!$BC$17,2)),0)","v":""},{"$f":"IF(OR(Table_PI[[#This Row],[Annual kWh]]=\"\",Table_PI[[#This Row],[Annual kWh]]=0),\"\",Table_PI[[#This Row],[Annual kWh]])","v":""},{"$f":"IF(OR(Table_PI[[#This Row],[Peak kW]]=\"\",Table_PI[[#This Row],[Peak kW]]=0),\"\",Table_PI[[#This Row],[Peak kW]])","v":""},{"$f":"IFERROR(IF(Table_SummaryPI[[#This Row],[kWhSavings]]=\"\",\"\",$AU$9*Table_SummaryPI[[#This Row],[kWhSavings]]),0)","v":""},{"$f":"IFERROR(IF(Table_SummaryPI[[#This Row],[kWhSavings]]=\"\",\"\",$AU$14*Table_SummaryPI[[#This Row],[kWhSavings]]),0)","v":""},{"$f":"IFERROR(IF(Table_SummaryPI[[#This Row],[kWhSavings]]=\"\",\"\",$AU$18*Table_SummaryPI[[#This Row],[kWhSavings]]),0)","v":""},{"$f":"IFERROR(IF(Table_SummaryPI[[#This Row],[kWhSavings]]=\"\",\"\",$AU$22*Table_SummaryPI[[#This Row],[kWhSavings]]),0)","v":""},{"$f":"IFERROR(IF(MeasureCalc(Table_PI[[#This Row],[Hide:\nFormula Name]],Table_SummaryPI[[#This Row],[Quantity]],Table_PI[[#This Row],[List 1]],Table_PI[[#This Row],[List 2]],Table_PI[[#This Row],[List 3]],Table_PI[[#This Row],[Size]],Table_PI[[#This Row],[Input 1]],Table_PI[[#This Row],[Input 2]],Table_PI[[#This Row],[Input 3]],Table_PI[[#This Row],[Input 4]],'Customer Information'!$AR$12,200,ROW())<>\"No Rebate\",MeasureCalc(Table_PI[[#This Row],[Hide:\nFormula Name]],Table_SummaryPI[[#This Row],[Quantity]],Table_PI[[#This Row],[List 1]],Table_PI[[#This Row],[List 2]],Table_PI[[#This Row],[List 3]],Table_PI[[#This Row],[Size]],Table_PI[[#This Row],[Input 1]],Table_PI[[#This Row],[Input 2]],Table_PI[[#This Row],[Input 3]],Table_PI[[#This Row],[Input 4]],'Customer Information'!$AR$12,200,ROW()),\"\"),\"\")","v":""},{"$f":"IFERROR(IF(MeasureCalc(Table_PI[[#This Row],[Hide:\nFormula Name]],Table_SummaryPI[[#This Row],[Quantity]],Table_PI[[#This Row],[List 1]],Table_PI[[#This Row],[List 2]],Table_PI[[#This Row],[List 3]],Table_PI[[#This Row],[Size]],Table_PI[[#This Row],[Input 1]],Table_PI[[#This Row],[Input 2]],Table_PI[[#This Row],[Input 3]],Table_PI[[#This Row],[Input 4]],'Customer Information'!$AR$12,201,ROW())<>\"No Rebate\",MeasureCalc(Table_PI[[#This Row],[Hide:\nFormula Name]],Table_SummaryPI[[#This Row],[Quantity]],Table_PI[[#This Row],[List 1]],Table_PI[[#This Row],[List 2]],Table_PI[[#This Row],[List 3]],Table_PI[[#This Row],[Size]],Table_PI[[#This Row],[Input 1]],Table_PI[[#This Row],[Input 2]],Table_PI[[#This Row],[Input 3]],Table_PI[[#This Row],[Input 4]],'Customer Information'!$AR$12,201,ROW()),\"\"),\"\")","v":""}]
[{"$f":"Table_PI[[#This Row],[Line No.]]","v":""},{"$f":"IF(Table_SummaryPI[[#This Row],[MeassureCategory]]<>\"\",CONCATENATE(Table_SummaryPI[[#This Row],[MeassureCategory]],  \" - \", Table_SummaryPI[[#This Row],[ProposedMeasureCategory]],  \" - \", TEXT(Table_SummaryPI[[#This Row],[Size]],\"#,##0.00\"),\" \",Table_SummaryPI[[#This Row],[SizeUnit]]),\"\")","v":""},{"$f":"SUBSTITUTE(Table_PI[[#This Row],[Measure]],\"     \",\"\",1)","v":""},{"$f":"IF(Table_PI[[#This Row],[List 1]]<>\"\",Table_PI[[#This Row],[List 1]],\"\")","v":""},{"$f":"IF(Table_PI[[#This Row],[List 2]]<>\"\",Table_PI[[#This Row],[List 2]],\"\")","v":""},{"$f":"IF(Table_PI[[#This Row],[List 3]]<>\"\",Table_PI[[#This Row],[List 3]],\"\")","v":""},{"$f":"IF(Table_PI[[#This Row],[Manufacturer]]=\"\",\"\",Table_PI[[#This Row],[Manufacturer]])","v":""},{"$f":"IF(Table_PI[[#This Row],[Model Number]]=\"\",\"\",Table_PI[[#This Row],[Model Number]])","v":""},{"$f":"IF(Table_PI[[#This Row],[Serial Number(s)]]=\"\",\"\",Table_PI[[#This Row],[Serial Number(s)]])","v":""},null,{"$f":"IF(Table_PI[[#This Row],[Size]]=\"\",\"\",Table_PI[[#This Row],[Size]])","v":""},null,{"$f":"IFERROR(IF(AND(MeasureCalc(Table_PI[[#This Row],[Hide:\nFormula Name]],Table_SummaryPI[[#This Row],[Quantity]],Table_PI[[#This Row],[List 1]],Table_PI[[#This Row],[List 2]],Table_PI[[#This Row],[List 3]],Table_PI[[#This Row],[Size]],Table_PI[[#This Row],[Input 1]],Table_PI[[#This Row],[Input 2]],Table_PI[[#This Row],[Input 3]],Table_PI[[#This Row],[Input 4]],'Customer Information'!$AR$12,100,ROW())<>0,MeasureCalc(Table_PI[[#This Row],[Hide:\nFormula Name]],Table_SummaryPI[[#This Row],[Quantity]],Table_PI[[#This Row],[List 1]],Table_PI[[#This Row],[List 2]],Table_PI[[#This Row],[List 3]],Table_PI[[#This Row],[Size]],Table_PI[[#This Row],[Input 1]],Table_PI[[#This Row],[Input 2]],Table_PI[[#This Row],[Input 3]],Table_PI[[#This Row],[Input 4]],'Customer Information'!$AR$12,100,ROW())<>\"No Rebate\"),MeasureCalc(Table_PI[[#This Row],[Hide:\nFormula Name]],Table_SummaryPI[[#This Row],[Quantity]],Table_PI[[#This Row],[List 1]],Table_PI[[#This Row],[List 2]],Table_PI[[#This Row],[List 3]],Table_PI[[#This Row],[Size]],Table_PI[[#This Row],[Input 1]],Table_PI[[#This Row],[Input 2]],Table_PI[[#This Row],[Input 3]],Table_PI[[#This Row],[Input 4]],'Customer Information'!$AR$12,100,ROW()),\"\"),\"\")","v":""},{"$f":"IF(Table_PI[[#This Row],[Input 1]]<>\"\",Table_PI[[#This Row],[Input 1]],\"\")","v":""},null,{"$f":"IFERROR(IF(AND(MeasureCalc(Table_PI[[#This Row],[Hide:\nFormula Name]],Table_SummaryPI[[#This Row],[Quantity]],Table_PI[[#This Row],[List 1]],Table_PI[[#This Row],[List 2]],Table_PI[[#This Row],[List 3]],Table_PI[[#This Row],[Size]],Table_PI[[#This Row],[Input 1]],Table_PI[[#This Row],[Input 2]],Table_PI[[#This Row],[Input 3]],Table_PI[[#This Row],[Input 4]],'Customer Information'!$AR$12,101,ROW())<>0,MeasureCalc(Table_PI[[#This Row],[Hide:\nFormula Name]],Table_SummaryPI[[#This Row],[Quantity]],Table_PI[[#This Row],[List 1]],Table_PI[[#This Row],[List 2]],Table_PI[[#This Row],[List 3]],Table_PI[[#This Row],[Size]],Table_PI[[#This Row],[Input 1]],Table_PI[[#This Row],[Input 2]],Table_PI[[#This Row],[Input 3]],Table_PI[[#This Row],[Input 4]],'Customer Information'!$AR$12,101,ROW())<>\"No Rebate\"),MeasureCalc(Table_PI[[#This Row],[Hide:\nFormula Name]],Table_SummaryPI[[#This Row],[Quantity]],Table_PI[[#This Row],[List 1]],Table_PI[[#This Row],[List 2]],Table_PI[[#This Row],[List 3]],Table_PI[[#This Row],[Size]],Table_PI[[#This Row],[Input 1]],Table_PI[[#This Row],[Input 2]],Table_PI[[#This Row],[Input 3]],Table_PI[[#This Row],[Input 4]],'Customer Information'!$AR$12,101,ROW()),\"\"),\"\")","v":""},{"$f":"IF(Table_PI[[#This Row],[Input 2]]<>\"\",Table_PI[[#This Row],[Input 2]],\"\")","v":""},null,{"$f":"IFERROR(IF(AND(MeasureCalc(Table_PI[[#This Row],[Hide:\nFormula Name]],Table_SummaryPI[[#This Row],[Quantity]],Table_PI[[#This Row],[List 1]],Table_PI[[#This Row],[List 2]],Table_PI[[#This Row],[List 3]],Table_PI[[#This Row],[Size]],Table_PI[[#This Row],[Input 1]],Table_PI[[#This Row],[Input 2]],Table_PI[[#This Row],[Input 3]],Table_PI[[#This Row],[Input 4]],'Customer Information'!$AR$12,102,ROW())<>0,MeasureCalc(Table_PI[[#This Row],[Hide:\nFormula Name]],Table_SummaryPI[[#This Row],[Quantity]],Table_PI[[#This Row],[List 1]],Table_PI[[#This Row],[List 2]],Table_PI[[#This Row],[List 3]],Table_PI[[#This Row],[Size]],Table_PI[[#This Row],[Input 1]],Table_PI[[#This Row],[Input 2]],Table_PI[[#This Row],[Input 3]],Table_PI[[#This Row],[Input 4]],'Customer Information'!$AR$12,102,ROW())<>\"No Rebate\"),MeasureCalc(Table_PI[[#This Row],[Hide:\nFormula Name]],Table_SummaryPI[[#This Row],[Quantity]],Table_PI[[#This Row],[List 1]],Table_PI[[#This Row],[List 2]],Table_PI[[#This Row],[List 3]],Table_PI[[#This Row],[Size]],Table_PI[[#This Row],[Input 1]],Table_PI[[#This Row],[Input 2]],Table_PI[[#This Row],[Input 3]],Table_PI[[#This Row],[Input 4]],'Customer Information'!$AR$12,102,ROW()),\"\"),\"\")","v":""},{"$f":"IF(Table_PI[[#This Row],[Input 3]]<>\"\",Table_PI[[#This Row],[Input 3]],\"\")","v":""},null,{"$f":"IFERROR(IF(AND(MeasureCalc(Table_PI[[#This Row],[Hide:\nFormula Name]],Table_SummaryPI[[#This Row],[Quantity]],Table_PI[[#This Row],[List 1]],Table_PI[[#This Row],[List 2]],Table_PI[[#This Row],[List 3]],Table_PI[[#This Row],[Size]],Table_PI[[#This Row],[Input 1]],Table_PI[[#This Row],[Input 2]],Table_PI[[#This Row],[Input 3]],Table_PI[[#This Row],[Input 4]],'Customer Information'!$AR$12,103,ROW())<>0,MeasureCalc(Table_PI[[#This Row],[Hide:\nFormula Name]],Table_SummaryPI[[#This Row],[Quantity]],Table_PI[[#This Row],[List 1]],Table_PI[[#This Row],[List 2]],Table_PI[[#This Row],[List 3]],Table_PI[[#This Row],[Size]],Table_PI[[#This Row],[Input 1]],Table_PI[[#This Row],[Input 2]],Table_PI[[#This Row],[Input 3]],Table_PI[[#This Row],[Input 4]],'Customer Information'!$AR$12,103,ROW())<>\"No Rebate\"),MeasureCalc(Table_PI[[#This Row],[Hide:\nFormula Name]],Table_SummaryPI[[#This Row],[Quantity]],Table_PI[[#This Row],[List 1]],Table_PI[[#This Row],[List 2]],Table_PI[[#This Row],[List 3]],Table_PI[[#This Row],[Size]],Table_PI[[#This Row],[Input 1]],Table_PI[[#This Row],[Input 2]],Table_PI[[#This Row],[Input 3]],Table_PI[[#This Row],[Input 4]],'Customer Information'!$AR$12,103,ROW()),\"\"),\"\")","v":""},{"$f":"IF(Table_PI[[#This Row],[Input 4]]<>\"\",Table_PI[[#This Row],[Input 4]],\"\")","v":""},{"$f":"IF(Table_PI[[#This Row],[Quantity]]=\"\",\"\",Table_PI[[#This Row],[Quantity]])","v":""},{"$f":"IF(Table_PI[[#This Row],[Notes]]=\"\",\"\",Table_PI[[#This Row],[Notes]])","v":""},{"$f":"IF(OR(Table_PI[[#This Row],[Hide:\nBaseline kWh]]=\"\",Table_PI[[#This Row],[Hide:\nBaseline kWh]]=0),\"\",Table_PI[[#This Row],[Hide:\nBaseline kWh]])","v":""},{"$f":"IF(OR(Table_PI[[#This Row],[Hide:\nBaseline kW]]=\"\",Table_PI[[#This Row],[Hide:\nBaseline kW]]=0),\"\",Table_PI[[#This Row],[Hide:\nBaseline kW]])","v":""},{"$f":"IF(OR(Table_PI[[#This Row],[Hide:\nProposed kWh]]=\"\",Table_PI[[#This Row],[Hide:\nProposed kWh]]=0),\"\",Table_PI[[#This Row],[Hide:\nProposed kWh]])","v":""},{"$f":"IF(OR(Table_PI[[#This Row],[Hide:\nProposed kW]]=\"\",Table_PI[[#This Row],[Hide:\nProposed kW]]=0),\"\",Table_PI[[#This Row],[Hide:\nProposed kW]])","v":""},{"$f":"IF(OR(Table_PI[[#This Row],[Rebate]]=\"\",Table_PI[[#This Row],[Rebate]]=0),\"\",Table_PI[[#This Row],[Rebate]])","v":""},{"$f":"IF(OR(Table_PI[[#This Row],[Hide:\nIncremental Cost]]=\"\",Table_PI[[#This Row],[Hide:\nIncremental Cost]]=0),\"\",Table_PI[[#This Row],[Hide:\nIncremental Cost]])","v":""},{"$f":"IFERROR(IF(Table_SummaryPI[[#This Row],[kWhSavings]]=\"\",\"\",ROUND(Table_SummaryPI[[#This Row],[kWhSavings]]/$AG$401*'Customer Information'!$BC$17,2)),0)","v":""},{"$f":"IF(OR(Table_PI[[#This Row],[Annual kWh]]=\"\",Table_PI[[#This Row],[Annual kWh]]=0),\"\",Table_PI[[#This Row],[Annual kWh]])","v":""},{"$f":"IF(OR(Table_PI[[#This Row],[Peak kW]]=\"\",Table_PI[[#This Row],[Peak kW]]=0),\"\",Table_PI[[#This Row],[Peak kW]])","v":""},{"$f":"IFERROR(IF(Table_SummaryPI[[#This Row],[kWhSavings]]=\"\",\"\",$AU$9*Table_SummaryPI[[#This Row],[kWhSavings]]),0)","v":""},{"$f":"IFERROR(IF(Table_SummaryPI[[#This Row],[kWhSavings]]=\"\",\"\",$AU$14*Table_SummaryPI[[#This Row],[kWhSavings]]),0)","v":""},{"$f":"IFERROR(IF(Table_SummaryPI[[#This Row],[kWhSavings]]=\"\",\"\",$AU$18*Table_SummaryPI[[#This Row],[kWhSavings]]),0)","v":""},{"$f":"IFERROR(IF(Table_SummaryPI[[#This Row],[kWhSavings]]=\"\",\"\",$AU$22*Table_SummaryPI[[#This Row],[kWhSavings]]),0)","v":""},{"$f":"IFERROR(IF(MeasureCalc(Table_PI[[#This Row],[Hide:\nFormula Name]],Table_SummaryPI[[#This Row],[Quantity]],Table_PI[[#This Row],[List 1]],Table_PI[[#This Row],[List 2]],Table_PI[[#This Row],[List 3]],Table_PI[[#This Row],[Size]],Table_PI[[#This Row],[Input 1]],Table_PI[[#This Row],[Input 2]],Table_PI[[#This Row],[Input 3]],Table_PI[[#This Row],[Input 4]],'Customer Information'!$AR$12,200,ROW())<>\"No Rebate\",MeasureCalc(Table_PI[[#This Row],[Hide:\nFormula Name]],Table_SummaryPI[[#This Row],[Quantity]],Table_PI[[#This Row],[List 1]],Table_PI[[#This Row],[List 2]],Table_PI[[#This Row],[List 3]],Table_PI[[#This Row],[Size]],Table_PI[[#This Row],[Input 1]],Table_PI[[#This Row],[Input 2]],Table_PI[[#This Row],[Input 3]],Table_PI[[#This Row],[Input 4]],'Customer Information'!$AR$12,200,ROW()),\"\"),\"\")","v":""},{"$f":"IFERROR(IF(MeasureCalc(Table_PI[[#This Row],[Hide:\nFormula Name]],Table_SummaryPI[[#This Row],[Quantity]],Table_PI[[#This Row],[List 1]],Table_PI[[#This Row],[List 2]],Table_PI[[#This Row],[List 3]],Table_PI[[#This Row],[Size]],Table_PI[[#This Row],[Input 1]],Table_PI[[#This Row],[Input 2]],Table_PI[[#This Row],[Input 3]],Table_PI[[#This Row],[Input 4]],'Customer Information'!$AR$12,201,ROW())<>\"No Rebate\",MeasureCalc(Table_PI[[#This Row],[Hide:\nFormula Name]],Table_SummaryPI[[#This Row],[Quantity]],Table_PI[[#This Row],[List 1]],Table_PI[[#This Row],[List 2]],Table_PI[[#This Row],[List 3]],Table_PI[[#This Row],[Size]],Table_PI[[#This Row],[Input 1]],Table_PI[[#This Row],[Input 2]],Table_PI[[#This Row],[Input 3]],Table_PI[[#This Row],[Input 4]],'Customer Information'!$AR$12,201,ROW()),\"\"),\"\")","v":""}]
[{"$f":"Table_PI[[#This Row],[Line No.]]","v":""},{"$f":"IF(Table_SummaryPI[[#This Row],[MeassureCategory]]<>\"\",CONCATENATE(Table_SummaryPI[[#This Row],[MeassureCategory]],  \" - \", Table_SummaryPI[[#This Row],[ProposedMeasureCategory]],  \" - \", TEXT(Table_SummaryPI[[#This Row],[Size]],\"#,##0.00\"),\" \",Table_SummaryPI[[#This Row],[SizeUnit]]),\"\")","v":""},{"$f":"SUBSTITUTE(Table_PI[[#This Row],[Measure]],\"     \",\"\",1)","v":""},{"$f":"IF(Table_PI[[#This Row],[List 1]]<>\"\",Table_PI[[#This Row],[List 1]],\"\")","v":""},{"$f":"IF(Table_PI[[#This Row],[List 2]]<>\"\",Table_PI[[#This Row],[List 2]],\"\")","v":""},{"$f":"IF(Table_PI[[#This Row],[List 3]]<>\"\",Table_PI[[#This Row],[List 3]],\"\")","v":""},{"$f":"IF(Table_PI[[#This Row],[Manufacturer]]=\"\",\"\",Table_PI[[#This Row],[Manufacturer]])","v":""},{"$f":"IF(Table_PI[[#This Row],[Model Number]]=\"\",\"\",Table_PI[[#This Row],[Model Number]])","v":""},{"$f":"IF(Table_PI[[#This Row],[Serial Number(s)]]=\"\",\"\",Table_PI[[#This Row],[Serial Number(s)]])","v":""},null,{"$f":"IF(Table_PI[[#This Row],[Size]]=\"\",\"\",Table_PI[[#This Row],[Size]])","v":""},null,{"$f":"IFERROR(IF(AND(MeasureCalc(Table_PI[[#This Row],[Hide:\nFormula Name]],Table_SummaryPI[[#This Row],[Quantity]],Table_PI[[#This Row],[List 1]],Table_PI[[#This Row],[List 2]],Table_PI[[#This Row],[List 3]],Table_PI[[#This Row],[Size]],Table_PI[[#This Row],[Input 1]],Table_PI[[#This Row],[Input 2]],Table_PI[[#This Row],[Input 3]],Table_PI[[#This Row],[Input 4]],'Customer Information'!$AR$12,100,ROW())<>0,MeasureCalc(Table_PI[[#This Row],[Hide:\nFormula Name]],Table_SummaryPI[[#This Row],[Quantity]],Table_PI[[#This Row],[List 1]],Table_PI[[#This Row],[List 2]],Table_PI[[#This Row],[List 3]],Table_PI[[#This Row],[Size]],Table_PI[[#This Row],[Input 1]],Table_PI[[#This Row],[Input 2]],Table_PI[[#This Row],[Input 3]],Table_PI[[#This Row],[Input 4]],'Customer Information'!$AR$12,100,ROW())<>\"No Rebate\"),MeasureCalc(Table_PI[[#This Row],[Hide:\nFormula Name]],Table_SummaryPI[[#This Row],[Quantity]],Table_PI[[#This Row],[List 1]],Table_PI[[#This Row],[List 2]],Table_PI[[#This Row],[List 3]],Table_PI[[#This Row],[Size]],Table_PI[[#This Row],[Input 1]],Table_PI[[#This Row],[Input 2]],Table_PI[[#This Row],[Input 3]],Table_PI[[#This Row],[Input 4]],'Customer Information'!$AR$12,100,ROW()),\"\"),\"\")","v":""},{"$f":"IF(Table_PI[[#This Row],[Input 1]]<>\"\",Table_PI[[#This Row],[Input 1]],\"\")","v":""},null,{"$f":"IFERROR(IF(AND(MeasureCalc(Table_PI[[#This Row],[Hide:\nFormula Name]],Table_SummaryPI[[#This Row],[Quantity]],Table_PI[[#This Row],[List 1]],Table_PI[[#This Row],[List 2]],Table_PI[[#This Row],[List 3]],Table_PI[[#This Row],[Size]],Table_PI[[#This Row],[Input 1]],Table_PI[[#This Row],[Input 2]],Table_PI[[#This Row],[Input 3]],Table_PI[[#This Row],[Input 4]],'Customer Information'!$AR$12,101,ROW())<>0,MeasureCalc(Table_PI[[#This Row],[Hide:\nFormula Name]],Table_SummaryPI[[#This Row],[Quantity]],Table_PI[[#This Row],[List 1]],Table_PI[[#This Row],[List 2]],Table_PI[[#This Row],[List 3]],Table_PI[[#This Row],[Size]],Table_PI[[#This Row],[Input 1]],Table_PI[[#This Row],[Input 2]],Table_PI[[#This Row],[Input 3]],Table_PI[[#This Row],[Input 4]],'Customer Information'!$AR$12,101,ROW())<>\"No Rebate\"),MeasureCalc(Table_PI[[#This Row],[Hide:\nFormula Name]],Table_SummaryPI[[#This Row],[Quantity]],Table_PI[[#This Row],[List 1]],Table_PI[[#This Row],[List 2]],Table_PI[[#This Row],[List 3]],Table_PI[[#This Row],[Size]],Table_PI[[#This Row],[Input 1]],Table_PI[[#This Row],[Input 2]],Table_PI[[#This Row],[Input 3]],Table_PI[[#This Row],[Input 4]],'Customer Information'!$AR$12,101,ROW()),\"\"),\"\")","v":""},{"$f":"IF(Table_PI[[#This Row],[Input 2]]<>\"\",Table_PI[[#This Row],[Input 2]],\"\")","v":""},null,{"$f":"IFERROR(IF(AND(MeasureCalc(Table_PI[[#This Row],[Hide:\nFormula Name]],Table_SummaryPI[[#This Row],[Quantity]],Table_PI[[#This Row],[List 1]],Table_PI[[#This Row],[List 2]],Table_PI[[#This Row],[List 3]],Table_PI[[#This Row],[Size]],Table_PI[[#This Row],[Input 1]],Table_PI[[#This Row],[Input 2]],Table_PI[[#This Row],[Input 3]],Table_PI[[#This Row],[Input 4]],'Customer Information'!$AR$12,102,ROW())<>0,MeasureCalc(Table_PI[[#This Row],[Hide:\nFormula Name]],Table_SummaryPI[[#This Row],[Quantity]],Table_PI[[#This Row],[List 1]],Table_PI[[#This Row],[List 2]],Table_PI[[#This Row],[List 3]],Table_PI[[#This Row],[Size]],Table_PI[[#This Row],[Input 1]],Table_PI[[#This Row],[Input 2]],Table_PI[[#This Row],[Input 3]],Table_PI[[#This Row],[Input 4]],'Customer Information'!$AR$12,102,ROW())<>\"No Rebate\"),MeasureCalc(Table_PI[[#This Row],[Hide:\nFormula Name]],Table_SummaryPI[[#This Row],[Quantity]],Table_PI[[#This Row],[List 1]],Table_PI[[#This Row],[List 2]],Table_PI[[#This Row],[List 3]],Table_PI[[#This Row],[Size]],Table_PI[[#This Row],[Input 1]],Table_PI[[#This Row],[Input 2]],Table_PI[[#This Row],[Input 3]],Table_PI[[#This Row],[Input 4]],'Customer Information'!$AR$12,102,ROW()),\"\"),\"\")","v":""},{"$f":"IF(Table_PI[[#This Row],[Input 3]]<>\"\",Table_PI[[#This Row],[Input 3]],\"\")","v":""},null,{"$f":"IFERROR(IF(AND(MeasureCalc(Table_PI[[#This Row],[Hide:\nFormula Name]],Table_SummaryPI[[#This Row],[Quantity]],Table_PI[[#This Row],[List 1]],Table_PI[[#This Row],[List 2]],Table_PI[[#This Row],[List 3]],Table_PI[[#This Row],[Size]],Table_PI[[#This Row],[Input 1]],Table_PI[[#This Row],[Input 2]],Table_PI[[#This Row],[Input 3]],Table_PI[[#This Row],[Input 4]],'Customer Information'!$AR$12,103,ROW())<>0,MeasureCalc(Table_PI[[#This Row],[Hide:\nFormula Name]],Table_SummaryPI[[#This Row],[Quantity]],Table_PI[[#This Row],[List 1]],Table_PI[[#This Row],[List 2]],Table_PI[[#This Row],[List 3]],Table_PI[[#This Row],[Size]],Table_PI[[#This Row],[Input 1]],Table_PI[[#This Row],[Input 2]],Table_PI[[#This Row],[Input 3]],Table_PI[[#This Row],[Input 4]],'Customer Information'!$AR$12,103,ROW())<>\"No Rebate\"),MeasureCalc(Table_PI[[#This Row],[Hide:\nFormula Name]],Table_SummaryPI[[#This Row],[Quantity]],Table_PI[[#This Row],[List 1]],Table_PI[[#This Row],[List 2]],Table_PI[[#This Row],[List 3]],Table_PI[[#This Row],[Size]],Table_PI[[#This Row],[Input 1]],Table_PI[[#This Row],[Input 2]],Table_PI[[#This Row],[Input 3]],Table_PI[[#This Row],[Input 4]],'Customer Information'!$AR$12,103,ROW()),\"\"),\"\")","v":""},{"$f":"IF(Table_PI[[#This Row],[Input 4]]<>\"\",Table_PI[[#This Row],[Input 4]],\"\")","v":""},{"$f":"IF(Table_PI[[#This Row],[Quantity]]=\"\",\"\",Table_PI[[#This Row],[Quantity]])","v":""},{"$f":"IF(Table_PI[[#This Row],[Notes]]=\"\",\"\",Table_PI[[#This Row],[Notes]])","v":""},{"$f":"IF(OR(Table_PI[[#This Row],[Hide:\nBaseline kWh]]=\"\",Table_PI[[#This Row],[Hide:\nBaseline kWh]]=0),\"\",Table_PI[[#This Row],[Hide:\nBaseline kWh]])","v":""},{"$f":"IF(OR(Table_PI[[#This Row],[Hide:\nBaseline kW]]=\"\",Table_PI[[#This Row],[Hide:\nBaseline kW]]=0),\"\",Table_PI[[#This Row],[Hide:\nBaseline kW]])","v":""},{"$f":"IF(OR(Table_PI[[#This Row],[Hide:\nProposed kWh]]=\"\",Table_PI[[#This Row],[Hide:\nProposed kWh]]=0),\"\",Table_PI[[#This Row],[Hide:\nProposed kWh]])","v":""},{"$f":"IF(OR(Table_PI[[#This Row],[Hide:\nProposed kW]]=\"\",Table_PI[[#This Row],[Hide:\nProposed kW]]=0),\"\",Table_PI[[#This Row],[Hide:\nProposed kW]])","v":""},{"$f":"IF(OR(Table_PI[[#This Row],[Rebate]]=\"\",Table_PI[[#This Row],[Rebate]]=0),\"\",Table_PI[[#This Row],[Rebate]])","v":""},{"$f":"IF(OR(Table_PI[[#This Row],[Hide:\nIncremental Cost]]=\"\",Table_PI[[#This Row],[Hide:\nIncremental Cost]]=0),\"\",Table_PI[[#This Row],[Hide:\nIncremental Cost]])","v":""},{"$f":"IFERROR(IF(Table_SummaryPI[[#This Row],[kWhSavings]]=\"\",\"\",ROUND(Table_SummaryPI[[#This Row],[kWhSavings]]/$AG$401*'Customer Information'!$BC$17,2)),0)","v":""},{"$f":"IF(OR(Table_PI[[#This Row],[Annual kWh]]=\"\",Table_PI[[#This Row],[Annual kWh]]=0),\"\",Table_PI[[#This Row],[Annual kWh]])","v":""},{"$f":"IF(OR(Table_PI[[#This Row],[Peak kW]]=\"\",Table_PI[[#This Row],[Peak kW]]=0),\"\",Table_PI[[#This Row],[Peak kW]])","v":""},{"$f":"IFERROR(IF(Table_SummaryPI[[#This Row],[kWhSavings]]=\"\",\"\",$AU$9*Table_SummaryPI[[#This Row],[kWhSavings]]),0)","v":""},{"$f":"IFERROR(IF(Table_SummaryPI[[#This Row],[kWhSavings]]=\"\",\"\",$AU$14*Table_SummaryPI[[#This Row],[kWhSavings]]),0)","v":""},{"$f":"IFERROR(IF(Table_SummaryPI[[#This Row],[kWhSavings]]=\"\",\"\",$AU$18*Table_SummaryPI[[#This Row],[kWhSavings]]),0)","v":""},{"$f":"IFERROR(IF(Table_SummaryPI[[#This Row],[kWhSavings]]=\"\",\"\",$AU$22*Table_SummaryPI[[#This Row],[kWhSavings]]),0)","v":""},{"$f":"IFERROR(IF(MeasureCalc(Table_PI[[#This Row],[Hide:\nFormula Name]],Table_SummaryPI[[#This Row],[Quantity]],Table_PI[[#This Row],[List 1]],Table_PI[[#This Row],[List 2]],Table_PI[[#This Row],[List 3]],Table_PI[[#This Row],[Size]],Table_PI[[#This Row],[Input 1]],Table_PI[[#This Row],[Input 2]],Table_PI[[#This Row],[Input 3]],Table_PI[[#This Row],[Input 4]],'Customer Information'!$AR$12,200,ROW())<>\"No Rebate\",MeasureCalc(Table_PI[[#This Row],[Hide:\nFormula Name]],Table_SummaryPI[[#This Row],[Quantity]],Table_PI[[#This Row],[List 1]],Table_PI[[#This Row],[List 2]],Table_PI[[#This Row],[List 3]],Table_PI[[#This Row],[Size]],Table_PI[[#This Row],[Input 1]],Table_PI[[#This Row],[Input 2]],Table_PI[[#This Row],[Input 3]],Table_PI[[#This Row],[Input 4]],'Customer Information'!$AR$12,200,ROW()),\"\"),\"\")","v":""},{"$f":"IFERROR(IF(MeasureCalc(Table_PI[[#This Row],[Hide:\nFormula Name]],Table_SummaryPI[[#This Row],[Quantity]],Table_PI[[#This Row],[List 1]],Table_PI[[#This Row],[List 2]],Table_PI[[#This Row],[List 3]],Table_PI[[#This Row],[Size]],Table_PI[[#This Row],[Input 1]],Table_PI[[#This Row],[Input 2]],Table_PI[[#This Row],[Input 3]],Table_PI[[#This Row],[Input 4]],'Customer Information'!$AR$12,201,ROW())<>\"No Rebate\",MeasureCalc(Table_PI[[#This Row],[Hide:\nFormula Name]],Table_SummaryPI[[#This Row],[Quantity]],Table_PI[[#This Row],[List 1]],Table_PI[[#This Row],[List 2]],Table_PI[[#This Row],[List 3]],Table_PI[[#This Row],[Size]],Table_PI[[#This Row],[Input 1]],Table_PI[[#This Row],[Input 2]],Table_PI[[#This Row],[Input 3]],Table_PI[[#This Row],[Input 4]],'Customer Information'!$AR$12,201,ROW()),\"\"),\"\")","v":""}]
[{"$f":"Table_PI[[#This Row],[Line No.]]","v":""},{"$f":"IF(Table_SummaryPI[[#This Row],[MeassureCategory]]<>\"\",CONCATENATE(Table_SummaryPI[[#This Row],[MeassureCategory]],  \" - \", Table_SummaryPI[[#This Row],[ProposedMeasureCategory]],  \" - \", TEXT(Table_SummaryPI[[#This Row],[Size]],\"#,##0.00\"),\" \",Table_SummaryPI[[#This Row],[SizeUnit]]),\"\")","v":""},{"$f":"SUBSTITUTE(Table_PI[[#This Row],[Measure]],\"     \",\"\",1)","v":""},{"$f":"IF(Table_PI[[#This Row],[List 1]]<>\"\",Table_PI[[#This Row],[List 1]],\"\")","v":""},{"$f":"IF(Table_PI[[#This Row],[List 2]]<>\"\",Table_PI[[#This Row],[List 2]],\"\")","v":""},{"$f":"IF(Table_PI[[#This Row],[List 3]]<>\"\",Table_PI[[#This Row],[List 3]],\"\")","v":""},{"$f":"IF(Table_PI[[#This Row],[Manufacturer]]=\"\",\"\",Table_PI[[#This Row],[Manufacturer]])","v":""},{"$f":"IF(Table_PI[[#This Row],[Model Number]]=\"\",\"\",Table_PI[[#This Row],[Model Number]])","v":""},{"$f":"IF(Table_PI[[#This Row],[Serial Number(s)]]=\"\",\"\",Table_PI[[#This Row],[Serial Number(s)]])","v":""},null,{"$f":"IF(Table_PI[[#This Row],[Size]]=\"\",\"\",Table_PI[[#This Row],[Size]])","v":""},null,{"$f":"IFERROR(IF(AND(MeasureCalc(Table_PI[[#This Row],[Hide:\nFormula Name]],Table_SummaryPI[[#This Row],[Quantity]],Table_PI[[#This Row],[List 1]],Table_PI[[#This Row],[List 2]],Table_PI[[#This Row],[List 3]],Table_PI[[#This Row],[Size]],Table_PI[[#This Row],[Input 1]],Table_PI[[#This Row],[Input 2]],Table_PI[[#This Row],[Input 3]],Table_PI[[#This Row],[Input 4]],'Customer Information'!$AR$12,100,ROW())<>0,MeasureCalc(Table_PI[[#This Row],[Hide:\nFormula Name]],Table_SummaryPI[[#This Row],[Quantity]],Table_PI[[#This Row],[List 1]],Table_PI[[#This Row],[List 2]],Table_PI[[#This Row],[List 3]],Table_PI[[#This Row],[Size]],Table_PI[[#This Row],[Input 1]],Table_PI[[#This Row],[Input 2]],Table_PI[[#This Row],[Input 3]],Table_PI[[#This Row],[Input 4]],'Customer Information'!$AR$12,100,ROW())<>\"No Rebate\"),MeasureCalc(Table_PI[[#This Row],[Hide:\nFormula Name]],Table_SummaryPI[[#This Row],[Quantity]],Table_PI[[#This Row],[List 1]],Table_PI[[#This Row],[List 2]],Table_PI[[#This Row],[List 3]],Table_PI[[#This Row],[Size]],Table_PI[[#This Row],[Input 1]],Table_PI[[#This Row],[Input 2]],Table_PI[[#This Row],[Input 3]],Table_PI[[#This Row],[Input 4]],'Customer Information'!$AR$12,100,ROW()),\"\"),\"\")","v":""},{"$f":"IF(Table_PI[[#This Row],[Input 1]]<>\"\",Table_PI[[#This Row],[Input 1]],\"\")","v":""},null,{"$f":"IFERROR(IF(AND(MeasureCalc(Table_PI[[#This Row],[Hide:\nFormula Name]],Table_SummaryPI[[#This Row],[Quantity]],Table_PI[[#This Row],[List 1]],Table_PI[[#This Row],[List 2]],Table_PI[[#This Row],[List 3]],Table_PI[[#This Row],[Size]],Table_PI[[#This Row],[Input 1]],Table_PI[[#This Row],[Input 2]],Table_PI[[#This Row],[Input 3]],Table_PI[[#This Row],[Input 4]],'Customer Information'!$AR$12,101,ROW())<>0,MeasureCalc(Table_PI[[#This Row],[Hide:\nFormula Name]],Table_SummaryPI[[#This Row],[Quantity]],Table_PI[[#This Row],[List 1]],Table_PI[[#This Row],[List 2]],Table_PI[[#This Row],[List 3]],Table_PI[[#This Row],[Size]],Table_PI[[#This Row],[Input 1]],Table_PI[[#This Row],[Input 2]],Table_PI[[#This Row],[Input 3]],Table_PI[[#This Row],[Input 4]],'Customer Information'!$AR$12,101,ROW())<>\"No Rebate\"),MeasureCalc(Table_PI[[#This Row],[Hide:\nFormula Name]],Table_SummaryPI[[#This Row],[Quantity]],Table_PI[[#This Row],[List 1]],Table_PI[[#This Row],[List 2]],Table_PI[[#This Row],[List 3]],Table_PI[[#This Row],[Size]],Table_PI[[#This Row],[Input 1]],Table_PI[[#This Row],[Input 2]],Table_PI[[#This Row],[Input 3]],Table_PI[[#This Row],[Input 4]],'Customer Information'!$AR$12,101,ROW()),\"\"),\"\")","v":""},{"$f":"IF(Table_PI[[#This Row],[Input 2]]<>\"\",Table_PI[[#This Row],[Input 2]],\"\")","v":""},null,{"$f":"IFERROR(IF(AND(MeasureCalc(Table_PI[[#This Row],[Hide:\nFormula Name]],Table_SummaryPI[[#This Row],[Quantity]],Table_PI[[#This Row],[List 1]],Table_PI[[#This Row],[List 2]],Table_PI[[#This Row],[List 3]],Table_PI[[#This Row],[Size]],Table_PI[[#This Row],[Input 1]],Table_PI[[#This Row],[Input 2]],Table_PI[[#This Row],[Input 3]],Table_PI[[#This Row],[Input 4]],'Customer Information'!$AR$12,102,ROW())<>0,MeasureCalc(Table_PI[[#This Row],[Hide:\nFormula Name]],Table_SummaryPI[[#This Row],[Quantity]],Table_PI[[#This Row],[List 1]],Table_PI[[#This Row],[List 2]],Table_PI[[#This Row],[List 3]],Table_PI[[#This Row],[Size]],Table_PI[[#This Row],[Input 1]],Table_PI[[#This Row],[Input 2]],Table_PI[[#This Row],[Input 3]],Table_PI[[#This Row],[Input 4]],'Customer Information'!$AR$12,102,ROW())<>\"No Rebate\"),MeasureCalc(Table_PI[[#This Row],[Hide:\nFormula Name]],Table_SummaryPI[[#This Row],[Quantity]],Table_PI[[#This Row],[List 1]],Table_PI[[#This Row],[List 2]],Table_PI[[#This Row],[List 3]],Table_PI[[#This Row],[Size]],Table_PI[[#This Row],[Input 1]],Table_PI[[#This Row],[Input 2]],Table_PI[[#This Row],[Input 3]],Table_PI[[#This Row],[Input 4]],'Customer Information'!$AR$12,102,ROW()),\"\"),\"\")","v":""},{"$f":"IF(Table_PI[[#This Row],[Input 3]]<>\"\",Table_PI[[#This Row],[Input 3]],\"\")","v":""},null,{"$f":"IFERROR(IF(AND(MeasureCalc(Table_PI[[#This Row],[Hide:\nFormula Name]],Table_SummaryPI[[#This Row],[Quantity]],Table_PI[[#This Row],[List 1]],Table_PI[[#This Row],[List 2]],Table_PI[[#This Row],[List 3]],Table_PI[[#This Row],[Size]],Table_PI[[#This Row],[Input 1]],Table_PI[[#This Row],[Input 2]],Table_PI[[#This Row],[Input 3]],Table_PI[[#This Row],[Input 4]],'Customer Information'!$AR$12,103,ROW())<>0,MeasureCalc(Table_PI[[#This Row],[Hide:\nFormula Name]],Table_SummaryPI[[#This Row],[Quantity]],Table_PI[[#This Row],[List 1]],Table_PI[[#This Row],[List 2]],Table_PI[[#This Row],[List 3]],Table_PI[[#This Row],[Size]],Table_PI[[#This Row],[Input 1]],Table_PI[[#This Row],[Input 2]],Table_PI[[#This Row],[Input 3]],Table_PI[[#This Row],[Input 4]],'Customer Information'!$AR$12,103,ROW())<>\"No Rebate\"),MeasureCalc(Table_PI[[#This Row],[Hide:\nFormula Name]],Table_SummaryPI[[#This Row],[Quantity]],Table_PI[[#This Row],[List 1]],Table_PI[[#This Row],[List 2]],Table_PI[[#This Row],[List 3]],Table_PI[[#This Row],[Size]],Table_PI[[#This Row],[Input 1]],Table_PI[[#This Row],[Input 2]],Table_PI[[#This Row],[Input 3]],Table_PI[[#This Row],[Input 4]],'Customer Information'!$AR$12,103,ROW()),\"\"),\"\")","v":""},{"$f":"IF(Table_PI[[#This Row],[Input 4]]<>\"\",Table_PI[[#This Row],[Input 4]],\"\")","v":""},{"$f":"IF(Table_PI[[#This Row],[Quantity]]=\"\",\"\",Table_PI[[#This Row],[Quantity]])","v":""},{"$f":"IF(Table_PI[[#This Row],[Notes]]=\"\",\"\",Table_PI[[#This Row],[Notes]])","v":""},{"$f":"IF(OR(Table_PI[[#This Row],[Hide:\nBaseline kWh]]=\"\",Table_PI[[#This Row],[Hide:\nBaseline kWh]]=0),\"\",Table_PI[[#This Row],[Hide:\nBaseline kWh]])","v":""},{"$f":"IF(OR(Table_PI[[#This Row],[Hide:\nBaseline kW]]=\"\",Table_PI[[#This Row],[Hide:\nBaseline kW]]=0),\"\",Table_PI[[#This Row],[Hide:\nBaseline kW]])","v":""},{"$f":"IF(OR(Table_PI[[#This Row],[Hide:\nProposed kWh]]=\"\",Table_PI[[#This Row],[Hide:\nProposed kWh]]=0),\"\",Table_PI[[#This Row],[Hide:\nProposed kWh]])","v":""},{"$f":"IF(OR(Table_PI[[#This Row],[Hide:\nProposed kW]]=\"\",Table_PI[[#This Row],[Hide:\nProposed kW]]=0),\"\",Table_PI[[#This Row],[Hide:\nProposed kW]])","v":""},{"$f":"IF(OR(Table_PI[[#This Row],[Rebate]]=\"\",Table_PI[[#This Row],[Rebate]]=0),\"\",Table_PI[[#This Row],[Rebate]])","v":""},{"$f":"IF(OR(Table_PI[[#This Row],[Hide:\nIncremental Cost]]=\"\",Table_PI[[#This Row],[Hide:\nIncremental Cost]]=0),\"\",Table_PI[[#This Row],[Hide:\nIncremental Cost]])","v":""},{"$f":"IFERROR(IF(Table_SummaryPI[[#This Row],[kWhSavings]]=\"\",\"\",ROUND(Table_SummaryPI[[#This Row],[kWhSavings]]/$AG$401*'Customer Information'!$BC$17,2)),0)","v":""},{"$f":"IF(OR(Table_PI[[#This Row],[Annual kWh]]=\"\",Table_PI[[#This Row],[Annual kWh]]=0),\"\",Table_PI[[#This Row],[Annual kWh]])","v":""},{"$f":"IF(OR(Table_PI[[#This Row],[Peak kW]]=\"\",Table_PI[[#This Row],[Peak kW]]=0),\"\",Table_PI[[#This Row],[Peak kW]])","v":""},{"$f":"IFERROR(IF(Table_SummaryPI[[#This Row],[kWhSavings]]=\"\",\"\",$AU$9*Table_SummaryPI[[#This Row],[kWhSavings]]),0)","v":""},{"$f":"IFERROR(IF(Table_SummaryPI[[#This Row],[kWhSavings]]=\"\",\"\",$AU$14*Table_SummaryPI[[#This Row],[kWhSavings]]),0)","v":""},{"$f":"IFERROR(IF(Table_SummaryPI[[#This Row],[kWhSavings]]=\"\",\"\",$AU$18*Table_SummaryPI[[#This Row],[kWhSavings]]),0)","v":""},{"$f":"IFERROR(IF(Table_SummaryPI[[#This Row],[kWhSavings]]=\"\",\"\",$AU$22*Table_SummaryPI[[#This Row],[kWhSavings]]),0)","v":""},{"$f":"IFERROR(IF(MeasureCalc(Table_PI[[#This Row],[Hide:\nFormula Name]],Table_SummaryPI[[#This Row],[Quantity]],Table_PI[[#This Row],[List 1]],Table_PI[[#This Row],[List 2]],Table_PI[[#This Row],[List 3]],Table_PI[[#This Row],[Size]],Table_PI[[#This Row],[Input 1]],Table_PI[[#This Row],[Input 2]],Table_PI[[#This Row],[Input 3]],Table_PI[[#This Row],[Input 4]],'Customer Information'!$AR$12,200,ROW())<>\"No Rebate\",MeasureCalc(Table_PI[[#This Row],[Hide:\nFormula Name]],Table_SummaryPI[[#This Row],[Quantity]],Table_PI[[#This Row],[List 1]],Table_PI[[#This Row],[List 2]],Table_PI[[#This Row],[List 3]],Table_PI[[#This Row],[Size]],Table_PI[[#This Row],[Input 1]],Table_PI[[#This Row],[Input 2]],Table_PI[[#This Row],[Input 3]],Table_PI[[#This Row],[Input 4]],'Customer Information'!$AR$12,200,ROW()),\"\"),\"\")","v":""},{"$f":"IFERROR(IF(MeasureCalc(Table_PI[[#This Row],[Hide:\nFormula Name]],Table_SummaryPI[[#This Row],[Quantity]],Table_PI[[#This Row],[List 1]],Table_PI[[#This Row],[List 2]],Table_PI[[#This Row],[List 3]],Table_PI[[#This Row],[Size]],Table_PI[[#This Row],[Input 1]],Table_PI[[#This Row],[Input 2]],Table_PI[[#This Row],[Input 3]],Table_PI[[#This Row],[Input 4]],'Customer Information'!$AR$12,201,ROW())<>\"No Rebate\",MeasureCalc(Table_PI[[#This Row],[Hide:\nFormula Name]],Table_SummaryPI[[#This Row],[Quantity]],Table_PI[[#This Row],[List 1]],Table_PI[[#This Row],[List 2]],Table_PI[[#This Row],[List 3]],Table_PI[[#This Row],[Size]],Table_PI[[#This Row],[Input 1]],Table_PI[[#This Row],[Input 2]],Table_PI[[#This Row],[Input 3]],Table_PI[[#This Row],[Input 4]],'Customer Information'!$AR$12,201,ROW()),\"\"),\"\")","v":""}]
[{"$f":"Table_PI[[#This Row],[Line No.]]","v":""},{"$f":"IF(Table_SummaryPI[[#This Row],[MeassureCategory]]<>\"\",CONCATENATE(Table_SummaryPI[[#This Row],[MeassureCategory]],  \" - \", Table_SummaryPI[[#This Row],[ProposedMeasureCategory]],  \" - \", TEXT(Table_SummaryPI[[#This Row],[Size]],\"#,##0.00\"),\" \",Table_SummaryPI[[#This Row],[SizeUnit]]),\"\")","v":""},{"$f":"SUBSTITUTE(Table_PI[[#This Row],[Measure]],\"     \",\"\",1)","v":""},{"$f":"IF(Table_PI[[#This Row],[List 1]]<>\"\",Table_PI[[#This Row],[List 1]],\"\")","v":""},{"$f":"IF(Table_PI[[#This Row],[List 2]]<>\"\",Table_PI[[#This Row],[List 2]],\"\")","v":""},{"$f":"IF(Table_PI[[#This Row],[List 3]]<>\"\",Table_PI[[#This Row],[List 3]],\"\")","v":""},{"$f":"IF(Table_PI[[#This Row],[Manufacturer]]=\"\",\"\",Table_PI[[#This Row],[Manufacturer]])","v":""},{"$f":"IF(Table_PI[[#This Row],[Model Number]]=\"\",\"\",Table_PI[[#This Row],[Model Number]])","v":""},{"$f":"IF(Table_PI[[#This Row],[Serial Number(s)]]=\"\",\"\",Table_PI[[#This Row],[Serial Number(s)]])","v":""},null,{"$f":"IF(Table_PI[[#This Row],[Size]]=\"\",\"\",Table_PI[[#This Row],[Size]])","v":""},null,{"$f":"IFERROR(IF(AND(MeasureCalc(Table_PI[[#This Row],[Hide:\nFormula Name]],Table_SummaryPI[[#This Row],[Quantity]],Table_PI[[#This Row],[List 1]],Table_PI[[#This Row],[List 2]],Table_PI[[#This Row],[List 3]],Table_PI[[#This Row],[Size]],Table_PI[[#This Row],[Input 1]],Table_PI[[#This Row],[Input 2]],Table_PI[[#This Row],[Input 3]],Table_PI[[#This Row],[Input 4]],'Customer Information'!$AR$12,100,ROW())<>0,MeasureCalc(Table_PI[[#This Row],[Hide:\nFormula Name]],Table_SummaryPI[[#This Row],[Quantity]],Table_PI[[#This Row],[List 1]],Table_PI[[#This Row],[List 2]],Table_PI[[#This Row],[List 3]],Table_PI[[#This Row],[Size]],Table_PI[[#This Row],[Input 1]],Table_PI[[#This Row],[Input 2]],Table_PI[[#This Row],[Input 3]],Table_PI[[#This Row],[Input 4]],'Customer Information'!$AR$12,100,ROW())<>\"No Rebate\"),MeasureCalc(Table_PI[[#This Row],[Hide:\nFormula Name]],Table_SummaryPI[[#This Row],[Quantity]],Table_PI[[#This Row],[List 1]],Table_PI[[#This Row],[List 2]],Table_PI[[#This Row],[List 3]],Table_PI[[#This Row],[Size]],Table_PI[[#This Row],[Input 1]],Table_PI[[#This Row],[Input 2]],Table_PI[[#This Row],[Input 3]],Table_PI[[#This Row],[Input 4]],'Customer Information'!$AR$12,100,ROW()),\"\"),\"\")","v":""},{"$f":"IF(Table_PI[[#This Row],[Input 1]]<>\"\",Table_PI[[#This Row],[Input 1]],\"\")","v":""},null,{"$f":"IFERROR(IF(AND(MeasureCalc(Table_PI[[#This Row],[Hide:\nFormula Name]],Table_SummaryPI[[#This Row],[Quantity]],Table_PI[[#This Row],[List 1]],Table_PI[[#This Row],[List 2]],Table_PI[[#This Row],[List 3]],Table_PI[[#This Row],[Size]],Table_PI[[#This Row],[Input 1]],Table_PI[[#This Row],[Input 2]],Table_PI[[#This Row],[Input 3]],Table_PI[[#This Row],[Input 4]],'Customer Information'!$AR$12,101,ROW())<>0,MeasureCalc(Table_PI[[#This Row],[Hide:\nFormula Name]],Table_SummaryPI[[#This Row],[Quantity]],Table_PI[[#This Row],[List 1]],Table_PI[[#This Row],[List 2]],Table_PI[[#This Row],[List 3]],Table_PI[[#This Row],[Size]],Table_PI[[#This Row],[Input 1]],Table_PI[[#This Row],[Input 2]],Table_PI[[#This Row],[Input 3]],Table_PI[[#This Row],[Input 4]],'Customer Information'!$AR$12,101,ROW())<>\"No Rebate\"),MeasureCalc(Table_PI[[#This Row],[Hide:\nFormula Name]],Table_SummaryPI[[#This Row],[Quantity]],Table_PI[[#This Row],[List 1]],Table_PI[[#This Row],[List 2]],Table_PI[[#This Row],[List 3]],Table_PI[[#This Row],[Size]],Table_PI[[#This Row],[Input 1]],Table_PI[[#This Row],[Input 2]],Table_PI[[#This Row],[Input 3]],Table_PI[[#This Row],[Input 4]],'Customer Information'!$AR$12,101,ROW()),\"\"),\"\")","v":""},{"$f":"IF(Table_PI[[#This Row],[Input 2]]<>\"\",Table_PI[[#This Row],[Input 2]],\"\")","v":""},null,{"$f":"IFERROR(IF(AND(MeasureCalc(Table_PI[[#This Row],[Hide:\nFormula Name]],Table_SummaryPI[[#This Row],[Quantity]],Table_PI[[#This Row],[List 1]],Table_PI[[#This Row],[List 2]],Table_PI[[#This Row],[List 3]],Table_PI[[#This Row],[Size]],Table_PI[[#This Row],[Input 1]],Table_PI[[#This Row],[Input 2]],Table_PI[[#This Row],[Input 3]],Table_PI[[#This Row],[Input 4]],'Customer Information'!$AR$12,102,ROW())<>0,MeasureCalc(Table_PI[[#This Row],[Hide:\nFormula Name]],Table_SummaryPI[[#This Row],[Quantity]],Table_PI[[#This Row],[List 1]],Table_PI[[#This Row],[List 2]],Table_PI[[#This Row],[List 3]],Table_PI[[#This Row],[Size]],Table_PI[[#This Row],[Input 1]],Table_PI[[#This Row],[Input 2]],Table_PI[[#This Row],[Input 3]],Table_PI[[#This Row],[Input 4]],'Customer Information'!$AR$12,102,ROW())<>\"No Rebate\"),MeasureCalc(Table_PI[[#This Row],[Hide:\nFormula Name]],Table_SummaryPI[[#This Row],[Quantity]],Table_PI[[#This Row],[List 1]],Table_PI[[#This Row],[List 2]],Table_PI[[#This Row],[List 3]],Table_PI[[#This Row],[Size]],Table_PI[[#This Row],[Input 1]],Table_PI[[#This Row],[Input 2]],Table_PI[[#This Row],[Input 3]],Table_PI[[#This Row],[Input 4]],'Customer Information'!$AR$12,102,ROW()),\"\"),\"\")","v":""},{"$f":"IF(Table_PI[[#This Row],[Input 3]]<>\"\",Table_PI[[#This Row],[Input 3]],\"\")","v":""},null,{"$f":"IFERROR(IF(AND(MeasureCalc(Table_PI[[#This Row],[Hide:\nFormula Name]],Table_SummaryPI[[#This Row],[Quantity]],Table_PI[[#This Row],[List 1]],Table_PI[[#This Row],[List 2]],Table_PI[[#This Row],[List 3]],Table_PI[[#This Row],[Size]],Table_PI[[#This Row],[Input 1]],Table_PI[[#This Row],[Input 2]],Table_PI[[#This Row],[Input 3]],Table_PI[[#This Row],[Input 4]],'Customer Information'!$AR$12,103,ROW())<>0,MeasureCalc(Table_PI[[#This Row],[Hide:\nFormula Name]],Table_SummaryPI[[#This Row],[Quantity]],Table_PI[[#This Row],[List 1]],Table_PI[[#This Row],[List 2]],Table_PI[[#This Row],[List 3]],Table_PI[[#This Row],[Size]],Table_PI[[#This Row],[Input 1]],Table_PI[[#This Row],[Input 2]],Table_PI[[#This Row],[Input 3]],Table_PI[[#This Row],[Input 4]],'Customer Information'!$AR$12,103,ROW())<>\"No Rebate\"),MeasureCalc(Table_PI[[#This Row],[Hide:\nFormula Name]],Table_SummaryPI[[#This Row],[Quantity]],Table_PI[[#This Row],[List 1]],Table_PI[[#This Row],[List 2]],Table_PI[[#This Row],[List 3]],Table_PI[[#This Row],[Size]],Table_PI[[#This Row],[Input 1]],Table_PI[[#This Row],[Input 2]],Table_PI[[#This Row],[Input 3]],Table_PI[[#This Row],[Input 4]],'Customer Information'!$AR$12,103,ROW()),\"\"),\"\")","v":""},{"$f":"IF(Table_PI[[#This Row],[Input 4]]<>\"\",Table_PI[[#This Row],[Input 4]],\"\")","v":""},{"$f":"IF(Table_PI[[#This Row],[Quantity]]=\"\",\"\",Table_PI[[#This Row],[Quantity]])","v":""},{"$f":"IF(Table_PI[[#This Row],[Notes]]=\"\",\"\",Table_PI[[#This Row],[Notes]])","v":""},{"$f":"IF(OR(Table_PI[[#This Row],[Hide:\nBaseline kWh]]=\"\",Table_PI[[#This Row],[Hide:\nBaseline kWh]]=0),\"\",Table_PI[[#This Row],[Hide:\nBaseline kWh]])","v":""},{"$f":"IF(OR(Table_PI[[#This Row],[Hide:\nBaseline kW]]=\"\",Table_PI[[#This Row],[Hide:\nBaseline kW]]=0),\"\",Table_PI[[#This Row],[Hide:\nBaseline kW]])","v":""},{"$f":"IF(OR(Table_PI[[#This Row],[Hide:\nProposed kWh]]=\"\",Table_PI[[#This Row],[Hide:\nProposed kWh]]=0),\"\",Table_PI[[#This Row],[Hide:\nProposed kWh]])","v":""},{"$f":"IF(OR(Table_PI[[#This Row],[Hide:\nProposed kW]]=\"\",Table_PI[[#This Row],[Hide:\nProposed kW]]=0),\"\",Table_PI[[#This Row],[Hide:\nProposed kW]])","v":""},{"$f":"IF(OR(Table_PI[[#This Row],[Rebate]]=\"\",Table_PI[[#This Row],[Rebate]]=0),\"\",Table_PI[[#This Row],[Rebate]])","v":""},{"$f":"IF(OR(Table_PI[[#This Row],[Hide:\nIncremental Cost]]=\"\",Table_PI[[#This Row],[Hide:\nIncremental Cost]]=0),\"\",Table_PI[[#This Row],[Hide:\nIncremental Cost]])","v":""},{"$f":"IFERROR(IF(Table_SummaryPI[[#This Row],[kWhSavings]]=\"\",\"\",ROUND(Table_SummaryPI[[#This Row],[kWhSavings]]/$AG$401*'Customer Information'!$BC$17,2)),0)","v":""},{"$f":"IF(OR(Table_PI[[#This Row],[Annual kWh]]=\"\",Table_PI[[#This Row],[Annual kWh]]=0),\"\",Table_PI[[#This Row],[Annual kWh]])","v":""},{"$f":"IF(OR(Table_PI[[#This Row],[Peak kW]]=\"\",Table_PI[[#This Row],[Peak kW]]=0),\"\",Table_PI[[#This Row],[Peak kW]])","v":""},{"$f":"IFERROR(IF(Table_SummaryPI[[#This Row],[kWhSavings]]=\"\",\"\",$AU$9*Table_SummaryPI[[#This Row],[kWhSavings]]),0)","v":""},{"$f":"IFERROR(IF(Table_SummaryPI[[#This Row],[kWhSavings]]=\"\",\"\",$AU$14*Table_SummaryPI[[#This Row],[kWhSavings]]),0)","v":""},{"$f":"IFERROR(IF(Table_SummaryPI[[#This Row],[kWhSavings]]=\"\",\"\",$AU$18*Table_SummaryPI[[#This Row],[kWhSavings]]),0)","v":""},{"$f":"IFERROR(IF(Table_SummaryPI[[#This Row],[kWhSavings]]=\"\",\"\",$AU$22*Table_SummaryPI[[#This Row],[kWhSavings]]),0)","v":""},{"$f":"IFERROR(IF(MeasureCalc(Table_PI[[#This Row],[Hide:\nFormula Name]],Table_SummaryPI[[#This Row],[Quantity]],Table_PI[[#This Row],[List 1]],Table_PI[[#This Row],[List 2]],Table_PI[[#This Row],[List 3]],Table_PI[[#This Row],[Size]],Table_PI[[#This Row],[Input 1]],Table_PI[[#This Row],[Input 2]],Table_PI[[#This Row],[Input 3]],Table_PI[[#This Row],[Input 4]],'Customer Information'!$AR$12,200,ROW())<>\"No Rebate\",MeasureCalc(Table_PI[[#This Row],[Hide:\nFormula Name]],Table_SummaryPI[[#This Row],[Quantity]],Table_PI[[#This Row],[List 1]],Table_PI[[#This Row],[List 2]],Table_PI[[#This Row],[List 3]],Table_PI[[#This Row],[Size]],Table_PI[[#This Row],[Input 1]],Table_PI[[#This Row],[Input 2]],Table_PI[[#This Row],[Input 3]],Table_PI[[#This Row],[Input 4]],'Customer Information'!$AR$12,200,ROW()),\"\"),\"\")","v":""},{"$f":"IFERROR(IF(MeasureCalc(Table_PI[[#This Row],[Hide:\nFormula Name]],Table_SummaryPI[[#This Row],[Quantity]],Table_PI[[#This Row],[List 1]],Table_PI[[#This Row],[List 2]],Table_PI[[#This Row],[List 3]],Table_PI[[#This Row],[Size]],Table_PI[[#This Row],[Input 1]],Table_PI[[#This Row],[Input 2]],Table_PI[[#This Row],[Input 3]],Table_PI[[#This Row],[Input 4]],'Customer Information'!$AR$12,201,ROW())<>\"No Rebate\",MeasureCalc(Table_PI[[#This Row],[Hide:\nFormula Name]],Table_SummaryPI[[#This Row],[Quantity]],Table_PI[[#This Row],[List 1]],Table_PI[[#This Row],[List 2]],Table_PI[[#This Row],[List 3]],Table_PI[[#This Row],[Size]],Table_PI[[#This Row],[Input 1]],Table_PI[[#This Row],[Input 2]],Table_PI[[#This Row],[Input 3]],Table_PI[[#This Row],[Input 4]],'Customer Information'!$AR$12,201,ROW()),\"\"),\"\")","v":""}]
[{"$f":"Table_PI[[#This Row],[Line No.]]","v":""},{"$f":"IF(Table_SummaryPI[[#This Row],[MeassureCategory]]<>\"\",CONCATENATE(Table_SummaryPI[[#This Row],[MeassureCategory]],  \" - \", Table_SummaryPI[[#This Row],[ProposedMeasureCategory]],  \" - \", TEXT(Table_SummaryPI[[#This Row],[Size]],\"#,##0.00\"),\" \",Table_SummaryPI[[#This Row],[SizeUnit]]),\"\")","v":""},{"$f":"SUBSTITUTE(Table_PI[[#This Row],[Measure]],\"     \",\"\",1)","v":""},{"$f":"IF(Table_PI[[#This Row],[List 1]]<>\"\",Table_PI[[#This Row],[List 1]],\"\")","v":""},{"$f":"IF(Table_PI[[#This Row],[List 2]]<>\"\",Table_PI[[#This Row],[List 2]],\"\")","v":""},{"$f":"IF(Table_PI[[#This Row],[List 3]]<>\"\",Table_PI[[#This Row],[List 3]],\"\")","v":""},{"$f":"IF(Table_PI[[#This Row],[Manufacturer]]=\"\",\"\",Table_PI[[#This Row],[Manufacturer]])","v":""},{"$f":"IF(Table_PI[[#This Row],[Model Number]]=\"\",\"\",Table_PI[[#This Row],[Model Number]])","v":""},{"$f":"IF(Table_PI[[#This Row],[Serial Number(s)]]=\"\",\"\",Table_PI[[#This Row],[Serial Number(s)]])","v":""},null,{"$f":"IF(Table_PI[[#This Row],[Size]]=\"\",\"\",Table_PI[[#This Row],[Size]])","v":""},null,{"$f":"IFERROR(IF(AND(MeasureCalc(Table_PI[[#This Row],[Hide:\nFormula Name]],Table_SummaryPI[[#This Row],[Quantity]],Table_PI[[#This Row],[List 1]],Table_PI[[#This Row],[List 2]],Table_PI[[#This Row],[List 3]],Table_PI[[#This Row],[Size]],Table_PI[[#This Row],[Input 1]],Table_PI[[#This Row],[Input 2]],Table_PI[[#This Row],[Input 3]],Table_PI[[#This Row],[Input 4]],'Customer Information'!$AR$12,100,ROW())<>0,MeasureCalc(Table_PI[[#This Row],[Hide:\nFormula Name]],Table_SummaryPI[[#This Row],[Quantity]],Table_PI[[#This Row],[List 1]],Table_PI[[#This Row],[List 2]],Table_PI[[#This Row],[List 3]],Table_PI[[#This Row],[Size]],Table_PI[[#This Row],[Input 1]],Table_PI[[#This Row],[Input 2]],Table_PI[[#This Row],[Input 3]],Table_PI[[#This Row],[Input 4]],'Customer Information'!$AR$12,100,ROW())<>\"No Rebate\"),MeasureCalc(Table_PI[[#This Row],[Hide:\nFormula Name]],Table_SummaryPI[[#This Row],[Quantity]],Table_PI[[#This Row],[List 1]],Table_PI[[#This Row],[List 2]],Table_PI[[#This Row],[List 3]],Table_PI[[#This Row],[Size]],Table_PI[[#This Row],[Input 1]],Table_PI[[#This Row],[Input 2]],Table_PI[[#This Row],[Input 3]],Table_PI[[#This Row],[Input 4]],'Customer Information'!$AR$12,100,ROW()),\"\"),\"\")","v":""},{"$f":"IF(Table_PI[[#This Row],[Input 1]]<>\"\",Table_PI[[#This Row],[Input 1]],\"\")","v":""},null,{"$f":"IFERROR(IF(AND(MeasureCalc(Table_PI[[#This Row],[Hide:\nFormula Name]],Table_SummaryPI[[#This Row],[Quantity]],Table_PI[[#This Row],[List 1]],Table_PI[[#This Row],[List 2]],Table_PI[[#This Row],[List 3]],Table_PI[[#This Row],[Size]],Table_PI[[#This Row],[Input 1]],Table_PI[[#This Row],[Input 2]],Table_PI[[#This Row],[Input 3]],Table_PI[[#This Row],[Input 4]],'Customer Information'!$AR$12,101,ROW())<>0,MeasureCalc(Table_PI[[#This Row],[Hide:\nFormula Name]],Table_SummaryPI[[#This Row],[Quantity]],Table_PI[[#This Row],[List 1]],Table_PI[[#This Row],[List 2]],Table_PI[[#This Row],[List 3]],Table_PI[[#This Row],[Size]],Table_PI[[#This Row],[Input 1]],Table_PI[[#This Row],[Input 2]],Table_PI[[#This Row],[Input 3]],Table_PI[[#This Row],[Input 4]],'Customer Information'!$AR$12,101,ROW())<>\"No Rebate\"),MeasureCalc(Table_PI[[#This Row],[Hide:\nFormula Name]],Table_SummaryPI[[#This Row],[Quantity]],Table_PI[[#This Row],[List 1]],Table_PI[[#This Row],[List 2]],Table_PI[[#This Row],[List 3]],Table_PI[[#This Row],[Size]],Table_PI[[#This Row],[Input 1]],Table_PI[[#This Row],[Input 2]],Table_PI[[#This Row],[Input 3]],Table_PI[[#This Row],[Input 4]],'Customer Information'!$AR$12,101,ROW()),\"\"),\"\")","v":""},{"$f":"IF(Table_PI[[#This Row],[Input 2]]<>\"\",Table_PI[[#This Row],[Input 2]],\"\")","v":""},null,{"$f":"IFERROR(IF(AND(MeasureCalc(Table_PI[[#This Row],[Hide:\nFormula Name]],Table_SummaryPI[[#This Row],[Quantity]],Table_PI[[#This Row],[List 1]],Table_PI[[#This Row],[List 2]],Table_PI[[#This Row],[List 3]],Table_PI[[#This Row],[Size]],Table_PI[[#This Row],[Input 1]],Table_PI[[#This Row],[Input 2]],Table_PI[[#This Row],[Input 3]],Table_PI[[#This Row],[Input 4]],'Customer Information'!$AR$12,102,ROW())<>0,MeasureCalc(Table_PI[[#This Row],[Hide:\nFormula Name]],Table_SummaryPI[[#This Row],[Quantity]],Table_PI[[#This Row],[List 1]],Table_PI[[#This Row],[List 2]],Table_PI[[#This Row],[List 3]],Table_PI[[#This Row],[Size]],Table_PI[[#This Row],[Input 1]],Table_PI[[#This Row],[Input 2]],Table_PI[[#This Row],[Input 3]],Table_PI[[#This Row],[Input 4]],'Customer Information'!$AR$12,102,ROW())<>\"No Rebate\"),MeasureCalc(Table_PI[[#This Row],[Hide:\nFormula Name]],Table_SummaryPI[[#This Row],[Quantity]],Table_PI[[#This Row],[List 1]],Table_PI[[#This Row],[List 2]],Table_PI[[#This Row],[List 3]],Table_PI[[#This Row],[Size]],Table_PI[[#This Row],[Input 1]],Table_PI[[#This Row],[Input 2]],Table_PI[[#This Row],[Input 3]],Table_PI[[#This Row],[Input 4]],'Customer Information'!$AR$12,102,ROW()),\"\"),\"\")","v":""},{"$f":"IF(Table_PI[[#This Row],[Input 3]]<>\"\",Table_PI[[#This Row],[Input 3]],\"\")","v":""},null,{"$f":"IFERROR(IF(AND(MeasureCalc(Table_PI[[#This Row],[Hide:\nFormula Name]],Table_SummaryPI[[#This Row],[Quantity]],Table_PI[[#This Row],[List 1]],Table_PI[[#This Row],[List 2]],Table_PI[[#This Row],[List 3]],Table_PI[[#This Row],[Size]],Table_PI[[#This Row],[Input 1]],Table_PI[[#This Row],[Input 2]],Table_PI[[#This Row],[Input 3]],Table_PI[[#This Row],[Input 4]],'Customer Information'!$AR$12,103,ROW())<>0,MeasureCalc(Table_PI[[#This Row],[Hide:\nFormula Name]],Table_SummaryPI[[#This Row],[Quantity]],Table_PI[[#This Row],[List 1]],Table_PI[[#This Row],[List 2]],Table_PI[[#This Row],[List 3]],Table_PI[[#This Row],[Size]],Table_PI[[#This Row],[Input 1]],Table_PI[[#This Row],[Input 2]],Table_PI[[#This Row],[Input 3]],Table_PI[[#This Row],[Input 4]],'Customer Information'!$AR$12,103,ROW())<>\"No Rebate\"),MeasureCalc(Table_PI[[#This Row],[Hide:\nFormula Name]],Table_SummaryPI[[#This Row],[Quantity]],Table_PI[[#This Row],[List 1]],Table_PI[[#This Row],[List 2]],Table_PI[[#This Row],[List 3]],Table_PI[[#This Row],[Size]],Table_PI[[#This Row],[Input 1]],Table_PI[[#This Row],[Input 2]],Table_PI[[#This Row],[Input 3]],Table_PI[[#This Row],[Input 4]],'Customer Information'!$AR$12,103,ROW()),\"\"),\"\")","v":""},{"$f":"IF(Table_PI[[#This Row],[Input 4]]<>\"\",Table_PI[[#This Row],[Input 4]],\"\")","v":""},{"$f":"IF(Table_PI[[#This Row],[Quantity]]=\"\",\"\",Table_PI[[#This Row],[Quantity]])","v":""},{"$f":"IF(Table_PI[[#This Row],[Notes]]=\"\",\"\",Table_PI[[#This Row],[Notes]])","v":""},{"$f":"IF(OR(Table_PI[[#This Row],[Hide:\nBaseline kWh]]=\"\",Table_PI[[#This Row],[Hide:\nBaseline kWh]]=0),\"\",Table_PI[[#This Row],[Hide:\nBaseline kWh]])","v":""},{"$f":"IF(OR(Table_PI[[#This Row],[Hide:\nBaseline kW]]=\"\",Table_PI[[#This Row],[Hide:\nBaseline kW]]=0),\"\",Table_PI[[#This Row],[Hide:\nBaseline kW]])","v":""},{"$f":"IF(OR(Table_PI[[#This Row],[Hide:\nProposed kWh]]=\"\",Table_PI[[#This Row],[Hide:\nProposed kWh]]=0),\"\",Table_PI[[#This Row],[Hide:\nProposed kWh]])","v":""},{"$f":"IF(OR(Table_PI[[#This Row],[Hide:\nProposed kW]]=\"\",Table_PI[[#This Row],[Hide:\nProposed kW]]=0),\"\",Table_PI[[#This Row],[Hide:\nProposed kW]])","v":""},{"$f":"IF(OR(Table_PI[[#This Row],[Rebate]]=\"\",Table_PI[[#This Row],[Rebate]]=0),\"\",Table_PI[[#This Row],[Rebate]])","v":""},{"$f":"IF(OR(Table_PI[[#This Row],[Hide:\nIncremental Cost]]=\"\",Table_PI[[#This Row],[Hide:\nIncremental Cost]]=0),\"\",Table_PI[[#This Row],[Hide:\nIncremental Cost]])","v":""},{"$f":"IFERROR(IF(Table_SummaryPI[[#This Row],[kWhSavings]]=\"\",\"\",ROUND(Table_SummaryPI[[#This Row],[kWhSavings]]/$AG$401*'Customer Information'!$BC$17,2)),0)","v":""},{"$f":"IF(OR(Table_PI[[#This Row],[Annual kWh]]=\"\",Table_PI[[#This Row],[Annual kWh]]=0),\"\",Table_PI[[#This Row],[Annual kWh]])","v":""},{"$f":"IF(OR(Table_PI[[#This Row],[Peak kW]]=\"\",Table_PI[[#This Row],[Peak kW]]=0),\"\",Table_PI[[#This Row],[Peak kW]])","v":""},{"$f":"IFERROR(IF(Table_SummaryPI[[#This Row],[kWhSavings]]=\"\",\"\",$AU$9*Table_SummaryPI[[#This Row],[kWhSavings]]),0)","v":""},{"$f":"IFERROR(IF(Table_SummaryPI[[#This Row],[kWhSavings]]=\"\",\"\",$AU$14*Table_SummaryPI[[#This Row],[kWhSavings]]),0)","v":""},{"$f":"IFERROR(IF(Table_SummaryPI[[#This Row],[kWhSavings]]=\"\",\"\",$AU$18*Table_SummaryPI[[#This Row],[kWhSavings]]),0)","v":""},{"$f":"IFERROR(IF(Table_SummaryPI[[#This Row],[kWhSavings]]=\"\",\"\",$AU$22*Table_SummaryPI[[#This Row],[kWhSavings]]),0)","v":""},{"$f":"IFERROR(IF(MeasureCalc(Table_PI[[#This Row],[Hide:\nFormula Name]],Table_SummaryPI[[#This Row],[Quantity]],Table_PI[[#This Row],[List 1]],Table_PI[[#This Row],[List 2]],Table_PI[[#This Row],[List 3]],Table_PI[[#This Row],[Size]],Table_PI[[#This Row],[Input 1]],Table_PI[[#This Row],[Input 2]],Table_PI[[#This Row],[Input 3]],Table_PI[[#This Row],[Input 4]],'Customer Information'!$AR$12,200,ROW())<>\"No Rebate\",MeasureCalc(Table_PI[[#This Row],[Hide:\nFormula Name]],Table_SummaryPI[[#This Row],[Quantity]],Table_PI[[#This Row],[List 1]],Table_PI[[#This Row],[List 2]],Table_PI[[#This Row],[List 3]],Table_PI[[#This Row],[Size]],Table_PI[[#This Row],[Input 1]],Table_PI[[#This Row],[Input 2]],Table_PI[[#This Row],[Input 3]],Table_PI[[#This Row],[Input 4]],'Customer Information'!$AR$12,200,ROW()),\"\"),\"\")","v":""},{"$f":"IFERROR(IF(MeasureCalc(Table_PI[[#This Row],[Hide:\nFormula Name]],Table_SummaryPI[[#This Row],[Quantity]],Table_PI[[#This Row],[List 1]],Table_PI[[#This Row],[List 2]],Table_PI[[#This Row],[List 3]],Table_PI[[#This Row],[Size]],Table_PI[[#This Row],[Input 1]],Table_PI[[#This Row],[Input 2]],Table_PI[[#This Row],[Input 3]],Table_PI[[#This Row],[Input 4]],'Customer Information'!$AR$12,201,ROW())<>\"No Rebate\",MeasureCalc(Table_PI[[#This Row],[Hide:\nFormula Name]],Table_SummaryPI[[#This Row],[Quantity]],Table_PI[[#This Row],[List 1]],Table_PI[[#This Row],[List 2]],Table_PI[[#This Row],[List 3]],Table_PI[[#This Row],[Size]],Table_PI[[#This Row],[Input 1]],Table_PI[[#This Row],[Input 2]],Table_PI[[#This Row],[Input 3]],Table_PI[[#This Row],[Input 4]],'Customer Information'!$AR$12,201,ROW()),\"\"),\"\")","v":""}]
[{"$f":"Table_PI[[#This Row],[Line No.]]","v":""},{"$f":"IF(Table_SummaryPI[[#This Row],[MeassureCategory]]<>\"\",CONCATENATE(Table_SummaryPI[[#This Row],[MeassureCategory]],  \" - \", Table_SummaryPI[[#This Row],[ProposedMeasureCategory]],  \" - \", TEXT(Table_SummaryPI[[#This Row],[Size]],\"#,##0.00\"),\" \",Table_SummaryPI[[#This Row],[SizeUnit]]),\"\")","v":""},{"$f":"SUBSTITUTE(Table_PI[[#This Row],[Measure]],\"     \",\"\",1)","v":""},{"$f":"IF(Table_PI[[#This Row],[List 1]]<>\"\",Table_PI[[#This Row],[List 1]],\"\")","v":""},{"$f":"IF(Table_PI[[#This Row],[List 2]]<>\"\",Table_PI[[#This Row],[List 2]],\"\")","v":""},{"$f":"IF(Table_PI[[#This Row],[List 3]]<>\"\",Table_PI[[#This Row],[List 3]],\"\")","v":""},{"$f":"IF(Table_PI[[#This Row],[Manufacturer]]=\"\",\"\",Table_PI[[#This Row],[Manufacturer]])","v":""},{"$f":"IF(Table_PI[[#This Row],[Model Number]]=\"\",\"\",Table_PI[[#This Row],[Model Number]])","v":""},{"$f":"IF(Table_PI[[#This Row],[Serial Number(s)]]=\"\",\"\",Table_PI[[#This Row],[Serial Number(s)]])","v":""},null,{"$f":"IF(Table_PI[[#This Row],[Size]]=\"\",\"\",Table_PI[[#This Row],[Size]])","v":""},null,{"$f":"IFERROR(IF(AND(MeasureCalc(Table_PI[[#This Row],[Hide:\nFormula Name]],Table_SummaryPI[[#This Row],[Quantity]],Table_PI[[#This Row],[List 1]],Table_PI[[#This Row],[List 2]],Table_PI[[#This Row],[List 3]],Table_PI[[#This Row],[Size]],Table_PI[[#This Row],[Input 1]],Table_PI[[#This Row],[Input 2]],Table_PI[[#This Row],[Input 3]],Table_PI[[#This Row],[Input 4]],'Customer Information'!$AR$12,100,ROW())<>0,MeasureCalc(Table_PI[[#This Row],[Hide:\nFormula Name]],Table_SummaryPI[[#This Row],[Quantity]],Table_PI[[#This Row],[List 1]],Table_PI[[#This Row],[List 2]],Table_PI[[#This Row],[List 3]],Table_PI[[#This Row],[Size]],Table_PI[[#This Row],[Input 1]],Table_PI[[#This Row],[Input 2]],Table_PI[[#This Row],[Input 3]],Table_PI[[#This Row],[Input 4]],'Customer Information'!$AR$12,100,ROW())<>\"No Rebate\"),MeasureCalc(Table_PI[[#This Row],[Hide:\nFormula Name]],Table_SummaryPI[[#This Row],[Quantity]],Table_PI[[#This Row],[List 1]],Table_PI[[#This Row],[List 2]],Table_PI[[#This Row],[List 3]],Table_PI[[#This Row],[Size]],Table_PI[[#This Row],[Input 1]],Table_PI[[#This Row],[Input 2]],Table_PI[[#This Row],[Input 3]],Table_PI[[#This Row],[Input 4]],'Customer Information'!$AR$12,100,ROW()),\"\"),\"\")","v":""},{"$f":"IF(Table_PI[[#This Row],[Input 1]]<>\"\",Table_PI[[#This Row],[Input 1]],\"\")","v":""},null,{"$f":"IFERROR(IF(AND(MeasureCalc(Table_PI[[#This Row],[Hide:\nFormula Name]],Table_SummaryPI[[#This Row],[Quantity]],Table_PI[[#This Row],[List 1]],Table_PI[[#This Row],[List 2]],Table_PI[[#This Row],[List 3]],Table_PI[[#This Row],[Size]],Table_PI[[#This Row],[Input 1]],Table_PI[[#This Row],[Input 2]],Table_PI[[#This Row],[Input 3]],Table_PI[[#This Row],[Input 4]],'Customer Information'!$AR$12,101,ROW())<>0,MeasureCalc(Table_PI[[#This Row],[Hide:\nFormula Name]],Table_SummaryPI[[#This Row],[Quantity]],Table_PI[[#This Row],[List 1]],Table_PI[[#This Row],[List 2]],Table_PI[[#This Row],[List 3]],Table_PI[[#This Row],[Size]],Table_PI[[#This Row],[Input 1]],Table_PI[[#This Row],[Input 2]],Table_PI[[#This Row],[Input 3]],Table_PI[[#This Row],[Input 4]],'Customer Information'!$AR$12,101,ROW())<>\"No Rebate\"),MeasureCalc(Table_PI[[#This Row],[Hide:\nFormula Name]],Table_SummaryPI[[#This Row],[Quantity]],Table_PI[[#This Row],[List 1]],Table_PI[[#This Row],[List 2]],Table_PI[[#This Row],[List 3]],Table_PI[[#This Row],[Size]],Table_PI[[#This Row],[Input 1]],Table_PI[[#This Row],[Input 2]],Table_PI[[#This Row],[Input 3]],Table_PI[[#This Row],[Input 4]],'Customer Information'!$AR$12,101,ROW()),\"\"),\"\")","v":""},{"$f":"IF(Table_PI[[#This Row],[Input 2]]<>\"\",Table_PI[[#This Row],[Input 2]],\"\")","v":""},null,{"$f":"IFERROR(IF(AND(MeasureCalc(Table_PI[[#This Row],[Hide:\nFormula Name]],Table_SummaryPI[[#This Row],[Quantity]],Table_PI[[#This Row],[List 1]],Table_PI[[#This Row],[List 2]],Table_PI[[#This Row],[List 3]],Table_PI[[#This Row],[Size]],Table_PI[[#This Row],[Input 1]],Table_PI[[#This Row],[Input 2]],Table_PI[[#This Row],[Input 3]],Table_PI[[#This Row],[Input 4]],'Customer Information'!$AR$12,102,ROW())<>0,MeasureCalc(Table_PI[[#This Row],[Hide:\nFormula Name]],Table_SummaryPI[[#This Row],[Quantity]],Table_PI[[#This Row],[List 1]],Table_PI[[#This Row],[List 2]],Table_PI[[#This Row],[List 3]],Table_PI[[#This Row],[Size]],Table_PI[[#This Row],[Input 1]],Table_PI[[#This Row],[Input 2]],Table_PI[[#This Row],[Input 3]],Table_PI[[#This Row],[Input 4]],'Customer Information'!$AR$12,102,ROW())<>\"No Rebate\"),MeasureCalc(Table_PI[[#This Row],[Hide:\nFormula Name]],Table_SummaryPI[[#This Row],[Quantity]],Table_PI[[#This Row],[List 1]],Table_PI[[#This Row],[List 2]],Table_PI[[#This Row],[List 3]],Table_PI[[#This Row],[Size]],Table_PI[[#This Row],[Input 1]],Table_PI[[#This Row],[Input 2]],Table_PI[[#This Row],[Input 3]],Table_PI[[#This Row],[Input 4]],'Customer Information'!$AR$12,102,ROW()),\"\"),\"\")","v":""},{"$f":"IF(Table_PI[[#This Row],[Input 3]]<>\"\",Table_PI[[#This Row],[Input 3]],\"\")","v":""},null,{"$f":"IFERROR(IF(AND(MeasureCalc(Table_PI[[#This Row],[Hide:\nFormula Name]],Table_SummaryPI[[#This Row],[Quantity]],Table_PI[[#This Row],[List 1]],Table_PI[[#This Row],[List 2]],Table_PI[[#This Row],[List 3]],Table_PI[[#This Row],[Size]],Table_PI[[#This Row],[Input 1]],Table_PI[[#This Row],[Input 2]],Table_PI[[#This Row],[Input 3]],Table_PI[[#This Row],[Input 4]],'Customer Information'!$AR$12,103,ROW())<>0,MeasureCalc(Table_PI[[#This Row],[Hide:\nFormula Name]],Table_SummaryPI[[#This Row],[Quantity]],Table_PI[[#This Row],[List 1]],Table_PI[[#This Row],[List 2]],Table_PI[[#This Row],[List 3]],Table_PI[[#This Row],[Size]],Table_PI[[#This Row],[Input 1]],Table_PI[[#This Row],[Input 2]],Table_PI[[#This Row],[Input 3]],Table_PI[[#This Row],[Input 4]],'Customer Information'!$AR$12,103,ROW())<>\"No Rebate\"),MeasureCalc(Table_PI[[#This Row],[Hide:\nFormula Name]],Table_SummaryPI[[#This Row],[Quantity]],Table_PI[[#This Row],[List 1]],Table_PI[[#This Row],[List 2]],Table_PI[[#This Row],[List 3]],Table_PI[[#This Row],[Size]],Table_PI[[#This Row],[Input 1]],Table_PI[[#This Row],[Input 2]],Table_PI[[#This Row],[Input 3]],Table_PI[[#This Row],[Input 4]],'Customer Information'!$AR$12,103,ROW()),\"\"),\"\")","v":""},{"$f":"IF(Table_PI[[#This Row],[Input 4]]<>\"\",Table_PI[[#This Row],[Input 4]],\"\")","v":""},{"$f":"IF(Table_PI[[#This Row],[Quantity]]=\"\",\"\",Table_PI[[#This Row],[Quantity]])","v":""},{"$f":"IF(Table_PI[[#This Row],[Notes]]=\"\",\"\",Table_PI[[#This Row],[Notes]])","v":""},{"$f":"IF(OR(Table_PI[[#This Row],[Hide:\nBaseline kWh]]=\"\",Table_PI[[#This Row],[Hide:\nBaseline kWh]]=0),\"\",Table_PI[[#This Row],[Hide:\nBaseline kWh]])","v":""},{"$f":"IF(OR(Table_PI[[#This Row],[Hide:\nBaseline kW]]=\"\",Table_PI[[#This Row],[Hide:\nBaseline kW]]=0),\"\",Table_PI[[#This Row],[Hide:\nBaseline kW]])","v":""},{"$f":"IF(OR(Table_PI[[#This Row],[Hide:\nProposed kWh]]=\"\",Table_PI[[#This Row],[Hide:\nProposed kWh]]=0),\"\",Table_PI[[#This Row],[Hide:\nProposed kWh]])","v":""},{"$f":"IF(OR(Table_PI[[#This Row],[Hide:\nProposed kW]]=\"\",Table_PI[[#This Row],[Hide:\nProposed kW]]=0),\"\",Table_PI[[#This Row],[Hide:\nProposed kW]])","v":""},{"$f":"IF(OR(Table_PI[[#This Row],[Rebate]]=\"\",Table_PI[[#This Row],[Rebate]]=0),\"\",Table_PI[[#This Row],[Rebate]])","v":""},{"$f":"IF(OR(Table_PI[[#This Row],[Hide:\nIncremental Cost]]=\"\",Table_PI[[#This Row],[Hide:\nIncremental Cost]]=0),\"\",Table_PI[[#This Row],[Hide:\nIncremental Cost]])","v":""},{"$f":"IFERROR(IF(Table_SummaryPI[[#This Row],[kWhSavings]]=\"\",\"\",ROUND(Table_SummaryPI[[#This Row],[kWhSavings]]/$AG$401*'Customer Information'!$BC$17,2)),0)","v":""},{"$f":"IF(OR(Table_PI[[#This Row],[Annual kWh]]=\"\",Table_PI[[#This Row],[Annual kWh]]=0),\"\",Table_PI[[#This Row],[Annual kWh]])","v":""},{"$f":"IF(OR(Table_PI[[#This Row],[Peak kW]]=\"\",Table_PI[[#This Row],[Peak kW]]=0),\"\",Table_PI[[#This Row],[Peak kW]])","v":""},{"$f":"IFERROR(IF(Table_SummaryPI[[#This Row],[kWhSavings]]=\"\",\"\",$AU$9*Table_SummaryPI[[#This Row],[kWhSavings]]),0)","v":""},{"$f":"IFERROR(IF(Table_SummaryPI[[#This Row],[kWhSavings]]=\"\",\"\",$AU$14*Table_SummaryPI[[#This Row],[kWhSavings]]),0)","v":""},{"$f":"IFERROR(IF(Table_SummaryPI[[#This Row],[kWhSavings]]=\"\",\"\",$AU$18*Table_SummaryPI[[#This Row],[kWhSavings]]),0)","v":""},{"$f":"IFERROR(IF(Table_SummaryPI[[#This Row],[kWhSavings]]=\"\",\"\",$AU$22*Table_SummaryPI[[#This Row],[kWhSavings]]),0)","v":""},{"$f":"IFERROR(IF(MeasureCalc(Table_PI[[#This Row],[Hide:\nFormula Name]],Table_SummaryPI[[#This Row],[Quantity]],Table_PI[[#This Row],[List 1]],Table_PI[[#This Row],[List 2]],Table_PI[[#This Row],[List 3]],Table_PI[[#This Row],[Size]],Table_PI[[#This Row],[Input 1]],Table_PI[[#This Row],[Input 2]],Table_PI[[#This Row],[Input 3]],Table_PI[[#This Row],[Input 4]],'Customer Information'!$AR$12,200,ROW())<>\"No Rebate\",MeasureCalc(Table_PI[[#This Row],[Hide:\nFormula Name]],Table_SummaryPI[[#This Row],[Quantity]],Table_PI[[#This Row],[List 1]],Table_PI[[#This Row],[List 2]],Table_PI[[#This Row],[List 3]],Table_PI[[#This Row],[Size]],Table_PI[[#This Row],[Input 1]],Table_PI[[#This Row],[Input 2]],Table_PI[[#This Row],[Input 3]],Table_PI[[#This Row],[Input 4]],'Customer Information'!$AR$12,200,ROW()),\"\"),\"\")","v":""},{"$f":"IFERROR(IF(MeasureCalc(Table_PI[[#This Row],[Hide:\nFormula Name]],Table_SummaryPI[[#This Row],[Quantity]],Table_PI[[#This Row],[List 1]],Table_PI[[#This Row],[List 2]],Table_PI[[#This Row],[List 3]],Table_PI[[#This Row],[Size]],Table_PI[[#This Row],[Input 1]],Table_PI[[#This Row],[Input 2]],Table_PI[[#This Row],[Input 3]],Table_PI[[#This Row],[Input 4]],'Customer Information'!$AR$12,201,ROW())<>\"No Rebate\",MeasureCalc(Table_PI[[#This Row],[Hide:\nFormula Name]],Table_SummaryPI[[#This Row],[Quantity]],Table_PI[[#This Row],[List 1]],Table_PI[[#This Row],[List 2]],Table_PI[[#This Row],[List 3]],Table_PI[[#This Row],[Size]],Table_PI[[#This Row],[Input 1]],Table_PI[[#This Row],[Input 2]],Table_PI[[#This Row],[Input 3]],Table_PI[[#This Row],[Input 4]],'Customer Information'!$AR$12,201,ROW()),\"\"),\"\")","v":""}]
[{"$f":"Table_PI[[#This Row],[Line No.]]","v":""},{"$f":"IF(Table_SummaryPI[[#This Row],[MeassureCategory]]<>\"\",CONCATENATE(Table_SummaryPI[[#This Row],[MeassureCategory]],  \" - \", Table_SummaryPI[[#This Row],[ProposedMeasureCategory]],  \" - \", TEXT(Table_SummaryPI[[#This Row],[Size]],\"#,##0.00\"),\" \",Table_SummaryPI[[#This Row],[SizeUnit]]),\"\")","v":""},{"$f":"SUBSTITUTE(Table_PI[[#This Row],[Measure]],\"     \",\"\",1)","v":""},{"$f":"IF(Table_PI[[#This Row],[List 1]]<>\"\",Table_PI[[#This Row],[List 1]],\"\")","v":""},{"$f":"IF(Table_PI[[#This Row],[List 2]]<>\"\",Table_PI[[#This Row],[List 2]],\"\")","v":""},{"$f":"IF(Table_PI[[#This Row],[List 3]]<>\"\",Table_PI[[#This Row],[List 3]],\"\")","v":""},{"$f":"IF(Table_PI[[#This Row],[Manufacturer]]=\"\",\"\",Table_PI[[#This Row],[Manufacturer]])","v":""},{"$f":"IF(Table_PI[[#This Row],[Model Number]]=\"\",\"\",Table_PI[[#This Row],[Model Number]])","v":""},{"$f":"IF(Table_PI[[#This Row],[Serial Number(s)]]=\"\",\"\",Table_PI[[#This Row],[Serial Number(s)]])","v":""},null,{"$f":"IF(Table_PI[[#This Row],[Size]]=\"\",\"\",Table_PI[[#This Row],[Size]])","v":""},null,{"$f":"IFERROR(IF(AND(MeasureCalc(Table_PI[[#This Row],[Hide:\nFormula Name]],Table_SummaryPI[[#This Row],[Quantity]],Table_PI[[#This Row],[List 1]],Table_PI[[#This Row],[List 2]],Table_PI[[#This Row],[List 3]],Table_PI[[#This Row],[Size]],Table_PI[[#This Row],[Input 1]],Table_PI[[#This Row],[Input 2]],Table_PI[[#This Row],[Input 3]],Table_PI[[#This Row],[Input 4]],'Customer Information'!$AR$12,100,ROW())<>0,MeasureCalc(Table_PI[[#This Row],[Hide:\nFormula Name]],Table_SummaryPI[[#This Row],[Quantity]],Table_PI[[#This Row],[List 1]],Table_PI[[#This Row],[List 2]],Table_PI[[#This Row],[List 3]],Table_PI[[#This Row],[Size]],Table_PI[[#This Row],[Input 1]],Table_PI[[#This Row],[Input 2]],Table_PI[[#This Row],[Input 3]],Table_PI[[#This Row],[Input 4]],'Customer Information'!$AR$12,100,ROW())<>\"No Rebate\"),MeasureCalc(Table_PI[[#This Row],[Hide:\nFormula Name]],Table_SummaryPI[[#This Row],[Quantity]],Table_PI[[#This Row],[List 1]],Table_PI[[#This Row],[List 2]],Table_PI[[#This Row],[List 3]],Table_PI[[#This Row],[Size]],Table_PI[[#This Row],[Input 1]],Table_PI[[#This Row],[Input 2]],Table_PI[[#This Row],[Input 3]],Table_PI[[#This Row],[Input 4]],'Customer Information'!$AR$12,100,ROW()),\"\"),\"\")","v":""},{"$f":"IF(Table_PI[[#This Row],[Input 1]]<>\"\",Table_PI[[#This Row],[Input 1]],\"\")","v":""},null,{"$f":"IFERROR(IF(AND(MeasureCalc(Table_PI[[#This Row],[Hide:\nFormula Name]],Table_SummaryPI[[#This Row],[Quantity]],Table_PI[[#This Row],[List 1]],Table_PI[[#This Row],[List 2]],Table_PI[[#This Row],[List 3]],Table_PI[[#This Row],[Size]],Table_PI[[#This Row],[Input 1]],Table_PI[[#This Row],[Input 2]],Table_PI[[#This Row],[Input 3]],Table_PI[[#This Row],[Input 4]],'Customer Information'!$AR$12,101,ROW())<>0,MeasureCalc(Table_PI[[#This Row],[Hide:\nFormula Name]],Table_SummaryPI[[#This Row],[Quantity]],Table_PI[[#This Row],[List 1]],Table_PI[[#This Row],[List 2]],Table_PI[[#This Row],[List 3]],Table_PI[[#This Row],[Size]],Table_PI[[#This Row],[Input 1]],Table_PI[[#This Row],[Input 2]],Table_PI[[#This Row],[Input 3]],Table_PI[[#This Row],[Input 4]],'Customer Information'!$AR$12,101,ROW())<>\"No Rebate\"),MeasureCalc(Table_PI[[#This Row],[Hide:\nFormula Name]],Table_SummaryPI[[#This Row],[Quantity]],Table_PI[[#This Row],[List 1]],Table_PI[[#This Row],[List 2]],Table_PI[[#This Row],[List 3]],Table_PI[[#This Row],[Size]],Table_PI[[#This Row],[Input 1]],Table_PI[[#This Row],[Input 2]],Table_PI[[#This Row],[Input 3]],Table_PI[[#This Row],[Input 4]],'Customer Information'!$AR$12,101,ROW()),\"\"),\"\")","v":""},{"$f":"IF(Table_PI[[#This Row],[Input 2]]<>\"\",Table_PI[[#This Row],[Input 2]],\"\")","v":""},null,{"$f":"IFERROR(IF(AND(MeasureCalc(Table_PI[[#This Row],[Hide:\nFormula Name]],Table_SummaryPI[[#This Row],[Quantity]],Table_PI[[#This Row],[List 1]],Table_PI[[#This Row],[List 2]],Table_PI[[#This Row],[List 3]],Table_PI[[#This Row],[Size]],Table_PI[[#This Row],[Input 1]],Table_PI[[#This Row],[Input 2]],Table_PI[[#This Row],[Input 3]],Table_PI[[#This Row],[Input 4]],'Customer Information'!$AR$12,102,ROW())<>0,MeasureCalc(Table_PI[[#This Row],[Hide:\nFormula Name]],Table_SummaryPI[[#This Row],[Quantity]],Table_PI[[#This Row],[List 1]],Table_PI[[#This Row],[List 2]],Table_PI[[#This Row],[List 3]],Table_PI[[#This Row],[Size]],Table_PI[[#This Row],[Input 1]],Table_PI[[#This Row],[Input 2]],Table_PI[[#This Row],[Input 3]],Table_PI[[#This Row],[Input 4]],'Customer Information'!$AR$12,102,ROW())<>\"No Rebate\"),MeasureCalc(Table_PI[[#This Row],[Hide:\nFormula Name]],Table_SummaryPI[[#This Row],[Quantity]],Table_PI[[#This Row],[List 1]],Table_PI[[#This Row],[List 2]],Table_PI[[#This Row],[List 3]],Table_PI[[#This Row],[Size]],Table_PI[[#This Row],[Input 1]],Table_PI[[#This Row],[Input 2]],Table_PI[[#This Row],[Input 3]],Table_PI[[#This Row],[Input 4]],'Customer Information'!$AR$12,102,ROW()),\"\"),\"\")","v":""},{"$f":"IF(Table_PI[[#This Row],[Input 3]]<>\"\",Table_PI[[#This Row],[Input 3]],\"\")","v":""},null,{"$f":"IFERROR(IF(AND(MeasureCalc(Table_PI[[#This Row],[Hide:\nFormula Name]],Table_SummaryPI[[#This Row],[Quantity]],Table_PI[[#This Row],[List 1]],Table_PI[[#This Row],[List 2]],Table_PI[[#This Row],[List 3]],Table_PI[[#This Row],[Size]],Table_PI[[#This Row],[Input 1]],Table_PI[[#This Row],[Input 2]],Table_PI[[#This Row],[Input 3]],Table_PI[[#This Row],[Input 4]],'Customer Information'!$AR$12,103,ROW())<>0,MeasureCalc(Table_PI[[#This Row],[Hide:\nFormula Name]],Table_SummaryPI[[#This Row],[Quantity]],Table_PI[[#This Row],[List 1]],Table_PI[[#This Row],[List 2]],Table_PI[[#This Row],[List 3]],Table_PI[[#This Row],[Size]],Table_PI[[#This Row],[Input 1]],Table_PI[[#This Row],[Input 2]],Table_PI[[#This Row],[Input 3]],Table_PI[[#This Row],[Input 4]],'Customer Information'!$AR$12,103,ROW())<>\"No Rebate\"),MeasureCalc(Table_PI[[#This Row],[Hide:\nFormula Name]],Table_SummaryPI[[#This Row],[Quantity]],Table_PI[[#This Row],[List 1]],Table_PI[[#This Row],[List 2]],Table_PI[[#This Row],[List 3]],Table_PI[[#This Row],[Size]],Table_PI[[#This Row],[Input 1]],Table_PI[[#This Row],[Input 2]],Table_PI[[#This Row],[Input 3]],Table_PI[[#This Row],[Input 4]],'Customer Information'!$AR$12,103,ROW()),\"\"),\"\")","v":""},{"$f":"IF(Table_PI[[#This Row],[Input 4]]<>\"\",Table_PI[[#This Row],[Input 4]],\"\")","v":""},{"$f":"IF(Table_PI[[#This Row],[Quantity]]=\"\",\"\",Table_PI[[#This Row],[Quantity]])","v":""},{"$f":"IF(Table_PI[[#This Row],[Notes]]=\"\",\"\",Table_PI[[#This Row],[Notes]])","v":""},{"$f":"IF(OR(Table_PI[[#This Row],[Hide:\nBaseline kWh]]=\"\",Table_PI[[#This Row],[Hide:\nBaseline kWh]]=0),\"\",Table_PI[[#This Row],[Hide:\nBaseline kWh]])","v":""},{"$f":"IF(OR(Table_PI[[#This Row],[Hide:\nBaseline kW]]=\"\",Table_PI[[#This Row],[Hide:\nBaseline kW]]=0),\"\",Table_PI[[#This Row],[Hide:\nBaseline kW]])","v":""},{"$f":"IF(OR(Table_PI[[#This Row],[Hide:\nProposed kWh]]=\"\",Table_PI[[#This Row],[Hide:\nProposed kWh]]=0),\"\",Table_PI[[#This Row],[Hide:\nProposed kWh]])","v":""},{"$f":"IF(OR(Table_PI[[#This Row],[Hide:\nProposed kW]]=\"\",Table_PI[[#This Row],[Hide:\nProposed kW]]=0),\"\",Table_PI[[#This Row],[Hide:\nProposed kW]])","v":""},{"$f":"IF(OR(Table_PI[[#This Row],[Rebate]]=\"\",Table_PI[[#This Row],[Rebate]]=0),\"\",Table_PI[[#This Row],[Rebate]])","v":""},{"$f":"IF(OR(Table_PI[[#This Row],[Hide:\nIncremental Cost]]=\"\",Table_PI[[#This Row],[Hide:\nIncremental Cost]]=0),\"\",Table_PI[[#This Row],[Hide:\nIncremental Cost]])","v":""},{"$f":"IFERROR(IF(Table_SummaryPI[[#This Row],[kWhSavings]]=\"\",\"\",ROUND(Table_SummaryPI[[#This Row],[kWhSavings]]/$AG$401*'Customer Information'!$BC$17,2)),0)","v":""},{"$f":"IF(OR(Table_PI[[#This Row],[Annual kWh]]=\"\",Table_PI[[#This Row],[Annual kWh]]=0),\"\",Table_PI[[#This Row],[Annual kWh]])","v":""},{"$f":"IF(OR(Table_PI[[#This Row],[Peak kW]]=\"\",Table_PI[[#This Row],[Peak kW]]=0),\"\",Table_PI[[#This Row],[Peak kW]])","v":""},{"$f":"IFERROR(IF(Table_SummaryPI[[#This Row],[kWhSavings]]=\"\",\"\",$AU$9*Table_SummaryPI[[#This Row],[kWhSavings]]),0)","v":""},{"$f":"IFERROR(IF(Table_SummaryPI[[#This Row],[kWhSavings]]=\"\",\"\",$AU$14*Table_SummaryPI[[#This Row],[kWhSavings]]),0)","v":""},{"$f":"IFERROR(IF(Table_SummaryPI[[#This Row],[kWhSavings]]=\"\",\"\",$AU$18*Table_SummaryPI[[#This Row],[kWhSavings]]),0)","v":""},{"$f":"IFERROR(IF(Table_SummaryPI[[#This Row],[kWhSavings]]=\"\",\"\",$AU$22*Table_SummaryPI[[#This Row],[kWhSavings]]),0)","v":""},{"$f":"IFERROR(IF(MeasureCalc(Table_PI[[#This Row],[Hide:\nFormula Name]],Table_SummaryPI[[#This Row],[Quantity]],Table_PI[[#This Row],[List 1]],Table_PI[[#This Row],[List 2]],Table_PI[[#This Row],[List 3]],Table_PI[[#This Row],[Size]],Table_PI[[#This Row],[Input 1]],Table_PI[[#This Row],[Input 2]],Table_PI[[#This Row],[Input 3]],Table_PI[[#This Row],[Input 4]],'Customer Information'!$AR$12,200,ROW())<>\"No Rebate\",MeasureCalc(Table_PI[[#This Row],[Hide:\nFormula Name]],Table_SummaryPI[[#This Row],[Quantity]],Table_PI[[#This Row],[List 1]],Table_PI[[#This Row],[List 2]],Table_PI[[#This Row],[List 3]],Table_PI[[#This Row],[Size]],Table_PI[[#This Row],[Input 1]],Table_PI[[#This Row],[Input 2]],Table_PI[[#This Row],[Input 3]],Table_PI[[#This Row],[Input 4]],'Customer Information'!$AR$12,200,ROW()),\"\"),\"\")","v":""},{"$f":"IFERROR(IF(MeasureCalc(Table_PI[[#This Row],[Hide:\nFormula Name]],Table_SummaryPI[[#This Row],[Quantity]],Table_PI[[#This Row],[List 1]],Table_PI[[#This Row],[List 2]],Table_PI[[#This Row],[List 3]],Table_PI[[#This Row],[Size]],Table_PI[[#This Row],[Input 1]],Table_PI[[#This Row],[Input 2]],Table_PI[[#This Row],[Input 3]],Table_PI[[#This Row],[Input 4]],'Customer Information'!$AR$12,201,ROW())<>\"No Rebate\",MeasureCalc(Table_PI[[#This Row],[Hide:\nFormula Name]],Table_SummaryPI[[#This Row],[Quantity]],Table_PI[[#This Row],[List 1]],Table_PI[[#This Row],[List 2]],Table_PI[[#This Row],[List 3]],Table_PI[[#This Row],[Size]],Table_PI[[#This Row],[Input 1]],Table_PI[[#This Row],[Input 2]],Table_PI[[#This Row],[Input 3]],Table_PI[[#This Row],[Input 4]],'Customer Information'!$AR$12,201,ROW()),\"\"),\"\")","v":""}]
[{"$f":"Table_PI[[#This Row],[Line No.]]","v":""},{"$f":"IF(Table_SummaryPI[[#This Row],[MeassureCategory]]<>\"\",CONCATENATE(Table_SummaryPI[[#This Row],[MeassureCategory]],  \" - \", Table_SummaryPI[[#This Row],[ProposedMeasureCategory]],  \" - \", TEXT(Table_SummaryPI[[#This Row],[Size]],\"#,##0.00\"),\" \",Table_SummaryPI[[#This Row],[SizeUnit]]),\"\")","v":""},{"$f":"SUBSTITUTE(Table_PI[[#This Row],[Measure]],\"     \",\"\",1)","v":""},{"$f":"IF(Table_PI[[#This Row],[List 1]]<>\"\",Table_PI[[#This Row],[List 1]],\"\")","v":""},{"$f":"IF(Table_PI[[#This Row],[List 2]]<>\"\",Table_PI[[#This Row],[List 2]],\"\")","v":""},{"$f":"IF(Table_PI[[#This Row],[List 3]]<>\"\",Table_PI[[#This Row],[List 3]],\"\")","v":""},{"$f":"IF(Table_PI[[#This Row],[Manufacturer]]=\"\",\"\",Table_PI[[#This Row],[Manufacturer]])","v":""},{"$f":"IF(Table_PI[[#This Row],[Model Number]]=\"\",\"\",Table_PI[[#This Row],[Model Number]])","v":""},{"$f":"IF(Table_PI[[#This Row],[Serial Number(s)]]=\"\",\"\",Table_PI[[#This Row],[Serial Number(s)]])","v":""},null,{"$f":"IF(Table_PI[[#This Row],[Size]]=\"\",\"\",Table_PI[[#This Row],[Size]])","v":""},null,{"$f":"IFERROR(IF(AND(MeasureCalc(Table_PI[[#This Row],[Hide:\nFormula Name]],Table_SummaryPI[[#This Row],[Quantity]],Table_PI[[#This Row],[List 1]],Table_PI[[#This Row],[List 2]],Table_PI[[#This Row],[List 3]],Table_PI[[#This Row],[Size]],Table_PI[[#This Row],[Input 1]],Table_PI[[#This Row],[Input 2]],Table_PI[[#This Row],[Input 3]],Table_PI[[#This Row],[Input 4]],'Customer Information'!$AR$12,100,ROW())<>0,MeasureCalc(Table_PI[[#This Row],[Hide:\nFormula Name]],Table_SummaryPI[[#This Row],[Quantity]],Table_PI[[#This Row],[List 1]],Table_PI[[#This Row],[List 2]],Table_PI[[#This Row],[List 3]],Table_PI[[#This Row],[Size]],Table_PI[[#This Row],[Input 1]],Table_PI[[#This Row],[Input 2]],Table_PI[[#This Row],[Input 3]],Table_PI[[#This Row],[Input 4]],'Customer Information'!$AR$12,100,ROW())<>\"No Rebate\"),MeasureCalc(Table_PI[[#This Row],[Hide:\nFormula Name]],Table_SummaryPI[[#This Row],[Quantity]],Table_PI[[#This Row],[List 1]],Table_PI[[#This Row],[List 2]],Table_PI[[#This Row],[List 3]],Table_PI[[#This Row],[Size]],Table_PI[[#This Row],[Input 1]],Table_PI[[#This Row],[Input 2]],Table_PI[[#This Row],[Input 3]],Table_PI[[#This Row],[Input 4]],'Customer Information'!$AR$12,100,ROW()),\"\"),\"\")","v":""},{"$f":"IF(Table_PI[[#This Row],[Input 1]]<>\"\",Table_PI[[#This Row],[Input 1]],\"\")","v":""},null,{"$f":"IFERROR(IF(AND(MeasureCalc(Table_PI[[#This Row],[Hide:\nFormula Name]],Table_SummaryPI[[#This Row],[Quantity]],Table_PI[[#This Row],[List 1]],Table_PI[[#This Row],[List 2]],Table_PI[[#This Row],[List 3]],Table_PI[[#This Row],[Size]],Table_PI[[#This Row],[Input 1]],Table_PI[[#This Row],[Input 2]],Table_PI[[#This Row],[Input 3]],Table_PI[[#This Row],[Input 4]],'Customer Information'!$AR$12,101,ROW())<>0,MeasureCalc(Table_PI[[#This Row],[Hide:\nFormula Name]],Table_SummaryPI[[#This Row],[Quantity]],Table_PI[[#This Row],[List 1]],Table_PI[[#This Row],[List 2]],Table_PI[[#This Row],[List 3]],Table_PI[[#This Row],[Size]],Table_PI[[#This Row],[Input 1]],Table_PI[[#This Row],[Input 2]],Table_PI[[#This Row],[Input 3]],Table_PI[[#This Row],[Input 4]],'Customer Information'!$AR$12,101,ROW())<>\"No Rebate\"),MeasureCalc(Table_PI[[#This Row],[Hide:\nFormula Name]],Table_SummaryPI[[#This Row],[Quantity]],Table_PI[[#This Row],[List 1]],Table_PI[[#This Row],[List 2]],Table_PI[[#This Row],[List 3]],Table_PI[[#This Row],[Size]],Table_PI[[#This Row],[Input 1]],Table_PI[[#This Row],[Input 2]],Table_PI[[#This Row],[Input 3]],Table_PI[[#This Row],[Input 4]],'Customer Information'!$AR$12,101,ROW()),\"\"),\"\")","v":""},{"$f":"IF(Table_PI[[#This Row],[Input 2]]<>\"\",Table_PI[[#This Row],[Input 2]],\"\")","v":""},null,{"$f":"IFERROR(IF(AND(MeasureCalc(Table_PI[[#This Row],[Hide:\nFormula Name]],Table_SummaryPI[[#This Row],[Quantity]],Table_PI[[#This Row],[List 1]],Table_PI[[#This Row],[List 2]],Table_PI[[#This Row],[List 3]],Table_PI[[#This Row],[Size]],Table_PI[[#This Row],[Input 1]],Table_PI[[#This Row],[Input 2]],Table_PI[[#This Row],[Input 3]],Table_PI[[#This Row],[Input 4]],'Customer Information'!$AR$12,102,ROW())<>0,MeasureCalc(Table_PI[[#This Row],[Hide:\nFormula Name]],Table_SummaryPI[[#This Row],[Quantity]],Table_PI[[#This Row],[List 1]],Table_PI[[#This Row],[List 2]],Table_PI[[#This Row],[List 3]],Table_PI[[#This Row],[Size]],Table_PI[[#This Row],[Input 1]],Table_PI[[#This Row],[Input 2]],Table_PI[[#This Row],[Input 3]],Table_PI[[#This Row],[Input 4]],'Customer Information'!$AR$12,102,ROW())<>\"No Rebate\"),MeasureCalc(Table_PI[[#This Row],[Hide:\nFormula Name]],Table_SummaryPI[[#This Row],[Quantity]],Table_PI[[#This Row],[List 1]],Table_PI[[#This Row],[List 2]],Table_PI[[#This Row],[List 3]],Table_PI[[#This Row],[Size]],Table_PI[[#This Row],[Input 1]],Table_PI[[#This Row],[Input 2]],Table_PI[[#This Row],[Input 3]],Table_PI[[#This Row],[Input 4]],'Customer Information'!$AR$12,102,ROW()),\"\"),\"\")","v":""},{"$f":"IF(Table_PI[[#This Row],[Input 3]]<>\"\",Table_PI[[#This Row],[Input 3]],\"\")","v":""},null,{"$f":"IFERROR(IF(AND(MeasureCalc(Table_PI[[#This Row],[Hide:\nFormula Name]],Table_SummaryPI[[#This Row],[Quantity]],Table_PI[[#This Row],[List 1]],Table_PI[[#This Row],[List 2]],Table_PI[[#This Row],[List 3]],Table_PI[[#This Row],[Size]],Table_PI[[#This Row],[Input 1]],Table_PI[[#This Row],[Input 2]],Table_PI[[#This Row],[Input 3]],Table_PI[[#This Row],[Input 4]],'Customer Information'!$AR$12,103,ROW())<>0,MeasureCalc(Table_PI[[#This Row],[Hide:\nFormula Name]],Table_SummaryPI[[#This Row],[Quantity]],Table_PI[[#This Row],[List 1]],Table_PI[[#This Row],[List 2]],Table_PI[[#This Row],[List 3]],Table_PI[[#This Row],[Size]],Table_PI[[#This Row],[Input 1]],Table_PI[[#This Row],[Input 2]],Table_PI[[#This Row],[Input 3]],Table_PI[[#This Row],[Input 4]],'Customer Information'!$AR$12,103,ROW())<>\"No Rebate\"),MeasureCalc(Table_PI[[#This Row],[Hide:\nFormula Name]],Table_SummaryPI[[#This Row],[Quantity]],Table_PI[[#This Row],[List 1]],Table_PI[[#This Row],[List 2]],Table_PI[[#This Row],[List 3]],Table_PI[[#This Row],[Size]],Table_PI[[#This Row],[Input 1]],Table_PI[[#This Row],[Input 2]],Table_PI[[#This Row],[Input 3]],Table_PI[[#This Row],[Input 4]],'Customer Information'!$AR$12,103,ROW()),\"\"),\"\")","v":""},{"$f":"IF(Table_PI[[#This Row],[Input 4]]<>\"\",Table_PI[[#This Row],[Input 4]],\"\")","v":""},{"$f":"IF(Table_PI[[#This Row],[Quantity]]=\"\",\"\",Table_PI[[#This Row],[Quantity]])","v":""},{"$f":"IF(Table_PI[[#This Row],[Notes]]=\"\",\"\",Table_PI[[#This Row],[Notes]])","v":""},{"$f":"IF(OR(Table_PI[[#This Row],[Hide:\nBaseline kWh]]=\"\",Table_PI[[#This Row],[Hide:\nBaseline kWh]]=0),\"\",Table_PI[[#This Row],[Hide:\nBaseline kWh]])","v":""},{"$f":"IF(OR(Table_PI[[#This Row],[Hide:\nBaseline kW]]=\"\",Table_PI[[#This Row],[Hide:\nBaseline kW]]=0),\"\",Table_PI[[#This Row],[Hide:\nBaseline kW]])","v":""},{"$f":"IF(OR(Table_PI[[#This Row],[Hide:\nProposed kWh]]=\"\",Table_PI[[#This Row],[Hide:\nProposed kWh]]=0),\"\",Table_PI[[#This Row],[Hide:\nProposed kWh]])","v":""},{"$f":"IF(OR(Table_PI[[#This Row],[Hide:\nProposed kW]]=\"\",Table_PI[[#This Row],[Hide:\nProposed kW]]=0),\"\",Table_PI[[#This Row],[Hide:\nProposed kW]])","v":""},{"$f":"IF(OR(Table_PI[[#This Row],[Rebate]]=\"\",Table_PI[[#This Row],[Rebate]]=0),\"\",Table_PI[[#This Row],[Rebate]])","v":""},{"$f":"IF(OR(Table_PI[[#This Row],[Hide:\nIncremental Cost]]=\"\",Table_PI[[#This Row],[Hide:\nIncremental Cost]]=0),\"\",Table_PI[[#This Row],[Hide:\nIncremental Cost]])","v":""},{"$f":"IFERROR(IF(Table_SummaryPI[[#This Row],[kWhSavings]]=\"\",\"\",ROUND(Table_SummaryPI[[#This Row],[kWhSavings]]/$AG$401*'Customer Information'!$BC$17,2)),0)","v":""},{"$f":"IF(OR(Table_PI[[#This Row],[Annual kWh]]=\"\",Table_PI[[#This Row],[Annual kWh]]=0),\"\",Table_PI[[#This Row],[Annual kWh]])","v":""},{"$f":"IF(OR(Table_PI[[#This Row],[Peak kW]]=\"\",Table_PI[[#This Row],[Peak kW]]=0),\"\",Table_PI[[#This Row],[Peak kW]])","v":""},{"$f":"IFERROR(IF(Table_SummaryPI[[#This Row],[kWhSavings]]=\"\",\"\",$AU$9*Table_SummaryPI[[#This Row],[kWhSavings]]),0)","v":""},{"$f":"IFERROR(IF(Table_SummaryPI[[#This Row],[kWhSavings]]=\"\",\"\",$AU$14*Table_SummaryPI[[#This Row],[kWhSavings]]),0)","v":""},{"$f":"IFERROR(IF(Table_SummaryPI[[#This Row],[kWhSavings]]=\"\",\"\",$AU$18*Table_SummaryPI[[#This Row],[kWhSavings]]),0)","v":""},{"$f":"IFERROR(IF(Table_SummaryPI[[#This Row],[kWhSavings]]=\"\",\"\",$AU$22*Table_SummaryPI[[#This Row],[kWhSavings]]),0)","v":""},{"$f":"IFERROR(IF(MeasureCalc(Table_PI[[#This Row],[Hide:\nFormula Name]],Table_SummaryPI[[#This Row],[Quantity]],Table_PI[[#This Row],[List 1]],Table_PI[[#This Row],[List 2]],Table_PI[[#This Row],[List 3]],Table_PI[[#This Row],[Size]],Table_PI[[#This Row],[Input 1]],Table_PI[[#This Row],[Input 2]],Table_PI[[#This Row],[Input 3]],Table_PI[[#This Row],[Input 4]],'Customer Information'!$AR$12,200,ROW())<>\"No Rebate\",MeasureCalc(Table_PI[[#This Row],[Hide:\nFormula Name]],Table_SummaryPI[[#This Row],[Quantity]],Table_PI[[#This Row],[List 1]],Table_PI[[#This Row],[List 2]],Table_PI[[#This Row],[List 3]],Table_PI[[#This Row],[Size]],Table_PI[[#This Row],[Input 1]],Table_PI[[#This Row],[Input 2]],Table_PI[[#This Row],[Input 3]],Table_PI[[#This Row],[Input 4]],'Customer Information'!$AR$12,200,ROW()),\"\"),\"\")","v":""},{"$f":"IFERROR(IF(MeasureCalc(Table_PI[[#This Row],[Hide:\nFormula Name]],Table_SummaryPI[[#This Row],[Quantity]],Table_PI[[#This Row],[List 1]],Table_PI[[#This Row],[List 2]],Table_PI[[#This Row],[List 3]],Table_PI[[#This Row],[Size]],Table_PI[[#This Row],[Input 1]],Table_PI[[#This Row],[Input 2]],Table_PI[[#This Row],[Input 3]],Table_PI[[#This Row],[Input 4]],'Customer Information'!$AR$12,201,ROW())<>\"No Rebate\",MeasureCalc(Table_PI[[#This Row],[Hide:\nFormula Name]],Table_SummaryPI[[#This Row],[Quantity]],Table_PI[[#This Row],[List 1]],Table_PI[[#This Row],[List 2]],Table_PI[[#This Row],[List 3]],Table_PI[[#This Row],[Size]],Table_PI[[#This Row],[Input 1]],Table_PI[[#This Row],[Input 2]],Table_PI[[#This Row],[Input 3]],Table_PI[[#This Row],[Input 4]],'Customer Information'!$AR$12,201,ROW()),\"\"),\"\")","v":""}]
[{"$f":"Table_PI[[#This Row],[Line No.]]","v":""},{"$f":"IF(Table_SummaryPI[[#This Row],[MeassureCategory]]<>\"\",CONCATENATE(Table_SummaryPI[[#This Row],[MeassureCategory]],  \" - \", Table_SummaryPI[[#This Row],[ProposedMeasureCategory]],  \" - \", TEXT(Table_SummaryPI[[#This Row],[Size]],\"#,##0.00\"),\" \",Table_SummaryPI[[#This Row],[SizeUnit]]),\"\")","v":""},{"$f":"SUBSTITUTE(Table_PI[[#This Row],[Measure]],\"     \",\"\",1)","v":""},{"$f":"IF(Table_PI[[#This Row],[List 1]]<>\"\",Table_PI[[#This Row],[List 1]],\"\")","v":""},{"$f":"IF(Table_PI[[#This Row],[List 2]]<>\"\",Table_PI[[#This Row],[List 2]],\"\")","v":""},{"$f":"IF(Table_PI[[#This Row],[List 3]]<>\"\",Table_PI[[#This Row],[List 3]],\"\")","v":""},{"$f":"IF(Table_PI[[#This Row],[Manufacturer]]=\"\",\"\",Table_PI[[#This Row],[Manufacturer]])","v":""},{"$f":"IF(Table_PI[[#This Row],[Model Number]]=\"\",\"\",Table_PI[[#This Row],[Model Number]])","v":""},{"$f":"IF(Table_PI[[#This Row],[Serial Number(s)]]=\"\",\"\",Table_PI[[#This Row],[Serial Number(s)]])","v":""},null,{"$f":"IF(Table_PI[[#This Row],[Size]]=\"\",\"\",Table_PI[[#This Row],[Size]])","v":""},null,{"$f":"IFERROR(IF(AND(MeasureCalc(Table_PI[[#This Row],[Hide:\nFormula Name]],Table_SummaryPI[[#This Row],[Quantity]],Table_PI[[#This Row],[List 1]],Table_PI[[#This Row],[List 2]],Table_PI[[#This Row],[List 3]],Table_PI[[#This Row],[Size]],Table_PI[[#This Row],[Input 1]],Table_PI[[#This Row],[Input 2]],Table_PI[[#This Row],[Input 3]],Table_PI[[#This Row],[Input 4]],'Customer Information'!$AR$12,100,ROW())<>0,MeasureCalc(Table_PI[[#This Row],[Hide:\nFormula Name]],Table_SummaryPI[[#This Row],[Quantity]],Table_PI[[#This Row],[List 1]],Table_PI[[#This Row],[List 2]],Table_PI[[#This Row],[List 3]],Table_PI[[#This Row],[Size]],Table_PI[[#This Row],[Input 1]],Table_PI[[#This Row],[Input 2]],Table_PI[[#This Row],[Input 3]],Table_PI[[#This Row],[Input 4]],'Customer Information'!$AR$12,100,ROW())<>\"No Rebate\"),MeasureCalc(Table_PI[[#This Row],[Hide:\nFormula Name]],Table_SummaryPI[[#This Row],[Quantity]],Table_PI[[#This Row],[List 1]],Table_PI[[#This Row],[List 2]],Table_PI[[#This Row],[List 3]],Table_PI[[#This Row],[Size]],Table_PI[[#This Row],[Input 1]],Table_PI[[#This Row],[Input 2]],Table_PI[[#This Row],[Input 3]],Table_PI[[#This Row],[Input 4]],'Customer Information'!$AR$12,100,ROW()),\"\"),\"\")","v":""},{"$f":"IF(Table_PI[[#This Row],[Input 1]]<>\"\",Table_PI[[#This Row],[Input 1]],\"\")","v":""},null,{"$f":"IFERROR(IF(AND(MeasureCalc(Table_PI[[#This Row],[Hide:\nFormula Name]],Table_SummaryPI[[#This Row],[Quantity]],Table_PI[[#This Row],[List 1]],Table_PI[[#This Row],[List 2]],Table_PI[[#This Row],[List 3]],Table_PI[[#This Row],[Size]],Table_PI[[#This Row],[Input 1]],Table_PI[[#This Row],[Input 2]],Table_PI[[#This Row],[Input 3]],Table_PI[[#This Row],[Input 4]],'Customer Information'!$AR$12,101,ROW())<>0,MeasureCalc(Table_PI[[#This Row],[Hide:\nFormula Name]],Table_SummaryPI[[#This Row],[Quantity]],Table_PI[[#This Row],[List 1]],Table_PI[[#This Row],[List 2]],Table_PI[[#This Row],[List 3]],Table_PI[[#This Row],[Size]],Table_PI[[#This Row],[Input 1]],Table_PI[[#This Row],[Input 2]],Table_PI[[#This Row],[Input 3]],Table_PI[[#This Row],[Input 4]],'Customer Information'!$AR$12,101,ROW())<>\"No Rebate\"),MeasureCalc(Table_PI[[#This Row],[Hide:\nFormula Name]],Table_SummaryPI[[#This Row],[Quantity]],Table_PI[[#This Row],[List 1]],Table_PI[[#This Row],[List 2]],Table_PI[[#This Row],[List 3]],Table_PI[[#This Row],[Size]],Table_PI[[#This Row],[Input 1]],Table_PI[[#This Row],[Input 2]],Table_PI[[#This Row],[Input 3]],Table_PI[[#This Row],[Input 4]],'Customer Information'!$AR$12,101,ROW()),\"\"),\"\")","v":""},{"$f":"IF(Table_PI[[#This Row],[Input 2]]<>\"\",Table_PI[[#This Row],[Input 2]],\"\")","v":""},null,{"$f":"IFERROR(IF(AND(MeasureCalc(Table_PI[[#This Row],[Hide:\nFormula Name]],Table_SummaryPI[[#This Row],[Quantity]],Table_PI[[#This Row],[List 1]],Table_PI[[#This Row],[List 2]],Table_PI[[#This Row],[List 3]],Table_PI[[#This Row],[Size]],Table_PI[[#This Row],[Input 1]],Table_PI[[#This Row],[Input 2]],Table_PI[[#This Row],[Input 3]],Table_PI[[#This Row],[Input 4]],'Customer Information'!$AR$12,102,ROW())<>0,MeasureCalc(Table_PI[[#This Row],[Hide:\nFormula Name]],Table_SummaryPI[[#This Row],[Quantity]],Table_PI[[#This Row],[List 1]],Table_PI[[#This Row],[List 2]],Table_PI[[#This Row],[List 3]],Table_PI[[#This Row],[Size]],Table_PI[[#This Row],[Input 1]],Table_PI[[#This Row],[Input 2]],Table_PI[[#This Row],[Input 3]],Table_PI[[#This Row],[Input 4]],'Customer Information'!$AR$12,102,ROW())<>\"No Rebate\"),MeasureCalc(Table_PI[[#This Row],[Hide:\nFormula Name]],Table_SummaryPI[[#This Row],[Quantity]],Table_PI[[#This Row],[List 1]],Table_PI[[#This Row],[List 2]],Table_PI[[#This Row],[List 3]],Table_PI[[#This Row],[Size]],Table_PI[[#This Row],[Input 1]],Table_PI[[#This Row],[Input 2]],Table_PI[[#This Row],[Input 3]],Table_PI[[#This Row],[Input 4]],'Customer Information'!$AR$12,102,ROW()),\"\"),\"\")","v":""},{"$f":"IF(Table_PI[[#This Row],[Input 3]]<>\"\",Table_PI[[#This Row],[Input 3]],\"\")","v":""},null,{"$f":"IFERROR(IF(AND(MeasureCalc(Table_PI[[#This Row],[Hide:\nFormula Name]],Table_SummaryPI[[#This Row],[Quantity]],Table_PI[[#This Row],[List 1]],Table_PI[[#This Row],[List 2]],Table_PI[[#This Row],[List 3]],Table_PI[[#This Row],[Size]],Table_PI[[#This Row],[Input 1]],Table_PI[[#This Row],[Input 2]],Table_PI[[#This Row],[Input 3]],Table_PI[[#This Row],[Input 4]],'Customer Information'!$AR$12,103,ROW())<>0,MeasureCalc(Table_PI[[#This Row],[Hide:\nFormula Name]],Table_SummaryPI[[#This Row],[Quantity]],Table_PI[[#This Row],[List 1]],Table_PI[[#This Row],[List 2]],Table_PI[[#This Row],[List 3]],Table_PI[[#This Row],[Size]],Table_PI[[#This Row],[Input 1]],Table_PI[[#This Row],[Input 2]],Table_PI[[#This Row],[Input 3]],Table_PI[[#This Row],[Input 4]],'Customer Information'!$AR$12,103,ROW())<>\"No Rebate\"),MeasureCalc(Table_PI[[#This Row],[Hide:\nFormula Name]],Table_SummaryPI[[#This Row],[Quantity]],Table_PI[[#This Row],[List 1]],Table_PI[[#This Row],[List 2]],Table_PI[[#This Row],[List 3]],Table_PI[[#This Row],[Size]],Table_PI[[#This Row],[Input 1]],Table_PI[[#This Row],[Input 2]],Table_PI[[#This Row],[Input 3]],Table_PI[[#This Row],[Input 4]],'Customer Information'!$AR$12,103,ROW()),\"\"),\"\")","v":""},{"$f":"IF(Table_PI[[#This Row],[Input 4]]<>\"\",Table_PI[[#This Row],[Input 4]],\"\")","v":""},{"$f":"IF(Table_PI[[#This Row],[Quantity]]=\"\",\"\",Table_PI[[#This Row],[Quantity]])","v":""},{"$f":"IF(Table_PI[[#This Row],[Notes]]=\"\",\"\",Table_PI[[#This Row],[Notes]])","v":""},{"$f":"IF(OR(Table_PI[[#This Row],[Hide:\nBaseline kWh]]=\"\",Table_PI[[#This Row],[Hide:\nBaseline kWh]]=0),\"\",Table_PI[[#This Row],[Hide:\nBaseline kWh]])","v":""},{"$f":"IF(OR(Table_PI[[#This Row],[Hide:\nBaseline kW]]=\"\",Table_PI[[#This Row],[Hide:\nBaseline kW]]=0),\"\",Table_PI[[#This Row],[Hide:\nBaseline kW]])","v":""},{"$f":"IF(OR(Table_PI[[#This Row],[Hide:\nProposed kWh]]=\"\",Table_PI[[#This Row],[Hide:\nProposed kWh]]=0),\"\",Table_PI[[#This Row],[Hide:\nProposed kWh]])","v":""},{"$f":"IF(OR(Table_PI[[#This Row],[Hide:\nProposed kW]]=\"\",Table_PI[[#This Row],[Hide:\nProposed kW]]=0),\"\",Table_PI[[#This Row],[Hide:\nProposed kW]])","v":""},{"$f":"IF(OR(Table_PI[[#This Row],[Rebate]]=\"\",Table_PI[[#This Row],[Rebate]]=0),\"\",Table_PI[[#This Row],[Rebate]])","v":""},{"$f":"IF(OR(Table_PI[[#This Row],[Hide:\nIncremental Cost]]=\"\",Table_PI[[#This Row],[Hide:\nIncremental Cost]]=0),\"\",Table_PI[[#This Row],[Hide:\nIncremental Cost]])","v":""},{"$f":"IFERROR(IF(Table_SummaryPI[[#This Row],[kWhSavings]]=\"\",\"\",ROUND(Table_SummaryPI[[#This Row],[kWhSavings]]/$AG$401*'Customer Information'!$BC$17,2)),0)","v":""},{"$f":"IF(OR(Table_PI[[#This Row],[Annual kWh]]=\"\",Table_PI[[#This Row],[Annual kWh]]=0),\"\",Table_PI[[#This Row],[Annual kWh]])","v":""},{"$f":"IF(OR(Table_PI[[#This Row],[Peak kW]]=\"\",Table_PI[[#This Row],[Peak kW]]=0),\"\",Table_PI[[#This Row],[Peak kW]])","v":""},{"$f":"IFERROR(IF(Table_SummaryPI[[#This Row],[kWhSavings]]=\"\",\"\",$AU$9*Table_SummaryPI[[#This Row],[kWhSavings]]),0)","v":""},{"$f":"IFERROR(IF(Table_SummaryPI[[#This Row],[kWhSavings]]=\"\",\"\",$AU$14*Table_SummaryPI[[#This Row],[kWhSavings]]),0)","v":""},{"$f":"IFERROR(IF(Table_SummaryPI[[#This Row],[kWhSavings]]=\"\",\"\",$AU$18*Table_SummaryPI[[#This Row],[kWhSavings]]),0)","v":""},{"$f":"IFERROR(IF(Table_SummaryPI[[#This Row],[kWhSavings]]=\"\",\"\",$AU$22*Table_SummaryPI[[#This Row],[kWhSavings]]),0)","v":""},{"$f":"IFERROR(IF(MeasureCalc(Table_PI[[#This Row],[Hide:\nFormula Name]],Table_SummaryPI[[#This Row],[Quantity]],Table_PI[[#This Row],[List 1]],Table_PI[[#This Row],[List 2]],Table_PI[[#This Row],[List 3]],Table_PI[[#This Row],[Size]],Table_PI[[#This Row],[Input 1]],Table_PI[[#This Row],[Input 2]],Table_PI[[#This Row],[Input 3]],Table_PI[[#This Row],[Input 4]],'Customer Information'!$AR$12,200,ROW())<>\"No Rebate\",MeasureCalc(Table_PI[[#This Row],[Hide:\nFormula Name]],Table_SummaryPI[[#This Row],[Quantity]],Table_PI[[#This Row],[List 1]],Table_PI[[#This Row],[List 2]],Table_PI[[#This Row],[List 3]],Table_PI[[#This Row],[Size]],Table_PI[[#This Row],[Input 1]],Table_PI[[#This Row],[Input 2]],Table_PI[[#This Row],[Input 3]],Table_PI[[#This Row],[Input 4]],'Customer Information'!$AR$12,200,ROW()),\"\"),\"\")","v":""},{"$f":"IFERROR(IF(MeasureCalc(Table_PI[[#This Row],[Hide:\nFormula Name]],Table_SummaryPI[[#This Row],[Quantity]],Table_PI[[#This Row],[List 1]],Table_PI[[#This Row],[List 2]],Table_PI[[#This Row],[List 3]],Table_PI[[#This Row],[Size]],Table_PI[[#This Row],[Input 1]],Table_PI[[#This Row],[Input 2]],Table_PI[[#This Row],[Input 3]],Table_PI[[#This Row],[Input 4]],'Customer Information'!$AR$12,201,ROW())<>\"No Rebate\",MeasureCalc(Table_PI[[#This Row],[Hide:\nFormula Name]],Table_SummaryPI[[#This Row],[Quantity]],Table_PI[[#This Row],[List 1]],Table_PI[[#This Row],[List 2]],Table_PI[[#This Row],[List 3]],Table_PI[[#This Row],[Size]],Table_PI[[#This Row],[Input 1]],Table_PI[[#This Row],[Input 2]],Table_PI[[#This Row],[Input 3]],Table_PI[[#This Row],[Input 4]],'Customer Information'!$AR$12,201,ROW()),\"\"),\"\")","v":""}]
[{"$f":"Table_PI[[#This Row],[Line No.]]","v":""},{"$f":"IF(Table_SummaryPI[[#This Row],[MeassureCategory]]<>\"\",CONCATENATE(Table_SummaryPI[[#This Row],[MeassureCategory]],  \" - \", Table_SummaryPI[[#This Row],[ProposedMeasureCategory]],  \" - \", TEXT(Table_SummaryPI[[#This Row],[Size]],\"#,##0.00\"),\" \",Table_SummaryPI[[#This Row],[SizeUnit]]),\"\")","v":""},{"$f":"SUBSTITUTE(Table_PI[[#This Row],[Measure]],\"     \",\"\",1)","v":""},{"$f":"IF(Table_PI[[#This Row],[List 1]]<>\"\",Table_PI[[#This Row],[List 1]],\"\")","v":""},{"$f":"IF(Table_PI[[#This Row],[List 2]]<>\"\",Table_PI[[#This Row],[List 2]],\"\")","v":""},{"$f":"IF(Table_PI[[#This Row],[List 3]]<>\"\",Table_PI[[#This Row],[List 3]],\"\")","v":""},{"$f":"IF(Table_PI[[#This Row],[Manufacturer]]=\"\",\"\",Table_PI[[#This Row],[Manufacturer]])","v":""},{"$f":"IF(Table_PI[[#This Row],[Model Number]]=\"\",\"\",Table_PI[[#This Row],[Model Number]])","v":""},{"$f":"IF(Table_PI[[#This Row],[Serial Number(s)]]=\"\",\"\",Table_PI[[#This Row],[Serial Number(s)]])","v":""},null,{"$f":"IF(Table_PI[[#This Row],[Size]]=\"\",\"\",Table_PI[[#This Row],[Size]])","v":""},null,{"$f":"IFERROR(IF(AND(MeasureCalc(Table_PI[[#This Row],[Hide:\nFormula Name]],Table_SummaryPI[[#This Row],[Quantity]],Table_PI[[#This Row],[List 1]],Table_PI[[#This Row],[List 2]],Table_PI[[#This Row],[List 3]],Table_PI[[#This Row],[Size]],Table_PI[[#This Row],[Input 1]],Table_PI[[#This Row],[Input 2]],Table_PI[[#This Row],[Input 3]],Table_PI[[#This Row],[Input 4]],'Customer Information'!$AR$12,100,ROW())<>0,MeasureCalc(Table_PI[[#This Row],[Hide:\nFormula Name]],Table_SummaryPI[[#This Row],[Quantity]],Table_PI[[#This Row],[List 1]],Table_PI[[#This Row],[List 2]],Table_PI[[#This Row],[List 3]],Table_PI[[#This Row],[Size]],Table_PI[[#This Row],[Input 1]],Table_PI[[#This Row],[Input 2]],Table_PI[[#This Row],[Input 3]],Table_PI[[#This Row],[Input 4]],'Customer Information'!$AR$12,100,ROW())<>\"No Rebate\"),MeasureCalc(Table_PI[[#This Row],[Hide:\nFormula Name]],Table_SummaryPI[[#This Row],[Quantity]],Table_PI[[#This Row],[List 1]],Table_PI[[#This Row],[List 2]],Table_PI[[#This Row],[List 3]],Table_PI[[#This Row],[Size]],Table_PI[[#This Row],[Input 1]],Table_PI[[#This Row],[Input 2]],Table_PI[[#This Row],[Input 3]],Table_PI[[#This Row],[Input 4]],'Customer Information'!$AR$12,100,ROW()),\"\"),\"\")","v":""},{"$f":"IF(Table_PI[[#This Row],[Input 1]]<>\"\",Table_PI[[#This Row],[Input 1]],\"\")","v":""},null,{"$f":"IFERROR(IF(AND(MeasureCalc(Table_PI[[#This Row],[Hide:\nFormula Name]],Table_SummaryPI[[#This Row],[Quantity]],Table_PI[[#This Row],[List 1]],Table_PI[[#This Row],[List 2]],Table_PI[[#This Row],[List 3]],Table_PI[[#This Row],[Size]],Table_PI[[#This Row],[Input 1]],Table_PI[[#This Row],[Input 2]],Table_PI[[#This Row],[Input 3]],Table_PI[[#This Row],[Input 4]],'Customer Information'!$AR$12,101,ROW())<>0,MeasureCalc(Table_PI[[#This Row],[Hide:\nFormula Name]],Table_SummaryPI[[#This Row],[Quantity]],Table_PI[[#This Row],[List 1]],Table_PI[[#This Row],[List 2]],Table_PI[[#This Row],[List 3]],Table_PI[[#This Row],[Size]],Table_PI[[#This Row],[Input 1]],Table_PI[[#This Row],[Input 2]],Table_PI[[#This Row],[Input 3]],Table_PI[[#This Row],[Input 4]],'Customer Information'!$AR$12,101,ROW())<>\"No Rebate\"),MeasureCalc(Table_PI[[#This Row],[Hide:\nFormula Name]],Table_SummaryPI[[#This Row],[Quantity]],Table_PI[[#This Row],[List 1]],Table_PI[[#This Row],[List 2]],Table_PI[[#This Row],[List 3]],Table_PI[[#This Row],[Size]],Table_PI[[#This Row],[Input 1]],Table_PI[[#This Row],[Input 2]],Table_PI[[#This Row],[Input 3]],Table_PI[[#This Row],[Input 4]],'Customer Information'!$AR$12,101,ROW()),\"\"),\"\")","v":""},{"$f":"IF(Table_PI[[#This Row],[Input 2]]<>\"\",Table_PI[[#This Row],[Input 2]],\"\")","v":""},null,{"$f":"IFERROR(IF(AND(MeasureCalc(Table_PI[[#This Row],[Hide:\nFormula Name]],Table_SummaryPI[[#This Row],[Quantity]],Table_PI[[#This Row],[List 1]],Table_PI[[#This Row],[List 2]],Table_PI[[#This Row],[List 3]],Table_PI[[#This Row],[Size]],Table_PI[[#This Row],[Input 1]],Table_PI[[#This Row],[Input 2]],Table_PI[[#This Row],[Input 3]],Table_PI[[#This Row],[Input 4]],'Customer Information'!$AR$12,102,ROW())<>0,MeasureCalc(Table_PI[[#This Row],[Hide:\nFormula Name]],Table_SummaryPI[[#This Row],[Quantity]],Table_PI[[#This Row],[List 1]],Table_PI[[#This Row],[List 2]],Table_PI[[#This Row],[List 3]],Table_PI[[#This Row],[Size]],Table_PI[[#This Row],[Input 1]],Table_PI[[#This Row],[Input 2]],Table_PI[[#This Row],[Input 3]],Table_PI[[#This Row],[Input 4]],'Customer Information'!$AR$12,102,ROW())<>\"No Rebate\"),MeasureCalc(Table_PI[[#This Row],[Hide:\nFormula Name]],Table_SummaryPI[[#This Row],[Quantity]],Table_PI[[#This Row],[List 1]],Table_PI[[#This Row],[List 2]],Table_PI[[#This Row],[List 3]],Table_PI[[#This Row],[Size]],Table_PI[[#This Row],[Input 1]],Table_PI[[#This Row],[Input 2]],Table_PI[[#This Row],[Input 3]],Table_PI[[#This Row],[Input 4]],'Customer Information'!$AR$12,102,ROW()),\"\"),\"\")","v":""},{"$f":"IF(Table_PI[[#This Row],[Input 3]]<>\"\",Table_PI[[#This Row],[Input 3]],\"\")","v":""},null,{"$f":"IFERROR(IF(AND(MeasureCalc(Table_PI[[#This Row],[Hide:\nFormula Name]],Table_SummaryPI[[#This Row],[Quantity]],Table_PI[[#This Row],[List 1]],Table_PI[[#This Row],[List 2]],Table_PI[[#This Row],[List 3]],Table_PI[[#This Row],[Size]],Table_PI[[#This Row],[Input 1]],Table_PI[[#This Row],[Input 2]],Table_PI[[#This Row],[Input 3]],Table_PI[[#This Row],[Input 4]],'Customer Information'!$AR$12,103,ROW())<>0,MeasureCalc(Table_PI[[#This Row],[Hide:\nFormula Name]],Table_SummaryPI[[#This Row],[Quantity]],Table_PI[[#This Row],[List 1]],Table_PI[[#This Row],[List 2]],Table_PI[[#This Row],[List 3]],Table_PI[[#This Row],[Size]],Table_PI[[#This Row],[Input 1]],Table_PI[[#This Row],[Input 2]],Table_PI[[#This Row],[Input 3]],Table_PI[[#This Row],[Input 4]],'Customer Information'!$AR$12,103,ROW())<>\"No Rebate\"),MeasureCalc(Table_PI[[#This Row],[Hide:\nFormula Name]],Table_SummaryPI[[#This Row],[Quantity]],Table_PI[[#This Row],[List 1]],Table_PI[[#This Row],[List 2]],Table_PI[[#This Row],[List 3]],Table_PI[[#This Row],[Size]],Table_PI[[#This Row],[Input 1]],Table_PI[[#This Row],[Input 2]],Table_PI[[#This Row],[Input 3]],Table_PI[[#This Row],[Input 4]],'Customer Information'!$AR$12,103,ROW()),\"\"),\"\")","v":""},{"$f":"IF(Table_PI[[#This Row],[Input 4]]<>\"\",Table_PI[[#This Row],[Input 4]],\"\")","v":""},{"$f":"IF(Table_PI[[#This Row],[Quantity]]=\"\",\"\",Table_PI[[#This Row],[Quantity]])","v":""},{"$f":"IF(Table_PI[[#This Row],[Notes]]=\"\",\"\",Table_PI[[#This Row],[Notes]])","v":""},{"$f":"IF(OR(Table_PI[[#This Row],[Hide:\nBaseline kWh]]=\"\",Table_PI[[#This Row],[Hide:\nBaseline kWh]]=0),\"\",Table_PI[[#This Row],[Hide:\nBaseline kWh]])","v":""},{"$f":"IF(OR(Table_PI[[#This Row],[Hide:\nBaseline kW]]=\"\",Table_PI[[#This Row],[Hide:\nBaseline kW]]=0),\"\",Table_PI[[#This Row],[Hide:\nBaseline kW]])","v":""},{"$f":"IF(OR(Table_PI[[#This Row],[Hide:\nProposed kWh]]=\"\",Table_PI[[#This Row],[Hide:\nProposed kWh]]=0),\"\",Table_PI[[#This Row],[Hide:\nProposed kWh]])","v":""},{"$f":"IF(OR(Table_PI[[#This Row],[Hide:\nProposed kW]]=\"\",Table_PI[[#This Row],[Hide:\nProposed kW]]=0),\"\",Table_PI[[#This Row],[Hide:\nProposed kW]])","v":""},{"$f":"IF(OR(Table_PI[[#This Row],[Rebate]]=\"\",Table_PI[[#This Row],[Rebate]]=0),\"\",Table_PI[[#This Row],[Rebate]])","v":""},{"$f":"IF(OR(Table_PI[[#This Row],[Hide:\nIncremental Cost]]=\"\",Table_PI[[#This Row],[Hide:\nIncremental Cost]]=0),\"\",Table_PI[[#This Row],[Hide:\nIncremental Cost]])","v":""},{"$f":"IFERROR(IF(Table_SummaryPI[[#This Row],[kWhSavings]]=\"\",\"\",ROUND(Table_SummaryPI[[#This Row],[kWhSavings]]/$AG$401*'Customer Information'!$BC$17,2)),0)","v":""},{"$f":"IF(OR(Table_PI[[#This Row],[Annual kWh]]=\"\",Table_PI[[#This Row],[Annual kWh]]=0),\"\",Table_PI[[#This Row],[Annual kWh]])","v":""},{"$f":"IF(OR(Table_PI[[#This Row],[Peak kW]]=\"\",Table_PI[[#This Row],[Peak kW]]=0),\"\",Table_PI[[#This Row],[Peak kW]])","v":""},{"$f":"IFERROR(IF(Table_SummaryPI[[#This Row],[kWhSavings]]=\"\",\"\",$AU$9*Table_SummaryPI[[#This Row],[kWhSavings]]),0)","v":""},{"$f":"IFERROR(IF(Table_SummaryPI[[#This Row],[kWhSavings]]=\"\",\"\",$AU$14*Table_SummaryPI[[#This Row],[kWhSavings]]),0)","v":""},{"$f":"IFERROR(IF(Table_SummaryPI[[#This Row],[kWhSavings]]=\"\",\"\",$AU$18*Table_SummaryPI[[#This Row],[kWhSavings]]),0)","v":""},{"$f":"IFERROR(IF(Table_SummaryPI[[#This Row],[kWhSavings]]=\"\",\"\",$AU$22*Table_SummaryPI[[#This Row],[kWhSavings]]),0)","v":""},{"$f":"IFERROR(IF(MeasureCalc(Table_PI[[#This Row],[Hide:\nFormula Name]],Table_SummaryPI[[#This Row],[Quantity]],Table_PI[[#This Row],[List 1]],Table_PI[[#This Row],[List 2]],Table_PI[[#This Row],[List 3]],Table_PI[[#This Row],[Size]],Table_PI[[#This Row],[Input 1]],Table_PI[[#This Row],[Input 2]],Table_PI[[#This Row],[Input 3]],Table_PI[[#This Row],[Input 4]],'Customer Information'!$AR$12,200,ROW())<>\"No Rebate\",MeasureCalc(Table_PI[[#This Row],[Hide:\nFormula Name]],Table_SummaryPI[[#This Row],[Quantity]],Table_PI[[#This Row],[List 1]],Table_PI[[#This Row],[List 2]],Table_PI[[#This Row],[List 3]],Table_PI[[#This Row],[Size]],Table_PI[[#This Row],[Input 1]],Table_PI[[#This Row],[Input 2]],Table_PI[[#This Row],[Input 3]],Table_PI[[#This Row],[Input 4]],'Customer Information'!$AR$12,200,ROW()),\"\"),\"\")","v":""},{"$f":"IFERROR(IF(MeasureCalc(Table_PI[[#This Row],[Hide:\nFormula Name]],Table_SummaryPI[[#This Row],[Quantity]],Table_PI[[#This Row],[List 1]],Table_PI[[#This Row],[List 2]],Table_PI[[#This Row],[List 3]],Table_PI[[#This Row],[Size]],Table_PI[[#This Row],[Input 1]],Table_PI[[#This Row],[Input 2]],Table_PI[[#This Row],[Input 3]],Table_PI[[#This Row],[Input 4]],'Customer Information'!$AR$12,201,ROW())<>\"No Rebate\",MeasureCalc(Table_PI[[#This Row],[Hide:\nFormula Name]],Table_SummaryPI[[#This Row],[Quantity]],Table_PI[[#This Row],[List 1]],Table_PI[[#This Row],[List 2]],Table_PI[[#This Row],[List 3]],Table_PI[[#This Row],[Size]],Table_PI[[#This Row],[Input 1]],Table_PI[[#This Row],[Input 2]],Table_PI[[#This Row],[Input 3]],Table_PI[[#This Row],[Input 4]],'Customer Information'!$AR$12,201,ROW()),\"\"),\"\")","v":""}]
[{"$f":"Table_PI[[#This Row],[Line No.]]","v":""},{"$f":"IF(Table_SummaryPI[[#This Row],[MeassureCategory]]<>\"\",CONCATENATE(Table_SummaryPI[[#This Row],[MeassureCategory]],  \" - \", Table_SummaryPI[[#This Row],[ProposedMeasureCategory]],  \" - \", TEXT(Table_SummaryPI[[#This Row],[Size]],\"#,##0.00\"),\" \",Table_SummaryPI[[#This Row],[SizeUnit]]),\"\")","v":""},{"$f":"SUBSTITUTE(Table_PI[[#This Row],[Measure]],\"     \",\"\",1)","v":""},{"$f":"IF(Table_PI[[#This Row],[List 1]]<>\"\",Table_PI[[#This Row],[List 1]],\"\")","v":""},{"$f":"IF(Table_PI[[#This Row],[List 2]]<>\"\",Table_PI[[#This Row],[List 2]],\"\")","v":""},{"$f":"IF(Table_PI[[#This Row],[List 3]]<>\"\",Table_PI[[#This Row],[List 3]],\"\")","v":""},{"$f":"IF(Table_PI[[#This Row],[Manufacturer]]=\"\",\"\",Table_PI[[#This Row],[Manufacturer]])","v":""},{"$f":"IF(Table_PI[[#This Row],[Model Number]]=\"\",\"\",Table_PI[[#This Row],[Model Number]])","v":""},{"$f":"IF(Table_PI[[#This Row],[Serial Number(s)]]=\"\",\"\",Table_PI[[#This Row],[Serial Number(s)]])","v":""},null,{"$f":"IF(Table_PI[[#This Row],[Size]]=\"\",\"\",Table_PI[[#This Row],[Size]])","v":""},null,{"$f":"IFERROR(IF(AND(MeasureCalc(Table_PI[[#This Row],[Hide:\nFormula Name]],Table_SummaryPI[[#This Row],[Quantity]],Table_PI[[#This Row],[List 1]],Table_PI[[#This Row],[List 2]],Table_PI[[#This Row],[List 3]],Table_PI[[#This Row],[Size]],Table_PI[[#This Row],[Input 1]],Table_PI[[#This Row],[Input 2]],Table_PI[[#This Row],[Input 3]],Table_PI[[#This Row],[Input 4]],'Customer Information'!$AR$12,100,ROW())<>0,MeasureCalc(Table_PI[[#This Row],[Hide:\nFormula Name]],Table_SummaryPI[[#This Row],[Quantity]],Table_PI[[#This Row],[List 1]],Table_PI[[#This Row],[List 2]],Table_PI[[#This Row],[List 3]],Table_PI[[#This Row],[Size]],Table_PI[[#This Row],[Input 1]],Table_PI[[#This Row],[Input 2]],Table_PI[[#This Row],[Input 3]],Table_PI[[#This Row],[Input 4]],'Customer Information'!$AR$12,100,ROW())<>\"No Rebate\"),MeasureCalc(Table_PI[[#This Row],[Hide:\nFormula Name]],Table_SummaryPI[[#This Row],[Quantity]],Table_PI[[#This Row],[List 1]],Table_PI[[#This Row],[List 2]],Table_PI[[#This Row],[List 3]],Table_PI[[#This Row],[Size]],Table_PI[[#This Row],[Input 1]],Table_PI[[#This Row],[Input 2]],Table_PI[[#This Row],[Input 3]],Table_PI[[#This Row],[Input 4]],'Customer Information'!$AR$12,100,ROW()),\"\"),\"\")","v":""},{"$f":"IF(Table_PI[[#This Row],[Input 1]]<>\"\",Table_PI[[#This Row],[Input 1]],\"\")","v":""},null,{"$f":"IFERROR(IF(AND(MeasureCalc(Table_PI[[#This Row],[Hide:\nFormula Name]],Table_SummaryPI[[#This Row],[Quantity]],Table_PI[[#This Row],[List 1]],Table_PI[[#This Row],[List 2]],Table_PI[[#This Row],[List 3]],Table_PI[[#This Row],[Size]],Table_PI[[#This Row],[Input 1]],Table_PI[[#This Row],[Input 2]],Table_PI[[#This Row],[Input 3]],Table_PI[[#This Row],[Input 4]],'Customer Information'!$AR$12,101,ROW())<>0,MeasureCalc(Table_PI[[#This Row],[Hide:\nFormula Name]],Table_SummaryPI[[#This Row],[Quantity]],Table_PI[[#This Row],[List 1]],Table_PI[[#This Row],[List 2]],Table_PI[[#This Row],[List 3]],Table_PI[[#This Row],[Size]],Table_PI[[#This Row],[Input 1]],Table_PI[[#This Row],[Input 2]],Table_PI[[#This Row],[Input 3]],Table_PI[[#This Row],[Input 4]],'Customer Information'!$AR$12,101,ROW())<>\"No Rebate\"),MeasureCalc(Table_PI[[#This Row],[Hide:\nFormula Name]],Table_SummaryPI[[#This Row],[Quantity]],Table_PI[[#This Row],[List 1]],Table_PI[[#This Row],[List 2]],Table_PI[[#This Row],[List 3]],Table_PI[[#This Row],[Size]],Table_PI[[#This Row],[Input 1]],Table_PI[[#This Row],[Input 2]],Table_PI[[#This Row],[Input 3]],Table_PI[[#This Row],[Input 4]],'Customer Information'!$AR$12,101,ROW()),\"\"),\"\")","v":""},{"$f":"IF(Table_PI[[#This Row],[Input 2]]<>\"\",Table_PI[[#This Row],[Input 2]],\"\")","v":""},null,{"$f":"IFERROR(IF(AND(MeasureCalc(Table_PI[[#This Row],[Hide:\nFormula Name]],Table_SummaryPI[[#This Row],[Quantity]],Table_PI[[#This Row],[List 1]],Table_PI[[#This Row],[List 2]],Table_PI[[#This Row],[List 3]],Table_PI[[#This Row],[Size]],Table_PI[[#This Row],[Input 1]],Table_PI[[#This Row],[Input 2]],Table_PI[[#This Row],[Input 3]],Table_PI[[#This Row],[Input 4]],'Customer Information'!$AR$12,102,ROW())<>0,MeasureCalc(Table_PI[[#This Row],[Hide:\nFormula Name]],Table_SummaryPI[[#This Row],[Quantity]],Table_PI[[#This Row],[List 1]],Table_PI[[#This Row],[List 2]],Table_PI[[#This Row],[List 3]],Table_PI[[#This Row],[Size]],Table_PI[[#This Row],[Input 1]],Table_PI[[#This Row],[Input 2]],Table_PI[[#This Row],[Input 3]],Table_PI[[#This Row],[Input 4]],'Customer Information'!$AR$12,102,ROW())<>\"No Rebate\"),MeasureCalc(Table_PI[[#This Row],[Hide:\nFormula Name]],Table_SummaryPI[[#This Row],[Quantity]],Table_PI[[#This Row],[List 1]],Table_PI[[#This Row],[List 2]],Table_PI[[#This Row],[List 3]],Table_PI[[#This Row],[Size]],Table_PI[[#This Row],[Input 1]],Table_PI[[#This Row],[Input 2]],Table_PI[[#This Row],[Input 3]],Table_PI[[#This Row],[Input 4]],'Customer Information'!$AR$12,102,ROW()),\"\"),\"\")","v":""},{"$f":"IF(Table_PI[[#This Row],[Input 3]]<>\"\",Table_PI[[#This Row],[Input 3]],\"\")","v":""},null,{"$f":"IFERROR(IF(AND(MeasureCalc(Table_PI[[#This Row],[Hide:\nFormula Name]],Table_SummaryPI[[#This Row],[Quantity]],Table_PI[[#This Row],[List 1]],Table_PI[[#This Row],[List 2]],Table_PI[[#This Row],[List 3]],Table_PI[[#This Row],[Size]],Table_PI[[#This Row],[Input 1]],Table_PI[[#This Row],[Input 2]],Table_PI[[#This Row],[Input 3]],Table_PI[[#This Row],[Input 4]],'Customer Information'!$AR$12,103,ROW())<>0,MeasureCalc(Table_PI[[#This Row],[Hide:\nFormula Name]],Table_SummaryPI[[#This Row],[Quantity]],Table_PI[[#This Row],[List 1]],Table_PI[[#This Row],[List 2]],Table_PI[[#This Row],[List 3]],Table_PI[[#This Row],[Size]],Table_PI[[#This Row],[Input 1]],Table_PI[[#This Row],[Input 2]],Table_PI[[#This Row],[Input 3]],Table_PI[[#This Row],[Input 4]],'Customer Information'!$AR$12,103,ROW())<>\"No Rebate\"),MeasureCalc(Table_PI[[#This Row],[Hide:\nFormula Name]],Table_SummaryPI[[#This Row],[Quantity]],Table_PI[[#This Row],[List 1]],Table_PI[[#This Row],[List 2]],Table_PI[[#This Row],[List 3]],Table_PI[[#This Row],[Size]],Table_PI[[#This Row],[Input 1]],Table_PI[[#This Row],[Input 2]],Table_PI[[#This Row],[Input 3]],Table_PI[[#This Row],[Input 4]],'Customer Information'!$AR$12,103,ROW()),\"\"),\"\")","v":""},{"$f":"IF(Table_PI[[#This Row],[Input 4]]<>\"\",Table_PI[[#This Row],[Input 4]],\"\")","v":""},{"$f":"IF(Table_PI[[#This Row],[Quantity]]=\"\",\"\",Table_PI[[#This Row],[Quantity]])","v":""},{"$f":"IF(Table_PI[[#This Row],[Notes]]=\"\",\"\",Table_PI[[#This Row],[Notes]])","v":""},{"$f":"IF(OR(Table_PI[[#This Row],[Hide:\nBaseline kWh]]=\"\",Table_PI[[#This Row],[Hide:\nBaseline kWh]]=0),\"\",Table_PI[[#This Row],[Hide:\nBaseline kWh]])","v":""},{"$f":"IF(OR(Table_PI[[#This Row],[Hide:\nBaseline kW]]=\"\",Table_PI[[#This Row],[Hide:\nBaseline kW]]=0),\"\",Table_PI[[#This Row],[Hide:\nBaseline kW]])","v":""},{"$f":"IF(OR(Table_PI[[#This Row],[Hide:\nProposed kWh]]=\"\",Table_PI[[#This Row],[Hide:\nProposed kWh]]=0),\"\",Table_PI[[#This Row],[Hide:\nProposed kWh]])","v":""},{"$f":"IF(OR(Table_PI[[#This Row],[Hide:\nProposed kW]]=\"\",Table_PI[[#This Row],[Hide:\nProposed kW]]=0),\"\",Table_PI[[#This Row],[Hide:\nProposed kW]])","v":""},{"$f":"IF(OR(Table_PI[[#This Row],[Rebate]]=\"\",Table_PI[[#This Row],[Rebate]]=0),\"\",Table_PI[[#This Row],[Rebate]])","v":""},{"$f":"IF(OR(Table_PI[[#This Row],[Hide:\nIncremental Cost]]=\"\",Table_PI[[#This Row],[Hide:\nIncremental Cost]]=0),\"\",Table_PI[[#This Row],[Hide:\nIncremental Cost]])","v":""},{"$f":"IFERROR(IF(Table_SummaryPI[[#This Row],[kWhSavings]]=\"\",\"\",ROUND(Table_SummaryPI[[#This Row],[kWhSavings]]/$AG$401*'Customer Information'!$BC$17,2)),0)","v":""},{"$f":"IF(OR(Table_PI[[#This Row],[Annual kWh]]=\"\",Table_PI[[#This Row],[Annual kWh]]=0),\"\",Table_PI[[#This Row],[Annual kWh]])","v":""},{"$f":"IF(OR(Table_PI[[#This Row],[Peak kW]]=\"\",Table_PI[[#This Row],[Peak kW]]=0),\"\",Table_PI[[#This Row],[Peak kW]])","v":""},{"$f":"IFERROR(IF(Table_SummaryPI[[#This Row],[kWhSavings]]=\"\",\"\",$AU$9*Table_SummaryPI[[#This Row],[kWhSavings]]),0)","v":""},{"$f":"IFERROR(IF(Table_SummaryPI[[#This Row],[kWhSavings]]=\"\",\"\",$AU$14*Table_SummaryPI[[#This Row],[kWhSavings]]),0)","v":""},{"$f":"IFERROR(IF(Table_SummaryPI[[#This Row],[kWhSavings]]=\"\",\"\",$AU$18*Table_SummaryPI[[#This Row],[kWhSavings]]),0)","v":""},{"$f":"IFERROR(IF(Table_SummaryPI[[#This Row],[kWhSavings]]=\"\",\"\",$AU$22*Table_SummaryPI[[#This Row],[kWhSavings]]),0)","v":""},{"$f":"IFERROR(IF(MeasureCalc(Table_PI[[#This Row],[Hide:\nFormula Name]],Table_SummaryPI[[#This Row],[Quantity]],Table_PI[[#This Row],[List 1]],Table_PI[[#This Row],[List 2]],Table_PI[[#This Row],[List 3]],Table_PI[[#This Row],[Size]],Table_PI[[#This Row],[Input 1]],Table_PI[[#This Row],[Input 2]],Table_PI[[#This Row],[Input 3]],Table_PI[[#This Row],[Input 4]],'Customer Information'!$AR$12,200,ROW())<>\"No Rebate\",MeasureCalc(Table_PI[[#This Row],[Hide:\nFormula Name]],Table_SummaryPI[[#This Row],[Quantity]],Table_PI[[#This Row],[List 1]],Table_PI[[#This Row],[List 2]],Table_PI[[#This Row],[List 3]],Table_PI[[#This Row],[Size]],Table_PI[[#This Row],[Input 1]],Table_PI[[#This Row],[Input 2]],Table_PI[[#This Row],[Input 3]],Table_PI[[#This Row],[Input 4]],'Customer Information'!$AR$12,200,ROW()),\"\"),\"\")","v":""},{"$f":"IFERROR(IF(MeasureCalc(Table_PI[[#This Row],[Hide:\nFormula Name]],Table_SummaryPI[[#This Row],[Quantity]],Table_PI[[#This Row],[List 1]],Table_PI[[#This Row],[List 2]],Table_PI[[#This Row],[List 3]],Table_PI[[#This Row],[Size]],Table_PI[[#This Row],[Input 1]],Table_PI[[#This Row],[Input 2]],Table_PI[[#This Row],[Input 3]],Table_PI[[#This Row],[Input 4]],'Customer Information'!$AR$12,201,ROW())<>\"No Rebate\",MeasureCalc(Table_PI[[#This Row],[Hide:\nFormula Name]],Table_SummaryPI[[#This Row],[Quantity]],Table_PI[[#This Row],[List 1]],Table_PI[[#This Row],[List 2]],Table_PI[[#This Row],[List 3]],Table_PI[[#This Row],[Size]],Table_PI[[#This Row],[Input 1]],Table_PI[[#This Row],[Input 2]],Table_PI[[#This Row],[Input 3]],Table_PI[[#This Row],[Input 4]],'Customer Information'!$AR$12,201,ROW()),\"\"),\"\")","v":""}]
[{"$f":"Table_PI[[#This Row],[Line No.]]","v":""},{"$f":"IF(Table_SummaryPI[[#This Row],[MeassureCategory]]<>\"\",CONCATENATE(Table_SummaryPI[[#This Row],[MeassureCategory]],  \" - \", Table_SummaryPI[[#This Row],[ProposedMeasureCategory]],  \" - \", TEXT(Table_SummaryPI[[#This Row],[Size]],\"#,##0.00\"),\" \",Table_SummaryPI[[#This Row],[SizeUnit]]),\"\")","v":""},{"$f":"SUBSTITUTE(Table_PI[[#This Row],[Measure]],\"     \",\"\",1)","v":""},{"$f":"IF(Table_PI[[#This Row],[List 1]]<>\"\",Table_PI[[#This Row],[List 1]],\"\")","v":""},{"$f":"IF(Table_PI[[#This Row],[List 2]]<>\"\",Table_PI[[#This Row],[List 2]],\"\")","v":""},{"$f":"IF(Table_PI[[#This Row],[List 3]]<>\"\",Table_PI[[#This Row],[List 3]],\"\")","v":""},{"$f":"IF(Table_PI[[#This Row],[Manufacturer]]=\"\",\"\",Table_PI[[#This Row],[Manufacturer]])","v":""},{"$f":"IF(Table_PI[[#This Row],[Model Number]]=\"\",\"\",Table_PI[[#This Row],[Model Number]])","v":""},{"$f":"IF(Table_PI[[#This Row],[Serial Number(s)]]=\"\",\"\",Table_PI[[#This Row],[Serial Number(s)]])","v":""},null,{"$f":"IF(Table_PI[[#This Row],[Size]]=\"\",\"\",Table_PI[[#This Row],[Size]])","v":""},null,{"$f":"IFERROR(IF(AND(MeasureCalc(Table_PI[[#This Row],[Hide:\nFormula Name]],Table_SummaryPI[[#This Row],[Quantity]],Table_PI[[#This Row],[List 1]],Table_PI[[#This Row],[List 2]],Table_PI[[#This Row],[List 3]],Table_PI[[#This Row],[Size]],Table_PI[[#This Row],[Input 1]],Table_PI[[#This Row],[Input 2]],Table_PI[[#This Row],[Input 3]],Table_PI[[#This Row],[Input 4]],'Customer Information'!$AR$12,100,ROW())<>0,MeasureCalc(Table_PI[[#This Row],[Hide:\nFormula Name]],Table_SummaryPI[[#This Row],[Quantity]],Table_PI[[#This Row],[List 1]],Table_PI[[#This Row],[List 2]],Table_PI[[#This Row],[List 3]],Table_PI[[#This Row],[Size]],Table_PI[[#This Row],[Input 1]],Table_PI[[#This Row],[Input 2]],Table_PI[[#This Row],[Input 3]],Table_PI[[#This Row],[Input 4]],'Customer Information'!$AR$12,100,ROW())<>\"No Rebate\"),MeasureCalc(Table_PI[[#This Row],[Hide:\nFormula Name]],Table_SummaryPI[[#This Row],[Quantity]],Table_PI[[#This Row],[List 1]],Table_PI[[#This Row],[List 2]],Table_PI[[#This Row],[List 3]],Table_PI[[#This Row],[Size]],Table_PI[[#This Row],[Input 1]],Table_PI[[#This Row],[Input 2]],Table_PI[[#This Row],[Input 3]],Table_PI[[#This Row],[Input 4]],'Customer Information'!$AR$12,100,ROW()),\"\"),\"\")","v":""},{"$f":"IF(Table_PI[[#This Row],[Input 1]]<>\"\",Table_PI[[#This Row],[Input 1]],\"\")","v":""},null,{"$f":"IFERROR(IF(AND(MeasureCalc(Table_PI[[#This Row],[Hide:\nFormula Name]],Table_SummaryPI[[#This Row],[Quantity]],Table_PI[[#This Row],[List 1]],Table_PI[[#This Row],[List 2]],Table_PI[[#This Row],[List 3]],Table_PI[[#This Row],[Size]],Table_PI[[#This Row],[Input 1]],Table_PI[[#This Row],[Input 2]],Table_PI[[#This Row],[Input 3]],Table_PI[[#This Row],[Input 4]],'Customer Information'!$AR$12,101,ROW())<>0,MeasureCalc(Table_PI[[#This Row],[Hide:\nFormula Name]],Table_SummaryPI[[#This Row],[Quantity]],Table_PI[[#This Row],[List 1]],Table_PI[[#This Row],[List 2]],Table_PI[[#This Row],[List 3]],Table_PI[[#This Row],[Size]],Table_PI[[#This Row],[Input 1]],Table_PI[[#This Row],[Input 2]],Table_PI[[#This Row],[Input 3]],Table_PI[[#This Row],[Input 4]],'Customer Information'!$AR$12,101,ROW())<>\"No Rebate\"),MeasureCalc(Table_PI[[#This Row],[Hide:\nFormula Name]],Table_SummaryPI[[#This Row],[Quantity]],Table_PI[[#This Row],[List 1]],Table_PI[[#This Row],[List 2]],Table_PI[[#This Row],[List 3]],Table_PI[[#This Row],[Size]],Table_PI[[#This Row],[Input 1]],Table_PI[[#This Row],[Input 2]],Table_PI[[#This Row],[Input 3]],Table_PI[[#This Row],[Input 4]],'Customer Information'!$AR$12,101,ROW()),\"\"),\"\")","v":""},{"$f":"IF(Table_PI[[#This Row],[Input 2]]<>\"\",Table_PI[[#This Row],[Input 2]],\"\")","v":""},null,{"$f":"IFERROR(IF(AND(MeasureCalc(Table_PI[[#This Row],[Hide:\nFormula Name]],Table_SummaryPI[[#This Row],[Quantity]],Table_PI[[#This Row],[List 1]],Table_PI[[#This Row],[List 2]],Table_PI[[#This Row],[List 3]],Table_PI[[#This Row],[Size]],Table_PI[[#This Row],[Input 1]],Table_PI[[#This Row],[Input 2]],Table_PI[[#This Row],[Input 3]],Table_PI[[#This Row],[Input 4]],'Customer Information'!$AR$12,102,ROW())<>0,MeasureCalc(Table_PI[[#This Row],[Hide:\nFormula Name]],Table_SummaryPI[[#This Row],[Quantity]],Table_PI[[#This Row],[List 1]],Table_PI[[#This Row],[List 2]],Table_PI[[#This Row],[List 3]],Table_PI[[#This Row],[Size]],Table_PI[[#This Row],[Input 1]],Table_PI[[#This Row],[Input 2]],Table_PI[[#This Row],[Input 3]],Table_PI[[#This Row],[Input 4]],'Customer Information'!$AR$12,102,ROW())<>\"No Rebate\"),MeasureCalc(Table_PI[[#This Row],[Hide:\nFormula Name]],Table_SummaryPI[[#This Row],[Quantity]],Table_PI[[#This Row],[List 1]],Table_PI[[#This Row],[List 2]],Table_PI[[#This Row],[List 3]],Table_PI[[#This Row],[Size]],Table_PI[[#This Row],[Input 1]],Table_PI[[#This Row],[Input 2]],Table_PI[[#This Row],[Input 3]],Table_PI[[#This Row],[Input 4]],'Customer Information'!$AR$12,102,ROW()),\"\"),\"\")","v":""},{"$f":"IF(Table_PI[[#This Row],[Input 3]]<>\"\",Table_PI[[#This Row],[Input 3]],\"\")","v":""},null,{"$f":"IFERROR(IF(AND(MeasureCalc(Table_PI[[#This Row],[Hide:\nFormula Name]],Table_SummaryPI[[#This Row],[Quantity]],Table_PI[[#This Row],[List 1]],Table_PI[[#This Row],[List 2]],Table_PI[[#This Row],[List 3]],Table_PI[[#This Row],[Size]],Table_PI[[#This Row],[Input 1]],Table_PI[[#This Row],[Input 2]],Table_PI[[#This Row],[Input 3]],Table_PI[[#This Row],[Input 4]],'Customer Information'!$AR$12,103,ROW())<>0,MeasureCalc(Table_PI[[#This Row],[Hide:\nFormula Name]],Table_SummaryPI[[#This Row],[Quantity]],Table_PI[[#This Row],[List 1]],Table_PI[[#This Row],[List 2]],Table_PI[[#This Row],[List 3]],Table_PI[[#This Row],[Size]],Table_PI[[#This Row],[Input 1]],Table_PI[[#This Row],[Input 2]],Table_PI[[#This Row],[Input 3]],Table_PI[[#This Row],[Input 4]],'Customer Information'!$AR$12,103,ROW())<>\"No Rebate\"),MeasureCalc(Table_PI[[#This Row],[Hide:\nFormula Name]],Table_SummaryPI[[#This Row],[Quantity]],Table_PI[[#This Row],[List 1]],Table_PI[[#This Row],[List 2]],Table_PI[[#This Row],[List 3]],Table_PI[[#This Row],[Size]],Table_PI[[#This Row],[Input 1]],Table_PI[[#This Row],[Input 2]],Table_PI[[#This Row],[Input 3]],Table_PI[[#This Row],[Input 4]],'Customer Information'!$AR$12,103,ROW()),\"\"),\"\")","v":""},{"$f":"IF(Table_PI[[#This Row],[Input 4]]<>\"\",Table_PI[[#This Row],[Input 4]],\"\")","v":""},{"$f":"IF(Table_PI[[#This Row],[Quantity]]=\"\",\"\",Table_PI[[#This Row],[Quantity]])","v":""},{"$f":"IF(Table_PI[[#This Row],[Notes]]=\"\",\"\",Table_PI[[#This Row],[Notes]])","v":""},{"$f":"IF(OR(Table_PI[[#This Row],[Hide:\nBaseline kWh]]=\"\",Table_PI[[#This Row],[Hide:\nBaseline kWh]]=0),\"\",Table_PI[[#This Row],[Hide:\nBaseline kWh]])","v":""},{"$f":"IF(OR(Table_PI[[#This Row],[Hide:\nBaseline kW]]=\"\",Table_PI[[#This Row],[Hide:\nBaseline kW]]=0),\"\",Table_PI[[#This Row],[Hide:\nBaseline kW]])","v":""},{"$f":"IF(OR(Table_PI[[#This Row],[Hide:\nProposed kWh]]=\"\",Table_PI[[#This Row],[Hide:\nProposed kWh]]=0),\"\",Table_PI[[#This Row],[Hide:\nProposed kWh]])","v":""},{"$f":"IF(OR(Table_PI[[#This Row],[Hide:\nProposed kW]]=\"\",Table_PI[[#This Row],[Hide:\nProposed kW]]=0),\"\",Table_PI[[#This Row],[Hide:\nProposed kW]])","v":""},{"$f":"IF(OR(Table_PI[[#This Row],[Rebate]]=\"\",Table_PI[[#This Row],[Rebate]]=0),\"\",Table_PI[[#This Row],[Rebate]])","v":""},{"$f":"IF(OR(Table_PI[[#This Row],[Hide:\nIncremental Cost]]=\"\",Table_PI[[#This Row],[Hide:\nIncremental Cost]]=0),\"\",Table_PI[[#This Row],[Hide:\nIncremental Cost]])","v":""},{"$f":"IFERROR(IF(Table_SummaryPI[[#This Row],[kWhSavings]]=\"\",\"\",ROUND(Table_SummaryPI[[#This Row],[kWhSavings]]/$AG$401*'Customer Information'!$BC$17,2)),0)","v":""},{"$f":"IF(OR(Table_PI[[#This Row],[Annual kWh]]=\"\",Table_PI[[#This Row],[Annual kWh]]=0),\"\",Table_PI[[#This Row],[Annual kWh]])","v":""},{"$f":"IF(OR(Table_PI[[#This Row],[Peak kW]]=\"\",Table_PI[[#This Row],[Peak kW]]=0),\"\",Table_PI[[#This Row],[Peak kW]])","v":""},{"$f":"IFERROR(IF(Table_SummaryPI[[#This Row],[kWhSavings]]=\"\",\"\",$AU$9*Table_SummaryPI[[#This Row],[kWhSavings]]),0)","v":""},{"$f":"IFERROR(IF(Table_SummaryPI[[#This Row],[kWhSavings]]=\"\",\"\",$AU$14*Table_SummaryPI[[#This Row],[kWhSavings]]),0)","v":""},{"$f":"IFERROR(IF(Table_SummaryPI[[#This Row],[kWhSavings]]=\"\",\"\",$AU$18*Table_SummaryPI[[#This Row],[kWhSavings]]),0)","v":""},{"$f":"IFERROR(IF(Table_SummaryPI[[#This Row],[kWhSavings]]=\"\",\"\",$AU$22*Table_SummaryPI[[#This Row],[kWhSavings]]),0)","v":""},{"$f":"IFERROR(IF(MeasureCalc(Table_PI[[#This Row],[Hide:\nFormula Name]],Table_SummaryPI[[#This Row],[Quantity]],Table_PI[[#This Row],[List 1]],Table_PI[[#This Row],[List 2]],Table_PI[[#This Row],[List 3]],Table_PI[[#This Row],[Size]],Table_PI[[#This Row],[Input 1]],Table_PI[[#This Row],[Input 2]],Table_PI[[#This Row],[Input 3]],Table_PI[[#This Row],[Input 4]],'Customer Information'!$AR$12,200,ROW())<>\"No Rebate\",MeasureCalc(Table_PI[[#This Row],[Hide:\nFormula Name]],Table_SummaryPI[[#This Row],[Quantity]],Table_PI[[#This Row],[List 1]],Table_PI[[#This Row],[List 2]],Table_PI[[#This Row],[List 3]],Table_PI[[#This Row],[Size]],Table_PI[[#This Row],[Input 1]],Table_PI[[#This Row],[Input 2]],Table_PI[[#This Row],[Input 3]],Table_PI[[#This Row],[Input 4]],'Customer Information'!$AR$12,200,ROW()),\"\"),\"\")","v":""},{"$f":"IFERROR(IF(MeasureCalc(Table_PI[[#This Row],[Hide:\nFormula Name]],Table_SummaryPI[[#This Row],[Quantity]],Table_PI[[#This Row],[List 1]],Table_PI[[#This Row],[List 2]],Table_PI[[#This Row],[List 3]],Table_PI[[#This Row],[Size]],Table_PI[[#This Row],[Input 1]],Table_PI[[#This Row],[Input 2]],Table_PI[[#This Row],[Input 3]],Table_PI[[#This Row],[Input 4]],'Customer Information'!$AR$12,201,ROW())<>\"No Rebate\",MeasureCalc(Table_PI[[#This Row],[Hide:\nFormula Name]],Table_SummaryPI[[#This Row],[Quantity]],Table_PI[[#This Row],[List 1]],Table_PI[[#This Row],[List 2]],Table_PI[[#This Row],[List 3]],Table_PI[[#This Row],[Size]],Table_PI[[#This Row],[Input 1]],Table_PI[[#This Row],[Input 2]],Table_PI[[#This Row],[Input 3]],Table_PI[[#This Row],[Input 4]],'Customer Information'!$AR$12,201,ROW()),\"\"),\"\")","v":""}]
[{"$f":"Table_PI[[#This Row],[Line No.]]","v":""},{"$f":"IF(Table_SummaryPI[[#This Row],[MeassureCategory]]<>\"\",CONCATENATE(Table_SummaryPI[[#This Row],[MeassureCategory]],  \" - \", Table_SummaryPI[[#This Row],[ProposedMeasureCategory]],  \" - \", TEXT(Table_SummaryPI[[#This Row],[Size]],\"#,##0.00\"),\" \",Table_SummaryPI[[#This Row],[SizeUnit]]),\"\")","v":""},{"$f":"SUBSTITUTE(Table_PI[[#This Row],[Measure]],\"     \",\"\",1)","v":""},{"$f":"IF(Table_PI[[#This Row],[List 1]]<>\"\",Table_PI[[#This Row],[List 1]],\"\")","v":""},{"$f":"IF(Table_PI[[#This Row],[List 2]]<>\"\",Table_PI[[#This Row],[List 2]],\"\")","v":""},{"$f":"IF(Table_PI[[#This Row],[List 3]]<>\"\",Table_PI[[#This Row],[List 3]],\"\")","v":""},{"$f":"IF(Table_PI[[#This Row],[Manufacturer]]=\"\",\"\",Table_PI[[#This Row],[Manufacturer]])","v":""},{"$f":"IF(Table_PI[[#This Row],[Model Number]]=\"\",\"\",Table_PI[[#This Row],[Model Number]])","v":""},{"$f":"IF(Table_PI[[#This Row],[Serial Number(s)]]=\"\",\"\",Table_PI[[#This Row],[Serial Number(s)]])","v":""},null,{"$f":"IF(Table_PI[[#This Row],[Size]]=\"\",\"\",Table_PI[[#This Row],[Size]])","v":""},null,{"$f":"IFERROR(IF(AND(MeasureCalc(Table_PI[[#This Row],[Hide:\nFormula Name]],Table_SummaryPI[[#This Row],[Quantity]],Table_PI[[#This Row],[List 1]],Table_PI[[#This Row],[List 2]],Table_PI[[#This Row],[List 3]],Table_PI[[#This Row],[Size]],Table_PI[[#This Row],[Input 1]],Table_PI[[#This Row],[Input 2]],Table_PI[[#This Row],[Input 3]],Table_PI[[#This Row],[Input 4]],'Customer Information'!$AR$12,100,ROW())<>0,MeasureCalc(Table_PI[[#This Row],[Hide:\nFormula Name]],Table_SummaryPI[[#This Row],[Quantity]],Table_PI[[#This Row],[List 1]],Table_PI[[#This Row],[List 2]],Table_PI[[#This Row],[List 3]],Table_PI[[#This Row],[Size]],Table_PI[[#This Row],[Input 1]],Table_PI[[#This Row],[Input 2]],Table_PI[[#This Row],[Input 3]],Table_PI[[#This Row],[Input 4]],'Customer Information'!$AR$12,100,ROW())<>\"No Rebate\"),MeasureCalc(Table_PI[[#This Row],[Hide:\nFormula Name]],Table_SummaryPI[[#This Row],[Quantity]],Table_PI[[#This Row],[List 1]],Table_PI[[#This Row],[List 2]],Table_PI[[#This Row],[List 3]],Table_PI[[#This Row],[Size]],Table_PI[[#This Row],[Input 1]],Table_PI[[#This Row],[Input 2]],Table_PI[[#This Row],[Input 3]],Table_PI[[#This Row],[Input 4]],'Customer Information'!$AR$12,100,ROW()),\"\"),\"\")","v":""},{"$f":"IF(Table_PI[[#This Row],[Input 1]]<>\"\",Table_PI[[#This Row],[Input 1]],\"\")","v":""},null,{"$f":"IFERROR(IF(AND(MeasureCalc(Table_PI[[#This Row],[Hide:\nFormula Name]],Table_SummaryPI[[#This Row],[Quantity]],Table_PI[[#This Row],[List 1]],Table_PI[[#This Row],[List 2]],Table_PI[[#This Row],[List 3]],Table_PI[[#This Row],[Size]],Table_PI[[#This Row],[Input 1]],Table_PI[[#This Row],[Input 2]],Table_PI[[#This Row],[Input 3]],Table_PI[[#This Row],[Input 4]],'Customer Information'!$AR$12,101,ROW())<>0,MeasureCalc(Table_PI[[#This Row],[Hide:\nFormula Name]],Table_SummaryPI[[#This Row],[Quantity]],Table_PI[[#This Row],[List 1]],Table_PI[[#This Row],[List 2]],Table_PI[[#This Row],[List 3]],Table_PI[[#This Row],[Size]],Table_PI[[#This Row],[Input 1]],Table_PI[[#This Row],[Input 2]],Table_PI[[#This Row],[Input 3]],Table_PI[[#This Row],[Input 4]],'Customer Information'!$AR$12,101,ROW())<>\"No Rebate\"),MeasureCalc(Table_PI[[#This Row],[Hide:\nFormula Name]],Table_SummaryPI[[#This Row],[Quantity]],Table_PI[[#This Row],[List 1]],Table_PI[[#This Row],[List 2]],Table_PI[[#This Row],[List 3]],Table_PI[[#This Row],[Size]],Table_PI[[#This Row],[Input 1]],Table_PI[[#This Row],[Input 2]],Table_PI[[#This Row],[Input 3]],Table_PI[[#This Row],[Input 4]],'Customer Information'!$AR$12,101,ROW()),\"\"),\"\")","v":""},{"$f":"IF(Table_PI[[#This Row],[Input 2]]<>\"\",Table_PI[[#This Row],[Input 2]],\"\")","v":""},null,{"$f":"IFERROR(IF(AND(MeasureCalc(Table_PI[[#This Row],[Hide:\nFormula Name]],Table_SummaryPI[[#This Row],[Quantity]],Table_PI[[#This Row],[List 1]],Table_PI[[#This Row],[List 2]],Table_PI[[#This Row],[List 3]],Table_PI[[#This Row],[Size]],Table_PI[[#This Row],[Input 1]],Table_PI[[#This Row],[Input 2]],Table_PI[[#This Row],[Input 3]],Table_PI[[#This Row],[Input 4]],'Customer Information'!$AR$12,102,ROW())<>0,MeasureCalc(Table_PI[[#This Row],[Hide:\nFormula Name]],Table_SummaryPI[[#This Row],[Quantity]],Table_PI[[#This Row],[List 1]],Table_PI[[#This Row],[List 2]],Table_PI[[#This Row],[List 3]],Table_PI[[#This Row],[Size]],Table_PI[[#This Row],[Input 1]],Table_PI[[#This Row],[Input 2]],Table_PI[[#This Row],[Input 3]],Table_PI[[#This Row],[Input 4]],'Customer Information'!$AR$12,102,ROW())<>\"No Rebate\"),MeasureCalc(Table_PI[[#This Row],[Hide:\nFormula Name]],Table_SummaryPI[[#This Row],[Quantity]],Table_PI[[#This Row],[List 1]],Table_PI[[#This Row],[List 2]],Table_PI[[#This Row],[List 3]],Table_PI[[#This Row],[Size]],Table_PI[[#This Row],[Input 1]],Table_PI[[#This Row],[Input 2]],Table_PI[[#This Row],[Input 3]],Table_PI[[#This Row],[Input 4]],'Customer Information'!$AR$12,102,ROW()),\"\"),\"\")","v":""},{"$f":"IF(Table_PI[[#This Row],[Input 3]]<>\"\",Table_PI[[#This Row],[Input 3]],\"\")","v":""},null,{"$f":"IFERROR(IF(AND(MeasureCalc(Table_PI[[#This Row],[Hide:\nFormula Name]],Table_SummaryPI[[#This Row],[Quantity]],Table_PI[[#This Row],[List 1]],Table_PI[[#This Row],[List 2]],Table_PI[[#This Row],[List 3]],Table_PI[[#This Row],[Size]],Table_PI[[#This Row],[Input 1]],Table_PI[[#This Row],[Input 2]],Table_PI[[#This Row],[Input 3]],Table_PI[[#This Row],[Input 4]],'Customer Information'!$AR$12,103,ROW())<>0,MeasureCalc(Table_PI[[#This Row],[Hide:\nFormula Name]],Table_SummaryPI[[#This Row],[Quantity]],Table_PI[[#This Row],[List 1]],Table_PI[[#This Row],[List 2]],Table_PI[[#This Row],[List 3]],Table_PI[[#This Row],[Size]],Table_PI[[#This Row],[Input 1]],Table_PI[[#This Row],[Input 2]],Table_PI[[#This Row],[Input 3]],Table_PI[[#This Row],[Input 4]],'Customer Information'!$AR$12,103,ROW())<>\"No Rebate\"),MeasureCalc(Table_PI[[#This Row],[Hide:\nFormula Name]],Table_SummaryPI[[#This Row],[Quantity]],Table_PI[[#This Row],[List 1]],Table_PI[[#This Row],[List 2]],Table_PI[[#This Row],[List 3]],Table_PI[[#This Row],[Size]],Table_PI[[#This Row],[Input 1]],Table_PI[[#This Row],[Input 2]],Table_PI[[#This Row],[Input 3]],Table_PI[[#This Row],[Input 4]],'Customer Information'!$AR$12,103,ROW()),\"\"),\"\")","v":""},{"$f":"IF(Table_PI[[#This Row],[Input 4]]<>\"\",Table_PI[[#This Row],[Input 4]],\"\")","v":""},{"$f":"IF(Table_PI[[#This Row],[Quantity]]=\"\",\"\",Table_PI[[#This Row],[Quantity]])","v":""},{"$f":"IF(Table_PI[[#This Row],[Notes]]=\"\",\"\",Table_PI[[#This Row],[Notes]])","v":""},{"$f":"IF(OR(Table_PI[[#This Row],[Hide:\nBaseline kWh]]=\"\",Table_PI[[#This Row],[Hide:\nBaseline kWh]]=0),\"\",Table_PI[[#This Row],[Hide:\nBaseline kWh]])","v":""},{"$f":"IF(OR(Table_PI[[#This Row],[Hide:\nBaseline kW]]=\"\",Table_PI[[#This Row],[Hide:\nBaseline kW]]=0),\"\",Table_PI[[#This Row],[Hide:\nBaseline kW]])","v":""},{"$f":"IF(OR(Table_PI[[#This Row],[Hide:\nProposed kWh]]=\"\",Table_PI[[#This Row],[Hide:\nProposed kWh]]=0),\"\",Table_PI[[#This Row],[Hide:\nProposed kWh]])","v":""},{"$f":"IF(OR(Table_PI[[#This Row],[Hide:\nProposed kW]]=\"\",Table_PI[[#This Row],[Hide:\nProposed kW]]=0),\"\",Table_PI[[#This Row],[Hide:\nProposed kW]])","v":""},{"$f":"IF(OR(Table_PI[[#This Row],[Rebate]]=\"\",Table_PI[[#This Row],[Rebate]]=0),\"\",Table_PI[[#This Row],[Rebate]])","v":""},{"$f":"IF(OR(Table_PI[[#This Row],[Hide:\nIncremental Cost]]=\"\",Table_PI[[#This Row],[Hide:\nIncremental Cost]]=0),\"\",Table_PI[[#This Row],[Hide:\nIncremental Cost]])","v":""},{"$f":"IFERROR(IF(Table_SummaryPI[[#This Row],[kWhSavings]]=\"\",\"\",ROUND(Table_SummaryPI[[#This Row],[kWhSavings]]/$AG$401*'Customer Information'!$BC$17,2)),0)","v":""},{"$f":"IF(OR(Table_PI[[#This Row],[Annual kWh]]=\"\",Table_PI[[#This Row],[Annual kWh]]=0),\"\",Table_PI[[#This Row],[Annual kWh]])","v":""},{"$f":"IF(OR(Table_PI[[#This Row],[Peak kW]]=\"\",Table_PI[[#This Row],[Peak kW]]=0),\"\",Table_PI[[#This Row],[Peak kW]])","v":""},{"$f":"IFERROR(IF(Table_SummaryPI[[#This Row],[kWhSavings]]=\"\",\"\",$AU$9*Table_SummaryPI[[#This Row],[kWhSavings]]),0)","v":""},{"$f":"IFERROR(IF(Table_SummaryPI[[#This Row],[kWhSavings]]=\"\",\"\",$AU$14*Table_SummaryPI[[#This Row],[kWhSavings]]),0)","v":""},{"$f":"IFERROR(IF(Table_SummaryPI[[#This Row],[kWhSavings]]=\"\",\"\",$AU$18*Table_SummaryPI[[#This Row],[kWhSavings]]),0)","v":""},{"$f":"IFERROR(IF(Table_SummaryPI[[#This Row],[kWhSavings]]=\"\",\"\",$AU$22*Table_SummaryPI[[#This Row],[kWhSavings]]),0)","v":""},{"$f":"IFERROR(IF(MeasureCalc(Table_PI[[#This Row],[Hide:\nFormula Name]],Table_SummaryPI[[#This Row],[Quantity]],Table_PI[[#This Row],[List 1]],Table_PI[[#This Row],[List 2]],Table_PI[[#This Row],[List 3]],Table_PI[[#This Row],[Size]],Table_PI[[#This Row],[Input 1]],Table_PI[[#This Row],[Input 2]],Table_PI[[#This Row],[Input 3]],Table_PI[[#This Row],[Input 4]],'Customer Information'!$AR$12,200,ROW())<>\"No Rebate\",MeasureCalc(Table_PI[[#This Row],[Hide:\nFormula Name]],Table_SummaryPI[[#This Row],[Quantity]],Table_PI[[#This Row],[List 1]],Table_PI[[#This Row],[List 2]],Table_PI[[#This Row],[List 3]],Table_PI[[#This Row],[Size]],Table_PI[[#This Row],[Input 1]],Table_PI[[#This Row],[Input 2]],Table_PI[[#This Row],[Input 3]],Table_PI[[#This Row],[Input 4]],'Customer Information'!$AR$12,200,ROW()),\"\"),\"\")","v":""},{"$f":"IFERROR(IF(MeasureCalc(Table_PI[[#This Row],[Hide:\nFormula Name]],Table_SummaryPI[[#This Row],[Quantity]],Table_PI[[#This Row],[List 1]],Table_PI[[#This Row],[List 2]],Table_PI[[#This Row],[List 3]],Table_PI[[#This Row],[Size]],Table_PI[[#This Row],[Input 1]],Table_PI[[#This Row],[Input 2]],Table_PI[[#This Row],[Input 3]],Table_PI[[#This Row],[Input 4]],'Customer Information'!$AR$12,201,ROW())<>\"No Rebate\",MeasureCalc(Table_PI[[#This Row],[Hide:\nFormula Name]],Table_SummaryPI[[#This Row],[Quantity]],Table_PI[[#This Row],[List 1]],Table_PI[[#This Row],[List 2]],Table_PI[[#This Row],[List 3]],Table_PI[[#This Row],[Size]],Table_PI[[#This Row],[Input 1]],Table_PI[[#This Row],[Input 2]],Table_PI[[#This Row],[Input 3]],Table_PI[[#This Row],[Input 4]],'Customer Information'!$AR$12,201,ROW()),\"\"),\"\")","v":""}]
[{"$f":"Table_PI[[#This Row],[Line No.]]","v":""},{"$f":"IF(Table_SummaryPI[[#This Row],[MeassureCategory]]<>\"\",CONCATENATE(Table_SummaryPI[[#This Row],[MeassureCategory]],  \" - \", Table_SummaryPI[[#This Row],[ProposedMeasureCategory]],  \" - \", TEXT(Table_SummaryPI[[#This Row],[Size]],\"#,##0.00\"),\" \",Table_SummaryPI[[#This Row],[SizeUnit]]),\"\")","v":""},{"$f":"SUBSTITUTE(Table_PI[[#This Row],[Measure]],\"     \",\"\",1)","v":""},{"$f":"IF(Table_PI[[#This Row],[List 1]]<>\"\",Table_PI[[#This Row],[List 1]],\"\")","v":""},{"$f":"IF(Table_PI[[#This Row],[List 2]]<>\"\",Table_PI[[#This Row],[List 2]],\"\")","v":""},{"$f":"IF(Table_PI[[#This Row],[List 3]]<>\"\",Table_PI[[#This Row],[List 3]],\"\")","v":""},{"$f":"IF(Table_PI[[#This Row],[Manufacturer]]=\"\",\"\",Table_PI[[#This Row],[Manufacturer]])","v":""},{"$f":"IF(Table_PI[[#This Row],[Model Number]]=\"\",\"\",Table_PI[[#This Row],[Model Number]])","v":""},{"$f":"IF(Table_PI[[#This Row],[Serial Number(s)]]=\"\",\"\",Table_PI[[#This Row],[Serial Number(s)]])","v":""},null,{"$f":"IF(Table_PI[[#This Row],[Size]]=\"\",\"\",Table_PI[[#This Row],[Size]])","v":""},null,{"$f":"IFERROR(IF(AND(MeasureCalc(Table_PI[[#This Row],[Hide:\nFormula Name]],Table_SummaryPI[[#This Row],[Quantity]],Table_PI[[#This Row],[List 1]],Table_PI[[#This Row],[List 2]],Table_PI[[#This Row],[List 3]],Table_PI[[#This Row],[Size]],Table_PI[[#This Row],[Input 1]],Table_PI[[#This Row],[Input 2]],Table_PI[[#This Row],[Input 3]],Table_PI[[#This Row],[Input 4]],'Customer Information'!$AR$12,100,ROW())<>0,MeasureCalc(Table_PI[[#This Row],[Hide:\nFormula Name]],Table_SummaryPI[[#This Row],[Quantity]],Table_PI[[#This Row],[List 1]],Table_PI[[#This Row],[List 2]],Table_PI[[#This Row],[List 3]],Table_PI[[#This Row],[Size]],Table_PI[[#This Row],[Input 1]],Table_PI[[#This Row],[Input 2]],Table_PI[[#This Row],[Input 3]],Table_PI[[#This Row],[Input 4]],'Customer Information'!$AR$12,100,ROW())<>\"No Rebate\"),MeasureCalc(Table_PI[[#This Row],[Hide:\nFormula Name]],Table_SummaryPI[[#This Row],[Quantity]],Table_PI[[#This Row],[List 1]],Table_PI[[#This Row],[List 2]],Table_PI[[#This Row],[List 3]],Table_PI[[#This Row],[Size]],Table_PI[[#This Row],[Input 1]],Table_PI[[#This Row],[Input 2]],Table_PI[[#This Row],[Input 3]],Table_PI[[#This Row],[Input 4]],'Customer Information'!$AR$12,100,ROW()),\"\"),\"\")","v":""},{"$f":"IF(Table_PI[[#This Row],[Input 1]]<>\"\",Table_PI[[#This Row],[Input 1]],\"\")","v":""},null,{"$f":"IFERROR(IF(AND(MeasureCalc(Table_PI[[#This Row],[Hide:\nFormula Name]],Table_SummaryPI[[#This Row],[Quantity]],Table_PI[[#This Row],[List 1]],Table_PI[[#This Row],[List 2]],Table_PI[[#This Row],[List 3]],Table_PI[[#This Row],[Size]],Table_PI[[#This Row],[Input 1]],Table_PI[[#This Row],[Input 2]],Table_PI[[#This Row],[Input 3]],Table_PI[[#This Row],[Input 4]],'Customer Information'!$AR$12,101,ROW())<>0,MeasureCalc(Table_PI[[#This Row],[Hide:\nFormula Name]],Table_SummaryPI[[#This Row],[Quantity]],Table_PI[[#This Row],[List 1]],Table_PI[[#This Row],[List 2]],Table_PI[[#This Row],[List 3]],Table_PI[[#This Row],[Size]],Table_PI[[#This Row],[Input 1]],Table_PI[[#This Row],[Input 2]],Table_PI[[#This Row],[Input 3]],Table_PI[[#This Row],[Input 4]],'Customer Information'!$AR$12,101,ROW())<>\"No Rebate\"),MeasureCalc(Table_PI[[#This Row],[Hide:\nFormula Name]],Table_SummaryPI[[#This Row],[Quantity]],Table_PI[[#This Row],[List 1]],Table_PI[[#This Row],[List 2]],Table_PI[[#This Row],[List 3]],Table_PI[[#This Row],[Size]],Table_PI[[#This Row],[Input 1]],Table_PI[[#This Row],[Input 2]],Table_PI[[#This Row],[Input 3]],Table_PI[[#This Row],[Input 4]],'Customer Information'!$AR$12,101,ROW()),\"\"),\"\")","v":""},{"$f":"IF(Table_PI[[#This Row],[Input 2]]<>\"\",Table_PI[[#This Row],[Input 2]],\"\")","v":""},null,{"$f":"IFERROR(IF(AND(MeasureCalc(Table_PI[[#This Row],[Hide:\nFormula Name]],Table_SummaryPI[[#This Row],[Quantity]],Table_PI[[#This Row],[List 1]],Table_PI[[#This Row],[List 2]],Table_PI[[#This Row],[List 3]],Table_PI[[#This Row],[Size]],Table_PI[[#This Row],[Input 1]],Table_PI[[#This Row],[Input 2]],Table_PI[[#This Row],[Input 3]],Table_PI[[#This Row],[Input 4]],'Customer Information'!$AR$12,102,ROW())<>0,MeasureCalc(Table_PI[[#This Row],[Hide:\nFormula Name]],Table_SummaryPI[[#This Row],[Quantity]],Table_PI[[#This Row],[List 1]],Table_PI[[#This Row],[List 2]],Table_PI[[#This Row],[List 3]],Table_PI[[#This Row],[Size]],Table_PI[[#This Row],[Input 1]],Table_PI[[#This Row],[Input 2]],Table_PI[[#This Row],[Input 3]],Table_PI[[#This Row],[Input 4]],'Customer Information'!$AR$12,102,ROW())<>\"No Rebate\"),MeasureCalc(Table_PI[[#This Row],[Hide:\nFormula Name]],Table_SummaryPI[[#This Row],[Quantity]],Table_PI[[#This Row],[List 1]],Table_PI[[#This Row],[List 2]],Table_PI[[#This Row],[List 3]],Table_PI[[#This Row],[Size]],Table_PI[[#This Row],[Input 1]],Table_PI[[#This Row],[Input 2]],Table_PI[[#This Row],[Input 3]],Table_PI[[#This Row],[Input 4]],'Customer Information'!$AR$12,102,ROW()),\"\"),\"\")","v":""},{"$f":"IF(Table_PI[[#This Row],[Input 3]]<>\"\",Table_PI[[#This Row],[Input 3]],\"\")","v":""},null,{"$f":"IFERROR(IF(AND(MeasureCalc(Table_PI[[#This Row],[Hide:\nFormula Name]],Table_SummaryPI[[#This Row],[Quantity]],Table_PI[[#This Row],[List 1]],Table_PI[[#This Row],[List 2]],Table_PI[[#This Row],[List 3]],Table_PI[[#This Row],[Size]],Table_PI[[#This Row],[Input 1]],Table_PI[[#This Row],[Input 2]],Table_PI[[#This Row],[Input 3]],Table_PI[[#This Row],[Input 4]],'Customer Information'!$AR$12,103,ROW())<>0,MeasureCalc(Table_PI[[#This Row],[Hide:\nFormula Name]],Table_SummaryPI[[#This Row],[Quantity]],Table_PI[[#This Row],[List 1]],Table_PI[[#This Row],[List 2]],Table_PI[[#This Row],[List 3]],Table_PI[[#This Row],[Size]],Table_PI[[#This Row],[Input 1]],Table_PI[[#This Row],[Input 2]],Table_PI[[#This Row],[Input 3]],Table_PI[[#This Row],[Input 4]],'Customer Information'!$AR$12,103,ROW())<>\"No Rebate\"),MeasureCalc(Table_PI[[#This Row],[Hide:\nFormula Name]],Table_SummaryPI[[#This Row],[Quantity]],Table_PI[[#This Row],[List 1]],Table_PI[[#This Row],[List 2]],Table_PI[[#This Row],[List 3]],Table_PI[[#This Row],[Size]],Table_PI[[#This Row],[Input 1]],Table_PI[[#This Row],[Input 2]],Table_PI[[#This Row],[Input 3]],Table_PI[[#This Row],[Input 4]],'Customer Information'!$AR$12,103,ROW()),\"\"),\"\")","v":""},{"$f":"IF(Table_PI[[#This Row],[Input 4]]<>\"\",Table_PI[[#This Row],[Input 4]],\"\")","v":""},{"$f":"IF(Table_PI[[#This Row],[Quantity]]=\"\",\"\",Table_PI[[#This Row],[Quantity]])","v":""},{"$f":"IF(Table_PI[[#This Row],[Notes]]=\"\",\"\",Table_PI[[#This Row],[Notes]])","v":""},{"$f":"IF(OR(Table_PI[[#This Row],[Hide:\nBaseline kWh]]=\"\",Table_PI[[#This Row],[Hide:\nBaseline kWh]]=0),\"\",Table_PI[[#This Row],[Hide:\nBaseline kWh]])","v":""},{"$f":"IF(OR(Table_PI[[#This Row],[Hide:\nBaseline kW]]=\"\",Table_PI[[#This Row],[Hide:\nBaseline kW]]=0),\"\",Table_PI[[#This Row],[Hide:\nBaseline kW]])","v":""},{"$f":"IF(OR(Table_PI[[#This Row],[Hide:\nProposed kWh]]=\"\",Table_PI[[#This Row],[Hide:\nProposed kWh]]=0),\"\",Table_PI[[#This Row],[Hide:\nProposed kWh]])","v":""},{"$f":"IF(OR(Table_PI[[#This Row],[Hide:\nProposed kW]]=\"\",Table_PI[[#This Row],[Hide:\nProposed kW]]=0),\"\",Table_PI[[#This Row],[Hide:\nProposed kW]])","v":""},{"$f":"IF(OR(Table_PI[[#This Row],[Rebate]]=\"\",Table_PI[[#This Row],[Rebate]]=0),\"\",Table_PI[[#This Row],[Rebate]])","v":""},{"$f":"IF(OR(Table_PI[[#This Row],[Hide:\nIncremental Cost]]=\"\",Table_PI[[#This Row],[Hide:\nIncremental Cost]]=0),\"\",Table_PI[[#This Row],[Hide:\nIncremental Cost]])","v":""},{"$f":"IFERROR(IF(Table_SummaryPI[[#This Row],[kWhSavings]]=\"\",\"\",ROUND(Table_SummaryPI[[#This Row],[kWhSavings]]/$AG$401*'Customer Information'!$BC$17,2)),0)","v":""},{"$f":"IF(OR(Table_PI[[#This Row],[Annual kWh]]=\"\",Table_PI[[#This Row],[Annual kWh]]=0),\"\",Table_PI[[#This Row],[Annual kWh]])","v":""},{"$f":"IF(OR(Table_PI[[#This Row],[Peak kW]]=\"\",Table_PI[[#This Row],[Peak kW]]=0),\"\",Table_PI[[#This Row],[Peak kW]])","v":""},{"$f":"IFERROR(IF(Table_SummaryPI[[#This Row],[kWhSavings]]=\"\",\"\",$AU$9*Table_SummaryPI[[#This Row],[kWhSavings]]),0)","v":""},{"$f":"IFERROR(IF(Table_SummaryPI[[#This Row],[kWhSavings]]=\"\",\"\",$AU$14*Table_SummaryPI[[#This Row],[kWhSavings]]),0)","v":""},{"$f":"IFERROR(IF(Table_SummaryPI[[#This Row],[kWhSavings]]=\"\",\"\",$AU$18*Table_SummaryPI[[#This Row],[kWhSavings]]),0)","v":""},{"$f":"IFERROR(IF(Table_SummaryPI[[#This Row],[kWhSavings]]=\"\",\"\",$AU$22*Table_SummaryPI[[#This Row],[kWhSavings]]),0)","v":""},{"$f":"IFERROR(IF(MeasureCalc(Table_PI[[#This Row],[Hide:\nFormula Name]],Table_SummaryPI[[#This Row],[Quantity]],Table_PI[[#This Row],[List 1]],Table_PI[[#This Row],[List 2]],Table_PI[[#This Row],[List 3]],Table_PI[[#This Row],[Size]],Table_PI[[#This Row],[Input 1]],Table_PI[[#This Row],[Input 2]],Table_PI[[#This Row],[Input 3]],Table_PI[[#This Row],[Input 4]],'Customer Information'!$AR$12,200,ROW())<>\"No Rebate\",MeasureCalc(Table_PI[[#This Row],[Hide:\nFormula Name]],Table_SummaryPI[[#This Row],[Quantity]],Table_PI[[#This Row],[List 1]],Table_PI[[#This Row],[List 2]],Table_PI[[#This Row],[List 3]],Table_PI[[#This Row],[Size]],Table_PI[[#This Row],[Input 1]],Table_PI[[#This Row],[Input 2]],Table_PI[[#This Row],[Input 3]],Table_PI[[#This Row],[Input 4]],'Customer Information'!$AR$12,200,ROW()),\"\"),\"\")","v":""},{"$f":"IFERROR(IF(MeasureCalc(Table_PI[[#This Row],[Hide:\nFormula Name]],Table_SummaryPI[[#This Row],[Quantity]],Table_PI[[#This Row],[List 1]],Table_PI[[#This Row],[List 2]],Table_PI[[#This Row],[List 3]],Table_PI[[#This Row],[Size]],Table_PI[[#This Row],[Input 1]],Table_PI[[#This Row],[Input 2]],Table_PI[[#This Row],[Input 3]],Table_PI[[#This Row],[Input 4]],'Customer Information'!$AR$12,201,ROW())<>\"No Rebate\",MeasureCalc(Table_PI[[#This Row],[Hide:\nFormula Name]],Table_SummaryPI[[#This Row],[Quantity]],Table_PI[[#This Row],[List 1]],Table_PI[[#This Row],[List 2]],Table_PI[[#This Row],[List 3]],Table_PI[[#This Row],[Size]],Table_PI[[#This Row],[Input 1]],Table_PI[[#This Row],[Input 2]],Table_PI[[#This Row],[Input 3]],Table_PI[[#This Row],[Input 4]],'Customer Information'!$AR$12,201,ROW()),\"\"),\"\")","v":""}]
[{"$f":"Table_PI[[#This Row],[Line No.]]","v":""},{"$f":"IF(Table_SummaryPI[[#This Row],[MeassureCategory]]<>\"\",CONCATENATE(Table_SummaryPI[[#This Row],[MeassureCategory]],  \" - \", Table_SummaryPI[[#This Row],[ProposedMeasureCategory]],  \" - \", TEXT(Table_SummaryPI[[#This Row],[Size]],\"#,##0.00\"),\" \",Table_SummaryPI[[#This Row],[SizeUnit]]),\"\")","v":""},{"$f":"SUBSTITUTE(Table_PI[[#This Row],[Measure]],\"     \",\"\",1)","v":""},{"$f":"IF(Table_PI[[#This Row],[List 1]]<>\"\",Table_PI[[#This Row],[List 1]],\"\")","v":""},{"$f":"IF(Table_PI[[#This Row],[List 2]]<>\"\",Table_PI[[#This Row],[List 2]],\"\")","v":""},{"$f":"IF(Table_PI[[#This Row],[List 3]]<>\"\",Table_PI[[#This Row],[List 3]],\"\")","v":""},{"$f":"IF(Table_PI[[#This Row],[Manufacturer]]=\"\",\"\",Table_PI[[#This Row],[Manufacturer]])","v":""},{"$f":"IF(Table_PI[[#This Row],[Model Number]]=\"\",\"\",Table_PI[[#This Row],[Model Number]])","v":""},{"$f":"IF(Table_PI[[#This Row],[Serial Number(s)]]=\"\",\"\",Table_PI[[#This Row],[Serial Number(s)]])","v":""},null,{"$f":"IF(Table_PI[[#This Row],[Size]]=\"\",\"\",Table_PI[[#This Row],[Size]])","v":""},null,{"$f":"IFERROR(IF(AND(MeasureCalc(Table_PI[[#This Row],[Hide:\nFormula Name]],Table_SummaryPI[[#This Row],[Quantity]],Table_PI[[#This Row],[List 1]],Table_PI[[#This Row],[List 2]],Table_PI[[#This Row],[List 3]],Table_PI[[#This Row],[Size]],Table_PI[[#This Row],[Input 1]],Table_PI[[#This Row],[Input 2]],Table_PI[[#This Row],[Input 3]],Table_PI[[#This Row],[Input 4]],'Customer Information'!$AR$12,100,ROW())<>0,MeasureCalc(Table_PI[[#This Row],[Hide:\nFormula Name]],Table_SummaryPI[[#This Row],[Quantity]],Table_PI[[#This Row],[List 1]],Table_PI[[#This Row],[List 2]],Table_PI[[#This Row],[List 3]],Table_PI[[#This Row],[Size]],Table_PI[[#This Row],[Input 1]],Table_PI[[#This Row],[Input 2]],Table_PI[[#This Row],[Input 3]],Table_PI[[#This Row],[Input 4]],'Customer Information'!$AR$12,100,ROW())<>\"No Rebate\"),MeasureCalc(Table_PI[[#This Row],[Hide:\nFormula Name]],Table_SummaryPI[[#This Row],[Quantity]],Table_PI[[#This Row],[List 1]],Table_PI[[#This Row],[List 2]],Table_PI[[#This Row],[List 3]],Table_PI[[#This Row],[Size]],Table_PI[[#This Row],[Input 1]],Table_PI[[#This Row],[Input 2]],Table_PI[[#This Row],[Input 3]],Table_PI[[#This Row],[Input 4]],'Customer Information'!$AR$12,100,ROW()),\"\"),\"\")","v":""},{"$f":"IF(Table_PI[[#This Row],[Input 1]]<>\"\",Table_PI[[#This Row],[Input 1]],\"\")","v":""},null,{"$f":"IFERROR(IF(AND(MeasureCalc(Table_PI[[#This Row],[Hide:\nFormula Name]],Table_SummaryPI[[#This Row],[Quantity]],Table_PI[[#This Row],[List 1]],Table_PI[[#This Row],[List 2]],Table_PI[[#This Row],[List 3]],Table_PI[[#This Row],[Size]],Table_PI[[#This Row],[Input 1]],Table_PI[[#This Row],[Input 2]],Table_PI[[#This Row],[Input 3]],Table_PI[[#This Row],[Input 4]],'Customer Information'!$AR$12,101,ROW())<>0,MeasureCalc(Table_PI[[#This Row],[Hide:\nFormula Name]],Table_SummaryPI[[#This Row],[Quantity]],Table_PI[[#This Row],[List 1]],Table_PI[[#This Row],[List 2]],Table_PI[[#This Row],[List 3]],Table_PI[[#This Row],[Size]],Table_PI[[#This Row],[Input 1]],Table_PI[[#This Row],[Input 2]],Table_PI[[#This Row],[Input 3]],Table_PI[[#This Row],[Input 4]],'Customer Information'!$AR$12,101,ROW())<>\"No Rebate\"),MeasureCalc(Table_PI[[#This Row],[Hide:\nFormula Name]],Table_SummaryPI[[#This Row],[Quantity]],Table_PI[[#This Row],[List 1]],Table_PI[[#This Row],[List 2]],Table_PI[[#This Row],[List 3]],Table_PI[[#This Row],[Size]],Table_PI[[#This Row],[Input 1]],Table_PI[[#This Row],[Input 2]],Table_PI[[#This Row],[Input 3]],Table_PI[[#This Row],[Input 4]],'Customer Information'!$AR$12,101,ROW()),\"\"),\"\")","v":""},{"$f":"IF(Table_PI[[#This Row],[Input 2]]<>\"\",Table_PI[[#This Row],[Input 2]],\"\")","v":""},null,{"$f":"IFERROR(IF(AND(MeasureCalc(Table_PI[[#This Row],[Hide:\nFormula Name]],Table_SummaryPI[[#This Row],[Quantity]],Table_PI[[#This Row],[List 1]],Table_PI[[#This Row],[List 2]],Table_PI[[#This Row],[List 3]],Table_PI[[#This Row],[Size]],Table_PI[[#This Row],[Input 1]],Table_PI[[#This Row],[Input 2]],Table_PI[[#This Row],[Input 3]],Table_PI[[#This Row],[Input 4]],'Customer Information'!$AR$12,102,ROW())<>0,MeasureCalc(Table_PI[[#This Row],[Hide:\nFormula Name]],Table_SummaryPI[[#This Row],[Quantity]],Table_PI[[#This Row],[List 1]],Table_PI[[#This Row],[List 2]],Table_PI[[#This Row],[List 3]],Table_PI[[#This Row],[Size]],Table_PI[[#This Row],[Input 1]],Table_PI[[#This Row],[Input 2]],Table_PI[[#This Row],[Input 3]],Table_PI[[#This Row],[Input 4]],'Customer Information'!$AR$12,102,ROW())<>\"No Rebate\"),MeasureCalc(Table_PI[[#This Row],[Hide:\nFormula Name]],Table_SummaryPI[[#This Row],[Quantity]],Table_PI[[#This Row],[List 1]],Table_PI[[#This Row],[List 2]],Table_PI[[#This Row],[List 3]],Table_PI[[#This Row],[Size]],Table_PI[[#This Row],[Input 1]],Table_PI[[#This Row],[Input 2]],Table_PI[[#This Row],[Input 3]],Table_PI[[#This Row],[Input 4]],'Customer Information'!$AR$12,102,ROW()),\"\"),\"\")","v":""},{"$f":"IF(Table_PI[[#This Row],[Input 3]]<>\"\",Table_PI[[#This Row],[Input 3]],\"\")","v":""},null,{"$f":"IFERROR(IF(AND(MeasureCalc(Table_PI[[#This Row],[Hide:\nFormula Name]],Table_SummaryPI[[#This Row],[Quantity]],Table_PI[[#This Row],[List 1]],Table_PI[[#This Row],[List 2]],Table_PI[[#This Row],[List 3]],Table_PI[[#This Row],[Size]],Table_PI[[#This Row],[Input 1]],Table_PI[[#This Row],[Input 2]],Table_PI[[#This Row],[Input 3]],Table_PI[[#This Row],[Input 4]],'Customer Information'!$AR$12,103,ROW())<>0,MeasureCalc(Table_PI[[#This Row],[Hide:\nFormula Name]],Table_SummaryPI[[#This Row],[Quantity]],Table_PI[[#This Row],[List 1]],Table_PI[[#This Row],[List 2]],Table_PI[[#This Row],[List 3]],Table_PI[[#This Row],[Size]],Table_PI[[#This Row],[Input 1]],Table_PI[[#This Row],[Input 2]],Table_PI[[#This Row],[Input 3]],Table_PI[[#This Row],[Input 4]],'Customer Information'!$AR$12,103,ROW())<>\"No Rebate\"),MeasureCalc(Table_PI[[#This Row],[Hide:\nFormula Name]],Table_SummaryPI[[#This Row],[Quantity]],Table_PI[[#This Row],[List 1]],Table_PI[[#This Row],[List 2]],Table_PI[[#This Row],[List 3]],Table_PI[[#This Row],[Size]],Table_PI[[#This Row],[Input 1]],Table_PI[[#This Row],[Input 2]],Table_PI[[#This Row],[Input 3]],Table_PI[[#This Row],[Input 4]],'Customer Information'!$AR$12,103,ROW()),\"\"),\"\")","v":""},{"$f":"IF(Table_PI[[#This Row],[Input 4]]<>\"\",Table_PI[[#This Row],[Input 4]],\"\")","v":""},{"$f":"IF(Table_PI[[#This Row],[Quantity]]=\"\",\"\",Table_PI[[#This Row],[Quantity]])","v":""},{"$f":"IF(Table_PI[[#This Row],[Notes]]=\"\",\"\",Table_PI[[#This Row],[Notes]])","v":""},{"$f":"IF(OR(Table_PI[[#This Row],[Hide:\nBaseline kWh]]=\"\",Table_PI[[#This Row],[Hide:\nBaseline kWh]]=0),\"\",Table_PI[[#This Row],[Hide:\nBaseline kWh]])","v":""},{"$f":"IF(OR(Table_PI[[#This Row],[Hide:\nBaseline kW]]=\"\",Table_PI[[#This Row],[Hide:\nBaseline kW]]=0),\"\",Table_PI[[#This Row],[Hide:\nBaseline kW]])","v":""},{"$f":"IF(OR(Table_PI[[#This Row],[Hide:\nProposed kWh]]=\"\",Table_PI[[#This Row],[Hide:\nProposed kWh]]=0),\"\",Table_PI[[#This Row],[Hide:\nProposed kWh]])","v":""},{"$f":"IF(OR(Table_PI[[#This Row],[Hide:\nProposed kW]]=\"\",Table_PI[[#This Row],[Hide:\nProposed kW]]=0),\"\",Table_PI[[#This Row],[Hide:\nProposed kW]])","v":""},{"$f":"IF(OR(Table_PI[[#This Row],[Rebate]]=\"\",Table_PI[[#This Row],[Rebate]]=0),\"\",Table_PI[[#This Row],[Rebate]])","v":""},{"$f":"IF(OR(Table_PI[[#This Row],[Hide:\nIncremental Cost]]=\"\",Table_PI[[#This Row],[Hide:\nIncremental Cost]]=0),\"\",Table_PI[[#This Row],[Hide:\nIncremental Cost]])","v":""},{"$f":"IFERROR(IF(Table_SummaryPI[[#This Row],[kWhSavings]]=\"\",\"\",ROUND(Table_SummaryPI[[#This Row],[kWhSavings]]/$AG$401*'Customer Information'!$BC$17,2)),0)","v":""},{"$f":"IF(OR(Table_PI[[#This Row],[Annual kWh]]=\"\",Table_PI[[#This Row],[Annual kWh]]=0),\"\",Table_PI[[#This Row],[Annual kWh]])","v":""},{"$f":"IF(OR(Table_PI[[#This Row],[Peak kW]]=\"\",Table_PI[[#This Row],[Peak kW]]=0),\"\",Table_PI[[#This Row],[Peak kW]])","v":""},{"$f":"IFERROR(IF(Table_SummaryPI[[#This Row],[kWhSavings]]=\"\",\"\",$AU$9*Table_SummaryPI[[#This Row],[kWhSavings]]),0)","v":""},{"$f":"IFERROR(IF(Table_SummaryPI[[#This Row],[kWhSavings]]=\"\",\"\",$AU$14*Table_SummaryPI[[#This Row],[kWhSavings]]),0)","v":""},{"$f":"IFERROR(IF(Table_SummaryPI[[#This Row],[kWhSavings]]=\"\",\"\",$AU$18*Table_SummaryPI[[#This Row],[kWhSavings]]),0)","v":""},{"$f":"IFERROR(IF(Table_SummaryPI[[#This Row],[kWhSavings]]=\"\",\"\",$AU$22*Table_SummaryPI[[#This Row],[kWhSavings]]),0)","v":""},{"$f":"IFERROR(IF(MeasureCalc(Table_PI[[#This Row],[Hide:\nFormula Name]],Table_SummaryPI[[#This Row],[Quantity]],Table_PI[[#This Row],[List 1]],Table_PI[[#This Row],[List 2]],Table_PI[[#This Row],[List 3]],Table_PI[[#This Row],[Size]],Table_PI[[#This Row],[Input 1]],Table_PI[[#This Row],[Input 2]],Table_PI[[#This Row],[Input 3]],Table_PI[[#This Row],[Input 4]],'Customer Information'!$AR$12,200,ROW())<>\"No Rebate\",MeasureCalc(Table_PI[[#This Row],[Hide:\nFormula Name]],Table_SummaryPI[[#This Row],[Quantity]],Table_PI[[#This Row],[List 1]],Table_PI[[#This Row],[List 2]],Table_PI[[#This Row],[List 3]],Table_PI[[#This Row],[Size]],Table_PI[[#This Row],[Input 1]],Table_PI[[#This Row],[Input 2]],Table_PI[[#This Row],[Input 3]],Table_PI[[#This Row],[Input 4]],'Customer Information'!$AR$12,200,ROW()),\"\"),\"\")","v":""},{"$f":"IFERROR(IF(MeasureCalc(Table_PI[[#This Row],[Hide:\nFormula Name]],Table_SummaryPI[[#This Row],[Quantity]],Table_PI[[#This Row],[List 1]],Table_PI[[#This Row],[List 2]],Table_PI[[#This Row],[List 3]],Table_PI[[#This Row],[Size]],Table_PI[[#This Row],[Input 1]],Table_PI[[#This Row],[Input 2]],Table_PI[[#This Row],[Input 3]],Table_PI[[#This Row],[Input 4]],'Customer Information'!$AR$12,201,ROW())<>\"No Rebate\",MeasureCalc(Table_PI[[#This Row],[Hide:\nFormula Name]],Table_SummaryPI[[#This Row],[Quantity]],Table_PI[[#This Row],[List 1]],Table_PI[[#This Row],[List 2]],Table_PI[[#This Row],[List 3]],Table_PI[[#This Row],[Size]],Table_PI[[#This Row],[Input 1]],Table_PI[[#This Row],[Input 2]],Table_PI[[#This Row],[Input 3]],Table_PI[[#This Row],[Input 4]],'Customer Information'!$AR$12,201,ROW()),\"\"),\"\")","v":""}]
[{"$f":"Table_PI[[#This Row],[Line No.]]","v":""},{"$f":"IF(Table_SummaryPI[[#This Row],[MeassureCategory]]<>\"\",CONCATENATE(Table_SummaryPI[[#This Row],[MeassureCategory]],  \" - \", Table_SummaryPI[[#This Row],[ProposedMeasureCategory]],  \" - \", TEXT(Table_SummaryPI[[#This Row],[Size]],\"#,##0.00\"),\" \",Table_SummaryPI[[#This Row],[SizeUnit]]),\"\")","v":""},{"$f":"SUBSTITUTE(Table_PI[[#This Row],[Measure]],\"     \",\"\",1)","v":""},{"$f":"IF(Table_PI[[#This Row],[List 1]]<>\"\",Table_PI[[#This Row],[List 1]],\"\")","v":""},{"$f":"IF(Table_PI[[#This Row],[List 2]]<>\"\",Table_PI[[#This Row],[List 2]],\"\")","v":""},{"$f":"IF(Table_PI[[#This Row],[List 3]]<>\"\",Table_PI[[#This Row],[List 3]],\"\")","v":""},{"$f":"IF(Table_PI[[#This Row],[Manufacturer]]=\"\",\"\",Table_PI[[#This Row],[Manufacturer]])","v":""},{"$f":"IF(Table_PI[[#This Row],[Model Number]]=\"\",\"\",Table_PI[[#This Row],[Model Number]])","v":""},{"$f":"IF(Table_PI[[#This Row],[Serial Number(s)]]=\"\",\"\",Table_PI[[#This Row],[Serial Number(s)]])","v":""},null,{"$f":"IF(Table_PI[[#This Row],[Size]]=\"\",\"\",Table_PI[[#This Row],[Size]])","v":""},null,{"$f":"IFERROR(IF(AND(MeasureCalc(Table_PI[[#This Row],[Hide:\nFormula Name]],Table_SummaryPI[[#This Row],[Quantity]],Table_PI[[#This Row],[List 1]],Table_PI[[#This Row],[List 2]],Table_PI[[#This Row],[List 3]],Table_PI[[#This Row],[Size]],Table_PI[[#This Row],[Input 1]],Table_PI[[#This Row],[Input 2]],Table_PI[[#This Row],[Input 3]],Table_PI[[#This Row],[Input 4]],'Customer Information'!$AR$12,100,ROW())<>0,MeasureCalc(Table_PI[[#This Row],[Hide:\nFormula Name]],Table_SummaryPI[[#This Row],[Quantity]],Table_PI[[#This Row],[List 1]],Table_PI[[#This Row],[List 2]],Table_PI[[#This Row],[List 3]],Table_PI[[#This Row],[Size]],Table_PI[[#This Row],[Input 1]],Table_PI[[#This Row],[Input 2]],Table_PI[[#This Row],[Input 3]],Table_PI[[#This Row],[Input 4]],'Customer Information'!$AR$12,100,ROW())<>\"No Rebate\"),MeasureCalc(Table_PI[[#This Row],[Hide:\nFormula Name]],Table_SummaryPI[[#This Row],[Quantity]],Table_PI[[#This Row],[List 1]],Table_PI[[#This Row],[List 2]],Table_PI[[#This Row],[List 3]],Table_PI[[#This Row],[Size]],Table_PI[[#This Row],[Input 1]],Table_PI[[#This Row],[Input 2]],Table_PI[[#This Row],[Input 3]],Table_PI[[#This Row],[Input 4]],'Customer Information'!$AR$12,100,ROW()),\"\"),\"\")","v":""},{"$f":"IF(Table_PI[[#This Row],[Input 1]]<>\"\",Table_PI[[#This Row],[Input 1]],\"\")","v":""},null,{"$f":"IFERROR(IF(AND(MeasureCalc(Table_PI[[#This Row],[Hide:\nFormula Name]],Table_SummaryPI[[#This Row],[Quantity]],Table_PI[[#This Row],[List 1]],Table_PI[[#This Row],[List 2]],Table_PI[[#This Row],[List 3]],Table_PI[[#This Row],[Size]],Table_PI[[#This Row],[Input 1]],Table_PI[[#This Row],[Input 2]],Table_PI[[#This Row],[Input 3]],Table_PI[[#This Row],[Input 4]],'Customer Information'!$AR$12,101,ROW())<>0,MeasureCalc(Table_PI[[#This Row],[Hide:\nFormula Name]],Table_SummaryPI[[#This Row],[Quantity]],Table_PI[[#This Row],[List 1]],Table_PI[[#This Row],[List 2]],Table_PI[[#This Row],[List 3]],Table_PI[[#This Row],[Size]],Table_PI[[#This Row],[Input 1]],Table_PI[[#This Row],[Input 2]],Table_PI[[#This Row],[Input 3]],Table_PI[[#This Row],[Input 4]],'Customer Information'!$AR$12,101,ROW())<>\"No Rebate\"),MeasureCalc(Table_PI[[#This Row],[Hide:\nFormula Name]],Table_SummaryPI[[#This Row],[Quantity]],Table_PI[[#This Row],[List 1]],Table_PI[[#This Row],[List 2]],Table_PI[[#This Row],[List 3]],Table_PI[[#This Row],[Size]],Table_PI[[#This Row],[Input 1]],Table_PI[[#This Row],[Input 2]],Table_PI[[#This Row],[Input 3]],Table_PI[[#This Row],[Input 4]],'Customer Information'!$AR$12,101,ROW()),\"\"),\"\")","v":""},{"$f":"IF(Table_PI[[#This Row],[Input 2]]<>\"\",Table_PI[[#This Row],[Input 2]],\"\")","v":""},null,{"$f":"IFERROR(IF(AND(MeasureCalc(Table_PI[[#This Row],[Hide:\nFormula Name]],Table_SummaryPI[[#This Row],[Quantity]],Table_PI[[#This Row],[List 1]],Table_PI[[#This Row],[List 2]],Table_PI[[#This Row],[List 3]],Table_PI[[#This Row],[Size]],Table_PI[[#This Row],[Input 1]],Table_PI[[#This Row],[Input 2]],Table_PI[[#This Row],[Input 3]],Table_PI[[#This Row],[Input 4]],'Customer Information'!$AR$12,102,ROW())<>0,MeasureCalc(Table_PI[[#This Row],[Hide:\nFormula Name]],Table_SummaryPI[[#This Row],[Quantity]],Table_PI[[#This Row],[List 1]],Table_PI[[#This Row],[List 2]],Table_PI[[#This Row],[List 3]],Table_PI[[#This Row],[Size]],Table_PI[[#This Row],[Input 1]],Table_PI[[#This Row],[Input 2]],Table_PI[[#This Row],[Input 3]],Table_PI[[#This Row],[Input 4]],'Customer Information'!$AR$12,102,ROW())<>\"No Rebate\"),MeasureCalc(Table_PI[[#This Row],[Hide:\nFormula Name]],Table_SummaryPI[[#This Row],[Quantity]],Table_PI[[#This Row],[List 1]],Table_PI[[#This Row],[List 2]],Table_PI[[#This Row],[List 3]],Table_PI[[#This Row],[Size]],Table_PI[[#This Row],[Input 1]],Table_PI[[#This Row],[Input 2]],Table_PI[[#This Row],[Input 3]],Table_PI[[#This Row],[Input 4]],'Customer Information'!$AR$12,102,ROW()),\"\"),\"\")","v":""},{"$f":"IF(Table_PI[[#This Row],[Input 3]]<>\"\",Table_PI[[#This Row],[Input 3]],\"\")","v":""},null,{"$f":"IFERROR(IF(AND(MeasureCalc(Table_PI[[#This Row],[Hide:\nFormula Name]],Table_SummaryPI[[#This Row],[Quantity]],Table_PI[[#This Row],[List 1]],Table_PI[[#This Row],[List 2]],Table_PI[[#This Row],[List 3]],Table_PI[[#This Row],[Size]],Table_PI[[#This Row],[Input 1]],Table_PI[[#This Row],[Input 2]],Table_PI[[#This Row],[Input 3]],Table_PI[[#This Row],[Input 4]],'Customer Information'!$AR$12,103,ROW())<>0,MeasureCalc(Table_PI[[#This Row],[Hide:\nFormula Name]],Table_SummaryPI[[#This Row],[Quantity]],Table_PI[[#This Row],[List 1]],Table_PI[[#This Row],[List 2]],Table_PI[[#This Row],[List 3]],Table_PI[[#This Row],[Size]],Table_PI[[#This Row],[Input 1]],Table_PI[[#This Row],[Input 2]],Table_PI[[#This Row],[Input 3]],Table_PI[[#This Row],[Input 4]],'Customer Information'!$AR$12,103,ROW())<>\"No Rebate\"),MeasureCalc(Table_PI[[#This Row],[Hide:\nFormula Name]],Table_SummaryPI[[#This Row],[Quantity]],Table_PI[[#This Row],[List 1]],Table_PI[[#This Row],[List 2]],Table_PI[[#This Row],[List 3]],Table_PI[[#This Row],[Size]],Table_PI[[#This Row],[Input 1]],Table_PI[[#This Row],[Input 2]],Table_PI[[#This Row],[Input 3]],Table_PI[[#This Row],[Input 4]],'Customer Information'!$AR$12,103,ROW()),\"\"),\"\")","v":""},{"$f":"IF(Table_PI[[#This Row],[Input 4]]<>\"\",Table_PI[[#This Row],[Input 4]],\"\")","v":""},{"$f":"IF(Table_PI[[#This Row],[Quantity]]=\"\",\"\",Table_PI[[#This Row],[Quantity]])","v":""},{"$f":"IF(Table_PI[[#This Row],[Notes]]=\"\",\"\",Table_PI[[#This Row],[Notes]])","v":""},{"$f":"IF(OR(Table_PI[[#This Row],[Hide:\nBaseline kWh]]=\"\",Table_PI[[#This Row],[Hide:\nBaseline kWh]]=0),\"\",Table_PI[[#This Row],[Hide:\nBaseline kWh]])","v":""},{"$f":"IF(OR(Table_PI[[#This Row],[Hide:\nBaseline kW]]=\"\",Table_PI[[#This Row],[Hide:\nBaseline kW]]=0),\"\",Table_PI[[#This Row],[Hide:\nBaseline kW]])","v":""},{"$f":"IF(OR(Table_PI[[#This Row],[Hide:\nProposed kWh]]=\"\",Table_PI[[#This Row],[Hide:\nProposed kWh]]=0),\"\",Table_PI[[#This Row],[Hide:\nProposed kWh]])","v":""},{"$f":"IF(OR(Table_PI[[#This Row],[Hide:\nProposed kW]]=\"\",Table_PI[[#This Row],[Hide:\nProposed kW]]=0),\"\",Table_PI[[#This Row],[Hide:\nProposed kW]])","v":""},{"$f":"IF(OR(Table_PI[[#This Row],[Rebate]]=\"\",Table_PI[[#This Row],[Rebate]]=0),\"\",Table_PI[[#This Row],[Rebate]])","v":""},{"$f":"IF(OR(Table_PI[[#This Row],[Hide:\nIncremental Cost]]=\"\",Table_PI[[#This Row],[Hide:\nIncremental Cost]]=0),\"\",Table_PI[[#This Row],[Hide:\nIncremental Cost]])","v":""},{"$f":"IFERROR(IF(Table_SummaryPI[[#This Row],[kWhSavings]]=\"\",\"\",ROUND(Table_SummaryPI[[#This Row],[kWhSavings]]/$AG$401*'Customer Information'!$BC$17,2)),0)","v":""},{"$f":"IF(OR(Table_PI[[#This Row],[Annual kWh]]=\"\",Table_PI[[#This Row],[Annual kWh]]=0),\"\",Table_PI[[#This Row],[Annual kWh]])","v":""},{"$f":"IF(OR(Table_PI[[#This Row],[Peak kW]]=\"\",Table_PI[[#This Row],[Peak kW]]=0),\"\",Table_PI[[#This Row],[Peak kW]])","v":""},{"$f":"IFERROR(IF(Table_SummaryPI[[#This Row],[kWhSavings]]=\"\",\"\",$AU$9*Table_SummaryPI[[#This Row],[kWhSavings]]),0)","v":""},{"$f":"IFERROR(IF(Table_SummaryPI[[#This Row],[kWhSavings]]=\"\",\"\",$AU$14*Table_SummaryPI[[#This Row],[kWhSavings]]),0)","v":""},{"$f":"IFERROR(IF(Table_SummaryPI[[#This Row],[kWhSavings]]=\"\",\"\",$AU$18*Table_SummaryPI[[#This Row],[kWhSavings]]),0)","v":""},{"$f":"IFERROR(IF(Table_SummaryPI[[#This Row],[kWhSavings]]=\"\",\"\",$AU$22*Table_SummaryPI[[#This Row],[kWhSavings]]),0)","v":""},{"$f":"IFERROR(IF(MeasureCalc(Table_PI[[#This Row],[Hide:\nFormula Name]],Table_SummaryPI[[#This Row],[Quantity]],Table_PI[[#This Row],[List 1]],Table_PI[[#This Row],[List 2]],Table_PI[[#This Row],[List 3]],Table_PI[[#This Row],[Size]],Table_PI[[#This Row],[Input 1]],Table_PI[[#This Row],[Input 2]],Table_PI[[#This Row],[Input 3]],Table_PI[[#This Row],[Input 4]],'Customer Information'!$AR$12,200,ROW())<>\"No Rebate\",MeasureCalc(Table_PI[[#This Row],[Hide:\nFormula Name]],Table_SummaryPI[[#This Row],[Quantity]],Table_PI[[#This Row],[List 1]],Table_PI[[#This Row],[List 2]],Table_PI[[#This Row],[List 3]],Table_PI[[#This Row],[Size]],Table_PI[[#This Row],[Input 1]],Table_PI[[#This Row],[Input 2]],Table_PI[[#This Row],[Input 3]],Table_PI[[#This Row],[Input 4]],'Customer Information'!$AR$12,200,ROW()),\"\"),\"\")","v":""},{"$f":"IFERROR(IF(MeasureCalc(Table_PI[[#This Row],[Hide:\nFormula Name]],Table_SummaryPI[[#This Row],[Quantity]],Table_PI[[#This Row],[List 1]],Table_PI[[#This Row],[List 2]],Table_PI[[#This Row],[List 3]],Table_PI[[#This Row],[Size]],Table_PI[[#This Row],[Input 1]],Table_PI[[#This Row],[Input 2]],Table_PI[[#This Row],[Input 3]],Table_PI[[#This Row],[Input 4]],'Customer Information'!$AR$12,201,ROW())<>\"No Rebate\",MeasureCalc(Table_PI[[#This Row],[Hide:\nFormula Name]],Table_SummaryPI[[#This Row],[Quantity]],Table_PI[[#This Row],[List 1]],Table_PI[[#This Row],[List 2]],Table_PI[[#This Row],[List 3]],Table_PI[[#This Row],[Size]],Table_PI[[#This Row],[Input 1]],Table_PI[[#This Row],[Input 2]],Table_PI[[#This Row],[Input 3]],Table_PI[[#This Row],[Input 4]],'Customer Information'!$AR$12,201,ROW()),\"\"),\"\")","v":""}]
[{"$f":"Table_PI[[#This Row],[Line No.]]","v":""},{"$f":"IF(Table_SummaryPI[[#This Row],[MeassureCategory]]<>\"\",CONCATENATE(Table_SummaryPI[[#This Row],[MeassureCategory]],  \" - \", Table_SummaryPI[[#This Row],[ProposedMeasureCategory]],  \" - \", TEXT(Table_SummaryPI[[#This Row],[Size]],\"#,##0.00\"),\" \",Table_SummaryPI[[#This Row],[SizeUnit]]),\"\")","v":""},{"$f":"SUBSTITUTE(Table_PI[[#This Row],[Measure]],\"     \",\"\",1)","v":""},{"$f":"IF(Table_PI[[#This Row],[List 1]]<>\"\",Table_PI[[#This Row],[List 1]],\"\")","v":""},{"$f":"IF(Table_PI[[#This Row],[List 2]]<>\"\",Table_PI[[#This Row],[List 2]],\"\")","v":""},{"$f":"IF(Table_PI[[#This Row],[List 3]]<>\"\",Table_PI[[#This Row],[List 3]],\"\")","v":""},{"$f":"IF(Table_PI[[#This Row],[Manufacturer]]=\"\",\"\",Table_PI[[#This Row],[Manufacturer]])","v":""},{"$f":"IF(Table_PI[[#This Row],[Model Number]]=\"\",\"\",Table_PI[[#This Row],[Model Number]])","v":""},{"$f":"IF(Table_PI[[#This Row],[Serial Number(s)]]=\"\",\"\",Table_PI[[#This Row],[Serial Number(s)]])","v":""},null,{"$f":"IF(Table_PI[[#This Row],[Size]]=\"\",\"\",Table_PI[[#This Row],[Size]])","v":""},null,{"$f":"IFERROR(IF(AND(MeasureCalc(Table_PI[[#This Row],[Hide:\nFormula Name]],Table_SummaryPI[[#This Row],[Quantity]],Table_PI[[#This Row],[List 1]],Table_PI[[#This Row],[List 2]],Table_PI[[#This Row],[List 3]],Table_PI[[#This Row],[Size]],Table_PI[[#This Row],[Input 1]],Table_PI[[#This Row],[Input 2]],Table_PI[[#This Row],[Input 3]],Table_PI[[#This Row],[Input 4]],'Customer Information'!$AR$12,100,ROW())<>0,MeasureCalc(Table_PI[[#This Row],[Hide:\nFormula Name]],Table_SummaryPI[[#This Row],[Quantity]],Table_PI[[#This Row],[List 1]],Table_PI[[#This Row],[List 2]],Table_PI[[#This Row],[List 3]],Table_PI[[#This Row],[Size]],Table_PI[[#This Row],[Input 1]],Table_PI[[#This Row],[Input 2]],Table_PI[[#This Row],[Input 3]],Table_PI[[#This Row],[Input 4]],'Customer Information'!$AR$12,100,ROW())<>\"No Rebate\"),MeasureCalc(Table_PI[[#This Row],[Hide:\nFormula Name]],Table_SummaryPI[[#This Row],[Quantity]],Table_PI[[#This Row],[List 1]],Table_PI[[#This Row],[List 2]],Table_PI[[#This Row],[List 3]],Table_PI[[#This Row],[Size]],Table_PI[[#This Row],[Input 1]],Table_PI[[#This Row],[Input 2]],Table_PI[[#This Row],[Input 3]],Table_PI[[#This Row],[Input 4]],'Customer Information'!$AR$12,100,ROW()),\"\"),\"\")","v":""},{"$f":"IF(Table_PI[[#This Row],[Input 1]]<>\"\",Table_PI[[#This Row],[Input 1]],\"\")","v":""},null,{"$f":"IFERROR(IF(AND(MeasureCalc(Table_PI[[#This Row],[Hide:\nFormula Name]],Table_SummaryPI[[#This Row],[Quantity]],Table_PI[[#This Row],[List 1]],Table_PI[[#This Row],[List 2]],Table_PI[[#This Row],[List 3]],Table_PI[[#This Row],[Size]],Table_PI[[#This Row],[Input 1]],Table_PI[[#This Row],[Input 2]],Table_PI[[#This Row],[Input 3]],Table_PI[[#This Row],[Input 4]],'Customer Information'!$AR$12,101,ROW())<>0,MeasureCalc(Table_PI[[#This Row],[Hide:\nFormula Name]],Table_SummaryPI[[#This Row],[Quantity]],Table_PI[[#This Row],[List 1]],Table_PI[[#This Row],[List 2]],Table_PI[[#This Row],[List 3]],Table_PI[[#This Row],[Size]],Table_PI[[#This Row],[Input 1]],Table_PI[[#This Row],[Input 2]],Table_PI[[#This Row],[Input 3]],Table_PI[[#This Row],[Input 4]],'Customer Information'!$AR$12,101,ROW())<>\"No Rebate\"),MeasureCalc(Table_PI[[#This Row],[Hide:\nFormula Name]],Table_SummaryPI[[#This Row],[Quantity]],Table_PI[[#This Row],[List 1]],Table_PI[[#This Row],[List 2]],Table_PI[[#This Row],[List 3]],Table_PI[[#This Row],[Size]],Table_PI[[#This Row],[Input 1]],Table_PI[[#This Row],[Input 2]],Table_PI[[#This Row],[Input 3]],Table_PI[[#This Row],[Input 4]],'Customer Information'!$AR$12,101,ROW()),\"\"),\"\")","v":""},{"$f":"IF(Table_PI[[#This Row],[Input 2]]<>\"\",Table_PI[[#This Row],[Input 2]],\"\")","v":""},null,{"$f":"IFERROR(IF(AND(MeasureCalc(Table_PI[[#This Row],[Hide:\nFormula Name]],Table_SummaryPI[[#This Row],[Quantity]],Table_PI[[#This Row],[List 1]],Table_PI[[#This Row],[List 2]],Table_PI[[#This Row],[List 3]],Table_PI[[#This Row],[Size]],Table_PI[[#This Row],[Input 1]],Table_PI[[#This Row],[Input 2]],Table_PI[[#This Row],[Input 3]],Table_PI[[#This Row],[Input 4]],'Customer Information'!$AR$12,102,ROW())<>0,MeasureCalc(Table_PI[[#This Row],[Hide:\nFormula Name]],Table_SummaryPI[[#This Row],[Quantity]],Table_PI[[#This Row],[List 1]],Table_PI[[#This Row],[List 2]],Table_PI[[#This Row],[List 3]],Table_PI[[#This Row],[Size]],Table_PI[[#This Row],[Input 1]],Table_PI[[#This Row],[Input 2]],Table_PI[[#This Row],[Input 3]],Table_PI[[#This Row],[Input 4]],'Customer Information'!$AR$12,102,ROW())<>\"No Rebate\"),MeasureCalc(Table_PI[[#This Row],[Hide:\nFormula Name]],Table_SummaryPI[[#This Row],[Quantity]],Table_PI[[#This Row],[List 1]],Table_PI[[#This Row],[List 2]],Table_PI[[#This Row],[List 3]],Table_PI[[#This Row],[Size]],Table_PI[[#This Row],[Input 1]],Table_PI[[#This Row],[Input 2]],Table_PI[[#This Row],[Input 3]],Table_PI[[#This Row],[Input 4]],'Customer Information'!$AR$12,102,ROW()),\"\"),\"\")","v":""},{"$f":"IF(Table_PI[[#This Row],[Input 3]]<>\"\",Table_PI[[#This Row],[Input 3]],\"\")","v":""},null,{"$f":"IFERROR(IF(AND(MeasureCalc(Table_PI[[#This Row],[Hide:\nFormula Name]],Table_SummaryPI[[#This Row],[Quantity]],Table_PI[[#This Row],[List 1]],Table_PI[[#This Row],[List 2]],Table_PI[[#This Row],[List 3]],Table_PI[[#This Row],[Size]],Table_PI[[#This Row],[Input 1]],Table_PI[[#This Row],[Input 2]],Table_PI[[#This Row],[Input 3]],Table_PI[[#This Row],[Input 4]],'Customer Information'!$AR$12,103,ROW())<>0,MeasureCalc(Table_PI[[#This Row],[Hide:\nFormula Name]],Table_SummaryPI[[#This Row],[Quantity]],Table_PI[[#This Row],[List 1]],Table_PI[[#This Row],[List 2]],Table_PI[[#This Row],[List 3]],Table_PI[[#This Row],[Size]],Table_PI[[#This Row],[Input 1]],Table_PI[[#This Row],[Input 2]],Table_PI[[#This Row],[Input 3]],Table_PI[[#This Row],[Input 4]],'Customer Information'!$AR$12,103,ROW())<>\"No Rebate\"),MeasureCalc(Table_PI[[#This Row],[Hide:\nFormula Name]],Table_SummaryPI[[#This Row],[Quantity]],Table_PI[[#This Row],[List 1]],Table_PI[[#This Row],[List 2]],Table_PI[[#This Row],[List 3]],Table_PI[[#This Row],[Size]],Table_PI[[#This Row],[Input 1]],Table_PI[[#This Row],[Input 2]],Table_PI[[#This Row],[Input 3]],Table_PI[[#This Row],[Input 4]],'Customer Information'!$AR$12,103,ROW()),\"\"),\"\")","v":""},{"$f":"IF(Table_PI[[#This Row],[Input 4]]<>\"\",Table_PI[[#This Row],[Input 4]],\"\")","v":""},{"$f":"IF(Table_PI[[#This Row],[Quantity]]=\"\",\"\",Table_PI[[#This Row],[Quantity]])","v":""},{"$f":"IF(Table_PI[[#This Row],[Notes]]=\"\",\"\",Table_PI[[#This Row],[Notes]])","v":""},{"$f":"IF(OR(Table_PI[[#This Row],[Hide:\nBaseline kWh]]=\"\",Table_PI[[#This Row],[Hide:\nBaseline kWh]]=0),\"\",Table_PI[[#This Row],[Hide:\nBaseline kWh]])","v":""},{"$f":"IF(OR(Table_PI[[#This Row],[Hide:\nBaseline kW]]=\"\",Table_PI[[#This Row],[Hide:\nBaseline kW]]=0),\"\",Table_PI[[#This Row],[Hide:\nBaseline kW]])","v":""},{"$f":"IF(OR(Table_PI[[#This Row],[Hide:\nProposed kWh]]=\"\",Table_PI[[#This Row],[Hide:\nProposed kWh]]=0),\"\",Table_PI[[#This Row],[Hide:\nProposed kWh]])","v":""},{"$f":"IF(OR(Table_PI[[#This Row],[Hide:\nProposed kW]]=\"\",Table_PI[[#This Row],[Hide:\nProposed kW]]=0),\"\",Table_PI[[#This Row],[Hide:\nProposed kW]])","v":""},{"$f":"IF(OR(Table_PI[[#This Row],[Rebate]]=\"\",Table_PI[[#This Row],[Rebate]]=0),\"\",Table_PI[[#This Row],[Rebate]])","v":""},{"$f":"IF(OR(Table_PI[[#This Row],[Hide:\nIncremental Cost]]=\"\",Table_PI[[#This Row],[Hide:\nIncremental Cost]]=0),\"\",Table_PI[[#This Row],[Hide:\nIncremental Cost]])","v":""},{"$f":"IFERROR(IF(Table_SummaryPI[[#This Row],[kWhSavings]]=\"\",\"\",ROUND(Table_SummaryPI[[#This Row],[kWhSavings]]/$AG$401*'Customer Information'!$BC$17,2)),0)","v":""},{"$f":"IF(OR(Table_PI[[#This Row],[Annual kWh]]=\"\",Table_PI[[#This Row],[Annual kWh]]=0),\"\",Table_PI[[#This Row],[Annual kWh]])","v":""},{"$f":"IF(OR(Table_PI[[#This Row],[Peak kW]]=\"\",Table_PI[[#This Row],[Peak kW]]=0),\"\",Table_PI[[#This Row],[Peak kW]])","v":""},{"$f":"IFERROR(IF(Table_SummaryPI[[#This Row],[kWhSavings]]=\"\",\"\",$AU$9*Table_SummaryPI[[#This Row],[kWhSavings]]),0)","v":""},{"$f":"IFERROR(IF(Table_SummaryPI[[#This Row],[kWhSavings]]=\"\",\"\",$AU$14*Table_SummaryPI[[#This Row],[kWhSavings]]),0)","v":""},{"$f":"IFERROR(IF(Table_SummaryPI[[#This Row],[kWhSavings]]=\"\",\"\",$AU$18*Table_SummaryPI[[#This Row],[kWhSavings]]),0)","v":""},{"$f":"IFERROR(IF(Table_SummaryPI[[#This Row],[kWhSavings]]=\"\",\"\",$AU$22*Table_SummaryPI[[#This Row],[kWhSavings]]),0)","v":""},{"$f":"IFERROR(IF(MeasureCalc(Table_PI[[#This Row],[Hide:\nFormula Name]],Table_SummaryPI[[#This Row],[Quantity]],Table_PI[[#This Row],[List 1]],Table_PI[[#This Row],[List 2]],Table_PI[[#This Row],[List 3]],Table_PI[[#This Row],[Size]],Table_PI[[#This Row],[Input 1]],Table_PI[[#This Row],[Input 2]],Table_PI[[#This Row],[Input 3]],Table_PI[[#This Row],[Input 4]],'Customer Information'!$AR$12,200,ROW())<>\"No Rebate\",MeasureCalc(Table_PI[[#This Row],[Hide:\nFormula Name]],Table_SummaryPI[[#This Row],[Quantity]],Table_PI[[#This Row],[List 1]],Table_PI[[#This Row],[List 2]],Table_PI[[#This Row],[List 3]],Table_PI[[#This Row],[Size]],Table_PI[[#This Row],[Input 1]],Table_PI[[#This Row],[Input 2]],Table_PI[[#This Row],[Input 3]],Table_PI[[#This Row],[Input 4]],'Customer Information'!$AR$12,200,ROW()),\"\"),\"\")","v":""},{"$f":"IFERROR(IF(MeasureCalc(Table_PI[[#This Row],[Hide:\nFormula Name]],Table_SummaryPI[[#This Row],[Quantity]],Table_PI[[#This Row],[List 1]],Table_PI[[#This Row],[List 2]],Table_PI[[#This Row],[List 3]],Table_PI[[#This Row],[Size]],Table_PI[[#This Row],[Input 1]],Table_PI[[#This Row],[Input 2]],Table_PI[[#This Row],[Input 3]],Table_PI[[#This Row],[Input 4]],'Customer Information'!$AR$12,201,ROW())<>\"No Rebate\",MeasureCalc(Table_PI[[#This Row],[Hide:\nFormula Name]],Table_SummaryPI[[#This Row],[Quantity]],Table_PI[[#This Row],[List 1]],Table_PI[[#This Row],[List 2]],Table_PI[[#This Row],[List 3]],Table_PI[[#This Row],[Size]],Table_PI[[#This Row],[Input 1]],Table_PI[[#This Row],[Input 2]],Table_PI[[#This Row],[Input 3]],Table_PI[[#This Row],[Input 4]],'Customer Information'!$AR$12,201,ROW()),\"\"),\"\")","v":""}]
[{"$f":"Table_PI[[#This Row],[Line No.]]","v":""},{"$f":"IF(Table_SummaryPI[[#This Row],[MeassureCategory]]<>\"\",CONCATENATE(Table_SummaryPI[[#This Row],[MeassureCategory]],  \" - \", Table_SummaryPI[[#This Row],[ProposedMeasureCategory]],  \" - \", TEXT(Table_SummaryPI[[#This Row],[Size]],\"#,##0.00\"),\" \",Table_SummaryPI[[#This Row],[SizeUnit]]),\"\")","v":""},{"$f":"SUBSTITUTE(Table_PI[[#This Row],[Measure]],\"     \",\"\",1)","v":""},{"$f":"IF(Table_PI[[#This Row],[List 1]]<>\"\",Table_PI[[#This Row],[List 1]],\"\")","v":""},{"$f":"IF(Table_PI[[#This Row],[List 2]]<>\"\",Table_PI[[#This Row],[List 2]],\"\")","v":""},{"$f":"IF(Table_PI[[#This Row],[List 3]]<>\"\",Table_PI[[#This Row],[List 3]],\"\")","v":""},{"$f":"IF(Table_PI[[#This Row],[Manufacturer]]=\"\",\"\",Table_PI[[#This Row],[Manufacturer]])","v":""},{"$f":"IF(Table_PI[[#This Row],[Model Number]]=\"\",\"\",Table_PI[[#This Row],[Model Number]])","v":""},{"$f":"IF(Table_PI[[#This Row],[Serial Number(s)]]=\"\",\"\",Table_PI[[#This Row],[Serial Number(s)]])","v":""},null,{"$f":"IF(Table_PI[[#This Row],[Size]]=\"\",\"\",Table_PI[[#This Row],[Size]])","v":""},null,{"$f":"IFERROR(IF(AND(MeasureCalc(Table_PI[[#This Row],[Hide:\nFormula Name]],Table_SummaryPI[[#This Row],[Quantity]],Table_PI[[#This Row],[List 1]],Table_PI[[#This Row],[List 2]],Table_PI[[#This Row],[List 3]],Table_PI[[#This Row],[Size]],Table_PI[[#This Row],[Input 1]],Table_PI[[#This Row],[Input 2]],Table_PI[[#This Row],[Input 3]],Table_PI[[#This Row],[Input 4]],'Customer Information'!$AR$12,100,ROW())<>0,MeasureCalc(Table_PI[[#This Row],[Hide:\nFormula Name]],Table_SummaryPI[[#This Row],[Quantity]],Table_PI[[#This Row],[List 1]],Table_PI[[#This Row],[List 2]],Table_PI[[#This Row],[List 3]],Table_PI[[#This Row],[Size]],Table_PI[[#This Row],[Input 1]],Table_PI[[#This Row],[Input 2]],Table_PI[[#This Row],[Input 3]],Table_PI[[#This Row],[Input 4]],'Customer Information'!$AR$12,100,ROW())<>\"No Rebate\"),MeasureCalc(Table_PI[[#This Row],[Hide:\nFormula Name]],Table_SummaryPI[[#This Row],[Quantity]],Table_PI[[#This Row],[List 1]],Table_PI[[#This Row],[List 2]],Table_PI[[#This Row],[List 3]],Table_PI[[#This Row],[Size]],Table_PI[[#This Row],[Input 1]],Table_PI[[#This Row],[Input 2]],Table_PI[[#This Row],[Input 3]],Table_PI[[#This Row],[Input 4]],'Customer Information'!$AR$12,100,ROW()),\"\"),\"\")","v":""},{"$f":"IF(Table_PI[[#This Row],[Input 1]]<>\"\",Table_PI[[#This Row],[Input 1]],\"\")","v":""},null,{"$f":"IFERROR(IF(AND(MeasureCalc(Table_PI[[#This Row],[Hide:\nFormula Name]],Table_SummaryPI[[#This Row],[Quantity]],Table_PI[[#This Row],[List 1]],Table_PI[[#This Row],[List 2]],Table_PI[[#This Row],[List 3]],Table_PI[[#This Row],[Size]],Table_PI[[#This Row],[Input 1]],Table_PI[[#This Row],[Input 2]],Table_PI[[#This Row],[Input 3]],Table_PI[[#This Row],[Input 4]],'Customer Information'!$AR$12,101,ROW())<>0,MeasureCalc(Table_PI[[#This Row],[Hide:\nFormula Name]],Table_SummaryPI[[#This Row],[Quantity]],Table_PI[[#This Row],[List 1]],Table_PI[[#This Row],[List 2]],Table_PI[[#This Row],[List 3]],Table_PI[[#This Row],[Size]],Table_PI[[#This Row],[Input 1]],Table_PI[[#This Row],[Input 2]],Table_PI[[#This Row],[Input 3]],Table_PI[[#This Row],[Input 4]],'Customer Information'!$AR$12,101,ROW())<>\"No Rebate\"),MeasureCalc(Table_PI[[#This Row],[Hide:\nFormula Name]],Table_SummaryPI[[#This Row],[Quantity]],Table_PI[[#This Row],[List 1]],Table_PI[[#This Row],[List 2]],Table_PI[[#This Row],[List 3]],Table_PI[[#This Row],[Size]],Table_PI[[#This Row],[Input 1]],Table_PI[[#This Row],[Input 2]],Table_PI[[#This Row],[Input 3]],Table_PI[[#This Row],[Input 4]],'Customer Information'!$AR$12,101,ROW()),\"\"),\"\")","v":""},{"$f":"IF(Table_PI[[#This Row],[Input 2]]<>\"\",Table_PI[[#This Row],[Input 2]],\"\")","v":""},null,{"$f":"IFERROR(IF(AND(MeasureCalc(Table_PI[[#This Row],[Hide:\nFormula Name]],Table_SummaryPI[[#This Row],[Quantity]],Table_PI[[#This Row],[List 1]],Table_PI[[#This Row],[List 2]],Table_PI[[#This Row],[List 3]],Table_PI[[#This Row],[Size]],Table_PI[[#This Row],[Input 1]],Table_PI[[#This Row],[Input 2]],Table_PI[[#This Row],[Input 3]],Table_PI[[#This Row],[Input 4]],'Customer Information'!$AR$12,102,ROW())<>0,MeasureCalc(Table_PI[[#This Row],[Hide:\nFormula Name]],Table_SummaryPI[[#This Row],[Quantity]],Table_PI[[#This Row],[List 1]],Table_PI[[#This Row],[List 2]],Table_PI[[#This Row],[List 3]],Table_PI[[#This Row],[Size]],Table_PI[[#This Row],[Input 1]],Table_PI[[#This Row],[Input 2]],Table_PI[[#This Row],[Input 3]],Table_PI[[#This Row],[Input 4]],'Customer Information'!$AR$12,102,ROW())<>\"No Rebate\"),MeasureCalc(Table_PI[[#This Row],[Hide:\nFormula Name]],Table_SummaryPI[[#This Row],[Quantity]],Table_PI[[#This Row],[List 1]],Table_PI[[#This Row],[List 2]],Table_PI[[#This Row],[List 3]],Table_PI[[#This Row],[Size]],Table_PI[[#This Row],[Input 1]],Table_PI[[#This Row],[Input 2]],Table_PI[[#This Row],[Input 3]],Table_PI[[#This Row],[Input 4]],'Customer Information'!$AR$12,102,ROW()),\"\"),\"\")","v":""},{"$f":"IF(Table_PI[[#This Row],[Input 3]]<>\"\",Table_PI[[#This Row],[Input 3]],\"\")","v":""},null,{"$f":"IFERROR(IF(AND(MeasureCalc(Table_PI[[#This Row],[Hide:\nFormula Name]],Table_SummaryPI[[#This Row],[Quantity]],Table_PI[[#This Row],[List 1]],Table_PI[[#This Row],[List 2]],Table_PI[[#This Row],[List 3]],Table_PI[[#This Row],[Size]],Table_PI[[#This Row],[Input 1]],Table_PI[[#This Row],[Input 2]],Table_PI[[#This Row],[Input 3]],Table_PI[[#This Row],[Input 4]],'Customer Information'!$AR$12,103,ROW())<>0,MeasureCalc(Table_PI[[#This Row],[Hide:\nFormula Name]],Table_SummaryPI[[#This Row],[Quantity]],Table_PI[[#This Row],[List 1]],Table_PI[[#This Row],[List 2]],Table_PI[[#This Row],[List 3]],Table_PI[[#This Row],[Size]],Table_PI[[#This Row],[Input 1]],Table_PI[[#This Row],[Input 2]],Table_PI[[#This Row],[Input 3]],Table_PI[[#This Row],[Input 4]],'Customer Information'!$AR$12,103,ROW())<>\"No Rebate\"),MeasureCalc(Table_PI[[#This Row],[Hide:\nFormula Name]],Table_SummaryPI[[#This Row],[Quantity]],Table_PI[[#This Row],[List 1]],Table_PI[[#This Row],[List 2]],Table_PI[[#This Row],[List 3]],Table_PI[[#This Row],[Size]],Table_PI[[#This Row],[Input 1]],Table_PI[[#This Row],[Input 2]],Table_PI[[#This Row],[Input 3]],Table_PI[[#This Row],[Input 4]],'Customer Information'!$AR$12,103,ROW()),\"\"),\"\")","v":""},{"$f":"IF(Table_PI[[#This Row],[Input 4]]<>\"\",Table_PI[[#This Row],[Input 4]],\"\")","v":""},{"$f":"IF(Table_PI[[#This Row],[Quantity]]=\"\",\"\",Table_PI[[#This Row],[Quantity]])","v":""},{"$f":"IF(Table_PI[[#This Row],[Notes]]=\"\",\"\",Table_PI[[#This Row],[Notes]])","v":""},{"$f":"IF(OR(Table_PI[[#This Row],[Hide:\nBaseline kWh]]=\"\",Table_PI[[#This Row],[Hide:\nBaseline kWh]]=0),\"\",Table_PI[[#This Row],[Hide:\nBaseline kWh]])","v":""},{"$f":"IF(OR(Table_PI[[#This Row],[Hide:\nBaseline kW]]=\"\",Table_PI[[#This Row],[Hide:\nBaseline kW]]=0),\"\",Table_PI[[#This Row],[Hide:\nBaseline kW]])","v":""},{"$f":"IF(OR(Table_PI[[#This Row],[Hide:\nProposed kWh]]=\"\",Table_PI[[#This Row],[Hide:\nProposed kWh]]=0),\"\",Table_PI[[#This Row],[Hide:\nProposed kWh]])","v":""},{"$f":"IF(OR(Table_PI[[#This Row],[Hide:\nProposed kW]]=\"\",Table_PI[[#This Row],[Hide:\nProposed kW]]=0),\"\",Table_PI[[#This Row],[Hide:\nProposed kW]])","v":""},{"$f":"IF(OR(Table_PI[[#This Row],[Rebate]]=\"\",Table_PI[[#This Row],[Rebate]]=0),\"\",Table_PI[[#This Row],[Rebate]])","v":""},{"$f":"IF(OR(Table_PI[[#This Row],[Hide:\nIncremental Cost]]=\"\",Table_PI[[#This Row],[Hide:\nIncremental Cost]]=0),\"\",Table_PI[[#This Row],[Hide:\nIncremental Cost]])","v":""},{"$f":"IFERROR(IF(Table_SummaryPI[[#This Row],[kWhSavings]]=\"\",\"\",ROUND(Table_SummaryPI[[#This Row],[kWhSavings]]/$AG$401*'Customer Information'!$BC$17,2)),0)","v":""},{"$f":"IF(OR(Table_PI[[#This Row],[Annual kWh]]=\"\",Table_PI[[#This Row],[Annual kWh]]=0),\"\",Table_PI[[#This Row],[Annual kWh]])","v":""},{"$f":"IF(OR(Table_PI[[#This Row],[Peak kW]]=\"\",Table_PI[[#This Row],[Peak kW]]=0),\"\",Table_PI[[#This Row],[Peak kW]])","v":""},{"$f":"IFERROR(IF(Table_SummaryPI[[#This Row],[kWhSavings]]=\"\",\"\",$AU$9*Table_SummaryPI[[#This Row],[kWhSavings]]),0)","v":""},{"$f":"IFERROR(IF(Table_SummaryPI[[#This Row],[kWhSavings]]=\"\",\"\",$AU$14*Table_SummaryPI[[#This Row],[kWhSavings]]),0)","v":""},{"$f":"IFERROR(IF(Table_SummaryPI[[#This Row],[kWhSavings]]=\"\",\"\",$AU$18*Table_SummaryPI[[#This Row],[kWhSavings]]),0)","v":""},{"$f":"IFERROR(IF(Table_SummaryPI[[#This Row],[kWhSavings]]=\"\",\"\",$AU$22*Table_SummaryPI[[#This Row],[kWhSavings]]),0)","v":""},{"$f":"IFERROR(IF(MeasureCalc(Table_PI[[#This Row],[Hide:\nFormula Name]],Table_SummaryPI[[#This Row],[Quantity]],Table_PI[[#This Row],[List 1]],Table_PI[[#This Row],[List 2]],Table_PI[[#This Row],[List 3]],Table_PI[[#This Row],[Size]],Table_PI[[#This Row],[Input 1]],Table_PI[[#This Row],[Input 2]],Table_PI[[#This Row],[Input 3]],Table_PI[[#This Row],[Input 4]],'Customer Information'!$AR$12,200,ROW())<>\"No Rebate\",MeasureCalc(Table_PI[[#This Row],[Hide:\nFormula Name]],Table_SummaryPI[[#This Row],[Quantity]],Table_PI[[#This Row],[List 1]],Table_PI[[#This Row],[List 2]],Table_PI[[#This Row],[List 3]],Table_PI[[#This Row],[Size]],Table_PI[[#This Row],[Input 1]],Table_PI[[#This Row],[Input 2]],Table_PI[[#This Row],[Input 3]],Table_PI[[#This Row],[Input 4]],'Customer Information'!$AR$12,200,ROW()),\"\"),\"\")","v":""},{"$f":"IFERROR(IF(MeasureCalc(Table_PI[[#This Row],[Hide:\nFormula Name]],Table_SummaryPI[[#This Row],[Quantity]],Table_PI[[#This Row],[List 1]],Table_PI[[#This Row],[List 2]],Table_PI[[#This Row],[List 3]],Table_PI[[#This Row],[Size]],Table_PI[[#This Row],[Input 1]],Table_PI[[#This Row],[Input 2]],Table_PI[[#This Row],[Input 3]],Table_PI[[#This Row],[Input 4]],'Customer Information'!$AR$12,201,ROW())<>\"No Rebate\",MeasureCalc(Table_PI[[#This Row],[Hide:\nFormula Name]],Table_SummaryPI[[#This Row],[Quantity]],Table_PI[[#This Row],[List 1]],Table_PI[[#This Row],[List 2]],Table_PI[[#This Row],[List 3]],Table_PI[[#This Row],[Size]],Table_PI[[#This Row],[Input 1]],Table_PI[[#This Row],[Input 2]],Table_PI[[#This Row],[Input 3]],Table_PI[[#This Row],[Input 4]],'Customer Information'!$AR$12,201,ROW()),\"\"),\"\")","v":""}]
[{"$f":"Table_PI[[#This Row],[Line No.]]","v":""},{"$f":"IF(Table_SummaryPI[[#This Row],[MeassureCategory]]<>\"\",CONCATENATE(Table_SummaryPI[[#This Row],[MeassureCategory]],  \" - \", Table_SummaryPI[[#This Row],[ProposedMeasureCategory]],  \" - \", TEXT(Table_SummaryPI[[#This Row],[Size]],\"#,##0.00\"),\" \",Table_SummaryPI[[#This Row],[SizeUnit]]),\"\")","v":""},{"$f":"SUBSTITUTE(Table_PI[[#This Row],[Measure]],\"     \",\"\",1)","v":""},{"$f":"IF(Table_PI[[#This Row],[List 1]]<>\"\",Table_PI[[#This Row],[List 1]],\"\")","v":""},{"$f":"IF(Table_PI[[#This Row],[List 2]]<>\"\",Table_PI[[#This Row],[List 2]],\"\")","v":""},{"$f":"IF(Table_PI[[#This Row],[List 3]]<>\"\",Table_PI[[#This Row],[List 3]],\"\")","v":""},{"$f":"IF(Table_PI[[#This Row],[Manufacturer]]=\"\",\"\",Table_PI[[#This Row],[Manufacturer]])","v":""},{"$f":"IF(Table_PI[[#This Row],[Model Number]]=\"\",\"\",Table_PI[[#This Row],[Model Number]])","v":""},{"$f":"IF(Table_PI[[#This Row],[Serial Number(s)]]=\"\",\"\",Table_PI[[#This Row],[Serial Number(s)]])","v":""},null,{"$f":"IF(Table_PI[[#This Row],[Size]]=\"\",\"\",Table_PI[[#This Row],[Size]])","v":""},null,{"$f":"IFERROR(IF(AND(MeasureCalc(Table_PI[[#This Row],[Hide:\nFormula Name]],Table_SummaryPI[[#This Row],[Quantity]],Table_PI[[#This Row],[List 1]],Table_PI[[#This Row],[List 2]],Table_PI[[#This Row],[List 3]],Table_PI[[#This Row],[Size]],Table_PI[[#This Row],[Input 1]],Table_PI[[#This Row],[Input 2]],Table_PI[[#This Row],[Input 3]],Table_PI[[#This Row],[Input 4]],'Customer Information'!$AR$12,100,ROW())<>0,MeasureCalc(Table_PI[[#This Row],[Hide:\nFormula Name]],Table_SummaryPI[[#This Row],[Quantity]],Table_PI[[#This Row],[List 1]],Table_PI[[#This Row],[List 2]],Table_PI[[#This Row],[List 3]],Table_PI[[#This Row],[Size]],Table_PI[[#This Row],[Input 1]],Table_PI[[#This Row],[Input 2]],Table_PI[[#This Row],[Input 3]],Table_PI[[#This Row],[Input 4]],'Customer Information'!$AR$12,100,ROW())<>\"No Rebate\"),MeasureCalc(Table_PI[[#This Row],[Hide:\nFormula Name]],Table_SummaryPI[[#This Row],[Quantity]],Table_PI[[#This Row],[List 1]],Table_PI[[#This Row],[List 2]],Table_PI[[#This Row],[List 3]],Table_PI[[#This Row],[Size]],Table_PI[[#This Row],[Input 1]],Table_PI[[#This Row],[Input 2]],Table_PI[[#This Row],[Input 3]],Table_PI[[#This Row],[Input 4]],'Customer Information'!$AR$12,100,ROW()),\"\"),\"\")","v":""},{"$f":"IF(Table_PI[[#This Row],[Input 1]]<>\"\",Table_PI[[#This Row],[Input 1]],\"\")","v":""},null,{"$f":"IFERROR(IF(AND(MeasureCalc(Table_PI[[#This Row],[Hide:\nFormula Name]],Table_SummaryPI[[#This Row],[Quantity]],Table_PI[[#This Row],[List 1]],Table_PI[[#This Row],[List 2]],Table_PI[[#This Row],[List 3]],Table_PI[[#This Row],[Size]],Table_PI[[#This Row],[Input 1]],Table_PI[[#This Row],[Input 2]],Table_PI[[#This Row],[Input 3]],Table_PI[[#This Row],[Input 4]],'Customer Information'!$AR$12,101,ROW())<>0,MeasureCalc(Table_PI[[#This Row],[Hide:\nFormula Name]],Table_SummaryPI[[#This Row],[Quantity]],Table_PI[[#This Row],[List 1]],Table_PI[[#This Row],[List 2]],Table_PI[[#This Row],[List 3]],Table_PI[[#This Row],[Size]],Table_PI[[#This Row],[Input 1]],Table_PI[[#This Row],[Input 2]],Table_PI[[#This Row],[Input 3]],Table_PI[[#This Row],[Input 4]],'Customer Information'!$AR$12,101,ROW())<>\"No Rebate\"),MeasureCalc(Table_PI[[#This Row],[Hide:\nFormula Name]],Table_SummaryPI[[#This Row],[Quantity]],Table_PI[[#This Row],[List 1]],Table_PI[[#This Row],[List 2]],Table_PI[[#This Row],[List 3]],Table_PI[[#This Row],[Size]],Table_PI[[#This Row],[Input 1]],Table_PI[[#This Row],[Input 2]],Table_PI[[#This Row],[Input 3]],Table_PI[[#This Row],[Input 4]],'Customer Information'!$AR$12,101,ROW()),\"\"),\"\")","v":""},{"$f":"IF(Table_PI[[#This Row],[Input 2]]<>\"\",Table_PI[[#This Row],[Input 2]],\"\")","v":""},null,{"$f":"IFERROR(IF(AND(MeasureCalc(Table_PI[[#This Row],[Hide:\nFormula Name]],Table_SummaryPI[[#This Row],[Quantity]],Table_PI[[#This Row],[List 1]],Table_PI[[#This Row],[List 2]],Table_PI[[#This Row],[List 3]],Table_PI[[#This Row],[Size]],Table_PI[[#This Row],[Input 1]],Table_PI[[#This Row],[Input 2]],Table_PI[[#This Row],[Input 3]],Table_PI[[#This Row],[Input 4]],'Customer Information'!$AR$12,102,ROW())<>0,MeasureCalc(Table_PI[[#This Row],[Hide:\nFormula Name]],Table_SummaryPI[[#This Row],[Quantity]],Table_PI[[#This Row],[List 1]],Table_PI[[#This Row],[List 2]],Table_PI[[#This Row],[List 3]],Table_PI[[#This Row],[Size]],Table_PI[[#This Row],[Input 1]],Table_PI[[#This Row],[Input 2]],Table_PI[[#This Row],[Input 3]],Table_PI[[#This Row],[Input 4]],'Customer Information'!$AR$12,102,ROW())<>\"No Rebate\"),MeasureCalc(Table_PI[[#This Row],[Hide:\nFormula Name]],Table_SummaryPI[[#This Row],[Quantity]],Table_PI[[#This Row],[List 1]],Table_PI[[#This Row],[List 2]],Table_PI[[#This Row],[List 3]],Table_PI[[#This Row],[Size]],Table_PI[[#This Row],[Input 1]],Table_PI[[#This Row],[Input 2]],Table_PI[[#This Row],[Input 3]],Table_PI[[#This Row],[Input 4]],'Customer Information'!$AR$12,102,ROW()),\"\"),\"\")","v":""},{"$f":"IF(Table_PI[[#This Row],[Input 3]]<>\"\",Table_PI[[#This Row],[Input 3]],\"\")","v":""},null,{"$f":"IFERROR(IF(AND(MeasureCalc(Table_PI[[#This Row],[Hide:\nFormula Name]],Table_SummaryPI[[#This Row],[Quantity]],Table_PI[[#This Row],[List 1]],Table_PI[[#This Row],[List 2]],Table_PI[[#This Row],[List 3]],Table_PI[[#This Row],[Size]],Table_PI[[#This Row],[Input 1]],Table_PI[[#This Row],[Input 2]],Table_PI[[#This Row],[Input 3]],Table_PI[[#This Row],[Input 4]],'Customer Information'!$AR$12,103,ROW())<>0,MeasureCalc(Table_PI[[#This Row],[Hide:\nFormula Name]],Table_SummaryPI[[#This Row],[Quantity]],Table_PI[[#This Row],[List 1]],Table_PI[[#This Row],[List 2]],Table_PI[[#This Row],[List 3]],Table_PI[[#This Row],[Size]],Table_PI[[#This Row],[Input 1]],Table_PI[[#This Row],[Input 2]],Table_PI[[#This Row],[Input 3]],Table_PI[[#This Row],[Input 4]],'Customer Information'!$AR$12,103,ROW())<>\"No Rebate\"),MeasureCalc(Table_PI[[#This Row],[Hide:\nFormula Name]],Table_SummaryPI[[#This Row],[Quantity]],Table_PI[[#This Row],[List 1]],Table_PI[[#This Row],[List 2]],Table_PI[[#This Row],[List 3]],Table_PI[[#This Row],[Size]],Table_PI[[#This Row],[Input 1]],Table_PI[[#This Row],[Input 2]],Table_PI[[#This Row],[Input 3]],Table_PI[[#This Row],[Input 4]],'Customer Information'!$AR$12,103,ROW()),\"\"),\"\")","v":""},{"$f":"IF(Table_PI[[#This Row],[Input 4]]<>\"\",Table_PI[[#This Row],[Input 4]],\"\")","v":""},{"$f":"IF(Table_PI[[#This Row],[Quantity]]=\"\",\"\",Table_PI[[#This Row],[Quantity]])","v":""},{"$f":"IF(Table_PI[[#This Row],[Notes]]=\"\",\"\",Table_PI[[#This Row],[Notes]])","v":""},{"$f":"IF(OR(Table_PI[[#This Row],[Hide:\nBaseline kWh]]=\"\",Table_PI[[#This Row],[Hide:\nBaseline kWh]]=0),\"\",Table_PI[[#This Row],[Hide:\nBaseline kWh]])","v":""},{"$f":"IF(OR(Table_PI[[#This Row],[Hide:\nBaseline kW]]=\"\",Table_PI[[#This Row],[Hide:\nBaseline kW]]=0),\"\",Table_PI[[#This Row],[Hide:\nBaseline kW]])","v":""},{"$f":"IF(OR(Table_PI[[#This Row],[Hide:\nProposed kWh]]=\"\",Table_PI[[#This Row],[Hide:\nProposed kWh]]=0),\"\",Table_PI[[#This Row],[Hide:\nProposed kWh]])","v":""},{"$f":"IF(OR(Table_PI[[#This Row],[Hide:\nProposed kW]]=\"\",Table_PI[[#This Row],[Hide:\nProposed kW]]=0),\"\",Table_PI[[#This Row],[Hide:\nProposed kW]])","v":""},{"$f":"IF(OR(Table_PI[[#This Row],[Rebate]]=\"\",Table_PI[[#This Row],[Rebate]]=0),\"\",Table_PI[[#This Row],[Rebate]])","v":""},{"$f":"IF(OR(Table_PI[[#This Row],[Hide:\nIncremental Cost]]=\"\",Table_PI[[#This Row],[Hide:\nIncremental Cost]]=0),\"\",Table_PI[[#This Row],[Hide:\nIncremental Cost]])","v":""},{"$f":"IFERROR(IF(Table_SummaryPI[[#This Row],[kWhSavings]]=\"\",\"\",ROUND(Table_SummaryPI[[#This Row],[kWhSavings]]/$AG$401*'Customer Information'!$BC$17,2)),0)","v":""},{"$f":"IF(OR(Table_PI[[#This Row],[Annual kWh]]=\"\",Table_PI[[#This Row],[Annual kWh]]=0),\"\",Table_PI[[#This Row],[Annual kWh]])","v":""},{"$f":"IF(OR(Table_PI[[#This Row],[Peak kW]]=\"\",Table_PI[[#This Row],[Peak kW]]=0),\"\",Table_PI[[#This Row],[Peak kW]])","v":""},{"$f":"IFERROR(IF(Table_SummaryPI[[#This Row],[kWhSavings]]=\"\",\"\",$AU$9*Table_SummaryPI[[#This Row],[kWhSavings]]),0)","v":""},{"$f":"IFERROR(IF(Table_SummaryPI[[#This Row],[kWhSavings]]=\"\",\"\",$AU$14*Table_SummaryPI[[#This Row],[kWhSavings]]),0)","v":""},{"$f":"IFERROR(IF(Table_SummaryPI[[#This Row],[kWhSavings]]=\"\",\"\",$AU$18*Table_SummaryPI[[#This Row],[kWhSavings]]),0)","v":""},{"$f":"IFERROR(IF(Table_SummaryPI[[#This Row],[kWhSavings]]=\"\",\"\",$AU$22*Table_SummaryPI[[#This Row],[kWhSavings]]),0)","v":""},{"$f":"IFERROR(IF(MeasureCalc(Table_PI[[#This Row],[Hide:\nFormula Name]],Table_SummaryPI[[#This Row],[Quantity]],Table_PI[[#This Row],[List 1]],Table_PI[[#This Row],[List 2]],Table_PI[[#This Row],[List 3]],Table_PI[[#This Row],[Size]],Table_PI[[#This Row],[Input 1]],Table_PI[[#This Row],[Input 2]],Table_PI[[#This Row],[Input 3]],Table_PI[[#This Row],[Input 4]],'Customer Information'!$AR$12,200,ROW())<>\"No Rebate\",MeasureCalc(Table_PI[[#This Row],[Hide:\nFormula Name]],Table_SummaryPI[[#This Row],[Quantity]],Table_PI[[#This Row],[List 1]],Table_PI[[#This Row],[List 2]],Table_PI[[#This Row],[List 3]],Table_PI[[#This Row],[Size]],Table_PI[[#This Row],[Input 1]],Table_PI[[#This Row],[Input 2]],Table_PI[[#This Row],[Input 3]],Table_PI[[#This Row],[Input 4]],'Customer Information'!$AR$12,200,ROW()),\"\"),\"\")","v":""},{"$f":"IFERROR(IF(MeasureCalc(Table_PI[[#This Row],[Hide:\nFormula Name]],Table_SummaryPI[[#This Row],[Quantity]],Table_PI[[#This Row],[List 1]],Table_PI[[#This Row],[List 2]],Table_PI[[#This Row],[List 3]],Table_PI[[#This Row],[Size]],Table_PI[[#This Row],[Input 1]],Table_PI[[#This Row],[Input 2]],Table_PI[[#This Row],[Input 3]],Table_PI[[#This Row],[Input 4]],'Customer Information'!$AR$12,201,ROW())<>\"No Rebate\",MeasureCalc(Table_PI[[#This Row],[Hide:\nFormula Name]],Table_SummaryPI[[#This Row],[Quantity]],Table_PI[[#This Row],[List 1]],Table_PI[[#This Row],[List 2]],Table_PI[[#This Row],[List 3]],Table_PI[[#This Row],[Size]],Table_PI[[#This Row],[Input 1]],Table_PI[[#This Row],[Input 2]],Table_PI[[#This Row],[Input 3]],Table_PI[[#This Row],[Input 4]],'Customer Information'!$AR$12,201,ROW()),\"\"),\"\")","v":""}]
[{"$f":"Table_PI[[#This Row],[Line No.]]","v":""},{"$f":"IF(Table_SummaryPI[[#This Row],[MeassureCategory]]<>\"\",CONCATENATE(Table_SummaryPI[[#This Row],[MeassureCategory]],  \" - \", Table_SummaryPI[[#This Row],[ProposedMeasureCategory]],  \" - \", TEXT(Table_SummaryPI[[#This Row],[Size]],\"#,##0.00\"),\" \",Table_SummaryPI[[#This Row],[SizeUnit]]),\"\")","v":""},{"$f":"SUBSTITUTE(Table_PI[[#This Row],[Measure]],\"     \",\"\",1)","v":""},{"$f":"IF(Table_PI[[#This Row],[List 1]]<>\"\",Table_PI[[#This Row],[List 1]],\"\")","v":""},{"$f":"IF(Table_PI[[#This Row],[List 2]]<>\"\",Table_PI[[#This Row],[List 2]],\"\")","v":""},{"$f":"IF(Table_PI[[#This Row],[List 3]]<>\"\",Table_PI[[#This Row],[List 3]],\"\")","v":""},{"$f":"IF(Table_PI[[#This Row],[Manufacturer]]=\"\",\"\",Table_PI[[#This Row],[Manufacturer]])","v":""},{"$f":"IF(Table_PI[[#This Row],[Model Number]]=\"\",\"\",Table_PI[[#This Row],[Model Number]])","v":""},{"$f":"IF(Table_PI[[#This Row],[Serial Number(s)]]=\"\",\"\",Table_PI[[#This Row],[Serial Number(s)]])","v":""},null,{"$f":"IF(Table_PI[[#This Row],[Size]]=\"\",\"\",Table_PI[[#This Row],[Size]])","v":""},null,{"$f":"IFERROR(IF(AND(MeasureCalc(Table_PI[[#This Row],[Hide:\nFormula Name]],Table_SummaryPI[[#This Row],[Quantity]],Table_PI[[#This Row],[List 1]],Table_PI[[#This Row],[List 2]],Table_PI[[#This Row],[List 3]],Table_PI[[#This Row],[Size]],Table_PI[[#This Row],[Input 1]],Table_PI[[#This Row],[Input 2]],Table_PI[[#This Row],[Input 3]],Table_PI[[#This Row],[Input 4]],'Customer Information'!$AR$12,100,ROW())<>0,MeasureCalc(Table_PI[[#This Row],[Hide:\nFormula Name]],Table_SummaryPI[[#This Row],[Quantity]],Table_PI[[#This Row],[List 1]],Table_PI[[#This Row],[List 2]],Table_PI[[#This Row],[List 3]],Table_PI[[#This Row],[Size]],Table_PI[[#This Row],[Input 1]],Table_PI[[#This Row],[Input 2]],Table_PI[[#This Row],[Input 3]],Table_PI[[#This Row],[Input 4]],'Customer Information'!$AR$12,100,ROW())<>\"No Rebate\"),MeasureCalc(Table_PI[[#This Row],[Hide:\nFormula Name]],Table_SummaryPI[[#This Row],[Quantity]],Table_PI[[#This Row],[List 1]],Table_PI[[#This Row],[List 2]],Table_PI[[#This Row],[List 3]],Table_PI[[#This Row],[Size]],Table_PI[[#This Row],[Input 1]],Table_PI[[#This Row],[Input 2]],Table_PI[[#This Row],[Input 3]],Table_PI[[#This Row],[Input 4]],'Customer Information'!$AR$12,100,ROW()),\"\"),\"\")","v":""},{"$f":"IF(Table_PI[[#This Row],[Input 1]]<>\"\",Table_PI[[#This Row],[Input 1]],\"\")","v":""},null,{"$f":"IFERROR(IF(AND(MeasureCalc(Table_PI[[#This Row],[Hide:\nFormula Name]],Table_SummaryPI[[#This Row],[Quantity]],Table_PI[[#This Row],[List 1]],Table_PI[[#This Row],[List 2]],Table_PI[[#This Row],[List 3]],Table_PI[[#This Row],[Size]],Table_PI[[#This Row],[Input 1]],Table_PI[[#This Row],[Input 2]],Table_PI[[#This Row],[Input 3]],Table_PI[[#This Row],[Input 4]],'Customer Information'!$AR$12,101,ROW())<>0,MeasureCalc(Table_PI[[#This Row],[Hide:\nFormula Name]],Table_SummaryPI[[#This Row],[Quantity]],Table_PI[[#This Row],[List 1]],Table_PI[[#This Row],[List 2]],Table_PI[[#This Row],[List 3]],Table_PI[[#This Row],[Size]],Table_PI[[#This Row],[Input 1]],Table_PI[[#This Row],[Input 2]],Table_PI[[#This Row],[Input 3]],Table_PI[[#This Row],[Input 4]],'Customer Information'!$AR$12,101,ROW())<>\"No Rebate\"),MeasureCalc(Table_PI[[#This Row],[Hide:\nFormula Name]],Table_SummaryPI[[#This Row],[Quantity]],Table_PI[[#This Row],[List 1]],Table_PI[[#This Row],[List 2]],Table_PI[[#This Row],[List 3]],Table_PI[[#This Row],[Size]],Table_PI[[#This Row],[Input 1]],Table_PI[[#This Row],[Input 2]],Table_PI[[#This Row],[Input 3]],Table_PI[[#This Row],[Input 4]],'Customer Information'!$AR$12,101,ROW()),\"\"),\"\")","v":""},{"$f":"IF(Table_PI[[#This Row],[Input 2]]<>\"\",Table_PI[[#This Row],[Input 2]],\"\")","v":""},null,{"$f":"IFERROR(IF(AND(MeasureCalc(Table_PI[[#This Row],[Hide:\nFormula Name]],Table_SummaryPI[[#This Row],[Quantity]],Table_PI[[#This Row],[List 1]],Table_PI[[#This Row],[List 2]],Table_PI[[#This Row],[List 3]],Table_PI[[#This Row],[Size]],Table_PI[[#This Row],[Input 1]],Table_PI[[#This Row],[Input 2]],Table_PI[[#This Row],[Input 3]],Table_PI[[#This Row],[Input 4]],'Customer Information'!$AR$12,102,ROW())<>0,MeasureCalc(Table_PI[[#This Row],[Hide:\nFormula Name]],Table_SummaryPI[[#This Row],[Quantity]],Table_PI[[#This Row],[List 1]],Table_PI[[#This Row],[List 2]],Table_PI[[#This Row],[List 3]],Table_PI[[#This Row],[Size]],Table_PI[[#This Row],[Input 1]],Table_PI[[#This Row],[Input 2]],Table_PI[[#This Row],[Input 3]],Table_PI[[#This Row],[Input 4]],'Customer Information'!$AR$12,102,ROW())<>\"No Rebate\"),MeasureCalc(Table_PI[[#This Row],[Hide:\nFormula Name]],Table_SummaryPI[[#This Row],[Quantity]],Table_PI[[#This Row],[List 1]],Table_PI[[#This Row],[List 2]],Table_PI[[#This Row],[List 3]],Table_PI[[#This Row],[Size]],Table_PI[[#This Row],[Input 1]],Table_PI[[#This Row],[Input 2]],Table_PI[[#This Row],[Input 3]],Table_PI[[#This Row],[Input 4]],'Customer Information'!$AR$12,102,ROW()),\"\"),\"\")","v":""},{"$f":"IF(Table_PI[[#This Row],[Input 3]]<>\"\",Table_PI[[#This Row],[Input 3]],\"\")","v":""},null,{"$f":"IFERROR(IF(AND(MeasureCalc(Table_PI[[#This Row],[Hide:\nFormula Name]],Table_SummaryPI[[#This Row],[Quantity]],Table_PI[[#This Row],[List 1]],Table_PI[[#This Row],[List 2]],Table_PI[[#This Row],[List 3]],Table_PI[[#This Row],[Size]],Table_PI[[#This Row],[Input 1]],Table_PI[[#This Row],[Input 2]],Table_PI[[#This Row],[Input 3]],Table_PI[[#This Row],[Input 4]],'Customer Information'!$AR$12,103,ROW())<>0,MeasureCalc(Table_PI[[#This Row],[Hide:\nFormula Name]],Table_SummaryPI[[#This Row],[Quantity]],Table_PI[[#This Row],[List 1]],Table_PI[[#This Row],[List 2]],Table_PI[[#This Row],[List 3]],Table_PI[[#This Row],[Size]],Table_PI[[#This Row],[Input 1]],Table_PI[[#This Row],[Input 2]],Table_PI[[#This Row],[Input 3]],Table_PI[[#This Row],[Input 4]],'Customer Information'!$AR$12,103,ROW())<>\"No Rebate\"),MeasureCalc(Table_PI[[#This Row],[Hide:\nFormula Name]],Table_SummaryPI[[#This Row],[Quantity]],Table_PI[[#This Row],[List 1]],Table_PI[[#This Row],[List 2]],Table_PI[[#This Row],[List 3]],Table_PI[[#This Row],[Size]],Table_PI[[#This Row],[Input 1]],Table_PI[[#This Row],[Input 2]],Table_PI[[#This Row],[Input 3]],Table_PI[[#This Row],[Input 4]],'Customer Information'!$AR$12,103,ROW()),\"\"),\"\")","v":""},{"$f":"IF(Table_PI[[#This Row],[Input 4]]<>\"\",Table_PI[[#This Row],[Input 4]],\"\")","v":""},{"$f":"IF(Table_PI[[#This Row],[Quantity]]=\"\",\"\",Table_PI[[#This Row],[Quantity]])","v":""},{"$f":"IF(Table_PI[[#This Row],[Notes]]=\"\",\"\",Table_PI[[#This Row],[Notes]])","v":""},{"$f":"IF(OR(Table_PI[[#This Row],[Hide:\nBaseline kWh]]=\"\",Table_PI[[#This Row],[Hide:\nBaseline kWh]]=0),\"\",Table_PI[[#This Row],[Hide:\nBaseline kWh]])","v":""},{"$f":"IF(OR(Table_PI[[#This Row],[Hide:\nBaseline kW]]=\"\",Table_PI[[#This Row],[Hide:\nBaseline kW]]=0),\"\",Table_PI[[#This Row],[Hide:\nBaseline kW]])","v":""},{"$f":"IF(OR(Table_PI[[#This Row],[Hide:\nProposed kWh]]=\"\",Table_PI[[#This Row],[Hide:\nProposed kWh]]=0),\"\",Table_PI[[#This Row],[Hide:\nProposed kWh]])","v":""},{"$f":"IF(OR(Table_PI[[#This Row],[Hide:\nProposed kW]]=\"\",Table_PI[[#This Row],[Hide:\nProposed kW]]=0),\"\",Table_PI[[#This Row],[Hide:\nProposed kW]])","v":""},{"$f":"IF(OR(Table_PI[[#This Row],[Rebate]]=\"\",Table_PI[[#This Row],[Rebate]]=0),\"\",Table_PI[[#This Row],[Rebate]])","v":""},{"$f":"IF(OR(Table_PI[[#This Row],[Hide:\nIncremental Cost]]=\"\",Table_PI[[#This Row],[Hide:\nIncremental Cost]]=0),\"\",Table_PI[[#This Row],[Hide:\nIncremental Cost]])","v":""},{"$f":"IFERROR(IF(Table_SummaryPI[[#This Row],[kWhSavings]]=\"\",\"\",ROUND(Table_SummaryPI[[#This Row],[kWhSavings]]/$AG$401*'Customer Information'!$BC$17,2)),0)","v":""},{"$f":"IF(OR(Table_PI[[#This Row],[Annual kWh]]=\"\",Table_PI[[#This Row],[Annual kWh]]=0),\"\",Table_PI[[#This Row],[Annual kWh]])","v":""},{"$f":"IF(OR(Table_PI[[#This Row],[Peak kW]]=\"\",Table_PI[[#This Row],[Peak kW]]=0),\"\",Table_PI[[#This Row],[Peak kW]])","v":""},{"$f":"IFERROR(IF(Table_SummaryPI[[#This Row],[kWhSavings]]=\"\",\"\",$AU$9*Table_SummaryPI[[#This Row],[kWhSavings]]),0)","v":""},{"$f":"IFERROR(IF(Table_SummaryPI[[#This Row],[kWhSavings]]=\"\",\"\",$AU$14*Table_SummaryPI[[#This Row],[kWhSavings]]),0)","v":""},{"$f":"IFERROR(IF(Table_SummaryPI[[#This Row],[kWhSavings]]=\"\",\"\",$AU$18*Table_SummaryPI[[#This Row],[kWhSavings]]),0)","v":""},{"$f":"IFERROR(IF(Table_SummaryPI[[#This Row],[kWhSavings]]=\"\",\"\",$AU$22*Table_SummaryPI[[#This Row],[kWhSavings]]),0)","v":""},{"$f":"IFERROR(IF(MeasureCalc(Table_PI[[#This Row],[Hide:\nFormula Name]],Table_SummaryPI[[#This Row],[Quantity]],Table_PI[[#This Row],[List 1]],Table_PI[[#This Row],[List 2]],Table_PI[[#This Row],[List 3]],Table_PI[[#This Row],[Size]],Table_PI[[#This Row],[Input 1]],Table_PI[[#This Row],[Input 2]],Table_PI[[#This Row],[Input 3]],Table_PI[[#This Row],[Input 4]],'Customer Information'!$AR$12,200,ROW())<>\"No Rebate\",MeasureCalc(Table_PI[[#This Row],[Hide:\nFormula Name]],Table_SummaryPI[[#This Row],[Quantity]],Table_PI[[#This Row],[List 1]],Table_PI[[#This Row],[List 2]],Table_PI[[#This Row],[List 3]],Table_PI[[#This Row],[Size]],Table_PI[[#This Row],[Input 1]],Table_PI[[#This Row],[Input 2]],Table_PI[[#This Row],[Input 3]],Table_PI[[#This Row],[Input 4]],'Customer Information'!$AR$12,200,ROW()),\"\"),\"\")","v":""},{"$f":"IFERROR(IF(MeasureCalc(Table_PI[[#This Row],[Hide:\nFormula Name]],Table_SummaryPI[[#This Row],[Quantity]],Table_PI[[#This Row],[List 1]],Table_PI[[#This Row],[List 2]],Table_PI[[#This Row],[List 3]],Table_PI[[#This Row],[Size]],Table_PI[[#This Row],[Input 1]],Table_PI[[#This Row],[Input 2]],Table_PI[[#This Row],[Input 3]],Table_PI[[#This Row],[Input 4]],'Customer Information'!$AR$12,201,ROW())<>\"No Rebate\",MeasureCalc(Table_PI[[#This Row],[Hide:\nFormula Name]],Table_SummaryPI[[#This Row],[Quantity]],Table_PI[[#This Row],[List 1]],Table_PI[[#This Row],[List 2]],Table_PI[[#This Row],[List 3]],Table_PI[[#This Row],[Size]],Table_PI[[#This Row],[Input 1]],Table_PI[[#This Row],[Input 2]],Table_PI[[#This Row],[Input 3]],Table_PI[[#This Row],[Input 4]],'Customer Information'!$AR$12,201,ROW()),\"\"),\"\")","v":""}]
[{"$f":"Table_PI[[#This Row],[Line No.]]","v":""},{"$f":"IF(Table_SummaryPI[[#This Row],[MeassureCategory]]<>\"\",CONCATENATE(Table_SummaryPI[[#This Row],[MeassureCategory]],  \" - \", Table_SummaryPI[[#This Row],[ProposedMeasureCategory]],  \" - \", TEXT(Table_SummaryPI[[#This Row],[Size]],\"#,##0.00\"),\" \",Table_SummaryPI[[#This Row],[SizeUnit]]),\"\")","v":""},{"$f":"SUBSTITUTE(Table_PI[[#This Row],[Measure]],\"     \",\"\",1)","v":""},{"$f":"IF(Table_PI[[#This Row],[List 1]]<>\"\",Table_PI[[#This Row],[List 1]],\"\")","v":""},{"$f":"IF(Table_PI[[#This Row],[List 2]]<>\"\",Table_PI[[#This Row],[List 2]],\"\")","v":""},{"$f":"IF(Table_PI[[#This Row],[List 3]]<>\"\",Table_PI[[#This Row],[List 3]],\"\")","v":""},{"$f":"IF(Table_PI[[#This Row],[Manufacturer]]=\"\",\"\",Table_PI[[#This Row],[Manufacturer]])","v":""},{"$f":"IF(Table_PI[[#This Row],[Model Number]]=\"\",\"\",Table_PI[[#This Row],[Model Number]])","v":""},{"$f":"IF(Table_PI[[#This Row],[Serial Number(s)]]=\"\",\"\",Table_PI[[#This Row],[Serial Number(s)]])","v":""},null,{"$f":"IF(Table_PI[[#This Row],[Size]]=\"\",\"\",Table_PI[[#This Row],[Size]])","v":""},null,{"$f":"IFERROR(IF(AND(MeasureCalc(Table_PI[[#This Row],[Hide:\nFormula Name]],Table_SummaryPI[[#This Row],[Quantity]],Table_PI[[#This Row],[List 1]],Table_PI[[#This Row],[List 2]],Table_PI[[#This Row],[List 3]],Table_PI[[#This Row],[Size]],Table_PI[[#This Row],[Input 1]],Table_PI[[#This Row],[Input 2]],Table_PI[[#This Row],[Input 3]],Table_PI[[#This Row],[Input 4]],'Customer Information'!$AR$12,100,ROW())<>0,MeasureCalc(Table_PI[[#This Row],[Hide:\nFormula Name]],Table_SummaryPI[[#This Row],[Quantity]],Table_PI[[#This Row],[List 1]],Table_PI[[#This Row],[List 2]],Table_PI[[#This Row],[List 3]],Table_PI[[#This Row],[Size]],Table_PI[[#This Row],[Input 1]],Table_PI[[#This Row],[Input 2]],Table_PI[[#This Row],[Input 3]],Table_PI[[#This Row],[Input 4]],'Customer Information'!$AR$12,100,ROW())<>\"No Rebate\"),MeasureCalc(Table_PI[[#This Row],[Hide:\nFormula Name]],Table_SummaryPI[[#This Row],[Quantity]],Table_PI[[#This Row],[List 1]],Table_PI[[#This Row],[List 2]],Table_PI[[#This Row],[List 3]],Table_PI[[#This Row],[Size]],Table_PI[[#This Row],[Input 1]],Table_PI[[#This Row],[Input 2]],Table_PI[[#This Row],[Input 3]],Table_PI[[#This Row],[Input 4]],'Customer Information'!$AR$12,100,ROW()),\"\"),\"\")","v":""},{"$f":"IF(Table_PI[[#This Row],[Input 1]]<>\"\",Table_PI[[#This Row],[Input 1]],\"\")","v":""},null,{"$f":"IFERROR(IF(AND(MeasureCalc(Table_PI[[#This Row],[Hide:\nFormula Name]],Table_SummaryPI[[#This Row],[Quantity]],Table_PI[[#This Row],[List 1]],Table_PI[[#This Row],[List 2]],Table_PI[[#This Row],[List 3]],Table_PI[[#This Row],[Size]],Table_PI[[#This Row],[Input 1]],Table_PI[[#This Row],[Input 2]],Table_PI[[#This Row],[Input 3]],Table_PI[[#This Row],[Input 4]],'Customer Information'!$AR$12,101,ROW())<>0,MeasureCalc(Table_PI[[#This Row],[Hide:\nFormula Name]],Table_SummaryPI[[#This Row],[Quantity]],Table_PI[[#This Row],[List 1]],Table_PI[[#This Row],[List 2]],Table_PI[[#This Row],[List 3]],Table_PI[[#This Row],[Size]],Table_PI[[#This Row],[Input 1]],Table_PI[[#This Row],[Input 2]],Table_PI[[#This Row],[Input 3]],Table_PI[[#This Row],[Input 4]],'Customer Information'!$AR$12,101,ROW())<>\"No Rebate\"),MeasureCalc(Table_PI[[#This Row],[Hide:\nFormula Name]],Table_SummaryPI[[#This Row],[Quantity]],Table_PI[[#This Row],[List 1]],Table_PI[[#This Row],[List 2]],Table_PI[[#This Row],[List 3]],Table_PI[[#This Row],[Size]],Table_PI[[#This Row],[Input 1]],Table_PI[[#This Row],[Input 2]],Table_PI[[#This Row],[Input 3]],Table_PI[[#This Row],[Input 4]],'Customer Information'!$AR$12,101,ROW()),\"\"),\"\")","v":""},{"$f":"IF(Table_PI[[#This Row],[Input 2]]<>\"\",Table_PI[[#This Row],[Input 2]],\"\")","v":""},null,{"$f":"IFERROR(IF(AND(MeasureCalc(Table_PI[[#This Row],[Hide:\nFormula Name]],Table_SummaryPI[[#This Row],[Quantity]],Table_PI[[#This Row],[List 1]],Table_PI[[#This Row],[List 2]],Table_PI[[#This Row],[List 3]],Table_PI[[#This Row],[Size]],Table_PI[[#This Row],[Input 1]],Table_PI[[#This Row],[Input 2]],Table_PI[[#This Row],[Input 3]],Table_PI[[#This Row],[Input 4]],'Customer Information'!$AR$12,102,ROW())<>0,MeasureCalc(Table_PI[[#This Row],[Hide:\nFormula Name]],Table_SummaryPI[[#This Row],[Quantity]],Table_PI[[#This Row],[List 1]],Table_PI[[#This Row],[List 2]],Table_PI[[#This Row],[List 3]],Table_PI[[#This Row],[Size]],Table_PI[[#This Row],[Input 1]],Table_PI[[#This Row],[Input 2]],Table_PI[[#This Row],[Input 3]],Table_PI[[#This Row],[Input 4]],'Customer Information'!$AR$12,102,ROW())<>\"No Rebate\"),MeasureCalc(Table_PI[[#This Row],[Hide:\nFormula Name]],Table_SummaryPI[[#This Row],[Quantity]],Table_PI[[#This Row],[List 1]],Table_PI[[#This Row],[List 2]],Table_PI[[#This Row],[List 3]],Table_PI[[#This Row],[Size]],Table_PI[[#This Row],[Input 1]],Table_PI[[#This Row],[Input 2]],Table_PI[[#This Row],[Input 3]],Table_PI[[#This Row],[Input 4]],'Customer Information'!$AR$12,102,ROW()),\"\"),\"\")","v":""},{"$f":"IF(Table_PI[[#This Row],[Input 3]]<>\"\",Table_PI[[#This Row],[Input 3]],\"\")","v":""},null,{"$f":"IFERROR(IF(AND(MeasureCalc(Table_PI[[#This Row],[Hide:\nFormula Name]],Table_SummaryPI[[#This Row],[Quantity]],Table_PI[[#This Row],[List 1]],Table_PI[[#This Row],[List 2]],Table_PI[[#This Row],[List 3]],Table_PI[[#This Row],[Size]],Table_PI[[#This Row],[Input 1]],Table_PI[[#This Row],[Input 2]],Table_PI[[#This Row],[Input 3]],Table_PI[[#This Row],[Input 4]],'Customer Information'!$AR$12,103,ROW())<>0,MeasureCalc(Table_PI[[#This Row],[Hide:\nFormula Name]],Table_SummaryPI[[#This Row],[Quantity]],Table_PI[[#This Row],[List 1]],Table_PI[[#This Row],[List 2]],Table_PI[[#This Row],[List 3]],Table_PI[[#This Row],[Size]],Table_PI[[#This Row],[Input 1]],Table_PI[[#This Row],[Input 2]],Table_PI[[#This Row],[Input 3]],Table_PI[[#This Row],[Input 4]],'Customer Information'!$AR$12,103,ROW())<>\"No Rebate\"),MeasureCalc(Table_PI[[#This Row],[Hide:\nFormula Name]],Table_SummaryPI[[#This Row],[Quantity]],Table_PI[[#This Row],[List 1]],Table_PI[[#This Row],[List 2]],Table_PI[[#This Row],[List 3]],Table_PI[[#This Row],[Size]],Table_PI[[#This Row],[Input 1]],Table_PI[[#This Row],[Input 2]],Table_PI[[#This Row],[Input 3]],Table_PI[[#This Row],[Input 4]],'Customer Information'!$AR$12,103,ROW()),\"\"),\"\")","v":""},{"$f":"IF(Table_PI[[#This Row],[Input 4]]<>\"\",Table_PI[[#This Row],[Input 4]],\"\")","v":""},{"$f":"IF(Table_PI[[#This Row],[Quantity]]=\"\",\"\",Table_PI[[#This Row],[Quantity]])","v":""},{"$f":"IF(Table_PI[[#This Row],[Notes]]=\"\",\"\",Table_PI[[#This Row],[Notes]])","v":""},{"$f":"IF(OR(Table_PI[[#This Row],[Hide:\nBaseline kWh]]=\"\",Table_PI[[#This Row],[Hide:\nBaseline kWh]]=0),\"\",Table_PI[[#This Row],[Hide:\nBaseline kWh]])","v":""},{"$f":"IF(OR(Table_PI[[#This Row],[Hide:\nBaseline kW]]=\"\",Table_PI[[#This Row],[Hide:\nBaseline kW]]=0),\"\",Table_PI[[#This Row],[Hide:\nBaseline kW]])","v":""},{"$f":"IF(OR(Table_PI[[#This Row],[Hide:\nProposed kWh]]=\"\",Table_PI[[#This Row],[Hide:\nProposed kWh]]=0),\"\",Table_PI[[#This Row],[Hide:\nProposed kWh]])","v":""},{"$f":"IF(OR(Table_PI[[#This Row],[Hide:\nProposed kW]]=\"\",Table_PI[[#This Row],[Hide:\nProposed kW]]=0),\"\",Table_PI[[#This Row],[Hide:\nProposed kW]])","v":""},{"$f":"IF(OR(Table_PI[[#This Row],[Rebate]]=\"\",Table_PI[[#This Row],[Rebate]]=0),\"\",Table_PI[[#This Row],[Rebate]])","v":""},{"$f":"IF(OR(Table_PI[[#This Row],[Hide:\nIncremental Cost]]=\"\",Table_PI[[#This Row],[Hide:\nIncremental Cost]]=0),\"\",Table_PI[[#This Row],[Hide:\nIncremental Cost]])","v":""},{"$f":"IFERROR(IF(Table_SummaryPI[[#This Row],[kWhSavings]]=\"\",\"\",ROUND(Table_SummaryPI[[#This Row],[kWhSavings]]/$AG$401*'Customer Information'!$BC$17,2)),0)","v":""},{"$f":"IF(OR(Table_PI[[#This Row],[Annual kWh]]=\"\",Table_PI[[#This Row],[Annual kWh]]=0),\"\",Table_PI[[#This Row],[Annual kWh]])","v":""},{"$f":"IF(OR(Table_PI[[#This Row],[Peak kW]]=\"\",Table_PI[[#This Row],[Peak kW]]=0),\"\",Table_PI[[#This Row],[Peak kW]])","v":""},{"$f":"IFERROR(IF(Table_SummaryPI[[#This Row],[kWhSavings]]=\"\",\"\",$AU$9*Table_SummaryPI[[#This Row],[kWhSavings]]),0)","v":""},{"$f":"IFERROR(IF(Table_SummaryPI[[#This Row],[kWhSavings]]=\"\",\"\",$AU$14*Table_SummaryPI[[#This Row],[kWhSavings]]),0)","v":""},{"$f":"IFERROR(IF(Table_SummaryPI[[#This Row],[kWhSavings]]=\"\",\"\",$AU$18*Table_SummaryPI[[#This Row],[kWhSavings]]),0)","v":""},{"$f":"IFERROR(IF(Table_SummaryPI[[#This Row],[kWhSavings]]=\"\",\"\",$AU$22*Table_SummaryPI[[#This Row],[kWhSavings]]),0)","v":""},{"$f":"IFERROR(IF(MeasureCalc(Table_PI[[#This Row],[Hide:\nFormula Name]],Table_SummaryPI[[#This Row],[Quantity]],Table_PI[[#This Row],[List 1]],Table_PI[[#This Row],[List 2]],Table_PI[[#This Row],[List 3]],Table_PI[[#This Row],[Size]],Table_PI[[#This Row],[Input 1]],Table_PI[[#This Row],[Input 2]],Table_PI[[#This Row],[Input 3]],Table_PI[[#This Row],[Input 4]],'Customer Information'!$AR$12,200,ROW())<>\"No Rebate\",MeasureCalc(Table_PI[[#This Row],[Hide:\nFormula Name]],Table_SummaryPI[[#This Row],[Quantity]],Table_PI[[#This Row],[List 1]],Table_PI[[#This Row],[List 2]],Table_PI[[#This Row],[List 3]],Table_PI[[#This Row],[Size]],Table_PI[[#This Row],[Input 1]],Table_PI[[#This Row],[Input 2]],Table_PI[[#This Row],[Input 3]],Table_PI[[#This Row],[Input 4]],'Customer Information'!$AR$12,200,ROW()),\"\"),\"\")","v":""},{"$f":"IFERROR(IF(MeasureCalc(Table_PI[[#This Row],[Hide:\nFormula Name]],Table_SummaryPI[[#This Row],[Quantity]],Table_PI[[#This Row],[List 1]],Table_PI[[#This Row],[List 2]],Table_PI[[#This Row],[List 3]],Table_PI[[#This Row],[Size]],Table_PI[[#This Row],[Input 1]],Table_PI[[#This Row],[Input 2]],Table_PI[[#This Row],[Input 3]],Table_PI[[#This Row],[Input 4]],'Customer Information'!$AR$12,201,ROW())<>\"No Rebate\",MeasureCalc(Table_PI[[#This Row],[Hide:\nFormula Name]],Table_SummaryPI[[#This Row],[Quantity]],Table_PI[[#This Row],[List 1]],Table_PI[[#This Row],[List 2]],Table_PI[[#This Row],[List 3]],Table_PI[[#This Row],[Size]],Table_PI[[#This Row],[Input 1]],Table_PI[[#This Row],[Input 2]],Table_PI[[#This Row],[Input 3]],Table_PI[[#This Row],[Input 4]],'Customer Information'!$AR$12,201,ROW()),\"\"),\"\")","v":""}]
[{"$f":"Table_PI[[#This Row],[Line No.]]","v":""},{"$f":"IF(Table_SummaryPI[[#This Row],[MeassureCategory]]<>\"\",CONCATENATE(Table_SummaryPI[[#This Row],[MeassureCategory]],  \" - \", Table_SummaryPI[[#This Row],[ProposedMeasureCategory]],  \" - \", TEXT(Table_SummaryPI[[#This Row],[Size]],\"#,##0.00\"),\" \",Table_SummaryPI[[#This Row],[SizeUnit]]),\"\")","v":""},{"$f":"SUBSTITUTE(Table_PI[[#This Row],[Measure]],\"     \",\"\",1)","v":""},{"$f":"IF(Table_PI[[#This Row],[List 1]]<>\"\",Table_PI[[#This Row],[List 1]],\"\")","v":""},{"$f":"IF(Table_PI[[#This Row],[List 2]]<>\"\",Table_PI[[#This Row],[List 2]],\"\")","v":""},{"$f":"IF(Table_PI[[#This Row],[List 3]]<>\"\",Table_PI[[#This Row],[List 3]],\"\")","v":""},{"$f":"IF(Table_PI[[#This Row],[Manufacturer]]=\"\",\"\",Table_PI[[#This Row],[Manufacturer]])","v":""},{"$f":"IF(Table_PI[[#This Row],[Model Number]]=\"\",\"\",Table_PI[[#This Row],[Model Number]])","v":""},{"$f":"IF(Table_PI[[#This Row],[Serial Number(s)]]=\"\",\"\",Table_PI[[#This Row],[Serial Number(s)]])","v":""},null,{"$f":"IF(Table_PI[[#This Row],[Size]]=\"\",\"\",Table_PI[[#This Row],[Size]])","v":""},null,{"$f":"IFERROR(IF(AND(MeasureCalc(Table_PI[[#This Row],[Hide:\nFormula Name]],Table_SummaryPI[[#This Row],[Quantity]],Table_PI[[#This Row],[List 1]],Table_PI[[#This Row],[List 2]],Table_PI[[#This Row],[List 3]],Table_PI[[#This Row],[Size]],Table_PI[[#This Row],[Input 1]],Table_PI[[#This Row],[Input 2]],Table_PI[[#This Row],[Input 3]],Table_PI[[#This Row],[Input 4]],'Customer Information'!$AR$12,100,ROW())<>0,MeasureCalc(Table_PI[[#This Row],[Hide:\nFormula Name]],Table_SummaryPI[[#This Row],[Quantity]],Table_PI[[#This Row],[List 1]],Table_PI[[#This Row],[List 2]],Table_PI[[#This Row],[List 3]],Table_PI[[#This Row],[Size]],Table_PI[[#This Row],[Input 1]],Table_PI[[#This Row],[Input 2]],Table_PI[[#This Row],[Input 3]],Table_PI[[#This Row],[Input 4]],'Customer Information'!$AR$12,100,ROW())<>\"No Rebate\"),MeasureCalc(Table_PI[[#This Row],[Hide:\nFormula Name]],Table_SummaryPI[[#This Row],[Quantity]],Table_PI[[#This Row],[List 1]],Table_PI[[#This Row],[List 2]],Table_PI[[#This Row],[List 3]],Table_PI[[#This Row],[Size]],Table_PI[[#This Row],[Input 1]],Table_PI[[#This Row],[Input 2]],Table_PI[[#This Row],[Input 3]],Table_PI[[#This Row],[Input 4]],'Customer Information'!$AR$12,100,ROW()),\"\"),\"\")","v":""},{"$f":"IF(Table_PI[[#This Row],[Input 1]]<>\"\",Table_PI[[#This Row],[Input 1]],\"\")","v":""},null,{"$f":"IFERROR(IF(AND(MeasureCalc(Table_PI[[#This Row],[Hide:\nFormula Name]],Table_SummaryPI[[#This Row],[Quantity]],Table_PI[[#This Row],[List 1]],Table_PI[[#This Row],[List 2]],Table_PI[[#This Row],[List 3]],Table_PI[[#This Row],[Size]],Table_PI[[#This Row],[Input 1]],Table_PI[[#This Row],[Input 2]],Table_PI[[#This Row],[Input 3]],Table_PI[[#This Row],[Input 4]],'Customer Information'!$AR$12,101,ROW())<>0,MeasureCalc(Table_PI[[#This Row],[Hide:\nFormula Name]],Table_SummaryPI[[#This Row],[Quantity]],Table_PI[[#This Row],[List 1]],Table_PI[[#This Row],[List 2]],Table_PI[[#This Row],[List 3]],Table_PI[[#This Row],[Size]],Table_PI[[#This Row],[Input 1]],Table_PI[[#This Row],[Input 2]],Table_PI[[#This Row],[Input 3]],Table_PI[[#This Row],[Input 4]],'Customer Information'!$AR$12,101,ROW())<>\"No Rebate\"),MeasureCalc(Table_PI[[#This Row],[Hide:\nFormula Name]],Table_SummaryPI[[#This Row],[Quantity]],Table_PI[[#This Row],[List 1]],Table_PI[[#This Row],[List 2]],Table_PI[[#This Row],[List 3]],Table_PI[[#This Row],[Size]],Table_PI[[#This Row],[Input 1]],Table_PI[[#This Row],[Input 2]],Table_PI[[#This Row],[Input 3]],Table_PI[[#This Row],[Input 4]],'Customer Information'!$AR$12,101,ROW()),\"\"),\"\")","v":""},{"$f":"IF(Table_PI[[#This Row],[Input 2]]<>\"\",Table_PI[[#This Row],[Input 2]],\"\")","v":""},null,{"$f":"IFERROR(IF(AND(MeasureCalc(Table_PI[[#This Row],[Hide:\nFormula Name]],Table_SummaryPI[[#This Row],[Quantity]],Table_PI[[#This Row],[List 1]],Table_PI[[#This Row],[List 2]],Table_PI[[#This Row],[List 3]],Table_PI[[#This Row],[Size]],Table_PI[[#This Row],[Input 1]],Table_PI[[#This Row],[Input 2]],Table_PI[[#This Row],[Input 3]],Table_PI[[#This Row],[Input 4]],'Customer Information'!$AR$12,102,ROW())<>0,MeasureCalc(Table_PI[[#This Row],[Hide:\nFormula Name]],Table_SummaryPI[[#This Row],[Quantity]],Table_PI[[#This Row],[List 1]],Table_PI[[#This Row],[List 2]],Table_PI[[#This Row],[List 3]],Table_PI[[#This Row],[Size]],Table_PI[[#This Row],[Input 1]],Table_PI[[#This Row],[Input 2]],Table_PI[[#This Row],[Input 3]],Table_PI[[#This Row],[Input 4]],'Customer Information'!$AR$12,102,ROW())<>\"No Rebate\"),MeasureCalc(Table_PI[[#This Row],[Hide:\nFormula Name]],Table_SummaryPI[[#This Row],[Quantity]],Table_PI[[#This Row],[List 1]],Table_PI[[#This Row],[List 2]],Table_PI[[#This Row],[List 3]],Table_PI[[#This Row],[Size]],Table_PI[[#This Row],[Input 1]],Table_PI[[#This Row],[Input 2]],Table_PI[[#This Row],[Input 3]],Table_PI[[#This Row],[Input 4]],'Customer Information'!$AR$12,102,ROW()),\"\"),\"\")","v":""},{"$f":"IF(Table_PI[[#This Row],[Input 3]]<>\"\",Table_PI[[#This Row],[Input 3]],\"\")","v":""},null,{"$f":"IFERROR(IF(AND(MeasureCalc(Table_PI[[#This Row],[Hide:\nFormula Name]],Table_SummaryPI[[#This Row],[Quantity]],Table_PI[[#This Row],[List 1]],Table_PI[[#This Row],[List 2]],Table_PI[[#This Row],[List 3]],Table_PI[[#This Row],[Size]],Table_PI[[#This Row],[Input 1]],Table_PI[[#This Row],[Input 2]],Table_PI[[#This Row],[Input 3]],Table_PI[[#This Row],[Input 4]],'Customer Information'!$AR$12,103,ROW())<>0,MeasureCalc(Table_PI[[#This Row],[Hide:\nFormula Name]],Table_SummaryPI[[#This Row],[Quantity]],Table_PI[[#This Row],[List 1]],Table_PI[[#This Row],[List 2]],Table_PI[[#This Row],[List 3]],Table_PI[[#This Row],[Size]],Table_PI[[#This Row],[Input 1]],Table_PI[[#This Row],[Input 2]],Table_PI[[#This Row],[Input 3]],Table_PI[[#This Row],[Input 4]],'Customer Information'!$AR$12,103,ROW())<>\"No Rebate\"),MeasureCalc(Table_PI[[#This Row],[Hide:\nFormula Name]],Table_SummaryPI[[#This Row],[Quantity]],Table_PI[[#This Row],[List 1]],Table_PI[[#This Row],[List 2]],Table_PI[[#This Row],[List 3]],Table_PI[[#This Row],[Size]],Table_PI[[#This Row],[Input 1]],Table_PI[[#This Row],[Input 2]],Table_PI[[#This Row],[Input 3]],Table_PI[[#This Row],[Input 4]],'Customer Information'!$AR$12,103,ROW()),\"\"),\"\")","v":""},{"$f":"IF(Table_PI[[#This Row],[Input 4]]<>\"\",Table_PI[[#This Row],[Input 4]],\"\")","v":""},{"$f":"IF(Table_PI[[#This Row],[Quantity]]=\"\",\"\",Table_PI[[#This Row],[Quantity]])","v":""},{"$f":"IF(Table_PI[[#This Row],[Notes]]=\"\",\"\",Table_PI[[#This Row],[Notes]])","v":""},{"$f":"IF(OR(Table_PI[[#This Row],[Hide:\nBaseline kWh]]=\"\",Table_PI[[#This Row],[Hide:\nBaseline kWh]]=0),\"\",Table_PI[[#This Row],[Hide:\nBaseline kWh]])","v":""},{"$f":"IF(OR(Table_PI[[#This Row],[Hide:\nBaseline kW]]=\"\",Table_PI[[#This Row],[Hide:\nBaseline kW]]=0),\"\",Table_PI[[#This Row],[Hide:\nBaseline kW]])","v":""},{"$f":"IF(OR(Table_PI[[#This Row],[Hide:\nProposed kWh]]=\"\",Table_PI[[#This Row],[Hide:\nProposed kWh]]=0),\"\",Table_PI[[#This Row],[Hide:\nProposed kWh]])","v":""},{"$f":"IF(OR(Table_PI[[#This Row],[Hide:\nProposed kW]]=\"\",Table_PI[[#This Row],[Hide:\nProposed kW]]=0),\"\",Table_PI[[#This Row],[Hide:\nProposed kW]])","v":""},{"$f":"IF(OR(Table_PI[[#This Row],[Rebate]]=\"\",Table_PI[[#This Row],[Rebate]]=0),\"\",Table_PI[[#This Row],[Rebate]])","v":""},{"$f":"IF(OR(Table_PI[[#This Row],[Hide:\nIncremental Cost]]=\"\",Table_PI[[#This Row],[Hide:\nIncremental Cost]]=0),\"\",Table_PI[[#This Row],[Hide:\nIncremental Cost]])","v":""},{"$f":"IFERROR(IF(Table_SummaryPI[[#This Row],[kWhSavings]]=\"\",\"\",ROUND(Table_SummaryPI[[#This Row],[kWhSavings]]/$AG$401*'Customer Information'!$BC$17,2)),0)","v":""},{"$f":"IF(OR(Table_PI[[#This Row],[Annual kWh]]=\"\",Table_PI[[#This Row],[Annual kWh]]=0),\"\",Table_PI[[#This Row],[Annual kWh]])","v":""},{"$f":"IF(OR(Table_PI[[#This Row],[Peak kW]]=\"\",Table_PI[[#This Row],[Peak kW]]=0),\"\",Table_PI[[#This Row],[Peak kW]])","v":""},{"$f":"IFERROR(IF(Table_SummaryPI[[#This Row],[kWhSavings]]=\"\",\"\",$AU$9*Table_SummaryPI[[#This Row],[kWhSavings]]),0)","v":""},{"$f":"IFERROR(IF(Table_SummaryPI[[#This Row],[kWhSavings]]=\"\",\"\",$AU$14*Table_SummaryPI[[#This Row],[kWhSavings]]),0)","v":""},{"$f":"IFERROR(IF(Table_SummaryPI[[#This Row],[kWhSavings]]=\"\",\"\",$AU$18*Table_SummaryPI[[#This Row],[kWhSavings]]),0)","v":""},{"$f":"IFERROR(IF(Table_SummaryPI[[#This Row],[kWhSavings]]=\"\",\"\",$AU$22*Table_SummaryPI[[#This Row],[kWhSavings]]),0)","v":""},{"$f":"IFERROR(IF(MeasureCalc(Table_PI[[#This Row],[Hide:\nFormula Name]],Table_SummaryPI[[#This Row],[Quantity]],Table_PI[[#This Row],[List 1]],Table_PI[[#This Row],[List 2]],Table_PI[[#This Row],[List 3]],Table_PI[[#This Row],[Size]],Table_PI[[#This Row],[Input 1]],Table_PI[[#This Row],[Input 2]],Table_PI[[#This Row],[Input 3]],Table_PI[[#This Row],[Input 4]],'Customer Information'!$AR$12,200,ROW())<>\"No Rebate\",MeasureCalc(Table_PI[[#This Row],[Hide:\nFormula Name]],Table_SummaryPI[[#This Row],[Quantity]],Table_PI[[#This Row],[List 1]],Table_PI[[#This Row],[List 2]],Table_PI[[#This Row],[List 3]],Table_PI[[#This Row],[Size]],Table_PI[[#This Row],[Input 1]],Table_PI[[#This Row],[Input 2]],Table_PI[[#This Row],[Input 3]],Table_PI[[#This Row],[Input 4]],'Customer Information'!$AR$12,200,ROW()),\"\"),\"\")","v":""},{"$f":"IFERROR(IF(MeasureCalc(Table_PI[[#This Row],[Hide:\nFormula Name]],Table_SummaryPI[[#This Row],[Quantity]],Table_PI[[#This Row],[List 1]],Table_PI[[#This Row],[List 2]],Table_PI[[#This Row],[List 3]],Table_PI[[#This Row],[Size]],Table_PI[[#This Row],[Input 1]],Table_PI[[#This Row],[Input 2]],Table_PI[[#This Row],[Input 3]],Table_PI[[#This Row],[Input 4]],'Customer Information'!$AR$12,201,ROW())<>\"No Rebate\",MeasureCalc(Table_PI[[#This Row],[Hide:\nFormula Name]],Table_SummaryPI[[#This Row],[Quantity]],Table_PI[[#This Row],[List 1]],Table_PI[[#This Row],[List 2]],Table_PI[[#This Row],[List 3]],Table_PI[[#This Row],[Size]],Table_PI[[#This Row],[Input 1]],Table_PI[[#This Row],[Input 2]],Table_PI[[#This Row],[Input 3]],Table_PI[[#This Row],[Input 4]],'Customer Information'!$AR$12,201,ROW()),\"\"),\"\")","v":""}]
[{"$f":"Table_PI[[#This Row],[Line No.]]","v":""},{"$f":"IF(Table_SummaryPI[[#This Row],[MeassureCategory]]<>\"\",CONCATENATE(Table_SummaryPI[[#This Row],[MeassureCategory]],  \" - \", Table_SummaryPI[[#This Row],[ProposedMeasureCategory]],  \" - \", TEXT(Table_SummaryPI[[#This Row],[Size]],\"#,##0.00\"),\" \",Table_SummaryPI[[#This Row],[SizeUnit]]),\"\")","v":""},{"$f":"SUBSTITUTE(Table_PI[[#This Row],[Measure]],\"     \",\"\",1)","v":""},{"$f":"IF(Table_PI[[#This Row],[List 1]]<>\"\",Table_PI[[#This Row],[List 1]],\"\")","v":""},{"$f":"IF(Table_PI[[#This Row],[List 2]]<>\"\",Table_PI[[#This Row],[List 2]],\"\")","v":""},{"$f":"IF(Table_PI[[#This Row],[List 3]]<>\"\",Table_PI[[#This Row],[List 3]],\"\")","v":""},{"$f":"IF(Table_PI[[#This Row],[Manufacturer]]=\"\",\"\",Table_PI[[#This Row],[Manufacturer]])","v":""},{"$f":"IF(Table_PI[[#This Row],[Model Number]]=\"\",\"\",Table_PI[[#This Row],[Model Number]])","v":""},{"$f":"IF(Table_PI[[#This Row],[Serial Number(s)]]=\"\",\"\",Table_PI[[#This Row],[Serial Number(s)]])","v":""},null,{"$f":"IF(Table_PI[[#This Row],[Size]]=\"\",\"\",Table_PI[[#This Row],[Size]])","v":""},null,{"$f":"IFERROR(IF(AND(MeasureCalc(Table_PI[[#This Row],[Hide:\nFormula Name]],Table_SummaryPI[[#This Row],[Quantity]],Table_PI[[#This Row],[List 1]],Table_PI[[#This Row],[List 2]],Table_PI[[#This Row],[List 3]],Table_PI[[#This Row],[Size]],Table_PI[[#This Row],[Input 1]],Table_PI[[#This Row],[Input 2]],Table_PI[[#This Row],[Input 3]],Table_PI[[#This Row],[Input 4]],'Customer Information'!$AR$12,100,ROW())<>0,MeasureCalc(Table_PI[[#This Row],[Hide:\nFormula Name]],Table_SummaryPI[[#This Row],[Quantity]],Table_PI[[#This Row],[List 1]],Table_PI[[#This Row],[List 2]],Table_PI[[#This Row],[List 3]],Table_PI[[#This Row],[Size]],Table_PI[[#This Row],[Input 1]],Table_PI[[#This Row],[Input 2]],Table_PI[[#This Row],[Input 3]],Table_PI[[#This Row],[Input 4]],'Customer Information'!$AR$12,100,ROW())<>\"No Rebate\"),MeasureCalc(Table_PI[[#This Row],[Hide:\nFormula Name]],Table_SummaryPI[[#This Row],[Quantity]],Table_PI[[#This Row],[List 1]],Table_PI[[#This Row],[List 2]],Table_PI[[#This Row],[List 3]],Table_PI[[#This Row],[Size]],Table_PI[[#This Row],[Input 1]],Table_PI[[#This Row],[Input 2]],Table_PI[[#This Row],[Input 3]],Table_PI[[#This Row],[Input 4]],'Customer Information'!$AR$12,100,ROW()),\"\"),\"\")","v":""},{"$f":"IF(Table_PI[[#This Row],[Input 1]]<>\"\",Table_PI[[#This Row],[Input 1]],\"\")","v":""},null,{"$f":"IFERROR(IF(AND(MeasureCalc(Table_PI[[#This Row],[Hide:\nFormula Name]],Table_SummaryPI[[#This Row],[Quantity]],Table_PI[[#This Row],[List 1]],Table_PI[[#This Row],[List 2]],Table_PI[[#This Row],[List 3]],Table_PI[[#This Row],[Size]],Table_PI[[#This Row],[Input 1]],Table_PI[[#This Row],[Input 2]],Table_PI[[#This Row],[Input 3]],Table_PI[[#This Row],[Input 4]],'Customer Information'!$AR$12,101,ROW())<>0,MeasureCalc(Table_PI[[#This Row],[Hide:\nFormula Name]],Table_SummaryPI[[#This Row],[Quantity]],Table_PI[[#This Row],[List 1]],Table_PI[[#This Row],[List 2]],Table_PI[[#This Row],[List 3]],Table_PI[[#This Row],[Size]],Table_PI[[#This Row],[Input 1]],Table_PI[[#This Row],[Input 2]],Table_PI[[#This Row],[Input 3]],Table_PI[[#This Row],[Input 4]],'Customer Information'!$AR$12,101,ROW())<>\"No Rebate\"),MeasureCalc(Table_PI[[#This Row],[Hide:\nFormula Name]],Table_SummaryPI[[#This Row],[Quantity]],Table_PI[[#This Row],[List 1]],Table_PI[[#This Row],[List 2]],Table_PI[[#This Row],[List 3]],Table_PI[[#This Row],[Size]],Table_PI[[#This Row],[Input 1]],Table_PI[[#This Row],[Input 2]],Table_PI[[#This Row],[Input 3]],Table_PI[[#This Row],[Input 4]],'Customer Information'!$AR$12,101,ROW()),\"\"),\"\")","v":""},{"$f":"IF(Table_PI[[#This Row],[Input 2]]<>\"\",Table_PI[[#This Row],[Input 2]],\"\")","v":""},null,{"$f":"IFERROR(IF(AND(MeasureCalc(Table_PI[[#This Row],[Hide:\nFormula Name]],Table_SummaryPI[[#This Row],[Quantity]],Table_PI[[#This Row],[List 1]],Table_PI[[#This Row],[List 2]],Table_PI[[#This Row],[List 3]],Table_PI[[#This Row],[Size]],Table_PI[[#This Row],[Input 1]],Table_PI[[#This Row],[Input 2]],Table_PI[[#This Row],[Input 3]],Table_PI[[#This Row],[Input 4]],'Customer Information'!$AR$12,102,ROW())<>0,MeasureCalc(Table_PI[[#This Row],[Hide:\nFormula Name]],Table_SummaryPI[[#This Row],[Quantity]],Table_PI[[#This Row],[List 1]],Table_PI[[#This Row],[List 2]],Table_PI[[#This Row],[List 3]],Table_PI[[#This Row],[Size]],Table_PI[[#This Row],[Input 1]],Table_PI[[#This Row],[Input 2]],Table_PI[[#This Row],[Input 3]],Table_PI[[#This Row],[Input 4]],'Customer Information'!$AR$12,102,ROW())<>\"No Rebate\"),MeasureCalc(Table_PI[[#This Row],[Hide:\nFormula Name]],Table_SummaryPI[[#This Row],[Quantity]],Table_PI[[#This Row],[List 1]],Table_PI[[#This Row],[List 2]],Table_PI[[#This Row],[List 3]],Table_PI[[#This Row],[Size]],Table_PI[[#This Row],[Input 1]],Table_PI[[#This Row],[Input 2]],Table_PI[[#This Row],[Input 3]],Table_PI[[#This Row],[Input 4]],'Customer Information'!$AR$12,102,ROW()),\"\"),\"\")","v":""},{"$f":"IF(Table_PI[[#This Row],[Input 3]]<>\"\",Table_PI[[#This Row],[Input 3]],\"\")","v":""},null,{"$f":"IFERROR(IF(AND(MeasureCalc(Table_PI[[#This Row],[Hide:\nFormula Name]],Table_SummaryPI[[#This Row],[Quantity]],Table_PI[[#This Row],[List 1]],Table_PI[[#This Row],[List 2]],Table_PI[[#This Row],[List 3]],Table_PI[[#This Row],[Size]],Table_PI[[#This Row],[Input 1]],Table_PI[[#This Row],[Input 2]],Table_PI[[#This Row],[Input 3]],Table_PI[[#This Row],[Input 4]],'Customer Information'!$AR$12,103,ROW())<>0,MeasureCalc(Table_PI[[#This Row],[Hide:\nFormula Name]],Table_SummaryPI[[#This Row],[Quantity]],Table_PI[[#This Row],[List 1]],Table_PI[[#This Row],[List 2]],Table_PI[[#This Row],[List 3]],Table_PI[[#This Row],[Size]],Table_PI[[#This Row],[Input 1]],Table_PI[[#This Row],[Input 2]],Table_PI[[#This Row],[Input 3]],Table_PI[[#This Row],[Input 4]],'Customer Information'!$AR$12,103,ROW())<>\"No Rebate\"),MeasureCalc(Table_PI[[#This Row],[Hide:\nFormula Name]],Table_SummaryPI[[#This Row],[Quantity]],Table_PI[[#This Row],[List 1]],Table_PI[[#This Row],[List 2]],Table_PI[[#This Row],[List 3]],Table_PI[[#This Row],[Size]],Table_PI[[#This Row],[Input 1]],Table_PI[[#This Row],[Input 2]],Table_PI[[#This Row],[Input 3]],Table_PI[[#This Row],[Input 4]],'Customer Information'!$AR$12,103,ROW()),\"\"),\"\")","v":""},{"$f":"IF(Table_PI[[#This Row],[Input 4]]<>\"\",Table_PI[[#This Row],[Input 4]],\"\")","v":""},{"$f":"IF(Table_PI[[#This Row],[Quantity]]=\"\",\"\",Table_PI[[#This Row],[Quantity]])","v":""},{"$f":"IF(Table_PI[[#This Row],[Notes]]=\"\",\"\",Table_PI[[#This Row],[Notes]])","v":""},{"$f":"IF(OR(Table_PI[[#This Row],[Hide:\nBaseline kWh]]=\"\",Table_PI[[#This Row],[Hide:\nBaseline kWh]]=0),\"\",Table_PI[[#This Row],[Hide:\nBaseline kWh]])","v":""},{"$f":"IF(OR(Table_PI[[#This Row],[Hide:\nBaseline kW]]=\"\",Table_PI[[#This Row],[Hide:\nBaseline kW]]=0),\"\",Table_PI[[#This Row],[Hide:\nBaseline kW]])","v":""},{"$f":"IF(OR(Table_PI[[#This Row],[Hide:\nProposed kWh]]=\"\",Table_PI[[#This Row],[Hide:\nProposed kWh]]=0),\"\",Table_PI[[#This Row],[Hide:\nProposed kWh]])","v":""},{"$f":"IF(OR(Table_PI[[#This Row],[Hide:\nProposed kW]]=\"\",Table_PI[[#This Row],[Hide:\nProposed kW]]=0),\"\",Table_PI[[#This Row],[Hide:\nProposed kW]])","v":""},{"$f":"IF(OR(Table_PI[[#This Row],[Rebate]]=\"\",Table_PI[[#This Row],[Rebate]]=0),\"\",Table_PI[[#This Row],[Rebate]])","v":""},{"$f":"IF(OR(Table_PI[[#This Row],[Hide:\nIncremental Cost]]=\"\",Table_PI[[#This Row],[Hide:\nIncremental Cost]]=0),\"\",Table_PI[[#This Row],[Hide:\nIncremental Cost]])","v":""},{"$f":"IFERROR(IF(Table_SummaryPI[[#This Row],[kWhSavings]]=\"\",\"\",ROUND(Table_SummaryPI[[#This Row],[kWhSavings]]/$AG$401*'Customer Information'!$BC$17,2)),0)","v":""},{"$f":"IF(OR(Table_PI[[#This Row],[Annual kWh]]=\"\",Table_PI[[#This Row],[Annual kWh]]=0),\"\",Table_PI[[#This Row],[Annual kWh]])","v":""},{"$f":"IF(OR(Table_PI[[#This Row],[Peak kW]]=\"\",Table_PI[[#This Row],[Peak kW]]=0),\"\",Table_PI[[#This Row],[Peak kW]])","v":""},{"$f":"IFERROR(IF(Table_SummaryPI[[#This Row],[kWhSavings]]=\"\",\"\",$AU$9*Table_SummaryPI[[#This Row],[kWhSavings]]),0)","v":""},{"$f":"IFERROR(IF(Table_SummaryPI[[#This Row],[kWhSavings]]=\"\",\"\",$AU$14*Table_SummaryPI[[#This Row],[kWhSavings]]),0)","v":""},{"$f":"IFERROR(IF(Table_SummaryPI[[#This Row],[kWhSavings]]=\"\",\"\",$AU$18*Table_SummaryPI[[#This Row],[kWhSavings]]),0)","v":""},{"$f":"IFERROR(IF(Table_SummaryPI[[#This Row],[kWhSavings]]=\"\",\"\",$AU$22*Table_SummaryPI[[#This Row],[kWhSavings]]),0)","v":""},{"$f":"IFERROR(IF(MeasureCalc(Table_PI[[#This Row],[Hide:\nFormula Name]],Table_SummaryPI[[#This Row],[Quantity]],Table_PI[[#This Row],[List 1]],Table_PI[[#This Row],[List 2]],Table_PI[[#This Row],[List 3]],Table_PI[[#This Row],[Size]],Table_PI[[#This Row],[Input 1]],Table_PI[[#This Row],[Input 2]],Table_PI[[#This Row],[Input 3]],Table_PI[[#This Row],[Input 4]],'Customer Information'!$AR$12,200,ROW())<>\"No Rebate\",MeasureCalc(Table_PI[[#This Row],[Hide:\nFormula Name]],Table_SummaryPI[[#This Row],[Quantity]],Table_PI[[#This Row],[List 1]],Table_PI[[#This Row],[List 2]],Table_PI[[#This Row],[List 3]],Table_PI[[#This Row],[Size]],Table_PI[[#This Row],[Input 1]],Table_PI[[#This Row],[Input 2]],Table_PI[[#This Row],[Input 3]],Table_PI[[#This Row],[Input 4]],'Customer Information'!$AR$12,200,ROW()),\"\"),\"\")","v":""},{"$f":"IFERROR(IF(MeasureCalc(Table_PI[[#This Row],[Hide:\nFormula Name]],Table_SummaryPI[[#This Row],[Quantity]],Table_PI[[#This Row],[List 1]],Table_PI[[#This Row],[List 2]],Table_PI[[#This Row],[List 3]],Table_PI[[#This Row],[Size]],Table_PI[[#This Row],[Input 1]],Table_PI[[#This Row],[Input 2]],Table_PI[[#This Row],[Input 3]],Table_PI[[#This Row],[Input 4]],'Customer Information'!$AR$12,201,ROW())<>\"No Rebate\",MeasureCalc(Table_PI[[#This Row],[Hide:\nFormula Name]],Table_SummaryPI[[#This Row],[Quantity]],Table_PI[[#This Row],[List 1]],Table_PI[[#This Row],[List 2]],Table_PI[[#This Row],[List 3]],Table_PI[[#This Row],[Size]],Table_PI[[#This Row],[Input 1]],Table_PI[[#This Row],[Input 2]],Table_PI[[#This Row],[Input 3]],Table_PI[[#This Row],[Input 4]],'Customer Information'!$AR$12,201,ROW()),\"\"),\"\")","v":""}]
[{"$f":"Table_PI[[#This Row],[Line No.]]","v":""},{"$f":"IF(Table_SummaryPI[[#This Row],[MeassureCategory]]<>\"\",CONCATENATE(Table_SummaryPI[[#This Row],[MeassureCategory]],  \" - \", Table_SummaryPI[[#This Row],[ProposedMeasureCategory]],  \" - \", TEXT(Table_SummaryPI[[#This Row],[Size]],\"#,##0.00\"),\" \",Table_SummaryPI[[#This Row],[SizeUnit]]),\"\")","v":""},{"$f":"SUBSTITUTE(Table_PI[[#This Row],[Measure]],\"     \",\"\",1)","v":""},{"$f":"IF(Table_PI[[#This Row],[List 1]]<>\"\",Table_PI[[#This Row],[List 1]],\"\")","v":""},{"$f":"IF(Table_PI[[#This Row],[List 2]]<>\"\",Table_PI[[#This Row],[List 2]],\"\")","v":""},{"$f":"IF(Table_PI[[#This Row],[List 3]]<>\"\",Table_PI[[#This Row],[List 3]],\"\")","v":""},{"$f":"IF(Table_PI[[#This Row],[Manufacturer]]=\"\",\"\",Table_PI[[#This Row],[Manufacturer]])","v":""},{"$f":"IF(Table_PI[[#This Row],[Model Number]]=\"\",\"\",Table_PI[[#This Row],[Model Number]])","v":""},{"$f":"IF(Table_PI[[#This Row],[Serial Number(s)]]=\"\",\"\",Table_PI[[#This Row],[Serial Number(s)]])","v":""},null,{"$f":"IF(Table_PI[[#This Row],[Size]]=\"\",\"\",Table_PI[[#This Row],[Size]])","v":""},null,{"$f":"IFERROR(IF(AND(MeasureCalc(Table_PI[[#This Row],[Hide:\nFormula Name]],Table_SummaryPI[[#This Row],[Quantity]],Table_PI[[#This Row],[List 1]],Table_PI[[#This Row],[List 2]],Table_PI[[#This Row],[List 3]],Table_PI[[#This Row],[Size]],Table_PI[[#This Row],[Input 1]],Table_PI[[#This Row],[Input 2]],Table_PI[[#This Row],[Input 3]],Table_PI[[#This Row],[Input 4]],'Customer Information'!$AR$12,100,ROW())<>0,MeasureCalc(Table_PI[[#This Row],[Hide:\nFormula Name]],Table_SummaryPI[[#This Row],[Quantity]],Table_PI[[#This Row],[List 1]],Table_PI[[#This Row],[List 2]],Table_PI[[#This Row],[List 3]],Table_PI[[#This Row],[Size]],Table_PI[[#This Row],[Input 1]],Table_PI[[#This Row],[Input 2]],Table_PI[[#This Row],[Input 3]],Table_PI[[#This Row],[Input 4]],'Customer Information'!$AR$12,100,ROW())<>\"No Rebate\"),MeasureCalc(Table_PI[[#This Row],[Hide:\nFormula Name]],Table_SummaryPI[[#This Row],[Quantity]],Table_PI[[#This Row],[List 1]],Table_PI[[#This Row],[List 2]],Table_PI[[#This Row],[List 3]],Table_PI[[#This Row],[Size]],Table_PI[[#This Row],[Input 1]],Table_PI[[#This Row],[Input 2]],Table_PI[[#This Row],[Input 3]],Table_PI[[#This Row],[Input 4]],'Customer Information'!$AR$12,100,ROW()),\"\"),\"\")","v":""},{"$f":"IF(Table_PI[[#This Row],[Input 1]]<>\"\",Table_PI[[#This Row],[Input 1]],\"\")","v":""},null,{"$f":"IFERROR(IF(AND(MeasureCalc(Table_PI[[#This Row],[Hide:\nFormula Name]],Table_SummaryPI[[#This Row],[Quantity]],Table_PI[[#This Row],[List 1]],Table_PI[[#This Row],[List 2]],Table_PI[[#This Row],[List 3]],Table_PI[[#This Row],[Size]],Table_PI[[#This Row],[Input 1]],Table_PI[[#This Row],[Input 2]],Table_PI[[#This Row],[Input 3]],Table_PI[[#This Row],[Input 4]],'Customer Information'!$AR$12,101,ROW())<>0,MeasureCalc(Table_PI[[#This Row],[Hide:\nFormula Name]],Table_SummaryPI[[#This Row],[Quantity]],Table_PI[[#This Row],[List 1]],Table_PI[[#This Row],[List 2]],Table_PI[[#This Row],[List 3]],Table_PI[[#This Row],[Size]],Table_PI[[#This Row],[Input 1]],Table_PI[[#This Row],[Input 2]],Table_PI[[#This Row],[Input 3]],Table_PI[[#This Row],[Input 4]],'Customer Information'!$AR$12,101,ROW())<>\"No Rebate\"),MeasureCalc(Table_PI[[#This Row],[Hide:\nFormula Name]],Table_SummaryPI[[#This Row],[Quantity]],Table_PI[[#This Row],[List 1]],Table_PI[[#This Row],[List 2]],Table_PI[[#This Row],[List 3]],Table_PI[[#This Row],[Size]],Table_PI[[#This Row],[Input 1]],Table_PI[[#This Row],[Input 2]],Table_PI[[#This Row],[Input 3]],Table_PI[[#This Row],[Input 4]],'Customer Information'!$AR$12,101,ROW()),\"\"),\"\")","v":""},{"$f":"IF(Table_PI[[#This Row],[Input 2]]<>\"\",Table_PI[[#This Row],[Input 2]],\"\")","v":""},null,{"$f":"IFERROR(IF(AND(MeasureCalc(Table_PI[[#This Row],[Hide:\nFormula Name]],Table_SummaryPI[[#This Row],[Quantity]],Table_PI[[#This Row],[List 1]],Table_PI[[#This Row],[List 2]],Table_PI[[#This Row],[List 3]],Table_PI[[#This Row],[Size]],Table_PI[[#This Row],[Input 1]],Table_PI[[#This Row],[Input 2]],Table_PI[[#This Row],[Input 3]],Table_PI[[#This Row],[Input 4]],'Customer Information'!$AR$12,102,ROW())<>0,MeasureCalc(Table_PI[[#This Row],[Hide:\nFormula Name]],Table_SummaryPI[[#This Row],[Quantity]],Table_PI[[#This Row],[List 1]],Table_PI[[#This Row],[List 2]],Table_PI[[#This Row],[List 3]],Table_PI[[#This Row],[Size]],Table_PI[[#This Row],[Input 1]],Table_PI[[#This Row],[Input 2]],Table_PI[[#This Row],[Input 3]],Table_PI[[#This Row],[Input 4]],'Customer Information'!$AR$12,102,ROW())<>\"No Rebate\"),MeasureCalc(Table_PI[[#This Row],[Hide:\nFormula Name]],Table_SummaryPI[[#This Row],[Quantity]],Table_PI[[#This Row],[List 1]],Table_PI[[#This Row],[List 2]],Table_PI[[#This Row],[List 3]],Table_PI[[#This Row],[Size]],Table_PI[[#This Row],[Input 1]],Table_PI[[#This Row],[Input 2]],Table_PI[[#This Row],[Input 3]],Table_PI[[#This Row],[Input 4]],'Customer Information'!$AR$12,102,ROW()),\"\"),\"\")","v":""},{"$f":"IF(Table_PI[[#This Row],[Input 3]]<>\"\",Table_PI[[#This Row],[Input 3]],\"\")","v":""},null,{"$f":"IFERROR(IF(AND(MeasureCalc(Table_PI[[#This Row],[Hide:\nFormula Name]],Table_SummaryPI[[#This Row],[Quantity]],Table_PI[[#This Row],[List 1]],Table_PI[[#This Row],[List 2]],Table_PI[[#This Row],[List 3]],Table_PI[[#This Row],[Size]],Table_PI[[#This Row],[Input 1]],Table_PI[[#This Row],[Input 2]],Table_PI[[#This Row],[Input 3]],Table_PI[[#This Row],[Input 4]],'Customer Information'!$AR$12,103,ROW())<>0,MeasureCalc(Table_PI[[#This Row],[Hide:\nFormula Name]],Table_SummaryPI[[#This Row],[Quantity]],Table_PI[[#This Row],[List 1]],Table_PI[[#This Row],[List 2]],Table_PI[[#This Row],[List 3]],Table_PI[[#This Row],[Size]],Table_PI[[#This Row],[Input 1]],Table_PI[[#This Row],[Input 2]],Table_PI[[#This Row],[Input 3]],Table_PI[[#This Row],[Input 4]],'Customer Information'!$AR$12,103,ROW())<>\"No Rebate\"),MeasureCalc(Table_PI[[#This Row],[Hide:\nFormula Name]],Table_SummaryPI[[#This Row],[Quantity]],Table_PI[[#This Row],[List 1]],Table_PI[[#This Row],[List 2]],Table_PI[[#This Row],[List 3]],Table_PI[[#This Row],[Size]],Table_PI[[#This Row],[Input 1]],Table_PI[[#This Row],[Input 2]],Table_PI[[#This Row],[Input 3]],Table_PI[[#This Row],[Input 4]],'Customer Information'!$AR$12,103,ROW()),\"\"),\"\")","v":""},{"$f":"IF(Table_PI[[#This Row],[Input 4]]<>\"\",Table_PI[[#This Row],[Input 4]],\"\")","v":""},{"$f":"IF(Table_PI[[#This Row],[Quantity]]=\"\",\"\",Table_PI[[#This Row],[Quantity]])","v":""},{"$f":"IF(Table_PI[[#This Row],[Notes]]=\"\",\"\",Table_PI[[#This Row],[Notes]])","v":""},{"$f":"IF(OR(Table_PI[[#This Row],[Hide:\nBaseline kWh]]=\"\",Table_PI[[#This Row],[Hide:\nBaseline kWh]]=0),\"\",Table_PI[[#This Row],[Hide:\nBaseline kWh]])","v":""},{"$f":"IF(OR(Table_PI[[#This Row],[Hide:\nBaseline kW]]=\"\",Table_PI[[#This Row],[Hide:\nBaseline kW]]=0),\"\",Table_PI[[#This Row],[Hide:\nBaseline kW]])","v":""},{"$f":"IF(OR(Table_PI[[#This Row],[Hide:\nProposed kWh]]=\"\",Table_PI[[#This Row],[Hide:\nProposed kWh]]=0),\"\",Table_PI[[#This Row],[Hide:\nProposed kWh]])","v":""},{"$f":"IF(OR(Table_PI[[#This Row],[Hide:\nProposed kW]]=\"\",Table_PI[[#This Row],[Hide:\nProposed kW]]=0),\"\",Table_PI[[#This Row],[Hide:\nProposed kW]])","v":""},{"$f":"IF(OR(Table_PI[[#This Row],[Rebate]]=\"\",Table_PI[[#This Row],[Rebate]]=0),\"\",Table_PI[[#This Row],[Rebate]])","v":""},{"$f":"IF(OR(Table_PI[[#This Row],[Hide:\nIncremental Cost]]=\"\",Table_PI[[#This Row],[Hide:\nIncremental Cost]]=0),\"\",Table_PI[[#This Row],[Hide:\nIncremental Cost]])","v":""},{"$f":"IFERROR(IF(Table_SummaryPI[[#This Row],[kWhSavings]]=\"\",\"\",ROUND(Table_SummaryPI[[#This Row],[kWhSavings]]/$AG$401*'Customer Information'!$BC$17,2)),0)","v":""},{"$f":"IF(OR(Table_PI[[#This Row],[Annual kWh]]=\"\",Table_PI[[#This Row],[Annual kWh]]=0),\"\",Table_PI[[#This Row],[Annual kWh]])","v":""},{"$f":"IF(OR(Table_PI[[#This Row],[Peak kW]]=\"\",Table_PI[[#This Row],[Peak kW]]=0),\"\",Table_PI[[#This Row],[Peak kW]])","v":""},{"$f":"IFERROR(IF(Table_SummaryPI[[#This Row],[kWhSavings]]=\"\",\"\",$AU$9*Table_SummaryPI[[#This Row],[kWhSavings]]),0)","v":""},{"$f":"IFERROR(IF(Table_SummaryPI[[#This Row],[kWhSavings]]=\"\",\"\",$AU$14*Table_SummaryPI[[#This Row],[kWhSavings]]),0)","v":""},{"$f":"IFERROR(IF(Table_SummaryPI[[#This Row],[kWhSavings]]=\"\",\"\",$AU$18*Table_SummaryPI[[#This Row],[kWhSavings]]),0)","v":""},{"$f":"IFERROR(IF(Table_SummaryPI[[#This Row],[kWhSavings]]=\"\",\"\",$AU$22*Table_SummaryPI[[#This Row],[kWhSavings]]),0)","v":""},{"$f":"IFERROR(IF(MeasureCalc(Table_PI[[#This Row],[Hide:\nFormula Name]],Table_SummaryPI[[#This Row],[Quantity]],Table_PI[[#This Row],[List 1]],Table_PI[[#This Row],[List 2]],Table_PI[[#This Row],[List 3]],Table_PI[[#This Row],[Size]],Table_PI[[#This Row],[Input 1]],Table_PI[[#This Row],[Input 2]],Table_PI[[#This Row],[Input 3]],Table_PI[[#This Row],[Input 4]],'Customer Information'!$AR$12,200,ROW())<>\"No Rebate\",MeasureCalc(Table_PI[[#This Row],[Hide:\nFormula Name]],Table_SummaryPI[[#This Row],[Quantity]],Table_PI[[#This Row],[List 1]],Table_PI[[#This Row],[List 2]],Table_PI[[#This Row],[List 3]],Table_PI[[#This Row],[Size]],Table_PI[[#This Row],[Input 1]],Table_PI[[#This Row],[Input 2]],Table_PI[[#This Row],[Input 3]],Table_PI[[#This Row],[Input 4]],'Customer Information'!$AR$12,200,ROW()),\"\"),\"\")","v":""},{"$f":"IFERROR(IF(MeasureCalc(Table_PI[[#This Row],[Hide:\nFormula Name]],Table_SummaryPI[[#This Row],[Quantity]],Table_PI[[#This Row],[List 1]],Table_PI[[#This Row],[List 2]],Table_PI[[#This Row],[List 3]],Table_PI[[#This Row],[Size]],Table_PI[[#This Row],[Input 1]],Table_PI[[#This Row],[Input 2]],Table_PI[[#This Row],[Input 3]],Table_PI[[#This Row],[Input 4]],'Customer Information'!$AR$12,201,ROW())<>\"No Rebate\",MeasureCalc(Table_PI[[#This Row],[Hide:\nFormula Name]],Table_SummaryPI[[#This Row],[Quantity]],Table_PI[[#This Row],[List 1]],Table_PI[[#This Row],[List 2]],Table_PI[[#This Row],[List 3]],Table_PI[[#This Row],[Size]],Table_PI[[#This Row],[Input 1]],Table_PI[[#This Row],[Input 2]],Table_PI[[#This Row],[Input 3]],Table_PI[[#This Row],[Input 4]],'Customer Information'!$AR$12,201,ROW()),\"\"),\"\")","v":""}]
[{"$f":"Table_PI[[#This Row],[Line No.]]","v":""},{"$f":"IF(Table_SummaryPI[[#This Row],[MeassureCategory]]<>\"\",CONCATENATE(Table_SummaryPI[[#This Row],[MeassureCategory]],  \" - \", Table_SummaryPI[[#This Row],[ProposedMeasureCategory]],  \" - \", TEXT(Table_SummaryPI[[#This Row],[Size]],\"#,##0.00\"),\" \",Table_SummaryPI[[#This Row],[SizeUnit]]),\"\")","v":""},{"$f":"SUBSTITUTE(Table_PI[[#This Row],[Measure]],\"     \",\"\",1)","v":""},{"$f":"IF(Table_PI[[#This Row],[List 1]]<>\"\",Table_PI[[#This Row],[List 1]],\"\")","v":""},{"$f":"IF(Table_PI[[#This Row],[List 2]]<>\"\",Table_PI[[#This Row],[List 2]],\"\")","v":""},{"$f":"IF(Table_PI[[#This Row],[List 3]]<>\"\",Table_PI[[#This Row],[List 3]],\"\")","v":""},{"$f":"IF(Table_PI[[#This Row],[Manufacturer]]=\"\",\"\",Table_PI[[#This Row],[Manufacturer]])","v":""},{"$f":"IF(Table_PI[[#This Row],[Model Number]]=\"\",\"\",Table_PI[[#This Row],[Model Number]])","v":""},{"$f":"IF(Table_PI[[#This Row],[Serial Number(s)]]=\"\",\"\",Table_PI[[#This Row],[Serial Number(s)]])","v":""},null,{"$f":"IF(Table_PI[[#This Row],[Size]]=\"\",\"\",Table_PI[[#This Row],[Size]])","v":""},null,{"$f":"IFERROR(IF(AND(MeasureCalc(Table_PI[[#This Row],[Hide:\nFormula Name]],Table_SummaryPI[[#This Row],[Quantity]],Table_PI[[#This Row],[List 1]],Table_PI[[#This Row],[List 2]],Table_PI[[#This Row],[List 3]],Table_PI[[#This Row],[Size]],Table_PI[[#This Row],[Input 1]],Table_PI[[#This Row],[Input 2]],Table_PI[[#This Row],[Input 3]],Table_PI[[#This Row],[Input 4]],'Customer Information'!$AR$12,100,ROW())<>0,MeasureCalc(Table_PI[[#This Row],[Hide:\nFormula Name]],Table_SummaryPI[[#This Row],[Quantity]],Table_PI[[#This Row],[List 1]],Table_PI[[#This Row],[List 2]],Table_PI[[#This Row],[List 3]],Table_PI[[#This Row],[Size]],Table_PI[[#This Row],[Input 1]],Table_PI[[#This Row],[Input 2]],Table_PI[[#This Row],[Input 3]],Table_PI[[#This Row],[Input 4]],'Customer Information'!$AR$12,100,ROW())<>\"No Rebate\"),MeasureCalc(Table_PI[[#This Row],[Hide:\nFormula Name]],Table_SummaryPI[[#This Row],[Quantity]],Table_PI[[#This Row],[List 1]],Table_PI[[#This Row],[List 2]],Table_PI[[#This Row],[List 3]],Table_PI[[#This Row],[Size]],Table_PI[[#This Row],[Input 1]],Table_PI[[#This Row],[Input 2]],Table_PI[[#This Row],[Input 3]],Table_PI[[#This Row],[Input 4]],'Customer Information'!$AR$12,100,ROW()),\"\"),\"\")","v":""},{"$f":"IF(Table_PI[[#This Row],[Input 1]]<>\"\",Table_PI[[#This Row],[Input 1]],\"\")","v":""},null,{"$f":"IFERROR(IF(AND(MeasureCalc(Table_PI[[#This Row],[Hide:\nFormula Name]],Table_SummaryPI[[#This Row],[Quantity]],Table_PI[[#This Row],[List 1]],Table_PI[[#This Row],[List 2]],Table_PI[[#This Row],[List 3]],Table_PI[[#This Row],[Size]],Table_PI[[#This Row],[Input 1]],Table_PI[[#This Row],[Input 2]],Table_PI[[#This Row],[Input 3]],Table_PI[[#This Row],[Input 4]],'Customer Information'!$AR$12,101,ROW())<>0,MeasureCalc(Table_PI[[#This Row],[Hide:\nFormula Name]],Table_SummaryPI[[#This Row],[Quantity]],Table_PI[[#This Row],[List 1]],Table_PI[[#This Row],[List 2]],Table_PI[[#This Row],[List 3]],Table_PI[[#This Row],[Size]],Table_PI[[#This Row],[Input 1]],Table_PI[[#This Row],[Input 2]],Table_PI[[#This Row],[Input 3]],Table_PI[[#This Row],[Input 4]],'Customer Information'!$AR$12,101,ROW())<>\"No Rebate\"),MeasureCalc(Table_PI[[#This Row],[Hide:\nFormula Name]],Table_SummaryPI[[#This Row],[Quantity]],Table_PI[[#This Row],[List 1]],Table_PI[[#This Row],[List 2]],Table_PI[[#This Row],[List 3]],Table_PI[[#This Row],[Size]],Table_PI[[#This Row],[Input 1]],Table_PI[[#This Row],[Input 2]],Table_PI[[#This Row],[Input 3]],Table_PI[[#This Row],[Input 4]],'Customer Information'!$AR$12,101,ROW()),\"\"),\"\")","v":""},{"$f":"IF(Table_PI[[#This Row],[Input 2]]<>\"\",Table_PI[[#This Row],[Input 2]],\"\")","v":""},null,{"$f":"IFERROR(IF(AND(MeasureCalc(Table_PI[[#This Row],[Hide:\nFormula Name]],Table_SummaryPI[[#This Row],[Quantity]],Table_PI[[#This Row],[List 1]],Table_PI[[#This Row],[List 2]],Table_PI[[#This Row],[List 3]],Table_PI[[#This Row],[Size]],Table_PI[[#This Row],[Input 1]],Table_PI[[#This Row],[Input 2]],Table_PI[[#This Row],[Input 3]],Table_PI[[#This Row],[Input 4]],'Customer Information'!$AR$12,102,ROW())<>0,MeasureCalc(Table_PI[[#This Row],[Hide:\nFormula Name]],Table_SummaryPI[[#This Row],[Quantity]],Table_PI[[#This Row],[List 1]],Table_PI[[#This Row],[List 2]],Table_PI[[#This Row],[List 3]],Table_PI[[#This Row],[Size]],Table_PI[[#This Row],[Input 1]],Table_PI[[#This Row],[Input 2]],Table_PI[[#This Row],[Input 3]],Table_PI[[#This Row],[Input 4]],'Customer Information'!$AR$12,102,ROW())<>\"No Rebate\"),MeasureCalc(Table_PI[[#This Row],[Hide:\nFormula Name]],Table_SummaryPI[[#This Row],[Quantity]],Table_PI[[#This Row],[List 1]],Table_PI[[#This Row],[List 2]],Table_PI[[#This Row],[List 3]],Table_PI[[#This Row],[Size]],Table_PI[[#This Row],[Input 1]],Table_PI[[#This Row],[Input 2]],Table_PI[[#This Row],[Input 3]],Table_PI[[#This Row],[Input 4]],'Customer Information'!$AR$12,102,ROW()),\"\"),\"\")","v":""},{"$f":"IF(Table_PI[[#This Row],[Input 3]]<>\"\",Table_PI[[#This Row],[Input 3]],\"\")","v":""},null,{"$f":"IFERROR(IF(AND(MeasureCalc(Table_PI[[#This Row],[Hide:\nFormula Name]],Table_SummaryPI[[#This Row],[Quantity]],Table_PI[[#This Row],[List 1]],Table_PI[[#This Row],[List 2]],Table_PI[[#This Row],[List 3]],Table_PI[[#This Row],[Size]],Table_PI[[#This Row],[Input 1]],Table_PI[[#This Row],[Input 2]],Table_PI[[#This Row],[Input 3]],Table_PI[[#This Row],[Input 4]],'Customer Information'!$AR$12,103,ROW())<>0,MeasureCalc(Table_PI[[#This Row],[Hide:\nFormula Name]],Table_SummaryPI[[#This Row],[Quantity]],Table_PI[[#This Row],[List 1]],Table_PI[[#This Row],[List 2]],Table_PI[[#This Row],[List 3]],Table_PI[[#This Row],[Size]],Table_PI[[#This Row],[Input 1]],Table_PI[[#This Row],[Input 2]],Table_PI[[#This Row],[Input 3]],Table_PI[[#This Row],[Input 4]],'Customer Information'!$AR$12,103,ROW())<>\"No Rebate\"),MeasureCalc(Table_PI[[#This Row],[Hide:\nFormula Name]],Table_SummaryPI[[#This Row],[Quantity]],Table_PI[[#This Row],[List 1]],Table_PI[[#This Row],[List 2]],Table_PI[[#This Row],[List 3]],Table_PI[[#This Row],[Size]],Table_PI[[#This Row],[Input 1]],Table_PI[[#This Row],[Input 2]],Table_PI[[#This Row],[Input 3]],Table_PI[[#This Row],[Input 4]],'Customer Information'!$AR$12,103,ROW()),\"\"),\"\")","v":""},{"$f":"IF(Table_PI[[#This Row],[Input 4]]<>\"\",Table_PI[[#This Row],[Input 4]],\"\")","v":""},{"$f":"IF(Table_PI[[#This Row],[Quantity]]=\"\",\"\",Table_PI[[#This Row],[Quantity]])","v":""},{"$f":"IF(Table_PI[[#This Row],[Notes]]=\"\",\"\",Table_PI[[#This Row],[Notes]])","v":""},{"$f":"IF(OR(Table_PI[[#This Row],[Hide:\nBaseline kWh]]=\"\",Table_PI[[#This Row],[Hide:\nBaseline kWh]]=0),\"\",Table_PI[[#This Row],[Hide:\nBaseline kWh]])","v":""},{"$f":"IF(OR(Table_PI[[#This Row],[Hide:\nBaseline kW]]=\"\",Table_PI[[#This Row],[Hide:\nBaseline kW]]=0),\"\",Table_PI[[#This Row],[Hide:\nBaseline kW]])","v":""},{"$f":"IF(OR(Table_PI[[#This Row],[Hide:\nProposed kWh]]=\"\",Table_PI[[#This Row],[Hide:\nProposed kWh]]=0),\"\",Table_PI[[#This Row],[Hide:\nProposed kWh]])","v":""},{"$f":"IF(OR(Table_PI[[#This Row],[Hide:\nProposed kW]]=\"\",Table_PI[[#This Row],[Hide:\nProposed kW]]=0),\"\",Table_PI[[#This Row],[Hide:\nProposed kW]])","v":""},{"$f":"IF(OR(Table_PI[[#This Row],[Rebate]]=\"\",Table_PI[[#This Row],[Rebate]]=0),\"\",Table_PI[[#This Row],[Rebate]])","v":""},{"$f":"IF(OR(Table_PI[[#This Row],[Hide:\nIncremental Cost]]=\"\",Table_PI[[#This Row],[Hide:\nIncremental Cost]]=0),\"\",Table_PI[[#This Row],[Hide:\nIncremental Cost]])","v":""},{"$f":"IFERROR(IF(Table_SummaryPI[[#This Row],[kWhSavings]]=\"\",\"\",ROUND(Table_SummaryPI[[#This Row],[kWhSavings]]/$AG$401*'Customer Information'!$BC$17,2)),0)","v":""},{"$f":"IF(OR(Table_PI[[#This Row],[Annual kWh]]=\"\",Table_PI[[#This Row],[Annual kWh]]=0),\"\",Table_PI[[#This Row],[Annual kWh]])","v":""},{"$f":"IF(OR(Table_PI[[#This Row],[Peak kW]]=\"\",Table_PI[[#This Row],[Peak kW]]=0),\"\",Table_PI[[#This Row],[Peak kW]])","v":""},{"$f":"IFERROR(IF(Table_SummaryPI[[#This Row],[kWhSavings]]=\"\",\"\",$AU$9*Table_SummaryPI[[#This Row],[kWhSavings]]),0)","v":""},{"$f":"IFERROR(IF(Table_SummaryPI[[#This Row],[kWhSavings]]=\"\",\"\",$AU$14*Table_SummaryPI[[#This Row],[kWhSavings]]),0)","v":""},{"$f":"IFERROR(IF(Table_SummaryPI[[#This Row],[kWhSavings]]=\"\",\"\",$AU$18*Table_SummaryPI[[#This Row],[kWhSavings]]),0)","v":""},{"$f":"IFERROR(IF(Table_SummaryPI[[#This Row],[kWhSavings]]=\"\",\"\",$AU$22*Table_SummaryPI[[#This Row],[kWhSavings]]),0)","v":""},{"$f":"IFERROR(IF(MeasureCalc(Table_PI[[#This Row],[Hide:\nFormula Name]],Table_SummaryPI[[#This Row],[Quantity]],Table_PI[[#This Row],[List 1]],Table_PI[[#This Row],[List 2]],Table_PI[[#This Row],[List 3]],Table_PI[[#This Row],[Size]],Table_PI[[#This Row],[Input 1]],Table_PI[[#This Row],[Input 2]],Table_PI[[#This Row],[Input 3]],Table_PI[[#This Row],[Input 4]],'Customer Information'!$AR$12,200,ROW())<>\"No Rebate\",MeasureCalc(Table_PI[[#This Row],[Hide:\nFormula Name]],Table_SummaryPI[[#This Row],[Quantity]],Table_PI[[#This Row],[List 1]],Table_PI[[#This Row],[List 2]],Table_PI[[#This Row],[List 3]],Table_PI[[#This Row],[Size]],Table_PI[[#This Row],[Input 1]],Table_PI[[#This Row],[Input 2]],Table_PI[[#This Row],[Input 3]],Table_PI[[#This Row],[Input 4]],'Customer Information'!$AR$12,200,ROW()),\"\"),\"\")","v":""},{"$f":"IFERROR(IF(MeasureCalc(Table_PI[[#This Row],[Hide:\nFormula Name]],Table_SummaryPI[[#This Row],[Quantity]],Table_PI[[#This Row],[List 1]],Table_PI[[#This Row],[List 2]],Table_PI[[#This Row],[List 3]],Table_PI[[#This Row],[Size]],Table_PI[[#This Row],[Input 1]],Table_PI[[#This Row],[Input 2]],Table_PI[[#This Row],[Input 3]],Table_PI[[#This Row],[Input 4]],'Customer Information'!$AR$12,201,ROW())<>\"No Rebate\",MeasureCalc(Table_PI[[#This Row],[Hide:\nFormula Name]],Table_SummaryPI[[#This Row],[Quantity]],Table_PI[[#This Row],[List 1]],Table_PI[[#This Row],[List 2]],Table_PI[[#This Row],[List 3]],Table_PI[[#This Row],[Size]],Table_PI[[#This Row],[Input 1]],Table_PI[[#This Row],[Input 2]],Table_PI[[#This Row],[Input 3]],Table_PI[[#This Row],[Input 4]],'Customer Information'!$AR$12,201,ROW()),\"\"),\"\")","v":""}]
[{"$f":"Table_PI[[#This Row],[Line No.]]","v":""},{"$f":"IF(Table_SummaryPI[[#This Row],[MeassureCategory]]<>\"\",CONCATENATE(Table_SummaryPI[[#This Row],[MeassureCategory]],  \" - \", Table_SummaryPI[[#This Row],[ProposedMeasureCategory]],  \" - \", TEXT(Table_SummaryPI[[#This Row],[Size]],\"#,##0.00\"),\" \",Table_SummaryPI[[#This Row],[SizeUnit]]),\"\")","v":""},{"$f":"SUBSTITUTE(Table_PI[[#This Row],[Measure]],\"     \",\"\",1)","v":""},{"$f":"IF(Table_PI[[#This Row],[List 1]]<>\"\",Table_PI[[#This Row],[List 1]],\"\")","v":""},{"$f":"IF(Table_PI[[#This Row],[List 2]]<>\"\",Table_PI[[#This Row],[List 2]],\"\")","v":""},{"$f":"IF(Table_PI[[#This Row],[List 3]]<>\"\",Table_PI[[#This Row],[List 3]],\"\")","v":""},{"$f":"IF(Table_PI[[#This Row],[Manufacturer]]=\"\",\"\",Table_PI[[#This Row],[Manufacturer]])","v":""},{"$f":"IF(Table_PI[[#This Row],[Model Number]]=\"\",\"\",Table_PI[[#This Row],[Model Number]])","v":""},{"$f":"IF(Table_PI[[#This Row],[Serial Number(s)]]=\"\",\"\",Table_PI[[#This Row],[Serial Number(s)]])","v":""},null,{"$f":"IF(Table_PI[[#This Row],[Size]]=\"\",\"\",Table_PI[[#This Row],[Size]])","v":""},null,{"$f":"IFERROR(IF(AND(MeasureCalc(Table_PI[[#This Row],[Hide:\nFormula Name]],Table_SummaryPI[[#This Row],[Quantity]],Table_PI[[#This Row],[List 1]],Table_PI[[#This Row],[List 2]],Table_PI[[#This Row],[List 3]],Table_PI[[#This Row],[Size]],Table_PI[[#This Row],[Input 1]],Table_PI[[#This Row],[Input 2]],Table_PI[[#This Row],[Input 3]],Table_PI[[#This Row],[Input 4]],'Customer Information'!$AR$12,100,ROW())<>0,MeasureCalc(Table_PI[[#This Row],[Hide:\nFormula Name]],Table_SummaryPI[[#This Row],[Quantity]],Table_PI[[#This Row],[List 1]],Table_PI[[#This Row],[List 2]],Table_PI[[#This Row],[List 3]],Table_PI[[#This Row],[Size]],Table_PI[[#This Row],[Input 1]],Table_PI[[#This Row],[Input 2]],Table_PI[[#This Row],[Input 3]],Table_PI[[#This Row],[Input 4]],'Customer Information'!$AR$12,100,ROW())<>\"No Rebate\"),MeasureCalc(Table_PI[[#This Row],[Hide:\nFormula Name]],Table_SummaryPI[[#This Row],[Quantity]],Table_PI[[#This Row],[List 1]],Table_PI[[#This Row],[List 2]],Table_PI[[#This Row],[List 3]],Table_PI[[#This Row],[Size]],Table_PI[[#This Row],[Input 1]],Table_PI[[#This Row],[Input 2]],Table_PI[[#This Row],[Input 3]],Table_PI[[#This Row],[Input 4]],'Customer Information'!$AR$12,100,ROW()),\"\"),\"\")","v":""},{"$f":"IF(Table_PI[[#This Row],[Input 1]]<>\"\",Table_PI[[#This Row],[Input 1]],\"\")","v":""},null,{"$f":"IFERROR(IF(AND(MeasureCalc(Table_PI[[#This Row],[Hide:\nFormula Name]],Table_SummaryPI[[#This Row],[Quantity]],Table_PI[[#This Row],[List 1]],Table_PI[[#This Row],[List 2]],Table_PI[[#This Row],[List 3]],Table_PI[[#This Row],[Size]],Table_PI[[#This Row],[Input 1]],Table_PI[[#This Row],[Input 2]],Table_PI[[#This Row],[Input 3]],Table_PI[[#This Row],[Input 4]],'Customer Information'!$AR$12,101,ROW())<>0,MeasureCalc(Table_PI[[#This Row],[Hide:\nFormula Name]],Table_SummaryPI[[#This Row],[Quantity]],Table_PI[[#This Row],[List 1]],Table_PI[[#This Row],[List 2]],Table_PI[[#This Row],[List 3]],Table_PI[[#This Row],[Size]],Table_PI[[#This Row],[Input 1]],Table_PI[[#This Row],[Input 2]],Table_PI[[#This Row],[Input 3]],Table_PI[[#This Row],[Input 4]],'Customer Information'!$AR$12,101,ROW())<>\"No Rebate\"),MeasureCalc(Table_PI[[#This Row],[Hide:\nFormula Name]],Table_SummaryPI[[#This Row],[Quantity]],Table_PI[[#This Row],[List 1]],Table_PI[[#This Row],[List 2]],Table_PI[[#This Row],[List 3]],Table_PI[[#This Row],[Size]],Table_PI[[#This Row],[Input 1]],Table_PI[[#This Row],[Input 2]],Table_PI[[#This Row],[Input 3]],Table_PI[[#This Row],[Input 4]],'Customer Information'!$AR$12,101,ROW()),\"\"),\"\")","v":""},{"$f":"IF(Table_PI[[#This Row],[Input 2]]<>\"\",Table_PI[[#This Row],[Input 2]],\"\")","v":""},null,{"$f":"IFERROR(IF(AND(MeasureCalc(Table_PI[[#This Row],[Hide:\nFormula Name]],Table_SummaryPI[[#This Row],[Quantity]],Table_PI[[#This Row],[List 1]],Table_PI[[#This Row],[List 2]],Table_PI[[#This Row],[List 3]],Table_PI[[#This Row],[Size]],Table_PI[[#This Row],[Input 1]],Table_PI[[#This Row],[Input 2]],Table_PI[[#This Row],[Input 3]],Table_PI[[#This Row],[Input 4]],'Customer Information'!$AR$12,102,ROW())<>0,MeasureCalc(Table_PI[[#This Row],[Hide:\nFormula Name]],Table_SummaryPI[[#This Row],[Quantity]],Table_PI[[#This Row],[List 1]],Table_PI[[#This Row],[List 2]],Table_PI[[#This Row],[List 3]],Table_PI[[#This Row],[Size]],Table_PI[[#This Row],[Input 1]],Table_PI[[#This Row],[Input 2]],Table_PI[[#This Row],[Input 3]],Table_PI[[#This Row],[Input 4]],'Customer Information'!$AR$12,102,ROW())<>\"No Rebate\"),MeasureCalc(Table_PI[[#This Row],[Hide:\nFormula Name]],Table_SummaryPI[[#This Row],[Quantity]],Table_PI[[#This Row],[List 1]],Table_PI[[#This Row],[List 2]],Table_PI[[#This Row],[List 3]],Table_PI[[#This Row],[Size]],Table_PI[[#This Row],[Input 1]],Table_PI[[#This Row],[Input 2]],Table_PI[[#This Row],[Input 3]],Table_PI[[#This Row],[Input 4]],'Customer Information'!$AR$12,102,ROW()),\"\"),\"\")","v":""},{"$f":"IF(Table_PI[[#This Row],[Input 3]]<>\"\",Table_PI[[#This Row],[Input 3]],\"\")","v":""},null,{"$f":"IFERROR(IF(AND(MeasureCalc(Table_PI[[#This Row],[Hide:\nFormula Name]],Table_SummaryPI[[#This Row],[Quantity]],Table_PI[[#This Row],[List 1]],Table_PI[[#This Row],[List 2]],Table_PI[[#This Row],[List 3]],Table_PI[[#This Row],[Size]],Table_PI[[#This Row],[Input 1]],Table_PI[[#This Row],[Input 2]],Table_PI[[#This Row],[Input 3]],Table_PI[[#This Row],[Input 4]],'Customer Information'!$AR$12,103,ROW())<>0,MeasureCalc(Table_PI[[#This Row],[Hide:\nFormula Name]],Table_SummaryPI[[#This Row],[Quantity]],Table_PI[[#This Row],[List 1]],Table_PI[[#This Row],[List 2]],Table_PI[[#This Row],[List 3]],Table_PI[[#This Row],[Size]],Table_PI[[#This Row],[Input 1]],Table_PI[[#This Row],[Input 2]],Table_PI[[#This Row],[Input 3]],Table_PI[[#This Row],[Input 4]],'Customer Information'!$AR$12,103,ROW())<>\"No Rebate\"),MeasureCalc(Table_PI[[#This Row],[Hide:\nFormula Name]],Table_SummaryPI[[#This Row],[Quantity]],Table_PI[[#This Row],[List 1]],Table_PI[[#This Row],[List 2]],Table_PI[[#This Row],[List 3]],Table_PI[[#This Row],[Size]],Table_PI[[#This Row],[Input 1]],Table_PI[[#This Row],[Input 2]],Table_PI[[#This Row],[Input 3]],Table_PI[[#This Row],[Input 4]],'Customer Information'!$AR$12,103,ROW()),\"\"),\"\")","v":""},{"$f":"IF(Table_PI[[#This Row],[Input 4]]<>\"\",Table_PI[[#This Row],[Input 4]],\"\")","v":""},{"$f":"IF(Table_PI[[#This Row],[Quantity]]=\"\",\"\",Table_PI[[#This Row],[Quantity]])","v":""},{"$f":"IF(Table_PI[[#This Row],[Notes]]=\"\",\"\",Table_PI[[#This Row],[Notes]])","v":""},{"$f":"IF(OR(Table_PI[[#This Row],[Hide:\nBaseline kWh]]=\"\",Table_PI[[#This Row],[Hide:\nBaseline kWh]]=0),\"\",Table_PI[[#This Row],[Hide:\nBaseline kWh]])","v":""},{"$f":"IF(OR(Table_PI[[#This Row],[Hide:\nBaseline kW]]=\"\",Table_PI[[#This Row],[Hide:\nBaseline kW]]=0),\"\",Table_PI[[#This Row],[Hide:\nBaseline kW]])","v":""},{"$f":"IF(OR(Table_PI[[#This Row],[Hide:\nProposed kWh]]=\"\",Table_PI[[#This Row],[Hide:\nProposed kWh]]=0),\"\",Table_PI[[#This Row],[Hide:\nProposed kWh]])","v":""},{"$f":"IF(OR(Table_PI[[#This Row],[Hide:\nProposed kW]]=\"\",Table_PI[[#This Row],[Hide:\nProposed kW]]=0),\"\",Table_PI[[#This Row],[Hide:\nProposed kW]])","v":""},{"$f":"IF(OR(Table_PI[[#This Row],[Rebate]]=\"\",Table_PI[[#This Row],[Rebate]]=0),\"\",Table_PI[[#This Row],[Rebate]])","v":""},{"$f":"IF(OR(Table_PI[[#This Row],[Hide:\nIncremental Cost]]=\"\",Table_PI[[#This Row],[Hide:\nIncremental Cost]]=0),\"\",Table_PI[[#This Row],[Hide:\nIncremental Cost]])","v":""},{"$f":"IFERROR(IF(Table_SummaryPI[[#This Row],[kWhSavings]]=\"\",\"\",ROUND(Table_SummaryPI[[#This Row],[kWhSavings]]/$AG$401*'Customer Information'!$BC$17,2)),0)","v":""},{"$f":"IF(OR(Table_PI[[#This Row],[Annual kWh]]=\"\",Table_PI[[#This Row],[Annual kWh]]=0),\"\",Table_PI[[#This Row],[Annual kWh]])","v":""},{"$f":"IF(OR(Table_PI[[#This Row],[Peak kW]]=\"\",Table_PI[[#This Row],[Peak kW]]=0),\"\",Table_PI[[#This Row],[Peak kW]])","v":""},{"$f":"IFERROR(IF(Table_SummaryPI[[#This Row],[kWhSavings]]=\"\",\"\",$AU$9*Table_SummaryPI[[#This Row],[kWhSavings]]),0)","v":""},{"$f":"IFERROR(IF(Table_SummaryPI[[#This Row],[kWhSavings]]=\"\",\"\",$AU$14*Table_SummaryPI[[#This Row],[kWhSavings]]),0)","v":""},{"$f":"IFERROR(IF(Table_SummaryPI[[#This Row],[kWhSavings]]=\"\",\"\",$AU$18*Table_SummaryPI[[#This Row],[kWhSavings]]),0)","v":""},{"$f":"IFERROR(IF(Table_SummaryPI[[#This Row],[kWhSavings]]=\"\",\"\",$AU$22*Table_SummaryPI[[#This Row],[kWhSavings]]),0)","v":""},{"$f":"IFERROR(IF(MeasureCalc(Table_PI[[#This Row],[Hide:\nFormula Name]],Table_SummaryPI[[#This Row],[Quantity]],Table_PI[[#This Row],[List 1]],Table_PI[[#This Row],[List 2]],Table_PI[[#This Row],[List 3]],Table_PI[[#This Row],[Size]],Table_PI[[#This Row],[Input 1]],Table_PI[[#This Row],[Input 2]],Table_PI[[#This Row],[Input 3]],Table_PI[[#This Row],[Input 4]],'Customer Information'!$AR$12,200,ROW())<>\"No Rebate\",MeasureCalc(Table_PI[[#This Row],[Hide:\nFormula Name]],Table_SummaryPI[[#This Row],[Quantity]],Table_PI[[#This Row],[List 1]],Table_PI[[#This Row],[List 2]],Table_PI[[#This Row],[List 3]],Table_PI[[#This Row],[Size]],Table_PI[[#This Row],[Input 1]],Table_PI[[#This Row],[Input 2]],Table_PI[[#This Row],[Input 3]],Table_PI[[#This Row],[Input 4]],'Customer Information'!$AR$12,200,ROW()),\"\"),\"\")","v":""},{"$f":"IFERROR(IF(MeasureCalc(Table_PI[[#This Row],[Hide:\nFormula Name]],Table_SummaryPI[[#This Row],[Quantity]],Table_PI[[#This Row],[List 1]],Table_PI[[#This Row],[List 2]],Table_PI[[#This Row],[List 3]],Table_PI[[#This Row],[Size]],Table_PI[[#This Row],[Input 1]],Table_PI[[#This Row],[Input 2]],Table_PI[[#This Row],[Input 3]],Table_PI[[#This Row],[Input 4]],'Customer Information'!$AR$12,201,ROW())<>\"No Rebate\",MeasureCalc(Table_PI[[#This Row],[Hide:\nFormula Name]],Table_SummaryPI[[#This Row],[Quantity]],Table_PI[[#This Row],[List 1]],Table_PI[[#This Row],[List 2]],Table_PI[[#This Row],[List 3]],Table_PI[[#This Row],[Size]],Table_PI[[#This Row],[Input 1]],Table_PI[[#This Row],[Input 2]],Table_PI[[#This Row],[Input 3]],Table_PI[[#This Row],[Input 4]],'Customer Information'!$AR$12,201,ROW()),\"\"),\"\")","v":""}]
[{"$f":"Table_PI[[#This Row],[Line No.]]","v":""},{"$f":"IF(Table_SummaryPI[[#This Row],[MeassureCategory]]<>\"\",CONCATENATE(Table_SummaryPI[[#This Row],[MeassureCategory]],  \" - \", Table_SummaryPI[[#This Row],[ProposedMeasureCategory]],  \" - \", TEXT(Table_SummaryPI[[#This Row],[Size]],\"#,##0.00\"),\" \",Table_SummaryPI[[#This Row],[SizeUnit]]),\"\")","v":""},{"$f":"SUBSTITUTE(Table_PI[[#This Row],[Measure]],\"     \",\"\",1)","v":""},{"$f":"IF(Table_PI[[#This Row],[List 1]]<>\"\",Table_PI[[#This Row],[List 1]],\"\")","v":""},{"$f":"IF(Table_PI[[#This Row],[List 2]]<>\"\",Table_PI[[#This Row],[List 2]],\"\")","v":""},{"$f":"IF(Table_PI[[#This Row],[List 3]]<>\"\",Table_PI[[#This Row],[List 3]],\"\")","v":""},{"$f":"IF(Table_PI[[#This Row],[Manufacturer]]=\"\",\"\",Table_PI[[#This Row],[Manufacturer]])","v":""},{"$f":"IF(Table_PI[[#This Row],[Model Number]]=\"\",\"\",Table_PI[[#This Row],[Model Number]])","v":""},{"$f":"IF(Table_PI[[#This Row],[Serial Number(s)]]=\"\",\"\",Table_PI[[#This Row],[Serial Number(s)]])","v":""},null,{"$f":"IF(Table_PI[[#This Row],[Size]]=\"\",\"\",Table_PI[[#This Row],[Size]])","v":""},null,{"$f":"IFERROR(IF(AND(MeasureCalc(Table_PI[[#This Row],[Hide:\nFormula Name]],Table_SummaryPI[[#This Row],[Quantity]],Table_PI[[#This Row],[List 1]],Table_PI[[#This Row],[List 2]],Table_PI[[#This Row],[List 3]],Table_PI[[#This Row],[Size]],Table_PI[[#This Row],[Input 1]],Table_PI[[#This Row],[Input 2]],Table_PI[[#This Row],[Input 3]],Table_PI[[#This Row],[Input 4]],'Customer Information'!$AR$12,100,ROW())<>0,MeasureCalc(Table_PI[[#This Row],[Hide:\nFormula Name]],Table_SummaryPI[[#This Row],[Quantity]],Table_PI[[#This Row],[List 1]],Table_PI[[#This Row],[List 2]],Table_PI[[#This Row],[List 3]],Table_PI[[#This Row],[Size]],Table_PI[[#This Row],[Input 1]],Table_PI[[#This Row],[Input 2]],Table_PI[[#This Row],[Input 3]],Table_PI[[#This Row],[Input 4]],'Customer Information'!$AR$12,100,ROW())<>\"No Rebate\"),MeasureCalc(Table_PI[[#This Row],[Hide:\nFormula Name]],Table_SummaryPI[[#This Row],[Quantity]],Table_PI[[#This Row],[List 1]],Table_PI[[#This Row],[List 2]],Table_PI[[#This Row],[List 3]],Table_PI[[#This Row],[Size]],Table_PI[[#This Row],[Input 1]],Table_PI[[#This Row],[Input 2]],Table_PI[[#This Row],[Input 3]],Table_PI[[#This Row],[Input 4]],'Customer Information'!$AR$12,100,ROW()),\"\"),\"\")","v":""},{"$f":"IF(Table_PI[[#This Row],[Input 1]]<>\"\",Table_PI[[#This Row],[Input 1]],\"\")","v":""},null,{"$f":"IFERROR(IF(AND(MeasureCalc(Table_PI[[#This Row],[Hide:\nFormula Name]],Table_SummaryPI[[#This Row],[Quantity]],Table_PI[[#This Row],[List 1]],Table_PI[[#This Row],[List 2]],Table_PI[[#This Row],[List 3]],Table_PI[[#This Row],[Size]],Table_PI[[#This Row],[Input 1]],Table_PI[[#This Row],[Input 2]],Table_PI[[#This Row],[Input 3]],Table_PI[[#This Row],[Input 4]],'Customer Information'!$AR$12,101,ROW())<>0,MeasureCalc(Table_PI[[#This Row],[Hide:\nFormula Name]],Table_SummaryPI[[#This Row],[Quantity]],Table_PI[[#This Row],[List 1]],Table_PI[[#This Row],[List 2]],Table_PI[[#This Row],[List 3]],Table_PI[[#This Row],[Size]],Table_PI[[#This Row],[Input 1]],Table_PI[[#This Row],[Input 2]],Table_PI[[#This Row],[Input 3]],Table_PI[[#This Row],[Input 4]],'Customer Information'!$AR$12,101,ROW())<>\"No Rebate\"),MeasureCalc(Table_PI[[#This Row],[Hide:\nFormula Name]],Table_SummaryPI[[#This Row],[Quantity]],Table_PI[[#This Row],[List 1]],Table_PI[[#This Row],[List 2]],Table_PI[[#This Row],[List 3]],Table_PI[[#This Row],[Size]],Table_PI[[#This Row],[Input 1]],Table_PI[[#This Row],[Input 2]],Table_PI[[#This Row],[Input 3]],Table_PI[[#This Row],[Input 4]],'Customer Information'!$AR$12,101,ROW()),\"\"),\"\")","v":""},{"$f":"IF(Table_PI[[#This Row],[Input 2]]<>\"\",Table_PI[[#This Row],[Input 2]],\"\")","v":""},null,{"$f":"IFERROR(IF(AND(MeasureCalc(Table_PI[[#This Row],[Hide:\nFormula Name]],Table_SummaryPI[[#This Row],[Quantity]],Table_PI[[#This Row],[List 1]],Table_PI[[#This Row],[List 2]],Table_PI[[#This Row],[List 3]],Table_PI[[#This Row],[Size]],Table_PI[[#This Row],[Input 1]],Table_PI[[#This Row],[Input 2]],Table_PI[[#This Row],[Input 3]],Table_PI[[#This Row],[Input 4]],'Customer Information'!$AR$12,102,ROW())<>0,MeasureCalc(Table_PI[[#This Row],[Hide:\nFormula Name]],Table_SummaryPI[[#This Row],[Quantity]],Table_PI[[#This Row],[List 1]],Table_PI[[#This Row],[List 2]],Table_PI[[#This Row],[List 3]],Table_PI[[#This Row],[Size]],Table_PI[[#This Row],[Input 1]],Table_PI[[#This Row],[Input 2]],Table_PI[[#This Row],[Input 3]],Table_PI[[#This Row],[Input 4]],'Customer Information'!$AR$12,102,ROW())<>\"No Rebate\"),MeasureCalc(Table_PI[[#This Row],[Hide:\nFormula Name]],Table_SummaryPI[[#This Row],[Quantity]],Table_PI[[#This Row],[List 1]],Table_PI[[#This Row],[List 2]],Table_PI[[#This Row],[List 3]],Table_PI[[#This Row],[Size]],Table_PI[[#This Row],[Input 1]],Table_PI[[#This Row],[Input 2]],Table_PI[[#This Row],[Input 3]],Table_PI[[#This Row],[Input 4]],'Customer Information'!$AR$12,102,ROW()),\"\"),\"\")","v":""},{"$f":"IF(Table_PI[[#This Row],[Input 3]]<>\"\",Table_PI[[#This Row],[Input 3]],\"\")","v":""},null,{"$f":"IFERROR(IF(AND(MeasureCalc(Table_PI[[#This Row],[Hide:\nFormula Name]],Table_SummaryPI[[#This Row],[Quantity]],Table_PI[[#This Row],[List 1]],Table_PI[[#This Row],[List 2]],Table_PI[[#This Row],[List 3]],Table_PI[[#This Row],[Size]],Table_PI[[#This Row],[Input 1]],Table_PI[[#This Row],[Input 2]],Table_PI[[#This Row],[Input 3]],Table_PI[[#This Row],[Input 4]],'Customer Information'!$AR$12,103,ROW())<>0,MeasureCalc(Table_PI[[#This Row],[Hide:\nFormula Name]],Table_SummaryPI[[#This Row],[Quantity]],Table_PI[[#This Row],[List 1]],Table_PI[[#This Row],[List 2]],Table_PI[[#This Row],[List 3]],Table_PI[[#This Row],[Size]],Table_PI[[#This Row],[Input 1]],Table_PI[[#This Row],[Input 2]],Table_PI[[#This Row],[Input 3]],Table_PI[[#This Row],[Input 4]],'Customer Information'!$AR$12,103,ROW())<>\"No Rebate\"),MeasureCalc(Table_PI[[#This Row],[Hide:\nFormula Name]],Table_SummaryPI[[#This Row],[Quantity]],Table_PI[[#This Row],[List 1]],Table_PI[[#This Row],[List 2]],Table_PI[[#This Row],[List 3]],Table_PI[[#This Row],[Size]],Table_PI[[#This Row],[Input 1]],Table_PI[[#This Row],[Input 2]],Table_PI[[#This Row],[Input 3]],Table_PI[[#This Row],[Input 4]],'Customer Information'!$AR$12,103,ROW()),\"\"),\"\")","v":""},{"$f":"IF(Table_PI[[#This Row],[Input 4]]<>\"\",Table_PI[[#This Row],[Input 4]],\"\")","v":""},{"$f":"IF(Table_PI[[#This Row],[Quantity]]=\"\",\"\",Table_PI[[#This Row],[Quantity]])","v":""},{"$f":"IF(Table_PI[[#This Row],[Notes]]=\"\",\"\",Table_PI[[#This Row],[Notes]])","v":""},{"$f":"IF(OR(Table_PI[[#This Row],[Hide:\nBaseline kWh]]=\"\",Table_PI[[#This Row],[Hide:\nBaseline kWh]]=0),\"\",Table_PI[[#This Row],[Hide:\nBaseline kWh]])","v":""},{"$f":"IF(OR(Table_PI[[#This Row],[Hide:\nBaseline kW]]=\"\",Table_PI[[#This Row],[Hide:\nBaseline kW]]=0),\"\",Table_PI[[#This Row],[Hide:\nBaseline kW]])","v":""},{"$f":"IF(OR(Table_PI[[#This Row],[Hide:\nProposed kWh]]=\"\",Table_PI[[#This Row],[Hide:\nProposed kWh]]=0),\"\",Table_PI[[#This Row],[Hide:\nProposed kWh]])","v":""},{"$f":"IF(OR(Table_PI[[#This Row],[Hide:\nProposed kW]]=\"\",Table_PI[[#This Row],[Hide:\nProposed kW]]=0),\"\",Table_PI[[#This Row],[Hide:\nProposed kW]])","v":""},{"$f":"IF(OR(Table_PI[[#This Row],[Rebate]]=\"\",Table_PI[[#This Row],[Rebate]]=0),\"\",Table_PI[[#This Row],[Rebate]])","v":""},{"$f":"IF(OR(Table_PI[[#This Row],[Hide:\nIncremental Cost]]=\"\",Table_PI[[#This Row],[Hide:\nIncremental Cost]]=0),\"\",Table_PI[[#This Row],[Hide:\nIncremental Cost]])","v":""},{"$f":"IFERROR(IF(Table_SummaryPI[[#This Row],[kWhSavings]]=\"\",\"\",ROUND(Table_SummaryPI[[#This Row],[kWhSavings]]/$AG$401*'Customer Information'!$BC$17,2)),0)","v":""},{"$f":"IF(OR(Table_PI[[#This Row],[Annual kWh]]=\"\",Table_PI[[#This Row],[Annual kWh]]=0),\"\",Table_PI[[#This Row],[Annual kWh]])","v":""},{"$f":"IF(OR(Table_PI[[#This Row],[Peak kW]]=\"\",Table_PI[[#This Row],[Peak kW]]=0),\"\",Table_PI[[#This Row],[Peak kW]])","v":""},{"$f":"IFERROR(IF(Table_SummaryPI[[#This Row],[kWhSavings]]=\"\",\"\",$AU$9*Table_SummaryPI[[#This Row],[kWhSavings]]),0)","v":""},{"$f":"IFERROR(IF(Table_SummaryPI[[#This Row],[kWhSavings]]=\"\",\"\",$AU$14*Table_SummaryPI[[#This Row],[kWhSavings]]),0)","v":""},{"$f":"IFERROR(IF(Table_SummaryPI[[#This Row],[kWhSavings]]=\"\",\"\",$AU$18*Table_SummaryPI[[#This Row],[kWhSavings]]),0)","v":""},{"$f":"IFERROR(IF(Table_SummaryPI[[#This Row],[kWhSavings]]=\"\",\"\",$AU$22*Table_SummaryPI[[#This Row],[kWhSavings]]),0)","v":""},{"$f":"IFERROR(IF(MeasureCalc(Table_PI[[#This Row],[Hide:\nFormula Name]],Table_SummaryPI[[#This Row],[Quantity]],Table_PI[[#This Row],[List 1]],Table_PI[[#This Row],[List 2]],Table_PI[[#This Row],[List 3]],Table_PI[[#This Row],[Size]],Table_PI[[#This Row],[Input 1]],Table_PI[[#This Row],[Input 2]],Table_PI[[#This Row],[Input 3]],Table_PI[[#This Row],[Input 4]],'Customer Information'!$AR$12,200,ROW())<>\"No Rebate\",MeasureCalc(Table_PI[[#This Row],[Hide:\nFormula Name]],Table_SummaryPI[[#This Row],[Quantity]],Table_PI[[#This Row],[List 1]],Table_PI[[#This Row],[List 2]],Table_PI[[#This Row],[List 3]],Table_PI[[#This Row],[Size]],Table_PI[[#This Row],[Input 1]],Table_PI[[#This Row],[Input 2]],Table_PI[[#This Row],[Input 3]],Table_PI[[#This Row],[Input 4]],'Customer Information'!$AR$12,200,ROW()),\"\"),\"\")","v":""},{"$f":"IFERROR(IF(MeasureCalc(Table_PI[[#This Row],[Hide:\nFormula Name]],Table_SummaryPI[[#This Row],[Quantity]],Table_PI[[#This Row],[List 1]],Table_PI[[#This Row],[List 2]],Table_PI[[#This Row],[List 3]],Table_PI[[#This Row],[Size]],Table_PI[[#This Row],[Input 1]],Table_PI[[#This Row],[Input 2]],Table_PI[[#This Row],[Input 3]],Table_PI[[#This Row],[Input 4]],'Customer Information'!$AR$12,201,ROW())<>\"No Rebate\",MeasureCalc(Table_PI[[#This Row],[Hide:\nFormula Name]],Table_SummaryPI[[#This Row],[Quantity]],Table_PI[[#This Row],[List 1]],Table_PI[[#This Row],[List 2]],Table_PI[[#This Row],[List 3]],Table_PI[[#This Row],[Size]],Table_PI[[#This Row],[Input 1]],Table_PI[[#This Row],[Input 2]],Table_PI[[#This Row],[Input 3]],Table_PI[[#This Row],[Input 4]],'Customer Information'!$AR$12,201,ROW()),\"\"),\"\")","v":""}]
[{"$f":"Table_PI[[#This Row],[Line No.]]","v":""},{"$f":"IF(Table_SummaryPI[[#This Row],[MeassureCategory]]<>\"\",CONCATENATE(Table_SummaryPI[[#This Row],[MeassureCategory]],  \" - \", Table_SummaryPI[[#This Row],[ProposedMeasureCategory]],  \" - \", TEXT(Table_SummaryPI[[#This Row],[Size]],\"#,##0.00\"),\" \",Table_SummaryPI[[#This Row],[SizeUnit]]),\"\")","v":""},{"$f":"SUBSTITUTE(Table_PI[[#This Row],[Measure]],\"     \",\"\",1)","v":""},{"$f":"IF(Table_PI[[#This Row],[List 1]]<>\"\",Table_PI[[#This Row],[List 1]],\"\")","v":""},{"$f":"IF(Table_PI[[#This Row],[List 2]]<>\"\",Table_PI[[#This Row],[List 2]],\"\")","v":""},{"$f":"IF(Table_PI[[#This Row],[List 3]]<>\"\",Table_PI[[#This Row],[List 3]],\"\")","v":""},{"$f":"IF(Table_PI[[#This Row],[Manufacturer]]=\"\",\"\",Table_PI[[#This Row],[Manufacturer]])","v":""},{"$f":"IF(Table_PI[[#This Row],[Model Number]]=\"\",\"\",Table_PI[[#This Row],[Model Number]])","v":""},{"$f":"IF(Table_PI[[#This Row],[Serial Number(s)]]=\"\",\"\",Table_PI[[#This Row],[Serial Number(s)]])","v":""},null,{"$f":"IF(Table_PI[[#This Row],[Size]]=\"\",\"\",Table_PI[[#This Row],[Size]])","v":""},null,{"$f":"IFERROR(IF(AND(MeasureCalc(Table_PI[[#This Row],[Hide:\nFormula Name]],Table_SummaryPI[[#This Row],[Quantity]],Table_PI[[#This Row],[List 1]],Table_PI[[#This Row],[List 2]],Table_PI[[#This Row],[List 3]],Table_PI[[#This Row],[Size]],Table_PI[[#This Row],[Input 1]],Table_PI[[#This Row],[Input 2]],Table_PI[[#This Row],[Input 3]],Table_PI[[#This Row],[Input 4]],'Customer Information'!$AR$12,100,ROW())<>0,MeasureCalc(Table_PI[[#This Row],[Hide:\nFormula Name]],Table_SummaryPI[[#This Row],[Quantity]],Table_PI[[#This Row],[List 1]],Table_PI[[#This Row],[List 2]],Table_PI[[#This Row],[List 3]],Table_PI[[#This Row],[Size]],Table_PI[[#This Row],[Input 1]],Table_PI[[#This Row],[Input 2]],Table_PI[[#This Row],[Input 3]],Table_PI[[#This Row],[Input 4]],'Customer Information'!$AR$12,100,ROW())<>\"No Rebate\"),MeasureCalc(Table_PI[[#This Row],[Hide:\nFormula Name]],Table_SummaryPI[[#This Row],[Quantity]],Table_PI[[#This Row],[List 1]],Table_PI[[#This Row],[List 2]],Table_PI[[#This Row],[List 3]],Table_PI[[#This Row],[Size]],Table_PI[[#This Row],[Input 1]],Table_PI[[#This Row],[Input 2]],Table_PI[[#This Row],[Input 3]],Table_PI[[#This Row],[Input 4]],'Customer Information'!$AR$12,100,ROW()),\"\"),\"\")","v":""},{"$f":"IF(Table_PI[[#This Row],[Input 1]]<>\"\",Table_PI[[#This Row],[Input 1]],\"\")","v":""},null,{"$f":"IFERROR(IF(AND(MeasureCalc(Table_PI[[#This Row],[Hide:\nFormula Name]],Table_SummaryPI[[#This Row],[Quantity]],Table_PI[[#This Row],[List 1]],Table_PI[[#This Row],[List 2]],Table_PI[[#This Row],[List 3]],Table_PI[[#This Row],[Size]],Table_PI[[#This Row],[Input 1]],Table_PI[[#This Row],[Input 2]],Table_PI[[#This Row],[Input 3]],Table_PI[[#This Row],[Input 4]],'Customer Information'!$AR$12,101,ROW())<>0,MeasureCalc(Table_PI[[#This Row],[Hide:\nFormula Name]],Table_SummaryPI[[#This Row],[Quantity]],Table_PI[[#This Row],[List 1]],Table_PI[[#This Row],[List 2]],Table_PI[[#This Row],[List 3]],Table_PI[[#This Row],[Size]],Table_PI[[#This Row],[Input 1]],Table_PI[[#This Row],[Input 2]],Table_PI[[#This Row],[Input 3]],Table_PI[[#This Row],[Input 4]],'Customer Information'!$AR$12,101,ROW())<>\"No Rebate\"),MeasureCalc(Table_PI[[#This Row],[Hide:\nFormula Name]],Table_SummaryPI[[#This Row],[Quantity]],Table_PI[[#This Row],[List 1]],Table_PI[[#This Row],[List 2]],Table_PI[[#This Row],[List 3]],Table_PI[[#This Row],[Size]],Table_PI[[#This Row],[Input 1]],Table_PI[[#This Row],[Input 2]],Table_PI[[#This Row],[Input 3]],Table_PI[[#This Row],[Input 4]],'Customer Information'!$AR$12,101,ROW()),\"\"),\"\")","v":""},{"$f":"IF(Table_PI[[#This Row],[Input 2]]<>\"\",Table_PI[[#This Row],[Input 2]],\"\")","v":""},null,{"$f":"IFERROR(IF(AND(MeasureCalc(Table_PI[[#This Row],[Hide:\nFormula Name]],Table_SummaryPI[[#This Row],[Quantity]],Table_PI[[#This Row],[List 1]],Table_PI[[#This Row],[List 2]],Table_PI[[#This Row],[List 3]],Table_PI[[#This Row],[Size]],Table_PI[[#This Row],[Input 1]],Table_PI[[#This Row],[Input 2]],Table_PI[[#This Row],[Input 3]],Table_PI[[#This Row],[Input 4]],'Customer Information'!$AR$12,102,ROW())<>0,MeasureCalc(Table_PI[[#This Row],[Hide:\nFormula Name]],Table_SummaryPI[[#This Row],[Quantity]],Table_PI[[#This Row],[List 1]],Table_PI[[#This Row],[List 2]],Table_PI[[#This Row],[List 3]],Table_PI[[#This Row],[Size]],Table_PI[[#This Row],[Input 1]],Table_PI[[#This Row],[Input 2]],Table_PI[[#This Row],[Input 3]],Table_PI[[#This Row],[Input 4]],'Customer Information'!$AR$12,102,ROW())<>\"No Rebate\"),MeasureCalc(Table_PI[[#This Row],[Hide:\nFormula Name]],Table_SummaryPI[[#This Row],[Quantity]],Table_PI[[#This Row],[List 1]],Table_PI[[#This Row],[List 2]],Table_PI[[#This Row],[List 3]],Table_PI[[#This Row],[Size]],Table_PI[[#This Row],[Input 1]],Table_PI[[#This Row],[Input 2]],Table_PI[[#This Row],[Input 3]],Table_PI[[#This Row],[Input 4]],'Customer Information'!$AR$12,102,ROW()),\"\"),\"\")","v":""},{"$f":"IF(Table_PI[[#This Row],[Input 3]]<>\"\",Table_PI[[#This Row],[Input 3]],\"\")","v":""},null,{"$f":"IFERROR(IF(AND(MeasureCalc(Table_PI[[#This Row],[Hide:\nFormula Name]],Table_SummaryPI[[#This Row],[Quantity]],Table_PI[[#This Row],[List 1]],Table_PI[[#This Row],[List 2]],Table_PI[[#This Row],[List 3]],Table_PI[[#This Row],[Size]],Table_PI[[#This Row],[Input 1]],Table_PI[[#This Row],[Input 2]],Table_PI[[#This Row],[Input 3]],Table_PI[[#This Row],[Input 4]],'Customer Information'!$AR$12,103,ROW())<>0,MeasureCalc(Table_PI[[#This Row],[Hide:\nFormula Name]],Table_SummaryPI[[#This Row],[Quantity]],Table_PI[[#This Row],[List 1]],Table_PI[[#This Row],[List 2]],Table_PI[[#This Row],[List 3]],Table_PI[[#This Row],[Size]],Table_PI[[#This Row],[Input 1]],Table_PI[[#This Row],[Input 2]],Table_PI[[#This Row],[Input 3]],Table_PI[[#This Row],[Input 4]],'Customer Information'!$AR$12,103,ROW())<>\"No Rebate\"),MeasureCalc(Table_PI[[#This Row],[Hide:\nFormula Name]],Table_SummaryPI[[#This Row],[Quantity]],Table_PI[[#This Row],[List 1]],Table_PI[[#This Row],[List 2]],Table_PI[[#This Row],[List 3]],Table_PI[[#This Row],[Size]],Table_PI[[#This Row],[Input 1]],Table_PI[[#This Row],[Input 2]],Table_PI[[#This Row],[Input 3]],Table_PI[[#This Row],[Input 4]],'Customer Information'!$AR$12,103,ROW()),\"\"),\"\")","v":""},{"$f":"IF(Table_PI[[#This Row],[Input 4]]<>\"\",Table_PI[[#This Row],[Input 4]],\"\")","v":""},{"$f":"IF(Table_PI[[#This Row],[Quantity]]=\"\",\"\",Table_PI[[#This Row],[Quantity]])","v":""},{"$f":"IF(Table_PI[[#This Row],[Notes]]=\"\",\"\",Table_PI[[#This Row],[Notes]])","v":""},{"$f":"IF(OR(Table_PI[[#This Row],[Hide:\nBaseline kWh]]=\"\",Table_PI[[#This Row],[Hide:\nBaseline kWh]]=0),\"\",Table_PI[[#This Row],[Hide:\nBaseline kWh]])","v":""},{"$f":"IF(OR(Table_PI[[#This Row],[Hide:\nBaseline kW]]=\"\",Table_PI[[#This Row],[Hide:\nBaseline kW]]=0),\"\",Table_PI[[#This Row],[Hide:\nBaseline kW]])","v":""},{"$f":"IF(OR(Table_PI[[#This Row],[Hide:\nProposed kWh]]=\"\",Table_PI[[#This Row],[Hide:\nProposed kWh]]=0),\"\",Table_PI[[#This Row],[Hide:\nProposed kWh]])","v":""},{"$f":"IF(OR(Table_PI[[#This Row],[Hide:\nProposed kW]]=\"\",Table_PI[[#This Row],[Hide:\nProposed kW]]=0),\"\",Table_PI[[#This Row],[Hide:\nProposed kW]])","v":""},{"$f":"IF(OR(Table_PI[[#This Row],[Rebate]]=\"\",Table_PI[[#This Row],[Rebate]]=0),\"\",Table_PI[[#This Row],[Rebate]])","v":""},{"$f":"IF(OR(Table_PI[[#This Row],[Hide:\nIncremental Cost]]=\"\",Table_PI[[#This Row],[Hide:\nIncremental Cost]]=0),\"\",Table_PI[[#This Row],[Hide:\nIncremental Cost]])","v":""},{"$f":"IFERROR(IF(Table_SummaryPI[[#This Row],[kWhSavings]]=\"\",\"\",ROUND(Table_SummaryPI[[#This Row],[kWhSavings]]/$AG$401*'Customer Information'!$BC$17,2)),0)","v":""},{"$f":"IF(OR(Table_PI[[#This Row],[Annual kWh]]=\"\",Table_PI[[#This Row],[Annual kWh]]=0),\"\",Table_PI[[#This Row],[Annual kWh]])","v":""},{"$f":"IF(OR(Table_PI[[#This Row],[Peak kW]]=\"\",Table_PI[[#This Row],[Peak kW]]=0),\"\",Table_PI[[#This Row],[Peak kW]])","v":""},{"$f":"IFERROR(IF(Table_SummaryPI[[#This Row],[kWhSavings]]=\"\",\"\",$AU$9*Table_SummaryPI[[#This Row],[kWhSavings]]),0)","v":""},{"$f":"IFERROR(IF(Table_SummaryPI[[#This Row],[kWhSavings]]=\"\",\"\",$AU$14*Table_SummaryPI[[#This Row],[kWhSavings]]),0)","v":""},{"$f":"IFERROR(IF(Table_SummaryPI[[#This Row],[kWhSavings]]=\"\",\"\",$AU$18*Table_SummaryPI[[#This Row],[kWhSavings]]),0)","v":""},{"$f":"IFERROR(IF(Table_SummaryPI[[#This Row],[kWhSavings]]=\"\",\"\",$AU$22*Table_SummaryPI[[#This Row],[kWhSavings]]),0)","v":""},{"$f":"IFERROR(IF(MeasureCalc(Table_PI[[#This Row],[Hide:\nFormula Name]],Table_SummaryPI[[#This Row],[Quantity]],Table_PI[[#This Row],[List 1]],Table_PI[[#This Row],[List 2]],Table_PI[[#This Row],[List 3]],Table_PI[[#This Row],[Size]],Table_PI[[#This Row],[Input 1]],Table_PI[[#This Row],[Input 2]],Table_PI[[#This Row],[Input 3]],Table_PI[[#This Row],[Input 4]],'Customer Information'!$AR$12,200,ROW())<>\"No Rebate\",MeasureCalc(Table_PI[[#This Row],[Hide:\nFormula Name]],Table_SummaryPI[[#This Row],[Quantity]],Table_PI[[#This Row],[List 1]],Table_PI[[#This Row],[List 2]],Table_PI[[#This Row],[List 3]],Table_PI[[#This Row],[Size]],Table_PI[[#This Row],[Input 1]],Table_PI[[#This Row],[Input 2]],Table_PI[[#This Row],[Input 3]],Table_PI[[#This Row],[Input 4]],'Customer Information'!$AR$12,200,ROW()),\"\"),\"\")","v":""},{"$f":"IFERROR(IF(MeasureCalc(Table_PI[[#This Row],[Hide:\nFormula Name]],Table_SummaryPI[[#This Row],[Quantity]],Table_PI[[#This Row],[List 1]],Table_PI[[#This Row],[List 2]],Table_PI[[#This Row],[List 3]],Table_PI[[#This Row],[Size]],Table_PI[[#This Row],[Input 1]],Table_PI[[#This Row],[Input 2]],Table_PI[[#This Row],[Input 3]],Table_PI[[#This Row],[Input 4]],'Customer Information'!$AR$12,201,ROW())<>\"No Rebate\",MeasureCalc(Table_PI[[#This Row],[Hide:\nFormula Name]],Table_SummaryPI[[#This Row],[Quantity]],Table_PI[[#This Row],[List 1]],Table_PI[[#This Row],[List 2]],Table_PI[[#This Row],[List 3]],Table_PI[[#This Row],[Size]],Table_PI[[#This Row],[Input 1]],Table_PI[[#This Row],[Input 2]],Table_PI[[#This Row],[Input 3]],Table_PI[[#This Row],[Input 4]],'Customer Information'!$AR$12,201,ROW()),\"\"),\"\")","v":""}]
[{"$f":"Table_PI[[#This Row],[Line No.]]","v":""},{"$f":"IF(Table_SummaryPI[[#This Row],[MeassureCategory]]<>\"\",CONCATENATE(Table_SummaryPI[[#This Row],[MeassureCategory]],  \" - \", Table_SummaryPI[[#This Row],[ProposedMeasureCategory]],  \" - \", TEXT(Table_SummaryPI[[#This Row],[Size]],\"#,##0.00\"),\" \",Table_SummaryPI[[#This Row],[SizeUnit]]),\"\")","v":""},{"$f":"SUBSTITUTE(Table_PI[[#This Row],[Measure]],\"     \",\"\",1)","v":""},{"$f":"IF(Table_PI[[#This Row],[List 1]]<>\"\",Table_PI[[#This Row],[List 1]],\"\")","v":""},{"$f":"IF(Table_PI[[#This Row],[List 2]]<>\"\",Table_PI[[#This Row],[List 2]],\"\")","v":""},{"$f":"IF(Table_PI[[#This Row],[List 3]]<>\"\",Table_PI[[#This Row],[List 3]],\"\")","v":""},{"$f":"IF(Table_PI[[#This Row],[Manufacturer]]=\"\",\"\",Table_PI[[#This Row],[Manufacturer]])","v":""},{"$f":"IF(Table_PI[[#This Row],[Model Number]]=\"\",\"\",Table_PI[[#This Row],[Model Number]])","v":""},{"$f":"IF(Table_PI[[#This Row],[Serial Number(s)]]=\"\",\"\",Table_PI[[#This Row],[Serial Number(s)]])","v":""},null,{"$f":"IF(Table_PI[[#This Row],[Size]]=\"\",\"\",Table_PI[[#This Row],[Size]])","v":""},null,{"$f":"IFERROR(IF(AND(MeasureCalc(Table_PI[[#This Row],[Hide:\nFormula Name]],Table_SummaryPI[[#This Row],[Quantity]],Table_PI[[#This Row],[List 1]],Table_PI[[#This Row],[List 2]],Table_PI[[#This Row],[List 3]],Table_PI[[#This Row],[Size]],Table_PI[[#This Row],[Input 1]],Table_PI[[#This Row],[Input 2]],Table_PI[[#This Row],[Input 3]],Table_PI[[#This Row],[Input 4]],'Customer Information'!$AR$12,100,ROW())<>0,MeasureCalc(Table_PI[[#This Row],[Hide:\nFormula Name]],Table_SummaryPI[[#This Row],[Quantity]],Table_PI[[#This Row],[List 1]],Table_PI[[#This Row],[List 2]],Table_PI[[#This Row],[List 3]],Table_PI[[#This Row],[Size]],Table_PI[[#This Row],[Input 1]],Table_PI[[#This Row],[Input 2]],Table_PI[[#This Row],[Input 3]],Table_PI[[#This Row],[Input 4]],'Customer Information'!$AR$12,100,ROW())<>\"No Rebate\"),MeasureCalc(Table_PI[[#This Row],[Hide:\nFormula Name]],Table_SummaryPI[[#This Row],[Quantity]],Table_PI[[#This Row],[List 1]],Table_PI[[#This Row],[List 2]],Table_PI[[#This Row],[List 3]],Table_PI[[#This Row],[Size]],Table_PI[[#This Row],[Input 1]],Table_PI[[#This Row],[Input 2]],Table_PI[[#This Row],[Input 3]],Table_PI[[#This Row],[Input 4]],'Customer Information'!$AR$12,100,ROW()),\"\"),\"\")","v":""},{"$f":"IF(Table_PI[[#This Row],[Input 1]]<>\"\",Table_PI[[#This Row],[Input 1]],\"\")","v":""},null,{"$f":"IFERROR(IF(AND(MeasureCalc(Table_PI[[#This Row],[Hide:\nFormula Name]],Table_SummaryPI[[#This Row],[Quantity]],Table_PI[[#This Row],[List 1]],Table_PI[[#This Row],[List 2]],Table_PI[[#This Row],[List 3]],Table_PI[[#This Row],[Size]],Table_PI[[#This Row],[Input 1]],Table_PI[[#This Row],[Input 2]],Table_PI[[#This Row],[Input 3]],Table_PI[[#This Row],[Input 4]],'Customer Information'!$AR$12,101,ROW())<>0,MeasureCalc(Table_PI[[#This Row],[Hide:\nFormula Name]],Table_SummaryPI[[#This Row],[Quantity]],Table_PI[[#This Row],[List 1]],Table_PI[[#This Row],[List 2]],Table_PI[[#This Row],[List 3]],Table_PI[[#This Row],[Size]],Table_PI[[#This Row],[Input 1]],Table_PI[[#This Row],[Input 2]],Table_PI[[#This Row],[Input 3]],Table_PI[[#This Row],[Input 4]],'Customer Information'!$AR$12,101,ROW())<>\"No Rebate\"),MeasureCalc(Table_PI[[#This Row],[Hide:\nFormula Name]],Table_SummaryPI[[#This Row],[Quantity]],Table_PI[[#This Row],[List 1]],Table_PI[[#This Row],[List 2]],Table_PI[[#This Row],[List 3]],Table_PI[[#This Row],[Size]],Table_PI[[#This Row],[Input 1]],Table_PI[[#This Row],[Input 2]],Table_PI[[#This Row],[Input 3]],Table_PI[[#This Row],[Input 4]],'Customer Information'!$AR$12,101,ROW()),\"\"),\"\")","v":""},{"$f":"IF(Table_PI[[#This Row],[Input 2]]<>\"\",Table_PI[[#This Row],[Input 2]],\"\")","v":""},null,{"$f":"IFERROR(IF(AND(MeasureCalc(Table_PI[[#This Row],[Hide:\nFormula Name]],Table_SummaryPI[[#This Row],[Quantity]],Table_PI[[#This Row],[List 1]],Table_PI[[#This Row],[List 2]],Table_PI[[#This Row],[List 3]],Table_PI[[#This Row],[Size]],Table_PI[[#This Row],[Input 1]],Table_PI[[#This Row],[Input 2]],Table_PI[[#This Row],[Input 3]],Table_PI[[#This Row],[Input 4]],'Customer Information'!$AR$12,102,ROW())<>0,MeasureCalc(Table_PI[[#This Row],[Hide:\nFormula Name]],Table_SummaryPI[[#This Row],[Quantity]],Table_PI[[#This Row],[List 1]],Table_PI[[#This Row],[List 2]],Table_PI[[#This Row],[List 3]],Table_PI[[#This Row],[Size]],Table_PI[[#This Row],[Input 1]],Table_PI[[#This Row],[Input 2]],Table_PI[[#This Row],[Input 3]],Table_PI[[#This Row],[Input 4]],'Customer Information'!$AR$12,102,ROW())<>\"No Rebate\"),MeasureCalc(Table_PI[[#This Row],[Hide:\nFormula Name]],Table_SummaryPI[[#This Row],[Quantity]],Table_PI[[#This Row],[List 1]],Table_PI[[#This Row],[List 2]],Table_PI[[#This Row],[List 3]],Table_PI[[#This Row],[Size]],Table_PI[[#This Row],[Input 1]],Table_PI[[#This Row],[Input 2]],Table_PI[[#This Row],[Input 3]],Table_PI[[#This Row],[Input 4]],'Customer Information'!$AR$12,102,ROW()),\"\"),\"\")","v":""},{"$f":"IF(Table_PI[[#This Row],[Input 3]]<>\"\",Table_PI[[#This Row],[Input 3]],\"\")","v":""},null,{"$f":"IFERROR(IF(AND(MeasureCalc(Table_PI[[#This Row],[Hide:\nFormula Name]],Table_SummaryPI[[#This Row],[Quantity]],Table_PI[[#This Row],[List 1]],Table_PI[[#This Row],[List 2]],Table_PI[[#This Row],[List 3]],Table_PI[[#This Row],[Size]],Table_PI[[#This Row],[Input 1]],Table_PI[[#This Row],[Input 2]],Table_PI[[#This Row],[Input 3]],Table_PI[[#This Row],[Input 4]],'Customer Information'!$AR$12,103,ROW())<>0,MeasureCalc(Table_PI[[#This Row],[Hide:\nFormula Name]],Table_SummaryPI[[#This Row],[Quantity]],Table_PI[[#This Row],[List 1]],Table_PI[[#This Row],[List 2]],Table_PI[[#This Row],[List 3]],Table_PI[[#This Row],[Size]],Table_PI[[#This Row],[Input 1]],Table_PI[[#This Row],[Input 2]],Table_PI[[#This Row],[Input 3]],Table_PI[[#This Row],[Input 4]],'Customer Information'!$AR$12,103,ROW())<>\"No Rebate\"),MeasureCalc(Table_PI[[#This Row],[Hide:\nFormula Name]],Table_SummaryPI[[#This Row],[Quantity]],Table_PI[[#This Row],[List 1]],Table_PI[[#This Row],[List 2]],Table_PI[[#This Row],[List 3]],Table_PI[[#This Row],[Size]],Table_PI[[#This Row],[Input 1]],Table_PI[[#This Row],[Input 2]],Table_PI[[#This Row],[Input 3]],Table_PI[[#This Row],[Input 4]],'Customer Information'!$AR$12,103,ROW()),\"\"),\"\")","v":""},{"$f":"IF(Table_PI[[#This Row],[Input 4]]<>\"\",Table_PI[[#This Row],[Input 4]],\"\")","v":""},{"$f":"IF(Table_PI[[#This Row],[Quantity]]=\"\",\"\",Table_PI[[#This Row],[Quantity]])","v":""},{"$f":"IF(Table_PI[[#This Row],[Notes]]=\"\",\"\",Table_PI[[#This Row],[Notes]])","v":""},{"$f":"IF(OR(Table_PI[[#This Row],[Hide:\nBaseline kWh]]=\"\",Table_PI[[#This Row],[Hide:\nBaseline kWh]]=0),\"\",Table_PI[[#This Row],[Hide:\nBaseline kWh]])","v":""},{"$f":"IF(OR(Table_PI[[#This Row],[Hide:\nBaseline kW]]=\"\",Table_PI[[#This Row],[Hide:\nBaseline kW]]=0),\"\",Table_PI[[#This Row],[Hide:\nBaseline kW]])","v":""},{"$f":"IF(OR(Table_PI[[#This Row],[Hide:\nProposed kWh]]=\"\",Table_PI[[#This Row],[Hide:\nProposed kWh]]=0),\"\",Table_PI[[#This Row],[Hide:\nProposed kWh]])","v":""},{"$f":"IF(OR(Table_PI[[#This Row],[Hide:\nProposed kW]]=\"\",Table_PI[[#This Row],[Hide:\nProposed kW]]=0),\"\",Table_PI[[#This Row],[Hide:\nProposed kW]])","v":""},{"$f":"IF(OR(Table_PI[[#This Row],[Rebate]]=\"\",Table_PI[[#This Row],[Rebate]]=0),\"\",Table_PI[[#This Row],[Rebate]])","v":""},{"$f":"IF(OR(Table_PI[[#This Row],[Hide:\nIncremental Cost]]=\"\",Table_PI[[#This Row],[Hide:\nIncremental Cost]]=0),\"\",Table_PI[[#This Row],[Hide:\nIncremental Cost]])","v":""},{"$f":"IFERROR(IF(Table_SummaryPI[[#This Row],[kWhSavings]]=\"\",\"\",ROUND(Table_SummaryPI[[#This Row],[kWhSavings]]/$AG$401*'Customer Information'!$BC$17,2)),0)","v":""},{"$f":"IF(OR(Table_PI[[#This Row],[Annual kWh]]=\"\",Table_PI[[#This Row],[Annual kWh]]=0),\"\",Table_PI[[#This Row],[Annual kWh]])","v":""},{"$f":"IF(OR(Table_PI[[#This Row],[Peak kW]]=\"\",Table_PI[[#This Row],[Peak kW]]=0),\"\",Table_PI[[#This Row],[Peak kW]])","v":""},{"$f":"IFERROR(IF(Table_SummaryPI[[#This Row],[kWhSavings]]=\"\",\"\",$AU$9*Table_SummaryPI[[#This Row],[kWhSavings]]),0)","v":""},{"$f":"IFERROR(IF(Table_SummaryPI[[#This Row],[kWhSavings]]=\"\",\"\",$AU$14*Table_SummaryPI[[#This Row],[kWhSavings]]),0)","v":""},{"$f":"IFERROR(IF(Table_SummaryPI[[#This Row],[kWhSavings]]=\"\",\"\",$AU$18*Table_SummaryPI[[#This Row],[kWhSavings]]),0)","v":""},{"$f":"IFERROR(IF(Table_SummaryPI[[#This Row],[kWhSavings]]=\"\",\"\",$AU$22*Table_SummaryPI[[#This Row],[kWhSavings]]),0)","v":""},{"$f":"IFERROR(IF(MeasureCalc(Table_PI[[#This Row],[Hide:\nFormula Name]],Table_SummaryPI[[#This Row],[Quantity]],Table_PI[[#This Row],[List 1]],Table_PI[[#This Row],[List 2]],Table_PI[[#This Row],[List 3]],Table_PI[[#This Row],[Size]],Table_PI[[#This Row],[Input 1]],Table_PI[[#This Row],[Input 2]],Table_PI[[#This Row],[Input 3]],Table_PI[[#This Row],[Input 4]],'Customer Information'!$AR$12,200,ROW())<>\"No Rebate\",MeasureCalc(Table_PI[[#This Row],[Hide:\nFormula Name]],Table_SummaryPI[[#This Row],[Quantity]],Table_PI[[#This Row],[List 1]],Table_PI[[#This Row],[List 2]],Table_PI[[#This Row],[List 3]],Table_PI[[#This Row],[Size]],Table_PI[[#This Row],[Input 1]],Table_PI[[#This Row],[Input 2]],Table_PI[[#This Row],[Input 3]],Table_PI[[#This Row],[Input 4]],'Customer Information'!$AR$12,200,ROW()),\"\"),\"\")","v":""},{"$f":"IFERROR(IF(MeasureCalc(Table_PI[[#This Row],[Hide:\nFormula Name]],Table_SummaryPI[[#This Row],[Quantity]],Table_PI[[#This Row],[List 1]],Table_PI[[#This Row],[List 2]],Table_PI[[#This Row],[List 3]],Table_PI[[#This Row],[Size]],Table_PI[[#This Row],[Input 1]],Table_PI[[#This Row],[Input 2]],Table_PI[[#This Row],[Input 3]],Table_PI[[#This Row],[Input 4]],'Customer Information'!$AR$12,201,ROW())<>\"No Rebate\",MeasureCalc(Table_PI[[#This Row],[Hide:\nFormula Name]],Table_SummaryPI[[#This Row],[Quantity]],Table_PI[[#This Row],[List 1]],Table_PI[[#This Row],[List 2]],Table_PI[[#This Row],[List 3]],Table_PI[[#This Row],[Size]],Table_PI[[#This Row],[Input 1]],Table_PI[[#This Row],[Input 2]],Table_PI[[#This Row],[Input 3]],Table_PI[[#This Row],[Input 4]],'Customer Information'!$AR$12,201,ROW()),\"\"),\"\")","v":""}]
[{"$f":"Table_PI[[#This Row],[Line No.]]","v":""},{"$f":"IF(Table_SummaryPI[[#This Row],[MeassureCategory]]<>\"\",CONCATENATE(Table_SummaryPI[[#This Row],[MeassureCategory]],  \" - \", Table_SummaryPI[[#This Row],[ProposedMeasureCategory]],  \" - \", TEXT(Table_SummaryPI[[#This Row],[Size]],\"#,##0.00\"),\" \",Table_SummaryPI[[#This Row],[SizeUnit]]),\"\")","v":""},{"$f":"SUBSTITUTE(Table_PI[[#This Row],[Measure]],\"     \",\"\",1)","v":""},{"$f":"IF(Table_PI[[#This Row],[List 1]]<>\"\",Table_PI[[#This Row],[List 1]],\"\")","v":""},{"$f":"IF(Table_PI[[#This Row],[List 2]]<>\"\",Table_PI[[#This Row],[List 2]],\"\")","v":""},{"$f":"IF(Table_PI[[#This Row],[List 3]]<>\"\",Table_PI[[#This Row],[List 3]],\"\")","v":""},{"$f":"IF(Table_PI[[#This Row],[Manufacturer]]=\"\",\"\",Table_PI[[#This Row],[Manufacturer]])","v":""},{"$f":"IF(Table_PI[[#This Row],[Model Number]]=\"\",\"\",Table_PI[[#This Row],[Model Number]])","v":""},{"$f":"IF(Table_PI[[#This Row],[Serial Number(s)]]=\"\",\"\",Table_PI[[#This Row],[Serial Number(s)]])","v":""},null,{"$f":"IF(Table_PI[[#This Row],[Size]]=\"\",\"\",Table_PI[[#This Row],[Size]])","v":""},null,{"$f":"IFERROR(IF(AND(MeasureCalc(Table_PI[[#This Row],[Hide:\nFormula Name]],Table_SummaryPI[[#This Row],[Quantity]],Table_PI[[#This Row],[List 1]],Table_PI[[#This Row],[List 2]],Table_PI[[#This Row],[List 3]],Table_PI[[#This Row],[Size]],Table_PI[[#This Row],[Input 1]],Table_PI[[#This Row],[Input 2]],Table_PI[[#This Row],[Input 3]],Table_PI[[#This Row],[Input 4]],'Customer Information'!$AR$12,100,ROW())<>0,MeasureCalc(Table_PI[[#This Row],[Hide:\nFormula Name]],Table_SummaryPI[[#This Row],[Quantity]],Table_PI[[#This Row],[List 1]],Table_PI[[#This Row],[List 2]],Table_PI[[#This Row],[List 3]],Table_PI[[#This Row],[Size]],Table_PI[[#This Row],[Input 1]],Table_PI[[#This Row],[Input 2]],Table_PI[[#This Row],[Input 3]],Table_PI[[#This Row],[Input 4]],'Customer Information'!$AR$12,100,ROW())<>\"No Rebate\"),MeasureCalc(Table_PI[[#This Row],[Hide:\nFormula Name]],Table_SummaryPI[[#This Row],[Quantity]],Table_PI[[#This Row],[List 1]],Table_PI[[#This Row],[List 2]],Table_PI[[#This Row],[List 3]],Table_PI[[#This Row],[Size]],Table_PI[[#This Row],[Input 1]],Table_PI[[#This Row],[Input 2]],Table_PI[[#This Row],[Input 3]],Table_PI[[#This Row],[Input 4]],'Customer Information'!$AR$12,100,ROW()),\"\"),\"\")","v":""},{"$f":"IF(Table_PI[[#This Row],[Input 1]]<>\"\",Table_PI[[#This Row],[Input 1]],\"\")","v":""},null,{"$f":"IFERROR(IF(AND(MeasureCalc(Table_PI[[#This Row],[Hide:\nFormula Name]],Table_SummaryPI[[#This Row],[Quantity]],Table_PI[[#This Row],[List 1]],Table_PI[[#This Row],[List 2]],Table_PI[[#This Row],[List 3]],Table_PI[[#This Row],[Size]],Table_PI[[#This Row],[Input 1]],Table_PI[[#This Row],[Input 2]],Table_PI[[#This Row],[Input 3]],Table_PI[[#This Row],[Input 4]],'Customer Information'!$AR$12,101,ROW())<>0,MeasureCalc(Table_PI[[#This Row],[Hide:\nFormula Name]],Table_SummaryPI[[#This Row],[Quantity]],Table_PI[[#This Row],[List 1]],Table_PI[[#This Row],[List 2]],Table_PI[[#This Row],[List 3]],Table_PI[[#This Row],[Size]],Table_PI[[#This Row],[Input 1]],Table_PI[[#This Row],[Input 2]],Table_PI[[#This Row],[Input 3]],Table_PI[[#This Row],[Input 4]],'Customer Information'!$AR$12,101,ROW())<>\"No Rebate\"),MeasureCalc(Table_PI[[#This Row],[Hide:\nFormula Name]],Table_SummaryPI[[#This Row],[Quantity]],Table_PI[[#This Row],[List 1]],Table_PI[[#This Row],[List 2]],Table_PI[[#This Row],[List 3]],Table_PI[[#This Row],[Size]],Table_PI[[#This Row],[Input 1]],Table_PI[[#This Row],[Input 2]],Table_PI[[#This Row],[Input 3]],Table_PI[[#This Row],[Input 4]],'Customer Information'!$AR$12,101,ROW()),\"\"),\"\")","v":""},{"$f":"IF(Table_PI[[#This Row],[Input 2]]<>\"\",Table_PI[[#This Row],[Input 2]],\"\")","v":""},null,{"$f":"IFERROR(IF(AND(MeasureCalc(Table_PI[[#This Row],[Hide:\nFormula Name]],Table_SummaryPI[[#This Row],[Quantity]],Table_PI[[#This Row],[List 1]],Table_PI[[#This Row],[List 2]],Table_PI[[#This Row],[List 3]],Table_PI[[#This Row],[Size]],Table_PI[[#This Row],[Input 1]],Table_PI[[#This Row],[Input 2]],Table_PI[[#This Row],[Input 3]],Table_PI[[#This Row],[Input 4]],'Customer Information'!$AR$12,102,ROW())<>0,MeasureCalc(Table_PI[[#This Row],[Hide:\nFormula Name]],Table_SummaryPI[[#This Row],[Quantity]],Table_PI[[#This Row],[List 1]],Table_PI[[#This Row],[List 2]],Table_PI[[#This Row],[List 3]],Table_PI[[#This Row],[Size]],Table_PI[[#This Row],[Input 1]],Table_PI[[#This Row],[Input 2]],Table_PI[[#This Row],[Input 3]],Table_PI[[#This Row],[Input 4]],'Customer Information'!$AR$12,102,ROW())<>\"No Rebate\"),MeasureCalc(Table_PI[[#This Row],[Hide:\nFormula Name]],Table_SummaryPI[[#This Row],[Quantity]],Table_PI[[#This Row],[List 1]],Table_PI[[#This Row],[List 2]],Table_PI[[#This Row],[List 3]],Table_PI[[#This Row],[Size]],Table_PI[[#This Row],[Input 1]],Table_PI[[#This Row],[Input 2]],Table_PI[[#This Row],[Input 3]],Table_PI[[#This Row],[Input 4]],'Customer Information'!$AR$12,102,ROW()),\"\"),\"\")","v":""},{"$f":"IF(Table_PI[[#This Row],[Input 3]]<>\"\",Table_PI[[#This Row],[Input 3]],\"\")","v":""},null,{"$f":"IFERROR(IF(AND(MeasureCalc(Table_PI[[#This Row],[Hide:\nFormula Name]],Table_SummaryPI[[#This Row],[Quantity]],Table_PI[[#This Row],[List 1]],Table_PI[[#This Row],[List 2]],Table_PI[[#This Row],[List 3]],Table_PI[[#This Row],[Size]],Table_PI[[#This Row],[Input 1]],Table_PI[[#This Row],[Input 2]],Table_PI[[#This Row],[Input 3]],Table_PI[[#This Row],[Input 4]],'Customer Information'!$AR$12,103,ROW())<>0,MeasureCalc(Table_PI[[#This Row],[Hide:\nFormula Name]],Table_SummaryPI[[#This Row],[Quantity]],Table_PI[[#This Row],[List 1]],Table_PI[[#This Row],[List 2]],Table_PI[[#This Row],[List 3]],Table_PI[[#This Row],[Size]],Table_PI[[#This Row],[Input 1]],Table_PI[[#This Row],[Input 2]],Table_PI[[#This Row],[Input 3]],Table_PI[[#This Row],[Input 4]],'Customer Information'!$AR$12,103,ROW())<>\"No Rebate\"),MeasureCalc(Table_PI[[#This Row],[Hide:\nFormula Name]],Table_SummaryPI[[#This Row],[Quantity]],Table_PI[[#This Row],[List 1]],Table_PI[[#This Row],[List 2]],Table_PI[[#This Row],[List 3]],Table_PI[[#This Row],[Size]],Table_PI[[#This Row],[Input 1]],Table_PI[[#This Row],[Input 2]],Table_PI[[#This Row],[Input 3]],Table_PI[[#This Row],[Input 4]],'Customer Information'!$AR$12,103,ROW()),\"\"),\"\")","v":""},{"$f":"IF(Table_PI[[#This Row],[Input 4]]<>\"\",Table_PI[[#This Row],[Input 4]],\"\")","v":""},{"$f":"IF(Table_PI[[#This Row],[Quantity]]=\"\",\"\",Table_PI[[#This Row],[Quantity]])","v":""},{"$f":"IF(Table_PI[[#This Row],[Notes]]=\"\",\"\",Table_PI[[#This Row],[Notes]])","v":""},{"$f":"IF(OR(Table_PI[[#This Row],[Hide:\nBaseline kWh]]=\"\",Table_PI[[#This Row],[Hide:\nBaseline kWh]]=0),\"\",Table_PI[[#This Row],[Hide:\nBaseline kWh]])","v":""},{"$f":"IF(OR(Table_PI[[#This Row],[Hide:\nBaseline kW]]=\"\",Table_PI[[#This Row],[Hide:\nBaseline kW]]=0),\"\",Table_PI[[#This Row],[Hide:\nBaseline kW]])","v":""},{"$f":"IF(OR(Table_PI[[#This Row],[Hide:\nProposed kWh]]=\"\",Table_PI[[#This Row],[Hide:\nProposed kWh]]=0),\"\",Table_PI[[#This Row],[Hide:\nProposed kWh]])","v":""},{"$f":"IF(OR(Table_PI[[#This Row],[Hide:\nProposed kW]]=\"\",Table_PI[[#This Row],[Hide:\nProposed kW]]=0),\"\",Table_PI[[#This Row],[Hide:\nProposed kW]])","v":""},{"$f":"IF(OR(Table_PI[[#This Row],[Rebate]]=\"\",Table_PI[[#This Row],[Rebate]]=0),\"\",Table_PI[[#This Row],[Rebate]])","v":""},{"$f":"IF(OR(Table_PI[[#This Row],[Hide:\nIncremental Cost]]=\"\",Table_PI[[#This Row],[Hide:\nIncremental Cost]]=0),\"\",Table_PI[[#This Row],[Hide:\nIncremental Cost]])","v":""},{"$f":"IFERROR(IF(Table_SummaryPI[[#This Row],[kWhSavings]]=\"\",\"\",ROUND(Table_SummaryPI[[#This Row],[kWhSavings]]/$AG$401*'Customer Information'!$BC$17,2)),0)","v":""},{"$f":"IF(OR(Table_PI[[#This Row],[Annual kWh]]=\"\",Table_PI[[#This Row],[Annual kWh]]=0),\"\",Table_PI[[#This Row],[Annual kWh]])","v":""},{"$f":"IF(OR(Table_PI[[#This Row],[Peak kW]]=\"\",Table_PI[[#This Row],[Peak kW]]=0),\"\",Table_PI[[#This Row],[Peak kW]])","v":""},{"$f":"IFERROR(IF(Table_SummaryPI[[#This Row],[kWhSavings]]=\"\",\"\",$AU$9*Table_SummaryPI[[#This Row],[kWhSavings]]),0)","v":""},{"$f":"IFERROR(IF(Table_SummaryPI[[#This Row],[kWhSavings]]=\"\",\"\",$AU$14*Table_SummaryPI[[#This Row],[kWhSavings]]),0)","v":""},{"$f":"IFERROR(IF(Table_SummaryPI[[#This Row],[kWhSavings]]=\"\",\"\",$AU$18*Table_SummaryPI[[#This Row],[kWhSavings]]),0)","v":""},{"$f":"IFERROR(IF(Table_SummaryPI[[#This Row],[kWhSavings]]=\"\",\"\",$AU$22*Table_SummaryPI[[#This Row],[kWhSavings]]),0)","v":""},{"$f":"IFERROR(IF(MeasureCalc(Table_PI[[#This Row],[Hide:\nFormula Name]],Table_SummaryPI[[#This Row],[Quantity]],Table_PI[[#This Row],[List 1]],Table_PI[[#This Row],[List 2]],Table_PI[[#This Row],[List 3]],Table_PI[[#This Row],[Size]],Table_PI[[#This Row],[Input 1]],Table_PI[[#This Row],[Input 2]],Table_PI[[#This Row],[Input 3]],Table_PI[[#This Row],[Input 4]],'Customer Information'!$AR$12,200,ROW())<>\"No Rebate\",MeasureCalc(Table_PI[[#This Row],[Hide:\nFormula Name]],Table_SummaryPI[[#This Row],[Quantity]],Table_PI[[#This Row],[List 1]],Table_PI[[#This Row],[List 2]],Table_PI[[#This Row],[List 3]],Table_PI[[#This Row],[Size]],Table_PI[[#This Row],[Input 1]],Table_PI[[#This Row],[Input 2]],Table_PI[[#This Row],[Input 3]],Table_PI[[#This Row],[Input 4]],'Customer Information'!$AR$12,200,ROW()),\"\"),\"\")","v":""},{"$f":"IFERROR(IF(MeasureCalc(Table_PI[[#This Row],[Hide:\nFormula Name]],Table_SummaryPI[[#This Row],[Quantity]],Table_PI[[#This Row],[List 1]],Table_PI[[#This Row],[List 2]],Table_PI[[#This Row],[List 3]],Table_PI[[#This Row],[Size]],Table_PI[[#This Row],[Input 1]],Table_PI[[#This Row],[Input 2]],Table_PI[[#This Row],[Input 3]],Table_PI[[#This Row],[Input 4]],'Customer Information'!$AR$12,201,ROW())<>\"No Rebate\",MeasureCalc(Table_PI[[#This Row],[Hide:\nFormula Name]],Table_SummaryPI[[#This Row],[Quantity]],Table_PI[[#This Row],[List 1]],Table_PI[[#This Row],[List 2]],Table_PI[[#This Row],[List 3]],Table_PI[[#This Row],[Size]],Table_PI[[#This Row],[Input 1]],Table_PI[[#This Row],[Input 2]],Table_PI[[#This Row],[Input 3]],Table_PI[[#This Row],[Input 4]],'Customer Information'!$AR$12,201,ROW()),\"\"),\"\")","v":""}]
[{"$f":"Table_PI[[#This Row],[Line No.]]","v":""},{"$f":"IF(Table_SummaryPI[[#This Row],[MeassureCategory]]<>\"\",CONCATENATE(Table_SummaryPI[[#This Row],[MeassureCategory]],  \" - \", Table_SummaryPI[[#This Row],[ProposedMeasureCategory]],  \" - \", TEXT(Table_SummaryPI[[#This Row],[Size]],\"#,##0.00\"),\" \",Table_SummaryPI[[#This Row],[SizeUnit]]),\"\")","v":""},{"$f":"SUBSTITUTE(Table_PI[[#This Row],[Measure]],\"     \",\"\",1)","v":""},{"$f":"IF(Table_PI[[#This Row],[List 1]]<>\"\",Table_PI[[#This Row],[List 1]],\"\")","v":""},{"$f":"IF(Table_PI[[#This Row],[List 2]]<>\"\",Table_PI[[#This Row],[List 2]],\"\")","v":""},{"$f":"IF(Table_PI[[#This Row],[List 3]]<>\"\",Table_PI[[#This Row],[List 3]],\"\")","v":""},{"$f":"IF(Table_PI[[#This Row],[Manufacturer]]=\"\",\"\",Table_PI[[#This Row],[Manufacturer]])","v":""},{"$f":"IF(Table_PI[[#This Row],[Model Number]]=\"\",\"\",Table_PI[[#This Row],[Model Number]])","v":""},{"$f":"IF(Table_PI[[#This Row],[Serial Number(s)]]=\"\",\"\",Table_PI[[#This Row],[Serial Number(s)]])","v":""},null,{"$f":"IF(Table_PI[[#This Row],[Size]]=\"\",\"\",Table_PI[[#This Row],[Size]])","v":""},null,{"$f":"IFERROR(IF(AND(MeasureCalc(Table_PI[[#This Row],[Hide:\nFormula Name]],Table_SummaryPI[[#This Row],[Quantity]],Table_PI[[#This Row],[List 1]],Table_PI[[#This Row],[List 2]],Table_PI[[#This Row],[List 3]],Table_PI[[#This Row],[Size]],Table_PI[[#This Row],[Input 1]],Table_PI[[#This Row],[Input 2]],Table_PI[[#This Row],[Input 3]],Table_PI[[#This Row],[Input 4]],'Customer Information'!$AR$12,100,ROW())<>0,MeasureCalc(Table_PI[[#This Row],[Hide:\nFormula Name]],Table_SummaryPI[[#This Row],[Quantity]],Table_PI[[#This Row],[List 1]],Table_PI[[#This Row],[List 2]],Table_PI[[#This Row],[List 3]],Table_PI[[#This Row],[Size]],Table_PI[[#This Row],[Input 1]],Table_PI[[#This Row],[Input 2]],Table_PI[[#This Row],[Input 3]],Table_PI[[#This Row],[Input 4]],'Customer Information'!$AR$12,100,ROW())<>\"No Rebate\"),MeasureCalc(Table_PI[[#This Row],[Hide:\nFormula Name]],Table_SummaryPI[[#This Row],[Quantity]],Table_PI[[#This Row],[List 1]],Table_PI[[#This Row],[List 2]],Table_PI[[#This Row],[List 3]],Table_PI[[#This Row],[Size]],Table_PI[[#This Row],[Input 1]],Table_PI[[#This Row],[Input 2]],Table_PI[[#This Row],[Input 3]],Table_PI[[#This Row],[Input 4]],'Customer Information'!$AR$12,100,ROW()),\"\"),\"\")","v":""},{"$f":"IF(Table_PI[[#This Row],[Input 1]]<>\"\",Table_PI[[#This Row],[Input 1]],\"\")","v":""},null,{"$f":"IFERROR(IF(AND(MeasureCalc(Table_PI[[#This Row],[Hide:\nFormula Name]],Table_SummaryPI[[#This Row],[Quantity]],Table_PI[[#This Row],[List 1]],Table_PI[[#This Row],[List 2]],Table_PI[[#This Row],[List 3]],Table_PI[[#This Row],[Size]],Table_PI[[#This Row],[Input 1]],Table_PI[[#This Row],[Input 2]],Table_PI[[#This Row],[Input 3]],Table_PI[[#This Row],[Input 4]],'Customer Information'!$AR$12,101,ROW())<>0,MeasureCalc(Table_PI[[#This Row],[Hide:\nFormula Name]],Table_SummaryPI[[#This Row],[Quantity]],Table_PI[[#This Row],[List 1]],Table_PI[[#This Row],[List 2]],Table_PI[[#This Row],[List 3]],Table_PI[[#This Row],[Size]],Table_PI[[#This Row],[Input 1]],Table_PI[[#This Row],[Input 2]],Table_PI[[#This Row],[Input 3]],Table_PI[[#This Row],[Input 4]],'Customer Information'!$AR$12,101,ROW())<>\"No Rebate\"),MeasureCalc(Table_PI[[#This Row],[Hide:\nFormula Name]],Table_SummaryPI[[#This Row],[Quantity]],Table_PI[[#This Row],[List 1]],Table_PI[[#This Row],[List 2]],Table_PI[[#This Row],[List 3]],Table_PI[[#This Row],[Size]],Table_PI[[#This Row],[Input 1]],Table_PI[[#This Row],[Input 2]],Table_PI[[#This Row],[Input 3]],Table_PI[[#This Row],[Input 4]],'Customer Information'!$AR$12,101,ROW()),\"\"),\"\")","v":""},{"$f":"IF(Table_PI[[#This Row],[Input 2]]<>\"\",Table_PI[[#This Row],[Input 2]],\"\")","v":""},null,{"$f":"IFERROR(IF(AND(MeasureCalc(Table_PI[[#This Row],[Hide:\nFormula Name]],Table_SummaryPI[[#This Row],[Quantity]],Table_PI[[#This Row],[List 1]],Table_PI[[#This Row],[List 2]],Table_PI[[#This Row],[List 3]],Table_PI[[#This Row],[Size]],Table_PI[[#This Row],[Input 1]],Table_PI[[#This Row],[Input 2]],Table_PI[[#This Row],[Input 3]],Table_PI[[#This Row],[Input 4]],'Customer Information'!$AR$12,102,ROW())<>0,MeasureCalc(Table_PI[[#This Row],[Hide:\nFormula Name]],Table_SummaryPI[[#This Row],[Quantity]],Table_PI[[#This Row],[List 1]],Table_PI[[#This Row],[List 2]],Table_PI[[#This Row],[List 3]],Table_PI[[#This Row],[Size]],Table_PI[[#This Row],[Input 1]],Table_PI[[#This Row],[Input 2]],Table_PI[[#This Row],[Input 3]],Table_PI[[#This Row],[Input 4]],'Customer Information'!$AR$12,102,ROW())<>\"No Rebate\"),MeasureCalc(Table_PI[[#This Row],[Hide:\nFormula Name]],Table_SummaryPI[[#This Row],[Quantity]],Table_PI[[#This Row],[List 1]],Table_PI[[#This Row],[List 2]],Table_PI[[#This Row],[List 3]],Table_PI[[#This Row],[Size]],Table_PI[[#This Row],[Input 1]],Table_PI[[#This Row],[Input 2]],Table_PI[[#This Row],[Input 3]],Table_PI[[#This Row],[Input 4]],'Customer Information'!$AR$12,102,ROW()),\"\"),\"\")","v":""},{"$f":"IF(Table_PI[[#This Row],[Input 3]]<>\"\",Table_PI[[#This Row],[Input 3]],\"\")","v":""},null,{"$f":"IFERROR(IF(AND(MeasureCalc(Table_PI[[#This Row],[Hide:\nFormula Name]],Table_SummaryPI[[#This Row],[Quantity]],Table_PI[[#This Row],[List 1]],Table_PI[[#This Row],[List 2]],Table_PI[[#This Row],[List 3]],Table_PI[[#This Row],[Size]],Table_PI[[#This Row],[Input 1]],Table_PI[[#This Row],[Input 2]],Table_PI[[#This Row],[Input 3]],Table_PI[[#This Row],[Input 4]],'Customer Information'!$AR$12,103,ROW())<>0,MeasureCalc(Table_PI[[#This Row],[Hide:\nFormula Name]],Table_SummaryPI[[#This Row],[Quantity]],Table_PI[[#This Row],[List 1]],Table_PI[[#This Row],[List 2]],Table_PI[[#This Row],[List 3]],Table_PI[[#This Row],[Size]],Table_PI[[#This Row],[Input 1]],Table_PI[[#This Row],[Input 2]],Table_PI[[#This Row],[Input 3]],Table_PI[[#This Row],[Input 4]],'Customer Information'!$AR$12,103,ROW())<>\"No Rebate\"),MeasureCalc(Table_PI[[#This Row],[Hide:\nFormula Name]],Table_SummaryPI[[#This Row],[Quantity]],Table_PI[[#This Row],[List 1]],Table_PI[[#This Row],[List 2]],Table_PI[[#This Row],[List 3]],Table_PI[[#This Row],[Size]],Table_PI[[#This Row],[Input 1]],Table_PI[[#This Row],[Input 2]],Table_PI[[#This Row],[Input 3]],Table_PI[[#This Row],[Input 4]],'Customer Information'!$AR$12,103,ROW()),\"\"),\"\")","v":""},{"$f":"IF(Table_PI[[#This Row],[Input 4]]<>\"\",Table_PI[[#This Row],[Input 4]],\"\")","v":""},{"$f":"IF(Table_PI[[#This Row],[Quantity]]=\"\",\"\",Table_PI[[#This Row],[Quantity]])","v":""},{"$f":"IF(Table_PI[[#This Row],[Notes]]=\"\",\"\",Table_PI[[#This Row],[Notes]])","v":""},{"$f":"IF(OR(Table_PI[[#This Row],[Hide:\nBaseline kWh]]=\"\",Table_PI[[#This Row],[Hide:\nBaseline kWh]]=0),\"\",Table_PI[[#This Row],[Hide:\nBaseline kWh]])","v":""},{"$f":"IF(OR(Table_PI[[#This Row],[Hide:\nBaseline kW]]=\"\",Table_PI[[#This Row],[Hide:\nBaseline kW]]=0),\"\",Table_PI[[#This Row],[Hide:\nBaseline kW]])","v":""},{"$f":"IF(OR(Table_PI[[#This Row],[Hide:\nProposed kWh]]=\"\",Table_PI[[#This Row],[Hide:\nProposed kWh]]=0),\"\",Table_PI[[#This Row],[Hide:\nProposed kWh]])","v":""},{"$f":"IF(OR(Table_PI[[#This Row],[Hide:\nProposed kW]]=\"\",Table_PI[[#This Row],[Hide:\nProposed kW]]=0),\"\",Table_PI[[#This Row],[Hide:\nProposed kW]])","v":""},{"$f":"IF(OR(Table_PI[[#This Row],[Rebate]]=\"\",Table_PI[[#This Row],[Rebate]]=0),\"\",Table_PI[[#This Row],[Rebate]])","v":""},{"$f":"IF(OR(Table_PI[[#This Row],[Hide:\nIncremental Cost]]=\"\",Table_PI[[#This Row],[Hide:\nIncremental Cost]]=0),\"\",Table_PI[[#This Row],[Hide:\nIncremental Cost]])","v":""},{"$f":"IFERROR(IF(Table_SummaryPI[[#This Row],[kWhSavings]]=\"\",\"\",ROUND(Table_SummaryPI[[#This Row],[kWhSavings]]/$AG$401*'Customer Information'!$BC$17,2)),0)","v":""},{"$f":"IF(OR(Table_PI[[#This Row],[Annual kWh]]=\"\",Table_PI[[#This Row],[Annual kWh]]=0),\"\",Table_PI[[#This Row],[Annual kWh]])","v":""},{"$f":"IF(OR(Table_PI[[#This Row],[Peak kW]]=\"\",Table_PI[[#This Row],[Peak kW]]=0),\"\",Table_PI[[#This Row],[Peak kW]])","v":""},{"$f":"IFERROR(IF(Table_SummaryPI[[#This Row],[kWhSavings]]=\"\",\"\",$AU$9*Table_SummaryPI[[#This Row],[kWhSavings]]),0)","v":""},{"$f":"IFERROR(IF(Table_SummaryPI[[#This Row],[kWhSavings]]=\"\",\"\",$AU$14*Table_SummaryPI[[#This Row],[kWhSavings]]),0)","v":""},{"$f":"IFERROR(IF(Table_SummaryPI[[#This Row],[kWhSavings]]=\"\",\"\",$AU$18*Table_SummaryPI[[#This Row],[kWhSavings]]),0)","v":""},{"$f":"IFERROR(IF(Table_SummaryPI[[#This Row],[kWhSavings]]=\"\",\"\",$AU$22*Table_SummaryPI[[#This Row],[kWhSavings]]),0)","v":""},{"$f":"IFERROR(IF(MeasureCalc(Table_PI[[#This Row],[Hide:\nFormula Name]],Table_SummaryPI[[#This Row],[Quantity]],Table_PI[[#This Row],[List 1]],Table_PI[[#This Row],[List 2]],Table_PI[[#This Row],[List 3]],Table_PI[[#This Row],[Size]],Table_PI[[#This Row],[Input 1]],Table_PI[[#This Row],[Input 2]],Table_PI[[#This Row],[Input 3]],Table_PI[[#This Row],[Input 4]],'Customer Information'!$AR$12,200,ROW())<>\"No Rebate\",MeasureCalc(Table_PI[[#This Row],[Hide:\nFormula Name]],Table_SummaryPI[[#This Row],[Quantity]],Table_PI[[#This Row],[List 1]],Table_PI[[#This Row],[List 2]],Table_PI[[#This Row],[List 3]],Table_PI[[#This Row],[Size]],Table_PI[[#This Row],[Input 1]],Table_PI[[#This Row],[Input 2]],Table_PI[[#This Row],[Input 3]],Table_PI[[#This Row],[Input 4]],'Customer Information'!$AR$12,200,ROW()),\"\"),\"\")","v":""},{"$f":"IFERROR(IF(MeasureCalc(Table_PI[[#This Row],[Hide:\nFormula Name]],Table_SummaryPI[[#This Row],[Quantity]],Table_PI[[#This Row],[List 1]],Table_PI[[#This Row],[List 2]],Table_PI[[#This Row],[List 3]],Table_PI[[#This Row],[Size]],Table_PI[[#This Row],[Input 1]],Table_PI[[#This Row],[Input 2]],Table_PI[[#This Row],[Input 3]],Table_PI[[#This Row],[Input 4]],'Customer Information'!$AR$12,201,ROW())<>\"No Rebate\",MeasureCalc(Table_PI[[#This Row],[Hide:\nFormula Name]],Table_SummaryPI[[#This Row],[Quantity]],Table_PI[[#This Row],[List 1]],Table_PI[[#This Row],[List 2]],Table_PI[[#This Row],[List 3]],Table_PI[[#This Row],[Size]],Table_PI[[#This Row],[Input 1]],Table_PI[[#This Row],[Input 2]],Table_PI[[#This Row],[Input 3]],Table_PI[[#This Row],[Input 4]],'Customer Information'!$AR$12,201,ROW()),\"\"),\"\")","v":""}]
[{"$f":"Table_PI[[#This Row],[Line No.]]","v":""},{"$f":"IF(Table_SummaryPI[[#This Row],[MeassureCategory]]<>\"\",CONCATENATE(Table_SummaryPI[[#This Row],[MeassureCategory]],  \" - \", Table_SummaryPI[[#This Row],[ProposedMeasureCategory]],  \" - \", TEXT(Table_SummaryPI[[#This Row],[Size]],\"#,##0.00\"),\" \",Table_SummaryPI[[#This Row],[SizeUnit]]),\"\")","v":""},{"$f":"SUBSTITUTE(Table_PI[[#This Row],[Measure]],\"     \",\"\",1)","v":""},{"$f":"IF(Table_PI[[#This Row],[List 1]]<>\"\",Table_PI[[#This Row],[List 1]],\"\")","v":""},{"$f":"IF(Table_PI[[#This Row],[List 2]]<>\"\",Table_PI[[#This Row],[List 2]],\"\")","v":""},{"$f":"IF(Table_PI[[#This Row],[List 3]]<>\"\",Table_PI[[#This Row],[List 3]],\"\")","v":""},{"$f":"IF(Table_PI[[#This Row],[Manufacturer]]=\"\",\"\",Table_PI[[#This Row],[Manufacturer]])","v":""},{"$f":"IF(Table_PI[[#This Row],[Model Number]]=\"\",\"\",Table_PI[[#This Row],[Model Number]])","v":""},{"$f":"IF(Table_PI[[#This Row],[Serial Number(s)]]=\"\",\"\",Table_PI[[#This Row],[Serial Number(s)]])","v":""},null,{"$f":"IF(Table_PI[[#This Row],[Size]]=\"\",\"\",Table_PI[[#This Row],[Size]])","v":""},null,{"$f":"IFERROR(IF(AND(MeasureCalc(Table_PI[[#This Row],[Hide:\nFormula Name]],Table_SummaryPI[[#This Row],[Quantity]],Table_PI[[#This Row],[List 1]],Table_PI[[#This Row],[List 2]],Table_PI[[#This Row],[List 3]],Table_PI[[#This Row],[Size]],Table_PI[[#This Row],[Input 1]],Table_PI[[#This Row],[Input 2]],Table_PI[[#This Row],[Input 3]],Table_PI[[#This Row],[Input 4]],'Customer Information'!$AR$12,100,ROW())<>0,MeasureCalc(Table_PI[[#This Row],[Hide:\nFormula Name]],Table_SummaryPI[[#This Row],[Quantity]],Table_PI[[#This Row],[List 1]],Table_PI[[#This Row],[List 2]],Table_PI[[#This Row],[List 3]],Table_PI[[#This Row],[Size]],Table_PI[[#This Row],[Input 1]],Table_PI[[#This Row],[Input 2]],Table_PI[[#This Row],[Input 3]],Table_PI[[#This Row],[Input 4]],'Customer Information'!$AR$12,100,ROW())<>\"No Rebate\"),MeasureCalc(Table_PI[[#This Row],[Hide:\nFormula Name]],Table_SummaryPI[[#This Row],[Quantity]],Table_PI[[#This Row],[List 1]],Table_PI[[#This Row],[List 2]],Table_PI[[#This Row],[List 3]],Table_PI[[#This Row],[Size]],Table_PI[[#This Row],[Input 1]],Table_PI[[#This Row],[Input 2]],Table_PI[[#This Row],[Input 3]],Table_PI[[#This Row],[Input 4]],'Customer Information'!$AR$12,100,ROW()),\"\"),\"\")","v":""},{"$f":"IF(Table_PI[[#This Row],[Input 1]]<>\"\",Table_PI[[#This Row],[Input 1]],\"\")","v":""},null,{"$f":"IFERROR(IF(AND(MeasureCalc(Table_PI[[#This Row],[Hide:\nFormula Name]],Table_SummaryPI[[#This Row],[Quantity]],Table_PI[[#This Row],[List 1]],Table_PI[[#This Row],[List 2]],Table_PI[[#This Row],[List 3]],Table_PI[[#This Row],[Size]],Table_PI[[#This Row],[Input 1]],Table_PI[[#This Row],[Input 2]],Table_PI[[#This Row],[Input 3]],Table_PI[[#This Row],[Input 4]],'Customer Information'!$AR$12,101,ROW())<>0,MeasureCalc(Table_PI[[#This Row],[Hide:\nFormula Name]],Table_SummaryPI[[#This Row],[Quantity]],Table_PI[[#This Row],[List 1]],Table_PI[[#This Row],[List 2]],Table_PI[[#This Row],[List 3]],Table_PI[[#This Row],[Size]],Table_PI[[#This Row],[Input 1]],Table_PI[[#This Row],[Input 2]],Table_PI[[#This Row],[Input 3]],Table_PI[[#This Row],[Input 4]],'Customer Information'!$AR$12,101,ROW())<>\"No Rebate\"),MeasureCalc(Table_PI[[#This Row],[Hide:\nFormula Name]],Table_SummaryPI[[#This Row],[Quantity]],Table_PI[[#This Row],[List 1]],Table_PI[[#This Row],[List 2]],Table_PI[[#This Row],[List 3]],Table_PI[[#This Row],[Size]],Table_PI[[#This Row],[Input 1]],Table_PI[[#This Row],[Input 2]],Table_PI[[#This Row],[Input 3]],Table_PI[[#This Row],[Input 4]],'Customer Information'!$AR$12,101,ROW()),\"\"),\"\")","v":""},{"$f":"IF(Table_PI[[#This Row],[Input 2]]<>\"\",Table_PI[[#This Row],[Input 2]],\"\")","v":""},null,{"$f":"IFERROR(IF(AND(MeasureCalc(Table_PI[[#This Row],[Hide:\nFormula Name]],Table_SummaryPI[[#This Row],[Quantity]],Table_PI[[#This Row],[List 1]],Table_PI[[#This Row],[List 2]],Table_PI[[#This Row],[List 3]],Table_PI[[#This Row],[Size]],Table_PI[[#This Row],[Input 1]],Table_PI[[#This Row],[Input 2]],Table_PI[[#This Row],[Input 3]],Table_PI[[#This Row],[Input 4]],'Customer Information'!$AR$12,102,ROW())<>0,MeasureCalc(Table_PI[[#This Row],[Hide:\nFormula Name]],Table_SummaryPI[[#This Row],[Quantity]],Table_PI[[#This Row],[List 1]],Table_PI[[#This Row],[List 2]],Table_PI[[#This Row],[List 3]],Table_PI[[#This Row],[Size]],Table_PI[[#This Row],[Input 1]],Table_PI[[#This Row],[Input 2]],Table_PI[[#This Row],[Input 3]],Table_PI[[#This Row],[Input 4]],'Customer Information'!$AR$12,102,ROW())<>\"No Rebate\"),MeasureCalc(Table_PI[[#This Row],[Hide:\nFormula Name]],Table_SummaryPI[[#This Row],[Quantity]],Table_PI[[#This Row],[List 1]],Table_PI[[#This Row],[List 2]],Table_PI[[#This Row],[List 3]],Table_PI[[#This Row],[Size]],Table_PI[[#This Row],[Input 1]],Table_PI[[#This Row],[Input 2]],Table_PI[[#This Row],[Input 3]],Table_PI[[#This Row],[Input 4]],'Customer Information'!$AR$12,102,ROW()),\"\"),\"\")","v":""},{"$f":"IF(Table_PI[[#This Row],[Input 3]]<>\"\",Table_PI[[#This Row],[Input 3]],\"\")","v":""},null,{"$f":"IFERROR(IF(AND(MeasureCalc(Table_PI[[#This Row],[Hide:\nFormula Name]],Table_SummaryPI[[#This Row],[Quantity]],Table_PI[[#This Row],[List 1]],Table_PI[[#This Row],[List 2]],Table_PI[[#This Row],[List 3]],Table_PI[[#This Row],[Size]],Table_PI[[#This Row],[Input 1]],Table_PI[[#This Row],[Input 2]],Table_PI[[#This Row],[Input 3]],Table_PI[[#This Row],[Input 4]],'Customer Information'!$AR$12,103,ROW())<>0,MeasureCalc(Table_PI[[#This Row],[Hide:\nFormula Name]],Table_SummaryPI[[#This Row],[Quantity]],Table_PI[[#This Row],[List 1]],Table_PI[[#This Row],[List 2]],Table_PI[[#This Row],[List 3]],Table_PI[[#This Row],[Size]],Table_PI[[#This Row],[Input 1]],Table_PI[[#This Row],[Input 2]],Table_PI[[#This Row],[Input 3]],Table_PI[[#This Row],[Input 4]],'Customer Information'!$AR$12,103,ROW())<>\"No Rebate\"),MeasureCalc(Table_PI[[#This Row],[Hide:\nFormula Name]],Table_SummaryPI[[#This Row],[Quantity]],Table_PI[[#This Row],[List 1]],Table_PI[[#This Row],[List 2]],Table_PI[[#This Row],[List 3]],Table_PI[[#This Row],[Size]],Table_PI[[#This Row],[Input 1]],Table_PI[[#This Row],[Input 2]],Table_PI[[#This Row],[Input 3]],Table_PI[[#This Row],[Input 4]],'Customer Information'!$AR$12,103,ROW()),\"\"),\"\")","v":""},{"$f":"IF(Table_PI[[#This Row],[Input 4]]<>\"\",Table_PI[[#This Row],[Input 4]],\"\")","v":""},{"$f":"IF(Table_PI[[#This Row],[Quantity]]=\"\",\"\",Table_PI[[#This Row],[Quantity]])","v":""},{"$f":"IF(Table_PI[[#This Row],[Notes]]=\"\",\"\",Table_PI[[#This Row],[Notes]])","v":""},{"$f":"IF(OR(Table_PI[[#This Row],[Hide:\nBaseline kWh]]=\"\",Table_PI[[#This Row],[Hide:\nBaseline kWh]]=0),\"\",Table_PI[[#This Row],[Hide:\nBaseline kWh]])","v":""},{"$f":"IF(OR(Table_PI[[#This Row],[Hide:\nBaseline kW]]=\"\",Table_PI[[#This Row],[Hide:\nBaseline kW]]=0),\"\",Table_PI[[#This Row],[Hide:\nBaseline kW]])","v":""},{"$f":"IF(OR(Table_PI[[#This Row],[Hide:\nProposed kWh]]=\"\",Table_PI[[#This Row],[Hide:\nProposed kWh]]=0),\"\",Table_PI[[#This Row],[Hide:\nProposed kWh]])","v":""},{"$f":"IF(OR(Table_PI[[#This Row],[Hide:\nProposed kW]]=\"\",Table_PI[[#This Row],[Hide:\nProposed kW]]=0),\"\",Table_PI[[#This Row],[Hide:\nProposed kW]])","v":""},{"$f":"IF(OR(Table_PI[[#This Row],[Rebate]]=\"\",Table_PI[[#This Row],[Rebate]]=0),\"\",Table_PI[[#This Row],[Rebate]])","v":""},{"$f":"IF(OR(Table_PI[[#This Row],[Hide:\nIncremental Cost]]=\"\",Table_PI[[#This Row],[Hide:\nIncremental Cost]]=0),\"\",Table_PI[[#This Row],[Hide:\nIncremental Cost]])","v":""},{"$f":"IFERROR(IF(Table_SummaryPI[[#This Row],[kWhSavings]]=\"\",\"\",ROUND(Table_SummaryPI[[#This Row],[kWhSavings]]/$AG$401*'Customer Information'!$BC$17,2)),0)","v":""},{"$f":"IF(OR(Table_PI[[#This Row],[Annual kWh]]=\"\",Table_PI[[#This Row],[Annual kWh]]=0),\"\",Table_PI[[#This Row],[Annual kWh]])","v":""},{"$f":"IF(OR(Table_PI[[#This Row],[Peak kW]]=\"\",Table_PI[[#This Row],[Peak kW]]=0),\"\",Table_PI[[#This Row],[Peak kW]])","v":""},{"$f":"IFERROR(IF(Table_SummaryPI[[#This Row],[kWhSavings]]=\"\",\"\",$AU$9*Table_SummaryPI[[#This Row],[kWhSavings]]),0)","v":""},{"$f":"IFERROR(IF(Table_SummaryPI[[#This Row],[kWhSavings]]=\"\",\"\",$AU$14*Table_SummaryPI[[#This Row],[kWhSavings]]),0)","v":""},{"$f":"IFERROR(IF(Table_SummaryPI[[#This Row],[kWhSavings]]=\"\",\"\",$AU$18*Table_SummaryPI[[#This Row],[kWhSavings]]),0)","v":""},{"$f":"IFERROR(IF(Table_SummaryPI[[#This Row],[kWhSavings]]=\"\",\"\",$AU$22*Table_SummaryPI[[#This Row],[kWhSavings]]),0)","v":""},{"$f":"IFERROR(IF(MeasureCalc(Table_PI[[#This Row],[Hide:\nFormula Name]],Table_SummaryPI[[#This Row],[Quantity]],Table_PI[[#This Row],[List 1]],Table_PI[[#This Row],[List 2]],Table_PI[[#This Row],[List 3]],Table_PI[[#This Row],[Size]],Table_PI[[#This Row],[Input 1]],Table_PI[[#This Row],[Input 2]],Table_PI[[#This Row],[Input 3]],Table_PI[[#This Row],[Input 4]],'Customer Information'!$AR$12,200,ROW())<>\"No Rebate\",MeasureCalc(Table_PI[[#This Row],[Hide:\nFormula Name]],Table_SummaryPI[[#This Row],[Quantity]],Table_PI[[#This Row],[List 1]],Table_PI[[#This Row],[List 2]],Table_PI[[#This Row],[List 3]],Table_PI[[#This Row],[Size]],Table_PI[[#This Row],[Input 1]],Table_PI[[#This Row],[Input 2]],Table_PI[[#This Row],[Input 3]],Table_PI[[#This Row],[Input 4]],'Customer Information'!$AR$12,200,ROW()),\"\"),\"\")","v":""},{"$f":"IFERROR(IF(MeasureCalc(Table_PI[[#This Row],[Hide:\nFormula Name]],Table_SummaryPI[[#This Row],[Quantity]],Table_PI[[#This Row],[List 1]],Table_PI[[#This Row],[List 2]],Table_PI[[#This Row],[List 3]],Table_PI[[#This Row],[Size]],Table_PI[[#This Row],[Input 1]],Table_PI[[#This Row],[Input 2]],Table_PI[[#This Row],[Input 3]],Table_PI[[#This Row],[Input 4]],'Customer Information'!$AR$12,201,ROW())<>\"No Rebate\",MeasureCalc(Table_PI[[#This Row],[Hide:\nFormula Name]],Table_SummaryPI[[#This Row],[Quantity]],Table_PI[[#This Row],[List 1]],Table_PI[[#This Row],[List 2]],Table_PI[[#This Row],[List 3]],Table_PI[[#This Row],[Size]],Table_PI[[#This Row],[Input 1]],Table_PI[[#This Row],[Input 2]],Table_PI[[#This Row],[Input 3]],Table_PI[[#This Row],[Input 4]],'Customer Information'!$AR$12,201,ROW()),\"\"),\"\")","v":""}]
[{"$f":"Table_PI[[#This Row],[Line No.]]","v":""},{"$f":"IF(Table_SummaryPI[[#This Row],[MeassureCategory]]<>\"\",CONCATENATE(Table_SummaryPI[[#This Row],[MeassureCategory]],  \" - \", Table_SummaryPI[[#This Row],[ProposedMeasureCategory]],  \" - \", TEXT(Table_SummaryPI[[#This Row],[Size]],\"#,##0.00\"),\" \",Table_SummaryPI[[#This Row],[SizeUnit]]),\"\")","v":""},{"$f":"SUBSTITUTE(Table_PI[[#This Row],[Measure]],\"     \",\"\",1)","v":""},{"$f":"IF(Table_PI[[#This Row],[List 1]]<>\"\",Table_PI[[#This Row],[List 1]],\"\")","v":""},{"$f":"IF(Table_PI[[#This Row],[List 2]]<>\"\",Table_PI[[#This Row],[List 2]],\"\")","v":""},{"$f":"IF(Table_PI[[#This Row],[List 3]]<>\"\",Table_PI[[#This Row],[List 3]],\"\")","v":""},{"$f":"IF(Table_PI[[#This Row],[Manufacturer]]=\"\",\"\",Table_PI[[#This Row],[Manufacturer]])","v":""},{"$f":"IF(Table_PI[[#This Row],[Model Number]]=\"\",\"\",Table_PI[[#This Row],[Model Number]])","v":""},{"$f":"IF(Table_PI[[#This Row],[Serial Number(s)]]=\"\",\"\",Table_PI[[#This Row],[Serial Number(s)]])","v":""},null,{"$f":"IF(Table_PI[[#This Row],[Size]]=\"\",\"\",Table_PI[[#This Row],[Size]])","v":""},null,{"$f":"IFERROR(IF(AND(MeasureCalc(Table_PI[[#This Row],[Hide:\nFormula Name]],Table_SummaryPI[[#This Row],[Quantity]],Table_PI[[#This Row],[List 1]],Table_PI[[#This Row],[List 2]],Table_PI[[#This Row],[List 3]],Table_PI[[#This Row],[Size]],Table_PI[[#This Row],[Input 1]],Table_PI[[#This Row],[Input 2]],Table_PI[[#This Row],[Input 3]],Table_PI[[#This Row],[Input 4]],'Customer Information'!$AR$12,100,ROW())<>0,MeasureCalc(Table_PI[[#This Row],[Hide:\nFormula Name]],Table_SummaryPI[[#This Row],[Quantity]],Table_PI[[#This Row],[List 1]],Table_PI[[#This Row],[List 2]],Table_PI[[#This Row],[List 3]],Table_PI[[#This Row],[Size]],Table_PI[[#This Row],[Input 1]],Table_PI[[#This Row],[Input 2]],Table_PI[[#This Row],[Input 3]],Table_PI[[#This Row],[Input 4]],'Customer Information'!$AR$12,100,ROW())<>\"No Rebate\"),MeasureCalc(Table_PI[[#This Row],[Hide:\nFormula Name]],Table_SummaryPI[[#This Row],[Quantity]],Table_PI[[#This Row],[List 1]],Table_PI[[#This Row],[List 2]],Table_PI[[#This Row],[List 3]],Table_PI[[#This Row],[Size]],Table_PI[[#This Row],[Input 1]],Table_PI[[#This Row],[Input 2]],Table_PI[[#This Row],[Input 3]],Table_PI[[#This Row],[Input 4]],'Customer Information'!$AR$12,100,ROW()),\"\"),\"\")","v":""},{"$f":"IF(Table_PI[[#This Row],[Input 1]]<>\"\",Table_PI[[#This Row],[Input 1]],\"\")","v":""},null,{"$f":"IFERROR(IF(AND(MeasureCalc(Table_PI[[#This Row],[Hide:\nFormula Name]],Table_SummaryPI[[#This Row],[Quantity]],Table_PI[[#This Row],[List 1]],Table_PI[[#This Row],[List 2]],Table_PI[[#This Row],[List 3]],Table_PI[[#This Row],[Size]],Table_PI[[#This Row],[Input 1]],Table_PI[[#This Row],[Input 2]],Table_PI[[#This Row],[Input 3]],Table_PI[[#This Row],[Input 4]],'Customer Information'!$AR$12,101,ROW())<>0,MeasureCalc(Table_PI[[#This Row],[Hide:\nFormula Name]],Table_SummaryPI[[#This Row],[Quantity]],Table_PI[[#This Row],[List 1]],Table_PI[[#This Row],[List 2]],Table_PI[[#This Row],[List 3]],Table_PI[[#This Row],[Size]],Table_PI[[#This Row],[Input 1]],Table_PI[[#This Row],[Input 2]],Table_PI[[#This Row],[Input 3]],Table_PI[[#This Row],[Input 4]],'Customer Information'!$AR$12,101,ROW())<>\"No Rebate\"),MeasureCalc(Table_PI[[#This Row],[Hide:\nFormula Name]],Table_SummaryPI[[#This Row],[Quantity]],Table_PI[[#This Row],[List 1]],Table_PI[[#This Row],[List 2]],Table_PI[[#This Row],[List 3]],Table_PI[[#This Row],[Size]],Table_PI[[#This Row],[Input 1]],Table_PI[[#This Row],[Input 2]],Table_PI[[#This Row],[Input 3]],Table_PI[[#This Row],[Input 4]],'Customer Information'!$AR$12,101,ROW()),\"\"),\"\")","v":""},{"$f":"IF(Table_PI[[#This Row],[Input 2]]<>\"\",Table_PI[[#This Row],[Input 2]],\"\")","v":""},null,{"$f":"IFERROR(IF(AND(MeasureCalc(Table_PI[[#This Row],[Hide:\nFormula Name]],Table_SummaryPI[[#This Row],[Quantity]],Table_PI[[#This Row],[List 1]],Table_PI[[#This Row],[List 2]],Table_PI[[#This Row],[List 3]],Table_PI[[#This Row],[Size]],Table_PI[[#This Row],[Input 1]],Table_PI[[#This Row],[Input 2]],Table_PI[[#This Row],[Input 3]],Table_PI[[#This Row],[Input 4]],'Customer Information'!$AR$12,102,ROW())<>0,MeasureCalc(Table_PI[[#This Row],[Hide:\nFormula Name]],Table_SummaryPI[[#This Row],[Quantity]],Table_PI[[#This Row],[List 1]],Table_PI[[#This Row],[List 2]],Table_PI[[#This Row],[List 3]],Table_PI[[#This Row],[Size]],Table_PI[[#This Row],[Input 1]],Table_PI[[#This Row],[Input 2]],Table_PI[[#This Row],[Input 3]],Table_PI[[#This Row],[Input 4]],'Customer Information'!$AR$12,102,ROW())<>\"No Rebate\"),MeasureCalc(Table_PI[[#This Row],[Hide:\nFormula Name]],Table_SummaryPI[[#This Row],[Quantity]],Table_PI[[#This Row],[List 1]],Table_PI[[#This Row],[List 2]],Table_PI[[#This Row],[List 3]],Table_PI[[#This Row],[Size]],Table_PI[[#This Row],[Input 1]],Table_PI[[#This Row],[Input 2]],Table_PI[[#This Row],[Input 3]],Table_PI[[#This Row],[Input 4]],'Customer Information'!$AR$12,102,ROW()),\"\"),\"\")","v":""},{"$f":"IF(Table_PI[[#This Row],[Input 3]]<>\"\",Table_PI[[#This Row],[Input 3]],\"\")","v":""},null,{"$f":"IFERROR(IF(AND(MeasureCalc(Table_PI[[#This Row],[Hide:\nFormula Name]],Table_SummaryPI[[#This Row],[Quantity]],Table_PI[[#This Row],[List 1]],Table_PI[[#This Row],[List 2]],Table_PI[[#This Row],[List 3]],Table_PI[[#This Row],[Size]],Table_PI[[#This Row],[Input 1]],Table_PI[[#This Row],[Input 2]],Table_PI[[#This Row],[Input 3]],Table_PI[[#This Row],[Input 4]],'Customer Information'!$AR$12,103,ROW())<>0,MeasureCalc(Table_PI[[#This Row],[Hide:\nFormula Name]],Table_SummaryPI[[#This Row],[Quantity]],Table_PI[[#This Row],[List 1]],Table_PI[[#This Row],[List 2]],Table_PI[[#This Row],[List 3]],Table_PI[[#This Row],[Size]],Table_PI[[#This Row],[Input 1]],Table_PI[[#This Row],[Input 2]],Table_PI[[#This Row],[Input 3]],Table_PI[[#This Row],[Input 4]],'Customer Information'!$AR$12,103,ROW())<>\"No Rebate\"),MeasureCalc(Table_PI[[#This Row],[Hide:\nFormula Name]],Table_SummaryPI[[#This Row],[Quantity]],Table_PI[[#This Row],[List 1]],Table_PI[[#This Row],[List 2]],Table_PI[[#This Row],[List 3]],Table_PI[[#This Row],[Size]],Table_PI[[#This Row],[Input 1]],Table_PI[[#This Row],[Input 2]],Table_PI[[#This Row],[Input 3]],Table_PI[[#This Row],[Input 4]],'Customer Information'!$AR$12,103,ROW()),\"\"),\"\")","v":""},{"$f":"IF(Table_PI[[#This Row],[Input 4]]<>\"\",Table_PI[[#This Row],[Input 4]],\"\")","v":""},{"$f":"IF(Table_PI[[#This Row],[Quantity]]=\"\",\"\",Table_PI[[#This Row],[Quantity]])","v":""},{"$f":"IF(Table_PI[[#This Row],[Notes]]=\"\",\"\",Table_PI[[#This Row],[Notes]])","v":""},{"$f":"IF(OR(Table_PI[[#This Row],[Hide:\nBaseline kWh]]=\"\",Table_PI[[#This Row],[Hide:\nBaseline kWh]]=0),\"\",Table_PI[[#This Row],[Hide:\nBaseline kWh]])","v":""},{"$f":"IF(OR(Table_PI[[#This Row],[Hide:\nBaseline kW]]=\"\",Table_PI[[#This Row],[Hide:\nBaseline kW]]=0),\"\",Table_PI[[#This Row],[Hide:\nBaseline kW]])","v":""},{"$f":"IF(OR(Table_PI[[#This Row],[Hide:\nProposed kWh]]=\"\",Table_PI[[#This Row],[Hide:\nProposed kWh]]=0),\"\",Table_PI[[#This Row],[Hide:\nProposed kWh]])","v":""},{"$f":"IF(OR(Table_PI[[#This Row],[Hide:\nProposed kW]]=\"\",Table_PI[[#This Row],[Hide:\nProposed kW]]=0),\"\",Table_PI[[#This Row],[Hide:\nProposed kW]])","v":""},{"$f":"IF(OR(Table_PI[[#This Row],[Rebate]]=\"\",Table_PI[[#This Row],[Rebate]]=0),\"\",Table_PI[[#This Row],[Rebate]])","v":""},{"$f":"IF(OR(Table_PI[[#This Row],[Hide:\nIncremental Cost]]=\"\",Table_PI[[#This Row],[Hide:\nIncremental Cost]]=0),\"\",Table_PI[[#This Row],[Hide:\nIncremental Cost]])","v":""},{"$f":"IFERROR(IF(Table_SummaryPI[[#This Row],[kWhSavings]]=\"\",\"\",ROUND(Table_SummaryPI[[#This Row],[kWhSavings]]/$AG$401*'Customer Information'!$BC$17,2)),0)","v":""},{"$f":"IF(OR(Table_PI[[#This Row],[Annual kWh]]=\"\",Table_PI[[#This Row],[Annual kWh]]=0),\"\",Table_PI[[#This Row],[Annual kWh]])","v":""},{"$f":"IF(OR(Table_PI[[#This Row],[Peak kW]]=\"\",Table_PI[[#This Row],[Peak kW]]=0),\"\",Table_PI[[#This Row],[Peak kW]])","v":""},{"$f":"IFERROR(IF(Table_SummaryPI[[#This Row],[kWhSavings]]=\"\",\"\",$AU$9*Table_SummaryPI[[#This Row],[kWhSavings]]),0)","v":""},{"$f":"IFERROR(IF(Table_SummaryPI[[#This Row],[kWhSavings]]=\"\",\"\",$AU$14*Table_SummaryPI[[#This Row],[kWhSavings]]),0)","v":""},{"$f":"IFERROR(IF(Table_SummaryPI[[#This Row],[kWhSavings]]=\"\",\"\",$AU$18*Table_SummaryPI[[#This Row],[kWhSavings]]),0)","v":""},{"$f":"IFERROR(IF(Table_SummaryPI[[#This Row],[kWhSavings]]=\"\",\"\",$AU$22*Table_SummaryPI[[#This Row],[kWhSavings]]),0)","v":""},{"$f":"IFERROR(IF(MeasureCalc(Table_PI[[#This Row],[Hide:\nFormula Name]],Table_SummaryPI[[#This Row],[Quantity]],Table_PI[[#This Row],[List 1]],Table_PI[[#This Row],[List 2]],Table_PI[[#This Row],[List 3]],Table_PI[[#This Row],[Size]],Table_PI[[#This Row],[Input 1]],Table_PI[[#This Row],[Input 2]],Table_PI[[#This Row],[Input 3]],Table_PI[[#This Row],[Input 4]],'Customer Information'!$AR$12,200,ROW())<>\"No Rebate\",MeasureCalc(Table_PI[[#This Row],[Hide:\nFormula Name]],Table_SummaryPI[[#This Row],[Quantity]],Table_PI[[#This Row],[List 1]],Table_PI[[#This Row],[List 2]],Table_PI[[#This Row],[List 3]],Table_PI[[#This Row],[Size]],Table_PI[[#This Row],[Input 1]],Table_PI[[#This Row],[Input 2]],Table_PI[[#This Row],[Input 3]],Table_PI[[#This Row],[Input 4]],'Customer Information'!$AR$12,200,ROW()),\"\"),\"\")","v":""},{"$f":"IFERROR(IF(MeasureCalc(Table_PI[[#This Row],[Hide:\nFormula Name]],Table_SummaryPI[[#This Row],[Quantity]],Table_PI[[#This Row],[List 1]],Table_PI[[#This Row],[List 2]],Table_PI[[#This Row],[List 3]],Table_PI[[#This Row],[Size]],Table_PI[[#This Row],[Input 1]],Table_PI[[#This Row],[Input 2]],Table_PI[[#This Row],[Input 3]],Table_PI[[#This Row],[Input 4]],'Customer Information'!$AR$12,201,ROW())<>\"No Rebate\",MeasureCalc(Table_PI[[#This Row],[Hide:\nFormula Name]],Table_SummaryPI[[#This Row],[Quantity]],Table_PI[[#This Row],[List 1]],Table_PI[[#This Row],[List 2]],Table_PI[[#This Row],[List 3]],Table_PI[[#This Row],[Size]],Table_PI[[#This Row],[Input 1]],Table_PI[[#This Row],[Input 2]],Table_PI[[#This Row],[Input 3]],Table_PI[[#This Row],[Input 4]],'Customer Information'!$AR$12,201,ROW()),\"\"),\"\")","v":""}]
[{"$f":"Table_PI[[#This Row],[Line No.]]","v":""},{"$f":"IF(Table_SummaryPI[[#This Row],[MeassureCategory]]<>\"\",CONCATENATE(Table_SummaryPI[[#This Row],[MeassureCategory]],  \" - \", Table_SummaryPI[[#This Row],[ProposedMeasureCategory]],  \" - \", TEXT(Table_SummaryPI[[#This Row],[Size]],\"#,##0.00\"),\" \",Table_SummaryPI[[#This Row],[SizeUnit]]),\"\")","v":""},{"$f":"SUBSTITUTE(Table_PI[[#This Row],[Measure]],\"     \",\"\",1)","v":""},{"$f":"IF(Table_PI[[#This Row],[List 1]]<>\"\",Table_PI[[#This Row],[List 1]],\"\")","v":""},{"$f":"IF(Table_PI[[#This Row],[List 2]]<>\"\",Table_PI[[#This Row],[List 2]],\"\")","v":""},{"$f":"IF(Table_PI[[#This Row],[List 3]]<>\"\",Table_PI[[#This Row],[List 3]],\"\")","v":""},{"$f":"IF(Table_PI[[#This Row],[Manufacturer]]=\"\",\"\",Table_PI[[#This Row],[Manufacturer]])","v":""},{"$f":"IF(Table_PI[[#This Row],[Model Number]]=\"\",\"\",Table_PI[[#This Row],[Model Number]])","v":""},{"$f":"IF(Table_PI[[#This Row],[Serial Number(s)]]=\"\",\"\",Table_PI[[#This Row],[Serial Number(s)]])","v":""},null,{"$f":"IF(Table_PI[[#This Row],[Size]]=\"\",\"\",Table_PI[[#This Row],[Size]])","v":""},null,{"$f":"IFERROR(IF(AND(MeasureCalc(Table_PI[[#This Row],[Hide:\nFormula Name]],Table_SummaryPI[[#This Row],[Quantity]],Table_PI[[#This Row],[List 1]],Table_PI[[#This Row],[List 2]],Table_PI[[#This Row],[List 3]],Table_PI[[#This Row],[Size]],Table_PI[[#This Row],[Input 1]],Table_PI[[#This Row],[Input 2]],Table_PI[[#This Row],[Input 3]],Table_PI[[#This Row],[Input 4]],'Customer Information'!$AR$12,100,ROW())<>0,MeasureCalc(Table_PI[[#This Row],[Hide:\nFormula Name]],Table_SummaryPI[[#This Row],[Quantity]],Table_PI[[#This Row],[List 1]],Table_PI[[#This Row],[List 2]],Table_PI[[#This Row],[List 3]],Table_PI[[#This Row],[Size]],Table_PI[[#This Row],[Input 1]],Table_PI[[#This Row],[Input 2]],Table_PI[[#This Row],[Input 3]],Table_PI[[#This Row],[Input 4]],'Customer Information'!$AR$12,100,ROW())<>\"No Rebate\"),MeasureCalc(Table_PI[[#This Row],[Hide:\nFormula Name]],Table_SummaryPI[[#This Row],[Quantity]],Table_PI[[#This Row],[List 1]],Table_PI[[#This Row],[List 2]],Table_PI[[#This Row],[List 3]],Table_PI[[#This Row],[Size]],Table_PI[[#This Row],[Input 1]],Table_PI[[#This Row],[Input 2]],Table_PI[[#This Row],[Input 3]],Table_PI[[#This Row],[Input 4]],'Customer Information'!$AR$12,100,ROW()),\"\"),\"\")","v":""},{"$f":"IF(Table_PI[[#This Row],[Input 1]]<>\"\",Table_PI[[#This Row],[Input 1]],\"\")","v":""},null,{"$f":"IFERROR(IF(AND(MeasureCalc(Table_PI[[#This Row],[Hide:\nFormula Name]],Table_SummaryPI[[#This Row],[Quantity]],Table_PI[[#This Row],[List 1]],Table_PI[[#This Row],[List 2]],Table_PI[[#This Row],[List 3]],Table_PI[[#This Row],[Size]],Table_PI[[#This Row],[Input 1]],Table_PI[[#This Row],[Input 2]],Table_PI[[#This Row],[Input 3]],Table_PI[[#This Row],[Input 4]],'Customer Information'!$AR$12,101,ROW())<>0,MeasureCalc(Table_PI[[#This Row],[Hide:\nFormula Name]],Table_SummaryPI[[#This Row],[Quantity]],Table_PI[[#This Row],[List 1]],Table_PI[[#This Row],[List 2]],Table_PI[[#This Row],[List 3]],Table_PI[[#This Row],[Size]],Table_PI[[#This Row],[Input 1]],Table_PI[[#This Row],[Input 2]],Table_PI[[#This Row],[Input 3]],Table_PI[[#This Row],[Input 4]],'Customer Information'!$AR$12,101,ROW())<>\"No Rebate\"),MeasureCalc(Table_PI[[#This Row],[Hide:\nFormula Name]],Table_SummaryPI[[#This Row],[Quantity]],Table_PI[[#This Row],[List 1]],Table_PI[[#This Row],[List 2]],Table_PI[[#This Row],[List 3]],Table_PI[[#This Row],[Size]],Table_PI[[#This Row],[Input 1]],Table_PI[[#This Row],[Input 2]],Table_PI[[#This Row],[Input 3]],Table_PI[[#This Row],[Input 4]],'Customer Information'!$AR$12,101,ROW()),\"\"),\"\")","v":""},{"$f":"IF(Table_PI[[#This Row],[Input 2]]<>\"\",Table_PI[[#This Row],[Input 2]],\"\")","v":""},null,{"$f":"IFERROR(IF(AND(MeasureCalc(Table_PI[[#This Row],[Hide:\nFormula Name]],Table_SummaryPI[[#This Row],[Quantity]],Table_PI[[#This Row],[List 1]],Table_PI[[#This Row],[List 2]],Table_PI[[#This Row],[List 3]],Table_PI[[#This Row],[Size]],Table_PI[[#This Row],[Input 1]],Table_PI[[#This Row],[Input 2]],Table_PI[[#This Row],[Input 3]],Table_PI[[#This Row],[Input 4]],'Customer Information'!$AR$12,102,ROW())<>0,MeasureCalc(Table_PI[[#This Row],[Hide:\nFormula Name]],Table_SummaryPI[[#This Row],[Quantity]],Table_PI[[#This Row],[List 1]],Table_PI[[#This Row],[List 2]],Table_PI[[#This Row],[List 3]],Table_PI[[#This Row],[Size]],Table_PI[[#This Row],[Input 1]],Table_PI[[#This Row],[Input 2]],Table_PI[[#This Row],[Input 3]],Table_PI[[#This Row],[Input 4]],'Customer Information'!$AR$12,102,ROW())<>\"No Rebate\"),MeasureCalc(Table_PI[[#This Row],[Hide:\nFormula Name]],Table_SummaryPI[[#This Row],[Quantity]],Table_PI[[#This Row],[List 1]],Table_PI[[#This Row],[List 2]],Table_PI[[#This Row],[List 3]],Table_PI[[#This Row],[Size]],Table_PI[[#This Row],[Input 1]],Table_PI[[#This Row],[Input 2]],Table_PI[[#This Row],[Input 3]],Table_PI[[#This Row],[Input 4]],'Customer Information'!$AR$12,102,ROW()),\"\"),\"\")","v":""},{"$f":"IF(Table_PI[[#This Row],[Input 3]]<>\"\",Table_PI[[#This Row],[Input 3]],\"\")","v":""},null,{"$f":"IFERROR(IF(AND(MeasureCalc(Table_PI[[#This Row],[Hide:\nFormula Name]],Table_SummaryPI[[#This Row],[Quantity]],Table_PI[[#This Row],[List 1]],Table_PI[[#This Row],[List 2]],Table_PI[[#This Row],[List 3]],Table_PI[[#This Row],[Size]],Table_PI[[#This Row],[Input 1]],Table_PI[[#This Row],[Input 2]],Table_PI[[#This Row],[Input 3]],Table_PI[[#This Row],[Input 4]],'Customer Information'!$AR$12,103,ROW())<>0,MeasureCalc(Table_PI[[#This Row],[Hide:\nFormula Name]],Table_SummaryPI[[#This Row],[Quantity]],Table_PI[[#This Row],[List 1]],Table_PI[[#This Row],[List 2]],Table_PI[[#This Row],[List 3]],Table_PI[[#This Row],[Size]],Table_PI[[#This Row],[Input 1]],Table_PI[[#This Row],[Input 2]],Table_PI[[#This Row],[Input 3]],Table_PI[[#This Row],[Input 4]],'Customer Information'!$AR$12,103,ROW())<>\"No Rebate\"),MeasureCalc(Table_PI[[#This Row],[Hide:\nFormula Name]],Table_SummaryPI[[#This Row],[Quantity]],Table_PI[[#This Row],[List 1]],Table_PI[[#This Row],[List 2]],Table_PI[[#This Row],[List 3]],Table_PI[[#This Row],[Size]],Table_PI[[#This Row],[Input 1]],Table_PI[[#This Row],[Input 2]],Table_PI[[#This Row],[Input 3]],Table_PI[[#This Row],[Input 4]],'Customer Information'!$AR$12,103,ROW()),\"\"),\"\")","v":""},{"$f":"IF(Table_PI[[#This Row],[Input 4]]<>\"\",Table_PI[[#This Row],[Input 4]],\"\")","v":""},{"$f":"IF(Table_PI[[#This Row],[Quantity]]=\"\",\"\",Table_PI[[#This Row],[Quantity]])","v":""},{"$f":"IF(Table_PI[[#This Row],[Notes]]=\"\",\"\",Table_PI[[#This Row],[Notes]])","v":""},{"$f":"IF(OR(Table_PI[[#This Row],[Hide:\nBaseline kWh]]=\"\",Table_PI[[#This Row],[Hide:\nBaseline kWh]]=0),\"\",Table_PI[[#This Row],[Hide:\nBaseline kWh]])","v":""},{"$f":"IF(OR(Table_PI[[#This Row],[Hide:\nBaseline kW]]=\"\",Table_PI[[#This Row],[Hide:\nBaseline kW]]=0),\"\",Table_PI[[#This Row],[Hide:\nBaseline kW]])","v":""},{"$f":"IF(OR(Table_PI[[#This Row],[Hide:\nProposed kWh]]=\"\",Table_PI[[#This Row],[Hide:\nProposed kWh]]=0),\"\",Table_PI[[#This Row],[Hide:\nProposed kWh]])","v":""},{"$f":"IF(OR(Table_PI[[#This Row],[Hide:\nProposed kW]]=\"\",Table_PI[[#This Row],[Hide:\nProposed kW]]=0),\"\",Table_PI[[#This Row],[Hide:\nProposed kW]])","v":""},{"$f":"IF(OR(Table_PI[[#This Row],[Rebate]]=\"\",Table_PI[[#This Row],[Rebate]]=0),\"\",Table_PI[[#This Row],[Rebate]])","v":""},{"$f":"IF(OR(Table_PI[[#This Row],[Hide:\nIncremental Cost]]=\"\",Table_PI[[#This Row],[Hide:\nIncremental Cost]]=0),\"\",Table_PI[[#This Row],[Hide:\nIncremental Cost]])","v":""},{"$f":"IFERROR(IF(Table_SummaryPI[[#This Row],[kWhSavings]]=\"\",\"\",ROUND(Table_SummaryPI[[#This Row],[kWhSavings]]/$AG$401*'Customer Information'!$BC$17,2)),0)","v":""},{"$f":"IF(OR(Table_PI[[#This Row],[Annual kWh]]=\"\",Table_PI[[#This Row],[Annual kWh]]=0),\"\",Table_PI[[#This Row],[Annual kWh]])","v":""},{"$f":"IF(OR(Table_PI[[#This Row],[Peak kW]]=\"\",Table_PI[[#This Row],[Peak kW]]=0),\"\",Table_PI[[#This Row],[Peak kW]])","v":""},{"$f":"IFERROR(IF(Table_SummaryPI[[#This Row],[kWhSavings]]=\"\",\"\",$AU$9*Table_SummaryPI[[#This Row],[kWhSavings]]),0)","v":""},{"$f":"IFERROR(IF(Table_SummaryPI[[#This Row],[kWhSavings]]=\"\",\"\",$AU$14*Table_SummaryPI[[#This Row],[kWhSavings]]),0)","v":""},{"$f":"IFERROR(IF(Table_SummaryPI[[#This Row],[kWhSavings]]=\"\",\"\",$AU$18*Table_SummaryPI[[#This Row],[kWhSavings]]),0)","v":""},{"$f":"IFERROR(IF(Table_SummaryPI[[#This Row],[kWhSavings]]=\"\",\"\",$AU$22*Table_SummaryPI[[#This Row],[kWhSavings]]),0)","v":""},{"$f":"IFERROR(IF(MeasureCalc(Table_PI[[#This Row],[Hide:\nFormula Name]],Table_SummaryPI[[#This Row],[Quantity]],Table_PI[[#This Row],[List 1]],Table_PI[[#This Row],[List 2]],Table_PI[[#This Row],[List 3]],Table_PI[[#This Row],[Size]],Table_PI[[#This Row],[Input 1]],Table_PI[[#This Row],[Input 2]],Table_PI[[#This Row],[Input 3]],Table_PI[[#This Row],[Input 4]],'Customer Information'!$AR$12,200,ROW())<>\"No Rebate\",MeasureCalc(Table_PI[[#This Row],[Hide:\nFormula Name]],Table_SummaryPI[[#This Row],[Quantity]],Table_PI[[#This Row],[List 1]],Table_PI[[#This Row],[List 2]],Table_PI[[#This Row],[List 3]],Table_PI[[#This Row],[Size]],Table_PI[[#This Row],[Input 1]],Table_PI[[#This Row],[Input 2]],Table_PI[[#This Row],[Input 3]],Table_PI[[#This Row],[Input 4]],'Customer Information'!$AR$12,200,ROW()),\"\"),\"\")","v":""},{"$f":"IFERROR(IF(MeasureCalc(Table_PI[[#This Row],[Hide:\nFormula Name]],Table_SummaryPI[[#This Row],[Quantity]],Table_PI[[#This Row],[List 1]],Table_PI[[#This Row],[List 2]],Table_PI[[#This Row],[List 3]],Table_PI[[#This Row],[Size]],Table_PI[[#This Row],[Input 1]],Table_PI[[#This Row],[Input 2]],Table_PI[[#This Row],[Input 3]],Table_PI[[#This Row],[Input 4]],'Customer Information'!$AR$12,201,ROW())<>\"No Rebate\",MeasureCalc(Table_PI[[#This Row],[Hide:\nFormula Name]],Table_SummaryPI[[#This Row],[Quantity]],Table_PI[[#This Row],[List 1]],Table_PI[[#This Row],[List 2]],Table_PI[[#This Row],[List 3]],Table_PI[[#This Row],[Size]],Table_PI[[#This Row],[Input 1]],Table_PI[[#This Row],[Input 2]],Table_PI[[#This Row],[Input 3]],Table_PI[[#This Row],[Input 4]],'Customer Information'!$AR$12,201,ROW()),\"\"),\"\")","v":""}]
[{"$f":"Table_PI[[#This Row],[Line No.]]","v":""},{"$f":"IF(Table_SummaryPI[[#This Row],[MeassureCategory]]<>\"\",CONCATENATE(Table_SummaryPI[[#This Row],[MeassureCategory]],  \" - \", Table_SummaryPI[[#This Row],[ProposedMeasureCategory]],  \" - \", TEXT(Table_SummaryPI[[#This Row],[Size]],\"#,##0.00\"),\" \",Table_SummaryPI[[#This Row],[SizeUnit]]),\"\")","v":""},{"$f":"SUBSTITUTE(Table_PI[[#This Row],[Measure]],\"     \",\"\",1)","v":""},{"$f":"IF(Table_PI[[#This Row],[List 1]]<>\"\",Table_PI[[#This Row],[List 1]],\"\")","v":""},{"$f":"IF(Table_PI[[#This Row],[List 2]]<>\"\",Table_PI[[#This Row],[List 2]],\"\")","v":""},{"$f":"IF(Table_PI[[#This Row],[List 3]]<>\"\",Table_PI[[#This Row],[List 3]],\"\")","v":""},{"$f":"IF(Table_PI[[#This Row],[Manufacturer]]=\"\",\"\",Table_PI[[#This Row],[Manufacturer]])","v":""},{"$f":"IF(Table_PI[[#This Row],[Model Number]]=\"\",\"\",Table_PI[[#This Row],[Model Number]])","v":""},{"$f":"IF(Table_PI[[#This Row],[Serial Number(s)]]=\"\",\"\",Table_PI[[#This Row],[Serial Number(s)]])","v":""},null,{"$f":"IF(Table_PI[[#This Row],[Size]]=\"\",\"\",Table_PI[[#This Row],[Size]])","v":""},null,{"$f":"IFERROR(IF(AND(MeasureCalc(Table_PI[[#This Row],[Hide:\nFormula Name]],Table_SummaryPI[[#This Row],[Quantity]],Table_PI[[#This Row],[List 1]],Table_PI[[#This Row],[List 2]],Table_PI[[#This Row],[List 3]],Table_PI[[#This Row],[Size]],Table_PI[[#This Row],[Input 1]],Table_PI[[#This Row],[Input 2]],Table_PI[[#This Row],[Input 3]],Table_PI[[#This Row],[Input 4]],'Customer Information'!$AR$12,100,ROW())<>0,MeasureCalc(Table_PI[[#This Row],[Hide:\nFormula Name]],Table_SummaryPI[[#This Row],[Quantity]],Table_PI[[#This Row],[List 1]],Table_PI[[#This Row],[List 2]],Table_PI[[#This Row],[List 3]],Table_PI[[#This Row],[Size]],Table_PI[[#This Row],[Input 1]],Table_PI[[#This Row],[Input 2]],Table_PI[[#This Row],[Input 3]],Table_PI[[#This Row],[Input 4]],'Customer Information'!$AR$12,100,ROW())<>\"No Rebate\"),MeasureCalc(Table_PI[[#This Row],[Hide:\nFormula Name]],Table_SummaryPI[[#This Row],[Quantity]],Table_PI[[#This Row],[List 1]],Table_PI[[#This Row],[List 2]],Table_PI[[#This Row],[List 3]],Table_PI[[#This Row],[Size]],Table_PI[[#This Row],[Input 1]],Table_PI[[#This Row],[Input 2]],Table_PI[[#This Row],[Input 3]],Table_PI[[#This Row],[Input 4]],'Customer Information'!$AR$12,100,ROW()),\"\"),\"\")","v":""},{"$f":"IF(Table_PI[[#This Row],[Input 1]]<>\"\",Table_PI[[#This Row],[Input 1]],\"\")","v":""},null,{"$f":"IFERROR(IF(AND(MeasureCalc(Table_PI[[#This Row],[Hide:\nFormula Name]],Table_SummaryPI[[#This Row],[Quantity]],Table_PI[[#This Row],[List 1]],Table_PI[[#This Row],[List 2]],Table_PI[[#This Row],[List 3]],Table_PI[[#This Row],[Size]],Table_PI[[#This Row],[Input 1]],Table_PI[[#This Row],[Input 2]],Table_PI[[#This Row],[Input 3]],Table_PI[[#This Row],[Input 4]],'Customer Information'!$AR$12,101,ROW())<>0,MeasureCalc(Table_PI[[#This Row],[Hide:\nFormula Name]],Table_SummaryPI[[#This Row],[Quantity]],Table_PI[[#This Row],[List 1]],Table_PI[[#This Row],[List 2]],Table_PI[[#This Row],[List 3]],Table_PI[[#This Row],[Size]],Table_PI[[#This Row],[Input 1]],Table_PI[[#This Row],[Input 2]],Table_PI[[#This Row],[Input 3]],Table_PI[[#This Row],[Input 4]],'Customer Information'!$AR$12,101,ROW())<>\"No Rebate\"),MeasureCalc(Table_PI[[#This Row],[Hide:\nFormula Name]],Table_SummaryPI[[#This Row],[Quantity]],Table_PI[[#This Row],[List 1]],Table_PI[[#This Row],[List 2]],Table_PI[[#This Row],[List 3]],Table_PI[[#This Row],[Size]],Table_PI[[#This Row],[Input 1]],Table_PI[[#This Row],[Input 2]],Table_PI[[#This Row],[Input 3]],Table_PI[[#This Row],[Input 4]],'Customer Information'!$AR$12,101,ROW()),\"\"),\"\")","v":""},{"$f":"IF(Table_PI[[#This Row],[Input 2]]<>\"\",Table_PI[[#This Row],[Input 2]],\"\")","v":""},null,{"$f":"IFERROR(IF(AND(MeasureCalc(Table_PI[[#This Row],[Hide:\nFormula Name]],Table_SummaryPI[[#This Row],[Quantity]],Table_PI[[#This Row],[List 1]],Table_PI[[#This Row],[List 2]],Table_PI[[#This Row],[List 3]],Table_PI[[#This Row],[Size]],Table_PI[[#This Row],[Input 1]],Table_PI[[#This Row],[Input 2]],Table_PI[[#This Row],[Input 3]],Table_PI[[#This Row],[Input 4]],'Customer Information'!$AR$12,102,ROW())<>0,MeasureCalc(Table_PI[[#This Row],[Hide:\nFormula Name]],Table_SummaryPI[[#This Row],[Quantity]],Table_PI[[#This Row],[List 1]],Table_PI[[#This Row],[List 2]],Table_PI[[#This Row],[List 3]],Table_PI[[#This Row],[Size]],Table_PI[[#This Row],[Input 1]],Table_PI[[#This Row],[Input 2]],Table_PI[[#This Row],[Input 3]],Table_PI[[#This Row],[Input 4]],'Customer Information'!$AR$12,102,ROW())<>\"No Rebate\"),MeasureCalc(Table_PI[[#This Row],[Hide:\nFormula Name]],Table_SummaryPI[[#This Row],[Quantity]],Table_PI[[#This Row],[List 1]],Table_PI[[#This Row],[List 2]],Table_PI[[#This Row],[List 3]],Table_PI[[#This Row],[Size]],Table_PI[[#This Row],[Input 1]],Table_PI[[#This Row],[Input 2]],Table_PI[[#This Row],[Input 3]],Table_PI[[#This Row],[Input 4]],'Customer Information'!$AR$12,102,ROW()),\"\"),\"\")","v":""},{"$f":"IF(Table_PI[[#This Row],[Input 3]]<>\"\",Table_PI[[#This Row],[Input 3]],\"\")","v":""},null,{"$f":"IFERROR(IF(AND(MeasureCalc(Table_PI[[#This Row],[Hide:\nFormula Name]],Table_SummaryPI[[#This Row],[Quantity]],Table_PI[[#This Row],[List 1]],Table_PI[[#This Row],[List 2]],Table_PI[[#This Row],[List 3]],Table_PI[[#This Row],[Size]],Table_PI[[#This Row],[Input 1]],Table_PI[[#This Row],[Input 2]],Table_PI[[#This Row],[Input 3]],Table_PI[[#This Row],[Input 4]],'Customer Information'!$AR$12,103,ROW())<>0,MeasureCalc(Table_PI[[#This Row],[Hide:\nFormula Name]],Table_SummaryPI[[#This Row],[Quantity]],Table_PI[[#This Row],[List 1]],Table_PI[[#This Row],[List 2]],Table_PI[[#This Row],[List 3]],Table_PI[[#This Row],[Size]],Table_PI[[#This Row],[Input 1]],Table_PI[[#This Row],[Input 2]],Table_PI[[#This Row],[Input 3]],Table_PI[[#This Row],[Input 4]],'Customer Information'!$AR$12,103,ROW())<>\"No Rebate\"),MeasureCalc(Table_PI[[#This Row],[Hide:\nFormula Name]],Table_SummaryPI[[#This Row],[Quantity]],Table_PI[[#This Row],[List 1]],Table_PI[[#This Row],[List 2]],Table_PI[[#This Row],[List 3]],Table_PI[[#This Row],[Size]],Table_PI[[#This Row],[Input 1]],Table_PI[[#This Row],[Input 2]],Table_PI[[#This Row],[Input 3]],Table_PI[[#This Row],[Input 4]],'Customer Information'!$AR$12,103,ROW()),\"\"),\"\")","v":""},{"$f":"IF(Table_PI[[#This Row],[Input 4]]<>\"\",Table_PI[[#This Row],[Input 4]],\"\")","v":""},{"$f":"IF(Table_PI[[#This Row],[Quantity]]=\"\",\"\",Table_PI[[#This Row],[Quantity]])","v":""},{"$f":"IF(Table_PI[[#This Row],[Notes]]=\"\",\"\",Table_PI[[#This Row],[Notes]])","v":""},{"$f":"IF(OR(Table_PI[[#This Row],[Hide:\nBaseline kWh]]=\"\",Table_PI[[#This Row],[Hide:\nBaseline kWh]]=0),\"\",Table_PI[[#This Row],[Hide:\nBaseline kWh]])","v":""},{"$f":"IF(OR(Table_PI[[#This Row],[Hide:\nBaseline kW]]=\"\",Table_PI[[#This Row],[Hide:\nBaseline kW]]=0),\"\",Table_PI[[#This Row],[Hide:\nBaseline kW]])","v":""},{"$f":"IF(OR(Table_PI[[#This Row],[Hide:\nProposed kWh]]=\"\",Table_PI[[#This Row],[Hide:\nProposed kWh]]=0),\"\",Table_PI[[#This Row],[Hide:\nProposed kWh]])","v":""},{"$f":"IF(OR(Table_PI[[#This Row],[Hide:\nProposed kW]]=\"\",Table_PI[[#This Row],[Hide:\nProposed kW]]=0),\"\",Table_PI[[#This Row],[Hide:\nProposed kW]])","v":""},{"$f":"IF(OR(Table_PI[[#This Row],[Rebate]]=\"\",Table_PI[[#This Row],[Rebate]]=0),\"\",Table_PI[[#This Row],[Rebate]])","v":""},{"$f":"IF(OR(Table_PI[[#This Row],[Hide:\nIncremental Cost]]=\"\",Table_PI[[#This Row],[Hide:\nIncremental Cost]]=0),\"\",Table_PI[[#This Row],[Hide:\nIncremental Cost]])","v":""},{"$f":"IFERROR(IF(Table_SummaryPI[[#This Row],[kWhSavings]]=\"\",\"\",ROUND(Table_SummaryPI[[#This Row],[kWhSavings]]/$AG$401*'Customer Information'!$BC$17,2)),0)","v":""},{"$f":"IF(OR(Table_PI[[#This Row],[Annual kWh]]=\"\",Table_PI[[#This Row],[Annual kWh]]=0),\"\",Table_PI[[#This Row],[Annual kWh]])","v":""},{"$f":"IF(OR(Table_PI[[#This Row],[Peak kW]]=\"\",Table_PI[[#This Row],[Peak kW]]=0),\"\",Table_PI[[#This Row],[Peak kW]])","v":""},{"$f":"IFERROR(IF(Table_SummaryPI[[#This Row],[kWhSavings]]=\"\",\"\",$AU$9*Table_SummaryPI[[#This Row],[kWhSavings]]),0)","v":""},{"$f":"IFERROR(IF(Table_SummaryPI[[#This Row],[kWhSavings]]=\"\",\"\",$AU$14*Table_SummaryPI[[#This Row],[kWhSavings]]),0)","v":""},{"$f":"IFERROR(IF(Table_SummaryPI[[#This Row],[kWhSavings]]=\"\",\"\",$AU$18*Table_SummaryPI[[#This Row],[kWhSavings]]),0)","v":""},{"$f":"IFERROR(IF(Table_SummaryPI[[#This Row],[kWhSavings]]=\"\",\"\",$AU$22*Table_SummaryPI[[#This Row],[kWhSavings]]),0)","v":""},{"$f":"IFERROR(IF(MeasureCalc(Table_PI[[#This Row],[Hide:\nFormula Name]],Table_SummaryPI[[#This Row],[Quantity]],Table_PI[[#This Row],[List 1]],Table_PI[[#This Row],[List 2]],Table_PI[[#This Row],[List 3]],Table_PI[[#This Row],[Size]],Table_PI[[#This Row],[Input 1]],Table_PI[[#This Row],[Input 2]],Table_PI[[#This Row],[Input 3]],Table_PI[[#This Row],[Input 4]],'Customer Information'!$AR$12,200,ROW())<>\"No Rebate\",MeasureCalc(Table_PI[[#This Row],[Hide:\nFormula Name]],Table_SummaryPI[[#This Row],[Quantity]],Table_PI[[#This Row],[List 1]],Table_PI[[#This Row],[List 2]],Table_PI[[#This Row],[List 3]],Table_PI[[#This Row],[Size]],Table_PI[[#This Row],[Input 1]],Table_PI[[#This Row],[Input 2]],Table_PI[[#This Row],[Input 3]],Table_PI[[#This Row],[Input 4]],'Customer Information'!$AR$12,200,ROW()),\"\"),\"\")","v":""},{"$f":"IFERROR(IF(MeasureCalc(Table_PI[[#This Row],[Hide:\nFormula Name]],Table_SummaryPI[[#This Row],[Quantity]],Table_PI[[#This Row],[List 1]],Table_PI[[#This Row],[List 2]],Table_PI[[#This Row],[List 3]],Table_PI[[#This Row],[Size]],Table_PI[[#This Row],[Input 1]],Table_PI[[#This Row],[Input 2]],Table_PI[[#This Row],[Input 3]],Table_PI[[#This Row],[Input 4]],'Customer Information'!$AR$12,201,ROW())<>\"No Rebate\",MeasureCalc(Table_PI[[#This Row],[Hide:\nFormula Name]],Table_SummaryPI[[#This Row],[Quantity]],Table_PI[[#This Row],[List 1]],Table_PI[[#This Row],[List 2]],Table_PI[[#This Row],[List 3]],Table_PI[[#This Row],[Size]],Table_PI[[#This Row],[Input 1]],Table_PI[[#This Row],[Input 2]],Table_PI[[#This Row],[Input 3]],Table_PI[[#This Row],[Input 4]],'Customer Information'!$AR$12,201,ROW()),\"\"),\"\")","v":""}]
[{"$f":"Table_PI[[#This Row],[Line No.]]","v":""},{"$f":"IF(Table_SummaryPI[[#This Row],[MeassureCategory]]<>\"\",CONCATENATE(Table_SummaryPI[[#This Row],[MeassureCategory]],  \" - \", Table_SummaryPI[[#This Row],[ProposedMeasureCategory]],  \" - \", TEXT(Table_SummaryPI[[#This Row],[Size]],\"#,##0.00\"),\" \",Table_SummaryPI[[#This Row],[SizeUnit]]),\"\")","v":""},{"$f":"SUBSTITUTE(Table_PI[[#This Row],[Measure]],\"     \",\"\",1)","v":""},{"$f":"IF(Table_PI[[#This Row],[List 1]]<>\"\",Table_PI[[#This Row],[List 1]],\"\")","v":""},{"$f":"IF(Table_PI[[#This Row],[List 2]]<>\"\",Table_PI[[#This Row],[List 2]],\"\")","v":""},{"$f":"IF(Table_PI[[#This Row],[List 3]]<>\"\",Table_PI[[#This Row],[List 3]],\"\")","v":""},{"$f":"IF(Table_PI[[#This Row],[Manufacturer]]=\"\",\"\",Table_PI[[#This Row],[Manufacturer]])","v":""},{"$f":"IF(Table_PI[[#This Row],[Model Number]]=\"\",\"\",Table_PI[[#This Row],[Model Number]])","v":""},{"$f":"IF(Table_PI[[#This Row],[Serial Number(s)]]=\"\",\"\",Table_PI[[#This Row],[Serial Number(s)]])","v":""},null,{"$f":"IF(Table_PI[[#This Row],[Size]]=\"\",\"\",Table_PI[[#This Row],[Size]])","v":""},null,{"$f":"IFERROR(IF(AND(MeasureCalc(Table_PI[[#This Row],[Hide:\nFormula Name]],Table_SummaryPI[[#This Row],[Quantity]],Table_PI[[#This Row],[List 1]],Table_PI[[#This Row],[List 2]],Table_PI[[#This Row],[List 3]],Table_PI[[#This Row],[Size]],Table_PI[[#This Row],[Input 1]],Table_PI[[#This Row],[Input 2]],Table_PI[[#This Row],[Input 3]],Table_PI[[#This Row],[Input 4]],'Customer Information'!$AR$12,100,ROW())<>0,MeasureCalc(Table_PI[[#This Row],[Hide:\nFormula Name]],Table_SummaryPI[[#This Row],[Quantity]],Table_PI[[#This Row],[List 1]],Table_PI[[#This Row],[List 2]],Table_PI[[#This Row],[List 3]],Table_PI[[#This Row],[Size]],Table_PI[[#This Row],[Input 1]],Table_PI[[#This Row],[Input 2]],Table_PI[[#This Row],[Input 3]],Table_PI[[#This Row],[Input 4]],'Customer Information'!$AR$12,100,ROW())<>\"No Rebate\"),MeasureCalc(Table_PI[[#This Row],[Hide:\nFormula Name]],Table_SummaryPI[[#This Row],[Quantity]],Table_PI[[#This Row],[List 1]],Table_PI[[#This Row],[List 2]],Table_PI[[#This Row],[List 3]],Table_PI[[#This Row],[Size]],Table_PI[[#This Row],[Input 1]],Table_PI[[#This Row],[Input 2]],Table_PI[[#This Row],[Input 3]],Table_PI[[#This Row],[Input 4]],'Customer Information'!$AR$12,100,ROW()),\"\"),\"\")","v":""},{"$f":"IF(Table_PI[[#This Row],[Input 1]]<>\"\",Table_PI[[#This Row],[Input 1]],\"\")","v":""},null,{"$f":"IFERROR(IF(AND(MeasureCalc(Table_PI[[#This Row],[Hide:\nFormula Name]],Table_SummaryPI[[#This Row],[Quantity]],Table_PI[[#This Row],[List 1]],Table_PI[[#This Row],[List 2]],Table_PI[[#This Row],[List 3]],Table_PI[[#This Row],[Size]],Table_PI[[#This Row],[Input 1]],Table_PI[[#This Row],[Input 2]],Table_PI[[#This Row],[Input 3]],Table_PI[[#This Row],[Input 4]],'Customer Information'!$AR$12,101,ROW())<>0,MeasureCalc(Table_PI[[#This Row],[Hide:\nFormula Name]],Table_SummaryPI[[#This Row],[Quantity]],Table_PI[[#This Row],[List 1]],Table_PI[[#This Row],[List 2]],Table_PI[[#This Row],[List 3]],Table_PI[[#This Row],[Size]],Table_PI[[#This Row],[Input 1]],Table_PI[[#This Row],[Input 2]],Table_PI[[#This Row],[Input 3]],Table_PI[[#This Row],[Input 4]],'Customer Information'!$AR$12,101,ROW())<>\"No Rebate\"),MeasureCalc(Table_PI[[#This Row],[Hide:\nFormula Name]],Table_SummaryPI[[#This Row],[Quantity]],Table_PI[[#This Row],[List 1]],Table_PI[[#This Row],[List 2]],Table_PI[[#This Row],[List 3]],Table_PI[[#This Row],[Size]],Table_PI[[#This Row],[Input 1]],Table_PI[[#This Row],[Input 2]],Table_PI[[#This Row],[Input 3]],Table_PI[[#This Row],[Input 4]],'Customer Information'!$AR$12,101,ROW()),\"\"),\"\")","v":""},{"$f":"IF(Table_PI[[#This Row],[Input 2]]<>\"\",Table_PI[[#This Row],[Input 2]],\"\")","v":""},null,{"$f":"IFERROR(IF(AND(MeasureCalc(Table_PI[[#This Row],[Hide:\nFormula Name]],Table_SummaryPI[[#This Row],[Quantity]],Table_PI[[#This Row],[List 1]],Table_PI[[#This Row],[List 2]],Table_PI[[#This Row],[List 3]],Table_PI[[#This Row],[Size]],Table_PI[[#This Row],[Input 1]],Table_PI[[#This Row],[Input 2]],Table_PI[[#This Row],[Input 3]],Table_PI[[#This Row],[Input 4]],'Customer Information'!$AR$12,102,ROW())<>0,MeasureCalc(Table_PI[[#This Row],[Hide:\nFormula Name]],Table_SummaryPI[[#This Row],[Quantity]],Table_PI[[#This Row],[List 1]],Table_PI[[#This Row],[List 2]],Table_PI[[#This Row],[List 3]],Table_PI[[#This Row],[Size]],Table_PI[[#This Row],[Input 1]],Table_PI[[#This Row],[Input 2]],Table_PI[[#This Row],[Input 3]],Table_PI[[#This Row],[Input 4]],'Customer Information'!$AR$12,102,ROW())<>\"No Rebate\"),MeasureCalc(Table_PI[[#This Row],[Hide:\nFormula Name]],Table_SummaryPI[[#This Row],[Quantity]],Table_PI[[#This Row],[List 1]],Table_PI[[#This Row],[List 2]],Table_PI[[#This Row],[List 3]],Table_PI[[#This Row],[Size]],Table_PI[[#This Row],[Input 1]],Table_PI[[#This Row],[Input 2]],Table_PI[[#This Row],[Input 3]],Table_PI[[#This Row],[Input 4]],'Customer Information'!$AR$12,102,ROW()),\"\"),\"\")","v":""},{"$f":"IF(Table_PI[[#This Row],[Input 3]]<>\"\",Table_PI[[#This Row],[Input 3]],\"\")","v":""},null,{"$f":"IFERROR(IF(AND(MeasureCalc(Table_PI[[#This Row],[Hide:\nFormula Name]],Table_SummaryPI[[#This Row],[Quantity]],Table_PI[[#This Row],[List 1]],Table_PI[[#This Row],[List 2]],Table_PI[[#This Row],[List 3]],Table_PI[[#This Row],[Size]],Table_PI[[#This Row],[Input 1]],Table_PI[[#This Row],[Input 2]],Table_PI[[#This Row],[Input 3]],Table_PI[[#This Row],[Input 4]],'Customer Information'!$AR$12,103,ROW())<>0,MeasureCalc(Table_PI[[#This Row],[Hide:\nFormula Name]],Table_SummaryPI[[#This Row],[Quantity]],Table_PI[[#This Row],[List 1]],Table_PI[[#This Row],[List 2]],Table_PI[[#This Row],[List 3]],Table_PI[[#This Row],[Size]],Table_PI[[#This Row],[Input 1]],Table_PI[[#This Row],[Input 2]],Table_PI[[#This Row],[Input 3]],Table_PI[[#This Row],[Input 4]],'Customer Information'!$AR$12,103,ROW())<>\"No Rebate\"),MeasureCalc(Table_PI[[#This Row],[Hide:\nFormula Name]],Table_SummaryPI[[#This Row],[Quantity]],Table_PI[[#This Row],[List 1]],Table_PI[[#This Row],[List 2]],Table_PI[[#This Row],[List 3]],Table_PI[[#This Row],[Size]],Table_PI[[#This Row],[Input 1]],Table_PI[[#This Row],[Input 2]],Table_PI[[#This Row],[Input 3]],Table_PI[[#This Row],[Input 4]],'Customer Information'!$AR$12,103,ROW()),\"\"),\"\")","v":""},{"$f":"IF(Table_PI[[#This Row],[Input 4]]<>\"\",Table_PI[[#This Row],[Input 4]],\"\")","v":""},{"$f":"IF(Table_PI[[#This Row],[Quantity]]=\"\",\"\",Table_PI[[#This Row],[Quantity]])","v":""},{"$f":"IF(Table_PI[[#This Row],[Notes]]=\"\",\"\",Table_PI[[#This Row],[Notes]])","v":""},{"$f":"IF(OR(Table_PI[[#This Row],[Hide:\nBaseline kWh]]=\"\",Table_PI[[#This Row],[Hide:\nBaseline kWh]]=0),\"\",Table_PI[[#This Row],[Hide:\nBaseline kWh]])","v":""},{"$f":"IF(OR(Table_PI[[#This Row],[Hide:\nBaseline kW]]=\"\",Table_PI[[#This Row],[Hide:\nBaseline kW]]=0),\"\",Table_PI[[#This Row],[Hide:\nBaseline kW]])","v":""},{"$f":"IF(OR(Table_PI[[#This Row],[Hide:\nProposed kWh]]=\"\",Table_PI[[#This Row],[Hide:\nProposed kWh]]=0),\"\",Table_PI[[#This Row],[Hide:\nProposed kWh]])","v":""},{"$f":"IF(OR(Table_PI[[#This Row],[Hide:\nProposed kW]]=\"\",Table_PI[[#This Row],[Hide:\nProposed kW]]=0),\"\",Table_PI[[#This Row],[Hide:\nProposed kW]])","v":""},{"$f":"IF(OR(Table_PI[[#This Row],[Rebate]]=\"\",Table_PI[[#This Row],[Rebate]]=0),\"\",Table_PI[[#This Row],[Rebate]])","v":""},{"$f":"IF(OR(Table_PI[[#This Row],[Hide:\nIncremental Cost]]=\"\",Table_PI[[#This Row],[Hide:\nIncremental Cost]]=0),\"\",Table_PI[[#This Row],[Hide:\nIncremental Cost]])","v":""},{"$f":"IFERROR(IF(Table_SummaryPI[[#This Row],[kWhSavings]]=\"\",\"\",ROUND(Table_SummaryPI[[#This Row],[kWhSavings]]/$AG$401*'Customer Information'!$BC$17,2)),0)","v":""},{"$f":"IF(OR(Table_PI[[#This Row],[Annual kWh]]=\"\",Table_PI[[#This Row],[Annual kWh]]=0),\"\",Table_PI[[#This Row],[Annual kWh]])","v":""},{"$f":"IF(OR(Table_PI[[#This Row],[Peak kW]]=\"\",Table_PI[[#This Row],[Peak kW]]=0),\"\",Table_PI[[#This Row],[Peak kW]])","v":""},{"$f":"IFERROR(IF(Table_SummaryPI[[#This Row],[kWhSavings]]=\"\",\"\",$AU$9*Table_SummaryPI[[#This Row],[kWhSavings]]),0)","v":""},{"$f":"IFERROR(IF(Table_SummaryPI[[#This Row],[kWhSavings]]=\"\",\"\",$AU$14*Table_SummaryPI[[#This Row],[kWhSavings]]),0)","v":""},{"$f":"IFERROR(IF(Table_SummaryPI[[#This Row],[kWhSavings]]=\"\",\"\",$AU$18*Table_SummaryPI[[#This Row],[kWhSavings]]),0)","v":""},{"$f":"IFERROR(IF(Table_SummaryPI[[#This Row],[kWhSavings]]=\"\",\"\",$AU$22*Table_SummaryPI[[#This Row],[kWhSavings]]),0)","v":""},{"$f":"IFERROR(IF(MeasureCalc(Table_PI[[#This Row],[Hide:\nFormula Name]],Table_SummaryPI[[#This Row],[Quantity]],Table_PI[[#This Row],[List 1]],Table_PI[[#This Row],[List 2]],Table_PI[[#This Row],[List 3]],Table_PI[[#This Row],[Size]],Table_PI[[#This Row],[Input 1]],Table_PI[[#This Row],[Input 2]],Table_PI[[#This Row],[Input 3]],Table_PI[[#This Row],[Input 4]],'Customer Information'!$AR$12,200,ROW())<>\"No Rebate\",MeasureCalc(Table_PI[[#This Row],[Hide:\nFormula Name]],Table_SummaryPI[[#This Row],[Quantity]],Table_PI[[#This Row],[List 1]],Table_PI[[#This Row],[List 2]],Table_PI[[#This Row],[List 3]],Table_PI[[#This Row],[Size]],Table_PI[[#This Row],[Input 1]],Table_PI[[#This Row],[Input 2]],Table_PI[[#This Row],[Input 3]],Table_PI[[#This Row],[Input 4]],'Customer Information'!$AR$12,200,ROW()),\"\"),\"\")","v":""},{"$f":"IFERROR(IF(MeasureCalc(Table_PI[[#This Row],[Hide:\nFormula Name]],Table_SummaryPI[[#This Row],[Quantity]],Table_PI[[#This Row],[List 1]],Table_PI[[#This Row],[List 2]],Table_PI[[#This Row],[List 3]],Table_PI[[#This Row],[Size]],Table_PI[[#This Row],[Input 1]],Table_PI[[#This Row],[Input 2]],Table_PI[[#This Row],[Input 3]],Table_PI[[#This Row],[Input 4]],'Customer Information'!$AR$12,201,ROW())<>\"No Rebate\",MeasureCalc(Table_PI[[#This Row],[Hide:\nFormula Name]],Table_SummaryPI[[#This Row],[Quantity]],Table_PI[[#This Row],[List 1]],Table_PI[[#This Row],[List 2]],Table_PI[[#This Row],[List 3]],Table_PI[[#This Row],[Size]],Table_PI[[#This Row],[Input 1]],Table_PI[[#This Row],[Input 2]],Table_PI[[#This Row],[Input 3]],Table_PI[[#This Row],[Input 4]],'Customer Information'!$AR$12,201,ROW()),\"\"),\"\")","v":""}]
[{"$f":"Table_PI[[#This Row],[Line No.]]","v":""},{"$f":"IF(Table_SummaryPI[[#This Row],[MeassureCategory]]<>\"\",CONCATENATE(Table_SummaryPI[[#This Row],[MeassureCategory]],  \" - \", Table_SummaryPI[[#This Row],[ProposedMeasureCategory]],  \" - \", TEXT(Table_SummaryPI[[#This Row],[Size]],\"#,##0.00\"),\" \",Table_SummaryPI[[#This Row],[SizeUnit]]),\"\")","v":""},{"$f":"SUBSTITUTE(Table_PI[[#This Row],[Measure]],\"     \",\"\",1)","v":""},{"$f":"IF(Table_PI[[#This Row],[List 1]]<>\"\",Table_PI[[#This Row],[List 1]],\"\")","v":""},{"$f":"IF(Table_PI[[#This Row],[List 2]]<>\"\",Table_PI[[#This Row],[List 2]],\"\")","v":""},{"$f":"IF(Table_PI[[#This Row],[List 3]]<>\"\",Table_PI[[#This Row],[List 3]],\"\")","v":""},{"$f":"IF(Table_PI[[#This Row],[Manufacturer]]=\"\",\"\",Table_PI[[#This Row],[Manufacturer]])","v":""},{"$f":"IF(Table_PI[[#This Row],[Model Number]]=\"\",\"\",Table_PI[[#This Row],[Model Number]])","v":""},{"$f":"IF(Table_PI[[#This Row],[Serial Number(s)]]=\"\",\"\",Table_PI[[#This Row],[Serial Number(s)]])","v":""},null,{"$f":"IF(Table_PI[[#This Row],[Size]]=\"\",\"\",Table_PI[[#This Row],[Size]])","v":""},null,{"$f":"IFERROR(IF(AND(MeasureCalc(Table_PI[[#This Row],[Hide:\nFormula Name]],Table_SummaryPI[[#This Row],[Quantity]],Table_PI[[#This Row],[List 1]],Table_PI[[#This Row],[List 2]],Table_PI[[#This Row],[List 3]],Table_PI[[#This Row],[Size]],Table_PI[[#This Row],[Input 1]],Table_PI[[#This Row],[Input 2]],Table_PI[[#This Row],[Input 3]],Table_PI[[#This Row],[Input 4]],'Customer Information'!$AR$12,100,ROW())<>0,MeasureCalc(Table_PI[[#This Row],[Hide:\nFormula Name]],Table_SummaryPI[[#This Row],[Quantity]],Table_PI[[#This Row],[List 1]],Table_PI[[#This Row],[List 2]],Table_PI[[#This Row],[List 3]],Table_PI[[#This Row],[Size]],Table_PI[[#This Row],[Input 1]],Table_PI[[#This Row],[Input 2]],Table_PI[[#This Row],[Input 3]],Table_PI[[#This Row],[Input 4]],'Customer Information'!$AR$12,100,ROW())<>\"No Rebate\"),MeasureCalc(Table_PI[[#This Row],[Hide:\nFormula Name]],Table_SummaryPI[[#This Row],[Quantity]],Table_PI[[#This Row],[List 1]],Table_PI[[#This Row],[List 2]],Table_PI[[#This Row],[List 3]],Table_PI[[#This Row],[Size]],Table_PI[[#This Row],[Input 1]],Table_PI[[#This Row],[Input 2]],Table_PI[[#This Row],[Input 3]],Table_PI[[#This Row],[Input 4]],'Customer Information'!$AR$12,100,ROW()),\"\"),\"\")","v":""},{"$f":"IF(Table_PI[[#This Row],[Input 1]]<>\"\",Table_PI[[#This Row],[Input 1]],\"\")","v":""},null,{"$f":"IFERROR(IF(AND(MeasureCalc(Table_PI[[#This Row],[Hide:\nFormula Name]],Table_SummaryPI[[#This Row],[Quantity]],Table_PI[[#This Row],[List 1]],Table_PI[[#This Row],[List 2]],Table_PI[[#This Row],[List 3]],Table_PI[[#This Row],[Size]],Table_PI[[#This Row],[Input 1]],Table_PI[[#This Row],[Input 2]],Table_PI[[#This Row],[Input 3]],Table_PI[[#This Row],[Input 4]],'Customer Information'!$AR$12,101,ROW())<>0,MeasureCalc(Table_PI[[#This Row],[Hide:\nFormula Name]],Table_SummaryPI[[#This Row],[Quantity]],Table_PI[[#This Row],[List 1]],Table_PI[[#This Row],[List 2]],Table_PI[[#This Row],[List 3]],Table_PI[[#This Row],[Size]],Table_PI[[#This Row],[Input 1]],Table_PI[[#This Row],[Input 2]],Table_PI[[#This Row],[Input 3]],Table_PI[[#This Row],[Input 4]],'Customer Information'!$AR$12,101,ROW())<>\"No Rebate\"),MeasureCalc(Table_PI[[#This Row],[Hide:\nFormula Name]],Table_SummaryPI[[#This Row],[Quantity]],Table_PI[[#This Row],[List 1]],Table_PI[[#This Row],[List 2]],Table_PI[[#This Row],[List 3]],Table_PI[[#This Row],[Size]],Table_PI[[#This Row],[Input 1]],Table_PI[[#This Row],[Input 2]],Table_PI[[#This Row],[Input 3]],Table_PI[[#This Row],[Input 4]],'Customer Information'!$AR$12,101,ROW()),\"\"),\"\")","v":""},{"$f":"IF(Table_PI[[#This Row],[Input 2]]<>\"\",Table_PI[[#This Row],[Input 2]],\"\")","v":""},null,{"$f":"IFERROR(IF(AND(MeasureCalc(Table_PI[[#This Row],[Hide:\nFormula Name]],Table_SummaryPI[[#This Row],[Quantity]],Table_PI[[#This Row],[List 1]],Table_PI[[#This Row],[List 2]],Table_PI[[#This Row],[List 3]],Table_PI[[#This Row],[Size]],Table_PI[[#This Row],[Input 1]],Table_PI[[#This Row],[Input 2]],Table_PI[[#This Row],[Input 3]],Table_PI[[#This Row],[Input 4]],'Customer Information'!$AR$12,102,ROW())<>0,MeasureCalc(Table_PI[[#This Row],[Hide:\nFormula Name]],Table_SummaryPI[[#This Row],[Quantity]],Table_PI[[#This Row],[List 1]],Table_PI[[#This Row],[List 2]],Table_PI[[#This Row],[List 3]],Table_PI[[#This Row],[Size]],Table_PI[[#This Row],[Input 1]],Table_PI[[#This Row],[Input 2]],Table_PI[[#This Row],[Input 3]],Table_PI[[#This Row],[Input 4]],'Customer Information'!$AR$12,102,ROW())<>\"No Rebate\"),MeasureCalc(Table_PI[[#This Row],[Hide:\nFormula Name]],Table_SummaryPI[[#This Row],[Quantity]],Table_PI[[#This Row],[List 1]],Table_PI[[#This Row],[List 2]],Table_PI[[#This Row],[List 3]],Table_PI[[#This Row],[Size]],Table_PI[[#This Row],[Input 1]],Table_PI[[#This Row],[Input 2]],Table_PI[[#This Row],[Input 3]],Table_PI[[#This Row],[Input 4]],'Customer Information'!$AR$12,102,ROW()),\"\"),\"\")","v":""},{"$f":"IF(Table_PI[[#This Row],[Input 3]]<>\"\",Table_PI[[#This Row],[Input 3]],\"\")","v":""},null,{"$f":"IFERROR(IF(AND(MeasureCalc(Table_PI[[#This Row],[Hide:\nFormula Name]],Table_SummaryPI[[#This Row],[Quantity]],Table_PI[[#This Row],[List 1]],Table_PI[[#This Row],[List 2]],Table_PI[[#This Row],[List 3]],Table_PI[[#This Row],[Size]],Table_PI[[#This Row],[Input 1]],Table_PI[[#This Row],[Input 2]],Table_PI[[#This Row],[Input 3]],Table_PI[[#This Row],[Input 4]],'Customer Information'!$AR$12,103,ROW())<>0,MeasureCalc(Table_PI[[#This Row],[Hide:\nFormula Name]],Table_SummaryPI[[#This Row],[Quantity]],Table_PI[[#This Row],[List 1]],Table_PI[[#This Row],[List 2]],Table_PI[[#This Row],[List 3]],Table_PI[[#This Row],[Size]],Table_PI[[#This Row],[Input 1]],Table_PI[[#This Row],[Input 2]],Table_PI[[#This Row],[Input 3]],Table_PI[[#This Row],[Input 4]],'Customer Information'!$AR$12,103,ROW())<>\"No Rebate\"),MeasureCalc(Table_PI[[#This Row],[Hide:\nFormula Name]],Table_SummaryPI[[#This Row],[Quantity]],Table_PI[[#This Row],[List 1]],Table_PI[[#This Row],[List 2]],Table_PI[[#This Row],[List 3]],Table_PI[[#This Row],[Size]],Table_PI[[#This Row],[Input 1]],Table_PI[[#This Row],[Input 2]],Table_PI[[#This Row],[Input 3]],Table_PI[[#This Row],[Input 4]],'Customer Information'!$AR$12,103,ROW()),\"\"),\"\")","v":""},{"$f":"IF(Table_PI[[#This Row],[Input 4]]<>\"\",Table_PI[[#This Row],[Input 4]],\"\")","v":""},{"$f":"IF(Table_PI[[#This Row],[Quantity]]=\"\",\"\",Table_PI[[#This Row],[Quantity]])","v":""},{"$f":"IF(Table_PI[[#This Row],[Notes]]=\"\",\"\",Table_PI[[#This Row],[Notes]])","v":""},{"$f":"IF(OR(Table_PI[[#This Row],[Hide:\nBaseline kWh]]=\"\",Table_PI[[#This Row],[Hide:\nBaseline kWh]]=0),\"\",Table_PI[[#This Row],[Hide:\nBaseline kWh]])","v":""},{"$f":"IF(OR(Table_PI[[#This Row],[Hide:\nBaseline kW]]=\"\",Table_PI[[#This Row],[Hide:\nBaseline kW]]=0),\"\",Table_PI[[#This Row],[Hide:\nBaseline kW]])","v":""},{"$f":"IF(OR(Table_PI[[#This Row],[Hide:\nProposed kWh]]=\"\",Table_PI[[#This Row],[Hide:\nProposed kWh]]=0),\"\",Table_PI[[#This Row],[Hide:\nProposed kWh]])","v":""},{"$f":"IF(OR(Table_PI[[#This Row],[Hide:\nProposed kW]]=\"\",Table_PI[[#This Row],[Hide:\nProposed kW]]=0),\"\",Table_PI[[#This Row],[Hide:\nProposed kW]])","v":""},{"$f":"IF(OR(Table_PI[[#This Row],[Rebate]]=\"\",Table_PI[[#This Row],[Rebate]]=0),\"\",Table_PI[[#This Row],[Rebate]])","v":""},{"$f":"IF(OR(Table_PI[[#This Row],[Hide:\nIncremental Cost]]=\"\",Table_PI[[#This Row],[Hide:\nIncremental Cost]]=0),\"\",Table_PI[[#This Row],[Hide:\nIncremental Cost]])","v":""},{"$f":"IFERROR(IF(Table_SummaryPI[[#This Row],[kWhSavings]]=\"\",\"\",ROUND(Table_SummaryPI[[#This Row],[kWhSavings]]/$AG$401*'Customer Information'!$BC$17,2)),0)","v":""},{"$f":"IF(OR(Table_PI[[#This Row],[Annual kWh]]=\"\",Table_PI[[#This Row],[Annual kWh]]=0),\"\",Table_PI[[#This Row],[Annual kWh]])","v":""},{"$f":"IF(OR(Table_PI[[#This Row],[Peak kW]]=\"\",Table_PI[[#This Row],[Peak kW]]=0),\"\",Table_PI[[#This Row],[Peak kW]])","v":""},{"$f":"IFERROR(IF(Table_SummaryPI[[#This Row],[kWhSavings]]=\"\",\"\",$AU$9*Table_SummaryPI[[#This Row],[kWhSavings]]),0)","v":""},{"$f":"IFERROR(IF(Table_SummaryPI[[#This Row],[kWhSavings]]=\"\",\"\",$AU$14*Table_SummaryPI[[#This Row],[kWhSavings]]),0)","v":""},{"$f":"IFERROR(IF(Table_SummaryPI[[#This Row],[kWhSavings]]=\"\",\"\",$AU$18*Table_SummaryPI[[#This Row],[kWhSavings]]),0)","v":""},{"$f":"IFERROR(IF(Table_SummaryPI[[#This Row],[kWhSavings]]=\"\",\"\",$AU$22*Table_SummaryPI[[#This Row],[kWhSavings]]),0)","v":""},{"$f":"IFERROR(IF(MeasureCalc(Table_PI[[#This Row],[Hide:\nFormula Name]],Table_SummaryPI[[#This Row],[Quantity]],Table_PI[[#This Row],[List 1]],Table_PI[[#This Row],[List 2]],Table_PI[[#This Row],[List 3]],Table_PI[[#This Row],[Size]],Table_PI[[#This Row],[Input 1]],Table_PI[[#This Row],[Input 2]],Table_PI[[#This Row],[Input 3]],Table_PI[[#This Row],[Input 4]],'Customer Information'!$AR$12,200,ROW())<>\"No Rebate\",MeasureCalc(Table_PI[[#This Row],[Hide:\nFormula Name]],Table_SummaryPI[[#This Row],[Quantity]],Table_PI[[#This Row],[List 1]],Table_PI[[#This Row],[List 2]],Table_PI[[#This Row],[List 3]],Table_PI[[#This Row],[Size]],Table_PI[[#This Row],[Input 1]],Table_PI[[#This Row],[Input 2]],Table_PI[[#This Row],[Input 3]],Table_PI[[#This Row],[Input 4]],'Customer Information'!$AR$12,200,ROW()),\"\"),\"\")","v":""},{"$f":"IFERROR(IF(MeasureCalc(Table_PI[[#This Row],[Hide:\nFormula Name]],Table_SummaryPI[[#This Row],[Quantity]],Table_PI[[#This Row],[List 1]],Table_PI[[#This Row],[List 2]],Table_PI[[#This Row],[List 3]],Table_PI[[#This Row],[Size]],Table_PI[[#This Row],[Input 1]],Table_PI[[#This Row],[Input 2]],Table_PI[[#This Row],[Input 3]],Table_PI[[#This Row],[Input 4]],'Customer Information'!$AR$12,201,ROW())<>\"No Rebate\",MeasureCalc(Table_PI[[#This Row],[Hide:\nFormula Name]],Table_SummaryPI[[#This Row],[Quantity]],Table_PI[[#This Row],[List 1]],Table_PI[[#This Row],[List 2]],Table_PI[[#This Row],[List 3]],Table_PI[[#This Row],[Size]],Table_PI[[#This Row],[Input 1]],Table_PI[[#This Row],[Input 2]],Table_PI[[#This Row],[Input 3]],Table_PI[[#This Row],[Input 4]],'Customer Information'!$AR$12,201,ROW()),\"\"),\"\")","v":""}]
[{"$f":"Table_PI[[#This Row],[Line No.]]","v":""},{"$f":"IF(Table_SummaryPI[[#This Row],[MeassureCategory]]<>\"\",CONCATENATE(Table_SummaryPI[[#This Row],[MeassureCategory]],  \" - \", Table_SummaryPI[[#This Row],[ProposedMeasureCategory]],  \" - \", TEXT(Table_SummaryPI[[#This Row],[Size]],\"#,##0.00\"),\" \",Table_SummaryPI[[#This Row],[SizeUnit]]),\"\")","v":""},{"$f":"SUBSTITUTE(Table_PI[[#This Row],[Measure]],\"     \",\"\",1)","v":""},{"$f":"IF(Table_PI[[#This Row],[List 1]]<>\"\",Table_PI[[#This Row],[List 1]],\"\")","v":""},{"$f":"IF(Table_PI[[#This Row],[List 2]]<>\"\",Table_PI[[#This Row],[List 2]],\"\")","v":""},{"$f":"IF(Table_PI[[#This Row],[List 3]]<>\"\",Table_PI[[#This Row],[List 3]],\"\")","v":""},{"$f":"IF(Table_PI[[#This Row],[Manufacturer]]=\"\",\"\",Table_PI[[#This Row],[Manufacturer]])","v":""},{"$f":"IF(Table_PI[[#This Row],[Model Number]]=\"\",\"\",Table_PI[[#This Row],[Model Number]])","v":""},{"$f":"IF(Table_PI[[#This Row],[Serial Number(s)]]=\"\",\"\",Table_PI[[#This Row],[Serial Number(s)]])","v":""},null,{"$f":"IF(Table_PI[[#This Row],[Size]]=\"\",\"\",Table_PI[[#This Row],[Size]])","v":""},null,{"$f":"IFERROR(IF(AND(MeasureCalc(Table_PI[[#This Row],[Hide:\nFormula Name]],Table_SummaryPI[[#This Row],[Quantity]],Table_PI[[#This Row],[List 1]],Table_PI[[#This Row],[List 2]],Table_PI[[#This Row],[List 3]],Table_PI[[#This Row],[Size]],Table_PI[[#This Row],[Input 1]],Table_PI[[#This Row],[Input 2]],Table_PI[[#This Row],[Input 3]],Table_PI[[#This Row],[Input 4]],'Customer Information'!$AR$12,100,ROW())<>0,MeasureCalc(Table_PI[[#This Row],[Hide:\nFormula Name]],Table_SummaryPI[[#This Row],[Quantity]],Table_PI[[#This Row],[List 1]],Table_PI[[#This Row],[List 2]],Table_PI[[#This Row],[List 3]],Table_PI[[#This Row],[Size]],Table_PI[[#This Row],[Input 1]],Table_PI[[#This Row],[Input 2]],Table_PI[[#This Row],[Input 3]],Table_PI[[#This Row],[Input 4]],'Customer Information'!$AR$12,100,ROW())<>\"No Rebate\"),MeasureCalc(Table_PI[[#This Row],[Hide:\nFormula Name]],Table_SummaryPI[[#This Row],[Quantity]],Table_PI[[#This Row],[List 1]],Table_PI[[#This Row],[List 2]],Table_PI[[#This Row],[List 3]],Table_PI[[#This Row],[Size]],Table_PI[[#This Row],[Input 1]],Table_PI[[#This Row],[Input 2]],Table_PI[[#This Row],[Input 3]],Table_PI[[#This Row],[Input 4]],'Customer Information'!$AR$12,100,ROW()),\"\"),\"\")","v":""},{"$f":"IF(Table_PI[[#This Row],[Input 1]]<>\"\",Table_PI[[#This Row],[Input 1]],\"\")","v":""},null,{"$f":"IFERROR(IF(AND(MeasureCalc(Table_PI[[#This Row],[Hide:\nFormula Name]],Table_SummaryPI[[#This Row],[Quantity]],Table_PI[[#This Row],[List 1]],Table_PI[[#This Row],[List 2]],Table_PI[[#This Row],[List 3]],Table_PI[[#This Row],[Size]],Table_PI[[#This Row],[Input 1]],Table_PI[[#This Row],[Input 2]],Table_PI[[#This Row],[Input 3]],Table_PI[[#This Row],[Input 4]],'Customer Information'!$AR$12,101,ROW())<>0,MeasureCalc(Table_PI[[#This Row],[Hide:\nFormula Name]],Table_SummaryPI[[#This Row],[Quantity]],Table_PI[[#This Row],[List 1]],Table_PI[[#This Row],[List 2]],Table_PI[[#This Row],[List 3]],Table_PI[[#This Row],[Size]],Table_PI[[#This Row],[Input 1]],Table_PI[[#This Row],[Input 2]],Table_PI[[#This Row],[Input 3]],Table_PI[[#This Row],[Input 4]],'Customer Information'!$AR$12,101,ROW())<>\"No Rebate\"),MeasureCalc(Table_PI[[#This Row],[Hide:\nFormula Name]],Table_SummaryPI[[#This Row],[Quantity]],Table_PI[[#This Row],[List 1]],Table_PI[[#This Row],[List 2]],Table_PI[[#This Row],[List 3]],Table_PI[[#This Row],[Size]],Table_PI[[#This Row],[Input 1]],Table_PI[[#This Row],[Input 2]],Table_PI[[#This Row],[Input 3]],Table_PI[[#This Row],[Input 4]],'Customer Information'!$AR$12,101,ROW()),\"\"),\"\")","v":""},{"$f":"IF(Table_PI[[#This Row],[Input 2]]<>\"\",Table_PI[[#This Row],[Input 2]],\"\")","v":""},null,{"$f":"IFERROR(IF(AND(MeasureCalc(Table_PI[[#This Row],[Hide:\nFormula Name]],Table_SummaryPI[[#This Row],[Quantity]],Table_PI[[#This Row],[List 1]],Table_PI[[#This Row],[List 2]],Table_PI[[#This Row],[List 3]],Table_PI[[#This Row],[Size]],Table_PI[[#This Row],[Input 1]],Table_PI[[#This Row],[Input 2]],Table_PI[[#This Row],[Input 3]],Table_PI[[#This Row],[Input 4]],'Customer Information'!$AR$12,102,ROW())<>0,MeasureCalc(Table_PI[[#This Row],[Hide:\nFormula Name]],Table_SummaryPI[[#This Row],[Quantity]],Table_PI[[#This Row],[List 1]],Table_PI[[#This Row],[List 2]],Table_PI[[#This Row],[List 3]],Table_PI[[#This Row],[Size]],Table_PI[[#This Row],[Input 1]],Table_PI[[#This Row],[Input 2]],Table_PI[[#This Row],[Input 3]],Table_PI[[#This Row],[Input 4]],'Customer Information'!$AR$12,102,ROW())<>\"No Rebate\"),MeasureCalc(Table_PI[[#This Row],[Hide:\nFormula Name]],Table_SummaryPI[[#This Row],[Quantity]],Table_PI[[#This Row],[List 1]],Table_PI[[#This Row],[List 2]],Table_PI[[#This Row],[List 3]],Table_PI[[#This Row],[Size]],Table_PI[[#This Row],[Input 1]],Table_PI[[#This Row],[Input 2]],Table_PI[[#This Row],[Input 3]],Table_PI[[#This Row],[Input 4]],'Customer Information'!$AR$12,102,ROW()),\"\"),\"\")","v":""},{"$f":"IF(Table_PI[[#This Row],[Input 3]]<>\"\",Table_PI[[#This Row],[Input 3]],\"\")","v":""},null,{"$f":"IFERROR(IF(AND(MeasureCalc(Table_PI[[#This Row],[Hide:\nFormula Name]],Table_SummaryPI[[#This Row],[Quantity]],Table_PI[[#This Row],[List 1]],Table_PI[[#This Row],[List 2]],Table_PI[[#This Row],[List 3]],Table_PI[[#This Row],[Size]],Table_PI[[#This Row],[Input 1]],Table_PI[[#This Row],[Input 2]],Table_PI[[#This Row],[Input 3]],Table_PI[[#This Row],[Input 4]],'Customer Information'!$AR$12,103,ROW())<>0,MeasureCalc(Table_PI[[#This Row],[Hide:\nFormula Name]],Table_SummaryPI[[#This Row],[Quantity]],Table_PI[[#This Row],[List 1]],Table_PI[[#This Row],[List 2]],Table_PI[[#This Row],[List 3]],Table_PI[[#This Row],[Size]],Table_PI[[#This Row],[Input 1]],Table_PI[[#This Row],[Input 2]],Table_PI[[#This Row],[Input 3]],Table_PI[[#This Row],[Input 4]],'Customer Information'!$AR$12,103,ROW())<>\"No Rebate\"),MeasureCalc(Table_PI[[#This Row],[Hide:\nFormula Name]],Table_SummaryPI[[#This Row],[Quantity]],Table_PI[[#This Row],[List 1]],Table_PI[[#This Row],[List 2]],Table_PI[[#This Row],[List 3]],Table_PI[[#This Row],[Size]],Table_PI[[#This Row],[Input 1]],Table_PI[[#This Row],[Input 2]],Table_PI[[#This Row],[Input 3]],Table_PI[[#This Row],[Input 4]],'Customer Information'!$AR$12,103,ROW()),\"\"),\"\")","v":""},{"$f":"IF(Table_PI[[#This Row],[Input 4]]<>\"\",Table_PI[[#This Row],[Input 4]],\"\")","v":""},{"$f":"IF(Table_PI[[#This Row],[Quantity]]=\"\",\"\",Table_PI[[#This Row],[Quantity]])","v":""},{"$f":"IF(Table_PI[[#This Row],[Notes]]=\"\",\"\",Table_PI[[#This Row],[Notes]])","v":""},{"$f":"IF(OR(Table_PI[[#This Row],[Hide:\nBaseline kWh]]=\"\",Table_PI[[#This Row],[Hide:\nBaseline kWh]]=0),\"\",Table_PI[[#This Row],[Hide:\nBaseline kWh]])","v":""},{"$f":"IF(OR(Table_PI[[#This Row],[Hide:\nBaseline kW]]=\"\",Table_PI[[#This Row],[Hide:\nBaseline kW]]=0),\"\",Table_PI[[#This Row],[Hide:\nBaseline kW]])","v":""},{"$f":"IF(OR(Table_PI[[#This Row],[Hide:\nProposed kWh]]=\"\",Table_PI[[#This Row],[Hide:\nProposed kWh]]=0),\"\",Table_PI[[#This Row],[Hide:\nProposed kWh]])","v":""},{"$f":"IF(OR(Table_PI[[#This Row],[Hide:\nProposed kW]]=\"\",Table_PI[[#This Row],[Hide:\nProposed kW]]=0),\"\",Table_PI[[#This Row],[Hide:\nProposed kW]])","v":""},{"$f":"IF(OR(Table_PI[[#This Row],[Rebate]]=\"\",Table_PI[[#This Row],[Rebate]]=0),\"\",Table_PI[[#This Row],[Rebate]])","v":""},{"$f":"IF(OR(Table_PI[[#This Row],[Hide:\nIncremental Cost]]=\"\",Table_PI[[#This Row],[Hide:\nIncremental Cost]]=0),\"\",Table_PI[[#This Row],[Hide:\nIncremental Cost]])","v":""},{"$f":"IFERROR(IF(Table_SummaryPI[[#This Row],[kWhSavings]]=\"\",\"\",ROUND(Table_SummaryPI[[#This Row],[kWhSavings]]/$AG$401*'Customer Information'!$BC$17,2)),0)","v":""},{"$f":"IF(OR(Table_PI[[#This Row],[Annual kWh]]=\"\",Table_PI[[#This Row],[Annual kWh]]=0),\"\",Table_PI[[#This Row],[Annual kWh]])","v":""},{"$f":"IF(OR(Table_PI[[#This Row],[Peak kW]]=\"\",Table_PI[[#This Row],[Peak kW]]=0),\"\",Table_PI[[#This Row],[Peak kW]])","v":""},{"$f":"IFERROR(IF(Table_SummaryPI[[#This Row],[kWhSavings]]=\"\",\"\",$AU$9*Table_SummaryPI[[#This Row],[kWhSavings]]),0)","v":""},{"$f":"IFERROR(IF(Table_SummaryPI[[#This Row],[kWhSavings]]=\"\",\"\",$AU$14*Table_SummaryPI[[#This Row],[kWhSavings]]),0)","v":""},{"$f":"IFERROR(IF(Table_SummaryPI[[#This Row],[kWhSavings]]=\"\",\"\",$AU$18*Table_SummaryPI[[#This Row],[kWhSavings]]),0)","v":""},{"$f":"IFERROR(IF(Table_SummaryPI[[#This Row],[kWhSavings]]=\"\",\"\",$AU$22*Table_SummaryPI[[#This Row],[kWhSavings]]),0)","v":""},{"$f":"IFERROR(IF(MeasureCalc(Table_PI[[#This Row],[Hide:\nFormula Name]],Table_SummaryPI[[#This Row],[Quantity]],Table_PI[[#This Row],[List 1]],Table_PI[[#This Row],[List 2]],Table_PI[[#This Row],[List 3]],Table_PI[[#This Row],[Size]],Table_PI[[#This Row],[Input 1]],Table_PI[[#This Row],[Input 2]],Table_PI[[#This Row],[Input 3]],Table_PI[[#This Row],[Input 4]],'Customer Information'!$AR$12,200,ROW())<>\"No Rebate\",MeasureCalc(Table_PI[[#This Row],[Hide:\nFormula Name]],Table_SummaryPI[[#This Row],[Quantity]],Table_PI[[#This Row],[List 1]],Table_PI[[#This Row],[List 2]],Table_PI[[#This Row],[List 3]],Table_PI[[#This Row],[Size]],Table_PI[[#This Row],[Input 1]],Table_PI[[#This Row],[Input 2]],Table_PI[[#This Row],[Input 3]],Table_PI[[#This Row],[Input 4]],'Customer Information'!$AR$12,200,ROW()),\"\"),\"\")","v":""},{"$f":"IFERROR(IF(MeasureCalc(Table_PI[[#This Row],[Hide:\nFormula Name]],Table_SummaryPI[[#This Row],[Quantity]],Table_PI[[#This Row],[List 1]],Table_PI[[#This Row],[List 2]],Table_PI[[#This Row],[List 3]],Table_PI[[#This Row],[Size]],Table_PI[[#This Row],[Input 1]],Table_PI[[#This Row],[Input 2]],Table_PI[[#This Row],[Input 3]],Table_PI[[#This Row],[Input 4]],'Customer Information'!$AR$12,201,ROW())<>\"No Rebate\",MeasureCalc(Table_PI[[#This Row],[Hide:\nFormula Name]],Table_SummaryPI[[#This Row],[Quantity]],Table_PI[[#This Row],[List 1]],Table_PI[[#This Row],[List 2]],Table_PI[[#This Row],[List 3]],Table_PI[[#This Row],[Size]],Table_PI[[#This Row],[Input 1]],Table_PI[[#This Row],[Input 2]],Table_PI[[#This Row],[Input 3]],Table_PI[[#This Row],[Input 4]],'Customer Information'!$AR$12,201,ROW()),\"\"),\"\")","v":""}]
[{"$f":"Table_PI[[#This Row],[Line No.]]","v":""},{"$f":"IF(Table_SummaryPI[[#This Row],[MeassureCategory]]<>\"\",CONCATENATE(Table_SummaryPI[[#This Row],[MeassureCategory]],  \" - \", Table_SummaryPI[[#This Row],[ProposedMeasureCategory]],  \" - \", TEXT(Table_SummaryPI[[#This Row],[Size]],\"#,##0.00\"),\" \",Table_SummaryPI[[#This Row],[SizeUnit]]),\"\")","v":""},{"$f":"SUBSTITUTE(Table_PI[[#This Row],[Measure]],\"     \",\"\",1)","v":""},{"$f":"IF(Table_PI[[#This Row],[List 1]]<>\"\",Table_PI[[#This Row],[List 1]],\"\")","v":""},{"$f":"IF(Table_PI[[#This Row],[List 2]]<>\"\",Table_PI[[#This Row],[List 2]],\"\")","v":""},{"$f":"IF(Table_PI[[#This Row],[List 3]]<>\"\",Table_PI[[#This Row],[List 3]],\"\")","v":""},{"$f":"IF(Table_PI[[#This Row],[Manufacturer]]=\"\",\"\",Table_PI[[#This Row],[Manufacturer]])","v":""},{"$f":"IF(Table_PI[[#This Row],[Model Number]]=\"\",\"\",Table_PI[[#This Row],[Model Number]])","v":""},{"$f":"IF(Table_PI[[#This Row],[Serial Number(s)]]=\"\",\"\",Table_PI[[#This Row],[Serial Number(s)]])","v":""},null,{"$f":"IF(Table_PI[[#This Row],[Size]]=\"\",\"\",Table_PI[[#This Row],[Size]])","v":""},null,{"$f":"IFERROR(IF(AND(MeasureCalc(Table_PI[[#This Row],[Hide:\nFormula Name]],Table_SummaryPI[[#This Row],[Quantity]],Table_PI[[#This Row],[List 1]],Table_PI[[#This Row],[List 2]],Table_PI[[#This Row],[List 3]],Table_PI[[#This Row],[Size]],Table_PI[[#This Row],[Input 1]],Table_PI[[#This Row],[Input 2]],Table_PI[[#This Row],[Input 3]],Table_PI[[#This Row],[Input 4]],'Customer Information'!$AR$12,100,ROW())<>0,MeasureCalc(Table_PI[[#This Row],[Hide:\nFormula Name]],Table_SummaryPI[[#This Row],[Quantity]],Table_PI[[#This Row],[List 1]],Table_PI[[#This Row],[List 2]],Table_PI[[#This Row],[List 3]],Table_PI[[#This Row],[Size]],Table_PI[[#This Row],[Input 1]],Table_PI[[#This Row],[Input 2]],Table_PI[[#This Row],[Input 3]],Table_PI[[#This Row],[Input 4]],'Customer Information'!$AR$12,100,ROW())<>\"No Rebate\"),MeasureCalc(Table_PI[[#This Row],[Hide:\nFormula Name]],Table_SummaryPI[[#This Row],[Quantity]],Table_PI[[#This Row],[List 1]],Table_PI[[#This Row],[List 2]],Table_PI[[#This Row],[List 3]],Table_PI[[#This Row],[Size]],Table_PI[[#This Row],[Input 1]],Table_PI[[#This Row],[Input 2]],Table_PI[[#This Row],[Input 3]],Table_PI[[#This Row],[Input 4]],'Customer Information'!$AR$12,100,ROW()),\"\"),\"\")","v":""},{"$f":"IF(Table_PI[[#This Row],[Input 1]]<>\"\",Table_PI[[#This Row],[Input 1]],\"\")","v":""},null,{"$f":"IFERROR(IF(AND(MeasureCalc(Table_PI[[#This Row],[Hide:\nFormula Name]],Table_SummaryPI[[#This Row],[Quantity]],Table_PI[[#This Row],[List 1]],Table_PI[[#This Row],[List 2]],Table_PI[[#This Row],[List 3]],Table_PI[[#This Row],[Size]],Table_PI[[#This Row],[Input 1]],Table_PI[[#This Row],[Input 2]],Table_PI[[#This Row],[Input 3]],Table_PI[[#This Row],[Input 4]],'Customer Information'!$AR$12,101,ROW())<>0,MeasureCalc(Table_PI[[#This Row],[Hide:\nFormula Name]],Table_SummaryPI[[#This Row],[Quantity]],Table_PI[[#This Row],[List 1]],Table_PI[[#This Row],[List 2]],Table_PI[[#This Row],[List 3]],Table_PI[[#This Row],[Size]],Table_PI[[#This Row],[Input 1]],Table_PI[[#This Row],[Input 2]],Table_PI[[#This Row],[Input 3]],Table_PI[[#This Row],[Input 4]],'Customer Information'!$AR$12,101,ROW())<>\"No Rebate\"),MeasureCalc(Table_PI[[#This Row],[Hide:\nFormula Name]],Table_SummaryPI[[#This Row],[Quantity]],Table_PI[[#This Row],[List 1]],Table_PI[[#This Row],[List 2]],Table_PI[[#This Row],[List 3]],Table_PI[[#This Row],[Size]],Table_PI[[#This Row],[Input 1]],Table_PI[[#This Row],[Input 2]],Table_PI[[#This Row],[Input 3]],Table_PI[[#This Row],[Input 4]],'Customer Information'!$AR$12,101,ROW()),\"\"),\"\")","v":""},{"$f":"IF(Table_PI[[#This Row],[Input 2]]<>\"\",Table_PI[[#This Row],[Input 2]],\"\")","v":""},null,{"$f":"IFERROR(IF(AND(MeasureCalc(Table_PI[[#This Row],[Hide:\nFormula Name]],Table_SummaryPI[[#This Row],[Quantity]],Table_PI[[#This Row],[List 1]],Table_PI[[#This Row],[List 2]],Table_PI[[#This Row],[List 3]],Table_PI[[#This Row],[Size]],Table_PI[[#This Row],[Input 1]],Table_PI[[#This Row],[Input 2]],Table_PI[[#This Row],[Input 3]],Table_PI[[#This Row],[Input 4]],'Customer Information'!$AR$12,102,ROW())<>0,MeasureCalc(Table_PI[[#This Row],[Hide:\nFormula Name]],Table_SummaryPI[[#This Row],[Quantity]],Table_PI[[#This Row],[List 1]],Table_PI[[#This Row],[List 2]],Table_PI[[#This Row],[List 3]],Table_PI[[#This Row],[Size]],Table_PI[[#This Row],[Input 1]],Table_PI[[#This Row],[Input 2]],Table_PI[[#This Row],[Input 3]],Table_PI[[#This Row],[Input 4]],'Customer Information'!$AR$12,102,ROW())<>\"No Rebate\"),MeasureCalc(Table_PI[[#This Row],[Hide:\nFormula Name]],Table_SummaryPI[[#This Row],[Quantity]],Table_PI[[#This Row],[List 1]],Table_PI[[#This Row],[List 2]],Table_PI[[#This Row],[List 3]],Table_PI[[#This Row],[Size]],Table_PI[[#This Row],[Input 1]],Table_PI[[#This Row],[Input 2]],Table_PI[[#This Row],[Input 3]],Table_PI[[#This Row],[Input 4]],'Customer Information'!$AR$12,102,ROW()),\"\"),\"\")","v":""},{"$f":"IF(Table_PI[[#This Row],[Input 3]]<>\"\",Table_PI[[#This Row],[Input 3]],\"\")","v":""},null,{"$f":"IFERROR(IF(AND(MeasureCalc(Table_PI[[#This Row],[Hide:\nFormula Name]],Table_SummaryPI[[#This Row],[Quantity]],Table_PI[[#This Row],[List 1]],Table_PI[[#This Row],[List 2]],Table_PI[[#This Row],[List 3]],Table_PI[[#This Row],[Size]],Table_PI[[#This Row],[Input 1]],Table_PI[[#This Row],[Input 2]],Table_PI[[#This Row],[Input 3]],Table_PI[[#This Row],[Input 4]],'Customer Information'!$AR$12,103,ROW())<>0,MeasureCalc(Table_PI[[#This Row],[Hide:\nFormula Name]],Table_SummaryPI[[#This Row],[Quantity]],Table_PI[[#This Row],[List 1]],Table_PI[[#This Row],[List 2]],Table_PI[[#This Row],[List 3]],Table_PI[[#This Row],[Size]],Table_PI[[#This Row],[Input 1]],Table_PI[[#This Row],[Input 2]],Table_PI[[#This Row],[Input 3]],Table_PI[[#This Row],[Input 4]],'Customer Information'!$AR$12,103,ROW())<>\"No Rebate\"),MeasureCalc(Table_PI[[#This Row],[Hide:\nFormula Name]],Table_SummaryPI[[#This Row],[Quantity]],Table_PI[[#This Row],[List 1]],Table_PI[[#This Row],[List 2]],Table_PI[[#This Row],[List 3]],Table_PI[[#This Row],[Size]],Table_PI[[#This Row],[Input 1]],Table_PI[[#This Row],[Input 2]],Table_PI[[#This Row],[Input 3]],Table_PI[[#This Row],[Input 4]],'Customer Information'!$AR$12,103,ROW()),\"\"),\"\")","v":""},{"$f":"IF(Table_PI[[#This Row],[Input 4]]<>\"\",Table_PI[[#This Row],[Input 4]],\"\")","v":""},{"$f":"IF(Table_PI[[#This Row],[Quantity]]=\"\",\"\",Table_PI[[#This Row],[Quantity]])","v":""},{"$f":"IF(Table_PI[[#This Row],[Notes]]=\"\",\"\",Table_PI[[#This Row],[Notes]])","v":""},{"$f":"IF(OR(Table_PI[[#This Row],[Hide:\nBaseline kWh]]=\"\",Table_PI[[#This Row],[Hide:\nBaseline kWh]]=0),\"\",Table_PI[[#This Row],[Hide:\nBaseline kWh]])","v":""},{"$f":"IF(OR(Table_PI[[#This Row],[Hide:\nBaseline kW]]=\"\",Table_PI[[#This Row],[Hide:\nBaseline kW]]=0),\"\",Table_PI[[#This Row],[Hide:\nBaseline kW]])","v":""},{"$f":"IF(OR(Table_PI[[#This Row],[Hide:\nProposed kWh]]=\"\",Table_PI[[#This Row],[Hide:\nProposed kWh]]=0),\"\",Table_PI[[#This Row],[Hide:\nProposed kWh]])","v":""},{"$f":"IF(OR(Table_PI[[#This Row],[Hide:\nProposed kW]]=\"\",Table_PI[[#This Row],[Hide:\nProposed kW]]=0),\"\",Table_PI[[#This Row],[Hide:\nProposed kW]])","v":""},{"$f":"IF(OR(Table_PI[[#This Row],[Rebate]]=\"\",Table_PI[[#This Row],[Rebate]]=0),\"\",Table_PI[[#This Row],[Rebate]])","v":""},{"$f":"IF(OR(Table_PI[[#This Row],[Hide:\nIncremental Cost]]=\"\",Table_PI[[#This Row],[Hide:\nIncremental Cost]]=0),\"\",Table_PI[[#This Row],[Hide:\nIncremental Cost]])","v":""},{"$f":"IFERROR(IF(Table_SummaryPI[[#This Row],[kWhSavings]]=\"\",\"\",ROUND(Table_SummaryPI[[#This Row],[kWhSavings]]/$AG$401*'Customer Information'!$BC$17,2)),0)","v":""},{"$f":"IF(OR(Table_PI[[#This Row],[Annual kWh]]=\"\",Table_PI[[#This Row],[Annual kWh]]=0),\"\",Table_PI[[#This Row],[Annual kWh]])","v":""},{"$f":"IF(OR(Table_PI[[#This Row],[Peak kW]]=\"\",Table_PI[[#This Row],[Peak kW]]=0),\"\",Table_PI[[#This Row],[Peak kW]])","v":""},{"$f":"IFERROR(IF(Table_SummaryPI[[#This Row],[kWhSavings]]=\"\",\"\",$AU$9*Table_SummaryPI[[#This Row],[kWhSavings]]),0)","v":""},{"$f":"IFERROR(IF(Table_SummaryPI[[#This Row],[kWhSavings]]=\"\",\"\",$AU$14*Table_SummaryPI[[#This Row],[kWhSavings]]),0)","v":""},{"$f":"IFERROR(IF(Table_SummaryPI[[#This Row],[kWhSavings]]=\"\",\"\",$AU$18*Table_SummaryPI[[#This Row],[kWhSavings]]),0)","v":""},{"$f":"IFERROR(IF(Table_SummaryPI[[#This Row],[kWhSavings]]=\"\",\"\",$AU$22*Table_SummaryPI[[#This Row],[kWhSavings]]),0)","v":""},{"$f":"IFERROR(IF(MeasureCalc(Table_PI[[#This Row],[Hide:\nFormula Name]],Table_SummaryPI[[#This Row],[Quantity]],Table_PI[[#This Row],[List 1]],Table_PI[[#This Row],[List 2]],Table_PI[[#This Row],[List 3]],Table_PI[[#This Row],[Size]],Table_PI[[#This Row],[Input 1]],Table_PI[[#This Row],[Input 2]],Table_PI[[#This Row],[Input 3]],Table_PI[[#This Row],[Input 4]],'Customer Information'!$AR$12,200,ROW())<>\"No Rebate\",MeasureCalc(Table_PI[[#This Row],[Hide:\nFormula Name]],Table_SummaryPI[[#This Row],[Quantity]],Table_PI[[#This Row],[List 1]],Table_PI[[#This Row],[List 2]],Table_PI[[#This Row],[List 3]],Table_PI[[#This Row],[Size]],Table_PI[[#This Row],[Input 1]],Table_PI[[#This Row],[Input 2]],Table_PI[[#This Row],[Input 3]],Table_PI[[#This Row],[Input 4]],'Customer Information'!$AR$12,200,ROW()),\"\"),\"\")","v":""},{"$f":"IFERROR(IF(MeasureCalc(Table_PI[[#This Row],[Hide:\nFormula Name]],Table_SummaryPI[[#This Row],[Quantity]],Table_PI[[#This Row],[List 1]],Table_PI[[#This Row],[List 2]],Table_PI[[#This Row],[List 3]],Table_PI[[#This Row],[Size]],Table_PI[[#This Row],[Input 1]],Table_PI[[#This Row],[Input 2]],Table_PI[[#This Row],[Input 3]],Table_PI[[#This Row],[Input 4]],'Customer Information'!$AR$12,201,ROW())<>\"No Rebate\",MeasureCalc(Table_PI[[#This Row],[Hide:\nFormula Name]],Table_SummaryPI[[#This Row],[Quantity]],Table_PI[[#This Row],[List 1]],Table_PI[[#This Row],[List 2]],Table_PI[[#This Row],[List 3]],Table_PI[[#This Row],[Size]],Table_PI[[#This Row],[Input 1]],Table_PI[[#This Row],[Input 2]],Table_PI[[#This Row],[Input 3]],Table_PI[[#This Row],[Input 4]],'Customer Information'!$AR$12,201,ROW()),\"\"),\"\")","v":""}]
[{"$f":"Table_PI[[#This Row],[Line No.]]","v":""},{"$f":"IF(Table_SummaryPI[[#This Row],[MeassureCategory]]<>\"\",CONCATENATE(Table_SummaryPI[[#This Row],[MeassureCategory]],  \" - \", Table_SummaryPI[[#This Row],[ProposedMeasureCategory]],  \" - \", TEXT(Table_SummaryPI[[#This Row],[Size]],\"#,##0.00\"),\" \",Table_SummaryPI[[#This Row],[SizeUnit]]),\"\")","v":""},{"$f":"SUBSTITUTE(Table_PI[[#This Row],[Measure]],\"     \",\"\",1)","v":""},{"$f":"IF(Table_PI[[#This Row],[List 1]]<>\"\",Table_PI[[#This Row],[List 1]],\"\")","v":""},{"$f":"IF(Table_PI[[#This Row],[List 2]]<>\"\",Table_PI[[#This Row],[List 2]],\"\")","v":""},{"$f":"IF(Table_PI[[#This Row],[List 3]]<>\"\",Table_PI[[#This Row],[List 3]],\"\")","v":""},{"$f":"IF(Table_PI[[#This Row],[Manufacturer]]=\"\",\"\",Table_PI[[#This Row],[Manufacturer]])","v":""},{"$f":"IF(Table_PI[[#This Row],[Model Number]]=\"\",\"\",Table_PI[[#This Row],[Model Number]])","v":""},{"$f":"IF(Table_PI[[#This Row],[Serial Number(s)]]=\"\",\"\",Table_PI[[#This Row],[Serial Number(s)]])","v":""},null,{"$f":"IF(Table_PI[[#This Row],[Size]]=\"\",\"\",Table_PI[[#This Row],[Size]])","v":""},null,{"$f":"IFERROR(IF(AND(MeasureCalc(Table_PI[[#This Row],[Hide:\nFormula Name]],Table_SummaryPI[[#This Row],[Quantity]],Table_PI[[#This Row],[List 1]],Table_PI[[#This Row],[List 2]],Table_PI[[#This Row],[List 3]],Table_PI[[#This Row],[Size]],Table_PI[[#This Row],[Input 1]],Table_PI[[#This Row],[Input 2]],Table_PI[[#This Row],[Input 3]],Table_PI[[#This Row],[Input 4]],'Customer Information'!$AR$12,100,ROW())<>0,MeasureCalc(Table_PI[[#This Row],[Hide:\nFormula Name]],Table_SummaryPI[[#This Row],[Quantity]],Table_PI[[#This Row],[List 1]],Table_PI[[#This Row],[List 2]],Table_PI[[#This Row],[List 3]],Table_PI[[#This Row],[Size]],Table_PI[[#This Row],[Input 1]],Table_PI[[#This Row],[Input 2]],Table_PI[[#This Row],[Input 3]],Table_PI[[#This Row],[Input 4]],'Customer Information'!$AR$12,100,ROW())<>\"No Rebate\"),MeasureCalc(Table_PI[[#This Row],[Hide:\nFormula Name]],Table_SummaryPI[[#This Row],[Quantity]],Table_PI[[#This Row],[List 1]],Table_PI[[#This Row],[List 2]],Table_PI[[#This Row],[List 3]],Table_PI[[#This Row],[Size]],Table_PI[[#This Row],[Input 1]],Table_PI[[#This Row],[Input 2]],Table_PI[[#This Row],[Input 3]],Table_PI[[#This Row],[Input 4]],'Customer Information'!$AR$12,100,ROW()),\"\"),\"\")","v":""},{"$f":"IF(Table_PI[[#This Row],[Input 1]]<>\"\",Table_PI[[#This Row],[Input 1]],\"\")","v":""},null,{"$f":"IFERROR(IF(AND(MeasureCalc(Table_PI[[#This Row],[Hide:\nFormula Name]],Table_SummaryPI[[#This Row],[Quantity]],Table_PI[[#This Row],[List 1]],Table_PI[[#This Row],[List 2]],Table_PI[[#This Row],[List 3]],Table_PI[[#This Row],[Size]],Table_PI[[#This Row],[Input 1]],Table_PI[[#This Row],[Input 2]],Table_PI[[#This Row],[Input 3]],Table_PI[[#This Row],[Input 4]],'Customer Information'!$AR$12,101,ROW())<>0,MeasureCalc(Table_PI[[#This Row],[Hide:\nFormula Name]],Table_SummaryPI[[#This Row],[Quantity]],Table_PI[[#This Row],[List 1]],Table_PI[[#This Row],[List 2]],Table_PI[[#This Row],[List 3]],Table_PI[[#This Row],[Size]],Table_PI[[#This Row],[Input 1]],Table_PI[[#This Row],[Input 2]],Table_PI[[#This Row],[Input 3]],Table_PI[[#This Row],[Input 4]],'Customer Information'!$AR$12,101,ROW())<>\"No Rebate\"),MeasureCalc(Table_PI[[#This Row],[Hide:\nFormula Name]],Table_SummaryPI[[#This Row],[Quantity]],Table_PI[[#This Row],[List 1]],Table_PI[[#This Row],[List 2]],Table_PI[[#This Row],[List 3]],Table_PI[[#This Row],[Size]],Table_PI[[#This Row],[Input 1]],Table_PI[[#This Row],[Input 2]],Table_PI[[#This Row],[Input 3]],Table_PI[[#This Row],[Input 4]],'Customer Information'!$AR$12,101,ROW()),\"\"),\"\")","v":""},{"$f":"IF(Table_PI[[#This Row],[Input 2]]<>\"\",Table_PI[[#This Row],[Input 2]],\"\")","v":""},null,{"$f":"IFERROR(IF(AND(MeasureCalc(Table_PI[[#This Row],[Hide:\nFormula Name]],Table_SummaryPI[[#This Row],[Quantity]],Table_PI[[#This Row],[List 1]],Table_PI[[#This Row],[List 2]],Table_PI[[#This Row],[List 3]],Table_PI[[#This Row],[Size]],Table_PI[[#This Row],[Input 1]],Table_PI[[#This Row],[Input 2]],Table_PI[[#This Row],[Input 3]],Table_PI[[#This Row],[Input 4]],'Customer Information'!$AR$12,102,ROW())<>0,MeasureCalc(Table_PI[[#This Row],[Hide:\nFormula Name]],Table_SummaryPI[[#This Row],[Quantity]],Table_PI[[#This Row],[List 1]],Table_PI[[#This Row],[List 2]],Table_PI[[#This Row],[List 3]],Table_PI[[#This Row],[Size]],Table_PI[[#This Row],[Input 1]],Table_PI[[#This Row],[Input 2]],Table_PI[[#This Row],[Input 3]],Table_PI[[#This Row],[Input 4]],'Customer Information'!$AR$12,102,ROW())<>\"No Rebate\"),MeasureCalc(Table_PI[[#This Row],[Hide:\nFormula Name]],Table_SummaryPI[[#This Row],[Quantity]],Table_PI[[#This Row],[List 1]],Table_PI[[#This Row],[List 2]],Table_PI[[#This Row],[List 3]],Table_PI[[#This Row],[Size]],Table_PI[[#This Row],[Input 1]],Table_PI[[#This Row],[Input 2]],Table_PI[[#This Row],[Input 3]],Table_PI[[#This Row],[Input 4]],'Customer Information'!$AR$12,102,ROW()),\"\"),\"\")","v":""},{"$f":"IF(Table_PI[[#This Row],[Input 3]]<>\"\",Table_PI[[#This Row],[Input 3]],\"\")","v":""},null,{"$f":"IFERROR(IF(AND(MeasureCalc(Table_PI[[#This Row],[Hide:\nFormula Name]],Table_SummaryPI[[#This Row],[Quantity]],Table_PI[[#This Row],[List 1]],Table_PI[[#This Row],[List 2]],Table_PI[[#This Row],[List 3]],Table_PI[[#This Row],[Size]],Table_PI[[#This Row],[Input 1]],Table_PI[[#This Row],[Input 2]],Table_PI[[#This Row],[Input 3]],Table_PI[[#This Row],[Input 4]],'Customer Information'!$AR$12,103,ROW())<>0,MeasureCalc(Table_PI[[#This Row],[Hide:\nFormula Name]],Table_SummaryPI[[#This Row],[Quantity]],Table_PI[[#This Row],[List 1]],Table_PI[[#This Row],[List 2]],Table_PI[[#This Row],[List 3]],Table_PI[[#This Row],[Size]],Table_PI[[#This Row],[Input 1]],Table_PI[[#This Row],[Input 2]],Table_PI[[#This Row],[Input 3]],Table_PI[[#This Row],[Input 4]],'Customer Information'!$AR$12,103,ROW())<>\"No Rebate\"),MeasureCalc(Table_PI[[#This Row],[Hide:\nFormula Name]],Table_SummaryPI[[#This Row],[Quantity]],Table_PI[[#This Row],[List 1]],Table_PI[[#This Row],[List 2]],Table_PI[[#This Row],[List 3]],Table_PI[[#This Row],[Size]],Table_PI[[#This Row],[Input 1]],Table_PI[[#This Row],[Input 2]],Table_PI[[#This Row],[Input 3]],Table_PI[[#This Row],[Input 4]],'Customer Information'!$AR$12,103,ROW()),\"\"),\"\")","v":""},{"$f":"IF(Table_PI[[#This Row],[Input 4]]<>\"\",Table_PI[[#This Row],[Input 4]],\"\")","v":""},{"$f":"IF(Table_PI[[#This Row],[Quantity]]=\"\",\"\",Table_PI[[#This Row],[Quantity]])","v":""},{"$f":"IF(Table_PI[[#This Row],[Notes]]=\"\",\"\",Table_PI[[#This Row],[Notes]])","v":""},{"$f":"IF(OR(Table_PI[[#This Row],[Hide:\nBaseline kWh]]=\"\",Table_PI[[#This Row],[Hide:\nBaseline kWh]]=0),\"\",Table_PI[[#This Row],[Hide:\nBaseline kWh]])","v":""},{"$f":"IF(OR(Table_PI[[#This Row],[Hide:\nBaseline kW]]=\"\",Table_PI[[#This Row],[Hide:\nBaseline kW]]=0),\"\",Table_PI[[#This Row],[Hide:\nBaseline kW]])","v":""},{"$f":"IF(OR(Table_PI[[#This Row],[Hide:\nProposed kWh]]=\"\",Table_PI[[#This Row],[Hide:\nProposed kWh]]=0),\"\",Table_PI[[#This Row],[Hide:\nProposed kWh]])","v":""},{"$f":"IF(OR(Table_PI[[#This Row],[Hide:\nProposed kW]]=\"\",Table_PI[[#This Row],[Hide:\nProposed kW]]=0),\"\",Table_PI[[#This Row],[Hide:\nProposed kW]])","v":""},{"$f":"IF(OR(Table_PI[[#This Row],[Rebate]]=\"\",Table_PI[[#This Row],[Rebate]]=0),\"\",Table_PI[[#This Row],[Rebate]])","v":""},{"$f":"IF(OR(Table_PI[[#This Row],[Hide:\nIncremental Cost]]=\"\",Table_PI[[#This Row],[Hide:\nIncremental Cost]]=0),\"\",Table_PI[[#This Row],[Hide:\nIncremental Cost]])","v":""},{"$f":"IFERROR(IF(Table_SummaryPI[[#This Row],[kWhSavings]]=\"\",\"\",ROUND(Table_SummaryPI[[#This Row],[kWhSavings]]/$AG$401*'Customer Information'!$BC$17,2)),0)","v":""},{"$f":"IF(OR(Table_PI[[#This Row],[Annual kWh]]=\"\",Table_PI[[#This Row],[Annual kWh]]=0),\"\",Table_PI[[#This Row],[Annual kWh]])","v":""},{"$f":"IF(OR(Table_PI[[#This Row],[Peak kW]]=\"\",Table_PI[[#This Row],[Peak kW]]=0),\"\",Table_PI[[#This Row],[Peak kW]])","v":""},{"$f":"IFERROR(IF(Table_SummaryPI[[#This Row],[kWhSavings]]=\"\",\"\",$AU$9*Table_SummaryPI[[#This Row],[kWhSavings]]),0)","v":""},{"$f":"IFERROR(IF(Table_SummaryPI[[#This Row],[kWhSavings]]=\"\",\"\",$AU$14*Table_SummaryPI[[#This Row],[kWhSavings]]),0)","v":""},{"$f":"IFERROR(IF(Table_SummaryPI[[#This Row],[kWhSavings]]=\"\",\"\",$AU$18*Table_SummaryPI[[#This Row],[kWhSavings]]),0)","v":""},{"$f":"IFERROR(IF(Table_SummaryPI[[#This Row],[kWhSavings]]=\"\",\"\",$AU$22*Table_SummaryPI[[#This Row],[kWhSavings]]),0)","v":""},{"$f":"IFERROR(IF(MeasureCalc(Table_PI[[#This Row],[Hide:\nFormula Name]],Table_SummaryPI[[#This Row],[Quantity]],Table_PI[[#This Row],[List 1]],Table_PI[[#This Row],[List 2]],Table_PI[[#This Row],[List 3]],Table_PI[[#This Row],[Size]],Table_PI[[#This Row],[Input 1]],Table_PI[[#This Row],[Input 2]],Table_PI[[#This Row],[Input 3]],Table_PI[[#This Row],[Input 4]],'Customer Information'!$AR$12,200,ROW())<>\"No Rebate\",MeasureCalc(Table_PI[[#This Row],[Hide:\nFormula Name]],Table_SummaryPI[[#This Row],[Quantity]],Table_PI[[#This Row],[List 1]],Table_PI[[#This Row],[List 2]],Table_PI[[#This Row],[List 3]],Table_PI[[#This Row],[Size]],Table_PI[[#This Row],[Input 1]],Table_PI[[#This Row],[Input 2]],Table_PI[[#This Row],[Input 3]],Table_PI[[#This Row],[Input 4]],'Customer Information'!$AR$12,200,ROW()),\"\"),\"\")","v":""},{"$f":"IFERROR(IF(MeasureCalc(Table_PI[[#This Row],[Hide:\nFormula Name]],Table_SummaryPI[[#This Row],[Quantity]],Table_PI[[#This Row],[List 1]],Table_PI[[#This Row],[List 2]],Table_PI[[#This Row],[List 3]],Table_PI[[#This Row],[Size]],Table_PI[[#This Row],[Input 1]],Table_PI[[#This Row],[Input 2]],Table_PI[[#This Row],[Input 3]],Table_PI[[#This Row],[Input 4]],'Customer Information'!$AR$12,201,ROW())<>\"No Rebate\",MeasureCalc(Table_PI[[#This Row],[Hide:\nFormula Name]],Table_SummaryPI[[#This Row],[Quantity]],Table_PI[[#This Row],[List 1]],Table_PI[[#This Row],[List 2]],Table_PI[[#This Row],[List 3]],Table_PI[[#This Row],[Size]],Table_PI[[#This Row],[Input 1]],Table_PI[[#This Row],[Input 2]],Table_PI[[#This Row],[Input 3]],Table_PI[[#This Row],[Input 4]],'Customer Information'!$AR$12,201,ROW()),\"\"),\"\")","v":""}]
[{"$f":"Table_PI[[#This Row],[Line No.]]","v":""},{"$f":"IF(Table_SummaryPI[[#This Row],[MeassureCategory]]<>\"\",CONCATENATE(Table_SummaryPI[[#This Row],[MeassureCategory]],  \" - \", Table_SummaryPI[[#This Row],[ProposedMeasureCategory]],  \" - \", TEXT(Table_SummaryPI[[#This Row],[Size]],\"#,##0.00\"),\" \",Table_SummaryPI[[#This Row],[SizeUnit]]),\"\")","v":""},{"$f":"SUBSTITUTE(Table_PI[[#This Row],[Measure]],\"     \",\"\",1)","v":""},{"$f":"IF(Table_PI[[#This Row],[List 1]]<>\"\",Table_PI[[#This Row],[List 1]],\"\")","v":""},{"$f":"IF(Table_PI[[#This Row],[List 2]]<>\"\",Table_PI[[#This Row],[List 2]],\"\")","v":""},{"$f":"IF(Table_PI[[#This Row],[List 3]]<>\"\",Table_PI[[#This Row],[List 3]],\"\")","v":""},{"$f":"IF(Table_PI[[#This Row],[Manufacturer]]=\"\",\"\",Table_PI[[#This Row],[Manufacturer]])","v":""},{"$f":"IF(Table_PI[[#This Row],[Model Number]]=\"\",\"\",Table_PI[[#This Row],[Model Number]])","v":""},{"$f":"IF(Table_PI[[#This Row],[Serial Number(s)]]=\"\",\"\",Table_PI[[#This Row],[Serial Number(s)]])","v":""},null,{"$f":"IF(Table_PI[[#This Row],[Size]]=\"\",\"\",Table_PI[[#This Row],[Size]])","v":""},null,{"$f":"IFERROR(IF(AND(MeasureCalc(Table_PI[[#This Row],[Hide:\nFormula Name]],Table_SummaryPI[[#This Row],[Quantity]],Table_PI[[#This Row],[List 1]],Table_PI[[#This Row],[List 2]],Table_PI[[#This Row],[List 3]],Table_PI[[#This Row],[Size]],Table_PI[[#This Row],[Input 1]],Table_PI[[#This Row],[Input 2]],Table_PI[[#This Row],[Input 3]],Table_PI[[#This Row],[Input 4]],'Customer Information'!$AR$12,100,ROW())<>0,MeasureCalc(Table_PI[[#This Row],[Hide:\nFormula Name]],Table_SummaryPI[[#This Row],[Quantity]],Table_PI[[#This Row],[List 1]],Table_PI[[#This Row],[List 2]],Table_PI[[#This Row],[List 3]],Table_PI[[#This Row],[Size]],Table_PI[[#This Row],[Input 1]],Table_PI[[#This Row],[Input 2]],Table_PI[[#This Row],[Input 3]],Table_PI[[#This Row],[Input 4]],'Customer Information'!$AR$12,100,ROW())<>\"No Rebate\"),MeasureCalc(Table_PI[[#This Row],[Hide:\nFormula Name]],Table_SummaryPI[[#This Row],[Quantity]],Table_PI[[#This Row],[List 1]],Table_PI[[#This Row],[List 2]],Table_PI[[#This Row],[List 3]],Table_PI[[#This Row],[Size]],Table_PI[[#This Row],[Input 1]],Table_PI[[#This Row],[Input 2]],Table_PI[[#This Row],[Input 3]],Table_PI[[#This Row],[Input 4]],'Customer Information'!$AR$12,100,ROW()),\"\"),\"\")","v":""},{"$f":"IF(Table_PI[[#This Row],[Input 1]]<>\"\",Table_PI[[#This Row],[Input 1]],\"\")","v":""},null,{"$f":"IFERROR(IF(AND(MeasureCalc(Table_PI[[#This Row],[Hide:\nFormula Name]],Table_SummaryPI[[#This Row],[Quantity]],Table_PI[[#This Row],[List 1]],Table_PI[[#This Row],[List 2]],Table_PI[[#This Row],[List 3]],Table_PI[[#This Row],[Size]],Table_PI[[#This Row],[Input 1]],Table_PI[[#This Row],[Input 2]],Table_PI[[#This Row],[Input 3]],Table_PI[[#This Row],[Input 4]],'Customer Information'!$AR$12,101,ROW())<>0,MeasureCalc(Table_PI[[#This Row],[Hide:\nFormula Name]],Table_SummaryPI[[#This Row],[Quantity]],Table_PI[[#This Row],[List 1]],Table_PI[[#This Row],[List 2]],Table_PI[[#This Row],[List 3]],Table_PI[[#This Row],[Size]],Table_PI[[#This Row],[Input 1]],Table_PI[[#This Row],[Input 2]],Table_PI[[#This Row],[Input 3]],Table_PI[[#This Row],[Input 4]],'Customer Information'!$AR$12,101,ROW())<>\"No Rebate\"),MeasureCalc(Table_PI[[#This Row],[Hide:\nFormula Name]],Table_SummaryPI[[#This Row],[Quantity]],Table_PI[[#This Row],[List 1]],Table_PI[[#This Row],[List 2]],Table_PI[[#This Row],[List 3]],Table_PI[[#This Row],[Size]],Table_PI[[#This Row],[Input 1]],Table_PI[[#This Row],[Input 2]],Table_PI[[#This Row],[Input 3]],Table_PI[[#This Row],[Input 4]],'Customer Information'!$AR$12,101,ROW()),\"\"),\"\")","v":""},{"$f":"IF(Table_PI[[#This Row],[Input 2]]<>\"\",Table_PI[[#This Row],[Input 2]],\"\")","v":""},null,{"$f":"IFERROR(IF(AND(MeasureCalc(Table_PI[[#This Row],[Hide:\nFormula Name]],Table_SummaryPI[[#This Row],[Quantity]],Table_PI[[#This Row],[List 1]],Table_PI[[#This Row],[List 2]],Table_PI[[#This Row],[List 3]],Table_PI[[#This Row],[Size]],Table_PI[[#This Row],[Input 1]],Table_PI[[#This Row],[Input 2]],Table_PI[[#This Row],[Input 3]],Table_PI[[#This Row],[Input 4]],'Customer Information'!$AR$12,102,ROW())<>0,MeasureCalc(Table_PI[[#This Row],[Hide:\nFormula Name]],Table_SummaryPI[[#This Row],[Quantity]],Table_PI[[#This Row],[List 1]],Table_PI[[#This Row],[List 2]],Table_PI[[#This Row],[List 3]],Table_PI[[#This Row],[Size]],Table_PI[[#This Row],[Input 1]],Table_PI[[#This Row],[Input 2]],Table_PI[[#This Row],[Input 3]],Table_PI[[#This Row],[Input 4]],'Customer Information'!$AR$12,102,ROW())<>\"No Rebate\"),MeasureCalc(Table_PI[[#This Row],[Hide:\nFormula Name]],Table_SummaryPI[[#This Row],[Quantity]],Table_PI[[#This Row],[List 1]],Table_PI[[#This Row],[List 2]],Table_PI[[#This Row],[List 3]],Table_PI[[#This Row],[Size]],Table_PI[[#This Row],[Input 1]],Table_PI[[#This Row],[Input 2]],Table_PI[[#This Row],[Input 3]],Table_PI[[#This Row],[Input 4]],'Customer Information'!$AR$12,102,ROW()),\"\"),\"\")","v":""},{"$f":"IF(Table_PI[[#This Row],[Input 3]]<>\"\",Table_PI[[#This Row],[Input 3]],\"\")","v":""},null,{"$f":"IFERROR(IF(AND(MeasureCalc(Table_PI[[#This Row],[Hide:\nFormula Name]],Table_SummaryPI[[#This Row],[Quantity]],Table_PI[[#This Row],[List 1]],Table_PI[[#This Row],[List 2]],Table_PI[[#This Row],[List 3]],Table_PI[[#This Row],[Size]],Table_PI[[#This Row],[Input 1]],Table_PI[[#This Row],[Input 2]],Table_PI[[#This Row],[Input 3]],Table_PI[[#This Row],[Input 4]],'Customer Information'!$AR$12,103,ROW())<>0,MeasureCalc(Table_PI[[#This Row],[Hide:\nFormula Name]],Table_SummaryPI[[#This Row],[Quantity]],Table_PI[[#This Row],[List 1]],Table_PI[[#This Row],[List 2]],Table_PI[[#This Row],[List 3]],Table_PI[[#This Row],[Size]],Table_PI[[#This Row],[Input 1]],Table_PI[[#This Row],[Input 2]],Table_PI[[#This Row],[Input 3]],Table_PI[[#This Row],[Input 4]],'Customer Information'!$AR$12,103,ROW())<>\"No Rebate\"),MeasureCalc(Table_PI[[#This Row],[Hide:\nFormula Name]],Table_SummaryPI[[#This Row],[Quantity]],Table_PI[[#This Row],[List 1]],Table_PI[[#This Row],[List 2]],Table_PI[[#This Row],[List 3]],Table_PI[[#This Row],[Size]],Table_PI[[#This Row],[Input 1]],Table_PI[[#This Row],[Input 2]],Table_PI[[#This Row],[Input 3]],Table_PI[[#This Row],[Input 4]],'Customer Information'!$AR$12,103,ROW()),\"\"),\"\")","v":""},{"$f":"IF(Table_PI[[#This Row],[Input 4]]<>\"\",Table_PI[[#This Row],[Input 4]],\"\")","v":""},{"$f":"IF(Table_PI[[#This Row],[Quantity]]=\"\",\"\",Table_PI[[#This Row],[Quantity]])","v":""},{"$f":"IF(Table_PI[[#This Row],[Notes]]=\"\",\"\",Table_PI[[#This Row],[Notes]])","v":""},{"$f":"IF(OR(Table_PI[[#This Row],[Hide:\nBaseline kWh]]=\"\",Table_PI[[#This Row],[Hide:\nBaseline kWh]]=0),\"\",Table_PI[[#This Row],[Hide:\nBaseline kWh]])","v":""},{"$f":"IF(OR(Table_PI[[#This Row],[Hide:\nBaseline kW]]=\"\",Table_PI[[#This Row],[Hide:\nBaseline kW]]=0),\"\",Table_PI[[#This Row],[Hide:\nBaseline kW]])","v":""},{"$f":"IF(OR(Table_PI[[#This Row],[Hide:\nProposed kWh]]=\"\",Table_PI[[#This Row],[Hide:\nProposed kWh]]=0),\"\",Table_PI[[#This Row],[Hide:\nProposed kWh]])","v":""},{"$f":"IF(OR(Table_PI[[#This Row],[Hide:\nProposed kW]]=\"\",Table_PI[[#This Row],[Hide:\nProposed kW]]=0),\"\",Table_PI[[#This Row],[Hide:\nProposed kW]])","v":""},{"$f":"IF(OR(Table_PI[[#This Row],[Rebate]]=\"\",Table_PI[[#This Row],[Rebate]]=0),\"\",Table_PI[[#This Row],[Rebate]])","v":""},{"$f":"IF(OR(Table_PI[[#This Row],[Hide:\nIncremental Cost]]=\"\",Table_PI[[#This Row],[Hide:\nIncremental Cost]]=0),\"\",Table_PI[[#This Row],[Hide:\nIncremental Cost]])","v":""},{"$f":"IFERROR(IF(Table_SummaryPI[[#This Row],[kWhSavings]]=\"\",\"\",ROUND(Table_SummaryPI[[#This Row],[kWhSavings]]/$AG$401*'Customer Information'!$BC$17,2)),0)","v":""},{"$f":"IF(OR(Table_PI[[#This Row],[Annual kWh]]=\"\",Table_PI[[#This Row],[Annual kWh]]=0),\"\",Table_PI[[#This Row],[Annual kWh]])","v":""},{"$f":"IF(OR(Table_PI[[#This Row],[Peak kW]]=\"\",Table_PI[[#This Row],[Peak kW]]=0),\"\",Table_PI[[#This Row],[Peak kW]])","v":""},{"$f":"IFERROR(IF(Table_SummaryPI[[#This Row],[kWhSavings]]=\"\",\"\",$AU$9*Table_SummaryPI[[#This Row],[kWhSavings]]),0)","v":""},{"$f":"IFERROR(IF(Table_SummaryPI[[#This Row],[kWhSavings]]=\"\",\"\",$AU$14*Table_SummaryPI[[#This Row],[kWhSavings]]),0)","v":""},{"$f":"IFERROR(IF(Table_SummaryPI[[#This Row],[kWhSavings]]=\"\",\"\",$AU$18*Table_SummaryPI[[#This Row],[kWhSavings]]),0)","v":""},{"$f":"IFERROR(IF(Table_SummaryPI[[#This Row],[kWhSavings]]=\"\",\"\",$AU$22*Table_SummaryPI[[#This Row],[kWhSavings]]),0)","v":""},{"$f":"IFERROR(IF(MeasureCalc(Table_PI[[#This Row],[Hide:\nFormula Name]],Table_SummaryPI[[#This Row],[Quantity]],Table_PI[[#This Row],[List 1]],Table_PI[[#This Row],[List 2]],Table_PI[[#This Row],[List 3]],Table_PI[[#This Row],[Size]],Table_PI[[#This Row],[Input 1]],Table_PI[[#This Row],[Input 2]],Table_PI[[#This Row],[Input 3]],Table_PI[[#This Row],[Input 4]],'Customer Information'!$AR$12,200,ROW())<>\"No Rebate\",MeasureCalc(Table_PI[[#This Row],[Hide:\nFormula Name]],Table_SummaryPI[[#This Row],[Quantity]],Table_PI[[#This Row],[List 1]],Table_PI[[#This Row],[List 2]],Table_PI[[#This Row],[List 3]],Table_PI[[#This Row],[Size]],Table_PI[[#This Row],[Input 1]],Table_PI[[#This Row],[Input 2]],Table_PI[[#This Row],[Input 3]],Table_PI[[#This Row],[Input 4]],'Customer Information'!$AR$12,200,ROW()),\"\"),\"\")","v":""},{"$f":"IFERROR(IF(MeasureCalc(Table_PI[[#This Row],[Hide:\nFormula Name]],Table_SummaryPI[[#This Row],[Quantity]],Table_PI[[#This Row],[List 1]],Table_PI[[#This Row],[List 2]],Table_PI[[#This Row],[List 3]],Table_PI[[#This Row],[Size]],Table_PI[[#This Row],[Input 1]],Table_PI[[#This Row],[Input 2]],Table_PI[[#This Row],[Input 3]],Table_PI[[#This Row],[Input 4]],'Customer Information'!$AR$12,201,ROW())<>\"No Rebate\",MeasureCalc(Table_PI[[#This Row],[Hide:\nFormula Name]],Table_SummaryPI[[#This Row],[Quantity]],Table_PI[[#This Row],[List 1]],Table_PI[[#This Row],[List 2]],Table_PI[[#This Row],[List 3]],Table_PI[[#This Row],[Size]],Table_PI[[#This Row],[Input 1]],Table_PI[[#This Row],[Input 2]],Table_PI[[#This Row],[Input 3]],Table_PI[[#This Row],[Input 4]],'Customer Information'!$AR$12,201,ROW()),\"\"),\"\")","v":""}]
[{"$f":"Table_PI[[#This Row],[Line No.]]","v":""},{"$f":"IF(Table_SummaryPI[[#This Row],[MeassureCategory]]<>\"\",CONCATENATE(Table_SummaryPI[[#This Row],[MeassureCategory]],  \" - \", Table_SummaryPI[[#This Row],[ProposedMeasureCategory]],  \" - \", TEXT(Table_SummaryPI[[#This Row],[Size]],\"#,##0.00\"),\" \",Table_SummaryPI[[#This Row],[SizeUnit]]),\"\")","v":""},{"$f":"SUBSTITUTE(Table_PI[[#This Row],[Measure]],\"     \",\"\",1)","v":""},{"$f":"IF(Table_PI[[#This Row],[List 1]]<>\"\",Table_PI[[#This Row],[List 1]],\"\")","v":""},{"$f":"IF(Table_PI[[#This Row],[List 2]]<>\"\",Table_PI[[#This Row],[List 2]],\"\")","v":""},{"$f":"IF(Table_PI[[#This Row],[List 3]]<>\"\",Table_PI[[#This Row],[List 3]],\"\")","v":""},{"$f":"IF(Table_PI[[#This Row],[Manufacturer]]=\"\",\"\",Table_PI[[#This Row],[Manufacturer]])","v":""},{"$f":"IF(Table_PI[[#This Row],[Model Number]]=\"\",\"\",Table_PI[[#This Row],[Model Number]])","v":""},{"$f":"IF(Table_PI[[#This Row],[Serial Number(s)]]=\"\",\"\",Table_PI[[#This Row],[Serial Number(s)]])","v":""},null,{"$f":"IF(Table_PI[[#This Row],[Size]]=\"\",\"\",Table_PI[[#This Row],[Size]])","v":""},null,{"$f":"IFERROR(IF(AND(MeasureCalc(Table_PI[[#This Row],[Hide:\nFormula Name]],Table_SummaryPI[[#This Row],[Quantity]],Table_PI[[#This Row],[List 1]],Table_PI[[#This Row],[List 2]],Table_PI[[#This Row],[List 3]],Table_PI[[#This Row],[Size]],Table_PI[[#This Row],[Input 1]],Table_PI[[#This Row],[Input 2]],Table_PI[[#This Row],[Input 3]],Table_PI[[#This Row],[Input 4]],'Customer Information'!$AR$12,100,ROW())<>0,MeasureCalc(Table_PI[[#This Row],[Hide:\nFormula Name]],Table_SummaryPI[[#This Row],[Quantity]],Table_PI[[#This Row],[List 1]],Table_PI[[#This Row],[List 2]],Table_PI[[#This Row],[List 3]],Table_PI[[#This Row],[Size]],Table_PI[[#This Row],[Input 1]],Table_PI[[#This Row],[Input 2]],Table_PI[[#This Row],[Input 3]],Table_PI[[#This Row],[Input 4]],'Customer Information'!$AR$12,100,ROW())<>\"No Rebate\"),MeasureCalc(Table_PI[[#This Row],[Hide:\nFormula Name]],Table_SummaryPI[[#This Row],[Quantity]],Table_PI[[#This Row],[List 1]],Table_PI[[#This Row],[List 2]],Table_PI[[#This Row],[List 3]],Table_PI[[#This Row],[Size]],Table_PI[[#This Row],[Input 1]],Table_PI[[#This Row],[Input 2]],Table_PI[[#This Row],[Input 3]],Table_PI[[#This Row],[Input 4]],'Customer Information'!$AR$12,100,ROW()),\"\"),\"\")","v":""},{"$f":"IF(Table_PI[[#This Row],[Input 1]]<>\"\",Table_PI[[#This Row],[Input 1]],\"\")","v":""},null,{"$f":"IFERROR(IF(AND(MeasureCalc(Table_PI[[#This Row],[Hide:\nFormula Name]],Table_SummaryPI[[#This Row],[Quantity]],Table_PI[[#This Row],[List 1]],Table_PI[[#This Row],[List 2]],Table_PI[[#This Row],[List 3]],Table_PI[[#This Row],[Size]],Table_PI[[#This Row],[Input 1]],Table_PI[[#This Row],[Input 2]],Table_PI[[#This Row],[Input 3]],Table_PI[[#This Row],[Input 4]],'Customer Information'!$AR$12,101,ROW())<>0,MeasureCalc(Table_PI[[#This Row],[Hide:\nFormula Name]],Table_SummaryPI[[#This Row],[Quantity]],Table_PI[[#This Row],[List 1]],Table_PI[[#This Row],[List 2]],Table_PI[[#This Row],[List 3]],Table_PI[[#This Row],[Size]],Table_PI[[#This Row],[Input 1]],Table_PI[[#This Row],[Input 2]],Table_PI[[#This Row],[Input 3]],Table_PI[[#This Row],[Input 4]],'Customer Information'!$AR$12,101,ROW())<>\"No Rebate\"),MeasureCalc(Table_PI[[#This Row],[Hide:\nFormula Name]],Table_SummaryPI[[#This Row],[Quantity]],Table_PI[[#This Row],[List 1]],Table_PI[[#This Row],[List 2]],Table_PI[[#This Row],[List 3]],Table_PI[[#This Row],[Size]],Table_PI[[#This Row],[Input 1]],Table_PI[[#This Row],[Input 2]],Table_PI[[#This Row],[Input 3]],Table_PI[[#This Row],[Input 4]],'Customer Information'!$AR$12,101,ROW()),\"\"),\"\")","v":""},{"$f":"IF(Table_PI[[#This Row],[Input 2]]<>\"\",Table_PI[[#This Row],[Input 2]],\"\")","v":""},null,{"$f":"IFERROR(IF(AND(MeasureCalc(Table_PI[[#This Row],[Hide:\nFormula Name]],Table_SummaryPI[[#This Row],[Quantity]],Table_PI[[#This Row],[List 1]],Table_PI[[#This Row],[List 2]],Table_PI[[#This Row],[List 3]],Table_PI[[#This Row],[Size]],Table_PI[[#This Row],[Input 1]],Table_PI[[#This Row],[Input 2]],Table_PI[[#This Row],[Input 3]],Table_PI[[#This Row],[Input 4]],'Customer Information'!$AR$12,102,ROW())<>0,MeasureCalc(Table_PI[[#This Row],[Hide:\nFormula Name]],Table_SummaryPI[[#This Row],[Quantity]],Table_PI[[#This Row],[List 1]],Table_PI[[#This Row],[List 2]],Table_PI[[#This Row],[List 3]],Table_PI[[#This Row],[Size]],Table_PI[[#This Row],[Input 1]],Table_PI[[#This Row],[Input 2]],Table_PI[[#This Row],[Input 3]],Table_PI[[#This Row],[Input 4]],'Customer Information'!$AR$12,102,ROW())<>\"No Rebate\"),MeasureCalc(Table_PI[[#This Row],[Hide:\nFormula Name]],Table_SummaryPI[[#This Row],[Quantity]],Table_PI[[#This Row],[List 1]],Table_PI[[#This Row],[List 2]],Table_PI[[#This Row],[List 3]],Table_PI[[#This Row],[Size]],Table_PI[[#This Row],[Input 1]],Table_PI[[#This Row],[Input 2]],Table_PI[[#This Row],[Input 3]],Table_PI[[#This Row],[Input 4]],'Customer Information'!$AR$12,102,ROW()),\"\"),\"\")","v":""},{"$f":"IF(Table_PI[[#This Row],[Input 3]]<>\"\",Table_PI[[#This Row],[Input 3]],\"\")","v":""},null,{"$f":"IFERROR(IF(AND(MeasureCalc(Table_PI[[#This Row],[Hide:\nFormula Name]],Table_SummaryPI[[#This Row],[Quantity]],Table_PI[[#This Row],[List 1]],Table_PI[[#This Row],[List 2]],Table_PI[[#This Row],[List 3]],Table_PI[[#This Row],[Size]],Table_PI[[#This Row],[Input 1]],Table_PI[[#This Row],[Input 2]],Table_PI[[#This Row],[Input 3]],Table_PI[[#This Row],[Input 4]],'Customer Information'!$AR$12,103,ROW())<>0,MeasureCalc(Table_PI[[#This Row],[Hide:\nFormula Name]],Table_SummaryPI[[#This Row],[Quantity]],Table_PI[[#This Row],[List 1]],Table_PI[[#This Row],[List 2]],Table_PI[[#This Row],[List 3]],Table_PI[[#This Row],[Size]],Table_PI[[#This Row],[Input 1]],Table_PI[[#This Row],[Input 2]],Table_PI[[#This Row],[Input 3]],Table_PI[[#This Row],[Input 4]],'Customer Information'!$AR$12,103,ROW())<>\"No Rebate\"),MeasureCalc(Table_PI[[#This Row],[Hide:\nFormula Name]],Table_SummaryPI[[#This Row],[Quantity]],Table_PI[[#This Row],[List 1]],Table_PI[[#This Row],[List 2]],Table_PI[[#This Row],[List 3]],Table_PI[[#This Row],[Size]],Table_PI[[#This Row],[Input 1]],Table_PI[[#This Row],[Input 2]],Table_PI[[#This Row],[Input 3]],Table_PI[[#This Row],[Input 4]],'Customer Information'!$AR$12,103,ROW()),\"\"),\"\")","v":""},{"$f":"IF(Table_PI[[#This Row],[Input 4]]<>\"\",Table_PI[[#This Row],[Input 4]],\"\")","v":""},{"$f":"IF(Table_PI[[#This Row],[Quantity]]=\"\",\"\",Table_PI[[#This Row],[Quantity]])","v":""},{"$f":"IF(Table_PI[[#This Row],[Notes]]=\"\",\"\",Table_PI[[#This Row],[Notes]])","v":""},{"$f":"IF(OR(Table_PI[[#This Row],[Hide:\nBaseline kWh]]=\"\",Table_PI[[#This Row],[Hide:\nBaseline kWh]]=0),\"\",Table_PI[[#This Row],[Hide:\nBaseline kWh]])","v":""},{"$f":"IF(OR(Table_PI[[#This Row],[Hide:\nBaseline kW]]=\"\",Table_PI[[#This Row],[Hide:\nBaseline kW]]=0),\"\",Table_PI[[#This Row],[Hide:\nBaseline kW]])","v":""},{"$f":"IF(OR(Table_PI[[#This Row],[Hide:\nProposed kWh]]=\"\",Table_PI[[#This Row],[Hide:\nProposed kWh]]=0),\"\",Table_PI[[#This Row],[Hide:\nProposed kWh]])","v":""},{"$f":"IF(OR(Table_PI[[#This Row],[Hide:\nProposed kW]]=\"\",Table_PI[[#This Row],[Hide:\nProposed kW]]=0),\"\",Table_PI[[#This Row],[Hide:\nProposed kW]])","v":""},{"$f":"IF(OR(Table_PI[[#This Row],[Rebate]]=\"\",Table_PI[[#This Row],[Rebate]]=0),\"\",Table_PI[[#This Row],[Rebate]])","v":""},{"$f":"IF(OR(Table_PI[[#This Row],[Hide:\nIncremental Cost]]=\"\",Table_PI[[#This Row],[Hide:\nIncremental Cost]]=0),\"\",Table_PI[[#This Row],[Hide:\nIncremental Cost]])","v":""},{"$f":"IFERROR(IF(Table_SummaryPI[[#This Row],[kWhSavings]]=\"\",\"\",ROUND(Table_SummaryPI[[#This Row],[kWhSavings]]/$AG$401*'Customer Information'!$BC$17,2)),0)","v":""},{"$f":"IF(OR(Table_PI[[#This Row],[Annual kWh]]=\"\",Table_PI[[#This Row],[Annual kWh]]=0),\"\",Table_PI[[#This Row],[Annual kWh]])","v":""},{"$f":"IF(OR(Table_PI[[#This Row],[Peak kW]]=\"\",Table_PI[[#This Row],[Peak kW]]=0),\"\",Table_PI[[#This Row],[Peak kW]])","v":""},{"$f":"IFERROR(IF(Table_SummaryPI[[#This Row],[kWhSavings]]=\"\",\"\",$AU$9*Table_SummaryPI[[#This Row],[kWhSavings]]),0)","v":""},{"$f":"IFERROR(IF(Table_SummaryPI[[#This Row],[kWhSavings]]=\"\",\"\",$AU$14*Table_SummaryPI[[#This Row],[kWhSavings]]),0)","v":""},{"$f":"IFERROR(IF(Table_SummaryPI[[#This Row],[kWhSavings]]=\"\",\"\",$AU$18*Table_SummaryPI[[#This Row],[kWhSavings]]),0)","v":""},{"$f":"IFERROR(IF(Table_SummaryPI[[#This Row],[kWhSavings]]=\"\",\"\",$AU$22*Table_SummaryPI[[#This Row],[kWhSavings]]),0)","v":""},{"$f":"IFERROR(IF(MeasureCalc(Table_PI[[#This Row],[Hide:\nFormula Name]],Table_SummaryPI[[#This Row],[Quantity]],Table_PI[[#This Row],[List 1]],Table_PI[[#This Row],[List 2]],Table_PI[[#This Row],[List 3]],Table_PI[[#This Row],[Size]],Table_PI[[#This Row],[Input 1]],Table_PI[[#This Row],[Input 2]],Table_PI[[#This Row],[Input 3]],Table_PI[[#This Row],[Input 4]],'Customer Information'!$AR$12,200,ROW())<>\"No Rebate\",MeasureCalc(Table_PI[[#This Row],[Hide:\nFormula Name]],Table_SummaryPI[[#This Row],[Quantity]],Table_PI[[#This Row],[List 1]],Table_PI[[#This Row],[List 2]],Table_PI[[#This Row],[List 3]],Table_PI[[#This Row],[Size]],Table_PI[[#This Row],[Input 1]],Table_PI[[#This Row],[Input 2]],Table_PI[[#This Row],[Input 3]],Table_PI[[#This Row],[Input 4]],'Customer Information'!$AR$12,200,ROW()),\"\"),\"\")","v":""},{"$f":"IFERROR(IF(MeasureCalc(Table_PI[[#This Row],[Hide:\nFormula Name]],Table_SummaryPI[[#This Row],[Quantity]],Table_PI[[#This Row],[List 1]],Table_PI[[#This Row],[List 2]],Table_PI[[#This Row],[List 3]],Table_PI[[#This Row],[Size]],Table_PI[[#This Row],[Input 1]],Table_PI[[#This Row],[Input 2]],Table_PI[[#This Row],[Input 3]],Table_PI[[#This Row],[Input 4]],'Customer Information'!$AR$12,201,ROW())<>\"No Rebate\",MeasureCalc(Table_PI[[#This Row],[Hide:\nFormula Name]],Table_SummaryPI[[#This Row],[Quantity]],Table_PI[[#This Row],[List 1]],Table_PI[[#This Row],[List 2]],Table_PI[[#This Row],[List 3]],Table_PI[[#This Row],[Size]],Table_PI[[#This Row],[Input 1]],Table_PI[[#This Row],[Input 2]],Table_PI[[#This Row],[Input 3]],Table_PI[[#This Row],[Input 4]],'Customer Information'!$AR$12,201,ROW()),\"\"),\"\")","v":""}]
[{"$f":"Table_PI[[#This Row],[Line No.]]","v":""},{"$f":"IF(Table_SummaryPI[[#This Row],[MeassureCategory]]<>\"\",CONCATENATE(Table_SummaryPI[[#This Row],[MeassureCategory]],  \" - \", Table_SummaryPI[[#This Row],[ProposedMeasureCategory]],  \" - \", TEXT(Table_SummaryPI[[#This Row],[Size]],\"#,##0.00\"),\" \",Table_SummaryPI[[#This Row],[SizeUnit]]),\"\")","v":""},{"$f":"SUBSTITUTE(Table_PI[[#This Row],[Measure]],\"     \",\"\",1)","v":""},{"$f":"IF(Table_PI[[#This Row],[List 1]]<>\"\",Table_PI[[#This Row],[List 1]],\"\")","v":""},{"$f":"IF(Table_PI[[#This Row],[List 2]]<>\"\",Table_PI[[#This Row],[List 2]],\"\")","v":""},{"$f":"IF(Table_PI[[#This Row],[List 3]]<>\"\",Table_PI[[#This Row],[List 3]],\"\")","v":""},{"$f":"IF(Table_PI[[#This Row],[Manufacturer]]=\"\",\"\",Table_PI[[#This Row],[Manufacturer]])","v":""},{"$f":"IF(Table_PI[[#This Row],[Model Number]]=\"\",\"\",Table_PI[[#This Row],[Model Number]])","v":""},{"$f":"IF(Table_PI[[#This Row],[Serial Number(s)]]=\"\",\"\",Table_PI[[#This Row],[Serial Number(s)]])","v":""},null,{"$f":"IF(Table_PI[[#This Row],[Size]]=\"\",\"\",Table_PI[[#This Row],[Size]])","v":""},null,{"$f":"IFERROR(IF(AND(MeasureCalc(Table_PI[[#This Row],[Hide:\nFormula Name]],Table_SummaryPI[[#This Row],[Quantity]],Table_PI[[#This Row],[List 1]],Table_PI[[#This Row],[List 2]],Table_PI[[#This Row],[List 3]],Table_PI[[#This Row],[Size]],Table_PI[[#This Row],[Input 1]],Table_PI[[#This Row],[Input 2]],Table_PI[[#This Row],[Input 3]],Table_PI[[#This Row],[Input 4]],'Customer Information'!$AR$12,100,ROW())<>0,MeasureCalc(Table_PI[[#This Row],[Hide:\nFormula Name]],Table_SummaryPI[[#This Row],[Quantity]],Table_PI[[#This Row],[List 1]],Table_PI[[#This Row],[List 2]],Table_PI[[#This Row],[List 3]],Table_PI[[#This Row],[Size]],Table_PI[[#This Row],[Input 1]],Table_PI[[#This Row],[Input 2]],Table_PI[[#This Row],[Input 3]],Table_PI[[#This Row],[Input 4]],'Customer Information'!$AR$12,100,ROW())<>\"No Rebate\"),MeasureCalc(Table_PI[[#This Row],[Hide:\nFormula Name]],Table_SummaryPI[[#This Row],[Quantity]],Table_PI[[#This Row],[List 1]],Table_PI[[#This Row],[List 2]],Table_PI[[#This Row],[List 3]],Table_PI[[#This Row],[Size]],Table_PI[[#This Row],[Input 1]],Table_PI[[#This Row],[Input 2]],Table_PI[[#This Row],[Input 3]],Table_PI[[#This Row],[Input 4]],'Customer Information'!$AR$12,100,ROW()),\"\"),\"\")","v":""},{"$f":"IF(Table_PI[[#This Row],[Input 1]]<>\"\",Table_PI[[#This Row],[Input 1]],\"\")","v":""},null,{"$f":"IFERROR(IF(AND(MeasureCalc(Table_PI[[#This Row],[Hide:\nFormula Name]],Table_SummaryPI[[#This Row],[Quantity]],Table_PI[[#This Row],[List 1]],Table_PI[[#This Row],[List 2]],Table_PI[[#This Row],[List 3]],Table_PI[[#This Row],[Size]],Table_PI[[#This Row],[Input 1]],Table_PI[[#This Row],[Input 2]],Table_PI[[#This Row],[Input 3]],Table_PI[[#This Row],[Input 4]],'Customer Information'!$AR$12,101,ROW())<>0,MeasureCalc(Table_PI[[#This Row],[Hide:\nFormula Name]],Table_SummaryPI[[#This Row],[Quantity]],Table_PI[[#This Row],[List 1]],Table_PI[[#This Row],[List 2]],Table_PI[[#This Row],[List 3]],Table_PI[[#This Row],[Size]],Table_PI[[#This Row],[Input 1]],Table_PI[[#This Row],[Input 2]],Table_PI[[#This Row],[Input 3]],Table_PI[[#This Row],[Input 4]],'Customer Information'!$AR$12,101,ROW())<>\"No Rebate\"),MeasureCalc(Table_PI[[#This Row],[Hide:\nFormula Name]],Table_SummaryPI[[#This Row],[Quantity]],Table_PI[[#This Row],[List 1]],Table_PI[[#This Row],[List 2]],Table_PI[[#This Row],[List 3]],Table_PI[[#This Row],[Size]],Table_PI[[#This Row],[Input 1]],Table_PI[[#This Row],[Input 2]],Table_PI[[#This Row],[Input 3]],Table_PI[[#This Row],[Input 4]],'Customer Information'!$AR$12,101,ROW()),\"\"),\"\")","v":""},{"$f":"IF(Table_PI[[#This Row],[Input 2]]<>\"\",Table_PI[[#This Row],[Input 2]],\"\")","v":""},null,{"$f":"IFERROR(IF(AND(MeasureCalc(Table_PI[[#This Row],[Hide:\nFormula Name]],Table_SummaryPI[[#This Row],[Quantity]],Table_PI[[#This Row],[List 1]],Table_PI[[#This Row],[List 2]],Table_PI[[#This Row],[List 3]],Table_PI[[#This Row],[Size]],Table_PI[[#This Row],[Input 1]],Table_PI[[#This Row],[Input 2]],Table_PI[[#This Row],[Input 3]],Table_PI[[#This Row],[Input 4]],'Customer Information'!$AR$12,102,ROW())<>0,MeasureCalc(Table_PI[[#This Row],[Hide:\nFormula Name]],Table_SummaryPI[[#This Row],[Quantity]],Table_PI[[#This Row],[List 1]],Table_PI[[#This Row],[List 2]],Table_PI[[#This Row],[List 3]],Table_PI[[#This Row],[Size]],Table_PI[[#This Row],[Input 1]],Table_PI[[#This Row],[Input 2]],Table_PI[[#This Row],[Input 3]],Table_PI[[#This Row],[Input 4]],'Customer Information'!$AR$12,102,ROW())<>\"No Rebate\"),MeasureCalc(Table_PI[[#This Row],[Hide:\nFormula Name]],Table_SummaryPI[[#This Row],[Quantity]],Table_PI[[#This Row],[List 1]],Table_PI[[#This Row],[List 2]],Table_PI[[#This Row],[List 3]],Table_PI[[#This Row],[Size]],Table_PI[[#This Row],[Input 1]],Table_PI[[#This Row],[Input 2]],Table_PI[[#This Row],[Input 3]],Table_PI[[#This Row],[Input 4]],'Customer Information'!$AR$12,102,ROW()),\"\"),\"\")","v":""},{"$f":"IF(Table_PI[[#This Row],[Input 3]]<>\"\",Table_PI[[#This Row],[Input 3]],\"\")","v":""},null,{"$f":"IFERROR(IF(AND(MeasureCalc(Table_PI[[#This Row],[Hide:\nFormula Name]],Table_SummaryPI[[#This Row],[Quantity]],Table_PI[[#This Row],[List 1]],Table_PI[[#This Row],[List 2]],Table_PI[[#This Row],[List 3]],Table_PI[[#This Row],[Size]],Table_PI[[#This Row],[Input 1]],Table_PI[[#This Row],[Input 2]],Table_PI[[#This Row],[Input 3]],Table_PI[[#This Row],[Input 4]],'Customer Information'!$AR$12,103,ROW())<>0,MeasureCalc(Table_PI[[#This Row],[Hide:\nFormula Name]],Table_SummaryPI[[#This Row],[Quantity]],Table_PI[[#This Row],[List 1]],Table_PI[[#This Row],[List 2]],Table_PI[[#This Row],[List 3]],Table_PI[[#This Row],[Size]],Table_PI[[#This Row],[Input 1]],Table_PI[[#This Row],[Input 2]],Table_PI[[#This Row],[Input 3]],Table_PI[[#This Row],[Input 4]],'Customer Information'!$AR$12,103,ROW())<>\"No Rebate\"),MeasureCalc(Table_PI[[#This Row],[Hide:\nFormula Name]],Table_SummaryPI[[#This Row],[Quantity]],Table_PI[[#This Row],[List 1]],Table_PI[[#This Row],[List 2]],Table_PI[[#This Row],[List 3]],Table_PI[[#This Row],[Size]],Table_PI[[#This Row],[Input 1]],Table_PI[[#This Row],[Input 2]],Table_PI[[#This Row],[Input 3]],Table_PI[[#This Row],[Input 4]],'Customer Information'!$AR$12,103,ROW()),\"\"),\"\")","v":""},{"$f":"IF(Table_PI[[#This Row],[Input 4]]<>\"\",Table_PI[[#This Row],[Input 4]],\"\")","v":""},{"$f":"IF(Table_PI[[#This Row],[Quantity]]=\"\",\"\",Table_PI[[#This Row],[Quantity]])","v":""},{"$f":"IF(Table_PI[[#This Row],[Notes]]=\"\",\"\",Table_PI[[#This Row],[Notes]])","v":""},{"$f":"IF(OR(Table_PI[[#This Row],[Hide:\nBaseline kWh]]=\"\",Table_PI[[#This Row],[Hide:\nBaseline kWh]]=0),\"\",Table_PI[[#This Row],[Hide:\nBaseline kWh]])","v":""},{"$f":"IF(OR(Table_PI[[#This Row],[Hide:\nBaseline kW]]=\"\",Table_PI[[#This Row],[Hide:\nBaseline kW]]=0),\"\",Table_PI[[#This Row],[Hide:\nBaseline kW]])","v":""},{"$f":"IF(OR(Table_PI[[#This Row],[Hide:\nProposed kWh]]=\"\",Table_PI[[#This Row],[Hide:\nProposed kWh]]=0),\"\",Table_PI[[#This Row],[Hide:\nProposed kWh]])","v":""},{"$f":"IF(OR(Table_PI[[#This Row],[Hide:\nProposed kW]]=\"\",Table_PI[[#This Row],[Hide:\nProposed kW]]=0),\"\",Table_PI[[#This Row],[Hide:\nProposed kW]])","v":""},{"$f":"IF(OR(Table_PI[[#This Row],[Rebate]]=\"\",Table_PI[[#This Row],[Rebate]]=0),\"\",Table_PI[[#This Row],[Rebate]])","v":""},{"$f":"IF(OR(Table_PI[[#This Row],[Hide:\nIncremental Cost]]=\"\",Table_PI[[#This Row],[Hide:\nIncremental Cost]]=0),\"\",Table_PI[[#This Row],[Hide:\nIncremental Cost]])","v":""},{"$f":"IFERROR(IF(Table_SummaryPI[[#This Row],[kWhSavings]]=\"\",\"\",ROUND(Table_SummaryPI[[#This Row],[kWhSavings]]/$AG$401*'Customer Information'!$BC$17,2)),0)","v":""},{"$f":"IF(OR(Table_PI[[#This Row],[Annual kWh]]=\"\",Table_PI[[#This Row],[Annual kWh]]=0),\"\",Table_PI[[#This Row],[Annual kWh]])","v":""},{"$f":"IF(OR(Table_PI[[#This Row],[Peak kW]]=\"\",Table_PI[[#This Row],[Peak kW]]=0),\"\",Table_PI[[#This Row],[Peak kW]])","v":""},{"$f":"IFERROR(IF(Table_SummaryPI[[#This Row],[kWhSavings]]=\"\",\"\",$AU$9*Table_SummaryPI[[#This Row],[kWhSavings]]),0)","v":""},{"$f":"IFERROR(IF(Table_SummaryPI[[#This Row],[kWhSavings]]=\"\",\"\",$AU$14*Table_SummaryPI[[#This Row],[kWhSavings]]),0)","v":""},{"$f":"IFERROR(IF(Table_SummaryPI[[#This Row],[kWhSavings]]=\"\",\"\",$AU$18*Table_SummaryPI[[#This Row],[kWhSavings]]),0)","v":""},{"$f":"IFERROR(IF(Table_SummaryPI[[#This Row],[kWhSavings]]=\"\",\"\",$AU$22*Table_SummaryPI[[#This Row],[kWhSavings]]),0)","v":""},{"$f":"IFERROR(IF(MeasureCalc(Table_PI[[#This Row],[Hide:\nFormula Name]],Table_SummaryPI[[#This Row],[Quantity]],Table_PI[[#This Row],[List 1]],Table_PI[[#This Row],[List 2]],Table_PI[[#This Row],[List 3]],Table_PI[[#This Row],[Size]],Table_PI[[#This Row],[Input 1]],Table_PI[[#This Row],[Input 2]],Table_PI[[#This Row],[Input 3]],Table_PI[[#This Row],[Input 4]],'Customer Information'!$AR$12,200,ROW())<>\"No Rebate\",MeasureCalc(Table_PI[[#This Row],[Hide:\nFormula Name]],Table_SummaryPI[[#This Row],[Quantity]],Table_PI[[#This Row],[List 1]],Table_PI[[#This Row],[List 2]],Table_PI[[#This Row],[List 3]],Table_PI[[#This Row],[Size]],Table_PI[[#This Row],[Input 1]],Table_PI[[#This Row],[Input 2]],Table_PI[[#This Row],[Input 3]],Table_PI[[#This Row],[Input 4]],'Customer Information'!$AR$12,200,ROW()),\"\"),\"\")","v":""},{"$f":"IFERROR(IF(MeasureCalc(Table_PI[[#This Row],[Hide:\nFormula Name]],Table_SummaryPI[[#This Row],[Quantity]],Table_PI[[#This Row],[List 1]],Table_PI[[#This Row],[List 2]],Table_PI[[#This Row],[List 3]],Table_PI[[#This Row],[Size]],Table_PI[[#This Row],[Input 1]],Table_PI[[#This Row],[Input 2]],Table_PI[[#This Row],[Input 3]],Table_PI[[#This Row],[Input 4]],'Customer Information'!$AR$12,201,ROW())<>\"No Rebate\",MeasureCalc(Table_PI[[#This Row],[Hide:\nFormula Name]],Table_SummaryPI[[#This Row],[Quantity]],Table_PI[[#This Row],[List 1]],Table_PI[[#This Row],[List 2]],Table_PI[[#This Row],[List 3]],Table_PI[[#This Row],[Size]],Table_PI[[#This Row],[Input 1]],Table_PI[[#This Row],[Input 2]],Table_PI[[#This Row],[Input 3]],Table_PI[[#This Row],[Input 4]],'Customer Information'!$AR$12,201,ROW()),\"\"),\"\")","v":""}]
[{"$f":"Table_PI[[#This Row],[Line No.]]","v":""},{"$f":"IF(Table_SummaryPI[[#This Row],[MeassureCategory]]<>\"\",CONCATENATE(Table_SummaryPI[[#This Row],[MeassureCategory]],  \" - \", Table_SummaryPI[[#This Row],[ProposedMeasureCategory]],  \" - \", TEXT(Table_SummaryPI[[#This Row],[Size]],\"#,##0.00\"),\" \",Table_SummaryPI[[#This Row],[SizeUnit]]),\"\")","v":""},{"$f":"SUBSTITUTE(Table_PI[[#This Row],[Measure]],\"     \",\"\",1)","v":""},{"$f":"IF(Table_PI[[#This Row],[List 1]]<>\"\",Table_PI[[#This Row],[List 1]],\"\")","v":""},{"$f":"IF(Table_PI[[#This Row],[List 2]]<>\"\",Table_PI[[#This Row],[List 2]],\"\")","v":""},{"$f":"IF(Table_PI[[#This Row],[List 3]]<>\"\",Table_PI[[#This Row],[List 3]],\"\")","v":""},{"$f":"IF(Table_PI[[#This Row],[Manufacturer]]=\"\",\"\",Table_PI[[#This Row],[Manufacturer]])","v":""},{"$f":"IF(Table_PI[[#This Row],[Model Number]]=\"\",\"\",Table_PI[[#This Row],[Model Number]])","v":""},{"$f":"IF(Table_PI[[#This Row],[Serial Number(s)]]=\"\",\"\",Table_PI[[#This Row],[Serial Number(s)]])","v":""},null,{"$f":"IF(Table_PI[[#This Row],[Size]]=\"\",\"\",Table_PI[[#This Row],[Size]])","v":""},null,{"$f":"IFERROR(IF(AND(MeasureCalc(Table_PI[[#This Row],[Hide:\nFormula Name]],Table_SummaryPI[[#This Row],[Quantity]],Table_PI[[#This Row],[List 1]],Table_PI[[#This Row],[List 2]],Table_PI[[#This Row],[List 3]],Table_PI[[#This Row],[Size]],Table_PI[[#This Row],[Input 1]],Table_PI[[#This Row],[Input 2]],Table_PI[[#This Row],[Input 3]],Table_PI[[#This Row],[Input 4]],'Customer Information'!$AR$12,100,ROW())<>0,MeasureCalc(Table_PI[[#This Row],[Hide:\nFormula Name]],Table_SummaryPI[[#This Row],[Quantity]],Table_PI[[#This Row],[List 1]],Table_PI[[#This Row],[List 2]],Table_PI[[#This Row],[List 3]],Table_PI[[#This Row],[Size]],Table_PI[[#This Row],[Input 1]],Table_PI[[#This Row],[Input 2]],Table_PI[[#This Row],[Input 3]],Table_PI[[#This Row],[Input 4]],'Customer Information'!$AR$12,100,ROW())<>\"No Rebate\"),MeasureCalc(Table_PI[[#This Row],[Hide:\nFormula Name]],Table_SummaryPI[[#This Row],[Quantity]],Table_PI[[#This Row],[List 1]],Table_PI[[#This Row],[List 2]],Table_PI[[#This Row],[List 3]],Table_PI[[#This Row],[Size]],Table_PI[[#This Row],[Input 1]],Table_PI[[#This Row],[Input 2]],Table_PI[[#This Row],[Input 3]],Table_PI[[#This Row],[Input 4]],'Customer Information'!$AR$12,100,ROW()),\"\"),\"\")","v":""},{"$f":"IF(Table_PI[[#This Row],[Input 1]]<>\"\",Table_PI[[#This Row],[Input 1]],\"\")","v":""},null,{"$f":"IFERROR(IF(AND(MeasureCalc(Table_PI[[#This Row],[Hide:\nFormula Name]],Table_SummaryPI[[#This Row],[Quantity]],Table_PI[[#This Row],[List 1]],Table_PI[[#This Row],[List 2]],Table_PI[[#This Row],[List 3]],Table_PI[[#This Row],[Size]],Table_PI[[#This Row],[Input 1]],Table_PI[[#This Row],[Input 2]],Table_PI[[#This Row],[Input 3]],Table_PI[[#This Row],[Input 4]],'Customer Information'!$AR$12,101,ROW())<>0,MeasureCalc(Table_PI[[#This Row],[Hide:\nFormula Name]],Table_SummaryPI[[#This Row],[Quantity]],Table_PI[[#This Row],[List 1]],Table_PI[[#This Row],[List 2]],Table_PI[[#This Row],[List 3]],Table_PI[[#This Row],[Size]],Table_PI[[#This Row],[Input 1]],Table_PI[[#This Row],[Input 2]],Table_PI[[#This Row],[Input 3]],Table_PI[[#This Row],[Input 4]],'Customer Information'!$AR$12,101,ROW())<>\"No Rebate\"),MeasureCalc(Table_PI[[#This Row],[Hide:\nFormula Name]],Table_SummaryPI[[#This Row],[Quantity]],Table_PI[[#This Row],[List 1]],Table_PI[[#This Row],[List 2]],Table_PI[[#This Row],[List 3]],Table_PI[[#This Row],[Size]],Table_PI[[#This Row],[Input 1]],Table_PI[[#This Row],[Input 2]],Table_PI[[#This Row],[Input 3]],Table_PI[[#This Row],[Input 4]],'Customer Information'!$AR$12,101,ROW()),\"\"),\"\")","v":""},{"$f":"IF(Table_PI[[#This Row],[Input 2]]<>\"\",Table_PI[[#This Row],[Input 2]],\"\")","v":""},null,{"$f":"IFERROR(IF(AND(MeasureCalc(Table_PI[[#This Row],[Hide:\nFormula Name]],Table_SummaryPI[[#This Row],[Quantity]],Table_PI[[#This Row],[List 1]],Table_PI[[#This Row],[List 2]],Table_PI[[#This Row],[List 3]],Table_PI[[#This Row],[Size]],Table_PI[[#This Row],[Input 1]],Table_PI[[#This Row],[Input 2]],Table_PI[[#This Row],[Input 3]],Table_PI[[#This Row],[Input 4]],'Customer Information'!$AR$12,102,ROW())<>0,MeasureCalc(Table_PI[[#This Row],[Hide:\nFormula Name]],Table_SummaryPI[[#This Row],[Quantity]],Table_PI[[#This Row],[List 1]],Table_PI[[#This Row],[List 2]],Table_PI[[#This Row],[List 3]],Table_PI[[#This Row],[Size]],Table_PI[[#This Row],[Input 1]],Table_PI[[#This Row],[Input 2]],Table_PI[[#This Row],[Input 3]],Table_PI[[#This Row],[Input 4]],'Customer Information'!$AR$12,102,ROW())<>\"No Rebate\"),MeasureCalc(Table_PI[[#This Row],[Hide:\nFormula Name]],Table_SummaryPI[[#This Row],[Quantity]],Table_PI[[#This Row],[List 1]],Table_PI[[#This Row],[List 2]],Table_PI[[#This Row],[List 3]],Table_PI[[#This Row],[Size]],Table_PI[[#This Row],[Input 1]],Table_PI[[#This Row],[Input 2]],Table_PI[[#This Row],[Input 3]],Table_PI[[#This Row],[Input 4]],'Customer Information'!$AR$12,102,ROW()),\"\"),\"\")","v":""},{"$f":"IF(Table_PI[[#This Row],[Input 3]]<>\"\",Table_PI[[#This Row],[Input 3]],\"\")","v":""},null,{"$f":"IFERROR(IF(AND(MeasureCalc(Table_PI[[#This Row],[Hide:\nFormula Name]],Table_SummaryPI[[#This Row],[Quantity]],Table_PI[[#This Row],[List 1]],Table_PI[[#This Row],[List 2]],Table_PI[[#This Row],[List 3]],Table_PI[[#This Row],[Size]],Table_PI[[#This Row],[Input 1]],Table_PI[[#This Row],[Input 2]],Table_PI[[#This Row],[Input 3]],Table_PI[[#This Row],[Input 4]],'Customer Information'!$AR$12,103,ROW())<>0,MeasureCalc(Table_PI[[#This Row],[Hide:\nFormula Name]],Table_SummaryPI[[#This Row],[Quantity]],Table_PI[[#This Row],[List 1]],Table_PI[[#This Row],[List 2]],Table_PI[[#This Row],[List 3]],Table_PI[[#This Row],[Size]],Table_PI[[#This Row],[Input 1]],Table_PI[[#This Row],[Input 2]],Table_PI[[#This Row],[Input 3]],Table_PI[[#This Row],[Input 4]],'Customer Information'!$AR$12,103,ROW())<>\"No Rebate\"),MeasureCalc(Table_PI[[#This Row],[Hide:\nFormula Name]],Table_SummaryPI[[#This Row],[Quantity]],Table_PI[[#This Row],[List 1]],Table_PI[[#This Row],[List 2]],Table_PI[[#This Row],[List 3]],Table_PI[[#This Row],[Size]],Table_PI[[#This Row],[Input 1]],Table_PI[[#This Row],[Input 2]],Table_PI[[#This Row],[Input 3]],Table_PI[[#This Row],[Input 4]],'Customer Information'!$AR$12,103,ROW()),\"\"),\"\")","v":""},{"$f":"IF(Table_PI[[#This Row],[Input 4]]<>\"\",Table_PI[[#This Row],[Input 4]],\"\")","v":""},{"$f":"IF(Table_PI[[#This Row],[Quantity]]=\"\",\"\",Table_PI[[#This Row],[Quantity]])","v":""},{"$f":"IF(Table_PI[[#This Row],[Notes]]=\"\",\"\",Table_PI[[#This Row],[Notes]])","v":""},{"$f":"IF(OR(Table_PI[[#This Row],[Hide:\nBaseline kWh]]=\"\",Table_PI[[#This Row],[Hide:\nBaseline kWh]]=0),\"\",Table_PI[[#This Row],[Hide:\nBaseline kWh]])","v":""},{"$f":"IF(OR(Table_PI[[#This Row],[Hide:\nBaseline kW]]=\"\",Table_PI[[#This Row],[Hide:\nBaseline kW]]=0),\"\",Table_PI[[#This Row],[Hide:\nBaseline kW]])","v":""},{"$f":"IF(OR(Table_PI[[#This Row],[Hide:\nProposed kWh]]=\"\",Table_PI[[#This Row],[Hide:\nProposed kWh]]=0),\"\",Table_PI[[#This Row],[Hide:\nProposed kWh]])","v":""},{"$f":"IF(OR(Table_PI[[#This Row],[Hide:\nProposed kW]]=\"\",Table_PI[[#This Row],[Hide:\nProposed kW]]=0),\"\",Table_PI[[#This Row],[Hide:\nProposed kW]])","v":""},{"$f":"IF(OR(Table_PI[[#This Row],[Rebate]]=\"\",Table_PI[[#This Row],[Rebate]]=0),\"\",Table_PI[[#This Row],[Rebate]])","v":""},{"$f":"IF(OR(Table_PI[[#This Row],[Hide:\nIncremental Cost]]=\"\",Table_PI[[#This Row],[Hide:\nIncremental Cost]]=0),\"\",Table_PI[[#This Row],[Hide:\nIncremental Cost]])","v":""},{"$f":"IFERROR(IF(Table_SummaryPI[[#This Row],[kWhSavings]]=\"\",\"\",ROUND(Table_SummaryPI[[#This Row],[kWhSavings]]/$AG$401*'Customer Information'!$BC$17,2)),0)","v":""},{"$f":"IF(OR(Table_PI[[#This Row],[Annual kWh]]=\"\",Table_PI[[#This Row],[Annual kWh]]=0),\"\",Table_PI[[#This Row],[Annual kWh]])","v":""},{"$f":"IF(OR(Table_PI[[#This Row],[Peak kW]]=\"\",Table_PI[[#This Row],[Peak kW]]=0),\"\",Table_PI[[#This Row],[Peak kW]])","v":""},{"$f":"IFERROR(IF(Table_SummaryPI[[#This Row],[kWhSavings]]=\"\",\"\",$AU$9*Table_SummaryPI[[#This Row],[kWhSavings]]),0)","v":""},{"$f":"IFERROR(IF(Table_SummaryPI[[#This Row],[kWhSavings]]=\"\",\"\",$AU$14*Table_SummaryPI[[#This Row],[kWhSavings]]),0)","v":""},{"$f":"IFERROR(IF(Table_SummaryPI[[#This Row],[kWhSavings]]=\"\",\"\",$AU$18*Table_SummaryPI[[#This Row],[kWhSavings]]),0)","v":""},{"$f":"IFERROR(IF(Table_SummaryPI[[#This Row],[kWhSavings]]=\"\",\"\",$AU$22*Table_SummaryPI[[#This Row],[kWhSavings]]),0)","v":""},{"$f":"IFERROR(IF(MeasureCalc(Table_PI[[#This Row],[Hide:\nFormula Name]],Table_SummaryPI[[#This Row],[Quantity]],Table_PI[[#This Row],[List 1]],Table_PI[[#This Row],[List 2]],Table_PI[[#This Row],[List 3]],Table_PI[[#This Row],[Size]],Table_PI[[#This Row],[Input 1]],Table_PI[[#This Row],[Input 2]],Table_PI[[#This Row],[Input 3]],Table_PI[[#This Row],[Input 4]],'Customer Information'!$AR$12,200,ROW())<>\"No Rebate\",MeasureCalc(Table_PI[[#This Row],[Hide:\nFormula Name]],Table_SummaryPI[[#This Row],[Quantity]],Table_PI[[#This Row],[List 1]],Table_PI[[#This Row],[List 2]],Table_PI[[#This Row],[List 3]],Table_PI[[#This Row],[Size]],Table_PI[[#This Row],[Input 1]],Table_PI[[#This Row],[Input 2]],Table_PI[[#This Row],[Input 3]],Table_PI[[#This Row],[Input 4]],'Customer Information'!$AR$12,200,ROW()),\"\"),\"\")","v":""},{"$f":"IFERROR(IF(MeasureCalc(Table_PI[[#This Row],[Hide:\nFormula Name]],Table_SummaryPI[[#This Row],[Quantity]],Table_PI[[#This Row],[List 1]],Table_PI[[#This Row],[List 2]],Table_PI[[#This Row],[List 3]],Table_PI[[#This Row],[Size]],Table_PI[[#This Row],[Input 1]],Table_PI[[#This Row],[Input 2]],Table_PI[[#This Row],[Input 3]],Table_PI[[#This Row],[Input 4]],'Customer Information'!$AR$12,201,ROW())<>\"No Rebate\",MeasureCalc(Table_PI[[#This Row],[Hide:\nFormula Name]],Table_SummaryPI[[#This Row],[Quantity]],Table_PI[[#This Row],[List 1]],Table_PI[[#This Row],[List 2]],Table_PI[[#This Row],[List 3]],Table_PI[[#This Row],[Size]],Table_PI[[#This Row],[Input 1]],Table_PI[[#This Row],[Input 2]],Table_PI[[#This Row],[Input 3]],Table_PI[[#This Row],[Input 4]],'Customer Information'!$AR$12,201,ROW()),\"\"),\"\")","v":""}]
[{"$f":"Table_PI[[#This Row],[Line No.]]","v":""},{"$f":"IF(Table_SummaryPI[[#This Row],[MeassureCategory]]<>\"\",CONCATENATE(Table_SummaryPI[[#This Row],[MeassureCategory]],  \" - \", Table_SummaryPI[[#This Row],[ProposedMeasureCategory]],  \" - \", TEXT(Table_SummaryPI[[#This Row],[Size]],\"#,##0.00\"),\" \",Table_SummaryPI[[#This Row],[SizeUnit]]),\"\")","v":""},{"$f":"SUBSTITUTE(Table_PI[[#This Row],[Measure]],\"     \",\"\",1)","v":""},{"$f":"IF(Table_PI[[#This Row],[List 1]]<>\"\",Table_PI[[#This Row],[List 1]],\"\")","v":""},{"$f":"IF(Table_PI[[#This Row],[List 2]]<>\"\",Table_PI[[#This Row],[List 2]],\"\")","v":""},{"$f":"IF(Table_PI[[#This Row],[List 3]]<>\"\",Table_PI[[#This Row],[List 3]],\"\")","v":""},{"$f":"IF(Table_PI[[#This Row],[Manufacturer]]=\"\",\"\",Table_PI[[#This Row],[Manufacturer]])","v":""},{"$f":"IF(Table_PI[[#This Row],[Model Number]]=\"\",\"\",Table_PI[[#This Row],[Model Number]])","v":""},{"$f":"IF(Table_PI[[#This Row],[Serial Number(s)]]=\"\",\"\",Table_PI[[#This Row],[Serial Number(s)]])","v":""},null,{"$f":"IF(Table_PI[[#This Row],[Size]]=\"\",\"\",Table_PI[[#This Row],[Size]])","v":""},null,{"$f":"IFERROR(IF(AND(MeasureCalc(Table_PI[[#This Row],[Hide:\nFormula Name]],Table_SummaryPI[[#This Row],[Quantity]],Table_PI[[#This Row],[List 1]],Table_PI[[#This Row],[List 2]],Table_PI[[#This Row],[List 3]],Table_PI[[#This Row],[Size]],Table_PI[[#This Row],[Input 1]],Table_PI[[#This Row],[Input 2]],Table_PI[[#This Row],[Input 3]],Table_PI[[#This Row],[Input 4]],'Customer Information'!$AR$12,100,ROW())<>0,MeasureCalc(Table_PI[[#This Row],[Hide:\nFormula Name]],Table_SummaryPI[[#This Row],[Quantity]],Table_PI[[#This Row],[List 1]],Table_PI[[#This Row],[List 2]],Table_PI[[#This Row],[List 3]],Table_PI[[#This Row],[Size]],Table_PI[[#This Row],[Input 1]],Table_PI[[#This Row],[Input 2]],Table_PI[[#This Row],[Input 3]],Table_PI[[#This Row],[Input 4]],'Customer Information'!$AR$12,100,ROW())<>\"No Rebate\"),MeasureCalc(Table_PI[[#This Row],[Hide:\nFormula Name]],Table_SummaryPI[[#This Row],[Quantity]],Table_PI[[#This Row],[List 1]],Table_PI[[#This Row],[List 2]],Table_PI[[#This Row],[List 3]],Table_PI[[#This Row],[Size]],Table_PI[[#This Row],[Input 1]],Table_PI[[#This Row],[Input 2]],Table_PI[[#This Row],[Input 3]],Table_PI[[#This Row],[Input 4]],'Customer Information'!$AR$12,100,ROW()),\"\"),\"\")","v":""},{"$f":"IF(Table_PI[[#This Row],[Input 1]]<>\"\",Table_PI[[#This Row],[Input 1]],\"\")","v":""},null,{"$f":"IFERROR(IF(AND(MeasureCalc(Table_PI[[#This Row],[Hide:\nFormula Name]],Table_SummaryPI[[#This Row],[Quantity]],Table_PI[[#This Row],[List 1]],Table_PI[[#This Row],[List 2]],Table_PI[[#This Row],[List 3]],Table_PI[[#This Row],[Size]],Table_PI[[#This Row],[Input 1]],Table_PI[[#This Row],[Input 2]],Table_PI[[#This Row],[Input 3]],Table_PI[[#This Row],[Input 4]],'Customer Information'!$AR$12,101,ROW())<>0,MeasureCalc(Table_PI[[#This Row],[Hide:\nFormula Name]],Table_SummaryPI[[#This Row],[Quantity]],Table_PI[[#This Row],[List 1]],Table_PI[[#This Row],[List 2]],Table_PI[[#This Row],[List 3]],Table_PI[[#This Row],[Size]],Table_PI[[#This Row],[Input 1]],Table_PI[[#This Row],[Input 2]],Table_PI[[#This Row],[Input 3]],Table_PI[[#This Row],[Input 4]],'Customer Information'!$AR$12,101,ROW())<>\"No Rebate\"),MeasureCalc(Table_PI[[#This Row],[Hide:\nFormula Name]],Table_SummaryPI[[#This Row],[Quantity]],Table_PI[[#This Row],[List 1]],Table_PI[[#This Row],[List 2]],Table_PI[[#This Row],[List 3]],Table_PI[[#This Row],[Size]],Table_PI[[#This Row],[Input 1]],Table_PI[[#This Row],[Input 2]],Table_PI[[#This Row],[Input 3]],Table_PI[[#This Row],[Input 4]],'Customer Information'!$AR$12,101,ROW()),\"\"),\"\")","v":""},{"$f":"IF(Table_PI[[#This Row],[Input 2]]<>\"\",Table_PI[[#This Row],[Input 2]],\"\")","v":""},null,{"$f":"IFERROR(IF(AND(MeasureCalc(Table_PI[[#This Row],[Hide:\nFormula Name]],Table_SummaryPI[[#This Row],[Quantity]],Table_PI[[#This Row],[List 1]],Table_PI[[#This Row],[List 2]],Table_PI[[#This Row],[List 3]],Table_PI[[#This Row],[Size]],Table_PI[[#This Row],[Input 1]],Table_PI[[#This Row],[Input 2]],Table_PI[[#This Row],[Input 3]],Table_PI[[#This Row],[Input 4]],'Customer Information'!$AR$12,102,ROW())<>0,MeasureCalc(Table_PI[[#This Row],[Hide:\nFormula Name]],Table_SummaryPI[[#This Row],[Quantity]],Table_PI[[#This Row],[List 1]],Table_PI[[#This Row],[List 2]],Table_PI[[#This Row],[List 3]],Table_PI[[#This Row],[Size]],Table_PI[[#This Row],[Input 1]],Table_PI[[#This Row],[Input 2]],Table_PI[[#This Row],[Input 3]],Table_PI[[#This Row],[Input 4]],'Customer Information'!$AR$12,102,ROW())<>\"No Rebate\"),MeasureCalc(Table_PI[[#This Row],[Hide:\nFormula Name]],Table_SummaryPI[[#This Row],[Quantity]],Table_PI[[#This Row],[List 1]],Table_PI[[#This Row],[List 2]],Table_PI[[#This Row],[List 3]],Table_PI[[#This Row],[Size]],Table_PI[[#This Row],[Input 1]],Table_PI[[#This Row],[Input 2]],Table_PI[[#This Row],[Input 3]],Table_PI[[#This Row],[Input 4]],'Customer Information'!$AR$12,102,ROW()),\"\"),\"\")","v":""},{"$f":"IF(Table_PI[[#This Row],[Input 3]]<>\"\",Table_PI[[#This Row],[Input 3]],\"\")","v":""},null,{"$f":"IFERROR(IF(AND(MeasureCalc(Table_PI[[#This Row],[Hide:\nFormula Name]],Table_SummaryPI[[#This Row],[Quantity]],Table_PI[[#This Row],[List 1]],Table_PI[[#This Row],[List 2]],Table_PI[[#This Row],[List 3]],Table_PI[[#This Row],[Size]],Table_PI[[#This Row],[Input 1]],Table_PI[[#This Row],[Input 2]],Table_PI[[#This Row],[Input 3]],Table_PI[[#This Row],[Input 4]],'Customer Information'!$AR$12,103,ROW())<>0,MeasureCalc(Table_PI[[#This Row],[Hide:\nFormula Name]],Table_SummaryPI[[#This Row],[Quantity]],Table_PI[[#This Row],[List 1]],Table_PI[[#This Row],[List 2]],Table_PI[[#This Row],[List 3]],Table_PI[[#This Row],[Size]],Table_PI[[#This Row],[Input 1]],Table_PI[[#This Row],[Input 2]],Table_PI[[#This Row],[Input 3]],Table_PI[[#This Row],[Input 4]],'Customer Information'!$AR$12,103,ROW())<>\"No Rebate\"),MeasureCalc(Table_PI[[#This Row],[Hide:\nFormula Name]],Table_SummaryPI[[#This Row],[Quantity]],Table_PI[[#This Row],[List 1]],Table_PI[[#This Row],[List 2]],Table_PI[[#This Row],[List 3]],Table_PI[[#This Row],[Size]],Table_PI[[#This Row],[Input 1]],Table_PI[[#This Row],[Input 2]],Table_PI[[#This Row],[Input 3]],Table_PI[[#This Row],[Input 4]],'Customer Information'!$AR$12,103,ROW()),\"\"),\"\")","v":""},{"$f":"IF(Table_PI[[#This Row],[Input 4]]<>\"\",Table_PI[[#This Row],[Input 4]],\"\")","v":""},{"$f":"IF(Table_PI[[#This Row],[Quantity]]=\"\",\"\",Table_PI[[#This Row],[Quantity]])","v":""},{"$f":"IF(Table_PI[[#This Row],[Notes]]=\"\",\"\",Table_PI[[#This Row],[Notes]])","v":""},{"$f":"IF(OR(Table_PI[[#This Row],[Hide:\nBaseline kWh]]=\"\",Table_PI[[#This Row],[Hide:\nBaseline kWh]]=0),\"\",Table_PI[[#This Row],[Hide:\nBaseline kWh]])","v":""},{"$f":"IF(OR(Table_PI[[#This Row],[Hide:\nBaseline kW]]=\"\",Table_PI[[#This Row],[Hide:\nBaseline kW]]=0),\"\",Table_PI[[#This Row],[Hide:\nBaseline kW]])","v":""},{"$f":"IF(OR(Table_PI[[#This Row],[Hide:\nProposed kWh]]=\"\",Table_PI[[#This Row],[Hide:\nProposed kWh]]=0),\"\",Table_PI[[#This Row],[Hide:\nProposed kWh]])","v":""},{"$f":"IF(OR(Table_PI[[#This Row],[Hide:\nProposed kW]]=\"\",Table_PI[[#This Row],[Hide:\nProposed kW]]=0),\"\",Table_PI[[#This Row],[Hide:\nProposed kW]])","v":""},{"$f":"IF(OR(Table_PI[[#This Row],[Rebate]]=\"\",Table_PI[[#This Row],[Rebate]]=0),\"\",Table_PI[[#This Row],[Rebate]])","v":""},{"$f":"IF(OR(Table_PI[[#This Row],[Hide:\nIncremental Cost]]=\"\",Table_PI[[#This Row],[Hide:\nIncremental Cost]]=0),\"\",Table_PI[[#This Row],[Hide:\nIncremental Cost]])","v":""},{"$f":"IFERROR(IF(Table_SummaryPI[[#This Row],[kWhSavings]]=\"\",\"\",ROUND(Table_SummaryPI[[#This Row],[kWhSavings]]/$AG$401*'Customer Information'!$BC$17,2)),0)","v":""},{"$f":"IF(OR(Table_PI[[#This Row],[Annual kWh]]=\"\",Table_PI[[#This Row],[Annual kWh]]=0),\"\",Table_PI[[#This Row],[Annual kWh]])","v":""},{"$f":"IF(OR(Table_PI[[#This Row],[Peak kW]]=\"\",Table_PI[[#This Row],[Peak kW]]=0),\"\",Table_PI[[#This Row],[Peak kW]])","v":""},{"$f":"IFERROR(IF(Table_SummaryPI[[#This Row],[kWhSavings]]=\"\",\"\",$AU$9*Table_SummaryPI[[#This Row],[kWhSavings]]),0)","v":""},{"$f":"IFERROR(IF(Table_SummaryPI[[#This Row],[kWhSavings]]=\"\",\"\",$AU$14*Table_SummaryPI[[#This Row],[kWhSavings]]),0)","v":""},{"$f":"IFERROR(IF(Table_SummaryPI[[#This Row],[kWhSavings]]=\"\",\"\",$AU$18*Table_SummaryPI[[#This Row],[kWhSavings]]),0)","v":""},{"$f":"IFERROR(IF(Table_SummaryPI[[#This Row],[kWhSavings]]=\"\",\"\",$AU$22*Table_SummaryPI[[#This Row],[kWhSavings]]),0)","v":""},{"$f":"IFERROR(IF(MeasureCalc(Table_PI[[#This Row],[Hide:\nFormula Name]],Table_SummaryPI[[#This Row],[Quantity]],Table_PI[[#This Row],[List 1]],Table_PI[[#This Row],[List 2]],Table_PI[[#This Row],[List 3]],Table_PI[[#This Row],[Size]],Table_PI[[#This Row],[Input 1]],Table_PI[[#This Row],[Input 2]],Table_PI[[#This Row],[Input 3]],Table_PI[[#This Row],[Input 4]],'Customer Information'!$AR$12,200,ROW())<>\"No Rebate\",MeasureCalc(Table_PI[[#This Row],[Hide:\nFormula Name]],Table_SummaryPI[[#This Row],[Quantity]],Table_PI[[#This Row],[List 1]],Table_PI[[#This Row],[List 2]],Table_PI[[#This Row],[List 3]],Table_PI[[#This Row],[Size]],Table_PI[[#This Row],[Input 1]],Table_PI[[#This Row],[Input 2]],Table_PI[[#This Row],[Input 3]],Table_PI[[#This Row],[Input 4]],'Customer Information'!$AR$12,200,ROW()),\"\"),\"\")","v":""},{"$f":"IFERROR(IF(MeasureCalc(Table_PI[[#This Row],[Hide:\nFormula Name]],Table_SummaryPI[[#This Row],[Quantity]],Table_PI[[#This Row],[List 1]],Table_PI[[#This Row],[List 2]],Table_PI[[#This Row],[List 3]],Table_PI[[#This Row],[Size]],Table_PI[[#This Row],[Input 1]],Table_PI[[#This Row],[Input 2]],Table_PI[[#This Row],[Input 3]],Table_PI[[#This Row],[Input 4]],'Customer Information'!$AR$12,201,ROW())<>\"No Rebate\",MeasureCalc(Table_PI[[#This Row],[Hide:\nFormula Name]],Table_SummaryPI[[#This Row],[Quantity]],Table_PI[[#This Row],[List 1]],Table_PI[[#This Row],[List 2]],Table_PI[[#This Row],[List 3]],Table_PI[[#This Row],[Size]],Table_PI[[#This Row],[Input 1]],Table_PI[[#This Row],[Input 2]],Table_PI[[#This Row],[Input 3]],Table_PI[[#This Row],[Input 4]],'Customer Information'!$AR$12,201,ROW()),\"\"),\"\")","v":""}]
[{"$f":"Table_PI[[#This Row],[Line No.]]","v":""},{"$f":"IF(Table_SummaryPI[[#This Row],[MeassureCategory]]<>\"\",CONCATENATE(Table_SummaryPI[[#This Row],[MeassureCategory]],  \" - \", Table_SummaryPI[[#This Row],[ProposedMeasureCategory]],  \" - \", TEXT(Table_SummaryPI[[#This Row],[Size]],\"#,##0.00\"),\" \",Table_SummaryPI[[#This Row],[SizeUnit]]),\"\")","v":""},{"$f":"SUBSTITUTE(Table_PI[[#This Row],[Measure]],\"     \",\"\",1)","v":""},{"$f":"IF(Table_PI[[#This Row],[List 1]]<>\"\",Table_PI[[#This Row],[List 1]],\"\")","v":""},{"$f":"IF(Table_PI[[#This Row],[List 2]]<>\"\",Table_PI[[#This Row],[List 2]],\"\")","v":""},{"$f":"IF(Table_PI[[#This Row],[List 3]]<>\"\",Table_PI[[#This Row],[List 3]],\"\")","v":""},{"$f":"IF(Table_PI[[#This Row],[Manufacturer]]=\"\",\"\",Table_PI[[#This Row],[Manufacturer]])","v":""},{"$f":"IF(Table_PI[[#This Row],[Model Number]]=\"\",\"\",Table_PI[[#This Row],[Model Number]])","v":""},{"$f":"IF(Table_PI[[#This Row],[Serial Number(s)]]=\"\",\"\",Table_PI[[#This Row],[Serial Number(s)]])","v":""},null,{"$f":"IF(Table_PI[[#This Row],[Size]]=\"\",\"\",Table_PI[[#This Row],[Size]])","v":""},null,{"$f":"IFERROR(IF(AND(MeasureCalc(Table_PI[[#This Row],[Hide:\nFormula Name]],Table_SummaryPI[[#This Row],[Quantity]],Table_PI[[#This Row],[List 1]],Table_PI[[#This Row],[List 2]],Table_PI[[#This Row],[List 3]],Table_PI[[#This Row],[Size]],Table_PI[[#This Row],[Input 1]],Table_PI[[#This Row],[Input 2]],Table_PI[[#This Row],[Input 3]],Table_PI[[#This Row],[Input 4]],'Customer Information'!$AR$12,100,ROW())<>0,MeasureCalc(Table_PI[[#This Row],[Hide:\nFormula Name]],Table_SummaryPI[[#This Row],[Quantity]],Table_PI[[#This Row],[List 1]],Table_PI[[#This Row],[List 2]],Table_PI[[#This Row],[List 3]],Table_PI[[#This Row],[Size]],Table_PI[[#This Row],[Input 1]],Table_PI[[#This Row],[Input 2]],Table_PI[[#This Row],[Input 3]],Table_PI[[#This Row],[Input 4]],'Customer Information'!$AR$12,100,ROW())<>\"No Rebate\"),MeasureCalc(Table_PI[[#This Row],[Hide:\nFormula Name]],Table_SummaryPI[[#This Row],[Quantity]],Table_PI[[#This Row],[List 1]],Table_PI[[#This Row],[List 2]],Table_PI[[#This Row],[List 3]],Table_PI[[#This Row],[Size]],Table_PI[[#This Row],[Input 1]],Table_PI[[#This Row],[Input 2]],Table_PI[[#This Row],[Input 3]],Table_PI[[#This Row],[Input 4]],'Customer Information'!$AR$12,100,ROW()),\"\"),\"\")","v":""},{"$f":"IF(Table_PI[[#This Row],[Input 1]]<>\"\",Table_PI[[#This Row],[Input 1]],\"\")","v":""},null,{"$f":"IFERROR(IF(AND(MeasureCalc(Table_PI[[#This Row],[Hide:\nFormula Name]],Table_SummaryPI[[#This Row],[Quantity]],Table_PI[[#This Row],[List 1]],Table_PI[[#This Row],[List 2]],Table_PI[[#This Row],[List 3]],Table_PI[[#This Row],[Size]],Table_PI[[#This Row],[Input 1]],Table_PI[[#This Row],[Input 2]],Table_PI[[#This Row],[Input 3]],Table_PI[[#This Row],[Input 4]],'Customer Information'!$AR$12,101,ROW())<>0,MeasureCalc(Table_PI[[#This Row],[Hide:\nFormula Name]],Table_SummaryPI[[#This Row],[Quantity]],Table_PI[[#This Row],[List 1]],Table_PI[[#This Row],[List 2]],Table_PI[[#This Row],[List 3]],Table_PI[[#This Row],[Size]],Table_PI[[#This Row],[Input 1]],Table_PI[[#This Row],[Input 2]],Table_PI[[#This Row],[Input 3]],Table_PI[[#This Row],[Input 4]],'Customer Information'!$AR$12,101,ROW())<>\"No Rebate\"),MeasureCalc(Table_PI[[#This Row],[Hide:\nFormula Name]],Table_SummaryPI[[#This Row],[Quantity]],Table_PI[[#This Row],[List 1]],Table_PI[[#This Row],[List 2]],Table_PI[[#This Row],[List 3]],Table_PI[[#This Row],[Size]],Table_PI[[#This Row],[Input 1]],Table_PI[[#This Row],[Input 2]],Table_PI[[#This Row],[Input 3]],Table_PI[[#This Row],[Input 4]],'Customer Information'!$AR$12,101,ROW()),\"\"),\"\")","v":""},{"$f":"IF(Table_PI[[#This Row],[Input 2]]<>\"\",Table_PI[[#This Row],[Input 2]],\"\")","v":""},null,{"$f":"IFERROR(IF(AND(MeasureCalc(Table_PI[[#This Row],[Hide:\nFormula Name]],Table_SummaryPI[[#This Row],[Quantity]],Table_PI[[#This Row],[List 1]],Table_PI[[#This Row],[List 2]],Table_PI[[#This Row],[List 3]],Table_PI[[#This Row],[Size]],Table_PI[[#This Row],[Input 1]],Table_PI[[#This Row],[Input 2]],Table_PI[[#This Row],[Input 3]],Table_PI[[#This Row],[Input 4]],'Customer Information'!$AR$12,102,ROW())<>0,MeasureCalc(Table_PI[[#This Row],[Hide:\nFormula Name]],Table_SummaryPI[[#This Row],[Quantity]],Table_PI[[#This Row],[List 1]],Table_PI[[#This Row],[List 2]],Table_PI[[#This Row],[List 3]],Table_PI[[#This Row],[Size]],Table_PI[[#This Row],[Input 1]],Table_PI[[#This Row],[Input 2]],Table_PI[[#This Row],[Input 3]],Table_PI[[#This Row],[Input 4]],'Customer Information'!$AR$12,102,ROW())<>\"No Rebate\"),MeasureCalc(Table_PI[[#This Row],[Hide:\nFormula Name]],Table_SummaryPI[[#This Row],[Quantity]],Table_PI[[#This Row],[List 1]],Table_PI[[#This Row],[List 2]],Table_PI[[#This Row],[List 3]],Table_PI[[#This Row],[Size]],Table_PI[[#This Row],[Input 1]],Table_PI[[#This Row],[Input 2]],Table_PI[[#This Row],[Input 3]],Table_PI[[#This Row],[Input 4]],'Customer Information'!$AR$12,102,ROW()),\"\"),\"\")","v":""},{"$f":"IF(Table_PI[[#This Row],[Input 3]]<>\"\",Table_PI[[#This Row],[Input 3]],\"\")","v":""},null,{"$f":"IFERROR(IF(AND(MeasureCalc(Table_PI[[#This Row],[Hide:\nFormula Name]],Table_SummaryPI[[#This Row],[Quantity]],Table_PI[[#This Row],[List 1]],Table_PI[[#This Row],[List 2]],Table_PI[[#This Row],[List 3]],Table_PI[[#This Row],[Size]],Table_PI[[#This Row],[Input 1]],Table_PI[[#This Row],[Input 2]],Table_PI[[#This Row],[Input 3]],Table_PI[[#This Row],[Input 4]],'Customer Information'!$AR$12,103,ROW())<>0,MeasureCalc(Table_PI[[#This Row],[Hide:\nFormula Name]],Table_SummaryPI[[#This Row],[Quantity]],Table_PI[[#This Row],[List 1]],Table_PI[[#This Row],[List 2]],Table_PI[[#This Row],[List 3]],Table_PI[[#This Row],[Size]],Table_PI[[#This Row],[Input 1]],Table_PI[[#This Row],[Input 2]],Table_PI[[#This Row],[Input 3]],Table_PI[[#This Row],[Input 4]],'Customer Information'!$AR$12,103,ROW())<>\"No Rebate\"),MeasureCalc(Table_PI[[#This Row],[Hide:\nFormula Name]],Table_SummaryPI[[#This Row],[Quantity]],Table_PI[[#This Row],[List 1]],Table_PI[[#This Row],[List 2]],Table_PI[[#This Row],[List 3]],Table_PI[[#This Row],[Size]],Table_PI[[#This Row],[Input 1]],Table_PI[[#This Row],[Input 2]],Table_PI[[#This Row],[Input 3]],Table_PI[[#This Row],[Input 4]],'Customer Information'!$AR$12,103,ROW()),\"\"),\"\")","v":""},{"$f":"IF(Table_PI[[#This Row],[Input 4]]<>\"\",Table_PI[[#This Row],[Input 4]],\"\")","v":""},{"$f":"IF(Table_PI[[#This Row],[Quantity]]=\"\",\"\",Table_PI[[#This Row],[Quantity]])","v":""},{"$f":"IF(Table_PI[[#This Row],[Notes]]=\"\",\"\",Table_PI[[#This Row],[Notes]])","v":""},{"$f":"IF(OR(Table_PI[[#This Row],[Hide:\nBaseline kWh]]=\"\",Table_PI[[#This Row],[Hide:\nBaseline kWh]]=0),\"\",Table_PI[[#This Row],[Hide:\nBaseline kWh]])","v":""},{"$f":"IF(OR(Table_PI[[#This Row],[Hide:\nBaseline kW]]=\"\",Table_PI[[#This Row],[Hide:\nBaseline kW]]=0),\"\",Table_PI[[#This Row],[Hide:\nBaseline kW]])","v":""},{"$f":"IF(OR(Table_PI[[#This Row],[Hide:\nProposed kWh]]=\"\",Table_PI[[#This Row],[Hide:\nProposed kWh]]=0),\"\",Table_PI[[#This Row],[Hide:\nProposed kWh]])","v":""},{"$f":"IF(OR(Table_PI[[#This Row],[Hide:\nProposed kW]]=\"\",Table_PI[[#This Row],[Hide:\nProposed kW]]=0),\"\",Table_PI[[#This Row],[Hide:\nProposed kW]])","v":""},{"$f":"IF(OR(Table_PI[[#This Row],[Rebate]]=\"\",Table_PI[[#This Row],[Rebate]]=0),\"\",Table_PI[[#This Row],[Rebate]])","v":""},{"$f":"IF(OR(Table_PI[[#This Row],[Hide:\nIncremental Cost]]=\"\",Table_PI[[#This Row],[Hide:\nIncremental Cost]]=0),\"\",Table_PI[[#This Row],[Hide:\nIncremental Cost]])","v":""},{"$f":"IFERROR(IF(Table_SummaryPI[[#This Row],[kWhSavings]]=\"\",\"\",ROUND(Table_SummaryPI[[#This Row],[kWhSavings]]/$AG$401*'Customer Information'!$BC$17,2)),0)","v":""},{"$f":"IF(OR(Table_PI[[#This Row],[Annual kWh]]=\"\",Table_PI[[#This Row],[Annual kWh]]=0),\"\",Table_PI[[#This Row],[Annual kWh]])","v":""},{"$f":"IF(OR(Table_PI[[#This Row],[Peak kW]]=\"\",Table_PI[[#This Row],[Peak kW]]=0),\"\",Table_PI[[#This Row],[Peak kW]])","v":""},{"$f":"IFERROR(IF(Table_SummaryPI[[#This Row],[kWhSavings]]=\"\",\"\",$AU$9*Table_SummaryPI[[#This Row],[kWhSavings]]),0)","v":""},{"$f":"IFERROR(IF(Table_SummaryPI[[#This Row],[kWhSavings]]=\"\",\"\",$AU$14*Table_SummaryPI[[#This Row],[kWhSavings]]),0)","v":""},{"$f":"IFERROR(IF(Table_SummaryPI[[#This Row],[kWhSavings]]=\"\",\"\",$AU$18*Table_SummaryPI[[#This Row],[kWhSavings]]),0)","v":""},{"$f":"IFERROR(IF(Table_SummaryPI[[#This Row],[kWhSavings]]=\"\",\"\",$AU$22*Table_SummaryPI[[#This Row],[kWhSavings]]),0)","v":""},{"$f":"IFERROR(IF(MeasureCalc(Table_PI[[#This Row],[Hide:\nFormula Name]],Table_SummaryPI[[#This Row],[Quantity]],Table_PI[[#This Row],[List 1]],Table_PI[[#This Row],[List 2]],Table_PI[[#This Row],[List 3]],Table_PI[[#This Row],[Size]],Table_PI[[#This Row],[Input 1]],Table_PI[[#This Row],[Input 2]],Table_PI[[#This Row],[Input 3]],Table_PI[[#This Row],[Input 4]],'Customer Information'!$AR$12,200,ROW())<>\"No Rebate\",MeasureCalc(Table_PI[[#This Row],[Hide:\nFormula Name]],Table_SummaryPI[[#This Row],[Quantity]],Table_PI[[#This Row],[List 1]],Table_PI[[#This Row],[List 2]],Table_PI[[#This Row],[List 3]],Table_PI[[#This Row],[Size]],Table_PI[[#This Row],[Input 1]],Table_PI[[#This Row],[Input 2]],Table_PI[[#This Row],[Input 3]],Table_PI[[#This Row],[Input 4]],'Customer Information'!$AR$12,200,ROW()),\"\"),\"\")","v":""},{"$f":"IFERROR(IF(MeasureCalc(Table_PI[[#This Row],[Hide:\nFormula Name]],Table_SummaryPI[[#This Row],[Quantity]],Table_PI[[#This Row],[List 1]],Table_PI[[#This Row],[List 2]],Table_PI[[#This Row],[List 3]],Table_PI[[#This Row],[Size]],Table_PI[[#This Row],[Input 1]],Table_PI[[#This Row],[Input 2]],Table_PI[[#This Row],[Input 3]],Table_PI[[#This Row],[Input 4]],'Customer Information'!$AR$12,201,ROW())<>\"No Rebate\",MeasureCalc(Table_PI[[#This Row],[Hide:\nFormula Name]],Table_SummaryPI[[#This Row],[Quantity]],Table_PI[[#This Row],[List 1]],Table_PI[[#This Row],[List 2]],Table_PI[[#This Row],[List 3]],Table_PI[[#This Row],[Size]],Table_PI[[#This Row],[Input 1]],Table_PI[[#This Row],[Input 2]],Table_PI[[#This Row],[Input 3]],Table_PI[[#This Row],[Input 4]],'Customer Information'!$AR$12,201,ROW()),\"\"),\"\")","v":""}]
[{"$f":"Table_PI[[#This Row],[Line No.]]","v":""},{"$f":"IF(Table_SummaryPI[[#This Row],[MeassureCategory]]<>\"\",CONCATENATE(Table_SummaryPI[[#This Row],[MeassureCategory]],  \" - \", Table_SummaryPI[[#This Row],[ProposedMeasureCategory]],  \" - \", TEXT(Table_SummaryPI[[#This Row],[Size]],\"#,##0.00\"),\" \",Table_SummaryPI[[#This Row],[SizeUnit]]),\"\")","v":""},{"$f":"SUBSTITUTE(Table_PI[[#This Row],[Measure]],\"     \",\"\",1)","v":""},{"$f":"IF(Table_PI[[#This Row],[List 1]]<>\"\",Table_PI[[#This Row],[List 1]],\"\")","v":""},{"$f":"IF(Table_PI[[#This Row],[List 2]]<>\"\",Table_PI[[#This Row],[List 2]],\"\")","v":""},{"$f":"IF(Table_PI[[#This Row],[List 3]]<>\"\",Table_PI[[#This Row],[List 3]],\"\")","v":""},{"$f":"IF(Table_PI[[#This Row],[Manufacturer]]=\"\",\"\",Table_PI[[#This Row],[Manufacturer]])","v":""},{"$f":"IF(Table_PI[[#This Row],[Model Number]]=\"\",\"\",Table_PI[[#This Row],[Model Number]])","v":""},{"$f":"IF(Table_PI[[#This Row],[Serial Number(s)]]=\"\",\"\",Table_PI[[#This Row],[Serial Number(s)]])","v":""},null,{"$f":"IF(Table_PI[[#This Row],[Size]]=\"\",\"\",Table_PI[[#This Row],[Size]])","v":""},null,{"$f":"IFERROR(IF(AND(MeasureCalc(Table_PI[[#This Row],[Hide:\nFormula Name]],Table_SummaryPI[[#This Row],[Quantity]],Table_PI[[#This Row],[List 1]],Table_PI[[#This Row],[List 2]],Table_PI[[#This Row],[List 3]],Table_PI[[#This Row],[Size]],Table_PI[[#This Row],[Input 1]],Table_PI[[#This Row],[Input 2]],Table_PI[[#This Row],[Input 3]],Table_PI[[#This Row],[Input 4]],'Customer Information'!$AR$12,100,ROW())<>0,MeasureCalc(Table_PI[[#This Row],[Hide:\nFormula Name]],Table_SummaryPI[[#This Row],[Quantity]],Table_PI[[#This Row],[List 1]],Table_PI[[#This Row],[List 2]],Table_PI[[#This Row],[List 3]],Table_PI[[#This Row],[Size]],Table_PI[[#This Row],[Input 1]],Table_PI[[#This Row],[Input 2]],Table_PI[[#This Row],[Input 3]],Table_PI[[#This Row],[Input 4]],'Customer Information'!$AR$12,100,ROW())<>\"No Rebate\"),MeasureCalc(Table_PI[[#This Row],[Hide:\nFormula Name]],Table_SummaryPI[[#This Row],[Quantity]],Table_PI[[#This Row],[List 1]],Table_PI[[#This Row],[List 2]],Table_PI[[#This Row],[List 3]],Table_PI[[#This Row],[Size]],Table_PI[[#This Row],[Input 1]],Table_PI[[#This Row],[Input 2]],Table_PI[[#This Row],[Input 3]],Table_PI[[#This Row],[Input 4]],'Customer Information'!$AR$12,100,ROW()),\"\"),\"\")","v":""},{"$f":"IF(Table_PI[[#This Row],[Input 1]]<>\"\",Table_PI[[#This Row],[Input 1]],\"\")","v":""},null,{"$f":"IFERROR(IF(AND(MeasureCalc(Table_PI[[#This Row],[Hide:\nFormula Name]],Table_SummaryPI[[#This Row],[Quantity]],Table_PI[[#This Row],[List 1]],Table_PI[[#This Row],[List 2]],Table_PI[[#This Row],[List 3]],Table_PI[[#This Row],[Size]],Table_PI[[#This Row],[Input 1]],Table_PI[[#This Row],[Input 2]],Table_PI[[#This Row],[Input 3]],Table_PI[[#This Row],[Input 4]],'Customer Information'!$AR$12,101,ROW())<>0,MeasureCalc(Table_PI[[#This Row],[Hide:\nFormula Name]],Table_SummaryPI[[#This Row],[Quantity]],Table_PI[[#This Row],[List 1]],Table_PI[[#This Row],[List 2]],Table_PI[[#This Row],[List 3]],Table_PI[[#This Row],[Size]],Table_PI[[#This Row],[Input 1]],Table_PI[[#This Row],[Input 2]],Table_PI[[#This Row],[Input 3]],Table_PI[[#This Row],[Input 4]],'Customer Information'!$AR$12,101,ROW())<>\"No Rebate\"),MeasureCalc(Table_PI[[#This Row],[Hide:\nFormula Name]],Table_SummaryPI[[#This Row],[Quantity]],Table_PI[[#This Row],[List 1]],Table_PI[[#This Row],[List 2]],Table_PI[[#This Row],[List 3]],Table_PI[[#This Row],[Size]],Table_PI[[#This Row],[Input 1]],Table_PI[[#This Row],[Input 2]],Table_PI[[#This Row],[Input 3]],Table_PI[[#This Row],[Input 4]],'Customer Information'!$AR$12,101,ROW()),\"\"),\"\")","v":""},{"$f":"IF(Table_PI[[#This Row],[Input 2]]<>\"\",Table_PI[[#This Row],[Input 2]],\"\")","v":""},null,{"$f":"IFERROR(IF(AND(MeasureCalc(Table_PI[[#This Row],[Hide:\nFormula Name]],Table_SummaryPI[[#This Row],[Quantity]],Table_PI[[#This Row],[List 1]],Table_PI[[#This Row],[List 2]],Table_PI[[#This Row],[List 3]],Table_PI[[#This Row],[Size]],Table_PI[[#This Row],[Input 1]],Table_PI[[#This Row],[Input 2]],Table_PI[[#This Row],[Input 3]],Table_PI[[#This Row],[Input 4]],'Customer Information'!$AR$12,102,ROW())<>0,MeasureCalc(Table_PI[[#This Row],[Hide:\nFormula Name]],Table_SummaryPI[[#This Row],[Quantity]],Table_PI[[#This Row],[List 1]],Table_PI[[#This Row],[List 2]],Table_PI[[#This Row],[List 3]],Table_PI[[#This Row],[Size]],Table_PI[[#This Row],[Input 1]],Table_PI[[#This Row],[Input 2]],Table_PI[[#This Row],[Input 3]],Table_PI[[#This Row],[Input 4]],'Customer Information'!$AR$12,102,ROW())<>\"No Rebate\"),MeasureCalc(Table_PI[[#This Row],[Hide:\nFormula Name]],Table_SummaryPI[[#This Row],[Quantity]],Table_PI[[#This Row],[List 1]],Table_PI[[#This Row],[List 2]],Table_PI[[#This Row],[List 3]],Table_PI[[#This Row],[Size]],Table_PI[[#This Row],[Input 1]],Table_PI[[#This Row],[Input 2]],Table_PI[[#This Row],[Input 3]],Table_PI[[#This Row],[Input 4]],'Customer Information'!$AR$12,102,ROW()),\"\"),\"\")","v":""},{"$f":"IF(Table_PI[[#This Row],[Input 3]]<>\"\",Table_PI[[#This Row],[Input 3]],\"\")","v":""},null,{"$f":"IFERROR(IF(AND(MeasureCalc(Table_PI[[#This Row],[Hide:\nFormula Name]],Table_SummaryPI[[#This Row],[Quantity]],Table_PI[[#This Row],[List 1]],Table_PI[[#This Row],[List 2]],Table_PI[[#This Row],[List 3]],Table_PI[[#This Row],[Size]],Table_PI[[#This Row],[Input 1]],Table_PI[[#This Row],[Input 2]],Table_PI[[#This Row],[Input 3]],Table_PI[[#This Row],[Input 4]],'Customer Information'!$AR$12,103,ROW())<>0,MeasureCalc(Table_PI[[#This Row],[Hide:\nFormula Name]],Table_SummaryPI[[#This Row],[Quantity]],Table_PI[[#This Row],[List 1]],Table_PI[[#This Row],[List 2]],Table_PI[[#This Row],[List 3]],Table_PI[[#This Row],[Size]],Table_PI[[#This Row],[Input 1]],Table_PI[[#This Row],[Input 2]],Table_PI[[#This Row],[Input 3]],Table_PI[[#This Row],[Input 4]],'Customer Information'!$AR$12,103,ROW())<>\"No Rebate\"),MeasureCalc(Table_PI[[#This Row],[Hide:\nFormula Name]],Table_SummaryPI[[#This Row],[Quantity]],Table_PI[[#This Row],[List 1]],Table_PI[[#This Row],[List 2]],Table_PI[[#This Row],[List 3]],Table_PI[[#This Row],[Size]],Table_PI[[#This Row],[Input 1]],Table_PI[[#This Row],[Input 2]],Table_PI[[#This Row],[Input 3]],Table_PI[[#This Row],[Input 4]],'Customer Information'!$AR$12,103,ROW()),\"\"),\"\")","v":""},{"$f":"IF(Table_PI[[#This Row],[Input 4]]<>\"\",Table_PI[[#This Row],[Input 4]],\"\")","v":""},{"$f":"IF(Table_PI[[#This Row],[Quantity]]=\"\",\"\",Table_PI[[#This Row],[Quantity]])","v":""},{"$f":"IF(Table_PI[[#This Row],[Notes]]=\"\",\"\",Table_PI[[#This Row],[Notes]])","v":""},{"$f":"IF(OR(Table_PI[[#This Row],[Hide:\nBaseline kWh]]=\"\",Table_PI[[#This Row],[Hide:\nBaseline kWh]]=0),\"\",Table_PI[[#This Row],[Hide:\nBaseline kWh]])","v":""},{"$f":"IF(OR(Table_PI[[#This Row],[Hide:\nBaseline kW]]=\"\",Table_PI[[#This Row],[Hide:\nBaseline kW]]=0),\"\",Table_PI[[#This Row],[Hide:\nBaseline kW]])","v":""},{"$f":"IF(OR(Table_PI[[#This Row],[Hide:\nProposed kWh]]=\"\",Table_PI[[#This Row],[Hide:\nProposed kWh]]=0),\"\",Table_PI[[#This Row],[Hide:\nProposed kWh]])","v":""},{"$f":"IF(OR(Table_PI[[#This Row],[Hide:\nProposed kW]]=\"\",Table_PI[[#This Row],[Hide:\nProposed kW]]=0),\"\",Table_PI[[#This Row],[Hide:\nProposed kW]])","v":""},{"$f":"IF(OR(Table_PI[[#This Row],[Rebate]]=\"\",Table_PI[[#This Row],[Rebate]]=0),\"\",Table_PI[[#This Row],[Rebate]])","v":""},{"$f":"IF(OR(Table_PI[[#This Row],[Hide:\nIncremental Cost]]=\"\",Table_PI[[#This Row],[Hide:\nIncremental Cost]]=0),\"\",Table_PI[[#This Row],[Hide:\nIncremental Cost]])","v":""},{"$f":"IFERROR(IF(Table_SummaryPI[[#This Row],[kWhSavings]]=\"\",\"\",ROUND(Table_SummaryPI[[#This Row],[kWhSavings]]/$AG$401*'Customer Information'!$BC$17,2)),0)","v":""},{"$f":"IF(OR(Table_PI[[#This Row],[Annual kWh]]=\"\",Table_PI[[#This Row],[Annual kWh]]=0),\"\",Table_PI[[#This Row],[Annual kWh]])","v":""},{"$f":"IF(OR(Table_PI[[#This Row],[Peak kW]]=\"\",Table_PI[[#This Row],[Peak kW]]=0),\"\",Table_PI[[#This Row],[Peak kW]])","v":""},{"$f":"IFERROR(IF(Table_SummaryPI[[#This Row],[kWhSavings]]=\"\",\"\",$AU$9*Table_SummaryPI[[#This Row],[kWhSavings]]),0)","v":""},{"$f":"IFERROR(IF(Table_SummaryPI[[#This Row],[kWhSavings]]=\"\",\"\",$AU$14*Table_SummaryPI[[#This Row],[kWhSavings]]),0)","v":""},{"$f":"IFERROR(IF(Table_SummaryPI[[#This Row],[kWhSavings]]=\"\",\"\",$AU$18*Table_SummaryPI[[#This Row],[kWhSavings]]),0)","v":""},{"$f":"IFERROR(IF(Table_SummaryPI[[#This Row],[kWhSavings]]=\"\",\"\",$AU$22*Table_SummaryPI[[#This Row],[kWhSavings]]),0)","v":""},{"$f":"IFERROR(IF(MeasureCalc(Table_PI[[#This Row],[Hide:\nFormula Name]],Table_SummaryPI[[#This Row],[Quantity]],Table_PI[[#This Row],[List 1]],Table_PI[[#This Row],[List 2]],Table_PI[[#This Row],[List 3]],Table_PI[[#This Row],[Size]],Table_PI[[#This Row],[Input 1]],Table_PI[[#This Row],[Input 2]],Table_PI[[#This Row],[Input 3]],Table_PI[[#This Row],[Input 4]],'Customer Information'!$AR$12,200,ROW())<>\"No Rebate\",MeasureCalc(Table_PI[[#This Row],[Hide:\nFormula Name]],Table_SummaryPI[[#This Row],[Quantity]],Table_PI[[#This Row],[List 1]],Table_PI[[#This Row],[List 2]],Table_PI[[#This Row],[List 3]],Table_PI[[#This Row],[Size]],Table_PI[[#This Row],[Input 1]],Table_PI[[#This Row],[Input 2]],Table_PI[[#This Row],[Input 3]],Table_PI[[#This Row],[Input 4]],'Customer Information'!$AR$12,200,ROW()),\"\"),\"\")","v":""},{"$f":"IFERROR(IF(MeasureCalc(Table_PI[[#This Row],[Hide:\nFormula Name]],Table_SummaryPI[[#This Row],[Quantity]],Table_PI[[#This Row],[List 1]],Table_PI[[#This Row],[List 2]],Table_PI[[#This Row],[List 3]],Table_PI[[#This Row],[Size]],Table_PI[[#This Row],[Input 1]],Table_PI[[#This Row],[Input 2]],Table_PI[[#This Row],[Input 3]],Table_PI[[#This Row],[Input 4]],'Customer Information'!$AR$12,201,ROW())<>\"No Rebate\",MeasureCalc(Table_PI[[#This Row],[Hide:\nFormula Name]],Table_SummaryPI[[#This Row],[Quantity]],Table_PI[[#This Row],[List 1]],Table_PI[[#This Row],[List 2]],Table_PI[[#This Row],[List 3]],Table_PI[[#This Row],[Size]],Table_PI[[#This Row],[Input 1]],Table_PI[[#This Row],[Input 2]],Table_PI[[#This Row],[Input 3]],Table_PI[[#This Row],[Input 4]],'Customer Information'!$AR$12,201,ROW()),\"\"),\"\")","v":""}]
[{"$f":"Table_PI[[#This Row],[Line No.]]","v":""},{"$f":"IF(Table_SummaryPI[[#This Row],[MeassureCategory]]<>\"\",CONCATENATE(Table_SummaryPI[[#This Row],[MeassureCategory]],  \" - \", Table_SummaryPI[[#This Row],[ProposedMeasureCategory]],  \" - \", TEXT(Table_SummaryPI[[#This Row],[Size]],\"#,##0.00\"),\" \",Table_SummaryPI[[#This Row],[SizeUnit]]),\"\")","v":""},{"$f":"SUBSTITUTE(Table_PI[[#This Row],[Measure]],\"     \",\"\",1)","v":""},{"$f":"IF(Table_PI[[#This Row],[List 1]]<>\"\",Table_PI[[#This Row],[List 1]],\"\")","v":""},{"$f":"IF(Table_PI[[#This Row],[List 2]]<>\"\",Table_PI[[#This Row],[List 2]],\"\")","v":""},{"$f":"IF(Table_PI[[#This Row],[List 3]]<>\"\",Table_PI[[#This Row],[List 3]],\"\")","v":""},{"$f":"IF(Table_PI[[#This Row],[Manufacturer]]=\"\",\"\",Table_PI[[#This Row],[Manufacturer]])","v":""},{"$f":"IF(Table_PI[[#This Row],[Model Number]]=\"\",\"\",Table_PI[[#This Row],[Model Number]])","v":""},{"$f":"IF(Table_PI[[#This Row],[Serial Number(s)]]=\"\",\"\",Table_PI[[#This Row],[Serial Number(s)]])","v":""},null,{"$f":"IF(Table_PI[[#This Row],[Size]]=\"\",\"\",Table_PI[[#This Row],[Size]])","v":""},null,{"$f":"IFERROR(IF(AND(MeasureCalc(Table_PI[[#This Row],[Hide:\nFormula Name]],Table_SummaryPI[[#This Row],[Quantity]],Table_PI[[#This Row],[List 1]],Table_PI[[#This Row],[List 2]],Table_PI[[#This Row],[List 3]],Table_PI[[#This Row],[Size]],Table_PI[[#This Row],[Input 1]],Table_PI[[#This Row],[Input 2]],Table_PI[[#This Row],[Input 3]],Table_PI[[#This Row],[Input 4]],'Customer Information'!$AR$12,100,ROW())<>0,MeasureCalc(Table_PI[[#This Row],[Hide:\nFormula Name]],Table_SummaryPI[[#This Row],[Quantity]],Table_PI[[#This Row],[List 1]],Table_PI[[#This Row],[List 2]],Table_PI[[#This Row],[List 3]],Table_PI[[#This Row],[Size]],Table_PI[[#This Row],[Input 1]],Table_PI[[#This Row],[Input 2]],Table_PI[[#This Row],[Input 3]],Table_PI[[#This Row],[Input 4]],'Customer Information'!$AR$12,100,ROW())<>\"No Rebate\"),MeasureCalc(Table_PI[[#This Row],[Hide:\nFormula Name]],Table_SummaryPI[[#This Row],[Quantity]],Table_PI[[#This Row],[List 1]],Table_PI[[#This Row],[List 2]],Table_PI[[#This Row],[List 3]],Table_PI[[#This Row],[Size]],Table_PI[[#This Row],[Input 1]],Table_PI[[#This Row],[Input 2]],Table_PI[[#This Row],[Input 3]],Table_PI[[#This Row],[Input 4]],'Customer Information'!$AR$12,100,ROW()),\"\"),\"\")","v":""},{"$f":"IF(Table_PI[[#This Row],[Input 1]]<>\"\",Table_PI[[#This Row],[Input 1]],\"\")","v":""},null,{"$f":"IFERROR(IF(AND(MeasureCalc(Table_PI[[#This Row],[Hide:\nFormula Name]],Table_SummaryPI[[#This Row],[Quantity]],Table_PI[[#This Row],[List 1]],Table_PI[[#This Row],[List 2]],Table_PI[[#This Row],[List 3]],Table_PI[[#This Row],[Size]],Table_PI[[#This Row],[Input 1]],Table_PI[[#This Row],[Input 2]],Table_PI[[#This Row],[Input 3]],Table_PI[[#This Row],[Input 4]],'Customer Information'!$AR$12,101,ROW())<>0,MeasureCalc(Table_PI[[#This Row],[Hide:\nFormula Name]],Table_SummaryPI[[#This Row],[Quantity]],Table_PI[[#This Row],[List 1]],Table_PI[[#This Row],[List 2]],Table_PI[[#This Row],[List 3]],Table_PI[[#This Row],[Size]],Table_PI[[#This Row],[Input 1]],Table_PI[[#This Row],[Input 2]],Table_PI[[#This Row],[Input 3]],Table_PI[[#This Row],[Input 4]],'Customer Information'!$AR$12,101,ROW())<>\"No Rebate\"),MeasureCalc(Table_PI[[#This Row],[Hide:\nFormula Name]],Table_SummaryPI[[#This Row],[Quantity]],Table_PI[[#This Row],[List 1]],Table_PI[[#This Row],[List 2]],Table_PI[[#This Row],[List 3]],Table_PI[[#This Row],[Size]],Table_PI[[#This Row],[Input 1]],Table_PI[[#This Row],[Input 2]],Table_PI[[#This Row],[Input 3]],Table_PI[[#This Row],[Input 4]],'Customer Information'!$AR$12,101,ROW()),\"\"),\"\")","v":""},{"$f":"IF(Table_PI[[#This Row],[Input 2]]<>\"\",Table_PI[[#This Row],[Input 2]],\"\")","v":""},null,{"$f":"IFERROR(IF(AND(MeasureCalc(Table_PI[[#This Row],[Hide:\nFormula Name]],Table_SummaryPI[[#This Row],[Quantity]],Table_PI[[#This Row],[List 1]],Table_PI[[#This Row],[List 2]],Table_PI[[#This Row],[List 3]],Table_PI[[#This Row],[Size]],Table_PI[[#This Row],[Input 1]],Table_PI[[#This Row],[Input 2]],Table_PI[[#This Row],[Input 3]],Table_PI[[#This Row],[Input 4]],'Customer Information'!$AR$12,102,ROW())<>0,MeasureCalc(Table_PI[[#This Row],[Hide:\nFormula Name]],Table_SummaryPI[[#This Row],[Quantity]],Table_PI[[#This Row],[List 1]],Table_PI[[#This Row],[List 2]],Table_PI[[#This Row],[List 3]],Table_PI[[#This Row],[Size]],Table_PI[[#This Row],[Input 1]],Table_PI[[#This Row],[Input 2]],Table_PI[[#This Row],[Input 3]],Table_PI[[#This Row],[Input 4]],'Customer Information'!$AR$12,102,ROW())<>\"No Rebate\"),MeasureCalc(Table_PI[[#This Row],[Hide:\nFormula Name]],Table_SummaryPI[[#This Row],[Quantity]],Table_PI[[#This Row],[List 1]],Table_PI[[#This Row],[List 2]],Table_PI[[#This Row],[List 3]],Table_PI[[#This Row],[Size]],Table_PI[[#This Row],[Input 1]],Table_PI[[#This Row],[Input 2]],Table_PI[[#This Row],[Input 3]],Table_PI[[#This Row],[Input 4]],'Customer Information'!$AR$12,102,ROW()),\"\"),\"\")","v":""},{"$f":"IF(Table_PI[[#This Row],[Input 3]]<>\"\",Table_PI[[#This Row],[Input 3]],\"\")","v":""},null,{"$f":"IFERROR(IF(AND(MeasureCalc(Table_PI[[#This Row],[Hide:\nFormula Name]],Table_SummaryPI[[#This Row],[Quantity]],Table_PI[[#This Row],[List 1]],Table_PI[[#This Row],[List 2]],Table_PI[[#This Row],[List 3]],Table_PI[[#This Row],[Size]],Table_PI[[#This Row],[Input 1]],Table_PI[[#This Row],[Input 2]],Table_PI[[#This Row],[Input 3]],Table_PI[[#This Row],[Input 4]],'Customer Information'!$AR$12,103,ROW())<>0,MeasureCalc(Table_PI[[#This Row],[Hide:\nFormula Name]],Table_SummaryPI[[#This Row],[Quantity]],Table_PI[[#This Row],[List 1]],Table_PI[[#This Row],[List 2]],Table_PI[[#This Row],[List 3]],Table_PI[[#This Row],[Size]],Table_PI[[#This Row],[Input 1]],Table_PI[[#This Row],[Input 2]],Table_PI[[#This Row],[Input 3]],Table_PI[[#This Row],[Input 4]],'Customer Information'!$AR$12,103,ROW())<>\"No Rebate\"),MeasureCalc(Table_PI[[#This Row],[Hide:\nFormula Name]],Table_SummaryPI[[#This Row],[Quantity]],Table_PI[[#This Row],[List 1]],Table_PI[[#This Row],[List 2]],Table_PI[[#This Row],[List 3]],Table_PI[[#This Row],[Size]],Table_PI[[#This Row],[Input 1]],Table_PI[[#This Row],[Input 2]],Table_PI[[#This Row],[Input 3]],Table_PI[[#This Row],[Input 4]],'Customer Information'!$AR$12,103,ROW()),\"\"),\"\")","v":""},{"$f":"IF(Table_PI[[#This Row],[Input 4]]<>\"\",Table_PI[[#This Row],[Input 4]],\"\")","v":""},{"$f":"IF(Table_PI[[#This Row],[Quantity]]=\"\",\"\",Table_PI[[#This Row],[Quantity]])","v":""},{"$f":"IF(Table_PI[[#This Row],[Notes]]=\"\",\"\",Table_PI[[#This Row],[Notes]])","v":""},{"$f":"IF(OR(Table_PI[[#This Row],[Hide:\nBaseline kWh]]=\"\",Table_PI[[#This Row],[Hide:\nBaseline kWh]]=0),\"\",Table_PI[[#This Row],[Hide:\nBaseline kWh]])","v":""},{"$f":"IF(OR(Table_PI[[#This Row],[Hide:\nBaseline kW]]=\"\",Table_PI[[#This Row],[Hide:\nBaseline kW]]=0),\"\",Table_PI[[#This Row],[Hide:\nBaseline kW]])","v":""},{"$f":"IF(OR(Table_PI[[#This Row],[Hide:\nProposed kWh]]=\"\",Table_PI[[#This Row],[Hide:\nProposed kWh]]=0),\"\",Table_PI[[#This Row],[Hide:\nProposed kWh]])","v":""},{"$f":"IF(OR(Table_PI[[#This Row],[Hide:\nProposed kW]]=\"\",Table_PI[[#This Row],[Hide:\nProposed kW]]=0),\"\",Table_PI[[#This Row],[Hide:\nProposed kW]])","v":""},{"$f":"IF(OR(Table_PI[[#This Row],[Rebate]]=\"\",Table_PI[[#This Row],[Rebate]]=0),\"\",Table_PI[[#This Row],[Rebate]])","v":""},{"$f":"IF(OR(Table_PI[[#This Row],[Hide:\nIncremental Cost]]=\"\",Table_PI[[#This Row],[Hide:\nIncremental Cost]]=0),\"\",Table_PI[[#This Row],[Hide:\nIncremental Cost]])","v":""},{"$f":"IFERROR(IF(Table_SummaryPI[[#This Row],[kWhSavings]]=\"\",\"\",ROUND(Table_SummaryPI[[#This Row],[kWhSavings]]/$AG$401*'Customer Information'!$BC$17,2)),0)","v":""},{"$f":"IF(OR(Table_PI[[#This Row],[Annual kWh]]=\"\",Table_PI[[#This Row],[Annual kWh]]=0),\"\",Table_PI[[#This Row],[Annual kWh]])","v":""},{"$f":"IF(OR(Table_PI[[#This Row],[Peak kW]]=\"\",Table_PI[[#This Row],[Peak kW]]=0),\"\",Table_PI[[#This Row],[Peak kW]])","v":""},{"$f":"IFERROR(IF(Table_SummaryPI[[#This Row],[kWhSavings]]=\"\",\"\",$AU$9*Table_SummaryPI[[#This Row],[kWhSavings]]),0)","v":""},{"$f":"IFERROR(IF(Table_SummaryPI[[#This Row],[kWhSavings]]=\"\",\"\",$AU$14*Table_SummaryPI[[#This Row],[kWhSavings]]),0)","v":""},{"$f":"IFERROR(IF(Table_SummaryPI[[#This Row],[kWhSavings]]=\"\",\"\",$AU$18*Table_SummaryPI[[#This Row],[kWhSavings]]),0)","v":""},{"$f":"IFERROR(IF(Table_SummaryPI[[#This Row],[kWhSavings]]=\"\",\"\",$AU$22*Table_SummaryPI[[#This Row],[kWhSavings]]),0)","v":""},{"$f":"IFERROR(IF(MeasureCalc(Table_PI[[#This Row],[Hide:\nFormula Name]],Table_SummaryPI[[#This Row],[Quantity]],Table_PI[[#This Row],[List 1]],Table_PI[[#This Row],[List 2]],Table_PI[[#This Row],[List 3]],Table_PI[[#This Row],[Size]],Table_PI[[#This Row],[Input 1]],Table_PI[[#This Row],[Input 2]],Table_PI[[#This Row],[Input 3]],Table_PI[[#This Row],[Input 4]],'Customer Information'!$AR$12,200,ROW())<>\"No Rebate\",MeasureCalc(Table_PI[[#This Row],[Hide:\nFormula Name]],Table_SummaryPI[[#This Row],[Quantity]],Table_PI[[#This Row],[List 1]],Table_PI[[#This Row],[List 2]],Table_PI[[#This Row],[List 3]],Table_PI[[#This Row],[Size]],Table_PI[[#This Row],[Input 1]],Table_PI[[#This Row],[Input 2]],Table_PI[[#This Row],[Input 3]],Table_PI[[#This Row],[Input 4]],'Customer Information'!$AR$12,200,ROW()),\"\"),\"\")","v":""},{"$f":"IFERROR(IF(MeasureCalc(Table_PI[[#This Row],[Hide:\nFormula Name]],Table_SummaryPI[[#This Row],[Quantity]],Table_PI[[#This Row],[List 1]],Table_PI[[#This Row],[List 2]],Table_PI[[#This Row],[List 3]],Table_PI[[#This Row],[Size]],Table_PI[[#This Row],[Input 1]],Table_PI[[#This Row],[Input 2]],Table_PI[[#This Row],[Input 3]],Table_PI[[#This Row],[Input 4]],'Customer Information'!$AR$12,201,ROW())<>\"No Rebate\",MeasureCalc(Table_PI[[#This Row],[Hide:\nFormula Name]],Table_SummaryPI[[#This Row],[Quantity]],Table_PI[[#This Row],[List 1]],Table_PI[[#This Row],[List 2]],Table_PI[[#This Row],[List 3]],Table_PI[[#This Row],[Size]],Table_PI[[#This Row],[Input 1]],Table_PI[[#This Row],[Input 2]],Table_PI[[#This Row],[Input 3]],Table_PI[[#This Row],[Input 4]],'Customer Information'!$AR$12,201,ROW()),\"\"),\"\")","v":""}]
[{"$f":"Table_PI[[#This Row],[Line No.]]","v":""},{"$f":"IF(Table_SummaryPI[[#This Row],[MeassureCategory]]<>\"\",CONCATENATE(Table_SummaryPI[[#This Row],[MeassureCategory]],  \" - \", Table_SummaryPI[[#This Row],[ProposedMeasureCategory]],  \" - \", TEXT(Table_SummaryPI[[#This Row],[Size]],\"#,##0.00\"),\" \",Table_SummaryPI[[#This Row],[SizeUnit]]),\"\")","v":""},{"$f":"SUBSTITUTE(Table_PI[[#This Row],[Measure]],\"     \",\"\",1)","v":""},{"$f":"IF(Table_PI[[#This Row],[List 1]]<>\"\",Table_PI[[#This Row],[List 1]],\"\")","v":""},{"$f":"IF(Table_PI[[#This Row],[List 2]]<>\"\",Table_PI[[#This Row],[List 2]],\"\")","v":""},{"$f":"IF(Table_PI[[#This Row],[List 3]]<>\"\",Table_PI[[#This Row],[List 3]],\"\")","v":""},{"$f":"IF(Table_PI[[#This Row],[Manufacturer]]=\"\",\"\",Table_PI[[#This Row],[Manufacturer]])","v":""},{"$f":"IF(Table_PI[[#This Row],[Model Number]]=\"\",\"\",Table_PI[[#This Row],[Model Number]])","v":""},{"$f":"IF(Table_PI[[#This Row],[Serial Number(s)]]=\"\",\"\",Table_PI[[#This Row],[Serial Number(s)]])","v":""},null,{"$f":"IF(Table_PI[[#This Row],[Size]]=\"\",\"\",Table_PI[[#This Row],[Size]])","v":""},null,{"$f":"IFERROR(IF(AND(MeasureCalc(Table_PI[[#This Row],[Hide:\nFormula Name]],Table_SummaryPI[[#This Row],[Quantity]],Table_PI[[#This Row],[List 1]],Table_PI[[#This Row],[List 2]],Table_PI[[#This Row],[List 3]],Table_PI[[#This Row],[Size]],Table_PI[[#This Row],[Input 1]],Table_PI[[#This Row],[Input 2]],Table_PI[[#This Row],[Input 3]],Table_PI[[#This Row],[Input 4]],'Customer Information'!$AR$12,100,ROW())<>0,MeasureCalc(Table_PI[[#This Row],[Hide:\nFormula Name]],Table_SummaryPI[[#This Row],[Quantity]],Table_PI[[#This Row],[List 1]],Table_PI[[#This Row],[List 2]],Table_PI[[#This Row],[List 3]],Table_PI[[#This Row],[Size]],Table_PI[[#This Row],[Input 1]],Table_PI[[#This Row],[Input 2]],Table_PI[[#This Row],[Input 3]],Table_PI[[#This Row],[Input 4]],'Customer Information'!$AR$12,100,ROW())<>\"No Rebate\"),MeasureCalc(Table_PI[[#This Row],[Hide:\nFormula Name]],Table_SummaryPI[[#This Row],[Quantity]],Table_PI[[#This Row],[List 1]],Table_PI[[#This Row],[List 2]],Table_PI[[#This Row],[List 3]],Table_PI[[#This Row],[Size]],Table_PI[[#This Row],[Input 1]],Table_PI[[#This Row],[Input 2]],Table_PI[[#This Row],[Input 3]],Table_PI[[#This Row],[Input 4]],'Customer Information'!$AR$12,100,ROW()),\"\"),\"\")","v":""},{"$f":"IF(Table_PI[[#This Row],[Input 1]]<>\"\",Table_PI[[#This Row],[Input 1]],\"\")","v":""},null,{"$f":"IFERROR(IF(AND(MeasureCalc(Table_PI[[#This Row],[Hide:\nFormula Name]],Table_SummaryPI[[#This Row],[Quantity]],Table_PI[[#This Row],[List 1]],Table_PI[[#This Row],[List 2]],Table_PI[[#This Row],[List 3]],Table_PI[[#This Row],[Size]],Table_PI[[#This Row],[Input 1]],Table_PI[[#This Row],[Input 2]],Table_PI[[#This Row],[Input 3]],Table_PI[[#This Row],[Input 4]],'Customer Information'!$AR$12,101,ROW())<>0,MeasureCalc(Table_PI[[#This Row],[Hide:\nFormula Name]],Table_SummaryPI[[#This Row],[Quantity]],Table_PI[[#This Row],[List 1]],Table_PI[[#This Row],[List 2]],Table_PI[[#This Row],[List 3]],Table_PI[[#This Row],[Size]],Table_PI[[#This Row],[Input 1]],Table_PI[[#This Row],[Input 2]],Table_PI[[#This Row],[Input 3]],Table_PI[[#This Row],[Input 4]],'Customer Information'!$AR$12,101,ROW())<>\"No Rebate\"),MeasureCalc(Table_PI[[#This Row],[Hide:\nFormula Name]],Table_SummaryPI[[#This Row],[Quantity]],Table_PI[[#This Row],[List 1]],Table_PI[[#This Row],[List 2]],Table_PI[[#This Row],[List 3]],Table_PI[[#This Row],[Size]],Table_PI[[#This Row],[Input 1]],Table_PI[[#This Row],[Input 2]],Table_PI[[#This Row],[Input 3]],Table_PI[[#This Row],[Input 4]],'Customer Information'!$AR$12,101,ROW()),\"\"),\"\")","v":""},{"$f":"IF(Table_PI[[#This Row],[Input 2]]<>\"\",Table_PI[[#This Row],[Input 2]],\"\")","v":""},null,{"$f":"IFERROR(IF(AND(MeasureCalc(Table_PI[[#This Row],[Hide:\nFormula Name]],Table_SummaryPI[[#This Row],[Quantity]],Table_PI[[#This Row],[List 1]],Table_PI[[#This Row],[List 2]],Table_PI[[#This Row],[List 3]],Table_PI[[#This Row],[Size]],Table_PI[[#This Row],[Input 1]],Table_PI[[#This Row],[Input 2]],Table_PI[[#This Row],[Input 3]],Table_PI[[#This Row],[Input 4]],'Customer Information'!$AR$12,102,ROW())<>0,MeasureCalc(Table_PI[[#This Row],[Hide:\nFormula Name]],Table_SummaryPI[[#This Row],[Quantity]],Table_PI[[#This Row],[List 1]],Table_PI[[#This Row],[List 2]],Table_PI[[#This Row],[List 3]],Table_PI[[#This Row],[Size]],Table_PI[[#This Row],[Input 1]],Table_PI[[#This Row],[Input 2]],Table_PI[[#This Row],[Input 3]],Table_PI[[#This Row],[Input 4]],'Customer Information'!$AR$12,102,ROW())<>\"No Rebate\"),MeasureCalc(Table_PI[[#This Row],[Hide:\nFormula Name]],Table_SummaryPI[[#This Row],[Quantity]],Table_PI[[#This Row],[List 1]],Table_PI[[#This Row],[List 2]],Table_PI[[#This Row],[List 3]],Table_PI[[#This Row],[Size]],Table_PI[[#This Row],[Input 1]],Table_PI[[#This Row],[Input 2]],Table_PI[[#This Row],[Input 3]],Table_PI[[#This Row],[Input 4]],'Customer Information'!$AR$12,102,ROW()),\"\"),\"\")","v":""},{"$f":"IF(Table_PI[[#This Row],[Input 3]]<>\"\",Table_PI[[#This Row],[Input 3]],\"\")","v":""},null,{"$f":"IFERROR(IF(AND(MeasureCalc(Table_PI[[#This Row],[Hide:\nFormula Name]],Table_SummaryPI[[#This Row],[Quantity]],Table_PI[[#This Row],[List 1]],Table_PI[[#This Row],[List 2]],Table_PI[[#This Row],[List 3]],Table_PI[[#This Row],[Size]],Table_PI[[#This Row],[Input 1]],Table_PI[[#This Row],[Input 2]],Table_PI[[#This Row],[Input 3]],Table_PI[[#This Row],[Input 4]],'Customer Information'!$AR$12,103,ROW())<>0,MeasureCalc(Table_PI[[#This Row],[Hide:\nFormula Name]],Table_SummaryPI[[#This Row],[Quantity]],Table_PI[[#This Row],[List 1]],Table_PI[[#This Row],[List 2]],Table_PI[[#This Row],[List 3]],Table_PI[[#This Row],[Size]],Table_PI[[#This Row],[Input 1]],Table_PI[[#This Row],[Input 2]],Table_PI[[#This Row],[Input 3]],Table_PI[[#This Row],[Input 4]],'Customer Information'!$AR$12,103,ROW())<>\"No Rebate\"),MeasureCalc(Table_PI[[#This Row],[Hide:\nFormula Name]],Table_SummaryPI[[#This Row],[Quantity]],Table_PI[[#This Row],[List 1]],Table_PI[[#This Row],[List 2]],Table_PI[[#This Row],[List 3]],Table_PI[[#This Row],[Size]],Table_PI[[#This Row],[Input 1]],Table_PI[[#This Row],[Input 2]],Table_PI[[#This Row],[Input 3]],Table_PI[[#This Row],[Input 4]],'Customer Information'!$AR$12,103,ROW()),\"\"),\"\")","v":""},{"$f":"IF(Table_PI[[#This Row],[Input 4]]<>\"\",Table_PI[[#This Row],[Input 4]],\"\")","v":""},{"$f":"IF(Table_PI[[#This Row],[Quantity]]=\"\",\"\",Table_PI[[#This Row],[Quantity]])","v":""},{"$f":"IF(Table_PI[[#This Row],[Notes]]=\"\",\"\",Table_PI[[#This Row],[Notes]])","v":""},{"$f":"IF(OR(Table_PI[[#This Row],[Hide:\nBaseline kWh]]=\"\",Table_PI[[#This Row],[Hide:\nBaseline kWh]]=0),\"\",Table_PI[[#This Row],[Hide:\nBaseline kWh]])","v":""},{"$f":"IF(OR(Table_PI[[#This Row],[Hide:\nBaseline kW]]=\"\",Table_PI[[#This Row],[Hide:\nBaseline kW]]=0),\"\",Table_PI[[#This Row],[Hide:\nBaseline kW]])","v":""},{"$f":"IF(OR(Table_PI[[#This Row],[Hide:\nProposed kWh]]=\"\",Table_PI[[#This Row],[Hide:\nProposed kWh]]=0),\"\",Table_PI[[#This Row],[Hide:\nProposed kWh]])","v":""},{"$f":"IF(OR(Table_PI[[#This Row],[Hide:\nProposed kW]]=\"\",Table_PI[[#This Row],[Hide:\nProposed kW]]=0),\"\",Table_PI[[#This Row],[Hide:\nProposed kW]])","v":""},{"$f":"IF(OR(Table_PI[[#This Row],[Rebate]]=\"\",Table_PI[[#This Row],[Rebate]]=0),\"\",Table_PI[[#This Row],[Rebate]])","v":""},{"$f":"IF(OR(Table_PI[[#This Row],[Hide:\nIncremental Cost]]=\"\",Table_PI[[#This Row],[Hide:\nIncremental Cost]]=0),\"\",Table_PI[[#This Row],[Hide:\nIncremental Cost]])","v":""},{"$f":"IFERROR(IF(Table_SummaryPI[[#This Row],[kWhSavings]]=\"\",\"\",ROUND(Table_SummaryPI[[#This Row],[kWhSavings]]/$AG$401*'Customer Information'!$BC$17,2)),0)","v":""},{"$f":"IF(OR(Table_PI[[#This Row],[Annual kWh]]=\"\",Table_PI[[#This Row],[Annual kWh]]=0),\"\",Table_PI[[#This Row],[Annual kWh]])","v":""},{"$f":"IF(OR(Table_PI[[#This Row],[Peak kW]]=\"\",Table_PI[[#This Row],[Peak kW]]=0),\"\",Table_PI[[#This Row],[Peak kW]])","v":""},{"$f":"IFERROR(IF(Table_SummaryPI[[#This Row],[kWhSavings]]=\"\",\"\",$AU$9*Table_SummaryPI[[#This Row],[kWhSavings]]),0)","v":""},{"$f":"IFERROR(IF(Table_SummaryPI[[#This Row],[kWhSavings]]=\"\",\"\",$AU$14*Table_SummaryPI[[#This Row],[kWhSavings]]),0)","v":""},{"$f":"IFERROR(IF(Table_SummaryPI[[#This Row],[kWhSavings]]=\"\",\"\",$AU$18*Table_SummaryPI[[#This Row],[kWhSavings]]),0)","v":""},{"$f":"IFERROR(IF(Table_SummaryPI[[#This Row],[kWhSavings]]=\"\",\"\",$AU$22*Table_SummaryPI[[#This Row],[kWhSavings]]),0)","v":""},{"$f":"IFERROR(IF(MeasureCalc(Table_PI[[#This Row],[Hide:\nFormula Name]],Table_SummaryPI[[#This Row],[Quantity]],Table_PI[[#This Row],[List 1]],Table_PI[[#This Row],[List 2]],Table_PI[[#This Row],[List 3]],Table_PI[[#This Row],[Size]],Table_PI[[#This Row],[Input 1]],Table_PI[[#This Row],[Input 2]],Table_PI[[#This Row],[Input 3]],Table_PI[[#This Row],[Input 4]],'Customer Information'!$AR$12,200,ROW())<>\"No Rebate\",MeasureCalc(Table_PI[[#This Row],[Hide:\nFormula Name]],Table_SummaryPI[[#This Row],[Quantity]],Table_PI[[#This Row],[List 1]],Table_PI[[#This Row],[List 2]],Table_PI[[#This Row],[List 3]],Table_PI[[#This Row],[Size]],Table_PI[[#This Row],[Input 1]],Table_PI[[#This Row],[Input 2]],Table_PI[[#This Row],[Input 3]],Table_PI[[#This Row],[Input 4]],'Customer Information'!$AR$12,200,ROW()),\"\"),\"\")","v":""},{"$f":"IFERROR(IF(MeasureCalc(Table_PI[[#This Row],[Hide:\nFormula Name]],Table_SummaryPI[[#This Row],[Quantity]],Table_PI[[#This Row],[List 1]],Table_PI[[#This Row],[List 2]],Table_PI[[#This Row],[List 3]],Table_PI[[#This Row],[Size]],Table_PI[[#This Row],[Input 1]],Table_PI[[#This Row],[Input 2]],Table_PI[[#This Row],[Input 3]],Table_PI[[#This Row],[Input 4]],'Customer Information'!$AR$12,201,ROW())<>\"No Rebate\",MeasureCalc(Table_PI[[#This Row],[Hide:\nFormula Name]],Table_SummaryPI[[#This Row],[Quantity]],Table_PI[[#This Row],[List 1]],Table_PI[[#This Row],[List 2]],Table_PI[[#This Row],[List 3]],Table_PI[[#This Row],[Size]],Table_PI[[#This Row],[Input 1]],Table_PI[[#This Row],[Input 2]],Table_PI[[#This Row],[Input 3]],Table_PI[[#This Row],[Input 4]],'Customer Information'!$AR$12,201,ROW()),\"\"),\"\")","v":""}]
[{"$f":"Table_PI[[#This Row],[Line No.]]","v":""},{"$f":"IF(Table_SummaryPI[[#This Row],[MeassureCategory]]<>\"\",CONCATENATE(Table_SummaryPI[[#This Row],[MeassureCategory]],  \" - \", Table_SummaryPI[[#This Row],[ProposedMeasureCategory]],  \" - \", TEXT(Table_SummaryPI[[#This Row],[Size]],\"#,##0.00\"),\" \",Table_SummaryPI[[#This Row],[SizeUnit]]),\"\")","v":""},{"$f":"SUBSTITUTE(Table_PI[[#This Row],[Measure]],\"     \",\"\",1)","v":""},{"$f":"IF(Table_PI[[#This Row],[List 1]]<>\"\",Table_PI[[#This Row],[List 1]],\"\")","v":""},{"$f":"IF(Table_PI[[#This Row],[List 2]]<>\"\",Table_PI[[#This Row],[List 2]],\"\")","v":""},{"$f":"IF(Table_PI[[#This Row],[List 3]]<>\"\",Table_PI[[#This Row],[List 3]],\"\")","v":""},{"$f":"IF(Table_PI[[#This Row],[Manufacturer]]=\"\",\"\",Table_PI[[#This Row],[Manufacturer]])","v":""},{"$f":"IF(Table_PI[[#This Row],[Model Number]]=\"\",\"\",Table_PI[[#This Row],[Model Number]])","v":""},{"$f":"IF(Table_PI[[#This Row],[Serial Number(s)]]=\"\",\"\",Table_PI[[#This Row],[Serial Number(s)]])","v":""},null,{"$f":"IF(Table_PI[[#This Row],[Size]]=\"\",\"\",Table_PI[[#This Row],[Size]])","v":""},null,{"$f":"IFERROR(IF(AND(MeasureCalc(Table_PI[[#This Row],[Hide:\nFormula Name]],Table_SummaryPI[[#This Row],[Quantity]],Table_PI[[#This Row],[List 1]],Table_PI[[#This Row],[List 2]],Table_PI[[#This Row],[List 3]],Table_PI[[#This Row],[Size]],Table_PI[[#This Row],[Input 1]],Table_PI[[#This Row],[Input 2]],Table_PI[[#This Row],[Input 3]],Table_PI[[#This Row],[Input 4]],'Customer Information'!$AR$12,100,ROW())<>0,MeasureCalc(Table_PI[[#This Row],[Hide:\nFormula Name]],Table_SummaryPI[[#This Row],[Quantity]],Table_PI[[#This Row],[List 1]],Table_PI[[#This Row],[List 2]],Table_PI[[#This Row],[List 3]],Table_PI[[#This Row],[Size]],Table_PI[[#This Row],[Input 1]],Table_PI[[#This Row],[Input 2]],Table_PI[[#This Row],[Input 3]],Table_PI[[#This Row],[Input 4]],'Customer Information'!$AR$12,100,ROW())<>\"No Rebate\"),MeasureCalc(Table_PI[[#This Row],[Hide:\nFormula Name]],Table_SummaryPI[[#This Row],[Quantity]],Table_PI[[#This Row],[List 1]],Table_PI[[#This Row],[List 2]],Table_PI[[#This Row],[List 3]],Table_PI[[#This Row],[Size]],Table_PI[[#This Row],[Input 1]],Table_PI[[#This Row],[Input 2]],Table_PI[[#This Row],[Input 3]],Table_PI[[#This Row],[Input 4]],'Customer Information'!$AR$12,100,ROW()),\"\"),\"\")","v":""},{"$f":"IF(Table_PI[[#This Row],[Input 1]]<>\"\",Table_PI[[#This Row],[Input 1]],\"\")","v":""},null,{"$f":"IFERROR(IF(AND(MeasureCalc(Table_PI[[#This Row],[Hide:\nFormula Name]],Table_SummaryPI[[#This Row],[Quantity]],Table_PI[[#This Row],[List 1]],Table_PI[[#This Row],[List 2]],Table_PI[[#This Row],[List 3]],Table_PI[[#This Row],[Size]],Table_PI[[#This Row],[Input 1]],Table_PI[[#This Row],[Input 2]],Table_PI[[#This Row],[Input 3]],Table_PI[[#This Row],[Input 4]],'Customer Information'!$AR$12,101,ROW())<>0,MeasureCalc(Table_PI[[#This Row],[Hide:\nFormula Name]],Table_SummaryPI[[#This Row],[Quantity]],Table_PI[[#This Row],[List 1]],Table_PI[[#This Row],[List 2]],Table_PI[[#This Row],[List 3]],Table_PI[[#This Row],[Size]],Table_PI[[#This Row],[Input 1]],Table_PI[[#This Row],[Input 2]],Table_PI[[#This Row],[Input 3]],Table_PI[[#This Row],[Input 4]],'Customer Information'!$AR$12,101,ROW())<>\"No Rebate\"),MeasureCalc(Table_PI[[#This Row],[Hide:\nFormula Name]],Table_SummaryPI[[#This Row],[Quantity]],Table_PI[[#This Row],[List 1]],Table_PI[[#This Row],[List 2]],Table_PI[[#This Row],[List 3]],Table_PI[[#This Row],[Size]],Table_PI[[#This Row],[Input 1]],Table_PI[[#This Row],[Input 2]],Table_PI[[#This Row],[Input 3]],Table_PI[[#This Row],[Input 4]],'Customer Information'!$AR$12,101,ROW()),\"\"),\"\")","v":""},{"$f":"IF(Table_PI[[#This Row],[Input 2]]<>\"\",Table_PI[[#This Row],[Input 2]],\"\")","v":""},null,{"$f":"IFERROR(IF(AND(MeasureCalc(Table_PI[[#This Row],[Hide:\nFormula Name]],Table_SummaryPI[[#This Row],[Quantity]],Table_PI[[#This Row],[List 1]],Table_PI[[#This Row],[List 2]],Table_PI[[#This Row],[List 3]],Table_PI[[#This Row],[Size]],Table_PI[[#This Row],[Input 1]],Table_PI[[#This Row],[Input 2]],Table_PI[[#This Row],[Input 3]],Table_PI[[#This Row],[Input 4]],'Customer Information'!$AR$12,102,ROW())<>0,MeasureCalc(Table_PI[[#This Row],[Hide:\nFormula Name]],Table_SummaryPI[[#This Row],[Quantity]],Table_PI[[#This Row],[List 1]],Table_PI[[#This Row],[List 2]],Table_PI[[#This Row],[List 3]],Table_PI[[#This Row],[Size]],Table_PI[[#This Row],[Input 1]],Table_PI[[#This Row],[Input 2]],Table_PI[[#This Row],[Input 3]],Table_PI[[#This Row],[Input 4]],'Customer Information'!$AR$12,102,ROW())<>\"No Rebate\"),MeasureCalc(Table_PI[[#This Row],[Hide:\nFormula Name]],Table_SummaryPI[[#This Row],[Quantity]],Table_PI[[#This Row],[List 1]],Table_PI[[#This Row],[List 2]],Table_PI[[#This Row],[List 3]],Table_PI[[#This Row],[Size]],Table_PI[[#This Row],[Input 1]],Table_PI[[#This Row],[Input 2]],Table_PI[[#This Row],[Input 3]],Table_PI[[#This Row],[Input 4]],'Customer Information'!$AR$12,102,ROW()),\"\"),\"\")","v":""},{"$f":"IF(Table_PI[[#This Row],[Input 3]]<>\"\",Table_PI[[#This Row],[Input 3]],\"\")","v":""},null,{"$f":"IFERROR(IF(AND(MeasureCalc(Table_PI[[#This Row],[Hide:\nFormula Name]],Table_SummaryPI[[#This Row],[Quantity]],Table_PI[[#This Row],[List 1]],Table_PI[[#This Row],[List 2]],Table_PI[[#This Row],[List 3]],Table_PI[[#This Row],[Size]],Table_PI[[#This Row],[Input 1]],Table_PI[[#This Row],[Input 2]],Table_PI[[#This Row],[Input 3]],Table_PI[[#This Row],[Input 4]],'Customer Information'!$AR$12,103,ROW())<>0,MeasureCalc(Table_PI[[#This Row],[Hide:\nFormula Name]],Table_SummaryPI[[#This Row],[Quantity]],Table_PI[[#This Row],[List 1]],Table_PI[[#This Row],[List 2]],Table_PI[[#This Row],[List 3]],Table_PI[[#This Row],[Size]],Table_PI[[#This Row],[Input 1]],Table_PI[[#This Row],[Input 2]],Table_PI[[#This Row],[Input 3]],Table_PI[[#This Row],[Input 4]],'Customer Information'!$AR$12,103,ROW())<>\"No Rebate\"),MeasureCalc(Table_PI[[#This Row],[Hide:\nFormula Name]],Table_SummaryPI[[#This Row],[Quantity]],Table_PI[[#This Row],[List 1]],Table_PI[[#This Row],[List 2]],Table_PI[[#This Row],[List 3]],Table_PI[[#This Row],[Size]],Table_PI[[#This Row],[Input 1]],Table_PI[[#This Row],[Input 2]],Table_PI[[#This Row],[Input 3]],Table_PI[[#This Row],[Input 4]],'Customer Information'!$AR$12,103,ROW()),\"\"),\"\")","v":""},{"$f":"IF(Table_PI[[#This Row],[Input 4]]<>\"\",Table_PI[[#This Row],[Input 4]],\"\")","v":""},{"$f":"IF(Table_PI[[#This Row],[Quantity]]=\"\",\"\",Table_PI[[#This Row],[Quantity]])","v":""},{"$f":"IF(Table_PI[[#This Row],[Notes]]=\"\",\"\",Table_PI[[#This Row],[Notes]])","v":""},{"$f":"IF(OR(Table_PI[[#This Row],[Hide:\nBaseline kWh]]=\"\",Table_PI[[#This Row],[Hide:\nBaseline kWh]]=0),\"\",Table_PI[[#This Row],[Hide:\nBaseline kWh]])","v":""},{"$f":"IF(OR(Table_PI[[#This Row],[Hide:\nBaseline kW]]=\"\",Table_PI[[#This Row],[Hide:\nBaseline kW]]=0),\"\",Table_PI[[#This Row],[Hide:\nBaseline kW]])","v":""},{"$f":"IF(OR(Table_PI[[#This Row],[Hide:\nProposed kWh]]=\"\",Table_PI[[#This Row],[Hide:\nProposed kWh]]=0),\"\",Table_PI[[#This Row],[Hide:\nProposed kWh]])","v":""},{"$f":"IF(OR(Table_PI[[#This Row],[Hide:\nProposed kW]]=\"\",Table_PI[[#This Row],[Hide:\nProposed kW]]=0),\"\",Table_PI[[#This Row],[Hide:\nProposed kW]])","v":""},{"$f":"IF(OR(Table_PI[[#This Row],[Rebate]]=\"\",Table_PI[[#This Row],[Rebate]]=0),\"\",Table_PI[[#This Row],[Rebate]])","v":""},{"$f":"IF(OR(Table_PI[[#This Row],[Hide:\nIncremental Cost]]=\"\",Table_PI[[#This Row],[Hide:\nIncremental Cost]]=0),\"\",Table_PI[[#This Row],[Hide:\nIncremental Cost]])","v":""},{"$f":"IFERROR(IF(Table_SummaryPI[[#This Row],[kWhSavings]]=\"\",\"\",ROUND(Table_SummaryPI[[#This Row],[kWhSavings]]/$AG$401*'Customer Information'!$BC$17,2)),0)","v":""},{"$f":"IF(OR(Table_PI[[#This Row],[Annual kWh]]=\"\",Table_PI[[#This Row],[Annual kWh]]=0),\"\",Table_PI[[#This Row],[Annual kWh]])","v":""},{"$f":"IF(OR(Table_PI[[#This Row],[Peak kW]]=\"\",Table_PI[[#This Row],[Peak kW]]=0),\"\",Table_PI[[#This Row],[Peak kW]])","v":""},{"$f":"IFERROR(IF(Table_SummaryPI[[#This Row],[kWhSavings]]=\"\",\"\",$AU$9*Table_SummaryPI[[#This Row],[kWhSavings]]),0)","v":""},{"$f":"IFERROR(IF(Table_SummaryPI[[#This Row],[kWhSavings]]=\"\",\"\",$AU$14*Table_SummaryPI[[#This Row],[kWhSavings]]),0)","v":""},{"$f":"IFERROR(IF(Table_SummaryPI[[#This Row],[kWhSavings]]=\"\",\"\",$AU$18*Table_SummaryPI[[#This Row],[kWhSavings]]),0)","v":""},{"$f":"IFERROR(IF(Table_SummaryPI[[#This Row],[kWhSavings]]=\"\",\"\",$AU$22*Table_SummaryPI[[#This Row],[kWhSavings]]),0)","v":""},{"$f":"IFERROR(IF(MeasureCalc(Table_PI[[#This Row],[Hide:\nFormula Name]],Table_SummaryPI[[#This Row],[Quantity]],Table_PI[[#This Row],[List 1]],Table_PI[[#This Row],[List 2]],Table_PI[[#This Row],[List 3]],Table_PI[[#This Row],[Size]],Table_PI[[#This Row],[Input 1]],Table_PI[[#This Row],[Input 2]],Table_PI[[#This Row],[Input 3]],Table_PI[[#This Row],[Input 4]],'Customer Information'!$AR$12,200,ROW())<>\"No Rebate\",MeasureCalc(Table_PI[[#This Row],[Hide:\nFormula Name]],Table_SummaryPI[[#This Row],[Quantity]],Table_PI[[#This Row],[List 1]],Table_PI[[#This Row],[List 2]],Table_PI[[#This Row],[List 3]],Table_PI[[#This Row],[Size]],Table_PI[[#This Row],[Input 1]],Table_PI[[#This Row],[Input 2]],Table_PI[[#This Row],[Input 3]],Table_PI[[#This Row],[Input 4]],'Customer Information'!$AR$12,200,ROW()),\"\"),\"\")","v":""},{"$f":"IFERROR(IF(MeasureCalc(Table_PI[[#This Row],[Hide:\nFormula Name]],Table_SummaryPI[[#This Row],[Quantity]],Table_PI[[#This Row],[List 1]],Table_PI[[#This Row],[List 2]],Table_PI[[#This Row],[List 3]],Table_PI[[#This Row],[Size]],Table_PI[[#This Row],[Input 1]],Table_PI[[#This Row],[Input 2]],Table_PI[[#This Row],[Input 3]],Table_PI[[#This Row],[Input 4]],'Customer Information'!$AR$12,201,ROW())<>\"No Rebate\",MeasureCalc(Table_PI[[#This Row],[Hide:\nFormula Name]],Table_SummaryPI[[#This Row],[Quantity]],Table_PI[[#This Row],[List 1]],Table_PI[[#This Row],[List 2]],Table_PI[[#This Row],[List 3]],Table_PI[[#This Row],[Size]],Table_PI[[#This Row],[Input 1]],Table_PI[[#This Row],[Input 2]],Table_PI[[#This Row],[Input 3]],Table_PI[[#This Row],[Input 4]],'Customer Information'!$AR$12,201,ROW()),\"\"),\"\")","v":""}]
[{"$f":"Table_PI[[#This Row],[Line No.]]","v":""},{"$f":"IF(Table_SummaryPI[[#This Row],[MeassureCategory]]<>\"\",CONCATENATE(Table_SummaryPI[[#This Row],[MeassureCategory]],  \" - \", Table_SummaryPI[[#This Row],[ProposedMeasureCategory]],  \" - \", TEXT(Table_SummaryPI[[#This Row],[Size]],\"#,##0.00\"),\" \",Table_SummaryPI[[#This Row],[SizeUnit]]),\"\")","v":""},{"$f":"SUBSTITUTE(Table_PI[[#This Row],[Measure]],\"     \",\"\",1)","v":""},{"$f":"IF(Table_PI[[#This Row],[List 1]]<>\"\",Table_PI[[#This Row],[List 1]],\"\")","v":""},{"$f":"IF(Table_PI[[#This Row],[List 2]]<>\"\",Table_PI[[#This Row],[List 2]],\"\")","v":""},{"$f":"IF(Table_PI[[#This Row],[List 3]]<>\"\",Table_PI[[#This Row],[List 3]],\"\")","v":""},{"$f":"IF(Table_PI[[#This Row],[Manufacturer]]=\"\",\"\",Table_PI[[#This Row],[Manufacturer]])","v":""},{"$f":"IF(Table_PI[[#This Row],[Model Number]]=\"\",\"\",Table_PI[[#This Row],[Model Number]])","v":""},{"$f":"IF(Table_PI[[#This Row],[Serial Number(s)]]=\"\",\"\",Table_PI[[#This Row],[Serial Number(s)]])","v":""},null,{"$f":"IF(Table_PI[[#This Row],[Size]]=\"\",\"\",Table_PI[[#This Row],[Size]])","v":""},null,{"$f":"IFERROR(IF(AND(MeasureCalc(Table_PI[[#This Row],[Hide:\nFormula Name]],Table_SummaryPI[[#This Row],[Quantity]],Table_PI[[#This Row],[List 1]],Table_PI[[#This Row],[List 2]],Table_PI[[#This Row],[List 3]],Table_PI[[#This Row],[Size]],Table_PI[[#This Row],[Input 1]],Table_PI[[#This Row],[Input 2]],Table_PI[[#This Row],[Input 3]],Table_PI[[#This Row],[Input 4]],'Customer Information'!$AR$12,100,ROW())<>0,MeasureCalc(Table_PI[[#This Row],[Hide:\nFormula Name]],Table_SummaryPI[[#This Row],[Quantity]],Table_PI[[#This Row],[List 1]],Table_PI[[#This Row],[List 2]],Table_PI[[#This Row],[List 3]],Table_PI[[#This Row],[Size]],Table_PI[[#This Row],[Input 1]],Table_PI[[#This Row],[Input 2]],Table_PI[[#This Row],[Input 3]],Table_PI[[#This Row],[Input 4]],'Customer Information'!$AR$12,100,ROW())<>\"No Rebate\"),MeasureCalc(Table_PI[[#This Row],[Hide:\nFormula Name]],Table_SummaryPI[[#This Row],[Quantity]],Table_PI[[#This Row],[List 1]],Table_PI[[#This Row],[List 2]],Table_PI[[#This Row],[List 3]],Table_PI[[#This Row],[Size]],Table_PI[[#This Row],[Input 1]],Table_PI[[#This Row],[Input 2]],Table_PI[[#This Row],[Input 3]],Table_PI[[#This Row],[Input 4]],'Customer Information'!$AR$12,100,ROW()),\"\"),\"\")","v":""},{"$f":"IF(Table_PI[[#This Row],[Input 1]]<>\"\",Table_PI[[#This Row],[Input 1]],\"\")","v":""},null,{"$f":"IFERROR(IF(AND(MeasureCalc(Table_PI[[#This Row],[Hide:\nFormula Name]],Table_SummaryPI[[#This Row],[Quantity]],Table_PI[[#This Row],[List 1]],Table_PI[[#This Row],[List 2]],Table_PI[[#This Row],[List 3]],Table_PI[[#This Row],[Size]],Table_PI[[#This Row],[Input 1]],Table_PI[[#This Row],[Input 2]],Table_PI[[#This Row],[Input 3]],Table_PI[[#This Row],[Input 4]],'Customer Information'!$AR$12,101,ROW())<>0,MeasureCalc(Table_PI[[#This Row],[Hide:\nFormula Name]],Table_SummaryPI[[#This Row],[Quantity]],Table_PI[[#This Row],[List 1]],Table_PI[[#This Row],[List 2]],Table_PI[[#This Row],[List 3]],Table_PI[[#This Row],[Size]],Table_PI[[#This Row],[Input 1]],Table_PI[[#This Row],[Input 2]],Table_PI[[#This Row],[Input 3]],Table_PI[[#This Row],[Input 4]],'Customer Information'!$AR$12,101,ROW())<>\"No Rebate\"),MeasureCalc(Table_PI[[#This Row],[Hide:\nFormula Name]],Table_SummaryPI[[#This Row],[Quantity]],Table_PI[[#This Row],[List 1]],Table_PI[[#This Row],[List 2]],Table_PI[[#This Row],[List 3]],Table_PI[[#This Row],[Size]],Table_PI[[#This Row],[Input 1]],Table_PI[[#This Row],[Input 2]],Table_PI[[#This Row],[Input 3]],Table_PI[[#This Row],[Input 4]],'Customer Information'!$AR$12,101,ROW()),\"\"),\"\")","v":""},{"$f":"IF(Table_PI[[#This Row],[Input 2]]<>\"\",Table_PI[[#This Row],[Input 2]],\"\")","v":""},null,{"$f":"IFERROR(IF(AND(MeasureCalc(Table_PI[[#This Row],[Hide:\nFormula Name]],Table_SummaryPI[[#This Row],[Quantity]],Table_PI[[#This Row],[List 1]],Table_PI[[#This Row],[List 2]],Table_PI[[#This Row],[List 3]],Table_PI[[#This Row],[Size]],Table_PI[[#This Row],[Input 1]],Table_PI[[#This Row],[Input 2]],Table_PI[[#This Row],[Input 3]],Table_PI[[#This Row],[Input 4]],'Customer Information'!$AR$12,102,ROW())<>0,MeasureCalc(Table_PI[[#This Row],[Hide:\nFormula Name]],Table_SummaryPI[[#This Row],[Quantity]],Table_PI[[#This Row],[List 1]],Table_PI[[#This Row],[List 2]],Table_PI[[#This Row],[List 3]],Table_PI[[#This Row],[Size]],Table_PI[[#This Row],[Input 1]],Table_PI[[#This Row],[Input 2]],Table_PI[[#This Row],[Input 3]],Table_PI[[#This Row],[Input 4]],'Customer Information'!$AR$12,102,ROW())<>\"No Rebate\"),MeasureCalc(Table_PI[[#This Row],[Hide:\nFormula Name]],Table_SummaryPI[[#This Row],[Quantity]],Table_PI[[#This Row],[List 1]],Table_PI[[#This Row],[List 2]],Table_PI[[#This Row],[List 3]],Table_PI[[#This Row],[Size]],Table_PI[[#This Row],[Input 1]],Table_PI[[#This Row],[Input 2]],Table_PI[[#This Row],[Input 3]],Table_PI[[#This Row],[Input 4]],'Customer Information'!$AR$12,102,ROW()),\"\"),\"\")","v":""},{"$f":"IF(Table_PI[[#This Row],[Input 3]]<>\"\",Table_PI[[#This Row],[Input 3]],\"\")","v":""},null,{"$f":"IFERROR(IF(AND(MeasureCalc(Table_PI[[#This Row],[Hide:\nFormula Name]],Table_SummaryPI[[#This Row],[Quantity]],Table_PI[[#This Row],[List 1]],Table_PI[[#This Row],[List 2]],Table_PI[[#This Row],[List 3]],Table_PI[[#This Row],[Size]],Table_PI[[#This Row],[Input 1]],Table_PI[[#This Row],[Input 2]],Table_PI[[#This Row],[Input 3]],Table_PI[[#This Row],[Input 4]],'Customer Information'!$AR$12,103,ROW())<>0,MeasureCalc(Table_PI[[#This Row],[Hide:\nFormula Name]],Table_SummaryPI[[#This Row],[Quantity]],Table_PI[[#This Row],[List 1]],Table_PI[[#This Row],[List 2]],Table_PI[[#This Row],[List 3]],Table_PI[[#This Row],[Size]],Table_PI[[#This Row],[Input 1]],Table_PI[[#This Row],[Input 2]],Table_PI[[#This Row],[Input 3]],Table_PI[[#This Row],[Input 4]],'Customer Information'!$AR$12,103,ROW())<>\"No Rebate\"),MeasureCalc(Table_PI[[#This Row],[Hide:\nFormula Name]],Table_SummaryPI[[#This Row],[Quantity]],Table_PI[[#This Row],[List 1]],Table_PI[[#This Row],[List 2]],Table_PI[[#This Row],[List 3]],Table_PI[[#This Row],[Size]],Table_PI[[#This Row],[Input 1]],Table_PI[[#This Row],[Input 2]],Table_PI[[#This Row],[Input 3]],Table_PI[[#This Row],[Input 4]],'Customer Information'!$AR$12,103,ROW()),\"\"),\"\")","v":""},{"$f":"IF(Table_PI[[#This Row],[Input 4]]<>\"\",Table_PI[[#This Row],[Input 4]],\"\")","v":""},{"$f":"IF(Table_PI[[#This Row],[Quantity]]=\"\",\"\",Table_PI[[#This Row],[Quantity]])","v":""},{"$f":"IF(Table_PI[[#This Row],[Notes]]=\"\",\"\",Table_PI[[#This Row],[Notes]])","v":""},{"$f":"IF(OR(Table_PI[[#This Row],[Hide:\nBaseline kWh]]=\"\",Table_PI[[#This Row],[Hide:\nBaseline kWh]]=0),\"\",Table_PI[[#This Row],[Hide:\nBaseline kWh]])","v":""},{"$f":"IF(OR(Table_PI[[#This Row],[Hide:\nBaseline kW]]=\"\",Table_PI[[#This Row],[Hide:\nBaseline kW]]=0),\"\",Table_PI[[#This Row],[Hide:\nBaseline kW]])","v":""},{"$f":"IF(OR(Table_PI[[#This Row],[Hide:\nProposed kWh]]=\"\",Table_PI[[#This Row],[Hide:\nProposed kWh]]=0),\"\",Table_PI[[#This Row],[Hide:\nProposed kWh]])","v":""},{"$f":"IF(OR(Table_PI[[#This Row],[Hide:\nProposed kW]]=\"\",Table_PI[[#This Row],[Hide:\nProposed kW]]=0),\"\",Table_PI[[#This Row],[Hide:\nProposed kW]])","v":""},{"$f":"IF(OR(Table_PI[[#This Row],[Rebate]]=\"\",Table_PI[[#This Row],[Rebate]]=0),\"\",Table_PI[[#This Row],[Rebate]])","v":""},{"$f":"IF(OR(Table_PI[[#This Row],[Hide:\nIncremental Cost]]=\"\",Table_PI[[#This Row],[Hide:\nIncremental Cost]]=0),\"\",Table_PI[[#This Row],[Hide:\nIncremental Cost]])","v":""},{"$f":"IFERROR(IF(Table_SummaryPI[[#This Row],[kWhSavings]]=\"\",\"\",ROUND(Table_SummaryPI[[#This Row],[kWhSavings]]/$AG$401*'Customer Information'!$BC$17,2)),0)","v":""},{"$f":"IF(OR(Table_PI[[#This Row],[Annual kWh]]=\"\",Table_PI[[#This Row],[Annual kWh]]=0),\"\",Table_PI[[#This Row],[Annual kWh]])","v":""},{"$f":"IF(OR(Table_PI[[#This Row],[Peak kW]]=\"\",Table_PI[[#This Row],[Peak kW]]=0),\"\",Table_PI[[#This Row],[Peak kW]])","v":""},{"$f":"IFERROR(IF(Table_SummaryPI[[#This Row],[kWhSavings]]=\"\",\"\",$AU$9*Table_SummaryPI[[#This Row],[kWhSavings]]),0)","v":""},{"$f":"IFERROR(IF(Table_SummaryPI[[#This Row],[kWhSavings]]=\"\",\"\",$AU$14*Table_SummaryPI[[#This Row],[kWhSavings]]),0)","v":""},{"$f":"IFERROR(IF(Table_SummaryPI[[#This Row],[kWhSavings]]=\"\",\"\",$AU$18*Table_SummaryPI[[#This Row],[kWhSavings]]),0)","v":""},{"$f":"IFERROR(IF(Table_SummaryPI[[#This Row],[kWhSavings]]=\"\",\"\",$AU$22*Table_SummaryPI[[#This Row],[kWhSavings]]),0)","v":""},{"$f":"IFERROR(IF(MeasureCalc(Table_PI[[#This Row],[Hide:\nFormula Name]],Table_SummaryPI[[#This Row],[Quantity]],Table_PI[[#This Row],[List 1]],Table_PI[[#This Row],[List 2]],Table_PI[[#This Row],[List 3]],Table_PI[[#This Row],[Size]],Table_PI[[#This Row],[Input 1]],Table_PI[[#This Row],[Input 2]],Table_PI[[#This Row],[Input 3]],Table_PI[[#This Row],[Input 4]],'Customer Information'!$AR$12,200,ROW())<>\"No Rebate\",MeasureCalc(Table_PI[[#This Row],[Hide:\nFormula Name]],Table_SummaryPI[[#This Row],[Quantity]],Table_PI[[#This Row],[List 1]],Table_PI[[#This Row],[List 2]],Table_PI[[#This Row],[List 3]],Table_PI[[#This Row],[Size]],Table_PI[[#This Row],[Input 1]],Table_PI[[#This Row],[Input 2]],Table_PI[[#This Row],[Input 3]],Table_PI[[#This Row],[Input 4]],'Customer Information'!$AR$12,200,ROW()),\"\"),\"\")","v":""},{"$f":"IFERROR(IF(MeasureCalc(Table_PI[[#This Row],[Hide:\nFormula Name]],Table_SummaryPI[[#This Row],[Quantity]],Table_PI[[#This Row],[List 1]],Table_PI[[#This Row],[List 2]],Table_PI[[#This Row],[List 3]],Table_PI[[#This Row],[Size]],Table_PI[[#This Row],[Input 1]],Table_PI[[#This Row],[Input 2]],Table_PI[[#This Row],[Input 3]],Table_PI[[#This Row],[Input 4]],'Customer Information'!$AR$12,201,ROW())<>\"No Rebate\",MeasureCalc(Table_PI[[#This Row],[Hide:\nFormula Name]],Table_SummaryPI[[#This Row],[Quantity]],Table_PI[[#This Row],[List 1]],Table_PI[[#This Row],[List 2]],Table_PI[[#This Row],[List 3]],Table_PI[[#This Row],[Size]],Table_PI[[#This Row],[Input 1]],Table_PI[[#This Row],[Input 2]],Table_PI[[#This Row],[Input 3]],Table_PI[[#This Row],[Input 4]],'Customer Information'!$AR$12,201,ROW()),\"\"),\"\")","v":""}]
[{"$f":"Table_PI[[#This Row],[Line No.]]","v":""},{"$f":"IF(Table_SummaryPI[[#This Row],[MeassureCategory]]<>\"\",CONCATENATE(Table_SummaryPI[[#This Row],[MeassureCategory]],  \" - \", Table_SummaryPI[[#This Row],[ProposedMeasureCategory]],  \" - \", TEXT(Table_SummaryPI[[#This Row],[Size]],\"#,##0.00\"),\" \",Table_SummaryPI[[#This Row],[SizeUnit]]),\"\")","v":""},{"$f":"SUBSTITUTE(Table_PI[[#This Row],[Measure]],\"     \",\"\",1)","v":""},{"$f":"IF(Table_PI[[#This Row],[List 1]]<>\"\",Table_PI[[#This Row],[List 1]],\"\")","v":""},{"$f":"IF(Table_PI[[#This Row],[List 2]]<>\"\",Table_PI[[#This Row],[List 2]],\"\")","v":""},{"$f":"IF(Table_PI[[#This Row],[List 3]]<>\"\",Table_PI[[#This Row],[List 3]],\"\")","v":""},{"$f":"IF(Table_PI[[#This Row],[Manufacturer]]=\"\",\"\",Table_PI[[#This Row],[Manufacturer]])","v":""},{"$f":"IF(Table_PI[[#This Row],[Model Number]]=\"\",\"\",Table_PI[[#This Row],[Model Number]])","v":""},{"$f":"IF(Table_PI[[#This Row],[Serial Number(s)]]=\"\",\"\",Table_PI[[#This Row],[Serial Number(s)]])","v":""},null,{"$f":"IF(Table_PI[[#This Row],[Size]]=\"\",\"\",Table_PI[[#This Row],[Size]])","v":""},null,{"$f":"IFERROR(IF(AND(MeasureCalc(Table_PI[[#This Row],[Hide:\nFormula Name]],Table_SummaryPI[[#This Row],[Quantity]],Table_PI[[#This Row],[List 1]],Table_PI[[#This Row],[List 2]],Table_PI[[#This Row],[List 3]],Table_PI[[#This Row],[Size]],Table_PI[[#This Row],[Input 1]],Table_PI[[#This Row],[Input 2]],Table_PI[[#This Row],[Input 3]],Table_PI[[#This Row],[Input 4]],'Customer Information'!$AR$12,100,ROW())<>0,MeasureCalc(Table_PI[[#This Row],[Hide:\nFormula Name]],Table_SummaryPI[[#This Row],[Quantity]],Table_PI[[#This Row],[List 1]],Table_PI[[#This Row],[List 2]],Table_PI[[#This Row],[List 3]],Table_PI[[#This Row],[Size]],Table_PI[[#This Row],[Input 1]],Table_PI[[#This Row],[Input 2]],Table_PI[[#This Row],[Input 3]],Table_PI[[#This Row],[Input 4]],'Customer Information'!$AR$12,100,ROW())<>\"No Rebate\"),MeasureCalc(Table_PI[[#This Row],[Hide:\nFormula Name]],Table_SummaryPI[[#This Row],[Quantity]],Table_PI[[#This Row],[List 1]],Table_PI[[#This Row],[List 2]],Table_PI[[#This Row],[List 3]],Table_PI[[#This Row],[Size]],Table_PI[[#This Row],[Input 1]],Table_PI[[#This Row],[Input 2]],Table_PI[[#This Row],[Input 3]],Table_PI[[#This Row],[Input 4]],'Customer Information'!$AR$12,100,ROW()),\"\"),\"\")","v":""},{"$f":"IF(Table_PI[[#This Row],[Input 1]]<>\"\",Table_PI[[#This Row],[Input 1]],\"\")","v":""},null,{"$f":"IFERROR(IF(AND(MeasureCalc(Table_PI[[#This Row],[Hide:\nFormula Name]],Table_SummaryPI[[#This Row],[Quantity]],Table_PI[[#This Row],[List 1]],Table_PI[[#This Row],[List 2]],Table_PI[[#This Row],[List 3]],Table_PI[[#This Row],[Size]],Table_PI[[#This Row],[Input 1]],Table_PI[[#This Row],[Input 2]],Table_PI[[#This Row],[Input 3]],Table_PI[[#This Row],[Input 4]],'Customer Information'!$AR$12,101,ROW())<>0,MeasureCalc(Table_PI[[#This Row],[Hide:\nFormula Name]],Table_SummaryPI[[#This Row],[Quantity]],Table_PI[[#This Row],[List 1]],Table_PI[[#This Row],[List 2]],Table_PI[[#This Row],[List 3]],Table_PI[[#This Row],[Size]],Table_PI[[#This Row],[Input 1]],Table_PI[[#This Row],[Input 2]],Table_PI[[#This Row],[Input 3]],Table_PI[[#This Row],[Input 4]],'Customer Information'!$AR$12,101,ROW())<>\"No Rebate\"),MeasureCalc(Table_PI[[#This Row],[Hide:\nFormula Name]],Table_SummaryPI[[#This Row],[Quantity]],Table_PI[[#This Row],[List 1]],Table_PI[[#This Row],[List 2]],Table_PI[[#This Row],[List 3]],Table_PI[[#This Row],[Size]],Table_PI[[#This Row],[Input 1]],Table_PI[[#This Row],[Input 2]],Table_PI[[#This Row],[Input 3]],Table_PI[[#This Row],[Input 4]],'Customer Information'!$AR$12,101,ROW()),\"\"),\"\")","v":""},{"$f":"IF(Table_PI[[#This Row],[Input 2]]<>\"\",Table_PI[[#This Row],[Input 2]],\"\")","v":""},null,{"$f":"IFERROR(IF(AND(MeasureCalc(Table_PI[[#This Row],[Hide:\nFormula Name]],Table_SummaryPI[[#This Row],[Quantity]],Table_PI[[#This Row],[List 1]],Table_PI[[#This Row],[List 2]],Table_PI[[#This Row],[List 3]],Table_PI[[#This Row],[Size]],Table_PI[[#This Row],[Input 1]],Table_PI[[#This Row],[Input 2]],Table_PI[[#This Row],[Input 3]],Table_PI[[#This Row],[Input 4]],'Customer Information'!$AR$12,102,ROW())<>0,MeasureCalc(Table_PI[[#This Row],[Hide:\nFormula Name]],Table_SummaryPI[[#This Row],[Quantity]],Table_PI[[#This Row],[List 1]],Table_PI[[#This Row],[List 2]],Table_PI[[#This Row],[List 3]],Table_PI[[#This Row],[Size]],Table_PI[[#This Row],[Input 1]],Table_PI[[#This Row],[Input 2]],Table_PI[[#This Row],[Input 3]],Table_PI[[#This Row],[Input 4]],'Customer Information'!$AR$12,102,ROW())<>\"No Rebate\"),MeasureCalc(Table_PI[[#This Row],[Hide:\nFormula Name]],Table_SummaryPI[[#This Row],[Quantity]],Table_PI[[#This Row],[List 1]],Table_PI[[#This Row],[List 2]],Table_PI[[#This Row],[List 3]],Table_PI[[#This Row],[Size]],Table_PI[[#This Row],[Input 1]],Table_PI[[#This Row],[Input 2]],Table_PI[[#This Row],[Input 3]],Table_PI[[#This Row],[Input 4]],'Customer Information'!$AR$12,102,ROW()),\"\"),\"\")","v":""},{"$f":"IF(Table_PI[[#This Row],[Input 3]]<>\"\",Table_PI[[#This Row],[Input 3]],\"\")","v":""},null,{"$f":"IFERROR(IF(AND(MeasureCalc(Table_PI[[#This Row],[Hide:\nFormula Name]],Table_SummaryPI[[#This Row],[Quantity]],Table_PI[[#This Row],[List 1]],Table_PI[[#This Row],[List 2]],Table_PI[[#This Row],[List 3]],Table_PI[[#This Row],[Size]],Table_PI[[#This Row],[Input 1]],Table_PI[[#This Row],[Input 2]],Table_PI[[#This Row],[Input 3]],Table_PI[[#This Row],[Input 4]],'Customer Information'!$AR$12,103,ROW())<>0,MeasureCalc(Table_PI[[#This Row],[Hide:\nFormula Name]],Table_SummaryPI[[#This Row],[Quantity]],Table_PI[[#This Row],[List 1]],Table_PI[[#This Row],[List 2]],Table_PI[[#This Row],[List 3]],Table_PI[[#This Row],[Size]],Table_PI[[#This Row],[Input 1]],Table_PI[[#This Row],[Input 2]],Table_PI[[#This Row],[Input 3]],Table_PI[[#This Row],[Input 4]],'Customer Information'!$AR$12,103,ROW())<>\"No Rebate\"),MeasureCalc(Table_PI[[#This Row],[Hide:\nFormula Name]],Table_SummaryPI[[#This Row],[Quantity]],Table_PI[[#This Row],[List 1]],Table_PI[[#This Row],[List 2]],Table_PI[[#This Row],[List 3]],Table_PI[[#This Row],[Size]],Table_PI[[#This Row],[Input 1]],Table_PI[[#This Row],[Input 2]],Table_PI[[#This Row],[Input 3]],Table_PI[[#This Row],[Input 4]],'Customer Information'!$AR$12,103,ROW()),\"\"),\"\")","v":""},{"$f":"IF(Table_PI[[#This Row],[Input 4]]<>\"\",Table_PI[[#This Row],[Input 4]],\"\")","v":""},{"$f":"IF(Table_PI[[#This Row],[Quantity]]=\"\",\"\",Table_PI[[#This Row],[Quantity]])","v":""},{"$f":"IF(Table_PI[[#This Row],[Notes]]=\"\",\"\",Table_PI[[#This Row],[Notes]])","v":""},{"$f":"IF(OR(Table_PI[[#This Row],[Hide:\nBaseline kWh]]=\"\",Table_PI[[#This Row],[Hide:\nBaseline kWh]]=0),\"\",Table_PI[[#This Row],[Hide:\nBaseline kWh]])","v":""},{"$f":"IF(OR(Table_PI[[#This Row],[Hide:\nBaseline kW]]=\"\",Table_PI[[#This Row],[Hide:\nBaseline kW]]=0),\"\",Table_PI[[#This Row],[Hide:\nBaseline kW]])","v":""},{"$f":"IF(OR(Table_PI[[#This Row],[Hide:\nProposed kWh]]=\"\",Table_PI[[#This Row],[Hide:\nProposed kWh]]=0),\"\",Table_PI[[#This Row],[Hide:\nProposed kWh]])","v":""},{"$f":"IF(OR(Table_PI[[#This Row],[Hide:\nProposed kW]]=\"\",Table_PI[[#This Row],[Hide:\nProposed kW]]=0),\"\",Table_PI[[#This Row],[Hide:\nProposed kW]])","v":""},{"$f":"IF(OR(Table_PI[[#This Row],[Rebate]]=\"\",Table_PI[[#This Row],[Rebate]]=0),\"\",Table_PI[[#This Row],[Rebate]])","v":""},{"$f":"IF(OR(Table_PI[[#This Row],[Hide:\nIncremental Cost]]=\"\",Table_PI[[#This Row],[Hide:\nIncremental Cost]]=0),\"\",Table_PI[[#This Row],[Hide:\nIncremental Cost]])","v":""},{"$f":"IFERROR(IF(Table_SummaryPI[[#This Row],[kWhSavings]]=\"\",\"\",ROUND(Table_SummaryPI[[#This Row],[kWhSavings]]/$AG$401*'Customer Information'!$BC$17,2)),0)","v":""},{"$f":"IF(OR(Table_PI[[#This Row],[Annual kWh]]=\"\",Table_PI[[#This Row],[Annual kWh]]=0),\"\",Table_PI[[#This Row],[Annual kWh]])","v":""},{"$f":"IF(OR(Table_PI[[#This Row],[Peak kW]]=\"\",Table_PI[[#This Row],[Peak kW]]=0),\"\",Table_PI[[#This Row],[Peak kW]])","v":""},{"$f":"IFERROR(IF(Table_SummaryPI[[#This Row],[kWhSavings]]=\"\",\"\",$AU$9*Table_SummaryPI[[#This Row],[kWhSavings]]),0)","v":""},{"$f":"IFERROR(IF(Table_SummaryPI[[#This Row],[kWhSavings]]=\"\",\"\",$AU$14*Table_SummaryPI[[#This Row],[kWhSavings]]),0)","v":""},{"$f":"IFERROR(IF(Table_SummaryPI[[#This Row],[kWhSavings]]=\"\",\"\",$AU$18*Table_SummaryPI[[#This Row],[kWhSavings]]),0)","v":""},{"$f":"IFERROR(IF(Table_SummaryPI[[#This Row],[kWhSavings]]=\"\",\"\",$AU$22*Table_SummaryPI[[#This Row],[kWhSavings]]),0)","v":""},{"$f":"IFERROR(IF(MeasureCalc(Table_PI[[#This Row],[Hide:\nFormula Name]],Table_SummaryPI[[#This Row],[Quantity]],Table_PI[[#This Row],[List 1]],Table_PI[[#This Row],[List 2]],Table_PI[[#This Row],[List 3]],Table_PI[[#This Row],[Size]],Table_PI[[#This Row],[Input 1]],Table_PI[[#This Row],[Input 2]],Table_PI[[#This Row],[Input 3]],Table_PI[[#This Row],[Input 4]],'Customer Information'!$AR$12,200,ROW())<>\"No Rebate\",MeasureCalc(Table_PI[[#This Row],[Hide:\nFormula Name]],Table_SummaryPI[[#This Row],[Quantity]],Table_PI[[#This Row],[List 1]],Table_PI[[#This Row],[List 2]],Table_PI[[#This Row],[List 3]],Table_PI[[#This Row],[Size]],Table_PI[[#This Row],[Input 1]],Table_PI[[#This Row],[Input 2]],Table_PI[[#This Row],[Input 3]],Table_PI[[#This Row],[Input 4]],'Customer Information'!$AR$12,200,ROW()),\"\"),\"\")","v":""},{"$f":"IFERROR(IF(MeasureCalc(Table_PI[[#This Row],[Hide:\nFormula Name]],Table_SummaryPI[[#This Row],[Quantity]],Table_PI[[#This Row],[List 1]],Table_PI[[#This Row],[List 2]],Table_PI[[#This Row],[List 3]],Table_PI[[#This Row],[Size]],Table_PI[[#This Row],[Input 1]],Table_PI[[#This Row],[Input 2]],Table_PI[[#This Row],[Input 3]],Table_PI[[#This Row],[Input 4]],'Customer Information'!$AR$12,201,ROW())<>\"No Rebate\",MeasureCalc(Table_PI[[#This Row],[Hide:\nFormula Name]],Table_SummaryPI[[#This Row],[Quantity]],Table_PI[[#This Row],[List 1]],Table_PI[[#This Row],[List 2]],Table_PI[[#This Row],[List 3]],Table_PI[[#This Row],[Size]],Table_PI[[#This Row],[Input 1]],Table_PI[[#This Row],[Input 2]],Table_PI[[#This Row],[Input 3]],Table_PI[[#This Row],[Input 4]],'Customer Information'!$AR$12,201,ROW()),\"\"),\"\")","v":""}]
[{"$f":"Table_PI[[#This Row],[Line No.]]","v":""},{"$f":"IF(Table_SummaryPI[[#This Row],[MeassureCategory]]<>\"\",CONCATENATE(Table_SummaryPI[[#This Row],[MeassureCategory]],  \" - \", Table_SummaryPI[[#This Row],[ProposedMeasureCategory]],  \" - \", TEXT(Table_SummaryPI[[#This Row],[Size]],\"#,##0.00\"),\" \",Table_SummaryPI[[#This Row],[SizeUnit]]),\"\")","v":""},{"$f":"SUBSTITUTE(Table_PI[[#This Row],[Measure]],\"     \",\"\",1)","v":""},{"$f":"IF(Table_PI[[#This Row],[List 1]]<>\"\",Table_PI[[#This Row],[List 1]],\"\")","v":""},{"$f":"IF(Table_PI[[#This Row],[List 2]]<>\"\",Table_PI[[#This Row],[List 2]],\"\")","v":""},{"$f":"IF(Table_PI[[#This Row],[List 3]]<>\"\",Table_PI[[#This Row],[List 3]],\"\")","v":""},{"$f":"IF(Table_PI[[#This Row],[Manufacturer]]=\"\",\"\",Table_PI[[#This Row],[Manufacturer]])","v":""},{"$f":"IF(Table_PI[[#This Row],[Model Number]]=\"\",\"\",Table_PI[[#This Row],[Model Number]])","v":""},{"$f":"IF(Table_PI[[#This Row],[Serial Number(s)]]=\"\",\"\",Table_PI[[#This Row],[Serial Number(s)]])","v":""},null,{"$f":"IF(Table_PI[[#This Row],[Size]]=\"\",\"\",Table_PI[[#This Row],[Size]])","v":""},null,{"$f":"IFERROR(IF(AND(MeasureCalc(Table_PI[[#This Row],[Hide:\nFormula Name]],Table_SummaryPI[[#This Row],[Quantity]],Table_PI[[#This Row],[List 1]],Table_PI[[#This Row],[List 2]],Table_PI[[#This Row],[List 3]],Table_PI[[#This Row],[Size]],Table_PI[[#This Row],[Input 1]],Table_PI[[#This Row],[Input 2]],Table_PI[[#This Row],[Input 3]],Table_PI[[#This Row],[Input 4]],'Customer Information'!$AR$12,100,ROW())<>0,MeasureCalc(Table_PI[[#This Row],[Hide:\nFormula Name]],Table_SummaryPI[[#This Row],[Quantity]],Table_PI[[#This Row],[List 1]],Table_PI[[#This Row],[List 2]],Table_PI[[#This Row],[List 3]],Table_PI[[#This Row],[Size]],Table_PI[[#This Row],[Input 1]],Table_PI[[#This Row],[Input 2]],Table_PI[[#This Row],[Input 3]],Table_PI[[#This Row],[Input 4]],'Customer Information'!$AR$12,100,ROW())<>\"No Rebate\"),MeasureCalc(Table_PI[[#This Row],[Hide:\nFormula Name]],Table_SummaryPI[[#This Row],[Quantity]],Table_PI[[#This Row],[List 1]],Table_PI[[#This Row],[List 2]],Table_PI[[#This Row],[List 3]],Table_PI[[#This Row],[Size]],Table_PI[[#This Row],[Input 1]],Table_PI[[#This Row],[Input 2]],Table_PI[[#This Row],[Input 3]],Table_PI[[#This Row],[Input 4]],'Customer Information'!$AR$12,100,ROW()),\"\"),\"\")","v":""},{"$f":"IF(Table_PI[[#This Row],[Input 1]]<>\"\",Table_PI[[#This Row],[Input 1]],\"\")","v":""},null,{"$f":"IFERROR(IF(AND(MeasureCalc(Table_PI[[#This Row],[Hide:\nFormula Name]],Table_SummaryPI[[#This Row],[Quantity]],Table_PI[[#This Row],[List 1]],Table_PI[[#This Row],[List 2]],Table_PI[[#This Row],[List 3]],Table_PI[[#This Row],[Size]],Table_PI[[#This Row],[Input 1]],Table_PI[[#This Row],[Input 2]],Table_PI[[#This Row],[Input 3]],Table_PI[[#This Row],[Input 4]],'Customer Information'!$AR$12,101,ROW())<>0,MeasureCalc(Table_PI[[#This Row],[Hide:\nFormula Name]],Table_SummaryPI[[#This Row],[Quantity]],Table_PI[[#This Row],[List 1]],Table_PI[[#This Row],[List 2]],Table_PI[[#This Row],[List 3]],Table_PI[[#This Row],[Size]],Table_PI[[#This Row],[Input 1]],Table_PI[[#This Row],[Input 2]],Table_PI[[#This Row],[Input 3]],Table_PI[[#This Row],[Input 4]],'Customer Information'!$AR$12,101,ROW())<>\"No Rebate\"),MeasureCalc(Table_PI[[#This Row],[Hide:\nFormula Name]],Table_SummaryPI[[#This Row],[Quantity]],Table_PI[[#This Row],[List 1]],Table_PI[[#This Row],[List 2]],Table_PI[[#This Row],[List 3]],Table_PI[[#This Row],[Size]],Table_PI[[#This Row],[Input 1]],Table_PI[[#This Row],[Input 2]],Table_PI[[#This Row],[Input 3]],Table_PI[[#This Row],[Input 4]],'Customer Information'!$AR$12,101,ROW()),\"\"),\"\")","v":""},{"$f":"IF(Table_PI[[#This Row],[Input 2]]<>\"\",Table_PI[[#This Row],[Input 2]],\"\")","v":""},null,{"$f":"IFERROR(IF(AND(MeasureCalc(Table_PI[[#This Row],[Hide:\nFormula Name]],Table_SummaryPI[[#This Row],[Quantity]],Table_PI[[#This Row],[List 1]],Table_PI[[#This Row],[List 2]],Table_PI[[#This Row],[List 3]],Table_PI[[#This Row],[Size]],Table_PI[[#This Row],[Input 1]],Table_PI[[#This Row],[Input 2]],Table_PI[[#This Row],[Input 3]],Table_PI[[#This Row],[Input 4]],'Customer Information'!$AR$12,102,ROW())<>0,MeasureCalc(Table_PI[[#This Row],[Hide:\nFormula Name]],Table_SummaryPI[[#This Row],[Quantity]],Table_PI[[#This Row],[List 1]],Table_PI[[#This Row],[List 2]],Table_PI[[#This Row],[List 3]],Table_PI[[#This Row],[Size]],Table_PI[[#This Row],[Input 1]],Table_PI[[#This Row],[Input 2]],Table_PI[[#This Row],[Input 3]],Table_PI[[#This Row],[Input 4]],'Customer Information'!$AR$12,102,ROW())<>\"No Rebate\"),MeasureCalc(Table_PI[[#This Row],[Hide:\nFormula Name]],Table_SummaryPI[[#This Row],[Quantity]],Table_PI[[#This Row],[List 1]],Table_PI[[#This Row],[List 2]],Table_PI[[#This Row],[List 3]],Table_PI[[#This Row],[Size]],Table_PI[[#This Row],[Input 1]],Table_PI[[#This Row],[Input 2]],Table_PI[[#This Row],[Input 3]],Table_PI[[#This Row],[Input 4]],'Customer Information'!$AR$12,102,ROW()),\"\"),\"\")","v":""},{"$f":"IF(Table_PI[[#This Row],[Input 3]]<>\"\",Table_PI[[#This Row],[Input 3]],\"\")","v":""},null,{"$f":"IFERROR(IF(AND(MeasureCalc(Table_PI[[#This Row],[Hide:\nFormula Name]],Table_SummaryPI[[#This Row],[Quantity]],Table_PI[[#This Row],[List 1]],Table_PI[[#This Row],[List 2]],Table_PI[[#This Row],[List 3]],Table_PI[[#This Row],[Size]],Table_PI[[#This Row],[Input 1]],Table_PI[[#This Row],[Input 2]],Table_PI[[#This Row],[Input 3]],Table_PI[[#This Row],[Input 4]],'Customer Information'!$AR$12,103,ROW())<>0,MeasureCalc(Table_PI[[#This Row],[Hide:\nFormula Name]],Table_SummaryPI[[#This Row],[Quantity]],Table_PI[[#This Row],[List 1]],Table_PI[[#This Row],[List 2]],Table_PI[[#This Row],[List 3]],Table_PI[[#This Row],[Size]],Table_PI[[#This Row],[Input 1]],Table_PI[[#This Row],[Input 2]],Table_PI[[#This Row],[Input 3]],Table_PI[[#This Row],[Input 4]],'Customer Information'!$AR$12,103,ROW())<>\"No Rebate\"),MeasureCalc(Table_PI[[#This Row],[Hide:\nFormula Name]],Table_SummaryPI[[#This Row],[Quantity]],Table_PI[[#This Row],[List 1]],Table_PI[[#This Row],[List 2]],Table_PI[[#This Row],[List 3]],Table_PI[[#This Row],[Size]],Table_PI[[#This Row],[Input 1]],Table_PI[[#This Row],[Input 2]],Table_PI[[#This Row],[Input 3]],Table_PI[[#This Row],[Input 4]],'Customer Information'!$AR$12,103,ROW()),\"\"),\"\")","v":""},{"$f":"IF(Table_PI[[#This Row],[Input 4]]<>\"\",Table_PI[[#This Row],[Input 4]],\"\")","v":""},{"$f":"IF(Table_PI[[#This Row],[Quantity]]=\"\",\"\",Table_PI[[#This Row],[Quantity]])","v":""},{"$f":"IF(Table_PI[[#This Row],[Notes]]=\"\",\"\",Table_PI[[#This Row],[Notes]])","v":""},{"$f":"IF(OR(Table_PI[[#This Row],[Hide:\nBaseline kWh]]=\"\",Table_PI[[#This Row],[Hide:\nBaseline kWh]]=0),\"\",Table_PI[[#This Row],[Hide:\nBaseline kWh]])","v":""},{"$f":"IF(OR(Table_PI[[#This Row],[Hide:\nBaseline kW]]=\"\",Table_PI[[#This Row],[Hide:\nBaseline kW]]=0),\"\",Table_PI[[#This Row],[Hide:\nBaseline kW]])","v":""},{"$f":"IF(OR(Table_PI[[#This Row],[Hide:\nProposed kWh]]=\"\",Table_PI[[#This Row],[Hide:\nProposed kWh]]=0),\"\",Table_PI[[#This Row],[Hide:\nProposed kWh]])","v":""},{"$f":"IF(OR(Table_PI[[#This Row],[Hide:\nProposed kW]]=\"\",Table_PI[[#This Row],[Hide:\nProposed kW]]=0),\"\",Table_PI[[#This Row],[Hide:\nProposed kW]])","v":""},{"$f":"IF(OR(Table_PI[[#This Row],[Rebate]]=\"\",Table_PI[[#This Row],[Rebate]]=0),\"\",Table_PI[[#This Row],[Rebate]])","v":""},{"$f":"IF(OR(Table_PI[[#This Row],[Hide:\nIncremental Cost]]=\"\",Table_PI[[#This Row],[Hide:\nIncremental Cost]]=0),\"\",Table_PI[[#This Row],[Hide:\nIncremental Cost]])","v":""},{"$f":"IFERROR(IF(Table_SummaryPI[[#This Row],[kWhSavings]]=\"\",\"\",ROUND(Table_SummaryPI[[#This Row],[kWhSavings]]/$AG$401*'Customer Information'!$BC$17,2)),0)","v":""},{"$f":"IF(OR(Table_PI[[#This Row],[Annual kWh]]=\"\",Table_PI[[#This Row],[Annual kWh]]=0),\"\",Table_PI[[#This Row],[Annual kWh]])","v":""},{"$f":"IF(OR(Table_PI[[#This Row],[Peak kW]]=\"\",Table_PI[[#This Row],[Peak kW]]=0),\"\",Table_PI[[#This Row],[Peak kW]])","v":""},{"$f":"IFERROR(IF(Table_SummaryPI[[#This Row],[kWhSavings]]=\"\",\"\",$AU$9*Table_SummaryPI[[#This Row],[kWhSavings]]),0)","v":""},{"$f":"IFERROR(IF(Table_SummaryPI[[#This Row],[kWhSavings]]=\"\",\"\",$AU$14*Table_SummaryPI[[#This Row],[kWhSavings]]),0)","v":""},{"$f":"IFERROR(IF(Table_SummaryPI[[#This Row],[kWhSavings]]=\"\",\"\",$AU$18*Table_SummaryPI[[#This Row],[kWhSavings]]),0)","v":""},{"$f":"IFERROR(IF(Table_SummaryPI[[#This Row],[kWhSavings]]=\"\",\"\",$AU$22*Table_SummaryPI[[#This Row],[kWhSavings]]),0)","v":""},{"$f":"IFERROR(IF(MeasureCalc(Table_PI[[#This Row],[Hide:\nFormula Name]],Table_SummaryPI[[#This Row],[Quantity]],Table_PI[[#This Row],[List 1]],Table_PI[[#This Row],[List 2]],Table_PI[[#This Row],[List 3]],Table_PI[[#This Row],[Size]],Table_PI[[#This Row],[Input 1]],Table_PI[[#This Row],[Input 2]],Table_PI[[#This Row],[Input 3]],Table_PI[[#This Row],[Input 4]],'Customer Information'!$AR$12,200,ROW())<>\"No Rebate\",MeasureCalc(Table_PI[[#This Row],[Hide:\nFormula Name]],Table_SummaryPI[[#This Row],[Quantity]],Table_PI[[#This Row],[List 1]],Table_PI[[#This Row],[List 2]],Table_PI[[#This Row],[List 3]],Table_PI[[#This Row],[Size]],Table_PI[[#This Row],[Input 1]],Table_PI[[#This Row],[Input 2]],Table_PI[[#This Row],[Input 3]],Table_PI[[#This Row],[Input 4]],'Customer Information'!$AR$12,200,ROW()),\"\"),\"\")","v":""},{"$f":"IFERROR(IF(MeasureCalc(Table_PI[[#This Row],[Hide:\nFormula Name]],Table_SummaryPI[[#This Row],[Quantity]],Table_PI[[#This Row],[List 1]],Table_PI[[#This Row],[List 2]],Table_PI[[#This Row],[List 3]],Table_PI[[#This Row],[Size]],Table_PI[[#This Row],[Input 1]],Table_PI[[#This Row],[Input 2]],Table_PI[[#This Row],[Input 3]],Table_PI[[#This Row],[Input 4]],'Customer Information'!$AR$12,201,ROW())<>\"No Rebate\",MeasureCalc(Table_PI[[#This Row],[Hide:\nFormula Name]],Table_SummaryPI[[#This Row],[Quantity]],Table_PI[[#This Row],[List 1]],Table_PI[[#This Row],[List 2]],Table_PI[[#This Row],[List 3]],Table_PI[[#This Row],[Size]],Table_PI[[#This Row],[Input 1]],Table_PI[[#This Row],[Input 2]],Table_PI[[#This Row],[Input 3]],Table_PI[[#This Row],[Input 4]],'Customer Information'!$AR$12,201,ROW()),\"\"),\"\")","v":""}]
[{"$f":"Table_PI[[#This Row],[Line No.]]","v":""},{"$f":"IF(Table_SummaryPI[[#This Row],[MeassureCategory]]<>\"\",CONCATENATE(Table_SummaryPI[[#This Row],[MeassureCategory]],  \" - \", Table_SummaryPI[[#This Row],[ProposedMeasureCategory]],  \" - \", TEXT(Table_SummaryPI[[#This Row],[Size]],\"#,##0.00\"),\" \",Table_SummaryPI[[#This Row],[SizeUnit]]),\"\")","v":""},{"$f":"SUBSTITUTE(Table_PI[[#This Row],[Measure]],\"     \",\"\",1)","v":""},{"$f":"IF(Table_PI[[#This Row],[List 1]]<>\"\",Table_PI[[#This Row],[List 1]],\"\")","v":""},{"$f":"IF(Table_PI[[#This Row],[List 2]]<>\"\",Table_PI[[#This Row],[List 2]],\"\")","v":""},{"$f":"IF(Table_PI[[#This Row],[List 3]]<>\"\",Table_PI[[#This Row],[List 3]],\"\")","v":""},{"$f":"IF(Table_PI[[#This Row],[Manufacturer]]=\"\",\"\",Table_PI[[#This Row],[Manufacturer]])","v":""},{"$f":"IF(Table_PI[[#This Row],[Model Number]]=\"\",\"\",Table_PI[[#This Row],[Model Number]])","v":""},{"$f":"IF(Table_PI[[#This Row],[Serial Number(s)]]=\"\",\"\",Table_PI[[#This Row],[Serial Number(s)]])","v":""},null,{"$f":"IF(Table_PI[[#This Row],[Size]]=\"\",\"\",Table_PI[[#This Row],[Size]])","v":""},null,{"$f":"IFERROR(IF(AND(MeasureCalc(Table_PI[[#This Row],[Hide:\nFormula Name]],Table_SummaryPI[[#This Row],[Quantity]],Table_PI[[#This Row],[List 1]],Table_PI[[#This Row],[List 2]],Table_PI[[#This Row],[List 3]],Table_PI[[#This Row],[Size]],Table_PI[[#This Row],[Input 1]],Table_PI[[#This Row],[Input 2]],Table_PI[[#This Row],[Input 3]],Table_PI[[#This Row],[Input 4]],'Customer Information'!$AR$12,100,ROW())<>0,MeasureCalc(Table_PI[[#This Row],[Hide:\nFormula Name]],Table_SummaryPI[[#This Row],[Quantity]],Table_PI[[#This Row],[List 1]],Table_PI[[#This Row],[List 2]],Table_PI[[#This Row],[List 3]],Table_PI[[#This Row],[Size]],Table_PI[[#This Row],[Input 1]],Table_PI[[#This Row],[Input 2]],Table_PI[[#This Row],[Input 3]],Table_PI[[#This Row],[Input 4]],'Customer Information'!$AR$12,100,ROW())<>\"No Rebate\"),MeasureCalc(Table_PI[[#This Row],[Hide:\nFormula Name]],Table_SummaryPI[[#This Row],[Quantity]],Table_PI[[#This Row],[List 1]],Table_PI[[#This Row],[List 2]],Table_PI[[#This Row],[List 3]],Table_PI[[#This Row],[Size]],Table_PI[[#This Row],[Input 1]],Table_PI[[#This Row],[Input 2]],Table_PI[[#This Row],[Input 3]],Table_PI[[#This Row],[Input 4]],'Customer Information'!$AR$12,100,ROW()),\"\"),\"\")","v":""},{"$f":"IF(Table_PI[[#This Row],[Input 1]]<>\"\",Table_PI[[#This Row],[Input 1]],\"\")","v":""},null,{"$f":"IFERROR(IF(AND(MeasureCalc(Table_PI[[#This Row],[Hide:\nFormula Name]],Table_SummaryPI[[#This Row],[Quantity]],Table_PI[[#This Row],[List 1]],Table_PI[[#This Row],[List 2]],Table_PI[[#This Row],[List 3]],Table_PI[[#This Row],[Size]],Table_PI[[#This Row],[Input 1]],Table_PI[[#This Row],[Input 2]],Table_PI[[#This Row],[Input 3]],Table_PI[[#This Row],[Input 4]],'Customer Information'!$AR$12,101,ROW())<>0,MeasureCalc(Table_PI[[#This Row],[Hide:\nFormula Name]],Table_SummaryPI[[#This Row],[Quantity]],Table_PI[[#This Row],[List 1]],Table_PI[[#This Row],[List 2]],Table_PI[[#This Row],[List 3]],Table_PI[[#This Row],[Size]],Table_PI[[#This Row],[Input 1]],Table_PI[[#This Row],[Input 2]],Table_PI[[#This Row],[Input 3]],Table_PI[[#This Row],[Input 4]],'Customer Information'!$AR$12,101,ROW())<>\"No Rebate\"),MeasureCalc(Table_PI[[#This Row],[Hide:\nFormula Name]],Table_SummaryPI[[#This Row],[Quantity]],Table_PI[[#This Row],[List 1]],Table_PI[[#This Row],[List 2]],Table_PI[[#This Row],[List 3]],Table_PI[[#This Row],[Size]],Table_PI[[#This Row],[Input 1]],Table_PI[[#This Row],[Input 2]],Table_PI[[#This Row],[Input 3]],Table_PI[[#This Row],[Input 4]],'Customer Information'!$AR$12,101,ROW()),\"\"),\"\")","v":""},{"$f":"IF(Table_PI[[#This Row],[Input 2]]<>\"\",Table_PI[[#This Row],[Input 2]],\"\")","v":""},null,{"$f":"IFERROR(IF(AND(MeasureCalc(Table_PI[[#This Row],[Hide:\nFormula Name]],Table_SummaryPI[[#This Row],[Quantity]],Table_PI[[#This Row],[List 1]],Table_PI[[#This Row],[List 2]],Table_PI[[#This Row],[List 3]],Table_PI[[#This Row],[Size]],Table_PI[[#This Row],[Input 1]],Table_PI[[#This Row],[Input 2]],Table_PI[[#This Row],[Input 3]],Table_PI[[#This Row],[Input 4]],'Customer Information'!$AR$12,102,ROW())<>0,MeasureCalc(Table_PI[[#This Row],[Hide:\nFormula Name]],Table_SummaryPI[[#This Row],[Quantity]],Table_PI[[#This Row],[List 1]],Table_PI[[#This Row],[List 2]],Table_PI[[#This Row],[List 3]],Table_PI[[#This Row],[Size]],Table_PI[[#This Row],[Input 1]],Table_PI[[#This Row],[Input 2]],Table_PI[[#This Row],[Input 3]],Table_PI[[#This Row],[Input 4]],'Customer Information'!$AR$12,102,ROW())<>\"No Rebate\"),MeasureCalc(Table_PI[[#This Row],[Hide:\nFormula Name]],Table_SummaryPI[[#This Row],[Quantity]],Table_PI[[#This Row],[List 1]],Table_PI[[#This Row],[List 2]],Table_PI[[#This Row],[List 3]],Table_PI[[#This Row],[Size]],Table_PI[[#This Row],[Input 1]],Table_PI[[#This Row],[Input 2]],Table_PI[[#This Row],[Input 3]],Table_PI[[#This Row],[Input 4]],'Customer Information'!$AR$12,102,ROW()),\"\"),\"\")","v":""},{"$f":"IF(Table_PI[[#This Row],[Input 3]]<>\"\",Table_PI[[#This Row],[Input 3]],\"\")","v":""},null,{"$f":"IFERROR(IF(AND(MeasureCalc(Table_PI[[#This Row],[Hide:\nFormula Name]],Table_SummaryPI[[#This Row],[Quantity]],Table_PI[[#This Row],[List 1]],Table_PI[[#This Row],[List 2]],Table_PI[[#This Row],[List 3]],Table_PI[[#This Row],[Size]],Table_PI[[#This Row],[Input 1]],Table_PI[[#This Row],[Input 2]],Table_PI[[#This Row],[Input 3]],Table_PI[[#This Row],[Input 4]],'Customer Information'!$AR$12,103,ROW())<>0,MeasureCalc(Table_PI[[#This Row],[Hide:\nFormula Name]],Table_SummaryPI[[#This Row],[Quantity]],Table_PI[[#This Row],[List 1]],Table_PI[[#This Row],[List 2]],Table_PI[[#This Row],[List 3]],Table_PI[[#This Row],[Size]],Table_PI[[#This Row],[Input 1]],Table_PI[[#This Row],[Input 2]],Table_PI[[#This Row],[Input 3]],Table_PI[[#This Row],[Input 4]],'Customer Information'!$AR$12,103,ROW())<>\"No Rebate\"),MeasureCalc(Table_PI[[#This Row],[Hide:\nFormula Name]],Table_SummaryPI[[#This Row],[Quantity]],Table_PI[[#This Row],[List 1]],Table_PI[[#This Row],[List 2]],Table_PI[[#This Row],[List 3]],Table_PI[[#This Row],[Size]],Table_PI[[#This Row],[Input 1]],Table_PI[[#This Row],[Input 2]],Table_PI[[#This Row],[Input 3]],Table_PI[[#This Row],[Input 4]],'Customer Information'!$AR$12,103,ROW()),\"\"),\"\")","v":""},{"$f":"IF(Table_PI[[#This Row],[Input 4]]<>\"\",Table_PI[[#This Row],[Input 4]],\"\")","v":""},{"$f":"IF(Table_PI[[#This Row],[Quantity]]=\"\",\"\",Table_PI[[#This Row],[Quantity]])","v":""},{"$f":"IF(Table_PI[[#This Row],[Notes]]=\"\",\"\",Table_PI[[#This Row],[Notes]])","v":""},{"$f":"IF(OR(Table_PI[[#This Row],[Hide:\nBaseline kWh]]=\"\",Table_PI[[#This Row],[Hide:\nBaseline kWh]]=0),\"\",Table_PI[[#This Row],[Hide:\nBaseline kWh]])","v":""},{"$f":"IF(OR(Table_PI[[#This Row],[Hide:\nBaseline kW]]=\"\",Table_PI[[#This Row],[Hide:\nBaseline kW]]=0),\"\",Table_PI[[#This Row],[Hide:\nBaseline kW]])","v":""},{"$f":"IF(OR(Table_PI[[#This Row],[Hide:\nProposed kWh]]=\"\",Table_PI[[#This Row],[Hide:\nProposed kWh]]=0),\"\",Table_PI[[#This Row],[Hide:\nProposed kWh]])","v":""},{"$f":"IF(OR(Table_PI[[#This Row],[Hide:\nProposed kW]]=\"\",Table_PI[[#This Row],[Hide:\nProposed kW]]=0),\"\",Table_PI[[#This Row],[Hide:\nProposed kW]])","v":""},{"$f":"IF(OR(Table_PI[[#This Row],[Rebate]]=\"\",Table_PI[[#This Row],[Rebate]]=0),\"\",Table_PI[[#This Row],[Rebate]])","v":""},{"$f":"IF(OR(Table_PI[[#This Row],[Hide:\nIncremental Cost]]=\"\",Table_PI[[#This Row],[Hide:\nIncremental Cost]]=0),\"\",Table_PI[[#This Row],[Hide:\nIncremental Cost]])","v":""},{"$f":"IFERROR(IF(Table_SummaryPI[[#This Row],[kWhSavings]]=\"\",\"\",ROUND(Table_SummaryPI[[#This Row],[kWhSavings]]/$AG$401*'Customer Information'!$BC$17,2)),0)","v":""},{"$f":"IF(OR(Table_PI[[#This Row],[Annual kWh]]=\"\",Table_PI[[#This Row],[Annual kWh]]=0),\"\",Table_PI[[#This Row],[Annual kWh]])","v":""},{"$f":"IF(OR(Table_PI[[#This Row],[Peak kW]]=\"\",Table_PI[[#This Row],[Peak kW]]=0),\"\",Table_PI[[#This Row],[Peak kW]])","v":""},{"$f":"IFERROR(IF(Table_SummaryPI[[#This Row],[kWhSavings]]=\"\",\"\",$AU$9*Table_SummaryPI[[#This Row],[kWhSavings]]),0)","v":""},{"$f":"IFERROR(IF(Table_SummaryPI[[#This Row],[kWhSavings]]=\"\",\"\",$AU$14*Table_SummaryPI[[#This Row],[kWhSavings]]),0)","v":""},{"$f":"IFERROR(IF(Table_SummaryPI[[#This Row],[kWhSavings]]=\"\",\"\",$AU$18*Table_SummaryPI[[#This Row],[kWhSavings]]),0)","v":""},{"$f":"IFERROR(IF(Table_SummaryPI[[#This Row],[kWhSavings]]=\"\",\"\",$AU$22*Table_SummaryPI[[#This Row],[kWhSavings]]),0)","v":""},{"$f":"IFERROR(IF(MeasureCalc(Table_PI[[#This Row],[Hide:\nFormula Name]],Table_SummaryPI[[#This Row],[Quantity]],Table_PI[[#This Row],[List 1]],Table_PI[[#This Row],[List 2]],Table_PI[[#This Row],[List 3]],Table_PI[[#This Row],[Size]],Table_PI[[#This Row],[Input 1]],Table_PI[[#This Row],[Input 2]],Table_PI[[#This Row],[Input 3]],Table_PI[[#This Row],[Input 4]],'Customer Information'!$AR$12,200,ROW())<>\"No Rebate\",MeasureCalc(Table_PI[[#This Row],[Hide:\nFormula Name]],Table_SummaryPI[[#This Row],[Quantity]],Table_PI[[#This Row],[List 1]],Table_PI[[#This Row],[List 2]],Table_PI[[#This Row],[List 3]],Table_PI[[#This Row],[Size]],Table_PI[[#This Row],[Input 1]],Table_PI[[#This Row],[Input 2]],Table_PI[[#This Row],[Input 3]],Table_PI[[#This Row],[Input 4]],'Customer Information'!$AR$12,200,ROW()),\"\"),\"\")","v":""},{"$f":"IFERROR(IF(MeasureCalc(Table_PI[[#This Row],[Hide:\nFormula Name]],Table_SummaryPI[[#This Row],[Quantity]],Table_PI[[#This Row],[List 1]],Table_PI[[#This Row],[List 2]],Table_PI[[#This Row],[List 3]],Table_PI[[#This Row],[Size]],Table_PI[[#This Row],[Input 1]],Table_PI[[#This Row],[Input 2]],Table_PI[[#This Row],[Input 3]],Table_PI[[#This Row],[Input 4]],'Customer Information'!$AR$12,201,ROW())<>\"No Rebate\",MeasureCalc(Table_PI[[#This Row],[Hide:\nFormula Name]],Table_SummaryPI[[#This Row],[Quantity]],Table_PI[[#This Row],[List 1]],Table_PI[[#This Row],[List 2]],Table_PI[[#This Row],[List 3]],Table_PI[[#This Row],[Size]],Table_PI[[#This Row],[Input 1]],Table_PI[[#This Row],[Input 2]],Table_PI[[#This Row],[Input 3]],Table_PI[[#This Row],[Input 4]],'Customer Information'!$AR$12,201,ROW()),\"\"),\"\")","v":""}]
[{"$f":"Table_PI[[#This Row],[Line No.]]","v":""},{"$f":"IF(Table_SummaryPI[[#This Row],[MeassureCategory]]<>\"\",CONCATENATE(Table_SummaryPI[[#This Row],[MeassureCategory]],  \" - \", Table_SummaryPI[[#This Row],[ProposedMeasureCategory]],  \" - \", TEXT(Table_SummaryPI[[#This Row],[Size]],\"#,##0.00\"),\" \",Table_SummaryPI[[#This Row],[SizeUnit]]),\"\")","v":""},{"$f":"SUBSTITUTE(Table_PI[[#This Row],[Measure]],\"     \",\"\",1)","v":""},{"$f":"IF(Table_PI[[#This Row],[List 1]]<>\"\",Table_PI[[#This Row],[List 1]],\"\")","v":""},{"$f":"IF(Table_PI[[#This Row],[List 2]]<>\"\",Table_PI[[#This Row],[List 2]],\"\")","v":""},{"$f":"IF(Table_PI[[#This Row],[List 3]]<>\"\",Table_PI[[#This Row],[List 3]],\"\")","v":""},{"$f":"IF(Table_PI[[#This Row],[Manufacturer]]=\"\",\"\",Table_PI[[#This Row],[Manufacturer]])","v":""},{"$f":"IF(Table_PI[[#This Row],[Model Number]]=\"\",\"\",Table_PI[[#This Row],[Model Number]])","v":""},{"$f":"IF(Table_PI[[#This Row],[Serial Number(s)]]=\"\",\"\",Table_PI[[#This Row],[Serial Number(s)]])","v":""},null,{"$f":"IF(Table_PI[[#This Row],[Size]]=\"\",\"\",Table_PI[[#This Row],[Size]])","v":""},null,{"$f":"IFERROR(IF(AND(MeasureCalc(Table_PI[[#This Row],[Hide:\nFormula Name]],Table_SummaryPI[[#This Row],[Quantity]],Table_PI[[#This Row],[List 1]],Table_PI[[#This Row],[List 2]],Table_PI[[#This Row],[List 3]],Table_PI[[#This Row],[Size]],Table_PI[[#This Row],[Input 1]],Table_PI[[#This Row],[Input 2]],Table_PI[[#This Row],[Input 3]],Table_PI[[#This Row],[Input 4]],'Customer Information'!$AR$12,100,ROW())<>0,MeasureCalc(Table_PI[[#This Row],[Hide:\nFormula Name]],Table_SummaryPI[[#This Row],[Quantity]],Table_PI[[#This Row],[List 1]],Table_PI[[#This Row],[List 2]],Table_PI[[#This Row],[List 3]],Table_PI[[#This Row],[Size]],Table_PI[[#This Row],[Input 1]],Table_PI[[#This Row],[Input 2]],Table_PI[[#This Row],[Input 3]],Table_PI[[#This Row],[Input 4]],'Customer Information'!$AR$12,100,ROW())<>\"No Rebate\"),MeasureCalc(Table_PI[[#This Row],[Hide:\nFormula Name]],Table_SummaryPI[[#This Row],[Quantity]],Table_PI[[#This Row],[List 1]],Table_PI[[#This Row],[List 2]],Table_PI[[#This Row],[List 3]],Table_PI[[#This Row],[Size]],Table_PI[[#This Row],[Input 1]],Table_PI[[#This Row],[Input 2]],Table_PI[[#This Row],[Input 3]],Table_PI[[#This Row],[Input 4]],'Customer Information'!$AR$12,100,ROW()),\"\"),\"\")","v":""},{"$f":"IF(Table_PI[[#This Row],[Input 1]]<>\"\",Table_PI[[#This Row],[Input 1]],\"\")","v":""},null,{"$f":"IFERROR(IF(AND(MeasureCalc(Table_PI[[#This Row],[Hide:\nFormula Name]],Table_SummaryPI[[#This Row],[Quantity]],Table_PI[[#This Row],[List 1]],Table_PI[[#This Row],[List 2]],Table_PI[[#This Row],[List 3]],Table_PI[[#This Row],[Size]],Table_PI[[#This Row],[Input 1]],Table_PI[[#This Row],[Input 2]],Table_PI[[#This Row],[Input 3]],Table_PI[[#This Row],[Input 4]],'Customer Information'!$AR$12,101,ROW())<>0,MeasureCalc(Table_PI[[#This Row],[Hide:\nFormula Name]],Table_SummaryPI[[#This Row],[Quantity]],Table_PI[[#This Row],[List 1]],Table_PI[[#This Row],[List 2]],Table_PI[[#This Row],[List 3]],Table_PI[[#This Row],[Size]],Table_PI[[#This Row],[Input 1]],Table_PI[[#This Row],[Input 2]],Table_PI[[#This Row],[Input 3]],Table_PI[[#This Row],[Input 4]],'Customer Information'!$AR$12,101,ROW())<>\"No Rebate\"),MeasureCalc(Table_PI[[#This Row],[Hide:\nFormula Name]],Table_SummaryPI[[#This Row],[Quantity]],Table_PI[[#This Row],[List 1]],Table_PI[[#This Row],[List 2]],Table_PI[[#This Row],[List 3]],Table_PI[[#This Row],[Size]],Table_PI[[#This Row],[Input 1]],Table_PI[[#This Row],[Input 2]],Table_PI[[#This Row],[Input 3]],Table_PI[[#This Row],[Input 4]],'Customer Information'!$AR$12,101,ROW()),\"\"),\"\")","v":""},{"$f":"IF(Table_PI[[#This Row],[Input 2]]<>\"\",Table_PI[[#This Row],[Input 2]],\"\")","v":""},null,{"$f":"IFERROR(IF(AND(MeasureCalc(Table_PI[[#This Row],[Hide:\nFormula Name]],Table_SummaryPI[[#This Row],[Quantity]],Table_PI[[#This Row],[List 1]],Table_PI[[#This Row],[List 2]],Table_PI[[#This Row],[List 3]],Table_PI[[#This Row],[Size]],Table_PI[[#This Row],[Input 1]],Table_PI[[#This Row],[Input 2]],Table_PI[[#This Row],[Input 3]],Table_PI[[#This Row],[Input 4]],'Customer Information'!$AR$12,102,ROW())<>0,MeasureCalc(Table_PI[[#This Row],[Hide:\nFormula Name]],Table_SummaryPI[[#This Row],[Quantity]],Table_PI[[#This Row],[List 1]],Table_PI[[#This Row],[List 2]],Table_PI[[#This Row],[List 3]],Table_PI[[#This Row],[Size]],Table_PI[[#This Row],[Input 1]],Table_PI[[#This Row],[Input 2]],Table_PI[[#This Row],[Input 3]],Table_PI[[#This Row],[Input 4]],'Customer Information'!$AR$12,102,ROW())<>\"No Rebate\"),MeasureCalc(Table_PI[[#This Row],[Hide:\nFormula Name]],Table_SummaryPI[[#This Row],[Quantity]],Table_PI[[#This Row],[List 1]],Table_PI[[#This Row],[List 2]],Table_PI[[#This Row],[List 3]],Table_PI[[#This Row],[Size]],Table_PI[[#This Row],[Input 1]],Table_PI[[#This Row],[Input 2]],Table_PI[[#This Row],[Input 3]],Table_PI[[#This Row],[Input 4]],'Customer Information'!$AR$12,102,ROW()),\"\"),\"\")","v":""},{"$f":"IF(Table_PI[[#This Row],[Input 3]]<>\"\",Table_PI[[#This Row],[Input 3]],\"\")","v":""},null,{"$f":"IFERROR(IF(AND(MeasureCalc(Table_PI[[#This Row],[Hide:\nFormula Name]],Table_SummaryPI[[#This Row],[Quantity]],Table_PI[[#This Row],[List 1]],Table_PI[[#This Row],[List 2]],Table_PI[[#This Row],[List 3]],Table_PI[[#This Row],[Size]],Table_PI[[#This Row],[Input 1]],Table_PI[[#This Row],[Input 2]],Table_PI[[#This Row],[Input 3]],Table_PI[[#This Row],[Input 4]],'Customer Information'!$AR$12,103,ROW())<>0,MeasureCalc(Table_PI[[#This Row],[Hide:\nFormula Name]],Table_SummaryPI[[#This Row],[Quantity]],Table_PI[[#This Row],[List 1]],Table_PI[[#This Row],[List 2]],Table_PI[[#This Row],[List 3]],Table_PI[[#This Row],[Size]],Table_PI[[#This Row],[Input 1]],Table_PI[[#This Row],[Input 2]],Table_PI[[#This Row],[Input 3]],Table_PI[[#This Row],[Input 4]],'Customer Information'!$AR$12,103,ROW())<>\"No Rebate\"),MeasureCalc(Table_PI[[#This Row],[Hide:\nFormula Name]],Table_SummaryPI[[#This Row],[Quantity]],Table_PI[[#This Row],[List 1]],Table_PI[[#This Row],[List 2]],Table_PI[[#This Row],[List 3]],Table_PI[[#This Row],[Size]],Table_PI[[#This Row],[Input 1]],Table_PI[[#This Row],[Input 2]],Table_PI[[#This Row],[Input 3]],Table_PI[[#This Row],[Input 4]],'Customer Information'!$AR$12,103,ROW()),\"\"),\"\")","v":""},{"$f":"IF(Table_PI[[#This Row],[Input 4]]<>\"\",Table_PI[[#This Row],[Input 4]],\"\")","v":""},{"$f":"IF(Table_PI[[#This Row],[Quantity]]=\"\",\"\",Table_PI[[#This Row],[Quantity]])","v":""},{"$f":"IF(Table_PI[[#This Row],[Notes]]=\"\",\"\",Table_PI[[#This Row],[Notes]])","v":""},{"$f":"IF(OR(Table_PI[[#This Row],[Hide:\nBaseline kWh]]=\"\",Table_PI[[#This Row],[Hide:\nBaseline kWh]]=0),\"\",Table_PI[[#This Row],[Hide:\nBaseline kWh]])","v":""},{"$f":"IF(OR(Table_PI[[#This Row],[Hide:\nBaseline kW]]=\"\",Table_PI[[#This Row],[Hide:\nBaseline kW]]=0),\"\",Table_PI[[#This Row],[Hide:\nBaseline kW]])","v":""},{"$f":"IF(OR(Table_PI[[#This Row],[Hide:\nProposed kWh]]=\"\",Table_PI[[#This Row],[Hide:\nProposed kWh]]=0),\"\",Table_PI[[#This Row],[Hide:\nProposed kWh]])","v":""},{"$f":"IF(OR(Table_PI[[#This Row],[Hide:\nProposed kW]]=\"\",Table_PI[[#This Row],[Hide:\nProposed kW]]=0),\"\",Table_PI[[#This Row],[Hide:\nProposed kW]])","v":""},{"$f":"IF(OR(Table_PI[[#This Row],[Rebate]]=\"\",Table_PI[[#This Row],[Rebate]]=0),\"\",Table_PI[[#This Row],[Rebate]])","v":""},{"$f":"IF(OR(Table_PI[[#This Row],[Hide:\nIncremental Cost]]=\"\",Table_PI[[#This Row],[Hide:\nIncremental Cost]]=0),\"\",Table_PI[[#This Row],[Hide:\nIncremental Cost]])","v":""},{"$f":"IFERROR(IF(Table_SummaryPI[[#This Row],[kWhSavings]]=\"\",\"\",ROUND(Table_SummaryPI[[#This Row],[kWhSavings]]/$AG$401*'Customer Information'!$BC$17,2)),0)","v":""},{"$f":"IF(OR(Table_PI[[#This Row],[Annual kWh]]=\"\",Table_PI[[#This Row],[Annual kWh]]=0),\"\",Table_PI[[#This Row],[Annual kWh]])","v":""},{"$f":"IF(OR(Table_PI[[#This Row],[Peak kW]]=\"\",Table_PI[[#This Row],[Peak kW]]=0),\"\",Table_PI[[#This Row],[Peak kW]])","v":""},{"$f":"IFERROR(IF(Table_SummaryPI[[#This Row],[kWhSavings]]=\"\",\"\",$AU$9*Table_SummaryPI[[#This Row],[kWhSavings]]),0)","v":""},{"$f":"IFERROR(IF(Table_SummaryPI[[#This Row],[kWhSavings]]=\"\",\"\",$AU$14*Table_SummaryPI[[#This Row],[kWhSavings]]),0)","v":""},{"$f":"IFERROR(IF(Table_SummaryPI[[#This Row],[kWhSavings]]=\"\",\"\",$AU$18*Table_SummaryPI[[#This Row],[kWhSavings]]),0)","v":""},{"$f":"IFERROR(IF(Table_SummaryPI[[#This Row],[kWhSavings]]=\"\",\"\",$AU$22*Table_SummaryPI[[#This Row],[kWhSavings]]),0)","v":""},{"$f":"IFERROR(IF(MeasureCalc(Table_PI[[#This Row],[Hide:\nFormula Name]],Table_SummaryPI[[#This Row],[Quantity]],Table_PI[[#This Row],[List 1]],Table_PI[[#This Row],[List 2]],Table_PI[[#This Row],[List 3]],Table_PI[[#This Row],[Size]],Table_PI[[#This Row],[Input 1]],Table_PI[[#This Row],[Input 2]],Table_PI[[#This Row],[Input 3]],Table_PI[[#This Row],[Input 4]],'Customer Information'!$AR$12,200,ROW())<>\"No Rebate\",MeasureCalc(Table_PI[[#This Row],[Hide:\nFormula Name]],Table_SummaryPI[[#This Row],[Quantity]],Table_PI[[#This Row],[List 1]],Table_PI[[#This Row],[List 2]],Table_PI[[#This Row],[List 3]],Table_PI[[#This Row],[Size]],Table_PI[[#This Row],[Input 1]],Table_PI[[#This Row],[Input 2]],Table_PI[[#This Row],[Input 3]],Table_PI[[#This Row],[Input 4]],'Customer Information'!$AR$12,200,ROW()),\"\"),\"\")","v":""},{"$f":"IFERROR(IF(MeasureCalc(Table_PI[[#This Row],[Hide:\nFormula Name]],Table_SummaryPI[[#This Row],[Quantity]],Table_PI[[#This Row],[List 1]],Table_PI[[#This Row],[List 2]],Table_PI[[#This Row],[List 3]],Table_PI[[#This Row],[Size]],Table_PI[[#This Row],[Input 1]],Table_PI[[#This Row],[Input 2]],Table_PI[[#This Row],[Input 3]],Table_PI[[#This Row],[Input 4]],'Customer Information'!$AR$12,201,ROW())<>\"No Rebate\",MeasureCalc(Table_PI[[#This Row],[Hide:\nFormula Name]],Table_SummaryPI[[#This Row],[Quantity]],Table_PI[[#This Row],[List 1]],Table_PI[[#This Row],[List 2]],Table_PI[[#This Row],[List 3]],Table_PI[[#This Row],[Size]],Table_PI[[#This Row],[Input 1]],Table_PI[[#This Row],[Input 2]],Table_PI[[#This Row],[Input 3]],Table_PI[[#This Row],[Input 4]],'Customer Information'!$AR$12,201,ROW()),\"\"),\"\")","v":""}]
[{"$f":"Table_PI[[#This Row],[Line No.]]","v":""},{"$f":"IF(Table_SummaryPI[[#This Row],[MeassureCategory]]<>\"\",CONCATENATE(Table_SummaryPI[[#This Row],[MeassureCategory]],  \" - \", Table_SummaryPI[[#This Row],[ProposedMeasureCategory]],  \" - \", TEXT(Table_SummaryPI[[#This Row],[Size]],\"#,##0.00\"),\" \",Table_SummaryPI[[#This Row],[SizeUnit]]),\"\")","v":""},{"$f":"SUBSTITUTE(Table_PI[[#This Row],[Measure]],\"     \",\"\",1)","v":""},{"$f":"IF(Table_PI[[#This Row],[List 1]]<>\"\",Table_PI[[#This Row],[List 1]],\"\")","v":""},{"$f":"IF(Table_PI[[#This Row],[List 2]]<>\"\",Table_PI[[#This Row],[List 2]],\"\")","v":""},{"$f":"IF(Table_PI[[#This Row],[List 3]]<>\"\",Table_PI[[#This Row],[List 3]],\"\")","v":""},{"$f":"IF(Table_PI[[#This Row],[Manufacturer]]=\"\",\"\",Table_PI[[#This Row],[Manufacturer]])","v":""},{"$f":"IF(Table_PI[[#This Row],[Model Number]]=\"\",\"\",Table_PI[[#This Row],[Model Number]])","v":""},{"$f":"IF(Table_PI[[#This Row],[Serial Number(s)]]=\"\",\"\",Table_PI[[#This Row],[Serial Number(s)]])","v":""},null,{"$f":"IF(Table_PI[[#This Row],[Size]]=\"\",\"\",Table_PI[[#This Row],[Size]])","v":""},null,{"$f":"IFERROR(IF(AND(MeasureCalc(Table_PI[[#This Row],[Hide:\nFormula Name]],Table_SummaryPI[[#This Row],[Quantity]],Table_PI[[#This Row],[List 1]],Table_PI[[#This Row],[List 2]],Table_PI[[#This Row],[List 3]],Table_PI[[#This Row],[Size]],Table_PI[[#This Row],[Input 1]],Table_PI[[#This Row],[Input 2]],Table_PI[[#This Row],[Input 3]],Table_PI[[#This Row],[Input 4]],'Customer Information'!$AR$12,100,ROW())<>0,MeasureCalc(Table_PI[[#This Row],[Hide:\nFormula Name]],Table_SummaryPI[[#This Row],[Quantity]],Table_PI[[#This Row],[List 1]],Table_PI[[#This Row],[List 2]],Table_PI[[#This Row],[List 3]],Table_PI[[#This Row],[Size]],Table_PI[[#This Row],[Input 1]],Table_PI[[#This Row],[Input 2]],Table_PI[[#This Row],[Input 3]],Table_PI[[#This Row],[Input 4]],'Customer Information'!$AR$12,100,ROW())<>\"No Rebate\"),MeasureCalc(Table_PI[[#This Row],[Hide:\nFormula Name]],Table_SummaryPI[[#This Row],[Quantity]],Table_PI[[#This Row],[List 1]],Table_PI[[#This Row],[List 2]],Table_PI[[#This Row],[List 3]],Table_PI[[#This Row],[Size]],Table_PI[[#This Row],[Input 1]],Table_PI[[#This Row],[Input 2]],Table_PI[[#This Row],[Input 3]],Table_PI[[#This Row],[Input 4]],'Customer Information'!$AR$12,100,ROW()),\"\"),\"\")","v":""},{"$f":"IF(Table_PI[[#This Row],[Input 1]]<>\"\",Table_PI[[#This Row],[Input 1]],\"\")","v":""},null,{"$f":"IFERROR(IF(AND(MeasureCalc(Table_PI[[#This Row],[Hide:\nFormula Name]],Table_SummaryPI[[#This Row],[Quantity]],Table_PI[[#This Row],[List 1]],Table_PI[[#This Row],[List 2]],Table_PI[[#This Row],[List 3]],Table_PI[[#This Row],[Size]],Table_PI[[#This Row],[Input 1]],Table_PI[[#This Row],[Input 2]],Table_PI[[#This Row],[Input 3]],Table_PI[[#This Row],[Input 4]],'Customer Information'!$AR$12,101,ROW())<>0,MeasureCalc(Table_PI[[#This Row],[Hide:\nFormula Name]],Table_SummaryPI[[#This Row],[Quantity]],Table_PI[[#This Row],[List 1]],Table_PI[[#This Row],[List 2]],Table_PI[[#This Row],[List 3]],Table_PI[[#This Row],[Size]],Table_PI[[#This Row],[Input 1]],Table_PI[[#This Row],[Input 2]],Table_PI[[#This Row],[Input 3]],Table_PI[[#This Row],[Input 4]],'Customer Information'!$AR$12,101,ROW())<>\"No Rebate\"),MeasureCalc(Table_PI[[#This Row],[Hide:\nFormula Name]],Table_SummaryPI[[#This Row],[Quantity]],Table_PI[[#This Row],[List 1]],Table_PI[[#This Row],[List 2]],Table_PI[[#This Row],[List 3]],Table_PI[[#This Row],[Size]],Table_PI[[#This Row],[Input 1]],Table_PI[[#This Row],[Input 2]],Table_PI[[#This Row],[Input 3]],Table_PI[[#This Row],[Input 4]],'Customer Information'!$AR$12,101,ROW()),\"\"),\"\")","v":""},{"$f":"IF(Table_PI[[#This Row],[Input 2]]<>\"\",Table_PI[[#This Row],[Input 2]],\"\")","v":""},null,{"$f":"IFERROR(IF(AND(MeasureCalc(Table_PI[[#This Row],[Hide:\nFormula Name]],Table_SummaryPI[[#This Row],[Quantity]],Table_PI[[#This Row],[List 1]],Table_PI[[#This Row],[List 2]],Table_PI[[#This Row],[List 3]],Table_PI[[#This Row],[Size]],Table_PI[[#This Row],[Input 1]],Table_PI[[#This Row],[Input 2]],Table_PI[[#This Row],[Input 3]],Table_PI[[#This Row],[Input 4]],'Customer Information'!$AR$12,102,ROW())<>0,MeasureCalc(Table_PI[[#This Row],[Hide:\nFormula Name]],Table_SummaryPI[[#This Row],[Quantity]],Table_PI[[#This Row],[List 1]],Table_PI[[#This Row],[List 2]],Table_PI[[#This Row],[List 3]],Table_PI[[#This Row],[Size]],Table_PI[[#This Row],[Input 1]],Table_PI[[#This Row],[Input 2]],Table_PI[[#This Row],[Input 3]],Table_PI[[#This Row],[Input 4]],'Customer Information'!$AR$12,102,ROW())<>\"No Rebate\"),MeasureCalc(Table_PI[[#This Row],[Hide:\nFormula Name]],Table_SummaryPI[[#This Row],[Quantity]],Table_PI[[#This Row],[List 1]],Table_PI[[#This Row],[List 2]],Table_PI[[#This Row],[List 3]],Table_PI[[#This Row],[Size]],Table_PI[[#This Row],[Input 1]],Table_PI[[#This Row],[Input 2]],Table_PI[[#This Row],[Input 3]],Table_PI[[#This Row],[Input 4]],'Customer Information'!$AR$12,102,ROW()),\"\"),\"\")","v":""},{"$f":"IF(Table_PI[[#This Row],[Input 3]]<>\"\",Table_PI[[#This Row],[Input 3]],\"\")","v":""},null,{"$f":"IFERROR(IF(AND(MeasureCalc(Table_PI[[#This Row],[Hide:\nFormula Name]],Table_SummaryPI[[#This Row],[Quantity]],Table_PI[[#This Row],[List 1]],Table_PI[[#This Row],[List 2]],Table_PI[[#This Row],[List 3]],Table_PI[[#This Row],[Size]],Table_PI[[#This Row],[Input 1]],Table_PI[[#This Row],[Input 2]],Table_PI[[#This Row],[Input 3]],Table_PI[[#This Row],[Input 4]],'Customer Information'!$AR$12,103,ROW())<>0,MeasureCalc(Table_PI[[#This Row],[Hide:\nFormula Name]],Table_SummaryPI[[#This Row],[Quantity]],Table_PI[[#This Row],[List 1]],Table_PI[[#This Row],[List 2]],Table_PI[[#This Row],[List 3]],Table_PI[[#This Row],[Size]],Table_PI[[#This Row],[Input 1]],Table_PI[[#This Row],[Input 2]],Table_PI[[#This Row],[Input 3]],Table_PI[[#This Row],[Input 4]],'Customer Information'!$AR$12,103,ROW())<>\"No Rebate\"),MeasureCalc(Table_PI[[#This Row],[Hide:\nFormula Name]],Table_SummaryPI[[#This Row],[Quantity]],Table_PI[[#This Row],[List 1]],Table_PI[[#This Row],[List 2]],Table_PI[[#This Row],[List 3]],Table_PI[[#This Row],[Size]],Table_PI[[#This Row],[Input 1]],Table_PI[[#This Row],[Input 2]],Table_PI[[#This Row],[Input 3]],Table_PI[[#This Row],[Input 4]],'Customer Information'!$AR$12,103,ROW()),\"\"),\"\")","v":""},{"$f":"IF(Table_PI[[#This Row],[Input 4]]<>\"\",Table_PI[[#This Row],[Input 4]],\"\")","v":""},{"$f":"IF(Table_PI[[#This Row],[Quantity]]=\"\",\"\",Table_PI[[#This Row],[Quantity]])","v":""},{"$f":"IF(Table_PI[[#This Row],[Notes]]=\"\",\"\",Table_PI[[#This Row],[Notes]])","v":""},{"$f":"IF(OR(Table_PI[[#This Row],[Hide:\nBaseline kWh]]=\"\",Table_PI[[#This Row],[Hide:\nBaseline kWh]]=0),\"\",Table_PI[[#This Row],[Hide:\nBaseline kWh]])","v":""},{"$f":"IF(OR(Table_PI[[#This Row],[Hide:\nBaseline kW]]=\"\",Table_PI[[#This Row],[Hide:\nBaseline kW]]=0),\"\",Table_PI[[#This Row],[Hide:\nBaseline kW]])","v":""},{"$f":"IF(OR(Table_PI[[#This Row],[Hide:\nProposed kWh]]=\"\",Table_PI[[#This Row],[Hide:\nProposed kWh]]=0),\"\",Table_PI[[#This Row],[Hide:\nProposed kWh]])","v":""},{"$f":"IF(OR(Table_PI[[#This Row],[Hide:\nProposed kW]]=\"\",Table_PI[[#This Row],[Hide:\nProposed kW]]=0),\"\",Table_PI[[#This Row],[Hide:\nProposed kW]])","v":""},{"$f":"IF(OR(Table_PI[[#This Row],[Rebate]]=\"\",Table_PI[[#This Row],[Rebate]]=0),\"\",Table_PI[[#This Row],[Rebate]])","v":""},{"$f":"IF(OR(Table_PI[[#This Row],[Hide:\nIncremental Cost]]=\"\",Table_PI[[#This Row],[Hide:\nIncremental Cost]]=0),\"\",Table_PI[[#This Row],[Hide:\nIncremental Cost]])","v":""},{"$f":"IFERROR(IF(Table_SummaryPI[[#This Row],[kWhSavings]]=\"\",\"\",ROUND(Table_SummaryPI[[#This Row],[kWhSavings]]/$AG$401*'Customer Information'!$BC$17,2)),0)","v":""},{"$f":"IF(OR(Table_PI[[#This Row],[Annual kWh]]=\"\",Table_PI[[#This Row],[Annual kWh]]=0),\"\",Table_PI[[#This Row],[Annual kWh]])","v":""},{"$f":"IF(OR(Table_PI[[#This Row],[Peak kW]]=\"\",Table_PI[[#This Row],[Peak kW]]=0),\"\",Table_PI[[#This Row],[Peak kW]])","v":""},{"$f":"IFERROR(IF(Table_SummaryPI[[#This Row],[kWhSavings]]=\"\",\"\",$AU$9*Table_SummaryPI[[#This Row],[kWhSavings]]),0)","v":""},{"$f":"IFERROR(IF(Table_SummaryPI[[#This Row],[kWhSavings]]=\"\",\"\",$AU$14*Table_SummaryPI[[#This Row],[kWhSavings]]),0)","v":""},{"$f":"IFERROR(IF(Table_SummaryPI[[#This Row],[kWhSavings]]=\"\",\"\",$AU$18*Table_SummaryPI[[#This Row],[kWhSavings]]),0)","v":""},{"$f":"IFERROR(IF(Table_SummaryPI[[#This Row],[kWhSavings]]=\"\",\"\",$AU$22*Table_SummaryPI[[#This Row],[kWhSavings]]),0)","v":""},{"$f":"IFERROR(IF(MeasureCalc(Table_PI[[#This Row],[Hide:\nFormula Name]],Table_SummaryPI[[#This Row],[Quantity]],Table_PI[[#This Row],[List 1]],Table_PI[[#This Row],[List 2]],Table_PI[[#This Row],[List 3]],Table_PI[[#This Row],[Size]],Table_PI[[#This Row],[Input 1]],Table_PI[[#This Row],[Input 2]],Table_PI[[#This Row],[Input 3]],Table_PI[[#This Row],[Input 4]],'Customer Information'!$AR$12,200,ROW())<>\"No Rebate\",MeasureCalc(Table_PI[[#This Row],[Hide:\nFormula Name]],Table_SummaryPI[[#This Row],[Quantity]],Table_PI[[#This Row],[List 1]],Table_PI[[#This Row],[List 2]],Table_PI[[#This Row],[List 3]],Table_PI[[#This Row],[Size]],Table_PI[[#This Row],[Input 1]],Table_PI[[#This Row],[Input 2]],Table_PI[[#This Row],[Input 3]],Table_PI[[#This Row],[Input 4]],'Customer Information'!$AR$12,200,ROW()),\"\"),\"\")","v":""},{"$f":"IFERROR(IF(MeasureCalc(Table_PI[[#This Row],[Hide:\nFormula Name]],Table_SummaryPI[[#This Row],[Quantity]],Table_PI[[#This Row],[List 1]],Table_PI[[#This Row],[List 2]],Table_PI[[#This Row],[List 3]],Table_PI[[#This Row],[Size]],Table_PI[[#This Row],[Input 1]],Table_PI[[#This Row],[Input 2]],Table_PI[[#This Row],[Input 3]],Table_PI[[#This Row],[Input 4]],'Customer Information'!$AR$12,201,ROW())<>\"No Rebate\",MeasureCalc(Table_PI[[#This Row],[Hide:\nFormula Name]],Table_SummaryPI[[#This Row],[Quantity]],Table_PI[[#This Row],[List 1]],Table_PI[[#This Row],[List 2]],Table_PI[[#This Row],[List 3]],Table_PI[[#This Row],[Size]],Table_PI[[#This Row],[Input 1]],Table_PI[[#This Row],[Input 2]],Table_PI[[#This Row],[Input 3]],Table_PI[[#This Row],[Input 4]],'Customer Information'!$AR$12,201,ROW()),\"\"),\"\")","v":""}]
[{"$f":"Table_PI[[#This Row],[Line No.]]","v":""},{"$f":"IF(Table_SummaryPI[[#This Row],[MeassureCategory]]<>\"\",CONCATENATE(Table_SummaryPI[[#This Row],[MeassureCategory]],  \" - \", Table_SummaryPI[[#This Row],[ProposedMeasureCategory]],  \" - \", TEXT(Table_SummaryPI[[#This Row],[Size]],\"#,##0.00\"),\" \",Table_SummaryPI[[#This Row],[SizeUnit]]),\"\")","v":""},{"$f":"SUBSTITUTE(Table_PI[[#This Row],[Measure]],\"     \",\"\",1)","v":""},{"$f":"IF(Table_PI[[#This Row],[List 1]]<>\"\",Table_PI[[#This Row],[List 1]],\"\")","v":""},{"$f":"IF(Table_PI[[#This Row],[List 2]]<>\"\",Table_PI[[#This Row],[List 2]],\"\")","v":""},{"$f":"IF(Table_PI[[#This Row],[List 3]]<>\"\",Table_PI[[#This Row],[List 3]],\"\")","v":""},{"$f":"IF(Table_PI[[#This Row],[Manufacturer]]=\"\",\"\",Table_PI[[#This Row],[Manufacturer]])","v":""},{"$f":"IF(Table_PI[[#This Row],[Model Number]]=\"\",\"\",Table_PI[[#This Row],[Model Number]])","v":""},{"$f":"IF(Table_PI[[#This Row],[Serial Number(s)]]=\"\",\"\",Table_PI[[#This Row],[Serial Number(s)]])","v":""},null,{"$f":"IF(Table_PI[[#This Row],[Size]]=\"\",\"\",Table_PI[[#This Row],[Size]])","v":""},null,{"$f":"IFERROR(IF(AND(MeasureCalc(Table_PI[[#This Row],[Hide:\nFormula Name]],Table_SummaryPI[[#This Row],[Quantity]],Table_PI[[#This Row],[List 1]],Table_PI[[#This Row],[List 2]],Table_PI[[#This Row],[List 3]],Table_PI[[#This Row],[Size]],Table_PI[[#This Row],[Input 1]],Table_PI[[#This Row],[Input 2]],Table_PI[[#This Row],[Input 3]],Table_PI[[#This Row],[Input 4]],'Customer Information'!$AR$12,100,ROW())<>0,MeasureCalc(Table_PI[[#This Row],[Hide:\nFormula Name]],Table_SummaryPI[[#This Row],[Quantity]],Table_PI[[#This Row],[List 1]],Table_PI[[#This Row],[List 2]],Table_PI[[#This Row],[List 3]],Table_PI[[#This Row],[Size]],Table_PI[[#This Row],[Input 1]],Table_PI[[#This Row],[Input 2]],Table_PI[[#This Row],[Input 3]],Table_PI[[#This Row],[Input 4]],'Customer Information'!$AR$12,100,ROW())<>\"No Rebate\"),MeasureCalc(Table_PI[[#This Row],[Hide:\nFormula Name]],Table_SummaryPI[[#This Row],[Quantity]],Table_PI[[#This Row],[List 1]],Table_PI[[#This Row],[List 2]],Table_PI[[#This Row],[List 3]],Table_PI[[#This Row],[Size]],Table_PI[[#This Row],[Input 1]],Table_PI[[#This Row],[Input 2]],Table_PI[[#This Row],[Input 3]],Table_PI[[#This Row],[Input 4]],'Customer Information'!$AR$12,100,ROW()),\"\"),\"\")","v":""},{"$f":"IF(Table_PI[[#This Row],[Input 1]]<>\"\",Table_PI[[#This Row],[Input 1]],\"\")","v":""},null,{"$f":"IFERROR(IF(AND(MeasureCalc(Table_PI[[#This Row],[Hide:\nFormula Name]],Table_SummaryPI[[#This Row],[Quantity]],Table_PI[[#This Row],[List 1]],Table_PI[[#This Row],[List 2]],Table_PI[[#This Row],[List 3]],Table_PI[[#This Row],[Size]],Table_PI[[#This Row],[Input 1]],Table_PI[[#This Row],[Input 2]],Table_PI[[#This Row],[Input 3]],Table_PI[[#This Row],[Input 4]],'Customer Information'!$AR$12,101,ROW())<>0,MeasureCalc(Table_PI[[#This Row],[Hide:\nFormula Name]],Table_SummaryPI[[#This Row],[Quantity]],Table_PI[[#This Row],[List 1]],Table_PI[[#This Row],[List 2]],Table_PI[[#This Row],[List 3]],Table_PI[[#This Row],[Size]],Table_PI[[#This Row],[Input 1]],Table_PI[[#This Row],[Input 2]],Table_PI[[#This Row],[Input 3]],Table_PI[[#This Row],[Input 4]],'Customer Information'!$AR$12,101,ROW())<>\"No Rebate\"),MeasureCalc(Table_PI[[#This Row],[Hide:\nFormula Name]],Table_SummaryPI[[#This Row],[Quantity]],Table_PI[[#This Row],[List 1]],Table_PI[[#This Row],[List 2]],Table_PI[[#This Row],[List 3]],Table_PI[[#This Row],[Size]],Table_PI[[#This Row],[Input 1]],Table_PI[[#This Row],[Input 2]],Table_PI[[#This Row],[Input 3]],Table_PI[[#This Row],[Input 4]],'Customer Information'!$AR$12,101,ROW()),\"\"),\"\")","v":""},{"$f":"IF(Table_PI[[#This Row],[Input 2]]<>\"\",Table_PI[[#This Row],[Input 2]],\"\")","v":""},null,{"$f":"IFERROR(IF(AND(MeasureCalc(Table_PI[[#This Row],[Hide:\nFormula Name]],Table_SummaryPI[[#This Row],[Quantity]],Table_PI[[#This Row],[List 1]],Table_PI[[#This Row],[List 2]],Table_PI[[#This Row],[List 3]],Table_PI[[#This Row],[Size]],Table_PI[[#This Row],[Input 1]],Table_PI[[#This Row],[Input 2]],Table_PI[[#This Row],[Input 3]],Table_PI[[#This Row],[Input 4]],'Customer Information'!$AR$12,102,ROW())<>0,MeasureCalc(Table_PI[[#This Row],[Hide:\nFormula Name]],Table_SummaryPI[[#This Row],[Quantity]],Table_PI[[#This Row],[List 1]],Table_PI[[#This Row],[List 2]],Table_PI[[#This Row],[List 3]],Table_PI[[#This Row],[Size]],Table_PI[[#This Row],[Input 1]],Table_PI[[#This Row],[Input 2]],Table_PI[[#This Row],[Input 3]],Table_PI[[#This Row],[Input 4]],'Customer Information'!$AR$12,102,ROW())<>\"No Rebate\"),MeasureCalc(Table_PI[[#This Row],[Hide:\nFormula Name]],Table_SummaryPI[[#This Row],[Quantity]],Table_PI[[#This Row],[List 1]],Table_PI[[#This Row],[List 2]],Table_PI[[#This Row],[List 3]],Table_PI[[#This Row],[Size]],Table_PI[[#This Row],[Input 1]],Table_PI[[#This Row],[Input 2]],Table_PI[[#This Row],[Input 3]],Table_PI[[#This Row],[Input 4]],'Customer Information'!$AR$12,102,ROW()),\"\"),\"\")","v":""},{"$f":"IF(Table_PI[[#This Row],[Input 3]]<>\"\",Table_PI[[#This Row],[Input 3]],\"\")","v":""},null,{"$f":"IFERROR(IF(AND(MeasureCalc(Table_PI[[#This Row],[Hide:\nFormula Name]],Table_SummaryPI[[#This Row],[Quantity]],Table_PI[[#This Row],[List 1]],Table_PI[[#This Row],[List 2]],Table_PI[[#This Row],[List 3]],Table_PI[[#This Row],[Size]],Table_PI[[#This Row],[Input 1]],Table_PI[[#This Row],[Input 2]],Table_PI[[#This Row],[Input 3]],Table_PI[[#This Row],[Input 4]],'Customer Information'!$AR$12,103,ROW())<>0,MeasureCalc(Table_PI[[#This Row],[Hide:\nFormula Name]],Table_SummaryPI[[#This Row],[Quantity]],Table_PI[[#This Row],[List 1]],Table_PI[[#This Row],[List 2]],Table_PI[[#This Row],[List 3]],Table_PI[[#This Row],[Size]],Table_PI[[#This Row],[Input 1]],Table_PI[[#This Row],[Input 2]],Table_PI[[#This Row],[Input 3]],Table_PI[[#This Row],[Input 4]],'Customer Information'!$AR$12,103,ROW())<>\"No Rebate\"),MeasureCalc(Table_PI[[#This Row],[Hide:\nFormula Name]],Table_SummaryPI[[#This Row],[Quantity]],Table_PI[[#This Row],[List 1]],Table_PI[[#This Row],[List 2]],Table_PI[[#This Row],[List 3]],Table_PI[[#This Row],[Size]],Table_PI[[#This Row],[Input 1]],Table_PI[[#This Row],[Input 2]],Table_PI[[#This Row],[Input 3]],Table_PI[[#This Row],[Input 4]],'Customer Information'!$AR$12,103,ROW()),\"\"),\"\")","v":""},{"$f":"IF(Table_PI[[#This Row],[Input 4]]<>\"\",Table_PI[[#This Row],[Input 4]],\"\")","v":""},{"$f":"IF(Table_PI[[#This Row],[Quantity]]=\"\",\"\",Table_PI[[#This Row],[Quantity]])","v":""},{"$f":"IF(Table_PI[[#This Row],[Notes]]=\"\",\"\",Table_PI[[#This Row],[Notes]])","v":""},{"$f":"IF(OR(Table_PI[[#This Row],[Hide:\nBaseline kWh]]=\"\",Table_PI[[#This Row],[Hide:\nBaseline kWh]]=0),\"\",Table_PI[[#This Row],[Hide:\nBaseline kWh]])","v":""},{"$f":"IF(OR(Table_PI[[#This Row],[Hide:\nBaseline kW]]=\"\",Table_PI[[#This Row],[Hide:\nBaseline kW]]=0),\"\",Table_PI[[#This Row],[Hide:\nBaseline kW]])","v":""},{"$f":"IF(OR(Table_PI[[#This Row],[Hide:\nProposed kWh]]=\"\",Table_PI[[#This Row],[Hide:\nProposed kWh]]=0),\"\",Table_PI[[#This Row],[Hide:\nProposed kWh]])","v":""},{"$f":"IF(OR(Table_PI[[#This Row],[Hide:\nProposed kW]]=\"\",Table_PI[[#This Row],[Hide:\nProposed kW]]=0),\"\",Table_PI[[#This Row],[Hide:\nProposed kW]])","v":""},{"$f":"IF(OR(Table_PI[[#This Row],[Rebate]]=\"\",Table_PI[[#This Row],[Rebate]]=0),\"\",Table_PI[[#This Row],[Rebate]])","v":""},{"$f":"IF(OR(Table_PI[[#This Row],[Hide:\nIncremental Cost]]=\"\",Table_PI[[#This Row],[Hide:\nIncremental Cost]]=0),\"\",Table_PI[[#This Row],[Hide:\nIncremental Cost]])","v":""},{"$f":"IFERROR(IF(Table_SummaryPI[[#This Row],[kWhSavings]]=\"\",\"\",ROUND(Table_SummaryPI[[#This Row],[kWhSavings]]/$AG$401*'Customer Information'!$BC$17,2)),0)","v":""},{"$f":"IF(OR(Table_PI[[#This Row],[Annual kWh]]=\"\",Table_PI[[#This Row],[Annual kWh]]=0),\"\",Table_PI[[#This Row],[Annual kWh]])","v":""},{"$f":"IF(OR(Table_PI[[#This Row],[Peak kW]]=\"\",Table_PI[[#This Row],[Peak kW]]=0),\"\",Table_PI[[#This Row],[Peak kW]])","v":""},{"$f":"IFERROR(IF(Table_SummaryPI[[#This Row],[kWhSavings]]=\"\",\"\",$AU$9*Table_SummaryPI[[#This Row],[kWhSavings]]),0)","v":""},{"$f":"IFERROR(IF(Table_SummaryPI[[#This Row],[kWhSavings]]=\"\",\"\",$AU$14*Table_SummaryPI[[#This Row],[kWhSavings]]),0)","v":""},{"$f":"IFERROR(IF(Table_SummaryPI[[#This Row],[kWhSavings]]=\"\",\"\",$AU$18*Table_SummaryPI[[#This Row],[kWhSavings]]),0)","v":""},{"$f":"IFERROR(IF(Table_SummaryPI[[#This Row],[kWhSavings]]=\"\",\"\",$AU$22*Table_SummaryPI[[#This Row],[kWhSavings]]),0)","v":""},{"$f":"IFERROR(IF(MeasureCalc(Table_PI[[#This Row],[Hide:\nFormula Name]],Table_SummaryPI[[#This Row],[Quantity]],Table_PI[[#This Row],[List 1]],Table_PI[[#This Row],[List 2]],Table_PI[[#This Row],[List 3]],Table_PI[[#This Row],[Size]],Table_PI[[#This Row],[Input 1]],Table_PI[[#This Row],[Input 2]],Table_PI[[#This Row],[Input 3]],Table_PI[[#This Row],[Input 4]],'Customer Information'!$AR$12,200,ROW())<>\"No Rebate\",MeasureCalc(Table_PI[[#This Row],[Hide:\nFormula Name]],Table_SummaryPI[[#This Row],[Quantity]],Table_PI[[#This Row],[List 1]],Table_PI[[#This Row],[List 2]],Table_PI[[#This Row],[List 3]],Table_PI[[#This Row],[Size]],Table_PI[[#This Row],[Input 1]],Table_PI[[#This Row],[Input 2]],Table_PI[[#This Row],[Input 3]],Table_PI[[#This Row],[Input 4]],'Customer Information'!$AR$12,200,ROW()),\"\"),\"\")","v":""},{"$f":"IFERROR(IF(MeasureCalc(Table_PI[[#This Row],[Hide:\nFormula Name]],Table_SummaryPI[[#This Row],[Quantity]],Table_PI[[#This Row],[List 1]],Table_PI[[#This Row],[List 2]],Table_PI[[#This Row],[List 3]],Table_PI[[#This Row],[Size]],Table_PI[[#This Row],[Input 1]],Table_PI[[#This Row],[Input 2]],Table_PI[[#This Row],[Input 3]],Table_PI[[#This Row],[Input 4]],'Customer Information'!$AR$12,201,ROW())<>\"No Rebate\",MeasureCalc(Table_PI[[#This Row],[Hide:\nFormula Name]],Table_SummaryPI[[#This Row],[Quantity]],Table_PI[[#This Row],[List 1]],Table_PI[[#This Row],[List 2]],Table_PI[[#This Row],[List 3]],Table_PI[[#This Row],[Size]],Table_PI[[#This Row],[Input 1]],Table_PI[[#This Row],[Input 2]],Table_PI[[#This Row],[Input 3]],Table_PI[[#This Row],[Input 4]],'Customer Information'!$AR$12,201,ROW()),\"\"),\"\")","v":""}]
[{"$f":"Table_PI[[#This Row],[Line No.]]","v":""},{"$f":"IF(Table_SummaryPI[[#This Row],[MeassureCategory]]<>\"\",CONCATENATE(Table_SummaryPI[[#This Row],[MeassureCategory]],  \" - \", Table_SummaryPI[[#This Row],[ProposedMeasureCategory]],  \" - \", TEXT(Table_SummaryPI[[#This Row],[Size]],\"#,##0.00\"),\" \",Table_SummaryPI[[#This Row],[SizeUnit]]),\"\")","v":""},{"$f":"SUBSTITUTE(Table_PI[[#This Row],[Measure]],\"     \",\"\",1)","v":""},{"$f":"IF(Table_PI[[#This Row],[List 1]]<>\"\",Table_PI[[#This Row],[List 1]],\"\")","v":""},{"$f":"IF(Table_PI[[#This Row],[List 2]]<>\"\",Table_PI[[#This Row],[List 2]],\"\")","v":""},{"$f":"IF(Table_PI[[#This Row],[List 3]]<>\"\",Table_PI[[#This Row],[List 3]],\"\")","v":""},{"$f":"IF(Table_PI[[#This Row],[Manufacturer]]=\"\",\"\",Table_PI[[#This Row],[Manufacturer]])","v":""},{"$f":"IF(Table_PI[[#This Row],[Model Number]]=\"\",\"\",Table_PI[[#This Row],[Model Number]])","v":""},{"$f":"IF(Table_PI[[#This Row],[Serial Number(s)]]=\"\",\"\",Table_PI[[#This Row],[Serial Number(s)]])","v":""},null,{"$f":"IF(Table_PI[[#This Row],[Size]]=\"\",\"\",Table_PI[[#This Row],[Size]])","v":""},null,{"$f":"IFERROR(IF(AND(MeasureCalc(Table_PI[[#This Row],[Hide:\nFormula Name]],Table_SummaryPI[[#This Row],[Quantity]],Table_PI[[#This Row],[List 1]],Table_PI[[#This Row],[List 2]],Table_PI[[#This Row],[List 3]],Table_PI[[#This Row],[Size]],Table_PI[[#This Row],[Input 1]],Table_PI[[#This Row],[Input 2]],Table_PI[[#This Row],[Input 3]],Table_PI[[#This Row],[Input 4]],'Customer Information'!$AR$12,100,ROW())<>0,MeasureCalc(Table_PI[[#This Row],[Hide:\nFormula Name]],Table_SummaryPI[[#This Row],[Quantity]],Table_PI[[#This Row],[List 1]],Table_PI[[#This Row],[List 2]],Table_PI[[#This Row],[List 3]],Table_PI[[#This Row],[Size]],Table_PI[[#This Row],[Input 1]],Table_PI[[#This Row],[Input 2]],Table_PI[[#This Row],[Input 3]],Table_PI[[#This Row],[Input 4]],'Customer Information'!$AR$12,100,ROW())<>\"No Rebate\"),MeasureCalc(Table_PI[[#This Row],[Hide:\nFormula Name]],Table_SummaryPI[[#This Row],[Quantity]],Table_PI[[#This Row],[List 1]],Table_PI[[#This Row],[List 2]],Table_PI[[#This Row],[List 3]],Table_PI[[#This Row],[Size]],Table_PI[[#This Row],[Input 1]],Table_PI[[#This Row],[Input 2]],Table_PI[[#This Row],[Input 3]],Table_PI[[#This Row],[Input 4]],'Customer Information'!$AR$12,100,ROW()),\"\"),\"\")","v":""},{"$f":"IF(Table_PI[[#This Row],[Input 1]]<>\"\",Table_PI[[#This Row],[Input 1]],\"\")","v":""},null,{"$f":"IFERROR(IF(AND(MeasureCalc(Table_PI[[#This Row],[Hide:\nFormula Name]],Table_SummaryPI[[#This Row],[Quantity]],Table_PI[[#This Row],[List 1]],Table_PI[[#This Row],[List 2]],Table_PI[[#This Row],[List 3]],Table_PI[[#This Row],[Size]],Table_PI[[#This Row],[Input 1]],Table_PI[[#This Row],[Input 2]],Table_PI[[#This Row],[Input 3]],Table_PI[[#This Row],[Input 4]],'Customer Information'!$AR$12,101,ROW())<>0,MeasureCalc(Table_PI[[#This Row],[Hide:\nFormula Name]],Table_SummaryPI[[#This Row],[Quantity]],Table_PI[[#This Row],[List 1]],Table_PI[[#This Row],[List 2]],Table_PI[[#This Row],[List 3]],Table_PI[[#This Row],[Size]],Table_PI[[#This Row],[Input 1]],Table_PI[[#This Row],[Input 2]],Table_PI[[#This Row],[Input 3]],Table_PI[[#This Row],[Input 4]],'Customer Information'!$AR$12,101,ROW())<>\"No Rebate\"),MeasureCalc(Table_PI[[#This Row],[Hide:\nFormula Name]],Table_SummaryPI[[#This Row],[Quantity]],Table_PI[[#This Row],[List 1]],Table_PI[[#This Row],[List 2]],Table_PI[[#This Row],[List 3]],Table_PI[[#This Row],[Size]],Table_PI[[#This Row],[Input 1]],Table_PI[[#This Row],[Input 2]],Table_PI[[#This Row],[Input 3]],Table_PI[[#This Row],[Input 4]],'Customer Information'!$AR$12,101,ROW()),\"\"),\"\")","v":""},{"$f":"IF(Table_PI[[#This Row],[Input 2]]<>\"\",Table_PI[[#This Row],[Input 2]],\"\")","v":""},null,{"$f":"IFERROR(IF(AND(MeasureCalc(Table_PI[[#This Row],[Hide:\nFormula Name]],Table_SummaryPI[[#This Row],[Quantity]],Table_PI[[#This Row],[List 1]],Table_PI[[#This Row],[List 2]],Table_PI[[#This Row],[List 3]],Table_PI[[#This Row],[Size]],Table_PI[[#This Row],[Input 1]],Table_PI[[#This Row],[Input 2]],Table_PI[[#This Row],[Input 3]],Table_PI[[#This Row],[Input 4]],'Customer Information'!$AR$12,102,ROW())<>0,MeasureCalc(Table_PI[[#This Row],[Hide:\nFormula Name]],Table_SummaryPI[[#This Row],[Quantity]],Table_PI[[#This Row],[List 1]],Table_PI[[#This Row],[List 2]],Table_PI[[#This Row],[List 3]],Table_PI[[#This Row],[Size]],Table_PI[[#This Row],[Input 1]],Table_PI[[#This Row],[Input 2]],Table_PI[[#This Row],[Input 3]],Table_PI[[#This Row],[Input 4]],'Customer Information'!$AR$12,102,ROW())<>\"No Rebate\"),MeasureCalc(Table_PI[[#This Row],[Hide:\nFormula Name]],Table_SummaryPI[[#This Row],[Quantity]],Table_PI[[#This Row],[List 1]],Table_PI[[#This Row],[List 2]],Table_PI[[#This Row],[List 3]],Table_PI[[#This Row],[Size]],Table_PI[[#This Row],[Input 1]],Table_PI[[#This Row],[Input 2]],Table_PI[[#This Row],[Input 3]],Table_PI[[#This Row],[Input 4]],'Customer Information'!$AR$12,102,ROW()),\"\"),\"\")","v":""},{"$f":"IF(Table_PI[[#This Row],[Input 3]]<>\"\",Table_PI[[#This Row],[Input 3]],\"\")","v":""},null,{"$f":"IFERROR(IF(AND(MeasureCalc(Table_PI[[#This Row],[Hide:\nFormula Name]],Table_SummaryPI[[#This Row],[Quantity]],Table_PI[[#This Row],[List 1]],Table_PI[[#This Row],[List 2]],Table_PI[[#This Row],[List 3]],Table_PI[[#This Row],[Size]],Table_PI[[#This Row],[Input 1]],Table_PI[[#This Row],[Input 2]],Table_PI[[#This Row],[Input 3]],Table_PI[[#This Row],[Input 4]],'Customer Information'!$AR$12,103,ROW())<>0,MeasureCalc(Table_PI[[#This Row],[Hide:\nFormula Name]],Table_SummaryPI[[#This Row],[Quantity]],Table_PI[[#This Row],[List 1]],Table_PI[[#This Row],[List 2]],Table_PI[[#This Row],[List 3]],Table_PI[[#This Row],[Size]],Table_PI[[#This Row],[Input 1]],Table_PI[[#This Row],[Input 2]],Table_PI[[#This Row],[Input 3]],Table_PI[[#This Row],[Input 4]],'Customer Information'!$AR$12,103,ROW())<>\"No Rebate\"),MeasureCalc(Table_PI[[#This Row],[Hide:\nFormula Name]],Table_SummaryPI[[#This Row],[Quantity]],Table_PI[[#This Row],[List 1]],Table_PI[[#This Row],[List 2]],Table_PI[[#This Row],[List 3]],Table_PI[[#This Row],[Size]],Table_PI[[#This Row],[Input 1]],Table_PI[[#This Row],[Input 2]],Table_PI[[#This Row],[Input 3]],Table_PI[[#This Row],[Input 4]],'Customer Information'!$AR$12,103,ROW()),\"\"),\"\")","v":""},{"$f":"IF(Table_PI[[#This Row],[Input 4]]<>\"\",Table_PI[[#This Row],[Input 4]],\"\")","v":""},{"$f":"IF(Table_PI[[#This Row],[Quantity]]=\"\",\"\",Table_PI[[#This Row],[Quantity]])","v":""},{"$f":"IF(Table_PI[[#This Row],[Notes]]=\"\",\"\",Table_PI[[#This Row],[Notes]])","v":""},{"$f":"IF(OR(Table_PI[[#This Row],[Hide:\nBaseline kWh]]=\"\",Table_PI[[#This Row],[Hide:\nBaseline kWh]]=0),\"\",Table_PI[[#This Row],[Hide:\nBaseline kWh]])","v":""},{"$f":"IF(OR(Table_PI[[#This Row],[Hide:\nBaseline kW]]=\"\",Table_PI[[#This Row],[Hide:\nBaseline kW]]=0),\"\",Table_PI[[#This Row],[Hide:\nBaseline kW]])","v":""},{"$f":"IF(OR(Table_PI[[#This Row],[Hide:\nProposed kWh]]=\"\",Table_PI[[#This Row],[Hide:\nProposed kWh]]=0),\"\",Table_PI[[#This Row],[Hide:\nProposed kWh]])","v":""},{"$f":"IF(OR(Table_PI[[#This Row],[Hide:\nProposed kW]]=\"\",Table_PI[[#This Row],[Hide:\nProposed kW]]=0),\"\",Table_PI[[#This Row],[Hide:\nProposed kW]])","v":""},{"$f":"IF(OR(Table_PI[[#This Row],[Rebate]]=\"\",Table_PI[[#This Row],[Rebate]]=0),\"\",Table_PI[[#This Row],[Rebate]])","v":""},{"$f":"IF(OR(Table_PI[[#This Row],[Hide:\nIncremental Cost]]=\"\",Table_PI[[#This Row],[Hide:\nIncremental Cost]]=0),\"\",Table_PI[[#This Row],[Hide:\nIncremental Cost]])","v":""},{"$f":"IFERROR(IF(Table_SummaryPI[[#This Row],[kWhSavings]]=\"\",\"\",ROUND(Table_SummaryPI[[#This Row],[kWhSavings]]/$AG$401*'Customer Information'!$BC$17,2)),0)","v":""},{"$f":"IF(OR(Table_PI[[#This Row],[Annual kWh]]=\"\",Table_PI[[#This Row],[Annual kWh]]=0),\"\",Table_PI[[#This Row],[Annual kWh]])","v":""},{"$f":"IF(OR(Table_PI[[#This Row],[Peak kW]]=\"\",Table_PI[[#This Row],[Peak kW]]=0),\"\",Table_PI[[#This Row],[Peak kW]])","v":""},{"$f":"IFERROR(IF(Table_SummaryPI[[#This Row],[kWhSavings]]=\"\",\"\",$AU$9*Table_SummaryPI[[#This Row],[kWhSavings]]),0)","v":""},{"$f":"IFERROR(IF(Table_SummaryPI[[#This Row],[kWhSavings]]=\"\",\"\",$AU$14*Table_SummaryPI[[#This Row],[kWhSavings]]),0)","v":""},{"$f":"IFERROR(IF(Table_SummaryPI[[#This Row],[kWhSavings]]=\"\",\"\",$AU$18*Table_SummaryPI[[#This Row],[kWhSavings]]),0)","v":""},{"$f":"IFERROR(IF(Table_SummaryPI[[#This Row],[kWhSavings]]=\"\",\"\",$AU$22*Table_SummaryPI[[#This Row],[kWhSavings]]),0)","v":""},{"$f":"IFERROR(IF(MeasureCalc(Table_PI[[#This Row],[Hide:\nFormula Name]],Table_SummaryPI[[#This Row],[Quantity]],Table_PI[[#This Row],[List 1]],Table_PI[[#This Row],[List 2]],Table_PI[[#This Row],[List 3]],Table_PI[[#This Row],[Size]],Table_PI[[#This Row],[Input 1]],Table_PI[[#This Row],[Input 2]],Table_PI[[#This Row],[Input 3]],Table_PI[[#This Row],[Input 4]],'Customer Information'!$AR$12,200,ROW())<>\"No Rebate\",MeasureCalc(Table_PI[[#This Row],[Hide:\nFormula Name]],Table_SummaryPI[[#This Row],[Quantity]],Table_PI[[#This Row],[List 1]],Table_PI[[#This Row],[List 2]],Table_PI[[#This Row],[List 3]],Table_PI[[#This Row],[Size]],Table_PI[[#This Row],[Input 1]],Table_PI[[#This Row],[Input 2]],Table_PI[[#This Row],[Input 3]],Table_PI[[#This Row],[Input 4]],'Customer Information'!$AR$12,200,ROW()),\"\"),\"\")","v":""},{"$f":"IFERROR(IF(MeasureCalc(Table_PI[[#This Row],[Hide:\nFormula Name]],Table_SummaryPI[[#This Row],[Quantity]],Table_PI[[#This Row],[List 1]],Table_PI[[#This Row],[List 2]],Table_PI[[#This Row],[List 3]],Table_PI[[#This Row],[Size]],Table_PI[[#This Row],[Input 1]],Table_PI[[#This Row],[Input 2]],Table_PI[[#This Row],[Input 3]],Table_PI[[#This Row],[Input 4]],'Customer Information'!$AR$12,201,ROW())<>\"No Rebate\",MeasureCalc(Table_PI[[#This Row],[Hide:\nFormula Name]],Table_SummaryPI[[#This Row],[Quantity]],Table_PI[[#This Row],[List 1]],Table_PI[[#This Row],[List 2]],Table_PI[[#This Row],[List 3]],Table_PI[[#This Row],[Size]],Table_PI[[#This Row],[Input 1]],Table_PI[[#This Row],[Input 2]],Table_PI[[#This Row],[Input 3]],Table_PI[[#This Row],[Input 4]],'Customer Information'!$AR$12,201,ROW()),\"\"),\"\")","v":""}]
[{"$f":"Table_PI[[#This Row],[Line No.]]","v":""},{"$f":"IF(Table_SummaryPI[[#This Row],[MeassureCategory]]<>\"\",CONCATENATE(Table_SummaryPI[[#This Row],[MeassureCategory]],  \" - \", Table_SummaryPI[[#This Row],[ProposedMeasureCategory]],  \" - \", TEXT(Table_SummaryPI[[#This Row],[Size]],\"#,##0.00\"),\" \",Table_SummaryPI[[#This Row],[SizeUnit]]),\"\")","v":""},{"$f":"SUBSTITUTE(Table_PI[[#This Row],[Measure]],\"     \",\"\",1)","v":""},{"$f":"IF(Table_PI[[#This Row],[List 1]]<>\"\",Table_PI[[#This Row],[List 1]],\"\")","v":""},{"$f":"IF(Table_PI[[#This Row],[List 2]]<>\"\",Table_PI[[#This Row],[List 2]],\"\")","v":""},{"$f":"IF(Table_PI[[#This Row],[List 3]]<>\"\",Table_PI[[#This Row],[List 3]],\"\")","v":""},{"$f":"IF(Table_PI[[#This Row],[Manufacturer]]=\"\",\"\",Table_PI[[#This Row],[Manufacturer]])","v":""},{"$f":"IF(Table_PI[[#This Row],[Model Number]]=\"\",\"\",Table_PI[[#This Row],[Model Number]])","v":""},{"$f":"IF(Table_PI[[#This Row],[Serial Number(s)]]=\"\",\"\",Table_PI[[#This Row],[Serial Number(s)]])","v":""},null,{"$f":"IF(Table_PI[[#This Row],[Size]]=\"\",\"\",Table_PI[[#This Row],[Size]])","v":""},null,{"$f":"IFERROR(IF(AND(MeasureCalc(Table_PI[[#This Row],[Hide:\nFormula Name]],Table_SummaryPI[[#This Row],[Quantity]],Table_PI[[#This Row],[List 1]],Table_PI[[#This Row],[List 2]],Table_PI[[#This Row],[List 3]],Table_PI[[#This Row],[Size]],Table_PI[[#This Row],[Input 1]],Table_PI[[#This Row],[Input 2]],Table_PI[[#This Row],[Input 3]],Table_PI[[#This Row],[Input 4]],'Customer Information'!$AR$12,100,ROW())<>0,MeasureCalc(Table_PI[[#This Row],[Hide:\nFormula Name]],Table_SummaryPI[[#This Row],[Quantity]],Table_PI[[#This Row],[List 1]],Table_PI[[#This Row],[List 2]],Table_PI[[#This Row],[List 3]],Table_PI[[#This Row],[Size]],Table_PI[[#This Row],[Input 1]],Table_PI[[#This Row],[Input 2]],Table_PI[[#This Row],[Input 3]],Table_PI[[#This Row],[Input 4]],'Customer Information'!$AR$12,100,ROW())<>\"No Rebate\"),MeasureCalc(Table_PI[[#This Row],[Hide:\nFormula Name]],Table_SummaryPI[[#This Row],[Quantity]],Table_PI[[#This Row],[List 1]],Table_PI[[#This Row],[List 2]],Table_PI[[#This Row],[List 3]],Table_PI[[#This Row],[Size]],Table_PI[[#This Row],[Input 1]],Table_PI[[#This Row],[Input 2]],Table_PI[[#This Row],[Input 3]],Table_PI[[#This Row],[Input 4]],'Customer Information'!$AR$12,100,ROW()),\"\"),\"\")","v":""},{"$f":"IF(Table_PI[[#This Row],[Input 1]]<>\"\",Table_PI[[#This Row],[Input 1]],\"\")","v":""},null,{"$f":"IFERROR(IF(AND(MeasureCalc(Table_PI[[#This Row],[Hide:\nFormula Name]],Table_SummaryPI[[#This Row],[Quantity]],Table_PI[[#This Row],[List 1]],Table_PI[[#This Row],[List 2]],Table_PI[[#This Row],[List 3]],Table_PI[[#This Row],[Size]],Table_PI[[#This Row],[Input 1]],Table_PI[[#This Row],[Input 2]],Table_PI[[#This Row],[Input 3]],Table_PI[[#This Row],[Input 4]],'Customer Information'!$AR$12,101,ROW())<>0,MeasureCalc(Table_PI[[#This Row],[Hide:\nFormula Name]],Table_SummaryPI[[#This Row],[Quantity]],Table_PI[[#This Row],[List 1]],Table_PI[[#This Row],[List 2]],Table_PI[[#This Row],[List 3]],Table_PI[[#This Row],[Size]],Table_PI[[#This Row],[Input 1]],Table_PI[[#This Row],[Input 2]],Table_PI[[#This Row],[Input 3]],Table_PI[[#This Row],[Input 4]],'Customer Information'!$AR$12,101,ROW())<>\"No Rebate\"),MeasureCalc(Table_PI[[#This Row],[Hide:\nFormula Name]],Table_SummaryPI[[#This Row],[Quantity]],Table_PI[[#This Row],[List 1]],Table_PI[[#This Row],[List 2]],Table_PI[[#This Row],[List 3]],Table_PI[[#This Row],[Size]],Table_PI[[#This Row],[Input 1]],Table_PI[[#This Row],[Input 2]],Table_PI[[#This Row],[Input 3]],Table_PI[[#This Row],[Input 4]],'Customer Information'!$AR$12,101,ROW()),\"\"),\"\")","v":""},{"$f":"IF(Table_PI[[#This Row],[Input 2]]<>\"\",Table_PI[[#This Row],[Input 2]],\"\")","v":""},null,{"$f":"IFERROR(IF(AND(MeasureCalc(Table_PI[[#This Row],[Hide:\nFormula Name]],Table_SummaryPI[[#This Row],[Quantity]],Table_PI[[#This Row],[List 1]],Table_PI[[#This Row],[List 2]],Table_PI[[#This Row],[List 3]],Table_PI[[#This Row],[Size]],Table_PI[[#This Row],[Input 1]],Table_PI[[#This Row],[Input 2]],Table_PI[[#This Row],[Input 3]],Table_PI[[#This Row],[Input 4]],'Customer Information'!$AR$12,102,ROW())<>0,MeasureCalc(Table_PI[[#This Row],[Hide:\nFormula Name]],Table_SummaryPI[[#This Row],[Quantity]],Table_PI[[#This Row],[List 1]],Table_PI[[#This Row],[List 2]],Table_PI[[#This Row],[List 3]],Table_PI[[#This Row],[Size]],Table_PI[[#This Row],[Input 1]],Table_PI[[#This Row],[Input 2]],Table_PI[[#This Row],[Input 3]],Table_PI[[#This Row],[Input 4]],'Customer Information'!$AR$12,102,ROW())<>\"No Rebate\"),MeasureCalc(Table_PI[[#This Row],[Hide:\nFormula Name]],Table_SummaryPI[[#This Row],[Quantity]],Table_PI[[#This Row],[List 1]],Table_PI[[#This Row],[List 2]],Table_PI[[#This Row],[List 3]],Table_PI[[#This Row],[Size]],Table_PI[[#This Row],[Input 1]],Table_PI[[#This Row],[Input 2]],Table_PI[[#This Row],[Input 3]],Table_PI[[#This Row],[Input 4]],'Customer Information'!$AR$12,102,ROW()),\"\"),\"\")","v":""},{"$f":"IF(Table_PI[[#This Row],[Input 3]]<>\"\",Table_PI[[#This Row],[Input 3]],\"\")","v":""},null,{"$f":"IFERROR(IF(AND(MeasureCalc(Table_PI[[#This Row],[Hide:\nFormula Name]],Table_SummaryPI[[#This Row],[Quantity]],Table_PI[[#This Row],[List 1]],Table_PI[[#This Row],[List 2]],Table_PI[[#This Row],[List 3]],Table_PI[[#This Row],[Size]],Table_PI[[#This Row],[Input 1]],Table_PI[[#This Row],[Input 2]],Table_PI[[#This Row],[Input 3]],Table_PI[[#This Row],[Input 4]],'Customer Information'!$AR$12,103,ROW())<>0,MeasureCalc(Table_PI[[#This Row],[Hide:\nFormula Name]],Table_SummaryPI[[#This Row],[Quantity]],Table_PI[[#This Row],[List 1]],Table_PI[[#This Row],[List 2]],Table_PI[[#This Row],[List 3]],Table_PI[[#This Row],[Size]],Table_PI[[#This Row],[Input 1]],Table_PI[[#This Row],[Input 2]],Table_PI[[#This Row],[Input 3]],Table_PI[[#This Row],[Input 4]],'Customer Information'!$AR$12,103,ROW())<>\"No Rebate\"),MeasureCalc(Table_PI[[#This Row],[Hide:\nFormula Name]],Table_SummaryPI[[#This Row],[Quantity]],Table_PI[[#This Row],[List 1]],Table_PI[[#This Row],[List 2]],Table_PI[[#This Row],[List 3]],Table_PI[[#This Row],[Size]],Table_PI[[#This Row],[Input 1]],Table_PI[[#This Row],[Input 2]],Table_PI[[#This Row],[Input 3]],Table_PI[[#This Row],[Input 4]],'Customer Information'!$AR$12,103,ROW()),\"\"),\"\")","v":""},{"$f":"IF(Table_PI[[#This Row],[Input 4]]<>\"\",Table_PI[[#This Row],[Input 4]],\"\")","v":""},{"$f":"IF(Table_PI[[#This Row],[Quantity]]=\"\",\"\",Table_PI[[#This Row],[Quantity]])","v":""},{"$f":"IF(Table_PI[[#This Row],[Notes]]=\"\",\"\",Table_PI[[#This Row],[Notes]])","v":""},{"$f":"IF(OR(Table_PI[[#This Row],[Hide:\nBaseline kWh]]=\"\",Table_PI[[#This Row],[Hide:\nBaseline kWh]]=0),\"\",Table_PI[[#This Row],[Hide:\nBaseline kWh]])","v":""},{"$f":"IF(OR(Table_PI[[#This Row],[Hide:\nBaseline kW]]=\"\",Table_PI[[#This Row],[Hide:\nBaseline kW]]=0),\"\",Table_PI[[#This Row],[Hide:\nBaseline kW]])","v":""},{"$f":"IF(OR(Table_PI[[#This Row],[Hide:\nProposed kWh]]=\"\",Table_PI[[#This Row],[Hide:\nProposed kWh]]=0),\"\",Table_PI[[#This Row],[Hide:\nProposed kWh]])","v":""},{"$f":"IF(OR(Table_PI[[#This Row],[Hide:\nProposed kW]]=\"\",Table_PI[[#This Row],[Hide:\nProposed kW]]=0),\"\",Table_PI[[#This Row],[Hide:\nProposed kW]])","v":""},{"$f":"IF(OR(Table_PI[[#This Row],[Rebate]]=\"\",Table_PI[[#This Row],[Rebate]]=0),\"\",Table_PI[[#This Row],[Rebate]])","v":""},{"$f":"IF(OR(Table_PI[[#This Row],[Hide:\nIncremental Cost]]=\"\",Table_PI[[#This Row],[Hide:\nIncremental Cost]]=0),\"\",Table_PI[[#This Row],[Hide:\nIncremental Cost]])","v":""},{"$f":"IFERROR(IF(Table_SummaryPI[[#This Row],[kWhSavings]]=\"\",\"\",ROUND(Table_SummaryPI[[#This Row],[kWhSavings]]/$AG$401*'Customer Information'!$BC$17,2)),0)","v":""},{"$f":"IF(OR(Table_PI[[#This Row],[Annual kWh]]=\"\",Table_PI[[#This Row],[Annual kWh]]=0),\"\",Table_PI[[#This Row],[Annual kWh]])","v":""},{"$f":"IF(OR(Table_PI[[#This Row],[Peak kW]]=\"\",Table_PI[[#This Row],[Peak kW]]=0),\"\",Table_PI[[#This Row],[Peak kW]])","v":""},{"$f":"IFERROR(IF(Table_SummaryPI[[#This Row],[kWhSavings]]=\"\",\"\",$AU$9*Table_SummaryPI[[#This Row],[kWhSavings]]),0)","v":""},{"$f":"IFERROR(IF(Table_SummaryPI[[#This Row],[kWhSavings]]=\"\",\"\",$AU$14*Table_SummaryPI[[#This Row],[kWhSavings]]),0)","v":""},{"$f":"IFERROR(IF(Table_SummaryPI[[#This Row],[kWhSavings]]=\"\",\"\",$AU$18*Table_SummaryPI[[#This Row],[kWhSavings]]),0)","v":""},{"$f":"IFERROR(IF(Table_SummaryPI[[#This Row],[kWhSavings]]=\"\",\"\",$AU$22*Table_SummaryPI[[#This Row],[kWhSavings]]),0)","v":""},{"$f":"IFERROR(IF(MeasureCalc(Table_PI[[#This Row],[Hide:\nFormula Name]],Table_SummaryPI[[#This Row],[Quantity]],Table_PI[[#This Row],[List 1]],Table_PI[[#This Row],[List 2]],Table_PI[[#This Row],[List 3]],Table_PI[[#This Row],[Size]],Table_PI[[#This Row],[Input 1]],Table_PI[[#This Row],[Input 2]],Table_PI[[#This Row],[Input 3]],Table_PI[[#This Row],[Input 4]],'Customer Information'!$AR$12,200,ROW())<>\"No Rebate\",MeasureCalc(Table_PI[[#This Row],[Hide:\nFormula Name]],Table_SummaryPI[[#This Row],[Quantity]],Table_PI[[#This Row],[List 1]],Table_PI[[#This Row],[List 2]],Table_PI[[#This Row],[List 3]],Table_PI[[#This Row],[Size]],Table_PI[[#This Row],[Input 1]],Table_PI[[#This Row],[Input 2]],Table_PI[[#This Row],[Input 3]],Table_PI[[#This Row],[Input 4]],'Customer Information'!$AR$12,200,ROW()),\"\"),\"\")","v":""},{"$f":"IFERROR(IF(MeasureCalc(Table_PI[[#This Row],[Hide:\nFormula Name]],Table_SummaryPI[[#This Row],[Quantity]],Table_PI[[#This Row],[List 1]],Table_PI[[#This Row],[List 2]],Table_PI[[#This Row],[List 3]],Table_PI[[#This Row],[Size]],Table_PI[[#This Row],[Input 1]],Table_PI[[#This Row],[Input 2]],Table_PI[[#This Row],[Input 3]],Table_PI[[#This Row],[Input 4]],'Customer Information'!$AR$12,201,ROW())<>\"No Rebate\",MeasureCalc(Table_PI[[#This Row],[Hide:\nFormula Name]],Table_SummaryPI[[#This Row],[Quantity]],Table_PI[[#This Row],[List 1]],Table_PI[[#This Row],[List 2]],Table_PI[[#This Row],[List 3]],Table_PI[[#This Row],[Size]],Table_PI[[#This Row],[Input 1]],Table_PI[[#This Row],[Input 2]],Table_PI[[#This Row],[Input 3]],Table_PI[[#This Row],[Input 4]],'Customer Information'!$AR$12,201,ROW()),\"\"),\"\")","v":""}]
[{"$f":"Table_PI[[#This Row],[Line No.]]","v":""},{"$f":"IF(Table_SummaryPI[[#This Row],[MeassureCategory]]<>\"\",CONCATENATE(Table_SummaryPI[[#This Row],[MeassureCategory]],  \" - \", Table_SummaryPI[[#This Row],[ProposedMeasureCategory]],  \" - \", TEXT(Table_SummaryPI[[#This Row],[Size]],\"#,##0.00\"),\" \",Table_SummaryPI[[#This Row],[SizeUnit]]),\"\")","v":""},{"$f":"SUBSTITUTE(Table_PI[[#This Row],[Measure]],\"     \",\"\",1)","v":""},{"$f":"IF(Table_PI[[#This Row],[List 1]]<>\"\",Table_PI[[#This Row],[List 1]],\"\")","v":""},{"$f":"IF(Table_PI[[#This Row],[List 2]]<>\"\",Table_PI[[#This Row],[List 2]],\"\")","v":""},{"$f":"IF(Table_PI[[#This Row],[List 3]]<>\"\",Table_PI[[#This Row],[List 3]],\"\")","v":""},{"$f":"IF(Table_PI[[#This Row],[Manufacturer]]=\"\",\"\",Table_PI[[#This Row],[Manufacturer]])","v":""},{"$f":"IF(Table_PI[[#This Row],[Model Number]]=\"\",\"\",Table_PI[[#This Row],[Model Number]])","v":""},{"$f":"IF(Table_PI[[#This Row],[Serial Number(s)]]=\"\",\"\",Table_PI[[#This Row],[Serial Number(s)]])","v":""},null,{"$f":"IF(Table_PI[[#This Row],[Size]]=\"\",\"\",Table_PI[[#This Row],[Size]])","v":""},null,{"$f":"IFERROR(IF(AND(MeasureCalc(Table_PI[[#This Row],[Hide:\nFormula Name]],Table_SummaryPI[[#This Row],[Quantity]],Table_PI[[#This Row],[List 1]],Table_PI[[#This Row],[List 2]],Table_PI[[#This Row],[List 3]],Table_PI[[#This Row],[Size]],Table_PI[[#This Row],[Input 1]],Table_PI[[#This Row],[Input 2]],Table_PI[[#This Row],[Input 3]],Table_PI[[#This Row],[Input 4]],'Customer Information'!$AR$12,100,ROW())<>0,MeasureCalc(Table_PI[[#This Row],[Hide:\nFormula Name]],Table_SummaryPI[[#This Row],[Quantity]],Table_PI[[#This Row],[List 1]],Table_PI[[#This Row],[List 2]],Table_PI[[#This Row],[List 3]],Table_PI[[#This Row],[Size]],Table_PI[[#This Row],[Input 1]],Table_PI[[#This Row],[Input 2]],Table_PI[[#This Row],[Input 3]],Table_PI[[#This Row],[Input 4]],'Customer Information'!$AR$12,100,ROW())<>\"No Rebate\"),MeasureCalc(Table_PI[[#This Row],[Hide:\nFormula Name]],Table_SummaryPI[[#This Row],[Quantity]],Table_PI[[#This Row],[List 1]],Table_PI[[#This Row],[List 2]],Table_PI[[#This Row],[List 3]],Table_PI[[#This Row],[Size]],Table_PI[[#This Row],[Input 1]],Table_PI[[#This Row],[Input 2]],Table_PI[[#This Row],[Input 3]],Table_PI[[#This Row],[Input 4]],'Customer Information'!$AR$12,100,ROW()),\"\"),\"\")","v":""},{"$f":"IF(Table_PI[[#This Row],[Input 1]]<>\"\",Table_PI[[#This Row],[Input 1]],\"\")","v":""},null,{"$f":"IFERROR(IF(AND(MeasureCalc(Table_PI[[#This Row],[Hide:\nFormula Name]],Table_SummaryPI[[#This Row],[Quantity]],Table_PI[[#This Row],[List 1]],Table_PI[[#This Row],[List 2]],Table_PI[[#This Row],[List 3]],Table_PI[[#This Row],[Size]],Table_PI[[#This Row],[Input 1]],Table_PI[[#This Row],[Input 2]],Table_PI[[#This Row],[Input 3]],Table_PI[[#This Row],[Input 4]],'Customer Information'!$AR$12,101,ROW())<>0,MeasureCalc(Table_PI[[#This Row],[Hide:\nFormula Name]],Table_SummaryPI[[#This Row],[Quantity]],Table_PI[[#This Row],[List 1]],Table_PI[[#This Row],[List 2]],Table_PI[[#This Row],[List 3]],Table_PI[[#This Row],[Size]],Table_PI[[#This Row],[Input 1]],Table_PI[[#This Row],[Input 2]],Table_PI[[#This Row],[Input 3]],Table_PI[[#This Row],[Input 4]],'Customer Information'!$AR$12,101,ROW())<>\"No Rebate\"),MeasureCalc(Table_PI[[#This Row],[Hide:\nFormula Name]],Table_SummaryPI[[#This Row],[Quantity]],Table_PI[[#This Row],[List 1]],Table_PI[[#This Row],[List 2]],Table_PI[[#This Row],[List 3]],Table_PI[[#This Row],[Size]],Table_PI[[#This Row],[Input 1]],Table_PI[[#This Row],[Input 2]],Table_PI[[#This Row],[Input 3]],Table_PI[[#This Row],[Input 4]],'Customer Information'!$AR$12,101,ROW()),\"\"),\"\")","v":""},{"$f":"IF(Table_PI[[#This Row],[Input 2]]<>\"\",Table_PI[[#This Row],[Input 2]],\"\")","v":""},null,{"$f":"IFERROR(IF(AND(MeasureCalc(Table_PI[[#This Row],[Hide:\nFormula Name]],Table_SummaryPI[[#This Row],[Quantity]],Table_PI[[#This Row],[List 1]],Table_PI[[#This Row],[List 2]],Table_PI[[#This Row],[List 3]],Table_PI[[#This Row],[Size]],Table_PI[[#This Row],[Input 1]],Table_PI[[#This Row],[Input 2]],Table_PI[[#This Row],[Input 3]],Table_PI[[#This Row],[Input 4]],'Customer Information'!$AR$12,102,ROW())<>0,MeasureCalc(Table_PI[[#This Row],[Hide:\nFormula Name]],Table_SummaryPI[[#This Row],[Quantity]],Table_PI[[#This Row],[List 1]],Table_PI[[#This Row],[List 2]],Table_PI[[#This Row],[List 3]],Table_PI[[#This Row],[Size]],Table_PI[[#This Row],[Input 1]],Table_PI[[#This Row],[Input 2]],Table_PI[[#This Row],[Input 3]],Table_PI[[#This Row],[Input 4]],'Customer Information'!$AR$12,102,ROW())<>\"No Rebate\"),MeasureCalc(Table_PI[[#This Row],[Hide:\nFormula Name]],Table_SummaryPI[[#This Row],[Quantity]],Table_PI[[#This Row],[List 1]],Table_PI[[#This Row],[List 2]],Table_PI[[#This Row],[List 3]],Table_PI[[#This Row],[Size]],Table_PI[[#This Row],[Input 1]],Table_PI[[#This Row],[Input 2]],Table_PI[[#This Row],[Input 3]],Table_PI[[#This Row],[Input 4]],'Customer Information'!$AR$12,102,ROW()),\"\"),\"\")","v":""},{"$f":"IF(Table_PI[[#This Row],[Input 3]]<>\"\",Table_PI[[#This Row],[Input 3]],\"\")","v":""},null,{"$f":"IFERROR(IF(AND(MeasureCalc(Table_PI[[#This Row],[Hide:\nFormula Name]],Table_SummaryPI[[#This Row],[Quantity]],Table_PI[[#This Row],[List 1]],Table_PI[[#This Row],[List 2]],Table_PI[[#This Row],[List 3]],Table_PI[[#This Row],[Size]],Table_PI[[#This Row],[Input 1]],Table_PI[[#This Row],[Input 2]],Table_PI[[#This Row],[Input 3]],Table_PI[[#This Row],[Input 4]],'Customer Information'!$AR$12,103,ROW())<>0,MeasureCalc(Table_PI[[#This Row],[Hide:\nFormula Name]],Table_SummaryPI[[#This Row],[Quantity]],Table_PI[[#This Row],[List 1]],Table_PI[[#This Row],[List 2]],Table_PI[[#This Row],[List 3]],Table_PI[[#This Row],[Size]],Table_PI[[#This Row],[Input 1]],Table_PI[[#This Row],[Input 2]],Table_PI[[#This Row],[Input 3]],Table_PI[[#This Row],[Input 4]],'Customer Information'!$AR$12,103,ROW())<>\"No Rebate\"),MeasureCalc(Table_PI[[#This Row],[Hide:\nFormula Name]],Table_SummaryPI[[#This Row],[Quantity]],Table_PI[[#This Row],[List 1]],Table_PI[[#This Row],[List 2]],Table_PI[[#This Row],[List 3]],Table_PI[[#This Row],[Size]],Table_PI[[#This Row],[Input 1]],Table_PI[[#This Row],[Input 2]],Table_PI[[#This Row],[Input 3]],Table_PI[[#This Row],[Input 4]],'Customer Information'!$AR$12,103,ROW()),\"\"),\"\")","v":""},{"$f":"IF(Table_PI[[#This Row],[Input 4]]<>\"\",Table_PI[[#This Row],[Input 4]],\"\")","v":""},{"$f":"IF(Table_PI[[#This Row],[Quantity]]=\"\",\"\",Table_PI[[#This Row],[Quantity]])","v":""},{"$f":"IF(Table_PI[[#This Row],[Notes]]=\"\",\"\",Table_PI[[#This Row],[Notes]])","v":""},{"$f":"IF(OR(Table_PI[[#This Row],[Hide:\nBaseline kWh]]=\"\",Table_PI[[#This Row],[Hide:\nBaseline kWh]]=0),\"\",Table_PI[[#This Row],[Hide:\nBaseline kWh]])","v":""},{"$f":"IF(OR(Table_PI[[#This Row],[Hide:\nBaseline kW]]=\"\",Table_PI[[#This Row],[Hide:\nBaseline kW]]=0),\"\",Table_PI[[#This Row],[Hide:\nBaseline kW]])","v":""},{"$f":"IF(OR(Table_PI[[#This Row],[Hide:\nProposed kWh]]=\"\",Table_PI[[#This Row],[Hide:\nProposed kWh]]=0),\"\",Table_PI[[#This Row],[Hide:\nProposed kWh]])","v":""},{"$f":"IF(OR(Table_PI[[#This Row],[Hide:\nProposed kW]]=\"\",Table_PI[[#This Row],[Hide:\nProposed kW]]=0),\"\",Table_PI[[#This Row],[Hide:\nProposed kW]])","v":""},{"$f":"IF(OR(Table_PI[[#This Row],[Rebate]]=\"\",Table_PI[[#This Row],[Rebate]]=0),\"\",Table_PI[[#This Row],[Rebate]])","v":""},{"$f":"IF(OR(Table_PI[[#This Row],[Hide:\nIncremental Cost]]=\"\",Table_PI[[#This Row],[Hide:\nIncremental Cost]]=0),\"\",Table_PI[[#This Row],[Hide:\nIncremental Cost]])","v":""},{"$f":"IFERROR(IF(Table_SummaryPI[[#This Row],[kWhSavings]]=\"\",\"\",ROUND(Table_SummaryPI[[#This Row],[kWhSavings]]/$AG$401*'Customer Information'!$BC$17,2)),0)","v":""},{"$f":"IF(OR(Table_PI[[#This Row],[Annual kWh]]=\"\",Table_PI[[#This Row],[Annual kWh]]=0),\"\",Table_PI[[#This Row],[Annual kWh]])","v":""},{"$f":"IF(OR(Table_PI[[#This Row],[Peak kW]]=\"\",Table_PI[[#This Row],[Peak kW]]=0),\"\",Table_PI[[#This Row],[Peak kW]])","v":""},{"$f":"IFERROR(IF(Table_SummaryPI[[#This Row],[kWhSavings]]=\"\",\"\",$AU$9*Table_SummaryPI[[#This Row],[kWhSavings]]),0)","v":""},{"$f":"IFERROR(IF(Table_SummaryPI[[#This Row],[kWhSavings]]=\"\",\"\",$AU$14*Table_SummaryPI[[#This Row],[kWhSavings]]),0)","v":""},{"$f":"IFERROR(IF(Table_SummaryPI[[#This Row],[kWhSavings]]=\"\",\"\",$AU$18*Table_SummaryPI[[#This Row],[kWhSavings]]),0)","v":""},{"$f":"IFERROR(IF(Table_SummaryPI[[#This Row],[kWhSavings]]=\"\",\"\",$AU$22*Table_SummaryPI[[#This Row],[kWhSavings]]),0)","v":""},{"$f":"IFERROR(IF(MeasureCalc(Table_PI[[#This Row],[Hide:\nFormula Name]],Table_SummaryPI[[#This Row],[Quantity]],Table_PI[[#This Row],[List 1]],Table_PI[[#This Row],[List 2]],Table_PI[[#This Row],[List 3]],Table_PI[[#This Row],[Size]],Table_PI[[#This Row],[Input 1]],Table_PI[[#This Row],[Input 2]],Table_PI[[#This Row],[Input 3]],Table_PI[[#This Row],[Input 4]],'Customer Information'!$AR$12,200,ROW())<>\"No Rebate\",MeasureCalc(Table_PI[[#This Row],[Hide:\nFormula Name]],Table_SummaryPI[[#This Row],[Quantity]],Table_PI[[#This Row],[List 1]],Table_PI[[#This Row],[List 2]],Table_PI[[#This Row],[List 3]],Table_PI[[#This Row],[Size]],Table_PI[[#This Row],[Input 1]],Table_PI[[#This Row],[Input 2]],Table_PI[[#This Row],[Input 3]],Table_PI[[#This Row],[Input 4]],'Customer Information'!$AR$12,200,ROW()),\"\"),\"\")","v":""},{"$f":"IFERROR(IF(MeasureCalc(Table_PI[[#This Row],[Hide:\nFormula Name]],Table_SummaryPI[[#This Row],[Quantity]],Table_PI[[#This Row],[List 1]],Table_PI[[#This Row],[List 2]],Table_PI[[#This Row],[List 3]],Table_PI[[#This Row],[Size]],Table_PI[[#This Row],[Input 1]],Table_PI[[#This Row],[Input 2]],Table_PI[[#This Row],[Input 3]],Table_PI[[#This Row],[Input 4]],'Customer Information'!$AR$12,201,ROW())<>\"No Rebate\",MeasureCalc(Table_PI[[#This Row],[Hide:\nFormula Name]],Table_SummaryPI[[#This Row],[Quantity]],Table_PI[[#This Row],[List 1]],Table_PI[[#This Row],[List 2]],Table_PI[[#This Row],[List 3]],Table_PI[[#This Row],[Size]],Table_PI[[#This Row],[Input 1]],Table_PI[[#This Row],[Input 2]],Table_PI[[#This Row],[Input 3]],Table_PI[[#This Row],[Input 4]],'Customer Information'!$AR$12,201,ROW()),\"\"),\"\")","v":""}]
[{"$f":"Table_PI[[#This Row],[Line No.]]","v":""},{"$f":"IF(Table_SummaryPI[[#This Row],[MeassureCategory]]<>\"\",CONCATENATE(Table_SummaryPI[[#This Row],[MeassureCategory]],  \" - \", Table_SummaryPI[[#This Row],[ProposedMeasureCategory]],  \" - \", TEXT(Table_SummaryPI[[#This Row],[Size]],\"#,##0.00\"),\" \",Table_SummaryPI[[#This Row],[SizeUnit]]),\"\")","v":""},{"$f":"SUBSTITUTE(Table_PI[[#This Row],[Measure]],\"     \",\"\",1)","v":""},{"$f":"IF(Table_PI[[#This Row],[List 1]]<>\"\",Table_PI[[#This Row],[List 1]],\"\")","v":""},{"$f":"IF(Table_PI[[#This Row],[List 2]]<>\"\",Table_PI[[#This Row],[List 2]],\"\")","v":""},{"$f":"IF(Table_PI[[#This Row],[List 3]]<>\"\",Table_PI[[#This Row],[List 3]],\"\")","v":""},{"$f":"IF(Table_PI[[#This Row],[Manufacturer]]=\"\",\"\",Table_PI[[#This Row],[Manufacturer]])","v":""},{"$f":"IF(Table_PI[[#This Row],[Model Number]]=\"\",\"\",Table_PI[[#This Row],[Model Number]])","v":""},{"$f":"IF(Table_PI[[#This Row],[Serial Number(s)]]=\"\",\"\",Table_PI[[#This Row],[Serial Number(s)]])","v":""},null,{"$f":"IF(Table_PI[[#This Row],[Size]]=\"\",\"\",Table_PI[[#This Row],[Size]])","v":""},null,{"$f":"IFERROR(IF(AND(MeasureCalc(Table_PI[[#This Row],[Hide:\nFormula Name]],Table_SummaryPI[[#This Row],[Quantity]],Table_PI[[#This Row],[List 1]],Table_PI[[#This Row],[List 2]],Table_PI[[#This Row],[List 3]],Table_PI[[#This Row],[Size]],Table_PI[[#This Row],[Input 1]],Table_PI[[#This Row],[Input 2]],Table_PI[[#This Row],[Input 3]],Table_PI[[#This Row],[Input 4]],'Customer Information'!$AR$12,100,ROW())<>0,MeasureCalc(Table_PI[[#This Row],[Hide:\nFormula Name]],Table_SummaryPI[[#This Row],[Quantity]],Table_PI[[#This Row],[List 1]],Table_PI[[#This Row],[List 2]],Table_PI[[#This Row],[List 3]],Table_PI[[#This Row],[Size]],Table_PI[[#This Row],[Input 1]],Table_PI[[#This Row],[Input 2]],Table_PI[[#This Row],[Input 3]],Table_PI[[#This Row],[Input 4]],'Customer Information'!$AR$12,100,ROW())<>\"No Rebate\"),MeasureCalc(Table_PI[[#This Row],[Hide:\nFormula Name]],Table_SummaryPI[[#This Row],[Quantity]],Table_PI[[#This Row],[List 1]],Table_PI[[#This Row],[List 2]],Table_PI[[#This Row],[List 3]],Table_PI[[#This Row],[Size]],Table_PI[[#This Row],[Input 1]],Table_PI[[#This Row],[Input 2]],Table_PI[[#This Row],[Input 3]],Table_PI[[#This Row],[Input 4]],'Customer Information'!$AR$12,100,ROW()),\"\"),\"\")","v":""},{"$f":"IF(Table_PI[[#This Row],[Input 1]]<>\"\",Table_PI[[#This Row],[Input 1]],\"\")","v":""},null,{"$f":"IFERROR(IF(AND(MeasureCalc(Table_PI[[#This Row],[Hide:\nFormula Name]],Table_SummaryPI[[#This Row],[Quantity]],Table_PI[[#This Row],[List 1]],Table_PI[[#This Row],[List 2]],Table_PI[[#This Row],[List 3]],Table_PI[[#This Row],[Size]],Table_PI[[#This Row],[Input 1]],Table_PI[[#This Row],[Input 2]],Table_PI[[#This Row],[Input 3]],Table_PI[[#This Row],[Input 4]],'Customer Information'!$AR$12,101,ROW())<>0,MeasureCalc(Table_PI[[#This Row],[Hide:\nFormula Name]],Table_SummaryPI[[#This Row],[Quantity]],Table_PI[[#This Row],[List 1]],Table_PI[[#This Row],[List 2]],Table_PI[[#This Row],[List 3]],Table_PI[[#This Row],[Size]],Table_PI[[#This Row],[Input 1]],Table_PI[[#This Row],[Input 2]],Table_PI[[#This Row],[Input 3]],Table_PI[[#This Row],[Input 4]],'Customer Information'!$AR$12,101,ROW())<>\"No Rebate\"),MeasureCalc(Table_PI[[#This Row],[Hide:\nFormula Name]],Table_SummaryPI[[#This Row],[Quantity]],Table_PI[[#This Row],[List 1]],Table_PI[[#This Row],[List 2]],Table_PI[[#This Row],[List 3]],Table_PI[[#This Row],[Size]],Table_PI[[#This Row],[Input 1]],Table_PI[[#This Row],[Input 2]],Table_PI[[#This Row],[Input 3]],Table_PI[[#This Row],[Input 4]],'Customer Information'!$AR$12,101,ROW()),\"\"),\"\")","v":""},{"$f":"IF(Table_PI[[#This Row],[Input 2]]<>\"\",Table_PI[[#This Row],[Input 2]],\"\")","v":""},null,{"$f":"IFERROR(IF(AND(MeasureCalc(Table_PI[[#This Row],[Hide:\nFormula Name]],Table_SummaryPI[[#This Row],[Quantity]],Table_PI[[#This Row],[List 1]],Table_PI[[#This Row],[List 2]],Table_PI[[#This Row],[List 3]],Table_PI[[#This Row],[Size]],Table_PI[[#This Row],[Input 1]],Table_PI[[#This Row],[Input 2]],Table_PI[[#This Row],[Input 3]],Table_PI[[#This Row],[Input 4]],'Customer Information'!$AR$12,102,ROW())<>0,MeasureCalc(Table_PI[[#This Row],[Hide:\nFormula Name]],Table_SummaryPI[[#This Row],[Quantity]],Table_PI[[#This Row],[List 1]],Table_PI[[#This Row],[List 2]],Table_PI[[#This Row],[List 3]],Table_PI[[#This Row],[Size]],Table_PI[[#This Row],[Input 1]],Table_PI[[#This Row],[Input 2]],Table_PI[[#This Row],[Input 3]],Table_PI[[#This Row],[Input 4]],'Customer Information'!$AR$12,102,ROW())<>\"No Rebate\"),MeasureCalc(Table_PI[[#This Row],[Hide:\nFormula Name]],Table_SummaryPI[[#This Row],[Quantity]],Table_PI[[#This Row],[List 1]],Table_PI[[#This Row],[List 2]],Table_PI[[#This Row],[List 3]],Table_PI[[#This Row],[Size]],Table_PI[[#This Row],[Input 1]],Table_PI[[#This Row],[Input 2]],Table_PI[[#This Row],[Input 3]],Table_PI[[#This Row],[Input 4]],'Customer Information'!$AR$12,102,ROW()),\"\"),\"\")","v":""},{"$f":"IF(Table_PI[[#This Row],[Input 3]]<>\"\",Table_PI[[#This Row],[Input 3]],\"\")","v":""},null,{"$f":"IFERROR(IF(AND(MeasureCalc(Table_PI[[#This Row],[Hide:\nFormula Name]],Table_SummaryPI[[#This Row],[Quantity]],Table_PI[[#This Row],[List 1]],Table_PI[[#This Row],[List 2]],Table_PI[[#This Row],[List 3]],Table_PI[[#This Row],[Size]],Table_PI[[#This Row],[Input 1]],Table_PI[[#This Row],[Input 2]],Table_PI[[#This Row],[Input 3]],Table_PI[[#This Row],[Input 4]],'Customer Information'!$AR$12,103,ROW())<>0,MeasureCalc(Table_PI[[#This Row],[Hide:\nFormula Name]],Table_SummaryPI[[#This Row],[Quantity]],Table_PI[[#This Row],[List 1]],Table_PI[[#This Row],[List 2]],Table_PI[[#This Row],[List 3]],Table_PI[[#This Row],[Size]],Table_PI[[#This Row],[Input 1]],Table_PI[[#This Row],[Input 2]],Table_PI[[#This Row],[Input 3]],Table_PI[[#This Row],[Input 4]],'Customer Information'!$AR$12,103,ROW())<>\"No Rebate\"),MeasureCalc(Table_PI[[#This Row],[Hide:\nFormula Name]],Table_SummaryPI[[#This Row],[Quantity]],Table_PI[[#This Row],[List 1]],Table_PI[[#This Row],[List 2]],Table_PI[[#This Row],[List 3]],Table_PI[[#This Row],[Size]],Table_PI[[#This Row],[Input 1]],Table_PI[[#This Row],[Input 2]],Table_PI[[#This Row],[Input 3]],Table_PI[[#This Row],[Input 4]],'Customer Information'!$AR$12,103,ROW()),\"\"),\"\")","v":""},{"$f":"IF(Table_PI[[#This Row],[Input 4]]<>\"\",Table_PI[[#This Row],[Input 4]],\"\")","v":""},{"$f":"IF(Table_PI[[#This Row],[Quantity]]=\"\",\"\",Table_PI[[#This Row],[Quantity]])","v":""},{"$f":"IF(Table_PI[[#This Row],[Notes]]=\"\",\"\",Table_PI[[#This Row],[Notes]])","v":""},{"$f":"IF(OR(Table_PI[[#This Row],[Hide:\nBaseline kWh]]=\"\",Table_PI[[#This Row],[Hide:\nBaseline kWh]]=0),\"\",Table_PI[[#This Row],[Hide:\nBaseline kWh]])","v":""},{"$f":"IF(OR(Table_PI[[#This Row],[Hide:\nBaseline kW]]=\"\",Table_PI[[#This Row],[Hide:\nBaseline kW]]=0),\"\",Table_PI[[#This Row],[Hide:\nBaseline kW]])","v":""},{"$f":"IF(OR(Table_PI[[#This Row],[Hide:\nProposed kWh]]=\"\",Table_PI[[#This Row],[Hide:\nProposed kWh]]=0),\"\",Table_PI[[#This Row],[Hide:\nProposed kWh]])","v":""},{"$f":"IF(OR(Table_PI[[#This Row],[Hide:\nProposed kW]]=\"\",Table_PI[[#This Row],[Hide:\nProposed kW]]=0),\"\",Table_PI[[#This Row],[Hide:\nProposed kW]])","v":""},{"$f":"IF(OR(Table_PI[[#This Row],[Rebate]]=\"\",Table_PI[[#This Row],[Rebate]]=0),\"\",Table_PI[[#This Row],[Rebate]])","v":""},{"$f":"IF(OR(Table_PI[[#This Row],[Hide:\nIncremental Cost]]=\"\",Table_PI[[#This Row],[Hide:\nIncremental Cost]]=0),\"\",Table_PI[[#This Row],[Hide:\nIncremental Cost]])","v":""},{"$f":"IFERROR(IF(Table_SummaryPI[[#This Row],[kWhSavings]]=\"\",\"\",ROUND(Table_SummaryPI[[#This Row],[kWhSavings]]/$AG$401*'Customer Information'!$BC$17,2)),0)","v":""},{"$f":"IF(OR(Table_PI[[#This Row],[Annual kWh]]=\"\",Table_PI[[#This Row],[Annual kWh]]=0),\"\",Table_PI[[#This Row],[Annual kWh]])","v":""},{"$f":"IF(OR(Table_PI[[#This Row],[Peak kW]]=\"\",Table_PI[[#This Row],[Peak kW]]=0),\"\",Table_PI[[#This Row],[Peak kW]])","v":""},{"$f":"IFERROR(IF(Table_SummaryPI[[#This Row],[kWhSavings]]=\"\",\"\",$AU$9*Table_SummaryPI[[#This Row],[kWhSavings]]),0)","v":""},{"$f":"IFERROR(IF(Table_SummaryPI[[#This Row],[kWhSavings]]=\"\",\"\",$AU$14*Table_SummaryPI[[#This Row],[kWhSavings]]),0)","v":""},{"$f":"IFERROR(IF(Table_SummaryPI[[#This Row],[kWhSavings]]=\"\",\"\",$AU$18*Table_SummaryPI[[#This Row],[kWhSavings]]),0)","v":""},{"$f":"IFERROR(IF(Table_SummaryPI[[#This Row],[kWhSavings]]=\"\",\"\",$AU$22*Table_SummaryPI[[#This Row],[kWhSavings]]),0)","v":""},{"$f":"IFERROR(IF(MeasureCalc(Table_PI[[#This Row],[Hide:\nFormula Name]],Table_SummaryPI[[#This Row],[Quantity]],Table_PI[[#This Row],[List 1]],Table_PI[[#This Row],[List 2]],Table_PI[[#This Row],[List 3]],Table_PI[[#This Row],[Size]],Table_PI[[#This Row],[Input 1]],Table_PI[[#This Row],[Input 2]],Table_PI[[#This Row],[Input 3]],Table_PI[[#This Row],[Input 4]],'Customer Information'!$AR$12,200,ROW())<>\"No Rebate\",MeasureCalc(Table_PI[[#This Row],[Hide:\nFormula Name]],Table_SummaryPI[[#This Row],[Quantity]],Table_PI[[#This Row],[List 1]],Table_PI[[#This Row],[List 2]],Table_PI[[#This Row],[List 3]],Table_PI[[#This Row],[Size]],Table_PI[[#This Row],[Input 1]],Table_PI[[#This Row],[Input 2]],Table_PI[[#This Row],[Input 3]],Table_PI[[#This Row],[Input 4]],'Customer Information'!$AR$12,200,ROW()),\"\"),\"\")","v":""},{"$f":"IFERROR(IF(MeasureCalc(Table_PI[[#This Row],[Hide:\nFormula Name]],Table_SummaryPI[[#This Row],[Quantity]],Table_PI[[#This Row],[List 1]],Table_PI[[#This Row],[List 2]],Table_PI[[#This Row],[List 3]],Table_PI[[#This Row],[Size]],Table_PI[[#This Row],[Input 1]],Table_PI[[#This Row],[Input 2]],Table_PI[[#This Row],[Input 3]],Table_PI[[#This Row],[Input 4]],'Customer Information'!$AR$12,201,ROW())<>\"No Rebate\",MeasureCalc(Table_PI[[#This Row],[Hide:\nFormula Name]],Table_SummaryPI[[#This Row],[Quantity]],Table_PI[[#This Row],[List 1]],Table_PI[[#This Row],[List 2]],Table_PI[[#This Row],[List 3]],Table_PI[[#This Row],[Size]],Table_PI[[#This Row],[Input 1]],Table_PI[[#This Row],[Input 2]],Table_PI[[#This Row],[Input 3]],Table_PI[[#This Row],[Input 4]],'Customer Information'!$AR$12,201,ROW()),\"\"),\"\")","v":""}]
[{"$f":"Table_PI[[#This Row],[Line No.]]","v":""},{"$f":"IF(Table_SummaryPI[[#This Row],[MeassureCategory]]<>\"\",CONCATENATE(Table_SummaryPI[[#This Row],[MeassureCategory]],  \" - \", Table_SummaryPI[[#This Row],[ProposedMeasureCategory]],  \" - \", TEXT(Table_SummaryPI[[#This Row],[Size]],\"#,##0.00\"),\" \",Table_SummaryPI[[#This Row],[SizeUnit]]),\"\")","v":""},{"$f":"SUBSTITUTE(Table_PI[[#This Row],[Measure]],\"     \",\"\",1)","v":""},{"$f":"IF(Table_PI[[#This Row],[List 1]]<>\"\",Table_PI[[#This Row],[List 1]],\"\")","v":""},{"$f":"IF(Table_PI[[#This Row],[List 2]]<>\"\",Table_PI[[#This Row],[List 2]],\"\")","v":""},{"$f":"IF(Table_PI[[#This Row],[List 3]]<>\"\",Table_PI[[#This Row],[List 3]],\"\")","v":""},{"$f":"IF(Table_PI[[#This Row],[Manufacturer]]=\"\",\"\",Table_PI[[#This Row],[Manufacturer]])","v":""},{"$f":"IF(Table_PI[[#This Row],[Model Number]]=\"\",\"\",Table_PI[[#This Row],[Model Number]])","v":""},{"$f":"IF(Table_PI[[#This Row],[Serial Number(s)]]=\"\",\"\",Table_PI[[#This Row],[Serial Number(s)]])","v":""},null,{"$f":"IF(Table_PI[[#This Row],[Size]]=\"\",\"\",Table_PI[[#This Row],[Size]])","v":""},null,{"$f":"IFERROR(IF(AND(MeasureCalc(Table_PI[[#This Row],[Hide:\nFormula Name]],Table_SummaryPI[[#This Row],[Quantity]],Table_PI[[#This Row],[List 1]],Table_PI[[#This Row],[List 2]],Table_PI[[#This Row],[List 3]],Table_PI[[#This Row],[Size]],Table_PI[[#This Row],[Input 1]],Table_PI[[#This Row],[Input 2]],Table_PI[[#This Row],[Input 3]],Table_PI[[#This Row],[Input 4]],'Customer Information'!$AR$12,100,ROW())<>0,MeasureCalc(Table_PI[[#This Row],[Hide:\nFormula Name]],Table_SummaryPI[[#This Row],[Quantity]],Table_PI[[#This Row],[List 1]],Table_PI[[#This Row],[List 2]],Table_PI[[#This Row],[List 3]],Table_PI[[#This Row],[Size]],Table_PI[[#This Row],[Input 1]],Table_PI[[#This Row],[Input 2]],Table_PI[[#This Row],[Input 3]],Table_PI[[#This Row],[Input 4]],'Customer Information'!$AR$12,100,ROW())<>\"No Rebate\"),MeasureCalc(Table_PI[[#This Row],[Hide:\nFormula Name]],Table_SummaryPI[[#This Row],[Quantity]],Table_PI[[#This Row],[List 1]],Table_PI[[#This Row],[List 2]],Table_PI[[#This Row],[List 3]],Table_PI[[#This Row],[Size]],Table_PI[[#This Row],[Input 1]],Table_PI[[#This Row],[Input 2]],Table_PI[[#This Row],[Input 3]],Table_PI[[#This Row],[Input 4]],'Customer Information'!$AR$12,100,ROW()),\"\"),\"\")","v":""},{"$f":"IF(Table_PI[[#This Row],[Input 1]]<>\"\",Table_PI[[#This Row],[Input 1]],\"\")","v":""},null,{"$f":"IFERROR(IF(AND(MeasureCalc(Table_PI[[#This Row],[Hide:\nFormula Name]],Table_SummaryPI[[#This Row],[Quantity]],Table_PI[[#This Row],[List 1]],Table_PI[[#This Row],[List 2]],Table_PI[[#This Row],[List 3]],Table_PI[[#This Row],[Size]],Table_PI[[#This Row],[Input 1]],Table_PI[[#This Row],[Input 2]],Table_PI[[#This Row],[Input 3]],Table_PI[[#This Row],[Input 4]],'Customer Information'!$AR$12,101,ROW())<>0,MeasureCalc(Table_PI[[#This Row],[Hide:\nFormula Name]],Table_SummaryPI[[#This Row],[Quantity]],Table_PI[[#This Row],[List 1]],Table_PI[[#This Row],[List 2]],Table_PI[[#This Row],[List 3]],Table_PI[[#This Row],[Size]],Table_PI[[#This Row],[Input 1]],Table_PI[[#This Row],[Input 2]],Table_PI[[#This Row],[Input 3]],Table_PI[[#This Row],[Input 4]],'Customer Information'!$AR$12,101,ROW())<>\"No Rebate\"),MeasureCalc(Table_PI[[#This Row],[Hide:\nFormula Name]],Table_SummaryPI[[#This Row],[Quantity]],Table_PI[[#This Row],[List 1]],Table_PI[[#This Row],[List 2]],Table_PI[[#This Row],[List 3]],Table_PI[[#This Row],[Size]],Table_PI[[#This Row],[Input 1]],Table_PI[[#This Row],[Input 2]],Table_PI[[#This Row],[Input 3]],Table_PI[[#This Row],[Input 4]],'Customer Information'!$AR$12,101,ROW()),\"\"),\"\")","v":""},{"$f":"IF(Table_PI[[#This Row],[Input 2]]<>\"\",Table_PI[[#This Row],[Input 2]],\"\")","v":""},null,{"$f":"IFERROR(IF(AND(MeasureCalc(Table_PI[[#This Row],[Hide:\nFormula Name]],Table_SummaryPI[[#This Row],[Quantity]],Table_PI[[#This Row],[List 1]],Table_PI[[#This Row],[List 2]],Table_PI[[#This Row],[List 3]],Table_PI[[#This Row],[Size]],Table_PI[[#This Row],[Input 1]],Table_PI[[#This Row],[Input 2]],Table_PI[[#This Row],[Input 3]],Table_PI[[#This Row],[Input 4]],'Customer Information'!$AR$12,102,ROW())<>0,MeasureCalc(Table_PI[[#This Row],[Hide:\nFormula Name]],Table_SummaryPI[[#This Row],[Quantity]],Table_PI[[#This Row],[List 1]],Table_PI[[#This Row],[List 2]],Table_PI[[#This Row],[List 3]],Table_PI[[#This Row],[Size]],Table_PI[[#This Row],[Input 1]],Table_PI[[#This Row],[Input 2]],Table_PI[[#This Row],[Input 3]],Table_PI[[#This Row],[Input 4]],'Customer Information'!$AR$12,102,ROW())<>\"No Rebate\"),MeasureCalc(Table_PI[[#This Row],[Hide:\nFormula Name]],Table_SummaryPI[[#This Row],[Quantity]],Table_PI[[#This Row],[List 1]],Table_PI[[#This Row],[List 2]],Table_PI[[#This Row],[List 3]],Table_PI[[#This Row],[Size]],Table_PI[[#This Row],[Input 1]],Table_PI[[#This Row],[Input 2]],Table_PI[[#This Row],[Input 3]],Table_PI[[#This Row],[Input 4]],'Customer Information'!$AR$12,102,ROW()),\"\"),\"\")","v":""},{"$f":"IF(Table_PI[[#This Row],[Input 3]]<>\"\",Table_PI[[#This Row],[Input 3]],\"\")","v":""},null,{"$f":"IFERROR(IF(AND(MeasureCalc(Table_PI[[#This Row],[Hide:\nFormula Name]],Table_SummaryPI[[#This Row],[Quantity]],Table_PI[[#This Row],[List 1]],Table_PI[[#This Row],[List 2]],Table_PI[[#This Row],[List 3]],Table_PI[[#This Row],[Size]],Table_PI[[#This Row],[Input 1]],Table_PI[[#This Row],[Input 2]],Table_PI[[#This Row],[Input 3]],Table_PI[[#This Row],[Input 4]],'Customer Information'!$AR$12,103,ROW())<>0,MeasureCalc(Table_PI[[#This Row],[Hide:\nFormula Name]],Table_SummaryPI[[#This Row],[Quantity]],Table_PI[[#This Row],[List 1]],Table_PI[[#This Row],[List 2]],Table_PI[[#This Row],[List 3]],Table_PI[[#This Row],[Size]],Table_PI[[#This Row],[Input 1]],Table_PI[[#This Row],[Input 2]],Table_PI[[#This Row],[Input 3]],Table_PI[[#This Row],[Input 4]],'Customer Information'!$AR$12,103,ROW())<>\"No Rebate\"),MeasureCalc(Table_PI[[#This Row],[Hide:\nFormula Name]],Table_SummaryPI[[#This Row],[Quantity]],Table_PI[[#This Row],[List 1]],Table_PI[[#This Row],[List 2]],Table_PI[[#This Row],[List 3]],Table_PI[[#This Row],[Size]],Table_PI[[#This Row],[Input 1]],Table_PI[[#This Row],[Input 2]],Table_PI[[#This Row],[Input 3]],Table_PI[[#This Row],[Input 4]],'Customer Information'!$AR$12,103,ROW()),\"\"),\"\")","v":""},{"$f":"IF(Table_PI[[#This Row],[Input 4]]<>\"\",Table_PI[[#This Row],[Input 4]],\"\")","v":""},{"$f":"IF(Table_PI[[#This Row],[Quantity]]=\"\",\"\",Table_PI[[#This Row],[Quantity]])","v":""},{"$f":"IF(Table_PI[[#This Row],[Notes]]=\"\",\"\",Table_PI[[#This Row],[Notes]])","v":""},{"$f":"IF(OR(Table_PI[[#This Row],[Hide:\nBaseline kWh]]=\"\",Table_PI[[#This Row],[Hide:\nBaseline kWh]]=0),\"\",Table_PI[[#This Row],[Hide:\nBaseline kWh]])","v":""},{"$f":"IF(OR(Table_PI[[#This Row],[Hide:\nBaseline kW]]=\"\",Table_PI[[#This Row],[Hide:\nBaseline kW]]=0),\"\",Table_PI[[#This Row],[Hide:\nBaseline kW]])","v":""},{"$f":"IF(OR(Table_PI[[#This Row],[Hide:\nProposed kWh]]=\"\",Table_PI[[#This Row],[Hide:\nProposed kWh]]=0),\"\",Table_PI[[#This Row],[Hide:\nProposed kWh]])","v":""},{"$f":"IF(OR(Table_PI[[#This Row],[Hide:\nProposed kW]]=\"\",Table_PI[[#This Row],[Hide:\nProposed kW]]=0),\"\",Table_PI[[#This Row],[Hide:\nProposed kW]])","v":""},{"$f":"IF(OR(Table_PI[[#This Row],[Rebate]]=\"\",Table_PI[[#This Row],[Rebate]]=0),\"\",Table_PI[[#This Row],[Rebate]])","v":""},{"$f":"IF(OR(Table_PI[[#This Row],[Hide:\nIncremental Cost]]=\"\",Table_PI[[#This Row],[Hide:\nIncremental Cost]]=0),\"\",Table_PI[[#This Row],[Hide:\nIncremental Cost]])","v":""},{"$f":"IFERROR(IF(Table_SummaryPI[[#This Row],[kWhSavings]]=\"\",\"\",ROUND(Table_SummaryPI[[#This Row],[kWhSavings]]/$AG$401*'Customer Information'!$BC$17,2)),0)","v":""},{"$f":"IF(OR(Table_PI[[#This Row],[Annual kWh]]=\"\",Table_PI[[#This Row],[Annual kWh]]=0),\"\",Table_PI[[#This Row],[Annual kWh]])","v":""},{"$f":"IF(OR(Table_PI[[#This Row],[Peak kW]]=\"\",Table_PI[[#This Row],[Peak kW]]=0),\"\",Table_PI[[#This Row],[Peak kW]])","v":""},{"$f":"IFERROR(IF(Table_SummaryPI[[#This Row],[kWhSavings]]=\"\",\"\",$AU$9*Table_SummaryPI[[#This Row],[kWhSavings]]),0)","v":""},{"$f":"IFERROR(IF(Table_SummaryPI[[#This Row],[kWhSavings]]=\"\",\"\",$AU$14*Table_SummaryPI[[#This Row],[kWhSavings]]),0)","v":""},{"$f":"IFERROR(IF(Table_SummaryPI[[#This Row],[kWhSavings]]=\"\",\"\",$AU$18*Table_SummaryPI[[#This Row],[kWhSavings]]),0)","v":""},{"$f":"IFERROR(IF(Table_SummaryPI[[#This Row],[kWhSavings]]=\"\",\"\",$AU$22*Table_SummaryPI[[#This Row],[kWhSavings]]),0)","v":""},{"$f":"IFERROR(IF(MeasureCalc(Table_PI[[#This Row],[Hide:\nFormula Name]],Table_SummaryPI[[#This Row],[Quantity]],Table_PI[[#This Row],[List 1]],Table_PI[[#This Row],[List 2]],Table_PI[[#This Row],[List 3]],Table_PI[[#This Row],[Size]],Table_PI[[#This Row],[Input 1]],Table_PI[[#This Row],[Input 2]],Table_PI[[#This Row],[Input 3]],Table_PI[[#This Row],[Input 4]],'Customer Information'!$AR$12,200,ROW())<>\"No Rebate\",MeasureCalc(Table_PI[[#This Row],[Hide:\nFormula Name]],Table_SummaryPI[[#This Row],[Quantity]],Table_PI[[#This Row],[List 1]],Table_PI[[#This Row],[List 2]],Table_PI[[#This Row],[List 3]],Table_PI[[#This Row],[Size]],Table_PI[[#This Row],[Input 1]],Table_PI[[#This Row],[Input 2]],Table_PI[[#This Row],[Input 3]],Table_PI[[#This Row],[Input 4]],'Customer Information'!$AR$12,200,ROW()),\"\"),\"\")","v":""},{"$f":"IFERROR(IF(MeasureCalc(Table_PI[[#This Row],[Hide:\nFormula Name]],Table_SummaryPI[[#This Row],[Quantity]],Table_PI[[#This Row],[List 1]],Table_PI[[#This Row],[List 2]],Table_PI[[#This Row],[List 3]],Table_PI[[#This Row],[Size]],Table_PI[[#This Row],[Input 1]],Table_PI[[#This Row],[Input 2]],Table_PI[[#This Row],[Input 3]],Table_PI[[#This Row],[Input 4]],'Customer Information'!$AR$12,201,ROW())<>\"No Rebate\",MeasureCalc(Table_PI[[#This Row],[Hide:\nFormula Name]],Table_SummaryPI[[#This Row],[Quantity]],Table_PI[[#This Row],[List 1]],Table_PI[[#This Row],[List 2]],Table_PI[[#This Row],[List 3]],Table_PI[[#This Row],[Size]],Table_PI[[#This Row],[Input 1]],Table_PI[[#This Row],[Input 2]],Table_PI[[#This Row],[Input 3]],Table_PI[[#This Row],[Input 4]],'Customer Information'!$AR$12,201,ROW()),\"\"),\"\")","v":""}]
[{"$f":"Table_PI[[#This Row],[Line No.]]","v":""},{"$f":"IF(Table_SummaryPI[[#This Row],[MeassureCategory]]<>\"\",CONCATENATE(Table_SummaryPI[[#This Row],[MeassureCategory]],  \" - \", Table_SummaryPI[[#This Row],[ProposedMeasureCategory]],  \" - \", TEXT(Table_SummaryPI[[#This Row],[Size]],\"#,##0.00\"),\" \",Table_SummaryPI[[#This Row],[SizeUnit]]),\"\")","v":""},{"$f":"SUBSTITUTE(Table_PI[[#This Row],[Measure]],\"     \",\"\",1)","v":""},{"$f":"IF(Table_PI[[#This Row],[List 1]]<>\"\",Table_PI[[#This Row],[List 1]],\"\")","v":""},{"$f":"IF(Table_PI[[#This Row],[List 2]]<>\"\",Table_PI[[#This Row],[List 2]],\"\")","v":""},{"$f":"IF(Table_PI[[#This Row],[List 3]]<>\"\",Table_PI[[#This Row],[List 3]],\"\")","v":""},{"$f":"IF(Table_PI[[#This Row],[Manufacturer]]=\"\",\"\",Table_PI[[#This Row],[Manufacturer]])","v":""},{"$f":"IF(Table_PI[[#This Row],[Model Number]]=\"\",\"\",Table_PI[[#This Row],[Model Number]])","v":""},{"$f":"IF(Table_PI[[#This Row],[Serial Number(s)]]=\"\",\"\",Table_PI[[#This Row],[Serial Number(s)]])","v":""},null,{"$f":"IF(Table_PI[[#This Row],[Size]]=\"\",\"\",Table_PI[[#This Row],[Size]])","v":""},null,{"$f":"IFERROR(IF(AND(MeasureCalc(Table_PI[[#This Row],[Hide:\nFormula Name]],Table_SummaryPI[[#This Row],[Quantity]],Table_PI[[#This Row],[List 1]],Table_PI[[#This Row],[List 2]],Table_PI[[#This Row],[List 3]],Table_PI[[#This Row],[Size]],Table_PI[[#This Row],[Input 1]],Table_PI[[#This Row],[Input 2]],Table_PI[[#This Row],[Input 3]],Table_PI[[#This Row],[Input 4]],'Customer Information'!$AR$12,100,ROW())<>0,MeasureCalc(Table_PI[[#This Row],[Hide:\nFormula Name]],Table_SummaryPI[[#This Row],[Quantity]],Table_PI[[#This Row],[List 1]],Table_PI[[#This Row],[List 2]],Table_PI[[#This Row],[List 3]],Table_PI[[#This Row],[Size]],Table_PI[[#This Row],[Input 1]],Table_PI[[#This Row],[Input 2]],Table_PI[[#This Row],[Input 3]],Table_PI[[#This Row],[Input 4]],'Customer Information'!$AR$12,100,ROW())<>\"No Rebate\"),MeasureCalc(Table_PI[[#This Row],[Hide:\nFormula Name]],Table_SummaryPI[[#This Row],[Quantity]],Table_PI[[#This Row],[List 1]],Table_PI[[#This Row],[List 2]],Table_PI[[#This Row],[List 3]],Table_PI[[#This Row],[Size]],Table_PI[[#This Row],[Input 1]],Table_PI[[#This Row],[Input 2]],Table_PI[[#This Row],[Input 3]],Table_PI[[#This Row],[Input 4]],'Customer Information'!$AR$12,100,ROW()),\"\"),\"\")","v":""},{"$f":"IF(Table_PI[[#This Row],[Input 1]]<>\"\",Table_PI[[#This Row],[Input 1]],\"\")","v":""},null,{"$f":"IFERROR(IF(AND(MeasureCalc(Table_PI[[#This Row],[Hide:\nFormula Name]],Table_SummaryPI[[#This Row],[Quantity]],Table_PI[[#This Row],[List 1]],Table_PI[[#This Row],[List 2]],Table_PI[[#This Row],[List 3]],Table_PI[[#This Row],[Size]],Table_PI[[#This Row],[Input 1]],Table_PI[[#This Row],[Input 2]],Table_PI[[#This Row],[Input 3]],Table_PI[[#This Row],[Input 4]],'Customer Information'!$AR$12,101,ROW())<>0,MeasureCalc(Table_PI[[#This Row],[Hide:\nFormula Name]],Table_SummaryPI[[#This Row],[Quantity]],Table_PI[[#This Row],[List 1]],Table_PI[[#This Row],[List 2]],Table_PI[[#This Row],[List 3]],Table_PI[[#This Row],[Size]],Table_PI[[#This Row],[Input 1]],Table_PI[[#This Row],[Input 2]],Table_PI[[#This Row],[Input 3]],Table_PI[[#This Row],[Input 4]],'Customer Information'!$AR$12,101,ROW())<>\"No Rebate\"),MeasureCalc(Table_PI[[#This Row],[Hide:\nFormula Name]],Table_SummaryPI[[#This Row],[Quantity]],Table_PI[[#This Row],[List 1]],Table_PI[[#This Row],[List 2]],Table_PI[[#This Row],[List 3]],Table_PI[[#This Row],[Size]],Table_PI[[#This Row],[Input 1]],Table_PI[[#This Row],[Input 2]],Table_PI[[#This Row],[Input 3]],Table_PI[[#This Row],[Input 4]],'Customer Information'!$AR$12,101,ROW()),\"\"),\"\")","v":""},{"$f":"IF(Table_PI[[#This Row],[Input 2]]<>\"\",Table_PI[[#This Row],[Input 2]],\"\")","v":""},null,{"$f":"IFERROR(IF(AND(MeasureCalc(Table_PI[[#This Row],[Hide:\nFormula Name]],Table_SummaryPI[[#This Row],[Quantity]],Table_PI[[#This Row],[List 1]],Table_PI[[#This Row],[List 2]],Table_PI[[#This Row],[List 3]],Table_PI[[#This Row],[Size]],Table_PI[[#This Row],[Input 1]],Table_PI[[#This Row],[Input 2]],Table_PI[[#This Row],[Input 3]],Table_PI[[#This Row],[Input 4]],'Customer Information'!$AR$12,102,ROW())<>0,MeasureCalc(Table_PI[[#This Row],[Hide:\nFormula Name]],Table_SummaryPI[[#This Row],[Quantity]],Table_PI[[#This Row],[List 1]],Table_PI[[#This Row],[List 2]],Table_PI[[#This Row],[List 3]],Table_PI[[#This Row],[Size]],Table_PI[[#This Row],[Input 1]],Table_PI[[#This Row],[Input 2]],Table_PI[[#This Row],[Input 3]],Table_PI[[#This Row],[Input 4]],'Customer Information'!$AR$12,102,ROW())<>\"No Rebate\"),MeasureCalc(Table_PI[[#This Row],[Hide:\nFormula Name]],Table_SummaryPI[[#This Row],[Quantity]],Table_PI[[#This Row],[List 1]],Table_PI[[#This Row],[List 2]],Table_PI[[#This Row],[List 3]],Table_PI[[#This Row],[Size]],Table_PI[[#This Row],[Input 1]],Table_PI[[#This Row],[Input 2]],Table_PI[[#This Row],[Input 3]],Table_PI[[#This Row],[Input 4]],'Customer Information'!$AR$12,102,ROW()),\"\"),\"\")","v":""},{"$f":"IF(Table_PI[[#This Row],[Input 3]]<>\"\",Table_PI[[#This Row],[Input 3]],\"\")","v":""},null,{"$f":"IFERROR(IF(AND(MeasureCalc(Table_PI[[#This Row],[Hide:\nFormula Name]],Table_SummaryPI[[#This Row],[Quantity]],Table_PI[[#This Row],[List 1]],Table_PI[[#This Row],[List 2]],Table_PI[[#This Row],[List 3]],Table_PI[[#This Row],[Size]],Table_PI[[#This Row],[Input 1]],Table_PI[[#This Row],[Input 2]],Table_PI[[#This Row],[Input 3]],Table_PI[[#This Row],[Input 4]],'Customer Information'!$AR$12,103,ROW())<>0,MeasureCalc(Table_PI[[#This Row],[Hide:\nFormula Name]],Table_SummaryPI[[#This Row],[Quantity]],Table_PI[[#This Row],[List 1]],Table_PI[[#This Row],[List 2]],Table_PI[[#This Row],[List 3]],Table_PI[[#This Row],[Size]],Table_PI[[#This Row],[Input 1]],Table_PI[[#This Row],[Input 2]],Table_PI[[#This Row],[Input 3]],Table_PI[[#This Row],[Input 4]],'Customer Information'!$AR$12,103,ROW())<>\"No Rebate\"),MeasureCalc(Table_PI[[#This Row],[Hide:\nFormula Name]],Table_SummaryPI[[#This Row],[Quantity]],Table_PI[[#This Row],[List 1]],Table_PI[[#This Row],[List 2]],Table_PI[[#This Row],[List 3]],Table_PI[[#This Row],[Size]],Table_PI[[#This Row],[Input 1]],Table_PI[[#This Row],[Input 2]],Table_PI[[#This Row],[Input 3]],Table_PI[[#This Row],[Input 4]],'Customer Information'!$AR$12,103,ROW()),\"\"),\"\")","v":""},{"$f":"IF(Table_PI[[#This Row],[Input 4]]<>\"\",Table_PI[[#This Row],[Input 4]],\"\")","v":""},{"$f":"IF(Table_PI[[#This Row],[Quantity]]=\"\",\"\",Table_PI[[#This Row],[Quantity]])","v":""},{"$f":"IF(Table_PI[[#This Row],[Notes]]=\"\",\"\",Table_PI[[#This Row],[Notes]])","v":""},{"$f":"IF(OR(Table_PI[[#This Row],[Hide:\nBaseline kWh]]=\"\",Table_PI[[#This Row],[Hide:\nBaseline kWh]]=0),\"\",Table_PI[[#This Row],[Hide:\nBaseline kWh]])","v":""},{"$f":"IF(OR(Table_PI[[#This Row],[Hide:\nBaseline kW]]=\"\",Table_PI[[#This Row],[Hide:\nBaseline kW]]=0),\"\",Table_PI[[#This Row],[Hide:\nBaseline kW]])","v":""},{"$f":"IF(OR(Table_PI[[#This Row],[Hide:\nProposed kWh]]=\"\",Table_PI[[#This Row],[Hide:\nProposed kWh]]=0),\"\",Table_PI[[#This Row],[Hide:\nProposed kWh]])","v":""},{"$f":"IF(OR(Table_PI[[#This Row],[Hide:\nProposed kW]]=\"\",Table_PI[[#This Row],[Hide:\nProposed kW]]=0),\"\",Table_PI[[#This Row],[Hide:\nProposed kW]])","v":""},{"$f":"IF(OR(Table_PI[[#This Row],[Rebate]]=\"\",Table_PI[[#This Row],[Rebate]]=0),\"\",Table_PI[[#This Row],[Rebate]])","v":""},{"$f":"IF(OR(Table_PI[[#This Row],[Hide:\nIncremental Cost]]=\"\",Table_PI[[#This Row],[Hide:\nIncremental Cost]]=0),\"\",Table_PI[[#This Row],[Hide:\nIncremental Cost]])","v":""},{"$f":"IFERROR(IF(Table_SummaryPI[[#This Row],[kWhSavings]]=\"\",\"\",ROUND(Table_SummaryPI[[#This Row],[kWhSavings]]/$AG$401*'Customer Information'!$BC$17,2)),0)","v":""},{"$f":"IF(OR(Table_PI[[#This Row],[Annual kWh]]=\"\",Table_PI[[#This Row],[Annual kWh]]=0),\"\",Table_PI[[#This Row],[Annual kWh]])","v":""},{"$f":"IF(OR(Table_PI[[#This Row],[Peak kW]]=\"\",Table_PI[[#This Row],[Peak kW]]=0),\"\",Table_PI[[#This Row],[Peak kW]])","v":""},{"$f":"IFERROR(IF(Table_SummaryPI[[#This Row],[kWhSavings]]=\"\",\"\",$AU$9*Table_SummaryPI[[#This Row],[kWhSavings]]),0)","v":""},{"$f":"IFERROR(IF(Table_SummaryPI[[#This Row],[kWhSavings]]=\"\",\"\",$AU$14*Table_SummaryPI[[#This Row],[kWhSavings]]),0)","v":""},{"$f":"IFERROR(IF(Table_SummaryPI[[#This Row],[kWhSavings]]=\"\",\"\",$AU$18*Table_SummaryPI[[#This Row],[kWhSavings]]),0)","v":""},{"$f":"IFERROR(IF(Table_SummaryPI[[#This Row],[kWhSavings]]=\"\",\"\",$AU$22*Table_SummaryPI[[#This Row],[kWhSavings]]),0)","v":""},{"$f":"IFERROR(IF(MeasureCalc(Table_PI[[#This Row],[Hide:\nFormula Name]],Table_SummaryPI[[#This Row],[Quantity]],Table_PI[[#This Row],[List 1]],Table_PI[[#This Row],[List 2]],Table_PI[[#This Row],[List 3]],Table_PI[[#This Row],[Size]],Table_PI[[#This Row],[Input 1]],Table_PI[[#This Row],[Input 2]],Table_PI[[#This Row],[Input 3]],Table_PI[[#This Row],[Input 4]],'Customer Information'!$AR$12,200,ROW())<>\"No Rebate\",MeasureCalc(Table_PI[[#This Row],[Hide:\nFormula Name]],Table_SummaryPI[[#This Row],[Quantity]],Table_PI[[#This Row],[List 1]],Table_PI[[#This Row],[List 2]],Table_PI[[#This Row],[List 3]],Table_PI[[#This Row],[Size]],Table_PI[[#This Row],[Input 1]],Table_PI[[#This Row],[Input 2]],Table_PI[[#This Row],[Input 3]],Table_PI[[#This Row],[Input 4]],'Customer Information'!$AR$12,200,ROW()),\"\"),\"\")","v":""},{"$f":"IFERROR(IF(MeasureCalc(Table_PI[[#This Row],[Hide:\nFormula Name]],Table_SummaryPI[[#This Row],[Quantity]],Table_PI[[#This Row],[List 1]],Table_PI[[#This Row],[List 2]],Table_PI[[#This Row],[List 3]],Table_PI[[#This Row],[Size]],Table_PI[[#This Row],[Input 1]],Table_PI[[#This Row],[Input 2]],Table_PI[[#This Row],[Input 3]],Table_PI[[#This Row],[Input 4]],'Customer Information'!$AR$12,201,ROW())<>\"No Rebate\",MeasureCalc(Table_PI[[#This Row],[Hide:\nFormula Name]],Table_SummaryPI[[#This Row],[Quantity]],Table_PI[[#This Row],[List 1]],Table_PI[[#This Row],[List 2]],Table_PI[[#This Row],[List 3]],Table_PI[[#This Row],[Size]],Table_PI[[#This Row],[Input 1]],Table_PI[[#This Row],[Input 2]],Table_PI[[#This Row],[Input 3]],Table_PI[[#This Row],[Input 4]],'Customer Information'!$AR$12,201,ROW()),\"\"),\"\")","v":""}]
[{"$f":"Table_PI[[#This Row],[Line No.]]","v":""},{"$f":"IF(Table_SummaryPI[[#This Row],[MeassureCategory]]<>\"\",CONCATENATE(Table_SummaryPI[[#This Row],[MeassureCategory]],  \" - \", Table_SummaryPI[[#This Row],[ProposedMeasureCategory]],  \" - \", TEXT(Table_SummaryPI[[#This Row],[Size]],\"#,##0.00\"),\" \",Table_SummaryPI[[#This Row],[SizeUnit]]),\"\")","v":""},{"$f":"SUBSTITUTE(Table_PI[[#This Row],[Measure]],\"     \",\"\",1)","v":""},{"$f":"IF(Table_PI[[#This Row],[List 1]]<>\"\",Table_PI[[#This Row],[List 1]],\"\")","v":""},{"$f":"IF(Table_PI[[#This Row],[List 2]]<>\"\",Table_PI[[#This Row],[List 2]],\"\")","v":""},{"$f":"IF(Table_PI[[#This Row],[List 3]]<>\"\",Table_PI[[#This Row],[List 3]],\"\")","v":""},{"$f":"IF(Table_PI[[#This Row],[Manufacturer]]=\"\",\"\",Table_PI[[#This Row],[Manufacturer]])","v":""},{"$f":"IF(Table_PI[[#This Row],[Model Number]]=\"\",\"\",Table_PI[[#This Row],[Model Number]])","v":""},{"$f":"IF(Table_PI[[#This Row],[Serial Number(s)]]=\"\",\"\",Table_PI[[#This Row],[Serial Number(s)]])","v":""},null,{"$f":"IF(Table_PI[[#This Row],[Size]]=\"\",\"\",Table_PI[[#This Row],[Size]])","v":""},null,{"$f":"IFERROR(IF(AND(MeasureCalc(Table_PI[[#This Row],[Hide:\nFormula Name]],Table_SummaryPI[[#This Row],[Quantity]],Table_PI[[#This Row],[List 1]],Table_PI[[#This Row],[List 2]],Table_PI[[#This Row],[List 3]],Table_PI[[#This Row],[Size]],Table_PI[[#This Row],[Input 1]],Table_PI[[#This Row],[Input 2]],Table_PI[[#This Row],[Input 3]],Table_PI[[#This Row],[Input 4]],'Customer Information'!$AR$12,100,ROW())<>0,MeasureCalc(Table_PI[[#This Row],[Hide:\nFormula Name]],Table_SummaryPI[[#This Row],[Quantity]],Table_PI[[#This Row],[List 1]],Table_PI[[#This Row],[List 2]],Table_PI[[#This Row],[List 3]],Table_PI[[#This Row],[Size]],Table_PI[[#This Row],[Input 1]],Table_PI[[#This Row],[Input 2]],Table_PI[[#This Row],[Input 3]],Table_PI[[#This Row],[Input 4]],'Customer Information'!$AR$12,100,ROW())<>\"No Rebate\"),MeasureCalc(Table_PI[[#This Row],[Hide:\nFormula Name]],Table_SummaryPI[[#This Row],[Quantity]],Table_PI[[#This Row],[List 1]],Table_PI[[#This Row],[List 2]],Table_PI[[#This Row],[List 3]],Table_PI[[#This Row],[Size]],Table_PI[[#This Row],[Input 1]],Table_PI[[#This Row],[Input 2]],Table_PI[[#This Row],[Input 3]],Table_PI[[#This Row],[Input 4]],'Customer Information'!$AR$12,100,ROW()),\"\"),\"\")","v":""},{"$f":"IF(Table_PI[[#This Row],[Input 1]]<>\"\",Table_PI[[#This Row],[Input 1]],\"\")","v":""},null,{"$f":"IFERROR(IF(AND(MeasureCalc(Table_PI[[#This Row],[Hide:\nFormula Name]],Table_SummaryPI[[#This Row],[Quantity]],Table_PI[[#This Row],[List 1]],Table_PI[[#This Row],[List 2]],Table_PI[[#This Row],[List 3]],Table_PI[[#This Row],[Size]],Table_PI[[#This Row],[Input 1]],Table_PI[[#This Row],[Input 2]],Table_PI[[#This Row],[Input 3]],Table_PI[[#This Row],[Input 4]],'Customer Information'!$AR$12,101,ROW())<>0,MeasureCalc(Table_PI[[#This Row],[Hide:\nFormula Name]],Table_SummaryPI[[#This Row],[Quantity]],Table_PI[[#This Row],[List 1]],Table_PI[[#This Row],[List 2]],Table_PI[[#This Row],[List 3]],Table_PI[[#This Row],[Size]],Table_PI[[#This Row],[Input 1]],Table_PI[[#This Row],[Input 2]],Table_PI[[#This Row],[Input 3]],Table_PI[[#This Row],[Input 4]],'Customer Information'!$AR$12,101,ROW())<>\"No Rebate\"),MeasureCalc(Table_PI[[#This Row],[Hide:\nFormula Name]],Table_SummaryPI[[#This Row],[Quantity]],Table_PI[[#This Row],[List 1]],Table_PI[[#This Row],[List 2]],Table_PI[[#This Row],[List 3]],Table_PI[[#This Row],[Size]],Table_PI[[#This Row],[Input 1]],Table_PI[[#This Row],[Input 2]],Table_PI[[#This Row],[Input 3]],Table_PI[[#This Row],[Input 4]],'Customer Information'!$AR$12,101,ROW()),\"\"),\"\")","v":""},{"$f":"IF(Table_PI[[#This Row],[Input 2]]<>\"\",Table_PI[[#This Row],[Input 2]],\"\")","v":""},null,{"$f":"IFERROR(IF(AND(MeasureCalc(Table_PI[[#This Row],[Hide:\nFormula Name]],Table_SummaryPI[[#This Row],[Quantity]],Table_PI[[#This Row],[List 1]],Table_PI[[#This Row],[List 2]],Table_PI[[#This Row],[List 3]],Table_PI[[#This Row],[Size]],Table_PI[[#This Row],[Input 1]],Table_PI[[#This Row],[Input 2]],Table_PI[[#This Row],[Input 3]],Table_PI[[#This Row],[Input 4]],'Customer Information'!$AR$12,102,ROW())<>0,MeasureCalc(Table_PI[[#This Row],[Hide:\nFormula Name]],Table_SummaryPI[[#This Row],[Quantity]],Table_PI[[#This Row],[List 1]],Table_PI[[#This Row],[List 2]],Table_PI[[#This Row],[List 3]],Table_PI[[#This Row],[Size]],Table_PI[[#This Row],[Input 1]],Table_PI[[#This Row],[Input 2]],Table_PI[[#This Row],[Input 3]],Table_PI[[#This Row],[Input 4]],'Customer Information'!$AR$12,102,ROW())<>\"No Rebate\"),MeasureCalc(Table_PI[[#This Row],[Hide:\nFormula Name]],Table_SummaryPI[[#This Row],[Quantity]],Table_PI[[#This Row],[List 1]],Table_PI[[#This Row],[List 2]],Table_PI[[#This Row],[List 3]],Table_PI[[#This Row],[Size]],Table_PI[[#This Row],[Input 1]],Table_PI[[#This Row],[Input 2]],Table_PI[[#This Row],[Input 3]],Table_PI[[#This Row],[Input 4]],'Customer Information'!$AR$12,102,ROW()),\"\"),\"\")","v":""},{"$f":"IF(Table_PI[[#This Row],[Input 3]]<>\"\",Table_PI[[#This Row],[Input 3]],\"\")","v":""},null,{"$f":"IFERROR(IF(AND(MeasureCalc(Table_PI[[#This Row],[Hide:\nFormula Name]],Table_SummaryPI[[#This Row],[Quantity]],Table_PI[[#This Row],[List 1]],Table_PI[[#This Row],[List 2]],Table_PI[[#This Row],[List 3]],Table_PI[[#This Row],[Size]],Table_PI[[#This Row],[Input 1]],Table_PI[[#This Row],[Input 2]],Table_PI[[#This Row],[Input 3]],Table_PI[[#This Row],[Input 4]],'Customer Information'!$AR$12,103,ROW())<>0,MeasureCalc(Table_PI[[#This Row],[Hide:\nFormula Name]],Table_SummaryPI[[#This Row],[Quantity]],Table_PI[[#This Row],[List 1]],Table_PI[[#This Row],[List 2]],Table_PI[[#This Row],[List 3]],Table_PI[[#This Row],[Size]],Table_PI[[#This Row],[Input 1]],Table_PI[[#This Row],[Input 2]],Table_PI[[#This Row],[Input 3]],Table_PI[[#This Row],[Input 4]],'Customer Information'!$AR$12,103,ROW())<>\"No Rebate\"),MeasureCalc(Table_PI[[#This Row],[Hide:\nFormula Name]],Table_SummaryPI[[#This Row],[Quantity]],Table_PI[[#This Row],[List 1]],Table_PI[[#This Row],[List 2]],Table_PI[[#This Row],[List 3]],Table_PI[[#This Row],[Size]],Table_PI[[#This Row],[Input 1]],Table_PI[[#This Row],[Input 2]],Table_PI[[#This Row],[Input 3]],Table_PI[[#This Row],[Input 4]],'Customer Information'!$AR$12,103,ROW()),\"\"),\"\")","v":""},{"$f":"IF(Table_PI[[#This Row],[Input 4]]<>\"\",Table_PI[[#This Row],[Input 4]],\"\")","v":""},{"$f":"IF(Table_PI[[#This Row],[Quantity]]=\"\",\"\",Table_PI[[#This Row],[Quantity]])","v":""},{"$f":"IF(Table_PI[[#This Row],[Notes]]=\"\",\"\",Table_PI[[#This Row],[Notes]])","v":""},{"$f":"IF(OR(Table_PI[[#This Row],[Hide:\nBaseline kWh]]=\"\",Table_PI[[#This Row],[Hide:\nBaseline kWh]]=0),\"\",Table_PI[[#This Row],[Hide:\nBaseline kWh]])","v":""},{"$f":"IF(OR(Table_PI[[#This Row],[Hide:\nBaseline kW]]=\"\",Table_PI[[#This Row],[Hide:\nBaseline kW]]=0),\"\",Table_PI[[#This Row],[Hide:\nBaseline kW]])","v":""},{"$f":"IF(OR(Table_PI[[#This Row],[Hide:\nProposed kWh]]=\"\",Table_PI[[#This Row],[Hide:\nProposed kWh]]=0),\"\",Table_PI[[#This Row],[Hide:\nProposed kWh]])","v":""},{"$f":"IF(OR(Table_PI[[#This Row],[Hide:\nProposed kW]]=\"\",Table_PI[[#This Row],[Hide:\nProposed kW]]=0),\"\",Table_PI[[#This Row],[Hide:\nProposed kW]])","v":""},{"$f":"IF(OR(Table_PI[[#This Row],[Rebate]]=\"\",Table_PI[[#This Row],[Rebate]]=0),\"\",Table_PI[[#This Row],[Rebate]])","v":""},{"$f":"IF(OR(Table_PI[[#This Row],[Hide:\nIncremental Cost]]=\"\",Table_PI[[#This Row],[Hide:\nIncremental Cost]]=0),\"\",Table_PI[[#This Row],[Hide:\nIncremental Cost]])","v":""},{"$f":"IFERROR(IF(Table_SummaryPI[[#This Row],[kWhSavings]]=\"\",\"\",ROUND(Table_SummaryPI[[#This Row],[kWhSavings]]/$AG$401*'Customer Information'!$BC$17,2)),0)","v":""},{"$f":"IF(OR(Table_PI[[#This Row],[Annual kWh]]=\"\",Table_PI[[#This Row],[Annual kWh]]=0),\"\",Table_PI[[#This Row],[Annual kWh]])","v":""},{"$f":"IF(OR(Table_PI[[#This Row],[Peak kW]]=\"\",Table_PI[[#This Row],[Peak kW]]=0),\"\",Table_PI[[#This Row],[Peak kW]])","v":""},{"$f":"IFERROR(IF(Table_SummaryPI[[#This Row],[kWhSavings]]=\"\",\"\",$AU$9*Table_SummaryPI[[#This Row],[kWhSavings]]),0)","v":""},{"$f":"IFERROR(IF(Table_SummaryPI[[#This Row],[kWhSavings]]=\"\",\"\",$AU$14*Table_SummaryPI[[#This Row],[kWhSavings]]),0)","v":""},{"$f":"IFERROR(IF(Table_SummaryPI[[#This Row],[kWhSavings]]=\"\",\"\",$AU$18*Table_SummaryPI[[#This Row],[kWhSavings]]),0)","v":""},{"$f":"IFERROR(IF(Table_SummaryPI[[#This Row],[kWhSavings]]=\"\",\"\",$AU$22*Table_SummaryPI[[#This Row],[kWhSavings]]),0)","v":""},{"$f":"IFERROR(IF(MeasureCalc(Table_PI[[#This Row],[Hide:\nFormula Name]],Table_SummaryPI[[#This Row],[Quantity]],Table_PI[[#This Row],[List 1]],Table_PI[[#This Row],[List 2]],Table_PI[[#This Row],[List 3]],Table_PI[[#This Row],[Size]],Table_PI[[#This Row],[Input 1]],Table_PI[[#This Row],[Input 2]],Table_PI[[#This Row],[Input 3]],Table_PI[[#This Row],[Input 4]],'Customer Information'!$AR$12,200,ROW())<>\"No Rebate\",MeasureCalc(Table_PI[[#This Row],[Hide:\nFormula Name]],Table_SummaryPI[[#This Row],[Quantity]],Table_PI[[#This Row],[List 1]],Table_PI[[#This Row],[List 2]],Table_PI[[#This Row],[List 3]],Table_PI[[#This Row],[Size]],Table_PI[[#This Row],[Input 1]],Table_PI[[#This Row],[Input 2]],Table_PI[[#This Row],[Input 3]],Table_PI[[#This Row],[Input 4]],'Customer Information'!$AR$12,200,ROW()),\"\"),\"\")","v":""},{"$f":"IFERROR(IF(MeasureCalc(Table_PI[[#This Row],[Hide:\nFormula Name]],Table_SummaryPI[[#This Row],[Quantity]],Table_PI[[#This Row],[List 1]],Table_PI[[#This Row],[List 2]],Table_PI[[#This Row],[List 3]],Table_PI[[#This Row],[Size]],Table_PI[[#This Row],[Input 1]],Table_PI[[#This Row],[Input 2]],Table_PI[[#This Row],[Input 3]],Table_PI[[#This Row],[Input 4]],'Customer Information'!$AR$12,201,ROW())<>\"No Rebate\",MeasureCalc(Table_PI[[#This Row],[Hide:\nFormula Name]],Table_SummaryPI[[#This Row],[Quantity]],Table_PI[[#This Row],[List 1]],Table_PI[[#This Row],[List 2]],Table_PI[[#This Row],[List 3]],Table_PI[[#This Row],[Size]],Table_PI[[#This Row],[Input 1]],Table_PI[[#This Row],[Input 2]],Table_PI[[#This Row],[Input 3]],Table_PI[[#This Row],[Input 4]],'Customer Information'!$AR$12,201,ROW()),\"\"),\"\")","v":""}]
[{"$f":"Table_PI[[#This Row],[Line No.]]","v":""},{"$f":"IF(Table_SummaryPI[[#This Row],[MeassureCategory]]<>\"\",CONCATENATE(Table_SummaryPI[[#This Row],[MeassureCategory]],  \" - \", Table_SummaryPI[[#This Row],[ProposedMeasureCategory]],  \" - \", TEXT(Table_SummaryPI[[#This Row],[Size]],\"#,##0.00\"),\" \",Table_SummaryPI[[#This Row],[SizeUnit]]),\"\")","v":""},{"$f":"SUBSTITUTE(Table_PI[[#This Row],[Measure]],\"     \",\"\",1)","v":""},{"$f":"IF(Table_PI[[#This Row],[List 1]]<>\"\",Table_PI[[#This Row],[List 1]],\"\")","v":""},{"$f":"IF(Table_PI[[#This Row],[List 2]]<>\"\",Table_PI[[#This Row],[List 2]],\"\")","v":""},{"$f":"IF(Table_PI[[#This Row],[List 3]]<>\"\",Table_PI[[#This Row],[List 3]],\"\")","v":""},{"$f":"IF(Table_PI[[#This Row],[Manufacturer]]=\"\",\"\",Table_PI[[#This Row],[Manufacturer]])","v":""},{"$f":"IF(Table_PI[[#This Row],[Model Number]]=\"\",\"\",Table_PI[[#This Row],[Model Number]])","v":""},{"$f":"IF(Table_PI[[#This Row],[Serial Number(s)]]=\"\",\"\",Table_PI[[#This Row],[Serial Number(s)]])","v":""},null,{"$f":"IF(Table_PI[[#This Row],[Size]]=\"\",\"\",Table_PI[[#This Row],[Size]])","v":""},null,{"$f":"IFERROR(IF(AND(MeasureCalc(Table_PI[[#This Row],[Hide:\nFormula Name]],Table_SummaryPI[[#This Row],[Quantity]],Table_PI[[#This Row],[List 1]],Table_PI[[#This Row],[List 2]],Table_PI[[#This Row],[List 3]],Table_PI[[#This Row],[Size]],Table_PI[[#This Row],[Input 1]],Table_PI[[#This Row],[Input 2]],Table_PI[[#This Row],[Input 3]],Table_PI[[#This Row],[Input 4]],'Customer Information'!$AR$12,100,ROW())<>0,MeasureCalc(Table_PI[[#This Row],[Hide:\nFormula Name]],Table_SummaryPI[[#This Row],[Quantity]],Table_PI[[#This Row],[List 1]],Table_PI[[#This Row],[List 2]],Table_PI[[#This Row],[List 3]],Table_PI[[#This Row],[Size]],Table_PI[[#This Row],[Input 1]],Table_PI[[#This Row],[Input 2]],Table_PI[[#This Row],[Input 3]],Table_PI[[#This Row],[Input 4]],'Customer Information'!$AR$12,100,ROW())<>\"No Rebate\"),MeasureCalc(Table_PI[[#This Row],[Hide:\nFormula Name]],Table_SummaryPI[[#This Row],[Quantity]],Table_PI[[#This Row],[List 1]],Table_PI[[#This Row],[List 2]],Table_PI[[#This Row],[List 3]],Table_PI[[#This Row],[Size]],Table_PI[[#This Row],[Input 1]],Table_PI[[#This Row],[Input 2]],Table_PI[[#This Row],[Input 3]],Table_PI[[#This Row],[Input 4]],'Customer Information'!$AR$12,100,ROW()),\"\"),\"\")","v":""},{"$f":"IF(Table_PI[[#This Row],[Input 1]]<>\"\",Table_PI[[#This Row],[Input 1]],\"\")","v":""},null,{"$f":"IFERROR(IF(AND(MeasureCalc(Table_PI[[#This Row],[Hide:\nFormula Name]],Table_SummaryPI[[#This Row],[Quantity]],Table_PI[[#This Row],[List 1]],Table_PI[[#This Row],[List 2]],Table_PI[[#This Row],[List 3]],Table_PI[[#This Row],[Size]],Table_PI[[#This Row],[Input 1]],Table_PI[[#This Row],[Input 2]],Table_PI[[#This Row],[Input 3]],Table_PI[[#This Row],[Input 4]],'Customer Information'!$AR$12,101,ROW())<>0,MeasureCalc(Table_PI[[#This Row],[Hide:\nFormula Name]],Table_SummaryPI[[#This Row],[Quantity]],Table_PI[[#This Row],[List 1]],Table_PI[[#This Row],[List 2]],Table_PI[[#This Row],[List 3]],Table_PI[[#This Row],[Size]],Table_PI[[#This Row],[Input 1]],Table_PI[[#This Row],[Input 2]],Table_PI[[#This Row],[Input 3]],Table_PI[[#This Row],[Input 4]],'Customer Information'!$AR$12,101,ROW())<>\"No Rebate\"),MeasureCalc(Table_PI[[#This Row],[Hide:\nFormula Name]],Table_SummaryPI[[#This Row],[Quantity]],Table_PI[[#This Row],[List 1]],Table_PI[[#This Row],[List 2]],Table_PI[[#This Row],[List 3]],Table_PI[[#This Row],[Size]],Table_PI[[#This Row],[Input 1]],Table_PI[[#This Row],[Input 2]],Table_PI[[#This Row],[Input 3]],Table_PI[[#This Row],[Input 4]],'Customer Information'!$AR$12,101,ROW()),\"\"),\"\")","v":""},{"$f":"IF(Table_PI[[#This Row],[Input 2]]<>\"\",Table_PI[[#This Row],[Input 2]],\"\")","v":""},null,{"$f":"IFERROR(IF(AND(MeasureCalc(Table_PI[[#This Row],[Hide:\nFormula Name]],Table_SummaryPI[[#This Row],[Quantity]],Table_PI[[#This Row],[List 1]],Table_PI[[#This Row],[List 2]],Table_PI[[#This Row],[List 3]],Table_PI[[#This Row],[Size]],Table_PI[[#This Row],[Input 1]],Table_PI[[#This Row],[Input 2]],Table_PI[[#This Row],[Input 3]],Table_PI[[#This Row],[Input 4]],'Customer Information'!$AR$12,102,ROW())<>0,MeasureCalc(Table_PI[[#This Row],[Hide:\nFormula Name]],Table_SummaryPI[[#This Row],[Quantity]],Table_PI[[#This Row],[List 1]],Table_PI[[#This Row],[List 2]],Table_PI[[#This Row],[List 3]],Table_PI[[#This Row],[Size]],Table_PI[[#This Row],[Input 1]],Table_PI[[#This Row],[Input 2]],Table_PI[[#This Row],[Input 3]],Table_PI[[#This Row],[Input 4]],'Customer Information'!$AR$12,102,ROW())<>\"No Rebate\"),MeasureCalc(Table_PI[[#This Row],[Hide:\nFormula Name]],Table_SummaryPI[[#This Row],[Quantity]],Table_PI[[#This Row],[List 1]],Table_PI[[#This Row],[List 2]],Table_PI[[#This Row],[List 3]],Table_PI[[#This Row],[Size]],Table_PI[[#This Row],[Input 1]],Table_PI[[#This Row],[Input 2]],Table_PI[[#This Row],[Input 3]],Table_PI[[#This Row],[Input 4]],'Customer Information'!$AR$12,102,ROW()),\"\"),\"\")","v":""},{"$f":"IF(Table_PI[[#This Row],[Input 3]]<>\"\",Table_PI[[#This Row],[Input 3]],\"\")","v":""},null,{"$f":"IFERROR(IF(AND(MeasureCalc(Table_PI[[#This Row],[Hide:\nFormula Name]],Table_SummaryPI[[#This Row],[Quantity]],Table_PI[[#This Row],[List 1]],Table_PI[[#This Row],[List 2]],Table_PI[[#This Row],[List 3]],Table_PI[[#This Row],[Size]],Table_PI[[#This Row],[Input 1]],Table_PI[[#This Row],[Input 2]],Table_PI[[#This Row],[Input 3]],Table_PI[[#This Row],[Input 4]],'Customer Information'!$AR$12,103,ROW())<>0,MeasureCalc(Table_PI[[#This Row],[Hide:\nFormula Name]],Table_SummaryPI[[#This Row],[Quantity]],Table_PI[[#This Row],[List 1]],Table_PI[[#This Row],[List 2]],Table_PI[[#This Row],[List 3]],Table_PI[[#This Row],[Size]],Table_PI[[#This Row],[Input 1]],Table_PI[[#This Row],[Input 2]],Table_PI[[#This Row],[Input 3]],Table_PI[[#This Row],[Input 4]],'Customer Information'!$AR$12,103,ROW())<>\"No Rebate\"),MeasureCalc(Table_PI[[#This Row],[Hide:\nFormula Name]],Table_SummaryPI[[#This Row],[Quantity]],Table_PI[[#This Row],[List 1]],Table_PI[[#This Row],[List 2]],Table_PI[[#This Row],[List 3]],Table_PI[[#This Row],[Size]],Table_PI[[#This Row],[Input 1]],Table_PI[[#This Row],[Input 2]],Table_PI[[#This Row],[Input 3]],Table_PI[[#This Row],[Input 4]],'Customer Information'!$AR$12,103,ROW()),\"\"),\"\")","v":""},{"$f":"IF(Table_PI[[#This Row],[Input 4]]<>\"\",Table_PI[[#This Row],[Input 4]],\"\")","v":""},{"$f":"IF(Table_PI[[#This Row],[Quantity]]=\"\",\"\",Table_PI[[#This Row],[Quantity]])","v":""},{"$f":"IF(Table_PI[[#This Row],[Notes]]=\"\",\"\",Table_PI[[#This Row],[Notes]])","v":""},{"$f":"IF(OR(Table_PI[[#This Row],[Hide:\nBaseline kWh]]=\"\",Table_PI[[#This Row],[Hide:\nBaseline kWh]]=0),\"\",Table_PI[[#This Row],[Hide:\nBaseline kWh]])","v":""},{"$f":"IF(OR(Table_PI[[#This Row],[Hide:\nBaseline kW]]=\"\",Table_PI[[#This Row],[Hide:\nBaseline kW]]=0),\"\",Table_PI[[#This Row],[Hide:\nBaseline kW]])","v":""},{"$f":"IF(OR(Table_PI[[#This Row],[Hide:\nProposed kWh]]=\"\",Table_PI[[#This Row],[Hide:\nProposed kWh]]=0),\"\",Table_PI[[#This Row],[Hide:\nProposed kWh]])","v":""},{"$f":"IF(OR(Table_PI[[#This Row],[Hide:\nProposed kW]]=\"\",Table_PI[[#This Row],[Hide:\nProposed kW]]=0),\"\",Table_PI[[#This Row],[Hide:\nProposed kW]])","v":""},{"$f":"IF(OR(Table_PI[[#This Row],[Rebate]]=\"\",Table_PI[[#This Row],[Rebate]]=0),\"\",Table_PI[[#This Row],[Rebate]])","v":""},{"$f":"IF(OR(Table_PI[[#This Row],[Hide:\nIncremental Cost]]=\"\",Table_PI[[#This Row],[Hide:\nIncremental Cost]]=0),\"\",Table_PI[[#This Row],[Hide:\nIncremental Cost]])","v":""},{"$f":"IFERROR(IF(Table_SummaryPI[[#This Row],[kWhSavings]]=\"\",\"\",ROUND(Table_SummaryPI[[#This Row],[kWhSavings]]/$AG$401*'Customer Information'!$BC$17,2)),0)","v":""},{"$f":"IF(OR(Table_PI[[#This Row],[Annual kWh]]=\"\",Table_PI[[#This Row],[Annual kWh]]=0),\"\",Table_PI[[#This Row],[Annual kWh]])","v":""},{"$f":"IF(OR(Table_PI[[#This Row],[Peak kW]]=\"\",Table_PI[[#This Row],[Peak kW]]=0),\"\",Table_PI[[#This Row],[Peak kW]])","v":""},{"$f":"IFERROR(IF(Table_SummaryPI[[#This Row],[kWhSavings]]=\"\",\"\",$AU$9*Table_SummaryPI[[#This Row],[kWhSavings]]),0)","v":""},{"$f":"IFERROR(IF(Table_SummaryPI[[#This Row],[kWhSavings]]=\"\",\"\",$AU$14*Table_SummaryPI[[#This Row],[kWhSavings]]),0)","v":""},{"$f":"IFERROR(IF(Table_SummaryPI[[#This Row],[kWhSavings]]=\"\",\"\",$AU$18*Table_SummaryPI[[#This Row],[kWhSavings]]),0)","v":""},{"$f":"IFERROR(IF(Table_SummaryPI[[#This Row],[kWhSavings]]=\"\",\"\",$AU$22*Table_SummaryPI[[#This Row],[kWhSavings]]),0)","v":""},{"$f":"IFERROR(IF(MeasureCalc(Table_PI[[#This Row],[Hide:\nFormula Name]],Table_SummaryPI[[#This Row],[Quantity]],Table_PI[[#This Row],[List 1]],Table_PI[[#This Row],[List 2]],Table_PI[[#This Row],[List 3]],Table_PI[[#This Row],[Size]],Table_PI[[#This Row],[Input 1]],Table_PI[[#This Row],[Input 2]],Table_PI[[#This Row],[Input 3]],Table_PI[[#This Row],[Input 4]],'Customer Information'!$AR$12,200,ROW())<>\"No Rebate\",MeasureCalc(Table_PI[[#This Row],[Hide:\nFormula Name]],Table_SummaryPI[[#This Row],[Quantity]],Table_PI[[#This Row],[List 1]],Table_PI[[#This Row],[List 2]],Table_PI[[#This Row],[List 3]],Table_PI[[#This Row],[Size]],Table_PI[[#This Row],[Input 1]],Table_PI[[#This Row],[Input 2]],Table_PI[[#This Row],[Input 3]],Table_PI[[#This Row],[Input 4]],'Customer Information'!$AR$12,200,ROW()),\"\"),\"\")","v":""},{"$f":"IFERROR(IF(MeasureCalc(Table_PI[[#This Row],[Hide:\nFormula Name]],Table_SummaryPI[[#This Row],[Quantity]],Table_PI[[#This Row],[List 1]],Table_PI[[#This Row],[List 2]],Table_PI[[#This Row],[List 3]],Table_PI[[#This Row],[Size]],Table_PI[[#This Row],[Input 1]],Table_PI[[#This Row],[Input 2]],Table_PI[[#This Row],[Input 3]],Table_PI[[#This Row],[Input 4]],'Customer Information'!$AR$12,201,ROW())<>\"No Rebate\",MeasureCalc(Table_PI[[#This Row],[Hide:\nFormula Name]],Table_SummaryPI[[#This Row],[Quantity]],Table_PI[[#This Row],[List 1]],Table_PI[[#This Row],[List 2]],Table_PI[[#This Row],[List 3]],Table_PI[[#This Row],[Size]],Table_PI[[#This Row],[Input 1]],Table_PI[[#This Row],[Input 2]],Table_PI[[#This Row],[Input 3]],Table_PI[[#This Row],[Input 4]],'Customer Information'!$AR$12,201,ROW()),\"\"),\"\")","v":""}]
[{"$f":"Table_PI[[#This Row],[Line No.]]","v":""},{"$f":"IF(Table_SummaryPI[[#This Row],[MeassureCategory]]<>\"\",CONCATENATE(Table_SummaryPI[[#This Row],[MeassureCategory]],  \" - \", Table_SummaryPI[[#This Row],[ProposedMeasureCategory]],  \" - \", TEXT(Table_SummaryPI[[#This Row],[Size]],\"#,##0.00\"),\" \",Table_SummaryPI[[#This Row],[SizeUnit]]),\"\")","v":""},{"$f":"SUBSTITUTE(Table_PI[[#This Row],[Measure]],\"     \",\"\",1)","v":""},{"$f":"IF(Table_PI[[#This Row],[List 1]]<>\"\",Table_PI[[#This Row],[List 1]],\"\")","v":""},{"$f":"IF(Table_PI[[#This Row],[List 2]]<>\"\",Table_PI[[#This Row],[List 2]],\"\")","v":""},{"$f":"IF(Table_PI[[#This Row],[List 3]]<>\"\",Table_PI[[#This Row],[List 3]],\"\")","v":""},{"$f":"IF(Table_PI[[#This Row],[Manufacturer]]=\"\",\"\",Table_PI[[#This Row],[Manufacturer]])","v":""},{"$f":"IF(Table_PI[[#This Row],[Model Number]]=\"\",\"\",Table_PI[[#This Row],[Model Number]])","v":""},{"$f":"IF(Table_PI[[#This Row],[Serial Number(s)]]=\"\",\"\",Table_PI[[#This Row],[Serial Number(s)]])","v":""},null,{"$f":"IF(Table_PI[[#This Row],[Size]]=\"\",\"\",Table_PI[[#This Row],[Size]])","v":""},null,{"$f":"IFERROR(IF(AND(MeasureCalc(Table_PI[[#This Row],[Hide:\nFormula Name]],Table_SummaryPI[[#This Row],[Quantity]],Table_PI[[#This Row],[List 1]],Table_PI[[#This Row],[List 2]],Table_PI[[#This Row],[List 3]],Table_PI[[#This Row],[Size]],Table_PI[[#This Row],[Input 1]],Table_PI[[#This Row],[Input 2]],Table_PI[[#This Row],[Input 3]],Table_PI[[#This Row],[Input 4]],'Customer Information'!$AR$12,100,ROW())<>0,MeasureCalc(Table_PI[[#This Row],[Hide:\nFormula Name]],Table_SummaryPI[[#This Row],[Quantity]],Table_PI[[#This Row],[List 1]],Table_PI[[#This Row],[List 2]],Table_PI[[#This Row],[List 3]],Table_PI[[#This Row],[Size]],Table_PI[[#This Row],[Input 1]],Table_PI[[#This Row],[Input 2]],Table_PI[[#This Row],[Input 3]],Table_PI[[#This Row],[Input 4]],'Customer Information'!$AR$12,100,ROW())<>\"No Rebate\"),MeasureCalc(Table_PI[[#This Row],[Hide:\nFormula Name]],Table_SummaryPI[[#This Row],[Quantity]],Table_PI[[#This Row],[List 1]],Table_PI[[#This Row],[List 2]],Table_PI[[#This Row],[List 3]],Table_PI[[#This Row],[Size]],Table_PI[[#This Row],[Input 1]],Table_PI[[#This Row],[Input 2]],Table_PI[[#This Row],[Input 3]],Table_PI[[#This Row],[Input 4]],'Customer Information'!$AR$12,100,ROW()),\"\"),\"\")","v":""},{"$f":"IF(Table_PI[[#This Row],[Input 1]]<>\"\",Table_PI[[#This Row],[Input 1]],\"\")","v":""},null,{"$f":"IFERROR(IF(AND(MeasureCalc(Table_PI[[#This Row],[Hide:\nFormula Name]],Table_SummaryPI[[#This Row],[Quantity]],Table_PI[[#This Row],[List 1]],Table_PI[[#This Row],[List 2]],Table_PI[[#This Row],[List 3]],Table_PI[[#This Row],[Size]],Table_PI[[#This Row],[Input 1]],Table_PI[[#This Row],[Input 2]],Table_PI[[#This Row],[Input 3]],Table_PI[[#This Row],[Input 4]],'Customer Information'!$AR$12,101,ROW())<>0,MeasureCalc(Table_PI[[#This Row],[Hide:\nFormula Name]],Table_SummaryPI[[#This Row],[Quantity]],Table_PI[[#This Row],[List 1]],Table_PI[[#This Row],[List 2]],Table_PI[[#This Row],[List 3]],Table_PI[[#This Row],[Size]],Table_PI[[#This Row],[Input 1]],Table_PI[[#This Row],[Input 2]],Table_PI[[#This Row],[Input 3]],Table_PI[[#This Row],[Input 4]],'Customer Information'!$AR$12,101,ROW())<>\"No Rebate\"),MeasureCalc(Table_PI[[#This Row],[Hide:\nFormula Name]],Table_SummaryPI[[#This Row],[Quantity]],Table_PI[[#This Row],[List 1]],Table_PI[[#This Row],[List 2]],Table_PI[[#This Row],[List 3]],Table_PI[[#This Row],[Size]],Table_PI[[#This Row],[Input 1]],Table_PI[[#This Row],[Input 2]],Table_PI[[#This Row],[Input 3]],Table_PI[[#This Row],[Input 4]],'Customer Information'!$AR$12,101,ROW()),\"\"),\"\")","v":""},{"$f":"IF(Table_PI[[#This Row],[Input 2]]<>\"\",Table_PI[[#This Row],[Input 2]],\"\")","v":""},null,{"$f":"IFERROR(IF(AND(MeasureCalc(Table_PI[[#This Row],[Hide:\nFormula Name]],Table_SummaryPI[[#This Row],[Quantity]],Table_PI[[#This Row],[List 1]],Table_PI[[#This Row],[List 2]],Table_PI[[#This Row],[List 3]],Table_PI[[#This Row],[Size]],Table_PI[[#This Row],[Input 1]],Table_PI[[#This Row],[Input 2]],Table_PI[[#This Row],[Input 3]],Table_PI[[#This Row],[Input 4]],'Customer Information'!$AR$12,102,ROW())<>0,MeasureCalc(Table_PI[[#This Row],[Hide:\nFormula Name]],Table_SummaryPI[[#This Row],[Quantity]],Table_PI[[#This Row],[List 1]],Table_PI[[#This Row],[List 2]],Table_PI[[#This Row],[List 3]],Table_PI[[#This Row],[Size]],Table_PI[[#This Row],[Input 1]],Table_PI[[#This Row],[Input 2]],Table_PI[[#This Row],[Input 3]],Table_PI[[#This Row],[Input 4]],'Customer Information'!$AR$12,102,ROW())<>\"No Rebate\"),MeasureCalc(Table_PI[[#This Row],[Hide:\nFormula Name]],Table_SummaryPI[[#This Row],[Quantity]],Table_PI[[#This Row],[List 1]],Table_PI[[#This Row],[List 2]],Table_PI[[#This Row],[List 3]],Table_PI[[#This Row],[Size]],Table_PI[[#This Row],[Input 1]],Table_PI[[#This Row],[Input 2]],Table_PI[[#This Row],[Input 3]],Table_PI[[#This Row],[Input 4]],'Customer Information'!$AR$12,102,ROW()),\"\"),\"\")","v":""},{"$f":"IF(Table_PI[[#This Row],[Input 3]]<>\"\",Table_PI[[#This Row],[Input 3]],\"\")","v":""},null,{"$f":"IFERROR(IF(AND(MeasureCalc(Table_PI[[#This Row],[Hide:\nFormula Name]],Table_SummaryPI[[#This Row],[Quantity]],Table_PI[[#This Row],[List 1]],Table_PI[[#This Row],[List 2]],Table_PI[[#This Row],[List 3]],Table_PI[[#This Row],[Size]],Table_PI[[#This Row],[Input 1]],Table_PI[[#This Row],[Input 2]],Table_PI[[#This Row],[Input 3]],Table_PI[[#This Row],[Input 4]],'Customer Information'!$AR$12,103,ROW())<>0,MeasureCalc(Table_PI[[#This Row],[Hide:\nFormula Name]],Table_SummaryPI[[#This Row],[Quantity]],Table_PI[[#This Row],[List 1]],Table_PI[[#This Row],[List 2]],Table_PI[[#This Row],[List 3]],Table_PI[[#This Row],[Size]],Table_PI[[#This Row],[Input 1]],Table_PI[[#This Row],[Input 2]],Table_PI[[#This Row],[Input 3]],Table_PI[[#This Row],[Input 4]],'Customer Information'!$AR$12,103,ROW())<>\"No Rebate\"),MeasureCalc(Table_PI[[#This Row],[Hide:\nFormula Name]],Table_SummaryPI[[#This Row],[Quantity]],Table_PI[[#This Row],[List 1]],Table_PI[[#This Row],[List 2]],Table_PI[[#This Row],[List 3]],Table_PI[[#This Row],[Size]],Table_PI[[#This Row],[Input 1]],Table_PI[[#This Row],[Input 2]],Table_PI[[#This Row],[Input 3]],Table_PI[[#This Row],[Input 4]],'Customer Information'!$AR$12,103,ROW()),\"\"),\"\")","v":""},{"$f":"IF(Table_PI[[#This Row],[Input 4]]<>\"\",Table_PI[[#This Row],[Input 4]],\"\")","v":""},{"$f":"IF(Table_PI[[#This Row],[Quantity]]=\"\",\"\",Table_PI[[#This Row],[Quantity]])","v":""},{"$f":"IF(Table_PI[[#This Row],[Notes]]=\"\",\"\",Table_PI[[#This Row],[Notes]])","v":""},{"$f":"IF(OR(Table_PI[[#This Row],[Hide:\nBaseline kWh]]=\"\",Table_PI[[#This Row],[Hide:\nBaseline kWh]]=0),\"\",Table_PI[[#This Row],[Hide:\nBaseline kWh]])","v":""},{"$f":"IF(OR(Table_PI[[#This Row],[Hide:\nBaseline kW]]=\"\",Table_PI[[#This Row],[Hide:\nBaseline kW]]=0),\"\",Table_PI[[#This Row],[Hide:\nBaseline kW]])","v":""},{"$f":"IF(OR(Table_PI[[#This Row],[Hide:\nProposed kWh]]=\"\",Table_PI[[#This Row],[Hide:\nProposed kWh]]=0),\"\",Table_PI[[#This Row],[Hide:\nProposed kWh]])","v":""},{"$f":"IF(OR(Table_PI[[#This Row],[Hide:\nProposed kW]]=\"\",Table_PI[[#This Row],[Hide:\nProposed kW]]=0),\"\",Table_PI[[#This Row],[Hide:\nProposed kW]])","v":""},{"$f":"IF(OR(Table_PI[[#This Row],[Rebate]]=\"\",Table_PI[[#This Row],[Rebate]]=0),\"\",Table_PI[[#This Row],[Rebate]])","v":""},{"$f":"IF(OR(Table_PI[[#This Row],[Hide:\nIncremental Cost]]=\"\",Table_PI[[#This Row],[Hide:\nIncremental Cost]]=0),\"\",Table_PI[[#This Row],[Hide:\nIncremental Cost]])","v":""},{"$f":"IFERROR(IF(Table_SummaryPI[[#This Row],[kWhSavings]]=\"\",\"\",ROUND(Table_SummaryPI[[#This Row],[kWhSavings]]/$AG$401*'Customer Information'!$BC$17,2)),0)","v":""},{"$f":"IF(OR(Table_PI[[#This Row],[Annual kWh]]=\"\",Table_PI[[#This Row],[Annual kWh]]=0),\"\",Table_PI[[#This Row],[Annual kWh]])","v":""},{"$f":"IF(OR(Table_PI[[#This Row],[Peak kW]]=\"\",Table_PI[[#This Row],[Peak kW]]=0),\"\",Table_PI[[#This Row],[Peak kW]])","v":""},{"$f":"IFERROR(IF(Table_SummaryPI[[#This Row],[kWhSavings]]=\"\",\"\",$AU$9*Table_SummaryPI[[#This Row],[kWhSavings]]),0)","v":""},{"$f":"IFERROR(IF(Table_SummaryPI[[#This Row],[kWhSavings]]=\"\",\"\",$AU$14*Table_SummaryPI[[#This Row],[kWhSavings]]),0)","v":""},{"$f":"IFERROR(IF(Table_SummaryPI[[#This Row],[kWhSavings]]=\"\",\"\",$AU$18*Table_SummaryPI[[#This Row],[kWhSavings]]),0)","v":""},{"$f":"IFERROR(IF(Table_SummaryPI[[#This Row],[kWhSavings]]=\"\",\"\",$AU$22*Table_SummaryPI[[#This Row],[kWhSavings]]),0)","v":""},{"$f":"IFERROR(IF(MeasureCalc(Table_PI[[#This Row],[Hide:\nFormula Name]],Table_SummaryPI[[#This Row],[Quantity]],Table_PI[[#This Row],[List 1]],Table_PI[[#This Row],[List 2]],Table_PI[[#This Row],[List 3]],Table_PI[[#This Row],[Size]],Table_PI[[#This Row],[Input 1]],Table_PI[[#This Row],[Input 2]],Table_PI[[#This Row],[Input 3]],Table_PI[[#This Row],[Input 4]],'Customer Information'!$AR$12,200,ROW())<>\"No Rebate\",MeasureCalc(Table_PI[[#This Row],[Hide:\nFormula Name]],Table_SummaryPI[[#This Row],[Quantity]],Table_PI[[#This Row],[List 1]],Table_PI[[#This Row],[List 2]],Table_PI[[#This Row],[List 3]],Table_PI[[#This Row],[Size]],Table_PI[[#This Row],[Input 1]],Table_PI[[#This Row],[Input 2]],Table_PI[[#This Row],[Input 3]],Table_PI[[#This Row],[Input 4]],'Customer Information'!$AR$12,200,ROW()),\"\"),\"\")","v":""},{"$f":"IFERROR(IF(MeasureCalc(Table_PI[[#This Row],[Hide:\nFormula Name]],Table_SummaryPI[[#This Row],[Quantity]],Table_PI[[#This Row],[List 1]],Table_PI[[#This Row],[List 2]],Table_PI[[#This Row],[List 3]],Table_PI[[#This Row],[Size]],Table_PI[[#This Row],[Input 1]],Table_PI[[#This Row],[Input 2]],Table_PI[[#This Row],[Input 3]],Table_PI[[#This Row],[Input 4]],'Customer Information'!$AR$12,201,ROW())<>\"No Rebate\",MeasureCalc(Table_PI[[#This Row],[Hide:\nFormula Name]],Table_SummaryPI[[#This Row],[Quantity]],Table_PI[[#This Row],[List 1]],Table_PI[[#This Row],[List 2]],Table_PI[[#This Row],[List 3]],Table_PI[[#This Row],[Size]],Table_PI[[#This Row],[Input 1]],Table_PI[[#This Row],[Input 2]],Table_PI[[#This Row],[Input 3]],Table_PI[[#This Row],[Input 4]],'Customer Information'!$AR$12,201,ROW()),\"\"),\"\")","v":""}]
[{"$f":"Table_PI[[#This Row],[Line No.]]","v":""},{"$f":"IF(Table_SummaryPI[[#This Row],[MeassureCategory]]<>\"\",CONCATENATE(Table_SummaryPI[[#This Row],[MeassureCategory]],  \" - \", Table_SummaryPI[[#This Row],[ProposedMeasureCategory]],  \" - \", TEXT(Table_SummaryPI[[#This Row],[Size]],\"#,##0.00\"),\" \",Table_SummaryPI[[#This Row],[SizeUnit]]),\"\")","v":""},{"$f":"SUBSTITUTE(Table_PI[[#This Row],[Measure]],\"     \",\"\",1)","v":""},{"$f":"IF(Table_PI[[#This Row],[List 1]]<>\"\",Table_PI[[#This Row],[List 1]],\"\")","v":""},{"$f":"IF(Table_PI[[#This Row],[List 2]]<>\"\",Table_PI[[#This Row],[List 2]],\"\")","v":""},{"$f":"IF(Table_PI[[#This Row],[List 3]]<>\"\",Table_PI[[#This Row],[List 3]],\"\")","v":""},{"$f":"IF(Table_PI[[#This Row],[Manufacturer]]=\"\",\"\",Table_PI[[#This Row],[Manufacturer]])","v":""},{"$f":"IF(Table_PI[[#This Row],[Model Number]]=\"\",\"\",Table_PI[[#This Row],[Model Number]])","v":""},{"$f":"IF(Table_PI[[#This Row],[Serial Number(s)]]=\"\",\"\",Table_PI[[#This Row],[Serial Number(s)]])","v":""},null,{"$f":"IF(Table_PI[[#This Row],[Size]]=\"\",\"\",Table_PI[[#This Row],[Size]])","v":""},null,{"$f":"IFERROR(IF(AND(MeasureCalc(Table_PI[[#This Row],[Hide:\nFormula Name]],Table_SummaryPI[[#This Row],[Quantity]],Table_PI[[#This Row],[List 1]],Table_PI[[#This Row],[List 2]],Table_PI[[#This Row],[List 3]],Table_PI[[#This Row],[Size]],Table_PI[[#This Row],[Input 1]],Table_PI[[#This Row],[Input 2]],Table_PI[[#This Row],[Input 3]],Table_PI[[#This Row],[Input 4]],'Customer Information'!$AR$12,100,ROW())<>0,MeasureCalc(Table_PI[[#This Row],[Hide:\nFormula Name]],Table_SummaryPI[[#This Row],[Quantity]],Table_PI[[#This Row],[List 1]],Table_PI[[#This Row],[List 2]],Table_PI[[#This Row],[List 3]],Table_PI[[#This Row],[Size]],Table_PI[[#This Row],[Input 1]],Table_PI[[#This Row],[Input 2]],Table_PI[[#This Row],[Input 3]],Table_PI[[#This Row],[Input 4]],'Customer Information'!$AR$12,100,ROW())<>\"No Rebate\"),MeasureCalc(Table_PI[[#This Row],[Hide:\nFormula Name]],Table_SummaryPI[[#This Row],[Quantity]],Table_PI[[#This Row],[List 1]],Table_PI[[#This Row],[List 2]],Table_PI[[#This Row],[List 3]],Table_PI[[#This Row],[Size]],Table_PI[[#This Row],[Input 1]],Table_PI[[#This Row],[Input 2]],Table_PI[[#This Row],[Input 3]],Table_PI[[#This Row],[Input 4]],'Customer Information'!$AR$12,100,ROW()),\"\"),\"\")","v":""},{"$f":"IF(Table_PI[[#This Row],[Input 1]]<>\"\",Table_PI[[#This Row],[Input 1]],\"\")","v":""},null,{"$f":"IFERROR(IF(AND(MeasureCalc(Table_PI[[#This Row],[Hide:\nFormula Name]],Table_SummaryPI[[#This Row],[Quantity]],Table_PI[[#This Row],[List 1]],Table_PI[[#This Row],[List 2]],Table_PI[[#This Row],[List 3]],Table_PI[[#This Row],[Size]],Table_PI[[#This Row],[Input 1]],Table_PI[[#This Row],[Input 2]],Table_PI[[#This Row],[Input 3]],Table_PI[[#This Row],[Input 4]],'Customer Information'!$AR$12,101,ROW())<>0,MeasureCalc(Table_PI[[#This Row],[Hide:\nFormula Name]],Table_SummaryPI[[#This Row],[Quantity]],Table_PI[[#This Row],[List 1]],Table_PI[[#This Row],[List 2]],Table_PI[[#This Row],[List 3]],Table_PI[[#This Row],[Size]],Table_PI[[#This Row],[Input 1]],Table_PI[[#This Row],[Input 2]],Table_PI[[#This Row],[Input 3]],Table_PI[[#This Row],[Input 4]],'Customer Information'!$AR$12,101,ROW())<>\"No Rebate\"),MeasureCalc(Table_PI[[#This Row],[Hide:\nFormula Name]],Table_SummaryPI[[#This Row],[Quantity]],Table_PI[[#This Row],[List 1]],Table_PI[[#This Row],[List 2]],Table_PI[[#This Row],[List 3]],Table_PI[[#This Row],[Size]],Table_PI[[#This Row],[Input 1]],Table_PI[[#This Row],[Input 2]],Table_PI[[#This Row],[Input 3]],Table_PI[[#This Row],[Input 4]],'Customer Information'!$AR$12,101,ROW()),\"\"),\"\")","v":""},{"$f":"IF(Table_PI[[#This Row],[Input 2]]<>\"\",Table_PI[[#This Row],[Input 2]],\"\")","v":""},null,{"$f":"IFERROR(IF(AND(MeasureCalc(Table_PI[[#This Row],[Hide:\nFormula Name]],Table_SummaryPI[[#This Row],[Quantity]],Table_PI[[#This Row],[List 1]],Table_PI[[#This Row],[List 2]],Table_PI[[#This Row],[List 3]],Table_PI[[#This Row],[Size]],Table_PI[[#This Row],[Input 1]],Table_PI[[#This Row],[Input 2]],Table_PI[[#This Row],[Input 3]],Table_PI[[#This Row],[Input 4]],'Customer Information'!$AR$12,102,ROW())<>0,MeasureCalc(Table_PI[[#This Row],[Hide:\nFormula Name]],Table_SummaryPI[[#This Row],[Quantity]],Table_PI[[#This Row],[List 1]],Table_PI[[#This Row],[List 2]],Table_PI[[#This Row],[List 3]],Table_PI[[#This Row],[Size]],Table_PI[[#This Row],[Input 1]],Table_PI[[#This Row],[Input 2]],Table_PI[[#This Row],[Input 3]],Table_PI[[#This Row],[Input 4]],'Customer Information'!$AR$12,102,ROW())<>\"No Rebate\"),MeasureCalc(Table_PI[[#This Row],[Hide:\nFormula Name]],Table_SummaryPI[[#This Row],[Quantity]],Table_PI[[#This Row],[List 1]],Table_PI[[#This Row],[List 2]],Table_PI[[#This Row],[List 3]],Table_PI[[#This Row],[Size]],Table_PI[[#This Row],[Input 1]],Table_PI[[#This Row],[Input 2]],Table_PI[[#This Row],[Input 3]],Table_PI[[#This Row],[Input 4]],'Customer Information'!$AR$12,102,ROW()),\"\"),\"\")","v":""},{"$f":"IF(Table_PI[[#This Row],[Input 3]]<>\"\",Table_PI[[#This Row],[Input 3]],\"\")","v":""},null,{"$f":"IFERROR(IF(AND(MeasureCalc(Table_PI[[#This Row],[Hide:\nFormula Name]],Table_SummaryPI[[#This Row],[Quantity]],Table_PI[[#This Row],[List 1]],Table_PI[[#This Row],[List 2]],Table_PI[[#This Row],[List 3]],Table_PI[[#This Row],[Size]],Table_PI[[#This Row],[Input 1]],Table_PI[[#This Row],[Input 2]],Table_PI[[#This Row],[Input 3]],Table_PI[[#This Row],[Input 4]],'Customer Information'!$AR$12,103,ROW())<>0,MeasureCalc(Table_PI[[#This Row],[Hide:\nFormula Name]],Table_SummaryPI[[#This Row],[Quantity]],Table_PI[[#This Row],[List 1]],Table_PI[[#This Row],[List 2]],Table_PI[[#This Row],[List 3]],Table_PI[[#This Row],[Size]],Table_PI[[#This Row],[Input 1]],Table_PI[[#This Row],[Input 2]],Table_PI[[#This Row],[Input 3]],Table_PI[[#This Row],[Input 4]],'Customer Information'!$AR$12,103,ROW())<>\"No Rebate\"),MeasureCalc(Table_PI[[#This Row],[Hide:\nFormula Name]],Table_SummaryPI[[#This Row],[Quantity]],Table_PI[[#This Row],[List 1]],Table_PI[[#This Row],[List 2]],Table_PI[[#This Row],[List 3]],Table_PI[[#This Row],[Size]],Table_PI[[#This Row],[Input 1]],Table_PI[[#This Row],[Input 2]],Table_PI[[#This Row],[Input 3]],Table_PI[[#This Row],[Input 4]],'Customer Information'!$AR$12,103,ROW()),\"\"),\"\")","v":""},{"$f":"IF(Table_PI[[#This Row],[Input 4]]<>\"\",Table_PI[[#This Row],[Input 4]],\"\")","v":""},{"$f":"IF(Table_PI[[#This Row],[Quantity]]=\"\",\"\",Table_PI[[#This Row],[Quantity]])","v":""},{"$f":"IF(Table_PI[[#This Row],[Notes]]=\"\",\"\",Table_PI[[#This Row],[Notes]])","v":""},{"$f":"IF(OR(Table_PI[[#This Row],[Hide:\nBaseline kWh]]=\"\",Table_PI[[#This Row],[Hide:\nBaseline kWh]]=0),\"\",Table_PI[[#This Row],[Hide:\nBaseline kWh]])","v":""},{"$f":"IF(OR(Table_PI[[#This Row],[Hide:\nBaseline kW]]=\"\",Table_PI[[#This Row],[Hide:\nBaseline kW]]=0),\"\",Table_PI[[#This Row],[Hide:\nBaseline kW]])","v":""},{"$f":"IF(OR(Table_PI[[#This Row],[Hide:\nProposed kWh]]=\"\",Table_PI[[#This Row],[Hide:\nProposed kWh]]=0),\"\",Table_PI[[#This Row],[Hide:\nProposed kWh]])","v":""},{"$f":"IF(OR(Table_PI[[#This Row],[Hide:\nProposed kW]]=\"\",Table_PI[[#This Row],[Hide:\nProposed kW]]=0),\"\",Table_PI[[#This Row],[Hide:\nProposed kW]])","v":""},{"$f":"IF(OR(Table_PI[[#This Row],[Rebate]]=\"\",Table_PI[[#This Row],[Rebate]]=0),\"\",Table_PI[[#This Row],[Rebate]])","v":""},{"$f":"IF(OR(Table_PI[[#This Row],[Hide:\nIncremental Cost]]=\"\",Table_PI[[#This Row],[Hide:\nIncremental Cost]]=0),\"\",Table_PI[[#This Row],[Hide:\nIncremental Cost]])","v":""},{"$f":"IFERROR(IF(Table_SummaryPI[[#This Row],[kWhSavings]]=\"\",\"\",ROUND(Table_SummaryPI[[#This Row],[kWhSavings]]/$AG$401*'Customer Information'!$BC$17,2)),0)","v":""},{"$f":"IF(OR(Table_PI[[#This Row],[Annual kWh]]=\"\",Table_PI[[#This Row],[Annual kWh]]=0),\"\",Table_PI[[#This Row],[Annual kWh]])","v":""},{"$f":"IF(OR(Table_PI[[#This Row],[Peak kW]]=\"\",Table_PI[[#This Row],[Peak kW]]=0),\"\",Table_PI[[#This Row],[Peak kW]])","v":""},{"$f":"IFERROR(IF(Table_SummaryPI[[#This Row],[kWhSavings]]=\"\",\"\",$AU$9*Table_SummaryPI[[#This Row],[kWhSavings]]),0)","v":""},{"$f":"IFERROR(IF(Table_SummaryPI[[#This Row],[kWhSavings]]=\"\",\"\",$AU$14*Table_SummaryPI[[#This Row],[kWhSavings]]),0)","v":""},{"$f":"IFERROR(IF(Table_SummaryPI[[#This Row],[kWhSavings]]=\"\",\"\",$AU$18*Table_SummaryPI[[#This Row],[kWhSavings]]),0)","v":""},{"$f":"IFERROR(IF(Table_SummaryPI[[#This Row],[kWhSavings]]=\"\",\"\",$AU$22*Table_SummaryPI[[#This Row],[kWhSavings]]),0)","v":""},{"$f":"IFERROR(IF(MeasureCalc(Table_PI[[#This Row],[Hide:\nFormula Name]],Table_SummaryPI[[#This Row],[Quantity]],Table_PI[[#This Row],[List 1]],Table_PI[[#This Row],[List 2]],Table_PI[[#This Row],[List 3]],Table_PI[[#This Row],[Size]],Table_PI[[#This Row],[Input 1]],Table_PI[[#This Row],[Input 2]],Table_PI[[#This Row],[Input 3]],Table_PI[[#This Row],[Input 4]],'Customer Information'!$AR$12,200,ROW())<>\"No Rebate\",MeasureCalc(Table_PI[[#This Row],[Hide:\nFormula Name]],Table_SummaryPI[[#This Row],[Quantity]],Table_PI[[#This Row],[List 1]],Table_PI[[#This Row],[List 2]],Table_PI[[#This Row],[List 3]],Table_PI[[#This Row],[Size]],Table_PI[[#This Row],[Input 1]],Table_PI[[#This Row],[Input 2]],Table_PI[[#This Row],[Input 3]],Table_PI[[#This Row],[Input 4]],'Customer Information'!$AR$12,200,ROW()),\"\"),\"\")","v":""},{"$f":"IFERROR(IF(MeasureCalc(Table_PI[[#This Row],[Hide:\nFormula Name]],Table_SummaryPI[[#This Row],[Quantity]],Table_PI[[#This Row],[List 1]],Table_PI[[#This Row],[List 2]],Table_PI[[#This Row],[List 3]],Table_PI[[#This Row],[Size]],Table_PI[[#This Row],[Input 1]],Table_PI[[#This Row],[Input 2]],Table_PI[[#This Row],[Input 3]],Table_PI[[#This Row],[Input 4]],'Customer Information'!$AR$12,201,ROW())<>\"No Rebate\",MeasureCalc(Table_PI[[#This Row],[Hide:\nFormula Name]],Table_SummaryPI[[#This Row],[Quantity]],Table_PI[[#This Row],[List 1]],Table_PI[[#This Row],[List 2]],Table_PI[[#This Row],[List 3]],Table_PI[[#This Row],[Size]],Table_PI[[#This Row],[Input 1]],Table_PI[[#This Row],[Input 2]],Table_PI[[#This Row],[Input 3]],Table_PI[[#This Row],[Input 4]],'Customer Information'!$AR$12,201,ROW()),\"\"),\"\")","v":""}]
[{"$f":"Table_PI[[#This Row],[Line No.]]","v":""},{"$f":"IF(Table_SummaryPI[[#This Row],[MeassureCategory]]<>\"\",CONCATENATE(Table_SummaryPI[[#This Row],[MeassureCategory]],  \" - \", Table_SummaryPI[[#This Row],[ProposedMeasureCategory]],  \" - \", TEXT(Table_SummaryPI[[#This Row],[Size]],\"#,##0.00\"),\" \",Table_SummaryPI[[#This Row],[SizeUnit]]),\"\")","v":""},{"$f":"SUBSTITUTE(Table_PI[[#This Row],[Measure]],\"     \",\"\",1)","v":""},{"$f":"IF(Table_PI[[#This Row],[List 1]]<>\"\",Table_PI[[#This Row],[List 1]],\"\")","v":""},{"$f":"IF(Table_PI[[#This Row],[List 2]]<>\"\",Table_PI[[#This Row],[List 2]],\"\")","v":""},{"$f":"IF(Table_PI[[#This Row],[List 3]]<>\"\",Table_PI[[#This Row],[List 3]],\"\")","v":""},{"$f":"IF(Table_PI[[#This Row],[Manufacturer]]=\"\",\"\",Table_PI[[#This Row],[Manufacturer]])","v":""},{"$f":"IF(Table_PI[[#This Row],[Model Number]]=\"\",\"\",Table_PI[[#This Row],[Model Number]])","v":""},{"$f":"IF(Table_PI[[#This Row],[Serial Number(s)]]=\"\",\"\",Table_PI[[#This Row],[Serial Number(s)]])","v":""},null,{"$f":"IF(Table_PI[[#This Row],[Size]]=\"\",\"\",Table_PI[[#This Row],[Size]])","v":""},null,{"$f":"IFERROR(IF(AND(MeasureCalc(Table_PI[[#This Row],[Hide:\nFormula Name]],Table_SummaryPI[[#This Row],[Quantity]],Table_PI[[#This Row],[List 1]],Table_PI[[#This Row],[List 2]],Table_PI[[#This Row],[List 3]],Table_PI[[#This Row],[Size]],Table_PI[[#This Row],[Input 1]],Table_PI[[#This Row],[Input 2]],Table_PI[[#This Row],[Input 3]],Table_PI[[#This Row],[Input 4]],'Customer Information'!$AR$12,100,ROW())<>0,MeasureCalc(Table_PI[[#This Row],[Hide:\nFormula Name]],Table_SummaryPI[[#This Row],[Quantity]],Table_PI[[#This Row],[List 1]],Table_PI[[#This Row],[List 2]],Table_PI[[#This Row],[List 3]],Table_PI[[#This Row],[Size]],Table_PI[[#This Row],[Input 1]],Table_PI[[#This Row],[Input 2]],Table_PI[[#This Row],[Input 3]],Table_PI[[#This Row],[Input 4]],'Customer Information'!$AR$12,100,ROW())<>\"No Rebate\"),MeasureCalc(Table_PI[[#This Row],[Hide:\nFormula Name]],Table_SummaryPI[[#This Row],[Quantity]],Table_PI[[#This Row],[List 1]],Table_PI[[#This Row],[List 2]],Table_PI[[#This Row],[List 3]],Table_PI[[#This Row],[Size]],Table_PI[[#This Row],[Input 1]],Table_PI[[#This Row],[Input 2]],Table_PI[[#This Row],[Input 3]],Table_PI[[#This Row],[Input 4]],'Customer Information'!$AR$12,100,ROW()),\"\"),\"\")","v":""},{"$f":"IF(Table_PI[[#This Row],[Input 1]]<>\"\",Table_PI[[#This Row],[Input 1]],\"\")","v":""},null,{"$f":"IFERROR(IF(AND(MeasureCalc(Table_PI[[#This Row],[Hide:\nFormula Name]],Table_SummaryPI[[#This Row],[Quantity]],Table_PI[[#This Row],[List 1]],Table_PI[[#This Row],[List 2]],Table_PI[[#This Row],[List 3]],Table_PI[[#This Row],[Size]],Table_PI[[#This Row],[Input 1]],Table_PI[[#This Row],[Input 2]],Table_PI[[#This Row],[Input 3]],Table_PI[[#This Row],[Input 4]],'Customer Information'!$AR$12,101,ROW())<>0,MeasureCalc(Table_PI[[#This Row],[Hide:\nFormula Name]],Table_SummaryPI[[#This Row],[Quantity]],Table_PI[[#This Row],[List 1]],Table_PI[[#This Row],[List 2]],Table_PI[[#This Row],[List 3]],Table_PI[[#This Row],[Size]],Table_PI[[#This Row],[Input 1]],Table_PI[[#This Row],[Input 2]],Table_PI[[#This Row],[Input 3]],Table_PI[[#This Row],[Input 4]],'Customer Information'!$AR$12,101,ROW())<>\"No Rebate\"),MeasureCalc(Table_PI[[#This Row],[Hide:\nFormula Name]],Table_SummaryPI[[#This Row],[Quantity]],Table_PI[[#This Row],[List 1]],Table_PI[[#This Row],[List 2]],Table_PI[[#This Row],[List 3]],Table_PI[[#This Row],[Size]],Table_PI[[#This Row],[Input 1]],Table_PI[[#This Row],[Input 2]],Table_PI[[#This Row],[Input 3]],Table_PI[[#This Row],[Input 4]],'Customer Information'!$AR$12,101,ROW()),\"\"),\"\")","v":""},{"$f":"IF(Table_PI[[#This Row],[Input 2]]<>\"\",Table_PI[[#This Row],[Input 2]],\"\")","v":""},null,{"$f":"IFERROR(IF(AND(MeasureCalc(Table_PI[[#This Row],[Hide:\nFormula Name]],Table_SummaryPI[[#This Row],[Quantity]],Table_PI[[#This Row],[List 1]],Table_PI[[#This Row],[List 2]],Table_PI[[#This Row],[List 3]],Table_PI[[#This Row],[Size]],Table_PI[[#This Row],[Input 1]],Table_PI[[#This Row],[Input 2]],Table_PI[[#This Row],[Input 3]],Table_PI[[#This Row],[Input 4]],'Customer Information'!$AR$12,102,ROW())<>0,MeasureCalc(Table_PI[[#This Row],[Hide:\nFormula Name]],Table_SummaryPI[[#This Row],[Quantity]],Table_PI[[#This Row],[List 1]],Table_PI[[#This Row],[List 2]],Table_PI[[#This Row],[List 3]],Table_PI[[#This Row],[Size]],Table_PI[[#This Row],[Input 1]],Table_PI[[#This Row],[Input 2]],Table_PI[[#This Row],[Input 3]],Table_PI[[#This Row],[Input 4]],'Customer Information'!$AR$12,102,ROW())<>\"No Rebate\"),MeasureCalc(Table_PI[[#This Row],[Hide:\nFormula Name]],Table_SummaryPI[[#This Row],[Quantity]],Table_PI[[#This Row],[List 1]],Table_PI[[#This Row],[List 2]],Table_PI[[#This Row],[List 3]],Table_PI[[#This Row],[Size]],Table_PI[[#This Row],[Input 1]],Table_PI[[#This Row],[Input 2]],Table_PI[[#This Row],[Input 3]],Table_PI[[#This Row],[Input 4]],'Customer Information'!$AR$12,102,ROW()),\"\"),\"\")","v":""},{"$f":"IF(Table_PI[[#This Row],[Input 3]]<>\"\",Table_PI[[#This Row],[Input 3]],\"\")","v":""},null,{"$f":"IFERROR(IF(AND(MeasureCalc(Table_PI[[#This Row],[Hide:\nFormula Name]],Table_SummaryPI[[#This Row],[Quantity]],Table_PI[[#This Row],[List 1]],Table_PI[[#This Row],[List 2]],Table_PI[[#This Row],[List 3]],Table_PI[[#This Row],[Size]],Table_PI[[#This Row],[Input 1]],Table_PI[[#This Row],[Input 2]],Table_PI[[#This Row],[Input 3]],Table_PI[[#This Row],[Input 4]],'Customer Information'!$AR$12,103,ROW())<>0,MeasureCalc(Table_PI[[#This Row],[Hide:\nFormula Name]],Table_SummaryPI[[#This Row],[Quantity]],Table_PI[[#This Row],[List 1]],Table_PI[[#This Row],[List 2]],Table_PI[[#This Row],[List 3]],Table_PI[[#This Row],[Size]],Table_PI[[#This Row],[Input 1]],Table_PI[[#This Row],[Input 2]],Table_PI[[#This Row],[Input 3]],Table_PI[[#This Row],[Input 4]],'Customer Information'!$AR$12,103,ROW())<>\"No Rebate\"),MeasureCalc(Table_PI[[#This Row],[Hide:\nFormula Name]],Table_SummaryPI[[#This Row],[Quantity]],Table_PI[[#This Row],[List 1]],Table_PI[[#This Row],[List 2]],Table_PI[[#This Row],[List 3]],Table_PI[[#This Row],[Size]],Table_PI[[#This Row],[Input 1]],Table_PI[[#This Row],[Input 2]],Table_PI[[#This Row],[Input 3]],Table_PI[[#This Row],[Input 4]],'Customer Information'!$AR$12,103,ROW()),\"\"),\"\")","v":""},{"$f":"IF(Table_PI[[#This Row],[Input 4]]<>\"\",Table_PI[[#This Row],[Input 4]],\"\")","v":""},{"$f":"IF(Table_PI[[#This Row],[Quantity]]=\"\",\"\",Table_PI[[#This Row],[Quantity]])","v":""},{"$f":"IF(Table_PI[[#This Row],[Notes]]=\"\",\"\",Table_PI[[#This Row],[Notes]])","v":""},{"$f":"IF(OR(Table_PI[[#This Row],[Hide:\nBaseline kWh]]=\"\",Table_PI[[#This Row],[Hide:\nBaseline kWh]]=0),\"\",Table_PI[[#This Row],[Hide:\nBaseline kWh]])","v":""},{"$f":"IF(OR(Table_PI[[#This Row],[Hide:\nBaseline kW]]=\"\",Table_PI[[#This Row],[Hide:\nBaseline kW]]=0),\"\",Table_PI[[#This Row],[Hide:\nBaseline kW]])","v":""},{"$f":"IF(OR(Table_PI[[#This Row],[Hide:\nProposed kWh]]=\"\",Table_PI[[#This Row],[Hide:\nProposed kWh]]=0),\"\",Table_PI[[#This Row],[Hide:\nProposed kWh]])","v":""},{"$f":"IF(OR(Table_PI[[#This Row],[Hide:\nProposed kW]]=\"\",Table_PI[[#This Row],[Hide:\nProposed kW]]=0),\"\",Table_PI[[#This Row],[Hide:\nProposed kW]])","v":""},{"$f":"IF(OR(Table_PI[[#This Row],[Rebate]]=\"\",Table_PI[[#This Row],[Rebate]]=0),\"\",Table_PI[[#This Row],[Rebate]])","v":""},{"$f":"IF(OR(Table_PI[[#This Row],[Hide:\nIncremental Cost]]=\"\",Table_PI[[#This Row],[Hide:\nIncremental Cost]]=0),\"\",Table_PI[[#This Row],[Hide:\nIncremental Cost]])","v":""},{"$f":"IFERROR(IF(Table_SummaryPI[[#This Row],[kWhSavings]]=\"\",\"\",ROUND(Table_SummaryPI[[#This Row],[kWhSavings]]/$AG$401*'Customer Information'!$BC$17,2)),0)","v":""},{"$f":"IF(OR(Table_PI[[#This Row],[Annual kWh]]=\"\",Table_PI[[#This Row],[Annual kWh]]=0),\"\",Table_PI[[#This Row],[Annual kWh]])","v":""},{"$f":"IF(OR(Table_PI[[#This Row],[Peak kW]]=\"\",Table_PI[[#This Row],[Peak kW]]=0),\"\",Table_PI[[#This Row],[Peak kW]])","v":""},{"$f":"IFERROR(IF(Table_SummaryPI[[#This Row],[kWhSavings]]=\"\",\"\",$AU$9*Table_SummaryPI[[#This Row],[kWhSavings]]),0)","v":""},{"$f":"IFERROR(IF(Table_SummaryPI[[#This Row],[kWhSavings]]=\"\",\"\",$AU$14*Table_SummaryPI[[#This Row],[kWhSavings]]),0)","v":""},{"$f":"IFERROR(IF(Table_SummaryPI[[#This Row],[kWhSavings]]=\"\",\"\",$AU$18*Table_SummaryPI[[#This Row],[kWhSavings]]),0)","v":""},{"$f":"IFERROR(IF(Table_SummaryPI[[#This Row],[kWhSavings]]=\"\",\"\",$AU$22*Table_SummaryPI[[#This Row],[kWhSavings]]),0)","v":""},{"$f":"IFERROR(IF(MeasureCalc(Table_PI[[#This Row],[Hide:\nFormula Name]],Table_SummaryPI[[#This Row],[Quantity]],Table_PI[[#This Row],[List 1]],Table_PI[[#This Row],[List 2]],Table_PI[[#This Row],[List 3]],Table_PI[[#This Row],[Size]],Table_PI[[#This Row],[Input 1]],Table_PI[[#This Row],[Input 2]],Table_PI[[#This Row],[Input 3]],Table_PI[[#This Row],[Input 4]],'Customer Information'!$AR$12,200,ROW())<>\"No Rebate\",MeasureCalc(Table_PI[[#This Row],[Hide:\nFormula Name]],Table_SummaryPI[[#This Row],[Quantity]],Table_PI[[#This Row],[List 1]],Table_PI[[#This Row],[List 2]],Table_PI[[#This Row],[List 3]],Table_PI[[#This Row],[Size]],Table_PI[[#This Row],[Input 1]],Table_PI[[#This Row],[Input 2]],Table_PI[[#This Row],[Input 3]],Table_PI[[#This Row],[Input 4]],'Customer Information'!$AR$12,200,ROW()),\"\"),\"\")","v":""},{"$f":"IFERROR(IF(MeasureCalc(Table_PI[[#This Row],[Hide:\nFormula Name]],Table_SummaryPI[[#This Row],[Quantity]],Table_PI[[#This Row],[List 1]],Table_PI[[#This Row],[List 2]],Table_PI[[#This Row],[List 3]],Table_PI[[#This Row],[Size]],Table_PI[[#This Row],[Input 1]],Table_PI[[#This Row],[Input 2]],Table_PI[[#This Row],[Input 3]],Table_PI[[#This Row],[Input 4]],'Customer Information'!$AR$12,201,ROW())<>\"No Rebate\",MeasureCalc(Table_PI[[#This Row],[Hide:\nFormula Name]],Table_SummaryPI[[#This Row],[Quantity]],Table_PI[[#This Row],[List 1]],Table_PI[[#This Row],[List 2]],Table_PI[[#This Row],[List 3]],Table_PI[[#This Row],[Size]],Table_PI[[#This Row],[Input 1]],Table_PI[[#This Row],[Input 2]],Table_PI[[#This Row],[Input 3]],Table_PI[[#This Row],[Input 4]],'Customer Information'!$AR$12,201,ROW()),\"\"),\"\")","v":""}]
[{"$f":"Table_PI[[#This Row],[Line No.]]","v":""},{"$f":"IF(Table_SummaryPI[[#This Row],[MeassureCategory]]<>\"\",CONCATENATE(Table_SummaryPI[[#This Row],[MeassureCategory]],  \" - \", Table_SummaryPI[[#This Row],[ProposedMeasureCategory]],  \" - \", TEXT(Table_SummaryPI[[#This Row],[Size]],\"#,##0.00\"),\" \",Table_SummaryPI[[#This Row],[SizeUnit]]),\"\")","v":""},{"$f":"SUBSTITUTE(Table_PI[[#This Row],[Measure]],\"     \",\"\",1)","v":""},{"$f":"IF(Table_PI[[#This Row],[List 1]]<>\"\",Table_PI[[#This Row],[List 1]],\"\")","v":""},{"$f":"IF(Table_PI[[#This Row],[List 2]]<>\"\",Table_PI[[#This Row],[List 2]],\"\")","v":""},{"$f":"IF(Table_PI[[#This Row],[List 3]]<>\"\",Table_PI[[#This Row],[List 3]],\"\")","v":""},{"$f":"IF(Table_PI[[#This Row],[Manufacturer]]=\"\",\"\",Table_PI[[#This Row],[Manufacturer]])","v":""},{"$f":"IF(Table_PI[[#This Row],[Model Number]]=\"\",\"\",Table_PI[[#This Row],[Model Number]])","v":""},{"$f":"IF(Table_PI[[#This Row],[Serial Number(s)]]=\"\",\"\",Table_PI[[#This Row],[Serial Number(s)]])","v":""},null,{"$f":"IF(Table_PI[[#This Row],[Size]]=\"\",\"\",Table_PI[[#This Row],[Size]])","v":""},null,{"$f":"IFERROR(IF(AND(MeasureCalc(Table_PI[[#This Row],[Hide:\nFormula Name]],Table_SummaryPI[[#This Row],[Quantity]],Table_PI[[#This Row],[List 1]],Table_PI[[#This Row],[List 2]],Table_PI[[#This Row],[List 3]],Table_PI[[#This Row],[Size]],Table_PI[[#This Row],[Input 1]],Table_PI[[#This Row],[Input 2]],Table_PI[[#This Row],[Input 3]],Table_PI[[#This Row],[Input 4]],'Customer Information'!$AR$12,100,ROW())<>0,MeasureCalc(Table_PI[[#This Row],[Hide:\nFormula Name]],Table_SummaryPI[[#This Row],[Quantity]],Table_PI[[#This Row],[List 1]],Table_PI[[#This Row],[List 2]],Table_PI[[#This Row],[List 3]],Table_PI[[#This Row],[Size]],Table_PI[[#This Row],[Input 1]],Table_PI[[#This Row],[Input 2]],Table_PI[[#This Row],[Input 3]],Table_PI[[#This Row],[Input 4]],'Customer Information'!$AR$12,100,ROW())<>\"No Rebate\"),MeasureCalc(Table_PI[[#This Row],[Hide:\nFormula Name]],Table_SummaryPI[[#This Row],[Quantity]],Table_PI[[#This Row],[List 1]],Table_PI[[#This Row],[List 2]],Table_PI[[#This Row],[List 3]],Table_PI[[#This Row],[Size]],Table_PI[[#This Row],[Input 1]],Table_PI[[#This Row],[Input 2]],Table_PI[[#This Row],[Input 3]],Table_PI[[#This Row],[Input 4]],'Customer Information'!$AR$12,100,ROW()),\"\"),\"\")","v":""},{"$f":"IF(Table_PI[[#This Row],[Input 1]]<>\"\",Table_PI[[#This Row],[Input 1]],\"\")","v":""},null,{"$f":"IFERROR(IF(AND(MeasureCalc(Table_PI[[#This Row],[Hide:\nFormula Name]],Table_SummaryPI[[#This Row],[Quantity]],Table_PI[[#This Row],[List 1]],Table_PI[[#This Row],[List 2]],Table_PI[[#This Row],[List 3]],Table_PI[[#This Row],[Size]],Table_PI[[#This Row],[Input 1]],Table_PI[[#This Row],[Input 2]],Table_PI[[#This Row],[Input 3]],Table_PI[[#This Row],[Input 4]],'Customer Information'!$AR$12,101,ROW())<>0,MeasureCalc(Table_PI[[#This Row],[Hide:\nFormula Name]],Table_SummaryPI[[#This Row],[Quantity]],Table_PI[[#This Row],[List 1]],Table_PI[[#This Row],[List 2]],Table_PI[[#This Row],[List 3]],Table_PI[[#This Row],[Size]],Table_PI[[#This Row],[Input 1]],Table_PI[[#This Row],[Input 2]],Table_PI[[#This Row],[Input 3]],Table_PI[[#This Row],[Input 4]],'Customer Information'!$AR$12,101,ROW())<>\"No Rebate\"),MeasureCalc(Table_PI[[#This Row],[Hide:\nFormula Name]],Table_SummaryPI[[#This Row],[Quantity]],Table_PI[[#This Row],[List 1]],Table_PI[[#This Row],[List 2]],Table_PI[[#This Row],[List 3]],Table_PI[[#This Row],[Size]],Table_PI[[#This Row],[Input 1]],Table_PI[[#This Row],[Input 2]],Table_PI[[#This Row],[Input 3]],Table_PI[[#This Row],[Input 4]],'Customer Information'!$AR$12,101,ROW()),\"\"),\"\")","v":""},{"$f":"IF(Table_PI[[#This Row],[Input 2]]<>\"\",Table_PI[[#This Row],[Input 2]],\"\")","v":""},null,{"$f":"IFERROR(IF(AND(MeasureCalc(Table_PI[[#This Row],[Hide:\nFormula Name]],Table_SummaryPI[[#This Row],[Quantity]],Table_PI[[#This Row],[List 1]],Table_PI[[#This Row],[List 2]],Table_PI[[#This Row],[List 3]],Table_PI[[#This Row],[Size]],Table_PI[[#This Row],[Input 1]],Table_PI[[#This Row],[Input 2]],Table_PI[[#This Row],[Input 3]],Table_PI[[#This Row],[Input 4]],'Customer Information'!$AR$12,102,ROW())<>0,MeasureCalc(Table_PI[[#This Row],[Hide:\nFormula Name]],Table_SummaryPI[[#This Row],[Quantity]],Table_PI[[#This Row],[List 1]],Table_PI[[#This Row],[List 2]],Table_PI[[#This Row],[List 3]],Table_PI[[#This Row],[Size]],Table_PI[[#This Row],[Input 1]],Table_PI[[#This Row],[Input 2]],Table_PI[[#This Row],[Input 3]],Table_PI[[#This Row],[Input 4]],'Customer Information'!$AR$12,102,ROW())<>\"No Rebate\"),MeasureCalc(Table_PI[[#This Row],[Hide:\nFormula Name]],Table_SummaryPI[[#This Row],[Quantity]],Table_PI[[#This Row],[List 1]],Table_PI[[#This Row],[List 2]],Table_PI[[#This Row],[List 3]],Table_PI[[#This Row],[Size]],Table_PI[[#This Row],[Input 1]],Table_PI[[#This Row],[Input 2]],Table_PI[[#This Row],[Input 3]],Table_PI[[#This Row],[Input 4]],'Customer Information'!$AR$12,102,ROW()),\"\"),\"\")","v":""},{"$f":"IF(Table_PI[[#This Row],[Input 3]]<>\"\",Table_PI[[#This Row],[Input 3]],\"\")","v":""},null,{"$f":"IFERROR(IF(AND(MeasureCalc(Table_PI[[#This Row],[Hide:\nFormula Name]],Table_SummaryPI[[#This Row],[Quantity]],Table_PI[[#This Row],[List 1]],Table_PI[[#This Row],[List 2]],Table_PI[[#This Row],[List 3]],Table_PI[[#This Row],[Size]],Table_PI[[#This Row],[Input 1]],Table_PI[[#This Row],[Input 2]],Table_PI[[#This Row],[Input 3]],Table_PI[[#This Row],[Input 4]],'Customer Information'!$AR$12,103,ROW())<>0,MeasureCalc(Table_PI[[#This Row],[Hide:\nFormula Name]],Table_SummaryPI[[#This Row],[Quantity]],Table_PI[[#This Row],[List 1]],Table_PI[[#This Row],[List 2]],Table_PI[[#This Row],[List 3]],Table_PI[[#This Row],[Size]],Table_PI[[#This Row],[Input 1]],Table_PI[[#This Row],[Input 2]],Table_PI[[#This Row],[Input 3]],Table_PI[[#This Row],[Input 4]],'Customer Information'!$AR$12,103,ROW())<>\"No Rebate\"),MeasureCalc(Table_PI[[#This Row],[Hide:\nFormula Name]],Table_SummaryPI[[#This Row],[Quantity]],Table_PI[[#This Row],[List 1]],Table_PI[[#This Row],[List 2]],Table_PI[[#This Row],[List 3]],Table_PI[[#This Row],[Size]],Table_PI[[#This Row],[Input 1]],Table_PI[[#This Row],[Input 2]],Table_PI[[#This Row],[Input 3]],Table_PI[[#This Row],[Input 4]],'Customer Information'!$AR$12,103,ROW()),\"\"),\"\")","v":""},{"$f":"IF(Table_PI[[#This Row],[Input 4]]<>\"\",Table_PI[[#This Row],[Input 4]],\"\")","v":""},{"$f":"IF(Table_PI[[#This Row],[Quantity]]=\"\",\"\",Table_PI[[#This Row],[Quantity]])","v":""},{"$f":"IF(Table_PI[[#This Row],[Notes]]=\"\",\"\",Table_PI[[#This Row],[Notes]])","v":""},{"$f":"IF(OR(Table_PI[[#This Row],[Hide:\nBaseline kWh]]=\"\",Table_PI[[#This Row],[Hide:\nBaseline kWh]]=0),\"\",Table_PI[[#This Row],[Hide:\nBaseline kWh]])","v":""},{"$f":"IF(OR(Table_PI[[#This Row],[Hide:\nBaseline kW]]=\"\",Table_PI[[#This Row],[Hide:\nBaseline kW]]=0),\"\",Table_PI[[#This Row],[Hide:\nBaseline kW]])","v":""},{"$f":"IF(OR(Table_PI[[#This Row],[Hide:\nProposed kWh]]=\"\",Table_PI[[#This Row],[Hide:\nProposed kWh]]=0),\"\",Table_PI[[#This Row],[Hide:\nProposed kWh]])","v":""},{"$f":"IF(OR(Table_PI[[#This Row],[Hide:\nProposed kW]]=\"\",Table_PI[[#This Row],[Hide:\nProposed kW]]=0),\"\",Table_PI[[#This Row],[Hide:\nProposed kW]])","v":""},{"$f":"IF(OR(Table_PI[[#This Row],[Rebate]]=\"\",Table_PI[[#This Row],[Rebate]]=0),\"\",Table_PI[[#This Row],[Rebate]])","v":""},{"$f":"IF(OR(Table_PI[[#This Row],[Hide:\nIncremental Cost]]=\"\",Table_PI[[#This Row],[Hide:\nIncremental Cost]]=0),\"\",Table_PI[[#This Row],[Hide:\nIncremental Cost]])","v":""},{"$f":"IFERROR(IF(Table_SummaryPI[[#This Row],[kWhSavings]]=\"\",\"\",ROUND(Table_SummaryPI[[#This Row],[kWhSavings]]/$AG$401*'Customer Information'!$BC$17,2)),0)","v":""},{"$f":"IF(OR(Table_PI[[#This Row],[Annual kWh]]=\"\",Table_PI[[#This Row],[Annual kWh]]=0),\"\",Table_PI[[#This Row],[Annual kWh]])","v":""},{"$f":"IF(OR(Table_PI[[#This Row],[Peak kW]]=\"\",Table_PI[[#This Row],[Peak kW]]=0),\"\",Table_PI[[#This Row],[Peak kW]])","v":""},{"$f":"IFERROR(IF(Table_SummaryPI[[#This Row],[kWhSavings]]=\"\",\"\",$AU$9*Table_SummaryPI[[#This Row],[kWhSavings]]),0)","v":""},{"$f":"IFERROR(IF(Table_SummaryPI[[#This Row],[kWhSavings]]=\"\",\"\",$AU$14*Table_SummaryPI[[#This Row],[kWhSavings]]),0)","v":""},{"$f":"IFERROR(IF(Table_SummaryPI[[#This Row],[kWhSavings]]=\"\",\"\",$AU$18*Table_SummaryPI[[#This Row],[kWhSavings]]),0)","v":""},{"$f":"IFERROR(IF(Table_SummaryPI[[#This Row],[kWhSavings]]=\"\",\"\",$AU$22*Table_SummaryPI[[#This Row],[kWhSavings]]),0)","v":""},{"$f":"IFERROR(IF(MeasureCalc(Table_PI[[#This Row],[Hide:\nFormula Name]],Table_SummaryPI[[#This Row],[Quantity]],Table_PI[[#This Row],[List 1]],Table_PI[[#This Row],[List 2]],Table_PI[[#This Row],[List 3]],Table_PI[[#This Row],[Size]],Table_PI[[#This Row],[Input 1]],Table_PI[[#This Row],[Input 2]],Table_PI[[#This Row],[Input 3]],Table_PI[[#This Row],[Input 4]],'Customer Information'!$AR$12,200,ROW())<>\"No Rebate\",MeasureCalc(Table_PI[[#This Row],[Hide:\nFormula Name]],Table_SummaryPI[[#This Row],[Quantity]],Table_PI[[#This Row],[List 1]],Table_PI[[#This Row],[List 2]],Table_PI[[#This Row],[List 3]],Table_PI[[#This Row],[Size]],Table_PI[[#This Row],[Input 1]],Table_PI[[#This Row],[Input 2]],Table_PI[[#This Row],[Input 3]],Table_PI[[#This Row],[Input 4]],'Customer Information'!$AR$12,200,ROW()),\"\"),\"\")","v":""},{"$f":"IFERROR(IF(MeasureCalc(Table_PI[[#This Row],[Hide:\nFormula Name]],Table_SummaryPI[[#This Row],[Quantity]],Table_PI[[#This Row],[List 1]],Table_PI[[#This Row],[List 2]],Table_PI[[#This Row],[List 3]],Table_PI[[#This Row],[Size]],Table_PI[[#This Row],[Input 1]],Table_PI[[#This Row],[Input 2]],Table_PI[[#This Row],[Input 3]],Table_PI[[#This Row],[Input 4]],'Customer Information'!$AR$12,201,ROW())<>\"No Rebate\",MeasureCalc(Table_PI[[#This Row],[Hide:\nFormula Name]],Table_SummaryPI[[#This Row],[Quantity]],Table_PI[[#This Row],[List 1]],Table_PI[[#This Row],[List 2]],Table_PI[[#This Row],[List 3]],Table_PI[[#This Row],[Size]],Table_PI[[#This Row],[Input 1]],Table_PI[[#This Row],[Input 2]],Table_PI[[#This Row],[Input 3]],Table_PI[[#This Row],[Input 4]],'Customer Information'!$AR$12,201,ROW()),\"\"),\"\")","v":""}]
[{"$f":"Table_PI[[#This Row],[Line No.]]","v":""},{"$f":"IF(Table_SummaryPI[[#This Row],[MeassureCategory]]<>\"\",CONCATENATE(Table_SummaryPI[[#This Row],[MeassureCategory]],  \" - \", Table_SummaryPI[[#This Row],[ProposedMeasureCategory]],  \" - \", TEXT(Table_SummaryPI[[#This Row],[Size]],\"#,##0.00\"),\" \",Table_SummaryPI[[#This Row],[SizeUnit]]),\"\")","v":""},{"$f":"SUBSTITUTE(Table_PI[[#This Row],[Measure]],\"     \",\"\",1)","v":""},{"$f":"IF(Table_PI[[#This Row],[List 1]]<>\"\",Table_PI[[#This Row],[List 1]],\"\")","v":""},{"$f":"IF(Table_PI[[#This Row],[List 2]]<>\"\",Table_PI[[#This Row],[List 2]],\"\")","v":""},{"$f":"IF(Table_PI[[#This Row],[List 3]]<>\"\",Table_PI[[#This Row],[List 3]],\"\")","v":""},{"$f":"IF(Table_PI[[#This Row],[Manufacturer]]=\"\",\"\",Table_PI[[#This Row],[Manufacturer]])","v":""},{"$f":"IF(Table_PI[[#This Row],[Model Number]]=\"\",\"\",Table_PI[[#This Row],[Model Number]])","v":""},{"$f":"IF(Table_PI[[#This Row],[Serial Number(s)]]=\"\",\"\",Table_PI[[#This Row],[Serial Number(s)]])","v":""},null,{"$f":"IF(Table_PI[[#This Row],[Size]]=\"\",\"\",Table_PI[[#This Row],[Size]])","v":""},null,{"$f":"IFERROR(IF(AND(MeasureCalc(Table_PI[[#This Row],[Hide:\nFormula Name]],Table_SummaryPI[[#This Row],[Quantity]],Table_PI[[#This Row],[List 1]],Table_PI[[#This Row],[List 2]],Table_PI[[#This Row],[List 3]],Table_PI[[#This Row],[Size]],Table_PI[[#This Row],[Input 1]],Table_PI[[#This Row],[Input 2]],Table_PI[[#This Row],[Input 3]],Table_PI[[#This Row],[Input 4]],'Customer Information'!$AR$12,100,ROW())<>0,MeasureCalc(Table_PI[[#This Row],[Hide:\nFormula Name]],Table_SummaryPI[[#This Row],[Quantity]],Table_PI[[#This Row],[List 1]],Table_PI[[#This Row],[List 2]],Table_PI[[#This Row],[List 3]],Table_PI[[#This Row],[Size]],Table_PI[[#This Row],[Input 1]],Table_PI[[#This Row],[Input 2]],Table_PI[[#This Row],[Input 3]],Table_PI[[#This Row],[Input 4]],'Customer Information'!$AR$12,100,ROW())<>\"No Rebate\"),MeasureCalc(Table_PI[[#This Row],[Hide:\nFormula Name]],Table_SummaryPI[[#This Row],[Quantity]],Table_PI[[#This Row],[List 1]],Table_PI[[#This Row],[List 2]],Table_PI[[#This Row],[List 3]],Table_PI[[#This Row],[Size]],Table_PI[[#This Row],[Input 1]],Table_PI[[#This Row],[Input 2]],Table_PI[[#This Row],[Input 3]],Table_PI[[#This Row],[Input 4]],'Customer Information'!$AR$12,100,ROW()),\"\"),\"\")","v":""},{"$f":"IF(Table_PI[[#This Row],[Input 1]]<>\"\",Table_PI[[#This Row],[Input 1]],\"\")","v":""},null,{"$f":"IFERROR(IF(AND(MeasureCalc(Table_PI[[#This Row],[Hide:\nFormula Name]],Table_SummaryPI[[#This Row],[Quantity]],Table_PI[[#This Row],[List 1]],Table_PI[[#This Row],[List 2]],Table_PI[[#This Row],[List 3]],Table_PI[[#This Row],[Size]],Table_PI[[#This Row],[Input 1]],Table_PI[[#This Row],[Input 2]],Table_PI[[#This Row],[Input 3]],Table_PI[[#This Row],[Input 4]],'Customer Information'!$AR$12,101,ROW())<>0,MeasureCalc(Table_PI[[#This Row],[Hide:\nFormula Name]],Table_SummaryPI[[#This Row],[Quantity]],Table_PI[[#This Row],[List 1]],Table_PI[[#This Row],[List 2]],Table_PI[[#This Row],[List 3]],Table_PI[[#This Row],[Size]],Table_PI[[#This Row],[Input 1]],Table_PI[[#This Row],[Input 2]],Table_PI[[#This Row],[Input 3]],Table_PI[[#This Row],[Input 4]],'Customer Information'!$AR$12,101,ROW())<>\"No Rebate\"),MeasureCalc(Table_PI[[#This Row],[Hide:\nFormula Name]],Table_SummaryPI[[#This Row],[Quantity]],Table_PI[[#This Row],[List 1]],Table_PI[[#This Row],[List 2]],Table_PI[[#This Row],[List 3]],Table_PI[[#This Row],[Size]],Table_PI[[#This Row],[Input 1]],Table_PI[[#This Row],[Input 2]],Table_PI[[#This Row],[Input 3]],Table_PI[[#This Row],[Input 4]],'Customer Information'!$AR$12,101,ROW()),\"\"),\"\")","v":""},{"$f":"IF(Table_PI[[#This Row],[Input 2]]<>\"\",Table_PI[[#This Row],[Input 2]],\"\")","v":""},null,{"$f":"IFERROR(IF(AND(MeasureCalc(Table_PI[[#This Row],[Hide:\nFormula Name]],Table_SummaryPI[[#This Row],[Quantity]],Table_PI[[#This Row],[List 1]],Table_PI[[#This Row],[List 2]],Table_PI[[#This Row],[List 3]],Table_PI[[#This Row],[Size]],Table_PI[[#This Row],[Input 1]],Table_PI[[#This Row],[Input 2]],Table_PI[[#This Row],[Input 3]],Table_PI[[#This Row],[Input 4]],'Customer Information'!$AR$12,102,ROW())<>0,MeasureCalc(Table_PI[[#This Row],[Hide:\nFormula Name]],Table_SummaryPI[[#This Row],[Quantity]],Table_PI[[#This Row],[List 1]],Table_PI[[#This Row],[List 2]],Table_PI[[#This Row],[List 3]],Table_PI[[#This Row],[Size]],Table_PI[[#This Row],[Input 1]],Table_PI[[#This Row],[Input 2]],Table_PI[[#This Row],[Input 3]],Table_PI[[#This Row],[Input 4]],'Customer Information'!$AR$12,102,ROW())<>\"No Rebate\"),MeasureCalc(Table_PI[[#This Row],[Hide:\nFormula Name]],Table_SummaryPI[[#This Row],[Quantity]],Table_PI[[#This Row],[List 1]],Table_PI[[#This Row],[List 2]],Table_PI[[#This Row],[List 3]],Table_PI[[#This Row],[Size]],Table_PI[[#This Row],[Input 1]],Table_PI[[#This Row],[Input 2]],Table_PI[[#This Row],[Input 3]],Table_PI[[#This Row],[Input 4]],'Customer Information'!$AR$12,102,ROW()),\"\"),\"\")","v":""},{"$f":"IF(Table_PI[[#This Row],[Input 3]]<>\"\",Table_PI[[#This Row],[Input 3]],\"\")","v":""},null,{"$f":"IFERROR(IF(AND(MeasureCalc(Table_PI[[#This Row],[Hide:\nFormula Name]],Table_SummaryPI[[#This Row],[Quantity]],Table_PI[[#This Row],[List 1]],Table_PI[[#This Row],[List 2]],Table_PI[[#This Row],[List 3]],Table_PI[[#This Row],[Size]],Table_PI[[#This Row],[Input 1]],Table_PI[[#This Row],[Input 2]],Table_PI[[#This Row],[Input 3]],Table_PI[[#This Row],[Input 4]],'Customer Information'!$AR$12,103,ROW())<>0,MeasureCalc(Table_PI[[#This Row],[Hide:\nFormula Name]],Table_SummaryPI[[#This Row],[Quantity]],Table_PI[[#This Row],[List 1]],Table_PI[[#This Row],[List 2]],Table_PI[[#This Row],[List 3]],Table_PI[[#This Row],[Size]],Table_PI[[#This Row],[Input 1]],Table_PI[[#This Row],[Input 2]],Table_PI[[#This Row],[Input 3]],Table_PI[[#This Row],[Input 4]],'Customer Information'!$AR$12,103,ROW())<>\"No Rebate\"),MeasureCalc(Table_PI[[#This Row],[Hide:\nFormula Name]],Table_SummaryPI[[#This Row],[Quantity]],Table_PI[[#This Row],[List 1]],Table_PI[[#This Row],[List 2]],Table_PI[[#This Row],[List 3]],Table_PI[[#This Row],[Size]],Table_PI[[#This Row],[Input 1]],Table_PI[[#This Row],[Input 2]],Table_PI[[#This Row],[Input 3]],Table_PI[[#This Row],[Input 4]],'Customer Information'!$AR$12,103,ROW()),\"\"),\"\")","v":""},{"$f":"IF(Table_PI[[#This Row],[Input 4]]<>\"\",Table_PI[[#This Row],[Input 4]],\"\")","v":""},{"$f":"IF(Table_PI[[#This Row],[Quantity]]=\"\",\"\",Table_PI[[#This Row],[Quantity]])","v":""},{"$f":"IF(Table_PI[[#This Row],[Notes]]=\"\",\"\",Table_PI[[#This Row],[Notes]])","v":""},{"$f":"IF(OR(Table_PI[[#This Row],[Hide:\nBaseline kWh]]=\"\",Table_PI[[#This Row],[Hide:\nBaseline kWh]]=0),\"\",Table_PI[[#This Row],[Hide:\nBaseline kWh]])","v":""},{"$f":"IF(OR(Table_PI[[#This Row],[Hide:\nBaseline kW]]=\"\",Table_PI[[#This Row],[Hide:\nBaseline kW]]=0),\"\",Table_PI[[#This Row],[Hide:\nBaseline kW]])","v":""},{"$f":"IF(OR(Table_PI[[#This Row],[Hide:\nProposed kWh]]=\"\",Table_PI[[#This Row],[Hide:\nProposed kWh]]=0),\"\",Table_PI[[#This Row],[Hide:\nProposed kWh]])","v":""},{"$f":"IF(OR(Table_PI[[#This Row],[Hide:\nProposed kW]]=\"\",Table_PI[[#This Row],[Hide:\nProposed kW]]=0),\"\",Table_PI[[#This Row],[Hide:\nProposed kW]])","v":""},{"$f":"IF(OR(Table_PI[[#This Row],[Rebate]]=\"\",Table_PI[[#This Row],[Rebate]]=0),\"\",Table_PI[[#This Row],[Rebate]])","v":""},{"$f":"IF(OR(Table_PI[[#This Row],[Hide:\nIncremental Cost]]=\"\",Table_PI[[#This Row],[Hide:\nIncremental Cost]]=0),\"\",Table_PI[[#This Row],[Hide:\nIncremental Cost]])","v":""},{"$f":"IFERROR(IF(Table_SummaryPI[[#This Row],[kWhSavings]]=\"\",\"\",ROUND(Table_SummaryPI[[#This Row],[kWhSavings]]/$AG$401*'Customer Information'!$BC$17,2)),0)","v":""},{"$f":"IF(OR(Table_PI[[#This Row],[Annual kWh]]=\"\",Table_PI[[#This Row],[Annual kWh]]=0),\"\",Table_PI[[#This Row],[Annual kWh]])","v":""},{"$f":"IF(OR(Table_PI[[#This Row],[Peak kW]]=\"\",Table_PI[[#This Row],[Peak kW]]=0),\"\",Table_PI[[#This Row],[Peak kW]])","v":""},{"$f":"IFERROR(IF(Table_SummaryPI[[#This Row],[kWhSavings]]=\"\",\"\",$AU$9*Table_SummaryPI[[#This Row],[kWhSavings]]),0)","v":""},{"$f":"IFERROR(IF(Table_SummaryPI[[#This Row],[kWhSavings]]=\"\",\"\",$AU$14*Table_SummaryPI[[#This Row],[kWhSavings]]),0)","v":""},{"$f":"IFERROR(IF(Table_SummaryPI[[#This Row],[kWhSavings]]=\"\",\"\",$AU$18*Table_SummaryPI[[#This Row],[kWhSavings]]),0)","v":""},{"$f":"IFERROR(IF(Table_SummaryPI[[#This Row],[kWhSavings]]=\"\",\"\",$AU$22*Table_SummaryPI[[#This Row],[kWhSavings]]),0)","v":""},{"$f":"IFERROR(IF(MeasureCalc(Table_PI[[#This Row],[Hide:\nFormula Name]],Table_SummaryPI[[#This Row],[Quantity]],Table_PI[[#This Row],[List 1]],Table_PI[[#This Row],[List 2]],Table_PI[[#This Row],[List 3]],Table_PI[[#This Row],[Size]],Table_PI[[#This Row],[Input 1]],Table_PI[[#This Row],[Input 2]],Table_PI[[#This Row],[Input 3]],Table_PI[[#This Row],[Input 4]],'Customer Information'!$AR$12,200,ROW())<>\"No Rebate\",MeasureCalc(Table_PI[[#This Row],[Hide:\nFormula Name]],Table_SummaryPI[[#This Row],[Quantity]],Table_PI[[#This Row],[List 1]],Table_PI[[#This Row],[List 2]],Table_PI[[#This Row],[List 3]],Table_PI[[#This Row],[Size]],Table_PI[[#This Row],[Input 1]],Table_PI[[#This Row],[Input 2]],Table_PI[[#This Row],[Input 3]],Table_PI[[#This Row],[Input 4]],'Customer Information'!$AR$12,200,ROW()),\"\"),\"\")","v":""},{"$f":"IFERROR(IF(MeasureCalc(Table_PI[[#This Row],[Hide:\nFormula Name]],Table_SummaryPI[[#This Row],[Quantity]],Table_PI[[#This Row],[List 1]],Table_PI[[#This Row],[List 2]],Table_PI[[#This Row],[List 3]],Table_PI[[#This Row],[Size]],Table_PI[[#This Row],[Input 1]],Table_PI[[#This Row],[Input 2]],Table_PI[[#This Row],[Input 3]],Table_PI[[#This Row],[Input 4]],'Customer Information'!$AR$12,201,ROW())<>\"No Rebate\",MeasureCalc(Table_PI[[#This Row],[Hide:\nFormula Name]],Table_SummaryPI[[#This Row],[Quantity]],Table_PI[[#This Row],[List 1]],Table_PI[[#This Row],[List 2]],Table_PI[[#This Row],[List 3]],Table_PI[[#This Row],[Size]],Table_PI[[#This Row],[Input 1]],Table_PI[[#This Row],[Input 2]],Table_PI[[#This Row],[Input 3]],Table_PI[[#This Row],[Input 4]],'Customer Information'!$AR$12,201,ROW()),\"\"),\"\")","v":""}]
[{"$f":"Table_PI[[#This Row],[Line No.]]","v":""},{"$f":"IF(Table_SummaryPI[[#This Row],[MeassureCategory]]<>\"\",CONCATENATE(Table_SummaryPI[[#This Row],[MeassureCategory]],  \" - \", Table_SummaryPI[[#This Row],[ProposedMeasureCategory]],  \" - \", TEXT(Table_SummaryPI[[#This Row],[Size]],\"#,##0.00\"),\" \",Table_SummaryPI[[#This Row],[SizeUnit]]),\"\")","v":""},{"$f":"SUBSTITUTE(Table_PI[[#This Row],[Measure]],\"     \",\"\",1)","v":""},{"$f":"IF(Table_PI[[#This Row],[List 1]]<>\"\",Table_PI[[#This Row],[List 1]],\"\")","v":""},{"$f":"IF(Table_PI[[#This Row],[List 2]]<>\"\",Table_PI[[#This Row],[List 2]],\"\")","v":""},{"$f":"IF(Table_PI[[#This Row],[List 3]]<>\"\",Table_PI[[#This Row],[List 3]],\"\")","v":""},{"$f":"IF(Table_PI[[#This Row],[Manufacturer]]=\"\",\"\",Table_PI[[#This Row],[Manufacturer]])","v":""},{"$f":"IF(Table_PI[[#This Row],[Model Number]]=\"\",\"\",Table_PI[[#This Row],[Model Number]])","v":""},{"$f":"IF(Table_PI[[#This Row],[Serial Number(s)]]=\"\",\"\",Table_PI[[#This Row],[Serial Number(s)]])","v":""},null,{"$f":"IF(Table_PI[[#This Row],[Size]]=\"\",\"\",Table_PI[[#This Row],[Size]])","v":""},null,{"$f":"IFERROR(IF(AND(MeasureCalc(Table_PI[[#This Row],[Hide:\nFormula Name]],Table_SummaryPI[[#This Row],[Quantity]],Table_PI[[#This Row],[List 1]],Table_PI[[#This Row],[List 2]],Table_PI[[#This Row],[List 3]],Table_PI[[#This Row],[Size]],Table_PI[[#This Row],[Input 1]],Table_PI[[#This Row],[Input 2]],Table_PI[[#This Row],[Input 3]],Table_PI[[#This Row],[Input 4]],'Customer Information'!$AR$12,100,ROW())<>0,MeasureCalc(Table_PI[[#This Row],[Hide:\nFormula Name]],Table_SummaryPI[[#This Row],[Quantity]],Table_PI[[#This Row],[List 1]],Table_PI[[#This Row],[List 2]],Table_PI[[#This Row],[List 3]],Table_PI[[#This Row],[Size]],Table_PI[[#This Row],[Input 1]],Table_PI[[#This Row],[Input 2]],Table_PI[[#This Row],[Input 3]],Table_PI[[#This Row],[Input 4]],'Customer Information'!$AR$12,100,ROW())<>\"No Rebate\"),MeasureCalc(Table_PI[[#This Row],[Hide:\nFormula Name]],Table_SummaryPI[[#This Row],[Quantity]],Table_PI[[#This Row],[List 1]],Table_PI[[#This Row],[List 2]],Table_PI[[#This Row],[List 3]],Table_PI[[#This Row],[Size]],Table_PI[[#This Row],[Input 1]],Table_PI[[#This Row],[Input 2]],Table_PI[[#This Row],[Input 3]],Table_PI[[#This Row],[Input 4]],'Customer Information'!$AR$12,100,ROW()),\"\"),\"\")","v":""},{"$f":"IF(Table_PI[[#This Row],[Input 1]]<>\"\",Table_PI[[#This Row],[Input 1]],\"\")","v":""},null,{"$f":"IFERROR(IF(AND(MeasureCalc(Table_PI[[#This Row],[Hide:\nFormula Name]],Table_SummaryPI[[#This Row],[Quantity]],Table_PI[[#This Row],[List 1]],Table_PI[[#This Row],[List 2]],Table_PI[[#This Row],[List 3]],Table_PI[[#This Row],[Size]],Table_PI[[#This Row],[Input 1]],Table_PI[[#This Row],[Input 2]],Table_PI[[#This Row],[Input 3]],Table_PI[[#This Row],[Input 4]],'Customer Information'!$AR$12,101,ROW())<>0,MeasureCalc(Table_PI[[#This Row],[Hide:\nFormula Name]],Table_SummaryPI[[#This Row],[Quantity]],Table_PI[[#This Row],[List 1]],Table_PI[[#This Row],[List 2]],Table_PI[[#This Row],[List 3]],Table_PI[[#This Row],[Size]],Table_PI[[#This Row],[Input 1]],Table_PI[[#This Row],[Input 2]],Table_PI[[#This Row],[Input 3]],Table_PI[[#This Row],[Input 4]],'Customer Information'!$AR$12,101,ROW())<>\"No Rebate\"),MeasureCalc(Table_PI[[#This Row],[Hide:\nFormula Name]],Table_SummaryPI[[#This Row],[Quantity]],Table_PI[[#This Row],[List 1]],Table_PI[[#This Row],[List 2]],Table_PI[[#This Row],[List 3]],Table_PI[[#This Row],[Size]],Table_PI[[#This Row],[Input 1]],Table_PI[[#This Row],[Input 2]],Table_PI[[#This Row],[Input 3]],Table_PI[[#This Row],[Input 4]],'Customer Information'!$AR$12,101,ROW()),\"\"),\"\")","v":""},{"$f":"IF(Table_PI[[#This Row],[Input 2]]<>\"\",Table_PI[[#This Row],[Input 2]],\"\")","v":""},null,{"$f":"IFERROR(IF(AND(MeasureCalc(Table_PI[[#This Row],[Hide:\nFormula Name]],Table_SummaryPI[[#This Row],[Quantity]],Table_PI[[#This Row],[List 1]],Table_PI[[#This Row],[List 2]],Table_PI[[#This Row],[List 3]],Table_PI[[#This Row],[Size]],Table_PI[[#This Row],[Input 1]],Table_PI[[#This Row],[Input 2]],Table_PI[[#This Row],[Input 3]],Table_PI[[#This Row],[Input 4]],'Customer Information'!$AR$12,102,ROW())<>0,MeasureCalc(Table_PI[[#This Row],[Hide:\nFormula Name]],Table_SummaryPI[[#This Row],[Quantity]],Table_PI[[#This Row],[List 1]],Table_PI[[#This Row],[List 2]],Table_PI[[#This Row],[List 3]],Table_PI[[#This Row],[Size]],Table_PI[[#This Row],[Input 1]],Table_PI[[#This Row],[Input 2]],Table_PI[[#This Row],[Input 3]],Table_PI[[#This Row],[Input 4]],'Customer Information'!$AR$12,102,ROW())<>\"No Rebate\"),MeasureCalc(Table_PI[[#This Row],[Hide:\nFormula Name]],Table_SummaryPI[[#This Row],[Quantity]],Table_PI[[#This Row],[List 1]],Table_PI[[#This Row],[List 2]],Table_PI[[#This Row],[List 3]],Table_PI[[#This Row],[Size]],Table_PI[[#This Row],[Input 1]],Table_PI[[#This Row],[Input 2]],Table_PI[[#This Row],[Input 3]],Table_PI[[#This Row],[Input 4]],'Customer Information'!$AR$12,102,ROW()),\"\"),\"\")","v":""},{"$f":"IF(Table_PI[[#This Row],[Input 3]]<>\"\",Table_PI[[#This Row],[Input 3]],\"\")","v":""},null,{"$f":"IFERROR(IF(AND(MeasureCalc(Table_PI[[#This Row],[Hide:\nFormula Name]],Table_SummaryPI[[#This Row],[Quantity]],Table_PI[[#This Row],[List 1]],Table_PI[[#This Row],[List 2]],Table_PI[[#This Row],[List 3]],Table_PI[[#This Row],[Size]],Table_PI[[#This Row],[Input 1]],Table_PI[[#This Row],[Input 2]],Table_PI[[#This Row],[Input 3]],Table_PI[[#This Row],[Input 4]],'Customer Information'!$AR$12,103,ROW())<>0,MeasureCalc(Table_PI[[#This Row],[Hide:\nFormula Name]],Table_SummaryPI[[#This Row],[Quantity]],Table_PI[[#This Row],[List 1]],Table_PI[[#This Row],[List 2]],Table_PI[[#This Row],[List 3]],Table_PI[[#This Row],[Size]],Table_PI[[#This Row],[Input 1]],Table_PI[[#This Row],[Input 2]],Table_PI[[#This Row],[Input 3]],Table_PI[[#This Row],[Input 4]],'Customer Information'!$AR$12,103,ROW())<>\"No Rebate\"),MeasureCalc(Table_PI[[#This Row],[Hide:\nFormula Name]],Table_SummaryPI[[#This Row],[Quantity]],Table_PI[[#This Row],[List 1]],Table_PI[[#This Row],[List 2]],Table_PI[[#This Row],[List 3]],Table_PI[[#This Row],[Size]],Table_PI[[#This Row],[Input 1]],Table_PI[[#This Row],[Input 2]],Table_PI[[#This Row],[Input 3]],Table_PI[[#This Row],[Input 4]],'Customer Information'!$AR$12,103,ROW()),\"\"),\"\")","v":""},{"$f":"IF(Table_PI[[#This Row],[Input 4]]<>\"\",Table_PI[[#This Row],[Input 4]],\"\")","v":""},{"$f":"IF(Table_PI[[#This Row],[Quantity]]=\"\",\"\",Table_PI[[#This Row],[Quantity]])","v":""},{"$f":"IF(Table_PI[[#This Row],[Notes]]=\"\",\"\",Table_PI[[#This Row],[Notes]])","v":""},{"$f":"IF(OR(Table_PI[[#This Row],[Hide:\nBaseline kWh]]=\"\",Table_PI[[#This Row],[Hide:\nBaseline kWh]]=0),\"\",Table_PI[[#This Row],[Hide:\nBaseline kWh]])","v":""},{"$f":"IF(OR(Table_PI[[#This Row],[Hide:\nBaseline kW]]=\"\",Table_PI[[#This Row],[Hide:\nBaseline kW]]=0),\"\",Table_PI[[#This Row],[Hide:\nBaseline kW]])","v":""},{"$f":"IF(OR(Table_PI[[#This Row],[Hide:\nProposed kWh]]=\"\",Table_PI[[#This Row],[Hide:\nProposed kWh]]=0),\"\",Table_PI[[#This Row],[Hide:\nProposed kWh]])","v":""},{"$f":"IF(OR(Table_PI[[#This Row],[Hide:\nProposed kW]]=\"\",Table_PI[[#This Row],[Hide:\nProposed kW]]=0),\"\",Table_PI[[#This Row],[Hide:\nProposed kW]])","v":""},{"$f":"IF(OR(Table_PI[[#This Row],[Rebate]]=\"\",Table_PI[[#This Row],[Rebate]]=0),\"\",Table_PI[[#This Row],[Rebate]])","v":""},{"$f":"IF(OR(Table_PI[[#This Row],[Hide:\nIncremental Cost]]=\"\",Table_PI[[#This Row],[Hide:\nIncremental Cost]]=0),\"\",Table_PI[[#This Row],[Hide:\nIncremental Cost]])","v":""},{"$f":"IFERROR(IF(Table_SummaryPI[[#This Row],[kWhSavings]]=\"\",\"\",ROUND(Table_SummaryPI[[#This Row],[kWhSavings]]/$AG$401*'Customer Information'!$BC$17,2)),0)","v":""},{"$f":"IF(OR(Table_PI[[#This Row],[Annual kWh]]=\"\",Table_PI[[#This Row],[Annual kWh]]=0),\"\",Table_PI[[#This Row],[Annual kWh]])","v":""},{"$f":"IF(OR(Table_PI[[#This Row],[Peak kW]]=\"\",Table_PI[[#This Row],[Peak kW]]=0),\"\",Table_PI[[#This Row],[Peak kW]])","v":""},{"$f":"IFERROR(IF(Table_SummaryPI[[#This Row],[kWhSavings]]=\"\",\"\",$AU$9*Table_SummaryPI[[#This Row],[kWhSavings]]),0)","v":""},{"$f":"IFERROR(IF(Table_SummaryPI[[#This Row],[kWhSavings]]=\"\",\"\",$AU$14*Table_SummaryPI[[#This Row],[kWhSavings]]),0)","v":""},{"$f":"IFERROR(IF(Table_SummaryPI[[#This Row],[kWhSavings]]=\"\",\"\",$AU$18*Table_SummaryPI[[#This Row],[kWhSavings]]),0)","v":""},{"$f":"IFERROR(IF(Table_SummaryPI[[#This Row],[kWhSavings]]=\"\",\"\",$AU$22*Table_SummaryPI[[#This Row],[kWhSavings]]),0)","v":""},{"$f":"IFERROR(IF(MeasureCalc(Table_PI[[#This Row],[Hide:\nFormula Name]],Table_SummaryPI[[#This Row],[Quantity]],Table_PI[[#This Row],[List 1]],Table_PI[[#This Row],[List 2]],Table_PI[[#This Row],[List 3]],Table_PI[[#This Row],[Size]],Table_PI[[#This Row],[Input 1]],Table_PI[[#This Row],[Input 2]],Table_PI[[#This Row],[Input 3]],Table_PI[[#This Row],[Input 4]],'Customer Information'!$AR$12,200,ROW())<>\"No Rebate\",MeasureCalc(Table_PI[[#This Row],[Hide:\nFormula Name]],Table_SummaryPI[[#This Row],[Quantity]],Table_PI[[#This Row],[List 1]],Table_PI[[#This Row],[List 2]],Table_PI[[#This Row],[List 3]],Table_PI[[#This Row],[Size]],Table_PI[[#This Row],[Input 1]],Table_PI[[#This Row],[Input 2]],Table_PI[[#This Row],[Input 3]],Table_PI[[#This Row],[Input 4]],'Customer Information'!$AR$12,200,ROW()),\"\"),\"\")","v":""},{"$f":"IFERROR(IF(MeasureCalc(Table_PI[[#This Row],[Hide:\nFormula Name]],Table_SummaryPI[[#This Row],[Quantity]],Table_PI[[#This Row],[List 1]],Table_PI[[#This Row],[List 2]],Table_PI[[#This Row],[List 3]],Table_PI[[#This Row],[Size]],Table_PI[[#This Row],[Input 1]],Table_PI[[#This Row],[Input 2]],Table_PI[[#This Row],[Input 3]],Table_PI[[#This Row],[Input 4]],'Customer Information'!$AR$12,201,ROW())<>\"No Rebate\",MeasureCalc(Table_PI[[#This Row],[Hide:\nFormula Name]],Table_SummaryPI[[#This Row],[Quantity]],Table_PI[[#This Row],[List 1]],Table_PI[[#This Row],[List 2]],Table_PI[[#This Row],[List 3]],Table_PI[[#This Row],[Size]],Table_PI[[#This Row],[Input 1]],Table_PI[[#This Row],[Input 2]],Table_PI[[#This Row],[Input 3]],Table_PI[[#This Row],[Input 4]],'Customer Information'!$AR$12,201,ROW()),\"\"),\"\")","v":""}]
[{"$f":"Table_PI[[#This Row],[Line No.]]","v":""},{"$f":"IF(Table_SummaryPI[[#This Row],[MeassureCategory]]<>\"\",CONCATENATE(Table_SummaryPI[[#This Row],[MeassureCategory]],  \" - \", Table_SummaryPI[[#This Row],[ProposedMeasureCategory]],  \" - \", TEXT(Table_SummaryPI[[#This Row],[Size]],\"#,##0.00\"),\" \",Table_SummaryPI[[#This Row],[SizeUnit]]),\"\")","v":""},{"$f":"SUBSTITUTE(Table_PI[[#This Row],[Measure]],\"     \",\"\",1)","v":""},{"$f":"IF(Table_PI[[#This Row],[List 1]]<>\"\",Table_PI[[#This Row],[List 1]],\"\")","v":""},{"$f":"IF(Table_PI[[#This Row],[List 2]]<>\"\",Table_PI[[#This Row],[List 2]],\"\")","v":""},{"$f":"IF(Table_PI[[#This Row],[List 3]]<>\"\",Table_PI[[#This Row],[List 3]],\"\")","v":""},{"$f":"IF(Table_PI[[#This Row],[Manufacturer]]=\"\",\"\",Table_PI[[#This Row],[Manufacturer]])","v":""},{"$f":"IF(Table_PI[[#This Row],[Model Number]]=\"\",\"\",Table_PI[[#This Row],[Model Number]])","v":""},{"$f":"IF(Table_PI[[#This Row],[Serial Number(s)]]=\"\",\"\",Table_PI[[#This Row],[Serial Number(s)]])","v":""},null,{"$f":"IF(Table_PI[[#This Row],[Size]]=\"\",\"\",Table_PI[[#This Row],[Size]])","v":""},null,{"$f":"IFERROR(IF(AND(MeasureCalc(Table_PI[[#This Row],[Hide:\nFormula Name]],Table_SummaryPI[[#This Row],[Quantity]],Table_PI[[#This Row],[List 1]],Table_PI[[#This Row],[List 2]],Table_PI[[#This Row],[List 3]],Table_PI[[#This Row],[Size]],Table_PI[[#This Row],[Input 1]],Table_PI[[#This Row],[Input 2]],Table_PI[[#This Row],[Input 3]],Table_PI[[#This Row],[Input 4]],'Customer Information'!$AR$12,100,ROW())<>0,MeasureCalc(Table_PI[[#This Row],[Hide:\nFormula Name]],Table_SummaryPI[[#This Row],[Quantity]],Table_PI[[#This Row],[List 1]],Table_PI[[#This Row],[List 2]],Table_PI[[#This Row],[List 3]],Table_PI[[#This Row],[Size]],Table_PI[[#This Row],[Input 1]],Table_PI[[#This Row],[Input 2]],Table_PI[[#This Row],[Input 3]],Table_PI[[#This Row],[Input 4]],'Customer Information'!$AR$12,100,ROW())<>\"No Rebate\"),MeasureCalc(Table_PI[[#This Row],[Hide:\nFormula Name]],Table_SummaryPI[[#This Row],[Quantity]],Table_PI[[#This Row],[List 1]],Table_PI[[#This Row],[List 2]],Table_PI[[#This Row],[List 3]],Table_PI[[#This Row],[Size]],Table_PI[[#This Row],[Input 1]],Table_PI[[#This Row],[Input 2]],Table_PI[[#This Row],[Input 3]],Table_PI[[#This Row],[Input 4]],'Customer Information'!$AR$12,100,ROW()),\"\"),\"\")","v":""},{"$f":"IF(Table_PI[[#This Row],[Input 1]]<>\"\",Table_PI[[#This Row],[Input 1]],\"\")","v":""},null,{"$f":"IFERROR(IF(AND(MeasureCalc(Table_PI[[#This Row],[Hide:\nFormula Name]],Table_SummaryPI[[#This Row],[Quantity]],Table_PI[[#This Row],[List 1]],Table_PI[[#This Row],[List 2]],Table_PI[[#This Row],[List 3]],Table_PI[[#This Row],[Size]],Table_PI[[#This Row],[Input 1]],Table_PI[[#This Row],[Input 2]],Table_PI[[#This Row],[Input 3]],Table_PI[[#This Row],[Input 4]],'Customer Information'!$AR$12,101,ROW())<>0,MeasureCalc(Table_PI[[#This Row],[Hide:\nFormula Name]],Table_SummaryPI[[#This Row],[Quantity]],Table_PI[[#This Row],[List 1]],Table_PI[[#This Row],[List 2]],Table_PI[[#This Row],[List 3]],Table_PI[[#This Row],[Size]],Table_PI[[#This Row],[Input 1]],Table_PI[[#This Row],[Input 2]],Table_PI[[#This Row],[Input 3]],Table_PI[[#This Row],[Input 4]],'Customer Information'!$AR$12,101,ROW())<>\"No Rebate\"),MeasureCalc(Table_PI[[#This Row],[Hide:\nFormula Name]],Table_SummaryPI[[#This Row],[Quantity]],Table_PI[[#This Row],[List 1]],Table_PI[[#This Row],[List 2]],Table_PI[[#This Row],[List 3]],Table_PI[[#This Row],[Size]],Table_PI[[#This Row],[Input 1]],Table_PI[[#This Row],[Input 2]],Table_PI[[#This Row],[Input 3]],Table_PI[[#This Row],[Input 4]],'Customer Information'!$AR$12,101,ROW()),\"\"),\"\")","v":""},{"$f":"IF(Table_PI[[#This Row],[Input 2]]<>\"\",Table_PI[[#This Row],[Input 2]],\"\")","v":""},null,{"$f":"IFERROR(IF(AND(MeasureCalc(Table_PI[[#This Row],[Hide:\nFormula Name]],Table_SummaryPI[[#This Row],[Quantity]],Table_PI[[#This Row],[List 1]],Table_PI[[#This Row],[List 2]],Table_PI[[#This Row],[List 3]],Table_PI[[#This Row],[Size]],Table_PI[[#This Row],[Input 1]],Table_PI[[#This Row],[Input 2]],Table_PI[[#This Row],[Input 3]],Table_PI[[#This Row],[Input 4]],'Customer Information'!$AR$12,102,ROW())<>0,MeasureCalc(Table_PI[[#This Row],[Hide:\nFormula Name]],Table_SummaryPI[[#This Row],[Quantity]],Table_PI[[#This Row],[List 1]],Table_PI[[#This Row],[List 2]],Table_PI[[#This Row],[List 3]],Table_PI[[#This Row],[Size]],Table_PI[[#This Row],[Input 1]],Table_PI[[#This Row],[Input 2]],Table_PI[[#This Row],[Input 3]],Table_PI[[#This Row],[Input 4]],'Customer Information'!$AR$12,102,ROW())<>\"No Rebate\"),MeasureCalc(Table_PI[[#This Row],[Hide:\nFormula Name]],Table_SummaryPI[[#This Row],[Quantity]],Table_PI[[#This Row],[List 1]],Table_PI[[#This Row],[List 2]],Table_PI[[#This Row],[List 3]],Table_PI[[#This Row],[Size]],Table_PI[[#This Row],[Input 1]],Table_PI[[#This Row],[Input 2]],Table_PI[[#This Row],[Input 3]],Table_PI[[#This Row],[Input 4]],'Customer Information'!$AR$12,102,ROW()),\"\"),\"\")","v":""},{"$f":"IF(Table_PI[[#This Row],[Input 3]]<>\"\",Table_PI[[#This Row],[Input 3]],\"\")","v":""},null,{"$f":"IFERROR(IF(AND(MeasureCalc(Table_PI[[#This Row],[Hide:\nFormula Name]],Table_SummaryPI[[#This Row],[Quantity]],Table_PI[[#This Row],[List 1]],Table_PI[[#This Row],[List 2]],Table_PI[[#This Row],[List 3]],Table_PI[[#This Row],[Size]],Table_PI[[#This Row],[Input 1]],Table_PI[[#This Row],[Input 2]],Table_PI[[#This Row],[Input 3]],Table_PI[[#This Row],[Input 4]],'Customer Information'!$AR$12,103,ROW())<>0,MeasureCalc(Table_PI[[#This Row],[Hide:\nFormula Name]],Table_SummaryPI[[#This Row],[Quantity]],Table_PI[[#This Row],[List 1]],Table_PI[[#This Row],[List 2]],Table_PI[[#This Row],[List 3]],Table_PI[[#This Row],[Size]],Table_PI[[#This Row],[Input 1]],Table_PI[[#This Row],[Input 2]],Table_PI[[#This Row],[Input 3]],Table_PI[[#This Row],[Input 4]],'Customer Information'!$AR$12,103,ROW())<>\"No Rebate\"),MeasureCalc(Table_PI[[#This Row],[Hide:\nFormula Name]],Table_SummaryPI[[#This Row],[Quantity]],Table_PI[[#This Row],[List 1]],Table_PI[[#This Row],[List 2]],Table_PI[[#This Row],[List 3]],Table_PI[[#This Row],[Size]],Table_PI[[#This Row],[Input 1]],Table_PI[[#This Row],[Input 2]],Table_PI[[#This Row],[Input 3]],Table_PI[[#This Row],[Input 4]],'Customer Information'!$AR$12,103,ROW()),\"\"),\"\")","v":""},{"$f":"IF(Table_PI[[#This Row],[Input 4]]<>\"\",Table_PI[[#This Row],[Input 4]],\"\")","v":""},{"$f":"IF(Table_PI[[#This Row],[Quantity]]=\"\",\"\",Table_PI[[#This Row],[Quantity]])","v":""},{"$f":"IF(Table_PI[[#This Row],[Notes]]=\"\",\"\",Table_PI[[#This Row],[Notes]])","v":""},{"$f":"IF(OR(Table_PI[[#This Row],[Hide:\nBaseline kWh]]=\"\",Table_PI[[#This Row],[Hide:\nBaseline kWh]]=0),\"\",Table_PI[[#This Row],[Hide:\nBaseline kWh]])","v":""},{"$f":"IF(OR(Table_PI[[#This Row],[Hide:\nBaseline kW]]=\"\",Table_PI[[#This Row],[Hide:\nBaseline kW]]=0),\"\",Table_PI[[#This Row],[Hide:\nBaseline kW]])","v":""},{"$f":"IF(OR(Table_PI[[#This Row],[Hide:\nProposed kWh]]=\"\",Table_PI[[#This Row],[Hide:\nProposed kWh]]=0),\"\",Table_PI[[#This Row],[Hide:\nProposed kWh]])","v":""},{"$f":"IF(OR(Table_PI[[#This Row],[Hide:\nProposed kW]]=\"\",Table_PI[[#This Row],[Hide:\nProposed kW]]=0),\"\",Table_PI[[#This Row],[Hide:\nProposed kW]])","v":""},{"$f":"IF(OR(Table_PI[[#This Row],[Rebate]]=\"\",Table_PI[[#This Row],[Rebate]]=0),\"\",Table_PI[[#This Row],[Rebate]])","v":""},{"$f":"IF(OR(Table_PI[[#This Row],[Hide:\nIncremental Cost]]=\"\",Table_PI[[#This Row],[Hide:\nIncremental Cost]]=0),\"\",Table_PI[[#This Row],[Hide:\nIncremental Cost]])","v":""},{"$f":"IFERROR(IF(Table_SummaryPI[[#This Row],[kWhSavings]]=\"\",\"\",ROUND(Table_SummaryPI[[#This Row],[kWhSavings]]/$AG$401*'Customer Information'!$BC$17,2)),0)","v":""},{"$f":"IF(OR(Table_PI[[#This Row],[Annual kWh]]=\"\",Table_PI[[#This Row],[Annual kWh]]=0),\"\",Table_PI[[#This Row],[Annual kWh]])","v":""},{"$f":"IF(OR(Table_PI[[#This Row],[Peak kW]]=\"\",Table_PI[[#This Row],[Peak kW]]=0),\"\",Table_PI[[#This Row],[Peak kW]])","v":""},{"$f":"IFERROR(IF(Table_SummaryPI[[#This Row],[kWhSavings]]=\"\",\"\",$AU$9*Table_SummaryPI[[#This Row],[kWhSavings]]),0)","v":""},{"$f":"IFERROR(IF(Table_SummaryPI[[#This Row],[kWhSavings]]=\"\",\"\",$AU$14*Table_SummaryPI[[#This Row],[kWhSavings]]),0)","v":""},{"$f":"IFERROR(IF(Table_SummaryPI[[#This Row],[kWhSavings]]=\"\",\"\",$AU$18*Table_SummaryPI[[#This Row],[kWhSavings]]),0)","v":""},{"$f":"IFERROR(IF(Table_SummaryPI[[#This Row],[kWhSavings]]=\"\",\"\",$AU$22*Table_SummaryPI[[#This Row],[kWhSavings]]),0)","v":""},{"$f":"IFERROR(IF(MeasureCalc(Table_PI[[#This Row],[Hide:\nFormula Name]],Table_SummaryPI[[#This Row],[Quantity]],Table_PI[[#This Row],[List 1]],Table_PI[[#This Row],[List 2]],Table_PI[[#This Row],[List 3]],Table_PI[[#This Row],[Size]],Table_PI[[#This Row],[Input 1]],Table_PI[[#This Row],[Input 2]],Table_PI[[#This Row],[Input 3]],Table_PI[[#This Row],[Input 4]],'Customer Information'!$AR$12,200,ROW())<>\"No Rebate\",MeasureCalc(Table_PI[[#This Row],[Hide:\nFormula Name]],Table_SummaryPI[[#This Row],[Quantity]],Table_PI[[#This Row],[List 1]],Table_PI[[#This Row],[List 2]],Table_PI[[#This Row],[List 3]],Table_PI[[#This Row],[Size]],Table_PI[[#This Row],[Input 1]],Table_PI[[#This Row],[Input 2]],Table_PI[[#This Row],[Input 3]],Table_PI[[#This Row],[Input 4]],'Customer Information'!$AR$12,200,ROW()),\"\"),\"\")","v":""},{"$f":"IFERROR(IF(MeasureCalc(Table_PI[[#This Row],[Hide:\nFormula Name]],Table_SummaryPI[[#This Row],[Quantity]],Table_PI[[#This Row],[List 1]],Table_PI[[#This Row],[List 2]],Table_PI[[#This Row],[List 3]],Table_PI[[#This Row],[Size]],Table_PI[[#This Row],[Input 1]],Table_PI[[#This Row],[Input 2]],Table_PI[[#This Row],[Input 3]],Table_PI[[#This Row],[Input 4]],'Customer Information'!$AR$12,201,ROW())<>\"No Rebate\",MeasureCalc(Table_PI[[#This Row],[Hide:\nFormula Name]],Table_SummaryPI[[#This Row],[Quantity]],Table_PI[[#This Row],[List 1]],Table_PI[[#This Row],[List 2]],Table_PI[[#This Row],[List 3]],Table_PI[[#This Row],[Size]],Table_PI[[#This Row],[Input 1]],Table_PI[[#This Row],[Input 2]],Table_PI[[#This Row],[Input 3]],Table_PI[[#This Row],[Input 4]],'Customer Information'!$AR$12,201,ROW()),\"\"),\"\")","v":""}]
[{"$f":"Table_PI[[#This Row],[Line No.]]","v":""},{"$f":"IF(Table_SummaryPI[[#This Row],[MeassureCategory]]<>\"\",CONCATENATE(Table_SummaryPI[[#This Row],[MeassureCategory]],  \" - \", Table_SummaryPI[[#This Row],[ProposedMeasureCategory]],  \" - \", TEXT(Table_SummaryPI[[#This Row],[Size]],\"#,##0.00\"),\" \",Table_SummaryPI[[#This Row],[SizeUnit]]),\"\")","v":""},{"$f":"SUBSTITUTE(Table_PI[[#This Row],[Measure]],\"     \",\"\",1)","v":""},{"$f":"IF(Table_PI[[#This Row],[List 1]]<>\"\",Table_PI[[#This Row],[List 1]],\"\")","v":""},{"$f":"IF(Table_PI[[#This Row],[List 2]]<>\"\",Table_PI[[#This Row],[List 2]],\"\")","v":""},{"$f":"IF(Table_PI[[#This Row],[List 3]]<>\"\",Table_PI[[#This Row],[List 3]],\"\")","v":""},{"$f":"IF(Table_PI[[#This Row],[Manufacturer]]=\"\",\"\",Table_PI[[#This Row],[Manufacturer]])","v":""},{"$f":"IF(Table_PI[[#This Row],[Model Number]]=\"\",\"\",Table_PI[[#This Row],[Model Number]])","v":""},{"$f":"IF(Table_PI[[#This Row],[Serial Number(s)]]=\"\",\"\",Table_PI[[#This Row],[Serial Number(s)]])","v":""},null,{"$f":"IF(Table_PI[[#This Row],[Size]]=\"\",\"\",Table_PI[[#This Row],[Size]])","v":""},null,{"$f":"IFERROR(IF(AND(MeasureCalc(Table_PI[[#This Row],[Hide:\nFormula Name]],Table_SummaryPI[[#This Row],[Quantity]],Table_PI[[#This Row],[List 1]],Table_PI[[#This Row],[List 2]],Table_PI[[#This Row],[List 3]],Table_PI[[#This Row],[Size]],Table_PI[[#This Row],[Input 1]],Table_PI[[#This Row],[Input 2]],Table_PI[[#This Row],[Input 3]],Table_PI[[#This Row],[Input 4]],'Customer Information'!$AR$12,100,ROW())<>0,MeasureCalc(Table_PI[[#This Row],[Hide:\nFormula Name]],Table_SummaryPI[[#This Row],[Quantity]],Table_PI[[#This Row],[List 1]],Table_PI[[#This Row],[List 2]],Table_PI[[#This Row],[List 3]],Table_PI[[#This Row],[Size]],Table_PI[[#This Row],[Input 1]],Table_PI[[#This Row],[Input 2]],Table_PI[[#This Row],[Input 3]],Table_PI[[#This Row],[Input 4]],'Customer Information'!$AR$12,100,ROW())<>\"No Rebate\"),MeasureCalc(Table_PI[[#This Row],[Hide:\nFormula Name]],Table_SummaryPI[[#This Row],[Quantity]],Table_PI[[#This Row],[List 1]],Table_PI[[#This Row],[List 2]],Table_PI[[#This Row],[List 3]],Table_PI[[#This Row],[Size]],Table_PI[[#This Row],[Input 1]],Table_PI[[#This Row],[Input 2]],Table_PI[[#This Row],[Input 3]],Table_PI[[#This Row],[Input 4]],'Customer Information'!$AR$12,100,ROW()),\"\"),\"\")","v":""},{"$f":"IF(Table_PI[[#This Row],[Input 1]]<>\"\",Table_PI[[#This Row],[Input 1]],\"\")","v":""},null,{"$f":"IFERROR(IF(AND(MeasureCalc(Table_PI[[#This Row],[Hide:\nFormula Name]],Table_SummaryPI[[#This Row],[Quantity]],Table_PI[[#This Row],[List 1]],Table_PI[[#This Row],[List 2]],Table_PI[[#This Row],[List 3]],Table_PI[[#This Row],[Size]],Table_PI[[#This Row],[Input 1]],Table_PI[[#This Row],[Input 2]],Table_PI[[#This Row],[Input 3]],Table_PI[[#This Row],[Input 4]],'Customer Information'!$AR$12,101,ROW())<>0,MeasureCalc(Table_PI[[#This Row],[Hide:\nFormula Name]],Table_SummaryPI[[#This Row],[Quantity]],Table_PI[[#This Row],[List 1]],Table_PI[[#This Row],[List 2]],Table_PI[[#This Row],[List 3]],Table_PI[[#This Row],[Size]],Table_PI[[#This Row],[Input 1]],Table_PI[[#This Row],[Input 2]],Table_PI[[#This Row],[Input 3]],Table_PI[[#This Row],[Input 4]],'Customer Information'!$AR$12,101,ROW())<>\"No Rebate\"),MeasureCalc(Table_PI[[#This Row],[Hide:\nFormula Name]],Table_SummaryPI[[#This Row],[Quantity]],Table_PI[[#This Row],[List 1]],Table_PI[[#This Row],[List 2]],Table_PI[[#This Row],[List 3]],Table_PI[[#This Row],[Size]],Table_PI[[#This Row],[Input 1]],Table_PI[[#This Row],[Input 2]],Table_PI[[#This Row],[Input 3]],Table_PI[[#This Row],[Input 4]],'Customer Information'!$AR$12,101,ROW()),\"\"),\"\")","v":""},{"$f":"IF(Table_PI[[#This Row],[Input 2]]<>\"\",Table_PI[[#This Row],[Input 2]],\"\")","v":""},null,{"$f":"IFERROR(IF(AND(MeasureCalc(Table_PI[[#This Row],[Hide:\nFormula Name]],Table_SummaryPI[[#This Row],[Quantity]],Table_PI[[#This Row],[List 1]],Table_PI[[#This Row],[List 2]],Table_PI[[#This Row],[List 3]],Table_PI[[#This Row],[Size]],Table_PI[[#This Row],[Input 1]],Table_PI[[#This Row],[Input 2]],Table_PI[[#This Row],[Input 3]],Table_PI[[#This Row],[Input 4]],'Customer Information'!$AR$12,102,ROW())<>0,MeasureCalc(Table_PI[[#This Row],[Hide:\nFormula Name]],Table_SummaryPI[[#This Row],[Quantity]],Table_PI[[#This Row],[List 1]],Table_PI[[#This Row],[List 2]],Table_PI[[#This Row],[List 3]],Table_PI[[#This Row],[Size]],Table_PI[[#This Row],[Input 1]],Table_PI[[#This Row],[Input 2]],Table_PI[[#This Row],[Input 3]],Table_PI[[#This Row],[Input 4]],'Customer Information'!$AR$12,102,ROW())<>\"No Rebate\"),MeasureCalc(Table_PI[[#This Row],[Hide:\nFormula Name]],Table_SummaryPI[[#This Row],[Quantity]],Table_PI[[#This Row],[List 1]],Table_PI[[#This Row],[List 2]],Table_PI[[#This Row],[List 3]],Table_PI[[#This Row],[Size]],Table_PI[[#This Row],[Input 1]],Table_PI[[#This Row],[Input 2]],Table_PI[[#This Row],[Input 3]],Table_PI[[#This Row],[Input 4]],'Customer Information'!$AR$12,102,ROW()),\"\"),\"\")","v":""},{"$f":"IF(Table_PI[[#This Row],[Input 3]]<>\"\",Table_PI[[#This Row],[Input 3]],\"\")","v":""},null,{"$f":"IFERROR(IF(AND(MeasureCalc(Table_PI[[#This Row],[Hide:\nFormula Name]],Table_SummaryPI[[#This Row],[Quantity]],Table_PI[[#This Row],[List 1]],Table_PI[[#This Row],[List 2]],Table_PI[[#This Row],[List 3]],Table_PI[[#This Row],[Size]],Table_PI[[#This Row],[Input 1]],Table_PI[[#This Row],[Input 2]],Table_PI[[#This Row],[Input 3]],Table_PI[[#This Row],[Input 4]],'Customer Information'!$AR$12,103,ROW())<>0,MeasureCalc(Table_PI[[#This Row],[Hide:\nFormula Name]],Table_SummaryPI[[#This Row],[Quantity]],Table_PI[[#This Row],[List 1]],Table_PI[[#This Row],[List 2]],Table_PI[[#This Row],[List 3]],Table_PI[[#This Row],[Size]],Table_PI[[#This Row],[Input 1]],Table_PI[[#This Row],[Input 2]],Table_PI[[#This Row],[Input 3]],Table_PI[[#This Row],[Input 4]],'Customer Information'!$AR$12,103,ROW())<>\"No Rebate\"),MeasureCalc(Table_PI[[#This Row],[Hide:\nFormula Name]],Table_SummaryPI[[#This Row],[Quantity]],Table_PI[[#This Row],[List 1]],Table_PI[[#This Row],[List 2]],Table_PI[[#This Row],[List 3]],Table_PI[[#This Row],[Size]],Table_PI[[#This Row],[Input 1]],Table_PI[[#This Row],[Input 2]],Table_PI[[#This Row],[Input 3]],Table_PI[[#This Row],[Input 4]],'Customer Information'!$AR$12,103,ROW()),\"\"),\"\")","v":""},{"$f":"IF(Table_PI[[#This Row],[Input 4]]<>\"\",Table_PI[[#This Row],[Input 4]],\"\")","v":""},{"$f":"IF(Table_PI[[#This Row],[Quantity]]=\"\",\"\",Table_PI[[#This Row],[Quantity]])","v":""},{"$f":"IF(Table_PI[[#This Row],[Notes]]=\"\",\"\",Table_PI[[#This Row],[Notes]])","v":""},{"$f":"IF(OR(Table_PI[[#This Row],[Hide:\nBaseline kWh]]=\"\",Table_PI[[#This Row],[Hide:\nBaseline kWh]]=0),\"\",Table_PI[[#This Row],[Hide:\nBaseline kWh]])","v":""},{"$f":"IF(OR(Table_PI[[#This Row],[Hide:\nBaseline kW]]=\"\",Table_PI[[#This Row],[Hide:\nBaseline kW]]=0),\"\",Table_PI[[#This Row],[Hide:\nBaseline kW]])","v":""},{"$f":"IF(OR(Table_PI[[#This Row],[Hide:\nProposed kWh]]=\"\",Table_PI[[#This Row],[Hide:\nProposed kWh]]=0),\"\",Table_PI[[#This Row],[Hide:\nProposed kWh]])","v":""},{"$f":"IF(OR(Table_PI[[#This Row],[Hide:\nProposed kW]]=\"\",Table_PI[[#This Row],[Hide:\nProposed kW]]=0),\"\",Table_PI[[#This Row],[Hide:\nProposed kW]])","v":""},{"$f":"IF(OR(Table_PI[[#This Row],[Rebate]]=\"\",Table_PI[[#This Row],[Rebate]]=0),\"\",Table_PI[[#This Row],[Rebate]])","v":""},{"$f":"IF(OR(Table_PI[[#This Row],[Hide:\nIncremental Cost]]=\"\",Table_PI[[#This Row],[Hide:\nIncremental Cost]]=0),\"\",Table_PI[[#This Row],[Hide:\nIncremental Cost]])","v":""},{"$f":"IFERROR(IF(Table_SummaryPI[[#This Row],[kWhSavings]]=\"\",\"\",ROUND(Table_SummaryPI[[#This Row],[kWhSavings]]/$AG$401*'Customer Information'!$BC$17,2)),0)","v":""},{"$f":"IF(OR(Table_PI[[#This Row],[Annual kWh]]=\"\",Table_PI[[#This Row],[Annual kWh]]=0),\"\",Table_PI[[#This Row],[Annual kWh]])","v":""},{"$f":"IF(OR(Table_PI[[#This Row],[Peak kW]]=\"\",Table_PI[[#This Row],[Peak kW]]=0),\"\",Table_PI[[#This Row],[Peak kW]])","v":""},{"$f":"IFERROR(IF(Table_SummaryPI[[#This Row],[kWhSavings]]=\"\",\"\",$AU$9*Table_SummaryPI[[#This Row],[kWhSavings]]),0)","v":""},{"$f":"IFERROR(IF(Table_SummaryPI[[#This Row],[kWhSavings]]=\"\",\"\",$AU$14*Table_SummaryPI[[#This Row],[kWhSavings]]),0)","v":""},{"$f":"IFERROR(IF(Table_SummaryPI[[#This Row],[kWhSavings]]=\"\",\"\",$AU$18*Table_SummaryPI[[#This Row],[kWhSavings]]),0)","v":""},{"$f":"IFERROR(IF(Table_SummaryPI[[#This Row],[kWhSavings]]=\"\",\"\",$AU$22*Table_SummaryPI[[#This Row],[kWhSavings]]),0)","v":""},{"$f":"IFERROR(IF(MeasureCalc(Table_PI[[#This Row],[Hide:\nFormula Name]],Table_SummaryPI[[#This Row],[Quantity]],Table_PI[[#This Row],[List 1]],Table_PI[[#This Row],[List 2]],Table_PI[[#This Row],[List 3]],Table_PI[[#This Row],[Size]],Table_PI[[#This Row],[Input 1]],Table_PI[[#This Row],[Input 2]],Table_PI[[#This Row],[Input 3]],Table_PI[[#This Row],[Input 4]],'Customer Information'!$AR$12,200,ROW())<>\"No Rebate\",MeasureCalc(Table_PI[[#This Row],[Hide:\nFormula Name]],Table_SummaryPI[[#This Row],[Quantity]],Table_PI[[#This Row],[List 1]],Table_PI[[#This Row],[List 2]],Table_PI[[#This Row],[List 3]],Table_PI[[#This Row],[Size]],Table_PI[[#This Row],[Input 1]],Table_PI[[#This Row],[Input 2]],Table_PI[[#This Row],[Input 3]],Table_PI[[#This Row],[Input 4]],'Customer Information'!$AR$12,200,ROW()),\"\"),\"\")","v":""},{"$f":"IFERROR(IF(MeasureCalc(Table_PI[[#This Row],[Hide:\nFormula Name]],Table_SummaryPI[[#This Row],[Quantity]],Table_PI[[#This Row],[List 1]],Table_PI[[#This Row],[List 2]],Table_PI[[#This Row],[List 3]],Table_PI[[#This Row],[Size]],Table_PI[[#This Row],[Input 1]],Table_PI[[#This Row],[Input 2]],Table_PI[[#This Row],[Input 3]],Table_PI[[#This Row],[Input 4]],'Customer Information'!$AR$12,201,ROW())<>\"No Rebate\",MeasureCalc(Table_PI[[#This Row],[Hide:\nFormula Name]],Table_SummaryPI[[#This Row],[Quantity]],Table_PI[[#This Row],[List 1]],Table_PI[[#This Row],[List 2]],Table_PI[[#This Row],[List 3]],Table_PI[[#This Row],[Size]],Table_PI[[#This Row],[Input 1]],Table_PI[[#This Row],[Input 2]],Table_PI[[#This Row],[Input 3]],Table_PI[[#This Row],[Input 4]],'Customer Information'!$AR$12,201,ROW()),\"\"),\"\")","v":""}]
[{"$f":"Table_PI[[#This Row],[Line No.]]","v":""},{"$f":"IF(Table_SummaryPI[[#This Row],[MeassureCategory]]<>\"\",CONCATENATE(Table_SummaryPI[[#This Row],[MeassureCategory]],  \" - \", Table_SummaryPI[[#This Row],[ProposedMeasureCategory]],  \" - \", TEXT(Table_SummaryPI[[#This Row],[Size]],\"#,##0.00\"),\" \",Table_SummaryPI[[#This Row],[SizeUnit]]),\"\")","v":""},{"$f":"SUBSTITUTE(Table_PI[[#This Row],[Measure]],\"     \",\"\",1)","v":""},{"$f":"IF(Table_PI[[#This Row],[List 1]]<>\"\",Table_PI[[#This Row],[List 1]],\"\")","v":""},{"$f":"IF(Table_PI[[#This Row],[List 2]]<>\"\",Table_PI[[#This Row],[List 2]],\"\")","v":""},{"$f":"IF(Table_PI[[#This Row],[List 3]]<>\"\",Table_PI[[#This Row],[List 3]],\"\")","v":""},{"$f":"IF(Table_PI[[#This Row],[Manufacturer]]=\"\",\"\",Table_PI[[#This Row],[Manufacturer]])","v":""},{"$f":"IF(Table_PI[[#This Row],[Model Number]]=\"\",\"\",Table_PI[[#This Row],[Model Number]])","v":""},{"$f":"IF(Table_PI[[#This Row],[Serial Number(s)]]=\"\",\"\",Table_PI[[#This Row],[Serial Number(s)]])","v":""},null,{"$f":"IF(Table_PI[[#This Row],[Size]]=\"\",\"\",Table_PI[[#This Row],[Size]])","v":""},null,{"$f":"IFERROR(IF(AND(MeasureCalc(Table_PI[[#This Row],[Hide:\nFormula Name]],Table_SummaryPI[[#This Row],[Quantity]],Table_PI[[#This Row],[List 1]],Table_PI[[#This Row],[List 2]],Table_PI[[#This Row],[List 3]],Table_PI[[#This Row],[Size]],Table_PI[[#This Row],[Input 1]],Table_PI[[#This Row],[Input 2]],Table_PI[[#This Row],[Input 3]],Table_PI[[#This Row],[Input 4]],'Customer Information'!$AR$12,100,ROW())<>0,MeasureCalc(Table_PI[[#This Row],[Hide:\nFormula Name]],Table_SummaryPI[[#This Row],[Quantity]],Table_PI[[#This Row],[List 1]],Table_PI[[#This Row],[List 2]],Table_PI[[#This Row],[List 3]],Table_PI[[#This Row],[Size]],Table_PI[[#This Row],[Input 1]],Table_PI[[#This Row],[Input 2]],Table_PI[[#This Row],[Input 3]],Table_PI[[#This Row],[Input 4]],'Customer Information'!$AR$12,100,ROW())<>\"No Rebate\"),MeasureCalc(Table_PI[[#This Row],[Hide:\nFormula Name]],Table_SummaryPI[[#This Row],[Quantity]],Table_PI[[#This Row],[List 1]],Table_PI[[#This Row],[List 2]],Table_PI[[#This Row],[List 3]],Table_PI[[#This Row],[Size]],Table_PI[[#This Row],[Input 1]],Table_PI[[#This Row],[Input 2]],Table_PI[[#This Row],[Input 3]],Table_PI[[#This Row],[Input 4]],'Customer Information'!$AR$12,100,ROW()),\"\"),\"\")","v":""},{"$f":"IF(Table_PI[[#This Row],[Input 1]]<>\"\",Table_PI[[#This Row],[Input 1]],\"\")","v":""},null,{"$f":"IFERROR(IF(AND(MeasureCalc(Table_PI[[#This Row],[Hide:\nFormula Name]],Table_SummaryPI[[#This Row],[Quantity]],Table_PI[[#This Row],[List 1]],Table_PI[[#This Row],[List 2]],Table_PI[[#This Row],[List 3]],Table_PI[[#This Row],[Size]],Table_PI[[#This Row],[Input 1]],Table_PI[[#This Row],[Input 2]],Table_PI[[#This Row],[Input 3]],Table_PI[[#This Row],[Input 4]],'Customer Information'!$AR$12,101,ROW())<>0,MeasureCalc(Table_PI[[#This Row],[Hide:\nFormula Name]],Table_SummaryPI[[#This Row],[Quantity]],Table_PI[[#This Row],[List 1]],Table_PI[[#This Row],[List 2]],Table_PI[[#This Row],[List 3]],Table_PI[[#This Row],[Size]],Table_PI[[#This Row],[Input 1]],Table_PI[[#This Row],[Input 2]],Table_PI[[#This Row],[Input 3]],Table_PI[[#This Row],[Input 4]],'Customer Information'!$AR$12,101,ROW())<>\"No Rebate\"),MeasureCalc(Table_PI[[#This Row],[Hide:\nFormula Name]],Table_SummaryPI[[#This Row],[Quantity]],Table_PI[[#This Row],[List 1]],Table_PI[[#This Row],[List 2]],Table_PI[[#This Row],[List 3]],Table_PI[[#This Row],[Size]],Table_PI[[#This Row],[Input 1]],Table_PI[[#This Row],[Input 2]],Table_PI[[#This Row],[Input 3]],Table_PI[[#This Row],[Input 4]],'Customer Information'!$AR$12,101,ROW()),\"\"),\"\")","v":""},{"$f":"IF(Table_PI[[#This Row],[Input 2]]<>\"\",Table_PI[[#This Row],[Input 2]],\"\")","v":""},null,{"$f":"IFERROR(IF(AND(MeasureCalc(Table_PI[[#This Row],[Hide:\nFormula Name]],Table_SummaryPI[[#This Row],[Quantity]],Table_PI[[#This Row],[List 1]],Table_PI[[#This Row],[List 2]],Table_PI[[#This Row],[List 3]],Table_PI[[#This Row],[Size]],Table_PI[[#This Row],[Input 1]],Table_PI[[#This Row],[Input 2]],Table_PI[[#This Row],[Input 3]],Table_PI[[#This Row],[Input 4]],'Customer Information'!$AR$12,102,ROW())<>0,MeasureCalc(Table_PI[[#This Row],[Hide:\nFormula Name]],Table_SummaryPI[[#This Row],[Quantity]],Table_PI[[#This Row],[List 1]],Table_PI[[#This Row],[List 2]],Table_PI[[#This Row],[List 3]],Table_PI[[#This Row],[Size]],Table_PI[[#This Row],[Input 1]],Table_PI[[#This Row],[Input 2]],Table_PI[[#This Row],[Input 3]],Table_PI[[#This Row],[Input 4]],'Customer Information'!$AR$12,102,ROW())<>\"No Rebate\"),MeasureCalc(Table_PI[[#This Row],[Hide:\nFormula Name]],Table_SummaryPI[[#This Row],[Quantity]],Table_PI[[#This Row],[List 1]],Table_PI[[#This Row],[List 2]],Table_PI[[#This Row],[List 3]],Table_PI[[#This Row],[Size]],Table_PI[[#This Row],[Input 1]],Table_PI[[#This Row],[Input 2]],Table_PI[[#This Row],[Input 3]],Table_PI[[#This Row],[Input 4]],'Customer Information'!$AR$12,102,ROW()),\"\"),\"\")","v":""},{"$f":"IF(Table_PI[[#This Row],[Input 3]]<>\"\",Table_PI[[#This Row],[Input 3]],\"\")","v":""},null,{"$f":"IFERROR(IF(AND(MeasureCalc(Table_PI[[#This Row],[Hide:\nFormula Name]],Table_SummaryPI[[#This Row],[Quantity]],Table_PI[[#This Row],[List 1]],Table_PI[[#This Row],[List 2]],Table_PI[[#This Row],[List 3]],Table_PI[[#This Row],[Size]],Table_PI[[#This Row],[Input 1]],Table_PI[[#This Row],[Input 2]],Table_PI[[#This Row],[Input 3]],Table_PI[[#This Row],[Input 4]],'Customer Information'!$AR$12,103,ROW())<>0,MeasureCalc(Table_PI[[#This Row],[Hide:\nFormula Name]],Table_SummaryPI[[#This Row],[Quantity]],Table_PI[[#This Row],[List 1]],Table_PI[[#This Row],[List 2]],Table_PI[[#This Row],[List 3]],Table_PI[[#This Row],[Size]],Table_PI[[#This Row],[Input 1]],Table_PI[[#This Row],[Input 2]],Table_PI[[#This Row],[Input 3]],Table_PI[[#This Row],[Input 4]],'Customer Information'!$AR$12,103,ROW())<>\"No Rebate\"),MeasureCalc(Table_PI[[#This Row],[Hide:\nFormula Name]],Table_SummaryPI[[#This Row],[Quantity]],Table_PI[[#This Row],[List 1]],Table_PI[[#This Row],[List 2]],Table_PI[[#This Row],[List 3]],Table_PI[[#This Row],[Size]],Table_PI[[#This Row],[Input 1]],Table_PI[[#This Row],[Input 2]],Table_PI[[#This Row],[Input 3]],Table_PI[[#This Row],[Input 4]],'Customer Information'!$AR$12,103,ROW()),\"\"),\"\")","v":""},{"$f":"IF(Table_PI[[#This Row],[Input 4]]<>\"\",Table_PI[[#This Row],[Input 4]],\"\")","v":""},{"$f":"IF(Table_PI[[#This Row],[Quantity]]=\"\",\"\",Table_PI[[#This Row],[Quantity]])","v":""},{"$f":"IF(Table_PI[[#This Row],[Notes]]=\"\",\"\",Table_PI[[#This Row],[Notes]])","v":""},{"$f":"IF(OR(Table_PI[[#This Row],[Hide:\nBaseline kWh]]=\"\",Table_PI[[#This Row],[Hide:\nBaseline kWh]]=0),\"\",Table_PI[[#This Row],[Hide:\nBaseline kWh]])","v":""},{"$f":"IF(OR(Table_PI[[#This Row],[Hide:\nBaseline kW]]=\"\",Table_PI[[#This Row],[Hide:\nBaseline kW]]=0),\"\",Table_PI[[#This Row],[Hide:\nBaseline kW]])","v":""},{"$f":"IF(OR(Table_PI[[#This Row],[Hide:\nProposed kWh]]=\"\",Table_PI[[#This Row],[Hide:\nProposed kWh]]=0),\"\",Table_PI[[#This Row],[Hide:\nProposed kWh]])","v":""},{"$f":"IF(OR(Table_PI[[#This Row],[Hide:\nProposed kW]]=\"\",Table_PI[[#This Row],[Hide:\nProposed kW]]=0),\"\",Table_PI[[#This Row],[Hide:\nProposed kW]])","v":""},{"$f":"IF(OR(Table_PI[[#This Row],[Rebate]]=\"\",Table_PI[[#This Row],[Rebate]]=0),\"\",Table_PI[[#This Row],[Rebate]])","v":""},{"$f":"IF(OR(Table_PI[[#This Row],[Hide:\nIncremental Cost]]=\"\",Table_PI[[#This Row],[Hide:\nIncremental Cost]]=0),\"\",Table_PI[[#This Row],[Hide:\nIncremental Cost]])","v":""},{"$f":"IFERROR(IF(Table_SummaryPI[[#This Row],[kWhSavings]]=\"\",\"\",ROUND(Table_SummaryPI[[#This Row],[kWhSavings]]/$AG$401*'Customer Information'!$BC$17,2)),0)","v":""},{"$f":"IF(OR(Table_PI[[#This Row],[Annual kWh]]=\"\",Table_PI[[#This Row],[Annual kWh]]=0),\"\",Table_PI[[#This Row],[Annual kWh]])","v":""},{"$f":"IF(OR(Table_PI[[#This Row],[Peak kW]]=\"\",Table_PI[[#This Row],[Peak kW]]=0),\"\",Table_PI[[#This Row],[Peak kW]])","v":""},{"$f":"IFERROR(IF(Table_SummaryPI[[#This Row],[kWhSavings]]=\"\",\"\",$AU$9*Table_SummaryPI[[#This Row],[kWhSavings]]),0)","v":""},{"$f":"IFERROR(IF(Table_SummaryPI[[#This Row],[kWhSavings]]=\"\",\"\",$AU$14*Table_SummaryPI[[#This Row],[kWhSavings]]),0)","v":""},{"$f":"IFERROR(IF(Table_SummaryPI[[#This Row],[kWhSavings]]=\"\",\"\",$AU$18*Table_SummaryPI[[#This Row],[kWhSavings]]),0)","v":""},{"$f":"IFERROR(IF(Table_SummaryPI[[#This Row],[kWhSavings]]=\"\",\"\",$AU$22*Table_SummaryPI[[#This Row],[kWhSavings]]),0)","v":""},{"$f":"IFERROR(IF(MeasureCalc(Table_PI[[#This Row],[Hide:\nFormula Name]],Table_SummaryPI[[#This Row],[Quantity]],Table_PI[[#This Row],[List 1]],Table_PI[[#This Row],[List 2]],Table_PI[[#This Row],[List 3]],Table_PI[[#This Row],[Size]],Table_PI[[#This Row],[Input 1]],Table_PI[[#This Row],[Input 2]],Table_PI[[#This Row],[Input 3]],Table_PI[[#This Row],[Input 4]],'Customer Information'!$AR$12,200,ROW())<>\"No Rebate\",MeasureCalc(Table_PI[[#This Row],[Hide:\nFormula Name]],Table_SummaryPI[[#This Row],[Quantity]],Table_PI[[#This Row],[List 1]],Table_PI[[#This Row],[List 2]],Table_PI[[#This Row],[List 3]],Table_PI[[#This Row],[Size]],Table_PI[[#This Row],[Input 1]],Table_PI[[#This Row],[Input 2]],Table_PI[[#This Row],[Input 3]],Table_PI[[#This Row],[Input 4]],'Customer Information'!$AR$12,200,ROW()),\"\"),\"\")","v":""},{"$f":"IFERROR(IF(MeasureCalc(Table_PI[[#This Row],[Hide:\nFormula Name]],Table_SummaryPI[[#This Row],[Quantity]],Table_PI[[#This Row],[List 1]],Table_PI[[#This Row],[List 2]],Table_PI[[#This Row],[List 3]],Table_PI[[#This Row],[Size]],Table_PI[[#This Row],[Input 1]],Table_PI[[#This Row],[Input 2]],Table_PI[[#This Row],[Input 3]],Table_PI[[#This Row],[Input 4]],'Customer Information'!$AR$12,201,ROW())<>\"No Rebate\",MeasureCalc(Table_PI[[#This Row],[Hide:\nFormula Name]],Table_SummaryPI[[#This Row],[Quantity]],Table_PI[[#This Row],[List 1]],Table_PI[[#This Row],[List 2]],Table_PI[[#This Row],[List 3]],Table_PI[[#This Row],[Size]],Table_PI[[#This Row],[Input 1]],Table_PI[[#This Row],[Input 2]],Table_PI[[#This Row],[Input 3]],Table_PI[[#This Row],[Input 4]],'Customer Information'!$AR$12,201,ROW()),\"\"),\"\")","v":""}]
[{"$f":"Table_PI[[#This Row],[Line No.]]","v":""},{"$f":"IF(Table_SummaryPI[[#This Row],[MeassureCategory]]<>\"\",CONCATENATE(Table_SummaryPI[[#This Row],[MeassureCategory]],  \" - \", Table_SummaryPI[[#This Row],[ProposedMeasureCategory]],  \" - \", TEXT(Table_SummaryPI[[#This Row],[Size]],\"#,##0.00\"),\" \",Table_SummaryPI[[#This Row],[SizeUnit]]),\"\")","v":""},{"$f":"SUBSTITUTE(Table_PI[[#This Row],[Measure]],\"     \",\"\",1)","v":""},{"$f":"IF(Table_PI[[#This Row],[List 1]]<>\"\",Table_PI[[#This Row],[List 1]],\"\")","v":""},{"$f":"IF(Table_PI[[#This Row],[List 2]]<>\"\",Table_PI[[#This Row],[List 2]],\"\")","v":""},{"$f":"IF(Table_PI[[#This Row],[List 3]]<>\"\",Table_PI[[#This Row],[List 3]],\"\")","v":""},{"$f":"IF(Table_PI[[#This Row],[Manufacturer]]=\"\",\"\",Table_PI[[#This Row],[Manufacturer]])","v":""},{"$f":"IF(Table_PI[[#This Row],[Model Number]]=\"\",\"\",Table_PI[[#This Row],[Model Number]])","v":""},{"$f":"IF(Table_PI[[#This Row],[Serial Number(s)]]=\"\",\"\",Table_PI[[#This Row],[Serial Number(s)]])","v":""},null,{"$f":"IF(Table_PI[[#This Row],[Size]]=\"\",\"\",Table_PI[[#This Row],[Size]])","v":""},null,{"$f":"IFERROR(IF(AND(MeasureCalc(Table_PI[[#This Row],[Hide:\nFormula Name]],Table_SummaryPI[[#This Row],[Quantity]],Table_PI[[#This Row],[List 1]],Table_PI[[#This Row],[List 2]],Table_PI[[#This Row],[List 3]],Table_PI[[#This Row],[Size]],Table_PI[[#This Row],[Input 1]],Table_PI[[#This Row],[Input 2]],Table_PI[[#This Row],[Input 3]],Table_PI[[#This Row],[Input 4]],'Customer Information'!$AR$12,100,ROW())<>0,MeasureCalc(Table_PI[[#This Row],[Hide:\nFormula Name]],Table_SummaryPI[[#This Row],[Quantity]],Table_PI[[#This Row],[List 1]],Table_PI[[#This Row],[List 2]],Table_PI[[#This Row],[List 3]],Table_PI[[#This Row],[Size]],Table_PI[[#This Row],[Input 1]],Table_PI[[#This Row],[Input 2]],Table_PI[[#This Row],[Input 3]],Table_PI[[#This Row],[Input 4]],'Customer Information'!$AR$12,100,ROW())<>\"No Rebate\"),MeasureCalc(Table_PI[[#This Row],[Hide:\nFormula Name]],Table_SummaryPI[[#This Row],[Quantity]],Table_PI[[#This Row],[List 1]],Table_PI[[#This Row],[List 2]],Table_PI[[#This Row],[List 3]],Table_PI[[#This Row],[Size]],Table_PI[[#This Row],[Input 1]],Table_PI[[#This Row],[Input 2]],Table_PI[[#This Row],[Input 3]],Table_PI[[#This Row],[Input 4]],'Customer Information'!$AR$12,100,ROW()),\"\"),\"\")","v":""},{"$f":"IF(Table_PI[[#This Row],[Input 1]]<>\"\",Table_PI[[#This Row],[Input 1]],\"\")","v":""},null,{"$f":"IFERROR(IF(AND(MeasureCalc(Table_PI[[#This Row],[Hide:\nFormula Name]],Table_SummaryPI[[#This Row],[Quantity]],Table_PI[[#This Row],[List 1]],Table_PI[[#This Row],[List 2]],Table_PI[[#This Row],[List 3]],Table_PI[[#This Row],[Size]],Table_PI[[#This Row],[Input 1]],Table_PI[[#This Row],[Input 2]],Table_PI[[#This Row],[Input 3]],Table_PI[[#This Row],[Input 4]],'Customer Information'!$AR$12,101,ROW())<>0,MeasureCalc(Table_PI[[#This Row],[Hide:\nFormula Name]],Table_SummaryPI[[#This Row],[Quantity]],Table_PI[[#This Row],[List 1]],Table_PI[[#This Row],[List 2]],Table_PI[[#This Row],[List 3]],Table_PI[[#This Row],[Size]],Table_PI[[#This Row],[Input 1]],Table_PI[[#This Row],[Input 2]],Table_PI[[#This Row],[Input 3]],Table_PI[[#This Row],[Input 4]],'Customer Information'!$AR$12,101,ROW())<>\"No Rebate\"),MeasureCalc(Table_PI[[#This Row],[Hide:\nFormula Name]],Table_SummaryPI[[#This Row],[Quantity]],Table_PI[[#This Row],[List 1]],Table_PI[[#This Row],[List 2]],Table_PI[[#This Row],[List 3]],Table_PI[[#This Row],[Size]],Table_PI[[#This Row],[Input 1]],Table_PI[[#This Row],[Input 2]],Table_PI[[#This Row],[Input 3]],Table_PI[[#This Row],[Input 4]],'Customer Information'!$AR$12,101,ROW()),\"\"),\"\")","v":""},{"$f":"IF(Table_PI[[#This Row],[Input 2]]<>\"\",Table_PI[[#This Row],[Input 2]],\"\")","v":""},null,{"$f":"IFERROR(IF(AND(MeasureCalc(Table_PI[[#This Row],[Hide:\nFormula Name]],Table_SummaryPI[[#This Row],[Quantity]],Table_PI[[#This Row],[List 1]],Table_PI[[#This Row],[List 2]],Table_PI[[#This Row],[List 3]],Table_PI[[#This Row],[Size]],Table_PI[[#This Row],[Input 1]],Table_PI[[#This Row],[Input 2]],Table_PI[[#This Row],[Input 3]],Table_PI[[#This Row],[Input 4]],'Customer Information'!$AR$12,102,ROW())<>0,MeasureCalc(Table_PI[[#This Row],[Hide:\nFormula Name]],Table_SummaryPI[[#This Row],[Quantity]],Table_PI[[#This Row],[List 1]],Table_PI[[#This Row],[List 2]],Table_PI[[#This Row],[List 3]],Table_PI[[#This Row],[Size]],Table_PI[[#This Row],[Input 1]],Table_PI[[#This Row],[Input 2]],Table_PI[[#This Row],[Input 3]],Table_PI[[#This Row],[Input 4]],'Customer Information'!$AR$12,102,ROW())<>\"No Rebate\"),MeasureCalc(Table_PI[[#This Row],[Hide:\nFormula Name]],Table_SummaryPI[[#This Row],[Quantity]],Table_PI[[#This Row],[List 1]],Table_PI[[#This Row],[List 2]],Table_PI[[#This Row],[List 3]],Table_PI[[#This Row],[Size]],Table_PI[[#This Row],[Input 1]],Table_PI[[#This Row],[Input 2]],Table_PI[[#This Row],[Input 3]],Table_PI[[#This Row],[Input 4]],'Customer Information'!$AR$12,102,ROW()),\"\"),\"\")","v":""},{"$f":"IF(Table_PI[[#This Row],[Input 3]]<>\"\",Table_PI[[#This Row],[Input 3]],\"\")","v":""},null,{"$f":"IFERROR(IF(AND(MeasureCalc(Table_PI[[#This Row],[Hide:\nFormula Name]],Table_SummaryPI[[#This Row],[Quantity]],Table_PI[[#This Row],[List 1]],Table_PI[[#This Row],[List 2]],Table_PI[[#This Row],[List 3]],Table_PI[[#This Row],[Size]],Table_PI[[#This Row],[Input 1]],Table_PI[[#This Row],[Input 2]],Table_PI[[#This Row],[Input 3]],Table_PI[[#This Row],[Input 4]],'Customer Information'!$AR$12,103,ROW())<>0,MeasureCalc(Table_PI[[#This Row],[Hide:\nFormula Name]],Table_SummaryPI[[#This Row],[Quantity]],Table_PI[[#This Row],[List 1]],Table_PI[[#This Row],[List 2]],Table_PI[[#This Row],[List 3]],Table_PI[[#This Row],[Size]],Table_PI[[#This Row],[Input 1]],Table_PI[[#This Row],[Input 2]],Table_PI[[#This Row],[Input 3]],Table_PI[[#This Row],[Input 4]],'Customer Information'!$AR$12,103,ROW())<>\"No Rebate\"),MeasureCalc(Table_PI[[#This Row],[Hide:\nFormula Name]],Table_SummaryPI[[#This Row],[Quantity]],Table_PI[[#This Row],[List 1]],Table_PI[[#This Row],[List 2]],Table_PI[[#This Row],[List 3]],Table_PI[[#This Row],[Size]],Table_PI[[#This Row],[Input 1]],Table_PI[[#This Row],[Input 2]],Table_PI[[#This Row],[Input 3]],Table_PI[[#This Row],[Input 4]],'Customer Information'!$AR$12,103,ROW()),\"\"),\"\")","v":""},{"$f":"IF(Table_PI[[#This Row],[Input 4]]<>\"\",Table_PI[[#This Row],[Input 4]],\"\")","v":""},{"$f":"IF(Table_PI[[#This Row],[Quantity]]=\"\",\"\",Table_PI[[#This Row],[Quantity]])","v":""},{"$f":"IF(Table_PI[[#This Row],[Notes]]=\"\",\"\",Table_PI[[#This Row],[Notes]])","v":""},{"$f":"IF(OR(Table_PI[[#This Row],[Hide:\nBaseline kWh]]=\"\",Table_PI[[#This Row],[Hide:\nBaseline kWh]]=0),\"\",Table_PI[[#This Row],[Hide:\nBaseline kWh]])","v":""},{"$f":"IF(OR(Table_PI[[#This Row],[Hide:\nBaseline kW]]=\"\",Table_PI[[#This Row],[Hide:\nBaseline kW]]=0),\"\",Table_PI[[#This Row],[Hide:\nBaseline kW]])","v":""},{"$f":"IF(OR(Table_PI[[#This Row],[Hide:\nProposed kWh]]=\"\",Table_PI[[#This Row],[Hide:\nProposed kWh]]=0),\"\",Table_PI[[#This Row],[Hide:\nProposed kWh]])","v":""},{"$f":"IF(OR(Table_PI[[#This Row],[Hide:\nProposed kW]]=\"\",Table_PI[[#This Row],[Hide:\nProposed kW]]=0),\"\",Table_PI[[#This Row],[Hide:\nProposed kW]])","v":""},{"$f":"IF(OR(Table_PI[[#This Row],[Rebate]]=\"\",Table_PI[[#This Row],[Rebate]]=0),\"\",Table_PI[[#This Row],[Rebate]])","v":""},{"$f":"IF(OR(Table_PI[[#This Row],[Hide:\nIncremental Cost]]=\"\",Table_PI[[#This Row],[Hide:\nIncremental Cost]]=0),\"\",Table_PI[[#This Row],[Hide:\nIncremental Cost]])","v":""},{"$f":"IFERROR(IF(Table_SummaryPI[[#This Row],[kWhSavings]]=\"\",\"\",ROUND(Table_SummaryPI[[#This Row],[kWhSavings]]/$AG$401*'Customer Information'!$BC$17,2)),0)","v":""},{"$f":"IF(OR(Table_PI[[#This Row],[Annual kWh]]=\"\",Table_PI[[#This Row],[Annual kWh]]=0),\"\",Table_PI[[#This Row],[Annual kWh]])","v":""},{"$f":"IF(OR(Table_PI[[#This Row],[Peak kW]]=\"\",Table_PI[[#This Row],[Peak kW]]=0),\"\",Table_PI[[#This Row],[Peak kW]])","v":""},{"$f":"IFERROR(IF(Table_SummaryPI[[#This Row],[kWhSavings]]=\"\",\"\",$AU$9*Table_SummaryPI[[#This Row],[kWhSavings]]),0)","v":""},{"$f":"IFERROR(IF(Table_SummaryPI[[#This Row],[kWhSavings]]=\"\",\"\",$AU$14*Table_SummaryPI[[#This Row],[kWhSavings]]),0)","v":""},{"$f":"IFERROR(IF(Table_SummaryPI[[#This Row],[kWhSavings]]=\"\",\"\",$AU$18*Table_SummaryPI[[#This Row],[kWhSavings]]),0)","v":""},{"$f":"IFERROR(IF(Table_SummaryPI[[#This Row],[kWhSavings]]=\"\",\"\",$AU$22*Table_SummaryPI[[#This Row],[kWhSavings]]),0)","v":""},{"$f":"IFERROR(IF(MeasureCalc(Table_PI[[#This Row],[Hide:\nFormula Name]],Table_SummaryPI[[#This Row],[Quantity]],Table_PI[[#This Row],[List 1]],Table_PI[[#This Row],[List 2]],Table_PI[[#This Row],[List 3]],Table_PI[[#This Row],[Size]],Table_PI[[#This Row],[Input 1]],Table_PI[[#This Row],[Input 2]],Table_PI[[#This Row],[Input 3]],Table_PI[[#This Row],[Input 4]],'Customer Information'!$AR$12,200,ROW())<>\"No Rebate\",MeasureCalc(Table_PI[[#This Row],[Hide:\nFormula Name]],Table_SummaryPI[[#This Row],[Quantity]],Table_PI[[#This Row],[List 1]],Table_PI[[#This Row],[List 2]],Table_PI[[#This Row],[List 3]],Table_PI[[#This Row],[Size]],Table_PI[[#This Row],[Input 1]],Table_PI[[#This Row],[Input 2]],Table_PI[[#This Row],[Input 3]],Table_PI[[#This Row],[Input 4]],'Customer Information'!$AR$12,200,ROW()),\"\"),\"\")","v":""},{"$f":"IFERROR(IF(MeasureCalc(Table_PI[[#This Row],[Hide:\nFormula Name]],Table_SummaryPI[[#This Row],[Quantity]],Table_PI[[#This Row],[List 1]],Table_PI[[#This Row],[List 2]],Table_PI[[#This Row],[List 3]],Table_PI[[#This Row],[Size]],Table_PI[[#This Row],[Input 1]],Table_PI[[#This Row],[Input 2]],Table_PI[[#This Row],[Input 3]],Table_PI[[#This Row],[Input 4]],'Customer Information'!$AR$12,201,ROW())<>\"No Rebate\",MeasureCalc(Table_PI[[#This Row],[Hide:\nFormula Name]],Table_SummaryPI[[#This Row],[Quantity]],Table_PI[[#This Row],[List 1]],Table_PI[[#This Row],[List 2]],Table_PI[[#This Row],[List 3]],Table_PI[[#This Row],[Size]],Table_PI[[#This Row],[Input 1]],Table_PI[[#This Row],[Input 2]],Table_PI[[#This Row],[Input 3]],Table_PI[[#This Row],[Input 4]],'Customer Information'!$AR$12,201,ROW()),\"\"),\"\")","v":""}]
[{"$f":"Table_PI[[#This Row],[Line No.]]","v":""},{"$f":"IF(Table_SummaryPI[[#This Row],[MeassureCategory]]<>\"\",CONCATENATE(Table_SummaryPI[[#This Row],[MeassureCategory]],  \" - \", Table_SummaryPI[[#This Row],[ProposedMeasureCategory]],  \" - \", TEXT(Table_SummaryPI[[#This Row],[Size]],\"#,##0.00\"),\" \",Table_SummaryPI[[#This Row],[SizeUnit]]),\"\")","v":""},{"$f":"SUBSTITUTE(Table_PI[[#This Row],[Measure]],\"     \",\"\",1)","v":""},{"$f":"IF(Table_PI[[#This Row],[List 1]]<>\"\",Table_PI[[#This Row],[List 1]],\"\")","v":""},{"$f":"IF(Table_PI[[#This Row],[List 2]]<>\"\",Table_PI[[#This Row],[List 2]],\"\")","v":""},{"$f":"IF(Table_PI[[#This Row],[List 3]]<>\"\",Table_PI[[#This Row],[List 3]],\"\")","v":""},{"$f":"IF(Table_PI[[#This Row],[Manufacturer]]=\"\",\"\",Table_PI[[#This Row],[Manufacturer]])","v":""},{"$f":"IF(Table_PI[[#This Row],[Model Number]]=\"\",\"\",Table_PI[[#This Row],[Model Number]])","v":""},{"$f":"IF(Table_PI[[#This Row],[Serial Number(s)]]=\"\",\"\",Table_PI[[#This Row],[Serial Number(s)]])","v":""},null,{"$f":"IF(Table_PI[[#This Row],[Size]]=\"\",\"\",Table_PI[[#This Row],[Size]])","v":""},null,{"$f":"IFERROR(IF(AND(MeasureCalc(Table_PI[[#This Row],[Hide:\nFormula Name]],Table_SummaryPI[[#This Row],[Quantity]],Table_PI[[#This Row],[List 1]],Table_PI[[#This Row],[List 2]],Table_PI[[#This Row],[List 3]],Table_PI[[#This Row],[Size]],Table_PI[[#This Row],[Input 1]],Table_PI[[#This Row],[Input 2]],Table_PI[[#This Row],[Input 3]],Table_PI[[#This Row],[Input 4]],'Customer Information'!$AR$12,100,ROW())<>0,MeasureCalc(Table_PI[[#This Row],[Hide:\nFormula Name]],Table_SummaryPI[[#This Row],[Quantity]],Table_PI[[#This Row],[List 1]],Table_PI[[#This Row],[List 2]],Table_PI[[#This Row],[List 3]],Table_PI[[#This Row],[Size]],Table_PI[[#This Row],[Input 1]],Table_PI[[#This Row],[Input 2]],Table_PI[[#This Row],[Input 3]],Table_PI[[#This Row],[Input 4]],'Customer Information'!$AR$12,100,ROW())<>\"No Rebate\"),MeasureCalc(Table_PI[[#This Row],[Hide:\nFormula Name]],Table_SummaryPI[[#This Row],[Quantity]],Table_PI[[#This Row],[List 1]],Table_PI[[#This Row],[List 2]],Table_PI[[#This Row],[List 3]],Table_PI[[#This Row],[Size]],Table_PI[[#This Row],[Input 1]],Table_PI[[#This Row],[Input 2]],Table_PI[[#This Row],[Input 3]],Table_PI[[#This Row],[Input 4]],'Customer Information'!$AR$12,100,ROW()),\"\"),\"\")","v":""},{"$f":"IF(Table_PI[[#This Row],[Input 1]]<>\"\",Table_PI[[#This Row],[Input 1]],\"\")","v":""},null,{"$f":"IFERROR(IF(AND(MeasureCalc(Table_PI[[#This Row],[Hide:\nFormula Name]],Table_SummaryPI[[#This Row],[Quantity]],Table_PI[[#This Row],[List 1]],Table_PI[[#This Row],[List 2]],Table_PI[[#This Row],[List 3]],Table_PI[[#This Row],[Size]],Table_PI[[#This Row],[Input 1]],Table_PI[[#This Row],[Input 2]],Table_PI[[#This Row],[Input 3]],Table_PI[[#This Row],[Input 4]],'Customer Information'!$AR$12,101,ROW())<>0,MeasureCalc(Table_PI[[#This Row],[Hide:\nFormula Name]],Table_SummaryPI[[#This Row],[Quantity]],Table_PI[[#This Row],[List 1]],Table_PI[[#This Row],[List 2]],Table_PI[[#This Row],[List 3]],Table_PI[[#This Row],[Size]],Table_PI[[#This Row],[Input 1]],Table_PI[[#This Row],[Input 2]],Table_PI[[#This Row],[Input 3]],Table_PI[[#This Row],[Input 4]],'Customer Information'!$AR$12,101,ROW())<>\"No Rebate\"),MeasureCalc(Table_PI[[#This Row],[Hide:\nFormula Name]],Table_SummaryPI[[#This Row],[Quantity]],Table_PI[[#This Row],[List 1]],Table_PI[[#This Row],[List 2]],Table_PI[[#This Row],[List 3]],Table_PI[[#This Row],[Size]],Table_PI[[#This Row],[Input 1]],Table_PI[[#This Row],[Input 2]],Table_PI[[#This Row],[Input 3]],Table_PI[[#This Row],[Input 4]],'Customer Information'!$AR$12,101,ROW()),\"\"),\"\")","v":""},{"$f":"IF(Table_PI[[#This Row],[Input 2]]<>\"\",Table_PI[[#This Row],[Input 2]],\"\")","v":""},null,{"$f":"IFERROR(IF(AND(MeasureCalc(Table_PI[[#This Row],[Hide:\nFormula Name]],Table_SummaryPI[[#This Row],[Quantity]],Table_PI[[#This Row],[List 1]],Table_PI[[#This Row],[List 2]],Table_PI[[#This Row],[List 3]],Table_PI[[#This Row],[Size]],Table_PI[[#This Row],[Input 1]],Table_PI[[#This Row],[Input 2]],Table_PI[[#This Row],[Input 3]],Table_PI[[#This Row],[Input 4]],'Customer Information'!$AR$12,102,ROW())<>0,MeasureCalc(Table_PI[[#This Row],[Hide:\nFormula Name]],Table_SummaryPI[[#This Row],[Quantity]],Table_PI[[#This Row],[List 1]],Table_PI[[#This Row],[List 2]],Table_PI[[#This Row],[List 3]],Table_PI[[#This Row],[Size]],Table_PI[[#This Row],[Input 1]],Table_PI[[#This Row],[Input 2]],Table_PI[[#This Row],[Input 3]],Table_PI[[#This Row],[Input 4]],'Customer Information'!$AR$12,102,ROW())<>\"No Rebate\"),MeasureCalc(Table_PI[[#This Row],[Hide:\nFormula Name]],Table_SummaryPI[[#This Row],[Quantity]],Table_PI[[#This Row],[List 1]],Table_PI[[#This Row],[List 2]],Table_PI[[#This Row],[List 3]],Table_PI[[#This Row],[Size]],Table_PI[[#This Row],[Input 1]],Table_PI[[#This Row],[Input 2]],Table_PI[[#This Row],[Input 3]],Table_PI[[#This Row],[Input 4]],'Customer Information'!$AR$12,102,ROW()),\"\"),\"\")","v":""},{"$f":"IF(Table_PI[[#This Row],[Input 3]]<>\"\",Table_PI[[#This Row],[Input 3]],\"\")","v":""},null,{"$f":"IFERROR(IF(AND(MeasureCalc(Table_PI[[#This Row],[Hide:\nFormula Name]],Table_SummaryPI[[#This Row],[Quantity]],Table_PI[[#This Row],[List 1]],Table_PI[[#This Row],[List 2]],Table_PI[[#This Row],[List 3]],Table_PI[[#This Row],[Size]],Table_PI[[#This Row],[Input 1]],Table_PI[[#This Row],[Input 2]],Table_PI[[#This Row],[Input 3]],Table_PI[[#This Row],[Input 4]],'Customer Information'!$AR$12,103,ROW())<>0,MeasureCalc(Table_PI[[#This Row],[Hide:\nFormula Name]],Table_SummaryPI[[#This Row],[Quantity]],Table_PI[[#This Row],[List 1]],Table_PI[[#This Row],[List 2]],Table_PI[[#This Row],[List 3]],Table_PI[[#This Row],[Size]],Table_PI[[#This Row],[Input 1]],Table_PI[[#This Row],[Input 2]],Table_PI[[#This Row],[Input 3]],Table_PI[[#This Row],[Input 4]],'Customer Information'!$AR$12,103,ROW())<>\"No Rebate\"),MeasureCalc(Table_PI[[#This Row],[Hide:\nFormula Name]],Table_SummaryPI[[#This Row],[Quantity]],Table_PI[[#This Row],[List 1]],Table_PI[[#This Row],[List 2]],Table_PI[[#This Row],[List 3]],Table_PI[[#This Row],[Size]],Table_PI[[#This Row],[Input 1]],Table_PI[[#This Row],[Input 2]],Table_PI[[#This Row],[Input 3]],Table_PI[[#This Row],[Input 4]],'Customer Information'!$AR$12,103,ROW()),\"\"),\"\")","v":""},{"$f":"IF(Table_PI[[#This Row],[Input 4]]<>\"\",Table_PI[[#This Row],[Input 4]],\"\")","v":""},{"$f":"IF(Table_PI[[#This Row],[Quantity]]=\"\",\"\",Table_PI[[#This Row],[Quantity]])","v":""},{"$f":"IF(Table_PI[[#This Row],[Notes]]=\"\",\"\",Table_PI[[#This Row],[Notes]])","v":""},{"$f":"IF(OR(Table_PI[[#This Row],[Hide:\nBaseline kWh]]=\"\",Table_PI[[#This Row],[Hide:\nBaseline kWh]]=0),\"\",Table_PI[[#This Row],[Hide:\nBaseline kWh]])","v":""},{"$f":"IF(OR(Table_PI[[#This Row],[Hide:\nBaseline kW]]=\"\",Table_PI[[#This Row],[Hide:\nBaseline kW]]=0),\"\",Table_PI[[#This Row],[Hide:\nBaseline kW]])","v":""},{"$f":"IF(OR(Table_PI[[#This Row],[Hide:\nProposed kWh]]=\"\",Table_PI[[#This Row],[Hide:\nProposed kWh]]=0),\"\",Table_PI[[#This Row],[Hide:\nProposed kWh]])","v":""},{"$f":"IF(OR(Table_PI[[#This Row],[Hide:\nProposed kW]]=\"\",Table_PI[[#This Row],[Hide:\nProposed kW]]=0),\"\",Table_PI[[#This Row],[Hide:\nProposed kW]])","v":""},{"$f":"IF(OR(Table_PI[[#This Row],[Rebate]]=\"\",Table_PI[[#This Row],[Rebate]]=0),\"\",Table_PI[[#This Row],[Rebate]])","v":""},{"$f":"IF(OR(Table_PI[[#This Row],[Hide:\nIncremental Cost]]=\"\",Table_PI[[#This Row],[Hide:\nIncremental Cost]]=0),\"\",Table_PI[[#This Row],[Hide:\nIncremental Cost]])","v":""},{"$f":"IFERROR(IF(Table_SummaryPI[[#This Row],[kWhSavings]]=\"\",\"\",ROUND(Table_SummaryPI[[#This Row],[kWhSavings]]/$AG$401*'Customer Information'!$BC$17,2)),0)","v":""},{"$f":"IF(OR(Table_PI[[#This Row],[Annual kWh]]=\"\",Table_PI[[#This Row],[Annual kWh]]=0),\"\",Table_PI[[#This Row],[Annual kWh]])","v":""},{"$f":"IF(OR(Table_PI[[#This Row],[Peak kW]]=\"\",Table_PI[[#This Row],[Peak kW]]=0),\"\",Table_PI[[#This Row],[Peak kW]])","v":""},{"$f":"IFERROR(IF(Table_SummaryPI[[#This Row],[kWhSavings]]=\"\",\"\",$AU$9*Table_SummaryPI[[#This Row],[kWhSavings]]),0)","v":""},{"$f":"IFERROR(IF(Table_SummaryPI[[#This Row],[kWhSavings]]=\"\",\"\",$AU$14*Table_SummaryPI[[#This Row],[kWhSavings]]),0)","v":""},{"$f":"IFERROR(IF(Table_SummaryPI[[#This Row],[kWhSavings]]=\"\",\"\",$AU$18*Table_SummaryPI[[#This Row],[kWhSavings]]),0)","v":""},{"$f":"IFERROR(IF(Table_SummaryPI[[#This Row],[kWhSavings]]=\"\",\"\",$AU$22*Table_SummaryPI[[#This Row],[kWhSavings]]),0)","v":""},{"$f":"IFERROR(IF(MeasureCalc(Table_PI[[#This Row],[Hide:\nFormula Name]],Table_SummaryPI[[#This Row],[Quantity]],Table_PI[[#This Row],[List 1]],Table_PI[[#This Row],[List 2]],Table_PI[[#This Row],[List 3]],Table_PI[[#This Row],[Size]],Table_PI[[#This Row],[Input 1]],Table_PI[[#This Row],[Input 2]],Table_PI[[#This Row],[Input 3]],Table_PI[[#This Row],[Input 4]],'Customer Information'!$AR$12,200,ROW())<>\"No Rebate\",MeasureCalc(Table_PI[[#This Row],[Hide:\nFormula Name]],Table_SummaryPI[[#This Row],[Quantity]],Table_PI[[#This Row],[List 1]],Table_PI[[#This Row],[List 2]],Table_PI[[#This Row],[List 3]],Table_PI[[#This Row],[Size]],Table_PI[[#This Row],[Input 1]],Table_PI[[#This Row],[Input 2]],Table_PI[[#This Row],[Input 3]],Table_PI[[#This Row],[Input 4]],'Customer Information'!$AR$12,200,ROW()),\"\"),\"\")","v":""},{"$f":"IFERROR(IF(MeasureCalc(Table_PI[[#This Row],[Hide:\nFormula Name]],Table_SummaryPI[[#This Row],[Quantity]],Table_PI[[#This Row],[List 1]],Table_PI[[#This Row],[List 2]],Table_PI[[#This Row],[List 3]],Table_PI[[#This Row],[Size]],Table_PI[[#This Row],[Input 1]],Table_PI[[#This Row],[Input 2]],Table_PI[[#This Row],[Input 3]],Table_PI[[#This Row],[Input 4]],'Customer Information'!$AR$12,201,ROW())<>\"No Rebate\",MeasureCalc(Table_PI[[#This Row],[Hide:\nFormula Name]],Table_SummaryPI[[#This Row],[Quantity]],Table_PI[[#This Row],[List 1]],Table_PI[[#This Row],[List 2]],Table_PI[[#This Row],[List 3]],Table_PI[[#This Row],[Size]],Table_PI[[#This Row],[Input 1]],Table_PI[[#This Row],[Input 2]],Table_PI[[#This Row],[Input 3]],Table_PI[[#This Row],[Input 4]],'Customer Information'!$AR$12,201,ROW()),\"\"),\"\")","v":""}]
[{"$f":"Table_PI[[#This Row],[Line No.]]","v":""},{"$f":"IF(Table_SummaryPI[[#This Row],[MeassureCategory]]<>\"\",CONCATENATE(Table_SummaryPI[[#This Row],[MeassureCategory]],  \" - \", Table_SummaryPI[[#This Row],[ProposedMeasureCategory]],  \" - \", TEXT(Table_SummaryPI[[#This Row],[Size]],\"#,##0.00\"),\" \",Table_SummaryPI[[#This Row],[SizeUnit]]),\"\")","v":""},{"$f":"SUBSTITUTE(Table_PI[[#This Row],[Measure]],\"     \",\"\",1)","v":""},{"$f":"IF(Table_PI[[#This Row],[List 1]]<>\"\",Table_PI[[#This Row],[List 1]],\"\")","v":""},{"$f":"IF(Table_PI[[#This Row],[List 2]]<>\"\",Table_PI[[#This Row],[List 2]],\"\")","v":""},{"$f":"IF(Table_PI[[#This Row],[List 3]]<>\"\",Table_PI[[#This Row],[List 3]],\"\")","v":""},{"$f":"IF(Table_PI[[#This Row],[Manufacturer]]=\"\",\"\",Table_PI[[#This Row],[Manufacturer]])","v":""},{"$f":"IF(Table_PI[[#This Row],[Model Number]]=\"\",\"\",Table_PI[[#This Row],[Model Number]])","v":""},{"$f":"IF(Table_PI[[#This Row],[Serial Number(s)]]=\"\",\"\",Table_PI[[#This Row],[Serial Number(s)]])","v":""},null,{"$f":"IF(Table_PI[[#This Row],[Size]]=\"\",\"\",Table_PI[[#This Row],[Size]])","v":""},null,{"$f":"IFERROR(IF(AND(MeasureCalc(Table_PI[[#This Row],[Hide:\nFormula Name]],Table_SummaryPI[[#This Row],[Quantity]],Table_PI[[#This Row],[List 1]],Table_PI[[#This Row],[List 2]],Table_PI[[#This Row],[List 3]],Table_PI[[#This Row],[Size]],Table_PI[[#This Row],[Input 1]],Table_PI[[#This Row],[Input 2]],Table_PI[[#This Row],[Input 3]],Table_PI[[#This Row],[Input 4]],'Customer Information'!$AR$12,100,ROW())<>0,MeasureCalc(Table_PI[[#This Row],[Hide:\nFormula Name]],Table_SummaryPI[[#This Row],[Quantity]],Table_PI[[#This Row],[List 1]],Table_PI[[#This Row],[List 2]],Table_PI[[#This Row],[List 3]],Table_PI[[#This Row],[Size]],Table_PI[[#This Row],[Input 1]],Table_PI[[#This Row],[Input 2]],Table_PI[[#This Row],[Input 3]],Table_PI[[#This Row],[Input 4]],'Customer Information'!$AR$12,100,ROW())<>\"No Rebate\"),MeasureCalc(Table_PI[[#This Row],[Hide:\nFormula Name]],Table_SummaryPI[[#This Row],[Quantity]],Table_PI[[#This Row],[List 1]],Table_PI[[#This Row],[List 2]],Table_PI[[#This Row],[List 3]],Table_PI[[#This Row],[Size]],Table_PI[[#This Row],[Input 1]],Table_PI[[#This Row],[Input 2]],Table_PI[[#This Row],[Input 3]],Table_PI[[#This Row],[Input 4]],'Customer Information'!$AR$12,100,ROW()),\"\"),\"\")","v":""},{"$f":"IF(Table_PI[[#This Row],[Input 1]]<>\"\",Table_PI[[#This Row],[Input 1]],\"\")","v":""},null,{"$f":"IFERROR(IF(AND(MeasureCalc(Table_PI[[#This Row],[Hide:\nFormula Name]],Table_SummaryPI[[#This Row],[Quantity]],Table_PI[[#This Row],[List 1]],Table_PI[[#This Row],[List 2]],Table_PI[[#This Row],[List 3]],Table_PI[[#This Row],[Size]],Table_PI[[#This Row],[Input 1]],Table_PI[[#This Row],[Input 2]],Table_PI[[#This Row],[Input 3]],Table_PI[[#This Row],[Input 4]],'Customer Information'!$AR$12,101,ROW())<>0,MeasureCalc(Table_PI[[#This Row],[Hide:\nFormula Name]],Table_SummaryPI[[#This Row],[Quantity]],Table_PI[[#This Row],[List 1]],Table_PI[[#This Row],[List 2]],Table_PI[[#This Row],[List 3]],Table_PI[[#This Row],[Size]],Table_PI[[#This Row],[Input 1]],Table_PI[[#This Row],[Input 2]],Table_PI[[#This Row],[Input 3]],Table_PI[[#This Row],[Input 4]],'Customer Information'!$AR$12,101,ROW())<>\"No Rebate\"),MeasureCalc(Table_PI[[#This Row],[Hide:\nFormula Name]],Table_SummaryPI[[#This Row],[Quantity]],Table_PI[[#This Row],[List 1]],Table_PI[[#This Row],[List 2]],Table_PI[[#This Row],[List 3]],Table_PI[[#This Row],[Size]],Table_PI[[#This Row],[Input 1]],Table_PI[[#This Row],[Input 2]],Table_PI[[#This Row],[Input 3]],Table_PI[[#This Row],[Input 4]],'Customer Information'!$AR$12,101,ROW()),\"\"),\"\")","v":""},{"$f":"IF(Table_PI[[#This Row],[Input 2]]<>\"\",Table_PI[[#This Row],[Input 2]],\"\")","v":""},null,{"$f":"IFERROR(IF(AND(MeasureCalc(Table_PI[[#This Row],[Hide:\nFormula Name]],Table_SummaryPI[[#This Row],[Quantity]],Table_PI[[#This Row],[List 1]],Table_PI[[#This Row],[List 2]],Table_PI[[#This Row],[List 3]],Table_PI[[#This Row],[Size]],Table_PI[[#This Row],[Input 1]],Table_PI[[#This Row],[Input 2]],Table_PI[[#This Row],[Input 3]],Table_PI[[#This Row],[Input 4]],'Customer Information'!$AR$12,102,ROW())<>0,MeasureCalc(Table_PI[[#This Row],[Hide:\nFormula Name]],Table_SummaryPI[[#This Row],[Quantity]],Table_PI[[#This Row],[List 1]],Table_PI[[#This Row],[List 2]],Table_PI[[#This Row],[List 3]],Table_PI[[#This Row],[Size]],Table_PI[[#This Row],[Input 1]],Table_PI[[#This Row],[Input 2]],Table_PI[[#This Row],[Input 3]],Table_PI[[#This Row],[Input 4]],'Customer Information'!$AR$12,102,ROW())<>\"No Rebate\"),MeasureCalc(Table_PI[[#This Row],[Hide:\nFormula Name]],Table_SummaryPI[[#This Row],[Quantity]],Table_PI[[#This Row],[List 1]],Table_PI[[#This Row],[List 2]],Table_PI[[#This Row],[List 3]],Table_PI[[#This Row],[Size]],Table_PI[[#This Row],[Input 1]],Table_PI[[#This Row],[Input 2]],Table_PI[[#This Row],[Input 3]],Table_PI[[#This Row],[Input 4]],'Customer Information'!$AR$12,102,ROW()),\"\"),\"\")","v":""},{"$f":"IF(Table_PI[[#This Row],[Input 3]]<>\"\",Table_PI[[#This Row],[Input 3]],\"\")","v":""},null,{"$f":"IFERROR(IF(AND(MeasureCalc(Table_PI[[#This Row],[Hide:\nFormula Name]],Table_SummaryPI[[#This Row],[Quantity]],Table_PI[[#This Row],[List 1]],Table_PI[[#This Row],[List 2]],Table_PI[[#This Row],[List 3]],Table_PI[[#This Row],[Size]],Table_PI[[#This Row],[Input 1]],Table_PI[[#This Row],[Input 2]],Table_PI[[#This Row],[Input 3]],Table_PI[[#This Row],[Input 4]],'Customer Information'!$AR$12,103,ROW())<>0,MeasureCalc(Table_PI[[#This Row],[Hide:\nFormula Name]],Table_SummaryPI[[#This Row],[Quantity]],Table_PI[[#This Row],[List 1]],Table_PI[[#This Row],[List 2]],Table_PI[[#This Row],[List 3]],Table_PI[[#This Row],[Size]],Table_PI[[#This Row],[Input 1]],Table_PI[[#This Row],[Input 2]],Table_PI[[#This Row],[Input 3]],Table_PI[[#This Row],[Input 4]],'Customer Information'!$AR$12,103,ROW())<>\"No Rebate\"),MeasureCalc(Table_PI[[#This Row],[Hide:\nFormula Name]],Table_SummaryPI[[#This Row],[Quantity]],Table_PI[[#This Row],[List 1]],Table_PI[[#This Row],[List 2]],Table_PI[[#This Row],[List 3]],Table_PI[[#This Row],[Size]],Table_PI[[#This Row],[Input 1]],Table_PI[[#This Row],[Input 2]],Table_PI[[#This Row],[Input 3]],Table_PI[[#This Row],[Input 4]],'Customer Information'!$AR$12,103,ROW()),\"\"),\"\")","v":""},{"$f":"IF(Table_PI[[#This Row],[Input 4]]<>\"\",Table_PI[[#This Row],[Input 4]],\"\")","v":""},{"$f":"IF(Table_PI[[#This Row],[Quantity]]=\"\",\"\",Table_PI[[#This Row],[Quantity]])","v":""},{"$f":"IF(Table_PI[[#This Row],[Notes]]=\"\",\"\",Table_PI[[#This Row],[Notes]])","v":""},{"$f":"IF(OR(Table_PI[[#This Row],[Hide:\nBaseline kWh]]=\"\",Table_PI[[#This Row],[Hide:\nBaseline kWh]]=0),\"\",Table_PI[[#This Row],[Hide:\nBaseline kWh]])","v":""},{"$f":"IF(OR(Table_PI[[#This Row],[Hide:\nBaseline kW]]=\"\",Table_PI[[#This Row],[Hide:\nBaseline kW]]=0),\"\",Table_PI[[#This Row],[Hide:\nBaseline kW]])","v":""},{"$f":"IF(OR(Table_PI[[#This Row],[Hide:\nProposed kWh]]=\"\",Table_PI[[#This Row],[Hide:\nProposed kWh]]=0),\"\",Table_PI[[#This Row],[Hide:\nProposed kWh]])","v":""},{"$f":"IF(OR(Table_PI[[#This Row],[Hide:\nProposed kW]]=\"\",Table_PI[[#This Row],[Hide:\nProposed kW]]=0),\"\",Table_PI[[#This Row],[Hide:\nProposed kW]])","v":""},{"$f":"IF(OR(Table_PI[[#This Row],[Rebate]]=\"\",Table_PI[[#This Row],[Rebate]]=0),\"\",Table_PI[[#This Row],[Rebate]])","v":""},{"$f":"IF(OR(Table_PI[[#This Row],[Hide:\nIncremental Cost]]=\"\",Table_PI[[#This Row],[Hide:\nIncremental Cost]]=0),\"\",Table_PI[[#This Row],[Hide:\nIncremental Cost]])","v":""},{"$f":"IFERROR(IF(Table_SummaryPI[[#This Row],[kWhSavings]]=\"\",\"\",ROUND(Table_SummaryPI[[#This Row],[kWhSavings]]/$AG$401*'Customer Information'!$BC$17,2)),0)","v":""},{"$f":"IF(OR(Table_PI[[#This Row],[Annual kWh]]=\"\",Table_PI[[#This Row],[Annual kWh]]=0),\"\",Table_PI[[#This Row],[Annual kWh]])","v":""},{"$f":"IF(OR(Table_PI[[#This Row],[Peak kW]]=\"\",Table_PI[[#This Row],[Peak kW]]=0),\"\",Table_PI[[#This Row],[Peak kW]])","v":""},{"$f":"IFERROR(IF(Table_SummaryPI[[#This Row],[kWhSavings]]=\"\",\"\",$AU$9*Table_SummaryPI[[#This Row],[kWhSavings]]),0)","v":""},{"$f":"IFERROR(IF(Table_SummaryPI[[#This Row],[kWhSavings]]=\"\",\"\",$AU$14*Table_SummaryPI[[#This Row],[kWhSavings]]),0)","v":""},{"$f":"IFERROR(IF(Table_SummaryPI[[#This Row],[kWhSavings]]=\"\",\"\",$AU$18*Table_SummaryPI[[#This Row],[kWhSavings]]),0)","v":""},{"$f":"IFERROR(IF(Table_SummaryPI[[#This Row],[kWhSavings]]=\"\",\"\",$AU$22*Table_SummaryPI[[#This Row],[kWhSavings]]),0)","v":""},{"$f":"IFERROR(IF(MeasureCalc(Table_PI[[#This Row],[Hide:\nFormula Name]],Table_SummaryPI[[#This Row],[Quantity]],Table_PI[[#This Row],[List 1]],Table_PI[[#This Row],[List 2]],Table_PI[[#This Row],[List 3]],Table_PI[[#This Row],[Size]],Table_PI[[#This Row],[Input 1]],Table_PI[[#This Row],[Input 2]],Table_PI[[#This Row],[Input 3]],Table_PI[[#This Row],[Input 4]],'Customer Information'!$AR$12,200,ROW())<>\"No Rebate\",MeasureCalc(Table_PI[[#This Row],[Hide:\nFormula Name]],Table_SummaryPI[[#This Row],[Quantity]],Table_PI[[#This Row],[List 1]],Table_PI[[#This Row],[List 2]],Table_PI[[#This Row],[List 3]],Table_PI[[#This Row],[Size]],Table_PI[[#This Row],[Input 1]],Table_PI[[#This Row],[Input 2]],Table_PI[[#This Row],[Input 3]],Table_PI[[#This Row],[Input 4]],'Customer Information'!$AR$12,200,ROW()),\"\"),\"\")","v":""},{"$f":"IFERROR(IF(MeasureCalc(Table_PI[[#This Row],[Hide:\nFormula Name]],Table_SummaryPI[[#This Row],[Quantity]],Table_PI[[#This Row],[List 1]],Table_PI[[#This Row],[List 2]],Table_PI[[#This Row],[List 3]],Table_PI[[#This Row],[Size]],Table_PI[[#This Row],[Input 1]],Table_PI[[#This Row],[Input 2]],Table_PI[[#This Row],[Input 3]],Table_PI[[#This Row],[Input 4]],'Customer Information'!$AR$12,201,ROW())<>\"No Rebate\",MeasureCalc(Table_PI[[#This Row],[Hide:\nFormula Name]],Table_SummaryPI[[#This Row],[Quantity]],Table_PI[[#This Row],[List 1]],Table_PI[[#This Row],[List 2]],Table_PI[[#This Row],[List 3]],Table_PI[[#This Row],[Size]],Table_PI[[#This Row],[Input 1]],Table_PI[[#This Row],[Input 2]],Table_PI[[#This Row],[Input 3]],Table_PI[[#This Row],[Input 4]],'Customer Information'!$AR$12,201,ROW()),\"\"),\"\")","v":""}]
[{"$f":"Table_PI[[#This Row],[Line No.]]","v":""},{"$f":"IF(Table_SummaryPI[[#This Row],[MeassureCategory]]<>\"\",CONCATENATE(Table_SummaryPI[[#This Row],[MeassureCategory]],  \" - \", Table_SummaryPI[[#This Row],[ProposedMeasureCategory]],  \" - \", TEXT(Table_SummaryPI[[#This Row],[Size]],\"#,##0.00\"),\" \",Table_SummaryPI[[#This Row],[SizeUnit]]),\"\")","v":""},{"$f":"SUBSTITUTE(Table_PI[[#This Row],[Measure]],\"     \",\"\",1)","v":""},{"$f":"IF(Table_PI[[#This Row],[List 1]]<>\"\",Table_PI[[#This Row],[List 1]],\"\")","v":""},{"$f":"IF(Table_PI[[#This Row],[List 2]]<>\"\",Table_PI[[#This Row],[List 2]],\"\")","v":""},{"$f":"IF(Table_PI[[#This Row],[List 3]]<>\"\",Table_PI[[#This Row],[List 3]],\"\")","v":""},{"$f":"IF(Table_PI[[#This Row],[Manufacturer]]=\"\",\"\",Table_PI[[#This Row],[Manufacturer]])","v":""},{"$f":"IF(Table_PI[[#This Row],[Model Number]]=\"\",\"\",Table_PI[[#This Row],[Model Number]])","v":""},{"$f":"IF(Table_PI[[#This Row],[Serial Number(s)]]=\"\",\"\",Table_PI[[#This Row],[Serial Number(s)]])","v":""},null,{"$f":"IF(Table_PI[[#This Row],[Size]]=\"\",\"\",Table_PI[[#This Row],[Size]])","v":""},null,{"$f":"IFERROR(IF(AND(MeasureCalc(Table_PI[[#This Row],[Hide:\nFormula Name]],Table_SummaryPI[[#This Row],[Quantity]],Table_PI[[#This Row],[List 1]],Table_PI[[#This Row],[List 2]],Table_PI[[#This Row],[List 3]],Table_PI[[#This Row],[Size]],Table_PI[[#This Row],[Input 1]],Table_PI[[#This Row],[Input 2]],Table_PI[[#This Row],[Input 3]],Table_PI[[#This Row],[Input 4]],'Customer Information'!$AR$12,100,ROW())<>0,MeasureCalc(Table_PI[[#This Row],[Hide:\nFormula Name]],Table_SummaryPI[[#This Row],[Quantity]],Table_PI[[#This Row],[List 1]],Table_PI[[#This Row],[List 2]],Table_PI[[#This Row],[List 3]],Table_PI[[#This Row],[Size]],Table_PI[[#This Row],[Input 1]],Table_PI[[#This Row],[Input 2]],Table_PI[[#This Row],[Input 3]],Table_PI[[#This Row],[Input 4]],'Customer Information'!$AR$12,100,ROW())<>\"No Rebate\"),MeasureCalc(Table_PI[[#This Row],[Hide:\nFormula Name]],Table_SummaryPI[[#This Row],[Quantity]],Table_PI[[#This Row],[List 1]],Table_PI[[#This Row],[List 2]],Table_PI[[#This Row],[List 3]],Table_PI[[#This Row],[Size]],Table_PI[[#This Row],[Input 1]],Table_PI[[#This Row],[Input 2]],Table_PI[[#This Row],[Input 3]],Table_PI[[#This Row],[Input 4]],'Customer Information'!$AR$12,100,ROW()),\"\"),\"\")","v":""},{"$f":"IF(Table_PI[[#This Row],[Input 1]]<>\"\",Table_PI[[#This Row],[Input 1]],\"\")","v":""},null,{"$f":"IFERROR(IF(AND(MeasureCalc(Table_PI[[#This Row],[Hide:\nFormula Name]],Table_SummaryPI[[#This Row],[Quantity]],Table_PI[[#This Row],[List 1]],Table_PI[[#This Row],[List 2]],Table_PI[[#This Row],[List 3]],Table_PI[[#This Row],[Size]],Table_PI[[#This Row],[Input 1]],Table_PI[[#This Row],[Input 2]],Table_PI[[#This Row],[Input 3]],Table_PI[[#This Row],[Input 4]],'Customer Information'!$AR$12,101,ROW())<>0,MeasureCalc(Table_PI[[#This Row],[Hide:\nFormula Name]],Table_SummaryPI[[#This Row],[Quantity]],Table_PI[[#This Row],[List 1]],Table_PI[[#This Row],[List 2]],Table_PI[[#This Row],[List 3]],Table_PI[[#This Row],[Size]],Table_PI[[#This Row],[Input 1]],Table_PI[[#This Row],[Input 2]],Table_PI[[#This Row],[Input 3]],Table_PI[[#This Row],[Input 4]],'Customer Information'!$AR$12,101,ROW())<>\"No Rebate\"),MeasureCalc(Table_PI[[#This Row],[Hide:\nFormula Name]],Table_SummaryPI[[#This Row],[Quantity]],Table_PI[[#This Row],[List 1]],Table_PI[[#This Row],[List 2]],Table_PI[[#This Row],[List 3]],Table_PI[[#This Row],[Size]],Table_PI[[#This Row],[Input 1]],Table_PI[[#This Row],[Input 2]],Table_PI[[#This Row],[Input 3]],Table_PI[[#This Row],[Input 4]],'Customer Information'!$AR$12,101,ROW()),\"\"),\"\")","v":""},{"$f":"IF(Table_PI[[#This Row],[Input 2]]<>\"\",Table_PI[[#This Row],[Input 2]],\"\")","v":""},null,{"$f":"IFERROR(IF(AND(MeasureCalc(Table_PI[[#This Row],[Hide:\nFormula Name]],Table_SummaryPI[[#This Row],[Quantity]],Table_PI[[#This Row],[List 1]],Table_PI[[#This Row],[List 2]],Table_PI[[#This Row],[List 3]],Table_PI[[#This Row],[Size]],Table_PI[[#This Row],[Input 1]],Table_PI[[#This Row],[Input 2]],Table_PI[[#This Row],[Input 3]],Table_PI[[#This Row],[Input 4]],'Customer Information'!$AR$12,102,ROW())<>0,MeasureCalc(Table_PI[[#This Row],[Hide:\nFormula Name]],Table_SummaryPI[[#This Row],[Quantity]],Table_PI[[#This Row],[List 1]],Table_PI[[#This Row],[List 2]],Table_PI[[#This Row],[List 3]],Table_PI[[#This Row],[Size]],Table_PI[[#This Row],[Input 1]],Table_PI[[#This Row],[Input 2]],Table_PI[[#This Row],[Input 3]],Table_PI[[#This Row],[Input 4]],'Customer Information'!$AR$12,102,ROW())<>\"No Rebate\"),MeasureCalc(Table_PI[[#This Row],[Hide:\nFormula Name]],Table_SummaryPI[[#This Row],[Quantity]],Table_PI[[#This Row],[List 1]],Table_PI[[#This Row],[List 2]],Table_PI[[#This Row],[List 3]],Table_PI[[#This Row],[Size]],Table_PI[[#This Row],[Input 1]],Table_PI[[#This Row],[Input 2]],Table_PI[[#This Row],[Input 3]],Table_PI[[#This Row],[Input 4]],'Customer Information'!$AR$12,102,ROW()),\"\"),\"\")","v":""},{"$f":"IF(Table_PI[[#This Row],[Input 3]]<>\"\",Table_PI[[#This Row],[Input 3]],\"\")","v":""},null,{"$f":"IFERROR(IF(AND(MeasureCalc(Table_PI[[#This Row],[Hide:\nFormula Name]],Table_SummaryPI[[#This Row],[Quantity]],Table_PI[[#This Row],[List 1]],Table_PI[[#This Row],[List 2]],Table_PI[[#This Row],[List 3]],Table_PI[[#This Row],[Size]],Table_PI[[#This Row],[Input 1]],Table_PI[[#This Row],[Input 2]],Table_PI[[#This Row],[Input 3]],Table_PI[[#This Row],[Input 4]],'Customer Information'!$AR$12,103,ROW())<>0,MeasureCalc(Table_PI[[#This Row],[Hide:\nFormula Name]],Table_SummaryPI[[#This Row],[Quantity]],Table_PI[[#This Row],[List 1]],Table_PI[[#This Row],[List 2]],Table_PI[[#This Row],[List 3]],Table_PI[[#This Row],[Size]],Table_PI[[#This Row],[Input 1]],Table_PI[[#This Row],[Input 2]],Table_PI[[#This Row],[Input 3]],Table_PI[[#This Row],[Input 4]],'Customer Information'!$AR$12,103,ROW())<>\"No Rebate\"),MeasureCalc(Table_PI[[#This Row],[Hide:\nFormula Name]],Table_SummaryPI[[#This Row],[Quantity]],Table_PI[[#This Row],[List 1]],Table_PI[[#This Row],[List 2]],Table_PI[[#This Row],[List 3]],Table_PI[[#This Row],[Size]],Table_PI[[#This Row],[Input 1]],Table_PI[[#This Row],[Input 2]],Table_PI[[#This Row],[Input 3]],Table_PI[[#This Row],[Input 4]],'Customer Information'!$AR$12,103,ROW()),\"\"),\"\")","v":""},{"$f":"IF(Table_PI[[#This Row],[Input 4]]<>\"\",Table_PI[[#This Row],[Input 4]],\"\")","v":""},{"$f":"IF(Table_PI[[#This Row],[Quantity]]=\"\",\"\",Table_PI[[#This Row],[Quantity]])","v":""},{"$f":"IF(Table_PI[[#This Row],[Notes]]=\"\",\"\",Table_PI[[#This Row],[Notes]])","v":""},{"$f":"IF(OR(Table_PI[[#This Row],[Hide:\nBaseline kWh]]=\"\",Table_PI[[#This Row],[Hide:\nBaseline kWh]]=0),\"\",Table_PI[[#This Row],[Hide:\nBaseline kWh]])","v":""},{"$f":"IF(OR(Table_PI[[#This Row],[Hide:\nBaseline kW]]=\"\",Table_PI[[#This Row],[Hide:\nBaseline kW]]=0),\"\",Table_PI[[#This Row],[Hide:\nBaseline kW]])","v":""},{"$f":"IF(OR(Table_PI[[#This Row],[Hide:\nProposed kWh]]=\"\",Table_PI[[#This Row],[Hide:\nProposed kWh]]=0),\"\",Table_PI[[#This Row],[Hide:\nProposed kWh]])","v":""},{"$f":"IF(OR(Table_PI[[#This Row],[Hide:\nProposed kW]]=\"\",Table_PI[[#This Row],[Hide:\nProposed kW]]=0),\"\",Table_PI[[#This Row],[Hide:\nProposed kW]])","v":""},{"$f":"IF(OR(Table_PI[[#This Row],[Rebate]]=\"\",Table_PI[[#This Row],[Rebate]]=0),\"\",Table_PI[[#This Row],[Rebate]])","v":""},{"$f":"IF(OR(Table_PI[[#This Row],[Hide:\nIncremental Cost]]=\"\",Table_PI[[#This Row],[Hide:\nIncremental Cost]]=0),\"\",Table_PI[[#This Row],[Hide:\nIncremental Cost]])","v":""},{"$f":"IFERROR(IF(Table_SummaryPI[[#This Row],[kWhSavings]]=\"\",\"\",ROUND(Table_SummaryPI[[#This Row],[kWhSavings]]/$AG$401*'Customer Information'!$BC$17,2)),0)","v":""},{"$f":"IF(OR(Table_PI[[#This Row],[Annual kWh]]=\"\",Table_PI[[#This Row],[Annual kWh]]=0),\"\",Table_PI[[#This Row],[Annual kWh]])","v":""},{"$f":"IF(OR(Table_PI[[#This Row],[Peak kW]]=\"\",Table_PI[[#This Row],[Peak kW]]=0),\"\",Table_PI[[#This Row],[Peak kW]])","v":""},{"$f":"IFERROR(IF(Table_SummaryPI[[#This Row],[kWhSavings]]=\"\",\"\",$AU$9*Table_SummaryPI[[#This Row],[kWhSavings]]),0)","v":""},{"$f":"IFERROR(IF(Table_SummaryPI[[#This Row],[kWhSavings]]=\"\",\"\",$AU$14*Table_SummaryPI[[#This Row],[kWhSavings]]),0)","v":""},{"$f":"IFERROR(IF(Table_SummaryPI[[#This Row],[kWhSavings]]=\"\",\"\",$AU$18*Table_SummaryPI[[#This Row],[kWhSavings]]),0)","v":""},{"$f":"IFERROR(IF(Table_SummaryPI[[#This Row],[kWhSavings]]=\"\",\"\",$AU$22*Table_SummaryPI[[#This Row],[kWhSavings]]),0)","v":""},{"$f":"IFERROR(IF(MeasureCalc(Table_PI[[#This Row],[Hide:\nFormula Name]],Table_SummaryPI[[#This Row],[Quantity]],Table_PI[[#This Row],[List 1]],Table_PI[[#This Row],[List 2]],Table_PI[[#This Row],[List 3]],Table_PI[[#This Row],[Size]],Table_PI[[#This Row],[Input 1]],Table_PI[[#This Row],[Input 2]],Table_PI[[#This Row],[Input 3]],Table_PI[[#This Row],[Input 4]],'Customer Information'!$AR$12,200,ROW())<>\"No Rebate\",MeasureCalc(Table_PI[[#This Row],[Hide:\nFormula Name]],Table_SummaryPI[[#This Row],[Quantity]],Table_PI[[#This Row],[List 1]],Table_PI[[#This Row],[List 2]],Table_PI[[#This Row],[List 3]],Table_PI[[#This Row],[Size]],Table_PI[[#This Row],[Input 1]],Table_PI[[#This Row],[Input 2]],Table_PI[[#This Row],[Input 3]],Table_PI[[#This Row],[Input 4]],'Customer Information'!$AR$12,200,ROW()),\"\"),\"\")","v":""},{"$f":"IFERROR(IF(MeasureCalc(Table_PI[[#This Row],[Hide:\nFormula Name]],Table_SummaryPI[[#This Row],[Quantity]],Table_PI[[#This Row],[List 1]],Table_PI[[#This Row],[List 2]],Table_PI[[#This Row],[List 3]],Table_PI[[#This Row],[Size]],Table_PI[[#This Row],[Input 1]],Table_PI[[#This Row],[Input 2]],Table_PI[[#This Row],[Input 3]],Table_PI[[#This Row],[Input 4]],'Customer Information'!$AR$12,201,ROW())<>\"No Rebate\",MeasureCalc(Table_PI[[#This Row],[Hide:\nFormula Name]],Table_SummaryPI[[#This Row],[Quantity]],Table_PI[[#This Row],[List 1]],Table_PI[[#This Row],[List 2]],Table_PI[[#This Row],[List 3]],Table_PI[[#This Row],[Size]],Table_PI[[#This Row],[Input 1]],Table_PI[[#This Row],[Input 2]],Table_PI[[#This Row],[Input 3]],Table_PI[[#This Row],[Input 4]],'Customer Information'!$AR$12,201,ROW()),\"\"),\"\")","v":""}]
[{"$f":"Table_PI[[#This Row],[Line No.]]","v":""},{"$f":"IF(Table_SummaryPI[[#This Row],[MeassureCategory]]<>\"\",CONCATENATE(Table_SummaryPI[[#This Row],[MeassureCategory]],  \" - \", Table_SummaryPI[[#This Row],[ProposedMeasureCategory]],  \" - \", TEXT(Table_SummaryPI[[#This Row],[Size]],\"#,##0.00\"),\" \",Table_SummaryPI[[#This Row],[SizeUnit]]),\"\")","v":""},{"$f":"SUBSTITUTE(Table_PI[[#This Row],[Measure]],\"     \",\"\",1)","v":""},{"$f":"IF(Table_PI[[#This Row],[List 1]]<>\"\",Table_PI[[#This Row],[List 1]],\"\")","v":""},{"$f":"IF(Table_PI[[#This Row],[List 2]]<>\"\",Table_PI[[#This Row],[List 2]],\"\")","v":""},{"$f":"IF(Table_PI[[#This Row],[List 3]]<>\"\",Table_PI[[#This Row],[List 3]],\"\")","v":""},{"$f":"IF(Table_PI[[#This Row],[Manufacturer]]=\"\",\"\",Table_PI[[#This Row],[Manufacturer]])","v":""},{"$f":"IF(Table_PI[[#This Row],[Model Number]]=\"\",\"\",Table_PI[[#This Row],[Model Number]])","v":""},{"$f":"IF(Table_PI[[#This Row],[Serial Number(s)]]=\"\",\"\",Table_PI[[#This Row],[Serial Number(s)]])","v":""},null,{"$f":"IF(Table_PI[[#This Row],[Size]]=\"\",\"\",Table_PI[[#This Row],[Size]])","v":""},null,{"$f":"IFERROR(IF(AND(MeasureCalc(Table_PI[[#This Row],[Hide:\nFormula Name]],Table_SummaryPI[[#This Row],[Quantity]],Table_PI[[#This Row],[List 1]],Table_PI[[#This Row],[List 2]],Table_PI[[#This Row],[List 3]],Table_PI[[#This Row],[Size]],Table_PI[[#This Row],[Input 1]],Table_PI[[#This Row],[Input 2]],Table_PI[[#This Row],[Input 3]],Table_PI[[#This Row],[Input 4]],'Customer Information'!$AR$12,100,ROW())<>0,MeasureCalc(Table_PI[[#This Row],[Hide:\nFormula Name]],Table_SummaryPI[[#This Row],[Quantity]],Table_PI[[#This Row],[List 1]],Table_PI[[#This Row],[List 2]],Table_PI[[#This Row],[List 3]],Table_PI[[#This Row],[Size]],Table_PI[[#This Row],[Input 1]],Table_PI[[#This Row],[Input 2]],Table_PI[[#This Row],[Input 3]],Table_PI[[#This Row],[Input 4]],'Customer Information'!$AR$12,100,ROW())<>\"No Rebate\"),MeasureCalc(Table_PI[[#This Row],[Hide:\nFormula Name]],Table_SummaryPI[[#This Row],[Quantity]],Table_PI[[#This Row],[List 1]],Table_PI[[#This Row],[List 2]],Table_PI[[#This Row],[List 3]],Table_PI[[#This Row],[Size]],Table_PI[[#This Row],[Input 1]],Table_PI[[#This Row],[Input 2]],Table_PI[[#This Row],[Input 3]],Table_PI[[#This Row],[Input 4]],'Customer Information'!$AR$12,100,ROW()),\"\"),\"\")","v":""},{"$f":"IF(Table_PI[[#This Row],[Input 1]]<>\"\",Table_PI[[#This Row],[Input 1]],\"\")","v":""},null,{"$f":"IFERROR(IF(AND(MeasureCalc(Table_PI[[#This Row],[Hide:\nFormula Name]],Table_SummaryPI[[#This Row],[Quantity]],Table_PI[[#This Row],[List 1]],Table_PI[[#This Row],[List 2]],Table_PI[[#This Row],[List 3]],Table_PI[[#This Row],[Size]],Table_PI[[#This Row],[Input 1]],Table_PI[[#This Row],[Input 2]],Table_PI[[#This Row],[Input 3]],Table_PI[[#This Row],[Input 4]],'Customer Information'!$AR$12,101,ROW())<>0,MeasureCalc(Table_PI[[#This Row],[Hide:\nFormula Name]],Table_SummaryPI[[#This Row],[Quantity]],Table_PI[[#This Row],[List 1]],Table_PI[[#This Row],[List 2]],Table_PI[[#This Row],[List 3]],Table_PI[[#This Row],[Size]],Table_PI[[#This Row],[Input 1]],Table_PI[[#This Row],[Input 2]],Table_PI[[#This Row],[Input 3]],Table_PI[[#This Row],[Input 4]],'Customer Information'!$AR$12,101,ROW())<>\"No Rebate\"),MeasureCalc(Table_PI[[#This Row],[Hide:\nFormula Name]],Table_SummaryPI[[#This Row],[Quantity]],Table_PI[[#This Row],[List 1]],Table_PI[[#This Row],[List 2]],Table_PI[[#This Row],[List 3]],Table_PI[[#This Row],[Size]],Table_PI[[#This Row],[Input 1]],Table_PI[[#This Row],[Input 2]],Table_PI[[#This Row],[Input 3]],Table_PI[[#This Row],[Input 4]],'Customer Information'!$AR$12,101,ROW()),\"\"),\"\")","v":""},{"$f":"IF(Table_PI[[#This Row],[Input 2]]<>\"\",Table_PI[[#This Row],[Input 2]],\"\")","v":""},null,{"$f":"IFERROR(IF(AND(MeasureCalc(Table_PI[[#This Row],[Hide:\nFormula Name]],Table_SummaryPI[[#This Row],[Quantity]],Table_PI[[#This Row],[List 1]],Table_PI[[#This Row],[List 2]],Table_PI[[#This Row],[List 3]],Table_PI[[#This Row],[Size]],Table_PI[[#This Row],[Input 1]],Table_PI[[#This Row],[Input 2]],Table_PI[[#This Row],[Input 3]],Table_PI[[#This Row],[Input 4]],'Customer Information'!$AR$12,102,ROW())<>0,MeasureCalc(Table_PI[[#This Row],[Hide:\nFormula Name]],Table_SummaryPI[[#This Row],[Quantity]],Table_PI[[#This Row],[List 1]],Table_PI[[#This Row],[List 2]],Table_PI[[#This Row],[List 3]],Table_PI[[#This Row],[Size]],Table_PI[[#This Row],[Input 1]],Table_PI[[#This Row],[Input 2]],Table_PI[[#This Row],[Input 3]],Table_PI[[#This Row],[Input 4]],'Customer Information'!$AR$12,102,ROW())<>\"No Rebate\"),MeasureCalc(Table_PI[[#This Row],[Hide:\nFormula Name]],Table_SummaryPI[[#This Row],[Quantity]],Table_PI[[#This Row],[List 1]],Table_PI[[#This Row],[List 2]],Table_PI[[#This Row],[List 3]],Table_PI[[#This Row],[Size]],Table_PI[[#This Row],[Input 1]],Table_PI[[#This Row],[Input 2]],Table_PI[[#This Row],[Input 3]],Table_PI[[#This Row],[Input 4]],'Customer Information'!$AR$12,102,ROW()),\"\"),\"\")","v":""},{"$f":"IF(Table_PI[[#This Row],[Input 3]]<>\"\",Table_PI[[#This Row],[Input 3]],\"\")","v":""},null,{"$f":"IFERROR(IF(AND(MeasureCalc(Table_PI[[#This Row],[Hide:\nFormula Name]],Table_SummaryPI[[#This Row],[Quantity]],Table_PI[[#This Row],[List 1]],Table_PI[[#This Row],[List 2]],Table_PI[[#This Row],[List 3]],Table_PI[[#This Row],[Size]],Table_PI[[#This Row],[Input 1]],Table_PI[[#This Row],[Input 2]],Table_PI[[#This Row],[Input 3]],Table_PI[[#This Row],[Input 4]],'Customer Information'!$AR$12,103,ROW())<>0,MeasureCalc(Table_PI[[#This Row],[Hide:\nFormula Name]],Table_SummaryPI[[#This Row],[Quantity]],Table_PI[[#This Row],[List 1]],Table_PI[[#This Row],[List 2]],Table_PI[[#This Row],[List 3]],Table_PI[[#This Row],[Size]],Table_PI[[#This Row],[Input 1]],Table_PI[[#This Row],[Input 2]],Table_PI[[#This Row],[Input 3]],Table_PI[[#This Row],[Input 4]],'Customer Information'!$AR$12,103,ROW())<>\"No Rebate\"),MeasureCalc(Table_PI[[#This Row],[Hide:\nFormula Name]],Table_SummaryPI[[#This Row],[Quantity]],Table_PI[[#This Row],[List 1]],Table_PI[[#This Row],[List 2]],Table_PI[[#This Row],[List 3]],Table_PI[[#This Row],[Size]],Table_PI[[#This Row],[Input 1]],Table_PI[[#This Row],[Input 2]],Table_PI[[#This Row],[Input 3]],Table_PI[[#This Row],[Input 4]],'Customer Information'!$AR$12,103,ROW()),\"\"),\"\")","v":""},{"$f":"IF(Table_PI[[#This Row],[Input 4]]<>\"\",Table_PI[[#This Row],[Input 4]],\"\")","v":""},{"$f":"IF(Table_PI[[#This Row],[Quantity]]=\"\",\"\",Table_PI[[#This Row],[Quantity]])","v":""},{"$f":"IF(Table_PI[[#This Row],[Notes]]=\"\",\"\",Table_PI[[#This Row],[Notes]])","v":""},{"$f":"IF(OR(Table_PI[[#This Row],[Hide:\nBaseline kWh]]=\"\",Table_PI[[#This Row],[Hide:\nBaseline kWh]]=0),\"\",Table_PI[[#This Row],[Hide:\nBaseline kWh]])","v":""},{"$f":"IF(OR(Table_PI[[#This Row],[Hide:\nBaseline kW]]=\"\",Table_PI[[#This Row],[Hide:\nBaseline kW]]=0),\"\",Table_PI[[#This Row],[Hide:\nBaseline kW]])","v":""},{"$f":"IF(OR(Table_PI[[#This Row],[Hide:\nProposed kWh]]=\"\",Table_PI[[#This Row],[Hide:\nProposed kWh]]=0),\"\",Table_PI[[#This Row],[Hide:\nProposed kWh]])","v":""},{"$f":"IF(OR(Table_PI[[#This Row],[Hide:\nProposed kW]]=\"\",Table_PI[[#This Row],[Hide:\nProposed kW]]=0),\"\",Table_PI[[#This Row],[Hide:\nProposed kW]])","v":""},{"$f":"IF(OR(Table_PI[[#This Row],[Rebate]]=\"\",Table_PI[[#This Row],[Rebate]]=0),\"\",Table_PI[[#This Row],[Rebate]])","v":""},{"$f":"IF(OR(Table_PI[[#This Row],[Hide:\nIncremental Cost]]=\"\",Table_PI[[#This Row],[Hide:\nIncremental Cost]]=0),\"\",Table_PI[[#This Row],[Hide:\nIncremental Cost]])","v":""},{"$f":"IFERROR(IF(Table_SummaryPI[[#This Row],[kWhSavings]]=\"\",\"\",ROUND(Table_SummaryPI[[#This Row],[kWhSavings]]/$AG$401*'Customer Information'!$BC$17,2)),0)","v":""},{"$f":"IF(OR(Table_PI[[#This Row],[Annual kWh]]=\"\",Table_PI[[#This Row],[Annual kWh]]=0),\"\",Table_PI[[#This Row],[Annual kWh]])","v":""},{"$f":"IF(OR(Table_PI[[#This Row],[Peak kW]]=\"\",Table_PI[[#This Row],[Peak kW]]=0),\"\",Table_PI[[#This Row],[Peak kW]])","v":""},{"$f":"IFERROR(IF(Table_SummaryPI[[#This Row],[kWhSavings]]=\"\",\"\",$AU$9*Table_SummaryPI[[#This Row],[kWhSavings]]),0)","v":""},{"$f":"IFERROR(IF(Table_SummaryPI[[#This Row],[kWhSavings]]=\"\",\"\",$AU$14*Table_SummaryPI[[#This Row],[kWhSavings]]),0)","v":""},{"$f":"IFERROR(IF(Table_SummaryPI[[#This Row],[kWhSavings]]=\"\",\"\",$AU$18*Table_SummaryPI[[#This Row],[kWhSavings]]),0)","v":""},{"$f":"IFERROR(IF(Table_SummaryPI[[#This Row],[kWhSavings]]=\"\",\"\",$AU$22*Table_SummaryPI[[#This Row],[kWhSavings]]),0)","v":""},{"$f":"IFERROR(IF(MeasureCalc(Table_PI[[#This Row],[Hide:\nFormula Name]],Table_SummaryPI[[#This Row],[Quantity]],Table_PI[[#This Row],[List 1]],Table_PI[[#This Row],[List 2]],Table_PI[[#This Row],[List 3]],Table_PI[[#This Row],[Size]],Table_PI[[#This Row],[Input 1]],Table_PI[[#This Row],[Input 2]],Table_PI[[#This Row],[Input 3]],Table_PI[[#This Row],[Input 4]],'Customer Information'!$AR$12,200,ROW())<>\"No Rebate\",MeasureCalc(Table_PI[[#This Row],[Hide:\nFormula Name]],Table_SummaryPI[[#This Row],[Quantity]],Table_PI[[#This Row],[List 1]],Table_PI[[#This Row],[List 2]],Table_PI[[#This Row],[List 3]],Table_PI[[#This Row],[Size]],Table_PI[[#This Row],[Input 1]],Table_PI[[#This Row],[Input 2]],Table_PI[[#This Row],[Input 3]],Table_PI[[#This Row],[Input 4]],'Customer Information'!$AR$12,200,ROW()),\"\"),\"\")","v":""},{"$f":"IFERROR(IF(MeasureCalc(Table_PI[[#This Row],[Hide:\nFormula Name]],Table_SummaryPI[[#This Row],[Quantity]],Table_PI[[#This Row],[List 1]],Table_PI[[#This Row],[List 2]],Table_PI[[#This Row],[List 3]],Table_PI[[#This Row],[Size]],Table_PI[[#This Row],[Input 1]],Table_PI[[#This Row],[Input 2]],Table_PI[[#This Row],[Input 3]],Table_PI[[#This Row],[Input 4]],'Customer Information'!$AR$12,201,ROW())<>\"No Rebate\",MeasureCalc(Table_PI[[#This Row],[Hide:\nFormula Name]],Table_SummaryPI[[#This Row],[Quantity]],Table_PI[[#This Row],[List 1]],Table_PI[[#This Row],[List 2]],Table_PI[[#This Row],[List 3]],Table_PI[[#This Row],[Size]],Table_PI[[#This Row],[Input 1]],Table_PI[[#This Row],[Input 2]],Table_PI[[#This Row],[Input 3]],Table_PI[[#This Row],[Input 4]],'Customer Information'!$AR$12,201,ROW()),\"\"),\"\")","v":""}]
[{"$f":"Table_PI[[#This Row],[Line No.]]","v":""},{"$f":"IF(Table_SummaryPI[[#This Row],[MeassureCategory]]<>\"\",CONCATENATE(Table_SummaryPI[[#This Row],[MeassureCategory]],  \" - \", Table_SummaryPI[[#This Row],[ProposedMeasureCategory]],  \" - \", TEXT(Table_SummaryPI[[#This Row],[Size]],\"#,##0.00\"),\" \",Table_SummaryPI[[#This Row],[SizeUnit]]),\"\")","v":""},{"$f":"SUBSTITUTE(Table_PI[[#This Row],[Measure]],\"     \",\"\",1)","v":""},{"$f":"IF(Table_PI[[#This Row],[List 1]]<>\"\",Table_PI[[#This Row],[List 1]],\"\")","v":""},{"$f":"IF(Table_PI[[#This Row],[List 2]]<>\"\",Table_PI[[#This Row],[List 2]],\"\")","v":""},{"$f":"IF(Table_PI[[#This Row],[List 3]]<>\"\",Table_PI[[#This Row],[List 3]],\"\")","v":""},{"$f":"IF(Table_PI[[#This Row],[Manufacturer]]=\"\",\"\",Table_PI[[#This Row],[Manufacturer]])","v":""},{"$f":"IF(Table_PI[[#This Row],[Model Number]]=\"\",\"\",Table_PI[[#This Row],[Model Number]])","v":""},{"$f":"IF(Table_PI[[#This Row],[Serial Number(s)]]=\"\",\"\",Table_PI[[#This Row],[Serial Number(s)]])","v":""},null,{"$f":"IF(Table_PI[[#This Row],[Size]]=\"\",\"\",Table_PI[[#This Row],[Size]])","v":""},null,{"$f":"IFERROR(IF(AND(MeasureCalc(Table_PI[[#This Row],[Hide:\nFormula Name]],Table_SummaryPI[[#This Row],[Quantity]],Table_PI[[#This Row],[List 1]],Table_PI[[#This Row],[List 2]],Table_PI[[#This Row],[List 3]],Table_PI[[#This Row],[Size]],Table_PI[[#This Row],[Input 1]],Table_PI[[#This Row],[Input 2]],Table_PI[[#This Row],[Input 3]],Table_PI[[#This Row],[Input 4]],'Customer Information'!$AR$12,100,ROW())<>0,MeasureCalc(Table_PI[[#This Row],[Hide:\nFormula Name]],Table_SummaryPI[[#This Row],[Quantity]],Table_PI[[#This Row],[List 1]],Table_PI[[#This Row],[List 2]],Table_PI[[#This Row],[List 3]],Table_PI[[#This Row],[Size]],Table_PI[[#This Row],[Input 1]],Table_PI[[#This Row],[Input 2]],Table_PI[[#This Row],[Input 3]],Table_PI[[#This Row],[Input 4]],'Customer Information'!$AR$12,100,ROW())<>\"No Rebate\"),MeasureCalc(Table_PI[[#This Row],[Hide:\nFormula Name]],Table_SummaryPI[[#This Row],[Quantity]],Table_PI[[#This Row],[List 1]],Table_PI[[#This Row],[List 2]],Table_PI[[#This Row],[List 3]],Table_PI[[#This Row],[Size]],Table_PI[[#This Row],[Input 1]],Table_PI[[#This Row],[Input 2]],Table_PI[[#This Row],[Input 3]],Table_PI[[#This Row],[Input 4]],'Customer Information'!$AR$12,100,ROW()),\"\"),\"\")","v":""},{"$f":"IF(Table_PI[[#This Row],[Input 1]]<>\"\",Table_PI[[#This Row],[Input 1]],\"\")","v":""},null,{"$f":"IFERROR(IF(AND(MeasureCalc(Table_PI[[#This Row],[Hide:\nFormula Name]],Table_SummaryPI[[#This Row],[Quantity]],Table_PI[[#This Row],[List 1]],Table_PI[[#This Row],[List 2]],Table_PI[[#This Row],[List 3]],Table_PI[[#This Row],[Size]],Table_PI[[#This Row],[Input 1]],Table_PI[[#This Row],[Input 2]],Table_PI[[#This Row],[Input 3]],Table_PI[[#This Row],[Input 4]],'Customer Information'!$AR$12,101,ROW())<>0,MeasureCalc(Table_PI[[#This Row],[Hide:\nFormula Name]],Table_SummaryPI[[#This Row],[Quantity]],Table_PI[[#This Row],[List 1]],Table_PI[[#This Row],[List 2]],Table_PI[[#This Row],[List 3]],Table_PI[[#This Row],[Size]],Table_PI[[#This Row],[Input 1]],Table_PI[[#This Row],[Input 2]],Table_PI[[#This Row],[Input 3]],Table_PI[[#This Row],[Input 4]],'Customer Information'!$AR$12,101,ROW())<>\"No Rebate\"),MeasureCalc(Table_PI[[#This Row],[Hide:\nFormula Name]],Table_SummaryPI[[#This Row],[Quantity]],Table_PI[[#This Row],[List 1]],Table_PI[[#This Row],[List 2]],Table_PI[[#This Row],[List 3]],Table_PI[[#This Row],[Size]],Table_PI[[#This Row],[Input 1]],Table_PI[[#This Row],[Input 2]],Table_PI[[#This Row],[Input 3]],Table_PI[[#This Row],[Input 4]],'Customer Information'!$AR$12,101,ROW()),\"\"),\"\")","v":""},{"$f":"IF(Table_PI[[#This Row],[Input 2]]<>\"\",Table_PI[[#This Row],[Input 2]],\"\")","v":""},null,{"$f":"IFERROR(IF(AND(MeasureCalc(Table_PI[[#This Row],[Hide:\nFormula Name]],Table_SummaryPI[[#This Row],[Quantity]],Table_PI[[#This Row],[List 1]],Table_PI[[#This Row],[List 2]],Table_PI[[#This Row],[List 3]],Table_PI[[#This Row],[Size]],Table_PI[[#This Row],[Input 1]],Table_PI[[#This Row],[Input 2]],Table_PI[[#This Row],[Input 3]],Table_PI[[#This Row],[Input 4]],'Customer Information'!$AR$12,102,ROW())<>0,MeasureCalc(Table_PI[[#This Row],[Hide:\nFormula Name]],Table_SummaryPI[[#This Row],[Quantity]],Table_PI[[#This Row],[List 1]],Table_PI[[#This Row],[List 2]],Table_PI[[#This Row],[List 3]],Table_PI[[#This Row],[Size]],Table_PI[[#This Row],[Input 1]],Table_PI[[#This Row],[Input 2]],Table_PI[[#This Row],[Input 3]],Table_PI[[#This Row],[Input 4]],'Customer Information'!$AR$12,102,ROW())<>\"No Rebate\"),MeasureCalc(Table_PI[[#This Row],[Hide:\nFormula Name]],Table_SummaryPI[[#This Row],[Quantity]],Table_PI[[#This Row],[List 1]],Table_PI[[#This Row],[List 2]],Table_PI[[#This Row],[List 3]],Table_PI[[#This Row],[Size]],Table_PI[[#This Row],[Input 1]],Table_PI[[#This Row],[Input 2]],Table_PI[[#This Row],[Input 3]],Table_PI[[#This Row],[Input 4]],'Customer Information'!$AR$12,102,ROW()),\"\"),\"\")","v":""},{"$f":"IF(Table_PI[[#This Row],[Input 3]]<>\"\",Table_PI[[#This Row],[Input 3]],\"\")","v":""},null,{"$f":"IFERROR(IF(AND(MeasureCalc(Table_PI[[#This Row],[Hide:\nFormula Name]],Table_SummaryPI[[#This Row],[Quantity]],Table_PI[[#This Row],[List 1]],Table_PI[[#This Row],[List 2]],Table_PI[[#This Row],[List 3]],Table_PI[[#This Row],[Size]],Table_PI[[#This Row],[Input 1]],Table_PI[[#This Row],[Input 2]],Table_PI[[#This Row],[Input 3]],Table_PI[[#This Row],[Input 4]],'Customer Information'!$AR$12,103,ROW())<>0,MeasureCalc(Table_PI[[#This Row],[Hide:\nFormula Name]],Table_SummaryPI[[#This Row],[Quantity]],Table_PI[[#This Row],[List 1]],Table_PI[[#This Row],[List 2]],Table_PI[[#This Row],[List 3]],Table_PI[[#This Row],[Size]],Table_PI[[#This Row],[Input 1]],Table_PI[[#This Row],[Input 2]],Table_PI[[#This Row],[Input 3]],Table_PI[[#This Row],[Input 4]],'Customer Information'!$AR$12,103,ROW())<>\"No Rebate\"),MeasureCalc(Table_PI[[#This Row],[Hide:\nFormula Name]],Table_SummaryPI[[#This Row],[Quantity]],Table_PI[[#This Row],[List 1]],Table_PI[[#This Row],[List 2]],Table_PI[[#This Row],[List 3]],Table_PI[[#This Row],[Size]],Table_PI[[#This Row],[Input 1]],Table_PI[[#This Row],[Input 2]],Table_PI[[#This Row],[Input 3]],Table_PI[[#This Row],[Input 4]],'Customer Information'!$AR$12,103,ROW()),\"\"),\"\")","v":""},{"$f":"IF(Table_PI[[#This Row],[Input 4]]<>\"\",Table_PI[[#This Row],[Input 4]],\"\")","v":""},{"$f":"IF(Table_PI[[#This Row],[Quantity]]=\"\",\"\",Table_PI[[#This Row],[Quantity]])","v":""},{"$f":"IF(Table_PI[[#This Row],[Notes]]=\"\",\"\",Table_PI[[#This Row],[Notes]])","v":""},{"$f":"IF(OR(Table_PI[[#This Row],[Hide:\nBaseline kWh]]=\"\",Table_PI[[#This Row],[Hide:\nBaseline kWh]]=0),\"\",Table_PI[[#This Row],[Hide:\nBaseline kWh]])","v":""},{"$f":"IF(OR(Table_PI[[#This Row],[Hide:\nBaseline kW]]=\"\",Table_PI[[#This Row],[Hide:\nBaseline kW]]=0),\"\",Table_PI[[#This Row],[Hide:\nBaseline kW]])","v":""},{"$f":"IF(OR(Table_PI[[#This Row],[Hide:\nProposed kWh]]=\"\",Table_PI[[#This Row],[Hide:\nProposed kWh]]=0),\"\",Table_PI[[#This Row],[Hide:\nProposed kWh]])","v":""},{"$f":"IF(OR(Table_PI[[#This Row],[Hide:\nProposed kW]]=\"\",Table_PI[[#This Row],[Hide:\nProposed kW]]=0),\"\",Table_PI[[#This Row],[Hide:\nProposed kW]])","v":""},{"$f":"IF(OR(Table_PI[[#This Row],[Rebate]]=\"\",Table_PI[[#This Row],[Rebate]]=0),\"\",Table_PI[[#This Row],[Rebate]])","v":""},{"$f":"IF(OR(Table_PI[[#This Row],[Hide:\nIncremental Cost]]=\"\",Table_PI[[#This Row],[Hide:\nIncremental Cost]]=0),\"\",Table_PI[[#This Row],[Hide:\nIncremental Cost]])","v":""},{"$f":"IFERROR(IF(Table_SummaryPI[[#This Row],[kWhSavings]]=\"\",\"\",ROUND(Table_SummaryPI[[#This Row],[kWhSavings]]/$AG$401*'Customer Information'!$BC$17,2)),0)","v":""},{"$f":"IF(OR(Table_PI[[#This Row],[Annual kWh]]=\"\",Table_PI[[#This Row],[Annual kWh]]=0),\"\",Table_PI[[#This Row],[Annual kWh]])","v":""},{"$f":"IF(OR(Table_PI[[#This Row],[Peak kW]]=\"\",Table_PI[[#This Row],[Peak kW]]=0),\"\",Table_PI[[#This Row],[Peak kW]])","v":""},{"$f":"IFERROR(IF(Table_SummaryPI[[#This Row],[kWhSavings]]=\"\",\"\",$AU$9*Table_SummaryPI[[#This Row],[kWhSavings]]),0)","v":""},{"$f":"IFERROR(IF(Table_SummaryPI[[#This Row],[kWhSavings]]=\"\",\"\",$AU$14*Table_SummaryPI[[#This Row],[kWhSavings]]),0)","v":""},{"$f":"IFERROR(IF(Table_SummaryPI[[#This Row],[kWhSavings]]=\"\",\"\",$AU$18*Table_SummaryPI[[#This Row],[kWhSavings]]),0)","v":""},{"$f":"IFERROR(IF(Table_SummaryPI[[#This Row],[kWhSavings]]=\"\",\"\",$AU$22*Table_SummaryPI[[#This Row],[kWhSavings]]),0)","v":""},{"$f":"IFERROR(IF(MeasureCalc(Table_PI[[#This Row],[Hide:\nFormula Name]],Table_SummaryPI[[#This Row],[Quantity]],Table_PI[[#This Row],[List 1]],Table_PI[[#This Row],[List 2]],Table_PI[[#This Row],[List 3]],Table_PI[[#This Row],[Size]],Table_PI[[#This Row],[Input 1]],Table_PI[[#This Row],[Input 2]],Table_PI[[#This Row],[Input 3]],Table_PI[[#This Row],[Input 4]],'Customer Information'!$AR$12,200,ROW())<>\"No Rebate\",MeasureCalc(Table_PI[[#This Row],[Hide:\nFormula Name]],Table_SummaryPI[[#This Row],[Quantity]],Table_PI[[#This Row],[List 1]],Table_PI[[#This Row],[List 2]],Table_PI[[#This Row],[List 3]],Table_PI[[#This Row],[Size]],Table_PI[[#This Row],[Input 1]],Table_PI[[#This Row],[Input 2]],Table_PI[[#This Row],[Input 3]],Table_PI[[#This Row],[Input 4]],'Customer Information'!$AR$12,200,ROW()),\"\"),\"\")","v":""},{"$f":"IFERROR(IF(MeasureCalc(Table_PI[[#This Row],[Hide:\nFormula Name]],Table_SummaryPI[[#This Row],[Quantity]],Table_PI[[#This Row],[List 1]],Table_PI[[#This Row],[List 2]],Table_PI[[#This Row],[List 3]],Table_PI[[#This Row],[Size]],Table_PI[[#This Row],[Input 1]],Table_PI[[#This Row],[Input 2]],Table_PI[[#This Row],[Input 3]],Table_PI[[#This Row],[Input 4]],'Customer Information'!$AR$12,201,ROW())<>\"No Rebate\",MeasureCalc(Table_PI[[#This Row],[Hide:\nFormula Name]],Table_SummaryPI[[#This Row],[Quantity]],Table_PI[[#This Row],[List 1]],Table_PI[[#This Row],[List 2]],Table_PI[[#This Row],[List 3]],Table_PI[[#This Row],[Size]],Table_PI[[#This Row],[Input 1]],Table_PI[[#This Row],[Input 2]],Table_PI[[#This Row],[Input 3]],Table_PI[[#This Row],[Input 4]],'Customer Information'!$AR$12,201,ROW()),\"\"),\"\")","v":""}]
[{"$f":"Table_PI[[#This Row],[Line No.]]","v":""},{"$f":"IF(Table_SummaryPI[[#This Row],[MeassureCategory]]<>\"\",CONCATENATE(Table_SummaryPI[[#This Row],[MeassureCategory]],  \" - \", Table_SummaryPI[[#This Row],[ProposedMeasureCategory]],  \" - \", TEXT(Table_SummaryPI[[#This Row],[Size]],\"#,##0.00\"),\" \",Table_SummaryPI[[#This Row],[SizeUnit]]),\"\")","v":""},{"$f":"SUBSTITUTE(Table_PI[[#This Row],[Measure]],\"     \",\"\",1)","v":""},{"$f":"IF(Table_PI[[#This Row],[List 1]]<>\"\",Table_PI[[#This Row],[List 1]],\"\")","v":""},{"$f":"IF(Table_PI[[#This Row],[List 2]]<>\"\",Table_PI[[#This Row],[List 2]],\"\")","v":""},{"$f":"IF(Table_PI[[#This Row],[List 3]]<>\"\",Table_PI[[#This Row],[List 3]],\"\")","v":""},{"$f":"IF(Table_PI[[#This Row],[Manufacturer]]=\"\",\"\",Table_PI[[#This Row],[Manufacturer]])","v":""},{"$f":"IF(Table_PI[[#This Row],[Model Number]]=\"\",\"\",Table_PI[[#This Row],[Model Number]])","v":""},{"$f":"IF(Table_PI[[#This Row],[Serial Number(s)]]=\"\",\"\",Table_PI[[#This Row],[Serial Number(s)]])","v":""},null,{"$f":"IF(Table_PI[[#This Row],[Size]]=\"\",\"\",Table_PI[[#This Row],[Size]])","v":""},null,{"$f":"IFERROR(IF(AND(MeasureCalc(Table_PI[[#This Row],[Hide:\nFormula Name]],Table_SummaryPI[[#This Row],[Quantity]],Table_PI[[#This Row],[List 1]],Table_PI[[#This Row],[List 2]],Table_PI[[#This Row],[List 3]],Table_PI[[#This Row],[Size]],Table_PI[[#This Row],[Input 1]],Table_PI[[#This Row],[Input 2]],Table_PI[[#This Row],[Input 3]],Table_PI[[#This Row],[Input 4]],'Customer Information'!$AR$12,100,ROW())<>0,MeasureCalc(Table_PI[[#This Row],[Hide:\nFormula Name]],Table_SummaryPI[[#This Row],[Quantity]],Table_PI[[#This Row],[List 1]],Table_PI[[#This Row],[List 2]],Table_PI[[#This Row],[List 3]],Table_PI[[#This Row],[Size]],Table_PI[[#This Row],[Input 1]],Table_PI[[#This Row],[Input 2]],Table_PI[[#This Row],[Input 3]],Table_PI[[#This Row],[Input 4]],'Customer Information'!$AR$12,100,ROW())<>\"No Rebate\"),MeasureCalc(Table_PI[[#This Row],[Hide:\nFormula Name]],Table_SummaryPI[[#This Row],[Quantity]],Table_PI[[#This Row],[List 1]],Table_PI[[#This Row],[List 2]],Table_PI[[#This Row],[List 3]],Table_PI[[#This Row],[Size]],Table_PI[[#This Row],[Input 1]],Table_PI[[#This Row],[Input 2]],Table_PI[[#This Row],[Input 3]],Table_PI[[#This Row],[Input 4]],'Customer Information'!$AR$12,100,ROW()),\"\"),\"\")","v":""},{"$f":"IF(Table_PI[[#This Row],[Input 1]]<>\"\",Table_PI[[#This Row],[Input 1]],\"\")","v":""},null,{"$f":"IFERROR(IF(AND(MeasureCalc(Table_PI[[#This Row],[Hide:\nFormula Name]],Table_SummaryPI[[#This Row],[Quantity]],Table_PI[[#This Row],[List 1]],Table_PI[[#This Row],[List 2]],Table_PI[[#This Row],[List 3]],Table_PI[[#This Row],[Size]],Table_PI[[#This Row],[Input 1]],Table_PI[[#This Row],[Input 2]],Table_PI[[#This Row],[Input 3]],Table_PI[[#This Row],[Input 4]],'Customer Information'!$AR$12,101,ROW())<>0,MeasureCalc(Table_PI[[#This Row],[Hide:\nFormula Name]],Table_SummaryPI[[#This Row],[Quantity]],Table_PI[[#This Row],[List 1]],Table_PI[[#This Row],[List 2]],Table_PI[[#This Row],[List 3]],Table_PI[[#This Row],[Size]],Table_PI[[#This Row],[Input 1]],Table_PI[[#This Row],[Input 2]],Table_PI[[#This Row],[Input 3]],Table_PI[[#This Row],[Input 4]],'Customer Information'!$AR$12,101,ROW())<>\"No Rebate\"),MeasureCalc(Table_PI[[#This Row],[Hide:\nFormula Name]],Table_SummaryPI[[#This Row],[Quantity]],Table_PI[[#This Row],[List 1]],Table_PI[[#This Row],[List 2]],Table_PI[[#This Row],[List 3]],Table_PI[[#This Row],[Size]],Table_PI[[#This Row],[Input 1]],Table_PI[[#This Row],[Input 2]],Table_PI[[#This Row],[Input 3]],Table_PI[[#This Row],[Input 4]],'Customer Information'!$AR$12,101,ROW()),\"\"),\"\")","v":""},{"$f":"IF(Table_PI[[#This Row],[Input 2]]<>\"\",Table_PI[[#This Row],[Input 2]],\"\")","v":""},null,{"$f":"IFERROR(IF(AND(MeasureCalc(Table_PI[[#This Row],[Hide:\nFormula Name]],Table_SummaryPI[[#This Row],[Quantity]],Table_PI[[#This Row],[List 1]],Table_PI[[#This Row],[List 2]],Table_PI[[#This Row],[List 3]],Table_PI[[#This Row],[Size]],Table_PI[[#This Row],[Input 1]],Table_PI[[#This Row],[Input 2]],Table_PI[[#This Row],[Input 3]],Table_PI[[#This Row],[Input 4]],'Customer Information'!$AR$12,102,ROW())<>0,MeasureCalc(Table_PI[[#This Row],[Hide:\nFormula Name]],Table_SummaryPI[[#This Row],[Quantity]],Table_PI[[#This Row],[List 1]],Table_PI[[#This Row],[List 2]],Table_PI[[#This Row],[List 3]],Table_PI[[#This Row],[Size]],Table_PI[[#This Row],[Input 1]],Table_PI[[#This Row],[Input 2]],Table_PI[[#This Row],[Input 3]],Table_PI[[#This Row],[Input 4]],'Customer Information'!$AR$12,102,ROW())<>\"No Rebate\"),MeasureCalc(Table_PI[[#This Row],[Hide:\nFormula Name]],Table_SummaryPI[[#This Row],[Quantity]],Table_PI[[#This Row],[List 1]],Table_PI[[#This Row],[List 2]],Table_PI[[#This Row],[List 3]],Table_PI[[#This Row],[Size]],Table_PI[[#This Row],[Input 1]],Table_PI[[#This Row],[Input 2]],Table_PI[[#This Row],[Input 3]],Table_PI[[#This Row],[Input 4]],'Customer Information'!$AR$12,102,ROW()),\"\"),\"\")","v":""},{"$f":"IF(Table_PI[[#This Row],[Input 3]]<>\"\",Table_PI[[#This Row],[Input 3]],\"\")","v":""},null,{"$f":"IFERROR(IF(AND(MeasureCalc(Table_PI[[#This Row],[Hide:\nFormula Name]],Table_SummaryPI[[#This Row],[Quantity]],Table_PI[[#This Row],[List 1]],Table_PI[[#This Row],[List 2]],Table_PI[[#This Row],[List 3]],Table_PI[[#This Row],[Size]],Table_PI[[#This Row],[Input 1]],Table_PI[[#This Row],[Input 2]],Table_PI[[#This Row],[Input 3]],Table_PI[[#This Row],[Input 4]],'Customer Information'!$AR$12,103,ROW())<>0,MeasureCalc(Table_PI[[#This Row],[Hide:\nFormula Name]],Table_SummaryPI[[#This Row],[Quantity]],Table_PI[[#This Row],[List 1]],Table_PI[[#This Row],[List 2]],Table_PI[[#This Row],[List 3]],Table_PI[[#This Row],[Size]],Table_PI[[#This Row],[Input 1]],Table_PI[[#This Row],[Input 2]],Table_PI[[#This Row],[Input 3]],Table_PI[[#This Row],[Input 4]],'Customer Information'!$AR$12,103,ROW())<>\"No Rebate\"),MeasureCalc(Table_PI[[#This Row],[Hide:\nFormula Name]],Table_SummaryPI[[#This Row],[Quantity]],Table_PI[[#This Row],[List 1]],Table_PI[[#This Row],[List 2]],Table_PI[[#This Row],[List 3]],Table_PI[[#This Row],[Size]],Table_PI[[#This Row],[Input 1]],Table_PI[[#This Row],[Input 2]],Table_PI[[#This Row],[Input 3]],Table_PI[[#This Row],[Input 4]],'Customer Information'!$AR$12,103,ROW()),\"\"),\"\")","v":""},{"$f":"IF(Table_PI[[#This Row],[Input 4]]<>\"\",Table_PI[[#This Row],[Input 4]],\"\")","v":""},{"$f":"IF(Table_PI[[#This Row],[Quantity]]=\"\",\"\",Table_PI[[#This Row],[Quantity]])","v":""},{"$f":"IF(Table_PI[[#This Row],[Notes]]=\"\",\"\",Table_PI[[#This Row],[Notes]])","v":""},{"$f":"IF(OR(Table_PI[[#This Row],[Hide:\nBaseline kWh]]=\"\",Table_PI[[#This Row],[Hide:\nBaseline kWh]]=0),\"\",Table_PI[[#This Row],[Hide:\nBaseline kWh]])","v":""},{"$f":"IF(OR(Table_PI[[#This Row],[Hide:\nBaseline kW]]=\"\",Table_PI[[#This Row],[Hide:\nBaseline kW]]=0),\"\",Table_PI[[#This Row],[Hide:\nBaseline kW]])","v":""},{"$f":"IF(OR(Table_PI[[#This Row],[Hide:\nProposed kWh]]=\"\",Table_PI[[#This Row],[Hide:\nProposed kWh]]=0),\"\",Table_PI[[#This Row],[Hide:\nProposed kWh]])","v":""},{"$f":"IF(OR(Table_PI[[#This Row],[Hide:\nProposed kW]]=\"\",Table_PI[[#This Row],[Hide:\nProposed kW]]=0),\"\",Table_PI[[#This Row],[Hide:\nProposed kW]])","v":""},{"$f":"IF(OR(Table_PI[[#This Row],[Rebate]]=\"\",Table_PI[[#This Row],[Rebate]]=0),\"\",Table_PI[[#This Row],[Rebate]])","v":""},{"$f":"IF(OR(Table_PI[[#This Row],[Hide:\nIncremental Cost]]=\"\",Table_PI[[#This Row],[Hide:\nIncremental Cost]]=0),\"\",Table_PI[[#This Row],[Hide:\nIncremental Cost]])","v":""},{"$f":"IFERROR(IF(Table_SummaryPI[[#This Row],[kWhSavings]]=\"\",\"\",ROUND(Table_SummaryPI[[#This Row],[kWhSavings]]/$AG$401*'Customer Information'!$BC$17,2)),0)","v":""},{"$f":"IF(OR(Table_PI[[#This Row],[Annual kWh]]=\"\",Table_PI[[#This Row],[Annual kWh]]=0),\"\",Table_PI[[#This Row],[Annual kWh]])","v":""},{"$f":"IF(OR(Table_PI[[#This Row],[Peak kW]]=\"\",Table_PI[[#This Row],[Peak kW]]=0),\"\",Table_PI[[#This Row],[Peak kW]])","v":""},{"$f":"IFERROR(IF(Table_SummaryPI[[#This Row],[kWhSavings]]=\"\",\"\",$AU$9*Table_SummaryPI[[#This Row],[kWhSavings]]),0)","v":""},{"$f":"IFERROR(IF(Table_SummaryPI[[#This Row],[kWhSavings]]=\"\",\"\",$AU$14*Table_SummaryPI[[#This Row],[kWhSavings]]),0)","v":""},{"$f":"IFERROR(IF(Table_SummaryPI[[#This Row],[kWhSavings]]=\"\",\"\",$AU$18*Table_SummaryPI[[#This Row],[kWhSavings]]),0)","v":""},{"$f":"IFERROR(IF(Table_SummaryPI[[#This Row],[kWhSavings]]=\"\",\"\",$AU$22*Table_SummaryPI[[#This Row],[kWhSavings]]),0)","v":""},{"$f":"IFERROR(IF(MeasureCalc(Table_PI[[#This Row],[Hide:\nFormula Name]],Table_SummaryPI[[#This Row],[Quantity]],Table_PI[[#This Row],[List 1]],Table_PI[[#This Row],[List 2]],Table_PI[[#This Row],[List 3]],Table_PI[[#This Row],[Size]],Table_PI[[#This Row],[Input 1]],Table_PI[[#This Row],[Input 2]],Table_PI[[#This Row],[Input 3]],Table_PI[[#This Row],[Input 4]],'Customer Information'!$AR$12,200,ROW())<>\"No Rebate\",MeasureCalc(Table_PI[[#This Row],[Hide:\nFormula Name]],Table_SummaryPI[[#This Row],[Quantity]],Table_PI[[#This Row],[List 1]],Table_PI[[#This Row],[List 2]],Table_PI[[#This Row],[List 3]],Table_PI[[#This Row],[Size]],Table_PI[[#This Row],[Input 1]],Table_PI[[#This Row],[Input 2]],Table_PI[[#This Row],[Input 3]],Table_PI[[#This Row],[Input 4]],'Customer Information'!$AR$12,200,ROW()),\"\"),\"\")","v":""},{"$f":"IFERROR(IF(MeasureCalc(Table_PI[[#This Row],[Hide:\nFormula Name]],Table_SummaryPI[[#This Row],[Quantity]],Table_PI[[#This Row],[List 1]],Table_PI[[#This Row],[List 2]],Table_PI[[#This Row],[List 3]],Table_PI[[#This Row],[Size]],Table_PI[[#This Row],[Input 1]],Table_PI[[#This Row],[Input 2]],Table_PI[[#This Row],[Input 3]],Table_PI[[#This Row],[Input 4]],'Customer Information'!$AR$12,201,ROW())<>\"No Rebate\",MeasureCalc(Table_PI[[#This Row],[Hide:\nFormula Name]],Table_SummaryPI[[#This Row],[Quantity]],Table_PI[[#This Row],[List 1]],Table_PI[[#This Row],[List 2]],Table_PI[[#This Row],[List 3]],Table_PI[[#This Row],[Size]],Table_PI[[#This Row],[Input 1]],Table_PI[[#This Row],[Input 2]],Table_PI[[#This Row],[Input 3]],Table_PI[[#This Row],[Input 4]],'Customer Information'!$AR$12,201,ROW()),\"\"),\"\")","v":""}]
[{"$f":"Table_PI[[#This Row],[Line No.]]","v":""},{"$f":"IF(Table_SummaryPI[[#This Row],[MeassureCategory]]<>\"\",CONCATENATE(Table_SummaryPI[[#This Row],[MeassureCategory]],  \" - \", Table_SummaryPI[[#This Row],[ProposedMeasureCategory]],  \" - \", TEXT(Table_SummaryPI[[#This Row],[Size]],\"#,##0.00\"),\" \",Table_SummaryPI[[#This Row],[SizeUnit]]),\"\")","v":""},{"$f":"SUBSTITUTE(Table_PI[[#This Row],[Measure]],\"     \",\"\",1)","v":""},{"$f":"IF(Table_PI[[#This Row],[List 1]]<>\"\",Table_PI[[#This Row],[List 1]],\"\")","v":""},{"$f":"IF(Table_PI[[#This Row],[List 2]]<>\"\",Table_PI[[#This Row],[List 2]],\"\")","v":""},{"$f":"IF(Table_PI[[#This Row],[List 3]]<>\"\",Table_PI[[#This Row],[List 3]],\"\")","v":""},{"$f":"IF(Table_PI[[#This Row],[Manufacturer]]=\"\",\"\",Table_PI[[#This Row],[Manufacturer]])","v":""},{"$f":"IF(Table_PI[[#This Row],[Model Number]]=\"\",\"\",Table_PI[[#This Row],[Model Number]])","v":""},{"$f":"IF(Table_PI[[#This Row],[Serial Number(s)]]=\"\",\"\",Table_PI[[#This Row],[Serial Number(s)]])","v":""},null,{"$f":"IF(Table_PI[[#This Row],[Size]]=\"\",\"\",Table_PI[[#This Row],[Size]])","v":""},null,{"$f":"IFERROR(IF(AND(MeasureCalc(Table_PI[[#This Row],[Hide:\nFormula Name]],Table_SummaryPI[[#This Row],[Quantity]],Table_PI[[#This Row],[List 1]],Table_PI[[#This Row],[List 2]],Table_PI[[#This Row],[List 3]],Table_PI[[#This Row],[Size]],Table_PI[[#This Row],[Input 1]],Table_PI[[#This Row],[Input 2]],Table_PI[[#This Row],[Input 3]],Table_PI[[#This Row],[Input 4]],'Customer Information'!$AR$12,100,ROW())<>0,MeasureCalc(Table_PI[[#This Row],[Hide:\nFormula Name]],Table_SummaryPI[[#This Row],[Quantity]],Table_PI[[#This Row],[List 1]],Table_PI[[#This Row],[List 2]],Table_PI[[#This Row],[List 3]],Table_PI[[#This Row],[Size]],Table_PI[[#This Row],[Input 1]],Table_PI[[#This Row],[Input 2]],Table_PI[[#This Row],[Input 3]],Table_PI[[#This Row],[Input 4]],'Customer Information'!$AR$12,100,ROW())<>\"No Rebate\"),MeasureCalc(Table_PI[[#This Row],[Hide:\nFormula Name]],Table_SummaryPI[[#This Row],[Quantity]],Table_PI[[#This Row],[List 1]],Table_PI[[#This Row],[List 2]],Table_PI[[#This Row],[List 3]],Table_PI[[#This Row],[Size]],Table_PI[[#This Row],[Input 1]],Table_PI[[#This Row],[Input 2]],Table_PI[[#This Row],[Input 3]],Table_PI[[#This Row],[Input 4]],'Customer Information'!$AR$12,100,ROW()),\"\"),\"\")","v":""},{"$f":"IF(Table_PI[[#This Row],[Input 1]]<>\"\",Table_PI[[#This Row],[Input 1]],\"\")","v":""},null,{"$f":"IFERROR(IF(AND(MeasureCalc(Table_PI[[#This Row],[Hide:\nFormula Name]],Table_SummaryPI[[#This Row],[Quantity]],Table_PI[[#This Row],[List 1]],Table_PI[[#This Row],[List 2]],Table_PI[[#This Row],[List 3]],Table_PI[[#This Row],[Size]],Table_PI[[#This Row],[Input 1]],Table_PI[[#This Row],[Input 2]],Table_PI[[#This Row],[Input 3]],Table_PI[[#This Row],[Input 4]],'Customer Information'!$AR$12,101,ROW())<>0,MeasureCalc(Table_PI[[#This Row],[Hide:\nFormula Name]],Table_SummaryPI[[#This Row],[Quantity]],Table_PI[[#This Row],[List 1]],Table_PI[[#This Row],[List 2]],Table_PI[[#This Row],[List 3]],Table_PI[[#This Row],[Size]],Table_PI[[#This Row],[Input 1]],Table_PI[[#This Row],[Input 2]],Table_PI[[#This Row],[Input 3]],Table_PI[[#This Row],[Input 4]],'Customer Information'!$AR$12,101,ROW())<>\"No Rebate\"),MeasureCalc(Table_PI[[#This Row],[Hide:\nFormula Name]],Table_SummaryPI[[#This Row],[Quantity]],Table_PI[[#This Row],[List 1]],Table_PI[[#This Row],[List 2]],Table_PI[[#This Row],[List 3]],Table_PI[[#This Row],[Size]],Table_PI[[#This Row],[Input 1]],Table_PI[[#This Row],[Input 2]],Table_PI[[#This Row],[Input 3]],Table_PI[[#This Row],[Input 4]],'Customer Information'!$AR$12,101,ROW()),\"\"),\"\")","v":""},{"$f":"IF(Table_PI[[#This Row],[Input 2]]<>\"\",Table_PI[[#This Row],[Input 2]],\"\")","v":""},null,{"$f":"IFERROR(IF(AND(MeasureCalc(Table_PI[[#This Row],[Hide:\nFormula Name]],Table_SummaryPI[[#This Row],[Quantity]],Table_PI[[#This Row],[List 1]],Table_PI[[#This Row],[List 2]],Table_PI[[#This Row],[List 3]],Table_PI[[#This Row],[Size]],Table_PI[[#This Row],[Input 1]],Table_PI[[#This Row],[Input 2]],Table_PI[[#This Row],[Input 3]],Table_PI[[#This Row],[Input 4]],'Customer Information'!$AR$12,102,ROW())<>0,MeasureCalc(Table_PI[[#This Row],[Hide:\nFormula Name]],Table_SummaryPI[[#This Row],[Quantity]],Table_PI[[#This Row],[List 1]],Table_PI[[#This Row],[List 2]],Table_PI[[#This Row],[List 3]],Table_PI[[#This Row],[Size]],Table_PI[[#This Row],[Input 1]],Table_PI[[#This Row],[Input 2]],Table_PI[[#This Row],[Input 3]],Table_PI[[#This Row],[Input 4]],'Customer Information'!$AR$12,102,ROW())<>\"No Rebate\"),MeasureCalc(Table_PI[[#This Row],[Hide:\nFormula Name]],Table_SummaryPI[[#This Row],[Quantity]],Table_PI[[#This Row],[List 1]],Table_PI[[#This Row],[List 2]],Table_PI[[#This Row],[List 3]],Table_PI[[#This Row],[Size]],Table_PI[[#This Row],[Input 1]],Table_PI[[#This Row],[Input 2]],Table_PI[[#This Row],[Input 3]],Table_PI[[#This Row],[Input 4]],'Customer Information'!$AR$12,102,ROW()),\"\"),\"\")","v":""},{"$f":"IF(Table_PI[[#This Row],[Input 3]]<>\"\",Table_PI[[#This Row],[Input 3]],\"\")","v":""},null,{"$f":"IFERROR(IF(AND(MeasureCalc(Table_PI[[#This Row],[Hide:\nFormula Name]],Table_SummaryPI[[#This Row],[Quantity]],Table_PI[[#This Row],[List 1]],Table_PI[[#This Row],[List 2]],Table_PI[[#This Row],[List 3]],Table_PI[[#This Row],[Size]],Table_PI[[#This Row],[Input 1]],Table_PI[[#This Row],[Input 2]],Table_PI[[#This Row],[Input 3]],Table_PI[[#This Row],[Input 4]],'Customer Information'!$AR$12,103,ROW())<>0,MeasureCalc(Table_PI[[#This Row],[Hide:\nFormula Name]],Table_SummaryPI[[#This Row],[Quantity]],Table_PI[[#This Row],[List 1]],Table_PI[[#This Row],[List 2]],Table_PI[[#This Row],[List 3]],Table_PI[[#This Row],[Size]],Table_PI[[#This Row],[Input 1]],Table_PI[[#This Row],[Input 2]],Table_PI[[#This Row],[Input 3]],Table_PI[[#This Row],[Input 4]],'Customer Information'!$AR$12,103,ROW())<>\"No Rebate\"),MeasureCalc(Table_PI[[#This Row],[Hide:\nFormula Name]],Table_SummaryPI[[#This Row],[Quantity]],Table_PI[[#This Row],[List 1]],Table_PI[[#This Row],[List 2]],Table_PI[[#This Row],[List 3]],Table_PI[[#This Row],[Size]],Table_PI[[#This Row],[Input 1]],Table_PI[[#This Row],[Input 2]],Table_PI[[#This Row],[Input 3]],Table_PI[[#This Row],[Input 4]],'Customer Information'!$AR$12,103,ROW()),\"\"),\"\")","v":""},{"$f":"IF(Table_PI[[#This Row],[Input 4]]<>\"\",Table_PI[[#This Row],[Input 4]],\"\")","v":""},{"$f":"IF(Table_PI[[#This Row],[Quantity]]=\"\",\"\",Table_PI[[#This Row],[Quantity]])","v":""},{"$f":"IF(Table_PI[[#This Row],[Notes]]=\"\",\"\",Table_PI[[#This Row],[Notes]])","v":""},{"$f":"IF(OR(Table_PI[[#This Row],[Hide:\nBaseline kWh]]=\"\",Table_PI[[#This Row],[Hide:\nBaseline kWh]]=0),\"\",Table_PI[[#This Row],[Hide:\nBaseline kWh]])","v":""},{"$f":"IF(OR(Table_PI[[#This Row],[Hide:\nBaseline kW]]=\"\",Table_PI[[#This Row],[Hide:\nBaseline kW]]=0),\"\",Table_PI[[#This Row],[Hide:\nBaseline kW]])","v":""},{"$f":"IF(OR(Table_PI[[#This Row],[Hide:\nProposed kWh]]=\"\",Table_PI[[#This Row],[Hide:\nProposed kWh]]=0),\"\",Table_PI[[#This Row],[Hide:\nProposed kWh]])","v":""},{"$f":"IF(OR(Table_PI[[#This Row],[Hide:\nProposed kW]]=\"\",Table_PI[[#This Row],[Hide:\nProposed kW]]=0),\"\",Table_PI[[#This Row],[Hide:\nProposed kW]])","v":""},{"$f":"IF(OR(Table_PI[[#This Row],[Rebate]]=\"\",Table_PI[[#This Row],[Rebate]]=0),\"\",Table_PI[[#This Row],[Rebate]])","v":""},{"$f":"IF(OR(Table_PI[[#This Row],[Hide:\nIncremental Cost]]=\"\",Table_PI[[#This Row],[Hide:\nIncremental Cost]]=0),\"\",Table_PI[[#This Row],[Hide:\nIncremental Cost]])","v":""},{"$f":"IFERROR(IF(Table_SummaryPI[[#This Row],[kWhSavings]]=\"\",\"\",ROUND(Table_SummaryPI[[#This Row],[kWhSavings]]/$AG$401*'Customer Information'!$BC$17,2)),0)","v":""},{"$f":"IF(OR(Table_PI[[#This Row],[Annual kWh]]=\"\",Table_PI[[#This Row],[Annual kWh]]=0),\"\",Table_PI[[#This Row],[Annual kWh]])","v":""},{"$f":"IF(OR(Table_PI[[#This Row],[Peak kW]]=\"\",Table_PI[[#This Row],[Peak kW]]=0),\"\",Table_PI[[#This Row],[Peak kW]])","v":""},{"$f":"IFERROR(IF(Table_SummaryPI[[#This Row],[kWhSavings]]=\"\",\"\",$AU$9*Table_SummaryPI[[#This Row],[kWhSavings]]),0)","v":""},{"$f":"IFERROR(IF(Table_SummaryPI[[#This Row],[kWhSavings]]=\"\",\"\",$AU$14*Table_SummaryPI[[#This Row],[kWhSavings]]),0)","v":""},{"$f":"IFERROR(IF(Table_SummaryPI[[#This Row],[kWhSavings]]=\"\",\"\",$AU$18*Table_SummaryPI[[#This Row],[kWhSavings]]),0)","v":""},{"$f":"IFERROR(IF(Table_SummaryPI[[#This Row],[kWhSavings]]=\"\",\"\",$AU$22*Table_SummaryPI[[#This Row],[kWhSavings]]),0)","v":""},{"$f":"IFERROR(IF(MeasureCalc(Table_PI[[#This Row],[Hide:\nFormula Name]],Table_SummaryPI[[#This Row],[Quantity]],Table_PI[[#This Row],[List 1]],Table_PI[[#This Row],[List 2]],Table_PI[[#This Row],[List 3]],Table_PI[[#This Row],[Size]],Table_PI[[#This Row],[Input 1]],Table_PI[[#This Row],[Input 2]],Table_PI[[#This Row],[Input 3]],Table_PI[[#This Row],[Input 4]],'Customer Information'!$AR$12,200,ROW())<>\"No Rebate\",MeasureCalc(Table_PI[[#This Row],[Hide:\nFormula Name]],Table_SummaryPI[[#This Row],[Quantity]],Table_PI[[#This Row],[List 1]],Table_PI[[#This Row],[List 2]],Table_PI[[#This Row],[List 3]],Table_PI[[#This Row],[Size]],Table_PI[[#This Row],[Input 1]],Table_PI[[#This Row],[Input 2]],Table_PI[[#This Row],[Input 3]],Table_PI[[#This Row],[Input 4]],'Customer Information'!$AR$12,200,ROW()),\"\"),\"\")","v":""},{"$f":"IFERROR(IF(MeasureCalc(Table_PI[[#This Row],[Hide:\nFormula Name]],Table_SummaryPI[[#This Row],[Quantity]],Table_PI[[#This Row],[List 1]],Table_PI[[#This Row],[List 2]],Table_PI[[#This Row],[List 3]],Table_PI[[#This Row],[Size]],Table_PI[[#This Row],[Input 1]],Table_PI[[#This Row],[Input 2]],Table_PI[[#This Row],[Input 3]],Table_PI[[#This Row],[Input 4]],'Customer Information'!$AR$12,201,ROW())<>\"No Rebate\",MeasureCalc(Table_PI[[#This Row],[Hide:\nFormula Name]],Table_SummaryPI[[#This Row],[Quantity]],Table_PI[[#This Row],[List 1]],Table_PI[[#This Row],[List 2]],Table_PI[[#This Row],[List 3]],Table_PI[[#This Row],[Size]],Table_PI[[#This Row],[Input 1]],Table_PI[[#This Row],[Input 2]],Table_PI[[#This Row],[Input 3]],Table_PI[[#This Row],[Input 4]],'Customer Information'!$AR$12,201,ROW()),\"\"),\"\")","v":""}]
[{"$f":"Table_PI[[#This Row],[Line No.]]","v":""},{"$f":"IF(Table_SummaryPI[[#This Row],[MeassureCategory]]<>\"\",CONCATENATE(Table_SummaryPI[[#This Row],[MeassureCategory]],  \" - \", Table_SummaryPI[[#This Row],[ProposedMeasureCategory]],  \" - \", TEXT(Table_SummaryPI[[#This Row],[Size]],\"#,##0.00\"),\" \",Table_SummaryPI[[#This Row],[SizeUnit]]),\"\")","v":""},{"$f":"SUBSTITUTE(Table_PI[[#This Row],[Measure]],\"     \",\"\",1)","v":""},{"$f":"IF(Table_PI[[#This Row],[List 1]]<>\"\",Table_PI[[#This Row],[List 1]],\"\")","v":""},{"$f":"IF(Table_PI[[#This Row],[List 2]]<>\"\",Table_PI[[#This Row],[List 2]],\"\")","v":""},{"$f":"IF(Table_PI[[#This Row],[List 3]]<>\"\",Table_PI[[#This Row],[List 3]],\"\")","v":""},{"$f":"IF(Table_PI[[#This Row],[Manufacturer]]=\"\",\"\",Table_PI[[#This Row],[Manufacturer]])","v":""},{"$f":"IF(Table_PI[[#This Row],[Model Number]]=\"\",\"\",Table_PI[[#This Row],[Model Number]])","v":""},{"$f":"IF(Table_PI[[#This Row],[Serial Number(s)]]=\"\",\"\",Table_PI[[#This Row],[Serial Number(s)]])","v":""},null,{"$f":"IF(Table_PI[[#This Row],[Size]]=\"\",\"\",Table_PI[[#This Row],[Size]])","v":""},null,{"$f":"IFERROR(IF(AND(MeasureCalc(Table_PI[[#This Row],[Hide:\nFormula Name]],Table_SummaryPI[[#This Row],[Quantity]],Table_PI[[#This Row],[List 1]],Table_PI[[#This Row],[List 2]],Table_PI[[#This Row],[List 3]],Table_PI[[#This Row],[Size]],Table_PI[[#This Row],[Input 1]],Table_PI[[#This Row],[Input 2]],Table_PI[[#This Row],[Input 3]],Table_PI[[#This Row],[Input 4]],'Customer Information'!$AR$12,100,ROW())<>0,MeasureCalc(Table_PI[[#This Row],[Hide:\nFormula Name]],Table_SummaryPI[[#This Row],[Quantity]],Table_PI[[#This Row],[List 1]],Table_PI[[#This Row],[List 2]],Table_PI[[#This Row],[List 3]],Table_PI[[#This Row],[Size]],Table_PI[[#This Row],[Input 1]],Table_PI[[#This Row],[Input 2]],Table_PI[[#This Row],[Input 3]],Table_PI[[#This Row],[Input 4]],'Customer Information'!$AR$12,100,ROW())<>\"No Rebate\"),MeasureCalc(Table_PI[[#This Row],[Hide:\nFormula Name]],Table_SummaryPI[[#This Row],[Quantity]],Table_PI[[#This Row],[List 1]],Table_PI[[#This Row],[List 2]],Table_PI[[#This Row],[List 3]],Table_PI[[#This Row],[Size]],Table_PI[[#This Row],[Input 1]],Table_PI[[#This Row],[Input 2]],Table_PI[[#This Row],[Input 3]],Table_PI[[#This Row],[Input 4]],'Customer Information'!$AR$12,100,ROW()),\"\"),\"\")","v":""},{"$f":"IF(Table_PI[[#This Row],[Input 1]]<>\"\",Table_PI[[#This Row],[Input 1]],\"\")","v":""},null,{"$f":"IFERROR(IF(AND(MeasureCalc(Table_PI[[#This Row],[Hide:\nFormula Name]],Table_SummaryPI[[#This Row],[Quantity]],Table_PI[[#This Row],[List 1]],Table_PI[[#This Row],[List 2]],Table_PI[[#This Row],[List 3]],Table_PI[[#This Row],[Size]],Table_PI[[#This Row],[Input 1]],Table_PI[[#This Row],[Input 2]],Table_PI[[#This Row],[Input 3]],Table_PI[[#This Row],[Input 4]],'Customer Information'!$AR$12,101,ROW())<>0,MeasureCalc(Table_PI[[#This Row],[Hide:\nFormula Name]],Table_SummaryPI[[#This Row],[Quantity]],Table_PI[[#This Row],[List 1]],Table_PI[[#This Row],[List 2]],Table_PI[[#This Row],[List 3]],Table_PI[[#This Row],[Size]],Table_PI[[#This Row],[Input 1]],Table_PI[[#This Row],[Input 2]],Table_PI[[#This Row],[Input 3]],Table_PI[[#This Row],[Input 4]],'Customer Information'!$AR$12,101,ROW())<>\"No Rebate\"),MeasureCalc(Table_PI[[#This Row],[Hide:\nFormula Name]],Table_SummaryPI[[#This Row],[Quantity]],Table_PI[[#This Row],[List 1]],Table_PI[[#This Row],[List 2]],Table_PI[[#This Row],[List 3]],Table_PI[[#This Row],[Size]],Table_PI[[#This Row],[Input 1]],Table_PI[[#This Row],[Input 2]],Table_PI[[#This Row],[Input 3]],Table_PI[[#This Row],[Input 4]],'Customer Information'!$AR$12,101,ROW()),\"\"),\"\")","v":""},{"$f":"IF(Table_PI[[#This Row],[Input 2]]<>\"\",Table_PI[[#This Row],[Input 2]],\"\")","v":""},null,{"$f":"IFERROR(IF(AND(MeasureCalc(Table_PI[[#This Row],[Hide:\nFormula Name]],Table_SummaryPI[[#This Row],[Quantity]],Table_PI[[#This Row],[List 1]],Table_PI[[#This Row],[List 2]],Table_PI[[#This Row],[List 3]],Table_PI[[#This Row],[Size]],Table_PI[[#This Row],[Input 1]],Table_PI[[#This Row],[Input 2]],Table_PI[[#This Row],[Input 3]],Table_PI[[#This Row],[Input 4]],'Customer Information'!$AR$12,102,ROW())<>0,MeasureCalc(Table_PI[[#This Row],[Hide:\nFormula Name]],Table_SummaryPI[[#This Row],[Quantity]],Table_PI[[#This Row],[List 1]],Table_PI[[#This Row],[List 2]],Table_PI[[#This Row],[List 3]],Table_PI[[#This Row],[Size]],Table_PI[[#This Row],[Input 1]],Table_PI[[#This Row],[Input 2]],Table_PI[[#This Row],[Input 3]],Table_PI[[#This Row],[Input 4]],'Customer Information'!$AR$12,102,ROW())<>\"No Rebate\"),MeasureCalc(Table_PI[[#This Row],[Hide:\nFormula Name]],Table_SummaryPI[[#This Row],[Quantity]],Table_PI[[#This Row],[List 1]],Table_PI[[#This Row],[List 2]],Table_PI[[#This Row],[List 3]],Table_PI[[#This Row],[Size]],Table_PI[[#This Row],[Input 1]],Table_PI[[#This Row],[Input 2]],Table_PI[[#This Row],[Input 3]],Table_PI[[#This Row],[Input 4]],'Customer Information'!$AR$12,102,ROW()),\"\"),\"\")","v":""},{"$f":"IF(Table_PI[[#This Row],[Input 3]]<>\"\",Table_PI[[#This Row],[Input 3]],\"\")","v":""},null,{"$f":"IFERROR(IF(AND(MeasureCalc(Table_PI[[#This Row],[Hide:\nFormula Name]],Table_SummaryPI[[#This Row],[Quantity]],Table_PI[[#This Row],[List 1]],Table_PI[[#This Row],[List 2]],Table_PI[[#This Row],[List 3]],Table_PI[[#This Row],[Size]],Table_PI[[#This Row],[Input 1]],Table_PI[[#This Row],[Input 2]],Table_PI[[#This Row],[Input 3]],Table_PI[[#This Row],[Input 4]],'Customer Information'!$AR$12,103,ROW())<>0,MeasureCalc(Table_PI[[#This Row],[Hide:\nFormula Name]],Table_SummaryPI[[#This Row],[Quantity]],Table_PI[[#This Row],[List 1]],Table_PI[[#This Row],[List 2]],Table_PI[[#This Row],[List 3]],Table_PI[[#This Row],[Size]],Table_PI[[#This Row],[Input 1]],Table_PI[[#This Row],[Input 2]],Table_PI[[#This Row],[Input 3]],Table_PI[[#This Row],[Input 4]],'Customer Information'!$AR$12,103,ROW())<>\"No Rebate\"),MeasureCalc(Table_PI[[#This Row],[Hide:\nFormula Name]],Table_SummaryPI[[#This Row],[Quantity]],Table_PI[[#This Row],[List 1]],Table_PI[[#This Row],[List 2]],Table_PI[[#This Row],[List 3]],Table_PI[[#This Row],[Size]],Table_PI[[#This Row],[Input 1]],Table_PI[[#This Row],[Input 2]],Table_PI[[#This Row],[Input 3]],Table_PI[[#This Row],[Input 4]],'Customer Information'!$AR$12,103,ROW()),\"\"),\"\")","v":""},{"$f":"IF(Table_PI[[#This Row],[Input 4]]<>\"\",Table_PI[[#This Row],[Input 4]],\"\")","v":""},{"$f":"IF(Table_PI[[#This Row],[Quantity]]=\"\",\"\",Table_PI[[#This Row],[Quantity]])","v":""},{"$f":"IF(Table_PI[[#This Row],[Notes]]=\"\",\"\",Table_PI[[#This Row],[Notes]])","v":""},{"$f":"IF(OR(Table_PI[[#This Row],[Hide:\nBaseline kWh]]=\"\",Table_PI[[#This Row],[Hide:\nBaseline kWh]]=0),\"\",Table_PI[[#This Row],[Hide:\nBaseline kWh]])","v":""},{"$f":"IF(OR(Table_PI[[#This Row],[Hide:\nBaseline kW]]=\"\",Table_PI[[#This Row],[Hide:\nBaseline kW]]=0),\"\",Table_PI[[#This Row],[Hide:\nBaseline kW]])","v":""},{"$f":"IF(OR(Table_PI[[#This Row],[Hide:\nProposed kWh]]=\"\",Table_PI[[#This Row],[Hide:\nProposed kWh]]=0),\"\",Table_PI[[#This Row],[Hide:\nProposed kWh]])","v":""},{"$f":"IF(OR(Table_PI[[#This Row],[Hide:\nProposed kW]]=\"\",Table_PI[[#This Row],[Hide:\nProposed kW]]=0),\"\",Table_PI[[#This Row],[Hide:\nProposed kW]])","v":""},{"$f":"IF(OR(Table_PI[[#This Row],[Rebate]]=\"\",Table_PI[[#This Row],[Rebate]]=0),\"\",Table_PI[[#This Row],[Rebate]])","v":""},{"$f":"IF(OR(Table_PI[[#This Row],[Hide:\nIncremental Cost]]=\"\",Table_PI[[#This Row],[Hide:\nIncremental Cost]]=0),\"\",Table_PI[[#This Row],[Hide:\nIncremental Cost]])","v":""},{"$f":"IFERROR(IF(Table_SummaryPI[[#This Row],[kWhSavings]]=\"\",\"\",ROUND(Table_SummaryPI[[#This Row],[kWhSavings]]/$AG$401*'Customer Information'!$BC$17,2)),0)","v":""},{"$f":"IF(OR(Table_PI[[#This Row],[Annual kWh]]=\"\",Table_PI[[#This Row],[Annual kWh]]=0),\"\",Table_PI[[#This Row],[Annual kWh]])","v":""},{"$f":"IF(OR(Table_PI[[#This Row],[Peak kW]]=\"\",Table_PI[[#This Row],[Peak kW]]=0),\"\",Table_PI[[#This Row],[Peak kW]])","v":""},{"$f":"IFERROR(IF(Table_SummaryPI[[#This Row],[kWhSavings]]=\"\",\"\",$AU$9*Table_SummaryPI[[#This Row],[kWhSavings]]),0)","v":""},{"$f":"IFERROR(IF(Table_SummaryPI[[#This Row],[kWhSavings]]=\"\",\"\",$AU$14*Table_SummaryPI[[#This Row],[kWhSavings]]),0)","v":""},{"$f":"IFERROR(IF(Table_SummaryPI[[#This Row],[kWhSavings]]=\"\",\"\",$AU$18*Table_SummaryPI[[#This Row],[kWhSavings]]),0)","v":""},{"$f":"IFERROR(IF(Table_SummaryPI[[#This Row],[kWhSavings]]=\"\",\"\",$AU$22*Table_SummaryPI[[#This Row],[kWhSavings]]),0)","v":""},{"$f":"IFERROR(IF(MeasureCalc(Table_PI[[#This Row],[Hide:\nFormula Name]],Table_SummaryPI[[#This Row],[Quantity]],Table_PI[[#This Row],[List 1]],Table_PI[[#This Row],[List 2]],Table_PI[[#This Row],[List 3]],Table_PI[[#This Row],[Size]],Table_PI[[#This Row],[Input 1]],Table_PI[[#This Row],[Input 2]],Table_PI[[#This Row],[Input 3]],Table_PI[[#This Row],[Input 4]],'Customer Information'!$AR$12,200,ROW())<>\"No Rebate\",MeasureCalc(Table_PI[[#This Row],[Hide:\nFormula Name]],Table_SummaryPI[[#This Row],[Quantity]],Table_PI[[#This Row],[List 1]],Table_PI[[#This Row],[List 2]],Table_PI[[#This Row],[List 3]],Table_PI[[#This Row],[Size]],Table_PI[[#This Row],[Input 1]],Table_PI[[#This Row],[Input 2]],Table_PI[[#This Row],[Input 3]],Table_PI[[#This Row],[Input 4]],'Customer Information'!$AR$12,200,ROW()),\"\"),\"\")","v":""},{"$f":"IFERROR(IF(MeasureCalc(Table_PI[[#This Row],[Hide:\nFormula Name]],Table_SummaryPI[[#This Row],[Quantity]],Table_PI[[#This Row],[List 1]],Table_PI[[#This Row],[List 2]],Table_PI[[#This Row],[List 3]],Table_PI[[#This Row],[Size]],Table_PI[[#This Row],[Input 1]],Table_PI[[#This Row],[Input 2]],Table_PI[[#This Row],[Input 3]],Table_PI[[#This Row],[Input 4]],'Customer Information'!$AR$12,201,ROW())<>\"No Rebate\",MeasureCalc(Table_PI[[#This Row],[Hide:\nFormula Name]],Table_SummaryPI[[#This Row],[Quantity]],Table_PI[[#This Row],[List 1]],Table_PI[[#This Row],[List 2]],Table_PI[[#This Row],[List 3]],Table_PI[[#This Row],[Size]],Table_PI[[#This Row],[Input 1]],Table_PI[[#This Row],[Input 2]],Table_PI[[#This Row],[Input 3]],Table_PI[[#This Row],[Input 4]],'Customer Information'!$AR$12,201,ROW()),\"\"),\"\")","v":""}]
[{"$f":"Table_PI[[#This Row],[Line No.]]","v":""},{"$f":"IF(Table_SummaryPI[[#This Row],[MeassureCategory]]<>\"\",CONCATENATE(Table_SummaryPI[[#This Row],[MeassureCategory]],  \" - \", Table_SummaryPI[[#This Row],[ProposedMeasureCategory]],  \" - \", TEXT(Table_SummaryPI[[#This Row],[Size]],\"#,##0.00\"),\" \",Table_SummaryPI[[#This Row],[SizeUnit]]),\"\")","v":""},{"$f":"SUBSTITUTE(Table_PI[[#This Row],[Measure]],\"     \",\"\",1)","v":""},{"$f":"IF(Table_PI[[#This Row],[List 1]]<>\"\",Table_PI[[#This Row],[List 1]],\"\")","v":""},{"$f":"IF(Table_PI[[#This Row],[List 2]]<>\"\",Table_PI[[#This Row],[List 2]],\"\")","v":""},{"$f":"IF(Table_PI[[#This Row],[List 3]]<>\"\",Table_PI[[#This Row],[List 3]],\"\")","v":""},{"$f":"IF(Table_PI[[#This Row],[Manufacturer]]=\"\",\"\",Table_PI[[#This Row],[Manufacturer]])","v":""},{"$f":"IF(Table_PI[[#This Row],[Model Number]]=\"\",\"\",Table_PI[[#This Row],[Model Number]])","v":""},{"$f":"IF(Table_PI[[#This Row],[Serial Number(s)]]=\"\",\"\",Table_PI[[#This Row],[Serial Number(s)]])","v":""},null,{"$f":"IF(Table_PI[[#This Row],[Size]]=\"\",\"\",Table_PI[[#This Row],[Size]])","v":""},null,{"$f":"IFERROR(IF(AND(MeasureCalc(Table_PI[[#This Row],[Hide:\nFormula Name]],Table_SummaryPI[[#This Row],[Quantity]],Table_PI[[#This Row],[List 1]],Table_PI[[#This Row],[List 2]],Table_PI[[#This Row],[List 3]],Table_PI[[#This Row],[Size]],Table_PI[[#This Row],[Input 1]],Table_PI[[#This Row],[Input 2]],Table_PI[[#This Row],[Input 3]],Table_PI[[#This Row],[Input 4]],'Customer Information'!$AR$12,100,ROW())<>0,MeasureCalc(Table_PI[[#This Row],[Hide:\nFormula Name]],Table_SummaryPI[[#This Row],[Quantity]],Table_PI[[#This Row],[List 1]],Table_PI[[#This Row],[List 2]],Table_PI[[#This Row],[List 3]],Table_PI[[#This Row],[Size]],Table_PI[[#This Row],[Input 1]],Table_PI[[#This Row],[Input 2]],Table_PI[[#This Row],[Input 3]],Table_PI[[#This Row],[Input 4]],'Customer Information'!$AR$12,100,ROW())<>\"No Rebate\"),MeasureCalc(Table_PI[[#This Row],[Hide:\nFormula Name]],Table_SummaryPI[[#This Row],[Quantity]],Table_PI[[#This Row],[List 1]],Table_PI[[#This Row],[List 2]],Table_PI[[#This Row],[List 3]],Table_PI[[#This Row],[Size]],Table_PI[[#This Row],[Input 1]],Table_PI[[#This Row],[Input 2]],Table_PI[[#This Row],[Input 3]],Table_PI[[#This Row],[Input 4]],'Customer Information'!$AR$12,100,ROW()),\"\"),\"\")","v":""},{"$f":"IF(Table_PI[[#This Row],[Input 1]]<>\"\",Table_PI[[#This Row],[Input 1]],\"\")","v":""},null,{"$f":"IFERROR(IF(AND(MeasureCalc(Table_PI[[#This Row],[Hide:\nFormula Name]],Table_SummaryPI[[#This Row],[Quantity]],Table_PI[[#This Row],[List 1]],Table_PI[[#This Row],[List 2]],Table_PI[[#This Row],[List 3]],Table_PI[[#This Row],[Size]],Table_PI[[#This Row],[Input 1]],Table_PI[[#This Row],[Input 2]],Table_PI[[#This Row],[Input 3]],Table_PI[[#This Row],[Input 4]],'Customer Information'!$AR$12,101,ROW())<>0,MeasureCalc(Table_PI[[#This Row],[Hide:\nFormula Name]],Table_SummaryPI[[#This Row],[Quantity]],Table_PI[[#This Row],[List 1]],Table_PI[[#This Row],[List 2]],Table_PI[[#This Row],[List 3]],Table_PI[[#This Row],[Size]],Table_PI[[#This Row],[Input 1]],Table_PI[[#This Row],[Input 2]],Table_PI[[#This Row],[Input 3]],Table_PI[[#This Row],[Input 4]],'Customer Information'!$AR$12,101,ROW())<>\"No Rebate\"),MeasureCalc(Table_PI[[#This Row],[Hide:\nFormula Name]],Table_SummaryPI[[#This Row],[Quantity]],Table_PI[[#This Row],[List 1]],Table_PI[[#This Row],[List 2]],Table_PI[[#This Row],[List 3]],Table_PI[[#This Row],[Size]],Table_PI[[#This Row],[Input 1]],Table_PI[[#This Row],[Input 2]],Table_PI[[#This Row],[Input 3]],Table_PI[[#This Row],[Input 4]],'Customer Information'!$AR$12,101,ROW()),\"\"),\"\")","v":""},{"$f":"IF(Table_PI[[#This Row],[Input 2]]<>\"\",Table_PI[[#This Row],[Input 2]],\"\")","v":""},null,{"$f":"IFERROR(IF(AND(MeasureCalc(Table_PI[[#This Row],[Hide:\nFormula Name]],Table_SummaryPI[[#This Row],[Quantity]],Table_PI[[#This Row],[List 1]],Table_PI[[#This Row],[List 2]],Table_PI[[#This Row],[List 3]],Table_PI[[#This Row],[Size]],Table_PI[[#This Row],[Input 1]],Table_PI[[#This Row],[Input 2]],Table_PI[[#This Row],[Input 3]],Table_PI[[#This Row],[Input 4]],'Customer Information'!$AR$12,102,ROW())<>0,MeasureCalc(Table_PI[[#This Row],[Hide:\nFormula Name]],Table_SummaryPI[[#This Row],[Quantity]],Table_PI[[#This Row],[List 1]],Table_PI[[#This Row],[List 2]],Table_PI[[#This Row],[List 3]],Table_PI[[#This Row],[Size]],Table_PI[[#This Row],[Input 1]],Table_PI[[#This Row],[Input 2]],Table_PI[[#This Row],[Input 3]],Table_PI[[#This Row],[Input 4]],'Customer Information'!$AR$12,102,ROW())<>\"No Rebate\"),MeasureCalc(Table_PI[[#This Row],[Hide:\nFormula Name]],Table_SummaryPI[[#This Row],[Quantity]],Table_PI[[#This Row],[List 1]],Table_PI[[#This Row],[List 2]],Table_PI[[#This Row],[List 3]],Table_PI[[#This Row],[Size]],Table_PI[[#This Row],[Input 1]],Table_PI[[#This Row],[Input 2]],Table_PI[[#This Row],[Input 3]],Table_PI[[#This Row],[Input 4]],'Customer Information'!$AR$12,102,ROW()),\"\"),\"\")","v":""},{"$f":"IF(Table_PI[[#This Row],[Input 3]]<>\"\",Table_PI[[#This Row],[Input 3]],\"\")","v":""},null,{"$f":"IFERROR(IF(AND(MeasureCalc(Table_PI[[#This Row],[Hide:\nFormula Name]],Table_SummaryPI[[#This Row],[Quantity]],Table_PI[[#This Row],[List 1]],Table_PI[[#This Row],[List 2]],Table_PI[[#This Row],[List 3]],Table_PI[[#This Row],[Size]],Table_PI[[#This Row],[Input 1]],Table_PI[[#This Row],[Input 2]],Table_PI[[#This Row],[Input 3]],Table_PI[[#This Row],[Input 4]],'Customer Information'!$AR$12,103,ROW())<>0,MeasureCalc(Table_PI[[#This Row],[Hide:\nFormula Name]],Table_SummaryPI[[#This Row],[Quantity]],Table_PI[[#This Row],[List 1]],Table_PI[[#This Row],[List 2]],Table_PI[[#This Row],[List 3]],Table_PI[[#This Row],[Size]],Table_PI[[#This Row],[Input 1]],Table_PI[[#This Row],[Input 2]],Table_PI[[#This Row],[Input 3]],Table_PI[[#This Row],[Input 4]],'Customer Information'!$AR$12,103,ROW())<>\"No Rebate\"),MeasureCalc(Table_PI[[#This Row],[Hide:\nFormula Name]],Table_SummaryPI[[#This Row],[Quantity]],Table_PI[[#This Row],[List 1]],Table_PI[[#This Row],[List 2]],Table_PI[[#This Row],[List 3]],Table_PI[[#This Row],[Size]],Table_PI[[#This Row],[Input 1]],Table_PI[[#This Row],[Input 2]],Table_PI[[#This Row],[Input 3]],Table_PI[[#This Row],[Input 4]],'Customer Information'!$AR$12,103,ROW()),\"\"),\"\")","v":""},{"$f":"IF(Table_PI[[#This Row],[Input 4]]<>\"\",Table_PI[[#This Row],[Input 4]],\"\")","v":""},{"$f":"IF(Table_PI[[#This Row],[Quantity]]=\"\",\"\",Table_PI[[#This Row],[Quantity]])","v":""},{"$f":"IF(Table_PI[[#This Row],[Notes]]=\"\",\"\",Table_PI[[#This Row],[Notes]])","v":""},{"$f":"IF(OR(Table_PI[[#This Row],[Hide:\nBaseline kWh]]=\"\",Table_PI[[#This Row],[Hide:\nBaseline kWh]]=0),\"\",Table_PI[[#This Row],[Hide:\nBaseline kWh]])","v":""},{"$f":"IF(OR(Table_PI[[#This Row],[Hide:\nBaseline kW]]=\"\",Table_PI[[#This Row],[Hide:\nBaseline kW]]=0),\"\",Table_PI[[#This Row],[Hide:\nBaseline kW]])","v":""},{"$f":"IF(OR(Table_PI[[#This Row],[Hide:\nProposed kWh]]=\"\",Table_PI[[#This Row],[Hide:\nProposed kWh]]=0),\"\",Table_PI[[#This Row],[Hide:\nProposed kWh]])","v":""},{"$f":"IF(OR(Table_PI[[#This Row],[Hide:\nProposed kW]]=\"\",Table_PI[[#This Row],[Hide:\nProposed kW]]=0),\"\",Table_PI[[#This Row],[Hide:\nProposed kW]])","v":""},{"$f":"IF(OR(Table_PI[[#This Row],[Rebate]]=\"\",Table_PI[[#This Row],[Rebate]]=0),\"\",Table_PI[[#This Row],[Rebate]])","v":""},{"$f":"IF(OR(Table_PI[[#This Row],[Hide:\nIncremental Cost]]=\"\",Table_PI[[#This Row],[Hide:\nIncremental Cost]]=0),\"\",Table_PI[[#This Row],[Hide:\nIncremental Cost]])","v":""},{"$f":"IFERROR(IF(Table_SummaryPI[[#This Row],[kWhSavings]]=\"\",\"\",ROUND(Table_SummaryPI[[#This Row],[kWhSavings]]/$AG$401*'Customer Information'!$BC$17,2)),0)","v":""},{"$f":"IF(OR(Table_PI[[#This Row],[Annual kWh]]=\"\",Table_PI[[#This Row],[Annual kWh]]=0),\"\",Table_PI[[#This Row],[Annual kWh]])","v":""},{"$f":"IF(OR(Table_PI[[#This Row],[Peak kW]]=\"\",Table_PI[[#This Row],[Peak kW]]=0),\"\",Table_PI[[#This Row],[Peak kW]])","v":""},{"$f":"IFERROR(IF(Table_SummaryPI[[#This Row],[kWhSavings]]=\"\",\"\",$AU$9*Table_SummaryPI[[#This Row],[kWhSavings]]),0)","v":""},{"$f":"IFERROR(IF(Table_SummaryPI[[#This Row],[kWhSavings]]=\"\",\"\",$AU$14*Table_SummaryPI[[#This Row],[kWhSavings]]),0)","v":""},{"$f":"IFERROR(IF(Table_SummaryPI[[#This Row],[kWhSavings]]=\"\",\"\",$AU$18*Table_SummaryPI[[#This Row],[kWhSavings]]),0)","v":""},{"$f":"IFERROR(IF(Table_SummaryPI[[#This Row],[kWhSavings]]=\"\",\"\",$AU$22*Table_SummaryPI[[#This Row],[kWhSavings]]),0)","v":""},{"$f":"IFERROR(IF(MeasureCalc(Table_PI[[#This Row],[Hide:\nFormula Name]],Table_SummaryPI[[#This Row],[Quantity]],Table_PI[[#This Row],[List 1]],Table_PI[[#This Row],[List 2]],Table_PI[[#This Row],[List 3]],Table_PI[[#This Row],[Size]],Table_PI[[#This Row],[Input 1]],Table_PI[[#This Row],[Input 2]],Table_PI[[#This Row],[Input 3]],Table_PI[[#This Row],[Input 4]],'Customer Information'!$AR$12,200,ROW())<>\"No Rebate\",MeasureCalc(Table_PI[[#This Row],[Hide:\nFormula Name]],Table_SummaryPI[[#This Row],[Quantity]],Table_PI[[#This Row],[List 1]],Table_PI[[#This Row],[List 2]],Table_PI[[#This Row],[List 3]],Table_PI[[#This Row],[Size]],Table_PI[[#This Row],[Input 1]],Table_PI[[#This Row],[Input 2]],Table_PI[[#This Row],[Input 3]],Table_PI[[#This Row],[Input 4]],'Customer Information'!$AR$12,200,ROW()),\"\"),\"\")","v":""},{"$f":"IFERROR(IF(MeasureCalc(Table_PI[[#This Row],[Hide:\nFormula Name]],Table_SummaryPI[[#This Row],[Quantity]],Table_PI[[#This Row],[List 1]],Table_PI[[#This Row],[List 2]],Table_PI[[#This Row],[List 3]],Table_PI[[#This Row],[Size]],Table_PI[[#This Row],[Input 1]],Table_PI[[#This Row],[Input 2]],Table_PI[[#This Row],[Input 3]],Table_PI[[#This Row],[Input 4]],'Customer Information'!$AR$12,201,ROW())<>\"No Rebate\",MeasureCalc(Table_PI[[#This Row],[Hide:\nFormula Name]],Table_SummaryPI[[#This Row],[Quantity]],Table_PI[[#This Row],[List 1]],Table_PI[[#This Row],[List 2]],Table_PI[[#This Row],[List 3]],Table_PI[[#This Row],[Size]],Table_PI[[#This Row],[Input 1]],Table_PI[[#This Row],[Input 2]],Table_PI[[#This Row],[Input 3]],Table_PI[[#This Row],[Input 4]],'Customer Information'!$AR$12,201,ROW()),\"\"),\"\")","v":""}]
[{"$f":"Table_PI[[#This Row],[Line No.]]","v":""},{"$f":"IF(Table_SummaryPI[[#This Row],[MeassureCategory]]<>\"\",CONCATENATE(Table_SummaryPI[[#This Row],[MeassureCategory]],  \" - \", Table_SummaryPI[[#This Row],[ProposedMeasureCategory]],  \" - \", TEXT(Table_SummaryPI[[#This Row],[Size]],\"#,##0.00\"),\" \",Table_SummaryPI[[#This Row],[SizeUnit]]),\"\")","v":""},{"$f":"SUBSTITUTE(Table_PI[[#This Row],[Measure]],\"     \",\"\",1)","v":""},{"$f":"IF(Table_PI[[#This Row],[List 1]]<>\"\",Table_PI[[#This Row],[List 1]],\"\")","v":""},{"$f":"IF(Table_PI[[#This Row],[List 2]]<>\"\",Table_PI[[#This Row],[List 2]],\"\")","v":""},{"$f":"IF(Table_PI[[#This Row],[List 3]]<>\"\",Table_PI[[#This Row],[List 3]],\"\")","v":""},{"$f":"IF(Table_PI[[#This Row],[Manufacturer]]=\"\",\"\",Table_PI[[#This Row],[Manufacturer]])","v":""},{"$f":"IF(Table_PI[[#This Row],[Model Number]]=\"\",\"\",Table_PI[[#This Row],[Model Number]])","v":""},{"$f":"IF(Table_PI[[#This Row],[Serial Number(s)]]=\"\",\"\",Table_PI[[#This Row],[Serial Number(s)]])","v":""},null,{"$f":"IF(Table_PI[[#This Row],[Size]]=\"\",\"\",Table_PI[[#This Row],[Size]])","v":""},null,{"$f":"IFERROR(IF(AND(MeasureCalc(Table_PI[[#This Row],[Hide:\nFormula Name]],Table_SummaryPI[[#This Row],[Quantity]],Table_PI[[#This Row],[List 1]],Table_PI[[#This Row],[List 2]],Table_PI[[#This Row],[List 3]],Table_PI[[#This Row],[Size]],Table_PI[[#This Row],[Input 1]],Table_PI[[#This Row],[Input 2]],Table_PI[[#This Row],[Input 3]],Table_PI[[#This Row],[Input 4]],'Customer Information'!$AR$12,100,ROW())<>0,MeasureCalc(Table_PI[[#This Row],[Hide:\nFormula Name]],Table_SummaryPI[[#This Row],[Quantity]],Table_PI[[#This Row],[List 1]],Table_PI[[#This Row],[List 2]],Table_PI[[#This Row],[List 3]],Table_PI[[#This Row],[Size]],Table_PI[[#This Row],[Input 1]],Table_PI[[#This Row],[Input 2]],Table_PI[[#This Row],[Input 3]],Table_PI[[#This Row],[Input 4]],'Customer Information'!$AR$12,100,ROW())<>\"No Rebate\"),MeasureCalc(Table_PI[[#This Row],[Hide:\nFormula Name]],Table_SummaryPI[[#This Row],[Quantity]],Table_PI[[#This Row],[List 1]],Table_PI[[#This Row],[List 2]],Table_PI[[#This Row],[List 3]],Table_PI[[#This Row],[Size]],Table_PI[[#This Row],[Input 1]],Table_PI[[#This Row],[Input 2]],Table_PI[[#This Row],[Input 3]],Table_PI[[#This Row],[Input 4]],'Customer Information'!$AR$12,100,ROW()),\"\"),\"\")","v":""},{"$f":"IF(Table_PI[[#This Row],[Input 1]]<>\"\",Table_PI[[#This Row],[Input 1]],\"\")","v":""},null,{"$f":"IFERROR(IF(AND(MeasureCalc(Table_PI[[#This Row],[Hide:\nFormula Name]],Table_SummaryPI[[#This Row],[Quantity]],Table_PI[[#This Row],[List 1]],Table_PI[[#This Row],[List 2]],Table_PI[[#This Row],[List 3]],Table_PI[[#This Row],[Size]],Table_PI[[#This Row],[Input 1]],Table_PI[[#This Row],[Input 2]],Table_PI[[#This Row],[Input 3]],Table_PI[[#This Row],[Input 4]],'Customer Information'!$AR$12,101,ROW())<>0,MeasureCalc(Table_PI[[#This Row],[Hide:\nFormula Name]],Table_SummaryPI[[#This Row],[Quantity]],Table_PI[[#This Row],[List 1]],Table_PI[[#This Row],[List 2]],Table_PI[[#This Row],[List 3]],Table_PI[[#This Row],[Size]],Table_PI[[#This Row],[Input 1]],Table_PI[[#This Row],[Input 2]],Table_PI[[#This Row],[Input 3]],Table_PI[[#This Row],[Input 4]],'Customer Information'!$AR$12,101,ROW())<>\"No Rebate\"),MeasureCalc(Table_PI[[#This Row],[Hide:\nFormula Name]],Table_SummaryPI[[#This Row],[Quantity]],Table_PI[[#This Row],[List 1]],Table_PI[[#This Row],[List 2]],Table_PI[[#This Row],[List 3]],Table_PI[[#This Row],[Size]],Table_PI[[#This Row],[Input 1]],Table_PI[[#This Row],[Input 2]],Table_PI[[#This Row],[Input 3]],Table_PI[[#This Row],[Input 4]],'Customer Information'!$AR$12,101,ROW()),\"\"),\"\")","v":""},{"$f":"IF(Table_PI[[#This Row],[Input 2]]<>\"\",Table_PI[[#This Row],[Input 2]],\"\")","v":""},null,{"$f":"IFERROR(IF(AND(MeasureCalc(Table_PI[[#This Row],[Hide:\nFormula Name]],Table_SummaryPI[[#This Row],[Quantity]],Table_PI[[#This Row],[List 1]],Table_PI[[#This Row],[List 2]],Table_PI[[#This Row],[List 3]],Table_PI[[#This Row],[Size]],Table_PI[[#This Row],[Input 1]],Table_PI[[#This Row],[Input 2]],Table_PI[[#This Row],[Input 3]],Table_PI[[#This Row],[Input 4]],'Customer Information'!$AR$12,102,ROW())<>0,MeasureCalc(Table_PI[[#This Row],[Hide:\nFormula Name]],Table_SummaryPI[[#This Row],[Quantity]],Table_PI[[#This Row],[List 1]],Table_PI[[#This Row],[List 2]],Table_PI[[#This Row],[List 3]],Table_PI[[#This Row],[Size]],Table_PI[[#This Row],[Input 1]],Table_PI[[#This Row],[Input 2]],Table_PI[[#This Row],[Input 3]],Table_PI[[#This Row],[Input 4]],'Customer Information'!$AR$12,102,ROW())<>\"No Rebate\"),MeasureCalc(Table_PI[[#This Row],[Hide:\nFormula Name]],Table_SummaryPI[[#This Row],[Quantity]],Table_PI[[#This Row],[List 1]],Table_PI[[#This Row],[List 2]],Table_PI[[#This Row],[List 3]],Table_PI[[#This Row],[Size]],Table_PI[[#This Row],[Input 1]],Table_PI[[#This Row],[Input 2]],Table_PI[[#This Row],[Input 3]],Table_PI[[#This Row],[Input 4]],'Customer Information'!$AR$12,102,ROW()),\"\"),\"\")","v":""},{"$f":"IF(Table_PI[[#This Row],[Input 3]]<>\"\",Table_PI[[#This Row],[Input 3]],\"\")","v":""},null,{"$f":"IFERROR(IF(AND(MeasureCalc(Table_PI[[#This Row],[Hide:\nFormula Name]],Table_SummaryPI[[#This Row],[Quantity]],Table_PI[[#This Row],[List 1]],Table_PI[[#This Row],[List 2]],Table_PI[[#This Row],[List 3]],Table_PI[[#This Row],[Size]],Table_PI[[#This Row],[Input 1]],Table_PI[[#This Row],[Input 2]],Table_PI[[#This Row],[Input 3]],Table_PI[[#This Row],[Input 4]],'Customer Information'!$AR$12,103,ROW())<>0,MeasureCalc(Table_PI[[#This Row],[Hide:\nFormula Name]],Table_SummaryPI[[#This Row],[Quantity]],Table_PI[[#This Row],[List 1]],Table_PI[[#This Row],[List 2]],Table_PI[[#This Row],[List 3]],Table_PI[[#This Row],[Size]],Table_PI[[#This Row],[Input 1]],Table_PI[[#This Row],[Input 2]],Table_PI[[#This Row],[Input 3]],Table_PI[[#This Row],[Input 4]],'Customer Information'!$AR$12,103,ROW())<>\"No Rebate\"),MeasureCalc(Table_PI[[#This Row],[Hide:\nFormula Name]],Table_SummaryPI[[#This Row],[Quantity]],Table_PI[[#This Row],[List 1]],Table_PI[[#This Row],[List 2]],Table_PI[[#This Row],[List 3]],Table_PI[[#This Row],[Size]],Table_PI[[#This Row],[Input 1]],Table_PI[[#This Row],[Input 2]],Table_PI[[#This Row],[Input 3]],Table_PI[[#This Row],[Input 4]],'Customer Information'!$AR$12,103,ROW()),\"\"),\"\")","v":""},{"$f":"IF(Table_PI[[#This Row],[Input 4]]<>\"\",Table_PI[[#This Row],[Input 4]],\"\")","v":""},{"$f":"IF(Table_PI[[#This Row],[Quantity]]=\"\",\"\",Table_PI[[#This Row],[Quantity]])","v":""},{"$f":"IF(Table_PI[[#This Row],[Notes]]=\"\",\"\",Table_PI[[#This Row],[Notes]])","v":""},{"$f":"IF(OR(Table_PI[[#This Row],[Hide:\nBaseline kWh]]=\"\",Table_PI[[#This Row],[Hide:\nBaseline kWh]]=0),\"\",Table_PI[[#This Row],[Hide:\nBaseline kWh]])","v":""},{"$f":"IF(OR(Table_PI[[#This Row],[Hide:\nBaseline kW]]=\"\",Table_PI[[#This Row],[Hide:\nBaseline kW]]=0),\"\",Table_PI[[#This Row],[Hide:\nBaseline kW]])","v":""},{"$f":"IF(OR(Table_PI[[#This Row],[Hide:\nProposed kWh]]=\"\",Table_PI[[#This Row],[Hide:\nProposed kWh]]=0),\"\",Table_PI[[#This Row],[Hide:\nProposed kWh]])","v":""},{"$f":"IF(OR(Table_PI[[#This Row],[Hide:\nProposed kW]]=\"\",Table_PI[[#This Row],[Hide:\nProposed kW]]=0),\"\",Table_PI[[#This Row],[Hide:\nProposed kW]])","v":""},{"$f":"IF(OR(Table_PI[[#This Row],[Rebate]]=\"\",Table_PI[[#This Row],[Rebate]]=0),\"\",Table_PI[[#This Row],[Rebate]])","v":""},{"$f":"IF(OR(Table_PI[[#This Row],[Hide:\nIncremental Cost]]=\"\",Table_PI[[#This Row],[Hide:\nIncremental Cost]]=0),\"\",Table_PI[[#This Row],[Hide:\nIncremental Cost]])","v":""},{"$f":"IFERROR(IF(Table_SummaryPI[[#This Row],[kWhSavings]]=\"\",\"\",ROUND(Table_SummaryPI[[#This Row],[kWhSavings]]/$AG$401*'Customer Information'!$BC$17,2)),0)","v":""},{"$f":"IF(OR(Table_PI[[#This Row],[Annual kWh]]=\"\",Table_PI[[#This Row],[Annual kWh]]=0),\"\",Table_PI[[#This Row],[Annual kWh]])","v":""},{"$f":"IF(OR(Table_PI[[#This Row],[Peak kW]]=\"\",Table_PI[[#This Row],[Peak kW]]=0),\"\",Table_PI[[#This Row],[Peak kW]])","v":""},{"$f":"IFERROR(IF(Table_SummaryPI[[#This Row],[kWhSavings]]=\"\",\"\",$AU$9*Table_SummaryPI[[#This Row],[kWhSavings]]),0)","v":""},{"$f":"IFERROR(IF(Table_SummaryPI[[#This Row],[kWhSavings]]=\"\",\"\",$AU$14*Table_SummaryPI[[#This Row],[kWhSavings]]),0)","v":""},{"$f":"IFERROR(IF(Table_SummaryPI[[#This Row],[kWhSavings]]=\"\",\"\",$AU$18*Table_SummaryPI[[#This Row],[kWhSavings]]),0)","v":""},{"$f":"IFERROR(IF(Table_SummaryPI[[#This Row],[kWhSavings]]=\"\",\"\",$AU$22*Table_SummaryPI[[#This Row],[kWhSavings]]),0)","v":""},{"$f":"IFERROR(IF(MeasureCalc(Table_PI[[#This Row],[Hide:\nFormula Name]],Table_SummaryPI[[#This Row],[Quantity]],Table_PI[[#This Row],[List 1]],Table_PI[[#This Row],[List 2]],Table_PI[[#This Row],[List 3]],Table_PI[[#This Row],[Size]],Table_PI[[#This Row],[Input 1]],Table_PI[[#This Row],[Input 2]],Table_PI[[#This Row],[Input 3]],Table_PI[[#This Row],[Input 4]],'Customer Information'!$AR$12,200,ROW())<>\"No Rebate\",MeasureCalc(Table_PI[[#This Row],[Hide:\nFormula Name]],Table_SummaryPI[[#This Row],[Quantity]],Table_PI[[#This Row],[List 1]],Table_PI[[#This Row],[List 2]],Table_PI[[#This Row],[List 3]],Table_PI[[#This Row],[Size]],Table_PI[[#This Row],[Input 1]],Table_PI[[#This Row],[Input 2]],Table_PI[[#This Row],[Input 3]],Table_PI[[#This Row],[Input 4]],'Customer Information'!$AR$12,200,ROW()),\"\"),\"\")","v":""},{"$f":"IFERROR(IF(MeasureCalc(Table_PI[[#This Row],[Hide:\nFormula Name]],Table_SummaryPI[[#This Row],[Quantity]],Table_PI[[#This Row],[List 1]],Table_PI[[#This Row],[List 2]],Table_PI[[#This Row],[List 3]],Table_PI[[#This Row],[Size]],Table_PI[[#This Row],[Input 1]],Table_PI[[#This Row],[Input 2]],Table_PI[[#This Row],[Input 3]],Table_PI[[#This Row],[Input 4]],'Customer Information'!$AR$12,201,ROW())<>\"No Rebate\",MeasureCalc(Table_PI[[#This Row],[Hide:\nFormula Name]],Table_SummaryPI[[#This Row],[Quantity]],Table_PI[[#This Row],[List 1]],Table_PI[[#This Row],[List 2]],Table_PI[[#This Row],[List 3]],Table_PI[[#This Row],[Size]],Table_PI[[#This Row],[Input 1]],Table_PI[[#This Row],[Input 2]],Table_PI[[#This Row],[Input 3]],Table_PI[[#This Row],[Input 4]],'Customer Information'!$AR$12,201,ROW()),\"\"),\"\")","v":""}]
[{"$f":"Table_PI[[#This Row],[Line No.]]","v":""},{"$f":"IF(Table_SummaryPI[[#This Row],[MeassureCategory]]<>\"\",CONCATENATE(Table_SummaryPI[[#This Row],[MeassureCategory]],  \" - \", Table_SummaryPI[[#This Row],[ProposedMeasureCategory]],  \" - \", TEXT(Table_SummaryPI[[#This Row],[Size]],\"#,##0.00\"),\" \",Table_SummaryPI[[#This Row],[SizeUnit]]),\"\")","v":""},{"$f":"SUBSTITUTE(Table_PI[[#This Row],[Measure]],\"     \",\"\",1)","v":""},{"$f":"IF(Table_PI[[#This Row],[List 1]]<>\"\",Table_PI[[#This Row],[List 1]],\"\")","v":""},{"$f":"IF(Table_PI[[#This Row],[List 2]]<>\"\",Table_PI[[#This Row],[List 2]],\"\")","v":""},{"$f":"IF(Table_PI[[#This Row],[List 3]]<>\"\",Table_PI[[#This Row],[List 3]],\"\")","v":""},{"$f":"IF(Table_PI[[#This Row],[Manufacturer]]=\"\",\"\",Table_PI[[#This Row],[Manufacturer]])","v":""},{"$f":"IF(Table_PI[[#This Row],[Model Number]]=\"\",\"\",Table_PI[[#This Row],[Model Number]])","v":""},{"$f":"IF(Table_PI[[#This Row],[Serial Number(s)]]=\"\",\"\",Table_PI[[#This Row],[Serial Number(s)]])","v":""},null,{"$f":"IF(Table_PI[[#This Row],[Size]]=\"\",\"\",Table_PI[[#This Row],[Size]])","v":""},null,{"$f":"IFERROR(IF(AND(MeasureCalc(Table_PI[[#This Row],[Hide:\nFormula Name]],Table_SummaryPI[[#This Row],[Quantity]],Table_PI[[#This Row],[List 1]],Table_PI[[#This Row],[List 2]],Table_PI[[#This Row],[List 3]],Table_PI[[#This Row],[Size]],Table_PI[[#This Row],[Input 1]],Table_PI[[#This Row],[Input 2]],Table_PI[[#This Row],[Input 3]],Table_PI[[#This Row],[Input 4]],'Customer Information'!$AR$12,100,ROW())<>0,MeasureCalc(Table_PI[[#This Row],[Hide:\nFormula Name]],Table_SummaryPI[[#This Row],[Quantity]],Table_PI[[#This Row],[List 1]],Table_PI[[#This Row],[List 2]],Table_PI[[#This Row],[List 3]],Table_PI[[#This Row],[Size]],Table_PI[[#This Row],[Input 1]],Table_PI[[#This Row],[Input 2]],Table_PI[[#This Row],[Input 3]],Table_PI[[#This Row],[Input 4]],'Customer Information'!$AR$12,100,ROW())<>\"No Rebate\"),MeasureCalc(Table_PI[[#This Row],[Hide:\nFormula Name]],Table_SummaryPI[[#This Row],[Quantity]],Table_PI[[#This Row],[List 1]],Table_PI[[#This Row],[List 2]],Table_PI[[#This Row],[List 3]],Table_PI[[#This Row],[Size]],Table_PI[[#This Row],[Input 1]],Table_PI[[#This Row],[Input 2]],Table_PI[[#This Row],[Input 3]],Table_PI[[#This Row],[Input 4]],'Customer Information'!$AR$12,100,ROW()),\"\"),\"\")","v":""},{"$f":"IF(Table_PI[[#This Row],[Input 1]]<>\"\",Table_PI[[#This Row],[Input 1]],\"\")","v":""},null,{"$f":"IFERROR(IF(AND(MeasureCalc(Table_PI[[#This Row],[Hide:\nFormula Name]],Table_SummaryPI[[#This Row],[Quantity]],Table_PI[[#This Row],[List 1]],Table_PI[[#This Row],[List 2]],Table_PI[[#This Row],[List 3]],Table_PI[[#This Row],[Size]],Table_PI[[#This Row],[Input 1]],Table_PI[[#This Row],[Input 2]],Table_PI[[#This Row],[Input 3]],Table_PI[[#This Row],[Input 4]],'Customer Information'!$AR$12,101,ROW())<>0,MeasureCalc(Table_PI[[#This Row],[Hide:\nFormula Name]],Table_SummaryPI[[#This Row],[Quantity]],Table_PI[[#This Row],[List 1]],Table_PI[[#This Row],[List 2]],Table_PI[[#This Row],[List 3]],Table_PI[[#This Row],[Size]],Table_PI[[#This Row],[Input 1]],Table_PI[[#This Row],[Input 2]],Table_PI[[#This Row],[Input 3]],Table_PI[[#This Row],[Input 4]],'Customer Information'!$AR$12,101,ROW())<>\"No Rebate\"),MeasureCalc(Table_PI[[#This Row],[Hide:\nFormula Name]],Table_SummaryPI[[#This Row],[Quantity]],Table_PI[[#This Row],[List 1]],Table_PI[[#This Row],[List 2]],Table_PI[[#This Row],[List 3]],Table_PI[[#This Row],[Size]],Table_PI[[#This Row],[Input 1]],Table_PI[[#This Row],[Input 2]],Table_PI[[#This Row],[Input 3]],Table_PI[[#This Row],[Input 4]],'Customer Information'!$AR$12,101,ROW()),\"\"),\"\")","v":""},{"$f":"IF(Table_PI[[#This Row],[Input 2]]<>\"\",Table_PI[[#This Row],[Input 2]],\"\")","v":""},null,{"$f":"IFERROR(IF(AND(MeasureCalc(Table_PI[[#This Row],[Hide:\nFormula Name]],Table_SummaryPI[[#This Row],[Quantity]],Table_PI[[#This Row],[List 1]],Table_PI[[#This Row],[List 2]],Table_PI[[#This Row],[List 3]],Table_PI[[#This Row],[Size]],Table_PI[[#This Row],[Input 1]],Table_PI[[#This Row],[Input 2]],Table_PI[[#This Row],[Input 3]],Table_PI[[#This Row],[Input 4]],'Customer Information'!$AR$12,102,ROW())<>0,MeasureCalc(Table_PI[[#This Row],[Hide:\nFormula Name]],Table_SummaryPI[[#This Row],[Quantity]],Table_PI[[#This Row],[List 1]],Table_PI[[#This Row],[List 2]],Table_PI[[#This Row],[List 3]],Table_PI[[#This Row],[Size]],Table_PI[[#This Row],[Input 1]],Table_PI[[#This Row],[Input 2]],Table_PI[[#This Row],[Input 3]],Table_PI[[#This Row],[Input 4]],'Customer Information'!$AR$12,102,ROW())<>\"No Rebate\"),MeasureCalc(Table_PI[[#This Row],[Hide:\nFormula Name]],Table_SummaryPI[[#This Row],[Quantity]],Table_PI[[#This Row],[List 1]],Table_PI[[#This Row],[List 2]],Table_PI[[#This Row],[List 3]],Table_PI[[#This Row],[Size]],Table_PI[[#This Row],[Input 1]],Table_PI[[#This Row],[Input 2]],Table_PI[[#This Row],[Input 3]],Table_PI[[#This Row],[Input 4]],'Customer Information'!$AR$12,102,ROW()),\"\"),\"\")","v":""},{"$f":"IF(Table_PI[[#This Row],[Input 3]]<>\"\",Table_PI[[#This Row],[Input 3]],\"\")","v":""},null,{"$f":"IFERROR(IF(AND(MeasureCalc(Table_PI[[#This Row],[Hide:\nFormula Name]],Table_SummaryPI[[#This Row],[Quantity]],Table_PI[[#This Row],[List 1]],Table_PI[[#This Row],[List 2]],Table_PI[[#This Row],[List 3]],Table_PI[[#This Row],[Size]],Table_PI[[#This Row],[Input 1]],Table_PI[[#This Row],[Input 2]],Table_PI[[#This Row],[Input 3]],Table_PI[[#This Row],[Input 4]],'Customer Information'!$AR$12,103,ROW())<>0,MeasureCalc(Table_PI[[#This Row],[Hide:\nFormula Name]],Table_SummaryPI[[#This Row],[Quantity]],Table_PI[[#This Row],[List 1]],Table_PI[[#This Row],[List 2]],Table_PI[[#This Row],[List 3]],Table_PI[[#This Row],[Size]],Table_PI[[#This Row],[Input 1]],Table_PI[[#This Row],[Input 2]],Table_PI[[#This Row],[Input 3]],Table_PI[[#This Row],[Input 4]],'Customer Information'!$AR$12,103,ROW())<>\"No Rebate\"),MeasureCalc(Table_PI[[#This Row],[Hide:\nFormula Name]],Table_SummaryPI[[#This Row],[Quantity]],Table_PI[[#This Row],[List 1]],Table_PI[[#This Row],[List 2]],Table_PI[[#This Row],[List 3]],Table_PI[[#This Row],[Size]],Table_PI[[#This Row],[Input 1]],Table_PI[[#This Row],[Input 2]],Table_PI[[#This Row],[Input 3]],Table_PI[[#This Row],[Input 4]],'Customer Information'!$AR$12,103,ROW()),\"\"),\"\")","v":""},{"$f":"IF(Table_PI[[#This Row],[Input 4]]<>\"\",Table_PI[[#This Row],[Input 4]],\"\")","v":""},{"$f":"IF(Table_PI[[#This Row],[Quantity]]=\"\",\"\",Table_PI[[#This Row],[Quantity]])","v":""},{"$f":"IF(Table_PI[[#This Row],[Notes]]=\"\",\"\",Table_PI[[#This Row],[Notes]])","v":""},{"$f":"IF(OR(Table_PI[[#This Row],[Hide:\nBaseline kWh]]=\"\",Table_PI[[#This Row],[Hide:\nBaseline kWh]]=0),\"\",Table_PI[[#This Row],[Hide:\nBaseline kWh]])","v":""},{"$f":"IF(OR(Table_PI[[#This Row],[Hide:\nBaseline kW]]=\"\",Table_PI[[#This Row],[Hide:\nBaseline kW]]=0),\"\",Table_PI[[#This Row],[Hide:\nBaseline kW]])","v":""},{"$f":"IF(OR(Table_PI[[#This Row],[Hide:\nProposed kWh]]=\"\",Table_PI[[#This Row],[Hide:\nProposed kWh]]=0),\"\",Table_PI[[#This Row],[Hide:\nProposed kWh]])","v":""},{"$f":"IF(OR(Table_PI[[#This Row],[Hide:\nProposed kW]]=\"\",Table_PI[[#This Row],[Hide:\nProposed kW]]=0),\"\",Table_PI[[#This Row],[Hide:\nProposed kW]])","v":""},{"$f":"IF(OR(Table_PI[[#This Row],[Rebate]]=\"\",Table_PI[[#This Row],[Rebate]]=0),\"\",Table_PI[[#This Row],[Rebate]])","v":""},{"$f":"IF(OR(Table_PI[[#This Row],[Hide:\nIncremental Cost]]=\"\",Table_PI[[#This Row],[Hide:\nIncremental Cost]]=0),\"\",Table_PI[[#This Row],[Hide:\nIncremental Cost]])","v":""},{"$f":"IFERROR(IF(Table_SummaryPI[[#This Row],[kWhSavings]]=\"\",\"\",ROUND(Table_SummaryPI[[#This Row],[kWhSavings]]/$AG$401*'Customer Information'!$BC$17,2)),0)","v":""},{"$f":"IF(OR(Table_PI[[#This Row],[Annual kWh]]=\"\",Table_PI[[#This Row],[Annual kWh]]=0),\"\",Table_PI[[#This Row],[Annual kWh]])","v":""},{"$f":"IF(OR(Table_PI[[#This Row],[Peak kW]]=\"\",Table_PI[[#This Row],[Peak kW]]=0),\"\",Table_PI[[#This Row],[Peak kW]])","v":""},{"$f":"IFERROR(IF(Table_SummaryPI[[#This Row],[kWhSavings]]=\"\",\"\",$AU$9*Table_SummaryPI[[#This Row],[kWhSavings]]),0)","v":""},{"$f":"IFERROR(IF(Table_SummaryPI[[#This Row],[kWhSavings]]=\"\",\"\",$AU$14*Table_SummaryPI[[#This Row],[kWhSavings]]),0)","v":""},{"$f":"IFERROR(IF(Table_SummaryPI[[#This Row],[kWhSavings]]=\"\",\"\",$AU$18*Table_SummaryPI[[#This Row],[kWhSavings]]),0)","v":""},{"$f":"IFERROR(IF(Table_SummaryPI[[#This Row],[kWhSavings]]=\"\",\"\",$AU$22*Table_SummaryPI[[#This Row],[kWhSavings]]),0)","v":""},{"$f":"IFERROR(IF(MeasureCalc(Table_PI[[#This Row],[Hide:\nFormula Name]],Table_SummaryPI[[#This Row],[Quantity]],Table_PI[[#This Row],[List 1]],Table_PI[[#This Row],[List 2]],Table_PI[[#This Row],[List 3]],Table_PI[[#This Row],[Size]],Table_PI[[#This Row],[Input 1]],Table_PI[[#This Row],[Input 2]],Table_PI[[#This Row],[Input 3]],Table_PI[[#This Row],[Input 4]],'Customer Information'!$AR$12,200,ROW())<>\"No Rebate\",MeasureCalc(Table_PI[[#This Row],[Hide:\nFormula Name]],Table_SummaryPI[[#This Row],[Quantity]],Table_PI[[#This Row],[List 1]],Table_PI[[#This Row],[List 2]],Table_PI[[#This Row],[List 3]],Table_PI[[#This Row],[Size]],Table_PI[[#This Row],[Input 1]],Table_PI[[#This Row],[Input 2]],Table_PI[[#This Row],[Input 3]],Table_PI[[#This Row],[Input 4]],'Customer Information'!$AR$12,200,ROW()),\"\"),\"\")","v":""},{"$f":"IFERROR(IF(MeasureCalc(Table_PI[[#This Row],[Hide:\nFormula Name]],Table_SummaryPI[[#This Row],[Quantity]],Table_PI[[#This Row],[List 1]],Table_PI[[#This Row],[List 2]],Table_PI[[#This Row],[List 3]],Table_PI[[#This Row],[Size]],Table_PI[[#This Row],[Input 1]],Table_PI[[#This Row],[Input 2]],Table_PI[[#This Row],[Input 3]],Table_PI[[#This Row],[Input 4]],'Customer Information'!$AR$12,201,ROW())<>\"No Rebate\",MeasureCalc(Table_PI[[#This Row],[Hide:\nFormula Name]],Table_SummaryPI[[#This Row],[Quantity]],Table_PI[[#This Row],[List 1]],Table_PI[[#This Row],[List 2]],Table_PI[[#This Row],[List 3]],Table_PI[[#This Row],[Size]],Table_PI[[#This Row],[Input 1]],Table_PI[[#This Row],[Input 2]],Table_PI[[#This Row],[Input 3]],Table_PI[[#This Row],[Input 4]],'Customer Information'!$AR$12,201,ROW()),\"\"),\"\")","v":""}]
[{"$f":"Table_PI[[#This Row],[Line No.]]","v":""},{"$f":"IF(Table_SummaryPI[[#This Row],[MeassureCategory]]<>\"\",CONCATENATE(Table_SummaryPI[[#This Row],[MeassureCategory]],  \" - \", Table_SummaryPI[[#This Row],[ProposedMeasureCategory]],  \" - \", TEXT(Table_SummaryPI[[#This Row],[Size]],\"#,##0.00\"),\" \",Table_SummaryPI[[#This Row],[SizeUnit]]),\"\")","v":""},{"$f":"SUBSTITUTE(Table_PI[[#This Row],[Measure]],\"     \",\"\",1)","v":""},{"$f":"IF(Table_PI[[#This Row],[List 1]]<>\"\",Table_PI[[#This Row],[List 1]],\"\")","v":""},{"$f":"IF(Table_PI[[#This Row],[List 2]]<>\"\",Table_PI[[#This Row],[List 2]],\"\")","v":""},{"$f":"IF(Table_PI[[#This Row],[List 3]]<>\"\",Table_PI[[#This Row],[List 3]],\"\")","v":""},{"$f":"IF(Table_PI[[#This Row],[Manufacturer]]=\"\",\"\",Table_PI[[#This Row],[Manufacturer]])","v":""},{"$f":"IF(Table_PI[[#This Row],[Model Number]]=\"\",\"\",Table_PI[[#This Row],[Model Number]])","v":""},{"$f":"IF(Table_PI[[#This Row],[Serial Number(s)]]=\"\",\"\",Table_PI[[#This Row],[Serial Number(s)]])","v":""},null,{"$f":"IF(Table_PI[[#This Row],[Size]]=\"\",\"\",Table_PI[[#This Row],[Size]])","v":""},null,{"$f":"IFERROR(IF(AND(MeasureCalc(Table_PI[[#This Row],[Hide:\nFormula Name]],Table_SummaryPI[[#This Row],[Quantity]],Table_PI[[#This Row],[List 1]],Table_PI[[#This Row],[List 2]],Table_PI[[#This Row],[List 3]],Table_PI[[#This Row],[Size]],Table_PI[[#This Row],[Input 1]],Table_PI[[#This Row],[Input 2]],Table_PI[[#This Row],[Input 3]],Table_PI[[#This Row],[Input 4]],'Customer Information'!$AR$12,100,ROW())<>0,MeasureCalc(Table_PI[[#This Row],[Hide:\nFormula Name]],Table_SummaryPI[[#This Row],[Quantity]],Table_PI[[#This Row],[List 1]],Table_PI[[#This Row],[List 2]],Table_PI[[#This Row],[List 3]],Table_PI[[#This Row],[Size]],Table_PI[[#This Row],[Input 1]],Table_PI[[#This Row],[Input 2]],Table_PI[[#This Row],[Input 3]],Table_PI[[#This Row],[Input 4]],'Customer Information'!$AR$12,100,ROW())<>\"No Rebate\"),MeasureCalc(Table_PI[[#This Row],[Hide:\nFormula Name]],Table_SummaryPI[[#This Row],[Quantity]],Table_PI[[#This Row],[List 1]],Table_PI[[#This Row],[List 2]],Table_PI[[#This Row],[List 3]],Table_PI[[#This Row],[Size]],Table_PI[[#This Row],[Input 1]],Table_PI[[#This Row],[Input 2]],Table_PI[[#This Row],[Input 3]],Table_PI[[#This Row],[Input 4]],'Customer Information'!$AR$12,100,ROW()),\"\"),\"\")","v":""},{"$f":"IF(Table_PI[[#This Row],[Input 1]]<>\"\",Table_PI[[#This Row],[Input 1]],\"\")","v":""},null,{"$f":"IFERROR(IF(AND(MeasureCalc(Table_PI[[#This Row],[Hide:\nFormula Name]],Table_SummaryPI[[#This Row],[Quantity]],Table_PI[[#This Row],[List 1]],Table_PI[[#This Row],[List 2]],Table_PI[[#This Row],[List 3]],Table_PI[[#This Row],[Size]],Table_PI[[#This Row],[Input 1]],Table_PI[[#This Row],[Input 2]],Table_PI[[#This Row],[Input 3]],Table_PI[[#This Row],[Input 4]],'Customer Information'!$AR$12,101,ROW())<>0,MeasureCalc(Table_PI[[#This Row],[Hide:\nFormula Name]],Table_SummaryPI[[#This Row],[Quantity]],Table_PI[[#This Row],[List 1]],Table_PI[[#This Row],[List 2]],Table_PI[[#This Row],[List 3]],Table_PI[[#This Row],[Size]],Table_PI[[#This Row],[Input 1]],Table_PI[[#This Row],[Input 2]],Table_PI[[#This Row],[Input 3]],Table_PI[[#This Row],[Input 4]],'Customer Information'!$AR$12,101,ROW())<>\"No Rebate\"),MeasureCalc(Table_PI[[#This Row],[Hide:\nFormula Name]],Table_SummaryPI[[#This Row],[Quantity]],Table_PI[[#This Row],[List 1]],Table_PI[[#This Row],[List 2]],Table_PI[[#This Row],[List 3]],Table_PI[[#This Row],[Size]],Table_PI[[#This Row],[Input 1]],Table_PI[[#This Row],[Input 2]],Table_PI[[#This Row],[Input 3]],Table_PI[[#This Row],[Input 4]],'Customer Information'!$AR$12,101,ROW()),\"\"),\"\")","v":""},{"$f":"IF(Table_PI[[#This Row],[Input 2]]<>\"\",Table_PI[[#This Row],[Input 2]],\"\")","v":""},null,{"$f":"IFERROR(IF(AND(MeasureCalc(Table_PI[[#This Row],[Hide:\nFormula Name]],Table_SummaryPI[[#This Row],[Quantity]],Table_PI[[#This Row],[List 1]],Table_PI[[#This Row],[List 2]],Table_PI[[#This Row],[List 3]],Table_PI[[#This Row],[Size]],Table_PI[[#This Row],[Input 1]],Table_PI[[#This Row],[Input 2]],Table_PI[[#This Row],[Input 3]],Table_PI[[#This Row],[Input 4]],'Customer Information'!$AR$12,102,ROW())<>0,MeasureCalc(Table_PI[[#This Row],[Hide:\nFormula Name]],Table_SummaryPI[[#This Row],[Quantity]],Table_PI[[#This Row],[List 1]],Table_PI[[#This Row],[List 2]],Table_PI[[#This Row],[List 3]],Table_PI[[#This Row],[Size]],Table_PI[[#This Row],[Input 1]],Table_PI[[#This Row],[Input 2]],Table_PI[[#This Row],[Input 3]],Table_PI[[#This Row],[Input 4]],'Customer Information'!$AR$12,102,ROW())<>\"No Rebate\"),MeasureCalc(Table_PI[[#This Row],[Hide:\nFormula Name]],Table_SummaryPI[[#This Row],[Quantity]],Table_PI[[#This Row],[List 1]],Table_PI[[#This Row],[List 2]],Table_PI[[#This Row],[List 3]],Table_PI[[#This Row],[Size]],Table_PI[[#This Row],[Input 1]],Table_PI[[#This Row],[Input 2]],Table_PI[[#This Row],[Input 3]],Table_PI[[#This Row],[Input 4]],'Customer Information'!$AR$12,102,ROW()),\"\"),\"\")","v":""},{"$f":"IF(Table_PI[[#This Row],[Input 3]]<>\"\",Table_PI[[#This Row],[Input 3]],\"\")","v":""},null,{"$f":"IFERROR(IF(AND(MeasureCalc(Table_PI[[#This Row],[Hide:\nFormula Name]],Table_SummaryPI[[#This Row],[Quantity]],Table_PI[[#This Row],[List 1]],Table_PI[[#This Row],[List 2]],Table_PI[[#This Row],[List 3]],Table_PI[[#This Row],[Size]],Table_PI[[#This Row],[Input 1]],Table_PI[[#This Row],[Input 2]],Table_PI[[#This Row],[Input 3]],Table_PI[[#This Row],[Input 4]],'Customer Information'!$AR$12,103,ROW())<>0,MeasureCalc(Table_PI[[#This Row],[Hide:\nFormula Name]],Table_SummaryPI[[#This Row],[Quantity]],Table_PI[[#This Row],[List 1]],Table_PI[[#This Row],[List 2]],Table_PI[[#This Row],[List 3]],Table_PI[[#This Row],[Size]],Table_PI[[#This Row],[Input 1]],Table_PI[[#This Row],[Input 2]],Table_PI[[#This Row],[Input 3]],Table_PI[[#This Row],[Input 4]],'Customer Information'!$AR$12,103,ROW())<>\"No Rebate\"),MeasureCalc(Table_PI[[#This Row],[Hide:\nFormula Name]],Table_SummaryPI[[#This Row],[Quantity]],Table_PI[[#This Row],[List 1]],Table_PI[[#This Row],[List 2]],Table_PI[[#This Row],[List 3]],Table_PI[[#This Row],[Size]],Table_PI[[#This Row],[Input 1]],Table_PI[[#This Row],[Input 2]],Table_PI[[#This Row],[Input 3]],Table_PI[[#This Row],[Input 4]],'Customer Information'!$AR$12,103,ROW()),\"\"),\"\")","v":""},{"$f":"IF(Table_PI[[#This Row],[Input 4]]<>\"\",Table_PI[[#This Row],[Input 4]],\"\")","v":""},{"$f":"IF(Table_PI[[#This Row],[Quantity]]=\"\",\"\",Table_PI[[#This Row],[Quantity]])","v":""},{"$f":"IF(Table_PI[[#This Row],[Notes]]=\"\",\"\",Table_PI[[#This Row],[Notes]])","v":""},{"$f":"IF(OR(Table_PI[[#This Row],[Hide:\nBaseline kWh]]=\"\",Table_PI[[#This Row],[Hide:\nBaseline kWh]]=0),\"\",Table_PI[[#This Row],[Hide:\nBaseline kWh]])","v":""},{"$f":"IF(OR(Table_PI[[#This Row],[Hide:\nBaseline kW]]=\"\",Table_PI[[#This Row],[Hide:\nBaseline kW]]=0),\"\",Table_PI[[#This Row],[Hide:\nBaseline kW]])","v":""},{"$f":"IF(OR(Table_PI[[#This Row],[Hide:\nProposed kWh]]=\"\",Table_PI[[#This Row],[Hide:\nProposed kWh]]=0),\"\",Table_PI[[#This Row],[Hide:\nProposed kWh]])","v":""},{"$f":"IF(OR(Table_PI[[#This Row],[Hide:\nProposed kW]]=\"\",Table_PI[[#This Row],[Hide:\nProposed kW]]=0),\"\",Table_PI[[#This Row],[Hide:\nProposed kW]])","v":""},{"$f":"IF(OR(Table_PI[[#This Row],[Rebate]]=\"\",Table_PI[[#This Row],[Rebate]]=0),\"\",Table_PI[[#This Row],[Rebate]])","v":""},{"$f":"IF(OR(Table_PI[[#This Row],[Hide:\nIncremental Cost]]=\"\",Table_PI[[#This Row],[Hide:\nIncremental Cost]]=0),\"\",Table_PI[[#This Row],[Hide:\nIncremental Cost]])","v":""},{"$f":"IFERROR(IF(Table_SummaryPI[[#This Row],[kWhSavings]]=\"\",\"\",ROUND(Table_SummaryPI[[#This Row],[kWhSavings]]/$AG$401*'Customer Information'!$BC$17,2)),0)","v":""},{"$f":"IF(OR(Table_PI[[#This Row],[Annual kWh]]=\"\",Table_PI[[#This Row],[Annual kWh]]=0),\"\",Table_PI[[#This Row],[Annual kWh]])","v":""},{"$f":"IF(OR(Table_PI[[#This Row],[Peak kW]]=\"\",Table_PI[[#This Row],[Peak kW]]=0),\"\",Table_PI[[#This Row],[Peak kW]])","v":""},{"$f":"IFERROR(IF(Table_SummaryPI[[#This Row],[kWhSavings]]=\"\",\"\",$AU$9*Table_SummaryPI[[#This Row],[kWhSavings]]),0)","v":""},{"$f":"IFERROR(IF(Table_SummaryPI[[#This Row],[kWhSavings]]=\"\",\"\",$AU$14*Table_SummaryPI[[#This Row],[kWhSavings]]),0)","v":""},{"$f":"IFERROR(IF(Table_SummaryPI[[#This Row],[kWhSavings]]=\"\",\"\",$AU$18*Table_SummaryPI[[#This Row],[kWhSavings]]),0)","v":""},{"$f":"IFERROR(IF(Table_SummaryPI[[#This Row],[kWhSavings]]=\"\",\"\",$AU$22*Table_SummaryPI[[#This Row],[kWhSavings]]),0)","v":""},{"$f":"IFERROR(IF(MeasureCalc(Table_PI[[#This Row],[Hide:\nFormula Name]],Table_SummaryPI[[#This Row],[Quantity]],Table_PI[[#This Row],[List 1]],Table_PI[[#This Row],[List 2]],Table_PI[[#This Row],[List 3]],Table_PI[[#This Row],[Size]],Table_PI[[#This Row],[Input 1]],Table_PI[[#This Row],[Input 2]],Table_PI[[#This Row],[Input 3]],Table_PI[[#This Row],[Input 4]],'Customer Information'!$AR$12,200,ROW())<>\"No Rebate\",MeasureCalc(Table_PI[[#This Row],[Hide:\nFormula Name]],Table_SummaryPI[[#This Row],[Quantity]],Table_PI[[#This Row],[List 1]],Table_PI[[#This Row],[List 2]],Table_PI[[#This Row],[List 3]],Table_PI[[#This Row],[Size]],Table_PI[[#This Row],[Input 1]],Table_PI[[#This Row],[Input 2]],Table_PI[[#This Row],[Input 3]],Table_PI[[#This Row],[Input 4]],'Customer Information'!$AR$12,200,ROW()),\"\"),\"\")","v":""},{"$f":"IFERROR(IF(MeasureCalc(Table_PI[[#This Row],[Hide:\nFormula Name]],Table_SummaryPI[[#This Row],[Quantity]],Table_PI[[#This Row],[List 1]],Table_PI[[#This Row],[List 2]],Table_PI[[#This Row],[List 3]],Table_PI[[#This Row],[Size]],Table_PI[[#This Row],[Input 1]],Table_PI[[#This Row],[Input 2]],Table_PI[[#This Row],[Input 3]],Table_PI[[#This Row],[Input 4]],'Customer Information'!$AR$12,201,ROW())<>\"No Rebate\",MeasureCalc(Table_PI[[#This Row],[Hide:\nFormula Name]],Table_SummaryPI[[#This Row],[Quantity]],Table_PI[[#This Row],[List 1]],Table_PI[[#This Row],[List 2]],Table_PI[[#This Row],[List 3]],Table_PI[[#This Row],[Size]],Table_PI[[#This Row],[Input 1]],Table_PI[[#This Row],[Input 2]],Table_PI[[#This Row],[Input 3]],Table_PI[[#This Row],[Input 4]],'Customer Information'!$AR$12,201,ROW()),\"\"),\"\")","v":""}]
[{"$f":"Table_PI[[#This Row],[Line No.]]","v":""},{"$f":"IF(Table_SummaryPI[[#This Row],[MeassureCategory]]<>\"\",CONCATENATE(Table_SummaryPI[[#This Row],[MeassureCategory]],  \" - \", Table_SummaryPI[[#This Row],[ProposedMeasureCategory]],  \" - \", TEXT(Table_SummaryPI[[#This Row],[Size]],\"#,##0.00\"),\" \",Table_SummaryPI[[#This Row],[SizeUnit]]),\"\")","v":""},{"$f":"SUBSTITUTE(Table_PI[[#This Row],[Measure]],\"     \",\"\",1)","v":""},{"$f":"IF(Table_PI[[#This Row],[List 1]]<>\"\",Table_PI[[#This Row],[List 1]],\"\")","v":""},{"$f":"IF(Table_PI[[#This Row],[List 2]]<>\"\",Table_PI[[#This Row],[List 2]],\"\")","v":""},{"$f":"IF(Table_PI[[#This Row],[List 3]]<>\"\",Table_PI[[#This Row],[List 3]],\"\")","v":""},{"$f":"IF(Table_PI[[#This Row],[Manufacturer]]=\"\",\"\",Table_PI[[#This Row],[Manufacturer]])","v":""},{"$f":"IF(Table_PI[[#This Row],[Model Number]]=\"\",\"\",Table_PI[[#This Row],[Model Number]])","v":""},{"$f":"IF(Table_PI[[#This Row],[Serial Number(s)]]=\"\",\"\",Table_PI[[#This Row],[Serial Number(s)]])","v":""},null,{"$f":"IF(Table_PI[[#This Row],[Size]]=\"\",\"\",Table_PI[[#This Row],[Size]])","v":""},null,{"$f":"IFERROR(IF(AND(MeasureCalc(Table_PI[[#This Row],[Hide:\nFormula Name]],Table_SummaryPI[[#This Row],[Quantity]],Table_PI[[#This Row],[List 1]],Table_PI[[#This Row],[List 2]],Table_PI[[#This Row],[List 3]],Table_PI[[#This Row],[Size]],Table_PI[[#This Row],[Input 1]],Table_PI[[#This Row],[Input 2]],Table_PI[[#This Row],[Input 3]],Table_PI[[#This Row],[Input 4]],'Customer Information'!$AR$12,100,ROW())<>0,MeasureCalc(Table_PI[[#This Row],[Hide:\nFormula Name]],Table_SummaryPI[[#This Row],[Quantity]],Table_PI[[#This Row],[List 1]],Table_PI[[#This Row],[List 2]],Table_PI[[#This Row],[List 3]],Table_PI[[#This Row],[Size]],Table_PI[[#This Row],[Input 1]],Table_PI[[#This Row],[Input 2]],Table_PI[[#This Row],[Input 3]],Table_PI[[#This Row],[Input 4]],'Customer Information'!$AR$12,100,ROW())<>\"No Rebate\"),MeasureCalc(Table_PI[[#This Row],[Hide:\nFormula Name]],Table_SummaryPI[[#This Row],[Quantity]],Table_PI[[#This Row],[List 1]],Table_PI[[#This Row],[List 2]],Table_PI[[#This Row],[List 3]],Table_PI[[#This Row],[Size]],Table_PI[[#This Row],[Input 1]],Table_PI[[#This Row],[Input 2]],Table_PI[[#This Row],[Input 3]],Table_PI[[#This Row],[Input 4]],'Customer Information'!$AR$12,100,ROW()),\"\"),\"\")","v":""},{"$f":"IF(Table_PI[[#This Row],[Input 1]]<>\"\",Table_PI[[#This Row],[Input 1]],\"\")","v":""},null,{"$f":"IFERROR(IF(AND(MeasureCalc(Table_PI[[#This Row],[Hide:\nFormula Name]],Table_SummaryPI[[#This Row],[Quantity]],Table_PI[[#This Row],[List 1]],Table_PI[[#This Row],[List 2]],Table_PI[[#This Row],[List 3]],Table_PI[[#This Row],[Size]],Table_PI[[#This Row],[Input 1]],Table_PI[[#This Row],[Input 2]],Table_PI[[#This Row],[Input 3]],Table_PI[[#This Row],[Input 4]],'Customer Information'!$AR$12,101,ROW())<>0,MeasureCalc(Table_PI[[#This Row],[Hide:\nFormula Name]],Table_SummaryPI[[#This Row],[Quantity]],Table_PI[[#This Row],[List 1]],Table_PI[[#This Row],[List 2]],Table_PI[[#This Row],[List 3]],Table_PI[[#This Row],[Size]],Table_PI[[#This Row],[Input 1]],Table_PI[[#This Row],[Input 2]],Table_PI[[#This Row],[Input 3]],Table_PI[[#This Row],[Input 4]],'Customer Information'!$AR$12,101,ROW())<>\"No Rebate\"),MeasureCalc(Table_PI[[#This Row],[Hide:\nFormula Name]],Table_SummaryPI[[#This Row],[Quantity]],Table_PI[[#This Row],[List 1]],Table_PI[[#This Row],[List 2]],Table_PI[[#This Row],[List 3]],Table_PI[[#This Row],[Size]],Table_PI[[#This Row],[Input 1]],Table_PI[[#This Row],[Input 2]],Table_PI[[#This Row],[Input 3]],Table_PI[[#This Row],[Input 4]],'Customer Information'!$AR$12,101,ROW()),\"\"),\"\")","v":""},{"$f":"IF(Table_PI[[#This Row],[Input 2]]<>\"\",Table_PI[[#This Row],[Input 2]],\"\")","v":""},null,{"$f":"IFERROR(IF(AND(MeasureCalc(Table_PI[[#This Row],[Hide:\nFormula Name]],Table_SummaryPI[[#This Row],[Quantity]],Table_PI[[#This Row],[List 1]],Table_PI[[#This Row],[List 2]],Table_PI[[#This Row],[List 3]],Table_PI[[#This Row],[Size]],Table_PI[[#This Row],[Input 1]],Table_PI[[#This Row],[Input 2]],Table_PI[[#This Row],[Input 3]],Table_PI[[#This Row],[Input 4]],'Customer Information'!$AR$12,102,ROW())<>0,MeasureCalc(Table_PI[[#This Row],[Hide:\nFormula Name]],Table_SummaryPI[[#This Row],[Quantity]],Table_PI[[#This Row],[List 1]],Table_PI[[#This Row],[List 2]],Table_PI[[#This Row],[List 3]],Table_PI[[#This Row],[Size]],Table_PI[[#This Row],[Input 1]],Table_PI[[#This Row],[Input 2]],Table_PI[[#This Row],[Input 3]],Table_PI[[#This Row],[Input 4]],'Customer Information'!$AR$12,102,ROW())<>\"No Rebate\"),MeasureCalc(Table_PI[[#This Row],[Hide:\nFormula Name]],Table_SummaryPI[[#This Row],[Quantity]],Table_PI[[#This Row],[List 1]],Table_PI[[#This Row],[List 2]],Table_PI[[#This Row],[List 3]],Table_PI[[#This Row],[Size]],Table_PI[[#This Row],[Input 1]],Table_PI[[#This Row],[Input 2]],Table_PI[[#This Row],[Input 3]],Table_PI[[#This Row],[Input 4]],'Customer Information'!$AR$12,102,ROW()),\"\"),\"\")","v":""},{"$f":"IF(Table_PI[[#This Row],[Input 3]]<>\"\",Table_PI[[#This Row],[Input 3]],\"\")","v":""},null,{"$f":"IFERROR(IF(AND(MeasureCalc(Table_PI[[#This Row],[Hide:\nFormula Name]],Table_SummaryPI[[#This Row],[Quantity]],Table_PI[[#This Row],[List 1]],Table_PI[[#This Row],[List 2]],Table_PI[[#This Row],[List 3]],Table_PI[[#This Row],[Size]],Table_PI[[#This Row],[Input 1]],Table_PI[[#This Row],[Input 2]],Table_PI[[#This Row],[Input 3]],Table_PI[[#This Row],[Input 4]],'Customer Information'!$AR$12,103,ROW())<>0,MeasureCalc(Table_PI[[#This Row],[Hide:\nFormula Name]],Table_SummaryPI[[#This Row],[Quantity]],Table_PI[[#This Row],[List 1]],Table_PI[[#This Row],[List 2]],Table_PI[[#This Row],[List 3]],Table_PI[[#This Row],[Size]],Table_PI[[#This Row],[Input 1]],Table_PI[[#This Row],[Input 2]],Table_PI[[#This Row],[Input 3]],Table_PI[[#This Row],[Input 4]],'Customer Information'!$AR$12,103,ROW())<>\"No Rebate\"),MeasureCalc(Table_PI[[#This Row],[Hide:\nFormula Name]],Table_SummaryPI[[#This Row],[Quantity]],Table_PI[[#This Row],[List 1]],Table_PI[[#This Row],[List 2]],Table_PI[[#This Row],[List 3]],Table_PI[[#This Row],[Size]],Table_PI[[#This Row],[Input 1]],Table_PI[[#This Row],[Input 2]],Table_PI[[#This Row],[Input 3]],Table_PI[[#This Row],[Input 4]],'Customer Information'!$AR$12,103,ROW()),\"\"),\"\")","v":""},{"$f":"IF(Table_PI[[#This Row],[Input 4]]<>\"\",Table_PI[[#This Row],[Input 4]],\"\")","v":""},{"$f":"IF(Table_PI[[#This Row],[Quantity]]=\"\",\"\",Table_PI[[#This Row],[Quantity]])","v":""},{"$f":"IF(Table_PI[[#This Row],[Notes]]=\"\",\"\",Table_PI[[#This Row],[Notes]])","v":""},{"$f":"IF(OR(Table_PI[[#This Row],[Hide:\nBaseline kWh]]=\"\",Table_PI[[#This Row],[Hide:\nBaseline kWh]]=0),\"\",Table_PI[[#This Row],[Hide:\nBaseline kWh]])","v":""},{"$f":"IF(OR(Table_PI[[#This Row],[Hide:\nBaseline kW]]=\"\",Table_PI[[#This Row],[Hide:\nBaseline kW]]=0),\"\",Table_PI[[#This Row],[Hide:\nBaseline kW]])","v":""},{"$f":"IF(OR(Table_PI[[#This Row],[Hide:\nProposed kWh]]=\"\",Table_PI[[#This Row],[Hide:\nProposed kWh]]=0),\"\",Table_PI[[#This Row],[Hide:\nProposed kWh]])","v":""},{"$f":"IF(OR(Table_PI[[#This Row],[Hide:\nProposed kW]]=\"\",Table_PI[[#This Row],[Hide:\nProposed kW]]=0),\"\",Table_PI[[#This Row],[Hide:\nProposed kW]])","v":""},{"$f":"IF(OR(Table_PI[[#This Row],[Rebate]]=\"\",Table_PI[[#This Row],[Rebate]]=0),\"\",Table_PI[[#This Row],[Rebate]])","v":""},{"$f":"IF(OR(Table_PI[[#This Row],[Hide:\nIncremental Cost]]=\"\",Table_PI[[#This Row],[Hide:\nIncremental Cost]]=0),\"\",Table_PI[[#This Row],[Hide:\nIncremental Cost]])","v":""},{"$f":"IFERROR(IF(Table_SummaryPI[[#This Row],[kWhSavings]]=\"\",\"\",ROUND(Table_SummaryPI[[#This Row],[kWhSavings]]/$AG$401*'Customer Information'!$BC$17,2)),0)","v":""},{"$f":"IF(OR(Table_PI[[#This Row],[Annual kWh]]=\"\",Table_PI[[#This Row],[Annual kWh]]=0),\"\",Table_PI[[#This Row],[Annual kWh]])","v":""},{"$f":"IF(OR(Table_PI[[#This Row],[Peak kW]]=\"\",Table_PI[[#This Row],[Peak kW]]=0),\"\",Table_PI[[#This Row],[Peak kW]])","v":""},{"$f":"IFERROR(IF(Table_SummaryPI[[#This Row],[kWhSavings]]=\"\",\"\",$AU$9*Table_SummaryPI[[#This Row],[kWhSavings]]),0)","v":""},{"$f":"IFERROR(IF(Table_SummaryPI[[#This Row],[kWhSavings]]=\"\",\"\",$AU$14*Table_SummaryPI[[#This Row],[kWhSavings]]),0)","v":""},{"$f":"IFERROR(IF(Table_SummaryPI[[#This Row],[kWhSavings]]=\"\",\"\",$AU$18*Table_SummaryPI[[#This Row],[kWhSavings]]),0)","v":""},{"$f":"IFERROR(IF(Table_SummaryPI[[#This Row],[kWhSavings]]=\"\",\"\",$AU$22*Table_SummaryPI[[#This Row],[kWhSavings]]),0)","v":""},{"$f":"IFERROR(IF(MeasureCalc(Table_PI[[#This Row],[Hide:\nFormula Name]],Table_SummaryPI[[#This Row],[Quantity]],Table_PI[[#This Row],[List 1]],Table_PI[[#This Row],[List 2]],Table_PI[[#This Row],[List 3]],Table_PI[[#This Row],[Size]],Table_PI[[#This Row],[Input 1]],Table_PI[[#This Row],[Input 2]],Table_PI[[#This Row],[Input 3]],Table_PI[[#This Row],[Input 4]],'Customer Information'!$AR$12,200,ROW())<>\"No Rebate\",MeasureCalc(Table_PI[[#This Row],[Hide:\nFormula Name]],Table_SummaryPI[[#This Row],[Quantity]],Table_PI[[#This Row],[List 1]],Table_PI[[#This Row],[List 2]],Table_PI[[#This Row],[List 3]],Table_PI[[#This Row],[Size]],Table_PI[[#This Row],[Input 1]],Table_PI[[#This Row],[Input 2]],Table_PI[[#This Row],[Input 3]],Table_PI[[#This Row],[Input 4]],'Customer Information'!$AR$12,200,ROW()),\"\"),\"\")","v":""},{"$f":"IFERROR(IF(MeasureCalc(Table_PI[[#This Row],[Hide:\nFormula Name]],Table_SummaryPI[[#This Row],[Quantity]],Table_PI[[#This Row],[List 1]],Table_PI[[#This Row],[List 2]],Table_PI[[#This Row],[List 3]],Table_PI[[#This Row],[Size]],Table_PI[[#This Row],[Input 1]],Table_PI[[#This Row],[Input 2]],Table_PI[[#This Row],[Input 3]],Table_PI[[#This Row],[Input 4]],'Customer Information'!$AR$12,201,ROW())<>\"No Rebate\",MeasureCalc(Table_PI[[#This Row],[Hide:\nFormula Name]],Table_SummaryPI[[#This Row],[Quantity]],Table_PI[[#This Row],[List 1]],Table_PI[[#This Row],[List 2]],Table_PI[[#This Row],[List 3]],Table_PI[[#This Row],[Size]],Table_PI[[#This Row],[Input 1]],Table_PI[[#This Row],[Input 2]],Table_PI[[#This Row],[Input 3]],Table_PI[[#This Row],[Input 4]],'Customer Information'!$AR$12,201,ROW()),\"\"),\"\")","v":""}]
[{"$f":"Table_PI[[#This Row],[Line No.]]","v":""},{"$f":"IF(Table_SummaryPI[[#This Row],[MeassureCategory]]<>\"\",CONCATENATE(Table_SummaryPI[[#This Row],[MeassureCategory]],  \" - \", Table_SummaryPI[[#This Row],[ProposedMeasureCategory]],  \" - \", TEXT(Table_SummaryPI[[#This Row],[Size]],\"#,##0.00\"),\" \",Table_SummaryPI[[#This Row],[SizeUnit]]),\"\")","v":""},{"$f":"SUBSTITUTE(Table_PI[[#This Row],[Measure]],\"     \",\"\",1)","v":""},{"$f":"IF(Table_PI[[#This Row],[List 1]]<>\"\",Table_PI[[#This Row],[List 1]],\"\")","v":""},{"$f":"IF(Table_PI[[#This Row],[List 2]]<>\"\",Table_PI[[#This Row],[List 2]],\"\")","v":""},{"$f":"IF(Table_PI[[#This Row],[List 3]]<>\"\",Table_PI[[#This Row],[List 3]],\"\")","v":""},{"$f":"IF(Table_PI[[#This Row],[Manufacturer]]=\"\",\"\",Table_PI[[#This Row],[Manufacturer]])","v":""},{"$f":"IF(Table_PI[[#This Row],[Model Number]]=\"\",\"\",Table_PI[[#This Row],[Model Number]])","v":""},{"$f":"IF(Table_PI[[#This Row],[Serial Number(s)]]=\"\",\"\",Table_PI[[#This Row],[Serial Number(s)]])","v":""},null,{"$f":"IF(Table_PI[[#This Row],[Size]]=\"\",\"\",Table_PI[[#This Row],[Size]])","v":""},null,{"$f":"IFERROR(IF(AND(MeasureCalc(Table_PI[[#This Row],[Hide:\nFormula Name]],Table_SummaryPI[[#This Row],[Quantity]],Table_PI[[#This Row],[List 1]],Table_PI[[#This Row],[List 2]],Table_PI[[#This Row],[List 3]],Table_PI[[#This Row],[Size]],Table_PI[[#This Row],[Input 1]],Table_PI[[#This Row],[Input 2]],Table_PI[[#This Row],[Input 3]],Table_PI[[#This Row],[Input 4]],'Customer Information'!$AR$12,100,ROW())<>0,MeasureCalc(Table_PI[[#This Row],[Hide:\nFormula Name]],Table_SummaryPI[[#This Row],[Quantity]],Table_PI[[#This Row],[List 1]],Table_PI[[#This Row],[List 2]],Table_PI[[#This Row],[List 3]],Table_PI[[#This Row],[Size]],Table_PI[[#This Row],[Input 1]],Table_PI[[#This Row],[Input 2]],Table_PI[[#This Row],[Input 3]],Table_PI[[#This Row],[Input 4]],'Customer Information'!$AR$12,100,ROW())<>\"No Rebate\"),MeasureCalc(Table_PI[[#This Row],[Hide:\nFormula Name]],Table_SummaryPI[[#This Row],[Quantity]],Table_PI[[#This Row],[List 1]],Table_PI[[#This Row],[List 2]],Table_PI[[#This Row],[List 3]],Table_PI[[#This Row],[Size]],Table_PI[[#This Row],[Input 1]],Table_PI[[#This Row],[Input 2]],Table_PI[[#This Row],[Input 3]],Table_PI[[#This Row],[Input 4]],'Customer Information'!$AR$12,100,ROW()),\"\"),\"\")","v":""},{"$f":"IF(Table_PI[[#This Row],[Input 1]]<>\"\",Table_PI[[#This Row],[Input 1]],\"\")","v":""},null,{"$f":"IFERROR(IF(AND(MeasureCalc(Table_PI[[#This Row],[Hide:\nFormula Name]],Table_SummaryPI[[#This Row],[Quantity]],Table_PI[[#This Row],[List 1]],Table_PI[[#This Row],[List 2]],Table_PI[[#This Row],[List 3]],Table_PI[[#This Row],[Size]],Table_PI[[#This Row],[Input 1]],Table_PI[[#This Row],[Input 2]],Table_PI[[#This Row],[Input 3]],Table_PI[[#This Row],[Input 4]],'Customer Information'!$AR$12,101,ROW())<>0,MeasureCalc(Table_PI[[#This Row],[Hide:\nFormula Name]],Table_SummaryPI[[#This Row],[Quantity]],Table_PI[[#This Row],[List 1]],Table_PI[[#This Row],[List 2]],Table_PI[[#This Row],[List 3]],Table_PI[[#This Row],[Size]],Table_PI[[#This Row],[Input 1]],Table_PI[[#This Row],[Input 2]],Table_PI[[#This Row],[Input 3]],Table_PI[[#This Row],[Input 4]],'Customer Information'!$AR$12,101,ROW())<>\"No Rebate\"),MeasureCalc(Table_PI[[#This Row],[Hide:\nFormula Name]],Table_SummaryPI[[#This Row],[Quantity]],Table_PI[[#This Row],[List 1]],Table_PI[[#This Row],[List 2]],Table_PI[[#This Row],[List 3]],Table_PI[[#This Row],[Size]],Table_PI[[#This Row],[Input 1]],Table_PI[[#This Row],[Input 2]],Table_PI[[#This Row],[Input 3]],Table_PI[[#This Row],[Input 4]],'Customer Information'!$AR$12,101,ROW()),\"\"),\"\")","v":""},{"$f":"IF(Table_PI[[#This Row],[Input 2]]<>\"\",Table_PI[[#This Row],[Input 2]],\"\")","v":""},null,{"$f":"IFERROR(IF(AND(MeasureCalc(Table_PI[[#This Row],[Hide:\nFormula Name]],Table_SummaryPI[[#This Row],[Quantity]],Table_PI[[#This Row],[List 1]],Table_PI[[#This Row],[List 2]],Table_PI[[#This Row],[List 3]],Table_PI[[#This Row],[Size]],Table_PI[[#This Row],[Input 1]],Table_PI[[#This Row],[Input 2]],Table_PI[[#This Row],[Input 3]],Table_PI[[#This Row],[Input 4]],'Customer Information'!$AR$12,102,ROW())<>0,MeasureCalc(Table_PI[[#This Row],[Hide:\nFormula Name]],Table_SummaryPI[[#This Row],[Quantity]],Table_PI[[#This Row],[List 1]],Table_PI[[#This Row],[List 2]],Table_PI[[#This Row],[List 3]],Table_PI[[#This Row],[Size]],Table_PI[[#This Row],[Input 1]],Table_PI[[#This Row],[Input 2]],Table_PI[[#This Row],[Input 3]],Table_PI[[#This Row],[Input 4]],'Customer Information'!$AR$12,102,ROW())<>\"No Rebate\"),MeasureCalc(Table_PI[[#This Row],[Hide:\nFormula Name]],Table_SummaryPI[[#This Row],[Quantity]],Table_PI[[#This Row],[List 1]],Table_PI[[#This Row],[List 2]],Table_PI[[#This Row],[List 3]],Table_PI[[#This Row],[Size]],Table_PI[[#This Row],[Input 1]],Table_PI[[#This Row],[Input 2]],Table_PI[[#This Row],[Input 3]],Table_PI[[#This Row],[Input 4]],'Customer Information'!$AR$12,102,ROW()),\"\"),\"\")","v":""},{"$f":"IF(Table_PI[[#This Row],[Input 3]]<>\"\",Table_PI[[#This Row],[Input 3]],\"\")","v":""},null,{"$f":"IFERROR(IF(AND(MeasureCalc(Table_PI[[#This Row],[Hide:\nFormula Name]],Table_SummaryPI[[#This Row],[Quantity]],Table_PI[[#This Row],[List 1]],Table_PI[[#This Row],[List 2]],Table_PI[[#This Row],[List 3]],Table_PI[[#This Row],[Size]],Table_PI[[#This Row],[Input 1]],Table_PI[[#This Row],[Input 2]],Table_PI[[#This Row],[Input 3]],Table_PI[[#This Row],[Input 4]],'Customer Information'!$AR$12,103,ROW())<>0,MeasureCalc(Table_PI[[#This Row],[Hide:\nFormula Name]],Table_SummaryPI[[#This Row],[Quantity]],Table_PI[[#This Row],[List 1]],Table_PI[[#This Row],[List 2]],Table_PI[[#This Row],[List 3]],Table_PI[[#This Row],[Size]],Table_PI[[#This Row],[Input 1]],Table_PI[[#This Row],[Input 2]],Table_PI[[#This Row],[Input 3]],Table_PI[[#This Row],[Input 4]],'Customer Information'!$AR$12,103,ROW())<>\"No Rebate\"),MeasureCalc(Table_PI[[#This Row],[Hide:\nFormula Name]],Table_SummaryPI[[#This Row],[Quantity]],Table_PI[[#This Row],[List 1]],Table_PI[[#This Row],[List 2]],Table_PI[[#This Row],[List 3]],Table_PI[[#This Row],[Size]],Table_PI[[#This Row],[Input 1]],Table_PI[[#This Row],[Input 2]],Table_PI[[#This Row],[Input 3]],Table_PI[[#This Row],[Input 4]],'Customer Information'!$AR$12,103,ROW()),\"\"),\"\")","v":""},{"$f":"IF(Table_PI[[#This Row],[Input 4]]<>\"\",Table_PI[[#This Row],[Input 4]],\"\")","v":""},{"$f":"IF(Table_PI[[#This Row],[Quantity]]=\"\",\"\",Table_PI[[#This Row],[Quantity]])","v":""},{"$f":"IF(Table_PI[[#This Row],[Notes]]=\"\",\"\",Table_PI[[#This Row],[Notes]])","v":""},{"$f":"IF(OR(Table_PI[[#This Row],[Hide:\nBaseline kWh]]=\"\",Table_PI[[#This Row],[Hide:\nBaseline kWh]]=0),\"\",Table_PI[[#This Row],[Hide:\nBaseline kWh]])","v":""},{"$f":"IF(OR(Table_PI[[#This Row],[Hide:\nBaseline kW]]=\"\",Table_PI[[#This Row],[Hide:\nBaseline kW]]=0),\"\",Table_PI[[#This Row],[Hide:\nBaseline kW]])","v":""},{"$f":"IF(OR(Table_PI[[#This Row],[Hide:\nProposed kWh]]=\"\",Table_PI[[#This Row],[Hide:\nProposed kWh]]=0),\"\",Table_PI[[#This Row],[Hide:\nProposed kWh]])","v":""},{"$f":"IF(OR(Table_PI[[#This Row],[Hide:\nProposed kW]]=\"\",Table_PI[[#This Row],[Hide:\nProposed kW]]=0),\"\",Table_PI[[#This Row],[Hide:\nProposed kW]])","v":""},{"$f":"IF(OR(Table_PI[[#This Row],[Rebate]]=\"\",Table_PI[[#This Row],[Rebate]]=0),\"\",Table_PI[[#This Row],[Rebate]])","v":""},{"$f":"IF(OR(Table_PI[[#This Row],[Hide:\nIncremental Cost]]=\"\",Table_PI[[#This Row],[Hide:\nIncremental Cost]]=0),\"\",Table_PI[[#This Row],[Hide:\nIncremental Cost]])","v":""},{"$f":"IFERROR(IF(Table_SummaryPI[[#This Row],[kWhSavings]]=\"\",\"\",ROUND(Table_SummaryPI[[#This Row],[kWhSavings]]/$AG$401*'Customer Information'!$BC$17,2)),0)","v":""},{"$f":"IF(OR(Table_PI[[#This Row],[Annual kWh]]=\"\",Table_PI[[#This Row],[Annual kWh]]=0),\"\",Table_PI[[#This Row],[Annual kWh]])","v":""},{"$f":"IF(OR(Table_PI[[#This Row],[Peak kW]]=\"\",Table_PI[[#This Row],[Peak kW]]=0),\"\",Table_PI[[#This Row],[Peak kW]])","v":""},{"$f":"IFERROR(IF(Table_SummaryPI[[#This Row],[kWhSavings]]=\"\",\"\",$AU$9*Table_SummaryPI[[#This Row],[kWhSavings]]),0)","v":""},{"$f":"IFERROR(IF(Table_SummaryPI[[#This Row],[kWhSavings]]=\"\",\"\",$AU$14*Table_SummaryPI[[#This Row],[kWhSavings]]),0)","v":""},{"$f":"IFERROR(IF(Table_SummaryPI[[#This Row],[kWhSavings]]=\"\",\"\",$AU$18*Table_SummaryPI[[#This Row],[kWhSavings]]),0)","v":""},{"$f":"IFERROR(IF(Table_SummaryPI[[#This Row],[kWhSavings]]=\"\",\"\",$AU$22*Table_SummaryPI[[#This Row],[kWhSavings]]),0)","v":""},{"$f":"IFERROR(IF(MeasureCalc(Table_PI[[#This Row],[Hide:\nFormula Name]],Table_SummaryPI[[#This Row],[Quantity]],Table_PI[[#This Row],[List 1]],Table_PI[[#This Row],[List 2]],Table_PI[[#This Row],[List 3]],Table_PI[[#This Row],[Size]],Table_PI[[#This Row],[Input 1]],Table_PI[[#This Row],[Input 2]],Table_PI[[#This Row],[Input 3]],Table_PI[[#This Row],[Input 4]],'Customer Information'!$AR$12,200,ROW())<>\"No Rebate\",MeasureCalc(Table_PI[[#This Row],[Hide:\nFormula Name]],Table_SummaryPI[[#This Row],[Quantity]],Table_PI[[#This Row],[List 1]],Table_PI[[#This Row],[List 2]],Table_PI[[#This Row],[List 3]],Table_PI[[#This Row],[Size]],Table_PI[[#This Row],[Input 1]],Table_PI[[#This Row],[Input 2]],Table_PI[[#This Row],[Input 3]],Table_PI[[#This Row],[Input 4]],'Customer Information'!$AR$12,200,ROW()),\"\"),\"\")","v":""},{"$f":"IFERROR(IF(MeasureCalc(Table_PI[[#This Row],[Hide:\nFormula Name]],Table_SummaryPI[[#This Row],[Quantity]],Table_PI[[#This Row],[List 1]],Table_PI[[#This Row],[List 2]],Table_PI[[#This Row],[List 3]],Table_PI[[#This Row],[Size]],Table_PI[[#This Row],[Input 1]],Table_PI[[#This Row],[Input 2]],Table_PI[[#This Row],[Input 3]],Table_PI[[#This Row],[Input 4]],'Customer Information'!$AR$12,201,ROW())<>\"No Rebate\",MeasureCalc(Table_PI[[#This Row],[Hide:\nFormula Name]],Table_SummaryPI[[#This Row],[Quantity]],Table_PI[[#This Row],[List 1]],Table_PI[[#This Row],[List 2]],Table_PI[[#This Row],[List 3]],Table_PI[[#This Row],[Size]],Table_PI[[#This Row],[Input 1]],Table_PI[[#This Row],[Input 2]],Table_PI[[#This Row],[Input 3]],Table_PI[[#This Row],[Input 4]],'Customer Information'!$AR$12,201,ROW()),\"\"),\"\")","v":""}]
[{"$f":"Table_PI[[#This Row],[Line No.]]","v":""},{"$f":"IF(Table_SummaryPI[[#This Row],[MeassureCategory]]<>\"\",CONCATENATE(Table_SummaryPI[[#This Row],[MeassureCategory]],  \" - \", Table_SummaryPI[[#This Row],[ProposedMeasureCategory]],  \" - \", TEXT(Table_SummaryPI[[#This Row],[Size]],\"#,##0.00\"),\" \",Table_SummaryPI[[#This Row],[SizeUnit]]),\"\")","v":""},{"$f":"SUBSTITUTE(Table_PI[[#This Row],[Measure]],\"     \",\"\",1)","v":""},{"$f":"IF(Table_PI[[#This Row],[List 1]]<>\"\",Table_PI[[#This Row],[List 1]],\"\")","v":""},{"$f":"IF(Table_PI[[#This Row],[List 2]]<>\"\",Table_PI[[#This Row],[List 2]],\"\")","v":""},{"$f":"IF(Table_PI[[#This Row],[List 3]]<>\"\",Table_PI[[#This Row],[List 3]],\"\")","v":""},{"$f":"IF(Table_PI[[#This Row],[Manufacturer]]=\"\",\"\",Table_PI[[#This Row],[Manufacturer]])","v":""},{"$f":"IF(Table_PI[[#This Row],[Model Number]]=\"\",\"\",Table_PI[[#This Row],[Model Number]])","v":""},{"$f":"IF(Table_PI[[#This Row],[Serial Number(s)]]=\"\",\"\",Table_PI[[#This Row],[Serial Number(s)]])","v":""},null,{"$f":"IF(Table_PI[[#This Row],[Size]]=\"\",\"\",Table_PI[[#This Row],[Size]])","v":""},null,{"$f":"IFERROR(IF(AND(MeasureCalc(Table_PI[[#This Row],[Hide:\nFormula Name]],Table_SummaryPI[[#This Row],[Quantity]],Table_PI[[#This Row],[List 1]],Table_PI[[#This Row],[List 2]],Table_PI[[#This Row],[List 3]],Table_PI[[#This Row],[Size]],Table_PI[[#This Row],[Input 1]],Table_PI[[#This Row],[Input 2]],Table_PI[[#This Row],[Input 3]],Table_PI[[#This Row],[Input 4]],'Customer Information'!$AR$12,100,ROW())<>0,MeasureCalc(Table_PI[[#This Row],[Hide:\nFormula Name]],Table_SummaryPI[[#This Row],[Quantity]],Table_PI[[#This Row],[List 1]],Table_PI[[#This Row],[List 2]],Table_PI[[#This Row],[List 3]],Table_PI[[#This Row],[Size]],Table_PI[[#This Row],[Input 1]],Table_PI[[#This Row],[Input 2]],Table_PI[[#This Row],[Input 3]],Table_PI[[#This Row],[Input 4]],'Customer Information'!$AR$12,100,ROW())<>\"No Rebate\"),MeasureCalc(Table_PI[[#This Row],[Hide:\nFormula Name]],Table_SummaryPI[[#This Row],[Quantity]],Table_PI[[#This Row],[List 1]],Table_PI[[#This Row],[List 2]],Table_PI[[#This Row],[List 3]],Table_PI[[#This Row],[Size]],Table_PI[[#This Row],[Input 1]],Table_PI[[#This Row],[Input 2]],Table_PI[[#This Row],[Input 3]],Table_PI[[#This Row],[Input 4]],'Customer Information'!$AR$12,100,ROW()),\"\"),\"\")","v":""},{"$f":"IF(Table_PI[[#This Row],[Input 1]]<>\"\",Table_PI[[#This Row],[Input 1]],\"\")","v":""},null,{"$f":"IFERROR(IF(AND(MeasureCalc(Table_PI[[#This Row],[Hide:\nFormula Name]],Table_SummaryPI[[#This Row],[Quantity]],Table_PI[[#This Row],[List 1]],Table_PI[[#This Row],[List 2]],Table_PI[[#This Row],[List 3]],Table_PI[[#This Row],[Size]],Table_PI[[#This Row],[Input 1]],Table_PI[[#This Row],[Input 2]],Table_PI[[#This Row],[Input 3]],Table_PI[[#This Row],[Input 4]],'Customer Information'!$AR$12,101,ROW())<>0,MeasureCalc(Table_PI[[#This Row],[Hide:\nFormula Name]],Table_SummaryPI[[#This Row],[Quantity]],Table_PI[[#This Row],[List 1]],Table_PI[[#This Row],[List 2]],Table_PI[[#This Row],[List 3]],Table_PI[[#This Row],[Size]],Table_PI[[#This Row],[Input 1]],Table_PI[[#This Row],[Input 2]],Table_PI[[#This Row],[Input 3]],Table_PI[[#This Row],[Input 4]],'Customer Information'!$AR$12,101,ROW())<>\"No Rebate\"),MeasureCalc(Table_PI[[#This Row],[Hide:\nFormula Name]],Table_SummaryPI[[#This Row],[Quantity]],Table_PI[[#This Row],[List 1]],Table_PI[[#This Row],[List 2]],Table_PI[[#This Row],[List 3]],Table_PI[[#This Row],[Size]],Table_PI[[#This Row],[Input 1]],Table_PI[[#This Row],[Input 2]],Table_PI[[#This Row],[Input 3]],Table_PI[[#This Row],[Input 4]],'Customer Information'!$AR$12,101,ROW()),\"\"),\"\")","v":""},{"$f":"IF(Table_PI[[#This Row],[Input 2]]<>\"\",Table_PI[[#This Row],[Input 2]],\"\")","v":""},null,{"$f":"IFERROR(IF(AND(MeasureCalc(Table_PI[[#This Row],[Hide:\nFormula Name]],Table_SummaryPI[[#This Row],[Quantity]],Table_PI[[#This Row],[List 1]],Table_PI[[#This Row],[List 2]],Table_PI[[#This Row],[List 3]],Table_PI[[#This Row],[Size]],Table_PI[[#This Row],[Input 1]],Table_PI[[#This Row],[Input 2]],Table_PI[[#This Row],[Input 3]],Table_PI[[#This Row],[Input 4]],'Customer Information'!$AR$12,102,ROW())<>0,MeasureCalc(Table_PI[[#This Row],[Hide:\nFormula Name]],Table_SummaryPI[[#This Row],[Quantity]],Table_PI[[#This Row],[List 1]],Table_PI[[#This Row],[List 2]],Table_PI[[#This Row],[List 3]],Table_PI[[#This Row],[Size]],Table_PI[[#This Row],[Input 1]],Table_PI[[#This Row],[Input 2]],Table_PI[[#This Row],[Input 3]],Table_PI[[#This Row],[Input 4]],'Customer Information'!$AR$12,102,ROW())<>\"No Rebate\"),MeasureCalc(Table_PI[[#This Row],[Hide:\nFormula Name]],Table_SummaryPI[[#This Row],[Quantity]],Table_PI[[#This Row],[List 1]],Table_PI[[#This Row],[List 2]],Table_PI[[#This Row],[List 3]],Table_PI[[#This Row],[Size]],Table_PI[[#This Row],[Input 1]],Table_PI[[#This Row],[Input 2]],Table_PI[[#This Row],[Input 3]],Table_PI[[#This Row],[Input 4]],'Customer Information'!$AR$12,102,ROW()),\"\"),\"\")","v":""},{"$f":"IF(Table_PI[[#This Row],[Input 3]]<>\"\",Table_PI[[#This Row],[Input 3]],\"\")","v":""},null,{"$f":"IFERROR(IF(AND(MeasureCalc(Table_PI[[#This Row],[Hide:\nFormula Name]],Table_SummaryPI[[#This Row],[Quantity]],Table_PI[[#This Row],[List 1]],Table_PI[[#This Row],[List 2]],Table_PI[[#This Row],[List 3]],Table_PI[[#This Row],[Size]],Table_PI[[#This Row],[Input 1]],Table_PI[[#This Row],[Input 2]],Table_PI[[#This Row],[Input 3]],Table_PI[[#This Row],[Input 4]],'Customer Information'!$AR$12,103,ROW())<>0,MeasureCalc(Table_PI[[#This Row],[Hide:\nFormula Name]],Table_SummaryPI[[#This Row],[Quantity]],Table_PI[[#This Row],[List 1]],Table_PI[[#This Row],[List 2]],Table_PI[[#This Row],[List 3]],Table_PI[[#This Row],[Size]],Table_PI[[#This Row],[Input 1]],Table_PI[[#This Row],[Input 2]],Table_PI[[#This Row],[Input 3]],Table_PI[[#This Row],[Input 4]],'Customer Information'!$AR$12,103,ROW())<>\"No Rebate\"),MeasureCalc(Table_PI[[#This Row],[Hide:\nFormula Name]],Table_SummaryPI[[#This Row],[Quantity]],Table_PI[[#This Row],[List 1]],Table_PI[[#This Row],[List 2]],Table_PI[[#This Row],[List 3]],Table_PI[[#This Row],[Size]],Table_PI[[#This Row],[Input 1]],Table_PI[[#This Row],[Input 2]],Table_PI[[#This Row],[Input 3]],Table_PI[[#This Row],[Input 4]],'Customer Information'!$AR$12,103,ROW()),\"\"),\"\")","v":""},{"$f":"IF(Table_PI[[#This Row],[Input 4]]<>\"\",Table_PI[[#This Row],[Input 4]],\"\")","v":""},{"$f":"IF(Table_PI[[#This Row],[Quantity]]=\"\",\"\",Table_PI[[#This Row],[Quantity]])","v":""},{"$f":"IF(Table_PI[[#This Row],[Notes]]=\"\",\"\",Table_PI[[#This Row],[Notes]])","v":""},{"$f":"IF(OR(Table_PI[[#This Row],[Hide:\nBaseline kWh]]=\"\",Table_PI[[#This Row],[Hide:\nBaseline kWh]]=0),\"\",Table_PI[[#This Row],[Hide:\nBaseline kWh]])","v":""},{"$f":"IF(OR(Table_PI[[#This Row],[Hide:\nBaseline kW]]=\"\",Table_PI[[#This Row],[Hide:\nBaseline kW]]=0),\"\",Table_PI[[#This Row],[Hide:\nBaseline kW]])","v":""},{"$f":"IF(OR(Table_PI[[#This Row],[Hide:\nProposed kWh]]=\"\",Table_PI[[#This Row],[Hide:\nProposed kWh]]=0),\"\",Table_PI[[#This Row],[Hide:\nProposed kWh]])","v":""},{"$f":"IF(OR(Table_PI[[#This Row],[Hide:\nProposed kW]]=\"\",Table_PI[[#This Row],[Hide:\nProposed kW]]=0),\"\",Table_PI[[#This Row],[Hide:\nProposed kW]])","v":""},{"$f":"IF(OR(Table_PI[[#This Row],[Rebate]]=\"\",Table_PI[[#This Row],[Rebate]]=0),\"\",Table_PI[[#This Row],[Rebate]])","v":""},{"$f":"IF(OR(Table_PI[[#This Row],[Hide:\nIncremental Cost]]=\"\",Table_PI[[#This Row],[Hide:\nIncremental Cost]]=0),\"\",Table_PI[[#This Row],[Hide:\nIncremental Cost]])","v":""},{"$f":"IFERROR(IF(Table_SummaryPI[[#This Row],[kWhSavings]]=\"\",\"\",ROUND(Table_SummaryPI[[#This Row],[kWhSavings]]/$AG$401*'Customer Information'!$BC$17,2)),0)","v":""},{"$f":"IF(OR(Table_PI[[#This Row],[Annual kWh]]=\"\",Table_PI[[#This Row],[Annual kWh]]=0),\"\",Table_PI[[#This Row],[Annual kWh]])","v":""},{"$f":"IF(OR(Table_PI[[#This Row],[Peak kW]]=\"\",Table_PI[[#This Row],[Peak kW]]=0),\"\",Table_PI[[#This Row],[Peak kW]])","v":""},{"$f":"IFERROR(IF(Table_SummaryPI[[#This Row],[kWhSavings]]=\"\",\"\",$AU$9*Table_SummaryPI[[#This Row],[kWhSavings]]),0)","v":""},{"$f":"IFERROR(IF(Table_SummaryPI[[#This Row],[kWhSavings]]=\"\",\"\",$AU$14*Table_SummaryPI[[#This Row],[kWhSavings]]),0)","v":""},{"$f":"IFERROR(IF(Table_SummaryPI[[#This Row],[kWhSavings]]=\"\",\"\",$AU$18*Table_SummaryPI[[#This Row],[kWhSavings]]),0)","v":""},{"$f":"IFERROR(IF(Table_SummaryPI[[#This Row],[kWhSavings]]=\"\",\"\",$AU$22*Table_SummaryPI[[#This Row],[kWhSavings]]),0)","v":""},{"$f":"IFERROR(IF(MeasureCalc(Table_PI[[#This Row],[Hide:\nFormula Name]],Table_SummaryPI[[#This Row],[Quantity]],Table_PI[[#This Row],[List 1]],Table_PI[[#This Row],[List 2]],Table_PI[[#This Row],[List 3]],Table_PI[[#This Row],[Size]],Table_PI[[#This Row],[Input 1]],Table_PI[[#This Row],[Input 2]],Table_PI[[#This Row],[Input 3]],Table_PI[[#This Row],[Input 4]],'Customer Information'!$AR$12,200,ROW())<>\"No Rebate\",MeasureCalc(Table_PI[[#This Row],[Hide:\nFormula Name]],Table_SummaryPI[[#This Row],[Quantity]],Table_PI[[#This Row],[List 1]],Table_PI[[#This Row],[List 2]],Table_PI[[#This Row],[List 3]],Table_PI[[#This Row],[Size]],Table_PI[[#This Row],[Input 1]],Table_PI[[#This Row],[Input 2]],Table_PI[[#This Row],[Input 3]],Table_PI[[#This Row],[Input 4]],'Customer Information'!$AR$12,200,ROW()),\"\"),\"\")","v":""},{"$f":"IFERROR(IF(MeasureCalc(Table_PI[[#This Row],[Hide:\nFormula Name]],Table_SummaryPI[[#This Row],[Quantity]],Table_PI[[#This Row],[List 1]],Table_PI[[#This Row],[List 2]],Table_PI[[#This Row],[List 3]],Table_PI[[#This Row],[Size]],Table_PI[[#This Row],[Input 1]],Table_PI[[#This Row],[Input 2]],Table_PI[[#This Row],[Input 3]],Table_PI[[#This Row],[Input 4]],'Customer Information'!$AR$12,201,ROW())<>\"No Rebate\",MeasureCalc(Table_PI[[#This Row],[Hide:\nFormula Name]],Table_SummaryPI[[#This Row],[Quantity]],Table_PI[[#This Row],[List 1]],Table_PI[[#This Row],[List 2]],Table_PI[[#This Row],[List 3]],Table_PI[[#This Row],[Size]],Table_PI[[#This Row],[Input 1]],Table_PI[[#This Row],[Input 2]],Table_PI[[#This Row],[Input 3]],Table_PI[[#This Row],[Input 4]],'Customer Information'!$AR$12,201,ROW()),\"\"),\"\")","v":""}]
[{"$f":"Table_PI[[#This Row],[Line No.]]","v":""},{"$f":"IF(Table_SummaryPI[[#This Row],[MeassureCategory]]<>\"\",CONCATENATE(Table_SummaryPI[[#This Row],[MeassureCategory]],  \" - \", Table_SummaryPI[[#This Row],[ProposedMeasureCategory]],  \" - \", TEXT(Table_SummaryPI[[#This Row],[Size]],\"#,##0.00\"),\" \",Table_SummaryPI[[#This Row],[SizeUnit]]),\"\")","v":""},{"$f":"SUBSTITUTE(Table_PI[[#This Row],[Measure]],\"     \",\"\",1)","v":""},{"$f":"IF(Table_PI[[#This Row],[List 1]]<>\"\",Table_PI[[#This Row],[List 1]],\"\")","v":""},{"$f":"IF(Table_PI[[#This Row],[List 2]]<>\"\",Table_PI[[#This Row],[List 2]],\"\")","v":""},{"$f":"IF(Table_PI[[#This Row],[List 3]]<>\"\",Table_PI[[#This Row],[List 3]],\"\")","v":""},{"$f":"IF(Table_PI[[#This Row],[Manufacturer]]=\"\",\"\",Table_PI[[#This Row],[Manufacturer]])","v":""},{"$f":"IF(Table_PI[[#This Row],[Model Number]]=\"\",\"\",Table_PI[[#This Row],[Model Number]])","v":""},{"$f":"IF(Table_PI[[#This Row],[Serial Number(s)]]=\"\",\"\",Table_PI[[#This Row],[Serial Number(s)]])","v":""},null,{"$f":"IF(Table_PI[[#This Row],[Size]]=\"\",\"\",Table_PI[[#This Row],[Size]])","v":""},null,{"$f":"IFERROR(IF(AND(MeasureCalc(Table_PI[[#This Row],[Hide:\nFormula Name]],Table_SummaryPI[[#This Row],[Quantity]],Table_PI[[#This Row],[List 1]],Table_PI[[#This Row],[List 2]],Table_PI[[#This Row],[List 3]],Table_PI[[#This Row],[Size]],Table_PI[[#This Row],[Input 1]],Table_PI[[#This Row],[Input 2]],Table_PI[[#This Row],[Input 3]],Table_PI[[#This Row],[Input 4]],'Customer Information'!$AR$12,100,ROW())<>0,MeasureCalc(Table_PI[[#This Row],[Hide:\nFormula Name]],Table_SummaryPI[[#This Row],[Quantity]],Table_PI[[#This Row],[List 1]],Table_PI[[#This Row],[List 2]],Table_PI[[#This Row],[List 3]],Table_PI[[#This Row],[Size]],Table_PI[[#This Row],[Input 1]],Table_PI[[#This Row],[Input 2]],Table_PI[[#This Row],[Input 3]],Table_PI[[#This Row],[Input 4]],'Customer Information'!$AR$12,100,ROW())<>\"No Rebate\"),MeasureCalc(Table_PI[[#This Row],[Hide:\nFormula Name]],Table_SummaryPI[[#This Row],[Quantity]],Table_PI[[#This Row],[List 1]],Table_PI[[#This Row],[List 2]],Table_PI[[#This Row],[List 3]],Table_PI[[#This Row],[Size]],Table_PI[[#This Row],[Input 1]],Table_PI[[#This Row],[Input 2]],Table_PI[[#This Row],[Input 3]],Table_PI[[#This Row],[Input 4]],'Customer Information'!$AR$12,100,ROW()),\"\"),\"\")","v":""},{"$f":"IF(Table_PI[[#This Row],[Input 1]]<>\"\",Table_PI[[#This Row],[Input 1]],\"\")","v":""},null,{"$f":"IFERROR(IF(AND(MeasureCalc(Table_PI[[#This Row],[Hide:\nFormula Name]],Table_SummaryPI[[#This Row],[Quantity]],Table_PI[[#This Row],[List 1]],Table_PI[[#This Row],[List 2]],Table_PI[[#This Row],[List 3]],Table_PI[[#This Row],[Size]],Table_PI[[#This Row],[Input 1]],Table_PI[[#This Row],[Input 2]],Table_PI[[#This Row],[Input 3]],Table_PI[[#This Row],[Input 4]],'Customer Information'!$AR$12,101,ROW())<>0,MeasureCalc(Table_PI[[#This Row],[Hide:\nFormula Name]],Table_SummaryPI[[#This Row],[Quantity]],Table_PI[[#This Row],[List 1]],Table_PI[[#This Row],[List 2]],Table_PI[[#This Row],[List 3]],Table_PI[[#This Row],[Size]],Table_PI[[#This Row],[Input 1]],Table_PI[[#This Row],[Input 2]],Table_PI[[#This Row],[Input 3]],Table_PI[[#This Row],[Input 4]],'Customer Information'!$AR$12,101,ROW())<>\"No Rebate\"),MeasureCalc(Table_PI[[#This Row],[Hide:\nFormula Name]],Table_SummaryPI[[#This Row],[Quantity]],Table_PI[[#This Row],[List 1]],Table_PI[[#This Row],[List 2]],Table_PI[[#This Row],[List 3]],Table_PI[[#This Row],[Size]],Table_PI[[#This Row],[Input 1]],Table_PI[[#This Row],[Input 2]],Table_PI[[#This Row],[Input 3]],Table_PI[[#This Row],[Input 4]],'Customer Information'!$AR$12,101,ROW()),\"\"),\"\")","v":""},{"$f":"IF(Table_PI[[#This Row],[Input 2]]<>\"\",Table_PI[[#This Row],[Input 2]],\"\")","v":""},null,{"$f":"IFERROR(IF(AND(MeasureCalc(Table_PI[[#This Row],[Hide:\nFormula Name]],Table_SummaryPI[[#This Row],[Quantity]],Table_PI[[#This Row],[List 1]],Table_PI[[#This Row],[List 2]],Table_PI[[#This Row],[List 3]],Table_PI[[#This Row],[Size]],Table_PI[[#This Row],[Input 1]],Table_PI[[#This Row],[Input 2]],Table_PI[[#This Row],[Input 3]],Table_PI[[#This Row],[Input 4]],'Customer Information'!$AR$12,102,ROW())<>0,MeasureCalc(Table_PI[[#This Row],[Hide:\nFormula Name]],Table_SummaryPI[[#This Row],[Quantity]],Table_PI[[#This Row],[List 1]],Table_PI[[#This Row],[List 2]],Table_PI[[#This Row],[List 3]],Table_PI[[#This Row],[Size]],Table_PI[[#This Row],[Input 1]],Table_PI[[#This Row],[Input 2]],Table_PI[[#This Row],[Input 3]],Table_PI[[#This Row],[Input 4]],'Customer Information'!$AR$12,102,ROW())<>\"No Rebate\"),MeasureCalc(Table_PI[[#This Row],[Hide:\nFormula Name]],Table_SummaryPI[[#This Row],[Quantity]],Table_PI[[#This Row],[List 1]],Table_PI[[#This Row],[List 2]],Table_PI[[#This Row],[List 3]],Table_PI[[#This Row],[Size]],Table_PI[[#This Row],[Input 1]],Table_PI[[#This Row],[Input 2]],Table_PI[[#This Row],[Input 3]],Table_PI[[#This Row],[Input 4]],'Customer Information'!$AR$12,102,ROW()),\"\"),\"\")","v":""},{"$f":"IF(Table_PI[[#This Row],[Input 3]]<>\"\",Table_PI[[#This Row],[Input 3]],\"\")","v":""},null,{"$f":"IFERROR(IF(AND(MeasureCalc(Table_PI[[#This Row],[Hide:\nFormula Name]],Table_SummaryPI[[#This Row],[Quantity]],Table_PI[[#This Row],[List 1]],Table_PI[[#This Row],[List 2]],Table_PI[[#This Row],[List 3]],Table_PI[[#This Row],[Size]],Table_PI[[#This Row],[Input 1]],Table_PI[[#This Row],[Input 2]],Table_PI[[#This Row],[Input 3]],Table_PI[[#This Row],[Input 4]],'Customer Information'!$AR$12,103,ROW())<>0,MeasureCalc(Table_PI[[#This Row],[Hide:\nFormula Name]],Table_SummaryPI[[#This Row],[Quantity]],Table_PI[[#This Row],[List 1]],Table_PI[[#This Row],[List 2]],Table_PI[[#This Row],[List 3]],Table_PI[[#This Row],[Size]],Table_PI[[#This Row],[Input 1]],Table_PI[[#This Row],[Input 2]],Table_PI[[#This Row],[Input 3]],Table_PI[[#This Row],[Input 4]],'Customer Information'!$AR$12,103,ROW())<>\"No Rebate\"),MeasureCalc(Table_PI[[#This Row],[Hide:\nFormula Name]],Table_SummaryPI[[#This Row],[Quantity]],Table_PI[[#This Row],[List 1]],Table_PI[[#This Row],[List 2]],Table_PI[[#This Row],[List 3]],Table_PI[[#This Row],[Size]],Table_PI[[#This Row],[Input 1]],Table_PI[[#This Row],[Input 2]],Table_PI[[#This Row],[Input 3]],Table_PI[[#This Row],[Input 4]],'Customer Information'!$AR$12,103,ROW()),\"\"),\"\")","v":""},{"$f":"IF(Table_PI[[#This Row],[Input 4]]<>\"\",Table_PI[[#This Row],[Input 4]],\"\")","v":""},{"$f":"IF(Table_PI[[#This Row],[Quantity]]=\"\",\"\",Table_PI[[#This Row],[Quantity]])","v":""},{"$f":"IF(Table_PI[[#This Row],[Notes]]=\"\",\"\",Table_PI[[#This Row],[Notes]])","v":""},{"$f":"IF(OR(Table_PI[[#This Row],[Hide:\nBaseline kWh]]=\"\",Table_PI[[#This Row],[Hide:\nBaseline kWh]]=0),\"\",Table_PI[[#This Row],[Hide:\nBaseline kWh]])","v":""},{"$f":"IF(OR(Table_PI[[#This Row],[Hide:\nBaseline kW]]=\"\",Table_PI[[#This Row],[Hide:\nBaseline kW]]=0),\"\",Table_PI[[#This Row],[Hide:\nBaseline kW]])","v":""},{"$f":"IF(OR(Table_PI[[#This Row],[Hide:\nProposed kWh]]=\"\",Table_PI[[#This Row],[Hide:\nProposed kWh]]=0),\"\",Table_PI[[#This Row],[Hide:\nProposed kWh]])","v":""},{"$f":"IF(OR(Table_PI[[#This Row],[Hide:\nProposed kW]]=\"\",Table_PI[[#This Row],[Hide:\nProposed kW]]=0),\"\",Table_PI[[#This Row],[Hide:\nProposed kW]])","v":""},{"$f":"IF(OR(Table_PI[[#This Row],[Rebate]]=\"\",Table_PI[[#This Row],[Rebate]]=0),\"\",Table_PI[[#This Row],[Rebate]])","v":""},{"$f":"IF(OR(Table_PI[[#This Row],[Hide:\nIncremental Cost]]=\"\",Table_PI[[#This Row],[Hide:\nIncremental Cost]]=0),\"\",Table_PI[[#This Row],[Hide:\nIncremental Cost]])","v":""},{"$f":"IFERROR(IF(Table_SummaryPI[[#This Row],[kWhSavings]]=\"\",\"\",ROUND(Table_SummaryPI[[#This Row],[kWhSavings]]/$AG$401*'Customer Information'!$BC$17,2)),0)","v":""},{"$f":"IF(OR(Table_PI[[#This Row],[Annual kWh]]=\"\",Table_PI[[#This Row],[Annual kWh]]=0),\"\",Table_PI[[#This Row],[Annual kWh]])","v":""},{"$f":"IF(OR(Table_PI[[#This Row],[Peak kW]]=\"\",Table_PI[[#This Row],[Peak kW]]=0),\"\",Table_PI[[#This Row],[Peak kW]])","v":""},{"$f":"IFERROR(IF(Table_SummaryPI[[#This Row],[kWhSavings]]=\"\",\"\",$AU$9*Table_SummaryPI[[#This Row],[kWhSavings]]),0)","v":""},{"$f":"IFERROR(IF(Table_SummaryPI[[#This Row],[kWhSavings]]=\"\",\"\",$AU$14*Table_SummaryPI[[#This Row],[kWhSavings]]),0)","v":""},{"$f":"IFERROR(IF(Table_SummaryPI[[#This Row],[kWhSavings]]=\"\",\"\",$AU$18*Table_SummaryPI[[#This Row],[kWhSavings]]),0)","v":""},{"$f":"IFERROR(IF(Table_SummaryPI[[#This Row],[kWhSavings]]=\"\",\"\",$AU$22*Table_SummaryPI[[#This Row],[kWhSavings]]),0)","v":""},{"$f":"IFERROR(IF(MeasureCalc(Table_PI[[#This Row],[Hide:\nFormula Name]],Table_SummaryPI[[#This Row],[Quantity]],Table_PI[[#This Row],[List 1]],Table_PI[[#This Row],[List 2]],Table_PI[[#This Row],[List 3]],Table_PI[[#This Row],[Size]],Table_PI[[#This Row],[Input 1]],Table_PI[[#This Row],[Input 2]],Table_PI[[#This Row],[Input 3]],Table_PI[[#This Row],[Input 4]],'Customer Information'!$AR$12,200,ROW())<>\"No Rebate\",MeasureCalc(Table_PI[[#This Row],[Hide:\nFormula Name]],Table_SummaryPI[[#This Row],[Quantity]],Table_PI[[#This Row],[List 1]],Table_PI[[#This Row],[List 2]],Table_PI[[#This Row],[List 3]],Table_PI[[#This Row],[Size]],Table_PI[[#This Row],[Input 1]],Table_PI[[#This Row],[Input 2]],Table_PI[[#This Row],[Input 3]],Table_PI[[#This Row],[Input 4]],'Customer Information'!$AR$12,200,ROW()),\"\"),\"\")","v":""},{"$f":"IFERROR(IF(MeasureCalc(Table_PI[[#This Row],[Hide:\nFormula Name]],Table_SummaryPI[[#This Row],[Quantity]],Table_PI[[#This Row],[List 1]],Table_PI[[#This Row],[List 2]],Table_PI[[#This Row],[List 3]],Table_PI[[#This Row],[Size]],Table_PI[[#This Row],[Input 1]],Table_PI[[#This Row],[Input 2]],Table_PI[[#This Row],[Input 3]],Table_PI[[#This Row],[Input 4]],'Customer Information'!$AR$12,201,ROW())<>\"No Rebate\",MeasureCalc(Table_PI[[#This Row],[Hide:\nFormula Name]],Table_SummaryPI[[#This Row],[Quantity]],Table_PI[[#This Row],[List 1]],Table_PI[[#This Row],[List 2]],Table_PI[[#This Row],[List 3]],Table_PI[[#This Row],[Size]],Table_PI[[#This Row],[Input 1]],Table_PI[[#This Row],[Input 2]],Table_PI[[#This Row],[Input 3]],Table_PI[[#This Row],[Input 4]],'Customer Information'!$AR$12,201,ROW()),\"\"),\"\")","v":""}]
[{"$f":"Table_PI[[#This Row],[Line No.]]","v":""},{"$f":"IF(Table_SummaryPI[[#This Row],[MeassureCategory]]<>\"\",CONCATENATE(Table_SummaryPI[[#This Row],[MeassureCategory]],  \" - \", Table_SummaryPI[[#This Row],[ProposedMeasureCategory]],  \" - \", TEXT(Table_SummaryPI[[#This Row],[Size]],\"#,##0.00\"),\" \",Table_SummaryPI[[#This Row],[SizeUnit]]),\"\")","v":""},{"$f":"SUBSTITUTE(Table_PI[[#This Row],[Measure]],\"     \",\"\",1)","v":""},{"$f":"IF(Table_PI[[#This Row],[List 1]]<>\"\",Table_PI[[#This Row],[List 1]],\"\")","v":""},{"$f":"IF(Table_PI[[#This Row],[List 2]]<>\"\",Table_PI[[#This Row],[List 2]],\"\")","v":""},{"$f":"IF(Table_PI[[#This Row],[List 3]]<>\"\",Table_PI[[#This Row],[List 3]],\"\")","v":""},{"$f":"IF(Table_PI[[#This Row],[Manufacturer]]=\"\",\"\",Table_PI[[#This Row],[Manufacturer]])","v":""},{"$f":"IF(Table_PI[[#This Row],[Model Number]]=\"\",\"\",Table_PI[[#This Row],[Model Number]])","v":""},{"$f":"IF(Table_PI[[#This Row],[Serial Number(s)]]=\"\",\"\",Table_PI[[#This Row],[Serial Number(s)]])","v":""},null,{"$f":"IF(Table_PI[[#This Row],[Size]]=\"\",\"\",Table_PI[[#This Row],[Size]])","v":""},null,{"$f":"IFERROR(IF(AND(MeasureCalc(Table_PI[[#This Row],[Hide:\nFormula Name]],Table_SummaryPI[[#This Row],[Quantity]],Table_PI[[#This Row],[List 1]],Table_PI[[#This Row],[List 2]],Table_PI[[#This Row],[List 3]],Table_PI[[#This Row],[Size]],Table_PI[[#This Row],[Input 1]],Table_PI[[#This Row],[Input 2]],Table_PI[[#This Row],[Input 3]],Table_PI[[#This Row],[Input 4]],'Customer Information'!$AR$12,100,ROW())<>0,MeasureCalc(Table_PI[[#This Row],[Hide:\nFormula Name]],Table_SummaryPI[[#This Row],[Quantity]],Table_PI[[#This Row],[List 1]],Table_PI[[#This Row],[List 2]],Table_PI[[#This Row],[List 3]],Table_PI[[#This Row],[Size]],Table_PI[[#This Row],[Input 1]],Table_PI[[#This Row],[Input 2]],Table_PI[[#This Row],[Input 3]],Table_PI[[#This Row],[Input 4]],'Customer Information'!$AR$12,100,ROW())<>\"No Rebate\"),MeasureCalc(Table_PI[[#This Row],[Hide:\nFormula Name]],Table_SummaryPI[[#This Row],[Quantity]],Table_PI[[#This Row],[List 1]],Table_PI[[#This Row],[List 2]],Table_PI[[#This Row],[List 3]],Table_PI[[#This Row],[Size]],Table_PI[[#This Row],[Input 1]],Table_PI[[#This Row],[Input 2]],Table_PI[[#This Row],[Input 3]],Table_PI[[#This Row],[Input 4]],'Customer Information'!$AR$12,100,ROW()),\"\"),\"\")","v":""},{"$f":"IF(Table_PI[[#This Row],[Input 1]]<>\"\",Table_PI[[#This Row],[Input 1]],\"\")","v":""},null,{"$f":"IFERROR(IF(AND(MeasureCalc(Table_PI[[#This Row],[Hide:\nFormula Name]],Table_SummaryPI[[#This Row],[Quantity]],Table_PI[[#This Row],[List 1]],Table_PI[[#This Row],[List 2]],Table_PI[[#This Row],[List 3]],Table_PI[[#This Row],[Size]],Table_PI[[#This Row],[Input 1]],Table_PI[[#This Row],[Input 2]],Table_PI[[#This Row],[Input 3]],Table_PI[[#This Row],[Input 4]],'Customer Information'!$AR$12,101,ROW())<>0,MeasureCalc(Table_PI[[#This Row],[Hide:\nFormula Name]],Table_SummaryPI[[#This Row],[Quantity]],Table_PI[[#This Row],[List 1]],Table_PI[[#This Row],[List 2]],Table_PI[[#This Row],[List 3]],Table_PI[[#This Row],[Size]],Table_PI[[#This Row],[Input 1]],Table_PI[[#This Row],[Input 2]],Table_PI[[#This Row],[Input 3]],Table_PI[[#This Row],[Input 4]],'Customer Information'!$AR$12,101,ROW())<>\"No Rebate\"),MeasureCalc(Table_PI[[#This Row],[Hide:\nFormula Name]],Table_SummaryPI[[#This Row],[Quantity]],Table_PI[[#This Row],[List 1]],Table_PI[[#This Row],[List 2]],Table_PI[[#This Row],[List 3]],Table_PI[[#This Row],[Size]],Table_PI[[#This Row],[Input 1]],Table_PI[[#This Row],[Input 2]],Table_PI[[#This Row],[Input 3]],Table_PI[[#This Row],[Input 4]],'Customer Information'!$AR$12,101,ROW()),\"\"),\"\")","v":""},{"$f":"IF(Table_PI[[#This Row],[Input 2]]<>\"\",Table_PI[[#This Row],[Input 2]],\"\")","v":""},null,{"$f":"IFERROR(IF(AND(MeasureCalc(Table_PI[[#This Row],[Hide:\nFormula Name]],Table_SummaryPI[[#This Row],[Quantity]],Table_PI[[#This Row],[List 1]],Table_PI[[#This Row],[List 2]],Table_PI[[#This Row],[List 3]],Table_PI[[#This Row],[Size]],Table_PI[[#This Row],[Input 1]],Table_PI[[#This Row],[Input 2]],Table_PI[[#This Row],[Input 3]],Table_PI[[#This Row],[Input 4]],'Customer Information'!$AR$12,102,ROW())<>0,MeasureCalc(Table_PI[[#This Row],[Hide:\nFormula Name]],Table_SummaryPI[[#This Row],[Quantity]],Table_PI[[#This Row],[List 1]],Table_PI[[#This Row],[List 2]],Table_PI[[#This Row],[List 3]],Table_PI[[#This Row],[Size]],Table_PI[[#This Row],[Input 1]],Table_PI[[#This Row],[Input 2]],Table_PI[[#This Row],[Input 3]],Table_PI[[#This Row],[Input 4]],'Customer Information'!$AR$12,102,ROW())<>\"No Rebate\"),MeasureCalc(Table_PI[[#This Row],[Hide:\nFormula Name]],Table_SummaryPI[[#This Row],[Quantity]],Table_PI[[#This Row],[List 1]],Table_PI[[#This Row],[List 2]],Table_PI[[#This Row],[List 3]],Table_PI[[#This Row],[Size]],Table_PI[[#This Row],[Input 1]],Table_PI[[#This Row],[Input 2]],Table_PI[[#This Row],[Input 3]],Table_PI[[#This Row],[Input 4]],'Customer Information'!$AR$12,102,ROW()),\"\"),\"\")","v":""},{"$f":"IF(Table_PI[[#This Row],[Input 3]]<>\"\",Table_PI[[#This Row],[Input 3]],\"\")","v":""},null,{"$f":"IFERROR(IF(AND(MeasureCalc(Table_PI[[#This Row],[Hide:\nFormula Name]],Table_SummaryPI[[#This Row],[Quantity]],Table_PI[[#This Row],[List 1]],Table_PI[[#This Row],[List 2]],Table_PI[[#This Row],[List 3]],Table_PI[[#This Row],[Size]],Table_PI[[#This Row],[Input 1]],Table_PI[[#This Row],[Input 2]],Table_PI[[#This Row],[Input 3]],Table_PI[[#This Row],[Input 4]],'Customer Information'!$AR$12,103,ROW())<>0,MeasureCalc(Table_PI[[#This Row],[Hide:\nFormula Name]],Table_SummaryPI[[#This Row],[Quantity]],Table_PI[[#This Row],[List 1]],Table_PI[[#This Row],[List 2]],Table_PI[[#This Row],[List 3]],Table_PI[[#This Row],[Size]],Table_PI[[#This Row],[Input 1]],Table_PI[[#This Row],[Input 2]],Table_PI[[#This Row],[Input 3]],Table_PI[[#This Row],[Input 4]],'Customer Information'!$AR$12,103,ROW())<>\"No Rebate\"),MeasureCalc(Table_PI[[#This Row],[Hide:\nFormula Name]],Table_SummaryPI[[#This Row],[Quantity]],Table_PI[[#This Row],[List 1]],Table_PI[[#This Row],[List 2]],Table_PI[[#This Row],[List 3]],Table_PI[[#This Row],[Size]],Table_PI[[#This Row],[Input 1]],Table_PI[[#This Row],[Input 2]],Table_PI[[#This Row],[Input 3]],Table_PI[[#This Row],[Input 4]],'Customer Information'!$AR$12,103,ROW()),\"\"),\"\")","v":""},{"$f":"IF(Table_PI[[#This Row],[Input 4]]<>\"\",Table_PI[[#This Row],[Input 4]],\"\")","v":""},{"$f":"IF(Table_PI[[#This Row],[Quantity]]=\"\",\"\",Table_PI[[#This Row],[Quantity]])","v":""},{"$f":"IF(Table_PI[[#This Row],[Notes]]=\"\",\"\",Table_PI[[#This Row],[Notes]])","v":""},{"$f":"IF(OR(Table_PI[[#This Row],[Hide:\nBaseline kWh]]=\"\",Table_PI[[#This Row],[Hide:\nBaseline kWh]]=0),\"\",Table_PI[[#This Row],[Hide:\nBaseline kWh]])","v":""},{"$f":"IF(OR(Table_PI[[#This Row],[Hide:\nBaseline kW]]=\"\",Table_PI[[#This Row],[Hide:\nBaseline kW]]=0),\"\",Table_PI[[#This Row],[Hide:\nBaseline kW]])","v":""},{"$f":"IF(OR(Table_PI[[#This Row],[Hide:\nProposed kWh]]=\"\",Table_PI[[#This Row],[Hide:\nProposed kWh]]=0),\"\",Table_PI[[#This Row],[Hide:\nProposed kWh]])","v":""},{"$f":"IF(OR(Table_PI[[#This Row],[Hide:\nProposed kW]]=\"\",Table_PI[[#This Row],[Hide:\nProposed kW]]=0),\"\",Table_PI[[#This Row],[Hide:\nProposed kW]])","v":""},{"$f":"IF(OR(Table_PI[[#This Row],[Rebate]]=\"\",Table_PI[[#This Row],[Rebate]]=0),\"\",Table_PI[[#This Row],[Rebate]])","v":""},{"$f":"IF(OR(Table_PI[[#This Row],[Hide:\nIncremental Cost]]=\"\",Table_PI[[#This Row],[Hide:\nIncremental Cost]]=0),\"\",Table_PI[[#This Row],[Hide:\nIncremental Cost]])","v":""},{"$f":"IFERROR(IF(Table_SummaryPI[[#This Row],[kWhSavings]]=\"\",\"\",ROUND(Table_SummaryPI[[#This Row],[kWhSavings]]/$AG$401*'Customer Information'!$BC$17,2)),0)","v":""},{"$f":"IF(OR(Table_PI[[#This Row],[Annual kWh]]=\"\",Table_PI[[#This Row],[Annual kWh]]=0),\"\",Table_PI[[#This Row],[Annual kWh]])","v":""},{"$f":"IF(OR(Table_PI[[#This Row],[Peak kW]]=\"\",Table_PI[[#This Row],[Peak kW]]=0),\"\",Table_PI[[#This Row],[Peak kW]])","v":""},{"$f":"IFERROR(IF(Table_SummaryPI[[#This Row],[kWhSavings]]=\"\",\"\",$AU$9*Table_SummaryPI[[#This Row],[kWhSavings]]),0)","v":""},{"$f":"IFERROR(IF(Table_SummaryPI[[#This Row],[kWhSavings]]=\"\",\"\",$AU$14*Table_SummaryPI[[#This Row],[kWhSavings]]),0)","v":""},{"$f":"IFERROR(IF(Table_SummaryPI[[#This Row],[kWhSavings]]=\"\",\"\",$AU$18*Table_SummaryPI[[#This Row],[kWhSavings]]),0)","v":""},{"$f":"IFERROR(IF(Table_SummaryPI[[#This Row],[kWhSavings]]=\"\",\"\",$AU$22*Table_SummaryPI[[#This Row],[kWhSavings]]),0)","v":""},{"$f":"IFERROR(IF(MeasureCalc(Table_PI[[#This Row],[Hide:\nFormula Name]],Table_SummaryPI[[#This Row],[Quantity]],Table_PI[[#This Row],[List 1]],Table_PI[[#This Row],[List 2]],Table_PI[[#This Row],[List 3]],Table_PI[[#This Row],[Size]],Table_PI[[#This Row],[Input 1]],Table_PI[[#This Row],[Input 2]],Table_PI[[#This Row],[Input 3]],Table_PI[[#This Row],[Input 4]],'Customer Information'!$AR$12,200,ROW())<>\"No Rebate\",MeasureCalc(Table_PI[[#This Row],[Hide:\nFormula Name]],Table_SummaryPI[[#This Row],[Quantity]],Table_PI[[#This Row],[List 1]],Table_PI[[#This Row],[List 2]],Table_PI[[#This Row],[List 3]],Table_PI[[#This Row],[Size]],Table_PI[[#This Row],[Input 1]],Table_PI[[#This Row],[Input 2]],Table_PI[[#This Row],[Input 3]],Table_PI[[#This Row],[Input 4]],'Customer Information'!$AR$12,200,ROW()),\"\"),\"\")","v":""},{"$f":"IFERROR(IF(MeasureCalc(Table_PI[[#This Row],[Hide:\nFormula Name]],Table_SummaryPI[[#This Row],[Quantity]],Table_PI[[#This Row],[List 1]],Table_PI[[#This Row],[List 2]],Table_PI[[#This Row],[List 3]],Table_PI[[#This Row],[Size]],Table_PI[[#This Row],[Input 1]],Table_PI[[#This Row],[Input 2]],Table_PI[[#This Row],[Input 3]],Table_PI[[#This Row],[Input 4]],'Customer Information'!$AR$12,201,ROW())<>\"No Rebate\",MeasureCalc(Table_PI[[#This Row],[Hide:\nFormula Name]],Table_SummaryPI[[#This Row],[Quantity]],Table_PI[[#This Row],[List 1]],Table_PI[[#This Row],[List 2]],Table_PI[[#This Row],[List 3]],Table_PI[[#This Row],[Size]],Table_PI[[#This Row],[Input 1]],Table_PI[[#This Row],[Input 2]],Table_PI[[#This Row],[Input 3]],Table_PI[[#This Row],[Input 4]],'Customer Information'!$AR$12,201,ROW()),\"\"),\"\")","v":""}]
[{"$f":"Table_PI[[#This Row],[Line No.]]","v":""},{"$f":"IF(Table_SummaryPI[[#This Row],[MeassureCategory]]<>\"\",CONCATENATE(Table_SummaryPI[[#This Row],[MeassureCategory]],  \" - \", Table_SummaryPI[[#This Row],[ProposedMeasureCategory]],  \" - \", TEXT(Table_SummaryPI[[#This Row],[Size]],\"#,##0.00\"),\" \",Table_SummaryPI[[#This Row],[SizeUnit]]),\"\")","v":""},{"$f":"SUBSTITUTE(Table_PI[[#This Row],[Measure]],\"     \",\"\",1)","v":""},{"$f":"IF(Table_PI[[#This Row],[List 1]]<>\"\",Table_PI[[#This Row],[List 1]],\"\")","v":""},{"$f":"IF(Table_PI[[#This Row],[List 2]]<>\"\",Table_PI[[#This Row],[List 2]],\"\")","v":""},{"$f":"IF(Table_PI[[#This Row],[List 3]]<>\"\",Table_PI[[#This Row],[List 3]],\"\")","v":""},{"$f":"IF(Table_PI[[#This Row],[Manufacturer]]=\"\",\"\",Table_PI[[#This Row],[Manufacturer]])","v":""},{"$f":"IF(Table_PI[[#This Row],[Model Number]]=\"\",\"\",Table_PI[[#This Row],[Model Number]])","v":""},{"$f":"IF(Table_PI[[#This Row],[Serial Number(s)]]=\"\",\"\",Table_PI[[#This Row],[Serial Number(s)]])","v":""},null,{"$f":"IF(Table_PI[[#This Row],[Size]]=\"\",\"\",Table_PI[[#This Row],[Size]])","v":""},null,{"$f":"IFERROR(IF(AND(MeasureCalc(Table_PI[[#This Row],[Hide:\nFormula Name]],Table_SummaryPI[[#This Row],[Quantity]],Table_PI[[#This Row],[List 1]],Table_PI[[#This Row],[List 2]],Table_PI[[#This Row],[List 3]],Table_PI[[#This Row],[Size]],Table_PI[[#This Row],[Input 1]],Table_PI[[#This Row],[Input 2]],Table_PI[[#This Row],[Input 3]],Table_PI[[#This Row],[Input 4]],'Customer Information'!$AR$12,100,ROW())<>0,MeasureCalc(Table_PI[[#This Row],[Hide:\nFormula Name]],Table_SummaryPI[[#This Row],[Quantity]],Table_PI[[#This Row],[List 1]],Table_PI[[#This Row],[List 2]],Table_PI[[#This Row],[List 3]],Table_PI[[#This Row],[Size]],Table_PI[[#This Row],[Input 1]],Table_PI[[#This Row],[Input 2]],Table_PI[[#This Row],[Input 3]],Table_PI[[#This Row],[Input 4]],'Customer Information'!$AR$12,100,ROW())<>\"No Rebate\"),MeasureCalc(Table_PI[[#This Row],[Hide:\nFormula Name]],Table_SummaryPI[[#This Row],[Quantity]],Table_PI[[#This Row],[List 1]],Table_PI[[#This Row],[List 2]],Table_PI[[#This Row],[List 3]],Table_PI[[#This Row],[Size]],Table_PI[[#This Row],[Input 1]],Table_PI[[#This Row],[Input 2]],Table_PI[[#This Row],[Input 3]],Table_PI[[#This Row],[Input 4]],'Customer Information'!$AR$12,100,ROW()),\"\"),\"\")","v":""},{"$f":"IF(Table_PI[[#This Row],[Input 1]]<>\"\",Table_PI[[#This Row],[Input 1]],\"\")","v":""},null,{"$f":"IFERROR(IF(AND(MeasureCalc(Table_PI[[#This Row],[Hide:\nFormula Name]],Table_SummaryPI[[#This Row],[Quantity]],Table_PI[[#This Row],[List 1]],Table_PI[[#This Row],[List 2]],Table_PI[[#This Row],[List 3]],Table_PI[[#This Row],[Size]],Table_PI[[#This Row],[Input 1]],Table_PI[[#This Row],[Input 2]],Table_PI[[#This Row],[Input 3]],Table_PI[[#This Row],[Input 4]],'Customer Information'!$AR$12,101,ROW())<>0,MeasureCalc(Table_PI[[#This Row],[Hide:\nFormula Name]],Table_SummaryPI[[#This Row],[Quantity]],Table_PI[[#This Row],[List 1]],Table_PI[[#This Row],[List 2]],Table_PI[[#This Row],[List 3]],Table_PI[[#This Row],[Size]],Table_PI[[#This Row],[Input 1]],Table_PI[[#This Row],[Input 2]],Table_PI[[#This Row],[Input 3]],Table_PI[[#This Row],[Input 4]],'Customer Information'!$AR$12,101,ROW())<>\"No Rebate\"),MeasureCalc(Table_PI[[#This Row],[Hide:\nFormula Name]],Table_SummaryPI[[#This Row],[Quantity]],Table_PI[[#This Row],[List 1]],Table_PI[[#This Row],[List 2]],Table_PI[[#This Row],[List 3]],Table_PI[[#This Row],[Size]],Table_PI[[#This Row],[Input 1]],Table_PI[[#This Row],[Input 2]],Table_PI[[#This Row],[Input 3]],Table_PI[[#This Row],[Input 4]],'Customer Information'!$AR$12,101,ROW()),\"\"),\"\")","v":""},{"$f":"IF(Table_PI[[#This Row],[Input 2]]<>\"\",Table_PI[[#This Row],[Input 2]],\"\")","v":""},null,{"$f":"IFERROR(IF(AND(MeasureCalc(Table_PI[[#This Row],[Hide:\nFormula Name]],Table_SummaryPI[[#This Row],[Quantity]],Table_PI[[#This Row],[List 1]],Table_PI[[#This Row],[List 2]],Table_PI[[#This Row],[List 3]],Table_PI[[#This Row],[Size]],Table_PI[[#This Row],[Input 1]],Table_PI[[#This Row],[Input 2]],Table_PI[[#This Row],[Input 3]],Table_PI[[#This Row],[Input 4]],'Customer Information'!$AR$12,102,ROW())<>0,MeasureCalc(Table_PI[[#This Row],[Hide:\nFormula Name]],Table_SummaryPI[[#This Row],[Quantity]],Table_PI[[#This Row],[List 1]],Table_PI[[#This Row],[List 2]],Table_PI[[#This Row],[List 3]],Table_PI[[#This Row],[Size]],Table_PI[[#This Row],[Input 1]],Table_PI[[#This Row],[Input 2]],Table_PI[[#This Row],[Input 3]],Table_PI[[#This Row],[Input 4]],'Customer Information'!$AR$12,102,ROW())<>\"No Rebate\"),MeasureCalc(Table_PI[[#This Row],[Hide:\nFormula Name]],Table_SummaryPI[[#This Row],[Quantity]],Table_PI[[#This Row],[List 1]],Table_PI[[#This Row],[List 2]],Table_PI[[#This Row],[List 3]],Table_PI[[#This Row],[Size]],Table_PI[[#This Row],[Input 1]],Table_PI[[#This Row],[Input 2]],Table_PI[[#This Row],[Input 3]],Table_PI[[#This Row],[Input 4]],'Customer Information'!$AR$12,102,ROW()),\"\"),\"\")","v":""},{"$f":"IF(Table_PI[[#This Row],[Input 3]]<>\"\",Table_PI[[#This Row],[Input 3]],\"\")","v":""},null,{"$f":"IFERROR(IF(AND(MeasureCalc(Table_PI[[#This Row],[Hide:\nFormula Name]],Table_SummaryPI[[#This Row],[Quantity]],Table_PI[[#This Row],[List 1]],Table_PI[[#This Row],[List 2]],Table_PI[[#This Row],[List 3]],Table_PI[[#This Row],[Size]],Table_PI[[#This Row],[Input 1]],Table_PI[[#This Row],[Input 2]],Table_PI[[#This Row],[Input 3]],Table_PI[[#This Row],[Input 4]],'Customer Information'!$AR$12,103,ROW())<>0,MeasureCalc(Table_PI[[#This Row],[Hide:\nFormula Name]],Table_SummaryPI[[#This Row],[Quantity]],Table_PI[[#This Row],[List 1]],Table_PI[[#This Row],[List 2]],Table_PI[[#This Row],[List 3]],Table_PI[[#This Row],[Size]],Table_PI[[#This Row],[Input 1]],Table_PI[[#This Row],[Input 2]],Table_PI[[#This Row],[Input 3]],Table_PI[[#This Row],[Input 4]],'Customer Information'!$AR$12,103,ROW())<>\"No Rebate\"),MeasureCalc(Table_PI[[#This Row],[Hide:\nFormula Name]],Table_SummaryPI[[#This Row],[Quantity]],Table_PI[[#This Row],[List 1]],Table_PI[[#This Row],[List 2]],Table_PI[[#This Row],[List 3]],Table_PI[[#This Row],[Size]],Table_PI[[#This Row],[Input 1]],Table_PI[[#This Row],[Input 2]],Table_PI[[#This Row],[Input 3]],Table_PI[[#This Row],[Input 4]],'Customer Information'!$AR$12,103,ROW()),\"\"),\"\")","v":""},{"$f":"IF(Table_PI[[#This Row],[Input 4]]<>\"\",Table_PI[[#This Row],[Input 4]],\"\")","v":""},{"$f":"IF(Table_PI[[#This Row],[Quantity]]=\"\",\"\",Table_PI[[#This Row],[Quantity]])","v":""},{"$f":"IF(Table_PI[[#This Row],[Notes]]=\"\",\"\",Table_PI[[#This Row],[Notes]])","v":""},{"$f":"IF(OR(Table_PI[[#This Row],[Hide:\nBaseline kWh]]=\"\",Table_PI[[#This Row],[Hide:\nBaseline kWh]]=0),\"\",Table_PI[[#This Row],[Hide:\nBaseline kWh]])","v":""},{"$f":"IF(OR(Table_PI[[#This Row],[Hide:\nBaseline kW]]=\"\",Table_PI[[#This Row],[Hide:\nBaseline kW]]=0),\"\",Table_PI[[#This Row],[Hide:\nBaseline kW]])","v":""},{"$f":"IF(OR(Table_PI[[#This Row],[Hide:\nProposed kWh]]=\"\",Table_PI[[#This Row],[Hide:\nProposed kWh]]=0),\"\",Table_PI[[#This Row],[Hide:\nProposed kWh]])","v":""},{"$f":"IF(OR(Table_PI[[#This Row],[Hide:\nProposed kW]]=\"\",Table_PI[[#This Row],[Hide:\nProposed kW]]=0),\"\",Table_PI[[#This Row],[Hide:\nProposed kW]])","v":""},{"$f":"IF(OR(Table_PI[[#This Row],[Rebate]]=\"\",Table_PI[[#This Row],[Rebate]]=0),\"\",Table_PI[[#This Row],[Rebate]])","v":""},{"$f":"IF(OR(Table_PI[[#This Row],[Hide:\nIncremental Cost]]=\"\",Table_PI[[#This Row],[Hide:\nIncremental Cost]]=0),\"\",Table_PI[[#This Row],[Hide:\nIncremental Cost]])","v":""},{"$f":"IFERROR(IF(Table_SummaryPI[[#This Row],[kWhSavings]]=\"\",\"\",ROUND(Table_SummaryPI[[#This Row],[kWhSavings]]/$AG$401*'Customer Information'!$BC$17,2)),0)","v":""},{"$f":"IF(OR(Table_PI[[#This Row],[Annual kWh]]=\"\",Table_PI[[#This Row],[Annual kWh]]=0),\"\",Table_PI[[#This Row],[Annual kWh]])","v":""},{"$f":"IF(OR(Table_PI[[#This Row],[Peak kW]]=\"\",Table_PI[[#This Row],[Peak kW]]=0),\"\",Table_PI[[#This Row],[Peak kW]])","v":""},{"$f":"IFERROR(IF(Table_SummaryPI[[#This Row],[kWhSavings]]=\"\",\"\",$AU$9*Table_SummaryPI[[#This Row],[kWhSavings]]),0)","v":""},{"$f":"IFERROR(IF(Table_SummaryPI[[#This Row],[kWhSavings]]=\"\",\"\",$AU$14*Table_SummaryPI[[#This Row],[kWhSavings]]),0)","v":""},{"$f":"IFERROR(IF(Table_SummaryPI[[#This Row],[kWhSavings]]=\"\",\"\",$AU$18*Table_SummaryPI[[#This Row],[kWhSavings]]),0)","v":""},{"$f":"IFERROR(IF(Table_SummaryPI[[#This Row],[kWhSavings]]=\"\",\"\",$AU$22*Table_SummaryPI[[#This Row],[kWhSavings]]),0)","v":""},{"$f":"IFERROR(IF(MeasureCalc(Table_PI[[#This Row],[Hide:\nFormula Name]],Table_SummaryPI[[#This Row],[Quantity]],Table_PI[[#This Row],[List 1]],Table_PI[[#This Row],[List 2]],Table_PI[[#This Row],[List 3]],Table_PI[[#This Row],[Size]],Table_PI[[#This Row],[Input 1]],Table_PI[[#This Row],[Input 2]],Table_PI[[#This Row],[Input 3]],Table_PI[[#This Row],[Input 4]],'Customer Information'!$AR$12,200,ROW())<>\"No Rebate\",MeasureCalc(Table_PI[[#This Row],[Hide:\nFormula Name]],Table_SummaryPI[[#This Row],[Quantity]],Table_PI[[#This Row],[List 1]],Table_PI[[#This Row],[List 2]],Table_PI[[#This Row],[List 3]],Table_PI[[#This Row],[Size]],Table_PI[[#This Row],[Input 1]],Table_PI[[#This Row],[Input 2]],Table_PI[[#This Row],[Input 3]],Table_PI[[#This Row],[Input 4]],'Customer Information'!$AR$12,200,ROW()),\"\"),\"\")","v":""},{"$f":"IFERROR(IF(MeasureCalc(Table_PI[[#This Row],[Hide:\nFormula Name]],Table_SummaryPI[[#This Row],[Quantity]],Table_PI[[#This Row],[List 1]],Table_PI[[#This Row],[List 2]],Table_PI[[#This Row],[List 3]],Table_PI[[#This Row],[Size]],Table_PI[[#This Row],[Input 1]],Table_PI[[#This Row],[Input 2]],Table_PI[[#This Row],[Input 3]],Table_PI[[#This Row],[Input 4]],'Customer Information'!$AR$12,201,ROW())<>\"No Rebate\",MeasureCalc(Table_PI[[#This Row],[Hide:\nFormula Name]],Table_SummaryPI[[#This Row],[Quantity]],Table_PI[[#This Row],[List 1]],Table_PI[[#This Row],[List 2]],Table_PI[[#This Row],[List 3]],Table_PI[[#This Row],[Size]],Table_PI[[#This Row],[Input 1]],Table_PI[[#This Row],[Input 2]],Table_PI[[#This Row],[Input 3]],Table_PI[[#This Row],[Input 4]],'Customer Information'!$AR$12,201,ROW()),\"\"),\"\")","v":""}]
[{"$f":"Table_PI[[#This Row],[Line No.]]","v":""},{"$f":"IF(Table_SummaryPI[[#This Row],[MeassureCategory]]<>\"\",CONCATENATE(Table_SummaryPI[[#This Row],[MeassureCategory]],  \" - \", Table_SummaryPI[[#This Row],[ProposedMeasureCategory]],  \" - \", TEXT(Table_SummaryPI[[#This Row],[Size]],\"#,##0.00\"),\" \",Table_SummaryPI[[#This Row],[SizeUnit]]),\"\")","v":""},{"$f":"SUBSTITUTE(Table_PI[[#This Row],[Measure]],\"     \",\"\",1)","v":""},{"$f":"IF(Table_PI[[#This Row],[List 1]]<>\"\",Table_PI[[#This Row],[List 1]],\"\")","v":""},{"$f":"IF(Table_PI[[#This Row],[List 2]]<>\"\",Table_PI[[#This Row],[List 2]],\"\")","v":""},{"$f":"IF(Table_PI[[#This Row],[List 3]]<>\"\",Table_PI[[#This Row],[List 3]],\"\")","v":""},{"$f":"IF(Table_PI[[#This Row],[Manufacturer]]=\"\",\"\",Table_PI[[#This Row],[Manufacturer]])","v":""},{"$f":"IF(Table_PI[[#This Row],[Model Number]]=\"\",\"\",Table_PI[[#This Row],[Model Number]])","v":""},{"$f":"IF(Table_PI[[#This Row],[Serial Number(s)]]=\"\",\"\",Table_PI[[#This Row],[Serial Number(s)]])","v":""},null,{"$f":"IF(Table_PI[[#This Row],[Size]]=\"\",\"\",Table_PI[[#This Row],[Size]])","v":""},null,{"$f":"IFERROR(IF(AND(MeasureCalc(Table_PI[[#This Row],[Hide:\nFormula Name]],Table_SummaryPI[[#This Row],[Quantity]],Table_PI[[#This Row],[List 1]],Table_PI[[#This Row],[List 2]],Table_PI[[#This Row],[List 3]],Table_PI[[#This Row],[Size]],Table_PI[[#This Row],[Input 1]],Table_PI[[#This Row],[Input 2]],Table_PI[[#This Row],[Input 3]],Table_PI[[#This Row],[Input 4]],'Customer Information'!$AR$12,100,ROW())<>0,MeasureCalc(Table_PI[[#This Row],[Hide:\nFormula Name]],Table_SummaryPI[[#This Row],[Quantity]],Table_PI[[#This Row],[List 1]],Table_PI[[#This Row],[List 2]],Table_PI[[#This Row],[List 3]],Table_PI[[#This Row],[Size]],Table_PI[[#This Row],[Input 1]],Table_PI[[#This Row],[Input 2]],Table_PI[[#This Row],[Input 3]],Table_PI[[#This Row],[Input 4]],'Customer Information'!$AR$12,100,ROW())<>\"No Rebate\"),MeasureCalc(Table_PI[[#This Row],[Hide:\nFormula Name]],Table_SummaryPI[[#This Row],[Quantity]],Table_PI[[#This Row],[List 1]],Table_PI[[#This Row],[List 2]],Table_PI[[#This Row],[List 3]],Table_PI[[#This Row],[Size]],Table_PI[[#This Row],[Input 1]],Table_PI[[#This Row],[Input 2]],Table_PI[[#This Row],[Input 3]],Table_PI[[#This Row],[Input 4]],'Customer Information'!$AR$12,100,ROW()),\"\"),\"\")","v":""},{"$f":"IF(Table_PI[[#This Row],[Input 1]]<>\"\",Table_PI[[#This Row],[Input 1]],\"\")","v":""},null,{"$f":"IFERROR(IF(AND(MeasureCalc(Table_PI[[#This Row],[Hide:\nFormula Name]],Table_SummaryPI[[#This Row],[Quantity]],Table_PI[[#This Row],[List 1]],Table_PI[[#This Row],[List 2]],Table_PI[[#This Row],[List 3]],Table_PI[[#This Row],[Size]],Table_PI[[#This Row],[Input 1]],Table_PI[[#This Row],[Input 2]],Table_PI[[#This Row],[Input 3]],Table_PI[[#This Row],[Input 4]],'Customer Information'!$AR$12,101,ROW())<>0,MeasureCalc(Table_PI[[#This Row],[Hide:\nFormula Name]],Table_SummaryPI[[#This Row],[Quantity]],Table_PI[[#This Row],[List 1]],Table_PI[[#This Row],[List 2]],Table_PI[[#This Row],[List 3]],Table_PI[[#This Row],[Size]],Table_PI[[#This Row],[Input 1]],Table_PI[[#This Row],[Input 2]],Table_PI[[#This Row],[Input 3]],Table_PI[[#This Row],[Input 4]],'Customer Information'!$AR$12,101,ROW())<>\"No Rebate\"),MeasureCalc(Table_PI[[#This Row],[Hide:\nFormula Name]],Table_SummaryPI[[#This Row],[Quantity]],Table_PI[[#This Row],[List 1]],Table_PI[[#This Row],[List 2]],Table_PI[[#This Row],[List 3]],Table_PI[[#This Row],[Size]],Table_PI[[#This Row],[Input 1]],Table_PI[[#This Row],[Input 2]],Table_PI[[#This Row],[Input 3]],Table_PI[[#This Row],[Input 4]],'Customer Information'!$AR$12,101,ROW()),\"\"),\"\")","v":""},{"$f":"IF(Table_PI[[#This Row],[Input 2]]<>\"\",Table_PI[[#This Row],[Input 2]],\"\")","v":""},null,{"$f":"IFERROR(IF(AND(MeasureCalc(Table_PI[[#This Row],[Hide:\nFormula Name]],Table_SummaryPI[[#This Row],[Quantity]],Table_PI[[#This Row],[List 1]],Table_PI[[#This Row],[List 2]],Table_PI[[#This Row],[List 3]],Table_PI[[#This Row],[Size]],Table_PI[[#This Row],[Input 1]],Table_PI[[#This Row],[Input 2]],Table_PI[[#This Row],[Input 3]],Table_PI[[#This Row],[Input 4]],'Customer Information'!$AR$12,102,ROW())<>0,MeasureCalc(Table_PI[[#This Row],[Hide:\nFormula Name]],Table_SummaryPI[[#This Row],[Quantity]],Table_PI[[#This Row],[List 1]],Table_PI[[#This Row],[List 2]],Table_PI[[#This Row],[List 3]],Table_PI[[#This Row],[Size]],Table_PI[[#This Row],[Input 1]],Table_PI[[#This Row],[Input 2]],Table_PI[[#This Row],[Input 3]],Table_PI[[#This Row],[Input 4]],'Customer Information'!$AR$12,102,ROW())<>\"No Rebate\"),MeasureCalc(Table_PI[[#This Row],[Hide:\nFormula Name]],Table_SummaryPI[[#This Row],[Quantity]],Table_PI[[#This Row],[List 1]],Table_PI[[#This Row],[List 2]],Table_PI[[#This Row],[List 3]],Table_PI[[#This Row],[Size]],Table_PI[[#This Row],[Input 1]],Table_PI[[#This Row],[Input 2]],Table_PI[[#This Row],[Input 3]],Table_PI[[#This Row],[Input 4]],'Customer Information'!$AR$12,102,ROW()),\"\"),\"\")","v":""},{"$f":"IF(Table_PI[[#This Row],[Input 3]]<>\"\",Table_PI[[#This Row],[Input 3]],\"\")","v":""},null,{"$f":"IFERROR(IF(AND(MeasureCalc(Table_PI[[#This Row],[Hide:\nFormula Name]],Table_SummaryPI[[#This Row],[Quantity]],Table_PI[[#This Row],[List 1]],Table_PI[[#This Row],[List 2]],Table_PI[[#This Row],[List 3]],Table_PI[[#This Row],[Size]],Table_PI[[#This Row],[Input 1]],Table_PI[[#This Row],[Input 2]],Table_PI[[#This Row],[Input 3]],Table_PI[[#This Row],[Input 4]],'Customer Information'!$AR$12,103,ROW())<>0,MeasureCalc(Table_PI[[#This Row],[Hide:\nFormula Name]],Table_SummaryPI[[#This Row],[Quantity]],Table_PI[[#This Row],[List 1]],Table_PI[[#This Row],[List 2]],Table_PI[[#This Row],[List 3]],Table_PI[[#This Row],[Size]],Table_PI[[#This Row],[Input 1]],Table_PI[[#This Row],[Input 2]],Table_PI[[#This Row],[Input 3]],Table_PI[[#This Row],[Input 4]],'Customer Information'!$AR$12,103,ROW())<>\"No Rebate\"),MeasureCalc(Table_PI[[#This Row],[Hide:\nFormula Name]],Table_SummaryPI[[#This Row],[Quantity]],Table_PI[[#This Row],[List 1]],Table_PI[[#This Row],[List 2]],Table_PI[[#This Row],[List 3]],Table_PI[[#This Row],[Size]],Table_PI[[#This Row],[Input 1]],Table_PI[[#This Row],[Input 2]],Table_PI[[#This Row],[Input 3]],Table_PI[[#This Row],[Input 4]],'Customer Information'!$AR$12,103,ROW()),\"\"),\"\")","v":""},{"$f":"IF(Table_PI[[#This Row],[Input 4]]<>\"\",Table_PI[[#This Row],[Input 4]],\"\")","v":""},{"$f":"IF(Table_PI[[#This Row],[Quantity]]=\"\",\"\",Table_PI[[#This Row],[Quantity]])","v":""},{"$f":"IF(Table_PI[[#This Row],[Notes]]=\"\",\"\",Table_PI[[#This Row],[Notes]])","v":""},{"$f":"IF(OR(Table_PI[[#This Row],[Hide:\nBaseline kWh]]=\"\",Table_PI[[#This Row],[Hide:\nBaseline kWh]]=0),\"\",Table_PI[[#This Row],[Hide:\nBaseline kWh]])","v":""},{"$f":"IF(OR(Table_PI[[#This Row],[Hide:\nBaseline kW]]=\"\",Table_PI[[#This Row],[Hide:\nBaseline kW]]=0),\"\",Table_PI[[#This Row],[Hide:\nBaseline kW]])","v":""},{"$f":"IF(OR(Table_PI[[#This Row],[Hide:\nProposed kWh]]=\"\",Table_PI[[#This Row],[Hide:\nProposed kWh]]=0),\"\",Table_PI[[#This Row],[Hide:\nProposed kWh]])","v":""},{"$f":"IF(OR(Table_PI[[#This Row],[Hide:\nProposed kW]]=\"\",Table_PI[[#This Row],[Hide:\nProposed kW]]=0),\"\",Table_PI[[#This Row],[Hide:\nProposed kW]])","v":""},{"$f":"IF(OR(Table_PI[[#This Row],[Rebate]]=\"\",Table_PI[[#This Row],[Rebate]]=0),\"\",Table_PI[[#This Row],[Rebate]])","v":""},{"$f":"IF(OR(Table_PI[[#This Row],[Hide:\nIncremental Cost]]=\"\",Table_PI[[#This Row],[Hide:\nIncremental Cost]]=0),\"\",Table_PI[[#This Row],[Hide:\nIncremental Cost]])","v":""},{"$f":"IFERROR(IF(Table_SummaryPI[[#This Row],[kWhSavings]]=\"\",\"\",ROUND(Table_SummaryPI[[#This Row],[kWhSavings]]/$AG$401*'Customer Information'!$BC$17,2)),0)","v":""},{"$f":"IF(OR(Table_PI[[#This Row],[Annual kWh]]=\"\",Table_PI[[#This Row],[Annual kWh]]=0),\"\",Table_PI[[#This Row],[Annual kWh]])","v":""},{"$f":"IF(OR(Table_PI[[#This Row],[Peak kW]]=\"\",Table_PI[[#This Row],[Peak kW]]=0),\"\",Table_PI[[#This Row],[Peak kW]])","v":""},{"$f":"IFERROR(IF(Table_SummaryPI[[#This Row],[kWhSavings]]=\"\",\"\",$AU$9*Table_SummaryPI[[#This Row],[kWhSavings]]),0)","v":""},{"$f":"IFERROR(IF(Table_SummaryPI[[#This Row],[kWhSavings]]=\"\",\"\",$AU$14*Table_SummaryPI[[#This Row],[kWhSavings]]),0)","v":""},{"$f":"IFERROR(IF(Table_SummaryPI[[#This Row],[kWhSavings]]=\"\",\"\",$AU$18*Table_SummaryPI[[#This Row],[kWhSavings]]),0)","v":""},{"$f":"IFERROR(IF(Table_SummaryPI[[#This Row],[kWhSavings]]=\"\",\"\",$AU$22*Table_SummaryPI[[#This Row],[kWhSavings]]),0)","v":""},{"$f":"IFERROR(IF(MeasureCalc(Table_PI[[#This Row],[Hide:\nFormula Name]],Table_SummaryPI[[#This Row],[Quantity]],Table_PI[[#This Row],[List 1]],Table_PI[[#This Row],[List 2]],Table_PI[[#This Row],[List 3]],Table_PI[[#This Row],[Size]],Table_PI[[#This Row],[Input 1]],Table_PI[[#This Row],[Input 2]],Table_PI[[#This Row],[Input 3]],Table_PI[[#This Row],[Input 4]],'Customer Information'!$AR$12,200,ROW())<>\"No Rebate\",MeasureCalc(Table_PI[[#This Row],[Hide:\nFormula Name]],Table_SummaryPI[[#This Row],[Quantity]],Table_PI[[#This Row],[List 1]],Table_PI[[#This Row],[List 2]],Table_PI[[#This Row],[List 3]],Table_PI[[#This Row],[Size]],Table_PI[[#This Row],[Input 1]],Table_PI[[#This Row],[Input 2]],Table_PI[[#This Row],[Input 3]],Table_PI[[#This Row],[Input 4]],'Customer Information'!$AR$12,200,ROW()),\"\"),\"\")","v":""},{"$f":"IFERROR(IF(MeasureCalc(Table_PI[[#This Row],[Hide:\nFormula Name]],Table_SummaryPI[[#This Row],[Quantity]],Table_PI[[#This Row],[List 1]],Table_PI[[#This Row],[List 2]],Table_PI[[#This Row],[List 3]],Table_PI[[#This Row],[Size]],Table_PI[[#This Row],[Input 1]],Table_PI[[#This Row],[Input 2]],Table_PI[[#This Row],[Input 3]],Table_PI[[#This Row],[Input 4]],'Customer Information'!$AR$12,201,ROW())<>\"No Rebate\",MeasureCalc(Table_PI[[#This Row],[Hide:\nFormula Name]],Table_SummaryPI[[#This Row],[Quantity]],Table_PI[[#This Row],[List 1]],Table_PI[[#This Row],[List 2]],Table_PI[[#This Row],[List 3]],Table_PI[[#This Row],[Size]],Table_PI[[#This Row],[Input 1]],Table_PI[[#This Row],[Input 2]],Table_PI[[#This Row],[Input 3]],Table_PI[[#This Row],[Input 4]],'Customer Information'!$AR$12,201,ROW()),\"\"),\"\")","v":""}]
[{"$f":"Table_PI[[#This Row],[Line No.]]","v":""},{"$f":"IF(Table_SummaryPI[[#This Row],[MeassureCategory]]<>\"\",CONCATENATE(Table_SummaryPI[[#This Row],[MeassureCategory]],  \" - \", Table_SummaryPI[[#This Row],[ProposedMeasureCategory]],  \" - \", TEXT(Table_SummaryPI[[#This Row],[Size]],\"#,##0.00\"),\" \",Table_SummaryPI[[#This Row],[SizeUnit]]),\"\")","v":""},{"$f":"SUBSTITUTE(Table_PI[[#This Row],[Measure]],\"     \",\"\",1)","v":""},{"$f":"IF(Table_PI[[#This Row],[List 1]]<>\"\",Table_PI[[#This Row],[List 1]],\"\")","v":""},{"$f":"IF(Table_PI[[#This Row],[List 2]]<>\"\",Table_PI[[#This Row],[List 2]],\"\")","v":""},{"$f":"IF(Table_PI[[#This Row],[List 3]]<>\"\",Table_PI[[#This Row],[List 3]],\"\")","v":""},{"$f":"IF(Table_PI[[#This Row],[Manufacturer]]=\"\",\"\",Table_PI[[#This Row],[Manufacturer]])","v":""},{"$f":"IF(Table_PI[[#This Row],[Model Number]]=\"\",\"\",Table_PI[[#This Row],[Model Number]])","v":""},{"$f":"IF(Table_PI[[#This Row],[Serial Number(s)]]=\"\",\"\",Table_PI[[#This Row],[Serial Number(s)]])","v":""},null,{"$f":"IF(Table_PI[[#This Row],[Size]]=\"\",\"\",Table_PI[[#This Row],[Size]])","v":""},null,{"$f":"IFERROR(IF(AND(MeasureCalc(Table_PI[[#This Row],[Hide:\nFormula Name]],Table_SummaryPI[[#This Row],[Quantity]],Table_PI[[#This Row],[List 1]],Table_PI[[#This Row],[List 2]],Table_PI[[#This Row],[List 3]],Table_PI[[#This Row],[Size]],Table_PI[[#This Row],[Input 1]],Table_PI[[#This Row],[Input 2]],Table_PI[[#This Row],[Input 3]],Table_PI[[#This Row],[Input 4]],'Customer Information'!$AR$12,100,ROW())<>0,MeasureCalc(Table_PI[[#This Row],[Hide:\nFormula Name]],Table_SummaryPI[[#This Row],[Quantity]],Table_PI[[#This Row],[List 1]],Table_PI[[#This Row],[List 2]],Table_PI[[#This Row],[List 3]],Table_PI[[#This Row],[Size]],Table_PI[[#This Row],[Input 1]],Table_PI[[#This Row],[Input 2]],Table_PI[[#This Row],[Input 3]],Table_PI[[#This Row],[Input 4]],'Customer Information'!$AR$12,100,ROW())<>\"No Rebate\"),MeasureCalc(Table_PI[[#This Row],[Hide:\nFormula Name]],Table_SummaryPI[[#This Row],[Quantity]],Table_PI[[#This Row],[List 1]],Table_PI[[#This Row],[List 2]],Table_PI[[#This Row],[List 3]],Table_PI[[#This Row],[Size]],Table_PI[[#This Row],[Input 1]],Table_PI[[#This Row],[Input 2]],Table_PI[[#This Row],[Input 3]],Table_PI[[#This Row],[Input 4]],'Customer Information'!$AR$12,100,ROW()),\"\"),\"\")","v":""},{"$f":"IF(Table_PI[[#This Row],[Input 1]]<>\"\",Table_PI[[#This Row],[Input 1]],\"\")","v":""},null,{"$f":"IFERROR(IF(AND(MeasureCalc(Table_PI[[#This Row],[Hide:\nFormula Name]],Table_SummaryPI[[#This Row],[Quantity]],Table_PI[[#This Row],[List 1]],Table_PI[[#This Row],[List 2]],Table_PI[[#This Row],[List 3]],Table_PI[[#This Row],[Size]],Table_PI[[#This Row],[Input 1]],Table_PI[[#This Row],[Input 2]],Table_PI[[#This Row],[Input 3]],Table_PI[[#This Row],[Input 4]],'Customer Information'!$AR$12,101,ROW())<>0,MeasureCalc(Table_PI[[#This Row],[Hide:\nFormula Name]],Table_SummaryPI[[#This Row],[Quantity]],Table_PI[[#This Row],[List 1]],Table_PI[[#This Row],[List 2]],Table_PI[[#This Row],[List 3]],Table_PI[[#This Row],[Size]],Table_PI[[#This Row],[Input 1]],Table_PI[[#This Row],[Input 2]],Table_PI[[#This Row],[Input 3]],Table_PI[[#This Row],[Input 4]],'Customer Information'!$AR$12,101,ROW())<>\"No Rebate\"),MeasureCalc(Table_PI[[#This Row],[Hide:\nFormula Name]],Table_SummaryPI[[#This Row],[Quantity]],Table_PI[[#This Row],[List 1]],Table_PI[[#This Row],[List 2]],Table_PI[[#This Row],[List 3]],Table_PI[[#This Row],[Size]],Table_PI[[#This Row],[Input 1]],Table_PI[[#This Row],[Input 2]],Table_PI[[#This Row],[Input 3]],Table_PI[[#This Row],[Input 4]],'Customer Information'!$AR$12,101,ROW()),\"\"),\"\")","v":""},{"$f":"IF(Table_PI[[#This Row],[Input 2]]<>\"\",Table_PI[[#This Row],[Input 2]],\"\")","v":""},null,{"$f":"IFERROR(IF(AND(MeasureCalc(Table_PI[[#This Row],[Hide:\nFormula Name]],Table_SummaryPI[[#This Row],[Quantity]],Table_PI[[#This Row],[List 1]],Table_PI[[#This Row],[List 2]],Table_PI[[#This Row],[List 3]],Table_PI[[#This Row],[Size]],Table_PI[[#This Row],[Input 1]],Table_PI[[#This Row],[Input 2]],Table_PI[[#This Row],[Input 3]],Table_PI[[#This Row],[Input 4]],'Customer Information'!$AR$12,102,ROW())<>0,MeasureCalc(Table_PI[[#This Row],[Hide:\nFormula Name]],Table_SummaryPI[[#This Row],[Quantity]],Table_PI[[#This Row],[List 1]],Table_PI[[#This Row],[List 2]],Table_PI[[#This Row],[List 3]],Table_PI[[#This Row],[Size]],Table_PI[[#This Row],[Input 1]],Table_PI[[#This Row],[Input 2]],Table_PI[[#This Row],[Input 3]],Table_PI[[#This Row],[Input 4]],'Customer Information'!$AR$12,102,ROW())<>\"No Rebate\"),MeasureCalc(Table_PI[[#This Row],[Hide:\nFormula Name]],Table_SummaryPI[[#This Row],[Quantity]],Table_PI[[#This Row],[List 1]],Table_PI[[#This Row],[List 2]],Table_PI[[#This Row],[List 3]],Table_PI[[#This Row],[Size]],Table_PI[[#This Row],[Input 1]],Table_PI[[#This Row],[Input 2]],Table_PI[[#This Row],[Input 3]],Table_PI[[#This Row],[Input 4]],'Customer Information'!$AR$12,102,ROW()),\"\"),\"\")","v":""},{"$f":"IF(Table_PI[[#This Row],[Input 3]]<>\"\",Table_PI[[#This Row],[Input 3]],\"\")","v":""},null,{"$f":"IFERROR(IF(AND(MeasureCalc(Table_PI[[#This Row],[Hide:\nFormula Name]],Table_SummaryPI[[#This Row],[Quantity]],Table_PI[[#This Row],[List 1]],Table_PI[[#This Row],[List 2]],Table_PI[[#This Row],[List 3]],Table_PI[[#This Row],[Size]],Table_PI[[#This Row],[Input 1]],Table_PI[[#This Row],[Input 2]],Table_PI[[#This Row],[Input 3]],Table_PI[[#This Row],[Input 4]],'Customer Information'!$AR$12,103,ROW())<>0,MeasureCalc(Table_PI[[#This Row],[Hide:\nFormula Name]],Table_SummaryPI[[#This Row],[Quantity]],Table_PI[[#This Row],[List 1]],Table_PI[[#This Row],[List 2]],Table_PI[[#This Row],[List 3]],Table_PI[[#This Row],[Size]],Table_PI[[#This Row],[Input 1]],Table_PI[[#This Row],[Input 2]],Table_PI[[#This Row],[Input 3]],Table_PI[[#This Row],[Input 4]],'Customer Information'!$AR$12,103,ROW())<>\"No Rebate\"),MeasureCalc(Table_PI[[#This Row],[Hide:\nFormula Name]],Table_SummaryPI[[#This Row],[Quantity]],Table_PI[[#This Row],[List 1]],Table_PI[[#This Row],[List 2]],Table_PI[[#This Row],[List 3]],Table_PI[[#This Row],[Size]],Table_PI[[#This Row],[Input 1]],Table_PI[[#This Row],[Input 2]],Table_PI[[#This Row],[Input 3]],Table_PI[[#This Row],[Input 4]],'Customer Information'!$AR$12,103,ROW()),\"\"),\"\")","v":""},{"$f":"IF(Table_PI[[#This Row],[Input 4]]<>\"\",Table_PI[[#This Row],[Input 4]],\"\")","v":""},{"$f":"IF(Table_PI[[#This Row],[Quantity]]=\"\",\"\",Table_PI[[#This Row],[Quantity]])","v":""},{"$f":"IF(Table_PI[[#This Row],[Notes]]=\"\",\"\",Table_PI[[#This Row],[Notes]])","v":""},{"$f":"IF(OR(Table_PI[[#This Row],[Hide:\nBaseline kWh]]=\"\",Table_PI[[#This Row],[Hide:\nBaseline kWh]]=0),\"\",Table_PI[[#This Row],[Hide:\nBaseline kWh]])","v":""},{"$f":"IF(OR(Table_PI[[#This Row],[Hide:\nBaseline kW]]=\"\",Table_PI[[#This Row],[Hide:\nBaseline kW]]=0),\"\",Table_PI[[#This Row],[Hide:\nBaseline kW]])","v":""},{"$f":"IF(OR(Table_PI[[#This Row],[Hide:\nProposed kWh]]=\"\",Table_PI[[#This Row],[Hide:\nProposed kWh]]=0),\"\",Table_PI[[#This Row],[Hide:\nProposed kWh]])","v":""},{"$f":"IF(OR(Table_PI[[#This Row],[Hide:\nProposed kW]]=\"\",Table_PI[[#This Row],[Hide:\nProposed kW]]=0),\"\",Table_PI[[#This Row],[Hide:\nProposed kW]])","v":""},{"$f":"IF(OR(Table_PI[[#This Row],[Rebate]]=\"\",Table_PI[[#This Row],[Rebate]]=0),\"\",Table_PI[[#This Row],[Rebate]])","v":""},{"$f":"IF(OR(Table_PI[[#This Row],[Hide:\nIncremental Cost]]=\"\",Table_PI[[#This Row],[Hide:\nIncremental Cost]]=0),\"\",Table_PI[[#This Row],[Hide:\nIncremental Cost]])","v":""},{"$f":"IFERROR(IF(Table_SummaryPI[[#This Row],[kWhSavings]]=\"\",\"\",ROUND(Table_SummaryPI[[#This Row],[kWhSavings]]/$AG$401*'Customer Information'!$BC$17,2)),0)","v":""},{"$f":"IF(OR(Table_PI[[#This Row],[Annual kWh]]=\"\",Table_PI[[#This Row],[Annual kWh]]=0),\"\",Table_PI[[#This Row],[Annual kWh]])","v":""},{"$f":"IF(OR(Table_PI[[#This Row],[Peak kW]]=\"\",Table_PI[[#This Row],[Peak kW]]=0),\"\",Table_PI[[#This Row],[Peak kW]])","v":""},{"$f":"IFERROR(IF(Table_SummaryPI[[#This Row],[kWhSavings]]=\"\",\"\",$AU$9*Table_SummaryPI[[#This Row],[kWhSavings]]),0)","v":""},{"$f":"IFERROR(IF(Table_SummaryPI[[#This Row],[kWhSavings]]=\"\",\"\",$AU$14*Table_SummaryPI[[#This Row],[kWhSavings]]),0)","v":""},{"$f":"IFERROR(IF(Table_SummaryPI[[#This Row],[kWhSavings]]=\"\",\"\",$AU$18*Table_SummaryPI[[#This Row],[kWhSavings]]),0)","v":""},{"$f":"IFERROR(IF(Table_SummaryPI[[#This Row],[kWhSavings]]=\"\",\"\",$AU$22*Table_SummaryPI[[#This Row],[kWhSavings]]),0)","v":""},{"$f":"IFERROR(IF(MeasureCalc(Table_PI[[#This Row],[Hide:\nFormula Name]],Table_SummaryPI[[#This Row],[Quantity]],Table_PI[[#This Row],[List 1]],Table_PI[[#This Row],[List 2]],Table_PI[[#This Row],[List 3]],Table_PI[[#This Row],[Size]],Table_PI[[#This Row],[Input 1]],Table_PI[[#This Row],[Input 2]],Table_PI[[#This Row],[Input 3]],Table_PI[[#This Row],[Input 4]],'Customer Information'!$AR$12,200,ROW())<>\"No Rebate\",MeasureCalc(Table_PI[[#This Row],[Hide:\nFormula Name]],Table_SummaryPI[[#This Row],[Quantity]],Table_PI[[#This Row],[List 1]],Table_PI[[#This Row],[List 2]],Table_PI[[#This Row],[List 3]],Table_PI[[#This Row],[Size]],Table_PI[[#This Row],[Input 1]],Table_PI[[#This Row],[Input 2]],Table_PI[[#This Row],[Input 3]],Table_PI[[#This Row],[Input 4]],'Customer Information'!$AR$12,200,ROW()),\"\"),\"\")","v":""},{"$f":"IFERROR(IF(MeasureCalc(Table_PI[[#This Row],[Hide:\nFormula Name]],Table_SummaryPI[[#This Row],[Quantity]],Table_PI[[#This Row],[List 1]],Table_PI[[#This Row],[List 2]],Table_PI[[#This Row],[List 3]],Table_PI[[#This Row],[Size]],Table_PI[[#This Row],[Input 1]],Table_PI[[#This Row],[Input 2]],Table_PI[[#This Row],[Input 3]],Table_PI[[#This Row],[Input 4]],'Customer Information'!$AR$12,201,ROW())<>\"No Rebate\",MeasureCalc(Table_PI[[#This Row],[Hide:\nFormula Name]],Table_SummaryPI[[#This Row],[Quantity]],Table_PI[[#This Row],[List 1]],Table_PI[[#This Row],[List 2]],Table_PI[[#This Row],[List 3]],Table_PI[[#This Row],[Size]],Table_PI[[#This Row],[Input 1]],Table_PI[[#This Row],[Input 2]],Table_PI[[#This Row],[Input 3]],Table_PI[[#This Row],[Input 4]],'Customer Information'!$AR$12,201,ROW()),\"\"),\"\")","v":""}]
[{"$f":"Table_PI[[#This Row],[Line No.]]","v":""},{"$f":"IF(Table_SummaryPI[[#This Row],[MeassureCategory]]<>\"\",CONCATENATE(Table_SummaryPI[[#This Row],[MeassureCategory]],  \" - \", Table_SummaryPI[[#This Row],[ProposedMeasureCategory]],  \" - \", TEXT(Table_SummaryPI[[#This Row],[Size]],\"#,##0.00\"),\" \",Table_SummaryPI[[#This Row],[SizeUnit]]),\"\")","v":""},{"$f":"SUBSTITUTE(Table_PI[[#This Row],[Measure]],\"     \",\"\",1)","v":""},{"$f":"IF(Table_PI[[#This Row],[List 1]]<>\"\",Table_PI[[#This Row],[List 1]],\"\")","v":""},{"$f":"IF(Table_PI[[#This Row],[List 2]]<>\"\",Table_PI[[#This Row],[List 2]],\"\")","v":""},{"$f":"IF(Table_PI[[#This Row],[List 3]]<>\"\",Table_PI[[#This Row],[List 3]],\"\")","v":""},{"$f":"IF(Table_PI[[#This Row],[Manufacturer]]=\"\",\"\",Table_PI[[#This Row],[Manufacturer]])","v":""},{"$f":"IF(Table_PI[[#This Row],[Model Number]]=\"\",\"\",Table_PI[[#This Row],[Model Number]])","v":""},{"$f":"IF(Table_PI[[#This Row],[Serial Number(s)]]=\"\",\"\",Table_PI[[#This Row],[Serial Number(s)]])","v":""},null,{"$f":"IF(Table_PI[[#This Row],[Size]]=\"\",\"\",Table_PI[[#This Row],[Size]])","v":""},null,{"$f":"IFERROR(IF(AND(MeasureCalc(Table_PI[[#This Row],[Hide:\nFormula Name]],Table_SummaryPI[[#This Row],[Quantity]],Table_PI[[#This Row],[List 1]],Table_PI[[#This Row],[List 2]],Table_PI[[#This Row],[List 3]],Table_PI[[#This Row],[Size]],Table_PI[[#This Row],[Input 1]],Table_PI[[#This Row],[Input 2]],Table_PI[[#This Row],[Input 3]],Table_PI[[#This Row],[Input 4]],'Customer Information'!$AR$12,100,ROW())<>0,MeasureCalc(Table_PI[[#This Row],[Hide:\nFormula Name]],Table_SummaryPI[[#This Row],[Quantity]],Table_PI[[#This Row],[List 1]],Table_PI[[#This Row],[List 2]],Table_PI[[#This Row],[List 3]],Table_PI[[#This Row],[Size]],Table_PI[[#This Row],[Input 1]],Table_PI[[#This Row],[Input 2]],Table_PI[[#This Row],[Input 3]],Table_PI[[#This Row],[Input 4]],'Customer Information'!$AR$12,100,ROW())<>\"No Rebate\"),MeasureCalc(Table_PI[[#This Row],[Hide:\nFormula Name]],Table_SummaryPI[[#This Row],[Quantity]],Table_PI[[#This Row],[List 1]],Table_PI[[#This Row],[List 2]],Table_PI[[#This Row],[List 3]],Table_PI[[#This Row],[Size]],Table_PI[[#This Row],[Input 1]],Table_PI[[#This Row],[Input 2]],Table_PI[[#This Row],[Input 3]],Table_PI[[#This Row],[Input 4]],'Customer Information'!$AR$12,100,ROW()),\"\"),\"\")","v":""},{"$f":"IF(Table_PI[[#This Row],[Input 1]]<>\"\",Table_PI[[#This Row],[Input 1]],\"\")","v":""},null,{"$f":"IFERROR(IF(AND(MeasureCalc(Table_PI[[#This Row],[Hide:\nFormula Name]],Table_SummaryPI[[#This Row],[Quantity]],Table_PI[[#This Row],[List 1]],Table_PI[[#This Row],[List 2]],Table_PI[[#This Row],[List 3]],Table_PI[[#This Row],[Size]],Table_PI[[#This Row],[Input 1]],Table_PI[[#This Row],[Input 2]],Table_PI[[#This Row],[Input 3]],Table_PI[[#This Row],[Input 4]],'Customer Information'!$AR$12,101,ROW())<>0,MeasureCalc(Table_PI[[#This Row],[Hide:\nFormula Name]],Table_SummaryPI[[#This Row],[Quantity]],Table_PI[[#This Row],[List 1]],Table_PI[[#This Row],[List 2]],Table_PI[[#This Row],[List 3]],Table_PI[[#This Row],[Size]],Table_PI[[#This Row],[Input 1]],Table_PI[[#This Row],[Input 2]],Table_PI[[#This Row],[Input 3]],Table_PI[[#This Row],[Input 4]],'Customer Information'!$AR$12,101,ROW())<>\"No Rebate\"),MeasureCalc(Table_PI[[#This Row],[Hide:\nFormula Name]],Table_SummaryPI[[#This Row],[Quantity]],Table_PI[[#This Row],[List 1]],Table_PI[[#This Row],[List 2]],Table_PI[[#This Row],[List 3]],Table_PI[[#This Row],[Size]],Table_PI[[#This Row],[Input 1]],Table_PI[[#This Row],[Input 2]],Table_PI[[#This Row],[Input 3]],Table_PI[[#This Row],[Input 4]],'Customer Information'!$AR$12,101,ROW()),\"\"),\"\")","v":""},{"$f":"IF(Table_PI[[#This Row],[Input 2]]<>\"\",Table_PI[[#This Row],[Input 2]],\"\")","v":""},null,{"$f":"IFERROR(IF(AND(MeasureCalc(Table_PI[[#This Row],[Hide:\nFormula Name]],Table_SummaryPI[[#This Row],[Quantity]],Table_PI[[#This Row],[List 1]],Table_PI[[#This Row],[List 2]],Table_PI[[#This Row],[List 3]],Table_PI[[#This Row],[Size]],Table_PI[[#This Row],[Input 1]],Table_PI[[#This Row],[Input 2]],Table_PI[[#This Row],[Input 3]],Table_PI[[#This Row],[Input 4]],'Customer Information'!$AR$12,102,ROW())<>0,MeasureCalc(Table_PI[[#This Row],[Hide:\nFormula Name]],Table_SummaryPI[[#This Row],[Quantity]],Table_PI[[#This Row],[List 1]],Table_PI[[#This Row],[List 2]],Table_PI[[#This Row],[List 3]],Table_PI[[#This Row],[Size]],Table_PI[[#This Row],[Input 1]],Table_PI[[#This Row],[Input 2]],Table_PI[[#This Row],[Input 3]],Table_PI[[#This Row],[Input 4]],'Customer Information'!$AR$12,102,ROW())<>\"No Rebate\"),MeasureCalc(Table_PI[[#This Row],[Hide:\nFormula Name]],Table_SummaryPI[[#This Row],[Quantity]],Table_PI[[#This Row],[List 1]],Table_PI[[#This Row],[List 2]],Table_PI[[#This Row],[List 3]],Table_PI[[#This Row],[Size]],Table_PI[[#This Row],[Input 1]],Table_PI[[#This Row],[Input 2]],Table_PI[[#This Row],[Input 3]],Table_PI[[#This Row],[Input 4]],'Customer Information'!$AR$12,102,ROW()),\"\"),\"\")","v":""},{"$f":"IF(Table_PI[[#This Row],[Input 3]]<>\"\",Table_PI[[#This Row],[Input 3]],\"\")","v":""},null,{"$f":"IFERROR(IF(AND(MeasureCalc(Table_PI[[#This Row],[Hide:\nFormula Name]],Table_SummaryPI[[#This Row],[Quantity]],Table_PI[[#This Row],[List 1]],Table_PI[[#This Row],[List 2]],Table_PI[[#This Row],[List 3]],Table_PI[[#This Row],[Size]],Table_PI[[#This Row],[Input 1]],Table_PI[[#This Row],[Input 2]],Table_PI[[#This Row],[Input 3]],Table_PI[[#This Row],[Input 4]],'Customer Information'!$AR$12,103,ROW())<>0,MeasureCalc(Table_PI[[#This Row],[Hide:\nFormula Name]],Table_SummaryPI[[#This Row],[Quantity]],Table_PI[[#This Row],[List 1]],Table_PI[[#This Row],[List 2]],Table_PI[[#This Row],[List 3]],Table_PI[[#This Row],[Size]],Table_PI[[#This Row],[Input 1]],Table_PI[[#This Row],[Input 2]],Table_PI[[#This Row],[Input 3]],Table_PI[[#This Row],[Input 4]],'Customer Information'!$AR$12,103,ROW())<>\"No Rebate\"),MeasureCalc(Table_PI[[#This Row],[Hide:\nFormula Name]],Table_SummaryPI[[#This Row],[Quantity]],Table_PI[[#This Row],[List 1]],Table_PI[[#This Row],[List 2]],Table_PI[[#This Row],[List 3]],Table_PI[[#This Row],[Size]],Table_PI[[#This Row],[Input 1]],Table_PI[[#This Row],[Input 2]],Table_PI[[#This Row],[Input 3]],Table_PI[[#This Row],[Input 4]],'Customer Information'!$AR$12,103,ROW()),\"\"),\"\")","v":""},{"$f":"IF(Table_PI[[#This Row],[Input 4]]<>\"\",Table_PI[[#This Row],[Input 4]],\"\")","v":""},{"$f":"IF(Table_PI[[#This Row],[Quantity]]=\"\",\"\",Table_PI[[#This Row],[Quantity]])","v":""},{"$f":"IF(Table_PI[[#This Row],[Notes]]=\"\",\"\",Table_PI[[#This Row],[Notes]])","v":""},{"$f":"IF(OR(Table_PI[[#This Row],[Hide:\nBaseline kWh]]=\"\",Table_PI[[#This Row],[Hide:\nBaseline kWh]]=0),\"\",Table_PI[[#This Row],[Hide:\nBaseline kWh]])","v":""},{"$f":"IF(OR(Table_PI[[#This Row],[Hide:\nBaseline kW]]=\"\",Table_PI[[#This Row],[Hide:\nBaseline kW]]=0),\"\",Table_PI[[#This Row],[Hide:\nBaseline kW]])","v":""},{"$f":"IF(OR(Table_PI[[#This Row],[Hide:\nProposed kWh]]=\"\",Table_PI[[#This Row],[Hide:\nProposed kWh]]=0),\"\",Table_PI[[#This Row],[Hide:\nProposed kWh]])","v":""},{"$f":"IF(OR(Table_PI[[#This Row],[Hide:\nProposed kW]]=\"\",Table_PI[[#This Row],[Hide:\nProposed kW]]=0),\"\",Table_PI[[#This Row],[Hide:\nProposed kW]])","v":""},{"$f":"IF(OR(Table_PI[[#This Row],[Rebate]]=\"\",Table_PI[[#This Row],[Rebate]]=0),\"\",Table_PI[[#This Row],[Rebate]])","v":""},{"$f":"IF(OR(Table_PI[[#This Row],[Hide:\nIncremental Cost]]=\"\",Table_PI[[#This Row],[Hide:\nIncremental Cost]]=0),\"\",Table_PI[[#This Row],[Hide:\nIncremental Cost]])","v":""},{"$f":"IFERROR(IF(Table_SummaryPI[[#This Row],[kWhSavings]]=\"\",\"\",ROUND(Table_SummaryPI[[#This Row],[kWhSavings]]/$AG$401*'Customer Information'!$BC$17,2)),0)","v":""},{"$f":"IF(OR(Table_PI[[#This Row],[Annual kWh]]=\"\",Table_PI[[#This Row],[Annual kWh]]=0),\"\",Table_PI[[#This Row],[Annual kWh]])","v":""},{"$f":"IF(OR(Table_PI[[#This Row],[Peak kW]]=\"\",Table_PI[[#This Row],[Peak kW]]=0),\"\",Table_PI[[#This Row],[Peak kW]])","v":""},{"$f":"IFERROR(IF(Table_SummaryPI[[#This Row],[kWhSavings]]=\"\",\"\",$AU$9*Table_SummaryPI[[#This Row],[kWhSavings]]),0)","v":""},{"$f":"IFERROR(IF(Table_SummaryPI[[#This Row],[kWhSavings]]=\"\",\"\",$AU$14*Table_SummaryPI[[#This Row],[kWhSavings]]),0)","v":""},{"$f":"IFERROR(IF(Table_SummaryPI[[#This Row],[kWhSavings]]=\"\",\"\",$AU$18*Table_SummaryPI[[#This Row],[kWhSavings]]),0)","v":""},{"$f":"IFERROR(IF(Table_SummaryPI[[#This Row],[kWhSavings]]=\"\",\"\",$AU$22*Table_SummaryPI[[#This Row],[kWhSavings]]),0)","v":""},{"$f":"IFERROR(IF(MeasureCalc(Table_PI[[#This Row],[Hide:\nFormula Name]],Table_SummaryPI[[#This Row],[Quantity]],Table_PI[[#This Row],[List 1]],Table_PI[[#This Row],[List 2]],Table_PI[[#This Row],[List 3]],Table_PI[[#This Row],[Size]],Table_PI[[#This Row],[Input 1]],Table_PI[[#This Row],[Input 2]],Table_PI[[#This Row],[Input 3]],Table_PI[[#This Row],[Input 4]],'Customer Information'!$AR$12,200,ROW())<>\"No Rebate\",MeasureCalc(Table_PI[[#This Row],[Hide:\nFormula Name]],Table_SummaryPI[[#This Row],[Quantity]],Table_PI[[#This Row],[List 1]],Table_PI[[#This Row],[List 2]],Table_PI[[#This Row],[List 3]],Table_PI[[#This Row],[Size]],Table_PI[[#This Row],[Input 1]],Table_PI[[#This Row],[Input 2]],Table_PI[[#This Row],[Input 3]],Table_PI[[#This Row],[Input 4]],'Customer Information'!$AR$12,200,ROW()),\"\"),\"\")","v":""},{"$f":"IFERROR(IF(MeasureCalc(Table_PI[[#This Row],[Hide:\nFormula Name]],Table_SummaryPI[[#This Row],[Quantity]],Table_PI[[#This Row],[List 1]],Table_PI[[#This Row],[List 2]],Table_PI[[#This Row],[List 3]],Table_PI[[#This Row],[Size]],Table_PI[[#This Row],[Input 1]],Table_PI[[#This Row],[Input 2]],Table_PI[[#This Row],[Input 3]],Table_PI[[#This Row],[Input 4]],'Customer Information'!$AR$12,201,ROW())<>\"No Rebate\",MeasureCalc(Table_PI[[#This Row],[Hide:\nFormula Name]],Table_SummaryPI[[#This Row],[Quantity]],Table_PI[[#This Row],[List 1]],Table_PI[[#This Row],[List 2]],Table_PI[[#This Row],[List 3]],Table_PI[[#This Row],[Size]],Table_PI[[#This Row],[Input 1]],Table_PI[[#This Row],[Input 2]],Table_PI[[#This Row],[Input 3]],Table_PI[[#This Row],[Input 4]],'Customer Information'!$AR$12,201,ROW()),\"\"),\"\")","v":""}]
[{"$f":"Table_PI[[#This Row],[Line No.]]","v":""},{"$f":"IF(Table_SummaryPI[[#This Row],[MeassureCategory]]<>\"\",CONCATENATE(Table_SummaryPI[[#This Row],[MeassureCategory]],  \" - \", Table_SummaryPI[[#This Row],[ProposedMeasureCategory]],  \" - \", TEXT(Table_SummaryPI[[#This Row],[Size]],\"#,##0.00\"),\" \",Table_SummaryPI[[#This Row],[SizeUnit]]),\"\")","v":""},{"$f":"SUBSTITUTE(Table_PI[[#This Row],[Measure]],\"     \",\"\",1)","v":""},{"$f":"IF(Table_PI[[#This Row],[List 1]]<>\"\",Table_PI[[#This Row],[List 1]],\"\")","v":""},{"$f":"IF(Table_PI[[#This Row],[List 2]]<>\"\",Table_PI[[#This Row],[List 2]],\"\")","v":""},{"$f":"IF(Table_PI[[#This Row],[List 3]]<>\"\",Table_PI[[#This Row],[List 3]],\"\")","v":""},{"$f":"IF(Table_PI[[#This Row],[Manufacturer]]=\"\",\"\",Table_PI[[#This Row],[Manufacturer]])","v":""},{"$f":"IF(Table_PI[[#This Row],[Model Number]]=\"\",\"\",Table_PI[[#This Row],[Model Number]])","v":""},{"$f":"IF(Table_PI[[#This Row],[Serial Number(s)]]=\"\",\"\",Table_PI[[#This Row],[Serial Number(s)]])","v":""},null,{"$f":"IF(Table_PI[[#This Row],[Size]]=\"\",\"\",Table_PI[[#This Row],[Size]])","v":""},null,{"$f":"IFERROR(IF(AND(MeasureCalc(Table_PI[[#This Row],[Hide:\nFormula Name]],Table_SummaryPI[[#This Row],[Quantity]],Table_PI[[#This Row],[List 1]],Table_PI[[#This Row],[List 2]],Table_PI[[#This Row],[List 3]],Table_PI[[#This Row],[Size]],Table_PI[[#This Row],[Input 1]],Table_PI[[#This Row],[Input 2]],Table_PI[[#This Row],[Input 3]],Table_PI[[#This Row],[Input 4]],'Customer Information'!$AR$12,100,ROW())<>0,MeasureCalc(Table_PI[[#This Row],[Hide:\nFormula Name]],Table_SummaryPI[[#This Row],[Quantity]],Table_PI[[#This Row],[List 1]],Table_PI[[#This Row],[List 2]],Table_PI[[#This Row],[List 3]],Table_PI[[#This Row],[Size]],Table_PI[[#This Row],[Input 1]],Table_PI[[#This Row],[Input 2]],Table_PI[[#This Row],[Input 3]],Table_PI[[#This Row],[Input 4]],'Customer Information'!$AR$12,100,ROW())<>\"No Rebate\"),MeasureCalc(Table_PI[[#This Row],[Hide:\nFormula Name]],Table_SummaryPI[[#This Row],[Quantity]],Table_PI[[#This Row],[List 1]],Table_PI[[#This Row],[List 2]],Table_PI[[#This Row],[List 3]],Table_PI[[#This Row],[Size]],Table_PI[[#This Row],[Input 1]],Table_PI[[#This Row],[Input 2]],Table_PI[[#This Row],[Input 3]],Table_PI[[#This Row],[Input 4]],'Customer Information'!$AR$12,100,ROW()),\"\"),\"\")","v":""},{"$f":"IF(Table_PI[[#This Row],[Input 1]]<>\"\",Table_PI[[#This Row],[Input 1]],\"\")","v":""},null,{"$f":"IFERROR(IF(AND(MeasureCalc(Table_PI[[#This Row],[Hide:\nFormula Name]],Table_SummaryPI[[#This Row],[Quantity]],Table_PI[[#This Row],[List 1]],Table_PI[[#This Row],[List 2]],Table_PI[[#This Row],[List 3]],Table_PI[[#This Row],[Size]],Table_PI[[#This Row],[Input 1]],Table_PI[[#This Row],[Input 2]],Table_PI[[#This Row],[Input 3]],Table_PI[[#This Row],[Input 4]],'Customer Information'!$AR$12,101,ROW())<>0,MeasureCalc(Table_PI[[#This Row],[Hide:\nFormula Name]],Table_SummaryPI[[#This Row],[Quantity]],Table_PI[[#This Row],[List 1]],Table_PI[[#This Row],[List 2]],Table_PI[[#This Row],[List 3]],Table_PI[[#This Row],[Size]],Table_PI[[#This Row],[Input 1]],Table_PI[[#This Row],[Input 2]],Table_PI[[#This Row],[Input 3]],Table_PI[[#This Row],[Input 4]],'Customer Information'!$AR$12,101,ROW())<>\"No Rebate\"),MeasureCalc(Table_PI[[#This Row],[Hide:\nFormula Name]],Table_SummaryPI[[#This Row],[Quantity]],Table_PI[[#This Row],[List 1]],Table_PI[[#This Row],[List 2]],Table_PI[[#This Row],[List 3]],Table_PI[[#This Row],[Size]],Table_PI[[#This Row],[Input 1]],Table_PI[[#This Row],[Input 2]],Table_PI[[#This Row],[Input 3]],Table_PI[[#This Row],[Input 4]],'Customer Information'!$AR$12,101,ROW()),\"\"),\"\")","v":""},{"$f":"IF(Table_PI[[#This Row],[Input 2]]<>\"\",Table_PI[[#This Row],[Input 2]],\"\")","v":""},null,{"$f":"IFERROR(IF(AND(MeasureCalc(Table_PI[[#This Row],[Hide:\nFormula Name]],Table_SummaryPI[[#This Row],[Quantity]],Table_PI[[#This Row],[List 1]],Table_PI[[#This Row],[List 2]],Table_PI[[#This Row],[List 3]],Table_PI[[#This Row],[Size]],Table_PI[[#This Row],[Input 1]],Table_PI[[#This Row],[Input 2]],Table_PI[[#This Row],[Input 3]],Table_PI[[#This Row],[Input 4]],'Customer Information'!$AR$12,102,ROW())<>0,MeasureCalc(Table_PI[[#This Row],[Hide:\nFormula Name]],Table_SummaryPI[[#This Row],[Quantity]],Table_PI[[#This Row],[List 1]],Table_PI[[#This Row],[List 2]],Table_PI[[#This Row],[List 3]],Table_PI[[#This Row],[Size]],Table_PI[[#This Row],[Input 1]],Table_PI[[#This Row],[Input 2]],Table_PI[[#This Row],[Input 3]],Table_PI[[#This Row],[Input 4]],'Customer Information'!$AR$12,102,ROW())<>\"No Rebate\"),MeasureCalc(Table_PI[[#This Row],[Hide:\nFormula Name]],Table_SummaryPI[[#This Row],[Quantity]],Table_PI[[#This Row],[List 1]],Table_PI[[#This Row],[List 2]],Table_PI[[#This Row],[List 3]],Table_PI[[#This Row],[Size]],Table_PI[[#This Row],[Input 1]],Table_PI[[#This Row],[Input 2]],Table_PI[[#This Row],[Input 3]],Table_PI[[#This Row],[Input 4]],'Customer Information'!$AR$12,102,ROW()),\"\"),\"\")","v":""},{"$f":"IF(Table_PI[[#This Row],[Input 3]]<>\"\",Table_PI[[#This Row],[Input 3]],\"\")","v":""},null,{"$f":"IFERROR(IF(AND(MeasureCalc(Table_PI[[#This Row],[Hide:\nFormula Name]],Table_SummaryPI[[#This Row],[Quantity]],Table_PI[[#This Row],[List 1]],Table_PI[[#This Row],[List 2]],Table_PI[[#This Row],[List 3]],Table_PI[[#This Row],[Size]],Table_PI[[#This Row],[Input 1]],Table_PI[[#This Row],[Input 2]],Table_PI[[#This Row],[Input 3]],Table_PI[[#This Row],[Input 4]],'Customer Information'!$AR$12,103,ROW())<>0,MeasureCalc(Table_PI[[#This Row],[Hide:\nFormula Name]],Table_SummaryPI[[#This Row],[Quantity]],Table_PI[[#This Row],[List 1]],Table_PI[[#This Row],[List 2]],Table_PI[[#This Row],[List 3]],Table_PI[[#This Row],[Size]],Table_PI[[#This Row],[Input 1]],Table_PI[[#This Row],[Input 2]],Table_PI[[#This Row],[Input 3]],Table_PI[[#This Row],[Input 4]],'Customer Information'!$AR$12,103,ROW())<>\"No Rebate\"),MeasureCalc(Table_PI[[#This Row],[Hide:\nFormula Name]],Table_SummaryPI[[#This Row],[Quantity]],Table_PI[[#This Row],[List 1]],Table_PI[[#This Row],[List 2]],Table_PI[[#This Row],[List 3]],Table_PI[[#This Row],[Size]],Table_PI[[#This Row],[Input 1]],Table_PI[[#This Row],[Input 2]],Table_PI[[#This Row],[Input 3]],Table_PI[[#This Row],[Input 4]],'Customer Information'!$AR$12,103,ROW()),\"\"),\"\")","v":""},{"$f":"IF(Table_PI[[#This Row],[Input 4]]<>\"\",Table_PI[[#This Row],[Input 4]],\"\")","v":""},{"$f":"IF(Table_PI[[#This Row],[Quantity]]=\"\",\"\",Table_PI[[#This Row],[Quantity]])","v":""},{"$f":"IF(Table_PI[[#This Row],[Notes]]=\"\",\"\",Table_PI[[#This Row],[Notes]])","v":""},{"$f":"IF(OR(Table_PI[[#This Row],[Hide:\nBaseline kWh]]=\"\",Table_PI[[#This Row],[Hide:\nBaseline kWh]]=0),\"\",Table_PI[[#This Row],[Hide:\nBaseline kWh]])","v":""},{"$f":"IF(OR(Table_PI[[#This Row],[Hide:\nBaseline kW]]=\"\",Table_PI[[#This Row],[Hide:\nBaseline kW]]=0),\"\",Table_PI[[#This Row],[Hide:\nBaseline kW]])","v":""},{"$f":"IF(OR(Table_PI[[#This Row],[Hide:\nProposed kWh]]=\"\",Table_PI[[#This Row],[Hide:\nProposed kWh]]=0),\"\",Table_PI[[#This Row],[Hide:\nProposed kWh]])","v":""},{"$f":"IF(OR(Table_PI[[#This Row],[Hide:\nProposed kW]]=\"\",Table_PI[[#This Row],[Hide:\nProposed kW]]=0),\"\",Table_PI[[#This Row],[Hide:\nProposed kW]])","v":""},{"$f":"IF(OR(Table_PI[[#This Row],[Rebate]]=\"\",Table_PI[[#This Row],[Rebate]]=0),\"\",Table_PI[[#This Row],[Rebate]])","v":""},{"$f":"IF(OR(Table_PI[[#This Row],[Hide:\nIncremental Cost]]=\"\",Table_PI[[#This Row],[Hide:\nIncremental Cost]]=0),\"\",Table_PI[[#This Row],[Hide:\nIncremental Cost]])","v":""},{"$f":"IFERROR(IF(Table_SummaryPI[[#This Row],[kWhSavings]]=\"\",\"\",ROUND(Table_SummaryPI[[#This Row],[kWhSavings]]/$AG$401*'Customer Information'!$BC$17,2)),0)","v":""},{"$f":"IF(OR(Table_PI[[#This Row],[Annual kWh]]=\"\",Table_PI[[#This Row],[Annual kWh]]=0),\"\",Table_PI[[#This Row],[Annual kWh]])","v":""},{"$f":"IF(OR(Table_PI[[#This Row],[Peak kW]]=\"\",Table_PI[[#This Row],[Peak kW]]=0),\"\",Table_PI[[#This Row],[Peak kW]])","v":""},{"$f":"IFERROR(IF(Table_SummaryPI[[#This Row],[kWhSavings]]=\"\",\"\",$AU$9*Table_SummaryPI[[#This Row],[kWhSavings]]),0)","v":""},{"$f":"IFERROR(IF(Table_SummaryPI[[#This Row],[kWhSavings]]=\"\",\"\",$AU$14*Table_SummaryPI[[#This Row],[kWhSavings]]),0)","v":""},{"$f":"IFERROR(IF(Table_SummaryPI[[#This Row],[kWhSavings]]=\"\",\"\",$AU$18*Table_SummaryPI[[#This Row],[kWhSavings]]),0)","v":""},{"$f":"IFERROR(IF(Table_SummaryPI[[#This Row],[kWhSavings]]=\"\",\"\",$AU$22*Table_SummaryPI[[#This Row],[kWhSavings]]),0)","v":""},{"$f":"IFERROR(IF(MeasureCalc(Table_PI[[#This Row],[Hide:\nFormula Name]],Table_SummaryPI[[#This Row],[Quantity]],Table_PI[[#This Row],[List 1]],Table_PI[[#This Row],[List 2]],Table_PI[[#This Row],[List 3]],Table_PI[[#This Row],[Size]],Table_PI[[#This Row],[Input 1]],Table_PI[[#This Row],[Input 2]],Table_PI[[#This Row],[Input 3]],Table_PI[[#This Row],[Input 4]],'Customer Information'!$AR$12,200,ROW())<>\"No Rebate\",MeasureCalc(Table_PI[[#This Row],[Hide:\nFormula Name]],Table_SummaryPI[[#This Row],[Quantity]],Table_PI[[#This Row],[List 1]],Table_PI[[#This Row],[List 2]],Table_PI[[#This Row],[List 3]],Table_PI[[#This Row],[Size]],Table_PI[[#This Row],[Input 1]],Table_PI[[#This Row],[Input 2]],Table_PI[[#This Row],[Input 3]],Table_PI[[#This Row],[Input 4]],'Customer Information'!$AR$12,200,ROW()),\"\"),\"\")","v":""},{"$f":"IFERROR(IF(MeasureCalc(Table_PI[[#This Row],[Hide:\nFormula Name]],Table_SummaryPI[[#This Row],[Quantity]],Table_PI[[#This Row],[List 1]],Table_PI[[#This Row],[List 2]],Table_PI[[#This Row],[List 3]],Table_PI[[#This Row],[Size]],Table_PI[[#This Row],[Input 1]],Table_PI[[#This Row],[Input 2]],Table_PI[[#This Row],[Input 3]],Table_PI[[#This Row],[Input 4]],'Customer Information'!$AR$12,201,ROW())<>\"No Rebate\",MeasureCalc(Table_PI[[#This Row],[Hide:\nFormula Name]],Table_SummaryPI[[#This Row],[Quantity]],Table_PI[[#This Row],[List 1]],Table_PI[[#This Row],[List 2]],Table_PI[[#This Row],[List 3]],Table_PI[[#This Row],[Size]],Table_PI[[#This Row],[Input 1]],Table_PI[[#This Row],[Input 2]],Table_PI[[#This Row],[Input 3]],Table_PI[[#This Row],[Input 4]],'Customer Information'!$AR$12,201,ROW()),\"\"),\"\")","v":""}]
[{"$f":"Table_PI[[#This Row],[Line No.]]","v":""},{"$f":"IF(Table_SummaryPI[[#This Row],[MeassureCategory]]<>\"\",CONCATENATE(Table_SummaryPI[[#This Row],[MeassureCategory]],  \" - \", Table_SummaryPI[[#This Row],[ProposedMeasureCategory]],  \" - \", TEXT(Table_SummaryPI[[#This Row],[Size]],\"#,##0.00\"),\" \",Table_SummaryPI[[#This Row],[SizeUnit]]),\"\")","v":""},{"$f":"SUBSTITUTE(Table_PI[[#This Row],[Measure]],\"     \",\"\",1)","v":""},{"$f":"IF(Table_PI[[#This Row],[List 1]]<>\"\",Table_PI[[#This Row],[List 1]],\"\")","v":""},{"$f":"IF(Table_PI[[#This Row],[List 2]]<>\"\",Table_PI[[#This Row],[List 2]],\"\")","v":""},{"$f":"IF(Table_PI[[#This Row],[List 3]]<>\"\",Table_PI[[#This Row],[List 3]],\"\")","v":""},{"$f":"IF(Table_PI[[#This Row],[Manufacturer]]=\"\",\"\",Table_PI[[#This Row],[Manufacturer]])","v":""},{"$f":"IF(Table_PI[[#This Row],[Model Number]]=\"\",\"\",Table_PI[[#This Row],[Model Number]])","v":""},{"$f":"IF(Table_PI[[#This Row],[Serial Number(s)]]=\"\",\"\",Table_PI[[#This Row],[Serial Number(s)]])","v":""},null,{"$f":"IF(Table_PI[[#This Row],[Size]]=\"\",\"\",Table_PI[[#This Row],[Size]])","v":""},null,{"$f":"IFERROR(IF(AND(MeasureCalc(Table_PI[[#This Row],[Hide:\nFormula Name]],Table_SummaryPI[[#This Row],[Quantity]],Table_PI[[#This Row],[List 1]],Table_PI[[#This Row],[List 2]],Table_PI[[#This Row],[List 3]],Table_PI[[#This Row],[Size]],Table_PI[[#This Row],[Input 1]],Table_PI[[#This Row],[Input 2]],Table_PI[[#This Row],[Input 3]],Table_PI[[#This Row],[Input 4]],'Customer Information'!$AR$12,100,ROW())<>0,MeasureCalc(Table_PI[[#This Row],[Hide:\nFormula Name]],Table_SummaryPI[[#This Row],[Quantity]],Table_PI[[#This Row],[List 1]],Table_PI[[#This Row],[List 2]],Table_PI[[#This Row],[List 3]],Table_PI[[#This Row],[Size]],Table_PI[[#This Row],[Input 1]],Table_PI[[#This Row],[Input 2]],Table_PI[[#This Row],[Input 3]],Table_PI[[#This Row],[Input 4]],'Customer Information'!$AR$12,100,ROW())<>\"No Rebate\"),MeasureCalc(Table_PI[[#This Row],[Hide:\nFormula Name]],Table_SummaryPI[[#This Row],[Quantity]],Table_PI[[#This Row],[List 1]],Table_PI[[#This Row],[List 2]],Table_PI[[#This Row],[List 3]],Table_PI[[#This Row],[Size]],Table_PI[[#This Row],[Input 1]],Table_PI[[#This Row],[Input 2]],Table_PI[[#This Row],[Input 3]],Table_PI[[#This Row],[Input 4]],'Customer Information'!$AR$12,100,ROW()),\"\"),\"\")","v":""},{"$f":"IF(Table_PI[[#This Row],[Input 1]]<>\"\",Table_PI[[#This Row],[Input 1]],\"\")","v":""},null,{"$f":"IFERROR(IF(AND(MeasureCalc(Table_PI[[#This Row],[Hide:\nFormula Name]],Table_SummaryPI[[#This Row],[Quantity]],Table_PI[[#This Row],[List 1]],Table_PI[[#This Row],[List 2]],Table_PI[[#This Row],[List 3]],Table_PI[[#This Row],[Size]],Table_PI[[#This Row],[Input 1]],Table_PI[[#This Row],[Input 2]],Table_PI[[#This Row],[Input 3]],Table_PI[[#This Row],[Input 4]],'Customer Information'!$AR$12,101,ROW())<>0,MeasureCalc(Table_PI[[#This Row],[Hide:\nFormula Name]],Table_SummaryPI[[#This Row],[Quantity]],Table_PI[[#This Row],[List 1]],Table_PI[[#This Row],[List 2]],Table_PI[[#This Row],[List 3]],Table_PI[[#This Row],[Size]],Table_PI[[#This Row],[Input 1]],Table_PI[[#This Row],[Input 2]],Table_PI[[#This Row],[Input 3]],Table_PI[[#This Row],[Input 4]],'Customer Information'!$AR$12,101,ROW())<>\"No Rebate\"),MeasureCalc(Table_PI[[#This Row],[Hide:\nFormula Name]],Table_SummaryPI[[#This Row],[Quantity]],Table_PI[[#This Row],[List 1]],Table_PI[[#This Row],[List 2]],Table_PI[[#This Row],[List 3]],Table_PI[[#This Row],[Size]],Table_PI[[#This Row],[Input 1]],Table_PI[[#This Row],[Input 2]],Table_PI[[#This Row],[Input 3]],Table_PI[[#This Row],[Input 4]],'Customer Information'!$AR$12,101,ROW()),\"\"),\"\")","v":""},{"$f":"IF(Table_PI[[#This Row],[Input 2]]<>\"\",Table_PI[[#This Row],[Input 2]],\"\")","v":""},null,{"$f":"IFERROR(IF(AND(MeasureCalc(Table_PI[[#This Row],[Hide:\nFormula Name]],Table_SummaryPI[[#This Row],[Quantity]],Table_PI[[#This Row],[List 1]],Table_PI[[#This Row],[List 2]],Table_PI[[#This Row],[List 3]],Table_PI[[#This Row],[Size]],Table_PI[[#This Row],[Input 1]],Table_PI[[#This Row],[Input 2]],Table_PI[[#This Row],[Input 3]],Table_PI[[#This Row],[Input 4]],'Customer Information'!$AR$12,102,ROW())<>0,MeasureCalc(Table_PI[[#This Row],[Hide:\nFormula Name]],Table_SummaryPI[[#This Row],[Quantity]],Table_PI[[#This Row],[List 1]],Table_PI[[#This Row],[List 2]],Table_PI[[#This Row],[List 3]],Table_PI[[#This Row],[Size]],Table_PI[[#This Row],[Input 1]],Table_PI[[#This Row],[Input 2]],Table_PI[[#This Row],[Input 3]],Table_PI[[#This Row],[Input 4]],'Customer Information'!$AR$12,102,ROW())<>\"No Rebate\"),MeasureCalc(Table_PI[[#This Row],[Hide:\nFormula Name]],Table_SummaryPI[[#This Row],[Quantity]],Table_PI[[#This Row],[List 1]],Table_PI[[#This Row],[List 2]],Table_PI[[#This Row],[List 3]],Table_PI[[#This Row],[Size]],Table_PI[[#This Row],[Input 1]],Table_PI[[#This Row],[Input 2]],Table_PI[[#This Row],[Input 3]],Table_PI[[#This Row],[Input 4]],'Customer Information'!$AR$12,102,ROW()),\"\"),\"\")","v":""},{"$f":"IF(Table_PI[[#This Row],[Input 3]]<>\"\",Table_PI[[#This Row],[Input 3]],\"\")","v":""},null,{"$f":"IFERROR(IF(AND(MeasureCalc(Table_PI[[#This Row],[Hide:\nFormula Name]],Table_SummaryPI[[#This Row],[Quantity]],Table_PI[[#This Row],[List 1]],Table_PI[[#This Row],[List 2]],Table_PI[[#This Row],[List 3]],Table_PI[[#This Row],[Size]],Table_PI[[#This Row],[Input 1]],Table_PI[[#This Row],[Input 2]],Table_PI[[#This Row],[Input 3]],Table_PI[[#This Row],[Input 4]],'Customer Information'!$AR$12,103,ROW())<>0,MeasureCalc(Table_PI[[#This Row],[Hide:\nFormula Name]],Table_SummaryPI[[#This Row],[Quantity]],Table_PI[[#This Row],[List 1]],Table_PI[[#This Row],[List 2]],Table_PI[[#This Row],[List 3]],Table_PI[[#This Row],[Size]],Table_PI[[#This Row],[Input 1]],Table_PI[[#This Row],[Input 2]],Table_PI[[#This Row],[Input 3]],Table_PI[[#This Row],[Input 4]],'Customer Information'!$AR$12,103,ROW())<>\"No Rebate\"),MeasureCalc(Table_PI[[#This Row],[Hide:\nFormula Name]],Table_SummaryPI[[#This Row],[Quantity]],Table_PI[[#This Row],[List 1]],Table_PI[[#This Row],[List 2]],Table_PI[[#This Row],[List 3]],Table_PI[[#This Row],[Size]],Table_PI[[#This Row],[Input 1]],Table_PI[[#This Row],[Input 2]],Table_PI[[#This Row],[Input 3]],Table_PI[[#This Row],[Input 4]],'Customer Information'!$AR$12,103,ROW()),\"\"),\"\")","v":""},{"$f":"IF(Table_PI[[#This Row],[Input 4]]<>\"\",Table_PI[[#This Row],[Input 4]],\"\")","v":""},{"$f":"IF(Table_PI[[#This Row],[Quantity]]=\"\",\"\",Table_PI[[#This Row],[Quantity]])","v":""},{"$f":"IF(Table_PI[[#This Row],[Notes]]=\"\",\"\",Table_PI[[#This Row],[Notes]])","v":""},{"$f":"IF(OR(Table_PI[[#This Row],[Hide:\nBaseline kWh]]=\"\",Table_PI[[#This Row],[Hide:\nBaseline kWh]]=0),\"\",Table_PI[[#This Row],[Hide:\nBaseline kWh]])","v":""},{"$f":"IF(OR(Table_PI[[#This Row],[Hide:\nBaseline kW]]=\"\",Table_PI[[#This Row],[Hide:\nBaseline kW]]=0),\"\",Table_PI[[#This Row],[Hide:\nBaseline kW]])","v":""},{"$f":"IF(OR(Table_PI[[#This Row],[Hide:\nProposed kWh]]=\"\",Table_PI[[#This Row],[Hide:\nProposed kWh]]=0),\"\",Table_PI[[#This Row],[Hide:\nProposed kWh]])","v":""},{"$f":"IF(OR(Table_PI[[#This Row],[Hide:\nProposed kW]]=\"\",Table_PI[[#This Row],[Hide:\nProposed kW]]=0),\"\",Table_PI[[#This Row],[Hide:\nProposed kW]])","v":""},{"$f":"IF(OR(Table_PI[[#This Row],[Rebate]]=\"\",Table_PI[[#This Row],[Rebate]]=0),\"\",Table_PI[[#This Row],[Rebate]])","v":""},{"$f":"IF(OR(Table_PI[[#This Row],[Hide:\nIncremental Cost]]=\"\",Table_PI[[#This Row],[Hide:\nIncremental Cost]]=0),\"\",Table_PI[[#This Row],[Hide:\nIncremental Cost]])","v":""},{"$f":"IFERROR(IF(Table_SummaryPI[[#This Row],[kWhSavings]]=\"\",\"\",ROUND(Table_SummaryPI[[#This Row],[kWhSavings]]/$AG$401*'Customer Information'!$BC$17,2)),0)","v":""},{"$f":"IF(OR(Table_PI[[#This Row],[Annual kWh]]=\"\",Table_PI[[#This Row],[Annual kWh]]=0),\"\",Table_PI[[#This Row],[Annual kWh]])","v":""},{"$f":"IF(OR(Table_PI[[#This Row],[Peak kW]]=\"\",Table_PI[[#This Row],[Peak kW]]=0),\"\",Table_PI[[#This Row],[Peak kW]])","v":""},{"$f":"IFERROR(IF(Table_SummaryPI[[#This Row],[kWhSavings]]=\"\",\"\",$AU$9*Table_SummaryPI[[#This Row],[kWhSavings]]),0)","v":""},{"$f":"IFERROR(IF(Table_SummaryPI[[#This Row],[kWhSavings]]=\"\",\"\",$AU$14*Table_SummaryPI[[#This Row],[kWhSavings]]),0)","v":""},{"$f":"IFERROR(IF(Table_SummaryPI[[#This Row],[kWhSavings]]=\"\",\"\",$AU$18*Table_SummaryPI[[#This Row],[kWhSavings]]),0)","v":""},{"$f":"IFERROR(IF(Table_SummaryPI[[#This Row],[kWhSavings]]=\"\",\"\",$AU$22*Table_SummaryPI[[#This Row],[kWhSavings]]),0)","v":""},{"$f":"IFERROR(IF(MeasureCalc(Table_PI[[#This Row],[Hide:\nFormula Name]],Table_SummaryPI[[#This Row],[Quantity]],Table_PI[[#This Row],[List 1]],Table_PI[[#This Row],[List 2]],Table_PI[[#This Row],[List 3]],Table_PI[[#This Row],[Size]],Table_PI[[#This Row],[Input 1]],Table_PI[[#This Row],[Input 2]],Table_PI[[#This Row],[Input 3]],Table_PI[[#This Row],[Input 4]],'Customer Information'!$AR$12,200,ROW())<>\"No Rebate\",MeasureCalc(Table_PI[[#This Row],[Hide:\nFormula Name]],Table_SummaryPI[[#This Row],[Quantity]],Table_PI[[#This Row],[List 1]],Table_PI[[#This Row],[List 2]],Table_PI[[#This Row],[List 3]],Table_PI[[#This Row],[Size]],Table_PI[[#This Row],[Input 1]],Table_PI[[#This Row],[Input 2]],Table_PI[[#This Row],[Input 3]],Table_PI[[#This Row],[Input 4]],'Customer Information'!$AR$12,200,ROW()),\"\"),\"\")","v":""},{"$f":"IFERROR(IF(MeasureCalc(Table_PI[[#This Row],[Hide:\nFormula Name]],Table_SummaryPI[[#This Row],[Quantity]],Table_PI[[#This Row],[List 1]],Table_PI[[#This Row],[List 2]],Table_PI[[#This Row],[List 3]],Table_PI[[#This Row],[Size]],Table_PI[[#This Row],[Input 1]],Table_PI[[#This Row],[Input 2]],Table_PI[[#This Row],[Input 3]],Table_PI[[#This Row],[Input 4]],'Customer Information'!$AR$12,201,ROW())<>\"No Rebate\",MeasureCalc(Table_PI[[#This Row],[Hide:\nFormula Name]],Table_SummaryPI[[#This Row],[Quantity]],Table_PI[[#This Row],[List 1]],Table_PI[[#This Row],[List 2]],Table_PI[[#This Row],[List 3]],Table_PI[[#This Row],[Size]],Table_PI[[#This Row],[Input 1]],Table_PI[[#This Row],[Input 2]],Table_PI[[#This Row],[Input 3]],Table_PI[[#This Row],[Input 4]],'Customer Information'!$AR$12,201,ROW()),\"\"),\"\")","v":""}]
["Totals",null,null,null,null,null,null,null,null,null,null,null,null,null,null,null,null,null,null,null,null,null,null,null,null,{"$f":"SUM(Table_SummaryPI[BaselinekWh])","v":0},{"$f":"SUM(Table_SummaryPI[BaselinekW])","v":0},{"$f":"SUM(Table_SummaryPI[ProposedkWh])","v":0},{"$f":"SUM(Table_SummaryPI[ProposedkW])","v":0},{"$f":"SUM(Table_SummaryPI[Incentive_Customer])","v":0},{"$f":"SUM(Table_SummaryPI[IncrementalCost])","v":0},{"$f":"SUM(Table_SummaryPI[MeasureCost])","v":0},{"$f":"SUM(Table_SummaryPI[kWhSavings])","v":0},{"$f":"SUM(Table_SummaryPI[DemandSavingskW])","v":0},{"$f":"SUM(Table_SummaryPI[AnnualCO2Savings])","v":0},{"$f":"SUM(Table_SummaryPI[AnnualVehicleSavings])","v":0},{"$f":"SUM(Table_SummaryPI[AnnualCarbonSavings])","v":0},{"$f":"SUM(Table_SummaryPI[AnnualN3OSavings])","v":0}]

{"sheet":"PI_Print","index":5,"n_rows":401,"n_cols":14,"rows_kept":401,"cut":false,"hidden":true,"merged":[]}
[1,2,3,4,5,6,7,8,9,10,11,12,13,14]
["Line No.","Proposed Equipment","Manufacturer/Model Number","Serial Number(s)","Quantity","Existing kWh","Existing kW","Proposed kWh","Proposed kW","Notes","Rebate","Measure Cost","Annual kWh","Peak kW"]
[{"$f":"Table_SummaryPI[[#This Row],[Line No.]]","v":""},{"$f":"IF(Table_PrintPI[[#This Row],[Line No.]]=\"\",\"\",CONCATENATE(Table_PrintPI[[#This Row],[Line No.]],\" - \",Table_SummaryPI[[#This Row],[MeasureName]]))","v":""},{"$f":"IF(Table_SummaryPI[[#This Row],[Manufacturer]]<>\"\",CONCATENATE(Table_SummaryPI[[#This Row],[Manufacturer]],\"/\",Table_SummaryPI[[#This Row],[Model'#]]),\"\")","v":""},{"$f":"IF(Table_SummaryPI[[#This Row],[Serial'#]]<>\"\",Table_SummaryPI[[#This Row],[Serial'#]],\"\")","v":""},{"$f":"IF(Table_SummaryPI[[#This Row],[Quantity]]<>\"\",Table_SummaryPI[[#This Row],[Quantity]],\"\")","v":""},{"$f":"IF(Table_SummaryPI[[#This Row],[BaselinekWh]]<>\"\",Table_SummaryPI[[#This Row],[BaselinekWh]],\"\")","v":""},{"$f":"IF(Table_SummaryPI[[#This Row],[BaselinekW]]<>\"\",Table_SummaryPI[[#This Row],[BaselinekW]],\"\")","v":""},{"$f":"IF(Table_SummaryPI[[#This Row],[ProposedkWh]]<>\"\",Table_SummaryPI[[#This Row],[ProposedkWh]],\"\")","v":""},{"$f":"IF(Table_SummaryPI[[#This Row],[ProposedkW]]<>\"\",Table_SummaryPI[[#This Row],[ProposedkW]],\"\")","v":""},{"$f":"IF(Table_SummaryPI[[#This Row],[Notes]]<>\"\",Table_SummaryPI[[#This Row],[Notes]],\"\")","v":""},{"$f":"IF(Table_SummaryPI[[#This Row],[Incentive_Customer]]<>\"\",Table_SummaryPI[[#This Row],[Incentive_Customer]],0)","v":0},{"$f":"IF(Table_SummaryPI[[#This Row],[MeasureCost]]<>\"\",Table_SummaryPI[[#This Row],[MeasureCost]],0)","v":0},{"$f":"IF(Table_SummaryPI[[#This Row],[kWhSavings]]<>\"\",Table_SummaryPI[[#This Row],[kWhSavings]],0)","v":0},{"$f":"IF(Table_SummaryPI[[#This Row],[DemandSavingskW]]<>\"\",Table_SummaryPI[[#This Row],[DemandSavingskW]],0)","v":0}]
[{"$f":"Table_SummaryPI[[#This Row],[Line No.]]","v":""},{"$f":"IF(Table_PrintPI[[#This Row],[Line No.]]=\"\",\"\",CONCATENATE(Table_PrintPI[[#This Row],[Line No.]],\" - \",Table_SummaryPI[[#This Row],[MeasureName]]))","v":""},{"$f":"IF(Table_SummaryPI[[#This Row],[Manufacturer]]<>\"\",CONCATENATE(Table_SummaryPI[[#This Row],[Manufacturer]],\"/\",Table_SummaryPI[[#This Row],[Model'#]]),\"\")","v":""},{"$f":"IF(Table_SummaryPI[[#This Row],[Serial'#]]<>\"\",Table_SummaryPI[[#This Row],[Serial'#]],\"\")","v":""},{"$f":"IF(Table_SummaryPI[[#This Row],[Quantity]]<>\"\",Table_SummaryPI[[#This Row],[Quantity]],\"\")","v":""},{"$f":"IF(Table_SummaryPI[[#This Row],[BaselinekWh]]<>\"\",Table_SummaryPI[[#This Row],[BaselinekWh]],\"\")","v":""},{"$f":"IF(Table_SummaryPI[[#This Row],[BaselinekW]]<>\"\",Table_SummaryPI[[#This Row],[BaselinekW]],\"\")","v":""},{"$f":"IF(Table_SummaryPI[[#This Row],[ProposedkWh]]<>\"\",Table_SummaryPI[[#This Row],[ProposedkWh]],\"\")","v":""},{"$f":"IF(Table_SummaryPI[[#This Row],[ProposedkW]]<>\"\",Table_SummaryPI[[#This Row],[ProposedkW]],\"\")","v":""},{"$f":"IF(Table_SummaryPI[[#This Row],[Notes]]<>\"\",Table_SummaryPI[[#This Row],[Notes]],\"\")","v":""},{"$f":"IF(Table_SummaryPI[[#This Row],[Incentive_Customer]]<>\"\",Table_SummaryPI[[#This Row],[Incentive_Customer]],0)","v":0},{"$f":"IF(Table_SummaryPI[[#This Row],[MeasureCost]]<>\"\",Table_SummaryPI[[#This Row],[MeasureCost]],0)","v":0},{"$f":"IF(Table_SummaryPI[[#This Row],[kWhSavings]]<>\"\",Table_SummaryPI[[#This Row],[kWhSavings]],0)","v":0},{"$f":"IF(Table_SummaryPI[[#This Row],[DemandSavingskW]]<>\"\",Table_SummaryPI[[#This Row],[DemandSavingskW]],0)","v":0}]
[{"$f":"Table_SummaryPI[[#This Row],[Line No.]]","v":""},{"$f":"IF(Table_PrintPI[[#This Row],[Line No.]]=\"\",\"\",CONCATENATE(Table_PrintPI[[#This Row],[Line No.]],\" - \",Table_SummaryPI[[#This Row],[MeasureName]]))","v":""},{"$f":"IF(Table_SummaryPI[[#This Row],[Manufacturer]]<>\"\",CONCATENATE(Table_SummaryPI[[#This Row],[Manufacturer]],\"/\",Table_SummaryPI[[#This Row],[Model'#]]),\"\")","v":""},{"$f":"IF(Table_SummaryPI[[#This Row],[Serial'#]]<>\"\",Table_SummaryPI[[#This Row],[Serial'#]],\"\")","v":""},{"$f":"IF(Table_SummaryPI[[#This Row],[Quantity]]<>\"\",Table_SummaryPI[[#This Row],[Quantity]],\"\")","v":""},{"$f":"IF(Table_SummaryPI[[#This Row],[BaselinekWh]]<>\"\",Table_SummaryPI[[#This Row],[BaselinekWh]],\"\")","v":""},{"$f":"IF(Table_SummaryPI[[#This Row],[BaselinekW]]<>\"\",Table_SummaryPI[[#This Row],[BaselinekW]],\"\")","v":""},{"$f":"IF(Table_SummaryPI[[#This Row],[ProposedkWh]]<>\"\",Table_SummaryPI[[#This Row],[ProposedkWh]],\"\")","v":""},{"$f":"IF(Table_SummaryPI[[#This Row],[ProposedkW]]<>\"\",Table_SummaryPI[[#This Row],[ProposedkW]],\"\")","v":""},{"$f":"IF(Table_SummaryPI[[#This Row],[Notes]]<>\"\",Table_SummaryPI[[#This Row],[Notes]],\"\")","v":""},{"$f":"IF(Table_SummaryPI[[#This Row],[Incentive_Customer]]<>\"\",Table_SummaryPI[[#This Row],[Incentive_Customer]],0)","v":0},{"$f":"IF(Table_SummaryPI[[#This Row],[MeasureCost]]<>\"\",Table_SummaryPI[[#This Row],[MeasureCost]],0)","v":0},{"$f":"IF(Table_SummaryPI[[#This Row],[kWhSavings]]<>\"\",Table_SummaryPI[[#This Row],[kWhSavings]],0)","v":0},{"$f":"IF(Table_SummaryPI[[#This Row],[DemandSavingskW]]<>\"\",Table_SummaryPI[[#This Row],[DemandSavingskW]],0)","v":0}]
[{"$f":"Table_SummaryPI[[#This Row],[Line No.]]","v":""},{"$f":"IF(Table_PrintPI[[#This Row],[Line No.]]=\"\",\"\",CONCATENATE(Table_PrintPI[[#This Row],[Line No.]],\" - \",Table_SummaryPI[[#This Row],[MeasureName]]))","v":""},{"$f":"IF(Table_SummaryPI[[#This Row],[Manufacturer]]<>\"\",CONCATENATE(Table_SummaryPI[[#This Row],[Manufacturer]],\"/\",Table_SummaryPI[[#This Row],[Model'#]]),\"\")","v":""},{"$f":"IF(Table_SummaryPI[[#This Row],[Serial'#]]<>\"\",Table_SummaryPI[[#This Row],[Serial'#]],\"\")","v":""},{"$f":"IF(Table_SummaryPI[[#This Row],[Quantity]]<>\"\",Table_SummaryPI[[#This Row],[Quantity]],\"\")","v":""},{"$f":"IF(Table_SummaryPI[[#This Row],[BaselinekWh]]<>\"\",Table_SummaryPI[[#This Row],[BaselinekWh]],\"\")","v":""},{"$f":"IF(Table_SummaryPI[[#This Row],[BaselinekW]]<>\"\",Table_SummaryPI[[#This Row],[BaselinekW]],\"\")","v":""},{"$f":"IF(Table_SummaryPI[[#This Row],[ProposedkWh]]<>\"\",Table_SummaryPI[[#This Row],[ProposedkWh]],\"\")","v":""},{"$f":"IF(Table_SummaryPI[[#This Row],[ProposedkW]]<>\"\",Table_SummaryPI[[#This Row],[ProposedkW]],\"\")","v":""},{"$f":"IF(Table_SummaryPI[[#This Row],[Notes]]<>\"\",Table_SummaryPI[[#This Row],[Notes]],\"\")","v":""},{"$f":"IF(Table_SummaryPI[[#This Row],[Incentive_Customer]]<>\"\",Table_SummaryPI[[#This Row],[Incentive_Customer]],0)","v":0},{"$f":"IF(Table_SummaryPI[[#This Row],[MeasureCost]]<>\"\",Table_SummaryPI[[#This Row],[MeasureCost]],0)","v":0},{"$f":"IF(Table_SummaryPI[[#This Row],[kWhSavings]]<>\"\",Table_SummaryPI[[#This Row],[kWhSavings]],0)","v":0},{"$f":"IF(Table_SummaryPI[[#This Row],[DemandSavingskW]]<>\"\",Table_SummaryPI[[#This Row],[DemandSavingskW]],0)","v":0}]
[{"$f":"Table_SummaryPI[[#This Row],[Line No.]]","v":""},{"$f":"IF(Table_PrintPI[[#This Row],[Line No.]]=\"\",\"\",CONCATENATE(Table_PrintPI[[#This Row],[Line No.]],\" - \",Table_SummaryPI[[#This Row],[MeasureName]]))","v":""},{"$f":"IF(Table_SummaryPI[[#This Row],[Manufacturer]]<>\"\",CONCATENATE(Table_SummaryPI[[#This Row],[Manufacturer]],\"/\",Table_SummaryPI[[#This Row],[Model'#]]),\"\")","v":""},{"$f":"IF(Table_SummaryPI[[#This Row],[Serial'#]]<>\"\",Table_SummaryPI[[#This Row],[Serial'#]],\"\")","v":""},{"$f":"IF(Table_SummaryPI[[#This Row],[Quantity]]<>\"\",Table_SummaryPI[[#This Row],[Quantity]],\"\")","v":""},{"$f":"IF(Table_SummaryPI[[#This Row],[BaselinekWh]]<>\"\",Table_SummaryPI[[#This Row],[BaselinekWh]],\"\")","v":""},{"$f":"IF(Table_SummaryPI[[#This Row],[BaselinekW]]<>\"\",Table_SummaryPI[[#This Row],[BaselinekW]],\"\")","v":""},{"$f":"IF(Table_SummaryPI[[#This Row],[ProposedkWh]]<>\"\",Table_SummaryPI[[#This Row],[ProposedkWh]],\"\")","v":""},{"$f":"IF(Table_SummaryPI[[#This Row],[ProposedkW]]<>\"\",Table_SummaryPI[[#This Row],[ProposedkW]],\"\")","v":""},{"$f":"IF(Table_SummaryPI[[#This Row],[Notes]]<>\"\",Table_SummaryPI[[#This Row],[Notes]],\"\")","v":""},{"$f":"IF(Table_SummaryPI[[#This Row],[Incentive_Customer]]<>\"\",Table_SummaryPI[[#This Row],[Incentive_Customer]],0)","v":0},{"$f":"IF(Table_SummaryPI[[#This Row],[MeasureCost]]<>\"\",Table_SummaryPI[[#This Row],[MeasureCost]],0)","v":0},{"$f":"IF(Table_SummaryPI[[#This Row],[kWhSavings]]<>\"\",Table_SummaryPI[[#This Row],[kWhSavings]],0)","v":0},{"$f":"IF(Table_SummaryPI[[#This Row],[DemandSavingskW]]<>\"\",Table_SummaryPI[[#This Row],[DemandSavingskW]],0)","v":0}]
[{"$f":"Table_SummaryPI[[#This Row],[Line No.]]","v":""},{"$f":"IF(Table_PrintPI[[#This Row],[Line No.]]=\"\",\"\",CONCATENATE(Table_PrintPI[[#This Row],[Line No.]],\" - \",Table_SummaryPI[[#This Row],[MeasureName]]))","v":""},{"$f":"IF(Table_SummaryPI[[#This Row],[Manufacturer]]<>\"\",CONCATENATE(Table_SummaryPI[[#This Row],[Manufacturer]],\"/\",Table_SummaryPI[[#This Row],[Model'#]]),\"\")","v":""},{"$f":"IF(Table_SummaryPI[[#This Row],[Serial'#]]<>\"\",Table_SummaryPI[[#This Row],[Serial'#]],\"\")","v":""},{"$f":"IF(Table_SummaryPI[[#This Row],[Quantity]]<>\"\",Table_SummaryPI[[#This Row],[Quantity]],\"\")","v":""},{"$f":"IF(Table_SummaryPI[[#This Row],[BaselinekWh]]<>\"\",Table_SummaryPI[[#This Row],[BaselinekWh]],\"\")","v":""},{"$f":"IF(Table_SummaryPI[[#This Row],[BaselinekW]]<>\"\",Table_SummaryPI[[#This Row],[BaselinekW]],\"\")","v":""},{"$f":"IF(Table_SummaryPI[[#This Row],[ProposedkWh]]<>\"\",Table_SummaryPI[[#This Row],[ProposedkWh]],\"\")","v":""},{"$f":"IF(Table_SummaryPI[[#This Row],[ProposedkW]]<>\"\",Table_SummaryPI[[#This Row],[ProposedkW]],\"\")","v":""},{"$f":"IF(Table_SummaryPI[[#This Row],[Notes]]<>\"\",Table_SummaryPI[[#This Row],[Notes]],\"\")","v":""},{"$f":"IF(Table_SummaryPI[[#This Row],[Incentive_Customer]]<>\"\",Table_SummaryPI[[#This Row],[Incentive_Customer]],0)","v":0},{"$f":"IF(Table_SummaryPI[[#This Row],[MeasureCost]]<>\"\",Table_SummaryPI[[#This Row],[MeasureCost]],0)","v":0},{"$f":"IF(Table_SummaryPI[[#This Row],[kWhSavings]]<>\"\",Table_SummaryPI[[#This Row],[kWhSavings]],0)","v":0},{"$f":"IF(Table_SummaryPI[[#This Row],[DemandSavingskW]]<>\"\",Table_SummaryPI[[#This Row],[DemandSavingskW]],0)","v":0}]
[{"$f":"Table_SummaryPI[[#This Row],[Line No.]]","v":""},{"$f":"IF(Table_PrintPI[[#This Row],[Line No.]]=\"\",\"\",CONCATENATE(Table_PrintPI[[#This Row],[Line No.]],\" - \",Table_SummaryPI[[#This Row],[MeasureName]]))","v":""},{"$f":"IF(Table_SummaryPI[[#This Row],[Manufacturer]]<>\"\",CONCATENATE(Table_SummaryPI[[#This Row],[Manufacturer]],\"/\",Table_SummaryPI[[#This Row],[Model'#]]),\"\")","v":""},{"$f":"IF(Table_SummaryPI[[#This Row],[Serial'#]]<>\"\",Table_SummaryPI[[#This Row],[Serial'#]],\"\")","v":""},{"$f":"IF(Table_SummaryPI[[#This Row],[Quantity]]<>\"\",Table_SummaryPI[[#This Row],[Quantity]],\"\")","v":""},{"$f":"IF(Table_SummaryPI[[#This Row],[BaselinekWh]]<>\"\",Table_SummaryPI[[#This Row],[BaselinekWh]],\"\")","v":""},{"$f":"IF(Table_SummaryPI[[#This Row],[BaselinekW]]<>\"\",Table_SummaryPI[[#This Row],[BaselinekW]],\"\")","v":""},{"$f":"IF(Table_SummaryPI[[#This Row],[ProposedkWh]]<>\"\",Table_SummaryPI[[#This Row],[ProposedkWh]],\"\")","v":""},{"$f":"IF(Table_SummaryPI[[#This Row],[ProposedkW]]<>\"\",Table_SummaryPI[[#This Row],[ProposedkW]],\"\")","v":""},{"$f":"IF(Table_SummaryPI[[#This Row],[Notes]]<>\"\",Table_SummaryPI[[#This Row],[Notes]],\"\")","v":""},{"$f":"IF(Table_SummaryPI[[#This Row],[Incentive_Customer]]<>\"\",Table_SummaryPI[[#This Row],[Incentive_Customer]],0)","v":0},{"$f":"IF(Table_SummaryPI[[#This Row],[MeasureCost]]<>\"\",Table_SummaryPI[[#This Row],[MeasureCost]],0)","v":0},{"$f":"IF(Table_SummaryPI[[#This Row],[kWhSavings]]<>\"\",Table_SummaryPI[[#This Row],[kWhSavings]],0)","v":0},{"$f":"IF(Table_SummaryPI[[#This Row],[DemandSavingskW]]<>\"\",Table_SummaryPI[[#This Row],[DemandSavingskW]],0)","v":0}]
[{"$f":"Table_SummaryPI[[#This Row],[Line No.]]","v":""},{"$f":"IF(Table_PrintPI[[#This Row],[Line No.]]=\"\",\"\",CONCATENATE(Table_PrintPI[[#This Row],[Line No.]],\" - \",Table_SummaryPI[[#This Row],[MeasureName]]))","v":""},{"$f":"IF(Table_SummaryPI[[#This Row],[Manufacturer]]<>\"\",CONCATENATE(Table_SummaryPI[[#This Row],[Manufacturer]],\"/\",Table_SummaryPI[[#This Row],[Model'#]]),\"\")","v":""},{"$f":"IF(Table_SummaryPI[[#This Row],[Serial'#]]<>\"\",Table_SummaryPI[[#This Row],[Serial'#]],\"\")","v":""},{"$f":"IF(Table_SummaryPI[[#This Row],[Quantity]]<>\"\",Table_SummaryPI[[#This Row],[Quantity]],\"\")","v":""},{"$f":"IF(Table_SummaryPI[[#This Row],[BaselinekWh]]<>\"\",Table_SummaryPI[[#This Row],[BaselinekWh]],\"\")","v":""},{"$f":"IF(Table_SummaryPI[[#This Row],[BaselinekW]]<>\"\",Table_SummaryPI[[#This Row],[BaselinekW]],\"\")","v":""},{"$f":"IF(Table_SummaryPI[[#This Row],[ProposedkWh]]<>\"\",Table_SummaryPI[[#This Row],[ProposedkWh]],\"\")","v":""},{"$f":"IF(Table_SummaryPI[[#This Row],[ProposedkW]]<>\"\",Table_SummaryPI[[#This Row],[ProposedkW]],\"\")","v":""},{"$f":"IF(Table_SummaryPI[[#This Row],[Notes]]<>\"\",Table_SummaryPI[[#This Row],[Notes]],\"\")","v":""},{"$f":"IF(Table_SummaryPI[[#This Row],[Incentive_Customer]]<>\"\",Table_SummaryPI[[#This Row],[Incentive_Customer]],0)","v":0},{"$f":"IF(Table_SummaryPI[[#This Row],[MeasureCost]]<>\"\",Table_SummaryPI[[#This Row],[MeasureCost]],0)","v":0},{"$f":"IF(Table_SummaryPI[[#This Row],[kWhSavings]]<>\"\",Table_SummaryPI[[#This Row],[kWhSavings]],0)","v":0},{"$f":"IF(Table_SummaryPI[[#This Row],[DemandSavingskW]]<>\"\",Table_SummaryPI[[#This Row],[DemandSavingskW]],0)","v":0}]
[{"$f":"Table_SummaryPI[[#This Row],[Line No.]]","v":""},{"$f":"IF(Table_PrintPI[[#This Row],[Line No.]]=\"\",\"\",CONCATENATE(Table_PrintPI[[#This Row],[Line No.]],\" - \",Table_SummaryPI[[#This Row],[MeasureName]]))","v":""},{"$f":"IF(Table_SummaryPI[[#This Row],[Manufacturer]]<>\"\",CONCATENATE(Table_SummaryPI[[#This Row],[Manufacturer]],\"/\",Table_SummaryPI[[#This Row],[Model'#]]),\"\")","v":""},{"$f":"IF(Table_SummaryPI[[#This Row],[Serial'#]]<>\"\",Table_SummaryPI[[#This Row],[Serial'#]],\"\")","v":""},{"$f":"IF(Table_SummaryPI[[#This Row],[Quantity]]<>\"\",Table_SummaryPI[[#This Row],[Quantity]],\"\")","v":""},{"$f":"IF(Table_SummaryPI[[#This Row],[BaselinekWh]]<>\"\",Table_SummaryPI[[#This Row],[BaselinekWh]],\"\")","v":""},{"$f":"IF(Table_SummaryPI[[#This Row],[BaselinekW]]<>\"\",Table_SummaryPI[[#This Row],[BaselinekW]],\"\")","v":""},{"$f":"IF(Table_SummaryPI[[#This Row],[ProposedkWh]]<>\"\",Table_SummaryPI[[#This Row],[ProposedkWh]],\"\")","v":""},{"$f":"IF(Table_SummaryPI[[#This Row],[ProposedkW]]<>\"\",Table_SummaryPI[[#This Row],[ProposedkW]],\"\")","v":""},{"$f":"IF(Table_SummaryPI[[#This Row],[Notes]]<>\"\",Table_SummaryPI[[#This Row],[Notes]],\"\")","v":""},{"$f":"IF(Table_SummaryPI[[#This Row],[Incentive_Customer]]<>\"\",Table_SummaryPI[[#This Row],[Incentive_Customer]],0)","v":0},{"$f":"IF(Table_SummaryPI[[#This Row],[MeasureCost]]<>\"\",Table_SummaryPI[[#This Row],[MeasureCost]],0)","v":0},{"$f":"IF(Table_SummaryPI[[#This Row],[kWhSavings]]<>\"\",Table_SummaryPI[[#This Row],[kWhSavings]],0)","v":0},{"$f":"IF(Table_SummaryPI[[#This Row],[DemandSavingskW]]<>\"\",Table_SummaryPI[[#This Row],[DemandSavingskW]],0)","v":0}]
[{"$f":"Table_SummaryPI[[#This Row],[Line No.]]","v":""},{"$f":"IF(Table_PrintPI[[#This Row],[Line No.]]=\"\",\"\",CONCATENATE(Table_PrintPI[[#This Row],[Line No.]],\" - \",Table_SummaryPI[[#This Row],[MeasureName]]))","v":""},{"$f":"IF(Table_SummaryPI[[#This Row],[Manufacturer]]<>\"\",CONCATENATE(Table_SummaryPI[[#This Row],[Manufacturer]],\"/\",Table_SummaryPI[[#This Row],[Model'#]]),\"\")","v":""},{"$f":"IF(Table_SummaryPI[[#This Row],[Serial'#]]<>\"\",Table_SummaryPI[[#This Row],[Serial'#]],\"\")","v":""},{"$f":"IF(Table_SummaryPI[[#This Row],[Quantity]]<>\"\",Table_SummaryPI[[#This Row],[Quantity]],\"\")","v":""},{"$f":"IF(Table_SummaryPI[[#This Row],[BaselinekWh]]<>\"\",Table_SummaryPI[[#This Row],[BaselinekWh]],\"\")","v":""},{"$f":"IF(Table_SummaryPI[[#This Row],[BaselinekW]]<>\"\",Table_SummaryPI[[#This Row],[BaselinekW]],\"\")","v":""},{"$f":"IF(Table_SummaryPI[[#This Row],[ProposedkWh]]<>\"\",Table_SummaryPI[[#This Row],[ProposedkWh]],\"\")","v":""},{"$f":"IF(Table_SummaryPI[[#This Row],[ProposedkW]]<>\"\",Table_SummaryPI[[#This Row],[ProposedkW]],\"\")","v":""},{"$f":"IF(Table_SummaryPI[[#This Row],[Notes]]<>\"\",Table_SummaryPI[[#This Row],[Notes]],\"\")","v":""},{"$f":"IF(Table_SummaryPI[[#This Row],[Incentive_Customer]]<>\"\",Table_SummaryPI[[#This Row],[Incentive_Customer]],0)","v":0},{"$f":"IF(Table_SummaryPI[[#This Row],[MeasureCost]]<>\"\",Table_SummaryPI[[#This Row],[MeasureCost]],0)","v":0},{"$f":"IF(Table_SummaryPI[[#This Row],[kWhSavings]]<>\"\",Table_SummaryPI[[#This Row],[kWhSavings]],0)","v":0},{"$f":"IF(Table_SummaryPI[[#This Row],[DemandSavingskW]]<>\"\",Table_SummaryPI[[#This Row],[DemandSavingskW]],0)","v":0}]
[{"$f":"Table_SummaryPI[[#This Row],[Line No.]]","v":""},{"$f":"IF(Table_PrintPI[[#This Row],[Line No.]]=\"\",\"\",CONCATENATE(Table_PrintPI[[#This Row],[Line No.]],\" - \",Table_SummaryPI[[#This Row],[MeasureName]]))","v":""},{"$f":"IF(Table_SummaryPI[[#This Row],[Manufacturer]]<>\"\",CONCATENATE(Table_SummaryPI[[#This Row],[Manufacturer]],\"/\",Table_SummaryPI[[#This Row],[Model'#]]),\"\")","v":""},{"$f":"IF(Table_SummaryPI[[#This Row],[Serial'#]]<>\"\",Table_SummaryPI[[#This Row],[Serial'#]],\"\")","v":""},{"$f":"IF(Table_SummaryPI[[#This Row],[Quantity]]<>\"\",Table_SummaryPI[[#This Row],[Quantity]],\"\")","v":""},{"$f":"IF(Table_SummaryPI[[#This Row],[BaselinekWh]]<>\"\",Table_SummaryPI[[#This Row],[BaselinekWh]],\"\")","v":""},{"$f":"IF(Table_SummaryPI[[#This Row],[BaselinekW]]<>\"\",Table_SummaryPI[[#This Row],[BaselinekW]],\"\")","v":""},{"$f":"IF(Table_SummaryPI[[#This Row],[ProposedkWh]]<>\"\",Table_SummaryPI[[#This Row],[ProposedkWh]],\"\")","v":""},{"$f":"IF(Table_SummaryPI[[#This Row],[ProposedkW]]<>\"\",Table_SummaryPI[[#This Row],[ProposedkW]],\"\")","v":""},{"$f":"IF(Table_SummaryPI[[#This Row],[Notes]]<>\"\",Table_SummaryPI[[#This Row],[Notes]],\"\")","v":""},{"$f":"IF(Table_SummaryPI[[#This Row],[Incentive_Customer]]<>\"\",Table_SummaryPI[[#This Row],[Incentive_Customer]],0)","v":0},{"$f":"IF(Table_SummaryPI[[#This Row],[MeasureCost]]<>\"\",Table_SummaryPI[[#This Row],[MeasureCost]],0)","v":0},{"$f":"IF(Table_SummaryPI[[#This Row],[kWhSavings]]<>\"\",Table_SummaryPI[[#This Row],[kWhSavings]],0)","v":0},{"$f":"IF(Table_SummaryPI[[#This Row],[DemandSavingskW]]<>\"\",Table_SummaryPI[[#This Row],[DemandSavingskW]],0)","v":0}]
[{"$f":"Table_SummaryPI[[#This Row],[Line No.]]","v":""},{"$f":"IF(Table_PrintPI[[#This Row],[Line No.]]=\"\",\"\",CONCATENATE(Table_PrintPI[[#This Row],[Line No.]],\" - \",Table_SummaryPI[[#This Row],[MeasureName]]))","v":""},{"$f":"IF(Table_SummaryPI[[#This Row],[Manufacturer]]<>\"\",CONCATENATE(Table_SummaryPI[[#This Row],[Manufacturer]],\"/\",Table_SummaryPI[[#This Row],[Model'#]]),\"\")","v":""},{"$f":"IF(Table_SummaryPI[[#This Row],[Serial'#]]<>\"\",Table_SummaryPI[[#This Row],[Serial'#]],\"\")","v":""},{"$f":"IF(Table_SummaryPI[[#This Row],[Quantity]]<>\"\",Table_SummaryPI[[#This Row],[Quantity]],\"\")","v":""},{"$f":"IF(Table_SummaryPI[[#This Row],[BaselinekWh]]<>\"\",Table_SummaryPI[[#This Row],[BaselinekWh]],\"\")","v":""},{"$f":"IF(Table_SummaryPI[[#This Row],[BaselinekW]]<>\"\",Table_SummaryPI[[#This Row],[BaselinekW]],\"\")","v":""},{"$f":"IF(Table_SummaryPI[[#This Row],[ProposedkWh]]<>\"\",Table_SummaryPI[[#This Row],[ProposedkWh]],\"\")","v":""},{"$f":"IF(Table_SummaryPI[[#This Row],[ProposedkW]]<>\"\",Table_SummaryPI[[#This Row],[ProposedkW]],\"\")","v":""},{"$f":"IF(Table_SummaryPI[[#This Row],[Notes]]<>\"\",Table_SummaryPI[[#This Row],[Notes]],\"\")","v":""},{"$f":"IF(Table_SummaryPI[[#This Row],[Incentive_Customer]]<>\"\",Table_SummaryPI[[#This Row],[Incentive_Customer]],0)","v":0},{"$f":"IF(Table_SummaryPI[[#This Row],[MeasureCost]]<>\"\",Table_SummaryPI[[#This Row],[MeasureCost]],0)","v":0},{"$f":"IF(Table_SummaryPI[[#This Row],[kWhSavings]]<>\"\",Table_SummaryPI[[#This Row],[kWhSavings]],0)","v":0},{"$f":"IF(Table_SummaryPI[[#This Row],[DemandSavingskW]]<>\"\",Table_SummaryPI[[#This Row],[DemandSavingskW]],0)","v":0}]
[{"$f":"Table_SummaryPI[[#This Row],[Line No.]]","v":""},{"$f":"IF(Table_PrintPI[[#This Row],[Line No.]]=\"\",\"\",CONCATENATE(Table_PrintPI[[#This Row],[Line No.]],\" - \",Table_SummaryPI[[#This Row],[MeasureName]]))","v":""},{"$f":"IF(Table_SummaryPI[[#This Row],[Manufacturer]]<>\"\",CONCATENATE(Table_SummaryPI[[#This Row],[Manufacturer]],\"/\",Table_SummaryPI[[#This Row],[Model'#]]),\"\")","v":""},{"$f":"IF(Table_SummaryPI[[#This Row],[Serial'#]]<>\"\",Table_SummaryPI[[#This Row],[Serial'#]],\"\")","v":""},{"$f":"IF(Table_SummaryPI[[#This Row],[Quantity]]<>\"\",Table_SummaryPI[[#This Row],[Quantity]],\"\")","v":""},{"$f":"IF(Table_SummaryPI[[#This Row],[BaselinekWh]]<>\"\",Table_SummaryPI[[#This Row],[BaselinekWh]],\"\")","v":""},{"$f":"IF(Table_SummaryPI[[#This Row],[BaselinekW]]<>\"\",Table_SummaryPI[[#This Row],[BaselinekW]],\"\")","v":""},{"$f":"IF(Table_SummaryPI[[#This Row],[ProposedkWh]]<>\"\",Table_SummaryPI[[#This Row],[ProposedkWh]],\"\")","v":""},{"$f":"IF(Table_SummaryPI[[#This Row],[ProposedkW]]<>\"\",Table_SummaryPI[[#This Row],[ProposedkW]],\"\")","v":""},{"$f":"IF(Table_SummaryPI[[#This Row],[Notes]]<>\"\",Table_SummaryPI[[#This Row],[Notes]],\"\")","v":""},{"$f":"IF(Table_SummaryPI[[#This Row],[Incentive_Customer]]<>\"\",Table_SummaryPI[[#This Row],[Incentive_Customer]],0)","v":0},{"$f":"IF(Table_SummaryPI[[#This Row],[MeasureCost]]<>\"\",Table_SummaryPI[[#This Row],[MeasureCost]],0)","v":0},{"$f":"IF(Table_SummaryPI[[#This Row],[kWhSavings]]<>\"\",Table_SummaryPI[[#This Row],[kWhSavings]],0)","v":0},{"$f":"IF(Table_SummaryPI[[#This Row],[DemandSavingskW]]<>\"\",Table_SummaryPI[[#This Row],[DemandSavingskW]],0)","v":0}]
[{"$f":"Table_SummaryPI[[#This Row],[Line No.]]","v":""},{"$f":"IF(Table_PrintPI[[#This Row],[Line No.]]=\"\",\"\",CONCATENATE(Table_PrintPI[[#This Row],[Line No.]],\" - \",Table_SummaryPI[[#This Row],[MeasureName]]))","v":""},{"$f":"IF(Table_SummaryPI[[#This Row],[Manufacturer]]<>\"\",CONCATENATE(Table_SummaryPI[[#This Row],[Manufacturer]],\"/\",Table_SummaryPI[[#This Row],[Model'#]]),\"\")","v":""},{"$f":"IF(Table_SummaryPI[[#This Row],[Serial'#]]<>\"\",Table_SummaryPI[[#This Row],[Serial'#]],\"\")","v":""},{"$f":"IF(Table_SummaryPI[[#This Row],[Quantity]]<>\"\",Table_SummaryPI[[#This Row],[Quantity]],\"\")","v":""},{"$f":"IF(Table_SummaryPI[[#This Row],[BaselinekWh]]<>\"\",Table_SummaryPI[[#This Row],[BaselinekWh]],\"\")","v":""},{"$f":"IF(Table_SummaryPI[[#This Row],[BaselinekW]]<>\"\",Table_SummaryPI[[#This Row],[BaselinekW]],\"\")","v":""},{"$f":"IF(Table_SummaryPI[[#This Row],[ProposedkWh]]<>\"\",Table_SummaryPI[[#This Row],[ProposedkWh]],\"\")","v":""},{"$f":"IF(Table_SummaryPI[[#This Row],[ProposedkW]]<>\"\",Table_SummaryPI[[#This Row],[ProposedkW]],\"\")","v":""},{"$f":"IF(Table_SummaryPI[[#This Row],[Notes]]<>\"\",Table_SummaryPI[[#This Row],[Notes]],\"\")","v":""},{"$f":"IF(Table_SummaryPI[[#This Row],[Incentive_Customer]]<>\"\",Table_SummaryPI[[#This Row],[Incentive_Customer]],0)","v":0},{"$f":"IF(Table_SummaryPI[[#This Row],[MeasureCost]]<>\"\",Table_SummaryPI[[#This Row],[MeasureCost]],0)","v":0},{"$f":"IF(Table_SummaryPI[[#This Row],[kWhSavings]]<>\"\",Table_SummaryPI[[#This Row],[kWhSavings]],0)","v":0},{"$f":"IF(Table_SummaryPI[[#This Row],[DemandSavingskW]]<>\"\",Table_SummaryPI[[#This Row],[DemandSavingskW]],0)","v":0}]
[{"$f":"Table_SummaryPI[[#This Row],[Line No.]]","v":""},{"$f":"IF(Table_PrintPI[[#This Row],[Line No.]]=\"\",\"\",CONCATENATE(Table_PrintPI[[#This Row],[Line No.]],\" - \",Table_SummaryPI[[#This Row],[MeasureName]]))","v":""},{"$f":"IF(Table_SummaryPI[[#This Row],[Manufacturer]]<>\"\",CONCATENATE(Table_SummaryPI[[#This Row],[Manufacturer]],\"/\",Table_SummaryPI[[#This Row],[Model'#]]),\"\")","v":""},{"$f":"IF(Table_SummaryPI[[#This Row],[Serial'#]]<>\"\",Table_SummaryPI[[#This Row],[Serial'#]],\"\")","v":""},{"$f":"IF(Table_SummaryPI[[#This Row],[Quantity]]<>\"\",Table_SummaryPI[[#This Row],[Quantity]],\"\")","v":""},{"$f":"IF(Table_SummaryPI[[#This Row],[BaselinekWh]]<>\"\",Table_SummaryPI[[#This Row],[BaselinekWh]],\"\")","v":""},{"$f":"IF(Table_SummaryPI[[#This Row],[BaselinekW]]<>\"\",Table_SummaryPI[[#This Row],[BaselinekW]],\"\")","v":""},{"$f":"IF(Table_SummaryPI[[#This Row],[ProposedkWh]]<>\"\",Table_SummaryPI[[#This Row],[ProposedkWh]],\"\")","v":""},{"$f":"IF(Table_SummaryPI[[#This Row],[ProposedkW]]<>\"\",Table_SummaryPI[[#This Row],[ProposedkW]],\"\")","v":""},{"$f":"IF(Table_SummaryPI[[#This Row],[Notes]]<>\"\",Table_SummaryPI[[#This Row],[Notes]],\"\")","v":""},{"$f":"IF(Table_SummaryPI[[#This Row],[Incentive_Customer]]<>\"\",Table_SummaryPI[[#This Row],[Incentive_Customer]],0)","v":0},{"$f":"IF(Table_SummaryPI[[#This Row],[MeasureCost]]<>\"\",Table_SummaryPI[[#This Row],[MeasureCost]],0)","v":0},{"$f":"IF(Table_SummaryPI[[#This Row],[kWhSavings]]<>\"\",Table_SummaryPI[[#This Row],[kWhSavings]],0)","v":0},{"$f":"IF(Table_SummaryPI[[#This Row],[DemandSavingskW]]<>\"\",Table_SummaryPI[[#This Row],[DemandSavingskW]],0)","v":0}]
[{"$f":"Table_SummaryPI[[#This Row],[Line No.]]","v":""},{"$f":"IF(Table_PrintPI[[#This Row],[Line No.]]=\"\",\"\",CONCATENATE(Table_PrintPI[[#This Row],[Line No.]],\" - \",Table_SummaryPI[[#This Row],[MeasureName]]))","v":""},{"$f":"IF(Table_SummaryPI[[#This Row],[Manufacturer]]<>\"\",CONCATENATE(Table_SummaryPI[[#This Row],[Manufacturer]],\"/\",Table_SummaryPI[[#This Row],[Model'#]]),\"\")","v":""},{"$f":"IF(Table_SummaryPI[[#This Row],[Serial'#]]<>\"\",Table_SummaryPI[[#This Row],[Serial'#]],\"\")","v":""},{"$f":"IF(Table_SummaryPI[[#This Row],[Quantity]]<>\"\",Table_SummaryPI[[#This Row],[Quantity]],\"\")","v":""},{"$f":"IF(Table_SummaryPI[[#This Row],[BaselinekWh]]<>\"\",Table_SummaryPI[[#This Row],[BaselinekWh]],\"\")","v":""},{"$f":"IF(Table_SummaryPI[[#This Row],[BaselinekW]]<>\"\",Table_SummaryPI[[#This Row],[BaselinekW]],\"\")","v":""},{"$f":"IF(Table_SummaryPI[[#This Row],[ProposedkWh]]<>\"\",Table_SummaryPI[[#This Row],[ProposedkWh]],\"\")","v":""},{"$f":"IF(Table_SummaryPI[[#This Row],[ProposedkW]]<>\"\",Table_SummaryPI[[#This Row],[ProposedkW]],\"\")","v":""},{"$f":"IF(Table_SummaryPI[[#This Row],[Notes]]<>\"\",Table_SummaryPI[[#This Row],[Notes]],\"\")","v":""},{"$f":"IF(Table_SummaryPI[[#This Row],[Incentive_Customer]]<>\"\",Table_SummaryPI[[#This Row],[Incentive_Customer]],0)","v":0},{"$f":"IF(Table_SummaryPI[[#This Row],[MeasureCost]]<>\"\",Table_SummaryPI[[#This Row],[MeasureCost]],0)","v":0},{"$f":"IF(Table_SummaryPI[[#This Row],[kWhSavings]]<>\"\",Table_SummaryPI[[#This Row],[kWhSavings]],0)","v":0},{"$f":"IF(Table_SummaryPI[[#This Row],[DemandSavingskW]]<>\"\",Table_SummaryPI[[#This Row],[DemandSavingskW]],0)","v":0}]
[{"$f":"Table_SummaryPI[[#This Row],[Line No.]]","v":""},{"$f":"IF(Table_PrintPI[[#This Row],[Line No.]]=\"\",\"\",CONCATENATE(Table_PrintPI[[#This Row],[Line No.]],\" - \",Table_SummaryPI[[#This Row],[MeasureName]]))","v":""},{"$f":"IF(Table_SummaryPI[[#This Row],[Manufacturer]]<>\"\",CONCATENATE(Table_SummaryPI[[#This Row],[Manufacturer]],\"/\",Table_SummaryPI[[#This Row],[Model'#]]),\"\")","v":""},{"$f":"IF(Table_SummaryPI[[#This Row],[Serial'#]]<>\"\",Table_SummaryPI[[#This Row],[Serial'#]],\"\")","v":""},{"$f":"IF(Table_SummaryPI[[#This Row],[Quantity]]<>\"\",Table_SummaryPI[[#This Row],[Quantity]],\"\")","v":""},{"$f":"IF(Table_SummaryPI[[#This Row],[BaselinekWh]]<>\"\",Table_SummaryPI[[#This Row],[BaselinekWh]],\"\")","v":""},{"$f":"IF(Table_SummaryPI[[#This Row],[BaselinekW]]<>\"\",Table_SummaryPI[[#This Row],[BaselinekW]],\"\")","v":""},{"$f":"IF(Table_SummaryPI[[#This Row],[ProposedkWh]]<>\"\",Table_SummaryPI[[#This Row],[ProposedkWh]],\"\")","v":""},{"$f":"IF(Table_SummaryPI[[#This Row],[ProposedkW]]<>\"\",Table_SummaryPI[[#This Row],[ProposedkW]],\"\")","v":""},{"$f":"IF(Table_SummaryPI[[#This Row],[Notes]]<>\"\",Table_SummaryPI[[#This Row],[Notes]],\"\")","v":""},{"$f":"IF(Table_SummaryPI[[#This Row],[Incentive_Customer]]<>\"\",Table_SummaryPI[[#This Row],[Incentive_Customer]],0)","v":0},{"$f":"IF(Table_SummaryPI[[#This Row],[MeasureCost]]<>\"\",Table_SummaryPI[[#This Row],[MeasureCost]],0)","v":0},{"$f":"IF(Table_SummaryPI[[#This Row],[kWhSavings]]<>\"\",Table_SummaryPI[[#This Row],[kWhSavings]],0)","v":0},{"$f":"IF(Table_SummaryPI[[#This Row],[DemandSavingskW]]<>\"\",Table_SummaryPI[[#This Row],[DemandSavingskW]],0)","v":0}]
[{"$f":"Table_SummaryPI[[#This Row],[Line No.]]","v":""},{"$f":"IF(Table_PrintPI[[#This Row],[Line No.]]=\"\",\"\",CONCATENATE(Table_PrintPI[[#This Row],[Line No.]],\" - \",Table_SummaryPI[[#This Row],[MeasureName]]))","v":""},{"$f":"IF(Table_SummaryPI[[#This Row],[Manufacturer]]<>\"\",CONCATENATE(Table_SummaryPI[[#This Row],[Manufacturer]],\"/\",Table_SummaryPI[[#This Row],[Model'#]]),\"\")","v":""},{"$f":"IF(Table_SummaryPI[[#This Row],[Serial'#]]<>\"\",Table_SummaryPI[[#This Row],[Serial'#]],\"\")","v":""},{"$f":"IF(Table_SummaryPI[[#This Row],[Quantity]]<>\"\",Table_SummaryPI[[#This Row],[Quantity]],\"\")","v":""},{"$f":"IF(Table_SummaryPI[[#This Row],[BaselinekWh]]<>\"\",Table_SummaryPI[[#This Row],[BaselinekWh]],\"\")","v":""},{"$f":"IF(Table_SummaryPI[[#This Row],[BaselinekW]]<>\"\",Table_SummaryPI[[#This Row],[BaselinekW]],\"\")","v":""},{"$f":"IF(Table_SummaryPI[[#This Row],[ProposedkWh]]<>\"\",Table_SummaryPI[[#This Row],[ProposedkWh]],\"\")","v":""},{"$f":"IF(Table_SummaryPI[[#This Row],[ProposedkW]]<>\"\",Table_SummaryPI[[#This Row],[ProposedkW]],\"\")","v":""},{"$f":"IF(Table_SummaryPI[[#This Row],[Notes]]<>\"\",Table_SummaryPI[[#This Row],[Notes]],\"\")","v":""},{"$f":"IF(Table_SummaryPI[[#This Row],[Incentive_Customer]]<>\"\",Table_SummaryPI[[#This Row],[Incentive_Customer]],0)","v":0},{"$f":"IF(Table_SummaryPI[[#This Row],[MeasureCost]]<>\"\",Table_SummaryPI[[#This Row],[MeasureCost]],0)","v":0},{"$f":"IF(Table_SummaryPI[[#This Row],[kWhSavings]]<>\"\",Table_SummaryPI[[#This Row],[kWhSavings]],0)","v":0},{"$f":"IF(Table_SummaryPI[[#This Row],[DemandSavingskW]]<>\"\",Table_SummaryPI[[#This Row],[DemandSavingskW]],0)","v":0}]
[{"$f":"Table_SummaryPI[[#This Row],[Line No.]]","v":""},{"$f":"IF(Table_PrintPI[[#This Row],[Line No.]]=\"\",\"\",CONCATENATE(Table_PrintPI[[#This Row],[Line No.]],\" - \",Table_SummaryPI[[#This Row],[MeasureName]]))","v":""},{"$f":"IF(Table_SummaryPI[[#This Row],[Manufacturer]]<>\"\",CONCATENATE(Table_SummaryPI[[#This Row],[Manufacturer]],\"/\",Table_SummaryPI[[#This Row],[Model'#]]),\"\")","v":""},{"$f":"IF(Table_SummaryPI[[#This Row],[Serial'#]]<>\"\",Table_SummaryPI[[#This Row],[Serial'#]],\"\")","v":""},{"$f":"IF(Table_SummaryPI[[#This Row],[Quantity]]<>\"\",Table_SummaryPI[[#This Row],[Quantity]],\"\")","v":""},{"$f":"IF(Table_SummaryPI[[#This Row],[BaselinekWh]]<>\"\",Table_SummaryPI[[#This Row],[BaselinekWh]],\"\")","v":""},{"$f":"IF(Table_SummaryPI[[#This Row],[BaselinekW]]<>\"\",Table_SummaryPI[[#This Row],[BaselinekW]],\"\")","v":""},{"$f":"IF(Table_SummaryPI[[#This Row],[ProposedkWh]]<>\"\",Table_SummaryPI[[#This Row],[ProposedkWh]],\"\")","v":""},{"$f":"IF(Table_SummaryPI[[#This Row],[ProposedkW]]<>\"\",Table_SummaryPI[[#This Row],[ProposedkW]],\"\")","v":""},{"$f":"IF(Table_SummaryPI[[#This Row],[Notes]]<>\"\",Table_SummaryPI[[#This Row],[Notes]],\"\")","v":""},{"$f":"IF(Table_SummaryPI[[#This Row],[Incentive_Customer]]<>\"\",Table_SummaryPI[[#This Row],[Incentive_Customer]],0)","v":0},{"$f":"IF(Table_SummaryPI[[#This Row],[MeasureCost]]<>\"\",Table_SummaryPI[[#This Row],[MeasureCost]],0)","v":0},{"$f":"IF(Table_SummaryPI[[#This Row],[kWhSavings]]<>\"\",Table_SummaryPI[[#This Row],[kWhSavings]],0)","v":0},{"$f":"IF(Table_SummaryPI[[#This Row],[DemandSavingskW]]<>\"\",Table_SummaryPI[[#This Row],[DemandSavingskW]],0)","v":0}]
[{"$f":"Table_SummaryPI[[#This Row],[Line No.]]","v":""},{"$f":"IF(Table_PrintPI[[#This Row],[Line No.]]=\"\",\"\",CONCATENATE(Table_PrintPI[[#This Row],[Line No.]],\" - \",Table_SummaryPI[[#This Row],[MeasureName]]))","v":""},{"$f":"IF(Table_SummaryPI[[#This Row],[Manufacturer]]<>\"\",CONCATENATE(Table_SummaryPI[[#This Row],[Manufacturer]],\"/\",Table_SummaryPI[[#This Row],[Model'#]]),\"\")","v":""},{"$f":"IF(Table_SummaryPI[[#This Row],[Serial'#]]<>\"\",Table_SummaryPI[[#This Row],[Serial'#]],\"\")","v":""},{"$f":"IF(Table_SummaryPI[[#This Row],[Quantity]]<>\"\",Table_SummaryPI[[#This Row],[Quantity]],\"\")","v":""},{"$f":"IF(Table_SummaryPI[[#This Row],[BaselinekWh]]<>\"\",Table_SummaryPI[[#This Row],[BaselinekWh]],\"\")","v":""},{"$f":"IF(Table_SummaryPI[[#This Row],[BaselinekW]]<>\"\",Table_SummaryPI[[#This Row],[BaselinekW]],\"\")","v":""},{"$f":"IF(Table_SummaryPI[[#This Row],[ProposedkWh]]<>\"\",Table_SummaryPI[[#This Row],[ProposedkWh]],\"\")","v":""},{"$f":"IF(Table_SummaryPI[[#This Row],[ProposedkW]]<>\"\",Table_SummaryPI[[#This Row],[ProposedkW]],\"\")","v":""},{"$f":"IF(Table_SummaryPI[[#This Row],[Notes]]<>\"\",Table_SummaryPI[[#This Row],[Notes]],\"\")","v":""},{"$f":"IF(Table_SummaryPI[[#This Row],[Incentive_Customer]]<>\"\",Table_SummaryPI[[#This Row],[Incentive_Customer]],0)","v":0},{"$f":"IF(Table_SummaryPI[[#This Row],[MeasureCost]]<>\"\",Table_SummaryPI[[#This Row],[MeasureCost]],0)","v":0},{"$f":"IF(Table_SummaryPI[[#This Row],[kWhSavings]]<>\"\",Table_SummaryPI[[#This Row],[kWhSavings]],0)","v":0},{"$f":"IF(Table_SummaryPI[[#This Row],[DemandSavingskW]]<>\"\",Table_SummaryPI[[#This Row],[DemandSavingskW]],0)","v":0}]
[{"$f":"Table_SummaryPI[[#This Row],[Line No.]]","v":""},{"$f":"IF(Table_PrintPI[[#This Row],[Line No.]]=\"\",\"\",CONCATENATE(Table_PrintPI[[#This Row],[Line No.]],\" - \",Table_SummaryPI[[#This Row],[MeasureName]]))","v":""},{"$f":"IF(Table_SummaryPI[[#This Row],[Manufacturer]]<>\"\",CONCATENATE(Table_SummaryPI[[#This Row],[Manufacturer]],\"/\",Table_SummaryPI[[#This Row],[Model'#]]),\"\")","v":""},{"$f":"IF(Table_SummaryPI[[#This Row],[Serial'#]]<>\"\",Table_SummaryPI[[#This Row],[Serial'#]],\"\")","v":""},{"$f":"IF(Table_SummaryPI[[#This Row],[Quantity]]<>\"\",Table_SummaryPI[[#This Row],[Quantity]],\"\")","v":""},{"$f":"IF(Table_SummaryPI[[#This Row],[BaselinekWh]]<>\"\",Table_SummaryPI[[#This Row],[BaselinekWh]],\"\")","v":""},{"$f":"IF(Table_SummaryPI[[#This Row],[BaselinekW]]<>\"\",Table_SummaryPI[[#This Row],[BaselinekW]],\"\")","v":""},{"$f":"IF(Table_SummaryPI[[#This Row],[ProposedkWh]]<>\"\",Table_SummaryPI[[#This Row],[ProposedkWh]],\"\")","v":""},{"$f":"IF(Table_SummaryPI[[#This Row],[ProposedkW]]<>\"\",Table_SummaryPI[[#This Row],[ProposedkW]],\"\")","v":""},{"$f":"IF(Table_SummaryPI[[#This Row],[Notes]]<>\"\",Table_SummaryPI[[#This Row],[Notes]],\"\")","v":""},{"$f":"IF(Table_SummaryPI[[#This Row],[Incentive_Customer]]<>\"\",Table_SummaryPI[[#This Row],[Incentive_Customer]],0)","v":0},{"$f":"IF(Table_SummaryPI[[#This Row],[MeasureCost]]<>\"\",Table_SummaryPI[[#This Row],[MeasureCost]],0)","v":0},{"$f":"IF(Table_SummaryPI[[#This Row],[kWhSavings]]<>\"\",Table_SummaryPI[[#This Row],[kWhSavings]],0)","v":0},{"$f":"IF(Table_SummaryPI[[#This Row],[DemandSavingskW]]<>\"\",Table_SummaryPI[[#This Row],[DemandSavingskW]],0)","v":0}]
[{"$f":"Table_SummaryPI[[#This Row],[Line No.]]","v":""},{"$f":"IF(Table_PrintPI[[#This Row],[Line No.]]=\"\",\"\",CONCATENATE(Table_PrintPI[[#This Row],[Line No.]],\" - \",Table_SummaryPI[[#This Row],[MeasureName]]))","v":""},{"$f":"IF(Table_SummaryPI[[#This Row],[Manufacturer]]<>\"\",CONCATENATE(Table_SummaryPI[[#This Row],[Manufacturer]],\"/\",Table_SummaryPI[[#This Row],[Model'#]]),\"\")","v":""},{"$f":"IF(Table_SummaryPI[[#This Row],[Serial'#]]<>\"\",Table_SummaryPI[[#This Row],[Serial'#]],\"\")","v":""},{"$f":"IF(Table_SummaryPI[[#This Row],[Quantity]]<>\"\",Table_SummaryPI[[#This Row],[Quantity]],\"\")","v":""},{"$f":"IF(Table_SummaryPI[[#This Row],[BaselinekWh]]<>\"\",Table_SummaryPI[[#This Row],[BaselinekWh]],\"\")","v":""},{"$f":"IF(Table_SummaryPI[[#This Row],[BaselinekW]]<>\"\",Table_SummaryPI[[#This Row],[BaselinekW]],\"\")","v":""},{"$f":"IF(Table_SummaryPI[[#This Row],[ProposedkWh]]<>\"\",Table_SummaryPI[[#This Row],[ProposedkWh]],\"\")","v":""},{"$f":"IF(Table_SummaryPI[[#This Row],[ProposedkW]]<>\"\",Table_SummaryPI[[#This Row],[ProposedkW]],\"\")","v":""},{"$f":"IF(Table_SummaryPI[[#This Row],[Notes]]<>\"\",Table_SummaryPI[[#This Row],[Notes]],\"\")","v":""},{"$f":"IF(Table_SummaryPI[[#This Row],[Incentive_Customer]]<>\"\",Table_SummaryPI[[#This Row],[Incentive_Customer]],0)","v":0},{"$f":"IF(Table_SummaryPI[[#This Row],[MeasureCost]]<>\"\",Table_SummaryPI[[#This Row],[MeasureCost]],0)","v":0},{"$f":"IF(Table_SummaryPI[[#This Row],[kWhSavings]]<>\"\",Table_SummaryPI[[#This Row],[kWhSavings]],0)","v":0},{"$f":"IF(Table_SummaryPI[[#This Row],[DemandSavingskW]]<>\"\",Table_SummaryPI[[#This Row],[DemandSavingskW]],0)","v":0}]
[{"$f":"Table_SummaryPI[[#This Row],[Line No.]]","v":""},{"$f":"IF(Table_PrintPI[[#This Row],[Line No.]]=\"\",\"\",CONCATENATE(Table_PrintPI[[#This Row],[Line No.]],\" - \",Table_SummaryPI[[#This Row],[MeasureName]]))","v":""},{"$f":"IF(Table_SummaryPI[[#This Row],[Manufacturer]]<>\"\",CONCATENATE(Table_SummaryPI[[#This Row],[Manufacturer]],\"/\",Table_SummaryPI[[#This Row],[Model'#]]),\"\")","v":""},{"$f":"IF(Table_SummaryPI[[#This Row],[Serial'#]]<>\"\",Table_SummaryPI[[#This Row],[Serial'#]],\"\")","v":""},{"$f":"IF(Table_SummaryPI[[#This Row],[Quantity]]<>\"\",Table_SummaryPI[[#This Row],[Quantity]],\"\")","v":""},{"$f":"IF(Table_SummaryPI[[#This Row],[BaselinekWh]]<>\"\",Table_SummaryPI[[#This Row],[BaselinekWh]],\"\")","v":""},{"$f":"IF(Table_SummaryPI[[#This Row],[BaselinekW]]<>\"\",Table_SummaryPI[[#This Row],[BaselinekW]],\"\")","v":""},{"$f":"IF(Table_SummaryPI[[#This Row],[ProposedkWh]]<>\"\",Table_SummaryPI[[#This Row],[ProposedkWh]],\"\")","v":""},{"$f":"IF(Table_SummaryPI[[#This Row],[ProposedkW]]<>\"\",Table_SummaryPI[[#This Row],[ProposedkW]],\"\")","v":""},{"$f":"IF(Table_SummaryPI[[#This Row],[Notes]]<>\"\",Table_SummaryPI[[#This Row],[Notes]],\"\")","v":""},{"$f":"IF(Table_SummaryPI[[#This Row],[Incentive_Customer]]<>\"\",Table_SummaryPI[[#This Row],[Incentive_Customer]],0)","v":0},{"$f":"IF(Table_SummaryPI[[#This Row],[MeasureCost]]<>\"\",Table_SummaryPI[[#This Row],[MeasureCost]],0)","v":0},{"$f":"IF(Table_SummaryPI[[#This Row],[kWhSavings]]<>\"\",Table_SummaryPI[[#This Row],[kWhSavings]],0)","v":0},{"$f":"IF(Table_SummaryPI[[#This Row],[DemandSavingskW]]<>\"\",Table_SummaryPI[[#This Row],[DemandSavingskW]],0)","v":0}]
[{"$f":"Table_SummaryPI[[#This Row],[Line No.]]","v":""},{"$f":"IF(Table_PrintPI[[#This Row],[Line No.]]=\"\",\"\",CONCATENATE(Table_PrintPI[[#This Row],[Line No.]],\" - \",Table_SummaryPI[[#This Row],[MeasureName]]))","v":""},{"$f":"IF(Table_SummaryPI[[#This Row],[Manufacturer]]<>\"\",CONCATENATE(Table_SummaryPI[[#This Row],[Manufacturer]],\"/\",Table_SummaryPI[[#This Row],[Model'#]]),\"\")","v":""},{"$f":"IF(Table_SummaryPI[[#This Row],[Serial'#]]<>\"\",Table_SummaryPI[[#This Row],[Serial'#]],\"\")","v":""},{"$f":"IF(Table_SummaryPI[[#This Row],[Quantity]]<>\"\",Table_SummaryPI[[#This Row],[Quantity]],\"\")","v":""},{"$f":"IF(Table_SummaryPI[[#This Row],[BaselinekWh]]<>\"\",Table_SummaryPI[[#This Row],[BaselinekWh]],\"\")","v":""},{"$f":"IF(Table_SummaryPI[[#This Row],[BaselinekW]]<>\"\",Table_SummaryPI[[#This Row],[BaselinekW]],\"\")","v":""},{"$f":"IF(Table_SummaryPI[[#This Row],[ProposedkWh]]<>\"\",Table_SummaryPI[[#This Row],[ProposedkWh]],\"\")","v":""},{"$f":"IF(Table_SummaryPI[[#This Row],[ProposedkW]]<>\"\",Table_SummaryPI[[#This Row],[ProposedkW]],\"\")","v":""},{"$f":"IF(Table_SummaryPI[[#This Row],[Notes]]<>\"\",Table_SummaryPI[[#This Row],[Notes]],\"\")","v":""},{"$f":"IF(Table_SummaryPI[[#This Row],[Incentive_Customer]]<>\"\",Table_SummaryPI[[#This Row],[Incentive_Customer]],0)","v":0},{"$f":"IF(Table_SummaryPI[[#This Row],[MeasureCost]]<>\"\",Table_SummaryPI[[#This Row],[MeasureCost]],0)","v":0},{"$f":"IF(Table_SummaryPI[[#This Row],[kWhSavings]]<>\"\",Table_SummaryPI[[#This Row],[kWhSavings]],0)","v":0},{"$f":"IF(Table_SummaryPI[[#This Row],[DemandSavingskW]]<>\"\",Table_SummaryPI[[#This Row],[DemandSavingskW]],0)","v":0}]
[{"$f":"Table_SummaryPI[[#This Row],[Line No.]]","v":""},{"$f":"IF(Table_PrintPI[[#This Row],[Line No.]]=\"\",\"\",CONCATENATE(Table_PrintPI[[#This Row],[Line No.]],\" - \",Table_SummaryPI[[#This Row],[MeasureName]]))","v":""},{"$f":"IF(Table_SummaryPI[[#This Row],[Manufacturer]]<>\"\",CONCATENATE(Table_SummaryPI[[#This Row],[Manufacturer]],\"/\",Table_SummaryPI[[#This Row],[Model'#]]),\"\")","v":""},{"$f":"IF(Table_SummaryPI[[#This Row],[Serial'#]]<>\"\",Table_SummaryPI[[#This Row],[Serial'#]],\"\")","v":""},{"$f":"IF(Table_SummaryPI[[#This Row],[Quantity]]<>\"\",Table_SummaryPI[[#This Row],[Quantity]],\"\")","v":""},{"$f":"IF(Table_SummaryPI[[#This Row],[BaselinekWh]]<>\"\",Table_SummaryPI[[#This Row],[BaselinekWh]],\"\")","v":""},{"$f":"IF(Table_SummaryPI[[#This Row],[BaselinekW]]<>\"\",Table_SummaryPI[[#This Row],[BaselinekW]],\"\")","v":""},{"$f":"IF(Table_SummaryPI[[#This Row],[ProposedkWh]]<>\"\",Table_SummaryPI[[#This Row],[ProposedkWh]],\"\")","v":""},{"$f":"IF(Table_SummaryPI[[#This Row],[ProposedkW]]<>\"\",Table_SummaryPI[[#This Row],[ProposedkW]],\"\")","v":""},{"$f":"IF(Table_SummaryPI[[#This Row],[Notes]]<>\"\",Table_SummaryPI[[#This Row],[Notes]],\"\")","v":""},{"$f":"IF(Table_SummaryPI[[#This Row],[Incentive_Customer]]<>\"\",Table_SummaryPI[[#This Row],[Incentive_Customer]],0)","v":0},{"$f":"IF(Table_SummaryPI[[#This Row],[MeasureCost]]<>\"\",Table_SummaryPI[[#This Row],[MeasureCost]],0)","v":0},{"$f":"IF(Table_SummaryPI[[#This Row],[kWhSavings]]<>\"\",Table_SummaryPI[[#This Row],[kWhSavings]],0)","v":0},{"$f":"IF(Table_SummaryPI[[#This Row],[DemandSavingskW]]<>\"\",Table_SummaryPI[[#This Row],[DemandSavingskW]],0)","v":0}]
[{"$f":"Table_SummaryPI[[#This Row],[Line No.]]","v":""},{"$f":"IF(Table_PrintPI[[#This Row],[Line No.]]=\"\",\"\",CONCATENATE(Table_PrintPI[[#This Row],[Line No.]],\" - \",Table_SummaryPI[[#This Row],[MeasureName]]))","v":""},{"$f":"IF(Table_SummaryPI[[#This Row],[Manufacturer]]<>\"\",CONCATENATE(Table_SummaryPI[[#This Row],[Manufacturer]],\"/\",Table_SummaryPI[[#This Row],[Model'#]]),\"\")","v":""},{"$f":"IF(Table_SummaryPI[[#This Row],[Serial'#]]<>\"\",Table_SummaryPI[[#This Row],[Serial'#]],\"\")","v":""},{"$f":"IF(Table_SummaryPI[[#This Row],[Quantity]]<>\"\",Table_SummaryPI[[#This Row],[Quantity]],\"\")","v":""},{"$f":"IF(Table_SummaryPI[[#This Row],[BaselinekWh]]<>\"\",Table_SummaryPI[[#This Row],[BaselinekWh]],\"\")","v":""},{"$f":"IF(Table_SummaryPI[[#This Row],[BaselinekW]]<>\"\",Table_SummaryPI[[#This Row],[BaselinekW]],\"\")","v":""},{"$f":"IF(Table_SummaryPI[[#This Row],[ProposedkWh]]<>\"\",Table_SummaryPI[[#This Row],[ProposedkWh]],\"\")","v":""},{"$f":"IF(Table_SummaryPI[[#This Row],[ProposedkW]]<>\"\",Table_SummaryPI[[#This Row],[ProposedkW]],\"\")","v":""},{"$f":"IF(Table_SummaryPI[[#This Row],[Notes]]<>\"\",Table_SummaryPI[[#This Row],[Notes]],\"\")","v":""},{"$f":"IF(Table_SummaryPI[[#This Row],[Incentive_Customer]]<>\"\",Table_SummaryPI[[#This Row],[Incentive_Customer]],0)","v":0},{"$f":"IF(Table_SummaryPI[[#This Row],[MeasureCost]]<>\"\",Table_SummaryPI[[#This Row],[MeasureCost]],0)","v":0},{"$f":"IF(Table_SummaryPI[[#This Row],[kWhSavings]]<>\"\",Table_SummaryPI[[#This Row],[kWhSavings]],0)","v":0},{"$f":"IF(Table_SummaryPI[[#This Row],[DemandSavingskW]]<>\"\",Table_SummaryPI[[#This Row],[DemandSavingskW]],0)","v":0}]
[{"$f":"Table_SummaryPI[[#This Row],[Line No.]]","v":""},{"$f":"IF(Table_PrintPI[[#This Row],[Line No.]]=\"\",\"\",CONCATENATE(Table_PrintPI[[#This Row],[Line No.]],\" - \",Table_SummaryPI[[#This Row],[MeasureName]]))","v":""},{"$f":"IF(Table_SummaryPI[[#This Row],[Manufacturer]]<>\"\",CONCATENATE(Table_SummaryPI[[#This Row],[Manufacturer]],\"/\",Table_SummaryPI[[#This Row],[Model'#]]),\"\")","v":""},{"$f":"IF(Table_SummaryPI[[#This Row],[Serial'#]]<>\"\",Table_SummaryPI[[#This Row],[Serial'#]],\"\")","v":""},{"$f":"IF(Table_SummaryPI[[#This Row],[Quantity]]<>\"\",Table_SummaryPI[[#This Row],[Quantity]],\"\")","v":""},{"$f":"IF(Table_SummaryPI[[#This Row],[BaselinekWh]]<>\"\",Table_SummaryPI[[#This Row],[BaselinekWh]],\"\")","v":""},{"$f":"IF(Table_SummaryPI[[#This Row],[BaselinekW]]<>\"\",Table_SummaryPI[[#This Row],[BaselinekW]],\"\")","v":""},{"$f":"IF(Table_SummaryPI[[#This Row],[ProposedkWh]]<>\"\",Table_SummaryPI[[#This Row],[ProposedkWh]],\"\")","v":""},{"$f":"IF(Table_SummaryPI[[#This Row],[ProposedkW]]<>\"\",Table_SummaryPI[[#This Row],[ProposedkW]],\"\")","v":""},{"$f":"IF(Table_SummaryPI[[#This Row],[Notes]]<>\"\",Table_SummaryPI[[#This Row],[Notes]],\"\")","v":""},{"$f":"IF(Table_SummaryPI[[#This Row],[Incentive_Customer]]<>\"\",Table_SummaryPI[[#This Row],[Incentive_Customer]],0)","v":0},{"$f":"IF(Table_SummaryPI[[#This Row],[MeasureCost]]<>\"\",Table_SummaryPI[[#This Row],[MeasureCost]],0)","v":0},{"$f":"IF(Table_SummaryPI[[#This Row],[kWhSavings]]<>\"\",Table_SummaryPI[[#This Row],[kWhSavings]],0)","v":0},{"$f":"IF(Table_SummaryPI[[#This Row],[DemandSavingskW]]<>\"\",Table_SummaryPI[[#This Row],[DemandSavingskW]],0)","v":0}]
[{"$f":"Table_SummaryPI[[#This Row],[Line No.]]","v":""},{"$f":"IF(Table_PrintPI[[#This Row],[Line No.]]=\"\",\"\",CONCATENATE(Table_PrintPI[[#This Row],[Line No.]],\" - \",Table_SummaryPI[[#This Row],[MeasureName]]))","v":""},{"$f":"IF(Table_SummaryPI[[#This Row],[Manufacturer]]<>\"\",CONCATENATE(Table_SummaryPI[[#This Row],[Manufacturer]],\"/\",Table_SummaryPI[[#This Row],[Model'#]]),\"\")","v":""},{"$f":"IF(Table_SummaryPI[[#This Row],[Serial'#]]<>\"\",Table_SummaryPI[[#This Row],[Serial'#]],\"\")","v":""},{"$f":"IF(Table_SummaryPI[[#This Row],[Quantity]]<>\"\",Table_SummaryPI[[#This Row],[Quantity]],\"\")","v":""},{"$f":"IF(Table_SummaryPI[[#This Row],[BaselinekWh]]<>\"\",Table_SummaryPI[[#This Row],[BaselinekWh]],\"\")","v":""},{"$f":"IF(Table_SummaryPI[[#This Row],[BaselinekW]]<>\"\",Table_SummaryPI[[#This Row],[BaselinekW]],\"\")","v":""},{"$f":"IF(Table_SummaryPI[[#This Row],[ProposedkWh]]<>\"\",Table_SummaryPI[[#This Row],[ProposedkWh]],\"\")","v":""},{"$f":"IF(Table_SummaryPI[[#This Row],[ProposedkW]]<>\"\",Table_SummaryPI[[#This Row],[ProposedkW]],\"\")","v":""},{"$f":"IF(Table_SummaryPI[[#This Row],[Notes]]<>\"\",Table_SummaryPI[[#This Row],[Notes]],\"\")","v":""},{"$f":"IF(Table_SummaryPI[[#This Row],[Incentive_Customer]]<>\"\",Table_SummaryPI[[#This Row],[Incentive_Customer]],0)","v":0},{"$f":"IF(Table_SummaryPI[[#This Row],[MeasureCost]]<>\"\",Table_SummaryPI[[#This Row],[MeasureCost]],0)","v":0},{"$f":"IF(Table_SummaryPI[[#This Row],[kWhSavings]]<>\"\",Table_SummaryPI[[#This Row],[kWhSavings]],0)","v":0},{"$f":"IF(Table_SummaryPI[[#This Row],[DemandSavingskW]]<>\"\",Table_SummaryPI[[#This Row],[DemandSavingskW]],0)","v":0}]
[{"$f":"Table_SummaryPI[[#This Row],[Line No.]]","v":""},{"$f":"IF(Table_PrintPI[[#This Row],[Line No.]]=\"\",\"\",CONCATENATE(Table_PrintPI[[#This Row],[Line No.]],\" - \",Table_SummaryPI[[#This Row],[MeasureName]]))","v":""},{"$f":"IF(Table_SummaryPI[[#This Row],[Manufacturer]]<>\"\",CONCATENATE(Table_SummaryPI[[#This Row],[Manufacturer]],\"/\",Table_SummaryPI[[#This Row],[Model'#]]),\"\")","v":""},{"$f":"IF(Table_SummaryPI[[#This Row],[Serial'#]]<>\"\",Table_SummaryPI[[#This Row],[Serial'#]],\"\")","v":""},{"$f":"IF(Table_SummaryPI[[#This Row],[Quantity]]<>\"\",Table_SummaryPI[[#This Row],[Quantity]],\"\")","v":""},{"$f":"IF(Table_SummaryPI[[#This Row],[BaselinekWh]]<>\"\",Table_SummaryPI[[#This Row],[BaselinekWh]],\"\")","v":""},{"$f":"IF(Table_SummaryPI[[#This Row],[BaselinekW]]<>\"\",Table_SummaryPI[[#This Row],[BaselinekW]],\"\")","v":""},{"$f":"IF(Table_SummaryPI[[#This Row],[ProposedkWh]]<>\"\",Table_SummaryPI[[#This Row],[ProposedkWh]],\"\")","v":""},{"$f":"IF(Table_SummaryPI[[#This Row],[ProposedkW]]<>\"\",Table_SummaryPI[[#This Row],[ProposedkW]],\"\")","v":""},{"$f":"IF(Table_SummaryPI[[#This Row],[Notes]]<>\"\",Table_SummaryPI[[#This Row],[Notes]],\"\")","v":""},{"$f":"IF(Table_SummaryPI[[#This Row],[Incentive_Customer]]<>\"\",Table_SummaryPI[[#This Row],[Incentive_Customer]],0)","v":0},{"$f":"IF(Table_SummaryPI[[#This Row],[MeasureCost]]<>\"\",Table_SummaryPI[[#This Row],[MeasureCost]],0)","v":0},{"$f":"IF(Table_SummaryPI[[#This Row],[kWhSavings]]<>\"\",Table_SummaryPI[[#This Row],[kWhSavings]],0)","v":0},{"$f":"IF(Table_SummaryPI[[#This Row],[DemandSavingskW]]<>\"\",Table_SummaryPI[[#This Row],[DemandSavingskW]],0)","v":0}]
[{"$f":"Table_SummaryPI[[#This Row],[Line No.]]","v":""},{"$f":"IF(Table_PrintPI[[#This Row],[Line No.]]=\"\",\"\",CONCATENATE(Table_PrintPI[[#This Row],[Line No.]],\" - \",Table_SummaryPI[[#This Row],[MeasureName]]))","v":""},{"$f":"IF(Table_SummaryPI[[#This Row],[Manufacturer]]<>\"\",CONCATENATE(Table_SummaryPI[[#This Row],[Manufacturer]],\"/\",Table_SummaryPI[[#This Row],[Model'#]]),\"\")","v":""},{"$f":"IF(Table_SummaryPI[[#This Row],[Serial'#]]<>\"\",Table_SummaryPI[[#This Row],[Serial'#]],\"\")","v":""},{"$f":"IF(Table_SummaryPI[[#This Row],[Quantity]]<>\"\",Table_SummaryPI[[#This Row],[Quantity]],\"\")","v":""},{"$f":"IF(Table_SummaryPI[[#This Row],[BaselinekWh]]<>\"\",Table_SummaryPI[[#This Row],[BaselinekWh]],\"\")","v":""},{"$f":"IF(Table_SummaryPI[[#This Row],[BaselinekW]]<>\"\",Table_SummaryPI[[#This Row],[BaselinekW]],\"\")","v":""},{"$f":"IF(Table_SummaryPI[[#This Row],[ProposedkWh]]<>\"\",Table_SummaryPI[[#This Row],[ProposedkWh]],\"\")","v":""},{"$f":"IF(Table_SummaryPI[[#This Row],[ProposedkW]]<>\"\",Table_SummaryPI[[#This Row],[ProposedkW]],\"\")","v":""},{"$f":"IF(Table_SummaryPI[[#This Row],[Notes]]<>\"\",Table_SummaryPI[[#This Row],[Notes]],\"\")","v":""},{"$f":"IF(Table_SummaryPI[[#This Row],[Incentive_Customer]]<>\"\",Table_SummaryPI[[#This Row],[Incentive_Customer]],0)","v":0},{"$f":"IF(Table_SummaryPI[[#This Row],[MeasureCost]]<>\"\",Table_SummaryPI[[#This Row],[MeasureCost]],0)","v":0},{"$f":"IF(Table_SummaryPI[[#This Row],[kWhSavings]]<>\"\",Table_SummaryPI[[#This Row],[kWhSavings]],0)","v":0},{"$f":"IF(Table_SummaryPI[[#This Row],[DemandSavingskW]]<>\"\",Table_SummaryPI[[#This Row],[DemandSavingskW]],0)","v":0}]
[{"$f":"Table_SummaryPI[[#This Row],[Line No.]]","v":""},{"$f":"IF(Table_PrintPI[[#This Row],[Line No.]]=\"\",\"\",CONCATENATE(Table_PrintPI[[#This Row],[Line No.]],\" - \",Table_SummaryPI[[#This Row],[MeasureName]]))","v":""},{"$f":"IF(Table_SummaryPI[[#This Row],[Manufacturer]]<>\"\",CONCATENATE(Table_SummaryPI[[#This Row],[Manufacturer]],\"/\",Table_SummaryPI[[#This Row],[Model'#]]),\"\")","v":""},{"$f":"IF(Table_SummaryPI[[#This Row],[Serial'#]]<>\"\",Table_SummaryPI[[#This Row],[Serial'#]],\"\")","v":""},{"$f":"IF(Table_SummaryPI[[#This Row],[Quantity]]<>\"\",Table_SummaryPI[[#This Row],[Quantity]],\"\")","v":""},{"$f":"IF(Table_SummaryPI[[#This Row],[BaselinekWh]]<>\"\",Table_SummaryPI[[#This Row],[BaselinekWh]],\"\")","v":""},{"$f":"IF(Table_SummaryPI[[#This Row],[BaselinekW]]<>\"\",Table_SummaryPI[[#This Row],[BaselinekW]],\"\")","v":""},{"$f":"IF(Table_SummaryPI[[#This Row],[ProposedkWh]]<>\"\",Table_SummaryPI[[#This Row],[ProposedkWh]],\"\")","v":""},{"$f":"IF(Table_SummaryPI[[#This Row],[ProposedkW]]<>\"\",Table_SummaryPI[[#This Row],[ProposedkW]],\"\")","v":""},{"$f":"IF(Table_SummaryPI[[#This Row],[Notes]]<>\"\",Table_SummaryPI[[#This Row],[Notes]],\"\")","v":""},{"$f":"IF(Table_SummaryPI[[#This Row],[Incentive_Customer]]<>\"\",Table_SummaryPI[[#This Row],[Incentive_Customer]],0)","v":0},{"$f":"IF(Table_SummaryPI[[#This Row],[MeasureCost]]<>\"\",Table_SummaryPI[[#This Row],[MeasureCost]],0)","v":0},{"$f":"IF(Table_SummaryPI[[#This Row],[kWhSavings]]<>\"\",Table_SummaryPI[[#This Row],[kWhSavings]],0)","v":0},{"$f":"IF(Table_SummaryPI[[#This Row],[DemandSavingskW]]<>\"\",Table_SummaryPI[[#This Row],[DemandSavingskW]],0)","v":0}]
[{"$f":"Table_SummaryPI[[#This Row],[Line No.]]","v":""},{"$f":"IF(Table_PrintPI[[#This Row],[Line No.]]=\"\",\"\",CONCATENATE(Table_PrintPI[[#This Row],[Line No.]],\" - \",Table_SummaryPI[[#This Row],[MeasureName]]))","v":""},{"$f":"IF(Table_SummaryPI[[#This Row],[Manufacturer]]<>\"\",CONCATENATE(Table_SummaryPI[[#This Row],[Manufacturer]],\"/\",Table_SummaryPI[[#This Row],[Model'#]]),\"\")","v":""},{"$f":"IF(Table_SummaryPI[[#This Row],[Serial'#]]<>\"\",Table_SummaryPI[[#This Row],[Serial'#]],\"\")","v":""},{"$f":"IF(Table_SummaryPI[[#This Row],[Quantity]]<>\"\",Table_SummaryPI[[#This Row],[Quantity]],\"\")","v":""},{"$f":"IF(Table_SummaryPI[[#This Row],[BaselinekWh]]<>\"\",Table_SummaryPI[[#This Row],[BaselinekWh]],\"\")","v":""},{"$f":"IF(Table_SummaryPI[[#This Row],[BaselinekW]]<>\"\",Table_SummaryPI[[#This Row],[BaselinekW]],\"\")","v":""},{"$f":"IF(Table_SummaryPI[[#This Row],[ProposedkWh]]<>\"\",Table_SummaryPI[[#This Row],[ProposedkWh]],\"\")","v":""},{"$f":"IF(Table_SummaryPI[[#This Row],[ProposedkW]]<>\"\",Table_SummaryPI[[#This Row],[ProposedkW]],\"\")","v":""},{"$f":"IF(Table_SummaryPI[[#This Row],[Notes]]<>\"\",Table_SummaryPI[[#This Row],[Notes]],\"\")","v":""},{"$f":"IF(Table_SummaryPI[[#This Row],[Incentive_Customer]]<>\"\",Table_SummaryPI[[#This Row],[Incentive_Customer]],0)","v":0},{"$f":"IF(Table_SummaryPI[[#This Row],[MeasureCost]]<>\"\",Table_SummaryPI[[#This Row],[MeasureCost]],0)","v":0},{"$f":"IF(Table_SummaryPI[[#This Row],[kWhSavings]]<>\"\",Table_SummaryPI[[#This Row],[kWhSavings]],0)","v":0},{"$f":"IF(Table_SummaryPI[[#This Row],[DemandSavingskW]]<>\"\",Table_SummaryPI[[#This Row],[DemandSavingskW]],0)","v":0}]
[{"$f":"Table_SummaryPI[[#This Row],[Line No.]]","v":""},{"$f":"IF(Table_PrintPI[[#This Row],[Line No.]]=\"\",\"\",CONCATENATE(Table_PrintPI[[#This Row],[Line No.]],\" - \",Table_SummaryPI[[#This Row],[MeasureName]]))","v":""},{"$f":"IF(Table_SummaryPI[[#This Row],[Manufacturer]]<>\"\",CONCATENATE(Table_SummaryPI[[#This Row],[Manufacturer]],\"/\",Table_SummaryPI[[#This Row],[Model'#]]),\"\")","v":""},{"$f":"IF(Table_SummaryPI[[#This Row],[Serial'#]]<>\"\",Table_SummaryPI[[#This Row],[Serial'#]],\"\")","v":""},{"$f":"IF(Table_SummaryPI[[#This Row],[Quantity]]<>\"\",Table_SummaryPI[[#This Row],[Quantity]],\"\")","v":""},{"$f":"IF(Table_SummaryPI[[#This Row],[BaselinekWh]]<>\"\",Table_SummaryPI[[#This Row],[BaselinekWh]],\"\")","v":""},{"$f":"IF(Table_SummaryPI[[#This Row],[BaselinekW]]<>\"\",Table_SummaryPI[[#This Row],[BaselinekW]],\"\")","v":""},{"$f":"IF(Table_SummaryPI[[#This Row],[ProposedkWh]]<>\"\",Table_SummaryPI[[#This Row],[ProposedkWh]],\"\")","v":""},{"$f":"IF(Table_SummaryPI[[#This Row],[ProposedkW]]<>\"\",Table_SummaryPI[[#This Row],[ProposedkW]],\"\")","v":""},{"$f":"IF(Table_SummaryPI[[#This Row],[Notes]]<>\"\",Table_SummaryPI[[#This Row],[Notes]],\"\")","v":""},{"$f":"IF(Table_SummaryPI[[#This Row],[Incentive_Customer]]<>\"\",Table_SummaryPI[[#This Row],[Incentive_Customer]],0)","v":0},{"$f":"IF(Table_SummaryPI[[#This Row],[MeasureCost]]<>\"\",Table_SummaryPI[[#This Row],[MeasureCost]],0)","v":0},{"$f":"IF(Table_SummaryPI[[#This Row],[kWhSavings]]<>\"\",Table_SummaryPI[[#This Row],[kWhSavings]],0)","v":0},{"$f":"IF(Table_SummaryPI[[#This Row],[DemandSavingskW]]<>\"\",Table_SummaryPI[[#This Row],[DemandSavingskW]],0)","v":0}]
[{"$f":"Table_SummaryPI[[#This Row],[Line No.]]","v":""},{"$f":"IF(Table_PrintPI[[#This Row],[Line No.]]=\"\",\"\",CONCATENATE(Table_PrintPI[[#This Row],[Line No.]],\" - \",Table_SummaryPI[[#This Row],[MeasureName]]))","v":""},{"$f":"IF(Table_SummaryPI[[#This Row],[Manufacturer]]<>\"\",CONCATENATE(Table_SummaryPI[[#This Row],[Manufacturer]],\"/\",Table_SummaryPI[[#This Row],[Model'#]]),\"\")","v":""},{"$f":"IF(Table_SummaryPI[[#This Row],[Serial'#]]<>\"\",Table_SummaryPI[[#This Row],[Serial'#]],\"\")","v":""},{"$f":"IF(Table_SummaryPI[[#This Row],[Quantity]]<>\"\",Table_SummaryPI[[#This Row],[Quantity]],\"\")","v":""},{"$f":"IF(Table_SummaryPI[[#This Row],[BaselinekWh]]<>\"\",Table_SummaryPI[[#This Row],[BaselinekWh]],\"\")","v":""},{"$f":"IF(Table_SummaryPI[[#This Row],[BaselinekW]]<>\"\",Table_SummaryPI[[#This Row],[BaselinekW]],\"\")","v":""},{"$f":"IF(Table_SummaryPI[[#This Row],[ProposedkWh]]<>\"\",Table_SummaryPI[[#This Row],[ProposedkWh]],\"\")","v":""},{"$f":"IF(Table_SummaryPI[[#This Row],[ProposedkW]]<>\"\",Table_SummaryPI[[#This Row],[ProposedkW]],\"\")","v":""},{"$f":"IF(Table_SummaryPI[[#This Row],[Notes]]<>\"\",Table_SummaryPI[[#This Row],[Notes]],\"\")","v":""},{"$f":"IF(Table_SummaryPI[[#This Row],[Incentive_Customer]]<>\"\",Table_SummaryPI[[#This Row],[Incentive_Customer]],0)","v":0},{"$f":"IF(Table_SummaryPI[[#This Row],[MeasureCost]]<>\"\",Table_SummaryPI[[#This Row],[MeasureCost]],0)","v":0},{"$f":"IF(Table_SummaryPI[[#This Row],[kWhSavings]]<>\"\",Table_SummaryPI[[#This Row],[kWhSavings]],0)","v":0},{"$f":"IF(Table_SummaryPI[[#This Row],[DemandSavingskW]]<>\"\",Table_SummaryPI[[#This Row],[DemandSavingskW]],0)","v":0}]
[{"$f":"Table_SummaryPI[[#This Row],[Line No.]]","v":""},{"$f":"IF(Table_PrintPI[[#This Row],[Line No.]]=\"\",\"\",CONCATENATE(Table_PrintPI[[#This Row],[Line No.]],\" - \",Table_SummaryPI[[#This Row],[MeasureName]]))","v":""},{"$f":"IF(Table_SummaryPI[[#This Row],[Manufacturer]]<>\"\",CONCATENATE(Table_SummaryPI[[#This Row],[Manufacturer]],\"/\",Table_SummaryPI[[#This Row],[Model'#]]),\"\")","v":""},{"$f":"IF(Table_SummaryPI[[#This Row],[Serial'#]]<>\"\",Table_SummaryPI[[#This Row],[Serial'#]],\"\")","v":""},{"$f":"IF(Table_SummaryPI[[#This Row],[Quantity]]<>\"\",Table_SummaryPI[[#This Row],[Quantity]],\"\")","v":""},{"$f":"IF(Table_SummaryPI[[#This Row],[BaselinekWh]]<>\"\",Table_SummaryPI[[#This Row],[BaselinekWh]],\"\")","v":""},{"$f":"IF(Table_SummaryPI[[#This Row],[BaselinekW]]<>\"\",Table_SummaryPI[[#This Row],[BaselinekW]],\"\")","v":""},{"$f":"IF(Table_SummaryPI[[#This Row],[ProposedkWh]]<>\"\",Table_SummaryPI[[#This Row],[ProposedkWh]],\"\")","v":""},{"$f":"IF(Table_SummaryPI[[#This Row],[ProposedkW]]<>\"\",Table_SummaryPI[[#This Row],[ProposedkW]],\"\")","v":""},{"$f":"IF(Table_SummaryPI[[#This Row],[Notes]]<>\"\",Table_SummaryPI[[#This Row],[Notes]],\"\")","v":""},{"$f":"IF(Table_SummaryPI[[#This Row],[Incentive_Customer]]<>\"\",Table_SummaryPI[[#This Row],[Incentive_Customer]],0)","v":0},{"$f":"IF(Table_SummaryPI[[#This Row],[MeasureCost]]<>\"\",Table_SummaryPI[[#This Row],[MeasureCost]],0)","v":0},{"$f":"IF(Table_SummaryPI[[#This Row],[kWhSavings]]<>\"\",Table_SummaryPI[[#This Row],[kWhSavings]],0)","v":0},{"$f":"IF(Table_SummaryPI[[#This Row],[DemandSavingskW]]<>\"\",Table_SummaryPI[[#This Row],[DemandSavingskW]],0)","v":0}]
[{"$f":"Table_SummaryPI[[#This Row],[Line No.]]","v":""},{"$f":"IF(Table_PrintPI[[#This Row],[Line No.]]=\"\",\"\",CONCATENATE(Table_PrintPI[[#This Row],[Line No.]],\" - \",Table_SummaryPI[[#This Row],[MeasureName]]))","v":""},{"$f":"IF(Table_SummaryPI[[#This Row],[Manufacturer]]<>\"\",CONCATENATE(Table_SummaryPI[[#This Row],[Manufacturer]],\"/\",Table_SummaryPI[[#This Row],[Model'#]]),\"\")","v":""},{"$f":"IF(Table_SummaryPI[[#This Row],[Serial'#]]<>\"\",Table_SummaryPI[[#This Row],[Serial'#]],\"\")","v":""},{"$f":"IF(Table_SummaryPI[[#This Row],[Quantity]]<>\"\",Table_SummaryPI[[#This Row],[Quantity]],\"\")","v":""},{"$f":"IF(Table_SummaryPI[[#This Row],[BaselinekWh]]<>\"\",Table_SummaryPI[[#This Row],[BaselinekWh]],\"\")","v":""},{"$f":"IF(Table_SummaryPI[[#This Row],[BaselinekW]]<>\"\",Table_SummaryPI[[#This Row],[BaselinekW]],\"\")","v":""},{"$f":"IF(Table_SummaryPI[[#This Row],[ProposedkWh]]<>\"\",Table_SummaryPI[[#This Row],[ProposedkWh]],\"\")","v":""},{"$f":"IF(Table_SummaryPI[[#This Row],[ProposedkW]]<>\"\",Table_SummaryPI[[#This Row],[ProposedkW]],\"\")","v":""},{"$f":"IF(Table_SummaryPI[[#This Row],[Notes]]<>\"\",Table_SummaryPI[[#This Row],[Notes]],\"\")","v":""},{"$f":"IF(Table_SummaryPI[[#This Row],[Incentive_Customer]]<>\"\",Table_SummaryPI[[#This Row],[Incentive_Customer]],0)","v":0},{"$f":"IF(Table_SummaryPI[[#This Row],[MeasureCost]]<>\"\",Table_SummaryPI[[#This Row],[MeasureCost]],0)","v":0},{"$f":"IF(Table_SummaryPI[[#This Row],[kWhSavings]]<>\"\",Table_SummaryPI[[#This Row],[kWhSavings]],0)","v":0},{"$f":"IF(Table_SummaryPI[[#This Row],[DemandSavingskW]]<>\"\",Table_SummaryPI[[#This Row],[DemandSavingskW]],0)","v":0}]
[{"$f":"Table_SummaryPI[[#This Row],[Line No.]]","v":""},{"$f":"IF(Table_PrintPI[[#This Row],[Line No.]]=\"\",\"\",CONCATENATE(Table_PrintPI[[#This Row],[Line No.]],\" - \",Table_SummaryPI[[#This Row],[MeasureName]]))","v":""},{"$f":"IF(Table_SummaryPI[[#This Row],[Manufacturer]]<>\"\",CONCATENATE(Table_SummaryPI[[#This Row],[Manufacturer]],\"/\",Table_SummaryPI[[#This Row],[Model'#]]),\"\")","v":""},{"$f":"IF(Table_SummaryPI[[#This Row],[Serial'#]]<>\"\",Table_SummaryPI[[#This Row],[Serial'#]],\"\")","v":""},{"$f":"IF(Table_SummaryPI[[#This Row],[Quantity]]<>\"\",Table_SummaryPI[[#This Row],[Quantity]],\"\")","v":""},{"$f":"IF(Table_SummaryPI[[#This Row],[BaselinekWh]]<>\"\",Table_SummaryPI[[#This Row],[BaselinekWh]],\"\")","v":""},{"$f":"IF(Table_SummaryPI[[#This Row],[BaselinekW]]<>\"\",Table_SummaryPI[[#This Row],[BaselinekW]],\"\")","v":""},{"$f":"IF(Table_SummaryPI[[#This Row],[ProposedkWh]]<>\"\",Table_SummaryPI[[#This Row],[ProposedkWh]],\"\")","v":""},{"$f":"IF(Table_SummaryPI[[#This Row],[ProposedkW]]<>\"\",Table_SummaryPI[[#This Row],[ProposedkW]],\"\")","v":""},{"$f":"IF(Table_SummaryPI[[#This Row],[Notes]]<>\"\",Table_SummaryPI[[#This Row],[Notes]],\"\")","v":""},{"$f":"IF(Table_SummaryPI[[#This Row],[Incentive_Customer]]<>\"\",Table_SummaryPI[[#This Row],[Incentive_Customer]],0)","v":0},{"$f":"IF(Table_SummaryPI[[#This Row],[MeasureCost]]<>\"\",Table_SummaryPI[[#This Row],[MeasureCost]],0)","v":0},{"$f":"IF(Table_SummaryPI[[#This Row],[kWhSavings]]<>\"\",Table_SummaryPI[[#This Row],[kWhSavings]],0)","v":0},{"$f":"IF(Table_SummaryPI[[#This Row],[DemandSavingskW]]<>\"\",Table_SummaryPI[[#This Row],[DemandSavingskW]],0)","v":0}]
[{"$f":"Table_SummaryPI[[#This Row],[Line No.]]","v":""},{"$f":"IF(Table_PrintPI[[#This Row],[Line No.]]=\"\",\"\",CONCATENATE(Table_PrintPI[[#This Row],[Line No.]],\" - \",Table_SummaryPI[[#This Row],[MeasureName]]))","v":""},{"$f":"IF(Table_SummaryPI[[#This Row],[Manufacturer]]<>\"\",CONCATENATE(Table_SummaryPI[[#This Row],[Manufacturer]],\"/\",Table_SummaryPI[[#This Row],[Model'#]]),\"\")","v":""},{"$f":"IF(Table_SummaryPI[[#This Row],[Serial'#]]<>\"\",Table_SummaryPI[[#This Row],[Serial'#]],\"\")","v":""},{"$f":"IF(Table_SummaryPI[[#This Row],[Quantity]]<>\"\",Table_SummaryPI[[#This Row],[Quantity]],\"\")","v":""},{"$f":"IF(Table_SummaryPI[[#This Row],[BaselinekWh]]<>\"\",Table_SummaryPI[[#This Row],[BaselinekWh]],\"\")","v":""},{"$f":"IF(Table_SummaryPI[[#This Row],[BaselinekW]]<>\"\",Table_SummaryPI[[#This Row],[BaselinekW]],\"\")","v":""},{"$f":"IF(Table_SummaryPI[[#This Row],[ProposedkWh]]<>\"\",Table_SummaryPI[[#This Row],[ProposedkWh]],\"\")","v":""},{"$f":"IF(Table_SummaryPI[[#This Row],[ProposedkW]]<>\"\",Table_SummaryPI[[#This Row],[ProposedkW]],\"\")","v":""},{"$f":"IF(Table_SummaryPI[[#This Row],[Notes]]<>\"\",Table_SummaryPI[[#This Row],[Notes]],\"\")","v":""},{"$f":"IF(Table_SummaryPI[[#This Row],[Incentive_Customer]]<>\"\",Table_SummaryPI[[#This Row],[Incentive_Customer]],0)","v":0},{"$f":"IF(Table_SummaryPI[[#This Row],[MeasureCost]]<>\"\",Table_SummaryPI[[#This Row],[MeasureCost]],0)","v":0},{"$f":"IF(Table_SummaryPI[[#This Row],[kWhSavings]]<>\"\",Table_SummaryPI[[#This Row],[kWhSavings]],0)","v":0},{"$f":"IF(Table_SummaryPI[[#This Row],[DemandSavingskW]]<>\"\",Table_SummaryPI[[#This Row],[DemandSavingskW]],0)","v":0}]
[{"$f":"Table_SummaryPI[[#This Row],[Line No.]]","v":""},{"$f":"IF(Table_PrintPI[[#This Row],[Line No.]]=\"\",\"\",CONCATENATE(Table_PrintPI[[#This Row],[Line No.]],\" - \",Table_SummaryPI[[#This Row],[MeasureName]]))","v":""},{"$f":"IF(Table_SummaryPI[[#This Row],[Manufacturer]]<>\"\",CONCATENATE(Table_SummaryPI[[#This Row],[Manufacturer]],\"/\",Table_SummaryPI[[#This Row],[Model'#]]),\"\")","v":""},{"$f":"IF(Table_SummaryPI[[#This Row],[Serial'#]]<>\"\",Table_SummaryPI[[#This Row],[Serial'#]],\"\")","v":""},{"$f":"IF(Table_SummaryPI[[#This Row],[Quantity]]<>\"\",Table_SummaryPI[[#This Row],[Quantity]],\"\")","v":""},{"$f":"IF(Table_SummaryPI[[#This Row],[BaselinekWh]]<>\"\",Table_SummaryPI[[#This Row],[BaselinekWh]],\"\")","v":""},{"$f":"IF(Table_SummaryPI[[#This Row],[BaselinekW]]<>\"\",Table_SummaryPI[[#This Row],[BaselinekW]],\"\")","v":""},{"$f":"IF(Table_SummaryPI[[#This Row],[ProposedkWh]]<>\"\",Table_SummaryPI[[#This Row],[ProposedkWh]],\"\")","v":""},{"$f":"IF(Table_SummaryPI[[#This Row],[ProposedkW]]<>\"\",Table_SummaryPI[[#This Row],[ProposedkW]],\"\")","v":""},{"$f":"IF(Table_SummaryPI[[#This Row],[Notes]]<>\"\",Table_SummaryPI[[#This Row],[Notes]],\"\")","v":""},{"$f":"IF(Table_SummaryPI[[#This Row],[Incentive_Customer]]<>\"\",Table_SummaryPI[[#This Row],[Incentive_Customer]],0)","v":0},{"$f":"IF(Table_SummaryPI[[#This Row],[MeasureCost]]<>\"\",Table_SummaryPI[[#This Row],[MeasureCost]],0)","v":0},{"$f":"IF(Table_SummaryPI[[#This Row],[kWhSavings]]<>\"\",Table_SummaryPI[[#This Row],[kWhSavings]],0)","v":0},{"$f":"IF(Table_SummaryPI[[#This Row],[DemandSavingskW]]<>\"\",Table_SummaryPI[[#This Row],[DemandSavingskW]],0)","v":0}]
[{"$f":"Table_SummaryPI[[#This Row],[Line No.]]","v":""},{"$f":"IF(Table_PrintPI[[#This Row],[Line No.]]=\"\",\"\",CONCATENATE(Table_PrintPI[[#This Row],[Line No.]],\" - \",Table_SummaryPI[[#This Row],[MeasureName]]))","v":""},{"$f":"IF(Table_SummaryPI[[#This Row],[Manufacturer]]<>\"\",CONCATENATE(Table_SummaryPI[[#This Row],[Manufacturer]],\"/\",Table_SummaryPI[[#This Row],[Model'#]]),\"\")","v":""},{"$f":"IF(Table_SummaryPI[[#This Row],[Serial'#]]<>\"\",Table_SummaryPI[[#This Row],[Serial'#]],\"\")","v":""},{"$f":"IF(Table_SummaryPI[[#This Row],[Quantity]]<>\"\",Table_SummaryPI[[#This Row],[Quantity]],\"\")","v":""},{"$f":"IF(Table_SummaryPI[[#This Row],[BaselinekWh]]<>\"\",Table_SummaryPI[[#This Row],[BaselinekWh]],\"\")","v":""},{"$f":"IF(Table_SummaryPI[[#This Row],[BaselinekW]]<>\"\",Table_SummaryPI[[#This Row],[BaselinekW]],\"\")","v":""},{"$f":"IF(Table_SummaryPI[[#This Row],[ProposedkWh]]<>\"\",Table_SummaryPI[[#This Row],[ProposedkWh]],\"\")","v":""},{"$f":"IF(Table_SummaryPI[[#This Row],[ProposedkW]]<>\"\",Table_SummaryPI[[#This Row],[ProposedkW]],\"\")","v":""},{"$f":"IF(Table_SummaryPI[[#This Row],[Notes]]<>\"\",Table_SummaryPI[[#This Row],[Notes]],\"\")","v":""},{"$f":"IF(Table_SummaryPI[[#This Row],[Incentive_Customer]]<>\"\",Table_SummaryPI[[#This Row],[Incentive_Customer]],0)","v":0},{"$f":"IF(Table_SummaryPI[[#This Row],[MeasureCost]]<>\"\",Table_SummaryPI[[#This Row],[MeasureCost]],0)","v":0},{"$f":"IF(Table_SummaryPI[[#This Row],[kWhSavings]]<>\"\",Table_SummaryPI[[#This Row],[kWhSavings]],0)","v":0},{"$f":"IF(Table_SummaryPI[[#This Row],[DemandSavingskW]]<>\"\",Table_SummaryPI[[#This Row],[DemandSavingskW]],0)","v":0}]
[{"$f":"Table_SummaryPI[[#This Row],[Line No.]]","v":""},{"$f":"IF(Table_PrintPI[[#This Row],[Line No.]]=\"\",\"\",CONCATENATE(Table_PrintPI[[#This Row],[Line No.]],\" - \",Table_SummaryPI[[#This Row],[MeasureName]]))","v":""},{"$f":"IF(Table_SummaryPI[[#This Row],[Manufacturer]]<>\"\",CONCATENATE(Table_SummaryPI[[#This Row],[Manufacturer]],\"/\",Table_SummaryPI[[#This Row],[Model'#]]),\"\")","v":""},{"$f":"IF(Table_SummaryPI[[#This Row],[Serial'#]]<>\"\",Table_SummaryPI[[#This Row],[Serial'#]],\"\")","v":""},{"$f":"IF(Table_SummaryPI[[#This Row],[Quantity]]<>\"\",Table_SummaryPI[[#This Row],[Quantity]],\"\")","v":""},{"$f":"IF(Table_SummaryPI[[#This Row],[BaselinekWh]]<>\"\",Table_SummaryPI[[#This Row],[BaselinekWh]],\"\")","v":""},{"$f":"IF(Table_SummaryPI[[#This Row],[BaselinekW]]<>\"\",Table_SummaryPI[[#This Row],[BaselinekW]],\"\")","v":""},{"$f":"IF(Table_SummaryPI[[#This Row],[ProposedkWh]]<>\"\",Table_SummaryPI[[#This Row],[ProposedkWh]],\"\")","v":""},{"$f":"IF(Table_SummaryPI[[#This Row],[ProposedkW]]<>\"\",Table_SummaryPI[[#This Row],[ProposedkW]],\"\")","v":""},{"$f":"IF(Table_SummaryPI[[#This Row],[Notes]]<>\"\",Table_SummaryPI[[#This Row],[Notes]],\"\")","v":""},{"$f":"IF(Table_SummaryPI[[#This Row],[Incentive_Customer]]<>\"\",Table_SummaryPI[[#This Row],[Incentive_Customer]],0)","v":0},{"$f":"IF(Table_SummaryPI[[#This Row],[MeasureCost]]<>\"\",Table_SummaryPI[[#This Row],[MeasureCost]],0)","v":0},{"$f":"IF(Table_SummaryPI[[#This Row],[kWhSavings]]<>\"\",Table_SummaryPI[[#This Row],[kWhSavings]],0)","v":0},{"$f":"IF(Table_SummaryPI[[#This Row],[DemandSavingskW]]<>\"\",Table_SummaryPI[[#This Row],[DemandSavingskW]],0)","v":0}]
[{"$f":"Table_SummaryPI[[#This Row],[Line No.]]","v":""},{"$f":"IF(Table_PrintPI[[#This Row],[Line No.]]=\"\",\"\",CONCATENATE(Table_PrintPI[[#This Row],[Line No.]],\" - \",Table_SummaryPI[[#This Row],[MeasureName]]))","v":""},{"$f":"IF(Table_SummaryPI[[#This Row],[Manufacturer]]<>\"\",CONCATENATE(Table_SummaryPI[[#This Row],[Manufacturer]],\"/\",Table_SummaryPI[[#This Row],[Model'#]]),\"\")","v":""},{"$f":"IF(Table_SummaryPI[[#This Row],[Serial'#]]<>\"\",Table_SummaryPI[[#This Row],[Serial'#]],\"\")","v":""},{"$f":"IF(Table_SummaryPI[[#This Row],[Quantity]]<>\"\",Table_SummaryPI[[#This Row],[Quantity]],\"\")","v":""},{"$f":"IF(Table_SummaryPI[[#This Row],[BaselinekWh]]<>\"\",Table_SummaryPI[[#This Row],[BaselinekWh]],\"\")","v":""},{"$f":"IF(Table_SummaryPI[[#This Row],[BaselinekW]]<>\"\",Table_SummaryPI[[#This Row],[BaselinekW]],\"\")","v":""},{"$f":"IF(Table_SummaryPI[[#This Row],[ProposedkWh]]<>\"\",Table_SummaryPI[[#This Row],[ProposedkWh]],\"\")","v":""},{"$f":"IF(Table_SummaryPI[[#This Row],[ProposedkW]]<>\"\",Table_SummaryPI[[#This Row],[ProposedkW]],\"\")","v":""},{"$f":"IF(Table_SummaryPI[[#This Row],[Notes]]<>\"\",Table_SummaryPI[[#This Row],[Notes]],\"\")","v":""},{"$f":"IF(Table_SummaryPI[[#This Row],[Incentive_Customer]]<>\"\",Table_SummaryPI[[#This Row],[Incentive_Customer]],0)","v":0},{"$f":"IF(Table_SummaryPI[[#This Row],[MeasureCost]]<>\"\",Table_SummaryPI[[#This Row],[MeasureCost]],0)","v":0},{"$f":"IF(Table_SummaryPI[[#This Row],[kWhSavings]]<>\"\",Table_SummaryPI[[#This Row],[kWhSavings]],0)","v":0},{"$f":"IF(Table_SummaryPI[[#This Row],[DemandSavingskW]]<>\"\",Table_SummaryPI[[#This Row],[DemandSavingskW]],0)","v":0}]
[{"$f":"Table_SummaryPI[[#This Row],[Line No.]]","v":""},{"$f":"IF(Table_PrintPI[[#This Row],[Line No.]]=\"\",\"\",CONCATENATE(Table_PrintPI[[#This Row],[Line No.]],\" - \",Table_SummaryPI[[#This Row],[MeasureName]]))","v":""},{"$f":"IF(Table_SummaryPI[[#This Row],[Manufacturer]]<>\"\",CONCATENATE(Table_SummaryPI[[#This Row],[Manufacturer]],\"/\",Table_SummaryPI[[#This Row],[Model'#]]),\"\")","v":""},{"$f":"IF(Table_SummaryPI[[#This Row],[Serial'#]]<>\"\",Table_SummaryPI[[#This Row],[Serial'#]],\"\")","v":""},{"$f":"IF(Table_SummaryPI[[#This Row],[Quantity]]<>\"\",Table_SummaryPI[[#This Row],[Quantity]],\"\")","v":""},{"$f":"IF(Table_SummaryPI[[#This Row],[BaselinekWh]]<>\"\",Table_SummaryPI[[#This Row],[BaselinekWh]],\"\")","v":""},{"$f":"IF(Table_SummaryPI[[#This Row],[BaselinekW]]<>\"\",Table_SummaryPI[[#This Row],[BaselinekW]],\"\")","v":""},{"$f":"IF(Table_SummaryPI[[#This Row],[ProposedkWh]]<>\"\",Table_SummaryPI[[#This Row],[ProposedkWh]],\"\")","v":""},{"$f":"IF(Table_SummaryPI[[#This Row],[ProposedkW]]<>\"\",Table_SummaryPI[[#This Row],[ProposedkW]],\"\")","v":""},{"$f":"IF(Table_SummaryPI[[#This Row],[Notes]]<>\"\",Table_SummaryPI[[#This Row],[Notes]],\"\")","v":""},{"$f":"IF(Table_SummaryPI[[#This Row],[Incentive_Customer]]<>\"\",Table_SummaryPI[[#This Row],[Incentive_Customer]],0)","v":0},{"$f":"IF(Table_SummaryPI[[#This Row],[MeasureCost]]<>\"\",Table_SummaryPI[[#This Row],[MeasureCost]],0)","v":0},{"$f":"IF(Table_SummaryPI[[#This Row],[kWhSavings]]<>\"\",Table_SummaryPI[[#This Row],[kWhSavings]],0)","v":0},{"$f":"IF(Table_SummaryPI[[#This Row],[DemandSavingskW]]<>\"\",Table_SummaryPI[[#This Row],[DemandSavingskW]],0)","v":0}]
[{"$f":"Table_SummaryPI[[#This Row],[Line No.]]","v":""},{"$f":"IF(Table_PrintPI[[#This Row],[Line No.]]=\"\",\"\",CONCATENATE(Table_PrintPI[[#This Row],[Line No.]],\" - \",Table_SummaryPI[[#This Row],[MeasureName]]))","v":""},{"$f":"IF(Table_SummaryPI[[#This Row],[Manufacturer]]<>\"\",CONCATENATE(Table_SummaryPI[[#This Row],[Manufacturer]],\"/\",Table_SummaryPI[[#This Row],[Model'#]]),\"\")","v":""},{"$f":"IF(Table_SummaryPI[[#This Row],[Serial'#]]<>\"\",Table_SummaryPI[[#This Row],[Serial'#]],\"\")","v":""},{"$f":"IF(Table_SummaryPI[[#This Row],[Quantity]]<>\"\",Table_SummaryPI[[#This Row],[Quantity]],\"\")","v":""},{"$f":"IF(Table_SummaryPI[[#This Row],[BaselinekWh]]<>\"\",Table_SummaryPI[[#This Row],[BaselinekWh]],\"\")","v":""},{"$f":"IF(Table_SummaryPI[[#This Row],[BaselinekW]]<>\"\",Table_SummaryPI[[#This Row],[BaselinekW]],\"\")","v":""},{"$f":"IF(Table_SummaryPI[[#This Row],[ProposedkWh]]<>\"\",Table_SummaryPI[[#This Row],[ProposedkWh]],\"\")","v":""},{"$f":"IF(Table_SummaryPI[[#This Row],[ProposedkW]]<>\"\",Table_SummaryPI[[#This Row],[ProposedkW]],\"\")","v":""},{"$f":"IF(Table_SummaryPI[[#This Row],[Notes]]<>\"\",Table_SummaryPI[[#This Row],[Notes]],\"\")","v":""},{"$f":"IF(Table_SummaryPI[[#This Row],[Incentive_Customer]]<>\"\",Table_SummaryPI[[#This Row],[Incentive_Customer]],0)","v":0},{"$f":"IF(Table_SummaryPI[[#This Row],[MeasureCost]]<>\"\",Table_SummaryPI[[#This Row],[MeasureCost]],0)","v":0},{"$f":"IF(Table_SummaryPI[[#This Row],[kWhSavings]]<>\"\",Table_SummaryPI[[#This Row],[kWhSavings]],0)","v":0},{"$f":"IF(Table_SummaryPI[[#This Row],[DemandSavingskW]]<>\"\",Table_SummaryPI[[#This Row],[DemandSavingskW]],0)","v":0}]
[{"$f":"Table_SummaryPI[[#This Row],[Line No.]]","v":""},{"$f":"IF(Table_PrintPI[[#This Row],[Line No.]]=\"\",\"\",CONCATENATE(Table_PrintPI[[#This Row],[Line No.]],\" - \",Table_SummaryPI[[#This Row],[MeasureName]]))","v":""},{"$f":"IF(Table_SummaryPI[[#This Row],[Manufacturer]]<>\"\",CONCATENATE(Table_SummaryPI[[#This Row],[Manufacturer]],\"/\",Table_SummaryPI[[#This Row],[Model'#]]),\"\")","v":""},{"$f":"IF(Table_SummaryPI[[#This Row],[Serial'#]]<>\"\",Table_SummaryPI[[#This Row],[Serial'#]],\"\")","v":""},{"$f":"IF(Table_SummaryPI[[#This Row],[Quantity]]<>\"\",Table_SummaryPI[[#This Row],[Quantity]],\"\")","v":""},{"$f":"IF(Table_SummaryPI[[#This Row],[BaselinekWh]]<>\"\",Table_SummaryPI[[#This Row],[BaselinekWh]],\"\")","v":""},{"$f":"IF(Table_SummaryPI[[#This Row],[BaselinekW]]<>\"\",Table_SummaryPI[[#This Row],[BaselinekW]],\"\")","v":""},{"$f":"IF(Table_SummaryPI[[#This Row],[ProposedkWh]]<>\"\",Table_SummaryPI[[#This Row],[ProposedkWh]],\"\")","v":""},{"$f":"IF(Table_SummaryPI[[#This Row],[ProposedkW]]<>\"\",Table_SummaryPI[[#This Row],[ProposedkW]],\"\")","v":""},{"$f":"IF(Table_SummaryPI[[#This Row],[Notes]]<>\"\",Table_SummaryPI[[#This Row],[Notes]],\"\")","v":""},{"$f":"IF(Table_SummaryPI[[#This Row],[Incentive_Customer]]<>\"\",Table_SummaryPI[[#This Row],[Incentive_Customer]],0)","v":0},{"$f":"IF(Table_SummaryPI[[#This Row],[MeasureCost]]<>\"\",Table_SummaryPI[[#This Row],[MeasureCost]],0)","v":0},{"$f":"IF(Table_SummaryPI[[#This Row],[kWhSavings]]<>\"\",Table_SummaryPI[[#This Row],[kWhSavings]],0)","v":0},{"$f":"IF(Table_SummaryPI[[#This Row],[DemandSavingskW]]<>\"\",Table_SummaryPI[[#This Row],[DemandSavingskW]],0)","v":0}]
[{"$f":"Table_SummaryPI[[#This Row],[Line No.]]","v":""},{"$f":"IF(Table_PrintPI[[#This Row],[Line No.]]=\"\",\"\",CONCATENATE(Table_PrintPI[[#This Row],[Line No.]],\" - \",Table_SummaryPI[[#This Row],[MeasureName]]))","v":""},{"$f":"IF(Table_SummaryPI[[#This Row],[Manufacturer]]<>\"\",CONCATENATE(Table_SummaryPI[[#This Row],[Manufacturer]],\"/\",Table_SummaryPI[[#This Row],[Model'#]]),\"\")","v":""},{"$f":"IF(Table_SummaryPI[[#This Row],[Serial'#]]<>\"\",Table_SummaryPI[[#This Row],[Serial'#]],\"\")","v":""},{"$f":"IF(Table_SummaryPI[[#This Row],[Quantity]]<>\"\",Table_SummaryPI[[#This Row],[Quantity]],\"\")","v":""},{"$f":"IF(Table_SummaryPI[[#This Row],[BaselinekWh]]<>\"\",Table_SummaryPI[[#This Row],[BaselinekWh]],\"\")","v":""},{"$f":"IF(Table_SummaryPI[[#This Row],[BaselinekW]]<>\"\",Table_SummaryPI[[#This Row],[BaselinekW]],\"\")","v":""},{"$f":"IF(Table_SummaryPI[[#This Row],[ProposedkWh]]<>\"\",Table_SummaryPI[[#This Row],[ProposedkWh]],\"\")","v":""},{"$f":"IF(Table_SummaryPI[[#This Row],[ProposedkW]]<>\"\",Table_SummaryPI[[#This Row],[ProposedkW]],\"\")","v":""},{"$f":"IF(Table_SummaryPI[[#This Row],[Notes]]<>\"\",Table_SummaryPI[[#This Row],[Notes]],\"\")","v":""},{"$f":"IF(Table_SummaryPI[[#This Row],[Incentive_Customer]]<>\"\",Table_SummaryPI[[#This Row],[Incentive_Customer]],0)","v":0},{"$f":"IF(Table_SummaryPI[[#This Row],[MeasureCost]]<>\"\",Table_SummaryPI[[#This Row],[MeasureCost]],0)","v":0},{"$f":"IF(Table_SummaryPI[[#This Row],[kWhSavings]]<>\"\",Table_SummaryPI[[#This Row],[kWhSavings]],0)","v":0},{"$f":"IF(Table_SummaryPI[[#This Row],[DemandSavingskW]]<>\"\",Table_SummaryPI[[#This Row],[DemandSavingskW]],0)","v":0}]
[{"$f":"Table_SummaryPI[[#This Row],[Line No.]]","v":""},{"$f":"IF(Table_PrintPI[[#This Row],[Line No.]]=\"\",\"\",CONCATENATE(Table_PrintPI[[#This Row],[Line No.]],\" - \",Table_SummaryPI[[#This Row],[MeasureName]]))","v":""},{"$f":"IF(Table_SummaryPI[[#This Row],[Manufacturer]]<>\"\",CONCATENATE(Table_SummaryPI[[#This Row],[Manufacturer]],\"/\",Table_SummaryPI[[#This Row],[Model'#]]),\"\")","v":""},{"$f":"IF(Table_SummaryPI[[#This Row],[Serial'#]]<>\"\",Table_SummaryPI[[#This Row],[Serial'#]],\"\")","v":""},{"$f":"IF(Table_SummaryPI[[#This Row],[Quantity]]<>\"\",Table_SummaryPI[[#This Row],[Quantity]],\"\")","v":""},{"$f":"IF(Table_SummaryPI[[#This Row],[BaselinekWh]]<>\"\",Table_SummaryPI[[#This Row],[BaselinekWh]],\"\")","v":""},{"$f":"IF(Table_SummaryPI[[#This Row],[BaselinekW]]<>\"\",Table_SummaryPI[[#This Row],[BaselinekW]],\"\")","v":""},{"$f":"IF(Table_SummaryPI[[#This Row],[ProposedkWh]]<>\"\",Table_SummaryPI[[#This Row],[ProposedkWh]],\"\")","v":""},{"$f":"IF(Table_SummaryPI[[#This Row],[ProposedkW]]<>\"\",Table_SummaryPI[[#This Row],[ProposedkW]],\"\")","v":""},{"$f":"IF(Table_SummaryPI[[#This Row],[Notes]]<>\"\",Table_SummaryPI[[#This Row],[Notes]],\"\")","v":""},{"$f":"IF(Table_SummaryPI[[#This Row],[Incentive_Customer]]<>\"\",Table_SummaryPI[[#This Row],[Incentive_Customer]],0)","v":0},{"$f":"IF(Table_SummaryPI[[#This Row],[MeasureCost]]<>\"\",Table_SummaryPI[[#This Row],[MeasureCost]],0)","v":0},{"$f":"IF(Table_SummaryPI[[#This Row],[kWhSavings]]<>\"\",Table_SummaryPI[[#This Row],[kWhSavings]],0)","v":0},{"$f":"IF(Table_SummaryPI[[#This Row],[DemandSavingskW]]<>\"\",Table_SummaryPI[[#This Row],[DemandSavingskW]],0)","v":0}]
[{"$f":"Table_SummaryPI[[#This Row],[Line No.]]","v":""},{"$f":"IF(Table_PrintPI[[#This Row],[Line No.]]=\"\",\"\",CONCATENATE(Table_PrintPI[[#This Row],[Line No.]],\" - \",Table_SummaryPI[[#This Row],[MeasureName]]))","v":""},{"$f":"IF(Table_SummaryPI[[#This Row],[Manufacturer]]<>\"\",CONCATENATE(Table_SummaryPI[[#This Row],[Manufacturer]],\"/\",Table_SummaryPI[[#This Row],[Model'#]]),\"\")","v":""},{"$f":"IF(Table_SummaryPI[[#This Row],[Serial'#]]<>\"\",Table_SummaryPI[[#This Row],[Serial'#]],\"\")","v":""},{"$f":"IF(Table_SummaryPI[[#This Row],[Quantity]]<>\"\",Table_SummaryPI[[#This Row],[Quantity]],\"\")","v":""},{"$f":"IF(Table_SummaryPI[[#This Row],[BaselinekWh]]<>\"\",Table_SummaryPI[[#This Row],[BaselinekWh]],\"\")","v":""},{"$f":"IF(Table_SummaryPI[[#This Row],[BaselinekW]]<>\"\",Table_SummaryPI[[#This Row],[BaselinekW]],\"\")","v":""},{"$f":"IF(Table_SummaryPI[[#This Row],[ProposedkWh]]<>\"\",Table_SummaryPI[[#This Row],[ProposedkWh]],\"\")","v":""},{"$f":"IF(Table_SummaryPI[[#This Row],[ProposedkW]]<>\"\",Table_SummaryPI[[#This Row],[ProposedkW]],\"\")","v":""},{"$f":"IF(Table_SummaryPI[[#This Row],[Notes]]<>\"\",Table_SummaryPI[[#This Row],[Notes]],\"\")","v":""},{"$f":"IF(Table_SummaryPI[[#This Row],[Incentive_Customer]]<>\"\",Table_SummaryPI[[#This Row],[Incentive_Customer]],0)","v":0},{"$f":"IF(Table_SummaryPI[[#This Row],[MeasureCost]]<>\"\",Table_SummaryPI[[#This Row],[MeasureCost]],0)","v":0},{"$f":"IF(Table_SummaryPI[[#This Row],[kWhSavings]]<>\"\",Table_SummaryPI[[#This Row],[kWhSavings]],0)","v":0},{"$f":"IF(Table_SummaryPI[[#This Row],[DemandSavingskW]]<>\"\",Table_SummaryPI[[#This Row],[DemandSavingskW]],0)","v":0}]
[{"$f":"Table_SummaryPI[[#This Row],[Line No.]]","v":""},{"$f":"IF(Table_PrintPI[[#This Row],[Line No.]]=\"\",\"\",CONCATENATE(Table_PrintPI[[#This Row],[Line No.]],\" - \",Table_SummaryPI[[#This Row],[MeasureName]]))","v":""},{"$f":"IF(Table_SummaryPI[[#This Row],[Manufacturer]]<>\"\",CONCATENATE(Table_SummaryPI[[#This Row],[Manufacturer]],\"/\",Table_SummaryPI[[#This Row],[Model'#]]),\"\")","v":""},{"$f":"IF(Table_SummaryPI[[#This Row],[Serial'#]]<>\"\",Table_SummaryPI[[#This Row],[Serial'#]],\"\")","v":""},{"$f":"IF(Table_SummaryPI[[#This Row],[Quantity]]<>\"\",Table_SummaryPI[[#This Row],[Quantity]],\"\")","v":""},{"$f":"IF(Table_SummaryPI[[#This Row],[BaselinekWh]]<>\"\",Table_SummaryPI[[#This Row],[BaselinekWh]],\"\")","v":""},{"$f":"IF(Table_SummaryPI[[#This Row],[BaselinekW]]<>\"\",Table_SummaryPI[[#This Row],[BaselinekW]],\"\")","v":""},{"$f":"IF(Table_SummaryPI[[#This Row],[ProposedkWh]]<>\"\",Table_SummaryPI[[#This Row],[ProposedkWh]],\"\")","v":""},{"$f":"IF(Table_SummaryPI[[#This Row],[ProposedkW]]<>\"\",Table_SummaryPI[[#This Row],[ProposedkW]],\"\")","v":""},{"$f":"IF(Table_SummaryPI[[#This Row],[Notes]]<>\"\",Table_SummaryPI[[#This Row],[Notes]],\"\")","v":""},{"$f":"IF(Table_SummaryPI[[#This Row],[Incentive_Customer]]<>\"\",Table_SummaryPI[[#This Row],[Incentive_Customer]],0)","v":0},{"$f":"IF(Table_SummaryPI[[#This Row],[MeasureCost]]<>\"\",Table_SummaryPI[[#This Row],[MeasureCost]],0)","v":0},{"$f":"IF(Table_SummaryPI[[#This Row],[kWhSavings]]<>\"\",Table_SummaryPI[[#This Row],[kWhSavings]],0)","v":0},{"$f":"IF(Table_SummaryPI[[#This Row],[DemandSavingskW]]<>\"\",Table_SummaryPI[[#This Row],[DemandSavingskW]],0)","v":0}]
[{"$f":"Table_SummaryPI[[#This Row],[Line No.]]","v":""},{"$f":"IF(Table_PrintPI[[#This Row],[Line No.]]=\"\",\"\",CONCATENATE(Table_PrintPI[[#This Row],[Line No.]],\" - \",Table_SummaryPI[[#This Row],[MeasureName]]))","v":""},{"$f":"IF(Table_SummaryPI[[#This Row],[Manufacturer]]<>\"\",CONCATENATE(Table_SummaryPI[[#This Row],[Manufacturer]],\"/\",Table_SummaryPI[[#This Row],[Model'#]]),\"\")","v":""},{"$f":"IF(Table_SummaryPI[[#This Row],[Serial'#]]<>\"\",Table_SummaryPI[[#This Row],[Serial'#]],\"\")","v":""},{"$f":"IF(Table_SummaryPI[[#This Row],[Quantity]]<>\"\",Table_SummaryPI[[#This Row],[Quantity]],\"\")","v":""},{"$f":"IF(Table_SummaryPI[[#This Row],[BaselinekWh]]<>\"\",Table_SummaryPI[[#This Row],[BaselinekWh]],\"\")","v":""},{"$f":"IF(Table_SummaryPI[[#This Row],[BaselinekW]]<>\"\",Table_SummaryPI[[#This Row],[BaselinekW]],\"\")","v":""},{"$f":"IF(Table_SummaryPI[[#This Row],[ProposedkWh]]<>\"\",Table_SummaryPI[[#This Row],[ProposedkWh]],\"\")","v":""},{"$f":"IF(Table_SummaryPI[[#This Row],[ProposedkW]]<>\"\",Table_SummaryPI[[#This Row],[ProposedkW]],\"\")","v":""},{"$f":"IF(Table_SummaryPI[[#This Row],[Notes]]<>\"\",Table_SummaryPI[[#This Row],[Notes]],\"\")","v":""},{"$f":"IF(Table_SummaryPI[[#This Row],[Incentive_Customer]]<>\"\",Table_SummaryPI[[#This Row],[Incentive_Customer]],0)","v":0},{"$f":"IF(Table_SummaryPI[[#This Row],[MeasureCost]]<>\"\",Table_SummaryPI[[#This Row],[MeasureCost]],0)","v":0},{"$f":"IF(Table_SummaryPI[[#This Row],[kWhSavings]]<>\"\",Table_SummaryPI[[#This Row],[kWhSavings]],0)","v":0},{"$f":"IF(Table_SummaryPI[[#This Row],[DemandSavingskW]]<>\"\",Table_SummaryPI[[#This Row],[DemandSavingskW]],0)","v":0}]
[{"$f":"Table_SummaryPI[[#This Row],[Line No.]]","v":""},{"$f":"IF(Table_PrintPI[[#This Row],[Line No.]]=\"\",\"\",CONCATENATE(Table_PrintPI[[#This Row],[Line No.]],\" - \",Table_SummaryPI[[#This Row],[MeasureName]]))","v":""},{"$f":"IF(Table_SummaryPI[[#This Row],[Manufacturer]]<>\"\",CONCATENATE(Table_SummaryPI[[#This Row],[Manufacturer]],\"/\",Table_SummaryPI[[#This Row],[Model'#]]),\"\")","v":""},{"$f":"IF(Table_SummaryPI[[#This Row],[Serial'#]]<>\"\",Table_SummaryPI[[#This Row],[Serial'#]],\"\")","v":""},{"$f":"IF(Table_SummaryPI[[#This Row],[Quantity]]<>\"\",Table_SummaryPI[[#This Row],[Quantity]],\"\")","v":""},{"$f":"IF(Table_SummaryPI[[#This Row],[BaselinekWh]]<>\"\",Table_SummaryPI[[#This Row],[BaselinekWh]],\"\")","v":""},{"$f":"IF(Table_SummaryPI[[#This Row],[BaselinekW]]<>\"\",Table_SummaryPI[[#This Row],[BaselinekW]],\"\")","v":""},{"$f":"IF(Table_SummaryPI[[#This Row],[ProposedkWh]]<>\"\",Table_SummaryPI[[#This Row],[ProposedkWh]],\"\")","v":""},{"$f":"IF(Table_SummaryPI[[#This Row],[ProposedkW]]<>\"\",Table_SummaryPI[[#This Row],[ProposedkW]],\"\")","v":""},{"$f":"IF(Table_SummaryPI[[#This Row],[Notes]]<>\"\",Table_SummaryPI[[#This Row],[Notes]],\"\")","v":""},{"$f":"IF(Table_SummaryPI[[#This Row],[Incentive_Customer]]<>\"\",Table_SummaryPI[[#This Row],[Incentive_Customer]],0)","v":0},{"$f":"IF(Table_SummaryPI[[#This Row],[MeasureCost]]<>\"\",Table_SummaryPI[[#This Row],[MeasureCost]],0)","v":0},{"$f":"IF(Table_SummaryPI[[#This Row],[kWhSavings]]<>\"\",Table_SummaryPI[[#This Row],[kWhSavings]],0)","v":0},{"$f":"IF(Table_SummaryPI[[#This Row],[DemandSavingskW]]<>\"\",Table_SummaryPI[[#This Row],[DemandSavingskW]],0)","v":0}]
[{"$f":"Table_SummaryPI[[#This Row],[Line No.]]","v":""},{"$f":"IF(Table_PrintPI[[#This Row],[Line No.]]=\"\",\"\",CONCATENATE(Table_PrintPI[[#This Row],[Line No.]],\" - \",Table_SummaryPI[[#This Row],[MeasureName]]))","v":""},{"$f":"IF(Table_SummaryPI[[#This Row],[Manufacturer]]<>\"\",CONCATENATE(Table_SummaryPI[[#This Row],[Manufacturer]],\"/\",Table_SummaryPI[[#This Row],[Model'#]]),\"\")","v":""},{"$f":"IF(Table_SummaryPI[[#This Row],[Serial'#]]<>\"\",Table_SummaryPI[[#This Row],[Serial'#]],\"\")","v":""},{"$f":"IF(Table_SummaryPI[[#This Row],[Quantity]]<>\"\",Table_SummaryPI[[#This Row],[Quantity]],\"\")","v":""},{"$f":"IF(Table_SummaryPI[[#This Row],[BaselinekWh]]<>\"\",Table_SummaryPI[[#This Row],[BaselinekWh]],\"\")","v":""},{"$f":"IF(Table_SummaryPI[[#This Row],[BaselinekW]]<>\"\",Table_SummaryPI[[#This Row],[BaselinekW]],\"\")","v":""},{"$f":"IF(Table_SummaryPI[[#This Row],[ProposedkWh]]<>\"\",Table_SummaryPI[[#This Row],[ProposedkWh]],\"\")","v":""},{"$f":"IF(Table_SummaryPI[[#This Row],[ProposedkW]]<>\"\",Table_SummaryPI[[#This Row],[ProposedkW]],\"\")","v":""},{"$f":"IF(Table_SummaryPI[[#This Row],[Notes]]<>\"\",Table_SummaryPI[[#This Row],[Notes]],\"\")","v":""},{"$f":"IF(Table_SummaryPI[[#This Row],[Incentive_Customer]]<>\"\",Table_SummaryPI[[#This Row],[Incentive_Customer]],0)","v":0},{"$f":"IF(Table_SummaryPI[[#This Row],[MeasureCost]]<>\"\",Table_SummaryPI[[#This Row],[MeasureCost]],0)","v":0},{"$f":"IF(Table_SummaryPI[[#This Row],[kWhSavings]]<>\"\",Table_SummaryPI[[#This Row],[kWhSavings]],0)","v":0},{"$f":"IF(Table_SummaryPI[[#This Row],[DemandSavingskW]]<>\"\",Table_SummaryPI[[#This Row],[DemandSavingskW]],0)","v":0}]
[{"$f":"Table_SummaryPI[[#This Row],[Line No.]]","v":""},{"$f":"IF(Table_PrintPI[[#This Row],[Line No.]]=\"\",\"\",CONCATENATE(Table_PrintPI[[#This Row],[Line No.]],\" - \",Table_SummaryPI[[#This Row],[MeasureName]]))","v":""},{"$f":"IF(Table_SummaryPI[[#This Row],[Manufacturer]]<>\"\",CONCATENATE(Table_SummaryPI[[#This Row],[Manufacturer]],\"/\",Table_SummaryPI[[#This Row],[Model'#]]),\"\")","v":""},{"$f":"IF(Table_SummaryPI[[#This Row],[Serial'#]]<>\"\",Table_SummaryPI[[#This Row],[Serial'#]],\"\")","v":""},{"$f":"IF(Table_SummaryPI[[#This Row],[Quantity]]<>\"\",Table_SummaryPI[[#This Row],[Quantity]],\"\")","v":""},{"$f":"IF(Table_SummaryPI[[#This Row],[BaselinekWh]]<>\"\",Table_SummaryPI[[#This Row],[BaselinekWh]],\"\")","v":""},{"$f":"IF(Table_SummaryPI[[#This Row],[BaselinekW]]<>\"\",Table_SummaryPI[[#This Row],[BaselinekW]],\"\")","v":""},{"$f":"IF(Table_SummaryPI[[#This Row],[ProposedkWh]]<>\"\",Table_SummaryPI[[#This Row],[ProposedkWh]],\"\")","v":""},{"$f":"IF(Table_SummaryPI[[#This Row],[ProposedkW]]<>\"\",Table_SummaryPI[[#This Row],[ProposedkW]],\"\")","v":""},{"$f":"IF(Table_SummaryPI[[#This Row],[Notes]]<>\"\",Table_SummaryPI[[#This Row],[Notes]],\"\")","v":""},{"$f":"IF(Table_SummaryPI[[#This Row],[Incentive_Customer]]<>\"\",Table_SummaryPI[[#This Row],[Incentive_Customer]],0)","v":0},{"$f":"IF(Table_SummaryPI[[#This Row],[MeasureCost]]<>\"\",Table_SummaryPI[[#This Row],[MeasureCost]],0)","v":0},{"$f":"IF(Table_SummaryPI[[#This Row],[kWhSavings]]<>\"\",Table_SummaryPI[[#This Row],[kWhSavings]],0)","v":0},{"$f":"IF(Table_SummaryPI[[#This Row],[DemandSavingskW]]<>\"\",Table_SummaryPI[[#This Row],[DemandSavingskW]],0)","v":0}]
[{"$f":"Table_SummaryPI[[#This Row],[Line No.]]","v":""},{"$f":"IF(Table_PrintPI[[#This Row],[Line No.]]=\"\",\"\",CONCATENATE(Table_PrintPI[[#This Row],[Line No.]],\" - \",Table_SummaryPI[[#This Row],[MeasureName]]))","v":""},{"$f":"IF(Table_SummaryPI[[#This Row],[Manufacturer]]<>\"\",CONCATENATE(Table_SummaryPI[[#This Row],[Manufacturer]],\"/\",Table_SummaryPI[[#This Row],[Model'#]]),\"\")","v":""},{"$f":"IF(Table_SummaryPI[[#This Row],[Serial'#]]<>\"\",Table_SummaryPI[[#This Row],[Serial'#]],\"\")","v":""},{"$f":"IF(Table_SummaryPI[[#This Row],[Quantity]]<>\"\",Table_SummaryPI[[#This Row],[Quantity]],\"\")","v":""},{"$f":"IF(Table_SummaryPI[[#This Row],[BaselinekWh]]<>\"\",Table_SummaryPI[[#This Row],[BaselinekWh]],\"\")","v":""},{"$f":"IF(Table_SummaryPI[[#This Row],[BaselinekW]]<>\"\",Table_SummaryPI[[#This Row],[BaselinekW]],\"\")","v":""},{"$f":"IF(Table_SummaryPI[[#This Row],[ProposedkWh]]<>\"\",Table_SummaryPI[[#This Row],[ProposedkWh]],\"\")","v":""},{"$f":"IF(Table_SummaryPI[[#This Row],[ProposedkW]]<>\"\",Table_SummaryPI[[#This Row],[ProposedkW]],\"\")","v":""},{"$f":"IF(Table_SummaryPI[[#This Row],[Notes]]<>\"\",Table_SummaryPI[[#This Row],[Notes]],\"\")","v":""},{"$f":"IF(Table_SummaryPI[[#This Row],[Incentive_Customer]]<>\"\",Table_SummaryPI[[#This Row],[Incentive_Customer]],0)","v":0},{"$f":"IF(Table_SummaryPI[[#This Row],[MeasureCost]]<>\"\",Table_SummaryPI[[#This Row],[MeasureCost]],0)","v":0},{"$f":"IF(Table_SummaryPI[[#This Row],[kWhSavings]]<>\"\",Table_SummaryPI[[#This Row],[kWhSavings]],0)","v":0},{"$f":"IF(Table_SummaryPI[[#This Row],[DemandSavingskW]]<>\"\",Table_SummaryPI[[#This Row],[DemandSavingskW]],0)","v":0}]
[{"$f":"Table_SummaryPI[[#This Row],[Line No.]]","v":""},{"$f":"IF(Table_PrintPI[[#This Row],[Line No.]]=\"\",\"\",CONCATENATE(Table_PrintPI[[#This Row],[Line No.]],\" - \",Table_SummaryPI[[#This Row],[MeasureName]]))","v":""},{"$f":"IF(Table_SummaryPI[[#This Row],[Manufacturer]]<>\"\",CONCATENATE(Table_SummaryPI[[#This Row],[Manufacturer]],\"/\",Table_SummaryPI[[#This Row],[Model'#]]),\"\")","v":""},{"$f":"IF(Table_SummaryPI[[#This Row],[Serial'#]]<>\"\",Table_SummaryPI[[#This Row],[Serial'#]],\"\")","v":""},{"$f":"IF(Table_SummaryPI[[#This Row],[Quantity]]<>\"\",Table_SummaryPI[[#This Row],[Quantity]],\"\")","v":""},{"$f":"IF(Table_SummaryPI[[#This Row],[BaselinekWh]]<>\"\",Table_SummaryPI[[#This Row],[BaselinekWh]],\"\")","v":""},{"$f":"IF(Table_SummaryPI[[#This Row],[BaselinekW]]<>\"\",Table_SummaryPI[[#This Row],[BaselinekW]],\"\")","v":""},{"$f":"IF(Table_SummaryPI[[#This Row],[ProposedkWh]]<>\"\",Table_SummaryPI[[#This Row],[ProposedkWh]],\"\")","v":""},{"$f":"IF(Table_SummaryPI[[#This Row],[ProposedkW]]<>\"\",Table_SummaryPI[[#This Row],[ProposedkW]],\"\")","v":""},{"$f":"IF(Table_SummaryPI[[#This Row],[Notes]]<>\"\",Table_SummaryPI[[#This Row],[Notes]],\"\")","v":""},{"$f":"IF(Table_SummaryPI[[#This Row],[Incentive_Customer]]<>\"\",Table_SummaryPI[[#This Row],[Incentive_Customer]],0)","v":0},{"$f":"IF(Table_SummaryPI[[#This Row],[MeasureCost]]<>\"\",Table_SummaryPI[[#This Row],[MeasureCost]],0)","v":0},{"$f":"IF(Table_SummaryPI[[#This Row],[kWhSavings]]<>\"\",Table_SummaryPI[[#This Row],[kWhSavings]],0)","v":0},{"$f":"IF(Table_SummaryPI[[#This Row],[DemandSavingskW]]<>\"\",Table_SummaryPI[[#This Row],[DemandSavingskW]],0)","v":0}]
[{"$f":"Table_SummaryPI[[#This Row],[Line No.]]","v":""},{"$f":"IF(Table_PrintPI[[#This Row],[Line No.]]=\"\",\"\",CONCATENATE(Table_PrintPI[[#This Row],[Line No.]],\" - \",Table_SummaryPI[[#This Row],[MeasureName]]))","v":""},{"$f":"IF(Table_SummaryPI[[#This Row],[Manufacturer]]<>\"\",CONCATENATE(Table_SummaryPI[[#This Row],[Manufacturer]],\"/\",Table_SummaryPI[[#This Row],[Model'#]]),\"\")","v":""},{"$f":"IF(Table_SummaryPI[[#This Row],[Serial'#]]<>\"\",Table_SummaryPI[[#This Row],[Serial'#]],\"\")","v":""},{"$f":"IF(Table_SummaryPI[[#This Row],[Quantity]]<>\"\",Table_SummaryPI[[#This Row],[Quantity]],\"\")","v":""},{"$f":"IF(Table_SummaryPI[[#This Row],[BaselinekWh]]<>\"\",Table_SummaryPI[[#This Row],[BaselinekWh]],\"\")","v":""},{"$f":"IF(Table_SummaryPI[[#This Row],[BaselinekW]]<>\"\",Table_SummaryPI[[#This Row],[BaselinekW]],\"\")","v":""},{"$f":"IF(Table_SummaryPI[[#This Row],[ProposedkWh]]<>\"\",Table_SummaryPI[[#This Row],[ProposedkWh]],\"\")","v":""},{"$f":"IF(Table_SummaryPI[[#This Row],[ProposedkW]]<>\"\",Table_SummaryPI[[#This Row],[ProposedkW]],\"\")","v":""},{"$f":"IF(Table_SummaryPI[[#This Row],[Notes]]<>\"\",Table_SummaryPI[[#This Row],[Notes]],\"\")","v":""},{"$f":"IF(Table_SummaryPI[[#This Row],[Incentive_Customer]]<>\"\",Table_SummaryPI[[#This Row],[Incentive_Customer]],0)","v":0},{"$f":"IF(Table_SummaryPI[[#This Row],[MeasureCost]]<>\"\",Table_SummaryPI[[#This Row],[MeasureCost]],0)","v":0},{"$f":"IF(Table_SummaryPI[[#This Row],[kWhSavings]]<>\"\",Table_SummaryPI[[#This Row],[kWhSavings]],0)","v":0},{"$f":"IF(Table_SummaryPI[[#This Row],[DemandSavingskW]]<>\"\",Table_SummaryPI[[#This Row],[DemandSavingskW]],0)","v":0}]
[{"$f":"Table_SummaryPI[[#This Row],[Line No.]]","v":""},{"$f":"IF(Table_PrintPI[[#This Row],[Line No.]]=\"\",\"\",CONCATENATE(Table_PrintPI[[#This Row],[Line No.]],\" - \",Table_SummaryPI[[#This Row],[MeasureName]]))","v":""},{"$f":"IF(Table_SummaryPI[[#This Row],[Manufacturer]]<>\"\",CONCATENATE(Table_SummaryPI[[#This Row],[Manufacturer]],\"/\",Table_SummaryPI[[#This Row],[Model'#]]),\"\")","v":""},{"$f":"IF(Table_SummaryPI[[#This Row],[Serial'#]]<>\"\",Table_SummaryPI[[#This Row],[Serial'#]],\"\")","v":""},{"$f":"IF(Table_SummaryPI[[#This Row],[Quantity]]<>\"\",Table_SummaryPI[[#This Row],[Quantity]],\"\")","v":""},{"$f":"IF(Table_SummaryPI[[#This Row],[BaselinekWh]]<>\"\",Table_SummaryPI[[#This Row],[BaselinekWh]],\"\")","v":""},{"$f":"IF(Table_SummaryPI[[#This Row],[BaselinekW]]<>\"\",Table_SummaryPI[[#This Row],[BaselinekW]],\"\")","v":""},{"$f":"IF(Table_SummaryPI[[#This Row],[ProposedkWh]]<>\"\",Table_SummaryPI[[#This Row],[ProposedkWh]],\"\")","v":""},{"$f":"IF(Table_SummaryPI[[#This Row],[ProposedkW]]<>\"\",Table_SummaryPI[[#This Row],[ProposedkW]],\"\")","v":""},{"$f":"IF(Table_SummaryPI[[#This Row],[Notes]]<>\"\",Table_SummaryPI[[#This Row],[Notes]],\"\")","v":""},{"$f":"IF(Table_SummaryPI[[#This Row],[Incentive_Customer]]<>\"\",Table_SummaryPI[[#This Row],[Incentive_Customer]],0)","v":0},{"$f":"IF(Table_SummaryPI[[#This Row],[MeasureCost]]<>\"\",Table_SummaryPI[[#This Row],[MeasureCost]],0)","v":0},{"$f":"IF(Table_SummaryPI[[#This Row],[kWhSavings]]<>\"\",Table_SummaryPI[[#This Row],[kWhSavings]],0)","v":0},{"$f":"IF(Table_SummaryPI[[#This Row],[DemandSavingskW]]<>\"\",Table_SummaryPI[[#This Row],[DemandSavingskW]],0)","v":0}]
[{"$f":"Table_SummaryPI[[#This Row],[Line No.]]","v":""},{"$f":"IF(Table_PrintPI[[#This Row],[Line No.]]=\"\",\"\",CONCATENATE(Table_PrintPI[[#This Row],[Line No.]],\" - \",Table_SummaryPI[[#This Row],[MeasureName]]))","v":""},{"$f":"IF(Table_SummaryPI[[#This Row],[Manufacturer]]<>\"\",CONCATENATE(Table_SummaryPI[[#This Row],[Manufacturer]],\"/\",Table_SummaryPI[[#This Row],[Model'#]]),\"\")","v":""},{"$f":"IF(Table_SummaryPI[[#This Row],[Serial'#]]<>\"\",Table_SummaryPI[[#This Row],[Serial'#]],\"\")","v":""},{"$f":"IF(Table_SummaryPI[[#This Row],[Quantity]]<>\"\",Table_SummaryPI[[#This Row],[Quantity]],\"\")","v":""},{"$f":"IF(Table_SummaryPI[[#This Row],[BaselinekWh]]<>\"\",Table_SummaryPI[[#This Row],[BaselinekWh]],\"\")","v":""},{"$f":"IF(Table_SummaryPI[[#This Row],[BaselinekW]]<>\"\",Table_SummaryPI[[#This Row],[BaselinekW]],\"\")","v":""},{"$f":"IF(Table_SummaryPI[[#This Row],[ProposedkWh]]<>\"\",Table_SummaryPI[[#This Row],[ProposedkWh]],\"\")","v":""},{"$f":"IF(Table_SummaryPI[[#This Row],[ProposedkW]]<>\"\",Table_SummaryPI[[#This Row],[ProposedkW]],\"\")","v":""},{"$f":"IF(Table_SummaryPI[[#This Row],[Notes]]<>\"\",Table_SummaryPI[[#This Row],[Notes]],\"\")","v":""},{"$f":"IF(Table_SummaryPI[[#This Row],[Incentive_Customer]]<>\"\",Table_SummaryPI[[#This Row],[Incentive_Customer]],0)","v":0},{"$f":"IF(Table_SummaryPI[[#This Row],[MeasureCost]]<>\"\",Table_SummaryPI[[#This Row],[MeasureCost]],0)","v":0},{"$f":"IF(Table_SummaryPI[[#This Row],[kWhSavings]]<>\"\",Table_SummaryPI[[#This Row],[kWhSavings]],0)","v":0},{"$f":"IF(Table_SummaryPI[[#This Row],[DemandSavingskW]]<>\"\",Table_SummaryPI[[#This Row],[DemandSavingskW]],0)","v":0}]
[{"$f":"Table_SummaryPI[[#This Row],[Line No.]]","v":""},{"$f":"IF(Table_PrintPI[[#This Row],[Line No.]]=\"\",\"\",CONCATENATE(Table_PrintPI[[#This Row],[Line No.]],\" - \",Table_SummaryPI[[#This Row],[MeasureName]]))","v":""},{"$f":"IF(Table_SummaryPI[[#This Row],[Manufacturer]]<>\"\",CONCATENATE(Table_SummaryPI[[#This Row],[Manufacturer]],\"/\",Table_SummaryPI[[#This Row],[Model'#]]),\"\")","v":""},{"$f":"IF(Table_SummaryPI[[#This Row],[Serial'#]]<>\"\",Table_SummaryPI[[#This Row],[Serial'#]],\"\")","v":""},{"$f":"IF(Table_SummaryPI[[#This Row],[Quantity]]<>\"\",Table_SummaryPI[[#This Row],[Quantity]],\"\")","v":""},{"$f":"IF(Table_SummaryPI[[#This Row],[BaselinekWh]]<>\"\",Table_SummaryPI[[#This Row],[BaselinekWh]],\"\")","v":""},{"$f":"IF(Table_SummaryPI[[#This Row],[BaselinekW]]<>\"\",Table_SummaryPI[[#This Row],[BaselinekW]],\"\")","v":""},{"$f":"IF(Table_SummaryPI[[#This Row],[ProposedkWh]]<>\"\",Table_SummaryPI[[#This Row],[ProposedkWh]],\"\")","v":""},{"$f":"IF(Table_SummaryPI[[#This Row],[ProposedkW]]<>\"\",Table_SummaryPI[[#This Row],[ProposedkW]],\"\")","v":""},{"$f":"IF(Table_SummaryPI[[#This Row],[Notes]]<>\"\",Table_SummaryPI[[#This Row],[Notes]],\"\")","v":""},{"$f":"IF(Table_SummaryPI[[#This Row],[Incentive_Customer]]<>\"\",Table_SummaryPI[[#This Row],[Incentive_Customer]],0)","v":0},{"$f":"IF(Table_SummaryPI[[#This Row],[MeasureCost]]<>\"\",Table_SummaryPI[[#This Row],[MeasureCost]],0)","v":0},{"$f":"IF(Table_SummaryPI[[#This Row],[kWhSavings]]<>\"\",Table_SummaryPI[[#This Row],[kWhSavings]],0)","v":0},{"$f":"IF(Table_SummaryPI[[#This Row],[DemandSavingskW]]<>\"\",Table_SummaryPI[[#This Row],[DemandSavingskW]],0)","v":0}]
[{"$f":"Table_SummaryPI[[#This Row],[Line No.]]","v":""},{"$f":"IF(Table_PrintPI[[#This Row],[Line No.]]=\"\",\"\",CONCATENATE(Table_PrintPI[[#This Row],[Line No.]],\" - \",Table_SummaryPI[[#This Row],[MeasureName]]))","v":""},{"$f":"IF(Table_SummaryPI[[#This Row],[Manufacturer]]<>\"\",CONCATENATE(Table_SummaryPI[[#This Row],[Manufacturer]],\"/\",Table_SummaryPI[[#This Row],[Model'#]]),\"\")","v":""},{"$f":"IF(Table_SummaryPI[[#This Row],[Serial'#]]<>\"\",Table_SummaryPI[[#This Row],[Serial'#]],\"\")","v":""},{"$f":"IF(Table_SummaryPI[[#This Row],[Quantity]]<>\"\",Table_SummaryPI[[#This Row],[Quantity]],\"\")","v":""},{"$f":"IF(Table_SummaryPI[[#This Row],[BaselinekWh]]<>\"\",Table_SummaryPI[[#This Row],[BaselinekWh]],\"\")","v":""},{"$f":"IF(Table_SummaryPI[[#This Row],[BaselinekW]]<>\"\",Table_SummaryPI[[#This Row],[BaselinekW]],\"\")","v":""},{"$f":"IF(Table_SummaryPI[[#This Row],[ProposedkWh]]<>\"\",Table_SummaryPI[[#This Row],[ProposedkWh]],\"\")","v":""},{"$f":"IF(Table_SummaryPI[[#This Row],[ProposedkW]]<>\"\",Table_SummaryPI[[#This Row],[ProposedkW]],\"\")","v":""},{"$f":"IF(Table_SummaryPI[[#This Row],[Notes]]<>\"\",Table_SummaryPI[[#This Row],[Notes]],\"\")","v":""},{"$f":"IF(Table_SummaryPI[[#This Row],[Incentive_Customer]]<>\"\",Table_SummaryPI[[#This Row],[Incentive_Customer]],0)","v":0},{"$f":"IF(Table_SummaryPI[[#This Row],[MeasureCost]]<>\"\",Table_SummaryPI[[#This Row],[MeasureCost]],0)","v":0},{"$f":"IF(Table_SummaryPI[[#This Row],[kWhSavings]]<>\"\",Table_SummaryPI[[#This Row],[kWhSavings]],0)","v":0},{"$f":"IF(Table_SummaryPI[[#This Row],[DemandSavingskW]]<>\"\",Table_SummaryPI[[#This Row],[DemandSavingskW]],0)","v":0}]
[{"$f":"Table_SummaryPI[[#This Row],[Line No.]]","v":""},{"$f":"IF(Table_PrintPI[[#This Row],[Line No.]]=\"\",\"\",CONCATENATE(Table_PrintPI[[#This Row],[Line No.]],\" - \",Table_SummaryPI[[#This Row],[MeasureName]]))","v":""},{"$f":"IF(Table_SummaryPI[[#This Row],[Manufacturer]]<>\"\",CONCATENATE(Table_SummaryPI[[#This Row],[Manufacturer]],\"/\",Table_SummaryPI[[#This Row],[Model'#]]),\"\")","v":""},{"$f":"IF(Table_SummaryPI[[#This Row],[Serial'#]]<>\"\",Table_SummaryPI[[#This Row],[Serial'#]],\"\")","v":""},{"$f":"IF(Table_SummaryPI[[#This Row],[Quantity]]<>\"\",Table_SummaryPI[[#This Row],[Quantity]],\"\")","v":""},{"$f":"IF(Table_SummaryPI[[#This Row],[BaselinekWh]]<>\"\",Table_SummaryPI[[#This Row],[BaselinekWh]],\"\")","v":""},{"$f":"IF(Table_SummaryPI[[#This Row],[BaselinekW]]<>\"\",Table_SummaryPI[[#This Row],[BaselinekW]],\"\")","v":""},{"$f":"IF(Table_SummaryPI[[#This Row],[ProposedkWh]]<>\"\",Table_SummaryPI[[#This Row],[ProposedkWh]],\"\")","v":""},{"$f":"IF(Table_SummaryPI[[#This Row],[ProposedkW]]<>\"\",Table_SummaryPI[[#This Row],[ProposedkW]],\"\")","v":""},{"$f":"IF(Table_SummaryPI[[#This Row],[Notes]]<>\"\",Table_SummaryPI[[#This Row],[Notes]],\"\")","v":""},{"$f":"IF(Table_SummaryPI[[#This Row],[Incentive_Customer]]<>\"\",Table_SummaryPI[[#This Row],[Incentive_Customer]],0)","v":0},{"$f":"IF(Table_SummaryPI[[#This Row],[MeasureCost]]<>\"\",Table_SummaryPI[[#This Row],[MeasureCost]],0)","v":0},{"$f":"IF(Table_SummaryPI[[#This Row],[kWhSavings]]<>\"\",Table_SummaryPI[[#This Row],[kWhSavings]],0)","v":0},{"$f":"IF(Table_SummaryPI[[#This Row],[DemandSavingskW]]<>\"\",Table_SummaryPI[[#This Row],[DemandSavingskW]],0)","v":0}]
[{"$f":"Table_SummaryPI[[#This Row],[Line No.]]","v":""},{"$f":"IF(Table_PrintPI[[#This Row],[Line No.]]=\"\",\"\",CONCATENATE(Table_PrintPI[[#This Row],[Line No.]],\" - \",Table_SummaryPI[[#This Row],[MeasureName]]))","v":""},{"$f":"IF(Table_SummaryPI[[#This Row],[Manufacturer]]<>\"\",CONCATENATE(Table_SummaryPI[[#This Row],[Manufacturer]],\"/\",Table_SummaryPI[[#This Row],[Model'#]]),\"\")","v":""},{"$f":"IF(Table_SummaryPI[[#This Row],[Serial'#]]<>\"\",Table_SummaryPI[[#This Row],[Serial'#]],\"\")","v":""},{"$f":"IF(Table_SummaryPI[[#This Row],[Quantity]]<>\"\",Table_SummaryPI[[#This Row],[Quantity]],\"\")","v":""},{"$f":"IF(Table_SummaryPI[[#This Row],[BaselinekWh]]<>\"\",Table_SummaryPI[[#This Row],[BaselinekWh]],\"\")","v":""},{"$f":"IF(Table_SummaryPI[[#This Row],[BaselinekW]]<>\"\",Table_SummaryPI[[#This Row],[BaselinekW]],\"\")","v":""},{"$f":"IF(Table_SummaryPI[[#This Row],[ProposedkWh]]<>\"\",Table_SummaryPI[[#This Row],[ProposedkWh]],\"\")","v":""},{"$f":"IF(Table_SummaryPI[[#This Row],[ProposedkW]]<>\"\",Table_SummaryPI[[#This Row],[ProposedkW]],\"\")","v":""},{"$f":"IF(Table_SummaryPI[[#This Row],[Notes]]<>\"\",Table_SummaryPI[[#This Row],[Notes]],\"\")","v":""},{"$f":"IF(Table_SummaryPI[[#This Row],[Incentive_Customer]]<>\"\",Table_SummaryPI[[#This Row],[Incentive_Customer]],0)","v":0},{"$f":"IF(Table_SummaryPI[[#This Row],[MeasureCost]]<>\"\",Table_SummaryPI[[#This Row],[MeasureCost]],0)","v":0},{"$f":"IF(Table_SummaryPI[[#This Row],[kWhSavings]]<>\"\",Table_SummaryPI[[#This Row],[kWhSavings]],0)","v":0},{"$f":"IF(Table_SummaryPI[[#This Row],[DemandSavingskW]]<>\"\",Table_SummaryPI[[#This Row],[DemandSavingskW]],0)","v":0}]
[{"$f":"Table_SummaryPI[[#This Row],[Line No.]]","v":""},{"$f":"IF(Table_PrintPI[[#This Row],[Line No.]]=\"\",\"\",CONCATENATE(Table_PrintPI[[#This Row],[Line No.]],\" - \",Table_SummaryPI[[#This Row],[MeasureName]]))","v":""},{"$f":"IF(Table_SummaryPI[[#This Row],[Manufacturer]]<>\"\",CONCATENATE(Table_SummaryPI[[#This Row],[Manufacturer]],\"/\",Table_SummaryPI[[#This Row],[Model'#]]),\"\")","v":""},{"$f":"IF(Table_SummaryPI[[#This Row],[Serial'#]]<>\"\",Table_SummaryPI[[#This Row],[Serial'#]],\"\")","v":""},{"$f":"IF(Table_SummaryPI[[#This Row],[Quantity]]<>\"\",Table_SummaryPI[[#This Row],[Quantity]],\"\")","v":""},{"$f":"IF(Table_SummaryPI[[#This Row],[BaselinekWh]]<>\"\",Table_SummaryPI[[#This Row],[BaselinekWh]],\"\")","v":""},{"$f":"IF(Table_SummaryPI[[#This Row],[BaselinekW]]<>\"\",Table_SummaryPI[[#This Row],[BaselinekW]],\"\")","v":""},{"$f":"IF(Table_SummaryPI[[#This Row],[ProposedkWh]]<>\"\",Table_SummaryPI[[#This Row],[ProposedkWh]],\"\")","v":""},{"$f":"IF(Table_SummaryPI[[#This Row],[ProposedkW]]<>\"\",Table_SummaryPI[[#This Row],[ProposedkW]],\"\")","v":""},{"$f":"IF(Table_SummaryPI[[#This Row],[Notes]]<>\"\",Table_SummaryPI[[#This Row],[Notes]],\"\")","v":""},{"$f":"IF(Table_SummaryPI[[#This Row],[Incentive_Customer]]<>\"\",Table_SummaryPI[[#This Row],[Incentive_Customer]],0)","v":0},{"$f":"IF(Table_SummaryPI[[#This Row],[MeasureCost]]<>\"\",Table_SummaryPI[[#This Row],[MeasureCost]],0)","v":0},{"$f":"IF(Table_SummaryPI[[#This Row],[kWhSavings]]<>\"\",Table_SummaryPI[[#This Row],[kWhSavings]],0)","v":0},{"$f":"IF(Table_SummaryPI[[#This Row],[DemandSavingskW]]<>\"\",Table_SummaryPI[[#This Row],[DemandSavingskW]],0)","v":0}]
[{"$f":"Table_SummaryPI[[#This Row],[Line No.]]","v":""},{"$f":"IF(Table_PrintPI[[#This Row],[Line No.]]=\"\",\"\",CONCATENATE(Table_PrintPI[[#This Row],[Line No.]],\" - \",Table_SummaryPI[[#This Row],[MeasureName]]))","v":""},{"$f":"IF(Table_SummaryPI[[#This Row],[Manufacturer]]<>\"\",CONCATENATE(Table_SummaryPI[[#This Row],[Manufacturer]],\"/\",Table_SummaryPI[[#This Row],[Model'#]]),\"\")","v":""},{"$f":"IF(Table_SummaryPI[[#This Row],[Serial'#]]<>\"\",Table_SummaryPI[[#This Row],[Serial'#]],\"\")","v":""},{"$f":"IF(Table_SummaryPI[[#This Row],[Quantity]]<>\"\",Table_SummaryPI[[#This Row],[Quantity]],\"\")","v":""},{"$f":"IF(Table_SummaryPI[[#This Row],[BaselinekWh]]<>\"\",Table_SummaryPI[[#This Row],[BaselinekWh]],\"\")","v":""},{"$f":"IF(Table_SummaryPI[[#This Row],[BaselinekW]]<>\"\",Table_SummaryPI[[#This Row],[BaselinekW]],\"\")","v":""},{"$f":"IF(Table_SummaryPI[[#This Row],[ProposedkWh]]<>\"\",Table_SummaryPI[[#This Row],[ProposedkWh]],\"\")","v":""},{"$f":"IF(Table_SummaryPI[[#This Row],[ProposedkW]]<>\"\",Table_SummaryPI[[#This Row],[ProposedkW]],\"\")","v":""},{"$f":"IF(Table_SummaryPI[[#This Row],[Notes]]<>\"\",Table_SummaryPI[[#This Row],[Notes]],\"\")","v":""},{"$f":"IF(Table_SummaryPI[[#This Row],[Incentive_Customer]]<>\"\",Table_SummaryPI[[#This Row],[Incentive_Customer]],0)","v":0},{"$f":"IF(Table_SummaryPI[[#This Row],[MeasureCost]]<>\"\",Table_SummaryPI[[#This Row],[MeasureCost]],0)","v":0},{"$f":"IF(Table_SummaryPI[[#This Row],[kWhSavings]]<>\"\",Table_SummaryPI[[#This Row],[kWhSavings]],0)","v":0},{"$f":"IF(Table_SummaryPI[[#This Row],[DemandSavingskW]]<>\"\",Table_SummaryPI[[#This Row],[DemandSavingskW]],0)","v":0}]
[{"$f":"Table_SummaryPI[[#This Row],[Line No.]]","v":""},{"$f":"IF(Table_PrintPI[[#This Row],[Line No.]]=\"\",\"\",CONCATENATE(Table_PrintPI[[#This Row],[Line No.]],\" - \",Table_SummaryPI[[#This Row],[MeasureName]]))","v":""},{"$f":"IF(Table_SummaryPI[[#This Row],[Manufacturer]]<>\"\",CONCATENATE(Table_SummaryPI[[#This Row],[Manufacturer]],\"/\",Table_SummaryPI[[#This Row],[Model'#]]),\"\")","v":""},{"$f":"IF(Table_SummaryPI[[#This Row],[Serial'#]]<>\"\",Table_SummaryPI[[#This Row],[Serial'#]],\"\")","v":""},{"$f":"IF(Table_SummaryPI[[#This Row],[Quantity]]<>\"\",Table_SummaryPI[[#This Row],[Quantity]],\"\")","v":""},{"$f":"IF(Table_SummaryPI[[#This Row],[BaselinekWh]]<>\"\",Table_SummaryPI[[#This Row],[BaselinekWh]],\"\")","v":""},{"$f":"IF(Table_SummaryPI[[#This Row],[BaselinekW]]<>\"\",Table_SummaryPI[[#This Row],[BaselinekW]],\"\")","v":""},{"$f":"IF(Table_SummaryPI[[#This Row],[ProposedkWh]]<>\"\",Table_SummaryPI[[#This Row],[ProposedkWh]],\"\")","v":""},{"$f":"IF(Table_SummaryPI[[#This Row],[ProposedkW]]<>\"\",Table_SummaryPI[[#This Row],[ProposedkW]],\"\")","v":""},{"$f":"IF(Table_SummaryPI[[#This Row],[Notes]]<>\"\",Table_SummaryPI[[#This Row],[Notes]],\"\")","v":""},{"$f":"IF(Table_SummaryPI[[#This Row],[Incentive_Customer]]<>\"\",Table_SummaryPI[[#This Row],[Incentive_Customer]],0)","v":0},{"$f":"IF(Table_SummaryPI[[#This Row],[MeasureCost]]<>\"\",Table_SummaryPI[[#This Row],[MeasureCost]],0)","v":0},{"$f":"IF(Table_SummaryPI[[#This Row],[kWhSavings]]<>\"\",Table_SummaryPI[[#This Row],[kWhSavings]],0)","v":0},{"$f":"IF(Table_SummaryPI[[#This Row],[DemandSavingskW]]<>\"\",Table_SummaryPI[[#This Row],[DemandSavingskW]],0)","v":0}]
[{"$f":"Table_SummaryPI[[#This Row],[Line No.]]","v":""},{"$f":"IF(Table_PrintPI[[#This Row],[Line No.]]=\"\",\"\",CONCATENATE(Table_PrintPI[[#This Row],[Line No.]],\" - \",Table_SummaryPI[[#This Row],[MeasureName]]))","v":""},{"$f":"IF(Table_SummaryPI[[#This Row],[Manufacturer]]<>\"\",CONCATENATE(Table_SummaryPI[[#This Row],[Manufacturer]],\"/\",Table_SummaryPI[[#This Row],[Model'#]]),\"\")","v":""},{"$f":"IF(Table_SummaryPI[[#This Row],[Serial'#]]<>\"\",Table_SummaryPI[[#This Row],[Serial'#]],\"\")","v":""},{"$f":"IF(Table_SummaryPI[[#This Row],[Quantity]]<>\"\",Table_SummaryPI[[#This Row],[Quantity]],\"\")","v":""},{"$f":"IF(Table_SummaryPI[[#This Row],[BaselinekWh]]<>\"\",Table_SummaryPI[[#This Row],[BaselinekWh]],\"\")","v":""},{"$f":"IF(Table_SummaryPI[[#This Row],[BaselinekW]]<>\"\",Table_SummaryPI[[#This Row],[BaselinekW]],\"\")","v":""},{"$f":"IF(Table_SummaryPI[[#This Row],[ProposedkWh]]<>\"\",Table_SummaryPI[[#This Row],[ProposedkWh]],\"\")","v":""},{"$f":"IF(Table_SummaryPI[[#This Row],[ProposedkW]]<>\"\",Table_SummaryPI[[#This Row],[ProposedkW]],\"\")","v":""},{"$f":"IF(Table_SummaryPI[[#This Row],[Notes]]<>\"\",Table_SummaryPI[[#This Row],[Notes]],\"\")","v":""},{"$f":"IF(Table_SummaryPI[[#This Row],[Incentive_Customer]]<>\"\",Table_SummaryPI[[#This Row],[Incentive_Customer]],0)","v":0},{"$f":"IF(Table_SummaryPI[[#This Row],[MeasureCost]]<>\"\",Table_SummaryPI[[#This Row],[MeasureCost]],0)","v":0},{"$f":"IF(Table_SummaryPI[[#This Row],[kWhSavings]]<>\"\",Table_SummaryPI[[#This Row],[kWhSavings]],0)","v":0},{"$f":"IF(Table_SummaryPI[[#This Row],[DemandSavingskW]]<>\"\",Table_SummaryPI[[#This Row],[DemandSavingskW]],0)","v":0}]
[{"$f":"Table_SummaryPI[[#This Row],[Line No.]]","v":""},{"$f":"IF(Table_PrintPI[[#This Row],[Line No.]]=\"\",\"\",CONCATENATE(Table_PrintPI[[#This Row],[Line No.]],\" - \",Table_SummaryPI[[#This Row],[MeasureName]]))","v":""},{"$f":"IF(Table_SummaryPI[[#This Row],[Manufacturer]]<>\"\",CONCATENATE(Table_SummaryPI[[#This Row],[Manufacturer]],\"/\",Table_SummaryPI[[#This Row],[Model'#]]),\"\")","v":""},{"$f":"IF(Table_SummaryPI[[#This Row],[Serial'#]]<>\"\",Table_SummaryPI[[#This Row],[Serial'#]],\"\")","v":""},{"$f":"IF(Table_SummaryPI[[#This Row],[Quantity]]<>\"\",Table_SummaryPI[[#This Row],[Quantity]],\"\")","v":""},{"$f":"IF(Table_SummaryPI[[#This Row],[BaselinekWh]]<>\"\",Table_SummaryPI[[#This Row],[BaselinekWh]],\"\")","v":""},{"$f":"IF(Table_SummaryPI[[#This Row],[BaselinekW]]<>\"\",Table_SummaryPI[[#This Row],[BaselinekW]],\"\")","v":""},{"$f":"IF(Table_SummaryPI[[#This Row],[ProposedkWh]]<>\"\",Table_SummaryPI[[#This Row],[ProposedkWh]],\"\")","v":""},{"$f":"IF(Table_SummaryPI[[#This Row],[ProposedkW]]<>\"\",Table_SummaryPI[[#This Row],[ProposedkW]],\"\")","v":""},{"$f":"IF(Table_SummaryPI[[#This Row],[Notes]]<>\"\",Table_SummaryPI[[#This Row],[Notes]],\"\")","v":""},{"$f":"IF(Table_SummaryPI[[#This Row],[Incentive_Customer]]<>\"\",Table_SummaryPI[[#This Row],[Incentive_Customer]],0)","v":0},{"$f":"IF(Table_SummaryPI[[#This Row],[MeasureCost]]<>\"\",Table_SummaryPI[[#This Row],[MeasureCost]],0)","v":0},{"$f":"IF(Table_SummaryPI[[#This Row],[kWhSavings]]<>\"\",Table_SummaryPI[[#This Row],[kWhSavings]],0)","v":0},{"$f":"IF(Table_SummaryPI[[#This Row],[DemandSavingskW]]<>\"\",Table_SummaryPI[[#This Row],[DemandSavingskW]],0)","v":0}]
[{"$f":"Table_SummaryPI[[#This Row],[Line No.]]","v":""},{"$f":"IF(Table_PrintPI[[#This Row],[Line No.]]=\"\",\"\",CONCATENATE(Table_PrintPI[[#This Row],[Line No.]],\" - \",Table_SummaryPI[[#This Row],[MeasureName]]))","v":""},{"$f":"IF(Table_SummaryPI[[#This Row],[Manufacturer]]<>\"\",CONCATENATE(Table_SummaryPI[[#This Row],[Manufacturer]],\"/\",Table_SummaryPI[[#This Row],[Model'#]]),\"\")","v":""},{"$f":"IF(Table_SummaryPI[[#This Row],[Serial'#]]<>\"\",Table_SummaryPI[[#This Row],[Serial'#]],\"\")","v":""},{"$f":"IF(Table_SummaryPI[[#This Row],[Quantity]]<>\"\",Table_SummaryPI[[#This Row],[Quantity]],\"\")","v":""},{"$f":"IF(Table_SummaryPI[[#This Row],[BaselinekWh]]<>\"\",Table_SummaryPI[[#This Row],[BaselinekWh]],\"\")","v":""},{"$f":"IF(Table_SummaryPI[[#This Row],[BaselinekW]]<>\"\",Table_SummaryPI[[#This Row],[BaselinekW]],\"\")","v":""},{"$f":"IF(Table_SummaryPI[[#This Row],[ProposedkWh]]<>\"\",Table_SummaryPI[[#This Row],[ProposedkWh]],\"\")","v":""},{"$f":"IF(Table_SummaryPI[[#This Row],[ProposedkW]]<>\"\",Table_SummaryPI[[#This Row],[ProposedkW]],\"\")","v":""},{"$f":"IF(Table_SummaryPI[[#This Row],[Notes]]<>\"\",Table_SummaryPI[[#This Row],[Notes]],\"\")","v":""},{"$f":"IF(Table_SummaryPI[[#This Row],[Incentive_Customer]]<>\"\",Table_SummaryPI[[#This Row],[Incentive_Customer]],0)","v":0},{"$f":"IF(Table_SummaryPI[[#This Row],[MeasureCost]]<>\"\",Table_SummaryPI[[#This Row],[MeasureCost]],0)","v":0},{"$f":"IF(Table_SummaryPI[[#This Row],[kWhSavings]]<>\"\",Table_SummaryPI[[#This Row],[kWhSavings]],0)","v":0},{"$f":"IF(Table_SummaryPI[[#This Row],[DemandSavingskW]]<>\"\",Table_SummaryPI[[#This Row],[DemandSavingskW]],0)","v":0}]
[{"$f":"Table_SummaryPI[[#This Row],[Line No.]]","v":""},{"$f":"IF(Table_PrintPI[[#This Row],[Line No.]]=\"\",\"\",CONCATENATE(Table_PrintPI[[#This Row],[Line No.]],\" - \",Table_SummaryPI[[#This Row],[MeasureName]]))","v":""},{"$f":"IF(Table_SummaryPI[[#This Row],[Manufacturer]]<>\"\",CONCATENATE(Table_SummaryPI[[#This Row],[Manufacturer]],\"/\",Table_SummaryPI[[#This Row],[Model'#]]),\"\")","v":""},{"$f":"IF(Table_SummaryPI[[#This Row],[Serial'#]]<>\"\",Table_SummaryPI[[#This Row],[Serial'#]],\"\")","v":""},{"$f":"IF(Table_SummaryPI[[#This Row],[Quantity]]<>\"\",Table_SummaryPI[[#This Row],[Quantity]],\"\")","v":""},{"$f":"IF(Table_SummaryPI[[#This Row],[BaselinekWh]]<>\"\",Table_SummaryPI[[#This Row],[BaselinekWh]],\"\")","v":""},{"$f":"IF(Table_SummaryPI[[#This Row],[BaselinekW]]<>\"\",Table_SummaryPI[[#This Row],[BaselinekW]],\"\")","v":""},{"$f":"IF(Table_SummaryPI[[#This Row],[ProposedkWh]]<>\"\",Table_SummaryPI[[#This Row],[ProposedkWh]],\"\")","v":""},{"$f":"IF(Table_SummaryPI[[#This Row],[ProposedkW]]<>\"\",Table_SummaryPI[[#This Row],[ProposedkW]],\"\")","v":""},{"$f":"IF(Table_SummaryPI[[#This Row],[Notes]]<>\"\",Table_SummaryPI[[#This Row],[Notes]],\"\")","v":""},{"$f":"IF(Table_SummaryPI[[#This Row],[Incentive_Customer]]<>\"\",Table_SummaryPI[[#This Row],[Incentive_Customer]],0)","v":0},{"$f":"IF(Table_SummaryPI[[#This Row],[MeasureCost]]<>\"\",Table_SummaryPI[[#This Row],[MeasureCost]],0)","v":0},{"$f":"IF(Table_SummaryPI[[#This Row],[kWhSavings]]<>\"\",Table_SummaryPI[[#This Row],[kWhSavings]],0)","v":0},{"$f":"IF(Table_SummaryPI[[#This Row],[DemandSavingskW]]<>\"\",Table_SummaryPI[[#This Row],[DemandSavingskW]],0)","v":0}]
[{"$f":"Table_SummaryPI[[#This Row],[Line No.]]","v":""},{"$f":"IF(Table_PrintPI[[#This Row],[Line No.]]=\"\",\"\",CONCATENATE(Table_PrintPI[[#This Row],[Line No.]],\" - \",Table_SummaryPI[[#This Row],[MeasureName]]))","v":""},{"$f":"IF(Table_SummaryPI[[#This Row],[Manufacturer]]<>\"\",CONCATENATE(Table_SummaryPI[[#This Row],[Manufacturer]],\"/\",Table_SummaryPI[[#This Row],[Model'#]]),\"\")","v":""},{"$f":"IF(Table_SummaryPI[[#This Row],[Serial'#]]<>\"\",Table_SummaryPI[[#This Row],[Serial'#]],\"\")","v":""},{"$f":"IF(Table_SummaryPI[[#This Row],[Quantity]]<>\"\",Table_SummaryPI[[#This Row],[Quantity]],\"\")","v":""},{"$f":"IF(Table_SummaryPI[[#This Row],[BaselinekWh]]<>\"\",Table_SummaryPI[[#This Row],[BaselinekWh]],\"\")","v":""},{"$f":"IF(Table_SummaryPI[[#This Row],[BaselinekW]]<>\"\",Table_SummaryPI[[#This Row],[BaselinekW]],\"\")","v":""},{"$f":"IF(Table_SummaryPI[[#This Row],[ProposedkWh]]<>\"\",Table_SummaryPI[[#This Row],[ProposedkWh]],\"\")","v":""},{"$f":"IF(Table_SummaryPI[[#This Row],[ProposedkW]]<>\"\",Table_SummaryPI[[#This Row],[ProposedkW]],\"\")","v":""},{"$f":"IF(Table_SummaryPI[[#This Row],[Notes]]<>\"\",Table_SummaryPI[[#This Row],[Notes]],\"\")","v":""},{"$f":"IF(Table_SummaryPI[[#This Row],[Incentive_Customer]]<>\"\",Table_SummaryPI[[#This Row],[Incentive_Customer]],0)","v":0},{"$f":"IF(Table_SummaryPI[[#This Row],[MeasureCost]]<>\"\",Table_SummaryPI[[#This Row],[MeasureCost]],0)","v":0},{"$f":"IF(Table_SummaryPI[[#This Row],[kWhSavings]]<>\"\",Table_SummaryPI[[#This Row],[kWhSavings]],0)","v":0},{"$f":"IF(Table_SummaryPI[[#This Row],[DemandSavingskW]]<>\"\",Table_SummaryPI[[#This Row],[DemandSavingskW]],0)","v":0}]
[{"$f":"Table_SummaryPI[[#This Row],[Line No.]]","v":""},{"$f":"IF(Table_PrintPI[[#This Row],[Line No.]]=\"\",\"\",CONCATENATE(Table_PrintPI[[#This Row],[Line No.]],\" - \",Table_SummaryPI[[#This Row],[MeasureName]]))","v":""},{"$f":"IF(Table_SummaryPI[[#This Row],[Manufacturer]]<>\"\",CONCATENATE(Table_SummaryPI[[#This Row],[Manufacturer]],\"/\",Table_SummaryPI[[#This Row],[Model'#]]),\"\")","v":""},{"$f":"IF(Table_SummaryPI[[#This Row],[Serial'#]]<>\"\",Table_SummaryPI[[#This Row],[Serial'#]],\"\")","v":""},{"$f":"IF(Table_SummaryPI[[#This Row],[Quantity]]<>\"\",Table_SummaryPI[[#This Row],[Quantity]],\"\")","v":""},{"$f":"IF(Table_SummaryPI[[#This Row],[BaselinekWh]]<>\"\",Table_SummaryPI[[#This Row],[BaselinekWh]],\"\")","v":""},{"$f":"IF(Table_SummaryPI[[#This Row],[BaselinekW]]<>\"\",Table_SummaryPI[[#This Row],[BaselinekW]],\"\")","v":""},{"$f":"IF(Table_SummaryPI[[#This Row],[ProposedkWh]]<>\"\",Table_SummaryPI[[#This Row],[ProposedkWh]],\"\")","v":""},{"$f":"IF(Table_SummaryPI[[#This Row],[ProposedkW]]<>\"\",Table_SummaryPI[[#This Row],[ProposedkW]],\"\")","v":""},{"$f":"IF(Table_SummaryPI[[#This Row],[Notes]]<>\"\",Table_SummaryPI[[#This Row],[Notes]],\"\")","v":""},{"$f":"IF(Table_SummaryPI[[#This Row],[Incentive_Customer]]<>\"\",Table_SummaryPI[[#This Row],[Incentive_Customer]],0)","v":0},{"$f":"IF(Table_SummaryPI[[#This Row],[MeasureCost]]<>\"\",Table_SummaryPI[[#This Row],[MeasureCost]],0)","v":0},{"$f":"IF(Table_SummaryPI[[#This Row],[kWhSavings]]<>\"\",Table_SummaryPI[[#This Row],[kWhSavings]],0)","v":0},{"$f":"IF(Table_SummaryPI[[#This Row],[DemandSavingskW]]<>\"\",Table_SummaryPI[[#This Row],[DemandSavingskW]],0)","v":0}]
[{"$f":"Table_SummaryPI[[#This Row],[Line No.]]","v":""},{"$f":"IF(Table_PrintPI[[#This Row],[Line No.]]=\"\",\"\",CONCATENATE(Table_PrintPI[[#This Row],[Line No.]],\" - \",Table_SummaryPI[[#This Row],[MeasureName]]))","v":""},{"$f":"IF(Table_SummaryPI[[#This Row],[Manufacturer]]<>\"\",CONCATENATE(Table_SummaryPI[[#This Row],[Manufacturer]],\"/\",Table_SummaryPI[[#This Row],[Model'#]]),\"\")","v":""},{"$f":"IF(Table_SummaryPI[[#This Row],[Serial'#]]<>\"\",Table_SummaryPI[[#This Row],[Serial'#]],\"\")","v":""},{"$f":"IF(Table_SummaryPI[[#This Row],[Quantity]]<>\"\",Table_SummaryPI[[#This Row],[Quantity]],\"\")","v":""},{"$f":"IF(Table_SummaryPI[[#This Row],[BaselinekWh]]<>\"\",Table_SummaryPI[[#This Row],[BaselinekWh]],\"\")","v":""},{"$f":"IF(Table_SummaryPI[[#This Row],[BaselinekW]]<>\"\",Table_SummaryPI[[#This Row],[BaselinekW]],\"\")","v":""},{"$f":"IF(Table_SummaryPI[[#This Row],[ProposedkWh]]<>\"\",Table_SummaryPI[[#This Row],[ProposedkWh]],\"\")","v":""},{"$f":"IF(Table_SummaryPI[[#This Row],[ProposedkW]]<>\"\",Table_SummaryPI[[#This Row],[ProposedkW]],\"\")","v":""},{"$f":"IF(Table_SummaryPI[[#This Row],[Notes]]<>\"\",Table_SummaryPI[[#This Row],[Notes]],\"\")","v":""},{"$f":"IF(Table_SummaryPI[[#This Row],[Incentive_Customer]]<>\"\",Table_SummaryPI[[#This Row],[Incentive_Customer]],0)","v":0},{"$f":"IF(Table_SummaryPI[[#This Row],[MeasureCost]]<>\"\",Table_SummaryPI[[#This Row],[MeasureCost]],0)","v":0},{"$f":"IF(Table_SummaryPI[[#This Row],[kWhSavings]]<>\"\",Table_SummaryPI[[#This Row],[kWhSavings]],0)","v":0},{"$f":"IF(Table_SummaryPI[[#This Row],[DemandSavingskW]]<>\"\",Table_SummaryPI[[#This Row],[DemandSavingskW]],0)","v":0}]
[{"$f":"Table_SummaryPI[[#This Row],[Line No.]]","v":""},{"$f":"IF(Table_PrintPI[[#This Row],[Line No.]]=\"\",\"\",CONCATENATE(Table_PrintPI[[#This Row],[Line No.]],\" - \",Table_SummaryPI[[#This Row],[MeasureName]]))","v":""},{"$f":"IF(Table_SummaryPI[[#This Row],[Manufacturer]]<>\"\",CONCATENATE(Table_SummaryPI[[#This Row],[Manufacturer]],\"/\",Table_SummaryPI[[#This Row],[Model'#]]),\"\")","v":""},{"$f":"IF(Table_SummaryPI[[#This Row],[Serial'#]]<>\"\",Table_SummaryPI[[#This Row],[Serial'#]],\"\")","v":""},{"$f":"IF(Table_SummaryPI[[#This Row],[Quantity]]<>\"\",Table_SummaryPI[[#This Row],[Quantity]],\"\")","v":""},{"$f":"IF(Table_SummaryPI[[#This Row],[BaselinekWh]]<>\"\",Table_SummaryPI[[#This Row],[BaselinekWh]],\"\")","v":""},{"$f":"IF(Table_SummaryPI[[#This Row],[BaselinekW]]<>\"\",Table_SummaryPI[[#This Row],[BaselinekW]],\"\")","v":""},{"$f":"IF(Table_SummaryPI[[#This Row],[ProposedkWh]]<>\"\",Table_SummaryPI[[#This Row],[ProposedkWh]],\"\")","v":""},{"$f":"IF(Table_SummaryPI[[#This Row],[ProposedkW]]<>\"\",Table_SummaryPI[[#This Row],[ProposedkW]],\"\")","v":""},{"$f":"IF(Table_SummaryPI[[#This Row],[Notes]]<>\"\",Table_SummaryPI[[#This Row],[Notes]],\"\")","v":""},{"$f":"IF(Table_SummaryPI[[#This Row],[Incentive_Customer]]<>\"\",Table_SummaryPI[[#This Row],[Incentive_Customer]],0)","v":0},{"$f":"IF(Table_SummaryPI[[#This Row],[MeasureCost]]<>\"\",Table_SummaryPI[[#This Row],[MeasureCost]],0)","v":0},{"$f":"IF(Table_SummaryPI[[#This Row],[kWhSavings]]<>\"\",Table_SummaryPI[[#This Row],[kWhSavings]],0)","v":0},{"$f":"IF(Table_SummaryPI[[#This Row],[DemandSavingskW]]<>\"\",Table_SummaryPI[[#This Row],[DemandSavingskW]],0)","v":0}]
[{"$f":"Table_SummaryPI[[#This Row],[Line No.]]","v":""},{"$f":"IF(Table_PrintPI[[#This Row],[Line No.]]=\"\",\"\",CONCATENATE(Table_PrintPI[[#This Row],[Line No.]],\" - \",Table_SummaryPI[[#This Row],[MeasureName]]))","v":""},{"$f":"IF(Table_SummaryPI[[#This Row],[Manufacturer]]<>\"\",CONCATENATE(Table_SummaryPI[[#This Row],[Manufacturer]],\"/\",Table_SummaryPI[[#This Row],[Model'#]]),\"\")","v":""},{"$f":"IF(Table_SummaryPI[[#This Row],[Serial'#]]<>\"\",Table_SummaryPI[[#This Row],[Serial'#]],\"\")","v":""},{"$f":"IF(Table_SummaryPI[[#This Row],[Quantity]]<>\"\",Table_SummaryPI[[#This Row],[Quantity]],\"\")","v":""},{"$f":"IF(Table_SummaryPI[[#This Row],[BaselinekWh]]<>\"\",Table_SummaryPI[[#This Row],[BaselinekWh]],\"\")","v":""},{"$f":"IF(Table_SummaryPI[[#This Row],[BaselinekW]]<>\"\",Table_SummaryPI[[#This Row],[BaselinekW]],\"\")","v":""},{"$f":"IF(Table_SummaryPI[[#This Row],[ProposedkWh]]<>\"\",Table_SummaryPI[[#This Row],[ProposedkWh]],\"\")","v":""},{"$f":"IF(Table_SummaryPI[[#This Row],[ProposedkW]]<>\"\",Table_SummaryPI[[#This Row],[ProposedkW]],\"\")","v":""},{"$f":"IF(Table_SummaryPI[[#This Row],[Notes]]<>\"\",Table_SummaryPI[[#This Row],[Notes]],\"\")","v":""},{"$f":"IF(Table_SummaryPI[[#This Row],[Incentive_Customer]]<>\"\",Table_SummaryPI[[#This Row],[Incentive_Customer]],0)","v":0},{"$f":"IF(Table_SummaryPI[[#This Row],[MeasureCost]]<>\"\",Table_SummaryPI[[#This Row],[MeasureCost]],0)","v":0},{"$f":"IF(Table_SummaryPI[[#This Row],[kWhSavings]]<>\"\",Table_SummaryPI[[#This Row],[kWhSavings]],0)","v":0},{"$f":"IF(Table_SummaryPI[[#This Row],[DemandSavingskW]]<>\"\",Table_SummaryPI[[#This Row],[DemandSavingskW]],0)","v":0}]
[{"$f":"Table_SummaryPI[[#This Row],[Line No.]]","v":""},{"$f":"IF(Table_PrintPI[[#This Row],[Line No.]]=\"\",\"\",CONCATENATE(Table_PrintPI[[#This Row],[Line No.]],\" - \",Table_SummaryPI[[#This Row],[MeasureName]]))","v":""},{"$f":"IF(Table_SummaryPI[[#This Row],[Manufacturer]]<>\"\",CONCATENATE(Table_SummaryPI[[#This Row],[Manufacturer]],\"/\",Table_SummaryPI[[#This Row],[Model'#]]),\"\")","v":""},{"$f":"IF(Table_SummaryPI[[#This Row],[Serial'#]]<>\"\",Table_SummaryPI[[#This Row],[Serial'#]],\"\")","v":""},{"$f":"IF(Table_SummaryPI[[#This Row],[Quantity]]<>\"\",Table_SummaryPI[[#This Row],[Quantity]],\"\")","v":""},{"$f":"IF(Table_SummaryPI[[#This Row],[BaselinekWh]]<>\"\",Table_SummaryPI[[#This Row],[BaselinekWh]],\"\")","v":""},{"$f":"IF(Table_SummaryPI[[#This Row],[BaselinekW]]<>\"\",Table_SummaryPI[[#This Row],[BaselinekW]],\"\")","v":""},{"$f":"IF(Table_SummaryPI[[#This Row],[ProposedkWh]]<>\"\",Table_SummaryPI[[#This Row],[ProposedkWh]],\"\")","v":""},{"$f":"IF(Table_SummaryPI[[#This Row],[ProposedkW]]<>\"\",Table_SummaryPI[[#This Row],[ProposedkW]],\"\")","v":""},{"$f":"IF(Table_SummaryPI[[#This Row],[Notes]]<>\"\",Table_SummaryPI[[#This Row],[Notes]],\"\")","v":""},{"$f":"IF(Table_SummaryPI[[#This Row],[Incentive_Customer]]<>\"\",Table_SummaryPI[[#This Row],[Incentive_Customer]],0)","v":0},{"$f":"IF(Table_SummaryPI[[#This Row],[MeasureCost]]<>\"\",Table_SummaryPI[[#This Row],[MeasureCost]],0)","v":0},{"$f":"IF(Table_SummaryPI[[#This Row],[kWhSavings]]<>\"\",Table_SummaryPI[[#This Row],[kWhSavings]],0)","v":0},{"$f":"IF(Table_SummaryPI[[#This Row],[DemandSavingskW]]<>\"\",Table_SummaryPI[[#This Row],[DemandSavingskW]],0)","v":0}]
[{"$f":"Table_SummaryPI[[#This Row],[Line No.]]","v":""},{"$f":"IF(Table_PrintPI[[#This Row],[Line No.]]=\"\",\"\",CONCATENATE(Table_PrintPI[[#This Row],[Line No.]],\" - \",Table_SummaryPI[[#This Row],[MeasureName]]))","v":""},{"$f":"IF(Table_SummaryPI[[#This Row],[Manufacturer]]<>\"\",CONCATENATE(Table_SummaryPI[[#This Row],[Manufacturer]],\"/\",Table_SummaryPI[[#This Row],[Model'#]]),\"\")","v":""},{"$f":"IF(Table_SummaryPI[[#This Row],[Serial'#]]<>\"\",Table_SummaryPI[[#This Row],[Serial'#]],\"\")","v":""},{"$f":"IF(Table_SummaryPI[[#This Row],[Quantity]]<>\"\",Table_SummaryPI[[#This Row],[Quantity]],\"\")","v":""},{"$f":"IF(Table_SummaryPI[[#This Row],[BaselinekWh]]<>\"\",Table_SummaryPI[[#This Row],[BaselinekWh]],\"\")","v":""},{"$f":"IF(Table_SummaryPI[[#This Row],[BaselinekW]]<>\"\",Table_SummaryPI[[#This Row],[BaselinekW]],\"\")","v":""},{"$f":"IF(Table_SummaryPI[[#This Row],[ProposedkWh]]<>\"\",Table_SummaryPI[[#This Row],[ProposedkWh]],\"\")","v":""},{"$f":"IF(Table_SummaryPI[[#This Row],[ProposedkW]]<>\"\",Table_SummaryPI[[#This Row],[ProposedkW]],\"\")","v":""},{"$f":"IF(Table_SummaryPI[[#This Row],[Notes]]<>\"\",Table_SummaryPI[[#This Row],[Notes]],\"\")","v":""},{"$f":"IF(Table_SummaryPI[[#This Row],[Incentive_Customer]]<>\"\",Table_SummaryPI[[#This Row],[Incentive_Customer]],0)","v":0},{"$f":"IF(Table_SummaryPI[[#This Row],[MeasureCost]]<>\"\",Table_SummaryPI[[#This Row],[MeasureCost]],0)","v":0},{"$f":"IF(Table_SummaryPI[[#This Row],[kWhSavings]]<>\"\",Table_SummaryPI[[#This Row],[kWhSavings]],0)","v":0},{"$f":"IF(Table_SummaryPI[[#This Row],[DemandSavingskW]]<>\"\",Table_SummaryPI[[#This Row],[DemandSavingskW]],0)","v":0}]
[{"$f":"Table_SummaryPI[[#This Row],[Line No.]]","v":""},{"$f":"IF(Table_PrintPI[[#This Row],[Line No.]]=\"\",\"\",CONCATENATE(Table_PrintPI[[#This Row],[Line No.]],\" - \",Table_SummaryPI[[#This Row],[MeasureName]]))","v":""},{"$f":"IF(Table_SummaryPI[[#This Row],[Manufacturer]]<>\"\",CONCATENATE(Table_SummaryPI[[#This Row],[Manufacturer]],\"/\",Table_SummaryPI[[#This Row],[Model'#]]),\"\")","v":""},{"$f":"IF(Table_SummaryPI[[#This Row],[Serial'#]]<>\"\",Table_SummaryPI[[#This Row],[Serial'#]],\"\")","v":""},{"$f":"IF(Table_SummaryPI[[#This Row],[Quantity]]<>\"\",Table_SummaryPI[[#This Row],[Quantity]],\"\")","v":""},{"$f":"IF(Table_SummaryPI[[#This Row],[BaselinekWh]]<>\"\",Table_SummaryPI[[#This Row],[BaselinekWh]],\"\")","v":""},{"$f":"IF(Table_SummaryPI[[#This Row],[BaselinekW]]<>\"\",Table_SummaryPI[[#This Row],[BaselinekW]],\"\")","v":""},{"$f":"IF(Table_SummaryPI[[#This Row],[ProposedkWh]]<>\"\",Table_SummaryPI[[#This Row],[ProposedkWh]],\"\")","v":""},{"$f":"IF(Table_SummaryPI[[#This Row],[ProposedkW]]<>\"\",Table_SummaryPI[[#This Row],[ProposedkW]],\"\")","v":""},{"$f":"IF(Table_SummaryPI[[#This Row],[Notes]]<>\"\",Table_SummaryPI[[#This Row],[Notes]],\"\")","v":""},{"$f":"IF(Table_SummaryPI[[#This Row],[Incentive_Customer]]<>\"\",Table_SummaryPI[[#This Row],[Incentive_Customer]],0)","v":0},{"$f":"IF(Table_SummaryPI[[#This Row],[MeasureCost]]<>\"\",Table_SummaryPI[[#This Row],[MeasureCost]],0)","v":0},{"$f":"IF(Table_SummaryPI[[#This Row],[kWhSavings]]<>\"\",Table_SummaryPI[[#This Row],[kWhSavings]],0)","v":0},{"$f":"IF(Table_SummaryPI[[#This Row],[DemandSavingskW]]<>\"\",Table_SummaryPI[[#This Row],[DemandSavingskW]],0)","v":0}]
[{"$f":"Table_SummaryPI[[#This Row],[Line No.]]","v":""},{"$f":"IF(Table_PrintPI[[#This Row],[Line No.]]=\"\",\"\",CONCATENATE(Table_PrintPI[[#This Row],[Line No.]],\" - \",Table_SummaryPI[[#This Row],[MeasureName]]))","v":""},{"$f":"IF(Table_SummaryPI[[#This Row],[Manufacturer]]<>\"\",CONCATENATE(Table_SummaryPI[[#This Row],[Manufacturer]],\"/\",Table_SummaryPI[[#This Row],[Model'#]]),\"\")","v":""},{"$f":"IF(Table_SummaryPI[[#This Row],[Serial'#]]<>\"\",Table_SummaryPI[[#This Row],[Serial'#]],\"\")","v":""},{"$f":"IF(Table_SummaryPI[[#This Row],[Quantity]]<>\"\",Table_SummaryPI[[#This Row],[Quantity]],\"\")","v":""},{"$f":"IF(Table_SummaryPI[[#This Row],[BaselinekWh]]<>\"\",Table_SummaryPI[[#This Row],[BaselinekWh]],\"\")","v":""},{"$f":"IF(Table_SummaryPI[[#This Row],[BaselinekW]]<>\"\",Table_SummaryPI[[#This Row],[BaselinekW]],\"\")","v":""},{"$f":"IF(Table_SummaryPI[[#This Row],[ProposedkWh]]<>\"\",Table_SummaryPI[[#This Row],[ProposedkWh]],\"\")","v":""},{"$f":"IF(Table_SummaryPI[[#This Row],[ProposedkW]]<>\"\",Table_SummaryPI[[#This Row],[ProposedkW]],\"\")","v":""},{"$f":"IF(Table_SummaryPI[[#This Row],[Notes]]<>\"\",Table_SummaryPI[[#This Row],[Notes]],\"\")","v":""},{"$f":"IF(Table_SummaryPI[[#This Row],[Incentive_Customer]]<>\"\",Table_SummaryPI[[#This Row],[Incentive_Customer]],0)","v":0},{"$f":"IF(Table_SummaryPI[[#This Row],[MeasureCost]]<>\"\",Table_SummaryPI[[#This Row],[MeasureCost]],0)","v":0},{"$f":"IF(Table_SummaryPI[[#This Row],[kWhSavings]]<>\"\",Table_SummaryPI[[#This Row],[kWhSavings]],0)","v":0},{"$f":"IF(Table_SummaryPI[[#This Row],[DemandSavingskW]]<>\"\",Table_SummaryPI[[#This Row],[DemandSavingskW]],0)","v":0}]
[{"$f":"Table_SummaryPI[[#This Row],[Line No.]]","v":""},{"$f":"IF(Table_PrintPI[[#This Row],[Line No.]]=\"\",\"\",CONCATENATE(Table_PrintPI[[#This Row],[Line No.]],\" - \",Table_SummaryPI[[#This Row],[MeasureName]]))","v":""},{"$f":"IF(Table_SummaryPI[[#This Row],[Manufacturer]]<>\"\",CONCATENATE(Table_SummaryPI[[#This Row],[Manufacturer]],\"/\",Table_SummaryPI[[#This Row],[Model'#]]),\"\")","v":""},{"$f":"IF(Table_SummaryPI[[#This Row],[Serial'#]]<>\"\",Table_SummaryPI[[#This Row],[Serial'#]],\"\")","v":""},{"$f":"IF(Table_SummaryPI[[#This Row],[Quantity]]<>\"\",Table_SummaryPI[[#This Row],[Quantity]],\"\")","v":""},{"$f":"IF(Table_SummaryPI[[#This Row],[BaselinekWh]]<>\"\",Table_SummaryPI[[#This Row],[BaselinekWh]],\"\")","v":""},{"$f":"IF(Table_SummaryPI[[#This Row],[BaselinekW]]<>\"\",Table_SummaryPI[[#This Row],[BaselinekW]],\"\")","v":""},{"$f":"IF(Table_SummaryPI[[#This Row],[ProposedkWh]]<>\"\",Table_SummaryPI[[#This Row],[ProposedkWh]],\"\")","v":""},{"$f":"IF(Table_SummaryPI[[#This Row],[ProposedkW]]<>\"\",Table_SummaryPI[[#This Row],[ProposedkW]],\"\")","v":""},{"$f":"IF(Table_SummaryPI[[#This Row],[Notes]]<>\"\",Table_SummaryPI[[#This Row],[Notes]],\"\")","v":""},{"$f":"IF(Table_SummaryPI[[#This Row],[Incentive_Customer]]<>\"\",Table_SummaryPI[[#This Row],[Incentive_Customer]],0)","v":0},{"$f":"IF(Table_SummaryPI[[#This Row],[MeasureCost]]<>\"\",Table_SummaryPI[[#This Row],[MeasureCost]],0)","v":0},{"$f":"IF(Table_SummaryPI[[#This Row],[kWhSavings]]<>\"\",Table_SummaryPI[[#This Row],[kWhSavings]],0)","v":0},{"$f":"IF(Table_SummaryPI[[#This Row],[DemandSavingskW]]<>\"\",Table_SummaryPI[[#This Row],[DemandSavingskW]],0)","v":0}]
[{"$f":"Table_SummaryPI[[#This Row],[Line No.]]","v":""},{"$f":"IF(Table_PrintPI[[#This Row],[Line No.]]=\"\",\"\",CONCATENATE(Table_PrintPI[[#This Row],[Line No.]],\" - \",Table_SummaryPI[[#This Row],[MeasureName]]))","v":""},{"$f":"IF(Table_SummaryPI[[#This Row],[Manufacturer]]<>\"\",CONCATENATE(Table_SummaryPI[[#This Row],[Manufacturer]],\"/\",Table_SummaryPI[[#This Row],[Model'#]]),\"\")","v":""},{"$f":"IF(Table_SummaryPI[[#This Row],[Serial'#]]<>\"\",Table_SummaryPI[[#This Row],[Serial'#]],\"\")","v":""},{"$f":"IF(Table_SummaryPI[[#This Row],[Quantity]]<>\"\",Table_SummaryPI[[#This Row],[Quantity]],\"\")","v":""},{"$f":"IF(Table_SummaryPI[[#This Row],[BaselinekWh]]<>\"\",Table_SummaryPI[[#This Row],[BaselinekWh]],\"\")","v":""},{"$f":"IF(Table_SummaryPI[[#This Row],[BaselinekW]]<>\"\",Table_SummaryPI[[#This Row],[BaselinekW]],\"\")","v":""},{"$f":"IF(Table_SummaryPI[[#This Row],[ProposedkWh]]<>\"\",Table_SummaryPI[[#This Row],[ProposedkWh]],\"\")","v":""},{"$f":"IF(Table_SummaryPI[[#This Row],[ProposedkW]]<>\"\",Table_SummaryPI[[#This Row],[ProposedkW]],\"\")","v":""},{"$f":"IF(Table_SummaryPI[[#This Row],[Notes]]<>\"\",Table_SummaryPI[[#This Row],[Notes]],\"\")","v":""},{"$f":"IF(Table_SummaryPI[[#This Row],[Incentive_Customer]]<>\"\",Table_SummaryPI[[#This Row],[Incentive_Customer]],0)","v":0},{"$f":"IF(Table_SummaryPI[[#This Row],[MeasureCost]]<>\"\",Table_SummaryPI[[#This Row],[MeasureCost]],0)","v":0},{"$f":"IF(Table_SummaryPI[[#This Row],[kWhSavings]]<>\"\",Table_SummaryPI[[#This Row],[kWhSavings]],0)","v":0},{"$f":"IF(Table_SummaryPI[[#This Row],[DemandSavingskW]]<>\"\",Table_SummaryPI[[#This Row],[DemandSavingskW]],0)","v":0}]
[{"$f":"Table_SummaryPI[[#This Row],[Line No.]]","v":""},{"$f":"IF(Table_PrintPI[[#This Row],[Line No.]]=\"\",\"\",CONCATENATE(Table_PrintPI[[#This Row],[Line No.]],\" - \",Table_SummaryPI[[#This Row],[MeasureName]]))","v":""},{"$f":"IF(Table_SummaryPI[[#This Row],[Manufacturer]]<>\"\",CONCATENATE(Table_SummaryPI[[#This Row],[Manufacturer]],\"/\",Table_SummaryPI[[#This Row],[Model'#]]),\"\")","v":""},{"$f":"IF(Table_SummaryPI[[#This Row],[Serial'#]]<>\"\",Table_SummaryPI[[#This Row],[Serial'#]],\"\")","v":""},{"$f":"IF(Table_SummaryPI[[#This Row],[Quantity]]<>\"\",Table_SummaryPI[[#This Row],[Quantity]],\"\")","v":""},{"$f":"IF(Table_SummaryPI[[#This Row],[BaselinekWh]]<>\"\",Table_SummaryPI[[#This Row],[BaselinekWh]],\"\")","v":""},{"$f":"IF(Table_SummaryPI[[#This Row],[BaselinekW]]<>\"\",Table_SummaryPI[[#This Row],[BaselinekW]],\"\")","v":""},{"$f":"IF(Table_SummaryPI[[#This Row],[ProposedkWh]]<>\"\",Table_SummaryPI[[#This Row],[ProposedkWh]],\"\")","v":""},{"$f":"IF(Table_SummaryPI[[#This Row],[ProposedkW]]<>\"\",Table_SummaryPI[[#This Row],[ProposedkW]],\"\")","v":""},{"$f":"IF(Table_SummaryPI[[#This Row],[Notes]]<>\"\",Table_SummaryPI[[#This Row],[Notes]],\"\")","v":""},{"$f":"IF(Table_SummaryPI[[#This Row],[Incentive_Customer]]<>\"\",Table_SummaryPI[[#This Row],[Incentive_Customer]],0)","v":0},{"$f":"IF(Table_SummaryPI[[#This Row],[MeasureCost]]<>\"\",Table_SummaryPI[[#This Row],[MeasureCost]],0)","v":0},{"$f":"IF(Table_SummaryPI[[#This Row],[kWhSavings]]<>\"\",Table_SummaryPI[[#This Row],[kWhSavings]],0)","v":0},{"$f":"IF(Table_SummaryPI[[#This Row],[DemandSavingskW]]<>\"\",Table_SummaryPI[[#This Row],[DemandSavingskW]],0)","v":0}]
[{"$f":"Table_SummaryPI[[#This Row],[Line No.]]","v":""},{"$f":"IF(Table_PrintPI[[#This Row],[Line No.]]=\"\",\"\",CONCATENATE(Table_PrintPI[[#This Row],[Line No.]],\" - \",Table_SummaryPI[[#This Row],[MeasureName]]))","v":""},{"$f":"IF(Table_SummaryPI[[#This Row],[Manufacturer]]<>\"\",CONCATENATE(Table_SummaryPI[[#This Row],[Manufacturer]],\"/\",Table_SummaryPI[[#This Row],[Model'#]]),\"\")","v":""},{"$f":"IF(Table_SummaryPI[[#This Row],[Serial'#]]<>\"\",Table_SummaryPI[[#This Row],[Serial'#]],\"\")","v":""},{"$f":"IF(Table_SummaryPI[[#This Row],[Quantity]]<>\"\",Table_SummaryPI[[#This Row],[Quantity]],\"\")","v":""},{"$f":"IF(Table_SummaryPI[[#This Row],[BaselinekWh]]<>\"\",Table_SummaryPI[[#This Row],[BaselinekWh]],\"\")","v":""},{"$f":"IF(Table_SummaryPI[[#This Row],[BaselinekW]]<>\"\",Table_SummaryPI[[#This Row],[BaselinekW]],\"\")","v":""},{"$f":"IF(Table_SummaryPI[[#This Row],[ProposedkWh]]<>\"\",Table_SummaryPI[[#This Row],[ProposedkWh]],\"\")","v":""},{"$f":"IF(Table_SummaryPI[[#This Row],[ProposedkW]]<>\"\",Table_SummaryPI[[#This Row],[ProposedkW]],\"\")","v":""},{"$f":"IF(Table_SummaryPI[[#This Row],[Notes]]<>\"\",Table_SummaryPI[[#This Row],[Notes]],\"\")","v":""},{"$f":"IF(Table_SummaryPI[[#This Row],[Incentive_Customer]]<>\"\",Table_SummaryPI[[#This Row],[Incentive_Customer]],0)","v":0},{"$f":"IF(Table_SummaryPI[[#This Row],[MeasureCost]]<>\"\",Table_SummaryPI[[#This Row],[MeasureCost]],0)","v":0},{"$f":"IF(Table_SummaryPI[[#This Row],[kWhSavings]]<>\"\",Table_SummaryPI[[#This Row],[kWhSavings]],0)","v":0},{"$f":"IF(Table_SummaryPI[[#This Row],[DemandSavingskW]]<>\"\",Table_SummaryPI[[#This Row],[DemandSavingskW]],0)","v":0}]
[{"$f":"Table_SummaryPI[[#This Row],[Line No.]]","v":""},{"$f":"IF(Table_PrintPI[[#This Row],[Line No.]]=\"\",\"\",CONCATENATE(Table_PrintPI[[#This Row],[Line No.]],\" - \",Table_SummaryPI[[#This Row],[MeasureName]]))","v":""},{"$f":"IF(Table_SummaryPI[[#This Row],[Manufacturer]]<>\"\",CONCATENATE(Table_SummaryPI[[#This Row],[Manufacturer]],\"/\",Table_SummaryPI[[#This Row],[Model'#]]),\"\")","v":""},{"$f":"IF(Table_SummaryPI[[#This Row],[Serial'#]]<>\"\",Table_SummaryPI[[#This Row],[Serial'#]],\"\")","v":""},{"$f":"IF(Table_SummaryPI[[#This Row],[Quantity]]<>\"\",Table_SummaryPI[[#This Row],[Quantity]],\"\")","v":""},{"$f":"IF(Table_SummaryPI[[#This Row],[BaselinekWh]]<>\"\",Table_SummaryPI[[#This Row],[BaselinekWh]],\"\")","v":""},{"$f":"IF(Table_SummaryPI[[#This Row],[BaselinekW]]<>\"\",Table_SummaryPI[[#This Row],[BaselinekW]],\"\")","v":""},{"$f":"IF(Table_SummaryPI[[#This Row],[ProposedkWh]]<>\"\",Table_SummaryPI[[#This Row],[ProposedkWh]],\"\")","v":""},{"$f":"IF(Table_SummaryPI[[#This Row],[ProposedkW]]<>\"\",Table_SummaryPI[[#This Row],[ProposedkW]],\"\")","v":""},{"$f":"IF(Table_SummaryPI[[#This Row],[Notes]]<>\"\",Table_SummaryPI[[#This Row],[Notes]],\"\")","v":""},{"$f":"IF(Table_SummaryPI[[#This Row],[Incentive_Customer]]<>\"\",Table_SummaryPI[[#This Row],[Incentive_Customer]],0)","v":0},{"$f":"IF(Table_SummaryPI[[#This Row],[MeasureCost]]<>\"\",Table_SummaryPI[[#This Row],[MeasureCost]],0)","v":0},{"$f":"IF(Table_SummaryPI[[#This Row],[kWhSavings]]<>\"\",Table_SummaryPI[[#This Row],[kWhSavings]],0)","v":0},{"$f":"IF(Table_SummaryPI[[#This Row],[DemandSavingskW]]<>\"\",Table_SummaryPI[[#This Row],[DemandSavingskW]],0)","v":0}]
[{"$f":"Table_SummaryPI[[#This Row],[Line No.]]","v":""},{"$f":"IF(Table_PrintPI[[#This Row],[Line No.]]=\"\",\"\",CONCATENATE(Table_PrintPI[[#This Row],[Line No.]],\" - \",Table_SummaryPI[[#This Row],[MeasureName]]))","v":""},{"$f":"IF(Table_SummaryPI[[#This Row],[Manufacturer]]<>\"\",CONCATENATE(Table_SummaryPI[[#This Row],[Manufacturer]],\"/\",Table_SummaryPI[[#This Row],[Model'#]]),\"\")","v":""},{"$f":"IF(Table_SummaryPI[[#This Row],[Serial'#]]<>\"\",Table_SummaryPI[[#This Row],[Serial'#]],\"\")","v":""},{"$f":"IF(Table_SummaryPI[[#This Row],[Quantity]]<>\"\",Table_SummaryPI[[#This Row],[Quantity]],\"\")","v":""},{"$f":"IF(Table_SummaryPI[[#This Row],[BaselinekWh]]<>\"\",Table_SummaryPI[[#This Row],[BaselinekWh]],\"\")","v":""},{"$f":"IF(Table_SummaryPI[[#This Row],[BaselinekW]]<>\"\",Table_SummaryPI[[#This Row],[BaselinekW]],\"\")","v":""},{"$f":"IF(Table_SummaryPI[[#This Row],[ProposedkWh]]<>\"\",Table_SummaryPI[[#This Row],[ProposedkWh]],\"\")","v":""},{"$f":"IF(Table_SummaryPI[[#This Row],[ProposedkW]]<>\"\",Table_SummaryPI[[#This Row],[ProposedkW]],\"\")","v":""},{"$f":"IF(Table_SummaryPI[[#This Row],[Notes]]<>\"\",Table_SummaryPI[[#This Row],[Notes]],\"\")","v":""},{"$f":"IF(Table_SummaryPI[[#This Row],[Incentive_Customer]]<>\"\",Table_SummaryPI[[#This Row],[Incentive_Customer]],0)","v":0},{"$f":"IF(Table_SummaryPI[[#This Row],[MeasureCost]]<>\"\",Table_SummaryPI[[#This Row],[MeasureCost]],0)","v":0},{"$f":"IF(Table_SummaryPI[[#This Row],[kWhSavings]]<>\"\",Table_SummaryPI[[#This Row],[kWhSavings]],0)","v":0},{"$f":"IF(Table_SummaryPI[[#This Row],[DemandSavingskW]]<>\"\",Table_SummaryPI[[#This Row],[DemandSavingskW]],0)","v":0}]
[{"$f":"Table_SummaryPI[[#This Row],[Line No.]]","v":""},{"$f":"IF(Table_PrintPI[[#This Row],[Line No.]]=\"\",\"\",CONCATENATE(Table_PrintPI[[#This Row],[Line No.]],\" - \",Table_SummaryPI[[#This Row],[MeasureName]]))","v":""},{"$f":"IF(Table_SummaryPI[[#This Row],[Manufacturer]]<>\"\",CONCATENATE(Table_SummaryPI[[#This Row],[Manufacturer]],\"/\",Table_SummaryPI[[#This Row],[Model'#]]),\"\")","v":""},{"$f":"IF(Table_SummaryPI[[#This Row],[Serial'#]]<>\"\",Table_SummaryPI[[#This Row],[Serial'#]],\"\")","v":""},{"$f":"IF(Table_SummaryPI[[#This Row],[Quantity]]<>\"\",Table_SummaryPI[[#This Row],[Quantity]],\"\")","v":""},{"$f":"IF(Table_SummaryPI[[#This Row],[BaselinekWh]]<>\"\",Table_SummaryPI[[#This Row],[BaselinekWh]],\"\")","v":""},{"$f":"IF(Table_SummaryPI[[#This Row],[BaselinekW]]<>\"\",Table_SummaryPI[[#This Row],[BaselinekW]],\"\")","v":""},{"$f":"IF(Table_SummaryPI[[#This Row],[ProposedkWh]]<>\"\",Table_SummaryPI[[#This Row],[ProposedkWh]],\"\")","v":""},{"$f":"IF(Table_SummaryPI[[#This Row],[ProposedkW]]<>\"\",Table_SummaryPI[[#This Row],[ProposedkW]],\"\")","v":""},{"$f":"IF(Table_SummaryPI[[#This Row],[Notes]]<>\"\",Table_SummaryPI[[#This Row],[Notes]],\"\")","v":""},{"$f":"IF(Table_SummaryPI[[#This Row],[Incentive_Customer]]<>\"\",Table_SummaryPI[[#This Row],[Incentive_Customer]],0)","v":0},{"$f":"IF(Table_SummaryPI[[#This Row],[MeasureCost]]<>\"\",Table_SummaryPI[[#This Row],[MeasureCost]],0)","v":0},{"$f":"IF(Table_SummaryPI[[#This Row],[kWhSavings]]<>\"\",Table_SummaryPI[[#This Row],[kWhSavings]],0)","v":0},{"$f":"IF(Table_SummaryPI[[#This Row],[DemandSavingskW]]<>\"\",Table_SummaryPI[[#This Row],[DemandSavingskW]],0)","v":0}]
[{"$f":"Table_SummaryPI[[#This Row],[Line No.]]","v":""},{"$f":"IF(Table_PrintPI[[#This Row],[Line No.]]=\"\",\"\",CONCATENATE(Table_PrintPI[[#This Row],[Line No.]],\" - \",Table_SummaryPI[[#This Row],[MeasureName]]))","v":""},{"$f":"IF(Table_SummaryPI[[#This Row],[Manufacturer]]<>\"\",CONCATENATE(Table_SummaryPI[[#This Row],[Manufacturer]],\"/\",Table_SummaryPI[[#This Row],[Model'#]]),\"\")","v":""},{"$f":"IF(Table_SummaryPI[[#This Row],[Serial'#]]<>\"\",Table_SummaryPI[[#This Row],[Serial'#]],\"\")","v":""},{"$f":"IF(Table_SummaryPI[[#This Row],[Quantity]]<>\"\",Table_SummaryPI[[#This Row],[Quantity]],\"\")","v":""},{"$f":"IF(Table_SummaryPI[[#This Row],[BaselinekWh]]<>\"\",Table_SummaryPI[[#This Row],[BaselinekWh]],\"\")","v":""},{"$f":"IF(Table_SummaryPI[[#This Row],[BaselinekW]]<>\"\",Table_SummaryPI[[#This Row],[BaselinekW]],\"\")","v":""},{"$f":"IF(Table_SummaryPI[[#This Row],[ProposedkWh]]<>\"\",Table_SummaryPI[[#This Row],[ProposedkWh]],\"\")","v":""},{"$f":"IF(Table_SummaryPI[[#This Row],[ProposedkW]]<>\"\",Table_SummaryPI[[#This Row],[ProposedkW]],\"\")","v":""},{"$f":"IF(Table_SummaryPI[[#This Row],[Notes]]<>\"\",Table_SummaryPI[[#This Row],[Notes]],\"\")","v":""},{"$f":"IF(Table_SummaryPI[[#This Row],[Incentive_Customer]]<>\"\",Table_SummaryPI[[#This Row],[Incentive_Customer]],0)","v":0},{"$f":"IF(Table_SummaryPI[[#This Row],[MeasureCost]]<>\"\",Table_SummaryPI[[#This Row],[MeasureCost]],0)","v":0},{"$f":"IF(Table_SummaryPI[[#This Row],[kWhSavings]]<>\"\",Table_SummaryPI[[#This Row],[kWhSavings]],0)","v":0},{"$f":"IF(Table_SummaryPI[[#This Row],[DemandSavingskW]]<>\"\",Table_SummaryPI[[#This Row],[DemandSavingskW]],0)","v":0}]
[{"$f":"Table_SummaryPI[[#This Row],[Line No.]]","v":""},{"$f":"IF(Table_PrintPI[[#This Row],[Line No.]]=\"\",\"\",CONCATENATE(Table_PrintPI[[#This Row],[Line No.]],\" - \",Table_SummaryPI[[#This Row],[MeasureName]]))","v":""},{"$f":"IF(Table_SummaryPI[[#This Row],[Manufacturer]]<>\"\",CONCATENATE(Table_SummaryPI[[#This Row],[Manufacturer]],\"/\",Table_SummaryPI[[#This Row],[Model'#]]),\"\")","v":""},{"$f":"IF(Table_SummaryPI[[#This Row],[Serial'#]]<>\"\",Table_SummaryPI[[#This Row],[Serial'#]],\"\")","v":""},{"$f":"IF(Table_SummaryPI[[#This Row],[Quantity]]<>\"\",Table_SummaryPI[[#This Row],[Quantity]],\"\")","v":""},{"$f":"IF(Table_SummaryPI[[#This Row],[BaselinekWh]]<>\"\",Table_SummaryPI[[#This Row],[BaselinekWh]],\"\")","v":""},{"$f":"IF(Table_SummaryPI[[#This Row],[BaselinekW]]<>\"\",Table_SummaryPI[[#This Row],[BaselinekW]],\"\")","v":""},{"$f":"IF(Table_SummaryPI[[#This Row],[ProposedkWh]]<>\"\",Table_SummaryPI[[#This Row],[ProposedkWh]],\"\")","v":""},{"$f":"IF(Table_SummaryPI[[#This Row],[ProposedkW]]<>\"\",Table_SummaryPI[[#This Row],[ProposedkW]],\"\")","v":""},{"$f":"IF(Table_SummaryPI[[#This Row],[Notes]]<>\"\",Table_SummaryPI[[#This Row],[Notes]],\"\")","v":""},{"$f":"IF(Table_SummaryPI[[#This Row],[Incentive_Customer]]<>\"\",Table_SummaryPI[[#This Row],[Incentive_Customer]],0)","v":0},{"$f":"IF(Table_SummaryPI[[#This Row],[MeasureCost]]<>\"\",Table_SummaryPI[[#This Row],[MeasureCost]],0)","v":0},{"$f":"IF(Table_SummaryPI[[#This Row],[kWhSavings]]<>\"\",Table_SummaryPI[[#This Row],[kWhSavings]],0)","v":0},{"$f":"IF(Table_SummaryPI[[#This Row],[DemandSavingskW]]<>\"\",Table_SummaryPI[[#This Row],[DemandSavingskW]],0)","v":0}]
[{"$f":"Table_SummaryPI[[#This Row],[Line No.]]","v":""},{"$f":"IF(Table_PrintPI[[#This Row],[Line No.]]=\"\",\"\",CONCATENATE(Table_PrintPI[[#This Row],[Line No.]],\" - \",Table_SummaryPI[[#This Row],[MeasureName]]))","v":""},{"$f":"IF(Table_SummaryPI[[#This Row],[Manufacturer]]<>\"\",CONCATENATE(Table_SummaryPI[[#This Row],[Manufacturer]],\"/\",Table_SummaryPI[[#This Row],[Model'#]]),\"\")","v":""},{"$f":"IF(Table_SummaryPI[[#This Row],[Serial'#]]<>\"\",Table_SummaryPI[[#This Row],[Serial'#]],\"\")","v":""},{"$f":"IF(Table_SummaryPI[[#This Row],[Quantity]]<>\"\",Table_SummaryPI[[#This Row],[Quantity]],\"\")","v":""},{"$f":"IF(Table_SummaryPI[[#This Row],[BaselinekWh]]<>\"\",Table_SummaryPI[[#This Row],[BaselinekWh]],\"\")","v":""},{"$f":"IF(Table_SummaryPI[[#This Row],[BaselinekW]]<>\"\",Table_SummaryPI[[#This Row],[BaselinekW]],\"\")","v":""},{"$f":"IF(Table_SummaryPI[[#This Row],[ProposedkWh]]<>\"\",Table_SummaryPI[[#This Row],[ProposedkWh]],\"\")","v":""},{"$f":"IF(Table_SummaryPI[[#This Row],[ProposedkW]]<>\"\",Table_SummaryPI[[#This Row],[ProposedkW]],\"\")","v":""},{"$f":"IF(Table_SummaryPI[[#This Row],[Notes]]<>\"\",Table_SummaryPI[[#This Row],[Notes]],\"\")","v":""},{"$f":"IF(Table_SummaryPI[[#This Row],[Incentive_Customer]]<>\"\",Table_SummaryPI[[#This Row],[Incentive_Customer]],0)","v":0},{"$f":"IF(Table_SummaryPI[[#This Row],[MeasureCost]]<>\"\",Table_SummaryPI[[#This Row],[MeasureCost]],0)","v":0},{"$f":"IF(Table_SummaryPI[[#This Row],[kWhSavings]]<>\"\",Table_SummaryPI[[#This Row],[kWhSavings]],0)","v":0},{"$f":"IF(Table_SummaryPI[[#This Row],[DemandSavingskW]]<>\"\",Table_SummaryPI[[#This Row],[DemandSavingskW]],0)","v":0}]
[{"$f":"Table_SummaryPI[[#This Row],[Line No.]]","v":""},{"$f":"IF(Table_PrintPI[[#This Row],[Line No.]]=\"\",\"\",CONCATENATE(Table_PrintPI[[#This Row],[Line No.]],\" - \",Table_SummaryPI[[#This Row],[MeasureName]]))","v":""},{"$f":"IF(Table_SummaryPI[[#This Row],[Manufacturer]]<>\"\",CONCATENATE(Table_SummaryPI[[#This Row],[Manufacturer]],\"/\",Table_SummaryPI[[#This Row],[Model'#]]),\"\")","v":""},{"$f":"IF(Table_SummaryPI[[#This Row],[Serial'#]]<>\"\",Table_SummaryPI[[#This Row],[Serial'#]],\"\")","v":""},{"$f":"IF(Table_SummaryPI[[#This Row],[Quantity]]<>\"\",Table_SummaryPI[[#This Row],[Quantity]],\"\")","v":""},{"$f":"IF(Table_SummaryPI[[#This Row],[BaselinekWh]]<>\"\",Table_SummaryPI[[#This Row],[BaselinekWh]],\"\")","v":""},{"$f":"IF(Table_SummaryPI[[#This Row],[BaselinekW]]<>\"\",Table_SummaryPI[[#This Row],[BaselinekW]],\"\")","v":""},{"$f":"IF(Table_SummaryPI[[#This Row],[ProposedkWh]]<>\"\",Table_SummaryPI[[#This Row],[ProposedkWh]],\"\")","v":""},{"$f":"IF(Table_SummaryPI[[#This Row],[ProposedkW]]<>\"\",Table_SummaryPI[[#This Row],[ProposedkW]],\"\")","v":""},{"$f":"IF(Table_SummaryPI[[#This Row],[Notes]]<>\"\",Table_SummaryPI[[#This Row],[Notes]],\"\")","v":""},{"$f":"IF(Table_SummaryPI[[#This Row],[Incentive_Customer]]<>\"\",Table_SummaryPI[[#This Row],[Incentive_Customer]],0)","v":0},{"$f":"IF(Table_SummaryPI[[#This Row],[MeasureCost]]<>\"\",Table_SummaryPI[[#This Row],[MeasureCost]],0)","v":0},{"$f":"IF(Table_SummaryPI[[#This Row],[kWhSavings]]<>\"\",Table_SummaryPI[[#This Row],[kWhSavings]],0)","v":0},{"$f":"IF(Table_SummaryPI[[#This Row],[DemandSavingskW]]<>\"\",Table_SummaryPI[[#This Row],[DemandSavingskW]],0)","v":0}]
[{"$f":"Table_SummaryPI[[#This Row],[Line No.]]","v":""},{"$f":"IF(Table_PrintPI[[#This Row],[Line No.]]=\"\",\"\",CONCATENATE(Table_PrintPI[[#This Row],[Line No.]],\" - \",Table_SummaryPI[[#This Row],[MeasureName]]))","v":""},{"$f":"IF(Table_SummaryPI[[#This Row],[Manufacturer]]<>\"\",CONCATENATE(Table_SummaryPI[[#This Row],[Manufacturer]],\"/\",Table_SummaryPI[[#This Row],[Model'#]]),\"\")","v":""},{"$f":"IF(Table_SummaryPI[[#This Row],[Serial'#]]<>\"\",Table_SummaryPI[[#This Row],[Serial'#]],\"\")","v":""},{"$f":"IF(Table_SummaryPI[[#This Row],[Quantity]]<>\"\",Table_SummaryPI[[#This Row],[Quantity]],\"\")","v":""},{"$f":"IF(Table_SummaryPI[[#This Row],[BaselinekWh]]<>\"\",Table_SummaryPI[[#This Row],[BaselinekWh]],\"\")","v":""},{"$f":"IF(Table_SummaryPI[[#This Row],[BaselinekW]]<>\"\",Table_SummaryPI[[#This Row],[BaselinekW]],\"\")","v":""},{"$f":"IF(Table_SummaryPI[[#This Row],[ProposedkWh]]<>\"\",Table_SummaryPI[[#This Row],[ProposedkWh]],\"\")","v":""},{"$f":"IF(Table_SummaryPI[[#This Row],[ProposedkW]]<>\"\",Table_SummaryPI[[#This Row],[ProposedkW]],\"\")","v":""},{"$f":"IF(Table_SummaryPI[[#This Row],[Notes]]<>\"\",Table_SummaryPI[[#This Row],[Notes]],\"\")","v":""},{"$f":"IF(Table_SummaryPI[[#This Row],[Incentive_Customer]]<>\"\",Table_SummaryPI[[#This Row],[Incentive_Customer]],0)","v":0},{"$f":"IF(Table_SummaryPI[[#This Row],[MeasureCost]]<>\"\",Table_SummaryPI[[#This Row],[MeasureCost]],0)","v":0},{"$f":"IF(Table_SummaryPI[[#This Row],[kWhSavings]]<>\"\",Table_SummaryPI[[#This Row],[kWhSavings]],0)","v":0},{"$f":"IF(Table_SummaryPI[[#This Row],[DemandSavingskW]]<>\"\",Table_SummaryPI[[#This Row],[DemandSavingskW]],0)","v":0}]
[{"$f":"Table_SummaryPI[[#This Row],[Line No.]]","v":""},{"$f":"IF(Table_PrintPI[[#This Row],[Line No.]]=\"\",\"\",CONCATENATE(Table_PrintPI[[#This Row],[Line No.]],\" - \",Table_SummaryPI[[#This Row],[MeasureName]]))","v":""},{"$f":"IF(Table_SummaryPI[[#This Row],[Manufacturer]]<>\"\",CONCATENATE(Table_SummaryPI[[#This Row],[Manufacturer]],\"/\",Table_SummaryPI[[#This Row],[Model'#]]),\"\")","v":""},{"$f":"IF(Table_SummaryPI[[#This Row],[Serial'#]]<>\"\",Table_SummaryPI[[#This Row],[Serial'#]],\"\")","v":""},{"$f":"IF(Table_SummaryPI[[#This Row],[Quantity]]<>\"\",Table_SummaryPI[[#This Row],[Quantity]],\"\")","v":""},{"$f":"IF(Table_SummaryPI[[#This Row],[BaselinekWh]]<>\"\",Table_SummaryPI[[#This Row],[BaselinekWh]],\"\")","v":""},{"$f":"IF(Table_SummaryPI[[#This Row],[BaselinekW]]<>\"\",Table_SummaryPI[[#This Row],[BaselinekW]],\"\")","v":""},{"$f":"IF(Table_SummaryPI[[#This Row],[ProposedkWh]]<>\"\",Table_SummaryPI[[#This Row],[ProposedkWh]],\"\")","v":""},{"$f":"IF(Table_SummaryPI[[#This Row],[ProposedkW]]<>\"\",Table_SummaryPI[[#This Row],[ProposedkW]],\"\")","v":""},{"$f":"IF(Table_SummaryPI[[#This Row],[Notes]]<>\"\",Table_SummaryPI[[#This Row],[Notes]],\"\")","v":""},{"$f":"IF(Table_SummaryPI[[#This Row],[Incentive_Customer]]<>\"\",Table_SummaryPI[[#This Row],[Incentive_Customer]],0)","v":0},{"$f":"IF(Table_SummaryPI[[#This Row],[MeasureCost]]<>\"\",Table_SummaryPI[[#This Row],[MeasureCost]],0)","v":0},{"$f":"IF(Table_SummaryPI[[#This Row],[kWhSavings]]<>\"\",Table_SummaryPI[[#This Row],[kWhSavings]],0)","v":0},{"$f":"IF(Table_SummaryPI[[#This Row],[DemandSavingskW]]<>\"\",Table_SummaryPI[[#This Row],[DemandSavingskW]],0)","v":0}]
[{"$f":"Table_SummaryPI[[#This Row],[Line No.]]","v":""},{"$f":"IF(Table_PrintPI[[#This Row],[Line No.]]=\"\",\"\",CONCATENATE(Table_PrintPI[[#This Row],[Line No.]],\" - \",Table_SummaryPI[[#This Row],[MeasureName]]))","v":""},{"$f":"IF(Table_SummaryPI[[#This Row],[Manufacturer]]<>\"\",CONCATENATE(Table_SummaryPI[[#This Row],[Manufacturer]],\"/\",Table_SummaryPI[[#This Row],[Model'#]]),\"\")","v":""},{"$f":"IF(Table_SummaryPI[[#This Row],[Serial'#]]<>\"\",Table_SummaryPI[[#This Row],[Serial'#]],\"\")","v":""},{"$f":"IF(Table_SummaryPI[[#This Row],[Quantity]]<>\"\",Table_SummaryPI[[#This Row],[Quantity]],\"\")","v":""},{"$f":"IF(Table_SummaryPI[[#This Row],[BaselinekWh]]<>\"\",Table_SummaryPI[[#This Row],[BaselinekWh]],\"\")","v":""},{"$f":"IF(Table_SummaryPI[[#This Row],[BaselinekW]]<>\"\",Table_SummaryPI[[#This Row],[BaselinekW]],\"\")","v":""},{"$f":"IF(Table_SummaryPI[[#This Row],[ProposedkWh]]<>\"\",Table_SummaryPI[[#This Row],[ProposedkWh]],\"\")","v":""},{"$f":"IF(Table_SummaryPI[[#This Row],[ProposedkW]]<>\"\",Table_SummaryPI[[#This Row],[ProposedkW]],\"\")","v":""},{"$f":"IF(Table_SummaryPI[[#This Row],[Notes]]<>\"\",Table_SummaryPI[[#This Row],[Notes]],\"\")","v":""},{"$f":"IF(Table_SummaryPI[[#This Row],[Incentive_Customer]]<>\"\",Table_SummaryPI[[#This Row],[Incentive_Customer]],0)","v":0},{"$f":"IF(Table_SummaryPI[[#This Row],[MeasureCost]]<>\"\",Table_SummaryPI[[#This Row],[MeasureCost]],0)","v":0},{"$f":"IF(Table_SummaryPI[[#This Row],[kWhSavings]]<>\"\",Table_SummaryPI[[#This Row],[kWhSavings]],0)","v":0},{"$f":"IF(Table_SummaryPI[[#This Row],[DemandSavingskW]]<>\"\",Table_SummaryPI[[#This Row],[DemandSavingskW]],0)","v":0}]
[{"$f":"Table_SummaryPI[[#This Row],[Line No.]]","v":""},{"$f":"IF(Table_PrintPI[[#This Row],[Line No.]]=\"\",\"\",CONCATENATE(Table_PrintPI[[#This Row],[Line No.]],\" - \",Table_SummaryPI[[#This Row],[MeasureName]]))","v":""},{"$f":"IF(Table_SummaryPI[[#This Row],[Manufacturer]]<>\"\",CONCATENATE(Table_SummaryPI[[#This Row],[Manufacturer]],\"/\",Table_SummaryPI[[#This Row],[Model'#]]),\"\")","v":""},{"$f":"IF(Table_SummaryPI[[#This Row],[Serial'#]]<>\"\",Table_SummaryPI[[#This Row],[Serial'#]],\"\")","v":""},{"$f":"IF(Table_SummaryPI[[#This Row],[Quantity]]<>\"\",Table_SummaryPI[[#This Row],[Quantity]],\"\")","v":""},{"$f":"IF(Table_SummaryPI[[#This Row],[BaselinekWh]]<>\"\",Table_SummaryPI[[#This Row],[BaselinekWh]],\"\")","v":""},{"$f":"IF(Table_SummaryPI[[#This Row],[BaselinekW]]<>\"\",Table_SummaryPI[[#This Row],[BaselinekW]],\"\")","v":""},{"$f":"IF(Table_SummaryPI[[#This Row],[ProposedkWh]]<>\"\",Table_SummaryPI[[#This Row],[ProposedkWh]],\"\")","v":""},{"$f":"IF(Table_SummaryPI[[#This Row],[ProposedkW]]<>\"\",Table_SummaryPI[[#This Row],[ProposedkW]],\"\")","v":""},{"$f":"IF(Table_SummaryPI[[#This Row],[Notes]]<>\"\",Table_SummaryPI[[#This Row],[Notes]],\"\")","v":""},{"$f":"IF(Table_SummaryPI[[#This Row],[Incentive_Customer]]<>\"\",Table_SummaryPI[[#This Row],[Incentive_Customer]],0)","v":0},{"$f":"IF(Table_SummaryPI[[#This Row],[MeasureCost]]<>\"\",Table_SummaryPI[[#This Row],[MeasureCost]],0)","v":0},{"$f":"IF(Table_SummaryPI[[#This Row],[kWhSavings]]<>\"\",Table_SummaryPI[[#This Row],[kWhSavings]],0)","v":0},{"$f":"IF(Table_SummaryPI[[#This Row],[DemandSavingskW]]<>\"\",Table_SummaryPI[[#This Row],[DemandSavingskW]],0)","v":0}]
[{"$f":"Table_SummaryPI[[#This Row],[Line No.]]","v":""},{"$f":"IF(Table_PrintPI[[#This Row],[Line No.]]=\"\",\"\",CONCATENATE(Table_PrintPI[[#This Row],[Line No.]],\" - \",Table_SummaryPI[[#This Row],[MeasureName]]))","v":""},{"$f":"IF(Table_SummaryPI[[#This Row],[Manufacturer]]<>\"\",CONCATENATE(Table_SummaryPI[[#This Row],[Manufacturer]],\"/\",Table_SummaryPI[[#This Row],[Model'#]]),\"\")","v":""},{"$f":"IF(Table_SummaryPI[[#This Row],[Serial'#]]<>\"\",Table_SummaryPI[[#This Row],[Serial'#]],\"\")","v":""},{"$f":"IF(Table_SummaryPI[[#This Row],[Quantity]]<>\"\",Table_SummaryPI[[#This Row],[Quantity]],\"\")","v":""},{"$f":"IF(Table_SummaryPI[[#This Row],[BaselinekWh]]<>\"\",Table_SummaryPI[[#This Row],[BaselinekWh]],\"\")","v":""},{"$f":"IF(Table_SummaryPI[[#This Row],[BaselinekW]]<>\"\",Table_SummaryPI[[#This Row],[BaselinekW]],\"\")","v":""},{"$f":"IF(Table_SummaryPI[[#This Row],[ProposedkWh]]<>\"\",Table_SummaryPI[[#This Row],[ProposedkWh]],\"\")","v":""},{"$f":"IF(Table_SummaryPI[[#This Row],[ProposedkW]]<>\"\",Table_SummaryPI[[#This Row],[ProposedkW]],\"\")","v":""},{"$f":"IF(Table_SummaryPI[[#This Row],[Notes]]<>\"\",Table_SummaryPI[[#This Row],[Notes]],\"\")","v":""},{"$f":"IF(Table_SummaryPI[[#This Row],[Incentive_Customer]]<>\"\",Table_SummaryPI[[#This Row],[Incentive_Customer]],0)","v":0},{"$f":"IF(Table_SummaryPI[[#This Row],[MeasureCost]]<>\"\",Table_SummaryPI[[#This Row],[MeasureCost]],0)","v":0},{"$f":"IF(Table_SummaryPI[[#This Row],[kWhSavings]]<>\"\",Table_SummaryPI[[#This Row],[kWhSavings]],0)","v":0},{"$f":"IF(Table_SummaryPI[[#This Row],[DemandSavingskW]]<>\"\",Table_SummaryPI[[#This Row],[DemandSavingskW]],0)","v":0}]
[{"$f":"Table_SummaryPI[[#This Row],[Line No.]]","v":""},{"$f":"IF(Table_PrintPI[[#This Row],[Line No.]]=\"\",\"\",CONCATENATE(Table_PrintPI[[#This Row],[Line No.]],\" - \",Table_SummaryPI[[#This Row],[MeasureName]]))","v":""},{"$f":"IF(Table_SummaryPI[[#This Row],[Manufacturer]]<>\"\",CONCATENATE(Table_SummaryPI[[#This Row],[Manufacturer]],\"/\",Table_SummaryPI[[#This Row],[Model'#]]),\"\")","v":""},{"$f":"IF(Table_SummaryPI[[#This Row],[Serial'#]]<>\"\",Table_SummaryPI[[#This Row],[Serial'#]],\"\")","v":""},{"$f":"IF(Table_SummaryPI[[#This Row],[Quantity]]<>\"\",Table_SummaryPI[[#This Row],[Quantity]],\"\")","v":""},{"$f":"IF(Table_SummaryPI[[#This Row],[BaselinekWh]]<>\"\",Table_SummaryPI[[#This Row],[BaselinekWh]],\"\")","v":""},{"$f":"IF(Table_SummaryPI[[#This Row],[BaselinekW]]<>\"\",Table_SummaryPI[[#This Row],[BaselinekW]],\"\")","v":""},{"$f":"IF(Table_SummaryPI[[#This Row],[ProposedkWh]]<>\"\",Table_SummaryPI[[#This Row],[ProposedkWh]],\"\")","v":""},{"$f":"IF(Table_SummaryPI[[#This Row],[ProposedkW]]<>\"\",Table_SummaryPI[[#This Row],[ProposedkW]],\"\")","v":""},{"$f":"IF(Table_SummaryPI[[#This Row],[Notes]]<>\"\",Table_SummaryPI[[#This Row],[Notes]],\"\")","v":""},{"$f":"IF(Table_SummaryPI[[#This Row],[Incentive_Customer]]<>\"\",Table_SummaryPI[[#This Row],[Incentive_Customer]],0)","v":0},{"$f":"IF(Table_SummaryPI[[#This Row],[MeasureCost]]<>\"\",Table_SummaryPI[[#This Row],[MeasureCost]],0)","v":0},{"$f":"IF(Table_SummaryPI[[#This Row],[kWhSavings]]<>\"\",Table_SummaryPI[[#This Row],[kWhSavings]],0)","v":0},{"$f":"IF(Table_SummaryPI[[#This Row],[DemandSavingskW]]<>\"\",Table_SummaryPI[[#This Row],[DemandSavingskW]],0)","v":0}]
[{"$f":"Table_SummaryPI[[#This Row],[Line No.]]","v":""},{"$f":"IF(Table_PrintPI[[#This Row],[Line No.]]=\"\",\"\",CONCATENATE(Table_PrintPI[[#This Row],[Line No.]],\" - \",Table_SummaryPI[[#This Row],[MeasureName]]))","v":""},{"$f":"IF(Table_SummaryPI[[#This Row],[Manufacturer]]<>\"\",CONCATENATE(Table_SummaryPI[[#This Row],[Manufacturer]],\"/\",Table_SummaryPI[[#This Row],[Model'#]]),\"\")","v":""},{"$f":"IF(Table_SummaryPI[[#This Row],[Serial'#]]<>\"\",Table_SummaryPI[[#This Row],[Serial'#]],\"\")","v":""},{"$f":"IF(Table_SummaryPI[[#This Row],[Quantity]]<>\"\",Table_SummaryPI[[#This Row],[Quantity]],\"\")","v":""},{"$f":"IF(Table_SummaryPI[[#This Row],[BaselinekWh]]<>\"\",Table_SummaryPI[[#This Row],[BaselinekWh]],\"\")","v":""},{"$f":"IF(Table_SummaryPI[[#This Row],[BaselinekW]]<>\"\",Table_SummaryPI[[#This Row],[BaselinekW]],\"\")","v":""},{"$f":"IF(Table_SummaryPI[[#This Row],[ProposedkWh]]<>\"\",Table_SummaryPI[[#This Row],[ProposedkWh]],\"\")","v":""},{"$f":"IF(Table_SummaryPI[[#This Row],[ProposedkW]]<>\"\",Table_SummaryPI[[#This Row],[ProposedkW]],\"\")","v":""},{"$f":"IF(Table_SummaryPI[[#This Row],[Notes]]<>\"\",Table_SummaryPI[[#This Row],[Notes]],\"\")","v":""},{"$f":"IF(Table_SummaryPI[[#This Row],[Incentive_Customer]]<>\"\",Table_SummaryPI[[#This Row],[Incentive_Customer]],0)","v":0},{"$f":"IF(Table_SummaryPI[[#This Row],[MeasureCost]]<>\"\",Table_SummaryPI[[#This Row],[MeasureCost]],0)","v":0},{"$f":"IF(Table_SummaryPI[[#This Row],[kWhSavings]]<>\"\",Table_SummaryPI[[#This Row],[kWhSavings]],0)","v":0},{"$f":"IF(Table_SummaryPI[[#This Row],[DemandSavingskW]]<>\"\",Table_SummaryPI[[#This Row],[DemandSavingskW]],0)","v":0}]
[{"$f":"Table_SummaryPI[[#This Row],[Line No.]]","v":""},{"$f":"IF(Table_PrintPI[[#This Row],[Line No.]]=\"\",\"\",CONCATENATE(Table_PrintPI[[#This Row],[Line No.]],\" - \",Table_SummaryPI[[#This Row],[MeasureName]]))","v":""},{"$f":"IF(Table_SummaryPI[[#This Row],[Manufacturer]]<>\"\",CONCATENATE(Table_SummaryPI[[#This Row],[Manufacturer]],\"/\",Table_SummaryPI[[#This Row],[Model'#]]),\"\")","v":""},{"$f":"IF(Table_SummaryPI[[#This Row],[Serial'#]]<>\"\",Table_SummaryPI[[#This Row],[Serial'#]],\"\")","v":""},{"$f":"IF(Table_SummaryPI[[#This Row],[Quantity]]<>\"\",Table_SummaryPI[[#This Row],[Quantity]],\"\")","v":""},{"$f":"IF(Table_SummaryPI[[#This Row],[BaselinekWh]]<>\"\",Table_SummaryPI[[#This Row],[BaselinekWh]],\"\")","v":""},{"$f":"IF(Table_SummaryPI[[#This Row],[BaselinekW]]<>\"\",Table_SummaryPI[[#This Row],[BaselinekW]],\"\")","v":""},{"$f":"IF(Table_SummaryPI[[#This Row],[ProposedkWh]]<>\"\",Table_SummaryPI[[#This Row],[ProposedkWh]],\"\")","v":""},{"$f":"IF(Table_SummaryPI[[#This Row],[ProposedkW]]<>\"\",Table_SummaryPI[[#This Row],[ProposedkW]],\"\")","v":""},{"$f":"IF(Table_SummaryPI[[#This Row],[Notes]]<>\"\",Table_SummaryPI[[#This Row],[Notes]],\"\")","v":""},{"$f":"IF(Table_SummaryPI[[#This Row],[Incentive_Customer]]<>\"\",Table_SummaryPI[[#This Row],[Incentive_Customer]],0)","v":0},{"$f":"IF(Table_SummaryPI[[#This Row],[MeasureCost]]<>\"\",Table_SummaryPI[[#This Row],[MeasureCost]],0)","v":0},{"$f":"IF(Table_SummaryPI[[#This Row],[kWhSavings]]<>\"\",Table_SummaryPI[[#This Row],[kWhSavings]],0)","v":0},{"$f":"IF(Table_SummaryPI[[#This Row],[DemandSavingskW]]<>\"\",Table_SummaryPI[[#This Row],[DemandSavingskW]],0)","v":0}]
[{"$f":"Table_SummaryPI[[#This Row],[Line No.]]","v":""},{"$f":"IF(Table_PrintPI[[#This Row],[Line No.]]=\"\",\"\",CONCATENATE(Table_PrintPI[[#This Row],[Line No.]],\" - \",Table_SummaryPI[[#This Row],[MeasureName]]))","v":""},{"$f":"IF(Table_SummaryPI[[#This Row],[Manufacturer]]<>\"\",CONCATENATE(Table_SummaryPI[[#This Row],[Manufacturer]],\"/\",Table_SummaryPI[[#This Row],[Model'#]]),\"\")","v":""},{"$f":"IF(Table_SummaryPI[[#This Row],[Serial'#]]<>\"\",Table_SummaryPI[[#This Row],[Serial'#]],\"\")","v":""},{"$f":"IF(Table_SummaryPI[[#This Row],[Quantity]]<>\"\",Table_SummaryPI[[#This Row],[Quantity]],\"\")","v":""},{"$f":"IF(Table_SummaryPI[[#This Row],[BaselinekWh]]<>\"\",Table_SummaryPI[[#This Row],[BaselinekWh]],\"\")","v":""},{"$f":"IF(Table_SummaryPI[[#This Row],[BaselinekW]]<>\"\",Table_SummaryPI[[#This Row],[BaselinekW]],\"\")","v":""},{"$f":"IF(Table_SummaryPI[[#This Row],[ProposedkWh]]<>\"\",Table_SummaryPI[[#This Row],[ProposedkWh]],\"\")","v":""},{"$f":"IF(Table_SummaryPI[[#This Row],[ProposedkW]]<>\"\",Table_SummaryPI[[#This Row],[ProposedkW]],\"\")","v":""},{"$f":"IF(Table_SummaryPI[[#This Row],[Notes]]<>\"\",Table_SummaryPI[[#This Row],[Notes]],\"\")","v":""},{"$f":"IF(Table_SummaryPI[[#This Row],[Incentive_Customer]]<>\"\",Table_SummaryPI[[#This Row],[Incentive_Customer]],0)","v":0},{"$f":"IF(Table_SummaryPI[[#This Row],[MeasureCost]]<>\"\",Table_SummaryPI[[#This Row],[MeasureCost]],0)","v":0},{"$f":"IF(Table_SummaryPI[[#This Row],[kWhSavings]]<>\"\",Table_SummaryPI[[#This Row],[kWhSavings]],0)","v":0},{"$f":"IF(Table_SummaryPI[[#This Row],[DemandSavingskW]]<>\"\",Table_SummaryPI[[#This Row],[DemandSavingskW]],0)","v":0}]
[{"$f":"Table_SummaryPI[[#This Row],[Line No.]]","v":""},{"$f":"IF(Table_PrintPI[[#This Row],[Line No.]]=\"\",\"\",CONCATENATE(Table_PrintPI[[#This Row],[Line No.]],\" - \",Table_SummaryPI[[#This Row],[MeasureName]]))","v":""},{"$f":"IF(Table_SummaryPI[[#This Row],[Manufacturer]]<>\"\",CONCATENATE(Table_SummaryPI[[#This Row],[Manufacturer]],\"/\",Table_SummaryPI[[#This Row],[Model'#]]),\"\")","v":""},{"$f":"IF(Table_SummaryPI[[#This Row],[Serial'#]]<>\"\",Table_SummaryPI[[#This Row],[Serial'#]],\"\")","v":""},{"$f":"IF(Table_SummaryPI[[#This Row],[Quantity]]<>\"\",Table_SummaryPI[[#This Row],[Quantity]],\"\")","v":""},{"$f":"IF(Table_SummaryPI[[#This Row],[BaselinekWh]]<>\"\",Table_SummaryPI[[#This Row],[BaselinekWh]],\"\")","v":""},{"$f":"IF(Table_SummaryPI[[#This Row],[BaselinekW]]<>\"\",Table_SummaryPI[[#This Row],[BaselinekW]],\"\")","v":""},{"$f":"IF(Table_SummaryPI[[#This Row],[ProposedkWh]]<>\"\",Table_SummaryPI[[#This Row],[ProposedkWh]],\"\")","v":""},{"$f":"IF(Table_SummaryPI[[#This Row],[ProposedkW]]<>\"\",Table_SummaryPI[[#This Row],[ProposedkW]],\"\")","v":""},{"$f":"IF(Table_SummaryPI[[#This Row],[Notes]]<>\"\",Table_SummaryPI[[#This Row],[Notes]],\"\")","v":""},{"$f":"IF(Table_SummaryPI[[#This Row],[Incentive_Customer]]<>\"\",Table_SummaryPI[[#This Row],[Incentive_Customer]],0)","v":0},{"$f":"IF(Table_SummaryPI[[#This Row],[MeasureCost]]<>\"\",Table_SummaryPI[[#This Row],[MeasureCost]],0)","v":0},{"$f":"IF(Table_SummaryPI[[#This Row],[kWhSavings]]<>\"\",Table_SummaryPI[[#This Row],[kWhSavings]],0)","v":0},{"$f":"IF(Table_SummaryPI[[#This Row],[DemandSavingskW]]<>\"\",Table_SummaryPI[[#This Row],[DemandSavingskW]],0)","v":0}]
[{"$f":"Table_SummaryPI[[#This Row],[Line No.]]","v":""},{"$f":"IF(Table_PrintPI[[#This Row],[Line No.]]=\"\",\"\",CONCATENATE(Table_PrintPI[[#This Row],[Line No.]],\" - \",Table_SummaryPI[[#This Row],[MeasureName]]))","v":""},{"$f":"IF(Table_SummaryPI[[#This Row],[Manufacturer]]<>\"\",CONCATENATE(Table_SummaryPI[[#This Row],[Manufacturer]],\"/\",Table_SummaryPI[[#This Row],[Model'#]]),\"\")","v":""},{"$f":"IF(Table_SummaryPI[[#This Row],[Serial'#]]<>\"\",Table_SummaryPI[[#This Row],[Serial'#]],\"\")","v":""},{"$f":"IF(Table_SummaryPI[[#This Row],[Quantity]]<>\"\",Table_SummaryPI[[#This Row],[Quantity]],\"\")","v":""},{"$f":"IF(Table_SummaryPI[[#This Row],[BaselinekWh]]<>\"\",Table_SummaryPI[[#This Row],[BaselinekWh]],\"\")","v":""},{"$f":"IF(Table_SummaryPI[[#This Row],[BaselinekW]]<>\"\",Table_SummaryPI[[#This Row],[BaselinekW]],\"\")","v":""},{"$f":"IF(Table_SummaryPI[[#This Row],[ProposedkWh]]<>\"\",Table_SummaryPI[[#This Row],[ProposedkWh]],\"\")","v":""},{"$f":"IF(Table_SummaryPI[[#This Row],[ProposedkW]]<>\"\",Table_SummaryPI[[#This Row],[ProposedkW]],\"\")","v":""},{"$f":"IF(Table_SummaryPI[[#This Row],[Notes]]<>\"\",Table_SummaryPI[[#This Row],[Notes]],\"\")","v":""},{"$f":"IF(Table_SummaryPI[[#This Row],[Incentive_Customer]]<>\"\",Table_SummaryPI[[#This Row],[Incentive_Customer]],0)","v":0},{"$f":"IF(Table_SummaryPI[[#This Row],[MeasureCost]]<>\"\",Table_SummaryPI[[#This Row],[MeasureCost]],0)","v":0},{"$f":"IF(Table_SummaryPI[[#This Row],[kWhSavings]]<>\"\",Table_SummaryPI[[#This Row],[kWhSavings]],0)","v":0},{"$f":"IF(Table_SummaryPI[[#This Row],[DemandSavingskW]]<>\"\",Table_SummaryPI[[#This Row],[DemandSavingskW]],0)","v":0}]
[{"$f":"Table_SummaryPI[[#This Row],[Line No.]]","v":""},{"$f":"IF(Table_PrintPI[[#This Row],[Line No.]]=\"\",\"\",CONCATENATE(Table_PrintPI[[#This Row],[Line No.]],\" - \",Table_SummaryPI[[#This Row],[MeasureName]]))","v":""},{"$f":"IF(Table_SummaryPI[[#This Row],[Manufacturer]]<>\"\",CONCATENATE(Table_SummaryPI[[#This Row],[Manufacturer]],\"/\",Table_SummaryPI[[#This Row],[Model'#]]),\"\")","v":""},{"$f":"IF(Table_SummaryPI[[#This Row],[Serial'#]]<>\"\",Table_SummaryPI[[#This Row],[Serial'#]],\"\")","v":""},{"$f":"IF(Table_SummaryPI[[#This Row],[Quantity]]<>\"\",Table_SummaryPI[[#This Row],[Quantity]],\"\")","v":""},{"$f":"IF(Table_SummaryPI[[#This Row],[BaselinekWh]]<>\"\",Table_SummaryPI[[#This Row],[BaselinekWh]],\"\")","v":""},{"$f":"IF(Table_SummaryPI[[#This Row],[BaselinekW]]<>\"\",Table_SummaryPI[[#This Row],[BaselinekW]],\"\")","v":""},{"$f":"IF(Table_SummaryPI[[#This Row],[ProposedkWh]]<>\"\",Table_SummaryPI[[#This Row],[ProposedkWh]],\"\")","v":""},{"$f":"IF(Table_SummaryPI[[#This Row],[ProposedkW]]<>\"\",Table_SummaryPI[[#This Row],[ProposedkW]],\"\")","v":""},{"$f":"IF(Table_SummaryPI[[#This Row],[Notes]]<>\"\",Table_SummaryPI[[#This Row],[Notes]],\"\")","v":""},{"$f":"IF(Table_SummaryPI[[#This Row],[Incentive_Customer]]<>\"\",Table_SummaryPI[[#This Row],[Incentive_Customer]],0)","v":0},{"$f":"IF(Table_SummaryPI[[#This Row],[MeasureCost]]<>\"\",Table_SummaryPI[[#This Row],[MeasureCost]],0)","v":0},{"$f":"IF(Table_SummaryPI[[#This Row],[kWhSavings]]<>\"\",Table_SummaryPI[[#This Row],[kWhSavings]],0)","v":0},{"$f":"IF(Table_SummaryPI[[#This Row],[DemandSavingskW]]<>\"\",Table_SummaryPI[[#This Row],[DemandSavingskW]],0)","v":0}]
[{"$f":"Table_SummaryPI[[#This Row],[Line No.]]","v":""},{"$f":"IF(Table_PrintPI[[#This Row],[Line No.]]=\"\",\"\",CONCATENATE(Table_PrintPI[[#This Row],[Line No.]],\" - \",Table_SummaryPI[[#This Row],[MeasureName]]))","v":""},{"$f":"IF(Table_SummaryPI[[#This Row],[Manufacturer]]<>\"\",CONCATENATE(Table_SummaryPI[[#This Row],[Manufacturer]],\"/\",Table_SummaryPI[[#This Row],[Model'#]]),\"\")","v":""},{"$f":"IF(Table_SummaryPI[[#This Row],[Serial'#]]<>\"\",Table_SummaryPI[[#This Row],[Serial'#]],\"\")","v":""},{"$f":"IF(Table_SummaryPI[[#This Row],[Quantity]]<>\"\",Table_SummaryPI[[#This Row],[Quantity]],\"\")","v":""},{"$f":"IF(Table_SummaryPI[[#This Row],[BaselinekWh]]<>\"\",Table_SummaryPI[[#This Row],[BaselinekWh]],\"\")","v":""},{"$f":"IF(Table_SummaryPI[[#This Row],[BaselinekW]]<>\"\",Table_SummaryPI[[#This Row],[BaselinekW]],\"\")","v":""},{"$f":"IF(Table_SummaryPI[[#This Row],[ProposedkWh]]<>\"\",Table_SummaryPI[[#This Row],[ProposedkWh]],\"\")","v":""},{"$f":"IF(Table_SummaryPI[[#This Row],[ProposedkW]]<>\"\",Table_SummaryPI[[#This Row],[ProposedkW]],\"\")","v":""},{"$f":"IF(Table_SummaryPI[[#This Row],[Notes]]<>\"\",Table_SummaryPI[[#This Row],[Notes]],\"\")","v":""},{"$f":"IF(Table_SummaryPI[[#This Row],[Incentive_Customer]]<>\"\",Table_SummaryPI[[#This Row],[Incentive_Customer]],0)","v":0},{"$f":"IF(Table_SummaryPI[[#This Row],[MeasureCost]]<>\"\",Table_SummaryPI[[#This Row],[MeasureCost]],0)","v":0},{"$f":"IF(Table_SummaryPI[[#This Row],[kWhSavings]]<>\"\",Table_SummaryPI[[#This Row],[kWhSavings]],0)","v":0},{"$f":"IF(Table_SummaryPI[[#This Row],[DemandSavingskW]]<>\"\",Table_SummaryPI[[#This Row],[DemandSavingskW]],0)","v":0}]
[{"$f":"Table_SummaryPI[[#This Row],[Line No.]]","v":""},{"$f":"IF(Table_PrintPI[[#This Row],[Line No.]]=\"\",\"\",CONCATENATE(Table_PrintPI[[#This Row],[Line No.]],\" - \",Table_SummaryPI[[#This Row],[MeasureName]]))","v":""},{"$f":"IF(Table_SummaryPI[[#This Row],[Manufacturer]]<>\"\",CONCATENATE(Table_SummaryPI[[#This Row],[Manufacturer]],\"/\",Table_SummaryPI[[#This Row],[Model'#]]),\"\")","v":""},{"$f":"IF(Table_SummaryPI[[#This Row],[Serial'#]]<>\"\",Table_SummaryPI[[#This Row],[Serial'#]],\"\")","v":""},{"$f":"IF(Table_SummaryPI[[#This Row],[Quantity]]<>\"\",Table_SummaryPI[[#This Row],[Quantity]],\"\")","v":""},{"$f":"IF(Table_SummaryPI[[#This Row],[BaselinekWh]]<>\"\",Table_SummaryPI[[#This Row],[BaselinekWh]],\"\")","v":""},{"$f":"IF(Table_SummaryPI[[#This Row],[BaselinekW]]<>\"\",Table_SummaryPI[[#This Row],[BaselinekW]],\"\")","v":""},{"$f":"IF(Table_SummaryPI[[#This Row],[ProposedkWh]]<>\"\",Table_SummaryPI[[#This Row],[ProposedkWh]],\"\")","v":""},{"$f":"IF(Table_SummaryPI[[#This Row],[ProposedkW]]<>\"\",Table_SummaryPI[[#This Row],[ProposedkW]],\"\")","v":""},{"$f":"IF(Table_SummaryPI[[#This Row],[Notes]]<>\"\",Table_SummaryPI[[#This Row],[Notes]],\"\")","v":""},{"$f":"IF(Table_SummaryPI[[#This Row],[Incentive_Customer]]<>\"\",Table_SummaryPI[[#This Row],[Incentive_Customer]],0)","v":0},{"$f":"IF(Table_SummaryPI[[#This Row],[MeasureCost]]<>\"\",Table_SummaryPI[[#This Row],[MeasureCost]],0)","v":0},{"$f":"IF(Table_SummaryPI[[#This Row],[kWhSavings]]<>\"\",Table_SummaryPI[[#This Row],[kWhSavings]],0)","v":0},{"$f":"IF(Table_SummaryPI[[#This Row],[DemandSavingskW]]<>\"\",Table_SummaryPI[[#This Row],[DemandSavingskW]],0)","v":0}]
[{"$f":"Table_SummaryPI[[#This Row],[Line No.]]","v":""},{"$f":"IF(Table_PrintPI[[#This Row],[Line No.]]=\"\",\"\",CONCATENATE(Table_PrintPI[[#This Row],[Line No.]],\" - \",Table_SummaryPI[[#This Row],[MeasureName]]))","v":""},{"$f":"IF(Table_SummaryPI[[#This Row],[Manufacturer]]<>\"\",CONCATENATE(Table_SummaryPI[[#This Row],[Manufacturer]],\"/\",Table_SummaryPI[[#This Row],[Model'#]]),\"\")","v":""},{"$f":"IF(Table_SummaryPI[[#This Row],[Serial'#]]<>\"\",Table_SummaryPI[[#This Row],[Serial'#]],\"\")","v":""},{"$f":"IF(Table_SummaryPI[[#This Row],[Quantity]]<>\"\",Table_SummaryPI[[#This Row],[Quantity]],\"\")","v":""},{"$f":"IF(Table_SummaryPI[[#This Row],[BaselinekWh]]<>\"\",Table_SummaryPI[[#This Row],[BaselinekWh]],\"\")","v":""},{"$f":"IF(Table_SummaryPI[[#This Row],[BaselinekW]]<>\"\",Table_SummaryPI[[#This Row],[BaselinekW]],\"\")","v":""},{"$f":"IF(Table_SummaryPI[[#This Row],[ProposedkWh]]<>\"\",Table_SummaryPI[[#This Row],[ProposedkWh]],\"\")","v":""},{"$f":"IF(Table_SummaryPI[[#This Row],[ProposedkW]]<>\"\",Table_SummaryPI[[#This Row],[ProposedkW]],\"\")","v":""},{"$f":"IF(Table_SummaryPI[[#This Row],[Notes]]<>\"\",Table_SummaryPI[[#This Row],[Notes]],\"\")","v":""},{"$f":"IF(Table_SummaryPI[[#This Row],[Incentive_Customer]]<>\"\",Table_SummaryPI[[#This Row],[Incentive_Customer]],0)","v":0},{"$f":"IF(Table_SummaryPI[[#This Row],[MeasureCost]]<>\"\",Table_SummaryPI[[#This Row],[MeasureCost]],0)","v":0},{"$f":"IF(Table_SummaryPI[[#This Row],[kWhSavings]]<>\"\",Table_SummaryPI[[#This Row],[kWhSavings]],0)","v":0},{"$f":"IF(Table_SummaryPI[[#This Row],[DemandSavingskW]]<>\"\",Table_SummaryPI[[#This Row],[DemandSavingskW]],0)","v":0}]
[{"$f":"Table_SummaryPI[[#This Row],[Line No.]]","v":""},{"$f":"IF(Table_PrintPI[[#This Row],[Line No.]]=\"\",\"\",CONCATENATE(Table_PrintPI[[#This Row],[Line No.]],\" - \",Table_SummaryPI[[#This Row],[MeasureName]]))","v":""},{"$f":"IF(Table_SummaryPI[[#This Row],[Manufacturer]]<>\"\",CONCATENATE(Table_SummaryPI[[#This Row],[Manufacturer]],\"/\",Table_SummaryPI[[#This Row],[Model'#]]),\"\")","v":""},{"$f":"IF(Table_SummaryPI[[#This Row],[Serial'#]]<>\"\",Table_SummaryPI[[#This Row],[Serial'#]],\"\")","v":""},{"$f":"IF(Table_SummaryPI[[#This Row],[Quantity]]<>\"\",Table_SummaryPI[[#This Row],[Quantity]],\"\")","v":""},{"$f":"IF(Table_SummaryPI[[#This Row],[BaselinekWh]]<>\"\",Table_SummaryPI[[#This Row],[BaselinekWh]],\"\")","v":""},{"$f":"IF(Table_SummaryPI[[#This Row],[BaselinekW]]<>\"\",Table_SummaryPI[[#This Row],[BaselinekW]],\"\")","v":""},{"$f":"IF(Table_SummaryPI[[#This Row],[ProposedkWh]]<>\"\",Table_SummaryPI[[#This Row],[ProposedkWh]],\"\")","v":""},{"$f":"IF(Table_SummaryPI[[#This Row],[ProposedkW]]<>\"\",Table_SummaryPI[[#This Row],[ProposedkW]],\"\")","v":""},{"$f":"IF(Table_SummaryPI[[#This Row],[Notes]]<>\"\",Table_SummaryPI[[#This Row],[Notes]],\"\")","v":""},{"$f":"IF(Table_SummaryPI[[#This Row],[Incentive_Customer]]<>\"\",Table_SummaryPI[[#This Row],[Incentive_Customer]],0)","v":0},{"$f":"IF(Table_SummaryPI[[#This Row],[MeasureCost]]<>\"\",Table_SummaryPI[[#This Row],[MeasureCost]],0)","v":0},{"$f":"IF(Table_SummaryPI[[#This Row],[kWhSavings]]<>\"\",Table_SummaryPI[[#This Row],[kWhSavings]],0)","v":0},{"$f":"IF(Table_SummaryPI[[#This Row],[DemandSavingskW]]<>\"\",Table_SummaryPI[[#This Row],[DemandSavingskW]],0)","v":0}]
[{"$f":"Table_SummaryPI[[#This Row],[Line No.]]","v":""},{"$f":"IF(Table_PrintPI[[#This Row],[Line No.]]=\"\",\"\",CONCATENATE(Table_PrintPI[[#This Row],[Line No.]],\" - \",Table_SummaryPI[[#This Row],[MeasureName]]))","v":""},{"$f":"IF(Table_SummaryPI[[#This Row],[Manufacturer]]<>\"\",CONCATENATE(Table_SummaryPI[[#This Row],[Manufacturer]],\"/\",Table_SummaryPI[[#This Row],[Model'#]]),\"\")","v":""},{"$f":"IF(Table_SummaryPI[[#This Row],[Serial'#]]<>\"\",Table_SummaryPI[[#This Row],[Serial'#]],\"\")","v":""},{"$f":"IF(Table_SummaryPI[[#This Row],[Quantity]]<>\"\",Table_SummaryPI[[#This Row],[Quantity]],\"\")","v":""},{"$f":"IF(Table_SummaryPI[[#This Row],[BaselinekWh]]<>\"\",Table_SummaryPI[[#This Row],[BaselinekWh]],\"\")","v":""},{"$f":"IF(Table_SummaryPI[[#This Row],[BaselinekW]]<>\"\",Table_SummaryPI[[#This Row],[BaselinekW]],\"\")","v":""},{"$f":"IF(Table_SummaryPI[[#This Row],[ProposedkWh]]<>\"\",Table_SummaryPI[[#This Row],[ProposedkWh]],\"\")","v":""},{"$f":"IF(Table_SummaryPI[[#This Row],[ProposedkW]]<>\"\",Table_SummaryPI[[#This Row],[ProposedkW]],\"\")","v":""},{"$f":"IF(Table_SummaryPI[[#This Row],[Notes]]<>\"\",Table_SummaryPI[[#This Row],[Notes]],\"\")","v":""},{"$f":"IF(Table_SummaryPI[[#This Row],[Incentive_Customer]]<>\"\",Table_SummaryPI[[#This Row],[Incentive_Customer]],0)","v":0},{"$f":"IF(Table_SummaryPI[[#This Row],[MeasureCost]]<>\"\",Table_SummaryPI[[#This Row],[MeasureCost]],0)","v":0},{"$f":"IF(Table_SummaryPI[[#This Row],[kWhSavings]]<>\"\",Table_SummaryPI[[#This Row],[kWhSavings]],0)","v":0},{"$f":"IF(Table_SummaryPI[[#This Row],[DemandSavingskW]]<>\"\",Table_SummaryPI[[#This Row],[DemandSavingskW]],0)","v":0}]
[{"$f":"Table_SummaryPI[[#This Row],[Line No.]]","v":""},{"$f":"IF(Table_PrintPI[[#This Row],[Line No.]]=\"\",\"\",CONCATENATE(Table_PrintPI[[#This Row],[Line No.]],\" - \",Table_SummaryPI[[#This Row],[MeasureName]]))","v":""},{"$f":"IF(Table_SummaryPI[[#This Row],[Manufacturer]]<>\"\",CONCATENATE(Table_SummaryPI[[#This Row],[Manufacturer]],\"/\",Table_SummaryPI[[#This Row],[Model'#]]),\"\")","v":""},{"$f":"IF(Table_SummaryPI[[#This Row],[Serial'#]]<>\"\",Table_SummaryPI[[#This Row],[Serial'#]],\"\")","v":""},{"$f":"IF(Table_SummaryPI[[#This Row],[Quantity]]<>\"\",Table_SummaryPI[[#This Row],[Quantity]],\"\")","v":""},{"$f":"IF(Table_SummaryPI[[#This Row],[BaselinekWh]]<>\"\",Table_SummaryPI[[#This Row],[BaselinekWh]],\"\")","v":""},{"$f":"IF(Table_SummaryPI[[#This Row],[BaselinekW]]<>\"\",Table_SummaryPI[[#This Row],[BaselinekW]],\"\")","v":""},{"$f":"IF(Table_SummaryPI[[#This Row],[ProposedkWh]]<>\"\",Table_SummaryPI[[#This Row],[ProposedkWh]],\"\")","v":""},{"$f":"IF(Table_SummaryPI[[#This Row],[ProposedkW]]<>\"\",Table_SummaryPI[[#This Row],[ProposedkW]],\"\")","v":""},{"$f":"IF(Table_SummaryPI[[#This Row],[Notes]]<>\"\",Table_SummaryPI[[#This Row],[Notes]],\"\")","v":""},{"$f":"IF(Table_SummaryPI[[#This Row],[Incentive_Customer]]<>\"\",Table_SummaryPI[[#This Row],[Incentive_Customer]],0)","v":0},{"$f":"IF(Table_SummaryPI[[#This Row],[MeasureCost]]<>\"\",Table_SummaryPI[[#This Row],[MeasureCost]],0)","v":0},{"$f":"IF(Table_SummaryPI[[#This Row],[kWhSavings]]<>\"\",Table_SummaryPI[[#This Row],[kWhSavings]],0)","v":0},{"$f":"IF(Table_SummaryPI[[#This Row],[DemandSavingskW]]<>\"\",Table_SummaryPI[[#This Row],[DemandSavingskW]],0)","v":0}]
[{"$f":"Table_SummaryPI[[#This Row],[Line No.]]","v":""},{"$f":"IF(Table_PrintPI[[#This Row],[Line No.]]=\"\",\"\",CONCATENATE(Table_PrintPI[[#This Row],[Line No.]],\" - \",Table_SummaryPI[[#This Row],[MeasureName]]))","v":""},{"$f":"IF(Table_SummaryPI[[#This Row],[Manufacturer]]<>\"\",CONCATENATE(Table_SummaryPI[[#This Row],[Manufacturer]],\"/\",Table_SummaryPI[[#This Row],[Model'#]]),\"\")","v":""},{"$f":"IF(Table_SummaryPI[[#This Row],[Serial'#]]<>\"\",Table_SummaryPI[[#This Row],[Serial'#]],\"\")","v":""},{"$f":"IF(Table_SummaryPI[[#This Row],[Quantity]]<>\"\",Table_SummaryPI[[#This Row],[Quantity]],\"\")","v":""},{"$f":"IF(Table_SummaryPI[[#This Row],[BaselinekWh]]<>\"\",Table_SummaryPI[[#This Row],[BaselinekWh]],\"\")","v":""},{"$f":"IF(Table_SummaryPI[[#This Row],[BaselinekW]]<>\"\",Table_SummaryPI[[#This Row],[BaselinekW]],\"\")","v":""},{"$f":"IF(Table_SummaryPI[[#This Row],[ProposedkWh]]<>\"\",Table_SummaryPI[[#This Row],[ProposedkWh]],\"\")","v":""},{"$f":"IF(Table_SummaryPI[[#This Row],[ProposedkW]]<>\"\",Table_SummaryPI[[#This Row],[ProposedkW]],\"\")","v":""},{"$f":"IF(Table_SummaryPI[[#This Row],[Notes]]<>\"\",Table_SummaryPI[[#This Row],[Notes]],\"\")","v":""},{"$f":"IF(Table_SummaryPI[[#This Row],[Incentive_Customer]]<>\"\",Table_SummaryPI[[#This Row],[Incentive_Customer]],0)","v":0},{"$f":"IF(Table_SummaryPI[[#This Row],[MeasureCost]]<>\"\",Table_SummaryPI[[#This Row],[MeasureCost]],0)","v":0},{"$f":"IF(Table_SummaryPI[[#This Row],[kWhSavings]]<>\"\",Table_SummaryPI[[#This Row],[kWhSavings]],0)","v":0},{"$f":"IF(Table_SummaryPI[[#This Row],[DemandSavingskW]]<>\"\",Table_SummaryPI[[#This Row],[DemandSavingskW]],0)","v":0}]
[{"$f":"Table_SummaryPI[[#This Row],[Line No.]]","v":""},{"$f":"IF(Table_PrintPI[[#This Row],[Line No.]]=\"\",\"\",CONCATENATE(Table_PrintPI[[#This Row],[Line No.]],\" - \",Table_SummaryPI[[#This Row],[MeasureName]]))","v":""},{"$f":"IF(Table_SummaryPI[[#This Row],[Manufacturer]]<>\"\",CONCATENATE(Table_SummaryPI[[#This Row],[Manufacturer]],\"/\",Table_SummaryPI[[#This Row],[Model'#]]),\"\")","v":""},{"$f":"IF(Table_SummaryPI[[#This Row],[Serial'#]]<>\"\",Table_SummaryPI[[#This Row],[Serial'#]],\"\")","v":""},{"$f":"IF(Table_SummaryPI[[#This Row],[Quantity]]<>\"\",Table_SummaryPI[[#This Row],[Quantity]],\"\")","v":""},{"$f":"IF(Table_SummaryPI[[#This Row],[BaselinekWh]]<>\"\",Table_SummaryPI[[#This Row],[BaselinekWh]],\"\")","v":""},{"$f":"IF(Table_SummaryPI[[#This Row],[BaselinekW]]<>\"\",Table_SummaryPI[[#This Row],[BaselinekW]],\"\")","v":""},{"$f":"IF(Table_SummaryPI[[#This Row],[ProposedkWh]]<>\"\",Table_SummaryPI[[#This Row],[ProposedkWh]],\"\")","v":""},{"$f":"IF(Table_SummaryPI[[#This Row],[ProposedkW]]<>\"\",Table_SummaryPI[[#This Row],[ProposedkW]],\"\")","v":""},{"$f":"IF(Table_SummaryPI[[#This Row],[Notes]]<>\"\",Table_SummaryPI[[#This Row],[Notes]],\"\")","v":""},{"$f":"IF(Table_SummaryPI[[#This Row],[Incentive_Customer]]<>\"\",Table_SummaryPI[[#This Row],[Incentive_Customer]],0)","v":0},{"$f":"IF(Table_SummaryPI[[#This Row],[MeasureCost]]<>\"\",Table_SummaryPI[[#This Row],[MeasureCost]],0)","v":0},{"$f":"IF(Table_SummaryPI[[#This Row],[kWhSavings]]<>\"\",Table_SummaryPI[[#This Row],[kWhSavings]],0)","v":0},{"$f":"IF(Table_SummaryPI[[#This Row],[DemandSavingskW]]<>\"\",Table_SummaryPI[[#This Row],[DemandSavingskW]],0)","v":0}]
[{"$f":"Table_SummaryPI[[#This Row],[Line No.]]","v":""},{"$f":"IF(Table_PrintPI[[#This Row],[Line No.]]=\"\",\"\",CONCATENATE(Table_PrintPI[[#This Row],[Line No.]],\" - \",Table_SummaryPI[[#This Row],[MeasureName]]))","v":""},{"$f":"IF(Table_SummaryPI[[#This Row],[Manufacturer]]<>\"\",CONCATENATE(Table_SummaryPI[[#This Row],[Manufacturer]],\"/\",Table_SummaryPI[[#This Row],[Model'#]]),\"\")","v":""},{"$f":"IF(Table_SummaryPI[[#This Row],[Serial'#]]<>\"\",Table_SummaryPI[[#This Row],[Serial'#]],\"\")","v":""},{"$f":"IF(Table_SummaryPI[[#This Row],[Quantity]]<>\"\",Table_SummaryPI[[#This Row],[Quantity]],\"\")","v":""},{"$f":"IF(Table_SummaryPI[[#This Row],[BaselinekWh]]<>\"\",Table_SummaryPI[[#This Row],[BaselinekWh]],\"\")","v":""},{"$f":"IF(Table_SummaryPI[[#This Row],[BaselinekW]]<>\"\",Table_SummaryPI[[#This Row],[BaselinekW]],\"\")","v":""},{"$f":"IF(Table_SummaryPI[[#This Row],[ProposedkWh]]<>\"\",Table_SummaryPI[[#This Row],[ProposedkWh]],\"\")","v":""},{"$f":"IF(Table_SummaryPI[[#This Row],[ProposedkW]]<>\"\",Table_SummaryPI[[#This Row],[ProposedkW]],\"\")","v":""},{"$f":"IF(Table_SummaryPI[[#This Row],[Notes]]<>\"\",Table_SummaryPI[[#This Row],[Notes]],\"\")","v":""},{"$f":"IF(Table_SummaryPI[[#This Row],[Incentive_Customer]]<>\"\",Table_SummaryPI[[#This Row],[Incentive_Customer]],0)","v":0},{"$f":"IF(Table_SummaryPI[[#This Row],[MeasureCost]]<>\"\",Table_SummaryPI[[#This Row],[MeasureCost]],0)","v":0},{"$f":"IF(Table_SummaryPI[[#This Row],[kWhSavings]]<>\"\",Table_SummaryPI[[#This Row],[kWhSavings]],0)","v":0},{"$f":"IF(Table_SummaryPI[[#This Row],[DemandSavingskW]]<>\"\",Table_SummaryPI[[#This Row],[DemandSavingskW]],0)","v":0}]
[{"$f":"Table_SummaryPI[[#This Row],[Line No.]]","v":""},{"$f":"IF(Table_PrintPI[[#This Row],[Line No.]]=\"\",\"\",CONCATENATE(Table_PrintPI[[#This Row],[Line No.]],\" - \",Table_SummaryPI[[#This Row],[MeasureName]]))","v":""},{"$f":"IF(Table_SummaryPI[[#This Row],[Manufacturer]]<>\"\",CONCATENATE(Table_SummaryPI[[#This Row],[Manufacturer]],\"/\",Table_SummaryPI[[#This Row],[Model'#]]),\"\")","v":""},{"$f":"IF(Table_SummaryPI[[#This Row],[Serial'#]]<>\"\",Table_SummaryPI[[#This Row],[Serial'#]],\"\")","v":""},{"$f":"IF(Table_SummaryPI[[#This Row],[Quantity]]<>\"\",Table_SummaryPI[[#This Row],[Quantity]],\"\")","v":""},{"$f":"IF(Table_SummaryPI[[#This Row],[BaselinekWh]]<>\"\",Table_SummaryPI[[#This Row],[BaselinekWh]],\"\")","v":""},{"$f":"IF(Table_SummaryPI[[#This Row],[BaselinekW]]<>\"\",Table_SummaryPI[[#This Row],[BaselinekW]],\"\")","v":""},{"$f":"IF(Table_SummaryPI[[#This Row],[ProposedkWh]]<>\"\",Table_SummaryPI[[#This Row],[ProposedkWh]],\"\")","v":""},{"$f":"IF(Table_SummaryPI[[#This Row],[ProposedkW]]<>\"\",Table_SummaryPI[[#This Row],[ProposedkW]],\"\")","v":""},{"$f":"IF(Table_SummaryPI[[#This Row],[Notes]]<>\"\",Table_SummaryPI[[#This Row],[Notes]],\"\")","v":""},{"$f":"IF(Table_SummaryPI[[#This Row],[Incentive_Customer]]<>\"\",Table_SummaryPI[[#This Row],[Incentive_Customer]],0)","v":0},{"$f":"IF(Table_SummaryPI[[#This Row],[MeasureCost]]<>\"\",Table_SummaryPI[[#This Row],[MeasureCost]],0)","v":0},{"$f":"IF(Table_SummaryPI[[#This Row],[kWhSavings]]<>\"\",Table_SummaryPI[[#This Row],[kWhSavings]],0)","v":0},{"$f":"IF(Table_SummaryPI[[#This Row],[DemandSavingskW]]<>\"\",Table_SummaryPI[[#This Row],[DemandSavingskW]],0)","v":0}]
[{"$f":"Table_SummaryPI[[#This Row],[Line No.]]","v":""},{"$f":"IF(Table_PrintPI[[#This Row],[Line No.]]=\"\",\"\",CONCATENATE(Table_PrintPI[[#This Row],[Line No.]],\" - \",Table_SummaryPI[[#This Row],[MeasureName]]))","v":""},{"$f":"IF(Table_SummaryPI[[#This Row],[Manufacturer]]<>\"\",CONCATENATE(Table_SummaryPI[[#This Row],[Manufacturer]],\"/\",Table_SummaryPI[[#This Row],[Model'#]]),\"\")","v":""},{"$f":"IF(Table_SummaryPI[[#This Row],[Serial'#]]<>\"\",Table_SummaryPI[[#This Row],[Serial'#]],\"\")","v":""},{"$f":"IF(Table_SummaryPI[[#This Row],[Quantity]]<>\"\",Table_SummaryPI[[#This Row],[Quantity]],\"\")","v":""},{"$f":"IF(Table_SummaryPI[[#This Row],[BaselinekWh]]<>\"\",Table_SummaryPI[[#This Row],[BaselinekWh]],\"\")","v":""},{"$f":"IF(Table_SummaryPI[[#This Row],[BaselinekW]]<>\"\",Table_SummaryPI[[#This Row],[BaselinekW]],\"\")","v":""},{"$f":"IF(Table_SummaryPI[[#This Row],[ProposedkWh]]<>\"\",Table_SummaryPI[[#This Row],[ProposedkWh]],\"\")","v":""},{"$f":"IF(Table_SummaryPI[[#This Row],[ProposedkW]]<>\"\",Table_SummaryPI[[#This Row],[ProposedkW]],\"\")","v":""},{"$f":"IF(Table_SummaryPI[[#This Row],[Notes]]<>\"\",Table_SummaryPI[[#This Row],[Notes]],\"\")","v":""},{"$f":"IF(Table_SummaryPI[[#This Row],[Incentive_Customer]]<>\"\",Table_SummaryPI[[#This Row],[Incentive_Customer]],0)","v":0},{"$f":"IF(Table_SummaryPI[[#This Row],[MeasureCost]]<>\"\",Table_SummaryPI[[#This Row],[MeasureCost]],0)","v":0},{"$f":"IF(Table_SummaryPI[[#This Row],[kWhSavings]]<>\"\",Table_SummaryPI[[#This Row],[kWhSavings]],0)","v":0},{"$f":"IF(Table_SummaryPI[[#This Row],[DemandSavingskW]]<>\"\",Table_SummaryPI[[#This Row],[DemandSavingskW]],0)","v":0}]
[{"$f":"Table_SummaryPI[[#This Row],[Line No.]]","v":""},{"$f":"IF(Table_PrintPI[[#This Row],[Line No.]]=\"\",\"\",CONCATENATE(Table_PrintPI[[#This Row],[Line No.]],\" - \",Table_SummaryPI[[#This Row],[MeasureName]]))","v":""},{"$f":"IF(Table_SummaryPI[[#This Row],[Manufacturer]]<>\"\",CONCATENATE(Table_SummaryPI[[#This Row],[Manufacturer]],\"/\",Table_SummaryPI[[#This Row],[Model'#]]),\"\")","v":""},{"$f":"IF(Table_SummaryPI[[#This Row],[Serial'#]]<>\"\",Table_SummaryPI[[#This Row],[Serial'#]],\"\")","v":""},{"$f":"IF(Table_SummaryPI[[#This Row],[Quantity]]<>\"\",Table_SummaryPI[[#This Row],[Quantity]],\"\")","v":""},{"$f":"IF(Table_SummaryPI[[#This Row],[BaselinekWh]]<>\"\",Table_SummaryPI[[#This Row],[BaselinekWh]],\"\")","v":""},{"$f":"IF(Table_SummaryPI[[#This Row],[BaselinekW]]<>\"\",Table_SummaryPI[[#This Row],[BaselinekW]],\"\")","v":""},{"$f":"IF(Table_SummaryPI[[#This Row],[ProposedkWh]]<>\"\",Table_SummaryPI[[#This Row],[ProposedkWh]],\"\")","v":""},{"$f":"IF(Table_SummaryPI[[#This Row],[ProposedkW]]<>\"\",Table_SummaryPI[[#This Row],[ProposedkW]],\"\")","v":""},{"$f":"IF(Table_SummaryPI[[#This Row],[Notes]]<>\"\",Table_SummaryPI[[#This Row],[Notes]],\"\")","v":""},{"$f":"IF(Table_SummaryPI[[#This Row],[Incentive_Customer]]<>\"\",Table_SummaryPI[[#This Row],[Incentive_Customer]],0)","v":0},{"$f":"IF(Table_SummaryPI[[#This Row],[MeasureCost]]<>\"\",Table_SummaryPI[[#This Row],[MeasureCost]],0)","v":0},{"$f":"IF(Table_SummaryPI[[#This Row],[kWhSavings]]<>\"\",Table_SummaryPI[[#This Row],[kWhSavings]],0)","v":0},{"$f":"IF(Table_SummaryPI[[#This Row],[DemandSavingskW]]<>\"\",Table_SummaryPI[[#This Row],[DemandSavingskW]],0)","v":0}]
[{"$f":"Table_SummaryPI[[#This Row],[Line No.]]","v":""},{"$f":"IF(Table_PrintPI[[#This Row],[Line No.]]=\"\",\"\",CONCATENATE(Table_PrintPI[[#This Row],[Line No.]],\" - \",Table_SummaryPI[[#This Row],[MeasureName]]))","v":""},{"$f":"IF(Table_SummaryPI[[#This Row],[Manufacturer]]<>\"\",CONCATENATE(Table_SummaryPI[[#This Row],[Manufacturer]],\"/\",Table_SummaryPI[[#This Row],[Model'#]]),\"\")","v":""},{"$f":"IF(Table_SummaryPI[[#This Row],[Serial'#]]<>\"\",Table_SummaryPI[[#This Row],[Serial'#]],\"\")","v":""},{"$f":"IF(Table_SummaryPI[[#This Row],[Quantity]]<>\"\",Table_SummaryPI[[#This Row],[Quantity]],\"\")","v":""},{"$f":"IF(Table_SummaryPI[[#This Row],[BaselinekWh]]<>\"\",Table_SummaryPI[[#This Row],[BaselinekWh]],\"\")","v":""},{"$f":"IF(Table_SummaryPI[[#This Row],[BaselinekW]]<>\"\",Table_SummaryPI[[#This Row],[BaselinekW]],\"\")","v":""},{"$f":"IF(Table_SummaryPI[[#This Row],[ProposedkWh]]<>\"\",Table_SummaryPI[[#This Row],[ProposedkWh]],\"\")","v":""},{"$f":"IF(Table_SummaryPI[[#This Row],[ProposedkW]]<>\"\",Table_SummaryPI[[#This Row],[ProposedkW]],\"\")","v":""},{"$f":"IF(Table_SummaryPI[[#This Row],[Notes]]<>\"\",Table_SummaryPI[[#This Row],[Notes]],\"\")","v":""},{"$f":"IF(Table_SummaryPI[[#This Row],[Incentive_Customer]]<>\"\",Table_SummaryPI[[#This Row],[Incentive_Customer]],0)","v":0},{"$f":"IF(Table_SummaryPI[[#This Row],[MeasureCost]]<>\"\",Table_SummaryPI[[#This Row],[MeasureCost]],0)","v":0},{"$f":"IF(Table_SummaryPI[[#This Row],[kWhSavings]]<>\"\",Table_SummaryPI[[#This Row],[kWhSavings]],0)","v":0},{"$f":"IF(Table_SummaryPI[[#This Row],[DemandSavingskW]]<>\"\",Table_SummaryPI[[#This Row],[DemandSavingskW]],0)","v":0}]
[{"$f":"Table_SummaryPI[[#This Row],[Line No.]]","v":""},{"$f":"IF(Table_PrintPI[[#This Row],[Line No.]]=\"\",\"\",CONCATENATE(Table_PrintPI[[#This Row],[Line No.]],\" - \",Table_SummaryPI[[#This Row],[MeasureName]]))","v":""},{"$f":"IF(Table_SummaryPI[[#This Row],[Manufacturer]]<>\"\",CONCATENATE(Table_SummaryPI[[#This Row],[Manufacturer]],\"/\",Table_SummaryPI[[#This Row],[Model'#]]),\"\")","v":""},{"$f":"IF(Table_SummaryPI[[#This Row],[Serial'#]]<>\"\",Table_SummaryPI[[#This Row],[Serial'#]],\"\")","v":""},{"$f":"IF(Table_SummaryPI[[#This Row],[Quantity]]<>\"\",Table_SummaryPI[[#This Row],[Quantity]],\"\")","v":""},{"$f":"IF(Table_SummaryPI[[#This Row],[BaselinekWh]]<>\"\",Table_SummaryPI[[#This Row],[BaselinekWh]],\"\")","v":""},{"$f":"IF(Table_SummaryPI[[#This Row],[BaselinekW]]<>\"\",Table_SummaryPI[[#This Row],[BaselinekW]],\"\")","v":""},{"$f":"IF(Table_SummaryPI[[#This Row],[ProposedkWh]]<>\"\",Table_SummaryPI[[#This Row],[ProposedkWh]],\"\")","v":""},{"$f":"IF(Table_SummaryPI[[#This Row],[ProposedkW]]<>\"\",Table_SummaryPI[[#This Row],[ProposedkW]],\"\")","v":""},{"$f":"IF(Table_SummaryPI[[#This Row],[Notes]]<>\"\",Table_SummaryPI[[#This Row],[Notes]],\"\")","v":""},{"$f":"IF(Table_SummaryPI[[#This Row],[Incentive_Customer]]<>\"\",Table_SummaryPI[[#This Row],[Incentive_Customer]],0)","v":0},{"$f":"IF(Table_SummaryPI[[#This Row],[MeasureCost]]<>\"\",Table_SummaryPI[[#This Row],[MeasureCost]],0)","v":0},{"$f":"IF(Table_SummaryPI[[#This Row],[kWhSavings]]<>\"\",Table_SummaryPI[[#This Row],[kWhSavings]],0)","v":0},{"$f":"IF(Table_SummaryPI[[#This Row],[DemandSavingskW]]<>\"\",Table_SummaryPI[[#This Row],[DemandSavingskW]],0)","v":0}]
[{"$f":"Table_SummaryPI[[#This Row],[Line No.]]","v":""},{"$f":"IF(Table_PrintPI[[#This Row],[Line No.]]=\"\",\"\",CONCATENATE(Table_PrintPI[[#This Row],[Line No.]],\" - \",Table_SummaryPI[[#This Row],[MeasureName]]))","v":""},{"$f":"IF(Table_SummaryPI[[#This Row],[Manufacturer]]<>\"\",CONCATENATE(Table_SummaryPI[[#This Row],[Manufacturer]],\"/\",Table_SummaryPI[[#This Row],[Model'#]]),\"\")","v":""},{"$f":"IF(Table_SummaryPI[[#This Row],[Serial'#]]<>\"\",Table_SummaryPI[[#This Row],[Serial'#]],\"\")","v":""},{"$f":"IF(Table_SummaryPI[[#This Row],[Quantity]]<>\"\",Table_SummaryPI[[#This Row],[Quantity]],\"\")","v":""},{"$f":"IF(Table_SummaryPI[[#This Row],[BaselinekWh]]<>\"\",Table_SummaryPI[[#This Row],[BaselinekWh]],\"\")","v":""},{"$f":"IF(Table_SummaryPI[[#This Row],[BaselinekW]]<>\"\",Table_SummaryPI[[#This Row],[BaselinekW]],\"\")","v":""},{"$f":"IF(Table_SummaryPI[[#This Row],[ProposedkWh]]<>\"\",Table_SummaryPI[[#This Row],[ProposedkWh]],\"\")","v":""},{"$f":"IF(Table_SummaryPI[[#This Row],[ProposedkW]]<>\"\",Table_SummaryPI[[#This Row],[ProposedkW]],\"\")","v":""},{"$f":"IF(Table_SummaryPI[[#This Row],[Notes]]<>\"\",Table_SummaryPI[[#This Row],[Notes]],\"\")","v":""},{"$f":"IF(Table_SummaryPI[[#This Row],[Incentive_Customer]]<>\"\",Table_SummaryPI[[#This Row],[Incentive_Customer]],0)","v":0},{"$f":"IF(Table_SummaryPI[[#This Row],[MeasureCost]]<>\"\",Table_SummaryPI[[#This Row],[MeasureCost]],0)","v":0},{"$f":"IF(Table_SummaryPI[[#This Row],[kWhSavings]]<>\"\",Table_SummaryPI[[#This Row],[kWhSavings]],0)","v":0},{"$f":"IF(Table_SummaryPI[[#This Row],[DemandSavingskW]]<>\"\",Table_SummaryPI[[#This Row],[DemandSavingskW]],0)","v":0}]
[{"$f":"Table_SummaryPI[[#This Row],[Line No.]]","v":""},{"$f":"IF(Table_PrintPI[[#This Row],[Line No.]]=\"\",\"\",CONCATENATE(Table_PrintPI[[#This Row],[Line No.]],\" - \",Table_SummaryPI[[#This Row],[MeasureName]]))","v":""},{"$f":"IF(Table_SummaryPI[[#This Row],[Manufacturer]]<>\"\",CONCATENATE(Table_SummaryPI[[#This Row],[Manufacturer]],\"/\",Table_SummaryPI[[#This Row],[Model'#]]),\"\")","v":""},{"$f":"IF(Table_SummaryPI[[#This Row],[Serial'#]]<>\"\",Table_SummaryPI[[#This Row],[Serial'#]],\"\")","v":""},{"$f":"IF(Table_SummaryPI[[#This Row],[Quantity]]<>\"\",Table_SummaryPI[[#This Row],[Quantity]],\"\")","v":""},{"$f":"IF(Table_SummaryPI[[#This Row],[BaselinekWh]]<>\"\",Table_SummaryPI[[#This Row],[BaselinekWh]],\"\")","v":""},{"$f":"IF(Table_SummaryPI[[#This Row],[BaselinekW]]<>\"\",Table_SummaryPI[[#This Row],[BaselinekW]],\"\")","v":""},{"$f":"IF(Table_SummaryPI[[#This Row],[ProposedkWh]]<>\"\",Table_SummaryPI[[#This Row],[ProposedkWh]],\"\")","v":""},{"$f":"IF(Table_SummaryPI[[#This Row],[ProposedkW]]<>\"\",Table_SummaryPI[[#This Row],[ProposedkW]],\"\")","v":""},{"$f":"IF(Table_SummaryPI[[#This Row],[Notes]]<>\"\",Table_SummaryPI[[#This Row],[Notes]],\"\")","v":""},{"$f":"IF(Table_SummaryPI[[#This Row],[Incentive_Customer]]<>\"\",Table_SummaryPI[[#This Row],[Incentive_Customer]],0)","v":0},{"$f":"IF(Table_SummaryPI[[#This Row],[MeasureCost]]<>\"\",Table_SummaryPI[[#This Row],[MeasureCost]],0)","v":0},{"$f":"IF(Table_SummaryPI[[#This Row],[kWhSavings]]<>\"\",Table_SummaryPI[[#This Row],[kWhSavings]],0)","v":0},{"$f":"IF(Table_SummaryPI[[#This Row],[DemandSavingskW]]<>\"\",Table_SummaryPI[[#This Row],[DemandSavingskW]],0)","v":0}]
[{"$f":"Table_SummaryPI[[#This Row],[Line No.]]","v":""},{"$f":"IF(Table_PrintPI[[#This Row],[Line No.]]=\"\",\"\",CONCATENATE(Table_PrintPI[[#This Row],[Line No.]],\" - \",Table_SummaryPI[[#This Row],[MeasureName]]))","v":""},{"$f":"IF(Table_SummaryPI[[#This Row],[Manufacturer]]<>\"\",CONCATENATE(Table_SummaryPI[[#This Row],[Manufacturer]],\"/\",Table_SummaryPI[[#This Row],[Model'#]]),\"\")","v":""},{"$f":"IF(Table_SummaryPI[[#This Row],[Serial'#]]<>\"\",Table_SummaryPI[[#This Row],[Serial'#]],\"\")","v":""},{"$f":"IF(Table_SummaryPI[[#This Row],[Quantity]]<>\"\",Table_SummaryPI[[#This Row],[Quantity]],\"\")","v":""},{"$f":"IF(Table_SummaryPI[[#This Row],[BaselinekWh]]<>\"\",Table_SummaryPI[[#This Row],[BaselinekWh]],\"\")","v":""},{"$f":"IF(Table_SummaryPI[[#This Row],[BaselinekW]]<>\"\",Table_SummaryPI[[#This Row],[BaselinekW]],\"\")","v":""},{"$f":"IF(Table_SummaryPI[[#This Row],[ProposedkWh]]<>\"\",Table_SummaryPI[[#This Row],[ProposedkWh]],\"\")","v":""},{"$f":"IF(Table_SummaryPI[[#This Row],[ProposedkW]]<>\"\",Table_SummaryPI[[#This Row],[ProposedkW]],\"\")","v":""},{"$f":"IF(Table_SummaryPI[[#This Row],[Notes]]<>\"\",Table_SummaryPI[[#This Row],[Notes]],\"\")","v":""},{"$f":"IF(Table_SummaryPI[[#This Row],[Incentive_Customer]]<>\"\",Table_SummaryPI[[#This Row],[Incentive_Customer]],0)","v":0},{"$f":"IF(Table_SummaryPI[[#This Row],[MeasureCost]]<>\"\",Table_SummaryPI[[#This Row],[MeasureCost]],0)","v":0},{"$f":"IF(Table_SummaryPI[[#This Row],[kWhSavings]]<>\"\",Table_SummaryPI[[#This Row],[kWhSavings]],0)","v":0},{"$f":"IF(Table_SummaryPI[[#This Row],[DemandSavingskW]]<>\"\",Table_SummaryPI[[#This Row],[DemandSavingskW]],0)","v":0}]
[{"$f":"Table_SummaryPI[[#This Row],[Line No.]]","v":""},{"$f":"IF(Table_PrintPI[[#This Row],[Line No.]]=\"\",\"\",CONCATENATE(Table_PrintPI[[#This Row],[Line No.]],\" - \",Table_SummaryPI[[#This Row],[MeasureName]]))","v":""},{"$f":"IF(Table_SummaryPI[[#This Row],[Manufacturer]]<>\"\",CONCATENATE(Table_SummaryPI[[#This Row],[Manufacturer]],\"/\",Table_SummaryPI[[#This Row],[Model'#]]),\"\")","v":""},{"$f":"IF(Table_SummaryPI[[#This Row],[Serial'#]]<>\"\",Table_SummaryPI[[#This Row],[Serial'#]],\"\")","v":""},{"$f":"IF(Table_SummaryPI[[#This Row],[Quantity]]<>\"\",Table_SummaryPI[[#This Row],[Quantity]],\"\")","v":""},{"$f":"IF(Table_SummaryPI[[#This Row],[BaselinekWh]]<>\"\",Table_SummaryPI[[#This Row],[BaselinekWh]],\"\")","v":""},{"$f":"IF(Table_SummaryPI[[#This Row],[BaselinekW]]<>\"\",Table_SummaryPI[[#This Row],[BaselinekW]],\"\")","v":""},{"$f":"IF(Table_SummaryPI[[#This Row],[ProposedkWh]]<>\"\",Table_SummaryPI[[#This Row],[ProposedkWh]],\"\")","v":""},{"$f":"IF(Table_SummaryPI[[#This Row],[ProposedkW]]<>\"\",Table_SummaryPI[[#This Row],[ProposedkW]],\"\")","v":""},{"$f":"IF(Table_SummaryPI[[#This Row],[Notes]]<>\"\",Table_SummaryPI[[#This Row],[Notes]],\"\")","v":""},{"$f":"IF(Table_SummaryPI[[#This Row],[Incentive_Customer]]<>\"\",Table_SummaryPI[[#This Row],[Incentive_Customer]],0)","v":0},{"$f":"IF(Table_SummaryPI[[#This Row],[MeasureCost]]<>\"\",Table_SummaryPI[[#This Row],[MeasureCost]],0)","v":0},{"$f":"IF(Table_SummaryPI[[#This Row],[kWhSavings]]<>\"\",Table_SummaryPI[[#This Row],[kWhSavings]],0)","v":0},{"$f":"IF(Table_SummaryPI[[#This Row],[DemandSavingskW]]<>\"\",Table_SummaryPI[[#This Row],[DemandSavingskW]],0)","v":0}]
[{"$f":"Table_SummaryPI[[#This Row],[Line No.]]","v":""},{"$f":"IF(Table_PrintPI[[#This Row],[Line No.]]=\"\",\"\",CONCATENATE(Table_PrintPI[[#This Row],[Line No.]],\" - \",Table_SummaryPI[[#This Row],[MeasureName]]))","v":""},{"$f":"IF(Table_SummaryPI[[#This Row],[Manufacturer]]<>\"\",CONCATENATE(Table_SummaryPI[[#This Row],[Manufacturer]],\"/\",Table_SummaryPI[[#This Row],[Model'#]]),\"\")","v":""},{"$f":"IF(Table_SummaryPI[[#This Row],[Serial'#]]<>\"\",Table_SummaryPI[[#This Row],[Serial'#]],\"\")","v":""},{"$f":"IF(Table_SummaryPI[[#This Row],[Quantity]]<>\"\",Table_SummaryPI[[#This Row],[Quantity]],\"\")","v":""},{"$f":"IF(Table_SummaryPI[[#This Row],[BaselinekWh]]<>\"\",Table_SummaryPI[[#This Row],[BaselinekWh]],\"\")","v":""},{"$f":"IF(Table_SummaryPI[[#This Row],[BaselinekW]]<>\"\",Table_SummaryPI[[#This Row],[BaselinekW]],\"\")","v":""},{"$f":"IF(Table_SummaryPI[[#This Row],[ProposedkWh]]<>\"\",Table_SummaryPI[[#This Row],[ProposedkWh]],\"\")","v":""},{"$f":"IF(Table_SummaryPI[[#This Row],[ProposedkW]]<>\"\",Table_SummaryPI[[#This Row],[ProposedkW]],\"\")","v":""},{"$f":"IF(Table_SummaryPI[[#This Row],[Notes]]<>\"\",Table_SummaryPI[[#This Row],[Notes]],\"\")","v":""},{"$f":"IF(Table_SummaryPI[[#This Row],[Incentive_Customer]]<>\"\",Table_SummaryPI[[#This Row],[Incentive_Customer]],0)","v":0},{"$f":"IF(Table_SummaryPI[[#This Row],[MeasureCost]]<>\"\",Table_SummaryPI[[#This Row],[MeasureCost]],0)","v":0},{"$f":"IF(Table_SummaryPI[[#This Row],[kWhSavings]]<>\"\",Table_SummaryPI[[#This Row],[kWhSavings]],0)","v":0},{"$f":"IF(Table_SummaryPI[[#This Row],[DemandSavingskW]]<>\"\",Table_SummaryPI[[#This Row],[DemandSavingskW]],0)","v":0}]
[{"$f":"Table_SummaryPI[[#This Row],[Line No.]]","v":""},{"$f":"IF(Table_PrintPI[[#This Row],[Line No.]]=\"\",\"\",CONCATENATE(Table_PrintPI[[#This Row],[Line No.]],\" - \",Table_SummaryPI[[#This Row],[MeasureName]]))","v":""},{"$f":"IF(Table_SummaryPI[[#This Row],[Manufacturer]]<>\"\",CONCATENATE(Table_SummaryPI[[#This Row],[Manufacturer]],\"/\",Table_SummaryPI[[#This Row],[Model'#]]),\"\")","v":""},{"$f":"IF(Table_SummaryPI[[#This Row],[Serial'#]]<>\"\",Table_SummaryPI[[#This Row],[Serial'#]],\"\")","v":""},{"$f":"IF(Table_SummaryPI[[#This Row],[Quantity]]<>\"\",Table_SummaryPI[[#This Row],[Quantity]],\"\")","v":""},{"$f":"IF(Table_SummaryPI[[#This Row],[BaselinekWh]]<>\"\",Table_SummaryPI[[#This Row],[BaselinekWh]],\"\")","v":""},{"$f":"IF(Table_SummaryPI[[#This Row],[BaselinekW]]<>\"\",Table_SummaryPI[[#This Row],[BaselinekW]],\"\")","v":""},{"$f":"IF(Table_SummaryPI[[#This Row],[ProposedkWh]]<>\"\",Table_SummaryPI[[#This Row],[ProposedkWh]],\"\")","v":""},{"$f":"IF(Table_SummaryPI[[#This Row],[ProposedkW]]<>\"\",Table_SummaryPI[[#This Row],[ProposedkW]],\"\")","v":""},{"$f":"IF(Table_SummaryPI[[#This Row],[Notes]]<>\"\",Table_SummaryPI[[#This Row],[Notes]],\"\")","v":""},{"$f":"IF(Table_SummaryPI[[#This Row],[Incentive_Customer]]<>\"\",Table_SummaryPI[[#This Row],[Incentive_Customer]],0)","v":0},{"$f":"IF(Table_SummaryPI[[#This Row],[MeasureCost]]<>\"\",Table_SummaryPI[[#This Row],[MeasureCost]],0)","v":0},{"$f":"IF(Table_SummaryPI[[#This Row],[kWhSavings]]<>\"\",Table_SummaryPI[[#This Row],[kWhSavings]],0)","v":0},{"$f":"IF(Table_SummaryPI[[#This Row],[DemandSavingskW]]<>\"\",Table_SummaryPI[[#This Row],[DemandSavingskW]],0)","v":0}]
[{"$f":"Table_SummaryPI[[#This Row],[Line No.]]","v":""},{"$f":"IF(Table_PrintPI[[#This Row],[Line No.]]=\"\",\"\",CONCATENATE(Table_PrintPI[[#This Row],[Line No.]],\" - \",Table_SummaryPI[[#This Row],[MeasureName]]))","v":""},{"$f":"IF(Table_SummaryPI[[#This Row],[Manufacturer]]<>\"\",CONCATENATE(Table_SummaryPI[[#This Row],[Manufacturer]],\"/\",Table_SummaryPI[[#This Row],[Model'#]]),\"\")","v":""},{"$f":"IF(Table_SummaryPI[[#This Row],[Serial'#]]<>\"\",Table_SummaryPI[[#This Row],[Serial'#]],\"\")","v":""},{"$f":"IF(Table_SummaryPI[[#This Row],[Quantity]]<>\"\",Table_SummaryPI[[#This Row],[Quantity]],\"\")","v":""},{"$f":"IF(Table_SummaryPI[[#This Row],[BaselinekWh]]<>\"\",Table_SummaryPI[[#This Row],[BaselinekWh]],\"\")","v":""},{"$f":"IF(Table_SummaryPI[[#This Row],[BaselinekW]]<>\"\",Table_SummaryPI[[#This Row],[BaselinekW]],\"\")","v":""},{"$f":"IF(Table_SummaryPI[[#This Row],[ProposedkWh]]<>\"\",Table_SummaryPI[[#This Row],[ProposedkWh]],\"\")","v":""},{"$f":"IF(Table_SummaryPI[[#This Row],[ProposedkW]]<>\"\",Table_SummaryPI[[#This Row],[ProposedkW]],\"\")","v":""},{"$f":"IF(Table_SummaryPI[[#This Row],[Notes]]<>\"\",Table_SummaryPI[[#This Row],[Notes]],\"\")","v":""},{"$f":"IF(Table_SummaryPI[[#This Row],[Incentive_Customer]]<>\"\",Table_SummaryPI[[#This Row],[Incentive_Customer]],0)","v":0},{"$f":"IF(Table_SummaryPI[[#This Row],[MeasureCost]]<>\"\",Table_SummaryPI[[#This Row],[MeasureCost]],0)","v":0},{"$f":"IF(Table_SummaryPI[[#This Row],[kWhSavings]]<>\"\",Table_SummaryPI[[#This Row],[kWhSavings]],0)","v":0},{"$f":"IF(Table_SummaryPI[[#This Row],[DemandSavingskW]]<>\"\",Table_SummaryPI[[#This Row],[DemandSavingskW]],0)","v":0}]
[{"$f":"Table_SummaryPI[[#This Row],[Line No.]]","v":""},{"$f":"IF(Table_PrintPI[[#This Row],[Line No.]]=\"\",\"\",CONCATENATE(Table_PrintPI[[#This Row],[Line No.]],\" - \",Table_SummaryPI[[#This Row],[MeasureName]]))","v":""},{"$f":"IF(Table_SummaryPI[[#This Row],[Manufacturer]]<>\"\",CONCATENATE(Table_SummaryPI[[#This Row],[Manufacturer]],\"/\",Table_SummaryPI[[#This Row],[Model'#]]),\"\")","v":""},{"$f":"IF(Table_SummaryPI[[#This Row],[Serial'#]]<>\"\",Table_SummaryPI[[#This Row],[Serial'#]],\"\")","v":""},{"$f":"IF(Table_SummaryPI[[#This Row],[Quantity]]<>\"\",Table_SummaryPI[[#This Row],[Quantity]],\"\")","v":""},{"$f":"IF(Table_SummaryPI[[#This Row],[BaselinekWh]]<>\"\",Table_SummaryPI[[#This Row],[BaselinekWh]],\"\")","v":""},{"$f":"IF(Table_SummaryPI[[#This Row],[BaselinekW]]<>\"\",Table_SummaryPI[[#This Row],[BaselinekW]],\"\")","v":""},{"$f":"IF(Table_SummaryPI[[#This Row],[ProposedkWh]]<>\"\",Table_SummaryPI[[#This Row],[ProposedkWh]],\"\")","v":""},{"$f":"IF(Table_SummaryPI[[#This Row],[ProposedkW]]<>\"\",Table_SummaryPI[[#This Row],[ProposedkW]],\"\")","v":""},{"$f":"IF(Table_SummaryPI[[#This Row],[Notes]]<>\"\",Table_SummaryPI[[#This Row],[Notes]],\"\")","v":""},{"$f":"IF(Table_SummaryPI[[#This Row],[Incentive_Customer]]<>\"\",Table_SummaryPI[[#This Row],[Incentive_Customer]],0)","v":0},{"$f":"IF(Table_SummaryPI[[#This Row],[MeasureCost]]<>\"\",Table_SummaryPI[[#This Row],[MeasureCost]],0)","v":0},{"$f":"IF(Table_SummaryPI[[#This Row],[kWhSavings]]<>\"\",Table_SummaryPI[[#This Row],[kWhSavings]],0)","v":0},{"$f":"IF(Table_SummaryPI[[#This Row],[DemandSavingskW]]<>\"\",Table_SummaryPI[[#This Row],[DemandSavingskW]],0)","v":0}]
[{"$f":"Table_SummaryPI[[#This Row],[Line No.]]","v":""},{"$f":"IF(Table_PrintPI[[#This Row],[Line No.]]=\"\",\"\",CONCATENATE(Table_PrintPI[[#This Row],[Line No.]],\" - \",Table_SummaryPI[[#This Row],[MeasureName]]))","v":""},{"$f":"IF(Table_SummaryPI[[#This Row],[Manufacturer]]<>\"\",CONCATENATE(Table_SummaryPI[[#This Row],[Manufacturer]],\"/\",Table_SummaryPI[[#This Row],[Model'#]]),\"\")","v":""},{"$f":"IF(Table_SummaryPI[[#This Row],[Serial'#]]<>\"\",Table_SummaryPI[[#This Row],[Serial'#]],\"\")","v":""},{"$f":"IF(Table_SummaryPI[[#This Row],[Quantity]]<>\"\",Table_SummaryPI[[#This Row],[Quantity]],\"\")","v":""},{"$f":"IF(Table_SummaryPI[[#This Row],[BaselinekWh]]<>\"\",Table_SummaryPI[[#This Row],[BaselinekWh]],\"\")","v":""},{"$f":"IF(Table_SummaryPI[[#This Row],[BaselinekW]]<>\"\",Table_SummaryPI[[#This Row],[BaselinekW]],\"\")","v":""},{"$f":"IF(Table_SummaryPI[[#This Row],[ProposedkWh]]<>\"\",Table_SummaryPI[[#This Row],[ProposedkWh]],\"\")","v":""},{"$f":"IF(Table_SummaryPI[[#This Row],[ProposedkW]]<>\"\",Table_SummaryPI[[#This Row],[ProposedkW]],\"\")","v":""},{"$f":"IF(Table_SummaryPI[[#This Row],[Notes]]<>\"\",Table_SummaryPI[[#This Row],[Notes]],\"\")","v":""},{"$f":"IF(Table_SummaryPI[[#This Row],[Incentive_Customer]]<>\"\",Table_SummaryPI[[#This Row],[Incentive_Customer]],0)","v":0},{"$f":"IF(Table_SummaryPI[[#This Row],[MeasureCost]]<>\"\",Table_SummaryPI[[#This Row],[MeasureCost]],0)","v":0},{"$f":"IF(Table_SummaryPI[[#This Row],[kWhSavings]]<>\"\",Table_SummaryPI[[#This Row],[kWhSavings]],0)","v":0},{"$f":"IF(Table_SummaryPI[[#This Row],[DemandSavingskW]]<>\"\",Table_SummaryPI[[#This Row],[DemandSavingskW]],0)","v":0}]
[{"$f":"Table_SummaryPI[[#This Row],[Line No.]]","v":""},{"$f":"IF(Table_PrintPI[[#This Row],[Line No.]]=\"\",\"\",CONCATENATE(Table_PrintPI[[#This Row],[Line No.]],\" - \",Table_SummaryPI[[#This Row],[MeasureName]]))","v":""},{"$f":"IF(Table_SummaryPI[[#This Row],[Manufacturer]]<>\"\",CONCATENATE(Table_SummaryPI[[#This Row],[Manufacturer]],\"/\",Table_SummaryPI[[#This Row],[Model'#]]),\"\")","v":""},{"$f":"IF(Table_SummaryPI[[#This Row],[Serial'#]]<>\"\",Table_SummaryPI[[#This Row],[Serial'#]],\"\")","v":""},{"$f":"IF(Table_SummaryPI[[#This Row],[Quantity]]<>\"\",Table_SummaryPI[[#This Row],[Quantity]],\"\")","v":""},{"$f":"IF(Table_SummaryPI[[#This Row],[BaselinekWh]]<>\"\",Table_SummaryPI[[#This Row],[BaselinekWh]],\"\")","v":""},{"$f":"IF(Table_SummaryPI[[#This Row],[BaselinekW]]<>\"\",Table_SummaryPI[[#This Row],[BaselinekW]],\"\")","v":""},{"$f":"IF(Table_SummaryPI[[#This Row],[ProposedkWh]]<>\"\",Table_SummaryPI[[#This Row],[ProposedkWh]],\"\")","v":""},{"$f":"IF(Table_SummaryPI[[#This Row],[ProposedkW]]<>\"\",Table_SummaryPI[[#This Row],[ProposedkW]],\"\")","v":""},{"$f":"IF(Table_SummaryPI[[#This Row],[Notes]]<>\"\",Table_SummaryPI[[#This Row],[Notes]],\"\")","v":""},{"$f":"IF(Table_SummaryPI[[#This Row],[Incentive_Customer]]<>\"\",Table_SummaryPI[[#This Row],[Incentive_Customer]],0)","v":0},{"$f":"IF(Table_SummaryPI[[#This Row],[MeasureCost]]<>\"\",Table_SummaryPI[[#This Row],[MeasureCost]],0)","v":0},{"$f":"IF(Table_SummaryPI[[#This Row],[kWhSavings]]<>\"\",Table_SummaryPI[[#This Row],[kWhSavings]],0)","v":0},{"$f":"IF(Table_SummaryPI[[#This Row],[DemandSavingskW]]<>\"\",Table_SummaryPI[[#This Row],[DemandSavingskW]],0)","v":0}]
[{"$f":"Table_SummaryPI[[#This Row],[Line No.]]","v":""},{"$f":"IF(Table_PrintPI[[#This Row],[Line No.]]=\"\",\"\",CONCATENATE(Table_PrintPI[[#This Row],[Line No.]],\" - \",Table_SummaryPI[[#This Row],[MeasureName]]))","v":""},{"$f":"IF(Table_SummaryPI[[#This Row],[Manufacturer]]<>\"\",CONCATENATE(Table_SummaryPI[[#This Row],[Manufacturer]],\"/\",Table_SummaryPI[[#This Row],[Model'#]]),\"\")","v":""},{"$f":"IF(Table_SummaryPI[[#This Row],[Serial'#]]<>\"\",Table_SummaryPI[[#This Row],[Serial'#]],\"\")","v":""},{"$f":"IF(Table_SummaryPI[[#This Row],[Quantity]]<>\"\",Table_SummaryPI[[#This Row],[Quantity]],\"\")","v":""},{"$f":"IF(Table_SummaryPI[[#This Row],[BaselinekWh]]<>\"\",Table_SummaryPI[[#This Row],[BaselinekWh]],\"\")","v":""},{"$f":"IF(Table_SummaryPI[[#This Row],[BaselinekW]]<>\"\",Table_SummaryPI[[#This Row],[BaselinekW]],\"\")","v":""},{"$f":"IF(Table_SummaryPI[[#This Row],[ProposedkWh]]<>\"\",Table_SummaryPI[[#This Row],[ProposedkWh]],\"\")","v":""},{"$f":"IF(Table_SummaryPI[[#This Row],[ProposedkW]]<>\"\",Table_SummaryPI[[#This Row],[ProposedkW]],\"\")","v":""},{"$f":"IF(Table_SummaryPI[[#This Row],[Notes]]<>\"\",Table_SummaryPI[[#This Row],[Notes]],\"\")","v":""},{"$f":"IF(Table_SummaryPI[[#This Row],[Incentive_Customer]]<>\"\",Table_SummaryPI[[#This Row],[Incentive_Customer]],0)","v":0},{"$f":"IF(Table_SummaryPI[[#This Row],[MeasureCost]]<>\"\",Table_SummaryPI[[#This Row],[MeasureCost]],0)","v":0},{"$f":"IF(Table_SummaryPI[[#This Row],[kWhSavings]]<>\"\",Table_SummaryPI[[#This Row],[kWhSavings]],0)","v":0},{"$f":"IF(Table_SummaryPI[[#This Row],[DemandSavingskW]]<>\"\",Table_SummaryPI[[#This Row],[DemandSavingskW]],0)","v":0}]
[{"$f":"Table_SummaryPI[[#This Row],[Line No.]]","v":""},{"$f":"IF(Table_PrintPI[[#This Row],[Line No.]]=\"\",\"\",CONCATENATE(Table_PrintPI[[#This Row],[Line No.]],\" - \",Table_SummaryPI[[#This Row],[MeasureName]]))","v":""},{"$f":"IF(Table_SummaryPI[[#This Row],[Manufacturer]]<>\"\",CONCATENATE(Table_SummaryPI[[#This Row],[Manufacturer]],\"/\",Table_SummaryPI[[#This Row],[Model'#]]),\"\")","v":""},{"$f":"IF(Table_SummaryPI[[#This Row],[Serial'#]]<>\"\",Table_SummaryPI[[#This Row],[Serial'#]],\"\")","v":""},{"$f":"IF(Table_SummaryPI[[#This Row],[Quantity]]<>\"\",Table_SummaryPI[[#This Row],[Quantity]],\"\")","v":""},{"$f":"IF(Table_SummaryPI[[#This Row],[BaselinekWh]]<>\"\",Table_SummaryPI[[#This Row],[BaselinekWh]],\"\")","v":""},{"$f":"IF(Table_SummaryPI[[#This Row],[BaselinekW]]<>\"\",Table_SummaryPI[[#This Row],[BaselinekW]],\"\")","v":""},{"$f":"IF(Table_SummaryPI[[#This Row],[ProposedkWh]]<>\"\",Table_SummaryPI[[#This Row],[ProposedkWh]],\"\")","v":""},{"$f":"IF(Table_SummaryPI[[#This Row],[ProposedkW]]<>\"\",Table_SummaryPI[[#This Row],[ProposedkW]],\"\")","v":""},{"$f":"IF(Table_SummaryPI[[#This Row],[Notes]]<>\"\",Table_SummaryPI[[#This Row],[Notes]],\"\")","v":""},{"$f":"IF(Table_SummaryPI[[#This Row],[Incentive_Customer]]<>\"\",Table_SummaryPI[[#This Row],[Incentive_Customer]],0)","v":0},{"$f":"IF(Table_SummaryPI[[#This Row],[MeasureCost]]<>\"\",Table_SummaryPI[[#This Row],[MeasureCost]],0)","v":0},{"$f":"IF(Table_SummaryPI[[#This Row],[kWhSavings]]<>\"\",Table_SummaryPI[[#This Row],[kWhSavings]],0)","v":0},{"$f":"IF(Table_SummaryPI[[#This Row],[DemandSavingskW]]<>\"\",Table_SummaryPI[[#This Row],[DemandSavingskW]],0)","v":0}]
[{"$f":"Table_SummaryPI[[#This Row],[Line No.]]","v":""},{"$f":"IF(Table_PrintPI[[#This Row],[Line No.]]=\"\",\"\",CONCATENATE(Table_PrintPI[[#This Row],[Line No.]],\" - \",Table_SummaryPI[[#This Row],[MeasureName]]))","v":""},{"$f":"IF(Table_SummaryPI[[#This Row],[Manufacturer]]<>\"\",CONCATENATE(Table_SummaryPI[[#This Row],[Manufacturer]],\"/\",Table_SummaryPI[[#This Row],[Model'#]]),\"\")","v":""},{"$f":"IF(Table_SummaryPI[[#This Row],[Serial'#]]<>\"\",Table_SummaryPI[[#This Row],[Serial'#]],\"\")","v":""},{"$f":"IF(Table_SummaryPI[[#This Row],[Quantity]]<>\"\",Table_SummaryPI[[#This Row],[Quantity]],\"\")","v":""},{"$f":"IF(Table_SummaryPI[[#This Row],[BaselinekWh]]<>\"\",Table_SummaryPI[[#This Row],[BaselinekWh]],\"\")","v":""},{"$f":"IF(Table_SummaryPI[[#This Row],[BaselinekW]]<>\"\",Table_SummaryPI[[#This Row],[BaselinekW]],\"\")","v":""},{"$f":"IF(Table_SummaryPI[[#This Row],[ProposedkWh]]<>\"\",Table_SummaryPI[[#This Row],[ProposedkWh]],\"\")","v":""},{"$f":"IF(Table_SummaryPI[[#This Row],[ProposedkW]]<>\"\",Table_SummaryPI[[#This Row],[ProposedkW]],\"\")","v":""},{"$f":"IF(Table_SummaryPI[[#This Row],[Notes]]<>\"\",Table_SummaryPI[[#This Row],[Notes]],\"\")","v":""},{"$f":"IF(Table_SummaryPI[[#This Row],[Incentive_Customer]]<>\"\",Table_SummaryPI[[#This Row],[Incentive_Customer]],0)","v":0},{"$f":"IF(Table_SummaryPI[[#This Row],[MeasureCost]]<>\"\",Table_SummaryPI[[#This Row],[MeasureCost]],0)","v":0},{"$f":"IF(Table_SummaryPI[[#This Row],[kWhSavings]]<>\"\",Table_SummaryPI[[#This Row],[kWhSavings]],0)","v":0},{"$f":"IF(Table_SummaryPI[[#This Row],[DemandSavingskW]]<>\"\",Table_SummaryPI[[#This Row],[DemandSavingskW]],0)","v":0}]
[{"$f":"Table_SummaryPI[[#This Row],[Line No.]]","v":""},{"$f":"IF(Table_PrintPI[[#This Row],[Line No.]]=\"\",\"\",CONCATENATE(Table_PrintPI[[#This Row],[Line No.]],\" - \",Table_SummaryPI[[#This Row],[MeasureName]]))","v":""},{"$f":"IF(Table_SummaryPI[[#This Row],[Manufacturer]]<>\"\",CONCATENATE(Table_SummaryPI[[#This Row],[Manufacturer]],\"/\",Table_SummaryPI[[#This Row],[Model'#]]),\"\")","v":""},{"$f":"IF(Table_SummaryPI[[#This Row],[Serial'#]]<>\"\",Table_SummaryPI[[#This Row],[Serial'#]],\"\")","v":""},{"$f":"IF(Table_SummaryPI[[#This Row],[Quantity]]<>\"\",Table_SummaryPI[[#This Row],[Quantity]],\"\")","v":""},{"$f":"IF(Table_SummaryPI[[#This Row],[BaselinekWh]]<>\"\",Table_SummaryPI[[#This Row],[BaselinekWh]],\"\")","v":""},{"$f":"IF(Table_SummaryPI[[#This Row],[BaselinekW]]<>\"\",Table_SummaryPI[[#This Row],[BaselinekW]],\"\")","v":""},{"$f":"IF(Table_SummaryPI[[#This Row],[ProposedkWh]]<>\"\",Table_SummaryPI[[#This Row],[ProposedkWh]],\"\")","v":""},{"$f":"IF(Table_SummaryPI[[#This Row],[ProposedkW]]<>\"\",Table_SummaryPI[[#This Row],[ProposedkW]],\"\")","v":""},{"$f":"IF(Table_SummaryPI[[#This Row],[Notes]]<>\"\",Table_SummaryPI[[#This Row],[Notes]],\"\")","v":""},{"$f":"IF(Table_SummaryPI[[#This Row],[Incentive_Customer]]<>\"\",Table_SummaryPI[[#This Row],[Incentive_Customer]],0)","v":0},{"$f":"IF(Table_SummaryPI[[#This Row],[MeasureCost]]<>\"\",Table_SummaryPI[[#This Row],[MeasureCost]],0)","v":0},{"$f":"IF(Table_SummaryPI[[#This Row],[kWhSavings]]<>\"\",Table_SummaryPI[[#This Row],[kWhSavings]],0)","v":0},{"$f":"IF(Table_SummaryPI[[#This Row],[DemandSavingskW]]<>\"\",Table_SummaryPI[[#This Row],[DemandSavingskW]],0)","v":0}]
[{"$f":"Table_SummaryPI[[#This Row],[Line No.]]","v":""},{"$f":"IF(Table_PrintPI[[#This Row],[Line No.]]=\"\",\"\",CONCATENATE(Table_PrintPI[[#This Row],[Line No.]],\" - \",Table_SummaryPI[[#This Row],[MeasureName]]))","v":""},{"$f":"IF(Table_SummaryPI[[#This Row],[Manufacturer]]<>\"\",CONCATENATE(Table_SummaryPI[[#This Row],[Manufacturer]],\"/\",Table_SummaryPI[[#This Row],[Model'#]]),\"\")","v":""},{"$f":"IF(Table_SummaryPI[[#This Row],[Serial'#]]<>\"\",Table_SummaryPI[[#This Row],[Serial'#]],\"\")","v":""},{"$f":"IF(Table_SummaryPI[[#This Row],[Quantity]]<>\"\",Table_SummaryPI[[#This Row],[Quantity]],\"\")","v":""},{"$f":"IF(Table_SummaryPI[[#This Row],[BaselinekWh]]<>\"\",Table_SummaryPI[[#This Row],[BaselinekWh]],\"\")","v":""},{"$f":"IF(Table_SummaryPI[[#This Row],[BaselinekW]]<>\"\",Table_SummaryPI[[#This Row],[BaselinekW]],\"\")","v":""},{"$f":"IF(Table_SummaryPI[[#This Row],[ProposedkWh]]<>\"\",Table_SummaryPI[[#This Row],[ProposedkWh]],\"\")","v":""},{"$f":"IF(Table_SummaryPI[[#This Row],[ProposedkW]]<>\"\",Table_SummaryPI[[#This Row],[ProposedkW]],\"\")","v":""},{"$f":"IF(Table_SummaryPI[[#This Row],[Notes]]<>\"\",Table_SummaryPI[[#This Row],[Notes]],\"\")","v":""},{"$f":"IF(Table_SummaryPI[[#This Row],[Incentive_Customer]]<>\"\",Table_SummaryPI[[#This Row],[Incentive_Customer]],0)","v":0},{"$f":"IF(Table_SummaryPI[[#This Row],[MeasureCost]]<>\"\",Table_SummaryPI[[#This Row],[MeasureCost]],0)","v":0},{"$f":"IF(Table_SummaryPI[[#This Row],[kWhSavings]]<>\"\",Table_SummaryPI[[#This Row],[kWhSavings]],0)","v":0},{"$f":"IF(Table_SummaryPI[[#This Row],[DemandSavingskW]]<>\"\",Table_SummaryPI[[#This Row],[DemandSavingskW]],0)","v":0}]
[{"$f":"Table_SummaryPI[[#This Row],[Line No.]]","v":""},{"$f":"IF(Table_PrintPI[[#This Row],[Line No.]]=\"\",\"\",CONCATENATE(Table_PrintPI[[#This Row],[Line No.]],\" - \",Table_SummaryPI[[#This Row],[MeasureName]]))","v":""},{"$f":"IF(Table_SummaryPI[[#This Row],[Manufacturer]]<>\"\",CONCATENATE(Table_SummaryPI[[#This Row],[Manufacturer]],\"/\",Table_SummaryPI[[#This Row],[Model'#]]),\"\")","v":""},{"$f":"IF(Table_SummaryPI[[#This Row],[Serial'#]]<>\"\",Table_SummaryPI[[#This Row],[Serial'#]],\"\")","v":""},{"$f":"IF(Table_SummaryPI[[#This Row],[Quantity]]<>\"\",Table_SummaryPI[[#This Row],[Quantity]],\"\")","v":""},{"$f":"IF(Table_SummaryPI[[#This Row],[BaselinekWh]]<>\"\",Table_SummaryPI[[#This Row],[BaselinekWh]],\"\")","v":""},{"$f":"IF(Table_SummaryPI[[#This Row],[BaselinekW]]<>\"\",Table_SummaryPI[[#This Row],[BaselinekW]],\"\")","v":""},{"$f":"IF(Table_SummaryPI[[#This Row],[ProposedkWh]]<>\"\",Table_SummaryPI[[#This Row],[ProposedkWh]],\"\")","v":""},{"$f":"IF(Table_SummaryPI[[#This Row],[ProposedkW]]<>\"\",Table_SummaryPI[[#This Row],[ProposedkW]],\"\")","v":""},{"$f":"IF(Table_SummaryPI[[#This Row],[Notes]]<>\"\",Table_SummaryPI[[#This Row],[Notes]],\"\")","v":""},{"$f":"IF(Table_SummaryPI[[#This Row],[Incentive_Customer]]<>\"\",Table_SummaryPI[[#This Row],[Incentive_Customer]],0)","v":0},{"$f":"IF(Table_SummaryPI[[#This Row],[MeasureCost]]<>\"\",Table_SummaryPI[[#This Row],[MeasureCost]],0)","v":0},{"$f":"IF(Table_SummaryPI[[#This Row],[kWhSavings]]<>\"\",Table_SummaryPI[[#This Row],[kWhSavings]],0)","v":0},{"$f":"IF(Table_SummaryPI[[#This Row],[DemandSavingskW]]<>\"\",Table_SummaryPI[[#This Row],[DemandSavingskW]],0)","v":0}]
[{"$f":"Table_SummaryPI[[#This Row],[Line No.]]","v":""},{"$f":"IF(Table_PrintPI[[#This Row],[Line No.]]=\"\",\"\",CONCATENATE(Table_PrintPI[[#This Row],[Line No.]],\" - \",Table_SummaryPI[[#This Row],[MeasureName]]))","v":""},{"$f":"IF(Table_SummaryPI[[#This Row],[Manufacturer]]<>\"\",CONCATENATE(Table_SummaryPI[[#This Row],[Manufacturer]],\"/\",Table_SummaryPI[[#This Row],[Model'#]]),\"\")","v":""},{"$f":"IF(Table_SummaryPI[[#This Row],[Serial'#]]<>\"\",Table_SummaryPI[[#This Row],[Serial'#]],\"\")","v":""},{"$f":"IF(Table_SummaryPI[[#This Row],[Quantity]]<>\"\",Table_SummaryPI[[#This Row],[Quantity]],\"\")","v":""},{"$f":"IF(Table_SummaryPI[[#This Row],[BaselinekWh]]<>\"\",Table_SummaryPI[[#This Row],[BaselinekWh]],\"\")","v":""},{"$f":"IF(Table_SummaryPI[[#This Row],[BaselinekW]]<>\"\",Table_SummaryPI[[#This Row],[BaselinekW]],\"\")","v":""},{"$f":"IF(Table_SummaryPI[[#This Row],[ProposedkWh]]<>\"\",Table_SummaryPI[[#This Row],[ProposedkWh]],\"\")","v":""},{"$f":"IF(Table_SummaryPI[[#This Row],[ProposedkW]]<>\"\",Table_SummaryPI[[#This Row],[ProposedkW]],\"\")","v":""},{"$f":"IF(Table_SummaryPI[[#This Row],[Notes]]<>\"\",Table_SummaryPI[[#This Row],[Notes]],\"\")","v":""},{"$f":"IF(Table_SummaryPI[[#This Row],[Incentive_Customer]]<>\"\",Table_SummaryPI[[#This Row],[Incentive_Customer]],0)","v":0},{"$f":"IF(Table_SummaryPI[[#This Row],[MeasureCost]]<>\"\",Table_SummaryPI[[#This Row],[MeasureCost]],0)","v":0},{"$f":"IF(Table_SummaryPI[[#This Row],[kWhSavings]]<>\"\",Table_SummaryPI[[#This Row],[kWhSavings]],0)","v":0},{"$f":"IF(Table_SummaryPI[[#This Row],[DemandSavingskW]]<>\"\",Table_SummaryPI[[#This Row],[DemandSavingskW]],0)","v":0}]
[{"$f":"Table_SummaryPI[[#This Row],[Line No.]]","v":""},{"$f":"IF(Table_PrintPI[[#This Row],[Line No.]]=\"\",\"\",CONCATENATE(Table_PrintPI[[#This Row],[Line No.]],\" - \",Table_SummaryPI[[#This Row],[MeasureName]]))","v":""},{"$f":"IF(Table_SummaryPI[[#This Row],[Manufacturer]]<>\"\",CONCATENATE(Table_SummaryPI[[#This Row],[Manufacturer]],\"/\",Table_SummaryPI[[#This Row],[Model'#]]),\"\")","v":""},{"$f":"IF(Table_SummaryPI[[#This Row],[Serial'#]]<>\"\",Table_SummaryPI[[#This Row],[Serial'#]],\"\")","v":""},{"$f":"IF(Table_SummaryPI[[#This Row],[Quantity]]<>\"\",Table_SummaryPI[[#This Row],[Quantity]],\"\")","v":""},{"$f":"IF(Table_SummaryPI[[#This Row],[BaselinekWh]]<>\"\",Table_SummaryPI[[#This Row],[BaselinekWh]],\"\")","v":""},{"$f":"IF(Table_SummaryPI[[#This Row],[BaselinekW]]<>\"\",Table_SummaryPI[[#This Row],[BaselinekW]],\"\")","v":""},{"$f":"IF(Table_SummaryPI[[#This Row],[ProposedkWh]]<>\"\",Table_SummaryPI[[#This Row],[ProposedkWh]],\"\")","v":""},{"$f":"IF(Table_SummaryPI[[#This Row],[ProposedkW]]<>\"\",Table_SummaryPI[[#This Row],[ProposedkW]],\"\")","v":""},{"$f":"IF(Table_SummaryPI[[#This Row],[Notes]]<>\"\",Table_SummaryPI[[#This Row],[Notes]],\"\")","v":""},{"$f":"IF(Table_SummaryPI[[#This Row],[Incentive_Customer]]<>\"\",Table_SummaryPI[[#This Row],[Incentive_Customer]],0)","v":0},{"$f":"IF(Table_SummaryPI[[#This Row],[MeasureCost]]<>\"\",Table_SummaryPI[[#This Row],[MeasureCost]],0)","v":0},{"$f":"IF(Table_SummaryPI[[#This Row],[kWhSavings]]<>\"\",Table_SummaryPI[[#This Row],[kWhSavings]],0)","v":0},{"$f":"IF(Table_SummaryPI[[#This Row],[DemandSavingskW]]<>\"\",Table_SummaryPI[[#This Row],[DemandSavingskW]],0)","v":0}]
[{"$f":"Table_SummaryPI[[#This Row],[Line No.]]","v":""},{"$f":"IF(Table_PrintPI[[#This Row],[Line No.]]=\"\",\"\",CONCATENATE(Table_PrintPI[[#This Row],[Line No.]],\" - \",Table_SummaryPI[[#This Row],[MeasureName]]))","v":""},{"$f":"IF(Table_SummaryPI[[#This Row],[Manufacturer]]<>\"\",CONCATENATE(Table_SummaryPI[[#This Row],[Manufacturer]],\"/\",Table_SummaryPI[[#This Row],[Model'#]]),\"\")","v":""},{"$f":"IF(Table_SummaryPI[[#This Row],[Serial'#]]<>\"\",Table_SummaryPI[[#This Row],[Serial'#]],\"\")","v":""},{"$f":"IF(Table_SummaryPI[[#This Row],[Quantity]]<>\"\",Table_SummaryPI[[#This Row],[Quantity]],\"\")","v":""},{"$f":"IF(Table_SummaryPI[[#This Row],[BaselinekWh]]<>\"\",Table_SummaryPI[[#This Row],[BaselinekWh]],\"\")","v":""},{"$f":"IF(Table_SummaryPI[[#This Row],[BaselinekW]]<>\"\",Table_SummaryPI[[#This Row],[BaselinekW]],\"\")","v":""},{"$f":"IF(Table_SummaryPI[[#This Row],[ProposedkWh]]<>\"\",Table_SummaryPI[[#This Row],[ProposedkWh]],\"\")","v":""},{"$f":"IF(Table_SummaryPI[[#This Row],[ProposedkW]]<>\"\",Table_SummaryPI[[#This Row],[ProposedkW]],\"\")","v":""},{"$f":"IF(Table_SummaryPI[[#This Row],[Notes]]<>\"\",Table_SummaryPI[[#This Row],[Notes]],\"\")","v":""},{"$f":"IF(Table_SummaryPI[[#This Row],[Incentive_Customer]]<>\"\",Table_SummaryPI[[#This Row],[Incentive_Customer]],0)","v":0},{"$f":"IF(Table_SummaryPI[[#This Row],[MeasureCost]]<>\"\",Table_SummaryPI[[#This Row],[MeasureCost]],0)","v":0},{"$f":"IF(Table_SummaryPI[[#This Row],[kWhSavings]]<>\"\",Table_SummaryPI[[#This Row],[kWhSavings]],0)","v":0},{"$f":"IF(Table_SummaryPI[[#This Row],[DemandSavingskW]]<>\"\",Table_SummaryPI[[#This Row],[DemandSavingskW]],0)","v":0}]
[{"$f":"Table_SummaryPI[[#This Row],[Line No.]]","v":""},{"$f":"IF(Table_PrintPI[[#This Row],[Line No.]]=\"\",\"\",CONCATENATE(Table_PrintPI[[#This Row],[Line No.]],\" - \",Table_SummaryPI[[#This Row],[MeasureName]]))","v":""},{"$f":"IF(Table_SummaryPI[[#This Row],[Manufacturer]]<>\"\",CONCATENATE(Table_SummaryPI[[#This Row],[Manufacturer]],\"/\",Table_SummaryPI[[#This Row],[Model'#]]),\"\")","v":""},{"$f":"IF(Table_SummaryPI[[#This Row],[Serial'#]]<>\"\",Table_SummaryPI[[#This Row],[Serial'#]],\"\")","v":""},{"$f":"IF(Table_SummaryPI[[#This Row],[Quantity]]<>\"\",Table_SummaryPI[[#This Row],[Quantity]],\"\")","v":""},{"$f":"IF(Table_SummaryPI[[#This Row],[BaselinekWh]]<>\"\",Table_SummaryPI[[#This Row],[BaselinekWh]],\"\")","v":""},{"$f":"IF(Table_SummaryPI[[#This Row],[BaselinekW]]<>\"\",Table_SummaryPI[[#This Row],[BaselinekW]],\"\")","v":""},{"$f":"IF(Table_SummaryPI[[#This Row],[ProposedkWh]]<>\"\",Table_SummaryPI[[#This Row],[ProposedkWh]],\"\")","v":""},{"$f":"IF(Table_SummaryPI[[#This Row],[ProposedkW]]<>\"\",Table_SummaryPI[[#This Row],[ProposedkW]],\"\")","v":""},{"$f":"IF(Table_SummaryPI[[#This Row],[Notes]]<>\"\",Table_SummaryPI[[#This Row],[Notes]],\"\")","v":""},{"$f":"IF(Table_SummaryPI[[#This Row],[Incentive_Customer]]<>\"\",Table_SummaryPI[[#This Row],[Incentive_Customer]],0)","v":0},{"$f":"IF(Table_SummaryPI[[#This Row],[MeasureCost]]<>\"\",Table_SummaryPI[[#This Row],[MeasureCost]],0)","v":0},{"$f":"IF(Table_SummaryPI[[#This Row],[kWhSavings]]<>\"\",Table_SummaryPI[[#This Row],[kWhSavings]],0)","v":0},{"$f":"IF(Table_SummaryPI[[#This Row],[DemandSavingskW]]<>\"\",Table_SummaryPI[[#This Row],[DemandSavingskW]],0)","v":0}]
[{"$f":"Table_SummaryPI[[#This Row],[Line No.]]","v":""},{"$f":"IF(Table_PrintPI[[#This Row],[Line No.]]=\"\",\"\",CONCATENATE(Table_PrintPI[[#This Row],[Line No.]],\" - \",Table_SummaryPI[[#This Row],[MeasureName]]))","v":""},{"$f":"IF(Table_SummaryPI[[#This Row],[Manufacturer]]<>\"\",CONCATENATE(Table_SummaryPI[[#This Row],[Manufacturer]],\"/\",Table_SummaryPI[[#This Row],[Model'#]]),\"\")","v":""},{"$f":"IF(Table_SummaryPI[[#This Row],[Serial'#]]<>\"\",Table_SummaryPI[[#This Row],[Serial'#]],\"\")","v":""},{"$f":"IF(Table_SummaryPI[[#This Row],[Quantity]]<>\"\",Table_SummaryPI[[#This Row],[Quantity]],\"\")","v":""},{"$f":"IF(Table_SummaryPI[[#This Row],[BaselinekWh]]<>\"\",Table_SummaryPI[[#This Row],[BaselinekWh]],\"\")","v":""},{"$f":"IF(Table_SummaryPI[[#This Row],[BaselinekW]]<>\"\",Table_SummaryPI[[#This Row],[BaselinekW]],\"\")","v":""},{"$f":"IF(Table_SummaryPI[[#This Row],[ProposedkWh]]<>\"\",Table_SummaryPI[[#This Row],[ProposedkWh]],\"\")","v":""},{"$f":"IF(Table_SummaryPI[[#This Row],[ProposedkW]]<>\"\",Table_SummaryPI[[#This Row],[ProposedkW]],\"\")","v":""},{"$f":"IF(Table_SummaryPI[[#This Row],[Notes]]<>\"\",Table_SummaryPI[[#This Row],[Notes]],\"\")","v":""},{"$f":"IF(Table_SummaryPI[[#This Row],[Incentive_Customer]]<>\"\",Table_SummaryPI[[#This Row],[Incentive_Customer]],0)","v":0},{"$f":"IF(Table_SummaryPI[[#This Row],[MeasureCost]]<>\"\",Table_SummaryPI[[#This Row],[MeasureCost]],0)","v":0},{"$f":"IF(Table_SummaryPI[[#This Row],[kWhSavings]]<>\"\",Table_SummaryPI[[#This Row],[kWhSavings]],0)","v":0},{"$f":"IF(Table_SummaryPI[[#This Row],[DemandSavingskW]]<>\"\",Table_SummaryPI[[#This Row],[DemandSavingskW]],0)","v":0}]
[{"$f":"Table_SummaryPI[[#This Row],[Line No.]]","v":""},{"$f":"IF(Table_PrintPI[[#This Row],[Line No.]]=\"\",\"\",CONCATENATE(Table_PrintPI[[#This Row],[Line No.]],\" - \",Table_SummaryPI[[#This Row],[MeasureName]]))","v":""},{"$f":"IF(Table_SummaryPI[[#This Row],[Manufacturer]]<>\"\",CONCATENATE(Table_SummaryPI[[#This Row],[Manufacturer]],\"/\",Table_SummaryPI[[#This Row],[Model'#]]),\"\")","v":""},{"$f":"IF(Table_SummaryPI[[#This Row],[Serial'#]]<>\"\",Table_SummaryPI[[#This Row],[Serial'#]],\"\")","v":""},{"$f":"IF(Table_SummaryPI[[#This Row],[Quantity]]<>\"\",Table_SummaryPI[[#This Row],[Quantity]],\"\")","v":""},{"$f":"IF(Table_SummaryPI[[#This Row],[BaselinekWh]]<>\"\",Table_SummaryPI[[#This Row],[BaselinekWh]],\"\")","v":""},{"$f":"IF(Table_SummaryPI[[#This Row],[BaselinekW]]<>\"\",Table_SummaryPI[[#This Row],[BaselinekW]],\"\")","v":""},{"$f":"IF(Table_SummaryPI[[#This Row],[ProposedkWh]]<>\"\",Table_SummaryPI[[#This Row],[ProposedkWh]],\"\")","v":""},{"$f":"IF(Table_SummaryPI[[#This Row],[ProposedkW]]<>\"\",Table_SummaryPI[[#This Row],[ProposedkW]],\"\")","v":""},{"$f":"IF(Table_SummaryPI[[#This Row],[Notes]]<>\"\",Table_SummaryPI[[#This Row],[Notes]],\"\")","v":""},{"$f":"IF(Table_SummaryPI[[#This Row],[Incentive_Customer]]<>\"\",Table_SummaryPI[[#This Row],[Incentive_Customer]],0)","v":0},{"$f":"IF(Table_SummaryPI[[#This Row],[MeasureCost]]<>\"\",Table_SummaryPI[[#This Row],[MeasureCost]],0)","v":0},{"$f":"IF(Table_SummaryPI[[#This Row],[kWhSavings]]<>\"\",Table_SummaryPI[[#This Row],[kWhSavings]],0)","v":0},{"$f":"IF(Table_SummaryPI[[#This Row],[DemandSavingskW]]<>\"\",Table_SummaryPI[[#This Row],[DemandSavingskW]],0)","v":0}]
[{"$f":"Table_SummaryPI[[#This Row],[Line No.]]","v":""},{"$f":"IF(Table_PrintPI[[#This Row],[Line No.]]=\"\",\"\",CONCATENATE(Table_PrintPI[[#This Row],[Line No.]],\" - \",Table_SummaryPI[[#This Row],[MeasureName]]))","v":""},{"$f":"IF(Table_SummaryPI[[#This Row],[Manufacturer]]<>\"\",CONCATENATE(Table_SummaryPI[[#This Row],[Manufacturer]],\"/\",Table_SummaryPI[[#This Row],[Model'#]]),\"\")","v":""},{"$f":"IF(Table_SummaryPI[[#This Row],[Serial'#]]<>\"\",Table_SummaryPI[[#This Row],[Serial'#]],\"\")","v":""},{"$f":"IF(Table_SummaryPI[[#This Row],[Quantity]]<>\"\",Table_SummaryPI[[#This Row],[Quantity]],\"\")","v":""},{"$f":"IF(Table_SummaryPI[[#This Row],[BaselinekWh]]<>\"\",Table_SummaryPI[[#This Row],[BaselinekWh]],\"\")","v":""},{"$f":"IF(Table_SummaryPI[[#This Row],[BaselinekW]]<>\"\",Table_SummaryPI[[#This Row],[BaselinekW]],\"\")","v":""},{"$f":"IF(Table_SummaryPI[[#This Row],[ProposedkWh]]<>\"\",Table_SummaryPI[[#This Row],[ProposedkWh]],\"\")","v":""},{"$f":"IF(Table_SummaryPI[[#This Row],[ProposedkW]]<>\"\",Table_SummaryPI[[#This Row],[ProposedkW]],\"\")","v":""},{"$f":"IF(Table_SummaryPI[[#This Row],[Notes]]<>\"\",Table_SummaryPI[[#This Row],[Notes]],\"\")","v":""},{"$f":"IF(Table_SummaryPI[[#This Row],[Incentive_Customer]]<>\"\",Table_SummaryPI[[#This Row],[Incentive_Customer]],0)","v":0},{"$f":"IF(Table_SummaryPI[[#This Row],[MeasureCost]]<>\"\",Table_SummaryPI[[#This Row],[MeasureCost]],0)","v":0},{"$f":"IF(Table_SummaryPI[[#This Row],[kWhSavings]]<>\"\",Table_SummaryPI[[#This Row],[kWhSavings]],0)","v":0},{"$f":"IF(Table_SummaryPI[[#This Row],[DemandSavingskW]]<>\"\",Table_SummaryPI[[#This Row],[DemandSavingskW]],0)","v":0}]
[{"$f":"Table_SummaryPI[[#This Row],[Line No.]]","v":""},{"$f":"IF(Table_PrintPI[[#This Row],[Line No.]]=\"\",\"\",CONCATENATE(Table_PrintPI[[#This Row],[Line No.]],\" - \",Table_SummaryPI[[#This Row],[MeasureName]]))","v":""},{"$f":"IF(Table_SummaryPI[[#This Row],[Manufacturer]]<>\"\",CONCATENATE(Table_SummaryPI[[#This Row],[Manufacturer]],\"/\",Table_SummaryPI[[#This Row],[Model'#]]),\"\")","v":""},{"$f":"IF(Table_SummaryPI[[#This Row],[Serial'#]]<>\"\",Table_SummaryPI[[#This Row],[Serial'#]],\"\")","v":""},{"$f":"IF(Table_SummaryPI[[#This Row],[Quantity]]<>\"\",Table_SummaryPI[[#This Row],[Quantity]],\"\")","v":""},{"$f":"IF(Table_SummaryPI[[#This Row],[BaselinekWh]]<>\"\",Table_SummaryPI[[#This Row],[BaselinekWh]],\"\")","v":""},{"$f":"IF(Table_SummaryPI[[#This Row],[BaselinekW]]<>\"\",Table_SummaryPI[[#This Row],[BaselinekW]],\"\")","v":""},{"$f":"IF(Table_SummaryPI[[#This Row],[ProposedkWh]]<>\"\",Table_SummaryPI[[#This Row],[ProposedkWh]],\"\")","v":""},{"$f":"IF(Table_SummaryPI[[#This Row],[ProposedkW]]<>\"\",Table_SummaryPI[[#This Row],[ProposedkW]],\"\")","v":""},{"$f":"IF(Table_SummaryPI[[#This Row],[Notes]]<>\"\",Table_SummaryPI[[#This Row],[Notes]],\"\")","v":""},{"$f":"IF(Table_SummaryPI[[#This Row],[Incentive_Customer]]<>\"\",Table_SummaryPI[[#This Row],[Incentive_Customer]],0)","v":0},{"$f":"IF(Table_SummaryPI[[#This Row],[MeasureCost]]<>\"\",Table_SummaryPI[[#This Row],[MeasureCost]],0)","v":0},{"$f":"IF(Table_SummaryPI[[#This Row],[kWhSavings]]<>\"\",Table_SummaryPI[[#This Row],[kWhSavings]],0)","v":0},{"$f":"IF(Table_SummaryPI[[#This Row],[DemandSavingskW]]<>\"\",Table_SummaryPI[[#This Row],[DemandSavingskW]],0)","v":0}]
[{"$f":"Table_SummaryPI[[#This Row],[Line No.]]","v":""},{"$f":"IF(Table_PrintPI[[#This Row],[Line No.]]=\"\",\"\",CONCATENATE(Table_PrintPI[[#This Row],[Line No.]],\" - \",Table_SummaryPI[[#This Row],[MeasureName]]))","v":""},{"$f":"IF(Table_SummaryPI[[#This Row],[Manufacturer]]<>\"\",CONCATENATE(Table_SummaryPI[[#This Row],[Manufacturer]],\"/\",Table_SummaryPI[[#This Row],[Model'#]]),\"\")","v":""},{"$f":"IF(Table_SummaryPI[[#This Row],[Serial'#]]<>\"\",Table_SummaryPI[[#This Row],[Serial'#]],\"\")","v":""},{"$f":"IF(Table_SummaryPI[[#This Row],[Quantity]]<>\"\",Table_SummaryPI[[#This Row],[Quantity]],\"\")","v":""},{"$f":"IF(Table_SummaryPI[[#This Row],[BaselinekWh]]<>\"\",Table_SummaryPI[[#This Row],[BaselinekWh]],\"\")","v":""},{"$f":"IF(Table_SummaryPI[[#This Row],[BaselinekW]]<>\"\",Table_SummaryPI[[#This Row],[BaselinekW]],\"\")","v":""},{"$f":"IF(Table_SummaryPI[[#This Row],[ProposedkWh]]<>\"\",Table_SummaryPI[[#This Row],[ProposedkWh]],\"\")","v":""},{"$f":"IF(Table_SummaryPI[[#This Row],[ProposedkW]]<>\"\",Table_SummaryPI[[#This Row],[ProposedkW]],\"\")","v":""},{"$f":"IF(Table_SummaryPI[[#This Row],[Notes]]<>\"\",Table_SummaryPI[[#This Row],[Notes]],\"\")","v":""},{"$f":"IF(Table_SummaryPI[[#This Row],[Incentive_Customer]]<>\"\",Table_SummaryPI[[#This Row],[Incentive_Customer]],0)","v":0},{"$f":"IF(Table_SummaryPI[[#This Row],[MeasureCost]]<>\"\",Table_SummaryPI[[#This Row],[MeasureCost]],0)","v":0},{"$f":"IF(Table_SummaryPI[[#This Row],[kWhSavings]]<>\"\",Table_SummaryPI[[#This Row],[kWhSavings]],0)","v":0},{"$f":"IF(Table_SummaryPI[[#This Row],[DemandSavingskW]]<>\"\",Table_SummaryPI[[#This Row],[DemandSavingskW]],0)","v":0}]
[{"$f":"Table_SummaryPI[[#This Row],[Line No.]]","v":""},{"$f":"IF(Table_PrintPI[[#This Row],[Line No.]]=\"\",\"\",CONCATENATE(Table_PrintPI[[#This Row],[Line No.]],\" - \",Table_SummaryPI[[#This Row],[MeasureName]]))","v":""},{"$f":"IF(Table_SummaryPI[[#This Row],[Manufacturer]]<>\"\",CONCATENATE(Table_SummaryPI[[#This Row],[Manufacturer]],\"/\",Table_SummaryPI[[#This Row],[Model'#]]),\"\")","v":""},{"$f":"IF(Table_SummaryPI[[#This Row],[Serial'#]]<>\"\",Table_SummaryPI[[#This Row],[Serial'#]],\"\")","v":""},{"$f":"IF(Table_SummaryPI[[#This Row],[Quantity]]<>\"\",Table_SummaryPI[[#This Row],[Quantity]],\"\")","v":""},{"$f":"IF(Table_SummaryPI[[#This Row],[BaselinekWh]]<>\"\",Table_SummaryPI[[#This Row],[BaselinekWh]],\"\")","v":""},{"$f":"IF(Table_SummaryPI[[#This Row],[BaselinekW]]<>\"\",Table_SummaryPI[[#This Row],[BaselinekW]],\"\")","v":""},{"$f":"IF(Table_SummaryPI[[#This Row],[ProposedkWh]]<>\"\",Table_SummaryPI[[#This Row],[ProposedkWh]],\"\")","v":""},{"$f":"IF(Table_SummaryPI[[#This Row],[ProposedkW]]<>\"\",Table_SummaryPI[[#This Row],[ProposedkW]],\"\")","v":""},{"$f":"IF(Table_SummaryPI[[#This Row],[Notes]]<>\"\",Table_SummaryPI[[#This Row],[Notes]],\"\")","v":""},{"$f":"IF(Table_SummaryPI[[#This Row],[Incentive_Customer]]<>\"\",Table_SummaryPI[[#This Row],[Incentive_Customer]],0)","v":0},{"$f":"IF(Table_SummaryPI[[#This Row],[MeasureCost]]<>\"\",Table_SummaryPI[[#This Row],[MeasureCost]],0)","v":0},{"$f":"IF(Table_SummaryPI[[#This Row],[kWhSavings]]<>\"\",Table_SummaryPI[[#This Row],[kWhSavings]],0)","v":0},{"$f":"IF(Table_SummaryPI[[#This Row],[DemandSavingskW]]<>\"\",Table_SummaryPI[[#This Row],[DemandSavingskW]],0)","v":0}]
[{"$f":"Table_SummaryPI[[#This Row],[Line No.]]","v":""},{"$f":"IF(Table_PrintPI[[#This Row],[Line No.]]=\"\",\"\",CONCATENATE(Table_PrintPI[[#This Row],[Line No.]],\" - \",Table_SummaryPI[[#This Row],[MeasureName]]))","v":""},{"$f":"IF(Table_SummaryPI[[#This Row],[Manufacturer]]<>\"\",CONCATENATE(Table_SummaryPI[[#This Row],[Manufacturer]],\"/\",Table_SummaryPI[[#This Row],[Model'#]]),\"\")","v":""},{"$f":"IF(Table_SummaryPI[[#This Row],[Serial'#]]<>\"\",Table_SummaryPI[[#This Row],[Serial'#]],\"\")","v":""},{"$f":"IF(Table_SummaryPI[[#This Row],[Quantity]]<>\"\",Table_SummaryPI[[#This Row],[Quantity]],\"\")","v":""},{"$f":"IF(Table_SummaryPI[[#This Row],[BaselinekWh]]<>\"\",Table_SummaryPI[[#This Row],[BaselinekWh]],\"\")","v":""},{"$f":"IF(Table_SummaryPI[[#This Row],[BaselinekW]]<>\"\",Table_SummaryPI[[#This Row],[BaselinekW]],\"\")","v":""},{"$f":"IF(Table_SummaryPI[[#This Row],[ProposedkWh]]<>\"\",Table_SummaryPI[[#This Row],[ProposedkWh]],\"\")","v":""},{"$f":"IF(Table_SummaryPI[[#This Row],[ProposedkW]]<>\"\",Table_SummaryPI[[#This Row],[ProposedkW]],\"\")","v":""},{"$f":"IF(Table_SummaryPI[[#This Row],[Notes]]<>\"\",Table_SummaryPI[[#This Row],[Notes]],\"\")","v":""},{"$f":"IF(Table_SummaryPI[[#This Row],[Incentive_Customer]]<>\"\",Table_SummaryPI[[#This Row],[Incentive_Customer]],0)","v":0},{"$f":"IF(Table_SummaryPI[[#This Row],[MeasureCost]]<>\"\",Table_SummaryPI[[#This Row],[MeasureCost]],0)","v":0},{"$f":"IF(Table_SummaryPI[[#This Row],[kWhSavings]]<>\"\",Table_SummaryPI[[#This Row],[kWhSavings]],0)","v":0},{"$f":"IF(Table_SummaryPI[[#This Row],[DemandSavingskW]]<>\"\",Table_SummaryPI[[#This Row],[DemandSavingskW]],0)","v":0}]
[{"$f":"Table_SummaryPI[[#This Row],[Line No.]]","v":""},{"$f":"IF(Table_PrintPI[[#This Row],[Line No.]]=\"\",\"\",CONCATENATE(Table_PrintPI[[#This Row],[Line No.]],\" - \",Table_SummaryPI[[#This Row],[MeasureName]]))","v":""},{"$f":"IF(Table_SummaryPI[[#This Row],[Manufacturer]]<>\"\",CONCATENATE(Table_SummaryPI[[#This Row],[Manufacturer]],\"/\",Table_SummaryPI[[#This Row],[Model'#]]),\"\")","v":""},{"$f":"IF(Table_SummaryPI[[#This Row],[Serial'#]]<>\"\",Table_SummaryPI[[#This Row],[Serial'#]],\"\")","v":""},{"$f":"IF(Table_SummaryPI[[#This Row],[Quantity]]<>\"\",Table_SummaryPI[[#This Row],[Quantity]],\"\")","v":""},{"$f":"IF(Table_SummaryPI[[#This Row],[BaselinekWh]]<>\"\",Table_SummaryPI[[#This Row],[BaselinekWh]],\"\")","v":""},{"$f":"IF(Table_SummaryPI[[#This Row],[BaselinekW]]<>\"\",Table_SummaryPI[[#This Row],[BaselinekW]],\"\")","v":""},{"$f":"IF(Table_SummaryPI[[#This Row],[ProposedkWh]]<>\"\",Table_SummaryPI[[#This Row],[ProposedkWh]],\"\")","v":""},{"$f":"IF(Table_SummaryPI[[#This Row],[ProposedkW]]<>\"\",Table_SummaryPI[[#This Row],[ProposedkW]],\"\")","v":""},{"$f":"IF(Table_SummaryPI[[#This Row],[Notes]]<>\"\",Table_SummaryPI[[#This Row],[Notes]],\"\")","v":""},{"$f":"IF(Table_SummaryPI[[#This Row],[Incentive_Customer]]<>\"\",Table_SummaryPI[[#This Row],[Incentive_Customer]],0)","v":0},{"$f":"IF(Table_SummaryPI[[#This Row],[MeasureCost]]<>\"\",Table_SummaryPI[[#This Row],[MeasureCost]],0)","v":0},{"$f":"IF(Table_SummaryPI[[#This Row],[kWhSavings]]<>\"\",Table_SummaryPI[[#This Row],[kWhSavings]],0)","v":0},{"$f":"IF(Table_SummaryPI[[#This Row],[DemandSavingskW]]<>\"\",Table_SummaryPI[[#This Row],[DemandSavingskW]],0)","v":0}]
[{"$f":"Table_SummaryPI[[#This Row],[Line No.]]","v":""},{"$f":"IF(Table_PrintPI[[#This Row],[Line No.]]=\"\",\"\",CONCATENATE(Table_PrintPI[[#This Row],[Line No.]],\" - \",Table_SummaryPI[[#This Row],[MeasureName]]))","v":""},{"$f":"IF(Table_SummaryPI[[#This Row],[Manufacturer]]<>\"\",CONCATENATE(Table_SummaryPI[[#This Row],[Manufacturer]],\"/\",Table_SummaryPI[[#This Row],[Model'#]]),\"\")","v":""},{"$f":"IF(Table_SummaryPI[[#This Row],[Serial'#]]<>\"\",Table_SummaryPI[[#This Row],[Serial'#]],\"\")","v":""},{"$f":"IF(Table_SummaryPI[[#This Row],[Quantity]]<>\"\",Table_SummaryPI[[#This Row],[Quantity]],\"\")","v":""},{"$f":"IF(Table_SummaryPI[[#This Row],[BaselinekWh]]<>\"\",Table_SummaryPI[[#This Row],[BaselinekWh]],\"\")","v":""},{"$f":"IF(Table_SummaryPI[[#This Row],[BaselinekW]]<>\"\",Table_SummaryPI[[#This Row],[BaselinekW]],\"\")","v":""},{"$f":"IF(Table_SummaryPI[[#This Row],[ProposedkWh]]<>\"\",Table_SummaryPI[[#This Row],[ProposedkWh]],\"\")","v":""},{"$f":"IF(Table_SummaryPI[[#This Row],[ProposedkW]]<>\"\",Table_SummaryPI[[#This Row],[ProposedkW]],\"\")","v":""},{"$f":"IF(Table_SummaryPI[[#This Row],[Notes]]<>\"\",Table_SummaryPI[[#This Row],[Notes]],\"\")","v":""},{"$f":"IF(Table_SummaryPI[[#This Row],[Incentive_Customer]]<>\"\",Table_SummaryPI[[#This Row],[Incentive_Customer]],0)","v":0},{"$f":"IF(Table_SummaryPI[[#This Row],[MeasureCost]]<>\"\",Table_SummaryPI[[#This Row],[MeasureCost]],0)","v":0},{"$f":"IF(Table_SummaryPI[[#This Row],[kWhSavings]]<>\"\",Table_SummaryPI[[#This Row],[kWhSavings]],0)","v":0},{"$f":"IF(Table_SummaryPI[[#This Row],[DemandSavingskW]]<>\"\",Table_SummaryPI[[#This Row],[DemandSavingskW]],0)","v":0}]
[{"$f":"Table_SummaryPI[[#This Row],[Line No.]]","v":""},{"$f":"IF(Table_PrintPI[[#This Row],[Line No.]]=\"\",\"\",CONCATENATE(Table_PrintPI[[#This Row],[Line No.]],\" - \",Table_SummaryPI[[#This Row],[MeasureName]]))","v":""},{"$f":"IF(Table_SummaryPI[[#This Row],[Manufacturer]]<>\"\",CONCATENATE(Table_SummaryPI[[#This Row],[Manufacturer]],\"/\",Table_SummaryPI[[#This Row],[Model'#]]),\"\")","v":""},{"$f":"IF(Table_SummaryPI[[#This Row],[Serial'#]]<>\"\",Table_SummaryPI[[#This Row],[Serial'#]],\"\")","v":""},{"$f":"IF(Table_SummaryPI[[#This Row],[Quantity]]<>\"\",Table_SummaryPI[[#This Row],[Quantity]],\"\")","v":""},{"$f":"IF(Table_SummaryPI[[#This Row],[BaselinekWh]]<>\"\",Table_SummaryPI[[#This Row],[BaselinekWh]],\"\")","v":""},{"$f":"IF(Table_SummaryPI[[#This Row],[BaselinekW]]<>\"\",Table_SummaryPI[[#This Row],[BaselinekW]],\"\")","v":""},{"$f":"IF(Table_SummaryPI[[#This Row],[ProposedkWh]]<>\"\",Table_SummaryPI[[#This Row],[ProposedkWh]],\"\")","v":""},{"$f":"IF(Table_SummaryPI[[#This Row],[ProposedkW]]<>\"\",Table_SummaryPI[[#This Row],[ProposedkW]],\"\")","v":""},{"$f":"IF(Table_SummaryPI[[#This Row],[Notes]]<>\"\",Table_SummaryPI[[#This Row],[Notes]],\"\")","v":""},{"$f":"IF(Table_SummaryPI[[#This Row],[Incentive_Customer]]<>\"\",Table_SummaryPI[[#This Row],[Incentive_Customer]],0)","v":0},{"$f":"IF(Table_SummaryPI[[#This Row],[MeasureCost]]<>\"\",Table_SummaryPI[[#This Row],[MeasureCost]],0)","v":0},{"$f":"IF(Table_SummaryPI[[#This Row],[kWhSavings]]<>\"\",Table_SummaryPI[[#This Row],[kWhSavings]],0)","v":0},{"$f":"IF(Table_SummaryPI[[#This Row],[DemandSavingskW]]<>\"\",Table_SummaryPI[[#This Row],[DemandSavingskW]],0)","v":0}]
[{"$f":"Table_SummaryPI[[#This Row],[Line No.]]","v":""},{"$f":"IF(Table_PrintPI[[#This Row],[Line No.]]=\"\",\"\",CONCATENATE(Table_PrintPI[[#This Row],[Line No.]],\" - \",Table_SummaryPI[[#This Row],[MeasureName]]))","v":""},{"$f":"IF(Table_SummaryPI[[#This Row],[Manufacturer]]<>\"\",CONCATENATE(Table_SummaryPI[[#This Row],[Manufacturer]],\"/\",Table_SummaryPI[[#This Row],[Model'#]]),\"\")","v":""},{"$f":"IF(Table_SummaryPI[[#This Row],[Serial'#]]<>\"\",Table_SummaryPI[[#This Row],[Serial'#]],\"\")","v":""},{"$f":"IF(Table_SummaryPI[[#This Row],[Quantity]]<>\"\",Table_SummaryPI[[#This Row],[Quantity]],\"\")","v":""},{"$f":"IF(Table_SummaryPI[[#This Row],[BaselinekWh]]<>\"\",Table_SummaryPI[[#This Row],[BaselinekWh]],\"\")","v":""},{"$f":"IF(Table_SummaryPI[[#This Row],[BaselinekW]]<>\"\",Table_SummaryPI[[#This Row],[BaselinekW]],\"\")","v":""},{"$f":"IF(Table_SummaryPI[[#This Row],[ProposedkWh]]<>\"\",Table_SummaryPI[[#This Row],[ProposedkWh]],\"\")","v":""},{"$f":"IF(Table_SummaryPI[[#This Row],[ProposedkW]]<>\"\",Table_SummaryPI[[#This Row],[ProposedkW]],\"\")","v":""},{"$f":"IF(Table_SummaryPI[[#This Row],[Notes]]<>\"\",Table_SummaryPI[[#This Row],[Notes]],\"\")","v":""},{"$f":"IF(Table_SummaryPI[[#This Row],[Incentive_Customer]]<>\"\",Table_SummaryPI[[#This Row],[Incentive_Customer]],0)","v":0},{"$f":"IF(Table_SummaryPI[[#This Row],[MeasureCost]]<>\"\",Table_SummaryPI[[#This Row],[MeasureCost]],0)","v":0},{"$f":"IF(Table_SummaryPI[[#This Row],[kWhSavings]]<>\"\",Table_SummaryPI[[#This Row],[kWhSavings]],0)","v":0},{"$f":"IF(Table_SummaryPI[[#This Row],[DemandSavingskW]]<>\"\",Table_SummaryPI[[#This Row],[DemandSavingskW]],0)","v":0}]
[{"$f":"Table_SummaryPI[[#This Row],[Line No.]]","v":""},{"$f":"IF(Table_PrintPI[[#This Row],[Line No.]]=\"\",\"\",CONCATENATE(Table_PrintPI[[#This Row],[Line No.]],\" - \",Table_SummaryPI[[#This Row],[MeasureName]]))","v":""},{"$f":"IF(Table_SummaryPI[[#This Row],[Manufacturer]]<>\"\",CONCATENATE(Table_SummaryPI[[#This Row],[Manufacturer]],\"/\",Table_SummaryPI[[#This Row],[Model'#]]),\"\")","v":""},{"$f":"IF(Table_SummaryPI[[#This Row],[Serial'#]]<>\"\",Table_SummaryPI[[#This Row],[Serial'#]],\"\")","v":""},{"$f":"IF(Table_SummaryPI[[#This Row],[Quantity]]<>\"\",Table_SummaryPI[[#This Row],[Quantity]],\"\")","v":""},{"$f":"IF(Table_SummaryPI[[#This Row],[BaselinekWh]]<>\"\",Table_SummaryPI[[#This Row],[BaselinekWh]],\"\")","v":""},{"$f":"IF(Table_SummaryPI[[#This Row],[BaselinekW]]<>\"\",Table_SummaryPI[[#This Row],[BaselinekW]],\"\")","v":""},{"$f":"IF(Table_SummaryPI[[#This Row],[ProposedkWh]]<>\"\",Table_SummaryPI[[#This Row],[ProposedkWh]],\"\")","v":""},{"$f":"IF(Table_SummaryPI[[#This Row],[ProposedkW]]<>\"\",Table_SummaryPI[[#This Row],[ProposedkW]],\"\")","v":""},{"$f":"IF(Table_SummaryPI[[#This Row],[Notes]]<>\"\",Table_SummaryPI[[#This Row],[Notes]],\"\")","v":""},{"$f":"IF(Table_SummaryPI[[#This Row],[Incentive_Customer]]<>\"\",Table_SummaryPI[[#This Row],[Incentive_Customer]],0)","v":0},{"$f":"IF(Table_SummaryPI[[#This Row],[MeasureCost]]<>\"\",Table_SummaryPI[[#This Row],[MeasureCost]],0)","v":0},{"$f":"IF(Table_SummaryPI[[#This Row],[kWhSavings]]<>\"\",Table_SummaryPI[[#This Row],[kWhSavings]],0)","v":0},{"$f":"IF(Table_SummaryPI[[#This Row],[DemandSavingskW]]<>\"\",Table_SummaryPI[[#This Row],[DemandSavingskW]],0)","v":0}]
[{"$f":"Table_SummaryPI[[#This Row],[Line No.]]","v":""},{"$f":"IF(Table_PrintPI[[#This Row],[Line No.]]=\"\",\"\",CONCATENATE(Table_PrintPI[[#This Row],[Line No.]],\" - \",Table_SummaryPI[[#This Row],[MeasureName]]))","v":""},{"$f":"IF(Table_SummaryPI[[#This Row],[Manufacturer]]<>\"\",CONCATENATE(Table_SummaryPI[[#This Row],[Manufacturer]],\"/\",Table_SummaryPI[[#This Row],[Model'#]]),\"\")","v":""},{"$f":"IF(Table_SummaryPI[[#This Row],[Serial'#]]<>\"\",Table_SummaryPI[[#This Row],[Serial'#]],\"\")","v":""},{"$f":"IF(Table_SummaryPI[[#This Row],[Quantity]]<>\"\",Table_SummaryPI[[#This Row],[Quantity]],\"\")","v":""},{"$f":"IF(Table_SummaryPI[[#This Row],[BaselinekWh]]<>\"\",Table_SummaryPI[[#This Row],[BaselinekWh]],\"\")","v":""},{"$f":"IF(Table_SummaryPI[[#This Row],[BaselinekW]]<>\"\",Table_SummaryPI[[#This Row],[BaselinekW]],\"\")","v":""},{"$f":"IF(Table_SummaryPI[[#This Row],[ProposedkWh]]<>\"\",Table_SummaryPI[[#This Row],[ProposedkWh]],\"\")","v":""},{"$f":"IF(Table_SummaryPI[[#This Row],[ProposedkW]]<>\"\",Table_SummaryPI[[#This Row],[ProposedkW]],\"\")","v":""},{"$f":"IF(Table_SummaryPI[[#This Row],[Notes]]<>\"\",Table_SummaryPI[[#This Row],[Notes]],\"\")","v":""},{"$f":"IF(Table_SummaryPI[[#This Row],[Incentive_Customer]]<>\"\",Table_SummaryPI[[#This Row],[Incentive_Customer]],0)","v":0},{"$f":"IF(Table_SummaryPI[[#This Row],[MeasureCost]]<>\"\",Table_SummaryPI[[#This Row],[MeasureCost]],0)","v":0},{"$f":"IF(Table_SummaryPI[[#This Row],[kWhSavings]]<>\"\",Table_SummaryPI[[#This Row],[kWhSavings]],0)","v":0},{"$f":"IF(Table_SummaryPI[[#This Row],[DemandSavingskW]]<>\"\",Table_SummaryPI[[#This Row],[DemandSavingskW]],0)","v":0}]
[{"$f":"Table_SummaryPI[[#This Row],[Line No.]]","v":""},{"$f":"IF(Table_PrintPI[[#This Row],[Line No.]]=\"\",\"\",CONCATENATE(Table_PrintPI[[#This Row],[Line No.]],\" - \",Table_SummaryPI[[#This Row],[MeasureName]]))","v":""},{"$f":"IF(Table_SummaryPI[[#This Row],[Manufacturer]]<>\"\",CONCATENATE(Table_SummaryPI[[#This Row],[Manufacturer]],\"/\",Table_SummaryPI[[#This Row],[Model'#]]),\"\")","v":""},{"$f":"IF(Table_SummaryPI[[#This Row],[Serial'#]]<>\"\",Table_SummaryPI[[#This Row],[Serial'#]],\"\")","v":""},{"$f":"IF(Table_SummaryPI[[#This Row],[Quantity]]<>\"\",Table_SummaryPI[[#This Row],[Quantity]],\"\")","v":""},{"$f":"IF(Table_SummaryPI[[#This Row],[BaselinekWh]]<>\"\",Table_SummaryPI[[#This Row],[BaselinekWh]],\"\")","v":""},{"$f":"IF(Table_SummaryPI[[#This Row],[BaselinekW]]<>\"\",Table_SummaryPI[[#This Row],[BaselinekW]],\"\")","v":""},{"$f":"IF(Table_SummaryPI[[#This Row],[ProposedkWh]]<>\"\",Table_SummaryPI[[#This Row],[ProposedkWh]],\"\")","v":""},{"$f":"IF(Table_SummaryPI[[#This Row],[ProposedkW]]<>\"\",Table_SummaryPI[[#This Row],[ProposedkW]],\"\")","v":""},{"$f":"IF(Table_SummaryPI[[#This Row],[Notes]]<>\"\",Table_SummaryPI[[#This Row],[Notes]],\"\")","v":""},{"$f":"IF(Table_SummaryPI[[#This Row],[Incentive_Customer]]<>\"\",Table_SummaryPI[[#This Row],[Incentive_Customer]],0)","v":0},{"$f":"IF(Table_SummaryPI[[#This Row],[MeasureCost]]<>\"\",Table_SummaryPI[[#This Row],[MeasureCost]],0)","v":0},{"$f":"IF(Table_SummaryPI[[#This Row],[kWhSavings]]<>\"\",Table_SummaryPI[[#This Row],[kWhSavings]],0)","v":0},{"$f":"IF(Table_SummaryPI[[#This Row],[DemandSavingskW]]<>\"\",Table_SummaryPI[[#This Row],[DemandSavingskW]],0)","v":0}]
[{"$f":"Table_SummaryPI[[#This Row],[Line No.]]","v":""},{"$f":"IF(Table_PrintPI[[#This Row],[Line No.]]=\"\",\"\",CONCATENATE(Table_PrintPI[[#This Row],[Line No.]],\" - \",Table_SummaryPI[[#This Row],[MeasureName]]))","v":""},{"$f":"IF(Table_SummaryPI[[#This Row],[Manufacturer]]<>\"\",CONCATENATE(Table_SummaryPI[[#This Row],[Manufacturer]],\"/\",Table_SummaryPI[[#This Row],[Model'#]]),\"\")","v":""},{"$f":"IF(Table_SummaryPI[[#This Row],[Serial'#]]<>\"\",Table_SummaryPI[[#This Row],[Serial'#]],\"\")","v":""},{"$f":"IF(Table_SummaryPI[[#This Row],[Quantity]]<>\"\",Table_SummaryPI[[#This Row],[Quantity]],\"\")","v":""},{"$f":"IF(Table_SummaryPI[[#This Row],[BaselinekWh]]<>\"\",Table_SummaryPI[[#This Row],[BaselinekWh]],\"\")","v":""},{"$f":"IF(Table_SummaryPI[[#This Row],[BaselinekW]]<>\"\",Table_SummaryPI[[#This Row],[BaselinekW]],\"\")","v":""},{"$f":"IF(Table_SummaryPI[[#This Row],[ProposedkWh]]<>\"\",Table_SummaryPI[[#This Row],[ProposedkWh]],\"\")","v":""},{"$f":"IF(Table_SummaryPI[[#This Row],[ProposedkW]]<>\"\",Table_SummaryPI[[#This Row],[ProposedkW]],\"\")","v":""},{"$f":"IF(Table_SummaryPI[[#This Row],[Notes]]<>\"\",Table_SummaryPI[[#This Row],[Notes]],\"\")","v":""},{"$f":"IF(Table_SummaryPI[[#This Row],[Incentive_Customer]]<>\"\",Table_SummaryPI[[#This Row],[Incentive_Customer]],0)","v":0},{"$f":"IF(Table_SummaryPI[[#This Row],[MeasureCost]]<>\"\",Table_SummaryPI[[#This Row],[MeasureCost]],0)","v":0},{"$f":"IF(Table_SummaryPI[[#This Row],[kWhSavings]]<>\"\",Table_SummaryPI[[#This Row],[kWhSavings]],0)","v":0},{"$f":"IF(Table_SummaryPI[[#This Row],[DemandSavingskW]]<>\"\",Table_SummaryPI[[#This Row],[DemandSavingskW]],0)","v":0}]
[{"$f":"Table_SummaryPI[[#This Row],[Line No.]]","v":""},{"$f":"IF(Table_PrintPI[[#This Row],[Line No.]]=\"\",\"\",CONCATENATE(Table_PrintPI[[#This Row],[Line No.]],\" - \",Table_SummaryPI[[#This Row],[MeasureName]]))","v":""},{"$f":"IF(Table_SummaryPI[[#This Row],[Manufacturer]]<>\"\",CONCATENATE(Table_SummaryPI[[#This Row],[Manufacturer]],\"/\",Table_SummaryPI[[#This Row],[Model'#]]),\"\")","v":""},{"$f":"IF(Table_SummaryPI[[#This Row],[Serial'#]]<>\"\",Table_SummaryPI[[#This Row],[Serial'#]],\"\")","v":""},{"$f":"IF(Table_SummaryPI[[#This Row],[Quantity]]<>\"\",Table_SummaryPI[[#This Row],[Quantity]],\"\")","v":""},{"$f":"IF(Table_SummaryPI[[#This Row],[BaselinekWh]]<>\"\",Table_SummaryPI[[#This Row],[BaselinekWh]],\"\")","v":""},{"$f":"IF(Table_SummaryPI[[#This Row],[BaselinekW]]<>\"\",Table_SummaryPI[[#This Row],[BaselinekW]],\"\")","v":""},{"$f":"IF(Table_SummaryPI[[#This Row],[ProposedkWh]]<>\"\",Table_SummaryPI[[#This Row],[ProposedkWh]],\"\")","v":""},{"$f":"IF(Table_SummaryPI[[#This Row],[ProposedkW]]<>\"\",Table_SummaryPI[[#This Row],[ProposedkW]],\"\")","v":""},{"$f":"IF(Table_SummaryPI[[#This Row],[Notes]]<>\"\",Table_SummaryPI[[#This Row],[Notes]],\"\")","v":""},{"$f":"IF(Table_SummaryPI[[#This Row],[Incentive_Customer]]<>\"\",Table_SummaryPI[[#This Row],[Incentive_Customer]],0)","v":0},{"$f":"IF(Table_SummaryPI[[#This Row],[MeasureCost]]<>\"\",Table_SummaryPI[[#This Row],[MeasureCost]],0)","v":0},{"$f":"IF(Table_SummaryPI[[#This Row],[kWhSavings]]<>\"\",Table_SummaryPI[[#This Row],[kWhSavings]],0)","v":0},{"$f":"IF(Table_SummaryPI[[#This Row],[DemandSavingskW]]<>\"\",Table_SummaryPI[[#This Row],[DemandSavingskW]],0)","v":0}]
[{"$f":"Table_SummaryPI[[#This Row],[Line No.]]","v":""},{"$f":"IF(Table_PrintPI[[#This Row],[Line No.]]=\"\",\"\",CONCATENATE(Table_PrintPI[[#This Row],[Line No.]],\" - \",Table_SummaryPI[[#This Row],[MeasureName]]))","v":""},{"$f":"IF(Table_SummaryPI[[#This Row],[Manufacturer]]<>\"\",CONCATENATE(Table_SummaryPI[[#This Row],[Manufacturer]],\"/\",Table_SummaryPI[[#This Row],[Model'#]]),\"\")","v":""},{"$f":"IF(Table_SummaryPI[[#This Row],[Serial'#]]<>\"\",Table_SummaryPI[[#This Row],[Serial'#]],\"\")","v":""},{"$f":"IF(Table_SummaryPI[[#This Row],[Quantity]]<>\"\",Table_SummaryPI[[#This Row],[Quantity]],\"\")","v":""},{"$f":"IF(Table_SummaryPI[[#This Row],[BaselinekWh]]<>\"\",Table_SummaryPI[[#This Row],[BaselinekWh]],\"\")","v":""},{"$f":"IF(Table_SummaryPI[[#This Row],[BaselinekW]]<>\"\",Table_SummaryPI[[#This Row],[BaselinekW]],\"\")","v":""},{"$f":"IF(Table_SummaryPI[[#This Row],[ProposedkWh]]<>\"\",Table_SummaryPI[[#This Row],[ProposedkWh]],\"\")","v":""},{"$f":"IF(Table_SummaryPI[[#This Row],[ProposedkW]]<>\"\",Table_SummaryPI[[#This Row],[ProposedkW]],\"\")","v":""},{"$f":"IF(Table_SummaryPI[[#This Row],[Notes]]<>\"\",Table_SummaryPI[[#This Row],[Notes]],\"\")","v":""},{"$f":"IF(Table_SummaryPI[[#This Row],[Incentive_Customer]]<>\"\",Table_SummaryPI[[#This Row],[Incentive_Customer]],0)","v":0},{"$f":"IF(Table_SummaryPI[[#This Row],[MeasureCost]]<>\"\",Table_SummaryPI[[#This Row],[MeasureCost]],0)","v":0},{"$f":"IF(Table_SummaryPI[[#This Row],[kWhSavings]]<>\"\",Table_SummaryPI[[#This Row],[kWhSavings]],0)","v":0},{"$f":"IF(Table_SummaryPI[[#This Row],[DemandSavingskW]]<>\"\",Table_SummaryPI[[#This Row],[DemandSavingskW]],0)","v":0}]
[{"$f":"Table_SummaryPI[[#This Row],[Line No.]]","v":""},{"$f":"IF(Table_PrintPI[[#This Row],[Line No.]]=\"\",\"\",CONCATENATE(Table_PrintPI[[#This Row],[Line No.]],\" - \",Table_SummaryPI[[#This Row],[MeasureName]]))","v":""},{"$f":"IF(Table_SummaryPI[[#This Row],[Manufacturer]]<>\"\",CONCATENATE(Table_SummaryPI[[#This Row],[Manufacturer]],\"/\",Table_SummaryPI[[#This Row],[Model'#]]),\"\")","v":""},{"$f":"IF(Table_SummaryPI[[#This Row],[Serial'#]]<>\"\",Table_SummaryPI[[#This Row],[Serial'#]],\"\")","v":""},{"$f":"IF(Table_SummaryPI[[#This Row],[Quantity]]<>\"\",Table_SummaryPI[[#This Row],[Quantity]],\"\")","v":""},{"$f":"IF(Table_SummaryPI[[#This Row],[BaselinekWh]]<>\"\",Table_SummaryPI[[#This Row],[BaselinekWh]],\"\")","v":""},{"$f":"IF(Table_SummaryPI[[#This Row],[BaselinekW]]<>\"\",Table_SummaryPI[[#This Row],[BaselinekW]],\"\")","v":""},{"$f":"IF(Table_SummaryPI[[#This Row],[ProposedkWh]]<>\"\",Table_SummaryPI[[#This Row],[ProposedkWh]],\"\")","v":""},{"$f":"IF(Table_SummaryPI[[#This Row],[ProposedkW]]<>\"\",Table_SummaryPI[[#This Row],[ProposedkW]],\"\")","v":""},{"$f":"IF(Table_SummaryPI[[#This Row],[Notes]]<>\"\",Table_SummaryPI[[#This Row],[Notes]],\"\")","v":""},{"$f":"IF(Table_SummaryPI[[#This Row],[Incentive_Customer]]<>\"\",Table_SummaryPI[[#This Row],[Incentive_Customer]],0)","v":0},{"$f":"IF(Table_SummaryPI[[#This Row],[MeasureCost]]<>\"\",Table_SummaryPI[[#This Row],[MeasureCost]],0)","v":0},{"$f":"IF(Table_SummaryPI[[#This Row],[kWhSavings]]<>\"\",Table_SummaryPI[[#This Row],[kWhSavings]],0)","v":0},{"$f":"IF(Table_SummaryPI[[#This Row],[DemandSavingskW]]<>\"\",Table_SummaryPI[[#This Row],[DemandSavingskW]],0)","v":0}]
[{"$f":"Table_SummaryPI[[#This Row],[Line No.]]","v":""},{"$f":"IF(Table_PrintPI[[#This Row],[Line No.]]=\"\",\"\",CONCATENATE(Table_PrintPI[[#This Row],[Line No.]],\" - \",Table_SummaryPI[[#This Row],[MeasureName]]))","v":""},{"$f":"IF(Table_SummaryPI[[#This Row],[Manufacturer]]<>\"\",CONCATENATE(Table_SummaryPI[[#This Row],[Manufacturer]],\"/\",Table_SummaryPI[[#This Row],[Model'#]]),\"\")","v":""},{"$f":"IF(Table_SummaryPI[[#This Row],[Serial'#]]<>\"\",Table_SummaryPI[[#This Row],[Serial'#]],\"\")","v":""},{"$f":"IF(Table_SummaryPI[[#This Row],[Quantity]]<>\"\",Table_SummaryPI[[#This Row],[Quantity]],\"\")","v":""},{"$f":"IF(Table_SummaryPI[[#This Row],[BaselinekWh]]<>\"\",Table_SummaryPI[[#This Row],[BaselinekWh]],\"\")","v":""},{"$f":"IF(Table_SummaryPI[[#This Row],[BaselinekW]]<>\"\",Table_SummaryPI[[#This Row],[BaselinekW]],\"\")","v":""},{"$f":"IF(Table_SummaryPI[[#This Row],[ProposedkWh]]<>\"\",Table_SummaryPI[[#This Row],[ProposedkWh]],\"\")","v":""},{"$f":"IF(Table_SummaryPI[[#This Row],[ProposedkW]]<>\"\",Table_SummaryPI[[#This Row],[ProposedkW]],\"\")","v":""},{"$f":"IF(Table_SummaryPI[[#This Row],[Notes]]<>\"\",Table_SummaryPI[[#This Row],[Notes]],\"\")","v":""},{"$f":"IF(Table_SummaryPI[[#This Row],[Incentive_Customer]]<>\"\",Table_SummaryPI[[#This Row],[Incentive_Customer]],0)","v":0},{"$f":"IF(Table_SummaryPI[[#This Row],[MeasureCost]]<>\"\",Table_SummaryPI[[#This Row],[MeasureCost]],0)","v":0},{"$f":"IF(Table_SummaryPI[[#This Row],[kWhSavings]]<>\"\",Table_SummaryPI[[#This Row],[kWhSavings]],0)","v":0},{"$f":"IF(Table_SummaryPI[[#This Row],[DemandSavingskW]]<>\"\",Table_SummaryPI[[#This Row],[DemandSavingskW]],0)","v":0}]
[{"$f":"Table_SummaryPI[[#This Row],[Line No.]]","v":""},{"$f":"IF(Table_PrintPI[[#This Row],[Line No.]]=\"\",\"\",CONCATENATE(Table_PrintPI[[#This Row],[Line No.]],\" - \",Table_SummaryPI[[#This Row],[MeasureName]]))","v":""},{"$f":"IF(Table_SummaryPI[[#This Row],[Manufacturer]]<>\"\",CONCATENATE(Table_SummaryPI[[#This Row],[Manufacturer]],\"/\",Table_SummaryPI[[#This Row],[Model'#]]),\"\")","v":""},{"$f":"IF(Table_SummaryPI[[#This Row],[Serial'#]]<>\"\",Table_SummaryPI[[#This Row],[Serial'#]],\"\")","v":""},{"$f":"IF(Table_SummaryPI[[#This Row],[Quantity]]<>\"\",Table_SummaryPI[[#This Row],[Quantity]],\"\")","v":""},{"$f":"IF(Table_SummaryPI[[#This Row],[BaselinekWh]]<>\"\",Table_SummaryPI[[#This Row],[BaselinekWh]],\"\")","v":""},{"$f":"IF(Table_SummaryPI[[#This Row],[BaselinekW]]<>\"\",Table_SummaryPI[[#This Row],[BaselinekW]],\"\")","v":""},{"$f":"IF(Table_SummaryPI[[#This Row],[ProposedkWh]]<>\"\",Table_SummaryPI[[#This Row],[ProposedkWh]],\"\")","v":""},{"$f":"IF(Table_SummaryPI[[#This Row],[ProposedkW]]<>\"\",Table_SummaryPI[[#This Row],[ProposedkW]],\"\")","v":""},{"$f":"IF(Table_SummaryPI[[#This Row],[Notes]]<>\"\",Table_SummaryPI[[#This Row],[Notes]],\"\")","v":""},{"$f":"IF(Table_SummaryPI[[#This Row],[Incentive_Customer]]<>\"\",Table_SummaryPI[[#This Row],[Incentive_Customer]],0)","v":0},{"$f":"IF(Table_SummaryPI[[#This Row],[MeasureCost]]<>\"\",Table_SummaryPI[[#This Row],[MeasureCost]],0)","v":0},{"$f":"IF(Table_SummaryPI[[#This Row],[kWhSavings]]<>\"\",Table_SummaryPI[[#This Row],[kWhSavings]],0)","v":0},{"$f":"IF(Table_SummaryPI[[#This Row],[DemandSavingskW]]<>\"\",Table_SummaryPI[[#This Row],[DemandSavingskW]],0)","v":0}]
[{"$f":"Table_SummaryPI[[#This Row],[Line No.]]","v":""},{"$f":"IF(Table_PrintPI[[#This Row],[Line No.]]=\"\",\"\",CONCATENATE(Table_PrintPI[[#This Row],[Line No.]],\" - \",Table_SummaryPI[[#This Row],[MeasureName]]))","v":""},{"$f":"IF(Table_SummaryPI[[#This Row],[Manufacturer]]<>\"\",CONCATENATE(Table_SummaryPI[[#This Row],[Manufacturer]],\"/\",Table_SummaryPI[[#This Row],[Model'#]]),\"\")","v":""},{"$f":"IF(Table_SummaryPI[[#This Row],[Serial'#]]<>\"\",Table_SummaryPI[[#This Row],[Serial'#]],\"\")","v":""},{"$f":"IF(Table_SummaryPI[[#This Row],[Quantity]]<>\"\",Table_SummaryPI[[#This Row],[Quantity]],\"\")","v":""},{"$f":"IF(Table_SummaryPI[[#This Row],[BaselinekWh]]<>\"\",Table_SummaryPI[[#This Row],[BaselinekWh]],\"\")","v":""},{"$f":"IF(Table_SummaryPI[[#This Row],[BaselinekW]]<>\"\",Table_SummaryPI[[#This Row],[BaselinekW]],\"\")","v":""},{"$f":"IF(Table_SummaryPI[[#This Row],[ProposedkWh]]<>\"\",Table_SummaryPI[[#This Row],[ProposedkWh]],\"\")","v":""},{"$f":"IF(Table_SummaryPI[[#This Row],[ProposedkW]]<>\"\",Table_SummaryPI[[#This Row],[ProposedkW]],\"\")","v":""},{"$f":"IF(Table_SummaryPI[[#This Row],[Notes]]<>\"\",Table_SummaryPI[[#This Row],[Notes]],\"\")","v":""},{"$f":"IF(Table_SummaryPI[[#This Row],[Incentive_Customer]]<>\"\",Table_SummaryPI[[#This Row],[Incentive_Customer]],0)","v":0},{"$f":"IF(Table_SummaryPI[[#This Row],[MeasureCost]]<>\"\",Table_SummaryPI[[#This Row],[MeasureCost]],0)","v":0},{"$f":"IF(Table_SummaryPI[[#This Row],[kWhSavings]]<>\"\",Table_SummaryPI[[#This Row],[kWhSavings]],0)","v":0},{"$f":"IF(Table_SummaryPI[[#This Row],[DemandSavingskW]]<>\"\",Table_SummaryPI[[#This Row],[DemandSavingskW]],0)","v":0}]
[{"$f":"Table_SummaryPI[[#This Row],[Line No.]]","v":""},{"$f":"IF(Table_PrintPI[[#This Row],[Line No.]]=\"\",\"\",CONCATENATE(Table_PrintPI[[#This Row],[Line No.]],\" - \",Table_SummaryPI[[#This Row],[MeasureName]]))","v":""},{"$f":"IF(Table_SummaryPI[[#This Row],[Manufacturer]]<>\"\",CONCATENATE(Table_SummaryPI[[#This Row],[Manufacturer]],\"/\",Table_SummaryPI[[#This Row],[Model'#]]),\"\")","v":""},{"$f":"IF(Table_SummaryPI[[#This Row],[Serial'#]]<>\"\",Table_SummaryPI[[#This Row],[Serial'#]],\"\")","v":""},{"$f":"IF(Table_SummaryPI[[#This Row],[Quantity]]<>\"\",Table_SummaryPI[[#This Row],[Quantity]],\"\")","v":""},{"$f":"IF(Table_SummaryPI[[#This Row],[BaselinekWh]]<>\"\",Table_SummaryPI[[#This Row],[BaselinekWh]],\"\")","v":""},{"$f":"IF(Table_SummaryPI[[#This Row],[BaselinekW]]<>\"\",Table_SummaryPI[[#This Row],[BaselinekW]],\"\")","v":""},{"$f":"IF(Table_SummaryPI[[#This Row],[ProposedkWh]]<>\"\",Table_SummaryPI[[#This Row],[ProposedkWh]],\"\")","v":""},{"$f":"IF(Table_SummaryPI[[#This Row],[ProposedkW]]<>\"\",Table_SummaryPI[[#This Row],[ProposedkW]],\"\")","v":""},{"$f":"IF(Table_SummaryPI[[#This Row],[Notes]]<>\"\",Table_SummaryPI[[#This Row],[Notes]],\"\")","v":""},{"$f":"IF(Table_SummaryPI[[#This Row],[Incentive_Customer]]<>\"\",Table_SummaryPI[[#This Row],[Incentive_Customer]],0)","v":0},{"$f":"IF(Table_SummaryPI[[#This Row],[MeasureCost]]<>\"\",Table_SummaryPI[[#This Row],[MeasureCost]],0)","v":0},{"$f":"IF(Table_SummaryPI[[#This Row],[kWhSavings]]<>\"\",Table_SummaryPI[[#This Row],[kWhSavings]],0)","v":0},{"$f":"IF(Table_SummaryPI[[#This Row],[DemandSavingskW]]<>\"\",Table_SummaryPI[[#This Row],[DemandSavingskW]],0)","v":0}]
[{"$f":"Table_SummaryPI[[#This Row],[Line No.]]","v":""},{"$f":"IF(Table_PrintPI[[#This Row],[Line No.]]=\"\",\"\",CONCATENATE(Table_PrintPI[[#This Row],[Line No.]],\" - \",Table_SummaryPI[[#This Row],[MeasureName]]))","v":""},{"$f":"IF(Table_SummaryPI[[#This Row],[Manufacturer]]<>\"\",CONCATENATE(Table_SummaryPI[[#This Row],[Manufacturer]],\"/\",Table_SummaryPI[[#This Row],[Model'#]]),\"\")","v":""},{"$f":"IF(Table_SummaryPI[[#This Row],[Serial'#]]<>\"\",Table_SummaryPI[[#This Row],[Serial'#]],\"\")","v":""},{"$f":"IF(Table_SummaryPI[[#This Row],[Quantity]]<>\"\",Table_SummaryPI[[#This Row],[Quantity]],\"\")","v":""},{"$f":"IF(Table_SummaryPI[[#This Row],[BaselinekWh]]<>\"\",Table_SummaryPI[[#This Row],[BaselinekWh]],\"\")","v":""},{"$f":"IF(Table_SummaryPI[[#This Row],[BaselinekW]]<>\"\",Table_SummaryPI[[#This Row],[BaselinekW]],\"\")","v":""},{"$f":"IF(Table_SummaryPI[[#This Row],[ProposedkWh]]<>\"\",Table_SummaryPI[[#This Row],[ProposedkWh]],\"\")","v":""},{"$f":"IF(Table_SummaryPI[[#This Row],[ProposedkW]]<>\"\",Table_SummaryPI[[#This Row],[ProposedkW]],\"\")","v":""},{"$f":"IF(Table_SummaryPI[[#This Row],[Notes]]<>\"\",Table_SummaryPI[[#This Row],[Notes]],\"\")","v":""},{"$f":"IF(Table_SummaryPI[[#This Row],[Incentive_Customer]]<>\"\",Table_SummaryPI[[#This Row],[Incentive_Customer]],0)","v":0},{"$f":"IF(Table_SummaryPI[[#This Row],[MeasureCost]]<>\"\",Table_SummaryPI[[#This Row],[MeasureCost]],0)","v":0},{"$f":"IF(Table_SummaryPI[[#This Row],[kWhSavings]]<>\"\",Table_SummaryPI[[#This Row],[kWhSavings]],0)","v":0},{"$f":"IF(Table_SummaryPI[[#This Row],[DemandSavingskW]]<>\"\",Table_SummaryPI[[#This Row],[DemandSavingskW]],0)","v":0}]
[{"$f":"Table_SummaryPI[[#This Row],[Line No.]]","v":""},{"$f":"IF(Table_PrintPI[[#This Row],[Line No.]]=\"\",\"\",CONCATENATE(Table_PrintPI[[#This Row],[Line No.]],\" - \",Table_SummaryPI[[#This Row],[MeasureName]]))","v":""},{"$f":"IF(Table_SummaryPI[[#This Row],[Manufacturer]]<>\"\",CONCATENATE(Table_SummaryPI[[#This Row],[Manufacturer]],\"/\",Table_SummaryPI[[#This Row],[Model'#]]),\"\")","v":""},{"$f":"IF(Table_SummaryPI[[#This Row],[Serial'#]]<>\"\",Table_SummaryPI[[#This Row],[Serial'#]],\"\")","v":""},{"$f":"IF(Table_SummaryPI[[#This Row],[Quantity]]<>\"\",Table_SummaryPI[[#This Row],[Quantity]],\"\")","v":""},{"$f":"IF(Table_SummaryPI[[#This Row],[BaselinekWh]]<>\"\",Table_SummaryPI[[#This Row],[BaselinekWh]],\"\")","v":""},{"$f":"IF(Table_SummaryPI[[#This Row],[BaselinekW]]<>\"\",Table_SummaryPI[[#This Row],[BaselinekW]],\"\")","v":""},{"$f":"IF(Table_SummaryPI[[#This Row],[ProposedkWh]]<>\"\",Table_SummaryPI[[#This Row],[ProposedkWh]],\"\")","v":""},{"$f":"IF(Table_SummaryPI[[#This Row],[ProposedkW]]<>\"\",Table_SummaryPI[[#This Row],[ProposedkW]],\"\")","v":""},{"$f":"IF(Table_SummaryPI[[#This Row],[Notes]]<>\"\",Table_SummaryPI[[#This Row],[Notes]],\"\")","v":""},{"$f":"IF(Table_SummaryPI[[#This Row],[Incentive_Customer]]<>\"\",Table_SummaryPI[[#This Row],[Incentive_Customer]],0)","v":0},{"$f":"IF(Table_SummaryPI[[#This Row],[MeasureCost]]<>\"\",Table_SummaryPI[[#This Row],[MeasureCost]],0)","v":0},{"$f":"IF(Table_SummaryPI[[#This Row],[kWhSavings]]<>\"\",Table_SummaryPI[[#This Row],[kWhSavings]],0)","v":0},{"$f":"IF(Table_SummaryPI[[#This Row],[DemandSavingskW]]<>\"\",Table_SummaryPI[[#This Row],[DemandSavingskW]],0)","v":0}]
[{"$f":"Table_SummaryPI[[#This Row],[Line No.]]","v":""},{"$f":"IF(Table_PrintPI[[#This Row],[Line No.]]=\"\",\"\",CONCATENATE(Table_PrintPI[[#This Row],[Line No.]],\" - \",Table_SummaryPI[[#This Row],[MeasureName]]))","v":""},{"$f":"IF(Table_SummaryPI[[#This Row],[Manufacturer]]<>\"\",CONCATENATE(Table_SummaryPI[[#This Row],[Manufacturer]],\"/\",Table_SummaryPI[[#This Row],[Model'#]]),\"\")","v":""},{"$f":"IF(Table_SummaryPI[[#This Row],[Serial'#]]<>\"\",Table_SummaryPI[[#This Row],[Serial'#]],\"\")","v":""},{"$f":"IF(Table_SummaryPI[[#This Row],[Quantity]]<>\"\",Table_SummaryPI[[#This Row],[Quantity]],\"\")","v":""},{"$f":"IF(Table_SummaryPI[[#This Row],[BaselinekWh]]<>\"\",Table_SummaryPI[[#This Row],[BaselinekWh]],\"\")","v":""},{"$f":"IF(Table_SummaryPI[[#This Row],[BaselinekW]]<>\"\",Table_SummaryPI[[#This Row],[BaselinekW]],\"\")","v":""},{"$f":"IF(Table_SummaryPI[[#This Row],[ProposedkWh]]<>\"\",Table_SummaryPI[[#This Row],[ProposedkWh]],\"\")","v":""},{"$f":"IF(Table_SummaryPI[[#This Row],[ProposedkW]]<>\"\",Table_SummaryPI[[#This Row],[ProposedkW]],\"\")","v":""},{"$f":"IF(Table_SummaryPI[[#This Row],[Notes]]<>\"\",Table_SummaryPI[[#This Row],[Notes]],\"\")","v":""},{"$f":"IF(Table_SummaryPI[[#This Row],[Incentive_Customer]]<>\"\",Table_SummaryPI[[#This Row],[Incentive_Customer]],0)","v":0},{"$f":"IF(Table_SummaryPI[[#This Row],[MeasureCost]]<>\"\",Table_SummaryPI[[#This Row],[MeasureCost]],0)","v":0},{"$f":"IF(Table_SummaryPI[[#This Row],[kWhSavings]]<>\"\",Table_SummaryPI[[#This Row],[kWhSavings]],0)","v":0},{"$f":"IF(Table_SummaryPI[[#This Row],[DemandSavingskW]]<>\"\",Table_SummaryPI[[#This Row],[DemandSavingskW]],0)","v":0}]
[{"$f":"Table_SummaryPI[[#This Row],[Line No.]]","v":""},{"$f":"IF(Table_PrintPI[[#This Row],[Line No.]]=\"\",\"\",CONCATENATE(Table_PrintPI[[#This Row],[Line No.]],\" - \",Table_SummaryPI[[#This Row],[MeasureName]]))","v":""},{"$f":"IF(Table_SummaryPI[[#This Row],[Manufacturer]]<>\"\",CONCATENATE(Table_SummaryPI[[#This Row],[Manufacturer]],\"/\",Table_SummaryPI[[#This Row],[Model'#]]),\"\")","v":""},{"$f":"IF(Table_SummaryPI[[#This Row],[Serial'#]]<>\"\",Table_SummaryPI[[#This Row],[Serial'#]],\"\")","v":""},{"$f":"IF(Table_SummaryPI[[#This Row],[Quantity]]<>\"\",Table_SummaryPI[[#This Row],[Quantity]],\"\")","v":""},{"$f":"IF(Table_SummaryPI[[#This Row],[BaselinekWh]]<>\"\",Table_SummaryPI[[#This Row],[BaselinekWh]],\"\")","v":""},{"$f":"IF(Table_SummaryPI[[#This Row],[BaselinekW]]<>\"\",Table_SummaryPI[[#This Row],[BaselinekW]],\"\")","v":""},{"$f":"IF(Table_SummaryPI[[#This Row],[ProposedkWh]]<>\"\",Table_SummaryPI[[#This Row],[ProposedkWh]],\"\")","v":""},{"$f":"IF(Table_SummaryPI[[#This Row],[ProposedkW]]<>\"\",Table_SummaryPI[[#This Row],[ProposedkW]],\"\")","v":""},{"$f":"IF(Table_SummaryPI[[#This Row],[Notes]]<>\"\",Table_SummaryPI[[#This Row],[Notes]],\"\")","v":""},{"$f":"IF(Table_SummaryPI[[#This Row],[Incentive_Customer]]<>\"\",Table_SummaryPI[[#This Row],[Incentive_Customer]],0)","v":0},{"$f":"IF(Table_SummaryPI[[#This Row],[MeasureCost]]<>\"\",Table_SummaryPI[[#This Row],[MeasureCost]],0)","v":0},{"$f":"IF(Table_SummaryPI[[#This Row],[kWhSavings]]<>\"\",Table_SummaryPI[[#This Row],[kWhSavings]],0)","v":0},{"$f":"IF(Table_SummaryPI[[#This Row],[DemandSavingskW]]<>\"\",Table_SummaryPI[[#This Row],[DemandSavingskW]],0)","v":0}]
[{"$f":"Table_SummaryPI[[#This Row],[Line No.]]","v":""},{"$f":"IF(Table_PrintPI[[#This Row],[Line No.]]=\"\",\"\",CONCATENATE(Table_PrintPI[[#This Row],[Line No.]],\" - \",Table_SummaryPI[[#This Row],[MeasureName]]))","v":""},{"$f":"IF(Table_SummaryPI[[#This Row],[Manufacturer]]<>\"\",CONCATENATE(Table_SummaryPI[[#This Row],[Manufacturer]],\"/\",Table_SummaryPI[[#This Row],[Model'#]]),\"\")","v":""},{"$f":"IF(Table_SummaryPI[[#This Row],[Serial'#]]<>\"\",Table_SummaryPI[[#This Row],[Serial'#]],\"\")","v":""},{"$f":"IF(Table_SummaryPI[[#This Row],[Quantity]]<>\"\",Table_SummaryPI[[#This Row],[Quantity]],\"\")","v":""},{"$f":"IF(Table_SummaryPI[[#This Row],[BaselinekWh]]<>\"\",Table_SummaryPI[[#This Row],[BaselinekWh]],\"\")","v":""},{"$f":"IF(Table_SummaryPI[[#This Row],[BaselinekW]]<>\"\",Table_SummaryPI[[#This Row],[BaselinekW]],\"\")","v":""},{"$f":"IF(Table_SummaryPI[[#This Row],[ProposedkWh]]<>\"\",Table_SummaryPI[[#This Row],[ProposedkWh]],\"\")","v":""},{"$f":"IF(Table_SummaryPI[[#This Row],[ProposedkW]]<>\"\",Table_SummaryPI[[#This Row],[ProposedkW]],\"\")","v":""},{"$f":"IF(Table_SummaryPI[[#This Row],[Notes]]<>\"\",Table_SummaryPI[[#This Row],[Notes]],\"\")","v":""},{"$f":"IF(Table_SummaryPI[[#This Row],[Incentive_Customer]]<>\"\",Table_SummaryPI[[#This Row],[Incentive_Customer]],0)","v":0},{"$f":"IF(Table_SummaryPI[[#This Row],[MeasureCost]]<>\"\",Table_SummaryPI[[#This Row],[MeasureCost]],0)","v":0},{"$f":"IF(Table_SummaryPI[[#This Row],[kWhSavings]]<>\"\",Table_SummaryPI[[#This Row],[kWhSavings]],0)","v":0},{"$f":"IF(Table_SummaryPI[[#This Row],[DemandSavingskW]]<>\"\",Table_SummaryPI[[#This Row],[DemandSavingskW]],0)","v":0}]
[{"$f":"Table_SummaryPI[[#This Row],[Line No.]]","v":""},{"$f":"IF(Table_PrintPI[[#This Row],[Line No.]]=\"\",\"\",CONCATENATE(Table_PrintPI[[#This Row],[Line No.]],\" - \",Table_SummaryPI[[#This Row],[MeasureName]]))","v":""},{"$f":"IF(Table_SummaryPI[[#This Row],[Manufacturer]]<>\"\",CONCATENATE(Table_SummaryPI[[#This Row],[Manufacturer]],\"/\",Table_SummaryPI[[#This Row],[Model'#]]),\"\")","v":""},{"$f":"IF(Table_SummaryPI[[#This Row],[Serial'#]]<>\"\",Table_SummaryPI[[#This Row],[Serial'#]],\"\")","v":""},{"$f":"IF(Table_SummaryPI[[#This Row],[Quantity]]<>\"\",Table_SummaryPI[[#This Row],[Quantity]],\"\")","v":""},{"$f":"IF(Table_SummaryPI[[#This Row],[BaselinekWh]]<>\"\",Table_SummaryPI[[#This Row],[BaselinekWh]],\"\")","v":""},{"$f":"IF(Table_SummaryPI[[#This Row],[BaselinekW]]<>\"\",Table_SummaryPI[[#This Row],[BaselinekW]],\"\")","v":""},{"$f":"IF(Table_SummaryPI[[#This Row],[ProposedkWh]]<>\"\",Table_SummaryPI[[#This Row],[ProposedkWh]],\"\")","v":""},{"$f":"IF(Table_SummaryPI[[#This Row],[ProposedkW]]<>\"\",Table_SummaryPI[[#This Row],[ProposedkW]],\"\")","v":""},{"$f":"IF(Table_SummaryPI[[#This Row],[Notes]]<>\"\",Table_SummaryPI[[#This Row],[Notes]],\"\")","v":""},{"$f":"IF(Table_SummaryPI[[#This Row],[Incentive_Customer]]<>\"\",Table_SummaryPI[[#This Row],[Incentive_Customer]],0)","v":0},{"$f":"IF(Table_SummaryPI[[#This Row],[MeasureCost]]<>\"\",Table_SummaryPI[[#This Row],[MeasureCost]],0)","v":0},{"$f":"IF(Table_SummaryPI[[#This Row],[kWhSavings]]<>\"\",Table_SummaryPI[[#This Row],[kWhSavings]],0)","v":0},{"$f":"IF(Table_SummaryPI[[#This Row],[DemandSavingskW]]<>\"\",Table_SummaryPI[[#This Row],[DemandSavingskW]],0)","v":0}]
[{"$f":"Table_SummaryPI[[#This Row],[Line No.]]","v":""},{"$f":"IF(Table_PrintPI[[#This Row],[Line No.]]=\"\",\"\",CONCATENATE(Table_PrintPI[[#This Row],[Line No.]],\" - \",Table_SummaryPI[[#This Row],[MeasureName]]))","v":""},{"$f":"IF(Table_SummaryPI[[#This Row],[Manufacturer]]<>\"\",CONCATENATE(Table_SummaryPI[[#This Row],[Manufacturer]],\"/\",Table_SummaryPI[[#This Row],[Model'#]]),\"\")","v":""},{"$f":"IF(Table_SummaryPI[[#This Row],[Serial'#]]<>\"\",Table_SummaryPI[[#This Row],[Serial'#]],\"\")","v":""},{"$f":"IF(Table_SummaryPI[[#This Row],[Quantity]]<>\"\",Table_SummaryPI[[#This Row],[Quantity]],\"\")","v":""},{"$f":"IF(Table_SummaryPI[[#This Row],[BaselinekWh]]<>\"\",Table_SummaryPI[[#This Row],[BaselinekWh]],\"\")","v":""},{"$f":"IF(Table_SummaryPI[[#This Row],[BaselinekW]]<>\"\",Table_SummaryPI[[#This Row],[BaselinekW]],\"\")","v":""},{"$f":"IF(Table_SummaryPI[[#This Row],[ProposedkWh]]<>\"\",Table_SummaryPI[[#This Row],[ProposedkWh]],\"\")","v":""},{"$f":"IF(Table_SummaryPI[[#This Row],[ProposedkW]]<>\"\",Table_SummaryPI[[#This Row],[ProposedkW]],\"\")","v":""},{"$f":"IF(Table_SummaryPI[[#This Row],[Notes]]<>\"\",Table_SummaryPI[[#This Row],[Notes]],\"\")","v":""},{"$f":"IF(Table_SummaryPI[[#This Row],[Incentive_Customer]]<>\"\",Table_SummaryPI[[#This Row],[Incentive_Customer]],0)","v":0},{"$f":"IF(Table_SummaryPI[[#This Row],[MeasureCost]]<>\"\",Table_SummaryPI[[#This Row],[MeasureCost]],0)","v":0},{"$f":"IF(Table_SummaryPI[[#This Row],[kWhSavings]]<>\"\",Table_SummaryPI[[#This Row],[kWhSavings]],0)","v":0},{"$f":"IF(Table_SummaryPI[[#This Row],[DemandSavingskW]]<>\"\",Table_SummaryPI[[#This Row],[DemandSavingskW]],0)","v":0}]
[{"$f":"Table_SummaryPI[[#This Row],[Line No.]]","v":""},{"$f":"IF(Table_PrintPI[[#This Row],[Line No.]]=\"\",\"\",CONCATENATE(Table_PrintPI[[#This Row],[Line No.]],\" - \",Table_SummaryPI[[#This Row],[MeasureName]]))","v":""},{"$f":"IF(Table_SummaryPI[[#This Row],[Manufacturer]]<>\"\",CONCATENATE(Table_SummaryPI[[#This Row],[Manufacturer]],\"/\",Table_SummaryPI[[#This Row],[Model'#]]),\"\")","v":""},{"$f":"IF(Table_SummaryPI[[#This Row],[Serial'#]]<>\"\",Table_SummaryPI[[#This Row],[Serial'#]],\"\")","v":""},{"$f":"IF(Table_SummaryPI[[#This Row],[Quantity]]<>\"\",Table_SummaryPI[[#This Row],[Quantity]],\"\")","v":""},{"$f":"IF(Table_SummaryPI[[#This Row],[BaselinekWh]]<>\"\",Table_SummaryPI[[#This Row],[BaselinekWh]],\"\")","v":""},{"$f":"IF(Table_SummaryPI[[#This Row],[BaselinekW]]<>\"\",Table_SummaryPI[[#This Row],[BaselinekW]],\"\")","v":""},{"$f":"IF(Table_SummaryPI[[#This Row],[ProposedkWh]]<>\"\",Table_SummaryPI[[#This Row],[ProposedkWh]],\"\")","v":""},{"$f":"IF(Table_SummaryPI[[#This Row],[ProposedkW]]<>\"\",Table_SummaryPI[[#This Row],[ProposedkW]],\"\")","v":""},{"$f":"IF(Table_SummaryPI[[#This Row],[Notes]]<>\"\",Table_SummaryPI[[#This Row],[Notes]],\"\")","v":""},{"$f":"IF(Table_SummaryPI[[#This Row],[Incentive_Customer]]<>\"\",Table_SummaryPI[[#This Row],[Incentive_Customer]],0)","v":0},{"$f":"IF(Table_SummaryPI[[#This Row],[MeasureCost]]<>\"\",Table_SummaryPI[[#This Row],[MeasureCost]],0)","v":0},{"$f":"IF(Table_SummaryPI[[#This Row],[kWhSavings]]<>\"\",Table_SummaryPI[[#This Row],[kWhSavings]],0)","v":0},{"$f":"IF(Table_SummaryPI[[#This Row],[DemandSavingskW]]<>\"\",Table_SummaryPI[[#This Row],[DemandSavingskW]],0)","v":0}]
[{"$f":"Table_SummaryPI[[#This Row],[Line No.]]","v":""},{"$f":"IF(Table_PrintPI[[#This Row],[Line No.]]=\"\",\"\",CONCATENATE(Table_PrintPI[[#This Row],[Line No.]],\" - \",Table_SummaryPI[[#This Row],[MeasureName]]))","v":""},{"$f":"IF(Table_SummaryPI[[#This Row],[Manufacturer]]<>\"\",CONCATENATE(Table_SummaryPI[[#This Row],[Manufacturer]],\"/\",Table_SummaryPI[[#This Row],[Model'#]]),\"\")","v":""},{"$f":"IF(Table_SummaryPI[[#This Row],[Serial'#]]<>\"\",Table_SummaryPI[[#This Row],[Serial'#]],\"\")","v":""},{"$f":"IF(Table_SummaryPI[[#This Row],[Quantity]]<>\"\",Table_SummaryPI[[#This Row],[Quantity]],\"\")","v":""},{"$f":"IF(Table_SummaryPI[[#This Row],[BaselinekWh]]<>\"\",Table_SummaryPI[[#This Row],[BaselinekWh]],\"\")","v":""},{"$f":"IF(Table_SummaryPI[[#This Row],[BaselinekW]]<>\"\",Table_SummaryPI[[#This Row],[BaselinekW]],\"\")","v":""},{"$f":"IF(Table_SummaryPI[[#This Row],[ProposedkWh]]<>\"\",Table_SummaryPI[[#This Row],[ProposedkWh]],\"\")","v":""},{"$f":"IF(Table_SummaryPI[[#This Row],[ProposedkW]]<>\"\",Table_SummaryPI[[#This Row],[ProposedkW]],\"\")","v":""},{"$f":"IF(Table_SummaryPI[[#This Row],[Notes]]<>\"\",Table_SummaryPI[[#This Row],[Notes]],\"\")","v":""},{"$f":"IF(Table_SummaryPI[[#This Row],[Incentive_Customer]]<>\"\",Table_SummaryPI[[#This Row],[Incentive_Customer]],0)","v":0},{"$f":"IF(Table_SummaryPI[[#This Row],[MeasureCost]]<>\"\",Table_SummaryPI[[#This Row],[MeasureCost]],0)","v":0},{"$f":"IF(Table_SummaryPI[[#This Row],[kWhSavings]]<>\"\",Table_SummaryPI[[#This Row],[kWhSavings]],0)","v":0},{"$f":"IF(Table_SummaryPI[[#This Row],[DemandSavingskW]]<>\"\",Table_SummaryPI[[#This Row],[DemandSavingskW]],0)","v":0}]
[{"$f":"Table_SummaryPI[[#This Row],[Line No.]]","v":""},{"$f":"IF(Table_PrintPI[[#This Row],[Line No.]]=\"\",\"\",CONCATENATE(Table_PrintPI[[#This Row],[Line No.]],\" - \",Table_SummaryPI[[#This Row],[MeasureName]]))","v":""},{"$f":"IF(Table_SummaryPI[[#This Row],[Manufacturer]]<>\"\",CONCATENATE(Table_SummaryPI[[#This Row],[Manufacturer]],\"/\",Table_SummaryPI[[#This Row],[Model'#]]),\"\")","v":""},{"$f":"IF(Table_SummaryPI[[#This Row],[Serial'#]]<>\"\",Table_SummaryPI[[#This Row],[Serial'#]],\"\")","v":""},{"$f":"IF(Table_SummaryPI[[#This Row],[Quantity]]<>\"\",Table_SummaryPI[[#This Row],[Quantity]],\"\")","v":""},{"$f":"IF(Table_SummaryPI[[#This Row],[BaselinekWh]]<>\"\",Table_SummaryPI[[#This Row],[BaselinekWh]],\"\")","v":""},{"$f":"IF(Table_SummaryPI[[#This Row],[BaselinekW]]<>\"\",Table_SummaryPI[[#This Row],[BaselinekW]],\"\")","v":""},{"$f":"IF(Table_SummaryPI[[#This Row],[ProposedkWh]]<>\"\",Table_SummaryPI[[#This Row],[ProposedkWh]],\"\")","v":""},{"$f":"IF(Table_SummaryPI[[#This Row],[ProposedkW]]<>\"\",Table_SummaryPI[[#This Row],[ProposedkW]],\"\")","v":""},{"$f":"IF(Table_SummaryPI[[#This Row],[Notes]]<>\"\",Table_SummaryPI[[#This Row],[Notes]],\"\")","v":""},{"$f":"IF(Table_SummaryPI[[#This Row],[Incentive_Customer]]<>\"\",Table_SummaryPI[[#This Row],[Incentive_Customer]],0)","v":0},{"$f":"IF(Table_SummaryPI[[#This Row],[MeasureCost]]<>\"\",Table_SummaryPI[[#This Row],[MeasureCost]],0)","v":0},{"$f":"IF(Table_SummaryPI[[#This Row],[kWhSavings]]<>\"\",Table_SummaryPI[[#This Row],[kWhSavings]],0)","v":0},{"$f":"IF(Table_SummaryPI[[#This Row],[DemandSavingskW]]<>\"\",Table_SummaryPI[[#This Row],[DemandSavingskW]],0)","v":0}]
[{"$f":"Table_SummaryPI[[#This Row],[Line No.]]","v":""},{"$f":"IF(Table_PrintPI[[#This Row],[Line No.]]=\"\",\"\",CONCATENATE(Table_PrintPI[[#This Row],[Line No.]],\" - \",Table_SummaryPI[[#This Row],[MeasureName]]))","v":""},{"$f":"IF(Table_SummaryPI[[#This Row],[Manufacturer]]<>\"\",CONCATENATE(Table_SummaryPI[[#This Row],[Manufacturer]],\"/\",Table_SummaryPI[[#This Row],[Model'#]]),\"\")","v":""},{"$f":"IF(Table_SummaryPI[[#This Row],[Serial'#]]<>\"\",Table_SummaryPI[[#This Row],[Serial'#]],\"\")","v":""},{"$f":"IF(Table_SummaryPI[[#This Row],[Quantity]]<>\"\",Table_SummaryPI[[#This Row],[Quantity]],\"\")","v":""},{"$f":"IF(Table_SummaryPI[[#This Row],[BaselinekWh]]<>\"\",Table_SummaryPI[[#This Row],[BaselinekWh]],\"\")","v":""},{"$f":"IF(Table_SummaryPI[[#This Row],[BaselinekW]]<>\"\",Table_SummaryPI[[#This Row],[BaselinekW]],\"\")","v":""},{"$f":"IF(Table_SummaryPI[[#This Row],[ProposedkWh]]<>\"\",Table_SummaryPI[[#This Row],[ProposedkWh]],\"\")","v":""},{"$f":"IF(Table_SummaryPI[[#This Row],[ProposedkW]]<>\"\",Table_SummaryPI[[#This Row],[ProposedkW]],\"\")","v":""},{"$f":"IF(Table_SummaryPI[[#This Row],[Notes]]<>\"\",Table_SummaryPI[[#This Row],[Notes]],\"\")","v":""},{"$f":"IF(Table_SummaryPI[[#This Row],[Incentive_Customer]]<>\"\",Table_SummaryPI[[#This Row],[Incentive_Customer]],0)","v":0},{"$f":"IF(Table_SummaryPI[[#This Row],[MeasureCost]]<>\"\",Table_SummaryPI[[#This Row],[MeasureCost]],0)","v":0},{"$f":"IF(Table_SummaryPI[[#This Row],[kWhSavings]]<>\"\",Table_SummaryPI[[#This Row],[kWhSavings]],0)","v":0},{"$f":"IF(Table_SummaryPI[[#This Row],[DemandSavingskW]]<>\"\",Table_SummaryPI[[#This Row],[DemandSavingskW]],0)","v":0}]
[{"$f":"Table_SummaryPI[[#This Row],[Line No.]]","v":""},{"$f":"IF(Table_PrintPI[[#This Row],[Line No.]]=\"\",\"\",CONCATENATE(Table_PrintPI[[#This Row],[Line No.]],\" - \",Table_SummaryPI[[#This Row],[MeasureName]]))","v":""},{"$f":"IF(Table_SummaryPI[[#This Row],[Manufacturer]]<>\"\",CONCATENATE(Table_SummaryPI[[#This Row],[Manufacturer]],\"/\",Table_SummaryPI[[#This Row],[Model'#]]),\"\")","v":""},{"$f":"IF(Table_SummaryPI[[#This Row],[Serial'#]]<>\"\",Table_SummaryPI[[#This Row],[Serial'#]],\"\")","v":""},{"$f":"IF(Table_SummaryPI[[#This Row],[Quantity]]<>\"\",Table_SummaryPI[[#This Row],[Quantity]],\"\")","v":""},{"$f":"IF(Table_SummaryPI[[#This Row],[BaselinekWh]]<>\"\",Table_SummaryPI[[#This Row],[BaselinekWh]],\"\")","v":""},{"$f":"IF(Table_SummaryPI[[#This Row],[BaselinekW]]<>\"\",Table_SummaryPI[[#This Row],[BaselinekW]],\"\")","v":""},{"$f":"IF(Table_SummaryPI[[#This Row],[ProposedkWh]]<>\"\",Table_SummaryPI[[#This Row],[ProposedkWh]],\"\")","v":""},{"$f":"IF(Table_SummaryPI[[#This Row],[ProposedkW]]<>\"\",Table_SummaryPI[[#This Row],[ProposedkW]],\"\")","v":""},{"$f":"IF(Table_SummaryPI[[#This Row],[Notes]]<>\"\",Table_SummaryPI[[#This Row],[Notes]],\"\")","v":""},{"$f":"IF(Table_SummaryPI[[#This Row],[Incentive_Customer]]<>\"\",Table_SummaryPI[[#This Row],[Incentive_Customer]],0)","v":0},{"$f":"IF(Table_SummaryPI[[#This Row],[MeasureCost]]<>\"\",Table_SummaryPI[[#This Row],[MeasureCost]],0)","v":0},{"$f":"IF(Table_SummaryPI[[#This Row],[kWhSavings]]<>\"\",Table_SummaryPI[[#This Row],[kWhSavings]],0)","v":0},{"$f":"IF(Table_SummaryPI[[#This Row],[DemandSavingskW]]<>\"\",Table_SummaryPI[[#This Row],[DemandSavingskW]],0)","v":0}]
[{"$f":"Table_SummaryPI[[#This Row],[Line No.]]","v":""},{"$f":"IF(Table_PrintPI[[#This Row],[Line No.]]=\"\",\"\",CONCATENATE(Table_PrintPI[[#This Row],[Line No.]],\" - \",Table_SummaryPI[[#This Row],[MeasureName]]))","v":""},{"$f":"IF(Table_SummaryPI[[#This Row],[Manufacturer]]<>\"\",CONCATENATE(Table_SummaryPI[[#This Row],[Manufacturer]],\"/\",Table_SummaryPI[[#This Row],[Model'#]]),\"\")","v":""},{"$f":"IF(Table_SummaryPI[[#This Row],[Serial'#]]<>\"\",Table_SummaryPI[[#This Row],[Serial'#]],\"\")","v":""},{"$f":"IF(Table_SummaryPI[[#This Row],[Quantity]]<>\"\",Table_SummaryPI[[#This Row],[Quantity]],\"\")","v":""},{"$f":"IF(Table_SummaryPI[[#This Row],[BaselinekWh]]<>\"\",Table_SummaryPI[[#This Row],[BaselinekWh]],\"\")","v":""},{"$f":"IF(Table_SummaryPI[[#This Row],[BaselinekW]]<>\"\",Table_SummaryPI[[#This Row],[BaselinekW]],\"\")","v":""},{"$f":"IF(Table_SummaryPI[[#This Row],[ProposedkWh]]<>\"\",Table_SummaryPI[[#This Row],[ProposedkWh]],\"\")","v":""},{"$f":"IF(Table_SummaryPI[[#This Row],[ProposedkW]]<>\"\",Table_SummaryPI[[#This Row],[ProposedkW]],\"\")","v":""},{"$f":"IF(Table_SummaryPI[[#This Row],[Notes]]<>\"\",Table_SummaryPI[[#This Row],[Notes]],\"\")","v":""},{"$f":"IF(Table_SummaryPI[[#This Row],[Incentive_Customer]]<>\"\",Table_SummaryPI[[#This Row],[Incentive_Customer]],0)","v":0},{"$f":"IF(Table_SummaryPI[[#This Row],[MeasureCost]]<>\"\",Table_SummaryPI[[#This Row],[MeasureCost]],0)","v":0},{"$f":"IF(Table_SummaryPI[[#This Row],[kWhSavings]]<>\"\",Table_SummaryPI[[#This Row],[kWhSavings]],0)","v":0},{"$f":"IF(Table_SummaryPI[[#This Row],[DemandSavingskW]]<>\"\",Table_SummaryPI[[#This Row],[DemandSavingskW]],0)","v":0}]
[{"$f":"Table_SummaryPI[[#This Row],[Line No.]]","v":""},{"$f":"IF(Table_PrintPI[[#This Row],[Line No.]]=\"\",\"\",CONCATENATE(Table_PrintPI[[#This Row],[Line No.]],\" - \",Table_SummaryPI[[#This Row],[MeasureName]]))","v":""},{"$f":"IF(Table_SummaryPI[[#This Row],[Manufacturer]]<>\"\",CONCATENATE(Table_SummaryPI[[#This Row],[Manufacturer]],\"/\",Table_SummaryPI[[#This Row],[Model'#]]),\"\")","v":""},{"$f":"IF(Table_SummaryPI[[#This Row],[Serial'#]]<>\"\",Table_SummaryPI[[#This Row],[Serial'#]],\"\")","v":""},{"$f":"IF(Table_SummaryPI[[#This Row],[Quantity]]<>\"\",Table_SummaryPI[[#This Row],[Quantity]],\"\")","v":""},{"$f":"IF(Table_SummaryPI[[#This Row],[BaselinekWh]]<>\"\",Table_SummaryPI[[#This Row],[BaselinekWh]],\"\")","v":""},{"$f":"IF(Table_SummaryPI[[#This Row],[BaselinekW]]<>\"\",Table_SummaryPI[[#This Row],[BaselinekW]],\"\")","v":""},{"$f":"IF(Table_SummaryPI[[#This Row],[ProposedkWh]]<>\"\",Table_SummaryPI[[#This Row],[ProposedkWh]],\"\")","v":""},{"$f":"IF(Table_SummaryPI[[#This Row],[ProposedkW]]<>\"\",Table_SummaryPI[[#This Row],[ProposedkW]],\"\")","v":""},{"$f":"IF(Table_SummaryPI[[#This Row],[Notes]]<>\"\",Table_SummaryPI[[#This Row],[Notes]],\"\")","v":""},{"$f":"IF(Table_SummaryPI[[#This Row],[Incentive_Customer]]<>\"\",Table_SummaryPI[[#This Row],[Incentive_Customer]],0)","v":0},{"$f":"IF(Table_SummaryPI[[#This Row],[MeasureCost]]<>\"\",Table_SummaryPI[[#This Row],[MeasureCost]],0)","v":0},{"$f":"IF(Table_SummaryPI[[#This Row],[kWhSavings]]<>\"\",Table_SummaryPI[[#This Row],[kWhSavings]],0)","v":0},{"$f":"IF(Table_SummaryPI[[#This Row],[DemandSavingskW]]<>\"\",Table_SummaryPI[[#This Row],[DemandSavingskW]],0)","v":0}]
[{"$f":"Table_SummaryPI[[#This Row],[Line No.]]","v":""},{"$f":"IF(Table_PrintPI[[#This Row],[Line No.]]=\"\",\"\",CONCATENATE(Table_PrintPI[[#This Row],[Line No.]],\" - \",Table_SummaryPI[[#This Row],[MeasureName]]))","v":""},{"$f":"IF(Table_SummaryPI[[#This Row],[Manufacturer]]<>\"\",CONCATENATE(Table_SummaryPI[[#This Row],[Manufacturer]],\"/\",Table_SummaryPI[[#This Row],[Model'#]]),\"\")","v":""},{"$f":"IF(Table_SummaryPI[[#This Row],[Serial'#]]<>\"\",Table_SummaryPI[[#This Row],[Serial'#]],\"\")","v":""},{"$f":"IF(Table_SummaryPI[[#This Row],[Quantity]]<>\"\",Table_SummaryPI[[#This Row],[Quantity]],\"\")","v":""},{"$f":"IF(Table_SummaryPI[[#This Row],[BaselinekWh]]<>\"\",Table_SummaryPI[[#This Row],[BaselinekWh]],\"\")","v":""},{"$f":"IF(Table_SummaryPI[[#This Row],[BaselinekW]]<>\"\",Table_SummaryPI[[#This Row],[BaselinekW]],\"\")","v":""},{"$f":"IF(Table_SummaryPI[[#This Row],[ProposedkWh]]<>\"\",Table_SummaryPI[[#This Row],[ProposedkWh]],\"\")","v":""},{"$f":"IF(Table_SummaryPI[[#This Row],[ProposedkW]]<>\"\",Table_SummaryPI[[#This Row],[ProposedkW]],\"\")","v":""},{"$f":"IF(Table_SummaryPI[[#This Row],[Notes]]<>\"\",Table_SummaryPI[[#This Row],[Notes]],\"\")","v":""},{"$f":"IF(Table_SummaryPI[[#This Row],[Incentive_Customer]]<>\"\",Table_SummaryPI[[#This Row],[Incentive_Customer]],0)","v":0},{"$f":"IF(Table_SummaryPI[[#This Row],[MeasureCost]]<>\"\",Table_SummaryPI[[#This Row],[MeasureCost]],0)","v":0},{"$f":"IF(Table_SummaryPI[[#This Row],[kWhSavings]]<>\"\",Table_SummaryPI[[#This Row],[kWhSavings]],0)","v":0},{"$f":"IF(Table_SummaryPI[[#This Row],[DemandSavingskW]]<>\"\",Table_SummaryPI[[#This Row],[DemandSavingskW]],0)","v":0}]
[{"$f":"Table_SummaryPI[[#This Row],[Line No.]]","v":""},{"$f":"IF(Table_PrintPI[[#This Row],[Line No.]]=\"\",\"\",CONCATENATE(Table_PrintPI[[#This Row],[Line No.]],\" - \",Table_SummaryPI[[#This Row],[MeasureName]]))","v":""},{"$f":"IF(Table_SummaryPI[[#This Row],[Manufacturer]]<>\"\",CONCATENATE(Table_SummaryPI[[#This Row],[Manufacturer]],\"/\",Table_SummaryPI[[#This Row],[Model'#]]),\"\")","v":""},{"$f":"IF(Table_SummaryPI[[#This Row],[Serial'#]]<>\"\",Table_SummaryPI[[#This Row],[Serial'#]],\"\")","v":""},{"$f":"IF(Table_SummaryPI[[#This Row],[Quantity]]<>\"\",Table_SummaryPI[[#This Row],[Quantity]],\"\")","v":""},{"$f":"IF(Table_SummaryPI[[#This Row],[BaselinekWh]]<>\"\",Table_SummaryPI[[#This Row],[BaselinekWh]],\"\")","v":""},{"$f":"IF(Table_SummaryPI[[#This Row],[BaselinekW]]<>\"\",Table_SummaryPI[[#This Row],[BaselinekW]],\"\")","v":""},{"$f":"IF(Table_SummaryPI[[#This Row],[ProposedkWh]]<>\"\",Table_SummaryPI[[#This Row],[ProposedkWh]],\"\")","v":""},{"$f":"IF(Table_SummaryPI[[#This Row],[ProposedkW]]<>\"\",Table_SummaryPI[[#This Row],[ProposedkW]],\"\")","v":""},{"$f":"IF(Table_SummaryPI[[#This Row],[Notes]]<>\"\",Table_SummaryPI[[#This Row],[Notes]],\"\")","v":""},{"$f":"IF(Table_SummaryPI[[#This Row],[Incentive_Customer]]<>\"\",Table_SummaryPI[[#This Row],[Incentive_Customer]],0)","v":0},{"$f":"IF(Table_SummaryPI[[#This Row],[MeasureCost]]<>\"\",Table_SummaryPI[[#This Row],[MeasureCost]],0)","v":0},{"$f":"IF(Table_SummaryPI[[#This Row],[kWhSavings]]<>\"\",Table_SummaryPI[[#This Row],[kWhSavings]],0)","v":0},{"$f":"IF(Table_SummaryPI[[#This Row],[DemandSavingskW]]<>\"\",Table_SummaryPI[[#This Row],[DemandSavingskW]],0)","v":0}]
[{"$f":"Table_SummaryPI[[#This Row],[Line No.]]","v":""},{"$f":"IF(Table_PrintPI[[#This Row],[Line No.]]=\"\",\"\",CONCATENATE(Table_PrintPI[[#This Row],[Line No.]],\" - \",Table_SummaryPI[[#This Row],[MeasureName]]))","v":""},{"$f":"IF(Table_SummaryPI[[#This Row],[Manufacturer]]<>\"\",CONCATENATE(Table_SummaryPI[[#This Row],[Manufacturer]],\"/\",Table_SummaryPI[[#This Row],[Model'#]]),\"\")","v":""},{"$f":"IF(Table_SummaryPI[[#This Row],[Serial'#]]<>\"\",Table_SummaryPI[[#This Row],[Serial'#]],\"\")","v":""},{"$f":"IF(Table_SummaryPI[[#This Row],[Quantity]]<>\"\",Table_SummaryPI[[#This Row],[Quantity]],\"\")","v":""},{"$f":"IF(Table_SummaryPI[[#This Row],[BaselinekWh]]<>\"\",Table_SummaryPI[[#This Row],[BaselinekWh]],\"\")","v":""},{"$f":"IF(Table_SummaryPI[[#This Row],[BaselinekW]]<>\"\",Table_SummaryPI[[#This Row],[BaselinekW]],\"\")","v":""},{"$f":"IF(Table_SummaryPI[[#This Row],[ProposedkWh]]<>\"\",Table_SummaryPI[[#This Row],[ProposedkWh]],\"\")","v":""},{"$f":"IF(Table_SummaryPI[[#This Row],[ProposedkW]]<>\"\",Table_SummaryPI[[#This Row],[ProposedkW]],\"\")","v":""},{"$f":"IF(Table_SummaryPI[[#This Row],[Notes]]<>\"\",Table_SummaryPI[[#This Row],[Notes]],\"\")","v":""},{"$f":"IF(Table_SummaryPI[[#This Row],[Incentive_Customer]]<>\"\",Table_SummaryPI[[#This Row],[Incentive_Customer]],0)","v":0},{"$f":"IF(Table_SummaryPI[[#This Row],[MeasureCost]]<>\"\",Table_SummaryPI[[#This Row],[MeasureCost]],0)","v":0},{"$f":"IF(Table_SummaryPI[[#This Row],[kWhSavings]]<>\"\",Table_SummaryPI[[#This Row],[kWhSavings]],0)","v":0},{"$f":"IF(Table_SummaryPI[[#This Row],[DemandSavingskW]]<>\"\",Table_SummaryPI[[#This Row],[DemandSavingskW]],0)","v":0}]
[{"$f":"Table_SummaryPI[[#This Row],[Line No.]]","v":""},{"$f":"IF(Table_PrintPI[[#This Row],[Line No.]]=\"\",\"\",CONCATENATE(Table_PrintPI[[#This Row],[Line No.]],\" - \",Table_SummaryPI[[#This Row],[MeasureName]]))","v":""},{"$f":"IF(Table_SummaryPI[[#This Row],[Manufacturer]]<>\"\",CONCATENATE(Table_SummaryPI[[#This Row],[Manufacturer]],\"/\",Table_SummaryPI[[#This Row],[Model'#]]),\"\")","v":""},{"$f":"IF(Table_SummaryPI[[#This Row],[Serial'#]]<>\"\",Table_SummaryPI[[#This Row],[Serial'#]],\"\")","v":""},{"$f":"IF(Table_SummaryPI[[#This Row],[Quantity]]<>\"\",Table_SummaryPI[[#This Row],[Quantity]],\"\")","v":""},{"$f":"IF(Table_SummaryPI[[#This Row],[BaselinekWh]]<>\"\",Table_SummaryPI[[#This Row],[BaselinekWh]],\"\")","v":""},{"$f":"IF(Table_SummaryPI[[#This Row],[BaselinekW]]<>\"\",Table_SummaryPI[[#This Row],[BaselinekW]],\"\")","v":""},{"$f":"IF(Table_SummaryPI[[#This Row],[ProposedkWh]]<>\"\",Table_SummaryPI[[#This Row],[ProposedkWh]],\"\")","v":""},{"$f":"IF(Table_SummaryPI[[#This Row],[ProposedkW]]<>\"\",Table_SummaryPI[[#This Row],[ProposedkW]],\"\")","v":""},{"$f":"IF(Table_SummaryPI[[#This Row],[Notes]]<>\"\",Table_SummaryPI[[#This Row],[Notes]],\"\")","v":""},{"$f":"IF(Table_SummaryPI[[#This Row],[Incentive_Customer]]<>\"\",Table_SummaryPI[[#This Row],[Incentive_Customer]],0)","v":0},{"$f":"IF(Table_SummaryPI[[#This Row],[MeasureCost]]<>\"\",Table_SummaryPI[[#This Row],[MeasureCost]],0)","v":0},{"$f":"IF(Table_SummaryPI[[#This Row],[kWhSavings]]<>\"\",Table_SummaryPI[[#This Row],[kWhSavings]],0)","v":0},{"$f":"IF(Table_SummaryPI[[#This Row],[DemandSavingskW]]<>\"\",Table_SummaryPI[[#This Row],[DemandSavingskW]],0)","v":0}]
[{"$f":"Table_SummaryPI[[#This Row],[Line No.]]","v":""},{"$f":"IF(Table_PrintPI[[#This Row],[Line No.]]=\"\",\"\",CONCATENATE(Table_PrintPI[[#This Row],[Line No.]],\" - \",Table_SummaryPI[[#This Row],[MeasureName]]))","v":""},{"$f":"IF(Table_SummaryPI[[#This Row],[Manufacturer]]<>\"\",CONCATENATE(Table_SummaryPI[[#This Row],[Manufacturer]],\"/\",Table_SummaryPI[[#This Row],[Model'#]]),\"\")","v":""},{"$f":"IF(Table_SummaryPI[[#This Row],[Serial'#]]<>\"\",Table_SummaryPI[[#This Row],[Serial'#]],\"\")","v":""},{"$f":"IF(Table_SummaryPI[[#This Row],[Quantity]]<>\"\",Table_SummaryPI[[#This Row],[Quantity]],\"\")","v":""},{"$f":"IF(Table_SummaryPI[[#This Row],[BaselinekWh]]<>\"\",Table_SummaryPI[[#This Row],[BaselinekWh]],\"\")","v":""},{"$f":"IF(Table_SummaryPI[[#This Row],[BaselinekW]]<>\"\",Table_SummaryPI[[#This Row],[BaselinekW]],\"\")","v":""},{"$f":"IF(Table_SummaryPI[[#This Row],[ProposedkWh]]<>\"\",Table_SummaryPI[[#This Row],[ProposedkWh]],\"\")","v":""},{"$f":"IF(Table_SummaryPI[[#This Row],[ProposedkW]]<>\"\",Table_SummaryPI[[#This Row],[ProposedkW]],\"\")","v":""},{"$f":"IF(Table_SummaryPI[[#This Row],[Notes]]<>\"\",Table_SummaryPI[[#This Row],[Notes]],\"\")","v":""},{"$f":"IF(Table_SummaryPI[[#This Row],[Incentive_Customer]]<>\"\",Table_SummaryPI[[#This Row],[Incentive_Customer]],0)","v":0},{"$f":"IF(Table_SummaryPI[[#This Row],[MeasureCost]]<>\"\",Table_SummaryPI[[#This Row],[MeasureCost]],0)","v":0},{"$f":"IF(Table_SummaryPI[[#This Row],[kWhSavings]]<>\"\",Table_SummaryPI[[#This Row],[kWhSavings]],0)","v":0},{"$f":"IF(Table_SummaryPI[[#This Row],[DemandSavingskW]]<>\"\",Table_SummaryPI[[#This Row],[DemandSavingskW]],0)","v":0}]
[{"$f":"Table_SummaryPI[[#This Row],[Line No.]]","v":""},{"$f":"IF(Table_PrintPI[[#This Row],[Line No.]]=\"\",\"\",CONCATENATE(Table_PrintPI[[#This Row],[Line No.]],\" - \",Table_SummaryPI[[#This Row],[MeasureName]]))","v":""},{"$f":"IF(Table_SummaryPI[[#This Row],[Manufacturer]]<>\"\",CONCATENATE(Table_SummaryPI[[#This Row],[Manufacturer]],\"/\",Table_SummaryPI[[#This Row],[Model'#]]),\"\")","v":""},{"$f":"IF(Table_SummaryPI[[#This Row],[Serial'#]]<>\"\",Table_SummaryPI[[#This Row],[Serial'#]],\"\")","v":""},{"$f":"IF(Table_SummaryPI[[#This Row],[Quantity]]<>\"\",Table_SummaryPI[[#This Row],[Quantity]],\"\")","v":""},{"$f":"IF(Table_SummaryPI[[#This Row],[BaselinekWh]]<>\"\",Table_SummaryPI[[#This Row],[BaselinekWh]],\"\")","v":""},{"$f":"IF(Table_SummaryPI[[#This Row],[BaselinekW]]<>\"\",Table_SummaryPI[[#This Row],[BaselinekW]],\"\")","v":""},{"$f":"IF(Table_SummaryPI[[#This Row],[ProposedkWh]]<>\"\",Table_SummaryPI[[#This Row],[ProposedkWh]],\"\")","v":""},{"$f":"IF(Table_SummaryPI[[#This Row],[ProposedkW]]<>\"\",Table_SummaryPI[[#This Row],[ProposedkW]],\"\")","v":""},{"$f":"IF(Table_SummaryPI[[#This Row],[Notes]]<>\"\",Table_SummaryPI[[#This Row],[Notes]],\"\")","v":""},{"$f":"IF(Table_SummaryPI[[#This Row],[Incentive_Customer]]<>\"\",Table_SummaryPI[[#This Row],[Incentive_Customer]],0)","v":0},{"$f":"IF(Table_SummaryPI[[#This Row],[MeasureCost]]<>\"\",Table_SummaryPI[[#This Row],[MeasureCost]],0)","v":0},{"$f":"IF(Table_SummaryPI[[#This Row],[kWhSavings]]<>\"\",Table_SummaryPI[[#This Row],[kWhSavings]],0)","v":0},{"$f":"IF(Table_SummaryPI[[#This Row],[DemandSavingskW]]<>\"\",Table_SummaryPI[[#This Row],[DemandSavingskW]],0)","v":0}]
[{"$f":"Table_SummaryPI[[#This Row],[Line No.]]","v":""},{"$f":"IF(Table_PrintPI[[#This Row],[Line No.]]=\"\",\"\",CONCATENATE(Table_PrintPI[[#This Row],[Line No.]],\" - \",Table_SummaryPI[[#This Row],[MeasureName]]))","v":""},{"$f":"IF(Table_SummaryPI[[#This Row],[Manufacturer]]<>\"\",CONCATENATE(Table_SummaryPI[[#This Row],[Manufacturer]],\"/\",Table_SummaryPI[[#This Row],[Model'#]]),\"\")","v":""},{"$f":"IF(Table_SummaryPI[[#This Row],[Serial'#]]<>\"\",Table_SummaryPI[[#This Row],[Serial'#]],\"\")","v":""},{"$f":"IF(Table_SummaryPI[[#This Row],[Quantity]]<>\"\",Table_SummaryPI[[#This Row],[Quantity]],\"\")","v":""},{"$f":"IF(Table_SummaryPI[[#This Row],[BaselinekWh]]<>\"\",Table_SummaryPI[[#This Row],[BaselinekWh]],\"\")","v":""},{"$f":"IF(Table_SummaryPI[[#This Row],[BaselinekW]]<>\"\",Table_SummaryPI[[#This Row],[BaselinekW]],\"\")","v":""},{"$f":"IF(Table_SummaryPI[[#This Row],[ProposedkWh]]<>\"\",Table_SummaryPI[[#This Row],[ProposedkWh]],\"\")","v":""},{"$f":"IF(Table_SummaryPI[[#This Row],[ProposedkW]]<>\"\",Table_SummaryPI[[#This Row],[ProposedkW]],\"\")","v":""},{"$f":"IF(Table_SummaryPI[[#This Row],[Notes]]<>\"\",Table_SummaryPI[[#This Row],[Notes]],\"\")","v":""},{"$f":"IF(Table_SummaryPI[[#This Row],[Incentive_Customer]]<>\"\",Table_SummaryPI[[#This Row],[Incentive_Customer]],0)","v":0},{"$f":"IF(Table_SummaryPI[[#This Row],[MeasureCost]]<>\"\",Table_SummaryPI[[#This Row],[MeasureCost]],0)","v":0},{"$f":"IF(Table_SummaryPI[[#This Row],[kWhSavings]]<>\"\",Table_SummaryPI[[#This Row],[kWhSavings]],0)","v":0},{"$f":"IF(Table_SummaryPI[[#This Row],[DemandSavingskW]]<>\"\",Table_SummaryPI[[#This Row],[DemandSavingskW]],0)","v":0}]
[{"$f":"Table_SummaryPI[[#This Row],[Line No.]]","v":""},{"$f":"IF(Table_PrintPI[[#This Row],[Line No.]]=\"\",\"\",CONCATENATE(Table_PrintPI[[#This Row],[Line No.]],\" - \",Table_SummaryPI[[#This Row],[MeasureName]]))","v":""},{"$f":"IF(Table_SummaryPI[[#This Row],[Manufacturer]]<>\"\",CONCATENATE(Table_SummaryPI[[#This Row],[Manufacturer]],\"/\",Table_SummaryPI[[#This Row],[Model'#]]),\"\")","v":""},{"$f":"IF(Table_SummaryPI[[#This Row],[Serial'#]]<>\"\",Table_SummaryPI[[#This Row],[Serial'#]],\"\")","v":""},{"$f":"IF(Table_SummaryPI[[#This Row],[Quantity]]<>\"\",Table_SummaryPI[[#This Row],[Quantity]],\"\")","v":""},{"$f":"IF(Table_SummaryPI[[#This Row],[BaselinekWh]]<>\"\",Table_SummaryPI[[#This Row],[BaselinekWh]],\"\")","v":""},{"$f":"IF(Table_SummaryPI[[#This Row],[BaselinekW]]<>\"\",Table_SummaryPI[[#This Row],[BaselinekW]],\"\")","v":""},{"$f":"IF(Table_SummaryPI[[#This Row],[ProposedkWh]]<>\"\",Table_SummaryPI[[#This Row],[ProposedkWh]],\"\")","v":""},{"$f":"IF(Table_SummaryPI[[#This Row],[ProposedkW]]<>\"\",Table_SummaryPI[[#This Row],[ProposedkW]],\"\")","v":""},{"$f":"IF(Table_SummaryPI[[#This Row],[Notes]]<>\"\",Table_SummaryPI[[#This Row],[Notes]],\"\")","v":""},{"$f":"IF(Table_SummaryPI[[#This Row],[Incentive_Customer]]<>\"\",Table_SummaryPI[[#This Row],[Incentive_Customer]],0)","v":0},{"$f":"IF(Table_SummaryPI[[#This Row],[MeasureCost]]<>\"\",Table_SummaryPI[[#This Row],[MeasureCost]],0)","v":0},{"$f":"IF(Table_SummaryPI[[#This Row],[kWhSavings]]<>\"\",Table_SummaryPI[[#This Row],[kWhSavings]],0)","v":0},{"$f":"IF(Table_SummaryPI[[#This Row],[DemandSavingskW]]<>\"\",Table_SummaryPI[[#This Row],[DemandSavingskW]],0)","v":0}]
[{"$f":"Table_SummaryPI[[#This Row],[Line No.]]","v":""},{"$f":"IF(Table_PrintPI[[#This Row],[Line No.]]=\"\",\"\",CONCATENATE(Table_PrintPI[[#This Row],[Line No.]],\" - \",Table_SummaryPI[[#This Row],[MeasureName]]))","v":""},{"$f":"IF(Table_SummaryPI[[#This Row],[Manufacturer]]<>\"\",CONCATENATE(Table_SummaryPI[[#This Row],[Manufacturer]],\"/\",Table_SummaryPI[[#This Row],[Model'#]]),\"\")","v":""},{"$f":"IF(Table_SummaryPI[[#This Row],[Serial'#]]<>\"\",Table_SummaryPI[[#This Row],[Serial'#]],\"\")","v":""},{"$f":"IF(Table_SummaryPI[[#This Row],[Quantity]]<>\"\",Table_SummaryPI[[#This Row],[Quantity]],\"\")","v":""},{"$f":"IF(Table_SummaryPI[[#This Row],[BaselinekWh]]<>\"\",Table_SummaryPI[[#This Row],[BaselinekWh]],\"\")","v":""},{"$f":"IF(Table_SummaryPI[[#This Row],[BaselinekW]]<>\"\",Table_SummaryPI[[#This Row],[BaselinekW]],\"\")","v":""},{"$f":"IF(Table_SummaryPI[[#This Row],[ProposedkWh]]<>\"\",Table_SummaryPI[[#This Row],[ProposedkWh]],\"\")","v":""},{"$f":"IF(Table_SummaryPI[[#This Row],[ProposedkW]]<>\"\",Table_SummaryPI[[#This Row],[ProposedkW]],\"\")","v":""},{"$f":"IF(Table_SummaryPI[[#This Row],[Notes]]<>\"\",Table_SummaryPI[[#This Row],[Notes]],\"\")","v":""},{"$f":"IF(Table_SummaryPI[[#This Row],[Incentive_Customer]]<>\"\",Table_SummaryPI[[#This Row],[Incentive_Customer]],0)","v":0},{"$f":"IF(Table_SummaryPI[[#This Row],[MeasureCost]]<>\"\",Table_SummaryPI[[#This Row],[MeasureCost]],0)","v":0},{"$f":"IF(Table_SummaryPI[[#This Row],[kWhSavings]]<>\"\",Table_SummaryPI[[#This Row],[kWhSavings]],0)","v":0},{"$f":"IF(Table_SummaryPI[[#This Row],[DemandSavingskW]]<>\"\",Table_SummaryPI[[#This Row],[DemandSavingskW]],0)","v":0}]
[{"$f":"Table_SummaryPI[[#This Row],[Line No.]]","v":""},{"$f":"IF(Table_PrintPI[[#This Row],[Line No.]]=\"\",\"\",CONCATENATE(Table_PrintPI[[#This Row],[Line No.]],\" - \",Table_SummaryPI[[#This Row],[MeasureName]]))","v":""},{"$f":"IF(Table_SummaryPI[[#This Row],[Manufacturer]]<>\"\",CONCATENATE(Table_SummaryPI[[#This Row],[Manufacturer]],\"/\",Table_SummaryPI[[#This Row],[Model'#]]),\"\")","v":""},{"$f":"IF(Table_SummaryPI[[#This Row],[Serial'#]]<>\"\",Table_SummaryPI[[#This Row],[Serial'#]],\"\")","v":""},{"$f":"IF(Table_SummaryPI[[#This Row],[Quantity]]<>\"\",Table_SummaryPI[[#This Row],[Quantity]],\"\")","v":""},{"$f":"IF(Table_SummaryPI[[#This Row],[BaselinekWh]]<>\"\",Table_SummaryPI[[#This Row],[BaselinekWh]],\"\")","v":""},{"$f":"IF(Table_SummaryPI[[#This Row],[BaselinekW]]<>\"\",Table_SummaryPI[[#This Row],[BaselinekW]],\"\")","v":""},{"$f":"IF(Table_SummaryPI[[#This Row],[ProposedkWh]]<>\"\",Table_SummaryPI[[#This Row],[ProposedkWh]],\"\")","v":""},{"$f":"IF(Table_SummaryPI[[#This Row],[ProposedkW]]<>\"\",Table_SummaryPI[[#This Row],[ProposedkW]],\"\")","v":""},{"$f":"IF(Table_SummaryPI[[#This Row],[Notes]]<>\"\",Table_SummaryPI[[#This Row],[Notes]],\"\")","v":""},{"$f":"IF(Table_SummaryPI[[#This Row],[Incentive_Customer]]<>\"\",Table_SummaryPI[[#This Row],[Incentive_Customer]],0)","v":0},{"$f":"IF(Table_SummaryPI[[#This Row],[MeasureCost]]<>\"\",Table_SummaryPI[[#This Row],[MeasureCost]],0)","v":0},{"$f":"IF(Table_SummaryPI[[#This Row],[kWhSavings]]<>\"\",Table_SummaryPI[[#This Row],[kWhSavings]],0)","v":0},{"$f":"IF(Table_SummaryPI[[#This Row],[DemandSavingskW]]<>\"\",Table_SummaryPI[[#This Row],[DemandSavingskW]],0)","v":0}]
[{"$f":"Table_SummaryPI[[#This Row],[Line No.]]","v":""},{"$f":"IF(Table_PrintPI[[#This Row],[Line No.]]=\"\",\"\",CONCATENATE(Table_PrintPI[[#This Row],[Line No.]],\" - \",Table_SummaryPI[[#This Row],[MeasureName]]))","v":""},{"$f":"IF(Table_SummaryPI[[#This Row],[Manufacturer]]<>\"\",CONCATENATE(Table_SummaryPI[[#This Row],[Manufacturer]],\"/\",Table_SummaryPI[[#This Row],[Model'#]]),\"\")","v":""},{"$f":"IF(Table_SummaryPI[[#This Row],[Serial'#]]<>\"\",Table_SummaryPI[[#This Row],[Serial'#]],\"\")","v":""},{"$f":"IF(Table_SummaryPI[[#This Row],[Quantity]]<>\"\",Table_SummaryPI[[#This Row],[Quantity]],\"\")","v":""},{"$f":"IF(Table_SummaryPI[[#This Row],[BaselinekWh]]<>\"\",Table_SummaryPI[[#This Row],[BaselinekWh]],\"\")","v":""},{"$f":"IF(Table_SummaryPI[[#This Row],[BaselinekW]]<>\"\",Table_SummaryPI[[#This Row],[BaselinekW]],\"\")","v":""},{"$f":"IF(Table_SummaryPI[[#This Row],[ProposedkWh]]<>\"\",Table_SummaryPI[[#This Row],[ProposedkWh]],\"\")","v":""},{"$f":"IF(Table_SummaryPI[[#This Row],[ProposedkW]]<>\"\",Table_SummaryPI[[#This Row],[ProposedkW]],\"\")","v":""},{"$f":"IF(Table_SummaryPI[[#This Row],[Notes]]<>\"\",Table_SummaryPI[[#This Row],[Notes]],\"\")","v":""},{"$f":"IF(Table_SummaryPI[[#This Row],[Incentive_Customer]]<>\"\",Table_SummaryPI[[#This Row],[Incentive_Customer]],0)","v":0},{"$f":"IF(Table_SummaryPI[[#This Row],[MeasureCost]]<>\"\",Table_SummaryPI[[#This Row],[MeasureCost]],0)","v":0},{"$f":"IF(Table_SummaryPI[[#This Row],[kWhSavings]]<>\"\",Table_SummaryPI[[#This Row],[kWhSavings]],0)","v":0},{"$f":"IF(Table_SummaryPI[[#This Row],[DemandSavingskW]]<>\"\",Table_SummaryPI[[#This Row],[DemandSavingskW]],0)","v":0}]
[{"$f":"Table_SummaryPI[[#This Row],[Line No.]]","v":""},{"$f":"IF(Table_PrintPI[[#This Row],[Line No.]]=\"\",\"\",CONCATENATE(Table_PrintPI[[#This Row],[Line No.]],\" - \",Table_SummaryPI[[#This Row],[MeasureName]]))","v":""},{"$f":"IF(Table_SummaryPI[[#This Row],[Manufacturer]]<>\"\",CONCATENATE(Table_SummaryPI[[#This Row],[Manufacturer]],\"/\",Table_SummaryPI[[#This Row],[Model'#]]),\"\")","v":""},{"$f":"IF(Table_SummaryPI[[#This Row],[Serial'#]]<>\"\",Table_SummaryPI[[#This Row],[Serial'#]],\"\")","v":""},{"$f":"IF(Table_SummaryPI[[#This Row],[Quantity]]<>\"\",Table_SummaryPI[[#This Row],[Quantity]],\"\")","v":""},{"$f":"IF(Table_SummaryPI[[#This Row],[BaselinekWh]]<>\"\",Table_SummaryPI[[#This Row],[BaselinekWh]],\"\")","v":""},{"$f":"IF(Table_SummaryPI[[#This Row],[BaselinekW]]<>\"\",Table_SummaryPI[[#This Row],[BaselinekW]],\"\")","v":""},{"$f":"IF(Table_SummaryPI[[#This Row],[ProposedkWh]]<>\"\",Table_SummaryPI[[#This Row],[ProposedkWh]],\"\")","v":""},{"$f":"IF(Table_SummaryPI[[#This Row],[ProposedkW]]<>\"\",Table_SummaryPI[[#This Row],[ProposedkW]],\"\")","v":""},{"$f":"IF(Table_SummaryPI[[#This Row],[Notes]]<>\"\",Table_SummaryPI[[#This Row],[Notes]],\"\")","v":""},{"$f":"IF(Table_SummaryPI[[#This Row],[Incentive_Customer]]<>\"\",Table_SummaryPI[[#This Row],[Incentive_Customer]],0)","v":0},{"$f":"IF(Table_SummaryPI[[#This Row],[MeasureCost]]<>\"\",Table_SummaryPI[[#This Row],[MeasureCost]],0)","v":0},{"$f":"IF(Table_SummaryPI[[#This Row],[kWhSavings]]<>\"\",Table_SummaryPI[[#This Row],[kWhSavings]],0)","v":0},{"$f":"IF(Table_SummaryPI[[#This Row],[DemandSavingskW]]<>\"\",Table_SummaryPI[[#This Row],[DemandSavingskW]],0)","v":0}]
[{"$f":"Table_SummaryPI[[#This Row],[Line No.]]","v":""},{"$f":"IF(Table_PrintPI[[#This Row],[Line No.]]=\"\",\"\",CONCATENATE(Table_PrintPI[[#This Row],[Line No.]],\" - \",Table_SummaryPI[[#This Row],[MeasureName]]))","v":""},{"$f":"IF(Table_SummaryPI[[#This Row],[Manufacturer]]<>\"\",CONCATENATE(Table_SummaryPI[[#This Row],[Manufacturer]],\"/\",Table_SummaryPI[[#This Row],[Model'#]]),\"\")","v":""},{"$f":"IF(Table_SummaryPI[[#This Row],[Serial'#]]<>\"\",Table_SummaryPI[[#This Row],[Serial'#]],\"\")","v":""},{"$f":"IF(Table_SummaryPI[[#This Row],[Quantity]]<>\"\",Table_SummaryPI[[#This Row],[Quantity]],\"\")","v":""},{"$f":"IF(Table_SummaryPI[[#This Row],[BaselinekWh]]<>\"\",Table_SummaryPI[[#This Row],[BaselinekWh]],\"\")","v":""},{"$f":"IF(Table_SummaryPI[[#This Row],[BaselinekW]]<>\"\",Table_SummaryPI[[#This Row],[BaselinekW]],\"\")","v":""},{"$f":"IF(Table_SummaryPI[[#This Row],[ProposedkWh]]<>\"\",Table_SummaryPI[[#This Row],[ProposedkWh]],\"\")","v":""},{"$f":"IF(Table_SummaryPI[[#This Row],[ProposedkW]]<>\"\",Table_SummaryPI[[#This Row],[ProposedkW]],\"\")","v":""},{"$f":"IF(Table_SummaryPI[[#This Row],[Notes]]<>\"\",Table_SummaryPI[[#This Row],[Notes]],\"\")","v":""},{"$f":"IF(Table_SummaryPI[[#This Row],[Incentive_Customer]]<>\"\",Table_SummaryPI[[#This Row],[Incentive_Customer]],0)","v":0},{"$f":"IF(Table_SummaryPI[[#This Row],[MeasureCost]]<>\"\",Table_SummaryPI[[#This Row],[MeasureCost]],0)","v":0},{"$f":"IF(Table_SummaryPI[[#This Row],[kWhSavings]]<>\"\",Table_SummaryPI[[#This Row],[kWhSavings]],0)","v":0},{"$f":"IF(Table_SummaryPI[[#This Row],[DemandSavingskW]]<>\"\",Table_SummaryPI[[#This Row],[DemandSavingskW]],0)","v":0}]
[{"$f":"Table_SummaryPI[[#This Row],[Line No.]]","v":""},{"$f":"IF(Table_PrintPI[[#This Row],[Line No.]]=\"\",\"\",CONCATENATE(Table_PrintPI[[#This Row],[Line No.]],\" - \",Table_SummaryPI[[#This Row],[MeasureName]]))","v":""},{"$f":"IF(Table_SummaryPI[[#This Row],[Manufacturer]]<>\"\",CONCATENATE(Table_SummaryPI[[#This Row],[Manufacturer]],\"/\",Table_SummaryPI[[#This Row],[Model'#]]),\"\")","v":""},{"$f":"IF(Table_SummaryPI[[#This Row],[Serial'#]]<>\"\",Table_SummaryPI[[#This Row],[Serial'#]],\"\")","v":""},{"$f":"IF(Table_SummaryPI[[#This Row],[Quantity]]<>\"\",Table_SummaryPI[[#This Row],[Quantity]],\"\")","v":""},{"$f":"IF(Table_SummaryPI[[#This Row],[BaselinekWh]]<>\"\",Table_SummaryPI[[#This Row],[BaselinekWh]],\"\")","v":""},{"$f":"IF(Table_SummaryPI[[#This Row],[BaselinekW]]<>\"\",Table_SummaryPI[[#This Row],[BaselinekW]],\"\")","v":""},{"$f":"IF(Table_SummaryPI[[#This Row],[ProposedkWh]]<>\"\",Table_SummaryPI[[#This Row],[ProposedkWh]],\"\")","v":""},{"$f":"IF(Table_SummaryPI[[#This Row],[ProposedkW]]<>\"\",Table_SummaryPI[[#This Row],[ProposedkW]],\"\")","v":""},{"$f":"IF(Table_SummaryPI[[#This Row],[Notes]]<>\"\",Table_SummaryPI[[#This Row],[Notes]],\"\")","v":""},{"$f":"IF(Table_SummaryPI[[#This Row],[Incentive_Customer]]<>\"\",Table_SummaryPI[[#This Row],[Incentive_Customer]],0)","v":0},{"$f":"IF(Table_SummaryPI[[#This Row],[MeasureCost]]<>\"\",Table_SummaryPI[[#This Row],[MeasureCost]],0)","v":0},{"$f":"IF(Table_SummaryPI[[#This Row],[kWhSavings]]<>\"\",Table_SummaryPI[[#This Row],[kWhSavings]],0)","v":0},{"$f":"IF(Table_SummaryPI[[#This Row],[DemandSavingskW]]<>\"\",Table_SummaryPI[[#This Row],[DemandSavingskW]],0)","v":0}]
[{"$f":"Table_SummaryPI[[#This Row],[Line No.]]","v":""},{"$f":"IF(Table_PrintPI[[#This Row],[Line No.]]=\"\",\"\",CONCATENATE(Table_PrintPI[[#This Row],[Line No.]],\" - \",Table_SummaryPI[[#This Row],[MeasureName]]))","v":""},{"$f":"IF(Table_SummaryPI[[#This Row],[Manufacturer]]<>\"\",CONCATENATE(Table_SummaryPI[[#This Row],[Manufacturer]],\"/\",Table_SummaryPI[[#This Row],[Model'#]]),\"\")","v":""},{"$f":"IF(Table_SummaryPI[[#This Row],[Serial'#]]<>\"\",Table_SummaryPI[[#This Row],[Serial'#]],\"\")","v":""},{"$f":"IF(Table_SummaryPI[[#This Row],[Quantity]]<>\"\",Table_SummaryPI[[#This Row],[Quantity]],\"\")","v":""},{"$f":"IF(Table_SummaryPI[[#This Row],[BaselinekWh]]<>\"\",Table_SummaryPI[[#This Row],[BaselinekWh]],\"\")","v":""},{"$f":"IF(Table_SummaryPI[[#This Row],[BaselinekW]]<>\"\",Table_SummaryPI[[#This Row],[BaselinekW]],\"\")","v":""},{"$f":"IF(Table_SummaryPI[[#This Row],[ProposedkWh]]<>\"\",Table_SummaryPI[[#This Row],[ProposedkWh]],\"\")","v":""},{"$f":"IF(Table_SummaryPI[[#This Row],[ProposedkW]]<>\"\",Table_SummaryPI[[#This Row],[ProposedkW]],\"\")","v":""},{"$f":"IF(Table_SummaryPI[[#This Row],[Notes]]<>\"\",Table_SummaryPI[[#This Row],[Notes]],\"\")","v":""},{"$f":"IF(Table_SummaryPI[[#This Row],[Incentive_Customer]]<>\"\",Table_SummaryPI[[#This Row],[Incentive_Customer]],0)","v":0},{"$f":"IF(Table_SummaryPI[[#This Row],[MeasureCost]]<>\"\",Table_SummaryPI[[#This Row],[MeasureCost]],0)","v":0},{"$f":"IF(Table_SummaryPI[[#This Row],[kWhSavings]]<>\"\",Table_SummaryPI[[#This Row],[kWhSavings]],0)","v":0},{"$f":"IF(Table_SummaryPI[[#This Row],[DemandSavingskW]]<>\"\",Table_SummaryPI[[#This Row],[DemandSavingskW]],0)","v":0}]
[{"$f":"Table_SummaryPI[[#This Row],[Line No.]]","v":""},{"$f":"IF(Table_PrintPI[[#This Row],[Line No.]]=\"\",\"\",CONCATENATE(Table_PrintPI[[#This Row],[Line No.]],\" - \",Table_SummaryPI[[#This Row],[MeasureName]]))","v":""},{"$f":"IF(Table_SummaryPI[[#This Row],[Manufacturer]]<>\"\",CONCATENATE(Table_SummaryPI[[#This Row],[Manufacturer]],\"/\",Table_SummaryPI[[#This Row],[Model'#]]),\"\")","v":""},{"$f":"IF(Table_SummaryPI[[#This Row],[Serial'#]]<>\"\",Table_SummaryPI[[#This Row],[Serial'#]],\"\")","v":""},{"$f":"IF(Table_SummaryPI[[#This Row],[Quantity]]<>\"\",Table_SummaryPI[[#This Row],[Quantity]],\"\")","v":""},{"$f":"IF(Table_SummaryPI[[#This Row],[BaselinekWh]]<>\"\",Table_SummaryPI[[#This Row],[BaselinekWh]],\"\")","v":""},{"$f":"IF(Table_SummaryPI[[#This Row],[BaselinekW]]<>\"\",Table_SummaryPI[[#This Row],[BaselinekW]],\"\")","v":""},{"$f":"IF(Table_SummaryPI[[#This Row],[ProposedkWh]]<>\"\",Table_SummaryPI[[#This Row],[ProposedkWh]],\"\")","v":""},{"$f":"IF(Table_SummaryPI[[#This Row],[ProposedkW]]<>\"\",Table_SummaryPI[[#This Row],[ProposedkW]],\"\")","v":""},{"$f":"IF(Table_SummaryPI[[#This Row],[Notes]]<>\"\",Table_SummaryPI[[#This Row],[Notes]],\"\")","v":""},{"$f":"IF(Table_SummaryPI[[#This Row],[Incentive_Customer]]<>\"\",Table_SummaryPI[[#This Row],[Incentive_Customer]],0)","v":0},{"$f":"IF(Table_SummaryPI[[#This Row],[MeasureCost]]<>\"\",Table_SummaryPI[[#This Row],[MeasureCost]],0)","v":0},{"$f":"IF(Table_SummaryPI[[#This Row],[kWhSavings]]<>\"\",Table_SummaryPI[[#This Row],[kWhSavings]],0)","v":0},{"$f":"IF(Table_SummaryPI[[#This Row],[DemandSavingskW]]<>\"\",Table_SummaryPI[[#This Row],[DemandSavingskW]],0)","v":0}]
[{"$f":"Table_SummaryPI[[#This Row],[Line No.]]","v":""},{"$f":"IF(Table_PrintPI[[#This Row],[Line No.]]=\"\",\"\",CONCATENATE(Table_PrintPI[[#This Row],[Line No.]],\" - \",Table_SummaryPI[[#This Row],[MeasureName]]))","v":""},{"$f":"IF(Table_SummaryPI[[#This Row],[Manufacturer]]<>\"\",CONCATENATE(Table_SummaryPI[[#This Row],[Manufacturer]],\"/\",Table_SummaryPI[[#This Row],[Model'#]]),\"\")","v":""},{"$f":"IF(Table_SummaryPI[[#This Row],[Serial'#]]<>\"\",Table_SummaryPI[[#This Row],[Serial'#]],\"\")","v":""},{"$f":"IF(Table_SummaryPI[[#This Row],[Quantity]]<>\"\",Table_SummaryPI[[#This Row],[Quantity]],\"\")","v":""},{"$f":"IF(Table_SummaryPI[[#This Row],[BaselinekWh]]<>\"\",Table_SummaryPI[[#This Row],[BaselinekWh]],\"\")","v":""},{"$f":"IF(Table_SummaryPI[[#This Row],[BaselinekW]]<>\"\",Table_SummaryPI[[#This Row],[BaselinekW]],\"\")","v":""},{"$f":"IF(Table_SummaryPI[[#This Row],[ProposedkWh]]<>\"\",Table_SummaryPI[[#This Row],[ProposedkWh]],\"\")","v":""},{"$f":"IF(Table_SummaryPI[[#This Row],[ProposedkW]]<>\"\",Table_SummaryPI[[#This Row],[ProposedkW]],\"\")","v":""},{"$f":"IF(Table_SummaryPI[[#This Row],[Notes]]<>\"\",Table_SummaryPI[[#This Row],[Notes]],\"\")","v":""},{"$f":"IF(Table_SummaryPI[[#This Row],[Incentive_Customer]]<>\"\",Table_SummaryPI[[#This Row],[Incentive_Customer]],0)","v":0},{"$f":"IF(Table_SummaryPI[[#This Row],[MeasureCost]]<>\"\",Table_SummaryPI[[#This Row],[MeasureCost]],0)","v":0},{"$f":"IF(Table_SummaryPI[[#This Row],[kWhSavings]]<>\"\",Table_SummaryPI[[#This Row],[kWhSavings]],0)","v":0},{"$f":"IF(Table_SummaryPI[[#This Row],[DemandSavingskW]]<>\"\",Table_SummaryPI[[#This Row],[DemandSavingskW]],0)","v":0}]
[{"$f":"Table_SummaryPI[[#This Row],[Line No.]]","v":""},{"$f":"IF(Table_PrintPI[[#This Row],[Line No.]]=\"\",\"\",CONCATENATE(Table_PrintPI[[#This Row],[Line No.]],\" - \",Table_SummaryPI[[#This Row],[MeasureName]]))","v":""},{"$f":"IF(Table_SummaryPI[[#This Row],[Manufacturer]]<>\"\",CONCATENATE(Table_SummaryPI[[#This Row],[Manufacturer]],\"/\",Table_SummaryPI[[#This Row],[Model'#]]),\"\")","v":""},{"$f":"IF(Table_SummaryPI[[#This Row],[Serial'#]]<>\"\",Table_SummaryPI[[#This Row],[Serial'#]],\"\")","v":""},{"$f":"IF(Table_SummaryPI[[#This Row],[Quantity]]<>\"\",Table_SummaryPI[[#This Row],[Quantity]],\"\")","v":""},{"$f":"IF(Table_SummaryPI[[#This Row],[BaselinekWh]]<>\"\",Table_SummaryPI[[#This Row],[BaselinekWh]],\"\")","v":""},{"$f":"IF(Table_SummaryPI[[#This Row],[BaselinekW]]<>\"\",Table_SummaryPI[[#This Row],[BaselinekW]],\"\")","v":""},{"$f":"IF(Table_SummaryPI[[#This Row],[ProposedkWh]]<>\"\",Table_SummaryPI[[#This Row],[ProposedkWh]],\"\")","v":""},{"$f":"IF(Table_SummaryPI[[#This Row],[ProposedkW]]<>\"\",Table_SummaryPI[[#This Row],[ProposedkW]],\"\")","v":""},{"$f":"IF(Table_SummaryPI[[#This Row],[Notes]]<>\"\",Table_SummaryPI[[#This Row],[Notes]],\"\")","v":""},{"$f":"IF(Table_SummaryPI[[#This Row],[Incentive_Customer]]<>\"\",Table_SummaryPI[[#This Row],[Incentive_Customer]],0)","v":0},{"$f":"IF(Table_SummaryPI[[#This Row],[MeasureCost]]<>\"\",Table_SummaryPI[[#This Row],[MeasureCost]],0)","v":0},{"$f":"IF(Table_SummaryPI[[#This Row],[kWhSavings]]<>\"\",Table_SummaryPI[[#This Row],[kWhSavings]],0)","v":0},{"$f":"IF(Table_SummaryPI[[#This Row],[DemandSavingskW]]<>\"\",Table_SummaryPI[[#This Row],[DemandSavingskW]],0)","v":0}]
[{"$f":"Table_SummaryPI[[#This Row],[Line No.]]","v":""},{"$f":"IF(Table_PrintPI[[#This Row],[Line No.]]=\"\",\"\",CONCATENATE(Table_PrintPI[[#This Row],[Line No.]],\" - \",Table_SummaryPI[[#This Row],[MeasureName]]))","v":""},{"$f":"IF(Table_SummaryPI[[#This Row],[Manufacturer]]<>\"\",CONCATENATE(Table_SummaryPI[[#This Row],[Manufacturer]],\"/\",Table_SummaryPI[[#This Row],[Model'#]]),\"\")","v":""},{"$f":"IF(Table_SummaryPI[[#This Row],[Serial'#]]<>\"\",Table_SummaryPI[[#This Row],[Serial'#]],\"\")","v":""},{"$f":"IF(Table_SummaryPI[[#This Row],[Quantity]]<>\"\",Table_SummaryPI[[#This Row],[Quantity]],\"\")","v":""},{"$f":"IF(Table_SummaryPI[[#This Row],[BaselinekWh]]<>\"\",Table_SummaryPI[[#This Row],[BaselinekWh]],\"\")","v":""},{"$f":"IF(Table_SummaryPI[[#This Row],[BaselinekW]]<>\"\",Table_SummaryPI[[#This Row],[BaselinekW]],\"\")","v":""},{"$f":"IF(Table_SummaryPI[[#This Row],[ProposedkWh]]<>\"\",Table_SummaryPI[[#This Row],[ProposedkWh]],\"\")","v":""},{"$f":"IF(Table_SummaryPI[[#This Row],[ProposedkW]]<>\"\",Table_SummaryPI[[#This Row],[ProposedkW]],\"\")","v":""},{"$f":"IF(Table_SummaryPI[[#This Row],[Notes]]<>\"\",Table_SummaryPI[[#This Row],[Notes]],\"\")","v":""},{"$f":"IF(Table_SummaryPI[[#This Row],[Incentive_Customer]]<>\"\",Table_SummaryPI[[#This Row],[Incentive_Customer]],0)","v":0},{"$f":"IF(Table_SummaryPI[[#This Row],[MeasureCost]]<>\"\",Table_SummaryPI[[#This Row],[MeasureCost]],0)","v":0},{"$f":"IF(Table_SummaryPI[[#This Row],[kWhSavings]]<>\"\",Table_SummaryPI[[#This Row],[kWhSavings]],0)","v":0},{"$f":"IF(Table_SummaryPI[[#This Row],[DemandSavingskW]]<>\"\",Table_SummaryPI[[#This Row],[DemandSavingskW]],0)","v":0}]
[{"$f":"Table_SummaryPI[[#This Row],[Line No.]]","v":""},{"$f":"IF(Table_PrintPI[[#This Row],[Line No.]]=\"\",\"\",CONCATENATE(Table_PrintPI[[#This Row],[Line No.]],\" - \",Table_SummaryPI[[#This Row],[MeasureName]]))","v":""},{"$f":"IF(Table_SummaryPI[[#This Row],[Manufacturer]]<>\"\",CONCATENATE(Table_SummaryPI[[#This Row],[Manufacturer]],\"/\",Table_SummaryPI[[#This Row],[Model'#]]),\"\")","v":""},{"$f":"IF(Table_SummaryPI[[#This Row],[Serial'#]]<>\"\",Table_SummaryPI[[#This Row],[Serial'#]],\"\")","v":""},{"$f":"IF(Table_SummaryPI[[#This Row],[Quantity]]<>\"\",Table_SummaryPI[[#This Row],[Quantity]],\"\")","v":""},{"$f":"IF(Table_SummaryPI[[#This Row],[BaselinekWh]]<>\"\",Table_SummaryPI[[#This Row],[BaselinekWh]],\"\")","v":""},{"$f":"IF(Table_SummaryPI[[#This Row],[BaselinekW]]<>\"\",Table_SummaryPI[[#This Row],[BaselinekW]],\"\")","v":""},{"$f":"IF(Table_SummaryPI[[#This Row],[ProposedkWh]]<>\"\",Table_SummaryPI[[#This Row],[ProposedkWh]],\"\")","v":""},{"$f":"IF(Table_SummaryPI[[#This Row],[ProposedkW]]<>\"\",Table_SummaryPI[[#This Row],[ProposedkW]],\"\")","v":""},{"$f":"IF(Table_SummaryPI[[#This Row],[Notes]]<>\"\",Table_SummaryPI[[#This Row],[Notes]],\"\")","v":""},{"$f":"IF(Table_SummaryPI[[#This Row],[Incentive_Customer]]<>\"\",Table_SummaryPI[[#This Row],[Incentive_Customer]],0)","v":0},{"$f":"IF(Table_SummaryPI[[#This Row],[MeasureCost]]<>\"\",Table_SummaryPI[[#This Row],[MeasureCost]],0)","v":0},{"$f":"IF(Table_SummaryPI[[#This Row],[kWhSavings]]<>\"\",Table_SummaryPI[[#This Row],[kWhSavings]],0)","v":0},{"$f":"IF(Table_SummaryPI[[#This Row],[DemandSavingskW]]<>\"\",Table_SummaryPI[[#This Row],[DemandSavingskW]],0)","v":0}]
[{"$f":"Table_SummaryPI[[#This Row],[Line No.]]","v":""},{"$f":"IF(Table_PrintPI[[#This Row],[Line No.]]=\"\",\"\",CONCATENATE(Table_PrintPI[[#This Row],[Line No.]],\" - \",Table_SummaryPI[[#This Row],[MeasureName]]))","v":""},{"$f":"IF(Table_SummaryPI[[#This Row],[Manufacturer]]<>\"\",CONCATENATE(Table_SummaryPI[[#This Row],[Manufacturer]],\"/\",Table_SummaryPI[[#This Row],[Model'#]]),\"\")","v":""},{"$f":"IF(Table_SummaryPI[[#This Row],[Serial'#]]<>\"\",Table_SummaryPI[[#This Row],[Serial'#]],\"\")","v":""},{"$f":"IF(Table_SummaryPI[[#This Row],[Quantity]]<>\"\",Table_SummaryPI[[#This Row],[Quantity]],\"\")","v":""},{"$f":"IF(Table_SummaryPI[[#This Row],[BaselinekWh]]<>\"\",Table_SummaryPI[[#This Row],[BaselinekWh]],\"\")","v":""},{"$f":"IF(Table_SummaryPI[[#This Row],[BaselinekW]]<>\"\",Table_SummaryPI[[#This Row],[BaselinekW]],\"\")","v":""},{"$f":"IF(Table_SummaryPI[[#This Row],[ProposedkWh]]<>\"\",Table_SummaryPI[[#This Row],[ProposedkWh]],\"\")","v":""},{"$f":"IF(Table_SummaryPI[[#This Row],[ProposedkW]]<>\"\",Table_SummaryPI[[#This Row],[ProposedkW]],\"\")","v":""},{"$f":"IF(Table_SummaryPI[[#This Row],[Notes]]<>\"\",Table_SummaryPI[[#This Row],[Notes]],\"\")","v":""},{"$f":"IF(Table_SummaryPI[[#This Row],[Incentive_Customer]]<>\"\",Table_SummaryPI[[#This Row],[Incentive_Customer]],0)","v":0},{"$f":"IF(Table_SummaryPI[[#This Row],[MeasureCost]]<>\"\",Table_SummaryPI[[#This Row],[MeasureCost]],0)","v":0},{"$f":"IF(Table_SummaryPI[[#This Row],[kWhSavings]]<>\"\",Table_SummaryPI[[#This Row],[kWhSavings]],0)","v":0},{"$f":"IF(Table_SummaryPI[[#This Row],[DemandSavingskW]]<>\"\",Table_SummaryPI[[#This Row],[DemandSavingskW]],0)","v":0}]
[{"$f":"Table_SummaryPI[[#This Row],[Line No.]]","v":""},{"$f":"IF(Table_PrintPI[[#This Row],[Line No.]]=\"\",\"\",CONCATENATE(Table_PrintPI[[#This Row],[Line No.]],\" - \",Table_SummaryPI[[#This Row],[MeasureName]]))","v":""},{"$f":"IF(Table_SummaryPI[[#This Row],[Manufacturer]]<>\"\",CONCATENATE(Table_SummaryPI[[#This Row],[Manufacturer]],\"/\",Table_SummaryPI[[#This Row],[Model'#]]),\"\")","v":""},{"$f":"IF(Table_SummaryPI[[#This Row],[Serial'#]]<>\"\",Table_SummaryPI[[#This Row],[Serial'#]],\"\")","v":""},{"$f":"IF(Table_SummaryPI[[#This Row],[Quantity]]<>\"\",Table_SummaryPI[[#This Row],[Quantity]],\"\")","v":""},{"$f":"IF(Table_SummaryPI[[#This Row],[BaselinekWh]]<>\"\",Table_SummaryPI[[#This Row],[BaselinekWh]],\"\")","v":""},{"$f":"IF(Table_SummaryPI[[#This Row],[BaselinekW]]<>\"\",Table_SummaryPI[[#This Row],[BaselinekW]],\"\")","v":""},{"$f":"IF(Table_SummaryPI[[#This Row],[ProposedkWh]]<>\"\",Table_SummaryPI[[#This Row],[ProposedkWh]],\"\")","v":""},{"$f":"IF(Table_SummaryPI[[#This Row],[ProposedkW]]<>\"\",Table_SummaryPI[[#This Row],[ProposedkW]],\"\")","v":""},{"$f":"IF(Table_SummaryPI[[#This Row],[Notes]]<>\"\",Table_SummaryPI[[#This Row],[Notes]],\"\")","v":""},{"$f":"IF(Table_SummaryPI[[#This Row],[Incentive_Customer]]<>\"\",Table_SummaryPI[[#This Row],[Incentive_Customer]],0)","v":0},{"$f":"IF(Table_SummaryPI[[#This Row],[MeasureCost]]<>\"\",Table_SummaryPI[[#This Row],[MeasureCost]],0)","v":0},{"$f":"IF(Table_SummaryPI[[#This Row],[kWhSavings]]<>\"\",Table_SummaryPI[[#This Row],[kWhSavings]],0)","v":0},{"$f":"IF(Table_SummaryPI[[#This Row],[DemandSavingskW]]<>\"\",Table_SummaryPI[[#This Row],[DemandSavingskW]],0)","v":0}]
[{"$f":"Table_SummaryPI[[#This Row],[Line No.]]","v":""},{"$f":"IF(Table_PrintPI[[#This Row],[Line No.]]=\"\",\"\",CONCATENATE(Table_PrintPI[[#This Row],[Line No.]],\" - \",Table_SummaryPI[[#This Row],[MeasureName]]))","v":""},{"$f":"IF(Table_SummaryPI[[#This Row],[Manufacturer]]<>\"\",CONCATENATE(Table_SummaryPI[[#This Row],[Manufacturer]],\"/\",Table_SummaryPI[[#This Row],[Model'#]]),\"\")","v":""},{"$f":"IF(Table_SummaryPI[[#This Row],[Serial'#]]<>\"\",Table_SummaryPI[[#This Row],[Serial'#]],\"\")","v":""},{"$f":"IF(Table_SummaryPI[[#This Row],[Quantity]]<>\"\",Table_SummaryPI[[#This Row],[Quantity]],\"\")","v":""},{"$f":"IF(Table_SummaryPI[[#This Row],[BaselinekWh]]<>\"\",Table_SummaryPI[[#This Row],[BaselinekWh]],\"\")","v":""},{"$f":"IF(Table_SummaryPI[[#This Row],[BaselinekW]]<>\"\",Table_SummaryPI[[#This Row],[BaselinekW]],\"\")","v":""},{"$f":"IF(Table_SummaryPI[[#This Row],[ProposedkWh]]<>\"\",Table_SummaryPI[[#This Row],[ProposedkWh]],\"\")","v":""},{"$f":"IF(Table_SummaryPI[[#This Row],[ProposedkW]]<>\"\",Table_SummaryPI[[#This Row],[ProposedkW]],\"\")","v":""},{"$f":"IF(Table_SummaryPI[[#This Row],[Notes]]<>\"\",Table_SummaryPI[[#This Row],[Notes]],\"\")","v":""},{"$f":"IF(Table_SummaryPI[[#This Row],[Incentive_Customer]]<>\"\",Table_SummaryPI[[#This Row],[Incentive_Customer]],0)","v":0},{"$f":"IF(Table_SummaryPI[[#This Row],[MeasureCost]]<>\"\",Table_SummaryPI[[#This Row],[MeasureCost]],0)","v":0},{"$f":"IF(Table_SummaryPI[[#This Row],[kWhSavings]]<>\"\",Table_SummaryPI[[#This Row],[kWhSavings]],0)","v":0},{"$f":"IF(Table_SummaryPI[[#This Row],[DemandSavingskW]]<>\"\",Table_SummaryPI[[#This Row],[DemandSavingskW]],0)","v":0}]
[{"$f":"Table_SummaryPI[[#This Row],[Line No.]]","v":""},{"$f":"IF(Table_PrintPI[[#This Row],[Line No.]]=\"\",\"\",CONCATENATE(Table_PrintPI[[#This Row],[Line No.]],\" - \",Table_SummaryPI[[#This Row],[MeasureName]]))","v":""},{"$f":"IF(Table_SummaryPI[[#This Row],[Manufacturer]]<>\"\",CONCATENATE(Table_SummaryPI[[#This Row],[Manufacturer]],\"/\",Table_SummaryPI[[#This Row],[Model'#]]),\"\")","v":""},{"$f":"IF(Table_SummaryPI[[#This Row],[Serial'#]]<>\"\",Table_SummaryPI[[#This Row],[Serial'#]],\"\")","v":""},{"$f":"IF(Table_SummaryPI[[#This Row],[Quantity]]<>\"\",Table_SummaryPI[[#This Row],[Quantity]],\"\")","v":""},{"$f":"IF(Table_SummaryPI[[#This Row],[BaselinekWh]]<>\"\",Table_SummaryPI[[#This Row],[BaselinekWh]],\"\")","v":""},{"$f":"IF(Table_SummaryPI[[#This Row],[BaselinekW]]<>\"\",Table_SummaryPI[[#This Row],[BaselinekW]],\"\")","v":""},{"$f":"IF(Table_SummaryPI[[#This Row],[ProposedkWh]]<>\"\",Table_SummaryPI[[#This Row],[ProposedkWh]],\"\")","v":""},{"$f":"IF(Table_SummaryPI[[#This Row],[ProposedkW]]<>\"\",Table_SummaryPI[[#This Row],[ProposedkW]],\"\")","v":""},{"$f":"IF(Table_SummaryPI[[#This Row],[Notes]]<>\"\",Table_SummaryPI[[#This Row],[Notes]],\"\")","v":""},{"$f":"IF(Table_SummaryPI[[#This Row],[Incentive_Customer]]<>\"\",Table_SummaryPI[[#This Row],[Incentive_Customer]],0)","v":0},{"$f":"IF(Table_SummaryPI[[#This Row],[MeasureCost]]<>\"\",Table_SummaryPI[[#This Row],[MeasureCost]],0)","v":0},{"$f":"IF(Table_SummaryPI[[#This Row],[kWhSavings]]<>\"\",Table_SummaryPI[[#This Row],[kWhSavings]],0)","v":0},{"$f":"IF(Table_SummaryPI[[#This Row],[DemandSavingskW]]<>\"\",Table_SummaryPI[[#This Row],[DemandSavingskW]],0)","v":0}]
[{"$f":"Table_SummaryPI[[#This Row],[Line No.]]","v":""},{"$f":"IF(Table_PrintPI[[#This Row],[Line No.]]=\"\",\"\",CONCATENATE(Table_PrintPI[[#This Row],[Line No.]],\" - \",Table_SummaryPI[[#This Row],[MeasureName]]))","v":""},{"$f":"IF(Table_SummaryPI[[#This Row],[Manufacturer]]<>\"\",CONCATENATE(Table_SummaryPI[[#This Row],[Manufacturer]],\"/\",Table_SummaryPI[[#This Row],[Model'#]]),\"\")","v":""},{"$f":"IF(Table_SummaryPI[[#This Row],[Serial'#]]<>\"\",Table_SummaryPI[[#This Row],[Serial'#]],\"\")","v":""},{"$f":"IF(Table_SummaryPI[[#This Row],[Quantity]]<>\"\",Table_SummaryPI[[#This Row],[Quantity]],\"\")","v":""},{"$f":"IF(Table_SummaryPI[[#This Row],[BaselinekWh]]<>\"\",Table_SummaryPI[[#This Row],[BaselinekWh]],\"\")","v":""},{"$f":"IF(Table_SummaryPI[[#This Row],[BaselinekW]]<>\"\",Table_SummaryPI[[#This Row],[BaselinekW]],\"\")","v":""},{"$f":"IF(Table_SummaryPI[[#This Row],[ProposedkWh]]<>\"\",Table_SummaryPI[[#This Row],[ProposedkWh]],\"\")","v":""},{"$f":"IF(Table_SummaryPI[[#This Row],[ProposedkW]]<>\"\",Table_SummaryPI[[#This Row],[ProposedkW]],\"\")","v":""},{"$f":"IF(Table_SummaryPI[[#This Row],[Notes]]<>\"\",Table_SummaryPI[[#This Row],[Notes]],\"\")","v":""},{"$f":"IF(Table_SummaryPI[[#This Row],[Incentive_Customer]]<>\"\",Table_SummaryPI[[#This Row],[Incentive_Customer]],0)","v":0},{"$f":"IF(Table_SummaryPI[[#This Row],[MeasureCost]]<>\"\",Table_SummaryPI[[#This Row],[MeasureCost]],0)","v":0},{"$f":"IF(Table_SummaryPI[[#This Row],[kWhSavings]]<>\"\",Table_SummaryPI[[#This Row],[kWhSavings]],0)","v":0},{"$f":"IF(Table_SummaryPI[[#This Row],[DemandSavingskW]]<>\"\",Table_SummaryPI[[#This Row],[DemandSavingskW]],0)","v":0}]
[{"$f":"Table_SummaryPI[[#This Row],[Line No.]]","v":""},{"$f":"IF(Table_PrintPI[[#This Row],[Line No.]]=\"\",\"\",CONCATENATE(Table_PrintPI[[#This Row],[Line No.]],\" - \",Table_SummaryPI[[#This Row],[MeasureName]]))","v":""},{"$f":"IF(Table_SummaryPI[[#This Row],[Manufacturer]]<>\"\",CONCATENATE(Table_SummaryPI[[#This Row],[Manufacturer]],\"/\",Table_SummaryPI[[#This Row],[Model'#]]),\"\")","v":""},{"$f":"IF(Table_SummaryPI[[#This Row],[Serial'#]]<>\"\",Table_SummaryPI[[#This Row],[Serial'#]],\"\")","v":""},{"$f":"IF(Table_SummaryPI[[#This Row],[Quantity]]<>\"\",Table_SummaryPI[[#This Row],[Quantity]],\"\")","v":""},{"$f":"IF(Table_SummaryPI[[#This Row],[BaselinekWh]]<>\"\",Table_SummaryPI[[#This Row],[BaselinekWh]],\"\")","v":""},{"$f":"IF(Table_SummaryPI[[#This Row],[BaselinekW]]<>\"\",Table_SummaryPI[[#This Row],[BaselinekW]],\"\")","v":""},{"$f":"IF(Table_SummaryPI[[#This Row],[ProposedkWh]]<>\"\",Table_SummaryPI[[#This Row],[ProposedkWh]],\"\")","v":""},{"$f":"IF(Table_SummaryPI[[#This Row],[ProposedkW]]<>\"\",Table_SummaryPI[[#This Row],[ProposedkW]],\"\")","v":""},{"$f":"IF(Table_SummaryPI[[#This Row],[Notes]]<>\"\",Table_SummaryPI[[#This Row],[Notes]],\"\")","v":""},{"$f":"IF(Table_SummaryPI[[#This Row],[Incentive_Customer]]<>\"\",Table_SummaryPI[[#This Row],[Incentive_Customer]],0)","v":0},{"$f":"IF(Table_SummaryPI[[#This Row],[MeasureCost]]<>\"\",Table_SummaryPI[[#This Row],[MeasureCost]],0)","v":0},{"$f":"IF(Table_SummaryPI[[#This Row],[kWhSavings]]<>\"\",Table_SummaryPI[[#This Row],[kWhSavings]],0)","v":0},{"$f":"IF(Table_SummaryPI[[#This Row],[DemandSavingskW]]<>\"\",Table_SummaryPI[[#This Row],[DemandSavingskW]],0)","v":0}]
[{"$f":"Table_SummaryPI[[#This Row],[Line No.]]","v":""},{"$f":"IF(Table_PrintPI[[#This Row],[Line No.]]=\"\",\"\",CONCATENATE(Table_PrintPI[[#This Row],[Line No.]],\" - \",Table_SummaryPI[[#This Row],[MeasureName]]))","v":""},{"$f":"IF(Table_SummaryPI[[#This Row],[Manufacturer]]<>\"\",CONCATENATE(Table_SummaryPI[[#This Row],[Manufacturer]],\"/\",Table_SummaryPI[[#This Row],[Model'#]]),\"\")","v":""},{"$f":"IF(Table_SummaryPI[[#This Row],[Serial'#]]<>\"\",Table_SummaryPI[[#This Row],[Serial'#]],\"\")","v":""},{"$f":"IF(Table_SummaryPI[[#This Row],[Quantity]]<>\"\",Table_SummaryPI[[#This Row],[Quantity]],\"\")","v":""},{"$f":"IF(Table_SummaryPI[[#This Row],[BaselinekWh]]<>\"\",Table_SummaryPI[[#This Row],[BaselinekWh]],\"\")","v":""},{"$f":"IF(Table_SummaryPI[[#This Row],[BaselinekW]]<>\"\",Table_SummaryPI[[#This Row],[BaselinekW]],\"\")","v":""},{"$f":"IF(Table_SummaryPI[[#This Row],[ProposedkWh]]<>\"\",Table_SummaryPI[[#This Row],[ProposedkWh]],\"\")","v":""},{"$f":"IF(Table_SummaryPI[[#This Row],[ProposedkW]]<>\"\",Table_SummaryPI[[#This Row],[ProposedkW]],\"\")","v":""},{"$f":"IF(Table_SummaryPI[[#This Row],[Notes]]<>\"\",Table_SummaryPI[[#This Row],[Notes]],\"\")","v":""},{"$f":"IF(Table_SummaryPI[[#This Row],[Incentive_Customer]]<>\"\",Table_SummaryPI[[#This Row],[Incentive_Customer]],0)","v":0},{"$f":"IF(Table_SummaryPI[[#This Row],[MeasureCost]]<>\"\",Table_SummaryPI[[#This Row],[MeasureCost]],0)","v":0},{"$f":"IF(Table_SummaryPI[[#This Row],[kWhSavings]]<>\"\",Table_SummaryPI[[#This Row],[kWhSavings]],0)","v":0},{"$f":"IF(Table_SummaryPI[[#This Row],[DemandSavingskW]]<>\"\",Table_SummaryPI[[#This Row],[DemandSavingskW]],0)","v":0}]
[{"$f":"Table_SummaryPI[[#This Row],[Line No.]]","v":""},{"$f":"IF(Table_PrintPI[[#This Row],[Line No.]]=\"\",\"\",CONCATENATE(Table_PrintPI[[#This Row],[Line No.]],\" - \",Table_SummaryPI[[#This Row],[MeasureName]]))","v":""},{"$f":"IF(Table_SummaryPI[[#This Row],[Manufacturer]]<>\"\",CONCATENATE(Table_SummaryPI[[#This Row],[Manufacturer]],\"/\",Table_SummaryPI[[#This Row],[Model'#]]),\"\")","v":""},{"$f":"IF(Table_SummaryPI[[#This Row],[Serial'#]]<>\"\",Table_SummaryPI[[#This Row],[Serial'#]],\"\")","v":""},{"$f":"IF(Table_SummaryPI[[#This Row],[Quantity]]<>\"\",Table_SummaryPI[[#This Row],[Quantity]],\"\")","v":""},{"$f":"IF(Table_SummaryPI[[#This Row],[BaselinekWh]]<>\"\",Table_SummaryPI[[#This Row],[BaselinekWh]],\"\")","v":""},{"$f":"IF(Table_SummaryPI[[#This Row],[BaselinekW]]<>\"\",Table_SummaryPI[[#This Row],[BaselinekW]],\"\")","v":""},{"$f":"IF(Table_SummaryPI[[#This Row],[ProposedkWh]]<>\"\",Table_SummaryPI[[#This Row],[ProposedkWh]],\"\")","v":""},{"$f":"IF(Table_SummaryPI[[#This Row],[ProposedkW]]<>\"\",Table_SummaryPI[[#This Row],[ProposedkW]],\"\")","v":""},{"$f":"IF(Table_SummaryPI[[#This Row],[Notes]]<>\"\",Table_SummaryPI[[#This Row],[Notes]],\"\")","v":""},{"$f":"IF(Table_SummaryPI[[#This Row],[Incentive_Customer]]<>\"\",Table_SummaryPI[[#This Row],[Incentive_Customer]],0)","v":0},{"$f":"IF(Table_SummaryPI[[#This Row],[MeasureCost]]<>\"\",Table_SummaryPI[[#This Row],[MeasureCost]],0)","v":0},{"$f":"IF(Table_SummaryPI[[#This Row],[kWhSavings]]<>\"\",Table_SummaryPI[[#This Row],[kWhSavings]],0)","v":0},{"$f":"IF(Table_SummaryPI[[#This Row],[DemandSavingskW]]<>\"\",Table_SummaryPI[[#This Row],[DemandSavingskW]],0)","v":0}]
[{"$f":"Table_SummaryPI[[#This Row],[Line No.]]","v":""},{"$f":"IF(Table_PrintPI[[#This Row],[Line No.]]=\"\",\"\",CONCATENATE(Table_PrintPI[[#This Row],[Line No.]],\" - \",Table_SummaryPI[[#This Row],[MeasureName]]))","v":""},{"$f":"IF(Table_SummaryPI[[#This Row],[Manufacturer]]<>\"\",CONCATENATE(Table_SummaryPI[[#This Row],[Manufacturer]],\"/\",Table_SummaryPI[[#This Row],[Model'#]]),\"\")","v":""},{"$f":"IF(Table_SummaryPI[[#This Row],[Serial'#]]<>\"\",Table_SummaryPI[[#This Row],[Serial'#]],\"\")","v":""},{"$f":"IF(Table_SummaryPI[[#This Row],[Quantity]]<>\"\",Table_SummaryPI[[#This Row],[Quantity]],\"\")","v":""},{"$f":"IF(Table_SummaryPI[[#This Row],[BaselinekWh]]<>\"\",Table_SummaryPI[[#This Row],[BaselinekWh]],\"\")","v":""},{"$f":"IF(Table_SummaryPI[[#This Row],[BaselinekW]]<>\"\",Table_SummaryPI[[#This Row],[BaselinekW]],\"\")","v":""},{"$f":"IF(Table_SummaryPI[[#This Row],[ProposedkWh]]<>\"\",Table_SummaryPI[[#This Row],[ProposedkWh]],\"\")","v":""},{"$f":"IF(Table_SummaryPI[[#This Row],[ProposedkW]]<>\"\",Table_SummaryPI[[#This Row],[ProposedkW]],\"\")","v":""},{"$f":"IF(Table_SummaryPI[[#This Row],[Notes]]<>\"\",Table_SummaryPI[[#This Row],[Notes]],\"\")","v":""},{"$f":"IF(Table_SummaryPI[[#This Row],[Incentive_Customer]]<>\"\",Table_SummaryPI[[#This Row],[Incentive_Customer]],0)","v":0},{"$f":"IF(Table_SummaryPI[[#This Row],[MeasureCost]]<>\"\",Table_SummaryPI[[#This Row],[MeasureCost]],0)","v":0},{"$f":"IF(Table_SummaryPI[[#This Row],[kWhSavings]]<>\"\",Table_SummaryPI[[#This Row],[kWhSavings]],0)","v":0},{"$f":"IF(Table_SummaryPI[[#This Row],[DemandSavingskW]]<>\"\",Table_SummaryPI[[#This Row],[DemandSavingskW]],0)","v":0}]
[{"$f":"Table_SummaryPI[[#This Row],[Line No.]]","v":""},{"$f":"IF(Table_PrintPI[[#This Row],[Line No.]]=\"\",\"\",CONCATENATE(Table_PrintPI[[#This Row],[Line No.]],\" - \",Table_SummaryPI[[#This Row],[MeasureName]]))","v":""},{"$f":"IF(Table_SummaryPI[[#This Row],[Manufacturer]]<>\"\",CONCATENATE(Table_SummaryPI[[#This Row],[Manufacturer]],\"/\",Table_SummaryPI[[#This Row],[Model'#]]),\"\")","v":""},{"$f":"IF(Table_SummaryPI[[#This Row],[Serial'#]]<>\"\",Table_SummaryPI[[#This Row],[Serial'#]],\"\")","v":""},{"$f":"IF(Table_SummaryPI[[#This Row],[Quantity]]<>\"\",Table_SummaryPI[[#This Row],[Quantity]],\"\")","v":""},{"$f":"IF(Table_SummaryPI[[#This Row],[BaselinekWh]]<>\"\",Table_SummaryPI[[#This Row],[BaselinekWh]],\"\")","v":""},{"$f":"IF(Table_SummaryPI[[#This Row],[BaselinekW]]<>\"\",Table_SummaryPI[[#This Row],[BaselinekW]],\"\")","v":""},{"$f":"IF(Table_SummaryPI[[#This Row],[ProposedkWh]]<>\"\",Table_SummaryPI[[#This Row],[ProposedkWh]],\"\")","v":""},{"$f":"IF(Table_SummaryPI[[#This Row],[ProposedkW]]<>\"\",Table_SummaryPI[[#This Row],[ProposedkW]],\"\")","v":""},{"$f":"IF(Table_SummaryPI[[#This Row],[Notes]]<>\"\",Table_SummaryPI[[#This Row],[Notes]],\"\")","v":""},{"$f":"IF(Table_SummaryPI[[#This Row],[Incentive_Customer]]<>\"\",Table_SummaryPI[[#This Row],[Incentive_Customer]],0)","v":0},{"$f":"IF(Table_SummaryPI[[#This Row],[MeasureCost]]<>\"\",Table_SummaryPI[[#This Row],[MeasureCost]],0)","v":0},{"$f":"IF(Table_SummaryPI[[#This Row],[kWhSavings]]<>\"\",Table_SummaryPI[[#This Row],[kWhSavings]],0)","v":0},{"$f":"IF(Table_SummaryPI[[#This Row],[DemandSavingskW]]<>\"\",Table_SummaryPI[[#This Row],[DemandSavingskW]],0)","v":0}]
[{"$f":"Table_SummaryPI[[#This Row],[Line No.]]","v":""},{"$f":"IF(Table_PrintPI[[#This Row],[Line No.]]=\"\",\"\",CONCATENATE(Table_PrintPI[[#This Row],[Line No.]],\" - \",Table_SummaryPI[[#This Row],[MeasureName]]))","v":""},{"$f":"IF(Table_SummaryPI[[#This Row],[Manufacturer]]<>\"\",CONCATENATE(Table_SummaryPI[[#This Row],[Manufacturer]],\"/\",Table_SummaryPI[[#This Row],[Model'#]]),\"\")","v":""},{"$f":"IF(Table_SummaryPI[[#This Row],[Serial'#]]<>\"\",Table_SummaryPI[[#This Row],[Serial'#]],\"\")","v":""},{"$f":"IF(Table_SummaryPI[[#This Row],[Quantity]]<>\"\",Table_SummaryPI[[#This Row],[Quantity]],\"\")","v":""},{"$f":"IF(Table_SummaryPI[[#This Row],[BaselinekWh]]<>\"\",Table_SummaryPI[[#This Row],[BaselinekWh]],\"\")","v":""},{"$f":"IF(Table_SummaryPI[[#This Row],[BaselinekW]]<>\"\",Table_SummaryPI[[#This Row],[BaselinekW]],\"\")","v":""},{"$f":"IF(Table_SummaryPI[[#This Row],[ProposedkWh]]<>\"\",Table_SummaryPI[[#This Row],[ProposedkWh]],\"\")","v":""},{"$f":"IF(Table_SummaryPI[[#This Row],[ProposedkW]]<>\"\",Table_SummaryPI[[#This Row],[ProposedkW]],\"\")","v":""},{"$f":"IF(Table_SummaryPI[[#This Row],[Notes]]<>\"\",Table_SummaryPI[[#This Row],[Notes]],\"\")","v":""},{"$f":"IF(Table_SummaryPI[[#This Row],[Incentive_Customer]]<>\"\",Table_SummaryPI[[#This Row],[Incentive_Customer]],0)","v":0},{"$f":"IF(Table_SummaryPI[[#This Row],[MeasureCost]]<>\"\",Table_SummaryPI[[#This Row],[MeasureCost]],0)","v":0},{"$f":"IF(Table_SummaryPI[[#This Row],[kWhSavings]]<>\"\",Table_SummaryPI[[#This Row],[kWhSavings]],0)","v":0},{"$f":"IF(Table_SummaryPI[[#This Row],[DemandSavingskW]]<>\"\",Table_SummaryPI[[#This Row],[DemandSavingskW]],0)","v":0}]
[{"$f":"Table_SummaryPI[[#This Row],[Line No.]]","v":""},{"$f":"IF(Table_PrintPI[[#This Row],[Line No.]]=\"\",\"\",CONCATENATE(Table_PrintPI[[#This Row],[Line No.]],\" - \",Table_SummaryPI[[#This Row],[MeasureName]]))","v":""},{"$f":"IF(Table_SummaryPI[[#This Row],[Manufacturer]]<>\"\",CONCATENATE(Table_SummaryPI[[#This Row],[Manufacturer]],\"/\",Table_SummaryPI[[#This Row],[Model'#]]),\"\")","v":""},{"$f":"IF(Table_SummaryPI[[#This Row],[Serial'#]]<>\"\",Table_SummaryPI[[#This Row],[Serial'#]],\"\")","v":""},{"$f":"IF(Table_SummaryPI[[#This Row],[Quantity]]<>\"\",Table_SummaryPI[[#This Row],[Quantity]],\"\")","v":""},{"$f":"IF(Table_SummaryPI[[#This Row],[BaselinekWh]]<>\"\",Table_SummaryPI[[#This Row],[BaselinekWh]],\"\")","v":""},{"$f":"IF(Table_SummaryPI[[#This Row],[BaselinekW]]<>\"\",Table_SummaryPI[[#This Row],[BaselinekW]],\"\")","v":""},{"$f":"IF(Table_SummaryPI[[#This Row],[ProposedkWh]]<>\"\",Table_SummaryPI[[#This Row],[ProposedkWh]],\"\")","v":""},{"$f":"IF(Table_SummaryPI[[#This Row],[ProposedkW]]<>\"\",Table_SummaryPI[[#This Row],[ProposedkW]],\"\")","v":""},{"$f":"IF(Table_SummaryPI[[#This Row],[Notes]]<>\"\",Table_SummaryPI[[#This Row],[Notes]],\"\")","v":""},{"$f":"IF(Table_SummaryPI[[#This Row],[Incentive_Customer]]<>\"\",Table_SummaryPI[[#This Row],[Incentive_Customer]],0)","v":0},{"$f":"IF(Table_SummaryPI[[#This Row],[MeasureCost]]<>\"\",Table_SummaryPI[[#This Row],[MeasureCost]],0)","v":0},{"$f":"IF(Table_SummaryPI[[#This Row],[kWhSavings]]<>\"\",Table_SummaryPI[[#This Row],[kWhSavings]],0)","v":0},{"$f":"IF(Table_SummaryPI[[#This Row],[DemandSavingskW]]<>\"\",Table_SummaryPI[[#This Row],[DemandSavingskW]],0)","v":0}]
[{"$f":"Table_SummaryPI[[#This Row],[Line No.]]","v":""},{"$f":"IF(Table_PrintPI[[#This Row],[Line No.]]=\"\",\"\",CONCATENATE(Table_PrintPI[[#This Row],[Line No.]],\" - \",Table_SummaryPI[[#This Row],[MeasureName]]))","v":""},{"$f":"IF(Table_SummaryPI[[#This Row],[Manufacturer]]<>\"\",CONCATENATE(Table_SummaryPI[[#This Row],[Manufacturer]],\"/\",Table_SummaryPI[[#This Row],[Model'#]]),\"\")","v":""},{"$f":"IF(Table_SummaryPI[[#This Row],[Serial'#]]<>\"\",Table_SummaryPI[[#This Row],[Serial'#]],\"\")","v":""},{"$f":"IF(Table_SummaryPI[[#This Row],[Quantity]]<>\"\",Table_SummaryPI[[#This Row],[Quantity]],\"\")","v":""},{"$f":"IF(Table_SummaryPI[[#This Row],[BaselinekWh]]<>\"\",Table_SummaryPI[[#This Row],[BaselinekWh]],\"\")","v":""},{"$f":"IF(Table_SummaryPI[[#This Row],[BaselinekW]]<>\"\",Table_SummaryPI[[#This Row],[BaselinekW]],\"\")","v":""},{"$f":"IF(Table_SummaryPI[[#This Row],[ProposedkWh]]<>\"\",Table_SummaryPI[[#This Row],[ProposedkWh]],\"\")","v":""},{"$f":"IF(Table_SummaryPI[[#This Row],[ProposedkW]]<>\"\",Table_SummaryPI[[#This Row],[ProposedkW]],\"\")","v":""},{"$f":"IF(Table_SummaryPI[[#This Row],[Notes]]<>\"\",Table_SummaryPI[[#This Row],[Notes]],\"\")","v":""},{"$f":"IF(Table_SummaryPI[[#This Row],[Incentive_Customer]]<>\"\",Table_SummaryPI[[#This Row],[Incentive_Customer]],0)","v":0},{"$f":"IF(Table_SummaryPI[[#This Row],[MeasureCost]]<>\"\",Table_SummaryPI[[#This Row],[MeasureCost]],0)","v":0},{"$f":"IF(Table_SummaryPI[[#This Row],[kWhSavings]]<>\"\",Table_SummaryPI[[#This Row],[kWhSavings]],0)","v":0},{"$f":"IF(Table_SummaryPI[[#This Row],[DemandSavingskW]]<>\"\",Table_SummaryPI[[#This Row],[DemandSavingskW]],0)","v":0}]
[{"$f":"Table_SummaryPI[[#This Row],[Line No.]]","v":""},{"$f":"IF(Table_PrintPI[[#This Row],[Line No.]]=\"\",\"\",CONCATENATE(Table_PrintPI[[#This Row],[Line No.]],\" - \",Table_SummaryPI[[#This Row],[MeasureName]]))","v":""},{"$f":"IF(Table_SummaryPI[[#This Row],[Manufacturer]]<>\"\",CONCATENATE(Table_SummaryPI[[#This Row],[Manufacturer]],\"/\",Table_SummaryPI[[#This Row],[Model'#]]),\"\")","v":""},{"$f":"IF(Table_SummaryPI[[#This Row],[Serial'#]]<>\"\",Table_SummaryPI[[#This Row],[Serial'#]],\"\")","v":""},{"$f":"IF(Table_SummaryPI[[#This Row],[Quantity]]<>\"\",Table_SummaryPI[[#This Row],[Quantity]],\"\")","v":""},{"$f":"IF(Table_SummaryPI[[#This Row],[BaselinekWh]]<>\"\",Table_SummaryPI[[#This Row],[BaselinekWh]],\"\")","v":""},{"$f":"IF(Table_SummaryPI[[#This Row],[BaselinekW]]<>\"\",Table_SummaryPI[[#This Row],[BaselinekW]],\"\")","v":""},{"$f":"IF(Table_SummaryPI[[#This Row],[ProposedkWh]]<>\"\",Table_SummaryPI[[#This Row],[ProposedkWh]],\"\")","v":""},{"$f":"IF(Table_SummaryPI[[#This Row],[ProposedkW]]<>\"\",Table_SummaryPI[[#This Row],[ProposedkW]],\"\")","v":""},{"$f":"IF(Table_SummaryPI[[#This Row],[Notes]]<>\"\",Table_SummaryPI[[#This Row],[Notes]],\"\")","v":""},{"$f":"IF(Table_SummaryPI[[#This Row],[Incentive_Customer]]<>\"\",Table_SummaryPI[[#This Row],[Incentive_Customer]],0)","v":0},{"$f":"IF(Table_SummaryPI[[#This Row],[MeasureCost]]<>\"\",Table_SummaryPI[[#This Row],[MeasureCost]],0)","v":0},{"$f":"IF(Table_SummaryPI[[#This Row],[kWhSavings]]<>\"\",Table_SummaryPI[[#This Row],[kWhSavings]],0)","v":0},{"$f":"IF(Table_SummaryPI[[#This Row],[DemandSavingskW]]<>\"\",Table_SummaryPI[[#This Row],[DemandSavingskW]],0)","v":0}]
[{"$f":"Table_SummaryPI[[#This Row],[Line No.]]","v":""},{"$f":"IF(Table_PrintPI[[#This Row],[Line No.]]=\"\",\"\",CONCATENATE(Table_PrintPI[[#This Row],[Line No.]],\" - \",Table_SummaryPI[[#This Row],[MeasureName]]))","v":""},{"$f":"IF(Table_SummaryPI[[#This Row],[Manufacturer]]<>\"\",CONCATENATE(Table_SummaryPI[[#This Row],[Manufacturer]],\"/\",Table_SummaryPI[[#This Row],[Model'#]]),\"\")","v":""},{"$f":"IF(Table_SummaryPI[[#This Row],[Serial'#]]<>\"\",Table_SummaryPI[[#This Row],[Serial'#]],\"\")","v":""},{"$f":"IF(Table_SummaryPI[[#This Row],[Quantity]]<>\"\",Table_SummaryPI[[#This Row],[Quantity]],\"\")","v":""},{"$f":"IF(Table_SummaryPI[[#This Row],[BaselinekWh]]<>\"\",Table_SummaryPI[[#This Row],[BaselinekWh]],\"\")","v":""},{"$f":"IF(Table_SummaryPI[[#This Row],[BaselinekW]]<>\"\",Table_SummaryPI[[#This Row],[BaselinekW]],\"\")","v":""},{"$f":"IF(Table_SummaryPI[[#This Row],[ProposedkWh]]<>\"\",Table_SummaryPI[[#This Row],[ProposedkWh]],\"\")","v":""},{"$f":"IF(Table_SummaryPI[[#This Row],[ProposedkW]]<>\"\",Table_SummaryPI[[#This Row],[ProposedkW]],\"\")","v":""},{"$f":"IF(Table_SummaryPI[[#This Row],[Notes]]<>\"\",Table_SummaryPI[[#This Row],[Notes]],\"\")","v":""},{"$f":"IF(Table_SummaryPI[[#This Row],[Incentive_Customer]]<>\"\",Table_SummaryPI[[#This Row],[Incentive_Customer]],0)","v":0},{"$f":"IF(Table_SummaryPI[[#This Row],[MeasureCost]]<>\"\",Table_SummaryPI[[#This Row],[MeasureCost]],0)","v":0},{"$f":"IF(Table_SummaryPI[[#This Row],[kWhSavings]]<>\"\",Table_SummaryPI[[#This Row],[kWhSavings]],0)","v":0},{"$f":"IF(Table_SummaryPI[[#This Row],[DemandSavingskW]]<>\"\",Table_SummaryPI[[#This Row],[DemandSavingskW]],0)","v":0}]
[{"$f":"Table_SummaryPI[[#This Row],[Line No.]]","v":""},{"$f":"IF(Table_PrintPI[[#This Row],[Line No.]]=\"\",\"\",CONCATENATE(Table_PrintPI[[#This Row],[Line No.]],\" - \",Table_SummaryPI[[#This Row],[MeasureName]]))","v":""},{"$f":"IF(Table_SummaryPI[[#This Row],[Manufacturer]]<>\"\",CONCATENATE(Table_SummaryPI[[#This Row],[Manufacturer]],\"/\",Table_SummaryPI[[#This Row],[Model'#]]),\"\")","v":""},{"$f":"IF(Table_SummaryPI[[#This Row],[Serial'#]]<>\"\",Table_SummaryPI[[#This Row],[Serial'#]],\"\")","v":""},{"$f":"IF(Table_SummaryPI[[#This Row],[Quantity]]<>\"\",Table_SummaryPI[[#This Row],[Quantity]],\"\")","v":""},{"$f":"IF(Table_SummaryPI[[#This Row],[BaselinekWh]]<>\"\",Table_SummaryPI[[#This Row],[BaselinekWh]],\"\")","v":""},{"$f":"IF(Table_SummaryPI[[#This Row],[BaselinekW]]<>\"\",Table_SummaryPI[[#This Row],[BaselinekW]],\"\")","v":""},{"$f":"IF(Table_SummaryPI[[#This Row],[ProposedkWh]]<>\"\",Table_SummaryPI[[#This Row],[ProposedkWh]],\"\")","v":""},{"$f":"IF(Table_SummaryPI[[#This Row],[ProposedkW]]<>\"\",Table_SummaryPI[[#This Row],[ProposedkW]],\"\")","v":""},{"$f":"IF(Table_SummaryPI[[#This Row],[Notes]]<>\"\",Table_SummaryPI[[#This Row],[Notes]],\"\")","v":""},{"$f":"IF(Table_SummaryPI[[#This Row],[Incentive_Customer]]<>\"\",Table_SummaryPI[[#This Row],[Incentive_Customer]],0)","v":0},{"$f":"IF(Table_SummaryPI[[#This Row],[MeasureCost]]<>\"\",Table_SummaryPI[[#This Row],[MeasureCost]],0)","v":0},{"$f":"IF(Table_SummaryPI[[#This Row],[kWhSavings]]<>\"\",Table_SummaryPI[[#This Row],[kWhSavings]],0)","v":0},{"$f":"IF(Table_SummaryPI[[#This Row],[DemandSavingskW]]<>\"\",Table_SummaryPI[[#This Row],[DemandSavingskW]],0)","v":0}]
[{"$f":"Table_SummaryPI[[#This Row],[Line No.]]","v":""},{"$f":"IF(Table_PrintPI[[#This Row],[Line No.]]=\"\",\"\",CONCATENATE(Table_PrintPI[[#This Row],[Line No.]],\" - \",Table_SummaryPI[[#This Row],[MeasureName]]))","v":""},{"$f":"IF(Table_SummaryPI[[#This Row],[Manufacturer]]<>\"\",CONCATENATE(Table_SummaryPI[[#This Row],[Manufacturer]],\"/\",Table_SummaryPI[[#This Row],[Model'#]]),\"\")","v":""},{"$f":"IF(Table_SummaryPI[[#This Row],[Serial'#]]<>\"\",Table_SummaryPI[[#This Row],[Serial'#]],\"\")","v":""},{"$f":"IF(Table_SummaryPI[[#This Row],[Quantity]]<>\"\",Table_SummaryPI[[#This Row],[Quantity]],\"\")","v":""},{"$f":"IF(Table_SummaryPI[[#This Row],[BaselinekWh]]<>\"\",Table_SummaryPI[[#This Row],[BaselinekWh]],\"\")","v":""},{"$f":"IF(Table_SummaryPI[[#This Row],[BaselinekW]]<>\"\",Table_SummaryPI[[#This Row],[BaselinekW]],\"\")","v":""},{"$f":"IF(Table_SummaryPI[[#This Row],[ProposedkWh]]<>\"\",Table_SummaryPI[[#This Row],[ProposedkWh]],\"\")","v":""},{"$f":"IF(Table_SummaryPI[[#This Row],[ProposedkW]]<>\"\",Table_SummaryPI[[#This Row],[ProposedkW]],\"\")","v":""},{"$f":"IF(Table_SummaryPI[[#This Row],[Notes]]<>\"\",Table_SummaryPI[[#This Row],[Notes]],\"\")","v":""},{"$f":"IF(Table_SummaryPI[[#This Row],[Incentive_Customer]]<>\"\",Table_SummaryPI[[#This Row],[Incentive_Customer]],0)","v":0},{"$f":"IF(Table_SummaryPI[[#This Row],[MeasureCost]]<>\"\",Table_SummaryPI[[#This Row],[MeasureCost]],0)","v":0},{"$f":"IF(Table_SummaryPI[[#This Row],[kWhSavings]]<>\"\",Table_SummaryPI[[#This Row],[kWhSavings]],0)","v":0},{"$f":"IF(Table_SummaryPI[[#This Row],[DemandSavingskW]]<>\"\",Table_SummaryPI[[#This Row],[DemandSavingskW]],0)","v":0}]
[{"$f":"Table_SummaryPI[[#This Row],[Line No.]]","v":""},{"$f":"IF(Table_PrintPI[[#This Row],[Line No.]]=\"\",\"\",CONCATENATE(Table_PrintPI[[#This Row],[Line No.]],\" - \",Table_SummaryPI[[#This Row],[MeasureName]]))","v":""},{"$f":"IF(Table_SummaryPI[[#This Row],[Manufacturer]]<>\"\",CONCATENATE(Table_SummaryPI[[#This Row],[Manufacturer]],\"/\",Table_SummaryPI[[#This Row],[Model'#]]),\"\")","v":""},{"$f":"IF(Table_SummaryPI[[#This Row],[Serial'#]]<>\"\",Table_SummaryPI[[#This Row],[Serial'#]],\"\")","v":""},{"$f":"IF(Table_SummaryPI[[#This Row],[Quantity]]<>\"\",Table_SummaryPI[[#This Row],[Quantity]],\"\")","v":""},{"$f":"IF(Table_SummaryPI[[#This Row],[BaselinekWh]]<>\"\",Table_SummaryPI[[#This Row],[BaselinekWh]],\"\")","v":""},{"$f":"IF(Table_SummaryPI[[#This Row],[BaselinekW]]<>\"\",Table_SummaryPI[[#This Row],[BaselinekW]],\"\")","v":""},{"$f":"IF(Table_SummaryPI[[#This Row],[ProposedkWh]]<>\"\",Table_SummaryPI[[#This Row],[ProposedkWh]],\"\")","v":""},{"$f":"IF(Table_SummaryPI[[#This Row],[ProposedkW]]<>\"\",Table_SummaryPI[[#This Row],[ProposedkW]],\"\")","v":""},{"$f":"IF(Table_SummaryPI[[#This Row],[Notes]]<>\"\",Table_SummaryPI[[#This Row],[Notes]],\"\")","v":""},{"$f":"IF(Table_SummaryPI[[#This Row],[Incentive_Customer]]<>\"\",Table_SummaryPI[[#This Row],[Incentive_Customer]],0)","v":0},{"$f":"IF(Table_SummaryPI[[#This Row],[MeasureCost]]<>\"\",Table_SummaryPI[[#This Row],[MeasureCost]],0)","v":0},{"$f":"IF(Table_SummaryPI[[#This Row],[kWhSavings]]<>\"\",Table_SummaryPI[[#This Row],[kWhSavings]],0)","v":0},{"$f":"IF(Table_SummaryPI[[#This Row],[DemandSavingskW]]<>\"\",Table_SummaryPI[[#This Row],[DemandSavingskW]],0)","v":0}]
[{"$f":"Table_SummaryPI[[#This Row],[Line No.]]","v":""},{"$f":"IF(Table_PrintPI[[#This Row],[Line No.]]=\"\",\"\",CONCATENATE(Table_PrintPI[[#This Row],[Line No.]],\" - \",Table_SummaryPI[[#This Row],[MeasureName]]))","v":""},{"$f":"IF(Table_SummaryPI[[#This Row],[Manufacturer]]<>\"\",CONCATENATE(Table_SummaryPI[[#This Row],[Manufacturer]],\"/\",Table_SummaryPI[[#This Row],[Model'#]]),\"\")","v":""},{"$f":"IF(Table_SummaryPI[[#This Row],[Serial'#]]<>\"\",Table_SummaryPI[[#This Row],[Serial'#]],\"\")","v":""},{"$f":"IF(Table_SummaryPI[[#This Row],[Quantity]]<>\"\",Table_SummaryPI[[#This Row],[Quantity]],\"\")","v":""},{"$f":"IF(Table_SummaryPI[[#This Row],[BaselinekWh]]<>\"\",Table_SummaryPI[[#This Row],[BaselinekWh]],\"\")","v":""},{"$f":"IF(Table_SummaryPI[[#This Row],[BaselinekW]]<>\"\",Table_SummaryPI[[#This Row],[BaselinekW]],\"\")","v":""},{"$f":"IF(Table_SummaryPI[[#This Row],[ProposedkWh]]<>\"\",Table_SummaryPI[[#This Row],[ProposedkWh]],\"\")","v":""},{"$f":"IF(Table_SummaryPI[[#This Row],[ProposedkW]]<>\"\",Table_SummaryPI[[#This Row],[ProposedkW]],\"\")","v":""},{"$f":"IF(Table_SummaryPI[[#This Row],[Notes]]<>\"\",Table_SummaryPI[[#This Row],[Notes]],\"\")","v":""},{"$f":"IF(Table_SummaryPI[[#This Row],[Incentive_Customer]]<>\"\",Table_SummaryPI[[#This Row],[Incentive_Customer]],0)","v":0},{"$f":"IF(Table_SummaryPI[[#This Row],[MeasureCost]]<>\"\",Table_SummaryPI[[#This Row],[MeasureCost]],0)","v":0},{"$f":"IF(Table_SummaryPI[[#This Row],[kWhSavings]]<>\"\",Table_SummaryPI[[#This Row],[kWhSavings]],0)","v":0},{"$f":"IF(Table_SummaryPI[[#This Row],[DemandSavingskW]]<>\"\",Table_SummaryPI[[#This Row],[DemandSavingskW]],0)","v":0}]
[{"$f":"Table_SummaryPI[[#This Row],[Line No.]]","v":""},{"$f":"IF(Table_PrintPI[[#This Row],[Line No.]]=\"\",\"\",CONCATENATE(Table_PrintPI[[#This Row],[Line No.]],\" - \",Table_SummaryPI[[#This Row],[MeasureName]]))","v":""},{"$f":"IF(Table_SummaryPI[[#This Row],[Manufacturer]]<>\"\",CONCATENATE(Table_SummaryPI[[#This Row],[Manufacturer]],\"/\",Table_SummaryPI[[#This Row],[Model'#]]),\"\")","v":""},{"$f":"IF(Table_SummaryPI[[#This Row],[Serial'#]]<>\"\",Table_SummaryPI[[#This Row],[Serial'#]],\"\")","v":""},{"$f":"IF(Table_SummaryPI[[#This Row],[Quantity]]<>\"\",Table_SummaryPI[[#This Row],[Quantity]],\"\")","v":""},{"$f":"IF(Table_SummaryPI[[#This Row],[BaselinekWh]]<>\"\",Table_SummaryPI[[#This Row],[BaselinekWh]],\"\")","v":""},{"$f":"IF(Table_SummaryPI[[#This Row],[BaselinekW]]<>\"\",Table_SummaryPI[[#This Row],[BaselinekW]],\"\")","v":""},{"$f":"IF(Table_SummaryPI[[#This Row],[ProposedkWh]]<>\"\",Table_SummaryPI[[#This Row],[ProposedkWh]],\"\")","v":""},{"$f":"IF(Table_SummaryPI[[#This Row],[ProposedkW]]<>\"\",Table_SummaryPI[[#This Row],[ProposedkW]],\"\")","v":""},{"$f":"IF(Table_SummaryPI[[#This Row],[Notes]]<>\"\",Table_SummaryPI[[#This Row],[Notes]],\"\")","v":""},{"$f":"IF(Table_SummaryPI[[#This Row],[Incentive_Customer]]<>\"\",Table_SummaryPI[[#This Row],[Incentive_Customer]],0)","v":0},{"$f":"IF(Table_SummaryPI[[#This Row],[MeasureCost]]<>\"\",Table_SummaryPI[[#This Row],[MeasureCost]],0)","v":0},{"$f":"IF(Table_SummaryPI[[#This Row],[kWhSavings]]<>\"\",Table_SummaryPI[[#This Row],[kWhSavings]],0)","v":0},{"$f":"IF(Table_SummaryPI[[#This Row],[DemandSavingskW]]<>\"\",Table_SummaryPI[[#This Row],[DemandSavingskW]],0)","v":0}]
[{"$f":"Table_SummaryPI[[#This Row],[Line No.]]","v":""},{"$f":"IF(Table_PrintPI[[#This Row],[Line No.]]=\"\",\"\",CONCATENATE(Table_PrintPI[[#This Row],[Line No.]],\" - \",Table_SummaryPI[[#This Row],[MeasureName]]))","v":""},{"$f":"IF(Table_SummaryPI[[#This Row],[Manufacturer]]<>\"\",CONCATENATE(Table_SummaryPI[[#This Row],[Manufacturer]],\"/\",Table_SummaryPI[[#This Row],[Model'#]]),\"\")","v":""},{"$f":"IF(Table_SummaryPI[[#This Row],[Serial'#]]<>\"\",Table_SummaryPI[[#This Row],[Serial'#]],\"\")","v":""},{"$f":"IF(Table_SummaryPI[[#This Row],[Quantity]]<>\"\",Table_SummaryPI[[#This Row],[Quantity]],\"\")","v":""},{"$f":"IF(Table_SummaryPI[[#This Row],[BaselinekWh]]<>\"\",Table_SummaryPI[[#This Row],[BaselinekWh]],\"\")","v":""},{"$f":"IF(Table_SummaryPI[[#This Row],[BaselinekW]]<>\"\",Table_SummaryPI[[#This Row],[BaselinekW]],\"\")","v":""},{"$f":"IF(Table_SummaryPI[[#This Row],[ProposedkWh]]<>\"\",Table_SummaryPI[[#This Row],[ProposedkWh]],\"\")","v":""},{"$f":"IF(Table_SummaryPI[[#This Row],[ProposedkW]]<>\"\",Table_SummaryPI[[#This Row],[ProposedkW]],\"\")","v":""},{"$f":"IF(Table_SummaryPI[[#This Row],[Notes]]<>\"\",Table_SummaryPI[[#This Row],[Notes]],\"\")","v":""},{"$f":"IF(Table_SummaryPI[[#This Row],[Incentive_Customer]]<>\"\",Table_SummaryPI[[#This Row],[Incentive_Customer]],0)","v":0},{"$f":"IF(Table_SummaryPI[[#This Row],[MeasureCost]]<>\"\",Table_SummaryPI[[#This Row],[MeasureCost]],0)","v":0},{"$f":"IF(Table_SummaryPI[[#This Row],[kWhSavings]]<>\"\",Table_SummaryPI[[#This Row],[kWhSavings]],0)","v":0},{"$f":"IF(Table_SummaryPI[[#This Row],[DemandSavingskW]]<>\"\",Table_SummaryPI[[#This Row],[DemandSavingskW]],0)","v":0}]
[{"$f":"Table_SummaryPI[[#This Row],[Line No.]]","v":""},{"$f":"IF(Table_PrintPI[[#This Row],[Line No.]]=\"\",\"\",CONCATENATE(Table_PrintPI[[#This Row],[Line No.]],\" - \",Table_SummaryPI[[#This Row],[MeasureName]]))","v":""},{"$f":"IF(Table_SummaryPI[[#This Row],[Manufacturer]]<>\"\",CONCATENATE(Table_SummaryPI[[#This Row],[Manufacturer]],\"/\",Table_SummaryPI[[#This Row],[Model'#]]),\"\")","v":""},{"$f":"IF(Table_SummaryPI[[#This Row],[Serial'#]]<>\"\",Table_SummaryPI[[#This Row],[Serial'#]],\"\")","v":""},{"$f":"IF(Table_SummaryPI[[#This Row],[Quantity]]<>\"\",Table_SummaryPI[[#This Row],[Quantity]],\"\")","v":""},{"$f":"IF(Table_SummaryPI[[#This Row],[BaselinekWh]]<>\"\",Table_SummaryPI[[#This Row],[BaselinekWh]],\"\")","v":""},{"$f":"IF(Table_SummaryPI[[#This Row],[BaselinekW]]<>\"\",Table_SummaryPI[[#This Row],[BaselinekW]],\"\")","v":""},{"$f":"IF(Table_SummaryPI[[#This Row],[ProposedkWh]]<>\"\",Table_SummaryPI[[#This Row],[ProposedkWh]],\"\")","v":""},{"$f":"IF(Table_SummaryPI[[#This Row],[ProposedkW]]<>\"\",Table_SummaryPI[[#This Row],[ProposedkW]],\"\")","v":""},{"$f":"IF(Table_SummaryPI[[#This Row],[Notes]]<>\"\",Table_SummaryPI[[#This Row],[Notes]],\"\")","v":""},{"$f":"IF(Table_SummaryPI[[#This Row],[Incentive_Customer]]<>\"\",Table_SummaryPI[[#This Row],[Incentive_Customer]],0)","v":0},{"$f":"IF(Table_SummaryPI[[#This Row],[MeasureCost]]<>\"\",Table_SummaryPI[[#This Row],[MeasureCost]],0)","v":0},{"$f":"IF(Table_SummaryPI[[#This Row],[kWhSavings]]<>\"\",Table_SummaryPI[[#This Row],[kWhSavings]],0)","v":0},{"$f":"IF(Table_SummaryPI[[#This Row],[DemandSavingskW]]<>\"\",Table_SummaryPI[[#This Row],[DemandSavingskW]],0)","v":0}]
[{"$f":"Table_SummaryPI[[#This Row],[Line No.]]","v":""},{"$f":"IF(Table_PrintPI[[#This Row],[Line No.]]=\"\",\"\",CONCATENATE(Table_PrintPI[[#This Row],[Line No.]],\" - \",Table_SummaryPI[[#This Row],[MeasureName]]))","v":""},{"$f":"IF(Table_SummaryPI[[#This Row],[Manufacturer]]<>\"\",CONCATENATE(Table_SummaryPI[[#This Row],[Manufacturer]],\"/\",Table_SummaryPI[[#This Row],[Model'#]]),\"\")","v":""},{"$f":"IF(Table_SummaryPI[[#This Row],[Serial'#]]<>\"\",Table_SummaryPI[[#This Row],[Serial'#]],\"\")","v":""},{"$f":"IF(Table_SummaryPI[[#This Row],[Quantity]]<>\"\",Table_SummaryPI[[#This Row],[Quantity]],\"\")","v":""},{"$f":"IF(Table_SummaryPI[[#This Row],[BaselinekWh]]<>\"\",Table_SummaryPI[[#This Row],[BaselinekWh]],\"\")","v":""},{"$f":"IF(Table_SummaryPI[[#This Row],[BaselinekW]]<>\"\",Table_SummaryPI[[#This Row],[BaselinekW]],\"\")","v":""},{"$f":"IF(Table_SummaryPI[[#This Row],[ProposedkWh]]<>\"\",Table_SummaryPI[[#This Row],[ProposedkWh]],\"\")","v":""},{"$f":"IF(Table_SummaryPI[[#This Row],[ProposedkW]]<>\"\",Table_SummaryPI[[#This Row],[ProposedkW]],\"\")","v":""},{"$f":"IF(Table_SummaryPI[[#This Row],[Notes]]<>\"\",Table_SummaryPI[[#This Row],[Notes]],\"\")","v":""},{"$f":"IF(Table_SummaryPI[[#This Row],[Incentive_Customer]]<>\"\",Table_SummaryPI[[#This Row],[Incentive_Customer]],0)","v":0},{"$f":"IF(Table_SummaryPI[[#This Row],[MeasureCost]]<>\"\",Table_SummaryPI[[#This Row],[MeasureCost]],0)","v":0},{"$f":"IF(Table_SummaryPI[[#This Row],[kWhSavings]]<>\"\",Table_SummaryPI[[#This Row],[kWhSavings]],0)","v":0},{"$f":"IF(Table_SummaryPI[[#This Row],[DemandSavingskW]]<>\"\",Table_SummaryPI[[#This Row],[DemandSavingskW]],0)","v":0}]
[{"$f":"Table_SummaryPI[[#This Row],[Line No.]]","v":""},{"$f":"IF(Table_PrintPI[[#This Row],[Line No.]]=\"\",\"\",CONCATENATE(Table_PrintPI[[#This Row],[Line No.]],\" - \",Table_SummaryPI[[#This Row],[MeasureName]]))","v":""},{"$f":"IF(Table_SummaryPI[[#This Row],[Manufacturer]]<>\"\",CONCATENATE(Table_SummaryPI[[#This Row],[Manufacturer]],\"/\",Table_SummaryPI[[#This Row],[Model'#]]),\"\")","v":""},{"$f":"IF(Table_SummaryPI[[#This Row],[Serial'#]]<>\"\",Table_SummaryPI[[#This Row],[Serial'#]],\"\")","v":""},{"$f":"IF(Table_SummaryPI[[#This Row],[Quantity]]<>\"\",Table_SummaryPI[[#This Row],[Quantity]],\"\")","v":""},{"$f":"IF(Table_SummaryPI[[#This Row],[BaselinekWh]]<>\"\",Table_SummaryPI[[#This Row],[BaselinekWh]],\"\")","v":""},{"$f":"IF(Table_SummaryPI[[#This Row],[BaselinekW]]<>\"\",Table_SummaryPI[[#This Row],[BaselinekW]],\"\")","v":""},{"$f":"IF(Table_SummaryPI[[#This Row],[ProposedkWh]]<>\"\",Table_SummaryPI[[#This Row],[ProposedkWh]],\"\")","v":""},{"$f":"IF(Table_SummaryPI[[#This Row],[ProposedkW]]<>\"\",Table_SummaryPI[[#This Row],[ProposedkW]],\"\")","v":""},{"$f":"IF(Table_SummaryPI[[#This Row],[Notes]]<>\"\",Table_SummaryPI[[#This Row],[Notes]],\"\")","v":""},{"$f":"IF(Table_SummaryPI[[#This Row],[Incentive_Customer]]<>\"\",Table_SummaryPI[[#This Row],[Incentive_Customer]],0)","v":0},{"$f":"IF(Table_SummaryPI[[#This Row],[MeasureCost]]<>\"\",Table_SummaryPI[[#This Row],[MeasureCost]],0)","v":0},{"$f":"IF(Table_SummaryPI[[#This Row],[kWhSavings]]<>\"\",Table_SummaryPI[[#This Row],[kWhSavings]],0)","v":0},{"$f":"IF(Table_SummaryPI[[#This Row],[DemandSavingskW]]<>\"\",Table_SummaryPI[[#This Row],[DemandSavingskW]],0)","v":0}]
[{"$f":"Table_SummaryPI[[#This Row],[Line No.]]","v":""},{"$f":"IF(Table_PrintPI[[#This Row],[Line No.]]=\"\",\"\",CONCATENATE(Table_PrintPI[[#This Row],[Line No.]],\" - \",Table_SummaryPI[[#This Row],[MeasureName]]))","v":""},{"$f":"IF(Table_SummaryPI[[#This Row],[Manufacturer]]<>\"\",CONCATENATE(Table_SummaryPI[[#This Row],[Manufacturer]],\"/\",Table_SummaryPI[[#This Row],[Model'#]]),\"\")","v":""},{"$f":"IF(Table_SummaryPI[[#This Row],[Serial'#]]<>\"\",Table_SummaryPI[[#This Row],[Serial'#]],\"\")","v":""},{"$f":"IF(Table_SummaryPI[[#This Row],[Quantity]]<>\"\",Table_SummaryPI[[#This Row],[Quantity]],\"\")","v":""},{"$f":"IF(Table_SummaryPI[[#This Row],[BaselinekWh]]<>\"\",Table_SummaryPI[[#This Row],[BaselinekWh]],\"\")","v":""},{"$f":"IF(Table_SummaryPI[[#This Row],[BaselinekW]]<>\"\",Table_SummaryPI[[#This Row],[BaselinekW]],\"\")","v":""},{"$f":"IF(Table_SummaryPI[[#This Row],[ProposedkWh]]<>\"\",Table_SummaryPI[[#This Row],[ProposedkWh]],\"\")","v":""},{"$f":"IF(Table_SummaryPI[[#This Row],[ProposedkW]]<>\"\",Table_SummaryPI[[#This Row],[ProposedkW]],\"\")","v":""},{"$f":"IF(Table_SummaryPI[[#This Row],[Notes]]<>\"\",Table_SummaryPI[[#This Row],[Notes]],\"\")","v":""},{"$f":"IF(Table_SummaryPI[[#This Row],[Incentive_Customer]]<>\"\",Table_SummaryPI[[#This Row],[Incentive_Customer]],0)","v":0},{"$f":"IF(Table_SummaryPI[[#This Row],[MeasureCost]]<>\"\",Table_SummaryPI[[#This Row],[MeasureCost]],0)","v":0},{"$f":"IF(Table_SummaryPI[[#This Row],[kWhSavings]]<>\"\",Table_SummaryPI[[#This Row],[kWhSavings]],0)","v":0},{"$f":"IF(Table_SummaryPI[[#This Row],[DemandSavingskW]]<>\"\",Table_SummaryPI[[#This Row],[DemandSavingskW]],0)","v":0}]
[{"$f":"Table_SummaryPI[[#This Row],[Line No.]]","v":""},{"$f":"IF(Table_PrintPI[[#This Row],[Line No.]]=\"\",\"\",CONCATENATE(Table_PrintPI[[#This Row],[Line No.]],\" - \",Table_SummaryPI[[#This Row],[MeasureName]]))","v":""},{"$f":"IF(Table_SummaryPI[[#This Row],[Manufacturer]]<>\"\",CONCATENATE(Table_SummaryPI[[#This Row],[Manufacturer]],\"/\",Table_SummaryPI[[#This Row],[Model'#]]),\"\")","v":""},{"$f":"IF(Table_SummaryPI[[#This Row],[Serial'#]]<>\"\",Table_SummaryPI[[#This Row],[Serial'#]],\"\")","v":""},{"$f":"IF(Table_SummaryPI[[#This Row],[Quantity]]<>\"\",Table_SummaryPI[[#This Row],[Quantity]],\"\")","v":""},{"$f":"IF(Table_SummaryPI[[#This Row],[BaselinekWh]]<>\"\",Table_SummaryPI[[#This Row],[BaselinekWh]],\"\")","v":""},{"$f":"IF(Table_SummaryPI[[#This Row],[BaselinekW]]<>\"\",Table_SummaryPI[[#This Row],[BaselinekW]],\"\")","v":""},{"$f":"IF(Table_SummaryPI[[#This Row],[ProposedkWh]]<>\"\",Table_SummaryPI[[#This Row],[ProposedkWh]],\"\")","v":""},{"$f":"IF(Table_SummaryPI[[#This Row],[ProposedkW]]<>\"\",Table_SummaryPI[[#This Row],[ProposedkW]],\"\")","v":""},{"$f":"IF(Table_SummaryPI[[#This Row],[Notes]]<>\"\",Table_SummaryPI[[#This Row],[Notes]],\"\")","v":""},{"$f":"IF(Table_SummaryPI[[#This Row],[Incentive_Customer]]<>\"\",Table_SummaryPI[[#This Row],[Incentive_Customer]],0)","v":0},{"$f":"IF(Table_SummaryPI[[#This Row],[MeasureCost]]<>\"\",Table_SummaryPI[[#This Row],[MeasureCost]],0)","v":0},{"$f":"IF(Table_SummaryPI[[#This Row],[kWhSavings]]<>\"\",Table_SummaryPI[[#This Row],[kWhSavings]],0)","v":0},{"$f":"IF(Table_SummaryPI[[#This Row],[DemandSavingskW]]<>\"\",Table_SummaryPI[[#This Row],[DemandSavingskW]],0)","v":0}]
[{"$f":"Table_SummaryPI[[#This Row],[Line No.]]","v":""},{"$f":"IF(Table_PrintPI[[#This Row],[Line No.]]=\"\",\"\",CONCATENATE(Table_PrintPI[[#This Row],[Line No.]],\" - \",Table_SummaryPI[[#This Row],[MeasureName]]))","v":""},{"$f":"IF(Table_SummaryPI[[#This Row],[Manufacturer]]<>\"\",CONCATENATE(Table_SummaryPI[[#This Row],[Manufacturer]],\"/\",Table_SummaryPI[[#This Row],[Model'#]]),\"\")","v":""},{"$f":"IF(Table_SummaryPI[[#This Row],[Serial'#]]<>\"\",Table_SummaryPI[[#This Row],[Serial'#]],\"\")","v":""},{"$f":"IF(Table_SummaryPI[[#This Row],[Quantity]]<>\"\",Table_SummaryPI[[#This Row],[Quantity]],\"\")","v":""},{"$f":"IF(Table_SummaryPI[[#This Row],[BaselinekWh]]<>\"\",Table_SummaryPI[[#This Row],[BaselinekWh]],\"\")","v":""},{"$f":"IF(Table_SummaryPI[[#This Row],[BaselinekW]]<>\"\",Table_SummaryPI[[#This Row],[BaselinekW]],\"\")","v":""},{"$f":"IF(Table_SummaryPI[[#This Row],[ProposedkWh]]<>\"\",Table_SummaryPI[[#This Row],[ProposedkWh]],\"\")","v":""},{"$f":"IF(Table_SummaryPI[[#This Row],[ProposedkW]]<>\"\",Table_SummaryPI[[#This Row],[ProposedkW]],\"\")","v":""},{"$f":"IF(Table_SummaryPI[[#This Row],[Notes]]<>\"\",Table_SummaryPI[[#This Row],[Notes]],\"\")","v":""},{"$f":"IF(Table_SummaryPI[[#This Row],[Incentive_Customer]]<>\"\",Table_SummaryPI[[#This Row],[Incentive_Customer]],0)","v":0},{"$f":"IF(Table_SummaryPI[[#This Row],[MeasureCost]]<>\"\",Table_SummaryPI[[#This Row],[MeasureCost]],0)","v":0},{"$f":"IF(Table_SummaryPI[[#This Row],[kWhSavings]]<>\"\",Table_SummaryPI[[#This Row],[kWhSavings]],0)","v":0},{"$f":"IF(Table_SummaryPI[[#This Row],[DemandSavingskW]]<>\"\",Table_SummaryPI[[#This Row],[DemandSavingskW]],0)","v":0}]
[{"$f":"Table_SummaryPI[[#This Row],[Line No.]]","v":""},{"$f":"IF(Table_PrintPI[[#This Row],[Line No.]]=\"\",\"\",CONCATENATE(Table_PrintPI[[#This Row],[Line No.]],\" - \",Table_SummaryPI[[#This Row],[MeasureName]]))","v":""},{"$f":"IF(Table_SummaryPI[[#This Row],[Manufacturer]]<>\"\",CONCATENATE(Table_SummaryPI[[#This Row],[Manufacturer]],\"/\",Table_SummaryPI[[#This Row],[Model'#]]),\"\")","v":""},{"$f":"IF(Table_SummaryPI[[#This Row],[Serial'#]]<>\"\",Table_SummaryPI[[#This Row],[Serial'#]],\"\")","v":""},{"$f":"IF(Table_SummaryPI[[#This Row],[Quantity]]<>\"\",Table_SummaryPI[[#This Row],[Quantity]],\"\")","v":""},{"$f":"IF(Table_SummaryPI[[#This Row],[BaselinekWh]]<>\"\",Table_SummaryPI[[#This Row],[BaselinekWh]],\"\")","v":""},{"$f":"IF(Table_SummaryPI[[#This Row],[BaselinekW]]<>\"\",Table_SummaryPI[[#This Row],[BaselinekW]],\"\")","v":""},{"$f":"IF(Table_SummaryPI[[#This Row],[ProposedkWh]]<>\"\",Table_SummaryPI[[#This Row],[ProposedkWh]],\"\")","v":""},{"$f":"IF(Table_SummaryPI[[#This Row],[ProposedkW]]<>\"\",Table_SummaryPI[[#This Row],[ProposedkW]],\"\")","v":""},{"$f":"IF(Table_SummaryPI[[#This Row],[Notes]]<>\"\",Table_SummaryPI[[#This Row],[Notes]],\"\")","v":""},{"$f":"IF(Table_SummaryPI[[#This Row],[Incentive_Customer]]<>\"\",Table_SummaryPI[[#This Row],[Incentive_Customer]],0)","v":0},{"$f":"IF(Table_SummaryPI[[#This Row],[MeasureCost]]<>\"\",Table_SummaryPI[[#This Row],[MeasureCost]],0)","v":0},{"$f":"IF(Table_SummaryPI[[#This Row],[kWhSavings]]<>\"\",Table_SummaryPI[[#This Row],[kWhSavings]],0)","v":0},{"$f":"IF(Table_SummaryPI[[#This Row],[DemandSavingskW]]<>\"\",Table_SummaryPI[[#This Row],[DemandSavingskW]],0)","v":0}]
[{"$f":"Table_SummaryPI[[#This Row],[Line No.]]","v":""},{"$f":"IF(Table_PrintPI[[#This Row],[Line No.]]=\"\",\"\",CONCATENATE(Table_PrintPI[[#This Row],[Line No.]],\" - \",Table_SummaryPI[[#This Row],[MeasureName]]))","v":""},{"$f":"IF(Table_SummaryPI[[#This Row],[Manufacturer]]<>\"\",CONCATENATE(Table_SummaryPI[[#This Row],[Manufacturer]],\"/\",Table_SummaryPI[[#This Row],[Model'#]]),\"\")","v":""},{"$f":"IF(Table_SummaryPI[[#This Row],[Serial'#]]<>\"\",Table_SummaryPI[[#This Row],[Serial'#]],\"\")","v":""},{"$f":"IF(Table_SummaryPI[[#This Row],[Quantity]]<>\"\",Table_SummaryPI[[#This Row],[Quantity]],\"\")","v":""},{"$f":"IF(Table_SummaryPI[[#This Row],[BaselinekWh]]<>\"\",Table_SummaryPI[[#This Row],[BaselinekWh]],\"\")","v":""},{"$f":"IF(Table_SummaryPI[[#This Row],[BaselinekW]]<>\"\",Table_SummaryPI[[#This Row],[BaselinekW]],\"\")","v":""},{"$f":"IF(Table_SummaryPI[[#This Row],[ProposedkWh]]<>\"\",Table_SummaryPI[[#This Row],[ProposedkWh]],\"\")","v":""},{"$f":"IF(Table_SummaryPI[[#This Row],[ProposedkW]]<>\"\",Table_SummaryPI[[#This Row],[ProposedkW]],\"\")","v":""},{"$f":"IF(Table_SummaryPI[[#This Row],[Notes]]<>\"\",Table_SummaryPI[[#This Row],[Notes]],\"\")","v":""},{"$f":"IF(Table_SummaryPI[[#This Row],[Incentive_Customer]]<>\"\",Table_SummaryPI[[#This Row],[Incentive_Customer]],0)","v":0},{"$f":"IF(Table_SummaryPI[[#This Row],[MeasureCost]]<>\"\",Table_SummaryPI[[#This Row],[MeasureCost]],0)","v":0},{"$f":"IF(Table_SummaryPI[[#This Row],[kWhSavings]]<>\"\",Table_SummaryPI[[#This Row],[kWhSavings]],0)","v":0},{"$f":"IF(Table_SummaryPI[[#This Row],[DemandSavingskW]]<>\"\",Table_SummaryPI[[#This Row],[DemandSavingskW]],0)","v":0}]
[{"$f":"Table_SummaryPI[[#This Row],[Line No.]]","v":""},{"$f":"IF(Table_PrintPI[[#This Row],[Line No.]]=\"\",\"\",CONCATENATE(Table_PrintPI[[#This Row],[Line No.]],\" - \",Table_SummaryPI[[#This Row],[MeasureName]]))","v":""},{"$f":"IF(Table_SummaryPI[[#This Row],[Manufacturer]]<>\"\",CONCATENATE(Table_SummaryPI[[#This Row],[Manufacturer]],\"/\",Table_SummaryPI[[#This Row],[Model'#]]),\"\")","v":""},{"$f":"IF(Table_SummaryPI[[#This Row],[Serial'#]]<>\"\",Table_SummaryPI[[#This Row],[Serial'#]],\"\")","v":""},{"$f":"IF(Table_SummaryPI[[#This Row],[Quantity]]<>\"\",Table_SummaryPI[[#This Row],[Quantity]],\"\")","v":""},{"$f":"IF(Table_SummaryPI[[#This Row],[BaselinekWh]]<>\"\",Table_SummaryPI[[#This Row],[BaselinekWh]],\"\")","v":""},{"$f":"IF(Table_SummaryPI[[#This Row],[BaselinekW]]<>\"\",Table_SummaryPI[[#This Row],[BaselinekW]],\"\")","v":""},{"$f":"IF(Table_SummaryPI[[#This Row],[ProposedkWh]]<>\"\",Table_SummaryPI[[#This Row],[ProposedkWh]],\"\")","v":""},{"$f":"IF(Table_SummaryPI[[#This Row],[ProposedkW]]<>\"\",Table_SummaryPI[[#This Row],[ProposedkW]],\"\")","v":""},{"$f":"IF(Table_SummaryPI[[#This Row],[Notes]]<>\"\",Table_SummaryPI[[#This Row],[Notes]],\"\")","v":""},{"$f":"IF(Table_SummaryPI[[#This Row],[Incentive_Customer]]<>\"\",Table_SummaryPI[[#This Row],[Incentive_Customer]],0)","v":0},{"$f":"IF(Table_SummaryPI[[#This Row],[MeasureCost]]<>\"\",Table_SummaryPI[[#This Row],[MeasureCost]],0)","v":0},{"$f":"IF(Table_SummaryPI[[#This Row],[kWhSavings]]<>\"\",Table_SummaryPI[[#This Row],[kWhSavings]],0)","v":0},{"$f":"IF(Table_SummaryPI[[#This Row],[DemandSavingskW]]<>\"\",Table_SummaryPI[[#This Row],[DemandSavingskW]],0)","v":0}]
[{"$f":"Table_SummaryPI[[#This Row],[Line No.]]","v":""},{"$f":"IF(Table_PrintPI[[#This Row],[Line No.]]=\"\",\"\",CONCATENATE(Table_PrintPI[[#This Row],[Line No.]],\" - \",Table_SummaryPI[[#This Row],[MeasureName]]))","v":""},{"$f":"IF(Table_SummaryPI[[#This Row],[Manufacturer]]<>\"\",CONCATENATE(Table_SummaryPI[[#This Row],[Manufacturer]],\"/\",Table_SummaryPI[[#This Row],[Model'#]]),\"\")","v":""},{"$f":"IF(Table_SummaryPI[[#This Row],[Serial'#]]<>\"\",Table_SummaryPI[[#This Row],[Serial'#]],\"\")","v":""},{"$f":"IF(Table_SummaryPI[[#This Row],[Quantity]]<>\"\",Table_SummaryPI[[#This Row],[Quantity]],\"\")","v":""},{"$f":"IF(Table_SummaryPI[[#This Row],[BaselinekWh]]<>\"\",Table_SummaryPI[[#This Row],[BaselinekWh]],\"\")","v":""},{"$f":"IF(Table_SummaryPI[[#This Row],[BaselinekW]]<>\"\",Table_SummaryPI[[#This Row],[BaselinekW]],\"\")","v":""},{"$f":"IF(Table_SummaryPI[[#This Row],[ProposedkWh]]<>\"\",Table_SummaryPI[[#This Row],[ProposedkWh]],\"\")","v":""},{"$f":"IF(Table_SummaryPI[[#This Row],[ProposedkW]]<>\"\",Table_SummaryPI[[#This Row],[ProposedkW]],\"\")","v":""},{"$f":"IF(Table_SummaryPI[[#This Row],[Notes]]<>\"\",Table_SummaryPI[[#This Row],[Notes]],\"\")","v":""},{"$f":"IF(Table_SummaryPI[[#This Row],[Incentive_Customer]]<>\"\",Table_SummaryPI[[#This Row],[Incentive_Customer]],0)","v":0},{"$f":"IF(Table_SummaryPI[[#This Row],[MeasureCost]]<>\"\",Table_SummaryPI[[#This Row],[MeasureCost]],0)","v":0},{"$f":"IF(Table_SummaryPI[[#This Row],[kWhSavings]]<>\"\",Table_SummaryPI[[#This Row],[kWhSavings]],0)","v":0},{"$f":"IF(Table_SummaryPI[[#This Row],[DemandSavingskW]]<>\"\",Table_SummaryPI[[#This Row],[DemandSavingskW]],0)","v":0}]
[{"$f":"Table_SummaryPI[[#This Row],[Line No.]]","v":""},{"$f":"IF(Table_PrintPI[[#This Row],[Line No.]]=\"\",\"\",CONCATENATE(Table_PrintPI[[#This Row],[Line No.]],\" - \",Table_SummaryPI[[#This Row],[MeasureName]]))","v":""},{"$f":"IF(Table_SummaryPI[[#This Row],[Manufacturer]]<>\"\",CONCATENATE(Table_SummaryPI[[#This Row],[Manufacturer]],\"/\",Table_SummaryPI[[#This Row],[Model'#]]),\"\")","v":""},{"$f":"IF(Table_SummaryPI[[#This Row],[Serial'#]]<>\"\",Table_SummaryPI[[#This Row],[Serial'#]],\"\")","v":""},{"$f":"IF(Table_SummaryPI[[#This Row],[Quantity]]<>\"\",Table_SummaryPI[[#This Row],[Quantity]],\"\")","v":""},{"$f":"IF(Table_SummaryPI[[#This Row],[BaselinekWh]]<>\"\",Table_SummaryPI[[#This Row],[BaselinekWh]],\"\")","v":""},{"$f":"IF(Table_SummaryPI[[#This Row],[BaselinekW]]<>\"\",Table_SummaryPI[[#This Row],[BaselinekW]],\"\")","v":""},{"$f":"IF(Table_SummaryPI[[#This Row],[ProposedkWh]]<>\"\",Table_SummaryPI[[#This Row],[ProposedkWh]],\"\")","v":""},{"$f":"IF(Table_SummaryPI[[#This Row],[ProposedkW]]<>\"\",Table_SummaryPI[[#This Row],[ProposedkW]],\"\")","v":""},{"$f":"IF(Table_SummaryPI[[#This Row],[Notes]]<>\"\",Table_SummaryPI[[#This Row],[Notes]],\"\")","v":""},{"$f":"IF(Table_SummaryPI[[#This Row],[Incentive_Customer]]<>\"\",Table_SummaryPI[[#This Row],[Incentive_Customer]],0)","v":0},{"$f":"IF(Table_SummaryPI[[#This Row],[MeasureCost]]<>\"\",Table_SummaryPI[[#This Row],[MeasureCost]],0)","v":0},{"$f":"IF(Table_SummaryPI[[#This Row],[kWhSavings]]<>\"\",Table_SummaryPI[[#This Row],[kWhSavings]],0)","v":0},{"$f":"IF(Table_SummaryPI[[#This Row],[DemandSavingskW]]<>\"\",Table_SummaryPI[[#This Row],[DemandSavingskW]],0)","v":0}]
[{"$f":"Table_SummaryPI[[#This Row],[Line No.]]","v":""},{"$f":"IF(Table_PrintPI[[#This Row],[Line No.]]=\"\",\"\",CONCATENATE(Table_PrintPI[[#This Row],[Line No.]],\" - \",Table_SummaryPI[[#This Row],[MeasureName]]))","v":""},{"$f":"IF(Table_SummaryPI[[#This Row],[Manufacturer]]<>\"\",CONCATENATE(Table_SummaryPI[[#This Row],[Manufacturer]],\"/\",Table_SummaryPI[[#This Row],[Model'#]]),\"\")","v":""},{"$f":"IF(Table_SummaryPI[[#This Row],[Serial'#]]<>\"\",Table_SummaryPI[[#This Row],[Serial'#]],\"\")","v":""},{"$f":"IF(Table_SummaryPI[[#This Row],[Quantity]]<>\"\",Table_SummaryPI[[#This Row],[Quantity]],\"\")","v":""},{"$f":"IF(Table_SummaryPI[[#This Row],[BaselinekWh]]<>\"\",Table_SummaryPI[[#This Row],[BaselinekWh]],\"\")","v":""},{"$f":"IF(Table_SummaryPI[[#This Row],[BaselinekW]]<>\"\",Table_SummaryPI[[#This Row],[BaselinekW]],\"\")","v":""},{"$f":"IF(Table_SummaryPI[[#This Row],[ProposedkWh]]<>\"\",Table_SummaryPI[[#This Row],[ProposedkWh]],\"\")","v":""},{"$f":"IF(Table_SummaryPI[[#This Row],[ProposedkW]]<>\"\",Table_SummaryPI[[#This Row],[ProposedkW]],\"\")","v":""},{"$f":"IF(Table_SummaryPI[[#This Row],[Notes]]<>\"\",Table_SummaryPI[[#This Row],[Notes]],\"\")","v":""},{"$f":"IF(Table_SummaryPI[[#This Row],[Incentive_Customer]]<>\"\",Table_SummaryPI[[#This Row],[Incentive_Customer]],0)","v":0},{"$f":"IF(Table_SummaryPI[[#This Row],[MeasureCost]]<>\"\",Table_SummaryPI[[#This Row],[MeasureCost]],0)","v":0},{"$f":"IF(Table_SummaryPI[[#This Row],[kWhSavings]]<>\"\",Table_SummaryPI[[#This Row],[kWhSavings]],0)","v":0},{"$f":"IF(Table_SummaryPI[[#This Row],[DemandSavingskW]]<>\"\",Table_SummaryPI[[#This Row],[DemandSavingskW]],0)","v":0}]
[{"$f":"Table_SummaryPI[[#This Row],[Line No.]]","v":""},{"$f":"IF(Table_PrintPI[[#This Row],[Line No.]]=\"\",\"\",CONCATENATE(Table_PrintPI[[#This Row],[Line No.]],\" - \",Table_SummaryPI[[#This Row],[MeasureName]]))","v":""},{"$f":"IF(Table_SummaryPI[[#This Row],[Manufacturer]]<>\"\",CONCATENATE(Table_SummaryPI[[#This Row],[Manufacturer]],\"/\",Table_SummaryPI[[#This Row],[Model'#]]),\"\")","v":""},{"$f":"IF(Table_SummaryPI[[#This Row],[Serial'#]]<>\"\",Table_SummaryPI[[#This Row],[Serial'#]],\"\")","v":""},{"$f":"IF(Table_SummaryPI[[#This Row],[Quantity]]<>\"\",Table_SummaryPI[[#This Row],[Quantity]],\"\")","v":""},{"$f":"IF(Table_SummaryPI[[#This Row],[BaselinekWh]]<>\"\",Table_SummaryPI[[#This Row],[BaselinekWh]],\"\")","v":""},{"$f":"IF(Table_SummaryPI[[#This Row],[BaselinekW]]<>\"\",Table_SummaryPI[[#This Row],[BaselinekW]],\"\")","v":""},{"$f":"IF(Table_SummaryPI[[#This Row],[ProposedkWh]]<>\"\",Table_SummaryPI[[#This Row],[ProposedkWh]],\"\")","v":""},{"$f":"IF(Table_SummaryPI[[#This Row],[ProposedkW]]<>\"\",Table_SummaryPI[[#This Row],[ProposedkW]],\"\")","v":""},{"$f":"IF(Table_SummaryPI[[#This Row],[Notes]]<>\"\",Table_SummaryPI[[#This Row],[Notes]],\"\")","v":""},{"$f":"IF(Table_SummaryPI[[#This Row],[Incentive_Customer]]<>\"\",Table_SummaryPI[[#This Row],[Incentive_Customer]],0)","v":0},{"$f":"IF(Table_SummaryPI[[#This Row],[MeasureCost]]<>\"\",Table_SummaryPI[[#This Row],[MeasureCost]],0)","v":0},{"$f":"IF(Table_SummaryPI[[#This Row],[kWhSavings]]<>\"\",Table_SummaryPI[[#This Row],[kWhSavings]],0)","v":0},{"$f":"IF(Table_SummaryPI[[#This Row],[DemandSavingskW]]<>\"\",Table_SummaryPI[[#This Row],[DemandSavingskW]],0)","v":0}]
[{"$f":"Table_SummaryPI[[#This Row],[Line No.]]","v":""},{"$f":"IF(Table_PrintPI[[#This Row],[Line No.]]=\"\",\"\",CONCATENATE(Table_PrintPI[[#This Row],[Line No.]],\" - \",Table_SummaryPI[[#This Row],[MeasureName]]))","v":""},{"$f":"IF(Table_SummaryPI[[#This Row],[Manufacturer]]<>\"\",CONCATENATE(Table_SummaryPI[[#This Row],[Manufacturer]],\"/\",Table_SummaryPI[[#This Row],[Model'#]]),\"\")","v":""},{"$f":"IF(Table_SummaryPI[[#This Row],[Serial'#]]<>\"\",Table_SummaryPI[[#This Row],[Serial'#]],\"\")","v":""},{"$f":"IF(Table_SummaryPI[[#This Row],[Quantity]]<>\"\",Table_SummaryPI[[#This Row],[Quantity]],\"\")","v":""},{"$f":"IF(Table_SummaryPI[[#This Row],[BaselinekWh]]<>\"\",Table_SummaryPI[[#This Row],[BaselinekWh]],\"\")","v":""},{"$f":"IF(Table_SummaryPI[[#This Row],[BaselinekW]]<>\"\",Table_SummaryPI[[#This Row],[BaselinekW]],\"\")","v":""},{"$f":"IF(Table_SummaryPI[[#This Row],[ProposedkWh]]<>\"\",Table_SummaryPI[[#This Row],[ProposedkWh]],\"\")","v":""},{"$f":"IF(Table_SummaryPI[[#This Row],[ProposedkW]]<>\"\",Table_SummaryPI[[#This Row],[ProposedkW]],\"\")","v":""},{"$f":"IF(Table_SummaryPI[[#This Row],[Notes]]<>\"\",Table_SummaryPI[[#This Row],[Notes]],\"\")","v":""},{"$f":"IF(Table_SummaryPI[[#This Row],[Incentive_Customer]]<>\"\",Table_SummaryPI[[#This Row],[Incentive_Customer]],0)","v":0},{"$f":"IF(Table_SummaryPI[[#This Row],[MeasureCost]]<>\"\",Table_SummaryPI[[#This Row],[MeasureCost]],0)","v":0},{"$f":"IF(Table_SummaryPI[[#This Row],[kWhSavings]]<>\"\",Table_SummaryPI[[#This Row],[kWhSavings]],0)","v":0},{"$f":"IF(Table_SummaryPI[[#This Row],[DemandSavingskW]]<>\"\",Table_SummaryPI[[#This Row],[DemandSavingskW]],0)","v":0}]
[{"$f":"Table_SummaryPI[[#This Row],[Line No.]]","v":""},{"$f":"IF(Table_PrintPI[[#This Row],[Line No.]]=\"\",\"\",CONCATENATE(Table_PrintPI[[#This Row],[Line No.]],\" - \",Table_SummaryPI[[#This Row],[MeasureName]]))","v":""},{"$f":"IF(Table_SummaryPI[[#This Row],[Manufacturer]]<>\"\",CONCATENATE(Table_SummaryPI[[#This Row],[Manufacturer]],\"/\",Table_SummaryPI[[#This Row],[Model'#]]),\"\")","v":""},{"$f":"IF(Table_SummaryPI[[#This Row],[Serial'#]]<>\"\",Table_SummaryPI[[#This Row],[Serial'#]],\"\")","v":""},{"$f":"IF(Table_SummaryPI[[#This Row],[Quantity]]<>\"\",Table_SummaryPI[[#This Row],[Quantity]],\"\")","v":""},{"$f":"IF(Table_SummaryPI[[#This Row],[BaselinekWh]]<>\"\",Table_SummaryPI[[#This Row],[BaselinekWh]],\"\")","v":""},{"$f":"IF(Table_SummaryPI[[#This Row],[BaselinekW]]<>\"\",Table_SummaryPI[[#This Row],[BaselinekW]],\"\")","v":""},{"$f":"IF(Table_SummaryPI[[#This Row],[ProposedkWh]]<>\"\",Table_SummaryPI[[#This Row],[ProposedkWh]],\"\")","v":""},{"$f":"IF(Table_SummaryPI[[#This Row],[ProposedkW]]<>\"\",Table_SummaryPI[[#This Row],[ProposedkW]],\"\")","v":""},{"$f":"IF(Table_SummaryPI[[#This Row],[Notes]]<>\"\",Table_SummaryPI[[#This Row],[Notes]],\"\")","v":""},{"$f":"IF(Table_SummaryPI[[#This Row],[Incentive_Customer]]<>\"\",Table_SummaryPI[[#This Row],[Incentive_Customer]],0)","v":0},{"$f":"IF(Table_SummaryPI[[#This Row],[MeasureCost]]<>\"\",Table_SummaryPI[[#This Row],[MeasureCost]],0)","v":0},{"$f":"IF(Table_SummaryPI[[#This Row],[kWhSavings]]<>\"\",Table_SummaryPI[[#This Row],[kWhSavings]],0)","v":0},{"$f":"IF(Table_SummaryPI[[#This Row],[DemandSavingskW]]<>\"\",Table_SummaryPI[[#This Row],[DemandSavingskW]],0)","v":0}]
[{"$f":"Table_SummaryPI[[#This Row],[Line No.]]","v":""},{"$f":"IF(Table_PrintPI[[#This Row],[Line No.]]=\"\",\"\",CONCATENATE(Table_PrintPI[[#This Row],[Line No.]],\" - \",Table_SummaryPI[[#This Row],[MeasureName]]))","v":""},{"$f":"IF(Table_SummaryPI[[#This Row],[Manufacturer]]<>\"\",CONCATENATE(Table_SummaryPI[[#This Row],[Manufacturer]],\"/\",Table_SummaryPI[[#This Row],[Model'#]]),\"\")","v":""},{"$f":"IF(Table_SummaryPI[[#This Row],[Serial'#]]<>\"\",Table_SummaryPI[[#This Row],[Serial'#]],\"\")","v":""},{"$f":"IF(Table_SummaryPI[[#This Row],[Quantity]]<>\"\",Table_SummaryPI[[#This Row],[Quantity]],\"\")","v":""},{"$f":"IF(Table_SummaryPI[[#This Row],[BaselinekWh]]<>\"\",Table_SummaryPI[[#This Row],[BaselinekWh]],\"\")","v":""},{"$f":"IF(Table_SummaryPI[[#This Row],[BaselinekW]]<>\"\",Table_SummaryPI[[#This Row],[BaselinekW]],\"\")","v":""},{"$f":"IF(Table_SummaryPI[[#This Row],[ProposedkWh]]<>\"\",Table_SummaryPI[[#This Row],[ProposedkWh]],\"\")","v":""},{"$f":"IF(Table_SummaryPI[[#This Row],[ProposedkW]]<>\"\",Table_SummaryPI[[#This Row],[ProposedkW]],\"\")","v":""},{"$f":"IF(Table_SummaryPI[[#This Row],[Notes]]<>\"\",Table_SummaryPI[[#This Row],[Notes]],\"\")","v":""},{"$f":"IF(Table_SummaryPI[[#This Row],[Incentive_Customer]]<>\"\",Table_SummaryPI[[#This Row],[Incentive_Customer]],0)","v":0},{"$f":"IF(Table_SummaryPI[[#This Row],[MeasureCost]]<>\"\",Table_SummaryPI[[#This Row],[MeasureCost]],0)","v":0},{"$f":"IF(Table_SummaryPI[[#This Row],[kWhSavings]]<>\"\",Table_SummaryPI[[#This Row],[kWhSavings]],0)","v":0},{"$f":"IF(Table_SummaryPI[[#This Row],[DemandSavingskW]]<>\"\",Table_SummaryPI[[#This Row],[DemandSavingskW]],0)","v":0}]
[{"$f":"Table_SummaryPI[[#This Row],[Line No.]]","v":""},{"$f":"IF(Table_PrintPI[[#This Row],[Line No.]]=\"\",\"\",CONCATENATE(Table_PrintPI[[#This Row],[Line No.]],\" - \",Table_SummaryPI[[#This Row],[MeasureName]]))","v":""},{"$f":"IF(Table_SummaryPI[[#This Row],[Manufacturer]]<>\"\",CONCATENATE(Table_SummaryPI[[#This Row],[Manufacturer]],\"/\",Table_SummaryPI[[#This Row],[Model'#]]),\"\")","v":""},{"$f":"IF(Table_SummaryPI[[#This Row],[Serial'#]]<>\"\",Table_SummaryPI[[#This Row],[Serial'#]],\"\")","v":""},{"$f":"IF(Table_SummaryPI[[#This Row],[Quantity]]<>\"\",Table_SummaryPI[[#This Row],[Quantity]],\"\")","v":""},{"$f":"IF(Table_SummaryPI[[#This Row],[BaselinekWh]]<>\"\",Table_SummaryPI[[#This Row],[BaselinekWh]],\"\")","v":""},{"$f":"IF(Table_SummaryPI[[#This Row],[BaselinekW]]<>\"\",Table_SummaryPI[[#This Row],[BaselinekW]],\"\")","v":""},{"$f":"IF(Table_SummaryPI[[#This Row],[ProposedkWh]]<>\"\",Table_SummaryPI[[#This Row],[ProposedkWh]],\"\")","v":""},{"$f":"IF(Table_SummaryPI[[#This Row],[ProposedkW]]<>\"\",Table_SummaryPI[[#This Row],[ProposedkW]],\"\")","v":""},{"$f":"IF(Table_SummaryPI[[#This Row],[Notes]]<>\"\",Table_SummaryPI[[#This Row],[Notes]],\"\")","v":""},{"$f":"IF(Table_SummaryPI[[#This Row],[Incentive_Customer]]<>\"\",Table_SummaryPI[[#This Row],[Incentive_Customer]],0)","v":0},{"$f":"IF(Table_SummaryPI[[#This Row],[MeasureCost]]<>\"\",Table_SummaryPI[[#This Row],[MeasureCost]],0)","v":0},{"$f":"IF(Table_SummaryPI[[#This Row],[kWhSavings]]<>\"\",Table_SummaryPI[[#This Row],[kWhSavings]],0)","v":0},{"$f":"IF(Table_SummaryPI[[#This Row],[DemandSavingskW]]<>\"\",Table_SummaryPI[[#This Row],[DemandSavingskW]],0)","v":0}]
[{"$f":"Table_SummaryPI[[#This Row],[Line No.]]","v":""},{"$f":"IF(Table_PrintPI[[#This Row],[Line No.]]=\"\",\"\",CONCATENATE(Table_PrintPI[[#This Row],[Line No.]],\" - \",Table_SummaryPI[[#This Row],[MeasureName]]))","v":""},{"$f":"IF(Table_SummaryPI[[#This Row],[Manufacturer]]<>\"\",CONCATENATE(Table_SummaryPI[[#This Row],[Manufacturer]],\"/\",Table_SummaryPI[[#This Row],[Model'#]]),\"\")","v":""},{"$f":"IF(Table_SummaryPI[[#This Row],[Serial'#]]<>\"\",Table_SummaryPI[[#This Row],[Serial'#]],\"\")","v":""},{"$f":"IF(Table_SummaryPI[[#This Row],[Quantity]]<>\"\",Table_SummaryPI[[#This Row],[Quantity]],\"\")","v":""},{"$f":"IF(Table_SummaryPI[[#This Row],[BaselinekWh]]<>\"\",Table_SummaryPI[[#This Row],[BaselinekWh]],\"\")","v":""},{"$f":"IF(Table_SummaryPI[[#This Row],[BaselinekW]]<>\"\",Table_SummaryPI[[#This Row],[BaselinekW]],\"\")","v":""},{"$f":"IF(Table_SummaryPI[[#This Row],[ProposedkWh]]<>\"\",Table_SummaryPI[[#This Row],[ProposedkWh]],\"\")","v":""},{"$f":"IF(Table_SummaryPI[[#This Row],[ProposedkW]]<>\"\",Table_SummaryPI[[#This Row],[ProposedkW]],\"\")","v":""},{"$f":"IF(Table_SummaryPI[[#This Row],[Notes]]<>\"\",Table_SummaryPI[[#This Row],[Notes]],\"\")","v":""},{"$f":"IF(Table_SummaryPI[[#This Row],[Incentive_Customer]]<>\"\",Table_SummaryPI[[#This Row],[Incentive_Customer]],0)","v":0},{"$f":"IF(Table_SummaryPI[[#This Row],[MeasureCost]]<>\"\",Table_SummaryPI[[#This Row],[MeasureCost]],0)","v":0},{"$f":"IF(Table_SummaryPI[[#This Row],[kWhSavings]]<>\"\",Table_SummaryPI[[#This Row],[kWhSavings]],0)","v":0},{"$f":"IF(Table_SummaryPI[[#This Row],[DemandSavingskW]]<>\"\",Table_SummaryPI[[#This Row],[DemandSavingskW]],0)","v":0}]
[{"$f":"Table_SummaryPI[[#This Row],[Line No.]]","v":""},{"$f":"IF(Table_PrintPI[[#This Row],[Line No.]]=\"\",\"\",CONCATENATE(Table_PrintPI[[#This Row],[Line No.]],\" - \",Table_SummaryPI[[#This Row],[MeasureName]]))","v":""},{"$f":"IF(Table_SummaryPI[[#This Row],[Manufacturer]]<>\"\",CONCATENATE(Table_SummaryPI[[#This Row],[Manufacturer]],\"/\",Table_SummaryPI[[#This Row],[Model'#]]),\"\")","v":""},{"$f":"IF(Table_SummaryPI[[#This Row],[Serial'#]]<>\"\",Table_SummaryPI[[#This Row],[Serial'#]],\"\")","v":""},{"$f":"IF(Table_SummaryPI[[#This Row],[Quantity]]<>\"\",Table_SummaryPI[[#This Row],[Quantity]],\"\")","v":""},{"$f":"IF(Table_SummaryPI[[#This Row],[BaselinekWh]]<>\"\",Table_SummaryPI[[#This Row],[BaselinekWh]],\"\")","v":""},{"$f":"IF(Table_SummaryPI[[#This Row],[BaselinekW]]<>\"\",Table_SummaryPI[[#This Row],[BaselinekW]],\"\")","v":""},{"$f":"IF(Table_SummaryPI[[#This Row],[ProposedkWh]]<>\"\",Table_SummaryPI[[#This Row],[ProposedkWh]],\"\")","v":""},{"$f":"IF(Table_SummaryPI[[#This Row],[ProposedkW]]<>\"\",Table_SummaryPI[[#This Row],[ProposedkW]],\"\")","v":""},{"$f":"IF(Table_SummaryPI[[#This Row],[Notes]]<>\"\",Table_SummaryPI[[#This Row],[Notes]],\"\")","v":""},{"$f":"IF(Table_SummaryPI[[#This Row],[Incentive_Customer]]<>\"\",Table_SummaryPI[[#This Row],[Incentive_Customer]],0)","v":0},{"$f":"IF(Table_SummaryPI[[#This Row],[MeasureCost]]<>\"\",Table_SummaryPI[[#This Row],[MeasureCost]],0)","v":0},{"$f":"IF(Table_SummaryPI[[#This Row],[kWhSavings]]<>\"\",Table_SummaryPI[[#This Row],[kWhSavings]],0)","v":0},{"$f":"IF(Table_SummaryPI[[#This Row],[DemandSavingskW]]<>\"\",Table_SummaryPI[[#This Row],[DemandSavingskW]],0)","v":0}]
[{"$f":"Table_SummaryPI[[#This Row],[Line No.]]","v":""},{"$f":"IF(Table_PrintPI[[#This Row],[Line No.]]=\"\",\"\",CONCATENATE(Table_PrintPI[[#This Row],[Line No.]],\" - \",Table_SummaryPI[[#This Row],[MeasureName]]))","v":""},{"$f":"IF(Table_SummaryPI[[#This Row],[Manufacturer]]<>\"\",CONCATENATE(Table_SummaryPI[[#This Row],[Manufacturer]],\"/\",Table_SummaryPI[[#This Row],[Model'#]]),\"\")","v":""},{"$f":"IF(Table_SummaryPI[[#This Row],[Serial'#]]<>\"\",Table_SummaryPI[[#This Row],[Serial'#]],\"\")","v":""},{"$f":"IF(Table_SummaryPI[[#This Row],[Quantity]]<>\"\",Table_SummaryPI[[#This Row],[Quantity]],\"\")","v":""},{"$f":"IF(Table_SummaryPI[[#This Row],[BaselinekWh]]<>\"\",Table_SummaryPI[[#This Row],[BaselinekWh]],\"\")","v":""},{"$f":"IF(Table_SummaryPI[[#This Row],[BaselinekW]]<>\"\",Table_SummaryPI[[#This Row],[BaselinekW]],\"\")","v":""},{"$f":"IF(Table_SummaryPI[[#This Row],[ProposedkWh]]<>\"\",Table_SummaryPI[[#This Row],[ProposedkWh]],\"\")","v":""},{"$f":"IF(Table_SummaryPI[[#This Row],[ProposedkW]]<>\"\",Table_SummaryPI[[#This Row],[ProposedkW]],\"\")","v":""},{"$f":"IF(Table_SummaryPI[[#This Row],[Notes]]<>\"\",Table_SummaryPI[[#This Row],[Notes]],\"\")","v":""},{"$f":"IF(Table_SummaryPI[[#This Row],[Incentive_Customer]]<>\"\",Table_SummaryPI[[#This Row],[Incentive_Customer]],0)","v":0},{"$f":"IF(Table_SummaryPI[[#This Row],[MeasureCost]]<>\"\",Table_SummaryPI[[#This Row],[MeasureCost]],0)","v":0},{"$f":"IF(Table_SummaryPI[[#This Row],[kWhSavings]]<>\"\",Table_SummaryPI[[#This Row],[kWhSavings]],0)","v":0},{"$f":"IF(Table_SummaryPI[[#This Row],[DemandSavingskW]]<>\"\",Table_SummaryPI[[#This Row],[DemandSavingskW]],0)","v":0}]
[{"$f":"Table_SummaryPI[[#This Row],[Line No.]]","v":""},{"$f":"IF(Table_PrintPI[[#This Row],[Line No.]]=\"\",\"\",CONCATENATE(Table_PrintPI[[#This Row],[Line No.]],\" - \",Table_SummaryPI[[#This Row],[MeasureName]]))","v":""},{"$f":"IF(Table_SummaryPI[[#This Row],[Manufacturer]]<>\"\",CONCATENATE(Table_SummaryPI[[#This Row],[Manufacturer]],\"/\",Table_SummaryPI[[#This Row],[Model'#]]),\"\")","v":""},{"$f":"IF(Table_SummaryPI[[#This Row],[Serial'#]]<>\"\",Table_SummaryPI[[#This Row],[Serial'#]],\"\")","v":""},{"$f":"IF(Table_SummaryPI[[#This Row],[Quantity]]<>\"\",Table_SummaryPI[[#This Row],[Quantity]],\"\")","v":""},{"$f":"IF(Table_SummaryPI[[#This Row],[BaselinekWh]]<>\"\",Table_SummaryPI[[#This Row],[BaselinekWh]],\"\")","v":""},{"$f":"IF(Table_SummaryPI[[#This Row],[BaselinekW]]<>\"\",Table_SummaryPI[[#This Row],[BaselinekW]],\"\")","v":""},{"$f":"IF(Table_SummaryPI[[#This Row],[ProposedkWh]]<>\"\",Table_SummaryPI[[#This Row],[ProposedkWh]],\"\")","v":""},{"$f":"IF(Table_SummaryPI[[#This Row],[ProposedkW]]<>\"\",Table_SummaryPI[[#This Row],[ProposedkW]],\"\")","v":""},{"$f":"IF(Table_SummaryPI[[#This Row],[Notes]]<>\"\",Table_SummaryPI[[#This Row],[Notes]],\"\")","v":""},{"$f":"IF(Table_SummaryPI[[#This Row],[Incentive_Customer]]<>\"\",Table_SummaryPI[[#This Row],[Incentive_Customer]],0)","v":0},{"$f":"IF(Table_SummaryPI[[#This Row],[MeasureCost]]<>\"\",Table_SummaryPI[[#This Row],[MeasureCost]],0)","v":0},{"$f":"IF(Table_SummaryPI[[#This Row],[kWhSavings]]<>\"\",Table_SummaryPI[[#This Row],[kWhSavings]],0)","v":0},{"$f":"IF(Table_SummaryPI[[#This Row],[DemandSavingskW]]<>\"\",Table_SummaryPI[[#This Row],[DemandSavingskW]],0)","v":0}]
[{"$f":"Table_SummaryPI[[#This Row],[Line No.]]","v":""},{"$f":"IF(Table_PrintPI[[#This Row],[Line No.]]=\"\",\"\",CONCATENATE(Table_PrintPI[[#This Row],[Line No.]],\" - \",Table_SummaryPI[[#This Row],[MeasureName]]))","v":""},{"$f":"IF(Table_SummaryPI[[#This Row],[Manufacturer]]<>\"\",CONCATENATE(Table_SummaryPI[[#This Row],[Manufacturer]],\"/\",Table_SummaryPI[[#This Row],[Model'#]]),\"\")","v":""},{"$f":"IF(Table_SummaryPI[[#This Row],[Serial'#]]<>\"\",Table_SummaryPI[[#This Row],[Serial'#]],\"\")","v":""},{"$f":"IF(Table_SummaryPI[[#This Row],[Quantity]]<>\"\",Table_SummaryPI[[#This Row],[Quantity]],\"\")","v":""},{"$f":"IF(Table_SummaryPI[[#This Row],[BaselinekWh]]<>\"\",Table_SummaryPI[[#This Row],[BaselinekWh]],\"\")","v":""},{"$f":"IF(Table_SummaryPI[[#This Row],[BaselinekW]]<>\"\",Table_SummaryPI[[#This Row],[BaselinekW]],\"\")","v":""},{"$f":"IF(Table_SummaryPI[[#This Row],[ProposedkWh]]<>\"\",Table_SummaryPI[[#This Row],[ProposedkWh]],\"\")","v":""},{"$f":"IF(Table_SummaryPI[[#This Row],[ProposedkW]]<>\"\",Table_SummaryPI[[#This Row],[ProposedkW]],\"\")","v":""},{"$f":"IF(Table_SummaryPI[[#This Row],[Notes]]<>\"\",Table_SummaryPI[[#This Row],[Notes]],\"\")","v":""},{"$f":"IF(Table_SummaryPI[[#This Row],[Incentive_Customer]]<>\"\",Table_SummaryPI[[#This Row],[Incentive_Customer]],0)","v":0},{"$f":"IF(Table_SummaryPI[[#This Row],[MeasureCost]]<>\"\",Table_SummaryPI[[#This Row],[MeasureCost]],0)","v":0},{"$f":"IF(Table_SummaryPI[[#This Row],[kWhSavings]]<>\"\",Table_SummaryPI[[#This Row],[kWhSavings]],0)","v":0},{"$f":"IF(Table_SummaryPI[[#This Row],[DemandSavingskW]]<>\"\",Table_SummaryPI[[#This Row],[DemandSavingskW]],0)","v":0}]
[{"$f":"Table_SummaryPI[[#This Row],[Line No.]]","v":""},{"$f":"IF(Table_PrintPI[[#This Row],[Line No.]]=\"\",\"\",CONCATENATE(Table_PrintPI[[#This Row],[Line No.]],\" - \",Table_SummaryPI[[#This Row],[MeasureName]]))","v":""},{"$f":"IF(Table_SummaryPI[[#This Row],[Manufacturer]]<>\"\",CONCATENATE(Table_SummaryPI[[#This Row],[Manufacturer]],\"/\",Table_SummaryPI[[#This Row],[Model'#]]),\"\")","v":""},{"$f":"IF(Table_SummaryPI[[#This Row],[Serial'#]]<>\"\",Table_SummaryPI[[#This Row],[Serial'#]],\"\")","v":""},{"$f":"IF(Table_SummaryPI[[#This Row],[Quantity]]<>\"\",Table_SummaryPI[[#This Row],[Quantity]],\"\")","v":""},{"$f":"IF(Table_SummaryPI[[#This Row],[BaselinekWh]]<>\"\",Table_SummaryPI[[#This Row],[BaselinekWh]],\"\")","v":""},{"$f":"IF(Table_SummaryPI[[#This Row],[BaselinekW]]<>\"\",Table_SummaryPI[[#This Row],[BaselinekW]],\"\")","v":""},{"$f":"IF(Table_SummaryPI[[#This Row],[ProposedkWh]]<>\"\",Table_SummaryPI[[#This Row],[ProposedkWh]],\"\")","v":""},{"$f":"IF(Table_SummaryPI[[#This Row],[ProposedkW]]<>\"\",Table_SummaryPI[[#This Row],[ProposedkW]],\"\")","v":""},{"$f":"IF(Table_SummaryPI[[#This Row],[Notes]]<>\"\",Table_SummaryPI[[#This Row],[Notes]],\"\")","v":""},{"$f":"IF(Table_SummaryPI[[#This Row],[Incentive_Customer]]<>\"\",Table_SummaryPI[[#This Row],[Incentive_Customer]],0)","v":0},{"$f":"IF(Table_SummaryPI[[#This Row],[MeasureCost]]<>\"\",Table_SummaryPI[[#This Row],[MeasureCost]],0)","v":0},{"$f":"IF(Table_SummaryPI[[#This Row],[kWhSavings]]<>\"\",Table_SummaryPI[[#This Row],[kWhSavings]],0)","v":0},{"$f":"IF(Table_SummaryPI[[#This Row],[DemandSavingskW]]<>\"\",Table_SummaryPI[[#This Row],[DemandSavingskW]],0)","v":0}]
[{"$f":"Table_SummaryPI[[#This Row],[Line No.]]","v":""},{"$f":"IF(Table_PrintPI[[#This Row],[Line No.]]=\"\",\"\",CONCATENATE(Table_PrintPI[[#This Row],[Line No.]],\" - \",Table_SummaryPI[[#This Row],[MeasureName]]))","v":""},{"$f":"IF(Table_SummaryPI[[#This Row],[Manufacturer]]<>\"\",CONCATENATE(Table_SummaryPI[[#This Row],[Manufacturer]],\"/\",Table_SummaryPI[[#This Row],[Model'#]]),\"\")","v":""},{"$f":"IF(Table_SummaryPI[[#This Row],[Serial'#]]<>\"\",Table_SummaryPI[[#This Row],[Serial'#]],\"\")","v":""},{"$f":"IF(Table_SummaryPI[[#This Row],[Quantity]]<>\"\",Table_SummaryPI[[#This Row],[Quantity]],\"\")","v":""},{"$f":"IF(Table_SummaryPI[[#This Row],[BaselinekWh]]<>\"\",Table_SummaryPI[[#This Row],[BaselinekWh]],\"\")","v":""},{"$f":"IF(Table_SummaryPI[[#This Row],[BaselinekW]]<>\"\",Table_SummaryPI[[#This Row],[BaselinekW]],\"\")","v":""},{"$f":"IF(Table_SummaryPI[[#This Row],[ProposedkWh]]<>\"\",Table_SummaryPI[[#This Row],[ProposedkWh]],\"\")","v":""},{"$f":"IF(Table_SummaryPI[[#This Row],[ProposedkW]]<>\"\",Table_SummaryPI[[#This Row],[ProposedkW]],\"\")","v":""},{"$f":"IF(Table_SummaryPI[[#This Row],[Notes]]<>\"\",Table_SummaryPI[[#This Row],[Notes]],\"\")","v":""},{"$f":"IF(Table_SummaryPI[[#This Row],[Incentive_Customer]]<>\"\",Table_SummaryPI[[#This Row],[Incentive_Customer]],0)","v":0},{"$f":"IF(Table_SummaryPI[[#This Row],[MeasureCost]]<>\"\",Table_SummaryPI[[#This Row],[MeasureCost]],0)","v":0},{"$f":"IF(Table_SummaryPI[[#This Row],[kWhSavings]]<>\"\",Table_SummaryPI[[#This Row],[kWhSavings]],0)","v":0},{"$f":"IF(Table_SummaryPI[[#This Row],[DemandSavingskW]]<>\"\",Table_SummaryPI[[#This Row],[DemandSavingskW]],0)","v":0}]
[{"$f":"Table_SummaryPI[[#This Row],[Line No.]]","v":""},{"$f":"IF(Table_PrintPI[[#This Row],[Line No.]]=\"\",\"\",CONCATENATE(Table_PrintPI[[#This Row],[Line No.]],\" - \",Table_SummaryPI[[#This Row],[MeasureName]]))","v":""},{"$f":"IF(Table_SummaryPI[[#This Row],[Manufacturer]]<>\"\",CONCATENATE(Table_SummaryPI[[#This Row],[Manufacturer]],\"/\",Table_SummaryPI[[#This Row],[Model'#]]),\"\")","v":""},{"$f":"IF(Table_SummaryPI[[#This Row],[Serial'#]]<>\"\",Table_SummaryPI[[#This Row],[Serial'#]],\"\")","v":""},{"$f":"IF(Table_SummaryPI[[#This Row],[Quantity]]<>\"\",Table_SummaryPI[[#This Row],[Quantity]],\"\")","v":""},{"$f":"IF(Table_SummaryPI[[#This Row],[BaselinekWh]]<>\"\",Table_SummaryPI[[#This Row],[BaselinekWh]],\"\")","v":""},{"$f":"IF(Table_SummaryPI[[#This Row],[BaselinekW]]<>\"\",Table_SummaryPI[[#This Row],[BaselinekW]],\"\")","v":""},{"$f":"IF(Table_SummaryPI[[#This Row],[ProposedkWh]]<>\"\",Table_SummaryPI[[#This Row],[ProposedkWh]],\"\")","v":""},{"$f":"IF(Table_SummaryPI[[#This Row],[ProposedkW]]<>\"\",Table_SummaryPI[[#This Row],[ProposedkW]],\"\")","v":""},{"$f":"IF(Table_SummaryPI[[#This Row],[Notes]]<>\"\",Table_SummaryPI[[#This Row],[Notes]],\"\")","v":""},{"$f":"IF(Table_SummaryPI[[#This Row],[Incentive_Customer]]<>\"\",Table_SummaryPI[[#This Row],[Incentive_Customer]],0)","v":0},{"$f":"IF(Table_SummaryPI[[#This Row],[MeasureCost]]<>\"\",Table_SummaryPI[[#This Row],[MeasureCost]],0)","v":0},{"$f":"IF(Table_SummaryPI[[#This Row],[kWhSavings]]<>\"\",Table_SummaryPI[[#This Row],[kWhSavings]],0)","v":0},{"$f":"IF(Table_SummaryPI[[#This Row],[DemandSavingskW]]<>\"\",Table_SummaryPI[[#This Row],[DemandSavingskW]],0)","v":0}]
[{"$f":"Table_SummaryPI[[#This Row],[Line No.]]","v":""},{"$f":"IF(Table_PrintPI[[#This Row],[Line No.]]=\"\",\"\",CONCATENATE(Table_PrintPI[[#This Row],[Line No.]],\" - \",Table_SummaryPI[[#This Row],[MeasureName]]))","v":""},{"$f":"IF(Table_SummaryPI[[#This Row],[Manufacturer]]<>\"\",CONCATENATE(Table_SummaryPI[[#This Row],[Manufacturer]],\"/\",Table_SummaryPI[[#This Row],[Model'#]]),\"\")","v":""},{"$f":"IF(Table_SummaryPI[[#This Row],[Serial'#]]<>\"\",Table_SummaryPI[[#This Row],[Serial'#]],\"\")","v":""},{"$f":"IF(Table_SummaryPI[[#This Row],[Quantity]]<>\"\",Table_SummaryPI[[#This Row],[Quantity]],\"\")","v":""},{"$f":"IF(Table_SummaryPI[[#This Row],[BaselinekWh]]<>\"\",Table_SummaryPI[[#This Row],[BaselinekWh]],\"\")","v":""},{"$f":"IF(Table_SummaryPI[[#This Row],[BaselinekW]]<>\"\",Table_SummaryPI[[#This Row],[BaselinekW]],\"\")","v":""},{"$f":"IF(Table_SummaryPI[[#This Row],[ProposedkWh]]<>\"\",Table_SummaryPI[[#This Row],[ProposedkWh]],\"\")","v":""},{"$f":"IF(Table_SummaryPI[[#This Row],[ProposedkW]]<>\"\",Table_SummaryPI[[#This Row],[ProposedkW]],\"\")","v":""},{"$f":"IF(Table_SummaryPI[[#This Row],[Notes]]<>\"\",Table_SummaryPI[[#This Row],[Notes]],\"\")","v":""},{"$f":"IF(Table_SummaryPI[[#This Row],[Incentive_Customer]]<>\"\",Table_SummaryPI[[#This Row],[Incentive_Customer]],0)","v":0},{"$f":"IF(Table_SummaryPI[[#This Row],[MeasureCost]]<>\"\",Table_SummaryPI[[#This Row],[MeasureCost]],0)","v":0},{"$f":"IF(Table_SummaryPI[[#This Row],[kWhSavings]]<>\"\",Table_SummaryPI[[#This Row],[kWhSavings]],0)","v":0},{"$f":"IF(Table_SummaryPI[[#This Row],[DemandSavingskW]]<>\"\",Table_SummaryPI[[#This Row],[DemandSavingskW]],0)","v":0}]
[{"$f":"Table_SummaryPI[[#This Row],[Line No.]]","v":""},{"$f":"IF(Table_PrintPI[[#This Row],[Line No.]]=\"\",\"\",CONCATENATE(Table_PrintPI[[#This Row],[Line No.]],\" - \",Table_SummaryPI[[#This Row],[MeasureName]]))","v":""},{"$f":"IF(Table_SummaryPI[[#This Row],[Manufacturer]]<>\"\",CONCATENATE(Table_SummaryPI[[#This Row],[Manufacturer]],\"/\",Table_SummaryPI[[#This Row],[Model'#]]),\"\")","v":""},{"$f":"IF(Table_SummaryPI[[#This Row],[Serial'#]]<>\"\",Table_SummaryPI[[#This Row],[Serial'#]],\"\")","v":""},{"$f":"IF(Table_SummaryPI[[#This Row],[Quantity]]<>\"\",Table_SummaryPI[[#This Row],[Quantity]],\"\")","v":""},{"$f":"IF(Table_SummaryPI[[#This Row],[BaselinekWh]]<>\"\",Table_SummaryPI[[#This Row],[BaselinekWh]],\"\")","v":""},{"$f":"IF(Table_SummaryPI[[#This Row],[BaselinekW]]<>\"\",Table_SummaryPI[[#This Row],[BaselinekW]],\"\")","v":""},{"$f":"IF(Table_SummaryPI[[#This Row],[ProposedkWh]]<>\"\",Table_SummaryPI[[#This Row],[ProposedkWh]],\"\")","v":""},{"$f":"IF(Table_SummaryPI[[#This Row],[ProposedkW]]<>\"\",Table_SummaryPI[[#This Row],[ProposedkW]],\"\")","v":""},{"$f":"IF(Table_SummaryPI[[#This Row],[Notes]]<>\"\",Table_SummaryPI[[#This Row],[Notes]],\"\")","v":""},{"$f":"IF(Table_SummaryPI[[#This Row],[Incentive_Customer]]<>\"\",Table_SummaryPI[[#This Row],[Incentive_Customer]],0)","v":0},{"$f":"IF(Table_SummaryPI[[#This Row],[MeasureCost]]<>\"\",Table_SummaryPI[[#This Row],[MeasureCost]],0)","v":0},{"$f":"IF(Table_SummaryPI[[#This Row],[kWhSavings]]<>\"\",Table_SummaryPI[[#This Row],[kWhSavings]],0)","v":0},{"$f":"IF(Table_SummaryPI[[#This Row],[DemandSavingskW]]<>\"\",Table_SummaryPI[[#This Row],[DemandSavingskW]],0)","v":0}]
[{"$f":"Table_SummaryPI[[#This Row],[Line No.]]","v":""},{"$f":"IF(Table_PrintPI[[#This Row],[Line No.]]=\"\",\"\",CONCATENATE(Table_PrintPI[[#This Row],[Line No.]],\" - \",Table_SummaryPI[[#This Row],[MeasureName]]))","v":""},{"$f":"IF(Table_SummaryPI[[#This Row],[Manufacturer]]<>\"\",CONCATENATE(Table_SummaryPI[[#This Row],[Manufacturer]],\"/\",Table_SummaryPI[[#This Row],[Model'#]]),\"\")","v":""},{"$f":"IF(Table_SummaryPI[[#This Row],[Serial'#]]<>\"\",Table_SummaryPI[[#This Row],[Serial'#]],\"\")","v":""},{"$f":"IF(Table_SummaryPI[[#This Row],[Quantity]]<>\"\",Table_SummaryPI[[#This Row],[Quantity]],\"\")","v":""},{"$f":"IF(Table_SummaryPI[[#This Row],[BaselinekWh]]<>\"\",Table_SummaryPI[[#This Row],[BaselinekWh]],\"\")","v":""},{"$f":"IF(Table_SummaryPI[[#This Row],[BaselinekW]]<>\"\",Table_SummaryPI[[#This Row],[BaselinekW]],\"\")","v":""},{"$f":"IF(Table_SummaryPI[[#This Row],[ProposedkWh]]<>\"\",Table_SummaryPI[[#This Row],[ProposedkWh]],\"\")","v":""},{"$f":"IF(Table_SummaryPI[[#This Row],[ProposedkW]]<>\"\",Table_SummaryPI[[#This Row],[ProposedkW]],\"\")","v":""},{"$f":"IF(Table_SummaryPI[[#This Row],[Notes]]<>\"\",Table_SummaryPI[[#This Row],[Notes]],\"\")","v":""},{"$f":"IF(Table_SummaryPI[[#This Row],[Incentive_Customer]]<>\"\",Table_SummaryPI[[#This Row],[Incentive_Customer]],0)","v":0},{"$f":"IF(Table_SummaryPI[[#This Row],[MeasureCost]]<>\"\",Table_SummaryPI[[#This Row],[MeasureCost]],0)","v":0},{"$f":"IF(Table_SummaryPI[[#This Row],[kWhSavings]]<>\"\",Table_SummaryPI[[#This Row],[kWhSavings]],0)","v":0},{"$f":"IF(Table_SummaryPI[[#This Row],[DemandSavingskW]]<>\"\",Table_SummaryPI[[#This Row],[DemandSavingskW]],0)","v":0}]
[{"$f":"Table_SummaryPI[[#This Row],[Line No.]]","v":""},{"$f":"IF(Table_PrintPI[[#This Row],[Line No.]]=\"\",\"\",CONCATENATE(Table_PrintPI[[#This Row],[Line No.]],\" - \",Table_SummaryPI[[#This Row],[MeasureName]]))","v":""},{"$f":"IF(Table_SummaryPI[[#This Row],[Manufacturer]]<>\"\",CONCATENATE(Table_SummaryPI[[#This Row],[Manufacturer]],\"/\",Table_SummaryPI[[#This Row],[Model'#]]),\"\")","v":""},{"$f":"IF(Table_SummaryPI[[#This Row],[Serial'#]]<>\"\",Table_SummaryPI[[#This Row],[Serial'#]],\"\")","v":""},{"$f":"IF(Table_SummaryPI[[#This Row],[Quantity]]<>\"\",Table_SummaryPI[[#This Row],[Quantity]],\"\")","v":""},{"$f":"IF(Table_SummaryPI[[#This Row],[BaselinekWh]]<>\"\",Table_SummaryPI[[#This Row],[BaselinekWh]],\"\")","v":""},{"$f":"IF(Table_SummaryPI[[#This Row],[BaselinekW]]<>\"\",Table_SummaryPI[[#This Row],[BaselinekW]],\"\")","v":""},{"$f":"IF(Table_SummaryPI[[#This Row],[ProposedkWh]]<>\"\",Table_SummaryPI[[#This Row],[ProposedkWh]],\"\")","v":""},{"$f":"IF(Table_SummaryPI[[#This Row],[ProposedkW]]<>\"\",Table_SummaryPI[[#This Row],[ProposedkW]],\"\")","v":""},{"$f":"IF(Table_SummaryPI[[#This Row],[Notes]]<>\"\",Table_SummaryPI[[#This Row],[Notes]],\"\")","v":""},{"$f":"IF(Table_SummaryPI[[#This Row],[Incentive_Customer]]<>\"\",Table_SummaryPI[[#This Row],[Incentive_Customer]],0)","v":0},{"$f":"IF(Table_SummaryPI[[#This Row],[MeasureCost]]<>\"\",Table_SummaryPI[[#This Row],[MeasureCost]],0)","v":0},{"$f":"IF(Table_SummaryPI[[#This Row],[kWhSavings]]<>\"\",Table_SummaryPI[[#This Row],[kWhSavings]],0)","v":0},{"$f":"IF(Table_SummaryPI[[#This Row],[DemandSavingskW]]<>\"\",Table_SummaryPI[[#This Row],[DemandSavingskW]],0)","v":0}]
[{"$f":"Table_SummaryPI[[#This Row],[Line No.]]","v":""},{"$f":"IF(Table_PrintPI[[#This Row],[Line No.]]=\"\",\"\",CONCATENATE(Table_PrintPI[[#This Row],[Line No.]],\" - \",Table_SummaryPI[[#This Row],[MeasureName]]))","v":""},{"$f":"IF(Table_SummaryPI[[#This Row],[Manufacturer]]<>\"\",CONCATENATE(Table_SummaryPI[[#This Row],[Manufacturer]],\"/\",Table_SummaryPI[[#This Row],[Model'#]]),\"\")","v":""},{"$f":"IF(Table_SummaryPI[[#This Row],[Serial'#]]<>\"\",Table_SummaryPI[[#This Row],[Serial'#]],\"\")","v":""},{"$f":"IF(Table_SummaryPI[[#This Row],[Quantity]]<>\"\",Table_SummaryPI[[#This Row],[Quantity]],\"\")","v":""},{"$f":"IF(Table_SummaryPI[[#This Row],[BaselinekWh]]<>\"\",Table_SummaryPI[[#This Row],[BaselinekWh]],\"\")","v":""},{"$f":"IF(Table_SummaryPI[[#This Row],[BaselinekW]]<>\"\",Table_SummaryPI[[#This Row],[BaselinekW]],\"\")","v":""},{"$f":"IF(Table_SummaryPI[[#This Row],[ProposedkWh]]<>\"\",Table_SummaryPI[[#This Row],[ProposedkWh]],\"\")","v":""},{"$f":"IF(Table_SummaryPI[[#This Row],[ProposedkW]]<>\"\",Table_SummaryPI[[#This Row],[ProposedkW]],\"\")","v":""},{"$f":"IF(Table_SummaryPI[[#This Row],[Notes]]<>\"\",Table_SummaryPI[[#This Row],[Notes]],\"\")","v":""},{"$f":"IF(Table_SummaryPI[[#This Row],[Incentive_Customer]]<>\"\",Table_SummaryPI[[#This Row],[Incentive_Customer]],0)","v":0},{"$f":"IF(Table_SummaryPI[[#This Row],[MeasureCost]]<>\"\",Table_SummaryPI[[#This Row],[MeasureCost]],0)","v":0},{"$f":"IF(Table_SummaryPI[[#This Row],[kWhSavings]]<>\"\",Table_SummaryPI[[#This Row],[kWhSavings]],0)","v":0},{"$f":"IF(Table_SummaryPI[[#This Row],[DemandSavingskW]]<>\"\",Table_SummaryPI[[#This Row],[DemandSavingskW]],0)","v":0}]
[{"$f":"Table_SummaryPI[[#This Row],[Line No.]]","v":""},{"$f":"IF(Table_PrintPI[[#This Row],[Line No.]]=\"\",\"\",CONCATENATE(Table_PrintPI[[#This Row],[Line No.]],\" - \",Table_SummaryPI[[#This Row],[MeasureName]]))","v":""},{"$f":"IF(Table_SummaryPI[[#This Row],[Manufacturer]]<>\"\",CONCATENATE(Table_SummaryPI[[#This Row],[Manufacturer]],\"/\",Table_SummaryPI[[#This Row],[Model'#]]),\"\")","v":""},{"$f":"IF(Table_SummaryPI[[#This Row],[Serial'#]]<>\"\",Table_SummaryPI[[#This Row],[Serial'#]],\"\")","v":""},{"$f":"IF(Table_SummaryPI[[#This Row],[Quantity]]<>\"\",Table_SummaryPI[[#This Row],[Quantity]],\"\")","v":""},{"$f":"IF(Table_SummaryPI[[#This Row],[BaselinekWh]]<>\"\",Table_SummaryPI[[#This Row],[BaselinekWh]],\"\")","v":""},{"$f":"IF(Table_SummaryPI[[#This Row],[BaselinekW]]<>\"\",Table_SummaryPI[[#This Row],[BaselinekW]],\"\")","v":""},{"$f":"IF(Table_SummaryPI[[#This Row],[ProposedkWh]]<>\"\",Table_SummaryPI[[#This Row],[ProposedkWh]],\"\")","v":""},{"$f":"IF(Table_SummaryPI[[#This Row],[ProposedkW]]<>\"\",Table_SummaryPI[[#This Row],[ProposedkW]],\"\")","v":""},{"$f":"IF(Table_SummaryPI[[#This Row],[Notes]]<>\"\",Table_SummaryPI[[#This Row],[Notes]],\"\")","v":""},{"$f":"IF(Table_SummaryPI[[#This Row],[Incentive_Customer]]<>\"\",Table_SummaryPI[[#This Row],[Incentive_Customer]],0)","v":0},{"$f":"IF(Table_SummaryPI[[#This Row],[MeasureCost]]<>\"\",Table_SummaryPI[[#This Row],[MeasureCost]],0)","v":0},{"$f":"IF(Table_SummaryPI[[#This Row],[kWhSavings]]<>\"\",Table_SummaryPI[[#This Row],[kWhSavings]],0)","v":0},{"$f":"IF(Table_SummaryPI[[#This Row],[DemandSavingskW]]<>\"\",Table_SummaryPI[[#This Row],[DemandSavingskW]],0)","v":0}]
[{"$f":"Table_SummaryPI[[#This Row],[Line No.]]","v":""},{"$f":"IF(Table_PrintPI[[#This Row],[Line No.]]=\"\",\"\",CONCATENATE(Table_PrintPI[[#This Row],[Line No.]],\" - \",Table_SummaryPI[[#This Row],[MeasureName]]))","v":""},{"$f":"IF(Table_SummaryPI[[#This Row],[Manufacturer]]<>\"\",CONCATENATE(Table_SummaryPI[[#This Row],[Manufacturer]],\"/\",Table_SummaryPI[[#This Row],[Model'#]]),\"\")","v":""},{"$f":"IF(Table_SummaryPI[[#This Row],[Serial'#]]<>\"\",Table_SummaryPI[[#This Row],[Serial'#]],\"\")","v":""},{"$f":"IF(Table_SummaryPI[[#This Row],[Quantity]]<>\"\",Table_SummaryPI[[#This Row],[Quantity]],\"\")","v":""},{"$f":"IF(Table_SummaryPI[[#This Row],[BaselinekWh]]<>\"\",Table_SummaryPI[[#This Row],[BaselinekWh]],\"\")","v":""},{"$f":"IF(Table_SummaryPI[[#This Row],[BaselinekW]]<>\"\",Table_SummaryPI[[#This Row],[BaselinekW]],\"\")","v":""},{"$f":"IF(Table_SummaryPI[[#This Row],[ProposedkWh]]<>\"\",Table_SummaryPI[[#This Row],[ProposedkWh]],\"\")","v":""},{"$f":"IF(Table_SummaryPI[[#This Row],[ProposedkW]]<>\"\",Table_SummaryPI[[#This Row],[ProposedkW]],\"\")","v":""},{"$f":"IF(Table_SummaryPI[[#This Row],[Notes]]<>\"\",Table_SummaryPI[[#This Row],[Notes]],\"\")","v":""},{"$f":"IF(Table_SummaryPI[[#This Row],[Incentive_Customer]]<>\"\",Table_SummaryPI[[#This Row],[Incentive_Customer]],0)","v":0},{"$f":"IF(Table_SummaryPI[[#This Row],[MeasureCost]]<>\"\",Table_SummaryPI[[#This Row],[MeasureCost]],0)","v":0},{"$f":"IF(Table_SummaryPI[[#This Row],[kWhSavings]]<>\"\",Table_SummaryPI[[#This Row],[kWhSavings]],0)","v":0},{"$f":"IF(Table_SummaryPI[[#This Row],[DemandSavingskW]]<>\"\",Table_SummaryPI[[#This Row],[DemandSavingskW]],0)","v":0}]
[{"$f":"Table_SummaryPI[[#This Row],[Line No.]]","v":""},{"$f":"IF(Table_PrintPI[[#This Row],[Line No.]]=\"\",\"\",CONCATENATE(Table_PrintPI[[#This Row],[Line No.]],\" - \",Table_SummaryPI[[#This Row],[MeasureName]]))","v":""},{"$f":"IF(Table_SummaryPI[[#This Row],[Manufacturer]]<>\"\",CONCATENATE(Table_SummaryPI[[#This Row],[Manufacturer]],\"/\",Table_SummaryPI[[#This Row],[Model'#]]),\"\")","v":""},{"$f":"IF(Table_SummaryPI[[#This Row],[Serial'#]]<>\"\",Table_SummaryPI[[#This Row],[Serial'#]],\"\")","v":""},{"$f":"IF(Table_SummaryPI[[#This Row],[Quantity]]<>\"\",Table_SummaryPI[[#This Row],[Quantity]],\"\")","v":""},{"$f":"IF(Table_SummaryPI[[#This Row],[BaselinekWh]]<>\"\",Table_SummaryPI[[#This Row],[BaselinekWh]],\"\")","v":""},{"$f":"IF(Table_SummaryPI[[#This Row],[BaselinekW]]<>\"\",Table_SummaryPI[[#This Row],[BaselinekW]],\"\")","v":""},{"$f":"IF(Table_SummaryPI[[#This Row],[ProposedkWh]]<>\"\",Table_SummaryPI[[#This Row],[ProposedkWh]],\"\")","v":""},{"$f":"IF(Table_SummaryPI[[#This Row],[ProposedkW]]<>\"\",Table_SummaryPI[[#This Row],[ProposedkW]],\"\")","v":""},{"$f":"IF(Table_SummaryPI[[#This Row],[Notes]]<>\"\",Table_SummaryPI[[#This Row],[Notes]],\"\")","v":""},{"$f":"IF(Table_SummaryPI[[#This Row],[Incentive_Customer]]<>\"\",Table_SummaryPI[[#This Row],[Incentive_Customer]],0)","v":0},{"$f":"IF(Table_SummaryPI[[#This Row],[MeasureCost]]<>\"\",Table_SummaryPI[[#This Row],[MeasureCost]],0)","v":0},{"$f":"IF(Table_SummaryPI[[#This Row],[kWhSavings]]<>\"\",Table_SummaryPI[[#This Row],[kWhSavings]],0)","v":0},{"$f":"IF(Table_SummaryPI[[#This Row],[DemandSavingskW]]<>\"\",Table_SummaryPI[[#This Row],[DemandSavingskW]],0)","v":0}]
[{"$f":"Table_SummaryPI[[#This Row],[Line No.]]","v":""},{"$f":"IF(Table_PrintPI[[#This Row],[Line No.]]=\"\",\"\",CONCATENATE(Table_PrintPI[[#This Row],[Line No.]],\" - \",Table_SummaryPI[[#This Row],[MeasureName]]))","v":""},{"$f":"IF(Table_SummaryPI[[#This Row],[Manufacturer]]<>\"\",CONCATENATE(Table_SummaryPI[[#This Row],[Manufacturer]],\"/\",Table_SummaryPI[[#This Row],[Model'#]]),\"\")","v":""},{"$f":"IF(Table_SummaryPI[[#This Row],[Serial'#]]<>\"\",Table_SummaryPI[[#This Row],[Serial'#]],\"\")","v":""},{"$f":"IF(Table_SummaryPI[[#This Row],[Quantity]]<>\"\",Table_SummaryPI[[#This Row],[Quantity]],\"\")","v":""},{"$f":"IF(Table_SummaryPI[[#This Row],[BaselinekWh]]<>\"\",Table_SummaryPI[[#This Row],[BaselinekWh]],\"\")","v":""},{"$f":"IF(Table_SummaryPI[[#This Row],[BaselinekW]]<>\"\",Table_SummaryPI[[#This Row],[BaselinekW]],\"\")","v":""},{"$f":"IF(Table_SummaryPI[[#This Row],[ProposedkWh]]<>\"\",Table_SummaryPI[[#This Row],[ProposedkWh]],\"\")","v":""},{"$f":"IF(Table_SummaryPI[[#This Row],[ProposedkW]]<>\"\",Table_SummaryPI[[#This Row],[ProposedkW]],\"\")","v":""},{"$f":"IF(Table_SummaryPI[[#This Row],[Notes]]<>\"\",Table_SummaryPI[[#This Row],[Notes]],\"\")","v":""},{"$f":"IF(Table_SummaryPI[[#This Row],[Incentive_Customer]]<>\"\",Table_SummaryPI[[#This Row],[Incentive_Customer]],0)","v":0},{"$f":"IF(Table_SummaryPI[[#This Row],[MeasureCost]]<>\"\",Table_SummaryPI[[#This Row],[MeasureCost]],0)","v":0},{"$f":"IF(Table_SummaryPI[[#This Row],[kWhSavings]]<>\"\",Table_SummaryPI[[#This Row],[kWhSavings]],0)","v":0},{"$f":"IF(Table_SummaryPI[[#This Row],[DemandSavingskW]]<>\"\",Table_SummaryPI[[#This Row],[DemandSavingskW]],0)","v":0}]
[{"$f":"Table_SummaryPI[[#This Row],[Line No.]]","v":""},{"$f":"IF(Table_PrintPI[[#This Row],[Line No.]]=\"\",\"\",CONCATENATE(Table_PrintPI[[#This Row],[Line No.]],\" - \",Table_SummaryPI[[#This Row],[MeasureName]]))","v":""},{"$f":"IF(Table_SummaryPI[[#This Row],[Manufacturer]]<>\"\",CONCATENATE(Table_SummaryPI[[#This Row],[Manufacturer]],\"/\",Table_SummaryPI[[#This Row],[Model'#]]),\"\")","v":""},{"$f":"IF(Table_SummaryPI[[#This Row],[Serial'#]]<>\"\",Table_SummaryPI[[#This Row],[Serial'#]],\"\")","v":""},{"$f":"IF(Table_SummaryPI[[#This Row],[Quantity]]<>\"\",Table_SummaryPI[[#This Row],[Quantity]],\"\")","v":""},{"$f":"IF(Table_SummaryPI[[#This Row],[BaselinekWh]]<>\"\",Table_SummaryPI[[#This Row],[BaselinekWh]],\"\")","v":""},{"$f":"IF(Table_SummaryPI[[#This Row],[BaselinekW]]<>\"\",Table_SummaryPI[[#This Row],[BaselinekW]],\"\")","v":""},{"$f":"IF(Table_SummaryPI[[#This Row],[ProposedkWh]]<>\"\",Table_SummaryPI[[#This Row],[ProposedkWh]],\"\")","v":""},{"$f":"IF(Table_SummaryPI[[#This Row],[ProposedkW]]<>\"\",Table_SummaryPI[[#This Row],[ProposedkW]],\"\")","v":""},{"$f":"IF(Table_SummaryPI[[#This Row],[Notes]]<>\"\",Table_SummaryPI[[#This Row],[Notes]],\"\")","v":""},{"$f":"IF(Table_SummaryPI[[#This Row],[Incentive_Customer]]<>\"\",Table_SummaryPI[[#This Row],[Incentive_Customer]],0)","v":0},{"$f":"IF(Table_SummaryPI[[#This Row],[MeasureCost]]<>\"\",Table_SummaryPI[[#This Row],[MeasureCost]],0)","v":0},{"$f":"IF(Table_SummaryPI[[#This Row],[kWhSavings]]<>\"\",Table_SummaryPI[[#This Row],[kWhSavings]],0)","v":0},{"$f":"IF(Table_SummaryPI[[#This Row],[DemandSavingskW]]<>\"\",Table_SummaryPI[[#This Row],[DemandSavingskW]],0)","v":0}]
[{"$f":"Table_SummaryPI[[#This Row],[Line No.]]","v":""},{"$f":"IF(Table_PrintPI[[#This Row],[Line No.]]=\"\",\"\",CONCATENATE(Table_PrintPI[[#This Row],[Line No.]],\" - \",Table_SummaryPI[[#This Row],[MeasureName]]))","v":""},{"$f":"IF(Table_SummaryPI[[#This Row],[Manufacturer]]<>\"\",CONCATENATE(Table_SummaryPI[[#This Row],[Manufacturer]],\"/\",Table_SummaryPI[[#This Row],[Model'#]]),\"\")","v":""},{"$f":"IF(Table_SummaryPI[[#This Row],[Serial'#]]<>\"\",Table_SummaryPI[[#This Row],[Serial'#]],\"\")","v":""},{"$f":"IF(Table_SummaryPI[[#This Row],[Quantity]]<>\"\",Table_SummaryPI[[#This Row],[Quantity]],\"\")","v":""},{"$f":"IF(Table_SummaryPI[[#This Row],[BaselinekWh]]<>\"\",Table_SummaryPI[[#This Row],[BaselinekWh]],\"\")","v":""},{"$f":"IF(Table_SummaryPI[[#This Row],[BaselinekW]]<>\"\",Table_SummaryPI[[#This Row],[BaselinekW]],\"\")","v":""},{"$f":"IF(Table_SummaryPI[[#This Row],[ProposedkWh]]<>\"\",Table_SummaryPI[[#This Row],[ProposedkWh]],\"\")","v":""},{"$f":"IF(Table_SummaryPI[[#This Row],[ProposedkW]]<>\"\",Table_SummaryPI[[#This Row],[ProposedkW]],\"\")","v":""},{"$f":"IF(Table_SummaryPI[[#This Row],[Notes]]<>\"\",Table_SummaryPI[[#This Row],[Notes]],\"\")","v":""},{"$f":"IF(Table_SummaryPI[[#This Row],[Incentive_Customer]]<>\"\",Table_SummaryPI[[#This Row],[Incentive_Customer]],0)","v":0},{"$f":"IF(Table_SummaryPI[[#This Row],[MeasureCost]]<>\"\",Table_SummaryPI[[#This Row],[MeasureCost]],0)","v":0},{"$f":"IF(Table_SummaryPI[[#This Row],[kWhSavings]]<>\"\",Table_SummaryPI[[#This Row],[kWhSavings]],0)","v":0},{"$f":"IF(Table_SummaryPI[[#This Row],[DemandSavingskW]]<>\"\",Table_SummaryPI[[#This Row],[DemandSavingskW]],0)","v":0}]
[{"$f":"Table_SummaryPI[[#This Row],[Line No.]]","v":""},{"$f":"IF(Table_PrintPI[[#This Row],[Line No.]]=\"\",\"\",CONCATENATE(Table_PrintPI[[#This Row],[Line No.]],\" - \",Table_SummaryPI[[#This Row],[MeasureName]]))","v":""},{"$f":"IF(Table_SummaryPI[[#This Row],[Manufacturer]]<>\"\",CONCATENATE(Table_SummaryPI[[#This Row],[Manufacturer]],\"/\",Table_SummaryPI[[#This Row],[Model'#]]),\"\")","v":""},{"$f":"IF(Table_SummaryPI[[#This Row],[Serial'#]]<>\"\",Table_SummaryPI[[#This Row],[Serial'#]],\"\")","v":""},{"$f":"IF(Table_SummaryPI[[#This Row],[Quantity]]<>\"\",Table_SummaryPI[[#This Row],[Quantity]],\"\")","v":""},{"$f":"IF(Table_SummaryPI[[#This Row],[BaselinekWh]]<>\"\",Table_SummaryPI[[#This Row],[BaselinekWh]],\"\")","v":""},{"$f":"IF(Table_SummaryPI[[#This Row],[BaselinekW]]<>\"\",Table_SummaryPI[[#This Row],[BaselinekW]],\"\")","v":""},{"$f":"IF(Table_SummaryPI[[#This Row],[ProposedkWh]]<>\"\",Table_SummaryPI[[#This Row],[ProposedkWh]],\"\")","v":""},{"$f":"IF(Table_SummaryPI[[#This Row],[ProposedkW]]<>\"\",Table_SummaryPI[[#This Row],[ProposedkW]],\"\")","v":""},{"$f":"IF(Table_SummaryPI[[#This Row],[Notes]]<>\"\",Table_SummaryPI[[#This Row],[Notes]],\"\")","v":""},{"$f":"IF(Table_SummaryPI[[#This Row],[Incentive_Customer]]<>\"\",Table_SummaryPI[[#This Row],[Incentive_Customer]],0)","v":0},{"$f":"IF(Table_SummaryPI[[#This Row],[MeasureCost]]<>\"\",Table_SummaryPI[[#This Row],[MeasureCost]],0)","v":0},{"$f":"IF(Table_SummaryPI[[#This Row],[kWhSavings]]<>\"\",Table_SummaryPI[[#This Row],[kWhSavings]],0)","v":0},{"$f":"IF(Table_SummaryPI[[#This Row],[DemandSavingskW]]<>\"\",Table_SummaryPI[[#This Row],[DemandSavingskW]],0)","v":0}]
[{"$f":"Table_SummaryPI[[#This Row],[Line No.]]","v":""},{"$f":"IF(Table_PrintPI[[#This Row],[Line No.]]=\"\",\"\",CONCATENATE(Table_PrintPI[[#This Row],[Line No.]],\" - \",Table_SummaryPI[[#This Row],[MeasureName]]))","v":""},{"$f":"IF(Table_SummaryPI[[#This Row],[Manufacturer]]<>\"\",CONCATENATE(Table_SummaryPI[[#This Row],[Manufacturer]],\"/\",Table_SummaryPI[[#This Row],[Model'#]]),\"\")","v":""},{"$f":"IF(Table_SummaryPI[[#This Row],[Serial'#]]<>\"\",Table_SummaryPI[[#This Row],[Serial'#]],\"\")","v":""},{"$f":"IF(Table_SummaryPI[[#This Row],[Quantity]]<>\"\",Table_SummaryPI[[#This Row],[Quantity]],\"\")","v":""},{"$f":"IF(Table_SummaryPI[[#This Row],[BaselinekWh]]<>\"\",Table_SummaryPI[[#This Row],[BaselinekWh]],\"\")","v":""},{"$f":"IF(Table_SummaryPI[[#This Row],[BaselinekW]]<>\"\",Table_SummaryPI[[#This Row],[BaselinekW]],\"\")","v":""},{"$f":"IF(Table_SummaryPI[[#This Row],[ProposedkWh]]<>\"\",Table_SummaryPI[[#This Row],[ProposedkWh]],\"\")","v":""},{"$f":"IF(Table_SummaryPI[[#This Row],[ProposedkW]]<>\"\",Table_SummaryPI[[#This Row],[ProposedkW]],\"\")","v":""},{"$f":"IF(Table_SummaryPI[[#This Row],[Notes]]<>\"\",Table_SummaryPI[[#This Row],[Notes]],\"\")","v":""},{"$f":"IF(Table_SummaryPI[[#This Row],[Incentive_Customer]]<>\"\",Table_SummaryPI[[#This Row],[Incentive_Customer]],0)","v":0},{"$f":"IF(Table_SummaryPI[[#This Row],[MeasureCost]]<>\"\",Table_SummaryPI[[#This Row],[MeasureCost]],0)","v":0},{"$f":"IF(Table_SummaryPI[[#This Row],[kWhSavings]]<>\"\",Table_SummaryPI[[#This Row],[kWhSavings]],0)","v":0},{"$f":"IF(Table_SummaryPI[[#This Row],[DemandSavingskW]]<>\"\",Table_SummaryPI[[#This Row],[DemandSavingskW]],0)","v":0}]
[{"$f":"Table_SummaryPI[[#This Row],[Line No.]]","v":""},{"$f":"IF(Table_PrintPI[[#This Row],[Line No.]]=\"\",\"\",CONCATENATE(Table_PrintPI[[#This Row],[Line No.]],\" - \",Table_SummaryPI[[#This Row],[MeasureName]]))","v":""},{"$f":"IF(Table_SummaryPI[[#This Row],[Manufacturer]]<>\"\",CONCATENATE(Table_SummaryPI[[#This Row],[Manufacturer]],\"/\",Table_SummaryPI[[#This Row],[Model'#]]),\"\")","v":""},{"$f":"IF(Table_SummaryPI[[#This Row],[Serial'#]]<>\"\",Table_SummaryPI[[#This Row],[Serial'#]],\"\")","v":""},{"$f":"IF(Table_SummaryPI[[#This Row],[Quantity]]<>\"\",Table_SummaryPI[[#This Row],[Quantity]],\"\")","v":""},{"$f":"IF(Table_SummaryPI[[#This Row],[BaselinekWh]]<>\"\",Table_SummaryPI[[#This Row],[BaselinekWh]],\"\")","v":""},{"$f":"IF(Table_SummaryPI[[#This Row],[BaselinekW]]<>\"\",Table_SummaryPI[[#This Row],[BaselinekW]],\"\")","v":""},{"$f":"IF(Table_SummaryPI[[#This Row],[ProposedkWh]]<>\"\",Table_SummaryPI[[#This Row],[ProposedkWh]],\"\")","v":""},{"$f":"IF(Table_SummaryPI[[#This Row],[ProposedkW]]<>\"\",Table_SummaryPI[[#This Row],[ProposedkW]],\"\")","v":""},{"$f":"IF(Table_SummaryPI[[#This Row],[Notes]]<>\"\",Table_SummaryPI[[#This Row],[Notes]],\"\")","v":""},{"$f":"IF(Table_SummaryPI[[#This Row],[Incentive_Customer]]<>\"\",Table_SummaryPI[[#This Row],[Incentive_Customer]],0)","v":0},{"$f":"IF(Table_SummaryPI[[#This Row],[MeasureCost]]<>\"\",Table_SummaryPI[[#This Row],[MeasureCost]],0)","v":0},{"$f":"IF(Table_SummaryPI[[#This Row],[kWhSavings]]<>\"\",Table_SummaryPI[[#This Row],[kWhSavings]],0)","v":0},{"$f":"IF(Table_SummaryPI[[#This Row],[DemandSavingskW]]<>\"\",Table_SummaryPI[[#This Row],[DemandSavingskW]],0)","v":0}]
[{"$f":"Table_SummaryPI[[#This Row],[Line No.]]","v":""},{"$f":"IF(Table_PrintPI[[#This Row],[Line No.]]=\"\",\"\",CONCATENATE(Table_PrintPI[[#This Row],[Line No.]],\" - \",Table_SummaryPI[[#This Row],[MeasureName]]))","v":""},{"$f":"IF(Table_SummaryPI[[#This Row],[Manufacturer]]<>\"\",CONCATENATE(Table_SummaryPI[[#This Row],[Manufacturer]],\"/\",Table_SummaryPI[[#This Row],[Model'#]]),\"\")","v":""},{"$f":"IF(Table_SummaryPI[[#This Row],[Serial'#]]<>\"\",Table_SummaryPI[[#This Row],[Serial'#]],\"\")","v":""},{"$f":"IF(Table_SummaryPI[[#This Row],[Quantity]]<>\"\",Table_SummaryPI[[#This Row],[Quantity]],\"\")","v":""},{"$f":"IF(Table_SummaryPI[[#This Row],[BaselinekWh]]<>\"\",Table_SummaryPI[[#This Row],[BaselinekWh]],\"\")","v":""},{"$f":"IF(Table_SummaryPI[[#This Row],[BaselinekW]]<>\"\",Table_SummaryPI[[#This Row],[BaselinekW]],\"\")","v":""},{"$f":"IF(Table_SummaryPI[[#This Row],[ProposedkWh]]<>\"\",Table_SummaryPI[[#This Row],[ProposedkWh]],\"\")","v":""},{"$f":"IF(Table_SummaryPI[[#This Row],[ProposedkW]]<>\"\",Table_SummaryPI[[#This Row],[ProposedkW]],\"\")","v":""},{"$f":"IF(Table_SummaryPI[[#This Row],[Notes]]<>\"\",Table_SummaryPI[[#This Row],[Notes]],\"\")","v":""},{"$f":"IF(Table_SummaryPI[[#This Row],[Incentive_Customer]]<>\"\",Table_SummaryPI[[#This Row],[Incentive_Customer]],0)","v":0},{"$f":"IF(Table_SummaryPI[[#This Row],[MeasureCost]]<>\"\",Table_SummaryPI[[#This Row],[MeasureCost]],0)","v":0},{"$f":"IF(Table_SummaryPI[[#This Row],[kWhSavings]]<>\"\",Table_SummaryPI[[#This Row],[kWhSavings]],0)","v":0},{"$f":"IF(Table_SummaryPI[[#This Row],[DemandSavingskW]]<>\"\",Table_SummaryPI[[#This Row],[DemandSavingskW]],0)","v":0}]
[{"$f":"Table_SummaryPI[[#This Row],[Line No.]]","v":""},{"$f":"IF(Table_PrintPI[[#This Row],[Line No.]]=\"\",\"\",CONCATENATE(Table_PrintPI[[#This Row],[Line No.]],\" - \",Table_SummaryPI[[#This Row],[MeasureName]]))","v":""},{"$f":"IF(Table_SummaryPI[[#This Row],[Manufacturer]]<>\"\",CONCATENATE(Table_SummaryPI[[#This Row],[Manufacturer]],\"/\",Table_SummaryPI[[#This Row],[Model'#]]),\"\")","v":""},{"$f":"IF(Table_SummaryPI[[#This Row],[Serial'#]]<>\"\",Table_SummaryPI[[#This Row],[Serial'#]],\"\")","v":""},{"$f":"IF(Table_SummaryPI[[#This Row],[Quantity]]<>\"\",Table_SummaryPI[[#This Row],[Quantity]],\"\")","v":""},{"$f":"IF(Table_SummaryPI[[#This Row],[BaselinekWh]]<>\"\",Table_SummaryPI[[#This Row],[BaselinekWh]],\"\")","v":""},{"$f":"IF(Table_SummaryPI[[#This Row],[BaselinekW]]<>\"\",Table_SummaryPI[[#This Row],[BaselinekW]],\"\")","v":""},{"$f":"IF(Table_SummaryPI[[#This Row],[ProposedkWh]]<>\"\",Table_SummaryPI[[#This Row],[ProposedkWh]],\"\")","v":""},{"$f":"IF(Table_SummaryPI[[#This Row],[ProposedkW]]<>\"\",Table_SummaryPI[[#This Row],[ProposedkW]],\"\")","v":""},{"$f":"IF(Table_SummaryPI[[#This Row],[Notes]]<>\"\",Table_SummaryPI[[#This Row],[Notes]],\"\")","v":""},{"$f":"IF(Table_SummaryPI[[#This Row],[Incentive_Customer]]<>\"\",Table_SummaryPI[[#This Row],[Incentive_Customer]],0)","v":0},{"$f":"IF(Table_SummaryPI[[#This Row],[MeasureCost]]<>\"\",Table_SummaryPI[[#This Row],[MeasureCost]],0)","v":0},{"$f":"IF(Table_SummaryPI[[#This Row],[kWhSavings]]<>\"\",Table_SummaryPI[[#This Row],[kWhSavings]],0)","v":0},{"$f":"IF(Table_SummaryPI[[#This Row],[DemandSavingskW]]<>\"\",Table_SummaryPI[[#This Row],[DemandSavingskW]],0)","v":0}]
[{"$f":"Table_SummaryPI[[#This Row],[Line No.]]","v":""},{"$f":"IF(Table_PrintPI[[#This Row],[Line No.]]=\"\",\"\",CONCATENATE(Table_PrintPI[[#This Row],[Line No.]],\" - \",Table_SummaryPI[[#This Row],[MeasureName]]))","v":""},{"$f":"IF(Table_SummaryPI[[#This Row],[Manufacturer]]<>\"\",CONCATENATE(Table_SummaryPI[[#This Row],[Manufacturer]],\"/\",Table_SummaryPI[[#This Row],[Model'#]]),\"\")","v":""},{"$f":"IF(Table_SummaryPI[[#This Row],[Serial'#]]<>\"\",Table_SummaryPI[[#This Row],[Serial'#]],\"\")","v":""},{"$f":"IF(Table_SummaryPI[[#This Row],[Quantity]]<>\"\",Table_SummaryPI[[#This Row],[Quantity]],\"\")","v":""},{"$f":"IF(Table_SummaryPI[[#This Row],[BaselinekWh]]<>\"\",Table_SummaryPI[[#This Row],[BaselinekWh]],\"\")","v":""},{"$f":"IF(Table_SummaryPI[[#This Row],[BaselinekW]]<>\"\",Table_SummaryPI[[#This Row],[BaselinekW]],\"\")","v":""},{"$f":"IF(Table_SummaryPI[[#This Row],[ProposedkWh]]<>\"\",Table_SummaryPI[[#This Row],[ProposedkWh]],\"\")","v":""},{"$f":"IF(Table_SummaryPI[[#This Row],[ProposedkW]]<>\"\",Table_SummaryPI[[#This Row],[ProposedkW]],\"\")","v":""},{"$f":"IF(Table_SummaryPI[[#This Row],[Notes]]<>\"\",Table_SummaryPI[[#This Row],[Notes]],\"\")","v":""},{"$f":"IF(Table_SummaryPI[[#This Row],[Incentive_Customer]]<>\"\",Table_SummaryPI[[#This Row],[Incentive_Customer]],0)","v":0},{"$f":"IF(Table_SummaryPI[[#This Row],[MeasureCost]]<>\"\",Table_SummaryPI[[#This Row],[MeasureCost]],0)","v":0},{"$f":"IF(Table_SummaryPI[[#This Row],[kWhSavings]]<>\"\",Table_SummaryPI[[#This Row],[kWhSavings]],0)","v":0},{"$f":"IF(Table_SummaryPI[[#This Row],[DemandSavingskW]]<>\"\",Table_SummaryPI[[#This Row],[DemandSavingskW]],0)","v":0}]
[{"$f":"Table_SummaryPI[[#This Row],[Line No.]]","v":""},{"$f":"IF(Table_PrintPI[[#This Row],[Line No.]]=\"\",\"\",CONCATENATE(Table_PrintPI[[#This Row],[Line No.]],\" - \",Table_SummaryPI[[#This Row],[MeasureName]]))","v":""},{"$f":"IF(Table_SummaryPI[[#This Row],[Manufacturer]]<>\"\",CONCATENATE(Table_SummaryPI[[#This Row],[Manufacturer]],\"/\",Table_SummaryPI[[#This Row],[Model'#]]),\"\")","v":""},{"$f":"IF(Table_SummaryPI[[#This Row],[Serial'#]]<>\"\",Table_SummaryPI[[#This Row],[Serial'#]],\"\")","v":""},{"$f":"IF(Table_SummaryPI[[#This Row],[Quantity]]<>\"\",Table_SummaryPI[[#This Row],[Quantity]],\"\")","v":""},{"$f":"IF(Table_SummaryPI[[#This Row],[BaselinekWh]]<>\"\",Table_SummaryPI[[#This Row],[BaselinekWh]],\"\")","v":""},{"$f":"IF(Table_SummaryPI[[#This Row],[BaselinekW]]<>\"\",Table_SummaryPI[[#This Row],[BaselinekW]],\"\")","v":""},{"$f":"IF(Table_SummaryPI[[#This Row],[ProposedkWh]]<>\"\",Table_SummaryPI[[#This Row],[ProposedkWh]],\"\")","v":""},{"$f":"IF(Table_SummaryPI[[#This Row],[ProposedkW]]<>\"\",Table_SummaryPI[[#This Row],[ProposedkW]],\"\")","v":""},{"$f":"IF(Table_SummaryPI[[#This Row],[Notes]]<>\"\",Table_SummaryPI[[#This Row],[Notes]],\"\")","v":""},{"$f":"IF(Table_SummaryPI[[#This Row],[Incentive_Customer]]<>\"\",Table_SummaryPI[[#This Row],[Incentive_Customer]],0)","v":0},{"$f":"IF(Table_SummaryPI[[#This Row],[MeasureCost]]<>\"\",Table_SummaryPI[[#This Row],[MeasureCost]],0)","v":0},{"$f":"IF(Table_SummaryPI[[#This Row],[kWhSavings]]<>\"\",Table_SummaryPI[[#This Row],[kWhSavings]],0)","v":0},{"$f":"IF(Table_SummaryPI[[#This Row],[DemandSavingskW]]<>\"\",Table_SummaryPI[[#This Row],[DemandSavingskW]],0)","v":0}]
[{"$f":"Table_SummaryPI[[#This Row],[Line No.]]","v":""},{"$f":"IF(Table_PrintPI[[#This Row],[Line No.]]=\"\",\"\",CONCATENATE(Table_PrintPI[[#This Row],[Line No.]],\" - \",Table_SummaryPI[[#This Row],[MeasureName]]))","v":""},{"$f":"IF(Table_SummaryPI[[#This Row],[Manufacturer]]<>\"\",CONCATENATE(Table_SummaryPI[[#This Row],[Manufacturer]],\"/\",Table_SummaryPI[[#This Row],[Model'#]]),\"\")","v":""},{"$f":"IF(Table_SummaryPI[[#This Row],[Serial'#]]<>\"\",Table_SummaryPI[[#This Row],[Serial'#]],\"\")","v":""},{"$f":"IF(Table_SummaryPI[[#This Row],[Quantity]]<>\"\",Table_SummaryPI[[#This Row],[Quantity]],\"\")","v":""},{"$f":"IF(Table_SummaryPI[[#This Row],[BaselinekWh]]<>\"\",Table_SummaryPI[[#This Row],[BaselinekWh]],\"\")","v":""},{"$f":"IF(Table_SummaryPI[[#This Row],[BaselinekW]]<>\"\",Table_SummaryPI[[#This Row],[BaselinekW]],\"\")","v":""},{"$f":"IF(Table_SummaryPI[[#This Row],[ProposedkWh]]<>\"\",Table_SummaryPI[[#This Row],[ProposedkWh]],\"\")","v":""},{"$f":"IF(Table_SummaryPI[[#This Row],[ProposedkW]]<>\"\",Table_SummaryPI[[#This Row],[ProposedkW]],\"\")","v":""},{"$f":"IF(Table_SummaryPI[[#This Row],[Notes]]<>\"\",Table_SummaryPI[[#This Row],[Notes]],\"\")","v":""},{"$f":"IF(Table_SummaryPI[[#This Row],[Incentive_Customer]]<>\"\",Table_SummaryPI[[#This Row],[Incentive_Customer]],0)","v":0},{"$f":"IF(Table_SummaryPI[[#This Row],[MeasureCost]]<>\"\",Table_SummaryPI[[#This Row],[MeasureCost]],0)","v":0},{"$f":"IF(Table_SummaryPI[[#This Row],[kWhSavings]]<>\"\",Table_SummaryPI[[#This Row],[kWhSavings]],0)","v":0},{"$f":"IF(Table_SummaryPI[[#This Row],[DemandSavingskW]]<>\"\",Table_SummaryPI[[#This Row],[DemandSavingskW]],0)","v":0}]
[{"$f":"Table_SummaryPI[[#This Row],[Line No.]]","v":""},{"$f":"IF(Table_PrintPI[[#This Row],[Line No.]]=\"\",\"\",CONCATENATE(Table_PrintPI[[#This Row],[Line No.]],\" - \",Table_SummaryPI[[#This Row],[MeasureName]]))","v":""},{"$f":"IF(Table_SummaryPI[[#This Row],[Manufacturer]]<>\"\",CONCATENATE(Table_SummaryPI[[#This Row],[Manufacturer]],\"/\",Table_SummaryPI[[#This Row],[Model'#]]),\"\")","v":""},{"$f":"IF(Table_SummaryPI[[#This Row],[Serial'#]]<>\"\",Table_SummaryPI[[#This Row],[Serial'#]],\"\")","v":""},{"$f":"IF(Table_SummaryPI[[#This Row],[Quantity]]<>\"\",Table_SummaryPI[[#This Row],[Quantity]],\"\")","v":""},{"$f":"IF(Table_SummaryPI[[#This Row],[BaselinekWh]]<>\"\",Table_SummaryPI[[#This Row],[BaselinekWh]],\"\")","v":""},{"$f":"IF(Table_SummaryPI[[#This Row],[BaselinekW]]<>\"\",Table_SummaryPI[[#This Row],[BaselinekW]],\"\")","v":""},{"$f":"IF(Table_SummaryPI[[#This Row],[ProposedkWh]]<>\"\",Table_SummaryPI[[#This Row],[ProposedkWh]],\"\")","v":""},{"$f":"IF(Table_SummaryPI[[#This Row],[ProposedkW]]<>\"\",Table_SummaryPI[[#This Row],[ProposedkW]],\"\")","v":""},{"$f":"IF(Table_SummaryPI[[#This Row],[Notes]]<>\"\",Table_SummaryPI[[#This Row],[Notes]],\"\")","v":""},{"$f":"IF(Table_SummaryPI[[#This Row],[Incentive_Customer]]<>\"\",Table_SummaryPI[[#This Row],[Incentive_Customer]],0)","v":0},{"$f":"IF(Table_SummaryPI[[#This Row],[MeasureCost]]<>\"\",Table_SummaryPI[[#This Row],[MeasureCost]],0)","v":0},{"$f":"IF(Table_SummaryPI[[#This Row],[kWhSavings]]<>\"\",Table_SummaryPI[[#This Row],[kWhSavings]],0)","v":0},{"$f":"IF(Table_SummaryPI[[#This Row],[DemandSavingskW]]<>\"\",Table_SummaryPI[[#This Row],[DemandSavingskW]],0)","v":0}]
[{"$f":"Table_SummaryPI[[#This Row],[Line No.]]","v":""},{"$f":"IF(Table_PrintPI[[#This Row],[Line No.]]=\"\",\"\",CONCATENATE(Table_PrintPI[[#This Row],[Line No.]],\" - \",Table_SummaryPI[[#This Row],[MeasureName]]))","v":""},{"$f":"IF(Table_SummaryPI[[#This Row],[Manufacturer]]<>\"\",CONCATENATE(Table_SummaryPI[[#This Row],[Manufacturer]],\"/\",Table_SummaryPI[[#This Row],[Model'#]]),\"\")","v":""},{"$f":"IF(Table_SummaryPI[[#This Row],[Serial'#]]<>\"\",Table_SummaryPI[[#This Row],[Serial'#]],\"\")","v":""},{"$f":"IF(Table_SummaryPI[[#This Row],[Quantity]]<>\"\",Table_SummaryPI[[#This Row],[Quantity]],\"\")","v":""},{"$f":"IF(Table_SummaryPI[[#This Row],[BaselinekWh]]<>\"\",Table_SummaryPI[[#This Row],[BaselinekWh]],\"\")","v":""},{"$f":"IF(Table_SummaryPI[[#This Row],[BaselinekW]]<>\"\",Table_SummaryPI[[#This Row],[BaselinekW]],\"\")","v":""},{"$f":"IF(Table_SummaryPI[[#This Row],[ProposedkWh]]<>\"\",Table_SummaryPI[[#This Row],[ProposedkWh]],\"\")","v":""},{"$f":"IF(Table_SummaryPI[[#This Row],[ProposedkW]]<>\"\",Table_SummaryPI[[#This Row],[ProposedkW]],\"\")","v":""},{"$f":"IF(Table_SummaryPI[[#This Row],[Notes]]<>\"\",Table_SummaryPI[[#This Row],[Notes]],\"\")","v":""},{"$f":"IF(Table_SummaryPI[[#This Row],[Incentive_Customer]]<>\"\",Table_SummaryPI[[#This Row],[Incentive_Customer]],0)","v":0},{"$f":"IF(Table_SummaryPI[[#This Row],[MeasureCost]]<>\"\",Table_SummaryPI[[#This Row],[MeasureCost]],0)","v":0},{"$f":"IF(Table_SummaryPI[[#This Row],[kWhSavings]]<>\"\",Table_SummaryPI[[#This Row],[kWhSavings]],0)","v":0},{"$f":"IF(Table_SummaryPI[[#This Row],[DemandSavingskW]]<>\"\",Table_SummaryPI[[#This Row],[DemandSavingskW]],0)","v":0}]
[{"$f":"Table_SummaryPI[[#This Row],[Line No.]]","v":""},{"$f":"IF(Table_PrintPI[[#This Row],[Line No.]]=\"\",\"\",CONCATENATE(Table_PrintPI[[#This Row],[Line No.]],\" - \",Table_SummaryPI[[#This Row],[MeasureName]]))","v":""},{"$f":"IF(Table_SummaryPI[[#This Row],[Manufacturer]]<>\"\",CONCATENATE(Table_SummaryPI[[#This Row],[Manufacturer]],\"/\",Table_SummaryPI[[#This Row],[Model'#]]),\"\")","v":""},{"$f":"IF(Table_SummaryPI[[#This Row],[Serial'#]]<>\"\",Table_SummaryPI[[#This Row],[Serial'#]],\"\")","v":""},{"$f":"IF(Table_SummaryPI[[#This Row],[Quantity]]<>\"\",Table_SummaryPI[[#This Row],[Quantity]],\"\")","v":""},{"$f":"IF(Table_SummaryPI[[#This Row],[BaselinekWh]]<>\"\",Table_SummaryPI[[#This Row],[BaselinekWh]],\"\")","v":""},{"$f":"IF(Table_SummaryPI[[#This Row],[BaselinekW]]<>\"\",Table_SummaryPI[[#This Row],[BaselinekW]],\"\")","v":""},{"$f":"IF(Table_SummaryPI[[#This Row],[ProposedkWh]]<>\"\",Table_SummaryPI[[#This Row],[ProposedkWh]],\"\")","v":""},{"$f":"IF(Table_SummaryPI[[#This Row],[ProposedkW]]<>\"\",Table_SummaryPI[[#This Row],[ProposedkW]],\"\")","v":""},{"$f":"IF(Table_SummaryPI[[#This Row],[Notes]]<>\"\",Table_SummaryPI[[#This Row],[Notes]],\"\")","v":""},{"$f":"IF(Table_SummaryPI[[#This Row],[Incentive_Customer]]<>\"\",Table_SummaryPI[[#This Row],[Incentive_Customer]],0)","v":0},{"$f":"IF(Table_SummaryPI[[#This Row],[MeasureCost]]<>\"\",Table_SummaryPI[[#This Row],[MeasureCost]],0)","v":0},{"$f":"IF(Table_SummaryPI[[#This Row],[kWhSavings]]<>\"\",Table_SummaryPI[[#This Row],[kWhSavings]],0)","v":0},{"$f":"IF(Table_SummaryPI[[#This Row],[DemandSavingskW]]<>\"\",Table_SummaryPI[[#This Row],[DemandSavingskW]],0)","v":0}]
[{"$f":"Table_SummaryPI[[#This Row],[Line No.]]","v":""},{"$f":"IF(Table_PrintPI[[#This Row],[Line No.]]=\"\",\"\",CONCATENATE(Table_PrintPI[[#This Row],[Line No.]],\" - \",Table_SummaryPI[[#This Row],[MeasureName]]))","v":""},{"$f":"IF(Table_SummaryPI[[#This Row],[Manufacturer]]<>\"\",CONCATENATE(Table_SummaryPI[[#This Row],[Manufacturer]],\"/\",Table_SummaryPI[[#This Row],[Model'#]]),\"\")","v":""},{"$f":"IF(Table_SummaryPI[[#This Row],[Serial'#]]<>\"\",Table_SummaryPI[[#This Row],[Serial'#]],\"\")","v":""},{"$f":"IF(Table_SummaryPI[[#This Row],[Quantity]]<>\"\",Table_SummaryPI[[#This Row],[Quantity]],\"\")","v":""},{"$f":"IF(Table_SummaryPI[[#This Row],[BaselinekWh]]<>\"\",Table_SummaryPI[[#This Row],[BaselinekWh]],\"\")","v":""},{"$f":"IF(Table_SummaryPI[[#This Row],[BaselinekW]]<>\"\",Table_SummaryPI[[#This Row],[BaselinekW]],\"\")","v":""},{"$f":"IF(Table_SummaryPI[[#This Row],[ProposedkWh]]<>\"\",Table_SummaryPI[[#This Row],[ProposedkWh]],\"\")","v":""},{"$f":"IF(Table_SummaryPI[[#This Row],[ProposedkW]]<>\"\",Table_SummaryPI[[#This Row],[ProposedkW]],\"\")","v":""},{"$f":"IF(Table_SummaryPI[[#This Row],[Notes]]<>\"\",Table_SummaryPI[[#This Row],[Notes]],\"\")","v":""},{"$f":"IF(Table_SummaryPI[[#This Row],[Incentive_Customer]]<>\"\",Table_SummaryPI[[#This Row],[Incentive_Customer]],0)","v":0},{"$f":"IF(Table_SummaryPI[[#This Row],[MeasureCost]]<>\"\",Table_SummaryPI[[#This Row],[MeasureCost]],0)","v":0},{"$f":"IF(Table_SummaryPI[[#This Row],[kWhSavings]]<>\"\",Table_SummaryPI[[#This Row],[kWhSavings]],0)","v":0},{"$f":"IF(Table_SummaryPI[[#This Row],[DemandSavingskW]]<>\"\",Table_SummaryPI[[#This Row],[DemandSavingskW]],0)","v":0}]
[{"$f":"Table_SummaryPI[[#This Row],[Line No.]]","v":""},{"$f":"IF(Table_PrintPI[[#This Row],[Line No.]]=\"\",\"\",CONCATENATE(Table_PrintPI[[#This Row],[Line No.]],\" - \",Table_SummaryPI[[#This Row],[MeasureName]]))","v":""},{"$f":"IF(Table_SummaryPI[[#This Row],[Manufacturer]]<>\"\",CONCATENATE(Table_SummaryPI[[#This Row],[Manufacturer]],\"/\",Table_SummaryPI[[#This Row],[Model'#]]),\"\")","v":""},{"$f":"IF(Table_SummaryPI[[#This Row],[Serial'#]]<>\"\",Table_SummaryPI[[#This Row],[Serial'#]],\"\")","v":""},{"$f":"IF(Table_SummaryPI[[#This Row],[Quantity]]<>\"\",Table_SummaryPI[[#This Row],[Quantity]],\"\")","v":""},{"$f":"IF(Table_SummaryPI[[#This Row],[BaselinekWh]]<>\"\",Table_SummaryPI[[#This Row],[BaselinekWh]],\"\")","v":""},{"$f":"IF(Table_SummaryPI[[#This Row],[BaselinekW]]<>\"\",Table_SummaryPI[[#This Row],[BaselinekW]],\"\")","v":""},{"$f":"IF(Table_SummaryPI[[#This Row],[ProposedkWh]]<>\"\",Table_SummaryPI[[#This Row],[ProposedkWh]],\"\")","v":""},{"$f":"IF(Table_SummaryPI[[#This Row],[ProposedkW]]<>\"\",Table_SummaryPI[[#This Row],[ProposedkW]],\"\")","v":""},{"$f":"IF(Table_SummaryPI[[#This Row],[Notes]]<>\"\",Table_SummaryPI[[#This Row],[Notes]],\"\")","v":""},{"$f":"IF(Table_SummaryPI[[#This Row],[Incentive_Customer]]<>\"\",Table_SummaryPI[[#This Row],[Incentive_Customer]],0)","v":0},{"$f":"IF(Table_SummaryPI[[#This Row],[MeasureCost]]<>\"\",Table_SummaryPI[[#This Row],[MeasureCost]],0)","v":0},{"$f":"IF(Table_SummaryPI[[#This Row],[kWhSavings]]<>\"\",Table_SummaryPI[[#This Row],[kWhSavings]],0)","v":0},{"$f":"IF(Table_SummaryPI[[#This Row],[DemandSavingskW]]<>\"\",Table_SummaryPI[[#This Row],[DemandSavingskW]],0)","v":0}]
[{"$f":"Table_SummaryPI[[#This Row],[Line No.]]","v":""},{"$f":"IF(Table_PrintPI[[#This Row],[Line No.]]=\"\",\"\",CONCATENATE(Table_PrintPI[[#This Row],[Line No.]],\" - \",Table_SummaryPI[[#This Row],[MeasureName]]))","v":""},{"$f":"IF(Table_SummaryPI[[#This Row],[Manufacturer]]<>\"\",CONCATENATE(Table_SummaryPI[[#This Row],[Manufacturer]],\"/\",Table_SummaryPI[[#This Row],[Model'#]]),\"\")","v":""},{"$f":"IF(Table_SummaryPI[[#This Row],[Serial'#]]<>\"\",Table_SummaryPI[[#This Row],[Serial'#]],\"\")","v":""},{"$f":"IF(Table_SummaryPI[[#This Row],[Quantity]]<>\"\",Table_SummaryPI[[#This Row],[Quantity]],\"\")","v":""},{"$f":"IF(Table_SummaryPI[[#This Row],[BaselinekWh]]<>\"\",Table_SummaryPI[[#This Row],[BaselinekWh]],\"\")","v":""},{"$f":"IF(Table_SummaryPI[[#This Row],[BaselinekW]]<>\"\",Table_SummaryPI[[#This Row],[BaselinekW]],\"\")","v":""},{"$f":"IF(Table_SummaryPI[[#This Row],[ProposedkWh]]<>\"\",Table_SummaryPI[[#This Row],[ProposedkWh]],\"\")","v":""},{"$f":"IF(Table_SummaryPI[[#This Row],[ProposedkW]]<>\"\",Table_SummaryPI[[#This Row],[ProposedkW]],\"\")","v":""},{"$f":"IF(Table_SummaryPI[[#This Row],[Notes]]<>\"\",Table_SummaryPI[[#This Row],[Notes]],\"\")","v":""},{"$f":"IF(Table_SummaryPI[[#This Row],[Incentive_Customer]]<>\"\",Table_SummaryPI[[#This Row],[Incentive_Customer]],0)","v":0},{"$f":"IF(Table_SummaryPI[[#This Row],[MeasureCost]]<>\"\",Table_SummaryPI[[#This Row],[MeasureCost]],0)","v":0},{"$f":"IF(Table_SummaryPI[[#This Row],[kWhSavings]]<>\"\",Table_SummaryPI[[#This Row],[kWhSavings]],0)","v":0},{"$f":"IF(Table_SummaryPI[[#This Row],[DemandSavingskW]]<>\"\",Table_SummaryPI[[#This Row],[DemandSavingskW]],0)","v":0}]
[{"$f":"Table_SummaryPI[[#This Row],[Line No.]]","v":""},{"$f":"IF(Table_PrintPI[[#This Row],[Line No.]]=\"\",\"\",CONCATENATE(Table_PrintPI[[#This Row],[Line No.]],\" - \",Table_SummaryPI[[#This Row],[MeasureName]]))","v":""},{"$f":"IF(Table_SummaryPI[[#This Row],[Manufacturer]]<>\"\",CONCATENATE(Table_SummaryPI[[#This Row],[Manufacturer]],\"/\",Table_SummaryPI[[#This Row],[Model'#]]),\"\")","v":""},{"$f":"IF(Table_SummaryPI[[#This Row],[Serial'#]]<>\"\",Table_SummaryPI[[#This Row],[Serial'#]],\"\")","v":""},{"$f":"IF(Table_SummaryPI[[#This Row],[Quantity]]<>\"\",Table_SummaryPI[[#This Row],[Quantity]],\"\")","v":""},{"$f":"IF(Table_SummaryPI[[#This Row],[BaselinekWh]]<>\"\",Table_SummaryPI[[#This Row],[BaselinekWh]],\"\")","v":""},{"$f":"IF(Table_SummaryPI[[#This Row],[BaselinekW]]<>\"\",Table_SummaryPI[[#This Row],[BaselinekW]],\"\")","v":""},{"$f":"IF(Table_SummaryPI[[#This Row],[ProposedkWh]]<>\"\",Table_SummaryPI[[#This Row],[ProposedkWh]],\"\")","v":""},{"$f":"IF(Table_SummaryPI[[#This Row],[ProposedkW]]<>\"\",Table_SummaryPI[[#This Row],[ProposedkW]],\"\")","v":""},{"$f":"IF(Table_SummaryPI[[#This Row],[Notes]]<>\"\",Table_SummaryPI[[#This Row],[Notes]],\"\")","v":""},{"$f":"IF(Table_SummaryPI[[#This Row],[Incentive_Customer]]<>\"\",Table_SummaryPI[[#This Row],[Incentive_Customer]],0)","v":0},{"$f":"IF(Table_SummaryPI[[#This Row],[MeasureCost]]<>\"\",Table_SummaryPI[[#This Row],[MeasureCost]],0)","v":0},{"$f":"IF(Table_SummaryPI[[#This Row],[kWhSavings]]<>\"\",Table_SummaryPI[[#This Row],[kWhSavings]],0)","v":0},{"$f":"IF(Table_SummaryPI[[#This Row],[DemandSavingskW]]<>\"\",Table_SummaryPI[[#This Row],[DemandSavingskW]],0)","v":0}]
[{"$f":"Table_SummaryPI[[#This Row],[Line No.]]","v":""},{"$f":"IF(Table_PrintPI[[#This Row],[Line No.]]=\"\",\"\",CONCATENATE(Table_PrintPI[[#This Row],[Line No.]],\" - \",Table_SummaryPI[[#This Row],[MeasureName]]))","v":""},{"$f":"IF(Table_SummaryPI[[#This Row],[Manufacturer]]<>\"\",CONCATENATE(Table_SummaryPI[[#This Row],[Manufacturer]],\"/\",Table_SummaryPI[[#This Row],[Model'#]]),\"\")","v":""},{"$f":"IF(Table_SummaryPI[[#This Row],[Serial'#]]<>\"\",Table_SummaryPI[[#This Row],[Serial'#]],\"\")","v":""},{"$f":"IF(Table_SummaryPI[[#This Row],[Quantity]]<>\"\",Table_SummaryPI[[#This Row],[Quantity]],\"\")","v":""},{"$f":"IF(Table_SummaryPI[[#This Row],[BaselinekWh]]<>\"\",Table_SummaryPI[[#This Row],[BaselinekWh]],\"\")","v":""},{"$f":"IF(Table_SummaryPI[[#This Row],[BaselinekW]]<>\"\",Table_SummaryPI[[#This Row],[BaselinekW]],\"\")","v":""},{"$f":"IF(Table_SummaryPI[[#This Row],[ProposedkWh]]<>\"\",Table_SummaryPI[[#This Row],[ProposedkWh]],\"\")","v":""},{"$f":"IF(Table_SummaryPI[[#This Row],[ProposedkW]]<>\"\",Table_SummaryPI[[#This Row],[ProposedkW]],\"\")","v":""},{"$f":"IF(Table_SummaryPI[[#This Row],[Notes]]<>\"\",Table_SummaryPI[[#This Row],[Notes]],\"\")","v":""},{"$f":"IF(Table_SummaryPI[[#This Row],[Incentive_Customer]]<>\"\",Table_SummaryPI[[#This Row],[Incentive_Customer]],0)","v":0},{"$f":"IF(Table_SummaryPI[[#This Row],[MeasureCost]]<>\"\",Table_SummaryPI[[#This Row],[MeasureCost]],0)","v":0},{"$f":"IF(Table_SummaryPI[[#This Row],[kWhSavings]]<>\"\",Table_SummaryPI[[#This Row],[kWhSavings]],0)","v":0},{"$f":"IF(Table_SummaryPI[[#This Row],[DemandSavingskW]]<>\"\",Table_SummaryPI[[#This Row],[DemandSavingskW]],0)","v":0}]
[{"$f":"Table_SummaryPI[[#This Row],[Line No.]]","v":""},{"$f":"IF(Table_PrintPI[[#This Row],[Line No.]]=\"\",\"\",CONCATENATE(Table_PrintPI[[#This Row],[Line No.]],\" - \",Table_SummaryPI[[#This Row],[MeasureName]]))","v":""},{"$f":"IF(Table_SummaryPI[[#This Row],[Manufacturer]]<>\"\",CONCATENATE(Table_SummaryPI[[#This Row],[Manufacturer]],\"/\",Table_SummaryPI[[#This Row],[Model'#]]),\"\")","v":""},{"$f":"IF(Table_SummaryPI[[#This Row],[Serial'#]]<>\"\",Table_SummaryPI[[#This Row],[Serial'#]],\"\")","v":""},{"$f":"IF(Table_SummaryPI[[#This Row],[Quantity]]<>\"\",Table_SummaryPI[[#This Row],[Quantity]],\"\")","v":""},{"$f":"IF(Table_SummaryPI[[#This Row],[BaselinekWh]]<>\"\",Table_SummaryPI[[#This Row],[BaselinekWh]],\"\")","v":""},{"$f":"IF(Table_SummaryPI[[#This Row],[BaselinekW]]<>\"\",Table_SummaryPI[[#This Row],[BaselinekW]],\"\")","v":""},{"$f":"IF(Table_SummaryPI[[#This Row],[ProposedkWh]]<>\"\",Table_SummaryPI[[#This Row],[ProposedkWh]],\"\")","v":""},{"$f":"IF(Table_SummaryPI[[#This Row],[ProposedkW]]<>\"\",Table_SummaryPI[[#This Row],[ProposedkW]],\"\")","v":""},{"$f":"IF(Table_SummaryPI[[#This Row],[Notes]]<>\"\",Table_SummaryPI[[#This Row],[Notes]],\"\")","v":""},{"$f":"IF(Table_SummaryPI[[#This Row],[Incentive_Customer]]<>\"\",Table_SummaryPI[[#This Row],[Incentive_Customer]],0)","v":0},{"$f":"IF(Table_SummaryPI[[#This Row],[MeasureCost]]<>\"\",Table_SummaryPI[[#This Row],[MeasureCost]],0)","v":0},{"$f":"IF(Table_SummaryPI[[#This Row],[kWhSavings]]<>\"\",Table_SummaryPI[[#This Row],[kWhSavings]],0)","v":0},{"$f":"IF(Table_SummaryPI[[#This Row],[DemandSavingskW]]<>\"\",Table_SummaryPI[[#This Row],[DemandSavingskW]],0)","v":0}]
[{"$f":"Table_SummaryPI[[#This Row],[Line No.]]","v":""},{"$f":"IF(Table_PrintPI[[#This Row],[Line No.]]=\"\",\"\",CONCATENATE(Table_PrintPI[[#This Row],[Line No.]],\" - \",Table_SummaryPI[[#This Row],[MeasureName]]))","v":""},{"$f":"IF(Table_SummaryPI[[#This Row],[Manufacturer]]<>\"\",CONCATENATE(Table_SummaryPI[[#This Row],[Manufacturer]],\"/\",Table_SummaryPI[[#This Row],[Model'#]]),\"\")","v":""},{"$f":"IF(Table_SummaryPI[[#This Row],[Serial'#]]<>\"\",Table_SummaryPI[[#This Row],[Serial'#]],\"\")","v":""},{"$f":"IF(Table_SummaryPI[[#This Row],[Quantity]]<>\"\",Table_SummaryPI[[#This Row],[Quantity]],\"\")","v":""},{"$f":"IF(Table_SummaryPI[[#This Row],[BaselinekWh]]<>\"\",Table_SummaryPI[[#This Row],[BaselinekWh]],\"\")","v":""},{"$f":"IF(Table_SummaryPI[[#This Row],[BaselinekW]]<>\"\",Table_SummaryPI[[#This Row],[BaselinekW]],\"\")","v":""},{"$f":"IF(Table_SummaryPI[[#This Row],[ProposedkWh]]<>\"\",Table_SummaryPI[[#This Row],[ProposedkWh]],\"\")","v":""},{"$f":"IF(Table_SummaryPI[[#This Row],[ProposedkW]]<>\"\",Table_SummaryPI[[#This Row],[ProposedkW]],\"\")","v":""},{"$f":"IF(Table_SummaryPI[[#This Row],[Notes]]<>\"\",Table_SummaryPI[[#This Row],[Notes]],\"\")","v":""},{"$f":"IF(Table_SummaryPI[[#This Row],[Incentive_Customer]]<>\"\",Table_SummaryPI[[#This Row],[Incentive_Customer]],0)","v":0},{"$f":"IF(Table_SummaryPI[[#This Row],[MeasureCost]]<>\"\",Table_SummaryPI[[#This Row],[MeasureCost]],0)","v":0},{"$f":"IF(Table_SummaryPI[[#This Row],[kWhSavings]]<>\"\",Table_SummaryPI[[#This Row],[kWhSavings]],0)","v":0},{"$f":"IF(Table_SummaryPI[[#This Row],[DemandSavingskW]]<>\"\",Table_SummaryPI[[#This Row],[DemandSavingskW]],0)","v":0}]
[{"$f":"Table_SummaryPI[[#This Row],[Line No.]]","v":""},{"$f":"IF(Table_PrintPI[[#This Row],[Line No.]]=\"\",\"\",CONCATENATE(Table_PrintPI[[#This Row],[Line No.]],\" - \",Table_SummaryPI[[#This Row],[MeasureName]]))","v":""},{"$f":"IF(Table_SummaryPI[[#This Row],[Manufacturer]]<>\"\",CONCATENATE(Table_SummaryPI[[#This Row],[Manufacturer]],\"/\",Table_SummaryPI[[#This Row],[Model'#]]),\"\")","v":""},{"$f":"IF(Table_SummaryPI[[#This Row],[Serial'#]]<>\"\",Table_SummaryPI[[#This Row],[Serial'#]],\"\")","v":""},{"$f":"IF(Table_SummaryPI[[#This Row],[Quantity]]<>\"\",Table_SummaryPI[[#This Row],[Quantity]],\"\")","v":""},{"$f":"IF(Table_SummaryPI[[#This Row],[BaselinekWh]]<>\"\",Table_SummaryPI[[#This Row],[BaselinekWh]],\"\")","v":""},{"$f":"IF(Table_SummaryPI[[#This Row],[BaselinekW]]<>\"\",Table_SummaryPI[[#This Row],[BaselinekW]],\"\")","v":""},{"$f":"IF(Table_SummaryPI[[#This Row],[ProposedkWh]]<>\"\",Table_SummaryPI[[#This Row],[ProposedkWh]],\"\")","v":""},{"$f":"IF(Table_SummaryPI[[#This Row],[ProposedkW]]<>\"\",Table_SummaryPI[[#This Row],[ProposedkW]],\"\")","v":""},{"$f":"IF(Table_SummaryPI[[#This Row],[Notes]]<>\"\",Table_SummaryPI[[#This Row],[Notes]],\"\")","v":""},{"$f":"IF(Table_SummaryPI[[#This Row],[Incentive_Customer]]<>\"\",Table_SummaryPI[[#This Row],[Incentive_Customer]],0)","v":0},{"$f":"IF(Table_SummaryPI[[#This Row],[MeasureCost]]<>\"\",Table_SummaryPI[[#This Row],[MeasureCost]],0)","v":0},{"$f":"IF(Table_SummaryPI[[#This Row],[kWhSavings]]<>\"\",Table_SummaryPI[[#This Row],[kWhSavings]],0)","v":0},{"$f":"IF(Table_SummaryPI[[#This Row],[DemandSavingskW]]<>\"\",Table_SummaryPI[[#This Row],[DemandSavingskW]],0)","v":0}]
[{"$f":"Table_SummaryPI[[#This Row],[Line No.]]","v":""},{"$f":"IF(Table_PrintPI[[#This Row],[Line No.]]=\"\",\"\",CONCATENATE(Table_PrintPI[[#This Row],[Line No.]],\" - \",Table_SummaryPI[[#This Row],[MeasureName]]))","v":""},{"$f":"IF(Table_SummaryPI[[#This Row],[Manufacturer]]<>\"\",CONCATENATE(Table_SummaryPI[[#This Row],[Manufacturer]],\"/\",Table_SummaryPI[[#This Row],[Model'#]]),\"\")","v":""},{"$f":"IF(Table_SummaryPI[[#This Row],[Serial'#]]<>\"\",Table_SummaryPI[[#This Row],[Serial'#]],\"\")","v":""},{"$f":"IF(Table_SummaryPI[[#This Row],[Quantity]]<>\"\",Table_SummaryPI[[#This Row],[Quantity]],\"\")","v":""},{"$f":"IF(Table_SummaryPI[[#This Row],[BaselinekWh]]<>\"\",Table_SummaryPI[[#This Row],[BaselinekWh]],\"\")","v":""},{"$f":"IF(Table_SummaryPI[[#This Row],[BaselinekW]]<>\"\",Table_SummaryPI[[#This Row],[BaselinekW]],\"\")","v":""},{"$f":"IF(Table_SummaryPI[[#This Row],[ProposedkWh]]<>\"\",Table_SummaryPI[[#This Row],[ProposedkWh]],\"\")","v":""},{"$f":"IF(Table_SummaryPI[[#This Row],[ProposedkW]]<>\"\",Table_SummaryPI[[#This Row],[ProposedkW]],\"\")","v":""},{"$f":"IF(Table_SummaryPI[[#This Row],[Notes]]<>\"\",Table_SummaryPI[[#This Row],[Notes]],\"\")","v":""},{"$f":"IF(Table_SummaryPI[[#This Row],[Incentive_Customer]]<>\"\",Table_SummaryPI[[#This Row],[Incentive_Customer]],0)","v":0},{"$f":"IF(Table_SummaryPI[[#This Row],[MeasureCost]]<>\"\",Table_SummaryPI[[#This Row],[MeasureCost]],0)","v":0},{"$f":"IF(Table_SummaryPI[[#This Row],[kWhSavings]]<>\"\",Table_SummaryPI[[#This Row],[kWhSavings]],0)","v":0},{"$f":"IF(Table_SummaryPI[[#This Row],[DemandSavingskW]]<>\"\",Table_SummaryPI[[#This Row],[DemandSavingskW]],0)","v":0}]
[{"$f":"Table_SummaryPI[[#This Row],[Line No.]]","v":""},{"$f":"IF(Table_PrintPI[[#This Row],[Line No.]]=\"\",\"\",CONCATENATE(Table_PrintPI[[#This Row],[Line No.]],\" - \",Table_SummaryPI[[#This Row],[MeasureName]]))","v":""},{"$f":"IF(Table_SummaryPI[[#This Row],[Manufacturer]]<>\"\",CONCATENATE(Table_SummaryPI[[#This Row],[Manufacturer]],\"/\",Table_SummaryPI[[#This Row],[Model'#]]),\"\")","v":""},{"$f":"IF(Table_SummaryPI[[#This Row],[Serial'#]]<>\"\",Table_SummaryPI[[#This Row],[Serial'#]],\"\")","v":""},{"$f":"IF(Table_SummaryPI[[#This Row],[Quantity]]<>\"\",Table_SummaryPI[[#This Row],[Quantity]],\"\")","v":""},{"$f":"IF(Table_SummaryPI[[#This Row],[BaselinekWh]]<>\"\",Table_SummaryPI[[#This Row],[BaselinekWh]],\"\")","v":""},{"$f":"IF(Table_SummaryPI[[#This Row],[BaselinekW]]<>\"\",Table_SummaryPI[[#This Row],[BaselinekW]],\"\")","v":""},{"$f":"IF(Table_SummaryPI[[#This Row],[ProposedkWh]]<>\"\",Table_SummaryPI[[#This Row],[ProposedkWh]],\"\")","v":""},{"$f":"IF(Table_SummaryPI[[#This Row],[ProposedkW]]<>\"\",Table_SummaryPI[[#This Row],[ProposedkW]],\"\")","v":""},{"$f":"IF(Table_SummaryPI[[#This Row],[Notes]]<>\"\",Table_SummaryPI[[#This Row],[Notes]],\"\")","v":""},{"$f":"IF(Table_SummaryPI[[#This Row],[Incentive_Customer]]<>\"\",Table_SummaryPI[[#This Row],[Incentive_Customer]],0)","v":0},{"$f":"IF(Table_SummaryPI[[#This Row],[MeasureCost]]<>\"\",Table_SummaryPI[[#This Row],[MeasureCost]],0)","v":0},{"$f":"IF(Table_SummaryPI[[#This Row],[kWhSavings]]<>\"\",Table_SummaryPI[[#This Row],[kWhSavings]],0)","v":0},{"$f":"IF(Table_SummaryPI[[#This Row],[DemandSavingskW]]<>\"\",Table_SummaryPI[[#This Row],[DemandSavingskW]],0)","v":0}]
[{"$f":"Table_SummaryPI[[#This Row],[Line No.]]","v":""},{"$f":"IF(Table_PrintPI[[#This Row],[Line No.]]=\"\",\"\",CONCATENATE(Table_PrintPI[[#This Row],[Line No.]],\" - \",Table_SummaryPI[[#This Row],[MeasureName]]))","v":""},{"$f":"IF(Table_SummaryPI[[#This Row],[Manufacturer]]<>\"\",CONCATENATE(Table_SummaryPI[[#This Row],[Manufacturer]],\"/\",Table_SummaryPI[[#This Row],[Model'#]]),\"\")","v":""},{"$f":"IF(Table_SummaryPI[[#This Row],[Serial'#]]<>\"\",Table_SummaryPI[[#This Row],[Serial'#]],\"\")","v":""},{"$f":"IF(Table_SummaryPI[[#This Row],[Quantity]]<>\"\",Table_SummaryPI[[#This Row],[Quantity]],\"\")","v":""},{"$f":"IF(Table_SummaryPI[[#This Row],[BaselinekWh]]<>\"\",Table_SummaryPI[[#This Row],[BaselinekWh]],\"\")","v":""},{"$f":"IF(Table_SummaryPI[[#This Row],[BaselinekW]]<>\"\",Table_SummaryPI[[#This Row],[BaselinekW]],\"\")","v":""},{"$f":"IF(Table_SummaryPI[[#This Row],[ProposedkWh]]<>\"\",Table_SummaryPI[[#This Row],[ProposedkWh]],\"\")","v":""},{"$f":"IF(Table_SummaryPI[[#This Row],[ProposedkW]]<>\"\",Table_SummaryPI[[#This Row],[ProposedkW]],\"\")","v":""},{"$f":"IF(Table_SummaryPI[[#This Row],[Notes]]<>\"\",Table_SummaryPI[[#This Row],[Notes]],\"\")","v":""},{"$f":"IF(Table_SummaryPI[[#This Row],[Incentive_Customer]]<>\"\",Table_SummaryPI[[#This Row],[Incentive_Customer]],0)","v":0},{"$f":"IF(Table_SummaryPI[[#This Row],[MeasureCost]]<>\"\",Table_SummaryPI[[#This Row],[MeasureCost]],0)","v":0},{"$f":"IF(Table_SummaryPI[[#This Row],[kWhSavings]]<>\"\",Table_SummaryPI[[#This Row],[kWhSavings]],0)","v":0},{"$f":"IF(Table_SummaryPI[[#This Row],[DemandSavingskW]]<>\"\",Table_SummaryPI[[#This Row],[DemandSavingskW]],0)","v":0}]
[{"$f":"Table_SummaryPI[[#This Row],[Line No.]]","v":""},{"$f":"IF(Table_PrintPI[[#This Row],[Line No.]]=\"\",\"\",CONCATENATE(Table_PrintPI[[#This Row],[Line No.]],\" - \",Table_SummaryPI[[#This Row],[MeasureName]]))","v":""},{"$f":"IF(Table_SummaryPI[[#This Row],[Manufacturer]]<>\"\",CONCATENATE(Table_SummaryPI[[#This Row],[Manufacturer]],\"/\",Table_SummaryPI[[#This Row],[Model'#]]),\"\")","v":""},{"$f":"IF(Table_SummaryPI[[#This Row],[Serial'#]]<>\"\",Table_SummaryPI[[#This Row],[Serial'#]],\"\")","v":""},{"$f":"IF(Table_SummaryPI[[#This Row],[Quantity]]<>\"\",Table_SummaryPI[[#This Row],[Quantity]],\"\")","v":""},{"$f":"IF(Table_SummaryPI[[#This Row],[BaselinekWh]]<>\"\",Table_SummaryPI[[#This Row],[BaselinekWh]],\"\")","v":""},{"$f":"IF(Table_SummaryPI[[#This Row],[BaselinekW]]<>\"\",Table_SummaryPI[[#This Row],[BaselinekW]],\"\")","v":""},{"$f":"IF(Table_SummaryPI[[#This Row],[ProposedkWh]]<>\"\",Table_SummaryPI[[#This Row],[ProposedkWh]],\"\")","v":""},{"$f":"IF(Table_SummaryPI[[#This Row],[ProposedkW]]<>\"\",Table_SummaryPI[[#This Row],[ProposedkW]],\"\")","v":""},{"$f":"IF(Table_SummaryPI[[#This Row],[Notes]]<>\"\",Table_SummaryPI[[#This Row],[Notes]],\"\")","v":""},{"$f":"IF(Table_SummaryPI[[#This Row],[Incentive_Customer]]<>\"\",Table_SummaryPI[[#This Row],[Incentive_Customer]],0)","v":0},{"$f":"IF(Table_SummaryPI[[#This Row],[MeasureCost]]<>\"\",Table_SummaryPI[[#This Row],[MeasureCost]],0)","v":0},{"$f":"IF(Table_SummaryPI[[#This Row],[kWhSavings]]<>\"\",Table_SummaryPI[[#This Row],[kWhSavings]],0)","v":0},{"$f":"IF(Table_SummaryPI[[#This Row],[DemandSavingskW]]<>\"\",Table_SummaryPI[[#This Row],[DemandSavingskW]],0)","v":0}]
[{"$f":"Table_SummaryPI[[#This Row],[Line No.]]","v":""},{"$f":"IF(Table_PrintPI[[#This Row],[Line No.]]=\"\",\"\",CONCATENATE(Table_PrintPI[[#This Row],[Line No.]],\" - \",Table_SummaryPI[[#This Row],[MeasureName]]))","v":""},{"$f":"IF(Table_SummaryPI[[#This Row],[Manufacturer]]<>\"\",CONCATENATE(Table_SummaryPI[[#This Row],[Manufacturer]],\"/\",Table_SummaryPI[[#This Row],[Model'#]]),\"\")","v":""},{"$f":"IF(Table_SummaryPI[[#This Row],[Serial'#]]<>\"\",Table_SummaryPI[[#This Row],[Serial'#]],\"\")","v":""},{"$f":"IF(Table_SummaryPI[[#This Row],[Quantity]]<>\"\",Table_SummaryPI[[#This Row],[Quantity]],\"\")","v":""},{"$f":"IF(Table_SummaryPI[[#This Row],[BaselinekWh]]<>\"\",Table_SummaryPI[[#This Row],[BaselinekWh]],\"\")","v":""},{"$f":"IF(Table_SummaryPI[[#This Row],[BaselinekW]]<>\"\",Table_SummaryPI[[#This Row],[BaselinekW]],\"\")","v":""},{"$f":"IF(Table_SummaryPI[[#This Row],[ProposedkWh]]<>\"\",Table_SummaryPI[[#This Row],[ProposedkWh]],\"\")","v":""},{"$f":"IF(Table_SummaryPI[[#This Row],[ProposedkW]]<>\"\",Table_SummaryPI[[#This Row],[ProposedkW]],\"\")","v":""},{"$f":"IF(Table_SummaryPI[[#This Row],[Notes]]<>\"\",Table_SummaryPI[[#This Row],[Notes]],\"\")","v":""},{"$f":"IF(Table_SummaryPI[[#This Row],[Incentive_Customer]]<>\"\",Table_SummaryPI[[#This Row],[Incentive_Customer]],0)","v":0},{"$f":"IF(Table_SummaryPI[[#This Row],[MeasureCost]]<>\"\",Table_SummaryPI[[#This Row],[MeasureCost]],0)","v":0},{"$f":"IF(Table_SummaryPI[[#This Row],[kWhSavings]]<>\"\",Table_SummaryPI[[#This Row],[kWhSavings]],0)","v":0},{"$f":"IF(Table_SummaryPI[[#This Row],[DemandSavingskW]]<>\"\",Table_SummaryPI[[#This Row],[DemandSavingskW]],0)","v":0}]
[{"$f":"Table_SummaryPI[[#This Row],[Line No.]]","v":""},{"$f":"IF(Table_PrintPI[[#This Row],[Line No.]]=\"\",\"\",CONCATENATE(Table_PrintPI[[#This Row],[Line No.]],\" - \",Table_SummaryPI[[#This Row],[MeasureName]]))","v":""},{"$f":"IF(Table_SummaryPI[[#This Row],[Manufacturer]]<>\"\",CONCATENATE(Table_SummaryPI[[#This Row],[Manufacturer]],\"/\",Table_SummaryPI[[#This Row],[Model'#]]),\"\")","v":""},{"$f":"IF(Table_SummaryPI[[#This Row],[Serial'#]]<>\"\",Table_SummaryPI[[#This Row],[Serial'#]],\"\")","v":""},{"$f":"IF(Table_SummaryPI[[#This Row],[Quantity]]<>\"\",Table_SummaryPI[[#This Row],[Quantity]],\"\")","v":""},{"$f":"IF(Table_SummaryPI[[#This Row],[BaselinekWh]]<>\"\",Table_SummaryPI[[#This Row],[BaselinekWh]],\"\")","v":""},{"$f":"IF(Table_SummaryPI[[#This Row],[BaselinekW]]<>\"\",Table_SummaryPI[[#This Row],[BaselinekW]],\"\")","v":""},{"$f":"IF(Table_SummaryPI[[#This Row],[ProposedkWh]]<>\"\",Table_SummaryPI[[#This Row],[ProposedkWh]],\"\")","v":""},{"$f":"IF(Table_SummaryPI[[#This Row],[ProposedkW]]<>\"\",Table_SummaryPI[[#This Row],[ProposedkW]],\"\")","v":""},{"$f":"IF(Table_SummaryPI[[#This Row],[Notes]]<>\"\",Table_SummaryPI[[#This Row],[Notes]],\"\")","v":""},{"$f":"IF(Table_SummaryPI[[#This Row],[Incentive_Customer]]<>\"\",Table_SummaryPI[[#This Row],[Incentive_Customer]],0)","v":0},{"$f":"IF(Table_SummaryPI[[#This Row],[MeasureCost]]<>\"\",Table_SummaryPI[[#This Row],[MeasureCost]],0)","v":0},{"$f":"IF(Table_SummaryPI[[#This Row],[kWhSavings]]<>\"\",Table_SummaryPI[[#This Row],[kWhSavings]],0)","v":0},{"$f":"IF(Table_SummaryPI[[#This Row],[DemandSavingskW]]<>\"\",Table_SummaryPI[[#This Row],[DemandSavingskW]],0)","v":0}]
[{"$f":"Table_SummaryPI[[#This Row],[Line No.]]","v":""},{"$f":"IF(Table_PrintPI[[#This Row],[Line No.]]=\"\",\"\",CONCATENATE(Table_PrintPI[[#This Row],[Line No.]],\" - \",Table_SummaryPI[[#This Row],[MeasureName]]))","v":""},{"$f":"IF(Table_SummaryPI[[#This Row],[Manufacturer]]<>\"\",CONCATENATE(Table_SummaryPI[[#This Row],[Manufacturer]],\"/\",Table_SummaryPI[[#This Row],[Model'#]]),\"\")","v":""},{"$f":"IF(Table_SummaryPI[[#This Row],[Serial'#]]<>\"\",Table_SummaryPI[[#This Row],[Serial'#]],\"\")","v":""},{"$f":"IF(Table_SummaryPI[[#This Row],[Quantity]]<>\"\",Table_SummaryPI[[#This Row],[Quantity]],\"\")","v":""},{"$f":"IF(Table_SummaryPI[[#This Row],[BaselinekWh]]<>\"\",Table_SummaryPI[[#This Row],[BaselinekWh]],\"\")","v":""},{"$f":"IF(Table_SummaryPI[[#This Row],[BaselinekW]]<>\"\",Table_SummaryPI[[#This Row],[BaselinekW]],\"\")","v":""},{"$f":"IF(Table_SummaryPI[[#This Row],[ProposedkWh]]<>\"\",Table_SummaryPI[[#This Row],[ProposedkWh]],\"\")","v":""},{"$f":"IF(Table_SummaryPI[[#This Row],[ProposedkW]]<>\"\",Table_SummaryPI[[#This Row],[ProposedkW]],\"\")","v":""},{"$f":"IF(Table_SummaryPI[[#This Row],[Notes]]<>\"\",Table_SummaryPI[[#This Row],[Notes]],\"\")","v":""},{"$f":"IF(Table_SummaryPI[[#This Row],[Incentive_Customer]]<>\"\",Table_SummaryPI[[#This Row],[Incentive_Customer]],0)","v":0},{"$f":"IF(Table_SummaryPI[[#This Row],[MeasureCost]]<>\"\",Table_SummaryPI[[#This Row],[MeasureCost]],0)","v":0},{"$f":"IF(Table_SummaryPI[[#This Row],[kWhSavings]]<>\"\",Table_SummaryPI[[#This Row],[kWhSavings]],0)","v":0},{"$f":"IF(Table_SummaryPI[[#This Row],[DemandSavingskW]]<>\"\",Table_SummaryPI[[#This Row],[DemandSavingskW]],0)","v":0}]
[{"$f":"Table_SummaryPI[[#This Row],[Line No.]]","v":""},{"$f":"IF(Table_PrintPI[[#This Row],[Line No.]]=\"\",\"\",CONCATENATE(Table_PrintPI[[#This Row],[Line No.]],\" - \",Table_SummaryPI[[#This Row],[MeasureName]]))","v":""},{"$f":"IF(Table_SummaryPI[[#This Row],[Manufacturer]]<>\"\",CONCATENATE(Table_SummaryPI[[#This Row],[Manufacturer]],\"/\",Table_SummaryPI[[#This Row],[Model'#]]),\"\")","v":""},{"$f":"IF(Table_SummaryPI[[#This Row],[Serial'#]]<>\"\",Table_SummaryPI[[#This Row],[Serial'#]],\"\")","v":""},{"$f":"IF(Table_SummaryPI[[#This Row],[Quantity]]<>\"\",Table_SummaryPI[[#This Row],[Quantity]],\"\")","v":""},{"$f":"IF(Table_SummaryPI[[#This Row],[BaselinekWh]]<>\"\",Table_SummaryPI[[#This Row],[BaselinekWh]],\"\")","v":""},{"$f":"IF(Table_SummaryPI[[#This Row],[BaselinekW]]<>\"\",Table_SummaryPI[[#This Row],[BaselinekW]],\"\")","v":""},{"$f":"IF(Table_SummaryPI[[#This Row],[ProposedkWh]]<>\"\",Table_SummaryPI[[#This Row],[ProposedkWh]],\"\")","v":""},{"$f":"IF(Table_SummaryPI[[#This Row],[ProposedkW]]<>\"\",Table_SummaryPI[[#This Row],[ProposedkW]],\"\")","v":""},{"$f":"IF(Table_SummaryPI[[#This Row],[Notes]]<>\"\",Table_SummaryPI[[#This Row],[Notes]],\"\")","v":""},{"$f":"IF(Table_SummaryPI[[#This Row],[Incentive_Customer]]<>\"\",Table_SummaryPI[[#This Row],[Incentive_Customer]],0)","v":0},{"$f":"IF(Table_SummaryPI[[#This Row],[MeasureCost]]<>\"\",Table_SummaryPI[[#This Row],[MeasureCost]],0)","v":0},{"$f":"IF(Table_SummaryPI[[#This Row],[kWhSavings]]<>\"\",Table_SummaryPI[[#This Row],[kWhSavings]],0)","v":0},{"$f":"IF(Table_SummaryPI[[#This Row],[DemandSavingskW]]<>\"\",Table_SummaryPI[[#This Row],[DemandSavingskW]],0)","v":0}]
[{"$f":"Table_SummaryPI[[#This Row],[Line No.]]","v":""},{"$f":"IF(Table_PrintPI[[#This Row],[Line No.]]=\"\",\"\",CONCATENATE(Table_PrintPI[[#This Row],[Line No.]],\" - \",Table_SummaryPI[[#This Row],[MeasureName]]))","v":""},{"$f":"IF(Table_SummaryPI[[#This Row],[Manufacturer]]<>\"\",CONCATENATE(Table_SummaryPI[[#This Row],[Manufacturer]],\"/\",Table_SummaryPI[[#This Row],[Model'#]]),\"\")","v":""},{"$f":"IF(Table_SummaryPI[[#This Row],[Serial'#]]<>\"\",Table_SummaryPI[[#This Row],[Serial'#]],\"\")","v":""},{"$f":"IF(Table_SummaryPI[[#This Row],[Quantity]]<>\"\",Table_SummaryPI[[#This Row],[Quantity]],\"\")","v":""},{"$f":"IF(Table_SummaryPI[[#This Row],[BaselinekWh]]<>\"\",Table_SummaryPI[[#This Row],[BaselinekWh]],\"\")","v":""},{"$f":"IF(Table_SummaryPI[[#This Row],[BaselinekW]]<>\"\",Table_SummaryPI[[#This Row],[BaselinekW]],\"\")","v":""},{"$f":"IF(Table_SummaryPI[[#This Row],[ProposedkWh]]<>\"\",Table_SummaryPI[[#This Row],[ProposedkWh]],\"\")","v":""},{"$f":"IF(Table_SummaryPI[[#This Row],[ProposedkW]]<>\"\",Table_SummaryPI[[#This Row],[ProposedkW]],\"\")","v":""},{"$f":"IF(Table_SummaryPI[[#This Row],[Notes]]<>\"\",Table_SummaryPI[[#This Row],[Notes]],\"\")","v":""},{"$f":"IF(Table_SummaryPI[[#This Row],[Incentive_Customer]]<>\"\",Table_SummaryPI[[#This Row],[Incentive_Customer]],0)","v":0},{"$f":"IF(Table_SummaryPI[[#This Row],[MeasureCost]]<>\"\",Table_SummaryPI[[#This Row],[MeasureCost]],0)","v":0},{"$f":"IF(Table_SummaryPI[[#This Row],[kWhSavings]]<>\"\",Table_SummaryPI[[#This Row],[kWhSavings]],0)","v":0},{"$f":"IF(Table_SummaryPI[[#This Row],[DemandSavingskW]]<>\"\",Table_SummaryPI[[#This Row],[DemandSavingskW]],0)","v":0}]
[{"$f":"Table_SummaryPI[[#This Row],[Line No.]]","v":""},{"$f":"IF(Table_PrintPI[[#This Row],[Line No.]]=\"\",\"\",CONCATENATE(Table_PrintPI[[#This Row],[Line No.]],\" - \",Table_SummaryPI[[#This Row],[MeasureName]]))","v":""},{"$f":"IF(Table_SummaryPI[[#This Row],[Manufacturer]]<>\"\",CONCATENATE(Table_SummaryPI[[#This Row],[Manufacturer]],\"/\",Table_SummaryPI[[#This Row],[Model'#]]),\"\")","v":""},{"$f":"IF(Table_SummaryPI[[#This Row],[Serial'#]]<>\"\",Table_SummaryPI[[#This Row],[Serial'#]],\"\")","v":""},{"$f":"IF(Table_SummaryPI[[#This Row],[Quantity]]<>\"\",Table_SummaryPI[[#This Row],[Quantity]],\"\")","v":""},{"$f":"IF(Table_SummaryPI[[#This Row],[BaselinekWh]]<>\"\",Table_SummaryPI[[#This Row],[BaselinekWh]],\"\")","v":""},{"$f":"IF(Table_SummaryPI[[#This Row],[BaselinekW]]<>\"\",Table_SummaryPI[[#This Row],[BaselinekW]],\"\")","v":""},{"$f":"IF(Table_SummaryPI[[#This Row],[ProposedkWh]]<>\"\",Table_SummaryPI[[#This Row],[ProposedkWh]],\"\")","v":""},{"$f":"IF(Table_SummaryPI[[#This Row],[ProposedkW]]<>\"\",Table_SummaryPI[[#This Row],[ProposedkW]],\"\")","v":""},{"$f":"IF(Table_SummaryPI[[#This Row],[Notes]]<>\"\",Table_SummaryPI[[#This Row],[Notes]],\"\")","v":""},{"$f":"IF(Table_SummaryPI[[#This Row],[Incentive_Customer]]<>\"\",Table_SummaryPI[[#This Row],[Incentive_Customer]],0)","v":0},{"$f":"IF(Table_SummaryPI[[#This Row],[MeasureCost]]<>\"\",Table_SummaryPI[[#This Row],[MeasureCost]],0)","v":0},{"$f":"IF(Table_SummaryPI[[#This Row],[kWhSavings]]<>\"\",Table_SummaryPI[[#This Row],[kWhSavings]],0)","v":0},{"$f":"IF(Table_SummaryPI[[#This Row],[DemandSavingskW]]<>\"\",Table_SummaryPI[[#This Row],[DemandSavingskW]],0)","v":0}]
[{"$f":"Table_SummaryPI[[#This Row],[Line No.]]","v":""},{"$f":"IF(Table_PrintPI[[#This Row],[Line No.]]=\"\",\"\",CONCATENATE(Table_PrintPI[[#This Row],[Line No.]],\" - \",Table_SummaryPI[[#This Row],[MeasureName]]))","v":""},{"$f":"IF(Table_SummaryPI[[#This Row],[Manufacturer]]<>\"\",CONCATENATE(Table_SummaryPI[[#This Row],[Manufacturer]],\"/\",Table_SummaryPI[[#This Row],[Model'#]]),\"\")","v":""},{"$f":"IF(Table_SummaryPI[[#This Row],[Serial'#]]<>\"\",Table_SummaryPI[[#This Row],[Serial'#]],\"\")","v":""},{"$f":"IF(Table_SummaryPI[[#This Row],[Quantity]]<>\"\",Table_SummaryPI[[#This Row],[Quantity]],\"\")","v":""},{"$f":"IF(Table_SummaryPI[[#This Row],[BaselinekWh]]<>\"\",Table_SummaryPI[[#This Row],[BaselinekWh]],\"\")","v":""},{"$f":"IF(Table_SummaryPI[[#This Row],[BaselinekW]]<>\"\",Table_SummaryPI[[#This Row],[BaselinekW]],\"\")","v":""},{"$f":"IF(Table_SummaryPI[[#This Row],[ProposedkWh]]<>\"\",Table_SummaryPI[[#This Row],[ProposedkWh]],\"\")","v":""},{"$f":"IF(Table_SummaryPI[[#This Row],[ProposedkW]]<>\"\",Table_SummaryPI[[#This Row],[ProposedkW]],\"\")","v":""},{"$f":"IF(Table_SummaryPI[[#This Row],[Notes]]<>\"\",Table_SummaryPI[[#This Row],[Notes]],\"\")","v":""},{"$f":"IF(Table_SummaryPI[[#This Row],[Incentive_Customer]]<>\"\",Table_SummaryPI[[#This Row],[Incentive_Customer]],0)","v":0},{"$f":"IF(Table_SummaryPI[[#This Row],[MeasureCost]]<>\"\",Table_SummaryPI[[#This Row],[MeasureCost]],0)","v":0},{"$f":"IF(Table_SummaryPI[[#This Row],[kWhSavings]]<>\"\",Table_SummaryPI[[#This Row],[kWhSavings]],0)","v":0},{"$f":"IF(Table_SummaryPI[[#This Row],[DemandSavingskW]]<>\"\",Table_SummaryPI[[#This Row],[DemandSavingskW]],0)","v":0}]
[{"$f":"Table_SummaryPI[[#This Row],[Line No.]]","v":""},{"$f":"IF(Table_PrintPI[[#This Row],[Line No.]]=\"\",\"\",CONCATENATE(Table_PrintPI[[#This Row],[Line No.]],\" - \",Table_SummaryPI[[#This Row],[MeasureName]]))","v":""},{"$f":"IF(Table_SummaryPI[[#This Row],[Manufacturer]]<>\"\",CONCATENATE(Table_SummaryPI[[#This Row],[Manufacturer]],\"/\",Table_SummaryPI[[#This Row],[Model'#]]),\"\")","v":""},{"$f":"IF(Table_SummaryPI[[#This Row],[Serial'#]]<>\"\",Table_SummaryPI[[#This Row],[Serial'#]],\"\")","v":""},{"$f":"IF(Table_SummaryPI[[#This Row],[Quantity]]<>\"\",Table_SummaryPI[[#This Row],[Quantity]],\"\")","v":""},{"$f":"IF(Table_SummaryPI[[#This Row],[BaselinekWh]]<>\"\",Table_SummaryPI[[#This Row],[BaselinekWh]],\"\")","v":""},{"$f":"IF(Table_SummaryPI[[#This Row],[BaselinekW]]<>\"\",Table_SummaryPI[[#This Row],[BaselinekW]],\"\")","v":""},{"$f":"IF(Table_SummaryPI[[#This Row],[ProposedkWh]]<>\"\",Table_SummaryPI[[#This Row],[ProposedkWh]],\"\")","v":""},{"$f":"IF(Table_SummaryPI[[#This Row],[ProposedkW]]<>\"\",Table_SummaryPI[[#This Row],[ProposedkW]],\"\")","v":""},{"$f":"IF(Table_SummaryPI[[#This Row],[Notes]]<>\"\",Table_SummaryPI[[#This Row],[Notes]],\"\")","v":""},{"$f":"IF(Table_SummaryPI[[#This Row],[Incentive_Customer]]<>\"\",Table_SummaryPI[[#This Row],[Incentive_Customer]],0)","v":0},{"$f":"IF(Table_SummaryPI[[#This Row],[MeasureCost]]<>\"\",Table_SummaryPI[[#This Row],[MeasureCost]],0)","v":0},{"$f":"IF(Table_SummaryPI[[#This Row],[kWhSavings]]<>\"\",Table_SummaryPI[[#This Row],[kWhSavings]],0)","v":0},{"$f":"IF(Table_SummaryPI[[#This Row],[DemandSavingskW]]<>\"\",Table_SummaryPI[[#This Row],[DemandSavingskW]],0)","v":0}]
[{"$f":"Table_SummaryPI[[#This Row],[Line No.]]","v":""},{"$f":"IF(Table_PrintPI[[#This Row],[Line No.]]=\"\",\"\",CONCATENATE(Table_PrintPI[[#This Row],[Line No.]],\" - \",Table_SummaryPI[[#This Row],[MeasureName]]))","v":""},{"$f":"IF(Table_SummaryPI[[#This Row],[Manufacturer]]<>\"\",CONCATENATE(Table_SummaryPI[[#This Row],[Manufacturer]],\"/\",Table_SummaryPI[[#This Row],[Model'#]]),\"\")","v":""},{"$f":"IF(Table_SummaryPI[[#This Row],[Serial'#]]<>\"\",Table_SummaryPI[[#This Row],[Serial'#]],\"\")","v":""},{"$f":"IF(Table_SummaryPI[[#This Row],[Quantity]]<>\"\",Table_SummaryPI[[#This Row],[Quantity]],\"\")","v":""},{"$f":"IF(Table_SummaryPI[[#This Row],[BaselinekWh]]<>\"\",Table_SummaryPI[[#This Row],[BaselinekWh]],\"\")","v":""},{"$f":"IF(Table_SummaryPI[[#This Row],[BaselinekW]]<>\"\",Table_SummaryPI[[#This Row],[BaselinekW]],\"\")","v":""},{"$f":"IF(Table_SummaryPI[[#This Row],[ProposedkWh]]<>\"\",Table_SummaryPI[[#This Row],[ProposedkWh]],\"\")","v":""},{"$f":"IF(Table_SummaryPI[[#This Row],[ProposedkW]]<>\"\",Table_SummaryPI[[#This Row],[ProposedkW]],\"\")","v":""},{"$f":"IF(Table_SummaryPI[[#This Row],[Notes]]<>\"\",Table_SummaryPI[[#This Row],[Notes]],\"\")","v":""},{"$f":"IF(Table_SummaryPI[[#This Row],[Incentive_Customer]]<>\"\",Table_SummaryPI[[#This Row],[Incentive_Customer]],0)","v":0},{"$f":"IF(Table_SummaryPI[[#This Row],[MeasureCost]]<>\"\",Table_SummaryPI[[#This Row],[MeasureCost]],0)","v":0},{"$f":"IF(Table_SummaryPI[[#This Row],[kWhSavings]]<>\"\",Table_SummaryPI[[#This Row],[kWhSavings]],0)","v":0},{"$f":"IF(Table_SummaryPI[[#This Row],[DemandSavingskW]]<>\"\",Table_SummaryPI[[#This Row],[DemandSavingskW]],0)","v":0}]
[{"$f":"Table_SummaryPI[[#This Row],[Line No.]]","v":""},{"$f":"IF(Table_PrintPI[[#This Row],[Line No.]]=\"\",\"\",CONCATENATE(Table_PrintPI[[#This Row],[Line No.]],\" - \",Table_SummaryPI[[#This Row],[MeasureName]]))","v":""},{"$f":"IF(Table_SummaryPI[[#This Row],[Manufacturer]]<>\"\",CONCATENATE(Table_SummaryPI[[#This Row],[Manufacturer]],\"/\",Table_SummaryPI[[#This Row],[Model'#]]),\"\")","v":""},{"$f":"IF(Table_SummaryPI[[#This Row],[Serial'#]]<>\"\",Table_SummaryPI[[#This Row],[Serial'#]],\"\")","v":""},{"$f":"IF(Table_SummaryPI[[#This Row],[Quantity]]<>\"\",Table_SummaryPI[[#This Row],[Quantity]],\"\")","v":""},{"$f":"IF(Table_SummaryPI[[#This Row],[BaselinekWh]]<>\"\",Table_SummaryPI[[#This Row],[BaselinekWh]],\"\")","v":""},{"$f":"IF(Table_SummaryPI[[#This Row],[BaselinekW]]<>\"\",Table_SummaryPI[[#This Row],[BaselinekW]],\"\")","v":""},{"$f":"IF(Table_SummaryPI[[#This Row],[ProposedkWh]]<>\"\",Table_SummaryPI[[#This Row],[ProposedkWh]],\"\")","v":""},{"$f":"IF(Table_SummaryPI[[#This Row],[ProposedkW]]<>\"\",Table_SummaryPI[[#This Row],[ProposedkW]],\"\")","v":""},{"$f":"IF(Table_SummaryPI[[#This Row],[Notes]]<>\"\",Table_SummaryPI[[#This Row],[Notes]],\"\")","v":""},{"$f":"IF(Table_SummaryPI[[#This Row],[Incentive_Customer]]<>\"\",Table_SummaryPI[[#This Row],[Incentive_Customer]],0)","v":0},{"$f":"IF(Table_SummaryPI[[#This Row],[MeasureCost]]<>\"\",Table_SummaryPI[[#This Row],[MeasureCost]],0)","v":0},{"$f":"IF(Table_SummaryPI[[#This Row],[kWhSavings]]<>\"\",Table_SummaryPI[[#This Row],[kWhSavings]],0)","v":0},{"$f":"IF(Table_SummaryPI[[#This Row],[DemandSavingskW]]<>\"\",Table_SummaryPI[[#This Row],[DemandSavingskW]],0)","v":0}]
[{"$f":"Table_SummaryPI[[#This Row],[Line No.]]","v":""},{"$f":"IF(Table_PrintPI[[#This Row],[Line No.]]=\"\",\"\",CONCATENATE(Table_PrintPI[[#This Row],[Line No.]],\" - \",Table_SummaryPI[[#This Row],[MeasureName]]))","v":""},{"$f":"IF(Table_SummaryPI[[#This Row],[Manufacturer]]<>\"\",CONCATENATE(Table_SummaryPI[[#This Row],[Manufacturer]],\"/\",Table_SummaryPI[[#This Row],[Model'#]]),\"\")","v":""},{"$f":"IF(Table_SummaryPI[[#This Row],[Serial'#]]<>\"\",Table_SummaryPI[[#This Row],[Serial'#]],\"\")","v":""},{"$f":"IF(Table_SummaryPI[[#This Row],[Quantity]]<>\"\",Table_SummaryPI[[#This Row],[Quantity]],\"\")","v":""},{"$f":"IF(Table_SummaryPI[[#This Row],[BaselinekWh]]<>\"\",Table_SummaryPI[[#This Row],[BaselinekWh]],\"\")","v":""},{"$f":"IF(Table_SummaryPI[[#This Row],[BaselinekW]]<>\"\",Table_SummaryPI[[#This Row],[BaselinekW]],\"\")","v":""},{"$f":"IF(Table_SummaryPI[[#This Row],[ProposedkWh]]<>\"\",Table_SummaryPI[[#This Row],[ProposedkWh]],\"\")","v":""},{"$f":"IF(Table_SummaryPI[[#This Row],[ProposedkW]]<>\"\",Table_SummaryPI[[#This Row],[ProposedkW]],\"\")","v":""},{"$f":"IF(Table_SummaryPI[[#This Row],[Notes]]<>\"\",Table_SummaryPI[[#This Row],[Notes]],\"\")","v":""},{"$f":"IF(Table_SummaryPI[[#This Row],[Incentive_Customer]]<>\"\",Table_SummaryPI[[#This Row],[Incentive_Customer]],0)","v":0},{"$f":"IF(Table_SummaryPI[[#This Row],[MeasureCost]]<>\"\",Table_SummaryPI[[#This Row],[MeasureCost]],0)","v":0},{"$f":"IF(Table_SummaryPI[[#This Row],[kWhSavings]]<>\"\",Table_SummaryPI[[#This Row],[kWhSavings]],0)","v":0},{"$f":"IF(Table_SummaryPI[[#This Row],[DemandSavingskW]]<>\"\",Table_SummaryPI[[#This Row],[DemandSavingskW]],0)","v":0}]
[{"$f":"Table_SummaryPI[[#This Row],[Line No.]]","v":""},{"$f":"IF(Table_PrintPI[[#This Row],[Line No.]]=\"\",\"\",CONCATENATE(Table_PrintPI[[#This Row],[Line No.]],\" - \",Table_SummaryPI[[#This Row],[MeasureName]]))","v":""},{"$f":"IF(Table_SummaryPI[[#This Row],[Manufacturer]]<>\"\",CONCATENATE(Table_SummaryPI[[#This Row],[Manufacturer]],\"/\",Table_SummaryPI[[#This Row],[Model'#]]),\"\")","v":""},{"$f":"IF(Table_SummaryPI[[#This Row],[Serial'#]]<>\"\",Table_SummaryPI[[#This Row],[Serial'#]],\"\")","v":""},{"$f":"IF(Table_SummaryPI[[#This Row],[Quantity]]<>\"\",Table_SummaryPI[[#This Row],[Quantity]],\"\")","v":""},{"$f":"IF(Table_SummaryPI[[#This Row],[BaselinekWh]]<>\"\",Table_SummaryPI[[#This Row],[BaselinekWh]],\"\")","v":""},{"$f":"IF(Table_SummaryPI[[#This Row],[BaselinekW]]<>\"\",Table_SummaryPI[[#This Row],[BaselinekW]],\"\")","v":""},{"$f":"IF(Table_SummaryPI[[#This Row],[ProposedkWh]]<>\"\",Table_SummaryPI[[#This Row],[ProposedkWh]],\"\")","v":""},{"$f":"IF(Table_SummaryPI[[#This Row],[ProposedkW]]<>\"\",Table_SummaryPI[[#This Row],[ProposedkW]],\"\")","v":""},{"$f":"IF(Table_SummaryPI[[#This Row],[Notes]]<>\"\",Table_SummaryPI[[#This Row],[Notes]],\"\")","v":""},{"$f":"IF(Table_SummaryPI[[#This Row],[Incentive_Customer]]<>\"\",Table_SummaryPI[[#This Row],[Incentive_Customer]],0)","v":0},{"$f":"IF(Table_SummaryPI[[#This Row],[MeasureCost]]<>\"\",Table_SummaryPI[[#This Row],[MeasureCost]],0)","v":0},{"$f":"IF(Table_SummaryPI[[#This Row],[kWhSavings]]<>\"\",Table_SummaryPI[[#This Row],[kWhSavings]],0)","v":0},{"$f":"IF(Table_SummaryPI[[#This Row],[DemandSavingskW]]<>\"\",Table_SummaryPI[[#This Row],[DemandSavingskW]],0)","v":0}]
[{"$f":"Table_SummaryPI[[#This Row],[Line No.]]","v":""},{"$f":"IF(Table_PrintPI[[#This Row],[Line No.]]=\"\",\"\",CONCATENATE(Table_PrintPI[[#This Row],[Line No.]],\" - \",Table_SummaryPI[[#This Row],[MeasureName]]))","v":""},{"$f":"IF(Table_SummaryPI[[#This Row],[Manufacturer]]<>\"\",CONCATENATE(Table_SummaryPI[[#This Row],[Manufacturer]],\"/\",Table_SummaryPI[[#This Row],[Model'#]]),\"\")","v":""},{"$f":"IF(Table_SummaryPI[[#This Row],[Serial'#]]<>\"\",Table_SummaryPI[[#This Row],[Serial'#]],\"\")","v":""},{"$f":"IF(Table_SummaryPI[[#This Row],[Quantity]]<>\"\",Table_SummaryPI[[#This Row],[Quantity]],\"\")","v":""},{"$f":"IF(Table_SummaryPI[[#This Row],[BaselinekWh]]<>\"\",Table_SummaryPI[[#This Row],[BaselinekWh]],\"\")","v":""},{"$f":"IF(Table_SummaryPI[[#This Row],[BaselinekW]]<>\"\",Table_SummaryPI[[#This Row],[BaselinekW]],\"\")","v":""},{"$f":"IF(Table_SummaryPI[[#This Row],[ProposedkWh]]<>\"\",Table_SummaryPI[[#This Row],[ProposedkWh]],\"\")","v":""},{"$f":"IF(Table_SummaryPI[[#This Row],[ProposedkW]]<>\"\",Table_SummaryPI[[#This Row],[ProposedkW]],\"\")","v":""},{"$f":"IF(Table_SummaryPI[[#This Row],[Notes]]<>\"\",Table_SummaryPI[[#This Row],[Notes]],\"\")","v":""},{"$f":"IF(Table_SummaryPI[[#This Row],[Incentive_Customer]]<>\"\",Table_SummaryPI[[#This Row],[Incentive_Customer]],0)","v":0},{"$f":"IF(Table_SummaryPI[[#This Row],[MeasureCost]]<>\"\",Table_SummaryPI[[#This Row],[MeasureCost]],0)","v":0},{"$f":"IF(Table_SummaryPI[[#This Row],[kWhSavings]]<>\"\",Table_SummaryPI[[#This Row],[kWhSavings]],0)","v":0},{"$f":"IF(Table_SummaryPI[[#This Row],[DemandSavingskW]]<>\"\",Table_SummaryPI[[#This Row],[DemandSavingskW]],0)","v":0}]
[{"$f":"Table_SummaryPI[[#This Row],[Line No.]]","v":""},{"$f":"IF(Table_PrintPI[[#This Row],[Line No.]]=\"\",\"\",CONCATENATE(Table_PrintPI[[#This Row],[Line No.]],\" - \",Table_SummaryPI[[#This Row],[MeasureName]]))","v":""},{"$f":"IF(Table_SummaryPI[[#This Row],[Manufacturer]]<>\"\",CONCATENATE(Table_SummaryPI[[#This Row],[Manufacturer]],\"/\",Table_SummaryPI[[#This Row],[Model'#]]),\"\")","v":""},{"$f":"IF(Table_SummaryPI[[#This Row],[Serial'#]]<>\"\",Table_SummaryPI[[#This Row],[Serial'#]],\"\")","v":""},{"$f":"IF(Table_SummaryPI[[#This Row],[Quantity]]<>\"\",Table_SummaryPI[[#This Row],[Quantity]],\"\")","v":""},{"$f":"IF(Table_SummaryPI[[#This Row],[BaselinekWh]]<>\"\",Table_SummaryPI[[#This Row],[BaselinekWh]],\"\")","v":""},{"$f":"IF(Table_SummaryPI[[#This Row],[BaselinekW]]<>\"\",Table_SummaryPI[[#This Row],[BaselinekW]],\"\")","v":""},{"$f":"IF(Table_SummaryPI[[#This Row],[ProposedkWh]]<>\"\",Table_SummaryPI[[#This Row],[ProposedkWh]],\"\")","v":""},{"$f":"IF(Table_SummaryPI[[#This Row],[ProposedkW]]<>\"\",Table_SummaryPI[[#This Row],[ProposedkW]],\"\")","v":""},{"$f":"IF(Table_SummaryPI[[#This Row],[Notes]]<>\"\",Table_SummaryPI[[#This Row],[Notes]],\"\")","v":""},{"$f":"IF(Table_SummaryPI[[#This Row],[Incentive_Customer]]<>\"\",Table_SummaryPI[[#This Row],[Incentive_Customer]],0)","v":0},{"$f":"IF(Table_SummaryPI[[#This Row],[MeasureCost]]<>\"\",Table_SummaryPI[[#This Row],[MeasureCost]],0)","v":0},{"$f":"IF(Table_SummaryPI[[#This Row],[kWhSavings]]<>\"\",Table_SummaryPI[[#This Row],[kWhSavings]],0)","v":0},{"$f":"IF(Table_SummaryPI[[#This Row],[DemandSavingskW]]<>\"\",Table_SummaryPI[[#This Row],[DemandSavingskW]],0)","v":0}]
[{"$f":"Table_SummaryPI[[#This Row],[Line No.]]","v":""},{"$f":"IF(Table_PrintPI[[#This Row],[Line No.]]=\"\",\"\",CONCATENATE(Table_PrintPI[[#This Row],[Line No.]],\" - \",Table_SummaryPI[[#This Row],[MeasureName]]))","v":""},{"$f":"IF(Table_SummaryPI[[#This Row],[Manufacturer]]<>\"\",CONCATENATE(Table_SummaryPI[[#This Row],[Manufacturer]],\"/\",Table_SummaryPI[[#This Row],[Model'#]]),\"\")","v":""},{"$f":"IF(Table_SummaryPI[[#This Row],[Serial'#]]<>\"\",Table_SummaryPI[[#This Row],[Serial'#]],\"\")","v":""},{"$f":"IF(Table_SummaryPI[[#This Row],[Quantity]]<>\"\",Table_SummaryPI[[#This Row],[Quantity]],\"\")","v":""},{"$f":"IF(Table_SummaryPI[[#This Row],[BaselinekWh]]<>\"\",Table_SummaryPI[[#This Row],[BaselinekWh]],\"\")","v":""},{"$f":"IF(Table_SummaryPI[[#This Row],[BaselinekW]]<>\"\",Table_SummaryPI[[#This Row],[BaselinekW]],\"\")","v":""},{"$f":"IF(Table_SummaryPI[[#This Row],[ProposedkWh]]<>\"\",Table_SummaryPI[[#This Row],[ProposedkWh]],\"\")","v":""},{"$f":"IF(Table_SummaryPI[[#This Row],[ProposedkW]]<>\"\",Table_SummaryPI[[#This Row],[ProposedkW]],\"\")","v":""},{"$f":"IF(Table_SummaryPI[[#This Row],[Notes]]<>\"\",Table_SummaryPI[[#This Row],[Notes]],\"\")","v":""},{"$f":"IF(Table_SummaryPI[[#This Row],[Incentive_Customer]]<>\"\",Table_SummaryPI[[#This Row],[Incentive_Customer]],0)","v":0},{"$f":"IF(Table_SummaryPI[[#This Row],[MeasureCost]]<>\"\",Table_SummaryPI[[#This Row],[MeasureCost]],0)","v":0},{"$f":"IF(Table_SummaryPI[[#This Row],[kWhSavings]]<>\"\",Table_SummaryPI[[#This Row],[kWhSavings]],0)","v":0},{"$f":"IF(Table_SummaryPI[[#This Row],[DemandSavingskW]]<>\"\",Table_SummaryPI[[#This Row],[DemandSavingskW]],0)","v":0}]
[{"$f":"Table_SummaryPI[[#This Row],[Line No.]]","v":""},{"$f":"IF(Table_PrintPI[[#This Row],[Line No.]]=\"\",\"\",CONCATENATE(Table_PrintPI[[#This Row],[Line No.]],\" - \",Table_SummaryPI[[#This Row],[MeasureName]]))","v":""},{"$f":"IF(Table_SummaryPI[[#This Row],[Manufacturer]]<>\"\",CONCATENATE(Table_SummaryPI[[#This Row],[Manufacturer]],\"/\",Table_SummaryPI[[#This Row],[Model'#]]),\"\")","v":""},{"$f":"IF(Table_SummaryPI[[#This Row],[Serial'#]]<>\"\",Table_SummaryPI[[#This Row],[Serial'#]],\"\")","v":""},{"$f":"IF(Table_SummaryPI[[#This Row],[Quantity]]<>\"\",Table_SummaryPI[[#This Row],[Quantity]],\"\")","v":""},{"$f":"IF(Table_SummaryPI[[#This Row],[BaselinekWh]]<>\"\",Table_SummaryPI[[#This Row],[BaselinekWh]],\"\")","v":""},{"$f":"IF(Table_SummaryPI[[#This Row],[BaselinekW]]<>\"\",Table_SummaryPI[[#This Row],[BaselinekW]],\"\")","v":""},{"$f":"IF(Table_SummaryPI[[#This Row],[ProposedkWh]]<>\"\",Table_SummaryPI[[#This Row],[ProposedkWh]],\"\")","v":""},{"$f":"IF(Table_SummaryPI[[#This Row],[ProposedkW]]<>\"\",Table_SummaryPI[[#This Row],[ProposedkW]],\"\")","v":""},{"$f":"IF(Table_SummaryPI[[#This Row],[Notes]]<>\"\",Table_SummaryPI[[#This Row],[Notes]],\"\")","v":""},{"$f":"IF(Table_SummaryPI[[#This Row],[Incentive_Customer]]<>\"\",Table_SummaryPI[[#This Row],[Incentive_Customer]],0)","v":0},{"$f":"IF(Table_SummaryPI[[#This Row],[MeasureCost]]<>\"\",Table_SummaryPI[[#This Row],[MeasureCost]],0)","v":0},{"$f":"IF(Table_SummaryPI[[#This Row],[kWhSavings]]<>\"\",Table_SummaryPI[[#This Row],[kWhSavings]],0)","v":0},{"$f":"IF(Table_SummaryPI[[#This Row],[DemandSavingskW]]<>\"\",Table_SummaryPI[[#This Row],[DemandSavingskW]],0)","v":0}]
[{"$f":"Table_SummaryPI[[#This Row],[Line No.]]","v":""},{"$f":"IF(Table_PrintPI[[#This Row],[Line No.]]=\"\",\"\",CONCATENATE(Table_PrintPI[[#This Row],[Line No.]],\" - \",Table_SummaryPI[[#This Row],[MeasureName]]))","v":""},{"$f":"IF(Table_SummaryPI[[#This Row],[Manufacturer]]<>\"\",CONCATENATE(Table_SummaryPI[[#This Row],[Manufacturer]],\"/\",Table_SummaryPI[[#This Row],[Model'#]]),\"\")","v":""},{"$f":"IF(Table_SummaryPI[[#This Row],[Serial'#]]<>\"\",Table_SummaryPI[[#This Row],[Serial'#]],\"\")","v":""},{"$f":"IF(Table_SummaryPI[[#This Row],[Quantity]]<>\"\",Table_SummaryPI[[#This Row],[Quantity]],\"\")","v":""},{"$f":"IF(Table_SummaryPI[[#This Row],[BaselinekWh]]<>\"\",Table_SummaryPI[[#This Row],[BaselinekWh]],\"\")","v":""},{"$f":"IF(Table_SummaryPI[[#This Row],[BaselinekW]]<>\"\",Table_SummaryPI[[#This Row],[BaselinekW]],\"\")","v":""},{"$f":"IF(Table_SummaryPI[[#This Row],[ProposedkWh]]<>\"\",Table_SummaryPI[[#This Row],[ProposedkWh]],\"\")","v":""},{"$f":"IF(Table_SummaryPI[[#This Row],[ProposedkW]]<>\"\",Table_SummaryPI[[#This Row],[ProposedkW]],\"\")","v":""},{"$f":"IF(Table_SummaryPI[[#This Row],[Notes]]<>\"\",Table_SummaryPI[[#This Row],[Notes]],\"\")","v":""},{"$f":"IF(Table_SummaryPI[[#This Row],[Incentive_Customer]]<>\"\",Table_SummaryPI[[#This Row],[Incentive_Customer]],0)","v":0},{"$f":"IF(Table_SummaryPI[[#This Row],[MeasureCost]]<>\"\",Table_SummaryPI[[#This Row],[MeasureCost]],0)","v":0},{"$f":"IF(Table_SummaryPI[[#This Row],[kWhSavings]]<>\"\",Table_SummaryPI[[#This Row],[kWhSavings]],0)","v":0},{"$f":"IF(Table_SummaryPI[[#This Row],[DemandSavingskW]]<>\"\",Table_SummaryPI[[#This Row],[DemandSavingskW]],0)","v":0}]
[{"$f":"Table_SummaryPI[[#This Row],[Line No.]]","v":""},{"$f":"IF(Table_PrintPI[[#This Row],[Line No.]]=\"\",\"\",CONCATENATE(Table_PrintPI[[#This Row],[Line No.]],\" - \",Table_SummaryPI[[#This Row],[MeasureName]]))","v":""},{"$f":"IF(Table_SummaryPI[[#This Row],[Manufacturer]]<>\"\",CONCATENATE(Table_SummaryPI[[#This Row],[Manufacturer]],\"/\",Table_SummaryPI[[#This Row],[Model'#]]),\"\")","v":""},{"$f":"IF(Table_SummaryPI[[#This Row],[Serial'#]]<>\"\",Table_SummaryPI[[#This Row],[Serial'#]],\"\")","v":""},{"$f":"IF(Table_SummaryPI[[#This Row],[Quantity]]<>\"\",Table_SummaryPI[[#This Row],[Quantity]],\"\")","v":""},{"$f":"IF(Table_SummaryPI[[#This Row],[BaselinekWh]]<>\"\",Table_SummaryPI[[#This Row],[BaselinekWh]],\"\")","v":""},{"$f":"IF(Table_SummaryPI[[#This Row],[BaselinekW]]<>\"\",Table_SummaryPI[[#This Row],[BaselinekW]],\"\")","v":""},{"$f":"IF(Table_SummaryPI[[#This Row],[ProposedkWh]]<>\"\",Table_SummaryPI[[#This Row],[ProposedkWh]],\"\")","v":""},{"$f":"IF(Table_SummaryPI[[#This Row],[ProposedkW]]<>\"\",Table_SummaryPI[[#This Row],[ProposedkW]],\"\")","v":""},{"$f":"IF(Table_SummaryPI[[#This Row],[Notes]]<>\"\",Table_SummaryPI[[#This Row],[Notes]],\"\")","v":""},{"$f":"IF(Table_SummaryPI[[#This Row],[Incentive_Customer]]<>\"\",Table_SummaryPI[[#This Row],[Incentive_Customer]],0)","v":0},{"$f":"IF(Table_SummaryPI[[#This Row],[MeasureCost]]<>\"\",Table_SummaryPI[[#This Row],[MeasureCost]],0)","v":0},{"$f":"IF(Table_SummaryPI[[#This Row],[kWhSavings]]<>\"\",Table_SummaryPI[[#This Row],[kWhSavings]],0)","v":0},{"$f":"IF(Table_SummaryPI[[#This Row],[DemandSavingskW]]<>\"\",Table_SummaryPI[[#This Row],[DemandSavingskW]],0)","v":0}]
[{"$f":"Table_SummaryPI[[#This Row],[Line No.]]","v":""},{"$f":"IF(Table_PrintPI[[#This Row],[Line No.]]=\"\",\"\",CONCATENATE(Table_PrintPI[[#This Row],[Line No.]],\" - \",Table_SummaryPI[[#This Row],[MeasureName]]))","v":""},{"$f":"IF(Table_SummaryPI[[#This Row],[Manufacturer]]<>\"\",CONCATENATE(Table_SummaryPI[[#This Row],[Manufacturer]],\"/\",Table_SummaryPI[[#This Row],[Model'#]]),\"\")","v":""},{"$f":"IF(Table_SummaryPI[[#This Row],[Serial'#]]<>\"\",Table_SummaryPI[[#This Row],[Serial'#]],\"\")","v":""},{"$f":"IF(Table_SummaryPI[[#This Row],[Quantity]]<>\"\",Table_SummaryPI[[#This Row],[Quantity]],\"\")","v":""},{"$f":"IF(Table_SummaryPI[[#This Row],[BaselinekWh]]<>\"\",Table_SummaryPI[[#This Row],[BaselinekWh]],\"\")","v":""},{"$f":"IF(Table_SummaryPI[[#This Row],[BaselinekW]]<>\"\",Table_SummaryPI[[#This Row],[BaselinekW]],\"\")","v":""},{"$f":"IF(Table_SummaryPI[[#This Row],[ProposedkWh]]<>\"\",Table_SummaryPI[[#This Row],[ProposedkWh]],\"\")","v":""},{"$f":"IF(Table_SummaryPI[[#This Row],[ProposedkW]]<>\"\",Table_SummaryPI[[#This Row],[ProposedkW]],\"\")","v":""},{"$f":"IF(Table_SummaryPI[[#This Row],[Notes]]<>\"\",Table_SummaryPI[[#This Row],[Notes]],\"\")","v":""},{"$f":"IF(Table_SummaryPI[[#This Row],[Incentive_Customer]]<>\"\",Table_SummaryPI[[#This Row],[Incentive_Customer]],0)","v":0},{"$f":"IF(Table_SummaryPI[[#This Row],[MeasureCost]]<>\"\",Table_SummaryPI[[#This Row],[MeasureCost]],0)","v":0},{"$f":"IF(Table_SummaryPI[[#This Row],[kWhSavings]]<>\"\",Table_SummaryPI[[#This Row],[kWhSavings]],0)","v":0},{"$f":"IF(Table_SummaryPI[[#This Row],[DemandSavingskW]]<>\"\",Table_SummaryPI[[#This Row],[DemandSavingskW]],0)","v":0}]
[{"$f":"Table_SummaryPI[[#This Row],[Line No.]]","v":""},{"$f":"IF(Table_PrintPI[[#This Row],[Line No.]]=\"\",\"\",CONCATENATE(Table_PrintPI[[#This Row],[Line No.]],\" - \",Table_SummaryPI[[#This Row],[MeasureName]]))","v":""},{"$f":"IF(Table_SummaryPI[[#This Row],[Manufacturer]]<>\"\",CONCATENATE(Table_SummaryPI[[#This Row],[Manufacturer]],\"/\",Table_SummaryPI[[#This Row],[Model'#]]),\"\")","v":""},{"$f":"IF(Table_SummaryPI[[#This Row],[Serial'#]]<>\"\",Table_SummaryPI[[#This Row],[Serial'#]],\"\")","v":""},{"$f":"IF(Table_SummaryPI[[#This Row],[Quantity]]<>\"\",Table_SummaryPI[[#This Row],[Quantity]],\"\")","v":""},{"$f":"IF(Table_SummaryPI[[#This Row],[BaselinekWh]]<>\"\",Table_SummaryPI[[#This Row],[BaselinekWh]],\"\")","v":""},{"$f":"IF(Table_SummaryPI[[#This Row],[BaselinekW]]<>\"\",Table_SummaryPI[[#This Row],[BaselinekW]],\"\")","v":""},{"$f":"IF(Table_SummaryPI[[#This Row],[ProposedkWh]]<>\"\",Table_SummaryPI[[#This Row],[ProposedkWh]],\"\")","v":""},{"$f":"IF(Table_SummaryPI[[#This Row],[ProposedkW]]<>\"\",Table_SummaryPI[[#This Row],[ProposedkW]],\"\")","v":""},{"$f":"IF(Table_SummaryPI[[#This Row],[Notes]]<>\"\",Table_SummaryPI[[#This Row],[Notes]],\"\")","v":""},{"$f":"IF(Table_SummaryPI[[#This Row],[Incentive_Customer]]<>\"\",Table_SummaryPI[[#This Row],[Incentive_Customer]],0)","v":0},{"$f":"IF(Table_SummaryPI[[#This Row],[MeasureCost]]<>\"\",Table_SummaryPI[[#This Row],[MeasureCost]],0)","v":0},{"$f":"IF(Table_SummaryPI[[#This Row],[kWhSavings]]<>\"\",Table_SummaryPI[[#This Row],[kWhSavings]],0)","v":0},{"$f":"IF(Table_SummaryPI[[#This Row],[DemandSavingskW]]<>\"\",Table_SummaryPI[[#This Row],[DemandSavingskW]],0)","v":0}]
[{"$f":"Table_SummaryPI[[#This Row],[Line No.]]","v":""},{"$f":"IF(Table_PrintPI[[#This Row],[Line No.]]=\"\",\"\",CONCATENATE(Table_PrintPI[[#This Row],[Line No.]],\" - \",Table_SummaryPI[[#This Row],[MeasureName]]))","v":""},{"$f":"IF(Table_SummaryPI[[#This Row],[Manufacturer]]<>\"\",CONCATENATE(Table_SummaryPI[[#This Row],[Manufacturer]],\"/\",Table_SummaryPI[[#This Row],[Model'#]]),\"\")","v":""},{"$f":"IF(Table_SummaryPI[[#This Row],[Serial'#]]<>\"\",Table_SummaryPI[[#This Row],[Serial'#]],\"\")","v":""},{"$f":"IF(Table_SummaryPI[[#This Row],[Quantity]]<>\"\",Table_SummaryPI[[#This Row],[Quantity]],\"\")","v":""},{"$f":"IF(Table_SummaryPI[[#This Row],[BaselinekWh]]<>\"\",Table_SummaryPI[[#This Row],[BaselinekWh]],\"\")","v":""},{"$f":"IF(Table_SummaryPI[[#This Row],[BaselinekW]]<>\"\",Table_SummaryPI[[#This Row],[BaselinekW]],\"\")","v":""},{"$f":"IF(Table_SummaryPI[[#This Row],[ProposedkWh]]<>\"\",Table_SummaryPI[[#This Row],[ProposedkWh]],\"\")","v":""},{"$f":"IF(Table_SummaryPI[[#This Row],[ProposedkW]]<>\"\",Table_SummaryPI[[#This Row],[ProposedkW]],\"\")","v":""},{"$f":"IF(Table_SummaryPI[[#This Row],[Notes]]<>\"\",Table_SummaryPI[[#This Row],[Notes]],\"\")","v":""},{"$f":"IF(Table_SummaryPI[[#This Row],[Incentive_Customer]]<>\"\",Table_SummaryPI[[#This Row],[Incentive_Customer]],0)","v":0},{"$f":"IF(Table_SummaryPI[[#This Row],[MeasureCost]]<>\"\",Table_SummaryPI[[#This Row],[MeasureCost]],0)","v":0},{"$f":"IF(Table_SummaryPI[[#This Row],[kWhSavings]]<>\"\",Table_SummaryPI[[#This Row],[kWhSavings]],0)","v":0},{"$f":"IF(Table_SummaryPI[[#This Row],[DemandSavingskW]]<>\"\",Table_SummaryPI[[#This Row],[DemandSavingskW]],0)","v":0}]
[{"$f":"Table_SummaryPI[[#This Row],[Line No.]]","v":""},{"$f":"IF(Table_PrintPI[[#This Row],[Line No.]]=\"\",\"\",CONCATENATE(Table_PrintPI[[#This Row],[Line No.]],\" - \",Table_SummaryPI[[#This Row],[MeasureName]]))","v":""},{"$f":"IF(Table_SummaryPI[[#This Row],[Manufacturer]]<>\"\",CONCATENATE(Table_SummaryPI[[#This Row],[Manufacturer]],\"/\",Table_SummaryPI[[#This Row],[Model'#]]),\"\")","v":""},{"$f":"IF(Table_SummaryPI[[#This Row],[Serial'#]]<>\"\",Table_SummaryPI[[#This Row],[Serial'#]],\"\")","v":""},{"$f":"IF(Table_SummaryPI[[#This Row],[Quantity]]<>\"\",Table_SummaryPI[[#This Row],[Quantity]],\"\")","v":""},{"$f":"IF(Table_SummaryPI[[#This Row],[BaselinekWh]]<>\"\",Table_SummaryPI[[#This Row],[BaselinekWh]],\"\")","v":""},{"$f":"IF(Table_SummaryPI[[#This Row],[BaselinekW]]<>\"\",Table_SummaryPI[[#This Row],[BaselinekW]],\"\")","v":""},{"$f":"IF(Table_SummaryPI[[#This Row],[ProposedkWh]]<>\"\",Table_SummaryPI[[#This Row],[ProposedkWh]],\"\")","v":""},{"$f":"IF(Table_SummaryPI[[#This Row],[ProposedkW]]<>\"\",Table_SummaryPI[[#This Row],[ProposedkW]],\"\")","v":""},{"$f":"IF(Table_SummaryPI[[#This Row],[Notes]]<>\"\",Table_SummaryPI[[#This Row],[Notes]],\"\")","v":""},{"$f":"IF(Table_SummaryPI[[#This Row],[Incentive_Customer]]<>\"\",Table_SummaryPI[[#This Row],[Incentive_Customer]],0)","v":0},{"$f":"IF(Table_SummaryPI[[#This Row],[MeasureCost]]<>\"\",Table_SummaryPI[[#This Row],[MeasureCost]],0)","v":0},{"$f":"IF(Table_SummaryPI[[#This Row],[kWhSavings]]<>\"\",Table_SummaryPI[[#This Row],[kWhSavings]],0)","v":0},{"$f":"IF(Table_SummaryPI[[#This Row],[DemandSavingskW]]<>\"\",Table_SummaryPI[[#This Row],[DemandSavingskW]],0)","v":0}]
[{"$f":"Table_SummaryPI[[#This Row],[Line No.]]","v":""},{"$f":"IF(Table_PrintPI[[#This Row],[Line No.]]=\"\",\"\",CONCATENATE(Table_PrintPI[[#This Row],[Line No.]],\" - \",Table_SummaryPI[[#This Row],[MeasureName]]))","v":""},{"$f":"IF(Table_SummaryPI[[#This Row],[Manufacturer]]<>\"\",CONCATENATE(Table_SummaryPI[[#This Row],[Manufacturer]],\"/\",Table_SummaryPI[[#This Row],[Model'#]]),\"\")","v":""},{"$f":"IF(Table_SummaryPI[[#This Row],[Serial'#]]<>\"\",Table_SummaryPI[[#This Row],[Serial'#]],\"\")","v":""},{"$f":"IF(Table_SummaryPI[[#This Row],[Quantity]]<>\"\",Table_SummaryPI[[#This Row],[Quantity]],\"\")","v":""},{"$f":"IF(Table_SummaryPI[[#This Row],[BaselinekWh]]<>\"\",Table_SummaryPI[[#This Row],[BaselinekWh]],\"\")","v":""},{"$f":"IF(Table_SummaryPI[[#This Row],[BaselinekW]]<>\"\",Table_SummaryPI[[#This Row],[BaselinekW]],\"\")","v":""},{"$f":"IF(Table_SummaryPI[[#This Row],[ProposedkWh]]<>\"\",Table_SummaryPI[[#This Row],[ProposedkWh]],\"\")","v":""},{"$f":"IF(Table_SummaryPI[[#This Row],[ProposedkW]]<>\"\",Table_SummaryPI[[#This Row],[ProposedkW]],\"\")","v":""},{"$f":"IF(Table_SummaryPI[[#This Row],[Notes]]<>\"\",Table_SummaryPI[[#This Row],[Notes]],\"\")","v":""},{"$f":"IF(Table_SummaryPI[[#This Row],[Incentive_Customer]]<>\"\",Table_SummaryPI[[#This Row],[Incentive_Customer]],0)","v":0},{"$f":"IF(Table_SummaryPI[[#This Row],[MeasureCost]]<>\"\",Table_SummaryPI[[#This Row],[MeasureCost]],0)","v":0},{"$f":"IF(Table_SummaryPI[[#This Row],[kWhSavings]]<>\"\",Table_SummaryPI[[#This Row],[kWhSavings]],0)","v":0},{"$f":"IF(Table_SummaryPI[[#This Row],[DemandSavingskW]]<>\"\",Table_SummaryPI[[#This Row],[DemandSavingskW]],0)","v":0}]
[{"$f":"Table_SummaryPI[[#This Row],[Line No.]]","v":""},{"$f":"IF(Table_PrintPI[[#This Row],[Line No.]]=\"\",\"\",CONCATENATE(Table_PrintPI[[#This Row],[Line No.]],\" - \",Table_SummaryPI[[#This Row],[MeasureName]]))","v":""},{"$f":"IF(Table_SummaryPI[[#This Row],[Manufacturer]]<>\"\",CONCATENATE(Table_SummaryPI[[#This Row],[Manufacturer]],\"/\",Table_SummaryPI[[#This Row],[Model'#]]),\"\")","v":""},{"$f":"IF(Table_SummaryPI[[#This Row],[Serial'#]]<>\"\",Table_SummaryPI[[#This Row],[Serial'#]],\"\")","v":""},{"$f":"IF(Table_SummaryPI[[#This Row],[Quantity]]<>\"\",Table_SummaryPI[[#This Row],[Quantity]],\"\")","v":""},{"$f":"IF(Table_SummaryPI[[#This Row],[BaselinekWh]]<>\"\",Table_SummaryPI[[#This Row],[BaselinekWh]],\"\")","v":""},{"$f":"IF(Table_SummaryPI[[#This Row],[BaselinekW]]<>\"\",Table_SummaryPI[[#This Row],[BaselinekW]],\"\")","v":""},{"$f":"IF(Table_SummaryPI[[#This Row],[ProposedkWh]]<>\"\",Table_SummaryPI[[#This Row],[ProposedkWh]],\"\")","v":""},{"$f":"IF(Table_SummaryPI[[#This Row],[ProposedkW]]<>\"\",Table_SummaryPI[[#This Row],[ProposedkW]],\"\")","v":""},{"$f":"IF(Table_SummaryPI[[#This Row],[Notes]]<>\"\",Table_SummaryPI[[#This Row],[Notes]],\"\")","v":""},{"$f":"IF(Table_SummaryPI[[#This Row],[Incentive_Customer]]<>\"\",Table_SummaryPI[[#This Row],[Incentive_Customer]],0)","v":0},{"$f":"IF(Table_SummaryPI[[#This Row],[MeasureCost]]<>\"\",Table_SummaryPI[[#This Row],[MeasureCost]],0)","v":0},{"$f":"IF(Table_SummaryPI[[#This Row],[kWhSavings]]<>\"\",Table_SummaryPI[[#This Row],[kWhSavings]],0)","v":0},{"$f":"IF(Table_SummaryPI[[#This Row],[DemandSavingskW]]<>\"\",Table_SummaryPI[[#This Row],[DemandSavingskW]],0)","v":0}]
[{"$f":"Table_SummaryPI[[#This Row],[Line No.]]","v":""},{"$f":"IF(Table_PrintPI[[#This Row],[Line No.]]=\"\",\"\",CONCATENATE(Table_PrintPI[[#This Row],[Line No.]],\" - \",Table_SummaryPI[[#This Row],[MeasureName]]))","v":""},{"$f":"IF(Table_SummaryPI[[#This Row],[Manufacturer]]<>\"\",CONCATENATE(Table_SummaryPI[[#This Row],[Manufacturer]],\"/\",Table_SummaryPI[[#This Row],[Model'#]]),\"\")","v":""},{"$f":"IF(Table_SummaryPI[[#This Row],[Serial'#]]<>\"\",Table_SummaryPI[[#This Row],[Serial'#]],\"\")","v":""},{"$f":"IF(Table_SummaryPI[[#This Row],[Quantity]]<>\"\",Table_SummaryPI[[#This Row],[Quantity]],\"\")","v":""},{"$f":"IF(Table_SummaryPI[[#This Row],[BaselinekWh]]<>\"\",Table_SummaryPI[[#This Row],[BaselinekWh]],\"\")","v":""},{"$f":"IF(Table_SummaryPI[[#This Row],[BaselinekW]]<>\"\",Table_SummaryPI[[#This Row],[BaselinekW]],\"\")","v":""},{"$f":"IF(Table_SummaryPI[[#This Row],[ProposedkWh]]<>\"\",Table_SummaryPI[[#This Row],[ProposedkWh]],\"\")","v":""},{"$f":"IF(Table_SummaryPI[[#This Row],[ProposedkW]]<>\"\",Table_SummaryPI[[#This Row],[ProposedkW]],\"\")","v":""},{"$f":"IF(Table_SummaryPI[[#This Row],[Notes]]<>\"\",Table_SummaryPI[[#This Row],[Notes]],\"\")","v":""},{"$f":"IF(Table_SummaryPI[[#This Row],[Incentive_Customer]]<>\"\",Table_SummaryPI[[#This Row],[Incentive_Customer]],0)","v":0},{"$f":"IF(Table_SummaryPI[[#This Row],[MeasureCost]]<>\"\",Table_SummaryPI[[#This Row],[MeasureCost]],0)","v":0},{"$f":"IF(Table_SummaryPI[[#This Row],[kWhSavings]]<>\"\",Table_SummaryPI[[#This Row],[kWhSavings]],0)","v":0},{"$f":"IF(Table_SummaryPI[[#This Row],[DemandSavingskW]]<>\"\",Table_SummaryPI[[#This Row],[DemandSavingskW]],0)","v":0}]
[{"$f":"Table_SummaryPI[[#This Row],[Line No.]]","v":""},{"$f":"IF(Table_PrintPI[[#This Row],[Line No.]]=\"\",\"\",CONCATENATE(Table_PrintPI[[#This Row],[Line No.]],\" - \",Table_SummaryPI[[#This Row],[MeasureName]]))","v":""},{"$f":"IF(Table_SummaryPI[[#This Row],[Manufacturer]]<>\"\",CONCATENATE(Table_SummaryPI[[#This Row],[Manufacturer]],\"/\",Table_SummaryPI[[#This Row],[Model'#]]),\"\")","v":""},{"$f":"IF(Table_SummaryPI[[#This Row],[Serial'#]]<>\"\",Table_SummaryPI[[#This Row],[Serial'#]],\"\")","v":""},{"$f":"IF(Table_SummaryPI[[#This Row],[Quantity]]<>\"\",Table_SummaryPI[[#This Row],[Quantity]],\"\")","v":""},{"$f":"IF(Table_SummaryPI[[#This Row],[BaselinekWh]]<>\"\",Table_SummaryPI[[#This Row],[BaselinekWh]],\"\")","v":""},{"$f":"IF(Table_SummaryPI[[#This Row],[BaselinekW]]<>\"\",Table_SummaryPI[[#This Row],[BaselinekW]],\"\")","v":""},{"$f":"IF(Table_SummaryPI[[#This Row],[ProposedkWh]]<>\"\",Table_SummaryPI[[#This Row],[ProposedkWh]],\"\")","v":""},{"$f":"IF(Table_SummaryPI[[#This Row],[ProposedkW]]<>\"\",Table_SummaryPI[[#This Row],[ProposedkW]],\"\")","v":""},{"$f":"IF(Table_SummaryPI[[#This Row],[Notes]]<>\"\",Table_SummaryPI[[#This Row],[Notes]],\"\")","v":""},{"$f":"IF(Table_SummaryPI[[#This Row],[Incentive_Customer]]<>\"\",Table_SummaryPI[[#This Row],[Incentive_Customer]],0)","v":0},{"$f":"IF(Table_SummaryPI[[#This Row],[MeasureCost]]<>\"\",Table_SummaryPI[[#This Row],[MeasureCost]],0)","v":0},{"$f":"IF(Table_SummaryPI[[#This Row],[kWhSavings]]<>\"\",Table_SummaryPI[[#This Row],[kWhSavings]],0)","v":0},{"$f":"IF(Table_SummaryPI[[#This Row],[DemandSavingskW]]<>\"\",Table_SummaryPI[[#This Row],[DemandSavingskW]],0)","v":0}]
[{"$f":"Table_SummaryPI[[#This Row],[Line No.]]","v":""},{"$f":"IF(Table_PrintPI[[#This Row],[Line No.]]=\"\",\"\",CONCATENATE(Table_PrintPI[[#This Row],[Line No.]],\" - \",Table_SummaryPI[[#This Row],[MeasureName]]))","v":""},{"$f":"IF(Table_SummaryPI[[#This Row],[Manufacturer]]<>\"\",CONCATENATE(Table_SummaryPI[[#This Row],[Manufacturer]],\"/\",Table_SummaryPI[[#This Row],[Model'#]]),\"\")","v":""},{"$f":"IF(Table_SummaryPI[[#This Row],[Serial'#]]<>\"\",Table_SummaryPI[[#This Row],[Serial'#]],\"\")","v":""},{"$f":"IF(Table_SummaryPI[[#This Row],[Quantity]]<>\"\",Table_SummaryPI[[#This Row],[Quantity]],\"\")","v":""},{"$f":"IF(Table_SummaryPI[[#This Row],[BaselinekWh]]<>\"\",Table_SummaryPI[[#This Row],[BaselinekWh]],\"\")","v":""},{"$f":"IF(Table_SummaryPI[[#This Row],[BaselinekW]]<>\"\",Table_SummaryPI[[#This Row],[BaselinekW]],\"\")","v":""},{"$f":"IF(Table_SummaryPI[[#This Row],[ProposedkWh]]<>\"\",Table_SummaryPI[[#This Row],[ProposedkWh]],\"\")","v":""},{"$f":"IF(Table_SummaryPI[[#This Row],[ProposedkW]]<>\"\",Table_SummaryPI[[#This Row],[ProposedkW]],\"\")","v":""},{"$f":"IF(Table_SummaryPI[[#This Row],[Notes]]<>\"\",Table_SummaryPI[[#This Row],[Notes]],\"\")","v":""},{"$f":"IF(Table_SummaryPI[[#This Row],[Incentive_Customer]]<>\"\",Table_SummaryPI[[#This Row],[Incentive_Customer]],0)","v":0},{"$f":"IF(Table_SummaryPI[[#This Row],[MeasureCost]]<>\"\",Table_SummaryPI[[#This Row],[MeasureCost]],0)","v":0},{"$f":"IF(Table_SummaryPI[[#This Row],[kWhSavings]]<>\"\",Table_SummaryPI[[#This Row],[kWhSavings]],0)","v":0},{"$f":"IF(Table_SummaryPI[[#This Row],[DemandSavingskW]]<>\"\",Table_SummaryPI[[#This Row],[DemandSavingskW]],0)","v":0}]
[{"$f":"Table_SummaryPI[[#This Row],[Line No.]]","v":""},{"$f":"IF(Table_PrintPI[[#This Row],[Line No.]]=\"\",\"\",CONCATENATE(Table_PrintPI[[#This Row],[Line No.]],\" - \",Table_SummaryPI[[#This Row],[MeasureName]]))","v":""},{"$f":"IF(Table_SummaryPI[[#This Row],[Manufacturer]]<>\"\",CONCATENATE(Table_SummaryPI[[#This Row],[Manufacturer]],\"/\",Table_SummaryPI[[#This Row],[Model'#]]),\"\")","v":""},{"$f":"IF(Table_SummaryPI[[#This Row],[Serial'#]]<>\"\",Table_SummaryPI[[#This Row],[Serial'#]],\"\")","v":""},{"$f":"IF(Table_SummaryPI[[#This Row],[Quantity]]<>\"\",Table_SummaryPI[[#This Row],[Quantity]],\"\")","v":""},{"$f":"IF(Table_SummaryPI[[#This Row],[BaselinekWh]]<>\"\",Table_SummaryPI[[#This Row],[BaselinekWh]],\"\")","v":""},{"$f":"IF(Table_SummaryPI[[#This Row],[BaselinekW]]<>\"\",Table_SummaryPI[[#This Row],[BaselinekW]],\"\")","v":""},{"$f":"IF(Table_SummaryPI[[#This Row],[ProposedkWh]]<>\"\",Table_SummaryPI[[#This Row],[ProposedkWh]],\"\")","v":""},{"$f":"IF(Table_SummaryPI[[#This Row],[ProposedkW]]<>\"\",Table_SummaryPI[[#This Row],[ProposedkW]],\"\")","v":""},{"$f":"IF(Table_SummaryPI[[#This Row],[Notes]]<>\"\",Table_SummaryPI[[#This Row],[Notes]],\"\")","v":""},{"$f":"IF(Table_SummaryPI[[#This Row],[Incentive_Customer]]<>\"\",Table_SummaryPI[[#This Row],[Incentive_Customer]],0)","v":0},{"$f":"IF(Table_SummaryPI[[#This Row],[MeasureCost]]<>\"\",Table_SummaryPI[[#This Row],[MeasureCost]],0)","v":0},{"$f":"IF(Table_SummaryPI[[#This Row],[kWhSavings]]<>\"\",Table_SummaryPI[[#This Row],[kWhSavings]],0)","v":0},{"$f":"IF(Table_SummaryPI[[#This Row],[DemandSavingskW]]<>\"\",Table_SummaryPI[[#This Row],[DemandSavingskW]],0)","v":0}]
[{"$f":"Table_SummaryPI[[#This Row],[Line No.]]","v":""},{"$f":"IF(Table_PrintPI[[#This Row],[Line No.]]=\"\",\"\",CONCATENATE(Table_PrintPI[[#This Row],[Line No.]],\" - \",Table_SummaryPI[[#This Row],[MeasureName]]))","v":""},{"$f":"IF(Table_SummaryPI[[#This Row],[Manufacturer]]<>\"\",CONCATENATE(Table_SummaryPI[[#This Row],[Manufacturer]],\"/\",Table_SummaryPI[[#This Row],[Model'#]]),\"\")","v":""},{"$f":"IF(Table_SummaryPI[[#This Row],[Serial'#]]<>\"\",Table_SummaryPI[[#This Row],[Serial'#]],\"\")","v":""},{"$f":"IF(Table_SummaryPI[[#This Row],[Quantity]]<>\"\",Table_SummaryPI[[#This Row],[Quantity]],\"\")","v":""},{"$f":"IF(Table_SummaryPI[[#This Row],[BaselinekWh]]<>\"\",Table_SummaryPI[[#This Row],[BaselinekWh]],\"\")","v":""},{"$f":"IF(Table_SummaryPI[[#This Row],[BaselinekW]]<>\"\",Table_SummaryPI[[#This Row],[BaselinekW]],\"\")","v":""},{"$f":"IF(Table_SummaryPI[[#This Row],[ProposedkWh]]<>\"\",Table_SummaryPI[[#This Row],[ProposedkWh]],\"\")","v":""},{"$f":"IF(Table_SummaryPI[[#This Row],[ProposedkW]]<>\"\",Table_SummaryPI[[#This Row],[ProposedkW]],\"\")","v":""},{"$f":"IF(Table_SummaryPI[[#This Row],[Notes]]<>\"\",Table_SummaryPI[[#This Row],[Notes]],\"\")","v":""},{"$f":"IF(Table_SummaryPI[[#This Row],[Incentive_Customer]]<>\"\",Table_SummaryPI[[#This Row],[Incentive_Customer]],0)","v":0},{"$f":"IF(Table_SummaryPI[[#This Row],[MeasureCost]]<>\"\",Table_SummaryPI[[#This Row],[MeasureCost]],0)","v":0},{"$f":"IF(Table_SummaryPI[[#This Row],[kWhSavings]]<>\"\",Table_SummaryPI[[#This Row],[kWhSavings]],0)","v":0},{"$f":"IF(Table_SummaryPI[[#This Row],[DemandSavingskW]]<>\"\",Table_SummaryPI[[#This Row],[DemandSavingskW]],0)","v":0}]
[{"$f":"Table_SummaryPI[[#This Row],[Line No.]]","v":""},{"$f":"IF(Table_PrintPI[[#This Row],[Line No.]]=\"\",\"\",CONCATENATE(Table_PrintPI[[#This Row],[Line No.]],\" - \",Table_SummaryPI[[#This Row],[MeasureName]]))","v":""},{"$f":"IF(Table_SummaryPI[[#This Row],[Manufacturer]]<>\"\",CONCATENATE(Table_SummaryPI[[#This Row],[Manufacturer]],\"/\",Table_SummaryPI[[#This Row],[Model'#]]),\"\")","v":""},{"$f":"IF(Table_SummaryPI[[#This Row],[Serial'#]]<>\"\",Table_SummaryPI[[#This Row],[Serial'#]],\"\")","v":""},{"$f":"IF(Table_SummaryPI[[#This Row],[Quantity]]<>\"\",Table_SummaryPI[[#This Row],[Quantity]],\"\")","v":""},{"$f":"IF(Table_SummaryPI[[#This Row],[BaselinekWh]]<>\"\",Table_SummaryPI[[#This Row],[BaselinekWh]],\"\")","v":""},{"$f":"IF(Table_SummaryPI[[#This Row],[BaselinekW]]<>\"\",Table_SummaryPI[[#This Row],[BaselinekW]],\"\")","v":""},{"$f":"IF(Table_SummaryPI[[#This Row],[ProposedkWh]]<>\"\",Table_SummaryPI[[#This Row],[ProposedkWh]],\"\")","v":""},{"$f":"IF(Table_SummaryPI[[#This Row],[ProposedkW]]<>\"\",Table_SummaryPI[[#This Row],[ProposedkW]],\"\")","v":""},{"$f":"IF(Table_SummaryPI[[#This Row],[Notes]]<>\"\",Table_SummaryPI[[#This Row],[Notes]],\"\")","v":""},{"$f":"IF(Table_SummaryPI[[#This Row],[Incentive_Customer]]<>\"\",Table_SummaryPI[[#This Row],[Incentive_Customer]],0)","v":0},{"$f":"IF(Table_SummaryPI[[#This Row],[MeasureCost]]<>\"\",Table_SummaryPI[[#This Row],[MeasureCost]],0)","v":0},{"$f":"IF(Table_SummaryPI[[#This Row],[kWhSavings]]<>\"\",Table_SummaryPI[[#This Row],[kWhSavings]],0)","v":0},{"$f":"IF(Table_SummaryPI[[#This Row],[DemandSavingskW]]<>\"\",Table_SummaryPI[[#This Row],[DemandSavingskW]],0)","v":0}]
[{"$f":"Table_SummaryPI[[#This Row],[Line No.]]","v":""},{"$f":"IF(Table_PrintPI[[#This Row],[Line No.]]=\"\",\"\",CONCATENATE(Table_PrintPI[[#This Row],[Line No.]],\" - \",Table_SummaryPI[[#This Row],[MeasureName]]))","v":""},{"$f":"IF(Table_SummaryPI[[#This Row],[Manufacturer]]<>\"\",CONCATENATE(Table_SummaryPI[[#This Row],[Manufacturer]],\"/\",Table_SummaryPI[[#This Row],[Model'#]]),\"\")","v":""},{"$f":"IF(Table_SummaryPI[[#This Row],[Serial'#]]<>\"\",Table_SummaryPI[[#This Row],[Serial'#]],\"\")","v":""},{"$f":"IF(Table_SummaryPI[[#This Row],[Quantity]]<>\"\",Table_SummaryPI[[#This Row],[Quantity]],\"\")","v":""},{"$f":"IF(Table_SummaryPI[[#This Row],[BaselinekWh]]<>\"\",Table_SummaryPI[[#This Row],[BaselinekWh]],\"\")","v":""},{"$f":"IF(Table_SummaryPI[[#This Row],[BaselinekW]]<>\"\",Table_SummaryPI[[#This Row],[BaselinekW]],\"\")","v":""},{"$f":"IF(Table_SummaryPI[[#This Row],[ProposedkWh]]<>\"\",Table_SummaryPI[[#This Row],[ProposedkWh]],\"\")","v":""},{"$f":"IF(Table_SummaryPI[[#This Row],[ProposedkW]]<>\"\",Table_SummaryPI[[#This Row],[ProposedkW]],\"\")","v":""},{"$f":"IF(Table_SummaryPI[[#This Row],[Notes]]<>\"\",Table_SummaryPI[[#This Row],[Notes]],\"\")","v":""},{"$f":"IF(Table_SummaryPI[[#This Row],[Incentive_Customer]]<>\"\",Table_SummaryPI[[#This Row],[Incentive_Customer]],0)","v":0},{"$f":"IF(Table_SummaryPI[[#This Row],[MeasureCost]]<>\"\",Table_SummaryPI[[#This Row],[MeasureCost]],0)","v":0},{"$f":"IF(Table_SummaryPI[[#This Row],[kWhSavings]]<>\"\",Table_SummaryPI[[#This Row],[kWhSavings]],0)","v":0},{"$f":"IF(Table_SummaryPI[[#This Row],[DemandSavingskW]]<>\"\",Table_SummaryPI[[#This Row],[DemandSavingskW]],0)","v":0}]
[{"$f":"Table_SummaryPI[[#This Row],[Line No.]]","v":""},{"$f":"IF(Table_PrintPI[[#This Row],[Line No.]]=\"\",\"\",CONCATENATE(Table_PrintPI[[#This Row],[Line No.]],\" - \",Table_SummaryPI[[#This Row],[MeasureName]]))","v":""},{"$f":"IF(Table_SummaryPI[[#This Row],[Manufacturer]]<>\"\",CONCATENATE(Table_SummaryPI[[#This Row],[Manufacturer]],\"/\",Table_SummaryPI[[#This Row],[Model'#]]),\"\")","v":""},{"$f":"IF(Table_SummaryPI[[#This Row],[Serial'#]]<>\"\",Table_SummaryPI[[#This Row],[Serial'#]],\"\")","v":""},{"$f":"IF(Table_SummaryPI[[#This Row],[Quantity]]<>\"\",Table_SummaryPI[[#This Row],[Quantity]],\"\")","v":""},{"$f":"IF(Table_SummaryPI[[#This Row],[BaselinekWh]]<>\"\",Table_SummaryPI[[#This Row],[BaselinekWh]],\"\")","v":""},{"$f":"IF(Table_SummaryPI[[#This Row],[BaselinekW]]<>\"\",Table_SummaryPI[[#This Row],[BaselinekW]],\"\")","v":""},{"$f":"IF(Table_SummaryPI[[#This Row],[ProposedkWh]]<>\"\",Table_SummaryPI[[#This Row],[ProposedkWh]],\"\")","v":""},{"$f":"IF(Table_SummaryPI[[#This Row],[ProposedkW]]<>\"\",Table_SummaryPI[[#This Row],[ProposedkW]],\"\")","v":""},{"$f":"IF(Table_SummaryPI[[#This Row],[Notes]]<>\"\",Table_SummaryPI[[#This Row],[Notes]],\"\")","v":""},{"$f":"IF(Table_SummaryPI[[#This Row],[Incentive_Customer]]<>\"\",Table_SummaryPI[[#This Row],[Incentive_Customer]],0)","v":0},{"$f":"IF(Table_SummaryPI[[#This Row],[MeasureCost]]<>\"\",Table_SummaryPI[[#This Row],[MeasureCost]],0)","v":0},{"$f":"IF(Table_SummaryPI[[#This Row],[kWhSavings]]<>\"\",Table_SummaryPI[[#This Row],[kWhSavings]],0)","v":0},{"$f":"IF(Table_SummaryPI[[#This Row],[DemandSavingskW]]<>\"\",Table_SummaryPI[[#This Row],[DemandSavingskW]],0)","v":0}]
[{"$f":"Table_SummaryPI[[#This Row],[Line No.]]","v":""},{"$f":"IF(Table_PrintPI[[#This Row],[Line No.]]=\"\",\"\",CONCATENATE(Table_PrintPI[[#This Row],[Line No.]],\" - \",Table_SummaryPI[[#This Row],[MeasureName]]))","v":""},{"$f":"IF(Table_SummaryPI[[#This Row],[Manufacturer]]<>\"\",CONCATENATE(Table_SummaryPI[[#This Row],[Manufacturer]],\"/\",Table_SummaryPI[[#This Row],[Model'#]]),\"\")","v":""},{"$f":"IF(Table_SummaryPI[[#This Row],[Serial'#]]<>\"\",Table_SummaryPI[[#This Row],[Serial'#]],\"\")","v":""},{"$f":"IF(Table_SummaryPI[[#This Row],[Quantity]]<>\"\",Table_SummaryPI[[#This Row],[Quantity]],\"\")","v":""},{"$f":"IF(Table_SummaryPI[[#This Row],[BaselinekWh]]<>\"\",Table_SummaryPI[[#This Row],[BaselinekWh]],\"\")","v":""},{"$f":"IF(Table_SummaryPI[[#This Row],[BaselinekW]]<>\"\",Table_SummaryPI[[#This Row],[BaselinekW]],\"\")","v":""},{"$f":"IF(Table_SummaryPI[[#This Row],[ProposedkWh]]<>\"\",Table_SummaryPI[[#This Row],[ProposedkWh]],\"\")","v":""},{"$f":"IF(Table_SummaryPI[[#This Row],[ProposedkW]]<>\"\",Table_SummaryPI[[#This Row],[ProposedkW]],\"\")","v":""},{"$f":"IF(Table_SummaryPI[[#This Row],[Notes]]<>\"\",Table_SummaryPI[[#This Row],[Notes]],\"\")","v":""},{"$f":"IF(Table_SummaryPI[[#This Row],[Incentive_Customer]]<>\"\",Table_SummaryPI[[#This Row],[Incentive_Customer]],0)","v":0},{"$f":"IF(Table_SummaryPI[[#This Row],[MeasureCost]]<>\"\",Table_SummaryPI[[#This Row],[MeasureCost]],0)","v":0},{"$f":"IF(Table_SummaryPI[[#This Row],[kWhSavings]]<>\"\",Table_SummaryPI[[#This Row],[kWhSavings]],0)","v":0},{"$f":"IF(Table_SummaryPI[[#This Row],[DemandSavingskW]]<>\"\",Table_SummaryPI[[#This Row],[DemandSavingskW]],0)","v":0}]
[{"$f":"Table_SummaryPI[[#This Row],[Line No.]]","v":""},{"$f":"IF(Table_PrintPI[[#This Row],[Line No.]]=\"\",\"\",CONCATENATE(Table_PrintPI[[#This Row],[Line No.]],\" - \",Table_SummaryPI[[#This Row],[MeasureName]]))","v":""},{"$f":"IF(Table_SummaryPI[[#This Row],[Manufacturer]]<>\"\",CONCATENATE(Table_SummaryPI[[#This Row],[Manufacturer]],\"/\",Table_SummaryPI[[#This Row],[Model'#]]),\"\")","v":""},{"$f":"IF(Table_SummaryPI[[#This Row],[Serial'#]]<>\"\",Table_SummaryPI[[#This Row],[Serial'#]],\"\")","v":""},{"$f":"IF(Table_SummaryPI[[#This Row],[Quantity]]<>\"\",Table_SummaryPI[[#This Row],[Quantity]],\"\")","v":""},{"$f":"IF(Table_SummaryPI[[#This Row],[BaselinekWh]]<>\"\",Table_SummaryPI[[#This Row],[BaselinekWh]],\"\")","v":""},{"$f":"IF(Table_SummaryPI[[#This Row],[BaselinekW]]<>\"\",Table_SummaryPI[[#This Row],[BaselinekW]],\"\")","v":""},{"$f":"IF(Table_SummaryPI[[#This Row],[ProposedkWh]]<>\"\",Table_SummaryPI[[#This Row],[ProposedkWh]],\"\")","v":""},{"$f":"IF(Table_SummaryPI[[#This Row],[ProposedkW]]<>\"\",Table_SummaryPI[[#This Row],[ProposedkW]],\"\")","v":""},{"$f":"IF(Table_SummaryPI[[#This Row],[Notes]]<>\"\",Table_SummaryPI[[#This Row],[Notes]],\"\")","v":""},{"$f":"IF(Table_SummaryPI[[#This Row],[Incentive_Customer]]<>\"\",Table_SummaryPI[[#This Row],[Incentive_Customer]],0)","v":0},{"$f":"IF(Table_SummaryPI[[#This Row],[MeasureCost]]<>\"\",Table_SummaryPI[[#This Row],[MeasureCost]],0)","v":0},{"$f":"IF(Table_SummaryPI[[#This Row],[kWhSavings]]<>\"\",Table_SummaryPI[[#This Row],[kWhSavings]],0)","v":0},{"$f":"IF(Table_SummaryPI[[#This Row],[DemandSavingskW]]<>\"\",Table_SummaryPI[[#This Row],[DemandSavingskW]],0)","v":0}]
[{"$f":"Table_SummaryPI[[#This Row],[Line No.]]","v":""},{"$f":"IF(Table_PrintPI[[#This Row],[Line No.]]=\"\",\"\",CONCATENATE(Table_PrintPI[[#This Row],[Line No.]],\" - \",Table_SummaryPI[[#This Row],[MeasureName]]))","v":""},{"$f":"IF(Table_SummaryPI[[#This Row],[Manufacturer]]<>\"\",CONCATENATE(Table_SummaryPI[[#This Row],[Manufacturer]],\"/\",Table_SummaryPI[[#This Row],[Model'#]]),\"\")","v":""},{"$f":"IF(Table_SummaryPI[[#This Row],[Serial'#]]<>\"\",Table_SummaryPI[[#This Row],[Serial'#]],\"\")","v":""},{"$f":"IF(Table_SummaryPI[[#This Row],[Quantity]]<>\"\",Table_SummaryPI[[#This Row],[Quantity]],\"\")","v":""},{"$f":"IF(Table_SummaryPI[[#This Row],[BaselinekWh]]<>\"\",Table_SummaryPI[[#This Row],[BaselinekWh]],\"\")","v":""},{"$f":"IF(Table_SummaryPI[[#This Row],[BaselinekW]]<>\"\",Table_SummaryPI[[#This Row],[BaselinekW]],\"\")","v":""},{"$f":"IF(Table_SummaryPI[[#This Row],[ProposedkWh]]<>\"\",Table_SummaryPI[[#This Row],[ProposedkWh]],\"\")","v":""},{"$f":"IF(Table_SummaryPI[[#This Row],[ProposedkW]]<>\"\",Table_SummaryPI[[#This Row],[ProposedkW]],\"\")","v":""},{"$f":"IF(Table_SummaryPI[[#This Row],[Notes]]<>\"\",Table_SummaryPI[[#This Row],[Notes]],\"\")","v":""},{"$f":"IF(Table_SummaryPI[[#This Row],[Incentive_Customer]]<>\"\",Table_SummaryPI[[#This Row],[Incentive_Customer]],0)","v":0},{"$f":"IF(Table_SummaryPI[[#This Row],[MeasureCost]]<>\"\",Table_SummaryPI[[#This Row],[MeasureCost]],0)","v":0},{"$f":"IF(Table_SummaryPI[[#This Row],[kWhSavings]]<>\"\",Table_SummaryPI[[#This Row],[kWhSavings]],0)","v":0},{"$f":"IF(Table_SummaryPI[[#This Row],[DemandSavingskW]]<>\"\",Table_SummaryPI[[#This Row],[DemandSavingskW]],0)","v":0}]
[{"$f":"Table_SummaryPI[[#This Row],[Line No.]]","v":""},{"$f":"IF(Table_PrintPI[[#This Row],[Line No.]]=\"\",\"\",CONCATENATE(Table_PrintPI[[#This Row],[Line No.]],\" - \",Table_SummaryPI[[#This Row],[MeasureName]]))","v":""},{"$f":"IF(Table_SummaryPI[[#This Row],[Manufacturer]]<>\"\",CONCATENATE(Table_SummaryPI[[#This Row],[Manufacturer]],\"/\",Table_SummaryPI[[#This Row],[Model'#]]),\"\")","v":""},{"$f":"IF(Table_SummaryPI[[#This Row],[Serial'#]]<>\"\",Table_SummaryPI[[#This Row],[Serial'#]],\"\")","v":""},{"$f":"IF(Table_SummaryPI[[#This Row],[Quantity]]<>\"\",Table_SummaryPI[[#This Row],[Quantity]],\"\")","v":""},{"$f":"IF(Table_SummaryPI[[#This Row],[BaselinekWh]]<>\"\",Table_SummaryPI[[#This Row],[BaselinekWh]],\"\")","v":""},{"$f":"IF(Table_SummaryPI[[#This Row],[BaselinekW]]<>\"\",Table_SummaryPI[[#This Row],[BaselinekW]],\"\")","v":""},{"$f":"IF(Table_SummaryPI[[#This Row],[ProposedkWh]]<>\"\",Table_SummaryPI[[#This Row],[ProposedkWh]],\"\")","v":""},{"$f":"IF(Table_SummaryPI[[#This Row],[ProposedkW]]<>\"\",Table_SummaryPI[[#This Row],[ProposedkW]],\"\")","v":""},{"$f":"IF(Table_SummaryPI[[#This Row],[Notes]]<>\"\",Table_SummaryPI[[#This Row],[Notes]],\"\")","v":""},{"$f":"IF(Table_SummaryPI[[#This Row],[Incentive_Customer]]<>\"\",Table_SummaryPI[[#This Row],[Incentive_Customer]],0)","v":0},{"$f":"IF(Table_SummaryPI[[#This Row],[MeasureCost]]<>\"\",Table_SummaryPI[[#This Row],[MeasureCost]],0)","v":0},{"$f":"IF(Table_SummaryPI[[#This Row],[kWhSavings]]<>\"\",Table_SummaryPI[[#This Row],[kWhSavings]],0)","v":0},{"$f":"IF(Table_SummaryPI[[#This Row],[DemandSavingskW]]<>\"\",Table_SummaryPI[[#This Row],[DemandSavingskW]],0)","v":0}]
[{"$f":"Table_SummaryPI[[#This Row],[Line No.]]","v":""},{"$f":"IF(Table_PrintPI[[#This Row],[Line No.]]=\"\",\"\",CONCATENATE(Table_PrintPI[[#This Row],[Line No.]],\" - \",Table_SummaryPI[[#This Row],[MeasureName]]))","v":""},{"$f":"IF(Table_SummaryPI[[#This Row],[Manufacturer]]<>\"\",CONCATENATE(Table_SummaryPI[[#This Row],[Manufacturer]],\"/\",Table_SummaryPI[[#This Row],[Model'#]]),\"\")","v":""},{"$f":"IF(Table_SummaryPI[[#This Row],[Serial'#]]<>\"\",Table_SummaryPI[[#This Row],[Serial'#]],\"\")","v":""},{"$f":"IF(Table_SummaryPI[[#This Row],[Quantity]]<>\"\",Table_SummaryPI[[#This Row],[Quantity]],\"\")","v":""},{"$f":"IF(Table_SummaryPI[[#This Row],[BaselinekWh]]<>\"\",Table_SummaryPI[[#This Row],[BaselinekWh]],\"\")","v":""},{"$f":"IF(Table_SummaryPI[[#This Row],[BaselinekW]]<>\"\",Table_SummaryPI[[#This Row],[BaselinekW]],\"\")","v":""},{"$f":"IF(Table_SummaryPI[[#This Row],[ProposedkWh]]<>\"\",Table_SummaryPI[[#This Row],[ProposedkWh]],\"\")","v":""},{"$f":"IF(Table_SummaryPI[[#This Row],[ProposedkW]]<>\"\",Table_SummaryPI[[#This Row],[ProposedkW]],\"\")","v":""},{"$f":"IF(Table_SummaryPI[[#This Row],[Notes]]<>\"\",Table_SummaryPI[[#This Row],[Notes]],\"\")","v":""},{"$f":"IF(Table_SummaryPI[[#This Row],[Incentive_Customer]]<>\"\",Table_SummaryPI[[#This Row],[Incentive_Customer]],0)","v":0},{"$f":"IF(Table_SummaryPI[[#This Row],[MeasureCost]]<>\"\",Table_SummaryPI[[#This Row],[MeasureCost]],0)","v":0},{"$f":"IF(Table_SummaryPI[[#This Row],[kWhSavings]]<>\"\",Table_SummaryPI[[#This Row],[kWhSavings]],0)","v":0},{"$f":"IF(Table_SummaryPI[[#This Row],[DemandSavingskW]]<>\"\",Table_SummaryPI[[#This Row],[DemandSavingskW]],0)","v":0}]
[{"$f":"Table_SummaryPI[[#This Row],[Line No.]]","v":""},{"$f":"IF(Table_PrintPI[[#This Row],[Line No.]]=\"\",\"\",CONCATENATE(Table_PrintPI[[#This Row],[Line No.]],\" - \",Table_SummaryPI[[#This Row],[MeasureName]]))","v":""},{"$f":"IF(Table_SummaryPI[[#This Row],[Manufacturer]]<>\"\",CONCATENATE(Table_SummaryPI[[#This Row],[Manufacturer]],\"/\",Table_SummaryPI[[#This Row],[Model'#]]),\"\")","v":""},{"$f":"IF(Table_SummaryPI[[#This Row],[Serial'#]]<>\"\",Table_SummaryPI[[#This Row],[Serial'#]],\"\")","v":""},{"$f":"IF(Table_SummaryPI[[#This Row],[Quantity]]<>\"\",Table_SummaryPI[[#This Row],[Quantity]],\"\")","v":""},{"$f":"IF(Table_SummaryPI[[#This Row],[BaselinekWh]]<>\"\",Table_SummaryPI[[#This Row],[BaselinekWh]],\"\")","v":""},{"$f":"IF(Table_SummaryPI[[#This Row],[BaselinekW]]<>\"\",Table_SummaryPI[[#This Row],[BaselinekW]],\"\")","v":""},{"$f":"IF(Table_SummaryPI[[#This Row],[ProposedkWh]]<>\"\",Table_SummaryPI[[#This Row],[ProposedkWh]],\"\")","v":""},{"$f":"IF(Table_SummaryPI[[#This Row],[ProposedkW]]<>\"\",Table_SummaryPI[[#This Row],[ProposedkW]],\"\")","v":""},{"$f":"IF(Table_SummaryPI[[#This Row],[Notes]]<>\"\",Table_SummaryPI[[#This Row],[Notes]],\"\")","v":""},{"$f":"IF(Table_SummaryPI[[#This Row],[Incentive_Customer]]<>\"\",Table_SummaryPI[[#This Row],[Incentive_Customer]],0)","v":0},{"$f":"IF(Table_SummaryPI[[#This Row],[MeasureCost]]<>\"\",Table_SummaryPI[[#This Row],[MeasureCost]],0)","v":0},{"$f":"IF(Table_SummaryPI[[#This Row],[kWhSavings]]<>\"\",Table_SummaryPI[[#This Row],[kWhSavings]],0)","v":0},{"$f":"IF(Table_SummaryPI[[#This Row],[DemandSavingskW]]<>\"\",Table_SummaryPI[[#This Row],[DemandSavingskW]],0)","v":0}]
[{"$f":"Table_SummaryPI[[#This Row],[Line No.]]","v":""},{"$f":"IF(Table_PrintPI[[#This Row],[Line No.]]=\"\",\"\",CONCATENATE(Table_PrintPI[[#This Row],[Line No.]],\" - \",Table_SummaryPI[[#This Row],[MeasureName]]))","v":""},{"$f":"IF(Table_SummaryPI[[#This Row],[Manufacturer]]<>\"\",CONCATENATE(Table_SummaryPI[[#This Row],[Manufacturer]],\"/\",Table_SummaryPI[[#This Row],[Model'#]]),\"\")","v":""},{"$f":"IF(Table_SummaryPI[[#This Row],[Serial'#]]<>\"\",Table_SummaryPI[[#This Row],[Serial'#]],\"\")","v":""},{"$f":"IF(Table_SummaryPI[[#This Row],[Quantity]]<>\"\",Table_SummaryPI[[#This Row],[Quantity]],\"\")","v":""},{"$f":"IF(Table_SummaryPI[[#This Row],[BaselinekWh]]<>\"\",Table_SummaryPI[[#This Row],[BaselinekWh]],\"\")","v":""},{"$f":"IF(Table_SummaryPI[[#This Row],[BaselinekW]]<>\"\",Table_SummaryPI[[#This Row],[BaselinekW]],\"\")","v":""},{"$f":"IF(Table_SummaryPI[[#This Row],[ProposedkWh]]<>\"\",Table_SummaryPI[[#This Row],[ProposedkWh]],\"\")","v":""},{"$f":"IF(Table_SummaryPI[[#This Row],[ProposedkW]]<>\"\",Table_SummaryPI[[#This Row],[ProposedkW]],\"\")","v":""},{"$f":"IF(Table_SummaryPI[[#This Row],[Notes]]<>\"\",Table_SummaryPI[[#This Row],[Notes]],\"\")","v":""},{"$f":"IF(Table_SummaryPI[[#This Row],[Incentive_Customer]]<>\"\",Table_SummaryPI[[#This Row],[Incentive_Customer]],0)","v":0},{"$f":"IF(Table_SummaryPI[[#This Row],[MeasureCost]]<>\"\",Table_SummaryPI[[#This Row],[MeasureCost]],0)","v":0},{"$f":"IF(Table_SummaryPI[[#This Row],[kWhSavings]]<>\"\",Table_SummaryPI[[#This Row],[kWhSavings]],0)","v":0},{"$f":"IF(Table_SummaryPI[[#This Row],[DemandSavingskW]]<>\"\",Table_SummaryPI[[#This Row],[DemandSavingskW]],0)","v":0}]
[{"$f":"Table_SummaryPI[[#This Row],[Line No.]]","v":""},{"$f":"IF(Table_PrintPI[[#This Row],[Line No.]]=\"\",\"\",CONCATENATE(Table_PrintPI[[#This Row],[Line No.]],\" - \",Table_SummaryPI[[#This Row],[MeasureName]]))","v":""},{"$f":"IF(Table_SummaryPI[[#This Row],[Manufacturer]]<>\"\",CONCATENATE(Table_SummaryPI[[#This Row],[Manufacturer]],\"/\",Table_SummaryPI[[#This Row],[Model'#]]),\"\")","v":""},{"$f":"IF(Table_SummaryPI[[#This Row],[Serial'#]]<>\"\",Table_SummaryPI[[#This Row],[Serial'#]],\"\")","v":""},{"$f":"IF(Table_SummaryPI[[#This Row],[Quantity]]<>\"\",Table_SummaryPI[[#This Row],[Quantity]],\"\")","v":""},{"$f":"IF(Table_SummaryPI[[#This Row],[BaselinekWh]]<>\"\",Table_SummaryPI[[#This Row],[BaselinekWh]],\"\")","v":""},{"$f":"IF(Table_SummaryPI[[#This Row],[BaselinekW]]<>\"\",Table_SummaryPI[[#This Row],[BaselinekW]],\"\")","v":""},{"$f":"IF(Table_SummaryPI[[#This Row],[ProposedkWh]]<>\"\",Table_SummaryPI[[#This Row],[ProposedkWh]],\"\")","v":""},{"$f":"IF(Table_SummaryPI[[#This Row],[ProposedkW]]<>\"\",Table_SummaryPI[[#This Row],[ProposedkW]],\"\")","v":""},{"$f":"IF(Table_SummaryPI[[#This Row],[Notes]]<>\"\",Table_SummaryPI[[#This Row],[Notes]],\"\")","v":""},{"$f":"IF(Table_SummaryPI[[#This Row],[Incentive_Customer]]<>\"\",Table_SummaryPI[[#This Row],[Incentive_Customer]],0)","v":0},{"$f":"IF(Table_SummaryPI[[#This Row],[MeasureCost]]<>\"\",Table_SummaryPI[[#This Row],[MeasureCost]],0)","v":0},{"$f":"IF(Table_SummaryPI[[#This Row],[kWhSavings]]<>\"\",Table_SummaryPI[[#This Row],[kWhSavings]],0)","v":0},{"$f":"IF(Table_SummaryPI[[#This Row],[DemandSavingskW]]<>\"\",Table_SummaryPI[[#This Row],[DemandSavingskW]],0)","v":0}]
[{"$f":"Table_SummaryPI[[#This Row],[Line No.]]","v":""},{"$f":"IF(Table_PrintPI[[#This Row],[Line No.]]=\"\",\"\",CONCATENATE(Table_PrintPI[[#This Row],[Line No.]],\" - \",Table_SummaryPI[[#This Row],[MeasureName]]))","v":""},{"$f":"IF(Table_SummaryPI[[#This Row],[Manufacturer]]<>\"\",CONCATENATE(Table_SummaryPI[[#This Row],[Manufacturer]],\"/\",Table_SummaryPI[[#This Row],[Model'#]]),\"\")","v":""},{"$f":"IF(Table_SummaryPI[[#This Row],[Serial'#]]<>\"\",Table_SummaryPI[[#This Row],[Serial'#]],\"\")","v":""},{"$f":"IF(Table_SummaryPI[[#This Row],[Quantity]]<>\"\",Table_SummaryPI[[#This Row],[Quantity]],\"\")","v":""},{"$f":"IF(Table_SummaryPI[[#This Row],[BaselinekWh]]<>\"\",Table_SummaryPI[[#This Row],[BaselinekWh]],\"\")","v":""},{"$f":"IF(Table_SummaryPI[[#This Row],[BaselinekW]]<>\"\",Table_SummaryPI[[#This Row],[BaselinekW]],\"\")","v":""},{"$f":"IF(Table_SummaryPI[[#This Row],[ProposedkWh]]<>\"\",Table_SummaryPI[[#This Row],[ProposedkWh]],\"\")","v":""},{"$f":"IF(Table_SummaryPI[[#This Row],[ProposedkW]]<>\"\",Table_SummaryPI[[#This Row],[ProposedkW]],\"\")","v":""},{"$f":"IF(Table_SummaryPI[[#This Row],[Notes]]<>\"\",Table_SummaryPI[[#This Row],[Notes]],\"\")","v":""},{"$f":"IF(Table_SummaryPI[[#This Row],[Incentive_Customer]]<>\"\",Table_SummaryPI[[#This Row],[Incentive_Customer]],0)","v":0},{"$f":"IF(Table_SummaryPI[[#This Row],[MeasureCost]]<>\"\",Table_SummaryPI[[#This Row],[MeasureCost]],0)","v":0},{"$f":"IF(Table_SummaryPI[[#This Row],[kWhSavings]]<>\"\",Table_SummaryPI[[#This Row],[kWhSavings]],0)","v":0},{"$f":"IF(Table_SummaryPI[[#This Row],[DemandSavingskW]]<>\"\",Table_SummaryPI[[#This Row],[DemandSavingskW]],0)","v":0}]
[{"$f":"Table_SummaryPI[[#This Row],[Line No.]]","v":""},{"$f":"IF(Table_PrintPI[[#This Row],[Line No.]]=\"\",\"\",CONCATENATE(Table_PrintPI[[#This Row],[Line No.]],\" - \",Table_SummaryPI[[#This Row],[MeasureName]]))","v":""},{"$f":"IF(Table_SummaryPI[[#This Row],[Manufacturer]]<>\"\",CONCATENATE(Table_SummaryPI[[#This Row],[Manufacturer]],\"/\",Table_SummaryPI[[#This Row],[Model'#]]),\"\")","v":""},{"$f":"IF(Table_SummaryPI[[#This Row],[Serial'#]]<>\"\",Table_SummaryPI[[#This Row],[Serial'#]],\"\")","v":""},{"$f":"IF(Table_SummaryPI[[#This Row],[Quantity]]<>\"\",Table_SummaryPI[[#This Row],[Quantity]],\"\")","v":""},{"$f":"IF(Table_SummaryPI[[#This Row],[BaselinekWh]]<>\"\",Table_SummaryPI[[#This Row],[BaselinekWh]],\"\")","v":""},{"$f":"IF(Table_SummaryPI[[#This Row],[BaselinekW]]<>\"\",Table_SummaryPI[[#This Row],[BaselinekW]],\"\")","v":""},{"$f":"IF(Table_SummaryPI[[#This Row],[ProposedkWh]]<>\"\",Table_SummaryPI[[#This Row],[ProposedkWh]],\"\")","v":""},{"$f":"IF(Table_SummaryPI[[#This Row],[ProposedkW]]<>\"\",Table_SummaryPI[[#This Row],[ProposedkW]],\"\")","v":""},{"$f":"IF(Table_SummaryPI[[#This Row],[Notes]]<>\"\",Table_SummaryPI[[#This Row],[Notes]],\"\")","v":""},{"$f":"IF(Table_SummaryPI[[#This Row],[Incentive_Customer]]<>\"\",Table_SummaryPI[[#This Row],[Incentive_Customer]],0)","v":0},{"$f":"IF(Table_SummaryPI[[#This Row],[MeasureCost]]<>\"\",Table_SummaryPI[[#This Row],[MeasureCost]],0)","v":0},{"$f":"IF(Table_SummaryPI[[#This Row],[kWhSavings]]<>\"\",Table_SummaryPI[[#This Row],[kWhSavings]],0)","v":0},{"$f":"IF(Table_SummaryPI[[#This Row],[DemandSavingskW]]<>\"\",Table_SummaryPI[[#This Row],[DemandSavingskW]],0)","v":0}]
[{"$f":"Table_SummaryPI[[#This Row],[Line No.]]","v":""},{"$f":"IF(Table_PrintPI[[#This Row],[Line No.]]=\"\",\"\",CONCATENATE(Table_PrintPI[[#This Row],[Line No.]],\" - \",Table_SummaryPI[[#This Row],[MeasureName]]))","v":""},{"$f":"IF(Table_SummaryPI[[#This Row],[Manufacturer]]<>\"\",CONCATENATE(Table_SummaryPI[[#This Row],[Manufacturer]],\"/\",Table_SummaryPI[[#This Row],[Model'#]]),\"\")","v":""},{"$f":"IF(Table_SummaryPI[[#This Row],[Serial'#]]<>\"\",Table_SummaryPI[[#This Row],[Serial'#]],\"\")","v":""},{"$f":"IF(Table_SummaryPI[[#This Row],[Quantity]]<>\"\",Table_SummaryPI[[#This Row],[Quantity]],\"\")","v":""},{"$f":"IF(Table_SummaryPI[[#This Row],[BaselinekWh]]<>\"\",Table_SummaryPI[[#This Row],[BaselinekWh]],\"\")","v":""},{"$f":"IF(Table_SummaryPI[[#This Row],[BaselinekW]]<>\"\",Table_SummaryPI[[#This Row],[BaselinekW]],\"\")","v":""},{"$f":"IF(Table_SummaryPI[[#This Row],[ProposedkWh]]<>\"\",Table_SummaryPI[[#This Row],[ProposedkWh]],\"\")","v":""},{"$f":"IF(Table_SummaryPI[[#This Row],[ProposedkW]]<>\"\",Table_SummaryPI[[#This Row],[ProposedkW]],\"\")","v":""},{"$f":"IF(Table_SummaryPI[[#This Row],[Notes]]<>\"\",Table_SummaryPI[[#This Row],[Notes]],\"\")","v":""},{"$f":"IF(Table_SummaryPI[[#This Row],[Incentive_Customer]]<>\"\",Table_SummaryPI[[#This Row],[Incentive_Customer]],0)","v":0},{"$f":"IF(Table_SummaryPI[[#This Row],[MeasureCost]]<>\"\",Table_SummaryPI[[#This Row],[MeasureCost]],0)","v":0},{"$f":"IF(Table_SummaryPI[[#This Row],[kWhSavings]]<>\"\",Table_SummaryPI[[#This Row],[kWhSavings]],0)","v":0},{"$f":"IF(Table_SummaryPI[[#This Row],[DemandSavingskW]]<>\"\",Table_SummaryPI[[#This Row],[DemandSavingskW]],0)","v":0}]
[{"$f":"Table_SummaryPI[[#This Row],[Line No.]]","v":""},{"$f":"IF(Table_PrintPI[[#This Row],[Line No.]]=\"\",\"\",CONCATENATE(Table_PrintPI[[#This Row],[Line No.]],\" - \",Table_SummaryPI[[#This Row],[MeasureName]]))","v":""},{"$f":"IF(Table_SummaryPI[[#This Row],[Manufacturer]]<>\"\",CONCATENATE(Table_SummaryPI[[#This Row],[Manufacturer]],\"/\",Table_SummaryPI[[#This Row],[Model'#]]),\"\")","v":""},{"$f":"IF(Table_SummaryPI[[#This Row],[Serial'#]]<>\"\",Table_SummaryPI[[#This Row],[Serial'#]],\"\")","v":""},{"$f":"IF(Table_SummaryPI[[#This Row],[Quantity]]<>\"\",Table_SummaryPI[[#This Row],[Quantity]],\"\")","v":""},{"$f":"IF(Table_SummaryPI[[#This Row],[BaselinekWh]]<>\"\",Table_SummaryPI[[#This Row],[BaselinekWh]],\"\")","v":""},{"$f":"IF(Table_SummaryPI[[#This Row],[BaselinekW]]<>\"\",Table_SummaryPI[[#This Row],[BaselinekW]],\"\")","v":""},{"$f":"IF(Table_SummaryPI[[#This Row],[ProposedkWh]]<>\"\",Table_SummaryPI[[#This Row],[ProposedkWh]],\"\")","v":""},{"$f":"IF(Table_SummaryPI[[#This Row],[ProposedkW]]<>\"\",Table_SummaryPI[[#This Row],[ProposedkW]],\"\")","v":""},{"$f":"IF(Table_SummaryPI[[#This Row],[Notes]]<>\"\",Table_SummaryPI[[#This Row],[Notes]],\"\")","v":""},{"$f":"IF(Table_SummaryPI[[#This Row],[Incentive_Customer]]<>\"\",Table_SummaryPI[[#This Row],[Incentive_Customer]],0)","v":0},{"$f":"IF(Table_SummaryPI[[#This Row],[MeasureCost]]<>\"\",Table_SummaryPI[[#This Row],[MeasureCost]],0)","v":0},{"$f":"IF(Table_SummaryPI[[#This Row],[kWhSavings]]<>\"\",Table_SummaryPI[[#This Row],[kWhSavings]],0)","v":0},{"$f":"IF(Table_SummaryPI[[#This Row],[DemandSavingskW]]<>\"\",Table_SummaryPI[[#This Row],[DemandSavingskW]],0)","v":0}]
[{"$f":"Table_SummaryPI[[#This Row],[Line No.]]","v":""},{"$f":"IF(Table_PrintPI[[#This Row],[Line No.]]=\"\",\"\",CONCATENATE(Table_PrintPI[[#This Row],[Line No.]],\" - \",Table_SummaryPI[[#This Row],[MeasureName]]))","v":""},{"$f":"IF(Table_SummaryPI[[#This Row],[Manufacturer]]<>\"\",CONCATENATE(Table_SummaryPI[[#This Row],[Manufacturer]],\"/\",Table_SummaryPI[[#This Row],[Model'#]]),\"\")","v":""},{"$f":"IF(Table_SummaryPI[[#This Row],[Serial'#]]<>\"\",Table_SummaryPI[[#This Row],[Serial'#]],\"\")","v":""},{"$f":"IF(Table_SummaryPI[[#This Row],[Quantity]]<>\"\",Table_SummaryPI[[#This Row],[Quantity]],\"\")","v":""},{"$f":"IF(Table_SummaryPI[[#This Row],[BaselinekWh]]<>\"\",Table_SummaryPI[[#This Row],[BaselinekWh]],\"\")","v":""},{"$f":"IF(Table_SummaryPI[[#This Row],[BaselinekW]]<>\"\",Table_SummaryPI[[#This Row],[BaselinekW]],\"\")","v":""},{"$f":"IF(Table_SummaryPI[[#This Row],[ProposedkWh]]<>\"\",Table_SummaryPI[[#This Row],[ProposedkWh]],\"\")","v":""},{"$f":"IF(Table_SummaryPI[[#This Row],[ProposedkW]]<>\"\",Table_SummaryPI[[#This Row],[ProposedkW]],\"\")","v":""},{"$f":"IF(Table_SummaryPI[[#This Row],[Notes]]<>\"\",Table_SummaryPI[[#This Row],[Notes]],\"\")","v":""},{"$f":"IF(Table_SummaryPI[[#This Row],[Incentive_Customer]]<>\"\",Table_SummaryPI[[#This Row],[Incentive_Customer]],0)","v":0},{"$f":"IF(Table_SummaryPI[[#This Row],[MeasureCost]]<>\"\",Table_SummaryPI[[#This Row],[MeasureCost]],0)","v":0},{"$f":"IF(Table_SummaryPI[[#This Row],[kWhSavings]]<>\"\",Table_SummaryPI[[#This Row],[kWhSavings]],0)","v":0},{"$f":"IF(Table_SummaryPI[[#This Row],[DemandSavingskW]]<>\"\",Table_SummaryPI[[#This Row],[DemandSavingskW]],0)","v":0}]
[{"$f":"Table_SummaryPI[[#This Row],[Line No.]]","v":""},{"$f":"IF(Table_PrintPI[[#This Row],[Line No.]]=\"\",\"\",CONCATENATE(Table_PrintPI[[#This Row],[Line No.]],\" - \",Table_SummaryPI[[#This Row],[MeasureName]]))","v":""},{"$f":"IF(Table_SummaryPI[[#This Row],[Manufacturer]]<>\"\",CONCATENATE(Table_SummaryPI[[#This Row],[Manufacturer]],\"/\",Table_SummaryPI[[#This Row],[Model'#]]),\"\")","v":""},{"$f":"IF(Table_SummaryPI[[#This Row],[Serial'#]]<>\"\",Table_SummaryPI[[#This Row],[Serial'#]],\"\")","v":""},{"$f":"IF(Table_SummaryPI[[#This Row],[Quantity]]<>\"\",Table_SummaryPI[[#This Row],[Quantity]],\"\")","v":""},{"$f":"IF(Table_SummaryPI[[#This Row],[BaselinekWh]]<>\"\",Table_SummaryPI[[#This Row],[BaselinekWh]],\"\")","v":""},{"$f":"IF(Table_SummaryPI[[#This Row],[BaselinekW]]<>\"\",Table_SummaryPI[[#This Row],[BaselinekW]],\"\")","v":""},{"$f":"IF(Table_SummaryPI[[#This Row],[ProposedkWh]]<>\"\",Table_SummaryPI[[#This Row],[ProposedkWh]],\"\")","v":""},{"$f":"IF(Table_SummaryPI[[#This Row],[ProposedkW]]<>\"\",Table_SummaryPI[[#This Row],[ProposedkW]],\"\")","v":""},{"$f":"IF(Table_SummaryPI[[#This Row],[Notes]]<>\"\",Table_SummaryPI[[#This Row],[Notes]],\"\")","v":""},{"$f":"IF(Table_SummaryPI[[#This Row],[Incentive_Customer]]<>\"\",Table_SummaryPI[[#This Row],[Incentive_Customer]],0)","v":0},{"$f":"IF(Table_SummaryPI[[#This Row],[MeasureCost]]<>\"\",Table_SummaryPI[[#This Row],[MeasureCost]],0)","v":0},{"$f":"IF(Table_SummaryPI[[#This Row],[kWhSavings]]<>\"\",Table_SummaryPI[[#This Row],[kWhSavings]],0)","v":0},{"$f":"IF(Table_SummaryPI[[#This Row],[DemandSavingskW]]<>\"\",Table_SummaryPI[[#This Row],[DemandSavingskW]],0)","v":0}]
[{"$f":"Table_SummaryPI[[#This Row],[Line No.]]","v":""},{"$f":"IF(Table_PrintPI[[#This Row],[Line No.]]=\"\",\"\",CONCATENATE(Table_PrintPI[[#This Row],[Line No.]],\" - \",Table_SummaryPI[[#This Row],[MeasureName]]))","v":""},{"$f":"IF(Table_SummaryPI[[#This Row],[Manufacturer]]<>\"\",CONCATENATE(Table_SummaryPI[[#This Row],[Manufacturer]],\"/\",Table_SummaryPI[[#This Row],[Model'#]]),\"\")","v":""},{"$f":"IF(Table_SummaryPI[[#This Row],[Serial'#]]<>\"\",Table_SummaryPI[[#This Row],[Serial'#]],\"\")","v":""},{"$f":"IF(Table_SummaryPI[[#This Row],[Quantity]]<>\"\",Table_SummaryPI[[#This Row],[Quantity]],\"\")","v":""},{"$f":"IF(Table_SummaryPI[[#This Row],[BaselinekWh]]<>\"\",Table_SummaryPI[[#This Row],[BaselinekWh]],\"\")","v":""},{"$f":"IF(Table_SummaryPI[[#This Row],[BaselinekW]]<>\"\",Table_SummaryPI[[#This Row],[BaselinekW]],\"\")","v":""},{"$f":"IF(Table_SummaryPI[[#This Row],[ProposedkWh]]<>\"\",Table_SummaryPI[[#This Row],[ProposedkWh]],\"\")","v":""},{"$f":"IF(Table_SummaryPI[[#This Row],[ProposedkW]]<>\"\",Table_SummaryPI[[#This Row],[ProposedkW]],\"\")","v":""},{"$f":"IF(Table_SummaryPI[[#This Row],[Notes]]<>\"\",Table_SummaryPI[[#This Row],[Notes]],\"\")","v":""},{"$f":"IF(Table_SummaryPI[[#This Row],[Incentive_Customer]]<>\"\",Table_SummaryPI[[#This Row],[Incentive_Customer]],0)","v":0},{"$f":"IF(Table_SummaryPI[[#This Row],[MeasureCost]]<>\"\",Table_SummaryPI[[#This Row],[MeasureCost]],0)","v":0},{"$f":"IF(Table_SummaryPI[[#This Row],[kWhSavings]]<>\"\",Table_SummaryPI[[#This Row],[kWhSavings]],0)","v":0},{"$f":"IF(Table_SummaryPI[[#This Row],[DemandSavingskW]]<>\"\",Table_SummaryPI[[#This Row],[DemandSavingskW]],0)","v":0}]
[{"$f":"Table_SummaryPI[[#This Row],[Line No.]]","v":""},{"$f":"IF(Table_PrintPI[[#This Row],[Line No.]]=\"\",\"\",CONCATENATE(Table_PrintPI[[#This Row],[Line No.]],\" - \",Table_SummaryPI[[#This Row],[MeasureName]]))","v":""},{"$f":"IF(Table_SummaryPI[[#This Row],[Manufacturer]]<>\"\",CONCATENATE(Table_SummaryPI[[#This Row],[Manufacturer]],\"/\",Table_SummaryPI[[#This Row],[Model'#]]),\"\")","v":""},{"$f":"IF(Table_SummaryPI[[#This Row],[Serial'#]]<>\"\",Table_SummaryPI[[#This Row],[Serial'#]],\"\")","v":""},{"$f":"IF(Table_SummaryPI[[#This Row],[Quantity]]<>\"\",Table_SummaryPI[[#This Row],[Quantity]],\"\")","v":""},{"$f":"IF(Table_SummaryPI[[#This Row],[BaselinekWh]]<>\"\",Table_SummaryPI[[#This Row],[BaselinekWh]],\"\")","v":""},{"$f":"IF(Table_SummaryPI[[#This Row],[BaselinekW]]<>\"\",Table_SummaryPI[[#This Row],[BaselinekW]],\"\")","v":""},{"$f":"IF(Table_SummaryPI[[#This Row],[ProposedkWh]]<>\"\",Table_SummaryPI[[#This Row],[ProposedkWh]],\"\")","v":""},{"$f":"IF(Table_SummaryPI[[#This Row],[ProposedkW]]<>\"\",Table_SummaryPI[[#This Row],[ProposedkW]],\"\")","v":""},{"$f":"IF(Table_SummaryPI[[#This Row],[Notes]]<>\"\",Table_SummaryPI[[#This Row],[Notes]],\"\")","v":""},{"$f":"IF(Table_SummaryPI[[#This Row],[Incentive_Customer]]<>\"\",Table_SummaryPI[[#This Row],[Incentive_Customer]],0)","v":0},{"$f":"IF(Table_SummaryPI[[#This Row],[MeasureCost]]<>\"\",Table_SummaryPI[[#This Row],[MeasureCost]],0)","v":0},{"$f":"IF(Table_SummaryPI[[#This Row],[kWhSavings]]<>\"\",Table_SummaryPI[[#This Row],[kWhSavings]],0)","v":0},{"$f":"IF(Table_SummaryPI[[#This Row],[DemandSavingskW]]<>\"\",Table_SummaryPI[[#This Row],[DemandSavingskW]],0)","v":0}]
[{"$f":"Table_SummaryPI[[#This Row],[Line No.]]","v":""},{"$f":"IF(Table_PrintPI[[#This Row],[Line No.]]=\"\",\"\",CONCATENATE(Table_PrintPI[[#This Row],[Line No.]],\" - \",Table_SummaryPI[[#This Row],[MeasureName]]))","v":""},{"$f":"IF(Table_SummaryPI[[#This Row],[Manufacturer]]<>\"\",CONCATENATE(Table_SummaryPI[[#This Row],[Manufacturer]],\"/\",Table_SummaryPI[[#This Row],[Model'#]]),\"\")","v":""},{"$f":"IF(Table_SummaryPI[[#This Row],[Serial'#]]<>\"\",Table_SummaryPI[[#This Row],[Serial'#]],\"\")","v":""},{"$f":"IF(Table_SummaryPI[[#This Row],[Quantity]]<>\"\",Table_SummaryPI[[#This Row],[Quantity]],\"\")","v":""},{"$f":"IF(Table_SummaryPI[[#This Row],[BaselinekWh]]<>\"\",Table_SummaryPI[[#This Row],[BaselinekWh]],\"\")","v":""},{"$f":"IF(Table_SummaryPI[[#This Row],[BaselinekW]]<>\"\",Table_SummaryPI[[#This Row],[BaselinekW]],\"\")","v":""},{"$f":"IF(Table_SummaryPI[[#This Row],[ProposedkWh]]<>\"\",Table_SummaryPI[[#This Row],[ProposedkWh]],\"\")","v":""},{"$f":"IF(Table_SummaryPI[[#This Row],[ProposedkW]]<>\"\",Table_SummaryPI[[#This Row],[ProposedkW]],\"\")","v":""},{"$f":"IF(Table_SummaryPI[[#This Row],[Notes]]<>\"\",Table_SummaryPI[[#This Row],[Notes]],\"\")","v":""},{"$f":"IF(Table_SummaryPI[[#This Row],[Incentive_Customer]]<>\"\",Table_SummaryPI[[#This Row],[Incentive_Customer]],0)","v":0},{"$f":"IF(Table_SummaryPI[[#This Row],[MeasureCost]]<>\"\",Table_SummaryPI[[#This Row],[MeasureCost]],0)","v":0},{"$f":"IF(Table_SummaryPI[[#This Row],[kWhSavings]]<>\"\",Table_SummaryPI[[#This Row],[kWhSavings]],0)","v":0},{"$f":"IF(Table_SummaryPI[[#This Row],[DemandSavingskW]]<>\"\",Table_SummaryPI[[#This Row],[DemandSavingskW]],0)","v":0}]
[{"$f":"Table_SummaryPI[[#This Row],[Line No.]]","v":""},{"$f":"IF(Table_PrintPI[[#This Row],[Line No.]]=\"\",\"\",CONCATENATE(Table_PrintPI[[#This Row],[Line No.]],\" - \",Table_SummaryPI[[#This Row],[MeasureName]]))","v":""},{"$f":"IF(Table_SummaryPI[[#This Row],[Manufacturer]]<>\"\",CONCATENATE(Table_SummaryPI[[#This Row],[Manufacturer]],\"/\",Table_SummaryPI[[#This Row],[Model'#]]),\"\")","v":""},{"$f":"IF(Table_SummaryPI[[#This Row],[Serial'#]]<>\"\",Table_SummaryPI[[#This Row],[Serial'#]],\"\")","v":""},{"$f":"IF(Table_SummaryPI[[#This Row],[Quantity]]<>\"\",Table_SummaryPI[[#This Row],[Quantity]],\"\")","v":""},{"$f":"IF(Table_SummaryPI[[#This Row],[BaselinekWh]]<>\"\",Table_SummaryPI[[#This Row],[BaselinekWh]],\"\")","v":""},{"$f":"IF(Table_SummaryPI[[#This Row],[BaselinekW]]<>\"\",Table_SummaryPI[[#This Row],[BaselinekW]],\"\")","v":""},{"$f":"IF(Table_SummaryPI[[#This Row],[ProposedkWh]]<>\"\",Table_SummaryPI[[#This Row],[ProposedkWh]],\"\")","v":""},{"$f":"IF(Table_SummaryPI[[#This Row],[ProposedkW]]<>\"\",Table_SummaryPI[[#This Row],[ProposedkW]],\"\")","v":""},{"$f":"IF(Table_SummaryPI[[#This Row],[Notes]]<>\"\",Table_SummaryPI[[#This Row],[Notes]],\"\")","v":""},{"$f":"IF(Table_SummaryPI[[#This Row],[Incentive_Customer]]<>\"\",Table_SummaryPI[[#This Row],[Incentive_Customer]],0)","v":0},{"$f":"IF(Table_SummaryPI[[#This Row],[MeasureCost]]<>\"\",Table_SummaryPI[[#This Row],[MeasureCost]],0)","v":0},{"$f":"IF(Table_SummaryPI[[#This Row],[kWhSavings]]<>\"\",Table_SummaryPI[[#This Row],[kWhSavings]],0)","v":0},{"$f":"IF(Table_SummaryPI[[#This Row],[DemandSavingskW]]<>\"\",Table_SummaryPI[[#This Row],[DemandSavingskW]],0)","v":0}]
[{"$f":"Table_SummaryPI[[#This Row],[Line No.]]","v":""},{"$f":"IF(Table_PrintPI[[#This Row],[Line No.]]=\"\",\"\",CONCATENATE(Table_PrintPI[[#This Row],[Line No.]],\" - \",Table_SummaryPI[[#This Row],[MeasureName]]))","v":""},{"$f":"IF(Table_SummaryPI[[#This Row],[Manufacturer]]<>\"\",CONCATENATE(Table_SummaryPI[[#This Row],[Manufacturer]],\"/\",Table_SummaryPI[[#This Row],[Model'#]]),\"\")","v":""},{"$f":"IF(Table_SummaryPI[[#This Row],[Serial'#]]<>\"\",Table_SummaryPI[[#This Row],[Serial'#]],\"\")","v":""},{"$f":"IF(Table_SummaryPI[[#This Row],[Quantity]]<>\"\",Table_SummaryPI[[#This Row],[Quantity]],\"\")","v":""},{"$f":"IF(Table_SummaryPI[[#This Row],[BaselinekWh]]<>\"\",Table_SummaryPI[[#This Row],[BaselinekWh]],\"\")","v":""},{"$f":"IF(Table_SummaryPI[[#This Row],[BaselinekW]]<>\"\",Table_SummaryPI[[#This Row],[BaselinekW]],\"\")","v":""},{"$f":"IF(Table_SummaryPI[[#This Row],[ProposedkWh]]<>\"\",Table_SummaryPI[[#This Row],[ProposedkWh]],\"\")","v":""},{"$f":"IF(Table_SummaryPI[[#This Row],[ProposedkW]]<>\"\",Table_SummaryPI[[#This Row],[ProposedkW]],\"\")","v":""},{"$f":"IF(Table_SummaryPI[[#This Row],[Notes]]<>\"\",Table_SummaryPI[[#This Row],[Notes]],\"\")","v":""},{"$f":"IF(Table_SummaryPI[[#This Row],[Incentive_Customer]]<>\"\",Table_SummaryPI[[#This Row],[Incentive_Customer]],0)","v":0},{"$f":"IF(Table_SummaryPI[[#This Row],[MeasureCost]]<>\"\",Table_SummaryPI[[#This Row],[MeasureCost]],0)","v":0},{"$f":"IF(Table_SummaryPI[[#This Row],[kWhSavings]]<>\"\",Table_SummaryPI[[#This Row],[kWhSavings]],0)","v":0},{"$f":"IF(Table_SummaryPI[[#This Row],[DemandSavingskW]]<>\"\",Table_SummaryPI[[#This Row],[DemandSavingskW]],0)","v":0}]
[{"$f":"Table_SummaryPI[[#This Row],[Line No.]]","v":""},{"$f":"IF(Table_PrintPI[[#This Row],[Line No.]]=\"\",\"\",CONCATENATE(Table_PrintPI[[#This Row],[Line No.]],\" - \",Table_SummaryPI[[#This Row],[MeasureName]]))","v":""},{"$f":"IF(Table_SummaryPI[[#This Row],[Manufacturer]]<>\"\",CONCATENATE(Table_SummaryPI[[#This Row],[Manufacturer]],\"/\",Table_SummaryPI[[#This Row],[Model'#]]),\"\")","v":""},{"$f":"IF(Table_SummaryPI[[#This Row],[Serial'#]]<>\"\",Table_SummaryPI[[#This Row],[Serial'#]],\"\")","v":""},{"$f":"IF(Table_SummaryPI[[#This Row],[Quantity]]<>\"\",Table_SummaryPI[[#This Row],[Quantity]],\"\")","v":""},{"$f":"IF(Table_SummaryPI[[#This Row],[BaselinekWh]]<>\"\",Table_SummaryPI[[#This Row],[BaselinekWh]],\"\")","v":""},{"$f":"IF(Table_SummaryPI[[#This Row],[BaselinekW]]<>\"\",Table_SummaryPI[[#This Row],[BaselinekW]],\"\")","v":""},{"$f":"IF(Table_SummaryPI[[#This Row],[ProposedkWh]]<>\"\",Table_SummaryPI[[#This Row],[ProposedkWh]],\"\")","v":""},{"$f":"IF(Table_SummaryPI[[#This Row],[ProposedkW]]<>\"\",Table_SummaryPI[[#This Row],[ProposedkW]],\"\")","v":""},{"$f":"IF(Table_SummaryPI[[#This Row],[Notes]]<>\"\",Table_SummaryPI[[#This Row],[Notes]],\"\")","v":""},{"$f":"IF(Table_SummaryPI[[#This Row],[Incentive_Customer]]<>\"\",Table_SummaryPI[[#This Row],[Incentive_Customer]],0)","v":0},{"$f":"IF(Table_SummaryPI[[#This Row],[MeasureCost]]<>\"\",Table_SummaryPI[[#This Row],[MeasureCost]],0)","v":0},{"$f":"IF(Table_SummaryPI[[#This Row],[kWhSavings]]<>\"\",Table_SummaryPI[[#This Row],[kWhSavings]],0)","v":0},{"$f":"IF(Table_SummaryPI[[#This Row],[DemandSavingskW]]<>\"\",Table_SummaryPI[[#This Row],[DemandSavingskW]],0)","v":0}]
[{"$f":"Table_SummaryPI[[#This Row],[Line No.]]","v":""},{"$f":"IF(Table_PrintPI[[#This Row],[Line No.]]=\"\",\"\",CONCATENATE(Table_PrintPI[[#This Row],[Line No.]],\" - \",Table_SummaryPI[[#This Row],[MeasureName]]))","v":""},{"$f":"IF(Table_SummaryPI[[#This Row],[Manufacturer]]<>\"\",CONCATENATE(Table_SummaryPI[[#This Row],[Manufacturer]],\"/\",Table_SummaryPI[[#This Row],[Model'#]]),\"\")","v":""},{"$f":"IF(Table_SummaryPI[[#This Row],[Serial'#]]<>\"\",Table_SummaryPI[[#This Row],[Serial'#]],\"\")","v":""},{"$f":"IF(Table_SummaryPI[[#This Row],[Quantity]]<>\"\",Table_SummaryPI[[#This Row],[Quantity]],\"\")","v":""},{"$f":"IF(Table_SummaryPI[[#This Row],[BaselinekWh]]<>\"\",Table_SummaryPI[[#This Row],[BaselinekWh]],\"\")","v":""},{"$f":"IF(Table_SummaryPI[[#This Row],[BaselinekW]]<>\"\",Table_SummaryPI[[#This Row],[BaselinekW]],\"\")","v":""},{"$f":"IF(Table_SummaryPI[[#This Row],[ProposedkWh]]<>\"\",Table_SummaryPI[[#This Row],[ProposedkWh]],\"\")","v":""},{"$f":"IF(Table_SummaryPI[[#This Row],[ProposedkW]]<>\"\",Table_SummaryPI[[#This Row],[ProposedkW]],\"\")","v":""},{"$f":"IF(Table_SummaryPI[[#This Row],[Notes]]<>\"\",Table_SummaryPI[[#This Row],[Notes]],\"\")","v":""},{"$f":"IF(Table_SummaryPI[[#This Row],[Incentive_Customer]]<>\"\",Table_SummaryPI[[#This Row],[Incentive_Customer]],0)","v":0},{"$f":"IF(Table_SummaryPI[[#This Row],[MeasureCost]]<>\"\",Table_SummaryPI[[#This Row],[MeasureCost]],0)","v":0},{"$f":"IF(Table_SummaryPI[[#This Row],[kWhSavings]]<>\"\",Table_SummaryPI[[#This Row],[kWhSavings]],0)","v":0},{"$f":"IF(Table_SummaryPI[[#This Row],[DemandSavingskW]]<>\"\",Table_SummaryPI[[#This Row],[DemandSavingskW]],0)","v":0}]
[{"$f":"Table_SummaryPI[[#This Row],[Line No.]]","v":""},{"$f":"IF(Table_PrintPI[[#This Row],[Line No.]]=\"\",\"\",CONCATENATE(Table_PrintPI[[#This Row],[Line No.]],\" - \",Table_SummaryPI[[#This Row],[MeasureName]]))","v":""},{"$f":"IF(Table_SummaryPI[[#This Row],[Manufacturer]]<>\"\",CONCATENATE(Table_SummaryPI[[#This Row],[Manufacturer]],\"/\",Table_SummaryPI[[#This Row],[Model'#]]),\"\")","v":""},{"$f":"IF(Table_SummaryPI[[#This Row],[Serial'#]]<>\"\",Table_SummaryPI[[#This Row],[Serial'#]],\"\")","v":""},{"$f":"IF(Table_SummaryPI[[#This Row],[Quantity]]<>\"\",Table_SummaryPI[[#This Row],[Quantity]],\"\")","v":""},{"$f":"IF(Table_SummaryPI[[#This Row],[BaselinekWh]]<>\"\",Table_SummaryPI[[#This Row],[BaselinekWh]],\"\")","v":""},{"$f":"IF(Table_SummaryPI[[#This Row],[BaselinekW]]<>\"\",Table_SummaryPI[[#This Row],[BaselinekW]],\"\")","v":""},{"$f":"IF(Table_SummaryPI[[#This Row],[ProposedkWh]]<>\"\",Table_SummaryPI[[#This Row],[ProposedkWh]],\"\")","v":""},{"$f":"IF(Table_SummaryPI[[#This Row],[ProposedkW]]<>\"\",Table_SummaryPI[[#This Row],[ProposedkW]],\"\")","v":""},{"$f":"IF(Table_SummaryPI[[#This Row],[Notes]]<>\"\",Table_SummaryPI[[#This Row],[Notes]],\"\")","v":""},{"$f":"IF(Table_SummaryPI[[#This Row],[Incentive_Customer]]<>\"\",Table_SummaryPI[[#This Row],[Incentive_Customer]],0)","v":0},{"$f":"IF(Table_SummaryPI[[#This Row],[MeasureCost]]<>\"\",Table_SummaryPI[[#This Row],[MeasureCost]],0)","v":0},{"$f":"IF(Table_SummaryPI[[#This Row],[kWhSavings]]<>\"\",Table_SummaryPI[[#This Row],[kWhSavings]],0)","v":0},{"$f":"IF(Table_SummaryPI[[#This Row],[DemandSavingskW]]<>\"\",Table_SummaryPI[[#This Row],[DemandSavingskW]],0)","v":0}]
[{"$f":"Table_SummaryPI[[#This Row],[Line No.]]","v":""},{"$f":"IF(Table_PrintPI[[#This Row],[Line No.]]=\"\",\"\",CONCATENATE(Table_PrintPI[[#This Row],[Line No.]],\" - \",Table_SummaryPI[[#This Row],[MeasureName]]))","v":""},{"$f":"IF(Table_SummaryPI[[#This Row],[Manufacturer]]<>\"\",CONCATENATE(Table_SummaryPI[[#This Row],[Manufacturer]],\"/\",Table_SummaryPI[[#This Row],[Model'#]]),\"\")","v":""},{"$f":"IF(Table_SummaryPI[[#This Row],[Serial'#]]<>\"\",Table_SummaryPI[[#This Row],[Serial'#]],\"\")","v":""},{"$f":"IF(Table_SummaryPI[[#This Row],[Quantity]]<>\"\",Table_SummaryPI[[#This Row],[Quantity]],\"\")","v":""},{"$f":"IF(Table_SummaryPI[[#This Row],[BaselinekWh]]<>\"\",Table_SummaryPI[[#This Row],[BaselinekWh]],\"\")","v":""},{"$f":"IF(Table_SummaryPI[[#This Row],[BaselinekW]]<>\"\",Table_SummaryPI[[#This Row],[BaselinekW]],\"\")","v":""},{"$f":"IF(Table_SummaryPI[[#This Row],[ProposedkWh]]<>\"\",Table_SummaryPI[[#This Row],[ProposedkWh]],\"\")","v":""},{"$f":"IF(Table_SummaryPI[[#This Row],[ProposedkW]]<>\"\",Table_SummaryPI[[#This Row],[ProposedkW]],\"\")","v":""},{"$f":"IF(Table_SummaryPI[[#This Row],[Notes]]<>\"\",Table_SummaryPI[[#This Row],[Notes]],\"\")","v":""},{"$f":"IF(Table_SummaryPI[[#This Row],[Incentive_Customer]]<>\"\",Table_SummaryPI[[#This Row],[Incentive_Customer]],0)","v":0},{"$f":"IF(Table_SummaryPI[[#This Row],[MeasureCost]]<>\"\",Table_SummaryPI[[#This Row],[MeasureCost]],0)","v":0},{"$f":"IF(Table_SummaryPI[[#This Row],[kWhSavings]]<>\"\",Table_SummaryPI[[#This Row],[kWhSavings]],0)","v":0},{"$f":"IF(Table_SummaryPI[[#This Row],[DemandSavingskW]]<>\"\",Table_SummaryPI[[#This Row],[DemandSavingskW]],0)","v":0}]
[{"$f":"Table_SummaryPI[[#This Row],[Line No.]]","v":""},{"$f":"IF(Table_PrintPI[[#This Row],[Line No.]]=\"\",\"\",CONCATENATE(Table_PrintPI[[#This Row],[Line No.]],\" - \",Table_SummaryPI[[#This Row],[MeasureName]]))","v":""},{"$f":"IF(Table_SummaryPI[[#This Row],[Manufacturer]]<>\"\",CONCATENATE(Table_SummaryPI[[#This Row],[Manufacturer]],\"/\",Table_SummaryPI[[#This Row],[Model'#]]),\"\")","v":""},{"$f":"IF(Table_SummaryPI[[#This Row],[Serial'#]]<>\"\",Table_SummaryPI[[#This Row],[Serial'#]],\"\")","v":""},{"$f":"IF(Table_SummaryPI[[#This Row],[Quantity]]<>\"\",Table_SummaryPI[[#This Row],[Quantity]],\"\")","v":""},{"$f":"IF(Table_SummaryPI[[#This Row],[BaselinekWh]]<>\"\",Table_SummaryPI[[#This Row],[BaselinekWh]],\"\")","v":""},{"$f":"IF(Table_SummaryPI[[#This Row],[BaselinekW]]<>\"\",Table_SummaryPI[[#This Row],[BaselinekW]],\"\")","v":""},{"$f":"IF(Table_SummaryPI[[#This Row],[ProposedkWh]]<>\"\",Table_SummaryPI[[#This Row],[ProposedkWh]],\"\")","v":""},{"$f":"IF(Table_SummaryPI[[#This Row],[ProposedkW]]<>\"\",Table_SummaryPI[[#This Row],[ProposedkW]],\"\")","v":""},{"$f":"IF(Table_SummaryPI[[#This Row],[Notes]]<>\"\",Table_SummaryPI[[#This Row],[Notes]],\"\")","v":""},{"$f":"IF(Table_SummaryPI[[#This Row],[Incentive_Customer]]<>\"\",Table_SummaryPI[[#This Row],[Incentive_Customer]],0)","v":0},{"$f":"IF(Table_SummaryPI[[#This Row],[MeasureCost]]<>\"\",Table_SummaryPI[[#This Row],[MeasureCost]],0)","v":0},{"$f":"IF(Table_SummaryPI[[#This Row],[kWhSavings]]<>\"\",Table_SummaryPI[[#This Row],[kWhSavings]],0)","v":0},{"$f":"IF(Table_SummaryPI[[#This Row],[DemandSavingskW]]<>\"\",Table_SummaryPI[[#This Row],[DemandSavingskW]],0)","v":0}]
[{"$f":"Table_SummaryPI[[#This Row],[Line No.]]","v":""},{"$f":"IF(Table_PrintPI[[#This Row],[Line No.]]=\"\",\"\",CONCATENATE(Table_PrintPI[[#This Row],[Line No.]],\" - \",Table_SummaryPI[[#This Row],[MeasureName]]))","v":""},{"$f":"IF(Table_SummaryPI[[#This Row],[Manufacturer]]<>\"\",CONCATENATE(Table_SummaryPI[[#This Row],[Manufacturer]],\"/\",Table_SummaryPI[[#This Row],[Model'#]]),\"\")","v":""},{"$f":"IF(Table_SummaryPI[[#This Row],[Serial'#]]<>\"\",Table_SummaryPI[[#This Row],[Serial'#]],\"\")","v":""},{"$f":"IF(Table_SummaryPI[[#This Row],[Quantity]]<>\"\",Table_SummaryPI[[#This Row],[Quantity]],\"\")","v":""},{"$f":"IF(Table_SummaryPI[[#This Row],[BaselinekWh]]<>\"\",Table_SummaryPI[[#This Row],[BaselinekWh]],\"\")","v":""},{"$f":"IF(Table_SummaryPI[[#This Row],[BaselinekW]]<>\"\",Table_SummaryPI[[#This Row],[BaselinekW]],\"\")","v":""},{"$f":"IF(Table_SummaryPI[[#This Row],[ProposedkWh]]<>\"\",Table_SummaryPI[[#This Row],[ProposedkWh]],\"\")","v":""},{"$f":"IF(Table_SummaryPI[[#This Row],[ProposedkW]]<>\"\",Table_SummaryPI[[#This Row],[ProposedkW]],\"\")","v":""},{"$f":"IF(Table_SummaryPI[[#This Row],[Notes]]<>\"\",Table_SummaryPI[[#This Row],[Notes]],\"\")","v":""},{"$f":"IF(Table_SummaryPI[[#This Row],[Incentive_Customer]]<>\"\",Table_SummaryPI[[#This Row],[Incentive_Customer]],0)","v":0},{"$f":"IF(Table_SummaryPI[[#This Row],[MeasureCost]]<>\"\",Table_SummaryPI[[#This Row],[MeasureCost]],0)","v":0},{"$f":"IF(Table_SummaryPI[[#This Row],[kWhSavings]]<>\"\",Table_SummaryPI[[#This Row],[kWhSavings]],0)","v":0},{"$f":"IF(Table_SummaryPI[[#This Row],[DemandSavingskW]]<>\"\",Table_SummaryPI[[#This Row],[DemandSavingskW]],0)","v":0}]
[{"$f":"Table_SummaryPI[[#This Row],[Line No.]]","v":""},{"$f":"IF(Table_PrintPI[[#This Row],[Line No.]]=\"\",\"\",CONCATENATE(Table_PrintPI[[#This Row],[Line No.]],\" - \",Table_SummaryPI[[#This Row],[MeasureName]]))","v":""},{"$f":"IF(Table_SummaryPI[[#This Row],[Manufacturer]]<>\"\",CONCATENATE(Table_SummaryPI[[#This Row],[Manufacturer]],\"/\",Table_SummaryPI[[#This Row],[Model'#]]),\"\")","v":""},{"$f":"IF(Table_SummaryPI[[#This Row],[Serial'#]]<>\"\",Table_SummaryPI[[#This Row],[Serial'#]],\"\")","v":""},{"$f":"IF(Table_SummaryPI[[#This Row],[Quantity]]<>\"\",Table_SummaryPI[[#This Row],[Quantity]],\"\")","v":""},{"$f":"IF(Table_SummaryPI[[#This Row],[BaselinekWh]]<>\"\",Table_SummaryPI[[#This Row],[BaselinekWh]],\"\")","v":""},{"$f":"IF(Table_SummaryPI[[#This Row],[BaselinekW]]<>\"\",Table_SummaryPI[[#This Row],[BaselinekW]],\"\")","v":""},{"$f":"IF(Table_SummaryPI[[#This Row],[ProposedkWh]]<>\"\",Table_SummaryPI[[#This Row],[ProposedkWh]],\"\")","v":""},{"$f":"IF(Table_SummaryPI[[#This Row],[ProposedkW]]<>\"\",Table_SummaryPI[[#This Row],[ProposedkW]],\"\")","v":""},{"$f":"IF(Table_SummaryPI[[#This Row],[Notes]]<>\"\",Table_SummaryPI[[#This Row],[Notes]],\"\")","v":""},{"$f":"IF(Table_SummaryPI[[#This Row],[Incentive_Customer]]<>\"\",Table_SummaryPI[[#This Row],[Incentive_Customer]],0)","v":0},{"$f":"IF(Table_SummaryPI[[#This Row],[MeasureCost]]<>\"\",Table_SummaryPI[[#This Row],[MeasureCost]],0)","v":0},{"$f":"IF(Table_SummaryPI[[#This Row],[kWhSavings]]<>\"\",Table_SummaryPI[[#This Row],[kWhSavings]],0)","v":0},{"$f":"IF(Table_SummaryPI[[#This Row],[DemandSavingskW]]<>\"\",Table_SummaryPI[[#This Row],[DemandSavingskW]],0)","v":0}]
[{"$f":"Table_SummaryPI[[#This Row],[Line No.]]","v":""},{"$f":"IF(Table_PrintPI[[#This Row],[Line No.]]=\"\",\"\",CONCATENATE(Table_PrintPI[[#This Row],[Line No.]],\" - \",Table_SummaryPI[[#This Row],[MeasureName]]))","v":""},{"$f":"IF(Table_SummaryPI[[#This Row],[Manufacturer]]<>\"\",CONCATENATE(Table_SummaryPI[[#This Row],[Manufacturer]],\"/\",Table_SummaryPI[[#This Row],[Model'#]]),\"\")","v":""},{"$f":"IF(Table_SummaryPI[[#This Row],[Serial'#]]<>\"\",Table_SummaryPI[[#This Row],[Serial'#]],\"\")","v":""},{"$f":"IF(Table_SummaryPI[[#This Row],[Quantity]]<>\"\",Table_SummaryPI[[#This Row],[Quantity]],\"\")","v":""},{"$f":"IF(Table_SummaryPI[[#This Row],[BaselinekWh]]<>\"\",Table_SummaryPI[[#This Row],[BaselinekWh]],\"\")","v":""},{"$f":"IF(Table_SummaryPI[[#This Row],[BaselinekW]]<>\"\",Table_SummaryPI[[#This Row],[BaselinekW]],\"\")","v":""},{"$f":"IF(Table_SummaryPI[[#This Row],[ProposedkWh]]<>\"\",Table_SummaryPI[[#This Row],[ProposedkWh]],\"\")","v":""},{"$f":"IF(Table_SummaryPI[[#This Row],[ProposedkW]]<>\"\",Table_SummaryPI[[#This Row],[ProposedkW]],\"\")","v":""},{"$f":"IF(Table_SummaryPI[[#This Row],[Notes]]<>\"\",Table_SummaryPI[[#This Row],[Notes]],\"\")","v":""},{"$f":"IF(Table_SummaryPI[[#This Row],[Incentive_Customer]]<>\"\",Table_SummaryPI[[#This Row],[Incentive_Customer]],0)","v":0},{"$f":"IF(Table_SummaryPI[[#This Row],[MeasureCost]]<>\"\",Table_SummaryPI[[#This Row],[MeasureCost]],0)","v":0},{"$f":"IF(Table_SummaryPI[[#This Row],[kWhSavings]]<>\"\",Table_SummaryPI[[#This Row],[kWhSavings]],0)","v":0},{"$f":"IF(Table_SummaryPI[[#This Row],[DemandSavingskW]]<>\"\",Table_SummaryPI[[#This Row],[DemandSavingskW]],0)","v":0}]
[{"$f":"Table_SummaryPI[[#This Row],[Line No.]]","v":""},{"$f":"IF(Table_PrintPI[[#This Row],[Line No.]]=\"\",\"\",CONCATENATE(Table_PrintPI[[#This Row],[Line No.]],\" - \",Table_SummaryPI[[#This Row],[MeasureName]]))","v":""},{"$f":"IF(Table_SummaryPI[[#This Row],[Manufacturer]]<>\"\",CONCATENATE(Table_SummaryPI[[#This Row],[Manufacturer]],\"/\",Table_SummaryPI[[#This Row],[Model'#]]),\"\")","v":""},{"$f":"IF(Table_SummaryPI[[#This Row],[Serial'#]]<>\"\",Table_SummaryPI[[#This Row],[Serial'#]],\"\")","v":""},{"$f":"IF(Table_SummaryPI[[#This Row],[Quantity]]<>\"\",Table_SummaryPI[[#This Row],[Quantity]],\"\")","v":""},{"$f":"IF(Table_SummaryPI[[#This Row],[BaselinekWh]]<>\"\",Table_SummaryPI[[#This Row],[BaselinekWh]],\"\")","v":""},{"$f":"IF(Table_SummaryPI[[#This Row],[BaselinekW]]<>\"\",Table_SummaryPI[[#This Row],[BaselinekW]],\"\")","v":""},{"$f":"IF(Table_SummaryPI[[#This Row],[ProposedkWh]]<>\"\",Table_SummaryPI[[#This Row],[ProposedkWh]],\"\")","v":""},{"$f":"IF(Table_SummaryPI[[#This Row],[ProposedkW]]<>\"\",Table_SummaryPI[[#This Row],[ProposedkW]],\"\")","v":""},{"$f":"IF(Table_SummaryPI[[#This Row],[Notes]]<>\"\",Table_SummaryPI[[#This Row],[Notes]],\"\")","v":""},{"$f":"IF(Table_SummaryPI[[#This Row],[Incentive_Customer]]<>\"\",Table_SummaryPI[[#This Row],[Incentive_Customer]],0)","v":0},{"$f":"IF(Table_SummaryPI[[#This Row],[MeasureCost]]<>\"\",Table_SummaryPI[[#This Row],[MeasureCost]],0)","v":0},{"$f":"IF(Table_SummaryPI[[#This Row],[kWhSavings]]<>\"\",Table_SummaryPI[[#This Row],[kWhSavings]],0)","v":0},{"$f":"IF(Table_SummaryPI[[#This Row],[DemandSavingskW]]<>\"\",Table_SummaryPI[[#This Row],[DemandSavingskW]],0)","v":0}]
[{"$f":"Table_SummaryPI[[#This Row],[Line No.]]","v":""},{"$f":"IF(Table_PrintPI[[#This Row],[Line No.]]=\"\",\"\",CONCATENATE(Table_PrintPI[[#This Row],[Line No.]],\" - \",Table_SummaryPI[[#This Row],[MeasureName]]))","v":""},{"$f":"IF(Table_SummaryPI[[#This Row],[Manufacturer]]<>\"\",CONCATENATE(Table_SummaryPI[[#This Row],[Manufacturer]],\"/\",Table_SummaryPI[[#This Row],[Model'#]]),\"\")","v":""},{"$f":"IF(Table_SummaryPI[[#This Row],[Serial'#]]<>\"\",Table_SummaryPI[[#This Row],[Serial'#]],\"\")","v":""},{"$f":"IF(Table_SummaryPI[[#This Row],[Quantity]]<>\"\",Table_SummaryPI[[#This Row],[Quantity]],\"\")","v":""},{"$f":"IF(Table_SummaryPI[[#This Row],[BaselinekWh]]<>\"\",Table_SummaryPI[[#This Row],[BaselinekWh]],\"\")","v":""},{"$f":"IF(Table_SummaryPI[[#This Row],[BaselinekW]]<>\"\",Table_SummaryPI[[#This Row],[BaselinekW]],\"\")","v":""},{"$f":"IF(Table_SummaryPI[[#This Row],[ProposedkWh]]<>\"\",Table_SummaryPI[[#This Row],[ProposedkWh]],\"\")","v":""},{"$f":"IF(Table_SummaryPI[[#This Row],[ProposedkW]]<>\"\",Table_SummaryPI[[#This Row],[ProposedkW]],\"\")","v":""},{"$f":"IF(Table_SummaryPI[[#This Row],[Notes]]<>\"\",Table_SummaryPI[[#This Row],[Notes]],\"\")","v":""},{"$f":"IF(Table_SummaryPI[[#This Row],[Incentive_Customer]]<>\"\",Table_SummaryPI[[#This Row],[Incentive_Customer]],0)","v":0},{"$f":"IF(Table_SummaryPI[[#This Row],[MeasureCost]]<>\"\",Table_SummaryPI[[#This Row],[MeasureCost]],0)","v":0},{"$f":"IF(Table_SummaryPI[[#This Row],[kWhSavings]]<>\"\",Table_SummaryPI[[#This Row],[kWhSavings]],0)","v":0},{"$f":"IF(Table_SummaryPI[[#This Row],[DemandSavingskW]]<>\"\",Table_SummaryPI[[#This Row],[DemandSavingskW]],0)","v":0}]
[{"$f":"Table_SummaryPI[[#This Row],[Line No.]]","v":""},{"$f":"IF(Table_PrintPI[[#This Row],[Line No.]]=\"\",\"\",CONCATENATE(Table_PrintPI[[#This Row],[Line No.]],\" - \",Table_SummaryPI[[#This Row],[MeasureName]]))","v":""},{"$f":"IF(Table_SummaryPI[[#This Row],[Manufacturer]]<>\"\",CONCATENATE(Table_SummaryPI[[#This Row],[Manufacturer]],\"/\",Table_SummaryPI[[#This Row],[Model'#]]),\"\")","v":""},{"$f":"IF(Table_SummaryPI[[#This Row],[Serial'#]]<>\"\",Table_SummaryPI[[#This Row],[Serial'#]],\"\")","v":""},{"$f":"IF(Table_SummaryPI[[#This Row],[Quantity]]<>\"\",Table_SummaryPI[[#This Row],[Quantity]],\"\")","v":""},{"$f":"IF(Table_SummaryPI[[#This Row],[BaselinekWh]]<>\"\",Table_SummaryPI[[#This Row],[BaselinekWh]],\"\")","v":""},{"$f":"IF(Table_SummaryPI[[#This Row],[BaselinekW]]<>\"\",Table_SummaryPI[[#This Row],[BaselinekW]],\"\")","v":""},{"$f":"IF(Table_SummaryPI[[#This Row],[ProposedkWh]]<>\"\",Table_SummaryPI[[#This Row],[ProposedkWh]],\"\")","v":""},{"$f":"IF(Table_SummaryPI[[#This Row],[ProposedkW]]<>\"\",Table_SummaryPI[[#This Row],[ProposedkW]],\"\")","v":""},{"$f":"IF(Table_SummaryPI[[#This Row],[Notes]]<>\"\",Table_SummaryPI[[#This Row],[Notes]],\"\")","v":""},{"$f":"IF(Table_SummaryPI[[#This Row],[Incentive_Customer]]<>\"\",Table_SummaryPI[[#This Row],[Incentive_Customer]],0)","v":0},{"$f":"IF(Table_SummaryPI[[#This Row],[MeasureCost]]<>\"\",Table_SummaryPI[[#This Row],[MeasureCost]],0)","v":0},{"$f":"IF(Table_SummaryPI[[#This Row],[kWhSavings]]<>\"\",Table_SummaryPI[[#This Row],[kWhSavings]],0)","v":0},{"$f":"IF(Table_SummaryPI[[#This Row],[DemandSavingskW]]<>\"\",Table_SummaryPI[[#This Row],[DemandSavingskW]],0)","v":0}]
[{"$f":"Table_SummaryPI[[#This Row],[Line No.]]","v":""},{"$f":"IF(Table_PrintPI[[#This Row],[Line No.]]=\"\",\"\",CONCATENATE(Table_PrintPI[[#This Row],[Line No.]],\" - \",Table_SummaryPI[[#This Row],[MeasureName]]))","v":""},{"$f":"IF(Table_SummaryPI[[#This Row],[Manufacturer]]<>\"\",CONCATENATE(Table_SummaryPI[[#This Row],[Manufacturer]],\"/\",Table_SummaryPI[[#This Row],[Model'#]]),\"\")","v":""},{"$f":"IF(Table_SummaryPI[[#This Row],[Serial'#]]<>\"\",Table_SummaryPI[[#This Row],[Serial'#]],\"\")","v":""},{"$f":"IF(Table_SummaryPI[[#This Row],[Quantity]]<>\"\",Table_SummaryPI[[#This Row],[Quantity]],\"\")","v":""},{"$f":"IF(Table_SummaryPI[[#This Row],[BaselinekWh]]<>\"\",Table_SummaryPI[[#This Row],[BaselinekWh]],\"\")","v":""},{"$f":"IF(Table_SummaryPI[[#This Row],[BaselinekW]]<>\"\",Table_SummaryPI[[#This Row],[BaselinekW]],\"\")","v":""},{"$f":"IF(Table_SummaryPI[[#This Row],[ProposedkWh]]<>\"\",Table_SummaryPI[[#This Row],[ProposedkWh]],\"\")","v":""},{"$f":"IF(Table_SummaryPI[[#This Row],[ProposedkW]]<>\"\",Table_SummaryPI[[#This Row],[ProposedkW]],\"\")","v":""},{"$f":"IF(Table_SummaryPI[[#This Row],[Notes]]<>\"\",Table_SummaryPI[[#This Row],[Notes]],\"\")","v":""},{"$f":"IF(Table_SummaryPI[[#This Row],[Incentive_Customer]]<>\"\",Table_SummaryPI[[#This Row],[Incentive_Customer]],0)","v":0},{"$f":"IF(Table_SummaryPI[[#This Row],[MeasureCost]]<>\"\",Table_SummaryPI[[#This Row],[MeasureCost]],0)","v":0},{"$f":"IF(Table_SummaryPI[[#This Row],[kWhSavings]]<>\"\",Table_SummaryPI[[#This Row],[kWhSavings]],0)","v":0},{"$f":"IF(Table_SummaryPI[[#This Row],[DemandSavingskW]]<>\"\",Table_SummaryPI[[#This Row],[DemandSavingskW]],0)","v":0}]
[{"$f":"Table_SummaryPI[[#This Row],[Line No.]]","v":""},{"$f":"IF(Table_PrintPI[[#This Row],[Line No.]]=\"\",\"\",CONCATENATE(Table_PrintPI[[#This Row],[Line No.]],\" - \",Table_SummaryPI[[#This Row],[MeasureName]]))","v":""},{"$f":"IF(Table_SummaryPI[[#This Row],[Manufacturer]]<>\"\",CONCATENATE(Table_SummaryPI[[#This Row],[Manufacturer]],\"/\",Table_SummaryPI[[#This Row],[Model'#]]),\"\")","v":""},{"$f":"IF(Table_SummaryPI[[#This Row],[Serial'#]]<>\"\",Table_SummaryPI[[#This Row],[Serial'#]],\"\")","v":""},{"$f":"IF(Table_SummaryPI[[#This Row],[Quantity]]<>\"\",Table_SummaryPI[[#This Row],[Quantity]],\"\")","v":""},{"$f":"IF(Table_SummaryPI[[#This Row],[BaselinekWh]]<>\"\",Table_SummaryPI[[#This Row],[BaselinekWh]],\"\")","v":""},{"$f":"IF(Table_SummaryPI[[#This Row],[BaselinekW]]<>\"\",Table_SummaryPI[[#This Row],[BaselinekW]],\"\")","v":""},{"$f":"IF(Table_SummaryPI[[#This Row],[ProposedkWh]]<>\"\",Table_SummaryPI[[#This Row],[ProposedkWh]],\"\")","v":""},{"$f":"IF(Table_SummaryPI[[#This Row],[ProposedkW]]<>\"\",Table_SummaryPI[[#This Row],[ProposedkW]],\"\")","v":""},{"$f":"IF(Table_SummaryPI[[#This Row],[Notes]]<>\"\",Table_SummaryPI[[#This Row],[Notes]],\"\")","v":""},{"$f":"IF(Table_SummaryPI[[#This Row],[Incentive_Customer]]<>\"\",Table_SummaryPI[[#This Row],[Incentive_Customer]],0)","v":0},{"$f":"IF(Table_SummaryPI[[#This Row],[MeasureCost]]<>\"\",Table_SummaryPI[[#This Row],[MeasureCost]],0)","v":0},{"$f":"IF(Table_SummaryPI[[#This Row],[kWhSavings]]<>\"\",Table_SummaryPI[[#This Row],[kWhSavings]],0)","v":0},{"$f":"IF(Table_SummaryPI[[#This Row],[DemandSavingskW]]<>\"\",Table_SummaryPI[[#This Row],[DemandSavingskW]],0)","v":0}]
[{"$f":"Table_SummaryPI[[#This Row],[Line No.]]","v":""},{"$f":"IF(Table_PrintPI[[#This Row],[Line No.]]=\"\",\"\",CONCATENATE(Table_PrintPI[[#This Row],[Line No.]],\" - \",Table_SummaryPI[[#This Row],[MeasureName]]))","v":""},{"$f":"IF(Table_SummaryPI[[#This Row],[Manufacturer]]<>\"\",CONCATENATE(Table_SummaryPI[[#This Row],[Manufacturer]],\"/\",Table_SummaryPI[[#This Row],[Model'#]]),\"\")","v":""},{"$f":"IF(Table_SummaryPI[[#This Row],[Serial'#]]<>\"\",Table_SummaryPI[[#This Row],[Serial'#]],\"\")","v":""},{"$f":"IF(Table_SummaryPI[[#This Row],[Quantity]]<>\"\",Table_SummaryPI[[#This Row],[Quantity]],\"\")","v":""},{"$f":"IF(Table_SummaryPI[[#This Row],[BaselinekWh]]<>\"\",Table_SummaryPI[[#This Row],[BaselinekWh]],\"\")","v":""},{"$f":"IF(Table_SummaryPI[[#This Row],[BaselinekW]]<>\"\",Table_SummaryPI[[#This Row],[BaselinekW]],\"\")","v":""},{"$f":"IF(Table_SummaryPI[[#This Row],[ProposedkWh]]<>\"\",Table_SummaryPI[[#This Row],[ProposedkWh]],\"\")","v":""},{"$f":"IF(Table_SummaryPI[[#This Row],[ProposedkW]]<>\"\",Table_SummaryPI[[#This Row],[ProposedkW]],\"\")","v":""},{"$f":"IF(Table_SummaryPI[[#This Row],[Notes]]<>\"\",Table_SummaryPI[[#This Row],[Notes]],\"\")","v":""},{"$f":"IF(Table_SummaryPI[[#This Row],[Incentive_Customer]]<>\"\",Table_SummaryPI[[#This Row],[Incentive_Customer]],0)","v":0},{"$f":"IF(Table_SummaryPI[[#This Row],[MeasureCost]]<>\"\",Table_SummaryPI[[#This Row],[MeasureCost]],0)","v":0},{"$f":"IF(Table_SummaryPI[[#This Row],[kWhSavings]]<>\"\",Table_SummaryPI[[#This Row],[kWhSavings]],0)","v":0},{"$f":"IF(Table_SummaryPI[[#This Row],[DemandSavingskW]]<>\"\",Table_SummaryPI[[#This Row],[DemandSavingskW]],0)","v":0}]
[{"$f":"Table_SummaryPI[[#This Row],[Line No.]]","v":""},{"$f":"IF(Table_PrintPI[[#This Row],[Line No.]]=\"\",\"\",CONCATENATE(Table_PrintPI[[#This Row],[Line No.]],\" - \",Table_SummaryPI[[#This Row],[MeasureName]]))","v":""},{"$f":"IF(Table_SummaryPI[[#This Row],[Manufacturer]]<>\"\",CONCATENATE(Table_SummaryPI[[#This Row],[Manufacturer]],\"/\",Table_SummaryPI[[#This Row],[Model'#]]),\"\")","v":""},{"$f":"IF(Table_SummaryPI[[#This Row],[Serial'#]]<>\"\",Table_SummaryPI[[#This Row],[Serial'#]],\"\")","v":""},{"$f":"IF(Table_SummaryPI[[#This Row],[Quantity]]<>\"\",Table_SummaryPI[[#This Row],[Quantity]],\"\")","v":""},{"$f":"IF(Table_SummaryPI[[#This Row],[BaselinekWh]]<>\"\",Table_SummaryPI[[#This Row],[BaselinekWh]],\"\")","v":""},{"$f":"IF(Table_SummaryPI[[#This Row],[BaselinekW]]<>\"\",Table_SummaryPI[[#This Row],[BaselinekW]],\"\")","v":""},{"$f":"IF(Table_SummaryPI[[#This Row],[ProposedkWh]]<>\"\",Table_SummaryPI[[#This Row],[ProposedkWh]],\"\")","v":""},{"$f":"IF(Table_SummaryPI[[#This Row],[ProposedkW]]<>\"\",Table_SummaryPI[[#This Row],[ProposedkW]],\"\")","v":""},{"$f":"IF(Table_SummaryPI[[#This Row],[Notes]]<>\"\",Table_SummaryPI[[#This Row],[Notes]],\"\")","v":""},{"$f":"IF(Table_SummaryPI[[#This Row],[Incentive_Customer]]<>\"\",Table_SummaryPI[[#This Row],[Incentive_Customer]],0)","v":0},{"$f":"IF(Table_SummaryPI[[#This Row],[MeasureCost]]<>\"\",Table_SummaryPI[[#This Row],[MeasureCost]],0)","v":0},{"$f":"IF(Table_SummaryPI[[#This Row],[kWhSavings]]<>\"\",Table_SummaryPI[[#This Row],[kWhSavings]],0)","v":0},{"$f":"IF(Table_SummaryPI[[#This Row],[DemandSavingskW]]<>\"\",Table_SummaryPI[[#This Row],[DemandSavingskW]],0)","v":0}]
[{"$f":"Table_SummaryPI[[#This Row],[Line No.]]","v":""},{"$f":"IF(Table_PrintPI[[#This Row],[Line No.]]=\"\",\"\",CONCATENATE(Table_PrintPI[[#This Row],[Line No.]],\" - \",Table_SummaryPI[[#This Row],[MeasureName]]))","v":""},{"$f":"IF(Table_SummaryPI[[#This Row],[Manufacturer]]<>\"\",CONCATENATE(Table_SummaryPI[[#This Row],[Manufacturer]],\"/\",Table_SummaryPI[[#This Row],[Model'#]]),\"\")","v":""},{"$f":"IF(Table_SummaryPI[[#This Row],[Serial'#]]<>\"\",Table_SummaryPI[[#This Row],[Serial'#]],\"\")","v":""},{"$f":"IF(Table_SummaryPI[[#This Row],[Quantity]]<>\"\",Table_SummaryPI[[#This Row],[Quantity]],\"\")","v":""},{"$f":"IF(Table_SummaryPI[[#This Row],[BaselinekWh]]<>\"\",Table_SummaryPI[[#This Row],[BaselinekWh]],\"\")","v":""},{"$f":"IF(Table_SummaryPI[[#This Row],[BaselinekW]]<>\"\",Table_SummaryPI[[#This Row],[BaselinekW]],\"\")","v":""},{"$f":"IF(Table_SummaryPI[[#This Row],[ProposedkWh]]<>\"\",Table_SummaryPI[[#This Row],[ProposedkWh]],\"\")","v":""},{"$f":"IF(Table_SummaryPI[[#This Row],[ProposedkW]]<>\"\",Table_SummaryPI[[#This Row],[ProposedkW]],\"\")","v":""},{"$f":"IF(Table_SummaryPI[[#This Row],[Notes]]<>\"\",Table_SummaryPI[[#This Row],[Notes]],\"\")","v":""},{"$f":"IF(Table_SummaryPI[[#This Row],[Incentive_Customer]]<>\"\",Table_SummaryPI[[#This Row],[Incentive_Customer]],0)","v":0},{"$f":"IF(Table_SummaryPI[[#This Row],[MeasureCost]]<>\"\",Table_SummaryPI[[#This Row],[MeasureCost]],0)","v":0},{"$f":"IF(Table_SummaryPI[[#This Row],[kWhSavings]]<>\"\",Table_SummaryPI[[#This Row],[kWhSavings]],0)","v":0},{"$f":"IF(Table_SummaryPI[[#This Row],[DemandSavingskW]]<>\"\",Table_SummaryPI[[#This Row],[DemandSavingskW]],0)","v":0}]
[{"$f":"Table_SummaryPI[[#This Row],[Line No.]]","v":""},{"$f":"IF(Table_PrintPI[[#This Row],[Line No.]]=\"\",\"\",CONCATENATE(Table_PrintPI[[#This Row],[Line No.]],\" - \",Table_SummaryPI[[#This Row],[MeasureName]]))","v":""},{"$f":"IF(Table_SummaryPI[[#This Row],[Manufacturer]]<>\"\",CONCATENATE(Table_SummaryPI[[#This Row],[Manufacturer]],\"/\",Table_SummaryPI[[#This Row],[Model'#]]),\"\")","v":""},{"$f":"IF(Table_SummaryPI[[#This Row],[Serial'#]]<>\"\",Table_SummaryPI[[#This Row],[Serial'#]],\"\")","v":""},{"$f":"IF(Table_SummaryPI[[#This Row],[Quantity]]<>\"\",Table_SummaryPI[[#This Row],[Quantity]],\"\")","v":""},{"$f":"IF(Table_SummaryPI[[#This Row],[BaselinekWh]]<>\"\",Table_SummaryPI[[#This Row],[BaselinekWh]],\"\")","v":""},{"$f":"IF(Table_SummaryPI[[#This Row],[BaselinekW]]<>\"\",Table_SummaryPI[[#This Row],[BaselinekW]],\"\")","v":""},{"$f":"IF(Table_SummaryPI[[#This Row],[ProposedkWh]]<>\"\",Table_SummaryPI[[#This Row],[ProposedkWh]],\"\")","v":""},{"$f":"IF(Table_SummaryPI[[#This Row],[ProposedkW]]<>\"\",Table_SummaryPI[[#This Row],[ProposedkW]],\"\")","v":""},{"$f":"IF(Table_SummaryPI[[#This Row],[Notes]]<>\"\",Table_SummaryPI[[#This Row],[Notes]],\"\")","v":""},{"$f":"IF(Table_SummaryPI[[#This Row],[Incentive_Customer]]<>\"\",Table_SummaryPI[[#This Row],[Incentive_Customer]],0)","v":0},{"$f":"IF(Table_SummaryPI[[#This Row],[MeasureCost]]<>\"\",Table_SummaryPI[[#This Row],[MeasureCost]],0)","v":0},{"$f":"IF(Table_SummaryPI[[#This Row],[kWhSavings]]<>\"\",Table_SummaryPI[[#This Row],[kWhSavings]],0)","v":0},{"$f":"IF(Table_SummaryPI[[#This Row],[DemandSavingskW]]<>\"\",Table_SummaryPI[[#This Row],[DemandSavingskW]],0)","v":0}]
[{"$f":"Table_SummaryPI[[#This Row],[Line No.]]","v":""},{"$f":"IF(Table_PrintPI[[#This Row],[Line No.]]=\"\",\"\",CONCATENATE(Table_PrintPI[[#This Row],[Line No.]],\" - \",Table_SummaryPI[[#This Row],[MeasureName]]))","v":""},{"$f":"IF(Table_SummaryPI[[#This Row],[Manufacturer]]<>\"\",CONCATENATE(Table_SummaryPI[[#This Row],[Manufacturer]],\"/\",Table_SummaryPI[[#This Row],[Model'#]]),\"\")","v":""},{"$f":"IF(Table_SummaryPI[[#This Row],[Serial'#]]<>\"\",Table_SummaryPI[[#This Row],[Serial'#]],\"\")","v":""},{"$f":"IF(Table_SummaryPI[[#This Row],[Quantity]]<>\"\",Table_SummaryPI[[#This Row],[Quantity]],\"\")","v":""},{"$f":"IF(Table_SummaryPI[[#This Row],[BaselinekWh]]<>\"\",Table_SummaryPI[[#This Row],[BaselinekWh]],\"\")","v":""},{"$f":"IF(Table_SummaryPI[[#This Row],[BaselinekW]]<>\"\",Table_SummaryPI[[#This Row],[BaselinekW]],\"\")","v":""},{"$f":"IF(Table_SummaryPI[[#This Row],[ProposedkWh]]<>\"\",Table_SummaryPI[[#This Row],[ProposedkWh]],\"\")","v":""},{"$f":"IF(Table_SummaryPI[[#This Row],[ProposedkW]]<>\"\",Table_SummaryPI[[#This Row],[ProposedkW]],\"\")","v":""},{"$f":"IF(Table_SummaryPI[[#This Row],[Notes]]<>\"\",Table_SummaryPI[[#This Row],[Notes]],\"\")","v":""},{"$f":"IF(Table_SummaryPI[[#This Row],[Incentive_Customer]]<>\"\",Table_SummaryPI[[#This Row],[Incentive_Customer]],0)","v":0},{"$f":"IF(Table_SummaryPI[[#This Row],[MeasureCost]]<>\"\",Table_SummaryPI[[#This Row],[MeasureCost]],0)","v":0},{"$f":"IF(Table_SummaryPI[[#This Row],[kWhSavings]]<>\"\",Table_SummaryPI[[#This Row],[kWhSavings]],0)","v":0},{"$f":"IF(Table_SummaryPI[[#This Row],[DemandSavingskW]]<>\"\",Table_SummaryPI[[#This Row],[DemandSavingskW]],0)","v":0}]
[{"$f":"Table_SummaryPI[[#This Row],[Line No.]]","v":""},{"$f":"IF(Table_PrintPI[[#This Row],[Line No.]]=\"\",\"\",CONCATENATE(Table_PrintPI[[#This Row],[Line No.]],\" - \",Table_SummaryPI[[#This Row],[MeasureName]]))","v":""},{"$f":"IF(Table_SummaryPI[[#This Row],[Manufacturer]]<>\"\",CONCATENATE(Table_SummaryPI[[#This Row],[Manufacturer]],\"/\",Table_SummaryPI[[#This Row],[Model'#]]),\"\")","v":""},{"$f":"IF(Table_SummaryPI[[#This Row],[Serial'#]]<>\"\",Table_SummaryPI[[#This Row],[Serial'#]],\"\")","v":""},{"$f":"IF(Table_SummaryPI[[#This Row],[Quantity]]<>\"\",Table_SummaryPI[[#This Row],[Quantity]],\"\")","v":""},{"$f":"IF(Table_SummaryPI[[#This Row],[BaselinekWh]]<>\"\",Table_SummaryPI[[#This Row],[BaselinekWh]],\"\")","v":""},{"$f":"IF(Table_SummaryPI[[#This Row],[BaselinekW]]<>\"\",Table_SummaryPI[[#This Row],[BaselinekW]],\"\")","v":""},{"$f":"IF(Table_SummaryPI[[#This Row],[ProposedkWh]]<>\"\",Table_SummaryPI[[#This Row],[ProposedkWh]],\"\")","v":""},{"$f":"IF(Table_SummaryPI[[#This Row],[ProposedkW]]<>\"\",Table_SummaryPI[[#This Row],[ProposedkW]],\"\")","v":""},{"$f":"IF(Table_SummaryPI[[#This Row],[Notes]]<>\"\",Table_SummaryPI[[#This Row],[Notes]],\"\")","v":""},{"$f":"IF(Table_SummaryPI[[#This Row],[Incentive_Customer]]<>\"\",Table_SummaryPI[[#This Row],[Incentive_Customer]],0)","v":0},{"$f":"IF(Table_SummaryPI[[#This Row],[MeasureCost]]<>\"\",Table_SummaryPI[[#This Row],[MeasureCost]],0)","v":0},{"$f":"IF(Table_SummaryPI[[#This Row],[kWhSavings]]<>\"\",Table_SummaryPI[[#This Row],[kWhSavings]],0)","v":0},{"$f":"IF(Table_SummaryPI[[#This Row],[DemandSavingskW]]<>\"\",Table_SummaryPI[[#This Row],[DemandSavingskW]],0)","v":0}]
[{"$f":"Table_SummaryPI[[#This Row],[Line No.]]","v":""},{"$f":"IF(Table_PrintPI[[#This Row],[Line No.]]=\"\",\"\",CONCATENATE(Table_PrintPI[[#This Row],[Line No.]],\" - \",Table_SummaryPI[[#This Row],[MeasureName]]))","v":""},{"$f":"IF(Table_SummaryPI[[#This Row],[Manufacturer]]<>\"\",CONCATENATE(Table_SummaryPI[[#This Row],[Manufacturer]],\"/\",Table_SummaryPI[[#This Row],[Model'#]]),\"\")","v":""},{"$f":"IF(Table_SummaryPI[[#This Row],[Serial'#]]<>\"\",Table_SummaryPI[[#This Row],[Serial'#]],\"\")","v":""},{"$f":"IF(Table_SummaryPI[[#This Row],[Quantity]]<>\"\",Table_SummaryPI[[#This Row],[Quantity]],\"\")","v":""},{"$f":"IF(Table_SummaryPI[[#This Row],[BaselinekWh]]<>\"\",Table_SummaryPI[[#This Row],[BaselinekWh]],\"\")","v":""},{"$f":"IF(Table_SummaryPI[[#This Row],[BaselinekW]]<>\"\",Table_SummaryPI[[#This Row],[BaselinekW]],\"\")","v":""},{"$f":"IF(Table_SummaryPI[[#This Row],[ProposedkWh]]<>\"\",Table_SummaryPI[[#This Row],[ProposedkWh]],\"\")","v":""},{"$f":"IF(Table_SummaryPI[[#This Row],[ProposedkW]]<>\"\",Table_SummaryPI[[#This Row],[ProposedkW]],\"\")","v":""},{"$f":"IF(Table_SummaryPI[[#This Row],[Notes]]<>\"\",Table_SummaryPI[[#This Row],[Notes]],\"\")","v":""},{"$f":"IF(Table_SummaryPI[[#This Row],[Incentive_Customer]]<>\"\",Table_SummaryPI[[#This Row],[Incentive_Customer]],0)","v":0},{"$f":"IF(Table_SummaryPI[[#This Row],[MeasureCost]]<>\"\",Table_SummaryPI[[#This Row],[MeasureCost]],0)","v":0},{"$f":"IF(Table_SummaryPI[[#This Row],[kWhSavings]]<>\"\",Table_SummaryPI[[#This Row],[kWhSavings]],0)","v":0},{"$f":"IF(Table_SummaryPI[[#This Row],[DemandSavingskW]]<>\"\",Table_SummaryPI[[#This Row],[DemandSavingskW]],0)","v":0}]
[{"$f":"Table_SummaryPI[[#This Row],[Line No.]]","v":""},{"$f":"IF(Table_PrintPI[[#This Row],[Line No.]]=\"\",\"\",CONCATENATE(Table_PrintPI[[#This Row],[Line No.]],\" - \",Table_SummaryPI[[#This Row],[MeasureName]]))","v":""},{"$f":"IF(Table_SummaryPI[[#This Row],[Manufacturer]]<>\"\",CONCATENATE(Table_SummaryPI[[#This Row],[Manufacturer]],\"/\",Table_SummaryPI[[#This Row],[Model'#]]),\"\")","v":""},{"$f":"IF(Table_SummaryPI[[#This Row],[Serial'#]]<>\"\",Table_SummaryPI[[#This Row],[Serial'#]],\"\")","v":""},{"$f":"IF(Table_SummaryPI[[#This Row],[Quantity]]<>\"\",Table_SummaryPI[[#This Row],[Quantity]],\"\")","v":""},{"$f":"IF(Table_SummaryPI[[#This Row],[BaselinekWh]]<>\"\",Table_SummaryPI[[#This Row],[BaselinekWh]],\"\")","v":""},{"$f":"IF(Table_SummaryPI[[#This Row],[BaselinekW]]<>\"\",Table_SummaryPI[[#This Row],[BaselinekW]],\"\")","v":""},{"$f":"IF(Table_SummaryPI[[#This Row],[ProposedkWh]]<>\"\",Table_SummaryPI[[#This Row],[ProposedkWh]],\"\")","v":""},{"$f":"IF(Table_SummaryPI[[#This Row],[ProposedkW]]<>\"\",Table_SummaryPI[[#This Row],[ProposedkW]],\"\")","v":""},{"$f":"IF(Table_SummaryPI[[#This Row],[Notes]]<>\"\",Table_SummaryPI[[#This Row],[Notes]],\"\")","v":""},{"$f":"IF(Table_SummaryPI[[#This Row],[Incentive_Customer]]<>\"\",Table_SummaryPI[[#This Row],[Incentive_Customer]],0)","v":0},{"$f":"IF(Table_SummaryPI[[#This Row],[MeasureCost]]<>\"\",Table_SummaryPI[[#This Row],[MeasureCost]],0)","v":0},{"$f":"IF(Table_SummaryPI[[#This Row],[kWhSavings]]<>\"\",Table_SummaryPI[[#This Row],[kWhSavings]],0)","v":0},{"$f":"IF(Table_SummaryPI[[#This Row],[DemandSavingskW]]<>\"\",Table_SummaryPI[[#This Row],[DemandSavingskW]],0)","v":0}]
[{"$f":"Table_SummaryPI[[#This Row],[Line No.]]","v":""},{"$f":"IF(Table_PrintPI[[#This Row],[Line No.]]=\"\",\"\",CONCATENATE(Table_PrintPI[[#This Row],[Line No.]],\" - \",Table_SummaryPI[[#This Row],[MeasureName]]))","v":""},{"$f":"IF(Table_SummaryPI[[#This Row],[Manufacturer]]<>\"\",CONCATENATE(Table_SummaryPI[[#This Row],[Manufacturer]],\"/\",Table_SummaryPI[[#This Row],[Model'#]]),\"\")","v":""},{"$f":"IF(Table_SummaryPI[[#This Row],[Serial'#]]<>\"\",Table_SummaryPI[[#This Row],[Serial'#]],\"\")","v":""},{"$f":"IF(Table_SummaryPI[[#This Row],[Quantity]]<>\"\",Table_SummaryPI[[#This Row],[Quantity]],\"\")","v":""},{"$f":"IF(Table_SummaryPI[[#This Row],[BaselinekWh]]<>\"\",Table_SummaryPI[[#This Row],[BaselinekWh]],\"\")","v":""},{"$f":"IF(Table_SummaryPI[[#This Row],[BaselinekW]]<>\"\",Table_SummaryPI[[#This Row],[BaselinekW]],\"\")","v":""},{"$f":"IF(Table_SummaryPI[[#This Row],[ProposedkWh]]<>\"\",Table_SummaryPI[[#This Row],[ProposedkWh]],\"\")","v":""},{"$f":"IF(Table_SummaryPI[[#This Row],[ProposedkW]]<>\"\",Table_SummaryPI[[#This Row],[ProposedkW]],\"\")","v":""},{"$f":"IF(Table_SummaryPI[[#This Row],[Notes]]<>\"\",Table_SummaryPI[[#This Row],[Notes]],\"\")","v":""},{"$f":"IF(Table_SummaryPI[[#This Row],[Incentive_Customer]]<>\"\",Table_SummaryPI[[#This Row],[Incentive_Customer]],0)","v":0},{"$f":"IF(Table_SummaryPI[[#This Row],[MeasureCost]]<>\"\",Table_SummaryPI[[#This Row],[MeasureCost]],0)","v":0},{"$f":"IF(Table_SummaryPI[[#This Row],[kWhSavings]]<>\"\",Table_SummaryPI[[#This Row],[kWhSavings]],0)","v":0},{"$f":"IF(Table_SummaryPI[[#This Row],[DemandSavingskW]]<>\"\",Table_SummaryPI[[#This Row],[DemandSavingskW]],0)","v":0}]
[{"$f":"Table_SummaryPI[[#This Row],[Line No.]]","v":""},{"$f":"IF(Table_PrintPI[[#This Row],[Line No.]]=\"\",\"\",CONCATENATE(Table_PrintPI[[#This Row],[Line No.]],\" - \",Table_SummaryPI[[#This Row],[MeasureName]]))","v":""},{"$f":"IF(Table_SummaryPI[[#This Row],[Manufacturer]]<>\"\",CONCATENATE(Table_SummaryPI[[#This Row],[Manufacturer]],\"/\",Table_SummaryPI[[#This Row],[Model'#]]),\"\")","v":""},{"$f":"IF(Table_SummaryPI[[#This Row],[Serial'#]]<>\"\",Table_SummaryPI[[#This Row],[Serial'#]],\"\")","v":""},{"$f":"IF(Table_SummaryPI[[#This Row],[Quantity]]<>\"\",Table_SummaryPI[[#This Row],[Quantity]],\"\")","v":""},{"$f":"IF(Table_SummaryPI[[#This Row],[BaselinekWh]]<>\"\",Table_SummaryPI[[#This Row],[BaselinekWh]],\"\")","v":""},{"$f":"IF(Table_SummaryPI[[#This Row],[BaselinekW]]<>\"\",Table_SummaryPI[[#This Row],[BaselinekW]],\"\")","v":""},{"$f":"IF(Table_SummaryPI[[#This Row],[ProposedkWh]]<>\"\",Table_SummaryPI[[#This Row],[ProposedkWh]],\"\")","v":""},{"$f":"IF(Table_SummaryPI[[#This Row],[ProposedkW]]<>\"\",Table_SummaryPI[[#This Row],[ProposedkW]],\"\")","v":""},{"$f":"IF(Table_SummaryPI[[#This Row],[Notes]]<>\"\",Table_SummaryPI[[#This Row],[Notes]],\"\")","v":""},{"$f":"IF(Table_SummaryPI[[#This Row],[Incentive_Customer]]<>\"\",Table_SummaryPI[[#This Row],[Incentive_Customer]],0)","v":0},{"$f":"IF(Table_SummaryPI[[#This Row],[MeasureCost]]<>\"\",Table_SummaryPI[[#This Row],[MeasureCost]],0)","v":0},{"$f":"IF(Table_SummaryPI[[#This Row],[kWhSavings]]<>\"\",Table_SummaryPI[[#This Row],[kWhSavings]],0)","v":0},{"$f":"IF(Table_SummaryPI[[#This Row],[DemandSavingskW]]<>\"\",Table_SummaryPI[[#This Row],[DemandSavingskW]],0)","v":0}]
[{"$f":"Table_SummaryPI[[#This Row],[Line No.]]","v":""},{"$f":"IF(Table_PrintPI[[#This Row],[Line No.]]=\"\",\"\",CONCATENATE(Table_PrintPI[[#This Row],[Line No.]],\" - \",Table_SummaryPI[[#This Row],[MeasureName]]))","v":""},{"$f":"IF(Table_SummaryPI[[#This Row],[Manufacturer]]<>\"\",CONCATENATE(Table_SummaryPI[[#This Row],[Manufacturer]],\"/\",Table_SummaryPI[[#This Row],[Model'#]]),\"\")","v":""},{"$f":"IF(Table_SummaryPI[[#This Row],[Serial'#]]<>\"\",Table_SummaryPI[[#This Row],[Serial'#]],\"\")","v":""},{"$f":"IF(Table_SummaryPI[[#This Row],[Quantity]]<>\"\",Table_SummaryPI[[#This Row],[Quantity]],\"\")","v":""},{"$f":"IF(Table_SummaryPI[[#This Row],[BaselinekWh]]<>\"\",Table_SummaryPI[[#This Row],[BaselinekWh]],\"\")","v":""},{"$f":"IF(Table_SummaryPI[[#This Row],[BaselinekW]]<>\"\",Table_SummaryPI[[#This Row],[BaselinekW]],\"\")","v":""},{"$f":"IF(Table_SummaryPI[[#This Row],[ProposedkWh]]<>\"\",Table_SummaryPI[[#This Row],[ProposedkWh]],\"\")","v":""},{"$f":"IF(Table_SummaryPI[[#This Row],[ProposedkW]]<>\"\",Table_SummaryPI[[#This Row],[ProposedkW]],\"\")","v":""},{"$f":"IF(Table_SummaryPI[[#This Row],[Notes]]<>\"\",Table_SummaryPI[[#This Row],[Notes]],\"\")","v":""},{"$f":"IF(Table_SummaryPI[[#This Row],[Incentive_Customer]]<>\"\",Table_SummaryPI[[#This Row],[Incentive_Customer]],0)","v":0},{"$f":"IF(Table_SummaryPI[[#This Row],[MeasureCost]]<>\"\",Table_SummaryPI[[#This Row],[MeasureCost]],0)","v":0},{"$f":"IF(Table_SummaryPI[[#This Row],[kWhSavings]]<>\"\",Table_SummaryPI[[#This Row],[kWhSavings]],0)","v":0},{"$f":"IF(Table_SummaryPI[[#This Row],[DemandSavingskW]]<>\"\",Table_SummaryPI[[#This Row],[DemandSavingskW]],0)","v":0}]
[{"$f":"Table_SummaryPI[[#This Row],[Line No.]]","v":""},{"$f":"IF(Table_PrintPI[[#This Row],[Line No.]]=\"\",\"\",CONCATENATE(Table_PrintPI[[#This Row],[Line No.]],\" - \",Table_SummaryPI[[#This Row],[MeasureName]]))","v":""},{"$f":"IF(Table_SummaryPI[[#This Row],[Manufacturer]]<>\"\",CONCATENATE(Table_SummaryPI[[#This Row],[Manufacturer]],\"/\",Table_SummaryPI[[#This Row],[Model'#]]),\"\")","v":""},{"$f":"IF(Table_SummaryPI[[#This Row],[Serial'#]]<>\"\",Table_SummaryPI[[#This Row],[Serial'#]],\"\")","v":""},{"$f":"IF(Table_SummaryPI[[#This Row],[Quantity]]<>\"\",Table_SummaryPI[[#This Row],[Quantity]],\"\")","v":""},{"$f":"IF(Table_SummaryPI[[#This Row],[BaselinekWh]]<>\"\",Table_SummaryPI[[#This Row],[BaselinekWh]],\"\")","v":""},{"$f":"IF(Table_SummaryPI[[#This Row],[BaselinekW]]<>\"\",Table_SummaryPI[[#This Row],[BaselinekW]],\"\")","v":""},{"$f":"IF(Table_SummaryPI[[#This Row],[ProposedkWh]]<>\"\",Table_SummaryPI[[#This Row],[ProposedkWh]],\"\")","v":""},{"$f":"IF(Table_SummaryPI[[#This Row],[ProposedkW]]<>\"\",Table_SummaryPI[[#This Row],[ProposedkW]],\"\")","v":""},{"$f":"IF(Table_SummaryPI[[#This Row],[Notes]]<>\"\",Table_SummaryPI[[#This Row],[Notes]],\"\")","v":""},{"$f":"IF(Table_SummaryPI[[#This Row],[Incentive_Customer]]<>\"\",Table_SummaryPI[[#This Row],[Incentive_Customer]],0)","v":0},{"$f":"IF(Table_SummaryPI[[#This Row],[MeasureCost]]<>\"\",Table_SummaryPI[[#This Row],[MeasureCost]],0)","v":0},{"$f":"IF(Table_SummaryPI[[#This Row],[kWhSavings]]<>\"\",Table_SummaryPI[[#This Row],[kWhSavings]],0)","v":0},{"$f":"IF(Table_SummaryPI[[#This Row],[DemandSavingskW]]<>\"\",Table_SummaryPI[[#This Row],[DemandSavingskW]],0)","v":0}]
[{"$f":"Table_SummaryPI[[#This Row],[Line No.]]","v":""},{"$f":"IF(Table_PrintPI[[#This Row],[Line No.]]=\"\",\"\",CONCATENATE(Table_PrintPI[[#This Row],[Line No.]],\" - \",Table_SummaryPI[[#This Row],[MeasureName]]))","v":""},{"$f":"IF(Table_SummaryPI[[#This Row],[Manufacturer]]<>\"\",CONCATENATE(Table_SummaryPI[[#This Row],[Manufacturer]],\"/\",Table_SummaryPI[[#This Row],[Model'#]]),\"\")","v":""},{"$f":"IF(Table_SummaryPI[[#This Row],[Serial'#]]<>\"\",Table_SummaryPI[[#This Row],[Serial'#]],\"\")","v":""},{"$f":"IF(Table_SummaryPI[[#This Row],[Quantity]]<>\"\",Table_SummaryPI[[#This Row],[Quantity]],\"\")","v":""},{"$f":"IF(Table_SummaryPI[[#This Row],[BaselinekWh]]<>\"\",Table_SummaryPI[[#This Row],[BaselinekWh]],\"\")","v":""},{"$f":"IF(Table_SummaryPI[[#This Row],[BaselinekW]]<>\"\",Table_SummaryPI[[#This Row],[BaselinekW]],\"\")","v":""},{"$f":"IF(Table_SummaryPI[[#This Row],[ProposedkWh]]<>\"\",Table_SummaryPI[[#This Row],[ProposedkWh]],\"\")","v":""},{"$f":"IF(Table_SummaryPI[[#This Row],[ProposedkW]]<>\"\",Table_SummaryPI[[#This Row],[ProposedkW]],\"\")","v":""},{"$f":"IF(Table_SummaryPI[[#This Row],[Notes]]<>\"\",Table_SummaryPI[[#This Row],[Notes]],\"\")","v":""},{"$f":"IF(Table_SummaryPI[[#This Row],[Incentive_Customer]]<>\"\",Table_SummaryPI[[#This Row],[Incentive_Customer]],0)","v":0},{"$f":"IF(Table_SummaryPI[[#This Row],[MeasureCost]]<>\"\",Table_SummaryPI[[#This Row],[MeasureCost]],0)","v":0},{"$f":"IF(Table_SummaryPI[[#This Row],[kWhSavings]]<>\"\",Table_SummaryPI[[#This Row],[kWhSavings]],0)","v":0},{"$f":"IF(Table_SummaryPI[[#This Row],[DemandSavingskW]]<>\"\",Table_SummaryPI[[#This Row],[DemandSavingskW]],0)","v":0}]
[{"$f":"Table_SummaryPI[[#This Row],[Line No.]]","v":""},{"$f":"IF(Table_PrintPI[[#This Row],[Line No.]]=\"\",\"\",CONCATENATE(Table_PrintPI[[#This Row],[Line No.]],\" - \",Table_SummaryPI[[#This Row],[MeasureName]]))","v":""},{"$f":"IF(Table_SummaryPI[[#This Row],[Manufacturer]]<>\"\",CONCATENATE(Table_SummaryPI[[#This Row],[Manufacturer]],\"/\",Table_SummaryPI[[#This Row],[Model'#]]),\"\")","v":""},{"$f":"IF(Table_SummaryPI[[#This Row],[Serial'#]]<>\"\",Table_SummaryPI[[#This Row],[Serial'#]],\"\")","v":""},{"$f":"IF(Table_SummaryPI[[#This Row],[Quantity]]<>\"\",Table_SummaryPI[[#This Row],[Quantity]],\"\")","v":""},{"$f":"IF(Table_SummaryPI[[#This Row],[BaselinekWh]]<>\"\",Table_SummaryPI[[#This Row],[BaselinekWh]],\"\")","v":""},{"$f":"IF(Table_SummaryPI[[#This Row],[BaselinekW]]<>\"\",Table_SummaryPI[[#This Row],[BaselinekW]],\"\")","v":""},{"$f":"IF(Table_SummaryPI[[#This Row],[ProposedkWh]]<>\"\",Table_SummaryPI[[#This Row],[ProposedkWh]],\"\")","v":""},{"$f":"IF(Table_SummaryPI[[#This Row],[ProposedkW]]<>\"\",Table_SummaryPI[[#This Row],[ProposedkW]],\"\")","v":""},{"$f":"IF(Table_SummaryPI[[#This Row],[Notes]]<>\"\",Table_SummaryPI[[#This Row],[Notes]],\"\")","v":""},{"$f":"IF(Table_SummaryPI[[#This Row],[Incentive_Customer]]<>\"\",Table_SummaryPI[[#This Row],[Incentive_Customer]],0)","v":0},{"$f":"IF(Table_SummaryPI[[#This Row],[MeasureCost]]<>\"\",Table_SummaryPI[[#This Row],[MeasureCost]],0)","v":0},{"$f":"IF(Table_SummaryPI[[#This Row],[kWhSavings]]<>\"\",Table_SummaryPI[[#This Row],[kWhSavings]],0)","v":0},{"$f":"IF(Table_SummaryPI[[#This Row],[DemandSavingskW]]<>\"\",Table_SummaryPI[[#This Row],[DemandSavingskW]],0)","v":0}]
[{"$f":"Table_SummaryPI[[#This Row],[Line No.]]","v":""},{"$f":"IF(Table_PrintPI[[#This Row],[Line No.]]=\"\",\"\",CONCATENATE(Table_PrintPI[[#This Row],[Line No.]],\" - \",Table_SummaryPI[[#This Row],[MeasureName]]))","v":""},{"$f":"IF(Table_SummaryPI[[#This Row],[Manufacturer]]<>\"\",CONCATENATE(Table_SummaryPI[[#This Row],[Manufacturer]],\"/\",Table_SummaryPI[[#This Row],[Model'#]]),\"\")","v":""},{"$f":"IF(Table_SummaryPI[[#This Row],[Serial'#]]<>\"\",Table_SummaryPI[[#This Row],[Serial'#]],\"\")","v":""},{"$f":"IF(Table_SummaryPI[[#This Row],[Quantity]]<>\"\",Table_SummaryPI[[#This Row],[Quantity]],\"\")","v":""},{"$f":"IF(Table_SummaryPI[[#This Row],[BaselinekWh]]<>\"\",Table_SummaryPI[[#This Row],[BaselinekWh]],\"\")","v":""},{"$f":"IF(Table_SummaryPI[[#This Row],[BaselinekW]]<>\"\",Table_SummaryPI[[#This Row],[BaselinekW]],\"\")","v":""},{"$f":"IF(Table_SummaryPI[[#This Row],[ProposedkWh]]<>\"\",Table_SummaryPI[[#This Row],[ProposedkWh]],\"\")","v":""},{"$f":"IF(Table_SummaryPI[[#This Row],[ProposedkW]]<>\"\",Table_SummaryPI[[#This Row],[ProposedkW]],\"\")","v":""},{"$f":"IF(Table_SummaryPI[[#This Row],[Notes]]<>\"\",Table_SummaryPI[[#This Row],[Notes]],\"\")","v":""},{"$f":"IF(Table_SummaryPI[[#This Row],[Incentive_Customer]]<>\"\",Table_SummaryPI[[#This Row],[Incentive_Customer]],0)","v":0},{"$f":"IF(Table_SummaryPI[[#This Row],[MeasureCost]]<>\"\",Table_SummaryPI[[#This Row],[MeasureCost]],0)","v":0},{"$f":"IF(Table_SummaryPI[[#This Row],[kWhSavings]]<>\"\",Table_SummaryPI[[#This Row],[kWhSavings]],0)","v":0},{"$f":"IF(Table_SummaryPI[[#This Row],[DemandSavingskW]]<>\"\",Table_SummaryPI[[#This Row],[DemandSavingskW]],0)","v":0}]
[{"$f":"Table_SummaryPI[[#This Row],[Line No.]]","v":""},{"$f":"IF(Table_PrintPI[[#This Row],[Line No.]]=\"\",\"\",CONCATENATE(Table_PrintPI[[#This Row],[Line No.]],\" - \",Table_SummaryPI[[#This Row],[MeasureName]]))","v":""},{"$f":"IF(Table_SummaryPI[[#This Row],[Manufacturer]]<>\"\",CONCATENATE(Table_SummaryPI[[#This Row],[Manufacturer]],\"/\",Table_SummaryPI[[#This Row],[Model'#]]),\"\")","v":""},{"$f":"IF(Table_SummaryPI[[#This Row],[Serial'#]]<>\"\",Table_SummaryPI[[#This Row],[Serial'#]],\"\")","v":""},{"$f":"IF(Table_SummaryPI[[#This Row],[Quantity]]<>\"\",Table_SummaryPI[[#This Row],[Quantity]],\"\")","v":""},{"$f":"IF(Table_SummaryPI[[#This Row],[BaselinekWh]]<>\"\",Table_SummaryPI[[#This Row],[BaselinekWh]],\"\")","v":""},{"$f":"IF(Table_SummaryPI[[#This Row],[BaselinekW]]<>\"\",Table_SummaryPI[[#This Row],[BaselinekW]],\"\")","v":""},{"$f":"IF(Table_SummaryPI[[#This Row],[ProposedkWh]]<>\"\",Table_SummaryPI[[#This Row],[ProposedkWh]],\"\")","v":""},{"$f":"IF(Table_SummaryPI[[#This Row],[ProposedkW]]<>\"\",Table_SummaryPI[[#This Row],[ProposedkW]],\"\")","v":""},{"$f":"IF(Table_SummaryPI[[#This Row],[Notes]]<>\"\",Table_SummaryPI[[#This Row],[Notes]],\"\")","v":""},{"$f":"IF(Table_SummaryPI[[#This Row],[Incentive_Customer]]<>\"\",Table_SummaryPI[[#This Row],[Incentive_Customer]],0)","v":0},{"$f":"IF(Table_SummaryPI[[#This Row],[MeasureCost]]<>\"\",Table_SummaryPI[[#This Row],[MeasureCost]],0)","v":0},{"$f":"IF(Table_SummaryPI[[#This Row],[kWhSavings]]<>\"\",Table_SummaryPI[[#This Row],[kWhSavings]],0)","v":0},{"$f":"IF(Table_SummaryPI[[#This Row],[DemandSavingskW]]<>\"\",Table_SummaryPI[[#This Row],[DemandSavingskW]],0)","v":0}]
[{"$f":"Table_SummaryPI[[#This Row],[Line No.]]","v":""},{"$f":"IF(Table_PrintPI[[#This Row],[Line No.]]=\"\",\"\",CONCATENATE(Table_PrintPI[[#This Row],[Line No.]],\" - \",Table_SummaryPI[[#This Row],[MeasureName]]))","v":""},{"$f":"IF(Table_SummaryPI[[#This Row],[Manufacturer]]<>\"\",CONCATENATE(Table_SummaryPI[[#This Row],[Manufacturer]],\"/\",Table_SummaryPI[[#This Row],[Model'#]]),\"\")","v":""},{"$f":"IF(Table_SummaryPI[[#This Row],[Serial'#]]<>\"\",Table_SummaryPI[[#This Row],[Serial'#]],\"\")","v":""},{"$f":"IF(Table_SummaryPI[[#This Row],[Quantity]]<>\"\",Table_SummaryPI[[#This Row],[Quantity]],\"\")","v":""},{"$f":"IF(Table_SummaryPI[[#This Row],[BaselinekWh]]<>\"\",Table_SummaryPI[[#This Row],[BaselinekWh]],\"\")","v":""},{"$f":"IF(Table_SummaryPI[[#This Row],[BaselinekW]]<>\"\",Table_SummaryPI[[#This Row],[BaselinekW]],\"\")","v":""},{"$f":"IF(Table_SummaryPI[[#This Row],[ProposedkWh]]<>\"\",Table_SummaryPI[[#This Row],[ProposedkWh]],\"\")","v":""},{"$f":"IF(Table_SummaryPI[[#This Row],[ProposedkW]]<>\"\",Table_SummaryPI[[#This Row],[ProposedkW]],\"\")","v":""},{"$f":"IF(Table_SummaryPI[[#This Row],[Notes]]<>\"\",Table_SummaryPI[[#This Row],[Notes]],\"\")","v":""},{"$f":"IF(Table_SummaryPI[[#This Row],[Incentive_Customer]]<>\"\",Table_SummaryPI[[#This Row],[Incentive_Customer]],0)","v":0},{"$f":"IF(Table_SummaryPI[[#This Row],[MeasureCost]]<>\"\",Table_SummaryPI[[#This Row],[MeasureCost]],0)","v":0},{"$f":"IF(Table_SummaryPI[[#This Row],[kWhSavings]]<>\"\",Table_SummaryPI[[#This Row],[kWhSavings]],0)","v":0},{"$f":"IF(Table_SummaryPI[[#This Row],[DemandSavingskW]]<>\"\",Table_SummaryPI[[#This Row],[DemandSavingskW]],0)","v":0}]
[{"$f":"Table_SummaryPI[[#This Row],[Line No.]]","v":""},{"$f":"IF(Table_PrintPI[[#This Row],[Line No.]]=\"\",\"\",CONCATENATE(Table_PrintPI[[#This Row],[Line No.]],\" - \",Table_SummaryPI[[#This Row],[MeasureName]]))","v":""},{"$f":"IF(Table_SummaryPI[[#This Row],[Manufacturer]]<>\"\",CONCATENATE(Table_SummaryPI[[#This Row],[Manufacturer]],\"/\",Table_SummaryPI[[#This Row],[Model'#]]),\"\")","v":""},{"$f":"IF(Table_SummaryPI[[#This Row],[Serial'#]]<>\"\",Table_SummaryPI[[#This Row],[Serial'#]],\"\")","v":""},{"$f":"IF(Table_SummaryPI[[#This Row],[Quantity]]<>\"\",Table_SummaryPI[[#This Row],[Quantity]],\"\")","v":""},{"$f":"IF(Table_SummaryPI[[#This Row],[BaselinekWh]]<>\"\",Table_SummaryPI[[#This Row],[BaselinekWh]],\"\")","v":""},{"$f":"IF(Table_SummaryPI[[#This Row],[BaselinekW]]<>\"\",Table_SummaryPI[[#This Row],[BaselinekW]],\"\")","v":""},{"$f":"IF(Table_SummaryPI[[#This Row],[ProposedkWh]]<>\"\",Table_SummaryPI[[#This Row],[ProposedkWh]],\"\")","v":""},{"$f":"IF(Table_SummaryPI[[#This Row],[ProposedkW]]<>\"\",Table_SummaryPI[[#This Row],[ProposedkW]],\"\")","v":""},{"$f":"IF(Table_SummaryPI[[#This Row],[Notes]]<>\"\",Table_SummaryPI[[#This Row],[Notes]],\"\")","v":""},{"$f":"IF(Table_SummaryPI[[#This Row],[Incentive_Customer]]<>\"\",Table_SummaryPI[[#This Row],[Incentive_Customer]],0)","v":0},{"$f":"IF(Table_SummaryPI[[#This Row],[MeasureCost]]<>\"\",Table_SummaryPI[[#This Row],[MeasureCost]],0)","v":0},{"$f":"IF(Table_SummaryPI[[#This Row],[kWhSavings]]<>\"\",Table_SummaryPI[[#This Row],[kWhSavings]],0)","v":0},{"$f":"IF(Table_SummaryPI[[#This Row],[DemandSavingskW]]<>\"\",Table_SummaryPI[[#This Row],[DemandSavingskW]],0)","v":0}]
[{"$f":"Table_SummaryPI[[#This Row],[Line No.]]","v":""},{"$f":"IF(Table_PrintPI[[#This Row],[Line No.]]=\"\",\"\",CONCATENATE(Table_PrintPI[[#This Row],[Line No.]],\" - \",Table_SummaryPI[[#This Row],[MeasureName]]))","v":""},{"$f":"IF(Table_SummaryPI[[#This Row],[Manufacturer]]<>\"\",CONCATENATE(Table_SummaryPI[[#This Row],[Manufacturer]],\"/\",Table_SummaryPI[[#This Row],[Model'#]]),\"\")","v":""},{"$f":"IF(Table_SummaryPI[[#This Row],[Serial'#]]<>\"\",Table_SummaryPI[[#This Row],[Serial'#]],\"\")","v":""},{"$f":"IF(Table_SummaryPI[[#This Row],[Quantity]]<>\"\",Table_SummaryPI[[#This Row],[Quantity]],\"\")","v":""},{"$f":"IF(Table_SummaryPI[[#This Row],[BaselinekWh]]<>\"\",Table_SummaryPI[[#This Row],[BaselinekWh]],\"\")","v":""},{"$f":"IF(Table_SummaryPI[[#This Row],[BaselinekW]]<>\"\",Table_SummaryPI[[#This Row],[BaselinekW]],\"\")","v":""},{"$f":"IF(Table_SummaryPI[[#This Row],[ProposedkWh]]<>\"\",Table_SummaryPI[[#This Row],[ProposedkWh]],\"\")","v":""},{"$f":"IF(Table_SummaryPI[[#This Row],[ProposedkW]]<>\"\",Table_SummaryPI[[#This Row],[ProposedkW]],\"\")","v":""},{"$f":"IF(Table_SummaryPI[[#This Row],[Notes]]<>\"\",Table_SummaryPI[[#This Row],[Notes]],\"\")","v":""},{"$f":"IF(Table_SummaryPI[[#This Row],[Incentive_Customer]]<>\"\",Table_SummaryPI[[#This Row],[Incentive_Customer]],0)","v":0},{"$f":"IF(Table_SummaryPI[[#This Row],[MeasureCost]]<>\"\",Table_SummaryPI[[#This Row],[MeasureCost]],0)","v":0},{"$f":"IF(Table_SummaryPI[[#This Row],[kWhSavings]]<>\"\",Table_SummaryPI[[#This Row],[kWhSavings]],0)","v":0},{"$f":"IF(Table_SummaryPI[[#This Row],[DemandSavingskW]]<>\"\",Table_SummaryPI[[#This Row],[DemandSavingskW]],0)","v":0}]
[{"$f":"Table_SummaryPI[[#This Row],[Line No.]]","v":""},{"$f":"IF(Table_PrintPI[[#This Row],[Line No.]]=\"\",\"\",CONCATENATE(Table_PrintPI[[#This Row],[Line No.]],\" - \",Table_SummaryPI[[#This Row],[MeasureName]]))","v":""},{"$f":"IF(Table_SummaryPI[[#This Row],[Manufacturer]]<>\"\",CONCATENATE(Table_SummaryPI[[#This Row],[Manufacturer]],\"/\",Table_SummaryPI[[#This Row],[Model'#]]),\"\")","v":""},{"$f":"IF(Table_SummaryPI[[#This Row],[Serial'#]]<>\"\",Table_SummaryPI[[#This Row],[Serial'#]],\"\")","v":""},{"$f":"IF(Table_SummaryPI[[#This Row],[Quantity]]<>\"\",Table_SummaryPI[[#This Row],[Quantity]],\"\")","v":""},{"$f":"IF(Table_SummaryPI[[#This Row],[BaselinekWh]]<>\"\",Table_SummaryPI[[#This Row],[BaselinekWh]],\"\")","v":""},{"$f":"IF(Table_SummaryPI[[#This Row],[BaselinekW]]<>\"\",Table_SummaryPI[[#This Row],[BaselinekW]],\"\")","v":""},{"$f":"IF(Table_SummaryPI[[#This Row],[ProposedkWh]]<>\"\",Table_SummaryPI[[#This Row],[ProposedkWh]],\"\")","v":""},{"$f":"IF(Table_SummaryPI[[#This Row],[ProposedkW]]<>\"\",Table_SummaryPI[[#This Row],[ProposedkW]],\"\")","v":""},{"$f":"IF(Table_SummaryPI[[#This Row],[Notes]]<>\"\",Table_SummaryPI[[#This Row],[Notes]],\"\")","v":""},{"$f":"IF(Table_SummaryPI[[#This Row],[Incentive_Customer]]<>\"\",Table_SummaryPI[[#This Row],[Incentive_Customer]],0)","v":0},{"$f":"IF(Table_SummaryPI[[#This Row],[MeasureCost]]<>\"\",Table_SummaryPI[[#This Row],[MeasureCost]],0)","v":0},{"$f":"IF(Table_SummaryPI[[#This Row],[kWhSavings]]<>\"\",Table_SummaryPI[[#This Row],[kWhSavings]],0)","v":0},{"$f":"IF(Table_SummaryPI[[#This Row],[DemandSavingskW]]<>\"\",Table_SummaryPI[[#This Row],[DemandSavingskW]],0)","v":0}]
[{"$f":"Table_SummaryPI[[#This Row],[Line No.]]","v":""},{"$f":"IF(Table_PrintPI[[#This Row],[Line No.]]=\"\",\"\",CONCATENATE(Table_PrintPI[[#This Row],[Line No.]],\" - \",Table_SummaryPI[[#This Row],[MeasureName]]))","v":""},{"$f":"IF(Table_SummaryPI[[#This Row],[Manufacturer]]<>\"\",CONCATENATE(Table_SummaryPI[[#This Row],[Manufacturer]],\"/\",Table_SummaryPI[[#This Row],[Model'#]]),\"\")","v":""},{"$f":"IF(Table_SummaryPI[[#This Row],[Serial'#]]<>\"\",Table_SummaryPI[[#This Row],[Serial'#]],\"\")","v":""},{"$f":"IF(Table_SummaryPI[[#This Row],[Quantity]]<>\"\",Table_SummaryPI[[#This Row],[Quantity]],\"\")","v":""},{"$f":"IF(Table_SummaryPI[[#This Row],[BaselinekWh]]<>\"\",Table_SummaryPI[[#This Row],[BaselinekWh]],\"\")","v":""},{"$f":"IF(Table_SummaryPI[[#This Row],[BaselinekW]]<>\"\",Table_SummaryPI[[#This Row],[BaselinekW]],\"\")","v":""},{"$f":"IF(Table_SummaryPI[[#This Row],[ProposedkWh]]<>\"\",Table_SummaryPI[[#This Row],[ProposedkWh]],\"\")","v":""},{"$f":"IF(Table_SummaryPI[[#This Row],[ProposedkW]]<>\"\",Table_SummaryPI[[#This Row],[ProposedkW]],\"\")","v":""},{"$f":"IF(Table_SummaryPI[[#This Row],[Notes]]<>\"\",Table_SummaryPI[[#This Row],[Notes]],\"\")","v":""},{"$f":"IF(Table_SummaryPI[[#This Row],[Incentive_Customer]]<>\"\",Table_SummaryPI[[#This Row],[Incentive_Customer]],0)","v":0},{"$f":"IF(Table_SummaryPI[[#This Row],[MeasureCost]]<>\"\",Table_SummaryPI[[#This Row],[MeasureCost]],0)","v":0},{"$f":"IF(Table_SummaryPI[[#This Row],[kWhSavings]]<>\"\",Table_SummaryPI[[#This Row],[kWhSavings]],0)","v":0},{"$f":"IF(Table_SummaryPI[[#This Row],[DemandSavingskW]]<>\"\",Table_SummaryPI[[#This Row],[DemandSavingskW]],0)","v":0}]
[{"$f":"Table_SummaryPI[[#This Row],[Line No.]]","v":""},{"$f":"IF(Table_PrintPI[[#This Row],[Line No.]]=\"\",\"\",CONCATENATE(Table_PrintPI[[#This Row],[Line No.]],\" - \",Table_SummaryPI[[#This Row],[MeasureName]]))","v":""},{"$f":"IF(Table_SummaryPI[[#This Row],[Manufacturer]]<>\"\",CONCATENATE(Table_SummaryPI[[#This Row],[Manufacturer]],\"/\",Table_SummaryPI[[#This Row],[Model'#]]),\"\")","v":""},{"$f":"IF(Table_SummaryPI[[#This Row],[Serial'#]]<>\"\",Table_SummaryPI[[#This Row],[Serial'#]],\"\")","v":""},{"$f":"IF(Table_SummaryPI[[#This Row],[Quantity]]<>\"\",Table_SummaryPI[[#This Row],[Quantity]],\"\")","v":""},{"$f":"IF(Table_SummaryPI[[#This Row],[BaselinekWh]]<>\"\",Table_SummaryPI[[#This Row],[BaselinekWh]],\"\")","v":""},{"$f":"IF(Table_SummaryPI[[#This Row],[BaselinekW]]<>\"\",Table_SummaryPI[[#This Row],[BaselinekW]],\"\")","v":""},{"$f":"IF(Table_SummaryPI[[#This Row],[ProposedkWh]]<>\"\",Table_SummaryPI[[#This Row],[ProposedkWh]],\"\")","v":""},{"$f":"IF(Table_SummaryPI[[#This Row],[ProposedkW]]<>\"\",Table_SummaryPI[[#This Row],[ProposedkW]],\"\")","v":""},{"$f":"IF(Table_SummaryPI[[#This Row],[Notes]]<>\"\",Table_SummaryPI[[#This Row],[Notes]],\"\")","v":""},{"$f":"IF(Table_SummaryPI[[#This Row],[Incentive_Customer]]<>\"\",Table_SummaryPI[[#This Row],[Incentive_Customer]],0)","v":0},{"$f":"IF(Table_SummaryPI[[#This Row],[MeasureCost]]<>\"\",Table_SummaryPI[[#This Row],[MeasureCost]],0)","v":0},{"$f":"IF(Table_SummaryPI[[#This Row],[kWhSavings]]<>\"\",Table_SummaryPI[[#This Row],[kWhSavings]],0)","v":0},{"$f":"IF(Table_SummaryPI[[#This Row],[DemandSavingskW]]<>\"\",Table_SummaryPI[[#This Row],[DemandSavingskW]],0)","v":0}]
[{"$f":"Table_SummaryPI[[#This Row],[Line No.]]","v":""},{"$f":"IF(Table_PrintPI[[#This Row],[Line No.]]=\"\",\"\",CONCATENATE(Table_PrintPI[[#This Row],[Line No.]],\" - \",Table_SummaryPI[[#This Row],[MeasureName]]))","v":""},{"$f":"IF(Table_SummaryPI[[#This Row],[Manufacturer]]<>\"\",CONCATENATE(Table_SummaryPI[[#This Row],[Manufacturer]],\"/\",Table_SummaryPI[[#This Row],[Model'#]]),\"\")","v":""},{"$f":"IF(Table_SummaryPI[[#This Row],[Serial'#]]<>\"\",Table_SummaryPI[[#This Row],[Serial'#]],\"\")","v":""},{"$f":"IF(Table_SummaryPI[[#This Row],[Quantity]]<>\"\",Table_SummaryPI[[#This Row],[Quantity]],\"\")","v":""},{"$f":"IF(Table_SummaryPI[[#This Row],[BaselinekWh]]<>\"\",Table_SummaryPI[[#This Row],[BaselinekWh]],\"\")","v":""},{"$f":"IF(Table_SummaryPI[[#This Row],[BaselinekW]]<>\"\",Table_SummaryPI[[#This Row],[BaselinekW]],\"\")","v":""},{"$f":"IF(Table_SummaryPI[[#This Row],[ProposedkWh]]<>\"\",Table_SummaryPI[[#This Row],[ProposedkWh]],\"\")","v":""},{"$f":"IF(Table_SummaryPI[[#This Row],[ProposedkW]]<>\"\",Table_SummaryPI[[#This Row],[ProposedkW]],\"\")","v":""},{"$f":"IF(Table_SummaryPI[[#This Row],[Notes]]<>\"\",Table_SummaryPI[[#This Row],[Notes]],\"\")","v":""},{"$f":"IF(Table_SummaryPI[[#This Row],[Incentive_Customer]]<>\"\",Table_SummaryPI[[#This Row],[Incentive_Customer]],0)","v":0},{"$f":"IF(Table_SummaryPI[[#This Row],[MeasureCost]]<>\"\",Table_SummaryPI[[#This Row],[MeasureCost]],0)","v":0},{"$f":"IF(Table_SummaryPI[[#This Row],[kWhSavings]]<>\"\",Table_SummaryPI[[#This Row],[kWhSavings]],0)","v":0},{"$f":"IF(Table_SummaryPI[[#This Row],[DemandSavingskW]]<>\"\",Table_SummaryPI[[#This Row],[DemandSavingskW]],0)","v":0}]
[{"$f":"Table_SummaryPI[[#This Row],[Line No.]]","v":""},{"$f":"IF(Table_PrintPI[[#This Row],[Line No.]]=\"\",\"\",CONCATENATE(Table_PrintPI[[#This Row],[Line No.]],\" - \",Table_SummaryPI[[#This Row],[MeasureName]]))","v":""},{"$f":"IF(Table_SummaryPI[[#This Row],[Manufacturer]]<>\"\",CONCATENATE(Table_SummaryPI[[#This Row],[Manufacturer]],\"/\",Table_SummaryPI[[#This Row],[Model'#]]),\"\")","v":""},{"$f":"IF(Table_SummaryPI[[#This Row],[Serial'#]]<>\"\",Table_SummaryPI[[#This Row],[Serial'#]],\"\")","v":""},{"$f":"IF(Table_SummaryPI[[#This Row],[Quantity]]<>\"\",Table_SummaryPI[[#This Row],[Quantity]],\"\")","v":""},{"$f":"IF(Table_SummaryPI[[#This Row],[BaselinekWh]]<>\"\",Table_SummaryPI[[#This Row],[BaselinekWh]],\"\")","v":""},{"$f":"IF(Table_SummaryPI[[#This Row],[BaselinekW]]<>\"\",Table_SummaryPI[[#This Row],[BaselinekW]],\"\")","v":""},{"$f":"IF(Table_SummaryPI[[#This Row],[ProposedkWh]]<>\"\",Table_SummaryPI[[#This Row],[ProposedkWh]],\"\")","v":""},{"$f":"IF(Table_SummaryPI[[#This Row],[ProposedkW]]<>\"\",Table_SummaryPI[[#This Row],[ProposedkW]],\"\")","v":""},{"$f":"IF(Table_SummaryPI[[#This Row],[Notes]]<>\"\",Table_SummaryPI[[#This Row],[Notes]],\"\")","v":""},{"$f":"IF(Table_SummaryPI[[#This Row],[Incentive_Customer]]<>\"\",Table_SummaryPI[[#This Row],[Incentive_Customer]],0)","v":0},{"$f":"IF(Table_SummaryPI[[#This Row],[MeasureCost]]<>\"\",Table_SummaryPI[[#This Row],[MeasureCost]],0)","v":0},{"$f":"IF(Table_SummaryPI[[#This Row],[kWhSavings]]<>\"\",Table_SummaryPI[[#This Row],[kWhSavings]],0)","v":0},{"$f":"IF(Table_SummaryPI[[#This Row],[DemandSavingskW]]<>\"\",Table_SummaryPI[[#This Row],[DemandSavingskW]],0)","v":0}]
[{"$f":"Table_SummaryPI[[#This Row],[Line No.]]","v":""},{"$f":"IF(Table_PrintPI[[#This Row],[Line No.]]=\"\",\"\",CONCATENATE(Table_PrintPI[[#This Row],[Line No.]],\" - \",Table_SummaryPI[[#This Row],[MeasureName]]))","v":""},{"$f":"IF(Table_SummaryPI[[#This Row],[Manufacturer]]<>\"\",CONCATENATE(Table_SummaryPI[[#This Row],[Manufacturer]],\"/\",Table_SummaryPI[[#This Row],[Model'#]]),\"\")","v":""},{"$f":"IF(Table_SummaryPI[[#This Row],[Serial'#]]<>\"\",Table_SummaryPI[[#This Row],[Serial'#]],\"\")","v":""},{"$f":"IF(Table_SummaryPI[[#This Row],[Quantity]]<>\"\",Table_SummaryPI[[#This Row],[Quantity]],\"\")","v":""},{"$f":"IF(Table_SummaryPI[[#This Row],[BaselinekWh]]<>\"\",Table_SummaryPI[[#This Row],[BaselinekWh]],\"\")","v":""},{"$f":"IF(Table_SummaryPI[[#This Row],[BaselinekW]]<>\"\",Table_SummaryPI[[#This Row],[BaselinekW]],\"\")","v":""},{"$f":"IF(Table_SummaryPI[[#This Row],[ProposedkWh]]<>\"\",Table_SummaryPI[[#This Row],[ProposedkWh]],\"\")","v":""},{"$f":"IF(Table_SummaryPI[[#This Row],[ProposedkW]]<>\"\",Table_SummaryPI[[#This Row],[ProposedkW]],\"\")","v":""},{"$f":"IF(Table_SummaryPI[[#This Row],[Notes]]<>\"\",Table_SummaryPI[[#This Row],[Notes]],\"\")","v":""},{"$f":"IF(Table_SummaryPI[[#This Row],[Incentive_Customer]]<>\"\",Table_SummaryPI[[#This Row],[Incentive_Customer]],0)","v":0},{"$f":"IF(Table_SummaryPI[[#This Row],[MeasureCost]]<>\"\",Table_SummaryPI[[#This Row],[MeasureCost]],0)","v":0},{"$f":"IF(Table_SummaryPI[[#This Row],[kWhSavings]]<>\"\",Table_SummaryPI[[#This Row],[kWhSavings]],0)","v":0},{"$f":"IF(Table_SummaryPI[[#This Row],[DemandSavingskW]]<>\"\",Table_SummaryPI[[#This Row],[DemandSavingskW]],0)","v":0}]
[{"$f":"Table_SummaryPI[[#This Row],[Line No.]]","v":""},{"$f":"IF(Table_PrintPI[[#This Row],[Line No.]]=\"\",\"\",CONCATENATE(Table_PrintPI[[#This Row],[Line No.]],\" - \",Table_SummaryPI[[#This Row],[MeasureName]]))","v":""},{"$f":"IF(Table_SummaryPI[[#This Row],[Manufacturer]]<>\"\",CONCATENATE(Table_SummaryPI[[#This Row],[Manufacturer]],\"/\",Table_SummaryPI[[#This Row],[Model'#]]),\"\")","v":""},{"$f":"IF(Table_SummaryPI[[#This Row],[Serial'#]]<>\"\",Table_SummaryPI[[#This Row],[Serial'#]],\"\")","v":""},{"$f":"IF(Table_SummaryPI[[#This Row],[Quantity]]<>\"\",Table_SummaryPI[[#This Row],[Quantity]],\"\")","v":""},{"$f":"IF(Table_SummaryPI[[#This Row],[BaselinekWh]]<>\"\",Table_SummaryPI[[#This Row],[BaselinekWh]],\"\")","v":""},{"$f":"IF(Table_SummaryPI[[#This Row],[BaselinekW]]<>\"\",Table_SummaryPI[[#This Row],[BaselinekW]],\"\")","v":""},{"$f":"IF(Table_SummaryPI[[#This Row],[ProposedkWh]]<>\"\",Table_SummaryPI[[#This Row],[ProposedkWh]],\"\")","v":""},{"$f":"IF(Table_SummaryPI[[#This Row],[ProposedkW]]<>\"\",Table_SummaryPI[[#This Row],[ProposedkW]],\"\")","v":""},{"$f":"IF(Table_SummaryPI[[#This Row],[Notes]]<>\"\",Table_SummaryPI[[#This Row],[Notes]],\"\")","v":""},{"$f":"IF(Table_SummaryPI[[#This Row],[Incentive_Customer]]<>\"\",Table_SummaryPI[[#This Row],[Incentive_Customer]],0)","v":0},{"$f":"IF(Table_SummaryPI[[#This Row],[MeasureCost]]<>\"\",Table_SummaryPI[[#This Row],[MeasureCost]],0)","v":0},{"$f":"IF(Table_SummaryPI[[#This Row],[kWhSavings]]<>\"\",Table_SummaryPI[[#This Row],[kWhSavings]],0)","v":0},{"$f":"IF(Table_SummaryPI[[#This Row],[DemandSavingskW]]<>\"\",Table_SummaryPI[[#This Row],[DemandSavingskW]],0)","v":0}]
[{"$f":"Table_SummaryPI[[#This Row],[Line No.]]","v":""},{"$f":"IF(Table_PrintPI[[#This Row],[Line No.]]=\"\",\"\",CONCATENATE(Table_PrintPI[[#This Row],[Line No.]],\" - \",Table_SummaryPI[[#This Row],[MeasureName]]))","v":""},{"$f":"IF(Table_SummaryPI[[#This Row],[Manufacturer]]<>\"\",CONCATENATE(Table_SummaryPI[[#This Row],[Manufacturer]],\"/\",Table_SummaryPI[[#This Row],[Model'#]]),\"\")","v":""},{"$f":"IF(Table_SummaryPI[[#This Row],[Serial'#]]<>\"\",Table_SummaryPI[[#This Row],[Serial'#]],\"\")","v":""},{"$f":"IF(Table_SummaryPI[[#This Row],[Quantity]]<>\"\",Table_SummaryPI[[#This Row],[Quantity]],\"\")","v":""},{"$f":"IF(Table_SummaryPI[[#This Row],[BaselinekWh]]<>\"\",Table_SummaryPI[[#This Row],[BaselinekWh]],\"\")","v":""},{"$f":"IF(Table_SummaryPI[[#This Row],[BaselinekW]]<>\"\",Table_SummaryPI[[#This Row],[BaselinekW]],\"\")","v":""},{"$f":"IF(Table_SummaryPI[[#This Row],[ProposedkWh]]<>\"\",Table_SummaryPI[[#This Row],[ProposedkWh]],\"\")","v":""},{"$f":"IF(Table_SummaryPI[[#This Row],[ProposedkW]]<>\"\",Table_SummaryPI[[#This Row],[ProposedkW]],\"\")","v":""},{"$f":"IF(Table_SummaryPI[[#This Row],[Notes]]<>\"\",Table_SummaryPI[[#This Row],[Notes]],\"\")","v":""},{"$f":"IF(Table_SummaryPI[[#This Row],[Incentive_Customer]]<>\"\",Table_SummaryPI[[#This Row],[Incentive_Customer]],0)","v":0},{"$f":"IF(Table_SummaryPI[[#This Row],[MeasureCost]]<>\"\",Table_SummaryPI[[#This Row],[MeasureCost]],0)","v":0},{"$f":"IF(Table_SummaryPI[[#This Row],[kWhSavings]]<>\"\",Table_SummaryPI[[#This Row],[kWhSavings]],0)","v":0},{"$f":"IF(Table_SummaryPI[[#This Row],[DemandSavingskW]]<>\"\",Table_SummaryPI[[#This Row],[DemandSavingskW]],0)","v":0}]
[{"$f":"Table_SummaryPI[[#This Row],[Line No.]]","v":""},{"$f":"IF(Table_PrintPI[[#This Row],[Line No.]]=\"\",\"\",CONCATENATE(Table_PrintPI[[#This Row],[Line No.]],\" - \",Table_SummaryPI[[#This Row],[MeasureName]]))","v":""},{"$f":"IF(Table_SummaryPI[[#This Row],[Manufacturer]]<>\"\",CONCATENATE(Table_SummaryPI[[#This Row],[Manufacturer]],\"/\",Table_SummaryPI[[#This Row],[Model'#]]),\"\")","v":""},{"$f":"IF(Table_SummaryPI[[#This Row],[Serial'#]]<>\"\",Table_SummaryPI[[#This Row],[Serial'#]],\"\")","v":""},{"$f":"IF(Table_SummaryPI[[#This Row],[Quantity]]<>\"\",Table_SummaryPI[[#This Row],[Quantity]],\"\")","v":""},{"$f":"IF(Table_SummaryPI[[#This Row],[BaselinekWh]]<>\"\",Table_SummaryPI[[#This Row],[BaselinekWh]],\"\")","v":""},{"$f":"IF(Table_SummaryPI[[#This Row],[BaselinekW]]<>\"\",Table_SummaryPI[[#This Row],[BaselinekW]],\"\")","v":""},{"$f":"IF(Table_SummaryPI[[#This Row],[ProposedkWh]]<>\"\",Table_SummaryPI[[#This Row],[ProposedkWh]],\"\")","v":""},{"$f":"IF(Table_SummaryPI[[#This Row],[ProposedkW]]<>\"\",Table_SummaryPI[[#This Row],[ProposedkW]],\"\")","v":""},{"$f":"IF(Table_SummaryPI[[#This Row],[Notes]]<>\"\",Table_SummaryPI[[#This Row],[Notes]],\"\")","v":""},{"$f":"IF(Table_SummaryPI[[#This Row],[Incentive_Customer]]<>\"\",Table_SummaryPI[[#This Row],[Incentive_Customer]],0)","v":0},{"$f":"IF(Table_SummaryPI[[#This Row],[MeasureCost]]<>\"\",Table_SummaryPI[[#This Row],[MeasureCost]],0)","v":0},{"$f":"IF(Table_SummaryPI[[#This Row],[kWhSavings]]<>\"\",Table_SummaryPI[[#This Row],[kWhSavings]],0)","v":0},{"$f":"IF(Table_SummaryPI[[#This Row],[DemandSavingskW]]<>\"\",Table_SummaryPI[[#This Row],[DemandSavingskW]],0)","v":0}]
[{"$f":"Table_SummaryPI[[#This Row],[Line No.]]","v":""},{"$f":"IF(Table_PrintPI[[#This Row],[Line No.]]=\"\",\"\",CONCATENATE(Table_PrintPI[[#This Row],[Line No.]],\" - \",Table_SummaryPI[[#This Row],[MeasureName]]))","v":""},{"$f":"IF(Table_SummaryPI[[#This Row],[Manufacturer]]<>\"\",CONCATENATE(Table_SummaryPI[[#This Row],[Manufacturer]],\"/\",Table_SummaryPI[[#This Row],[Model'#]]),\"\")","v":""},{"$f":"IF(Table_SummaryPI[[#This Row],[Serial'#]]<>\"\",Table_SummaryPI[[#This Row],[Serial'#]],\"\")","v":""},{"$f":"IF(Table_SummaryPI[[#This Row],[Quantity]]<>\"\",Table_SummaryPI[[#This Row],[Quantity]],\"\")","v":""},{"$f":"IF(Table_SummaryPI[[#This Row],[BaselinekWh]]<>\"\",Table_SummaryPI[[#This Row],[BaselinekWh]],\"\")","v":""},{"$f":"IF(Table_SummaryPI[[#This Row],[BaselinekW]]<>\"\",Table_SummaryPI[[#This Row],[BaselinekW]],\"\")","v":""},{"$f":"IF(Table_SummaryPI[[#This Row],[ProposedkWh]]<>\"\",Table_SummaryPI[[#This Row],[ProposedkWh]],\"\")","v":""},{"$f":"IF(Table_SummaryPI[[#This Row],[ProposedkW]]<>\"\",Table_SummaryPI[[#This Row],[ProposedkW]],\"\")","v":""},{"$f":"IF(Table_SummaryPI[[#This Row],[Notes]]<>\"\",Table_SummaryPI[[#This Row],[Notes]],\"\")","v":""},{"$f":"IF(Table_SummaryPI[[#This Row],[Incentive_Customer]]<>\"\",Table_SummaryPI[[#This Row],[Incentive_Customer]],0)","v":0},{"$f":"IF(Table_SummaryPI[[#This Row],[MeasureCost]]<>\"\",Table_SummaryPI[[#This Row],[MeasureCost]],0)","v":0},{"$f":"IF(Table_SummaryPI[[#This Row],[kWhSavings]]<>\"\",Table_SummaryPI[[#This Row],[kWhSavings]],0)","v":0},{"$f":"IF(Table_SummaryPI[[#This Row],[DemandSavingskW]]<>\"\",Table_SummaryPI[[#This Row],[DemandSavingskW]],0)","v":0}]
[{"$f":"Table_SummaryPI[[#This Row],[Line No.]]","v":""},{"$f":"IF(Table_PrintPI[[#This Row],[Line No.]]=\"\",\"\",CONCATENATE(Table_PrintPI[[#This Row],[Line No.]],\" - \",Table_SummaryPI[[#This Row],[MeasureName]]))","v":""},{"$f":"IF(Table_SummaryPI[[#This Row],[Manufacturer]]<>\"\",CONCATENATE(Table_SummaryPI[[#This Row],[Manufacturer]],\"/\",Table_SummaryPI[[#This Row],[Model'#]]),\"\")","v":""},{"$f":"IF(Table_SummaryPI[[#This Row],[Serial'#]]<>\"\",Table_SummaryPI[[#This Row],[Serial'#]],\"\")","v":""},{"$f":"IF(Table_SummaryPI[[#This Row],[Quantity]]<>\"\",Table_SummaryPI[[#This Row],[Quantity]],\"\")","v":""},{"$f":"IF(Table_SummaryPI[[#This Row],[BaselinekWh]]<>\"\",Table_SummaryPI[[#This Row],[BaselinekWh]],\"\")","v":""},{"$f":"IF(Table_SummaryPI[[#This Row],[BaselinekW]]<>\"\",Table_SummaryPI[[#This Row],[BaselinekW]],\"\")","v":""},{"$f":"IF(Table_SummaryPI[[#This Row],[ProposedkWh]]<>\"\",Table_SummaryPI[[#This Row],[ProposedkWh]],\"\")","v":""},{"$f":"IF(Table_SummaryPI[[#This Row],[ProposedkW]]<>\"\",Table_SummaryPI[[#This Row],[ProposedkW]],\"\")","v":""},{"$f":"IF(Table_SummaryPI[[#This Row],[Notes]]<>\"\",Table_SummaryPI[[#This Row],[Notes]],\"\")","v":""},{"$f":"IF(Table_SummaryPI[[#This Row],[Incentive_Customer]]<>\"\",Table_SummaryPI[[#This Row],[Incentive_Customer]],0)","v":0},{"$f":"IF(Table_SummaryPI[[#This Row],[MeasureCost]]<>\"\",Table_SummaryPI[[#This Row],[MeasureCost]],0)","v":0},{"$f":"IF(Table_SummaryPI[[#This Row],[kWhSavings]]<>\"\",Table_SummaryPI[[#This Row],[kWhSavings]],0)","v":0},{"$f":"IF(Table_SummaryPI[[#This Row],[DemandSavingskW]]<>\"\",Table_SummaryPI[[#This Row],[DemandSavingskW]],0)","v":0}]
[{"$f":"Table_SummaryPI[[#This Row],[Line No.]]","v":""},{"$f":"IF(Table_PrintPI[[#This Row],[Line No.]]=\"\",\"\",CONCATENATE(Table_PrintPI[[#This Row],[Line No.]],\" - \",Table_SummaryPI[[#This Row],[MeasureName]]))","v":""},{"$f":"IF(Table_SummaryPI[[#This Row],[Manufacturer]]<>\"\",CONCATENATE(Table_SummaryPI[[#This Row],[Manufacturer]],\"/\",Table_SummaryPI[[#This Row],[Model'#]]),\"\")","v":""},{"$f":"IF(Table_SummaryPI[[#This Row],[Serial'#]]<>\"\",Table_SummaryPI[[#This Row],[Serial'#]],\"\")","v":""},{"$f":"IF(Table_SummaryPI[[#This Row],[Quantity]]<>\"\",Table_SummaryPI[[#This Row],[Quantity]],\"\")","v":""},{"$f":"IF(Table_SummaryPI[[#This Row],[BaselinekWh]]<>\"\",Table_SummaryPI[[#This Row],[BaselinekWh]],\"\")","v":""},{"$f":"IF(Table_SummaryPI[[#This Row],[BaselinekW]]<>\"\",Table_SummaryPI[[#This Row],[BaselinekW]],\"\")","v":""},{"$f":"IF(Table_SummaryPI[[#This Row],[ProposedkWh]]<>\"\",Table_SummaryPI[[#This Row],[ProposedkWh]],\"\")","v":""},{"$f":"IF(Table_SummaryPI[[#This Row],[ProposedkW]]<>\"\",Table_SummaryPI[[#This Row],[ProposedkW]],\"\")","v":""},{"$f":"IF(Table_SummaryPI[[#This Row],[Notes]]<>\"\",Table_SummaryPI[[#This Row],[Notes]],\"\")","v":""},{"$f":"IF(Table_SummaryPI[[#This Row],[Incentive_Customer]]<>\"\",Table_SummaryPI[[#This Row],[Incentive_Customer]],0)","v":0},{"$f":"IF(Table_SummaryPI[[#This Row],[MeasureCost]]<>\"\",Table_SummaryPI[[#This Row],[MeasureCost]],0)","v":0},{"$f":"IF(Table_SummaryPI[[#This Row],[kWhSavings]]<>\"\",Table_SummaryPI[[#This Row],[kWhSavings]],0)","v":0},{"$f":"IF(Table_SummaryPI[[#This Row],[DemandSavingskW]]<>\"\",Table_SummaryPI[[#This Row],[DemandSavingskW]],0)","v":0}]
[{"$f":"Table_SummaryPI[[#This Row],[Line No.]]","v":""},{"$f":"IF(Table_PrintPI[[#This Row],[Line No.]]=\"\",\"\",CONCATENATE(Table_PrintPI[[#This Row],[Line No.]],\" - \",Table_SummaryPI[[#This Row],[MeasureName]]))","v":""},{"$f":"IF(Table_SummaryPI[[#This Row],[Manufacturer]]<>\"\",CONCATENATE(Table_SummaryPI[[#This Row],[Manufacturer]],\"/\",Table_SummaryPI[[#This Row],[Model'#]]),\"\")","v":""},{"$f":"IF(Table_SummaryPI[[#This Row],[Serial'#]]<>\"\",Table_SummaryPI[[#This Row],[Serial'#]],\"\")","v":""},{"$f":"IF(Table_SummaryPI[[#This Row],[Quantity]]<>\"\",Table_SummaryPI[[#This Row],[Quantity]],\"\")","v":""},{"$f":"IF(Table_SummaryPI[[#This Row],[BaselinekWh]]<>\"\",Table_SummaryPI[[#This Row],[BaselinekWh]],\"\")","v":""},{"$f":"IF(Table_SummaryPI[[#This Row],[BaselinekW]]<>\"\",Table_SummaryPI[[#This Row],[BaselinekW]],\"\")","v":""},{"$f":"IF(Table_SummaryPI[[#This Row],[ProposedkWh]]<>\"\",Table_SummaryPI[[#This Row],[ProposedkWh]],\"\")","v":""},{"$f":"IF(Table_SummaryPI[[#This Row],[ProposedkW]]<>\"\",Table_SummaryPI[[#This Row],[ProposedkW]],\"\")","v":""},{"$f":"IF(Table_SummaryPI[[#This Row],[Notes]]<>\"\",Table_SummaryPI[[#This Row],[Notes]],\"\")","v":""},{"$f":"IF(Table_SummaryPI[[#This Row],[Incentive_Customer]]<>\"\",Table_SummaryPI[[#This Row],[Incentive_Customer]],0)","v":0},{"$f":"IF(Table_SummaryPI[[#This Row],[MeasureCost]]<>\"\",Table_SummaryPI[[#This Row],[MeasureCost]],0)","v":0},{"$f":"IF(Table_SummaryPI[[#This Row],[kWhSavings]]<>\"\",Table_SummaryPI[[#This Row],[kWhSavings]],0)","v":0},{"$f":"IF(Table_SummaryPI[[#This Row],[DemandSavingskW]]<>\"\",Table_SummaryPI[[#This Row],[DemandSavingskW]],0)","v":0}]
[{"$f":"Table_SummaryPI[[#This Row],[Line No.]]","v":""},{"$f":"IF(Table_PrintPI[[#This Row],[Line No.]]=\"\",\"\",CONCATENATE(Table_PrintPI[[#This Row],[Line No.]],\" - \",Table_SummaryPI[[#This Row],[MeasureName]]))","v":""},{"$f":"IF(Table_SummaryPI[[#This Row],[Manufacturer]]<>\"\",CONCATENATE(Table_SummaryPI[[#This Row],[Manufacturer]],\"/\",Table_SummaryPI[[#This Row],[Model'#]]),\"\")","v":""},{"$f":"IF(Table_SummaryPI[[#This Row],[Serial'#]]<>\"\",Table_SummaryPI[[#This Row],[Serial'#]],\"\")","v":""},{"$f":"IF(Table_SummaryPI[[#This Row],[Quantity]]<>\"\",Table_SummaryPI[[#This Row],[Quantity]],\"\")","v":""},{"$f":"IF(Table_SummaryPI[[#This Row],[BaselinekWh]]<>\"\",Table_SummaryPI[[#This Row],[BaselinekWh]],\"\")","v":""},{"$f":"IF(Table_SummaryPI[[#This Row],[BaselinekW]]<>\"\",Table_SummaryPI[[#This Row],[BaselinekW]],\"\")","v":""},{"$f":"IF(Table_SummaryPI[[#This Row],[ProposedkWh]]<>\"\",Table_SummaryPI[[#This Row],[ProposedkWh]],\"\")","v":""},{"$f":"IF(Table_SummaryPI[[#This Row],[ProposedkW]]<>\"\",Table_SummaryPI[[#This Row],[ProposedkW]],\"\")","v":""},{"$f":"IF(Table_SummaryPI[[#This Row],[Notes]]<>\"\",Table_SummaryPI[[#This Row],[Notes]],\"\")","v":""},{"$f":"IF(Table_SummaryPI[[#This Row],[Incentive_Customer]]<>\"\",Table_SummaryPI[[#This Row],[Incentive_Customer]],0)","v":0},{"$f":"IF(Table_SummaryPI[[#This Row],[MeasureCost]]<>\"\",Table_SummaryPI[[#This Row],[MeasureCost]],0)","v":0},{"$f":"IF(Table_SummaryPI[[#This Row],[kWhSavings]]<>\"\",Table_SummaryPI[[#This Row],[kWhSavings]],0)","v":0},{"$f":"IF(Table_SummaryPI[[#This Row],[DemandSavingskW]]<>\"\",Table_SummaryPI[[#This Row],[DemandSavingskW]],0)","v":0}]
[{"$f":"Table_SummaryPI[[#This Row],[Line No.]]","v":""},{"$f":"IF(Table_PrintPI[[#This Row],[Line No.]]=\"\",\"\",CONCATENATE(Table_PrintPI[[#This Row],[Line No.]],\" - \",Table_SummaryPI[[#This Row],[MeasureName]]))","v":""},{"$f":"IF(Table_SummaryPI[[#This Row],[Manufacturer]]<>\"\",CONCATENATE(Table_SummaryPI[[#This Row],[Manufacturer]],\"/\",Table_SummaryPI[[#This Row],[Model'#]]),\"\")","v":""},{"$f":"IF(Table_SummaryPI[[#This Row],[Serial'#]]<>\"\",Table_SummaryPI[[#This Row],[Serial'#]],\"\")","v":""},{"$f":"IF(Table_SummaryPI[[#This Row],[Quantity]]<>\"\",Table_SummaryPI[[#This Row],[Quantity]],\"\")","v":""},{"$f":"IF(Table_SummaryPI[[#This Row],[BaselinekWh]]<>\"\",Table_SummaryPI[[#This Row],[BaselinekWh]],\"\")","v":""},{"$f":"IF(Table_SummaryPI[[#This Row],[BaselinekW]]<>\"\",Table_SummaryPI[[#This Row],[BaselinekW]],\"\")","v":""},{"$f":"IF(Table_SummaryPI[[#This Row],[ProposedkWh]]<>\"\",Table_SummaryPI[[#This Row],[ProposedkWh]],\"\")","v":""},{"$f":"IF(Table_SummaryPI[[#This Row],[ProposedkW]]<>\"\",Table_SummaryPI[[#This Row],[ProposedkW]],\"\")","v":""},{"$f":"IF(Table_SummaryPI[[#This Row],[Notes]]<>\"\",Table_SummaryPI[[#This Row],[Notes]],\"\")","v":""},{"$f":"IF(Table_SummaryPI[[#This Row],[Incentive_Customer]]<>\"\",Table_SummaryPI[[#This Row],[Incentive_Customer]],0)","v":0},{"$f":"IF(Table_SummaryPI[[#This Row],[MeasureCost]]<>\"\",Table_SummaryPI[[#This Row],[MeasureCost]],0)","v":0},{"$f":"IF(Table_SummaryPI[[#This Row],[kWhSavings]]<>\"\",Table_SummaryPI[[#This Row],[kWhSavings]],0)","v":0},{"$f":"IF(Table_SummaryPI[[#This Row],[DemandSavingskW]]<>\"\",Table_SummaryPI[[#This Row],[DemandSavingskW]],0)","v":0}]
[{"$f":"Table_SummaryPI[[#This Row],[Line No.]]","v":""},{"$f":"IF(Table_PrintPI[[#This Row],[Line No.]]=\"\",\"\",CONCATENATE(Table_PrintPI[[#This Row],[Line No.]],\" - \",Table_SummaryPI[[#This Row],[MeasureName]]))","v":""},{"$f":"IF(Table_SummaryPI[[#This Row],[Manufacturer]]<>\"\",CONCATENATE(Table_SummaryPI[[#This Row],[Manufacturer]],\"/\",Table_SummaryPI[[#This Row],[Model'#]]),\"\")","v":""},{"$f":"IF(Table_SummaryPI[[#This Row],[Serial'#]]<>\"\",Table_SummaryPI[[#This Row],[Serial'#]],\"\")","v":""},{"$f":"IF(Table_SummaryPI[[#This Row],[Quantity]]<>\"\",Table_SummaryPI[[#This Row],[Quantity]],\"\")","v":""},{"$f":"IF(Table_SummaryPI[[#This Row],[BaselinekWh]]<>\"\",Table_SummaryPI[[#This Row],[BaselinekWh]],\"\")","v":""},{"$f":"IF(Table_SummaryPI[[#This Row],[BaselinekW]]<>\"\",Table_SummaryPI[[#This Row],[BaselinekW]],\"\")","v":""},{"$f":"IF(Table_SummaryPI[[#This Row],[ProposedkWh]]<>\"\",Table_SummaryPI[[#This Row],[ProposedkWh]],\"\")","v":""},{"$f":"IF(Table_SummaryPI[[#This Row],[ProposedkW]]<>\"\",Table_SummaryPI[[#This Row],[ProposedkW]],\"\")","v":""},{"$f":"IF(Table_SummaryPI[[#This Row],[Notes]]<>\"\",Table_SummaryPI[[#This Row],[Notes]],\"\")","v":""},{"$f":"IF(Table_SummaryPI[[#This Row],[Incentive_Customer]]<>\"\",Table_SummaryPI[[#This Row],[Incentive_Customer]],0)","v":0},{"$f":"IF(Table_SummaryPI[[#This Row],[MeasureCost]]<>\"\",Table_SummaryPI[[#This Row],[MeasureCost]],0)","v":0},{"$f":"IF(Table_SummaryPI[[#This Row],[kWhSavings]]<>\"\",Table_SummaryPI[[#This Row],[kWhSavings]],0)","v":0},{"$f":"IF(Table_SummaryPI[[#This Row],[DemandSavingskW]]<>\"\",Table_SummaryPI[[#This Row],[DemandSavingskW]],0)","v":0}]
[{"$f":"Table_SummaryPI[[#This Row],[Line No.]]","v":""},{"$f":"IF(Table_PrintPI[[#This Row],[Line No.]]=\"\",\"\",CONCATENATE(Table_PrintPI[[#This Row],[Line No.]],\" - \",Table_SummaryPI[[#This Row],[MeasureName]]))","v":""},{"$f":"IF(Table_SummaryPI[[#This Row],[Manufacturer]]<>\"\",CONCATENATE(Table_SummaryPI[[#This Row],[Manufacturer]],\"/\",Table_SummaryPI[[#This Row],[Model'#]]),\"\")","v":""},{"$f":"IF(Table_SummaryPI[[#This Row],[Serial'#]]<>\"\",Table_SummaryPI[[#This Row],[Serial'#]],\"\")","v":""},{"$f":"IF(Table_SummaryPI[[#This Row],[Quantity]]<>\"\",Table_SummaryPI[[#This Row],[Quantity]],\"\")","v":""},{"$f":"IF(Table_SummaryPI[[#This Row],[BaselinekWh]]<>\"\",Table_SummaryPI[[#This Row],[BaselinekWh]],\"\")","v":""},{"$f":"IF(Table_SummaryPI[[#This Row],[BaselinekW]]<>\"\",Table_SummaryPI[[#This Row],[BaselinekW]],\"\")","v":""},{"$f":"IF(Table_SummaryPI[[#This Row],[ProposedkWh]]<>\"\",Table_SummaryPI[[#This Row],[ProposedkWh]],\"\")","v":""},{"$f":"IF(Table_SummaryPI[[#This Row],[ProposedkW]]<>\"\",Table_SummaryPI[[#This Row],[ProposedkW]],\"\")","v":""},{"$f":"IF(Table_SummaryPI[[#This Row],[Notes]]<>\"\",Table_SummaryPI[[#This Row],[Notes]],\"\")","v":""},{"$f":"IF(Table_SummaryPI[[#This Row],[Incentive_Customer]]<>\"\",Table_SummaryPI[[#This Row],[Incentive_Customer]],0)","v":0},{"$f":"IF(Table_SummaryPI[[#This Row],[MeasureCost]]<>\"\",Table_SummaryPI[[#This Row],[MeasureCost]],0)","v":0},{"$f":"IF(Table_SummaryPI[[#This Row],[kWhSavings]]<>\"\",Table_SummaryPI[[#This Row],[kWhSavings]],0)","v":0},{"$f":"IF(Table_SummaryPI[[#This Row],[DemandSavingskW]]<>\"\",Table_SummaryPI[[#This Row],[DemandSavingskW]],0)","v":0}]
[{"$f":"Table_SummaryPI[[#This Row],[Line No.]]","v":""},{"$f":"IF(Table_PrintPI[[#This Row],[Line No.]]=\"\",\"\",CONCATENATE(Table_PrintPI[[#This Row],[Line No.]],\" - \",Table_SummaryPI[[#This Row],[MeasureName]]))","v":""},{"$f":"IF(Table_SummaryPI[[#This Row],[Manufacturer]]<>\"\",CONCATENATE(Table_SummaryPI[[#This Row],[Manufacturer]],\"/\",Table_SummaryPI[[#This Row],[Model'#]]),\"\")","v":""},{"$f":"IF(Table_SummaryPI[[#This Row],[Serial'#]]<>\"\",Table_SummaryPI[[#This Row],[Serial'#]],\"\")","v":""},{"$f":"IF(Table_SummaryPI[[#This Row],[Quantity]]<>\"\",Table_SummaryPI[[#This Row],[Quantity]],\"\")","v":""},{"$f":"IF(Table_SummaryPI[[#This Row],[BaselinekWh]]<>\"\",Table_SummaryPI[[#This Row],[BaselinekWh]],\"\")","v":""},{"$f":"IF(Table_SummaryPI[[#This Row],[BaselinekW]]<>\"\",Table_SummaryPI[[#This Row],[BaselinekW]],\"\")","v":""},{"$f":"IF(Table_SummaryPI[[#This Row],[ProposedkWh]]<>\"\",Table_SummaryPI[[#This Row],[ProposedkWh]],\"\")","v":""},{"$f":"IF(Table_SummaryPI[[#This Row],[ProposedkW]]<>\"\",Table_SummaryPI[[#This Row],[ProposedkW]],\"\")","v":""},{"$f":"IF(Table_SummaryPI[[#This Row],[Notes]]<>\"\",Table_SummaryPI[[#This Row],[Notes]],\"\")","v":""},{"$f":"IF(Table_SummaryPI[[#This Row],[Incentive_Customer]]<>\"\",Table_SummaryPI[[#This Row],[Incentive_Customer]],0)","v":0},{"$f":"IF(Table_SummaryPI[[#This Row],[MeasureCost]]<>\"\",Table_SummaryPI[[#This Row],[MeasureCost]],0)","v":0},{"$f":"IF(Table_SummaryPI[[#This Row],[kWhSavings]]<>\"\",Table_SummaryPI[[#This Row],[kWhSavings]],0)","v":0},{"$f":"IF(Table_SummaryPI[[#This Row],[DemandSavingskW]]<>\"\",Table_SummaryPI[[#This Row],[DemandSavingskW]],0)","v":0}]
[{"$f":"Table_SummaryPI[[#This Row],[Line No.]]","v":""},{"$f":"IF(Table_PrintPI[[#This Row],[Line No.]]=\"\",\"\",CONCATENATE(Table_PrintPI[[#This Row],[Line No.]],\" - \",Table_SummaryPI[[#This Row],[MeasureName]]))","v":""},{"$f":"IF(Table_SummaryPI[[#This Row],[Manufacturer]]<>\"\",CONCATENATE(Table_SummaryPI[[#This Row],[Manufacturer]],\"/\",Table_SummaryPI[[#This Row],[Model'#]]),\"\")","v":""},{"$f":"IF(Table_SummaryPI[[#This Row],[Serial'#]]<>\"\",Table_SummaryPI[[#This Row],[Serial'#]],\"\")","v":""},{"$f":"IF(Table_SummaryPI[[#This Row],[Quantity]]<>\"\",Table_SummaryPI[[#This Row],[Quantity]],\"\")","v":""},{"$f":"IF(Table_SummaryPI[[#This Row],[BaselinekWh]]<>\"\",Table_SummaryPI[[#This Row],[BaselinekWh]],\"\")","v":""},{"$f":"IF(Table_SummaryPI[[#This Row],[BaselinekW]]<>\"\",Table_SummaryPI[[#This Row],[BaselinekW]],\"\")","v":""},{"$f":"IF(Table_SummaryPI[[#This Row],[ProposedkWh]]<>\"\",Table_SummaryPI[[#This Row],[ProposedkWh]],\"\")","v":""},{"$f":"IF(Table_SummaryPI[[#This Row],[ProposedkW]]<>\"\",Table_SummaryPI[[#This Row],[ProposedkW]],\"\")","v":""},{"$f":"IF(Table_SummaryPI[[#This Row],[Notes]]<>\"\",Table_SummaryPI[[#This Row],[Notes]],\"\")","v":""},{"$f":"IF(Table_SummaryPI[[#This Row],[Incentive_Customer]]<>\"\",Table_SummaryPI[[#This Row],[Incentive_Customer]],0)","v":0},{"$f":"IF(Table_SummaryPI[[#This Row],[MeasureCost]]<>\"\",Table_SummaryPI[[#This Row],[MeasureCost]],0)","v":0},{"$f":"IF(Table_SummaryPI[[#This Row],[kWhSavings]]<>\"\",Table_SummaryPI[[#This Row],[kWhSavings]],0)","v":0},{"$f":"IF(Table_SummaryPI[[#This Row],[DemandSavingskW]]<>\"\",Table_SummaryPI[[#This Row],[DemandSavingskW]],0)","v":0}]
[{"$f":"Table_SummaryPI[[#This Row],[Line No.]]","v":""},{"$f":"IF(Table_PrintPI[[#This Row],[Line No.]]=\"\",\"\",CONCATENATE(Table_PrintPI[[#This Row],[Line No.]],\" - \",Table_SummaryPI[[#This Row],[MeasureName]]))","v":""},{"$f":"IF(Table_SummaryPI[[#This Row],[Manufacturer]]<>\"\",CONCATENATE(Table_SummaryPI[[#This Row],[Manufacturer]],\"/\",Table_SummaryPI[[#This Row],[Model'#]]),\"\")","v":""},{"$f":"IF(Table_SummaryPI[[#This Row],[Serial'#]]<>\"\",Table_SummaryPI[[#This Row],[Serial'#]],\"\")","v":""},{"$f":"IF(Table_SummaryPI[[#This Row],[Quantity]]<>\"\",Table_SummaryPI[[#This Row],[Quantity]],\"\")","v":""},{"$f":"IF(Table_SummaryPI[[#This Row],[BaselinekWh]]<>\"\",Table_SummaryPI[[#This Row],[BaselinekWh]],\"\")","v":""},{"$f":"IF(Table_SummaryPI[[#This Row],[BaselinekW]]<>\"\",Table_SummaryPI[[#This Row],[BaselinekW]],\"\")","v":""},{"$f":"IF(Table_SummaryPI[[#This Row],[ProposedkWh]]<>\"\",Table_SummaryPI[[#This Row],[ProposedkWh]],\"\")","v":""},{"$f":"IF(Table_SummaryPI[[#This Row],[ProposedkW]]<>\"\",Table_SummaryPI[[#This Row],[ProposedkW]],\"\")","v":""},{"$f":"IF(Table_SummaryPI[[#This Row],[Notes]]<>\"\",Table_SummaryPI[[#This Row],[Notes]],\"\")","v":""},{"$f":"IF(Table_SummaryPI[[#This Row],[Incentive_Customer]]<>\"\",Table_SummaryPI[[#This Row],[Incentive_Customer]],0)","v":0},{"$f":"IF(Table_SummaryPI[[#This Row],[MeasureCost]]<>\"\",Table_SummaryPI[[#This Row],[MeasureCost]],0)","v":0},{"$f":"IF(Table_SummaryPI[[#This Row],[kWhSavings]]<>\"\",Table_SummaryPI[[#This Row],[kWhSavings]],0)","v":0},{"$f":"IF(Table_SummaryPI[[#This Row],[DemandSavingskW]]<>\"\",Table_SummaryPI[[#This Row],[DemandSavingskW]],0)","v":0}]
[{"$f":"Table_SummaryPI[[#This Row],[Line No.]]","v":""},{"$f":"IF(Table_PrintPI[[#This Row],[Line No.]]=\"\",\"\",CONCATENATE(Table_PrintPI[[#This Row],[Line No.]],\" - \",Table_SummaryPI[[#This Row],[MeasureName]]))","v":""},{"$f":"IF(Table_SummaryPI[[#This Row],[Manufacturer]]<>\"\",CONCATENATE(Table_SummaryPI[[#This Row],[Manufacturer]],\"/\",Table_SummaryPI[[#This Row],[Model'#]]),\"\")","v":""},{"$f":"IF(Table_SummaryPI[[#This Row],[Serial'#]]<>\"\",Table_SummaryPI[[#This Row],[Serial'#]],\"\")","v":""},{"$f":"IF(Table_SummaryPI[[#This Row],[Quantity]]<>\"\",Table_SummaryPI[[#This Row],[Quantity]],\"\")","v":""},{"$f":"IF(Table_SummaryPI[[#This Row],[BaselinekWh]]<>\"\",Table_SummaryPI[[#This Row],[BaselinekWh]],\"\")","v":""},{"$f":"IF(Table_SummaryPI[[#This Row],[BaselinekW]]<>\"\",Table_SummaryPI[[#This Row],[BaselinekW]],\"\")","v":""},{"$f":"IF(Table_SummaryPI[[#This Row],[ProposedkWh]]<>\"\",Table_SummaryPI[[#This Row],[ProposedkWh]],\"\")","v":""},{"$f":"IF(Table_SummaryPI[[#This Row],[ProposedkW]]<>\"\",Table_SummaryPI[[#This Row],[ProposedkW]],\"\")","v":""},{"$f":"IF(Table_SummaryPI[[#This Row],[Notes]]<>\"\",Table_SummaryPI[[#This Row],[Notes]],\"\")","v":""},{"$f":"IF(Table_SummaryPI[[#This Row],[Incentive_Customer]]<>\"\",Table_SummaryPI[[#This Row],[Incentive_Customer]],0)","v":0},{"$f":"IF(Table_SummaryPI[[#This Row],[MeasureCost]]<>\"\",Table_SummaryPI[[#This Row],[MeasureCost]],0)","v":0},{"$f":"IF(Table_SummaryPI[[#This Row],[kWhSavings]]<>\"\",Table_SummaryPI[[#This Row],[kWhSavings]],0)","v":0},{"$f":"IF(Table_SummaryPI[[#This Row],[DemandSavingskW]]<>\"\",Table_SummaryPI[[#This Row],[DemandSavingskW]],0)","v":0}]
[{"$f":"Table_SummaryPI[[#This Row],[Line No.]]","v":""},{"$f":"IF(Table_PrintPI[[#This Row],[Line No.]]=\"\",\"\",CONCATENATE(Table_PrintPI[[#This Row],[Line No.]],\" - \",Table_SummaryPI[[#This Row],[MeasureName]]))","v":""},{"$f":"IF(Table_SummaryPI[[#This Row],[Manufacturer]]<>\"\",CONCATENATE(Table_SummaryPI[[#This Row],[Manufacturer]],\"/\",Table_SummaryPI[[#This Row],[Model'#]]),\"\")","v":""},{"$f":"IF(Table_SummaryPI[[#This Row],[Serial'#]]<>\"\",Table_SummaryPI[[#This Row],[Serial'#]],\"\")","v":""},{"$f":"IF(Table_SummaryPI[[#This Row],[Quantity]]<>\"\",Table_SummaryPI[[#This Row],[Quantity]],\"\")","v":""},{"$f":"IF(Table_SummaryPI[[#This Row],[BaselinekWh]]<>\"\",Table_SummaryPI[[#This Row],[BaselinekWh]],\"\")","v":""},{"$f":"IF(Table_SummaryPI[[#This Row],[BaselinekW]]<>\"\",Table_SummaryPI[[#This Row],[BaselinekW]],\"\")","v":""},{"$f":"IF(Table_SummaryPI[[#This Row],[ProposedkWh]]<>\"\",Table_SummaryPI[[#This Row],[ProposedkWh]],\"\")","v":""},{"$f":"IF(Table_SummaryPI[[#This Row],[ProposedkW]]<>\"\",Table_SummaryPI[[#This Row],[ProposedkW]],\"\")","v":""},{"$f":"IF(Table_SummaryPI[[#This Row],[Notes]]<>\"\",Table_SummaryPI[[#This Row],[Notes]],\"\")","v":""},{"$f":"IF(Table_SummaryPI[[#This Row],[Incentive_Customer]]<>\"\",Table_SummaryPI[[#This Row],[Incentive_Customer]],0)","v":0},{"$f":"IF(Table_SummaryPI[[#This Row],[MeasureCost]]<>\"\",Table_SummaryPI[[#This Row],[MeasureCost]],0)","v":0},{"$f":"IF(Table_SummaryPI[[#This Row],[kWhSavings]]<>\"\",Table_SummaryPI[[#This Row],[kWhSavings]],0)","v":0},{"$f":"IF(Table_SummaryPI[[#This Row],[DemandSavingskW]]<>\"\",Table_SummaryPI[[#This Row],[DemandSavingskW]],0)","v":0}]
[{"$f":"Table_SummaryPI[[#This Row],[Line No.]]","v":""},{"$f":"IF(Table_PrintPI[[#This Row],[Line No.]]=\"\",\"\",CONCATENATE(Table_PrintPI[[#This Row],[Line No.]],\" - \",Table_SummaryPI[[#This Row],[MeasureName]]))","v":""},{"$f":"IF(Table_SummaryPI[[#This Row],[Manufacturer]]<>\"\",CONCATENATE(Table_SummaryPI[[#This Row],[Manufacturer]],\"/\",Table_SummaryPI[[#This Row],[Model'#]]),\"\")","v":""},{"$f":"IF(Table_SummaryPI[[#This Row],[Serial'#]]<>\"\",Table_SummaryPI[[#This Row],[Serial'#]],\"\")","v":""},{"$f":"IF(Table_SummaryPI[[#This Row],[Quantity]]<>\"\",Table_SummaryPI[[#This Row],[Quantity]],\"\")","v":""},{"$f":"IF(Table_SummaryPI[[#This Row],[BaselinekWh]]<>\"\",Table_SummaryPI[[#This Row],[BaselinekWh]],\"\")","v":""},{"$f":"IF(Table_SummaryPI[[#This Row],[BaselinekW]]<>\"\",Table_SummaryPI[[#This Row],[BaselinekW]],\"\")","v":""},{"$f":"IF(Table_SummaryPI[[#This Row],[ProposedkWh]]<>\"\",Table_SummaryPI[[#This Row],[ProposedkWh]],\"\")","v":""},{"$f":"IF(Table_SummaryPI[[#This Row],[ProposedkW]]<>\"\",Table_SummaryPI[[#This Row],[ProposedkW]],\"\")","v":""},{"$f":"IF(Table_SummaryPI[[#This Row],[Notes]]<>\"\",Table_SummaryPI[[#This Row],[Notes]],\"\")","v":""},{"$f":"IF(Table_SummaryPI[[#This Row],[Incentive_Customer]]<>\"\",Table_SummaryPI[[#This Row],[Incentive_Customer]],0)","v":0},{"$f":"IF(Table_SummaryPI[[#This Row],[MeasureCost]]<>\"\",Table_SummaryPI[[#This Row],[MeasureCost]],0)","v":0},{"$f":"IF(Table_SummaryPI[[#This Row],[kWhSavings]]<>\"\",Table_SummaryPI[[#This Row],[kWhSavings]],0)","v":0},{"$f":"IF(Table_SummaryPI[[#This Row],[DemandSavingskW]]<>\"\",Table_SummaryPI[[#This Row],[DemandSavingskW]],0)","v":0}]
[{"$f":"Table_SummaryPI[[#This Row],[Line No.]]","v":""},{"$f":"IF(Table_PrintPI[[#This Row],[Line No.]]=\"\",\"\",CONCATENATE(Table_PrintPI[[#This Row],[Line No.]],\" - \",Table_SummaryPI[[#This Row],[MeasureName]]))","v":""},{"$f":"IF(Table_SummaryPI[[#This Row],[Manufacturer]]<>\"\",CONCATENATE(Table_SummaryPI[[#This Row],[Manufacturer]],\"/\",Table_SummaryPI[[#This Row],[Model'#]]),\"\")","v":""},{"$f":"IF(Table_SummaryPI[[#This Row],[Serial'#]]<>\"\",Table_SummaryPI[[#This Row],[Serial'#]],\"\")","v":""},{"$f":"IF(Table_SummaryPI[[#This Row],[Quantity]]<>\"\",Table_SummaryPI[[#This Row],[Quantity]],\"\")","v":""},{"$f":"IF(Table_SummaryPI[[#This Row],[BaselinekWh]]<>\"\",Table_SummaryPI[[#This Row],[BaselinekWh]],\"\")","v":""},{"$f":"IF(Table_SummaryPI[[#This Row],[BaselinekW]]<>\"\",Table_SummaryPI[[#This Row],[BaselinekW]],\"\")","v":""},{"$f":"IF(Table_SummaryPI[[#This Row],[ProposedkWh]]<>\"\",Table_SummaryPI[[#This Row],[ProposedkWh]],\"\")","v":""},{"$f":"IF(Table_SummaryPI[[#This Row],[ProposedkW]]<>\"\",Table_SummaryPI[[#This Row],[ProposedkW]],\"\")","v":""},{"$f":"IF(Table_SummaryPI[[#This Row],[Notes]]<>\"\",Table_SummaryPI[[#This Row],[Notes]],\"\")","v":""},{"$f":"IF(Table_SummaryPI[[#This Row],[Incentive_Customer]]<>\"\",Table_SummaryPI[[#This Row],[Incentive_Customer]],0)","v":0},{"$f":"IF(Table_SummaryPI[[#This Row],[MeasureCost]]<>\"\",Table_SummaryPI[[#This Row],[MeasureCost]],0)","v":0},{"$f":"IF(Table_SummaryPI[[#This Row],[kWhSavings]]<>\"\",Table_SummaryPI[[#This Row],[kWhSavings]],0)","v":0},{"$f":"IF(Table_SummaryPI[[#This Row],[DemandSavingskW]]<>\"\",Table_SummaryPI[[#This Row],[DemandSavingskW]],0)","v":0}]
[{"$f":"Table_SummaryPI[[#This Row],[Line No.]]","v":""},{"$f":"IF(Table_PrintPI[[#This Row],[Line No.]]=\"\",\"\",CONCATENATE(Table_PrintPI[[#This Row],[Line No.]],\" - \",Table_SummaryPI[[#This Row],[MeasureName]]))","v":""},{"$f":"IF(Table_SummaryPI[[#This Row],[Manufacturer]]<>\"\",CONCATENATE(Table_SummaryPI[[#This Row],[Manufacturer]],\"/\",Table_SummaryPI[[#This Row],[Model'#]]),\"\")","v":""},{"$f":"IF(Table_SummaryPI[[#This Row],[Serial'#]]<>\"\",Table_SummaryPI[[#This Row],[Serial'#]],\"\")","v":""},{"$f":"IF(Table_SummaryPI[[#This Row],[Quantity]]<>\"\",Table_SummaryPI[[#This Row],[Quantity]],\"\")","v":""},{"$f":"IF(Table_SummaryPI[[#This Row],[BaselinekWh]]<>\"\",Table_SummaryPI[[#This Row],[BaselinekWh]],\"\")","v":""},{"$f":"IF(Table_SummaryPI[[#This Row],[BaselinekW]]<>\"\",Table_SummaryPI[[#This Row],[BaselinekW]],\"\")","v":""},{"$f":"IF(Table_SummaryPI[[#This Row],[ProposedkWh]]<>\"\",Table_SummaryPI[[#This Row],[ProposedkWh]],\"\")","v":""},{"$f":"IF(Table_SummaryPI[[#This Row],[ProposedkW]]<>\"\",Table_SummaryPI[[#This Row],[ProposedkW]],\"\")","v":""},{"$f":"IF(Table_SummaryPI[[#This Row],[Notes]]<>\"\",Table_SummaryPI[[#This Row],[Notes]],\"\")","v":""},{"$f":"IF(Table_SummaryPI[[#This Row],[Incentive_Customer]]<>\"\",Table_SummaryPI[[#This Row],[Incentive_Customer]],0)","v":0},{"$f":"IF(Table_SummaryPI[[#This Row],[MeasureCost]]<>\"\",Table_SummaryPI[[#This Row],[MeasureCost]],0)","v":0},{"$f":"IF(Table_SummaryPI[[#This Row],[kWhSavings]]<>\"\",Table_SummaryPI[[#This Row],[kWhSavings]],0)","v":0},{"$f":"IF(Table_SummaryPI[[#This Row],[DemandSavingskW]]<>\"\",Table_SummaryPI[[#This Row],[DemandSavingskW]],0)","v":0}]
[{"$f":"Table_SummaryPI[[#This Row],[Line No.]]","v":""},{"$f":"IF(Table_PrintPI[[#This Row],[Line No.]]=\"\",\"\",CONCATENATE(Table_PrintPI[[#This Row],[Line No.]],\" - \",Table_SummaryPI[[#This Row],[MeasureName]]))","v":""},{"$f":"IF(Table_SummaryPI[[#This Row],[Manufacturer]]<>\"\",CONCATENATE(Table_SummaryPI[[#This Row],[Manufacturer]],\"/\",Table_SummaryPI[[#This Row],[Model'#]]),\"\")","v":""},{"$f":"IF(Table_SummaryPI[[#This Row],[Serial'#]]<>\"\",Table_SummaryPI[[#This Row],[Serial'#]],\"\")","v":""},{"$f":"IF(Table_SummaryPI[[#This Row],[Quantity]]<>\"\",Table_SummaryPI[[#This Row],[Quantity]],\"\")","v":""},{"$f":"IF(Table_SummaryPI[[#This Row],[BaselinekWh]]<>\"\",Table_SummaryPI[[#This Row],[BaselinekWh]],\"\")","v":""},{"$f":"IF(Table_SummaryPI[[#This Row],[BaselinekW]]<>\"\",Table_SummaryPI[[#This Row],[BaselinekW]],\"\")","v":""},{"$f":"IF(Table_SummaryPI[[#This Row],[ProposedkWh]]<>\"\",Table_SummaryPI[[#This Row],[ProposedkWh]],\"\")","v":""},{"$f":"IF(Table_SummaryPI[[#This Row],[ProposedkW]]<>\"\",Table_SummaryPI[[#This Row],[ProposedkW]],\"\")","v":""},{"$f":"IF(Table_SummaryPI[[#This Row],[Notes]]<>\"\",Table_SummaryPI[[#This Row],[Notes]],\"\")","v":""},{"$f":"IF(Table_SummaryPI[[#This Row],[Incentive_Customer]]<>\"\",Table_SummaryPI[[#This Row],[Incentive_Customer]],0)","v":0},{"$f":"IF(Table_SummaryPI[[#This Row],[MeasureCost]]<>\"\",Table_SummaryPI[[#This Row],[MeasureCost]],0)","v":0},{"$f":"IF(Table_SummaryPI[[#This Row],[kWhSavings]]<>\"\",Table_SummaryPI[[#This Row],[kWhSavings]],0)","v":0},{"$f":"IF(Table_SummaryPI[[#This Row],[DemandSavingskW]]<>\"\",Table_SummaryPI[[#This Row],[DemandSavingskW]],0)","v":0}]
[{"$f":"Table_SummaryPI[[#This Row],[Line No.]]","v":""},{"$f":"IF(Table_PrintPI[[#This Row],[Line No.]]=\"\",\"\",CONCATENATE(Table_PrintPI[[#This Row],[Line No.]],\" - \",Table_SummaryPI[[#This Row],[MeasureName]]))","v":""},{"$f":"IF(Table_SummaryPI[[#This Row],[Manufacturer]]<>\"\",CONCATENATE(Table_SummaryPI[[#This Row],[Manufacturer]],\"/\",Table_SummaryPI[[#This Row],[Model'#]]),\"\")","v":""},{"$f":"IF(Table_SummaryPI[[#This Row],[Serial'#]]<>\"\",Table_SummaryPI[[#This Row],[Serial'#]],\"\")","v":""},{"$f":"IF(Table_SummaryPI[[#This Row],[Quantity]]<>\"\",Table_SummaryPI[[#This Row],[Quantity]],\"\")","v":""},{"$f":"IF(Table_SummaryPI[[#This Row],[BaselinekWh]]<>\"\",Table_SummaryPI[[#This Row],[BaselinekWh]],\"\")","v":""},{"$f":"IF(Table_SummaryPI[[#This Row],[BaselinekW]]<>\"\",Table_SummaryPI[[#This Row],[BaselinekW]],\"\")","v":""},{"$f":"IF(Table_SummaryPI[[#This Row],[ProposedkWh]]<>\"\",Table_SummaryPI[[#This Row],[ProposedkWh]],\"\")","v":""},{"$f":"IF(Table_SummaryPI[[#This Row],[ProposedkW]]<>\"\",Table_SummaryPI[[#This Row],[ProposedkW]],\"\")","v":""},{"$f":"IF(Table_SummaryPI[[#This Row],[Notes]]<>\"\",Table_SummaryPI[[#This Row],[Notes]],\"\")","v":""},{"$f":"IF(Table_SummaryPI[[#This Row],[Incentive_Customer]]<>\"\",Table_SummaryPI[[#This Row],[Incentive_Customer]],0)","v":0},{"$f":"IF(Table_SummaryPI[[#This Row],[MeasureCost]]<>\"\",Table_SummaryPI[[#This Row],[MeasureCost]],0)","v":0},{"$f":"IF(Table_SummaryPI[[#This Row],[kWhSavings]]<>\"\",Table_SummaryPI[[#This Row],[kWhSavings]],0)","v":0},{"$f":"IF(Table_SummaryPI[[#This Row],[DemandSavingskW]]<>\"\",Table_SummaryPI[[#This Row],[DemandSavingskW]],0)","v":0}]
[{"$f":"Table_SummaryPI[[#This Row],[Line No.]]","v":""},{"$f":"IF(Table_PrintPI[[#This Row],[Line No.]]=\"\",\"\",CONCATENATE(Table_PrintPI[[#This Row],[Line No.]],\" - \",Table_SummaryPI[[#This Row],[MeasureName]]))","v":""},{"$f":"IF(Table_SummaryPI[[#This Row],[Manufacturer]]<>\"\",CONCATENATE(Table_SummaryPI[[#This Row],[Manufacturer]],\"/\",Table_SummaryPI[[#This Row],[Model'#]]),\"\")","v":""},{"$f":"IF(Table_SummaryPI[[#This Row],[Serial'#]]<>\"\",Table_SummaryPI[[#This Row],[Serial'#]],\"\")","v":""},{"$f":"IF(Table_SummaryPI[[#This Row],[Quantity]]<>\"\",Table_SummaryPI[[#This Row],[Quantity]],\"\")","v":""},{"$f":"IF(Table_SummaryPI[[#This Row],[BaselinekWh]]<>\"\",Table_SummaryPI[[#This Row],[BaselinekWh]],\"\")","v":""},{"$f":"IF(Table_SummaryPI[[#This Row],[BaselinekW]]<>\"\",Table_SummaryPI[[#This Row],[BaselinekW]],\"\")","v":""},{"$f":"IF(Table_SummaryPI[[#This Row],[ProposedkWh]]<>\"\",Table_SummaryPI[[#This Row],[ProposedkWh]],\"\")","v":""},{"$f":"IF(Table_SummaryPI[[#This Row],[ProposedkW]]<>\"\",Table_SummaryPI[[#This Row],[ProposedkW]],\"\")","v":""},{"$f":"IF(Table_SummaryPI[[#This Row],[Notes]]<>\"\",Table_SummaryPI[[#This Row],[Notes]],\"\")","v":""},{"$f":"IF(Table_SummaryPI[[#This Row],[Incentive_Customer]]<>\"\",Table_SummaryPI[[#This Row],[Incentive_Customer]],0)","v":0},{"$f":"IF(Table_SummaryPI[[#This Row],[MeasureCost]]<>\"\",Table_SummaryPI[[#This Row],[MeasureCost]],0)","v":0},{"$f":"IF(Table_SummaryPI[[#This Row],[kWhSavings]]<>\"\",Table_SummaryPI[[#This Row],[kWhSavings]],0)","v":0},{"$f":"IF(Table_SummaryPI[[#This Row],[DemandSavingskW]]<>\"\",Table_SummaryPI[[#This Row],[DemandSavingskW]],0)","v":0}]
[{"$f":"Table_SummaryPI[[#This Row],[Line No.]]","v":""},{"$f":"IF(Table_PrintPI[[#This Row],[Line No.]]=\"\",\"\",CONCATENATE(Table_PrintPI[[#This Row],[Line No.]],\" - \",Table_SummaryPI[[#This Row],[MeasureName]]))","v":""},{"$f":"IF(Table_SummaryPI[[#This Row],[Manufacturer]]<>\"\",CONCATENATE(Table_SummaryPI[[#This Row],[Manufacturer]],\"/\",Table_SummaryPI[[#This Row],[Model'#]]),\"\")","v":""},{"$f":"IF(Table_SummaryPI[[#This Row],[Serial'#]]<>\"\",Table_SummaryPI[[#This Row],[Serial'#]],\"\")","v":""},{"$f":"IF(Table_SummaryPI[[#This Row],[Quantity]]<>\"\",Table_SummaryPI[[#This Row],[Quantity]],\"\")","v":""},{"$f":"IF(Table_SummaryPI[[#This Row],[BaselinekWh]]<>\"\",Table_SummaryPI[[#This Row],[BaselinekWh]],\"\")","v":""},{"$f":"IF(Table_SummaryPI[[#This Row],[BaselinekW]]<>\"\",Table_SummaryPI[[#This Row],[BaselinekW]],\"\")","v":""},{"$f":"IF(Table_SummaryPI[[#This Row],[ProposedkWh]]<>\"\",Table_SummaryPI[[#This Row],[ProposedkWh]],\"\")","v":""},{"$f":"IF(Table_SummaryPI[[#This Row],[ProposedkW]]<>\"\",Table_SummaryPI[[#This Row],[ProposedkW]],\"\")","v":""},{"$f":"IF(Table_SummaryPI[[#This Row],[Notes]]<>\"\",Table_SummaryPI[[#This Row],[Notes]],\"\")","v":""},{"$f":"IF(Table_SummaryPI[[#This Row],[Incentive_Customer]]<>\"\",Table_SummaryPI[[#This Row],[Incentive_Customer]],0)","v":0},{"$f":"IF(Table_SummaryPI[[#This Row],[MeasureCost]]<>\"\",Table_SummaryPI[[#This Row],[MeasureCost]],0)","v":0},{"$f":"IF(Table_SummaryPI[[#This Row],[kWhSavings]]<>\"\",Table_SummaryPI[[#This Row],[kWhSavings]],0)","v":0},{"$f":"IF(Table_SummaryPI[[#This Row],[DemandSavingskW]]<>\"\",Table_SummaryPI[[#This Row],[DemandSavingskW]],0)","v":0}]
[{"$f":"Table_SummaryPI[[#This Row],[Line No.]]","v":""},{"$f":"IF(Table_PrintPI[[#This Row],[Line No.]]=\"\",\"\",CONCATENATE(Table_PrintPI[[#This Row],[Line No.]],\" - \",Table_SummaryPI[[#This Row],[MeasureName]]))","v":""},{"$f":"IF(Table_SummaryPI[[#This Row],[Manufacturer]]<>\"\",CONCATENATE(Table_SummaryPI[[#This Row],[Manufacturer]],\"/\",Table_SummaryPI[[#This Row],[Model'#]]),\"\")","v":""},{"$f":"IF(Table_SummaryPI[[#This Row],[Serial'#]]<>\"\",Table_SummaryPI[[#This Row],[Serial'#]],\"\")","v":""},{"$f":"IF(Table_SummaryPI[[#This Row],[Quantity]]<>\"\",Table_SummaryPI[[#This Row],[Quantity]],\"\")","v":""},{"$f":"IF(Table_SummaryPI[[#This Row],[BaselinekWh]]<>\"\",Table_SummaryPI[[#This Row],[BaselinekWh]],\"\")","v":""},{"$f":"IF(Table_SummaryPI[[#This Row],[BaselinekW]]<>\"\",Table_SummaryPI[[#This Row],[BaselinekW]],\"\")","v":""},{"$f":"IF(Table_SummaryPI[[#This Row],[ProposedkWh]]<>\"\",Table_SummaryPI[[#This Row],[ProposedkWh]],\"\")","v":""},{"$f":"IF(Table_SummaryPI[[#This Row],[ProposedkW]]<>\"\",Table_SummaryPI[[#This Row],[ProposedkW]],\"\")","v":""},{"$f":"IF(Table_SummaryPI[[#This Row],[Notes]]<>\"\",Table_SummaryPI[[#This Row],[Notes]],\"\")","v":""},{"$f":"IF(Table_SummaryPI[[#This Row],[Incentive_Customer]]<>\"\",Table_SummaryPI[[#This Row],[Incentive_Customer]],0)","v":0},{"$f":"IF(Table_SummaryPI[[#This Row],[MeasureCost]]<>\"\",Table_SummaryPI[[#This Row],[MeasureCost]],0)","v":0},{"$f":"IF(Table_SummaryPI[[#This Row],[kWhSavings]]<>\"\",Table_SummaryPI[[#This Row],[kWhSavings]],0)","v":0},{"$f":"IF(Table_SummaryPI[[#This Row],[DemandSavingskW]]<>\"\",Table_SummaryPI[[#This Row],[DemandSavingskW]],0)","v":0}]
[{"$f":"Table_SummaryPI[[#This Row],[Line No.]]","v":""},{"$f":"IF(Table_PrintPI[[#This Row],[Line No.]]=\"\",\"\",CONCATENATE(Table_PrintPI[[#This Row],[Line No.]],\" - \",Table_SummaryPI[[#This Row],[MeasureName]]))","v":""},{"$f":"IF(Table_SummaryPI[[#This Row],[Manufacturer]]<>\"\",CONCATENATE(Table_SummaryPI[[#This Row],[Manufacturer]],\"/\",Table_SummaryPI[[#This Row],[Model'#]]),\"\")","v":""},{"$f":"IF(Table_SummaryPI[[#This Row],[Serial'#]]<>\"\",Table_SummaryPI[[#This Row],[Serial'#]],\"\")","v":""},{"$f":"IF(Table_SummaryPI[[#This Row],[Quantity]]<>\"\",Table_SummaryPI[[#This Row],[Quantity]],\"\")","v":""},{"$f":"IF(Table_SummaryPI[[#This Row],[BaselinekWh]]<>\"\",Table_SummaryPI[[#This Row],[BaselinekWh]],\"\")","v":""},{"$f":"IF(Table_SummaryPI[[#This Row],[BaselinekW]]<>\"\",Table_SummaryPI[[#This Row],[BaselinekW]],\"\")","v":""},{"$f":"IF(Table_SummaryPI[[#This Row],[ProposedkWh]]<>\"\",Table_SummaryPI[[#This Row],[ProposedkWh]],\"\")","v":""},{"$f":"IF(Table_SummaryPI[[#This Row],[ProposedkW]]<>\"\",Table_SummaryPI[[#This Row],[ProposedkW]],\"\")","v":""},{"$f":"IF(Table_SummaryPI[[#This Row],[Notes]]<>\"\",Table_SummaryPI[[#This Row],[Notes]],\"\")","v":""},{"$f":"IF(Table_SummaryPI[[#This Row],[Incentive_Customer]]<>\"\",Table_SummaryPI[[#This Row],[Incentive_Customer]],0)","v":0},{"$f":"IF(Table_SummaryPI[[#This Row],[MeasureCost]]<>\"\",Table_SummaryPI[[#This Row],[MeasureCost]],0)","v":0},{"$f":"IF(Table_SummaryPI[[#This Row],[kWhSavings]]<>\"\",Table_SummaryPI[[#This Row],[kWhSavings]],0)","v":0},{"$f":"IF(Table_SummaryPI[[#This Row],[DemandSavingskW]]<>\"\",Table_SummaryPI[[#This Row],[DemandSavingskW]],0)","v":0}]
[{"$f":"Table_SummaryPI[[#This Row],[Line No.]]","v":""},{"$f":"IF(Table_PrintPI[[#This Row],[Line No.]]=\"\",\"\",CONCATENATE(Table_PrintPI[[#This Row],[Line No.]],\" - \",Table_SummaryPI[[#This Row],[MeasureName]]))","v":""},{"$f":"IF(Table_SummaryPI[[#This Row],[Manufacturer]]<>\"\",CONCATENATE(Table_SummaryPI[[#This Row],[Manufacturer]],\"/\",Table_SummaryPI[[#This Row],[Model'#]]),\"\")","v":""},{"$f":"IF(Table_SummaryPI[[#This Row],[Serial'#]]<>\"\",Table_SummaryPI[[#This Row],[Serial'#]],\"\")","v":""},{"$f":"IF(Table_SummaryPI[[#This Row],[Quantity]]<>\"\",Table_SummaryPI[[#This Row],[Quantity]],\"\")","v":""},{"$f":"IF(Table_SummaryPI[[#This Row],[BaselinekWh]]<>\"\",Table_SummaryPI[[#This Row],[BaselinekWh]],\"\")","v":""},{"$f":"IF(Table_SummaryPI[[#This Row],[BaselinekW]]<>\"\",Table_SummaryPI[[#This Row],[BaselinekW]],\"\")","v":""},{"$f":"IF(Table_SummaryPI[[#This Row],[ProposedkWh]]<>\"\",Table_SummaryPI[[#This Row],[ProposedkWh]],\"\")","v":""},{"$f":"IF(Table_SummaryPI[[#This Row],[ProposedkW]]<>\"\",Table_SummaryPI[[#This Row],[ProposedkW]],\"\")","v":""},{"$f":"IF(Table_SummaryPI[[#This Row],[Notes]]<>\"\",Table_SummaryPI[[#This Row],[Notes]],\"\")","v":""},{"$f":"IF(Table_SummaryPI[[#This Row],[Incentive_Customer]]<>\"\",Table_SummaryPI[[#This Row],[Incentive_Customer]],0)","v":0},{"$f":"IF(Table_SummaryPI[[#This Row],[MeasureCost]]<>\"\",Table_SummaryPI[[#This Row],[MeasureCost]],0)","v":0},{"$f":"IF(Table_SummaryPI[[#This Row],[kWhSavings]]<>\"\",Table_SummaryPI[[#This Row],[kWhSavings]],0)","v":0},{"$f":"IF(Table_SummaryPI[[#This Row],[DemandSavingskW]]<>\"\",Table_SummaryPI[[#This Row],[DemandSavingskW]],0)","v":0}]
[{"$f":"Table_SummaryPI[[#This Row],[Line No.]]","v":""},{"$f":"IF(Table_PrintPI[[#This Row],[Line No.]]=\"\",\"\",CONCATENATE(Table_PrintPI[[#This Row],[Line No.]],\" - \",Table_SummaryPI[[#This Row],[MeasureName]]))","v":""},{"$f":"IF(Table_SummaryPI[[#This Row],[Manufacturer]]<>\"\",CONCATENATE(Table_SummaryPI[[#This Row],[Manufacturer]],\"/\",Table_SummaryPI[[#This Row],[Model'#]]),\"\")","v":""},{"$f":"IF(Table_SummaryPI[[#This Row],[Serial'#]]<>\"\",Table_SummaryPI[[#This Row],[Serial'#]],\"\")","v":""},{"$f":"IF(Table_SummaryPI[[#This Row],[Quantity]]<>\"\",Table_SummaryPI[[#This Row],[Quantity]],\"\")","v":""},{"$f":"IF(Table_SummaryPI[[#This Row],[BaselinekWh]]<>\"\",Table_SummaryPI[[#This Row],[BaselinekWh]],\"\")","v":""},{"$f":"IF(Table_SummaryPI[[#This Row],[BaselinekW]]<>\"\",Table_SummaryPI[[#This Row],[BaselinekW]],\"\")","v":""},{"$f":"IF(Table_SummaryPI[[#This Row],[ProposedkWh]]<>\"\",Table_SummaryPI[[#This Row],[ProposedkWh]],\"\")","v":""},{"$f":"IF(Table_SummaryPI[[#This Row],[ProposedkW]]<>\"\",Table_SummaryPI[[#This Row],[ProposedkW]],\"\")","v":""},{"$f":"IF(Table_SummaryPI[[#This Row],[Notes]]<>\"\",Table_SummaryPI[[#This Row],[Notes]],\"\")","v":""},{"$f":"IF(Table_SummaryPI[[#This Row],[Incentive_Customer]]<>\"\",Table_SummaryPI[[#This Row],[Incentive_Customer]],0)","v":0},{"$f":"IF(Table_SummaryPI[[#This Row],[MeasureCost]]<>\"\",Table_SummaryPI[[#This Row],[MeasureCost]],0)","v":0},{"$f":"IF(Table_SummaryPI[[#This Row],[kWhSavings]]<>\"\",Table_SummaryPI[[#This Row],[kWhSavings]],0)","v":0},{"$f":"IF(Table_SummaryPI[[#This Row],[DemandSavingskW]]<>\"\",Table_SummaryPI[[#This Row],[DemandSavingskW]],0)","v":0}]
[{"$f":"Table_SummaryPI[[#This Row],[Line No.]]","v":""},{"$f":"IF(Table_PrintPI[[#This Row],[Line No.]]=\"\",\"\",CONCATENATE(Table_PrintPI[[#This Row],[Line No.]],\" - \",Table_SummaryPI[[#This Row],[MeasureName]]))","v":""},{"$f":"IF(Table_SummaryPI[[#This Row],[Manufacturer]]<>\"\",CONCATENATE(Table_SummaryPI[[#This Row],[Manufacturer]],\"/\",Table_SummaryPI[[#This Row],[Model'#]]),\"\")","v":""},{"$f":"IF(Table_SummaryPI[[#This Row],[Serial'#]]<>\"\",Table_SummaryPI[[#This Row],[Serial'#]],\"\")","v":""},{"$f":"IF(Table_SummaryPI[[#This Row],[Quantity]]<>\"\",Table_SummaryPI[[#This Row],[Quantity]],\"\")","v":""},{"$f":"IF(Table_SummaryPI[[#This Row],[BaselinekWh]]<>\"\",Table_SummaryPI[[#This Row],[BaselinekWh]],\"\")","v":""},{"$f":"IF(Table_SummaryPI[[#This Row],[BaselinekW]]<>\"\",Table_SummaryPI[[#This Row],[BaselinekW]],\"\")","v":""},{"$f":"IF(Table_SummaryPI[[#This Row],[ProposedkWh]]<>\"\",Table_SummaryPI[[#This Row],[ProposedkWh]],\"\")","v":""},{"$f":"IF(Table_SummaryPI[[#This Row],[ProposedkW]]<>\"\",Table_SummaryPI[[#This Row],[ProposedkW]],\"\")","v":""},{"$f":"IF(Table_SummaryPI[[#This Row],[Notes]]<>\"\",Table_SummaryPI[[#This Row],[Notes]],\"\")","v":""},{"$f":"IF(Table_SummaryPI[[#This Row],[Incentive_Customer]]<>\"\",Table_SummaryPI[[#This Row],[Incentive_Customer]],0)","v":0},{"$f":"IF(Table_SummaryPI[[#This Row],[MeasureCost]]<>\"\",Table_SummaryPI[[#This Row],[MeasureCost]],0)","v":0},{"$f":"IF(Table_SummaryPI[[#This Row],[kWhSavings]]<>\"\",Table_SummaryPI[[#This Row],[kWhSavings]],0)","v":0},{"$f":"IF(Table_SummaryPI[[#This Row],[DemandSavingskW]]<>\"\",Table_SummaryPI[[#This Row],[DemandSavingskW]],0)","v":0}]
[{"$f":"Table_SummaryPI[[#This Row],[Line No.]]","v":""},{"$f":"IF(Table_PrintPI[[#This Row],[Line No.]]=\"\",\"\",CONCATENATE(Table_PrintPI[[#This Row],[Line No.]],\" - \",Table_SummaryPI[[#This Row],[MeasureName]]))","v":""},{"$f":"IF(Table_SummaryPI[[#This Row],[Manufacturer]]<>\"\",CONCATENATE(Table_SummaryPI[[#This Row],[Manufacturer]],\"/\",Table_SummaryPI[[#This Row],[Model'#]]),\"\")","v":""},{"$f":"IF(Table_SummaryPI[[#This Row],[Serial'#]]<>\"\",Table_SummaryPI[[#This Row],[Serial'#]],\"\")","v":""},{"$f":"IF(Table_SummaryPI[[#This Row],[Quantity]]<>\"\",Table_SummaryPI[[#This Row],[Quantity]],\"\")","v":""},{"$f":"IF(Table_SummaryPI[[#This Row],[BaselinekWh]]<>\"\",Table_SummaryPI[[#This Row],[BaselinekWh]],\"\")","v":""},{"$f":"IF(Table_SummaryPI[[#This Row],[BaselinekW]]<>\"\",Table_SummaryPI[[#This Row],[BaselinekW]],\"\")","v":""},{"$f":"IF(Table_SummaryPI[[#This Row],[ProposedkWh]]<>\"\",Table_SummaryPI[[#This Row],[ProposedkWh]],\"\")","v":""},{"$f":"IF(Table_SummaryPI[[#This Row],[ProposedkW]]<>\"\",Table_SummaryPI[[#This Row],[ProposedkW]],\"\")","v":""},{"$f":"IF(Table_SummaryPI[[#This Row],[Notes]]<>\"\",Table_SummaryPI[[#This Row],[Notes]],\"\")","v":""},{"$f":"IF(Table_SummaryPI[[#This Row],[Incentive_Customer]]<>\"\",Table_SummaryPI[[#This Row],[Incentive_Customer]],0)","v":0},{"$f":"IF(Table_SummaryPI[[#This Row],[MeasureCost]]<>\"\",Table_SummaryPI[[#This Row],[MeasureCost]],0)","v":0},{"$f":"IF(Table_SummaryPI[[#This Row],[kWhSavings]]<>\"\",Table_SummaryPI[[#This Row],[kWhSavings]],0)","v":0},{"$f":"IF(Table_SummaryPI[[#This Row],[DemandSavingskW]]<>\"\",Table_SummaryPI[[#This Row],[DemandSavingskW]],0)","v":0}]
[{"$f":"Table_SummaryPI[[#This Row],[Line No.]]","v":""},{"$f":"IF(Table_PrintPI[[#This Row],[Line No.]]=\"\",\"\",CONCATENATE(Table_PrintPI[[#This Row],[Line No.]],\" - \",Table_SummaryPI[[#This Row],[MeasureName]]))","v":""},{"$f":"IF(Table_SummaryPI[[#This Row],[Manufacturer]]<>\"\",CONCATENATE(Table_SummaryPI[[#This Row],[Manufacturer]],\"/\",Table_SummaryPI[[#This Row],[Model'#]]),\"\")","v":""},{"$f":"IF(Table_SummaryPI[[#This Row],[Serial'#]]<>\"\",Table_SummaryPI[[#This Row],[Serial'#]],\"\")","v":""},{"$f":"IF(Table_SummaryPI[[#This Row],[Quantity]]<>\"\",Table_SummaryPI[[#This Row],[Quantity]],\"\")","v":""},{"$f":"IF(Table_SummaryPI[[#This Row],[BaselinekWh]]<>\"\",Table_SummaryPI[[#This Row],[BaselinekWh]],\"\")","v":""},{"$f":"IF(Table_SummaryPI[[#This Row],[BaselinekW]]<>\"\",Table_SummaryPI[[#This Row],[BaselinekW]],\"\")","v":""},{"$f":"IF(Table_SummaryPI[[#This Row],[ProposedkWh]]<>\"\",Table_SummaryPI[[#This Row],[ProposedkWh]],\"\")","v":""},{"$f":"IF(Table_SummaryPI[[#This Row],[ProposedkW]]<>\"\",Table_SummaryPI[[#This Row],[ProposedkW]],\"\")","v":""},{"$f":"IF(Table_SummaryPI[[#This Row],[Notes]]<>\"\",Table_SummaryPI[[#This Row],[Notes]],\"\")","v":""},{"$f":"IF(Table_SummaryPI[[#This Row],[Incentive_Customer]]<>\"\",Table_SummaryPI[[#This Row],[Incentive_Customer]],0)","v":0},{"$f":"IF(Table_SummaryPI[[#This Row],[MeasureCost]]<>\"\",Table_SummaryPI[[#This Row],[MeasureCost]],0)","v":0},{"$f":"IF(Table_SummaryPI[[#This Row],[kWhSavings]]<>\"\",Table_SummaryPI[[#This Row],[kWhSavings]],0)","v":0},{"$f":"IF(Table_SummaryPI[[#This Row],[DemandSavingskW]]<>\"\",Table_SummaryPI[[#This Row],[DemandSavingskW]],0)","v":0}]
[{"$f":"Table_SummaryPI[[#This Row],[Line No.]]","v":""},{"$f":"IF(Table_PrintPI[[#This Row],[Line No.]]=\"\",\"\",CONCATENATE(Table_PrintPI[[#This Row],[Line No.]],\" - \",Table_SummaryPI[[#This Row],[MeasureName]]))","v":""},{"$f":"IF(Table_SummaryPI[[#This Row],[Manufacturer]]<>\"\",CONCATENATE(Table_SummaryPI[[#This Row],[Manufacturer]],\"/\",Table_SummaryPI[[#This Row],[Model'#]]),\"\")","v":""},{"$f":"IF(Table_SummaryPI[[#This Row],[Serial'#]]<>\"\",Table_SummaryPI[[#This Row],[Serial'#]],\"\")","v":""},{"$f":"IF(Table_SummaryPI[[#This Row],[Quantity]]<>\"\",Table_SummaryPI[[#This Row],[Quantity]],\"\")","v":""},{"$f":"IF(Table_SummaryPI[[#This Row],[BaselinekWh]]<>\"\",Table_SummaryPI[[#This Row],[BaselinekWh]],\"\")","v":""},{"$f":"IF(Table_SummaryPI[[#This Row],[BaselinekW]]<>\"\",Table_SummaryPI[[#This Row],[BaselinekW]],\"\")","v":""},{"$f":"IF(Table_SummaryPI[[#This Row],[ProposedkWh]]<>\"\",Table_SummaryPI[[#This Row],[ProposedkWh]],\"\")","v":""},{"$f":"IF(Table_SummaryPI[[#This Row],[ProposedkW]]<>\"\",Table_SummaryPI[[#This Row],[ProposedkW]],\"\")","v":""},{"$f":"IF(Table_SummaryPI[[#This Row],[Notes]]<>\"\",Table_SummaryPI[[#This Row],[Notes]],\"\")","v":""},{"$f":"IF(Table_SummaryPI[[#This Row],[Incentive_Customer]]<>\"\",Table_SummaryPI[[#This Row],[Incentive_Customer]],0)","v":0},{"$f":"IF(Table_SummaryPI[[#This Row],[MeasureCost]]<>\"\",Table_SummaryPI[[#This Row],[MeasureCost]],0)","v":0},{"$f":"IF(Table_SummaryPI[[#This Row],[kWhSavings]]<>\"\",Table_SummaryPI[[#This Row],[kWhSavings]],0)","v":0},{"$f":"IF(Table_SummaryPI[[#This Row],[DemandSavingskW]]<>\"\",Table_SummaryPI[[#This Row],[DemandSavingskW]],0)","v":0}]
[{"$f":"Table_SummaryPI[[#This Row],[Line No.]]","v":""},{"$f":"IF(Table_PrintPI[[#This Row],[Line No.]]=\"\",\"\",CONCATENATE(Table_PrintPI[[#This Row],[Line No.]],\" - \",Table_SummaryPI[[#This Row],[MeasureName]]))","v":""},{"$f":"IF(Table_SummaryPI[[#This Row],[Manufacturer]]<>\"\",CONCATENATE(Table_SummaryPI[[#This Row],[Manufacturer]],\"/\",Table_SummaryPI[[#This Row],[Model'#]]),\"\")","v":""},{"$f":"IF(Table_SummaryPI[[#This Row],[Serial'#]]<>\"\",Table_SummaryPI[[#This Row],[Serial'#]],\"\")","v":""},{"$f":"IF(Table_SummaryPI[[#This Row],[Quantity]]<>\"\",Table_SummaryPI[[#This Row],[Quantity]],\"\")","v":""},{"$f":"IF(Table_SummaryPI[[#This Row],[BaselinekWh]]<>\"\",Table_SummaryPI[[#This Row],[BaselinekWh]],\"\")","v":""},{"$f":"IF(Table_SummaryPI[[#This Row],[BaselinekW]]<>\"\",Table_SummaryPI[[#This Row],[BaselinekW]],\"\")","v":""},{"$f":"IF(Table_SummaryPI[[#This Row],[ProposedkWh]]<>\"\",Table_SummaryPI[[#This Row],[ProposedkWh]],\"\")","v":""},{"$f":"IF(Table_SummaryPI[[#This Row],[ProposedkW]]<>\"\",Table_SummaryPI[[#This Row],[ProposedkW]],\"\")","v":""},{"$f":"IF(Table_SummaryPI[[#This Row],[Notes]]<>\"\",Table_SummaryPI[[#This Row],[Notes]],\"\")","v":""},{"$f":"IF(Table_SummaryPI[[#This Row],[Incentive_Customer]]<>\"\",Table_SummaryPI[[#This Row],[Incentive_Customer]],0)","v":0},{"$f":"IF(Table_SummaryPI[[#This Row],[MeasureCost]]<>\"\",Table_SummaryPI[[#This Row],[MeasureCost]],0)","v":0},{"$f":"IF(Table_SummaryPI[[#This Row],[kWhSavings]]<>\"\",Table_SummaryPI[[#This Row],[kWhSavings]],0)","v":0},{"$f":"IF(Table_SummaryPI[[#This Row],[DemandSavingskW]]<>\"\",Table_SummaryPI[[#This Row],[DemandSavingskW]],0)","v":0}]
[{"$f":"Table_SummaryPI[[#This Row],[Line No.]]","v":""},{"$f":"IF(Table_PrintPI[[#This Row],[Line No.]]=\"\",\"\",CONCATENATE(Table_PrintPI[[#This Row],[Line No.]],\" - \",Table_SummaryPI[[#This Row],[MeasureName]]))","v":""},{"$f":"IF(Table_SummaryPI[[#This Row],[Manufacturer]]<>\"\",CONCATENATE(Table_SummaryPI[[#This Row],[Manufacturer]],\"/\",Table_SummaryPI[[#This Row],[Model'#]]),\"\")","v":""},{"$f":"IF(Table_SummaryPI[[#This Row],[Serial'#]]<>\"\",Table_SummaryPI[[#This Row],[Serial'#]],\"\")","v":""},{"$f":"IF(Table_SummaryPI[[#This Row],[Quantity]]<>\"\",Table_SummaryPI[[#This Row],[Quantity]],\"\")","v":""},{"$f":"IF(Table_SummaryPI[[#This Row],[BaselinekWh]]<>\"\",Table_SummaryPI[[#This Row],[BaselinekWh]],\"\")","v":""},{"$f":"IF(Table_SummaryPI[[#This Row],[BaselinekW]]<>\"\",Table_SummaryPI[[#This Row],[BaselinekW]],\"\")","v":""},{"$f":"IF(Table_SummaryPI[[#This Row],[ProposedkWh]]<>\"\",Table_SummaryPI[[#This Row],[ProposedkWh]],\"\")","v":""},{"$f":"IF(Table_SummaryPI[[#This Row],[ProposedkW]]<>\"\",Table_SummaryPI[[#This Row],[ProposedkW]],\"\")","v":""},{"$f":"IF(Table_SummaryPI[[#This Row],[Notes]]<>\"\",Table_SummaryPI[[#This Row],[Notes]],\"\")","v":""},{"$f":"IF(Table_SummaryPI[[#This Row],[Incentive_Customer]]<>\"\",Table_SummaryPI[[#This Row],[Incentive_Customer]],0)","v":0},{"$f":"IF(Table_SummaryPI[[#This Row],[MeasureCost]]<>\"\",Table_SummaryPI[[#This Row],[MeasureCost]],0)","v":0},{"$f":"IF(Table_SummaryPI[[#This Row],[kWhSavings]]<>\"\",Table_SummaryPI[[#This Row],[kWhSavings]],0)","v":0},{"$f":"IF(Table_SummaryPI[[#This Row],[DemandSavingskW]]<>\"\",Table_SummaryPI[[#This Row],[DemandSavingskW]],0)","v":0}]
[{"$f":"Table_SummaryPI[[#This Row],[Line No.]]","v":""},{"$f":"IF(Table_PrintPI[[#This Row],[Line No.]]=\"\",\"\",CONCATENATE(Table_PrintPI[[#This Row],[Line No.]],\" - \",Table_SummaryPI[[#This Row],[MeasureName]]))","v":""},{"$f":"IF(Table_SummaryPI[[#This Row],[Manufacturer]]<>\"\",CONCATENATE(Table_SummaryPI[[#This Row],[Manufacturer]],\"/\",Table_SummaryPI[[#This Row],[Model'#]]),\"\")","v":""},{"$f":"IF(Table_SummaryPI[[#This Row],[Serial'#]]<>\"\",Table_SummaryPI[[#This Row],[Serial'#]],\"\")","v":""},{"$f":"IF(Table_SummaryPI[[#This Row],[Quantity]]<>\"\",Table_SummaryPI[[#This Row],[Quantity]],\"\")","v":""},{"$f":"IF(Table_SummaryPI[[#This Row],[BaselinekWh]]<>\"\",Table_SummaryPI[[#This Row],[BaselinekWh]],\"\")","v":""},{"$f":"IF(Table_SummaryPI[[#This Row],[BaselinekW]]<>\"\",Table_SummaryPI[[#This Row],[BaselinekW]],\"\")","v":""},{"$f":"IF(Table_SummaryPI[[#This Row],[ProposedkWh]]<>\"\",Table_SummaryPI[[#This Row],[ProposedkWh]],\"\")","v":""},{"$f":"IF(Table_SummaryPI[[#This Row],[ProposedkW]]<>\"\",Table_SummaryPI[[#This Row],[ProposedkW]],\"\")","v":""},{"$f":"IF(Table_SummaryPI[[#This Row],[Notes]]<>\"\",Table_SummaryPI[[#This Row],[Notes]],\"\")","v":""},{"$f":"IF(Table_SummaryPI[[#This Row],[Incentive_Customer]]<>\"\",Table_SummaryPI[[#This Row],[Incentive_Customer]],0)","v":0},{"$f":"IF(Table_SummaryPI[[#This Row],[MeasureCost]]<>\"\",Table_SummaryPI[[#This Row],[MeasureCost]],0)","v":0},{"$f":"IF(Table_SummaryPI[[#This Row],[kWhSavings]]<>\"\",Table_SummaryPI[[#This Row],[kWhSavings]],0)","v":0},{"$f":"IF(Table_SummaryPI[[#This Row],[DemandSavingskW]]<>\"\",Table_SummaryPI[[#This Row],[DemandSavingskW]],0)","v":0}]
[{"$f":"Table_SummaryPI[[#This Row],[Line No.]]","v":""},{"$f":"IF(Table_PrintPI[[#This Row],[Line No.]]=\"\",\"\",CONCATENATE(Table_PrintPI[[#This Row],[Line No.]],\" - \",Table_SummaryPI[[#This Row],[MeasureName]]))","v":""},{"$f":"IF(Table_SummaryPI[[#This Row],[Manufacturer]]<>\"\",CONCATENATE(Table_SummaryPI[[#This Row],[Manufacturer]],\"/\",Table_SummaryPI[[#This Row],[Model'#]]),\"\")","v":""},{"$f":"IF(Table_SummaryPI[[#This Row],[Serial'#]]<>\"\",Table_SummaryPI[[#This Row],[Serial'#]],\"\")","v":""},{"$f":"IF(Table_SummaryPI[[#This Row],[Quantity]]<>\"\",Table_SummaryPI[[#This Row],[Quantity]],\"\")","v":""},{"$f":"IF(Table_SummaryPI[[#This Row],[BaselinekWh]]<>\"\",Table_SummaryPI[[#This Row],[BaselinekWh]],\"\")","v":""},{"$f":"IF(Table_SummaryPI[[#This Row],[BaselinekW]]<>\"\",Table_SummaryPI[[#This Row],[BaselinekW]],\"\")","v":""},{"$f":"IF(Table_SummaryPI[[#This Row],[ProposedkWh]]<>\"\",Table_SummaryPI[[#This Row],[ProposedkWh]],\"\")","v":""},{"$f":"IF(Table_SummaryPI[[#This Row],[ProposedkW]]<>\"\",Table_SummaryPI[[#This Row],[ProposedkW]],\"\")","v":""},{"$f":"IF(Table_SummaryPI[[#This Row],[Notes]]<>\"\",Table_SummaryPI[[#This Row],[Notes]],\"\")","v":""},{"$f":"IF(Table_SummaryPI[[#This Row],[Incentive_Customer]]<>\"\",Table_SummaryPI[[#This Row],[Incentive_Customer]],0)","v":0},{"$f":"IF(Table_SummaryPI[[#This Row],[MeasureCost]]<>\"\",Table_SummaryPI[[#This Row],[MeasureCost]],0)","v":0},{"$f":"IF(Table_SummaryPI[[#This Row],[kWhSavings]]<>\"\",Table_SummaryPI[[#This Row],[kWhSavings]],0)","v":0},{"$f":"IF(Table_SummaryPI[[#This Row],[DemandSavingskW]]<>\"\",Table_SummaryPI[[#This Row],[DemandSavingskW]],0)","v":0}]
[{"$f":"Table_SummaryPI[[#This Row],[Line No.]]","v":""},{"$f":"IF(Table_PrintPI[[#This Row],[Line No.]]=\"\",\"\",CONCATENATE(Table_PrintPI[[#This Row],[Line No.]],\" - \",Table_SummaryPI[[#This Row],[MeasureName]]))","v":""},{"$f":"IF(Table_SummaryPI[[#This Row],[Manufacturer]]<>\"\",CONCATENATE(Table_SummaryPI[[#This Row],[Manufacturer]],\"/\",Table_SummaryPI[[#This Row],[Model'#]]),\"\")","v":""},{"$f":"IF(Table_SummaryPI[[#This Row],[Serial'#]]<>\"\",Table_SummaryPI[[#This Row],[Serial'#]],\"\")","v":""},{"$f":"IF(Table_SummaryPI[[#This Row],[Quantity]]<>\"\",Table_SummaryPI[[#This Row],[Quantity]],\"\")","v":""},{"$f":"IF(Table_SummaryPI[[#This Row],[BaselinekWh]]<>\"\",Table_SummaryPI[[#This Row],[BaselinekWh]],\"\")","v":""},{"$f":"IF(Table_SummaryPI[[#This Row],[BaselinekW]]<>\"\",Table_SummaryPI[[#This Row],[BaselinekW]],\"\")","v":""},{"$f":"IF(Table_SummaryPI[[#This Row],[ProposedkWh]]<>\"\",Table_SummaryPI[[#This Row],[ProposedkWh]],\"\")","v":""},{"$f":"IF(Table_SummaryPI[[#This Row],[ProposedkW]]<>\"\",Table_SummaryPI[[#This Row],[ProposedkW]],\"\")","v":""},{"$f":"IF(Table_SummaryPI[[#This Row],[Notes]]<>\"\",Table_SummaryPI[[#This Row],[Notes]],\"\")","v":""},{"$f":"IF(Table_SummaryPI[[#This Row],[Incentive_Customer]]<>\"\",Table_SummaryPI[[#This Row],[Incentive_Customer]],0)","v":0},{"$f":"IF(Table_SummaryPI[[#This Row],[MeasureCost]]<>\"\",Table_SummaryPI[[#This Row],[MeasureCost]],0)","v":0},{"$f":"IF(Table_SummaryPI[[#This Row],[kWhSavings]]<>\"\",Table_SummaryPI[[#This Row],[kWhSavings]],0)","v":0},{"$f":"IF(Table_SummaryPI[[#This Row],[DemandSavingskW]]<>\"\",Table_SummaryPI[[#This Row],[DemandSavingskW]],0)","v":0}]
[{"$f":"Table_SummaryPI[[#This Row],[Line No.]]","v":""},{"$f":"IF(Table_PrintPI[[#This Row],[Line No.]]=\"\",\"\",CONCATENATE(Table_PrintPI[[#This Row],[Line No.]],\" - \",Table_SummaryPI[[#This Row],[MeasureName]]))","v":""},{"$f":"IF(Table_SummaryPI[[#This Row],[Manufacturer]]<>\"\",CONCATENATE(Table_SummaryPI[[#This Row],[Manufacturer]],\"/\",Table_SummaryPI[[#This Row],[Model'#]]),\"\")","v":""},{"$f":"IF(Table_SummaryPI[[#This Row],[Serial'#]]<>\"\",Table_SummaryPI[[#This Row],[Serial'#]],\"\")","v":""},{"$f":"IF(Table_SummaryPI[[#This Row],[Quantity]]<>\"\",Table_SummaryPI[[#This Row],[Quantity]],\"\")","v":""},{"$f":"IF(Table_SummaryPI[[#This Row],[BaselinekWh]]<>\"\",Table_SummaryPI[[#This Row],[BaselinekWh]],\"\")","v":""},{"$f":"IF(Table_SummaryPI[[#This Row],[BaselinekW]]<>\"\",Table_SummaryPI[[#This Row],[BaselinekW]],\"\")","v":""},{"$f":"IF(Table_SummaryPI[[#This Row],[ProposedkWh]]<>\"\",Table_SummaryPI[[#This Row],[ProposedkWh]],\"\")","v":""},{"$f":"IF(Table_SummaryPI[[#This Row],[ProposedkW]]<>\"\",Table_SummaryPI[[#This Row],[ProposedkW]],\"\")","v":""},{"$f":"IF(Table_SummaryPI[[#This Row],[Notes]]<>\"\",Table_SummaryPI[[#This Row],[Notes]],\"\")","v":""},{"$f":"IF(Table_SummaryPI[[#This Row],[Incentive_Customer]]<>\"\",Table_SummaryPI[[#This Row],[Incentive_Customer]],0)","v":0},{"$f":"IF(Table_SummaryPI[[#This Row],[MeasureCost]]<>\"\",Table_SummaryPI[[#This Row],[MeasureCost]],0)","v":0},{"$f":"IF(Table_SummaryPI[[#This Row],[kWhSavings]]<>\"\",Table_SummaryPI[[#This Row],[kWhSavings]],0)","v":0},{"$f":"IF(Table_SummaryPI[[#This Row],[DemandSavingskW]]<>\"\",Table_SummaryPI[[#This Row],[DemandSavingskW]],0)","v":0}]
[{"$f":"Table_SummaryPI[[#This Row],[Line No.]]","v":""},{"$f":"IF(Table_PrintPI[[#This Row],[Line No.]]=\"\",\"\",CONCATENATE(Table_PrintPI[[#This Row],[Line No.]],\" - \",Table_SummaryPI[[#This Row],[MeasureName]]))","v":""},{"$f":"IF(Table_SummaryPI[[#This Row],[Manufacturer]]<>\"\",CONCATENATE(Table_SummaryPI[[#This Row],[Manufacturer]],\"/\",Table_SummaryPI[[#This Row],[Model'#]]),\"\")","v":""},{"$f":"IF(Table_SummaryPI[[#This Row],[Serial'#]]<>\"\",Table_SummaryPI[[#This Row],[Serial'#]],\"\")","v":""},{"$f":"IF(Table_SummaryPI[[#This Row],[Quantity]]<>\"\",Table_SummaryPI[[#This Row],[Quantity]],\"\")","v":""},{"$f":"IF(Table_SummaryPI[[#This Row],[BaselinekWh]]<>\"\",Table_SummaryPI[[#This Row],[BaselinekWh]],\"\")","v":""},{"$f":"IF(Table_SummaryPI[[#This Row],[BaselinekW]]<>\"\",Table_SummaryPI[[#This Row],[BaselinekW]],\"\")","v":""},{"$f":"IF(Table_SummaryPI[[#This Row],[ProposedkWh]]<>\"\",Table_SummaryPI[[#This Row],[ProposedkWh]],\"\")","v":""},{"$f":"IF(Table_SummaryPI[[#This Row],[ProposedkW]]<>\"\",Table_SummaryPI[[#This Row],[ProposedkW]],\"\")","v":""},{"$f":"IF(Table_SummaryPI[[#This Row],[Notes]]<>\"\",Table_SummaryPI[[#This Row],[Notes]],\"\")","v":""},{"$f":"IF(Table_SummaryPI[[#This Row],[Incentive_Customer]]<>\"\",Table_SummaryPI[[#This Row],[Incentive_Customer]],0)","v":0},{"$f":"IF(Table_SummaryPI[[#This Row],[MeasureCost]]<>\"\",Table_SummaryPI[[#This Row],[MeasureCost]],0)","v":0},{"$f":"IF(Table_SummaryPI[[#This Row],[kWhSavings]]<>\"\",Table_SummaryPI[[#This Row],[kWhSavings]],0)","v":0},{"$f":"IF(Table_SummaryPI[[#This Row],[DemandSavingskW]]<>\"\",Table_SummaryPI[[#This Row],[DemandSavingskW]],0)","v":0}]
["Totals",".",".",".",null,{"$f":"SUM(F3:F400)","v":0},{"$f":"SUM(G3:G400)","v":0},{"$f":"SUM(H3:H400)","v":0},{"$f":"SUM(I3:I400)","v":0},null,{"$f":"SUM(Table_PrintPI[Rebate])","v":0},{"$f":"SUM(Table_PrintPI[Measure Cost])","v":0},{"$f":"SUM(Table_PrintPI[Annual kWh])","v":0},{"$f":"SUM(Table_PrintPI[Peak kW])","v":0}]

{"sheet":"HVAC","index":6,"n_rows":286,"n_cols":49,"rows_kept":286,"cut":false,"hidden":true,"merged":[[10,2,10,9],[10,10,10,13],[10,14,10,18],[10,19,10,27],[10,28,10,31],[1,33,1,48],[2,2,2,31],[3,2,5,31],[6,2,6,31],[7,25,7,31],[8,2,8,18],[8,19,8,31],[9,2,9,9],[9,10,9,13],[9,14,9,18],[9,19,9,27],[9,28,9,31],[11,2,11,9],[11,10,11,13],[11,14,11,18],[11,19,11,27],[11,28,11,31],[12,2,12,9],[12,10,12,13],[12,14,12,18],[12,19,12,27],[12,28,12,31],[19,2,19,31],[20,2,20,31],[21,2,21,31],[22,2,22,31],[13,2,13,20],[13,21,13,27],[13,28,13,31],[14,2,14,30],[15,2,15,31],[16,2,16,31],[17,2,17,31],[18,2,18,31],[35,2,35,31],[36,2,36,6],[36,7,36,9],[36,10,36,11],[36,12,36,14],[36,15,36,16],[36,17,36,18],[36,19,36,21],[36,22,36,24],[36,25,36,26],[36,27,36,28],[36,29,36,31],[29,2,29,31],[30,2,30,31],[31,2,31,31],[32,2,32,31],[33,2,33,31],[34,2,34,31],[23,2,23,31],[24,2,24,31],[25,2,25,31],[26,2,26,31],[27,2,27,31],[28,2,28,31],[39,27,39,28],[39,29,39,31],[37,25,37,26],[37,27,37,28],[37,29,37,31],[38,2,38,6],[38,7,38,9],[38,10,38,11],[38,12,38,14],[38,15,38,16],[38,17,38,18],[38,19,38,21],[37,2,37,6],[37,7,37,9],[37,10,37,11],[37,12,37,14],[37,15,37,16],[37,17,37,18],[37,19,37,21],[37,22,37,24],[40,2,40,6],[40,7,40,9],[40,10,40,11],[40,12,40,14],[40,15,40,16],[38,22,38,24],[38,25,38,26],[38,27,38,28],[38,29,38,31],[39,2,39,6],[39,7,39,9],[39,10,39,11],[39,12,39,14],[39,15,39,16],[39,17,39,18],[40,17,40,18],[40,19,40,21],[40,22,40,24],[40,25,40,26],[40,27,40,28],[40,29,40,31],[39,19,39,21],[39,22,39,24],[39,25,39,26],[42,17,42,18],[42,19,42,21],[42,22,42,24],[42,25,42,26],[42,27,42,28],[42,29,42,31],[41,19,41,21],[41,22,41,24],[41,25,41,26],[41,27,41,28],[41,29,41,31],[41,17,41,18],[42,2,42,6],[42,7,42,9],[42,10,42,11],[42,12,42,14],[42,15,42,16],[41,2,41,6],[41,7,41,9],[41,10,41,11],[41,12,41,14],[41,15,41,16],[44,17,44,18],[44,19,44,21],[44,22,44,24],[44,25,44,26],[44,27,44,28],[44,29,44,31],[43,19,43,21],[43,22,43,24],[43,25,43,26],[43,27,43,28],[43,29,43,31],[43,17,43,18],[44,2,44,6],[44,7,44,9],[44,10,44,11],[44,12,44,14],[44,15,44,16],[43,2,43,6],[43,7,43,9],[43,10,43,11],[43,12,43,14],[43,15,43,16],[46,17,46,18],[46,19,46,21],[46,22,46,24],[46,25,46,26],[46,27,46,28],[46,29,46,31],[45,19,45,21],[45,22,45,24],[45,25,45,26],[45,27,45,28],[45,29,45,31],[45,17,45,18],[46,2,46,6],[46,7,46,9],[46,10,46,11],[46,12,46,14],[46,15,46,16],[45,2,45,6],[45,7,45,9],[45,10,45,11],[45,12,45,14],[45,15,45,16],[48,17,48,18],[48,19,48,21],[48,22,48,24],[48,25,48,26],[48,27,48,28],[48,29,48,31],[47,19,47,21],[47,22,47,24],[47,25,47,26],[47,27,47,28],[47,29,47,31],[47,17,47,18],[48,2,48,6],[48,7,48,9],[48,10,48,11],[48,12,48,14],[48,15,48,16],[47,2,47,6],[47,7,47,9],[47,10,47,11],[47,12,47,14],[47,15,47,16],[50,17,50,18],[50,19,50,21],[50,22,50,24],[50,25,50,26],[50,27,50,28],[50,29,50,31],[49,19,49,21],[49,22,49,24],[49,25,49,26],[49,27,49,28],[49,29,49,31],[49,17,49,18],[50,2,50,6],[50,7,50,9],[50,10,50,11],[50,12,50,14],[50,15,50,16],[49,2,49,6],[49,7,49,9],[49,10,49,11],[49,12,49,14],[49,15,49,16],[59,2,59,31],[60,2,60,5],[60,6,60,9],[60,10,60,12],[60,13,60,15],[60,16,60,17],[60,18,60,19],[60,20,60,21],[60,22,60,24],[60,25,60,26],[60,27,60,28],[60,29,60,31],[53,2,53,31],[54,2,54,31],[55,2,55,31],[56,2,56,31],[57,2,57,31],[58,2,58,31],[51,19,51,21],[51,22,51,24],[51,25,51,26],[51,27,51,28],[51,29,51,31],[52,2,52,30],[51,2,51,6],[51,7,51,9],[51,10,51,11],[51,12,51,14],[51,15,51,16],[51,17,51,18],[61,25,61,26],[61,27,61,28],[61,29,61,31],[62,2,62,5],[62,6,62,9],[62,10,62,12],[62,13,62,15],[62,16,62,17],[62,18,62,19],[62,20,62,21],[61,2,61,5],[61,6,61,9],[61,10,61,12],[61,13,61,15],[61,16,61,17],[61,18,61,19],[61,20,61,21],[61,22,61,24],[62,22,62,24],[62,25,62,26],[62,27,62,28],[62,29,62,31],[63,20,63,21],[63,22,63,24],[63,25,63,26],[63,27,63,28],[63,29,63,31],[64,2,64,5],[64,6,64,9],[64,10,64,12],[64,13,64,15],[64,16,64,17],[63,2,63,5],[63,6,63,9],[63,10,63,12],[63,13,63,15],[63,16,63,17],[63,18,63,19],[64,18,64,19],[64,20,64,21],[64,22,64,24],[64,25,64,26],[64,27,64,28],[64,29,64,31],[65,20,65,21],[65,22,65,24],[65,25,65,26],[65,27,65,28],[65,29,65,31],[66,2,66,5],[66,6,66,9],[66,10,66,12],[66,13,66,15],[66,16,66,17],[65,2,65,5],[65,6,65,9],[65,10,65,12],[65,13,65,15],[65,16,65,17],[65,18,65,19],[66,18,66,19],[66,20,66,21],[66,22,66,24],[66,25,66,26],[66,27,66,28],[66,29,66,31],[73,2,73,31],[74,2,74,31],[75,2,75,31],[76,2,76,31],[77,2,77,31],[78,2,78,31],[67,2,67,30],[68,2,68,31],[69,2,69,31],[70,2,70,31],[71,2,71,31],[72,2,72,31],[82,12,82,16],[82,17,82,19],[82,20,82,22],[82,23,82,28],[82,29,82,31],[81,2,81,7],[81,8,81,11],[81,12,81,16],[81,17,81,19],[81,20,81,22],[81,23,81,28],[79,2,79,31],[80,2,80,7],[80,8,80,11],[80,12,80,16],[80,17,80,19],[80,20,80,22],[80,23,80,28],[80,29,80,31],[89,2,89,31],[83,29,83,31],[84,2,84,30],[85,2,85,31],[86,2,86,31],[87,2,87,31],[88,2,88,31],[83,2,83,7],[83,8,83,11],[83,12,83,16],[83,17,83,19],[83,20,83,22],[83,23,83,28],[81,29,81,31],[82,2,82,7],[82,8,82,11],[90,2,90,31],[91,2,91,31],[92,2,92,31],[93,2,93,9],[93,10,93,14],[93,15,93,17],[93,18,93,22],[93,23,93,25],[93,26,93,28],[93,29,93,31],[96,2,96,9],[96,10,96,14],[96,15,96,17],[96,18,96,22],[96,23,96,25],[96,26,96,28],[96,29,96,31],[95,2,95,9],[95,10,95,14],[95,15,95,17],[95,18,95,22],[95,23,95,25],[95,26,95,28],[94,2,94,9],[94,10,94,14],[94,15,94,17],[94,18,94,22],[94,23,94,25],[94,26,94,28],[94,29,94,31],[105,2,105,31],[106,2,106,31],[97,29,97,31],[98,2,98,9],[98,10,98,14],[98,15,98,17],[98,18,98,22],[98,23,98,25],[98,26,98,28],[98,29,98,31],[97,2,97,9],[97,10,97,14],[97,15,97,17],[97,18,97,22],[97,23,97,25],[97,26,97,28],[95,29,95,31],[107,2,107,31],[108,2,108,31],[109,2,109,31],[110,2,110,7],[110,8,110,10],[110,11,110,13],[110,14,110,16],[110,17,110,21],[99,2,99,30],[100,2,100,31],[101,2,101,31],[102,2,102,31],[103,2,103,31],[104,2,104,31],[110,22,110,24],[110,25,110,26],[110,27,110,28],[110,29,110,31],[111,25,111,26],[111,27,111,28],[111,29,111,31],[112,2,112,7],[112,8,112,10],[112,11,112,13],[112,14,112,16],[112,17,112,21],[112,22,112,24],[112,25,112,26],[111,2,111,7],[111,8,111,10],[111,11,111,13],[111,14,111,16],[111,17,111,21],[111,22,111,24],[112,27,112,28],[112,29,112,31],[113,29,113,31],[114,2,114,30],[115,2,115,31],[116,2,116,31],[117,2,117,31],[118,2,118,31],[113,2,113,7],[113,8,113,10],[113,11,113,13],[113,14,113,16],[113,17,113,21],[113,22,113,24],[113,25,113,26],[113,27,113,28],[129,2,129,6],[129,7,129,9],[129,10,129,14],[129,15,129,17],[129,18,129,21],[129,22,129,25],[129,26,129,28],[129,29,129,31],[119,2,119,31],[120,2,120,31],[121,2,121,31],[122,2,122,31],[123,2,123,31],[124,2,124,31],[125,2,125,31],[126,2,126,31],[127,2,127,31],[128,2,128,6],[128,7,128,9],[128,10,128,14],[128,15,128,17],[128,18,128,21],[128,22,128,25],[128,26,128,28],[128,29,128,31],[132,26,132,28],[132,29,132,31],[133,2,133,6],[133,7,133,9],[133,10,133,14],[133,15,133,17],[133,18,133,21],[133,22,133,25],[133,26,133,28],[133,29,133,31],[132,2,132,6],[132,7,132,9],[132,10,132,14],[132,15,132,17],[132,18,132,21],[132,22,132,25],[130,26,130,28],[130,29,130,31],[131,2,131,6],[131,7,131,9],[131,10,131,14],[131,15,131,17],[131,18,131,21],[131,22,131,25],[131,26,131,28],[131,29,131,31],[130,2,130,6],[130,7,130,9],[130,10,130,14],[130,15,130,17],[130,18,130,21],[130,22,130,25],[136,26,136,28],[136,29,136,31],[137,2,137,6],[137,7,137,9],[137,10,137,14],[137,15,137,17],[137,18,137,21],[137,22,137,25],[137,26,137,28],[137,29,137,31],[136,2,136,6],[136,7,136,9],[136,10,136,14],[136,15,136,17],[136,18,136,21],[136,22,136,25],[134,26,134,28],[134,29,134,31],[135,2,135,6],[135,7,135,9],[135,10,135,14],[135,15,135,17],[135,18,135,21],[135,22,135,25],[135,26,135,28],[135,29,135,31],[134,2,134,6],[134,7,134,9],[134,10,134,14],[134,15,134,17],[134,18,134,21],[134,22,134,25],[140,26,140,28],[140,29,140,31],[141,2,141,6],[141,7,141,9],[141,10,141,14],[141,15,141,17],[141,18,141,21],[141,22,141,25],[141,26,141,28],[141,29,141,31],[140,2,140,6],[140,7,140,9],[140,10,140,14],[140,15,140,17],[140,18,140,21],[140,22,140,25],[138,26,138,28],[138,29,138,31],[139,2,139,6],[139,7,139,9],[139,10,139,14],[139,15,139,17],[139,18,139,21],[139,22,139,25],[139,26,139,28],[139,29,139,31],[138,2,138,6],[138,7,138,9],[138,10,138,14],[138,15,138,17],[138,18,138,21],[138,22,138,25],[150,2,150,31],[151,2,151,31],[152,2,152,31],[153,2,153,9],[153,10,153,17],[153,18,153,23],[153,24,153,28],[153,29,153,31],[144,2,144,30],[145,2,145,31],[146,2,146,31],[147,2,147,31],[148,2,148,31],[149,2,149,31],[142,26,142,28],[142,29,142,31],[143,2,143,6],[143,7,143,9],[143,10,143,14],[143,15,143,17],[143,18,143,21],[143,22,143,25],[143,26,143,28],[143,29,143,31],[142,2,142,6],[142,7,142,9],[142,10,142,14],[142,15,142,17],[142,18,142,21],[142,22,142,25],[157,2,157,9],[157,10,157,17],[157,18,157,23],[157,24,157,28],[157,29,157,31],[158,2,158,9],[158,10,158,17],[158,18,158,23],[158,24,158,28],[158,29,158,31],[156,2,156,9],[156,10,156,17],[156,18,156,23],[156,24,156,28],[156,29,156,31],[154,2,154,9],[154,10,154,17],[154,18,154,23],[154,24,154,28],[154,29,154,31],[155,2,155,9],[155,10,155,17],[155,18,155,23],[155,24,155,28],[155,29,155,31],[171,2,171,31],[172,2,172,8],[172,9,172,13],[172,14,172,19],[172,20,172,24],[172,25,172,28],[172,29,172,31],[165,2,165,31],[166,2,166,31],[167,2,167,31],[168,2,168,31],[169,2,169,31],[170,2,170,31],[159,2,159,30],[160,2,160,31],[161,2,161,31],[162,2,162,31],[163,2,163,31],[164,2,164,31],[175,2,175,8],[175,9,175,13],[175,14,175,19],[175,20,175,24],[175,25,175,28],[175,29,175,31],[174,2,174,8],[174,9,174,13],[174,14,174,19],[174,20,174,24],[174,25,174,28],[174,29,174,31],[173,2,173,8],[173,9,173,13],[173,14,173,19],[173,20,173,24],[173,25,173,28],[173,29,173,31],[176,2,176,8],[176,9,176,13],[176,14,176,19],[176,20,176,24],[176,25,176,28],[176,29,176,31],[179,2,179,8],[179,9,179,13],[179,14,179,19],[179,20,179,24],[179,25,179,28],[179,29,179,31],[178,2,178,8],[178,9,178,13],[178,14,178,19],[178,20,178,24],[178,25,178,28],[178,29,178,31],[177,2,177,8],[177,9,177,13],[177,14,177,19],[177,20,177,24],[177,25,177,28],[177,29,177,31],[192,2,192,31],[193,2,193,31],[194,2,194,31],[195,2,195,7],[195,8,195,10],[195,11,195,13],[195,14,195,18],[195,19,195,24],[195,25,195,28],[195,29,195,31],[186,2,186,31],[187,2,187,31],[188,2,188,31],[189,2,189,31],[190,2,190,31],[191,2,191,31],[180,2,180,30],[181,2,181,31],[182,2,182,31],[183,2,183,31],[184,2,184,31],[185,2,185,31],[204,2,204,31],[205,2,205,31],[206,2,206,31],[207,2,207,31],[208,2,208,8],[208,9,208,13],[208,14,208,17],[208,18,208,22],[208,23,208,26],[208,27,208,28],[208,29,208,31],[198,2,198,30],[199,2,199,31],[200,2,200,31],[201,2,201,31],[202,2,202,31],[203,2,203,31],[196,29,196,31],[197,2,197,7],[197,8,197,10],[197,11,197,13],[197,14,197,18],[197,19,197,24],[197,25,197,28],[197,29,197,31],[196,2,196,7],[196,8,196,10],[196,11,196,13],[196,14,196,18],[196,19,196,24],[196,25,196,28],[210,29,210,31],[211,2,211,8],[211,9,211,13],[211,14,211,17],[211,18,211,22],[211,23,211,26],[211,27,211,28],[211,29,211,31],[210,2,210,8],[210,9,210,13],[210,14,210,17],[210,18,210,22],[210,23,210,26],[210,27,210,28],[209,2,209,8],[209,9,209,13],[209,14,209,17],[209,18,209,22],[209,23,209,26],[209,27,209,28],[209,29,209,31],[214,29,214,31],[215,2,215,8],[215,9,215,13],[215,14,215,17],[215,18,215,22],[215,23,215,26],[215,27,215,28],[215,29,215,31],[214,2,214,8],[214,9,214,13],[214,14,214,17],[214,18,214,22],[214,23,214,26],[214,27,214,28],[212,29,212,31],[213,2,213,8],[213,9,213,13],[213,14,213,17],[213,18,213,22],[213,23,213,26],[213,27,213,28],[213,29,213,31],[212,2,212,8],[212,9,212,13],[212,14,212,17],[212,18,212,22],[212,23,212,26],[212,27,212,28],[228,2,228,31],[229,2,229,31],[230,2,230,5],[230,6,230,9],[230,10,230,13],[230,14,230,16],[230,17,230,19],[230,20,230,23],[230,24,230,26],[230,27,230,28],[230,29,230,31],[222,2,222,31],[223,2,223,31],[224,2,224,31],[225,2,225,31],[226,2,226,31],[227,2,227,31],[216,29,216,31],[217,2,217,30],[218,2,218,31],[219,2,219,31],[220,2,220,31],[221,2,221,31],[216,2,216,8],[216,9,216,13],[216,14,216,17],[216,18,216,22],[216,23,216,26],[216,27,216,28],[232,24,232,26],[232,27,232,28],[232,29,232,31],[233,2,233,5],[233,6,233,9],[233,10,233,13],[233,14,233,16],[233,17,233,19],[233,20,233,23],[233,24,233,26],[232,2,232,5],[232,6,232,9],[232,10,232,13],[232,14,232,16],[232,17,232,19],[232,20,232,23],[233,27,233,28],[233,29,233,31],[231,2,231,5],[231,6,231,9],[231,10,231,13],[231,14,231,16],[231,17,231,19],[231,20,231,23],[231,24,231,26],[231,27,231,28],[231,29,231,31],[234,29,234,31],[235,2,235,5],[235,6,235,9],[235,10,235,13],[235,14,235,16],[235,17,235,19],[235,20,235,23],[235,24,235,26],[235,27,235,28],[235,29,235,31],[234,2,234,5],[234,6,234,9],[234,10,234,13],[234,14,234,16],[234,17,234,19],[234,20,234,23],[234,24,234,26],[234,27,234,28],[240,2,240,31],[241,2,241,31],[242,2,242,31],[243,2,243,31],[244,2,244,31],[245,2,245,31],[236,24,236,26],[236,27,236,28],[236,29,236,31],[237,2,237,30],[238,2,238,31],[239,2,239,31],[236,2,236,5],[236,6,236,9],[236,10,236,13],[236,14,236,16],[236,17,236,19],[236,20,236,23],[251,2,251,10],[251,11,251,18],[251,19,251,25],[251,26,251,28],[251,29,251,31],[252,2,252,10],[252,11,252,18],[252,19,252,25],[252,26,252,28],[252,29,252,31],[246,2,246,31],[247,2,247,31],[248,2,248,31],[249,2,249,31],[250,2,250,10],[250,11,250,18],[250,19,250,25],[250,26,250,28],[250,29,250,31],[264,2,264,10],[264,11,264,16],[264,17,264,22],[264,23,264,28],[264,29,264,31],[265,2,265,10],[265,11,265,16],[265,17,265,22],[265,23,265,28],[265,29,265,31],[255,2,255,31],[257,2,257,31],[258,2,258,31],[259,2,259,31],[262,2,262,31],[263,2,263,31],[253,2,253,10],[253,11,253,18],[253,19,253,25],[253,26,253,28],[253,29,253,31],[254,2,254,30],[260,2,260,31],[268,2,268,10],[268,11,268,16],[268,17,268,22],[268,23,268,28],[268,29,268,31],[269,2,269,10],[269,11,269,16],[269,17,269,22],[269,23,269,28],[269,29,269,31],[266,2,266,10],[266,11,266,16],[266,17,266,22],[266,23,266,28],[266,29,266,31],[267,2,267,10],[267,11,267,16],[267,17,267,22],[267,23,267,28],[267,29,267,31],[282,2,282,9],[282,10,282,13],[282,14,282,19],[282,20,282,23],[282,24,282,28],[282,29,282,31],[276,2,276,31],[277,2,277,31],[278,2,278,31],[279,2,279,31],[280,2,280,31],[281,2,281,31],[270,2,270,30],[271,2,271,31],[272,2,272,31],[273,2,273,31],[274,2,274,31],[275,2,275,31],[285,2,285,9],[285,10,285,13],[285,14,285,19],[285,20,285,23],[285,24,285,28],[285,29,285,31],[284,2,284,9],[284,10,284,13],[284,14,284,19],[284,20,284,23],[284,24,284,28],[284,29,284,31],[283,2,283,9],[283,10,283,13],[283,14,283,19],[283,20,283,23],[283,24,283,28],[283,29,283,31]]}
[]
[null,null,null,null,null,null,null,null,null,null,null,null,null,null,null,null,null,null,null,null,null,null,null,null,null,null,null,null,null,null,null,null,null,"Hide"]
[null,null,"HVAC",null,null,null,null,null,null,null,null,null,null,null,null,null,null,null,null,null,null,null,null,null,null,null,null,null,null,null,null,null,null,null,null,null,null,"NA"]
[null,null,"Instructions: Please first complete the HVAC Schedule and Set Points in Step 1. Then select the proposed measures and complete the required fields for the selected measures. Highlighted fields are required in order for the application to be considered 'Complete'.",null,null,null,null,null,null,null,null,null,null,null,null,null,null,null,null,null,null,null,null,null,null,null,null,null,null,null,null,null,null,null,null,null,null,"01:00:00"]
[null,null,null,null,null,null,null,null,null,null,null,null,null,null,null,null,null,null,null,null,null,null,null,null,null,null,null,null,null,null,null,null,null,null,null,null,null,"02:00:00"]
[null,null,null,null,null,null,null,null,null,null,null,null,null,null,null,null,null,null,null,null,null,null,null,null,null,null,null,null,null,null,null,null,null,null,null,null,null,"03:00:00"]
[null,null,"Refer to the Equipment Efficiency Tables tab to determine if your equipment meets the required minimum efficiencies.",null,null,null,null,null,null,null,null,null,null,null,null,null,null,null,null,null,null,null,null,null,null,null,null,null,null,null,null,null,null,null,null,null,null,"04:00:00"]
[null,null,"Step 1: HVAC Schedule and Set Points",null,null,null,null,null,null,null,null,null,null,null,null,null,null,null,null,null,null,null,null,null,null,null,null,null,null,null,null,null,null,null,null,null,null,"05:00:00"]
[null,null,"Operating Schedule",null,null,null,null,null,null,null,null,null,null,null,null,null,null,null,null,"Temperature Set Points",null,null,null,null,null,null,null,null,null,null,null,null,null,null,null,null,null,"06:00:00"]
[null,null,"Day of the Week",null,null,null,null,null,null,null,"Start Time",null,null,null,"End Time",null,null,null,null,"Occupied Cooling",null,null,null,null,null,null,null,null,null,null,null,null,null,null,{"$f":"IFERROR(IF(AND($O$11<>\"\",$K$11<>\"\"),365/7*5*24*($O$11-$K$11),0),0)","v":0},null,null,"07:00:00"]
[null,null,"Monday - Friday",null,null,null,null,null,null,null,null,null,null,null,null,null,null,null,null,"Unoccupied Cooling",null,null,null,null,null,null,null,null,null,null,null,null,null,null,{"$f":"IFERROR(IF(AND($O$12<>\"\",$K$12<>\"\"),365/7*24*($O$12-$K$12),0),0)","v":0},{"$f":"SUM($AI$10:$AI$12)","v":0},null,"08:00:00"]
[null,null,"Saturday",null,null,null,null,null,null,null,null,null,null,null,null,null,null,null,null,"Occupied Heating",null,null,null,null,null,null,null,null,null,null,null,null,null,null,{"$f":"IFERROR(IF(AND(AND($O13<>\"\",$K13<>\"\"),$O13>=$K13),365/7*24*($O13-$K13),0),0)","v":0},null,null,"09:00:00"]
[null,null,"Sunday",null,null,null,null,null,null,null,null,null,null,null,null,null,null,null,null,"Unoccupied Heating",null,null,null,null,null,null,null,null,null,null,null,null,null,null,null,null,null,"10:00:00"]
[null,null,"Step 2: Select Measures:",null,null,null,null,null,null,null,null,null,null,null,null,null,null,null,null,null,null,null,null,null,null,null,null,null,null,null,null,null,null,null,null,null,null,"11:00:00"]
[null,null,"Unitary Air Conditioners and Heat Pumps",null,null,null,null,null,null,null,null,null,null,null,null,null,null,null,null,null,null,null,null,null,null,null,null,null,null,null,null,null,null,null,null,null,null,"12:00:00"]
[null,null,"Rebate: ",null,null,null,null,null,null,null,null,null,null,null,null,null,null,null,null,null,null,null,null,null,null,null,null,null,null,null,null,null,null,null,null,null,null,"13:00:00"]
[null,null,"- Air-Cooled Unitary Air Conditioners and Heat Pumps: Tier 1: $60.00 per Ton & Tier 2: $85.00 per Ton",null,null,null,null,null,null,null,null,null,null,null,null,null,null,null,null,null,null,null,null,null,null,null,null,null,null,null,null,null,null,null,null,null,null,"14:00:00"]
[null,null,"- Air-Cooled Unitary Heat Pumps: Tier 1: $110.00 per Ton & Tier 2: $135.00 per Ton",null,null,null,null,null,null,null,null,null,null,null,null,null,null,null,null,null,null,null,null,null,null,null,null,null,null,null,null,null,null,null,null,null,null,"15:00:00"]
[null,null,"- Water-Cooled Unitary Air Conditioners and Heat Pumps: $75.00 per Ton",null,null,null,null,null,null,null,null,null,null,null,null,null,null,null,null,null,null,null,null,null,null,null,null,null,null,null,null,null,null,null,null,null,null,"16:00:00"]
[null,null,"Eligibility Requirements: ",null,null,null,null,null,null,null,null,null,null,null,null,null,null,null,null,null,null,null,null,null,null,null,null,null,null,null,null,null,null,null,null,null,null,"17:00:00"]
[null,null,"1. Air-Cooled Unitary Air Conditioners (AC) and Heat Pumps (HP): ",null,null,null,null,null,null,null,null,null,null,null,null,null,null,null,null,null,null,null,null,null,null,null,null,null,null,null,null,null,null,null,null,null,null,"18:00:00"]
[null,null,"1. Window, room air conditioners, multi-split VRF systems >5 tons, and air-rotation systems are not eligible. Multi-split VRF systems <65,000 BTU/h may be qualified as unitary equipment split air-conditioners or heat pumps.",null,null,null,null,null,null,null,null,null,null,null,null,null,null,null,null,null,null,null,null,null,null,null,null,null,null,null,null,null,null,null,null,null,null,"19:00:00"]
[null,null,"2. Rebates will be paid on a tiered efficiency structure according to the AHRI size and efficiency of the equipment.",null,null,null,null,null,null,null,null,null,null,null,null,null,null,null,null,null,null,null,null,null,null,null,null,null,null,null,null,null,null,null,null,null,null,"20:00:00"]
[null,null,"3. Rebates will be paid for highest efficiency tier for which the unit qualifies.",null,null,null,null,null,null,null,null,null,null,null,null,null,null,null,null,null,null,null,null,null,null,null,null,null,null,null,null,null,null,null,"AC - Package","Packaged Air-Conditioner",null,"21:00:00"]
[null,null,"4. Air Conditioners must be air-cooled and meet the efficiencies listed in Table 1.",null,null,null,null,null,null,null,null,null,null,null,null,null,null,null,null,null,null,null,null,null,null,null,null,null,null,null,null,null,null,null,"AC - Split","Split Air-Conditioner",null,"22:00:00"]
[null,null,"5. Heat pumps must meet the requirements and efficiencies listed in Table 2.",null,null,null,null,null,null,null,null,null,null,null,null,null,null,null,null,null,null,null,null,null,null,null,null,null,null,null,null,null,null,null,"HP - Package","Packaged Heat Pump",null,"23:00:00"]
[null,null,"6. Equipment must use a minimum ozone-depleting refrigerant.",null,null,null,null,null,null,null,null,null,null,null,null,null,null,null,null,null,null,null,null,null,null,null,null,null,null,null,null,null,null,null,"HP - Split","Split Heat Pump",null,1]
[]
[null,null,"2. Water-Cooled Unitary Air Conditioners (AC) and Heat Pumps (HP):",null,null,null,null,null,null,null,null,null,null,null,null,null,null,null,null,null,null,null,null,null,null,null,null,null,null,null,null,null,null,null,"Air-Cooled","Electric Resistance"]
[null,null,"1. Must be a water or evaporative cooled air conditioner or a water-source heat pump.",null,null,null,null,null,null,null,null,null,null,null,null,null,null,null,null,null,null,null,null,null,null,null,null,null,null,null,null,null,null,null,"Water-Cooled","Gas"]
[null,null,"2. Must be rated at AHRI Standard Rating Conditions.",null,null,null,null,null,null,null,null,null,null,null,null,null,null,null,null,null,null,null,null,null,null,null,null,null,null,null,null,null,null,null,"Evap-Cooled","Heat Pump"]
[null,null,"3. Must meet or exceed the requirements and efficiencies listed in Table 3.",null,null,null,null,null,null,null,null,null,null,null,null,null,null,null,null,null,null,null,null,null,null,null,null,null,null,null,null,null,null,null,"Air-Cooled","Other"]
[null,null,"4. Equipment must use a minimum ozone-depleting refrigerant.",null,null,null,null,null,null,null,null,null,null,null,null,null,null,null,null,null,null,null,null,null,null,null,null,null,null,null,null,null,null,null,"Water-Cooled","None"]
[null,null,"The following are required items that must be submitted along with the completed non-lighting application:"]
[null,null,"1. Dated invoice/payment application."]
[null,null,"2. Manufacturer's equipment specification sheet documenting the efficiency or AHRI reference numbers."]
[null,null,"Manufacture/ Model",null,null,null,null,"Unit / System Type",null,null,"Heat Reject.",null,"Heating Type",null,null,"AHRI Size (Btu/h)",null,"SEER / IEER",null,"EER",null,null,"HSPF / COP 1",null,null,"COP 2",null,"Qty",null,"Rebate",null,null,null,null,null,null,null,null,null,"List1","List2","List3","Size","Input2","Input2","Input3","Input4","Qty","Notes"]
[null,null,null,null,null,null,null,null,null,null,null,null,null,null,null,null,null,null,null,null,null,null,null,null,null,null,null,null,null,null,null,null,null,{"$f":"COUNTA($C38:$AF38)>0","v":false},null,null,null,null,"     Unitary HVAC Equipment",{"$f":"VLOOKUP($H38,$AI$24:$AJ$27,2,FALSE)","v":{"$error":"#N/A"}},{"$f":"K38","v":0},{"$f":"M38","v":0},{"$f":"P38","v":0},{"$f":"S38","v":0},{"$f":"T38","v":0},{"$f":"W38","v":0},{"$f":"Z38","v":0},{"$f":"AB38","v":0},{"$f":"C38","v":0}]
[null,null,null,null,null,null,null,null,null,null,null,null,null,null,null,null,null,null,null,null,null,null,null,null,null,null,null,null,null,null,null,null,null,false,null,null,null,null,"     Unitary HVAC Equipment",{"$error":"#N/A"},0,0,0,0,0,0,0,0,0]
[null,null,null,null,null,null,null,null,null,null,null,null,null,null,null,null,null,null,null,null,null,null,null,null,null,null,null,null,null,null,null,null,null,false,null,null,null,null,"     Unitary HVAC Equipment",{"$error":"#N/A"},0,0,0,0,0,0,0,0,0]
[null,null,null,null,null,null,null,null,null,null,null,null,null,null,null,null,null,null,null,null,null,null,null,null,null,null,null,null,null,null,null,null,null,false,null,null,null,null,"     Unitary HVAC Equipment",{"$error":"#N/A"},0,0,0,0,0,0,0,0,0]
[null,null,null,null,null,null,null,null,null,null,null,null,null,null,null,null,null,null,null,null,null,null,null,null,null,null,null,null,null,null,null,null,null,false,null,null,null,null,"     Unitary HVAC Equipment",{"$error":"#N/A"},0,0,0,0,0,0,0,0,0]
[null,null,null,null,null,null,null,null,null,null,null,null,null,null,null,null,null,null,null,null,null,null,null,null,null,null,null,null,null,null,null,null,null,false,null,null,null,null,"     Unitary HVAC Equipment",{"$error":"#N/A"},0,0,0,0,0,0,0,0,0]
[null,null,null,null,null,null,null,null,null,null,null,null,null,null,null,null,null,null,null,null,null,null,null,null,null,null,null,null,null,null,null,null,null,false,null,null,null,null,"     Unitary HVAC Equipment",{"$error":"#N/A"},0,0,0,0,0,0,0,0,0]
[null,null,null,null,null,null,null,null,null,null,null,null,null,null,null,null,null,null,null,null,null,null,null,null,null,null,null,null,null,null,null,null,null,false,null,null,null,null,"     Unitary HVAC Equipment",{"$error":"#N/A"},0,0,0,0,0,0,0,0,0]
[null,null,null,null,null,null,null,null,null,null,null,null,null,null,null,null,null,null,null,null,null,null,null,null,null,null,null,null,null,null,null,null,null,false,null,null,null,null,"     Unitary HVAC Equipment",{"$error":"#N/A"},0,0,0,0,0,0,0,0,0]
[null,null,null,null,null,null,null,null,null,null,null,null,null,null,null,null,null,null,null,null,null,null,null,null,null,null,null,null,null,null,null,null,null,false,null,null,null,null,"     Unitary HVAC Equipment",{"$error":"#N/A"},0,0,0,0,0,0,0,0,0]
[null,null,null,null,null,null,null,null,null,null,null,null,null,null,null,null,null,null,null,null,null,null,null,null,null,null,null,null,null,null,null,null,null,false,null,null,null,null,"     Unitary HVAC Equipment",{"$error":"#N/A"},0,0,0,0,0,0,0,0,0]
[null,null,null,null,null,null,null,null,null,null,null,null,null,null,null,null,null,null,null,null,null,null,null,null,null,null,null,null,null,null,null,null,null,false,null,null,null,null,"     Unitary HVAC Equipment",{"$error":"#N/A"},0,0,0,0,0,0,0,0,0]
[null,null,null,null,null,null,null,null,null,null,null,null,null,null,null,null,null,null,null,null,null,null,null,null,null,null,null,null,null,null,null,null,null,false,null,null,null,null,"     Unitary HVAC Equipment",{"$error":"#N/A"},0,0,0,0,0,0,0,0,0]
[null,null,null,null,null,null,null,null,null,null,null,null,null,null,null,null,null,null,null,null,null,null,null,null,null,null,null,null,null,null,null,null,null,false,null,null,null,null,"     Unitary HVAC Equipment",{"$error":"#N/A"},0,0,0,0,0,0,0,0,0]
[null,null,null,null,null,null,null,null,null,null,null,null,null,null,null,null,null,null,null,null,null,null,null,null,null,null,null,null,null,null,null,null,null,false,null,null,null,null,"     Unitary HVAC Equipment",{"$error":"#N/A"},0,0,0,0,0,0,0,0,0]
[null,null,"Multi-Split VRF System"]
[null,null,"Rebate:  $75.00 per Ton"]
[null,null,"Eligibility Requirements: ",null,null,null,null,null,null,null,null,null,null,null,null,null,null,null,null,null,null,null,null,null,null,null,null,null,null,null,null,null,null,null,"Air Conditioner","Multi-Split A/C"]
[null,null,"1. Variable refrigerant air conditioner or heat pump systems must be rated at ANSI/AHRI 1230-2013 standard performance conditions. Smaller units <65,000 Btu/h may qualify under the Unitary Equipment Split Air-Conditioner/Heat Pump measure.",null,null,null,null,null,null,null,null,null,null,null,null,null,null,null,null,null,null,null,null,null,null,null,null,null,null,null,null,null,null,null,"Heat Pump","Multi-Split HP"]
[null,null,"2. Must meet or exceed 2016 CEE Tier 1 cooling and heating efficiency shown in Table 10."]
[null,null,"The following are required items that must be submitted along with the completed non-lighting application:",null,null,null,null,null,null,null,null,null,null,null,null,null,null,null,null,null,null,null,null,null,null,null,null,null,null,null,null,null,null,null,"Air-Cooled"]
[null,null,"1. Dated invoice/payment application.",null,null,null,null,null,null,null,null,null,null,null,null,null,null,null,null,null,null,null,null,null,null,null,null,null,null,null,null,null,null,null,"Air-Cooled"]
[null,null,"2. Manufacturer's equipment specification sheet documenting the efficiency or AHRI reference numbers.",null,null,null,null,null,null,null,null,null,null,null,null,null,null,null,null,null,null,null,null,null,null,null,null,null,null,null,null,null,null,null,"Water-Cooled"]
[null,null,"Manufacture/ Model",null,null,null,"Unit / System Type",null,null,null,"Heat Rejection",null,null,"AHRI Size (Btu/h)",null,null,"Heat Recovery?",null,"SEER / IEER",null,"EER",null,"HSPF / COP",null,null,"COP 2",null,"Qty",null,"Rebate",null,null,null,null,null,null,null,null,null,"List1","List2","List3","Size","Input1","Input2","Input3","Input4","Qty","Notes"]
[null,null,null,null,null,null,null,null,null,null,null,null,null,null,null,null,null,null,null,null,null,null,null,null,null,null,null,null,null,null,null,null,null,{"$f":"COUNTA($C62:$AF62)>0","v":false},null,null,null,null,"     Unitary HVAC Equipment",{"$f":"VLOOKUP($G62,$AI$55:$AJ$56,2,FALSE)&IF(AND($G62=$AI$56,$Q62=\"Yes\"),\" w/ Heat Recovery\",\"\")","v":{"$error":"#N/A"}},{"$f":"K62","v":0},null,{"$f":"N62","v":0},{"$f":"S62","v":0},{"$f":"U62","v":0},{"$f":"W62","v":0},{"$f":"Z62","v":0},{"$f":"AB62","v":0},{"$f":"C62","v":0}]
[null,null,null,null,null,null,null,null,null,null,null,null,null,null,null,null,null,null,null,null,null,null,null,null,null,null,null,null,null,null,null,null,null,false,null,null,null,null,"     Unitary HVAC Equipment",{"$error":"#N/A"},0,null,0,{"$f":"S63","v":0},0,0,0,0,0]
[null,null,null,null,null,null,null,null,null,null,null,null,null,null,null,null,null,null,null,null,null,null,null,null,null,null,null,null,null,null,null,null,null,false,null,null,null,null,"     Unitary HVAC Equipment",{"$error":"#N/A"},0,null,0,0,0,0,0,0,0]
[null,null,null,null,null,null,null,null,null,null,null,null,null,null,null,null,null,null,null,null,null,null,null,null,null,null,null,null,null,null,null,null,null,false,null,null,null,null,"     Unitary HVAC Equipment",{"$error":"#N/A"},0,null,0,0,0,0,0,0,0]
[null,null,null,null,null,null,null,null,null,null,null,null,null,null,null,null,null,null,null,null,null,null,null,null,null,null,null,null,null,null,null,null,null,false,null,null,null,null,"     Unitary HVAC Equipment",{"$error":"#N/A"},0,null,0,0,0,0,0,0,0]
[null,null,null,null,null,null,null,null,null,null,null,null,null,null,null,null,null,null,null,null,null,null,null,null,null,null,null,null,null,null,null,null,null,false,null,null,null,null,"     Unitary HVAC Equipment",{"$error":"#N/A"},0,null,0,0,0,0,0,0,0]
[null,null,"Packaged Terminal Units & Single-Package Vertical Terminal Units"]
[null,null,"Rebate:"]
[null,null,"- Packaged Terminal Units: $40.00 per Ton"]
[null,null,"- Vertical Terminal Units: $75.00 per Ton"]
[null,null,"Eligibility Requirements: "]
[null,null,"1. Packaged Terminal Air-Conditioners & Heat Pumps:"]
[null,null,"1. Must be rated under AHRI standard conditions and meet or exceed the minimum requirements shown in Table 4.",null,null,null,null,null,null,null,null,null,null,null,null,null,null,null,null,null,null,null,null,null,null,null,null,null,null,null,null,null,null,null,"PTAC","Packaged Terminal A/C (PTAC)"]
[null,null,"2. Single-Package Vertical Terminal Air-Conditioners & Heat Pumps:",null,null,null,null,null,null,null,null,null,null,null,null,null,null,null,null,null,null,null,null,null,null,null,null,null,null,null,null,null,null,null,"PTHP","Packaged Terminal HP (PTHP)"]
[null,null,"1. Units ≥65,000 BTUh (5.5 tons) are not eligible.",null,null,null,null,null,null,null,null,null,null,null,null,null,null,null,null,null,null,null,null,null,null,null,null,null,null,null,null,null,null,null,"VTAC","Vertical Terminal A/C (PTAC)"]
[null,null,"2. Must be rated under AHRI (ARI 390) standard conditions and meet or exceed the minimum requirements shown in Table 4.",null,null,null,null,null,null,null,null,null,null,null,null,null,null,null,null,null,null,null,null,null,null,null,null,null,null,null,null,null,null,null,"VTHP","Vertical Terminal HP (PTHP)"]
[null,null,"The following are required items that must be submitted along with the completed non-lighting application:"]
[null,null,"1. Dated invoice/payment application."]
[null,null,"2. Manufacturer's equipment specification sheet documenting the efficiency or AHRI reference numbers."]
[null,null,"Manufacture/Model",null,null,null,null,null,"Unit / System Type",null,null,null,"AHRI Size (Btu/h)",null,null,null,null,"EER",null,null,"COP",null,null,"Quantity",null,null,null,null,null,"Rebate",null,null,null,null,null,null,null,null,null,"List1","List2","List3","Size","Input1","Input2","Input3","Input4","Qty","Notes"]
[null,null,null,null,null,null,null,null,null,null,null,null,null,null,null,null,null,null,null,null,null,null,null,null,null,null,null,null,null,null,null,null,null,{"$f":"COUNTA($C82:$AF82)>0","v":false},null,null,null,null,"     Unitary HVAC Equipment",{"$f":"VLOOKUP(I82,AI74:AJ77,2,FALSE)","v":{"$error":"#N/A"}},null,null,{"$f":"M82","v":0},null,{"$f":"R82","v":0},{"$f":"U82","v":0},null,{"$f":"X82","v":0},{"$f":"C82","v":0}]
[null,null,null,null,null,null,null,null,null,null,null,null,null,null,null,null,null,null,null,null,null,null,null,null,null,null,null,null,null,null,null,null,null,{"$f":"COUNTA($C83:$AF83)>0","v":false},null,null,null,null,"     Unitary HVAC Equipment",{"$f":"VLOOKUP(I83,AI75:AJ78,2,FALSE)","v":{"$error":"#N/A"}},null,null,{"$f":"M83","v":0},null,{"$f":"R83","v":0},{"$f":"U83","v":0},null,{"$f":"X83","v":0},{"$f":"C83","v":0}]
[null,null,null,null,null,null,null,null,null,null,null,null,null,null,null,null,null,null,null,null,null,null,null,null,null,null,null,null,null,null,null,null,null,{"$f":"COUNTA($C84:$AF84)>0","v":false},null,null,null,null,"     Unitary HVAC Equipment",{"$f":"VLOOKUP(I84,AI76:AJ79,2,FALSE)","v":{"$error":"#N/A"}},null,null,{"$f":"M84","v":0},null,{"$f":"R84","v":0},{"$f":"U84","v":0},null,{"$f":"X84","v":0},{"$f":"C84","v":0}]
[null,null,"Evaporative Cooling"]
[null,null,"Rebate:  Direct, Indirect, or Indirect/Direct: $0.06 per CFM",null,null,null,null,null,null,null,null,null,null,null,null,null,null,null,null,null,null,null,null,null,null,null,null,null,null,null,null,null,null,"DEC","Direct"]
[null,null,"Eligibility Requirements: ",null,null,null,null,null,null,null,null,null,null,null,null,null,null,null,null,null,null,null,null,null,null,null,null,null,null,null,null,null,null,"IEC","Indirect"]
[null,null,"1. Installations on non-standalone units are not eligible.",null,null,null,null,null,null,null,null,null,null,null,null,null,null,null,null,null,null,null,null,null,null,null,null,null,null,null,null,null,null,"IDEC","Direct-Indirect"]
[null,null,"2. System components must meet or exceed minimum efficiencies required by ASHRAE 90.1-2013."]
[null,null,"3. (New Construction) Units with fan motors ≥1/4 HP must have a VFD-controlled or ECM supply fan to be rebate eligible. Rebates are not simultaneously available for VFD's where rebates have been paid for Evaporative Cooling equipment."]
[null,null,"The following are required items that must be submitted along with the completed non-lighting application:"]
[null,null,"1. Dated invoice/payment application."]
[null,null,"2. Manufacturer's equipment specification sheet documenting compliance with equipment eligibility."]
[null,null,"Manufacture/Model",null,null,null,null,null,null,null,"Cooler Type?",null,null,null,null,"VFD Fan Motor?",null,null,"Design Flow (CFM)",null,null,null,null,"Fan HP",null,null,"Qty",null,null,"Rebate",null,null,null,null,null,null,null,null,null,"List1","List2","List3","Size","Input1","Input2","Input3","Input4","Qty","Notes"]
[null,null,null,null,null,null,null,null,null,null,null,null,null,null,null,null,null,null,null,null,null,null,null,null,null,null,null,null,null,null,null,null,null,{"$f":"COUNTA($C95:$AF95)>0","v":false},null,null,null,null,"     Direct & Indirect Evaporative Cooler",{"$f":"VLOOKUP($K95,$AH$86:$AI$88,2,FALSE)","v":{"$error":"#N/A"}},{"$f":"P95","v":0},null,{"$f":"S95","v":0},{"$f":"X95","v":0},null,null,null,{"$f":"AA95","v":0},{"$f":"C95","v":0}]
[null,null,null,null,null,null,null,null,null,null,null,null,null,null,null,null,null,null,null,null,null,null,null,null,null,null,null,null,null,null,null,null,null,{"$f":"COUNTA($C96:$AF96)>0","v":false},null,null,null,null,"     Direct & Indirect Evaporative Cooler",{"$f":"VLOOKUP($K96,$AH$86:$AI$88,2,FALSE)","v":{"$error":"#N/A"}},{"$f":"P96","v":0},null,{"$f":"S96","v":0},{"$f":"X96","v":0},null,null,null,{"$f":"AA96","v":0},{"$f":"C96","v":0}]
[null,null,null,null,null,null,null,null,null,null,null,null,null,null,null,null,null,null,null,null,null,null,null,null,null,null,null,null,null,null,null,null,null,{"$f":"COUNTA($C97:$AF97)>0","v":false},null,null,null,null,"     Direct & Indirect Evaporative Cooler",{"$f":"VLOOKUP($K97,$AH$86:$AI$88,2,FALSE)","v":{"$error":"#N/A"}},{"$f":"P97","v":0},null,{"$f":"S97","v":0},0,null,null,null,{"$f":"AA97","v":0},{"$f":"C97","v":0}]
[null,null,null,null,null,null,null,null,null,null,null,null,null,null,null,null,null,null,null,null,null,null,null,null,null,null,null,null,null,null,null,null,null,{"$f":"COUNTA($C98:$AF98)>0","v":false},null,null,null,null,"     Direct & Indirect Evaporative Cooler",{"$f":"VLOOKUP($K98,$AH$86:$AI$88,2,FALSE)","v":{"$error":"#N/A"}},{"$f":"P98","v":0},null,{"$f":"S98","v":0},0,null,null,null,{"$f":"AA98","v":0},{"$f":"C98","v":0}]
[null,null,null,null,null,null,null,null,null,null,null,null,null,null,null,null,null,null,null,null,null,null,null,null,null,null,null,null,null,null,null,null,null,{"$f":"COUNTA($C99:$AF99)>0","v":false},null,null,null,null,"     Direct & Indirect Evaporative Cooler",{"$f":"VLOOKUP($K99,$AH$86:$AI$88,2,FALSE)","v":{"$error":"#N/A"}},{"$f":"P99","v":0},null,{"$f":"S99","v":0},0,null,null,null,{"$f":"AA99","v":0},{"$f":"C99","v":0}]
[null,null,"Chillers"]
[null,null,"Rebate:  $5.00 per Ton, plus an efficiency rebate of $310.00 per Ton per kW/ton unit increase in IPLV efficiency:"]
[null,null,"Chiller Rebate = (Tons * $5/ton) + (Tons * $310 * (Minimum IPLV – Chiller IPLV))"]
[null,null,"Eligibility Requirements: ",null,null,null,null,null,null,null,null,null,null,null,null,null,null,null,null,null,null,null,null,null,null,null,null,null,null,null,null,null,null,"Centrifugal"]
[null,null,"1. Back-up service units are not eligible.",null,null,null,null,null,null,null,null,null,null,null,null,null,null,null,null,null,null,null,null,null,null,null,null,null,null,null,null,null,null,"Reciprocating",null,"Air-Cooled"]
[null,null,"2. Must meet or exceed the minimum AHRI Standard 550/590 IPLV efficiency requirements shown in Table 5.",null,null,null,null,null,null,null,null,null,null,null,null,null,null,null,null,null,null,null,null,null,null,null,null,null,null,null,null,null,null,"Rotary",null,"Water-Cooled"]
[null,null,"3. If the unit has a Variable Frequency Drives (VFD) installed, this must be reflected in the chiller IPLV rating.",null,null,null,null,null,null,null,null,null,null,null,null,null,null,null,null,null,null,null,null,null,null,null,null,null,null,null,null,null,null,"Screw"]
[null,null,"The following are required items that must be submitted along with the completed non-lighting application:",null,null,null,null,null,null,null,null,null,null,null,null,null,null,null,null,null,null,null,null,null,null,null,null,null,null,null,null,null,null,"Scroll"]
[null,null,"1. Dated invoice/payment application."]
[null,null,"2. Manufacturer's equipment specification sheet documenting the Full-Load (100%) and IPLV efficiency ratings.",null,null,null,null,null,null,null,null,null,null,null,null,null,null,null,null,null,null,null,null,null,null,null,null,null,null,null,null,null,null,"Yes"]
[null,null,"3. If the chiller has more than 20% process cooling load, please submit the average annual loading percentage and operating hours.",null,null,null,null,null,null,null,null,null,null,null,null,null,null,null,null,null,null,null,null,null,null,null,null,null,null,null,null,null,null,"No"]
[null,null,"Manufacture/Model",null,null,null,null,null,"Chiller Type",null,null,"Heat Rejection",null,null,"AHRI Chiller Tons",null,null,"VFD?",null,null,null,null,"Full Load kW/ton",null,null,"IPLV\nkW / ton",null,"Qty",null,"Rebate",null,null,null,null,null,null,null,null,null,"List1","List2","List3","Size","Input1","Input2","Input3","Input4","Qty","Notes"]
[null,null,null,null,null,null,null,null,null,null,null,null,null,null,null,null,null,null,null,null,null,null,null,null,null,null,null,null,null,null,null,null,null,{"$f":"COUNTA($C112:$AF112)>0","v":false},null,null,null,null,"     Chiller",{"$f":"I112","v":0},{"$f":"L112","v":0},{"$f":"R112","v":0},{"$f":"O112","v":0},{"$f":"W112","v":0},{"$f":"Z112","v":0},null,null,{"$f":"AB112","v":0},{"$f":"C112","v":0}]
[null,null,null,null,null,null,null,null,null,null,null,null,null,null,null,null,null,null,null,null,null,null,null,null,null,null,null,null,null,null,null,null,null,{"$f":"COUNTA($C113:$AF113)>0","v":false},null,null,null,null,"     Chiller",{"$f":"I113","v":0},{"$f":"L113","v":0},{"$f":"R113","v":0},{"$f":"O113","v":0},{"$f":"W113","v":0},{"$f":"Z113","v":0},null,null,{"$f":"AB113","v":0},{"$f":"C113","v":0}]
[null,null,null,null,null,null,null,null,null,null,null,null,null,null,null,null,null,null,null,null,null,null,null,null,null,null,null,null,null,null,null,null,null,{"$f":"COUNTA($C114:$AF114)>0","v":false},null,null,null,null,"     Chiller",{"$f":"I114","v":0},{"$f":"L114","v":0},{"$f":"R114","v":0},{"$f":"O114","v":0},0,{"$f":"Z114","v":0},null,null,{"$f":"AB114","v":0},{"$f":"C114","v":0}]
[null,null,"Outside Air Economizer",null,null,null,null,null,null,null,null,null,null,null,null,null,null,null,null,null,null,null,null,null,null,null,null,null,null,null,null,null,null,null,"Air-Cooled AC","Air Conditioner","Air-Cooled"]
[null,null,"Rebate:  $75.00 per Ton",null,null,null,null,null,null,null,null,null,null,null,null,null,null,null,null,null,null,null,null,null,null,null,null,null,null,null,null,null,null,null,"Water-Cooled AC","Air Conditioner","Water-Cooled"]
[null,null,"Eligibility Requirements: ",null,null,null,null,null,null,null,null,null,null,null,null,null,null,null,null,null,null,null,null,null,null,null,null,null,null,null,null,null,null,null,"Evap-Cooled AC","Air Conditioner","Evaporatively-Cooled"]
[null,null,"1. 100% outside-air units are not eligible.   ",null,null,null,null,null,null,null,null,null,null,null,null,null,null,null,null,null,null,null,null,null,null,null,null,null,null,null,null,null,null,null,"Air-Cooled HP","Heat Pump","Air-Cooled"]
[null,null,"2. Must be capable of modulating 95% open.",null,null,null,null,null,null,null,null,null,null,null,null,null,null,null,null,null,null,null,null,null,null,null,null,null,null,null,null,null,null,null,"Water-Cooled HP","Heat Pump","Water-Cooled"]
[null,null,"3. (Retrofit) Replacements of existing economizers and HVAC units are eligible. Replacements of existing economizers are not eligible for rebates, unless existing economizers have been non-functioning for more than 2 years.",null,null,null,null,null,null,null,null,null,null,null,null,null,null,null,null,null,null,null,null,null,null,null,null,null,null,null,null,null,null,null,"Air-Cooled Chiller","Chiller","Air-Cooled"]
[null,null,"4. (New Construction) Rebates are not available for economizers that are required by ASHRAE 90.1-2013:",null,null,null,null,null,null,null,null,null,null,null,null,null,null,null,null,null,null,null,null,null,null,null,null,null,null,null,null,null,null,null,"Water-Cooled Chiller","Chiller","Water-Cooled"]
[null,null,"- Air-Conditioners ≥65,000 BTU/H unless unit efficiency meets or exceeds the efficiencies listed in Table 8.",null,null,null,null,null,null,null,null,null,null,null,null,null,null,null,null,null,null,null,null,null,null,null,null,null,null,null,null,null,null,null,"Electric Resistance"]
[null,null,"- Chiller systems must have both a water-side economizer and air-side economizer (Rebates are not simultaneously available) and meet or exceed the efficiencies listed in Table 8.",null,null,null,null,null,null,null,null,null,null,null,null,null,null,null,null,null,null,null,null,null,null,null,null,null,null,null,null,null,null,null,"Gas"]
[null,null,"- Heat Pumps ≥65,000 BTU/H unless unit efficiency meets or exceeds the efficiencies listed in Table 9.",null,null,null,null,null,null,null,null,null,null,null,null,null,null,null,null,null,null,null,null,null,null,null,null,null,null,null,null,null,null,null,"Heat Pump"]
[null,null,"- Computer Room Air-Conditioners (CRAC) ≥135,000 BTU/H.",null,null,null,null,null,null,null,null,null,null,null,null,null,null,null,null,null,null,null,null,null,null,null,null,null,null,null,null,null,null,null,"Other"]
[null,null,"The following are required items that must be submitted along with the completed non-lighting application:",null,null,null,null,null,null,null,null,null,null,null,null,null,null,null,null,null,null,null,null,null,null,null,null,null,null,null,null,null,null,null,"None"]
[null,null,"1. Dated invoice/payment application."]
[null,null,"2. Manufacturer's equipment specification sheet documenting compliance with equipment eligibility."]
[null,null,"Manufacture/Model",null,null,null,null,"Install Location",null,null,"HVAC Equipment Type",null,null,null,null,"Size (Btu/h)",null,null,"Heating Type",null,null,null,"Unit Efficiency",null,null,null,"Qty",null,null,"Rebate",null,null,null,null,null,null,null,null,null,"List1","List2","List3","Size","Input1","Input2","Input3","Input4","Qty","Notes"]
[null,null,null,null,null,null,null,null,null,null,null,null,null,null,null,null,null,null,null,null,null,null,null,null,null,null,null,null,null,null,null,null,null,{"$f":"COUNTA($C130:$AF130)>0","v":false},null,null,null,null,"     Outside-Air Economizer",{"$f":"VLOOKUP($K130,$AI$115:$AK$121,2,FALSE)","v":{"$error":"#N/A"}},{"$f":"VLOOKUP($K130,$AI$115:$AK$121,3,FALSE)","v":{"$error":"#N/A"}},{"$f":"S130","v":0},{"$f":"P130","v":0},{"$f":"W130","v":0},null,null,null,{"$f":"AA130","v":0},{"$f":"H130","v":0}]
[null,null,null,null,null,null,null,null,null,null,null,null,null,null,null,null,null,null,null,null,null,null,null,null,null,null,null,null,null,null,null,null,null,false,null,null,null,null,"     Outside-Air Economizer",{"$error":"#N/A"},{"$error":"#N/A"},0,0,{"$f":"W131","v":0},null,null,null,0,0]
[null,null,null,null,null,null,null,null,null,null,null,null,null,null,null,null,null,null,null,null,null,null,null,null,null,null,null,null,null,null,null,null,null,false,null,null,null,null,"     Outside-Air Economizer",{"$error":"#N/A"},{"$error":"#N/A"},0,0,0,null,null,null,0,0]
[null,null,null,null,null,null,null,null,null,null,null,null,null,null,null,null,null,null,null,null,null,null,null,null,null,null,null,null,null,null,null,null,null,false,null,null,null,null,"     Outside-Air Economizer",{"$error":"#N/A"},{"$error":"#N/A"},0,0,0,null,null,null,0,0]
[null,null,null,null,null,null,null,null,null,null,null,null,null,null,null,null,null,null,null,null,null,null,null,null,null,null,null,null,null,null,null,null,null,false,null,null,null,null,"     Outside-Air Economizer",{"$error":"#N/A"},{"$error":"#N/A"},0,0,0,null,null,null,0,0]
[null,null,null,null,null,null,null,null,null,null,null,null,null,null,null,null,null,null,null,null,null,null,null,null,null,null,null,null,null,null,null,null,null,false,null,null,null,null,"     Outside-Air Economizer",{"$error":"#N/A"},{"$error":"#N/A"},0,0,0,null,null,null,0,0]
[null,null,null,null,null,null,null,null,null,null,null,null,null,null,null,null,null,null,null,null,null,null,null,null,null,null,null,null,null,null,null,null,null,false,null,null,null,null,"     Outside-Air Economizer",{"$error":"#N/A"},{"$error":"#N/A"},0,0,0,null,null,null,0,0]
[null,null,null,null,null,null,null,null,null,null,null,null,null,null,null,null,null,null,null,null,null,null,null,null,null,null,null,null,null,null,null,null,null,false,null,null,null,null,"     Outside-Air Economizer",{"$error":"#N/A"},{"$error":"#N/A"},0,0,0,null,null,null,0,0]
[null,null,null,null,null,null,null,null,null,null,null,null,null,null,null,null,null,null,null,null,null,null,null,null,null,null,null,null,null,null,null,null,null,false,null,null,null,null,"     Outside-Air Economizer",{"$error":"#N/A"},{"$error":"#N/A"},0,0,0,null,null,null,0,0]
[null,null,null,null,null,null,null,null,null,null,null,null,null,null,null,null,null,null,null,null,null,null,null,null,null,null,null,null,null,null,null,null,null,false,null,null,null,null,"     Outside-Air Economizer",{"$error":"#N/A"},{"$error":"#N/A"},0,0,0,null,null,null,0,0]
[null,null,null,null,null,null,null,null,null,null,null,null,null,null,null,null,null,null,null,null,null,null,null,null,null,null,null,null,null,null,null,null,null,false,null,null,null,null,"     Outside-Air Economizer",{"$error":"#N/A"},{"$error":"#N/A"},0,0,0,null,null,null,0,0]
[null,null,null,null,null,null,null,null,null,null,null,null,null,null,null,null,null,null,null,null,null,null,null,null,null,null,null,null,null,null,null,null,null,false,null,null,null,null,"     Outside-Air Economizer",{"$error":"#N/A"},{"$error":"#N/A"},0,0,0,null,null,null,0,0]
[null,null,null,null,null,null,null,null,null,null,null,null,null,null,null,null,null,null,null,null,null,null,null,null,null,null,null,null,null,null,null,null,null,false,null,null,null,null,"     Outside-Air Economizer",{"$error":"#N/A"},{"$error":"#N/A"},0,0,0,null,null,null,0,0]
[null,null,null,null,null,null,null,null,null,null,null,null,null,null,null,null,null,null,null,null,null,null,null,null,null,null,null,null,null,null,null,null,null,false,null,null,null,null,"     Outside-Air Economizer",{"$error":"#N/A"},{"$error":"#N/A"},0,0,0,null,null,null,0,0]
[null,null,null,null,null,null,null,null,null,null,null,null,null,null,null,null,null,null,null,null,null,null,null,null,null,null,null,null,null,null,null,null,null,false,null,null,null,null,"     Outside-Air Economizer",{"$error":"#N/A"},{"$error":"#N/A"},0,0,0,null,null,null,0,0]
[null,null,"Electronically Commutated Motor (ECM)"]
[null,null,"Rebate:   $75.00 per Horsepower (HP)"]
[null,null,"Eligibility Requirements: "]
[null,null,"1. All electronically commutated motors (ECM) >1 HP are ineligible."]
[null,null,"2. Rebates are not simultaneously available for ECM's where rebates have been paid for Unitary HVAC Equipment."]
[null,null,"3. (New Construction) Installations are not eligible."]
[null,null,"The following are required items that must be submitted along with the completed non-lighting application:"]
[null,null,"1. Dated invoice/payment application."]
[null,null,"2. Manufacturer's equipment specification sheet documenting compliance with equipment eligibility."]
[null,null,"Manufacture/Model",null,null,null,null,null,null,null,"Install Location",null,null,null,null,null,null,null,"Motor HP",null,null,null,null,null,"Qty",null,null,null,null,"Rebate",null,null,null,null,null,null,null,null,null,"List1","List2","List3","Size","Input1","Input2","Input3","Input4","Qty","Notes"]
[null,null,null,null,null,null,null,null,null,null,null,null,null,null,null,null,null,null,null,null,null,null,null,null,null,null,null,null,null,null,null,null,null,{"$f":"COUNTA($C155:$AF155)>0","v":false},null,null,null,null,"     HVAC: Other","EC Motor (ECM)",null,null,{"$f":"S155","v":0},null,null,null,null,{"$f":"Y155","v":0},{"$f":"K155","v":0}]
[null,null,null,null,null,null,null,null,null,null,null,null,null,null,null,null,null,null,null,null,null,null,null,null,null,null,null,null,null,null,null,null,null,{"$f":"COUNTA($C156:$AF156)>0","v":false},null,null,null,null,"     HVAC: Other","EC Motor (ECM)",null,null,{"$f":"S156","v":0},null,null,null,null,{"$f":"Y156","v":0},{"$f":"K156","v":0}]
[null,null,null,null,null,null,null,null,null,null,null,null,null,null,null,null,null,null,null,null,null,null,null,null,null,null,null,null,null,null,null,null,null,{"$f":"COUNTA($C157:$AF157)>0","v":false},null,null,null,null,"     HVAC: Other","EC Motor (ECM)",null,null,{"$f":"S157","v":0},null,null,null,null,{"$f":"Y157","v":0},{"$f":"K157","v":0}]
[null,null,null,null,null,null,null,null,null,null,null,null,null,null,null,null,null,null,null,null,null,null,null,null,null,null,null,null,null,null,null,null,null,{"$f":"COUNTA($C158:$AF158)>0","v":false},null,null,null,null,"     HVAC: Other","EC Motor (ECM)",null,null,{"$f":"S158","v":0},null,null,null,null,{"$f":"Y158","v":0},{"$f":"K158","v":0}]
[null,null,null,null,null,null,null,null,null,null,null,null,null,null,null,null,null,null,null,null,null,null,null,null,null,null,null,null,null,null,null,null,null,{"$f":"COUNTA($C159:$AF159)>0","v":false},null,null,null,null,"     HVAC: Other","EC Motor (ECM)",null,null,{"$f":"S159","v":0},null,null,null,null,{"$f":"Y159","v":0},{"$f":"K159","v":0}]
[null,null,"Variable Frequency Drive (VFD)"]
[null,null,"Rebate:  $90.00 per Horsepower (HP)"]
[null,null,"Eligibility Requirements: "]
[null,null,"1. Rebates are available for HVAC fans and pumps, Domestic Service Water (DSW), and  Domestic Hot Water (DHW) pumps. Rebates are not simultaneously available for supply motors where rebates have been paid for Unitary HVAC equipment or CO sensors."]
[null,null,"2. Rebates are not available for motors larger than 100 HP or for process equipment. These may be eligible through the SRP Business Solutions Custom program with pre-approval."]
[null,null,"3. (Retrofit) Any throttling or mechanical bypass equipment, bypass dampers, three-way valves, or throttling valves must be removed or permanently disabled. Replacements of existing VFDs are not eligible unless the VFD has been non-functioning for >2 years.",null,null,null,null,null,null,null,null,null,null,null,null,null,null,null,null,null,null,null,null,null,null,null,null,null,null,null,null,null,null,null,"VAV Fan","VAV Fan"]
[null,null,"4. (New Construction) Rebates are not available for VFDs required by ASHRAE 90.1-2013:",null,null,null,null,null,null,null,null,null,null,null,null,null,null,null,null,null,null,null,null,null,null,null,null,null,null,null,null,null,null,null,"HVAC Fan Other","HVAC Fan"]
[null,null,"- Variable Air Volume (VAV) systems ≥5 HP.",null,null,null,null,null,null,null,null,null,null,null,null,null,null,null,null,null,null,null,null,null,null,null,null,null,null,null,null,null,null,null,"HVAC Pump","HVAC Pump"]
[null,null,"- Supply and return fans for HVAC units ≥5 tons.",null,null,null,null,null,null,null,null,null,null,null,null,null,null,null,null,null,null,null,null,null,null,null,null,null,null,null,null,null,null,null,"CHW Pump","Chilled Water Pump"]
[null,null,"- Supply fans totaling 5 HP or more for Unitary chilled water systems.",null,null,null,null,null,null,null,null,null,null,null,null,null,null,null,null,null,null,null,null,null,null,null,null,null,null,null,null,null,null,null,"DSW Pump","Domestic Service Water Pump"]
[null,null,"- HVAC, chilled water (CHW) pumps >5 HP.",null,null,null,null,null,null,null,null,null,null,null,null,null,null,null,null,null,null,null,null,null,null,null,null,null,null,null,null,null,null,null,"DHW Pump","Domestic Hot Water Pump"]
[null,null,"The following are required items that must be submitted along with the completed non-lighting application:"]
[null,null,"1. Dated invoice/payment application."]
[null,null,"Manufacture/Model",null,null,null,null,null,null,"Install Location",null,null,null,null,"End Use",null,null,null,null,null,"Motor HP",null,null,null,null,"Qty",null,null,null,"Rebate",null,null,null,null,null,null,null,null,null,"List1","List2","List3","Size","Input1","Input2","Input3","Input4","Qty","Notes"]
[null,null,null,null,null,null,null,null,null,null,null,null,null,null,null,null,null,null,null,null,null,null,null,null,null,null,null,null,null,null,null,null,null,{"$f":"COUNTA($C174:$AF174)>0","v":false},null,null,null,null,"     HVAC: Other",{"$f":"\"VFD: \" & VLOOKUP($O174,$AI$165:$AJ$170,2,FALSE)","v":{"$error":"#N/A"}},null,null,{"$f":"U174","v":0},null,null,null,null,{"$f":"Z174","v":0},{"$f":"J174","v":0}]
[null,null,null,null,null,null,null,null,null,null,null,null,null,null,null,null,null,null,null,null,null,null,null,null,null,null,null,null,null,null,null,null,null,false,null,null,null,null,"     HVAC: Other",{"$error":"#N/A"},null,null,0,null,null,null,null,0,0]
[null,null,null,null,null,null,null,null,null,null,null,null,null,null,null,null,null,null,null,null,null,null,null,null,null,null,null,null,null,null,null,null,null,false,null,null,null,null,"     HVAC: Other",{"$error":"#N/A"},null,null,0,null,null,null,null,0,0]
[null,null,null,null,null,null,null,null,null,null,null,null,null,null,null,null,null,null,null,null,null,null,null,null,null,null,null,null,null,null,null,null,null,false,null,null,null,null,"     HVAC: Other",{"$error":"#N/A"},null,null,0,null,null,null,null,0,0]
[null,null,null,null,null,null,null,null,null,null,null,null,null,null,null,null,null,null,null,null,null,null,null,null,null,null,null,null,null,null,null,null,null,false,null,null,null,null,"     HVAC: Other",{"$error":"#N/A"},null,null,0,null,null,null,null,0,0]
[null,null,null,null,null,null,null,null,null,null,null,null,null,null,null,null,null,null,null,null,null,null,null,null,null,null,null,null,null,null,null,null,null,false,null,null,null,null,"     HVAC: Other",{"$error":"#N/A"},null,null,0,null,null,null,null,0,0]
[null,null,null,null,null,null,null,null,null,null,null,null,null,null,null,null,null,null,null,null,null,null,null,null,null,null,null,null,null,null,null,null,null,false,null,null,null,null,"     HVAC: Other",{"$error":"#N/A"},null,null,0,null,null,null,null,0,0]
[null,null,"Energy Management System (EMS)"]
[null,null,"Rebate:  $0.25 per Sq. Ft. of Conditioned Space"]
[null,null,"Eligibility Requirements: "]
[null,null,"1. The EMS must be new and include:"]
[null,null,"- A graphic operator interface with central timing control."]
[null,null,"- A minimum set point setback of 8 degrees and setback period of 2,200 hours per year."]
[null,null,"- Must be demand-limiting capable."]
[null,null,"2. An EMS installation on a building greater than 100,000 sq. ft. is not eligible for the Standard rebate and must be processed under the SRP Business Solutions Custom program."]
[null,null,"3. (Retrofit) Retrofits of buildings with existing digital automated HVAC controls and programmable thermostats are not eligible. Replacements may be eligible under the SRP Business Solutions Custom program with pre-approval."]
[null,null,"4. (New Construction) Installations are not eligible.",null,null,null,null,null,null,null,null,null,null,null,null,null,null,null,null,null,null,null,null,null,null,null,null,null,null,null,null,null,null,null,"Unitary AC","Electric Resistance","Pneumatic"]
[null,null,"The following are required items that must be submitted along with the completed non-lighting application:",null,null,null,null,null,null,null,null,null,null,null,null,null,null,null,null,null,null,null,null,null,null,null,null,null,null,null,null,null,null,null,"Unitary HP","Gas","Manual Thermostat"]
[null,null,"1. Dated invoice/payment application.",null,null,null,null,null,null,null,null,null,null,null,null,null,null,null,null,null,null,null,null,null,null,null,null,null,null,null,null,null,null,null,"Water-Source HP","Heat Pump","Programmable Thermostat"]
[null,null,"2. Manufacturer's equipment specification sheet documenting compliance with equipment eligibility.",null,null,null,null,null,null,null,null,null,null,null,null,null,null,null,null,null,null,null,null,null,null,null,null,null,null,null,null,null,null,null,"Chiller","Other","EMS"]
[null,null,"3. Documentation verifying the total conditioned space controlled by the EMS.",null,null,null,null,null,null,null,null,null,null,null,null,null,null,null,null,null,null,null,null,null,null,null,null,null,null,null,null,null,null,null,"PTAC","None"]
[null,null,"4. Documentation of the EMS sequence of operations showing 7-day programmed operating schedules and occupied/unoccupied temperature set points.",null,null,null,null,null,null,null,null,null,null,null,null,null,null,null,null,null,null,null,null,null,null,null,null,null,null,null,null,null,null,null,"PTHP"]
[null,null,"Manufacture/Model",null,null,null,null,null,"Controlled AC Unit Type",null,null,"Heating Type",null,null,"Existing Control System",null,null,null,null,"Controlled Space \n(Sq. Ft.)",null,null,null,null,null,"Eligible Setback",null,null,null,"Rebate",null,null,null,null,null,null,null,null,null,"List1","List2","List3","Size","Input1","Input2","Input3","Input4","Qty","Notes"]
[null,null,null,null,null,null,null,null,null,null,null,null,null,null,null,null,null,null,null,null,null,null,null,null,null,null,null,null,null,null,null,null,null,{"$f":"COUNTA($C197:$AF197)>0","v":false},null,null,null,null,"     HVAC: Other","Energy Management System (EMS)",{"$f":"I197","v":0},{"$f":"O197","v":0},{"$f":"T197","v":0},null,null,null,null,{"$f":"1","v":1},{"$f":"C197","v":0}]
[null,null,null,null,null,null,null,null,null,null,null,null,null,null,null,null,null,null,null,null,null,null,null,null,null,null,null,null,null,null,null,null,null,{"$f":"COUNTA($C198:$AF198)>0","v":false},null,null,null,null,"     HVAC: Other","Energy Management System (EMS)",{"$f":"I198","v":0},{"$f":"O198","v":0},{"$f":"T198","v":0},null,null,null,null,{"$f":"1","v":1},{"$f":"C198","v":0}]
[null,null,"SMART Thermostats"]
[null,null,"Rebate:  $150.00 Each + $50.00 Professional Install"]
[null,null,"Eligibility Requirements: ",null,null,null,null,null,null,null,null,null,null,null,null,null,null,null,null,null,null,null,null,null,null,null,null,null,null,null,null,null,null,null,"Pneumatic","Unitary AC"]
[null,null,"1. Must be Wi-Fi-enabled.",null,null,null,null,null,null,null,null,null,null,null,null,null,null,null,null,null,null,null,null,null,null,null,null,null,null,null,null,null,null,null,"Manual Thermostat","Unitary HP"]
[null,null,"2. Must be Energy Star (ES) certified.",null,null,null,null,null,null,null,null,null,null,null,null,null,null,null,null,null,null,null,null,null,null,null,null,null,null,null,null,null,null,null,"Programmable Thermostat","Water-Source HP"]
[null,null,"3. (Retrofit) Must replace an existing non-programmable or programmable (5-2 or 5-1-1) thermostat.",null,null,null,null,null,null,null,null,null,null,null,null,null,null,null,null,null,null,null,null,null,null,null,null,null,null,null,null,null,null,null,"EMS","Chiller"]
[null,null,"4. (New Construction) Installations are not eligible.",null,null,null,null,null,null,null,null,null,null,null,null,null,null,null,null,null,null,null,null,null,null,null,null,null,null,null,null,null,null,null,null,"PTAC"]
[null,null,"The following are required items that must be submitted along with the completed non-lighting application:",null,null,null,null,null,null,null,null,null,null,null,null,null,null,null,null,null,null,null,null,null,null,null,null,null,null,null,null,null,null,null,null,"PTHP"]
[null,null,"1. Dated invoice/payment application."]
[null,null,"2. Manufacturer's equipment specification sheet documenting compliance with equipment eligibility."]
[null,null,"Manufacture/Model",null,null,null,null,null,null,"HVAC Equipment Type",null,null,null,null,"HVAC Unit Size (Tons)",null,null,null,"Existing Controls",null,null,null,null,"Professional Install?",null,null,null,"Qty",null,"Rebate",null,null,null,null,null,null,null,null,null,"List1","List2","List3","Size","Input1","Input2","Input3","Input4","Qty","Notes"]
[null,null,null,null,null,null,null,null,null,null,null,null,null,null,null,null,null,null,null,null,null,null,null,null,null,null,null,null,null,null,null,null,null,{"$f":"COUNTA($C210:$AF210)>0","v":false},null,null,null,null,"     HVAC: Other",{"$f":"IF($X210=\"Yes\",\"Smart Thermostat (Professional Install)\",\"Smart Thermostat (Self-Install)\")","v":"Smart Thermostat (Self-Install)"},{"$f":"J210","v":0},{"$f":"O210","v":0},{"$f":"T210","v":0},null,null,null,null,{"$f":"AB210","v":0},{"$f":"C210","v":0}]
[null,null,null,null,null,null,null,null,null,null,null,null,null,null,null,null,null,null,null,null,null,null,null,null,null,null,null,null,null,null,null,null,null,false,null,null,null,null,"     HVAC: Other","Smart Thermostat (Self-Install)",0,0,0,null,null,null,null,0,0]
[null,null,null,null,null,null,null,null,null,null,null,null,null,null,null,null,null,null,null,null,null,null,null,null,null,null,null,null,null,null,null,null,null,false,null,null,null,null,"     HVAC: Other","Smart Thermostat (Self-Install)",0,0,0,null,null,null,null,0,0]
[null,null,null,null,null,null,null,null,null,null,null,null,null,null,null,null,null,null,null,null,null,null,null,null,null,null,null,null,null,null,null,null,null,false,null,null,null,null,"     HVAC: Other","Smart Thermostat (Self-Install)",0,0,0,null,null,null,null,0,0]
[null,null,null,null,null,null,null,null,null,null,null,null,null,null,null,null,null,null,null,null,null,null,null,null,null,null,null,null,null,null,null,null,null,false,null,null,null,null,"     HVAC: Other","Smart Thermostat (Self-Install)",0,0,0,null,null,null,null,0,0]
[null,null,null,null,null,null,null,null,null,null,null,null,null,null,null,null,null,null,null,null,null,null,null,null,null,null,null,null,null,null,null,null,null,false,null,null,null,null,"     HVAC: Other","Smart Thermostat (Self-Install)",0,0,0,null,null,null,null,0,0]
[null,null,null,null,null,null,null,null,null,null,null,null,null,null,null,null,null,null,null,null,null,null,null,null,null,null,null,null,null,null,null,null,null,false,null,null,null,null,"     HVAC: Other","Smart Thermostat (Self-Install)",0,0,0,null,null,null,null,0,0]
[null,null,null,null,null,null,null,null,null,null,null,null,null,null,null,null,null,null,null,null,null,null,null,null,null,null,null,null,null,null,null,null,null,false,null,null,null,null,"     HVAC: Other","Smart Thermostat (Self-Install)",0,0,0,null,null,null,null,0,0]
[null,null,"Carbon Dioxide (CO2) Sensors"]
[null,null,"Rebate:  $85.00 per Sensor controlling < 10 tons; $120.00 per Sensor controlling ≥ 10 tons"]
[null,null,"Eligibility Requirements: ",null,null,null,null,null,null,null,null,null,null,null,null,null,null,null,null,null,null,null,null,null,null,null,null,null,null,null,null,null,null,"Air Conditioner","Electric Resistance","None"]
[null,null,"1. (Retrofit) Rebates are not available for replacement of existing CO2 sensors.",null,null,null,null,null,null,null,null,null,null,null,null,null,null,null,null,null,null,null,null,null,null,null,null,null,null,null,null,null,null,"Heat Pump","Gas","OA Economizer"]
[null,null,"2. (New Construction) Rebates are not available where CO2 sensors are required be ASHRAE 90.1-2013:",null,null,null,null,null,null,null,null,null,null,null,null,null,null,null,null,null,null,null,null,null,null,null,null,null,null,null,null,null,null,"Water Source Heat Pump","Heat Pump","Automated OA Dampers"]
[null,null,"- DCV systems for spaces >500 Sq. Ft. with an average design occupancy density ≥25 People per 1000 Sq. Ft. and an Outside Airflow requirement of 750 CFM or more with one or more of the following:",null,null,null,null,null,null,null,null,null,null,null,null,null,null,null,null,null,null,null,null,null,null,null,null,null,null,null,null,null,null,"Chiller","Other","Economizer + OA Dampers"]
[null,null,"- An air-side economizer.",null,null,null,null,null,null,null,null,null,null,null,null,null,null,null,null,null,null,null,null,null,null,null,null,null,null,null,null,null,null,null,"None"]
[null,null,"- Automatic modulating OA dampers for any space."]
[null,null,"- Spaces requiring >3000 CFM."]
[null,null,"The following are required items that must be submitted along with the completed non-lighting application:"]
[null,null,"1. Dated invoice/payment application."]
[null,null,"2. Manufacturer's equipment specification sheet documenting compliance with equipment eligibility."]
[null,null,"3. (New Construction) Documentation confirming CO2 sensors are not required."]
[null,null,"Controlled AC Unit Type",null,null,null,"Heating Type",null,null,null,"Ventilation Controls",null,null,null,"Load (Tons)",null,null,"Zone Population",null,null,"Zone Area",null,null,null,"Design CFM",null,null,"Qty",null,"Rebate",null,null,null,null,null,null,null,null,null,"List1","List2","List3","Size","Input1","Input2","Input3","Input4","Qty","Notes"]
[null,null,null,null,null,null,null,null,null,null,null,null,null,null,null,null,null,null,null,null,null,null,null,null,null,null,null,null,null,null,null,null,null,{"$f":"COUNTA($C232:$AF232)>0","v":false},null,null,null,null,"     Carbon Dioxide Sensor (CO2)",{"$f":"C232","v":0},{"$f":"G232","v":0},{"$f":"K232","v":0},{"$f":"O232","v":0},{"$f":"R232","v":0},{"$f":"U232","v":0},{"$f":"Y232","v":0},null,{"$f":"AB232","v":0}]
[null,null,null,null,null,null,null,null,null,null,null,null,null,null,null,null,null,null,null,null,null,null,null,null,null,null,null,null,null,null,null,null,null,false,null,null,null,null,"     Carbon Dioxide Sensor (CO2)",0,0,0,0,{"$f":"R233","v":0},{"$f":"U233","v":0},0,null,0]
[null,null,null,null,null,null,null,null,null,null,null,null,null,null,null,null,null,null,null,null,null,null,null,null,null,null,null,null,null,null,null,null,null,false,null,null,null,null,"     Carbon Dioxide Sensor (CO2)",0,0,0,0,0,0,0,null,0]
[null,null,null,null,null,null,null,null,null,null,null,null,null,null,null,null,null,null,null,null,null,null,null,null,null,null,null,null,null,null,null,null,null,false,null,null,null,null,"     Carbon Dioxide Sensor (CO2)",0,0,0,0,0,0,0,null,0]
[null,null,null,null,null,null,null,null,null,null,null,null,null,null,null,null,null,null,null,null,null,null,null,null,null,null,null,null,null,null,null,null,null,false,null,null,null,null,"     Carbon Dioxide Sensor (CO2)",0,0,0,0,0,0,0,null,0]
[null,null,null,null,null,null,null,null,null,null,null,null,null,null,null,null,null,null,null,null,null,null,null,null,null,null,null,null,null,null,null,null,null,false,null,null,null,null,"     Carbon Dioxide Sensor (CO2)",0,0,0,0,0,0,0,null,0]
[null,null,"Carbon Monoxide (CO) Sensors"]
[null,null,"Rebate:  $250.00 Each"]
[null,null,"Eligibility Requirements: "]
[null,null,"1. Must maintain compliance with all applicable codes."]
[null,null,"2. Rebates are not simultaneously available for CO sensors where rebates have been paid for VFDs on the same equipment."]
[null,null,"3. (Retrofit) Replacements of existing CO sensors are not eligible."]
[null,null,"4. (New Construction) Rebates are not available for CO sensors required by ASHRAE 90.1-2013:"]
[null,null,"- Ventilation systems utilize mechanical heating and cooling AND"]
[null,null,"- Garages with a total area ≥30,000 sq. ft."]
[null,null,"- OR Garages that have a ratio of ≤1,500 sq. ft. per horsepower of garage area-to-nameplate HP."]
[null,null,"The following are required items that must be submitted along with the completed non-lighting application:"]
[null,null,"1. Dated invoice/payment application."]
[null,null,"2. Manufacturer's equipment specification sheet documenting compliance with equipment eligibility."]
[null,null,"Manufacture/Model",null,null,null,null,null,null,null,null,"Exhaust Fan HP/Sensor",null,null,null,null,null,null,null,"Garage Area (Sq. Ft.)",null,null,null,null,null,null,"Quantity ",null,null,"Rebate",null,null,null,null,null,null,null,null,null,"List1","List2","List3","Size","Input1","Input2","Input3","Input4","Qty","Notes"]
[null,null,null,null,null,null,null,null,null,null,null,null,null,null,null,null,null,null,null,null,null,null,null,null,null,null,null,null,null,null,null,null,null,{"$f":"COUNTA($C252:$AF252)>0","v":false},null,null,null,null,"     HVAC: Other","Carbon Monoxide (CO) Sensor",null,null,{"$f":"L252","v":0},{"$f":"T252","v":0},null,null,null,{"$f":"AA252","v":0},{"$f":"C252","v":0}]
[null,null,null,null,null,null,null,null,null,null,null,null,null,null,null,null,null,null,null,null,null,null,null,null,null,null,null,null,null,null,null,null,null,{"$f":"COUNTA($C253:$AF253)>0","v":false},null,null,null,null,"     HVAC: Other","Carbon Monoxide (CO) Sensor",null,null,{"$f":"L253","v":0},{"$f":"T253","v":0},null,null,null,{"$f":"AA253","v":0},{"$f":"C253","v":0}]
[null,null,null,null,null,null,null,null,null,null,null,null,null,null,null,null,null,null,null,null,null,null,null,null,null,null,null,null,null,null,null,null,null,{"$f":"COUNTA($C254:$AF254)>0","v":false},null,null,null,null,"     HVAC: Other","Carbon Monoxide (CO) Sensor",null,null,{"$f":"L254","v":0},0,null,null,null,{"$f":"AA254","v":0},{"$f":"C254","v":0}]
[null,null,"Advanced RTU Controller"]
[null,null,"Rebate:  $300.00 per Ton"]
[null,null,"Eligibility Requirements: "]
[null,null,"1. Controller must be capable of demand limiting and must provide variable fan control, demand control ventilation (DCV), and outside-air economizer control."]
[null,null,"2. (Retrofit) Installations on existing units where existing controls are present are not eligible. Controller must be installed on existing air-cooled packaged rooftop units serving as constant-volume (CV) systems and utilizing direct-expansion (DX) cooling technology."]
[null,null,"3. (New Construction) Installations on units where variable speed fan controls are required by ASHRAE 90.1-2013:"]
[null,null,"- Units ≥ 5 Tons are not eligible."]
[null,null,"The following are required items that must be submitted along with the completed non-lighting application:"]
[null,null,"1. Dated invoice/payment application."]
[null,null,"2. Manufacturer's equipment specification sheet documenting compliance with equipment eligibility."]
[null,null,"Manufacture/Model",null,null,null,null,null,null,null,null,"Install Location",null,null,null,null,null,"HVAC Unit Size (Tons)",null,null,null,null,null,"Quantity",null,null,null,null,null,"Rebate",null,null,null,null,null,null,null,null,null,"List1","List2","List3","Size","Input1","Input2","Input3","Input4","Qty","Notes"]
[null,null,null,null,null,null,null,null,null,null,null,null,null,null,null,null,null,null,null,null,null,null,null,null,null,null,null,null,null,null,null,null,null,{"$f":"COUNTA($C266:$AF266)>0","v":false},null,null,null,null,"     HVAC: Other","Advanced RTU Controller",null,null,{"$f":"R266","v":0},null,null,null,null,{"$f":"X266","v":0},{"$f":"L266","v":0}]
[null,null,null,null,null,null,null,null,null,null,null,null,null,null,null,null,null,null,null,null,null,null,null,null,null,null,null,null,null,null,null,null,null,{"$f":"COUNTA($C267:$AF267)>0","v":false},null,null,null,null,"     HVAC: Other","Advanced RTU Controller",null,null,{"$f":"R267","v":0},null,null,null,null,{"$f":"X267","v":0},{"$f":"L267","v":0}]
[null,null,null,null,null,null,null,null,null,null,null,null,null,null,null,null,null,null,null,null,null,null,null,null,null,null,null,null,null,null,null,null,null,{"$f":"COUNTA($C268:$AF268)>0","v":false},null,null,null,null,"     HVAC: Other","Advanced RTU Controller",null,null,{"$f":"R268","v":0},null,null,null,null,{"$f":"X268","v":0},{"$f":"L268","v":0}]
[null,null,null,null,null,null,null,null,null,null,null,null,null,null,null,null,null,null,null,null,null,null,null,null,null,null,null,null,null,null,null,null,null,{"$f":"COUNTA($C269:$AF269)>0","v":false},null,null,null,null,"     HVAC: Other","Advanced RTU Controller",null,null,{"$f":"R269","v":0},null,null,null,null,{"$f":"X269","v":0},{"$f":"L269","v":0}]
[null,null,null,null,null,null,null,null,null,null,null,null,null,null,null,null,null,null,null,null,null,null,null,null,null,null,null,null,null,null,null,null,null,{"$f":"COUNTA($C270:$AF270)>0","v":false},null,null,null,null,"     HVAC: Other","Advanced RTU Controller",null,null,{"$f":"R270","v":0},null,null,null,null,{"$f":"X270","v":0},{"$f":"L270","v":0}]
[null,null,"Hotel Room Occupancy Controls"]
[null,null,"Rebate:  $50.00 per Room"]
[null,null,"Eligibility Requirements: ",null,null,null,null,null,null,null,null,null,null,null,null,null,null,null,null,null,null,null,null,null,null,null,null,null,null,null,null,null,null,null,"PTAC","Packaged-Terminal Air-Conditioner"]
[null,null,"1. Rebates are only available for Hotel/Motel guestroom installations. Multi-room suites are counted as one guestroom.",null,null,null,null,null,null,null,null,null,null,null,null,null,null,null,null,null,null,null,null,null,null,null,null,null,null,null,null,null,null,null,"PTHP","Packaged-Terminal Heat Pump"]
[null,null,"2. Standalone controls from the front desk are not eligible.",null,null,null,null,null,null,null,null,null,null,null,null,null,null,null,null,null,null,null,null,null,null,null,null,null,null,null,null,null,null,null,"Chiller","Chiller"]
[null,null,"3. Must sense the occupant heat/motion/door-key activation and adjust the HVAC set points.",null,null,null,null,null,null,null,null,null,null,null,null,null,null,null,null,null,null,null,null,null,null,null,null,null,null,null,null,null,null,null,"FCU","Fan Coil Unit (FCU)"]
[null,null,"4. A minimum setback temperature of 6 degrees must be used.",null,null,null,null,null,null,null,null,null,null,null,null,null,null,null,null,null,null,null,null,null,null,null,null,null,null,null,null,null,null,null,"Electric Resistance"]
[null,null,"5. (Retrofit) Replacements of existing hotel room occupancy controls are not eligible.",null,null,null,null,null,null,null,null,null,null,null,null,null,null,null,null,null,null,null,null,null,null,null,null,null,null,null,null,null,null,null,"Gas"]
[null,null,"6. (New Construction) Conditioned spaces using chiller systems are not eligible.",null,null,null,null,null,null,null,null,null,null,null,null,null,null,null,null,null,null,null,null,null,null,null,null,null,null,null,null,null,null,null,"Heat Pump"]
[null,null,"The following are required items that must be submitted along with the completed non-lighting application:",null,null,null,null,null,null,null,null,null,null,null,null,null,null,null,null,null,null,null,null,null,null,null,null,null,null,null,null,null,null,null,"Other"]
[null,null,"1. Dated invoice/payment application.",null,null,null,null,null,null,null,null,null,null,null,null,null,null,null,null,null,null,null,null,null,null,null,null,null,null,null,null,null,null,null,"None"]
[null,null,"2. Manufacturer's equipment specification sheet documenting compliance with equipment eligibility."]
[null,null,"Manufacture/Model",null,null,null,null,null,null,null,"Controlled AC Unit Type",null,null,null,"Heating Type",null,null,null,null,null,"# of Rooms ",null,null,null,"Eligible Setback",null,null,null,null,"Rebate",null,null,null,null,null,null,null,null,null,"List1","List2","List3","Size","Input1","Input2","Input3","Input4","Qty","Notes"]
[null,null,null,null,null,null,null,null,null,null,null,null,null,null,null,null,null,null,null,null,null,null,null,null,null,null,null,null,null,null,null,null,null,{"$f":"COUNTA($C284:$AF284)>0","v":false},null,null,null,null,"     Hotel Room Occupancy Controller",{"$f":"VLOOKUP($K284,$AI$273:$AJ$276,2,FALSE)","v":{"$error":"#N/A"}},{"$f":"O284","v":0},null,null,null,null,null,null,{"$f":"U284","v":0},{"$f":"C284","v":0}]
[null,null,null,null,null,null,null,null,null,null,null,null,null,null,null,null,null,null,null,null,null,null,null,null,null,null,null,null,null,null,null,null,null,{"$f":"COUNTA($C285:$AF285)>0","v":false},null,null,null,null,"     Hotel Room Occupancy Controller",{"$f":"VLOOKUP($K285,$AI$273:$AJ$276,2,FALSE)","v":{"$error":"#N/A"}},{"$f":"O285","v":0},null,null,null,null,null,null,{"$f":"U285","v":0},{"$f":"C285","v":0}]
[null,null,null,null,null,null,null,null,null,null,null,null,null,null,null,null,null,null,null,null,null,null,null,null,null,null,null,null,null,null,null,null,null,{"$f":"COUNTA($C286:$AF286)>0","v":false},null,null,null,null,"     Hotel Room Occupancy Controller",{"$f":"VLOOKUP($K286,$AI$273:$AJ$276,2,FALSE)","v":{"$error":"#N/A"}},{"$f":"O286","v":0},null,null,null,null,null,null,{"$f":"U286","v":0},{"$f":"C286","v":0}]

{"sheet":"Refrigeration","index":7,"n_rows":206,"n_cols":42,"rows_kept":206,"cut":false,"hidden":true,"merged":[[0,29,0,41],[2,2,2,27],[3,2,3,27],[4,2,4,27],[5,2,5,27],[6,2,6,18],[6,19,6,23],[6,24,6,27],[13,2,13,27],[14,2,14,27],[15,2,15,11],[15,12,15,17],[15,18,15,20],[15,21,15,23],[15,24,15,27],[7,2,7,26],[8,2,8,27],[9,2,9,27],[10,2,10,27],[11,2,11,27],[12,2,12,27],[16,2,16,11],[16,12,16,17],[16,18,16,20],[16,21,16,23],[16,24,16,27],[17,2,17,11],[17,12,17,17],[17,18,17,20],[17,21,17,23],[17,24,17,27],[20,2,20,26],[21,2,21,27],[22,2,22,27],[23,2,23,27],[24,2,24,27],[25,2,25,27],[18,2,18,11],[18,12,18,17],[18,18,18,20],[18,21,18,23],[18,24,18,27],[19,2,19,11],[19,12,19,17],[19,18,19,20],[19,21,19,23],[19,24,19,27],[29,2,29,11],[29,12,29,19],[29,20,29,23],[29,24,29,27],[30,2,30,11],[30,12,30,19],[30,20,30,23],[30,24,30,27],[26,2,26,27],[27,2,27,11],[27,12,27,19],[27,20,27,23],[27,24,27,27],[28,2,28,11],[28,12,28,19],[28,20,28,23],[28,24,28,27],[34,2,34,27],[35,2,35,27],[36,2,36,27],[37,2,37,27],[38,2,38,27],[39,2,39,27],[31,2,31,11],[31,12,31,19],[31,20,31,23],[31,24,31,27],[32,2,32,26],[33,2,33,27],[42,2,42,11],[42,12,42,19],[42,20,42,23],[42,24,42,27],[43,2,43,11],[43,12,43,19],[43,20,43,23],[43,24,43,27],[40,2,40,11],[40,12,40,19],[40,20,40,23],[40,24,40,27],[41,2,41,11],[41,12,41,19],[41,20,41,23],[41,24,41,27],[50,2,50,27],[51,2,51,27],[52,2,52,11],[52,12,52,19],[52,20,52,23],[52,24,52,27],[44,2,44,26],[45,2,45,27],[46,2,46,27],[47,2,47,27],[48,2,48,27],[49,2,49,27],[55,2,55,11],[55,12,55,19],[55,20,55,23],[55,24,55,27],[56,2,56,26],[57,2,57,27],[53,2,53,11],[53,12,53,19],[53,20,53,23],[53,24,53,27],[54,2,54,11],[54,12,54,19],[54,20,54,23],[54,24,54,27],[64,2,64,27],[65,2,65,8],[65,9,65,12],[65,13,65,15],[65,16,65,18],[65,19,65,20],[65,21,65,23],[65,24,65,27],[58,2,58,27],[59,2,59,27],[60,2,60,27],[61,2,61,27],[62,2,62,27],[63,2,63,27],[66,24,66,27],[67,2,67,8],[67,9,67,12],[67,13,67,15],[67,16,67,18],[67,19,67,20],[67,21,67,23],[67,24,67,27],[66,2,66,8],[66,9,66,12],[66,13,66,15],[66,16,66,18],[66,19,66,20],[66,21,66,23],[68,24,68,27],[69,2,69,26],[70,2,70,27],[71,2,71,27],[72,2,72,27],[73,2,73,27],[68,2,68,8],[68,9,68,12],[68,13,68,15],[68,16,68,18],[68,19,68,20],[68,21,68,23],[74,2,74,27],[75,2,75,27],[76,2,76,27],[77,2,77,27],[78,2,78,27],[79,2,79,8],[79,9,79,12],[79,13,79,15],[79,16,79,20],[79,21,79,23],[81,2,81,8],[81,9,81,12],[81,13,81,15],[81,16,81,20],[81,21,81,23],[81,24,81,27],[79,24,79,27],[80,2,80,8],[80,9,80,12],[80,13,80,15],[80,16,80,20],[80,21,80,23],[80,24,80,27],[83,2,83,8],[83,9,83,12],[83,13,83,15],[83,16,83,20],[83,21,83,23],[83,24,83,27],[82,2,82,8],[82,9,82,12],[82,13,82,15],[82,16,82,20],[82,21,82,23],[82,24,82,27],[85,2,85,8],[85,9,85,12],[85,13,85,15],[85,16,85,20],[85,21,85,23],[85,24,85,27],[84,2,84,8],[84,9,84,12],[84,13,84,15],[84,16,84,20],[84,21,84,23],[84,24,84,27],[87,2,87,8],[87,9,87,12],[87,13,87,15],[87,16,87,20],[87,21,87,23],[87,24,87,27],[86,2,86,8],[86,9,86,12],[86,13,86,15],[86,16,86,20],[86,21,86,23],[86,24,86,27],[94,2,94,27],[95,2,95,27],[96,2,96,11],[96,12,96,19],[96,20,96,23],[96,24,96,27],[88,2,88,26],[89,2,89,27],[90,2,90,27],[91,2,91,27],[92,2,92,27],[93,2,93,27],[99,2,99,11],[99,12,99,19],[99,20,99,23],[99,24,99,27],[100,2,100,11],[100,12,100,19],[100,20,100,23],[100,24,100,27],[97,2,97,11],[97,12,97,19],[97,20,97,23],[97,24,97,27],[98,2,98,11],[98,12,98,19],[98,20,98,23],[98,24,98,27],[104,2,104,27],[105,2,105,27],[106,2,106,27],[107,2,107,27],[108,2,108,27],[109,2,109,27],[101,2,101,11],[101,12,101,19],[101,20,101,23],[101,24,101,27],[102,2,102,26],[103,2,103,27],[110,2,110,11],[110,12,110,16],[110,17,110,19],[110,20,110,23],[110,24,110,27],[111,2,111,11],[111,12,111,16],[111,17,111,19],[111,20,111,23],[111,24,111,27],[114,2,114,26],[115,2,115,27],[116,2,116,27],[117,2,117,27],[118,2,118,27],[119,2,119,27],[112,2,112,11],[112,12,112,16],[112,17,112,19],[112,20,112,23],[112,24,112,27],[113,2,113,11],[113,12,113,16],[113,17,113,19],[113,20,113,23],[113,24,113,27],[124,2,124,9],[124,10,124,13],[124,14,124,16],[124,17,124,21],[124,22,124,23],[124,24,124,27],[120,2,120,27],[121,2,121,27],[122,2,122,27],[123,2,123,9],[123,10,123,13],[123,14,123,16],[123,17,123,21],[123,22,123,23],[123,24,123,27],[126,2,126,26],[127,2,127,27],[128,2,128,27],[129,2,129,27],[130,2,130,27],[131,2,131,27],[125,2,125,9],[125,10,125,13],[125,14,125,16],[125,17,125,21],[125,22,125,23],[125,24,125,27],[136,2,136,11],[136,12,136,19],[136,20,136,23],[136,24,136,27],[137,2,137,11],[137,12,137,19],[137,20,137,23],[137,24,137,27],[132,2,132,27],[133,2,133,27],[134,2,134,27],[135,2,135,11],[135,12,135,19],[135,20,135,23],[135,24,135,27],[140,2,140,26],[141,2,141,27],[142,2,142,27],[143,2,143,27],[144,2,144,27],[145,2,145,27],[138,2,138,11],[138,12,138,19],[138,20,138,23],[138,24,138,27],[139,2,139,11],[139,12,139,19],[139,20,139,23],[139,24,139,27],[146,2,146,27],[147,2,147,27],[148,2,148,27],[149,2,149,8],[149,9,149,14],[149,15,149,17],[149,18,149,20],[149,21,149,23],[149,24,149,27],[151,2,151,8],[151,9,151,14],[151,15,151,17],[151,18,151,20],[151,21,151,23],[151,24,151,27],[150,2,150,8],[150,9,150,14],[150,15,150,17],[150,18,150,20],[150,21,150,23],[150,24,150,27],[153,2,153,26],[154,2,154,27],[155,2,155,27],[156,2,156,27],[157,2,157,27],[158,2,158,27],[152,2,152,8],[152,9,152,14],[152,15,152,17],[152,18,152,20],[152,21,152,23],[152,24,152,27],[162,2,162,13],[162,14,162,20],[162,21,162,23],[162,24,162,27],[163,2,163,13],[163,14,163,20],[163,21,163,23],[163,24,163,27],[159,2,159,27],[160,2,160,27],[161,2,161,13],[161,14,161,20],[161,21,161,23],[161,24,161,27],[167,2,167,27],[168,2,168,27],[169,2,169,27],[170,2,170,27],[171,2,171,27],[172,2,172,27],[164,2,164,13],[164,14,164,20],[164,21,164,23],[164,24,164,27],[165,2,165,26],[166,2,166,27],[173,2,173,27],[174,2,174,27],[175,2,175,27],[176,2,176,7],[176,8,176,11],[176,12,176,13],[176,14,176,15],[176,16,176,17],[176,18,176,21],[176,22,176,23],[176,24,176,27],[177,2,177,7],[177,8,177,11],[177,12,177,13],[177,14,177,15],[177,16,177,17],[177,18,177,21],[177,22,177,23],[177,24,177,27],[178,22,178,23],[178,24,178,27],[179,2,179,26],[180,2,180,27],[181,2,181,27],[182,2,182,27],[178,2,178,7],[178,8,178,11],[178,12,178,13],[178,14,178,15],[178,16,178,17],[178,18,178,21],[183,2,183,27],[184,2,184,27],[185,2,185,27],[186,2,186,27],[187,2,187,27],[188,2,188,11],[188,12,188,18],[188,19,188,21],[188,22,188,23],[188,24,188,27],[189,2,189,11],[189,12,189,18],[189,19,189,21],[189,22,189,23],[189,24,189,27],[190,2,190,11],[190,12,190,18],[190,19,190,21],[190,22,190,23],[190,24,190,27],[193,2,193,27],[194,2,194,27],[195,2,195,27],[196,2,196,27],[197,2,197,27],[198,2,198,27],[191,2,191,11],[191,12,191,18],[191,19,191,21],[191,22,191,23],[191,24,191,27],[192,2,192,26],[203,2,203,7],[203,8,203,12],[203,13,203,16],[203,17,203,20],[203,21,203,23],[203,24,203,27],[199,2,199,27],[200,2,200,27],[201,2,201,27],[202,2,202,7],[202,8,202,12],[202,13,202,16],[202,17,202,20],[202,21,202,23],[202,24,202,27],[205,2,205,7],[205,8,205,12],[205,13,205,16],[205,17,205,20],[205,21,205,23],[205,24,205,27],[204,2,204,7],[204,8,204,12],[204,13,204,16],[204,17,204,20],[204,21,204,23],[204,24,204,27]]}
[null,null,null,null,null,null,null,null,null,null,null,null,null,null,null,null,null,null,null,null,null,null,null,null,null,null,null,null,null,"Hide"]
[]
[null,null,"Refrigeration"]
[null,null,"Instructions: Please select the measures you wish to apply for and complete the fields below for each selected measure. Highlighted fields are required in order for the application to be considered 'Complete'."]
[null,null,"Refer to the Equipment Efficiency Tables tab to determine if your equipment meets the required minimum efficiencies."]
[null,null,"Note: Under this program, “Freezer” refrigeration applications refer to space temperatures ≤ 0 ºF while “Cooler” refrigeration applications refer to space temperatures from 1 to 40 ºF."]
[null,null,"Select Measures:"]
[null,null,"Auto Closers For Main Walk-In Refrigerators & Freezer Doors"]
[null,null,"Rebate:  Walk-In Coolers: $20.00 Each  &  Walk-In Freezers: $40.00 Each"]
[null,null,"Eligibility Requirements: "]
[null,null,"1. Must firmly close door when door is within 1\" of full closure.",null,null,null,null,null,null,null,null,null,null,null,null,null,null,null,null,null,null,null,null,null,null,null,null,null,null,"Main Walk-in - Cooler","Auto-Closer Walk-In","Med Temp"]
[null,null,"2. (Retrofit) Only installations on walk-in units are eligible.",null,null,null,null,null,null,null,null,null,null,null,null,null,null,null,null,null,null,null,null,null,null,null,null,null,null,"Main Walk-in - Freezer","Auto-Closer Walk-In","Low Temp"]
[null,null,"3. (New Construction) Installations are not eligible."]
[null,null,"The following are required items that must be submitted along with the completed non-lighting application:"]
[null,null,"1. Dated invoice/payment application."]
[null,null,"Manufacture/Model",null,null,null,null,null,null,null,null,null,"Case Type",null,null,null,null,null,"Door Size",null,null,"Quantity",null,null,"Rebate",null,null,null,null,null,null,null,"List1","List2","List3","Size","Input1","Input2","Input3","Input4","Qty","Notes"]
[null,null,null,null,null,null,null,null,null,null,null,null,null,null,null,null,null,null,null,null,null,null,null,null,null,null,null,null,null,{"$f":"COUNTA($C17:$AB17)>0","v":false},null,"     Refrigeration: Other",{"$f":"VLOOKUP($M17,$AD$11:$AF$12,2,FALSE)","v":{"$error":"#N/A"}},{"$f":"VLOOKUP($M17,$AD$11:$AF$12,3,FALSE)","v":{"$error":"#N/A"}},null,{"$f":"S17","v":0},null,null,null,null,{"$f":"V17","v":0},{"$f":"C17","v":0}]
[null,null,null,null,null,null,null,null,null,null,null,null,null,null,null,null,null,null,null,null,null,null,null,null,null,null,null,null,null,{"$f":"COUNTA($C18:$AB18)>0","v":false},null,"     Refrigeration: Other",{"$f":"VLOOKUP($M18,$AD$11:$AF$12,2,FALSE)","v":{"$error":"#N/A"}},{"$f":"VLOOKUP($M18,$AD$11:$AF$12,3,FALSE)","v":{"$error":"#N/A"}},null,{"$f":"S18","v":0},null,null,null,null,{"$f":"V18","v":0},{"$f":"C18","v":0}]
[null,null,null,null,null,null,null,null,null,null,null,null,null,null,null,null,null,null,null,null,null,null,null,null,null,null,null,null,null,{"$f":"COUNTA($C19:$AB19)>0","v":false},null,"     Refrigeration: Other",{"$f":"VLOOKUP($M19,$AD$11:$AF$12,2,FALSE)","v":{"$error":"#N/A"}},{"$f":"VLOOKUP($M19,$AD$11:$AF$12,3,FALSE)","v":{"$error":"#N/A"}},null,{"$f":"S19","v":0},null,null,null,null,{"$f":"V19","v":0},{"$f":"C19","v":0}]
[null,null,null,null,null,null,null,null,null,null,null,null,null,null,null,null,null,null,null,null,null,null,null,null,null,null,null,null,null,{"$f":"COUNTA($C20:$AB20)>0","v":false},null,"     Refrigeration: Other",{"$f":"VLOOKUP($M20,$AD$11:$AF$12,2,FALSE)","v":{"$error":"#N/A"}},{"$f":"VLOOKUP($M20,$AD$11:$AF$12,3,FALSE)","v":{"$error":"#N/A"}},null,{"$f":"S20","v":0},null,null,null,null,{"$f":"V20","v":0},{"$f":"C20","v":0}]
[null,null,"Door Gaskets For Glass & Solid Doors"]
[null,null,"Rebate:  Coolers: $3.50 per Linear Ft. & Freezers: $4.50 per Linear Ft."]
[null,null,"Eligibility Requirements: ",null,null,null,null,null,null,null,null,null,null,null,null,null,null,null,null,null,null,null,null,null,null,null,null,null,null,"Glass Doors - Cooler","Glass Door Med Temp"]
[null,null,"1. (Retrofit) Replacements of existing gaskets are not eligible without SRP's prior approval within 3 years unless prior SRP rebates for existing gaskets have been received >3 years.",null,null,null,null,null,null,null,null,null,null,null,null,null,null,null,null,null,null,null,null,null,null,null,null,null,null,"Glass Doors - Freezer","Glass Door Low Temp"]
[null,null,"2. (New Construction) Installations are not eligible.",null,null,null,null,null,null,null,null,null,null,null,null,null,null,null,null,null,null,null,null,null,null,null,null,null,null,"Solid Doors - Cooler","Solid Door Med Temp"]
[null,null,"The following are required items that must be submitted along with the completed non-lighting application:",null,null,null,null,null,null,null,null,null,null,null,null,null,null,null,null,null,null,null,null,null,null,null,null,null,null,"Solid Doors - Freezer","Solid Door Low Temp"]
[null,null,"1. Dated invoice/payment application."]
[null,null,"Manufacture/Model",null,null,null,null,null,null,null,null,null,"Case Type",null,null,null,null,null,null,null,"Door Perimeter (Linear Ft.)",null,null,null,"Rebate",null,null,null,null,null,null,null,"List1","List2","List3","Size","Input1","Input2","Input3","Input4","Qty","Notes"]
[null,null,null,null,null,null,null,null,null,null,null,null,null,null,null,null,null,null,null,null,null,null,null,null,null,null,null,null,null,{"$f":"COUNTA($C29:$AB29)>0","v":false},null,"     Refrigeration: Other","Door Gaskets",{"$f":"VLOOKUP($M29,$AD$23:$AE$26,2,FALSE)","v":{"$error":"#N/A"}},null,{"$f":"U29","v":0},null,null,null,null,1,{"$f":"C29","v":0}]
[null,null,null,null,null,null,null,null,null,null,null,null,null,null,null,null,null,null,null,null,null,null,null,null,null,null,null,null,null,{"$f":"COUNTA($C30:$AB30)>0","v":false},null,"     Refrigeration: Other","Door Gaskets",{"$f":"VLOOKUP($M30,$AD$23:$AE$26,2,FALSE)","v":{"$error":"#N/A"}},null,{"$f":"U30","v":0},null,null,null,null,1,{"$f":"C30","v":0}]
[null,null,null,null,null,null,null,null,null,null,null,null,null,null,null,null,null,null,null,null,null,null,null,null,null,null,null,null,null,{"$f":"COUNTA($C31:$AB31)>0","v":false},null,"     Refrigeration: Other","Door Gaskets",{"$f":"VLOOKUP($M31,$AD$23:$AE$26,2,FALSE)","v":{"$error":"#N/A"}},null,{"$f":"U31","v":0},null,null,null,null,1,{"$f":"C31","v":0}]
[null,null,null,null,null,null,null,null,null,null,null,null,null,null,null,null,null,null,null,null,null,null,null,null,null,null,null,null,null,{"$f":"COUNTA($C32:$AB32)>0","v":false},null,"     Refrigeration: Other","Door Gaskets",{"$f":"VLOOKUP($M32,$AD$23:$AE$26,2,FALSE)","v":{"$error":"#N/A"}},null,{"$f":"U32","v":0},null,null,null,null,1,{"$f":"C32","v":0}]
[null,null,"Strip Curtains For Walk-In & Refrigerated Warehouse Spaces"]
[null,null,"Rebate:  $4.00 per Sq.Ft. of Door-Opening Area"]
[null,null,"Eligibility Requirements: "]
[null,null,"1. Must be installed on doorways of walk-in refrigerators or in refrigerated warehouses."]
[null,null,"2. (Retrofit) Replacements of worn or existing curtains are not eligible."]
[null,null,"3. (New Construction) Installations  are not eligible."]
[null,null,"The following are required items that must be submitted along with the completed non-lighting application:"]
[null,null,"1. Dated invoice/payment application."]
[null,null,"Manufacture/Model",null,null,null,null,null,null,null,null,null,"Doorway Opening (Sq.Ft.)",null,null,null,null,null,null,null,"Quantity",null,null,null,"Rebate",null,null,null,null,null,null,null,"List1","List2","List3","Size","Input1","Input2","Input3","Input4","Qty","Notes"]
[null,null,null,null,null,null,null,null,null,null,null,null,null,null,null,null,null,null,null,null,null,null,null,null,null,null,null,null,null,{"$f":"COUNTA($C42:$AB42)>0","v":false},null,"     Refrigeration: Other","Strip Curtain",null,null,{"$f":"M42","v":0},null,null,null,null,{"$f":"U42","v":0},{"$f":"C42","v":0}]
[null,null,null,null,null,null,null,null,null,null,null,null,null,null,null,null,null,null,null,null,null,null,null,null,null,null,null,null,null,{"$f":"COUNTA($C43:$AB43)>0","v":false},null,"     Refrigeration: Other","Strip Curtain",null,null,{"$f":"M43","v":0},null,null,null,null,{"$f":"U43","v":0},{"$f":"C43","v":0}]
[null,null,null,null,null,null,null,null,null,null,null,null,null,null,null,null,null,null,null,null,null,null,null,null,null,null,null,null,null,{"$f":"COUNTA($C44:$AB44)>0","v":false},null,"     Refrigeration: Other","Strip Curtain",null,null,{"$f":"M44","v":0},null,null,null,null,{"$f":"U44","v":0},{"$f":"C44","v":0}]
[null,null,"Dock Door Seals For Freezer & Refrigerators"]
[null,null,"Rebate:  $25.00 per Linear Ft."]
[null,null,"Eligibility Requirements: "]
[null,null,"1. Partial seals (seals that only partially seal the space between the building and the truck during loading) or seals requiring blowers are not eligible.",null,null,null,null,null,null,null,null,null,null,null,null,null,null,null,null,null,null,null,null,null,null,null,null,null,null,"Cooler","Med Temp"]
[null,null,"2. (New Construction) Installations are not eligible.",null,null,null,null,null,null,null,null,null,null,null,null,null,null,null,null,null,null,null,null,null,null,null,null,null,null,"Freezer","Low Temp"]
[null,null,"The following are required items that must be submitted along with the completed non-lighting application:"]
[null,null,"1. Dated invoice/payment application."]
[null,null,"2. Manufacturer's equipment specification sheet documenting compliance with equipment eligibility."]
[null,null,"Manufacture/Model",null,null,null,null,null,null,null,null,null,"Refrigeration Application",null,null,null,null,null,null,null,"Door Perimeter (Linear Ft.)",null,null,null,"Rebate",null,null,null,null,null,null,null,"List1","List2","List3","Size","Input1","Input2","Input3","Input4","Qty","Notes"]
[null,null,null,null,null,null,null,null,null,null,null,null,null,null,null,null,null,null,null,null,null,null,null,null,null,null,null,null,null,{"$f":"COUNTA($C54:$AB54)>0","v":false},null,"     Refrigeration: Other","Dock Door Seal",{"$f":"VLOOKUP($M54,$AD$48:$AE$49,2,FALSE)","v":{"$error":"#N/A"}},null,{"$f":"U54","v":0},null,null,null,null,1,{"$f":"C54","v":0}]
[null,null,null,null,null,null,null,null,null,null,null,null,null,null,null,null,null,null,null,null,null,null,null,null,null,null,null,null,null,{"$f":"COUNTA($C55:$AB55)>0","v":false},null,"     Refrigeration: Other","Dock Door Seal",{"$f":"VLOOKUP($M55,$AD$48:$AE$49,2,FALSE)","v":{"$error":"#N/A"}},null,{"$f":"U55","v":0},null,null,null,null,1,{"$f":"C55","v":0}]
[null,null,null,null,null,null,null,null,null,null,null,null,null,null,null,null,null,null,null,null,null,null,null,null,null,null,null,null,null,{"$f":"COUNTA($C56:$AB56)>0","v":false},null,"     Refrigeration: Other","Dock Door Seal",{"$f":"VLOOKUP($M56,$AD$48:$AE$49,2,FALSE)","v":{"$error":"#N/A"}},null,{"$f":"U56","v":0},null,null,null,null,1,{"$f":"C56","v":0}]
[null,null,"Fast Acting Cooler & Freezer Doors "]
[null,null,"Rebate:  Coolers: $30.00 per Sq.Ft. of Door-Opening Area & Freezers: $80.00 per Sq.Ft. of Door-Opening Area"]
[null,null,"Eligibility Requirements: "]
[null,null,"1. Bi-Fold doors meet or exceed the maximum open/close time of ≤1.5 seconds.",null,null,null,null,null,null,null,null,null,null,null,null,null,null,null,null,null,null,null,null,null,null,null,null,null,null,"Cooler ","Med Temp"]
[null,null,"2. Roll-Up doors meet or exceed the maximum open/close time of ≤4.0 seconds.",null,null,null,null,null,null,null,null,null,null,null,null,null,null,null,null,null,null,null,null,null,null,null,null,null,null,"Freezer","Low Temp"]
[null,null,"3. (New Construction) Installations on coolers/freezers ≤3,000 Sq. Ft. are not eligible."]
[null,null,"The following are required items that must be submitted along with the completed non-lighting application:"]
[null,null,"1. Dated invoice/payment application."]
[null,null,"2. Manufacturer's equipment specification sheet documenting compliance with equipment eligibility."]
[null,null,"Manufacture/Model",null,null,null,null,null,null,"Refrigeration Application",null,null,null,"Door Area (Sq. Ft.)",null,null,"WI Area (Sq. Ft.)",null,null,"Opening Time (Sec)",null,"Quantity",null,null,"Rebate",null,null,null,null,null,null,null,"List1","List2","List3","Size","Input1","Input2","Input3","Input4","Qty","Notes"]
[null,null,null,null,null,null,null,null,null,null,null,null,null,null,null,null,null,null,null,null,null,null,null,null,null,null,null,null,null,{"$f":"COUNTA($C67:$AB67)>0","v":false},null,"     Refrigeration: Other","Fast-Acting Door",{"$f":"VLOOKUP($J67,$AD$60:$AE$61,2,FALSE)","v":{"$error":"#N/A"}},null,{"$f":"N67","v":0},{"$f":"T67","v":0},{"$f":"Q67","v":0},null,null,{"$f":"V67","v":0},{"$f":"C67","v":0}]
[null,null,null,null,null,null,null,null,null,null,null,null,null,null,null,null,null,null,null,null,null,null,null,null,null,null,null,null,null,{"$f":"COUNTA($C68:$AB68)>0","v":false},null,"     Refrigeration: Other","Fast-Acting Door",{"$f":"VLOOKUP($J68,$AD$60:$AE$61,2,FALSE)","v":{"$error":"#N/A"}},null,{"$f":"N68","v":0},{"$f":"T68","v":0},{"$f":"Q68","v":0},null,null,{"$f":"V68","v":0},{"$f":"C68","v":0}]
[null,null,null,null,null,null,null,null,null,null,null,null,null,null,null,null,null,null,null,null,null,null,null,null,null,null,null,null,null,{"$f":"COUNTA($C69:$AB69)>0","v":false},null,"     Refrigeration: Other","Fast-Acting Door",{"$f":"VLOOKUP($J69,$AD$60:$AE$61,2,FALSE)","v":{"$error":"#N/A"}},null,{"$f":"N69","v":0},{"$f":"T69","v":0},{"$f":"Q69","v":0},null,null,{"$f":"V69","v":0},{"$f":"C69","v":0}]
[null,null,"High Efficiency Open Display Cases"]
[null,null,"Rebate:   Open Display Case: $20.00 per Linear Ft."]
[null,null,"Eligibility Requirements: "]
[null,null,"1. Reach-In Cooler or Freezer cases are not eligible. These may be eligible under the SRP Business Solutions Custom program with pre-approval.",null,null,null,null,null,null,null,null,null,null,null,null,null,null,null,null,null,null,null,null,null,null,null,null,null,null,null,"Fluorescent","ECM"]
[null,null,"2. Rebates are not simultaneously available for cases where rebates are paid for electronically commutated motors (ECM) on the same equipment.",null,null,null,null,null,null,null,null,null,null,null,null,null,null,null,null,null,null,null,null,null,null,null,null,null,null,null,"LED","Other"]
[null,null,"3. (Retrofit) Retrofits of existing cases are not eligible. Rebates are available individually for lighting and ECMs.",null,null,null,null,null,null,null,null,null,null,null,null,null,null,null,null,null,null,null,null,null,null,null,null,null,null,null,"Other","None"]
[null,null,"4. (New Construction) Installations are not eligible.",null,null,null,null,null,null,null,null,null,null,null,null,null,null,null,null,null,null,null,null,null,null,null,null,null,null,null,"None"]
[null,null,"The following are required items that must be submitted along with the completed non-lighting application:"]
[null,null,"1. Dated invoice/payment application"]
[null,null,"2. Manufacturer's equipment specification sheet documenting compliance with equipment eligibility."]
[null,null,"Manufacture/Model",null,null,null,null,null,null,"Lighting Type",null,null,null,"Motor Type",null,null,"Length \n(Linear Ft.)",null,null,null,null,"Quantity",null,null,"Rebate",null,null,null,null,null,null,null,"List1","List2","List3","Size","Input1","Input2","Input3","Input4","Qty","Notes"]
[null,null,null,null,null,null,null,null,null,null,null,null,null,null,null,null,null,null,null,null,null,null,null,null,null,null,null,null,null,{"$f":"COUNTA($C81:$AB81)>0","v":false},null,"     Refrigeration: Other","High-Efficiency Open Display Case",{"$f":"J81","v":0},{"$f":"N81","v":0},{"$f":"Q81","v":0},null,null,null,null,{"$f":"V81","v":0},{"$f":"C81","v":0}]
[null,null,null,null,null,null,null,null,null,null,null,null,null,null,null,null,null,null,null,null,null,null,null,null,null,null,null,null,null,false,null,"     Refrigeration: Other","High-Efficiency Open Display Case",{"$f":"J82","v":0},{"$f":"N82","v":0},{"$f":"Q82","v":0},null,null,null,null,{"$f":"V82","v":0},{"$f":"C82","v":0}]
[null,null,null,null,null,null,null,null,null,null,null,null,null,null,null,null,null,null,null,null,null,null,null,null,null,null,null,null,null,false,null,"     Refrigeration: Other","High-Efficiency Open Display Case",0,0,0,null,null,null,null,0,0]
[null,null,null,null,null,null,null,null,null,null,null,null,null,null,null,null,null,null,null,null,null,null,null,null,null,null,null,null,null,false,null,"     Refrigeration: Other","High-Efficiency Open Display Case",0,0,0,null,null,null,null,0,0]
[null,null,null,null,null,null,null,null,null,null,null,null,null,null,null,null,null,null,null,null,null,null,null,null,null,null,null,null,null,false,null,"     Refrigeration: Other","High-Efficiency Open Display Case",0,0,0,null,null,null,null,0,0]
[null,null,null,null,null,null,null,null,null,null,null,null,null,null,null,null,null,null,null,null,null,null,null,null,null,null,null,null,null,false,null,"     Refrigeration: Other","High-Efficiency Open Display Case",0,0,0,null,null,null,null,0,0]
[null,null,null,null,null,null,null,null,null,null,null,null,null,null,null,null,null,null,null,null,null,null,null,null,null,null,null,null,null,false,null,"     Refrigeration: Other","High-Efficiency Open Display Case",0,0,0,null,null,null,null,0,0]
[null,null,null,null,null,null,null,null,null,null,null,null,null,null,null,null,null,null,null,null,null,null,null,null,null,null,null,null,null,false,null,"     Refrigeration: Other","High-Efficiency Open Display Case",0,0,0,null,null,null,null,0,0]
[null,null,"Electronically Commutated Motor (ECM)"]
[null,null,"Rebate:  Reach-ins: $25.00 Each & Walk-ins: $60.00 Each"]
[null,null,"Eligibility Requirements: "]
[null,null,"1. Rebates are not simultaneously available for ECMs where rebates have been paid on cases."]
[null,null,"2. (New Construction) Installations are not eligible.",null,null,null,null,null,null,null,null,null,null,null,null,null,null,null,null,null,null,null,null,null,null,null,null,null,null,"Reach-In"]
[null,null,"The following are required items that must be submitted along with the completed non-lighting application:",null,null,null,null,null,null,null,null,null,null,null,null,null,null,null,null,null,null,null,null,null,null,null,null,null,null,"Walk-In"]
[null,null,"1. Dated invoice/payment application."]
[null,null,"2. Manufacturer's equipment specification sheet documenting compliance with equipment eligibility."]
[null,null,"Manufacture/Model",null,null,null,null,null,null,null,null,null,"ECM Application",null,null,null,null,null,null,null,"Quantity ",null,null,null,"Rebate",null,null,null,null,null,null,null,"List1","List2","List3","Size","Input1","Input2","Input3","Input4","Qty","Notes"]
[null,null,null,null,null,null,null,null,null,null,null,null,null,null,null,null,null,null,null,null,null,null,null,null,null,null,null,null,null,{"$f":"COUNTA($C98:$AB98)>0","v":false},null,"     Refrigeration: Other","Electronically Commutated Motor",{"$f":"M98","v":0},null,null,null,null,null,null,{"$f":"U98","v":0},{"$f":"C98","v":0}]
[null,null,null,null,null,null,null,null,null,null,null,null,null,null,null,null,null,null,null,null,null,null,null,null,null,null,null,null,null,{"$f":"COUNTA($C99:$AB99)>0","v":false},null,"     Refrigeration: Other","Electronically Commutated Motor",{"$f":"M99","v":0},null,null,null,null,null,null,{"$f":"U99","v":0},{"$f":"C99","v":0}]
[null,null,null,null,null,null,null,null,null,null,null,null,null,null,null,null,null,null,null,null,null,null,null,null,null,null,null,null,null,{"$f":"COUNTA($C100:$AB100)>0","v":false},null,"     Refrigeration: Other","Electronically Commutated Motor",{"$f":"M100","v":0},null,null,null,null,null,null,{"$f":"U100","v":0},{"$f":"C100","v":0}]
[null,null,null,null,null,null,null,null,null,null,null,null,null,null,null,null,null,null,null,null,null,null,null,null,null,null,null,null,null,{"$f":"COUNTA($C101:$AB101)>0","v":false},null,"     Refrigeration: Other","Electronically Commutated Motor",{"$f":"M101","v":0},null,null,null,null,null,null,{"$f":"U101","v":0},{"$f":"C101","v":0}]
[null,null,null,null,null,null,null,null,null,null,null,null,null,null,null,null,null,null,null,null,null,null,null,null,null,null,null,null,null,{"$f":"COUNTA($C102:$AB102)>0","v":false},null,"     Refrigeration: Other","Electronically Commutated Motor",{"$f":"M102","v":0},null,null,null,null,null,null,{"$f":"U102","v":0},{"$f":"C102","v":0}]
[null,null,"Anti-Sweat Heater Control"]
[null,null,"Rebate:  $3.00 per Linear Ft."]
[null,null,"Eligibility Requirements: "]
[null,null,"1. Must sense humidity or condensation and adjust heater accordingly.",null,null,null,null,null,null,null,null,null,null,null,null,null,null,null,null,null,null,null,null,null,null,null,null,null,null,"Reach-in Cooler","Reach-In Med Temp"]
[null,null,"2. (New Construction) Installations are not eligible.",null,null,null,null,null,null,null,null,null,null,null,null,null,null,null,null,null,null,null,null,null,null,null,null,null,null,"Reach-in Freezer","Reach-In Low Temp"]
[null,null,"The following are required items that must be submitted along with the completed non-lighting application:",null,null,null,null,null,null,null,null,null,null,null,null,null,null,null,null,null,null,null,null,null,null,null,null,null,null,"Walk-in Cooler","Walk-In Med Temp"]
[null,null,"1. Dated invoice/payment application.",null,null,null,null,null,null,null,null,null,null,null,null,null,null,null,null,null,null,null,null,null,null,null,null,null,null,"Walk-in Freezer","Walk-In Low Temp"]
[null,null,"2. Manufacturer's equipment specification sheet documenting compliance with equipment eligibility."]
[null,null,"Manufacture/Model",null,null,null,null,null,null,null,null,null,"Refrigeration Application",null,null,null,null,"Quantity",null,null,"Door Perimeter (Linear Ft.)",null,null,null,"Rebate",null,null,null,null,null,null,null,"List1","List2","List3","Size","Input1","Input2","Input3","Input4","Qty","Notes"]
[null,null,null,null,null,null,null,null,null,null,null,null,null,null,null,null,null,null,null,null,null,null,null,null,null,null,null,null,null,{"$f":"COUNTA($C112:$AB112)>0","v":false},null,"     Refrigeration: Other","Anti-Sweat Heater Controls",{"$f":"VLOOKUP($M112,$AD$106:$AF$109,2,FALSE)","v":{"$error":"#N/A"}},null,{"$f":"U112","v":0},null,null,null,null,{"$f":"R112","v":0},{"$f":"C112","v":0}]
[null,null,null,null,null,null,null,null,null,null,null,null,null,null,null,null,null,null,null,null,null,null,null,null,null,null,null,null,null,{"$f":"COUNTA($C113:$AB113)>0","v":false},null,"     Refrigeration: Other","Anti-Sweat Heater Controls",{"$f":"VLOOKUP($M113,$AD$106:$AF$109,2,FALSE)","v":{"$error":"#N/A"}},null,{"$f":"U113","v":0},null,null,null,null,{"$f":"R113","v":0},{"$f":"C113","v":0}]
[null,null,null,null,null,null,null,null,null,null,null,null,null,null,null,null,null,null,null,null,null,null,null,null,null,null,null,null,null,{"$f":"COUNTA($C114:$AB114)>0","v":false},null,"     Refrigeration: Other","Anti-Sweat Heater Controls",{"$f":"VLOOKUP($M114,$AD$106:$AF$109,2,FALSE)","v":{"$error":"#N/A"}},null,{"$f":"U114","v":0},null,null,null,null,{"$f":"R114","v":0},{"$f":"C114","v":0}]
[null,null,"Floating Head Pressure Controls"]
[null,null,"Rebate:  $20.00 per Ton of Compressor Capacity",null,null,null,null,null,null,null,null,null,null,null,null,null,null,null,null,null,null,null,null,null,null,null,null,null,null,"Variable Speed Drive","VFD"]
[null,null,"Eligibility Requirements: ",null,null,null,null,null,null,null,null,null,null,null,null,null,null,null,null,null,null,null,null,null,null,null,null,null,null,"2 Speed Fan","Two-Stage"]
[null,null,"1. Must be installed on an evaporate condensers or active compressor capacity.",null,null,null,null,null,null,null,null,null,null,null,null,null,null,null,null,null,null,null,null,null,null,null,null,null,null,"Single Speed - Staging Control","Multi-Stage"]
[null,null,"2. Condenser system must have a VFD-controlled fan (separate rebate allowed) or staged fan.",null,null,null,null,null,null,null,null,null,null,null,null,null,null,null,null,null,null,null,null,null,null,null,null,null,null,"Single Speed - No Control","None"]
[null,null,"3. (New Construction) Installations are not eligible."]
[null,null,"The following are required items that must be submitted along with the completed non-lighting application:"]
[null,null,"1. Dated invoice/payment application.",null,null,null,null,null,null,null,null,null,null,null,null,null,null,null,null,null,null,null,null,null,null,null,null,null,null,"Ammonia"]
[null,null,"2. Manufacturer's equipment specification sheet documenting compliance with equipment eligibility.",null,null,null,null,null,null,null,null,null,null,null,null,null,null,null,null,null,null,null,null,null,null,null,null,null,null,"Freon"]
[null,null,"Manufacture/Model",null,null,null,null,null,null,null,"Refrig. Compressor Capacity (Tons)",null,null,null,"Refrigerant Type",null,null,"Fan Control Type",null,null,null,null,"Qty",null,"Rebate",null,null,null,null,null,null,null,"List1","List2","List3","Size","Input1","Input2","Input3","Input4","Qty","Notes"]
[null,null,null,null,null,null,null,null,null,null,null,null,null,null,null,null,null,null,null,null,null,null,null,null,null,null,null,null,null,{"$f":"COUNTA($C125:$AB125)>0","v":false},null,"     Refrigeration: Other","Floating Head-Pressure Controls",{"$f":"O125","v":0},{"$f":"VLOOKUP($R125,$AD$116:$AE$119,2,FALSE)","v":{"$error":"#N/A"}},{"$f":"K125","v":0},null,null,null,null,{"$f":"W125","v":0},{"$f":"C125","v":0}]
[null,null,null,null,null,null,null,null,null,null,null,null,null,null,null,null,null,null,null,null,null,null,null,null,null,null,null,null,null,{"$f":"COUNTA($C126:$AB126)>0","v":false},null,"     Refrigeration: Other","Floating Head-Pressure Controls",{"$f":"O126","v":0},{"$f":"VLOOKUP($R126,$AD$116:$AE$119,2,FALSE)","v":{"$error":"#N/A"}},{"$f":"K126","v":0},null,null,null,null,{"$f":"W126","v":0},{"$f":"C126","v":0}]
[null,null,"Refrigeration Occupancy Controls"]
[null,null,"Rebate:  Reach-In Cooler/Beverage Machine: $100.00 Per Machine & Snack Machine: $40.00 Per Machine"]
[null,null,"Eligibility Requirements: "]
[null,null,"1. Controls must turn off the refrigeration and lighting systems when the area is unoccupied for 15 minutes or more.",null,null,null,null,null,null,null,null,null,null,null,null,null,null,null,null,null,null,null,null,null,null,null,null,null,null,"Reach-In Cooler","Reach-In"]
[null,null,"2. Beverage machine and reach-in cooler controls may be set to cycle refrigeration every two hours to maintain product temperature. Customer must own the machine.",null,null,null,null,null,null,null,null,null,null,null,null,null,null,null,null,null,null,null,null,null,null,null,null,null,null,"Beverage Machine","Beverage Machine"]
[null,null,"3. (New Construction) Installations are not eligible.",null,null,null,null,null,null,null,null,null,null,null,null,null,null,null,null,null,null,null,null,null,null,null,null,null,null,"Snack Machine","Snack Machine"]
[null,null,"The following are required items that must be submitted along with the completed non-lighting application:"]
[null,null,"1. Dated invoice/payment application."]
[null,null,"2. Manufacturer's equipment specification sheet documenting compliance with equipment eligibility."]
[null,null,"Manufacture/Model",null,null,null,null,null,null,null,null,null,"Application",null,null,null,null,null,null,null,"Quantity",null,null,null,"Rebate",null,null,null,null,null,null,null,"List1","List2","List3","Size","Input1","Input2","Input3","Input4","Qty","Notes"]
[null,null,null,null,null,null,null,null,null,null,null,null,null,null,null,null,null,null,null,null,null,null,null,null,null,null,null,null,null,{"$f":"COUNTA($C137:$AB137)>0","v":false},null,"     Refrigeration: Other","Refrigerated Occupancy Controls",{"$f":"VLOOKUP($M137,$AD$130:$AE$132,2,FALSE)","v":{"$error":"#N/A"}},null,null,null,null,null,null,{"$f":"U137","v":0},{"$f":"C137","v":0}]
[null,null,null,null,null,null,null,null,null,null,null,null,null,null,null,null,null,null,null,null,null,null,null,null,null,null,null,null,null,{"$f":"COUNTA($C138:$AB138)>0","v":false},null,"     Refrigeration: Other","Refrigerated Occupancy Controls",{"$f":"VLOOKUP($M138,$AD$130:$AE$132,2,FALSE)","v":{"$error":"#N/A"}},null,null,null,null,null,null,{"$f":"U138","v":0},{"$f":"C138","v":0}]
[null,null,null,null,null,null,null,null,null,null,null,null,null,null,null,null,null,null,null,null,null,null,null,null,null,null,null,null,null,{"$f":"COUNTA($C139:$AB139)>0","v":false},null,"     Refrigeration: Other","Refrigerated Occupancy Controls",{"$f":"VLOOKUP($M139,$AD$130:$AE$132,2,FALSE)","v":{"$error":"#N/A"}},null,null,null,null,null,null,{"$f":"U139","v":0},{"$f":"C139","v":0}]
[null,null,null,null,null,null,null,null,null,null,null,null,null,null,null,null,null,null,null,null,null,null,null,null,null,null,null,null,null,{"$f":"COUNTA($C140:$AB140)>0","v":false},null,"     Refrigeration: Other","Refrigerated Occupancy Controls",{"$f":"VLOOKUP($M140,$AD$130:$AE$132,2,FALSE)","v":{"$error":"#N/A"}},null,null,null,null,null,null,{"$f":"U140","v":0},{"$f":"C140","v":0}]
[null,null,"High Efficiency Refrigeration Compressors"]
[null,null,"Rebate:  $80.00 per ton"]
[null,null,"Eligibility Requirements: ",null,null,null,null,null,null,null,null,null,null,null,null,null,null,null,null,null,null,null,null,null,null,null,null,null,null,"Beverage Merchandiser","Ref. Compressor: Bev. Merch"]
[null,null,"1. Rebates are only available for dedicated compressors for walk-in systems and self-contained refrigeration systems for reach-in systems.",null,null,null,null,null,null,null,null,null,null,null,null,null,null,null,null,null,null,null,null,null,null,null,null,null,null,"Food Service Equipment","Ref. Compressor: Food Service "]
[null,null,"2. Must meet or exceed a minimum efficiency shown in Table 6.",null,null,null,null,null,null,null,null,null,null,null,null,null,null,null,null,null,null,null,null,null,null,null,null,null,null,"Reach-in Cooler","Ref. Compressor: RI Cooler"]
[null,null,"3. (New Construction) Installations are not eligible.",null,null,null,null,null,null,null,null,null,null,null,null,null,null,null,null,null,null,null,null,null,null,null,null,null,null,"Reach-in Freezer","Ref. Compressor: RI Freezer"]
[null,null,"The following are required items that must be submitted along with the completed non-lighting application:",null,null,null,null,null,null,null,null,null,null,null,null,null,null,null,null,null,null,null,null,null,null,null,null,null,null,"Walk-in Cooler","Ref. Compressor: WI Cooler"]
[null,null,"1. Dated invoice/payment application.",null,null,null,null,null,null,null,null,null,null,null,null,null,null,null,null,null,null,null,null,null,null,null,null,null,null,"Walk-in Freezer","Ref. Compressor: WI Freezer"]
[null,null,"2. Manufacturer's equipment specification sheet documenting unit efficiency."]
[null,null,"Manufacture/Model",null,null,null,null,null,null,"Compressor Application",null,null,null,null,null,"COP",null,null,"Capacity (Tons)",null,null,"Quantity",null,null,"Rebate",null,null,null,null,null,null,null,"List1","List2","List3","Size","Input1","Input2","Input3","Input4","Qty","Notes"]
[null,null,null,null,null,null,null,null,null,null,null,null,null,null,null,null,null,null,null,null,null,null,null,null,null,null,null,null,null,{"$f":"COUNTA($C151:$AB151)>0","v":false},null,"     Refrigerated Compressor",{"$f":"VLOOKUP($J151,$AD$143:$AE$148,2,FALSE)","v":{"$error":"#N/A"}},null,null,{"$f":"S151","v":0},{"$f":"P151","v":0},null,null,null,{"$f":"V151","v":0},{"$f":"C151","v":0}]
[null,null,null,null,null,null,null,null,null,null,null,null,null,null,null,null,null,null,null,null,null,null,null,null,null,null,null,null,null,{"$f":"COUNTA($C152:$AB152)>0","v":false},null,"     Refrigerated Compressor",{"$f":"VLOOKUP($J152,$AD$143:$AE$148,2,FALSE)","v":{"$error":"#N/A"}},null,null,{"$f":"S152","v":0},{"$f":"P152","v":0},null,null,null,{"$f":"V152","v":0},{"$f":"C152","v":0}]
[null,null,null,null,null,null,null,null,null,null,null,null,null,null,null,null,null,null,null,null,null,null,null,null,null,null,null,null,null,{"$f":"COUNTA($C153:$AB153)>0","v":false},null,"     Refrigerated Compressor",{"$f":"VLOOKUP($J153,$AD$143:$AE$148,2,FALSE)","v":{"$error":"#N/A"}},null,null,{"$f":"S153","v":0},{"$f":"P153","v":0},null,null,null,{"$f":"V153","v":0},{"$f":"C153","v":0}]
[null,null,"Discus Compressors"]
[null,null,"Rebate:  $50.00 per Ton"]
[null,null,"Eligibility Requirements: "]
[null,null,"1. Must be a discus or disc-valve compressor."]
[null,null,"2. (New Construction) Installations are not eligible."]
[null,null,"The following are required items that must be submitted along with the completed non-lighting application:"]
[null,null,"1. Dated invoice/payment application."]
[null,null,"2. Manufacturer's equipment specification sheet documenting unit efficiency."]
[null,null,"Manufacture/Model",null,null,null,null,null,null,null,null,null,null,null,"Capacity (Tons)",null,null,null,null,null,null,"Quantity",null,null,"Rebate",null,null,null,null,null,null,null,"List1","List2","List3","Size","Input1","Input2","Input3","Input4","Qty","Notes"]
[null,null,null,null,null,null,null,null,null,null,null,null,null,null,null,null,null,null,null,null,null,null,null,null,null,null,null,null,null,{"$f":"COUNTA($C163:$AB163)>0","v":false},null,"     Refrigerated Compressor","Discus Compressor",null,null,{"$f":"O163","v":0},null,null,null,null,{"$f":"V163","v":0},{"$f":"C163","v":0}]
[null,null,null,null,null,null,null,null,null,null,null,null,null,null,null,null,null,null,null,null,null,null,null,null,null,null,null,null,null,{"$f":"COUNTA($C164:$AB164)>0","v":false},null,"     Refrigerated Compressor","Discus Compressor",null,null,{"$f":"O164","v":0},null,null,null,null,{"$f":"V164","v":0},{"$f":"C164","v":0}]
[null,null,null,null,null,null,null,null,null,null,null,null,null,null,null,null,null,null,null,null,null,null,null,null,null,null,null,null,null,{"$f":"COUNTA($C165:$AB165)>0","v":false},null,"     Refrigerated Compressor","Discus Compressor",null,null,{"$f":"O165","v":0},null,null,null,null,{"$f":"V165","v":0},{"$f":"C165","v":0}]
[null,null,"Evaporative Condenser"]
[null,null,"Rebate:  $70.00 per ton of Condenser"]
[null,null,"Eligibility Requirements: "]
[null,null,"1. Must have a VFD-controlled fan (separate rebate allowed).",null,null,null,null,null,null,null,null,null,null,null,null,null,null,null,null,null,null,null,null,null,null,null,null,null,null,"Yes"]
[null,null,"2. Must have a designed temperature differential (TD) ≤18 ºF and a minimum condensing temperature of 70 ºF.",null,null,null,null,null,null,null,null,null,null,null,null,null,null,null,null,null,null,null,null,null,null,null,null,null,null,"No"]
[null,null,"3. Must meet or exceed the minimum efficiency of 240 EER."]
[null,null,"4. Condenser must have floating head pressure control (no simultaneous rebate allowed).",null,null,null,null,null,null,null,null,null,null,null,null,null,null,null,null,null,null,null,null,null,null,null,null,null,null,"Ammonia"]
[null,null,"5. (New Construction) Installations are not eligible.",null,null,null,null,null,null,null,null,null,null,null,null,null,null,null,null,null,null,null,null,null,null,null,null,null,null,"Freon"]
[null,null,"The following are required items that must be submitted along with the completed non-lighting application:",null,null,null,null,null,null,null,null,null,null,null,null,null,null,null,null,null,null,null,null,null,null,null,null,null,null,"None"]
[null,null,"1. Dated invoice/payment application."]
[null,null,"2. Manufacturer's equipment specification sheet documenting compliance with equipment eligibility."]
[null,null,"Manufacture/Model",null,null,null,null,null,"Condenser Capacity (Tons)",null,null,null,"TD",null,"EER",null,"VFD?",null,"Floating Head Pressure Controls?",null,null,null,"Qty",null,"Rebate",null,null,null,null,null,null,null,"List1","List2","List3","Size","Input1","Input2","Input3","Input4","Qty","Notes"]
[null,null,null,null,null,null,null,null,null,null,null,null,null,null,null,null,null,null,null,null,null,null,null,null,null,null,null,null,null,{"$f":"COUNTA($C178:$AB178)>0","v":false},null,"     Refrigeration: Other","Evaporative Condenser",{"$f":"IF(S178<>\"None\",S178,$AD$172)","v":0},{"$f":"IF(AND(Q178=\"Yes\",S178<>\"None\"),\"VFD+FHPC\",\"Other\")","v":"Other"},{"$f":"I178","v":0},{"$f":"M178","v":0},{"$f":"O178","v":0},null,null,{"$f":"W178","v":0},{"$f":"C178","v":0}]
[null,null,null,null,null,null,null,null,null,null,null,null,null,null,null,null,null,null,null,null,null,null,null,null,null,null,null,null,null,{"$f":"COUNTA($C179:$AB179)>0","v":false},null,"     Refrigeration: Other","Evaporative Condenser",{"$f":"IF(S179<>\"None\",S179,$AD$172)","v":0},{"$f":"IF(AND(Q179=\"Yes\",S179<>\"None\"),\"VFD+FHPC\",\"Other\")","v":"Other"},{"$f":"I179","v":0},{"$f":"M179","v":0},{"$f":"O179","v":0},null,null,{"$f":"W179","v":0},{"$f":"C179","v":0}]
[null,null,"Refrigeration Condenser and Evaporator Fan VFDs"]
[null,null,"Rebate:  $125.00 per Horsepower (HP)"]
[null,null,"Eligibility Requirements: "]
[null,null,"1. Fans with cycling controls are not eligible.",null,null,null,null,null,null,null,null,null,null,null,null,null,null,null,null,null,null,null,null,null,null,null,null,null,null,"Refrig. Condenser Fan VFD","Condenser Fan"]
[null,null,"2. Equipment must reduce fan speed based on immediate needs of the system.",null,null,null,null,null,null,null,null,null,null,null,null,null,null,null,null,null,null,null,null,null,null,null,null,null,null,"Refrig. Evaporator Fan VFD","Evaporator Fan"]
[null,null,"3. (Retrofit) Replacements of existing VFDs are not eligible."]
[null,null,"4. (New Construction) Installations are not eligible."]
[null,null,"The following are required items that must be submitted along with the completed non-lighting application:"]
[null,null,"1. Dated invoice/payment application."]
[null,null,"Manufacture/Model",null,null,null,null,null,null,null,null,null,"VFD Application",null,null,null,null,null,null,"Motor HP",null,null,"Qty",null,"Rebate",null,null,null,null,null,null,null,"List1","List2","List3","Size","Input1","Input2","Input3","Input4","Qty","Notes"]
[null,null,null,null,null,null,null,null,null,null,null,null,null,null,null,null,null,null,null,null,null,null,null,null,null,null,null,null,null,{"$f":"COUNTA($C190:$AB190)>0","v":false},null,"     Refrigeration: Other","Variable Frequency Drive",{"$f":"VLOOKUP($M190,$AD$183:$AE$184,2,FALSE)","v":{"$error":"#N/A"}},null,{"$f":"T190","v":0},null,null,null,null,{"$f":"W190","v":0},{"$f":"C190","v":0}]
[null,null,null,null,null,null,null,null,null,null,null,null,null,null,null,null,null,null,null,null,null,null,null,null,null,null,null,null,null,{"$f":"COUNTA($C191:$AB191)>0","v":false},null,"     Refrigeration: Other","Variable Frequency Drive",{"$f":"VLOOKUP($M191,$AD$183:$AE$184,2,FALSE)","v":{"$error":"#N/A"}},null,{"$f":"T191","v":0},null,null,null,null,{"$f":"W191","v":0},{"$f":"C191","v":0}]
[null,null,null,null,null,null,null,null,null,null,null,null,null,null,null,null,null,null,null,null,null,null,null,null,null,null,null,null,null,{"$f":"COUNTA($C192:$AB192)>0","v":false},null,"     Refrigeration: Other","Variable Frequency Drive",{"$f":"VLOOKUP($M192,$AD$183:$AE$184,2,FALSE)","v":{"$error":"#N/A"}},null,{"$f":"T192","v":0},null,null,null,null,{"$f":"W192","v":0},{"$f":"C192","v":0}]
[null,null,"Refrigeration Suction Pipe Insulation "]
[null,null,"Rebate:   Coolers & Freezers: $0.75 per Linear Ft."]
[null,null,"Eligibility Requirements: "]
[null,null,"1. Must insulate bare suction lines ≤1.625\" (diameter). Medium-Temperature lines require 0.75\" of flexible, closed- cell, nitrile rubber, or equivalent insulation.  Low-Temperature lines require 1.00\" of flexible, closed-cell, nitrile rubber, or equivalent insulation."]
[null,null,"2. Insulation R-Values must be ≥R-3.2 for Medium-Temperature lines and ≥R-4.3 for Medium-Temperature lines."]
[null,null,"3. Outdoor installations must be protected from weather.",null,null,null,null,null,null,null,null,null,null,null,null,null,null,null,null,null,null,null,null,null,null,null,null,null,null,"Cooler","Med Temp"]
[null,null,"4. (New Construction) Installations are not eligible.",null,null,null,null,null,null,null,null,null,null,null,null,null,null,null,null,null,null,null,null,null,null,null,null,null,null,"Freezer","Low Temp"]
[null,null,"The following are required items that must be submitted along with the completed non-lighting application:"]
[null,null,"1. Dated invoice/payment application."]
[null,null,"2. Manufacturer's equipment specification sheet documenting compliance with equipment eligibility."]
[null,null,"Manufacture/Model",null,null,null,null,null,"Refrigerated Space Type",null,null,null,null,"Insulation R-Value",null,null,null,"Pipe Diameter (in.)",null,null,null,"Perimeter (Ln. Ft.)",null,null,"Rebate",null,null,null,null,null,null,null,"List1","List2","List3","Size","Input1","Input2","Input3","Input4","Qty","Notes"]
[null,null,null,null,null,null,null,null,null,null,null,null,null,null,null,null,null,null,null,null,null,null,null,null,null,null,null,null,null,{"$f":"COUNTA($C204:$AB204)>0","v":false},null,"     Refrigeration: Other","Refrigerated Suction Pipe Insulation",{"$f":"VLOOKUP($I204,$AD$198:$AE$199,2,FALSE)","v":{"$error":"#N/A"}},null,{"$f":"V204","v":0},{"$f":"N204","v":0},{"$f":"R204","v":0},null,null,1,{"$f":"C204","v":0}]
[null,null,null,null,null,null,null,null,null,null,null,null,null,null,null,null,null,null,null,null,null,null,null,null,null,null,null,null,null,{"$f":"COUNTA($C205:$AB205)>0","v":false},null,"     Refrigeration: Other","Refrigerated Suction Pipe Insulation",{"$f":"VLOOKUP($I205,$AD$198:$AE$199,2,FALSE)","v":{"$error":"#N/A"}},null,{"$f":"V205","v":0},{"$f":"N205","v":0},{"$f":"R205","v":0},null,null,1,{"$f":"C205","v":0}]
[null,null,null,null,null,null,null,null,null,null,null,null,null,null,null,null,null,null,null,null,null,null,null,null,null,null,null,null,null,{"$f":"COUNTA($C206:$AB206)>0","v":false},null,"     Refrigeration: Other","Refrigerated Suction Pipe Insulation",{"$f":"VLOOKUP($I206,$AD$198:$AE$199,2,FALSE)","v":{"$error":"#N/A"}},null,{"$f":"V206","v":0},{"$f":"N206","v":0},{"$f":"R206","v":0},null,null,1,{"$f":"C206","v":0}]

{"sheet":"Kitchen Equipment","index":8,"n_rows":147,"n_cols":42,"rows_kept":147,"cut":false,"hidden":true,"merged":[[134,2,134,26],[143,24,143,27],[144,24,144,27],[145,24,145,27],[146,24,146,27],[143,21,143,23],[144,21,144,23],[145,21,145,23],[146,21,146,23],[144,2,144,7],[145,2,145,7],[146,2,146,7],[135,2,135,27],[136,2,136,27],[137,2,137,27],[138,2,138,27],[139,2,139,27],[140,2,140,27],[141,2,141,27],[142,2,142,27],[144,18,144,20],[145,18,145,20],[146,18,146,20],[143,13,143,17],[144,13,144,17],[145,13,145,17],[146,13,146,17],[143,8,143,12],[144,8,144,12],[145,8,145,12],[146,8,146,12],[143,18,143,20],[143,2,143,7],[0,29,0,41],[2,2,2,27],[3,2,3,27],[4,2,4,18],[4,19,4,23],[4,24,4,27],[11,2,11,27],[12,2,12,27],[13,2,13,13],[13,14,13,19],[13,20,13,23],[13,24,13,27],[5,2,5,26],[6,2,6,27],[7,2,7,27],[8,2,8,27],[9,2,9,27],[10,2,10,27],[16,2,16,13],[16,14,16,19],[16,20,16,23],[16,24,16,27],[17,2,17,26],[18,2,18,27],[14,2,14,13],[14,14,14,19],[14,20,14,23],[14,24,14,27],[15,2,15,13],[15,14,15,19],[15,20,15,23],[15,24,15,27],[25,2,25,13],[25,14,25,19],[25,20,25,23],[25,24,25,27],[26,2,26,13],[26,14,26,19],[26,20,26,23],[26,24,26,27],[19,2,19,27],[20,2,20,27],[21,2,21,27],[22,2,22,27],[23,2,23,27],[24,2,24,27],[29,2,29,26],[30,2,30,27],[34,2,34,27],[35,2,35,27],[36,2,36,27],[37,2,37,27],[27,2,27,13],[27,14,27,19],[27,20,27,23],[27,24,27,27],[28,2,28,13],[28,14,28,19],[28,20,28,23],[28,24,28,27],[32,2,32,27],[33,2,33,27],[31,2,31,27],[41,2,41,11],[41,12,41,19],[41,20,41,23],[41,24,41,27],[42,2,42,11],[42,12,42,19],[42,20,42,23],[42,24,42,27],[38,2,38,27],[39,2,39,27],[40,2,40,11],[40,12,40,19],[40,20,40,23],[40,24,40,27],[49,2,49,27],[50,2,50,27],[51,2,51,27],[52,2,52,27],[53,2,53,27],[54,2,54,27],[43,2,43,11],[43,12,43,19],[43,20,43,23],[43,24,43,27],[44,2,44,26],[45,2,45,27],[46,2,46,27],[47,2,47,27],[48,2,48,27],[58,2,58,11],[58,12,58,19],[58,20,58,23],[58,24,58,27],[59,2,59,11],[59,12,59,19],[59,20,59,23],[59,24,59,27],[55,2,55,27],[56,2,56,11],[56,12,56,19],[56,20,56,23],[56,24,56,27],[57,2,57,11],[57,12,57,19],[57,20,57,23],[57,24,57,27],[69,2,69,27],[70,2,70,27],[71,2,71,10],[71,11,71,15],[71,16,71,19],[71,20,71,23],[71,24,71,27],[60,2,60,26],[61,2,61,27],[65,2,65,27],[66,2,66,27],[67,2,67,27],[68,2,68,27],[62,2,62,27],[63,2,63,27],[64,2,64,27],[74,2,74,10],[74,11,74,15],[74,16,74,19],[74,20,74,23],[74,24,74,27],[75,2,75,26],[72,2,72,10],[72,11,72,15],[72,16,72,19],[72,20,72,23],[72,24,72,27],[73,2,73,10],[73,11,73,15],[73,16,73,19],[73,20,73,23],[73,24,73,27],[82,2,82,11],[82,12,82,19],[82,20,82,23],[82,24,82,27],[83,2,83,11],[83,12,83,19],[83,20,83,23],[83,24,83,27],[76,2,76,27],[77,2,77,27],[78,2,78,27],[79,2,79,27],[80,2,80,27],[81,2,81,27],[86,2,86,26],[87,2,87,27],[88,2,88,27],[89,2,89,27],[90,2,90,27],[91,2,91,27],[84,2,84,11],[84,12,84,19],[84,20,84,23],[84,24,84,27],[85,2,85,11],[85,12,85,19],[85,20,85,23],[85,24,85,27],[95,2,95,11],[95,12,95,19],[95,20,95,23],[95,24,95,27],[96,2,96,11],[96,12,96,19],[96,20,96,23],[96,24,96,27],[92,2,92,27],[93,2,93,27],[94,2,94,11],[94,12,94,19],[94,20,94,23],[94,24,94,27],[100,2,100,27],[101,2,101,27],[102,2,102,27],[103,2,103,27],[104,2,104,27],[105,2,105,27],[97,2,97,11],[97,12,97,19],[97,20,97,23],[97,24,97,27],[98,2,98,26],[99,2,99,27],[106,2,106,10],[106,11,106,15],[106,16,106,19],[106,20,106,23],[106,24,106,27],[107,2,107,10],[107,11,107,15],[107,16,107,19],[107,20,107,23],[107,24,107,27],[108,2,108,10],[108,11,108,15],[108,16,108,19],[108,20,108,23],[108,24,108,27],[109,2,109,10],[109,11,109,15],[109,16,109,19],[109,20,109,23],[109,24,109,27],[116,2,116,27],[117,2,117,27],[118,2,118,10],[118,11,118,15],[118,16,118,19],[118,20,118,23],[118,24,118,27],[110,2,110,26],[111,2,111,27],[112,2,112,27],[113,2,113,27],[114,2,114,27],[115,2,115,27],[121,2,121,10],[121,11,121,15],[121,16,121,19],[121,20,121,23],[121,24,121,27],[122,2,122,26],[119,2,119,10],[119,11,119,15],[119,16,119,19],[119,20,119,23],[119,24,119,27],[120,2,120,10],[120,11,120,15],[120,16,120,19],[120,20,120,23],[120,24,120,27],[129,2,129,27],[130,2,130,10],[130,11,130,15],[130,16,130,19],[130,20,130,23],[130,24,130,27],[123,2,123,27],[124,2,124,27],[125,2,125,27],[126,2,126,27],[127,2,127,27],[128,2,128,27],[133,2,133,10],[133,11,133,15],[133,16,133,19],[133,20,133,23],[133,24,133,27],[131,2,131,10],[131,11,131,15],[131,16,131,19],[131,20,131,23],[131,24,131,27],[132,2,132,10],[132,11,132,15],[132,16,132,19],[132,20,132,23],[132,24,132,27]]}
[null,null,null,null,null,null,null,null,null,null,null,null,null,null,null,null,null,null,null,null,null,null,null,null,null,null,null,null,null,"Hide"]
[]
[null,null,"Kitchen Equipment"]
[null,null,"Instructions: Please select the measures you wish to apply for and complete the fields below for each selected measure. Highlighted fields are required in order for the application to be considered 'Complete'."]
[null,null,"Select Measures:"]
[null,null,"ENERGY STAR Griddle"]
[null,null,"Rebate:  $225.00 Each"]
[null,null,"Eligibility Requirements: "]
[null,null,"1. Must be ENERGY STAR®-qualified with a minimum cooking energy efficiency of 70 percent for all size units."]
[null,null,"2. (Retrofit) Used or rebuilt equipment and existing natural gas retrofits is not eligible. Natural gas to electric retrofits may be covered under the electric technologies program:\n        https://www.savewithsrpbiz.com/rebates/electrictechnology.aspx"]
[null,null,"The following are required items that must be submitted along with the completed non-lighting application:"]
[null,null,"1. Dated invoice/payment application."]
[null,null,"2. Manufacturer's equipment specification sheet documenting compliance with equipment eligibility."]
[null,null,"Manufacture/Model",null,null,null,null,null,null,null,null,null,null,null,"Cooking Energy Efficiency",null,null,null,null,null,"Quantity",null,null,null,"Rebate",null,null,null,null,null,null,null,"List1","List2","List3","Size","Input1","Input2","Input3","Input4","Qty","Notes"]
[null,null,null,null,null,null,null,null,null,null,null,null,null,null,null,null,null,null,null,null,null,null,null,null,null,null,null,null,null,{"$f":"COUNTA($C15:$AB15)>0","v":false},null,"     Kitchen Equipment: All","ENERGY STAR Griddle",null,null,null,{"$f":"O15","v":0},null,null,null,{"$f":"U15","v":0},{"$f":"C15","v":0}]
[null,null,null,null,null,null,null,null,null,null,null,null,null,null,null,null,null,null,null,null,null,null,null,null,null,null,null,null,null,{"$f":"COUNTA($C16:$AB16)>0","v":false},null,"     Kitchen Equipment: All","ENERGY STAR Griddle",null,null,null,{"$f":"O16","v":0},null,null,null,{"$f":"U16","v":0},{"$f":"C16","v":0}]
[null,null,null,null,null,null,null,null,null,null,null,null,null,null,null,null,null,null,null,null,null,null,null,null,null,null,null,null,null,{"$f":"COUNTA($C17:$AB17)>0","v":false},null,"     Kitchen Equipment: All","ENERGY STAR Griddle",null,null,null,{"$f":"O17","v":0},null,null,null,{"$f":"U17","v":0},{"$f":"C17","v":0}]
[null,null,"ENERGY STAR Electric Steam Cooker"]
[null,null,"Rebate:  $250.00 Each"]
[null,null,"Eligibility Requirements: "]
[null,null,"1. Must be ENERGY STAR®-qualified with a minimum cooking energy efficiency of 50 percent for all size units."]
[null,null,"2. (Retrofit) Used or rebuilt equipment and existing natural gas retrofits is not eligible. Natural gas to electric retrofits may be covered under the electric technologies program:\n        https://www.savewithsrpbiz.com/rebates/electrictechnology.aspx"]
[null,null,"The following are required items that must be submitted along with the completed non-lighting application:"]
[null,null,"1. Dated invoice/payment application."]
[null,null,"2. Manufacturer's equipment specification sheet documenting compliance with equipment eligibility."]
[null,null,"Manufacture/Model",null,null,null,null,null,null,null,null,null,null,null,"Cooking Energy Efficiency",null,null,null,null,null,"Quantity",null,null,null,"Rebate",null,null,null,null,null,null,null,"List1","List2","List3","Size","Input1","Input2","Input3","Input4","Qty","Notes"]
[null,null,null,null,null,null,null,null,null,null,null,null,null,null,null,null,null,null,null,null,null,null,null,null,null,null,null,null,null,{"$f":"COUNTA($C27:$AB27)>0","v":false},null,"     Kitchen Equipment: All","ENERGY STAR Electric Steam Cooker",null,null,null,{"$f":"O27","v":0},null,null,null,{"$f":"U27","v":0},{"$f":"C27","v":0}]
[null,null,null,null,null,null,null,null,null,null,null,null,null,null,null,null,null,null,null,null,null,null,null,null,null,null,null,null,null,{"$f":"COUNTA($C28:$AB28)>0","v":false},null,"     Kitchen Equipment: All","ENERGY STAR Electric Steam Cooker",null,null,null,{"$f":"O28","v":0},null,null,null,{"$f":"U28","v":0},{"$f":"C28","v":0}]
[null,null,null,null,null,null,null,null,null,null,null,null,null,null,null,null,null,null,null,null,null,null,null,null,null,null,null,null,null,{"$f":"COUNTA($C29:$AB29)>0","v":false},null,"     Kitchen Equipment: All","ENERGY STAR Electric Steam Cooker",null,null,null,{"$f":"O29","v":0},null,null,null,{"$f":"U29","v":0},{"$f":"C29","v":0}]
[null,null,"ENERGY STAR Dishwasher"]
[null,null,"Rebate:"]
[null,null,"- Under Counter: $200.00 Each"]
[null,null,"- Single Tank: $600.00 Each"]
[null,null,"- Multi Tank: $800.00 Each"]
[null,null,"Eligibility Requirements: "]
[null,null,"1. This measure applies to ENERGY STAR® high and low temp under-counter single-tank door type, single-tank conveyor, and multiple-tank conveyor dishwashers installed in a commercial kitchen.",null,null,null,null,null,null,null,null,null,null,null,null,null,null,null,null,null,null,null,null,null,null,null,null,null,null,"Under-Counter"]
[null,null,"2. Must utilize electric water heating for water supply.",null,null,null,null,null,null,null,null,null,null,null,null,null,null,null,null,null,null,null,null,null,null,null,null,null,null,"Single-Tank"]
[null,null,"The following are required items that must be submitted along with the completed non-lighting application:",null,null,null,null,null,null,null,null,null,null,null,null,null,null,null,null,null,null,null,null,null,null,null,null,null,null,"Multi-Tank"]
[null,null,"1. Dated invoice/payment application."]
[null,null,"2. Manufacturer's equipment specification sheet documenting compliance with equipment eligibility."]
[null,null,"Manufacture/Model",null,null,null,null,null,null,null,null,null,"Equipment Type",null,null,null,null,null,null,null,"Quantity",null,null,null,"Rebate",null,null,null,null,null,null,null,"List1","List2","List3","Size","Input1","Input2","Input3","Input4","Qty","Notes"]
[null,null,null,null,null,null,null,null,null,null,null,null,null,null,null,null,null,null,null,null,null,null,null,null,null,null,null,null,null,{"$f":"COUNTA($C42:$AB42)>0","v":false},null,"     Kitchen Equipment: All","ENERGY STAR Dishwasher",{"$f":"M42","v":0},null,{"$f":"U42","v":0},null,null,null,null,{"$f":"U42","v":0},{"$f":"C42","v":0}]
[null,null,null,null,null,null,null,null,null,null,null,null,null,null,null,null,null,null,null,null,null,null,null,null,null,null,null,null,null,{"$f":"COUNTA($C43:$AB43)>0","v":false},null,"     Kitchen Equipment: All","ENERGY STAR Dishwasher",{"$f":"M43","v":0},null,{"$f":"U43","v":0},null,null,null,null,{"$f":"U43","v":0},{"$f":"C43","v":0}]
[null,null,null,null,null,null,null,null,null,null,null,null,null,null,null,null,null,null,null,null,null,null,null,null,null,null,null,null,null,{"$f":"COUNTA($C44:$AB44)>0","v":false},null,"     Kitchen Equipment: All","ENERGY STAR Dishwasher",{"$f":"M44","v":0},null,{"$f":"U44","v":0},null,null,null,null,{"$f":"U44","v":0},{"$f":"C44","v":0}]
[null,null,"ENERGY STAR Hot Food Holding Cabinet"]
[null,null,"Rebate:"]
[null,null,"- 1/2 Size: $225.00 Each"]
[null,null,"- 3/4 Size: $350.00 Each"]
[null,null,"- Full Size: $700.00 Each"]
[null,null,"Eligibility Requirements: ",null,null,null,null,null,null,null,null,null,null,null,null,null,null,null,null,null,null,null,null,null,null,null,null,null,null,"1/2 Size"]
[null,null,"1. Must meet ENERGY STAR® Version 2.0 Hot Food Holding Cabinet (HFHC) specification. ",null,null,null,null,null,null,null,null,null,null,null,null,null,null,null,null,null,null,null,null,null,null,null,null,null,null,"3/4 Size"]
[null,null,"2. Cook-and-hold equipment is not eligible.",null,null,null,null,null,null,null,null,null,null,null,null,null,null,null,null,null,null,null,null,null,null,null,null,null,null,"Full Size"]
[null,null,"3. (Retrofit) Used or rebuilt equipment and existing natural gas retrofits is not eligible. Natural gas to electric retrofits may be covered under the electric technologies program:\n        https://www.savewithsrpbiz.com/rebates/electrictechnology.aspx"]
[null,null,"The following are required items that must be submitted along with the completed non-lighting application:"]
[null,null,"1. Dated invoice/payment application."]
[null,null,"2. Manufacturer's equipment specification sheet documenting compliance with equipment eligibility."]
[null,null,"Manufacture/Model",null,null,null,null,null,null,null,null,null,"Equipment Type",null,null,null,null,null,null,null,"Quantity",null,null,null,"Rebate",null,null,null,null,null,null,null,"List1","List2","List3","Size","Input1","Input2","Input3","Input4","Qty","Notes"]
[null,null,null,null,null,null,null,null,null,null,null,null,null,null,null,null,null,null,null,null,null,null,null,null,null,null,null,null,null,{"$f":"COUNTA($C58:$AB58)>0","v":false},null,"     Kitchen Equipment: All","ENERGY STAR Hot Food Holding Cabinet",{"$f":"M58","v":0},null,null,null,null,null,null,{"$f":"U58","v":0},{"$f":"C58","v":0}]
[null,null,null,null,null,null,null,null,null,null,null,null,null,null,null,null,null,null,null,null,null,null,null,null,null,null,null,null,null,{"$f":"COUNTA($C59:$AB59)>0","v":false},null,"     Kitchen Equipment: All","ENERGY STAR Hot Food Holding Cabinet",{"$f":"M59","v":0},null,null,null,null,null,null,{"$f":"U59","v":0},{"$f":"C59","v":0}]
[null,null,null,null,null,null,null,null,null,null,null,null,null,null,null,null,null,null,null,null,null,null,null,null,null,null,null,null,null,{"$f":"COUNTA($C60:$AB60)>0","v":false},null,"     Kitchen Equipment: All","ENERGY STAR Hot Food Holding Cabinet",{"$f":"M60","v":0},null,null,null,null,null,null,{"$f":"U60","v":0},{"$f":"C60","v":0}]
[null,null,"ENERGY STAR Ice Maker"]
[null,null,"Rebate:"]
[null,null,"- 100-500 lb./day: $60.00 Each"]
[null,null,"- 501-1500 lb./day: $170.00 Each"]
[null,null,"- >1500 lb./day: $215.00 Each"]
[null,null,"Eligibility Requirements: "]
[null,null,"1. Only air-cooled, cube-type machines including ice-making head, self-contained and remote-condensing units, qualify. This measure excludes flake and nugget-type ice machines.",null,null,null,null,null,null,null,null,null,null,null,null,null,null,null,null,null,null,null,null,null,null,null,null,null,null,"Self-Contained"]
[null,null,"2. The ice maker must be ENERGY STAR®-qualified.",null,null,null,null,null,null,null,null,null,null,null,null,null,null,null,null,null,null,null,null,null,null,null,null,null,null,"Remote-Condensing Unit"]
[null,null,"The following are required items that must be submitted along with the completed non-lighting application:"]
[null,null,"1. Dated invoice/payment application"]
[null,null,"2. Manufacturer's equipment specification sheet documenting compliance with equipment eligibility."]
[null,null,"Manufacture/Model",null,null,null,null,null,null,null,null,"Equipment Type",null,null,null,null,"Ice Produced (lb./day)",null,null,null,"Quantity",null,null,null,"Rebate",null,null,null,null,null,null,null,"List1","List2","List3","Size","Input1","Input2","Input3","Input4","Qty","Notes"]
[null,null,null,null,null,null,null,null,null,null,null,null,null,null,null,null,null,null,null,null,null,null,null,null,null,null,null,null,null,{"$f":"COUNTA($C73:$AB73)>0","v":false},null,"     Kitchen Equipment: All","ENERGY STAR Ice Maker",{"$f":"L73","v":0},null,{"$f":"Q73","v":0},null,null,null,null,{"$f":"U73","v":0},{"$f":"C73","v":0}]
[null,null,null,null,null,null,null,null,null,null,null,null,null,null,null,null,null,null,null,null,null,null,null,null,null,null,null,null,null,{"$f":"COUNTA($C74:$AB74)>0","v":false},null,"     Kitchen Equipment: All","ENERGY STAR Ice Maker",{"$f":"L74","v":0},null,{"$f":"Q74","v":0},null,null,null,null,{"$f":"U74","v":0},{"$f":"C74","v":0}]
[null,null,null,null,null,null,null,null,null,null,null,null,null,null,null,null,null,null,null,null,null,null,null,null,null,null,null,null,null,{"$f":"COUNTA($C75:$AB75)>0","v":false},null,"     Kitchen Equipment: All","ENERGY STAR Ice Maker",{"$f":"L75","v":0},null,{"$f":"Q75","v":0},null,null,null,null,{"$f":"U75","v":0},{"$f":"C75","v":0}]
[null,null,"ENERGY STAR Refrigerated Beverage Vending Machine"]
[null,null,"Rebate:  $100.00 Each"]
[null,null,"Eligibility Requirements: "]
[null,null,"1. The vending machine must be ENERGY STAR®-qualified.",null,null,null,null,null,null,null,null,null,null,null,null,null,null,null,null,null,null,null,null,null,null,null,null,null,null,"Yes"]
[null,null,"The following are required items that must be submitted along with the completed non-lighting application:",null,null,null,null,null,null,null,null,null,null,null,null,null,null,null,null,null,null,null,null,null,null,null,null,null,null,"No"]
[null,null,"1. Dated invoice/payment application."]
[null,null,"2. Manufacturer's equipment specification sheet documenting compliance with equipment eligibility."]
[null,null,"Manufacture/Model",null,null,null,null,null,null,null,null,null,"ENERGY STAR?",null,null,null,null,null,null,null,"Quantity",null,null,null,"Rebate",null,null,null,null,null,null,null,"List1","List2","List3","Size","Input1","Input2","Input3","Input4","Qty","Notes"]
[null,null,null,null,null,null,null,null,null,null,null,null,null,null,null,null,null,null,null,null,null,null,null,null,null,null,null,null,null,{"$f":"COUNTA($C84:$AB84)>0","v":false},null,"     Kitchen Equipment: All","ENERGY STAR Refrigerated Beverage Vending Machine",null,null,null,null,null,null,null,{"$f":"IF(M84=\"Yes\",U84,0)","v":0},{"$f":"C84","v":0}]
[null,null,null,null,null,null,null,null,null,null,null,null,null,null,null,null,null,null,null,null,null,null,null,null,null,null,null,null,null,{"$f":"COUNTA($C85:$AB85)>0","v":false},null,"     Kitchen Equipment: All","ENERGY STAR Refrigerated Beverage Vending Machine",null,null,null,null,null,null,null,{"$f":"IF(M85=\"Yes\",U85,0)","v":0},{"$f":"C85","v":0}]
[null,null,null,null,null,null,null,null,null,null,null,null,null,null,null,null,null,null,null,null,null,null,null,null,null,null,null,null,null,{"$f":"COUNTA($C86:$AB86)>0","v":false},null,"     Kitchen Equipment: All","ENERGY STAR Refrigerated Beverage Vending Machine",null,null,null,null,null,null,null,{"$f":"IF(M86=\"Yes\",U86,0)","v":0},{"$f":"C86","v":0}]
[null,null,"ENERGY STAR Electric Convection Oven"]
[null,null,"Rebate:  $175.00 Each"]
[null,null,"Eligibility Requirements: "]
[null,null,"1. Must meet ENERGY STAR Version 2.0 Convection Oven specification.",null,null,null,null,null,null,null,null,null,null,null,null,null,null,null,null,null,null,null,null,null,null,null,null,null,null,"None"]
[null,null,"2. (Retrofit) Used or rebuilt equipment and existing natural gas retrofits is not eligible. Natural gas to electric retrofits may be covered under the electric technologies program:\n        https://www.savewithsrpbiz.com/rebates/electrictechnology.aspx",null,null,null,null,null,null,null,null,null,null,null,null,null,null,null,null,null,null,null,null,null,null,null,null,null,null,"Electric Convection Oven"]
[null,null,"The following are required items that must be submitted along with the completed non-lighting application:",null,null,null,null,null,null,null,null,null,null,null,null,null,null,null,null,null,null,null,null,null,null,null,null,null,null,"Gas Convection Oven"]
[null,null,"1. Dated invoice/payment application.",null,null,null,null,null,null,null,null,null,null,null,null,null,null,null,null,null,null,null,null,null,null,null,null,null,null,"(Rebuilt) Electric Convection Oven"]
[null,null,"2. Manufacturer's equipment specification sheet documenting compliance with equipment eligibility."]
[null,null,"Manufacture/Model",null,null,null,null,null,null,null,null,null,"Existing Equipment",null,null,null,null,null,null,null,"Quantity",null,null,null,"Rebate",null,null,null,null,null,null,null,"List1","List2","List3","Size","Input1","Input2","Input3","Input4","Qty","Notes"]
[null,null,null,null,null,null,null,null,null,null,null,null,null,null,null,null,null,null,null,null,null,null,null,null,null,null,null,null,null,{"$f":"COUNTA($C96:$AB96)>0","v":false},null,"     Kitchen Equipment: All","ENERGY STAR Electric Convection Oven",null,null,null,null,null,null,null,{"$f":"IF(OR(M96=\"Electric Convection Oven\",M96=\"None\"),U96,0)","v":0},{"$f":"C96","v":0}]
[null,null,null,null,null,null,null,null,null,null,null,null,null,null,null,null,null,null,null,null,null,null,null,null,null,null,null,null,null,{"$f":"COUNTA($C97:$AB97)>0","v":false},null,"     Kitchen Equipment: All","ENERGY STAR Electric Convection Oven",null,null,null,null,null,null,null,{"$f":"IF(OR(M97=\"Electric Convection Oven\",M97=\"None\"),U97,0)","v":0},{"$f":"C97","v":0}]
[null,null,null,null,null,null,null,null,null,null,null,null,null,null,null,null,null,null,null,null,null,null,null,null,null,null,null,null,null,{"$f":"COUNTA($C98:$AB98)>0","v":false},null,"     Kitchen Equipment: All","ENERGY STAR Electric Convection Oven",null,null,null,null,null,null,null,{"$f":"IF(OR(M98=\"Electric Convection Oven\",M98=\"None\"),U98,0)","v":0},{"$f":"C98","v":0}]
[null,null,"ENERGY STAR Electric Vat Fryer"]
[null,null,"Rebate:  Standard: $250.00 Each & Large: $150.00 Each",null,null,null,null,null,null,null,null,null,null,null,null,null,null,null,null,null,null,null,null,null,null,null,null,null,null,"Standard"]
[null,null,"Eligibility Requirements: ",null,null,null,null,null,null,null,null,null,null,null,null,null,null,null,null,null,null,null,null,null,null,null,null,null,null,"Large"]
[null,null,"1. Must be ENERGY STAR-qualified with a minimum cooking energy efficiency of 80 percent for all size units."]
[null,null,"2. (Retrofit) Used or rebuilt equipment and existing natural gas retrofits is not eligible. Natural gas to electric retrofits may be covered under the electric technologies program:\n        https://www.savewithsrpbiz.com/rebates/electrictechnology.aspx"]
[null,null,"The following are required items that must be submitted along with the completed non-lighting application:"]
[null,null,"1. Dated invoice/payment application."]
[null,null,"2. Manufacturer's equipment specification sheet documenting compliance with equipment eligibility."]
[null,null,"Manufacture/Model",null,null,null,null,null,null,null,null,"Equipment Type",null,null,null,null,"Cooking Energy Efficiency",null,null,null,"Quantity",null,null,null,"Rebate",null,null,null,null,null,null,null,"List1","List2","List3","Size","Input1","Input2","Input3","Input4","Qty","Notes"]
[null,null,null,null,null,null,null,null,null,null,null,null,null,null,null,null,null,null,null,null,null,null,null,null,null,null,null,null,null,{"$f":"COUNTA($C108:$AB108)>0","v":false},null,"     Kitchen Equipment: All","ENERGY STAR Electric Vat Fryer",{"$f":"L108","v":0},null,null,{"$f":"Q108","v":0},null,null,null,{"$f":"U108","v":0},{"$f":"C108","v":0}]
[null,null,null,null,null,null,null,null,null,null,null,null,null,null,null,null,null,null,null,null,null,null,null,null,null,null,null,null,null,{"$f":"COUNTA($C109:$AB109)>0","v":false},null,"     Kitchen Equipment: All","ENERGY STAR Electric Vat Fryer",{"$f":"L109","v":0},null,null,{"$f":"Q109","v":0},null,null,null,{"$f":"U109","v":0},{"$f":"C109","v":0}]
[null,null,null,null,null,null,null,null,null,null,null,null,null,null,null,null,null,null,null,null,null,null,null,null,null,null,null,null,null,{"$f":"COUNTA($C110:$AB110)>0","v":false},null,"     Kitchen Equipment: All","ENERGY STAR Electric Vat Fryer",{"$f":"L110","v":0},null,null,{"$f":"Q110","v":0},null,null,null,{"$f":"U110","v":0},{"$f":"C110","v":0}]
[null,null,"Electric Combination Oven"]
[null,null,"Rebate:  <15 Pans: $550.00 Each & ≥15 Pans: $1,000 Each"]
[null,null,"Eligibility Requirements: "]
[null,null,"1. Must meet or exceed heavy load cooking energy efficiency of 60 percent utilizing ASTM Standard F2861.",null,null,null,null,null,null,null,null,null,null,null,null,null,null,null,null,null,null,null,null,null,null,null,null,null,null,"<15 Pans"]
[null,null,"2. (Retrofit) Used or rebuilt equipment and existing natural gas retrofits is not eligible. Natural gas to electric retrofits may be covered under the electric technologies program:\n        https://www.savewithsrpbiz.com/rebates/electrictechnology.aspx",null,null,null,null,null,null,null,null,null,null,null,null,null,null,null,null,null,null,null,null,null,null,null,null,null,null,"15+ Pans"]
[null,null,"The following are required items that must be submitted along with the completed non-lighting application:"]
[null,null,"1. Dated invoice/payment application."]
[null,null,"2. Manufacturer's equipment specification sheet documenting compliance with equipment eligibility."]
[null,null,"Manufacture/Model",null,null,null,null,null,null,null,null,"Equipment Type",null,null,null,null,"Cooking Energy Efficiency",null,null,null,"Quantity",null,null,null,"Rebate",null,null,null,null,null,null,null,"List1","List2","List3","Size","Input1","Input2","Input3","Input4","Qty","Notes"]
[null,null,null,null,null,null,null,null,null,null,null,null,null,null,null,null,null,null,null,null,null,null,null,null,null,null,null,null,null,{"$f":"COUNTA($C120:$AB120)>0","v":false},null,"     Kitchen Equipment: All","Electric Combination Oven",{"$f":"L120","v":0},null,null,{"$f":"Q120","v":0},null,null,null,{"$f":"U120","v":0},{"$f":"C120","v":0}]
[null,null,null,null,null,null,null,null,null,null,null,null,null,null,null,null,null,null,null,null,null,null,null,null,null,null,null,null,null,{"$f":"COUNTA($C121:$AB121)>0","v":false},null,"     Kitchen Equipment: All","Electric Combination Oven",{"$f":"L121","v":0},null,null,{"$f":"Q121","v":0},null,null,null,{"$f":"U121","v":0},{"$f":"C121","v":0}]
[null,null,null,null,null,null,null,null,null,null,null,null,null,null,null,null,null,null,null,null,null,null,null,null,null,null,null,null,null,{"$f":"COUNTA($C122:$AB122)>0","v":false},null,"     Kitchen Equipment: All","Electric Combination Oven",{"$f":"L122","v":0},null,null,{"$f":"Q122","v":0},null,null,null,{"$f":"U122","v":0},{"$f":"C122","v":0}]
[null,null,"High Efficiency Pre-Rinse Spray Valve"]
[null,null,"Rebate:   $75.00 Each"]
[null,null,"Eligibility Requirements: "]
[null,null,"1. Must be ≤1.15 gpm and have a cleanability performance of 26 seconds per plate or less, based on ASTM."]
[null,null,"2.  This measure is only applicable for systems with electric storage water heaters."]
[null,null,"The following are required items that must be submitted along with the completed non-lighting application:"]
[null,null,"1. Dated invoice/payment application."]
[null,null,"2. Manufacturer's equipment specification sheet documenting compliance with equipment eligibility."]
[null,null,"Manufacture/Model",null,null,null,null,null,null,null,null,"Flow Rate (gpm)",null,null,null,null,"Pre-Rinse Time (Sec)",null,null,null,"Quantity",null,null,null,"Rebate",null,null,null,null,null,null,null,"List1","List2","List3","Size","Input1","Input2","Input3","Input4","Qty","Notes"]
[null,null,null,null,null,null,null,null,null,null,null,null,null,null,null,null,null,null,null,null,null,null,null,null,null,null,null,null,null,{"$f":"COUNTA($C132:$AB132)>0","v":false},null,"     Kitchen Equipment: All","HE Pre-Rinse Spray Valve",null,null,{"$f":"L132","v":0},{"$f":"Q132","v":0},null,null,null,{"$f":"U132","v":0},{"$f":"C132","v":0}]
[null,null,null,null,null,null,null,null,null,null,null,null,null,null,null,null,null,null,null,null,null,null,null,null,null,null,null,null,null,{"$f":"COUNTA($C133:$AB133)>0","v":false},null,"     Kitchen Equipment: All","HE Pre-Rinse Spray Valve",null,null,{"$f":"L133","v":0},{"$f":"Q133","v":0},null,null,null,{"$f":"U133","v":0},{"$f":"C133","v":0}]
[null,null,null,null,null,null,null,null,null,null,null,null,null,null,null,null,null,null,null,null,null,null,null,null,null,null,null,null,null,{"$f":"COUNTA($C134:$AB134)>0","v":false},null,"     Kitchen Equipment: All","HE Pre-Rinse Spray Valve",null,null,{"$f":"L134","v":0},{"$f":"Q134","v":0},null,null,null,{"$f":"U134","v":0},{"$f":"C134","v":0}]
[null,null,"Kitchen Exhaust Fan (VFD)"]
[null,null,"Rebate:  $300.00 per Horsepower (HP)"]
[null,null,"Eligibility Requirements: ",null,null,null,null,null,null,null,null,null,null,null,null,null,null,null,null,null,null,null,null,null,null,null,null,null,null,null,"Temperature"]
[null,null,"1. Must install temperature sensor and/or an optic sensor to adjust fan speed based on cooking conditions.",null,null,null,null,null,null,null,null,null,null,null,null,null,null,null,null,null,null,null,null,null,null,null,null,null,null,null,"Optic"]
[null,null,"2. (Retrofit) Replacements of existing VFDs are not eligible unless the VFD has been non-functioning for >2 years."]
[null,null,"3. (New Construction) Installations are not eligible."]
[null,null,"The following are required items that must be submitted along with the completed non-lighting application:"]
[null,null,"1. Dated invoice/payment application."]
[null,null,"2. Manufacturer's equipment specification sheet documenting compliance with equipment eligibility."]
[null,null,"Manufacture/Model",null,null,null,null,null,"Install Location",null,null,null,null,"Sensor Type",null,null,null,null,"Motor HP",null,null,"Qty",null,null,"Rebate",null,null,null,null,null,null,null,"List1","List2","List3","Size","Input1","Input2","Input3","Input4","Qty","Notes"]
[null,null,null,null,null,null,null,null,null,null,null,null,null,null,null,null,null,null,null,null,null,null,null,null,null,null,null,null,null,{"$f":"COUNTA($C145:$AB145)>0","v":false},null,"     Kitchen Equipment: All",{"$f":"\"VFD: Kitchen (\" & IF(I145=\"Hotel\",\"Hotel\",\"Restaurant\") & \")\"","v":"VFD: Kitchen (Restaurant)"},{"$f":"N145","v":0},null,{"$f":"Q145","v":0},null,null,null,null,{"$f":"V145","v":0},{"$f":"I145","v":0}]
[null,null,null,null,null,null,null,null,null,null,null,null,null,null,null,null,null,null,null,null,null,null,null,null,null,null,null,null,null,{"$f":"COUNTA($C146:$AB146)>0","v":false},null,"     Kitchen Equipment: All",{"$f":"\"VFD: Kitchen (\" & IF(I146=\"Hotel\",\"Hotel\",\"Restaurant\") & \")\"","v":"VFD: Kitchen (Restaurant)"},{"$f":"N146","v":0},null,{"$f":"Q146","v":0},null,null,null,null,{"$f":"V146","v":0},{"$f":"I146","v":0}]
[null,null,null,null,null,null,null,null,null,null,null,null,null,null,null,null,null,null,null,null,null,null,null,null,null,null,null,null,null,{"$f":"COUNTA($C147:$AB147)>0","v":false},null,"     Kitchen Equipment: All",{"$f":"\"VFD: Kitchen (\" & IF(I147=\"Hotel\",\"Hotel\",\"Restaurant\") & \")\"","v":"VFD: Kitchen (Restaurant)"},{"$f":"N147","v":0},null,{"$f":"Q147","v":0},null,null,null,null,{"$f":"V147","v":0},{"$f":"I147","v":0}]

{"sheet":"Compressed Air","index":9,"n_rows":85,"n_cols":42,"rows_kept":85,"cut":false,"hidden":true,"merged":[[0,29,0,41],[7,2,7,26],[8,2,8,27],[9,2,9,27],[10,2,10,27],[11,2,11,27],[12,2,12,27],[1,2,1,27],[2,2,2,27],[3,2,5,27],[6,2,6,18],[6,19,6,23],[6,24,6,27],[15,2,15,8],[15,9,15,12],[15,13,15,16],[15,17,15,20],[15,21,15,23],[15,24,15,27],[13,2,13,27],[14,2,14,8],[14,9,14,12],[14,13,14,16],[14,17,14,20],[14,21,14,23],[14,24,14,27],[17,2,17,8],[17,9,17,12],[17,13,17,16],[17,17,17,20],[17,21,17,23],[17,24,17,27],[16,2,16,8],[16,9,16,12],[16,13,16,16],[16,17,16,20],[16,21,16,23],[16,24,16,27],[24,2,24,27],[25,2,25,9],[25,10,25,14],[25,15,25,18],[25,19,25,23],[25,24,25,27],[18,2,18,26],[19,2,19,27],[20,2,20,27],[21,2,21,27],[22,2,22,27],[23,2,23,27],[28,2,28,9],[28,10,28,14],[28,15,28,18],[28,19,28,23],[28,24,28,27],[29,2,29,26],[26,2,26,9],[26,10,26,14],[26,15,26,18],[26,19,26,23],[26,24,26,27],[27,2,27,9],[27,10,27,14],[27,15,27,18],[27,19,27,23],[27,24,27,27],[36,2,36,12],[36,13,36,18],[36,19,36,23],[36,24,36,27],[37,2,37,12],[37,13,37,18],[37,19,37,23],[37,24,37,27],[30,2,30,27],[31,2,31,27],[32,2,32,27],[33,2,33,27],[34,2,34,27],[35,2,35,27],[40,2,40,26],[41,2,41,27],[42,2,42,27],[43,2,43,27],[44,2,44,27],[45,2,45,27],[38,2,38,12],[38,13,38,18],[38,19,38,23],[38,24,38,27],[39,2,39,12],[39,13,39,18],[39,19,39,23],[39,24,39,27],[46,2,46,27],[47,2,47,27],[48,2,48,27],[49,2,49,27],[50,2,50,12],[50,13,50,16],[50,17,50,20],[50,21,50,23],[50,24,50,27],[51,2,51,12],[51,13,51,16],[51,17,51,20],[51,21,51,23],[51,24,51,27],[52,2,52,12],[52,13,52,16],[52,17,52,20],[52,21,52,23],[52,24,52,27],[55,2,55,27],[56,2,56,27],[57,2,57,27],[58,2,58,27],[59,2,59,27],[60,2,60,27],[53,2,53,12],[53,13,53,16],[53,17,53,20],[53,21,53,23],[53,24,53,27],[54,2,54,26],[66,2,66,9],[66,10,66,14],[66,15,66,17],[66,18,66,20],[66,21,66,23],[66,24,66,27],[61,2,61,27],[62,2,62,27],[63,2,63,27],[64,2,64,27],[65,2,65,9],[65,10,65,14],[65,15,65,17],[65,18,65,20],[65,21,65,23],[65,24,65,27],[68,2,68,9],[68,10,68,14],[68,15,68,17],[68,18,68,20],[68,21,68,23],[68,24,68,27],[67,2,67,9],[67,10,67,14],[67,15,67,17],[67,18,67,20],[67,21,67,23],[67,24,67,27],[75,2,75,27],[76,2,76,27],[77,2,77,27],[78,2,78,27],[79,2,79,27],[80,2,80,27],[69,2,69,26],[70,2,70,27],[71,2,71,27],[72,2,72,27],[73,2,73,27],[74,2,74,27],[81,2,81,12],[81,13,81,16],[81,17,81,20],[81,21,81,23],[81,24,81,27],[82,2,82,12],[82,13,82,16],[82,17,82,20],[82,21,82,23],[82,24,82,27],[83,2,83,12],[83,13,83,16],[83,17,83,20],[83,21,83,23],[83,24,83,27],[84,2,84,12],[84,13,84,16],[84,17,84,20],[84,21,84,23],[84,24,84,27]]}
[null,null,null,null,null,null,null,null,null,null,null,null,null,null,null,null,null,null,null,null,null,null,null,null,null,null,null,null,null,"Hide"]
[]
[null,null,"Compressed Air"]
[null,null,"Instructions: Please select the measures you wish to apply for and complete the fields below for each selected measure. Highlighted fields are required in order for the application to be considered 'Complete'.\nNote: In the SRP Business Solutions Standard Program, “SCFM” is defined as cubic feet of air per minute at standard conditions (14.696 psia, 68°F, and 0% relative humidity)."]
[]
[]
[null,null,"Select Measures:"]
[null,null,"VFD Controlled Compressor"]
[null,null,"Rebate:  $90.00 per Horsepower (HP)"]
[null,null,"Eligibility Requirements: "]
[null,null,"1. Must be an oil-injected screw compressor ≤75 HP."]
[null,null,"The following are required items that must be submitted along with the completed non-lighting application:"]
[null,null,"1. Dated invoice/payment application."]
[null,null,"2. Manufacturer's equipment specification sheet documenting compliance with equipment eligibility."]
[null,null,"Manufacture/Model",null,null,null,null,null,null,"Oil-Injected?",null,null,null,"Operating Hours",null,null,null,"Compressor HP",null,null,null,"Quantity",null,null,"Rebate",null,null,null,null,null,null,null,"List1","List2","List3","Size","Input1","Input2","Input3","Input4","Qty","Notes"]
[null,null,null,null,null,null,null,null,null,null,null,null,null,null,null,null,null,null,null,null,null,null,null,null,null,null,null,null,null,{"$f":"COUNTA($C16:$AB16)>0","v":false},null,"     Compressed Air: All","VFD-Controlled Compressor",{"$f":"J16","v":0},null,{"$f":"R16","v":0},{"$f":"N16","v":0},null,null,null,{"$f":"V16","v":0},{"$f":"C16","v":0}]
[null,null,null,null,null,null,null,null,null,null,null,null,null,null,null,null,null,null,null,null,null,null,null,null,null,null,null,null,null,{"$f":"COUNTA($C17:$AB17)>0","v":false},null,"     Compressed Air: All","VFD-Controlled Compressor",{"$f":"J17","v":0},null,{"$f":"R17","v":0},{"$f":"N17","v":0},null,null,null,{"$f":"V17","v":0},{"$f":"C17","v":0}]
[null,null,null,null,null,null,null,null,null,null,null,null,null,null,null,null,null,null,null,null,null,null,null,null,null,null,null,null,null,{"$f":"COUNTA($C18:$AB18)>0","v":false},null,"     Compressed Air: All","VFD-Controlled Compressor",{"$f":"J18","v":0},null,{"$f":"R18","v":0},{"$f":"N18","v":0},null,null,null,{"$f":"V18","v":0},{"$f":"C18","v":0}]
[null,null,"Receiver Capacity Addition"]
[null,null,"Rebate:  $1.50 per Gallon"]
[null,null,"Eligibility Requirements: "]
[null,null,"1. Total tank receiver capacity after the addition must be >2.0 Gallons/SCFM of active compressor capacity."]
[null,null,"The following are required items that must be submitted along with the completed non-lighting application:"]
[null,null,"1. Dated invoice/payment application."]
[null,null,"2. Manufacturer's equipment specification sheet documenting compliance with equipment eligibility."]
[null,null,"Manufacture/Model",null,null,null,null,null,null,null,"Operating Hours",null,null,null,null,"Compressor Capacity (SCFM)",null,null,null,"Receiver Capacity\n(Gallons)",null,null,null,null,"Rebate",null,null,null,null,null,null,null,"List1","List2","List3","Size","Input1","Input2","Input3","Input4","Qty","Notes"]
[null,null,null,null,null,null,null,null,null,null,null,null,null,null,null,null,null,null,null,null,null,null,null,null,null,null,null,null,null,{"$f":"COUNTA($C27:$AB27)>0","v":false},null,"     Compressed Air: All","Additional Receiver Tank Capacity",null,null,{"$f":"T27","v":0},{"$f":"K27","v":0},{"$f":"P27","v":0},null,null,1,{"$f":"C27","v":0}]
[null,null,null,null,null,null,null,null,null,null,null,null,null,null,null,null,null,null,null,null,null,null,null,null,null,null,null,null,null,{"$f":"COUNTA($C28:$AB28)>0","v":false},null,"     Compressed Air: All","Additional Receiver Tank Capacity",null,null,{"$f":"T28","v":0},{"$f":"K28","v":0},{"$f":"P28","v":0},null,null,1,{"$f":"C28","v":0}]
[null,null,null,null,null,null,null,null,null,null,null,null,null,null,null,null,null,null,null,null,null,null,null,null,null,null,null,null,null,{"$f":"COUNTA($C29:$AB29)>0","v":false},null,"     Compressed Air: All","Additional Receiver Tank Capacity",null,null,{"$f":"T29","v":0},{"$f":"K29","v":0},{"$f":"P29","v":0},null,null,1,{"$f":"C29","v":0}]
[null,null,"Zero Loss Condensate Drains"]
[null,null,"Rebate:  $90.00 Each"]
[null,null,"Eligibility Requirements: "]
[null,null,"1. Must be designed to function without the release of compressed air into the atmosphere."]
[null,null,"The following are required items that must be submitted along with the completed non-lighting application:"]
[null,null,"1. Dated invoice/payment application."]
[null,null,"2. Manufacturer's equipment specification sheet documenting compliance with equipment eligibility."]
[null,null,"Manufacture/Model",null,null,null,null,null,null,null,null,null,null,"Operating Hours",null,null,null,null,null,"Quantity",null,null,null,null,"Rebate",null,null,null,null,null,null,null,"List1","List2","List3","Size","Input1","Input2","Input3","Input4","Qty","Notes"]
[null,null,null,null,null,null,null,null,null,null,null,null,null,null,null,null,null,null,null,null,null,null,null,null,null,null,null,null,null,{"$f":"COUNTA($C38:$AB38)>0","v":false},null,"     Compressed Air: All","Zero-Loss Condensate Drain",null,null,null,{"$f":"N38","v":0},null,null,null,{"$f":"T38","v":0},{"$f":"C38","v":0}]
[null,null,null,null,null,null,null,null,null,null,null,null,null,null,null,null,null,null,null,null,null,null,null,null,null,null,null,null,null,{"$f":"COUNTA($C39:$AB39)>0","v":false},null,"     Compressed Air: All","Zero-Loss Condensate Drain",null,null,null,{"$f":"N39","v":0},null,null,null,{"$f":"T39","v":0},{"$f":"C39","v":0}]
[null,null,null,null,null,null,null,null,null,null,null,null,null,null,null,null,null,null,null,null,null,null,null,null,null,null,null,null,null,{"$f":"COUNTA($C40:$AB40)>0","v":false},null,"     Compressed Air: All","Zero-Loss Condensate Drain",null,null,null,{"$f":"N40","v":0},null,null,null,{"$f":"T40","v":0},{"$f":"C40","v":0}]
[null,null,"Refrigerated Cycling Dryers"]
[null,null,"Rebate:  $1.50 per SCFM"]
[null,null,"Eligibility Requirements: "]
[null,null,"1. Must have a rated dryer capacity ≤1,000 SCFM."]
[null,null," 2. Must operate exclusively in cycling mode and not be equipped with the ability to select between cycling and non-cycling modes."]
[null,null,"3. Cycle completely off during periods of reduced demand."]
[null,null,"4. A zero-loss condensate drain must accompany the cycling dryer."]
[null,null,"The following are required items that must be submitted along with the completed non-lighting application:"]
[null,null,"1. Dated invoice/payment application."]
[null,null,"2. Manufacturer's equipment specification sheet documenting compliance with equipment eligibility."]
[null,null,"Manufacture/Model",null,null,null,null,null,null,null,null,null,null,"Operating Hours",null,null,null,"Rated Flow (SCFM)",null,null,null,"Quantity",null,null,"Rebate",null,null,null,null,null,null,null,"List1","List2","List3","Size","Input1","Input2","Input3","Input4","Qty","Notes"]
[null,null,null,null,null,null,null,null,null,null,null,null,null,null,null,null,null,null,null,null,null,null,null,null,null,null,null,null,null,{"$f":"COUNTA($C52:$AB52)>0","v":false},null,"     Compressed Air: All","Refrigerated Cycling Dryer",null,null,{"$f":"R52","v":0},{"$f":"N52","v":0},null,null,null,{"$f":"V52","v":0},{"$f":"C52","v":0}]
[null,null,null,null,null,null,null,null,null,null,null,null,null,null,null,null,null,null,null,null,null,null,null,null,null,null,null,null,null,{"$f":"COUNTA($C53:$AB53)>0","v":false},null,"     Compressed Air: All","Refrigerated Cycling Dryer",null,null,{"$f":"R53","v":0},{"$f":"N53","v":0},null,null,null,{"$f":"V53","v":0},{"$f":"C53","v":0}]
[null,null,null,null,null,null,null,null,null,null,null,null,null,null,null,null,null,null,null,null,null,null,null,null,null,null,null,null,null,{"$f":"COUNTA($C54:$AB54)>0","v":false},null,"     Compressed Air: All","Refrigerated Cycling Dryer",null,null,{"$f":"R54","v":0},{"$f":"N54","v":0},null,null,null,{"$f":"V54","v":0},{"$f":"C54","v":0}]
[null,null,"Desiccant Dryers With Dew Point Control"]
[null,null,"Rebate:"]
[null,null,"- Externally heated with dew point controls: $5.00 per SCFM "]
[null,null,"- Blower purge with dew point controls: $7.50 per SCFM"]
[null,null,"Eligibility Requirements: "]
[null,null,"1. Must be equipped with dew point sensors and controls to regulate the regeneration cycle."]
[null,null,"2. Must have minimum runtime of 6,000 hours. ",null,null,null,null,null,null,null,null,null,null,null,null,null,null,null,null,null,null,null,null,null,null,null,null,null,null,"Externally Heated","w/ External Heating"]
[null,null,"3. Must have a rated dryer capacity ≤ 1,000 SCFM.",null,null,null,null,null,null,null,null,null,null,null,null,null,null,null,null,null,null,null,null,null,null,null,null,null,null,"Blower Purge","w/ Blower Purge"]
[null,null,"The following are required items that must be submitted along with the completed non-lighting application:"]
[null,null,"1. Dated invoice/payment application."]
[null,null,"2. Manufacturer's equipment specification sheet documenting compliance with equipment eligibility."]
[null,null,"Manufacture/Model",null,null,null,null,null,null,null,"Regeneration \nType",null,null,null,null,"Operating Hours",null,null,"Rated Flow (SCFM)",null,null,"Quantity",null,null,"Rebate",null,null,null,null,null,null,null,"List1","List2","List3","Size","Input1","Input2","Input3","Input4","Qty","Notes"]
[null,null,null,null,null,null,null,null,null,null,null,null,null,null,null,null,null,null,null,null,null,null,null,null,null,null,null,null,null,{"$f":"COUNTA($C67:$AB67)>0","v":false},null,"     Compressed Air: All",{"$f":"\"Desiccant Dryer \" &VLOOKUP($K67,$AD$61:$AE$62,2,FALSE)","v":{"$error":"#N/A"}},null,null,{"$f":"S67","v":0},{"$f":"P67","v":0},null,null,null,{"$f":"V67","v":0},{"$f":"C67","v":0}]
[null,null,null,null,null,null,null,null,null,null,null,null,null,null,null,null,null,null,null,null,null,null,null,null,null,null,null,null,null,{"$f":"COUNTA($C68:$AB68)>0","v":false},null,"     Compressed Air: All",{"$f":"\"Desiccant Dryer \" &VLOOKUP($K68,$AD$61:$AE$62,2,FALSE)","v":{"$error":"#N/A"}},null,null,{"$f":"S68","v":0},{"$f":"P68","v":0},null,null,null,{"$f":"V68","v":0},{"$f":"C68","v":0}]
[null,null,null,null,null,null,null,null,null,null,null,null,null,null,null,null,null,null,null,null,null,null,null,null,null,null,null,null,null,{"$f":"COUNTA($C69:$AB69)>0","v":false},null,"     Compressed Air: All",{"$f":"\"Desiccant Dryer \" &VLOOKUP($K69,$AD$61:$AE$62,2,FALSE)","v":{"$error":"#N/A"}},null,null,{"$f":"S69","v":0},{"$f":"P69","v":0},null,null,null,{"$f":"V69","v":0},{"$f":"C69","v":0}]
[null,null,"Low Pressure Drop Filters"]
[null,null,"Rebate:  $0.80 per SCFM"]
[null,null,"Eligibility Requirements: "]
[null,null,"1. Must be installed on an operating compressor ≥ 25 HP."]
[null,null,"2. Must be a deep-bed \"mist eliminator\" style with element life ≥ 5 years."]
[null,null,"3. Must be rated for ≤ 5 ppm liquid carryover."]
[null,null,"4. Must have a pressure loss at rated flow ≤ 1 psi when new and ≤3 psi at element change."]
[null,null,"5. Must have particulate filtration that is 100% at ≥ 3.0 microns and at least 99.98% at 0.1 to 3.0 microns."]
[null,null,"6. Must have a rated capacity ≤ 1000 SCFM."]
[null,null,"The following are required items that must be submitted along with the completed non-lighting application:"]
[null,null,"1. Dated invoice/payment application."]
[null,null,"2. Manufacturer's equipment specification sheet documenting compliance with equipment eligibility."]
[null,null,"Manufacture/Model",null,null,null,null,null,null,null,null,null,null,"Operating Hours",null,null,null,"Rated Flow (SCFM)",null,null,null,"Quantity",null,null,"Rebate",null,null,null,null,null,null,null,"List1","List2","List3","Size","Input1","Input2","Input3","Input4","Qty","Notes"]
[null,null,null,null,null,null,null,null,null,null,null,null,null,null,null,null,null,null,null,null,null,null,null,null,null,null,null,null,null,{"$f":"COUNTA($C83:$AB83)>0","v":false},null,"     Compressed Air: All","Low Pressure-Drop Filter",null,null,{"$f":"R83","v":0},{"$f":"N83","v":0},null,null,null,{"$f":"V83","v":0},{"$f":"C83","v":0}]
[null,null,null,null,null,null,null,null,null,null,null,null,null,null,null,null,null,null,null,null,null,null,null,null,null,null,null,null,null,{"$f":"COUNTA($C84:$AB84)>0","v":false},null,"     Compressed Air: All","Low Pressure-Drop Filter",null,null,{"$f":"R84","v":0},{"$f":"N84","v":0},null,null,null,{"$f":"V84","v":0},{"$f":"C84","v":0}]
[null,null,null,null,null,null,null,null,null,null,null,null,null,null,null,null,null,null,null,null,null,null,null,null,null,null,null,null,null,{"$f":"COUNTA($C85:$AB85)>0","v":false},null,"     Compressed Air: All","Low Pressure-Drop Filter",null,null,{"$f":"R85","v":0},{"$f":"N85","v":0},null,null,null,{"$f":"V85","v":0},{"$f":"C85","v":0}]

{"sheet":"IT & Data Center","index":10,"n_rows":80,"n_cols":43,"rows_kept":80,"cut":false,"hidden":true,"merged":[[6,2,6,26],[7,2,7,27],[8,2,8,27],[9,2,9,27],[10,2,10,27],[11,2,11,27],[1,2,1,27],[0,29,0,42],[2,2,2,27],[3,2,4,27],[5,2,5,18],[5,19,5,23],[5,24,5,27],[12,2,12,27],[13,2,13,27],[14,2,14,27],[15,2,15,27],[16,2,16,27],[17,2,17,7],[17,8,17,12],[17,13,17,15],[17,16,17,18],[17,19,17,21],[17,22,17,23],[17,24,17,27],[18,2,18,7],[18,8,18,12],[18,13,18,15],[18,16,18,18],[18,19,18,21],[18,22,18,23],[18,24,18,27],[21,2,21,26],[22,2,22,27],[23,2,23,27],[24,2,24,27],[25,2,25,27],[26,2,26,27],[19,24,19,27],[20,2,20,7],[20,8,20,12],[20,13,20,15],[20,16,20,18],[20,19,20,21],[20,22,20,23],[20,24,20,27],[19,2,19,7],[19,8,19,12],[19,13,19,15],[19,16,19,18],[19,19,19,21],[19,22,19,23],[27,2,27,27],[28,2,28,27],[29,2,29,27],[30,2,30,27],[31,2,31,8],[31,9,31,14],[31,15,31,19],[31,20,31,23],[31,24,31,27],[34,2,34,8],[34,9,34,14],[34,15,34,19],[34,20,34,23],[34,24,34,27],[35,2,35,26],[32,2,32,8],[32,9,32,14],[32,15,32,19],[32,20,32,23],[32,24,32,27],[33,2,33,8],[33,9,33,14],[33,15,33,19],[33,20,33,23],[33,24,33,27],[42,2,42,27],[43,2,43,27],[44,2,44,27],[45,2,45,27],[46,2,46,12],[46,13,46,17],[46,18,46,23],[46,24,46,27],[36,2,36,27],[37,2,37,27],[38,2,38,27],[39,2,39,27],[40,2,40,27],[41,2,41,27],[49,2,49,12],[49,13,49,17],[49,24,49,27],[50,2,50,26],[51,2,51,27],[52,2,52,27],[47,2,47,12],[47,13,47,17],[47,24,47,27],[48,2,48,12],[48,13,48,17],[48,24,48,27],[59,2,59,27],[60,2,60,27],[61,2,61,8],[61,9,61,15],[61,16,61,19],[61,20,61,23],[61,24,61,27],[53,2,53,27],[54,2,54,27],[55,2,55,27],[56,2,56,27],[57,2,57,27],[58,2,58,27],[64,2,64,8],[64,9,64,15],[64,16,64,19],[64,20,64,23],[64,24,64,27],[65,2,65,26],[62,2,62,8],[62,9,62,15],[62,16,62,19],[62,20,62,23],[62,24,62,27],[63,2,63,8],[63,9,63,15],[63,16,63,19],[63,20,63,23],[63,24,63,27],[72,2,72,27],[73,2,73,27],[74,2,74,27],[75,2,75,27],[76,2,76,12],[76,13,76,23],[76,24,76,27],[66,2,66,27],[67,2,67,27],[68,2,68,27],[69,2,69,27],[70,2,70,27],[71,2,71,27],[79,2,79,12],[79,13,79,23],[79,24,79,27],[77,2,77,12],[77,13,77,23],[77,24,77,27],[78,2,78,12],[78,13,78,23],[78,24,78,27]]}
[null,null,null,null,null,null,null,null,null,null,null,null,null,null,null,null,null,null,null,null,null,null,null,null,null,null,null,null,null,"Hide"]
[]
[null,null,"IT & Data Center"]
[null,null,"Instructions: Please select the measures you wish to apply for and complete the fields below for each selected measure. Highlighted fields are required in order for the application to be considered 'Complete'."]
[]
[null,null,"Select Measures:"]
[null,null,"High Efficiency Computer Room Air Conditioners (CRAC)"]
[null,null,"Rebate:",null,null,null,null,null,null,null,null,null,null,null,null,null,null,null,null,null,null,null,null,null,null,null,null,null,null,"Downflow"]
[null,null,"- CRAC Unit (Air, Water, and Glycol - cooled): Tier 1: $200.00 per Ton & Tier 2: $300.00 per Ton",null,null,null,null,null,null,null,null,null,null,null,null,null,null,null,null,null,null,null,null,null,null,null,null,null,null,"Upflow"]
[null,null,"- CRAC Unit w/ Fluid Economizers (Water, and Glycol - cooled): Tier 1: $300.00 per Ton & Tier 2: $400.00 per Ton"]
[null,null,"Eligibility Requirements: ",null,null,null,null,null,null,null,null,null,null,null,null,null,null,null,null,null,null,null,null,null,null,null,null,null,null,"Air-cooled","Air-Cooled","No"]
[null,null,"1. Rebates will be paid for highest efficiency tier for which the unit qualifies. Rebates are paid per ton of rated Sensible Cooling Capacity (not total or nominal).",null,null,null,null,null,null,null,null,null,null,null,null,null,null,null,null,null,null,null,null,null,null,null,null,null,null,"Water-cooled","Water-Cooled","No"]
[null,null,"2. Must Exceed SCOP efficiency requirements listed in Table 7. SCOP efficiency ratings must be evaluated according to ASHRAE Std. 127-2013.",null,null,null,null,null,null,null,null,null,null,null,null,null,null,null,null,null,null,null,null,null,null,null,null,null,null,"Water-cooled with Fluid Economizer","Water-Cooled","Yes"]
[null,null,"3. Backup units or redundant units are not eligible.",null,null,null,null,null,null,null,null,null,null,null,null,null,null,null,null,null,null,null,null,null,null,null,null,null,null,"Glycol Cooled","Glycol-Cooled","No"]
[null,null,"The following are required items that must be submitted along with the completed non-lighting application:",null,null,null,null,null,null,null,null,null,null,null,null,null,null,null,null,null,null,null,null,null,null,null,null,null,null,"Glycol Cooled with Fluid Economizer","Glycol-Cooled","Yes"]
[null,null,"1. Dated invoice/payment application."]
[null,null,"2. Manufacturer's equipment specification sheet documenting the efficiency or AHRI reference numbers."]
[null,null,"Manufacture/Model",null,null,null,null,null,"Equipment Class",null,null,null,null,"Supply Airflow Direction",null,null,"Sensible Cooling Capacity (BTU/h)",null,null,"SCOP",null,null,"Qty",null,"Rebate",null,null,null,null,null,null,null,null,"List1","List2","List3","Size","Input1","Input2","Input3","Input4","Qty","Notes"]
[null,null,null,null,null,null,null,null,null,null,null,null,null,null,null,null,null,null,null,null,null,null,null,null,null,null,null,null,null,{"$f":"COUNTA($C19:$AB19)>0","v":false},null,null,"     High-Efficiency Computer Room A/C (CRAC)",{"$f":"N19","v":0},{"$f":"VLOOKUP($I19,$AD$11:$AF$15,2,FALSE)","v":{"$error":"#N/A"}},{"$f":"VLOOKUP($I19,$AD$11:$AF$15,3,FALSE)","v":{"$error":"#N/A"}},{"$f":"Q19","v":0},{"$f":"T19","v":0},null,null,null,{"$f":"W19","v":0},{"$f":"C19","v":0}]
[null,null,null,null,null,null,null,null,null,null,null,null,null,null,null,null,null,null,null,null,null,null,null,null,null,null,null,null,null,{"$f":"COUNTA($C20:$AB20)>0","v":false},null,null,"     High-Efficiency Computer Room A/C (CRAC)",{"$f":"N20","v":0},{"$f":"VLOOKUP($I20,$AD$11:$AF$15,2,FALSE)","v":{"$error":"#N/A"}},{"$f":"VLOOKUP($I20,$AD$11:$AF$15,3,FALSE)","v":{"$error":"#N/A"}},{"$f":"Q20","v":0},{"$f":"T20","v":0},null,null,null,{"$f":"W20","v":0},{"$f":"C20","v":0}]
[null,null,null,null,null,null,null,null,null,null,null,null,null,null,null,null,null,null,null,null,null,null,null,null,null,null,null,null,null,{"$f":"COUNTA($C21:$AB21)>0","v":false},null,null,"     High-Efficiency Computer Room A/C (CRAC)",{"$f":"N21","v":0},{"$f":"VLOOKUP($I21,$AD$11:$AF$15,2,FALSE)","v":{"$error":"#N/A"}},{"$f":"VLOOKUP($I21,$AD$11:$AF$15,3,FALSE)","v":{"$error":"#N/A"}},{"$f":"Q21","v":0},{"$f":"T21","v":0},null,null,null,{"$f":"W21","v":0},{"$f":"C21","v":0}]
[null,null,"Electronically Commutated Motors for CRAC and CRAH Units"]
[null,null,"Rebate:  $250.00 per Horsepower (HP)"]
[null,null,"Eligibility Requirements: ",null,null,null,null,null,null,null,null,null,null,null,null,null,null,null,null,null,null,null,null,null,null,null,null,null,null,"CRAC","EC Motor: CRAC"]
[null,null,"1. Fan EC Motor must be installed on a Computer Room Air Conditioner (CRAC) or Air Handler (CRAH).",null,null,null,null,null,null,null,null,null,null,null,null,null,null,null,null,null,null,null,null,null,null,null,null,null,null,"CRAH","EC Motor: CRAH"]
[null,null,"2. Backup service units are not eligible for rebates."]
[null,null,"3. Rebates are not simultaneously available for ECM's where rebates have been paid for High Efficiency CRAC units."]
[null,null,"4. (New Construction) Installations are not eligible."]
[null,null,"The following are required items that must be submitted along with the completed non-lighting application:"]
[null,null,"1. Dated invoice/payment application."]
[null,null,"2. Manufacturer's equipment specification sheet documenting compliance with equipment eligibility."]
[null,null,"Manufacture/Model",null,null,null,null,null,null,"CRAC or CRAH?",null,null,null,null,null,"EC Motor HP",null,null,null,null,"Quantity",null,null,null,"Rebate",null,null,null,null,null,null,null,null,"List1","List2","List3","Size","Input1","Input2","Input3","Input4","Qty","Notes"]
[null,null,null,null,null,null,null,null,null,null,null,null,null,null,null,null,null,null,null,null,null,null,null,null,null,null,null,null,null,{"$f":"COUNTA($C33:$AB33)>0","v":false},null,null,"     IT & Data Center: Other",{"$f":"VLOOKUP($J33,$AD$24:$AE$25,2,FALSE)","v":{"$error":"#N/A"}},null,null,{"$f":"P33","v":0},null,null,null,null,{"$f":"U33","v":0},{"$f":"C33","v":0}]
[null,null,null,null,null,null,null,null,null,null,null,null,null,null,null,null,null,null,null,null,null,null,null,null,null,null,null,null,null,{"$f":"COUNTA($C34:$AB34)>0","v":false},null,null,"     IT & Data Center: Other",{"$f":"VLOOKUP($J34,$AD$24:$AE$25,2,FALSE)","v":{"$error":"#N/A"}},null,null,{"$f":"P34","v":0},null,null,null,null,{"$f":"U34","v":0},{"$f":"C34","v":0}]
[null,null,null,null,null,null,null,null,null,null,null,null,null,null,null,null,null,null,null,null,null,null,null,null,null,null,null,null,null,{"$f":"COUNTA($C35:$AB35)>0","v":false},null,null,"     IT & Data Center: Other",{"$f":"VLOOKUP($J35,$AD$24:$AE$25,2,FALSE)","v":{"$error":"#N/A"}},null,null,{"$f":"P35","v":0},null,null,null,null,{"$f":"U35","v":0},{"$f":"C35","v":0}]
[null,null,"Computer Power Management"]
[null,null,"Rebate:  $8.00 per Computer"]
[null,null,"Eligibility Requirements: "]
[null,null,"1. Rebates are only available for desktop computer installations."]
[null,null,"2. Must automatically reduce power settings at a network server for each inactive computer."]
[null,null,"3. Must have energy reporting capability and manage power for each individual computer."]
[null,null,"4. Software license must be in effect for 6 years."]
[null,null,"The following are required items that must be submitted along with the completed non-lighting application:"]
[null,null,"1. Dated invoice/payment application."]
[null,null,"2. Manufacturer's equipment specification sheet documenting compliance with equipment eligibility."]
[null,null,"3. Documentation showing the number of computers per license being controlled."]
[null,null,"Manufacture/Model",null,null,null,null,null,null,null,null,null,null,"Contract Length",null,null,null,null,"Number of Computers",null,null,null,null,null,"Rebate",null,null,null,null,null,null,null,null,"List1","List2","List3","Size","Input1","Input2","Input3","Input4","Qty","Notes"]
[null,null,null,null,null,null,null,null,null,null,null,null,null,null,null,null,null,null,null,null,null,null,null,null,null,null,null,null,null,{"$f":"COUNTA($C48:$AB48)>0","v":false},null,null,"     IT & Data Center: Other","Computer Power Management",null,null,null,{"$f":"N48","v":0},null,null,null,{"$f":"S48","v":0},{"$f":"C48","v":0}]
[null,null,null,null,null,null,null,null,null,null,null,null,null,null,null,null,null,null,null,null,null,null,null,null,null,null,null,null,null,{"$f":"COUNTA($C49:$AB49)>0","v":false},null,null,"     IT & Data Center: Other","Computer Power Management",null,null,null,{"$f":"N49","v":0},null,null,null,{"$f":"S49","v":0},{"$f":"C49","v":0}]
[null,null,null,null,null,null,null,null,null,null,null,null,null,null,null,null,null,null,null,null,null,null,null,null,null,null,null,null,null,{"$f":"COUNTA($C50:$AB50)>0","v":false},null,null,"     IT & Data Center: Other","Computer Power Management",null,null,null,{"$f":"N50","v":0},null,null,null,{"$f":"S50","v":0},{"$f":"C50","v":0}]
[null,null,"High Efficiency Servers "]
[null,null,"Rebate:  $375.00 per Server"]
[null,null,"Eligibility Requirements: "]
[null,null,"1. Servers must be Energy Star Certified or similarly rated that meet the same minimum high-efficiency requirements."]
[null,null,"2. Servers being removed as part of the High Efficiency Server rebate are not eligible for any other SRP rebates."]
[null,null,"3. Rebates are paid for the number of installed servers up to the number of removed servers. Additional servers removed may be eligible for additional rebates."]
[null,null," 4. (New Construction) Installations are not eligible."]
[null,null,"The following are required items that must be submitted along with the completed non-lighting application:"]
[null,null,"1. Dated invoice/payment application."]
[null,null,"2. Manufacturer's equipment specification sheet documenting compliance with equipment eligibility."]
[null,null,"3. Documentation of the serial numbers of the removed servers."]
[null,null,"Removed Manufacture/Model",null,null,null,null,null,null,"Installed Manufacture/Model",null,null,null,null,null,null,"Installed Qty",null,null,null,"Removed Qty",null,null,null,"Rebate",null,null,null,null,null,null,null,null,"List1","List2","List3","Size","Input1","Input2","Input3","Input4","Qty","Notes"]
[null,null,null,null,null,null,null,null,null,null,null,null,null,null,null,null,null,null,null,null,null,null,null,null,null,null,null,null,null,{"$f":"COUNTA($C63:$AB63)>0","v":false},null,null,"     IT & Data Center: Other","High-Efficiency Server Replacement",null,null,null,{"$f":"Q63","v":0},{"$f":"U63","v":0},null,null,1,{"$f":"\"Removed: \" &C63 & \" & Installed: \" & J63","v":"Removed:  & Installed: "}]
[null,null,null,null,null,null,null,null,null,null,null,null,null,null,null,null,null,null,null,null,null,null,null,null,null,null,null,null,null,{"$f":"COUNTA($C64:$AB64)>0","v":false},null,null,"     IT & Data Center: Other","High-Efficiency Server Replacement",null,null,null,{"$f":"Q64","v":0},{"$f":"U64","v":0},null,null,1,{"$f":"\"Removed: \" &C64 & \" & Installed: \" & J64","v":"Removed:  & Installed: "}]
[null,null,null,null,null,null,null,null,null,null,null,null,null,null,null,null,null,null,null,null,null,null,null,null,null,null,null,null,null,{"$f":"COUNTA($C65:$AB65)>0","v":false},null,null,"     IT & Data Center: Other","High-Efficiency Server Replacement",null,null,null,{"$f":"Y65","v":0},{"$f":"U65","v":0},null,null,1,{"$f":"\"Removed: \" &C65 & \" & Installed: \" & J65","v":"Removed:  & Installed: "}]
[null,null,"Server Virtualization"]
[null,null,"Rebate:  $300.00 per Server Removed"]
[null,null,"Eligibility Requirements: "]
[null,null,"1. Removed servers are eligible. Inactive or relocated servers are not eligible."]
[null,null,"2. Existing servers being virtualized must be completely removed from service."]
[null,null,"3. Servers being removed as part of the Server Virtualization rebate are not eligible for any other SRP rebate."]
[null,null,"4. (New Construction) Installations are not eligible."]
[null,null,"The following are required items that must be submitted along with the completed non-lighting application:"]
[null,null,"1. Dated invoice/payment application."]
[null,null,"2. Manufacturer's equipment specification sheet documenting compliance with equipment eligibility."]
[null,null,"3. Documentation of the serial numbers of the removed servers."]
[null,null,"Manufacture/Model",null,null,null,null,null,null,null,null,null,null,"Number of Servers Removed",null,null,null,null,null,null,null,null,null,null,"Rebate",null,null,null,null,null,null,null,null,"List1","List2","List3","Size","Input1","Input2","Input3","Input4","Qty","Notes"]
[null,null,null,null,null,null,null,null,null,null,null,null,null,null,null,null,null,null,null,null,null,null,null,null,null,null,null,null,null,{"$f":"COUNTA($C78:$AB78)>0","v":false},null,null,"     IT & Data Center: Other","Server Virtualization",null,null,null,{"$f":"N78","v":0},null,null,null,1,{"$f":"C78","v":0}]
[null,null,null,null,null,null,null,null,null,null,null,null,null,null,null,null,null,null,null,null,null,null,null,null,null,null,null,null,null,{"$f":"COUNTA($C79:$AB79)>0","v":false},null,null,"     IT & Data Center: Other","Server Virtualization",null,null,null,{"$f":"N79","v":0},null,null,null,1,{"$f":"C79","v":0}]
[null,null,null,null,null,null,null,null,null,null,null,null,null,null,null,null,null,null,null,null,null,null,null,null,null,null,null,null,null,{"$f":"COUNTA($C80:$AB80)>0","v":false},null,null,"     IT & Data Center: Other","Server Virtualization",null,null,null,{"$f":"N80","v":0},null,null,null,1,{"$f":"C80","v":0}]

{"sheet":"Additional Measures","index":11,"n_rows":78,"n_cols":43,"rows_kept":78,"cut":false,"hidden":true,"merged":[[1,2,1,27],[0,29,0,42],[2,2,2,27],[3,2,5,27],[6,2,6,18],[6,19,6,23],[6,24,6,27],[13,2,13,27],[14,2,14,27],[15,2,15,27],[16,2,16,27],[17,2,17,27],[18,2,18,27],[7,2,7,26],[8,2,8,27],[9,2,9,27],[10,2,10,27],[11,2,11,27],[12,2,12,27],[19,2,19,8],[19,9,19,15],[19,16,19,20],[19,21,19,23],[19,24,19,27],[20,2,20,8],[20,9,20,15],[20,16,20,20],[20,21,20,23],[20,24,20,27],[21,2,21,8],[21,9,21,15],[21,16,21,20],[21,21,21,23],[21,24,21,27],[22,2,22,8],[22,9,22,15],[22,16,22,20],[22,21,22,23],[22,24,22,27],[42,2,42,27],[43,2,43,27],[44,2,44,27],[45,2,45,27],[46,2,46,27],[47,2,47,27],[23,2,23,8],[23,9,23,15],[23,16,23,20],[23,21,23,23],[23,24,23,27],[41,2,41,26],[37,16,37,20],[38,16,38,20],[39,16,39,20],[40,16,40,20],[34,2,34,8],[34,24,34,27],[34,21,34,23],[34,9,34,15],[24,2,24,26],[35,2,35,8],[36,2,36,8],[35,24,35,27],[53,24,53,27],[54,2,54,8],[54,9,54,12],[54,13,54,17],[54,18,54,20],[54,21,54,23],[54,24,54,27],[48,2,48,27],[49,2,49,27],[50,2,50,27],[51,2,51,27],[52,2,52,27],[53,2,53,8],[53,9,53,12],[53,13,53,17],[53,18,53,20],[53,21,53,23],[56,2,56,8],[56,9,56,12],[56,13,56,17],[56,18,56,20],[56,21,56,23],[56,24,56,27],[55,2,55,8],[55,9,55,12],[55,13,55,17],[55,18,55,20],[55,21,55,23],[55,24,55,27],[58,2,58,8],[58,9,58,12],[58,13,58,17],[58,18,58,20],[58,21,58,23],[58,24,58,27],[57,2,57,8],[57,9,57,12],[57,13,57,17],[57,18,57,20],[57,21,57,23],[57,24,57,27],[60,2,60,26],[61,2,61,27],[62,2,62,27],[63,2,63,27],[64,2,64,27],[65,2,65,27],[59,2,59,8],[59,9,59,12],[59,13,59,17],[59,18,59,20],[59,21,59,23],[59,24,59,27],[66,2,66,27],[67,2,67,27],[68,2,68,27],[69,2,69,27],[70,2,70,27],[71,2,71,8],[71,9,71,12],[71,13,71,17],[71,18,71,20],[71,21,71,23],[73,2,73,8],[73,9,73,12],[73,13,73,17],[73,18,73,20],[73,21,73,23],[73,24,73,27],[71,24,71,27],[72,2,72,8],[72,9,72,12],[72,13,72,17],[72,18,72,20],[72,21,72,23],[72,24,72,27],[75,2,75,8],[75,9,75,12],[75,13,75,17],[75,18,75,20],[75,21,75,23],[75,24,75,27],[74,2,74,8],[74,9,74,12],[74,13,74,17],[74,18,74,20],[74,21,74,23],[74,24,74,27],[77,2,77,8],[77,9,77,12],[77,13,77,17],[77,18,77,20],[77,21,77,23],[77,24,77,27],[76,2,76,8],[76,9,76,12],[76,13,76,17],[76,18,76,20],[76,21,76,23],[76,24,76,27],[36,24,36,27],[37,2,37,8],[38,2,38,8],[39,2,39,8],[40,2,40,8],[37,24,37,27],[38,24,38,27],[39,24,39,27],[40,24,40,27],[35,9,35,15],[36,9,36,15],[37,9,37,15],[38,9,38,15],[39,9,39,15],[40,9,40,15],[25,2,25,27],[26,2,26,27],[27,2,27,27],[28,2,28,27],[29,2,29,27],[30,2,30,27],[31,2,31,27],[32,2,32,27],[33,2,33,27],[35,21,35,23],[36,21,36,23],[37,21,37,23],[38,21,38,23],[39,21,39,23],[40,21,40,23],[34,16,34,20],[35,16,35,20],[36,16,36,20]]}
[null,null,null,null,null,null,null,null,null,null,null,null,null,null,null,null,null,null,null,null,null,null,null,null,null,null,null,null,null,"Hide"]
[]
[null,null,"Additional Measures"]
[null,null,"Instructions: Please select the measures you wish to apply for and complete the fields below for each selected measure. Highlighted fields are required in order for the application to be considered 'Complete'.\nNote: High efficiency windows, building insulation, and cool roofs may be eligible for rebates under the SRP Business Solutions Custom Program. For more information about this program, contact the Program Administrator before purchasing the equipment."]
[]
[]
[null,null,"Select Measures:"]
[null,null,"Heat Pump Water Heater"]
[null,null,"Rebate:   Tier 1: $250.00 Each"]
[null,null,"Tier 2: $300.00 Each"]
[null,null,"Eligibility Requirements: "]
[null,null,"1. Must replace an existing electric hot-water heater."]
[null,null,"2. Must exceed a minimum efficiency requirement of EF ≥ 2.35. Rebates are paid at the highest tier that the unit qualifies for:"]
[null,null,"- Tier 1: 2.35 ≤ EF < 2.50"]
[null,null,"- Tier 2: EF ≥ 2.50"]
[null,null,"3. (New Construction) Installations are not eligible."]
[null,null,"The following are required items that must be submitted along with the completed non-lighting application:"]
[null,null,"1. Dated invoice/payment application."]
[null,null,"2. Manufacturer's equipment specification sheet documenting unit efficiency."]
[null,null,"Manufacture/Model",null,null,null,null,null,null,"Install Location",null,null,null,null,null,null,"EF",null,null,null,null,"Qty",null,null,"Rebate",null,null,null,null,null,null,null,null,"List1","List2","List3","Size","Input1","Input2","Input3","Input4","Qty","Notes"]
[null,null,null,null,null,null,null,null,null,null,null,null,null,null,null,null,null,null,null,null,null,null,null,null,null,null,null,null,null,{"$f":"COUNTA($C21:$AB21)>0","v":false},null,null,"     Misc","Heat Pump Water Heater",null,null,null,{"$f":"Q21","v":0},null,null,null,{"$f":"V21","v":0},{"$f":"J21","v":0}]
[null,null,null,null,null,null,null,null,null,null,null,null,null,null,null,null,null,null,null,null,null,null,null,null,null,null,null,null,null,{"$f":"COUNTA($C22:$AB22)>0","v":false},null,null,"     Misc","Heat Pump Water Heater",null,null,null,{"$f":"Q22","v":0},null,null,null,{"$f":"V22","v":0},{"$f":"J22","v":0}]
[null,null,null,null,null,null,null,null,null,null,null,null,null,null,null,null,null,null,null,null,null,null,null,null,null,null,null,null,null,{"$f":"COUNTA($C23:$AB23)>0","v":false},null,null,"     Misc","Heat Pump Water Heater",null,null,null,{"$f":"Q23","v":0},null,null,null,{"$f":"V23","v":0},{"$f":"J23","v":0}]
[null,null,null,null,null,null,null,null,null,null,null,null,null,null,null,null,null,null,null,null,null,null,null,null,null,null,null,null,null,{"$f":"COUNTA($C24:$AB24)>0","v":false},null,null,"     Misc","Heat Pump Water Heater",null,null,null,{"$f":"Q24","v":0},null,null,null,{"$f":"V24","v":0},{"$f":"J24","v":0}]
[null,null,"Variable Speed Pool Pump"]
[null,null,"Rebate:  $135.00 per Horsepower (HP)"]
[null,null,"Eligibility Requirements: "]
[null,null,"1. Rebates are available for pool pumps."]
[null,null,"2. Rebates are not available for motors larger than 25 HP. These may be eligible through the SRP Business Solutions Custom program with pre-approval."]
[null,null,"3. (Retrofit) Replacements of existing pool pump VFDs are not eligible unless existing VFD has been non-functioning for >2 years."]
[null,null,"4. Variable speed pool pump settings must meet or exceed local commercial code requirements."]
[null,null,"5. Pumps must utilize lower speeds at least 8 hours per day."]
[null,null,"The following are required items that must be submitted along with the completed non-lighting application:"]
[null,null,"1. Dated invoice/payment application."]
[null,null,"Manufacture/Model",null,null,null,null,null,null,"Install Location",null,null,null,null,null,null,"Motor HP",null,null,null,null,"Qty",null,null,"Rebate",null,null,null,null,null,null,null,null,"List1","List2","List3","Size","Input1","Input2","Input3","Input4","Qty","Notes"]
[null,null,null,null,null,null,null,null,null,null,null,null,null,null,null,null,null,null,null,null,null,null,null,null,null,null,null,null,null,{"$f":"COUNTA($C36:$AB36)>0","v":false},null,null,"     Misc","VFD: Pool Pump",null,null,{"$f":"Q36","v":0},null,null,null,null,{"$f":"V36","v":0},{"$f":"J36","v":0}]
[null,null,null,null,null,null,null,null,null,null,null,null,null,null,null,null,null,null,null,null,null,null,null,null,null,null,null,null,null,false,null,null,"     Misc","VFD: Pool Pump",null,null,0,null,null,null,null,0,0]
[null,null,null,null,null,null,null,null,null,null,null,null,null,null,null,null,null,null,null,null,null,null,null,null,null,null,null,null,null,false,null,null,"     Misc","VFD: Pool Pump",null,null,0,null,null,null,null,0,0]
[null,null,null,null,null,null,null,null,null,null,null,null,null,null,null,null,null,null,null,null,null,null,null,null,null,null,null,null,null,false,null,null,"     Misc","VFD: Pool Pump",null,null,0,null,null,null,null,0,0]
[null,null,null,null,null,null,null,null,null,null,null,null,null,null,null,null,null,null,null,null,null,null,null,null,null,null,null,null,null,false,null,null,"     Misc","VFD: Pool Pump",null,null,0,null,null,null,null,0,0]
[null,null,null,null,null,null,null,null,null,null,null,null,null,null,null,null,null,null,null,null,null,null,null,null,null,null,null,null,null,false,null,null,"     Misc","VFD: Pool Pump",null,null,0,null,null,null,null,0,0]
[null,null,"Window Film"]
[null,null,"Rebate:  $0.75 per Sq. Ft."]
[null,null,"Eligibility Requirements: ",null,null,null,null,null,null,null,null,null,null,null,null,null,null,null,null,null,null,null,null,null,null,null,null,null,null,"North",null,"Single Pane, Clear"]
[null,null,"1. Film must be NFRC Certified.",null,null,null,null,null,null,null,null,null,null,null,null,null,null,null,null,null,null,null,null,null,null,null,null,null,null,"Northeast",null,"Single Pane, Colored"]
[null,null,"2. Must be installed in an air conditioned space.",null,null,null,null,null,null,null,null,null,null,null,null,null,null,null,null,null,null,null,null,null,null,null,null,null,null,"East",null,"Double Pane, Clear"]
[null,null,"3. Windows must not have any previous shading.",null,null,null,null,null,null,null,null,null,null,null,null,null,null,null,null,null,null,null,null,null,null,null,null,null,null,"Southeast",null,"Double Pane, Colored"]
[null,null,"4. Must not have a northern exposure (±45° due North) with final qualification at SRP's discretion.",null,null,null,null,null,null,null,null,null,null,null,null,null,null,null,null,null,null,null,null,null,null,null,null,null,null,"South"]
[null,null,"5. Must have a maximum Solar Heat Gain Coefficient (SHGC) of 0.35 (Evaluated at 1/4\" Clear Single Glazing).",null,null,null,null,null,null,null,null,null,null,null,null,null,null,null,null,null,null,null,null,null,null,null,null,null,null,"Southwest"]
[null,null,"6. (New Construction) Installations are not eligible.",null,null,null,null,null,null,null,null,null,null,null,null,null,null,null,null,null,null,null,null,null,null,null,null,null,null,"West"]
[null,null,"The following are required items that must be submitted along with the completed non-lighting application:",null,null,null,null,null,null,null,null,null,null,null,null,null,null,null,null,null,null,null,null,null,null,null,null,null,null,"Northwest"]
[null,null,"1. Dated invoice/payment application with window square footage."]
[null,null,"2. Manufacturer's equipment specification sheet documenting window SHGC."]
[null,null,"Manufacture/Model",null,null,null,null,null,null,"Exposure",null,null,null,"Window Type",null,null,null,null,"SHGC",null,null,"Window Coverage (Sq. Ft.)",null,null,"Rebate",null,null,null,null,null,null,null,null,"List1","List2","List3","Size","Input1","Input2","Input3","Input4","Qty","Notes"]
[null,null,null,null,null,null,null,null,null,null,null,null,null,null,null,null,null,null,null,null,null,null,null,null,null,null,null,null,null,{"$f":"COUNTA($C55:$AB55)>0","v":false},null,null,"     Misc","Window Film",{"$f":"J55","v":0},{"$f":"N55","v":0},{"$f":"V55","v":0},{"$f":"S55","v":0},null,null,null,1,{"$f":"C55","v":0}]
[null,null,null,null,null,null,null,null,null,null,null,null,null,null,null,null,null,null,null,null,null,null,null,null,null,null,null,null,null,false,null,null,"     Misc","Window Film",0,0,0,0,null,null,null,1,0]
[null,null,null,null,null,null,null,null,null,null,null,null,null,null,null,null,null,null,null,null,null,null,null,null,null,null,null,null,null,false,null,null,"     Misc","Window Film",0,0,0,0,null,null,null,1,0]
[null,null,null,null,null,null,null,null,null,null,null,null,null,null,null,null,null,null,null,null,null,null,null,null,null,null,null,null,null,false,null,null,"     Misc","Window Film",0,0,0,0,null,null,null,1,0]
[null,null,null,null,null,null,null,null,null,null,null,null,null,null,null,null,null,null,null,null,null,null,null,null,null,null,null,null,null,false,null,null,"     Misc","Window Film",0,0,0,0,null,null,null,1,0]
[null,null,null,null,null,null,null,null,null,null,null,null,null,null,null,null,null,null,null,null,null,null,null,null,null,null,null,null,null,false,null,null,"     Misc","Window Film",0,0,0,0,null,null,null,1,0]
[null,null,"Shade Screen"]
[null,null,"Rebate:  $0.80 per Sq. Ft."]
[null,null,"Eligibility Requirements: "]
[null,null,"1. Must be installed in an air conditioned space.",null,null,null,null,null,null,null,null,null,null,null,null,null,null,null,null,null,null,null,null,null,null,null,null,null,null,"North",null,"Single Pane, Clear"]
[null,null,"2. Windows must not have any previous shading.",null,null,null,null,null,null,null,null,null,null,null,null,null,null,null,null,null,null,null,null,null,null,null,null,null,null,"Northeast",null,"Single Pane, Colored"]
[null,null,"3. Must not have a northern exposure (±45° due North) with final qualification at SRP's discretion.",null,null,null,null,null,null,null,null,null,null,null,null,null,null,null,null,null,null,null,null,null,null,null,null,null,null,"East",null,"Double Pane, Clear"]
[null,null,"4. Must have a maximum Solar Heat Gain Coefficient (SHGC) of 0.35 (Evaluated at 1/4\" Clear Single Glazing).",null,null,null,null,null,null,null,null,null,null,null,null,null,null,null,null,null,null,null,null,null,null,null,null,null,null,"Southeast",null,"Double Pane, Colored"]
[null,null,"5. (New Construction) Installations are not eligible.",null,null,null,null,null,null,null,null,null,null,null,null,null,null,null,null,null,null,null,null,null,null,null,null,null,null,"South"]
[null,null,"The following are required items that must be submitted along with the completed non-lighting application:",null,null,null,null,null,null,null,null,null,null,null,null,null,null,null,null,null,null,null,null,null,null,null,null,null,null,"Southwest"]
[null,null,"1. Dated invoice/payment application with window square footage.",null,null,null,null,null,null,null,null,null,null,null,null,null,null,null,null,null,null,null,null,null,null,null,null,null,null,"West"]
[null,null,"2. Manufacturer's equipment specification sheet documenting window SHGC.",null,null,null,null,null,null,null,null,null,null,null,null,null,null,null,null,null,null,null,null,null,null,null,null,null,null,"Northwest"]
[null,null,"Manufacture/Model",null,null,null,null,null,null,"Exposure",null,null,null,"Window Type",null,null,null,null,"SHGC",null,null,"Window Coverage (Sq. Ft.)",null,null,"Rebate",null,null,null,null,null,null,null,null,"List1","List2","List3","Size","Input1","Input2","Input3","Input4","Qty","Notes"]
[null,null,null,null,null,null,null,null,null,null,null,null,null,null,null,null,null,null,null,null,null,null,null,null,null,null,null,null,null,{"$f":"COUNTA($C73:$AB73)>0","v":false},null,null,"     Misc","Shade Screen",{"$f":"J73","v":0},{"$f":"N73","v":0},{"$f":"V73","v":0},{"$f":"S73","v":0},null,null,null,1,{"$f":"C73","v":0}]
[null,null,null,null,null,null,null,null,null,null,null,null,null,null,null,null,null,null,null,null,null,null,null,null,null,null,null,null,null,false,null,null,"     Misc","Shade Screen",0,0,0,0,null,null,null,1,0]
[null,null,null,null,null,null,null,null,null,null,null,null,null,null,null,null,null,null,null,null,null,null,null,null,null,null,null,null,null,false,null,null,"     Misc","Shade Screen",0,0,0,0,null,null,null,1,0]
[null,null,null,null,null,null,null,null,null,null,null,null,null,null,null,null,null,null,null,null,null,null,null,null,null,null,null,null,null,false,null,null,"     Misc","Shade Screen",0,0,0,0,null,null,null,1,0]
[null,null,null,null,null,null,null,null,null,null,null,null,null,null,null,null,null,null,null,null,null,null,null,null,null,null,null,null,null,false,null,null,"     Misc","Shade Screen",0,0,0,0,null,null,null,1,0]
[null,null,null,null,null,null,null,null,null,null,null,null,null,null,null,null,null,null,null,null,null,null,null,null,null,null,null,null,null,false,null,null,"     Misc","Shade Screen",0,0,0,0,null,null,null,1,0]

{"sheet":"Project Report","index":12,"n_rows":60,"n_cols":18,"rows_kept":60,"cut":false,"hidden":false,"merged":[[6,2,6,5],[6,6,6,9],[6,10,6,13],[1,15,2,22],[2,5,2,14],[3,10,3,14],[4,13,4,14],[4,15,4,17],[7,2,7,5],[7,6,7,9],[7,10,7,13],[8,2,8,5],[8,6,8,9],[8,10,8,13],[9,2,9,5],[9,6,9,9],[9,10,9,13],[10,2,10,5],[10,6,10,9],[10,10,10,13],[11,2,11,5],[11,6,11,9],[11,10,11,13],[12,2,12,5],[12,6,12,9],[12,10,12,13],[24,4,27,8],[13,2,13,5],[13,6,13,9],[13,10,13,13],[14,2,14,5],[14,6,14,9],[14,10,14,13],[16,2,16,13],[18,11,18,13],[19,4,22,8],[19,9,22,10],[19,11,19,13],[29,4,31,6],[29,7,31,8],[30,10,30,11],[30,12,30,13],[31,10,32,11],[31,12,32,13],[32,4,33,6],[32,7,33,8],[35,4,36,6],[35,7,36,8],[35,10,36,11],[35,12,36,13],[37,4,38,6],[37,7,38,8],[37,10,38,11],[37,12,38,13],[52,3,52,13],[39,4,40,6],[39,7,40,8],[41,4,42,6],[41,7,42,8],[44,2,44,13],[45,2,45,13],[46,2,46,13],[48,2,48,13],[49,2,49,13],[50,2,50,13],[51,3,51,13],[59,3,59,13],[53,3,53,13],[54,3,54,13],[55,3,55,13],[56,2,56,13],[57,3,57,13],[58,3,58,13]]}
[]
[null,null,null,null,null,null,null,null,null,null,null,null,null,null,null,"HIDE"]
[null,null,null,null,null,{"$f":"Instructions!$D$3","v":"FY21 SRP Business Solutions Standard Non-Lighting"}]
[null,null,null,null,null,null,null,null,null,null,"Measure Report"]
[null,null,null,null,null,null,null,null,null,null,null,null,null,{"$f":"Version_ID","v":"FY21.4"}]
[]
[null,null,"Participant Information",null,null,null,"Vendor Information",null,null,null,"Project Information"]
[null,null,{"$f":"IF(Participant_Name<>\"\",Participant_Name,\"\")","v":""},null,null,null,{"$f":"IF('Customer Information'!T25=\"Yes\",\"Self-Installed\",IF(TA_Name<>\"\",TA_Name,\"\"))","v":""},null,null,null,{"$f":"IF(Project_SBSName<>\"\",Project_SBSName,\"\")","v":""}]
[null,null,null,null,null,null,null,null,null,null,{"$f":"IF(Project_AcctNum<>\"\",\"Account #: \" & Project_AcctNum,\"\")","v":""}]
[null,null,{"$f":"IF(Participant_Address1<>\"\",Participant_Address1,\"\")","v":""},null,null,null,{"$f":"IF(TA_Address1<>\"\",TA_Address1,\"\")","v":""},null,null,null,{"$f":"IF(Project_Address1<>\"\",Project_Address1,\"\")","v":""}]
[null,null,{"$f":"IF(Participant_Address2<>\"\",Participant_Address2,\"\")&IF(Participant_Address3<>\"\",\", \"&Participant_Address3,\"\") & \" \" & IF(Participant_Address4<>\"\",Participant_Address4,\"\")","v":" "},null,null,null,{"$f":"IF(TA_Address2<>\"\",TA_Address2,\"\")&IF(TA_Address3<>\"\",\", \"&TA_Address3,\"\") & \" \" & IF(TA_Address4<>\"\",TA_Address4,\"\")","v":" "},null,null,null,{"$f":"IF(Project_Address2<>\"\",Project_Address2,\"\")&IF(Project_Address2<>\"\",\", \"&Project_Address3,\"\") & \" \" & IF(Project_Address4<>\"\",Project_Address4,\"\")","v":" "}]
[]
[null,null,{"$f":"IF(Participant_Contact<>\"\",Participant_Address2,\"\")&IF(Participant_Title<>\"\",\", \"&Participant_Title,\"\")","v":""},null,null,null,{"$f":"IF(TA_Contact<>\"\",TA_Address2,\"\")&IF(TA_Title<>\"\",\", \"&TA_Title,\"\")","v":""},null,null,null,{"$f":"IF(Project_Type<>\"\",Project_Type,\"\")","v":"Evaluation - Retro"}]
[null,null,{"$f":"IF(Participant_Email<>\"\",Participant_Email,\"\")","v":""},null,null,null,{"$f":"IF(TA_Email<>\"\",TA_Email,\"\")","v":""}]
[null,null,{"$f":"IF(Participant_Phone<>\"\",Participant_Phone,\"\")","v":""},null,null,null,{"$f":"IF(TA_Phone<>\"\",TA_Phone,\"\")","v":""},null,null,null,{"$f":"IF(Project_InstDate<>\"\",\"Installed: \"&CONCATENATE(MONTH(Project_InstDate),\"/\",DAY(Project_InstDate),\"/\",YEAR(Project_InstDate)),\"\")","v":""}]
[]
[null,null,"Project Assessment Summary",null,null,null,null,null,null,null,null,null,null,null,null,"$/kWh","$/kW"]
[]
[null,null,"Electric Cost Savingsa",null,null,null,null,null,null,null,null,"Total Project Cost",null,null,null,{"$f":"IFERROR(VLOOKUP('Customer Information'!$BD$22,'CI Table'!$A$48:$C$62,2,FALSE),ROUND(AVERAGE('CI Table'!$B$48:$B$62),4))","v":7.7100000000000002E-2},{"$f":"IFERROR(VLOOKUP('Customer Information'!$BD$22,'CI Table'!$A$48:$C$62,3,FALSE),ROUND(AVERAGE('CI Table'!$C$48:$C$62),4))","v":2.9384000000000001},"(Default)"]
[null,null,null,null,{"$f":"IFERROR(IF($E$25=0,0,$E$30*IF($P$18<>\"\",$P$18,$P$19)+$E$33*IF($Q$18<>\"\",$Q$18,$Q$19)),0)","v":0},null,null,null,null,"Per Year",null,{"$f":"IFERROR(IF(AND('Customer Information'!$Z$10=\"(Evaluation)\",'Customer Information'!$BC$17=0),100000,'Customer Information'!$BC$17+0),0)","v":100000}]
[]
[null,null,null,null,null,null,null,null,null,null,null,null,null,null,null,{"$f":"'Project Summary'!AI401","v":0},"CO2"]
[null,null,null,null,null,null,null,null,null,null,null,null,null,null,null,{"$f":"'Project Summary'!AL401","v":0},"N3O"]
[null,null,"Total Project Rebatesa",null,null,null,null,null,null,null,null,null,null,null,null,{"$f":"'Project Summary'!AJ401","v":0},"Cars"]
[null,null,null,null,{"$f":"IFERROR('Project Information'!$Q$401+0,0)","v":0},null,null,null,null,null,null,null,null,null,null,{"$f":"'Project Summary'!AK401","v":0},"Trees Grown"]
[]
[]
[]
[null,null,"Energy Savingsa, b",null,null,null,null,null,null,"Simple Paybacka"]
[null,null,null,null,{"$f":"IFERROR('Project Information'!$U$401+0,0)","v":0},null,null,"kWh/year\nEnergy Savings"]
[null,null,null,null,null,null,null,null,null,null,{"$f":"IF(OR($E$20=0,$E$25=0,$L$20=0),0,($L$20-$E$25)/$E$20)","v":0},null,"with rebates"]
[null,null,null,null,null,null,null,null,null,null,{"$f":"IF(OR($E$20=0,$E$25=0,$L$20=0),0,($L$20)/$E$20)","v":0},null,"with out rebates"]
[null,null,null,null,{"$f":"IFERROR('Project Information'!$X$401+0,0)","v":0},null,null,"kW/month\nDemand Reduction"]
[]
[null,null,"Environmental Impact",null,null,null,null,null,null,"Return on Investment (ROI)"]
[null,null,null,null,{"$f":"IFERROR($P$24,0)","v":0},null,null,"Equivalent # of Cars\nremoved per year",null,null,{"$f":"IF(OR($E$20=\"\",$E$25=\"\",$L$20=\"\"),0,($E$20+$E$25)/$L$20)","v":0},null,"with rebates"]
[]
[null,null,null,null,{"$f":"IFERROR($P$25,0)","v":0},null,null,"Equivalent # of Trees planted & grow for 10yrs",null,null,{"$f":"IF(OR($E$20=\"\",$E$25=\"\",$L$20=\"\"),0,($E$20)/$L$20)","v":0},null,"without rebates"]
[]
[null,null,null,null,{"$f":"IFERROR($P$22,0)","v":0},null,null,"Equivalent Tons of CO2 removed from the atmosphere"]
[]
[null,null,null,null,{"$f":"IFERROR($P$23,0)","v":0},null,null,"Equivalent Tons of N3O removed from the atmosphere"]
[]
[]
[null,null,"a. Energy savings, electric cost savings, and total project rebates are estimates only and intended solely for SRP non-lighting projects. Savings may be adjusted for heating/cooling factors based on region and space type. Rebates paid are based upon approved as-installed equipment, operating conditions, and project costs. "]
[null,null,{"$f":"\"b. Energy savings shown above are estimated actual savings at the customer meter. Incentives are calculated using stipulated equipment savings of \" & TEXT($E$30,\"#,##0.00\") & \" kWh/yr.\"","v":"b. Energy savings shown above are estimated actual savings at the customer meter. Incentives are calculated using stipulated equipment savings of 0.00 kWh/yr."}]
[]
[]
[null,null,"Project Next Steps"]
[null,null,"ü  Review this assessment report with your auditor."]
[null,null,"ü  Steps for \"Rebate Reservation\" incentives:"]
[null,null,"1.","Before you start your project, submit a completed Excel application along with a signed copy of the Terms and Conditions and any additional information to savewithsrpbiz@srpnet.com or have your contractor submit it. We may need to verify existing equipment through an inspection."]
[null,null,"2.","After we review your application, we will provide an approval email/letter. If you do not have an approval email/letter, you may still be eligible for incentives, subject to available program funding. You do not have to wait to begin purchasing and installing your new equipment."]
[null,null,"3.","Upgrade your equipment. "]
[null,null,"4.","Submit project cost documentation, such as an invoice or payment application. A post-installation inspection may be required."]
[null,null,"5.","Receive incentive check within 45 days of completion of step 4."]
[null,null,"ü  Steps for \"Post-Installation\" incentives:"]
[null,null,"1.","Upgrade your equipment. "]
[null,null,"2.","Submit project cost documentation, such as an invoice or payment application to savewithsrpbiz@srpnet.com. A post-installation inspection may be required."]
[null,null,"3.","Receive incentive check within 45 days of completion of step 4."]

{"sheet":"Equipment Efficiency Tables","index":13,"n_rows":262,"n_cols":7,"rows_kept":262,"cut":false,"hidden":false,"merged":[[176,3,176,8],[204,3,204,8],[261,3,261,8],[59,3,59,8],[80,3,80,8],[95,3,95,8],[121,3,121,8],[132,3,132,8],[152,3,152,8],[241,3,241,8],[27,3,28,3],[27,4,28,4],[29,3,30,3],[29,4,30,4],[31,3,32,3],[31,4,32,4],[19,4,20,4],[21,3,24,3],[21,4,22,4],[23,4,24,4],[15,3,15,8],[16,3,16,8],[35,3,35,8],[9,3,9,8],[2,2,2,9],[5,3,5,8],[6,3,6,8],[7,3,7,8],[8,3,8,8],[25,3,26,3],[25,4,26,4],[10,3,10,8],[11,3,11,8],[12,3,12,8],[13,3,13,8],[14,3,14,8],[18,3,18,8],[19,3,20,3]]}
[]
[]
[null,null,"Equipment Efficiency Tables"]
[]
[null,null,null,"Table of Contents:"]
[null,null,null,{"$f":"D19","v":"Table 1: Unitary Air Conditioners (Air-Cooled)"}]
[null,null,null,{"$f":"D36","v":"Table 2: Unitary Heat Pumps (Air-Cooled)"}]
[null,null,null,{"$f":"D60","v":"Table 3: Unitary Air Conditioners & Heat Pumps (Water-Cooled)"}]
[null,null,null,{"$f":"D81","v":"Table 4: Package Terminal Air Conditioners and Heat Pumps"}]
[null,null,null,{"$f":"D96","v":"Table 5: Water Chilling Equipment"}]
[null,null,null,{"$f":"D122","v":"Table 6: High Efficiency Refrigeration Compressors"}]
[null,null,null,{"$f":"D133","v":"Table 7: High Efficiency Computer Room Air Conditioners (CRAC)"}]
[null,null,null,"Table 8: Economizers for CRACs"]
[null,null,null,"Table 9: Economizers for Chillers"]
[null,null,null,"Table 10: Economizers for Air-Conditioners"]
[null,null,null,"Table 11: Economizers for Heat Pumps"]
[null,null,null,"Table 12: Multi-Split Variable Refrigerant Flow Systems"]
[]
[null,null,null,"Table 1: Unitary Air Conditioners (Air-Cooled)"]
[]
[]
[]
[]
[]
[]
[]
[]
[]
[]
[]
[]
[]
[]
[]
[null,null,null,null,"System Type","Tier 1","Tier 2"]
[null,null,null,"Table 2: Unitary Heat Pumps (Air-Cooled)"]
[null,null,null,null,null,"$60/ton","$85/ton "]
[]
[]
[]
[]
[]
[]
[]
[]
[]
[]
[]
[]
[]
[]
[]
[]
[]
[]
[]
[]
[]
[]
[null,null,null,"Table 3: Unitary Air Conditioners & Heat Pumps (Water-Cooled)"]
[]
[]
[]
[]
[]
[]
[]
[]
[]
[]
[]
[]
[]
[]
[]
[]
[]
[]
[]
[]
[null,null,null,"Table 4: Package Terminal Air Conditioners and Heat Pumps"]
[]
[]
[]
[]
[]
[]
[]
[]
[]
[]
[]
[]
[]
[]
[null,null,null,"Table 5: Water Chilling Equipment"]
[]
[]
[]
[]
[]
[]
[]
[]
[]
[]
[]
[]
[]
[]
[]
[]
[]
[]
[]
[]
[]
[]
[]
[]
[]
[null,null,null,"Table 6: High Efficiency Refrigeration Compressors"]
[]
[]
[]
[]
[]
[]
[]
[]
[]
[]
[null,null,null,"Table 7: High Efficiency Computer Room Air Conditioners (CRAC)"]
[]
[]
[]
[]
[]
[]
[]
[]
[]
[]
[]
[]
[]
[]
[]
[]
[]
[]
[]
[null,null,null,"Table 8: Economizers for CRACs for 2b"]
[]
[]
[]
[]
[]
[]
[]
[]
[]
[]
[]
[]
[]
[]
[]
[]
[]
[]
[]
[]
[]
[]
[]
[null,null,null,"Table 9: Economizers for Chillers for 2b"]
[]
[]
[]
[]
[]
[]
[]
[]
[]
[]
[]
[]
[]
[]
[]
[]
[]
[]
[]
[]
[]
[]
[]
[]
[]
[]
[]
[null,null,null,"Table 10: Economizers for Air-Conditioners for 2b"]
[]
[]
[]
[]
[]
[]
[]
[]
[]
[]
[]
[]
[]
[]
[]
[]
[]
[]
[]
[]
[]
[]
[]
[]
[]
[]
[]
[]
[]
[]
[]
[]
[]
[]
[]
[]
[null,null,null,"Table 11: Economizers for Heat Pumps for 2b"]
[]
[]
[]
[]
[]
[]
[]
[]
[]
[]
[]
[]
[]
[]
[]
[]
[]
[]
[]
[null,null,null,"Table 12: Multi-Split Variable Refrigerant Flow Systems"]

{"sheet":"F.A.Q.","index":14,"n_rows":102,"n_cols":7,"rows_kept":102,"cut":false,"hidden":false,"merged":[[0,5,0,6],[2,2,2,3],[41,3,42,3],[41,2,42,2],[41,6,42,6],[41,5,42,5]]}
[null,null,null,null,null,"HIDE"]
[]
[null,null,"Frequently Asked Questions"]
[]
[null,null,"Table of Contents:"]
[null,null,"General:"]
[null,null,1,{"$f":"D37","v":"What equipment qualifies and how much is the rebate? "}]
[null,null,2,{"$f":"D39","v":"Who qualifies for this program? "}]
[null,null,3,{"$f":"D41","v":"Why is the application not calculating a rebate?"}]
[null,null,4,{"$f":"D44","v":"How do I use the Measure Handler tool for the Project Information section?"}]
[null,null,5,{"$f":"D46","v":"What needs to be submitted along with completing the measure information?"}]
[null,null,6,{"$f":"D48","v":"What is a manufacturer's specifications sheet?"}]
[null,null,7,{"$f":"D50","v":"What is a payment application? "}]
[null,null,8,{"$f":"D52","v":"How should I apply if my building efficiency upgrade includes installations of lighting and other equipment?"}]
[null,null,9,{"$f":"D55","v":"What if my project involves energy efficient equipment that is not covered by this program?"}]
[null,null,10,{"$f":"D58","v":"How long will this program be available?"}]
[null,null,11,{"$f":"D60","v":"Is there a maximum or minimum rebate amount that I can receive from this program?"}]
[null,null,12,{"$f":"D62","v":"Can I submit multiple Non-Lighting Applications or Lighting Applications?"}]
[null,null,13,{"$f":"D64","v":"Where can I find equipment listings for Energy Star® rated products?"}]
[null,null,14,{"$f":"D66","v":"Where can I find out more about this program?"}]
[null,null,"HVAC:"]
[null,null,1,{"$f":"D74","v":"What does AHRI stand for and where can I find equipment ratings?"}]
[null,null,2,{"$f":"D76","v":"Can I receive a rebate for window or room air conditioners, multi-split systems, or air-rotation systems?"}]
[null,null,3,{"$f":"D79","v":"Can I receive a rebate for VFDs on motors larger than 100 HP or installed on a chiller? "}]
[null,null,"Refrigeration:"]
[null,null,1,{"$f":"D84","v":"Can I receive a rebate for high efficiency or discus compressors on a New Construction project? "}]
[null,null,"Kitchen Equipment:"]
[null,null,1,{"$f":"D89","v":"Are there any rebates available if I replace my natural gas kitchen equipment with electric kitchen equipment?"}]
[null,null,2,{"$f":"D91","v":"Where can I find the cooking energy efficiency (CEE) for new electric kitchen equipment?"}]
[null,null,"IT & Data Center:"]
[null,null,1,{"$f":"D95","v":"Are there any rebates for purchasing a new desktop or laptop computer?"}]
[null,null,2,{"$f":"D97","v":"What is a fluid economizer for a CRAC unit?"}]
[null,null,"Additional Measures:"]
[null,null,1,{"$f":"D101","v":"What is NFRC and where is a list of rated products?"}]
[]
[null,null,"General:"]
[null,null,"Q:","What equipment qualifies and how much is the rebate? "]
[null,null,"A:","Please see the \"Eligibility Requirements\" under each measure and complete the measure information fields to calculate the rebate."]
[null,null,"Q:","Who qualifies for this program? "]
[null,null,"A:","The SRP Business Solutions program is available to all SRP non-residential retail electric customers in SRP’s service territory. Customers’ rate schedules can be verified by looking at a recent SRP electric bill."]
[null,null,"Q:","Why is the application not calculating a rebate?"]
[null,null,"A:",{"$f":"IF(Ref!$B$10,$F42,$G42)","v":"All of the line items on the application may not be completed. If that is the case, the line item number shown to the left with any missing information will be highlighted in orange. All items for a given measure must be completed to calculate a rebate, annual savings, and peak savings or the equipment may not be rebate eligible. Please see the Eligibility Requirements section for each measure using the measure window (Project Information section)."},null,"All of the line items on the application may not be completed. If that is the case, the line item number shown to the left with any missing information will be highlighted in orange. All items for a given measure must be completed to calculate a rebate, annual savings, and peak savings or the equipment may not be rebate eligible. Please see the Eligibility Requirements section for each measure using the measure window (Project Information section).","The application will no longer calculate your rebate automatically based on the eligibility requirements while macros are disables. If you wish to use the application with its full functionality, please enable macros on the application. This can be done automatically or semi-automatically by going to File > Options > Trust Center > Trust Center Settings... > Macro Settings and choosing to either \"Disable all macros with notification\" or \"Enable all macros.\" If you have \"Disable all macros with notification\" selected and you have chosen not to enable macros, please reopen this application and choose to enable macros."]
[]
[null,null,"Q:",{"$f":"IF(Ref!$B$10,$F44,$G44)","v":"How do I use the Measure Handler tool for the Project Information section?"},null,"How do I use the Measure Handler tool for the Project Information section?","Are macros required for the application to function properly?"]
[null,null,"A:",{"$f":"IF(Ref!$B$10,$F45,$G45)","v":"Simply select the \"Measure\" cell in the line item that you wish to open the Measure Handler and right-click. If you have already begun to fill in information for that line item, it will populate in the Measure Handler upon opening; otherwise, it will prompt you to select the measure selection and required information needed to complete that measure. This tool also shows the full measure description, eligibility requirements, and required documentation for the given measure."},null,"Simply select the \"Measure\" cell in the line item that you wish to open the Measure Handler and right-click. If you have already begun to fill in information for that line item, it will populate in the Measure Handler upon opening; otherwise, it will prompt you to select the measure selection and required information needed to complete that measure. This tool also shows the full measure description, eligibility requirements, and required documentation for the given measure.","Macros are no longer necessary for this application to properly function; however, you may notice that several features are not enabled or included with the macro-free version of the application, such as the comprehensive Project Information section, calculations for the individual measure eligibilities and rebates, and the Project Report section."]
[null,null,"Q:","What needs to be submitted along with completing the measure information?"]
[null,null,"A:",{"$f":"IF(Ref!$B$10,$F47,$G47)","v":"Please see the Required Documentation section for each measure using the Measure Handler (Project Information section)."},null,"Please see the Required Documentation section for each measure using the Measure Handler (Project Information section).","Please see the Required Documentation section under Eligibility Requirements for each measure."]
[null,null,"Q:","What is a manufacturer's specifications sheet?"]
[null,null,"A:","It is a document that gives detailed information about the equipment, such as the manufacturer, model number, energy efficiency rating, performance, etc. It is often available on the manufacturer's website."]
[null,null,"Q:","What is a payment application? "]
[null,null,"A:","A written request for compensation, typically between a contractor and a building owner, for work performed on a large construction project. "]
[null,null,"Q:","How should I apply if my building efficiency upgrade includes installations of lighting and other equipment?"]
[null,null,"A:","Customers with a project involving both lighting upgrades and eligible mechanical equipment must submit a Lighting Application and a Non-Lighting Application even if the installations are part of the same upgrade project. To apply for a lighting rebate, a separate lighting application must be submitted.  Retrofit lighting projects require pre-approval prior to purchasing, ordering, and installing equipment."]
[null,null,null,"You can find the application online at www.savewithsrpbiz.com or by contacting the Program Administrator."]
[null,null,"Q:","What if my project involves energy efficient equipment that is not covered by this program?"]
[null,null,"A:","SRP offers rebates through a number of energy efficiency programs, including programs for custom efficiency projects."]
[null,null,null,"Information about these programs including customer and project eligibility requirements can be found online at www.savewithsrpbiz.com or by contacting the Program Administrator."]
[null,null,"Q:","How long will this program be available?"]
[null,null,"A:",{"$f":"\"Customers will be able to receive rebates from this program in its current form for equipment installed through April 30, \" & IF(MONTH(TODAY())>=5,YEAR(TODAY())+1,YEAR(TODAY())) & \", subject to rebate availability. SRP anticipates the SRP Business Solutions Standard program to be an integral part of its future resource plan moving forward.\"","v":"Customers will be able to receive rebates from this program in its current form for equipment installed through April 30, 2021, subject to rebate availability. SRP anticipates the SRP Business Solutions Standard program to be an integral part of its future resource plan moving forward."}]
[null,null,"Q:","Is there a maximum or minimum rebate amount that I can receive from this program?"]
[null,null,"A:","Customers are limited to $300,000 per customer per program year from participation in all programs offered by SRP. A customer is defined as all accounts under a single customer, even if these accounts are at multiple sites. There is a minimum rebate amount of $100.00 required for participation in the SRP Business Solutions Standard Program."]
[null,null,"Q:","Can I submit multiple Non-Lighting Applications or Lighting Applications?"]
[null,null,"A:","Customers are encouraged to maximize their energy savings by undertaking comprehensive facility-wide energy efficiency upgrade projects. However, a single customer may submit multiple applications for different projects throughout the program year. Customer rebate caps still apply."]
[null,null,"Q:","Where can I find equipment listings for Energy Star® rated products?"]
[null,null,"A:","By using the Energy Star® Product Finder, you can search for the equipment category and the manufacturer or model number of the equipment on their website:\nhttps://www.energystar.gov/productfinder"]
[null,null,"Q:","Where can I find out more about this program?"]
[null,null,"A:","Customers can learn more about the SRP Business Solutions Standard program and other SRP programs in the following ways:"]
[null,null,null,"  • Web - www.savewithsrpbiz.com"]
[null,null,null,"  • Telephone - (602) 236-3054"]
[null,null,null,"  • Fax - (480) 345-7601"]
[null,null,null,"  • Email - savewithsrpbiz@srpnet.com"]
[]
[null,null,"HVAC:"]
[null,null,"Q:","What does AHRI stand for and where can I find equipment ratings?"]
[null,null,"A:","AHRI is the Air-Conditioning, Heating, and Refrigeration Institute and it has a product rating directory for HVAC units (https://www.ahridirectory.org)."]
[null,null,"Q:","Can I receive a rebate for window or room air conditioners, multi-split systems, or air-rotation systems?"]
[null,null,"A:","These systems are potentially eligible for rebates under the Custom Business Solutions program which requires preapproval prior to purchasing, ordering, or installing equipment."]
[null,null,null,"Information about these programs including customer and project eligibility requirements can be found online at www.savewithsrpbiz.com or by contacting the Program Administrator."]
[null,null,"Q:","Can I receive a rebate for VFDs on motors larger than 100 HP or installed on a chiller? "]
[null,null,"A:","These VFDs are potentially eligible for rebates under the Custom Business Solutions program which requires preapproval prior to purchasing, ordering, or installing equipment."]
[null,null,null,"Information about these programs including customer and project eligibility requirements can be found online at www.savewithsrpbiz.com or by contacting the Program Administrator."]
[]
[null,null,"Refrigeration:"]
[null,null,"Q:","Can I receive a rebate for high efficiency or discus compressors on a New Construction project? "]
[null,null,"A:","These compressors are potentially eligible for rebates under the Custom Business Solutions program which requires preapproval prior to purchasing, ordering, or installing equipment."]
[null,null,null,"Information about these programs including customer and project eligibility requirements can be found online at www.savewithsrpbiz.com or by contacting the Program Administrator."]
[]
[null,null,"Kitchen Equipment:"]
[null,null,"Q:","Are there any rebates available if I replace my natural gas kitchen equipment with electric kitchen equipment?"]
[null,null,"A:","Natural gas to electric retrofits may be covered under the electric technologies program:\nhttps://www.savewithsrpbiz.com/rebates/electrictechnology.aspx"]
[null,null,"Q:","Where can I find the cooking energy efficiency (CEE) for new electric kitchen equipment?"]
[null,null,"A:","Some kitchen equipment has a CEE rating published by Energy Star®, which can be found on their Product Finder (https://www.energystar.gov/productfinder) by searching for the kitchen equipment category and the manufacturer or model number, and clicking on the listing for more results."]
[]
[null,null,"IT & Data Center:"]
[null,null,"Q:","Are there any rebates for purchasing a new desktop or laptop computer?"]
[null,null,"A:","No, new desktop or laptop computers are not eligible for rebates."]
[null,null,"Q:","What is a fluid economizer for a CRAC unit?"]
[null,null,"A:","The fluid economizer utilizes a separate liquid-to-air cooling coil within the CRAC unit and the cooled water or glycol fluid returning from the external fluid cooler to cool return air directly, much like a chilled water air handling unit (i.e., without the use of compressors). The “economizer” cooling can either augment or can take the place of compressor cooling, but only when returning water or glycol fluid temperatures are low enough to provide significant direct cooling from the liquid-to-air cooling coil."]
[]
[null,null,"Additional Measures:"]
[null,null,"Q:","What is NFRC and where is a list of rated products?"]
[null,null,"A:","The NFRC is the National Fenestration Rating Council provides ratings on skylights, doors, and windows and publishes them on their website:\nhttp://search.nfrc.org/search/searchDefault.aspx"]

{"sheet":"Ref","index":15,"n_rows":33,"n_cols":7,"rows_kept":33,"cut":false,"hidden":true,"merged":[[8,1,8,2],[0,1,0,2],[4,0,4,10],[6,1,6,10],[1,1,1,2],[5,1,5,10],[17,1,17,2],[14,1,14,2],[12,1,12,2],[10,1,10,2],[9,1,9,2],[20,1,20,2],[21,1,21,2],[22,1,22,2],[23,1,23,2],[24,1,24,2],[20,3,20,13],[21,3,21,13],[22,3,22,13],[23,3,23,13],[24,3,24,13],[25,1,25,2],[26,1,26,2],[27,1,27,2],[28,1,28,2],[29,1,29,2],[25,3,25,13],[26,3,26,13],[27,3,27,13],[28,3,28,13],[29,3,29,13],[30,1,30,2],[31,1,31,2],[32,1,32,2],[33,1,33,2],[34,1,34,2],[30,3,30,13],[31,3,31,13],[32,3,32,13],[33,3,33,13],[34,3,34,13],[35,1,35,2],[36,1,36,2],[37,1,37,2],[38,1,38,2],[39,1,39,2],[35,3,35,13],[36,3,36,13],[37,3,37,13],[38,3,38,13],[39,3,39,13],[40,1,40,2],[41,1,41,2],[42,1,42,2],[43,1,43,2],[44,1,44,2],[40,3,40,13],[41,3,41,13],[42,3,42,13],[43,3,43,13],[44,3,44,13],[45,1,45,2],[46,1,46,2],[47,1,47,2],[48,1,48,2],[49,1,49,2],[45,3,45,13],[46,3,46,13],[47,3,47,13],[48,3,48,13],[49,3,49,13],[50,1,50,2],[51,1,51,2],[52,1,52,2],[53,1,53,2],[54,1,54,2],[50,3,50,13],[51,3,51,13],[52,3,52,13],[53,3,53,13],[54,3,54,13],[55,1,55,2],[56,1,56,2],[57,1,57,2],[58,1,58,2],[59,1,59,2],[55,3,55,13],[56,3,56,13],[57,3,57,13],[58,3,58,13],[59,3,59,13],[60,1,60,2],[61,1,61,2],[62,1,62,2],[63,1,63,2],[64,1,64,2],[60,3,60,13],[61,3,61,13],[62,3,62,13],[63,3,63,13],[64,3,64,13],[65,1,65,2],[66,1,66,2],[67,1,67,2],[68,1,68,2],[69,1,69,2],[65,3,65,13],[66,3,66,13],[67,3,67,13],[68,3,68,13],[69,3,69,13],[70,1,70,2],[71,1,71,2],[72,1,72,2],[73,1,73,2],[74,1,74,2],[70,3,70,13],[71,3,71,13],[72,3,72,13],[73,3,73,13],[74,3,74,13],[75,1,75,2],[76,1,76,2],[77,1,77,2],[78,1,78,2],[79,1,79,2],[75,3,75,13],[76,3,76,13],[77,3,77,13],[78,3,78,13],[79,3,79,13],[80,1,80,2],[81,1,81,2],[82,1,82,2],[83,1,83,2],[84,1,84,2],[80,3,80,13],[81,3,81,13],[82,3,82,13],[83,3,83,13],[84,3,84,13],[85,1,85,2],[86,1,86,2],[87,1,87,2],[88,1,88,2],[89,1,89,2],[85,3,85,13],[86,3,86,13],[87,3,87,13],[88,3,88,13],[89,3,89,13],[90,1,90,2],[91,1,91,2],[92,1,92,2],[93,1,93,2],[94,1,94,2],[90,3,90,13],[91,3,91,13],[92,3,92,13],[93,3,93,13],[94,3,94,13],[95,1,95,2],[96,1,96,2],[97,1,97,2],[98,1,98,2],[99,1,99,2],[95,3,95,13],[96,3,96,13],[97,3,97,13],[98,3,98,13],[99,3,99,13]]}
["Version_ID",{"$f":"INDIRECT(\"A\" & MATCH(MAX($B$22:$B$100),$B$22:$B$100,0)+21)","v":"FY21.4"},null,"Adjust the version number for each instance of a new application"]
["Date_ID",{"$f":"\"Version \"&CONCATENATE(\nTEXT(YEAR(INDIRECT(\"B\"&MATCH(MAX($B$22:$B$100),$B$22:$B$100,0)+21)),\"0000\"),\nTEXT(MONTH(INDIRECT(\"B\"&MATCH(MAX($B$22:$B$100),$B$22:$B$100,0)+21)),\"00\"),\nTEXT(DAY(INDIRECT(\"B\"&MATCH(MAX($B$22:$B$100),$B$22:$B$100,0)+21)),\"00\"))","v":"Version 20200616"},null,"Adjust the version date for each instance of a new application"]
[]
[]
["Instructions:"]
["RRR","This Rebate Reservation Request allows customers to request rebates be reserved for up to 90 days to allow for the purchase, installation, and submittal of a completed Non-Lighting Application for any eligible retrofit or new construction non-lighting."]
["RA","Sending this application confirms that all measures have been fully installed and all of the required supporting documents have been collected. If clarification regarding the submitted information is not submitted within  14-days of being requested, any funds reserved for this rebate application may be released and the rebate application may be canceled. You may resubmit the application once all required information becomes available."]
[]
["Authorized UL",false,null,null,null,"PrintMe"]
["Macros Enabled",true,null,null,null,"CI","PR"]
["First Access",false,null,null,null,"S01","S06"]
[null,null,null,null,null,"S02","T01"]
["LastRow",{"$f":"IFERROR(MATCH(MAX('Project Information'!$A$3:$A$400),'Project Information'!$A$3:$A$400,0),1)","v":1},null,null,null,"T01"]
[null,null,null,null,null,"S04"]
["Evaluation",{"$f":"'Customer Information'!$Z$10=\"(Evaluation)\"","v":true},null,null,null,"S05"]
[null,null,null,null,null,"S06"]
[]
["Fast-Track Rebates","December 31"]
[]
[]
["Version_ID","Date",null,"Version Notes"]
["FY21.0","2020-02-27",null,"Application created from FY20, added items to the application:\n- Terms and Conditions > Revised Terms and Conditions to match updated formatting and language.\n- Project Information > Manufacturer, Model Number, Serial Number; added support for variant inputs (Unitary, OA Econ) based on size categories\n- PI Summary > Added DSMC NL Container support; split inputs/kW/kWh into Baseline and Proposed savings. Added RFP items (CO2, Trees Planted, Cars Reduced, Nox, Measure Life). Added CO2/Trees/Cars/Nox conversion calculations.\n- PI_Print > Added measure line item name concatenation.\n- Import DSMC > Added Import DSMC functions, tested on FY20 test application.\n- Equipment Lookups > Added Kitchen Equiment measures; revised eligibility descriptions, calcs based on ASHRAE 90.1-2013 updates; updated Building Envelope to Additional Measures, Misc category (moved HPWH and VFD Pool Pump from HVAC).\n- Equipment Lookups > Added support for NC/Retro description swapping on OA Econ measure sizes (Chiller excluded).\n- MeasureHandler > Added replacement of SmMeasureSelect userform (no code).\n- Customer Information > Made Building Information required.\n- Project Report > Added CO2, Trees, Cars Reduced, and NOx references to the savings report; updated Next Steps."]
["FY21.1","2020-03-13",null,"- MeasureCalcs > Added Kitchen Equiment measures; revised eligibility descriptions, calcs based on ASHRAE 90.1-2013 updates; updated Building Envelope to Additional Measures, Misc category (moved HPWH and VFD Pool Pump from HVAC). Various fixes\n- NME tabs (HVAC, Refrigeration, etc.) > Revised eligibility calcs and rebates with FY21 updates; added Kitchen Equipment tab; updated Building Envelope to Additional Measures (moved HPWH and VFD Pool Pump from HVAC)."]
["FY21.1","2020-04-10",null,"- QC's (PH, AW) > Fixed various measure calculations for eligibility and savings.\n- MeasureCalcs > Various fixes; moved VFD: Kitchen Exhaust calcs to Kitchen Equipment category; revised calc methodology for OA Econ (Chiller, CRAC units added); added additional outputs from MeasureCalcs for Baseline inputs, Baseline kW/kWh.\n- NME tabs (HVAC, Refrigeration, etc.) > Revised eligibility calcs and rebates with FY21 updates; added Kitchen Equipment tab; updated Building Envelope to Additional Measures (moved HPWH and VFD Pool Pump from HVAC).\n- Equipment Lookups > Added Measure Life lookups to measure categories (needs corrections).\n- Equipment Lookup Tables > added updated tables for Unitary, Chiller, OA Econ, CO2 Sensors, etc. for baseline/ SRP efficiencies, rebate amounts. Various reformatting of values to match inputs for OA Econ.\n- Deemed Lookup Tables > revised tables to match new eligibilities, rebates; moved HPWH/VFD Pool Pump to Additional Measures, moved VFD Exhaust Fans to Kitchen Equipment. Removed Auto Door-Closers (Reach Ins).\n- VBA > revised code for Project Information, DSMC API functions, ThisWorkbook, LkUnlk, ImportNME, and Import to match new functionality, changes to formatting, etc.\n- SmMeasureSelect, MeasureHandler > added code for new formatting to be consistent with Project Information; various fixes."]
["FY21.1","2020-04-29",null,"- Multiple language fixes throughout the application pertaining to FY21 updates.\n- Added FAQ's for ENERGY STAR®, Kitchen Equipment.\n- Added additional separators for various measures (Evap Coolers, CO, CO2, VFD HVAC, VFD DHW/DSW, various Refrig & Comp Air measures) to handle additional eligibility requirement calculations.\n- Various formatting fixes to Instructions Tab, Customer Information, Project Information, NME tabs.\n- Updated final Efficiency Tables to application."]
["FY21.2","2020-05-05",null,"- Fixed issue with MeasureHandler (HVAC: Other > Adv Rooftop Controls), which would cause runtime errors; revised calcs for EMS due to issues with Retrofit calculations.\n- Added code for MeasureHandler to function correctly within the Project Information tab, added code for the Line Item box and New Line Item... section, and added new button to submit and incr LastRow + 1, Submit and Close, or Remove Line Item.\n- Added more conditional formatting to Equipment Lookups based on NCFlag (to show or not to show inputs, lists based on Retro/NC).\n- Revised Import Application code to handle FY20 and FY21 applications correctly, use formula to calculate LastRow in FY20. Revised Clear Application code due to reformatting of Customer Information tab.\n- Ref > Added Version Note log to track changes to the application, added support to track Version_ID and Date_ID."]
["FY21.2","2020-05-06",null,"- Fixed issues with OA Econ incentive, HP incentive increases.\n- Fixed Energy Efficiency Tables for Heat Pumps (Table 2) and OA Econ (Table 8-11).\n- Fixed OA Econ > Chiller, CRAC issues with lookups; extended Econ_Lookup_Table to include Glycol CRAC equipment.\n- Fixed associated issue with MeasureCalcs > OAEcon, where Retrofit was still requiring IPLV/SCOP for Chiller and CRAC units. Added switch case based on NCFlag to allow calculations to work correctly. Fixed Retro OAEcon Chiller kWh calculations to read EFF and EFF_C as kW/ton instead of EER.\n- Minor correction to Unitary AC: Lookup was referencing \"Vertical Terminal A/C (SVTAC),\" removed S from SVTAC.\n- Corrected Unitary AC/HP lookups for Multi-Split VRF by adding VRF to the lookup.\n- Added conditional to OAEcon > Input1 in MeasureLookupTable to ignore in Retrofit projects (does not ask for efficiency)."]
["FY21.3","2020-05-11",null,"- Fixed calculation error in MeasureCalc > RefrigComp, where outputs 4-8 were labeled incorrectly in the Case statement."]
["FY21.3","2020-05-13",null,"-Implemented EFLH Unitary and EFLH Econ tables. Still waiting on EFLH Chiller table to be completed."]
["FY21.3","2020-05-14",null,"- Updated the DSMC Project Calls to check Project_Type before running. Added exit sub statements if either the NexantAuthUnlkCmnd or Username/Password come back Null/Empty.\n- Fixed output message of missing ProjectID_DSMC to be vbOKonly & instruct the user to fill in the known project ID (will not create a new one).\n- Fixed wrap-text issue on Instructions tab.\n- Fixed Measure Cost calculation (pointer to total kWh Savings was incorrectly assigned)."]
["FY21.3","2020-06-10",null,"- Implemented EFLH Chiller tables for AC and WC."]
["FY21.4","2020-06-12",null,"- Updated EFLH Chiller tables with changes from SP's eQuest models."]
["FY21.4","2020-06-16",null,"- Fixed VBA issue with Chiller WC EFLH lookup (extra \"_\" missing in named range).\n     - Updated AC Chiller lookup to add extra \"_\" to the named range for consistency to both VBA and the named range.\n- Addressed changes to Unitary and Economizer EFLH lookup changes, specifically to Primary/Sec School.\n- Removed Evaluation exclusion from pop-up message on Project Information tab, now requiring the reviewer/applicant to fill in all highlighted fields.\n- Added support for 9-digit ZIP codes to the application with Custom numeric formatting."]

{"sheet":"Debug","index":16,"n_rows":0,"n_cols":0,"rows_kept":0,"cut":false,"hidden":true,"merged":[]}

{"sheet":"CI Table","index":17,"n_rows":62,"n_cols":3,"rows_kept":62,"cut":false,"hidden":true,"merged":[]}
[]
["ListPreparedBy","ListBuildingType"]
["Customer","Automotive Facility"]
["Installer/Trade Ally","Casino"]
["Distributer","Convention Center"]
["Other","Court House"]
["ListAddressedTo","Data Center"]
["Installation Address","Dining: Bar Lounge/Leisure"]
["Participant Address","Dining: Cafeteria/Fast Food"]
["Trade Ally Address","Dining: Family"]
["Other: Please Specify","Dormitory"]
["ListHeardAbout","Exercise Center"]
[null,"Fire Station"]
["SRP Web Site","Grow Facility"]
["SRP Account Manager","Gymnasium"]
["Radio","Health Care - Clinic"]
["TV","Health Care - Hospital"]
["Mail","Hotel"]
["E-Mail","Library"]
["Trade Show","Manufacturing Facility"]
["Newspaper / Magazine","Motel"]
["Bill / Bill Insert / Contact","Motion Picture Theater"]
["Internet / Online Advertising","Multi-Family Housing"]
["SRP Call","Museum"]
["SRP Representative","Office, Small"]
["SRP Electronic Newsletter","Office, Large"]
["Industry Event","Parking Garage"]
["SRP Event","Penitentiary"]
["Contractor / Vendor","Performing Arts Theater"]
["Colleague / Word Of Mouth","Police Station"]
["Don't Know","Post Office"]
[null,"Religious Building"]
[null,"Retail, Food/Grocery"]
[null,"Retail, Commodity"]
[null,"Retail, Specialty"]
[null,"Primary School"]
[null,"Sec. School"]
[null,"University"]
[null,"Sports Arena"]
[null,"Town Hall"]
[null,"Transportation"]
[null,"Warehouse, Refrigerated"]
[null,"Warehouse, Commercial"]
[null,"Warehouse, Industrial"]
[null,"Workshop"]
[]
["ListBillingRate","ListBillingkWh","ListBillingkW"]
["E-31",{"$f":"ROUND(4/12*(5/24*0.1521+4/24*0.103+15/24*0.0528)+2/12*(5/24*0.1671+4/24*0.1093+15/24*0.0538)+6/12*(5/24*0.1151+4/24*0.1036+15/24*0.0512),4)","v":7.8399999999999997E-2},{"$f":"ROUND(4/12*(5/24*4.32+19/24*1)+2/12*(5/24*6.65+19/24*1)+6/12*(5/24*4.06+19/24*1),4)","v":1.7455000000000001}]
["E-32",{"$f":"ROUND(4/12*(5/24*0.1521+4/24*0.103+15/24*0.0528)+2/12*(5/24*0.1671+4/24*0.1093+15/24*0.0538)+6/12*(5/24*0.1151+4/24*0.1036+15/24*0.0512),4)","v":7.8399999999999997E-2},{"$f":"ROUND(4/12*(5/24*4.32+19/24*1)+2/12*(5/24*6.65+19/24*1)+6/12*(5/24*4.06+19/24*1),4)","v":1.7455000000000001}]
["E-33",{"$f":"ROUND(4/12*(3/24*0.2701+21/24*0.0642)+2/12*(3/24*0.2781+31/24*0.0643)+6/12*(3/24*0.1115+21/24*0.0644),4)","v":8.48E-2},{"$f":"ROUND(4/12*(4.82)+2/12*(7.15)+6/12*(4.47),4)","v":5.0332999999999997}]
["E-34",{"$f":"ROUND(4/12*(0.108)+2/12*(0.115)+6/12*(0.0931),4)","v":0.1017},{"$f":"0","v":0}]
["E-36",{"$f":"ROUND(4/12*(350/1000*0.0989+180/1000*0.0952+155/1000*0.0797+315/1000*0.0577)+2/12*(350/1000*0.1211+180/1000*0.109+155/1000*0.0905+315/1000*0.0677)+6/12*(350/1000*0.079+180/1000*0.0754+155/1000*0.0682+315/1000*0.0512),4)","v":7.7600000000000002E-2},{"$f":"ROUND(4/12*(4.82)+2/12*(7.15)+6/12*(4.47),4)","v":5.0332999999999997}]
["E-47",{"$f":"ROUND(4/12*(0.084)+2/12*(0.0882)+6/12*(0.0703),4)","v":7.7899999999999997E-2},{"$f":"ROUND(4/12*(3.41)+2/12*(4.25)+6/12*(1.9),4)","v":2.7949999999999999}]
["E-48",{"$f":"ROUND(4/12*(0.0832)+2/12*(0.0872)+6/12*(0.0694),4)","v":7.6999999999999999E-2},{"$f":"ROUND(1.9+4/12*0.4*4.8+2/12*0.5*6.36,4)","v":3.07}]
["E-54",{"$f":"ROUND(6/12*(0.1302)+6/12*(0.1237),4)","v":0.127},{"$f":"0","v":0}]
["E-56",{"$f":"ROUND(6/12*(0.0681)+6/12*(0.0616),4)","v":6.4899999999999999E-2},{"$f":"0","v":0}]
["E-57",{"$f":"ROUND(6/12*(0.0678)+6/12*(0.0613),4)","v":6.4600000000000005E-2},{"$f":"0","v":0}]
["E-58",{"$f":"ROUND(4/12*(5/24*0.2701+19/24*0.0642)+2/12*(5/24*0.2781+19/24*0.0643)+6/12*(5/24*0.1115+19/24*0.0644),4)","v":9.0899999999999995E-2},{"$f":"ROUND(4/12*(4.82)+2/12*(7.15)+6/12*(4.47),4)","v":5.0332999999999997}]
["E-61",{"$f":"ROUND(4/12*(3/24*0.1056+4/24*0.0992+17/24*0.0419)+2/12*(3/24*0.1405+4/24*0.1043+17/24*0.0484)+6/12*(3/24*0.0793+4/24*0.0789+17/24*0.0415),4)","v":5.7599999999999998E-2},{"$f":"ROUND(4/12*(3.75)+2/12*(4.16)+6/12*(1.91)+2.67,4)","v":5.5682999999999998}]
["E-63",{"$f":"ROUND(4/12*(5/24*0.105+7/24*0.0978+12/24*0.0416)+2/12*(5/24*0.14+7/24*0.1038+12/24*0.0478)+6/12*(4/24*0.0789+4/24*0.0785+16/24*0.0411),4)","v":6.4399999999999999E-2},{"$f":"ROUND(4/12*(3.18)+2/12*(4.12)+6/12*(1.89)+2.49,4)","v":5.1817000000000002}]
["E-65",{"$f":"ROUND(4/12*(5/24*0.0834+7/24*0.0814+12/24*0.0414)+2/12*(5/24*0.1168+7/24*0.0827+12/24*0.047)+6/12*(4/24*0.0624+4/24*0.0621+16/24*0.0368),4)","v":5.5199999999999999E-2},{"$f":"ROUND(4/12*(4.37)+2/12*(6.71)+6/12*(3.72),4)","v":4.4349999999999996}]
["E-66",{"$f":"ROUND(4/12*(5/24*(5/7*0.1006+2/7*0.0536)+7/24*(5/7*0.0973+2/7*0.0536)+12/24*(5/7*0.0441+2/7*0.0441))+2/12*(5/24*(5/7*0.1547+2/7*0.0574)+7/24*(5/7*0.1221+2/7*0.0574)+12/24*(5/7*0.0479+2/7*0.0479))+6/12*(4/24*0.0624+20/24*0.038),4)","v":5.6099999999999997E-2},{"$f":"ROUND(4/12*(4.37)+2/12*(6.71)+6/12*(3.72),4)","v":4.4349999999999996}]

{"sheet":"Equipment Lookups","index":18,"n_rows":534,"n_cols":21,"rows_kept":534,"cut":false,"hidden":true,"merged":[]}
["CATEGORY",null,"SUBCATEGORY",null,null,"SUBCATEGORY INPUTS",null,null,"EQUIPMENT TYPE INPUTS",null,null,null,null,"LIST 1, LIST 2 INPUTS",null,null,"[VARIANT] INPUTS"]
[]
["Measure Category"," ","HVAC","HVAC[Code]",null,"UnitaryAC[Inputs]","UnitaryAC[Description]"," ","UnitaryAC_EquipmentType[Inputs]","EquipmentType[Code]","EquipmentType[Description]","EquipmentType[MeasureLife]"," ","UnitaryAC_HeatReject[Inputs]","HeatReject[Code]"," ","UnitaryAC_Input1[EquipmentType]","Input1[Title]","Input1[Description]"," "]
["HVAC"," ","     Unitary Air-Conditioning Equipment","UnitaryAC",null,"EquipmentType","Equipment Type"," ","Packaged Air-Conditioner","AC - Package","Rebate:\n     - Air-Cooled:  Tier 1: $60/Ton   Tier 2: $85/Ton\n     - Water-Cooled & Evaporatively-Cooled:  $75/Ton\nEligibility Requirements:\n     1. Window, room air conditioners, multi-split VRF systems >5 tons, and air-rotation systems are not eligible.\n     2. Rebates will be paid on a tiered efficiency structure according to the AHRI size and efficiency of the equipment.\n     3. Must be rated at AHRI standard rating conditions.\n     3. Rebates will be paid for highest efficiency tier for which the unit qualifies.\n     4. Air-Cooled systems must meet the efficiency listed in Table 1.\n     5. Water- and Evap-Cooled systems must meet the efficiency listed in Table 3.\n     6. Equipment must use a minimum ozone-depleting refrigerant.\nRequired Documentation:\n     1. Dated invoice/payment application.\n     2. Manufacturer's equipment specification sheet documenting the efficiency or AHRI reference numbers.",18," ","Air-Cooled","Air-Cooled"," ","Air-CooledPackaged Air-Conditioner1","SEER","Cooling Seasonal Efficiency, SEER"," "]
["Refrigeration"," ","     Unitary Heat Pump Equipment","UnitaryHP",null,"HeatReject","Heat Rejection"," ","Split Air-Conditioner","AC - Split","Rebate:\n     - Air-Cooled:  Tier 1: $60/Ton   Tier 2: $85/Ton\n     - Water-Cooled & Evaporatively-Cooled:  $75/Ton\nEligibility Requirements:\n     1. Window, room air conditioners, multi-split VRF systems >5 tons, and air-rotation systems are not eligible. Multi-split\n     VRF systems <65,000 BTU/h may be qualified as unitary equipment split air-conditioners.\n     2. Rebates will be paid on a tiered efficiency structure according to the AHRI size and efficiency of the equipment.\n     3. Must be rated at AHRI standard rating conditions.\n     3. Rebates will be paid for highest efficiency tier for which the unit qualifies.\n     4. Air-Cooled systems must meet the efficiency listed in Table 1.\n     5. Water- and Evap-Cooled systems must meet the efficiency listed in Table 3.\n     6. Equipment must use a minimum ozone-depleting refrigerant.\nRequired Documentation:\n     1. Dated invoice/payment application.\n     2. Manufacturer's equipment specification sheet documenting the efficiency or AHRI reference numbers.",18," ","Water-Cooled","Water-Cooled"," ","Air-CooledPackaged Air-Conditioner2","IEER","Cooling Seasonal Efficiency, IEER"," "]
["Kitchen Equipment"," ","     Chiller","Chiller",null,"HeatType","Heating Type"," ","Multi-Split VRF A/C","MSACV","Rebate:  $75/Ton\nEligibility Requirements:\n     1. Variable refrigerant air conditioner or heat pump systems must be rated at ANSI/AHRI 1230-2013 standard performance\n     conditions. Smaller units <65,000 Btu/h may qualify under the Unitary Equipment Split Air-Conditioner/Heat Pump measure.\n     2. Must meet or exceed 2016 CEE efficiencies shown in Table 10.\nRequired Documentation:\n     1. Dated invoice/payment application.\n     2. Manufacturer's equipment specification sheet documenting compliance with equipment eligibility.",18," ","Evaporatively-Cooled","Evap-Cooled"," ","Air-CooledPackaged Air-Conditioner3","IEER","Cooling Seasonal Efficiency, IEER"," "]
["Compressed Air"," ","     Direct & Indirect Evaporative Cooler","EvapCooler",null,"BTU/H","AHRI Size (British Thermal Units)"," ","Packaged Terminal A/C (PTAC)","PTAC","Rebate: $40 per Ton\nEligibility Requirements:\n     1. Unit must be rated under AHRI standard rated conditions and meet or exceed the requirements shown in Table 4.\nRequired Documentation:\n     1. Dated invoice/payment application.\n     2. Manufacturer's equipment specification sheet documenting the efficiency or AHRI reference numbers.",18," ",null,null," ","Air-CooledPackaged Air-Conditioner4","IEER","Cooling Seasonal Efficiency, IEER"," "]
["IT & Data Center"," ","     Outside-Air Economizer","OAEcon",null,"Input1","[Variant]"," ","Vertical Terminal A/C (VTAC)","VTAC","Rebate: $75 per Ton\nEligibility Requirements:\n     1. Units ≥ 65,000 BTU/h (5.5 tons) are not eligible.\n     2. Unit must be rated under AHRI (ARI 390) standard rated conditions and meet or exceed the requirements shown in Table 4.\nRequired Documentation:\n     1. Dated invoice/payment application.\n     2. Manufacturer's equipment specification sheet documenting the efficiency or AHRI reference numbers.",18," ","UnitaryAC_HeatType[Inputs]","HeatType[Code]"," ","Air-CooledPackaged Air-Conditioner5","IEER","Cooling Seasonal Efficiency, IEER"," "]
["Additional Measures"," ","     Carbon Dioxide Sensor (CO2)","CO2SNR",null,"EER","Cooling Full-Load Efficiency, EER"," ",null,null,null,null," ","None","ER"," ","Water-CooledPackaged Air-Conditioner1",null,null," "]
[null,null,"     Hotel Room Occupancy Controller","HROC",null,null,null," ","UnitaryHP_EquipmentType[Inputs]","EquipmentType[Code]","EquipmentType[Description]","EquipmentType[MeasureLife]"," ","Electric Resistance","ER"," ","Water-CooledPackaged Air-Conditioner2","IEER","Cooling Seasonal Efficiency, IEER"," "]
[null,null,"     HVAC: Other","HVACOther",null,null,null," ","Packaged Heat Pump","HP - Package","Rebate:\n     - Air-Cooled:  Tier 1: $110/Ton   Tier 2: $135/Ton\n     - Water-Cooled & Evaporatively-Cooled:  $75/Ton\nEligibility Requirements:\n     1. Window, room air conditioners, multi-split VRF systems >5 tons, and air-rotation systems are not eligible.\n     2. Rebates will be paid on a tiered efficiency structure according to the AHRI size and efficiency of the equipment.\n     3. Must be rated at AHRI standard rating conditions.\n     3. Rebates will be paid for highest efficiency tier for which the unit qualifies.\n     4. Air-Cooled systems must meet the efficiency listed in Table 2.\n     5. Water-Cooled systems must meet the efficiency listed in Table 3.\n     6. Equipment must use a minimum ozone-depleting refrigerant.\nRequired Documentation:\n     1. Dated invoice/payment application.\n     2. Manufacturer's equipment specification sheet documenting the efficiency or AHRI reference numbers.",18," ","Gas","Other"," ","Water-CooledPackaged Air-Conditioner3","IEER","Cooling Seasonal Efficiency, IEER"," "]
[null,null,"Refrigeration","Refrig[Code]",null,null,null," ","Split Heat Pump","HP - Split","Rebate:\n     - Air-Cooled:  Tier 1: $110/Ton   Tier 2: $135/Ton\n     - Water-Cooled & Evaporatively-Cooled:  $75/Ton\nEligibility Requirements:\n     1. Window, room air conditioners, multi-split VRF systems >5 tons, and air-rotation systems are not eligible. Multi-split\n     VRF systems <65,000 BTU/h may be qualified as unitary equipment split air-conditioners or heat pumps.\n     2. Rebates will be paid on a tiered efficiency structure according to the AHRI size and efficiency of the equipment.\n     3. Must be rated at AHRI standard rating conditions.\n     3. Rebates will be paid for highest efficiency tier for which the unit qualifies.\n     4. Air-Cooled systems must meet the efficiency listed in Table 2.\n     5. Water-Cooled systems must meet the efficiency listed in Table 3.\n     6. Equipment must use a minimum ozone-depleting refrigerant.\nRequired Documentation:\n     1. Dated invoice/payment application.\n     2. Manufacturer's equipment specification sheet documenting the efficiency or AHRI reference numbers.",18," ","Other","Other"," ","Water-CooledPackaged Air-Conditioner4","IEER","Cooling Seasonal Efficiency, IEER"," "]
[null,null,"     Refrigeration Compressor","RefrigComp",null,"UnitaryHP[Inputs]","UnitaryHP[Description]"," ","Multi-Split VRF HP","MSHPV","Rebate:  $75/Ton\nEligibility Requirements:\n     1. Must be >65,000 BTU/h and be rated at ANSI/AHRI 1230-2013 standard performance conditions. Units rated outside of\n     standard performance conditions may qualify under the SRP Business Solutions Custom program with pre-approval.\n     2. Must meet or exceed 2016 CEE efficiencies shown in Table 10.\nRequired Documentation:\n     1. Dated invoice/payment application.\n     2. Manufacturer's equipment specification sheet documenting compliance with equipment eligibility.",18," ",null,null," ","Water-CooledPackaged Air-Conditioner5","IEER","Cooling Seasonal Efficiency, IEER"," "]
[null,null,"     Refrigeration: Other","RefOther",null,"EquipmentType","Equipment Type"," ","Multi-Split VRF HP w/ Heat Recovery","MSHPVH","Rebate:  $75/Ton\nEligibility Requirements:\n     1. Must be >65,000 BTU/h and be rated at ANSI/AHRI 1230-2013 standard performance conditions. Units rated outside of\n     standard performance conditions may qualify under the SRP Business Solutions Custom program with pre-approval.\n     2. Must meet or exceed 2016 CEE efficiencies shown in Table 10.\nRequired Documentation:\n     1. Dated invoice/payment application.\n     2. Manufacturer's equipment specification sheet documenting compliance with equipment eligibility.",18," ","UnitaryHP_HeatReject[Inputs]","HeatReject[Code]"," ","Evaporatively-CooledPackaged Air-Conditioner1",null,null," "]
[null,null,"Kitchen Equipment","Kitchen[Code]",null,"HeatReject","Heat Rejection"," ","Packaged Terminal HP (PTHP)","PTHP","Rebate: $40 per Ton\nEligibility Requirements:\n     1. Unit must be rated under AHRI standard rated conditions and meet or exceed the requirements shown in Table 4.\nRequired Documentation:\n     1. Dated invoice/payment application.\n     2. Manufacturer's equipment specification sheet documenting the efficiency or AHRI reference numbers.",18," ","Air-Cooled","Air-Cooled"," ","Evaporatively-CooledPackaged Air-Conditioner2","IEER","Cooling Seasonal Efficiency, IEER"," "]
[null,null,"     Kitchen Equipment: All","KitchenOther",null,"HeatType","Heating Type"," ","Vertical Terminal HP (VTHP)","VTHP","Rebate: $75 per Ton\nEligibility Requirements:\n     1. Units ≥ 65,000 BTU/h (5.5 tons) are not eligible.\n     2. Unit must be rated under AHRI (ARI 390) standard rated conditions and meet or exceed the requirements shown in Table 4.\nRequired Documentation:\n     1. Dated invoice/payment application.\n     2. Manufacturer's equipment specification sheet documenting the efficiency or AHRI reference numbers.",18," ","Water-Cooled","Water-Cooled"," ","Evaporatively-CooledPackaged Air-Conditioner3","IEER","Cooling Seasonal Efficiency, IEER"," "]
[null,null,"Compressed Air","CA[Code]",null,"BTU/H","AHRI Size (British Thermal Units)"," ",null,null,null,null," ",null,null," ","Evaporatively-CooledPackaged Air-Conditioner4","IEER","Cooling Seasonal Efficiency, IEER"," "]
[null,null,"     Compressed Air: All","CAOther",null,"Input1","[Variant]"," ","Chiller_EquipmentType[Inputs]","EquipmentType[Code]","EquipmentType[Description]","EquipmentType[MeasureLife]"," ","UnitaryHP_HeatType[Inputs]","HeatType[Code]"," ","Evaporatively-CooledPackaged Air-Conditioner5","IEER","Cooling Seasonal Efficiency, IEER"," "]
[null,null,"IT & Data Center","ITDC[Code]",null,"EER","Cooling Full-Load Efficiency, EER"," ","Centrifugal","Centrifugal","Rebate:  $5/Ton + $310 per kW/ton increase in IPLV efficiency\n                 (Tons * $5)  +  (Tons * $310 * (Minimum IPLV - Proposed IPLV)\nEligibility Requirements:\n     1. Back-up service units are not eligible.\n     2. Must meet or exceed the minimum AHRI Standard 550/590 efficiency requirements shown in Table 5.\n     3. If the unit has a Variable Frequency Drive (VFD) installed, this must be reflected in the chiller IPLV rating.\nRequired Documentation:\n     1. Dated invoice/payment application.\n     2. Manufacturer's equipment specification sheet documenting the Full-Load (100%) and IPLV efficiency ratings.\n     3. If the chiller has more than 20% process cooling load, please submit the average annual loading percentage\n     and operating hours.",20," ","Electric Resistance","ER"," ","Air-CooledSplit Air-Conditioner1","SEER","Cooling Seasonal Efficiency, SEER"," "]
[null,null,"     High-Efficiency Computer Room A/C (CRAC)","CRAC",null,"Input3","[Variant]"," ","Reciprocating","Reciprocating","Rebate:  $5/Ton + $310 per kW/ton increase in IPLV efficiency\n                 (Tons * $5)  +  (Tons * $310 * (Minimum IPLV - Proposed IPLV)\nEligibility Requirements:\n     1. Back-up service units are not eligible.\n     2. Must meet or exceed the minimum AHRI Standard 550/590 efficiency requirements shown in Table 5.\n     3. If the unit has a Variable Frequency Drive (VFD) installed, this must be reflected in the chiller IPLV rating.\nRequired Documentation:\n     1. Dated invoice/payment application.\n     2. Manufacturer's equipment specification sheet documenting the Full-Load (100%) and IPLV efficiency ratings.\n     3. If the chiller has more than 20% process cooling load, please submit the average annual loading percentage\n     and operating hours.",20," ","Gas","Other"," ","Air-CooledSplit Air-Conditioner2","IEER","Cooling Seasonal Efficiency, IEER"," "]
[null,null,"     IT & Data Center: Other","ITDCOther",null,"Input4","[Variant]"," ","Rotary","Rotary","Rebate:  $5/Ton + $310 per kW/ton increase in IPLV efficiency\n                 (Tons * $5)  +  (Tons * $310 * (Minimum IPLV - Proposed IPLV)\nEligibility Requirements:\n     1. Back-up service units are not eligible.\n     2. Must meet or exceed the minimum AHRI Standard 550/590 efficiency requirements shown in Table 5.\n     3. If the unit has a Variable Frequency Drive (VFD) installed, this must be reflected in the chiller IPLV rating.\nRequired Documentation:\n     1. Dated invoice/payment application.\n     2. Manufacturer's equipment specification sheet documenting the Full-Load (100%) and IPLV efficiency ratings.\n     3. If the chiller has more than 20% process cooling load, please submit the average annual loading percentage\n     and operating hours.",20," ","Heat Pump","Other"," ","Air-CooledSplit Air-Conditioner3","IEER","Cooling Seasonal Efficiency, IEER"," "]
[null,null,"Additional Measures","Misc[Code]",null,null,null," ","Screw","Screw","Rebate:  $5/Ton + $310 per kW/ton increase in IPLV efficiency\n                 (Tons * $5)  +  (Tons * $310 * (Minimum IPLV - Proposed IPLV)\nEligibility Requirements:\n     1. Back-up service units are not eligible.\n     2. Must meet or exceed the minimum AHRI Standard 550/590 efficiency requirements shown in Table 5.\n     3. If the unit has a Variable Frequency Drive (VFD) installed, this must be reflected in the chiller IPLV rating.\nRequired Documentation:\n     1. Dated invoice/payment application.\n     2. Manufacturer's equipment specification sheet documenting the Full-Load (100%) and IPLV efficiency ratings.\n     3. If the chiller has more than 20% process cooling load, please submit the average annual loading percentage\n     and operating hours.",20," ","Other","Other"," ","Air-CooledSplit Air-Conditioner4","IEER","Cooling Seasonal Efficiency, IEER"," "]
[null,null,"     Additional Measures","Misc",null,"Chiller[Inputs]","Chiller[Description]"," ","Scroll","Scroll","Rebate:  $5/Ton + $310 per kW/ton increase in IPLV efficiency\n                 (Tons * $5)  +  (Tons * $310 * (Minimum IPLV - Proposed IPLV)\nEligibility Requirements:\n     1. Back-up service units are not eligible.\n     2. Must meet or exceed the minimum AHRI Standard 550/590 efficiency requirements shown in Table 5.\n     3. If the unit has a Variable Frequency Drive (VFD) installed, this must be reflected in the chiller IPLV rating.\nRequired Documentation:\n     1. Dated invoice/payment application.\n     2. Manufacturer's equipment specification sheet documenting the Full-Load (100%) and IPLV efficiency ratings.\n     3. If the chiller has more than 20% process cooling load, please submit the average annual loading percentage\n     and operating hours.",20," ",null,null," ","Air-CooledSplit Air-Conditioner5","IEER","Cooling Seasonal Efficiency, IEER"," "]
[null,null,null,null,null,"EquipmentType","Equipment Type"," ",null,null,null,null," ","Chiller_HeatReject[Inputs]","HeatReject[Code]"," ","Water-CooledSplit Air-Conditioner1",null,null," "]
[null,null,null,null,null,"HeatReject","Heat Rejection"," ","EvapCooler_EquipmentType[Inputs]","EquipmentType[Code]","EquipmentType[Description]","EquipmentType[MeasureLife]"," ","Air-Cooled","Air-Cooled"," ","Water-CooledSplit Air-Conditioner2","IEER","Cooling Seasonal Efficiency, IEER"," "]
[null,null,null,null,null,"VFD","VFD Chiller?"," ","Direct","DEC","Rebate:  $0.06/CFM\nEligibility Requirements:\n     1. Installations on non-standalone units are not eligible.\n     2. System components must meet or exceed minimum efficiencies required by ASHRAE 90.1-2013.\n     3. (New Construction) Units with fan motors ≥1/4 HP must have a VFD-controlled or ECM supply fan to be rebate eligible. \n     Rebates are not simultaneously available for VFD's where rebates have been paid for Evaporative Cooling equipment.\nRequired Documentation:\n     1. Dated invoice/payment application.\n     2. Manufacturer's equipment specification sheet documenting compliance with equipment eligibility.",18," ","Water-Cooled","Water-Cooled"," ","Water-CooledSplit Air-Conditioner3","IEER","Cooling Seasonal Efficiency, IEER"," "]
[null,null,null,null,null,"Tons","AHRI Size (Tons)"," ","Indirect","IEC","Rebate:  $0.06/CFM\nEligibility Requirements:\n     1. Installations on non-standalone units are not eligible.\n     2. System components must meet or exceed minimum efficiencies required by ASHRAE 90.1-2013.\n     3. (New Construction) Units with fan motors ≥1/4 HP must have a VFD-controlled or ECM supply fan to be rebate eligible. \n     Rebates are not simultaneously available for VFD's where rebates have been paid for Evaporative Cooling equipment.\nRequired Documentation:\n     1. Dated invoice/payment application.\n     2. Manufacturer's equipment specification sheet documenting compliance with equipment eligibility.",18," ",null,null," ","Water-CooledSplit Air-Conditioner4","IEER","Cooling Seasonal Efficiency, IEER"," "]
[null,null,null,null,null,"FL kW/Ton","Full Load (kW/Ton)"," ","Indirect-Direct","IDEC","Rebate:  $0.06/CFM\nEligibility Requirements:\n     1. Installations on non-standalone units are not eligible.\n     2. System components must meet or exceed minimum efficiencies required by ASHRAE 90.1-2013.\n     3. (New Construction) Units with fan motors ≥1/4 HP must have a VFD-controlled or ECM supply fan to be rebate eligible. \n     Rebates are not simultaneously available for VFD's where rebates have been paid for Evaporative Cooling equipment.\nRequired Documentation:\n     1. Dated invoice/payment application.\n     2. Manufacturer's equipment specification sheet documenting compliance with equipment eligibility.",18," ","Chiller_VFD[Inputs]","VFD[Code]"," ","Water-CooledSplit Air-Conditioner5","IEER","Cooling Seasonal Efficiency, IEER"," "]
[null,null,null,null,null,"IPLV kW/Ton","IPLV (kW/Ton)"," ",null,null,null,null," ","Yes","Yes"," ","Evaporatively-CooledSplit Air-Conditioner1",null,null," "]
[null,null,null,null,null,null,null," ","OAEcon_EquipmentType[Inputs]","EquipmentType[Code]","EquipmentType[Description]","EquipmentType[MeasureLife]"," ","No","No"," ","Evaporatively-CooledSplit Air-Conditioner2","IEER","Cooling Seasonal Efficiency, IEER"," "]
[null,null,null,null,null,null,null," ","Air-Conditioner","AC","Rebate:  $75/Ton\nEligibility Requirements:\n     1. 100% outside-air units are not eligible.\n     2. Must be capable of modulating 95% open.\n     3. (Retrofit) Replacements of existing economizers and HVAC units are eligible. Replacements of existing economizers\n     are not eligible for rebates, unless existing economizers have been non-functioning for more than 2 years.\n     4. (New Construction) Rebates are not available for economizers that are required by ASHRAE 90.1-2013:\n          - Units ≥65,000 BTU/H unless unit efficiency meets or exceeds the efficiencies listed in Table 8.\nRequired Documentation:\n     1. Dated invoice/payment application.\n     2. Manufacturer's equipment specification sheet documenting compliance with equipment eligibility.",8," ",null,null," ","Evaporatively-CooledSplit Air-Conditioner3","IEER","Cooling Seasonal Efficiency, IEER"," "]
[null,null,null,null,null,null,null," ","Heat Pump","HP","Rebate:  $75/Ton\nEligibility Requirements:\n     1. 100% outside-air units are not eligible.\n     2. Must be capable of modulating 95% open.\n     3. (Retrofit) Replacements of existing economizers and HVAC units are eligible. Replacements of existing economizers\n     are not eligible for rebates, unless existing economizers have been non-functioning for more than 2 years.\n     4. (New Construction) Rebates are not available for economizers that are required by ASHRAE 90.1-2013:\n          - Units ≥65,000 BTU/H unless unit efficiency meets or exceeds the efficiencies listed in Table 9.\nRequired Documentation:\n     1. Dated invoice/payment application.\n     2. Manufacturer's equipment specification sheet documenting compliance with equipment eligibility.",8," ","EvapCooler_VFD[Inputs]","VFD[Code]"," ","Evaporatively-CooledSplit Air-Conditioner4","IEER","Cooling Seasonal Efficiency, IEER"," "]
[null,null,null,null,null,"EvapCooler[Inputs]","EvapCooler[Description]"," ","Water-Source Heat Pump","WSHP","Rebate:  $75/Ton\nEligibility Requirements:\n     1. 100% outside-air units are not eligible.\n     2. Must be capable of modulating 95% open.\n     3. (Retrofit) Replacements of existing economizers and HVAC units are eligible. Replacements of existing economizers\n     are not eligible for rebates, unless existing economizers have been non-functioning for more than 2 years.\n     4. (New Construction) Rebates are not available for economizers that are required by ASHRAE 90.1-2013:\n          - Units ≥65,000 BTU/H unless unit efficiency meets or exceeds the efficiencies listed in Table 9.\nRequired Documentation:\n     1. Dated invoice/payment application.\n     2. Manufacturer's equipment specification sheet documenting compliance with equipment eligibility.",8," ","Yes","Yes"," ","Evaporatively-CooledSplit Air-Conditioner5","IEER","Cooling Seasonal Efficiency, IEER"," "]
[null,null,null,null,null,"EquipmentType","Equipment Type"," ","Computer Room Air-Conditioner","CRAC","Rebate:  $75/Ton\nEligibility Requirements:\n     1. 100% outside-air units are not eligible.\n     2. Must be capable of modulating 95% open.\n     3. (Retrofit) Replacements of existing economizers and HVAC units are eligible. Replacements of existing economizers\n     are not eligible for rebates, unless existing economizers have been non-functioning for more than 2 years.\n     4. (New Construction) Rebates are not available for economizers that are required by ASHRAE 90.1-2013:\n          - Computer Room Air-Conditioners (CRAC) ≥135,000 BTU/H.\nRequired Documentation:\n     1. Dated invoice/payment application.\n     2. Manufacturer's equipment specification sheet documenting compliance with equipment eligibility.",8,null,"No","No"," ","Air-CooledMulti-Split VRF A/C1","SEER","Cooling Seasonal Efficiency, SEER"," "]
[null,null,null,null,null,{"$f":"IF(ISNUMBER(SEARCH(\"Retro\",Project_Type,1)),\"\",\"VFD\")","v":""},{"$f":"IF(ISNUMBER(SEARCH(\"Retro\",Project_Type,1)),\"\",\"VFD or ECM Motor?\")","v":""}," ","Chiller","Chiller","Rebate:  $75/Ton\nEligibility Requirements:\n     1. 100% outside-air units are not eligible.\n     2. Must be capable of modulating 95% open.\n     3. (Retrofit) Replacements of existing economizers and HVAC units are eligible. Replacements of existing economizers\n     are not eligible for rebates, unless existing economizers have been non-functioning for more than 2 years.\n     4. (New Construction) Rebates are not available for economizers that are required by ASHRAE 90.1-2013:\n          - Chiller systems must have both a water-side economizer and air-side economizer (Rebates are not simultaneously\n          available) and meet or exceed the efficiencies listed in Table 8.\nRequired Documentation:\n     1. Dated invoice/payment application.\n     2. Manufacturer's equipment specification sheet documenting compliance with equipment eligibility.",8," ",null,null," ","Air-CooledMulti-Split VRF A/C2","IEER","Cooling Seasonal Efficiency, IEER"," "]
[null,null,null,null,null,null,null," ",null,null,null,null," ","OAEcon_HeatReject[Inputs]","HeatReject[Code]"," ","Air-CooledMulti-Split VRF A/C3","IEER","Cooling Seasonal Efficiency, IEER"," "]
[null,null,null,null,null,"CFM","Rated CFM"," ","CO2SNR_EquipmentType[Inputs]","EquipmentType[Code]","EquipmentType[Description]","EquipmentType[MeasureLife]"," ","Air-Cooled","Air-Cooled"," ","Air-CooledMulti-Split VRF A/C4","IEER","Cooling Seasonal Efficiency, IEER"," "]
[null,null,null,null,null,{"$f":"IF(ISNUMBER(SEARCH(\"Retro\",Project_Type,1)),\"\",\"HP\")","v":""},{"$f":"IF(ISNUMBER(SEARCH(\"Retro\",Project_Type,1)),\"\",\"Motor Size, HP\")","v":""}," ","Air-Conditioner","AC","Rebate:  Controlled Tonnage <10 Tons: $85/Each   Controlled Tonnage ≥10 Tons: $120/Each\nEligibility Requirements:\n     1. (Retrofit) Rebates are not available for replacement of existing CO2 sensors.\n     2. (New Construction) Rebates are not available where CO2 sensors are required be ASHRAE 90.1-2013:\n          - DCV systems for spaces >500 Sq. Ft. with an average design occupancy density ≥25 People per 1000 Sq. Ft. and an\n          Outside Airflow requirement of 750 CFM or more with one or more of the following:\n               - An air-side economizer.\n               - Automatic modulating OA Dampers for any space.\n               - Spaces requiring >3000 CFM.\nRequired Documentation:\n     1. Dated invoice/payment application.\n     2. Manufacturer's equipment specification sheet documenting compliance with equipment eligibility.\n     3. (New Construction) Documentation confirming CO2 sensors are not required.",12," ","Water-Cooled","Water-Cooled"," ","Air-CooledMulti-Split VRF A/C5","IEER","Cooling Seasonal Efficiency, IEER"," "]
[null,null,null,null,null,null,null," ","Heat Pump","HP","Rebate:  Controlled Tonnage <10 Tons: $85/Each   Controlled Tonnage ≥10 Tons: $120/Each\nEligibility Requirements:\n     1. (Retrofit) Rebates are not available for replacement of existing CO2 sensors.\n     2. (New Construction) Rebates are not available where CO2 sensors are required be ASHRAE 90.1-2013:\n          - DCV systems for spaces >500 Sq. Ft. with an average design occupancy density ≥25 People per 1000 Sq. Ft. and an\n          Outside Airflow requirement of 750 CFM or more with one or more of the following:\n               - An air-side economizer.\n               - Automatic modulating OA Dampers for any space.\n               - Spaces requiring >3000 CFM.\nRequired Documentation:\n     1. Dated invoice/payment application.\n     2. Manufacturer's equipment specification sheet documenting compliance with equipment eligibility.\n     3. (New Construction) Documentation confirming CO2 sensors are not required.",12," ","Evaporatively-Cooled","Evap-Cooled"," ","Water-CooledMulti-Split VRF A/C1",null,null," "]
[null,null,null,null,null,null,null," ","Water-Source Heat Pump","WSHP","Rebate:  Controlled Tonnage <10 Tons: $85/Each   Controlled Tonnage ≥10 Tons: $120/Each\nEligibility Requirements:\n     1. (Retrofit) Rebates are not available for replacement of existing CO2 sensors.\n     2. (New Construction) Rebates are not available where CO2 sensors are required be ASHRAE 90.1-2013:\n          - DCV systems for spaces >500 Sq. Ft. with an average design occupancy density ≥25 People per 1000 Sq. Ft. and an\n          Outside Airflow requirement of 750 CFM or more with one or more of the following:\n               - An air-side economizer.\n               - Automatic modulating OA Dampers for any space.\n               - Spaces requiring >3000 CFM.\nRequired Documentation:\n     1. Dated invoice/payment application.\n     2. Manufacturer's equipment specification sheet documenting compliance with equipment eligibility.\n     3. (New Construction) Documentation confirming CO2 sensors are not required.",12," ","Glycol-Cooled","Glycol-Cooled"," ","Water-CooledMulti-Split VRF A/C2","IEER","Cooling Seasonal Efficiency, IEER"," "]
[null,null,null,null,null,null,null," ","Chiller","Chiller","Rebate:  Controlled Tonnage <10 Tons: $85/Each   Controlled Tonnage ≥10 Tons: $120/Each\nEligibility Requirements:\n     1. (Retrofit) Rebates are not available for replacement of existing CO2 sensors.\n     2. (New Construction) Rebates are not available where CO2 sensors are required be ASHRAE 90.1-2013:\n          - DCV systems for spaces >500 Sq. Ft. with an average design occupancy density ≥25 People per 1000 Sq. Ft. and an\n          Outside Airflow requirement of 750 CFM or more with one or more of the following:\n               - An air-side economizer.\n               - Automatic modulating OA Dampers for any space.\n               - Spaces requiring >3000 CFM.\nRequired Documentation:\n     1. Dated invoice/payment application.\n     2. Manufacturer's equipment specification sheet documenting compliance with equipment eligibility.\n     3. (New Construction) Documentation confirming CO2 sensors are not required.",12," ",null,null," ","Water-CooledMulti-Split VRF A/C3","IEER","Cooling Seasonal Efficiency, IEER"," "]
[null,null,null,null,null,null,null," ",null,null,null,null," ","OAEcon_HeatType[Inputs]","HeatReject[Code]"," ","Water-CooledMulti-Split VRF A/C4","IEER","Cooling Seasonal Efficiency, IEER"," "]
[null,null,null,null,null,"OAEcon[Inputs]","OAEcon[Description]"," ","HROC_EquipmentType[Inputs]","EquipmentType[Code]","EquipmentType[Description]","EquipmentType[MeasureLife]"," ","None","ER"," ","Water-CooledMulti-Split VRF A/C5","IEER","Cooling Seasonal Efficiency, IEER"," "]
[null,null,null,null,null,"EquipmentType","Equipment Type"," ","Chiller","Chiller","Rebate:  $50/Room\nEligibility Requirements:\n     1. Rebates are only available for Hotel/Motel guestroom installations. Multi-room suites are counted as one \n     guestroom.\n     2. Standalone controls from the front desk are not eligible.\n     3. Must sense the occupant heat/motion/door-key activation and adjust the HVAC set points.\n     4. A minimum setback temperature of 6 degrees must be used.\n     5. (Retrofit) Replacements of existing hotel room occupancy controls are not eligible.\n     6. (New Construction) Conditioned spaces using chiller systems are not eligible.\nRequired Documentation:\n     1. Dated invoice/payment application.\n     2. Manufacturer's equipment specification sheet documenting compliance with equipment eligibility.",12," ","Electric Resistance","ER"," ","Evaporatively-CooledMulti-Split VRF A/C1",null,null," "]
[null,null,null,null,null,"List2","[Variant]"," ","Packaged-Terminal Air-Conditioner","PTAC","Rebate:  $50/Room\nEligibility Requirements:\n     1. Rebates are only available for Hotel/Motel guestroom installations. Multi-room suites are counted as one \n     guestroom.\n     2. Standalone controls from the front desk are not eligible.\n     3. Must sense the occupant heat/motion/door-key activation and adjust the HVAC set points.\n     4. A minimum setback temperature of 6 degrees must be used.\n     5. (Retrofit) Replacements of existing hotel room occupancy controls are not eligible.\n     6. (New Construction) Conditioned spaces using chiller systems are not eligible.\nRequired Documentation:\n     1. Dated invoice/payment application.\n     2. Manufacturer's equipment specification sheet documenting compliance with equipment eligibility.",12," ","Gas","Other"," ","Evaporatively-CooledMulti-Split VRF A/C2","IEER","Cooling Seasonal Efficiency, IEER"," "]
[null,null,null,null,null,"List3","[Variant]"," ","Packaged-Terminal Heat Pump","PTHP","Rebate:  $50/Room\nEligibility Requirements:\n     1. Rebates are only available for Hotel/Motel guestroom installations. Multi-room suites are counted as one \n     guestroom.\n     2. Standalone controls from the front desk are not eligible.\n     3. Must sense the occupant heat/motion/door-key activation and adjust the HVAC set points.\n     4. A minimum setback temperature of 6 degrees must be used.\n     5. (Retrofit) Replacements of existing hotel room occupancy controls are not eligible.\n     6. (New Construction) Conditioned spaces using chiller systems are not eligible.\nRequired Documentation:\n     1. Dated invoice/payment application.\n     2. Manufacturer's equipment specification sheet documenting compliance with equipment eligibility.",12," ","Heat Pump","Other"," ","Evaporatively-CooledMulti-Split VRF A/C3","IEER","Cooling Seasonal Efficiency, IEER"," "]
[null,null,null,null,null,"Size","[Variant]"," ","Fan Coil Unit (FCU)","FCU","Rebate:  $50/Room\nEligibility Requirements:\n     1. Rebates are only available for Hotel/Motel guestroom installations. Multi-room suites are counted as one \n     guestroom.\n     2. Standalone controls from the front desk are not eligible.\n     3. Must sense the occupant heat/motion/door-key activation and adjust the HVAC set points.\n     4. A minimum setback temperature of 6 degrees must be used.\n     5. (Retrofit) Replacements of existing hotel room occupancy controls are not eligible.\n     6. (New Construction) Conditioned spaces using chiller systems are not eligible.\nRequired Documentation:\n     1. Dated invoice/payment application.\n     2. Manufacturer's equipment specification sheet documenting compliance with equipment eligibility.",12," ","Other","Other"," ","Evaporatively-CooledMulti-Split VRF A/C4","IEER","Cooling Seasonal Efficiency, IEER"," "]
[null,null,null,null,null,{"$f":"IF(ISNUMBER(SEARCH(\"Retro\",Project_Type,1)),\"\",\"Input1\")","v":""},{"$f":"IF(ISNUMBER(SEARCH(\"Retro\",Project_Type,1)),\"\",\"[Variant]\")","v":""}," ",null,null,null,null," ",null,null," ","Evaporatively-CooledMulti-Split VRF A/C5","IEER","Cooling Seasonal Efficiency, IEER"," "]
[null,null,null,null,null,null,null," ","HVACOther_EquipmentType[Inputs]","EquipmentType[Code]","EquipmentType[Description]","EquipmentType[MeasureLife]"," ","CO2SNR_HeatType[Inputs]","HeatType[Code]"," ","Packaged Terminal A/C (PTAC)",null,null," "]
[null,null,null,null,null,null,null," ","EC Motor (ECM)","ECM","Rebate:  $125/Horsepower (HP)\nEligibility Requirements:\n     1. All electronically commutated motors (ECM) >1 HP are ineligible.\n     2. Rebates are not simultaneously available for ECM's where rebates have been paid for Unitary HVAC Equipment.\n     3. (New Construction) Installations are not eligible.\nRequired Documentation:\n     1. Dated invoice/payment application.\n     2. Manufacturer's equipment specification sheet documenting compliance with equipment eligibility.",15," ","None","None"," ","Vertical Terminal A/C (VTAC)",null,null," "]
[null,null,null,null,null,null,null," ","CO Sensor","CO Sensor","Rebate:  $250/Each\nEligibility Requirements:\n     1. Must maintain compliance with all applicable codes.\n     2. Rebates are not simultaneously available for CO sensors where rebates have been paid for VFDs on the same\n     equipment.\n     3. (Retrofit) Replacements of existing CO sensors are not eligible.\n     4. (New Construction) Rebates are not available for CO sensors required by ASHRAE 90.1-2013:\n          - Ventilation systems utilize mechanical heating and cooling AND\n          - Garages with a total area ≥30,000 sq. ft.\n          - OR Garages that have a ratio of ≤1,500 sq. ft. per horsepower of garage area-to-nameplate HP.\nRequired Documentation:\n     1. Dated invoice/payment application.\n     2. Manufacturer's equipment specification sheet documenting compliance with equipment eligibility.",12," ","Electric Resistance","ER"," "]
[null,null,null,null,null,null,null," ","Energy Management System (EMS)","EMS","Rebate:  $0.25/Sq. Ft. of Conditioned Space\nEligibility Requirements:\n     1. The EMS must be new and include:\n          - A graphic operator interface with central timing control.\n          - A minimum set point setback of 8 degrees and setback period of 2,200 hours per year.\n     2. An EMS installation on a building greater than 100,000 sq. ft. is not eligible for the Standard rebate and must be\n     processed under the SRP Business Solutions Custom program.\n     3. (Retrofit) Retrofits of buildings with existing digital automated HVAC controls and programmable thermostats\n     are not eligible. Replacements may be eligible under the SRP Business Solutions Custom program with pre-approval.\n     4. (New Construction) Installations are not eligible.\nRequired Documentation:\n     1. Dated invoice/payment application.\n     2. Manufacturer's equipment specification sheet documenting compliance with equipment eligibility.\n     3. Documentation verifying the total conditioned space controlled by the EMS.\n     4. Documentation of the EMS sequence of operations showing 7-day programmed operating schedules and\n     occupied/unoccupied temperature set points.",18," ","Gas","Gas"," ","UnitaryHP_Input1[EquipmentType]","Input1[Title]","Input1[Description]"," "]
[null,null,null,null,null,"CO2SNR[Inputs]","CO2SNR[Description]"," ","Smart Thermostat (Self-Install)","SMART Thermostat, No","Rebate:  $150/Each\nEligibility Requirements:\n     1. Must be Wi-Fi-enabled.\n     2. Must be Energy Star (ES) certified.\n     3. (Retrofit) Must replace an existing non-programmable or programmable (5-2 or 5-1-1) thermostat.\n     4. (New Construction) Installations are not eligible.\nRequired Documentation:\n     1. Dated invoice/payment application.\n     2. Manufacturer's equipment specification sheet documenting compliance with equipment eligibility.",18," ","Heat Pump","HP"," ","Air-CooledPackaged Heat Pump1","SEER","Cooling Seasonal Efficiency, SEER"," "]
[null,null,null,null,null,"EquipmentType","Equipment Type"," ","Smart Thermostat (Professional Install)","SMART Thermostat, Yes","Rebate:  $200/Each\nEligibility Requirements:\n     1. Must be Wi-Fi-enabled.\n     2. Must be Energy Star (ES) certified.\n     3. (Retrofit) Must replace an existing non-programmable or programmable (5-2 or 5-1-1) thermostat.\n     4. (New Construction) Installations are not eligible.\nRequired Documentation:\n     1. Dated invoice/payment application.\n     2. Dated labor invoice.\n     3. Manufacturer's equipment specification sheet documenting compliance with equipment eligibility.",18," ","Other","Other"," ","Air-CooledPackaged Heat Pump2","IEER","Cooling Seasonal Efficiency, IEER"," "]
[null,null,null,null,null,"List2","[Variant]"," ","VFD: VAV Fan","VFD: VAV Fan","Rebate:  $90/Horsepower (HP)\nEligibility Requirements:\n     1. Rebates are available for HVAC fans and pumps, Domestic Service Water (DSW) and Domestic Hot Water (DHW) pumps. \n     Rebates are not simultaneously available for supply motors where rebates have been paid for Unitary HVAC equipment or\n     CO sensors.\n     2. Rebates are not available for motors larger than 100 HP or for process equipment. These may be eligible through\n     the SRP Business Solutions Custom program with pre-approval.\n     3. (Retrofit) Any throttling or mechanical bypass equipment, bypass dampers, three-way valves, or throttling valves\n     must be removed or permanently disabled. Replacements of existing VFDs are not eligible unless the VFD has been\n     non-functioning for >2 years.\n     4. (New Construction) Rebates are not available for VFDs required by ASHRAE 90.1-2013:\n          - Variable Air Volume (VAV) systems ≥5 HP.\nRequired Documentation:\n     1. Dated invoice/payment application.\n     2. Manufacturer's equipment specification sheet documenting compliance with equipment eligibility.",12," ",null,null," ","Air-CooledPackaged Heat Pump3","IEER","Cooling Seasonal Efficiency, IEER"," "]
[null,null,null,null,null,{"$f":"IF(ISNUMBER(SEARCH(\"Retro\",Project_Type,1)),\"\",\"Ventilation\")","v":""},{"$f":"IF(ISNUMBER(SEARCH(\"Retro\",Project_Type,1)),\"\",\"Ventilation Controls\")","v":""}," ","VFD: HVAC Fan","VFD: HVAC Fan","Rebate:  $90/Horsepower (HP)\nEligibility Requirements:\n     1. Rebates are available for HVAC fans and pumps, Domestic Service Water (DSW) and Domestic Hot Water (DHW) pumps. \n     Rebates are not simultaneously available for supply motors where rebates have been paid for Unitary HVAC equipment or\n     CO sensors.\n     2. Rebates are not available for motors larger than 100 HP or for process equipment. These may be eligible through\n     the SRP Business Solutions Custom program with pre-approval.\n     3. (Retrofit) Any throttling or mechanical bypass equipment, bypass dampers, three-way valves, or throttling valves\n     must be removed or permanently disabled. Replacements of existing VFDs are not eligible unless the VFD has been\n     non-functioning for >2 years.\n     4. (New Construction) Rebates are not available for VFDs required by ASHRAE 90.1-2013:\n          - Supply and return fans for units ≥5 Tons.\nRequired Documentation:\n     1. Dated invoice/payment application.\n     2. Manufacturer's equipment specification sheet documenting compliance with equipment eligibility.",12," ","CO2SNR_Ventilation[Inputs]","Ventilation[Code]"," ","Air-CooledPackaged Heat Pump4","IEER","Cooling Seasonal Efficiency, IEER"," "]
[null,null,null,null,null,"Tons","Controlled Tons (Per Sensor)"," ","VFD: HVAC Pump","VFD: HVAC Pump","Rebate:  $90/Horsepower (HP)\nEligibility Requirements:\n     1. Rebates are available for HVAC fans and pumps, Domestic Service Water (DSW) and Domestic Hot Water (DHW) pumps. \n     Rebates are not simultaneously available for supply motors where rebates have been paid for Unitary HVAC equipment or\n     CO sensors.\n     2. Rebates are not available for motors larger than 100 HP or for process equipment. These may be eligible through\n     the SRP Business Solutions Custom program with pre-approval.\n     3. (Retrofit) Any throttling or mechanical bypass equipment, bypass dampers, three-way valves, or throttling valves\n     must be removed or permanently disabled. Replacements of existing VFDs are not eligible unless the VFD has been\n     non-functioning for >2 years.\n     4. (New Construction) Rebates are not available for VFDs required by ASHRAE 90.1-2013:\n          - HVAC, chilled water (CHW) pumps >5 HP.\nRequired Documentation:\n     1. Dated invoice/payment application.\n     2. Manufacturer's equipment specification sheet documenting compliance with equipment eligibility.",12," ","None","None"," ","Air-CooledPackaged Heat Pump5","IEER","Cooling Seasonal Efficiency, IEER"," "]
[null,null,null,null,null,{"$f":"IF(ISNUMBER(SEARCH(\"Retro\",Project_Type,1)),\"\",\"Population\")","v":""},{"$f":"IF(ISNUMBER(SEARCH(\"Retro\",Project_Type,1)),\"\",\"Outside Air Calculations Zone Population, Pz\")","v":""}," ","VFD: Chilled Water Pump","VFD: CHW Pump","Rebate:  $90/Horsepower (HP)\nEligibility Requirements:\n     1. Rebates are available for HVAC fans and pumps, Domestic Service Water (DSW) and Domestic Hot Water (DHW) pumps. \n     Rebates are not simultaneously available for supply motors where rebates have been paid for Unitary HVAC equipment or\n     CO sensors.\n     2. Rebates are not available for motors larger than 100 HP or for process equipment. These may be eligible through\n     the SRP Business Solutions Custom program with pre-approval.\n     3. (Retrofit) Any throttling or mechanical bypass equipment, bypass dampers, three-way valves, or throttling valves\n     must be removed or permanently disabled. Replacements of existing VFDs are not eligible unless the VFD has been\n     non-functioning for >2 years.\n     4. (New Construction) Rebates are not available for VFDs required by ASHRAE 90.1-2013:\n          - HVAC, chilled water (CHW) pumps >5 HP.\nRequired Documentation:\n     1. Dated invoice/payment application.\n     2. Manufacturer's equipment specification sheet documenting compliance with equipment eligibility.",12," ","OA Economizer","OA Economizer"," ","Water-CooledPackaged Heat Pump1",null,null," "]
[null,null,null,null,null,{"$f":"IF(ISNUMBER(SEARCH(\"Retro\",Project_Type,1)),\"\",\"Area\")","v":""},{"$f":"IF(ISNUMBER(SEARCH(\"Retro\",Project_Type,1)),\"\",\"Outside Air Calculations Zone Area, Az\")","v":""}," ","VFD: Domestic Service Water Pump","VFD: DSW Pump","Rebate:  $90/Horsepower (HP)\nEligibility Requirements:\n     1. Rebates are available for HVAC fans and pumps, Domestic Service Water (DSW) and Domestic Hot Water (DHW) pumps. \n     Rebates are not simultaneously available for supply motors where rebates have been paid for Unitary HVAC equipment or\n     CO sensors.\n     2. Rebates are not available for motors larger than 100 HP or for process equipment. These may be eligible through\n     the SRP Business Solutions Custom program with pre-approval.\n     3. (Retrofit) Any throttling or mechanical bypass equipment, bypass dampers, three-way valves, or throttling valves\n     must be removed or permanently disabled. Replacements of existing VFDs are not eligible unless the VFD has been\n     non-functioning for >2 years.\nRequired Documentation:\n     1. Dated invoice/payment application.\n     2. Manufacturer's equipment specification sheet documenting compliance with equipment eligibility.",12," ","Automated OA Dampers","Automated OA Dampers"," ","Water-CooledPackaged Heat Pump2",null,null," "]
[null,null,null,null,null,{"$f":"IF(ISNUMBER(SEARCH(\"Retro\",Project_Type,1)),\"\",\"CFM\")","v":""},{"$f":"IF(ISNUMBER(SEARCH(\"Retro\",Project_Type,1)),\"\",\"Design Total Zone Airflow, CFM\")","v":""}," ","VFD: Domestic Hot Water Pump","VFD: DHW Pump","Rebate:  $90/Horsepower (HP)\nEligibility Requirements:\n     1. Rebates are available for HVAC fans and pumps, Domestic Service Water (DSW) and Domestic Hot Water (DHW) pumps. \n     Rebates are not simultaneously available for supply motors where rebates have been paid for Unitary HVAC equipment or\n     CO sensors.\n     2. Rebates are not available for motors larger than 100 HP or for process equipment. These may be eligible through\n     the SRP Business Solutions Custom program with pre-approval.\n     3. (Retrofit) Any throttling or mechanical bypass equipment, bypass dampers, three-way valves, or throttling valves\n     must be removed or permanently disabled. Replacements of existing VFDs are not eligible unless the VFD has been\n     non-functioning for >2 years.\nRequired Documentation:\n     1. Dated invoice/payment application.\n     2. Manufacturer's equipment specification sheet documenting compliance with equipment eligibility.",12," ","Economizer + OA Dampers","Economizer + OA Dampers"," ","Water-CooledPackaged Heat Pump3",null,null," "]
[null,null,null,null,null,null,null," ","Advanced RTU Controller","RTU Controller","Rebate:  $300/Ton\nEligibility Requirements:\n     1. Controller must be capable of demand limiting and must provide variable fan control, demand control\n     ventilation (DCV), and outside-air economizer control.\n     2. (Retrofit) Installations on existing units where existing controls are present are not eligible. Controller must be\n     installed on existing air-cooled packaged rooftop units serving as constant-volume (CV) systems and utilizing direct-\n     expansion (DX) cooling technology.\n     3. (New Construction) Installations on units where variable speed fan controls are required by ASHRAE 90.1-2013:\n          - Units ≥ 5 Tons are not eligible.\nRequired Documentation:\n     1. Dated invoice/payment application.\n     2. Manufacturer's equipment specification sheet documenting compliance with equipment eligibility.",12," ",null,null," ","Water-CooledPackaged Heat Pump4",null,null," "]
[null,null,null,null,null,null,null," ",null,null,null,null," ","HROC_HeatType[Inputs]","HeatType[Code]"," ","Water-CooledPackaged Heat Pump5",null,null," "]
[null,null,null,null,null,"HROC[Inputs]","HROC[Description]"," ","RefrigComp_EquipmentType[Inputs]","EquipmentType[Code]","EquipmentType[Description]","EquipmentType[MeasureLife]"," ","None","ER"," ","Air-CooledSplit Heat Pump1","SEER","Cooling Seasonal Efficiency, SEER"," "]
[null,null,null,null,null,"EquipmentType","Equipment Type"," ","Ref. Compressor: Bev. Merch","RFC: Beverage Merchandiser","Rebate:  $80/Ton\nEligibility Requirements:\n     1. Rebates are only available for dedicated compressors for walk-in systems and self-contained refrigeration systems for reach-in systems.\n     2. Must meet or exceed a minimum efficiency shown in Table 6.\n     3. (New Construction) Installations are not eligible.\n     for reach-in systems.\nRequired Documentation:\n     1. Dated invoice/payment application.\n     2. Manufacturer's equipment specification sheet documenting unit efficiency.",20," ","Electric Resistance","ER"," ","Air-CooledSplit Heat Pump2","IEER","Cooling Seasonal Efficiency, IEER"," "]
[null,null,null,null,null,"List2","[Variant]"," ","Ref. Compressor: Food Service ","RFC: Food Service Equipment","Rebate:  $80/Ton\nEligibility Requirements:\n     1. Rebates are only available for dedicated compressors for walk-in systems and self-contained refrigeration systems for reach-in systems.\n     2. Must meet or exceed a minimum efficiency shown in Table 6.\n     3. (New Construction) Installations are not eligible.\n     for reach-in systems.\nRequired Documentation:\n     1. Dated invoice/payment application.\n     2. Manufacturer's equipment specification sheet documenting unit efficiency.",20," ","Gas","Other"," ","Air-CooledSplit Heat Pump3","IEER","Cooling Seasonal Efficiency, IEER"," "]
[null,null,null,null,null,null,null," ","Ref. Compressor: RI Cooler","RFC: Reach-In: Cooler","Rebate:  $80/Ton\nEligibility Requirements:\n     1. Rebates are only available for dedicated compressors for walk-in systems and self-contained refrigeration systems for reach-in systems.\n     2. Must meet or exceed a minimum efficiency shown in Table 6.\n     3. (New Construction) Installations are not eligible.\n     for reach-in systems.\nRequired Documentation:\n     1. Dated invoice/payment application.\n     2. Manufacturer's equipment specification sheet documenting unit efficiency.",20," ","Heat Pump","Other"," ","Air-CooledSplit Heat Pump4","IEER","Cooling Seasonal Efficiency, IEER"," "]
[null,null,null,null,null,null,null," ","Ref. Compressor: RI Freezer","RFC: Reach-In: Freezer","Rebate:  $80/Ton\nEligibility Requirements:\n     1. Rebates are only available for dedicated compressors for walk-in systems and self-contained refrigeration systems for reach-in systems.\n     2. Must meet or exceed a minimum efficiency shown in Table 6.\n     3. (New Construction) Installations are not eligible.\n     for reach-in systems.\nRequired Documentation:\n     1. Dated invoice/payment application.\n     2. Manufacturer's equipment specification sheet documenting unit efficiency.",20," ","Other","Other"," ","Air-CooledSplit Heat Pump5","IEER","Cooling Seasonal Efficiency, IEER"," "]
[null,null,null,null,null,null,null," ","Ref. Compressor: WI Cooler","RFC: Walk-In: Cooler","Rebate:  $80/Ton\nEligibility Requirements:\n     1. Rebates are only available for dedicated compressors for walk-in systems and self-contained refrigeration systems for reach-in systems.\n     2. Must meet or exceed a minimum efficiency shown in Table 6.\n     3. (New Construction) Installations are not eligible.\n     for reach-in systems.\nRequired Documentation:\n     1. Dated invoice/payment application.\n     2. Manufacturer's equipment specification sheet documenting unit efficiency.",20," ",null,null," ","Water-CooledSplit Heat Pump1",null,null," "]
[null,null,null,null,null,null,null," ","Ref. Compressor: WI Freezer","RFC: Walk-In: Freezer","Rebate:  $80/Ton\nEligibility Requirements:\n     1. Rebates are only available for dedicated compressors for walk-in systems and self-contained refrigeration systems for reach-in systems.\n     2. Must meet or exceed a minimum efficiency shown in Table 6.\n     3. (New Construction) Installations are not eligible.\n     for reach-in systems.\nRequired Documentation:\n     1. Dated invoice/payment application.\n     2. Manufacturer's equipment specification sheet documenting unit efficiency.",20," ","CRAC_HeatReject[Inputs]","HeatReject[Code]"," ","Water-CooledSplit Heat Pump2",null,null," "]
[null,null,null,null,null,null,null," ","Discus Compressor","Discus Compressor","Rebate:  $50/Ton\nEligibility Requirements:\n     1. Must be a discus or disc-valve compressor.\n     2. (New Construction) Installations are not eligible.\nRequired Documentation:\n     1. Dated invoice/payment application.\n     2. Manufacturer's equipment specification sheet documenting unit efficiency.",20," ","Air-Cooled","Air-Cooled"," ","Water-CooledSplit Heat Pump3",null,null," "]
[null,null,null,null,null,null,null," ",null,null,null,null," ","Water-Cooled","Water-Cooled"," ","Water-CooledSplit Heat Pump4",null,null," "]
[null,null,null,null,null,null,null," ","RefrigOther_EquipmentType[Inputs]","EquipmentType[Code]","EquipmentType[Description]","EquipmentType[MeasureLife]"," ","Glycol-Cooled","Glycol-Cooled"," ","Water-CooledSplit Heat Pump5",null,null," "]
[null,null,null,null,null,"HVACOther[Inputs]","HVACOther[Description]"," ","Anti-Sweat Heater Controls","NA","Rebate:  $3/Ln. Ft.\nEligibility Requirements:\n     1. Must sense humidity or condensation and adjust heater accordingly.\n     2. (New Construction) Installations are not eligible.\nRequired Documentation:\n     1. Dated invoice/payment application.\n     2. Manufacturer's equipment specification sheet documenting compliance with equipment eligibility.",12," ",null,null," ","Air-CooledMulti-Split VRF HP1","SEER","Cooling Seasonal Efficiency, SEER"," "]
[null,null,null,null,null,"EquipmentType","Equipment Type"," ","Auto-Closer Walk-In","NA","Rebate:\n     - Cooler: $20/Each\n     - Freezer: $40/Each\nEligibility Requirements:\n     1. Must firmly close door when door is within 1\" of full closure.\n     2. (Retrofit) Only installations on walk-in units are eligible.\n     3. (New Construction) Installations on main walk-in doors are not eligible.\nRequired Documentation:\n     1. Dated invoice/payment application.",15," ","CRAC_FluidEcon[Inputs]","FluidEcon[Code]"," ","Air-CooledMulti-Split VRF HP2","IEER","Cooling Seasonal Efficiency, IEER"," "]
[null,null,null,null,null,"List2","[Variant]"," ","Dock Door Seal","NA","Rebate:  $25/Ln. Ft.\nEligibility Requirements:\n     1. Partial seals (seals that only partially seal the space between the building and the truck during loading) or seals\n     requiring blowers are not eligible.\n     2. (New Construction) Installations are not eligible.\nRequired Documentation:\n     1. Dated invoice/payment application.\n     2. Manufacturer's equipment specification sheet documenting compliance with equipment eligibility.",6," ","Yes","Econ"," ","Air-CooledMulti-Split VRF HP3","IEER","Cooling Seasonal Efficiency, IEER"," "]
[null,null,null,null,null,"List3","[Variant]"," ","Electronically Commutated Motor","NA","Rebate:  Reach-In: $25/Each  Walk-In: $60/Each\nEligibility Requirements:\n     1. Rebates are not simultaneously available for ECMs where rebates have been paid on cases.\n     2. (New Construction) Installations are not eligible.\nRequired Documentation:\n     1. Dated invoice/payment application.\n     2. Manufacturer's equipment specification sheet documenting compliance with equipment eligibility.",15," ","No","None"," ","Air-CooledMulti-Split VRF HP4","IEER","Cooling Seasonal Efficiency, IEER"," "]
[null,null,null,null,null,"Size","[Variant]"," ","Evaporative Condenser","NA","Rebate:  $70/Ton (Condenser)\nEligibility Requirements:\n     1. Must have a VFD-controlled fan (separate rebate allowed).\n     2. Must have a designed temperature differential (TD) ≤18 ºF and a minimum condensing temperature of 70 ºF.\n     3. Must meet or exceed the minimum efficiency of 240 EER.\n     4. Condenser must have floating head pressure control (no simultaneous rebate allowed).\n     5. (New Construction) Installations are not eligible.\nRequired Documentation:\n     1. Dated invoice/payment application.\n     2. Manufacturer's equipment specification sheet documenting compliance with equipment eligibility.",20," ",null,null,null,"Air-CooledMulti-Split VRF HP5","IEER","Cooling Seasonal Efficiency, IEER"," "]
[null,null,null,null,null,"Input1","[Variant]"," ","Fast-Acting Door","NA","Rebate:  Med-Temp: $30/Sq. Ft. of Door Opening Area  Low-Temp: $80/ Sq. Ft. of Door Opening Area\nEligibility Requirements:\n     1. Bi-Fold doors meet or exceed the maximum open/close time of ≤1.5 seconds.\n     2. Roll-Up doors meet or exceed the maximum open/close time of ≤4.0 seconds.\n     3. (New Construction) Installations on coolers/freezers ≤3,000 Sq. Ft. are not eligible.\nRequired Documentation:\n     1. Dated invoice/payment application.\n     2. Manufacturer's equipment specification sheet documenting compliance with equipment eligibility.",20," ",null,null,null,"Water-CooledMulti-Split VRF HP1",null,null," "]
[null,null,null,null,null,null,null," ","Floating Head-Pressure Controls","NA","Rebate:  $20/Ton (Compressor)\nEligibility Requirements:\n     1. Must be installed on an evaporative condenser or active compressor capacity.\n     2. Condenser system must have a VFD-controlled fan (separate rebate allowed) or staged fan.\n     3. (New Construction) Installations are not eligible.\nRequired Documentation:\n     1. Dated invoice/payment application.\n     2. Manufacturer's equipment specification sheet documenting compliance with equipment eligibility.",12," ",null,null,null,"Water-CooledMulti-Split VRF HP2",null,null," "]
[null,null,null,null,null,null,null," ","Door Gaskets","NA","Rebate:  Med-Temp: $3.50/Ln. Ft.  Low-Temp: $4.50/Ln. Ft.\nEligibility Requirements:\n     1. (Retrofit) Replacements of existing gaskets are not eligible without SRP's prior approval within 3 years unless\n      prior SRP rebates for existing gaskets have been received >3 years.\n     2. (New Construction) Installations are not eligible.\nRequired Documentation:\n     1. Dated invoice/payment application.",3," ",null,null,null,"Water-CooledMulti-Split VRF HP3",null,null," "]
[null,null,null,null,null,null,null," ","High-Efficiency Open Display Case","NA","Rebate:  $20/Ln. Ft.\nEligibility Requirements:\n     1. Reach-In Cooler or Freezer cases are not eligible. These may be eligible under the SRP Business Solutions Custom\n     program with pre-approval.\n     2. Rebates are not simultaneously available for cases where rebates are paid for electronically commutated motors (ECM)\n     on the same equipment.\n     3. (Retrofit) Retrofits of existing cases are not eligible. Rebates are available individually for lighting and ECMs.\n     4. (New Construction) Installations are not eligible.\nRequired Documentation:\n     1. Dated invoice/payment application.\n     2. Manufacturer's equipment specification sheet documenting compliance with equipment eligibility.",20," ",null,null,null,"Water-CooledMulti-Split VRF HP4",null,null," "]
[null,null,null,null,null,null,null," ","Refrigerated Occupancy Controls","NA","Rebate:  Reach-In & Beverage Machine: $100/Each  Snack Machine: $40/Each\nEligibility Requirements:\n     1. Controls must turn off the refrigeration and lighting systems when the area is unoccupied for 15 minutes or more.\n     2. Beverage machine and reach-in cooler controls may be set to cycle refrigeration every two hours to maintain\n     product temperature. Customer must own the machine.\n     3. (New Construction) Installations are not eligible.\nRequired Documentation:\n     1. Dated invoice/payment application.\n     2. Manufacturer's equipment specification sheet documenting compliance with equipment eligibility.",12," ",null,null,null,"Water-CooledMulti-Split VRF HP5",null,null," "]
[null,null,null,null,null,"RefrigComp[Inputs]","RefrigComp[Description]"," ","Refrigerated Suction Pipe Insulation","NA","Rebate:  $0.75/Ln. Ft.\nEligibility Requirements:\n     1. Must insulate bare suction lines ≤1.625\" (diameter). Medium-Temperature lines require 0.75\" of flexible, closed-\n     cell, nitrile rubber, or equivalent insulation.  Low-Temperature lines require 1.00\" of flexible, closed-cell, nitrile rubber,\n     or equivalent insulation.\n     2. Insulation R-Values must be ≥R-3.2 for Medium-Temperature lines and ≥R-4.3 for Medium-Temperature lines.\n     3. Outdoor installations must be protected from weather.\n     4. (New Construction) Installations are not eligible.\nRequired Documentation:\n     1. Dated invoice/payment application.\n     2. Manufacturer's equipment specification sheet documenting compliance with equipment eligibility.",20," ",null,null,null,"Air-CooledMulti-Split VRF HP w/ Heat Recovery1","SEER","Cooling Seasonal Efficiency, SEER"," "]
[null,null,null,null,null,"EquipmentType","Equipment Type"," ","Strip Curtain","NA","Rebate:  $4/Sq. Ft. of Door Opening Area\nEligibility Requirements:\n     1. Must be installed on doorways of walk-in refrigerators or in refrigerated warehouses.\n     2. (Retrofit) Replacements of worn or existing curtains are not eligible.\n     3. (New Construction) Installations  are not eligible.\nRequired Documentation:\n     1. Dated invoice/payment application.",3," ",null,null,null,"Air-CooledMulti-Split VRF HP w/ Heat Recovery2","IEER","Cooling Seasonal Efficiency, IEER"," "]
[null,null,null,null,null,null,null," ","Variable Frequency Drive","NA","Rebate:  $125/Horsepower (HP)\nEligibility Requirements:\n     1. Fans with cycling controls are not eligible.\n     2. Equipment must reduce fan speed based on immediate needs of the system.\n     3. (Retrofit) Replacements of existing VFDs are not eligible.\n     4. (New Construction) Installations are not eligible.\nRequired Documentation:\n     1. Dated invoice/payment application.",12," ",null,null,null,"Air-CooledMulti-Split VRF HP w/ Heat Recovery3","IEER","Cooling Seasonal Efficiency, IEER"," "]
[null,null,null,null,null,null,null," ",null,null,null,null," ",null,null,null,"Air-CooledMulti-Split VRF HP w/ Heat Recovery4","IEER","Cooling Seasonal Efficiency, IEER"," "]
[null,null,null,null,null,"R. Tons","Size (Refrigeration Tons)"," ","KitchenOther_EquipmentType[Inputs]","EquipmentType[Code]","EquipmentType[Description]","EquipmentType[MeasureLife]"," ",null,null,null,"Air-CooledMulti-Split VRF HP w/ Heat Recovery5","IEER","Cooling Seasonal Efficiency, IEER"," "]
[null,null,null,null,null,"Input1","[Variant]"," ","ENERGY STAR Griddle","Griddle","Rebate:  $225/Each\nEligibility Requirements:\n     1. Must be ENERGY STAR®-qualified with a minimum cooking energy efficiency of 70 percent for all size units. \n     2. (Retrofit) Used or rebuilt equipment and existing natural gas retrofits is not eligible. Natural gas to electric retrofits \n     may be covered under the electric technologies program:\n        https://www.savewithsrpbiz.com/rebates/electrictechnology.aspx\nRequired Documentation:\n     1. Dated invoice/payment application.\n     2. Manufacturer's equipment specification sheet documenting compliance with equipment eligibility.",20," ",null,null,null,"Water-CooledMulti-Split VRF HP w/ Heat Recovery1",null,null," "]
[null,null,null,null,null,null,null," ","ENERGY STAR Steam Cooker","Steam Cooker","Rebate:  $250/Each\nEligibility Requirements:\n     1. Must be ENERGY STAR®-qualified with a minimum cooking energy efficiency of 50 percent for all size units. \n     2. (Retrofit) Used or rebuilt equipment and existing natural gas retrofits is not eligible. Natural gas to electric retrofits \n     may be covered under the electric technologies program:\n        https://www.savewithsrpbiz.com/rebates/electrictechnology.aspx\nRequired Documentation:\n     1. Dated invoice/payment application.\n     2. Manufacturer's equipment specification sheet documenting compliance with equipment eligibility.",20," ",null,null,null,"Water-CooledMulti-Split VRF HP w/ Heat Recovery2",null,null," "]
[null,null,null,null,null,null,null," ","ENERGY STAR Dishwasher","Dishwasher","Rebate:\n     - Under Counter: $200/Each\n     - Single Tank: $600/Each\n     - Multi-Tank: $800/Each\nEligibility Requirements:\n     1. This measure applies to ENERGY STAR® high and low temp under counter single tank door type, single tank\n     conveyor, and multiple tank conveyor dishwashers installed in a commercial kitchen.\nRequired Documentation:\n     1. Dated invoice/payment application.\n     2. Manufacturer's equipment specification sheet documenting compliance with equipment eligibility.",20," ",null,null,null,"Water-CooledMulti-Split VRF HP w/ Heat Recovery3",null,null," "]
[null,null,null,null,null,null,null," ","ENERGY STAR Hot Food Holding Cabinet","Hot Food Holding Cabinet","Rebate:\n     - 1/2 Size: $225/Each\n     - 3/4 Size: $350/Each\n     - Full Size: $700/Each\nEligibility Requirements:\n     1. Must meet ENERGY STAR® Version 2.0 Hot Food Holding Cabinet (HFHC) specification. \n     2. Cook-and-hold equipment is not eligible. \n     3. (Retrofit) Used or rebuilt equipment and existing natural gas retrofits is not eligible. Natural gas to electric retrofits \n     may be covered under the electric technologies program:\n        https://www.savewithsrpbiz.com/rebates/electrictechnology.aspx\nRequired Documentation:\n     1. Dated invoice/payment application.\n     2. Manufacturer's equipment specification sheet documenting compliance with equipment eligibility.",20," ",null,null,null,"Water-CooledMulti-Split VRF HP w/ Heat Recovery4",null,null," "]
[null,null,null,null,null,null,null," ","ENERGY STAR Ice Maker","Ice Maker","Rebate:\n     - 100-500 lb./day: $60/Each\n     - 501-1500 lb./day: $170/Each\n     - >1500 lb./day: $215/Each\nEligibility Requirements:\n     1. Only air-cooled, cube-type machines including ice-making head, self-contained and remote-condensing units qualify.\n     This measure excludes flake- and nugget-type ice machines.\n     2. The ice maker must be ENERGY STAR®-qualified.\nRequired Documentation:\n     1. Dated invoice/payment application.\n     2. Manufacturer's equipment specification sheet documenting compliance with equipment eligibility.",20," ",null,null,null,"Water-CooledMulti-Split VRF HP w/ Heat Recovery5",null,null," "]
[null,null,null,null,null,"RefrigOther[Inputs]","RefrigOther[Description]"," ","ENERGY STAR Refrigerated Beverage Vending Machine","Refrigerated Vending Machine","Rebate:  $100/Each\nEligibility Requirements:\n     1. The vending machine must be ENERGY STAR®-qualified.\nRequired Documentation:\n     1. Dated invoice/payment application.\n     2. Manufacturer's equipment specification sheet documenting compliance with equipment eligibility.",20," ",null,null,null,"Packaged Terminal HP (PTHP)",null,null," "]
[null,null,null,null,null,"EquipmentType","Equipment Type"," ","ENERGY STAR Electric Convection Oven","Electric Convection Oven","Rebate:  $175/Each\nEligibility Requirements:\n     1. Must meet ENERGY STAR Version 2.0 Convection Oven specification.\n     2. (Retrofit) Used or rebuilt equipment and existing natural gas retrofits is not eligible. Natural gas to electric retrofits \n     may be covered under the electric technologies program:\n        https://www.savewithsrpbiz.com/rebates/electrictechnology.aspx\nRequired Documentation:\n     1. Dated invoice/payment application.\n     2. Manufacturer's equipment specification sheet documenting compliance with equipment eligibility.",20," ",null,null,null,"Vertical Terminal HP (VTHP)",null,null," "]
[null,null,null,null,null,"List2","[Variant]"," ","ENERGY STAR Electric Vat Fryer","Electric Vat Fryer","Rebate:  Standard: $250/Each & Large: $150/Each\nEligibility Requirements:\n     1. Must be ENERGY STAR-qualified with a minimum cooking energy efficiency of 80 percent for all size units.\n     2. (Retrofit) Used or rebuilt equipment and existing natural gas retrofits is not eligible. Natural gas to electric retrofits \n     may be covered under the electric technologies program:\n        https://www.savewithsrpbiz.com/rebates/electrictechnology.aspx\nRequired Documentation:\n     1. Dated invoice/payment application.\n     2. Manufacturer's equipment specification sheet documenting compliance with equipment eligibility.",20," "]
[null,null,null,null,null,"List3","[Variant]"," ","Electric Combination Oven","Electric Combination Oven","Rebate:  <15 Pans: $550/Each & ≥15 Pans: $1,000/Each\nEligibility Requirements:\n     1. Must meet or exceed heavy load cooking energy efficiency of 60 percent utilizing ASTM Standard F2861.\n     2. (Retrofit) Used or rebuilt equipment and existing natural gas retrofits is not eligible. Natural gas to electric retrofits \n     may be covered under the electric technologies program:\n        https://www.savewithsrpbiz.com/rebates/electrictechnology.aspx\nRequired Documentation:\n     1. Dated invoice/payment application.\n     2. Manufacturer's equipment specification sheet documenting compliance with equipment eligibility.",20," ",null,null,null,"UnitaryHP_Input3[EquipmentType]","Input3[Title]","Input3[Description]"," "]
[null,null,null,null,null,"Size","[Variant]"," ","High Efficiency Pre-Rinse Spray Valve","HE Pre-Rinse Spray Valve","Rebate:  $75/Each\nEligibility Requirements:\n     1. Must be ≤1.15 gpm and have a cleanability performance of 26 seconds per plate or less, based on ASTM.\n     2.  This measure is only applicable for systems with electric storage water heaters.\nRequired Documentation:\n     1. Dated invoice/payment application.\n     2. Manufacturer's equipment specification sheet documenting compliance with equipment eligibility.",20," ",null,null,null,"Air-CooledPackaged Heat Pump1","HSPF","Heating Efficiency, HSPF"," "]
[null,null,null,null,null,"Input1","[Variant]"," ","VFD: Kitchen EF (Hotel)","VFD: Kitchen - Hotel","Rebate:  $300/Horsepower (HP)\nEligibility Requirements:\n     1. Must install temperature sensor and/or an optic sensor to adjust fan speed based on cooking conditions.\n     2. (Retrofit) Replacements of existing VFDs are not eligible unless the VFD has been non-functioning for >2 years.\n     3. (New Construction) Installations are not eligible.\nRequired Documentation:\n     1. Dated invoice/payment application.\n     2. Manufacturer's equipment specification sheet documenting compliance with equipment eligibility.",12," ",null,null,null,"Air-CooledPackaged Heat Pump2","COP 1","Heating Efficiency, COP @ 43°F"," "]
[null,null,null,null,null,"Input2","[Variant]"," ","VFD: Kitchen EF (Restaurant)","VFD: Kitchen - Restaurant","Rebate:  $300/Horsepower (HP)\nEligibility Requirements:\n     1. Must install temperature sensor and/or an optic sensor to adjust fan speed based on cooking conditions.\n     3. (Retrofit) Replacements of existing VFDs are not eligible unless the VFD has been non-functioning for >2 years.\n     4. (New Construction) Installations are not eligible.\nRequired Documentation:\n     1. Dated invoice/payment application.\n     2. Manufacturer's equipment specification sheet documenting compliance with equipment eligibility.",12," ",null,null,null,"Air-CooledPackaged Heat Pump3","COP 1","Heating Efficiency, COP @ 43°F"," "]
[null,null,null,null,null,null,null," ",null,null,null,null," ",null,null,null,"Air-CooledPackaged Heat Pump4","COP 1","Heating Efficiency, COP @ 43°F"," "]
[null,null,null,null,null,null,null," ","CAOther_EquipmentType[Inputs]","EquipmentType[Code]","EquipmentType[Description]","EquipmentType[MeasureLife]"," ",null,null,null,"Air-CooledPackaged Heat Pump5","COP 1","Heating Efficiency, COP @ 43°F"," "]
[null,null,null,null,null,null,null," ","Additional Receiver Tank Capacity","Receiver Capacity Addition","Rebate:  $1.50/Gallon\nEligibility Requirements:\n     1. Total tank receiver capacity after the addition must be >2.0 Gallons/SCFM of active compressor capacity.\nRequired Documentation:\n     1. Dated invoice/payment application.\n     2. Manufacturer's equipment specification sheet documenting compliance with equipment eligibility.",20," ",null,null,null,"Water-CooledPackaged Heat Pump1","COP","Heating Efficiency, COP @ 43°F"," "]
[null,null,null,null,null,"KitchenOther[Inputs]","KitchenOther[Description]"," ","Desiccant Dryer w/ Blower Purge","Desiccant Dryer: Blower Purge","Rebate:  Blower Purge: $7.50 per SCFM\nEligibility Requirements:\n     1. Must be equipped with dew point sensors and controls to regulate the regeneration cycle.\n     2. Must have minimum runtime of 6,000 hours. \n     3. Must have a rated dryer capacity ≤ 1,000 SCFM.\nRequired Documentation:\n     1. Dated invoice/payment application.\n     2. Manufacturer's equipment specification sheet documenting compliance with equipment eligibility.",15," ",null,null,null,"Water-CooledPackaged Heat Pump2","COP","Heating Efficiency, COP @ 43°F"," "]
[null,null,null,null,null,"EquipmentType","Equipment Type"," ","Desiccant Dryer w/ External Heating","Desiccant Dryer: Externally Heated","Rebate:  External Heating: $5.00 per SCFM \nEligibility Requirements:\n     1. Must be equipped with dew point sensors and controls to regulate the regeneration cycle.\n     2. Must have minimum runtime of 6,000 hours. \n     3. Must have a rated dryer capacity ≤ 1,000 SCFM.\nRequired Documentation:\n     1. Dated invoice/payment application.\n     2. Manufacturer's equipment specification sheet documenting compliance with equipment eligibility.",15," ",null,null,null,"Water-CooledPackaged Heat Pump3","COP","Heating Efficiency, COP @ 43°F"," "]
[null,null,null,null,null,"List2","[Variant]"," ","Low Pressure-Drop Filter","LPD Filter","Rebate:  $0.80 per SCFM\nEligibility Requirements:\n     1. Must be installed on an operating compressor ≥ 25 HP.\n     2. Must be a deep-bed \"mist eliminator\" style with element life ≥ 5 years.\n     3. Must be rated for ≤ 5 ppm liquid carryover.\n     4. Must have a pressure loss at rated flow ≤ 1 psi when new and ≤3 psi at element change.\n     5. Must have particulate filtration that is 100% at ≥ 3.0 microns and at least 99.98% at 0.1 to 3.0 microns.\n     6. Must have a rated capacity ≤ 1000 SCFM.\nRequired Documentation:\n     1. Dated invoice/payment application.\n     2. Manufacturer's equipment specification sheet documenting compliance with equipment eligibility.",8," ",null,null,null,"Water-CooledPackaged Heat Pump4","COP","Heating Efficiency, COP @ 43°F"," "]
[null,null,null,null,null,null,null," ","Refrigerated Cycling Dryer","Refrigerated Cycling Dryer","Rebate:  $1.50/SCFM (Sensible)\nEligibility Requirements:\n     1. Must have a rated dryer capacity ≤1,000 SCFM.\n     2. Must operate exclusively in cycling mode and not be equipped with the ability to select between cycling and non-\n     cycling modes.\n     3. Cycle completely off during periods of reduced demand.\n     4. A zero-loss condensate drain must accompany the cycling dryer.\nRequired Documentation:\n     1. Dated invoice/payment application.\n     2. Manufacturer's equipment specification sheet documenting compliance with equipment eligibility.",15," ",null,null,null,"Water-CooledPackaged Heat Pump5","COP","Heating Efficiency, COP @ 43°F"," "]
[null,null,null,null,null,"Size","[Variant]"," ","VFD-Controlled Compressor","VFD Compressor","Rebate:  $90/Horsepower (HP)\nEligibility Requirements:\n     1. Must be an oil-injected screw compressor ≤75 HP.\nRequired Documentation:\n     1. Dated invoice/payment application.\n     2. Manufacturer's equipment specification sheet documenting compliance with equipment eligibility.",15," ",null,null,null,"Air-CooledSplit Heat Pump1","HSPF","Heating Efficiency, HSPF"," "]
[null,null,null,null,null,"Input1","[Variant]"," ","Zero-Loss Condensate Drain","ZL Condensate Drain","Rebate:  $90/Each\nEligibility Requirements:\n     1. Must be designed to function without the release of compressed air into the atmosphere.\nRequired Documentation:\n     1. Dated invoice/payment application.\n     2. Manufacturer's equipment specification sheet documenting compliance with equipment eligibility.",12," ",null,null,null,"Air-CooledSplit Heat Pump2","COP 1","Heating Efficiency, COP @ 43°F"," "]
[null,null,null,null,null,null,null," ",null,null,null,null," ",null,null,null,"Air-CooledSplit Heat Pump3","COP 1","Heating Efficiency, COP @ 43°F"," "]
[null,null,null,null,null,null,null," ","CRAC_Configuration[Inputs]","Configuration[Code]","EquipmentType[Description]","EquipmentType[MeasureLife]"," ",null,null,null,"Air-CooledSplit Heat Pump4","COP 1","Heating Efficiency, COP @ 43°F"," "]
[null,null,null,null,null,null,null," ","Upflow","Upflow","Rebate:  Tier 1: $200/Ton  Tier 2: $300/Ton + $100/Fluid Economizer (WC/GC Only)\nEligibility Requirements:\n     1. Rebates will be paid for highest efficiency tier for which the unit qualifies. Rebates are paid per ton of\n     rated Sensible Cooling Capacity (not total or nominal).\n     2. Must Exceed SCOP efficiency requirements listed in Table 7. SCOP efficiency ratings must be evaluated\n     according to ASHRAE Std. 127-2013.\n     3. Backup units or redundant units are not eligible.\nRequired Documentation:\n     1. Dated invoice/payment application.\n     2. Manufacturer's equipment specification sheet documenting the efficiency or AHRI reference numbers.",20," ",null,null,null,"Air-CooledSplit Heat Pump5","COP 1","Heating Efficiency, COP @ 43°F"," "]
[null,null,null,null,null,null,null," ","Downflow","Downflow","Rebate:  Tier 1: $200/Ton  Tier 2: $300/Ton + $100/Fluid Economizer (WC/GC Only)\nEligibility Requirements:\n     1. Rebates will be paid for highest efficiency tier for which the unit qualifies. Rebates are paid per ton of\n     rated Sensible Cooling Capacity (not total or nominal).\n     2. Must Exceed SCOP efficiency requirements listed in Table 7. SCOP efficiency ratings must be evaluated\n     according to ASHRAE Std. 127-2013.\n     3. Backup units or redundant units are not eligible.\nRequired Documentation:\n     1. Dated invoice/payment application.\n     2. Manufacturer's equipment specification sheet documenting the efficiency or AHRI reference numbers.",20," ",null,null,null,"Water-CooledSplit Heat Pump1","COP","Heating Efficiency, COP @ 43°F"," "]
[null,null,null,null,null,"CAOther[Inputs]","CAOther[Description]"," ",null,null,null,null," ",null,null,null,"Water-CooledSplit Heat Pump2","COP","Heating Efficiency, COP @ 43°F"," "]
[null,null,null,null,null,"EquipmentType","Equipment Type"," ","ITDCOther_EquipmentType[Inputs]","EquipmentType[Code]","EquipmentType[Description]","EquipmentType[MeasureLife]"," ",null,null,null,"Water-CooledSplit Heat Pump3","COP","Heating Efficiency, COP @ 43°F"," "]
[null,null,null,null,null,"List2","[Variant]"," ","Computer Power Management","Computer Power Management","Rebate:  $8/Computer\nEligibility Requirements:\n     1. Rebates are only available for desktop computer installations.\n     2. Must automatically reduce power settings at a network server for each inactive computer.\n     3. Must have energy reporting capability and manage power for each individual computer.\n     4. Software license must be in effect for 6 years.\nRequired Documentation:\n     1. Dated invoice/payment application.\n     2. Manufacturer's equipment specification sheet documenting compliance with equipment eligibility.\n     3. Documentation showing the number of computers per license being controlled.",6," ",null,null,null,"Water-CooledSplit Heat Pump4","COP","Heating Efficiency, COP @ 43°F"," "]
[null,null,null,null,null,null,null," ","EC Motor: CRAC","ECM: CRAC","Rebate:  $250/Horsepower (HP)\nEligibility Requirements:\n     1. Fan EC Motor must be installed on a Computer Room Air Conditioner (CRAC) or Air Handler (CRAH).\n     2. Backup service units are not eligible for rebates.\n     3. Rebates are not simultaneously available for ECM's where rebates have been paid for High Efficiency CRAC units.\n     4. (New Construction) Installations are not eligible.\nRequired Documentation:\n     1. Dated invoice/payment application.\n     2. Manufacturer's equipment specification sheet documenting compliance with equipment eligibility.",15," ",null,null,null,"Water-CooledSplit Heat Pump5","COP","Heating Efficiency, COP @ 43°F"," "]
[null,null,null,null,null,"Size","[Variant]"," ","EC Motor: CRAH","ECM: CRAH","Rebate:  $250/Horsepower (HP)\nEligibility Requirements:\n     1. Fan EC Motor must be installed on a Computer Room Air Conditioner (CRAC) or Air Handler (CRAH).\n     2. Backup service units are not eligible for rebates.\n     3. Rebates are not simultaneously available for ECM's where rebates have been paid for High Efficiency CRAC units.\n     4. (New Construction) Installations are not eligible.\nRequired Documentation:\n     1. Dated invoice/payment application.\n     2. Manufacturer's equipment specification sheet documenting compliance with equipment eligibility.",15," ",null,null,null,"Air-CooledMulti-Split VRF HP1","HSPF","Heating Efficiency, HSPF"," "]
[null,null,null,null,null,"Hours of Operation","Hour of Operation (Note: This may be separate from the facility's annual operation)"," ","Server Virtualization","Server Virtualization","Rebate:  $300/Server Removed\nEligibility Requirements:\n     1. Removed servers are eligible. Inactive or relocated servers are not eligible.\n     2. Existing servers being virtualized must be completely removed from service.\n     3. Servers being removed as part of the Server Virtualization rebate are not eligible for any other SRP rebate.\n     4. (New Construction) Installations are not eligible.\nRequired Documentation:\n     1. Dated invoice/payment application.\n     2. Manufacturer's equipment specification sheet documenting compliance with equipment eligibility.\n     3. Documentation of the serial numbers of the removed servers.",10," ",null,null,null,"Air-CooledMulti-Split VRF HP2","COP 1","Heating Efficiency, COP @ 43°F"," "]
[null,null,null,null,null,"Input2","[Variant]"," ","High-Efficiency Server Replacement","HE Server Replacement","Rebate:  $375/Server Installed\nEligibility Requirements:\n     1. Servers must be Energy Star Certified or similarly rated that meet the same minimum high-efficiency requirements.\n     2. Servers being removed as part of the High Efficiency Server rebate are not eligible for any other SRP rebates.\n     3. Rebates are paid for the number of installed servers up to the number of removed servers. Additional servers\n     removed may be eligible for additional rebates.\n     4. (New Construction) Installations are not eligible.\nRequired Documentation:\n     1. Dated invoice/payment application.\n     2. Manufacturer's equipment specification sheet documenting compliance with equipment eligibility.\n     3. Documentation of the serial numbers of the removed servers.",20," ",null,null,null,"Air-CooledMulti-Split VRF HP3","COP 1","Heating Efficiency, COP @ 43°F"," "]
[null,null,null,null,null,null,null," ",null,null,null,null," ",null,null,null,"Air-CooledMulti-Split VRF HP4","COP 1","Heating Efficiency, COP @ 43°F"," "]
[null,null,null,null,null,null,null," ","Misc_EquipmentType[Inputs]","EquipmentType[Code]","EquipmentType[Description]","EquipmentType[MeasureLife]"," ",null,null,null,"Air-CooledMulti-Split VRF HP5","COP 1","Heating Efficiency, COP @ 43°F"," "]
[null,null,null,null,null,null,null," ","Heat Pump Water Heater","HPWH","Rebate:  Tier 1: $250/Each   Tier 2: $300/Each\nEligibility Requirements:\n     1. (New Construction) Installations are not eligible. Must replace an existing electric hot-water heater.\n     2. Must exceed a minimum efficiency requirement of EF ≥ 2.35. Rebates are paid at the highest tier that the unit\n     qualifies for:\n          - Tier 1: 2.35 ≤ EF < 2.50\n          - Tier 2: EF ≥ 2.50\nRequired Documentation:\n     1. Dated invoice/payment application.\n     2. Manufacturer's equipment specification sheet documenting unit efficiency.",15," ",null,null,null,"Water-CooledMulti-Split VRF HP1","COP","Heating Efficiency, COP @ 43°F"," "]
[null,null,null,null,null,"CRAC[Inputs]","CRAC[Description]"," ","VFD: Pool Pump","VFD: Pool Pump","Rebate:  $135/Horsepower (HP)\nEligibility Requirements:\n     1. Rebates are available for pool pumps.\n     2. Rebates are not available for motors larger than 25 HP. These may be eligible through the SRP Business Solutions\n     Custom program with pre-approval.\n     3. (Retrofit) Replacements of existing pool pump VFDs are not eligible unless existing VFD has been non-functioning\n     for >2 years.\n     4. Variable speed pool pump settings must meet or exceed local commercial code requirements.\n     5. Pumps must utilize lower speeds at least 8 hours per day.\nRequired Documentation:\n     1. Dated invoice/payment application.\n     2. Manufacturer's equipment specification sheet documenting compliance with equipment eligibility.",12," ",null,null,null,"Water-CooledMulti-Split VRF HP2","COP","Heating Efficiency, COP @ 43°F"," "]
[null,null,null,null,null,"Configuration","Supply Airflow Direction"," ","Window Film","Window Film","Rebate:  $0.75/Sq. Ft.\nEligibility Requirements:\n     1. Film must be NFRC Certified.\n     2. Must be installed in an air conditioned space.\n     3. Windows must not have any previous shading.\n     4. Must not have a northern exposure (±45° due North) with final qualification at SRP's discretion.\n     5. Must have a maximum Solar Heat Gain Coefficient (SHGC) of 0.35 (Evaluated at 1/4\" Clear Single Glazing).\n     6. (New Construction) Installations are not eligible.\nRequired Documentation:\n     1. Dated invoice/payment application with window square footage.\n     2. Manufacturer's equipment specification sheet documenting window SHGC.",8," ",null,null,null,"Water-CooledMulti-Split VRF HP3","COP","Heating Efficiency, COP @ 43°F"," "]
[null,null,null,null,null,"HeatReject","Heat Rejection"," ","Shade Screen","Shade Screen","Rebate:  $0.80/Sq. Ft.\nEligibility Requirements:\n     1. Must be installed in an air conditioned space.\n     2. Windows must not have any previous shading.\n     3. Must not have a northern exposure (±45° due North) with final qualification at SRP's discretion.\n     4. Must have a maximum Solar Heat Gain Coefficient (SHGC) of 0.25 (Evaluated at 1/4\" Clear Single Glazing).\n     5. (New Construction) Installations are not eligible.\nRequired Documentation:\n     1. Dated invoice/payment application with window square footage.\n     2. Manufacturer's equipment specification sheet documenting window SHGC.",8," ",null,null,null,"Water-CooledMulti-Split VRF HP4","COP","Heating Efficiency, COP @ 43°F"," "]
[null,null,null,null,null,"FluidEcon","Fluid Economizer? (Only for Water- and Glycol-Cooled systems)"," ",null,null,null,null,null,null,null,null,"Water-CooledMulti-Split VRF HP5","COP","Heating Efficiency, COP @ 43°F"," "]
[null,null,null,null,null,"BTU/H","Sensible Size (British Thermal Units)"," ",null,null,null,null,null,null,null,null,"Air-CooledMulti-Split VRF HP w/ Heat Recovery1","HSPF","Heating Efficiency, HSPF"," "]
[null,null,null,null,null,"SCOP","Sensible Coefficient of Performance"," ",null,null,null,null,null,null,null,null,"Air-CooledMulti-Split VRF HP w/ Heat Recovery2","COP 1","Heating Efficiency, COP @ 43°F"," "]
[null,null,null,null,null,null,null," ",null,null,null,null,null,null,null,null,"Air-CooledMulti-Split VRF HP w/ Heat Recovery3","COP 1","Heating Efficiency, COP @ 43°F"," "]
[null,null,null,null,null,null,null," ",null,null,null,null,null,null,null,null,"Air-CooledMulti-Split VRF HP w/ Heat Recovery4","COP 1","Heating Efficiency, COP @ 43°F"," "]
[null,null,null,null,null,null,null," ",null,null,null,null,null,null,null,null,"Air-CooledMulti-Split VRF HP w/ Heat Recovery5","COP 1","Heating Efficiency, COP @ 43°F"," "]
[null,null,null,null,null,null,null," ",null,null,null,null,null,null,null,null,"Water-CooledMulti-Split VRF HP w/ Heat Recovery1","COP","Heating Efficiency, COP @ 43°F"," "]
[null,null,null,null,null,"ITDCOther[Inputs]","ITDCOther[Description]"," ",null,null,null,null,null,null,null,null,"Water-CooledMulti-Split VRF HP w/ Heat Recovery2","COP","Heating Efficiency, COP @ 43°F"," "]
[null,null,null,null,null,"EquipmentType","Equipment Type"," ",null,null,null,null,null,null,null,null,"Water-CooledMulti-Split VRF HP w/ Heat Recovery3","COP","Heating Efficiency, COP @ 43°F"," "]
[null,null,null,null,null,null,null," ",null,null,null,null,null,null,null,null,"Water-CooledMulti-Split VRF HP w/ Heat Recovery4","COP","Heating Efficiency, COP @ 43°F"," "]
[null,null,null,null,null,null,null," ",null,null,null,null,null,null,null,null,"Water-CooledMulti-Split VRF HP w/ Heat Recovery5","COP","Heating Efficiency, COP @ 43°F"," "]
[null,null,null,null,null,"Size","[Variant]"," ",null,null,null,null,null,null,null,null,"Packaged Terminal HP (PTHP)","COP","Heating Efficiency, COP @ 43°F"," "]
[null,null,null,null,null,"Input1","[Variant]"," ",null,null,null,null,null,null,null,null,"Vertical Terminal HP (VTHP)","COP","Heating Efficiency, COP @ 43°F"," "]
[null,null,null,null,null,"Input2","[Variant]"," "]
[null,null,null,null,null,null,null," ",null,null,null,null,null,null,null,null,"UnitaryHP_Input4[EquipmentType]","Input4[Title]","Input4[Description]"," "]
[null,null,null,null,null,null,null," ",null,null,null,null,null,null,null,null,"Air-CooledPackaged Heat Pump1",null,null," "]
[null,null,null,null,null,null,null,null,null,null,null,null,null,null,null,null,"Air-CooledPackaged Heat Pump2","COP 2","Coefficient of Performance at 17⁰F"," "]
[null,null,null,null,null,"Misc[Inputs]","Misc[Description]",null,null,null,null,null,null,null,null,null,"Air-CooledPackaged Heat Pump3","COP 2","Coefficient of Performance at 17⁰F"," "]
[null,null,null,null,null,"EquipmentType","Equipment Type",null,null,null,null,null,null,null,null,null,"Air-CooledPackaged Heat Pump4","COP 2","Coefficient of Performance at 17⁰F"," "]
[null,null,null,null,null,"List2","[Variant]",null,null,null,null,null,null,null,null,null,"Air-CooledPackaged Heat Pump5","COP 2","Coefficient of Performance at 17⁰F"," "]
[null,null,null,null,null,"List3","[Variant]",null,null,null,null,null,null,null,null,null,"Water-CooledPackaged Heat Pump1",null,null," "]
[null,null,null,null,null,"Size","[Variant]",null,null,null,null,null,null,null,null,null,"Water-CooledPackaged Heat Pump2",null,null," "]
[null,null,null,null,null,"Input1","[Variant]",null,null,null,null,null,null,null,null,null,"Water-CooledPackaged Heat Pump3",null,null," "]
[null,null,null,null,null,null,null,null,null,null,null,null,null,null,null,null,"Water-CooledPackaged Heat Pump4",null,null," "]
[null,null,null,null,null,null,null,null,null,null,null,null,null,null,null,null,"Water-CooledPackaged Heat Pump5",null,null," "]
[null,null,null,null,null,null,null,null,null,null,null,null,null,null,null,null,"Air-CooledSplit Heat Pump1",null,null," "]
[null,null,null,null,null,null,null,null,null,null,null,null,null,null,null,null,"Air-CooledSplit Heat Pump2","COP 2","Coefficient of Performance at 17⁰F"," "]
[null,null,null,null,null,null,null,null,null,null,null,null,null,null,null,null,"Air-CooledSplit Heat Pump3","COP 2","Coefficient of Performance at 17⁰F"," "]
[null,null,null,null,null,null,null,null,null,null,null,null,null,null,null,null,"Air-CooledSplit Heat Pump4","COP 2","Coefficient of Performance at 17⁰F"," "]
[null,null,null,null,null,null,null,null,null,null,null,null,null,null,null,null,"Air-CooledSplit Heat Pump5","COP 2","Coefficient of Performance at 17⁰F"," "]
[null,null,null,null,null,null,null,null,null,null,null,null,null,null,null,null,"Water-CooledSplit Heat Pump1",null,null," "]
[null,null,null,null,null,null,null,null,null,null,null,null,null,null,null,null,"Water-CooledSplit Heat Pump2",null,null," "]
[null,null,null,null,null,null,null,null,null,null,null,null,null,null,null,null,"Water-CooledSplit Heat Pump3",null,null," "]
[null,null,null,null,null,null,null,null,null,null,null,null,null,null,null,null,"Water-CooledSplit Heat Pump4",null,null," "]
[null,null,null,null,null,null,null,null,null,null,null,null,null,null,null,null,"Water-CooledSplit Heat Pump5",null,null," "]
[null,null,null,null,null,null,null,null,null,null,null,null,null,null,null,null,"Air-CooledMulti-Split VRF HP1",null,null," "]
[null,null,null,null,null,null,null,null,null,null,null,null,null,null,null,null,"Air-CooledMulti-Split VRF HP2","COP 2","Coefficient of Performance at 17⁰F"," "]
[null,null,null,null,null,null,null,null,null,null,null,null,null,null,null,null,"Air-CooledMulti-Split VRF HP3","COP 2","Coefficient of Performance at 17⁰F"," "]
[null,null,null,null,null,null,null,null,null,null,null,null,null,null,null,null,"Air-CooledMulti-Split VRF HP4","COP 2","Coefficient of Performance at 17⁰F"," "]
[null,null,null,null,null,null,null,null,null,null,null,null,null,null,null,null,"Air-CooledMulti-Split VRF HP5","COP 2","Coefficient of Performance at 17⁰F"," "]
[null,null,null,null,null,null,null,null,null,null,null,null,null,null,null,null,"Water-CooledMulti-Split VRF HP1",null,null," "]
[null,null,null,null,null,null,null,null,null,null,null,null,null,null,null,null,"Water-CooledMulti-Split VRF HP2",null,null," "]
[null,null,null,null,null,null,null,null,null,null,null,null,null,null,null,null,"Water-CooledMulti-Split VRF HP3",null,null," "]
[null,null,null,null,null,null,null,null,null,null,null,null,null,null,null,null,"Water-CooledMulti-Split VRF HP4",null,null," "]
[null,null,null,null,null,null,null,null,null,null,null,null,null,null,null,null,"Water-CooledMulti-Split VRF HP5",null,null," "]
[null,null,null,null,null,null,null,null,null,null,null,null,null,null,null,null,"Air-CooledMulti-Split VRF HP w/ Heat Recovery1",null,null," "]
[null,null,null,null,null,null,null,null,null,null,null,null,null,null,null,null,"Air-CooledMulti-Split VRF HP w/ Heat Recovery2","COP 2","Coefficient of Performance at 17⁰F"," "]
[null,null,null,null,null,null,null,null,null,null,null,null,null,null,null,null,"Air-CooledMulti-Split VRF HP w/ Heat Recovery3","COP 2","Coefficient of Performance at 17⁰F"," "]
[null,null,null,null,null,null,null,null,null,null,null,null,null,null,null,null,"Air-CooledMulti-Split VRF HP w/ Heat Recovery4","COP 2","Coefficient of Performance at 17⁰F"," "]
[null,null,null,null,null,null,null,null,null,null,null,null,null,null,null,null,"Air-CooledMulti-Split VRF HP w/ Heat Recovery5","COP 2","Coefficient of Performance at 17⁰F"," "]
[null,null,null,null,null,null,null,null,null,null,null,null,null,null,null,null,"Water-CooledMulti-Split VRF HP w/ Heat Recovery1",null,null," "]
[null,null,null,null,null,null,null,null,null,null,null,null,null,null,null,null,"Water-CooledMulti-Split VRF HP w/ Heat Recovery2",null,null," "]
[null,null,null,null,null,null,null,null,null,null,null,null,null,null,null,null,"Water-CooledMulti-Split VRF HP w/ Heat Recovery3",null,null," "]
[null,null,null,null,null,null,null,null,null,null,null,null,null,null,null,null,"Water-CooledMulti-Split VRF HP w/ Heat Recovery4",null,null," "]
[null,null,null,null,null,null,null,null,null,null,null,null,null,null,null,null,"Water-CooledMulti-Split VRF HP w/ Heat Recovery5",null,null," "]
[null,null,null,null,null,null,null,null,null,null,null,null,null,null,null,null,"Packaged Terminal HP (PTHP)",null,null," "]
[null,null,null,null,null,null,null,null,null,null,null,null,null,null,null,null,"Vertical Terminal HP (VTHP)",null,null," "]
[]
[null,null,null,null,null,null,null,null,null,null,null,null,null,null,null,null,"OAEcon_List2[EquipmentType]","List2[Title]","List2[Description]","List2[Inputs,CSV]"," "]
[null,null,null,null,null,null,null,null,null,null,null,null,null,null,null,null,{"$f":"I31","v":"Air-Conditioner"},"Heat Rejection","Cooling-Mode Heat Rejection","Air-Cooled,Water-Cooled,Evaporatively-Cooled"," "]
[null,null,null,null,null,null,null,null,null,null,null,null,null,null,null,null,{"$f":"I32","v":"Heat Pump"},"Heat Rejection","Cooling-Mode Heat Rejection","Air-Cooled,Water-Cooled"," "]
[null,null,null,null,null,null,null,null,null,null,null,null,null,null,null,null,{"$f":"I33","v":"Water-Source Heat Pump"},null,null,null," "]
[null,null,null,null,null,null,null,null,null,null,null,null,null,null,null,null,{"$f":"I34","v":"Computer Room Air-Conditioner"},"Heat Rejection","Cooling-Mode Heat Rejection","Air-Cooled,Water-Cooled,Glycol-Cooled"," "]
[null,null,null,null,null,null,null,null,null,null,null,null,null,null,null,null,{"$f":"I35","v":"Chiller"},"Heat Rejection","Cooling-Mode Heat Rejection","Air-Cooled,Water-Cooled"," "]
[]
[null,null,null,null,null,null,null,null,null,null,null,null,null,null,null,null,"OAEcon_List3[EquipmentType]","List3[Title]","List3[Description]","List3[Inputs,CSV]"," "]
[null,null,null,null,null,null,null,null,null,null,null,null,null,null,null,null,{"$f":"I31","v":"Air-Conditioner"},"Heat Type","Heating-Mode Heat Type","None,Electric Resistance,Gas,Other"," "]
[null,null,null,null,null,null,null,null,null,null,null,null,null,null,null,null,{"$f":"I32","v":"Heat Pump"},"Heat Type","Heating-Mode Heat Type","Electric Resistance,Gas,Heat Pump,Other"," "]
[null,null,null,null,null,null,null,null,null,null,null,null,null,null,null,null,{"$f":"I33","v":"Water-Source Heat Pump"},"Heat Type","Heating-Mode Heat Type","Electric Resistance,Gas,Heat Pump,Other"," "]
[null,null,null,null,null,null,null,null,null,null,null,null,null,null,null,null,{"$f":"I34","v":"Computer Room Air-Conditioner"},null,null,null," "]
[null,null,null,null,null,null,null,null,null,null,null,null,null,null,null,null,{"$f":"I35","v":"Chiller"},"VFD?","Does this chiller have a VFD?","Yes,No"," "]
[]
[null,null,null,null,null,null,null,null,null,null,null,null,null,null,null,null,"OAEcon_Size[EquipmentType]","Size[Description]","Size[Description]"," "]
[null,null,null,null,null,null,null,null,null,null,null,null,null,null,null,null,{"$f":"I31","v":"Air-Conditioner"},{"$f":"IF(ISNUMBER(SEARCH(\"Retro\",Project_Type,1)),\"Tons\",\"BTUH\")","v":"Tons"},{"$f":"IF(ISNUMBER(SEARCH(\"Retro\",Project_Type,1)),\"Nominal Size (Tons)\",\"AHRI Size (BTU/H)\")","v":"Nominal Size (Tons)"}," "]
[null,null,null,null,null,null,null,null,null,null,null,null,null,null,null,null,{"$f":"I32","v":"Heat Pump"},{"$f":"IF(ISNUMBER(SEARCH(\"Retro\",Project_Type,1)),\"Tons\",\"BTUH\")","v":"Tons"},{"$f":"IF(ISNUMBER(SEARCH(\"Retro\",Project_Type,1)),\"Nominal Size (Tons)\",\"AHRI Size (BTU/H)\")","v":"Nominal Size (Tons)"}," "]
[null,null,null,null,null,null,null,null,null,null,null,null,null,null,null,null,{"$f":"I33","v":"Water-Source Heat Pump"},{"$f":"IF(ISNUMBER(SEARCH(\"Retro\",Project_Type,1)),\"Tons\",\"BTUH\")","v":"Tons"},{"$f":"IF(ISNUMBER(SEARCH(\"Retro\",Project_Type,1)),\"Nominal Size (Tons)\",\"AHRI Size (BTU/H)\")","v":"Nominal Size (Tons)"}," "]
[null,null,null,null,null,null,null,null,null,null,null,null,null,null,null,null,{"$f":"I34","v":"Computer Room Air-Conditioner"},"BTUH","Sensible Size (BTU/H)"," "]
[null,null,null,null,null,null,null,null,null,null,null,null,null,null,null,null,{"$f":"I35","v":"Chiller"},"Tons","AHRI Size (Tons)"," "]
[]
[null,null,null,null,null,null,null,null,null,null,null,null,null,null,null,null,"OAEcon_Input1[EquipmentType]","Input1[Title]","Input1[Description]"," "]
[null,null,null,null,null,null,null,null,null,null,null,null,null,null,null,null,"Air-CooledAir-Conditioner0",null,null," "]
[null,null,null,null,null,null,null,null,null,null,null,null,null,null,null,null,"Air-CooledAir-Conditioner1","SEER","Cooling Seasonal Efficiency, SEER"," "]
[null,null,null,null,null,null,null,null,null,null,null,null,null,null,null,null,"Air-CooledAir-Conditioner2","IEER","Cooling Seasonal Efficiency, IEER"," "]
[null,null,null,null,null,null,null,null,null,null,null,null,null,null,null,null,"Air-CooledAir-Conditioner3","IEER","Cooling Seasonal Efficiency, IEER"," "]
[null,null,null,null,null,null,null,null,null,null,null,null,null,null,null,null,"Air-CooledAir-Conditioner4","IEER","Cooling Seasonal Efficiency, IEER"," "]
[null,null,null,null,null,null,null,null,null,null,null,null,null,null,null,null,"Air-CooledAir-Conditioner5","IEER","Cooling Seasonal Efficiency, IEER"," "]
[null,null,null,null,null,null,null,null,null,null,null,null,null,null,null,null,"Water-CooledAir-Conditioner0",null,null," "]
[null,null,null,null,null,null,null,null,null,null,null,null,null,null,null,null,"Water-CooledAir-Conditioner1","SEER","Cooling Seasonal Efficiency, SEER"," "]
[null,null,null,null,null,null,null,null,null,null,null,null,null,null,null,null,"Water-CooledAir-Conditioner2","IEER","Cooling Seasonal Efficiency, IEER"," "]
[null,null,null,null,null,null,null,null,null,null,null,null,null,null,null,null,"Water-CooledAir-Conditioner3","IEER","Cooling Seasonal Efficiency, IEER"," "]
[null,null,null,null,null,null,null,null,null,null,null,null,null,null,null,null,"Water-CooledAir-Conditioner4","IEER","Cooling Seasonal Efficiency, IEER"," "]
[null,null,null,null,null,null,null,null,null,null,null,null,null,null,null,null,"Water-CooledAir-Conditioner5","IEER","Cooling Seasonal Efficiency, IEER"," "]
[null,null,null,null,null,null,null,null,null,null,null,null,null,null,null,null,"Evaporatively-CooledAir-Conditioner0",null,null," "]
[null,null,null,null,null,null,null,null,null,null,null,null,null,null,null,null,"Evaporatively-CooledAir-Conditioner1",null,null," "]
[null,null,null,null,null,null,null,null,null,null,null,null,null,null,null,null,"Evaporatively-CooledAir-Conditioner2","IEER","Cooling Seasonal Efficiency, IEER"," "]
[null,null,null,null,null,null,null,null,null,null,null,null,null,null,null,null,"Evaporatively-CooledAir-Conditioner3","IEER","Cooling Seasonal Efficiency, IEER"," "]
[null,null,null,null,null,null,null,null,null,null,null,null,null,null,null,null,"Evaporatively-CooledAir-Conditioner4","IEER","Cooling Seasonal Efficiency, IEER"," "]
[null,null,null,null,null,null,null,null,null,null,null,null,null,null,null,null,"Evaporatively-CooledAir-Conditioner5","IEER","Cooling Seasonal Efficiency, IEER"," "]
[null,null,null,null,null,null,null,null,null,null,null,null,null,null,null,null,"Air-CooledHeat Pump0",null,null," "]
[null,null,null,null,null,null,null,null,null,null,null,null,null,null,null,null,"Air-CooledHeat Pump1","SEER","Cooling Seasonal Efficiency, SEER"," "]
[null,null,null,null,null,null,null,null,null,null,null,null,null,null,null,null,"Air-CooledHeat Pump2","IEER","Cooling Seasonal Efficiency, IEER"," "]
[null,null,null,null,null,null,null,null,null,null,null,null,null,null,null,null,"Air-CooledHeat Pump3","IEER","Cooling Seasonal Efficiency, IEER"," "]
[null,null,null,null,null,null,null,null,null,null,null,null,null,null,null,null,"Air-CooledHeat Pump4","IEER","Cooling Seasonal Efficiency, IEER"," "]
[null,null,null,null,null,null,null,null,null,null,null,null,null,null,null,null,"Air-CooledHeat Pump5","IEER","Cooling Seasonal Efficiency, IEER"," "]
[null,null,null,null,null,null,null,null,null,null,null,null,null,null,null,null,"Water-CooledHeat Pump0",null,null," "]
[null,null,null,null,null,null,null,null,null,null,null,null,null,null,null,null,"Water-CooledHeat Pump1","EER","Energy Efficiency Rating (EER)"," "]
[null,null,null,null,null,null,null,null,null,null,null,null,null,null,null,null,"Water-CooledHeat Pump2","IEER","Cooling Seasonal Efficiency, IEER"," "]
[null,null,null,null,null,null,null,null,null,null,null,null,null,null,null,null,"Water-CooledHeat Pump3","IEER","Cooling Seasonal Efficiency, IEER"," "]
[null,null,null,null,null,null,null,null,null,null,null,null,null,null,null,null,"Water-CooledHeat Pump4","IEER","Cooling Seasonal Efficiency, IEER"," "]
[null,null,null,null,null,null,null,null,null,null,null,null,null,null,null,null,"Water-CooledHeat Pump5","IEER","Cooling Seasonal Efficiency, IEER"," "]
[null,null,null,null,null,null,null,null,null,null,null,null,null,null,null,null,"Water-Source Heat Pump0",null,null," "]
[null,null,null,null,null,null,null,null,null,null,null,null,null,null,null,null,"Water-Source Heat Pump1","EER","Energy Efficiency Rating (EER)"," "]
[null,null,null,null,null,null,null,null,null,null,null,null,null,null,null,null,"Water-Source Heat Pump2","IEER","Cooling Seasonal Efficiency, IEER"," "]
[null,null,null,null,null,null,null,null,null,null,null,null,null,null,null,null,"Water-Source Heat Pump3","IEER","Cooling Seasonal Efficiency, IEER"," "]
[null,null,null,null,null,null,null,null,null,null,null,null,null,null,null,null,"Water-Source Heat Pump4","IEER","Cooling Seasonal Efficiency, IEER"," "]
[null,null,null,null,null,null,null,null,null,null,null,null,null,null,null,null,"Water-Source Heat Pump5","IEER","Cooling Seasonal Efficiency, IEER"," "]
[null,null,null,null,null,null,null,null,null,null,null,null,null,null,null,null,"Air-CooledComputer Room Air-Conditioner0",null,null," "]
[null,null,null,null,null,null,null,null,null,null,null,null,null,null,null,null,"Air-CooledComputer Room Air-Conditioner1",null,null," "]
[null,null,null,null,null,null,null,null,null,null,null,null,null,null,null,null,"Air-CooledComputer Room Air-Conditioner2",null,null," "]
[null,null,null,null,null,null,null,null,null,null,null,null,null,null,null,null,"Air-CooledComputer Room Air-Conditioner3","SCOP","Sensible Coefficient of Performance, SCOP"," "]
[null,null,null,null,null,null,null,null,null,null,null,null,null,null,null,null,"Air-CooledComputer Room Air-Conditioner4","SCOP","Sensible Coefficient of Performance, SCOP"," "]
[null,null,null,null,null,null,null,null,null,null,null,null,null,null,null,null,"Water-CooledComputer Room Air-Conditioner0",null,null," "]
[null,null,null,null,null,null,null,null,null,null,null,null,null,null,null,null,"Water-CooledComputer Room Air-Conditioner1",null,null," "]
[null,null,null,null,null,null,null,null,null,null,null,null,null,null,null,null,"Water-CooledComputer Room Air-Conditioner2",null,null," "]
[null,null,null,null,null,null,null,null,null,null,null,null,null,null,null,null,"Water-CooledComputer Room Air-Conditioner3","SCOP","Sensible Coefficient of Performance, SCOP"," "]
[null,null,null,null,null,null,null,null,null,null,null,null,null,null,null,null,"Water-CooledComputer Room Air-Conditioner4","SCOP","Sensible Coefficient of Performance, SCOP"," "]
[null,null,null,null,null,null,null,null,null,null,null,null,null,null,null,null,"Glycol-CooledComputer Room Air-Conditioner0",null,null," "]
[null,null,null,null,null,null,null,null,null,null,null,null,null,null,null,null,"Glycol-CooledComputer Room Air-Conditioner1",null,null," "]
[null,null,null,null,null,null,null,null,null,null,null,null,null,null,null,null,"Glycol-CooledComputer Room Air-Conditioner2",null,null," "]
[null,null,null,null,null,null,null,null,null,null,null,null,null,null,null,null,"Glycol-CooledComputer Room Air-Conditioner3","SCOP","Sensible Coefficient of Performance, SCOP"," "]
[null,null,null,null,null,null,null,null,null,null,null,null,null,null,null,null,"Glycol-CooledComputer Room Air-Conditioner4","SCOP","Sensible Coefficient of Performance, SCOP"," "]
[null,null,null,null,null,null,null,null,null,null,null,null,null,null,null,null,"Air-CooledChiller1","IPLV","Part-Load Efficiency, IPLV"," "]
[null,null,null,null,null,null,null,null,null,null,null,null,null,null,null,null,"Air-CooledChiller2","IPLV","Part-Load Efficiency, IPLV"," "]
[null,null,null,null,null,null,null,null,null,null,null,null,null,null,null,null,"Air-CooledChiller3","IPLV","Part-Load Efficiency, IPLV"," "]
[null,null,null,null,null,null,null,null,null,null,null,null,null,null,null,null,"Air-CooledChiller4","IPLV","Part-Load Efficiency, IPLV"," "]
[null,null,null,null,null,null,null,null,null,null,null,null,null,null,null,null,"Air-CooledChiller5","IPLV","Part-Load Efficiency, IPLV"," "]
[null,null,null,null,null,null,null,null,null,null,null,null,null,null,null,null,"Water-CooledChiller1","IPLV","Part-Load Efficiency, IPLV"," "]
[null,null,null,null,null,null,null,null,null,null,null,null,null,null,null,null,"Water-CooledChiller2","IPLV","Part-Load Efficiency, IPLV"," "]
[null,null,null,null,null,null,null,null,null,null,null,null,null,null,null,null,"Water-CooledChiller3","IPLV","Part-Load Efficiency, IPLV"," "]
[null,null,null,null,null,null,null,null,null,null,null,null,null,null,null,null,"Water-CooledChiller4","IPLV","Part-Load Efficiency, IPLV"," "]
[null,null,null,null,null,null,null,null,null,null,null,null,null,null,null,null,"Water-CooledChiller5","IPLV","Part-Load Efficiency, IPLV"," "]
[]
[null,null,null,null,null,null,null,null,null,null,null,null,null,null,null,null,"CO2SNR_List2[EquipmentType]","List2[Title]","List2[Description]","List2[Inputs,CSV]"," "]
[null,null,null,null,null,null,null,null,null,null,null,null,null,null,null,null,{"$f":"I38","v":"Air-Conditioner"},"Heating Type","Heating-Mode Heat Type","None,Electric Resistance,Gas,Other"," "]
[null,null,null,null,null,null,null,null,null,null,null,null,null,null,null,null,{"$f":"I39","v":"Heat Pump"},"Heating Type","Heating-Mode Heat Type","Electric Resistance,Gas,Heat Pump,Other"," "]
[null,null,null,null,null,null,null,null,null,null,null,null,null,null,null,null,{"$f":"I40","v":"Water-Source Heat Pump"},"Heating Type","Heating-Mode Heat Type","Electric Resistance,Gas,Heat Pump,Other"," "]
[null,null,null,null,null,null,null,null,null,null,null,null,null,null,null,null,{"$f":"I41","v":"Chiller"},"Heating Type","Heating-Mode Heat Type","None,Electric Resistance,Gas,Heat Pump,Other"," "]
[]
[null,null,null,null,null,null,null,null,null,null,null,null,null,null,null,null,"HROC_List2[EquipmentType]","List2[Title]","List2[Description]","List2[Inputs,CSV]"," "]
[null,null,null,null,null,null,null,null,null,null,null,null,null,null,null,null,{"$f":"I44","v":"Chiller"},"Heating Type","Heating-Mode Heat Type","None,Electric Resistance,Gas,Heat Pump,Other"," "]
[null,null,null,null,null,null,null,null,null,null,null,null,null,null,null,null,{"$f":"I45","v":"Packaged-Terminal Air-Conditioner"},"Heating Type","Heating-Mode Heat Type","None,Electric Resistance,Gas,Other"," "]
[null,null,null,null,null,null,null,null,null,null,null,null,null,null,null,null,{"$f":"I46","v":"Packaged-Terminal Heat Pump"},"Heating Type","Heating-Mode Heat Type","Electric Resistance,Gas,Heat Pump,Other"," "]
[null,null,null,null,null,null,null,null,null,null,null,null,null,null,null,null,{"$f":"I47","v":"Fan Coil Unit (FCU)"},"Heating Type","Heating-Mode Heat Type","None,Electric Resistance,Gas,Heat Pump,Other"," "]
[]
[null,null,null,null,null,null,null,null,null,null,null,null,null,null,null,null,"HVACOther_List2[EquipmentType]","List2[Title]","List2[Description]","List2[Inputs,CSV]"," "]
[null,null,null,null,null,null,null,null,null,null,null,null,null,null,null,null,{"$f":"I50","v":"EC Motor (ECM)"},null,null,null," "]
[null,null,null,null,null,null,null,null,null,null,null,null,null,null,null,null,"CO Sensor",null,null,null," "]
[null,null,null,null,null,null,null,null,null,null,null,null,null,null,null,null,"Energy Management System (EMS)","Cooling Type","Controlled Cooling Equipment","Unitary AC,Unitary HP,Water-Source HP,Chiller,PTAC,PTHP"," "]
[null,null,null,null,null,null,null,null,null,null,null,null,null,null,null,null,"Smart Thermostat (Self-Install)","Cooling Type","Controlled Cooling Equipment","Unitary AC,Unitary HP,Water-Source HP,Chiller,PTAC,PTHP"," "]
[null,null,null,null,null,null,null,null,null,null,null,null,null,null,null,null,"Smart Thermostat (Professional Install)","Cooling Type","Controlled Cooling Equipment","Unitary AC,Unitary HP,Water-Source HP,Chiller,PTAC,PTHP"," "]
[null,null,null,null,null,null,null,null,null,null,null,null,null,null,null,null,"VFD: VAV Fan","Fan Type","Type of fan being controlled","Supply/Return Fan,Terminal Fan"," "]
[null,null,null,null,null,null,null,null,null,null,null,null,null,null,null,null,"VFD: HVAC Fan","Fan Type","Type of fan being controlled","Supply/Return Fan,Cooling Tower Fan"," "]
[null,null,null,null,null,null,null,null,null,null,null,null,null,null,null,null,"VFD: HVAC Pump",null,null,null," "]
[null,null,null,null,null,null,null,null,null,null,null,null,null,null,null,null,"VFD: Chilled Water Pump",null,null,null," "]
[null,null,null,null,null,null,null,null,null,null,null,null,null,null,null,null,{"$f":"I59","v":"VFD: Domestic Service Water Pump"},null,null,null," "]
[null,null,null,null,null,null,null,null,null,null,null,null,null,null,null,null,"VFD: Domestic Hot Water Pump",null,null,null," "]
[null,null,null,null,null,null,null,null,null,null,null,null,null,null,null,null,{"$f":"I61","v":"Advanced RTU Controller"},"Fan Motor Type","Fan Motor or Controlled Fan Application","Single-Stage,Two-Stage,VFD,ECM"," "]
[]
[null,null,null,null,null,null,null,null,null,null,null,null,null,null,null,null,"HVACOther_List3[EquipmentType]","List3[Title]","List3[Description]","List3[Inputs,CSV]"," "]
[null,null,null,null,null,null,null,null,null,null,null,null,null,null,null,null,{"$f":"I50","v":"EC Motor (ECM)"},null,null,null," "]
[null,null,null,null,null,null,null,null,null,null,null,null,null,null,null,null,"CO Sensor",null,null,null," "]
[null,null,null,null,null,null,null,null,null,null,null,null,null,null,null,null,"Energy Management System (EMS)","Existing Controls","Existing Control Type","Pneumatic,Manual Thermostat,Programmable Thermostat,EMS"," "]
[null,null,null,null,null,null,null,null,null,null,null,null,null,null,null,null,"Smart Thermostat (Self-Install)","Existing Controls","Existing Control Type","Pneumatic,Manual Thermostat,Programmable Thermostat,EMS"," "]
[null,null,null,null,null,null,null,null,null,null,null,null,null,null,null,null,"Smart Thermostat (Professional Install)","Existing Controls","Existing Control Type","Pneumatic,Manual Thermostat,Programmable Thermostat,EMS"," "]
[null,null,null,null,null,null,null,null,null,null,null,null,null,null,null,null,"VFD: VAV Fan",null,null,null," "]
[null,null,null,null,null,null,null,null,null,null,null,null,null,null,null,null,"VFD: HVAC Fan",null,null,null," "]
[null,null,null,null,null,null,null,null,null,null,null,null,null,null,null,null,"VFD: HVAC Pump",null,null,null," "]
[null,null,null,null,null,null,null,null,null,null,null,null,null,null,null,null,"VFD: Chilled Water Pump",null,null,null," "]
[null,null,null,null,null,null,null,null,null,null,null,null,null,null,null,null,{"$f":"I59","v":"VFD: Domestic Service Water Pump"},null,null,null," "]
[null,null,null,null,null,null,null,null,null,null,null,null,null,null,null,null,"VFD: Domestic Hot Water Pump",null,null,null," "]
[null,null,null,null,null,null,null,null,null,null,null,null,null,null,null,null,{"$f":"I98","v":"VFD: Kitchen EF (Hotel)"},null,null,null," "]
[null,null,null,null,null,null,null,null,null,null,null,null,null,null,null,null,{"$f":"I99","v":"VFD: Kitchen EF (Restaurant)"},null,null,null," "]
[null,null,null,null,null,null,null,null,null,null,null,null,null,null,null,null,{"$f":"I61","v":"Advanced RTU Controller"},null,null,null," "]
[]
[null,null,null,null,null,null,null,null,null,null,null,null,null,null,null,null,"HVACOther_Size[EquipmentType]","Size[Description]","Size[Description]"," "]
[null,null,null,null,null,null,null,null,null,null,null,null,null,null,null,null,{"$f":"I50","v":"EC Motor (ECM)"},"HP","Size (Horsepower), ≤1HP Required"," "]
[null,null,null,null,null,null,null,null,null,null,null,null,null,null,null,null,"CO Sensor","HP","Size (HP)"," "]
[null,null,null,null,null,null,null,null,null,null,null,null,null,null,null,null,"Energy Management System (EMS)","Sq. Ft.","Size (Area, Square Feet), ≤100,000 Required"," "]
[null,null,null,null,null,null,null,null,null,null,null,null,null,null,null,null,"Smart Thermostat (Self-Install)","Tons","Size (Tons)"," "]
[null,null,null,null,null,null,null,null,null,null,null,null,null,null,null,null,"Smart Thermostat (Professional Install)","Tons","Size (Tons)"," "]
[null,null,null,null,null,null,null,null,null,null,null,null,null,null,null,null,"VFD: VAV Fan","HP",{"$f":"IF(ISNUMBER(SEARCH(\"Retro\",Project_Type,1)),\"Size (Horsepower), ≤100HP Required\",\"Size (Horsepower), ≤5HP Required\")","v":"Size (Horsepower), ≤100HP Required"}," "]
[null,null,null,null,null,null,null,null,null,null,null,null,null,null,null,null,"VFD: HVAC Fan","HP","Size (Horsepower), ≤100HP"," "]
[null,null,null,null,null,null,null,null,null,null,null,null,null,null,null,null,"VFD: HVAC Pump","HP",{"$f":"IF(ISNUMBER(SEARCH(\"Retro\",Project_Type,1)),\"Size (Horsepower), ≤100HP Required\",\"Size (Horsepower), ≤25HP Required\")","v":"Size (Horsepower), ≤100HP Required"}," "]
[null,null,null,null,null,null,null,null,null,null,null,null,null,null,null,null,"VFD: Chilled Water Pump","HP",{"$f":"IF(ISNUMBER(SEARCH(\"Retro\",Project_Type,1)),\"Size (Horsepower), ≤100HP Required\",\"Size (Horsepower), ≤5HP Required\")","v":"Size (Horsepower), ≤100HP Required"}," "]
[null,null,null,null,null,null,null,null,null,null,null,null,null,null,null,null,{"$f":"I59","v":"VFD: Domestic Service Water Pump"},"HP",{"$f":"IF(ISNUMBER(SEARCH(\"Retro\",Project_Type,1)),\"Size (Horsepower), ≤100HP Required\",\"Size (Horsepower), ≤5HP Required\")","v":"Size (Horsepower), ≤100HP Required"}," "]
[null,null,null,null,null,null,null,null,null,null,null,null,null,null,null,null,"VFD: Domestic Hot Water Pump","HP",{"$f":"IF(ISNUMBER(SEARCH(\"Retro\",Project_Type,1)),\"Size (Horsepower), ≤100HP Required\",\"Size (Horsepower), ≤5HP Required\")","v":"Size (Horsepower), ≤100HP Required"}," "]
[null,null,null,null,null,null,null,null,null,null,null,null,null,null,null,null,{"$f":"I61","v":"Advanced RTU Controller"},"Tons",{"$f":"IF(ISNUMBER(SEARCH(\"Retro\",Project_Type,1)),\"Size (Tons)\",\"Size (Tons), <5 Tons Required\")","v":"Size (Tons)"}," "]
[]
[null,null,null,null,null,null,null,null,null,null,null,null,null,null,null,null,"HVACOther_Input1[EquipmentType]","Input1[Description]","Input1[Description]"," "]
[null,null,null,null,null,null,null,null,null,null,null,null,null,null,null,null,{"$f":"I50","v":"EC Motor (ECM)"},null,null," "]
[null,null,null,null,null,null,null,null,null,null,null,null,null,null,null,null,"CO Sensor",{"$f":"IF(ISNUMBER(SEARCH(\"Retro\",Project_Type,1)),\"\",\"Parking Garage Area\")","v":""},{"$f":"IF(ISNUMBER(SEARCH(\"Retro\",Project_Type,1)),\"\",\"Parking Garage Square Footage, >1500 Sq. Ft. / HP and < 30,000 Sq. Ft. Required\")","v":""}," "]
[null,null,null,null,null,null,null,null,null,null,null,null,null,null,null,null,"Energy Management System (EMS)",null,null," "]
[null,null,null,null,null,null,null,null,null,null,null,null,null,null,null,null,"Smart Thermostat (Self-Install)",null,null," "]
[null,null,null,null,null,null,null,null,null,null,null,null,null,null,null,null,"Smart Thermostat (Professional Install)",null,null," "]
[null,null,null,null,null,null,null,null,null,null,null,null,null,null,null,null,"VFD: VAV Fan",null,null," "]
[null,null,null,null,null,null,null,null,null,null,null,null,null,null,null,null,"VFD: HVAC Fan",{"$f":"IF(ISNUMBER(SEARCH(\"Retro\",Project_Type,1)),\"\",\"Unit Tons\")","v":""},{"$f":"IF(ISNUMBER(SEARCH(\"Retro\",Project_Type,1)),\"\",\"Size of Unitary Equipment (Tons), <5 Tons Required\")","v":""}," "]
[null,null,null,null,null,null,null,null,null,null,null,null,null,null,null,null,"VFD: HVAC Pump",null,null," "]
[null,null,null,null,null,null,null,null,null,null,null,null,null,null,null,null,"VFD: Chilled Water Pump",null,null," "]
[null,null,null,null,null,null,null,null,null,null,null,null,null,null,null,null,{"$f":"I59","v":"VFD: Domestic Service Water Pump"},null,null," "]
[null,null,null,null,null,null,null,null,null,null,null,null,null,null,null,null,"VFD: Domestic Hot Water Pump",null,null," "]
[null,null,null,null,null,null,null,null,null,null,null,null,null,null,null,null,{"$f":"I61","v":"Advanced RTU Controller"},null,null," "]
[]
[null,null,null,null,null,null,null,null,null,null,null,null,null,null,null,null,"RefrigComp_Input1[Inputs]","Input1[Title]","Input1[Description]"," "]
[null,null,null,null,null,null,null,null,null,null,null,null,null,null,null,null,{"$f":"I64","v":"Ref. Compressor: Bev. Merch"},"COP","Coefficient of Performance"," "]
[null,null,null,null,null,null,null,null,null,null,null,null,null,null,null,null,"Ref. Compressor: Food Service ","COP","Coefficient of Performance"," "]
[null,null,null,null,null,null,null,null,null,null,null,null,null,null,null,null,"Ref. Compressor: RI Cooler","COP","Coefficient of Performance"," "]
[null,null,null,null,null,null,null,null,null,null,null,null,null,null,null,null,"Ref. Compressor: RI Freezer","COP","Coefficient of Performance"," "]
[null,null,null,null,null,null,null,null,null,null,null,null,null,null,null,null,"Ref. Compressor: WI Cooler","COP","Coefficient of Performance"," "]
[null,null,null,null,null,null,null,null,null,null,null,null,null,null,null,null,"Ref. Compressor: WI Freezer","COP","Coefficient of Performance"," "]
[null,null,null,null,null,null,null,null,null,null,null,null,null,null,null,null,"Discus Compressor",null,null," "]
[]
[null,null,null,null,null,null,null,null,null,null,null,null,null,null,null,null,"RefOther_List2[EquipmentType]","List2[Title]","List2[Description]","List2[Inputs,CSV]"," "]
[null,null,null,null,null,null,null,null,null,null,null,null,null,null,null,null,{"$f":"I73","v":"Anti-Sweat Heater Controls"},"Type/Temp","Case Type and Temperature Application","Reach-In Med Temp,Reach-In Low Temp,Walk-In Med Temp,Walk-In Low Temp"," "]
[null,null,null,null,null,null,null,null,null,null,null,null,null,null,null,null,{"$f":"I74","v":"Auto-Closer Walk-In"},null,null,null," "]
[null,null,null,null,null,null,null,null,null,null,null,null,null,null,null,null,{"$f":"I75","v":"Dock Door Seal"},"Temperature","Temperature Application","Med Temp,Low Temp"," "]
[null,null,null,null,null,null,null,null,null,null,null,null,null,null,null,null,"Electronically Commutated Motor","Type","Refrigeration Type","Reach-In,Walk-In"," "]
[null,null,null,null,null,null,null,null,null,null,null,null,null,null,null,null,"Evaporative Condenser","Type","Refrigerant Type","Ammonia,Freon"," "]
[null,null,null,null,null,null,null,null,null,null,null,null,null,null,null,null,"Fast-Acting Door","Type/Temp","Door Type and Refrigeration Application","Bi-Fold Med Temp,Bi-Fold Low Temp,Roll-Up Med Temp,Roll-Up Low Temp"," "]
[null,null,null,null,null,null,null,null,null,null,null,null,null,null,null,null,"Floating Head-Pressure Controls","Type","Refrigerant Type","Ammonia,Freon"," "]
[null,null,null,null,null,null,null,null,null,null,null,null,null,null,null,null,"Door Gaskets","Type/Temp","Door Type and Refrigeration Application","Glass Door Med Temp,Glass Door Low Temp,Solid Door Med Temp,Solid Door Low Temp"," "]
[null,null,null,null,null,null,null,null,null,null,null,null,null,null,null,null,"High-Efficiency Open Display Case","Lighting Type","Lighting, Fluorescent or LED Required","Fluorescent,LED,Other,None"," "]
[null,null,null,null,null,null,null,null,null,null,null,null,null,null,null,null,"Refrigerated Occupancy Controls","Type","Machine Type","Reach-In,Beverage Machine,Snack Machine"," "]
[null,null,null,null,null,null,null,null,null,null,null,null,null,null,null,null,"Refrigerated Suction Pipe Insulation","Temperature","Temperature Application","Med Temp,Low Temp"," "]
[null,null,null,null,null,null,null,null,null,null,null,null,null,null,null,null,"Strip Curtain",null,null,null," "]
[null,null,null,null,null,null,null,null,null,null,null,null,null,null,null,null,"Variable Frequency Drive","Type","Fan Application","Condenser Fan,Evaporator Fan"," "]
[]
[null,null,null,null,null,null,null,null,null,null,null,null,null,null,null,null,"RefOther_List3[EquipmentType]","List3[Title]","List3[Description]","List3[Inputs,CSV]"," "]
[null,null,null,null,null,null,null,null,null,null,null,null,null,null,null,null,{"$f":"I73","v":"Anti-Sweat Heater Controls"},null,null,null," "]
[null,null,null,null,null,null,null,null,null,null,null,null,null,null,null,null,{"$f":"I74","v":"Auto-Closer Walk-In"},null,null,null," "]
[null,null,null,null,null,null,null,null,null,null,null,null,null,null,null,null,"Dock Door Seal",null,null,null," "]
[null,null,null,null,null,null,null,null,null,null,null,null,null,null,null,null,"Electronically Commutated Motor",null,null,null," "]
[null,null,null,null,null,null,null,null,null,null,null,null,null,null,null,null,"Evaporative Condenser","Controls Type","Condenser Controls, VFD+FHPC Required","VFD+FHPC,VFD Only,Staging/None+FHPC,Other,None"," "]
[null,null,null,null,null,null,null,null,null,null,null,null,null,null,null,null,"Fast-Acting Door",null,null,null," "]
[null,null,null,null,null,null,null,null,null,null,null,null,null,null,null,null,"Floating Head-Pressure Controls","Controls Type","Condenser Controls, VFD/Staging Required","VFD,Multi-Stage,Two-Stage,None"," "]
[null,null,null,null,null,null,null,null,null,null,null,null,null,null,null,null,"Door Gaskets",null,null,null," "]
[null,null,null,null,null,null,null,null,null,null,null,null,null,null,null,null,"High-Efficiency Open Display Case","Motor Type","Motor Type, ECM Required","ECM,Other,None"," "]
[null,null,null,null,null,null,null,null,null,null,null,null,null,null,null,null,"Refrigerated Occupancy Controls",null,null,null," "]
[null,null,null,null,null,null,null,null,null,null,null,null,null,null,null,null,"Refrigerated Suction Pipe Insulation",null,null,null," "]
[null,null,null,null,null,null,null,null,null,null,null,null,null,null,null,null,"Strip Curtain",null,null,null," "]
[null,null,null,null,null,null,null,null,null,null,null,null,null,null,null,null,"Variable Frequency Drive",null,null,null," "]
[]
[null,null,null,null,null,null,null,null,null,null,null,null,null,null,null,null,"RefOther_Size[EquipmentType]","Size[Title]","Size[Description]"," "]
[null,null,null,null,null,null,null,null,null,null,null,null,null,null,null,null,{"$f":"I73","v":"Anti-Sweat Heater Controls"},"Ln. Ft.","Size (Door Perimeter, Linear Feet)"," "]
[null,null,null,null,null,null,null,null,null,null,null,null,null,null,null,null,{"$f":"I74","v":"Auto-Closer Walk-In"},null,null," "]
[null,null,null,null,null,null,null,null,null,null,null,null,null,null,null,null,{"$f":"I75","v":"Dock Door Seal"},"Ln. Ft.","Size (Door Perimeter, Linear Feet)"," "]
[null,null,null,null,null,null,null,null,null,null,null,null,null,null,null,null,"Electronically Commutated Motor",null,null," "]
[null,null,null,null,null,null,null,null,null,null,null,null,null,null,null,null,"Evaporative Condenser","Tons","Size (Refrigeration Tons)"," "]
[null,null,null,null,null,null,null,null,null,null,null,null,null,null,null,null,"Fast-Acting Door","Sq. Ft.","Size (Door Area, Square Feet)"," "]
[null,null,null,null,null,null,null,null,null,null,null,null,null,null,null,null,"Floating Head-Pressure Controls","Tons","Size (Refrigeration Tons)"," "]
[null,null,null,null,null,null,null,null,null,null,null,null,null,null,null,null,"Door Gaskets","Ln. Ft.","Size (Door Perimeter, Linear Feet)"," "]
[null,null,null,null,null,null,null,null,null,null,null,null,null,null,null,null,"High-Efficiency Open Display Case","Ln. Ft.","Size (Case Length, Linear Feet)"," "]
[null,null,null,null,null,null,null,null,null,null,null,null,null,null,null,null,"Refrigerated Occupancy Controls",null,null," "]
[null,null,null,null,null,null,null,null,null,null,null,null,null,null,null,null,"Refrigerated Suction Pipe Insulation","Ln. Ft.","Size (Pipe Length, Linear Feet)"," "]
[null,null,null,null,null,null,null,null,null,null,null,null,null,null,null,null,"Strip Curtain","Sq. Ft.","Size (Door Area, Square Feet)"," "]
[null,null,null,null,null,null,null,null,null,null,null,null,null,null,null,null,"Variable Frequency Drive","HP","Size (Horsepower)"," "]
[]
[null,null,null,null,null,null,null,null,null,null,null,null,null,null,null,null,"RefOther_Input1[EquipmentType]","Input1[Title]","Input1[Description]"," "]
[null,null,null,null,null,null,null,null,null,null,null,null,null,null,null,null,{"$f":"I73","v":"Anti-Sweat Heater Controls"},null,null," "]
[null,null,null,null,null,null,null,null,null,null,null,null,null,null,null,null,{"$f":"I74","v":"Auto-Closer Walk-In"},null,null," "]
[null,null,null,null,null,null,null,null,null,null,null,null,null,null,null,null,{"$f":"I75","v":"Dock Door Seal"},null,null," "]
[null,null,null,null,null,null,null,null,null,null,null,null,null,null,null,null,"Electronically Commutated Motor",null,null," "]
[null,null,null,null,null,null,null,null,null,null,null,null,null,null,null,null,"Evaporative Condenser","EER","(Refrigeration Load BTUH) / (Fan HP * 745.7/%Efficiency), ≥240EER Required"," "]
[null,null,null,null,null,null,null,null,null,null,null,null,null,null,null,null,"Fast-Acting Door","Time","Closing Time (Seconds), Bi-Fold: ≤1.5sec & Roll-Up: ≤4.0sec Required"," "]
[null,null,null,null,null,null,null,null,null,null,null,null,null,null,null,null,"Floating Head-Pressure Controls",null,null," "]
[null,null,null,null,null,null,null,null,null,null,null,null,null,null,null,null,"Door Gaskets",null,null," "]
[null,null,null,null,null,null,null,null,null,null,null,null,null,null,null,null,"High-Efficiency Open Display Case",null,null," "]
[null,null,null,null,null,null,null,null,null,null,null,null,null,null,null,null,"Refrigerated Occupancy Controls",null,null," "]
[null,null,null,null,null,null,null,null,null,null,null,null,null,null,null,null,"Refrigerated Suction Pipe Insulation","R-Value","Insulation R-Value, Med-Temp: ≥R-3.2 & Low-Temp: ≥R-4.3  Required"," "]
[null,null,null,null,null,null,null,null,null,null,null,null,null,null,null,null,"Strip Curtain",null,null," "]
[null,null,null,null,null,null,null,null,null,null,null,null,null,null,null,null,"Variable Frequency Drive",null,null," "]
[]
[null,null,null,null,null,null,null,null,null,null,null,null,null,null,null,null,"RefOther_Input2[EquipmentType]","Input2[Title]","Input2[Description]"," "]
[null,null,null,null,null,null,null,null,null,null,null,null,null,null,null,null,{"$f":"I73","v":"Anti-Sweat Heater Controls"},null,null," "]
[null,null,null,null,null,null,null,null,null,null,null,null,null,null,null,null,{"$f":"I74","v":"Auto-Closer Walk-In"},null,null," "]
[null,null,null,null,null,null,null,null,null,null,null,null,null,null,null,null,{"$f":"I75","v":"Dock Door Seal"},null,null," "]
[null,null,null,null,null,null,null,null,null,null,null,null,null,null,null,null,"Electronically Commutated Motor",null,null," "]
[null,null,null,null,null,null,null,null,null,null,null,null,null,null,null,null,"Evaporative Condenser","TD","Temp Differential (TD), ≤18deg Required"," "]
[null,null,null,null,null,null,null,null,null,null,null,null,null,null,null,null,"Fast-Acting Door",{"$f":"IF(ISNUMBER(SEARCH(\"Retro\",Project_Type,1)),\"\",\"Walk-In Area\")","v":""},{"$f":"IF(ISNUMBER(SEARCH(\"Retro\",Project_Type,1)),\"\",\"Walk-In Square Footage, >3000 Sq. Ft. Required\")","v":""}," "]
[null,null,null,null,null,null,null,null,null,null,null,null,null,null,null,null,"Floating Head-Pressure Controls",null,null," "]
[null,null,null,null,null,null,null,null,null,null,null,null,null,null,null,null,"Door Gaskets",null,null," "]
[null,null,null,null,null,null,null,null,null,null,null,null,null,null,null,null,"High-Efficiency Open Display Case",null,null," "]
[null,null,null,null,null,null,null,null,null,null,null,null,null,null,null,null,"Refrigerated Occupancy Controls",null,null," "]
[null,null,null,null,null,null,null,null,null,null,null,null,null,null,null,null,"Refrigerated Suction Pipe Insulation","Diameter","Size (Inches), ≤1.625\" Required"," "]
[null,null,null,null,null,null,null,null,null,null,null,null,null,null,null,null,"Strip Curtain",null,null," "]
[null,null,null,null,null,null,null,null,null,null,null,null,null,null,null,null,"Variable Frequency Drive",null,null," "]
[]
[null,null,null,null,null,null,null,null,null,null,null,null,null,null,null,null,"KitchenOther_List2[EquipmentType]","List2[Title]","List2[Description]","List2[Inputs,CSV]"," "]
[null,null,null,null,null,null,null,null,null,null,null,null,null,null,null,null,{"$f":"I88","v":"ENERGY STAR Griddle"},null,null,null," "]
[null,null,null,null,null,null,null,null,null,null,null,null,null,null,null,null,{"$f":"I89","v":"ENERGY STAR Steam Cooker"},null,null,null," "]
[null,null,null,null,null,null,null,null,null,null,null,null,null,null,null,null,"ENERGY STAR Dishwasher","Type","Dishwasher Type","Under-Counter,Single-Tank,Multi-Tank"," "]
[null,null,null,null,null,null,null,null,null,null,null,null,null,null,null,null,"ENERGY STAR Hot Food Holding Cabinet","Size","Cabinet Type (Size)","1/2 Size,3/4 Size,Full Size"," "]
[null,null,null,null,null,null,null,null,null,null,null,null,null,null,null,null,"ENERGY STAR Ice Maker","Type","Ice-Maker Type","Self-Contained,Remote-Condensing Unit"," "]
[null,null,null,null,null,null,null,null,null,null,null,null,null,null,null,null,"ENERGY STAR Refrigerated Beverage Vending Machine",null,null,null," "]
[null,null,null,null,null,null,null,null,null,null,null,null,null,null,null,null,"ENERGY STAR Electric Convection Oven",null,null,null," "]
[null,null,null,null,null,null,null,null,null,null,null,null,null,null,null,null,"ENERGY STAR Electric Vat Fryer","Size","Vat Fryer Type (Size)","Standard,Large"," "]
[null,null,null,null,null,null,null,null,null,null,null,null,null,null,null,null,"Electric Combination Oven","Size","Stove-Top Size","<15 Pans,>15 Pans"," "]
[null,null,null,null,null,null,null,null,null,null,null,null,null,null,null,null,{"$f":"I97","v":"High Efficiency Pre-Rinse Spray Valve"},null,null,null," "]
[null,null,null,null,null,null,null,null,null,null,null,null,null,null,null,null,{"$f":"I98","v":"VFD: Kitchen EF (Hotel)"},"Sensor Type","Sensor Type, Optic or Temperature Sensor Required","Temperature,Optic,Other,None"," "]
[null,null,null,null,null,null,null,null,null,null,null,null,null,null,null,null,{"$f":"I99","v":"VFD: Kitchen EF (Restaurant)"},"Sensor Type","Sensor Type, Optic or Temperature Sensor Required","Temperature,Optic,Other,None"," "]
[]
[null,null,null,null,null,null,null,null,null,null,null,null,null,null,null,null,"KitchenOther_Size[EquipmentType]","Size[Title]","Size[Description]"," "]
[null,null,null,null,null,null,null,null,null,null,null,null,null,null,null,null,{"$f":"I88","v":"ENERGY STAR Griddle"},null,null," "]
[null,null,null,null,null,null,null,null,null,null,null,null,null,null,null,null,"ENERGY STAR Steam Cooker",null,null," "]
[null,null,null,null,null,null,null,null,null,null,null,null,null,null,null,null,"ENERGY STAR Dishwasher",null,null," "]
[null,null,null,null,null,null,null,null,null,null,null,null,null,null,null,null,"ENERGY STAR Hot Food Holding Cabinet",null,null," "]
[null,null,null,null,null,null,null,null,null,null,null,null,null,null,null,null,"ENERGY STAR Ice Maker","Lbs./Day (ice)","Rated pounds of ice produced per day"," "]
[null,null,null,null,null,null,null,null,null,null,null,null,null,null,null,null,"ENERGY STAR Refrigerated Beverage Vending Machine",null,null," "]
[null,null,null,null,null,null,null,null,null,null,null,null,null,null,null,null,"ENERGY STAR Electric Convection Oven",null,null," "]
[null,null,null,null,null,null,null,null,null,null,null,null,null,null,null,null,"ENERGY STAR Electric Vat Fryer",null,null," "]
[null,null,null,null,null,null,null,null,null,null,null,null,null,null,null,null,"Electric Combination Oven",null,null," "]
[null,null,null,null,null,null,null,null,null,null,null,null,null,null,null,null,"High Efficiency Pre-Rinse Spray Valve","GPM","Flow Rate of the Pre-Rinse Spray Valve, ≤1.15gpm Required"," "]
[null,null,null,null,null,null,null,null,null,null,null,null,null,null,null,null,"VFD: Kitchen EF (Hotel)","HP","Size (Horsepower)"," "]
[null,null,null,null,null,null,null,null,null,null,null,null,null,null,null,null,"VFD: Kitchen EF (Restaurant)","HP","Size (Horsepower)"," "]
[]
[null,null,null,null,null,null,null,null,null,null,null,null,null,null,null,null,"KitchenOther_Input1[EquipmentType]","Input1[Title]","Input1[Description]"," "]
[null,null,null,null,null,null,null,null,null,null,null,null,null,null,null,null,{"$f":"I88","v":"ENERGY STAR Griddle"},"CEE","ENERGY STAR® cooking energy efficiency rating"," "]
[null,null,null,null,null,null,null,null,null,null,null,null,null,null,null,null,"ENERGY STAR Steam Cooker","CEE","ENERGY STAR® cooking energy efficiency rating"," "]
[null,null,null,null,null,null,null,null,null,null,null,null,null,null,null,null,"ENERGY STAR Dishwasher",null,null," "]
[null,null,null,null,null,null,null,null,null,null,null,null,null,null,null,null,"ENERGY STAR Hot Food Holding Cabinet",null,null," "]
[null,null,null,null,null,null,null,null,null,null,null,null,null,null,null,null,"ENERGY STAR Ice Maker",null,null," "]
[null,null,null,null,null,null,null,null,null,null,null,null,null,null,null,null,"ENERGY STAR Refrigerated Beverage Vending Machine",null,null," "]
[null,null,null,null,null,null,null,null,null,null,null,null,null,null,null,null,"ENERGY STAR Electric Convection Oven",null,null," "]
[null,null,null,null,null,null,null,null,null,null,null,null,null,null,null,null,"ENERGY STAR Electric Vat Fryer","CEE","ENERGY STAR® cooking energy efficiency rating"," "]
[null,null,null,null,null,null,null,null,null,null,null,null,null,null,null,null,"Electric Combination Oven","CEE","ENERGY STAR® cooking energy efficiency rating"," "]
[null,null,null,null,null,null,null,null,null,null,null,null,null,null,null,null,"High Efficiency Pre-Rinse Spray Valve","Cleanability (seconds)","Rated cleanability performance, ≤26.0 seconds (per plate) Required"," "]
[null,null,null,null,null,null,null,null,null,null,null,null,null,null,null,null,"VFD: Kitchen EF (Hotel)",null,null," "]
[null,null,null,null,null,null,null,null,null,null,null,null,null,null,null,null,"VFD: Kitchen EF (Restaurant)",null,null," "]
[]
[null,null,null,null,null,null,null,null,null,null,null,null,null,null,null,null,"CAOther_List2[EquipmentType]","List2[Title]","List2[Description]","List2[Inputs,CSV]"," "]
[null,null,null,null,null,null,null,null,null,null,null,null,null,null,null,null,{"$f":"I102","v":"Additional Receiver Tank Capacity"},null,null,null," "]
[null,null,null,null,null,null,null,null,null,null,null,null,null,null,null,null,{"$f":"I103","v":"Desiccant Dryer w/ Blower Purge"},null,null,null," "]
[null,null,null,null,null,null,null,null,null,null,null,null,null,null,null,null,"Desiccant Dryer w/ External Heating",null,null,null," "]
[null,null,null,null,null,null,null,null,null,null,null,null,null,null,null,null,"Low Pressure-Drop Filter",null,null,null," "]
[null,null,null,null,null,null,null,null,null,null,null,null,null,null,null,null,"Refrigerated Cycling Dryer",null,null,null," "]
[null,null,null,null,null,null,null,null,null,null,null,null,null,null,null,null,"VFD-Controlled Compressor","Oil Injected?","Is this compressor oil-injected (Yes) or oil-less (No)?","Yes,No"," "]
[null,null,null,null,null,null,null,null,null,null,null,null,null,null,null,null,"Zero-Loss Condensate Drain",null,null,null," "]
[]
[null,null,null,null,null,null,null,null,null,null,null,null,null,null,null,null,"CAOther_Size[EquipmentType]","Size[Title]","Size[Description]"," "]
[null,null,null,null,null,null,null,null,null,null,null,null,null,null,null,null,{"$f":"I102","v":"Additional Receiver Tank Capacity"},"Gal","Capacity (Gallons)"," "]
[null,null,null,null,null,null,null,null,null,null,null,null,null,null,null,null,{"$f":"I103","v":"Desiccant Dryer w/ Blower Purge"},"SCFM","Size (SCFM), ≤1,000SCFM Required"," "]
[null,null,null,null,null,null,null,null,null,null,null,null,null,null,null,null,"Desiccant Dryer w/ External Heating","SCFM","Size (SCFM), ≤1,000SCFM Required"," "]
[null,null,null,null,null,null,null,null,null,null,null,null,null,null,null,null,"Low Pressure-Drop Filter","HP","Size (Horsepower), ≤75HP Required"," "]
[null,null,null,null,null,null,null,null,null,null,null,null,null,null,null,null,"Refrigerated Cycling Dryer","SCFM","Size (SCFM), ≤1,000SCFM Required"," "]
[null,null,null,null,null,null,null,null,null,null,null,null,null,null,null,null,"VFD-Controlled Compressor","HP","Size (Horsepower), ≤75HP Required"," "]
[null,null,null,null,null,null,null,null,null,null,null,null,null,null,null,null,"Zero-Loss Condensate Drain","SCFM","Size (SCFM)"," "]
[]
[null,null,null,null,null,null,null,null,null,null,null,null,null,null,null,null,"CAOther_Input2[EquipmentType]","Input2[Title]","Input2[Description]"," "]
[null,null,null,null,null,null,null,null,null,null,null,null,null,null,null,null,{"$f":"I102","v":"Additional Receiver Tank Capacity"},"CFM","CFM, Note: ≥2.0 Gal/CFM Required"," "]
[null,null,null,null,null,null,null,null,null,null,null,null,null,null,null,null,{"$f":"I103","v":"Desiccant Dryer w/ Blower Purge"},null,null," "]
[null,null,null,null,null,null,null,null,null,null,null,null,null,null,null,null,"Desiccant Dryer w/ External Heating",null,null," "]
[null,null,null,null,null,null,null,null,null,null,null,null,null,null,null,null,"Low Pressure-Drop Filter","Lifetime","Useful Lifetime (Years) ≥5 Years Required"," "]
[null,null,null,null,null,null,null,null,null,null,null,null,null,null,null,null,"Refrigerated Cycling Dryer",null,null," "]
[null,null,null,null,null,null,null,null,null,null,null,null,null,null,null,null,"VFD-Controlled Compressor",null,null," "]
[null,null,null,null,null,null,null,null,null,null,null,null,null,null,null,null,"Zero-Loss Condensate Drain",null,null," "]
[]
[null,null,null,null,null,null,null,null,null,null,null,null,null,null,null,null,"ITDCOther_Size[EquipmentType]","Size[Title]","Size[Description]"," "]
[null,null,null,null,null,null,null,null,null,null,null,null,null,null,null,null,{"$f":"I115","v":"Computer Power Management"},null,null," "]
[null,null,null,null,null,null,null,null,null,null,null,null,null,null,null,null,{"$f":"I116","v":"EC Motor: CRAC"},"HP","Size (Horsepower)"," "]
[null,null,null,null,null,null,null,null,null,null,null,null,null,null,null,null,{"$f":"I117","v":"EC Motor: CRAH"},"HP","Size (Horsepower)"," "]
[null,null,null,null,null,null,null,null,null,null,null,null,null,null,null,null,{"$f":"I118","v":"Server Virtualization"},null,null," "]
[null,null,null,null,null,null,null,null,null,null,null,null,null,null,null,null,{"$f":"I119","v":"High-Efficiency Server Replacement"},null,null," "]
[]
[null,null,null,null,null,null,null,null,null,null,null,null,null,null,null,null,"ITDCOther_Input1[EquipmentType]","Input1[Title]","Input1[Description]"," "]
[null,null,null,null,null,null,null,null,null,null,null,null,null,null,null,null,{"$f":"I115","v":"Computer Power Management"},"Contract Length","Contract Length (Years), ≥6 Years Required"," "]
[null,null,null,null,null,null,null,null,null,null,null,null,null,null,null,null,{"$f":"I116","v":"EC Motor: CRAC"},null,null," "]
[null,null,null,null,null,null,null,null,null,null,null,null,null,null,null,null,{"$f":"I117","v":"EC Motor: CRAH"},null,null," "]
[null,null,null,null,null,null,null,null,null,null,null,null,null,null,null,null,{"$f":"I118","v":"Server Virtualization"},"Servers Removed","Removed as part of this measure"," "]
[null,null,null,null,null,null,null,null,null,null,null,null,null,null,null,null,{"$f":"I119","v":"High-Efficiency Server Replacement"},"Servers Installed","Installed as part of this measure"," "]
[]
[null,null,null,null,null,null,null,null,null,null,null,null,null,null,null,null,"ITDCOther_Input2[EquipmentType]","Input2[Title]","Input2[Description]"," "]
[null,null,null,null,null,null,null,null,null,null,null,null,null,null,null,null,{"$f":"I115","v":"Computer Power Management"},null,null," "]
[null,null,null,null,null,null,null,null,null,null,null,null,null,null,null,null,{"$f":"I116","v":"EC Motor: CRAC"},null,null," "]
[null,null,null,null,null,null,null,null,null,null,null,null,null,null,null,null,{"$f":"I117","v":"EC Motor: CRAH"},null,null," "]
[null,null,null,null,null,null,null,null,null,null,null,null,null,null,null,null,{"$f":"I118","v":"Server Virtualization"},null,null," "]
[null,null,null,null,null,null,null,null,null,null,null,null,null,null,null,null,{"$f":"I119","v":"High-Efficiency Server Replacement"},"Servers Removed","Removed as part of this measure"," "]
[]
[null,null,null,null,null,null,null,null,null,null,null,null,null,null,null,null,"Misc_List2[EquipmentType]","List2[Title]","List2[Description]","List2[Inputs,CSV]"," "]
[null,null,null,null,null,null,null,null,null,null,null,null,null,null,null,null,{"$f":"I122","v":"Heat Pump Water Heater"},null,null,null," "]
[null,null,null,null,null,null,null,null,null,null,null,null,null,null,null,null,{"$f":"I123","v":"VFD: Pool Pump"},null,null,null," "]
[null,null,null,null,null,null,null,null,null,null,null,null,null,null,null,null,{"$f":"I124","v":"Window Film"},"Exposure","Window exposure (Cannot be ±45° due North)","North,Northeast,East,Southeast,South,Southwest,West,Northwest"," "]
[null,null,null,null,null,null,null,null,null,null,null,null,null,null,null,null,{"$f":"I125","v":"Shade Screen"},"Exposure","Window exposure (Cannot be ±45° due North)","North,Northeast,East,Southeast,South,Southwest,West,Northwest"," "]
[]
[null,null,null,null,null,null,null,null,null,null,null,null,null,null,null,null,"Misc_List3[EquipmentType]","List3[Title]","List3[Description]","List3[Inputs,CSV]"," "]
[null,null,null,null,null,null,null,null,null,null,null,null,null,null,null,null,{"$f":"I122","v":"Heat Pump Water Heater"},null,null,null," "]
[null,null,null,null,null,null,null,null,null,null,null,null,null,null,null,null,{"$f":"I123","v":"VFD: Pool Pump"},null,null,null," "]
[null,null,null,null,null,null,null,null,null,null,null,null,null,null,null,null,{"$f":"I124","v":"Window Film"},"WindowType","Window Tint and Number of Panes","Clear/Single,Colored/Single,Clear/Double,Colored/Double"," "]
[null,null,null,null,null,null,null,null,null,null,null,null,null,null,null,null,{"$f":"I125","v":"Shade Screen"},"WindowType","Window Tint and Number of Panes","Clear/Single,Colored/Single,Clear/Double,Colored/Double"," "]
[]
[null,null,null,null,null,null,null,null,null,null,null,null,null,null,null,null,"Misc_Size[EquipmentType]","Size[Title]","Size[Description]"," "]
[null,null,null,null,null,null,null,null,null,null,null,null,null,null,null,null,{"$f":"I122","v":"Heat Pump Water Heater"},null,null," "]
[null,null,null,null,null,null,null,null,null,null,null,null,null,null,null,null,{"$f":"I123","v":"VFD: Pool Pump"},"HP","Size (Horsepower), ≤25HP Required"," "]
[null,null,null,null,null,null,null,null,null,null,null,null,null,null,null,null,{"$f":"I124","v":"Window Film"},"Sq. Ft.","Window Area, Square Feet"," "]
[null,null,null,null,null,null,null,null,null,null,null,null,null,null,null,null,{"$f":"I125","v":"Shade Screen"},"Sq. Ft.","Window Area, Square Feet"," "]
[]
[null,null,null,null,null,null,null,null,null,null,null,null,null,null,null,null,"Misc_Input1[EquipmentType]","Input1[Title]","Input1[Description]"," "]
[null,null,null,null,null,null,null,null,null,null,null,null,null,null,null,null,{"$f":"I122","v":"Heat Pump Water Heater"},"EF","Energy Factor (EF), ≥2.35 Required"," "]
[null,null,null,null,null,null,null,null,null,null,null,null,null,null,null,null,{"$f":"I123","v":"VFD: Pool Pump"},null,null," "]
[null,null,null,null,null,null,null,null,null,null,null,null,null,null,null,null,{"$f":"I124","v":"Window Film"},"SHGC","Solar Heat Gain Coefficient (SHGC)"," "]
[null,null,null,null,null,null,null,null,null,null,null,null,null,null,null,null,{"$f":"I125","v":"Shade Screen"},"SHGC","Solar Heat Gain Coefficient (SHGC)"," "]

{"sheet":"Equipment Lookup Tables","index":19,"n_rows":469,"n_cols":26,"rows_kept":469,"cut":false,"hidden":true,"merged":[[335,6,339,6],[3,1,58,1],[59,1,114,1],[115,1,120,1],[123,1,161,1],[121,1,122,1],[166,1,216,1],[217,1,267,1],[436,3,440,3],[441,3,445,3],[349,1,353,1],[306,1,324,1],[272,1,286,1],[287,1,301,1],[325,1,348,1],[354,1,357,1]]}
[]
[null,null,"Unitary Lookup Values",2,3,4,5,6,7,8,9,10,11,12,13,14,15,16,17,18,19,20,21,22,23,24]
[null,null,"ID","Equipment Code","Heat Rejection","Unit","Size","Size ID","Heating Type                           (ER = Elect Res or None)","Type","Code Minimum\nSEER/IEER","Code Minimum\nEER","Code Minimum\nHSPF/COP1","Code Minimum\nCOP2","Tier 1\nSEER/IEER","Tier 1\nEER","Tier 1\nHSPF/COP1","Tier 1\nCOP2","Tier 2\nSEER/IEER","Tier 2\nEER","Tier 2\nHSPF/COP1","Tier 2\nCOP2","Tier 1\nRebate","Tier 2\nRebate","Tier 1\nIncr. Cost","Tier 2\nIncr. Cost"]
[null,"Elect Res / None","Air-CooledAC - PackageER1","AC.ER/N.ACS.1","Air-Cooled","AC - ","<65000",1,"ER","Package",14,11.4,0,0,15,12,0,0,16,12,0,0,65,85,250,450]
[null,0,"Air-CooledAC - SplitER1","AC.ER/N.ACP.1","Air-Cooled","AC - ","<65000",1,"ER","Split",14,11.4,0,0,15,12.5,0,0,16,13,0,0,65,85,250,450]
[null,0,"Air-CooledAC - PackageER2","AC.ER/N.ACS.2","Air-Cooled","AC - ",">65000 & <135000",2,"ER","Package",12.9,11.2,0,0,14,12.2,0,0,14.8,12.2,0,0,65,85,150,300]
[null,0,"Air-CooledAC - SplitER2","AC.ER/N.ACP.2","Air-Cooled","AC - ",">65000 & <135000",2,"ER","Split",12.9,11.2,0,0,14,12.2,0,0,14.8,12.2,0,0,65,85,150,300]
[null,0,"Air-CooledAC - PackageER3","AC.ER/N.ACS.3","Air-Cooled","AC - ",">135000 & <240000",3,"ER","Package",12.4,11,0,0,13.2,12.2,0,0,14.2,12.2,0,0,65,85,150,300]
[null,0,"Air-CooledAC - SplitER3","AC.ER/N.ACP.3","Air-Cooled","AC - ",">135000 & <240000",3,"ER","Split",12.4,11,0,0,13.2,12.2,0,0,14.2,12.2,0,0,65,85,150,300]
[null,0,"Air-CooledAC - PackageER4","AC.ER/N.ACS.4","Air-Cooled","AC - ",">240000 & <760000",4,"ER","Package",11.6,10,0,0,12.3,10.5,0,0,13.2,10.8,0,0,65,85,150,250]
[null,0,"Air-CooledAC - SplitER4","AC.ER/N.ACP.4","Air-Cooled","AC - ",">240000 & <760000",4,"ER","Split",11.6,10,0,0,12.3,10.5,0,0,13.2,10.8,0,0,65,85,150,250]
[null,0,"Air-CooledAC - PackageER5","AC.ER/N.ACS.5","Air-Cooled","AC - ",">760000",5,"ER","Package",11.2,9.6999999999999993,0,0,11.6,9.9,0,0,12.3,10.4,0,0,65,85,150,250]
[null,0,"Air-CooledAC - SplitER5","AC.ER/N.ACP.5","Air-Cooled","AC - ",">760000",5,"ER","Split",11.2,9.6999999999999993,0,0,11.6,9.9,0,0,12.3,10.4,0,0,65,85,150,250]
[null,0,"Air-CooledHP - PackageER1","HP.ER/N.ACS.1","Air-Cooled","HP - ","<65000",1,"ER","Package",14,11.2,8,0,15,12,8.1999999999999993,0,16,12,8.1999999999999993,0,110,135,150,300]
[null,0,"Air-CooledHP - SplitER1","HP.ER/N.ACP.1","Air-Cooled","HP - ","<65000",1,"ER","Split",14,11.2,8.1999999999999993,0,15,12.5,8.5,0,16,13,9,0,110,135,150,300]
[null,0,"Air-CooledHP - PackageER2","HP.ER/N.ACS.2","Air-Cooled","HP - ",">65000 & <135000",2,"ER","Package",12.2,11,3.3,2.25,13.6,11.8,3.4,2.4,14.7,12.700000000000001,3.4,2.4,110,135,150,300]
[null,0,"Air-CooledHP - SplitER2","HP.ER/N.ACP.2","Air-Cooled","HP - ",">65000 & <135000",2,"ER","Split",12.2,11,3.3,2.25,13.6,11.8,3.4,2.4,14.7,12.700000000000001,3.4,2.4,110,135,150,300]
[null,0,"Air-CooledHP - PackageER3","HP.ER/N.ACS.3","Air-Cooled","HP - ",">135000 & <240000",3,"ER","Package",11.6,10.6,3.2,2.0499999999999998,12.8,10.9,3.3,2.1,13.700000000000001,11.6,3.3,2.1,110,135,150,250]
[null,0,"Air-CooledHP - SplitER3","HP.ER/N.ACP.3","Air-Cooled","HP - ",">135000 & <240000",3,"ER","Split",11.6,10.6,3.2,2.0499999999999998,12.8,10.9,3.3,2.1,13.700000000000001,11.6,3.3,2.1,110,135,150,250]
[null,0,"Air-CooledHP - PackageER4","HP.ER/N.ACS.4","Air-Cooled","HP - ",">240000 & <760000",4,"ER","Package",10.6,9.5,3.2,2.0499999999999998,11.8,10.3,3.3,2.1,12.5,10.8,3.3,2.1,110,135,150,250]
[null,0,"Air-CooledHP - SplitER4","HP.ER/N.ACP.4","Air-Cooled","HP - ",">240000 & <760000",4,"ER","Split",10.6,9.5,3.2,2.0499999999999998,11.8,10.3,3.3,2.1,12.5,10.8,3.3,2.1,110,135,150,250]
[null,0,"Air-CooledHP - PackageER5","HP.ER/N.ACS.5","Air-Cooled","HP - ",">760000",5,"ER","Package",10.6,9.5,3.2,2.0499999999999998,11.8,10.3,3.3,2.1,12.200000000000001,10.5,3.3,2.1,110,135,150,250]
[null,0,"Air-CooledHP - SplitER5","HP.ER/N.ACP.5","Air-Cooled","HP - ",">760000",5,"ER","Split",10.6,9.5,3.2,2.0499999999999998,11.8,10.3,3.3,2.1,12.200000000000001,10.5,3.3,2.1,110,135,150,250]
[null,0,"Water-CooledAC - PackageER0","AC.ER/N.WCS.1","Water-Cooled","AC - ","<17000",0,"ER","Package",12.3,12.1,0,0,0,14,0,0,0,14,0,0,75,75,700,700]
[null,0,"Water-CooledAC - SplitER0","AC.ER/N.WCP.1","Water-Cooled","AC - ","<17000",0,"ER","Split",12.3,12.1,0,0,0,14,0,0,0,14,0,0,75,75,700,700]
[null,0,"Water-CooledAC - PackageER1","AC.ER/N.WCS.1","Water-Cooled","AC - ",">17000 & <65000",1,"ER","Package",12.3,12.1,0,0,0,14,0,0,0,14,0,0,75,75,700,700]
[null,0,"Water-CooledAC - SplitER1","AC.ER/N.WCP.1","Water-Cooled","AC - ",">17000 & <65000",1,"ER","Split",12.3,12.1,0,0,0,14,0,0,0,14,0,0,75,75,700,700]
[null,0,"Water-CooledAC - PackageER2","AC.ER/N.WCS.2","Water-Cooled","AC - ",">65000 & <135000",2,"ER","Package",13.9,12.1,0,0,15.3,14,0,0,15.3,14,0,0,75,75,700,700]
[null,0,"Water-CooledAC - SplitER2","AC.ER/N.WCP.2","Water-Cooled","AC - ",">65000 & <135000",2,"ER","Split",13.9,12.1,0,0,15.3,14,0,0,15.3,14,0,0,75,75,700,700]
[null,0,"Water-CooledAC - PackageER3","AC.ER/N.WCS.3","Water-Cooled","AC - ",">135000 & <240000",3,"ER","Package",13.9,12.5,0,0,14.8,14,0,0,14.8,14,0,0,75,75,700,700]
[null,0,"Water-CooledAC - SplitER3","AC.ER/N.WCP.3","Water-Cooled","AC - ",">135000 & <240000",3,"ER","Split",13.9,12.5,0,0,14.8,14,0,0,14.8,14,0,0,75,75,700,700]
[null,0,"Water-CooledAC - PackageER4","AC.ER/N.WCS.4","Water-Cooled","AC - ",">240000 & <760000",4,"ER","Package",13.6,12.4,0,0,14.8,14,0,0,14.8,14,0,0,75,75,700,700]
[null,0,"Water-CooledAC - SplitER4","AC.ER/N.WCP.4","Water-Cooled","AC - ",">240000 & <760000",4,"ER","Split",13.6,12.4,0,0,14.8,14,0,0,14.8,14,0,0,75,75,700,700]
[null,0,"Water-CooledAC - PackageER5","AC.ER/N.WCS.5","Water-Cooled","AC - ",">760000",5,"ER","Package",13.5,12.2,0,0,14.8,14,0,0,14.8,14,0,0,75,75,700,700]
[null,0,"Water-CooledAC - SplitER5","AC.ER/N.WCP.5","Water-Cooled","AC - ",">760000",5,"ER","Split",13.5,12.2,0,0,14.8,14,0,0,14.8,14,0,0,75,75,700,700]
[null,0,"Water-CooledHP - PackageER0","HP.ER/N.WCS.1","Water-Cooled","HP - ","<17000",0,"ER","Package",0,12.2,4.3,0,0,14,4.5999999999999996,0,0,14,4.5999999999999996,0,75,75,700,700]
[null,0,"Water-CooledHP - SplitER0","HP.ER/N.WCS.0","Water-Cooled","HP - ","<17000",0,"ER","Split",0,12.2,4.3,0,0,14,4.5999999999999996,0,0,14,4.5999999999999996,0,75,75,700,700]
[null,0,"Water-CooledHP - PackageER1","HP.ER/N.WCS.1","Water-Cooled","HP - ",">17000 & <65000",1,"ER","Package",0,13,4.3,0,0,14,4.5999999999999996,0,0,14,4.5999999999999996,0,75,75,700,700]
[null,0,"Water-CooledHP - SplitER1","HP.ER/N.WCP.1","Water-Cooled","HP - ",">17000 & <65000",1,"ER","Split",0,13,4.3,0,0,14,4.5999999999999996,0,0,14,4.5999999999999996,0,75,75,700,700]
[null,0,"Water-CooledHP - PackageER2","HP.ER/N.WCS.2","Water-Cooled","HP - ",">65000 & <135000",2,"ER","Package",0,13,4.3,0,0,14,4.5999999999999996,0,0,14,4.5999999999999996,0,75,75,700,700]
[null,0,"Water-CooledHP - SplitER2","HP.ER/N.WCP.2","Water-Cooled","HP - ",">65000 & <135000",2,"ER","Split",0,13,4.3,0,0,14,4.5999999999999996,0,0,14,4.5999999999999996,0,75,75,700,700]
[null,0,"Water-CooledHP - PackageER3","HP.ER/N.WCS.3","Water-Cooled","HP - ",">135000 & <240000",3,"ER","Package",0,13,4.3,0,0,14,4.5999999999999996,0,0,14,4.5999999999999996,0,75,75,700,700]
[null,0,"Water-CooledHP - SplitER3","HP.ER/N.WCP.3","Water-Cooled","HP - ",">135000 & <240000",3,"ER","Split",0,13,4.3,0,0,14,4.5999999999999996,0,0,14,4.5999999999999996,0,75,75,700,700]
[null,0,"Water-CooledHP - PackageER4","HP.ER/N.WCS.4","Water-Cooled","HP - ",">240000 & <760000",4,"ER","Package",0,13,4.3,0,0,14,4.5999999999999996,0,0,14,4.5999999999999996,0,75,75,700,700]
[null,0,"Water-CooledHP - SplitER4","HP.ER/N.WCP.4","Water-Cooled","HP - ",">240000 & <760000",4,"ER","Split",0,13,4.3,0,0,14,4.5999999999999996,0,0,14,4.5999999999999996,0,75,75,700,700]
[null,0,"Water-CooledHP - PackageER5","HP.ER/N.WCS.5","Water-Cooled","HP - ",">760000",5,"ER","Package",0,13,4.3,0,0,14,4.5999999999999996,0,0,14,4.5999999999999996,0,75,75,700,700]
[null,0,"Water-CooledHP - SplitER5","HP.ER/N.WCP.5","Water-Cooled","HP - ",">760000",5,"ER","Split",0,13,4.3,0,0,14,4.5999999999999996,0,0,14,4.5999999999999996,0,75,75,700,700]
[null,0,"Evap-CooledAC - PackageER0","AC.ER/N.ECS.1","Evap-Cooled","AC - ","<17000",0,"ER","Package",12.3,12.1,0,0,0,14,0,0,0,14,0,0,75,75,700,700]
[null,0,"Evap-CooledAC - SplitER0","AC.ER/N.ECP.1","Evap-Cooled","AC - ","<17000",0,"ER","Split",12.3,12.1,0,0,0,14,0,0,0,14,0,0,75,75,700,700]
[null,0,"Evap-CooledAC - PackageER1","AC.ER/N.ECS.1","Evap-Cooled","AC - ",">17000 & <65000",1,"ER","Package",12.3,12.1,0,0,0,14,0,0,0,14,0,0,75,75,700,700]
[null,0,"Evap-CooledAC - SplitER1","AC.ER/N.ECP.1","Evap-Cooled","AC - ",">17000 & <65000",1,"ER","Split",12.3,12.1,0,0,0,14,0,0,0,14,0,0,75,75,700,700]
[null,0,"Evap-CooledAC - PackageER2","AC.ER/N.ECS.2","Evap-Cooled","AC - ",">65000 & <135000",2,"ER","Package",12.3,12.1,0,0,15.3,14,0,0,15.3,14,0,0,75,75,700,700]
[null,0,"Evap-CooledAC - SplitER2","AC.ER/N.ECP.2","Evap-Cooled","AC - ",">65000 & <135000",2,"ER","Split",12.3,12.1,0,0,15.3,14,0,0,15.3,14,0,0,75,75,700,700]
[null,0,"Evap-CooledAC - PackageER3","AC.ER/N.ECS.3","Evap-Cooled","AC - ",">135000 & <240000",3,"ER","Package",12.2,12,0,0,14.3,13.5,0,0,14.3,13.5,0,0,75,75,700,700]
[null,0,"Evap-CooledAC - SplitER3","AC.ER/N.ECP.3","Evap-Cooled","AC - ",">135000 & <240000",3,"ER","Split",12.2,12,0,0,14.3,13.5,0,0,14.3,13.5,0,0,75,75,700,700]
[null,0,"Evap-CooledAC - PackageER4","AC.ER/N.ECS.4","Evap-Cooled","AC - ",">240000 & <760000",4,"ER","Package",12.1,11.9,0,0,14.3,13.5,0,0,14.3,13.5,0,0,75,75,700,700]
[null,0,"Evap-CooledAC - SplitER4","AC.ER/N.ECP.4","Evap-Cooled","AC - ",">240000 & <760000",4,"ER","Split",12.1,11.9,0,0,14.3,13.5,0,0,14.3,13.5,0,0,75,75,700,700]
[null,0,"Evap-CooledAC - PackageER5","AC.ER/N.ECS.5","Evap-Cooled","AC - ",">760000",5,"ER","Package",11.9,11.7,0,0,14.3,13.5,0,0,14.3,13.5,0,0,75,75,700,700]
[null,0,"Evap-CooledAC - SplitER5","AC.ER/N.ECP.5","Evap-Cooled","AC - ",">760000",5,"ER","Split",11.9,11.7,0,0,14.3,13.5,0,0,14.3,13.5,0,0,75,75,700,700]
[null,"Other","Air-CooledAC - PackageOther1","AC.OTHER.ACS.1","Air-Cooled","AC - ","<65000",1,"Other","Package",14,11.2,0,0,15,12,0,0,16,12,0,0,65,85,250,450]
[null,0,"Air-CooledAC - SplitOther1","AC.OTHER.ACP.1","Air-Cooled","AC - ","<65000",1,"Other","Split",14,11.2,0,0,15,12.5,0,0,16,13,0,0,65,85,250,450]
[null,0,"Air-CooledAC - PackageOther2","AC.OTHER.ACS.2","Air-Cooled","AC - ",">65000 & <135000",2,"Other","Package",12.7,11,0,0,13.8,12,0,0,14.6,12,0,0,65,85,150,300]
[null,0,"Air-CooledAC - SplitOther2","AC.OTHER.ACP.2","Air-Cooled","AC - ",">65000 & <135000",2,"Other","Split",12.7,11,0,0,13.8,12,0,0,14.6,12,0,0,65,85,150,300]
[null,0,"Air-CooledAC - PackageOther3","AC.OTHER.ACS.3","Air-Cooled","AC - ",">135000 & <240000",3,"Other","Package",12.2,10.8,0,0,13,12,0,0,14,12,0,0,65,85,150,300]
[null,0,"Air-CooledAC - SplitOther3","AC.OTHER.ACP.3","Air-Cooled","AC - ",">135000 & <240000",3,"Other","Split",12.2,10.8,0,0,13,12,0,0,14,12,0,0,65,85,150,300]
[null,0,"Air-CooledAC - PackageOther4","AC.OTHER.ACS.4","Air-Cooled","AC - ",">240000 & <760000",4,"Other","Package",11.4,9.8000000000000007,0,0,12.1,10.3,0,0,13,10.6,0,0,65,85,150,250]
[null,0,"Air-CooledAC - SplitOther4","AC.OTHER.ACP.4","Air-Cooled","AC - ",">240000 & <760000",4,"Other","Split",11.4,9.8000000000000007,0,0,12.1,10.3,0,0,13,10.6,0,0,65,85,150,250]
[null,0,"Air-CooledAC - PackageOther5","AC.OTHER.ACS.5","Air-Cooled","AC - ",">760000",5,"Other","Package",11,9.5,0,0,11.4,9.6999999999999993,0,0,12.1,10.199999999999999,0,0,65,85,150,250]
[null,0,"Air-CooledAC - SplitOther5","AC.OTHER.ACP.5","Air-Cooled","AC - ",">760000",5,"Other","Split",11,9.5,0,0,11.4,9.6999999999999993,0,0,12.1,10.199999999999999,0,0,65,85,150,250]
[null,0,"Air-CooledHP - PackageOther1","HP.OTHER.ACS.1","Air-Cooled","HP - ","<65000",1,"Other","Package",14,11,8,0,15,12,8.1999999999999993,0,16,12,8.1999999999999993,0,110,135,150,300]
[null,0,"Air-CooledHP - SplitOther1","HP.OTHER.ACP.1","Air-Cooled","HP - ","<65000",1,"Other","Split",14,11,8.1999999999999993,0,15,12.5,8.5,0,16,13,9,0,110,135,150,300]
[null,0,"Air-CooledHP - PackageOther2","HP.OTHER.ACS.2","Air-Cooled","HP - ",">65000 & <135000",2,"Other","Package",12,10.8,3.3,2.25,13.4,11.6,3.4,2.4,14.5,12.5,3.4,2.4,110,135,150,300]
[null,0,"Air-CooledHP - SplitOther2","HP.OTHER.ACP.2","Air-Cooled","HP - ",">65000 & <135000",2,"Other","Split",12,10.8,3.3,2.25,13.4,11.6,3.4,2.4,14.5,12.5,3.4,2.4,110,135,150,300]
[null,0,"Air-CooledHP - PackageOther3","HP.OTHER.ACS.3","Air-Cooled","HP - ",">135000 & <240000",3,"Other","Package",11.4,10.4,3.2,2.0499999999999998,12.6,10.7,3.3,2.1,13.5,11.399999999999999,3.3,2.1,110,135,150,250]
[null,0,"Air-CooledHP - SplitOther3","HP.OTHER.ACP.3","Air-Cooled","HP - ",">135000 & <240000",3,"Other","Split",11.4,10.4,3.2,2.0499999999999998,12.6,10.7,3.3,2.1,13.5,11.399999999999999,3.3,2.1,110,135,150,250]
[null,0,"Air-CooledHP - PackageOther4","HP.OTHER.ACS.4","Air-Cooled","HP - ",">240000 & <760000",4,"Other","Package",10.4,9.3000000000000007,3.2,2.0499999999999998,11.6,10.1,3.3,2.1,12.299999999999999,10.6,3.3,2.1,110,135,150,250]
[null,0,"Air-CooledHP - SplitOther4","HP.OTHER.ACP.4","Air-Cooled","HP - ",">240000 & <760000",4,"Other","Split",10.4,9.3000000000000007,3.2,2.0499999999999998,11.6,10.1,3.3,2.1,12.299999999999999,10.6,3.3,2.1,110,135,150,250]
[null,0,"Air-CooledHP - PackageOther5","HP.OTHER.ACS.5","Air-Cooled","HP - ",">760000",5,"Other","Package",10.4,9.3000000000000007,3.2,2.0499999999999998,11.6,10.1,3.3,2.1,12,10.299999999999999,3.3,2.1,110,135,150,250]
[null,0,"Air-CooledHP - SplitOther5","HP.OTHER.ACP.5","Air-Cooled","HP - ",">760000",5,"Other","Split",10.4,9.3000000000000007,3.2,2.0499999999999998,11.6,10.1,3.3,2.1,12,10.299999999999999,3.3,2.1,110,135,150,250]
[null,0,"Water-CooledAC - PackageOther0","AC.OTHER.WCS.1","Water-Cooled","AC - ","<17000",0,"Other","Package",12.3,12.1,0,0,0,14,0,0,0,14,0,0,75,75,700,700]
[null,0,"Water-CooledAC - SplitOther0","AC.OTHER.WCP.1","Water-Cooled","AC - ","<17000",0,"Other","Split",12.3,12.1,0,0,0,14,0,0,0,14,0,0,75,75,700,700]
[null,0,"Water-CooledAC - PackageOther1","AC.OTHER.WCS.1","Water-Cooled","AC - ",">17000 & <65000",1,"Other","Package",12.3,12.1,0,0,0,14,0,0,0,14,0,0,75,75,700,700]
[null,0,"Water-CooledAC - SplitOther1","AC.OTHER.WCP.1","Water-Cooled","AC - ",">17000 & <65000",1,"Other","Split",12.3,12.1,0,0,0,14,0,0,0,14,0,0,75,75,700,700]
[null,0,"Water-CooledAC - PackageOther2","AC.OTHER.WCS.2","Water-Cooled","AC - ",">65000 & <135000",2,"Other","Package",13.7,11.9,0,0,15.1,13.8,0,0,15.1,13.8,0,0,75,75,700,700]
[null,0,"Water-CooledAC - SplitOther2","AC.OTHER.WCP.2","Water-Cooled","AC - ",">65000 & <135000",2,"Other","Split",13.7,11.9,0,0,15.1,13.8,0,0,15.1,13.8,0,0,75,75,700,700]
[null,0,"Water-CooledAC - PackageOther3","AC.OTHER.WCS.3","Water-Cooled","AC - ",">135000 & <240000",3,"Other","Package",13.7,12.3,0,0,14.6,13.8,0,0,14.6,13.8,0,0,75,75,700,700]
[null,0,"Water-CooledAC - SplitOther3","AC.OTHER.WCP.3","Water-Cooled","AC - ",">135000 & <240000",3,"Other","Split",13.7,12.3,0,0,14.6,13.8,0,0,14.6,13.8,0,0,75,75,700,700]
[null,0,"Water-CooledAC - PackageOther4","AC.OTHER.WCS.4","Water-Cooled","AC - ",">240000 & <760000",4,"Other","Package",13.4,12.2,0,0,14.6,13.8,0,0,14.6,13.8,0,0,75,75,700,700]
[null,0,"Water-CooledAC - SplitOther4","AC.OTHER.WCP.4","Water-Cooled","AC - ",">240000 & <760000",4,"Other","Split",13.4,12.2,0,0,14.6,13.8,0,0,14.6,13.8,0,0,75,75,700,700]
[null,0,"Water-CooledAC - PackageOther5","AC.OTHER.WCS.5","Water-Cooled","AC - ",">760000",5,"Other","Package",13.3,12,0,0,14.6,13.8,0,0,14.6,13.8,0,0,75,75,700,700]
[null,0,"Water-CooledAC - SplitOther5","AC.OTHER.WCP.5","Water-Cooled","AC - ",">760000",5,"Other","Split",13.3,12,0,0,14.6,13.8,0,0,14.6,13.8,0,0,75,75,700,700]
[null,0,"Water-CooledHP - PackageOther0","HP.OTHER.WCS.1","Water-Cooled","HP - ","<17000",0,"Other","Package",0,12.2,4.3,0,0,14,4.5999999999999996,0,0,14,4.5999999999999996,0,75,75,700,700]
[null,0,"Water-CooledHP - SplitOther0","HP.OTHER.WCP.1","Water-Cooled","HP - ","<17000",0,"Other","Split",0,12.2,4.3,0,0,14,4.5999999999999996,0,0,14,4.5999999999999996,0,75,75,700,700]
[null,0,"Water-CooledHP - PackageOther1","HP.OTHER.WCS.1","Water-Cooled","HP - ",">17000 & <65000",1,"Other","Package",0,13,4.3,0,0,14,4.5999999999999996,0,0,14,4.5999999999999996,0,75,75,700,700]
[null,0,"Water-CooledHP - SplitOther1","HP.OTHER.WCP.1","Water-Cooled","HP - ",">17000 & <65000",1,"Other","Split",0,13,4.3,0,0,14,4.5999999999999996,0,0,14,4.5999999999999996,0,75,75,700,700]
[null,0,"Water-CooledHP - PackageOther2","HP.OTHER.WCS.2","Water-Cooled","HP - ",">65000 & <135000",2,"Other","Package",0,13,4.3,0,0,14,4.5999999999999996,0,0,14,4.5999999999999996,0,75,75,700,700]
[null,0,"Water-CooledHP - SplitOther2","HP.OTHER.WCP.2","Water-Cooled","HP - ",">65000 & <135000",2,"Other","Split",0,13,4.3,0,0,14,4.5999999999999996,0,0,14,4.5999999999999996,0,75,75,700,700]
[null,0,"Water-CooledHP - PackageOther3","HP.OTHER.WCS.3","Water-Cooled","HP - ",">135000 & <240000",3,"Other","Package",0,13,4.3,0,0,13.8,4.5999999999999996,0,0,13.8,4.5999999999999996,0,75,75,700,700]
[null,0,"Water-CooledHP - SplitOther3","HP.OTHER.WCP.3","Water-Cooled","HP - ",">135000 & <240000",3,"Other","Split",0,13,4.3,0,0,13.8,4.5999999999999996,0,0,13.8,4.5999999999999996,0,75,75,700,700]
[null,0,"Water-CooledHP - PackageOther4","HP.OTHER.WCS.4","Water-Cooled","HP - ",">240000 & <760000",4,"Other","Package",0,13,4.3,0,0,13.8,4.5999999999999996,0,0,13.8,4.5999999999999996,0,75,75,700,700]
[null,0,"Water-CooledHP - SplitOther4","HP.OTHER.WCP.4","Water-Cooled","HP - ",">240000 & <760000",4,"Other","Split",0,13,4.3,0,0,13.8,4.5999999999999996,0,0,13.8,4.5999999999999996,0,75,75,700,700]
[null,0,"Water-CooledHP - PackageOther5","HP.OTHER.WCS.5","Water-Cooled","HP - ",">760000",5,"Other","Package",0,13,4.3,0,0,13.8,4.5999999999999996,0,0,13.8,4.5999999999999996,0,75,75,700,700]
[null,0,"Water-CooledHP - SplitOther5","HP.OTHER.WCP.5","Water-Cooled","HP - ",">760000",5,"Other","Split",0,13,4.3,0,0,13.8,4.5999999999999996,0,0,13.8,4.5999999999999996,0,75,75,700,700]
[null,0,"Evap-CooledAC - PackageOther0","AC.OTHER.ECS.1","Evap-Cooled","AC - ","<17000",0,"Other","Package",12.3,12.1,0,0,0,14,0,0,0,14,0,0,75,75,700,700]
[null,0,"Evap-CooledAC - SplitOther0","AC.OTHER.ECP.1","Evap-Cooled","AC - ","<17000",0,"Other","Split",12.3,12.1,0,0,0,14,0,0,0,14,0,0,75,75,700,700]
[null,0,"Evap-CooledAC - PackageOther1","AC.OTHER.ECS.1","Evap-Cooled","AC - ",">17000 & <65000",1,"Other","Package",12.3,12.1,0,0,0,14,0,0,0,14,0,0,75,75,700,700]
[null,0,"Evap-CooledAC - SplitOther1","AC.OTHER.ECP.1","Evap-Cooled","AC - ",">17000 & <65000",1,"Other","Split",12.3,12.1,0,0,0,14,0,0,0,14,0,0,75,75,700,700]
[null,0,"Evap-CooledAC - PackageOther2","AC.OTHER.ECS.2","Evap-Cooled","AC - ",">65000 & <135000",2,"Other","Package",12.1,11.9,0,0,15.1,13.8,0,0,15.1,13.8,0,0,75,75,700,700]
[null,0,"Evap-CooledAC - SplitOther2","AC.OTHER.ECP.2","Evap-Cooled","AC - ",">65000 & <135000",2,"Other","Split",12.1,11.9,0,0,15.1,13.8,0,0,15.1,13.8,0,0,75,75,700,700]
[null,0,"Evap-CooledAC - PackageOther3","AC.OTHER.ECS.3","Evap-Cooled","AC - ",">135000 & <240000",3,"Other","Package",12,11.8,0,0,14.1,13.3,0,0,14.1,13.3,0,0,75,75,700,700]
[null,0,"Evap-CooledAC - SplitOther3","AC.OTHER.ECP.3","Evap-Cooled","AC - ",">135000 & <240000",3,"Other","Split",12,11.8,0,0,14.1,13.3,0,0,14.1,13.3,0,0,75,75,700,700]
[null,0,"Evap-CooledAC - PackageOther4","AC.OTHER.ECS.4","Evap-Cooled","AC - ",">240000 & <760000",4,"Other","Package",11.9,11.7,0,0,14.1,13.3,0,0,14.1,13.3,0,0,75,75,700,700]
[null,0,"Evap-CooledAC - SplitOther4","AC.OTHER.ECP.4","Evap-Cooled","AC - ",">240000 & <760000",4,"Other","Split",11.9,11.7,0,0,14.1,13.3,0,0,14.1,13.3,0,0,75,75,700,700]
[null,0,"Evap-CooledAC - PackageOther5","AC.OTHER.ECS.5","Evap-Cooled","AC - ",">760000",5,"Other","Package",11.7,11.5,0,0,14.1,13.3,0,0,14.1,13.3,0,0,75,75,700,700]
[null,0,"Evap-CooledAC - SplitOther5","AC.OTHER.ECP.5","Evap-Cooled","AC - ",">760000",5,"Other","Split",11.7,11.5,0,0,14.1,13.3,0,0,14.1,13.3,0,0,75,75,700,700]
[null,"PTAC/HP","Air-CooledPTAC1","PTAC.1","Air-Cooled","PTAC","<7000",1,null,null,13,13,0,0,13.3,13.3,0,0,13.3,13.3,0,0,40,40,100,100]
[null,0,"Air-CooledPTAC2","PTAC.2","Air-Cooled","PTAC",">7000 & <15000",2,null,null,10.7,10.7,0,0,11.9,11.9,0,0,11.9,11.9,0,0,40,40,100,100]
[null,0,"Air-CooledPTAC3","PTAC.3","Air-Cooled","PTAC",">15000",3,null,null,9.5,9.5,0,0,10.7,10.7,0,0,10.7,10.7,0,0,40,40,100,100]
[null,0,"Air-CooledPTHP1","PTHP.1","Air-Cooled","PTHP","<7000",1,null,null,13,13,3.5,0,13.3,13.3,3.6,0,13.3,13.3,3.6,0,40,40,150,150]
[null,0,"Air-CooledPTHP2","PTHP.2","Air-Cooled","PTHP",">7000 & <15000",2,null,null,10.7,10.7,3.1,0,11.5,11.5,3.2,0,11.5,11.5,3.2,0,40,40,150,150]
[null,0,"Air-CooledPTHP3","PTHP.3","Air-Cooled","PTHP",">15000",3,null,null,9.5,9.5,2.9,0,10.7,10.7,3,0,10.7,10.7,3,0,40,40,150,150]
[null,"VTAC/HP","Air-CooledVTAC1","VTAC.1","Air-Cooled","VTAC","<65000",1,null,null,10,10,0,0,10.7,10.7,0,0,10.7,10.7,0,0,75,75,150,150]
[null,null,"Air-CooledVTHP1","VTHP.1","Air-Cooled","VTHP","<65000",1,null,null,10,10,3,0,10.5,10.5,3.2,0,10.5,10.5,3.2,0,75,75,150,150]
[null,"Multi-Split VRF","Air-CooledMSACV1","MSAC.AC.1","Air-Cooled","MSACV","<65000",1,null,null,13,11.4,0,0,15,12.5,0,0,15,12.5,0,0,75,75,250,450]
[null,0,"Air-CooledMSACV2","MSAC.AC.2","Air-Cooled","MSACV",">65000 & <135000",2,null,null,13.1,11.2,0,0,14.9,11.7,0,0,14.9,11.7,0,0,75,75,150,300]
[null,0,"Air-CooledMSACV3","MSAC.AC.3","Air-Cooled","MSACV",">135000 & <240000",3,null,null,12.9,11,0,0,14.4,11.7,0,0,14.4,11.7,0,0,75,75,150,300]
[null,0,"Air-CooledMSACV4","MSAC.AC.4","Air-Cooled","MSACV",">240000 & <760000",4,null,null,11.6,10,0,0,13,10.5,0,0,13,10.5,0,0,75,75,150,250]
[null,0,"Air-CooledMSACV5","MSAC.AC.5","Air-Cooled","MSACV",">760000",5,null,null,11.6,10,0,0,13,10.5,0,0,13,10.5,0,0,75,75,150,250]
[null,0,"Air-CooledMSHPVH1","MSHP.ACH.1","Air-Cooled","MSHPVH","<65000",1,null,null,13,11.4,7.7,0,15,12.5,8.5,0,15,12.5,8.5,0,75,75,150,300]
[null,0,"Air-CooledMSHPV1","MSHP.AC.1","Air-Cooled","MSHPV","<65000",1,null,null,13,11.4,7.7,0,15,12.5,8.5,0,15,12.5,8.5,0,75,75,150,300]
[null,0,"Air-CooledMSHPVH2","MSHP.ACH.2","Air-Cooled","MSHPVH",">65000 & <135000",2,null,null,12.3,11,3.3,2.25,14.2,11.3,3.4,2.4,14.2,11.3,3.4,2.4,75,75,150,300]
[null,0,"Air-CooledMSHPV2","MSHP.AC.2","Air-Cooled","MSHPV",">65000 & <135000",2,null,null,12.1,11,3.3,2.25,14,11.1,3.4,2.4,14,11.1,3.4,2.4,75,75,150,300]
[null,0,"Air-CooledMSHPVH3","MSHP.ACH.3","Air-Cooled","MSHPVH",">135000 & <240000",3,null,null,11.6,10.6,3.2,2.0499999999999998,13.7,10.9,3.2,2.1,13.7,10.9,3.2,2.1,75,75,150,250]
[null,0,"Air-CooledMSHPV3","MSHP.AC.3","Air-Cooled","MSHPV",">135000 & <240000",3,null,null,11.6,10.6,3.2,2.0499999999999998,13.5,10.7,3.2,2.1,13.5,10.7,3.2,2.1,75,75,150,250]
[null,0,"Air-CooledMSHPVH4","MSHP.ACH.4","Air-Cooled","MSHPVH",">240000 & <760000",4,null,null,11.6,9.5,3.2,2.0499999999999998,12.5,10.3,3.2,2.1,12.5,10.3,3.2,2.1,75,75,150,250]
[null,0,"Air-CooledMSHPV4","MSHP.AC.4","Air-Cooled","MSHPV",">240000 & <760000",4,null,null,10.4,9.5,3.2,2.0499999999999998,12.3,10.1,3.2,2.1,12.3,10.1,3.2,2.1,75,75,150,250]
[null,0,"Air-CooledMSHPVH5","MSHP.ACH.5","Air-Cooled","MSHPVH",">760000",5,null,null,11.6,9.5,3.2,2.0499999999999998,12.5,10.3,3.2,2.1,12.5,10.3,3.2,2.1,75,75,150,250]
[null,0,"Air-CooledMSHPV5","MSHP.AC.5","Air-Cooled","MSHPV",">760000",5,null,null,10.4,9.5,3.2,2.0499999999999998,12.3,10.1,3.2,2.1,12.3,10.1,3.2,2.1,75,75,150,250]
[null,0,"Water-CooledMSACV0","MSAC.WC.1","Water-Cooled","MSACV","<17000",0,null,null,13,12,0,0,0,14,0,0,0,14,0,0,75,75,250,450]
[null,0,"Water-CooledMSACV1","MSAC.WC.1","Water-Cooled","MSACV",">17000 & <65000",1,null,null,13,12,0,0,0,14,0,0,0,14,0,0,75,75,250,450]
[null,0,"Water-CooledMSACV2","MSAC.WC.2","Water-Cooled","MSACV",">65000 & <135000",2,null,null,12.3,12,0,0,14,14,0,0,14,14,0,0,75,75,150,300]
[null,0,"Water-CooledMSACV3","MSAC.WC.3","Water-Cooled","MSACV",">135000 & <240000",3,null,null,11.6,10.6,0,0,13.8,13.5,0,0,13.8,13.5,0,0,75,75,150,300]
[null,0,"Water-CooledMSACV4","MSAC.WC.4","Water-Cooled","MSACV",">240000 & <760000",4,null,null,11.6,10,0,0,13.8,13.5,0,0,13.8,13.5,0,0,75,75,150,300]
[null,0,"Water-CooledMSACV5","MSAC.WC.5","Water-Cooled","MSACV",">760000",5,null,null,11.6,10,0,0,13.8,13.5,0,0,13.8,13.5,0,0,75,75,150,300]
[null,0,"Water-CooledMSHPVH0","MSHP.WCH.1","Water-Cooled","MSHPVH","<17000",0,null,null,13,12,4.2,0,0,14,4.5999999999999996,0,0,14,4.5999999999999996,0,75,75,700,700]
[null,0,"Water-CooledMSHPV0","MSHP.WC.1","Water-Cooled","MSHPV","<17000",0,null,null,13,11.8,4.2,0,0,13.8,4.5999999999999996,0,0,13.8,4.5999999999999996,0,75,75,700,700]
[null,0,"Water-CooledMSHPVH1","MSHP.WCH.1","Water-Cooled","MSHPVH",">17000 & <65000",1,null,null,13,12,4.2,0,0,14,4.5999999999999996,0,0,14,4.5999999999999996,0,75,75,700,700]
[null,0,"Water-CooledMSHPV1","MSHP.WC.1","Water-Cooled","MSHPV",">17000 & <65000",1,null,null,13,12,4.2,0,0,13.8,4.5999999999999996,0,0,13.8,4.5999999999999996,0,75,75,700,700]
[null,0,"Water-CooledMSHPVH2","MSHP.WCH.2","Water-Cooled","MSHPVH",">65000 & <135000",2,null,null,12.3,12,4.2,2.25,0,14,4.5999999999999996,0,0,14,4.5999999999999996,0,75,75,700,700]
[null,0,"Water-CooledMSHPV2","MSHP.WC.2","Water-Cooled","MSHPV",">65000 & <135000",2,null,null,12.1,12,4.2,2.25,0,13.8,4.5999999999999996,0,0,13.8,4.5999999999999996,0,75,75,700,700]
[null,0,"Water-CooledMSHPVH3","MSHP.WCH.3","Water-Cooled","MSHPVH",">135000 & <240000",3,null,null,11.6,10.6,3.9,2.0499999999999998,0,13.5,4.2,0,0,13.5,4.2,0,75,75,700,700]
[null,0,"Water-CooledMSHPV3","MSHP.WC.3","Water-Cooled","MSHPV",">135000 & <240000",3,null,null,11.6,10.4,3.9,2.0499999999999998,0,13.3,4.2,0,0,13.3,4.2,0,75,75,700,700]
[null,0,"Water-CooledMSHPVH4","MSHP.WCH.4","Water-Cooled","MSHPVH",">240000 & <760000",4,null,null,11.6,10,3.9,2.0499999999999998,0,12.8,4.2,0,0,12.8,4.2,0,75,75,700,700]
[null,0,"Water-CooledMSHPV4","MSHP.WC.4","Water-Cooled","MSHPV",">240000 & <760000",4,null,null,10.4,9.8000000000000007,3.9,2.0499999999999998,0,12.600000000000001,4.2,0,0,12.600000000000001,4.2,0,75,75,700,700]
[null,0,"Water-CooledMSHPVH5","MSHP.WCH.5","Water-Cooled","MSHPVH",">760000",5,null,null,11.6,10,3.9,2.0499999999999998,0,12.8,4.2,0,0,12.8,4.2,0,75,75,700,700]
[null,0,"Water-CooledMSHPV5","MSHP.WC.5","Water-Cooled","MSHPV",">760000",5,null,null,10.4,9.8000000000000007,3.9,2.0499999999999998,0,12.600000000000001,4.2,0,0,12.600000000000001,4.2,0,75,75,700,700]
[null,0,"Evap-CooledMSACV0","MSAC.EC.1","Evap-Cooled","MSACV","<17000",0,null,null,13,12,0,0,0,14,0,0,0,14,0,0,75,75,250,450]
[null,0,"Evap-CooledMSACV1","MSAC.EC.1","Evap-Cooled","MSACV",">17000 & <65000",1,null,null,13,12,0,0,0,14,0,0,0,14,0,0,75,75,250,450]
[null,0,"Evap-CooledMSACV2","MSAC.EC.2","Evap-Cooled","MSACV",">65000 & <135000",2,null,null,12.3,12,0,0,15.3,14,0,0,15.3,14,0,0,75,75,150,300]
[null,0,"Evap-CooledMSACV3","MSAC.EC.3","Evap-Cooled","MSACV",">135000 & <240000",3,null,null,11.6,10.6,0,0,14.3,13.5,0,0,14.3,13.5,0,0,75,75,150,300]
[null,0,"Evap-CooledMSACV4","MSAC.EC.4","Evap-Cooled","MSACV",">240000 & <760000",4,null,null,11.6,10,0,0,14.3,13.5,0,0,14.3,13.5,0,0,75,75,150,300]
[null,0,"Evap-CooledMSACV5","MSAC.EC.5","Evap-Cooled","MSACV",">760000",5,null,null,11.6,10,0,0,14.3,13.5,0,0,14.3,13.5,0,0,75,75,150,300]
[]
[]
[null,null,"Chiller Lookup Values",2,3,4,5,6,7,8,9,10,11,12,13,14,15,16,17,18,19,20,21,22]
[null,null,"ID","Equipment Code","Heat Rejection","VFD?","Type","Size","Size ID","Code Minimum COP (COP)","Code COP (kW/ton)","Code Minimum FL (EER)","Code Minimum FL (kW/Ton)","Code Minimum IPLV (EER)","Code IPLV (kW/Ton)","DEER Baseline Incr Cost ($/Ton)","DEER Efficiency Incr Cost ($/Ton)","($/Ton/(0.1 kW/Ton) increase)","SRP Rebate Minimum FL kW/Ton (EER)","SRP Rebate Minimum FL kW/Ton (kW/Ton)","SRP Rebate Minimum IPLV (EER)","SRP Rebate Minimum IPLV (kW/Ton)","SRP Baseline Rebate ($/Ton)","SRP Efficiency Rebate ($/Ton/0.1 kW/Ton)"]
[null,"VFD = Yes","Air-CooledCentrifugalYes1","CTFGL.ACPL.1","Air-Cooled","Yes","Centrifugal","<75",1,2.8024618991793666,1.2549675800041835,9.6999999999999993,1.24,15.8,0.76,445.89673980058745,42.339587093587625,16.80142344983636,10.399999999999999,1.1499999999999999,17,0.71,5,310]
[null,null,"Air-CooledCentrifugalYes2","CTFGL.ACPL.2","Air-Cooled","Yes","Centrifugal","≥75 and <150",2,2.8024618991793666,1.2549675800041835,9.6999999999999993,1.24,15.8,0.76,445.89673980058745,42.339587093587625,16.80142344983636,10.399999999999999,1.1499999999999999,17,0.71,5,310]
[null,null,"Air-CooledCentrifugalYes3","CTFGL.ACPL.3","Air-Cooled","Yes","Centrifugal","≥150 and <300",3,2.8024618991793666,1.2549675800041835,9.6999999999999993,1.24,16.100000000000001,0.75,445.89673980058745,42.339587093587625,16.80142344983636,10.7,1.1200000000000001,17.700000000000003,0.68,5,310]
[null,null,"Air-CooledCentrifugalYes4","CTFGL.ACPL.4","Air-Cooled","Yes","Centrifugal","≥300 and <600",4,2.8024618991793666,1.2549675800041835,9.6999999999999993,1.24,16.100000000000001,0.75,445.89673980058745,42.339587093587625,16.80142344983636,10.7,1.1200000000000001,17.700000000000003,0.68,5,310]
[null,null,"Air-CooledCentrifugalYes5","CTFGL.ACPL.5","Air-Cooled","Yes","Centrifugal","≥600",5,2.8024618991793666,1.2549675800041835,9.6999999999999993,1.24,16.100000000000001,0.75,445.89673980058745,42.339587093587625,16.80142344983636,10.7,1.1200000000000001,17.700000000000003,0.68,5,310]
[null,null,"Air-CooledReciprocatingYes1","RECIP.ACPL.1","Air-Cooled","Yes","Reciprocating","<75",1,2.8024618991793666,1.2549675800041835,9.6999999999999993,1.24,15.8,0.76,448.95363636363641,39.935252525252508,15.847322430655757,10.399999999999999,1.1499999999999999,17,0.71,5,310]
[null,null,"Air-CooledReciprocatingYes2","RECIP.ACPL.2","Air-Cooled","Yes","Reciprocating","≥75 and <150",2,2.8024618991793666,1.2549675800041835,9.6999999999999993,1.24,15.8,0.76,448.95363636363641,39.935252525252508,15.847322430655757,10.399999999999999,1.1499999999999999,17,0.71,5,310]
[null,null,"Air-CooledReciprocatingYes3","RECIP.ACPL.3","Air-Cooled","Yes","Reciprocating","≥150 and <300",3,2.8024618991793666,1.2549675800041835,9.6999999999999993,1.24,16.100000000000001,0.75,448.95363636363641,39.935252525252508,15.847322430655757,10.7,1.1200000000000001,17.700000000000003,0.68,5,310]
[null,null,"Air-CooledReciprocatingYes4","RECIP.ACPL.4","Air-Cooled","Yes","Reciprocating","≥300 and <600",4,2.8024618991793666,1.2549675800041835,9.6999999999999993,1.24,16.100000000000001,0.75,448.95363636363641,39.935252525252508,15.847322430655757,10.7,1.1200000000000001,17.700000000000003,0.68,5,310]
[null,null,"Air-CooledReciprocatingYes5","RECIP.ACPL.5","Air-Cooled","Yes","Reciprocating","≥600",5,2.8024618991793666,1.2549675800041835,9.6999999999999993,1.24,16.100000000000001,0.75,448.95363636363641,39.935252525252508,15.847322430655757,10.7,1.1200000000000001,17.700000000000003,0.68,5,310]
[null,null,"Air-CooledRotaryYes1","ROTRY.ACPL.1","Air-Cooled","Yes","Rotary","<75",1,2.8024618991793666,1.2549675800041835,9.6999999999999993,1.24,15.8,0.76,445.89673980058745,42.339587093587625,16.80142344983636,10.399999999999999,1.1499999999999999,17,0.71,5,310]
[null,null,"Air-CooledRotaryYes2","ROTRY.ACPL.2","Air-Cooled","Yes","Rotary","≥75 and <150",2,2.8024618991793666,1.2549675800041835,9.6999999999999993,1.24,15.8,0.76,445.89673980058745,42.339587093587625,16.80142344983636,10.399999999999999,1.1499999999999999,17,0.71,5,310]
[null,null,"Air-CooledRotaryYes3","ROTRY.ACPL.3","Air-Cooled","Yes","Rotary","≥150 and <300",3,2.8024618991793666,1.2549675800041835,9.6999999999999993,1.24,16.100000000000001,0.75,445.89673980058745,42.339587093587625,16.80142344983636,10.7,1.1200000000000001,17.700000000000003,0.68,5,310]
[null,null,"Air-CooledRotaryYes4","ROTRY.ACPL.4","Air-Cooled","Yes","Rotary","≥300 and <600",4,2.8024618991793666,1.2549675800041835,9.6999999999999993,1.24,16.100000000000001,0.75,445.89673980058745,42.339587093587625,16.80142344983636,10.7,1.1200000000000001,17.700000000000003,0.68,5,310]
[null,null,"Air-CooledRotaryYes5","ROTRY.ACPL.5","Air-Cooled","Yes","Rotary","≥600",5,2.8024618991793666,1.2549675800041835,9.6999999999999993,1.24,16.100000000000001,0.75,445.89673980058745,42.339587093587625,16.80142344983636,10.7,1.1200000000000001,17.700000000000003,0.68,5,310]
[null,null,"Air-CooledScrewYes1","SCREW.ACPL.1","Air-Cooled","Yes","Screw","<75",1,2.8024618991793666,1.2549675800041835,9.6999999999999993,1.24,15.8,0.76,445.89673980058745,42.339587093587625,16.80142344983636,10.399999999999999,1.1499999999999999,17,0.71,5,310]
[null,null,"Air-CooledScrewYes2","SCREW.ACPL.2","Air-Cooled","Yes","Screw","≥75 and <150",2,2.8024618991793666,1.2549675800041835,9.6999999999999993,1.24,15.8,0.76,445.89673980058745,42.339587093587625,16.80142344983636,10.399999999999999,1.1499999999999999,17,0.71,5,310]
[null,null,"Air-CooledScrewYes3","SCREW.ACPL.3","Air-Cooled","Yes","Screw","≥150 and <300",3,2.8024618991793666,1.2549675800041835,9.6999999999999993,1.24,16.100000000000001,0.75,445.89673980058745,42.339587093587625,16.80142344983636,10.7,1.1200000000000001,17.700000000000003,0.68,5,310]
[null,null,"Air-CooledScrewYes4","SCREW.ACPL.4","Air-Cooled","Yes","Screw","≥300 and <600",4,2.8024618991793666,1.2549675800041835,9.6999999999999993,1.24,16.100000000000001,0.75,445.89673980058745,42.339587093587625,16.80142344983636,10.7,1.1200000000000001,17.700000000000003,0.68,5,310]
[null,null,"Air-CooledScrewYes5","SCREW.ACPL.5","Air-Cooled","Yes","Screw","≥600",5,2.8024618991793666,1.2549675800041835,9.6999999999999993,1.24,16.100000000000001,0.75,445.89673980058745,42.339587093587625,16.80142344983636,10.7,1.1200000000000001,17.700000000000003,0.68,5,310]
[null,null,"Air-CooledScrollYes1","SCRLL.ACPL.1","Air-Cooled","Yes","Scroll","<75",1,2.8024618991793666,1.2549675800041835,9.6999999999999993,1.24,15.8,0.76,445.89673980058745,42.339587093587625,16.80142344983636,10.399999999999999,1.1499999999999999,17,0.71,5,310]
[null,null,"Air-CooledScrollYes2","SCRLL.ACPL.2","Air-Cooled","Yes","Scroll","≥75 and <150",2,2.8024618991793666,1.2549675800041835,9.6999999999999993,1.24,15.8,0.76,445.89673980058745,42.339587093587625,16.80142344983636,10.399999999999999,1.1499999999999999,17,0.71,5,310]
[null,null,"Air-CooledScrollYes3","SCRLL.ACPL.3","Air-Cooled","Yes","Scroll","≥150 and <300",3,2.8024618991793666,1.2549675800041835,9.6999999999999993,1.24,16.100000000000001,0.75,445.89673980058745,42.339587093587625,16.80142344983636,10.7,1.1200000000000001,17.700000000000003,0.68,5,310]
[null,null,"Air-CooledScrollYes4","SCRLL.ACPL.4","Air-Cooled","Yes","Scroll","≥300 and <600",4,2.8024618991793666,1.2549675800041835,9.6999999999999993,1.24,16.100000000000001,0.75,445.89673980058745,42.339587093587625,16.80142344983636,10.7,1.1200000000000001,17.700000000000003,0.68,5,310]
[null,null,"Air-CooledScrollYes5","SCRLL.ACPL.5","Air-Cooled","Yes","Scroll","≥600",5,2.8024618991793666,1.2549675800041835,9.6999999999999993,1.24,16.100000000000001,0.75,445.89673980058745,42.339587093587625,16.80142344983636,10.7,1.1200000000000001,17.700000000000003,0.68,5,310]
[null,null,"Water-CooledCentrifugalYes1","CTFGL.WCPL.1","Water-Cooled","Yes","Centrifugal","<75",1,5.5039105284304499,0.63900000000000001,17.3,0.69499999999999995,27.3,0.44,468.68792761740599,145.51913915158866,196.6474853399848,19.2,0.625,30,0.4,5,310]
[null,null,"Water-CooledCentrifugalYes2","CTFGL.WCPL.2","Water-Cooled","Yes","Centrifugal","≥75 and <150",2,5.5039105284304499,0.63900000000000001,17.3,0.69499999999999995,27.3,0.44,468.68792761740599,145.51913915158866,196.6474853399848,18.899999999999999,0.63500000000000001,30,0.4,5,310]
[null,null,"Water-CooledCentrifugalYes3","CTFGL.WCPL.3","Water-Cooled","Yes","Centrifugal","≥150 and <300",3,5.5039105284304499,0.63900000000000001,18.899999999999999,0.63500000000000001,30,0.4,338.7655378428837,93.841774058426779,73.891160675926599,20.5,0.58499999999999996,32.4,0.37,5,310]
[null,null,"Water-CooledCentrifugalYes4","CTFGL.WCPL.4","Water-Cooled","Yes","Centrifugal","≥300 and <400",4,5.8616647127784294,0.6,20.2,0.59499999999999997,30.8,0.39,267.71423093494184,65.580715023103664,57.026708715742352,22,0.54499999999999993,33.299999999999997,0.36,5,310]
[null,null,"Water-CooledCentrifugalYes5","CTFGL.WCPL.5","Water-Cooled","Yes","Centrifugal","≥400 and <600",5,5.9610149621475559,0.59,20.5,0.58499999999999996,31.6,0.38,267.71423093494184,65.580715023103664,57.026708715742352,22.4,0.53499999999999992,34.299999999999997,0.35,5,310]
[null,null,"Water-CooledCentrifugalYes6","CTFGL.WCPL.6","Water-Cooled","Yes","Centrifugal","≥600",6,5.9610149621475559,0.59,20.5,0.58499999999999996,31.6,0.38,267.71423093494184,65.580715023103664,57.026708715742352,22.4,0.53499999999999992,34.299999999999997,0.35,5,310]
[null,null,"Water-CooledRotaryYes1","ROTRY.WCPL.1","Water-Cooled","Yes","Rotary","<75",1,4.3962485345838216,0.8,15.4,0.78,24,0.5,443.38924926972516,49.053878122290939,31.046758305247423,17.100000000000001,0.70000000000000007,26.7,0.45,5,310]
[null,null,"Water-CooledRotaryYes2","ROTRY.WCPL.2","Water-Cooled","Yes","Rotary","≥75 and <150",2,4.4518972502114647,0.79000000000000015,16,0.75,24.5,0.49,443.38924926972516,49.053878122290939,31.046758305247423,17.399999999999999,0.69,26.7,0.45,5,310]
[null,null,"Water-CooledRotaryYes3","ROTRY.WCPL.3","Water-Cooled","Yes","Rotary","≥150 and <300",3,4.8983270580321134,0.71800000000000008,17.600000000000001,0.68,27.3,0.44,346.94119633464976,25.474144365156633,17.690378031358772,19,0.63,30,0.4,5,310]
[null,null,"Water-CooledRotaryYes4","ROTRY.WCPL.4","Water-Cooled","Yes","Rotary","≥300 and <600",4,5.5039105284304499,0.63900000000000001,19.2,0.625,29.3,0.41,275.83630822489715,11.398920686211682,8.9054067861028763,20.9,0.57499999999999996,31.6,0.38,5,310]
[null,null,"Water-CooledRotaryYes5","ROTRY.WCPL.5","Water-Cooled","Yes","Rotary","≥600",5,5.5039105284304499,0.63900000000000001,20.5,0.58499999999999996,31.6,0.38,275.83630822489715,11.398920686211682,8.9054067861028763,22.4,0.53499999999999992,34.299999999999997,0.35,5,310]
[null,null,"Water-CooledReciprocatingYes1","RECIP.WCPL.1","Water-Cooled","Yes","Reciprocating","<75",1,4.3962485345838216,0.8,15.4,0.78,24,0.5,462.58824239497829,16.274341238578074,9.8632371142897473,17.100000000000001,0.70000000000000007,26.7,0.45,5,310]
[null,null,"Water-CooledReciprocatingYes2","RECIP.WCPL.2","Water-Cooled","Yes","Reciprocating","≥75 and <150",2,4.4518972502114647,0.79000000000000015,16,0.75,24.5,0.49,462.58824239497829,16.274341238578074,9.8632371142897473,17.399999999999999,0.69,26.7,0.45,5,310]
[null,null,"Water-CooledReciprocatingYes3","RECIP.WCPL.3","Water-Cooled","Yes","Reciprocating","≥150 and <300",3,4.8983270580321134,0.71800000000000008,17.600000000000001,0.68,27.3,0.44,462.58824239497829,16.274341238578074,9.8632371142897473,19,0.63,30,0.4,5,310]
[null,null,"Water-CooledReciprocatingYes4","RECIP.WCPL.4","Water-Cooled","Yes","Reciprocating","≥300 and <600",4,5.5039105284304499,0.63900000000000001,19.2,0.625,29.3,0.41,462.58824239497829,16.274341238578074,9.8632371142897473,20.9,0.57499999999999996,31.6,0.38,5,310]
[null,null,"Water-CooledReciprocatingYes5","RECIP.WCPL.5","Water-Cooled","Yes","Reciprocating","≥600",5,5.5039105284304499,0.63900000000000001,20.5,0.58499999999999996,31.6,0.38,462.58824239497829,16.274341238578074,9.8632371142897473,22.4,0.53499999999999992,34.299999999999997,0.35,5,310]
[null,null,"Water-CooledScrewYes1","SCREW.WCPL.1","Water-Cooled","Yes","Screw","<75",1,4.3962485345838216,0.8,15.4,0.78,24,0.5,443.38924926972516,49.053878122290939,31.046758305247423,17.100000000000001,0.70000000000000007,26.7,0.45,5,310]
[null,null,"Water-CooledScrewYes2","SCREW.WCPL.2","Water-Cooled","Yes","Screw","≥75 and <150",2,4.4518972502114647,0.79000000000000015,16,0.75,24.5,0.49,443.38924926972516,49.053878122290939,31.046758305247423,17.399999999999999,0.69,26.7,0.45,5,310]
[null,null,"Water-CooledScrewYes3","SCREW.WCPL.3","Water-Cooled","Yes","Screw","≥150 and <300",3,4.8983270580321134,0.71800000000000008,17.600000000000001,0.68,27.3,0.44,346.94119633464976,25.474144365156633,17.690378031358772,19,0.63,30,0.4,5,310]
[null,null,"Water-CooledScrewYes4","SCREW.WCPL.4","Water-Cooled","Yes","Screw","≥300 and <600",4,5.5039105284304499,0.63900000000000001,19.2,0.625,29.3,0.41,275.83630822489715,11.398920686211682,8.9054067861028763,20.9,0.57499999999999996,31.6,0.38,5,310]
[null,null,"Water-CooledScrewYes5","SCREW.WCPL.5","Water-Cooled","Yes","Screw","≥600",5,5.5039105284304499,0.63900000000000001,20.5,0.58499999999999996,31.6,0.38,275.83630822489715,11.398920686211682,8.9054067861028763,22.4,0.53499999999999992,34.299999999999997,0.35,5,310]
[null,null,"Water-CooledScrollYes1","SCRLL.WCPL.1","Water-Cooled","Yes","Scroll","<75",1,4.3962485345838216,0.8,15.4,0.78,24,0.5,443.38924926972516,49.053878122290939,31.046758305247423,17.100000000000001,0.70000000000000007,26.7,0.45,5,310]
[null,null,"Water-CooledScrollYes2","SCRLL.WCPL.2","Water-Cooled","Yes","Scroll","≥75 and <150",2,4.4518972502114647,0.79000000000000015,16,0.75,24.5,0.49,443.38924926972516,49.053878122290939,31.046758305247423,17.399999999999999,0.69,26.7,0.45,5,310]
[null,null,"Water-CooledScrollYes3","SCRLL.WCPL.3","Water-Cooled","Yes","Scroll","≥150 and <300",3,4.8983270580321134,0.71800000000000008,17.600000000000001,0.68,27.3,0.44,346.94119633464976,25.474144365156633,17.690378031358772,19,0.63,30,0.4,5,310]
[null,null,"Water-CooledScrollYes4","SCRLL.WCPL.4","Water-Cooled","Yes","Scroll","≥300 and <600",4,5.5039105284304499,0.63900000000000001,19.2,0.625,29.3,0.41,275.83630822489715,11.398920686211682,8.9054067861028763,20.9,0.57499999999999996,31.6,0.38,5,310]
[null,null,"Water-CooledScrollYes5","SCRLL.WCPL.5","Water-Cooled","Yes","Scroll","≥600",5,5.5039105284304499,0.63900000000000001,20.5,0.58499999999999996,31.6,0.38,275.83630822489715,11.398920686211682,8.9054067861028763,22.4,0.53499999999999992,34.299999999999997,0.35,5,310]
[null,"VFD = No","Air-CooledCentrifugalNo1","CTFGL.ACFL.1","Air-Cooled","No","Centrifugal","<75",1,2.8024618991793666,1.2549675800041835,10.1,1.19,13.7,0.88,445.89673980058745,42.339587093587625,16.80142344983636,10.9,1.1000000000000001,14.7,0.82,5,310]
[null,null,"Air-CooledCentrifugalNo2","CTFGL.ACFL.2","Air-Cooled","No","Centrifugal","≥75 and <150",2,2.8024618991793666,1.2549675800041835,10.1,1.19,13.7,0.88,445.89673980058745,42.339587093587625,16.80142344983636,10.9,1.1000000000000001,14.7,0.82,5,310]
[null,null,"Air-CooledCentrifugalNo3","CTFGL.ACFL.3","Air-Cooled","No","Centrifugal","≥150 and <300",3,2.8024618991793666,1.2549675800041835,10.1,1.19,14,0.86,445.89673980058745,42.339587093587625,16.80142344983636,11.1,1.08,15.4,0.78,5,310]
[null,null,"Air-CooledCentrifugalNo4","CTFGL.ACFL.4","Air-Cooled","No","Centrifugal","≥300 and <600",4,2.8024618991793666,1.2549675800041835,10.1,1.19,14,0.86,445.89673980058745,42.339587093587625,16.80142344983636,11.1,1.08,15.4,0.78,5,310]
[null,null,"Air-CooledCentrifugalNo5","CTFGL.ACFL.5","Air-Cooled","No","Centrifugal","≥600",5,2.8024618991793666,1.2549675800041835,10.1,1.19,14,0.86,445.89673980058745,42.339587093587625,16.80142344983636,11.1,1.08,15.4,0.78,5,310]
[null,null,"Air-CooledReciprocatingNo1","RECIP.ACFL.1","Air-Cooled","No","Reciprocating","<75",1,2.8024618991793666,1.2549675800041835,10.1,1.19,13.7,0.88,448.95363636363641,39.935252525252508,15.847322430655757,10.9,1.1000000000000001,14.7,0.82,5,310]
[null,null,"Air-CooledReciprocatingNo2","RECIP.ACFL.2","Air-Cooled","No","Reciprocating","≥75 and <150",2,2.8024618991793666,1.2549675800041835,10.1,1.19,13.7,0.88,448.95363636363641,39.935252525252508,15.847322430655757,10.9,1.1000000000000001,14.7,0.82,5,310]
[null,null,"Air-CooledReciprocatingNo3","RECIP.ACFL.3","Air-Cooled","No","Reciprocating","≥150 and <300",3,2.8024618991793666,1.2549675800041835,10.1,1.19,14,0.86,448.95363636363641,39.935252525252508,15.847322430655757,11.1,1.08,15.4,0.78,5,310]
[null,null,"Air-CooledReciprocatingNo4","RECIP.ACFL.4","Air-Cooled","No","Reciprocating","≥300 and <600",4,2.8024618991793666,1.2549675800041835,10.1,1.19,14,0.86,448.95363636363641,39.935252525252508,15.847322430655757,11.1,1.08,15.4,0.78,5,310]
[null,null,"Air-CooledReciprocatingNo5","RECIP.ACFL.5","Air-Cooled","No","Reciprocating","≥600",5,2.8024618991793666,1.2549675800041835,10.1,1.19,14,0.86,448.95363636363641,39.935252525252508,15.847322430655757,11.1,1.08,15.4,0.78,5,310]
[null,null,"Air-CooledRotaryNo1","ROTRY.ACFL.1","Air-Cooled","No","Rotary","<75",1,2.8024618991793666,1.2549675800041835,10.1,1.19,13.7,0.88,445.89673980058745,42.339587093587625,16.80142344983636,10.9,1.1000000000000001,14.7,0.82,5,310]
[null,null,"Air-CooledRotaryNo2","ROTRY.ACFL.2","Air-Cooled","No","Rotary","≥75 and <150",2,2.8024618991793666,1.2549675800041835,10.1,1.19,13.7,0.88,445.89673980058745,42.339587093587625,16.80142344983636,10.9,1.1000000000000001,14.7,0.82,5,310]
[null,null,"Air-CooledRotaryNo3","ROTRY.ACFL.3","Air-Cooled","No","Rotary","≥150 and <300",3,2.8024618991793666,1.2549675800041835,10.1,1.19,14,0.86,445.89673980058745,42.339587093587625,16.80142344983636,11.1,1.08,15.4,0.78,5,310]
[null,null,"Air-CooledRotaryNo4","ROTRY.ACFL.4","Air-Cooled","No","Rotary","≥300 and <600",4,2.8024618991793666,1.2549675800041835,10.1,1.19,14,0.86,445.89673980058745,42.339587093587625,16.80142344983636,11.1,1.08,15.4,0.78,5,310]
[null,null,"Air-CooledRotaryNo5","ROTRY.ACFL.5","Air-Cooled","No","Rotary","≥600",5,2.8024618991793666,1.2549675800041835,10.1,1.19,14,0.86,445.89673980058745,42.339587093587625,16.80142344983636,11.1,1.08,15.4,0.78,5,310]
[null,null,"Air-CooledScrewNo1","SCREW.ACFL.1","Air-Cooled","No","Screw","<75",1,2.8024618991793666,1.2549675800041835,10.1,1.19,13.7,0.88,445.89673980058745,42.339587093587625,16.80142344983636,10.9,1.1000000000000001,14.7,0.82,5,310]
[null,null,"Air-CooledScrewNo2","SCREW.ACFL.2","Air-Cooled","No","Screw","≥75 and <150",2,2.8024618991793666,1.2549675800041835,10.1,1.19,13.7,0.88,445.89673980058745,42.339587093587625,16.80142344983636,10.9,1.1000000000000001,14.7,0.82,5,310]
[null,null,"Air-CooledScrewNo3","SCREW.ACFL.3","Air-Cooled","No","Screw","≥150 and <300",3,2.8024618991793666,1.2549675800041835,10.1,1.19,14,0.86,445.89673980058745,42.339587093587625,16.80142344983636,11.1,1.08,15.4,0.78,5,310]
[null,null,"Air-CooledScrewNo4","SCREW.ACFL.4","Air-Cooled","No","Screw","≥300 and <600",4,2.8024618991793666,1.2549675800041835,10.1,1.19,14,0.86,445.89673980058745,42.339587093587625,16.80142344983636,11.1,1.08,15.4,0.78,5,310]
[null,null,"Air-CooledScrewNo5","SCREW.ACFL.5","Air-Cooled","No","Screw","≥600",5,2.8024618991793666,1.2549675800041835,10.1,1.19,14,0.86,445.89673980058745,42.339587093587625,16.80142344983636,11.1,1.08,15.4,0.78,5,310]
[null,null,"Air-CooledScrollNo1","SCRLL.ACFL.1","Air-Cooled","No","Scroll","<75",1,2.8024618991793666,1.2549675800041835,10.1,1.19,13.7,0.88,445.89673980058745,42.339587093587625,16.80142344983636,10.9,1.1000000000000001,14.7,0.82,5,310]
[null,null,"Air-CooledScrollNo2","SCRLL.ACFL.2","Air-Cooled","No","Scroll","≥75 and <150",2,2.8024618991793666,1.2549675800041835,10.1,1.19,13.7,0.88,445.89673980058745,42.339587093587625,16.80142344983636,10.9,1.1000000000000001,14.7,0.82,5,310]
[null,null,"Air-CooledScrollNo3","SCRLL.ACFL.3","Air-Cooled","No","Scroll","≥150 and <300",3,2.8024618991793666,1.2549675800041835,10.1,1.19,14,0.86,445.89673980058745,42.339587093587625,16.80142344983636,11.1,1.08,15.4,0.78,5,310]
[null,null,"Air-CooledScrollNo4","SCRLL.ACFL.4","Air-Cooled","No","Scroll","≥300 and <600",4,2.8024618991793666,1.2549675800041835,10.1,1.19,14,0.86,445.89673980058745,42.339587093587625,16.80142344983636,11.1,1.08,15.4,0.78,5,310]
[null,null,"Air-CooledScrollNo5","SCRLL.ACFL.5","Air-Cooled","No","Scroll","≥600",5,2.8024618991793666,1.2549675800041835,10.1,1.19,14,0.86,445.89673980058745,42.339587093587625,16.80142344983636,11.1,1.08,15.4,0.78,5,310]
[null,null,"Water-CooledCentrifugalNo1","CTFGL.WCFL.1","Water-Cooled","No","Centrifugal","<75",1,5.5473167628817937,0.63400000000000012,19.7,0.61,21.8,0.55000000000000004,468.68792761740599,145.51913915158866,196.6474853399848,21.8,0.55000000000000004,24.5,0.49000000000000005,5,310]
[null,null,"Water-CooledCentrifugalNo2","CTFGL.WCFL.2","Water-Cooled","No","Centrifugal","≥75 and <150",2,5.5473167628817937,0.63400000000000012,19.7,0.61,21.8,0.55000000000000004,468.68792761740599,145.51913915158866,196.6474853399848,21.4,0.55999999999999994,24,0.5,5,310]
[null,null,"Water-CooledCentrifugalNo3","CTFGL.WCFL.3","Water-Cooled","No","Centrifugal","≥150 and <300",3,5.5473167628817937,0.63400000000000012,19.7,0.61,21.8,0.55000000000000004,338.7655378428837,93.841774058426779,73.891160675926599,21.4,0.55999999999999994,23.5,0.51,5,310]
[null,null,"Water-CooledCentrifugalNo4","CTFGL.WCFL.4","Water-Cooled","No","Centrifugal","≥300 and <400",4,6.1059007424775311,0.57599999999999996,21.4,0.56000000000000005,23.1,0.52,338.7655378428837,93.841774058426779,73.891160675926599,23.1,0.52,25,0.48000000000000004,5,310]
[null,null,"Water-CooledCentrifugalNo5","CTFGL.WCFL.5","Water-Cooled","No","Centrifugal","≥400 and <600",5,6.170173381872031,0.56999999999999995,21.4,0.56000000000000005,24,0.5,267.71423093494184,65.580715023103664,57.026708715742352,23.1,0.52,26.1,0.46,5,310]
[null,null,"Water-CooledCentrifugalNo6","CTFGL.WCFL.6","Water-Cooled","No","Centrifugal","≥600",6,6.170173381872031,0.56999999999999995,21.4,0.56000000000000005,24,0.5,267.71423093494184,65.580715023103664,57.026708715742352,23.1,0.52,26.1,0.46,5,310]
[null,null,"Water-CooledReciprocatingNo1","RECIP.WCFL.1","Water-Cooled","No","Reciprocating","<75",1,4.5089728559834068,0.78,16,0.75,20,0.6,462.58824239497829,16.274341238578074,9.8632371142897473,17.899999999999999,0.67,22.2,0.54,5,310]
[null,null,"Water-CooledReciprocatingNo2","RECIP.WCFL.2","Water-Cooled","No","Reciprocating","≥75 and <150",2,4.5380630034413638,0.77500000000000013,16.7,0.72,21.4,0.56000000000000005,462.58824239497829,16.274341238578074,9.8632371142897473,18.2,0.65999999999999992,23.5,0.51,5,310]
[null,null,"Water-CooledReciprocatingNo3","RECIP.WCFL.3","Water-Cooled","No","Reciprocating","≥150 and <300",3,5.1720570995103783,0.68,18.2,0.66,22.2,0.54,462.58824239497829,16.274341238578074,9.8632371142897473,19.7,0.61,24,0.5,5,310]
[null,null,"Water-CooledReciprocatingNo4","RECIP.WCFL.4","Water-Cooled","No","Reciprocating","≥300 and <600",4,5.6725787543017061,0.62,19.7,0.61,23.1,0.52,462.58824239497829,16.274341238578074,9.8632371142897473,21.4,0.55999999999999994,25,0.48000000000000004,5,310]
[null,null,"Water-CooledReciprocatingNo5","RECIP.WCFL.5","Water-Cooled","No","Reciprocating","≥600",5,5.6725787543017061,0.62,21.4,0.56000000000000005,24,0.5,462.58824239497829,16.274341238578074,9.8632371142897473,23.1,0.52,26.1,0.46,5,310]
[null,null,"Water-CooledRotaryNo1","ROTRY.WCFL.1","Water-Cooled","No","Rotary","<75",1,4.5089728559834068,0.78,16,0.75,20,0.6,443.38924926972516,49.053878122290939,31.046758305247423,17.899999999999999,0.67,22.2,0.54,5,310]
[null,null,"Water-CooledRotaryNo2","ROTRY.WCFL.2","Water-Cooled","No","Rotary","≥75 and <150",2,4.5380630034413638,0.77500000000000013,16.7,0.72,21.4,0.56000000000000005,443.38924926972516,49.053878122290939,31.046758305247423,18.2,0.65999999999999992,23.5,0.51,5,310]
[null,null,"Water-CooledRotaryNo3","ROTRY.WCFL.3","Water-Cooled","No","Rotary","≥150 and <300",3,5.1720570995103783,0.68,18.2,0.66,22.2,0.54,346.94119633464976,25.474144365156633,17.690378031358772,19.7,0.61,24,0.5,5,310]
[null,null,"Water-CooledRotaryNo4","ROTRY.WCFL.4","Water-Cooled","No","Rotary","≥300 and <600",4,5.6725787543017061,0.62,19.7,0.61,23.1,0.52,275.83630822489715,11.398920686211682,8.9054067861028763,21.4,0.55999999999999994,25,0.48000000000000004,5,310]
[null,null,"Water-CooledRotaryNo5","ROTRY.WCFL.5","Water-Cooled","No","Rotary","≥600",5,5.6725787543017061,0.62,21.4,0.56000000000000005,24,0.5,275.83630822489715,11.398920686211682,8.9054067861028763,23.1,0.52,26.1,0.46,5,310]
[null,null,"Water-CooledScrewNo1","SCREW.WCFL.1","Water-Cooled","No","Screw","<75",1,4.5089728559834068,0.78,16,0.75,20,0.6,443.38924926972516,49.053878122290939,31.046758305247423,17.899999999999999,0.67,22.2,0.54,5,310]
[null,null,"Water-CooledScrewNo2","SCREW.WCFL.2","Water-Cooled","No","Screw","≥75 and <150",2,4.5380630034413638,0.77500000000000013,16.7,0.72,21.4,0.56000000000000005,443.38924926972516,49.053878122290939,31.046758305247423,18.2,0.65999999999999992,23.5,0.51,5,310]
[null,null,"Water-CooledScrewNo3","SCREW.WCFL.3","Water-Cooled","No","Screw","≥150 and <300",3,5.1720570995103783,0.68,18.2,0.66,22.2,0.54,346.94119633464976,25.474144365156633,17.690378031358772,19.7,0.61,24,0.5,5,310]
[null,null,"Water-CooledScrewNo4","SCREW.WCFL.4","Water-Cooled","No","Screw","≥300 and <600",4,5.6725787543017061,0.62,19.7,0.61,23.1,0.52,275.83630822489715,11.398920686211682,8.9054067861028763,21.4,0.55999999999999994,25,0.48000000000000004,5,310]
[null,null,"Water-CooledScrewNo5","SCREW.WCFL.5","Water-Cooled","No","Screw","≥600",5,5.6725787543017061,0.62,21.4,0.56000000000000005,24,0.5,275.83630822489715,11.398920686211682,8.9054067861028763,23.1,0.52,26.1,0.46,5,310]
[null,null,"Water-CooledScrollNo1","SCRLL.WCFL.1","Water-Cooled","No","Scroll","<75",1,4.5089728559834068,0.78,16,0.75,20,0.6,443.38924926972516,49.053878122290939,31.046758305247423,17.899999999999999,0.67,22.2,0.54,5,310]
[null,null,"Water-CooledScrollNo2","SCRLL.WCFL.2","Water-Cooled","No","Scroll","≥75 and <150",2,4.5380630034413638,0.77500000000000013,16.7,0.72,21.4,0.56000000000000005,443.38924926972516,49.053878122290939,31.046758305247423,18.2,0.65999999999999992,23.5,0.51,5,310]
[null,null,"Water-CooledScrollNo3","SCRLL.WCFL.3","Water-Cooled","No","Scroll","≥150 and <300",3,5.1720570995103783,0.68,18.2,0.66,22.2,0.54,346.94119633464976,25.474144365156633,17.690378031358772,19.7,0.61,24,0.5,5,310]
[null,null,"Water-CooledScrollNo4","SCRLL.WCFL.4","Water-Cooled","No","Scroll","≥300 and <600",4,5.6725787543017061,0.62,19.7,0.61,23.1,0.52,275.83630822489715,11.398920686211682,8.9054067861028763,21.4,0.55999999999999994,25,0.48000000000000004,5,310]
[null,null,"Water-CooledScrollNo5","SCRLL.WCFL.5","Water-Cooled","No","Scroll","≥600",5,5.6725787543017061,0.62,21.4,0.56000000000000005,24,0.5,275.83630822489715,11.398920686211682,8.9054067861028763,23.1,0.52,26.1,0.46,5,310]
[]
[]
[null,null,"CRAC Lookup Table",2,3,4,5,6,7,8,9,10,11,12,13,14,15,16,17,18,19]
[null,null,"Equipment ID","Equipment Code","Heat Rejection","Fluid Economizer","Configuration","Size","Size ID","Baseline CRAC Compressor EFLH","Proposed CRAC Compressor EFLH","CFM / Sensible_Ton","Supply Fan W/CFM","W/Sensible Ton","SRP Min SCOP","Tier 1 SCOP ","Tier 2 SCOP ","Tier 1 Rebate","Tier 2 Rebate ","Tier 1 Cost","Tier 2 Cost"]
[null,"Downflow","Air-CooledDownflowNone1","CRAC.NONE.ACD.1","Air-Cooled","None","Downflow","<65000",1,5309.7280000000001,5309.7280000000001,472,0.41799999999999998,197.29599999999999,2.2000000000000002,2.4,2.8,200,300,620.5,1707.67]
[null,null,"Air-CooledDownflowNone2","CRAC.NONE.ACD.2","Air-Cooled","None","Downflow","≥65000 and <240000",2,5309.7280000000001,5309.7280000000001,472,0.41799999999999998,197.29599999999999,2.1,2.35,2.75,200,300,246.5,619.17999999999995]
[null,null,"Air-CooledDownflowNone3","CRAC.NONE.ACD.3","Air-Cooled","None","Downflow","≥240000",3,5309.7280000000001,5309.7280000000001,472,0.41799999999999998,197.29599999999999,1.9,2.15,2.65,200,300,162.69,408.67]
[null,null,"Water-CooledDownflowNone1","CRAC.NONE.WCD.1","Water-Cooled","None","Downflow","<65000",1,5230.3760000000002,5230.3760000000002,472,0.41799999999999998,197.29599999999999,2.6,2.8,3.2,200,300,629.79,2020.55]
[null,null,"Water-CooledDownflowNone2","CRAC.NONE.WCD.2","Water-Cooled","None","Downflow","≥65000 and <240000",2,5230.3760000000002,5230.3760000000002,472,0.41799999999999998,197.29599999999999,2.5,2.7,3.1,200,300,673.68,2161.5]
[null,null,"Water-CooledDownflowNone3","CRAC.NONE.WCD.3","Water-Cooled","None","Downflow","≥240000",3,5230.3760000000002,5230.3760000000002,472,0.41799999999999998,197.29599999999999,2.4,2.6,3,200,300,585.9,1879.6]
[null,null,"Water-CooledDownflowEcon1","CRAC.ECON.WCD.1","Water-Cooled","Econ","Downflow","<65000",1,5230.3760000000002,2314.1210000000001,472,0.46100000000000002,217.59200000000001,2.5499999999999998,2.75,3.15,300,400,666.49,2138.27]
[null,null,"Water-CooledDownflowEcon2","CRAC.ECON.WCD.2","Water-Cooled","Econ","Downflow","≥65000 and <240000",2,5230.3760000000002,2314.1210000000001,472,0.46400000000000002,219.00800000000001,2.4500000000000002,2.65,3.05,300,400,712.95,2287.4499999999998]
[null,null,"Water-CooledDownflowEcon3","CRAC.ECON.WCD.3","Water-Cooled","Econ","Downflow","≥240000",3,5230.3760000000002,2314.1210000000001,472,0.46700000000000003,220.42400000000001,2.35,2.5499999999999998,2.95,300,400,620.02,1989.08]
[null,null,"Glycol-CooledDownflowNone1","CRAC.NONE.GCD.1","Glycol-Cooled","None","Downflow","<65000",1,5356.0360000000001,5356.0360000000001,472,0.41799999999999998,197.29599999999999,2.5,2.7,3.1,200,300,629.34,2019.01]
[null,null,"Glycol-CooledDownflowNone2","CRAC.NONE.GCD.2","Glycol-Cooled","None","Downflow","≥65000 and <240000",2,5356.0360000000001,5356.0360000000001,472,0.41799999999999998,197.29599999999999,2.15,2.35,2.75,200,300,672.77,2158.41]
[null,null,"Glycol-CooledDownflowNone3","CRAC.NONE.GCD.3","Glycol-Cooled","None","Downflow","≥240000",3,5356.0360000000001,5356.0360000000001,472,0.41799999999999998,197.29599999999999,2.1,2.2999999999999998,2.7,200,300,585.9,1879.6]
[null,null,"Glycol-CooledDownflowEcon1","CRAC.ECON.GCD.1","Glycol-Cooled","Econ","Downflow","<65000",1,5356.0360000000001,4381.7709999999997,472,0.46100000000000002,217.59200000000001,2.4500000000000002,2.65,3.05,300,400,666.01,2136.59]
[null,null,"Glycol-CooledDownflowEcon2","CRAC.ECON.GCD.2","Glycol-Cooled","Econ","Downflow","≥65000 and <240000",2,5356.0360000000001,4381.7709999999997,472,0.46400000000000002,219.00800000000001,2.1,2.2999999999999998,2.7,300,400,712,2284.09]
[null,null,"Glycol-CooledDownflowEcon3","CRAC.ECON.GCD.3","Glycol-Cooled","Econ","Downflow","≥240000",3,5356.0360000000001,4381.7709999999997,472,0.46700000000000003,220.42400000000001,2.0499999999999998,2.25,2.65,300,400,620.02,1989.08]
[null,"Upflow","Air-CooledUpflowNone1","CRAC.NONE.ACU.1","Air-Cooled","None","Upflow","<65000",1,5309.7280000000001,5309.7280000000001,472,0.41799999999999998,197.29599999999999,2.09,2.29,2.69,200,300,620.5,1707.67]
[null,null,"Air-CooledUpflowNone2","CRAC.NONE.ACU.2","Air-Cooled","None","Upflow","≥65000 and <240000",2,5309.7280000000001,5309.7280000000001,472,0.41799999999999998,197.29599999999999,1.99,2.2400000000000002,2.64,200,300,246.5,619.17999999999995]
[null,null,"Air-CooledUpflowNone3","CRAC.NONE.ACU.3","Air-Cooled","None","Upflow","≥240000",3,5309.7280000000001,5309.7280000000001,472,0.41799999999999998,197.29599999999999,1.79,2.04,2.54,200,300,162.69,408.67]
[null,null,"Water-CooledUpflowNone1","CRAC.NONE.WCU.1","Water-Cooled","None","Upflow","<65000",1,5230.3760000000002,5230.3760000000002,472,0.41799999999999998,197.29599999999999,2.4900000000000002,2.69,3.0900000000000003,200,300,629.79,2020.55]
[null,null,"Water-CooledUpflowNone2","CRAC.NONE.WCU.2","Water-Cooled","None","Upflow","≥65000 and <240000",2,5230.3760000000002,5230.3760000000002,472,0.41799999999999998,197.29599999999999,2.39,2.5900000000000003,2.99,200,300,673.68,2161.5]
[null,null,"Water-CooledUpflowNone3","CRAC.NONE.WCU.3","Water-Cooled","None","Upflow","≥240000",3,5230.3760000000002,5230.3760000000002,472,0.41799999999999998,197.29599999999999,2.29,2.4900000000000002,2.89,200,300,585.9,1879.6]
[null,null,"Water-CooledUpflowEcon1","CRAC.ECON.WCU.1","Water-Cooled","Econ","Upflow","<65000",1,5230.3760000000002,2314.1210000000001,472,0.46100000000000002,217.59200000000001,2.44,2.64,3.04,300,400,666.49,2138.27]
[null,null,"Water-CooledUpflowEcon2","CRAC.ECON.WCU.2","Water-Cooled","Econ","Upflow","≥65000 and <240000",2,5230.3760000000002,2314.1210000000001,472,0.46400000000000002,219.00800000000001,2.34,2.54,2.94,300,400,712.95,2287.4499999999998]
[null,null,"Water-CooledUpflowEcon3","CRAC.ECON.WCU.3","Water-Cooled","Econ","Upflow","≥240000",3,5230.3760000000002,2314.1210000000001,472,0.46700000000000003,220.42400000000001,2.2400000000000002,2.44,2.8400000000000003,300,400,620.02,1989.08]
[null,null,"Glycol-CooledUpflowNone1","CRAC.NONE.GCU.1","Glycol-Cooled","None","Upflow","<65000",1,5356.0360000000001,5356.0360000000001,472,0.41799999999999998,197.29599999999999,2.39,2.5900000000000003,2.99,200,300,629.34,2019.01]
[null,null,"Glycol-CooledUpflowNone2","CRAC.NONE.GCU.2","Glycol-Cooled","None","Upflow","≥65000 and <240000",2,5356.0360000000001,5356.0360000000001,472,0.41799999999999998,197.29599999999999,2.04,2.2400000000000002,2.64,200,300,672.77,2158.41]
[null,null,"Glycol-CooledUpflowNone3","CRAC.NONE.GCU.3","Glycol-Cooled","None","Upflow","≥240000",3,5356.0360000000001,5356.0360000000001,472,0.41799999999999998,197.29599999999999,1.99,2.19,2.5900000000000003,200,300,585.9,1879.6]
[null,null,"Glycol-CooledUpflowEcon1","CRAC.ECON.GCU.1","Glycol-Cooled","Econ","Upflow","<65000",1,5356.0360000000001,4381.7709999999997,472,0.46100000000000002,217.59200000000001,2.34,2.54,2.94,300,400,666.01,2136.59]
[null,null,"Glycol-CooledUpflowEcon2","CRAC.ECON.GCU.2","Glycol-Cooled","Econ","Upflow","≥65000 and <240000",2,5356.0360000000001,4381.7709999999997,472,0.46400000000000002,219.00800000000001,1.99,2.19,2.5900000000000003,300,400,712,2284.09]
[null,null,"Glycol-CooledUpflowEcon3","CRAC.ECON.GCU.3","Glycol-Cooled","Econ","Upflow","≥240000",3,5356.0360000000001,4381.7709999999997,472,0.46700000000000003,220.42400000000001,1.94,2.14,2.54,300,400,620.02,1989.08]
[]
[]
[null,null,"OA Econ Lookup Table",2,3,4,5,6,7,8,9,10,11,12]
[null,null,"ID","Equipment Code","Unit Type","Heat Rejection","Size","Size ID","Baseline ER/None\nIPLV/SEER/IEER","Baseline Other\nIPLV/SEER/IEER","ER/None IPLV/ SEER/IEER/EER","Other IPLV/SEER/ IEER/EER","Rebate","Incremental Cost"]
[null,"Air-Cooled","Air-CooledAC1","ECON.AC.AC.1","AC","Air-Cooled","<65000",1,15,15,18.2,18.2,75,81.36]
[null,null,"Air-CooledAC2","ECON.AC.AC.2","AC","Air-Cooled",">65000 & <135000",2,14,13.8,16.899999999999999,16.7,75,81.36]
[null,null,"Air-CooledAC3","ECON.AC.AC.3","AC","Air-Cooled",">135000 & <240000",3,13.2,13,16,15.7,75,81.36]
[null,null,"Air-CooledAC4","ECON.AC.AC.4","AC","Air-Cooled",">240000 & <760000",4,12.3,12.1,14.9,14.6,75,81.36]
[null,null,"Air-CooledAC5","ECON.AC.AC.5","AC","Air-Cooled",">760000",5,11.6,11.4,14,13.8,75,81.36]
[null,null,"Air-CooledHP1","ECON.HP.AC.1","HP","Air-Cooled","<65000",1,15,15,18.2,18.2,75,81.36]
[null,null,"Air-CooledHP2","ECON.HP.AC.2","HP","Air-Cooled",">65000 & <135000",2,13.6,13.4,16.5,14.6,75,81.36]
[null,null,"Air-CooledHP3","ECON.HP.AC.3","HP","Air-Cooled",">135000 & <240000",3,12.8,12.6,15.5,15.2,75,81.36]
[null,null,"Air-CooledHP4","ECON.HP.AC.4","HP","Air-Cooled",">240000 & <760000",4,11.8,11.6,12.8,14,75,81.36]
[null,null,"Air-CooledHP5","ECON.HP.AC.5","HP","Air-Cooled",">760000",5,11.8,11.6,14.3,14,75,81.36]
[null,null,"Air-CooledCRAC1","ECON.CRAC.AC.1","CRAC","Air-Cooled","<65000",1,2.35,2.35,2.84,2.84,75,81.36]
[null,null,"Air-CooledCRAC2","ECON.CRAC.AC.2","CRAC","Air-Cooled",">65000 & <135000",2,2.2999999999999998,2.2999999999999998,2.78,2.78,75,81.36]
[null,null,"Air-CooledCRAC3","ECON.CRAC.AC.3","CRAC","Air-Cooled",">135000 & <240000",3,2.2999999999999998,2.2999999999999998,2.78,2.78,75,81.36]
[null,null,"Air-CooledCRAC4","ECON.CRAC.AC.4","CRAC","Air-Cooled",">240000",4,2.1,2.1,2.54,2.54,75,81.36]
[null,null,"Air-CooledChiller1","ECON.CH.AC.1","Chiller","Air-Cooled","<75",1,0.76,0.88,0.63,0.73,75,81.36]
[null,null,"Air-CooledChiller2","ECON.CH.AC.2","Chiller","Air-Cooled",">75 & <150",2,0.76,0.88,0.63,0.73,75,81.36]
[null,null,"Air-CooledChiller3","ECON.CH.AC.3","Chiller","Air-Cooled",">150 & <300",3,0.75,0.86,0.62,0.71,75,81.36]
[null,null,"Air-CooledChiller4","ECON.CH.AC.4","Chiller","Air-Cooled",">300 & <600",4,0.75,0.86,0.62,0.71,75,81.36]
[null,null,"Air-CooledChiller5","ECON.CH.AC.5","Chiller","Air-Cooled",">600",5,0.75,0.86,0.62,0.71,75,81.36]
[null,"Water-Cooled","Water-CooledAC1","ECON.AC.WC.1","AC","Water-Cooled","<65000",1,14,14,16.899999999999999,16.899999999999999,75,81.36]
[null,null,"Water-CooledAC2","ECON.AC.WC.2","AC","Water-Cooled",">65000 & <135000",2,15.3,15.1,18.5,18.3,75,81.36]
[null,null,"Water-CooledAC3","ECON.AC.WC.3","AC","Water-Cooled",">135000 & <240000",3,14.8,14.6,17.899999999999999,17.7,75,81.36]
[null,null,"Water-CooledAC4","ECON.AC.WC.4","AC","Water-Cooled",">240000 & <760000",4,14.8,14.6,17.899999999999999,17.7,75,81.36]
[null,null,"Water-CooledAC5","ECON.AC.WC.5","AC","Water-Cooled",">760000",5,14.8,14.6,17.899999999999999,17.7,75,81.36]
[null,null,"Water-CooledHP1","ECON.HP.WC.1","HP","Water-Cooled","<65000",1,14,14,16.899999999999999,16.899999999999999,75,81.36]
[null,null,"Water-CooledHP2","ECON.HP.WC.2","HP","Water-Cooled",">65000 & <135000",2,14,14,16.899999999999999,16.899999999999999,75,81.36]
[null,null,"Water-CooledHP3","ECON.HP.WC.3","HP","Water-Cooled",">135000 & <240000",3,14,13.8,16.899999999999999,16.7,75,81.36]
[null,null,"Water-CooledHP4","ECON.HP.WC.4","HP","Water-Cooled",">240000 & <760000",4,14,13.8,16.899999999999999,16.7,75,81.36]
[null,null,"Water-CooledHP5","ECON.HP.WC.5","HP","Water-Cooled",">760000",5,14,13.8,16.899999999999999,16.7,75,81.36]
[null,null,"Water-CooledWSHP1","ECON.WSHP.WC.1","WSHP","Water-Cooled","All",1,14,14,16.899999999999999,16.899999999999999,75,81.36]
[null,null,"Water-CooledWSHP2","ECON.WSHP.WC.2","WSHP","Water-Cooled",null,2,14,14,16.899999999999999,16.899999999999999,75,81.36]
[null,null,"Water-CooledWSHP3","ECON.WSHP.WC.3","WSHP","Water-Cooled",null,3,14,14,16.899999999999999,16.899999999999999,75,81.36]
[null,null,"Water-CooledWSHP4","ECON.WSHP.WC.4","WSHP","Water-Cooled",null,4,14,14,16.899999999999999,16.899999999999999,75,81.36]
[null,null,"Water-CooledWSHP5","ECON.WSHP.WC.5","WSHP","Water-Cooled",null,5,14,14,16.899999999999999,16.899999999999999,75,81.36]
[null,null,"Water-CooledCRAC1","ECON.CRAC.WC.1","CRAC","Water-Cooled","<65000",1,2.72,2.72,3.29,3.29,75,81.36]
[null,null,"Water-CooledCRAC2","ECON.CRAC.WC.2","CRAC","Water-Cooled",">65000 & <135000",2,2.62,2.62,3.17,3.17,75,81.36]
[null,null,"Water-CooledCRAC3","ECON.CRAC.WC.3","CRAC","Water-Cooled",">135000 & <240000",3,2.62,2.62,3.17,3.17,75,81.36]
[null,null,"Water-CooledCRAC4","ECON.CRAC.WC.4","CRAC","Water-Cooled",">240000",4,2.52,2.52,3.05,3.05,75,81.36]
[null,null,"Water-CooledChiller1","ECON.CH.WC.1","Chiller","Water-Cooled","<75",1,0.49,0.59,0.4,0.49,75,81.36]
[null,null,"Water-CooledChiller2","ECON.CH.WC.2","Chiller","Water-Cooled",">75 & <150",2,0.48,0.56000000000000005,0.4,0.46,75,81.36]
[null,null,"Water-CooledChiller3","ECON.CH.WC.3","Chiller","Water-Cooled",">150 & <300",3,0.43,0.54,0.35,0.45,75,81.36]
[null,null,"Water-CooledChiller4","ECON.CH.WC.4","Chiller","Water-Cooled",">300 & <600",4,0.4,0.52,0.33,0.43,75,81.36]
[null,null,"Water-CooledChiller5","ECON.CH.WC.5","Chiller","Water-Cooled",">600",5,0.38,0.5,0.31,0.41,75,81.36]
[null,"Evap-Cooled","Evap-CooledAC1","ECON.AC.EC.1","AC","Evap-Cooled","<65000",1,14,14,16.899999999999999,16.899999999999999,75,81.36]
[null,null,"Evap-CooledAC2","ECON.AC.EC.2","AC","Evap-Cooled",">65000 & <135000",2,15.3,15.1,18.5,18.3,75,81.36]
[null,null,"Evap-CooledAC3","ECON.AC.EC.3","AC","Evap-Cooled",">135000 & <240000",3,14.3,14.1,17.3,17.100000000000001,75,81.36]
[null,null,"Evap-CooledAC4","ECON.AC.EC.4","AC","Evap-Cooled",">240000 & <760000",4,14.3,14.1,17.3,17.100000000000001,75,81.36]
[null,null,"Evap-CooledAC5","ECON.AC.EC.5","AC","Evap-Cooled",">760000",5,14.3,14.1,17.3,17.100000000000001,75,81.36]
[null,"Glycol-Cooled","Glycol-CooledCRAC1","ECON.CRAC.GC.1","CRAC","Glycol-Cooled","<65000",1,2.62,2.62,3.17,3.17,75,81.36]
[null,null,"Glycol-CooledCRAC2","ECON.CRAC.GC.2","CRAC","Glycol-Cooled",">65000 & <135000",2,2.27,2.27,2.75,2.75,75,81.36]
[null,null,"Glycol-CooledCRAC3","ECON.CRAC.GC.3","CRAC","Glycol-Cooled",">135000 & <240000",3,2.27,2.27,2.75,2.75,75,81.36]
[null,null,"Glycol-CooledCRAC4","ECON.CRAC.GC.4","CRAC","Glycol-Cooled",">240000",4,2.2200000000000002,2.2200000000000002,2.69,2.69,75,81.36]
[]
[]
[null,null,"EFLH - Unitary Lookup Table",2,3,null,"EFLH - Economizer Lookup Table",2,3,null,"EFLH - AC Chiller Lookup Table",2,3,null,"EFLH - WC Chiller Lookup Table",2,3]
[null,null,"Facility Type","EFLHc","EFLHh",null,"Facility Type","EFLHc w/o ECON","EFLHc w/ ECON",null,"Facility Type","EFLH w/o Econ","EFLHh w/ Econ",null,"Facility Type","EFLH w/o Econ","EFLHh w/ Econ"]
[null,null,"Automotive Facility",2179.156283139399,1187.2535211276977,null,"Automotive Facility",2378.194451057318,2179.1562831393999,null,"Automotive Facility",2330.0354674421869,2128.960951352813,null,"Automotive Facility",2384.2325355458947,2136.4852880002159]
[null,null,"Casino",3310.7783708579632,1120.2286112278009,null,"Casino",3928.1453509883186,3310.7783708579632,null,"Casino",3350.6081026893999,2982.5228186436107,null,"Casino",3170.7929822275923,2804.1142621882054]
[null,null,"Convention Center",2939.9225342197169,325.04478429655319,null,"Convention Center",3181.4208543115751,2939.9225342197169,null,"Convention Center",3350.6081026893999,2982.5228186436107,null,"Convention Center",3170.7929822275923,2804.1142621882054]
[null,null,"Court House",3305.8353018962307,532.35986048341294,null,"Court House",4095.8883624032037,3305.8353018962307,null,"Court House",2330.0354674421869,2128.960951352813,null,"Court House",2384.2325355458947,2136.4852880002159]
[null,null,"Data Center",3142.1432072250227,609.84981491269536,null,"Data Center",3924.8471383746246,3142.1432072250227,null,"Data Center",7135.7585997395399,6357.6767397240001,null,"Data Center",7222.3969271074511,6310.9238350000005]
[null,null,"Dining: Bar Lounge/Leisure",3310.7783708579632,1120.2286112278009,null,"Dining: Bar Lounge/Leisure",3928.1453509883186,3310.7783708579632,null,"Dining: Bar Lounge/Leisure",1813.7225368905943,1738.584216631099,null,"Dining: Bar Lounge/Leisure",1876.1134423490992,1790.0091424123398]
[null,null,"Dining: Cafeteria/Fast Food",3050.7402944018095,1117.6054852736593,null,"Dining: Cafeteria/Fast Food",3587.6237496878593,3050.7402944018095,null,"Dining: Cafeteria/Fast Food",1813.7225368905943,1738.584216631099,null,"Dining: Cafeteria/Fast Food",1876.1134423490992,1790.0091424123398]
[null,null,"Dining: Family",3310.7783708579632,1120.2286112278009,null,"Dining: Family",3928.1453509883186,3310.7783708579632,null,"Dining: Family",1813.7225368905943,1738.584216631099,null,"Dining: Family",1876.1134423490992,1790.0091424123398]
[null,null,"Dormitory",2939.9225342197169,325.04478429655319,null,"Dormitory",3185.8642286669233,2939.9225342197169,null,"Dormitory",2945.9811479702353,2641.3794353266671,null,"Dormitory",3254.7405556584745,2886.0308795710775]
[null,null,"Exercise Center",3050.7402944018095,1117.6054852736593,null,"Exercise Center",3587.6237496878593,3050.7402944018095,null,"Exercise Center",1613.8515227680227,1586.2442634513045,null,"Exercise Center",1852.1289204808479,1812.4365271008776]
[null,null,"Fire Station",2939.9225342197169,325.04478429655319,null,"Fire Station",3185.8642286669233,2939.9225342197169,null,"Fire Station",2945.9811479702353,2641.3794353266671,null,"Fire Station",3254.7405556584745,2886.0308795710775]
[null,null,"Grow Facility",2585.8565668667743,393.34901982335714,null,"Grow Facility",3031.2007539393558,2585.8565668667743,null,"Grow Facility",2123.3984368434076,1891.8634455457038,null,"Grow Facility",2282.9336358326109,1994.8253248204351]
[null,null,"Gymnasium",3050.7402944018095,1117.6054852736593,null,"Gymnasium",3587.6237496878593,3050.7402944018095,null,"Gymnasium",1613.8515227680227,1586.2442634513045,null,"Gymnasium",1852.1289204808479,1812.4365271008776]
[null,null,"Health Care - Clinic",3142.1432072250227,609.84981491269536,null,"Health Care - Clinic",3924.8471383746246,3142.1432072250227,null,"Health Care - Clinic",2983.24806203553,2680.6391595248028,null,"Health Care - Clinic",3197.6955807972267,2903.8971191693136]
[null,null,"Health Care - Hospital",3142.1432072250227,609.84981491269536,null,"Health Care - Hospital",3924.8471383746246,3142.1432072250227,null,"Health Care - Hospital",2983.24806203553,2680.6391595248028,null,"Health Care - Hospital",3197.6955807972267,2903.8971191693136]
[null,null,"Hotel",2939.9225342197169,325.04478429655319,null,"Hotel",3181.4208543115751,2939.9225342197169,null,"Hotel",2945.9811479702353,2641.3794353266671,null,"Hotel",3254.7405556584745,2886.0308795710775]
[null,null,"Library",2218.1503853758759,445.48548598600905,null,"Library",2636.8292260463186,2218.1503853758759,null,"Library",1813.7225368905943,1738.584216631099,null,"Library",1876.1134423490992,1790.0091424123398]
[null,null,"Manufacturing Facility",2585.8565668667743,393.34901982335714,null,"Manufacturing Facility",3031.2007539393558,2585.8565668667743,null,"Manufacturing Facility",2123.3984368434076,1891.8634455457038,null,"Manufacturing Facility",2282.9336358326109,1994.8253248204351]
[null,null,"Motel",2567.7078892854906,490.00031410512003,null,"Motel",2893.9341298944687,2567.7078892854906,null,"Motel",2945.9811479702353,2641.3794353266671,null,"Motel",3254.7405556584745,2886.0308795710775]
[null,null,"Motion Picture Theater",3050.7402944018095,1117.6054852736593,null,"Motion Picture Theater",3587.6237496878593,3050.7402944018095,null,"Motion Picture Theater",3350.6081026893999,2982.5228186436107,null,"Motion Picture Theater",3170.7929822275923,2804.1142621882054]
[null,null,"Multi-Family Housing",1301.2067064566836,777.71448790644206,null,"Multi-Family Housing",1401.6342395820861,1301.2067064566836,null,"Multi-Family Housing",2945.9811479702353,2641.3794353266671,null,"Multi-Family Housing",3254.7405556584745,2886.0308795710775]
[null,null,"Museum",2218.1503853758759,445.48548598600905,null,"Museum",2636.8292260463186,2218.1503853758759,null,"Museum",3350.6081026893999,2982.5228186436107,null,"Museum",3170.7929822275923,2804.1142621882054]
[null,null,"Office, Small",3305.8353018962307,532.35986048341294,null,"Office, Small",4095.8883624032037,3305.8353018962307,null,"Office, Small",1130.0009325031178,1023.6392192648158,null,"Office, Small",1452.9597496637614,1229.4838992573475]
[null,null,"Office, Large",2218.1503853758759,445.48548598600905,null,"Office, Large",2636.8292260463186,2218.1503853758759,null,"Office, Large",1130.0009325031178,1023.6392192648158,null,"Office, Large",1452.9597496637614,1229.4838992573475]
[null,null,"Parking Garage",2218.1503853758759,445.48548598600905,null,"Parking Garage",2636.8292260463186,2218.1503853758759,null,"Parking Garage",1813.7225368905943,1738.584216631099,null,"Parking Garage",1876.1134423490992,1790.0091424123398]
[null,null,"Penitentiary",1301.2067064566836,777.71448790644206,null,"Penitentiary",1401.6342395820861,1301.2067064566836,null,"Penitentiary",2983.24806203553,2680.6391595248028,null,"Penitentiary",3197.6955807972267,2903.8971191693136]
[null,null,"Performing Arts Theater",2238.6350974670254,675.90766928155494,null,"Performing Arts Theater",2651.6674308831271,2238.6350974670254,null,"Performing Arts Theater",3350.6081026893999,2982.5228186436107,null,"Performing Arts Theater",3170.7929822275923,2804.1142621882054]
[null,null,"Police Station",2939.9225342197169,325.04478429655319,null,"Police Station",3185.8642286669233,2939.9225342197169,null,"Police Station",2945.9811479702353,2641.3794353266671,null,"Police Station",3254.7405556584745,2886.0308795710775]
[null,null,"Post Office",2218.1503853758759,445.48548598600905,null,"Post Office",2636.8292260463186,2218.1503853758759,null,"Post Office",1130.0009325031178,1023.6392192648158,null,"Post Office",1452.9597496637614,1229.4838992573475]
[null,null,"Religious Building",2753.3398116016951,840.68202849120485,null,"Religious Building",3076.5016119183879,2753.3398116016951,null,"Religious Building",1813.7225368905943,1738.584216631099,null,"Religious Building",1876.1134423490992,1790.0091424123398]
[null,null,"Retail, Food/Grocery",2646.5172743635549,268.16925286554664,null,"Retail, Food/Grocery",3033.3456941805607,2646.5172743635549,null,"Retail, Food/Grocery",2330.0354674421869,2128.960951352813,null,"Retail, Food/Grocery",2384.2325355458947,2136.4852880002159]
[null,null,"Retail, Commodity",2516.9477839838473,658.58873357427569,null,"Retail, Commodity",2769.9471741809189,2516.9477839838473,null,"Retail, Commodity",2330.0354674421869,2128.960951352813,null,"Retail, Commodity",2384.2325355458947,2136.4852880002159]
[null,null,"Retail, Specialty",2516.9477839838473,658.58873357427569,null,"Retail, Specialty",2769.9471741809189,2516.9477839838473,null,"Retail, Specialty",2330.0354674421869,2128.960951352813,null,"Retail, Specialty",2384.2325355458947,2136.4852880002159]
[null,null,"Primary School",2000.2868641023351,465.98682686773799,null,"Primary School",2269.6986433717711,2000.2868641023351,null,"Primary School",2330.0354674421869,2128.960951352813,null,"Primary School",2384.2325355458947,2136.4852880002159]
[null,null,"Sec. School",2234.6712931695001,676.09236264048377,null,"Sec. School",2647.7036802202829,2234.6712931695001,null,"Sec. School",2330.0354674421869,2128.960951352813,null,"Sec. School",2384.2325355458947,2136.4852880002159]
[null,null,"University",2411.1321245218373,519.39792944294732,null,"University",2884.5670692378958,2411.1321245218373,null,"University",1813.7225368905943,1738.584216631099,null,"University",1876.1134423490992,1790.0091424123398]
[null,null,"Sports Arena",2238.6350974670254,675.90766928155494,null,"Sports Arena",2651.6674308831271,2238.6350974670254,null,"Sports Arena",1613.8515227680227,1586.2442634513045,null,"Sports Arena",1852.1289204808479,1812.4365271008776]
[null,null,"Town Hall",2218.1503853758759,445.48548598600905,null,"Town Hall",2636.8292260463186,2218.1503853758759,null,"Town Hall",1813.7225368905943,1738.584216631099,null,"Town Hall",1876.1134423490992,1790.0091424123398]
[null,null,"Transportation",2218.1503853758759,445.48548598600905,null,"Transportation",2636.8292260463186,2218.1503853758759,null,"Transportation",2330.0354674421869,2128.960951352813,null,"Transportation",2384.2325355458947,2136.4852880002159]
[null,null,"Warehouse, Refrigerated",3261.2809705784553,0,null,"Warehouse, Refrigerated",4030.0932667673715,3261.2809705784553,null,"Warehouse, Refrigerated",2123.3984368434076,1891.8634455457038,null,"Warehouse, Refrigerated",2282.9336358326109,1994.8253248204351]
[null,null,"Warehouse, Commercial",2998.3422756584732,656.41716746583768,null,"Warehouse, Commercial",3456.3111695115526,2998.3422756584732,null,"Warehouse, Commercial",1813.7225368905943,1738.584216631099,null,"Warehouse, Commercial",1876.1134423490992,1790.0091424123398]
[null,null,"Warehouse, Industrial",2998.3422756584732,656.41716746583768,null,"Warehouse, Industrial",3456.3111695115526,2998.3422756584732,null,"Warehouse, Industrial",2123.3984368434076,1891.8634455457038,null,"Warehouse, Industrial",2282.9336358326109,1994.8253248204351]
[null,null,"Workshop",2308.605876537169,183.5403386187661,null,"Workshop",2658.9059517476144,2308.605876537169,null,"Workshop",2123.3984368434076,1891.8634455457038,null,"Workshop",2282.9336358326109,1994.8253248204351]
[]
[]
[null,null,"Hotel Room Occ Lookup Table",2,3,4,5,6,7,8,9,10]
[null,null,"Unit Type","bEFLHc","bEFLHh","pEFLHc","pEFLHh","AVG Equipment Size (tons)","Baseline (Tier 1) IPLV/SEER/IEER","Baseline (Tier 1) HSPF/COP","Rebate","Incremental Cost"]
[null,null,"Chiller",4938.87,1291.04,4123.99,1142.6300000000001,1,0.81,3.4119999999999999,50,260]
[null,null,"PTAC",4938.87,1291.04,4123.99,1142.6300000000001,0.875,12,3.4119999999999999,50,260]
[null,null,"PTHP",4938.87,1291.04,4123.99,1142.6300000000001,0.875,11.6,3.3,50,260]
[null,null,"FCU",4938.87,1291.04,4123.99,1142.6300000000001,1,11.9,3.4119999999999999,50,260]
[]
[]
[null,null,"Evap Cooler Size and Equiv SEER Table",2,3,null,"Evap Cooler Lookup Table",2,3,4]
[null,null,"Unitary BTU/hr","Size ID","SEER/IEER",null,"EVAP ID","CFM/SqFt","Rebate","Incremental Cost"]
[null,null,0,1,14,null,"DEC",4,0.06,0.5]
[null,null,65000,2,11.4,null,"IEC",2,0.06,{"$f":"651.57/1300","v":0.50120769230769235}]
[null,null,135000,3,11.2,null,"IDEC",2.5,0.06,{"$f":"651.57/1300","v":0.50120769230769235}]
[null,null,240000,4,10.1]
[null,null,760000,5,9.8000000000000007]
[]
[]
[null,null,"CO2 Sensor Lookup Table",2,3,4,5,6,7,8,null,"Equiv Unitary Table",2,3,null,"Load Reduction Table",2,3,4]
[null,null,"ID","Size","Size ID","Basline IPLV/\nSEER/IEER","Baseline\nHSPF/COP","Rebate 1","Rebate 2","Incremental Cost",null,"Size (BTUH)","Size (Tons)","Size ID",null,"Facility Type","Clg Load Reduction","Htg Load Reduction","PeakClg Load Reduction"]
[null,null,"AC1","<65000",1,14,0,85,120,650,null,0,0,1,null,"Automotive Facility",15183.78,11402.73,30.23]
[null,null,"AC2",">65000 & <135000",2,12.8,0,85,120,650,null,65000,5.416666666666667,2,null,"Casino",{"$f":"Q429","v":17462.259999999998},{"$f":"R429","v":12346.92},{"$f":"S429","v":31.03}]
[null,null,"AC3",">135000 & <240000",3,12.3,0,85,120,650,null,135000,11.25,3,null,"Convention Center",17462.259999999998,12346.92,31.03]
[null,null,"AC4",">240000 & <760000",4,11.5,0,85,120,650,null,240000,20,4,null,"Court House",18764.16,12269.54,31.03]
[null,null,"AC5",">760000",5,11.1,0,85,120,650,null,760000,63.333333333333336,5,null,"Data Center",{"$f":"MAX(Q427:Q430,Q432:Q469)","v":19842.96},{"$f":"MAX(R427:R430,R432:R469)","v":12862.4},{"$f":"MAX(S427:S430,S432:S469)","v":31.03}]
[null,null,"HP1","<65000",1,14,8.1,85,120,650,null,null,null,null,null,"Dining: Bar Lounge/Leisure",10251.36,12492.38,16.670000000000002]
[null,null,"HP2",">65000 & <135000",2,12.1,3.3,85,120,650,null,null,null,null,null,"Dining: Cafeteria/Fast Food",10137.25,12241.43,14.27]
[null,null,"HP3",">135000 & <240000",3,11.5,3.2,85,120,650,null,null,null,null,null,"Dining: Family",14166.13,12565.91,30.23]
[null,null,"HP4",">240000 & <760000",4,10.5,3.2,85,120,650,null,null,null,null,null,"Dormitory",16152.3,10655.41,23.13]
[null,null,"HP5",">760000",5,10.5,3.2,85,120,650,null,null,null,null,null,"Exercise Center",11541.84,12655.05,25.27]
[null,null,"WSHP1","All",1,12.6,4.3,85,120,650,null,null,null,null,null,"Fire Station",10023.58,7902.05,7.34]
[null,null,"WSHP2",null,2,13,4.3,85,120,650,null,null,null,null,null,"Grow Facility",{"$f":"Q444","v":18764.16},{"$f":"R444","v":12269.54},{"$f":"S444","v":31.03}]
[null,null,"WSHP3",null,3,13,4.3,85,120,650,null,null,null,null,null,"Gymnasium",10462.34,10201.719999999999,14.27]
[null,null,"WSHP4",null,4,13,4.3,85,120,650,null,null,null,null,null,"Health Care - Clinic",18413.27,12251.31,31.03]
[null,null,"WSHP5",null,5,13,4.3,85,120,650,null,null,null,null,null,"Health Care - Hospital",10023.58,7902.05,7.34]
[null,null,"Chiller1","All",1,0.63,0,85,120,650,null,null,null,null,null,"Hotel",10023.58,7902.05,7.34]
[null,null,"Chiller2",null,2,0.62,0,85,120,650,null,null,null,null,null,"Library",17638.62,12572.27,31.03]
[null,null,"Chiller3",null,3,0.59,0,85,120,650,null,null,null,null,null,"Manufacturing Facility",18764.16,12269.54,31.03]
[null,null,"Chiller4",null,4,0.57999999999999996,0,85,120,650,null,null,null,null,null,"Motel",10023.58,7902.05,7.34]
[null,null,"Chiller5",null,5,0.56999999999999995,0,85,120,650,null,null,null,null,null,"Motion Picture Theater",10462.06,12667.35,16.88]
[null,null,null,null,null,null,null,null,null,null,null,null,null,null,null,"Multi-Family Housing",19669.150000000001,11794.65,31.03]
[null,null,null,null,null,null,null,null,null,null,null,null,null,null,null,"Museum",17439.990000000002,12586.19,30.76]
[null,null,"Refrig Compressor Lookup Table",2,3,4,5,6,7,8,null,null,null,null,null,"Office, Small",{"$f":"Q450","v":18764.16},{"$f":"R450","v":12269.54},{"$f":"S450","v":31.03}]
[null,null,"Equipment Application ","Baseline COP","Minimum COP","Duty Cycle","Deemed kWh/Ton","Deemed kW/Ton","Rebate/Unit","Incremental Cost/Unit",null,null,null,null,null,"Office, Large",18764.16,12269.54,31.03]
[null,null,"RFC: Beverage Merchandiser",1.72,2.15,0.45,null,null,80,105.6,null,null,null,null,null,"Parking Garage",16078.88,11619.43,30.43]
[null,null,"RFC: Food Service Equipment",2.04,2.4500000000000002,0.65,null,null,80,211.2,null,null,null,null,null,"Penitentiary",15970.22,11491.14,31.02]
[null,null,"RFC: Reach-In: Cooler",2.04,2.5499999999999998,0.65,null,null,80,88,null,null,null,null,null,"Performing Arts Theater",17905.400000000001,12862.4,31.03]
[null,null,"RFC: Reach-In: Freezer",1.25,1.67,0.75,null,null,80,180,null,null,null,null,null,"Police Station",10023.58,7902.05,7.34]
[null,null,"RFC: Walk-In: Cooler",3.42,4.1399999999999997,0.66,null,null,80,147.44,null,null,null,null,null,"Post Office",17948.349999999999,12102.64,30.9]
[null,null,"RFC: Walk-In: Freezer",1,1.2,0.7,null,null,80,1611.36,null,null,null,null,null,"Religious Building",19842.96,12781.55,30.6]
[null,null,"Discus Compressor",null,null,null,1051,0.184,50,132,null,null,null,null,null,"Retail, Food/Grocery",16148.61,12115.8,31.02]
[null,null,null,null,null,null,null,null,null,null,null,null,null,null,null,"Retail, Commodity",16148.61,12115.8,31.02]
[null,null,null,null,null,null,null,null,null,null,null,null,null,null,null,"Retail, Specialty",16148.61,12115.8,31.02]
[null,null,null,null,null,null,null,null,null,null,null,null,null,null,null,"Primary School",18791.189999999999,11762.64,31.03]
[null,null,null,null,null,null,null,null,null,null,null,null,null,null,null,"Sec. School",14051.44,11768.02,27.53]
[null,null,null,null,null,null,null,null,null,null,null,null,null,null,null,"University",14051.44,11768.02,27.53]
[null,null,null,null,null,null,null,null,null,null,null,null,null,null,null,"Sports Arena",17219.099999999999,12839.38,30.22]
[null,null,null,null,null,null,null,null,null,null,null,null,null,null,null,"Town Hall",18330.189999999999,12295.33,31.03]
[null,null,null,null,null,null,null,null,null,null,null,null,null,null,null,"Transportation",16973.97,11836.14,30.630000000000003]
[null,null,null,null,null,null,null,null,null,null,null,null,null,null,null,"Warehouse, Refrigerated",18106.91,12202.25,31.03]
[null,null,null,null,null,null,null,null,null,null,null,null,null,null,null,"Warehouse, Commercial",18106.91,12202.25,31.03]
[null,null,null,null,null,null,null,null,null,null,null,null,null,null,null,"Warehouse, Industrial",18106.91,12202.25,31.03]
[null,null,null,null,null,null,null,null,null,null,null,null,null,null,null,"Workshop",17601.419999999998,12683.66,31.03]

{"sheet":"Deemed Lookup Tables","index":20,"n_rows":103,"n_cols":14,"rows_kept":103,"cut":false,"hidden":true,"merged":[]}
[]
[null,"HVAC Deemed Lookup Table",2,3,4,5,6,7,8,9,10]
[null,"Measure","Unit","Min/Max","OpHr Min","SB Min","kWh/unit","kW/unit","Cost/unit","Rebate/unit","$/kWh"]
[null,"ECM","HP",1,0,0,2895,0.66,400,{"$f":"IF('Customer Information'!$AR$12<DATE(2000+MID(Version_ID,3,2),1,1),135,135)","v":135},{"$f":"J4/G4","v":4.6632124352331605E-2},"*"]
[null,"CO Sensor","Ton",0,0,0,3341.74,0,2029.19,250,{"$f":"J5/G5","v":7.4811325836241005E-2}]
[null,"EMS","SqFt",100000,3000,8,0.9,0,0.21299999999999999,0.25,0.27777777777777779]
[null,"RTU Controller","Ton",0,0,0,761,0.224,590,{"$f":"IF('Customer Information'!$AR$12<DATE(2000+MID(Version_ID,3,2),1,1),300,300)","v":300},{"$f":"J7/(G7*5)","v":7.8843626806833114E-2},"*"]
[null,"SMART Thermostat, No","Ton",0,1,1,405,0,325,{"$f":"IF('Customer Information'!$AR$12<DATE(2000+MID(Version_ID,3,2),1,1),150,150)","v":150},{"$f":"J8/(G8*5)","v":7.407407407407407E-2},"*"]
[null,"SMART Thermostat, Yes","Ton",0,1,1,405,0,325,{"$f":"IF('Customer Information'!$AR$12<DATE(2000+MID(Version_ID,3,2),1,1),200,200)","v":200},{"$f":"J9/(G9*5)","v":9.8765432098765427E-2},"*"]
[null,"VFD: VAV Fan","HP",100,0,0,1120,0.156,261.62,{"$f":"IF('Customer Information'!$AR$12<DATE(2000+MID(Version_ID,3,2),1,1),90,90)","v":90},8.0357142857142863E-2,"*"]
[null,"VFD: HVAC Fan","HP",100,0,0,1120,0.156,261.62,{"$f":"IF('Customer Information'!$AR$12<DATE(2000+MID(Version_ID,3,2),1,1),90,90)","v":90},8.0357142857142863E-2,"*"]
[null,"VFD: CHW Pump","HP",100,0,0,3500,0.40639999999999998,261.62,{"$f":"IF('Customer Information'!$AR$12<DATE(2000+MID(Version_ID,3,2),1,1),90,90)","v":90},{"$f":"J12/G12","v":2.5714285714285714E-2},"*"]
[null,"VFD: DSW Pump","HP",100,0,0,3500,0.40639999999999998,261.62,{"$f":"IF('Customer Information'!$AR$12<DATE(2000+MID(Version_ID,3,2),1,1),90,90)","v":90},2.5714285714285714E-2,"*"]
[null,"VFD: DHW Pump","HP",100,0,0,3500,0.40639999999999998,261.62,{"$f":"IF('Customer Information'!$AR$12<DATE(2000+MID(Version_ID,3,2),1,1),90,90)","v":90},2.5714285714285714E-2,"*"]
[null,"VFD: HVAC Pump","HP",100,0,0,760,4.7E-2,261.62,{"$f":"IF('Customer Information'!$AR$12<DATE(2000+MID(Version_ID,3,2),1,1),90,90)","v":90},0.11842105263157894,"*"]
[]
[null,"Refrigeration Deemed Lookup Table",2,3,4,5,6,7,8,9,10,11,12]
[null,"Measure","Unit","Min/Max Size","Elig1","Elig1 Units","Elig2","Elig2 Units","kWh/unit","kW/unit","Cost/unit","Rebate/unit","$/kWh"]
[null,"Anti-Sweat Heater Controls, Reach-In Med Temp","Linear ft",0,0,"NA",0,"NA",35,2.5000000000000001E-2,6.42,3,{"$f":"L19/I19","v":8.5714285714285715E-2}]
[null,"Anti-Sweat Heater Controls, Reach-In Low Temp","Linear ft",0,0,"NA",0,"NA",56,3.9E-2,6.42,3,{"$f":"L20/I20","v":5.3571428571428568E-2}]
[null,"Anti-Sweat Heater Controls, Walk-In Med Temp","Linear ft",0,0,"NA",0,"NA",35,2.5000000000000001E-2,6.42,3,8.5714285714285715E-2]
[null,"Anti-Sweat Heater Controls, Walk-In Low Temp","Linear ft",0,0,"NA",0,"NA",56,3.9E-2,6.42,3,5.3571428571428568E-2]
[null,"Auto-Closer Reach-In, Med Temp","Each",0,0,"NA",0,"NA",0,0,0,0,{"$error":"#DIV/0!"}]
[null,"Auto-Closer Reach-In, Low Temp","Each",0,0,"NA",0,"NA",0,0,0,0,{"$error":"#DIV/0!"}]
[null,"Auto-Closer Walk-In, Med Temp","Each",0,0,"NA",0,"NA",215,1.2999999999999999E-2,166,20,9.3023255813953487E-2]
[null,"Auto-Closer Walk-In, Low Temp","Each",0,0,"NA",0,"NA",2730,0.16300000000000001,166,40,1.4652014652014652E-2]
[null,"Dock Door Seal, Med Temp","Linear ft",0,0,"NA",0,"NA",298,7.4999999999999997E-2,27,25,8.3892617449664433E-2]
[null,"Dock Door Seal, Low Temp","Linear ft",0,0,"NA",0,"NA",752,0.11799999999999999,34,25,3.3244680851063829E-2]
[null,"Electronically Commutated Motor, Reach-In","Each",0,0,"NA",0,"NA",199,2.2977000000000001E-2,40.985999999999997,{"$f":"IF('Customer Information'!$AR$12<DATE(2000+MID(Version_ID,3,2),1,1),25,25)","v":25},0.12562814070351758,"*"]
[null,"Electronically Commutated Motor, Walk-In","Each",0,0,"NA",0,"NA",801,9.2499999999999999E-2,165,{"$f":"IF('Customer Information'!$AR$12<DATE(2000+MID(Version_ID,3,2),1,1),60,60)","v":60},7.4906367041198504E-2,"*"]
[null,"Evaporative Condenser, Ammonia","Tons",0,240,"EER",18,"degF",768,0,604,70,9.1145833333333329E-2]
[null,"Evaporative Condenser, Freon","Tons",0,240,"EER",18,"degF",1510,3.2500000000000001E-2,604,70,4.6357615894039736E-2]
[null,"Fast-Acting Door, Bi-Fold Med Temp","Square ft",0,1.5,"Seconds",3000,"SqFt",207,1.7999999999999999E-2,125,30,0.14492753623188406]
[null,"Fast-Acting Door, Bi-Fold Low Temp","Square ft",0,1.5,"Seconds",3000,"SqFt",326,2.8000000000000001E-2,175,80,0.24539877300613497]
[null,"Fast-Acting Door, Roll-Up Med Temp","Square ft",0,4,"Seconds",3000,"SqFt",207,1.7999999999999999E-2,125,30,0.14492753623188406]
[null,"Fast-Acting Door, Roll-Up Low Temp","Square ft",0,4,"Seconds",3000,"SqFt",326,2.8000000000000001E-2,175,80,0.24539877300613497]
[null,"Floating Head-Pressure Controls, Ammonia","Tons",0,0,"NA",0,"NA",947,0,29,20,2.1119324181626188E-2]
[null,"Floating Head-Pressure Controls, Freon","Tons",0,0,"NA",0,"NA",2039,0,29,20,9.8087297694948502E-3]
[null,"Door Gaskets, Glass Door Med Temp","Linear ft",0,0,"NA",0,"NA",27,4.0000000000000001E-3,{"$f":"3.85+2.05","v":5.9},3.5,0.12962962962962962]
[null,"Door Gaskets, Glass Door Low Temp","Linear ft",0,0,"NA",0,"NA",158,2.1000000000000001E-2,{"$f":"3.85+2.05","v":5.9},4.5,2.8481012658227847E-2]
[null,"Door Gaskets, Solid Door Med Temp","Linear ft",0,0,"NA",0,"NA",40,5.0000000000000001E-3,{"$f":"3.85+2.05","v":5.9},3.5,8.7499999999999994E-2]
[null,"Door Gaskets, Solid Door Low Temp","Linear ft",0,0,"NA",0,"NA",235,3.1E-2,{"$f":"3.85+2.05","v":5.9},4.5,1.9148936170212766E-2]
[null,"High-Efficiency Open Display Case","Linear ft",0,0,"NA",0,"NA",131,7.3000000000000001E-3,700,20,0.15267175572519084]
[null,"Refrigerated Occupancy Controls, Reach-In","Each",0,0,"NA",0,"NA",1209,0,180,{"$f":"IF('Customer Information'!$AR$12<DATE(2000+MID(Version_ID,3,2),1,1),100,100)","v":100},8.2712985938792394E-2,"*"]
[null,"Refrigerated Occupancy Controls, Beverage Machine","Each",0,0,"NA",0,"NA",1612,0,180,{"$f":"IF('Customer Information'!$AR$12<DATE(2000+MID(Version_ID,3,2),1,1),100,100)","v":100},6.2034739454094295E-2,"*"]
[null,"Refrigerated Occupancy Controls, Snack Machine","Each",0,0,"NA",0,"NA",343,0,80,{"$f":"IF('Customer Information'!$AR$12<DATE(2000+MID(Version_ID,3,2),1,1),40,40)","v":40},0.11661807580174927,"*"]
[null,"Refrigerated Suction Pipe Insulation, Med Temp","Linear ft",0,3.2,"R-Value",1.625,"Inches",6.94,1.1999999999999999E-3,0.91,0.75,0.10806916426512968]
[null,"Refrigerated Suction Pipe Insulation, Low Temp","Linear ft",0,4.3,"R-Value",1.625,"Inches",29.69,4.7999999999999996E-3,0.91,0.75,2.5261030650050521E-2]
[null,"Strip Curtain","Square ft",0,0,"NA",0,"NA",40,4.5265799680584071E-3,10.16,4,0.1]
[null,"Variable Frequency Drive, Condenser Fan","HP",0,0,"NA",0,"NA",1296,0,300,{"$f":"IF('Customer Information'!$AR$12<DATE(2000+MID(Version_ID,3,2),1,1),125,125)","v":125},9.6450617283950615E-2,"*"]
[null,"Variable Frequency Drive, Evaporator Fan","HP",0,0,"NA",0,"NA",1760,0,260,{"$f":"IF('Customer Information'!$AR$12<DATE(2000+MID(Version_ID,3,2),1,1),125,125)","v":125},7.1022727272727279E-2,"*"]
[]
[null,"Kitchen Equipment Deemed Lookup Table",2,3,4,5,6,7,8,9,10]
[null,"Measure","Unit","Size","Elig1","Elig1 Units","kWh/unit","kW/unit","Cost/unit","Rebate/unit","$/kWh"]
[null,"Griddle","Each",0,70,"CEE",2640.8780000000002,0.24301900000000001,1250,225,{"$f":"J55/G55","v":8.5198937626047092E-2}]
[null,"Steam Cooker","Each",0,50,"CEE",2938.6039999999998,0.54977299999999996,2490,250,{"$f":"J56/G56","v":8.5074409481508906E-2}]
[null,"Dishwasher, Under-Counter","Each",0,0,"NA",2301.9169999999999,0.142958,627,200,8.6884105725792901E-2]
[null,"Dishwasher, Single-Tank","Each",0,0,"NA",9038.4169999999995,0.56132099999999996,705,600,6.6383305837736856E-2]
[null,"Dishwasher, Multi-Tank","Each",0,0,"NA",16079.166999999999,0.98635200000000001,970,800,4.9753821202304822E-2]
[null,"Hot Food Holding Cabinet, 1/2 Size","Each",0,0,"NA",2628,0.193467,1500,225,8.5616438356164379E-2]
[null,"Hot Food Holding Cabinet, 3/4 Size","Each",0,0,"NA",3942,0.29020099999999999,1800,350,8.8787417554540837E-2]
[null,"Hot Food Holding Cabinet, Full Size","Each",0,0,"NA",9308,0.68523400000000001,1200,700,7.5204125483455092E-2]
[null,"Ice Maker1","Each",100,0,"NA",686.56600000000003,0.12875,222,60,8.7391452533332553E-2]
[null,"Ice Maker2","Each",501,0,"NA",2112.4180000000001,0.39613500000000001,222,175,8.2843452384897306E-2]
[null,"Ice Maker3","Each",1501,0,"NA",3134.1509999999998,0.58773699999999995,222,215,6.8599119825432792E-2]
[null,"Refrigerated Vending Machine","Each",0,0,"NA",1576,0,500,130,8.2487309644670048E-2]
[null,"Electric Convection Oven","Each",0,0,"NA",2200.3391715195503,0.41193564398311217,900,175,7.9533193002761168E-2]
[null,"Electric Vat Fryer, Standard","Each",0,80,"CEE",2962.354974844432,0.23655583873957364,1200,250,8.4392316965028386E-2]
[null,"Electric Vat Fryer, Large","Each",0,80,"CEE",1734.2852678571444,0.13848958333333347,1200,150,{"$f":"J69/G69","v":8.6490961308422834E-2}]
[null,"Electric Combination Oven, <15 Pans","Each",0,60,"CEE",6417.7434566763814,0.59830561144814065,3824,550,8.5699904290788498E-2]
[null,"Electric Combination Oven, 15+ Pans","Each",0,60,"CEE",11735.586420861813,1.0940710323862803,3824,1000,8.5210910144408791E-2]
[null,"HE Pre-Rinse Spray Valve","Each",0,26,"Seconds",5079.1244002368821,0,93,75,1.4766324683148561E-2]
[null,"VFD: Kitchen - Hotel","HP",0,100,"HP",4317,0.55500000000000005,1991,300,{"$f":"J73/G73","v":6.9492703266157058E-2}]
[null,"VFD: Kitchen - Restaurant","HP",0,100,"HP",3494,0.51300000000000001,1991,300,8.5861476817401264E-2]
[]
[null,"Compressed Air Deemed Lookup Table",2,3,4,5,6,7,8,9,10]
[null,"Measure","Unit","Min/Max Size","mOpHrs","Elig","kWh/unit","kW/unit","Cost/unit (retro)","Cost/unit (NC)","Rebate/unit"]
[null,"Receiver Capacity Addition","Gallon",0,0,2,2.49E-3,5.9999999999999995E-4,6.83,4.87,1.5]
[null,"Desiccant Dryer: Blower Purge","SCFM",1000,6000,0,5.3600000000000002E-3,0,51,51,7.5]
[null,"Desiccant Dryer: Externally Heated","SCFM",1000,6000,0,7.92E-3,0,28,28,5]
[null,"LPD Filter","SCFM",1000,0,25,1.2899999999999999E-3,2.9999999999999997E-4,6.97,3.62,0.8]
[null,"Refrigerated Cycling Dryer","SCFM",1000,0,0,2.1700000000000001E-3,2.2000000000000001E-4,2.74,2.74,1.5]
[null,"VFD Compressor","HP",75,0,0,0.16116,4.0300000000000002E-2,589.48,135.55000000000001,90]
[null,"ZL Condensate Drain","Each",0,0,0,0.14949999999999999,2.52E-2,379,140,90]
[]
[null,"ITDC Deemed Lookup Table",2,3,4,5,6,7]
[null,"Measure","Unit","kWh/unit","kW/unit","Cost/unit","Rebate/unit","$/kWh"]
[null,"Computer Power Management","Each",159,2.4E-2,12,{"$f":"IF('Customer Information'!$AR$12<DATE(2000+MID(Version_ID,3,2),1,1),8,8)","v":8},{"$f":"G88/D88","v":5.0314465408805034E-2},"*"]
[null,"ECM: CRAC","HP",2970,0.34,520.18187378937694,250,{"$f":"G89/D89","v":8.4175084175084181E-2}]
[null,"ECM: CRAH","HP",2970,0.34,520.18187378937694,250,{"$f":"G90/D90","v":8.4175084175084181E-2}]
[null,"Server Virtualization","Each",5416,0.61829999999999996,300,{"$f":"IF('Customer Information'!$AR$12<DATE(2000+MID(Version_ID,3,2),1,1),300,300)","v":300},{"$f":"G91/D91","v":5.5391432791728215E-2},"*"]
[null,"HE Server Replacement","Each",4048,0.4632,2500,375,{"$f":"G92/D92","v":9.2638339920948623E-2}]
[]
[null,"Miscellaneous Deemed Lookup Table",2,3,4,5,6,7,8]
[null,"Measure","Unit","Min/Max","kWh/unit","kW/unit","Cost/unit","Rebate/unit","$/kWh"]
[null,"HPWH: Tier 1","Each",2.35,2803,0.32,990,250,{"$f":"H96/E96","v":8.9190153407063863E-2}]
[null,"HPWH: Tier 2","Each",2.5,2911,0.33200000000000002,990,300,0.10305736860185503]
[null,"VFD: Pool Pump","HP",25,1630,0.19,290,135,8.2822085889570546E-2]
[null,"Window Film","SQFT",0.35,8.3209999999999997,{"$f":"8.585/1000","v":8.5850000000000006E-3},{"$f":"1.66*2","v":3.32},{"$f":"IF('Customer Information'!$AR$12<DATE(2000+MID(Version_ID,3,2),1,1),0.75,0.75)","v":0.75},{"$f":"H99/E99","v":9.0133397428193734E-2},"*"]
[null,"Shade Screen","SQFT",0.25,11.135999999999999,{"$f":"11.491/1000","v":1.1490999999999999E-2},{"$f":"0.7+0.86","v":1.56},{"$f":"IF('Customer Information'!$AR$12<DATE(2000+MID(Version_ID,3,2),1,1),0.8,0.8)","v":0.8},{"$f":"H100/E100","v":7.1839080459770124E-2},"*"]
[]
[null,{"$f":"\"* Eligible for \" & Ref!$A$18 & \" (May 1 through \" & Ref!$B$18 & \")\"","v":"* Eligible for Fast-Track Rebates (May 1 through December 31)"}]
[null,"     - Currently unused function."]